{"text_format":"1","workbook":"xlsx","n_sheets":7,"sheets":["Info","1. Ordersheet","2. Content (NL)","2.1 Content (ENG)","Article Onboarding","Data order","Data content"],"not_rendered":{"charts":0,"images":1,"macros":1,"external_links":0,"defined_names":38,"comments":3,"pivot_tables":0},"unopened":[],"bounds":{"document_bytes":16777216,"sheet_cells":100000,"rows_first":2000,"rows_last":500,"rows_between":2000,"halvings":0,"cell_chars":16384,"cell_head_chars":4096},"cells_cut":0,"cells_raw":0,"read":"whole","date_system":"1900"}

{"sheet":"Info","index":0,"n_rows":105,"n_cols":6,"rows_kept":105,"cut":false,"hidden":false,"merged":[[33,0,33,1],[34,0,34,1],[35,0,35,1],[36,0,36,1],[0,1,0,6],[2,1,2,5],[4,1,4,5],[6,0,6,2],[6,3,6,5]]}
[null,"Wehkamp Retail Group B.V. - Order sheet Fashion "]
[null,"Important notes "]
[null,"Please make sure Tab 1. Order is sent to your contact at WRG's Buying & Sales department no later than 3 months before the confirmed delivery date of this order.\nPlease make sure Tab 2. Content (NL or ENG) is sent to your contact at WRG's Buying & Sales department no later than 1 month before the confirmed delivery date of this order.\n\n"]
[]
[null,"All information about the ordersheet and the most up to date version can always be found on: https://www.wehkamplogistiek.nl/wrg-ordersheets/\nWhen first receiving the new order format, please click ‘accept’ in the pop-ups when opening the sheet so macro's are activated.\nPlease always save this file as an Excel file with macro's.\nPlease only use thumbnail images in this file.\nThe content sheet contains dropdown menu's. For properties with 'Multi' in the name multiple values can be selected from the menu."]
[]
["Definities (Nederlands)",null,null,"Definitions (English)"]
["Wehkamp","grijze kolommen worden automatisch gevuld of door Wehkamp",null,"Wehkamp","grey columns will be filled by Wehkamp or automatically"]
["Leverancier","witte kolommen zijn verplicht en dienen gevuld te worden door de leverancier",null,"Supplier","white columns are mandatory and need to be filled by the supplier"]
["Kolom header ","Definitie","Voorbeeld ","Column header","Definition","Example"]
["Leverdatum van","Datum begin leverblok","2024-09-01","Delivery date from","Date start of delivery","2024-09-01"]
["Leverdatum tot","Datum eind leverblok","2024-09-30","Delivery date to","Date end of delivery ","2024-09-30"]
["Merk","Merk van het artikel","Sofie Schnoor","Brand","Brand of the item","Sofie Schnoor"]
["Merklijn","Merklijn van het artikel","Petit by Sofie Schnoor","Brand line","Brand line of the item","Petit by Sofie Schnoor"]
["Leveranciers artikelnummer","Stijlnummer van het artikel","CLTTOP34AW243329","Style number","Style number of the item","CLTTOP34AW243329"]
["AX Inkooptekst","Stijlnaam van het artikel","Tanja Jersey Tank","Style name","Style name of the item","Tanja Jersey Tank"]
["Inkoopkleur","Kleurcode + naam van het artikel","3329 Pink","Colour number + name","Colour code + name of the item","3329 Pink"]
["DarwinMoverClass","Seizoen van het artikel","winter 2024","DarwinMoverClass","Season ","winter 2024"]
["EAN/UPC","Barcode/EAN/UPC per maat",8719561323412,"EAN/UPC","Barcode/EAN/UPC per size",8719561323412]
["SizeSupplier","Bestelmaat",36,"SizeSupplier","Size on order",36]
["SizeDescription","Maat die op de website wordt getoond","S","SizeDescription","Size on website","S"]
["Aantallen per maat","Besteld aantal van een artikel per maat",25,"QTY per size","Ordered amount per size",25]
["QTYlowest","Minimaal orderaantal per maat",10,"QTYlowest","Lowest order quantity per size",10]
["QTYmultiples","Veelvoud orderaantal per maat",5,"QTYmultiples","Multiple order quantity per size",5]
["CurrencyCodePurchasePrice","Valuta inkoopprijs","EUR","CurrencyCodePurchasePrice","Currency of the purchase price","EUR"]
["Netto inkoopprijs","Netto inkoopprijs van een artikel incl. eventuele kortingen",null,"Currency purchase price","Net purchase price including any discounts"]
["CVP","Consumenten verkoopprijs/RRP, kan afwijken per maat",null,"RRP CVP","Customer selling price/RRP, can vary per size"]
["OVP","Originele verkoopprijs/RRP, kan afwijken per maat",null,"RRP OVP","Original selling price/RRP, can vary per size"]
["Materiaalsamenstelling","Materiaalcompositie in %","60% viscose/35% katoen/5% elastaan ","Material composition in %","Material composition in %","60% viscose/35% katoen/5% elastaan "]
["Filtermateriaal","Hoofdcomponent of look and feel van de materiaalsamenstelling","Viscose/Teddy","Filtermaterial","Most prominent component of the material composition or look and feel","Viscose/Teddy"]
["Customs code","Customs code is de HS-code (Harmonised System code)","Zie sheet (comment in header)","Customs code","Customs code is the HS-code (Harmonised System code)","Please see sheet (comment in header)"]
["Gewicht excl. verpakking","Gewicht van 1 stuk exclusief verpakking (op maatniveau) (gram)",150,"Weight excl. packaging","Weight of 1 piece in grams excluding packaging per size",150]
[]
["Gebruik deze lijst voor de juiste schrijfwijze van de materiaalsoort voor de kolom 'Materiaalsamentelling in %'. Voorbeeld van een correct geschreven materiaalsamenstelling: 80% katoen/10% elastaan/10% polyester. "]
["Use this list for the correct way of writing of an material. Example of an correctly written material composition: 80% cotton/10% elastane/10% polyester."]
["MATERIAL LIST "]
["Ways of writing and translations"]
["Material ENG","Material NL"]
["acetate","acetaat"]
["acrylic","acryl"]
["alpaca","alpaca"]
["angora","angora"]
["bamboo","bamboe"]
["canvas","canvas"]
["down","dons"]
["gemstone","edelsteen"]
["duck feathers","eendenveren"]
["elastane","elastaan"]
["glass","glas"]
["gold","goud"]
["semi-precious stone","halfedelsteen"]
["resin","hars"]
["hemp","hennep"]
["iron","ijzer"]
["faux fur","imitatiebont"]
["faux suede","imitatiesuede"]
["jute","jute"]
["kapok","kapok"]
["cashmere","kasjmier"]
["cotton","katoen"]
["coconut fiber","kokosvezel"]
["crystal","kristal"]
["cork","kurk"]
["leather","leer"]
["linen","linnen"]
["lyocell","lyocell"]
["merino wool","merinowol"]
["brass","messing"]
["metal","metaal"]
["metal thread","metaaldraad"]
["micro leather","microleer"]
["modacrylic","modacryl"]
["mohair","mohair"]
["neoprene","neopreen"]
["palm leaves","palmbladeren"]
["paper","papier"]
["pearl","parel"]
["polyacrylic","polyacryl"]
["polyamide","polyamide"]
["polycarbonate","polycarbonaat"]
["polyester","polyester"]
["polyethylene","polyethyleen"]
["polylactide","polylactide"]
["polyolefins","polyolefins"]
["polypropylene","polypropyleen"]
["polyurethane","polyurethaan"]
["PVC","PVC"]
["raffia","raffia"]
["ramie","ramie"]
["reed","riet"]
["rattan","rotan"]
["rubber","rubber"]
["stainless steel","RVS"]
["silicone","siliconen"]
["steel","staal"]
["Sterling silver","Sterling zilver"]
["straw","stro"]
["suède","suède"]
["Swarovski crystal","Swarovski kristal"]
["viscose","viscose"]
["wool","wol"]
["silk","zijde"]
["silver","zilver"]
["zinc","zink"]
["zirconia","zirkonia"]

{"sheet":"1. Ordersheet","index":1,"n_rows":1505,"n_cols":64,"rows_kept":1505,"cut":false,"hidden":false,"merged":[[1481,20,1486,20],[1487,20,1492,20],[1493,20,1498,20],[1499,20,1504,20],[1427,20,1432,20],[1433,20,1438,20],[1439,20,1444,20],[1445,20,1450,20],[1451,20,1456,20],[1457,20,1462,20],[1463,20,1468,20],[1469,20,1474,20],[1475,20,1480,20],[1373,20,1378,20],[1379,20,1384,20],[1385,20,1390,20],[1391,20,1396,20],[1397,20,1402,20],[1403,20,1408,20],[1409,20,1414,20],[1415,20,1420,20],[1421,20,1426,20],[1319,20,1324,20],[1325,20,1330,20],[1331,20,1336,20],[1337,20,1342,20],[1343,20,1348,20],[1349,20,1354,20],[1355,20,1360,20],[1361,20,1366,20],[1367,20,1372,20],[1265,20,1270,20],[1271,20,1276,20],[1277,20,1282,20],[1283,20,1288,20],[1289,20,1294,20],[1295,20,1300,20],[1301,20,1306,20],[1307,20,1312,20],[1313,20,1318,20],[1211,20,1216,20],[1217,20,1222,20],[1223,20,1228,20],[1229,20,1234,20],[1235,20,1240,20],[1241,20,1246,20],[1247,20,1252,20],[1253,20,1258,20],[1259,20,1264,20],[1157,20,1162,20],[1163,20,1168,20],[1169,20,1174,20],[1175,20,1180,20],[1181,20,1186,20],[1187,20,1192,20],[1193,20,1198,20],[1199,20,1204,20],[1205,20,1210,20],[1103,20,1108,20],[1109,20,1114,20],[1115,20,1120,20],[1121,20,1126,20],[1127,20,1132,20],[1133,20,1138,20],[1139,20,1144,20],[1145,20,1150,20],[1151,20,1156,20],[1049,20,1054,20],[1055,20,1060,20],[1061,20,1066,20],[1067,20,1072,20],[1073,20,1078,20],[1079,20,1084,20],[1085,20,1090,20],[1091,20,1096,20],[1097,20,1102,20],[995,20,1000,20],[1001,20,1006,20],[1007,20,1012,20],[1013,20,1018,20],[1019,20,1024,20],[1025,20,1030,20],[1031,20,1036,20],[1037,20,1042,20],[1043,20,1048,20],[941,20,946,20],[947,20,952,20],[953,20,958,20],[959,20,964,20],[965,20,970,20],[971,20,976,20],[977,20,982,20],[983,20,988,20],[989,20,994,20],[887,20,892,20],[893,20,898,20],[899,20,904,20],[905,20,910,20],[911,20,916,20],[917,20,922,20],[923,20,928,20],[929,20,934,20],[935,20,940,20],[833,20,838,20],[839,20,844,20],[845,20,850,20],[851,20,856,20],[857,20,862,20],[863,20,868,20],[869,20,874,20],[875,20,880,20],[881,20,886,20],[779,20,784,20],[785,20,790,20],[791,20,796,20],[797,20,802,20],[803,20,808,20],[809,20,814,20],[815,20,820,20],[821,20,826,20],[827,20,832,20],[725,20,730,20],[731,20,736,20],[737,20,742,20],[743,20,748,20],[749,20,754,20],[755,20,760,20],[761,20,766,20],[767,20,772,20],[773,20,778,20],[671,20,676,20],[677,20,682,20],[683,20,688,20],[689,20,694,20],[695,20,700,20],[701,20,706,20],[707,20,712,20],[713,20,718,20],[719,20,724,20],[617,20,622,20],[623,20,628,20],[629,20,634,20],[635,20,640,20],[641,20,646,20],[647,20,652,20],[653,20,658,20],[659,20,664,20],[665,20,670,20],[1475,0,1480,0],[1481,0,1486,0],[1487,0,1492,0],[1493,0,1498,0],[1499,0,1504,0],[503,20,508,20],[509,20,514,20],[515,20,520,20],[521,20,526,20],[527,20,532,20],[533,20,538,20],[539,20,544,20],[545,20,550,20],[551,20,556,20],[557,20,562,20],[563,20,568,20],[569,20,574,20],[575,20,580,20],[581,20,586,20],[587,20,592,20],[593,20,598,20],[599,20,604,20],[605,20,610,20],[611,20,616,20],[1421,0,1426,0],[1427,0,1432,0],[1433,0,1438,0],[1439,0,1444,0],[1445,0,1450,0],[1451,0,1456,0],[1457,0,1462,0],[1463,0,1468,0],[1469,0,1474,0],[1367,0,1372,0],[1373,0,1378,0],[1379,0,1384,0],[1385,0,1390,0],[1391,0,1396,0],[1397,0,1402,0],[1403,0,1408,0],[1409,0,1414,0],[1415,0,1420,0],[1313,0,1318,0],[1319,0,1324,0],[1325,0,1330,0],[1331,0,1336,0],[1337,0,1342,0],[1343,0,1348,0],[1349,0,1354,0],[1355,0,1360,0],[1361,0,1366,0],[1259,0,1264,0],[1265,0,1270,0],[1271,0,1276,0],[1277,0,1282,0],[1283,0,1288,0],[1289,0,1294,0],[1295,0,1300,0],[1301,0,1306,0],[1307,0,1312,0],[1205,0,1210,0],[1211,0,1216,0],[1217,0,1222,0],[1223,0,1228,0],[1229,0,1234,0],[1235,0,1240,0],[1241,0,1246,0],[1247,0,1252,0],[1253,0,1258,0],[1151,0,1156,0],[1157,0,1162,0],[1163,0,1168,0],[1169,0,1174,0],[1175,0,1180,0],[1181,0,1186,0],[1187,0,1192,0],[1193,0,1198,0],[1199,0,1204,0],[1097,0,1102,0],[1103,0,1108,0],[1109,0,1114,0],[1115,0,1120,0],[1121,0,1126,0],[1127,0,1132,0],[1133,0,1138,0],[1139,0,1144,0],[1145,0,1150,0],[1043,0,1048,0],[1049,0,1054,0],[1055,0,1060,0],[1061,0,1066,0],[1067,0,1072,0],[1073,0,1078,0],[1079,0,1084,0],[1085,0,1090,0],[1091,0,1096,0],[989,0,994,0],[995,0,1000,0],[1001,0,1006,0],[1007,0,1012,0],[1013,0,1018,0],[1019,0,1024,0],[1025,0,1030,0],[1031,0,1036,0],[1037,0,1042,0],[935,0,940,0],[941,0,946,0],[947,0,952,0],[953,0,958,0],[959,0,964,0],[965,0,970,0],[971,0,976,0],[977,0,982,0],[983,0,988,0],[881,0,886,0],[887,0,892,0],[893,0,898,0],[899,0,904,0],[905,0,910,0],[911,0,916,0],[917,0,922,0],[923,0,928,0],[929,0,934,0],[827,0,832,0],[833,0,838,0],[839,0,844,0],[845,0,850,0],[851,0,856,0],[857,0,862,0],[863,0,868,0],[869,0,874,0],[875,0,880,0],[773,0,778,0],[779,0,784,0],[785,0,790,0],[791,0,796,0],[797,0,802,0],[803,0,808,0],[809,0,814,0],[815,0,820,0],[821,0,826,0],[719,0,724,0],[725,0,730,0],[731,0,736,0],[737,0,742,0],[743,0,748,0],[749,0,754,0],[755,0,760,0],[761,0,766,0],[767,0,772,0],[665,0,670,0],[671,0,676,0],[677,0,682,0],[683,0,688,0],[689,0,694,0],[695,0,700,0],[701,0,706,0],[707,0,712,0],[713,0,718,0],[611,0,616,0],[617,0,622,0],[623,0,628,0],[629,0,634,0],[635,0,640,0],[641,0,646,0],[647,0,652,0],[653,0,658,0],[659,0,664,0],[557,0,562,0],[563,0,568,0],[569,0,574,0],[575,0,580,0],[581,0,586,0],[587,0,592,0],[593,0,598,0],[599,0,604,0],[605,0,610,0],[503,0,508,0],[509,0,514,0],[515,0,520,0],[521,0,526,0],[527,0,532,0],[533,0,538,0],[539,0,544,0],[545,0,550,0],[551,0,556,0],[491,0,496,0],[491,20,496,20],[497,0,502,0],[497,20,502,20],[473,0,478,0],[473,20,478,20],[479,0,484,0],[479,20,484,20],[485,0,490,0],[485,20,490,20],[455,0,460,0],[455,20,460,20],[461,0,466,0],[461,20,466,20],[467,0,472,0],[467,20,472,20],[437,0,442,0],[437,20,442,20],[443,0,448,0],[443,20,448,20],[449,0,454,0],[449,20,454,20],[419,0,424,0],[419,20,424,20],[425,0,430,0],[425,20,430,20],[431,0,436,0],[431,20,436,20],[401,0,406,0],[401,20,406,20],[407,0,412,0],[407,20,412,20],[413,0,418,0],[413,20,418,20],[383,0,388,0],[383,20,388,20],[389,0,394,0],[389,20,394,20],[395,0,400,0],[395,20,400,20],[365,0,370,0],[365,20,370,20],[371,0,376,0],[371,20,376,20],[377,0,382,0],[377,20,382,20],[347,0,352,0],[347,20,352,20],[353,0,358,0],[353,20,358,20],[359,0,364,0],[359,20,364,20],[329,0,334,0],[329,20,334,20],[335,0,340,0],[335,20,340,20],[341,0,346,0],[341,20,346,20],[311,0,316,0],[311,20,316,20],[317,0,322,0],[317,20,322,20],[323,0,328,0],[323,20,328,20],[293,0,298,0],[293,20,298,20],[299,0,304,0],[299,20,304,20],[305,0,310,0],[305,20,310,20],[275,0,280,0],[275,20,280,20],[281,0,286,0],[281,20,286,20],[287,0,292,0],[287,20,292,20],[257,0,262,0],[257,20,262,20],[263,0,268,0],[263,20,268,20],[269,0,274,0],[269,20,274,20],[239,0,244,0],[239,20,244,20],[245,0,250,0],[245,20,250,20],[251,0,256,0],[251,20,256,20],[221,0,226,0],[221,20,226,20],[227,0,232,0],[227,20,232,20],[233,0,238,0],[233,20,238,20],[203,0,208,0],[203,20,208,20],[209,0,214,0],[209,20,214,20],[215,0,220,0],[215,20,220,20],[185,0,190,0],[185,20,190,20],[191,0,196,0],[191,20,196,20],[197,0,202,0],[197,20,202,20],[167,0,172,0],[167,20,172,20],[173,0,178,0],[173,20,178,20],[179,0,184,0],[179,20,184,20],[149,0,154,0],[149,20,154,20],[155,0,160,0],[155,20,160,20],[161,0,166,0],[161,20,166,20],[131,0,136,0],[131,20,136,20],[137,0,142,0],[137,20,142,20],[143,0,148,0],[143,20,148,20],[113,0,118,0],[113,20,118,20],[119,0,124,0],[119,20,124,20],[125,0,130,0],[125,20,130,20],[95,0,100,0],[95,20,100,20],[101,0,106,0],[101,20,106,20],[107,0,112,0],[107,20,112,20],[77,0,82,0],[77,20,82,20],[83,0,88,0],[83,20,88,20],[89,0,94,0],[89,20,94,20],[59,0,64,0],[59,20,64,20],[65,0,70,0],[65,20,70,20],[71,0,76,0],[71,20,76,20],[41,0,46,0],[41,20,46,20],[47,0,52,0],[47,20,52,20],[53,0,58,0],[53,20,58,20],[29,0,34,0],[29,20,34,20],[35,0,40,0],[35,20,40,20],[5,0,10,0],[5,20,10,20],[11,0,16,0],[11,20,16,20],[17,0,22,0],[17,20,22,20],[0,0,0,12],[0,13,0,15],[0,16,0,18],[0,19,0,22],[0,23,0,29],[23,0,28,0],[23,20,28,20],[0,30,0,48],[0,49,0,63]]}
["PRODUCTINFORMATIE",null,null,null,null,null,null,null,null,null,null,null,null,"PRODUCT CATEGORIE",null,null,"MAAT INFORMATIE",null,null,"QTY's",null,null,null,"PRIJS INFORMATIE",null,null,null,null,null,null,"MATERIAAL & SUSTAINABILITY",null,null,null,null,null,null,null,null,null,null,null,null,null,null,null,null,null,null,"LOGISTIEKE INFORMATIE"]
[null,null,null,null,null,null,null,null,null,null,null,null,null,null,null,null,null,null,null,{"$f":"SUM(T6:T1048576)","v":0},{"$f":"SUM(U6:U1048576)","v":0},null,null,null,null,null,null,null,{"$f":"SUM(AC6:AC501)","v":0},{"$f":"SUM(AD6:AD501)","v":0},null,null,null,null,null,null,null,null,null,null,null,null,null,"Keuzemenu"]
["Image","Wehkamp article number","Wehkamp PO#","Delivery date from","Delivery date to","AX supplier number","Brand","Brandline","Stylenumber","Stylename","Colour number + name","Season",null,"Description (ds t-shirt)","MCC3","Articletype","Supplier size","Website size","Barcode size","QTY per size","Total QTY","MOQ","Multiples","Currency purchase price","Purchase price","RRP CVP","RRP OVP","Mark-up","Total WHL Value","Total retail value","Full material composition in %","Percentage 1","Material 1","Percentage 2","Material 2","Percentage 3","Material 3","Percentage 4","Material 4","Percentage 5","Material 5","Percentage 6","Material 6","Filter material","Customs code (HS/GN)","Weight of 1 piece excluding packaging (on size level) (grams)","Certificates: Recycled material","Certificates: Organic material","Certificates: Animal welfare","Wehkamp buyer","Wehkamp planner","SalesSegment","OMID","Hanging/laying","Storezone","LogisticItemGroup","ShippingCosts","WKShippingMethod","PreferredWarehouseIdentificationCode"]
["Afbeelding","Wehkamp artikelnummer","Wehkamp PO nummer","Leverdatum van","Leverdatum tot","AX leveranciersnummer","Merk","Merklijn","Stijlnummer","Stijlnaam","Kleurnummer + naam","Seizoen",null,"Omschrijving (bijv. ds t-shirt)","MCC3","Artikeltype","Leveranciersmaat","Presentatiemaat","Barcodemaat","Aantallen per maat","Totaal aantal","MOQ","Veelvoud","Valuta inkoopprijs","Inkoopprijs","Verkoopprijs CVP","Verkoopprijs OVP","Mark-up","Totaal inkoopwaarde","Totaal verkoopwaarde","Volledige materiaalsamenstelling","Percentage 1","Materiaal 1","Percentage 2","Materiaal 2","Percentage 3","Materiaal 3","Percentage 4","Materiaal 4","Percentage 5","Materiaal 5","Percentage 6","Materiaal 6","Filtermateriaal","Customs code","Gewicht van 1 stuk exclusief verpakking (op maatniveau) (gram)","Certificaten: Gerecycled materiaal","Certificaten: Biologisch materiaal","Certificaten: Dierenwelzijn","Wehkamp buyer","Wehkamp planner","SalesSegment","OMID","Hanggoed/liggoed","Opslaglocatie","LogisticItemGroup","ShippingCosts","WKShippingMethod","PreferredWarehouseIdentificationCode","Inkoopdoorlooptijd","Toeslagcode","Toeslagtype","Toeslagwaarde","Groepering artikeltypeomschrijving"]
["Afbeelding","Wehkamp artikelnummer","Wehkamp PO nummer","Leverdatum van","Leverdatum tot","AX leveranciersnummer","Merk","Merklijn","Leveranciers artikelnummer (max. 20 posities)","AX Inkooptekst","Inkoopkleur             (max. 50 posities)","DarwinMoverClass","EAN/UPC","AX Naam","Artikelgroepcode","Taxon","SizeSupplier","SizeDescription","SizeWehkamp","Aantallen per maat","Totaal aantal","QTYlowest","QTYmultiples","CurrencyCodePurchasePrice","Netto inkoopprijs","CVP","OVP","Mark-up","Total WHL Value","Total retail value","Materiaalsamenstelling in %","Percentage 1","Materiaal 1","Percentage 2","Materiaal 2","Percentage 3","Materiaal 3","Percentage 4","Materiaal 4","Percentage 5","Materiaal 5","Percentage 6","Materiaal 6","Filtermateriaal","Customs code","Gewicht excl. verpakking","Certificaten: Gerecycled materiaal","Certificaten: Biologisch materiaal","Certificaten: Dierenwelzijn","BuyerGroup","SupplyChainPlanner","SalesSegment","OMID","Hanggoed/liggoed","StoreZone (VAS)","LogisticItemGroup","ShippingCosts","WKShippingMethod","PreferredWarehouseIdentificationCode","PurchaseLeadTime","MarkupCode","MarkupCategory","MarkupValue","AticleType"]
[null,null,null,null,null,null,null,null,null,null,null,null,null,null,{"$f":"VLOOKUP(N6,Tabel10[[korte omschrijving]:[MCC3_CODE]],2,0)","v":{"$error":"#N/A"}},{"$f":"VLOOKUP(N6,Tabel10[],3,0)","v":{"$error":"#N/A"}},null,null,null,null,{"$f":"SUM(T6:T11)","v":0},null,null,null,null,null,null,{"$f":"AA6/Y6","v":{"$error":"#DIV/0!"}},{"$f":"T6*Y6","v":0},{"$f":"T6*AA6","v":0},null,{"$f":"IF(AE6 <> \"\",\n    IF(ISNUMBER(VALUE(LEFT(AE6, FIND(\"%\", AE6)-1))),\n        VALUE(LEFT(AE6, FIND(\"%\", AE6)-1)),\n        \"Invalid format\"),\n    \"\")","v":""},{"$f":"IF(AE6 <> \"\",\n    IF(ISNUMBER(VALUE(LEFT(AE6, FIND(\"%\", AE6)-1))) * ISNUMBER(FIND(\"%\", AE6 & \"wol\")) > 0,\n        TRIM(MID(AE6, FIND(\"%\", AE6)+1, FIND(\"/\", AE6 & \"/\")-FIND(\"%\", AE6)-1)),\n        \"Invalid format\"),\n    \"\")","v":""},{"$f":"IF(AE6 <> \"\",\n    IF(ISNUMBER(VALUE(MID(AE6, FIND(\"/\", AE6) + 1, FIND(\"%\", AE6, FIND(\"/\", AE6)) - FIND(\"/\", AE6) - 1))),\n        VALUE(MID(AE6, FIND(\"/\", AE6) + 1, FIND(\"%\", AE6, FIND(\"/\", AE6)) - FIND(\"/\", AE6) - 1)),\n        \"\"),\n    \"\")","v":""},{"$f":"IF(AE6 <> \"\",\n    IFERROR(TRIM(MID(AE6, FIND(\"%\", AE6, FIND(\"/\", AE6)+1)+2,\n        IFERROR(FIND(\"/\", AE6 & \"/\", FIND(\"/\", AE6)+1)-FIND(\"%\", AE6, FIND(\"/\", AE6)+1)-2, LEN(AE6)-FIND(\"%\", AE6, FIND(\"/\", AE6)+1)-1))),\n        \"\"),\n    \"\")","v":""},{"$f":"IF(AE6 <> \"\",\n    IF(ISNUMBER(VALUE(MID(AE6, FIND(\"/\", AE6, FIND(\"/\", AE6)+1) + 1, FIND(\"%\", AE6, FIND(\"/\", AE6, FIND(\"/\", AE6)+1)) - FIND(\"/\", AE6, FIND(\"/\", AE6)+1) - 1))),\n        VALUE(MID(AE6, FIND(\"/\", AE6, FIND(\"/\", AE6)+1) + 1, FIND(\"%\", AE6, FIND(\"/\", AE6, FIND(\"/\", AE6)+1)) - FIND(\"/\", AE6, FIND(\"/\", AE6)+1) - 1)),\n        \"\"),\n    \"\")","v":""},{"$f":"IF(AE6 <> \"\",\n    IFERROR(\n        TRIM(MID(AE6,\n            FIND(\"%\", AE6, FIND(\"%\", AE6, FIND(\"%\", AE6)+1)+1)+1,\n            FIND(\"/\", AE6 & \"/\", FIND(\"%\", AE6, FIND(\"%\", AE6, FIND(\"%\", AE6)+1)+1))-FIND(\"%\", AE6, FIND(\"%\", AE6, FIND(\"%\", AE6)+1)+1)-1)\n        ),\n        \"\"\n    ),\n    \"\"\n)","v":""},{"$f":"IF(AE6 <> \"\",\n    IF(ISNUMBER(VALUE(MID(AE6, FIND(\"/\", AE6, FIND(\"/\", AE6, FIND(\"/\", AE6)+1)+1) + 1, FIND(\"%\", AE6, FIND(\"/\", AE6, FIND(\"/\", AE6, FIND(\"/\", AE6)+1)+1)) - FIND(\"/\", AE6, FIND(\"/\", AE6, FIND(\"/\", AE6)+1)+1) - 1))),\n        VALUE(MID(AE6, FIND(\"/\", AE6, FIND(\"/\", AE6, FIND(\"/\", AE6)+1)+1) + 1, FIND(\"%\", AE6, FIND(\"/\", AE6, FIND(\"/\", AE6, FIND(\"/\", AE6)+1)+1)) - FIND(\"/\", AE6, FIND(\"/\", AE6, FIND(\"/\", AE6)+1)+1) - 1)),\n        \"\"),\n    \"\")","v":""},{"$f":"IF(AE6 <> \"\",\n    IFERROR(TRIM(MID(AE6, FIND(\"%\", AE6, FIND(\"/\", AE6, FIND(\"/\", AE6, FIND(\"/\", AE6)+1)+1)+1)+2,\n        IFERROR(FIND(\"/\", AE6, FIND(\"/\", AE6, FIND(\"/\", AE6, FIND(\"/\", AE6)+1)+1)+1)-FIND(\"%\", AE6, FIND(\"/\", AE6, FIND(\"/\", AE6, FIND(\"/\", AE6)+1)+1)+1)-2, LEN(AE6)-FIND(\"%\", AE6, FIND(\"/\", AE6, FIND(\"/\", AE6, FIND(\"/\", AE6)+1)+1)+1)-1))),\n        \"\"),\n    \"\")","v":""},{"$f":"IF(AE6 <> \"\",\n    IF(ISNUMBER(VALUE(MID(AE6, FIND(\"/\", AE6, FIND(\"/\", AE6, FIND(\"/\", AE6, FIND(\"/\", AE6)+1)+1)+1) + 1, FIND(\"%\", AE6, FIND(\"/\", AE6, FIND(\"/\", AE6, FIND(\"/\", AE6, FIND(\"/\", AE6)+1)+1)+1)) - FIND(\"/\", AE6, FIND(\"/\", AE6, FIND(\"/\", AE6, FIND(\"/\", AE6)+1)+1)+1) - 1))),\n        VALUE(MID(AE6, FIND(\"/\", AE6, FIND(\"/\", AE6, FIND(\"/\", AE6, FIND(\"/\", AE6)+1)+1)+1) + 1, FIND(\"%\", AE6, FIND(\"/\", AE6, FIND(\"/\", AE6, FIND(\"/\", AE6, FIND(\"/\", AE6)+1)+1)+1)) - FIND(\"/\", AE6, FIND(\"/\", AE6, FIND(\"/\", AE6, FIND(\"/\", AE6)+1)+1)+1) - 1)),\n        \"\"),\n    \"\")","v":""},{"$f":"IF(AE6 = \"\", \"\",\n    IFERROR(TRIM(\n        MID(\n            AE6,\n            FIND(\"%\", AE6, FIND(\"/\", AE6, FIND(\"/\", AE6, FIND(\"/\", AE6, FIND(\"/\", AE6)+1)+1)+1)+1) + 1,\n            FIND(\"/\", AE6 & \"/\", FIND(\"%\", AE6, FIND(\"/\", AE6, FIND(\"/\", AE6, FIND(\"/\", AE6, FIND(\"/\", AE6)+1)+1)+1)+1)) -\n            FIND(\"%\", AE6, FIND(\"/\", AE6, FIND(\"/\", AE6, FIND(\"/\", AE6, FIND(\"/\", AE6)+1)+1)+1)+1) - 1\n        )\n    ),\n    \"\")\n)","v":""},null,null,null,null,null,null,null,null,null,null,null,null,null,null,null,null,null,"ZWO"]
[null,null,null,null,null,null,null,null,null,null,null,null,null,null,{"$f":"VLOOKUP(N7,Tabel10[[korte omschrijving]:[MCC3_CODE]],2,0)","v":{"$error":"#N/A"}},{"$f":"VLOOKUP(N7,Tabel10[],3,0)","v":{"$error":"#N/A"}},null,null,null,null,null,null,null,null,null,null,null,{"$f":"AA7/Y7","v":{"$error":"#DIV/0!"}},{"$f":"T7*Y7","v":0},{"$f":"T7*AA7","v":0},null,{"$f":"IF(AE7 <> \"\",\n    IF(ISNUMBER(VALUE(LEFT(AE7, FIND(\"%\", AE7)-1))),\n        VALUE(LEFT(AE7, FIND(\"%\", AE7)-1)),\n        \"Invalid format\"),\n    \"\")","v":""},{"$f":"IF(AE7 <> \"\",\n    IF(ISNUMBER(VALUE(LEFT(AE7, FIND(\"%\", AE7)-1))) * ISNUMBER(FIND(\"%\", AE7 & \"wol\")) > 0,\n        TRIM(MID(AE7, FIND(\"%\", AE7)+1, FIND(\"/\", AE7 & \"/\")-FIND(\"%\", AE7)-1)),\n        \"Invalid format\"),\n    \"\")","v":""},{"$f":"IF(AE7 <> \"\",\n    IF(ISNUMBER(VALUE(MID(AE7, FIND(\"/\", AE7) + 1, FIND(\"%\", AE7, FIND(\"/\", AE7)) - FIND(\"/\", AE7) - 1))),\n        VALUE(MID(AE7, FIND(\"/\", AE7) + 1, FIND(\"%\", AE7, FIND(\"/\", AE7)) - FIND(\"/\", AE7) - 1)),\n        \"\"),\n    \"\")","v":""},{"$f":"IF(AE7 <> \"\",\n    IFERROR(TRIM(MID(AE7, FIND(\"%\", AE7, FIND(\"/\", AE7)+1)+2,\n        IFERROR(FIND(\"/\", AE7 & \"/\", FIND(\"/\", AE7)+1)-FIND(\"%\", AE7, FIND(\"/\", AE7)+1)-2, LEN(AE7)-FIND(\"%\", AE7, FIND(\"/\", AE7)+1)-1))),\n        \"\"),\n    \"\")","v":""},{"$f":"IF(AE7 <> \"\",\n    IF(ISNUMBER(VALUE(MID(AE7, FIND(\"/\", AE7, FIND(\"/\", AE7)+1) + 1, FIND(\"%\", AE7, FIND(\"/\", AE7, FIND(\"/\", AE7)+1)) - FIND(\"/\", AE7, FIND(\"/\", AE7)+1) - 1))),\n        VALUE(MID(AE7, FIND(\"/\", AE7, FIND(\"/\", AE7)+1) + 1, FIND(\"%\", AE7, FIND(\"/\", AE7, FIND(\"/\", AE7)+1)) - FIND(\"/\", AE7, FIND(\"/\", AE7)+1) - 1)),\n        \"\"),\n    \"\")","v":""},{"$f":"IF(AE7 <> \"\",\n    IFERROR(\n        TRIM(MID(AE7,\n            FIND(\"%\", AE7, FIND(\"%\", AE7, FIND(\"%\", AE7)+1)+1)+1,\n            FIND(\"/\", AE7 & \"/\", FIND(\"%\", AE7, FIND(\"%\", AE7, FIND(\"%\", AE7)+1)+1))-FIND(\"%\", AE7, FIND(\"%\", AE7, FIND(\"%\", AE7)+1)+1)-1)\n        ),\n        \"\"\n    ),\n    \"\"\n)","v":""},{"$f":"IF(AE7 <> \"\",\n    IF(ISNUMBER(VALUE(MID(AE7, FIND(\"/\", AE7, FIND(\"/\", AE7, FIND(\"/\", AE7)+1)+1) + 1, FIND(\"%\", AE7, FIND(\"/\", AE7, FIND(\"/\", AE7, FIND(\"/\", AE7)+1)+1)) - FIND(\"/\", AE7, FIND(\"/\", AE7, FIND(\"/\", AE7)+1)+1) - 1))),\n        VALUE(MID(AE7, FIND(\"/\", AE7, FIND(\"/\", AE7, FIND(\"/\", AE7)+1)+1) + 1, FIND(\"%\", AE7, FIND(\"/\", AE7, FIND(\"/\", AE7, FIND(\"/\", AE7)+1)+1)) - FIND(\"/\", AE7, FIND(\"/\", AE7, FIND(\"/\", AE7)+1)+1) - 1)),\n        \"\"),\n    \"\")","v":""},{"$f":"IF(AE7 <> \"\",\n    IFERROR(TRIM(MID(AE7, FIND(\"%\", AE7, FIND(\"/\", AE7, FIND(\"/\", AE7, FIND(\"/\", AE7)+1)+1)+1)+2,\n        IFERROR(FIND(\"/\", AE7, FIND(\"/\", AE7, FIND(\"/\", AE7, FIND(\"/\", AE7)+1)+1)+1)-FIND(\"%\", AE7, FIND(\"/\", AE7, FIND(\"/\", AE7, FIND(\"/\", AE7)+1)+1)+1)-2, LEN(AE7)-FIND(\"%\", AE7, FIND(\"/\", AE7, FIND(\"/\", AE7, FIND(\"/\", AE7)+1)+1)+1)-1))),\n        \"\"),\n    \"\")","v":""},{"$f":"IF(AE7 <> \"\",\n    IF(ISNUMBER(VALUE(MID(AE7, FIND(\"/\", AE7, FIND(\"/\", AE7, FIND(\"/\", AE7, FIND(\"/\", AE7)+1)+1)+1) + 1, FIND(\"%\", AE7, FIND(\"/\", AE7, FIND(\"/\", AE7, FIND(\"/\", AE7, FIND(\"/\", AE7)+1)+1)+1)) - FIND(\"/\", AE7, FIND(\"/\", AE7, FIND(\"/\", AE7, FIND(\"/\", AE7)+1)+1)+1) - 1))),\n        VALUE(MID(AE7, FIND(\"/\", AE7, FIND(\"/\", AE7, FIND(\"/\", AE7, FIND(\"/\", AE7)+1)+1)+1) + 1, FIND(\"%\", AE7, FIND(\"/\", AE7, FIND(\"/\", AE7, FIND(\"/\", AE7, FIND(\"/\", AE7)+1)+1)+1)) - FIND(\"/\", AE7, FIND(\"/\", AE7, FIND(\"/\", AE7, FIND(\"/\", AE7)+1)+1)+1) - 1)),\n        \"\"),\n    \"\")","v":""},{"$f":"IF(AE7 = \"\", \"\",\n    IFERROR(TRIM(\n        MID(\n            AE7,\n            FIND(\"%\", AE7, FIND(\"/\", AE7, FIND(\"/\", AE7, FIND(\"/\", AE7, FIND(\"/\", AE7)+1)+1)+1)+1) + 1,\n            FIND(\"/\", AE7 & \"/\", FIND(\"%\", AE7, FIND(\"/\", AE7, FIND(\"/\", AE7, FIND(\"/\", AE7, FIND(\"/\", AE7)+1)+1)+1)+1)) -\n            FIND(\"%\", AE7, FIND(\"/\", AE7, FIND(\"/\", AE7, FIND(\"/\", AE7, FIND(\"/\", AE7)+1)+1)+1)+1) - 1\n        )\n    ),\n    \"\")\n)","v":""},null,null,null,null,null,null,null,null,null,null,null,null,null,null,null,null,null,"ZWO"]
[null,null,null,null,null,null,null,null,null,null,null,null,null,null,{"$f":"VLOOKUP(N8,Tabel10[[korte omschrijving]:[MCC3_CODE]],2,0)","v":{"$error":"#N/A"}},{"$f":"VLOOKUP(N8,Tabel10[],3,0)","v":{"$error":"#N/A"}},null,null,null,null,null,null,null,null,null,null,null,{"$error":"#DIV/0!"},{"$f":"T8*Y8","v":0},{"$f":"T8*AA8","v":0},null,"","","","","","","","","","",null,null,null,null,null,null,null,null,null,null,null,null,null,null,null,null,null,"ZWO"]
[null,null,null,null,null,null,null,null,null,null,null,null,null,null,{"$f":"VLOOKUP(N9,Tabel10[[korte omschrijving]:[MCC3_CODE]],2,0)","v":{"$error":"#N/A"}},{"$f":"VLOOKUP(N9,Tabel10[],3,0)","v":{"$error":"#N/A"}},null,null,null,null,null,null,null,null,null,null,null,{"$error":"#DIV/0!"},0,0,null,"","","","","","","","","","",null,null,null,null,null,null,null,null,null,null,null,null,null,null,null,null,null,"ZWO"]
[null,null,null,null,null,null,null,null,null,null,null,null,null,null,{"$f":"VLOOKUP(N10,Tabel10[[korte omschrijving]:[MCC3_CODE]],2,0)","v":{"$error":"#N/A"}},{"$f":"VLOOKUP(N10,Tabel10[],3,0)","v":{"$error":"#N/A"}},null,null,null,null,null,null,null,null,null,null,null,{"$error":"#DIV/0!"},0,0,null,"","","","","","","","","","",null,null,null,null,null,null,null,null,null,null,null,null,null,null,null,null,null,"ZWO"]
[null,null,null,null,null,null,null,null,null,null,null,null,null,null,{"$f":"VLOOKUP(N11,Tabel10[[korte omschrijving]:[MCC3_CODE]],2,0)","v":{"$error":"#N/A"}},{"$f":"VLOOKUP(N11,Tabel10[],3,0)","v":{"$error":"#N/A"}},null,null,null,null,null,null,null,null,null,null,null,{"$error":"#DIV/0!"},0,0,null,"","","","","","","","","","",null,null,null,null,null,null,null,null,null,null,null,null,null,null,null,null,null,"ZWO"]
[null,null,null,null,null,null,null,null,null,null,null,null,null,null,{"$f":"VLOOKUP(N12,Tabel10[[korte omschrijving]:[MCC3_CODE]],2,0)","v":{"$error":"#N/A"}},{"$f":"VLOOKUP(N12,Tabel10[],3,0)","v":{"$error":"#N/A"}},null,null,null,null,{"$f":"SUM(T12:T17)","v":0},null,null,null,null,null,null,{"$error":"#DIV/0!"},0,0,null,"","","","","","","","","","",null,null,null,null,null,null,null,null,null,null,null,null,null,null,null,null,null,"ZWO"]
[null,null,null,null,null,null,null,null,null,null,null,null,null,null,{"$f":"VLOOKUP(N13,Tabel10[[korte omschrijving]:[MCC3_CODE]],2,0)","v":{"$error":"#N/A"}},{"$f":"VLOOKUP(N13,Tabel10[],3,0)","v":{"$error":"#N/A"}},null,null,null,null,null,null,null,null,null,null,null,{"$error":"#DIV/0!"},0,0,null,"","","","","","","","","","",null,null,null,null,null,null,null,null,null,null,null,null,null,null,null,null,null,"ZWO"]
[null,null,null,null,null,null,null,null,null,null,null,null,null,null,{"$f":"VLOOKUP(N14,Tabel10[[korte omschrijving]:[MCC3_CODE]],2,0)","v":{"$error":"#N/A"}},{"$f":"VLOOKUP(N14,Tabel10[],3,0)","v":{"$error":"#N/A"}},null,null,null,null,null,null,null,null,null,null,null,{"$error":"#DIV/0!"},0,0,null,"","","","","","","","","","",null,null,null,null,null,null,null,null,null,null,null,null,null,null,null,null,null,"ZWO"]
[null,null,null,null,null,null,null,null,null,null,null,null,null,null,{"$f":"VLOOKUP(N15,Tabel10[[korte omschrijving]:[MCC3_CODE]],2,0)","v":{"$error":"#N/A"}},{"$f":"VLOOKUP(N15,Tabel10[],3,0)","v":{"$error":"#N/A"}},null,null,null,null,null,null,null,null,null,null,null,{"$error":"#DIV/0!"},0,0,null,"","","","","","","","","","",null,null,null,null,null,null,null,null,null,null,null,null,null,null,null,null,null,"ZWO"]
[null,null,null,null,null,null,null,null,null,null,null,null,null,null,{"$f":"VLOOKUP(N16,Tabel10[[korte omschrijving]:[MCC3_CODE]],2,0)","v":{"$error":"#N/A"}},{"$f":"VLOOKUP(N16,Tabel10[],3,0)","v":{"$error":"#N/A"}},null,null,null,null,null,null,null,null,null,null,null,{"$error":"#DIV/0!"},0,0,null,"","","","","","","","","","",null,null,null,null,null,null,null,null,null,null,null,null,null,null,null,null,null,"ZWO"]
[null,null,null,null,null,null,null,null,null,null,null,null,null,null,{"$f":"VLOOKUP(N17,Tabel10[[korte omschrijving]:[MCC3_CODE]],2,0)","v":{"$error":"#N/A"}},{"$f":"VLOOKUP(N17,Tabel10[],3,0)","v":{"$error":"#N/A"}},null,null,null,null,null,null,null,null,null,null,null,{"$error":"#DIV/0!"},0,0,null,"","","","","","","","","","",null,null,null,null,null,null,null,null,null,null,null,null,null,null,null,null,null,"ZWO"]
[null,null,null,null,null,null,null,null,null,null,null,null,null,null,{"$f":"VLOOKUP(N18,Tabel10[[korte omschrijving]:[MCC3_CODE]],2,0)","v":{"$error":"#N/A"}},{"$f":"VLOOKUP(N18,Tabel10[],3,0)","v":{"$error":"#N/A"}},null,null,null,null,{"$f":"SUM(T18:T23)","v":0},null,null,null,null,null,null,{"$error":"#DIV/0!"},0,0,null,"","","","","","","","","","",null,null,null,null,null,null,null,null,null,null,null,null,null,null,null,null,null,"ZWO"]
[null,null,null,null,null,null,null,null,null,null,null,null,null,null,{"$f":"VLOOKUP(N19,Tabel10[[korte omschrijving]:[MCC3_CODE]],2,0)","v":{"$error":"#N/A"}},{"$f":"VLOOKUP(N19,Tabel10[],3,0)","v":{"$error":"#N/A"}},null,null,null,null,null,null,null,null,null,null,null,{"$error":"#DIV/0!"},0,0,null,"","","","","","","","","","",null,null,null,null,null,null,null,null,null,null,null,null,null,null,null,null,null,"ZWO"]
[null,null,null,null,null,null,null,null,null,null,null,null,null,null,{"$f":"VLOOKUP(N20,Tabel10[[korte omschrijving]:[MCC3_CODE]],2,0)","v":{"$error":"#N/A"}},{"$f":"VLOOKUP(N20,Tabel10[],3,0)","v":{"$error":"#N/A"}},null,null,null,null,null,null,null,null,null,null,null,{"$error":"#DIV/0!"},0,0,null,"","","","","","","","","","",null,null,null,null,null,null,null,null,null,null,null,null,null,null,null,null,null,"ZWO"]
[null,null,null,null,null,null,null,null,null,null,null,null,null,null,{"$f":"VLOOKUP(N21,Tabel10[[korte omschrijving]:[MCC3_CODE]],2,0)","v":{"$error":"#N/A"}},{"$f":"VLOOKUP(N21,Tabel10[],3,0)","v":{"$error":"#N/A"}},null,null,null,null,null,null,null,null,null,null,null,{"$error":"#DIV/0!"},0,0,null,"","","","","","","","","","",null,null,null,null,null,null,null,null,null,null,null,null,null,null,null,null,null,"ZWO"]
[null,null,null,null,null,null,null,null,null,null,null,null,null,null,{"$f":"VLOOKUP(N22,Tabel10[[korte omschrijving]:[MCC3_CODE]],2,0)","v":{"$error":"#N/A"}},{"$f":"VLOOKUP(N22,Tabel10[],3,0)","v":{"$error":"#N/A"}},null,null,null,null,null,null,null,null,null,null,null,{"$error":"#DIV/0!"},0,0,null,"","","","","","","","","","",null,null,null,null,null,null,null,null,null,null,null,null,null,null,null,null,null,"ZWO"]
[null,null,null,null,null,null,null,null,null,null,null,null,null,null,{"$f":"VLOOKUP(N23,Tabel10[[korte omschrijving]:[MCC3_CODE]],2,0)","v":{"$error":"#N/A"}},{"$f":"VLOOKUP(N23,Tabel10[],3,0)","v":{"$error":"#N/A"}},null,null,null,null,null,null,null,null,null,null,null,{"$error":"#DIV/0!"},0,0,null,"","","","","","","","","","",null,null,null,null,null,null,null,null,null,null,null,null,null,null,null,null,null,"ZWO"]
[null,null,null,null,null,null,null,null,null,null,null,null,null,null,{"$f":"VLOOKUP(N24,Tabel10[[korte omschrijving]:[MCC3_CODE]],2,0)","v":{"$error":"#N/A"}},{"$f":"VLOOKUP(N24,Tabel10[],3,0)","v":{"$error":"#N/A"}},null,null,null,null,{"$f":"SUM(T24:T29)","v":0},null,null,null,null,null,null,{"$error":"#DIV/0!"},0,0,null,"","","","","","","","","","",null,null,null,null,null,null,null,null,null,null,null,null,null,null,null,null,null,"ZWO"]
[null,null,null,null,null,null,null,null,null,null,null,null,null,null,{"$f":"VLOOKUP(N25,Tabel10[[korte omschrijving]:[MCC3_CODE]],2,0)","v":{"$error":"#N/A"}},{"$f":"VLOOKUP(N25,Tabel10[],3,0)","v":{"$error":"#N/A"}},null,null,null,null,null,null,null,null,null,null,null,{"$error":"#DIV/0!"},0,0,null,"","","","","","","","","","",null,null,null,null,null,null,null,null,null,null,null,null,null,null,null,null,null,"ZWO"]
[null,null,null,null,null,null,null,null,null,null,null,null,null,null,{"$f":"VLOOKUP(N26,Tabel10[[korte omschrijving]:[MCC3_CODE]],2,0)","v":{"$error":"#N/A"}},{"$f":"VLOOKUP(N26,Tabel10[],3,0)","v":{"$error":"#N/A"}},null,null,null,null,null,null,null,null,null,null,null,{"$error":"#DIV/0!"},0,0,null,"","","","","","","","","","",null,null,null,null,null,null,null,null,null,null,null,null,null,null,null,null,null,"ZWO"]
[null,null,null,null,null,null,null,null,null,null,null,null,null,null,{"$f":"VLOOKUP(N27,Tabel10[[korte omschrijving]:[MCC3_CODE]],2,0)","v":{"$error":"#N/A"}},{"$f":"VLOOKUP(N27,Tabel10[],3,0)","v":{"$error":"#N/A"}},null,null,null,null,null,null,null,null,null,null,null,{"$error":"#DIV/0!"},0,0,null,"","","","","","","","","","",null,null,null,null,null,null,null,null,null,null,null,null,null,null,null,null,null,"ZWO"]
[null,null,null,null,null,null,null,null,null,null,null,null,null,null,{"$f":"VLOOKUP(N28,Tabel10[[korte omschrijving]:[MCC3_CODE]],2,0)","v":{"$error":"#N/A"}},{"$f":"VLOOKUP(N28,Tabel10[],3,0)","v":{"$error":"#N/A"}},null,null,null,null,null,null,null,null,null,null,null,{"$error":"#DIV/0!"},0,0,null,"","","","","","","","","","",null,null,null,null,null,null,null,null,null,null,null,null,null,null,null,null,null,"ZWO"]
[null,null,null,null,null,null,null,null,null,null,null,null,null,null,{"$f":"VLOOKUP(N29,Tabel10[[korte omschrijving]:[MCC3_CODE]],2,0)","v":{"$error":"#N/A"}},{"$f":"VLOOKUP(N29,Tabel10[],3,0)","v":{"$error":"#N/A"}},null,null,null,null,null,null,null,null,null,null,null,{"$error":"#DIV/0!"},0,0,null,"","","","","","","","","","",null,null,null,null,null,null,null,null,null,null,null,null,null,null,null,null,null,"ZWO"]
[null,null,null,null,null,null,null,null,null,null,null,null,null,null,{"$f":"VLOOKUP(N30,Tabel10[[korte omschrijving]:[MCC3_CODE]],2,0)","v":{"$error":"#N/A"}},{"$f":"VLOOKUP(N30,Tabel10[],3,0)","v":{"$error":"#N/A"}},null,null,null,null,{"$f":"SUM(T30:T35)","v":0},null,null,null,null,null,null,{"$error":"#DIV/0!"},0,0,null,"","","","","","","","","","",null,null,null,null,null,null,null,null,null,null,null,null,null,null,null,null,null,"ZWO"]
[null,null,null,null,null,null,null,null,null,null,null,null,null,null,{"$f":"VLOOKUP(N31,Tabel10[[korte omschrijving]:[MCC3_CODE]],2,0)","v":{"$error":"#N/A"}},{"$f":"VLOOKUP(N31,Tabel10[],3,0)","v":{"$error":"#N/A"}},null,null,null,null,null,null,null,null,null,null,null,{"$error":"#DIV/0!"},0,0,null,"","","","","","","","","","",null,null,null,null,null,null,null,null,null,null,null,null,null,null,null,null,null,"ZWO"]
[null,null,null,null,null,null,null,null,null,null,null,null,null,null,{"$f":"VLOOKUP(N32,Tabel10[[korte omschrijving]:[MCC3_CODE]],2,0)","v":{"$error":"#N/A"}},{"$f":"VLOOKUP(N32,Tabel10[],3,0)","v":{"$error":"#N/A"}},null,null,null,null,null,null,null,null,null,null,null,{"$error":"#DIV/0!"},0,0,null,"","","","","","","","","","",null,null,null,null,null,null,null,null,null,null,null,null,null,null,null,null,null,"ZWO"]
[null,null,null,null,null,null,null,null,null,null,null,null,null,null,{"$f":"VLOOKUP(N33,Tabel10[[korte omschrijving]:[MCC3_CODE]],2,0)","v":{"$error":"#N/A"}},{"$f":"VLOOKUP(N33,Tabel10[],3,0)","v":{"$error":"#N/A"}},null,null,null,null,null,null,null,null,null,null,null,{"$error":"#DIV/0!"},0,0,null,"","","","","","","","","","",null,null,null,null,null,null,null,null,null,null,null,null,null,null,null,null,null,"ZWO"]
[null,null,null,null,null,null,null,null,null,null,null,null,null,null,{"$f":"VLOOKUP(N34,Tabel10[[korte omschrijving]:[MCC3_CODE]],2,0)","v":{"$error":"#N/A"}},{"$f":"VLOOKUP(N34,Tabel10[],3,0)","v":{"$error":"#N/A"}},null,null,null,null,null,null,null,null,null,null,null,{"$error":"#DIV/0!"},0,0,null,"","","","","","","","","","",null,null,null,null,null,null,null,null,null,null,null,null,null,null,null,null,null,"ZWO"]
[null,null,null,null,null,null,null,null,null,null,null,null,null,null,{"$f":"VLOOKUP(N35,Tabel10[[korte omschrijving]:[MCC3_CODE]],2,0)","v":{"$error":"#N/A"}},{"$f":"VLOOKUP(N35,Tabel10[],3,0)","v":{"$error":"#N/A"}},null,null,null,null,null,null,null,null,null,null,null,{"$error":"#DIV/0!"},0,0,null,"","","","","","","","","","",null,null,null,null,null,null,null,null,null,null,null,null,null,null,null,null,null,"ZWO"]
[null,null,null,null,null,null,null,null,null,null,null,null,null,null,{"$f":"VLOOKUP(N36,Tabel10[[korte omschrijving]:[MCC3_CODE]],2,0)","v":{"$error":"#N/A"}},{"$f":"VLOOKUP(N36,Tabel10[],3,0)","v":{"$error":"#N/A"}},null,null,null,null,{"$f":"SUM(T36:T41)","v":0},null,null,null,null,null,null,{"$error":"#DIV/0!"},0,0,null,"","","","","","","","","","",null,null,null,null,null,null,null,null,null,null,null,null,null,null,null,null,null,"ZWO"]
[null,null,null,null,null,null,null,null,null,null,null,null,null,null,{"$f":"VLOOKUP(N37,Tabel10[[korte omschrijving]:[MCC3_CODE]],2,0)","v":{"$error":"#N/A"}},{"$f":"VLOOKUP(N37,Tabel10[],3,0)","v":{"$error":"#N/A"}},null,null,null,null,null,null,null,null,null,null,null,{"$error":"#DIV/0!"},0,0,null,"","","","","","","","","","",null,null,null,null,null,null,null,null,null,null,null,null,null,null,null,null,null,"ZWO"]
[null,null,null,null,null,null,null,null,null,null,null,null,null,null,{"$f":"VLOOKUP(N38,Tabel10[[korte omschrijving]:[MCC3_CODE]],2,0)","v":{"$error":"#N/A"}},{"$f":"VLOOKUP(N38,Tabel10[],3,0)","v":{"$error":"#N/A"}},null,null,null,null,null,null,null,null,null,null,null,{"$error":"#DIV/0!"},0,0,null,"","","","","","","","","","",null,null,null,null,null,null,null,null,null,null,null,null,null,null,null,null,null,"ZWO"]
[null,null,null,null,null,null,null,null,null,null,null,null,null,null,{"$f":"VLOOKUP(N39,Tabel10[[korte omschrijving]:[MCC3_CODE]],2,0)","v":{"$error":"#N/A"}},{"$f":"VLOOKUP(N39,Tabel10[],3,0)","v":{"$error":"#N/A"}},null,null,null,null,null,null,null,null,null,null,null,{"$error":"#DIV/0!"},0,0,null,"","","","","","","","","","",null,null,null,null,null,null,null,null,null,null,null,null,null,null,null,null,null,"ZWO"]
[null,null,null,null,null,null,null,null,null,null,null,null,null,null,{"$f":"VLOOKUP(N40,Tabel10[[korte omschrijving]:[MCC3_CODE]],2,0)","v":{"$error":"#N/A"}},{"$f":"VLOOKUP(N40,Tabel10[],3,0)","v":{"$error":"#N/A"}},null,null,null,null,null,null,null,null,null,null,null,{"$error":"#DIV/0!"},0,0,null,"","","","","","","","","","",null,null,null,null,null,null,null,null,null,null,null,null,null,null,null,null,null,"ZWO"]
[null,null,null,null,null,null,null,null,null,null,null,null,null,null,{"$f":"VLOOKUP(N41,Tabel10[[korte omschrijving]:[MCC3_CODE]],2,0)","v":{"$error":"#N/A"}},{"$f":"VLOOKUP(N41,Tabel10[],3,0)","v":{"$error":"#N/A"}},null,null,null,null,null,null,null,null,null,null,null,{"$error":"#DIV/0!"},0,0,null,"","","","","","","","","","",null,null,null,null,null,null,null,null,null,null,null,null,null,null,null,null,null,"ZWO"]
[null,null,null,null,null,null,null,null,null,null,null,null,null,null,{"$f":"VLOOKUP(N42,Tabel10[[korte omschrijving]:[MCC3_CODE]],2,0)","v":{"$error":"#N/A"}},{"$f":"VLOOKUP(N42,Tabel10[],3,0)","v":{"$error":"#N/A"}},null,null,null,null,{"$f":"SUM(T42:T47)","v":0},null,null,null,null,null,null,{"$error":"#DIV/0!"},0,0,null,"","","","","","","","","","",null,null,null,null,null,null,null,null,null,null,null,null,null,null,null,null,null,"ZWO"]
[null,null,null,null,null,null,null,null,null,null,null,null,null,null,{"$f":"VLOOKUP(N43,Tabel10[[korte omschrijving]:[MCC3_CODE]],2,0)","v":{"$error":"#N/A"}},{"$f":"VLOOKUP(N43,Tabel10[],3,0)","v":{"$error":"#N/A"}},null,null,null,null,null,null,null,null,null,null,null,{"$error":"#DIV/0!"},0,0,null,"","","","","","","","","","",null,null,null,null,null,null,null,null,null,null,null,null,null,null,null,null,null,"ZWO"]
[null,null,null,null,null,null,null,null,null,null,null,null,null,null,{"$f":"VLOOKUP(N44,Tabel10[[korte omschrijving]:[MCC3_CODE]],2,0)","v":{"$error":"#N/A"}},{"$f":"VLOOKUP(N44,Tabel10[],3,0)","v":{"$error":"#N/A"}},null,null,null,null,null,null,null,null,null,null,null,{"$error":"#DIV/0!"},0,0,null,"","","","","","","","","","",null,null,null,null,null,null,null,null,null,null,null,null,null,null,null,null,null,"ZWO"]
[null,null,null,null,null,null,null,null,null,null,null,null,null,null,{"$f":"VLOOKUP(N45,Tabel10[[korte omschrijving]:[MCC3_CODE]],2,0)","v":{"$error":"#N/A"}},{"$f":"VLOOKUP(N45,Tabel10[],3,0)","v":{"$error":"#N/A"}},null,null,null,null,null,null,null,null,null,null,null,{"$error":"#DIV/0!"},0,0,null,"","","","","","","","","","",null,null,null,null,null,null,null,null,null,null,null,null,null,null,null,null,null,"ZWO"]
[null,null,null,null,null,null,null,null,null,null,null,null,null,null,{"$f":"VLOOKUP(N46,Tabel10[[korte omschrijving]:[MCC3_CODE]],2,0)","v":{"$error":"#N/A"}},{"$f":"VLOOKUP(N46,Tabel10[],3,0)","v":{"$error":"#N/A"}},null,null,null,null,null,null,null,null,null,null,null,{"$error":"#DIV/0!"},0,0,null,"","","","","","","","","","",null,null,null,null,null,null,null,null,null,null,null,null,null,null,null,null,null,"ZWO"]
[null,null,null,null,null,null,null,null,null,null,null,null,null,null,{"$f":"VLOOKUP(N47,Tabel10[[korte omschrijving]:[MCC3_CODE]],2,0)","v":{"$error":"#N/A"}},{"$f":"VLOOKUP(N47,Tabel10[],3,0)","v":{"$error":"#N/A"}},null,null,null,null,null,null,null,null,null,null,null,{"$error":"#DIV/0!"},0,0,null,"","","","","","","","","","",null,null,null,null,null,null,null,null,null,null,null,null,null,null,null,null,null,"ZWO"]
[null,null,null,null,null,null,null,null,null,null,null,null,null,null,{"$f":"VLOOKUP(N48,Tabel10[[korte omschrijving]:[MCC3_CODE]],2,0)","v":{"$error":"#N/A"}},{"$f":"VLOOKUP(N48,Tabel10[],3,0)","v":{"$error":"#N/A"}},null,null,null,null,{"$f":"SUM(T48:T53)","v":0},null,null,null,null,null,null,{"$error":"#DIV/0!"},0,0,null,"","","","","","","","","","",null,null,null,null,null,null,null,null,null,null,null,null,null,null,null,null,null,"ZWO"]
[null,null,null,null,null,null,null,null,null,null,null,null,null,null,{"$f":"VLOOKUP(N49,Tabel10[[korte omschrijving]:[MCC3_CODE]],2,0)","v":{"$error":"#N/A"}},{"$f":"VLOOKUP(N49,Tabel10[],3,0)","v":{"$error":"#N/A"}},null,null,null,null,null,null,null,null,null,null,null,{"$error":"#DIV/0!"},0,0,null,"","","","","","","","","","",null,null,null,null,null,null,null,null,null,null,null,null,null,null,null,null,null,"ZWO"]
[null,null,null,null,null,null,null,null,null,null,null,null,null,null,{"$f":"VLOOKUP(N50,Tabel10[[korte omschrijving]:[MCC3_CODE]],2,0)","v":{"$error":"#N/A"}},{"$f":"VLOOKUP(N50,Tabel10[],3,0)","v":{"$error":"#N/A"}},null,null,null,null,null,null,null,null,null,null,null,{"$error":"#DIV/0!"},0,0,null,"","","","","","","","","","",null,null,null,null,null,null,null,null,null,null,null,null,null,null,null,null,null,"ZWO"]
[null,null,null,null,null,null,null,null,null,null,null,null,null,null,{"$f":"VLOOKUP(N51,Tabel10[[korte omschrijving]:[MCC3_CODE]],2,0)","v":{"$error":"#N/A"}},{"$f":"VLOOKUP(N51,Tabel10[],3,0)","v":{"$error":"#N/A"}},null,null,null,null,null,null,null,null,null,null,null,{"$error":"#DIV/0!"},0,0,null,"","","","","","","","","","",null,null,null,null,null,null,null,null,null,null,null,null,null,null,null,null,null,"ZWO"]
[null,null,null,null,null,null,null,null,null,null,null,null,null,null,{"$f":"VLOOKUP(N52,Tabel10[[korte omschrijving]:[MCC3_CODE]],2,0)","v":{"$error":"#N/A"}},{"$f":"VLOOKUP(N52,Tabel10[],3,0)","v":{"$error":"#N/A"}},null,null,null,null,null,null,null,null,null,null,null,{"$error":"#DIV/0!"},0,0,null,"","","","","","","","","","",null,null,null,null,null,null,null,null,null,null,null,null,null,null,null,null,null,"ZWO"]
[null,null,null,null,null,null,null,null,null,null,null,null,null,null,{"$f":"VLOOKUP(N53,Tabel10[[korte omschrijving]:[MCC3_CODE]],2,0)","v":{"$error":"#N/A"}},{"$f":"VLOOKUP(N53,Tabel10[],3,0)","v":{"$error":"#N/A"}},null,null,null,null,null,null,null,null,null,null,null,{"$error":"#DIV/0!"},0,0,null,"","","","","","","","","","",null,null,null,null,null,null,null,null,null,null,null,null,null,null,null,null,null,"ZWO"]
[null,null,null,null,null,null,null,null,null,null,null,null,null,null,{"$f":"VLOOKUP(N54,Tabel10[[korte omschrijving]:[MCC3_CODE]],2,0)","v":{"$error":"#N/A"}},{"$f":"VLOOKUP(N54,Tabel10[],3,0)","v":{"$error":"#N/A"}},null,null,null,null,{"$f":"SUM(T54:T59)","v":0},null,null,null,null,null,null,{"$error":"#DIV/0!"},0,0,null,"","","","","","","","","","",null,null,null,null,null,null,null,null,null,null,null,null,null,null,null,null,null,"ZWO"]
[null,null,null,null,null,null,null,null,null,null,null,null,null,null,{"$f":"VLOOKUP(N55,Tabel10[[korte omschrijving]:[MCC3_CODE]],2,0)","v":{"$error":"#N/A"}},{"$f":"VLOOKUP(N55,Tabel10[],3,0)","v":{"$error":"#N/A"}},null,null,null,null,null,null,null,null,null,null,null,{"$error":"#DIV/0!"},0,0,null,"","","","","","","","","","",null,null,null,null,null,null,null,null,null,null,null,null,null,null,null,null,null,"ZWO"]
[null,null,null,null,null,null,null,null,null,null,null,null,null,null,{"$f":"VLOOKUP(N56,Tabel10[[korte omschrijving]:[MCC3_CODE]],2,0)","v":{"$error":"#N/A"}},{"$f":"VLOOKUP(N56,Tabel10[],3,0)","v":{"$error":"#N/A"}},null,null,null,null,null,null,null,null,null,null,null,{"$error":"#DIV/0!"},0,0,null,"","","","","","","","","","",null,null,null,null,null,null,null,null,null,null,null,null,null,null,null,null,null,"ZWO"]
[null,null,null,null,null,null,null,null,null,null,null,null,null,null,{"$f":"VLOOKUP(N57,Tabel10[[korte omschrijving]:[MCC3_CODE]],2,0)","v":{"$error":"#N/A"}},{"$f":"VLOOKUP(N57,Tabel10[],3,0)","v":{"$error":"#N/A"}},null,null,null,null,null,null,null,null,null,null,null,{"$error":"#DIV/0!"},0,0,null,"","","","","","","","","","",null,null,null,null,null,null,null,null,null,null,null,null,null,null,null,null,null,"ZWO"]
[null,null,null,null,null,null,null,null,null,null,null,null,null,null,{"$f":"VLOOKUP(N58,Tabel10[[korte omschrijving]:[MCC3_CODE]],2,0)","v":{"$error":"#N/A"}},{"$f":"VLOOKUP(N58,Tabel10[],3,0)","v":{"$error":"#N/A"}},null,null,null,null,null,null,null,null,null,null,null,{"$error":"#DIV/0!"},0,0,null,"","","","","","","","","","",null,null,null,null,null,null,null,null,null,null,null,null,null,null,null,null,null,"ZWO"]
[null,null,null,null,null,null,null,null,null,null,null,null,null,null,{"$f":"VLOOKUP(N59,Tabel10[[korte omschrijving]:[MCC3_CODE]],2,0)","v":{"$error":"#N/A"}},{"$f":"VLOOKUP(N59,Tabel10[],3,0)","v":{"$error":"#N/A"}},null,null,null,null,null,null,null,null,null,null,null,{"$error":"#DIV/0!"},0,0,null,"","","","","","","","","","",null,null,null,null,null,null,null,null,null,null,null,null,null,null,null,null,null,"ZWO"]
[null,null,null,null,null,null,null,null,null,null,null,null,null,null,{"$f":"VLOOKUP(N60,Tabel10[[korte omschrijving]:[MCC3_CODE]],2,0)","v":{"$error":"#N/A"}},{"$f":"VLOOKUP(N60,Tabel10[],3,0)","v":{"$error":"#N/A"}},null,null,null,null,{"$f":"SUM(T60:T65)","v":0},null,null,null,null,null,null,{"$error":"#DIV/0!"},0,0,null,"","","","","","","","","","",null,null,null,null,null,null,null,null,null,null,null,null,null,null,null,null,null,"ZWO"]
[null,null,null,null,null,null,null,null,null,null,null,null,null,null,{"$f":"VLOOKUP(N61,Tabel10[[korte omschrijving]:[MCC3_CODE]],2,0)","v":{"$error":"#N/A"}},{"$f":"VLOOKUP(N61,Tabel10[],3,0)","v":{"$error":"#N/A"}},null,null,null,null,null,null,null,null,null,null,null,{"$error":"#DIV/0!"},0,0,null,"","","","","","","","","","",null,null,null,null,null,null,null,null,null,null,null,null,null,null,null,null,null,"ZWO"]
[null,null,null,null,null,null,null,null,null,null,null,null,null,null,{"$f":"VLOOKUP(N62,Tabel10[[korte omschrijving]:[MCC3_CODE]],2,0)","v":{"$error":"#N/A"}},{"$f":"VLOOKUP(N62,Tabel10[],3,0)","v":{"$error":"#N/A"}},null,null,null,null,null,null,null,null,null,null,null,{"$error":"#DIV/0!"},0,0,null,"","","","","","","","","","",null,null,null,null,null,null,null,null,null,null,null,null,null,null,null,null,null,"ZWO"]
[null,null,null,null,null,null,null,null,null,null,null,null,null,null,{"$f":"VLOOKUP(N63,Tabel10[[korte omschrijving]:[MCC3_CODE]],2,0)","v":{"$error":"#N/A"}},{"$f":"VLOOKUP(N63,Tabel10[],3,0)","v":{"$error":"#N/A"}},null,null,null,null,null,null,null,null,null,null,null,{"$error":"#DIV/0!"},0,0,null,"","","","","","","","","","",null,null,null,null,null,null,null,null,null,null,null,null,null,null,null,null,null,"ZWO"]
[null,null,null,null,null,null,null,null,null,null,null,null,null,null,{"$f":"VLOOKUP(N64,Tabel10[[korte omschrijving]:[MCC3_CODE]],2,0)","v":{"$error":"#N/A"}},{"$f":"VLOOKUP(N64,Tabel10[],3,0)","v":{"$error":"#N/A"}},null,null,null,null,null,null,null,null,null,null,null,{"$error":"#DIV/0!"},0,0,null,"","","","","","","","","","",null,null,null,null,null,null,null,null,null,null,null,null,null,null,null,null,null,"ZWO"]
[null,null,null,null,null,null,null,null,null,null,null,null,null,null,{"$f":"VLOOKUP(N65,Tabel10[[korte omschrijving]:[MCC3_CODE]],2,0)","v":{"$error":"#N/A"}},{"$f":"VLOOKUP(N65,Tabel10[],3,0)","v":{"$error":"#N/A"}},null,null,null,null,null,null,null,null,null,null,null,{"$error":"#DIV/0!"},0,0,null,"","","","","","","","","","",null,null,null,null,null,null,null,null,null,null,null,null,null,null,null,null,null,"ZWO"]
[null,null,null,null,null,null,null,null,null,null,null,null,null,null,{"$f":"VLOOKUP(N66,Tabel10[[korte omschrijving]:[MCC3_CODE]],2,0)","v":{"$error":"#N/A"}},{"$f":"VLOOKUP(N66,Tabel10[],3,0)","v":{"$error":"#N/A"}},null,null,null,null,{"$f":"SUM(T66:T71)","v":0},null,null,null,null,null,null,{"$error":"#DIV/0!"},0,0,null,"","","","","","","","","","",null,null,null,null,null,null,null,null,null,null,null,null,null,null,null,null,null,"ZWO"]
[null,null,null,null,null,null,null,null,null,null,null,null,null,null,{"$f":"VLOOKUP(N67,Tabel10[[korte omschrijving]:[MCC3_CODE]],2,0)","v":{"$error":"#N/A"}},{"$f":"VLOOKUP(N67,Tabel10[],3,0)","v":{"$error":"#N/A"}},null,null,null,null,null,null,null,null,null,null,null,{"$error":"#DIV/0!"},0,0,null,"","","","","","","","","","",null,null,null,null,null,null,null,null,null,null,null,null,null,null,null,null,null,"ZWO"]
[null,null,null,null,null,null,null,null,null,null,null,null,null,null,{"$f":"VLOOKUP(N68,Tabel10[[korte omschrijving]:[MCC3_CODE]],2,0)","v":{"$error":"#N/A"}},{"$f":"VLOOKUP(N68,Tabel10[],3,0)","v":{"$error":"#N/A"}},null,null,null,null,null,null,null,null,null,null,null,{"$error":"#DIV/0!"},0,0,null,"","","","","","","","","","",null,null,null,null,null,null,null,null,null,null,null,null,null,null,null,null,null,"ZWO"]
[null,null,null,null,null,null,null,null,null,null,null,null,null,null,{"$f":"VLOOKUP(N69,Tabel10[[korte omschrijving]:[MCC3_CODE]],2,0)","v":{"$error":"#N/A"}},{"$f":"VLOOKUP(N69,Tabel10[],3,0)","v":{"$error":"#N/A"}},null,null,null,null,null,null,null,null,null,null,null,{"$error":"#DIV/0!"},0,0,null,"","","","","","","","","","",null,null,null,null,null,null,null,null,null,null,null,null,null,null,null,null,null,"ZWO"]
[null,null,null,null,null,null,null,null,null,null,null,null,null,null,{"$f":"VLOOKUP(N70,Tabel10[[korte omschrijving]:[MCC3_CODE]],2,0)","v":{"$error":"#N/A"}},{"$f":"VLOOKUP(N70,Tabel10[],3,0)","v":{"$error":"#N/A"}},null,null,null,null,null,null,null,null,null,null,null,{"$error":"#DIV/0!"},0,0,null,"","","","","","","","","","",null,null,null,null,null,null,null,null,null,null,null,null,null,null,null,null,null,"ZWO"]
[null,null,null,null,null,null,null,null,null,null,null,null,null,null,{"$f":"VLOOKUP(N71,Tabel10[[korte omschrijving]:[MCC3_CODE]],2,0)","v":{"$error":"#N/A"}},{"$f":"VLOOKUP(N71,Tabel10[],3,0)","v":{"$error":"#N/A"}},null,null,null,null,null,null,null,null,null,null,null,{"$f":"AA71/Y71","v":{"$error":"#DIV/0!"}},0,0,null,{"$f":"IF(AE71 <> \"\",\n    IF(ISNUMBER(VALUE(LEFT(AE71, FIND(\"%\", AE71)-1))),\n        VALUE(LEFT(AE71, FIND(\"%\", AE71)-1)),\n        \"Invalid format\"),\n    \"\")","v":""},{"$f":"IF(AE71 <> \"\",\n    IF(ISNUMBER(VALUE(LEFT(AE71, FIND(\"%\", AE71)-1))) * ISNUMBER(FIND(\"%\", AE71 & \"wol\")) > 0,\n        TRIM(MID(AE71, FIND(\"%\", AE71)+1, FIND(\"/\", AE71 & \"/\")-FIND(\"%\", AE71)-1)),\n        \"Invalid format\"),\n    \"\")","v":""},{"$f":"IF(AE71 <> \"\",\n    IF(ISNUMBER(VALUE(MID(AE71, FIND(\"/\", AE71) + 1, FIND(\"%\", AE71, FIND(\"/\", AE71)) - FIND(\"/\", AE71) - 1))),\n        VALUE(MID(AE71, FIND(\"/\", AE71) + 1, FIND(\"%\", AE71, FIND(\"/\", AE71)) - FIND(\"/\", AE71) - 1)),\n        \"\"),\n    \"\")","v":""},{"$f":"IF(AE71 <> \"\",\n    IFERROR(TRIM(MID(AE71, FIND(\"%\", AE71, FIND(\"/\", AE71)+1)+2,\n        IFERROR(FIND(\"/\", AE71 & \"/\", FIND(\"/\", AE71)+1)-FIND(\"%\", AE71, FIND(\"/\", AE71)+1)-2, LEN(AE71)-FIND(\"%\", AE71, FIND(\"/\", AE71)+1)-1))),\n        \"\"),\n    \"\")","v":""},{"$f":"IF(AE71 <> \"\",\n    IF(ISNUMBER(VALUE(MID(AE71, FIND(\"/\", AE71, FIND(\"/\", AE71)+1) + 1, FIND(\"%\", AE71, FIND(\"/\", AE71, FIND(\"/\", AE71)+1)) - FIND(\"/\", AE71, FIND(\"/\", AE71)+1) - 1))),\n        VALUE(MID(AE71, FIND(\"/\", AE71, FIND(\"/\", AE71)+1) + 1, FIND(\"%\", AE71, FIND(\"/\", AE71, FIND(\"/\", AE71)+1)) - FIND(\"/\", AE71, FIND(\"/\", AE71)+1) - 1)),\n        \"\"),\n    \"\")","v":""},{"$f":"IF(AE71 <> \"\",\n    IFERROR(\n        TRIM(MID(AE71,\n            FIND(\"%\", AE71, FIND(\"%\", AE71, FIND(\"%\", AE71)+1)+1)+1,\n            FIND(\"/\", AE71 & \"/\", FIND(\"%\", AE71, FIND(\"%\", AE71, FIND(\"%\", AE71)+1)+1))-FIND(\"%\", AE71, FIND(\"%\", AE71, FIND(\"%\", AE71)+1)+1)-1)\n        ),\n        \"\"\n    ),\n    \"\"\n)","v":""},{"$f":"IF(AE71 <> \"\",\n    IF(ISNUMBER(VALUE(MID(AE71, FIND(\"/\", AE71, FIND(\"/\", AE71, FIND(\"/\", AE71)+1)+1) + 1, FIND(\"%\", AE71, FIND(\"/\", AE71, FIND(\"/\", AE71, FIND(\"/\", AE71)+1)+1)) - FIND(\"/\", AE71, FIND(\"/\", AE71, FIND(\"/\", AE71)+1)+1) - 1))),\n        VALUE(MID(AE71, FIND(\"/\", AE71, FIND(\"/\", AE71, FIND(\"/\", AE71)+1)+1) + 1, FIND(\"%\", AE71, FIND(\"/\", AE71, FIND(\"/\", AE71, FIND(\"/\", AE71)+1)+1)) - FIND(\"/\", AE71, FIND(\"/\", AE71, FIND(\"/\", AE71)+1)+1) - 1)),\n        \"\"),\n    \"\")","v":""},{"$f":"IF(AE71 <> \"\",\n    IFERROR(TRIM(MID(AE71, FIND(\"%\", AE71, FIND(\"/\", AE71, FIND(\"/\", AE71, FIND(\"/\", AE71)+1)+1)+1)+2,\n        IFERROR(FIND(\"/\", AE71, FIND(\"/\", AE71, FIND(\"/\", AE71, FIND(\"/\", AE71)+1)+1)+1)-FIND(\"%\", AE71, FIND(\"/\", AE71, FIND(\"/\", AE71, FIND(\"/\", AE71)+1)+1)+1)-2, LEN(AE71)-FIND(\"%\", AE71, FIND(\"/\", AE71, FIND(\"/\", AE71, FIND(\"/\", AE71)+1)+1)+1)-1))),\n        \"\"),\n    \"\")","v":""},{"$f":"IF(AE71 <> \"\",\n    IF(ISNUMBER(VALUE(MID(AE71, FIND(\"/\", AE71, FIND(\"/\", AE71, FIND(\"/\", AE71, FIND(\"/\", AE71)+1)+1)+1) + 1, FIND(\"%\", AE71, FIND(\"/\", AE71, FIND(\"/\", AE71, FIND(\"/\", AE71, FIND(\"/\", AE71)+1)+1)+1)) - FIND(\"/\", AE71, FIND(\"/\", AE71, FIND(\"/\", AE71, FIND(\"/\", AE71)+1)+1)+1) - 1))),\n        VALUE(MID(AE71, FIND(\"/\", AE71, FIND(\"/\", AE71, FIND(\"/\", AE71, FIND(\"/\", AE71)+1)+1)+1) + 1, FIND(\"%\", AE71, FIND(\"/\", AE71, FIND(\"/\", AE71, FIND(\"/\", AE71, FIND(\"/\", AE71)+1)+1)+1)) - FIND(\"/\", AE71, FIND(\"/\", AE71, FIND(\"/\", AE71, FIND(\"/\", AE71)+1)+1)+1) - 1)),\n        \"\"),\n    \"\")","v":""},{"$f":"IF(AE71 = \"\", \"\",\n    IFERROR(TRIM(\n        MID(\n            AE71,\n            FIND(\"%\", AE71, FIND(\"/\", AE71, FIND(\"/\", AE71, FIND(\"/\", AE71, FIND(\"/\", AE71)+1)+1)+1)+1) + 1,\n            FIND(\"/\", AE71 & \"/\", FIND(\"%\", AE71, FIND(\"/\", AE71, FIND(\"/\", AE71, FIND(\"/\", AE71, FIND(\"/\", AE71)+1)+1)+1)+1)) -\n            FIND(\"%\", AE71, FIND(\"/\", AE71, FIND(\"/\", AE71, FIND(\"/\", AE71, FIND(\"/\", AE71)+1)+1)+1)+1) - 1\n        )\n    ),\n    \"\")\n)","v":""},null,null,null,null,null,null,null,null,null,null,null,null,null,null,null,null,null,"ZWO"]
[null,null,null,null,null,null,null,null,null,null,null,null,null,null,{"$f":"VLOOKUP(N72,Tabel10[[korte omschrijving]:[MCC3_CODE]],2,0)","v":{"$error":"#N/A"}},{"$f":"VLOOKUP(N72,Tabel10[],3,0)","v":{"$error":"#N/A"}},null,null,null,null,{"$f":"SUM(T72:T77)","v":0},null,null,null,null,null,null,{"$error":"#DIV/0!"},{"$f":"T72*Y72","v":0},{"$f":"T72*AA72","v":0},null,"","","","","","","","","","",null,null,null,null,null,null,null,null,null,null,null,null,null,null,null,null,null,"ZWO"]
[null,null,null,null,null,null,null,null,null,null,null,null,null,null,{"$f":"VLOOKUP(N73,Tabel10[[korte omschrijving]:[MCC3_CODE]],2,0)","v":{"$error":"#N/A"}},{"$f":"VLOOKUP(N73,Tabel10[],3,0)","v":{"$error":"#N/A"}},null,null,null,null,null,null,null,null,null,null,null,{"$error":"#DIV/0!"},0,0,null,"","","","","","","","","","",null,null,null,null,null,null,null,null,null,null,null,null,null,null,null,null,null,"ZWO"]
[null,null,null,null,null,null,null,null,null,null,null,null,null,null,{"$f":"VLOOKUP(N74,Tabel10[[korte omschrijving]:[MCC3_CODE]],2,0)","v":{"$error":"#N/A"}},{"$f":"VLOOKUP(N74,Tabel10[],3,0)","v":{"$error":"#N/A"}},null,null,null,null,null,null,null,null,null,null,null,{"$error":"#DIV/0!"},0,0,null,"","","","","","","","","","",null,null,null,null,null,null,null,null,null,null,null,null,null,null,null,null,null,"ZWO"]
[null,null,null,null,null,null,null,null,null,null,null,null,null,null,{"$f":"VLOOKUP(N75,Tabel10[[korte omschrijving]:[MCC3_CODE]],2,0)","v":{"$error":"#N/A"}},{"$f":"VLOOKUP(N75,Tabel10[],3,0)","v":{"$error":"#N/A"}},null,null,null,null,null,null,null,null,null,null,null,{"$error":"#DIV/0!"},0,0,null,"","","","","","","","","","",null,null,null,null,null,null,null,null,null,null,null,null,null,null,null,null,null,"ZWO"]
[null,null,null,null,null,null,null,null,null,null,null,null,null,null,{"$f":"VLOOKUP(N76,Tabel10[[korte omschrijving]:[MCC3_CODE]],2,0)","v":{"$error":"#N/A"}},{"$f":"VLOOKUP(N76,Tabel10[],3,0)","v":{"$error":"#N/A"}},null,null,null,null,null,null,null,null,null,null,null,{"$error":"#DIV/0!"},0,0,null,"","","","","","","","","","",null,null,null,null,null,null,null,null,null,null,null,null,null,null,null,null,null,"ZWO"]
[null,null,null,null,null,null,null,null,null,null,null,null,null,null,{"$f":"VLOOKUP(N77,Tabel10[[korte omschrijving]:[MCC3_CODE]],2,0)","v":{"$error":"#N/A"}},{"$f":"VLOOKUP(N77,Tabel10[],3,0)","v":{"$error":"#N/A"}},null,null,null,null,null,null,null,null,null,null,null,{"$error":"#DIV/0!"},0,0,null,"","","","","","","","","","",null,null,null,null,null,null,null,null,null,null,null,null,null,null,null,null,null,"ZWO"]
[null,null,null,null,null,null,null,null,null,null,null,null,null,null,{"$f":"VLOOKUP(N78,Tabel10[[korte omschrijving]:[MCC3_CODE]],2,0)","v":{"$error":"#N/A"}},{"$f":"VLOOKUP(N78,Tabel10[],3,0)","v":{"$error":"#N/A"}},null,null,null,null,{"$f":"SUM(T78:T83)","v":0},null,null,null,null,null,null,{"$error":"#DIV/0!"},0,0,null,"","","","","","","","","","",null,null,null,null,null,null,null,null,null,null,null,null,null,null,null,null,null,"ZWO"]
[null,null,null,null,null,null,null,null,null,null,null,null,null,null,{"$f":"VLOOKUP(N79,Tabel10[[korte omschrijving]:[MCC3_CODE]],2,0)","v":{"$error":"#N/A"}},{"$f":"VLOOKUP(N79,Tabel10[],3,0)","v":{"$error":"#N/A"}},null,null,null,null,null,null,null,null,null,null,null,{"$error":"#DIV/0!"},0,0,null,"","","","","","","","","","",null,null,null,null,null,null,null,null,null,null,null,null,null,null,null,null,null,"ZWO"]
[null,null,null,null,null,null,null,null,null,null,null,null,null,null,{"$f":"VLOOKUP(N80,Tabel10[[korte omschrijving]:[MCC3_CODE]],2,0)","v":{"$error":"#N/A"}},{"$f":"VLOOKUP(N80,Tabel10[],3,0)","v":{"$error":"#N/A"}},null,null,null,null,null,null,null,null,null,null,null,{"$error":"#DIV/0!"},0,0,null,"","","","","","","","","","",null,null,null,null,null,null,null,null,null,null,null,null,null,null,null,null,null,"ZWO"]
[null,null,null,null,null,null,null,null,null,null,null,null,null,null,{"$f":"VLOOKUP(N81,Tabel10[[korte omschrijving]:[MCC3_CODE]],2,0)","v":{"$error":"#N/A"}},{"$f":"VLOOKUP(N81,Tabel10[],3,0)","v":{"$error":"#N/A"}},null,null,null,null,null,null,null,null,null,null,null,{"$error":"#DIV/0!"},0,0,null,"","","","","","","","","","",null,null,null,null,null,null,null,null,null,null,null,null,null,null,null,null,null,"ZWO"]
[null,null,null,null,null,null,null,null,null,null,null,null,null,null,{"$f":"VLOOKUP(N82,Tabel10[[korte omschrijving]:[MCC3_CODE]],2,0)","v":{"$error":"#N/A"}},{"$f":"VLOOKUP(N82,Tabel10[],3,0)","v":{"$error":"#N/A"}},null,null,null,null,null,null,null,null,null,null,null,{"$error":"#DIV/0!"},0,0,null,"","","","","","","","","","",null,null,null,null,null,null,null,null,null,null,null,null,null,null,null,null,null,"ZWO"]
[null,null,null,null,null,null,null,null,null,null,null,null,null,null,{"$f":"VLOOKUP(N83,Tabel10[[korte omschrijving]:[MCC3_CODE]],2,0)","v":{"$error":"#N/A"}},{"$f":"VLOOKUP(N83,Tabel10[],3,0)","v":{"$error":"#N/A"}},null,null,null,null,null,null,null,null,null,null,null,{"$error":"#DIV/0!"},0,0,null,"","","","","","","","","","",null,null,null,null,null,null,null,null,null,null,null,null,null,null,null,null,null,"ZWO"]
[null,null,null,null,null,null,null,null,null,null,null,null,null,null,{"$f":"VLOOKUP(N84,Tabel10[[korte omschrijving]:[MCC3_CODE]],2,0)","v":{"$error":"#N/A"}},{"$f":"VLOOKUP(N84,Tabel10[],3,0)","v":{"$error":"#N/A"}},null,null,null,null,{"$f":"SUM(T84:T89)","v":0},null,null,null,null,null,null,{"$error":"#DIV/0!"},0,0,null,"","","","","","","","","","",null,null,null,null,null,null,null,null,null,null,null,null,null,null,null,null,null,"ZWO"]
[null,null,null,null,null,null,null,null,null,null,null,null,null,null,{"$f":"VLOOKUP(N85,Tabel10[[korte omschrijving]:[MCC3_CODE]],2,0)","v":{"$error":"#N/A"}},{"$f":"VLOOKUP(N85,Tabel10[],3,0)","v":{"$error":"#N/A"}},null,null,null,null,null,null,null,null,null,null,null,{"$error":"#DIV/0!"},0,0,null,"","","","","","","","","","",null,null,null,null,null,null,null,null,null,null,null,null,null,null,null,null,null,"ZWO"]
[null,null,null,null,null,null,null,null,null,null,null,null,null,null,{"$f":"VLOOKUP(N86,Tabel10[[korte omschrijving]:[MCC3_CODE]],2,0)","v":{"$error":"#N/A"}},{"$f":"VLOOKUP(N86,Tabel10[],3,0)","v":{"$error":"#N/A"}},null,null,null,null,null,null,null,null,null,null,null,{"$error":"#DIV/0!"},0,0,null,"","","","","","","","","","",null,null,null,null,null,null,null,null,null,null,null,null,null,null,null,null,null,"ZWO"]
[null,null,null,null,null,null,null,null,null,null,null,null,null,null,{"$f":"VLOOKUP(N87,Tabel10[[korte omschrijving]:[MCC3_CODE]],2,0)","v":{"$error":"#N/A"}},{"$f":"VLOOKUP(N87,Tabel10[],3,0)","v":{"$error":"#N/A"}},null,null,null,null,null,null,null,null,null,null,null,{"$error":"#DIV/0!"},0,0,null,"","","","","","","","","","",null,null,null,null,null,null,null,null,null,null,null,null,null,null,null,null,null,"ZWO"]
[null,null,null,null,null,null,null,null,null,null,null,null,null,null,{"$f":"VLOOKUP(N88,Tabel10[[korte omschrijving]:[MCC3_CODE]],2,0)","v":{"$error":"#N/A"}},{"$f":"VLOOKUP(N88,Tabel10[],3,0)","v":{"$error":"#N/A"}},null,null,null,null,null,null,null,null,null,null,null,{"$error":"#DIV/0!"},0,0,null,"","","","","","","","","","",null,null,null,null,null,null,null,null,null,null,null,null,null,null,null,null,null,"ZWO"]
[null,null,null,null,null,null,null,null,null,null,null,null,null,null,{"$f":"VLOOKUP(N89,Tabel10[[korte omschrijving]:[MCC3_CODE]],2,0)","v":{"$error":"#N/A"}},{"$f":"VLOOKUP(N89,Tabel10[],3,0)","v":{"$error":"#N/A"}},null,null,null,null,null,null,null,null,null,null,null,{"$error":"#DIV/0!"},0,0,null,"","","","","","","","","","",null,null,null,null,null,null,null,null,null,null,null,null,null,null,null,null,null,"ZWO"]
[null,null,null,null,null,null,null,null,null,null,null,null,null,null,{"$f":"VLOOKUP(N90,Tabel10[[korte omschrijving]:[MCC3_CODE]],2,0)","v":{"$error":"#N/A"}},{"$f":"VLOOKUP(N90,Tabel10[],3,0)","v":{"$error":"#N/A"}},null,null,null,null,{"$f":"SUM(T90:T95)","v":0},null,null,null,null,null,null,{"$error":"#DIV/0!"},0,0,null,"","","","","","","","","","",null,null,null,null,null,null,null,null,null,null,null,null,null,null,null,null,null,"ZWO"]
[null,null,null,null,null,null,null,null,null,null,null,null,null,null,{"$f":"VLOOKUP(N91,Tabel10[[korte omschrijving]:[MCC3_CODE]],2,0)","v":{"$error":"#N/A"}},{"$f":"VLOOKUP(N91,Tabel10[],3,0)","v":{"$error":"#N/A"}},null,null,null,null,null,null,null,null,null,null,null,{"$error":"#DIV/0!"},0,0,null,"","","","","","","","","","",null,null,null,null,null,null,null,null,null,null,null,null,null,null,null,null,null,"ZWO"]
[null,null,null,null,null,null,null,null,null,null,null,null,null,null,{"$f":"VLOOKUP(N92,Tabel10[[korte omschrijving]:[MCC3_CODE]],2,0)","v":{"$error":"#N/A"}},{"$f":"VLOOKUP(N92,Tabel10[],3,0)","v":{"$error":"#N/A"}},null,null,null,null,null,null,null,null,null,null,null,{"$error":"#DIV/0!"},0,0,null,"","","","","","","","","","",null,null,null,null,null,null,null,null,null,null,null,null,null,null,null,null,null,"ZWO"]
[null,null,null,null,null,null,null,null,null,null,null,null,null,null,{"$f":"VLOOKUP(N93,Tabel10[[korte omschrijving]:[MCC3_CODE]],2,0)","v":{"$error":"#N/A"}},{"$f":"VLOOKUP(N93,Tabel10[],3,0)","v":{"$error":"#N/A"}},null,null,null,null,null,null,null,null,null,null,null,{"$error":"#DIV/0!"},0,0,null,"","","","","","","","","","",null,null,null,null,null,null,null,null,null,null,null,null,null,null,null,null,null,"ZWO"]
[null,null,null,null,null,null,null,null,null,null,null,null,null,null,{"$f":"VLOOKUP(N94,Tabel10[[korte omschrijving]:[MCC3_CODE]],2,0)","v":{"$error":"#N/A"}},{"$f":"VLOOKUP(N94,Tabel10[],3,0)","v":{"$error":"#N/A"}},null,null,null,null,null,null,null,null,null,null,null,{"$error":"#DIV/0!"},0,0,null,"","","","","","","","","","",null,null,null,null,null,null,null,null,null,null,null,null,null,null,null,null,null,"ZWO"]
[null,null,null,null,null,null,null,null,null,null,null,null,null,null,{"$f":"VLOOKUP(N95,Tabel10[[korte omschrijving]:[MCC3_CODE]],2,0)","v":{"$error":"#N/A"}},{"$f":"VLOOKUP(N95,Tabel10[],3,0)","v":{"$error":"#N/A"}},null,null,null,null,null,null,null,null,null,null,null,{"$error":"#DIV/0!"},0,0,null,"","","","","","","","","","",null,null,null,null,null,null,null,null,null,null,null,null,null,null,null,null,null,"ZWO"]
[null,null,null,null,null,null,null,null,null,null,null,null,null,null,{"$f":"VLOOKUP(N96,Tabel10[[korte omschrijving]:[MCC3_CODE]],2,0)","v":{"$error":"#N/A"}},{"$f":"VLOOKUP(N96,Tabel10[],3,0)","v":{"$error":"#N/A"}},null,null,null,null,{"$f":"SUM(T96:T101)","v":0},null,null,null,null,null,null,{"$error":"#DIV/0!"},0,0,null,"","","","","","","","","","",null,null,null,null,null,null,null,null,null,null,null,null,null,null,null,null,null,"ZWO"]
[null,null,null,null,null,null,null,null,null,null,null,null,null,null,{"$f":"VLOOKUP(N97,Tabel10[[korte omschrijving]:[MCC3_CODE]],2,0)","v":{"$error":"#N/A"}},{"$f":"VLOOKUP(N97,Tabel10[],3,0)","v":{"$error":"#N/A"}},null,null,null,null,null,null,null,null,null,null,null,{"$error":"#DIV/0!"},0,0,null,"","","","","","","","","","",null,null,null,null,null,null,null,null,null,null,null,null,null,null,null,null,null,"ZWO"]
[null,null,null,null,null,null,null,null,null,null,null,null,null,null,{"$f":"VLOOKUP(N98,Tabel10[[korte omschrijving]:[MCC3_CODE]],2,0)","v":{"$error":"#N/A"}},{"$f":"VLOOKUP(N98,Tabel10[],3,0)","v":{"$error":"#N/A"}},null,null,null,null,null,null,null,null,null,null,null,{"$error":"#DIV/0!"},0,0,null,"","","","","","","","","","",null,null,null,null,null,null,null,null,null,null,null,null,null,null,null,null,null,"ZWO"]
[null,null,null,null,null,null,null,null,null,null,null,null,null,null,{"$f":"VLOOKUP(N99,Tabel10[[korte omschrijving]:[MCC3_CODE]],2,0)","v":{"$error":"#N/A"}},{"$f":"VLOOKUP(N99,Tabel10[],3,0)","v":{"$error":"#N/A"}},null,null,null,null,null,null,null,null,null,null,null,{"$error":"#DIV/0!"},0,0,null,"","","","","","","","","","",null,null,null,null,null,null,null,null,null,null,null,null,null,null,null,null,null,"ZWO"]
[null,null,null,null,null,null,null,null,null,null,null,null,null,null,{"$f":"VLOOKUP(N100,Tabel10[[korte omschrijving]:[MCC3_CODE]],2,0)","v":{"$error":"#N/A"}},{"$f":"VLOOKUP(N100,Tabel10[],3,0)","v":{"$error":"#N/A"}},null,null,null,null,null,null,null,null,null,null,null,{"$error":"#DIV/0!"},0,0,null,"","","","","","","","","","",null,null,null,null,null,null,null,null,null,null,null,null,null,null,null,null,null,"ZWO"]
[null,null,null,null,null,null,null,null,null,null,null,null,null,null,{"$f":"VLOOKUP(N101,Tabel10[[korte omschrijving]:[MCC3_CODE]],2,0)","v":{"$error":"#N/A"}},{"$f":"VLOOKUP(N101,Tabel10[],3,0)","v":{"$error":"#N/A"}},null,null,null,null,null,null,null,null,null,null,null,{"$error":"#DIV/0!"},0,0,null,"","","","","","","","","","",null,null,null,null,null,null,null,null,null,null,null,null,null,null,null,null,null,"ZWO"]
[null,null,null,null,null,null,null,null,null,null,null,null,null,null,{"$f":"VLOOKUP(N102,Tabel10[[korte omschrijving]:[MCC3_CODE]],2,0)","v":{"$error":"#N/A"}},{"$f":"VLOOKUP(N102,Tabel10[],3,0)","v":{"$error":"#N/A"}},null,null,null,null,{"$f":"SUM(T102:T107)","v":0},null,null,null,null,null,null,{"$error":"#DIV/0!"},0,0,null,"","","","","","","","","","",null,null,null,null,null,null,null,null,null,null,null,null,null,null,null,null,null,"ZWO"]
[null,null,null,null,null,null,null,null,null,null,null,null,null,null,{"$f":"VLOOKUP(N103,Tabel10[[korte omschrijving]:[MCC3_CODE]],2,0)","v":{"$error":"#N/A"}},{"$f":"VLOOKUP(N103,Tabel10[],3,0)","v":{"$error":"#N/A"}},null,null,null,null,null,null,null,null,null,null,null,{"$error":"#DIV/0!"},0,0,null,"","","","","","","","","","",null,null,null,null,null,null,null,null,null,null,null,null,null,null,null,null,null,"ZWO"]
[null,null,null,null,null,null,null,null,null,null,null,null,null,null,{"$f":"VLOOKUP(N104,Tabel10[[korte omschrijving]:[MCC3_CODE]],2,0)","v":{"$error":"#N/A"}},{"$f":"VLOOKUP(N104,Tabel10[],3,0)","v":{"$error":"#N/A"}},null,null,null,null,null,null,null,null,null,null,null,{"$error":"#DIV/0!"},0,0,null,"","","","","","","","","","",null,null,null,null,null,null,null,null,null,null,null,null,null,null,null,null,null,"ZWO"]
[null,null,null,null,null,null,null,null,null,null,null,null,null,null,{"$f":"VLOOKUP(N105,Tabel10[[korte omschrijving]:[MCC3_CODE]],2,0)","v":{"$error":"#N/A"}},{"$f":"VLOOKUP(N105,Tabel10[],3,0)","v":{"$error":"#N/A"}},null,null,null,null,null,null,null,null,null,null,null,{"$error":"#DIV/0!"},0,0,null,"","","","","","","","","","",null,null,null,null,null,null,null,null,null,null,null,null,null,null,null,null,null,"ZWO"]
[null,null,null,null,null,null,null,null,null,null,null,null,null,null,{"$f":"VLOOKUP(N106,Tabel10[[korte omschrijving]:[MCC3_CODE]],2,0)","v":{"$error":"#N/A"}},{"$f":"VLOOKUP(N106,Tabel10[],3,0)","v":{"$error":"#N/A"}},null,null,null,null,null,null,null,null,null,null,null,{"$error":"#DIV/0!"},0,0,null,"","","","","","","","","","",null,null,null,null,null,null,null,null,null,null,null,null,null,null,null,null,null,"ZWO"]
[null,null,null,null,null,null,null,null,null,null,null,null,null,null,{"$f":"VLOOKUP(N107,Tabel10[[korte omschrijving]:[MCC3_CODE]],2,0)","v":{"$error":"#N/A"}},{"$f":"VLOOKUP(N107,Tabel10[],3,0)","v":{"$error":"#N/A"}},null,null,null,null,null,null,null,null,null,null,null,{"$error":"#DIV/0!"},0,0,null,"","","","","","","","","","",null,null,null,null,null,null,null,null,null,null,null,null,null,null,null,null,null,"ZWO"]
[null,null,null,null,null,null,null,null,null,null,null,null,null,null,{"$f":"VLOOKUP(N108,Tabel10[[korte omschrijving]:[MCC3_CODE]],2,0)","v":{"$error":"#N/A"}},{"$f":"VLOOKUP(N108,Tabel10[],3,0)","v":{"$error":"#N/A"}},null,null,null,null,{"$f":"SUM(T108:T113)","v":0},null,null,null,null,null,null,{"$error":"#DIV/0!"},0,0,null,"","","","","","","","","","",null,null,null,null,null,null,null,null,null,null,null,null,null,null,null,null,null,"ZWO"]
[null,null,null,null,null,null,null,null,null,null,null,null,null,null,{"$f":"VLOOKUP(N109,Tabel10[[korte omschrijving]:[MCC3_CODE]],2,0)","v":{"$error":"#N/A"}},{"$f":"VLOOKUP(N109,Tabel10[],3,0)","v":{"$error":"#N/A"}},null,null,null,null,null,null,null,null,null,null,null,{"$error":"#DIV/0!"},0,0,null,"","","","","","","","","","",null,null,null,null,null,null,null,null,null,null,null,null,null,null,null,null,null,"ZWO"]
[null,null,null,null,null,null,null,null,null,null,null,null,null,null,{"$f":"VLOOKUP(N110,Tabel10[[korte omschrijving]:[MCC3_CODE]],2,0)","v":{"$error":"#N/A"}},{"$f":"VLOOKUP(N110,Tabel10[],3,0)","v":{"$error":"#N/A"}},null,null,null,null,null,null,null,null,null,null,null,{"$error":"#DIV/0!"},0,0,null,"","","","","","","","","","",null,null,null,null,null,null,null,null,null,null,null,null,null,null,null,null,null,"ZWO"]
[null,null,null,null,null,null,null,null,null,null,null,null,null,null,{"$f":"VLOOKUP(N111,Tabel10[[korte omschrijving]:[MCC3_CODE]],2,0)","v":{"$error":"#N/A"}},{"$f":"VLOOKUP(N111,Tabel10[],3,0)","v":{"$error":"#N/A"}},null,null,null,null,null,null,null,null,null,null,null,{"$error":"#DIV/0!"},0,0,null,"","","","","","","","","","",null,null,null,null,null,null,null,null,null,null,null,null,null,null,null,null,null,"ZWO"]
[null,null,null,null,null,null,null,null,null,null,null,null,null,null,{"$f":"VLOOKUP(N112,Tabel10[[korte omschrijving]:[MCC3_CODE]],2,0)","v":{"$error":"#N/A"}},{"$f":"VLOOKUP(N112,Tabel10[],3,0)","v":{"$error":"#N/A"}},null,null,null,null,null,null,null,null,null,null,null,{"$error":"#DIV/0!"},0,0,null,"","","","","","","","","","",null,null,null,null,null,null,null,null,null,null,null,null,null,null,null,null,null,"ZWO"]
[null,null,null,null,null,null,null,null,null,null,null,null,null,null,{"$f":"VLOOKUP(N113,Tabel10[[korte omschrijving]:[MCC3_CODE]],2,0)","v":{"$error":"#N/A"}},{"$f":"VLOOKUP(N113,Tabel10[],3,0)","v":{"$error":"#N/A"}},null,null,null,null,null,null,null,null,null,null,null,{"$error":"#DIV/0!"},0,0,null,"","","","","","","","","","",null,null,null,null,null,null,null,null,null,null,null,null,null,null,null,null,null,"ZWO"]
[null,null,null,null,null,null,null,null,null,null,null,null,null,null,{"$f":"VLOOKUP(N114,Tabel10[[korte omschrijving]:[MCC3_CODE]],2,0)","v":{"$error":"#N/A"}},{"$f":"VLOOKUP(N114,Tabel10[],3,0)","v":{"$error":"#N/A"}},null,null,null,null,{"$f":"SUM(T114:T119)","v":0},null,null,null,null,null,null,{"$error":"#DIV/0!"},0,0,null,"","","","","","","","","","",null,null,null,null,null,null,null,null,null,null,null,null,null,null,null,null,null,"ZWO"]
[null,null,null,null,null,null,null,null,null,null,null,null,null,null,{"$f":"VLOOKUP(N115,Tabel10[[korte omschrijving]:[MCC3_CODE]],2,0)","v":{"$error":"#N/A"}},{"$f":"VLOOKUP(N115,Tabel10[],3,0)","v":{"$error":"#N/A"}},null,null,null,null,null,null,null,null,null,null,null,{"$error":"#DIV/0!"},0,0,null,"","","","","","","","","","",null,null,null,null,null,null,null,null,null,null,null,null,null,null,null,null,null,"ZWO"]
[null,null,null,null,null,null,null,null,null,null,null,null,null,null,{"$f":"VLOOKUP(N116,Tabel10[[korte omschrijving]:[MCC3_CODE]],2,0)","v":{"$error":"#N/A"}},{"$f":"VLOOKUP(N116,Tabel10[],3,0)","v":{"$error":"#N/A"}},null,null,null,null,null,null,null,null,null,null,null,{"$error":"#DIV/0!"},0,0,null,"","","","","","","","","","",null,null,null,null,null,null,null,null,null,null,null,null,null,null,null,null,null,"ZWO"]
[null,null,null,null,null,null,null,null,null,null,null,null,null,null,{"$f":"VLOOKUP(N117,Tabel10[[korte omschrijving]:[MCC3_CODE]],2,0)","v":{"$error":"#N/A"}},{"$f":"VLOOKUP(N117,Tabel10[],3,0)","v":{"$error":"#N/A"}},null,null,null,null,null,null,null,null,null,null,null,{"$error":"#DIV/0!"},0,0,null,"","","","","","","","","","",null,null,null,null,null,null,null,null,null,null,null,null,null,null,null,null,null,"ZWO"]
[null,null,null,null,null,null,null,null,null,null,null,null,null,null,{"$f":"VLOOKUP(N118,Tabel10[[korte omschrijving]:[MCC3_CODE]],2,0)","v":{"$error":"#N/A"}},{"$f":"VLOOKUP(N118,Tabel10[],3,0)","v":{"$error":"#N/A"}},null,null,null,null,null,null,null,null,null,null,null,{"$error":"#DIV/0!"},0,0,null,"","","","","","","","","","",null,null,null,null,null,null,null,null,null,null,null,null,null,null,null,null,null,"ZWO"]
[null,null,null,null,null,null,null,null,null,null,null,null,null,null,{"$f":"VLOOKUP(N119,Tabel10[[korte omschrijving]:[MCC3_CODE]],2,0)","v":{"$error":"#N/A"}},{"$f":"VLOOKUP(N119,Tabel10[],3,0)","v":{"$error":"#N/A"}},null,null,null,null,null,null,null,null,null,null,null,{"$error":"#DIV/0!"},0,0,null,"","","","","","","","","","",null,null,null,null,null,null,null,null,null,null,null,null,null,null,null,null,null,"ZWO"]
[null,null,null,null,null,null,null,null,null,null,null,null,null,null,{"$f":"VLOOKUP(N120,Tabel10[[korte omschrijving]:[MCC3_CODE]],2,0)","v":{"$error":"#N/A"}},{"$f":"VLOOKUP(N120,Tabel10[],3,0)","v":{"$error":"#N/A"}},null,null,null,null,{"$f":"SUM(T120:T125)","v":0},null,null,null,null,null,null,{"$error":"#DIV/0!"},0,0,null,"","","","","","","","","","",null,null,null,null,null,null,null,null,null,null,null,null,null,null,null,null,null,"ZWO"]
[null,null,null,null,null,null,null,null,null,null,null,null,null,null,{"$f":"VLOOKUP(N121,Tabel10[[korte omschrijving]:[MCC3_CODE]],2,0)","v":{"$error":"#N/A"}},{"$f":"VLOOKUP(N121,Tabel10[],3,0)","v":{"$error":"#N/A"}},null,null,null,null,null,null,null,null,null,null,null,{"$error":"#DIV/0!"},0,0,null,"","","","","","","","","","",null,null,null,null,null,null,null,null,null,null,null,null,null,null,null,null,null,"ZWO"]
[null,null,null,null,null,null,null,null,null,null,null,null,null,null,{"$f":"VLOOKUP(N122,Tabel10[[korte omschrijving]:[MCC3_CODE]],2,0)","v":{"$error":"#N/A"}},{"$f":"VLOOKUP(N122,Tabel10[],3,0)","v":{"$error":"#N/A"}},null,null,null,null,null,null,null,null,null,null,null,{"$error":"#DIV/0!"},0,0,null,"","","","","","","","","","",null,null,null,null,null,null,null,null,null,null,null,null,null,null,null,null,null,"ZWO"]
[null,null,null,null,null,null,null,null,null,null,null,null,null,null,{"$f":"VLOOKUP(N123,Tabel10[[korte omschrijving]:[MCC3_CODE]],2,0)","v":{"$error":"#N/A"}},{"$f":"VLOOKUP(N123,Tabel10[],3,0)","v":{"$error":"#N/A"}},null,null,null,null,null,null,null,null,null,null,null,{"$error":"#DIV/0!"},0,0,null,"","","","","","","","","","",null,null,null,null,null,null,null,null,null,null,null,null,null,null,null,null,null,"ZWO"]
[null,null,null,null,null,null,null,null,null,null,null,null,null,null,{"$f":"VLOOKUP(N124,Tabel10[[korte omschrijving]:[MCC3_CODE]],2,0)","v":{"$error":"#N/A"}},{"$f":"VLOOKUP(N124,Tabel10[],3,0)","v":{"$error":"#N/A"}},null,null,null,null,null,null,null,null,null,null,null,{"$error":"#DIV/0!"},0,0,null,"","","","","","","","","","",null,null,null,null,null,null,null,null,null,null,null,null,null,null,null,null,null,"ZWO"]
[null,null,null,null,null,null,null,null,null,null,null,null,null,null,{"$f":"VLOOKUP(N125,Tabel10[[korte omschrijving]:[MCC3_CODE]],2,0)","v":{"$error":"#N/A"}},{"$f":"VLOOKUP(N125,Tabel10[],3,0)","v":{"$error":"#N/A"}},null,null,null,null,null,null,null,null,null,null,null,{"$error":"#DIV/0!"},0,0,null,"","","","","","","","","","",null,null,null,null,null,null,null,null,null,null,null,null,null,null,null,null,null,"ZWO"]
[null,null,null,null,null,null,null,null,null,null,null,null,null,null,{"$f":"VLOOKUP(N126,Tabel10[[korte omschrijving]:[MCC3_CODE]],2,0)","v":{"$error":"#N/A"}},{"$f":"VLOOKUP(N126,Tabel10[],3,0)","v":{"$error":"#N/A"}},null,null,null,null,{"$f":"SUM(T126:T131)","v":0},null,null,null,null,null,null,{"$error":"#DIV/0!"},0,0,null,"","","","","","","","","","",null,null,null,null,null,null,null,null,null,null,null,null,null,null,null,null,null,"ZWO"]
[null,null,null,null,null,null,null,null,null,null,null,null,null,null,{"$f":"VLOOKUP(N127,Tabel10[[korte omschrijving]:[MCC3_CODE]],2,0)","v":{"$error":"#N/A"}},{"$f":"VLOOKUP(N127,Tabel10[],3,0)","v":{"$error":"#N/A"}},null,null,null,null,null,null,null,null,null,null,null,{"$error":"#DIV/0!"},0,0,null,"","","","","","","","","","",null,null,null,null,null,null,null,null,null,null,null,null,null,null,null,null,null,"ZWO"]
[null,null,null,null,null,null,null,null,null,null,null,null,null,null,{"$f":"VLOOKUP(N128,Tabel10[[korte omschrijving]:[MCC3_CODE]],2,0)","v":{"$error":"#N/A"}},{"$f":"VLOOKUP(N128,Tabel10[],3,0)","v":{"$error":"#N/A"}},null,null,null,null,null,null,null,null,null,null,null,{"$error":"#DIV/0!"},0,0,null,"","","","","","","","","","",null,null,null,null,null,null,null,null,null,null,null,null,null,null,null,null,null,"ZWO"]
[null,null,null,null,null,null,null,null,null,null,null,null,null,null,{"$f":"VLOOKUP(N129,Tabel10[[korte omschrijving]:[MCC3_CODE]],2,0)","v":{"$error":"#N/A"}},{"$f":"VLOOKUP(N129,Tabel10[],3,0)","v":{"$error":"#N/A"}},null,null,null,null,null,null,null,null,null,null,null,{"$error":"#DIV/0!"},0,0,null,"","","","","","","","","","",null,null,null,null,null,null,null,null,null,null,null,null,null,null,null,null,null,"ZWO"]
[null,null,null,null,null,null,null,null,null,null,null,null,null,null,{"$f":"VLOOKUP(N130,Tabel10[[korte omschrijving]:[MCC3_CODE]],2,0)","v":{"$error":"#N/A"}},{"$f":"VLOOKUP(N130,Tabel10[],3,0)","v":{"$error":"#N/A"}},null,null,null,null,null,null,null,null,null,null,null,{"$error":"#DIV/0!"},0,0,null,"","","","","","","","","","",null,null,null,null,null,null,null,null,null,null,null,null,null,null,null,null,null,"ZWO"]
[null,null,null,null,null,null,null,null,null,null,null,null,null,null,{"$f":"VLOOKUP(N131,Tabel10[[korte omschrijving]:[MCC3_CODE]],2,0)","v":{"$error":"#N/A"}},{"$f":"VLOOKUP(N131,Tabel10[],3,0)","v":{"$error":"#N/A"}},null,null,null,null,null,null,null,null,null,null,null,{"$error":"#DIV/0!"},0,0,null,"","","","","","","","","","",null,null,null,null,null,null,null,null,null,null,null,null,null,null,null,null,null,"ZWO"]
[null,null,null,null,null,null,null,null,null,null,null,null,null,null,{"$f":"VLOOKUP(N132,Tabel10[[korte omschrijving]:[MCC3_CODE]],2,0)","v":{"$error":"#N/A"}},{"$f":"VLOOKUP(N132,Tabel10[],3,0)","v":{"$error":"#N/A"}},null,null,null,null,{"$f":"SUM(T132:T137)","v":0},null,null,null,null,null,null,{"$error":"#DIV/0!"},0,0,null,"","","","","","","","","","",null,null,null,null,null,null,null,null,null,null,null,null,null,null,null,null,null,"ZWO"]
[null,null,null,null,null,null,null,null,null,null,null,null,null,null,{"$f":"VLOOKUP(N133,Tabel10[[korte omschrijving]:[MCC3_CODE]],2,0)","v":{"$error":"#N/A"}},{"$f":"VLOOKUP(N133,Tabel10[],3,0)","v":{"$error":"#N/A"}},null,null,null,null,null,null,null,null,null,null,null,{"$error":"#DIV/0!"},0,0,null,"","","","","","","","","","",null,null,null,null,null,null,null,null,null,null,null,null,null,null,null,null,null,"ZWO"]
[null,null,null,null,null,null,null,null,null,null,null,null,null,null,{"$f":"VLOOKUP(N134,Tabel10[[korte omschrijving]:[MCC3_CODE]],2,0)","v":{"$error":"#N/A"}},{"$f":"VLOOKUP(N134,Tabel10[],3,0)","v":{"$error":"#N/A"}},null,null,null,null,null,null,null,null,null,null,null,{"$error":"#DIV/0!"},0,0,null,"","","","","","","","","","",null,null,null,null,null,null,null,null,null,null,null,null,null,null,null,null,null,"ZWO"]
[null,null,null,null,null,null,null,null,null,null,null,null,null,null,{"$f":"VLOOKUP(N135,Tabel10[[korte omschrijving]:[MCC3_CODE]],2,0)","v":{"$error":"#N/A"}},{"$f":"VLOOKUP(N135,Tabel10[],3,0)","v":{"$error":"#N/A"}},null,null,null,null,null,null,null,null,null,null,null,{"$f":"AA135/Y135","v":{"$error":"#DIV/0!"}},0,0,null,{"$f":"IF(AE135 <> \"\",\n    IF(ISNUMBER(VALUE(LEFT(AE135, FIND(\"%\", AE135)-1))),\n        VALUE(LEFT(AE135, FIND(\"%\", AE135)-1)),\n        \"Invalid format\"),\n    \"\")","v":""},{"$f":"IF(AE135 <> \"\",\n    IF(ISNUMBER(VALUE(LEFT(AE135, FIND(\"%\", AE135)-1))) * ISNUMBER(FIND(\"%\", AE135 & \"wol\")) > 0,\n        TRIM(MID(AE135, FIND(\"%\", AE135)+1, FIND(\"/\", AE135 & \"/\")-FIND(\"%\", AE135)-1)),\n        \"Invalid format\"),\n    \"\")","v":""},{"$f":"IF(AE135 <> \"\",\n    IF(ISNUMBER(VALUE(MID(AE135, FIND(\"/\", AE135) + 1, FIND(\"%\", AE135, FIND(\"/\", AE135)) - FIND(\"/\", AE135) - 1))),\n        VALUE(MID(AE135, FIND(\"/\", AE135) + 1, FIND(\"%\", AE135, FIND(\"/\", AE135)) - FIND(\"/\", AE135) - 1)),\n        \"\"),\n    \"\")","v":""},{"$f":"IF(AE135 <> \"\",\n    IFERROR(TRIM(MID(AE135, FIND(\"%\", AE135, FIND(\"/\", AE135)+1)+2,\n        IFERROR(FIND(\"/\", AE135 & \"/\", FIND(\"/\", AE135)+1)-FIND(\"%\", AE135, FIND(\"/\", AE135)+1)-2, LEN(AE135)-FIND(\"%\", AE135, FIND(\"/\", AE135)+1)-1))),\n        \"\"),\n    \"\")","v":""},{"$f":"IF(AE135 <> \"\",\n    IF(ISNUMBER(VALUE(MID(AE135, FIND(\"/\", AE135, FIND(\"/\", AE135)+1) + 1, FIND(\"%\", AE135, FIND(\"/\", AE135, FIND(\"/\", AE135)+1)) - FIND(\"/\", AE135, FIND(\"/\", AE135)+1) - 1))),\n        VALUE(MID(AE135, FIND(\"/\", AE135, FIND(\"/\", AE135)+1) + 1, FIND(\"%\", AE135, FIND(\"/\", AE135, FIND(\"/\", AE135)+1)) - FIND(\"/\", AE135, FIND(\"/\", AE135)+1) - 1)),\n        \"\"),\n    \"\")","v":""},{"$f":"IF(AE135 <> \"\",\n    IFERROR(\n        TRIM(MID(AE135,\n            FIND(\"%\", AE135, FIND(\"%\", AE135, FIND(\"%\", AE135)+1)+1)+1,\n            FIND(\"/\", AE135 & \"/\", FIND(\"%\", AE135, FIND(\"%\", AE135, FIND(\"%\", AE135)+1)+1))-FIND(\"%\", AE135, FIND(\"%\", AE135, FIND(\"%\", AE135)+1)+1)-1)\n        ),\n        \"\"\n    ),\n    \"\"\n)","v":""},{"$f":"IF(AE135 <> \"\",\n    IF(ISNUMBER(VALUE(MID(AE135, FIND(\"/\", AE135, FIND(\"/\", AE135, FIND(\"/\", AE135)+1)+1) + 1, FIND(\"%\", AE135, FIND(\"/\", AE135, FIND(\"/\", AE135, FIND(\"/\", AE135)+1)+1)) - FIND(\"/\", AE135, FIND(\"/\", AE135, FIND(\"/\", AE135)+1)+1) - 1))),\n        VALUE(MID(AE135, FIND(\"/\", AE135, FIND(\"/\", AE135, FIND(\"/\", AE135)+1)+1) + 1, FIND(\"%\", AE135, FIND(\"/\", AE135, FIND(\"/\", AE135, FIND(\"/\", AE135)+1)+1)) - FIND(\"/\", AE135, FIND(\"/\", AE135, FIND(\"/\", AE135)+1)+1) - 1)),\n        \"\"),\n    \"\")","v":""},{"$f":"IF(AE135 <> \"\",\n    IFERROR(TRIM(MID(AE135, FIND(\"%\", AE135, FIND(\"/\", AE135, FIND(\"/\", AE135, FIND(\"/\", AE135)+1)+1)+1)+2,\n        IFERROR(FIND(\"/\", AE135, FIND(\"/\", AE135, FIND(\"/\", AE135, FIND(\"/\", AE135)+1)+1)+1)-FIND(\"%\", AE135, FIND(\"/\", AE135, FIND(\"/\", AE135, FIND(\"/\", AE135)+1)+1)+1)-2, LEN(AE135)-FIND(\"%\", AE135, FIND(\"/\", AE135, FIND(\"/\", AE135, FIND(\"/\", AE135)+1)+1)+1)-1))),\n        \"\"),\n    \"\")","v":""},{"$f":"IF(AE135 <> \"\",\n    IF(ISNUMBER(VALUE(MID(AE135, FIND(\"/\", AE135, FIND(\"/\", AE135, FIND(\"/\", AE135, FIND(\"/\", AE135)+1)+1)+1) + 1, FIND(\"%\", AE135, FIND(\"/\", AE135, FIND(\"/\", AE135, FIND(\"/\", AE135, FIND(\"/\", AE135)+1)+1)+1)) - FIND(\"/\", AE135, FIND(\"/\", AE135, FIND(\"/\", AE135, FIND(\"/\", AE135)+1)+1)+1) - 1))),\n        VALUE(MID(AE135, FIND(\"/\", AE135, FIND(\"/\", AE135, FIND(\"/\", AE135, FIND(\"/\", AE135)+1)+1)+1) + 1, FIND(\"%\", AE135, FIND(\"/\", AE135, FIND(\"/\", AE135, FIND(\"/\", AE135, FIND(\"/\", AE135)+1)+1)+1)) - FIND(\"/\", AE135, FIND(\"/\", AE135, FIND(\"/\", AE135, FIND(\"/\", AE135)+1)+1)+1) - 1)),\n        \"\"),\n    \"\")","v":""},{"$f":"IF(AE135 = \"\", \"\",\n    IFERROR(TRIM(\n        MID(\n            AE135,\n            FIND(\"%\", AE135, FIND(\"/\", AE135, FIND(\"/\", AE135, FIND(\"/\", AE135, FIND(\"/\", AE135)+1)+1)+1)+1) + 1,\n            FIND(\"/\", AE135 & \"/\", FIND(\"%\", AE135, FIND(\"/\", AE135, FIND(\"/\", AE135, FIND(\"/\", AE135, FIND(\"/\", AE135)+1)+1)+1)+1)) -\n            FIND(\"%\", AE135, FIND(\"/\", AE135, FIND(\"/\", AE135, FIND(\"/\", AE135, FIND(\"/\", AE135)+1)+1)+1)+1) - 1\n        )\n    ),\n    \"\")\n)","v":""},null,null,null,null,null,null,null,null,null,null,null,null,null,null,null,null,null,"ZWO"]
[null,null,null,null,null,null,null,null,null,null,null,null,null,null,{"$f":"VLOOKUP(N136,Tabel10[[korte omschrijving]:[MCC3_CODE]],2,0)","v":{"$error":"#N/A"}},{"$f":"VLOOKUP(N136,Tabel10[],3,0)","v":{"$error":"#N/A"}},null,null,null,null,null,null,null,null,null,null,null,{"$error":"#DIV/0!"},{"$f":"T136*Y136","v":0},{"$f":"T136*AA136","v":0},null,"","","","","","","","","","",null,null,null,null,null,null,null,null,null,null,null,null,null,null,null,null,null,"ZWO"]
[null,null,null,null,null,null,null,null,null,null,null,null,null,null,{"$f":"VLOOKUP(N137,Tabel10[[korte omschrijving]:[MCC3_CODE]],2,0)","v":{"$error":"#N/A"}},{"$f":"VLOOKUP(N137,Tabel10[],3,0)","v":{"$error":"#N/A"}},null,null,null,null,null,null,null,null,null,null,null,{"$error":"#DIV/0!"},0,0,null,"","","","","","","","","","",null,null,null,null,null,null,null,null,null,null,null,null,null,null,null,null,null,"ZWO"]
[null,null,null,null,null,null,null,null,null,null,null,null,null,null,{"$f":"VLOOKUP(N138,Tabel10[[korte omschrijving]:[MCC3_CODE]],2,0)","v":{"$error":"#N/A"}},{"$f":"VLOOKUP(N138,Tabel10[],3,0)","v":{"$error":"#N/A"}},null,null,null,null,{"$f":"SUM(T138:T143)","v":0},null,null,null,null,null,null,{"$error":"#DIV/0!"},0,0,null,"","","","","","","","","","",null,null,null,null,null,null,null,null,null,null,null,null,null,null,null,null,null,"ZWO"]
[null,null,null,null,null,null,null,null,null,null,null,null,null,null,{"$f":"VLOOKUP(N139,Tabel10[[korte omschrijving]:[MCC3_CODE]],2,0)","v":{"$error":"#N/A"}},{"$f":"VLOOKUP(N139,Tabel10[],3,0)","v":{"$error":"#N/A"}},null,null,null,null,null,null,null,null,null,null,null,{"$error":"#DIV/0!"},0,0,null,"","","","","","","","","","",null,null,null,null,null,null,null,null,null,null,null,null,null,null,null,null,null,"ZWO"]
[null,null,null,null,null,null,null,null,null,null,null,null,null,null,{"$f":"VLOOKUP(N140,Tabel10[[korte omschrijving]:[MCC3_CODE]],2,0)","v":{"$error":"#N/A"}},{"$f":"VLOOKUP(N140,Tabel10[],3,0)","v":{"$error":"#N/A"}},null,null,null,null,null,null,null,null,null,null,null,{"$error":"#DIV/0!"},0,0,null,"","","","","","","","","","",null,null,null,null,null,null,null,null,null,null,null,null,null,null,null,null,null,"ZWO"]
[null,null,null,null,null,null,null,null,null,null,null,null,null,null,{"$f":"VLOOKUP(N141,Tabel10[[korte omschrijving]:[MCC3_CODE]],2,0)","v":{"$error":"#N/A"}},{"$f":"VLOOKUP(N141,Tabel10[],3,0)","v":{"$error":"#N/A"}},null,null,null,null,null,null,null,null,null,null,null,{"$error":"#DIV/0!"},0,0,null,"","","","","","","","","","",null,null,null,null,null,null,null,null,null,null,null,null,null,null,null,null,null,"ZWO"]
[null,null,null,null,null,null,null,null,null,null,null,null,null,null,{"$f":"VLOOKUP(N142,Tabel10[[korte omschrijving]:[MCC3_CODE]],2,0)","v":{"$error":"#N/A"}},{"$f":"VLOOKUP(N142,Tabel10[],3,0)","v":{"$error":"#N/A"}},null,null,null,null,null,null,null,null,null,null,null,{"$error":"#DIV/0!"},0,0,null,"","","","","","","","","","",null,null,null,null,null,null,null,null,null,null,null,null,null,null,null,null,null,"ZWO"]
[null,null,null,null,null,null,null,null,null,null,null,null,null,null,{"$f":"VLOOKUP(N143,Tabel10[[korte omschrijving]:[MCC3_CODE]],2,0)","v":{"$error":"#N/A"}},{"$f":"VLOOKUP(N143,Tabel10[],3,0)","v":{"$error":"#N/A"}},null,null,null,null,null,null,null,null,null,null,null,{"$error":"#DIV/0!"},0,0,null,"","","","","","","","","","",null,null,null,null,null,null,null,null,null,null,null,null,null,null,null,null,null,"ZWO"]
[null,null,null,null,null,null,null,null,null,null,null,null,null,null,{"$f":"VLOOKUP(N144,Tabel10[[korte omschrijving]:[MCC3_CODE]],2,0)","v":{"$error":"#N/A"}},{"$f":"VLOOKUP(N144,Tabel10[],3,0)","v":{"$error":"#N/A"}},null,null,null,null,{"$f":"SUM(T144:T149)","v":0},null,null,null,null,null,null,{"$error":"#DIV/0!"},0,0,null,"","","","","","","","","","",null,null,null,null,null,null,null,null,null,null,null,null,null,null,null,null,null,"ZWO"]
[null,null,null,null,null,null,null,null,null,null,null,null,null,null,{"$f":"VLOOKUP(N145,Tabel10[[korte omschrijving]:[MCC3_CODE]],2,0)","v":{"$error":"#N/A"}},{"$f":"VLOOKUP(N145,Tabel10[],3,0)","v":{"$error":"#N/A"}},null,null,null,null,null,null,null,null,null,null,null,{"$error":"#DIV/0!"},0,0,null,"","","","","","","","","","",null,null,null,null,null,null,null,null,null,null,null,null,null,null,null,null,null,"ZWO"]
[null,null,null,null,null,null,null,null,null,null,null,null,null,null,{"$f":"VLOOKUP(N146,Tabel10[[korte omschrijving]:[MCC3_CODE]],2,0)","v":{"$error":"#N/A"}},{"$f":"VLOOKUP(N146,Tabel10[],3,0)","v":{"$error":"#N/A"}},null,null,null,null,null,null,null,null,null,null,null,{"$error":"#DIV/0!"},0,0,null,"","","","","","","","","","",null,null,null,null,null,null,null,null,null,null,null,null,null,null,null,null,null,"ZWO"]
[null,null,null,null,null,null,null,null,null,null,null,null,null,null,{"$f":"VLOOKUP(N147,Tabel10[[korte omschrijving]:[MCC3_CODE]],2,0)","v":{"$error":"#N/A"}},{"$f":"VLOOKUP(N147,Tabel10[],3,0)","v":{"$error":"#N/A"}},null,null,null,null,null,null,null,null,null,null,null,{"$error":"#DIV/0!"},0,0,null,"","","","","","","","","","",null,null,null,null,null,null,null,null,null,null,null,null,null,null,null,null,null,"ZWO"]
[null,null,null,null,null,null,null,null,null,null,null,null,null,null,{"$f":"VLOOKUP(N148,Tabel10[[korte omschrijving]:[MCC3_CODE]],2,0)","v":{"$error":"#N/A"}},{"$f":"VLOOKUP(N148,Tabel10[],3,0)","v":{"$error":"#N/A"}},null,null,null,null,null,null,null,null,null,null,null,{"$error":"#DIV/0!"},0,0,null,"","","","","","","","","","",null,null,null,null,null,null,null,null,null,null,null,null,null,null,null,null,null,"ZWO"]
[null,null,null,null,null,null,null,null,null,null,null,null,null,null,{"$f":"VLOOKUP(N149,Tabel10[[korte omschrijving]:[MCC3_CODE]],2,0)","v":{"$error":"#N/A"}},{"$f":"VLOOKUP(N149,Tabel10[],3,0)","v":{"$error":"#N/A"}},null,null,null,null,null,null,null,null,null,null,null,{"$error":"#DIV/0!"},0,0,null,"","","","","","","","","","",null,null,null,null,null,null,null,null,null,null,null,null,null,null,null,null,null,"ZWO"]
[null,null,null,null,null,null,null,null,null,null,null,null,null,null,{"$f":"VLOOKUP(N150,Tabel10[[korte omschrijving]:[MCC3_CODE]],2,0)","v":{"$error":"#N/A"}},{"$f":"VLOOKUP(N150,Tabel10[],3,0)","v":{"$error":"#N/A"}},null,null,null,null,{"$f":"SUM(T150:T155)","v":0},null,null,null,null,null,null,{"$error":"#DIV/0!"},0,0,null,"","","","","","","","","","",null,null,null,null,null,null,null,null,null,null,null,null,null,null,null,null,null,"ZWO"]
[null,null,null,null,null,null,null,null,null,null,null,null,null,null,{"$f":"VLOOKUP(N151,Tabel10[[korte omschrijving]:[MCC3_CODE]],2,0)","v":{"$error":"#N/A"}},{"$f":"VLOOKUP(N151,Tabel10[],3,0)","v":{"$error":"#N/A"}},null,null,null,null,null,null,null,null,null,null,null,{"$error":"#DIV/0!"},0,0,null,"","","","","","","","","","",null,null,null,null,null,null,null,null,null,null,null,null,null,null,null,null,null,"ZWO"]
[null,null,null,null,null,null,null,null,null,null,null,null,null,null,{"$f":"VLOOKUP(N152,Tabel10[[korte omschrijving]:[MCC3_CODE]],2,0)","v":{"$error":"#N/A"}},{"$f":"VLOOKUP(N152,Tabel10[],3,0)","v":{"$error":"#N/A"}},null,null,null,null,null,null,null,null,null,null,null,{"$error":"#DIV/0!"},0,0,null,"","","","","","","","","","",null,null,null,null,null,null,null,null,null,null,null,null,null,null,null,null,null,"ZWO"]
[null,null,null,null,null,null,null,null,null,null,null,null,null,null,{"$f":"VLOOKUP(N153,Tabel10[[korte omschrijving]:[MCC3_CODE]],2,0)","v":{"$error":"#N/A"}},{"$f":"VLOOKUP(N153,Tabel10[],3,0)","v":{"$error":"#N/A"}},null,null,null,null,null,null,null,null,null,null,null,{"$error":"#DIV/0!"},0,0,null,"","","","","","","","","","",null,null,null,null,null,null,null,null,null,null,null,null,null,null,null,null,null,"ZWO"]
[null,null,null,null,null,null,null,null,null,null,null,null,null,null,{"$f":"VLOOKUP(N154,Tabel10[[korte omschrijving]:[MCC3_CODE]],2,0)","v":{"$error":"#N/A"}},{"$f":"VLOOKUP(N154,Tabel10[],3,0)","v":{"$error":"#N/A"}},null,null,null,null,null,null,null,null,null,null,null,{"$error":"#DIV/0!"},0,0,null,"","","","","","","","","","",null,null,null,null,null,null,null,null,null,null,null,null,null,null,null,null,null,"ZWO"]
[null,null,null,null,null,null,null,null,null,null,null,null,null,null,{"$f":"VLOOKUP(N155,Tabel10[[korte omschrijving]:[MCC3_CODE]],2,0)","v":{"$error":"#N/A"}},{"$f":"VLOOKUP(N155,Tabel10[],3,0)","v":{"$error":"#N/A"}},null,null,null,null,null,null,null,null,null,null,null,{"$error":"#DIV/0!"},0,0,null,"","","","","","","","","","",null,null,null,null,null,null,null,null,null,null,null,null,null,null,null,null,null,"ZWO"]
[null,null,null,null,null,null,null,null,null,null,null,null,null,null,{"$f":"VLOOKUP(N156,Tabel10[[korte omschrijving]:[MCC3_CODE]],2,0)","v":{"$error":"#N/A"}},{"$f":"VLOOKUP(N156,Tabel10[],3,0)","v":{"$error":"#N/A"}},null,null,null,null,{"$f":"SUM(T156:T161)","v":0},null,null,null,null,null,null,{"$error":"#DIV/0!"},0,0,null,"","","","","","","","","","",null,null,null,null,null,null,null,null,null,null,null,null,null,null,null,null,null,"ZWO"]
[null,null,null,null,null,null,null,null,null,null,null,null,null,null,{"$f":"VLOOKUP(N157,Tabel10[[korte omschrijving]:[MCC3_CODE]],2,0)","v":{"$error":"#N/A"}},{"$f":"VLOOKUP(N157,Tabel10[],3,0)","v":{"$error":"#N/A"}},null,null,null,null,null,null,null,null,null,null,null,{"$error":"#DIV/0!"},0,0,null,"","","","","","","","","","",null,null,null,null,null,null,null,null,null,null,null,null,null,null,null,null,null,"ZWO"]
[null,null,null,null,null,null,null,null,null,null,null,null,null,null,{"$f":"VLOOKUP(N158,Tabel10[[korte omschrijving]:[MCC3_CODE]],2,0)","v":{"$error":"#N/A"}},{"$f":"VLOOKUP(N158,Tabel10[],3,0)","v":{"$error":"#N/A"}},null,null,null,null,null,null,null,null,null,null,null,{"$error":"#DIV/0!"},0,0,null,"","","","","","","","","","",null,null,null,null,null,null,null,null,null,null,null,null,null,null,null,null,null,"ZWO"]
[null,null,null,null,null,null,null,null,null,null,null,null,null,null,{"$f":"VLOOKUP(N159,Tabel10[[korte omschrijving]:[MCC3_CODE]],2,0)","v":{"$error":"#N/A"}},{"$f":"VLOOKUP(N159,Tabel10[],3,0)","v":{"$error":"#N/A"}},null,null,null,null,null,null,null,null,null,null,null,{"$error":"#DIV/0!"},0,0,null,"","","","","","","","","","",null,null,null,null,null,null,null,null,null,null,null,null,null,null,null,null,null,"ZWO"]
[null,null,null,null,null,null,null,null,null,null,null,null,null,null,{"$f":"VLOOKUP(N160,Tabel10[[korte omschrijving]:[MCC3_CODE]],2,0)","v":{"$error":"#N/A"}},{"$f":"VLOOKUP(N160,Tabel10[],3,0)","v":{"$error":"#N/A"}},null,null,null,null,null,null,null,null,null,null,null,{"$error":"#DIV/0!"},0,0,null,"","","","","","","","","","",null,null,null,null,null,null,null,null,null,null,null,null,null,null,null,null,null,"ZWO"]
[null,null,null,null,null,null,null,null,null,null,null,null,null,null,{"$f":"VLOOKUP(N161,Tabel10[[korte omschrijving]:[MCC3_CODE]],2,0)","v":{"$error":"#N/A"}},{"$f":"VLOOKUP(N161,Tabel10[],3,0)","v":{"$error":"#N/A"}},null,null,null,null,null,null,null,null,null,null,null,{"$error":"#DIV/0!"},0,0,null,"","","","","","","","","","",null,null,null,null,null,null,null,null,null,null,null,null,null,null,null,null,null,"ZWO"]
[null,null,null,null,null,null,null,null,null,null,null,null,null,null,{"$f":"VLOOKUP(N162,Tabel10[[korte omschrijving]:[MCC3_CODE]],2,0)","v":{"$error":"#N/A"}},{"$f":"VLOOKUP(N162,Tabel10[],3,0)","v":{"$error":"#N/A"}},null,null,null,null,{"$f":"SUM(T162:T167)","v":0},null,null,null,null,null,null,{"$error":"#DIV/0!"},0,0,null,"","","","","","","","","","",null,null,null,null,null,null,null,null,null,null,null,null,null,null,null,null,null,"ZWO"]
[null,null,null,null,null,null,null,null,null,null,null,null,null,null,{"$f":"VLOOKUP(N163,Tabel10[[korte omschrijving]:[MCC3_CODE]],2,0)","v":{"$error":"#N/A"}},{"$f":"VLOOKUP(N163,Tabel10[],3,0)","v":{"$error":"#N/A"}},null,null,null,null,null,null,null,null,null,null,null,{"$error":"#DIV/0!"},0,0,null,"","","","","","","","","","",null,null,null,null,null,null,null,null,null,null,null,null,null,null,null,null,null,"ZWO"]
[null,null,null,null,null,null,null,null,null,null,null,null,null,null,{"$f":"VLOOKUP(N164,Tabel10[[korte omschrijving]:[MCC3_CODE]],2,0)","v":{"$error":"#N/A"}},{"$f":"VLOOKUP(N164,Tabel10[],3,0)","v":{"$error":"#N/A"}},null,null,null,null,null,null,null,null,null,null,null,{"$error":"#DIV/0!"},0,0,null,"","","","","","","","","","",null,null,null,null,null,null,null,null,null,null,null,null,null,null,null,null,null,"ZWO"]
[null,null,null,null,null,null,null,null,null,null,null,null,null,null,{"$f":"VLOOKUP(N165,Tabel10[[korte omschrijving]:[MCC3_CODE]],2,0)","v":{"$error":"#N/A"}},{"$f":"VLOOKUP(N165,Tabel10[],3,0)","v":{"$error":"#N/A"}},null,null,null,null,null,null,null,null,null,null,null,{"$error":"#DIV/0!"},0,0,null,"","","","","","","","","","",null,null,null,null,null,null,null,null,null,null,null,null,null,null,null,null,null,"ZWO"]
[null,null,null,null,null,null,null,null,null,null,null,null,null,null,{"$f":"VLOOKUP(N166,Tabel10[[korte omschrijving]:[MCC3_CODE]],2,0)","v":{"$error":"#N/A"}},{"$f":"VLOOKUP(N166,Tabel10[],3,0)","v":{"$error":"#N/A"}},null,null,null,null,null,null,null,null,null,null,null,{"$error":"#DIV/0!"},0,0,null,"","","","","","","","","","",null,null,null,null,null,null,null,null,null,null,null,null,null,null,null,null,null,"ZWO"]
[null,null,null,null,null,null,null,null,null,null,null,null,null,null,{"$f":"VLOOKUP(N167,Tabel10[[korte omschrijving]:[MCC3_CODE]],2,0)","v":{"$error":"#N/A"}},{"$f":"VLOOKUP(N167,Tabel10[],3,0)","v":{"$error":"#N/A"}},null,null,null,null,null,null,null,null,null,null,null,{"$error":"#DIV/0!"},0,0,null,"","","","","","","","","","",null,null,null,null,null,null,null,null,null,null,null,null,null,null,null,null,null,"ZWO"]
[null,null,null,null,null,null,null,null,null,null,null,null,null,null,{"$f":"VLOOKUP(N168,Tabel10[[korte omschrijving]:[MCC3_CODE]],2,0)","v":{"$error":"#N/A"}},{"$f":"VLOOKUP(N168,Tabel10[],3,0)","v":{"$error":"#N/A"}},null,null,null,null,{"$f":"SUM(T168:T173)","v":0},null,null,null,null,null,null,{"$error":"#DIV/0!"},0,0,null,"","","","","","","","","","",null,null,null,null,null,null,null,null,null,null,null,null,null,null,null,null,null,"ZWO"]
[null,null,null,null,null,null,null,null,null,null,null,null,null,null,{"$f":"VLOOKUP(N169,Tabel10[[korte omschrijving]:[MCC3_CODE]],2,0)","v":{"$error":"#N/A"}},{"$f":"VLOOKUP(N169,Tabel10[],3,0)","v":{"$error":"#N/A"}},null,null,null,null,null,null,null,null,null,null,null,{"$error":"#DIV/0!"},0,0,null,"","","","","","","","","","",null,null,null,null,null,null,null,null,null,null,null,null,null,null,null,null,null,"ZWO"]
[null,null,null,null,null,null,null,null,null,null,null,null,null,null,{"$f":"VLOOKUP(N170,Tabel10[[korte omschrijving]:[MCC3_CODE]],2,0)","v":{"$error":"#N/A"}},{"$f":"VLOOKUP(N170,Tabel10[],3,0)","v":{"$error":"#N/A"}},null,null,null,null,null,null,null,null,null,null,null,{"$error":"#DIV/0!"},0,0,null,"","","","","","","","","","",null,null,null,null,null,null,null,null,null,null,null,null,null,null,null,null,null,"ZWO"]
[null,null,null,null,null,null,null,null,null,null,null,null,null,null,{"$f":"VLOOKUP(N171,Tabel10[[korte omschrijving]:[MCC3_CODE]],2,0)","v":{"$error":"#N/A"}},{"$f":"VLOOKUP(N171,Tabel10[],3,0)","v":{"$error":"#N/A"}},null,null,null,null,null,null,null,null,null,null,null,{"$error":"#DIV/0!"},0,0,null,"","","","","","","","","","",null,null,null,null,null,null,null,null,null,null,null,null,null,null,null,null,null,"ZWO"]
[null,null,null,null,null,null,null,null,null,null,null,null,null,null,{"$f":"VLOOKUP(N172,Tabel10[[korte omschrijving]:[MCC3_CODE]],2,0)","v":{"$error":"#N/A"}},{"$f":"VLOOKUP(N172,Tabel10[],3,0)","v":{"$error":"#N/A"}},null,null,null,null,null,null,null,null,null,null,null,{"$error":"#DIV/0!"},0,0,null,"","","","","","","","","","",null,null,null,null,null,null,null,null,null,null,null,null,null,null,null,null,null,"ZWO"]
[null,null,null,null,null,null,null,null,null,null,null,null,null,null,{"$f":"VLOOKUP(N173,Tabel10[[korte omschrijving]:[MCC3_CODE]],2,0)","v":{"$error":"#N/A"}},{"$f":"VLOOKUP(N173,Tabel10[],3,0)","v":{"$error":"#N/A"}},null,null,null,null,null,null,null,null,null,null,null,{"$error":"#DIV/0!"},0,0,null,"","","","","","","","","","",null,null,null,null,null,null,null,null,null,null,null,null,null,null,null,null,null,"ZWO"]
[null,null,null,null,null,null,null,null,null,null,null,null,null,null,{"$f":"VLOOKUP(N174,Tabel10[[korte omschrijving]:[MCC3_CODE]],2,0)","v":{"$error":"#N/A"}},{"$f":"VLOOKUP(N174,Tabel10[],3,0)","v":{"$error":"#N/A"}},null,null,null,null,{"$f":"SUM(T174:T179)","v":0},null,null,null,null,null,null,{"$error":"#DIV/0!"},0,0,null,"","","","","","","","","","",null,null,null,null,null,null,null,null,null,null,null,null,null,null,null,null,null,"ZWO"]
[null,null,null,null,null,null,null,null,null,null,null,null,null,null,{"$f":"VLOOKUP(N175,Tabel10[[korte omschrijving]:[MCC3_CODE]],2,0)","v":{"$error":"#N/A"}},{"$f":"VLOOKUP(N175,Tabel10[],3,0)","v":{"$error":"#N/A"}},null,null,null,null,null,null,null,null,null,null,null,{"$error":"#DIV/0!"},0,0,null,"","","","","","","","","","",null,null,null,null,null,null,null,null,null,null,null,null,null,null,null,null,null,"ZWO"]
[null,null,null,null,null,null,null,null,null,null,null,null,null,null,{"$f":"VLOOKUP(N176,Tabel10[[korte omschrijving]:[MCC3_CODE]],2,0)","v":{"$error":"#N/A"}},{"$f":"VLOOKUP(N176,Tabel10[],3,0)","v":{"$error":"#N/A"}},null,null,null,null,null,null,null,null,null,null,null,{"$error":"#DIV/0!"},0,0,null,"","","","","","","","","","",null,null,null,null,null,null,null,null,null,null,null,null,null,null,null,null,null,"ZWO"]
[null,null,null,null,null,null,null,null,null,null,null,null,null,null,{"$f":"VLOOKUP(N177,Tabel10[[korte omschrijving]:[MCC3_CODE]],2,0)","v":{"$error":"#N/A"}},{"$f":"VLOOKUP(N177,Tabel10[],3,0)","v":{"$error":"#N/A"}},null,null,null,null,null,null,null,null,null,null,null,{"$error":"#DIV/0!"},0,0,null,"","","","","","","","","","",null,null,null,null,null,null,null,null,null,null,null,null,null,null,null,null,null,"ZWO"]
[null,null,null,null,null,null,null,null,null,null,null,null,null,null,{"$f":"VLOOKUP(N178,Tabel10[[korte omschrijving]:[MCC3_CODE]],2,0)","v":{"$error":"#N/A"}},{"$f":"VLOOKUP(N178,Tabel10[],3,0)","v":{"$error":"#N/A"}},null,null,null,null,null,null,null,null,null,null,null,{"$error":"#DIV/0!"},0,0,null,"","","","","","","","","","",null,null,null,null,null,null,null,null,null,null,null,null,null,null,null,null,null,"ZWO"]
[null,null,null,null,null,null,null,null,null,null,null,null,null,null,{"$f":"VLOOKUP(N179,Tabel10[[korte omschrijving]:[MCC3_CODE]],2,0)","v":{"$error":"#N/A"}},{"$f":"VLOOKUP(N179,Tabel10[],3,0)","v":{"$error":"#N/A"}},null,null,null,null,null,null,null,null,null,null,null,{"$error":"#DIV/0!"},0,0,null,"","","","","","","","","","",null,null,null,null,null,null,null,null,null,null,null,null,null,null,null,null,null,"ZWO"]
[null,null,null,null,null,null,null,null,null,null,null,null,null,null,{"$f":"VLOOKUP(N180,Tabel10[[korte omschrijving]:[MCC3_CODE]],2,0)","v":{"$error":"#N/A"}},{"$f":"VLOOKUP(N180,Tabel10[],3,0)","v":{"$error":"#N/A"}},null,null,null,null,{"$f":"SUM(T180:T185)","v":0},null,null,null,null,null,null,{"$error":"#DIV/0!"},0,0,null,"","","","","","","","","","",null,null,null,null,null,null,null,null,null,null,null,null,null,null,null,null,null,"ZWO"]
[null,null,null,null,null,null,null,null,null,null,null,null,null,null,{"$f":"VLOOKUP(N181,Tabel10[[korte omschrijving]:[MCC3_CODE]],2,0)","v":{"$error":"#N/A"}},{"$f":"VLOOKUP(N181,Tabel10[],3,0)","v":{"$error":"#N/A"}},null,null,null,null,null,null,null,null,null,null,null,{"$error":"#DIV/0!"},0,0,null,"","","","","","","","","","",null,null,null,null,null,null,null,null,null,null,null,null,null,null,null,null,null,"ZWO"]
[null,null,null,null,null,null,null,null,null,null,null,null,null,null,{"$f":"VLOOKUP(N182,Tabel10[[korte omschrijving]:[MCC3_CODE]],2,0)","v":{"$error":"#N/A"}},{"$f":"VLOOKUP(N182,Tabel10[],3,0)","v":{"$error":"#N/A"}},null,null,null,null,null,null,null,null,null,null,null,{"$error":"#DIV/0!"},0,0,null,"","","","","","","","","","",null,null,null,null,null,null,null,null,null,null,null,null,null,null,null,null,null,"ZWO"]
[null,null,null,null,null,null,null,null,null,null,null,null,null,null,{"$f":"VLOOKUP(N183,Tabel10[[korte omschrijving]:[MCC3_CODE]],2,0)","v":{"$error":"#N/A"}},{"$f":"VLOOKUP(N183,Tabel10[],3,0)","v":{"$error":"#N/A"}},null,null,null,null,null,null,null,null,null,null,null,{"$error":"#DIV/0!"},0,0,null,"","","","","","","","","","",null,null,null,null,null,null,null,null,null,null,null,null,null,null,null,null,null,"ZWO"]
[null,null,null,null,null,null,null,null,null,null,null,null,null,null,{"$f":"VLOOKUP(N184,Tabel10[[korte omschrijving]:[MCC3_CODE]],2,0)","v":{"$error":"#N/A"}},{"$f":"VLOOKUP(N184,Tabel10[],3,0)","v":{"$error":"#N/A"}},null,null,null,null,null,null,null,null,null,null,null,{"$error":"#DIV/0!"},0,0,null,"","","","","","","","","","",null,null,null,null,null,null,null,null,null,null,null,null,null,null,null,null,null,"ZWO"]
[null,null,null,null,null,null,null,null,null,null,null,null,null,null,{"$f":"VLOOKUP(N185,Tabel10[[korte omschrijving]:[MCC3_CODE]],2,0)","v":{"$error":"#N/A"}},{"$f":"VLOOKUP(N185,Tabel10[],3,0)","v":{"$error":"#N/A"}},null,null,null,null,null,null,null,null,null,null,null,{"$error":"#DIV/0!"},0,0,null,"","","","","","","","","","",null,null,null,null,null,null,null,null,null,null,null,null,null,null,null,null,null,"ZWO"]
[null,null,null,null,null,null,null,null,null,null,null,null,null,null,{"$f":"VLOOKUP(N186,Tabel10[[korte omschrijving]:[MCC3_CODE]],2,0)","v":{"$error":"#N/A"}},{"$f":"VLOOKUP(N186,Tabel10[],3,0)","v":{"$error":"#N/A"}},null,null,null,null,{"$f":"SUM(T186:T191)","v":0},null,null,null,null,null,null,{"$error":"#DIV/0!"},0,0,null,"","","","","","","","","","",null,null,null,null,null,null,null,null,null,null,null,null,null,null,null,null,null,"ZWO"]
[null,null,null,null,null,null,null,null,null,null,null,null,null,null,{"$f":"VLOOKUP(N187,Tabel10[[korte omschrijving]:[MCC3_CODE]],2,0)","v":{"$error":"#N/A"}},{"$f":"VLOOKUP(N187,Tabel10[],3,0)","v":{"$error":"#N/A"}},null,null,null,null,null,null,null,null,null,null,null,{"$error":"#DIV/0!"},0,0,null,"","","","","","","","","","",null,null,null,null,null,null,null,null,null,null,null,null,null,null,null,null,null,"ZWO"]
[null,null,null,null,null,null,null,null,null,null,null,null,null,null,{"$f":"VLOOKUP(N188,Tabel10[[korte omschrijving]:[MCC3_CODE]],2,0)","v":{"$error":"#N/A"}},{"$f":"VLOOKUP(N188,Tabel10[],3,0)","v":{"$error":"#N/A"}},null,null,null,null,null,null,null,null,null,null,null,{"$error":"#DIV/0!"},0,0,null,"","","","","","","","","","",null,null,null,null,null,null,null,null,null,null,null,null,null,null,null,null,null,"ZWO"]
[null,null,null,null,null,null,null,null,null,null,null,null,null,null,{"$f":"VLOOKUP(N189,Tabel10[[korte omschrijving]:[MCC3_CODE]],2,0)","v":{"$error":"#N/A"}},{"$f":"VLOOKUP(N189,Tabel10[],3,0)","v":{"$error":"#N/A"}},null,null,null,null,null,null,null,null,null,null,null,{"$error":"#DIV/0!"},0,0,null,"","","","","","","","","","",null,null,null,null,null,null,null,null,null,null,null,null,null,null,null,null,null,"ZWO"]
[null,null,null,null,null,null,null,null,null,null,null,null,null,null,{"$f":"VLOOKUP(N190,Tabel10[[korte omschrijving]:[MCC3_CODE]],2,0)","v":{"$error":"#N/A"}},{"$f":"VLOOKUP(N190,Tabel10[],3,0)","v":{"$error":"#N/A"}},null,null,null,null,null,null,null,null,null,null,null,{"$error":"#DIV/0!"},0,0,null,"","","","","","","","","","",null,null,null,null,null,null,null,null,null,null,null,null,null,null,null,null,null,"ZWO"]
[null,null,null,null,null,null,null,null,null,null,null,null,null,null,{"$f":"VLOOKUP(N191,Tabel10[[korte omschrijving]:[MCC3_CODE]],2,0)","v":{"$error":"#N/A"}},{"$f":"VLOOKUP(N191,Tabel10[],3,0)","v":{"$error":"#N/A"}},null,null,null,null,null,null,null,null,null,null,null,{"$error":"#DIV/0!"},0,0,null,"","","","","","","","","","",null,null,null,null,null,null,null,null,null,null,null,null,null,null,null,null,null,"ZWO"]
[null,null,null,null,null,null,null,null,null,null,null,null,null,null,{"$f":"VLOOKUP(N192,Tabel10[[korte omschrijving]:[MCC3_CODE]],2,0)","v":{"$error":"#N/A"}},{"$f":"VLOOKUP(N192,Tabel10[],3,0)","v":{"$error":"#N/A"}},null,null,null,null,{"$f":"SUM(T192:T197)","v":0},null,null,null,null,null,null,{"$error":"#DIV/0!"},0,0,null,"","","","","","","","","","",null,null,null,null,null,null,null,null,null,null,null,null,null,null,null,null,null,"ZWO"]
[null,null,null,null,null,null,null,null,null,null,null,null,null,null,{"$f":"VLOOKUP(N193,Tabel10[[korte omschrijving]:[MCC3_CODE]],2,0)","v":{"$error":"#N/A"}},{"$f":"VLOOKUP(N193,Tabel10[],3,0)","v":{"$error":"#N/A"}},null,null,null,null,null,null,null,null,null,null,null,{"$error":"#DIV/0!"},0,0,null,"","","","","","","","","","",null,null,null,null,null,null,null,null,null,null,null,null,null,null,null,null,null,"ZWO"]
[null,null,null,null,null,null,null,null,null,null,null,null,null,null,{"$f":"VLOOKUP(N194,Tabel10[[korte omschrijving]:[MCC3_CODE]],2,0)","v":{"$error":"#N/A"}},{"$f":"VLOOKUP(N194,Tabel10[],3,0)","v":{"$error":"#N/A"}},null,null,null,null,null,null,null,null,null,null,null,{"$error":"#DIV/0!"},0,0,null,"","","","","","","","","","",null,null,null,null,null,null,null,null,null,null,null,null,null,null,null,null,null,"ZWO"]
[null,null,null,null,null,null,null,null,null,null,null,null,null,null,{"$f":"VLOOKUP(N195,Tabel10[[korte omschrijving]:[MCC3_CODE]],2,0)","v":{"$error":"#N/A"}},{"$f":"VLOOKUP(N195,Tabel10[],3,0)","v":{"$error":"#N/A"}},null,null,null,null,null,null,null,null,null,null,null,{"$error":"#DIV/0!"},0,0,null,"","","","","","","","","","",null,null,null,null,null,null,null,null,null,null,null,null,null,null,null,null,null,"ZWO"]
[null,null,null,null,null,null,null,null,null,null,null,null,null,null,{"$f":"VLOOKUP(N196,Tabel10[[korte omschrijving]:[MCC3_CODE]],2,0)","v":{"$error":"#N/A"}},{"$f":"VLOOKUP(N196,Tabel10[],3,0)","v":{"$error":"#N/A"}},null,null,null,null,null,null,null,null,null,null,null,{"$error":"#DIV/0!"},0,0,null,"","","","","","","","","","",null,null,null,null,null,null,null,null,null,null,null,null,null,null,null,null,null,"ZWO"]
[null,null,null,null,null,null,null,null,null,null,null,null,null,null,{"$f":"VLOOKUP(N197,Tabel10[[korte omschrijving]:[MCC3_CODE]],2,0)","v":{"$error":"#N/A"}},{"$f":"VLOOKUP(N197,Tabel10[],3,0)","v":{"$error":"#N/A"}},null,null,null,null,null,null,null,null,null,null,null,{"$error":"#DIV/0!"},0,0,null,"","","","","","","","","","",null,null,null,null,null,null,null,null,null,null,null,null,null,null,null,null,null,"ZWO"]
[null,null,null,null,null,null,null,null,null,null,null,null,null,null,{"$f":"VLOOKUP(N198,Tabel10[[korte omschrijving]:[MCC3_CODE]],2,0)","v":{"$error":"#N/A"}},{"$f":"VLOOKUP(N198,Tabel10[],3,0)","v":{"$error":"#N/A"}},null,null,null,null,{"$f":"SUM(T198:T203)","v":0},null,null,null,null,null,null,{"$error":"#DIV/0!"},0,0,null,"","","","","","","","","","",null,null,null,null,null,null,null,null,null,null,null,null,null,null,null,null,null,"ZWO"]
[null,null,null,null,null,null,null,null,null,null,null,null,null,null,{"$f":"VLOOKUP(N199,Tabel10[[korte omschrijving]:[MCC3_CODE]],2,0)","v":{"$error":"#N/A"}},{"$f":"VLOOKUP(N199,Tabel10[],3,0)","v":{"$error":"#N/A"}},null,null,null,null,null,null,null,null,null,null,null,{"$f":"AA199/Y199","v":{"$error":"#DIV/0!"}},0,0,null,{"$f":"IF(AE199 <> \"\",\n    IF(ISNUMBER(VALUE(LEFT(AE199, FIND(\"%\", AE199)-1))),\n        VALUE(LEFT(AE199, FIND(\"%\", AE199)-1)),\n        \"Invalid format\"),\n    \"\")","v":""},{"$f":"IF(AE199 <> \"\",\n    IF(ISNUMBER(VALUE(LEFT(AE199, FIND(\"%\", AE199)-1))) * ISNUMBER(FIND(\"%\", AE199 & \"wol\")) > 0,\n        TRIM(MID(AE199, FIND(\"%\", AE199)+1, FIND(\"/\", AE199 & \"/\")-FIND(\"%\", AE199)-1)),\n        \"Invalid format\"),\n    \"\")","v":""},{"$f":"IF(AE199 <> \"\",\n    IF(ISNUMBER(VALUE(MID(AE199, FIND(\"/\", AE199) + 1, FIND(\"%\", AE199, FIND(\"/\", AE199)) - FIND(\"/\", AE199) - 1))),\n        VALUE(MID(AE199, FIND(\"/\", AE199) + 1, FIND(\"%\", AE199, FIND(\"/\", AE199)) - FIND(\"/\", AE199) - 1)),\n        \"\"),\n    \"\")","v":""},{"$f":"IF(AE199 <> \"\",\n    IFERROR(TRIM(MID(AE199, FIND(\"%\", AE199, FIND(\"/\", AE199)+1)+2,\n        IFERROR(FIND(\"/\", AE199 & \"/\", FIND(\"/\", AE199)+1)-FIND(\"%\", AE199, FIND(\"/\", AE199)+1)-2, LEN(AE199)-FIND(\"%\", AE199, FIND(\"/\", AE199)+1)-1))),\n        \"\"),\n    \"\")","v":""},{"$f":"IF(AE199 <> \"\",\n    IF(ISNUMBER(VALUE(MID(AE199, FIND(\"/\", AE199, FIND(\"/\", AE199)+1) + 1, FIND(\"%\", AE199, FIND(\"/\", AE199, FIND(\"/\", AE199)+1)) - FIND(\"/\", AE199, FIND(\"/\", AE199)+1) - 1))),\n        VALUE(MID(AE199, FIND(\"/\", AE199, FIND(\"/\", AE199)+1) + 1, FIND(\"%\", AE199, FIND(\"/\", AE199, FIND(\"/\", AE199)+1)) - FIND(\"/\", AE199, FIND(\"/\", AE199)+1) - 1)),\n        \"\"),\n    \"\")","v":""},{"$f":"IF(AE199 <> \"\",\n    IFERROR(\n        TRIM(MID(AE199,\n            FIND(\"%\", AE199, FIND(\"%\", AE199, FIND(\"%\", AE199)+1)+1)+1,\n            FIND(\"/\", AE199 & \"/\", FIND(\"%\", AE199, FIND(\"%\", AE199, FIND(\"%\", AE199)+1)+1))-FIND(\"%\", AE199, FIND(\"%\", AE199, FIND(\"%\", AE199)+1)+1)-1)\n        ),\n        \"\"\n    ),\n    \"\"\n)","v":""},{"$f":"IF(AE199 <> \"\",\n    IF(ISNUMBER(VALUE(MID(AE199, FIND(\"/\", AE199, FIND(\"/\", AE199, FIND(\"/\", AE199)+1)+1) + 1, FIND(\"%\", AE199, FIND(\"/\", AE199, FIND(\"/\", AE199, FIND(\"/\", AE199)+1)+1)) - FIND(\"/\", AE199, FIND(\"/\", AE199, FIND(\"/\", AE199)+1)+1) - 1))),\n        VALUE(MID(AE199, FIND(\"/\", AE199, FIND(\"/\", AE199, FIND(\"/\", AE199)+1)+1) + 1, FIND(\"%\", AE199, FIND(\"/\", AE199, FIND(\"/\", AE199, FIND(\"/\", AE199)+1)+1)) - FIND(\"/\", AE199, FIND(\"/\", AE199, FIND(\"/\", AE199)+1)+1) - 1)),\n        \"\"),\n    \"\")","v":""},{"$f":"IF(AE199 <> \"\",\n    IFERROR(TRIM(MID(AE199, FIND(\"%\", AE199, FIND(\"/\", AE199, FIND(\"/\", AE199, FIND(\"/\", AE199)+1)+1)+1)+2,\n        IFERROR(FIND(\"/\", AE199, FIND(\"/\", AE199, FIND(\"/\", AE199, FIND(\"/\", AE199)+1)+1)+1)-FIND(\"%\", AE199, FIND(\"/\", AE199, FIND(\"/\", AE199, FIND(\"/\", AE199)+1)+1)+1)-2, LEN(AE199)-FIND(\"%\", AE199, FIND(\"/\", AE199, FIND(\"/\", AE199, FIND(\"/\", AE199)+1)+1)+1)-1))),\n        \"\"),\n    \"\")","v":""},{"$f":"IF(AE199 <> \"\",\n    IF(ISNUMBER(VALUE(MID(AE199, FIND(\"/\", AE199, FIND(\"/\", AE199, FIND(\"/\", AE199, FIND(\"/\", AE199)+1)+1)+1) + 1, FIND(\"%\", AE199, FIND(\"/\", AE199, FIND(\"/\", AE199, FIND(\"/\", AE199, FIND(\"/\", AE199)+1)+1)+1)) - FIND(\"/\", AE199, FIND(\"/\", AE199, FIND(\"/\", AE199, FIND(\"/\", AE199)+1)+1)+1) - 1))),\n        VALUE(MID(AE199, FIND(\"/\", AE199, FIND(\"/\", AE199, FIND(\"/\", AE199, FIND(\"/\", AE199)+1)+1)+1) + 1, FIND(\"%\", AE199, FIND(\"/\", AE199, FIND(\"/\", AE199, FIND(\"/\", AE199, FIND(\"/\", AE199)+1)+1)+1)) - FIND(\"/\", AE199, FIND(\"/\", AE199, FIND(\"/\", AE199, FIND(\"/\", AE199)+1)+1)+1) - 1)),\n        \"\"),\n    \"\")","v":""},{"$f":"IF(AE199 = \"\", \"\",\n    IFERROR(TRIM(\n        MID(\n            AE199,\n            FIND(\"%\", AE199, FIND(\"/\", AE199, FIND(\"/\", AE199, FIND(\"/\", AE199, FIND(\"/\", AE199)+1)+1)+1)+1) + 1,\n            FIND(\"/\", AE199 & \"/\", FIND(\"%\", AE199, FIND(\"/\", AE199, FIND(\"/\", AE199, FIND(\"/\", AE199, FIND(\"/\", AE199)+1)+1)+1)+1)) -\n            FIND(\"%\", AE199, FIND(\"/\", AE199, FIND(\"/\", AE199, FIND(\"/\", AE199, FIND(\"/\", AE199)+1)+1)+1)+1) - 1\n        )\n    ),\n    \"\")\n)","v":""},null,null,null,null,null,null,null,null,null,null,null,null,null,null,null,null,null,"ZWO"]
[null,null,null,null,null,null,null,null,null,null,null,null,null,null,{"$f":"VLOOKUP(N200,Tabel10[[korte omschrijving]:[MCC3_CODE]],2,0)","v":{"$error":"#N/A"}},{"$f":"VLOOKUP(N200,Tabel10[],3,0)","v":{"$error":"#N/A"}},null,null,null,null,null,null,null,null,null,null,null,{"$error":"#DIV/0!"},{"$f":"T200*Y200","v":0},{"$f":"T200*AA200","v":0},null,"","","","","","","","","","",null,null,null,null,null,null,null,null,null,null,null,null,null,null,null,null,null,"ZWO"]
[null,null,null,null,null,null,null,null,null,null,null,null,null,null,{"$f":"VLOOKUP(N201,Tabel10[[korte omschrijving]:[MCC3_CODE]],2,0)","v":{"$error":"#N/A"}},{"$f":"VLOOKUP(N201,Tabel10[],3,0)","v":{"$error":"#N/A"}},null,null,null,null,null,null,null,null,null,null,null,{"$error":"#DIV/0!"},0,0,null,"","","","","","","","","","",null,null,null,null,null,null,null,null,null,null,null,null,null,null,null,null,null,"ZWO"]
[null,null,null,null,null,null,null,null,null,null,null,null,null,null,{"$f":"VLOOKUP(N202,Tabel10[[korte omschrijving]:[MCC3_CODE]],2,0)","v":{"$error":"#N/A"}},{"$f":"VLOOKUP(N202,Tabel10[],3,0)","v":{"$error":"#N/A"}},null,null,null,null,null,null,null,null,null,null,null,{"$error":"#DIV/0!"},0,0,null,"","","","","","","","","","",null,null,null,null,null,null,null,null,null,null,null,null,null,null,null,null,null,"ZWO"]
[null,null,null,null,null,null,null,null,null,null,null,null,null,null,{"$f":"VLOOKUP(N203,Tabel10[[korte omschrijving]:[MCC3_CODE]],2,0)","v":{"$error":"#N/A"}},{"$f":"VLOOKUP(N203,Tabel10[],3,0)","v":{"$error":"#N/A"}},null,null,null,null,null,null,null,null,null,null,null,{"$error":"#DIV/0!"},0,0,null,"","","","","","","","","","",null,null,null,null,null,null,null,null,null,null,null,null,null,null,null,null,null,"ZWO"]
[null,null,null,null,null,null,null,null,null,null,null,null,null,null,{"$f":"VLOOKUP(N204,Tabel10[[korte omschrijving]:[MCC3_CODE]],2,0)","v":{"$error":"#N/A"}},{"$f":"VLOOKUP(N204,Tabel10[],3,0)","v":{"$error":"#N/A"}},null,null,null,null,{"$f":"SUM(T204:T209)","v":0},null,null,null,null,null,null,{"$error":"#DIV/0!"},0,0,null,"","","","","","","","","","",null,null,null,null,null,null,null,null,null,null,null,null,null,null,null,null,null,"ZWO"]
[null,null,null,null,null,null,null,null,null,null,null,null,null,null,{"$f":"VLOOKUP(N205,Tabel10[[korte omschrijving]:[MCC3_CODE]],2,0)","v":{"$error":"#N/A"}},{"$f":"VLOOKUP(N205,Tabel10[],3,0)","v":{"$error":"#N/A"}},null,null,null,null,null,null,null,null,null,null,null,{"$error":"#DIV/0!"},0,0,null,"","","","","","","","","","",null,null,null,null,null,null,null,null,null,null,null,null,null,null,null,null,null,"ZWO"]
[null,null,null,null,null,null,null,null,null,null,null,null,null,null,{"$f":"VLOOKUP(N206,Tabel10[[korte omschrijving]:[MCC3_CODE]],2,0)","v":{"$error":"#N/A"}},{"$f":"VLOOKUP(N206,Tabel10[],3,0)","v":{"$error":"#N/A"}},null,null,null,null,null,null,null,null,null,null,null,{"$error":"#DIV/0!"},0,0,null,"","","","","","","","","","",null,null,null,null,null,null,null,null,null,null,null,null,null,null,null,null,null,"ZWO"]
[null,null,null,null,null,null,null,null,null,null,null,null,null,null,{"$f":"VLOOKUP(N207,Tabel10[[korte omschrijving]:[MCC3_CODE]],2,0)","v":{"$error":"#N/A"}},{"$f":"VLOOKUP(N207,Tabel10[],3,0)","v":{"$error":"#N/A"}},null,null,null,null,null,null,null,null,null,null,null,{"$error":"#DIV/0!"},0,0,null,"","","","","","","","","","",null,null,null,null,null,null,null,null,null,null,null,null,null,null,null,null,null,"ZWO"]
[null,null,null,null,null,null,null,null,null,null,null,null,null,null,{"$f":"VLOOKUP(N208,Tabel10[[korte omschrijving]:[MCC3_CODE]],2,0)","v":{"$error":"#N/A"}},{"$f":"VLOOKUP(N208,Tabel10[],3,0)","v":{"$error":"#N/A"}},null,null,null,null,null,null,null,null,null,null,null,{"$error":"#DIV/0!"},0,0,null,"","","","","","","","","","",null,null,null,null,null,null,null,null,null,null,null,null,null,null,null,null,null,"ZWO"]
[null,null,null,null,null,null,null,null,null,null,null,null,null,null,{"$f":"VLOOKUP(N209,Tabel10[[korte omschrijving]:[MCC3_CODE]],2,0)","v":{"$error":"#N/A"}},{"$f":"VLOOKUP(N209,Tabel10[],3,0)","v":{"$error":"#N/A"}},null,null,null,null,null,null,null,null,null,null,null,{"$error":"#DIV/0!"},0,0,null,"","","","","","","","","","",null,null,null,null,null,null,null,null,null,null,null,null,null,null,null,null,null,"ZWO"]
[null,null,null,null,null,null,null,null,null,null,null,null,null,null,{"$f":"VLOOKUP(N210,Tabel10[[korte omschrijving]:[MCC3_CODE]],2,0)","v":{"$error":"#N/A"}},{"$f":"VLOOKUP(N210,Tabel10[],3,0)","v":{"$error":"#N/A"}},null,null,null,null,{"$f":"SUM(T210:T215)","v":0},null,null,null,null,null,null,{"$error":"#DIV/0!"},0,0,null,"","","","","","","","","","",null,null,null,null,null,null,null,null,null,null,null,null,null,null,null,null,null,"ZWO"]
[null,null,null,null,null,null,null,null,null,null,null,null,null,null,{"$f":"VLOOKUP(N211,Tabel10[[korte omschrijving]:[MCC3_CODE]],2,0)","v":{"$error":"#N/A"}},{"$f":"VLOOKUP(N211,Tabel10[],3,0)","v":{"$error":"#N/A"}},null,null,null,null,null,null,null,null,null,null,null,{"$error":"#DIV/0!"},0,0,null,"","","","","","","","","","",null,null,null,null,null,null,null,null,null,null,null,null,null,null,null,null,null,"ZWO"]
[null,null,null,null,null,null,null,null,null,null,null,null,null,null,{"$f":"VLOOKUP(N212,Tabel10[[korte omschrijving]:[MCC3_CODE]],2,0)","v":{"$error":"#N/A"}},{"$f":"VLOOKUP(N212,Tabel10[],3,0)","v":{"$error":"#N/A"}},null,null,null,null,null,null,null,null,null,null,null,{"$error":"#DIV/0!"},0,0,null,"","","","","","","","","","",null,null,null,null,null,null,null,null,null,null,null,null,null,null,null,null,null,"ZWO"]
[null,null,null,null,null,null,null,null,null,null,null,null,null,null,{"$f":"VLOOKUP(N213,Tabel10[[korte omschrijving]:[MCC3_CODE]],2,0)","v":{"$error":"#N/A"}},{"$f":"VLOOKUP(N213,Tabel10[],3,0)","v":{"$error":"#N/A"}},null,null,null,null,null,null,null,null,null,null,null,{"$error":"#DIV/0!"},0,0,null,"","","","","","","","","","",null,null,null,null,null,null,null,null,null,null,null,null,null,null,null,null,null,"ZWO"]
[null,null,null,null,null,null,null,null,null,null,null,null,null,null,{"$f":"VLOOKUP(N214,Tabel10[[korte omschrijving]:[MCC3_CODE]],2,0)","v":{"$error":"#N/A"}},{"$f":"VLOOKUP(N214,Tabel10[],3,0)","v":{"$error":"#N/A"}},null,null,null,null,null,null,null,null,null,null,null,{"$error":"#DIV/0!"},0,0,null,"","","","","","","","","","",null,null,null,null,null,null,null,null,null,null,null,null,null,null,null,null,null,"ZWO"]
[null,null,null,null,null,null,null,null,null,null,null,null,null,null,{"$f":"VLOOKUP(N215,Tabel10[[korte omschrijving]:[MCC3_CODE]],2,0)","v":{"$error":"#N/A"}},{"$f":"VLOOKUP(N215,Tabel10[],3,0)","v":{"$error":"#N/A"}},null,null,null,null,null,null,null,null,null,null,null,{"$error":"#DIV/0!"},0,0,null,"","","","","","","","","","",null,null,null,null,null,null,null,null,null,null,null,null,null,null,null,null,null,"ZWO"]
[null,null,null,null,null,null,null,null,null,null,null,null,null,null,{"$f":"VLOOKUP(N216,Tabel10[[korte omschrijving]:[MCC3_CODE]],2,0)","v":{"$error":"#N/A"}},{"$f":"VLOOKUP(N216,Tabel10[],3,0)","v":{"$error":"#N/A"}},null,null,null,null,{"$f":"SUM(T216:T221)","v":0},null,null,null,null,null,null,{"$error":"#DIV/0!"},0,0,null,"","","","","","","","","","",null,null,null,null,null,null,null,null,null,null,null,null,null,null,null,null,null,"ZWO"]
[null,null,null,null,null,null,null,null,null,null,null,null,null,null,{"$f":"VLOOKUP(N217,Tabel10[[korte omschrijving]:[MCC3_CODE]],2,0)","v":{"$error":"#N/A"}},{"$f":"VLOOKUP(N217,Tabel10[],3,0)","v":{"$error":"#N/A"}},null,null,null,null,null,null,null,null,null,null,null,{"$error":"#DIV/0!"},0,0,null,"","","","","","","","","","",null,null,null,null,null,null,null,null,null,null,null,null,null,null,null,null,null,"ZWO"]
[null,null,null,null,null,null,null,null,null,null,null,null,null,null,{"$f":"VLOOKUP(N218,Tabel10[[korte omschrijving]:[MCC3_CODE]],2,0)","v":{"$error":"#N/A"}},{"$f":"VLOOKUP(N218,Tabel10[],3,0)","v":{"$error":"#N/A"}},null,null,null,null,null,null,null,null,null,null,null,{"$error":"#DIV/0!"},0,0,null,"","","","","","","","","","",null,null,null,null,null,null,null,null,null,null,null,null,null,null,null,null,null,"ZWO"]
[null,null,null,null,null,null,null,null,null,null,null,null,null,null,{"$f":"VLOOKUP(N219,Tabel10[[korte omschrijving]:[MCC3_CODE]],2,0)","v":{"$error":"#N/A"}},{"$f":"VLOOKUP(N219,Tabel10[],3,0)","v":{"$error":"#N/A"}},null,null,null,null,null,null,null,null,null,null,null,{"$error":"#DIV/0!"},0,0,null,"","","","","","","","","","",null,null,null,null,null,null,null,null,null,null,null,null,null,null,null,null,null,"ZWO"]
[null,null,null,null,null,null,null,null,null,null,null,null,null,null,{"$f":"VLOOKUP(N220,Tabel10[[korte omschrijving]:[MCC3_CODE]],2,0)","v":{"$error":"#N/A"}},{"$f":"VLOOKUP(N220,Tabel10[],3,0)","v":{"$error":"#N/A"}},null,null,null,null,null,null,null,null,null,null,null,{"$error":"#DIV/0!"},0,0,null,"","","","","","","","","","",null,null,null,null,null,null,null,null,null,null,null,null,null,null,null,null,null,"ZWO"]
[null,null,null,null,null,null,null,null,null,null,null,null,null,null,{"$f":"VLOOKUP(N221,Tabel10[[korte omschrijving]:[MCC3_CODE]],2,0)","v":{"$error":"#N/A"}},{"$f":"VLOOKUP(N221,Tabel10[],3,0)","v":{"$error":"#N/A"}},null,null,null,null,null,null,null,null,null,null,null,{"$error":"#DIV/0!"},0,0,null,"","","","","","","","","","",null,null,null,null,null,null,null,null,null,null,null,null,null,null,null,null,null,"ZWO"]
[null,null,null,null,null,null,null,null,null,null,null,null,null,null,{"$f":"VLOOKUP(N222,Tabel10[[korte omschrijving]:[MCC3_CODE]],2,0)","v":{"$error":"#N/A"}},{"$f":"VLOOKUP(N222,Tabel10[],3,0)","v":{"$error":"#N/A"}},null,null,null,null,{"$f":"SUM(T222:T227)","v":0},null,null,null,null,null,null,{"$error":"#DIV/0!"},0,0,null,"","","","","","","","","","",null,null,null,null,null,null,null,null,null,null,null,null,null,null,null,null,null,"ZWO"]
[null,null,null,null,null,null,null,null,null,null,null,null,null,null,{"$f":"VLOOKUP(N223,Tabel10[[korte omschrijving]:[MCC3_CODE]],2,0)","v":{"$error":"#N/A"}},{"$f":"VLOOKUP(N223,Tabel10[],3,0)","v":{"$error":"#N/A"}},null,null,null,null,null,null,null,null,null,null,null,{"$error":"#DIV/0!"},0,0,null,"","","","","","","","","","",null,null,null,null,null,null,null,null,null,null,null,null,null,null,null,null,null,"ZWO"]
[null,null,null,null,null,null,null,null,null,null,null,null,null,null,{"$f":"VLOOKUP(N224,Tabel10[[korte omschrijving]:[MCC3_CODE]],2,0)","v":{"$error":"#N/A"}},{"$f":"VLOOKUP(N224,Tabel10[],3,0)","v":{"$error":"#N/A"}},null,null,null,null,null,null,null,null,null,null,null,{"$error":"#DIV/0!"},0,0,null,"","","","","","","","","","",null,null,null,null,null,null,null,null,null,null,null,null,null,null,null,null,null,"ZWO"]
[null,null,null,null,null,null,null,null,null,null,null,null,null,null,{"$f":"VLOOKUP(N225,Tabel10[[korte omschrijving]:[MCC3_CODE]],2,0)","v":{"$error":"#N/A"}},{"$f":"VLOOKUP(N225,Tabel10[],3,0)","v":{"$error":"#N/A"}},null,null,null,null,null,null,null,null,null,null,null,{"$error":"#DIV/0!"},0,0,null,"","","","","","","","","","",null,null,null,null,null,null,null,null,null,null,null,null,null,null,null,null,null,"ZWO"]
[null,null,null,null,null,null,null,null,null,null,null,null,null,null,{"$f":"VLOOKUP(N226,Tabel10[[korte omschrijving]:[MCC3_CODE]],2,0)","v":{"$error":"#N/A"}},{"$f":"VLOOKUP(N226,Tabel10[],3,0)","v":{"$error":"#N/A"}},null,null,null,null,null,null,null,null,null,null,null,{"$error":"#DIV/0!"},0,0,null,"","","","","","","","","","",null,null,null,null,null,null,null,null,null,null,null,null,null,null,null,null,null,"ZWO"]
[null,null,null,null,null,null,null,null,null,null,null,null,null,null,{"$f":"VLOOKUP(N227,Tabel10[[korte omschrijving]:[MCC3_CODE]],2,0)","v":{"$error":"#N/A"}},{"$f":"VLOOKUP(N227,Tabel10[],3,0)","v":{"$error":"#N/A"}},null,null,null,null,null,null,null,null,null,null,null,{"$error":"#DIV/0!"},0,0,null,"","","","","","","","","","",null,null,null,null,null,null,null,null,null,null,null,null,null,null,null,null,null,"ZWO"]
[null,null,null,null,null,null,null,null,null,null,null,null,null,null,{"$f":"VLOOKUP(N228,Tabel10[[korte omschrijving]:[MCC3_CODE]],2,0)","v":{"$error":"#N/A"}},{"$f":"VLOOKUP(N228,Tabel10[],3,0)","v":{"$error":"#N/A"}},null,null,null,null,{"$f":"SUM(T228:T233)","v":0},null,null,null,null,null,null,{"$error":"#DIV/0!"},0,0,null,"","","","","","","","","","",null,null,null,null,null,null,null,null,null,null,null,null,null,null,null,null,null,"ZWO"]
[null,null,null,null,null,null,null,null,null,null,null,null,null,null,{"$f":"VLOOKUP(N229,Tabel10[[korte omschrijving]:[MCC3_CODE]],2,0)","v":{"$error":"#N/A"}},{"$f":"VLOOKUP(N229,Tabel10[],3,0)","v":{"$error":"#N/A"}},null,null,null,null,null,null,null,null,null,null,null,{"$error":"#DIV/0!"},0,0,null,"","","","","","","","","","",null,null,null,null,null,null,null,null,null,null,null,null,null,null,null,null,null,"ZWO"]
[null,null,null,null,null,null,null,null,null,null,null,null,null,null,{"$f":"VLOOKUP(N230,Tabel10[[korte omschrijving]:[MCC3_CODE]],2,0)","v":{"$error":"#N/A"}},{"$f":"VLOOKUP(N230,Tabel10[],3,0)","v":{"$error":"#N/A"}},null,null,null,null,null,null,null,null,null,null,null,{"$error":"#DIV/0!"},0,0,null,"","","","","","","","","","",null,null,null,null,null,null,null,null,null,null,null,null,null,null,null,null,null,"ZWO"]
[null,null,null,null,null,null,null,null,null,null,null,null,null,null,{"$f":"VLOOKUP(N231,Tabel10[[korte omschrijving]:[MCC3_CODE]],2,0)","v":{"$error":"#N/A"}},{"$f":"VLOOKUP(N231,Tabel10[],3,0)","v":{"$error":"#N/A"}},null,null,null,null,null,null,null,null,null,null,null,{"$error":"#DIV/0!"},0,0,null,"","","","","","","","","","",null,null,null,null,null,null,null,null,null,null,null,null,null,null,null,null,null,"ZWO"]
[null,null,null,null,null,null,null,null,null,null,null,null,null,null,{"$f":"VLOOKUP(N232,Tabel10[[korte omschrijving]:[MCC3_CODE]],2,0)","v":{"$error":"#N/A"}},{"$f":"VLOOKUP(N232,Tabel10[],3,0)","v":{"$error":"#N/A"}},null,null,null,null,null,null,null,null,null,null,null,{"$error":"#DIV/0!"},0,0,null,"","","","","","","","","","",null,null,null,null,null,null,null,null,null,null,null,null,null,null,null,null,null,"ZWO"]
[null,null,null,null,null,null,null,null,null,null,null,null,null,null,{"$f":"VLOOKUP(N233,Tabel10[[korte omschrijving]:[MCC3_CODE]],2,0)","v":{"$error":"#N/A"}},{"$f":"VLOOKUP(N233,Tabel10[],3,0)","v":{"$error":"#N/A"}},null,null,null,null,null,null,null,null,null,null,null,{"$error":"#DIV/0!"},0,0,null,"","","","","","","","","","",null,null,null,null,null,null,null,null,null,null,null,null,null,null,null,null,null,"ZWO"]
[null,null,null,null,null,null,null,null,null,null,null,null,null,null,{"$f":"VLOOKUP(N234,Tabel10[[korte omschrijving]:[MCC3_CODE]],2,0)","v":{"$error":"#N/A"}},{"$f":"VLOOKUP(N234,Tabel10[],3,0)","v":{"$error":"#N/A"}},null,null,null,null,{"$f":"SUM(T234:T239)","v":0},null,null,null,null,null,null,{"$error":"#DIV/0!"},0,0,null,"","","","","","","","","","",null,null,null,null,null,null,null,null,null,null,null,null,null,null,null,null,null,"ZWO"]
[null,null,null,null,null,null,null,null,null,null,null,null,null,null,{"$f":"VLOOKUP(N235,Tabel10[[korte omschrijving]:[MCC3_CODE]],2,0)","v":{"$error":"#N/A"}},{"$f":"VLOOKUP(N235,Tabel10[],3,0)","v":{"$error":"#N/A"}},null,null,null,null,null,null,null,null,null,null,null,{"$error":"#DIV/0!"},0,0,null,"","","","","","","","","","",null,null,null,null,null,null,null,null,null,null,null,null,null,null,null,null,null,"ZWO"]
[null,null,null,null,null,null,null,null,null,null,null,null,null,null,{"$f":"VLOOKUP(N236,Tabel10[[korte omschrijving]:[MCC3_CODE]],2,0)","v":{"$error":"#N/A"}},{"$f":"VLOOKUP(N236,Tabel10[],3,0)","v":{"$error":"#N/A"}},null,null,null,null,null,null,null,null,null,null,null,{"$error":"#DIV/0!"},0,0,null,"","","","","","","","","","",null,null,null,null,null,null,null,null,null,null,null,null,null,null,null,null,null,"ZWO"]
[null,null,null,null,null,null,null,null,null,null,null,null,null,null,{"$f":"VLOOKUP(N237,Tabel10[[korte omschrijving]:[MCC3_CODE]],2,0)","v":{"$error":"#N/A"}},{"$f":"VLOOKUP(N237,Tabel10[],3,0)","v":{"$error":"#N/A"}},null,null,null,null,null,null,null,null,null,null,null,{"$error":"#DIV/0!"},0,0,null,"","","","","","","","","","",null,null,null,null,null,null,null,null,null,null,null,null,null,null,null,null,null,"ZWO"]
[null,null,null,null,null,null,null,null,null,null,null,null,null,null,{"$f":"VLOOKUP(N238,Tabel10[[korte omschrijving]:[MCC3_CODE]],2,0)","v":{"$error":"#N/A"}},{"$f":"VLOOKUP(N238,Tabel10[],3,0)","v":{"$error":"#N/A"}},null,null,null,null,null,null,null,null,null,null,null,{"$error":"#DIV/0!"},0,0,null,"","","","","","","","","","",null,null,null,null,null,null,null,null,null,null,null,null,null,null,null,null,null,"ZWO"]
[null,null,null,null,null,null,null,null,null,null,null,null,null,null,{"$f":"VLOOKUP(N239,Tabel10[[korte omschrijving]:[MCC3_CODE]],2,0)","v":{"$error":"#N/A"}},{"$f":"VLOOKUP(N239,Tabel10[],3,0)","v":{"$error":"#N/A"}},null,null,null,null,null,null,null,null,null,null,null,{"$error":"#DIV/0!"},0,0,null,"","","","","","","","","","",null,null,null,null,null,null,null,null,null,null,null,null,null,null,null,null,null,"ZWO"]
[null,null,null,null,null,null,null,null,null,null,null,null,null,null,{"$f":"VLOOKUP(N240,Tabel10[[korte omschrijving]:[MCC3_CODE]],2,0)","v":{"$error":"#N/A"}},{"$f":"VLOOKUP(N240,Tabel10[],3,0)","v":{"$error":"#N/A"}},null,null,null,null,{"$f":"SUM(T240:T245)","v":0},null,null,null,null,null,null,{"$error":"#DIV/0!"},0,0,null,"","","","","","","","","","",null,null,null,null,null,null,null,null,null,null,null,null,null,null,null,null,null,"ZWO"]
[null,null,null,null,null,null,null,null,null,null,null,null,null,null,{"$f":"VLOOKUP(N241,Tabel10[[korte omschrijving]:[MCC3_CODE]],2,0)","v":{"$error":"#N/A"}},{"$f":"VLOOKUP(N241,Tabel10[],3,0)","v":{"$error":"#N/A"}},null,null,null,null,null,null,null,null,null,null,null,{"$error":"#DIV/0!"},0,0,null,"","","","","","","","","","",null,null,null,null,null,null,null,null,null,null,null,null,null,null,null,null,null,"ZWO"]
[null,null,null,null,null,null,null,null,null,null,null,null,null,null,{"$f":"VLOOKUP(N242,Tabel10[[korte omschrijving]:[MCC3_CODE]],2,0)","v":{"$error":"#N/A"}},{"$f":"VLOOKUP(N242,Tabel10[],3,0)","v":{"$error":"#N/A"}},null,null,null,null,null,null,null,null,null,null,null,{"$error":"#DIV/0!"},0,0,null,"","","","","","","","","","",null,null,null,null,null,null,null,null,null,null,null,null,null,null,null,null,null,"ZWO"]
[null,null,null,null,null,null,null,null,null,null,null,null,null,null,{"$f":"VLOOKUP(N243,Tabel10[[korte omschrijving]:[MCC3_CODE]],2,0)","v":{"$error":"#N/A"}},{"$f":"VLOOKUP(N243,Tabel10[],3,0)","v":{"$error":"#N/A"}},null,null,null,null,null,null,null,null,null,null,null,{"$error":"#DIV/0!"},0,0,null,"","","","","","","","","","",null,null,null,null,null,null,null,null,null,null,null,null,null,null,null,null,null,"ZWO"]
[null,null,null,null,null,null,null,null,null,null,null,null,null,null,{"$f":"VLOOKUP(N244,Tabel10[[korte omschrijving]:[MCC3_CODE]],2,0)","v":{"$error":"#N/A"}},{"$f":"VLOOKUP(N244,Tabel10[],3,0)","v":{"$error":"#N/A"}},null,null,null,null,null,null,null,null,null,null,null,{"$error":"#DIV/0!"},0,0,null,"","","","","","","","","","",null,null,null,null,null,null,null,null,null,null,null,null,null,null,null,null,null,"ZWO"]
[null,null,null,null,null,null,null,null,null,null,null,null,null,null,{"$f":"VLOOKUP(N245,Tabel10[[korte omschrijving]:[MCC3_CODE]],2,0)","v":{"$error":"#N/A"}},{"$f":"VLOOKUP(N245,Tabel10[],3,0)","v":{"$error":"#N/A"}},null,null,null,null,null,null,null,null,null,null,null,{"$error":"#DIV/0!"},0,0,null,"","","","","","","","","","",null,null,null,null,null,null,null,null,null,null,null,null,null,null,null,null,null,"ZWO"]
[null,null,null,null,null,null,null,null,null,null,null,null,null,null,{"$f":"VLOOKUP(N246,Tabel10[[korte omschrijving]:[MCC3_CODE]],2,0)","v":{"$error":"#N/A"}},{"$f":"VLOOKUP(N246,Tabel10[],3,0)","v":{"$error":"#N/A"}},null,null,null,null,{"$f":"SUM(T246:T251)","v":0},null,null,null,null,null,null,{"$error":"#DIV/0!"},0,0,null,"","","","","","","","","","",null,null,null,null,null,null,null,null,null,null,null,null,null,null,null,null,null,"ZWO"]
[null,null,null,null,null,null,null,null,null,null,null,null,null,null,{"$f":"VLOOKUP(N247,Tabel10[[korte omschrijving]:[MCC3_CODE]],2,0)","v":{"$error":"#N/A"}},{"$f":"VLOOKUP(N247,Tabel10[],3,0)","v":{"$error":"#N/A"}},null,null,null,null,null,null,null,null,null,null,null,{"$error":"#DIV/0!"},0,0,null,"","","","","","","","","","",null,null,null,null,null,null,null,null,null,null,null,null,null,null,null,null,null,"ZWO"]
[null,null,null,null,null,null,null,null,null,null,null,null,null,null,{"$f":"VLOOKUP(N248,Tabel10[[korte omschrijving]:[MCC3_CODE]],2,0)","v":{"$error":"#N/A"}},{"$f":"VLOOKUP(N248,Tabel10[],3,0)","v":{"$error":"#N/A"}},null,null,null,null,null,null,null,null,null,null,null,{"$error":"#DIV/0!"},0,0,null,"","","","","","","","","","",null,null,null,null,null,null,null,null,null,null,null,null,null,null,null,null,null,"ZWO"]
[null,null,null,null,null,null,null,null,null,null,null,null,null,null,{"$f":"VLOOKUP(N249,Tabel10[[korte omschrijving]:[MCC3_CODE]],2,0)","v":{"$error":"#N/A"}},{"$f":"VLOOKUP(N249,Tabel10[],3,0)","v":{"$error":"#N/A"}},null,null,null,null,null,null,null,null,null,null,null,{"$error":"#DIV/0!"},0,0,null,"","","","","","","","","","",null,null,null,null,null,null,null,null,null,null,null,null,null,null,null,null,null,"ZWO"]
[null,null,null,null,null,null,null,null,null,null,null,null,null,null,{"$f":"VLOOKUP(N250,Tabel10[[korte omschrijving]:[MCC3_CODE]],2,0)","v":{"$error":"#N/A"}},{"$f":"VLOOKUP(N250,Tabel10[],3,0)","v":{"$error":"#N/A"}},null,null,null,null,null,null,null,null,null,null,null,{"$error":"#DIV/0!"},0,0,null,"","","","","","","","","","",null,null,null,null,null,null,null,null,null,null,null,null,null,null,null,null,null,"ZWO"]
[null,null,null,null,null,null,null,null,null,null,null,null,null,null,{"$f":"VLOOKUP(N251,Tabel10[[korte omschrijving]:[MCC3_CODE]],2,0)","v":{"$error":"#N/A"}},{"$f":"VLOOKUP(N251,Tabel10[],3,0)","v":{"$error":"#N/A"}},null,null,null,null,null,null,null,null,null,null,null,{"$error":"#DIV/0!"},0,0,null,"","","","","","","","","","",null,null,null,null,null,null,null,null,null,null,null,null,null,null,null,null,null,"ZWO"]
[null,null,null,null,null,null,null,null,null,null,null,null,null,null,{"$f":"VLOOKUP(N252,Tabel10[[korte omschrijving]:[MCC3_CODE]],2,0)","v":{"$error":"#N/A"}},{"$f":"VLOOKUP(N252,Tabel10[],3,0)","v":{"$error":"#N/A"}},null,null,null,null,{"$f":"SUM(T252:T257)","v":0},null,null,null,null,null,null,{"$error":"#DIV/0!"},0,0,null,"","","","","","","","","","",null,null,null,null,null,null,null,null,null,null,null,null,null,null,null,null,null,"ZWO"]
[null,null,null,null,null,null,null,null,null,null,null,null,null,null,{"$f":"VLOOKUP(N253,Tabel10[[korte omschrijving]:[MCC3_CODE]],2,0)","v":{"$error":"#N/A"}},{"$f":"VLOOKUP(N253,Tabel10[],3,0)","v":{"$error":"#N/A"}},null,null,null,null,null,null,null,null,null,null,null,{"$error":"#DIV/0!"},0,0,null,"","","","","","","","","","",null,null,null,null,null,null,null,null,null,null,null,null,null,null,null,null,null,"ZWO"]
[null,null,null,null,null,null,null,null,null,null,null,null,null,null,{"$f":"VLOOKUP(N254,Tabel10[[korte omschrijving]:[MCC3_CODE]],2,0)","v":{"$error":"#N/A"}},{"$f":"VLOOKUP(N254,Tabel10[],3,0)","v":{"$error":"#N/A"}},null,null,null,null,null,null,null,null,null,null,null,{"$error":"#DIV/0!"},0,0,null,"","","","","","","","","","",null,null,null,null,null,null,null,null,null,null,null,null,null,null,null,null,null,"ZWO"]
[null,null,null,null,null,null,null,null,null,null,null,null,null,null,{"$f":"VLOOKUP(N255,Tabel10[[korte omschrijving]:[MCC3_CODE]],2,0)","v":{"$error":"#N/A"}},{"$f":"VLOOKUP(N255,Tabel10[],3,0)","v":{"$error":"#N/A"}},null,null,null,null,null,null,null,null,null,null,null,{"$error":"#DIV/0!"},0,0,null,"","","","","","","","","","",null,null,null,null,null,null,null,null,null,null,null,null,null,null,null,null,null,"ZWO"]
[null,null,null,null,null,null,null,null,null,null,null,null,null,null,{"$f":"VLOOKUP(N256,Tabel10[[korte omschrijving]:[MCC3_CODE]],2,0)","v":{"$error":"#N/A"}},{"$f":"VLOOKUP(N256,Tabel10[],3,0)","v":{"$error":"#N/A"}},null,null,null,null,null,null,null,null,null,null,null,{"$error":"#DIV/0!"},0,0,null,"","","","","","","","","","",null,null,null,null,null,null,null,null,null,null,null,null,null,null,null,null,null,"ZWO"]
[null,null,null,null,null,null,null,null,null,null,null,null,null,null,{"$f":"VLOOKUP(N257,Tabel10[[korte omschrijving]:[MCC3_CODE]],2,0)","v":{"$error":"#N/A"}},{"$f":"VLOOKUP(N257,Tabel10[],3,0)","v":{"$error":"#N/A"}},null,null,null,null,null,null,null,null,null,null,null,{"$error":"#DIV/0!"},0,0,null,"","","","","","","","","","",null,null,null,null,null,null,null,null,null,null,null,null,null,null,null,null,null,"ZWO"]
[null,null,null,null,null,null,null,null,null,null,null,null,null,null,{"$f":"VLOOKUP(N258,Tabel10[[korte omschrijving]:[MCC3_CODE]],2,0)","v":{"$error":"#N/A"}},{"$f":"VLOOKUP(N258,Tabel10[],3,0)","v":{"$error":"#N/A"}},null,null,null,null,{"$f":"SUM(T258:T263)","v":0},null,null,null,null,null,null,{"$error":"#DIV/0!"},0,0,null,"","","","","","","","","","",null,null,null,null,null,null,null,null,null,null,null,null,null,null,null,null,null,"ZWO"]
[null,null,null,null,null,null,null,null,null,null,null,null,null,null,{"$f":"VLOOKUP(N259,Tabel10[[korte omschrijving]:[MCC3_CODE]],2,0)","v":{"$error":"#N/A"}},{"$f":"VLOOKUP(N259,Tabel10[],3,0)","v":{"$error":"#N/A"}},null,null,null,null,null,null,null,null,null,null,null,{"$error":"#DIV/0!"},0,0,null,"","","","","","","","","","",null,null,null,null,null,null,null,null,null,null,null,null,null,null,null,null,null,"ZWO"]
[null,null,null,null,null,null,null,null,null,null,null,null,null,null,{"$f":"VLOOKUP(N260,Tabel10[[korte omschrijving]:[MCC3_CODE]],2,0)","v":{"$error":"#N/A"}},{"$f":"VLOOKUP(N260,Tabel10[],3,0)","v":{"$error":"#N/A"}},null,null,null,null,null,null,null,null,null,null,null,{"$error":"#DIV/0!"},0,0,null,"","","","","","","","","","",null,null,null,null,null,null,null,null,null,null,null,null,null,null,null,null,null,"ZWO"]
[null,null,null,null,null,null,null,null,null,null,null,null,null,null,{"$f":"VLOOKUP(N261,Tabel10[[korte omschrijving]:[MCC3_CODE]],2,0)","v":{"$error":"#N/A"}},{"$f":"VLOOKUP(N261,Tabel10[],3,0)","v":{"$error":"#N/A"}},null,null,null,null,null,null,null,null,null,null,null,{"$error":"#DIV/0!"},0,0,null,"","","","","","","","","","",null,null,null,null,null,null,null,null,null,null,null,null,null,null,null,null,null,"ZWO"]
[null,null,null,null,null,null,null,null,null,null,null,null,null,null,{"$f":"VLOOKUP(N262,Tabel10[[korte omschrijving]:[MCC3_CODE]],2,0)","v":{"$error":"#N/A"}},{"$f":"VLOOKUP(N262,Tabel10[],3,0)","v":{"$error":"#N/A"}},null,null,null,null,null,null,null,null,null,null,null,{"$error":"#DIV/0!"},0,0,null,"","","","","","","","","","",null,null,null,null,null,null,null,null,null,null,null,null,null,null,null,null,null,"ZWO"]
[null,null,null,null,null,null,null,null,null,null,null,null,null,null,{"$f":"VLOOKUP(N263,Tabel10[[korte omschrijving]:[MCC3_CODE]],2,0)","v":{"$error":"#N/A"}},{"$f":"VLOOKUP(N263,Tabel10[],3,0)","v":{"$error":"#N/A"}},null,null,null,null,null,null,null,null,null,null,null,{"$f":"AA263/Y263","v":{"$error":"#DIV/0!"}},0,0,null,{"$f":"IF(AE263 <> \"\",\n    IF(ISNUMBER(VALUE(LEFT(AE263, FIND(\"%\", AE263)-1))),\n        VALUE(LEFT(AE263, FIND(\"%\", AE263)-1)),\n        \"Invalid format\"),\n    \"\")","v":""},{"$f":"IF(AE263 <> \"\",\n    IF(ISNUMBER(VALUE(LEFT(AE263, FIND(\"%\", AE263)-1))) * ISNUMBER(FIND(\"%\", AE263 & \"wol\")) > 0,\n        TRIM(MID(AE263, FIND(\"%\", AE263)+1, FIND(\"/\", AE263 & \"/\")-FIND(\"%\", AE263)-1)),\n        \"Invalid format\"),\n    \"\")","v":""},{"$f":"IF(AE263 <> \"\",\n    IF(ISNUMBER(VALUE(MID(AE263, FIND(\"/\", AE263) + 1, FIND(\"%\", AE263, FIND(\"/\", AE263)) - FIND(\"/\", AE263) - 1))),\n        VALUE(MID(AE263, FIND(\"/\", AE263) + 1, FIND(\"%\", AE263, FIND(\"/\", AE263)) - FIND(\"/\", AE263) - 1)),\n        \"\"),\n    \"\")","v":""},{"$f":"IF(AE263 <> \"\",\n    IFERROR(TRIM(MID(AE263, FIND(\"%\", AE263, FIND(\"/\", AE263)+1)+2,\n        IFERROR(FIND(\"/\", AE263 & \"/\", FIND(\"/\", AE263)+1)-FIND(\"%\", AE263, FIND(\"/\", AE263)+1)-2, LEN(AE263)-FIND(\"%\", AE263, FIND(\"/\", AE263)+1)-1))),\n        \"\"),\n    \"\")","v":""},{"$f":"IF(AE263 <> \"\",\n    IF(ISNUMBER(VALUE(MID(AE263, FIND(\"/\", AE263, FIND(\"/\", AE263)+1) + 1, FIND(\"%\", AE263, FIND(\"/\", AE263, FIND(\"/\", AE263)+1)) - FIND(\"/\", AE263, FIND(\"/\", AE263)+1) - 1))),\n        VALUE(MID(AE263, FIND(\"/\", AE263, FIND(\"/\", AE263)+1) + 1, FIND(\"%\", AE263, FIND(\"/\", AE263, FIND(\"/\", AE263)+1)) - FIND(\"/\", AE263, FIND(\"/\", AE263)+1) - 1)),\n        \"\"),\n    \"\")","v":""},{"$f":"IF(AE263 <> \"\",\n    IFERROR(\n        TRIM(MID(AE263,\n            FIND(\"%\", AE263, FIND(\"%\", AE263, FIND(\"%\", AE263)+1)+1)+1,\n            FIND(\"/\", AE263 & \"/\", FIND(\"%\", AE263, FIND(\"%\", AE263, FIND(\"%\", AE263)+1)+1))-FIND(\"%\", AE263, FIND(\"%\", AE263, FIND(\"%\", AE263)+1)+1)-1)\n        ),\n        \"\"\n    ),\n    \"\"\n)","v":""},{"$f":"IF(AE263 <> \"\",\n    IF(ISNUMBER(VALUE(MID(AE263, FIND(\"/\", AE263, FIND(\"/\", AE263, FIND(\"/\", AE263)+1)+1) + 1, FIND(\"%\", AE263, FIND(\"/\", AE263, FIND(\"/\", AE263, FIND(\"/\", AE263)+1)+1)) - FIND(\"/\", AE263, FIND(\"/\", AE263, FIND(\"/\", AE263)+1)+1) - 1))),\n        VALUE(MID(AE263, FIND(\"/\", AE263, FIND(\"/\", AE263, FIND(\"/\", AE263)+1)+1) + 1, FIND(\"%\", AE263, FIND(\"/\", AE263, FIND(\"/\", AE263, FIND(\"/\", AE263)+1)+1)) - FIND(\"/\", AE263, FIND(\"/\", AE263, FIND(\"/\", AE263)+1)+1) - 1)),\n        \"\"),\n    \"\")","v":""},{"$f":"IF(AE263 <> \"\",\n    IFERROR(TRIM(MID(AE263, FIND(\"%\", AE263, FIND(\"/\", AE263, FIND(\"/\", AE263, FIND(\"/\", AE263)+1)+1)+1)+2,\n        IFERROR(FIND(\"/\", AE263, FIND(\"/\", AE263, FIND(\"/\", AE263, FIND(\"/\", AE263)+1)+1)+1)-FIND(\"%\", AE263, FIND(\"/\", AE263, FIND(\"/\", AE263, FIND(\"/\", AE263)+1)+1)+1)-2, LEN(AE263)-FIND(\"%\", AE263, FIND(\"/\", AE263, FIND(\"/\", AE263, FIND(\"/\", AE263)+1)+1)+1)-1))),\n        \"\"),\n    \"\")","v":""},{"$f":"IF(AE263 <> \"\",\n    IF(ISNUMBER(VALUE(MID(AE263, FIND(\"/\", AE263, FIND(\"/\", AE263, FIND(\"/\", AE263, FIND(\"/\", AE263)+1)+1)+1) + 1, FIND(\"%\", AE263, FIND(\"/\", AE263, FIND(\"/\", AE263, FIND(\"/\", AE263, FIND(\"/\", AE263)+1)+1)+1)) - FIND(\"/\", AE263, FIND(\"/\", AE263, FIND(\"/\", AE263, FIND(\"/\", AE263)+1)+1)+1) - 1))),\n        VALUE(MID(AE263, FIND(\"/\", AE263, FIND(\"/\", AE263, FIND(\"/\", AE263, FIND(\"/\", AE263)+1)+1)+1) + 1, FIND(\"%\", AE263, FIND(\"/\", AE263, FIND(\"/\", AE263, FIND(\"/\", AE263, FIND(\"/\", AE263)+1)+1)+1)) - FIND(\"/\", AE263, FIND(\"/\", AE263, FIND(\"/\", AE263, FIND(\"/\", AE263)+1)+1)+1) - 1)),\n        \"\"),\n    \"\")","v":""},{"$f":"IF(AE263 = \"\", \"\",\n    IFERROR(TRIM(\n        MID(\n            AE263,\n            FIND(\"%\", AE263, FIND(\"/\", AE263, FIND(\"/\", AE263, FIND(\"/\", AE263, FIND(\"/\", AE263)+1)+1)+1)+1) + 1,\n            FIND(\"/\", AE263 & \"/\", FIND(\"%\", AE263, FIND(\"/\", AE263, FIND(\"/\", AE263, FIND(\"/\", AE263, FIND(\"/\", AE263)+1)+1)+1)+1)) -\n            FIND(\"%\", AE263, FIND(\"/\", AE263, FIND(\"/\", AE263, FIND(\"/\", AE263, FIND(\"/\", AE263)+1)+1)+1)+1) - 1\n        )\n    ),\n    \"\")\n)","v":""},null,null,null,null,null,null,null,null,null,null,null,null,null,null,null,null,null,"ZWO"]
[null,null,null,null,null,null,null,null,null,null,null,null,null,null,{"$f":"VLOOKUP(N264,Tabel10[[korte omschrijving]:[MCC3_CODE]],2,0)","v":{"$error":"#N/A"}},{"$f":"VLOOKUP(N264,Tabel10[],3,0)","v":{"$error":"#N/A"}},null,null,null,null,{"$f":"SUM(T264:T269)","v":0},null,null,null,null,null,null,{"$error":"#DIV/0!"},{"$f":"T264*Y264","v":0},{"$f":"T264*AA264","v":0},null,"","","","","","","","","","",null,null,null,null,null,null,null,null,null,null,null,null,null,null,null,null,null,"ZWO"]
[null,null,null,null,null,null,null,null,null,null,null,null,null,null,{"$f":"VLOOKUP(N265,Tabel10[[korte omschrijving]:[MCC3_CODE]],2,0)","v":{"$error":"#N/A"}},{"$f":"VLOOKUP(N265,Tabel10[],3,0)","v":{"$error":"#N/A"}},null,null,null,null,null,null,null,null,null,null,null,{"$error":"#DIV/0!"},0,0,null,"","","","","","","","","","",null,null,null,null,null,null,null,null,null,null,null,null,null,null,null,null,null,"ZWO"]
[null,null,null,null,null,null,null,null,null,null,null,null,null,null,{"$f":"VLOOKUP(N266,Tabel10[[korte omschrijving]:[MCC3_CODE]],2,0)","v":{"$error":"#N/A"}},{"$f":"VLOOKUP(N266,Tabel10[],3,0)","v":{"$error":"#N/A"}},null,null,null,null,null,null,null,null,null,null,null,{"$error":"#DIV/0!"},0,0,null,"","","","","","","","","","",null,null,null,null,null,null,null,null,null,null,null,null,null,null,null,null,null,"ZWO"]
[null,null,null,null,null,null,null,null,null,null,null,null,null,null,{"$f":"VLOOKUP(N267,Tabel10[[korte omschrijving]:[MCC3_CODE]],2,0)","v":{"$error":"#N/A"}},{"$f":"VLOOKUP(N267,Tabel10[],3,0)","v":{"$error":"#N/A"}},null,null,null,null,null,null,null,null,null,null,null,{"$error":"#DIV/0!"},0,0,null,"","","","","","","","","","",null,null,null,null,null,null,null,null,null,null,null,null,null,null,null,null,null,"ZWO"]
[null,null,null,null,null,null,null,null,null,null,null,null,null,null,{"$f":"VLOOKUP(N268,Tabel10[[korte omschrijving]:[MCC3_CODE]],2,0)","v":{"$error":"#N/A"}},{"$f":"VLOOKUP(N268,Tabel10[],3,0)","v":{"$error":"#N/A"}},null,null,null,null,null,null,null,null,null,null,null,{"$error":"#DIV/0!"},0,0,null,"","","","","","","","","","",null,null,null,null,null,null,null,null,null,null,null,null,null,null,null,null,null,"ZWO"]
[null,null,null,null,null,null,null,null,null,null,null,null,null,null,{"$f":"VLOOKUP(N269,Tabel10[[korte omschrijving]:[MCC3_CODE]],2,0)","v":{"$error":"#N/A"}},{"$f":"VLOOKUP(N269,Tabel10[],3,0)","v":{"$error":"#N/A"}},null,null,null,null,null,null,null,null,null,null,null,{"$error":"#DIV/0!"},0,0,null,"","","","","","","","","","",null,null,null,null,null,null,null,null,null,null,null,null,null,null,null,null,null,"ZWO"]
[null,null,null,null,null,null,null,null,null,null,null,null,null,null,{"$f":"VLOOKUP(N270,Tabel10[[korte omschrijving]:[MCC3_CODE]],2,0)","v":{"$error":"#N/A"}},{"$f":"VLOOKUP(N270,Tabel10[],3,0)","v":{"$error":"#N/A"}},null,null,null,null,{"$f":"SUM(T270:T275)","v":0},null,null,null,null,null,null,{"$error":"#DIV/0!"},0,0,null,"","","","","","","","","","",null,null,null,null,null,null,null,null,null,null,null,null,null,null,null,null,null,"ZWO"]
[null,null,null,null,null,null,null,null,null,null,null,null,null,null,{"$f":"VLOOKUP(N271,Tabel10[[korte omschrijving]:[MCC3_CODE]],2,0)","v":{"$error":"#N/A"}},{"$f":"VLOOKUP(N271,Tabel10[],3,0)","v":{"$error":"#N/A"}},null,null,null,null,null,null,null,null,null,null,null,{"$error":"#DIV/0!"},0,0,null,"","","","","","","","","","",null,null,null,null,null,null,null,null,null,null,null,null,null,null,null,null,null,"ZWO"]
[null,null,null,null,null,null,null,null,null,null,null,null,null,null,{"$f":"VLOOKUP(N272,Tabel10[[korte omschrijving]:[MCC3_CODE]],2,0)","v":{"$error":"#N/A"}},{"$f":"VLOOKUP(N272,Tabel10[],3,0)","v":{"$error":"#N/A"}},null,null,null,null,null,null,null,null,null,null,null,{"$error":"#DIV/0!"},0,0,null,"","","","","","","","","","",null,null,null,null,null,null,null,null,null,null,null,null,null,null,null,null,null,"ZWO"]
[null,null,null,null,null,null,null,null,null,null,null,null,null,null,{"$f":"VLOOKUP(N273,Tabel10[[korte omschrijving]:[MCC3_CODE]],2,0)","v":{"$error":"#N/A"}},{"$f":"VLOOKUP(N273,Tabel10[],3,0)","v":{"$error":"#N/A"}},null,null,null,null,null,null,null,null,null,null,null,{"$error":"#DIV/0!"},0,0,null,"","","","","","","","","","",null,null,null,null,null,null,null,null,null,null,null,null,null,null,null,null,null,"ZWO"]
[null,null,null,null,null,null,null,null,null,null,null,null,null,null,{"$f":"VLOOKUP(N274,Tabel10[[korte omschrijving]:[MCC3_CODE]],2,0)","v":{"$error":"#N/A"}},{"$f":"VLOOKUP(N274,Tabel10[],3,0)","v":{"$error":"#N/A"}},null,null,null,null,null,null,null,null,null,null,null,{"$error":"#DIV/0!"},0,0,null,"","","","","","","","","","",null,null,null,null,null,null,null,null,null,null,null,null,null,null,null,null,null,"ZWO"]
[null,null,null,null,null,null,null,null,null,null,null,null,null,null,{"$f":"VLOOKUP(N275,Tabel10[[korte omschrijving]:[MCC3_CODE]],2,0)","v":{"$error":"#N/A"}},{"$f":"VLOOKUP(N275,Tabel10[],3,0)","v":{"$error":"#N/A"}},null,null,null,null,null,null,null,null,null,null,null,{"$error":"#DIV/0!"},0,0,null,"","","","","","","","","","",null,null,null,null,null,null,null,null,null,null,null,null,null,null,null,null,null,"ZWO"]
[null,null,null,null,null,null,null,null,null,null,null,null,null,null,{"$f":"VLOOKUP(N276,Tabel10[[korte omschrijving]:[MCC3_CODE]],2,0)","v":{"$error":"#N/A"}},{"$f":"VLOOKUP(N276,Tabel10[],3,0)","v":{"$error":"#N/A"}},null,null,null,null,{"$f":"SUM(T276:T281)","v":0},null,null,null,null,null,null,{"$error":"#DIV/0!"},0,0,null,"","","","","","","","","","",null,null,null,null,null,null,null,null,null,null,null,null,null,null,null,null,null,"ZWO"]
[null,null,null,null,null,null,null,null,null,null,null,null,null,null,{"$f":"VLOOKUP(N277,Tabel10[[korte omschrijving]:[MCC3_CODE]],2,0)","v":{"$error":"#N/A"}},{"$f":"VLOOKUP(N277,Tabel10[],3,0)","v":{"$error":"#N/A"}},null,null,null,null,null,null,null,null,null,null,null,{"$error":"#DIV/0!"},0,0,null,"","","","","","","","","","",null,null,null,null,null,null,null,null,null,null,null,null,null,null,null,null,null,"ZWO"]
[null,null,null,null,null,null,null,null,null,null,null,null,null,null,{"$f":"VLOOKUP(N278,Tabel10[[korte omschrijving]:[MCC3_CODE]],2,0)","v":{"$error":"#N/A"}},{"$f":"VLOOKUP(N278,Tabel10[],3,0)","v":{"$error":"#N/A"}},null,null,null,null,null,null,null,null,null,null,null,{"$error":"#DIV/0!"},0,0,null,"","","","","","","","","","",null,null,null,null,null,null,null,null,null,null,null,null,null,null,null,null,null,"ZWO"]
[null,null,null,null,null,null,null,null,null,null,null,null,null,null,{"$f":"VLOOKUP(N279,Tabel10[[korte omschrijving]:[MCC3_CODE]],2,0)","v":{"$error":"#N/A"}},{"$f":"VLOOKUP(N279,Tabel10[],3,0)","v":{"$error":"#N/A"}},null,null,null,null,null,null,null,null,null,null,null,{"$error":"#DIV/0!"},0,0,null,"","","","","","","","","","",null,null,null,null,null,null,null,null,null,null,null,null,null,null,null,null,null,"ZWO"]
[null,null,null,null,null,null,null,null,null,null,null,null,null,null,{"$f":"VLOOKUP(N280,Tabel10[[korte omschrijving]:[MCC3_CODE]],2,0)","v":{"$error":"#N/A"}},{"$f":"VLOOKUP(N280,Tabel10[],3,0)","v":{"$error":"#N/A"}},null,null,null,null,null,null,null,null,null,null,null,{"$error":"#DIV/0!"},0,0,null,"","","","","","","","","","",null,null,null,null,null,null,null,null,null,null,null,null,null,null,null,null,null,"ZWO"]
[null,null,null,null,null,null,null,null,null,null,null,null,null,null,{"$f":"VLOOKUP(N281,Tabel10[[korte omschrijving]:[MCC3_CODE]],2,0)","v":{"$error":"#N/A"}},{"$f":"VLOOKUP(N281,Tabel10[],3,0)","v":{"$error":"#N/A"}},null,null,null,null,null,null,null,null,null,null,null,{"$error":"#DIV/0!"},0,0,null,"","","","","","","","","","",null,null,null,null,null,null,null,null,null,null,null,null,null,null,null,null,null,"ZWO"]
[null,null,null,null,null,null,null,null,null,null,null,null,null,null,{"$f":"VLOOKUP(N282,Tabel10[[korte omschrijving]:[MCC3_CODE]],2,0)","v":{"$error":"#N/A"}},{"$f":"VLOOKUP(N282,Tabel10[],3,0)","v":{"$error":"#N/A"}},null,null,null,null,{"$f":"SUM(T282:T287)","v":0},null,null,null,null,null,null,{"$error":"#DIV/0!"},0,0,null,"","","","","","","","","","",null,null,null,null,null,null,null,null,null,null,null,null,null,null,null,null,null,"ZWO"]
[null,null,null,null,null,null,null,null,null,null,null,null,null,null,{"$f":"VLOOKUP(N283,Tabel10[[korte omschrijving]:[MCC3_CODE]],2,0)","v":{"$error":"#N/A"}},{"$f":"VLOOKUP(N283,Tabel10[],3,0)","v":{"$error":"#N/A"}},null,null,null,null,null,null,null,null,null,null,null,{"$error":"#DIV/0!"},0,0,null,"","","","","","","","","","",null,null,null,null,null,null,null,null,null,null,null,null,null,null,null,null,null,"ZWO"]
[null,null,null,null,null,null,null,null,null,null,null,null,null,null,{"$f":"VLOOKUP(N284,Tabel10[[korte omschrijving]:[MCC3_CODE]],2,0)","v":{"$error":"#N/A"}},{"$f":"VLOOKUP(N284,Tabel10[],3,0)","v":{"$error":"#N/A"}},null,null,null,null,null,null,null,null,null,null,null,{"$error":"#DIV/0!"},0,0,null,"","","","","","","","","","",null,null,null,null,null,null,null,null,null,null,null,null,null,null,null,null,null,"ZWO"]
[null,null,null,null,null,null,null,null,null,null,null,null,null,null,{"$f":"VLOOKUP(N285,Tabel10[[korte omschrijving]:[MCC3_CODE]],2,0)","v":{"$error":"#N/A"}},{"$f":"VLOOKUP(N285,Tabel10[],3,0)","v":{"$error":"#N/A"}},null,null,null,null,null,null,null,null,null,null,null,{"$error":"#DIV/0!"},0,0,null,"","","","","","","","","","",null,null,null,null,null,null,null,null,null,null,null,null,null,null,null,null,null,"ZWO"]
[null,null,null,null,null,null,null,null,null,null,null,null,null,null,{"$f":"VLOOKUP(N286,Tabel10[[korte omschrijving]:[MCC3_CODE]],2,0)","v":{"$error":"#N/A"}},{"$f":"VLOOKUP(N286,Tabel10[],3,0)","v":{"$error":"#N/A"}},null,null,null,null,null,null,null,null,null,null,null,{"$error":"#DIV/0!"},0,0,null,"","","","","","","","","","",null,null,null,null,null,null,null,null,null,null,null,null,null,null,null,null,null,"ZWO"]
[null,null,null,null,null,null,null,null,null,null,null,null,null,null,{"$f":"VLOOKUP(N287,Tabel10[[korte omschrijving]:[MCC3_CODE]],2,0)","v":{"$error":"#N/A"}},{"$f":"VLOOKUP(N287,Tabel10[],3,0)","v":{"$error":"#N/A"}},null,null,null,null,null,null,null,null,null,null,null,{"$error":"#DIV/0!"},0,0,null,"","","","","","","","","","",null,null,null,null,null,null,null,null,null,null,null,null,null,null,null,null,null,"ZWO"]
[null,null,null,null,null,null,null,null,null,null,null,null,null,null,{"$f":"VLOOKUP(N288,Tabel10[[korte omschrijving]:[MCC3_CODE]],2,0)","v":{"$error":"#N/A"}},{"$f":"VLOOKUP(N288,Tabel10[],3,0)","v":{"$error":"#N/A"}},null,null,null,null,{"$f":"SUM(T288:T293)","v":0},null,null,null,null,null,null,{"$error":"#DIV/0!"},0,0,null,"","","","","","","","","","",null,null,null,null,null,null,null,null,null,null,null,null,null,null,null,null,null,"ZWO"]
[null,null,null,null,null,null,null,null,null,null,null,null,null,null,{"$f":"VLOOKUP(N289,Tabel10[[korte omschrijving]:[MCC3_CODE]],2,0)","v":{"$error":"#N/A"}},{"$f":"VLOOKUP(N289,Tabel10[],3,0)","v":{"$error":"#N/A"}},null,null,null,null,null,null,null,null,null,null,null,{"$error":"#DIV/0!"},0,0,null,"","","","","","","","","","",null,null,null,null,null,null,null,null,null,null,null,null,null,null,null,null,null,"ZWO"]
[null,null,null,null,null,null,null,null,null,null,null,null,null,null,{"$f":"VLOOKUP(N290,Tabel10[[korte omschrijving]:[MCC3_CODE]],2,0)","v":{"$error":"#N/A"}},{"$f":"VLOOKUP(N290,Tabel10[],3,0)","v":{"$error":"#N/A"}},null,null,null,null,null,null,null,null,null,null,null,{"$error":"#DIV/0!"},0,0,null,"","","","","","","","","","",null,null,null,null,null,null,null,null,null,null,null,null,null,null,null,null,null,"ZWO"]
[null,null,null,null,null,null,null,null,null,null,null,null,null,null,{"$f":"VLOOKUP(N291,Tabel10[[korte omschrijving]:[MCC3_CODE]],2,0)","v":{"$error":"#N/A"}},{"$f":"VLOOKUP(N291,Tabel10[],3,0)","v":{"$error":"#N/A"}},null,null,null,null,null,null,null,null,null,null,null,{"$error":"#DIV/0!"},0,0,null,"","","","","","","","","","",null,null,null,null,null,null,null,null,null,null,null,null,null,null,null,null,null,"ZWO"]
[null,null,null,null,null,null,null,null,null,null,null,null,null,null,{"$f":"VLOOKUP(N292,Tabel10[[korte omschrijving]:[MCC3_CODE]],2,0)","v":{"$error":"#N/A"}},{"$f":"VLOOKUP(N292,Tabel10[],3,0)","v":{"$error":"#N/A"}},null,null,null,null,null,null,null,null,null,null,null,{"$error":"#DIV/0!"},0,0,null,"","","","","","","","","","",null,null,null,null,null,null,null,null,null,null,null,null,null,null,null,null,null,"ZWO"]
[null,null,null,null,null,null,null,null,null,null,null,null,null,null,{"$f":"VLOOKUP(N293,Tabel10[[korte omschrijving]:[MCC3_CODE]],2,0)","v":{"$error":"#N/A"}},{"$f":"VLOOKUP(N293,Tabel10[],3,0)","v":{"$error":"#N/A"}},null,null,null,null,null,null,null,null,null,null,null,{"$error":"#DIV/0!"},0,0,null,"","","","","","","","","","",null,null,null,null,null,null,null,null,null,null,null,null,null,null,null,null,null,"ZWO"]
[null,null,null,null,null,null,null,null,null,null,null,null,null,null,{"$f":"VLOOKUP(N294,Tabel10[[korte omschrijving]:[MCC3_CODE]],2,0)","v":{"$error":"#N/A"}},{"$f":"VLOOKUP(N294,Tabel10[],3,0)","v":{"$error":"#N/A"}},null,null,null,null,{"$f":"SUM(T294:T299)","v":0},null,null,null,null,null,null,{"$error":"#DIV/0!"},0,0,null,"","","","","","","","","","",null,null,null,null,null,null,null,null,null,null,null,null,null,null,null,null,null,"ZWO"]
[null,null,null,null,null,null,null,null,null,null,null,null,null,null,{"$f":"VLOOKUP(N295,Tabel10[[korte omschrijving]:[MCC3_CODE]],2,0)","v":{"$error":"#N/A"}},{"$f":"VLOOKUP(N295,Tabel10[],3,0)","v":{"$error":"#N/A"}},null,null,null,null,null,null,null,null,null,null,null,{"$error":"#DIV/0!"},0,0,null,"","","","","","","","","","",null,null,null,null,null,null,null,null,null,null,null,null,null,null,null,null,null,"ZWO"]
[null,null,null,null,null,null,null,null,null,null,null,null,null,null,{"$f":"VLOOKUP(N296,Tabel10[[korte omschrijving]:[MCC3_CODE]],2,0)","v":{"$error":"#N/A"}},{"$f":"VLOOKUP(N296,Tabel10[],3,0)","v":{"$error":"#N/A"}},null,null,null,null,null,null,null,null,null,null,null,{"$error":"#DIV/0!"},0,0,null,"","","","","","","","","","",null,null,null,null,null,null,null,null,null,null,null,null,null,null,null,null,null,"ZWO"]
[null,null,null,null,null,null,null,null,null,null,null,null,null,null,{"$f":"VLOOKUP(N297,Tabel10[[korte omschrijving]:[MCC3_CODE]],2,0)","v":{"$error":"#N/A"}},{"$f":"VLOOKUP(N297,Tabel10[],3,0)","v":{"$error":"#N/A"}},null,null,null,null,null,null,null,null,null,null,null,{"$error":"#DIV/0!"},0,0,null,"","","","","","","","","","",null,null,null,null,null,null,null,null,null,null,null,null,null,null,null,null,null,"ZWO"]
[null,null,null,null,null,null,null,null,null,null,null,null,null,null,{"$f":"VLOOKUP(N298,Tabel10[[korte omschrijving]:[MCC3_CODE]],2,0)","v":{"$error":"#N/A"}},{"$f":"VLOOKUP(N298,Tabel10[],3,0)","v":{"$error":"#N/A"}},null,null,null,null,null,null,null,null,null,null,null,{"$error":"#DIV/0!"},0,0,null,"","","","","","","","","","",null,null,null,null,null,null,null,null,null,null,null,null,null,null,null,null,null,"ZWO"]
[null,null,null,null,null,null,null,null,null,null,null,null,null,null,{"$f":"VLOOKUP(N299,Tabel10[[korte omschrijving]:[MCC3_CODE]],2,0)","v":{"$error":"#N/A"}},{"$f":"VLOOKUP(N299,Tabel10[],3,0)","v":{"$error":"#N/A"}},null,null,null,null,null,null,null,null,null,null,null,{"$error":"#DIV/0!"},0,0,null,"","","","","","","","","","",null,null,null,null,null,null,null,null,null,null,null,null,null,null,null,null,null,"ZWO"]
[null,null,null,null,null,null,null,null,null,null,null,null,null,null,{"$f":"VLOOKUP(N300,Tabel10[[korte omschrijving]:[MCC3_CODE]],2,0)","v":{"$error":"#N/A"}},{"$f":"VLOOKUP(N300,Tabel10[],3,0)","v":{"$error":"#N/A"}},null,null,null,null,{"$f":"SUM(T300:T305)","v":0},null,null,null,null,null,null,{"$error":"#DIV/0!"},0,0,null,"","","","","","","","","","",null,null,null,null,null,null,null,null,null,null,null,null,null,null,null,null,null,"ZWO"]
[null,null,null,null,null,null,null,null,null,null,null,null,null,null,{"$f":"VLOOKUP(N301,Tabel10[[korte omschrijving]:[MCC3_CODE]],2,0)","v":{"$error":"#N/A"}},{"$f":"VLOOKUP(N301,Tabel10[],3,0)","v":{"$error":"#N/A"}},null,null,null,null,null,null,null,null,null,null,null,{"$error":"#DIV/0!"},0,0,null,"","","","","","","","","","",null,null,null,null,null,null,null,null,null,null,null,null,null,null,null,null,null,"ZWO"]
[null,null,null,null,null,null,null,null,null,null,null,null,null,null,{"$f":"VLOOKUP(N302,Tabel10[[korte omschrijving]:[MCC3_CODE]],2,0)","v":{"$error":"#N/A"}},{"$f":"VLOOKUP(N302,Tabel10[],3,0)","v":{"$error":"#N/A"}},null,null,null,null,null,null,null,null,null,null,null,{"$error":"#DIV/0!"},0,0,null,"","","","","","","","","","",null,null,null,null,null,null,null,null,null,null,null,null,null,null,null,null,null,"ZWO"]
[null,null,null,null,null,null,null,null,null,null,null,null,null,null,{"$f":"VLOOKUP(N303,Tabel10[[korte omschrijving]:[MCC3_CODE]],2,0)","v":{"$error":"#N/A"}},{"$f":"VLOOKUP(N303,Tabel10[],3,0)","v":{"$error":"#N/A"}},null,null,null,null,null,null,null,null,null,null,null,{"$error":"#DIV/0!"},0,0,null,"","","","","","","","","","",null,null,null,null,null,null,null,null,null,null,null,null,null,null,null,null,null,"ZWO"]
[null,null,null,null,null,null,null,null,null,null,null,null,null,null,{"$f":"VLOOKUP(N304,Tabel10[[korte omschrijving]:[MCC3_CODE]],2,0)","v":{"$error":"#N/A"}},{"$f":"VLOOKUP(N304,Tabel10[],3,0)","v":{"$error":"#N/A"}},null,null,null,null,null,null,null,null,null,null,null,{"$error":"#DIV/0!"},0,0,null,"","","","","","","","","","",null,null,null,null,null,null,null,null,null,null,null,null,null,null,null,null,null,"ZWO"]
[null,null,null,null,null,null,null,null,null,null,null,null,null,null,{"$f":"VLOOKUP(N305,Tabel10[[korte omschrijving]:[MCC3_CODE]],2,0)","v":{"$error":"#N/A"}},{"$f":"VLOOKUP(N305,Tabel10[],3,0)","v":{"$error":"#N/A"}},null,null,null,null,null,null,null,null,null,null,null,{"$error":"#DIV/0!"},0,0,null,"","","","","","","","","","",null,null,null,null,null,null,null,null,null,null,null,null,null,null,null,null,null,"ZWO"]
[null,null,null,null,null,null,null,null,null,null,null,null,null,null,{"$f":"VLOOKUP(N306,Tabel10[[korte omschrijving]:[MCC3_CODE]],2,0)","v":{"$error":"#N/A"}},{"$f":"VLOOKUP(N306,Tabel10[],3,0)","v":{"$error":"#N/A"}},null,null,null,null,{"$f":"SUM(T306:T311)","v":0},null,null,null,null,null,null,{"$error":"#DIV/0!"},0,0,null,"","","","","","","","","","",null,null,null,null,null,null,null,null,null,null,null,null,null,null,null,null,null,"ZWO"]
[null,null,null,null,null,null,null,null,null,null,null,null,null,null,{"$f":"VLOOKUP(N307,Tabel10[[korte omschrijving]:[MCC3_CODE]],2,0)","v":{"$error":"#N/A"}},{"$f":"VLOOKUP(N307,Tabel10[],3,0)","v":{"$error":"#N/A"}},null,null,null,null,null,null,null,null,null,null,null,{"$error":"#DIV/0!"},0,0,null,"","","","","","","","","","",null,null,null,null,null,null,null,null,null,null,null,null,null,null,null,null,null,"ZWO"]
[null,null,null,null,null,null,null,null,null,null,null,null,null,null,{"$f":"VLOOKUP(N308,Tabel10[[korte omschrijving]:[MCC3_CODE]],2,0)","v":{"$error":"#N/A"}},{"$f":"VLOOKUP(N308,Tabel10[],3,0)","v":{"$error":"#N/A"}},null,null,null,null,null,null,null,null,null,null,null,{"$error":"#DIV/0!"},0,0,null,"","","","","","","","","","",null,null,null,null,null,null,null,null,null,null,null,null,null,null,null,null,null,"ZWO"]
[null,null,null,null,null,null,null,null,null,null,null,null,null,null,{"$f":"VLOOKUP(N309,Tabel10[[korte omschrijving]:[MCC3_CODE]],2,0)","v":{"$error":"#N/A"}},{"$f":"VLOOKUP(N309,Tabel10[],3,0)","v":{"$error":"#N/A"}},null,null,null,null,null,null,null,null,null,null,null,{"$error":"#DIV/0!"},0,0,null,"","","","","","","","","","",null,null,null,null,null,null,null,null,null,null,null,null,null,null,null,null,null,"ZWO"]
[null,null,null,null,null,null,null,null,null,null,null,null,null,null,{"$f":"VLOOKUP(N310,Tabel10[[korte omschrijving]:[MCC3_CODE]],2,0)","v":{"$error":"#N/A"}},{"$f":"VLOOKUP(N310,Tabel10[],3,0)","v":{"$error":"#N/A"}},null,null,null,null,null,null,null,null,null,null,null,{"$error":"#DIV/0!"},0,0,null,"","","","","","","","","","",null,null,null,null,null,null,null,null,null,null,null,null,null,null,null,null,null,"ZWO"]
[null,null,null,null,null,null,null,null,null,null,null,null,null,null,{"$f":"VLOOKUP(N311,Tabel10[[korte omschrijving]:[MCC3_CODE]],2,0)","v":{"$error":"#N/A"}},{"$f":"VLOOKUP(N311,Tabel10[],3,0)","v":{"$error":"#N/A"}},null,null,null,null,null,null,null,null,null,null,null,{"$error":"#DIV/0!"},0,0,null,"","","","","","","","","","",null,null,null,null,null,null,null,null,null,null,null,null,null,null,null,null,null,"ZWO"]
[null,null,null,null,null,null,null,null,null,null,null,null,null,null,{"$f":"VLOOKUP(N312,Tabel10[[korte omschrijving]:[MCC3_CODE]],2,0)","v":{"$error":"#N/A"}},{"$f":"VLOOKUP(N312,Tabel10[],3,0)","v":{"$error":"#N/A"}},null,null,null,null,{"$f":"SUM(T312:T317)","v":0},null,null,null,null,null,null,{"$error":"#DIV/0!"},0,0,null,"","","","","","","","","","",null,null,null,null,null,null,null,null,null,null,null,null,null,null,null,null,null,"ZWO"]
[null,null,null,null,null,null,null,null,null,null,null,null,null,null,{"$f":"VLOOKUP(N313,Tabel10[[korte omschrijving]:[MCC3_CODE]],2,0)","v":{"$error":"#N/A"}},{"$f":"VLOOKUP(N313,Tabel10[],3,0)","v":{"$error":"#N/A"}},null,null,null,null,null,null,null,null,null,null,null,{"$error":"#DIV/0!"},0,0,null,"","","","","","","","","","",null,null,null,null,null,null,null,null,null,null,null,null,null,null,null,null,null,"ZWO"]
[null,null,null,null,null,null,null,null,null,null,null,null,null,null,{"$f":"VLOOKUP(N314,Tabel10[[korte omschrijving]:[MCC3_CODE]],2,0)","v":{"$error":"#N/A"}},{"$f":"VLOOKUP(N314,Tabel10[],3,0)","v":{"$error":"#N/A"}},null,null,null,null,null,null,null,null,null,null,null,{"$error":"#DIV/0!"},0,0,null,"","","","","","","","","","",null,null,null,null,null,null,null,null,null,null,null,null,null,null,null,null,null,"ZWO"]
[null,null,null,null,null,null,null,null,null,null,null,null,null,null,{"$f":"VLOOKUP(N315,Tabel10[[korte omschrijving]:[MCC3_CODE]],2,0)","v":{"$error":"#N/A"}},{"$f":"VLOOKUP(N315,Tabel10[],3,0)","v":{"$error":"#N/A"}},null,null,null,null,null,null,null,null,null,null,null,{"$error":"#DIV/0!"},0,0,null,"","","","","","","","","","",null,null,null,null,null,null,null,null,null,null,null,null,null,null,null,null,null,"ZWO"]
[null,null,null,null,null,null,null,null,null,null,null,null,null,null,{"$f":"VLOOKUP(N316,Tabel10[[korte omschrijving]:[MCC3_CODE]],2,0)","v":{"$error":"#N/A"}},{"$f":"VLOOKUP(N316,Tabel10[],3,0)","v":{"$error":"#N/A"}},null,null,null,null,null,null,null,null,null,null,null,{"$error":"#DIV/0!"},0,0,null,"","","","","","","","","","",null,null,null,null,null,null,null,null,null,null,null,null,null,null,null,null,null,"ZWO"]
[null,null,null,null,null,null,null,null,null,null,null,null,null,null,{"$f":"VLOOKUP(N317,Tabel10[[korte omschrijving]:[MCC3_CODE]],2,0)","v":{"$error":"#N/A"}},{"$f":"VLOOKUP(N317,Tabel10[],3,0)","v":{"$error":"#N/A"}},null,null,null,null,null,null,null,null,null,null,null,{"$error":"#DIV/0!"},0,0,null,"","","","","","","","","","",null,null,null,null,null,null,null,null,null,null,null,null,null,null,null,null,null,"ZWO"]
[null,null,null,null,null,null,null,null,null,null,null,null,null,null,{"$f":"VLOOKUP(N318,Tabel10[[korte omschrijving]:[MCC3_CODE]],2,0)","v":{"$error":"#N/A"}},{"$f":"VLOOKUP(N318,Tabel10[],3,0)","v":{"$error":"#N/A"}},null,null,null,null,{"$f":"SUM(T318:T323)","v":0},null,null,null,null,null,null,{"$error":"#DIV/0!"},0,0,null,"","","","","","","","","","",null,null,null,null,null,null,null,null,null,null,null,null,null,null,null,null,null,"ZWO"]
[null,null,null,null,null,null,null,null,null,null,null,null,null,null,{"$f":"VLOOKUP(N319,Tabel10[[korte omschrijving]:[MCC3_CODE]],2,0)","v":{"$error":"#N/A"}},{"$f":"VLOOKUP(N319,Tabel10[],3,0)","v":{"$error":"#N/A"}},null,null,null,null,null,null,null,null,null,null,null,{"$error":"#DIV/0!"},0,0,null,"","","","","","","","","","",null,null,null,null,null,null,null,null,null,null,null,null,null,null,null,null,null,"ZWO"]
[null,null,null,null,null,null,null,null,null,null,null,null,null,null,{"$f":"VLOOKUP(N320,Tabel10[[korte omschrijving]:[MCC3_CODE]],2,0)","v":{"$error":"#N/A"}},{"$f":"VLOOKUP(N320,Tabel10[],3,0)","v":{"$error":"#N/A"}},null,null,null,null,null,null,null,null,null,null,null,{"$error":"#DIV/0!"},0,0,null,"","","","","","","","","","",null,null,null,null,null,null,null,null,null,null,null,null,null,null,null,null,null,"ZWO"]
[null,null,null,null,null,null,null,null,null,null,null,null,null,null,{"$f":"VLOOKUP(N321,Tabel10[[korte omschrijving]:[MCC3_CODE]],2,0)","v":{"$error":"#N/A"}},{"$f":"VLOOKUP(N321,Tabel10[],3,0)","v":{"$error":"#N/A"}},null,null,null,null,null,null,null,null,null,null,null,{"$error":"#DIV/0!"},0,0,null,"","","","","","","","","","",null,null,null,null,null,null,null,null,null,null,null,null,null,null,null,null,null,"ZWO"]
[null,null,null,null,null,null,null,null,null,null,null,null,null,null,{"$f":"VLOOKUP(N322,Tabel10[[korte omschrijving]:[MCC3_CODE]],2,0)","v":{"$error":"#N/A"}},{"$f":"VLOOKUP(N322,Tabel10[],3,0)","v":{"$error":"#N/A"}},null,null,null,null,null,null,null,null,null,null,null,{"$error":"#DIV/0!"},0,0,null,"","","","","","","","","","",null,null,null,null,null,null,null,null,null,null,null,null,null,null,null,null,null,"ZWO"]
[null,null,null,null,null,null,null,null,null,null,null,null,null,null,{"$f":"VLOOKUP(N323,Tabel10[[korte omschrijving]:[MCC3_CODE]],2,0)","v":{"$error":"#N/A"}},{"$f":"VLOOKUP(N323,Tabel10[],3,0)","v":{"$error":"#N/A"}},null,null,null,null,null,null,null,null,null,null,null,{"$error":"#DIV/0!"},0,0,null,"","","","","","","","","","",null,null,null,null,null,null,null,null,null,null,null,null,null,null,null,null,null,"ZWO"]
[null,null,null,null,null,null,null,null,null,null,null,null,null,null,{"$f":"VLOOKUP(N324,Tabel10[[korte omschrijving]:[MCC3_CODE]],2,0)","v":{"$error":"#N/A"}},{"$f":"VLOOKUP(N324,Tabel10[],3,0)","v":{"$error":"#N/A"}},null,null,null,null,{"$f":"SUM(T324:T329)","v":0},null,null,null,null,null,null,{"$error":"#DIV/0!"},0,0,null,"","","","","","","","","","",null,null,null,null,null,null,null,null,null,null,null,null,null,null,null,null,null,"ZWO"]
[null,null,null,null,null,null,null,null,null,null,null,null,null,null,{"$f":"VLOOKUP(N325,Tabel10[[korte omschrijving]:[MCC3_CODE]],2,0)","v":{"$error":"#N/A"}},{"$f":"VLOOKUP(N325,Tabel10[],3,0)","v":{"$error":"#N/A"}},null,null,null,null,null,null,null,null,null,null,null,{"$error":"#DIV/0!"},0,0,null,"","","","","","","","","","",null,null,null,null,null,null,null,null,null,null,null,null,null,null,null,null,null,"ZWO"]
[null,null,null,null,null,null,null,null,null,null,null,null,null,null,{"$f":"VLOOKUP(N326,Tabel10[[korte omschrijving]:[MCC3_CODE]],2,0)","v":{"$error":"#N/A"}},{"$f":"VLOOKUP(N326,Tabel10[],3,0)","v":{"$error":"#N/A"}},null,null,null,null,null,null,null,null,null,null,null,{"$error":"#DIV/0!"},0,0,null,"","","","","","","","","","",null,null,null,null,null,null,null,null,null,null,null,null,null,null,null,null,null,"ZWO"]
[null,null,null,null,null,null,null,null,null,null,null,null,null,null,{"$f":"VLOOKUP(N327,Tabel10[[korte omschrijving]:[MCC3_CODE]],2,0)","v":{"$error":"#N/A"}},{"$f":"VLOOKUP(N327,Tabel10[],3,0)","v":{"$error":"#N/A"}},null,null,null,null,null,null,null,null,null,null,null,{"$f":"AA327/Y327","v":{"$error":"#DIV/0!"}},0,0,null,{"$f":"IF(AE327 <> \"\",\n    IF(ISNUMBER(VALUE(LEFT(AE327, FIND(\"%\", AE327)-1))),\n        VALUE(LEFT(AE327, FIND(\"%\", AE327)-1)),\n        \"Invalid format\"),\n    \"\")","v":""},{"$f":"IF(AE327 <> \"\",\n    IF(ISNUMBER(VALUE(LEFT(AE327, FIND(\"%\", AE327)-1))) * ISNUMBER(FIND(\"%\", AE327 & \"wol\")) > 0,\n        TRIM(MID(AE327, FIND(\"%\", AE327)+1, FIND(\"/\", AE327 & \"/\")-FIND(\"%\", AE327)-1)),\n        \"Invalid format\"),\n    \"\")","v":""},{"$f":"IF(AE327 <> \"\",\n    IF(ISNUMBER(VALUE(MID(AE327, FIND(\"/\", AE327) + 1, FIND(\"%\", AE327, FIND(\"/\", AE327)) - FIND(\"/\", AE327) - 1))),\n        VALUE(MID(AE327, FIND(\"/\", AE327) + 1, FIND(\"%\", AE327, FIND(\"/\", AE327)) - FIND(\"/\", AE327) - 1)),\n        \"\"),\n    \"\")","v":""},{"$f":"IF(AE327 <> \"\",\n    IFERROR(TRIM(MID(AE327, FIND(\"%\", AE327, FIND(\"/\", AE327)+1)+2,\n        IFERROR(FIND(\"/\", AE327 & \"/\", FIND(\"/\", AE327)+1)-FIND(\"%\", AE327, FIND(\"/\", AE327)+1)-2, LEN(AE327)-FIND(\"%\", AE327, FIND(\"/\", AE327)+1)-1))),\n        \"\"),\n    \"\")","v":""},{"$f":"IF(AE327 <> \"\",\n    IF(ISNUMBER(VALUE(MID(AE327, FIND(\"/\", AE327, FIND(\"/\", AE327)+1) + 1, FIND(\"%\", AE327, FIND(\"/\", AE327, FIND(\"/\", AE327)+1)) - FIND(\"/\", AE327, FIND(\"/\", AE327)+1) - 1))),\n        VALUE(MID(AE327, FIND(\"/\", AE327, FIND(\"/\", AE327)+1) + 1, FIND(\"%\", AE327, FIND(\"/\", AE327, FIND(\"/\", AE327)+1)) - FIND(\"/\", AE327, FIND(\"/\", AE327)+1) - 1)),\n        \"\"),\n    \"\")","v":""},{"$f":"IF(AE327 <> \"\",\n    IFERROR(\n        TRIM(MID(AE327,\n            FIND(\"%\", AE327, FIND(\"%\", AE327, FIND(\"%\", AE327)+1)+1)+1,\n            FIND(\"/\", AE327 & \"/\", FIND(\"%\", AE327, FIND(\"%\", AE327, FIND(\"%\", AE327)+1)+1))-FIND(\"%\", AE327, FIND(\"%\", AE327, FIND(\"%\", AE327)+1)+1)-1)\n        ),\n        \"\"\n    ),\n    \"\"\n)","v":""},{"$f":"IF(AE327 <> \"\",\n    IF(ISNUMBER(VALUE(MID(AE327, FIND(\"/\", AE327, FIND(\"/\", AE327, FIND(\"/\", AE327)+1)+1) + 1, FIND(\"%\", AE327, FIND(\"/\", AE327, FIND(\"/\", AE327, FIND(\"/\", AE327)+1)+1)) - FIND(\"/\", AE327, FIND(\"/\", AE327, FIND(\"/\", AE327)+1)+1) - 1))),\n        VALUE(MID(AE327, FIND(\"/\", AE327, FIND(\"/\", AE327, FIND(\"/\", AE327)+1)+1) + 1, FIND(\"%\", AE327, FIND(\"/\", AE327, FIND(\"/\", AE327, FIND(\"/\", AE327)+1)+1)) - FIND(\"/\", AE327, FIND(\"/\", AE327, FIND(\"/\", AE327)+1)+1) - 1)),\n        \"\"),\n    \"\")","v":""},{"$f":"IF(AE327 <> \"\",\n    IFERROR(TRIM(MID(AE327, FIND(\"%\", AE327, FIND(\"/\", AE327, FIND(\"/\", AE327, FIND(\"/\", AE327)+1)+1)+1)+2,\n        IFERROR(FIND(\"/\", AE327, FIND(\"/\", AE327, FIND(\"/\", AE327, FIND(\"/\", AE327)+1)+1)+1)-FIND(\"%\", AE327, FIND(\"/\", AE327, FIND(\"/\", AE327, FIND(\"/\", AE327)+1)+1)+1)-2, LEN(AE327)-FIND(\"%\", AE327, FIND(\"/\", AE327, FIND(\"/\", AE327, FIND(\"/\", AE327)+1)+1)+1)-1))),\n        \"\"),\n    \"\")","v":""},{"$f":"IF(AE327 <> \"\",\n    IF(ISNUMBER(VALUE(MID(AE327, FIND(\"/\", AE327, FIND(\"/\", AE327, FIND(\"/\", AE327, FIND(\"/\", AE327)+1)+1)+1) + 1, FIND(\"%\", AE327, FIND(\"/\", AE327, FIND(\"/\", AE327, FIND(\"/\", AE327, FIND(\"/\", AE327)+1)+1)+1)) - FIND(\"/\", AE327, FIND(\"/\", AE327, FIND(\"/\", AE327, FIND(\"/\", AE327)+1)+1)+1) - 1))),\n        VALUE(MID(AE327, FIND(\"/\", AE327, FIND(\"/\", AE327, FIND(\"/\", AE327, FIND(\"/\", AE327)+1)+1)+1) + 1, FIND(\"%\", AE327, FIND(\"/\", AE327, FIND(\"/\", AE327, FIND(\"/\", AE327, FIND(\"/\", AE327)+1)+1)+1)) - FIND(\"/\", AE327, FIND(\"/\", AE327, FIND(\"/\", AE327, FIND(\"/\", AE327)+1)+1)+1) - 1)),\n        \"\"),\n    \"\")","v":""},{"$f":"IF(AE327 = \"\", \"\",\n    IFERROR(TRIM(\n        MID(\n            AE327,\n            FIND(\"%\", AE327, FIND(\"/\", AE327, FIND(\"/\", AE327, FIND(\"/\", AE327, FIND(\"/\", AE327)+1)+1)+1)+1) + 1,\n            FIND(\"/\", AE327 & \"/\", FIND(\"%\", AE327, FIND(\"/\", AE327, FIND(\"/\", AE327, FIND(\"/\", AE327, FIND(\"/\", AE327)+1)+1)+1)+1)) -\n            FIND(\"%\", AE327, FIND(\"/\", AE327, FIND(\"/\", AE327, FIND(\"/\", AE327, FIND(\"/\", AE327)+1)+1)+1)+1) - 1\n        )\n    ),\n    \"\")\n)","v":""},null,null,null,null,null,null,null,null,null,null,null,null,null,null,null,null,null,"ZWO"]
[null,null,null,null,null,null,null,null,null,null,null,null,null,null,{"$f":"VLOOKUP(N328,Tabel10[[korte omschrijving]:[MCC3_CODE]],2,0)","v":{"$error":"#N/A"}},{"$f":"VLOOKUP(N328,Tabel10[],3,0)","v":{"$error":"#N/A"}},null,null,null,null,null,null,null,null,null,null,null,{"$error":"#DIV/0!"},{"$f":"T328*Y328","v":0},{"$f":"T328*AA328","v":0},null,"","","","","","","","","","",null,null,null,null,null,null,null,null,null,null,null,null,null,null,null,null,null,"ZWO"]
[null,null,null,null,null,null,null,null,null,null,null,null,null,null,{"$f":"VLOOKUP(N329,Tabel10[[korte omschrijving]:[MCC3_CODE]],2,0)","v":{"$error":"#N/A"}},{"$f":"VLOOKUP(N329,Tabel10[],3,0)","v":{"$error":"#N/A"}},null,null,null,null,null,null,null,null,null,null,null,{"$error":"#DIV/0!"},0,0,null,"","","","","","","","","","",null,null,null,null,null,null,null,null,null,null,null,null,null,null,null,null,null,"ZWO"]
[null,null,null,null,null,null,null,null,null,null,null,null,null,null,{"$f":"VLOOKUP(N330,Tabel10[[korte omschrijving]:[MCC3_CODE]],2,0)","v":{"$error":"#N/A"}},{"$f":"VLOOKUP(N330,Tabel10[],3,0)","v":{"$error":"#N/A"}},null,null,null,null,{"$f":"SUM(T330:T335)","v":0},null,null,null,null,null,null,{"$error":"#DIV/0!"},0,0,null,"","","","","","","","","","",null,null,null,null,null,null,null,null,null,null,null,null,null,null,null,null,null,"ZWO"]
[null,null,null,null,null,null,null,null,null,null,null,null,null,null,{"$f":"VLOOKUP(N331,Tabel10[[korte omschrijving]:[MCC3_CODE]],2,0)","v":{"$error":"#N/A"}},{"$f":"VLOOKUP(N331,Tabel10[],3,0)","v":{"$error":"#N/A"}},null,null,null,null,null,null,null,null,null,null,null,{"$error":"#DIV/0!"},0,0,null,"","","","","","","","","","",null,null,null,null,null,null,null,null,null,null,null,null,null,null,null,null,null,"ZWO"]
[null,null,null,null,null,null,null,null,null,null,null,null,null,null,{"$f":"VLOOKUP(N332,Tabel10[[korte omschrijving]:[MCC3_CODE]],2,0)","v":{"$error":"#N/A"}},{"$f":"VLOOKUP(N332,Tabel10[],3,0)","v":{"$error":"#N/A"}},null,null,null,null,null,null,null,null,null,null,null,{"$error":"#DIV/0!"},0,0,null,"","","","","","","","","","",null,null,null,null,null,null,null,null,null,null,null,null,null,null,null,null,null,"ZWO"]
[null,null,null,null,null,null,null,null,null,null,null,null,null,null,{"$f":"VLOOKUP(N333,Tabel10[[korte omschrijving]:[MCC3_CODE]],2,0)","v":{"$error":"#N/A"}},{"$f":"VLOOKUP(N333,Tabel10[],3,0)","v":{"$error":"#N/A"}},null,null,null,null,null,null,null,null,null,null,null,{"$error":"#DIV/0!"},0,0,null,"","","","","","","","","","",null,null,null,null,null,null,null,null,null,null,null,null,null,null,null,null,null,"ZWO"]
[null,null,null,null,null,null,null,null,null,null,null,null,null,null,{"$f":"VLOOKUP(N334,Tabel10[[korte omschrijving]:[MCC3_CODE]],2,0)","v":{"$error":"#N/A"}},{"$f":"VLOOKUP(N334,Tabel10[],3,0)","v":{"$error":"#N/A"}},null,null,null,null,null,null,null,null,null,null,null,{"$error":"#DIV/0!"},0,0,null,"","","","","","","","","","",null,null,null,null,null,null,null,null,null,null,null,null,null,null,null,null,null,"ZWO"]
[null,null,null,null,null,null,null,null,null,null,null,null,null,null,{"$f":"VLOOKUP(N335,Tabel10[[korte omschrijving]:[MCC3_CODE]],2,0)","v":{"$error":"#N/A"}},{"$f":"VLOOKUP(N335,Tabel10[],3,0)","v":{"$error":"#N/A"}},null,null,null,null,null,null,null,null,null,null,null,{"$error":"#DIV/0!"},0,0,null,"","","","","","","","","","",null,null,null,null,null,null,null,null,null,null,null,null,null,null,null,null,null,"ZWO"]
[null,null,null,null,null,null,null,null,null,null,null,null,null,null,{"$f":"VLOOKUP(N336,Tabel10[[korte omschrijving]:[MCC3_CODE]],2,0)","v":{"$error":"#N/A"}},{"$f":"VLOOKUP(N336,Tabel10[],3,0)","v":{"$error":"#N/A"}},null,null,null,null,{"$f":"SUM(T336:T341)","v":0},null,null,null,null,null,null,{"$error":"#DIV/0!"},0,0,null,"","","","","","","","","","",null,null,null,null,null,null,null,null,null,null,null,null,null,null,null,null,null,"ZWO"]
[null,null,null,null,null,null,null,null,null,null,null,null,null,null,{"$f":"VLOOKUP(N337,Tabel10[[korte omschrijving]:[MCC3_CODE]],2,0)","v":{"$error":"#N/A"}},{"$f":"VLOOKUP(N337,Tabel10[],3,0)","v":{"$error":"#N/A"}},null,null,null,null,null,null,null,null,null,null,null,{"$error":"#DIV/0!"},0,0,null,"","","","","","","","","","",null,null,null,null,null,null,null,null,null,null,null,null,null,null,null,null,null,"ZWO"]
[null,null,null,null,null,null,null,null,null,null,null,null,null,null,{"$f":"VLOOKUP(N338,Tabel10[[korte omschrijving]:[MCC3_CODE]],2,0)","v":{"$error":"#N/A"}},{"$f":"VLOOKUP(N338,Tabel10[],3,0)","v":{"$error":"#N/A"}},null,null,null,null,null,null,null,null,null,null,null,{"$error":"#DIV/0!"},0,0,null,"","","","","","","","","","",null,null,null,null,null,null,null,null,null,null,null,null,null,null,null,null,null,"ZWO"]
[null,null,null,null,null,null,null,null,null,null,null,null,null,null,{"$f":"VLOOKUP(N339,Tabel10[[korte omschrijving]:[MCC3_CODE]],2,0)","v":{"$error":"#N/A"}},{"$f":"VLOOKUP(N339,Tabel10[],3,0)","v":{"$error":"#N/A"}},null,null,null,null,null,null,null,null,null,null,null,{"$error":"#DIV/0!"},0,0,null,"","","","","","","","","","",null,null,null,null,null,null,null,null,null,null,null,null,null,null,null,null,null,"ZWO"]
[null,null,null,null,null,null,null,null,null,null,null,null,null,null,{"$f":"VLOOKUP(N340,Tabel10[[korte omschrijving]:[MCC3_CODE]],2,0)","v":{"$error":"#N/A"}},{"$f":"VLOOKUP(N340,Tabel10[],3,0)","v":{"$error":"#N/A"}},null,null,null,null,null,null,null,null,null,null,null,{"$error":"#DIV/0!"},0,0,null,"","","","","","","","","","",null,null,null,null,null,null,null,null,null,null,null,null,null,null,null,null,null,"ZWO"]
[null,null,null,null,null,null,null,null,null,null,null,null,null,null,{"$f":"VLOOKUP(N341,Tabel10[[korte omschrijving]:[MCC3_CODE]],2,0)","v":{"$error":"#N/A"}},{"$f":"VLOOKUP(N341,Tabel10[],3,0)","v":{"$error":"#N/A"}},null,null,null,null,null,null,null,null,null,null,null,{"$error":"#DIV/0!"},0,0,null,"","","","","","","","","","",null,null,null,null,null,null,null,null,null,null,null,null,null,null,null,null,null,"ZWO"]
[null,null,null,null,null,null,null,null,null,null,null,null,null,null,{"$f":"VLOOKUP(N342,Tabel10[[korte omschrijving]:[MCC3_CODE]],2,0)","v":{"$error":"#N/A"}},{"$f":"VLOOKUP(N342,Tabel10[],3,0)","v":{"$error":"#N/A"}},null,null,null,null,{"$f":"SUM(T342:T347)","v":0},null,null,null,null,null,null,{"$error":"#DIV/0!"},0,0,null,"","","","","","","","","","",null,null,null,null,null,null,null,null,null,null,null,null,null,null,null,null,null,"ZWO"]
[null,null,null,null,null,null,null,null,null,null,null,null,null,null,{"$f":"VLOOKUP(N343,Tabel10[[korte omschrijving]:[MCC3_CODE]],2,0)","v":{"$error":"#N/A"}},{"$f":"VLOOKUP(N343,Tabel10[],3,0)","v":{"$error":"#N/A"}},null,null,null,null,null,null,null,null,null,null,null,{"$error":"#DIV/0!"},0,0,null,"","","","","","","","","","",null,null,null,null,null,null,null,null,null,null,null,null,null,null,null,null,null,"ZWO"]
[null,null,null,null,null,null,null,null,null,null,null,null,null,null,{"$f":"VLOOKUP(N344,Tabel10[[korte omschrijving]:[MCC3_CODE]],2,0)","v":{"$error":"#N/A"}},{"$f":"VLOOKUP(N344,Tabel10[],3,0)","v":{"$error":"#N/A"}},null,null,null,null,null,null,null,null,null,null,null,{"$error":"#DIV/0!"},0,0,null,"","","","","","","","","","",null,null,null,null,null,null,null,null,null,null,null,null,null,null,null,null,null,"ZWO"]
[null,null,null,null,null,null,null,null,null,null,null,null,null,null,{"$f":"VLOOKUP(N345,Tabel10[[korte omschrijving]:[MCC3_CODE]],2,0)","v":{"$error":"#N/A"}},{"$f":"VLOOKUP(N345,Tabel10[],3,0)","v":{"$error":"#N/A"}},null,null,null,null,null,null,null,null,null,null,null,{"$error":"#DIV/0!"},0,0,null,"","","","","","","","","","",null,null,null,null,null,null,null,null,null,null,null,null,null,null,null,null,null,"ZWO"]
[null,null,null,null,null,null,null,null,null,null,null,null,null,null,{"$f":"VLOOKUP(N346,Tabel10[[korte omschrijving]:[MCC3_CODE]],2,0)","v":{"$error":"#N/A"}},{"$f":"VLOOKUP(N346,Tabel10[],3,0)","v":{"$error":"#N/A"}},null,null,null,null,null,null,null,null,null,null,null,{"$error":"#DIV/0!"},0,0,null,"","","","","","","","","","",null,null,null,null,null,null,null,null,null,null,null,null,null,null,null,null,null,"ZWO"]
[null,null,null,null,null,null,null,null,null,null,null,null,null,null,{"$f":"VLOOKUP(N347,Tabel10[[korte omschrijving]:[MCC3_CODE]],2,0)","v":{"$error":"#N/A"}},{"$f":"VLOOKUP(N347,Tabel10[],3,0)","v":{"$error":"#N/A"}},null,null,null,null,null,null,null,null,null,null,null,{"$error":"#DIV/0!"},0,0,null,"","","","","","","","","","",null,null,null,null,null,null,null,null,null,null,null,null,null,null,null,null,null,"ZWO"]
[null,null,null,null,null,null,null,null,null,null,null,null,null,null,{"$f":"VLOOKUP(N348,Tabel10[[korte omschrijving]:[MCC3_CODE]],2,0)","v":{"$error":"#N/A"}},{"$f":"VLOOKUP(N348,Tabel10[],3,0)","v":{"$error":"#N/A"}},null,null,null,null,{"$f":"SUM(T348:T353)","v":0},null,null,null,null,null,null,{"$error":"#DIV/0!"},0,0,null,"","","","","","","","","","",null,null,null,null,null,null,null,null,null,null,null,null,null,null,null,null,null,"ZWO"]
[null,null,null,null,null,null,null,null,null,null,null,null,null,null,{"$f":"VLOOKUP(N349,Tabel10[[korte omschrijving]:[MCC3_CODE]],2,0)","v":{"$error":"#N/A"}},{"$f":"VLOOKUP(N349,Tabel10[],3,0)","v":{"$error":"#N/A"}},null,null,null,null,null,null,null,null,null,null,null,{"$error":"#DIV/0!"},0,0,null,"","","","","","","","","","",null,null,null,null,null,null,null,null,null,null,null,null,null,null,null,null,null,"ZWO"]
[null,null,null,null,null,null,null,null,null,null,null,null,null,null,{"$f":"VLOOKUP(N350,Tabel10[[korte omschrijving]:[MCC3_CODE]],2,0)","v":{"$error":"#N/A"}},{"$f":"VLOOKUP(N350,Tabel10[],3,0)","v":{"$error":"#N/A"}},null,null,null,null,null,null,null,null,null,null,null,{"$error":"#DIV/0!"},0,0,null,"","","","","","","","","","",null,null,null,null,null,null,null,null,null,null,null,null,null,null,null,null,null,"ZWO"]
[null,null,null,null,null,null,null,null,null,null,null,null,null,null,{"$f":"VLOOKUP(N351,Tabel10[[korte omschrijving]:[MCC3_CODE]],2,0)","v":{"$error":"#N/A"}},{"$f":"VLOOKUP(N351,Tabel10[],3,0)","v":{"$error":"#N/A"}},null,null,null,null,null,null,null,null,null,null,null,{"$error":"#DIV/0!"},0,0,null,"","","","","","","","","","",null,null,null,null,null,null,null,null,null,null,null,null,null,null,null,null,null,"ZWO"]
[null,null,null,null,null,null,null,null,null,null,null,null,null,null,{"$f":"VLOOKUP(N352,Tabel10[[korte omschrijving]:[MCC3_CODE]],2,0)","v":{"$error":"#N/A"}},{"$f":"VLOOKUP(N352,Tabel10[],3,0)","v":{"$error":"#N/A"}},null,null,null,null,null,null,null,null,null,null,null,{"$error":"#DIV/0!"},0,0,null,"","","","","","","","","","",null,null,null,null,null,null,null,null,null,null,null,null,null,null,null,null,null,"ZWO"]
[null,null,null,null,null,null,null,null,null,null,null,null,null,null,{"$f":"VLOOKUP(N353,Tabel10[[korte omschrijving]:[MCC3_CODE]],2,0)","v":{"$error":"#N/A"}},{"$f":"VLOOKUP(N353,Tabel10[],3,0)","v":{"$error":"#N/A"}},null,null,null,null,null,null,null,null,null,null,null,{"$error":"#DIV/0!"},0,0,null,"","","","","","","","","","",null,null,null,null,null,null,null,null,null,null,null,null,null,null,null,null,null,"ZWO"]
[null,null,null,null,null,null,null,null,null,null,null,null,null,null,{"$f":"VLOOKUP(N354,Tabel10[[korte omschrijving]:[MCC3_CODE]],2,0)","v":{"$error":"#N/A"}},{"$f":"VLOOKUP(N354,Tabel10[],3,0)","v":{"$error":"#N/A"}},null,null,null,null,{"$f":"SUM(T354:T359)","v":0},null,null,null,null,null,null,{"$error":"#DIV/0!"},0,0,null,"","","","","","","","","","",null,null,null,null,null,null,null,null,null,null,null,null,null,null,null,null,null,"ZWO"]
[null,null,null,null,null,null,null,null,null,null,null,null,null,null,{"$f":"VLOOKUP(N355,Tabel10[[korte omschrijving]:[MCC3_CODE]],2,0)","v":{"$error":"#N/A"}},{"$f":"VLOOKUP(N355,Tabel10[],3,0)","v":{"$error":"#N/A"}},null,null,null,null,null,null,null,null,null,null,null,{"$error":"#DIV/0!"},0,0,null,"","","","","","","","","","",null,null,null,null,null,null,null,null,null,null,null,null,null,null,null,null,null,"ZWO"]
[null,null,null,null,null,null,null,null,null,null,null,null,null,null,{"$f":"VLOOKUP(N356,Tabel10[[korte omschrijving]:[MCC3_CODE]],2,0)","v":{"$error":"#N/A"}},{"$f":"VLOOKUP(N356,Tabel10[],3,0)","v":{"$error":"#N/A"}},null,null,null,null,null,null,null,null,null,null,null,{"$error":"#DIV/0!"},0,0,null,"","","","","","","","","","",null,null,null,null,null,null,null,null,null,null,null,null,null,null,null,null,null,"ZWO"]
[null,null,null,null,null,null,null,null,null,null,null,null,null,null,{"$f":"VLOOKUP(N357,Tabel10[[korte omschrijving]:[MCC3_CODE]],2,0)","v":{"$error":"#N/A"}},{"$f":"VLOOKUP(N357,Tabel10[],3,0)","v":{"$error":"#N/A"}},null,null,null,null,null,null,null,null,null,null,null,{"$error":"#DIV/0!"},0,0,null,"","","","","","","","","","",null,null,null,null,null,null,null,null,null,null,null,null,null,null,null,null,null,"ZWO"]
[null,null,null,null,null,null,null,null,null,null,null,null,null,null,{"$f":"VLOOKUP(N358,Tabel10[[korte omschrijving]:[MCC3_CODE]],2,0)","v":{"$error":"#N/A"}},{"$f":"VLOOKUP(N358,Tabel10[],3,0)","v":{"$error":"#N/A"}},null,null,null,null,null,null,null,null,null,null,null,{"$error":"#DIV/0!"},0,0,null,"","","","","","","","","","",null,null,null,null,null,null,null,null,null,null,null,null,null,null,null,null,null,"ZWO"]
[null,null,null,null,null,null,null,null,null,null,null,null,null,null,{"$f":"VLOOKUP(N359,Tabel10[[korte omschrijving]:[MCC3_CODE]],2,0)","v":{"$error":"#N/A"}},{"$f":"VLOOKUP(N359,Tabel10[],3,0)","v":{"$error":"#N/A"}},null,null,null,null,null,null,null,null,null,null,null,{"$error":"#DIV/0!"},0,0,null,"","","","","","","","","","",null,null,null,null,null,null,null,null,null,null,null,null,null,null,null,null,null,"ZWO"]
[null,null,null,null,null,null,null,null,null,null,null,null,null,null,{"$f":"VLOOKUP(N360,Tabel10[[korte omschrijving]:[MCC3_CODE]],2,0)","v":{"$error":"#N/A"}},{"$f":"VLOOKUP(N360,Tabel10[],3,0)","v":{"$error":"#N/A"}},null,null,null,null,{"$f":"SUM(T360:T365)","v":0},null,null,null,null,null,null,{"$error":"#DIV/0!"},0,0,null,"","","","","","","","","","",null,null,null,null,null,null,null,null,null,null,null,null,null,null,null,null,null,"ZWO"]
[null,null,null,null,null,null,null,null,null,null,null,null,null,null,{"$f":"VLOOKUP(N361,Tabel10[[korte omschrijving]:[MCC3_CODE]],2,0)","v":{"$error":"#N/A"}},{"$f":"VLOOKUP(N361,Tabel10[],3,0)","v":{"$error":"#N/A"}},null,null,null,null,null,null,null,null,null,null,null,{"$error":"#DIV/0!"},0,0,null,"","","","","","","","","","",null,null,null,null,null,null,null,null,null,null,null,null,null,null,null,null,null,"ZWO"]
[null,null,null,null,null,null,null,null,null,null,null,null,null,null,{"$f":"VLOOKUP(N362,Tabel10[[korte omschrijving]:[MCC3_CODE]],2,0)","v":{"$error":"#N/A"}},{"$f":"VLOOKUP(N362,Tabel10[],3,0)","v":{"$error":"#N/A"}},null,null,null,null,null,null,null,null,null,null,null,{"$error":"#DIV/0!"},0,0,null,"","","","","","","","","","",null,null,null,null,null,null,null,null,null,null,null,null,null,null,null,null,null,"ZWO"]
[null,null,null,null,null,null,null,null,null,null,null,null,null,null,{"$f":"VLOOKUP(N363,Tabel10[[korte omschrijving]:[MCC3_CODE]],2,0)","v":{"$error":"#N/A"}},{"$f":"VLOOKUP(N363,Tabel10[],3,0)","v":{"$error":"#N/A"}},null,null,null,null,null,null,null,null,null,null,null,{"$error":"#DIV/0!"},0,0,null,"","","","","","","","","","",null,null,null,null,null,null,null,null,null,null,null,null,null,null,null,null,null,"ZWO"]
[null,null,null,null,null,null,null,null,null,null,null,null,null,null,{"$f":"VLOOKUP(N364,Tabel10[[korte omschrijving]:[MCC3_CODE]],2,0)","v":{"$error":"#N/A"}},{"$f":"VLOOKUP(N364,Tabel10[],3,0)","v":{"$error":"#N/A"}},null,null,null,null,null,null,null,null,null,null,null,{"$error":"#DIV/0!"},0,0,null,"","","","","","","","","","",null,null,null,null,null,null,null,null,null,null,null,null,null,null,null,null,null,"ZWO"]
[null,null,null,null,null,null,null,null,null,null,null,null,null,null,{"$f":"VLOOKUP(N365,Tabel10[[korte omschrijving]:[MCC3_CODE]],2,0)","v":{"$error":"#N/A"}},{"$f":"VLOOKUP(N365,Tabel10[],3,0)","v":{"$error":"#N/A"}},null,null,null,null,null,null,null,null,null,null,null,{"$error":"#DIV/0!"},0,0,null,"","","","","","","","","","",null,null,null,null,null,null,null,null,null,null,null,null,null,null,null,null,null,"ZWO"]
[null,null,null,null,null,null,null,null,null,null,null,null,null,null,{"$f":"VLOOKUP(N366,Tabel10[[korte omschrijving]:[MCC3_CODE]],2,0)","v":{"$error":"#N/A"}},{"$f":"VLOOKUP(N366,Tabel10[],3,0)","v":{"$error":"#N/A"}},null,null,null,null,{"$f":"SUM(T366:T371)","v":0},null,null,null,null,null,null,{"$error":"#DIV/0!"},0,0,null,"","","","","","","","","","",null,null,null,null,null,null,null,null,null,null,null,null,null,null,null,null,null,"ZWO"]
[null,null,null,null,null,null,null,null,null,null,null,null,null,null,{"$f":"VLOOKUP(N367,Tabel10[[korte omschrijving]:[MCC3_CODE]],2,0)","v":{"$error":"#N/A"}},{"$f":"VLOOKUP(N367,Tabel10[],3,0)","v":{"$error":"#N/A"}},null,null,null,null,null,null,null,null,null,null,null,{"$error":"#DIV/0!"},0,0,null,"","","","","","","","","","",null,null,null,null,null,null,null,null,null,null,null,null,null,null,null,null,null,"ZWO"]
[null,null,null,null,null,null,null,null,null,null,null,null,null,null,{"$f":"VLOOKUP(N368,Tabel10[[korte omschrijving]:[MCC3_CODE]],2,0)","v":{"$error":"#N/A"}},{"$f":"VLOOKUP(N368,Tabel10[],3,0)","v":{"$error":"#N/A"}},null,null,null,null,null,null,null,null,null,null,null,{"$error":"#DIV/0!"},0,0,null,"","","","","","","","","","",null,null,null,null,null,null,null,null,null,null,null,null,null,null,null,null,null,"ZWO"]
[null,null,null,null,null,null,null,null,null,null,null,null,null,null,{"$f":"VLOOKUP(N369,Tabel10[[korte omschrijving]:[MCC3_CODE]],2,0)","v":{"$error":"#N/A"}},{"$f":"VLOOKUP(N369,Tabel10[],3,0)","v":{"$error":"#N/A"}},null,null,null,null,null,null,null,null,null,null,null,{"$error":"#DIV/0!"},0,0,null,"","","","","","","","","","",null,null,null,null,null,null,null,null,null,null,null,null,null,null,null,null,null,"ZWO"]
[null,null,null,null,null,null,null,null,null,null,null,null,null,null,{"$f":"VLOOKUP(N370,Tabel10[[korte omschrijving]:[MCC3_CODE]],2,0)","v":{"$error":"#N/A"}},{"$f":"VLOOKUP(N370,Tabel10[],3,0)","v":{"$error":"#N/A"}},null,null,null,null,null,null,null,null,null,null,null,{"$error":"#DIV/0!"},0,0,null,"","","","","","","","","","",null,null,null,null,null,null,null,null,null,null,null,null,null,null,null,null,null,"ZWO"]
[null,null,null,null,null,null,null,null,null,null,null,null,null,null,{"$f":"VLOOKUP(N371,Tabel10[[korte omschrijving]:[MCC3_CODE]],2,0)","v":{"$error":"#N/A"}},{"$f":"VLOOKUP(N371,Tabel10[],3,0)","v":{"$error":"#N/A"}},null,null,null,null,null,null,null,null,null,null,null,{"$error":"#DIV/0!"},0,0,null,"","","","","","","","","","",null,null,null,null,null,null,null,null,null,null,null,null,null,null,null,null,null,"ZWO"]
[null,null,null,null,null,null,null,null,null,null,null,null,null,null,{"$f":"VLOOKUP(N372,Tabel10[[korte omschrijving]:[MCC3_CODE]],2,0)","v":{"$error":"#N/A"}},{"$f":"VLOOKUP(N372,Tabel10[],3,0)","v":{"$error":"#N/A"}},null,null,null,null,{"$f":"SUM(T372:T377)","v":0},null,null,null,null,null,null,{"$error":"#DIV/0!"},0,0,null,"","","","","","","","","","",null,null,null,null,null,null,null,null,null,null,null,null,null,null,null,null,null,"ZWO"]
[null,null,null,null,null,null,null,null,null,null,null,null,null,null,{"$f":"VLOOKUP(N373,Tabel10[[korte omschrijving]:[MCC3_CODE]],2,0)","v":{"$error":"#N/A"}},{"$f":"VLOOKUP(N373,Tabel10[],3,0)","v":{"$error":"#N/A"}},null,null,null,null,null,null,null,null,null,null,null,{"$error":"#DIV/0!"},0,0,null,"","","","","","","","","","",null,null,null,null,null,null,null,null,null,null,null,null,null,null,null,null,null,"ZWO"]
[null,null,null,null,null,null,null,null,null,null,null,null,null,null,{"$f":"VLOOKUP(N374,Tabel10[[korte omschrijving]:[MCC3_CODE]],2,0)","v":{"$error":"#N/A"}},{"$f":"VLOOKUP(N374,Tabel10[],3,0)","v":{"$error":"#N/A"}},null,null,null,null,null,null,null,null,null,null,null,{"$error":"#DIV/0!"},0,0,null,"","","","","","","","","","",null,null,null,null,null,null,null,null,null,null,null,null,null,null,null,null,null,"ZWO"]
[null,null,null,null,null,null,null,null,null,null,null,null,null,null,{"$f":"VLOOKUP(N375,Tabel10[[korte omschrijving]:[MCC3_CODE]],2,0)","v":{"$error":"#N/A"}},{"$f":"VLOOKUP(N375,Tabel10[],3,0)","v":{"$error":"#N/A"}},null,null,null,null,null,null,null,null,null,null,null,{"$error":"#DIV/0!"},0,0,null,"","","","","","","","","","",null,null,null,null,null,null,null,null,null,null,null,null,null,null,null,null,null,"ZWO"]
[null,null,null,null,null,null,null,null,null,null,null,null,null,null,{"$f":"VLOOKUP(N376,Tabel10[[korte omschrijving]:[MCC3_CODE]],2,0)","v":{"$error":"#N/A"}},{"$f":"VLOOKUP(N376,Tabel10[],3,0)","v":{"$error":"#N/A"}},null,null,null,null,null,null,null,null,null,null,null,{"$error":"#DIV/0!"},0,0,null,"","","","","","","","","","",null,null,null,null,null,null,null,null,null,null,null,null,null,null,null,null,null,"ZWO"]
[null,null,null,null,null,null,null,null,null,null,null,null,null,null,{"$f":"VLOOKUP(N377,Tabel10[[korte omschrijving]:[MCC3_CODE]],2,0)","v":{"$error":"#N/A"}},{"$f":"VLOOKUP(N377,Tabel10[],3,0)","v":{"$error":"#N/A"}},null,null,null,null,null,null,null,null,null,null,null,{"$error":"#DIV/0!"},0,0,null,"","","","","","","","","","",null,null,null,null,null,null,null,null,null,null,null,null,null,null,null,null,null,"ZWO"]
[null,null,null,null,null,null,null,null,null,null,null,null,null,null,{"$f":"VLOOKUP(N378,Tabel10[[korte omschrijving]:[MCC3_CODE]],2,0)","v":{"$error":"#N/A"}},{"$f":"VLOOKUP(N378,Tabel10[],3,0)","v":{"$error":"#N/A"}},null,null,null,null,{"$f":"SUM(T378:T383)","v":0},null,null,null,null,null,null,{"$error":"#DIV/0!"},0,0,null,"","","","","","","","","","",null,null,null,null,null,null,null,null,null,null,null,null,null,null,null,null,null,"ZWO"]
[null,null,null,null,null,null,null,null,null,null,null,null,null,null,{"$f":"VLOOKUP(N379,Tabel10[[korte omschrijving]:[MCC3_CODE]],2,0)","v":{"$error":"#N/A"}},{"$f":"VLOOKUP(N379,Tabel10[],3,0)","v":{"$error":"#N/A"}},null,null,null,null,null,null,null,null,null,null,null,{"$error":"#DIV/0!"},0,0,null,"","","","","","","","","","",null,null,null,null,null,null,null,null,null,null,null,null,null,null,null,null,null,"ZWO"]
[null,null,null,null,null,null,null,null,null,null,null,null,null,null,{"$f":"VLOOKUP(N380,Tabel10[[korte omschrijving]:[MCC3_CODE]],2,0)","v":{"$error":"#N/A"}},{"$f":"VLOOKUP(N380,Tabel10[],3,0)","v":{"$error":"#N/A"}},null,null,null,null,null,null,null,null,null,null,null,{"$error":"#DIV/0!"},0,0,null,"","","","","","","","","","",null,null,null,null,null,null,null,null,null,null,null,null,null,null,null,null,null,"ZWO"]
[null,null,null,null,null,null,null,null,null,null,null,null,null,null,{"$f":"VLOOKUP(N381,Tabel10[[korte omschrijving]:[MCC3_CODE]],2,0)","v":{"$error":"#N/A"}},{"$f":"VLOOKUP(N381,Tabel10[],3,0)","v":{"$error":"#N/A"}},null,null,null,null,null,null,null,null,null,null,null,{"$error":"#DIV/0!"},0,0,null,"","","","","","","","","","",null,null,null,null,null,null,null,null,null,null,null,null,null,null,null,null,null,"ZWO"]
[null,null,null,null,null,null,null,null,null,null,null,null,null,null,{"$f":"VLOOKUP(N382,Tabel10[[korte omschrijving]:[MCC3_CODE]],2,0)","v":{"$error":"#N/A"}},{"$f":"VLOOKUP(N382,Tabel10[],3,0)","v":{"$error":"#N/A"}},null,null,null,null,null,null,null,null,null,null,null,{"$error":"#DIV/0!"},0,0,null,"","","","","","","","","","",null,null,null,null,null,null,null,null,null,null,null,null,null,null,null,null,null,"ZWO"]
[null,null,null,null,null,null,null,null,null,null,null,null,null,null,{"$f":"VLOOKUP(N383,Tabel10[[korte omschrijving]:[MCC3_CODE]],2,0)","v":{"$error":"#N/A"}},{"$f":"VLOOKUP(N383,Tabel10[],3,0)","v":{"$error":"#N/A"}},null,null,null,null,null,null,null,null,null,null,null,{"$error":"#DIV/0!"},0,0,null,"","","","","","","","","","",null,null,null,null,null,null,null,null,null,null,null,null,null,null,null,null,null,"ZWO"]
[null,null,null,null,null,null,null,null,null,null,null,null,null,null,{"$f":"VLOOKUP(N384,Tabel10[[korte omschrijving]:[MCC3_CODE]],2,0)","v":{"$error":"#N/A"}},{"$f":"VLOOKUP(N384,Tabel10[],3,0)","v":{"$error":"#N/A"}},null,null,null,null,{"$f":"SUM(T384:T389)","v":0},null,null,null,null,null,null,{"$error":"#DIV/0!"},0,0,null,"","","","","","","","","","",null,null,null,null,null,null,null,null,null,null,null,null,null,null,null,null,null,"ZWO"]
[null,null,null,null,null,null,null,null,null,null,null,null,null,null,{"$f":"VLOOKUP(N385,Tabel10[[korte omschrijving]:[MCC3_CODE]],2,0)","v":{"$error":"#N/A"}},{"$f":"VLOOKUP(N385,Tabel10[],3,0)","v":{"$error":"#N/A"}},null,null,null,null,null,null,null,null,null,null,null,{"$error":"#DIV/0!"},0,0,null,"","","","","","","","","","",null,null,null,null,null,null,null,null,null,null,null,null,null,null,null,null,null,"ZWO"]
[null,null,null,null,null,null,null,null,null,null,null,null,null,null,{"$f":"VLOOKUP(N386,Tabel10[[korte omschrijving]:[MCC3_CODE]],2,0)","v":{"$error":"#N/A"}},{"$f":"VLOOKUP(N386,Tabel10[],3,0)","v":{"$error":"#N/A"}},null,null,null,null,null,null,null,null,null,null,null,{"$error":"#DIV/0!"},0,0,null,"","","","","","","","","","",null,null,null,null,null,null,null,null,null,null,null,null,null,null,null,null,null,"ZWO"]
[null,null,null,null,null,null,null,null,null,null,null,null,null,null,{"$f":"VLOOKUP(N387,Tabel10[[korte omschrijving]:[MCC3_CODE]],2,0)","v":{"$error":"#N/A"}},{"$f":"VLOOKUP(N387,Tabel10[],3,0)","v":{"$error":"#N/A"}},null,null,null,null,null,null,null,null,null,null,null,{"$error":"#DIV/0!"},0,0,null,"","","","","","","","","","",null,null,null,null,null,null,null,null,null,null,null,null,null,null,null,null,null,"ZWO"]
[null,null,null,null,null,null,null,null,null,null,null,null,null,null,{"$f":"VLOOKUP(N388,Tabel10[[korte omschrijving]:[MCC3_CODE]],2,0)","v":{"$error":"#N/A"}},{"$f":"VLOOKUP(N388,Tabel10[],3,0)","v":{"$error":"#N/A"}},null,null,null,null,null,null,null,null,null,null,null,{"$error":"#DIV/0!"},0,0,null,"","","","","","","","","","",null,null,null,null,null,null,null,null,null,null,null,null,null,null,null,null,null,"ZWO"]
[null,null,null,null,null,null,null,null,null,null,null,null,null,null,{"$f":"VLOOKUP(N389,Tabel10[[korte omschrijving]:[MCC3_CODE]],2,0)","v":{"$error":"#N/A"}},{"$f":"VLOOKUP(N389,Tabel10[],3,0)","v":{"$error":"#N/A"}},null,null,null,null,null,null,null,null,null,null,null,{"$error":"#DIV/0!"},0,0,null,"","","","","","","","","","",null,null,null,null,null,null,null,null,null,null,null,null,null,null,null,null,null,"ZWO"]
[null,null,null,null,null,null,null,null,null,null,null,null,null,null,{"$f":"VLOOKUP(N390,Tabel10[[korte omschrijving]:[MCC3_CODE]],2,0)","v":{"$error":"#N/A"}},{"$f":"VLOOKUP(N390,Tabel10[],3,0)","v":{"$error":"#N/A"}},null,null,null,null,{"$f":"SUM(T390:T395)","v":0},null,null,null,null,null,null,{"$error":"#DIV/0!"},0,0,null,"","","","","","","","","","",null,null,null,null,null,null,null,null,null,null,null,null,null,null,null,null,null,"ZWO"]
[null,null,null,null,null,null,null,null,null,null,null,null,null,null,{"$f":"VLOOKUP(N391,Tabel10[[korte omschrijving]:[MCC3_CODE]],2,0)","v":{"$error":"#N/A"}},{"$f":"VLOOKUP(N391,Tabel10[],3,0)","v":{"$error":"#N/A"}},null,null,null,null,null,null,null,null,null,null,null,{"$f":"AA391/Y391","v":{"$error":"#DIV/0!"}},0,0,null,{"$f":"IF(AE391 <> \"\",\n    IF(ISNUMBER(VALUE(LEFT(AE391, FIND(\"%\", AE391)-1))),\n        VALUE(LEFT(AE391, FIND(\"%\", AE391)-1)),\n        \"Invalid format\"),\n    \"\")","v":""},{"$f":"IF(AE391 <> \"\",\n    IF(ISNUMBER(VALUE(LEFT(AE391, FIND(\"%\", AE391)-1))) * ISNUMBER(FIND(\"%\", AE391 & \"wol\")) > 0,\n        TRIM(MID(AE391, FIND(\"%\", AE391)+1, FIND(\"/\", AE391 & \"/\")-FIND(\"%\", AE391)-1)),\n        \"Invalid format\"),\n    \"\")","v":""},{"$f":"IF(AE391 <> \"\",\n    IF(ISNUMBER(VALUE(MID(AE391, FIND(\"/\", AE391) + 1, FIND(\"%\", AE391, FIND(\"/\", AE391)) - FIND(\"/\", AE391) - 1))),\n        VALUE(MID(AE391, FIND(\"/\", AE391) + 1, FIND(\"%\", AE391, FIND(\"/\", AE391)) - FIND(\"/\", AE391) - 1)),\n        \"\"),\n    \"\")","v":""},{"$f":"IF(AE391 <> \"\",\n    IFERROR(TRIM(MID(AE391, FIND(\"%\", AE391, FIND(\"/\", AE391)+1)+2,\n        IFERROR(FIND(\"/\", AE391 & \"/\", FIND(\"/\", AE391)+1)-FIND(\"%\", AE391, FIND(\"/\", AE391)+1)-2, LEN(AE391)-FIND(\"%\", AE391, FIND(\"/\", AE391)+1)-1))),\n        \"\"),\n    \"\")","v":""},{"$f":"IF(AE391 <> \"\",\n    IF(ISNUMBER(VALUE(MID(AE391, FIND(\"/\", AE391, FIND(\"/\", AE391)+1) + 1, FIND(\"%\", AE391, FIND(\"/\", AE391, FIND(\"/\", AE391)+1)) - FIND(\"/\", AE391, FIND(\"/\", AE391)+1) - 1))),\n        VALUE(MID(AE391, FIND(\"/\", AE391, FIND(\"/\", AE391)+1) + 1, FIND(\"%\", AE391, FIND(\"/\", AE391, FIND(\"/\", AE391)+1)) - FIND(\"/\", AE391, FIND(\"/\", AE391)+1) - 1)),\n        \"\"),\n    \"\")","v":""},{"$f":"IF(AE391 <> \"\",\n    IFERROR(\n        TRIM(MID(AE391,\n            FIND(\"%\", AE391, FIND(\"%\", AE391, FIND(\"%\", AE391)+1)+1)+1,\n            FIND(\"/\", AE391 & \"/\", FIND(\"%\", AE391, FIND(\"%\", AE391, FIND(\"%\", AE391)+1)+1))-FIND(\"%\", AE391, FIND(\"%\", AE391, FIND(\"%\", AE391)+1)+1)-1)\n        ),\n        \"\"\n    ),\n    \"\"\n)","v":""},{"$f":"IF(AE391 <> \"\",\n    IF(ISNUMBER(VALUE(MID(AE391, FIND(\"/\", AE391, FIND(\"/\", AE391, FIND(\"/\", AE391)+1)+1) + 1, FIND(\"%\", AE391, FIND(\"/\", AE391, FIND(\"/\", AE391, FIND(\"/\", AE391)+1)+1)) - FIND(\"/\", AE391, FIND(\"/\", AE391, FIND(\"/\", AE391)+1)+1) - 1))),\n        VALUE(MID(AE391, FIND(\"/\", AE391, FIND(\"/\", AE391, FIND(\"/\", AE391)+1)+1) + 1, FIND(\"%\", AE391, FIND(\"/\", AE391, FIND(\"/\", AE391, FIND(\"/\", AE391)+1)+1)) - FIND(\"/\", AE391, FIND(\"/\", AE391, FIND(\"/\", AE391)+1)+1) - 1)),\n        \"\"),\n    \"\")","v":""},{"$f":"IF(AE391 <> \"\",\n    IFERROR(TRIM(MID(AE391, FIND(\"%\", AE391, FIND(\"/\", AE391, FIND(\"/\", AE391, FIND(\"/\", AE391)+1)+1)+1)+2,\n        IFERROR(FIND(\"/\", AE391, FIND(\"/\", AE391, FIND(\"/\", AE391, FIND(\"/\", AE391)+1)+1)+1)-FIND(\"%\", AE391, FIND(\"/\", AE391, FIND(\"/\", AE391, FIND(\"/\", AE391)+1)+1)+1)-2, LEN(AE391)-FIND(\"%\", AE391, FIND(\"/\", AE391, FIND(\"/\", AE391, FIND(\"/\", AE391)+1)+1)+1)-1))),\n        \"\"),\n    \"\")","v":""},{"$f":"IF(AE391 <> \"\",\n    IF(ISNUMBER(VALUE(MID(AE391, FIND(\"/\", AE391, FIND(\"/\", AE391, FIND(\"/\", AE391, FIND(\"/\", AE391)+1)+1)+1) + 1, FIND(\"%\", AE391, FIND(\"/\", AE391, FIND(\"/\", AE391, FIND(\"/\", AE391, FIND(\"/\", AE391)+1)+1)+1)) - FIND(\"/\", AE391, FIND(\"/\", AE391, FIND(\"/\", AE391, FIND(\"/\", AE391)+1)+1)+1) - 1))),\n        VALUE(MID(AE391, FIND(\"/\", AE391, FIND(\"/\", AE391, FIND(\"/\", AE391, FIND(\"/\", AE391)+1)+1)+1) + 1, FIND(\"%\", AE391, FIND(\"/\", AE391, FIND(\"/\", AE391, FIND(\"/\", AE391, FIND(\"/\", AE391)+1)+1)+1)) - FIND(\"/\", AE391, FIND(\"/\", AE391, FIND(\"/\", AE391, FIND(\"/\", AE391)+1)+1)+1) - 1)),\n        \"\"),\n    \"\")","v":""},{"$f":"IF(AE391 = \"\", \"\",\n    IFERROR(TRIM(\n        MID(\n            AE391,\n            FIND(\"%\", AE391, FIND(\"/\", AE391, FIND(\"/\", AE391, FIND(\"/\", AE391, FIND(\"/\", AE391)+1)+1)+1)+1) + 1,\n            FIND(\"/\", AE391 & \"/\", FIND(\"%\", AE391, FIND(\"/\", AE391, FIND(\"/\", AE391, FIND(\"/\", AE391, FIND(\"/\", AE391)+1)+1)+1)+1)) -\n            FIND(\"%\", AE391, FIND(\"/\", AE391, FIND(\"/\", AE391, FIND(\"/\", AE391, FIND(\"/\", AE391)+1)+1)+1)+1) - 1\n        )\n    ),\n    \"\")\n)","v":""},null,null,null,null,null,null,null,null,null,null,null,null,null,null,null,null,null,"ZWO"]
[null,null,null,null,null,null,null,null,null,null,null,null,null,null,{"$f":"VLOOKUP(N392,Tabel10[[korte omschrijving]:[MCC3_CODE]],2,0)","v":{"$error":"#N/A"}},{"$f":"VLOOKUP(N392,Tabel10[],3,0)","v":{"$error":"#N/A"}},null,null,null,null,null,null,null,null,null,null,null,{"$error":"#DIV/0!"},{"$f":"T392*Y392","v":0},{"$f":"T392*AA392","v":0},null,"","","","","","","","","","",null,null,null,null,null,null,null,null,null,null,null,null,null,null,null,null,null,"ZWO"]
[null,null,null,null,null,null,null,null,null,null,null,null,null,null,{"$f":"VLOOKUP(N393,Tabel10[[korte omschrijving]:[MCC3_CODE]],2,0)","v":{"$error":"#N/A"}},{"$f":"VLOOKUP(N393,Tabel10[],3,0)","v":{"$error":"#N/A"}},null,null,null,null,null,null,null,null,null,null,null,{"$error":"#DIV/0!"},0,0,null,"","","","","","","","","","",null,null,null,null,null,null,null,null,null,null,null,null,null,null,null,null,null,"ZWO"]
[null,null,null,null,null,null,null,null,null,null,null,null,null,null,{"$f":"VLOOKUP(N394,Tabel10[[korte omschrijving]:[MCC3_CODE]],2,0)","v":{"$error":"#N/A"}},{"$f":"VLOOKUP(N394,Tabel10[],3,0)","v":{"$error":"#N/A"}},null,null,null,null,null,null,null,null,null,null,null,{"$error":"#DIV/0!"},0,0,null,"","","","","","","","","","",null,null,null,null,null,null,null,null,null,null,null,null,null,null,null,null,null,"ZWO"]
[null,null,null,null,null,null,null,null,null,null,null,null,null,null,{"$f":"VLOOKUP(N395,Tabel10[[korte omschrijving]:[MCC3_CODE]],2,0)","v":{"$error":"#N/A"}},{"$f":"VLOOKUP(N395,Tabel10[],3,0)","v":{"$error":"#N/A"}},null,null,null,null,null,null,null,null,null,null,null,{"$error":"#DIV/0!"},0,0,null,"","","","","","","","","","",null,null,null,null,null,null,null,null,null,null,null,null,null,null,null,null,null,"ZWO"]
[null,null,null,null,null,null,null,null,null,null,null,null,null,null,{"$f":"VLOOKUP(N396,Tabel10[[korte omschrijving]:[MCC3_CODE]],2,0)","v":{"$error":"#N/A"}},{"$f":"VLOOKUP(N396,Tabel10[],3,0)","v":{"$error":"#N/A"}},null,null,null,null,{"$f":"SUM(T396:T401)","v":0},null,null,null,null,null,null,{"$error":"#DIV/0!"},0,0,null,"","","","","","","","","","",null,null,null,null,null,null,null,null,null,null,null,null,null,null,null,null,null,"ZWO"]
[null,null,null,null,null,null,null,null,null,null,null,null,null,null,{"$f":"VLOOKUP(N397,Tabel10[[korte omschrijving]:[MCC3_CODE]],2,0)","v":{"$error":"#N/A"}},{"$f":"VLOOKUP(N397,Tabel10[],3,0)","v":{"$error":"#N/A"}},null,null,null,null,null,null,null,null,null,null,null,{"$error":"#DIV/0!"},0,0,null,"","","","","","","","","","",null,null,null,null,null,null,null,null,null,null,null,null,null,null,null,null,null,"ZWO"]
[null,null,null,null,null,null,null,null,null,null,null,null,null,null,{"$f":"VLOOKUP(N398,Tabel10[[korte omschrijving]:[MCC3_CODE]],2,0)","v":{"$error":"#N/A"}},{"$f":"VLOOKUP(N398,Tabel10[],3,0)","v":{"$error":"#N/A"}},null,null,null,null,null,null,null,null,null,null,null,{"$error":"#DIV/0!"},0,0,null,"","","","","","","","","","",null,null,null,null,null,null,null,null,null,null,null,null,null,null,null,null,null,"ZWO"]
[null,null,null,null,null,null,null,null,null,null,null,null,null,null,{"$f":"VLOOKUP(N399,Tabel10[[korte omschrijving]:[MCC3_CODE]],2,0)","v":{"$error":"#N/A"}},{"$f":"VLOOKUP(N399,Tabel10[],3,0)","v":{"$error":"#N/A"}},null,null,null,null,null,null,null,null,null,null,null,{"$error":"#DIV/0!"},0,0,null,"","","","","","","","","","",null,null,null,null,null,null,null,null,null,null,null,null,null,null,null,null,null,"ZWO"]
[null,null,null,null,null,null,null,null,null,null,null,null,null,null,{"$f":"VLOOKUP(N400,Tabel10[[korte omschrijving]:[MCC3_CODE]],2,0)","v":{"$error":"#N/A"}},{"$f":"VLOOKUP(N400,Tabel10[],3,0)","v":{"$error":"#N/A"}},null,null,null,null,null,null,null,null,null,null,null,{"$error":"#DIV/0!"},0,0,null,"","","","","","","","","","",null,null,null,null,null,null,null,null,null,null,null,null,null,null,null,null,null,"ZWO"]
[null,null,null,null,null,null,null,null,null,null,null,null,null,null,{"$f":"VLOOKUP(N401,Tabel10[[korte omschrijving]:[MCC3_CODE]],2,0)","v":{"$error":"#N/A"}},{"$f":"VLOOKUP(N401,Tabel10[],3,0)","v":{"$error":"#N/A"}},null,null,null,null,null,null,null,null,null,null,null,{"$error":"#DIV/0!"},0,0,null,"","","","","","","","","","",null,null,null,null,null,null,null,null,null,null,null,null,null,null,null,null,null,"ZWO"]
[null,null,null,null,null,null,null,null,null,null,null,null,null,null,{"$f":"VLOOKUP(N402,Tabel10[[korte omschrijving]:[MCC3_CODE]],2,0)","v":{"$error":"#N/A"}},{"$f":"VLOOKUP(N402,Tabel10[],3,0)","v":{"$error":"#N/A"}},null,null,null,null,{"$f":"SUM(T402:T407)","v":0},null,null,null,null,null,null,{"$error":"#DIV/0!"},0,0,null,"","","","","","","","","","",null,null,null,null,null,null,null,null,null,null,null,null,null,null,null,null,null,"ZWO"]
[null,null,null,null,null,null,null,null,null,null,null,null,null,null,{"$f":"VLOOKUP(N403,Tabel10[[korte omschrijving]:[MCC3_CODE]],2,0)","v":{"$error":"#N/A"}},{"$f":"VLOOKUP(N403,Tabel10[],3,0)","v":{"$error":"#N/A"}},null,null,null,null,null,null,null,null,null,null,null,{"$error":"#DIV/0!"},0,0,null,"","","","","","","","","","",null,null,null,null,null,null,null,null,null,null,null,null,null,null,null,null,null,"ZWO"]
[null,null,null,null,null,null,null,null,null,null,null,null,null,null,{"$f":"VLOOKUP(N404,Tabel10[[korte omschrijving]:[MCC3_CODE]],2,0)","v":{"$error":"#N/A"}},{"$f":"VLOOKUP(N404,Tabel10[],3,0)","v":{"$error":"#N/A"}},null,null,null,null,null,null,null,null,null,null,null,{"$error":"#DIV/0!"},0,0,null,"","","","","","","","","","",null,null,null,null,null,null,null,null,null,null,null,null,null,null,null,null,null,"ZWO"]
[null,null,null,null,null,null,null,null,null,null,null,null,null,null,{"$f":"VLOOKUP(N405,Tabel10[[korte omschrijving]:[MCC3_CODE]],2,0)","v":{"$error":"#N/A"}},{"$f":"VLOOKUP(N405,Tabel10[],3,0)","v":{"$error":"#N/A"}},null,null,null,null,null,null,null,null,null,null,null,{"$error":"#DIV/0!"},0,0,null,"","","","","","","","","","",null,null,null,null,null,null,null,null,null,null,null,null,null,null,null,null,null,"ZWO"]
[null,null,null,null,null,null,null,null,null,null,null,null,null,null,{"$f":"VLOOKUP(N406,Tabel10[[korte omschrijving]:[MCC3_CODE]],2,0)","v":{"$error":"#N/A"}},{"$f":"VLOOKUP(N406,Tabel10[],3,0)","v":{"$error":"#N/A"}},null,null,null,null,null,null,null,null,null,null,null,{"$error":"#DIV/0!"},0,0,null,"","","","","","","","","","",null,null,null,null,null,null,null,null,null,null,null,null,null,null,null,null,null,"ZWO"]
[null,null,null,null,null,null,null,null,null,null,null,null,null,null,{"$f":"VLOOKUP(N407,Tabel10[[korte omschrijving]:[MCC3_CODE]],2,0)","v":{"$error":"#N/A"}},{"$f":"VLOOKUP(N407,Tabel10[],3,0)","v":{"$error":"#N/A"}},null,null,null,null,null,null,null,null,null,null,null,{"$error":"#DIV/0!"},0,0,null,"","","","","","","","","","",null,null,null,null,null,null,null,null,null,null,null,null,null,null,null,null,null,"ZWO"]
[null,null,null,null,null,null,null,null,null,null,null,null,null,null,{"$f":"VLOOKUP(N408,Tabel10[[korte omschrijving]:[MCC3_CODE]],2,0)","v":{"$error":"#N/A"}},{"$f":"VLOOKUP(N408,Tabel10[],3,0)","v":{"$error":"#N/A"}},null,null,null,null,{"$f":"SUM(T408:T413)","v":0},null,null,null,null,null,null,{"$error":"#DIV/0!"},0,0,null,"","","","","","","","","","",null,null,null,null,null,null,null,null,null,null,null,null,null,null,null,null,null,"ZWO"]
[null,null,null,null,null,null,null,null,null,null,null,null,null,null,{"$f":"VLOOKUP(N409,Tabel10[[korte omschrijving]:[MCC3_CODE]],2,0)","v":{"$error":"#N/A"}},{"$f":"VLOOKUP(N409,Tabel10[],3,0)","v":{"$error":"#N/A"}},null,null,null,null,null,null,null,null,null,null,null,{"$error":"#DIV/0!"},0,0,null,"","","","","","","","","","",null,null,null,null,null,null,null,null,null,null,null,null,null,null,null,null,null,"ZWO"]
[null,null,null,null,null,null,null,null,null,null,null,null,null,null,{"$f":"VLOOKUP(N410,Tabel10[[korte omschrijving]:[MCC3_CODE]],2,0)","v":{"$error":"#N/A"}},{"$f":"VLOOKUP(N410,Tabel10[],3,0)","v":{"$error":"#N/A"}},null,null,null,null,null,null,null,null,null,null,null,{"$error":"#DIV/0!"},0,0,null,"","","","","","","","","","",null,null,null,null,null,null,null,null,null,null,null,null,null,null,null,null,null,"ZWO"]
[null,null,null,null,null,null,null,null,null,null,null,null,null,null,{"$f":"VLOOKUP(N411,Tabel10[[korte omschrijving]:[MCC3_CODE]],2,0)","v":{"$error":"#N/A"}},{"$f":"VLOOKUP(N411,Tabel10[],3,0)","v":{"$error":"#N/A"}},null,null,null,null,null,null,null,null,null,null,null,{"$error":"#DIV/0!"},0,0,null,"","","","","","","","","","",null,null,null,null,null,null,null,null,null,null,null,null,null,null,null,null,null,"ZWO"]
[null,null,null,null,null,null,null,null,null,null,null,null,null,null,{"$f":"VLOOKUP(N412,Tabel10[[korte omschrijving]:[MCC3_CODE]],2,0)","v":{"$error":"#N/A"}},{"$f":"VLOOKUP(N412,Tabel10[],3,0)","v":{"$error":"#N/A"}},null,null,null,null,null,null,null,null,null,null,null,{"$error":"#DIV/0!"},0,0,null,"","","","","","","","","","",null,null,null,null,null,null,null,null,null,null,null,null,null,null,null,null,null,"ZWO"]
[null,null,null,null,null,null,null,null,null,null,null,null,null,null,{"$f":"VLOOKUP(N413,Tabel10[[korte omschrijving]:[MCC3_CODE]],2,0)","v":{"$error":"#N/A"}},{"$f":"VLOOKUP(N413,Tabel10[],3,0)","v":{"$error":"#N/A"}},null,null,null,null,null,null,null,null,null,null,null,{"$error":"#DIV/0!"},0,0,null,"","","","","","","","","","",null,null,null,null,null,null,null,null,null,null,null,null,null,null,null,null,null,"ZWO"]
[null,null,null,null,null,null,null,null,null,null,null,null,null,null,{"$f":"VLOOKUP(N414,Tabel10[[korte omschrijving]:[MCC3_CODE]],2,0)","v":{"$error":"#N/A"}},{"$f":"VLOOKUP(N414,Tabel10[],3,0)","v":{"$error":"#N/A"}},null,null,null,null,{"$f":"SUM(T414:T419)","v":0},null,null,null,null,null,null,{"$error":"#DIV/0!"},0,0,null,"","","","","","","","","","",null,null,null,null,null,null,null,null,null,null,null,null,null,null,null,null,null,"ZWO"]
[null,null,null,null,null,null,null,null,null,null,null,null,null,null,{"$f":"VLOOKUP(N415,Tabel10[[korte omschrijving]:[MCC3_CODE]],2,0)","v":{"$error":"#N/A"}},{"$f":"VLOOKUP(N415,Tabel10[],3,0)","v":{"$error":"#N/A"}},null,null,null,null,null,null,null,null,null,null,null,{"$error":"#DIV/0!"},0,0,null,"","","","","","","","","","",null,null,null,null,null,null,null,null,null,null,null,null,null,null,null,null,null,"ZWO"]
[null,null,null,null,null,null,null,null,null,null,null,null,null,null,{"$f":"VLOOKUP(N416,Tabel10[[korte omschrijving]:[MCC3_CODE]],2,0)","v":{"$error":"#N/A"}},{"$f":"VLOOKUP(N416,Tabel10[],3,0)","v":{"$error":"#N/A"}},null,null,null,null,null,null,null,null,null,null,null,{"$error":"#DIV/0!"},0,0,null,"","","","","","","","","","",null,null,null,null,null,null,null,null,null,null,null,null,null,null,null,null,null,"ZWO"]
[null,null,null,null,null,null,null,null,null,null,null,null,null,null,{"$f":"VLOOKUP(N417,Tabel10[[korte omschrijving]:[MCC3_CODE]],2,0)","v":{"$error":"#N/A"}},{"$f":"VLOOKUP(N417,Tabel10[],3,0)","v":{"$error":"#N/A"}},null,null,null,null,null,null,null,null,null,null,null,{"$error":"#DIV/0!"},0,0,null,"","","","","","","","","","",null,null,null,null,null,null,null,null,null,null,null,null,null,null,null,null,null,"ZWO"]
[null,null,null,null,null,null,null,null,null,null,null,null,null,null,{"$f":"VLOOKUP(N418,Tabel10[[korte omschrijving]:[MCC3_CODE]],2,0)","v":{"$error":"#N/A"}},{"$f":"VLOOKUP(N418,Tabel10[],3,0)","v":{"$error":"#N/A"}},null,null,null,null,null,null,null,null,null,null,null,{"$error":"#DIV/0!"},0,0,null,"","","","","","","","","","",null,null,null,null,null,null,null,null,null,null,null,null,null,null,null,null,null,"ZWO"]
[null,null,null,null,null,null,null,null,null,null,null,null,null,null,{"$f":"VLOOKUP(N419,Tabel10[[korte omschrijving]:[MCC3_CODE]],2,0)","v":{"$error":"#N/A"}},{"$f":"VLOOKUP(N419,Tabel10[],3,0)","v":{"$error":"#N/A"}},null,null,null,null,null,null,null,null,null,null,null,{"$error":"#DIV/0!"},0,0,null,"","","","","","","","","","",null,null,null,null,null,null,null,null,null,null,null,null,null,null,null,null,null,"ZWO"]
[null,null,null,null,null,null,null,null,null,null,null,null,null,null,{"$f":"VLOOKUP(N420,Tabel10[[korte omschrijving]:[MCC3_CODE]],2,0)","v":{"$error":"#N/A"}},{"$f":"VLOOKUP(N420,Tabel10[],3,0)","v":{"$error":"#N/A"}},null,null,null,null,{"$f":"SUM(T420:T425)","v":0},null,null,null,null,null,null,{"$error":"#DIV/0!"},0,0,null,"","","","","","","","","","",null,null,null,null,null,null,null,null,null,null,null,null,null,null,null,null,null,"ZWO"]
[null,null,null,null,null,null,null,null,null,null,null,null,null,null,{"$f":"VLOOKUP(N421,Tabel10[[korte omschrijving]:[MCC3_CODE]],2,0)","v":{"$error":"#N/A"}},{"$f":"VLOOKUP(N421,Tabel10[],3,0)","v":{"$error":"#N/A"}},null,null,null,null,null,null,null,null,null,null,null,{"$error":"#DIV/0!"},0,0,null,"","","","","","","","","","",null,null,null,null,null,null,null,null,null,null,null,null,null,null,null,null,null,"ZWO"]
[null,null,null,null,null,null,null,null,null,null,null,null,null,null,{"$f":"VLOOKUP(N422,Tabel10[[korte omschrijving]:[MCC3_CODE]],2,0)","v":{"$error":"#N/A"}},{"$f":"VLOOKUP(N422,Tabel10[],3,0)","v":{"$error":"#N/A"}},null,null,null,null,null,null,null,null,null,null,null,{"$error":"#DIV/0!"},0,0,null,"","","","","","","","","","",null,null,null,null,null,null,null,null,null,null,null,null,null,null,null,null,null,"ZWO"]
[null,null,null,null,null,null,null,null,null,null,null,null,null,null,{"$f":"VLOOKUP(N423,Tabel10[[korte omschrijving]:[MCC3_CODE]],2,0)","v":{"$error":"#N/A"}},{"$f":"VLOOKUP(N423,Tabel10[],3,0)","v":{"$error":"#N/A"}},null,null,null,null,null,null,null,null,null,null,null,{"$error":"#DIV/0!"},0,0,null,"","","","","","","","","","",null,null,null,null,null,null,null,null,null,null,null,null,null,null,null,null,null,"ZWO"]
[null,null,null,null,null,null,null,null,null,null,null,null,null,null,{"$f":"VLOOKUP(N424,Tabel10[[korte omschrijving]:[MCC3_CODE]],2,0)","v":{"$error":"#N/A"}},{"$f":"VLOOKUP(N424,Tabel10[],3,0)","v":{"$error":"#N/A"}},null,null,null,null,null,null,null,null,null,null,null,{"$error":"#DIV/0!"},0,0,null,"","","","","","","","","","",null,null,null,null,null,null,null,null,null,null,null,null,null,null,null,null,null,"ZWO"]
[null,null,null,null,null,null,null,null,null,null,null,null,null,null,{"$f":"VLOOKUP(N425,Tabel10[[korte omschrijving]:[MCC3_CODE]],2,0)","v":{"$error":"#N/A"}},{"$f":"VLOOKUP(N425,Tabel10[],3,0)","v":{"$error":"#N/A"}},null,null,null,null,null,null,null,null,null,null,null,{"$error":"#DIV/0!"},0,0,null,"","","","","","","","","","",null,null,null,null,null,null,null,null,null,null,null,null,null,null,null,null,null,"ZWO"]
[null,null,null,null,null,null,null,null,null,null,null,null,null,null,{"$f":"VLOOKUP(N426,Tabel10[[korte omschrijving]:[MCC3_CODE]],2,0)","v":{"$error":"#N/A"}},{"$f":"VLOOKUP(N426,Tabel10[],3,0)","v":{"$error":"#N/A"}},null,null,null,null,{"$f":"SUM(T426:T431)","v":0},null,null,null,null,null,null,{"$error":"#DIV/0!"},0,0,null,"","","","","","","","","","",null,null,null,null,null,null,null,null,null,null,null,null,null,null,null,null,null,"ZWO"]
[null,null,null,null,null,null,null,null,null,null,null,null,null,null,{"$f":"VLOOKUP(N427,Tabel10[[korte omschrijving]:[MCC3_CODE]],2,0)","v":{"$error":"#N/A"}},{"$f":"VLOOKUP(N427,Tabel10[],3,0)","v":{"$error":"#N/A"}},null,null,null,null,null,null,null,null,null,null,null,{"$error":"#DIV/0!"},0,0,null,"","","","","","","","","","",null,null,null,null,null,null,null,null,null,null,null,null,null,null,null,null,null,"ZWO"]
[null,null,null,null,null,null,null,null,null,null,null,null,null,null,{"$f":"VLOOKUP(N428,Tabel10[[korte omschrijving]:[MCC3_CODE]],2,0)","v":{"$error":"#N/A"}},{"$f":"VLOOKUP(N428,Tabel10[],3,0)","v":{"$error":"#N/A"}},null,null,null,null,null,null,null,null,null,null,null,{"$error":"#DIV/0!"},0,0,null,"","","","","","","","","","",null,null,null,null,null,null,null,null,null,null,null,null,null,null,null,null,null,"ZWO"]
[null,null,null,null,null,null,null,null,null,null,null,null,null,null,{"$f":"VLOOKUP(N429,Tabel10[[korte omschrijving]:[MCC3_CODE]],2,0)","v":{"$error":"#N/A"}},{"$f":"VLOOKUP(N429,Tabel10[],3,0)","v":{"$error":"#N/A"}},null,null,null,null,null,null,null,null,null,null,null,{"$error":"#DIV/0!"},0,0,null,"","","","","","","","","","",null,null,null,null,null,null,null,null,null,null,null,null,null,null,null,null,null,"ZWO"]
[null,null,null,null,null,null,null,null,null,null,null,null,null,null,{"$f":"VLOOKUP(N430,Tabel10[[korte omschrijving]:[MCC3_CODE]],2,0)","v":{"$error":"#N/A"}},{"$f":"VLOOKUP(N430,Tabel10[],3,0)","v":{"$error":"#N/A"}},null,null,null,null,null,null,null,null,null,null,null,{"$error":"#DIV/0!"},0,0,null,"","","","","","","","","","",null,null,null,null,null,null,null,null,null,null,null,null,null,null,null,null,null,"ZWO"]
[null,null,null,null,null,null,null,null,null,null,null,null,null,null,{"$f":"VLOOKUP(N431,Tabel10[[korte omschrijving]:[MCC3_CODE]],2,0)","v":{"$error":"#N/A"}},{"$f":"VLOOKUP(N431,Tabel10[],3,0)","v":{"$error":"#N/A"}},null,null,null,null,null,null,null,null,null,null,null,{"$error":"#DIV/0!"},0,0,null,"","","","","","","","","","",null,null,null,null,null,null,null,null,null,null,null,null,null,null,null,null,null,"ZWO"]
[null,null,null,null,null,null,null,null,null,null,null,null,null,null,{"$f":"VLOOKUP(N432,Tabel10[[korte omschrijving]:[MCC3_CODE]],2,0)","v":{"$error":"#N/A"}},{"$f":"VLOOKUP(N432,Tabel10[],3,0)","v":{"$error":"#N/A"}},null,null,null,null,{"$f":"SUM(T432:T437)","v":0},null,null,null,null,null,null,{"$error":"#DIV/0!"},0,0,null,"","","","","","","","","","",null,null,null,null,null,null,null,null,null,null,null,null,null,null,null,null,null,"ZWO"]
[null,null,null,null,null,null,null,null,null,null,null,null,null,null,{"$f":"VLOOKUP(N433,Tabel10[[korte omschrijving]:[MCC3_CODE]],2,0)","v":{"$error":"#N/A"}},{"$f":"VLOOKUP(N433,Tabel10[],3,0)","v":{"$error":"#N/A"}},null,null,null,null,null,null,null,null,null,null,null,{"$error":"#DIV/0!"},0,0,null,"","","","","","","","","","",null,null,null,null,null,null,null,null,null,null,null,null,null,null,null,null,null,"ZWO"]
[null,null,null,null,null,null,null,null,null,null,null,null,null,null,{"$f":"VLOOKUP(N434,Tabel10[[korte omschrijving]:[MCC3_CODE]],2,0)","v":{"$error":"#N/A"}},{"$f":"VLOOKUP(N434,Tabel10[],3,0)","v":{"$error":"#N/A"}},null,null,null,null,null,null,null,null,null,null,null,{"$error":"#DIV/0!"},0,0,null,"","","","","","","","","","",null,null,null,null,null,null,null,null,null,null,null,null,null,null,null,null,null,"ZWO"]
[null,null,null,null,null,null,null,null,null,null,null,null,null,null,{"$f":"VLOOKUP(N435,Tabel10[[korte omschrijving]:[MCC3_CODE]],2,0)","v":{"$error":"#N/A"}},{"$f":"VLOOKUP(N435,Tabel10[],3,0)","v":{"$error":"#N/A"}},null,null,null,null,null,null,null,null,null,null,null,{"$error":"#DIV/0!"},0,0,null,"","","","","","","","","","",null,null,null,null,null,null,null,null,null,null,null,null,null,null,null,null,null,"ZWO"]
[null,null,null,null,null,null,null,null,null,null,null,null,null,null,{"$f":"VLOOKUP(N436,Tabel10[[korte omschrijving]:[MCC3_CODE]],2,0)","v":{"$error":"#N/A"}},{"$f":"VLOOKUP(N436,Tabel10[],3,0)","v":{"$error":"#N/A"}},null,null,null,null,null,null,null,null,null,null,null,{"$error":"#DIV/0!"},0,0,null,"","","","","","","","","","",null,null,null,null,null,null,null,null,null,null,null,null,null,null,null,null,null,"ZWO"]
[null,null,null,null,null,null,null,null,null,null,null,null,null,null,{"$f":"VLOOKUP(N437,Tabel10[[korte omschrijving]:[MCC3_CODE]],2,0)","v":{"$error":"#N/A"}},{"$f":"VLOOKUP(N437,Tabel10[],3,0)","v":{"$error":"#N/A"}},null,null,null,null,null,null,null,null,null,null,null,{"$error":"#DIV/0!"},0,0,null,"","","","","","","","","","",null,null,null,null,null,null,null,null,null,null,null,null,null,null,null,null,null,"ZWO"]
[null,null,null,null,null,null,null,null,null,null,null,null,null,null,{"$f":"VLOOKUP(N438,Tabel10[[korte omschrijving]:[MCC3_CODE]],2,0)","v":{"$error":"#N/A"}},{"$f":"VLOOKUP(N438,Tabel10[],3,0)","v":{"$error":"#N/A"}},null,null,null,null,{"$f":"SUM(T438:T443)","v":0},null,null,null,null,null,null,{"$error":"#DIV/0!"},0,0,null,"","","","","","","","","","",null,null,null,null,null,null,null,null,null,null,null,null,null,null,null,null,null,"ZWO"]
[null,null,null,null,null,null,null,null,null,null,null,null,null,null,{"$f":"VLOOKUP(N439,Tabel10[[korte omschrijving]:[MCC3_CODE]],2,0)","v":{"$error":"#N/A"}},{"$f":"VLOOKUP(N439,Tabel10[],3,0)","v":{"$error":"#N/A"}},null,null,null,null,null,null,null,null,null,null,null,{"$error":"#DIV/0!"},0,0,null,"","","","","","","","","","",null,null,null,null,null,null,null,null,null,null,null,null,null,null,null,null,null,"ZWO"]
[null,null,null,null,null,null,null,null,null,null,null,null,null,null,{"$f":"VLOOKUP(N440,Tabel10[[korte omschrijving]:[MCC3_CODE]],2,0)","v":{"$error":"#N/A"}},{"$f":"VLOOKUP(N440,Tabel10[],3,0)","v":{"$error":"#N/A"}},null,null,null,null,null,null,null,null,null,null,null,{"$error":"#DIV/0!"},0,0,null,"","","","","","","","","","",null,null,null,null,null,null,null,null,null,null,null,null,null,null,null,null,null,"ZWO"]
[null,null,null,null,null,null,null,null,null,null,null,null,null,null,{"$f":"VLOOKUP(N441,Tabel10[[korte omschrijving]:[MCC3_CODE]],2,0)","v":{"$error":"#N/A"}},{"$f":"VLOOKUP(N441,Tabel10[],3,0)","v":{"$error":"#N/A"}},null,null,null,null,null,null,null,null,null,null,null,{"$error":"#DIV/0!"},0,0,null,"","","","","","","","","","",null,null,null,null,null,null,null,null,null,null,null,null,null,null,null,null,null,"ZWO"]
[null,null,null,null,null,null,null,null,null,null,null,null,null,null,{"$f":"VLOOKUP(N442,Tabel10[[korte omschrijving]:[MCC3_CODE]],2,0)","v":{"$error":"#N/A"}},{"$f":"VLOOKUP(N442,Tabel10[],3,0)","v":{"$error":"#N/A"}},null,null,null,null,null,null,null,null,null,null,null,{"$error":"#DIV/0!"},0,0,null,"","","","","","","","","","",null,null,null,null,null,null,null,null,null,null,null,null,null,null,null,null,null,"ZWO"]
[null,null,null,null,null,null,null,null,null,null,null,null,null,null,{"$f":"VLOOKUP(N443,Tabel10[[korte omschrijving]:[MCC3_CODE]],2,0)","v":{"$error":"#N/A"}},{"$f":"VLOOKUP(N443,Tabel10[],3,0)","v":{"$error":"#N/A"}},null,null,null,null,null,null,null,null,null,null,null,{"$error":"#DIV/0!"},0,0,null,"","","","","","","","","","",null,null,null,null,null,null,null,null,null,null,null,null,null,null,null,null,null,"ZWO"]
[null,null,null,null,null,null,null,null,null,null,null,null,null,null,{"$f":"VLOOKUP(N444,Tabel10[[korte omschrijving]:[MCC3_CODE]],2,0)","v":{"$error":"#N/A"}},{"$f":"VLOOKUP(N444,Tabel10[],3,0)","v":{"$error":"#N/A"}},null,null,null,null,{"$f":"SUM(T444:T449)","v":0},null,null,null,null,null,null,{"$error":"#DIV/0!"},0,0,null,"","","","","","","","","","",null,null,null,null,null,null,null,null,null,null,null,null,null,null,null,null,null,"ZWO"]
[null,null,null,null,null,null,null,null,null,null,null,null,null,null,{"$f":"VLOOKUP(N445,Tabel10[[korte omschrijving]:[MCC3_CODE]],2,0)","v":{"$error":"#N/A"}},{"$f":"VLOOKUP(N445,Tabel10[],3,0)","v":{"$error":"#N/A"}},null,null,null,null,null,null,null,null,null,null,null,{"$error":"#DIV/0!"},0,0,null,"","","","","","","","","","",null,null,null,null,null,null,null,null,null,null,null,null,null,null,null,null,null,"ZWO"]
[null,null,null,null,null,null,null,null,null,null,null,null,null,null,{"$f":"VLOOKUP(N446,Tabel10[[korte omschrijving]:[MCC3_CODE]],2,0)","v":{"$error":"#N/A"}},{"$f":"VLOOKUP(N446,Tabel10[],3,0)","v":{"$error":"#N/A"}},null,null,null,null,null,null,null,null,null,null,null,{"$error":"#DIV/0!"},0,0,null,"","","","","","","","","","",null,null,null,null,null,null,null,null,null,null,null,null,null,null,null,null,null,"ZWO"]
[null,null,null,null,null,null,null,null,null,null,null,null,null,null,{"$f":"VLOOKUP(N447,Tabel10[[korte omschrijving]:[MCC3_CODE]],2,0)","v":{"$error":"#N/A"}},{"$f":"VLOOKUP(N447,Tabel10[],3,0)","v":{"$error":"#N/A"}},null,null,null,null,null,null,null,null,null,null,null,{"$error":"#DIV/0!"},0,0,null,"","","","","","","","","","",null,null,null,null,null,null,null,null,null,null,null,null,null,null,null,null,null,"ZWO"]
[null,null,null,null,null,null,null,null,null,null,null,null,null,null,{"$f":"VLOOKUP(N448,Tabel10[[korte omschrijving]:[MCC3_CODE]],2,0)","v":{"$error":"#N/A"}},{"$f":"VLOOKUP(N448,Tabel10[],3,0)","v":{"$error":"#N/A"}},null,null,null,null,null,null,null,null,null,null,null,{"$error":"#DIV/0!"},0,0,null,"","","","","","","","","","",null,null,null,null,null,null,null,null,null,null,null,null,null,null,null,null,null,"ZWO"]
[null,null,null,null,null,null,null,null,null,null,null,null,null,null,{"$f":"VLOOKUP(N449,Tabel10[[korte omschrijving]:[MCC3_CODE]],2,0)","v":{"$error":"#N/A"}},{"$f":"VLOOKUP(N449,Tabel10[],3,0)","v":{"$error":"#N/A"}},null,null,null,null,null,null,null,null,null,null,null,{"$error":"#DIV/0!"},0,0,null,"","","","","","","","","","",null,null,null,null,null,null,null,null,null,null,null,null,null,null,null,null,null,"ZWO"]
[null,null,null,null,null,null,null,null,null,null,null,null,null,null,{"$f":"VLOOKUP(N450,Tabel10[[korte omschrijving]:[MCC3_CODE]],2,0)","v":{"$error":"#N/A"}},{"$f":"VLOOKUP(N450,Tabel10[],3,0)","v":{"$error":"#N/A"}},null,null,null,null,{"$f":"SUM(T450:T455)","v":0},null,null,null,null,null,null,{"$error":"#DIV/0!"},0,0,null,"","","","","","","","","","",null,null,null,null,null,null,null,null,null,null,null,null,null,null,null,null,null,"ZWO"]
[null,null,null,null,null,null,null,null,null,null,null,null,null,null,{"$f":"VLOOKUP(N451,Tabel10[[korte omschrijving]:[MCC3_CODE]],2,0)","v":{"$error":"#N/A"}},{"$f":"VLOOKUP(N451,Tabel10[],3,0)","v":{"$error":"#N/A"}},null,null,null,null,null,null,null,null,null,null,null,{"$error":"#DIV/0!"},0,0,null,"","","","","","","","","","",null,null,null,null,null,null,null,null,null,null,null,null,null,null,null,null,null,"ZWO"]
[null,null,null,null,null,null,null,null,null,null,null,null,null,null,{"$f":"VLOOKUP(N452,Tabel10[[korte omschrijving]:[MCC3_CODE]],2,0)","v":{"$error":"#N/A"}},{"$f":"VLOOKUP(N452,Tabel10[],3,0)","v":{"$error":"#N/A"}},null,null,null,null,null,null,null,null,null,null,null,{"$error":"#DIV/0!"},0,0,null,"","","","","","","","","","",null,null,null,null,null,null,null,null,null,null,null,null,null,null,null,null,null,"ZWO"]
[null,null,null,null,null,null,null,null,null,null,null,null,null,null,{"$f":"VLOOKUP(N453,Tabel10[[korte omschrijving]:[MCC3_CODE]],2,0)","v":{"$error":"#N/A"}},{"$f":"VLOOKUP(N453,Tabel10[],3,0)","v":{"$error":"#N/A"}},null,null,null,null,null,null,null,null,null,null,null,{"$error":"#DIV/0!"},0,0,null,"","","","","","","","","","",null,null,null,null,null,null,null,null,null,null,null,null,null,null,null,null,null,"ZWO"]
[null,null,null,null,null,null,null,null,null,null,null,null,null,null,{"$f":"VLOOKUP(N454,Tabel10[[korte omschrijving]:[MCC3_CODE]],2,0)","v":{"$error":"#N/A"}},{"$f":"VLOOKUP(N454,Tabel10[],3,0)","v":{"$error":"#N/A"}},null,null,null,null,null,null,null,null,null,null,null,{"$error":"#DIV/0!"},0,0,null,"","","","","","","","","","",null,null,null,null,null,null,null,null,null,null,null,null,null,null,null,null,null,"ZWO"]
[null,null,null,null,null,null,null,null,null,null,null,null,null,null,{"$f":"VLOOKUP(N455,Tabel10[[korte omschrijving]:[MCC3_CODE]],2,0)","v":{"$error":"#N/A"}},{"$f":"VLOOKUP(N455,Tabel10[],3,0)","v":{"$error":"#N/A"}},null,null,null,null,null,null,null,null,null,null,null,{"$f":"AA455/Y455","v":{"$error":"#DIV/0!"}},0,0,null,{"$f":"IF(AE455 <> \"\",\n    IF(ISNUMBER(VALUE(LEFT(AE455, FIND(\"%\", AE455)-1))),\n        VALUE(LEFT(AE455, FIND(\"%\", AE455)-1)),\n        \"Invalid format\"),\n    \"\")","v":""},{"$f":"IF(AE455 <> \"\",\n    IF(ISNUMBER(VALUE(LEFT(AE455, FIND(\"%\", AE455)-1))) * ISNUMBER(FIND(\"%\", AE455 & \"wol\")) > 0,\n        TRIM(MID(AE455, FIND(\"%\", AE455)+1, FIND(\"/\", AE455 & \"/\")-FIND(\"%\", AE455)-1)),\n        \"Invalid format\"),\n    \"\")","v":""},{"$f":"IF(AE455 <> \"\",\n    IF(ISNUMBER(VALUE(MID(AE455, FIND(\"/\", AE455) + 1, FIND(\"%\", AE455, FIND(\"/\", AE455)) - FIND(\"/\", AE455) - 1))),\n        VALUE(MID(AE455, FIND(\"/\", AE455) + 1, FIND(\"%\", AE455, FIND(\"/\", AE455)) - FIND(\"/\", AE455) - 1)),\n        \"\"),\n    \"\")","v":""},{"$f":"IF(AE455 <> \"\",\n    IFERROR(TRIM(MID(AE455, FIND(\"%\", AE455, FIND(\"/\", AE455)+1)+2,\n        IFERROR(FIND(\"/\", AE455 & \"/\", FIND(\"/\", AE455)+1)-FIND(\"%\", AE455, FIND(\"/\", AE455)+1)-2, LEN(AE455)-FIND(\"%\", AE455, FIND(\"/\", AE455)+1)-1))),\n        \"\"),\n    \"\")","v":""},{"$f":"IF(AE455 <> \"\",\n    IF(ISNUMBER(VALUE(MID(AE455, FIND(\"/\", AE455, FIND(\"/\", AE455)+1) + 1, FIND(\"%\", AE455, FIND(\"/\", AE455, FIND(\"/\", AE455)+1)) - FIND(\"/\", AE455, FIND(\"/\", AE455)+1) - 1))),\n        VALUE(MID(AE455, FIND(\"/\", AE455, FIND(\"/\", AE455)+1) + 1, FIND(\"%\", AE455, FIND(\"/\", AE455, FIND(\"/\", AE455)+1)) - FIND(\"/\", AE455, FIND(\"/\", AE455)+1) - 1)),\n        \"\"),\n    \"\")","v":""},{"$f":"IF(AE455 <> \"\",\n    IFERROR(\n        TRIM(MID(AE455,\n            FIND(\"%\", AE455, FIND(\"%\", AE455, FIND(\"%\", AE455)+1)+1)+1,\n            FIND(\"/\", AE455 & \"/\", FIND(\"%\", AE455, FIND(\"%\", AE455, FIND(\"%\", AE455)+1)+1))-FIND(\"%\", AE455, FIND(\"%\", AE455, FIND(\"%\", AE455)+1)+1)-1)\n        ),\n        \"\"\n    ),\n    \"\"\n)","v":""},{"$f":"IF(AE455 <> \"\",\n    IF(ISNUMBER(VALUE(MID(AE455, FIND(\"/\", AE455, FIND(\"/\", AE455, FIND(\"/\", AE455)+1)+1) + 1, FIND(\"%\", AE455, FIND(\"/\", AE455, FIND(\"/\", AE455, FIND(\"/\", AE455)+1)+1)) - FIND(\"/\", AE455, FIND(\"/\", AE455, FIND(\"/\", AE455)+1)+1) - 1))),\n        VALUE(MID(AE455, FIND(\"/\", AE455, FIND(\"/\", AE455, FIND(\"/\", AE455)+1)+1) + 1, FIND(\"%\", AE455, FIND(\"/\", AE455, FIND(\"/\", AE455, FIND(\"/\", AE455)+1)+1)) - FIND(\"/\", AE455, FIND(\"/\", AE455, FIND(\"/\", AE455)+1)+1) - 1)),\n        \"\"),\n    \"\")","v":""},{"$f":"IF(AE455 <> \"\",\n    IFERROR(TRIM(MID(AE455, FIND(\"%\", AE455, FIND(\"/\", AE455, FIND(\"/\", AE455, FIND(\"/\", AE455)+1)+1)+1)+2,\n        IFERROR(FIND(\"/\", AE455, FIND(\"/\", AE455, FIND(\"/\", AE455, FIND(\"/\", AE455)+1)+1)+1)-FIND(\"%\", AE455, FIND(\"/\", AE455, FIND(\"/\", AE455, FIND(\"/\", AE455)+1)+1)+1)-2, LEN(AE455)-FIND(\"%\", AE455, FIND(\"/\", AE455, FIND(\"/\", AE455, FIND(\"/\", AE455)+1)+1)+1)-1))),\n        \"\"),\n    \"\")","v":""},{"$f":"IF(AE455 <> \"\",\n    IF(ISNUMBER(VALUE(MID(AE455, FIND(\"/\", AE455, FIND(\"/\", AE455, FIND(\"/\", AE455, FIND(\"/\", AE455)+1)+1)+1) + 1, FIND(\"%\", AE455, FIND(\"/\", AE455, FIND(\"/\", AE455, FIND(\"/\", AE455, FIND(\"/\", AE455)+1)+1)+1)) - FIND(\"/\", AE455, FIND(\"/\", AE455, FIND(\"/\", AE455, FIND(\"/\", AE455)+1)+1)+1) - 1))),\n        VALUE(MID(AE455, FIND(\"/\", AE455, FIND(\"/\", AE455, FIND(\"/\", AE455, FIND(\"/\", AE455)+1)+1)+1) + 1, FIND(\"%\", AE455, FIND(\"/\", AE455, FIND(\"/\", AE455, FIND(\"/\", AE455, FIND(\"/\", AE455)+1)+1)+1)) - FIND(\"/\", AE455, FIND(\"/\", AE455, FIND(\"/\", AE455, FIND(\"/\", AE455)+1)+1)+1) - 1)),\n        \"\"),\n    \"\")","v":""},{"$f":"IF(AE455 = \"\", \"\",\n    IFERROR(TRIM(\n        MID(\n            AE455,\n            FIND(\"%\", AE455, FIND(\"/\", AE455, FIND(\"/\", AE455, FIND(\"/\", AE455, FIND(\"/\", AE455)+1)+1)+1)+1) + 1,\n            FIND(\"/\", AE455 & \"/\", FIND(\"%\", AE455, FIND(\"/\", AE455, FIND(\"/\", AE455, FIND(\"/\", AE455, FIND(\"/\", AE455)+1)+1)+1)+1)) -\n            FIND(\"%\", AE455, FIND(\"/\", AE455, FIND(\"/\", AE455, FIND(\"/\", AE455, FIND(\"/\", AE455)+1)+1)+1)+1) - 1\n        )\n    ),\n    \"\")\n)","v":""},null,null,null,null,null,null,null,null,null,null,null,null,null,null,null,null,null,"ZWO"]
[null,null,null,null,null,null,null,null,null,null,null,null,null,null,{"$f":"VLOOKUP(N456,Tabel10[[korte omschrijving]:[MCC3_CODE]],2,0)","v":{"$error":"#N/A"}},{"$f":"VLOOKUP(N456,Tabel10[],3,0)","v":{"$error":"#N/A"}},null,null,null,null,{"$f":"SUM(T456:T461)","v":0},null,null,null,null,null,null,{"$error":"#DIV/0!"},{"$f":"T456*Y456","v":0},{"$f":"T456*AA456","v":0},null,"","","","","","","","","","",null,null,null,null,null,null,null,null,null,null,null,null,null,null,null,null,null,"ZWO"]
[null,null,null,null,null,null,null,null,null,null,null,null,null,null,{"$f":"VLOOKUP(N457,Tabel10[[korte omschrijving]:[MCC3_CODE]],2,0)","v":{"$error":"#N/A"}},{"$f":"VLOOKUP(N457,Tabel10[],3,0)","v":{"$error":"#N/A"}},null,null,null,null,null,null,null,null,null,null,null,{"$error":"#DIV/0!"},0,0,null,"","","","","","","","","","",null,null,null,null,null,null,null,null,null,null,null,null,null,null,null,null,null,"ZWO"]
[null,null,null,null,null,null,null,null,null,null,null,null,null,null,{"$f":"VLOOKUP(N458,Tabel10[[korte omschrijving]:[MCC3_CODE]],2,0)","v":{"$error":"#N/A"}},{"$f":"VLOOKUP(N458,Tabel10[],3,0)","v":{"$error":"#N/A"}},null,null,null,null,null,null,null,null,null,null,null,{"$error":"#DIV/0!"},0,0,null,"","","","","","","","","","",null,null,null,null,null,null,null,null,null,null,null,null,null,null,null,null,null,"ZWO"]
[null,null,null,null,null,null,null,null,null,null,null,null,null,null,{"$f":"VLOOKUP(N459,Tabel10[[korte omschrijving]:[MCC3_CODE]],2,0)","v":{"$error":"#N/A"}},{"$f":"VLOOKUP(N459,Tabel10[],3,0)","v":{"$error":"#N/A"}},null,null,null,null,null,null,null,null,null,null,null,{"$error":"#DIV/0!"},0,0,null,"","","","","","","","","","",null,null,null,null,null,null,null,null,null,null,null,null,null,null,null,null,null,"ZWO"]
[null,null,null,null,null,null,null,null,null,null,null,null,null,null,{"$f":"VLOOKUP(N460,Tabel10[[korte omschrijving]:[MCC3_CODE]],2,0)","v":{"$error":"#N/A"}},{"$f":"VLOOKUP(N460,Tabel10[],3,0)","v":{"$error":"#N/A"}},null,null,null,null,null,null,null,null,null,null,null,{"$error":"#DIV/0!"},0,0,null,"","","","","","","","","","",null,null,null,null,null,null,null,null,null,null,null,null,null,null,null,null,null,"ZWO"]
[null,null,null,null,null,null,null,null,null,null,null,null,null,null,{"$f":"VLOOKUP(N461,Tabel10[[korte omschrijving]:[MCC3_CODE]],2,0)","v":{"$error":"#N/A"}},{"$f":"VLOOKUP(N461,Tabel10[],3,0)","v":{"$error":"#N/A"}},null,null,null,null,null,null,null,null,null,null,null,{"$error":"#DIV/0!"},0,0,null,"","","","","","","","","","",null,null,null,null,null,null,null,null,null,null,null,null,null,null,null,null,null,"ZWO"]
[null,null,null,null,null,null,null,null,null,null,null,null,null,null,{"$f":"VLOOKUP(N462,Tabel10[[korte omschrijving]:[MCC3_CODE]],2,0)","v":{"$error":"#N/A"}},{"$f":"VLOOKUP(N462,Tabel10[],3,0)","v":{"$error":"#N/A"}},null,null,null,null,{"$f":"SUM(T462:T467)","v":0},null,null,null,null,null,null,{"$error":"#DIV/0!"},0,0,null,"","","","","","","","","","",null,null,null,null,null,null,null,null,null,null,null,null,null,null,null,null,null,"ZWO"]
[null,null,null,null,null,null,null,null,null,null,null,null,null,null,{"$f":"VLOOKUP(N463,Tabel10[[korte omschrijving]:[MCC3_CODE]],2,0)","v":{"$error":"#N/A"}},{"$f":"VLOOKUP(N463,Tabel10[],3,0)","v":{"$error":"#N/A"}},null,null,null,null,null,null,null,null,null,null,null,{"$error":"#DIV/0!"},0,0,null,"","","","","","","","","","",null,null,null,null,null,null,null,null,null,null,null,null,null,null,null,null,null,"ZWO"]
[null,null,null,null,null,null,null,null,null,null,null,null,null,null,{"$f":"VLOOKUP(N464,Tabel10[[korte omschrijving]:[MCC3_CODE]],2,0)","v":{"$error":"#N/A"}},{"$f":"VLOOKUP(N464,Tabel10[],3,0)","v":{"$error":"#N/A"}},null,null,null,null,null,null,null,null,null,null,null,{"$error":"#DIV/0!"},0,0,null,"","","","","","","","","","",null,null,null,null,null,null,null,null,null,null,null,null,null,null,null,null,null,"ZWO"]
[null,null,null,null,null,null,null,null,null,null,null,null,null,null,{"$f":"VLOOKUP(N465,Tabel10[[korte omschrijving]:[MCC3_CODE]],2,0)","v":{"$error":"#N/A"}},{"$f":"VLOOKUP(N465,Tabel10[],3,0)","v":{"$error":"#N/A"}},null,null,null,null,null,null,null,null,null,null,null,{"$error":"#DIV/0!"},0,0,null,"","","","","","","","","","",null,null,null,null,null,null,null,null,null,null,null,null,null,null,null,null,null,"ZWO"]
[null,null,null,null,null,null,null,null,null,null,null,null,null,null,{"$f":"VLOOKUP(N466,Tabel10[[korte omschrijving]:[MCC3_CODE]],2,0)","v":{"$error":"#N/A"}},{"$f":"VLOOKUP(N466,Tabel10[],3,0)","v":{"$error":"#N/A"}},null,null,null,null,null,null,null,null,null,null,null,{"$error":"#DIV/0!"},0,0,null,"","","","","","","","","","",null,null,null,null,null,null,null,null,null,null,null,null,null,null,null,null,null,"ZWO"]
[null,null,null,null,null,null,null,null,null,null,null,null,null,null,{"$f":"VLOOKUP(N467,Tabel10[[korte omschrijving]:[MCC3_CODE]],2,0)","v":{"$error":"#N/A"}},{"$f":"VLOOKUP(N467,Tabel10[],3,0)","v":{"$error":"#N/A"}},null,null,null,null,null,null,null,null,null,null,null,{"$error":"#DIV/0!"},0,0,null,"","","","","","","","","","",null,null,null,null,null,null,null,null,null,null,null,null,null,null,null,null,null,"ZWO"]
[null,null,null,null,null,null,null,null,null,null,null,null,null,null,{"$f":"VLOOKUP(N468,Tabel10[[korte omschrijving]:[MCC3_CODE]],2,0)","v":{"$error":"#N/A"}},{"$f":"VLOOKUP(N468,Tabel10[],3,0)","v":{"$error":"#N/A"}},null,null,null,null,{"$f":"SUM(T468:T473)","v":0},null,null,null,null,null,null,{"$error":"#DIV/0!"},0,0,null,"","","","","","","","","","",null,null,null,null,null,null,null,null,null,null,null,null,null,null,null,null,null,"ZWO"]
[null,null,null,null,null,null,null,null,null,null,null,null,null,null,{"$f":"VLOOKUP(N469,Tabel10[[korte omschrijving]:[MCC3_CODE]],2,0)","v":{"$error":"#N/A"}},{"$f":"VLOOKUP(N469,Tabel10[],3,0)","v":{"$error":"#N/A"}},null,null,null,null,null,null,null,null,null,null,null,{"$error":"#DIV/0!"},0,0,null,"","","","","","","","","","",null,null,null,null,null,null,null,null,null,null,null,null,null,null,null,null,null,"ZWO"]
[null,null,null,null,null,null,null,null,null,null,null,null,null,null,{"$f":"VLOOKUP(N470,Tabel10[[korte omschrijving]:[MCC3_CODE]],2,0)","v":{"$error":"#N/A"}},{"$f":"VLOOKUP(N470,Tabel10[],3,0)","v":{"$error":"#N/A"}},null,null,null,null,null,null,null,null,null,null,null,{"$error":"#DIV/0!"},0,0,null,"","","","","","","","","","",null,null,null,null,null,null,null,null,null,null,null,null,null,null,null,null,null,"ZWO"]
[null,null,null,null,null,null,null,null,null,null,null,null,null,null,{"$f":"VLOOKUP(N471,Tabel10[[korte omschrijving]:[MCC3_CODE]],2,0)","v":{"$error":"#N/A"}},{"$f":"VLOOKUP(N471,Tabel10[],3,0)","v":{"$error":"#N/A"}},null,null,null,null,null,null,null,null,null,null,null,{"$error":"#DIV/0!"},0,0,null,"","","","","","","","","","",null,null,null,null,null,null,null,null,null,null,null,null,null,null,null,null,null,"ZWO"]
[null,null,null,null,null,null,null,null,null,null,null,null,null,null,{"$f":"VLOOKUP(N472,Tabel10[[korte omschrijving]:[MCC3_CODE]],2,0)","v":{"$error":"#N/A"}},{"$f":"VLOOKUP(N472,Tabel10[],3,0)","v":{"$error":"#N/A"}},null,null,null,null,null,null,null,null,null,null,null,{"$error":"#DIV/0!"},0,0,null,"","","","","","","","","","",null,null,null,null,null,null,null,null,null,null,null,null,null,null,null,null,null,"ZWO"]
[null,null,null,null,null,null,null,null,null,null,null,null,null,null,{"$f":"VLOOKUP(N473,Tabel10[[korte omschrijving]:[MCC3_CODE]],2,0)","v":{"$error":"#N/A"}},{"$f":"VLOOKUP(N473,Tabel10[],3,0)","v":{"$error":"#N/A"}},null,null,null,null,null,null,null,null,null,null,null,{"$error":"#DIV/0!"},0,0,null,"","","","","","","","","","",null,null,null,null,null,null,null,null,null,null,null,null,null,null,null,null,null,"ZWO"]
[null,null,null,null,null,null,null,null,null,null,null,null,null,null,{"$f":"VLOOKUP(N474,Tabel10[[korte omschrijving]:[MCC3_CODE]],2,0)","v":{"$error":"#N/A"}},{"$f":"VLOOKUP(N474,Tabel10[],3,0)","v":{"$error":"#N/A"}},null,null,null,null,{"$f":"SUM(T474:T479)","v":0},null,null,null,null,null,null,{"$error":"#DIV/0!"},0,0,null,"","","","","","","","","","",null,null,null,null,null,null,null,null,null,null,null,null,null,null,null,null,null,"ZWO"]
[null,null,null,null,null,null,null,null,null,null,null,null,null,null,{"$f":"VLOOKUP(N475,Tabel10[[korte omschrijving]:[MCC3_CODE]],2,0)","v":{"$error":"#N/A"}},{"$f":"VLOOKUP(N475,Tabel10[],3,0)","v":{"$error":"#N/A"}},null,null,null,null,null,null,null,null,null,null,null,{"$error":"#DIV/0!"},0,0,null,"","","","","","","","","","",null,null,null,null,null,null,null,null,null,null,null,null,null,null,null,null,null,"ZWO"]
[null,null,null,null,null,null,null,null,null,null,null,null,null,null,{"$f":"VLOOKUP(N476,Tabel10[[korte omschrijving]:[MCC3_CODE]],2,0)","v":{"$error":"#N/A"}},{"$f":"VLOOKUP(N476,Tabel10[],3,0)","v":{"$error":"#N/A"}},null,null,null,null,null,null,null,null,null,null,null,{"$error":"#DIV/0!"},0,0,null,"","","","","","","","","","",null,null,null,null,null,null,null,null,null,null,null,null,null,null,null,null,null,"ZWO"]
[null,null,null,null,null,null,null,null,null,null,null,null,null,null,{"$f":"VLOOKUP(N477,Tabel10[[korte omschrijving]:[MCC3_CODE]],2,0)","v":{"$error":"#N/A"}},{"$f":"VLOOKUP(N477,Tabel10[],3,0)","v":{"$error":"#N/A"}},null,null,null,null,null,null,null,null,null,null,null,{"$error":"#DIV/0!"},0,0,null,"","","","","","","","","","",null,null,null,null,null,null,null,null,null,null,null,null,null,null,null,null,null,"ZWO"]
[null,null,null,null,null,null,null,null,null,null,null,null,null,null,{"$f":"VLOOKUP(N478,Tabel10[[korte omschrijving]:[MCC3_CODE]],2,0)","v":{"$error":"#N/A"}},{"$f":"VLOOKUP(N478,Tabel10[],3,0)","v":{"$error":"#N/A"}},null,null,null,null,null,null,null,null,null,null,null,{"$error":"#DIV/0!"},0,0,null,"","","","","","","","","","",null,null,null,null,null,null,null,null,null,null,null,null,null,null,null,null,null,"ZWO"]
[null,null,null,null,null,null,null,null,null,null,null,null,null,null,{"$f":"VLOOKUP(N479,Tabel10[[korte omschrijving]:[MCC3_CODE]],2,0)","v":{"$error":"#N/A"}},{"$f":"VLOOKUP(N479,Tabel10[],3,0)","v":{"$error":"#N/A"}},null,null,null,null,null,null,null,null,null,null,null,{"$error":"#DIV/0!"},0,0,null,"","","","","","","","","","",null,null,null,null,null,null,null,null,null,null,null,null,null,null,null,null,null,"ZWO"]
[null,null,null,null,null,null,null,null,null,null,null,null,null,null,{"$f":"VLOOKUP(N480,Tabel10[[korte omschrijving]:[MCC3_CODE]],2,0)","v":{"$error":"#N/A"}},{"$f":"VLOOKUP(N480,Tabel10[],3,0)","v":{"$error":"#N/A"}},null,null,null,null,{"$f":"SUM(T480:T485)","v":0},null,null,null,null,null,null,{"$error":"#DIV/0!"},0,0,null,"","","","","","","","","","",null,null,null,null,null,null,null,null,null,null,null,null,null,null,null,null,null,"ZWO"]
[null,null,null,null,null,null,null,null,null,null,null,null,null,null,{"$f":"VLOOKUP(N481,Tabel10[[korte omschrijving]:[MCC3_CODE]],2,0)","v":{"$error":"#N/A"}},{"$f":"VLOOKUP(N481,Tabel10[],3,0)","v":{"$error":"#N/A"}},null,null,null,null,null,null,null,null,null,null,null,{"$error":"#DIV/0!"},0,0,null,"","","","","","","","","","",null,null,null,null,null,null,null,null,null,null,null,null,null,null,null,null,null,"ZWO"]
[null,null,null,null,null,null,null,null,null,null,null,null,null,null,{"$f":"VLOOKUP(N482,Tabel10[[korte omschrijving]:[MCC3_CODE]],2,0)","v":{"$error":"#N/A"}},{"$f":"VLOOKUP(N482,Tabel10[],3,0)","v":{"$error":"#N/A"}},null,null,null,null,null,null,null,null,null,null,null,{"$error":"#DIV/0!"},0,0,null,"","","","","","","","","","",null,null,null,null,null,null,null,null,null,null,null,null,null,null,null,null,null,"ZWO"]
[null,null,null,null,null,null,null,null,null,null,null,null,null,null,{"$f":"VLOOKUP(N483,Tabel10[[korte omschrijving]:[MCC3_CODE]],2,0)","v":{"$error":"#N/A"}},{"$f":"VLOOKUP(N483,Tabel10[],3,0)","v":{"$error":"#N/A"}},null,null,null,null,null,null,null,null,null,null,null,{"$error":"#DIV/0!"},0,0,null,"","","","","","","","","","",null,null,null,null,null,null,null,null,null,null,null,null,null,null,null,null,null,"ZWO"]
[null,null,null,null,null,null,null,null,null,null,null,null,null,null,{"$f":"VLOOKUP(N484,Tabel10[[korte omschrijving]:[MCC3_CODE]],2,0)","v":{"$error":"#N/A"}},{"$f":"VLOOKUP(N484,Tabel10[],3,0)","v":{"$error":"#N/A"}},null,null,null,null,null,null,null,null,null,null,null,{"$error":"#DIV/0!"},0,0,null,"","","","","","","","","","",null,null,null,null,null,null,null,null,null,null,null,null,null,null,null,null,null,"ZWO"]
[null,null,null,null,null,null,null,null,null,null,null,null,null,null,{"$f":"VLOOKUP(N485,Tabel10[[korte omschrijving]:[MCC3_CODE]],2,0)","v":{"$error":"#N/A"}},{"$f":"VLOOKUP(N485,Tabel10[],3,0)","v":{"$error":"#N/A"}},null,null,null,null,null,null,null,null,null,null,null,{"$error":"#DIV/0!"},0,0,null,"","","","","","","","","","",null,null,null,null,null,null,null,null,null,null,null,null,null,null,null,null,null,"ZWO"]
[null,null,null,null,null,null,null,null,null,null,null,null,null,null,{"$f":"VLOOKUP(N486,Tabel10[[korte omschrijving]:[MCC3_CODE]],2,0)","v":{"$error":"#N/A"}},{"$f":"VLOOKUP(N486,Tabel10[],3,0)","v":{"$error":"#N/A"}},null,null,null,null,{"$f":"SUM(T486:T491)","v":0},null,null,null,null,null,null,{"$error":"#DIV/0!"},0,0,null,"","","","","","","","","","",null,null,null,null,null,null,null,null,null,null,null,null,null,null,null,null,null,"ZWO"]
[null,null,null,null,null,null,null,null,null,null,null,null,null,null,{"$f":"VLOOKUP(N487,Tabel10[[korte omschrijving]:[MCC3_CODE]],2,0)","v":{"$error":"#N/A"}},{"$f":"VLOOKUP(N487,Tabel10[],3,0)","v":{"$error":"#N/A"}},null,null,null,null,null,null,null,null,null,null,null,{"$error":"#DIV/0!"},0,0,null,"","","","","","","","","","",null,null,null,null,null,null,null,null,null,null,null,null,null,null,null,null,null,"ZWO"]
[null,null,null,null,null,null,null,null,null,null,null,null,null,null,{"$f":"VLOOKUP(N488,Tabel10[[korte omschrijving]:[MCC3_CODE]],2,0)","v":{"$error":"#N/A"}},{"$f":"VLOOKUP(N488,Tabel10[],3,0)","v":{"$error":"#N/A"}},null,null,null,null,null,null,null,null,null,null,null,{"$error":"#DIV/0!"},0,0,null,"","","","","","","","","","",null,null,null,null,null,null,null,null,null,null,null,null,null,null,null,null,null,"ZWO"]
[null,null,null,null,null,null,null,null,null,null,null,null,null,null,{"$f":"VLOOKUP(N489,Tabel10[[korte omschrijving]:[MCC3_CODE]],2,0)","v":{"$error":"#N/A"}},{"$f":"VLOOKUP(N489,Tabel10[],3,0)","v":{"$error":"#N/A"}},null,null,null,null,null,null,null,null,null,null,null,{"$error":"#DIV/0!"},0,0,null,"","","","","","","","","","",null,null,null,null,null,null,null,null,null,null,null,null,null,null,null,null,null,"ZWO"]
[null,null,null,null,null,null,null,null,null,null,null,null,null,null,{"$f":"VLOOKUP(N490,Tabel10[[korte omschrijving]:[MCC3_CODE]],2,0)","v":{"$error":"#N/A"}},{"$f":"VLOOKUP(N490,Tabel10[],3,0)","v":{"$error":"#N/A"}},null,null,null,null,null,null,null,null,null,null,null,{"$error":"#DIV/0!"},0,0,null,"","","","","","","","","","",null,null,null,null,null,null,null,null,null,null,null,null,null,null,null,null,null,"ZWO"]
[null,null,null,null,null,null,null,null,null,null,null,null,null,null,{"$f":"VLOOKUP(N491,Tabel10[[korte omschrijving]:[MCC3_CODE]],2,0)","v":{"$error":"#N/A"}},{"$f":"VLOOKUP(N491,Tabel10[],3,0)","v":{"$error":"#N/A"}},null,null,null,null,null,null,null,null,null,null,null,{"$error":"#DIV/0!"},0,0,null,"","","","","","","","","","",null,null,null,null,null,null,null,null,null,null,null,null,null,null,null,null,null,"ZWO"]
[null,null,null,null,null,null,null,null,null,null,null,null,null,null,{"$f":"VLOOKUP(N492,Tabel10[[korte omschrijving]:[MCC3_CODE]],2,0)","v":{"$error":"#N/A"}},{"$f":"VLOOKUP(N492,Tabel10[],3,0)","v":{"$error":"#N/A"}},null,null,null,null,{"$f":"SUM(T492:T497)","v":0},null,null,null,null,null,null,{"$error":"#DIV/0!"},0,0,null,"","","","","","","","","","",null,null,null,null,null,null,null,null,null,null,null,null,null,null,null,null,null,"ZWO"]
[null,null,null,null,null,null,null,null,null,null,null,null,null,null,{"$f":"VLOOKUP(N493,Tabel10[[korte omschrijving]:[MCC3_CODE]],2,0)","v":{"$error":"#N/A"}},{"$f":"VLOOKUP(N493,Tabel10[],3,0)","v":{"$error":"#N/A"}},null,null,null,null,null,null,null,null,null,null,null,{"$error":"#DIV/0!"},0,0,null,"","","","","","","","","","",null,null,null,null,null,null,null,null,null,null,null,null,null,null,null,null,null,"ZWO"]
[null,null,null,null,null,null,null,null,null,null,null,null,null,null,{"$f":"VLOOKUP(N494,Tabel10[[korte omschrijving]:[MCC3_CODE]],2,0)","v":{"$error":"#N/A"}},{"$f":"VLOOKUP(N494,Tabel10[],3,0)","v":{"$error":"#N/A"}},null,null,null,null,null,null,null,null,null,null,null,{"$error":"#DIV/0!"},0,0,null,"","","","","","","","","","",null,null,null,null,null,null,null,null,null,null,null,null,null,null,null,null,null,"ZWO"]
[null,null,null,null,null,null,null,null,null,null,null,null,null,null,{"$f":"VLOOKUP(N495,Tabel10[[korte omschrijving]:[MCC3_CODE]],2,0)","v":{"$error":"#N/A"}},{"$f":"VLOOKUP(N495,Tabel10[],3,0)","v":{"$error":"#N/A"}},null,null,null,null,null,null,null,null,null,null,null,{"$error":"#DIV/0!"},0,0,null,"","","","","","","","","","",null,null,null,null,null,null,null,null,null,null,null,null,null,null,null,null,null,"ZWO"]
[null,null,null,null,null,null,null,null,null,null,null,null,null,null,{"$f":"VLOOKUP(N496,Tabel10[[korte omschrijving]:[MCC3_CODE]],2,0)","v":{"$error":"#N/A"}},{"$f":"VLOOKUP(N496,Tabel10[],3,0)","v":{"$error":"#N/A"}},null,null,null,null,null,null,null,null,null,null,null,{"$error":"#DIV/0!"},0,0,null,"","","","","","","","","","",null,null,null,null,null,null,null,null,null,null,null,null,null,null,null,null,null,"ZWO"]
[null,null,null,null,null,null,null,null,null,null,null,null,null,null,{"$f":"VLOOKUP(N497,Tabel10[[korte omschrijving]:[MCC3_CODE]],2,0)","v":{"$error":"#N/A"}},{"$f":"VLOOKUP(N497,Tabel10[],3,0)","v":{"$error":"#N/A"}},null,null,null,null,null,null,null,null,null,null,null,{"$error":"#DIV/0!"},0,0,null,"","","","","","","","","","",null,null,null,null,null,null,null,null,null,null,null,null,null,null,null,null,null,"ZWO"]
[null,null,null,null,null,null,null,null,null,null,null,null,null,null,{"$f":"VLOOKUP(N498,Tabel10[[korte omschrijving]:[MCC3_CODE]],2,0)","v":{"$error":"#N/A"}},{"$f":"VLOOKUP(N498,Tabel10[],3,0)","v":{"$error":"#N/A"}},null,null,null,null,{"$f":"SUM(T498:T503)","v":0},null,null,null,null,null,null,{"$error":"#DIV/0!"},0,0,null,"","","","","","","","","","",null,null,null,null,null,null,null,null,null,null,null,null,null,null,null,null,null,"ZWO"]
[null,null,null,null,null,null,null,null,null,null,null,null,null,null,{"$f":"VLOOKUP(N499,Tabel10[[korte omschrijving]:[MCC3_CODE]],2,0)","v":{"$error":"#N/A"}},{"$f":"VLOOKUP(N499,Tabel10[],3,0)","v":{"$error":"#N/A"}},null,null,null,null,null,null,null,null,null,null,null,{"$error":"#DIV/0!"},0,0,null,"","","","","","","","","","",null,null,null,null,null,null,null,null,null,null,null,null,null,null,null,null,null,"ZWO"]
[null,null,null,null,null,null,null,null,null,null,null,null,null,null,{"$f":"VLOOKUP(N500,Tabel10[[korte omschrijving]:[MCC3_CODE]],2,0)","v":{"$error":"#N/A"}},{"$f":"VLOOKUP(N500,Tabel10[],3,0)","v":{"$error":"#N/A"}},null,null,null,null,null,null,null,null,null,null,null,{"$error":"#DIV/0!"},0,0,null,"","","","","","","","","","",null,null,null,null,null,null,null,null,null,null,null,null,null,null,null,null,null,"ZWO"]
[null,null,null,null,null,null,null,null,null,null,null,null,null,null,{"$f":"VLOOKUP(N501,Tabel10[[korte omschrijving]:[MCC3_CODE]],2,0)","v":{"$error":"#N/A"}},{"$f":"VLOOKUP(N501,Tabel10[],3,0)","v":{"$error":"#N/A"}},null,null,null,null,null,null,null,null,null,null,null,{"$error":"#DIV/0!"},0,0,null,"","","","","","","","","","",null,null,null,null,null,null,null,null,null,null,null,null,null,null,null,null,null,"ZWO"]
[null,null,null,null,null,null,null,null,null,null,null,null,null,null,{"$f":"VLOOKUP(N502,Tabel10[[korte omschrijving]:[MCC3_CODE]],2,0)","v":{"$error":"#N/A"}},{"$f":"VLOOKUP(N502,Tabel10[],3,0)","v":{"$error":"#N/A"}},null,null,null,null,null,null,null,null,null,null,null,{"$error":"#DIV/0!"},0,0,null,"","","","","","","","","","",null,null,null,null,null,null,null,null,null,null,null,null,null,null,null,null,null,"ZWO"]
[null,null,null,null,null,null,null,null,null,null,null,null,null,null,{"$f":"VLOOKUP(N503,Tabel10[[korte omschrijving]:[MCC3_CODE]],2,0)","v":{"$error":"#N/A"}},{"$f":"VLOOKUP(N503,Tabel10[],3,0)","v":{"$error":"#N/A"}},null,null,null,null,null,null,null,null,null,null,null,{"$error":"#DIV/0!"},0,0,null,"","","","","","","","","","",null,null,null,null,null,null,null,null,null,null,null,null,null,null,null,null,null,"ZWO"]
[null,null,null,null,null,null,null,null,null,null,null,null,null,null,{"$f":"VLOOKUP(N504,Tabel10[[korte omschrijving]:[MCC3_CODE]],2,0)","v":{"$error":"#N/A"}},{"$f":"VLOOKUP(N504,Tabel10[],3,0)","v":{"$error":"#N/A"}},null,null,null,null,{"$f":"SUM(T504:T509)","v":0},null,null,null,null,null,null,{"$f":"AA504/Y504","v":{"$error":"#DIV/0!"}},{"$f":"T504*Y504","v":0},{"$f":"T504*AA504","v":0},null,{"$f":"IF(AE504 <> \"\",\n    IF(ISNUMBER(VALUE(LEFT(AE504, FIND(\"%\", AE504)-1))),\n        VALUE(LEFT(AE504, FIND(\"%\", AE504)-1)),\n        \"Invalid format\"),\n    \"\")","v":""},{"$f":"IF(AE504 <> \"\",\n    IF(ISNUMBER(VALUE(LEFT(AE504, FIND(\"%\", AE504)-1))) * ISNUMBER(FIND(\"%\", AE504 & \"wol\")) > 0,\n        TRIM(MID(AE504, FIND(\"%\", AE504)+1, FIND(\"/\", AE504 & \"/\")-FIND(\"%\", AE504)-1)),\n        \"Invalid format\"),\n    \"\")","v":""},{"$f":"IF(AE504 <> \"\",\n    IF(ISNUMBER(VALUE(MID(AE504, FIND(\"/\", AE504) + 1, FIND(\"%\", AE504, FIND(\"/\", AE504)) - FIND(\"/\", AE504) - 1))),\n        VALUE(MID(AE504, FIND(\"/\", AE504) + 1, FIND(\"%\", AE504, FIND(\"/\", AE504)) - FIND(\"/\", AE504) - 1)),\n        \"\"),\n    \"\")","v":""},{"$f":"IF(AE504 <> \"\",\n    IFERROR(TRIM(MID(AE504, FIND(\"%\", AE504, FIND(\"/\", AE504)+1)+2,\n        IFERROR(FIND(\"/\", AE504 & \"/\", FIND(\"/\", AE504)+1)-FIND(\"%\", AE504, FIND(\"/\", AE504)+1)-2, LEN(AE504)-FIND(\"%\", AE504, FIND(\"/\", AE504)+1)-1))),\n        \"\"),\n    \"\")","v":""},{"$f":"IF(AE504 <> \"\",\n    IF(ISNUMBER(VALUE(MID(AE504, FIND(\"/\", AE504, FIND(\"/\", AE504)+1) + 1, FIND(\"%\", AE504, FIND(\"/\", AE504, FIND(\"/\", AE504)+1)) - FIND(\"/\", AE504, FIND(\"/\", AE504)+1) - 1))),\n        VALUE(MID(AE504, FIND(\"/\", AE504, FIND(\"/\", AE504)+1) + 1, FIND(\"%\", AE504, FIND(\"/\", AE504, FIND(\"/\", AE504)+1)) - FIND(\"/\", AE504, FIND(\"/\", AE504)+1) - 1)),\n        \"\"),\n    \"\")","v":""},{"$f":"IF(AE504 <> \"\",\n    IFERROR(\n        TRIM(MID(AE504,\n            FIND(\"%\", AE504, FIND(\"%\", AE504, FIND(\"%\", AE504)+1)+1)+1,\n            FIND(\"/\", AE504 & \"/\", FIND(\"%\", AE504, FIND(\"%\", AE504, FIND(\"%\", AE504)+1)+1))-FIND(\"%\", AE504, FIND(\"%\", AE504, FIND(\"%\", AE504)+1)+1)-1)\n        ),\n        \"\"\n    ),\n    \"\"\n)","v":""},{"$f":"IF(AE504 <> \"\",\n    IF(ISNUMBER(VALUE(MID(AE504, FIND(\"/\", AE504, FIND(\"/\", AE504, FIND(\"/\", AE504)+1)+1) + 1, FIND(\"%\", AE504, FIND(\"/\", AE504, FIND(\"/\", AE504, FIND(\"/\", AE504)+1)+1)) - FIND(\"/\", AE504, FIND(\"/\", AE504, FIND(\"/\", AE504)+1)+1) - 1))),\n        VALUE(MID(AE504, FIND(\"/\", AE504, FIND(\"/\", AE504, FIND(\"/\", AE504)+1)+1) + 1, FIND(\"%\", AE504, FIND(\"/\", AE504, FIND(\"/\", AE504, FIND(\"/\", AE504)+1)+1)) - FIND(\"/\", AE504, FIND(\"/\", AE504, FIND(\"/\", AE504)+1)+1) - 1)),\n        \"\"),\n    \"\")","v":""},{"$f":"IF(AE504 <> \"\",\n    IFERROR(TRIM(MID(AE504, FIND(\"%\", AE504, FIND(\"/\", AE504, FIND(\"/\", AE504, FIND(\"/\", AE504)+1)+1)+1)+2,\n        IFERROR(FIND(\"/\", AE504, FIND(\"/\", AE504, FIND(\"/\", AE504, FIND(\"/\", AE504)+1)+1)+1)-FIND(\"%\", AE504, FIND(\"/\", AE504, FIND(\"/\", AE504, FIND(\"/\", AE504)+1)+1)+1)-2, LEN(AE504)-FIND(\"%\", AE504, FIND(\"/\", AE504, FIND(\"/\", AE504, FIND(\"/\", AE504)+1)+1)+1)-1))),\n        \"\"),\n    \"\")","v":""},{"$f":"IF(AE504 <> \"\",\n    IF(ISNUMBER(VALUE(MID(AE504, FIND(\"/\", AE504, FIND(\"/\", AE504, FIND(\"/\", AE504, FIND(\"/\", AE504)+1)+1)+1) + 1, FIND(\"%\", AE504, FIND(\"/\", AE504, FIND(\"/\", AE504, FIND(\"/\", AE504, FIND(\"/\", AE504)+1)+1)+1)) - FIND(\"/\", AE504, FIND(\"/\", AE504, FIND(\"/\", AE504, FIND(\"/\", AE504)+1)+1)+1) - 1))),\n        VALUE(MID(AE504, FIND(\"/\", AE504, FIND(\"/\", AE504, FIND(\"/\", AE504, FIND(\"/\", AE504)+1)+1)+1) + 1, FIND(\"%\", AE504, FIND(\"/\", AE504, FIND(\"/\", AE504, FIND(\"/\", AE504, FIND(\"/\", AE504)+1)+1)+1)) - FIND(\"/\", AE504, FIND(\"/\", AE504, FIND(\"/\", AE504, FIND(\"/\", AE504)+1)+1)+1) - 1)),\n        \"\"),\n    \"\")","v":""},{"$f":"IF(AE504 = \"\", \"\",\n    IFERROR(TRIM(\n        MID(\n            AE504,\n            FIND(\"%\", AE504, FIND(\"/\", AE504, FIND(\"/\", AE504, FIND(\"/\", AE504, FIND(\"/\", AE504)+1)+1)+1)+1) + 1,\n            FIND(\"/\", AE504 & \"/\", FIND(\"%\", AE504, FIND(\"/\", AE504, FIND(\"/\", AE504, FIND(\"/\", AE504, FIND(\"/\", AE504)+1)+1)+1)+1)) -\n            FIND(\"%\", AE504, FIND(\"/\", AE504, FIND(\"/\", AE504, FIND(\"/\", AE504, FIND(\"/\", AE504)+1)+1)+1)+1) - 1\n        )\n    ),\n    \"\")\n)","v":""},null,null,null,null,null,null,null,null,null,null,null,null,null,null,null,null,null,"ZWO"]
[null,null,null,null,null,null,null,null,null,null,null,null,null,null,{"$f":"VLOOKUP(N505,Tabel10[[korte omschrijving]:[MCC3_CODE]],2,0)","v":{"$error":"#N/A"}},{"$f":"VLOOKUP(N505,Tabel10[],3,0)","v":{"$error":"#N/A"}},null,null,null,null,null,null,null,null,null,null,null,{"$error":"#DIV/0!"},0,0,null,"","","","","","","","","","",null,null,null,null,null,null,null,null,null,null,null,null,null,null,null,null,null,"ZWO"]
[null,null,null,null,null,null,null,null,null,null,null,null,null,null,{"$f":"VLOOKUP(N506,Tabel10[[korte omschrijving]:[MCC3_CODE]],2,0)","v":{"$error":"#N/A"}},{"$f":"VLOOKUP(N506,Tabel10[],3,0)","v":{"$error":"#N/A"}},null,null,null,null,null,null,null,null,null,null,null,{"$error":"#DIV/0!"},0,0,null,"","","","","","","","","","",null,null,null,null,null,null,null,null,null,null,null,null,null,null,null,null,null,"ZWO"]
[null,null,null,null,null,null,null,null,null,null,null,null,null,null,{"$f":"VLOOKUP(N507,Tabel10[[korte omschrijving]:[MCC3_CODE]],2,0)","v":{"$error":"#N/A"}},{"$f":"VLOOKUP(N507,Tabel10[],3,0)","v":{"$error":"#N/A"}},null,null,null,null,null,null,null,null,null,null,null,{"$error":"#DIV/0!"},0,0,null,"","","","","","","","","","",null,null,null,null,null,null,null,null,null,null,null,null,null,null,null,null,null,"ZWO"]
[null,null,null,null,null,null,null,null,null,null,null,null,null,null,{"$f":"VLOOKUP(N508,Tabel10[[korte omschrijving]:[MCC3_CODE]],2,0)","v":{"$error":"#N/A"}},{"$f":"VLOOKUP(N508,Tabel10[],3,0)","v":{"$error":"#N/A"}},null,null,null,null,null,null,null,null,null,null,null,{"$error":"#DIV/0!"},0,0,null,"","","","","","","","","","",null,null,null,null,null,null,null,null,null,null,null,null,null,null,null,null,null,"ZWO"]
[null,null,null,null,null,null,null,null,null,null,null,null,null,null,{"$f":"VLOOKUP(N509,Tabel10[[korte omschrijving]:[MCC3_CODE]],2,0)","v":{"$error":"#N/A"}},{"$f":"VLOOKUP(N509,Tabel10[],3,0)","v":{"$error":"#N/A"}},null,null,null,null,null,null,null,null,null,null,null,{"$error":"#DIV/0!"},0,0,null,"","","","","","","","","","",null,null,null,null,null,null,null,null,null,null,null,null,null,null,null,null,null,"ZWO"]
[null,null,null,null,null,null,null,null,null,null,null,null,null,null,{"$f":"VLOOKUP(N510,Tabel10[[korte omschrijving]:[MCC3_CODE]],2,0)","v":{"$error":"#N/A"}},{"$f":"VLOOKUP(N510,Tabel10[],3,0)","v":{"$error":"#N/A"}},null,null,null,null,0,null,null,null,null,null,null,{"$error":"#DIV/0!"},0,0,null,"","","","","","","","","","",null,null,null,null,null,null,null,null,null,null,null,null,null,null,null,null,null,"ZWO"]
[null,null,null,null,null,null,null,null,null,null,null,null,null,null,{"$f":"VLOOKUP(N511,Tabel10[[korte omschrijving]:[MCC3_CODE]],2,0)","v":{"$error":"#N/A"}},{"$f":"VLOOKUP(N511,Tabel10[],3,0)","v":{"$error":"#N/A"}},null,null,null,null,null,null,null,null,null,null,null,{"$error":"#DIV/0!"},0,0,null,"","","","","","","","","","",null,null,null,null,null,null,null,null,null,null,null,null,null,null,null,null,null,"ZWO"]
[null,null,null,null,null,null,null,null,null,null,null,null,null,null,{"$f":"VLOOKUP(N512,Tabel10[[korte omschrijving]:[MCC3_CODE]],2,0)","v":{"$error":"#N/A"}},{"$f":"VLOOKUP(N512,Tabel10[],3,0)","v":{"$error":"#N/A"}},null,null,null,null,null,null,null,null,null,null,null,{"$error":"#DIV/0!"},0,0,null,"","","","","","","","","","",null,null,null,null,null,null,null,null,null,null,null,null,null,null,null,null,null,"ZWO"]
[null,null,null,null,null,null,null,null,null,null,null,null,null,null,{"$f":"VLOOKUP(N513,Tabel10[[korte omschrijving]:[MCC3_CODE]],2,0)","v":{"$error":"#N/A"}},{"$f":"VLOOKUP(N513,Tabel10[],3,0)","v":{"$error":"#N/A"}},null,null,null,null,null,null,null,null,null,null,null,{"$error":"#DIV/0!"},0,0,null,"","","","","","","","","","",null,null,null,null,null,null,null,null,null,null,null,null,null,null,null,null,null,"ZWO"]
[null,null,null,null,null,null,null,null,null,null,null,null,null,null,{"$f":"VLOOKUP(N514,Tabel10[[korte omschrijving]:[MCC3_CODE]],2,0)","v":{"$error":"#N/A"}},{"$f":"VLOOKUP(N514,Tabel10[],3,0)","v":{"$error":"#N/A"}},null,null,null,null,null,null,null,null,null,null,null,{"$error":"#DIV/0!"},0,0,null,"","","","","","","","","","",null,null,null,null,null,null,null,null,null,null,null,null,null,null,null,null,null,"ZWO"]
[null,null,null,null,null,null,null,null,null,null,null,null,null,null,{"$f":"VLOOKUP(N515,Tabel10[[korte omschrijving]:[MCC3_CODE]],2,0)","v":{"$error":"#N/A"}},{"$f":"VLOOKUP(N515,Tabel10[],3,0)","v":{"$error":"#N/A"}},null,null,null,null,null,null,null,null,null,null,null,{"$error":"#DIV/0!"},0,0,null,"","","","","","","","","","",null,null,null,null,null,null,null,null,null,null,null,null,null,null,null,null,null,"ZWO"]
[null,null,null,null,null,null,null,null,null,null,null,null,null,null,{"$f":"VLOOKUP(N516,Tabel10[[korte omschrijving]:[MCC3_CODE]],2,0)","v":{"$error":"#N/A"}},{"$f":"VLOOKUP(N516,Tabel10[],3,0)","v":{"$error":"#N/A"}},null,null,null,null,0,null,null,null,null,null,null,{"$error":"#DIV/0!"},0,0,null,"","","","","","","","","","",null,null,null,null,null,null,null,null,null,null,null,null,null,null,null,null,null,"ZWO"]
[null,null,null,null,null,null,null,null,null,null,null,null,null,null,{"$f":"VLOOKUP(N517,Tabel10[[korte omschrijving]:[MCC3_CODE]],2,0)","v":{"$error":"#N/A"}},{"$f":"VLOOKUP(N517,Tabel10[],3,0)","v":{"$error":"#N/A"}},null,null,null,null,null,null,null,null,null,null,null,{"$error":"#DIV/0!"},0,0,null,"","","","","","","","","","",null,null,null,null,null,null,null,null,null,null,null,null,null,null,null,null,null,"ZWO"]
[null,null,null,null,null,null,null,null,null,null,null,null,null,null,{"$f":"VLOOKUP(N518,Tabel10[[korte omschrijving]:[MCC3_CODE]],2,0)","v":{"$error":"#N/A"}},{"$f":"VLOOKUP(N518,Tabel10[],3,0)","v":{"$error":"#N/A"}},null,null,null,null,null,null,null,null,null,null,null,{"$error":"#DIV/0!"},0,0,null,"","","","","","","","","","",null,null,null,null,null,null,null,null,null,null,null,null,null,null,null,null,null,"ZWO"]
[null,null,null,null,null,null,null,null,null,null,null,null,null,null,{"$f":"VLOOKUP(N519,Tabel10[[korte omschrijving]:[MCC3_CODE]],2,0)","v":{"$error":"#N/A"}},{"$f":"VLOOKUP(N519,Tabel10[],3,0)","v":{"$error":"#N/A"}},null,null,null,null,null,null,null,null,null,null,null,{"$error":"#DIV/0!"},0,0,null,"","","","","","","","","","",null,null,null,null,null,null,null,null,null,null,null,null,null,null,null,null,null,"ZWO"]
[null,null,null,null,null,null,null,null,null,null,null,null,null,null,{"$f":"VLOOKUP(N520,Tabel10[[korte omschrijving]:[MCC3_CODE]],2,0)","v":{"$error":"#N/A"}},{"$f":"VLOOKUP(N520,Tabel10[],3,0)","v":{"$error":"#N/A"}},null,null,null,null,null,null,null,null,null,null,null,{"$error":"#DIV/0!"},0,0,null,"","","","","","","","","","",null,null,null,null,null,null,null,null,null,null,null,null,null,null,null,null,null,"ZWO"]
[null,null,null,null,null,null,null,null,null,null,null,null,null,null,{"$f":"VLOOKUP(N521,Tabel10[[korte omschrijving]:[MCC3_CODE]],2,0)","v":{"$error":"#N/A"}},{"$f":"VLOOKUP(N521,Tabel10[],3,0)","v":{"$error":"#N/A"}},null,null,null,null,null,null,null,null,null,null,null,{"$error":"#DIV/0!"},0,0,null,"","","","","","","","","","",null,null,null,null,null,null,null,null,null,null,null,null,null,null,null,null,null,"ZWO"]
[null,null,null,null,null,null,null,null,null,null,null,null,null,null,{"$f":"VLOOKUP(N522,Tabel10[[korte omschrijving]:[MCC3_CODE]],2,0)","v":{"$error":"#N/A"}},{"$f":"VLOOKUP(N522,Tabel10[],3,0)","v":{"$error":"#N/A"}},null,null,null,null,0,null,null,null,null,null,null,{"$error":"#DIV/0!"},0,0,null,"","","","","","","","","","",null,null,null,null,null,null,null,null,null,null,null,null,null,null,null,null,null,"ZWO"]
[null,null,null,null,null,null,null,null,null,null,null,null,null,null,{"$f":"VLOOKUP(N523,Tabel10[[korte omschrijving]:[MCC3_CODE]],2,0)","v":{"$error":"#N/A"}},{"$f":"VLOOKUP(N523,Tabel10[],3,0)","v":{"$error":"#N/A"}},null,null,null,null,null,null,null,null,null,null,null,{"$error":"#DIV/0!"},0,0,null,"","","","","","","","","","",null,null,null,null,null,null,null,null,null,null,null,null,null,null,null,null,null,"ZWO"]
[null,null,null,null,null,null,null,null,null,null,null,null,null,null,{"$f":"VLOOKUP(N524,Tabel10[[korte omschrijving]:[MCC3_CODE]],2,0)","v":{"$error":"#N/A"}},{"$f":"VLOOKUP(N524,Tabel10[],3,0)","v":{"$error":"#N/A"}},null,null,null,null,null,null,null,null,null,null,null,{"$error":"#DIV/0!"},0,0,null,"","","","","","","","","","",null,null,null,null,null,null,null,null,null,null,null,null,null,null,null,null,null,"ZWO"]
[null,null,null,null,null,null,null,null,null,null,null,null,null,null,{"$f":"VLOOKUP(N525,Tabel10[[korte omschrijving]:[MCC3_CODE]],2,0)","v":{"$error":"#N/A"}},{"$f":"VLOOKUP(N525,Tabel10[],3,0)","v":{"$error":"#N/A"}},null,null,null,null,null,null,null,null,null,null,null,{"$error":"#DIV/0!"},0,0,null,"","","","","","","","","","",null,null,null,null,null,null,null,null,null,null,null,null,null,null,null,null,null,"ZWO"]
[null,null,null,null,null,null,null,null,null,null,null,null,null,null,{"$f":"VLOOKUP(N526,Tabel10[[korte omschrijving]:[MCC3_CODE]],2,0)","v":{"$error":"#N/A"}},{"$f":"VLOOKUP(N526,Tabel10[],3,0)","v":{"$error":"#N/A"}},null,null,null,null,null,null,null,null,null,null,null,{"$error":"#DIV/0!"},0,0,null,"","","","","","","","","","",null,null,null,null,null,null,null,null,null,null,null,null,null,null,null,null,null,"ZWO"]
[null,null,null,null,null,null,null,null,null,null,null,null,null,null,{"$f":"VLOOKUP(N527,Tabel10[[korte omschrijving]:[MCC3_CODE]],2,0)","v":{"$error":"#N/A"}},{"$f":"VLOOKUP(N527,Tabel10[],3,0)","v":{"$error":"#N/A"}},null,null,null,null,null,null,null,null,null,null,null,{"$error":"#DIV/0!"},0,0,null,"","","","","","","","","","",null,null,null,null,null,null,null,null,null,null,null,null,null,null,null,null,null,"ZWO"]
[null,null,null,null,null,null,null,null,null,null,null,null,null,null,{"$f":"VLOOKUP(N528,Tabel10[[korte omschrijving]:[MCC3_CODE]],2,0)","v":{"$error":"#N/A"}},{"$f":"VLOOKUP(N528,Tabel10[],3,0)","v":{"$error":"#N/A"}},null,null,null,null,0,null,null,null,null,null,null,{"$error":"#DIV/0!"},0,0,null,"","","","","","","","","","",null,null,null,null,null,null,null,null,null,null,null,null,null,null,null,null,null,"ZWO"]
[null,null,null,null,null,null,null,null,null,null,null,null,null,null,{"$f":"VLOOKUP(N529,Tabel10[[korte omschrijving]:[MCC3_CODE]],2,0)","v":{"$error":"#N/A"}},{"$f":"VLOOKUP(N529,Tabel10[],3,0)","v":{"$error":"#N/A"}},null,null,null,null,null,null,null,null,null,null,null,{"$error":"#DIV/0!"},0,0,null,"","","","","","","","","","",null,null,null,null,null,null,null,null,null,null,null,null,null,null,null,null,null,"ZWO"]
[null,null,null,null,null,null,null,null,null,null,null,null,null,null,{"$f":"VLOOKUP(N530,Tabel10[[korte omschrijving]:[MCC3_CODE]],2,0)","v":{"$error":"#N/A"}},{"$f":"VLOOKUP(N530,Tabel10[],3,0)","v":{"$error":"#N/A"}},null,null,null,null,null,null,null,null,null,null,null,{"$error":"#DIV/0!"},0,0,null,"","","","","","","","","","",null,null,null,null,null,null,null,null,null,null,null,null,null,null,null,null,null,"ZWO"]
[null,null,null,null,null,null,null,null,null,null,null,null,null,null,{"$f":"VLOOKUP(N531,Tabel10[[korte omschrijving]:[MCC3_CODE]],2,0)","v":{"$error":"#N/A"}},{"$f":"VLOOKUP(N531,Tabel10[],3,0)","v":{"$error":"#N/A"}},null,null,null,null,null,null,null,null,null,null,null,{"$error":"#DIV/0!"},0,0,null,"","","","","","","","","","",null,null,null,null,null,null,null,null,null,null,null,null,null,null,null,null,null,"ZWO"]
[null,null,null,null,null,null,null,null,null,null,null,null,null,null,{"$f":"VLOOKUP(N532,Tabel10[[korte omschrijving]:[MCC3_CODE]],2,0)","v":{"$error":"#N/A"}},{"$f":"VLOOKUP(N532,Tabel10[],3,0)","v":{"$error":"#N/A"}},null,null,null,null,null,null,null,null,null,null,null,{"$error":"#DIV/0!"},0,0,null,"","","","","","","","","","",null,null,null,null,null,null,null,null,null,null,null,null,null,null,null,null,null,"ZWO"]
[null,null,null,null,null,null,null,null,null,null,null,null,null,null,{"$f":"VLOOKUP(N533,Tabel10[[korte omschrijving]:[MCC3_CODE]],2,0)","v":{"$error":"#N/A"}},{"$f":"VLOOKUP(N533,Tabel10[],3,0)","v":{"$error":"#N/A"}},null,null,null,null,null,null,null,null,null,null,null,{"$error":"#DIV/0!"},0,0,null,"","","","","","","","","","",null,null,null,null,null,null,null,null,null,null,null,null,null,null,null,null,null,"ZWO"]
[null,null,null,null,null,null,null,null,null,null,null,null,null,null,{"$f":"VLOOKUP(N534,Tabel10[[korte omschrijving]:[MCC3_CODE]],2,0)","v":{"$error":"#N/A"}},{"$f":"VLOOKUP(N534,Tabel10[],3,0)","v":{"$error":"#N/A"}},null,null,null,null,0,null,null,null,null,null,null,{"$error":"#DIV/0!"},0,0,null,"","","","","","","","","","",null,null,null,null,null,null,null,null,null,null,null,null,null,null,null,null,null,"ZWO"]
[null,null,null,null,null,null,null,null,null,null,null,null,null,null,{"$f":"VLOOKUP(N535,Tabel10[[korte omschrijving]:[MCC3_CODE]],2,0)","v":{"$error":"#N/A"}},{"$f":"VLOOKUP(N535,Tabel10[],3,0)","v":{"$error":"#N/A"}},null,null,null,null,null,null,null,null,null,null,null,{"$error":"#DIV/0!"},0,0,null,"","","","","","","","","","",null,null,null,null,null,null,null,null,null,null,null,null,null,null,null,null,null,"ZWO"]
[null,null,null,null,null,null,null,null,null,null,null,null,null,null,{"$f":"VLOOKUP(N536,Tabel10[[korte omschrijving]:[MCC3_CODE]],2,0)","v":{"$error":"#N/A"}},{"$f":"VLOOKUP(N536,Tabel10[],3,0)","v":{"$error":"#N/A"}},null,null,null,null,null,null,null,null,null,null,null,{"$error":"#DIV/0!"},0,0,null,"","","","","","","","","","",null,null,null,null,null,null,null,null,null,null,null,null,null,null,null,null,null,"ZWO"]
[null,null,null,null,null,null,null,null,null,null,null,null,null,null,{"$f":"VLOOKUP(N537,Tabel10[[korte omschrijving]:[MCC3_CODE]],2,0)","v":{"$error":"#N/A"}},{"$f":"VLOOKUP(N537,Tabel10[],3,0)","v":{"$error":"#N/A"}},null,null,null,null,null,null,null,null,null,null,null,{"$error":"#DIV/0!"},0,0,null,"","","","","","","","","","",null,null,null,null,null,null,null,null,null,null,null,null,null,null,null,null,null,"ZWO"]
[null,null,null,null,null,null,null,null,null,null,null,null,null,null,{"$f":"VLOOKUP(N538,Tabel10[[korte omschrijving]:[MCC3_CODE]],2,0)","v":{"$error":"#N/A"}},{"$f":"VLOOKUP(N538,Tabel10[],3,0)","v":{"$error":"#N/A"}},null,null,null,null,null,null,null,null,null,null,null,{"$error":"#DIV/0!"},0,0,null,"","","","","","","","","","",null,null,null,null,null,null,null,null,null,null,null,null,null,null,null,null,null,"ZWO"]
[null,null,null,null,null,null,null,null,null,null,null,null,null,null,{"$f":"VLOOKUP(N539,Tabel10[[korte omschrijving]:[MCC3_CODE]],2,0)","v":{"$error":"#N/A"}},{"$f":"VLOOKUP(N539,Tabel10[],3,0)","v":{"$error":"#N/A"}},null,null,null,null,null,null,null,null,null,null,null,{"$error":"#DIV/0!"},0,0,null,"","","","","","","","","","",null,null,null,null,null,null,null,null,null,null,null,null,null,null,null,null,null,"ZWO"]
[null,null,null,null,null,null,null,null,null,null,null,null,null,null,{"$f":"VLOOKUP(N540,Tabel10[[korte omschrijving]:[MCC3_CODE]],2,0)","v":{"$error":"#N/A"}},{"$f":"VLOOKUP(N540,Tabel10[],3,0)","v":{"$error":"#N/A"}},null,null,null,null,0,null,null,null,null,null,null,{"$error":"#DIV/0!"},0,0,null,"","","","","","","","","","",null,null,null,null,null,null,null,null,null,null,null,null,null,null,null,null,null,"ZWO"]
[null,null,null,null,null,null,null,null,null,null,null,null,null,null,{"$f":"VLOOKUP(N541,Tabel10[[korte omschrijving]:[MCC3_CODE]],2,0)","v":{"$error":"#N/A"}},{"$f":"VLOOKUP(N541,Tabel10[],3,0)","v":{"$error":"#N/A"}},null,null,null,null,null,null,null,null,null,null,null,{"$error":"#DIV/0!"},0,0,null,"","","","","","","","","","",null,null,null,null,null,null,null,null,null,null,null,null,null,null,null,null,null,"ZWO"]
[null,null,null,null,null,null,null,null,null,null,null,null,null,null,{"$f":"VLOOKUP(N542,Tabel10[[korte omschrijving]:[MCC3_CODE]],2,0)","v":{"$error":"#N/A"}},{"$f":"VLOOKUP(N542,Tabel10[],3,0)","v":{"$error":"#N/A"}},null,null,null,null,null,null,null,null,null,null,null,{"$error":"#DIV/0!"},0,0,null,"","","","","","","","","","",null,null,null,null,null,null,null,null,null,null,null,null,null,null,null,null,null,"ZWO"]
[null,null,null,null,null,null,null,null,null,null,null,null,null,null,{"$f":"VLOOKUP(N543,Tabel10[[korte omschrijving]:[MCC3_CODE]],2,0)","v":{"$error":"#N/A"}},{"$f":"VLOOKUP(N543,Tabel10[],3,0)","v":{"$error":"#N/A"}},null,null,null,null,null,null,null,null,null,null,null,{"$error":"#DIV/0!"},0,0,null,"","","","","","","","","","",null,null,null,null,null,null,null,null,null,null,null,null,null,null,null,null,null,"ZWO"]
[null,null,null,null,null,null,null,null,null,null,null,null,null,null,{"$f":"VLOOKUP(N544,Tabel10[[korte omschrijving]:[MCC3_CODE]],2,0)","v":{"$error":"#N/A"}},{"$f":"VLOOKUP(N544,Tabel10[],3,0)","v":{"$error":"#N/A"}},null,null,null,null,null,null,null,null,null,null,null,{"$error":"#DIV/0!"},0,0,null,"","","","","","","","","","",null,null,null,null,null,null,null,null,null,null,null,null,null,null,null,null,null,"ZWO"]
[null,null,null,null,null,null,null,null,null,null,null,null,null,null,{"$f":"VLOOKUP(N545,Tabel10[[korte omschrijving]:[MCC3_CODE]],2,0)","v":{"$error":"#N/A"}},{"$f":"VLOOKUP(N545,Tabel10[],3,0)","v":{"$error":"#N/A"}},null,null,null,null,null,null,null,null,null,null,null,{"$error":"#DIV/0!"},0,0,null,"","","","","","","","","","",null,null,null,null,null,null,null,null,null,null,null,null,null,null,null,null,null,"ZWO"]
[null,null,null,null,null,null,null,null,null,null,null,null,null,null,{"$f":"VLOOKUP(N546,Tabel10[[korte omschrijving]:[MCC3_CODE]],2,0)","v":{"$error":"#N/A"}},{"$f":"VLOOKUP(N546,Tabel10[],3,0)","v":{"$error":"#N/A"}},null,null,null,null,0,null,null,null,null,null,null,{"$error":"#DIV/0!"},0,0,null,"","","","","","","","","","",null,null,null,null,null,null,null,null,null,null,null,null,null,null,null,null,null,"ZWO"]
[null,null,null,null,null,null,null,null,null,null,null,null,null,null,{"$f":"VLOOKUP(N547,Tabel10[[korte omschrijving]:[MCC3_CODE]],2,0)","v":{"$error":"#N/A"}},{"$f":"VLOOKUP(N547,Tabel10[],3,0)","v":{"$error":"#N/A"}},null,null,null,null,null,null,null,null,null,null,null,{"$error":"#DIV/0!"},0,0,null,"","","","","","","","","","",null,null,null,null,null,null,null,null,null,null,null,null,null,null,null,null,null,"ZWO"]
[null,null,null,null,null,null,null,null,null,null,null,null,null,null,{"$f":"VLOOKUP(N548,Tabel10[[korte omschrijving]:[MCC3_CODE]],2,0)","v":{"$error":"#N/A"}},{"$f":"VLOOKUP(N548,Tabel10[],3,0)","v":{"$error":"#N/A"}},null,null,null,null,null,null,null,null,null,null,null,{"$error":"#DIV/0!"},0,0,null,"","","","","","","","","","",null,null,null,null,null,null,null,null,null,null,null,null,null,null,null,null,null,"ZWO"]
[null,null,null,null,null,null,null,null,null,null,null,null,null,null,{"$f":"VLOOKUP(N549,Tabel10[[korte omschrijving]:[MCC3_CODE]],2,0)","v":{"$error":"#N/A"}},{"$f":"VLOOKUP(N549,Tabel10[],3,0)","v":{"$error":"#N/A"}},null,null,null,null,null,null,null,null,null,null,null,{"$error":"#DIV/0!"},0,0,null,"","","","","","","","","","",null,null,null,null,null,null,null,null,null,null,null,null,null,null,null,null,null,"ZWO"]
[null,null,null,null,null,null,null,null,null,null,null,null,null,null,{"$f":"VLOOKUP(N550,Tabel10[[korte omschrijving]:[MCC3_CODE]],2,0)","v":{"$error":"#N/A"}},{"$f":"VLOOKUP(N550,Tabel10[],3,0)","v":{"$error":"#N/A"}},null,null,null,null,null,null,null,null,null,null,null,{"$error":"#DIV/0!"},0,0,null,"","","","","","","","","","",null,null,null,null,null,null,null,null,null,null,null,null,null,null,null,null,null,"ZWO"]
[null,null,null,null,null,null,null,null,null,null,null,null,null,null,{"$f":"VLOOKUP(N551,Tabel10[[korte omschrijving]:[MCC3_CODE]],2,0)","v":{"$error":"#N/A"}},{"$f":"VLOOKUP(N551,Tabel10[],3,0)","v":{"$error":"#N/A"}},null,null,null,null,null,null,null,null,null,null,null,{"$error":"#DIV/0!"},0,0,null,"","","","","","","","","","",null,null,null,null,null,null,null,null,null,null,null,null,null,null,null,null,null,"ZWO"]
[null,null,null,null,null,null,null,null,null,null,null,null,null,null,{"$f":"VLOOKUP(N552,Tabel10[[korte omschrijving]:[MCC3_CODE]],2,0)","v":{"$error":"#N/A"}},{"$f":"VLOOKUP(N552,Tabel10[],3,0)","v":{"$error":"#N/A"}},null,null,null,null,0,null,null,null,null,null,null,{"$error":"#DIV/0!"},0,0,null,"","","","","","","","","","",null,null,null,null,null,null,null,null,null,null,null,null,null,null,null,null,null,"ZWO"]
[null,null,null,null,null,null,null,null,null,null,null,null,null,null,{"$f":"VLOOKUP(N553,Tabel10[[korte omschrijving]:[MCC3_CODE]],2,0)","v":{"$error":"#N/A"}},{"$f":"VLOOKUP(N553,Tabel10[],3,0)","v":{"$error":"#N/A"}},null,null,null,null,null,null,null,null,null,null,null,{"$error":"#DIV/0!"},0,0,null,"","","","","","","","","","",null,null,null,null,null,null,null,null,null,null,null,null,null,null,null,null,null,"ZWO"]
[null,null,null,null,null,null,null,null,null,null,null,null,null,null,{"$f":"VLOOKUP(N554,Tabel10[[korte omschrijving]:[MCC3_CODE]],2,0)","v":{"$error":"#N/A"}},{"$f":"VLOOKUP(N554,Tabel10[],3,0)","v":{"$error":"#N/A"}},null,null,null,null,null,null,null,null,null,null,null,{"$error":"#DIV/0!"},0,0,null,"","","","","","","","","","",null,null,null,null,null,null,null,null,null,null,null,null,null,null,null,null,null,"ZWO"]
[null,null,null,null,null,null,null,null,null,null,null,null,null,null,{"$f":"VLOOKUP(N555,Tabel10[[korte omschrijving]:[MCC3_CODE]],2,0)","v":{"$error":"#N/A"}},{"$f":"VLOOKUP(N555,Tabel10[],3,0)","v":{"$error":"#N/A"}},null,null,null,null,null,null,null,null,null,null,null,{"$error":"#DIV/0!"},0,0,null,"","","","","","","","","","",null,null,null,null,null,null,null,null,null,null,null,null,null,null,null,null,null,"ZWO"]
[null,null,null,null,null,null,null,null,null,null,null,null,null,null,{"$f":"VLOOKUP(N556,Tabel10[[korte omschrijving]:[MCC3_CODE]],2,0)","v":{"$error":"#N/A"}},{"$f":"VLOOKUP(N556,Tabel10[],3,0)","v":{"$error":"#N/A"}},null,null,null,null,null,null,null,null,null,null,null,{"$error":"#DIV/0!"},0,0,null,"","","","","","","","","","",null,null,null,null,null,null,null,null,null,null,null,null,null,null,null,null,null,"ZWO"]
[null,null,null,null,null,null,null,null,null,null,null,null,null,null,{"$f":"VLOOKUP(N557,Tabel10[[korte omschrijving]:[MCC3_CODE]],2,0)","v":{"$error":"#N/A"}},{"$f":"VLOOKUP(N557,Tabel10[],3,0)","v":{"$error":"#N/A"}},null,null,null,null,null,null,null,null,null,null,null,{"$error":"#DIV/0!"},0,0,null,"","","","","","","","","","",null,null,null,null,null,null,null,null,null,null,null,null,null,null,null,null,null,"ZWO"]
[null,null,null,null,null,null,null,null,null,null,null,null,null,null,{"$f":"VLOOKUP(N558,Tabel10[[korte omschrijving]:[MCC3_CODE]],2,0)","v":{"$error":"#N/A"}},{"$f":"VLOOKUP(N558,Tabel10[],3,0)","v":{"$error":"#N/A"}},null,null,null,null,0,null,null,null,null,null,null,{"$error":"#DIV/0!"},0,0,null,"","","","","","","","","","",null,null,null,null,null,null,null,null,null,null,null,null,null,null,null,null,null,"ZWO"]
[null,null,null,null,null,null,null,null,null,null,null,null,null,null,{"$f":"VLOOKUP(N559,Tabel10[[korte omschrijving]:[MCC3_CODE]],2,0)","v":{"$error":"#N/A"}},{"$f":"VLOOKUP(N559,Tabel10[],3,0)","v":{"$error":"#N/A"}},null,null,null,null,null,null,null,null,null,null,null,{"$error":"#DIV/0!"},0,0,null,"","","","","","","","","","",null,null,null,null,null,null,null,null,null,null,null,null,null,null,null,null,null,"ZWO"]
[null,null,null,null,null,null,null,null,null,null,null,null,null,null,{"$f":"VLOOKUP(N560,Tabel10[[korte omschrijving]:[MCC3_CODE]],2,0)","v":{"$error":"#N/A"}},{"$f":"VLOOKUP(N560,Tabel10[],3,0)","v":{"$error":"#N/A"}},null,null,null,null,null,null,null,null,null,null,null,{"$error":"#DIV/0!"},0,0,null,"","","","","","","","","","",null,null,null,null,null,null,null,null,null,null,null,null,null,null,null,null,null,"ZWO"]
[null,null,null,null,null,null,null,null,null,null,null,null,null,null,{"$f":"VLOOKUP(N561,Tabel10[[korte omschrijving]:[MCC3_CODE]],2,0)","v":{"$error":"#N/A"}},{"$f":"VLOOKUP(N561,Tabel10[],3,0)","v":{"$error":"#N/A"}},null,null,null,null,null,null,null,null,null,null,null,{"$error":"#DIV/0!"},0,0,null,"","","","","","","","","","",null,null,null,null,null,null,null,null,null,null,null,null,null,null,null,null,null,"ZWO"]
[null,null,null,null,null,null,null,null,null,null,null,null,null,null,{"$f":"VLOOKUP(N562,Tabel10[[korte omschrijving]:[MCC3_CODE]],2,0)","v":{"$error":"#N/A"}},{"$f":"VLOOKUP(N562,Tabel10[],3,0)","v":{"$error":"#N/A"}},null,null,null,null,null,null,null,null,null,null,null,{"$error":"#DIV/0!"},0,0,null,"","","","","","","","","","",null,null,null,null,null,null,null,null,null,null,null,null,null,null,null,null,null,"ZWO"]
[null,null,null,null,null,null,null,null,null,null,null,null,null,null,{"$f":"VLOOKUP(N563,Tabel10[[korte omschrijving]:[MCC3_CODE]],2,0)","v":{"$error":"#N/A"}},{"$f":"VLOOKUP(N563,Tabel10[],3,0)","v":{"$error":"#N/A"}},null,null,null,null,null,null,null,null,null,null,null,{"$error":"#DIV/0!"},0,0,null,"","","","","","","","","","",null,null,null,null,null,null,null,null,null,null,null,null,null,null,null,null,null,"ZWO"]
[null,null,null,null,null,null,null,null,null,null,null,null,null,null,{"$f":"VLOOKUP(N564,Tabel10[[korte omschrijving]:[MCC3_CODE]],2,0)","v":{"$error":"#N/A"}},{"$f":"VLOOKUP(N564,Tabel10[],3,0)","v":{"$error":"#N/A"}},null,null,null,null,0,null,null,null,null,null,null,{"$error":"#DIV/0!"},0,0,null,"","","","","","","","","","",null,null,null,null,null,null,null,null,null,null,null,null,null,null,null,null,null,"ZWO"]
[null,null,null,null,null,null,null,null,null,null,null,null,null,null,{"$f":"VLOOKUP(N565,Tabel10[[korte omschrijving]:[MCC3_CODE]],2,0)","v":{"$error":"#N/A"}},{"$f":"VLOOKUP(N565,Tabel10[],3,0)","v":{"$error":"#N/A"}},null,null,null,null,null,null,null,null,null,null,null,{"$error":"#DIV/0!"},0,0,null,"","","","","","","","","","",null,null,null,null,null,null,null,null,null,null,null,null,null,null,null,null,null,"ZWO"]
[null,null,null,null,null,null,null,null,null,null,null,null,null,null,{"$f":"VLOOKUP(N566,Tabel10[[korte omschrijving]:[MCC3_CODE]],2,0)","v":{"$error":"#N/A"}},{"$f":"VLOOKUP(N566,Tabel10[],3,0)","v":{"$error":"#N/A"}},null,null,null,null,null,null,null,null,null,null,null,{"$error":"#DIV/0!"},0,0,null,"","","","","","","","","","",null,null,null,null,null,null,null,null,null,null,null,null,null,null,null,null,null,"ZWO"]
[null,null,null,null,null,null,null,null,null,null,null,null,null,null,{"$f":"VLOOKUP(N567,Tabel10[[korte omschrijving]:[MCC3_CODE]],2,0)","v":{"$error":"#N/A"}},{"$f":"VLOOKUP(N567,Tabel10[],3,0)","v":{"$error":"#N/A"}},null,null,null,null,null,null,null,null,null,null,null,{"$error":"#DIV/0!"},0,0,null,"","","","","","","","","","",null,null,null,null,null,null,null,null,null,null,null,null,null,null,null,null,null,"ZWO"]
[null,null,null,null,null,null,null,null,null,null,null,null,null,null,{"$f":"VLOOKUP(N568,Tabel10[[korte omschrijving]:[MCC3_CODE]],2,0)","v":{"$error":"#N/A"}},{"$f":"VLOOKUP(N568,Tabel10[],3,0)","v":{"$error":"#N/A"}},null,null,null,null,null,null,null,null,null,null,null,{"$f":"AA568/Y568","v":{"$error":"#DIV/0!"}},{"$f":"T568*Y568","v":0},{"$f":"T568*AA568","v":0},null,{"$f":"IF(AE568 <> \"\",\n    IF(ISNUMBER(VALUE(LEFT(AE568, FIND(\"%\", AE568)-1))),\n        VALUE(LEFT(AE568, FIND(\"%\", AE568)-1)),\n        \"Invalid format\"),\n    \"\")","v":""},{"$f":"IF(AE568 <> \"\",\n    IF(ISNUMBER(VALUE(LEFT(AE568, FIND(\"%\", AE568)-1))) * ISNUMBER(FIND(\"%\", AE568 & \"wol\")) > 0,\n        TRIM(MID(AE568, FIND(\"%\", AE568)+1, FIND(\"/\", AE568 & \"/\")-FIND(\"%\", AE568)-1)),\n        \"Invalid format\"),\n    \"\")","v":""},{"$f":"IF(AE568 <> \"\",\n    IF(ISNUMBER(VALUE(MID(AE568, FIND(\"/\", AE568) + 1, FIND(\"%\", AE568, FIND(\"/\", AE568)) - FIND(\"/\", AE568) - 1))),\n        VALUE(MID(AE568, FIND(\"/\", AE568) + 1, FIND(\"%\", AE568, FIND(\"/\", AE568)) - FIND(\"/\", AE568) - 1)),\n        \"\"),\n    \"\")","v":""},{"$f":"IF(AE568 <> \"\",\n    IFERROR(TRIM(MID(AE568, FIND(\"%\", AE568, FIND(\"/\", AE568)+1)+2,\n        IFERROR(FIND(\"/\", AE568 & \"/\", FIND(\"/\", AE568)+1)-FIND(\"%\", AE568, FIND(\"/\", AE568)+1)-2, LEN(AE568)-FIND(\"%\", AE568, FIND(\"/\", AE568)+1)-1))),\n        \"\"),\n    \"\")","v":""},{"$f":"IF(AE568 <> \"\",\n    IF(ISNUMBER(VALUE(MID(AE568, FIND(\"/\", AE568, FIND(\"/\", AE568)+1) + 1, FIND(\"%\", AE568, FIND(\"/\", AE568, FIND(\"/\", AE568)+1)) - FIND(\"/\", AE568, FIND(\"/\", AE568)+1) - 1))),\n        VALUE(MID(AE568, FIND(\"/\", AE568, FIND(\"/\", AE568)+1) + 1, FIND(\"%\", AE568, FIND(\"/\", AE568, FIND(\"/\", AE568)+1)) - FIND(\"/\", AE568, FIND(\"/\", AE568)+1) - 1)),\n        \"\"),\n    \"\")","v":""},{"$f":"IF(AE568 <> \"\",\n    IFERROR(\n        TRIM(MID(AE568,\n            FIND(\"%\", AE568, FIND(\"%\", AE568, FIND(\"%\", AE568)+1)+1)+1,\n            FIND(\"/\", AE568 & \"/\", FIND(\"%\", AE568, FIND(\"%\", AE568, FIND(\"%\", AE568)+1)+1))-FIND(\"%\", AE568, FIND(\"%\", AE568, FIND(\"%\", AE568)+1)+1)-1)\n        ),\n        \"\"\n    ),\n    \"\"\n)","v":""},{"$f":"IF(AE568 <> \"\",\n    IF(ISNUMBER(VALUE(MID(AE568, FIND(\"/\", AE568, FIND(\"/\", AE568, FIND(\"/\", AE568)+1)+1) + 1, FIND(\"%\", AE568, FIND(\"/\", AE568, FIND(\"/\", AE568, FIND(\"/\", AE568)+1)+1)) - FIND(\"/\", AE568, FIND(\"/\", AE568, FIND(\"/\", AE568)+1)+1) - 1))),\n        VALUE(MID(AE568, FIND(\"/\", AE568, FIND(\"/\", AE568, FIND(\"/\", AE568)+1)+1) + 1, FIND(\"%\", AE568, FIND(\"/\", AE568, FIND(\"/\", AE568, FIND(\"/\", AE568)+1)+1)) - FIND(\"/\", AE568, FIND(\"/\", AE568, FIND(\"/\", AE568)+1)+1) - 1)),\n        \"\"),\n    \"\")","v":""},{"$f":"IF(AE568 <> \"\",\n    IFERROR(TRIM(MID(AE568, FIND(\"%\", AE568, FIND(\"/\", AE568, FIND(\"/\", AE568, FIND(\"/\", AE568)+1)+1)+1)+2,\n        IFERROR(FIND(\"/\", AE568, FIND(\"/\", AE568, FIND(\"/\", AE568, FIND(\"/\", AE568)+1)+1)+1)-FIND(\"%\", AE568, FIND(\"/\", AE568, FIND(\"/\", AE568, FIND(\"/\", AE568)+1)+1)+1)-2, LEN(AE568)-FIND(\"%\", AE568, FIND(\"/\", AE568, FIND(\"/\", AE568, FIND(\"/\", AE568)+1)+1)+1)-1))),\n        \"\"),\n    \"\")","v":""},{"$f":"IF(AE568 <> \"\",\n    IF(ISNUMBER(VALUE(MID(AE568, FIND(\"/\", AE568, FIND(\"/\", AE568, FIND(\"/\", AE568, FIND(\"/\", AE568)+1)+1)+1) + 1, FIND(\"%\", AE568, FIND(\"/\", AE568, FIND(\"/\", AE568, FIND(\"/\", AE568, FIND(\"/\", AE568)+1)+1)+1)) - FIND(\"/\", AE568, FIND(\"/\", AE568, FIND(\"/\", AE568, FIND(\"/\", AE568)+1)+1)+1) - 1))),\n        VALUE(MID(AE568, FIND(\"/\", AE568, FIND(\"/\", AE568, FIND(\"/\", AE568, FIND(\"/\", AE568)+1)+1)+1) + 1, FIND(\"%\", AE568, FIND(\"/\", AE568, FIND(\"/\", AE568, FIND(\"/\", AE568, FIND(\"/\", AE568)+1)+1)+1)) - FIND(\"/\", AE568, FIND(\"/\", AE568, FIND(\"/\", AE568, FIND(\"/\", AE568)+1)+1)+1) - 1)),\n        \"\"),\n    \"\")","v":""},{"$f":"IF(AE568 = \"\", \"\",\n    IFERROR(TRIM(\n        MID(\n            AE568,\n            FIND(\"%\", AE568, FIND(\"/\", AE568, FIND(\"/\", AE568, FIND(\"/\", AE568, FIND(\"/\", AE568)+1)+1)+1)+1) + 1,\n            FIND(\"/\", AE568 & \"/\", FIND(\"%\", AE568, FIND(\"/\", AE568, FIND(\"/\", AE568, FIND(\"/\", AE568, FIND(\"/\", AE568)+1)+1)+1)+1)) -\n            FIND(\"%\", AE568, FIND(\"/\", AE568, FIND(\"/\", AE568, FIND(\"/\", AE568, FIND(\"/\", AE568)+1)+1)+1)+1) - 1\n        )\n    ),\n    \"\")\n)","v":""},null,null,null,null,null,null,null,null,null,null,null,null,null,null,null,null,null,"ZWO"]
[null,null,null,null,null,null,null,null,null,null,null,null,null,null,{"$f":"VLOOKUP(N569,Tabel10[[korte omschrijving]:[MCC3_CODE]],2,0)","v":{"$error":"#N/A"}},{"$f":"VLOOKUP(N569,Tabel10[],3,0)","v":{"$error":"#N/A"}},null,null,null,null,null,null,null,null,null,null,null,{"$error":"#DIV/0!"},0,0,null,"","","","","","","","","","",null,null,null,null,null,null,null,null,null,null,null,null,null,null,null,null,null,"ZWO"]
[null,null,null,null,null,null,null,null,null,null,null,null,null,null,{"$f":"VLOOKUP(N570,Tabel10[[korte omschrijving]:[MCC3_CODE]],2,0)","v":{"$error":"#N/A"}},{"$f":"VLOOKUP(N570,Tabel10[],3,0)","v":{"$error":"#N/A"}},null,null,null,null,{"$f":"SUM(T570:T575)","v":0},null,null,null,null,null,null,{"$error":"#DIV/0!"},0,0,null,"","","","","","","","","","",null,null,null,null,null,null,null,null,null,null,null,null,null,null,null,null,null,"ZWO"]
[null,null,null,null,null,null,null,null,null,null,null,null,null,null,{"$f":"VLOOKUP(N571,Tabel10[[korte omschrijving]:[MCC3_CODE]],2,0)","v":{"$error":"#N/A"}},{"$f":"VLOOKUP(N571,Tabel10[],3,0)","v":{"$error":"#N/A"}},null,null,null,null,null,null,null,null,null,null,null,{"$error":"#DIV/0!"},0,0,null,"","","","","","","","","","",null,null,null,null,null,null,null,null,null,null,null,null,null,null,null,null,null,"ZWO"]
[null,null,null,null,null,null,null,null,null,null,null,null,null,null,{"$f":"VLOOKUP(N572,Tabel10[[korte omschrijving]:[MCC3_CODE]],2,0)","v":{"$error":"#N/A"}},{"$f":"VLOOKUP(N572,Tabel10[],3,0)","v":{"$error":"#N/A"}},null,null,null,null,null,null,null,null,null,null,null,{"$error":"#DIV/0!"},0,0,null,"","","","","","","","","","",null,null,null,null,null,null,null,null,null,null,null,null,null,null,null,null,null,"ZWO"]
[null,null,null,null,null,null,null,null,null,null,null,null,null,null,{"$f":"VLOOKUP(N573,Tabel10[[korte omschrijving]:[MCC3_CODE]],2,0)","v":{"$error":"#N/A"}},{"$f":"VLOOKUP(N573,Tabel10[],3,0)","v":{"$error":"#N/A"}},null,null,null,null,null,null,null,null,null,null,null,{"$error":"#DIV/0!"},0,0,null,"","","","","","","","","","",null,null,null,null,null,null,null,null,null,null,null,null,null,null,null,null,null,"ZWO"]
[null,null,null,null,null,null,null,null,null,null,null,null,null,null,{"$f":"VLOOKUP(N574,Tabel10[[korte omschrijving]:[MCC3_CODE]],2,0)","v":{"$error":"#N/A"}},{"$f":"VLOOKUP(N574,Tabel10[],3,0)","v":{"$error":"#N/A"}},null,null,null,null,null,null,null,null,null,null,null,{"$error":"#DIV/0!"},0,0,null,"","","","","","","","","","",null,null,null,null,null,null,null,null,null,null,null,null,null,null,null,null,null,"ZWO"]
[null,null,null,null,null,null,null,null,null,null,null,null,null,null,{"$f":"VLOOKUP(N575,Tabel10[[korte omschrijving]:[MCC3_CODE]],2,0)","v":{"$error":"#N/A"}},{"$f":"VLOOKUP(N575,Tabel10[],3,0)","v":{"$error":"#N/A"}},null,null,null,null,null,null,null,null,null,null,null,{"$error":"#DIV/0!"},0,0,null,"","","","","","","","","","",null,null,null,null,null,null,null,null,null,null,null,null,null,null,null,null,null,"ZWO"]
[null,null,null,null,null,null,null,null,null,null,null,null,null,null,{"$f":"VLOOKUP(N576,Tabel10[[korte omschrijving]:[MCC3_CODE]],2,0)","v":{"$error":"#N/A"}},{"$f":"VLOOKUP(N576,Tabel10[],3,0)","v":{"$error":"#N/A"}},null,null,null,null,0,null,null,null,null,null,null,{"$error":"#DIV/0!"},0,0,null,"","","","","","","","","","",null,null,null,null,null,null,null,null,null,null,null,null,null,null,null,null,null,"ZWO"]
[null,null,null,null,null,null,null,null,null,null,null,null,null,null,{"$f":"VLOOKUP(N577,Tabel10[[korte omschrijving]:[MCC3_CODE]],2,0)","v":{"$error":"#N/A"}},{"$f":"VLOOKUP(N577,Tabel10[],3,0)","v":{"$error":"#N/A"}},null,null,null,null,null,null,null,null,null,null,null,{"$error":"#DIV/0!"},0,0,null,"","","","","","","","","","",null,null,null,null,null,null,null,null,null,null,null,null,null,null,null,null,null,"ZWO"]
[null,null,null,null,null,null,null,null,null,null,null,null,null,null,{"$f":"VLOOKUP(N578,Tabel10[[korte omschrijving]:[MCC3_CODE]],2,0)","v":{"$error":"#N/A"}},{"$f":"VLOOKUP(N578,Tabel10[],3,0)","v":{"$error":"#N/A"}},null,null,null,null,null,null,null,null,null,null,null,{"$error":"#DIV/0!"},0,0,null,"","","","","","","","","","",null,null,null,null,null,null,null,null,null,null,null,null,null,null,null,null,null,"ZWO"]
[null,null,null,null,null,null,null,null,null,null,null,null,null,null,{"$f":"VLOOKUP(N579,Tabel10[[korte omschrijving]:[MCC3_CODE]],2,0)","v":{"$error":"#N/A"}},{"$f":"VLOOKUP(N579,Tabel10[],3,0)","v":{"$error":"#N/A"}},null,null,null,null,null,null,null,null,null,null,null,{"$error":"#DIV/0!"},0,0,null,"","","","","","","","","","",null,null,null,null,null,null,null,null,null,null,null,null,null,null,null,null,null,"ZWO"]
[null,null,null,null,null,null,null,null,null,null,null,null,null,null,{"$f":"VLOOKUP(N580,Tabel10[[korte omschrijving]:[MCC3_CODE]],2,0)","v":{"$error":"#N/A"}},{"$f":"VLOOKUP(N580,Tabel10[],3,0)","v":{"$error":"#N/A"}},null,null,null,null,null,null,null,null,null,null,null,{"$error":"#DIV/0!"},0,0,null,"","","","","","","","","","",null,null,null,null,null,null,null,null,null,null,null,null,null,null,null,null,null,"ZWO"]
[null,null,null,null,null,null,null,null,null,null,null,null,null,null,{"$f":"VLOOKUP(N581,Tabel10[[korte omschrijving]:[MCC3_CODE]],2,0)","v":{"$error":"#N/A"}},{"$f":"VLOOKUP(N581,Tabel10[],3,0)","v":{"$error":"#N/A"}},null,null,null,null,null,null,null,null,null,null,null,{"$error":"#DIV/0!"},0,0,null,"","","","","","","","","","",null,null,null,null,null,null,null,null,null,null,null,null,null,null,null,null,null,"ZWO"]
[null,null,null,null,null,null,null,null,null,null,null,null,null,null,{"$f":"VLOOKUP(N582,Tabel10[[korte omschrijving]:[MCC3_CODE]],2,0)","v":{"$error":"#N/A"}},{"$f":"VLOOKUP(N582,Tabel10[],3,0)","v":{"$error":"#N/A"}},null,null,null,null,0,null,null,null,null,null,null,{"$error":"#DIV/0!"},0,0,null,"","","","","","","","","","",null,null,null,null,null,null,null,null,null,null,null,null,null,null,null,null,null,"ZWO"]
[null,null,null,null,null,null,null,null,null,null,null,null,null,null,{"$f":"VLOOKUP(N583,Tabel10[[korte omschrijving]:[MCC3_CODE]],2,0)","v":{"$error":"#N/A"}},{"$f":"VLOOKUP(N583,Tabel10[],3,0)","v":{"$error":"#N/A"}},null,null,null,null,null,null,null,null,null,null,null,{"$error":"#DIV/0!"},0,0,null,"","","","","","","","","","",null,null,null,null,null,null,null,null,null,null,null,null,null,null,null,null,null,"ZWO"]
[null,null,null,null,null,null,null,null,null,null,null,null,null,null,{"$f":"VLOOKUP(N584,Tabel10[[korte omschrijving]:[MCC3_CODE]],2,0)","v":{"$error":"#N/A"}},{"$f":"VLOOKUP(N584,Tabel10[],3,0)","v":{"$error":"#N/A"}},null,null,null,null,null,null,null,null,null,null,null,{"$error":"#DIV/0!"},0,0,null,"","","","","","","","","","",null,null,null,null,null,null,null,null,null,null,null,null,null,null,null,null,null,"ZWO"]
[null,null,null,null,null,null,null,null,null,null,null,null,null,null,{"$f":"VLOOKUP(N585,Tabel10[[korte omschrijving]:[MCC3_CODE]],2,0)","v":{"$error":"#N/A"}},{"$f":"VLOOKUP(N585,Tabel10[],3,0)","v":{"$error":"#N/A"}},null,null,null,null,null,null,null,null,null,null,null,{"$error":"#DIV/0!"},0,0,null,"","","","","","","","","","",null,null,null,null,null,null,null,null,null,null,null,null,null,null,null,null,null,"ZWO"]
[null,null,null,null,null,null,null,null,null,null,null,null,null,null,{"$f":"VLOOKUP(N586,Tabel10[[korte omschrijving]:[MCC3_CODE]],2,0)","v":{"$error":"#N/A"}},{"$f":"VLOOKUP(N586,Tabel10[],3,0)","v":{"$error":"#N/A"}},null,null,null,null,null,null,null,null,null,null,null,{"$error":"#DIV/0!"},0,0,null,"","","","","","","","","","",null,null,null,null,null,null,null,null,null,null,null,null,null,null,null,null,null,"ZWO"]
[null,null,null,null,null,null,null,null,null,null,null,null,null,null,{"$f":"VLOOKUP(N587,Tabel10[[korte omschrijving]:[MCC3_CODE]],2,0)","v":{"$error":"#N/A"}},{"$f":"VLOOKUP(N587,Tabel10[],3,0)","v":{"$error":"#N/A"}},null,null,null,null,null,null,null,null,null,null,null,{"$error":"#DIV/0!"},0,0,null,"","","","","","","","","","",null,null,null,null,null,null,null,null,null,null,null,null,null,null,null,null,null,"ZWO"]
[null,null,null,null,null,null,null,null,null,null,null,null,null,null,{"$f":"VLOOKUP(N588,Tabel10[[korte omschrijving]:[MCC3_CODE]],2,0)","v":{"$error":"#N/A"}},{"$f":"VLOOKUP(N588,Tabel10[],3,0)","v":{"$error":"#N/A"}},null,null,null,null,0,null,null,null,null,null,null,{"$error":"#DIV/0!"},0,0,null,"","","","","","","","","","",null,null,null,null,null,null,null,null,null,null,null,null,null,null,null,null,null,"ZWO"]
[null,null,null,null,null,null,null,null,null,null,null,null,null,null,{"$f":"VLOOKUP(N589,Tabel10[[korte omschrijving]:[MCC3_CODE]],2,0)","v":{"$error":"#N/A"}},{"$f":"VLOOKUP(N589,Tabel10[],3,0)","v":{"$error":"#N/A"}},null,null,null,null,null,null,null,null,null,null,null,{"$error":"#DIV/0!"},0,0,null,"","","","","","","","","","",null,null,null,null,null,null,null,null,null,null,null,null,null,null,null,null,null,"ZWO"]
[null,null,null,null,null,null,null,null,null,null,null,null,null,null,{"$f":"VLOOKUP(N590,Tabel10[[korte omschrijving]:[MCC3_CODE]],2,0)","v":{"$error":"#N/A"}},{"$f":"VLOOKUP(N590,Tabel10[],3,0)","v":{"$error":"#N/A"}},null,null,null,null,null,null,null,null,null,null,null,{"$error":"#DIV/0!"},0,0,null,"","","","","","","","","","",null,null,null,null,null,null,null,null,null,null,null,null,null,null,null,null,null,"ZWO"]
[null,null,null,null,null,null,null,null,null,null,null,null,null,null,{"$f":"VLOOKUP(N591,Tabel10[[korte omschrijving]:[MCC3_CODE]],2,0)","v":{"$error":"#N/A"}},{"$f":"VLOOKUP(N591,Tabel10[],3,0)","v":{"$error":"#N/A"}},null,null,null,null,null,null,null,null,null,null,null,{"$error":"#DIV/0!"},0,0,null,"","","","","","","","","","",null,null,null,null,null,null,null,null,null,null,null,null,null,null,null,null,null,"ZWO"]
[null,null,null,null,null,null,null,null,null,null,null,null,null,null,{"$f":"VLOOKUP(N592,Tabel10[[korte omschrijving]:[MCC3_CODE]],2,0)","v":{"$error":"#N/A"}},{"$f":"VLOOKUP(N592,Tabel10[],3,0)","v":{"$error":"#N/A"}},null,null,null,null,null,null,null,null,null,null,null,{"$error":"#DIV/0!"},0,0,null,"","","","","","","","","","",null,null,null,null,null,null,null,null,null,null,null,null,null,null,null,null,null,"ZWO"]
[null,null,null,null,null,null,null,null,null,null,null,null,null,null,{"$f":"VLOOKUP(N593,Tabel10[[korte omschrijving]:[MCC3_CODE]],2,0)","v":{"$error":"#N/A"}},{"$f":"VLOOKUP(N593,Tabel10[],3,0)","v":{"$error":"#N/A"}},null,null,null,null,null,null,null,null,null,null,null,{"$error":"#DIV/0!"},0,0,null,"","","","","","","","","","",null,null,null,null,null,null,null,null,null,null,null,null,null,null,null,null,null,"ZWO"]
[null,null,null,null,null,null,null,null,null,null,null,null,null,null,{"$f":"VLOOKUP(N594,Tabel10[[korte omschrijving]:[MCC3_CODE]],2,0)","v":{"$error":"#N/A"}},{"$f":"VLOOKUP(N594,Tabel10[],3,0)","v":{"$error":"#N/A"}},null,null,null,null,0,null,null,null,null,null,null,{"$error":"#DIV/0!"},0,0,null,"","","","","","","","","","",null,null,null,null,null,null,null,null,null,null,null,null,null,null,null,null,null,"ZWO"]
[null,null,null,null,null,null,null,null,null,null,null,null,null,null,{"$f":"VLOOKUP(N595,Tabel10[[korte omschrijving]:[MCC3_CODE]],2,0)","v":{"$error":"#N/A"}},{"$f":"VLOOKUP(N595,Tabel10[],3,0)","v":{"$error":"#N/A"}},null,null,null,null,null,null,null,null,null,null,null,{"$error":"#DIV/0!"},0,0,null,"","","","","","","","","","",null,null,null,null,null,null,null,null,null,null,null,null,null,null,null,null,null,"ZWO"]
[null,null,null,null,null,null,null,null,null,null,null,null,null,null,{"$f":"VLOOKUP(N596,Tabel10[[korte omschrijving]:[MCC3_CODE]],2,0)","v":{"$error":"#N/A"}},{"$f":"VLOOKUP(N596,Tabel10[],3,0)","v":{"$error":"#N/A"}},null,null,null,null,null,null,null,null,null,null,null,{"$error":"#DIV/0!"},0,0,null,"","","","","","","","","","",null,null,null,null,null,null,null,null,null,null,null,null,null,null,null,null,null,"ZWO"]
[null,null,null,null,null,null,null,null,null,null,null,null,null,null,{"$f":"VLOOKUP(N597,Tabel10[[korte omschrijving]:[MCC3_CODE]],2,0)","v":{"$error":"#N/A"}},{"$f":"VLOOKUP(N597,Tabel10[],3,0)","v":{"$error":"#N/A"}},null,null,null,null,null,null,null,null,null,null,null,{"$error":"#DIV/0!"},0,0,null,"","","","","","","","","","",null,null,null,null,null,null,null,null,null,null,null,null,null,null,null,null,null,"ZWO"]
[null,null,null,null,null,null,null,null,null,null,null,null,null,null,{"$f":"VLOOKUP(N598,Tabel10[[korte omschrijving]:[MCC3_CODE]],2,0)","v":{"$error":"#N/A"}},{"$f":"VLOOKUP(N598,Tabel10[],3,0)","v":{"$error":"#N/A"}},null,null,null,null,null,null,null,null,null,null,null,{"$error":"#DIV/0!"},0,0,null,"","","","","","","","","","",null,null,null,null,null,null,null,null,null,null,null,null,null,null,null,null,null,"ZWO"]
[null,null,null,null,null,null,null,null,null,null,null,null,null,null,{"$f":"VLOOKUP(N599,Tabel10[[korte omschrijving]:[MCC3_CODE]],2,0)","v":{"$error":"#N/A"}},{"$f":"VLOOKUP(N599,Tabel10[],3,0)","v":{"$error":"#N/A"}},null,null,null,null,null,null,null,null,null,null,null,{"$error":"#DIV/0!"},0,0,null,"","","","","","","","","","",null,null,null,null,null,null,null,null,null,null,null,null,null,null,null,null,null,"ZWO"]
[null,null,null,null,null,null,null,null,null,null,null,null,null,null,{"$f":"VLOOKUP(N600,Tabel10[[korte omschrijving]:[MCC3_CODE]],2,0)","v":{"$error":"#N/A"}},{"$f":"VLOOKUP(N600,Tabel10[],3,0)","v":{"$error":"#N/A"}},null,null,null,null,0,null,null,null,null,null,null,{"$error":"#DIV/0!"},0,0,null,"","","","","","","","","","",null,null,null,null,null,null,null,null,null,null,null,null,null,null,null,null,null,"ZWO"]
[null,null,null,null,null,null,null,null,null,null,null,null,null,null,{"$f":"VLOOKUP(N601,Tabel10[[korte omschrijving]:[MCC3_CODE]],2,0)","v":{"$error":"#N/A"}},{"$f":"VLOOKUP(N601,Tabel10[],3,0)","v":{"$error":"#N/A"}},null,null,null,null,null,null,null,null,null,null,null,{"$error":"#DIV/0!"},0,0,null,"","","","","","","","","","",null,null,null,null,null,null,null,null,null,null,null,null,null,null,null,null,null,"ZWO"]
[null,null,null,null,null,null,null,null,null,null,null,null,null,null,{"$f":"VLOOKUP(N602,Tabel10[[korte omschrijving]:[MCC3_CODE]],2,0)","v":{"$error":"#N/A"}},{"$f":"VLOOKUP(N602,Tabel10[],3,0)","v":{"$error":"#N/A"}},null,null,null,null,null,null,null,null,null,null,null,{"$error":"#DIV/0!"},0,0,null,"","","","","","","","","","",null,null,null,null,null,null,null,null,null,null,null,null,null,null,null,null,null,"ZWO"]
[null,null,null,null,null,null,null,null,null,null,null,null,null,null,{"$f":"VLOOKUP(N603,Tabel10[[korte omschrijving]:[MCC3_CODE]],2,0)","v":{"$error":"#N/A"}},{"$f":"VLOOKUP(N603,Tabel10[],3,0)","v":{"$error":"#N/A"}},null,null,null,null,null,null,null,null,null,null,null,{"$error":"#DIV/0!"},0,0,null,"","","","","","","","","","",null,null,null,null,null,null,null,null,null,null,null,null,null,null,null,null,null,"ZWO"]
[null,null,null,null,null,null,null,null,null,null,null,null,null,null,{"$f":"VLOOKUP(N604,Tabel10[[korte omschrijving]:[MCC3_CODE]],2,0)","v":{"$error":"#N/A"}},{"$f":"VLOOKUP(N604,Tabel10[],3,0)","v":{"$error":"#N/A"}},null,null,null,null,null,null,null,null,null,null,null,{"$error":"#DIV/0!"},0,0,null,"","","","","","","","","","",null,null,null,null,null,null,null,null,null,null,null,null,null,null,null,null,null,"ZWO"]
[null,null,null,null,null,null,null,null,null,null,null,null,null,null,{"$f":"VLOOKUP(N605,Tabel10[[korte omschrijving]:[MCC3_CODE]],2,0)","v":{"$error":"#N/A"}},{"$f":"VLOOKUP(N605,Tabel10[],3,0)","v":{"$error":"#N/A"}},null,null,null,null,null,null,null,null,null,null,null,{"$error":"#DIV/0!"},0,0,null,"","","","","","","","","","",null,null,null,null,null,null,null,null,null,null,null,null,null,null,null,null,null,"ZWO"]
[null,null,null,null,null,null,null,null,null,null,null,null,null,null,{"$f":"VLOOKUP(N606,Tabel10[[korte omschrijving]:[MCC3_CODE]],2,0)","v":{"$error":"#N/A"}},{"$f":"VLOOKUP(N606,Tabel10[],3,0)","v":{"$error":"#N/A"}},null,null,null,null,0,null,null,null,null,null,null,{"$error":"#DIV/0!"},0,0,null,"","","","","","","","","","",null,null,null,null,null,null,null,null,null,null,null,null,null,null,null,null,null,"ZWO"]
[null,null,null,null,null,null,null,null,null,null,null,null,null,null,{"$f":"VLOOKUP(N607,Tabel10[[korte omschrijving]:[MCC3_CODE]],2,0)","v":{"$error":"#N/A"}},{"$f":"VLOOKUP(N607,Tabel10[],3,0)","v":{"$error":"#N/A"}},null,null,null,null,null,null,null,null,null,null,null,{"$error":"#DIV/0!"},0,0,null,"","","","","","","","","","",null,null,null,null,null,null,null,null,null,null,null,null,null,null,null,null,null,"ZWO"]
[null,null,null,null,null,null,null,null,null,null,null,null,null,null,{"$f":"VLOOKUP(N608,Tabel10[[korte omschrijving]:[MCC3_CODE]],2,0)","v":{"$error":"#N/A"}},{"$f":"VLOOKUP(N608,Tabel10[],3,0)","v":{"$error":"#N/A"}},null,null,null,null,null,null,null,null,null,null,null,{"$error":"#DIV/0!"},0,0,null,"","","","","","","","","","",null,null,null,null,null,null,null,null,null,null,null,null,null,null,null,null,null,"ZWO"]
[null,null,null,null,null,null,null,null,null,null,null,null,null,null,{"$f":"VLOOKUP(N609,Tabel10[[korte omschrijving]:[MCC3_CODE]],2,0)","v":{"$error":"#N/A"}},{"$f":"VLOOKUP(N609,Tabel10[],3,0)","v":{"$error":"#N/A"}},null,null,null,null,null,null,null,null,null,null,null,{"$error":"#DIV/0!"},0,0,null,"","","","","","","","","","",null,null,null,null,null,null,null,null,null,null,null,null,null,null,null,null,null,"ZWO"]
[null,null,null,null,null,null,null,null,null,null,null,null,null,null,{"$f":"VLOOKUP(N610,Tabel10[[korte omschrijving]:[MCC3_CODE]],2,0)","v":{"$error":"#N/A"}},{"$f":"VLOOKUP(N610,Tabel10[],3,0)","v":{"$error":"#N/A"}},null,null,null,null,null,null,null,null,null,null,null,{"$error":"#DIV/0!"},0,0,null,"","","","","","","","","","",null,null,null,null,null,null,null,null,null,null,null,null,null,null,null,null,null,"ZWO"]
[null,null,null,null,null,null,null,null,null,null,null,null,null,null,{"$f":"VLOOKUP(N611,Tabel10[[korte omschrijving]:[MCC3_CODE]],2,0)","v":{"$error":"#N/A"}},{"$f":"VLOOKUP(N611,Tabel10[],3,0)","v":{"$error":"#N/A"}},null,null,null,null,null,null,null,null,null,null,null,{"$error":"#DIV/0!"},0,0,null,"","","","","","","","","","",null,null,null,null,null,null,null,null,null,null,null,null,null,null,null,null,null,"ZWO"]
[null,null,null,null,null,null,null,null,null,null,null,null,null,null,{"$f":"VLOOKUP(N612,Tabel10[[korte omschrijving]:[MCC3_CODE]],2,0)","v":{"$error":"#N/A"}},{"$f":"VLOOKUP(N612,Tabel10[],3,0)","v":{"$error":"#N/A"}},null,null,null,null,0,null,null,null,null,null,null,{"$error":"#DIV/0!"},0,0,null,"","","","","","","","","","",null,null,null,null,null,null,null,null,null,null,null,null,null,null,null,null,null,"ZWO"]
[null,null,null,null,null,null,null,null,null,null,null,null,null,null,{"$f":"VLOOKUP(N613,Tabel10[[korte omschrijving]:[MCC3_CODE]],2,0)","v":{"$error":"#N/A"}},{"$f":"VLOOKUP(N613,Tabel10[],3,0)","v":{"$error":"#N/A"}},null,null,null,null,null,null,null,null,null,null,null,{"$error":"#DIV/0!"},0,0,null,"","","","","","","","","","",null,null,null,null,null,null,null,null,null,null,null,null,null,null,null,null,null,"ZWO"]
[null,null,null,null,null,null,null,null,null,null,null,null,null,null,{"$f":"VLOOKUP(N614,Tabel10[[korte omschrijving]:[MCC3_CODE]],2,0)","v":{"$error":"#N/A"}},{"$f":"VLOOKUP(N614,Tabel10[],3,0)","v":{"$error":"#N/A"}},null,null,null,null,null,null,null,null,null,null,null,{"$error":"#DIV/0!"},0,0,null,"","","","","","","","","","",null,null,null,null,null,null,null,null,null,null,null,null,null,null,null,null,null,"ZWO"]
[null,null,null,null,null,null,null,null,null,null,null,null,null,null,{"$f":"VLOOKUP(N615,Tabel10[[korte omschrijving]:[MCC3_CODE]],2,0)","v":{"$error":"#N/A"}},{"$f":"VLOOKUP(N615,Tabel10[],3,0)","v":{"$error":"#N/A"}},null,null,null,null,null,null,null,null,null,null,null,{"$error":"#DIV/0!"},0,0,null,"","","","","","","","","","",null,null,null,null,null,null,null,null,null,null,null,null,null,null,null,null,null,"ZWO"]
[null,null,null,null,null,null,null,null,null,null,null,null,null,null,{"$f":"VLOOKUP(N616,Tabel10[[korte omschrijving]:[MCC3_CODE]],2,0)","v":{"$error":"#N/A"}},{"$f":"VLOOKUP(N616,Tabel10[],3,0)","v":{"$error":"#N/A"}},null,null,null,null,null,null,null,null,null,null,null,{"$error":"#DIV/0!"},0,0,null,"","","","","","","","","","",null,null,null,null,null,null,null,null,null,null,null,null,null,null,null,null,null,"ZWO"]
[null,null,null,null,null,null,null,null,null,null,null,null,null,null,{"$f":"VLOOKUP(N617,Tabel10[[korte omschrijving]:[MCC3_CODE]],2,0)","v":{"$error":"#N/A"}},{"$f":"VLOOKUP(N617,Tabel10[],3,0)","v":{"$error":"#N/A"}},null,null,null,null,null,null,null,null,null,null,null,{"$error":"#DIV/0!"},0,0,null,"","","","","","","","","","",null,null,null,null,null,null,null,null,null,null,null,null,null,null,null,null,null,"ZWO"]
[null,null,null,null,null,null,null,null,null,null,null,null,null,null,{"$f":"VLOOKUP(N618,Tabel10[[korte omschrijving]:[MCC3_CODE]],2,0)","v":{"$error":"#N/A"}},{"$f":"VLOOKUP(N618,Tabel10[],3,0)","v":{"$error":"#N/A"}},null,null,null,null,0,null,null,null,null,null,null,{"$error":"#DIV/0!"},0,0,null,"","","","","","","","","","",null,null,null,null,null,null,null,null,null,null,null,null,null,null,null,null,null,"ZWO"]
[null,null,null,null,null,null,null,null,null,null,null,null,null,null,{"$f":"VLOOKUP(N619,Tabel10[[korte omschrijving]:[MCC3_CODE]],2,0)","v":{"$error":"#N/A"}},{"$f":"VLOOKUP(N619,Tabel10[],3,0)","v":{"$error":"#N/A"}},null,null,null,null,null,null,null,null,null,null,null,{"$error":"#DIV/0!"},0,0,null,"","","","","","","","","","",null,null,null,null,null,null,null,null,null,null,null,null,null,null,null,null,null,"ZWO"]
[null,null,null,null,null,null,null,null,null,null,null,null,null,null,{"$f":"VLOOKUP(N620,Tabel10[[korte omschrijving]:[MCC3_CODE]],2,0)","v":{"$error":"#N/A"}},{"$f":"VLOOKUP(N620,Tabel10[],3,0)","v":{"$error":"#N/A"}},null,null,null,null,null,null,null,null,null,null,null,{"$error":"#DIV/0!"},0,0,null,"","","","","","","","","","",null,null,null,null,null,null,null,null,null,null,null,null,null,null,null,null,null,"ZWO"]
[null,null,null,null,null,null,null,null,null,null,null,null,null,null,{"$f":"VLOOKUP(N621,Tabel10[[korte omschrijving]:[MCC3_CODE]],2,0)","v":{"$error":"#N/A"}},{"$f":"VLOOKUP(N621,Tabel10[],3,0)","v":{"$error":"#N/A"}},null,null,null,null,null,null,null,null,null,null,null,{"$error":"#DIV/0!"},0,0,null,"","","","","","","","","","",null,null,null,null,null,null,null,null,null,null,null,null,null,null,null,null,null,"ZWO"]
[null,null,null,null,null,null,null,null,null,null,null,null,null,null,{"$f":"VLOOKUP(N622,Tabel10[[korte omschrijving]:[MCC3_CODE]],2,0)","v":{"$error":"#N/A"}},{"$f":"VLOOKUP(N622,Tabel10[],3,0)","v":{"$error":"#N/A"}},null,null,null,null,null,null,null,null,null,null,null,{"$error":"#DIV/0!"},0,0,null,"","","","","","","","","","",null,null,null,null,null,null,null,null,null,null,null,null,null,null,null,null,null,"ZWO"]
[null,null,null,null,null,null,null,null,null,null,null,null,null,null,{"$f":"VLOOKUP(N623,Tabel10[[korte omschrijving]:[MCC3_CODE]],2,0)","v":{"$error":"#N/A"}},{"$f":"VLOOKUP(N623,Tabel10[],3,0)","v":{"$error":"#N/A"}},null,null,null,null,null,null,null,null,null,null,null,{"$error":"#DIV/0!"},0,0,null,"","","","","","","","","","",null,null,null,null,null,null,null,null,null,null,null,null,null,null,null,null,null,"ZWO"]
[null,null,null,null,null,null,null,null,null,null,null,null,null,null,{"$f":"VLOOKUP(N624,Tabel10[[korte omschrijving]:[MCC3_CODE]],2,0)","v":{"$error":"#N/A"}},{"$f":"VLOOKUP(N624,Tabel10[],3,0)","v":{"$error":"#N/A"}},null,null,null,null,0,null,null,null,null,null,null,{"$error":"#DIV/0!"},0,0,null,"","","","","","","","","","",null,null,null,null,null,null,null,null,null,null,null,null,null,null,null,null,null,"ZWO"]
[null,null,null,null,null,null,null,null,null,null,null,null,null,null,{"$f":"VLOOKUP(N625,Tabel10[[korte omschrijving]:[MCC3_CODE]],2,0)","v":{"$error":"#N/A"}},{"$f":"VLOOKUP(N625,Tabel10[],3,0)","v":{"$error":"#N/A"}},null,null,null,null,null,null,null,null,null,null,null,{"$error":"#DIV/0!"},0,0,null,"","","","","","","","","","",null,null,null,null,null,null,null,null,null,null,null,null,null,null,null,null,null,"ZWO"]
[null,null,null,null,null,null,null,null,null,null,null,null,null,null,{"$f":"VLOOKUP(N626,Tabel10[[korte omschrijving]:[MCC3_CODE]],2,0)","v":{"$error":"#N/A"}},{"$f":"VLOOKUP(N626,Tabel10[],3,0)","v":{"$error":"#N/A"}},null,null,null,null,null,null,null,null,null,null,null,{"$error":"#DIV/0!"},0,0,null,"","","","","","","","","","",null,null,null,null,null,null,null,null,null,null,null,null,null,null,null,null,null,"ZWO"]
[null,null,null,null,null,null,null,null,null,null,null,null,null,null,{"$f":"VLOOKUP(N627,Tabel10[[korte omschrijving]:[MCC3_CODE]],2,0)","v":{"$error":"#N/A"}},{"$f":"VLOOKUP(N627,Tabel10[],3,0)","v":{"$error":"#N/A"}},null,null,null,null,null,null,null,null,null,null,null,{"$error":"#DIV/0!"},0,0,null,"","","","","","","","","","",null,null,null,null,null,null,null,null,null,null,null,null,null,null,null,null,null,"ZWO"]
[null,null,null,null,null,null,null,null,null,null,null,null,null,null,{"$f":"VLOOKUP(N628,Tabel10[[korte omschrijving]:[MCC3_CODE]],2,0)","v":{"$error":"#N/A"}},{"$f":"VLOOKUP(N628,Tabel10[],3,0)","v":{"$error":"#N/A"}},null,null,null,null,null,null,null,null,null,null,null,{"$error":"#DIV/0!"},0,0,null,"","","","","","","","","","",null,null,null,null,null,null,null,null,null,null,null,null,null,null,null,null,null,"ZWO"]
[null,null,null,null,null,null,null,null,null,null,null,null,null,null,{"$f":"VLOOKUP(N629,Tabel10[[korte omschrijving]:[MCC3_CODE]],2,0)","v":{"$error":"#N/A"}},{"$f":"VLOOKUP(N629,Tabel10[],3,0)","v":{"$error":"#N/A"}},null,null,null,null,null,null,null,null,null,null,null,{"$error":"#DIV/0!"},0,0,null,"","","","","","","","","","",null,null,null,null,null,null,null,null,null,null,null,null,null,null,null,null,null,"ZWO"]
[null,null,null,null,null,null,null,null,null,null,null,null,null,null,{"$f":"VLOOKUP(N630,Tabel10[[korte omschrijving]:[MCC3_CODE]],2,0)","v":{"$error":"#N/A"}},{"$f":"VLOOKUP(N630,Tabel10[],3,0)","v":{"$error":"#N/A"}},null,null,null,null,0,null,null,null,null,null,null,{"$error":"#DIV/0!"},0,0,null,"","","","","","","","","","",null,null,null,null,null,null,null,null,null,null,null,null,null,null,null,null,null,"ZWO"]
[null,null,null,null,null,null,null,null,null,null,null,null,null,null,{"$f":"VLOOKUP(N631,Tabel10[[korte omschrijving]:[MCC3_CODE]],2,0)","v":{"$error":"#N/A"}},{"$f":"VLOOKUP(N631,Tabel10[],3,0)","v":{"$error":"#N/A"}},null,null,null,null,null,null,null,null,null,null,null,{"$error":"#DIV/0!"},0,0,null,"","","","","","","","","","",null,null,null,null,null,null,null,null,null,null,null,null,null,null,null,null,null,"ZWO"]
[null,null,null,null,null,null,null,null,null,null,null,null,null,null,{"$f":"VLOOKUP(N632,Tabel10[[korte omschrijving]:[MCC3_CODE]],2,0)","v":{"$error":"#N/A"}},{"$f":"VLOOKUP(N632,Tabel10[],3,0)","v":{"$error":"#N/A"}},null,null,null,null,null,null,null,null,null,null,null,{"$f":"AA632/Y632","v":{"$error":"#DIV/0!"}},{"$f":"T632*Y632","v":0},{"$f":"T632*AA632","v":0},null,{"$f":"IF(AE632 <> \"\",\n    IF(ISNUMBER(VALUE(LEFT(AE632, FIND(\"%\", AE632)-1))),\n        VALUE(LEFT(AE632, FIND(\"%\", AE632)-1)),\n        \"Invalid format\"),\n    \"\")","v":""},{"$f":"IF(AE632 <> \"\",\n    IF(ISNUMBER(VALUE(LEFT(AE632, FIND(\"%\", AE632)-1))) * ISNUMBER(FIND(\"%\", AE632 & \"wol\")) > 0,\n        TRIM(MID(AE632, FIND(\"%\", AE632)+1, FIND(\"/\", AE632 & \"/\")-FIND(\"%\", AE632)-1)),\n        \"Invalid format\"),\n    \"\")","v":""},{"$f":"IF(AE632 <> \"\",\n    IF(ISNUMBER(VALUE(MID(AE632, FIND(\"/\", AE632) + 1, FIND(\"%\", AE632, FIND(\"/\", AE632)) - FIND(\"/\", AE632) - 1))),\n        VALUE(MID(AE632, FIND(\"/\", AE632) + 1, FIND(\"%\", AE632, FIND(\"/\", AE632)) - FIND(\"/\", AE632) - 1)),\n        \"\"),\n    \"\")","v":""},{"$f":"IF(AE632 <> \"\",\n    IFERROR(TRIM(MID(AE632, FIND(\"%\", AE632, FIND(\"/\", AE632)+1)+2,\n        IFERROR(FIND(\"/\", AE632 & \"/\", FIND(\"/\", AE632)+1)-FIND(\"%\", AE632, FIND(\"/\", AE632)+1)-2, LEN(AE632)-FIND(\"%\", AE632, FIND(\"/\", AE632)+1)-1))),\n        \"\"),\n    \"\")","v":""},{"$f":"IF(AE632 <> \"\",\n    IF(ISNUMBER(VALUE(MID(AE632, FIND(\"/\", AE632, FIND(\"/\", AE632)+1) + 1, FIND(\"%\", AE632, FIND(\"/\", AE632, FIND(\"/\", AE632)+1)) - FIND(\"/\", AE632, FIND(\"/\", AE632)+1) - 1))),\n        VALUE(MID(AE632, FIND(\"/\", AE632, FIND(\"/\", AE632)+1) + 1, FIND(\"%\", AE632, FIND(\"/\", AE632, FIND(\"/\", AE632)+1)) - FIND(\"/\", AE632, FIND(\"/\", AE632)+1) - 1)),\n        \"\"),\n    \"\")","v":""},{"$f":"IF(AE632 <> \"\",\n    IFERROR(\n        TRIM(MID(AE632,\n            FIND(\"%\", AE632, FIND(\"%\", AE632, FIND(\"%\", AE632)+1)+1)+1,\n            FIND(\"/\", AE632 & \"/\", FIND(\"%\", AE632, FIND(\"%\", AE632, FIND(\"%\", AE632)+1)+1))-FIND(\"%\", AE632, FIND(\"%\", AE632, FIND(\"%\", AE632)+1)+1)-1)\n        ),\n        \"\"\n    ),\n    \"\"\n)","v":""},{"$f":"IF(AE632 <> \"\",\n    IF(ISNUMBER(VALUE(MID(AE632, FIND(\"/\", AE632, FIND(\"/\", AE632, FIND(\"/\", AE632)+1)+1) + 1, FIND(\"%\", AE632, FIND(\"/\", AE632, FIND(\"/\", AE632, FIND(\"/\", AE632)+1)+1)) - FIND(\"/\", AE632, FIND(\"/\", AE632, FIND(\"/\", AE632)+1)+1) - 1))),\n        VALUE(MID(AE632, FIND(\"/\", AE632, FIND(\"/\", AE632, FIND(\"/\", AE632)+1)+1) + 1, FIND(\"%\", AE632, FIND(\"/\", AE632, FIND(\"/\", AE632, FIND(\"/\", AE632)+1)+1)) - FIND(\"/\", AE632, FIND(\"/\", AE632, FIND(\"/\", AE632)+1)+1) - 1)),\n        \"\"),\n    \"\")","v":""},{"$f":"IF(AE632 <> \"\",\n    IFERROR(TRIM(MID(AE632, FIND(\"%\", AE632, FIND(\"/\", AE632, FIND(\"/\", AE632, FIND(\"/\", AE632)+1)+1)+1)+2,\n        IFERROR(FIND(\"/\", AE632, FIND(\"/\", AE632, FIND(\"/\", AE632, FIND(\"/\", AE632)+1)+1)+1)-FIND(\"%\", AE632, FIND(\"/\", AE632, FIND(\"/\", AE632, FIND(\"/\", AE632)+1)+1)+1)-2, LEN(AE632)-FIND(\"%\", AE632, FIND(\"/\", AE632, FIND(\"/\", AE632, FIND(\"/\", AE632)+1)+1)+1)-1))),\n        \"\"),\n    \"\")","v":""},{"$f":"IF(AE632 <> \"\",\n    IF(ISNUMBER(VALUE(MID(AE632, FIND(\"/\", AE632, FIND(\"/\", AE632, FIND(\"/\", AE632, FIND(\"/\", AE632)+1)+1)+1) + 1, FIND(\"%\", AE632, FIND(\"/\", AE632, FIND(\"/\", AE632, FIND(\"/\", AE632, FIND(\"/\", AE632)+1)+1)+1)) - FIND(\"/\", AE632, FIND(\"/\", AE632, FIND(\"/\", AE632, FIND(\"/\", AE632)+1)+1)+1) - 1))),\n        VALUE(MID(AE632, FIND(\"/\", AE632, FIND(\"/\", AE632, FIND(\"/\", AE632, FIND(\"/\", AE632)+1)+1)+1) + 1, FIND(\"%\", AE632, FIND(\"/\", AE632, FIND(\"/\", AE632, FIND(\"/\", AE632, FIND(\"/\", AE632)+1)+1)+1)) - FIND(\"/\", AE632, FIND(\"/\", AE632, FIND(\"/\", AE632, FIND(\"/\", AE632)+1)+1)+1) - 1)),\n        \"\"),\n    \"\")","v":""},{"$f":"IF(AE632 = \"\", \"\",\n    IFERROR(TRIM(\n        MID(\n            AE632,\n            FIND(\"%\", AE632, FIND(\"/\", AE632, FIND(\"/\", AE632, FIND(\"/\", AE632, FIND(\"/\", AE632)+1)+1)+1)+1) + 1,\n            FIND(\"/\", AE632 & \"/\", FIND(\"%\", AE632, FIND(\"/\", AE632, FIND(\"/\", AE632, FIND(\"/\", AE632, FIND(\"/\", AE632)+1)+1)+1)+1)) -\n            FIND(\"%\", AE632, FIND(\"/\", AE632, FIND(\"/\", AE632, FIND(\"/\", AE632, FIND(\"/\", AE632)+1)+1)+1)+1) - 1\n        )\n    ),\n    \"\")\n)","v":""},null,null,null,null,null,null,null,null,null,null,null,null,null,null,null,null,null,"ZWO"]
[null,null,null,null,null,null,null,null,null,null,null,null,null,null,{"$f":"VLOOKUP(N633,Tabel10[[korte omschrijving]:[MCC3_CODE]],2,0)","v":{"$error":"#N/A"}},{"$f":"VLOOKUP(N633,Tabel10[],3,0)","v":{"$error":"#N/A"}},null,null,null,null,null,null,null,null,null,null,null,{"$error":"#DIV/0!"},0,0,null,"","","","","","","","","","",null,null,null,null,null,null,null,null,null,null,null,null,null,null,null,null,null,"ZWO"]
[null,null,null,null,null,null,null,null,null,null,null,null,null,null,{"$f":"VLOOKUP(N634,Tabel10[[korte omschrijving]:[MCC3_CODE]],2,0)","v":{"$error":"#N/A"}},{"$f":"VLOOKUP(N634,Tabel10[],3,0)","v":{"$error":"#N/A"}},null,null,null,null,null,null,null,null,null,null,null,{"$error":"#DIV/0!"},0,0,null,"","","","","","","","","","",null,null,null,null,null,null,null,null,null,null,null,null,null,null,null,null,null,"ZWO"]
[null,null,null,null,null,null,null,null,null,null,null,null,null,null,{"$f":"VLOOKUP(N635,Tabel10[[korte omschrijving]:[MCC3_CODE]],2,0)","v":{"$error":"#N/A"}},{"$f":"VLOOKUP(N635,Tabel10[],3,0)","v":{"$error":"#N/A"}},null,null,null,null,null,null,null,null,null,null,null,{"$error":"#DIV/0!"},0,0,null,"","","","","","","","","","",null,null,null,null,null,null,null,null,null,null,null,null,null,null,null,null,null,"ZWO"]
[null,null,null,null,null,null,null,null,null,null,null,null,null,null,{"$f":"VLOOKUP(N636,Tabel10[[korte omschrijving]:[MCC3_CODE]],2,0)","v":{"$error":"#N/A"}},{"$f":"VLOOKUP(N636,Tabel10[],3,0)","v":{"$error":"#N/A"}},null,null,null,null,{"$f":"SUM(T636:T641)","v":0},null,null,null,null,null,null,{"$error":"#DIV/0!"},0,0,null,"","","","","","","","","","",null,null,null,null,null,null,null,null,null,null,null,null,null,null,null,null,null,"ZWO"]
[null,null,null,null,null,null,null,null,null,null,null,null,null,null,{"$f":"VLOOKUP(N637,Tabel10[[korte omschrijving]:[MCC3_CODE]],2,0)","v":{"$error":"#N/A"}},{"$f":"VLOOKUP(N637,Tabel10[],3,0)","v":{"$error":"#N/A"}},null,null,null,null,null,null,null,null,null,null,null,{"$error":"#DIV/0!"},0,0,null,"","","","","","","","","","",null,null,null,null,null,null,null,null,null,null,null,null,null,null,null,null,null,"ZWO"]
[null,null,null,null,null,null,null,null,null,null,null,null,null,null,{"$f":"VLOOKUP(N638,Tabel10[[korte omschrijving]:[MCC3_CODE]],2,0)","v":{"$error":"#N/A"}},{"$f":"VLOOKUP(N638,Tabel10[],3,0)","v":{"$error":"#N/A"}},null,null,null,null,null,null,null,null,null,null,null,{"$error":"#DIV/0!"},0,0,null,"","","","","","","","","","",null,null,null,null,null,null,null,null,null,null,null,null,null,null,null,null,null,"ZWO"]
[null,null,null,null,null,null,null,null,null,null,null,null,null,null,{"$f":"VLOOKUP(N639,Tabel10[[korte omschrijving]:[MCC3_CODE]],2,0)","v":{"$error":"#N/A"}},{"$f":"VLOOKUP(N639,Tabel10[],3,0)","v":{"$error":"#N/A"}},null,null,null,null,null,null,null,null,null,null,null,{"$error":"#DIV/0!"},0,0,null,"","","","","","","","","","",null,null,null,null,null,null,null,null,null,null,null,null,null,null,null,null,null,"ZWO"]
[null,null,null,null,null,null,null,null,null,null,null,null,null,null,{"$f":"VLOOKUP(N640,Tabel10[[korte omschrijving]:[MCC3_CODE]],2,0)","v":{"$error":"#N/A"}},{"$f":"VLOOKUP(N640,Tabel10[],3,0)","v":{"$error":"#N/A"}},null,null,null,null,null,null,null,null,null,null,null,{"$error":"#DIV/0!"},0,0,null,"","","","","","","","","","",null,null,null,null,null,null,null,null,null,null,null,null,null,null,null,null,null,"ZWO"]
[null,null,null,null,null,null,null,null,null,null,null,null,null,null,{"$f":"VLOOKUP(N641,Tabel10[[korte omschrijving]:[MCC3_CODE]],2,0)","v":{"$error":"#N/A"}},{"$f":"VLOOKUP(N641,Tabel10[],3,0)","v":{"$error":"#N/A"}},null,null,null,null,null,null,null,null,null,null,null,{"$error":"#DIV/0!"},0,0,null,"","","","","","","","","","",null,null,null,null,null,null,null,null,null,null,null,null,null,null,null,null,null,"ZWO"]
[null,null,null,null,null,null,null,null,null,null,null,null,null,null,{"$f":"VLOOKUP(N642,Tabel10[[korte omschrijving]:[MCC3_CODE]],2,0)","v":{"$error":"#N/A"}},{"$f":"VLOOKUP(N642,Tabel10[],3,0)","v":{"$error":"#N/A"}},null,null,null,null,0,null,null,null,null,null,null,{"$error":"#DIV/0!"},0,0,null,"","","","","","","","","","",null,null,null,null,null,null,null,null,null,null,null,null,null,null,null,null,null,"ZWO"]
[null,null,null,null,null,null,null,null,null,null,null,null,null,null,{"$f":"VLOOKUP(N643,Tabel10[[korte omschrijving]:[MCC3_CODE]],2,0)","v":{"$error":"#N/A"}},{"$f":"VLOOKUP(N643,Tabel10[],3,0)","v":{"$error":"#N/A"}},null,null,null,null,null,null,null,null,null,null,null,{"$error":"#DIV/0!"},0,0,null,"","","","","","","","","","",null,null,null,null,null,null,null,null,null,null,null,null,null,null,null,null,null,"ZWO"]
[null,null,null,null,null,null,null,null,null,null,null,null,null,null,{"$f":"VLOOKUP(N644,Tabel10[[korte omschrijving]:[MCC3_CODE]],2,0)","v":{"$error":"#N/A"}},{"$f":"VLOOKUP(N644,Tabel10[],3,0)","v":{"$error":"#N/A"}},null,null,null,null,null,null,null,null,null,null,null,{"$error":"#DIV/0!"},0,0,null,"","","","","","","","","","",null,null,null,null,null,null,null,null,null,null,null,null,null,null,null,null,null,"ZWO"]
[null,null,null,null,null,null,null,null,null,null,null,null,null,null,{"$f":"VLOOKUP(N645,Tabel10[[korte omschrijving]:[MCC3_CODE]],2,0)","v":{"$error":"#N/A"}},{"$f":"VLOOKUP(N645,Tabel10[],3,0)","v":{"$error":"#N/A"}},null,null,null,null,null,null,null,null,null,null,null,{"$error":"#DIV/0!"},0,0,null,"","","","","","","","","","",null,null,null,null,null,null,null,null,null,null,null,null,null,null,null,null,null,"ZWO"]
[null,null,null,null,null,null,null,null,null,null,null,null,null,null,{"$f":"VLOOKUP(N646,Tabel10[[korte omschrijving]:[MCC3_CODE]],2,0)","v":{"$error":"#N/A"}},{"$f":"VLOOKUP(N646,Tabel10[],3,0)","v":{"$error":"#N/A"}},null,null,null,null,null,null,null,null,null,null,null,{"$error":"#DIV/0!"},0,0,null,"","","","","","","","","","",null,null,null,null,null,null,null,null,null,null,null,null,null,null,null,null,null,"ZWO"]
[null,null,null,null,null,null,null,null,null,null,null,null,null,null,{"$f":"VLOOKUP(N647,Tabel10[[korte omschrijving]:[MCC3_CODE]],2,0)","v":{"$error":"#N/A"}},{"$f":"VLOOKUP(N647,Tabel10[],3,0)","v":{"$error":"#N/A"}},null,null,null,null,null,null,null,null,null,null,null,{"$error":"#DIV/0!"},0,0,null,"","","","","","","","","","",null,null,null,null,null,null,null,null,null,null,null,null,null,null,null,null,null,"ZWO"]
[null,null,null,null,null,null,null,null,null,null,null,null,null,null,{"$f":"VLOOKUP(N648,Tabel10[[korte omschrijving]:[MCC3_CODE]],2,0)","v":{"$error":"#N/A"}},{"$f":"VLOOKUP(N648,Tabel10[],3,0)","v":{"$error":"#N/A"}},null,null,null,null,0,null,null,null,null,null,null,{"$error":"#DIV/0!"},0,0,null,"","","","","","","","","","",null,null,null,null,null,null,null,null,null,null,null,null,null,null,null,null,null,"ZWO"]
[null,null,null,null,null,null,null,null,null,null,null,null,null,null,{"$f":"VLOOKUP(N649,Tabel10[[korte omschrijving]:[MCC3_CODE]],2,0)","v":{"$error":"#N/A"}},{"$f":"VLOOKUP(N649,Tabel10[],3,0)","v":{"$error":"#N/A"}},null,null,null,null,null,null,null,null,null,null,null,{"$error":"#DIV/0!"},0,0,null,"","","","","","","","","","",null,null,null,null,null,null,null,null,null,null,null,null,null,null,null,null,null,"ZWO"]
[null,null,null,null,null,null,null,null,null,null,null,null,null,null,{"$f":"VLOOKUP(N650,Tabel10[[korte omschrijving]:[MCC3_CODE]],2,0)","v":{"$error":"#N/A"}},{"$f":"VLOOKUP(N650,Tabel10[],3,0)","v":{"$error":"#N/A"}},null,null,null,null,null,null,null,null,null,null,null,{"$error":"#DIV/0!"},0,0,null,"","","","","","","","","","",null,null,null,null,null,null,null,null,null,null,null,null,null,null,null,null,null,"ZWO"]
[null,null,null,null,null,null,null,null,null,null,null,null,null,null,{"$f":"VLOOKUP(N651,Tabel10[[korte omschrijving]:[MCC3_CODE]],2,0)","v":{"$error":"#N/A"}},{"$f":"VLOOKUP(N651,Tabel10[],3,0)","v":{"$error":"#N/A"}},null,null,null,null,null,null,null,null,null,null,null,{"$error":"#DIV/0!"},0,0,null,"","","","","","","","","","",null,null,null,null,null,null,null,null,null,null,null,null,null,null,null,null,null,"ZWO"]
[null,null,null,null,null,null,null,null,null,null,null,null,null,null,{"$f":"VLOOKUP(N652,Tabel10[[korte omschrijving]:[MCC3_CODE]],2,0)","v":{"$error":"#N/A"}},{"$f":"VLOOKUP(N652,Tabel10[],3,0)","v":{"$error":"#N/A"}},null,null,null,null,null,null,null,null,null,null,null,{"$error":"#DIV/0!"},0,0,null,"","","","","","","","","","",null,null,null,null,null,null,null,null,null,null,null,null,null,null,null,null,null,"ZWO"]
[null,null,null,null,null,null,null,null,null,null,null,null,null,null,{"$f":"VLOOKUP(N653,Tabel10[[korte omschrijving]:[MCC3_CODE]],2,0)","v":{"$error":"#N/A"}},{"$f":"VLOOKUP(N653,Tabel10[],3,0)","v":{"$error":"#N/A"}},null,null,null,null,null,null,null,null,null,null,null,{"$error":"#DIV/0!"},0,0,null,"","","","","","","","","","",null,null,null,null,null,null,null,null,null,null,null,null,null,null,null,null,null,"ZWO"]
[null,null,null,null,null,null,null,null,null,null,null,null,null,null,{"$f":"VLOOKUP(N654,Tabel10[[korte omschrijving]:[MCC3_CODE]],2,0)","v":{"$error":"#N/A"}},{"$f":"VLOOKUP(N654,Tabel10[],3,0)","v":{"$error":"#N/A"}},null,null,null,null,0,null,null,null,null,null,null,{"$error":"#DIV/0!"},0,0,null,"","","","","","","","","","",null,null,null,null,null,null,null,null,null,null,null,null,null,null,null,null,null,"ZWO"]
[null,null,null,null,null,null,null,null,null,null,null,null,null,null,{"$f":"VLOOKUP(N655,Tabel10[[korte omschrijving]:[MCC3_CODE]],2,0)","v":{"$error":"#N/A"}},{"$f":"VLOOKUP(N655,Tabel10[],3,0)","v":{"$error":"#N/A"}},null,null,null,null,null,null,null,null,null,null,null,{"$error":"#DIV/0!"},0,0,null,"","","","","","","","","","",null,null,null,null,null,null,null,null,null,null,null,null,null,null,null,null,null,"ZWO"]
[null,null,null,null,null,null,null,null,null,null,null,null,null,null,{"$f":"VLOOKUP(N656,Tabel10[[korte omschrijving]:[MCC3_CODE]],2,0)","v":{"$error":"#N/A"}},{"$f":"VLOOKUP(N656,Tabel10[],3,0)","v":{"$error":"#N/A"}},null,null,null,null,null,null,null,null,null,null,null,{"$error":"#DIV/0!"},0,0,null,"","","","","","","","","","",null,null,null,null,null,null,null,null,null,null,null,null,null,null,null,null,null,"ZWO"]
[null,null,null,null,null,null,null,null,null,null,null,null,null,null,{"$f":"VLOOKUP(N657,Tabel10[[korte omschrijving]:[MCC3_CODE]],2,0)","v":{"$error":"#N/A"}},{"$f":"VLOOKUP(N657,Tabel10[],3,0)","v":{"$error":"#N/A"}},null,null,null,null,null,null,null,null,null,null,null,{"$error":"#DIV/0!"},0,0,null,"","","","","","","","","","",null,null,null,null,null,null,null,null,null,null,null,null,null,null,null,null,null,"ZWO"]
[null,null,null,null,null,null,null,null,null,null,null,null,null,null,{"$f":"VLOOKUP(N658,Tabel10[[korte omschrijving]:[MCC3_CODE]],2,0)","v":{"$error":"#N/A"}},{"$f":"VLOOKUP(N658,Tabel10[],3,0)","v":{"$error":"#N/A"}},null,null,null,null,null,null,null,null,null,null,null,{"$error":"#DIV/0!"},0,0,null,"","","","","","","","","","",null,null,null,null,null,null,null,null,null,null,null,null,null,null,null,null,null,"ZWO"]
[null,null,null,null,null,null,null,null,null,null,null,null,null,null,{"$f":"VLOOKUP(N659,Tabel10[[korte omschrijving]:[MCC3_CODE]],2,0)","v":{"$error":"#N/A"}},{"$f":"VLOOKUP(N659,Tabel10[],3,0)","v":{"$error":"#N/A"}},null,null,null,null,null,null,null,null,null,null,null,{"$error":"#DIV/0!"},0,0,null,"","","","","","","","","","",null,null,null,null,null,null,null,null,null,null,null,null,null,null,null,null,null,"ZWO"]
[null,null,null,null,null,null,null,null,null,null,null,null,null,null,{"$f":"VLOOKUP(N660,Tabel10[[korte omschrijving]:[MCC3_CODE]],2,0)","v":{"$error":"#N/A"}},{"$f":"VLOOKUP(N660,Tabel10[],3,0)","v":{"$error":"#N/A"}},null,null,null,null,0,null,null,null,null,null,null,{"$error":"#DIV/0!"},0,0,null,"","","","","","","","","","",null,null,null,null,null,null,null,null,null,null,null,null,null,null,null,null,null,"ZWO"]
[null,null,null,null,null,null,null,null,null,null,null,null,null,null,{"$f":"VLOOKUP(N661,Tabel10[[korte omschrijving]:[MCC3_CODE]],2,0)","v":{"$error":"#N/A"}},{"$f":"VLOOKUP(N661,Tabel10[],3,0)","v":{"$error":"#N/A"}},null,null,null,null,null,null,null,null,null,null,null,{"$error":"#DIV/0!"},0,0,null,"","","","","","","","","","",null,null,null,null,null,null,null,null,null,null,null,null,null,null,null,null,null,"ZWO"]
[null,null,null,null,null,null,null,null,null,null,null,null,null,null,{"$f":"VLOOKUP(N662,Tabel10[[korte omschrijving]:[MCC3_CODE]],2,0)","v":{"$error":"#N/A"}},{"$f":"VLOOKUP(N662,Tabel10[],3,0)","v":{"$error":"#N/A"}},null,null,null,null,null,null,null,null,null,null,null,{"$error":"#DIV/0!"},0,0,null,"","","","","","","","","","",null,null,null,null,null,null,null,null,null,null,null,null,null,null,null,null,null,"ZWO"]
[null,null,null,null,null,null,null,null,null,null,null,null,null,null,{"$f":"VLOOKUP(N663,Tabel10[[korte omschrijving]:[MCC3_CODE]],2,0)","v":{"$error":"#N/A"}},{"$f":"VLOOKUP(N663,Tabel10[],3,0)","v":{"$error":"#N/A"}},null,null,null,null,null,null,null,null,null,null,null,{"$error":"#DIV/0!"},0,0,null,"","","","","","","","","","",null,null,null,null,null,null,null,null,null,null,null,null,null,null,null,null,null,"ZWO"]
[null,null,null,null,null,null,null,null,null,null,null,null,null,null,{"$f":"VLOOKUP(N664,Tabel10[[korte omschrijving]:[MCC3_CODE]],2,0)","v":{"$error":"#N/A"}},{"$f":"VLOOKUP(N664,Tabel10[],3,0)","v":{"$error":"#N/A"}},null,null,null,null,null,null,null,null,null,null,null,{"$error":"#DIV/0!"},0,0,null,"","","","","","","","","","",null,null,null,null,null,null,null,null,null,null,null,null,null,null,null,null,null,"ZWO"]
[null,null,null,null,null,null,null,null,null,null,null,null,null,null,{"$f":"VLOOKUP(N665,Tabel10[[korte omschrijving]:[MCC3_CODE]],2,0)","v":{"$error":"#N/A"}},{"$f":"VLOOKUP(N665,Tabel10[],3,0)","v":{"$error":"#N/A"}},null,null,null,null,null,null,null,null,null,null,null,{"$error":"#DIV/0!"},0,0,null,"","","","","","","","","","",null,null,null,null,null,null,null,null,null,null,null,null,null,null,null,null,null,"ZWO"]
[null,null,null,null,null,null,null,null,null,null,null,null,null,null,{"$f":"VLOOKUP(N666,Tabel10[[korte omschrijving]:[MCC3_CODE]],2,0)","v":{"$error":"#N/A"}},{"$f":"VLOOKUP(N666,Tabel10[],3,0)","v":{"$error":"#N/A"}},null,null,null,null,0,null,null,null,null,null,null,{"$error":"#DIV/0!"},0,0,null,"","","","","","","","","","",null,null,null,null,null,null,null,null,null,null,null,null,null,null,null,null,null,"ZWO"]
[null,null,null,null,null,null,null,null,null,null,null,null,null,null,{"$f":"VLOOKUP(N667,Tabel10[[korte omschrijving]:[MCC3_CODE]],2,0)","v":{"$error":"#N/A"}},{"$f":"VLOOKUP(N667,Tabel10[],3,0)","v":{"$error":"#N/A"}},null,null,null,null,null,null,null,null,null,null,null,{"$error":"#DIV/0!"},0,0,null,"","","","","","","","","","",null,null,null,null,null,null,null,null,null,null,null,null,null,null,null,null,null,"ZWO"]
[null,null,null,null,null,null,null,null,null,null,null,null,null,null,{"$f":"VLOOKUP(N668,Tabel10[[korte omschrijving]:[MCC3_CODE]],2,0)","v":{"$error":"#N/A"}},{"$f":"VLOOKUP(N668,Tabel10[],3,0)","v":{"$error":"#N/A"}},null,null,null,null,null,null,null,null,null,null,null,{"$error":"#DIV/0!"},0,0,null,"","","","","","","","","","",null,null,null,null,null,null,null,null,null,null,null,null,null,null,null,null,null,"ZWO"]
[null,null,null,null,null,null,null,null,null,null,null,null,null,null,{"$f":"VLOOKUP(N669,Tabel10[[korte omschrijving]:[MCC3_CODE]],2,0)","v":{"$error":"#N/A"}},{"$f":"VLOOKUP(N669,Tabel10[],3,0)","v":{"$error":"#N/A"}},null,null,null,null,null,null,null,null,null,null,null,{"$error":"#DIV/0!"},0,0,null,"","","","","","","","","","",null,null,null,null,null,null,null,null,null,null,null,null,null,null,null,null,null,"ZWO"]
[null,null,null,null,null,null,null,null,null,null,null,null,null,null,{"$f":"VLOOKUP(N670,Tabel10[[korte omschrijving]:[MCC3_CODE]],2,0)","v":{"$error":"#N/A"}},{"$f":"VLOOKUP(N670,Tabel10[],3,0)","v":{"$error":"#N/A"}},null,null,null,null,null,null,null,null,null,null,null,{"$error":"#DIV/0!"},0,0,null,"","","","","","","","","","",null,null,null,null,null,null,null,null,null,null,null,null,null,null,null,null,null,"ZWO"]
[null,null,null,null,null,null,null,null,null,null,null,null,null,null,{"$f":"VLOOKUP(N671,Tabel10[[korte omschrijving]:[MCC3_CODE]],2,0)","v":{"$error":"#N/A"}},{"$f":"VLOOKUP(N671,Tabel10[],3,0)","v":{"$error":"#N/A"}},null,null,null,null,null,null,null,null,null,null,null,{"$error":"#DIV/0!"},0,0,null,"","","","","","","","","","",null,null,null,null,null,null,null,null,null,null,null,null,null,null,null,null,null,"ZWO"]
[null,null,null,null,null,null,null,null,null,null,null,null,null,null,{"$f":"VLOOKUP(N672,Tabel10[[korte omschrijving]:[MCC3_CODE]],2,0)","v":{"$error":"#N/A"}},{"$f":"VLOOKUP(N672,Tabel10[],3,0)","v":{"$error":"#N/A"}},null,null,null,null,0,null,null,null,null,null,null,{"$error":"#DIV/0!"},0,0,null,"","","","","","","","","","",null,null,null,null,null,null,null,null,null,null,null,null,null,null,null,null,null,"ZWO"]
[null,null,null,null,null,null,null,null,null,null,null,null,null,null,{"$f":"VLOOKUP(N673,Tabel10[[korte omschrijving]:[MCC3_CODE]],2,0)","v":{"$error":"#N/A"}},{"$f":"VLOOKUP(N673,Tabel10[],3,0)","v":{"$error":"#N/A"}},null,null,null,null,null,null,null,null,null,null,null,{"$error":"#DIV/0!"},0,0,null,"","","","","","","","","","",null,null,null,null,null,null,null,null,null,null,null,null,null,null,null,null,null,"ZWO"]
[null,null,null,null,null,null,null,null,null,null,null,null,null,null,{"$f":"VLOOKUP(N674,Tabel10[[korte omschrijving]:[MCC3_CODE]],2,0)","v":{"$error":"#N/A"}},{"$f":"VLOOKUP(N674,Tabel10[],3,0)","v":{"$error":"#N/A"}},null,null,null,null,null,null,null,null,null,null,null,{"$error":"#DIV/0!"},0,0,null,"","","","","","","","","","",null,null,null,null,null,null,null,null,null,null,null,null,null,null,null,null,null,"ZWO"]
[null,null,null,null,null,null,null,null,null,null,null,null,null,null,{"$f":"VLOOKUP(N675,Tabel10[[korte omschrijving]:[MCC3_CODE]],2,0)","v":{"$error":"#N/A"}},{"$f":"VLOOKUP(N675,Tabel10[],3,0)","v":{"$error":"#N/A"}},null,null,null,null,null,null,null,null,null,null,null,{"$error":"#DIV/0!"},0,0,null,"","","","","","","","","","",null,null,null,null,null,null,null,null,null,null,null,null,null,null,null,null,null,"ZWO"]
[null,null,null,null,null,null,null,null,null,null,null,null,null,null,{"$f":"VLOOKUP(N676,Tabel10[[korte omschrijving]:[MCC3_CODE]],2,0)","v":{"$error":"#N/A"}},{"$f":"VLOOKUP(N676,Tabel10[],3,0)","v":{"$error":"#N/A"}},null,null,null,null,null,null,null,null,null,null,null,{"$error":"#DIV/0!"},0,0,null,"","","","","","","","","","",null,null,null,null,null,null,null,null,null,null,null,null,null,null,null,null,null,"ZWO"]
[null,null,null,null,null,null,null,null,null,null,null,null,null,null,{"$f":"VLOOKUP(N677,Tabel10[[korte omschrijving]:[MCC3_CODE]],2,0)","v":{"$error":"#N/A"}},{"$f":"VLOOKUP(N677,Tabel10[],3,0)","v":{"$error":"#N/A"}},null,null,null,null,null,null,null,null,null,null,null,{"$error":"#DIV/0!"},0,0,null,"","","","","","","","","","",null,null,null,null,null,null,null,null,null,null,null,null,null,null,null,null,null,"ZWO"]
[null,null,null,null,null,null,null,null,null,null,null,null,null,null,{"$f":"VLOOKUP(N678,Tabel10[[korte omschrijving]:[MCC3_CODE]],2,0)","v":{"$error":"#N/A"}},{"$f":"VLOOKUP(N678,Tabel10[],3,0)","v":{"$error":"#N/A"}},null,null,null,null,0,null,null,null,null,null,null,{"$error":"#DIV/0!"},0,0,null,"","","","","","","","","","",null,null,null,null,null,null,null,null,null,null,null,null,null,null,null,null,null,"ZWO"]
[null,null,null,null,null,null,null,null,null,null,null,null,null,null,{"$f":"VLOOKUP(N679,Tabel10[[korte omschrijving]:[MCC3_CODE]],2,0)","v":{"$error":"#N/A"}},{"$f":"VLOOKUP(N679,Tabel10[],3,0)","v":{"$error":"#N/A"}},null,null,null,null,null,null,null,null,null,null,null,{"$error":"#DIV/0!"},0,0,null,"","","","","","","","","","",null,null,null,null,null,null,null,null,null,null,null,null,null,null,null,null,null,"ZWO"]
[null,null,null,null,null,null,null,null,null,null,null,null,null,null,{"$f":"VLOOKUP(N680,Tabel10[[korte omschrijving]:[MCC3_CODE]],2,0)","v":{"$error":"#N/A"}},{"$f":"VLOOKUP(N680,Tabel10[],3,0)","v":{"$error":"#N/A"}},null,null,null,null,null,null,null,null,null,null,null,{"$error":"#DIV/0!"},0,0,null,"","","","","","","","","","",null,null,null,null,null,null,null,null,null,null,null,null,null,null,null,null,null,"ZWO"]
[null,null,null,null,null,null,null,null,null,null,null,null,null,null,{"$f":"VLOOKUP(N681,Tabel10[[korte omschrijving]:[MCC3_CODE]],2,0)","v":{"$error":"#N/A"}},{"$f":"VLOOKUP(N681,Tabel10[],3,0)","v":{"$error":"#N/A"}},null,null,null,null,null,null,null,null,null,null,null,{"$error":"#DIV/0!"},0,0,null,"","","","","","","","","","",null,null,null,null,null,null,null,null,null,null,null,null,null,null,null,null,null,"ZWO"]
[null,null,null,null,null,null,null,null,null,null,null,null,null,null,{"$f":"VLOOKUP(N682,Tabel10[[korte omschrijving]:[MCC3_CODE]],2,0)","v":{"$error":"#N/A"}},{"$f":"VLOOKUP(N682,Tabel10[],3,0)","v":{"$error":"#N/A"}},null,null,null,null,null,null,null,null,null,null,null,{"$error":"#DIV/0!"},0,0,null,"","","","","","","","","","",null,null,null,null,null,null,null,null,null,null,null,null,null,null,null,null,null,"ZWO"]
[null,null,null,null,null,null,null,null,null,null,null,null,null,null,{"$f":"VLOOKUP(N683,Tabel10[[korte omschrijving]:[MCC3_CODE]],2,0)","v":{"$error":"#N/A"}},{"$f":"VLOOKUP(N683,Tabel10[],3,0)","v":{"$error":"#N/A"}},null,null,null,null,null,null,null,null,null,null,null,{"$error":"#DIV/0!"},0,0,null,"","","","","","","","","","",null,null,null,null,null,null,null,null,null,null,null,null,null,null,null,null,null,"ZWO"]
[null,null,null,null,null,null,null,null,null,null,null,null,null,null,{"$f":"VLOOKUP(N684,Tabel10[[korte omschrijving]:[MCC3_CODE]],2,0)","v":{"$error":"#N/A"}},{"$f":"VLOOKUP(N684,Tabel10[],3,0)","v":{"$error":"#N/A"}},null,null,null,null,0,null,null,null,null,null,null,{"$error":"#DIV/0!"},0,0,null,"","","","","","","","","","",null,null,null,null,null,null,null,null,null,null,null,null,null,null,null,null,null,"ZWO"]
[null,null,null,null,null,null,null,null,null,null,null,null,null,null,{"$f":"VLOOKUP(N685,Tabel10[[korte omschrijving]:[MCC3_CODE]],2,0)","v":{"$error":"#N/A"}},{"$f":"VLOOKUP(N685,Tabel10[],3,0)","v":{"$error":"#N/A"}},null,null,null,null,null,null,null,null,null,null,null,{"$error":"#DIV/0!"},0,0,null,"","","","","","","","","","",null,null,null,null,null,null,null,null,null,null,null,null,null,null,null,null,null,"ZWO"]
[null,null,null,null,null,null,null,null,null,null,null,null,null,null,{"$f":"VLOOKUP(N686,Tabel10[[korte omschrijving]:[MCC3_CODE]],2,0)","v":{"$error":"#N/A"}},{"$f":"VLOOKUP(N686,Tabel10[],3,0)","v":{"$error":"#N/A"}},null,null,null,null,null,null,null,null,null,null,null,{"$error":"#DIV/0!"},0,0,null,"","","","","","","","","","",null,null,null,null,null,null,null,null,null,null,null,null,null,null,null,null,null,"ZWO"]
[null,null,null,null,null,null,null,null,null,null,null,null,null,null,{"$f":"VLOOKUP(N687,Tabel10[[korte omschrijving]:[MCC3_CODE]],2,0)","v":{"$error":"#N/A"}},{"$f":"VLOOKUP(N687,Tabel10[],3,0)","v":{"$error":"#N/A"}},null,null,null,null,null,null,null,null,null,null,null,{"$error":"#DIV/0!"},0,0,null,"","","","","","","","","","",null,null,null,null,null,null,null,null,null,null,null,null,null,null,null,null,null,"ZWO"]
[null,null,null,null,null,null,null,null,null,null,null,null,null,null,{"$f":"VLOOKUP(N688,Tabel10[[korte omschrijving]:[MCC3_CODE]],2,0)","v":{"$error":"#N/A"}},{"$f":"VLOOKUP(N688,Tabel10[],3,0)","v":{"$error":"#N/A"}},null,null,null,null,null,null,null,null,null,null,null,{"$error":"#DIV/0!"},0,0,null,"","","","","","","","","","",null,null,null,null,null,null,null,null,null,null,null,null,null,null,null,null,null,"ZWO"]
[null,null,null,null,null,null,null,null,null,null,null,null,null,null,{"$f":"VLOOKUP(N689,Tabel10[[korte omschrijving]:[MCC3_CODE]],2,0)","v":{"$error":"#N/A"}},{"$f":"VLOOKUP(N689,Tabel10[],3,0)","v":{"$error":"#N/A"}},null,null,null,null,null,null,null,null,null,null,null,{"$error":"#DIV/0!"},0,0,null,"","","","","","","","","","",null,null,null,null,null,null,null,null,null,null,null,null,null,null,null,null,null,"ZWO"]
[null,null,null,null,null,null,null,null,null,null,null,null,null,null,{"$f":"VLOOKUP(N690,Tabel10[[korte omschrijving]:[MCC3_CODE]],2,0)","v":{"$error":"#N/A"}},{"$f":"VLOOKUP(N690,Tabel10[],3,0)","v":{"$error":"#N/A"}},null,null,null,null,0,null,null,null,null,null,null,{"$error":"#DIV/0!"},0,0,null,"","","","","","","","","","",null,null,null,null,null,null,null,null,null,null,null,null,null,null,null,null,null,"ZWO"]
[null,null,null,null,null,null,null,null,null,null,null,null,null,null,{"$f":"VLOOKUP(N691,Tabel10[[korte omschrijving]:[MCC3_CODE]],2,0)","v":{"$error":"#N/A"}},{"$f":"VLOOKUP(N691,Tabel10[],3,0)","v":{"$error":"#N/A"}},null,null,null,null,null,null,null,null,null,null,null,{"$error":"#DIV/0!"},0,0,null,"","","","","","","","","","",null,null,null,null,null,null,null,null,null,null,null,null,null,null,null,null,null,"ZWO"]
[null,null,null,null,null,null,null,null,null,null,null,null,null,null,{"$f":"VLOOKUP(N692,Tabel10[[korte omschrijving]:[MCC3_CODE]],2,0)","v":{"$error":"#N/A"}},{"$f":"VLOOKUP(N692,Tabel10[],3,0)","v":{"$error":"#N/A"}},null,null,null,null,null,null,null,null,null,null,null,{"$error":"#DIV/0!"},0,0,null,"","","","","","","","","","",null,null,null,null,null,null,null,null,null,null,null,null,null,null,null,null,null,"ZWO"]
[null,null,null,null,null,null,null,null,null,null,null,null,null,null,{"$f":"VLOOKUP(N693,Tabel10[[korte omschrijving]:[MCC3_CODE]],2,0)","v":{"$error":"#N/A"}},{"$f":"VLOOKUP(N693,Tabel10[],3,0)","v":{"$error":"#N/A"}},null,null,null,null,null,null,null,null,null,null,null,{"$error":"#DIV/0!"},0,0,null,"","","","","","","","","","",null,null,null,null,null,null,null,null,null,null,null,null,null,null,null,null,null,"ZWO"]
[null,null,null,null,null,null,null,null,null,null,null,null,null,null,{"$f":"VLOOKUP(N694,Tabel10[[korte omschrijving]:[MCC3_CODE]],2,0)","v":{"$error":"#N/A"}},{"$f":"VLOOKUP(N694,Tabel10[],3,0)","v":{"$error":"#N/A"}},null,null,null,null,null,null,null,null,null,null,null,{"$error":"#DIV/0!"},0,0,null,"","","","","","","","","","",null,null,null,null,null,null,null,null,null,null,null,null,null,null,null,null,null,"ZWO"]
[null,null,null,null,null,null,null,null,null,null,null,null,null,null,{"$f":"VLOOKUP(N695,Tabel10[[korte omschrijving]:[MCC3_CODE]],2,0)","v":{"$error":"#N/A"}},{"$f":"VLOOKUP(N695,Tabel10[],3,0)","v":{"$error":"#N/A"}},null,null,null,null,null,null,null,null,null,null,null,{"$error":"#DIV/0!"},0,0,null,"","","","","","","","","","",null,null,null,null,null,null,null,null,null,null,null,null,null,null,null,null,null,"ZWO"]
[null,null,null,null,null,null,null,null,null,null,null,null,null,null,{"$f":"VLOOKUP(N696,Tabel10[[korte omschrijving]:[MCC3_CODE]],2,0)","v":{"$error":"#N/A"}},{"$f":"VLOOKUP(N696,Tabel10[],3,0)","v":{"$error":"#N/A"}},null,null,null,null,0,null,null,null,null,null,null,{"$f":"AA696/Y696","v":{"$error":"#DIV/0!"}},{"$f":"T696*Y696","v":0},{"$f":"T696*AA696","v":0},null,{"$f":"IF(AE696 <> \"\",\n    IF(ISNUMBER(VALUE(LEFT(AE696, FIND(\"%\", AE696)-1))),\n        VALUE(LEFT(AE696, FIND(\"%\", AE696)-1)),\n        \"Invalid format\"),\n    \"\")","v":""},{"$f":"IF(AE696 <> \"\",\n    IF(ISNUMBER(VALUE(LEFT(AE696, FIND(\"%\", AE696)-1))) * ISNUMBER(FIND(\"%\", AE696 & \"wol\")) > 0,\n        TRIM(MID(AE696, FIND(\"%\", AE696)+1, FIND(\"/\", AE696 & \"/\")-FIND(\"%\", AE696)-1)),\n        \"Invalid format\"),\n    \"\")","v":""},{"$f":"IF(AE696 <> \"\",\n    IF(ISNUMBER(VALUE(MID(AE696, FIND(\"/\", AE696) + 1, FIND(\"%\", AE696, FIND(\"/\", AE696)) - FIND(\"/\", AE696) - 1))),\n        VALUE(MID(AE696, FIND(\"/\", AE696) + 1, FIND(\"%\", AE696, FIND(\"/\", AE696)) - FIND(\"/\", AE696) - 1)),\n        \"\"),\n    \"\")","v":""},{"$f":"IF(AE696 <> \"\",\n    IFERROR(TRIM(MID(AE696, FIND(\"%\", AE696, FIND(\"/\", AE696)+1)+2,\n        IFERROR(FIND(\"/\", AE696 & \"/\", FIND(\"/\", AE696)+1)-FIND(\"%\", AE696, FIND(\"/\", AE696)+1)-2, LEN(AE696)-FIND(\"%\", AE696, FIND(\"/\", AE696)+1)-1))),\n        \"\"),\n    \"\")","v":""},{"$f":"IF(AE696 <> \"\",\n    IF(ISNUMBER(VALUE(MID(AE696, FIND(\"/\", AE696, FIND(\"/\", AE696)+1) + 1, FIND(\"%\", AE696, FIND(\"/\", AE696, FIND(\"/\", AE696)+1)) - FIND(\"/\", AE696, FIND(\"/\", AE696)+1) - 1))),\n        VALUE(MID(AE696, FIND(\"/\", AE696, FIND(\"/\", AE696)+1) + 1, FIND(\"%\", AE696, FIND(\"/\", AE696, FIND(\"/\", AE696)+1)) - FIND(\"/\", AE696, FIND(\"/\", AE696)+1) - 1)),\n        \"\"),\n    \"\")","v":""},{"$f":"IF(AE696 <> \"\",\n    IFERROR(\n        TRIM(MID(AE696,\n            FIND(\"%\", AE696, FIND(\"%\", AE696, FIND(\"%\", AE696)+1)+1)+1,\n            FIND(\"/\", AE696 & \"/\", FIND(\"%\", AE696, FIND(\"%\", AE696, FIND(\"%\", AE696)+1)+1))-FIND(\"%\", AE696, FIND(\"%\", AE696, FIND(\"%\", AE696)+1)+1)-1)\n        ),\n        \"\"\n    ),\n    \"\"\n)","v":""},{"$f":"IF(AE696 <> \"\",\n    IF(ISNUMBER(VALUE(MID(AE696, FIND(\"/\", AE696, FIND(\"/\", AE696, FIND(\"/\", AE696)+1)+1) + 1, FIND(\"%\", AE696, FIND(\"/\", AE696, FIND(\"/\", AE696, FIND(\"/\", AE696)+1)+1)) - FIND(\"/\", AE696, FIND(\"/\", AE696, FIND(\"/\", AE696)+1)+1) - 1))),\n        VALUE(MID(AE696, FIND(\"/\", AE696, FIND(\"/\", AE696, FIND(\"/\", AE696)+1)+1) + 1, FIND(\"%\", AE696, FIND(\"/\", AE696, FIND(\"/\", AE696, FIND(\"/\", AE696)+1)+1)) - FIND(\"/\", AE696, FIND(\"/\", AE696, FIND(\"/\", AE696)+1)+1) - 1)),\n        \"\"),\n    \"\")","v":""},{"$f":"IF(AE696 <> \"\",\n    IFERROR(TRIM(MID(AE696, FIND(\"%\", AE696, FIND(\"/\", AE696, FIND(\"/\", AE696, FIND(\"/\", AE696)+1)+1)+1)+2,\n        IFERROR(FIND(\"/\", AE696, FIND(\"/\", AE696, FIND(\"/\", AE696, FIND(\"/\", AE696)+1)+1)+1)-FIND(\"%\", AE696, FIND(\"/\", AE696, FIND(\"/\", AE696, FIND(\"/\", AE696)+1)+1)+1)-2, LEN(AE696)-FIND(\"%\", AE696, FIND(\"/\", AE696, FIND(\"/\", AE696, FIND(\"/\", AE696)+1)+1)+1)-1))),\n        \"\"),\n    \"\")","v":""},{"$f":"IF(AE696 <> \"\",\n    IF(ISNUMBER(VALUE(MID(AE696, FIND(\"/\", AE696, FIND(\"/\", AE696, FIND(\"/\", AE696, FIND(\"/\", AE696)+1)+1)+1) + 1, FIND(\"%\", AE696, FIND(\"/\", AE696, FIND(\"/\", AE696, FIND(\"/\", AE696, FIND(\"/\", AE696)+1)+1)+1)) - FIND(\"/\", AE696, FIND(\"/\", AE696, FIND(\"/\", AE696, FIND(\"/\", AE696)+1)+1)+1) - 1))),\n        VALUE(MID(AE696, FIND(\"/\", AE696, FIND(\"/\", AE696, FIND(\"/\", AE696, FIND(\"/\", AE696)+1)+1)+1) + 1, FIND(\"%\", AE696, FIND(\"/\", AE696, FIND(\"/\", AE696, FIND(\"/\", AE696, FIND(\"/\", AE696)+1)+1)+1)) - FIND(\"/\", AE696, FIND(\"/\", AE696, FIND(\"/\", AE696, FIND(\"/\", AE696)+1)+1)+1) - 1)),\n        \"\"),\n    \"\")","v":""},{"$f":"IF(AE696 = \"\", \"\",\n    IFERROR(TRIM(\n        MID(\n            AE696,\n            FIND(\"%\", AE696, FIND(\"/\", AE696, FIND(\"/\", AE696, FIND(\"/\", AE696, FIND(\"/\", AE696)+1)+1)+1)+1) + 1,\n            FIND(\"/\", AE696 & \"/\", FIND(\"%\", AE696, FIND(\"/\", AE696, FIND(\"/\", AE696, FIND(\"/\", AE696, FIND(\"/\", AE696)+1)+1)+1)+1)) -\n            FIND(\"%\", AE696, FIND(\"/\", AE696, FIND(\"/\", AE696, FIND(\"/\", AE696, FIND(\"/\", AE696)+1)+1)+1)+1) - 1\n        )\n    ),\n    \"\")\n)","v":""},null,null,null,null,null,null,null,null,null,null,null,null,null,null,null,null,null,"ZWO"]
[null,null,null,null,null,null,null,null,null,null,null,null,null,null,{"$f":"VLOOKUP(N697,Tabel10[[korte omschrijving]:[MCC3_CODE]],2,0)","v":{"$error":"#N/A"}},{"$f":"VLOOKUP(N697,Tabel10[],3,0)","v":{"$error":"#N/A"}},null,null,null,null,null,null,null,null,null,null,null,{"$error":"#DIV/0!"},0,0,null,"","","","","","","","","","",null,null,null,null,null,null,null,null,null,null,null,null,null,null,null,null,null,"ZWO"]
[null,null,null,null,null,null,null,null,null,null,null,null,null,null,{"$f":"VLOOKUP(N698,Tabel10[[korte omschrijving]:[MCC3_CODE]],2,0)","v":{"$error":"#N/A"}},{"$f":"VLOOKUP(N698,Tabel10[],3,0)","v":{"$error":"#N/A"}},null,null,null,null,null,null,null,null,null,null,null,{"$error":"#DIV/0!"},0,0,null,"","","","","","","","","","",null,null,null,null,null,null,null,null,null,null,null,null,null,null,null,null,null,"ZWO"]
[null,null,null,null,null,null,null,null,null,null,null,null,null,null,{"$f":"VLOOKUP(N699,Tabel10[[korte omschrijving]:[MCC3_CODE]],2,0)","v":{"$error":"#N/A"}},{"$f":"VLOOKUP(N699,Tabel10[],3,0)","v":{"$error":"#N/A"}},null,null,null,null,null,null,null,null,null,null,null,{"$error":"#DIV/0!"},0,0,null,"","","","","","","","","","",null,null,null,null,null,null,null,null,null,null,null,null,null,null,null,null,null,"ZWO"]
[null,null,null,null,null,null,null,null,null,null,null,null,null,null,{"$f":"VLOOKUP(N700,Tabel10[[korte omschrijving]:[MCC3_CODE]],2,0)","v":{"$error":"#N/A"}},{"$f":"VLOOKUP(N700,Tabel10[],3,0)","v":{"$error":"#N/A"}},null,null,null,null,null,null,null,null,null,null,null,{"$error":"#DIV/0!"},0,0,null,"","","","","","","","","","",null,null,null,null,null,null,null,null,null,null,null,null,null,null,null,null,null,"ZWO"]
[null,null,null,null,null,null,null,null,null,null,null,null,null,null,{"$f":"VLOOKUP(N701,Tabel10[[korte omschrijving]:[MCC3_CODE]],2,0)","v":{"$error":"#N/A"}},{"$f":"VLOOKUP(N701,Tabel10[],3,0)","v":{"$error":"#N/A"}},null,null,null,null,null,null,null,null,null,null,null,{"$error":"#DIV/0!"},0,0,null,"","","","","","","","","","",null,null,null,null,null,null,null,null,null,null,null,null,null,null,null,null,null,"ZWO"]
[null,null,null,null,null,null,null,null,null,null,null,null,null,null,{"$f":"VLOOKUP(N702,Tabel10[[korte omschrijving]:[MCC3_CODE]],2,0)","v":{"$error":"#N/A"}},{"$f":"VLOOKUP(N702,Tabel10[],3,0)","v":{"$error":"#N/A"}},null,null,null,null,{"$f":"SUM(T702:T707)","v":0},null,null,null,null,null,null,{"$error":"#DIV/0!"},0,0,null,"","","","","","","","","","",null,null,null,null,null,null,null,null,null,null,null,null,null,null,null,null,null,"ZWO"]
[null,null,null,null,null,null,null,null,null,null,null,null,null,null,{"$f":"VLOOKUP(N703,Tabel10[[korte omschrijving]:[MCC3_CODE]],2,0)","v":{"$error":"#N/A"}},{"$f":"VLOOKUP(N703,Tabel10[],3,0)","v":{"$error":"#N/A"}},null,null,null,null,null,null,null,null,null,null,null,{"$error":"#DIV/0!"},0,0,null,"","","","","","","","","","",null,null,null,null,null,null,null,null,null,null,null,null,null,null,null,null,null,"ZWO"]
[null,null,null,null,null,null,null,null,null,null,null,null,null,null,{"$f":"VLOOKUP(N704,Tabel10[[korte omschrijving]:[MCC3_CODE]],2,0)","v":{"$error":"#N/A"}},{"$f":"VLOOKUP(N704,Tabel10[],3,0)","v":{"$error":"#N/A"}},null,null,null,null,null,null,null,null,null,null,null,{"$error":"#DIV/0!"},0,0,null,"","","","","","","","","","",null,null,null,null,null,null,null,null,null,null,null,null,null,null,null,null,null,"ZWO"]
[null,null,null,null,null,null,null,null,null,null,null,null,null,null,{"$f":"VLOOKUP(N705,Tabel10[[korte omschrijving]:[MCC3_CODE]],2,0)","v":{"$error":"#N/A"}},{"$f":"VLOOKUP(N705,Tabel10[],3,0)","v":{"$error":"#N/A"}},null,null,null,null,null,null,null,null,null,null,null,{"$error":"#DIV/0!"},0,0,null,"","","","","","","","","","",null,null,null,null,null,null,null,null,null,null,null,null,null,null,null,null,null,"ZWO"]
[null,null,null,null,null,null,null,null,null,null,null,null,null,null,{"$f":"VLOOKUP(N706,Tabel10[[korte omschrijving]:[MCC3_CODE]],2,0)","v":{"$error":"#N/A"}},{"$f":"VLOOKUP(N706,Tabel10[],3,0)","v":{"$error":"#N/A"}},null,null,null,null,null,null,null,null,null,null,null,{"$error":"#DIV/0!"},0,0,null,"","","","","","","","","","",null,null,null,null,null,null,null,null,null,null,null,null,null,null,null,null,null,"ZWO"]
[null,null,null,null,null,null,null,null,null,null,null,null,null,null,{"$f":"VLOOKUP(N707,Tabel10[[korte omschrijving]:[MCC3_CODE]],2,0)","v":{"$error":"#N/A"}},{"$f":"VLOOKUP(N707,Tabel10[],3,0)","v":{"$error":"#N/A"}},null,null,null,null,null,null,null,null,null,null,null,{"$error":"#DIV/0!"},0,0,null,"","","","","","","","","","",null,null,null,null,null,null,null,null,null,null,null,null,null,null,null,null,null,"ZWO"]
[null,null,null,null,null,null,null,null,null,null,null,null,null,null,{"$f":"VLOOKUP(N708,Tabel10[[korte omschrijving]:[MCC3_CODE]],2,0)","v":{"$error":"#N/A"}},{"$f":"VLOOKUP(N708,Tabel10[],3,0)","v":{"$error":"#N/A"}},null,null,null,null,0,null,null,null,null,null,null,{"$error":"#DIV/0!"},0,0,null,"","","","","","","","","","",null,null,null,null,null,null,null,null,null,null,null,null,null,null,null,null,null,"ZWO"]
[null,null,null,null,null,null,null,null,null,null,null,null,null,null,{"$f":"VLOOKUP(N709,Tabel10[[korte omschrijving]:[MCC3_CODE]],2,0)","v":{"$error":"#N/A"}},{"$f":"VLOOKUP(N709,Tabel10[],3,0)","v":{"$error":"#N/A"}},null,null,null,null,null,null,null,null,null,null,null,{"$error":"#DIV/0!"},0,0,null,"","","","","","","","","","",null,null,null,null,null,null,null,null,null,null,null,null,null,null,null,null,null,"ZWO"]
[null,null,null,null,null,null,null,null,null,null,null,null,null,null,{"$f":"VLOOKUP(N710,Tabel10[[korte omschrijving]:[MCC3_CODE]],2,0)","v":{"$error":"#N/A"}},{"$f":"VLOOKUP(N710,Tabel10[],3,0)","v":{"$error":"#N/A"}},null,null,null,null,null,null,null,null,null,null,null,{"$error":"#DIV/0!"},0,0,null,"","","","","","","","","","",null,null,null,null,null,null,null,null,null,null,null,null,null,null,null,null,null,"ZWO"]
[null,null,null,null,null,null,null,null,null,null,null,null,null,null,{"$f":"VLOOKUP(N711,Tabel10[[korte omschrijving]:[MCC3_CODE]],2,0)","v":{"$error":"#N/A"}},{"$f":"VLOOKUP(N711,Tabel10[],3,0)","v":{"$error":"#N/A"}},null,null,null,null,null,null,null,null,null,null,null,{"$error":"#DIV/0!"},0,0,null,"","","","","","","","","","",null,null,null,null,null,null,null,null,null,null,null,null,null,null,null,null,null,"ZWO"]
[null,null,null,null,null,null,null,null,null,null,null,null,null,null,{"$f":"VLOOKUP(N712,Tabel10[[korte omschrijving]:[MCC3_CODE]],2,0)","v":{"$error":"#N/A"}},{"$f":"VLOOKUP(N712,Tabel10[],3,0)","v":{"$error":"#N/A"}},null,null,null,null,null,null,null,null,null,null,null,{"$error":"#DIV/0!"},0,0,null,"","","","","","","","","","",null,null,null,null,null,null,null,null,null,null,null,null,null,null,null,null,null,"ZWO"]
[null,null,null,null,null,null,null,null,null,null,null,null,null,null,{"$f":"VLOOKUP(N713,Tabel10[[korte omschrijving]:[MCC3_CODE]],2,0)","v":{"$error":"#N/A"}},{"$f":"VLOOKUP(N713,Tabel10[],3,0)","v":{"$error":"#N/A"}},null,null,null,null,null,null,null,null,null,null,null,{"$error":"#DIV/0!"},0,0,null,"","","","","","","","","","",null,null,null,null,null,null,null,null,null,null,null,null,null,null,null,null,null,"ZWO"]
[null,null,null,null,null,null,null,null,null,null,null,null,null,null,{"$f":"VLOOKUP(N714,Tabel10[[korte omschrijving]:[MCC3_CODE]],2,0)","v":{"$error":"#N/A"}},{"$f":"VLOOKUP(N714,Tabel10[],3,0)","v":{"$error":"#N/A"}},null,null,null,null,0,null,null,null,null,null,null,{"$error":"#DIV/0!"},0,0,null,"","","","","","","","","","",null,null,null,null,null,null,null,null,null,null,null,null,null,null,null,null,null,"ZWO"]
[null,null,null,null,null,null,null,null,null,null,null,null,null,null,{"$f":"VLOOKUP(N715,Tabel10[[korte omschrijving]:[MCC3_CODE]],2,0)","v":{"$error":"#N/A"}},{"$f":"VLOOKUP(N715,Tabel10[],3,0)","v":{"$error":"#N/A"}},null,null,null,null,null,null,null,null,null,null,null,{"$error":"#DIV/0!"},0,0,null,"","","","","","","","","","",null,null,null,null,null,null,null,null,null,null,null,null,null,null,null,null,null,"ZWO"]
[null,null,null,null,null,null,null,null,null,null,null,null,null,null,{"$f":"VLOOKUP(N716,Tabel10[[korte omschrijving]:[MCC3_CODE]],2,0)","v":{"$error":"#N/A"}},{"$f":"VLOOKUP(N716,Tabel10[],3,0)","v":{"$error":"#N/A"}},null,null,null,null,null,null,null,null,null,null,null,{"$error":"#DIV/0!"},0,0,null,"","","","","","","","","","",null,null,null,null,null,null,null,null,null,null,null,null,null,null,null,null,null,"ZWO"]
[null,null,null,null,null,null,null,null,null,null,null,null,null,null,{"$f":"VLOOKUP(N717,Tabel10[[korte omschrijving]:[MCC3_CODE]],2,0)","v":{"$error":"#N/A"}},{"$f":"VLOOKUP(N717,Tabel10[],3,0)","v":{"$error":"#N/A"}},null,null,null,null,null,null,null,null,null,null,null,{"$error":"#DIV/0!"},0,0,null,"","","","","","","","","","",null,null,null,null,null,null,null,null,null,null,null,null,null,null,null,null,null,"ZWO"]
[null,null,null,null,null,null,null,null,null,null,null,null,null,null,{"$f":"VLOOKUP(N718,Tabel10[[korte omschrijving]:[MCC3_CODE]],2,0)","v":{"$error":"#N/A"}},{"$f":"VLOOKUP(N718,Tabel10[],3,0)","v":{"$error":"#N/A"}},null,null,null,null,null,null,null,null,null,null,null,{"$error":"#DIV/0!"},0,0,null,"","","","","","","","","","",null,null,null,null,null,null,null,null,null,null,null,null,null,null,null,null,null,"ZWO"]
[null,null,null,null,null,null,null,null,null,null,null,null,null,null,{"$f":"VLOOKUP(N719,Tabel10[[korte omschrijving]:[MCC3_CODE]],2,0)","v":{"$error":"#N/A"}},{"$f":"VLOOKUP(N719,Tabel10[],3,0)","v":{"$error":"#N/A"}},null,null,null,null,null,null,null,null,null,null,null,{"$error":"#DIV/0!"},0,0,null,"","","","","","","","","","",null,null,null,null,null,null,null,null,null,null,null,null,null,null,null,null,null,"ZWO"]
[null,null,null,null,null,null,null,null,null,null,null,null,null,null,{"$f":"VLOOKUP(N720,Tabel10[[korte omschrijving]:[MCC3_CODE]],2,0)","v":{"$error":"#N/A"}},{"$f":"VLOOKUP(N720,Tabel10[],3,0)","v":{"$error":"#N/A"}},null,null,null,null,0,null,null,null,null,null,null,{"$error":"#DIV/0!"},0,0,null,"","","","","","","","","","",null,null,null,null,null,null,null,null,null,null,null,null,null,null,null,null,null,"ZWO"]
[null,null,null,null,null,null,null,null,null,null,null,null,null,null,{"$f":"VLOOKUP(N721,Tabel10[[korte omschrijving]:[MCC3_CODE]],2,0)","v":{"$error":"#N/A"}},{"$f":"VLOOKUP(N721,Tabel10[],3,0)","v":{"$error":"#N/A"}},null,null,null,null,null,null,null,null,null,null,null,{"$error":"#DIV/0!"},0,0,null,"","","","","","","","","","",null,null,null,null,null,null,null,null,null,null,null,null,null,null,null,null,null,"ZWO"]
[null,null,null,null,null,null,null,null,null,null,null,null,null,null,{"$f":"VLOOKUP(N722,Tabel10[[korte omschrijving]:[MCC3_CODE]],2,0)","v":{"$error":"#N/A"}},{"$f":"VLOOKUP(N722,Tabel10[],3,0)","v":{"$error":"#N/A"}},null,null,null,null,null,null,null,null,null,null,null,{"$error":"#DIV/0!"},0,0,null,"","","","","","","","","","",null,null,null,null,null,null,null,null,null,null,null,null,null,null,null,null,null,"ZWO"]
[null,null,null,null,null,null,null,null,null,null,null,null,null,null,{"$f":"VLOOKUP(N723,Tabel10[[korte omschrijving]:[MCC3_CODE]],2,0)","v":{"$error":"#N/A"}},{"$f":"VLOOKUP(N723,Tabel10[],3,0)","v":{"$error":"#N/A"}},null,null,null,null,null,null,null,null,null,null,null,{"$error":"#DIV/0!"},0,0,null,"","","","","","","","","","",null,null,null,null,null,null,null,null,null,null,null,null,null,null,null,null,null,"ZWO"]
[null,null,null,null,null,null,null,null,null,null,null,null,null,null,{"$f":"VLOOKUP(N724,Tabel10[[korte omschrijving]:[MCC3_CODE]],2,0)","v":{"$error":"#N/A"}},{"$f":"VLOOKUP(N724,Tabel10[],3,0)","v":{"$error":"#N/A"}},null,null,null,null,null,null,null,null,null,null,null,{"$error":"#DIV/0!"},0,0,null,"","","","","","","","","","",null,null,null,null,null,null,null,null,null,null,null,null,null,null,null,null,null,"ZWO"]
[null,null,null,null,null,null,null,null,null,null,null,null,null,null,{"$f":"VLOOKUP(N725,Tabel10[[korte omschrijving]:[MCC3_CODE]],2,0)","v":{"$error":"#N/A"}},{"$f":"VLOOKUP(N725,Tabel10[],3,0)","v":{"$error":"#N/A"}},null,null,null,null,null,null,null,null,null,null,null,{"$error":"#DIV/0!"},0,0,null,"","","","","","","","","","",null,null,null,null,null,null,null,null,null,null,null,null,null,null,null,null,null,"ZWO"]
[null,null,null,null,null,null,null,null,null,null,null,null,null,null,{"$f":"VLOOKUP(N726,Tabel10[[korte omschrijving]:[MCC3_CODE]],2,0)","v":{"$error":"#N/A"}},{"$f":"VLOOKUP(N726,Tabel10[],3,0)","v":{"$error":"#N/A"}},null,null,null,null,0,null,null,null,null,null,null,{"$error":"#DIV/0!"},0,0,null,"","","","","","","","","","",null,null,null,null,null,null,null,null,null,null,null,null,null,null,null,null,null,"ZWO"]
[null,null,null,null,null,null,null,null,null,null,null,null,null,null,{"$f":"VLOOKUP(N727,Tabel10[[korte omschrijving]:[MCC3_CODE]],2,0)","v":{"$error":"#N/A"}},{"$f":"VLOOKUP(N727,Tabel10[],3,0)","v":{"$error":"#N/A"}},null,null,null,null,null,null,null,null,null,null,null,{"$error":"#DIV/0!"},0,0,null,"","","","","","","","","","",null,null,null,null,null,null,null,null,null,null,null,null,null,null,null,null,null,"ZWO"]
[null,null,null,null,null,null,null,null,null,null,null,null,null,null,{"$f":"VLOOKUP(N728,Tabel10[[korte omschrijving]:[MCC3_CODE]],2,0)","v":{"$error":"#N/A"}},{"$f":"VLOOKUP(N728,Tabel10[],3,0)","v":{"$error":"#N/A"}},null,null,null,null,null,null,null,null,null,null,null,{"$error":"#DIV/0!"},0,0,null,"","","","","","","","","","",null,null,null,null,null,null,null,null,null,null,null,null,null,null,null,null,null,"ZWO"]
[null,null,null,null,null,null,null,null,null,null,null,null,null,null,{"$f":"VLOOKUP(N729,Tabel10[[korte omschrijving]:[MCC3_CODE]],2,0)","v":{"$error":"#N/A"}},{"$f":"VLOOKUP(N729,Tabel10[],3,0)","v":{"$error":"#N/A"}},null,null,null,null,null,null,null,null,null,null,null,{"$error":"#DIV/0!"},0,0,null,"","","","","","","","","","",null,null,null,null,null,null,null,null,null,null,null,null,null,null,null,null,null,"ZWO"]
[null,null,null,null,null,null,null,null,null,null,null,null,null,null,{"$f":"VLOOKUP(N730,Tabel10[[korte omschrijving]:[MCC3_CODE]],2,0)","v":{"$error":"#N/A"}},{"$f":"VLOOKUP(N730,Tabel10[],3,0)","v":{"$error":"#N/A"}},null,null,null,null,null,null,null,null,null,null,null,{"$error":"#DIV/0!"},0,0,null,"","","","","","","","","","",null,null,null,null,null,null,null,null,null,null,null,null,null,null,null,null,null,"ZWO"]
[null,null,null,null,null,null,null,null,null,null,null,null,null,null,{"$f":"VLOOKUP(N731,Tabel10[[korte omschrijving]:[MCC3_CODE]],2,0)","v":{"$error":"#N/A"}},{"$f":"VLOOKUP(N731,Tabel10[],3,0)","v":{"$error":"#N/A"}},null,null,null,null,null,null,null,null,null,null,null,{"$error":"#DIV/0!"},0,0,null,"","","","","","","","","","",null,null,null,null,null,null,null,null,null,null,null,null,null,null,null,null,null,"ZWO"]
[null,null,null,null,null,null,null,null,null,null,null,null,null,null,{"$f":"VLOOKUP(N732,Tabel10[[korte omschrijving]:[MCC3_CODE]],2,0)","v":{"$error":"#N/A"}},{"$f":"VLOOKUP(N732,Tabel10[],3,0)","v":{"$error":"#N/A"}},null,null,null,null,0,null,null,null,null,null,null,{"$error":"#DIV/0!"},0,0,null,"","","","","","","","","","",null,null,null,null,null,null,null,null,null,null,null,null,null,null,null,null,null,"ZWO"]
[null,null,null,null,null,null,null,null,null,null,null,null,null,null,{"$f":"VLOOKUP(N733,Tabel10[[korte omschrijving]:[MCC3_CODE]],2,0)","v":{"$error":"#N/A"}},{"$f":"VLOOKUP(N733,Tabel10[],3,0)","v":{"$error":"#N/A"}},null,null,null,null,null,null,null,null,null,null,null,{"$error":"#DIV/0!"},0,0,null,"","","","","","","","","","",null,null,null,null,null,null,null,null,null,null,null,null,null,null,null,null,null,"ZWO"]
[null,null,null,null,null,null,null,null,null,null,null,null,null,null,{"$f":"VLOOKUP(N734,Tabel10[[korte omschrijving]:[MCC3_CODE]],2,0)","v":{"$error":"#N/A"}},{"$f":"VLOOKUP(N734,Tabel10[],3,0)","v":{"$error":"#N/A"}},null,null,null,null,null,null,null,null,null,null,null,{"$error":"#DIV/0!"},0,0,null,"","","","","","","","","","",null,null,null,null,null,null,null,null,null,null,null,null,null,null,null,null,null,"ZWO"]
[null,null,null,null,null,null,null,null,null,null,null,null,null,null,{"$f":"VLOOKUP(N735,Tabel10[[korte omschrijving]:[MCC3_CODE]],2,0)","v":{"$error":"#N/A"}},{"$f":"VLOOKUP(N735,Tabel10[],3,0)","v":{"$error":"#N/A"}},null,null,null,null,null,null,null,null,null,null,null,{"$error":"#DIV/0!"},0,0,null,"","","","","","","","","","",null,null,null,null,null,null,null,null,null,null,null,null,null,null,null,null,null,"ZWO"]
[null,null,null,null,null,null,null,null,null,null,null,null,null,null,{"$f":"VLOOKUP(N736,Tabel10[[korte omschrijving]:[MCC3_CODE]],2,0)","v":{"$error":"#N/A"}},{"$f":"VLOOKUP(N736,Tabel10[],3,0)","v":{"$error":"#N/A"}},null,null,null,null,null,null,null,null,null,null,null,{"$error":"#DIV/0!"},0,0,null,"","","","","","","","","","",null,null,null,null,null,null,null,null,null,null,null,null,null,null,null,null,null,"ZWO"]
[null,null,null,null,null,null,null,null,null,null,null,null,null,null,{"$f":"VLOOKUP(N737,Tabel10[[korte omschrijving]:[MCC3_CODE]],2,0)","v":{"$error":"#N/A"}},{"$f":"VLOOKUP(N737,Tabel10[],3,0)","v":{"$error":"#N/A"}},null,null,null,null,null,null,null,null,null,null,null,{"$error":"#DIV/0!"},0,0,null,"","","","","","","","","","",null,null,null,null,null,null,null,null,null,null,null,null,null,null,null,null,null,"ZWO"]
[null,null,null,null,null,null,null,null,null,null,null,null,null,null,{"$f":"VLOOKUP(N738,Tabel10[[korte omschrijving]:[MCC3_CODE]],2,0)","v":{"$error":"#N/A"}},{"$f":"VLOOKUP(N738,Tabel10[],3,0)","v":{"$error":"#N/A"}},null,null,null,null,0,null,null,null,null,null,null,{"$error":"#DIV/0!"},0,0,null,"","","","","","","","","","",null,null,null,null,null,null,null,null,null,null,null,null,null,null,null,null,null,"ZWO"]
[null,null,null,null,null,null,null,null,null,null,null,null,null,null,{"$f":"VLOOKUP(N739,Tabel10[[korte omschrijving]:[MCC3_CODE]],2,0)","v":{"$error":"#N/A"}},{"$f":"VLOOKUP(N739,Tabel10[],3,0)","v":{"$error":"#N/A"}},null,null,null,null,null,null,null,null,null,null,null,{"$error":"#DIV/0!"},0,0,null,"","","","","","","","","","",null,null,null,null,null,null,null,null,null,null,null,null,null,null,null,null,null,"ZWO"]
[null,null,null,null,null,null,null,null,null,null,null,null,null,null,{"$f":"VLOOKUP(N740,Tabel10[[korte omschrijving]:[MCC3_CODE]],2,0)","v":{"$error":"#N/A"}},{"$f":"VLOOKUP(N740,Tabel10[],3,0)","v":{"$error":"#N/A"}},null,null,null,null,null,null,null,null,null,null,null,{"$error":"#DIV/0!"},0,0,null,"","","","","","","","","","",null,null,null,null,null,null,null,null,null,null,null,null,null,null,null,null,null,"ZWO"]
[null,null,null,null,null,null,null,null,null,null,null,null,null,null,{"$f":"VLOOKUP(N741,Tabel10[[korte omschrijving]:[MCC3_CODE]],2,0)","v":{"$error":"#N/A"}},{"$f":"VLOOKUP(N741,Tabel10[],3,0)","v":{"$error":"#N/A"}},null,null,null,null,null,null,null,null,null,null,null,{"$error":"#DIV/0!"},0,0,null,"","","","","","","","","","",null,null,null,null,null,null,null,null,null,null,null,null,null,null,null,null,null,"ZWO"]
[null,null,null,null,null,null,null,null,null,null,null,null,null,null,{"$f":"VLOOKUP(N742,Tabel10[[korte omschrijving]:[MCC3_CODE]],2,0)","v":{"$error":"#N/A"}},{"$f":"VLOOKUP(N742,Tabel10[],3,0)","v":{"$error":"#N/A"}},null,null,null,null,null,null,null,null,null,null,null,{"$error":"#DIV/0!"},0,0,null,"","","","","","","","","","",null,null,null,null,null,null,null,null,null,null,null,null,null,null,null,null,null,"ZWO"]
[null,null,null,null,null,null,null,null,null,null,null,null,null,null,{"$f":"VLOOKUP(N743,Tabel10[[korte omschrijving]:[MCC3_CODE]],2,0)","v":{"$error":"#N/A"}},{"$f":"VLOOKUP(N743,Tabel10[],3,0)","v":{"$error":"#N/A"}},null,null,null,null,null,null,null,null,null,null,null,{"$error":"#DIV/0!"},0,0,null,"","","","","","","","","","",null,null,null,null,null,null,null,null,null,null,null,null,null,null,null,null,null,"ZWO"]
[null,null,null,null,null,null,null,null,null,null,null,null,null,null,{"$f":"VLOOKUP(N744,Tabel10[[korte omschrijving]:[MCC3_CODE]],2,0)","v":{"$error":"#N/A"}},{"$f":"VLOOKUP(N744,Tabel10[],3,0)","v":{"$error":"#N/A"}},null,null,null,null,0,null,null,null,null,null,null,{"$error":"#DIV/0!"},0,0,null,"","","","","","","","","","",null,null,null,null,null,null,null,null,null,null,null,null,null,null,null,null,null,"ZWO"]
[null,null,null,null,null,null,null,null,null,null,null,null,null,null,{"$f":"VLOOKUP(N745,Tabel10[[korte omschrijving]:[MCC3_CODE]],2,0)","v":{"$error":"#N/A"}},{"$f":"VLOOKUP(N745,Tabel10[],3,0)","v":{"$error":"#N/A"}},null,null,null,null,null,null,null,null,null,null,null,{"$error":"#DIV/0!"},0,0,null,"","","","","","","","","","",null,null,null,null,null,null,null,null,null,null,null,null,null,null,null,null,null,"ZWO"]
[null,null,null,null,null,null,null,null,null,null,null,null,null,null,{"$f":"VLOOKUP(N746,Tabel10[[korte omschrijving]:[MCC3_CODE]],2,0)","v":{"$error":"#N/A"}},{"$f":"VLOOKUP(N746,Tabel10[],3,0)","v":{"$error":"#N/A"}},null,null,null,null,null,null,null,null,null,null,null,{"$error":"#DIV/0!"},0,0,null,"","","","","","","","","","",null,null,null,null,null,null,null,null,null,null,null,null,null,null,null,null,null,"ZWO"]
[null,null,null,null,null,null,null,null,null,null,null,null,null,null,{"$f":"VLOOKUP(N747,Tabel10[[korte omschrijving]:[MCC3_CODE]],2,0)","v":{"$error":"#N/A"}},{"$f":"VLOOKUP(N747,Tabel10[],3,0)","v":{"$error":"#N/A"}},null,null,null,null,null,null,null,null,null,null,null,{"$error":"#DIV/0!"},0,0,null,"","","","","","","","","","",null,null,null,null,null,null,null,null,null,null,null,null,null,null,null,null,null,"ZWO"]
[null,null,null,null,null,null,null,null,null,null,null,null,null,null,{"$f":"VLOOKUP(N748,Tabel10[[korte omschrijving]:[MCC3_CODE]],2,0)","v":{"$error":"#N/A"}},{"$f":"VLOOKUP(N748,Tabel10[],3,0)","v":{"$error":"#N/A"}},null,null,null,null,null,null,null,null,null,null,null,{"$error":"#DIV/0!"},0,0,null,"","","","","","","","","","",null,null,null,null,null,null,null,null,null,null,null,null,null,null,null,null,null,"ZWO"]
[null,null,null,null,null,null,null,null,null,null,null,null,null,null,{"$f":"VLOOKUP(N749,Tabel10[[korte omschrijving]:[MCC3_CODE]],2,0)","v":{"$error":"#N/A"}},{"$f":"VLOOKUP(N749,Tabel10[],3,0)","v":{"$error":"#N/A"}},null,null,null,null,null,null,null,null,null,null,null,{"$error":"#DIV/0!"},0,0,null,"","","","","","","","","","",null,null,null,null,null,null,null,null,null,null,null,null,null,null,null,null,null,"ZWO"]
[null,null,null,null,null,null,null,null,null,null,null,null,null,null,{"$f":"VLOOKUP(N750,Tabel10[[korte omschrijving]:[MCC3_CODE]],2,0)","v":{"$error":"#N/A"}},{"$f":"VLOOKUP(N750,Tabel10[],3,0)","v":{"$error":"#N/A"}},null,null,null,null,0,null,null,null,null,null,null,{"$error":"#DIV/0!"},0,0,null,"","","","","","","","","","",null,null,null,null,null,null,null,null,null,null,null,null,null,null,null,null,null,"ZWO"]
[null,null,null,null,null,null,null,null,null,null,null,null,null,null,{"$f":"VLOOKUP(N751,Tabel10[[korte omschrijving]:[MCC3_CODE]],2,0)","v":{"$error":"#N/A"}},{"$f":"VLOOKUP(N751,Tabel10[],3,0)","v":{"$error":"#N/A"}},null,null,null,null,null,null,null,null,null,null,null,{"$error":"#DIV/0!"},0,0,null,"","","","","","","","","","",null,null,null,null,null,null,null,null,null,null,null,null,null,null,null,null,null,"ZWO"]
[null,null,null,null,null,null,null,null,null,null,null,null,null,null,{"$f":"VLOOKUP(N752,Tabel10[[korte omschrijving]:[MCC3_CODE]],2,0)","v":{"$error":"#N/A"}},{"$f":"VLOOKUP(N752,Tabel10[],3,0)","v":{"$error":"#N/A"}},null,null,null,null,null,null,null,null,null,null,null,{"$error":"#DIV/0!"},0,0,null,"","","","","","","","","","",null,null,null,null,null,null,null,null,null,null,null,null,null,null,null,null,null,"ZWO"]
[null,null,null,null,null,null,null,null,null,null,null,null,null,null,{"$f":"VLOOKUP(N753,Tabel10[[korte omschrijving]:[MCC3_CODE]],2,0)","v":{"$error":"#N/A"}},{"$f":"VLOOKUP(N753,Tabel10[],3,0)","v":{"$error":"#N/A"}},null,null,null,null,null,null,null,null,null,null,null,{"$error":"#DIV/0!"},0,0,null,"","","","","","","","","","",null,null,null,null,null,null,null,null,null,null,null,null,null,null,null,null,null,"ZWO"]
[null,null,null,null,null,null,null,null,null,null,null,null,null,null,{"$f":"VLOOKUP(N754,Tabel10[[korte omschrijving]:[MCC3_CODE]],2,0)","v":{"$error":"#N/A"}},{"$f":"VLOOKUP(N754,Tabel10[],3,0)","v":{"$error":"#N/A"}},null,null,null,null,null,null,null,null,null,null,null,{"$error":"#DIV/0!"},0,0,null,"","","","","","","","","","",null,null,null,null,null,null,null,null,null,null,null,null,null,null,null,null,null,"ZWO"]
[null,null,null,null,null,null,null,null,null,null,null,null,null,null,{"$f":"VLOOKUP(N755,Tabel10[[korte omschrijving]:[MCC3_CODE]],2,0)","v":{"$error":"#N/A"}},{"$f":"VLOOKUP(N755,Tabel10[],3,0)","v":{"$error":"#N/A"}},null,null,null,null,null,null,null,null,null,null,null,{"$error":"#DIV/0!"},0,0,null,"","","","","","","","","","",null,null,null,null,null,null,null,null,null,null,null,null,null,null,null,null,null,"ZWO"]
[null,null,null,null,null,null,null,null,null,null,null,null,null,null,{"$f":"VLOOKUP(N756,Tabel10[[korte omschrijving]:[MCC3_CODE]],2,0)","v":{"$error":"#N/A"}},{"$f":"VLOOKUP(N756,Tabel10[],3,0)","v":{"$error":"#N/A"}},null,null,null,null,0,null,null,null,null,null,null,{"$error":"#DIV/0!"},0,0,null,"","","","","","","","","","",null,null,null,null,null,null,null,null,null,null,null,null,null,null,null,null,null,"ZWO"]
[null,null,null,null,null,null,null,null,null,null,null,null,null,null,{"$f":"VLOOKUP(N757,Tabel10[[korte omschrijving]:[MCC3_CODE]],2,0)","v":{"$error":"#N/A"}},{"$f":"VLOOKUP(N757,Tabel10[],3,0)","v":{"$error":"#N/A"}},null,null,null,null,null,null,null,null,null,null,null,{"$error":"#DIV/0!"},0,0,null,"","","","","","","","","","",null,null,null,null,null,null,null,null,null,null,null,null,null,null,null,null,null,"ZWO"]
[null,null,null,null,null,null,null,null,null,null,null,null,null,null,{"$f":"VLOOKUP(N758,Tabel10[[korte omschrijving]:[MCC3_CODE]],2,0)","v":{"$error":"#N/A"}},{"$f":"VLOOKUP(N758,Tabel10[],3,0)","v":{"$error":"#N/A"}},null,null,null,null,null,null,null,null,null,null,null,{"$error":"#DIV/0!"},0,0,null,"","","","","","","","","","",null,null,null,null,null,null,null,null,null,null,null,null,null,null,null,null,null,"ZWO"]
[null,null,null,null,null,null,null,null,null,null,null,null,null,null,{"$f":"VLOOKUP(N759,Tabel10[[korte omschrijving]:[MCC3_CODE]],2,0)","v":{"$error":"#N/A"}},{"$f":"VLOOKUP(N759,Tabel10[],3,0)","v":{"$error":"#N/A"}},null,null,null,null,null,null,null,null,null,null,null,{"$error":"#DIV/0!"},0,0,null,"","","","","","","","","","",null,null,null,null,null,null,null,null,null,null,null,null,null,null,null,null,null,"ZWO"]
[null,null,null,null,null,null,null,null,null,null,null,null,null,null,{"$f":"VLOOKUP(N760,Tabel10[[korte omschrijving]:[MCC3_CODE]],2,0)","v":{"$error":"#N/A"}},{"$f":"VLOOKUP(N760,Tabel10[],3,0)","v":{"$error":"#N/A"}},null,null,null,null,null,null,null,null,null,null,null,{"$f":"AA760/Y760","v":{"$error":"#DIV/0!"}},{"$f":"T760*Y760","v":0},{"$f":"T760*AA760","v":0},null,{"$f":"IF(AE760 <> \"\",\n    IF(ISNUMBER(VALUE(LEFT(AE760, FIND(\"%\", AE760)-1))),\n        VALUE(LEFT(AE760, FIND(\"%\", AE760)-1)),\n        \"Invalid format\"),\n    \"\")","v":""},{"$f":"IF(AE760 <> \"\",\n    IF(ISNUMBER(VALUE(LEFT(AE760, FIND(\"%\", AE760)-1))) * ISNUMBER(FIND(\"%\", AE760 & \"wol\")) > 0,\n        TRIM(MID(AE760, FIND(\"%\", AE760)+1, FIND(\"/\", AE760 & \"/\")-FIND(\"%\", AE760)-1)),\n        \"Invalid format\"),\n    \"\")","v":""},{"$f":"IF(AE760 <> \"\",\n    IF(ISNUMBER(VALUE(MID(AE760, FIND(\"/\", AE760) + 1, FIND(\"%\", AE760, FIND(\"/\", AE760)) - FIND(\"/\", AE760) - 1))),\n        VALUE(MID(AE760, FIND(\"/\", AE760) + 1, FIND(\"%\", AE760, FIND(\"/\", AE760)) - FIND(\"/\", AE760) - 1)),\n        \"\"),\n    \"\")","v":""},{"$f":"IF(AE760 <> \"\",\n    IFERROR(TRIM(MID(AE760, FIND(\"%\", AE760, FIND(\"/\", AE760)+1)+2,\n        IFERROR(FIND(\"/\", AE760 & \"/\", FIND(\"/\", AE760)+1)-FIND(\"%\", AE760, FIND(\"/\", AE760)+1)-2, LEN(AE760)-FIND(\"%\", AE760, FIND(\"/\", AE760)+1)-1))),\n        \"\"),\n    \"\")","v":""},{"$f":"IF(AE760 <> \"\",\n    IF(ISNUMBER(VALUE(MID(AE760, FIND(\"/\", AE760, FIND(\"/\", AE760)+1) + 1, FIND(\"%\", AE760, FIND(\"/\", AE760, FIND(\"/\", AE760)+1)) - FIND(\"/\", AE760, FIND(\"/\", AE760)+1) - 1))),\n        VALUE(MID(AE760, FIND(\"/\", AE760, FIND(\"/\", AE760)+1) + 1, FIND(\"%\", AE760, FIND(\"/\", AE760, FIND(\"/\", AE760)+1)) - FIND(\"/\", AE760, FIND(\"/\", AE760)+1) - 1)),\n        \"\"),\n    \"\")","v":""},{"$f":"IF(AE760 <> \"\",\n    IFERROR(\n        TRIM(MID(AE760,\n            FIND(\"%\", AE760, FIND(\"%\", AE760, FIND(\"%\", AE760)+1)+1)+1,\n            FIND(\"/\", AE760 & \"/\", FIND(\"%\", AE760, FIND(\"%\", AE760, FIND(\"%\", AE760)+1)+1))-FIND(\"%\", AE760, FIND(\"%\", AE760, FIND(\"%\", AE760)+1)+1)-1)\n        ),\n        \"\"\n    ),\n    \"\"\n)","v":""},{"$f":"IF(AE760 <> \"\",\n    IF(ISNUMBER(VALUE(MID(AE760, FIND(\"/\", AE760, FIND(\"/\", AE760, FIND(\"/\", AE760)+1)+1) + 1, FIND(\"%\", AE760, FIND(\"/\", AE760, FIND(\"/\", AE760, FIND(\"/\", AE760)+1)+1)) - FIND(\"/\", AE760, FIND(\"/\", AE760, FIND(\"/\", AE760)+1)+1) - 1))),\n        VALUE(MID(AE760, FIND(\"/\", AE760, FIND(\"/\", AE760, FIND(\"/\", AE760)+1)+1) + 1, FIND(\"%\", AE760, FIND(\"/\", AE760, FIND(\"/\", AE760, FIND(\"/\", AE760)+1)+1)) - FIND(\"/\", AE760, FIND(\"/\", AE760, FIND(\"/\", AE760)+1)+1) - 1)),\n        \"\"),\n    \"\")","v":""},{"$f":"IF(AE760 <> \"\",\n    IFERROR(TRIM(MID(AE760, FIND(\"%\", AE760, FIND(\"/\", AE760, FIND(\"/\", AE760, FIND(\"/\", AE760)+1)+1)+1)+2,\n        IFERROR(FIND(\"/\", AE760, FIND(\"/\", AE760, FIND(\"/\", AE760, FIND(\"/\", AE760)+1)+1)+1)-FIND(\"%\", AE760, FIND(\"/\", AE760, FIND(\"/\", AE760, FIND(\"/\", AE760)+1)+1)+1)-2, LEN(AE760)-FIND(\"%\", AE760, FIND(\"/\", AE760, FIND(\"/\", AE760, FIND(\"/\", AE760)+1)+1)+1)-1))),\n        \"\"),\n    \"\")","v":""},{"$f":"IF(AE760 <> \"\",\n    IF(ISNUMBER(VALUE(MID(AE760, FIND(\"/\", AE760, FIND(\"/\", AE760, FIND(\"/\", AE760, FIND(\"/\", AE760)+1)+1)+1) + 1, FIND(\"%\", AE760, FIND(\"/\", AE760, FIND(\"/\", AE760, FIND(\"/\", AE760, FIND(\"/\", AE760)+1)+1)+1)) - FIND(\"/\", AE760, FIND(\"/\", AE760, FIND(\"/\", AE760, FIND(\"/\", AE760)+1)+1)+1) - 1))),\n        VALUE(MID(AE760, FIND(\"/\", AE760, FIND(\"/\", AE760, FIND(\"/\", AE760, FIND(\"/\", AE760)+1)+1)+1) + 1, FIND(\"%\", AE760, FIND(\"/\", AE760, FIND(\"/\", AE760, FIND(\"/\", AE760, FIND(\"/\", AE760)+1)+1)+1)) - FIND(\"/\", AE760, FIND(\"/\", AE760, FIND(\"/\", AE760, FIND(\"/\", AE760)+1)+1)+1) - 1)),\n        \"\"),\n    \"\")","v":""},{"$f":"IF(AE760 = \"\", \"\",\n    IFERROR(TRIM(\n        MID(\n            AE760,\n            FIND(\"%\", AE760, FIND(\"/\", AE760, FIND(\"/\", AE760, FIND(\"/\", AE760, FIND(\"/\", AE760)+1)+1)+1)+1) + 1,\n            FIND(\"/\", AE760 & \"/\", FIND(\"%\", AE760, FIND(\"/\", AE760, FIND(\"/\", AE760, FIND(\"/\", AE760, FIND(\"/\", AE760)+1)+1)+1)+1)) -\n            FIND(\"%\", AE760, FIND(\"/\", AE760, FIND(\"/\", AE760, FIND(\"/\", AE760, FIND(\"/\", AE760)+1)+1)+1)+1) - 1\n        )\n    ),\n    \"\")\n)","v":""},null,null,null,null,null,null,null,null,null,null,null,null,null,null,null,null,null,"ZWO"]
[null,null,null,null,null,null,null,null,null,null,null,null,null,null,{"$f":"VLOOKUP(N761,Tabel10[[korte omschrijving]:[MCC3_CODE]],2,0)","v":{"$error":"#N/A"}},{"$f":"VLOOKUP(N761,Tabel10[],3,0)","v":{"$error":"#N/A"}},null,null,null,null,null,null,null,null,null,null,null,{"$error":"#DIV/0!"},0,0,null,"","","","","","","","","","",null,null,null,null,null,null,null,null,null,null,null,null,null,null,null,null,null,"ZWO"]
[null,null,null,null,null,null,null,null,null,null,null,null,null,null,{"$f":"VLOOKUP(N762,Tabel10[[korte omschrijving]:[MCC3_CODE]],2,0)","v":{"$error":"#N/A"}},{"$f":"VLOOKUP(N762,Tabel10[],3,0)","v":{"$error":"#N/A"}},null,null,null,null,0,null,null,null,null,null,null,{"$error":"#DIV/0!"},0,0,null,"","","","","","","","","","",null,null,null,null,null,null,null,null,null,null,null,null,null,null,null,null,null,"ZWO"]
[null,null,null,null,null,null,null,null,null,null,null,null,null,null,{"$f":"VLOOKUP(N763,Tabel10[[korte omschrijving]:[MCC3_CODE]],2,0)","v":{"$error":"#N/A"}},{"$f":"VLOOKUP(N763,Tabel10[],3,0)","v":{"$error":"#N/A"}},null,null,null,null,null,null,null,null,null,null,null,{"$error":"#DIV/0!"},0,0,null,"","","","","","","","","","",null,null,null,null,null,null,null,null,null,null,null,null,null,null,null,null,null,"ZWO"]
[null,null,null,null,null,null,null,null,null,null,null,null,null,null,{"$f":"VLOOKUP(N764,Tabel10[[korte omschrijving]:[MCC3_CODE]],2,0)","v":{"$error":"#N/A"}},{"$f":"VLOOKUP(N764,Tabel10[],3,0)","v":{"$error":"#N/A"}},null,null,null,null,null,null,null,null,null,null,null,{"$error":"#DIV/0!"},0,0,null,"","","","","","","","","","",null,null,null,null,null,null,null,null,null,null,null,null,null,null,null,null,null,"ZWO"]
[null,null,null,null,null,null,null,null,null,null,null,null,null,null,{"$f":"VLOOKUP(N765,Tabel10[[korte omschrijving]:[MCC3_CODE]],2,0)","v":{"$error":"#N/A"}},{"$f":"VLOOKUP(N765,Tabel10[],3,0)","v":{"$error":"#N/A"}},null,null,null,null,null,null,null,null,null,null,null,{"$error":"#DIV/0!"},0,0,null,"","","","","","","","","","",null,null,null,null,null,null,null,null,null,null,null,null,null,null,null,null,null,"ZWO"]
[null,null,null,null,null,null,null,null,null,null,null,null,null,null,{"$f":"VLOOKUP(N766,Tabel10[[korte omschrijving]:[MCC3_CODE]],2,0)","v":{"$error":"#N/A"}},{"$f":"VLOOKUP(N766,Tabel10[],3,0)","v":{"$error":"#N/A"}},null,null,null,null,null,null,null,null,null,null,null,{"$error":"#DIV/0!"},0,0,null,"","","","","","","","","","",null,null,null,null,null,null,null,null,null,null,null,null,null,null,null,null,null,"ZWO"]
[null,null,null,null,null,null,null,null,null,null,null,null,null,null,{"$f":"VLOOKUP(N767,Tabel10[[korte omschrijving]:[MCC3_CODE]],2,0)","v":{"$error":"#N/A"}},{"$f":"VLOOKUP(N767,Tabel10[],3,0)","v":{"$error":"#N/A"}},null,null,null,null,null,null,null,null,null,null,null,{"$error":"#DIV/0!"},0,0,null,"","","","","","","","","","",null,null,null,null,null,null,null,null,null,null,null,null,null,null,null,null,null,"ZWO"]
[null,null,null,null,null,null,null,null,null,null,null,null,null,null,{"$f":"VLOOKUP(N768,Tabel10[[korte omschrijving]:[MCC3_CODE]],2,0)","v":{"$error":"#N/A"}},{"$f":"VLOOKUP(N768,Tabel10[],3,0)","v":{"$error":"#N/A"}},null,null,null,null,{"$f":"SUM(T768:T773)","v":0},null,null,null,null,null,null,{"$error":"#DIV/0!"},0,0,null,"","","","","","","","","","",null,null,null,null,null,null,null,null,null,null,null,null,null,null,null,null,null,"ZWO"]
[null,null,null,null,null,null,null,null,null,null,null,null,null,null,{"$f":"VLOOKUP(N769,Tabel10[[korte omschrijving]:[MCC3_CODE]],2,0)","v":{"$error":"#N/A"}},{"$f":"VLOOKUP(N769,Tabel10[],3,0)","v":{"$error":"#N/A"}},null,null,null,null,null,null,null,null,null,null,null,{"$error":"#DIV/0!"},0,0,null,"","","","","","","","","","",null,null,null,null,null,null,null,null,null,null,null,null,null,null,null,null,null,"ZWO"]
[null,null,null,null,null,null,null,null,null,null,null,null,null,null,{"$f":"VLOOKUP(N770,Tabel10[[korte omschrijving]:[MCC3_CODE]],2,0)","v":{"$error":"#N/A"}},{"$f":"VLOOKUP(N770,Tabel10[],3,0)","v":{"$error":"#N/A"}},null,null,null,null,null,null,null,null,null,null,null,{"$error":"#DIV/0!"},0,0,null,"","","","","","","","","","",null,null,null,null,null,null,null,null,null,null,null,null,null,null,null,null,null,"ZWO"]
[null,null,null,null,null,null,null,null,null,null,null,null,null,null,{"$f":"VLOOKUP(N771,Tabel10[[korte omschrijving]:[MCC3_CODE]],2,0)","v":{"$error":"#N/A"}},{"$f":"VLOOKUP(N771,Tabel10[],3,0)","v":{"$error":"#N/A"}},null,null,null,null,null,null,null,null,null,null,null,{"$error":"#DIV/0!"},0,0,null,"","","","","","","","","","",null,null,null,null,null,null,null,null,null,null,null,null,null,null,null,null,null,"ZWO"]
[null,null,null,null,null,null,null,null,null,null,null,null,null,null,{"$f":"VLOOKUP(N772,Tabel10[[korte omschrijving]:[MCC3_CODE]],2,0)","v":{"$error":"#N/A"}},{"$f":"VLOOKUP(N772,Tabel10[],3,0)","v":{"$error":"#N/A"}},null,null,null,null,null,null,null,null,null,null,null,{"$error":"#DIV/0!"},0,0,null,"","","","","","","","","","",null,null,null,null,null,null,null,null,null,null,null,null,null,null,null,null,null,"ZWO"]
[null,null,null,null,null,null,null,null,null,null,null,null,null,null,{"$f":"VLOOKUP(N773,Tabel10[[korte omschrijving]:[MCC3_CODE]],2,0)","v":{"$error":"#N/A"}},{"$f":"VLOOKUP(N773,Tabel10[],3,0)","v":{"$error":"#N/A"}},null,null,null,null,null,null,null,null,null,null,null,{"$error":"#DIV/0!"},0,0,null,"","","","","","","","","","",null,null,null,null,null,null,null,null,null,null,null,null,null,null,null,null,null,"ZWO"]
[null,null,null,null,null,null,null,null,null,null,null,null,null,null,{"$f":"VLOOKUP(N774,Tabel10[[korte omschrijving]:[MCC3_CODE]],2,0)","v":{"$error":"#N/A"}},{"$f":"VLOOKUP(N774,Tabel10[],3,0)","v":{"$error":"#N/A"}},null,null,null,null,0,null,null,null,null,null,null,{"$error":"#DIV/0!"},0,0,null,"","","","","","","","","","",null,null,null,null,null,null,null,null,null,null,null,null,null,null,null,null,null,"ZWO"]
[null,null,null,null,null,null,null,null,null,null,null,null,null,null,{"$f":"VLOOKUP(N775,Tabel10[[korte omschrijving]:[MCC3_CODE]],2,0)","v":{"$error":"#N/A"}},{"$f":"VLOOKUP(N775,Tabel10[],3,0)","v":{"$error":"#N/A"}},null,null,null,null,null,null,null,null,null,null,null,{"$error":"#DIV/0!"},0,0,null,"","","","","","","","","","",null,null,null,null,null,null,null,null,null,null,null,null,null,null,null,null,null,"ZWO"]
[null,null,null,null,null,null,null,null,null,null,null,null,null,null,{"$f":"VLOOKUP(N776,Tabel10[[korte omschrijving]:[MCC3_CODE]],2,0)","v":{"$error":"#N/A"}},{"$f":"VLOOKUP(N776,Tabel10[],3,0)","v":{"$error":"#N/A"}},null,null,null,null,null,null,null,null,null,null,null,{"$error":"#DIV/0!"},0,0,null,"","","","","","","","","","",null,null,null,null,null,null,null,null,null,null,null,null,null,null,null,null,null,"ZWO"]
[null,null,null,null,null,null,null,null,null,null,null,null,null,null,{"$f":"VLOOKUP(N777,Tabel10[[korte omschrijving]:[MCC3_CODE]],2,0)","v":{"$error":"#N/A"}},{"$f":"VLOOKUP(N777,Tabel10[],3,0)","v":{"$error":"#N/A"}},null,null,null,null,null,null,null,null,null,null,null,{"$error":"#DIV/0!"},0,0,null,"","","","","","","","","","",null,null,null,null,null,null,null,null,null,null,null,null,null,null,null,null,null,"ZWO"]
[null,null,null,null,null,null,null,null,null,null,null,null,null,null,{"$f":"VLOOKUP(N778,Tabel10[[korte omschrijving]:[MCC3_CODE]],2,0)","v":{"$error":"#N/A"}},{"$f":"VLOOKUP(N778,Tabel10[],3,0)","v":{"$error":"#N/A"}},null,null,null,null,null,null,null,null,null,null,null,{"$error":"#DIV/0!"},0,0,null,"","","","","","","","","","",null,null,null,null,null,null,null,null,null,null,null,null,null,null,null,null,null,"ZWO"]
[null,null,null,null,null,null,null,null,null,null,null,null,null,null,{"$f":"VLOOKUP(N779,Tabel10[[korte omschrijving]:[MCC3_CODE]],2,0)","v":{"$error":"#N/A"}},{"$f":"VLOOKUP(N779,Tabel10[],3,0)","v":{"$error":"#N/A"}},null,null,null,null,null,null,null,null,null,null,null,{"$error":"#DIV/0!"},0,0,null,"","","","","","","","","","",null,null,null,null,null,null,null,null,null,null,null,null,null,null,null,null,null,"ZWO"]
[null,null,null,null,null,null,null,null,null,null,null,null,null,null,{"$f":"VLOOKUP(N780,Tabel10[[korte omschrijving]:[MCC3_CODE]],2,0)","v":{"$error":"#N/A"}},{"$f":"VLOOKUP(N780,Tabel10[],3,0)","v":{"$error":"#N/A"}},null,null,null,null,0,null,null,null,null,null,null,{"$error":"#DIV/0!"},0,0,null,"","","","","","","","","","",null,null,null,null,null,null,null,null,null,null,null,null,null,null,null,null,null,"ZWO"]
[null,null,null,null,null,null,null,null,null,null,null,null,null,null,{"$f":"VLOOKUP(N781,Tabel10[[korte omschrijving]:[MCC3_CODE]],2,0)","v":{"$error":"#N/A"}},{"$f":"VLOOKUP(N781,Tabel10[],3,0)","v":{"$error":"#N/A"}},null,null,null,null,null,null,null,null,null,null,null,{"$error":"#DIV/0!"},0,0,null,"","","","","","","","","","",null,null,null,null,null,null,null,null,null,null,null,null,null,null,null,null,null,"ZWO"]
[null,null,null,null,null,null,null,null,null,null,null,null,null,null,{"$f":"VLOOKUP(N782,Tabel10[[korte omschrijving]:[MCC3_CODE]],2,0)","v":{"$error":"#N/A"}},{"$f":"VLOOKUP(N782,Tabel10[],3,0)","v":{"$error":"#N/A"}},null,null,null,null,null,null,null,null,null,null,null,{"$error":"#DIV/0!"},0,0,null,"","","","","","","","","","",null,null,null,null,null,null,null,null,null,null,null,null,null,null,null,null,null,"ZWO"]
[null,null,null,null,null,null,null,null,null,null,null,null,null,null,{"$f":"VLOOKUP(N783,Tabel10[[korte omschrijving]:[MCC3_CODE]],2,0)","v":{"$error":"#N/A"}},{"$f":"VLOOKUP(N783,Tabel10[],3,0)","v":{"$error":"#N/A"}},null,null,null,null,null,null,null,null,null,null,null,{"$error":"#DIV/0!"},0,0,null,"","","","","","","","","","",null,null,null,null,null,null,null,null,null,null,null,null,null,null,null,null,null,"ZWO"]
[null,null,null,null,null,null,null,null,null,null,null,null,null,null,{"$f":"VLOOKUP(N784,Tabel10[[korte omschrijving]:[MCC3_CODE]],2,0)","v":{"$error":"#N/A"}},{"$f":"VLOOKUP(N784,Tabel10[],3,0)","v":{"$error":"#N/A"}},null,null,null,null,null,null,null,null,null,null,null,{"$error":"#DIV/0!"},0,0,null,"","","","","","","","","","",null,null,null,null,null,null,null,null,null,null,null,null,null,null,null,null,null,"ZWO"]
[null,null,null,null,null,null,null,null,null,null,null,null,null,null,{"$f":"VLOOKUP(N785,Tabel10[[korte omschrijving]:[MCC3_CODE]],2,0)","v":{"$error":"#N/A"}},{"$f":"VLOOKUP(N785,Tabel10[],3,0)","v":{"$error":"#N/A"}},null,null,null,null,null,null,null,null,null,null,null,{"$error":"#DIV/0!"},0,0,null,"","","","","","","","","","",null,null,null,null,null,null,null,null,null,null,null,null,null,null,null,null,null,"ZWO"]
[null,null,null,null,null,null,null,null,null,null,null,null,null,null,{"$f":"VLOOKUP(N786,Tabel10[[korte omschrijving]:[MCC3_CODE]],2,0)","v":{"$error":"#N/A"}},{"$f":"VLOOKUP(N786,Tabel10[],3,0)","v":{"$error":"#N/A"}},null,null,null,null,0,null,null,null,null,null,null,{"$error":"#DIV/0!"},0,0,null,"","","","","","","","","","",null,null,null,null,null,null,null,null,null,null,null,null,null,null,null,null,null,"ZWO"]
[null,null,null,null,null,null,null,null,null,null,null,null,null,null,{"$f":"VLOOKUP(N787,Tabel10[[korte omschrijving]:[MCC3_CODE]],2,0)","v":{"$error":"#N/A"}},{"$f":"VLOOKUP(N787,Tabel10[],3,0)","v":{"$error":"#N/A"}},null,null,null,null,null,null,null,null,null,null,null,{"$error":"#DIV/0!"},0,0,null,"","","","","","","","","","",null,null,null,null,null,null,null,null,null,null,null,null,null,null,null,null,null,"ZWO"]
[null,null,null,null,null,null,null,null,null,null,null,null,null,null,{"$f":"VLOOKUP(N788,Tabel10[[korte omschrijving]:[MCC3_CODE]],2,0)","v":{"$error":"#N/A"}},{"$f":"VLOOKUP(N788,Tabel10[],3,0)","v":{"$error":"#N/A"}},null,null,null,null,null,null,null,null,null,null,null,{"$error":"#DIV/0!"},0,0,null,"","","","","","","","","","",null,null,null,null,null,null,null,null,null,null,null,null,null,null,null,null,null,"ZWO"]
[null,null,null,null,null,null,null,null,null,null,null,null,null,null,{"$f":"VLOOKUP(N789,Tabel10[[korte omschrijving]:[MCC3_CODE]],2,0)","v":{"$error":"#N/A"}},{"$f":"VLOOKUP(N789,Tabel10[],3,0)","v":{"$error":"#N/A"}},null,null,null,null,null,null,null,null,null,null,null,{"$error":"#DIV/0!"},0,0,null,"","","","","","","","","","",null,null,null,null,null,null,null,null,null,null,null,null,null,null,null,null,null,"ZWO"]
[null,null,null,null,null,null,null,null,null,null,null,null,null,null,{"$f":"VLOOKUP(N790,Tabel10[[korte omschrijving]:[MCC3_CODE]],2,0)","v":{"$error":"#N/A"}},{"$f":"VLOOKUP(N790,Tabel10[],3,0)","v":{"$error":"#N/A"}},null,null,null,null,null,null,null,null,null,null,null,{"$error":"#DIV/0!"},0,0,null,"","","","","","","","","","",null,null,null,null,null,null,null,null,null,null,null,null,null,null,null,null,null,"ZWO"]
[null,null,null,null,null,null,null,null,null,null,null,null,null,null,{"$f":"VLOOKUP(N791,Tabel10[[korte omschrijving]:[MCC3_CODE]],2,0)","v":{"$error":"#N/A"}},{"$f":"VLOOKUP(N791,Tabel10[],3,0)","v":{"$error":"#N/A"}},null,null,null,null,null,null,null,null,null,null,null,{"$error":"#DIV/0!"},0,0,null,"","","","","","","","","","",null,null,null,null,null,null,null,null,null,null,null,null,null,null,null,null,null,"ZWO"]
[null,null,null,null,null,null,null,null,null,null,null,null,null,null,{"$f":"VLOOKUP(N792,Tabel10[[korte omschrijving]:[MCC3_CODE]],2,0)","v":{"$error":"#N/A"}},{"$f":"VLOOKUP(N792,Tabel10[],3,0)","v":{"$error":"#N/A"}},null,null,null,null,0,null,null,null,null,null,null,{"$error":"#DIV/0!"},0,0,null,"","","","","","","","","","",null,null,null,null,null,null,null,null,null,null,null,null,null,null,null,null,null,"ZWO"]
[null,null,null,null,null,null,null,null,null,null,null,null,null,null,{"$f":"VLOOKUP(N793,Tabel10[[korte omschrijving]:[MCC3_CODE]],2,0)","v":{"$error":"#N/A"}},{"$f":"VLOOKUP(N793,Tabel10[],3,0)","v":{"$error":"#N/A"}},null,null,null,null,null,null,null,null,null,null,null,{"$error":"#DIV/0!"},0,0,null,"","","","","","","","","","",null,null,null,null,null,null,null,null,null,null,null,null,null,null,null,null,null,"ZWO"]
[null,null,null,null,null,null,null,null,null,null,null,null,null,null,{"$f":"VLOOKUP(N794,Tabel10[[korte omschrijving]:[MCC3_CODE]],2,0)","v":{"$error":"#N/A"}},{"$f":"VLOOKUP(N794,Tabel10[],3,0)","v":{"$error":"#N/A"}},null,null,null,null,null,null,null,null,null,null,null,{"$error":"#DIV/0!"},0,0,null,"","","","","","","","","","",null,null,null,null,null,null,null,null,null,null,null,null,null,null,null,null,null,"ZWO"]
[null,null,null,null,null,null,null,null,null,null,null,null,null,null,{"$f":"VLOOKUP(N795,Tabel10[[korte omschrijving]:[MCC3_CODE]],2,0)","v":{"$error":"#N/A"}},{"$f":"VLOOKUP(N795,Tabel10[],3,0)","v":{"$error":"#N/A"}},null,null,null,null,null,null,null,null,null,null,null,{"$error":"#DIV/0!"},0,0,null,"","","","","","","","","","",null,null,null,null,null,null,null,null,null,null,null,null,null,null,null,null,null,"ZWO"]
[null,null,null,null,null,null,null,null,null,null,null,null,null,null,{"$f":"VLOOKUP(N796,Tabel10[[korte omschrijving]:[MCC3_CODE]],2,0)","v":{"$error":"#N/A"}},{"$f":"VLOOKUP(N796,Tabel10[],3,0)","v":{"$error":"#N/A"}},null,null,null,null,null,null,null,null,null,null,null,{"$error":"#DIV/0!"},0,0,null,"","","","","","","","","","",null,null,null,null,null,null,null,null,null,null,null,null,null,null,null,null,null,"ZWO"]
[null,null,null,null,null,null,null,null,null,null,null,null,null,null,{"$f":"VLOOKUP(N797,Tabel10[[korte omschrijving]:[MCC3_CODE]],2,0)","v":{"$error":"#N/A"}},{"$f":"VLOOKUP(N797,Tabel10[],3,0)","v":{"$error":"#N/A"}},null,null,null,null,null,null,null,null,null,null,null,{"$error":"#DIV/0!"},0,0,null,"","","","","","","","","","",null,null,null,null,null,null,null,null,null,null,null,null,null,null,null,null,null,"ZWO"]
[null,null,null,null,null,null,null,null,null,null,null,null,null,null,{"$f":"VLOOKUP(N798,Tabel10[[korte omschrijving]:[MCC3_CODE]],2,0)","v":{"$error":"#N/A"}},{"$f":"VLOOKUP(N798,Tabel10[],3,0)","v":{"$error":"#N/A"}},null,null,null,null,0,null,null,null,null,null,null,{"$error":"#DIV/0!"},0,0,null,"","","","","","","","","","",null,null,null,null,null,null,null,null,null,null,null,null,null,null,null,null,null,"ZWO"]
[null,null,null,null,null,null,null,null,null,null,null,null,null,null,{"$f":"VLOOKUP(N799,Tabel10[[korte omschrijving]:[MCC3_CODE]],2,0)","v":{"$error":"#N/A"}},{"$f":"VLOOKUP(N799,Tabel10[],3,0)","v":{"$error":"#N/A"}},null,null,null,null,null,null,null,null,null,null,null,{"$error":"#DIV/0!"},0,0,null,"","","","","","","","","","",null,null,null,null,null,null,null,null,null,null,null,null,null,null,null,null,null,"ZWO"]
[null,null,null,null,null,null,null,null,null,null,null,null,null,null,{"$f":"VLOOKUP(N800,Tabel10[[korte omschrijving]:[MCC3_CODE]],2,0)","v":{"$error":"#N/A"}},{"$f":"VLOOKUP(N800,Tabel10[],3,0)","v":{"$error":"#N/A"}},null,null,null,null,null,null,null,null,null,null,null,{"$error":"#DIV/0!"},0,0,null,"","","","","","","","","","",null,null,null,null,null,null,null,null,null,null,null,null,null,null,null,null,null,"ZWO"]
[null,null,null,null,null,null,null,null,null,null,null,null,null,null,{"$f":"VLOOKUP(N801,Tabel10[[korte omschrijving]:[MCC3_CODE]],2,0)","v":{"$error":"#N/A"}},{"$f":"VLOOKUP(N801,Tabel10[],3,0)","v":{"$error":"#N/A"}},null,null,null,null,null,null,null,null,null,null,null,{"$error":"#DIV/0!"},0,0,null,"","","","","","","","","","",null,null,null,null,null,null,null,null,null,null,null,null,null,null,null,null,null,"ZWO"]
[null,null,null,null,null,null,null,null,null,null,null,null,null,null,{"$f":"VLOOKUP(N802,Tabel10[[korte omschrijving]:[MCC3_CODE]],2,0)","v":{"$error":"#N/A"}},{"$f":"VLOOKUP(N802,Tabel10[],3,0)","v":{"$error":"#N/A"}},null,null,null,null,null,null,null,null,null,null,null,{"$error":"#DIV/0!"},0,0,null,"","","","","","","","","","",null,null,null,null,null,null,null,null,null,null,null,null,null,null,null,null,null,"ZWO"]
[null,null,null,null,null,null,null,null,null,null,null,null,null,null,{"$f":"VLOOKUP(N803,Tabel10[[korte omschrijving]:[MCC3_CODE]],2,0)","v":{"$error":"#N/A"}},{"$f":"VLOOKUP(N803,Tabel10[],3,0)","v":{"$error":"#N/A"}},null,null,null,null,null,null,null,null,null,null,null,{"$error":"#DIV/0!"},0,0,null,"","","","","","","","","","",null,null,null,null,null,null,null,null,null,null,null,null,null,null,null,null,null,"ZWO"]
[null,null,null,null,null,null,null,null,null,null,null,null,null,null,{"$f":"VLOOKUP(N804,Tabel10[[korte omschrijving]:[MCC3_CODE]],2,0)","v":{"$error":"#N/A"}},{"$f":"VLOOKUP(N804,Tabel10[],3,0)","v":{"$error":"#N/A"}},null,null,null,null,0,null,null,null,null,null,null,{"$error":"#DIV/0!"},0,0,null,"","","","","","","","","","",null,null,null,null,null,null,null,null,null,null,null,null,null,null,null,null,null,"ZWO"]
[null,null,null,null,null,null,null,null,null,null,null,null,null,null,{"$f":"VLOOKUP(N805,Tabel10[[korte omschrijving]:[MCC3_CODE]],2,0)","v":{"$error":"#N/A"}},{"$f":"VLOOKUP(N805,Tabel10[],3,0)","v":{"$error":"#N/A"}},null,null,null,null,null,null,null,null,null,null,null,{"$error":"#DIV/0!"},0,0,null,"","","","","","","","","","",null,null,null,null,null,null,null,null,null,null,null,null,null,null,null,null,null,"ZWO"]
[null,null,null,null,null,null,null,null,null,null,null,null,null,null,{"$f":"VLOOKUP(N806,Tabel10[[korte omschrijving]:[MCC3_CODE]],2,0)","v":{"$error":"#N/A"}},{"$f":"VLOOKUP(N806,Tabel10[],3,0)","v":{"$error":"#N/A"}},null,null,null,null,null,null,null,null,null,null,null,{"$error":"#DIV/0!"},0,0,null,"","","","","","","","","","",null,null,null,null,null,null,null,null,null,null,null,null,null,null,null,null,null,"ZWO"]
[null,null,null,null,null,null,null,null,null,null,null,null,null,null,{"$f":"VLOOKUP(N807,Tabel10[[korte omschrijving]:[MCC3_CODE]],2,0)","v":{"$error":"#N/A"}},{"$f":"VLOOKUP(N807,Tabel10[],3,0)","v":{"$error":"#N/A"}},null,null,null,null,null,null,null,null,null,null,null,{"$error":"#DIV/0!"},0,0,null,"","","","","","","","","","",null,null,null,null,null,null,null,null,null,null,null,null,null,null,null,null,null,"ZWO"]
[null,null,null,null,null,null,null,null,null,null,null,null,null,null,{"$f":"VLOOKUP(N808,Tabel10[[korte omschrijving]:[MCC3_CODE]],2,0)","v":{"$error":"#N/A"}},{"$f":"VLOOKUP(N808,Tabel10[],3,0)","v":{"$error":"#N/A"}},null,null,null,null,null,null,null,null,null,null,null,{"$error":"#DIV/0!"},0,0,null,"","","","","","","","","","",null,null,null,null,null,null,null,null,null,null,null,null,null,null,null,null,null,"ZWO"]
[null,null,null,null,null,null,null,null,null,null,null,null,null,null,{"$f":"VLOOKUP(N809,Tabel10[[korte omschrijving]:[MCC3_CODE]],2,0)","v":{"$error":"#N/A"}},{"$f":"VLOOKUP(N809,Tabel10[],3,0)","v":{"$error":"#N/A"}},null,null,null,null,null,null,null,null,null,null,null,{"$error":"#DIV/0!"},0,0,null,"","","","","","","","","","",null,null,null,null,null,null,null,null,null,null,null,null,null,null,null,null,null,"ZWO"]
[null,null,null,null,null,null,null,null,null,null,null,null,null,null,{"$f":"VLOOKUP(N810,Tabel10[[korte omschrijving]:[MCC3_CODE]],2,0)","v":{"$error":"#N/A"}},{"$f":"VLOOKUP(N810,Tabel10[],3,0)","v":{"$error":"#N/A"}},null,null,null,null,0,null,null,null,null,null,null,{"$error":"#DIV/0!"},0,0,null,"","","","","","","","","","",null,null,null,null,null,null,null,null,null,null,null,null,null,null,null,null,null,"ZWO"]
[null,null,null,null,null,null,null,null,null,null,null,null,null,null,{"$f":"VLOOKUP(N811,Tabel10[[korte omschrijving]:[MCC3_CODE]],2,0)","v":{"$error":"#N/A"}},{"$f":"VLOOKUP(N811,Tabel10[],3,0)","v":{"$error":"#N/A"}},null,null,null,null,null,null,null,null,null,null,null,{"$error":"#DIV/0!"},0,0,null,"","","","","","","","","","",null,null,null,null,null,null,null,null,null,null,null,null,null,null,null,null,null,"ZWO"]
[null,null,null,null,null,null,null,null,null,null,null,null,null,null,{"$f":"VLOOKUP(N812,Tabel10[[korte omschrijving]:[MCC3_CODE]],2,0)","v":{"$error":"#N/A"}},{"$f":"VLOOKUP(N812,Tabel10[],3,0)","v":{"$error":"#N/A"}},null,null,null,null,null,null,null,null,null,null,null,{"$error":"#DIV/0!"},0,0,null,"","","","","","","","","","",null,null,null,null,null,null,null,null,null,null,null,null,null,null,null,null,null,"ZWO"]
[null,null,null,null,null,null,null,null,null,null,null,null,null,null,{"$f":"VLOOKUP(N813,Tabel10[[korte omschrijving]:[MCC3_CODE]],2,0)","v":{"$error":"#N/A"}},{"$f":"VLOOKUP(N813,Tabel10[],3,0)","v":{"$error":"#N/A"}},null,null,null,null,null,null,null,null,null,null,null,{"$error":"#DIV/0!"},0,0,null,"","","","","","","","","","",null,null,null,null,null,null,null,null,null,null,null,null,null,null,null,null,null,"ZWO"]
[null,null,null,null,null,null,null,null,null,null,null,null,null,null,{"$f":"VLOOKUP(N814,Tabel10[[korte omschrijving]:[MCC3_CODE]],2,0)","v":{"$error":"#N/A"}},{"$f":"VLOOKUP(N814,Tabel10[],3,0)","v":{"$error":"#N/A"}},null,null,null,null,null,null,null,null,null,null,null,{"$error":"#DIV/0!"},0,0,null,"","","","","","","","","","",null,null,null,null,null,null,null,null,null,null,null,null,null,null,null,null,null,"ZWO"]
[null,null,null,null,null,null,null,null,null,null,null,null,null,null,{"$f":"VLOOKUP(N815,Tabel10[[korte omschrijving]:[MCC3_CODE]],2,0)","v":{"$error":"#N/A"}},{"$f":"VLOOKUP(N815,Tabel10[],3,0)","v":{"$error":"#N/A"}},null,null,null,null,null,null,null,null,null,null,null,{"$error":"#DIV/0!"},0,0,null,"","","","","","","","","","",null,null,null,null,null,null,null,null,null,null,null,null,null,null,null,null,null,"ZWO"]
[null,null,null,null,null,null,null,null,null,null,null,null,null,null,{"$f":"VLOOKUP(N816,Tabel10[[korte omschrijving]:[MCC3_CODE]],2,0)","v":{"$error":"#N/A"}},{"$f":"VLOOKUP(N816,Tabel10[],3,0)","v":{"$error":"#N/A"}},null,null,null,null,0,null,null,null,null,null,null,{"$error":"#DIV/0!"},0,0,null,"","","","","","","","","","",null,null,null,null,null,null,null,null,null,null,null,null,null,null,null,null,null,"ZWO"]
[null,null,null,null,null,null,null,null,null,null,null,null,null,null,{"$f":"VLOOKUP(N817,Tabel10[[korte omschrijving]:[MCC3_CODE]],2,0)","v":{"$error":"#N/A"}},{"$f":"VLOOKUP(N817,Tabel10[],3,0)","v":{"$error":"#N/A"}},null,null,null,null,null,null,null,null,null,null,null,{"$error":"#DIV/0!"},0,0,null,"","","","","","","","","","",null,null,null,null,null,null,null,null,null,null,null,null,null,null,null,null,null,"ZWO"]
[null,null,null,null,null,null,null,null,null,null,null,null,null,null,{"$f":"VLOOKUP(N818,Tabel10[[korte omschrijving]:[MCC3_CODE]],2,0)","v":{"$error":"#N/A"}},{"$f":"VLOOKUP(N818,Tabel10[],3,0)","v":{"$error":"#N/A"}},null,null,null,null,null,null,null,null,null,null,null,{"$error":"#DIV/0!"},0,0,null,"","","","","","","","","","",null,null,null,null,null,null,null,null,null,null,null,null,null,null,null,null,null,"ZWO"]
[null,null,null,null,null,null,null,null,null,null,null,null,null,null,{"$f":"VLOOKUP(N819,Tabel10[[korte omschrijving]:[MCC3_CODE]],2,0)","v":{"$error":"#N/A"}},{"$f":"VLOOKUP(N819,Tabel10[],3,0)","v":{"$error":"#N/A"}},null,null,null,null,null,null,null,null,null,null,null,{"$error":"#DIV/0!"},0,0,null,"","","","","","","","","","",null,null,null,null,null,null,null,null,null,null,null,null,null,null,null,null,null,"ZWO"]
[null,null,null,null,null,null,null,null,null,null,null,null,null,null,{"$f":"VLOOKUP(N820,Tabel10[[korte omschrijving]:[MCC3_CODE]],2,0)","v":{"$error":"#N/A"}},{"$f":"VLOOKUP(N820,Tabel10[],3,0)","v":{"$error":"#N/A"}},null,null,null,null,null,null,null,null,null,null,null,{"$error":"#DIV/0!"},0,0,null,"","","","","","","","","","",null,null,null,null,null,null,null,null,null,null,null,null,null,null,null,null,null,"ZWO"]
[null,null,null,null,null,null,null,null,null,null,null,null,null,null,{"$f":"VLOOKUP(N821,Tabel10[[korte omschrijving]:[MCC3_CODE]],2,0)","v":{"$error":"#N/A"}},{"$f":"VLOOKUP(N821,Tabel10[],3,0)","v":{"$error":"#N/A"}},null,null,null,null,null,null,null,null,null,null,null,{"$error":"#DIV/0!"},0,0,null,"","","","","","","","","","",null,null,null,null,null,null,null,null,null,null,null,null,null,null,null,null,null,"ZWO"]
[null,null,null,null,null,null,null,null,null,null,null,null,null,null,{"$f":"VLOOKUP(N822,Tabel10[[korte omschrijving]:[MCC3_CODE]],2,0)","v":{"$error":"#N/A"}},{"$f":"VLOOKUP(N822,Tabel10[],3,0)","v":{"$error":"#N/A"}},null,null,null,null,0,null,null,null,null,null,null,{"$error":"#DIV/0!"},0,0,null,"","","","","","","","","","",null,null,null,null,null,null,null,null,null,null,null,null,null,null,null,null,null,"ZWO"]
[null,null,null,null,null,null,null,null,null,null,null,null,null,null,{"$f":"VLOOKUP(N823,Tabel10[[korte omschrijving]:[MCC3_CODE]],2,0)","v":{"$error":"#N/A"}},{"$f":"VLOOKUP(N823,Tabel10[],3,0)","v":{"$error":"#N/A"}},null,null,null,null,null,null,null,null,null,null,null,{"$error":"#DIV/0!"},0,0,null,"","","","","","","","","","",null,null,null,null,null,null,null,null,null,null,null,null,null,null,null,null,null,"ZWO"]
[null,null,null,null,null,null,null,null,null,null,null,null,null,null,{"$f":"VLOOKUP(N824,Tabel10[[korte omschrijving]:[MCC3_CODE]],2,0)","v":{"$error":"#N/A"}},{"$f":"VLOOKUP(N824,Tabel10[],3,0)","v":{"$error":"#N/A"}},null,null,null,null,null,null,null,null,null,null,null,{"$f":"AA824/Y824","v":{"$error":"#DIV/0!"}},{"$f":"T824*Y824","v":0},{"$f":"T824*AA824","v":0},null,{"$f":"IF(AE824 <> \"\",\n    IF(ISNUMBER(VALUE(LEFT(AE824, FIND(\"%\", AE824)-1))),\n        VALUE(LEFT(AE824, FIND(\"%\", AE824)-1)),\n        \"Invalid format\"),\n    \"\")","v":""},{"$f":"IF(AE824 <> \"\",\n    IF(ISNUMBER(VALUE(LEFT(AE824, FIND(\"%\", AE824)-1))) * ISNUMBER(FIND(\"%\", AE824 & \"wol\")) > 0,\n        TRIM(MID(AE824, FIND(\"%\", AE824)+1, FIND(\"/\", AE824 & \"/\")-FIND(\"%\", AE824)-1)),\n        \"Invalid format\"),\n    \"\")","v":""},{"$f":"IF(AE824 <> \"\",\n    IF(ISNUMBER(VALUE(MID(AE824, FIND(\"/\", AE824) + 1, FIND(\"%\", AE824, FIND(\"/\", AE824)) - FIND(\"/\", AE824) - 1))),\n        VALUE(MID(AE824, FIND(\"/\", AE824) + 1, FIND(\"%\", AE824, FIND(\"/\", AE824)) - FIND(\"/\", AE824) - 1)),\n        \"\"),\n    \"\")","v":""},{"$f":"IF(AE824 <> \"\",\n    IFERROR(TRIM(MID(AE824, FIND(\"%\", AE824, FIND(\"/\", AE824)+1)+2,\n        IFERROR(FIND(\"/\", AE824 & \"/\", FIND(\"/\", AE824)+1)-FIND(\"%\", AE824, FIND(\"/\", AE824)+1)-2, LEN(AE824)-FIND(\"%\", AE824, FIND(\"/\", AE824)+1)-1))),\n        \"\"),\n    \"\")","v":""},{"$f":"IF(AE824 <> \"\",\n    IF(ISNUMBER(VALUE(MID(AE824, FIND(\"/\", AE824, FIND(\"/\", AE824)+1) + 1, FIND(\"%\", AE824, FIND(\"/\", AE824, FIND(\"/\", AE824)+1)) - FIND(\"/\", AE824, FIND(\"/\", AE824)+1) - 1))),\n        VALUE(MID(AE824, FIND(\"/\", AE824, FIND(\"/\", AE824)+1) + 1, FIND(\"%\", AE824, FIND(\"/\", AE824, FIND(\"/\", AE824)+1)) - FIND(\"/\", AE824, FIND(\"/\", AE824)+1) - 1)),\n        \"\"),\n    \"\")","v":""},{"$f":"IF(AE824 <> \"\",\n    IFERROR(\n        TRIM(MID(AE824,\n            FIND(\"%\", AE824, FIND(\"%\", AE824, FIND(\"%\", AE824)+1)+1)+1,\n            FIND(\"/\", AE824 & \"/\", FIND(\"%\", AE824, FIND(\"%\", AE824, FIND(\"%\", AE824)+1)+1))-FIND(\"%\", AE824, FIND(\"%\", AE824, FIND(\"%\", AE824)+1)+1)-1)\n        ),\n        \"\"\n    ),\n    \"\"\n)","v":""},{"$f":"IF(AE824 <> \"\",\n    IF(ISNUMBER(VALUE(MID(AE824, FIND(\"/\", AE824, FIND(\"/\", AE824, FIND(\"/\", AE824)+1)+1) + 1, FIND(\"%\", AE824, FIND(\"/\", AE824, FIND(\"/\", AE824, FIND(\"/\", AE824)+1)+1)) - FIND(\"/\", AE824, FIND(\"/\", AE824, FIND(\"/\", AE824)+1)+1) - 1))),\n        VALUE(MID(AE824, FIND(\"/\", AE824, FIND(\"/\", AE824, FIND(\"/\", AE824)+1)+1) + 1, FIND(\"%\", AE824, FIND(\"/\", AE824, FIND(\"/\", AE824, FIND(\"/\", AE824)+1)+1)) - FIND(\"/\", AE824, FIND(\"/\", AE824, FIND(\"/\", AE824)+1)+1) - 1)),\n        \"\"),\n    \"\")","v":""},{"$f":"IF(AE824 <> \"\",\n    IFERROR(TRIM(MID(AE824, FIND(\"%\", AE824, FIND(\"/\", AE824, FIND(\"/\", AE824, FIND(\"/\", AE824)+1)+1)+1)+2,\n        IFERROR(FIND(\"/\", AE824, FIND(\"/\", AE824, FIND(\"/\", AE824, FIND(\"/\", AE824)+1)+1)+1)-FIND(\"%\", AE824, FIND(\"/\", AE824, FIND(\"/\", AE824, FIND(\"/\", AE824)+1)+1)+1)-2, LEN(AE824)-FIND(\"%\", AE824, FIND(\"/\", AE824, FIND(\"/\", AE824, FIND(\"/\", AE824)+1)+1)+1)-1))),\n        \"\"),\n    \"\")","v":""},{"$f":"IF(AE824 <> \"\",\n    IF(ISNUMBER(VALUE(MID(AE824, FIND(\"/\", AE824, FIND(\"/\", AE824, FIND(\"/\", AE824, FIND(\"/\", AE824)+1)+1)+1) + 1, FIND(\"%\", AE824, FIND(\"/\", AE824, FIND(\"/\", AE824, FIND(\"/\", AE824, FIND(\"/\", AE824)+1)+1)+1)) - FIND(\"/\", AE824, FIND(\"/\", AE824, FIND(\"/\", AE824, FIND(\"/\", AE824)+1)+1)+1) - 1))),\n        VALUE(MID(AE824, FIND(\"/\", AE824, FIND(\"/\", AE824, FIND(\"/\", AE824, FIND(\"/\", AE824)+1)+1)+1) + 1, FIND(\"%\", AE824, FIND(\"/\", AE824, FIND(\"/\", AE824, FIND(\"/\", AE824, FIND(\"/\", AE824)+1)+1)+1)) - FIND(\"/\", AE824, FIND(\"/\", AE824, FIND(\"/\", AE824, FIND(\"/\", AE824)+1)+1)+1) - 1)),\n        \"\"),\n    \"\")","v":""},{"$f":"IF(AE824 = \"\", \"\",\n    IFERROR(TRIM(\n        MID(\n            AE824,\n            FIND(\"%\", AE824, FIND(\"/\", AE824, FIND(\"/\", AE824, FIND(\"/\", AE824, FIND(\"/\", AE824)+1)+1)+1)+1) + 1,\n            FIND(\"/\", AE824 & \"/\", FIND(\"%\", AE824, FIND(\"/\", AE824, FIND(\"/\", AE824, FIND(\"/\", AE824, FIND(\"/\", AE824)+1)+1)+1)+1)) -\n            FIND(\"%\", AE824, FIND(\"/\", AE824, FIND(\"/\", AE824, FIND(\"/\", AE824, FIND(\"/\", AE824)+1)+1)+1)+1) - 1\n        )\n    ),\n    \"\")\n)","v":""},null,null,null,null,null,null,null,null,null,null,null,null,null,null,null,null,null,"ZWO"]
[null,null,null,null,null,null,null,null,null,null,null,null,null,null,{"$f":"VLOOKUP(N825,Tabel10[[korte omschrijving]:[MCC3_CODE]],2,0)","v":{"$error":"#N/A"}},{"$f":"VLOOKUP(N825,Tabel10[],3,0)","v":{"$error":"#N/A"}},null,null,null,null,null,null,null,null,null,null,null,{"$error":"#DIV/0!"},0,0,null,"","","","","","","","","","",null,null,null,null,null,null,null,null,null,null,null,null,null,null,null,null,null,"ZWO"]
[null,null,null,null,null,null,null,null,null,null,null,null,null,null,{"$f":"VLOOKUP(N826,Tabel10[[korte omschrijving]:[MCC3_CODE]],2,0)","v":{"$error":"#N/A"}},{"$f":"VLOOKUP(N826,Tabel10[],3,0)","v":{"$error":"#N/A"}},null,null,null,null,null,null,null,null,null,null,null,{"$error":"#DIV/0!"},0,0,null,"","","","","","","","","","",null,null,null,null,null,null,null,null,null,null,null,null,null,null,null,null,null,"ZWO"]
[null,null,null,null,null,null,null,null,null,null,null,null,null,null,{"$f":"VLOOKUP(N827,Tabel10[[korte omschrijving]:[MCC3_CODE]],2,0)","v":{"$error":"#N/A"}},{"$f":"VLOOKUP(N827,Tabel10[],3,0)","v":{"$error":"#N/A"}},null,null,null,null,null,null,null,null,null,null,null,{"$error":"#DIV/0!"},0,0,null,"","","","","","","","","","",null,null,null,null,null,null,null,null,null,null,null,null,null,null,null,null,null,"ZWO"]
[null,null,null,null,null,null,null,null,null,null,null,null,null,null,{"$f":"VLOOKUP(N828,Tabel10[[korte omschrijving]:[MCC3_CODE]],2,0)","v":{"$error":"#N/A"}},{"$f":"VLOOKUP(N828,Tabel10[],3,0)","v":{"$error":"#N/A"}},null,null,null,null,0,null,null,null,null,null,null,{"$error":"#DIV/0!"},0,0,null,"","","","","","","","","","",null,null,null,null,null,null,null,null,null,null,null,null,null,null,null,null,null,"ZWO"]
[null,null,null,null,null,null,null,null,null,null,null,null,null,null,{"$f":"VLOOKUP(N829,Tabel10[[korte omschrijving]:[MCC3_CODE]],2,0)","v":{"$error":"#N/A"}},{"$f":"VLOOKUP(N829,Tabel10[],3,0)","v":{"$error":"#N/A"}},null,null,null,null,null,null,null,null,null,null,null,{"$error":"#DIV/0!"},0,0,null,"","","","","","","","","","",null,null,null,null,null,null,null,null,null,null,null,null,null,null,null,null,null,"ZWO"]
[null,null,null,null,null,null,null,null,null,null,null,null,null,null,{"$f":"VLOOKUP(N830,Tabel10[[korte omschrijving]:[MCC3_CODE]],2,0)","v":{"$error":"#N/A"}},{"$f":"VLOOKUP(N830,Tabel10[],3,0)","v":{"$error":"#N/A"}},null,null,null,null,null,null,null,null,null,null,null,{"$error":"#DIV/0!"},0,0,null,"","","","","","","","","","",null,null,null,null,null,null,null,null,null,null,null,null,null,null,null,null,null,"ZWO"]
[null,null,null,null,null,null,null,null,null,null,null,null,null,null,{"$f":"VLOOKUP(N831,Tabel10[[korte omschrijving]:[MCC3_CODE]],2,0)","v":{"$error":"#N/A"}},{"$f":"VLOOKUP(N831,Tabel10[],3,0)","v":{"$error":"#N/A"}},null,null,null,null,null,null,null,null,null,null,null,{"$error":"#DIV/0!"},0,0,null,"","","","","","","","","","",null,null,null,null,null,null,null,null,null,null,null,null,null,null,null,null,null,"ZWO"]
[null,null,null,null,null,null,null,null,null,null,null,null,null,null,{"$f":"VLOOKUP(N832,Tabel10[[korte omschrijving]:[MCC3_CODE]],2,0)","v":{"$error":"#N/A"}},{"$f":"VLOOKUP(N832,Tabel10[],3,0)","v":{"$error":"#N/A"}},null,null,null,null,null,null,null,null,null,null,null,{"$error":"#DIV/0!"},0,0,null,"","","","","","","","","","",null,null,null,null,null,null,null,null,null,null,null,null,null,null,null,null,null,"ZWO"]
[null,null,null,null,null,null,null,null,null,null,null,null,null,null,{"$f":"VLOOKUP(N833,Tabel10[[korte omschrijving]:[MCC3_CODE]],2,0)","v":{"$error":"#N/A"}},{"$f":"VLOOKUP(N833,Tabel10[],3,0)","v":{"$error":"#N/A"}},null,null,null,null,null,null,null,null,null,null,null,{"$error":"#DIV/0!"},0,0,null,"","","","","","","","","","",null,null,null,null,null,null,null,null,null,null,null,null,null,null,null,null,null,"ZWO"]
[null,null,null,null,null,null,null,null,null,null,null,null,null,null,{"$f":"VLOOKUP(N834,Tabel10[[korte omschrijving]:[MCC3_CODE]],2,0)","v":{"$error":"#N/A"}},{"$f":"VLOOKUP(N834,Tabel10[],3,0)","v":{"$error":"#N/A"}},null,null,null,null,{"$f":"SUM(T834:T839)","v":0},null,null,null,null,null,null,{"$error":"#DIV/0!"},0,0,null,"","","","","","","","","","",null,null,null,null,null,null,null,null,null,null,null,null,null,null,null,null,null,"ZWO"]
[null,null,null,null,null,null,null,null,null,null,null,null,null,null,{"$f":"VLOOKUP(N835,Tabel10[[korte omschrijving]:[MCC3_CODE]],2,0)","v":{"$error":"#N/A"}},{"$f":"VLOOKUP(N835,Tabel10[],3,0)","v":{"$error":"#N/A"}},null,null,null,null,null,null,null,null,null,null,null,{"$error":"#DIV/0!"},0,0,null,"","","","","","","","","","",null,null,null,null,null,null,null,null,null,null,null,null,null,null,null,null,null,"ZWO"]
[null,null,null,null,null,null,null,null,null,null,null,null,null,null,{"$f":"VLOOKUP(N836,Tabel10[[korte omschrijving]:[MCC3_CODE]],2,0)","v":{"$error":"#N/A"}},{"$f":"VLOOKUP(N836,Tabel10[],3,0)","v":{"$error":"#N/A"}},null,null,null,null,null,null,null,null,null,null,null,{"$error":"#DIV/0!"},0,0,null,"","","","","","","","","","",null,null,null,null,null,null,null,null,null,null,null,null,null,null,null,null,null,"ZWO"]
[null,null,null,null,null,null,null,null,null,null,null,null,null,null,{"$f":"VLOOKUP(N837,Tabel10[[korte omschrijving]:[MCC3_CODE]],2,0)","v":{"$error":"#N/A"}},{"$f":"VLOOKUP(N837,Tabel10[],3,0)","v":{"$error":"#N/A"}},null,null,null,null,null,null,null,null,null,null,null,{"$error":"#DIV/0!"},0,0,null,"","","","","","","","","","",null,null,null,null,null,null,null,null,null,null,null,null,null,null,null,null,null,"ZWO"]
[null,null,null,null,null,null,null,null,null,null,null,null,null,null,{"$f":"VLOOKUP(N838,Tabel10[[korte omschrijving]:[MCC3_CODE]],2,0)","v":{"$error":"#N/A"}},{"$f":"VLOOKUP(N838,Tabel10[],3,0)","v":{"$error":"#N/A"}},null,null,null,null,null,null,null,null,null,null,null,{"$error":"#DIV/0!"},0,0,null,"","","","","","","","","","",null,null,null,null,null,null,null,null,null,null,null,null,null,null,null,null,null,"ZWO"]
[null,null,null,null,null,null,null,null,null,null,null,null,null,null,{"$f":"VLOOKUP(N839,Tabel10[[korte omschrijving]:[MCC3_CODE]],2,0)","v":{"$error":"#N/A"}},{"$f":"VLOOKUP(N839,Tabel10[],3,0)","v":{"$error":"#N/A"}},null,null,null,null,null,null,null,null,null,null,null,{"$error":"#DIV/0!"},0,0,null,"","","","","","","","","","",null,null,null,null,null,null,null,null,null,null,null,null,null,null,null,null,null,"ZWO"]
[null,null,null,null,null,null,null,null,null,null,null,null,null,null,{"$f":"VLOOKUP(N840,Tabel10[[korte omschrijving]:[MCC3_CODE]],2,0)","v":{"$error":"#N/A"}},{"$f":"VLOOKUP(N840,Tabel10[],3,0)","v":{"$error":"#N/A"}},null,null,null,null,0,null,null,null,null,null,null,{"$error":"#DIV/0!"},0,0,null,"","","","","","","","","","",null,null,null,null,null,null,null,null,null,null,null,null,null,null,null,null,null,"ZWO"]
[null,null,null,null,null,null,null,null,null,null,null,null,null,null,{"$f":"VLOOKUP(N841,Tabel10[[korte omschrijving]:[MCC3_CODE]],2,0)","v":{"$error":"#N/A"}},{"$f":"VLOOKUP(N841,Tabel10[],3,0)","v":{"$error":"#N/A"}},null,null,null,null,null,null,null,null,null,null,null,{"$error":"#DIV/0!"},0,0,null,"","","","","","","","","","",null,null,null,null,null,null,null,null,null,null,null,null,null,null,null,null,null,"ZWO"]
[null,null,null,null,null,null,null,null,null,null,null,null,null,null,{"$f":"VLOOKUP(N842,Tabel10[[korte omschrijving]:[MCC3_CODE]],2,0)","v":{"$error":"#N/A"}},{"$f":"VLOOKUP(N842,Tabel10[],3,0)","v":{"$error":"#N/A"}},null,null,null,null,null,null,null,null,null,null,null,{"$error":"#DIV/0!"},0,0,null,"","","","","","","","","","",null,null,null,null,null,null,null,null,null,null,null,null,null,null,null,null,null,"ZWO"]
[null,null,null,null,null,null,null,null,null,null,null,null,null,null,{"$f":"VLOOKUP(N843,Tabel10[[korte omschrijving]:[MCC3_CODE]],2,0)","v":{"$error":"#N/A"}},{"$f":"VLOOKUP(N843,Tabel10[],3,0)","v":{"$error":"#N/A"}},null,null,null,null,null,null,null,null,null,null,null,{"$error":"#DIV/0!"},0,0,null,"","","","","","","","","","",null,null,null,null,null,null,null,null,null,null,null,null,null,null,null,null,null,"ZWO"]
[null,null,null,null,null,null,null,null,null,null,null,null,null,null,{"$f":"VLOOKUP(N844,Tabel10[[korte omschrijving]:[MCC3_CODE]],2,0)","v":{"$error":"#N/A"}},{"$f":"VLOOKUP(N844,Tabel10[],3,0)","v":{"$error":"#N/A"}},null,null,null,null,null,null,null,null,null,null,null,{"$error":"#DIV/0!"},0,0,null,"","","","","","","","","","",null,null,null,null,null,null,null,null,null,null,null,null,null,null,null,null,null,"ZWO"]
[null,null,null,null,null,null,null,null,null,null,null,null,null,null,{"$f":"VLOOKUP(N845,Tabel10[[korte omschrijving]:[MCC3_CODE]],2,0)","v":{"$error":"#N/A"}},{"$f":"VLOOKUP(N845,Tabel10[],3,0)","v":{"$error":"#N/A"}},null,null,null,null,null,null,null,null,null,null,null,{"$error":"#DIV/0!"},0,0,null,"","","","","","","","","","",null,null,null,null,null,null,null,null,null,null,null,null,null,null,null,null,null,"ZWO"]
[null,null,null,null,null,null,null,null,null,null,null,null,null,null,{"$f":"VLOOKUP(N846,Tabel10[[korte omschrijving]:[MCC3_CODE]],2,0)","v":{"$error":"#N/A"}},{"$f":"VLOOKUP(N846,Tabel10[],3,0)","v":{"$error":"#N/A"}},null,null,null,null,0,null,null,null,null,null,null,{"$error":"#DIV/0!"},0,0,null,"","","","","","","","","","",null,null,null,null,null,null,null,null,null,null,null,null,null,null,null,null,null,"ZWO"]
[null,null,null,null,null,null,null,null,null,null,null,null,null,null,{"$f":"VLOOKUP(N847,Tabel10[[korte omschrijving]:[MCC3_CODE]],2,0)","v":{"$error":"#N/A"}},{"$f":"VLOOKUP(N847,Tabel10[],3,0)","v":{"$error":"#N/A"}},null,null,null,null,null,null,null,null,null,null,null,{"$error":"#DIV/0!"},0,0,null,"","","","","","","","","","",null,null,null,null,null,null,null,null,null,null,null,null,null,null,null,null,null,"ZWO"]
[null,null,null,null,null,null,null,null,null,null,null,null,null,null,{"$f":"VLOOKUP(N848,Tabel10[[korte omschrijving]:[MCC3_CODE]],2,0)","v":{"$error":"#N/A"}},{"$f":"VLOOKUP(N848,Tabel10[],3,0)","v":{"$error":"#N/A"}},null,null,null,null,null,null,null,null,null,null,null,{"$error":"#DIV/0!"},0,0,null,"","","","","","","","","","",null,null,null,null,null,null,null,null,null,null,null,null,null,null,null,null,null,"ZWO"]
[null,null,null,null,null,null,null,null,null,null,null,null,null,null,{"$f":"VLOOKUP(N849,Tabel10[[korte omschrijving]:[MCC3_CODE]],2,0)","v":{"$error":"#N/A"}},{"$f":"VLOOKUP(N849,Tabel10[],3,0)","v":{"$error":"#N/A"}},null,null,null,null,null,null,null,null,null,null,null,{"$error":"#DIV/0!"},0,0,null,"","","","","","","","","","",null,null,null,null,null,null,null,null,null,null,null,null,null,null,null,null,null,"ZWO"]
[null,null,null,null,null,null,null,null,null,null,null,null,null,null,{"$f":"VLOOKUP(N850,Tabel10[[korte omschrijving]:[MCC3_CODE]],2,0)","v":{"$error":"#N/A"}},{"$f":"VLOOKUP(N850,Tabel10[],3,0)","v":{"$error":"#N/A"}},null,null,null,null,null,null,null,null,null,null,null,{"$error":"#DIV/0!"},0,0,null,"","","","","","","","","","",null,null,null,null,null,null,null,null,null,null,null,null,null,null,null,null,null,"ZWO"]
[null,null,null,null,null,null,null,null,null,null,null,null,null,null,{"$f":"VLOOKUP(N851,Tabel10[[korte omschrijving]:[MCC3_CODE]],2,0)","v":{"$error":"#N/A"}},{"$f":"VLOOKUP(N851,Tabel10[],3,0)","v":{"$error":"#N/A"}},null,null,null,null,null,null,null,null,null,null,null,{"$error":"#DIV/0!"},0,0,null,"","","","","","","","","","",null,null,null,null,null,null,null,null,null,null,null,null,null,null,null,null,null,"ZWO"]
[null,null,null,null,null,null,null,null,null,null,null,null,null,null,{"$f":"VLOOKUP(N852,Tabel10[[korte omschrijving]:[MCC3_CODE]],2,0)","v":{"$error":"#N/A"}},{"$f":"VLOOKUP(N852,Tabel10[],3,0)","v":{"$error":"#N/A"}},null,null,null,null,0,null,null,null,null,null,null,{"$error":"#DIV/0!"},0,0,null,"","","","","","","","","","",null,null,null,null,null,null,null,null,null,null,null,null,null,null,null,null,null,"ZWO"]
[null,null,null,null,null,null,null,null,null,null,null,null,null,null,{"$f":"VLOOKUP(N853,Tabel10[[korte omschrijving]:[MCC3_CODE]],2,0)","v":{"$error":"#N/A"}},{"$f":"VLOOKUP(N853,Tabel10[],3,0)","v":{"$error":"#N/A"}},null,null,null,null,null,null,null,null,null,null,null,{"$error":"#DIV/0!"},0,0,null,"","","","","","","","","","",null,null,null,null,null,null,null,null,null,null,null,null,null,null,null,null,null,"ZWO"]
[null,null,null,null,null,null,null,null,null,null,null,null,null,null,{"$f":"VLOOKUP(N854,Tabel10[[korte omschrijving]:[MCC3_CODE]],2,0)","v":{"$error":"#N/A"}},{"$f":"VLOOKUP(N854,Tabel10[],3,0)","v":{"$error":"#N/A"}},null,null,null,null,null,null,null,null,null,null,null,{"$error":"#DIV/0!"},0,0,null,"","","","","","","","","","",null,null,null,null,null,null,null,null,null,null,null,null,null,null,null,null,null,"ZWO"]
[null,null,null,null,null,null,null,null,null,null,null,null,null,null,{"$f":"VLOOKUP(N855,Tabel10[[korte omschrijving]:[MCC3_CODE]],2,0)","v":{"$error":"#N/A"}},{"$f":"VLOOKUP(N855,Tabel10[],3,0)","v":{"$error":"#N/A"}},null,null,null,null,null,null,null,null,null,null,null,{"$error":"#DIV/0!"},0,0,null,"","","","","","","","","","",null,null,null,null,null,null,null,null,null,null,null,null,null,null,null,null,null,"ZWO"]
[null,null,null,null,null,null,null,null,null,null,null,null,null,null,{"$f":"VLOOKUP(N856,Tabel10[[korte omschrijving]:[MCC3_CODE]],2,0)","v":{"$error":"#N/A"}},{"$f":"VLOOKUP(N856,Tabel10[],3,0)","v":{"$error":"#N/A"}},null,null,null,null,null,null,null,null,null,null,null,{"$error":"#DIV/0!"},0,0,null,"","","","","","","","","","",null,null,null,null,null,null,null,null,null,null,null,null,null,null,null,null,null,"ZWO"]
[null,null,null,null,null,null,null,null,null,null,null,null,null,null,{"$f":"VLOOKUP(N857,Tabel10[[korte omschrijving]:[MCC3_CODE]],2,0)","v":{"$error":"#N/A"}},{"$f":"VLOOKUP(N857,Tabel10[],3,0)","v":{"$error":"#N/A"}},null,null,null,null,null,null,null,null,null,null,null,{"$error":"#DIV/0!"},0,0,null,"","","","","","","","","","",null,null,null,null,null,null,null,null,null,null,null,null,null,null,null,null,null,"ZWO"]
[null,null,null,null,null,null,null,null,null,null,null,null,null,null,{"$f":"VLOOKUP(N858,Tabel10[[korte omschrijving]:[MCC3_CODE]],2,0)","v":{"$error":"#N/A"}},{"$f":"VLOOKUP(N858,Tabel10[],3,0)","v":{"$error":"#N/A"}},null,null,null,null,0,null,null,null,null,null,null,{"$error":"#DIV/0!"},0,0,null,"","","","","","","","","","",null,null,null,null,null,null,null,null,null,null,null,null,null,null,null,null,null,"ZWO"]
[null,null,null,null,null,null,null,null,null,null,null,null,null,null,{"$f":"VLOOKUP(N859,Tabel10[[korte omschrijving]:[MCC3_CODE]],2,0)","v":{"$error":"#N/A"}},{"$f":"VLOOKUP(N859,Tabel10[],3,0)","v":{"$error":"#N/A"}},null,null,null,null,null,null,null,null,null,null,null,{"$error":"#DIV/0!"},0,0,null,"","","","","","","","","","",null,null,null,null,null,null,null,null,null,null,null,null,null,null,null,null,null,"ZWO"]
[null,null,null,null,null,null,null,null,null,null,null,null,null,null,{"$f":"VLOOKUP(N860,Tabel10[[korte omschrijving]:[MCC3_CODE]],2,0)","v":{"$error":"#N/A"}},{"$f":"VLOOKUP(N860,Tabel10[],3,0)","v":{"$error":"#N/A"}},null,null,null,null,null,null,null,null,null,null,null,{"$error":"#DIV/0!"},0,0,null,"","","","","","","","","","",null,null,null,null,null,null,null,null,null,null,null,null,null,null,null,null,null,"ZWO"]
[null,null,null,null,null,null,null,null,null,null,null,null,null,null,{"$f":"VLOOKUP(N861,Tabel10[[korte omschrijving]:[MCC3_CODE]],2,0)","v":{"$error":"#N/A"}},{"$f":"VLOOKUP(N861,Tabel10[],3,0)","v":{"$error":"#N/A"}},null,null,null,null,null,null,null,null,null,null,null,{"$error":"#DIV/0!"},0,0,null,"","","","","","","","","","",null,null,null,null,null,null,null,null,null,null,null,null,null,null,null,null,null,"ZWO"]
[null,null,null,null,null,null,null,null,null,null,null,null,null,null,{"$f":"VLOOKUP(N862,Tabel10[[korte omschrijving]:[MCC3_CODE]],2,0)","v":{"$error":"#N/A"}},{"$f":"VLOOKUP(N862,Tabel10[],3,0)","v":{"$error":"#N/A"}},null,null,null,null,null,null,null,null,null,null,null,{"$error":"#DIV/0!"},0,0,null,"","","","","","","","","","",null,null,null,null,null,null,null,null,null,null,null,null,null,null,null,null,null,"ZWO"]
[null,null,null,null,null,null,null,null,null,null,null,null,null,null,{"$f":"VLOOKUP(N863,Tabel10[[korte omschrijving]:[MCC3_CODE]],2,0)","v":{"$error":"#N/A"}},{"$f":"VLOOKUP(N863,Tabel10[],3,0)","v":{"$error":"#N/A"}},null,null,null,null,null,null,null,null,null,null,null,{"$error":"#DIV/0!"},0,0,null,"","","","","","","","","","",null,null,null,null,null,null,null,null,null,null,null,null,null,null,null,null,null,"ZWO"]
[null,null,null,null,null,null,null,null,null,null,null,null,null,null,{"$f":"VLOOKUP(N864,Tabel10[[korte omschrijving]:[MCC3_CODE]],2,0)","v":{"$error":"#N/A"}},{"$f":"VLOOKUP(N864,Tabel10[],3,0)","v":{"$error":"#N/A"}},null,null,null,null,0,null,null,null,null,null,null,{"$error":"#DIV/0!"},0,0,null,"","","","","","","","","","",null,null,null,null,null,null,null,null,null,null,null,null,null,null,null,null,null,"ZWO"]
[null,null,null,null,null,null,null,null,null,null,null,null,null,null,{"$f":"VLOOKUP(N865,Tabel10[[korte omschrijving]:[MCC3_CODE]],2,0)","v":{"$error":"#N/A"}},{"$f":"VLOOKUP(N865,Tabel10[],3,0)","v":{"$error":"#N/A"}},null,null,null,null,null,null,null,null,null,null,null,{"$error":"#DIV/0!"},0,0,null,"","","","","","","","","","",null,null,null,null,null,null,null,null,null,null,null,null,null,null,null,null,null,"ZWO"]
[null,null,null,null,null,null,null,null,null,null,null,null,null,null,{"$f":"VLOOKUP(N866,Tabel10[[korte omschrijving]:[MCC3_CODE]],2,0)","v":{"$error":"#N/A"}},{"$f":"VLOOKUP(N866,Tabel10[],3,0)","v":{"$error":"#N/A"}},null,null,null,null,null,null,null,null,null,null,null,{"$error":"#DIV/0!"},0,0,null,"","","","","","","","","","",null,null,null,null,null,null,null,null,null,null,null,null,null,null,null,null,null,"ZWO"]
[null,null,null,null,null,null,null,null,null,null,null,null,null,null,{"$f":"VLOOKUP(N867,Tabel10[[korte omschrijving]:[MCC3_CODE]],2,0)","v":{"$error":"#N/A"}},{"$f":"VLOOKUP(N867,Tabel10[],3,0)","v":{"$error":"#N/A"}},null,null,null,null,null,null,null,null,null,null,null,{"$error":"#DIV/0!"},0,0,null,"","","","","","","","","","",null,null,null,null,null,null,null,null,null,null,null,null,null,null,null,null,null,"ZWO"]
[null,null,null,null,null,null,null,null,null,null,null,null,null,null,{"$f":"VLOOKUP(N868,Tabel10[[korte omschrijving]:[MCC3_CODE]],2,0)","v":{"$error":"#N/A"}},{"$f":"VLOOKUP(N868,Tabel10[],3,0)","v":{"$error":"#N/A"}},null,null,null,null,null,null,null,null,null,null,null,{"$error":"#DIV/0!"},0,0,null,"","","","","","","","","","",null,null,null,null,null,null,null,null,null,null,null,null,null,null,null,null,null,"ZWO"]
[null,null,null,null,null,null,null,null,null,null,null,null,null,null,{"$f":"VLOOKUP(N869,Tabel10[[korte omschrijving]:[MCC3_CODE]],2,0)","v":{"$error":"#N/A"}},{"$f":"VLOOKUP(N869,Tabel10[],3,0)","v":{"$error":"#N/A"}},null,null,null,null,null,null,null,null,null,null,null,{"$error":"#DIV/0!"},0,0,null,"","","","","","","","","","",null,null,null,null,null,null,null,null,null,null,null,null,null,null,null,null,null,"ZWO"]
[null,null,null,null,null,null,null,null,null,null,null,null,null,null,{"$f":"VLOOKUP(N870,Tabel10[[korte omschrijving]:[MCC3_CODE]],2,0)","v":{"$error":"#N/A"}},{"$f":"VLOOKUP(N870,Tabel10[],3,0)","v":{"$error":"#N/A"}},null,null,null,null,0,null,null,null,null,null,null,{"$error":"#DIV/0!"},0,0,null,"","","","","","","","","","",null,null,null,null,null,null,null,null,null,null,null,null,null,null,null,null,null,"ZWO"]
[null,null,null,null,null,null,null,null,null,null,null,null,null,null,{"$f":"VLOOKUP(N871,Tabel10[[korte omschrijving]:[MCC3_CODE]],2,0)","v":{"$error":"#N/A"}},{"$f":"VLOOKUP(N871,Tabel10[],3,0)","v":{"$error":"#N/A"}},null,null,null,null,null,null,null,null,null,null,null,{"$error":"#DIV/0!"},0,0,null,"","","","","","","","","","",null,null,null,null,null,null,null,null,null,null,null,null,null,null,null,null,null,"ZWO"]
[null,null,null,null,null,null,null,null,null,null,null,null,null,null,{"$f":"VLOOKUP(N872,Tabel10[[korte omschrijving]:[MCC3_CODE]],2,0)","v":{"$error":"#N/A"}},{"$f":"VLOOKUP(N872,Tabel10[],3,0)","v":{"$error":"#N/A"}},null,null,null,null,null,null,null,null,null,null,null,{"$error":"#DIV/0!"},0,0,null,"","","","","","","","","","",null,null,null,null,null,null,null,null,null,null,null,null,null,null,null,null,null,"ZWO"]
[null,null,null,null,null,null,null,null,null,null,null,null,null,null,{"$f":"VLOOKUP(N873,Tabel10[[korte omschrijving]:[MCC3_CODE]],2,0)","v":{"$error":"#N/A"}},{"$f":"VLOOKUP(N873,Tabel10[],3,0)","v":{"$error":"#N/A"}},null,null,null,null,null,null,null,null,null,null,null,{"$error":"#DIV/0!"},0,0,null,"","","","","","","","","","",null,null,null,null,null,null,null,null,null,null,null,null,null,null,null,null,null,"ZWO"]
[null,null,null,null,null,null,null,null,null,null,null,null,null,null,{"$f":"VLOOKUP(N874,Tabel10[[korte omschrijving]:[MCC3_CODE]],2,0)","v":{"$error":"#N/A"}},{"$f":"VLOOKUP(N874,Tabel10[],3,0)","v":{"$error":"#N/A"}},null,null,null,null,null,null,null,null,null,null,null,{"$error":"#DIV/0!"},0,0,null,"","","","","","","","","","",null,null,null,null,null,null,null,null,null,null,null,null,null,null,null,null,null,"ZWO"]
[null,null,null,null,null,null,null,null,null,null,null,null,null,null,{"$f":"VLOOKUP(N875,Tabel10[[korte omschrijving]:[MCC3_CODE]],2,0)","v":{"$error":"#N/A"}},{"$f":"VLOOKUP(N875,Tabel10[],3,0)","v":{"$error":"#N/A"}},null,null,null,null,null,null,null,null,null,null,null,{"$error":"#DIV/0!"},0,0,null,"","","","","","","","","","",null,null,null,null,null,null,null,null,null,null,null,null,null,null,null,null,null,"ZWO"]
[null,null,null,null,null,null,null,null,null,null,null,null,null,null,{"$f":"VLOOKUP(N876,Tabel10[[korte omschrijving]:[MCC3_CODE]],2,0)","v":{"$error":"#N/A"}},{"$f":"VLOOKUP(N876,Tabel10[],3,0)","v":{"$error":"#N/A"}},null,null,null,null,0,null,null,null,null,null,null,{"$error":"#DIV/0!"},0,0,null,"","","","","","","","","","",null,null,null,null,null,null,null,null,null,null,null,null,null,null,null,null,null,"ZWO"]
[null,null,null,null,null,null,null,null,null,null,null,null,null,null,{"$f":"VLOOKUP(N877,Tabel10[[korte omschrijving]:[MCC3_CODE]],2,0)","v":{"$error":"#N/A"}},{"$f":"VLOOKUP(N877,Tabel10[],3,0)","v":{"$error":"#N/A"}},null,null,null,null,null,null,null,null,null,null,null,{"$error":"#DIV/0!"},0,0,null,"","","","","","","","","","",null,null,null,null,null,null,null,null,null,null,null,null,null,null,null,null,null,"ZWO"]
[null,null,null,null,null,null,null,null,null,null,null,null,null,null,{"$f":"VLOOKUP(N878,Tabel10[[korte omschrijving]:[MCC3_CODE]],2,0)","v":{"$error":"#N/A"}},{"$f":"VLOOKUP(N878,Tabel10[],3,0)","v":{"$error":"#N/A"}},null,null,null,null,null,null,null,null,null,null,null,{"$error":"#DIV/0!"},0,0,null,"","","","","","","","","","",null,null,null,null,null,null,null,null,null,null,null,null,null,null,null,null,null,"ZWO"]
[null,null,null,null,null,null,null,null,null,null,null,null,null,null,{"$f":"VLOOKUP(N879,Tabel10[[korte omschrijving]:[MCC3_CODE]],2,0)","v":{"$error":"#N/A"}},{"$f":"VLOOKUP(N879,Tabel10[],3,0)","v":{"$error":"#N/A"}},null,null,null,null,null,null,null,null,null,null,null,{"$error":"#DIV/0!"},0,0,null,"","","","","","","","","","",null,null,null,null,null,null,null,null,null,null,null,null,null,null,null,null,null,"ZWO"]
[null,null,null,null,null,null,null,null,null,null,null,null,null,null,{"$f":"VLOOKUP(N880,Tabel10[[korte omschrijving]:[MCC3_CODE]],2,0)","v":{"$error":"#N/A"}},{"$f":"VLOOKUP(N880,Tabel10[],3,0)","v":{"$error":"#N/A"}},null,null,null,null,null,null,null,null,null,null,null,{"$error":"#DIV/0!"},0,0,null,"","","","","","","","","","",null,null,null,null,null,null,null,null,null,null,null,null,null,null,null,null,null,"ZWO"]
[null,null,null,null,null,null,null,null,null,null,null,null,null,null,{"$f":"VLOOKUP(N881,Tabel10[[korte omschrijving]:[MCC3_CODE]],2,0)","v":{"$error":"#N/A"}},{"$f":"VLOOKUP(N881,Tabel10[],3,0)","v":{"$error":"#N/A"}},null,null,null,null,null,null,null,null,null,null,null,{"$error":"#DIV/0!"},0,0,null,"","","","","","","","","","",null,null,null,null,null,null,null,null,null,null,null,null,null,null,null,null,null,"ZWO"]
[null,null,null,null,null,null,null,null,null,null,null,null,null,null,{"$f":"VLOOKUP(N882,Tabel10[[korte omschrijving]:[MCC3_CODE]],2,0)","v":{"$error":"#N/A"}},{"$f":"VLOOKUP(N882,Tabel10[],3,0)","v":{"$error":"#N/A"}},null,null,null,null,0,null,null,null,null,null,null,{"$error":"#DIV/0!"},0,0,null,"","","","","","","","","","",null,null,null,null,null,null,null,null,null,null,null,null,null,null,null,null,null,"ZWO"]
[null,null,null,null,null,null,null,null,null,null,null,null,null,null,{"$f":"VLOOKUP(N883,Tabel10[[korte omschrijving]:[MCC3_CODE]],2,0)","v":{"$error":"#N/A"}},{"$f":"VLOOKUP(N883,Tabel10[],3,0)","v":{"$error":"#N/A"}},null,null,null,null,null,null,null,null,null,null,null,{"$error":"#DIV/0!"},0,0,null,"","","","","","","","","","",null,null,null,null,null,null,null,null,null,null,null,null,null,null,null,null,null,"ZWO"]
[null,null,null,null,null,null,null,null,null,null,null,null,null,null,{"$f":"VLOOKUP(N884,Tabel10[[korte omschrijving]:[MCC3_CODE]],2,0)","v":{"$error":"#N/A"}},{"$f":"VLOOKUP(N884,Tabel10[],3,0)","v":{"$error":"#N/A"}},null,null,null,null,null,null,null,null,null,null,null,{"$error":"#DIV/0!"},0,0,null,"","","","","","","","","","",null,null,null,null,null,null,null,null,null,null,null,null,null,null,null,null,null,"ZWO"]
[null,null,null,null,null,null,null,null,null,null,null,null,null,null,{"$f":"VLOOKUP(N885,Tabel10[[korte omschrijving]:[MCC3_CODE]],2,0)","v":{"$error":"#N/A"}},{"$f":"VLOOKUP(N885,Tabel10[],3,0)","v":{"$error":"#N/A"}},null,null,null,null,null,null,null,null,null,null,null,{"$error":"#DIV/0!"},0,0,null,"","","","","","","","","","",null,null,null,null,null,null,null,null,null,null,null,null,null,null,null,null,null,"ZWO"]
[null,null,null,null,null,null,null,null,null,null,null,null,null,null,{"$f":"VLOOKUP(N886,Tabel10[[korte omschrijving]:[MCC3_CODE]],2,0)","v":{"$error":"#N/A"}},{"$f":"VLOOKUP(N886,Tabel10[],3,0)","v":{"$error":"#N/A"}},null,null,null,null,null,null,null,null,null,null,null,{"$error":"#DIV/0!"},0,0,null,"","","","","","","","","","",null,null,null,null,null,null,null,null,null,null,null,null,null,null,null,null,null,"ZWO"]
[null,null,null,null,null,null,null,null,null,null,null,null,null,null,{"$f":"VLOOKUP(N887,Tabel10[[korte omschrijving]:[MCC3_CODE]],2,0)","v":{"$error":"#N/A"}},{"$f":"VLOOKUP(N887,Tabel10[],3,0)","v":{"$error":"#N/A"}},null,null,null,null,null,null,null,null,null,null,null,{"$error":"#DIV/0!"},0,0,null,"","","","","","","","","","",null,null,null,null,null,null,null,null,null,null,null,null,null,null,null,null,null,"ZWO"]
[null,null,null,null,null,null,null,null,null,null,null,null,null,null,{"$f":"VLOOKUP(N888,Tabel10[[korte omschrijving]:[MCC3_CODE]],2,0)","v":{"$error":"#N/A"}},{"$f":"VLOOKUP(N888,Tabel10[],3,0)","v":{"$error":"#N/A"}},null,null,null,null,0,null,null,null,null,null,null,{"$f":"AA888/Y888","v":{"$error":"#DIV/0!"}},{"$f":"T888*Y888","v":0},{"$f":"T888*AA888","v":0},null,{"$f":"IF(AE888 <> \"\",\n    IF(ISNUMBER(VALUE(LEFT(AE888, FIND(\"%\", AE888)-1))),\n        VALUE(LEFT(AE888, FIND(\"%\", AE888)-1)),\n        \"Invalid format\"),\n    \"\")","v":""},{"$f":"IF(AE888 <> \"\",\n    IF(ISNUMBER(VALUE(LEFT(AE888, FIND(\"%\", AE888)-1))) * ISNUMBER(FIND(\"%\", AE888 & \"wol\")) > 0,\n        TRIM(MID(AE888, FIND(\"%\", AE888)+1, FIND(\"/\", AE888 & \"/\")-FIND(\"%\", AE888)-1)),\n        \"Invalid format\"),\n    \"\")","v":""},{"$f":"IF(AE888 <> \"\",\n    IF(ISNUMBER(VALUE(MID(AE888, FIND(\"/\", AE888) + 1, FIND(\"%\", AE888, FIND(\"/\", AE888)) - FIND(\"/\", AE888) - 1))),\n        VALUE(MID(AE888, FIND(\"/\", AE888) + 1, FIND(\"%\", AE888, FIND(\"/\", AE888)) - FIND(\"/\", AE888) - 1)),\n        \"\"),\n    \"\")","v":""},{"$f":"IF(AE888 <> \"\",\n    IFERROR(TRIM(MID(AE888, FIND(\"%\", AE888, FIND(\"/\", AE888)+1)+2,\n        IFERROR(FIND(\"/\", AE888 & \"/\", FIND(\"/\", AE888)+1)-FIND(\"%\", AE888, FIND(\"/\", AE888)+1)-2, LEN(AE888)-FIND(\"%\", AE888, FIND(\"/\", AE888)+1)-1))),\n        \"\"),\n    \"\")","v":""},{"$f":"IF(AE888 <> \"\",\n    IF(ISNUMBER(VALUE(MID(AE888, FIND(\"/\", AE888, FIND(\"/\", AE888)+1) + 1, FIND(\"%\", AE888, FIND(\"/\", AE888, FIND(\"/\", AE888)+1)) - FIND(\"/\", AE888, FIND(\"/\", AE888)+1) - 1))),\n        VALUE(MID(AE888, FIND(\"/\", AE888, FIND(\"/\", AE888)+1) + 1, FIND(\"%\", AE888, FIND(\"/\", AE888, FIND(\"/\", AE888)+1)) - FIND(\"/\", AE888, FIND(\"/\", AE888)+1) - 1)),\n        \"\"),\n    \"\")","v":""},{"$f":"IF(AE888 <> \"\",\n    IFERROR(\n        TRIM(MID(AE888,\n            FIND(\"%\", AE888, FIND(\"%\", AE888, FIND(\"%\", AE888)+1)+1)+1,\n            FIND(\"/\", AE888 & \"/\", FIND(\"%\", AE888, FIND(\"%\", AE888, FIND(\"%\", AE888)+1)+1))-FIND(\"%\", AE888, FIND(\"%\", AE888, FIND(\"%\", AE888)+1)+1)-1)\n        ),\n        \"\"\n    ),\n    \"\"\n)","v":""},{"$f":"IF(AE888 <> \"\",\n    IF(ISNUMBER(VALUE(MID(AE888, FIND(\"/\", AE888, FIND(\"/\", AE888, FIND(\"/\", AE888)+1)+1) + 1, FIND(\"%\", AE888, FIND(\"/\", AE888, FIND(\"/\", AE888, FIND(\"/\", AE888)+1)+1)) - FIND(\"/\", AE888, FIND(\"/\", AE888, FIND(\"/\", AE888)+1)+1) - 1))),\n        VALUE(MID(AE888, FIND(\"/\", AE888, FIND(\"/\", AE888, FIND(\"/\", AE888)+1)+1) + 1, FIND(\"%\", AE888, FIND(\"/\", AE888, FIND(\"/\", AE888, FIND(\"/\", AE888)+1)+1)) - FIND(\"/\", AE888, FIND(\"/\", AE888, FIND(\"/\", AE888)+1)+1) - 1)),\n        \"\"),\n    \"\")","v":""},{"$f":"IF(AE888 <> \"\",\n    IFERROR(TRIM(MID(AE888, FIND(\"%\", AE888, FIND(\"/\", AE888, FIND(\"/\", AE888, FIND(\"/\", AE888)+1)+1)+1)+2,\n        IFERROR(FIND(\"/\", AE888, FIND(\"/\", AE888, FIND(\"/\", AE888, FIND(\"/\", AE888)+1)+1)+1)-FIND(\"%\", AE888, FIND(\"/\", AE888, FIND(\"/\", AE888, FIND(\"/\", AE888)+1)+1)+1)-2, LEN(AE888)-FIND(\"%\", AE888, FIND(\"/\", AE888, FIND(\"/\", AE888, FIND(\"/\", AE888)+1)+1)+1)-1))),\n        \"\"),\n    \"\")","v":""},{"$f":"IF(AE888 <> \"\",\n    IF(ISNUMBER(VALUE(MID(AE888, FIND(\"/\", AE888, FIND(\"/\", AE888, FIND(\"/\", AE888, FIND(\"/\", AE888)+1)+1)+1) + 1, FIND(\"%\", AE888, FIND(\"/\", AE888, FIND(\"/\", AE888, FIND(\"/\", AE888, FIND(\"/\", AE888)+1)+1)+1)) - FIND(\"/\", AE888, FIND(\"/\", AE888, FIND(\"/\", AE888, FIND(\"/\", AE888)+1)+1)+1) - 1))),\n        VALUE(MID(AE888, FIND(\"/\", AE888, FIND(\"/\", AE888, FIND(\"/\", AE888, FIND(\"/\", AE888)+1)+1)+1) + 1, FIND(\"%\", AE888, FIND(\"/\", AE888, FIND(\"/\", AE888, FIND(\"/\", AE888, FIND(\"/\", AE888)+1)+1)+1)) - FIND(\"/\", AE888, FIND(\"/\", AE888, FIND(\"/\", AE888, FIND(\"/\", AE888)+1)+1)+1) - 1)),\n        \"\"),\n    \"\")","v":""},{"$f":"IF(AE888 = \"\", \"\",\n    IFERROR(TRIM(\n        MID(\n            AE888,\n            FIND(\"%\", AE888, FIND(\"/\", AE888, FIND(\"/\", AE888, FIND(\"/\", AE888, FIND(\"/\", AE888)+1)+1)+1)+1) + 1,\n            FIND(\"/\", AE888 & \"/\", FIND(\"%\", AE888, FIND(\"/\", AE888, FIND(\"/\", AE888, FIND(\"/\", AE888, FIND(\"/\", AE888)+1)+1)+1)+1)) -\n            FIND(\"%\", AE888, FIND(\"/\", AE888, FIND(\"/\", AE888, FIND(\"/\", AE888, FIND(\"/\", AE888)+1)+1)+1)+1) - 1\n        )\n    ),\n    \"\")\n)","v":""},null,null,null,null,null,null,null,null,null,null,null,null,null,null,null,null,null,"ZWO"]
[null,null,null,null,null,null,null,null,null,null,null,null,null,null,{"$f":"VLOOKUP(N889,Tabel10[[korte omschrijving]:[MCC3_CODE]],2,0)","v":{"$error":"#N/A"}},{"$f":"VLOOKUP(N889,Tabel10[],3,0)","v":{"$error":"#N/A"}},null,null,null,null,null,null,null,null,null,null,null,{"$error":"#DIV/0!"},0,0,null,"","","","","","","","","","",null,null,null,null,null,null,null,null,null,null,null,null,null,null,null,null,null,"ZWO"]
[null,null,null,null,null,null,null,null,null,null,null,null,null,null,{"$f":"VLOOKUP(N890,Tabel10[[korte omschrijving]:[MCC3_CODE]],2,0)","v":{"$error":"#N/A"}},{"$f":"VLOOKUP(N890,Tabel10[],3,0)","v":{"$error":"#N/A"}},null,null,null,null,null,null,null,null,null,null,null,{"$error":"#DIV/0!"},0,0,null,"","","","","","","","","","",null,null,null,null,null,null,null,null,null,null,null,null,null,null,null,null,null,"ZWO"]
[null,null,null,null,null,null,null,null,null,null,null,null,null,null,{"$f":"VLOOKUP(N891,Tabel10[[korte omschrijving]:[MCC3_CODE]],2,0)","v":{"$error":"#N/A"}},{"$f":"VLOOKUP(N891,Tabel10[],3,0)","v":{"$error":"#N/A"}},null,null,null,null,null,null,null,null,null,null,null,{"$error":"#DIV/0!"},0,0,null,"","","","","","","","","","",null,null,null,null,null,null,null,null,null,null,null,null,null,null,null,null,null,"ZWO"]
[null,null,null,null,null,null,null,null,null,null,null,null,null,null,{"$f":"VLOOKUP(N892,Tabel10[[korte omschrijving]:[MCC3_CODE]],2,0)","v":{"$error":"#N/A"}},{"$f":"VLOOKUP(N892,Tabel10[],3,0)","v":{"$error":"#N/A"}},null,null,null,null,null,null,null,null,null,null,null,{"$error":"#DIV/0!"},0,0,null,"","","","","","","","","","",null,null,null,null,null,null,null,null,null,null,null,null,null,null,null,null,null,"ZWO"]
[null,null,null,null,null,null,null,null,null,null,null,null,null,null,{"$f":"VLOOKUP(N893,Tabel10[[korte omschrijving]:[MCC3_CODE]],2,0)","v":{"$error":"#N/A"}},{"$f":"VLOOKUP(N893,Tabel10[],3,0)","v":{"$error":"#N/A"}},null,null,null,null,null,null,null,null,null,null,null,{"$error":"#DIV/0!"},0,0,null,"","","","","","","","","","",null,null,null,null,null,null,null,null,null,null,null,null,null,null,null,null,null,"ZWO"]
[null,null,null,null,null,null,null,null,null,null,null,null,null,null,{"$f":"VLOOKUP(N894,Tabel10[[korte omschrijving]:[MCC3_CODE]],2,0)","v":{"$error":"#N/A"}},{"$f":"VLOOKUP(N894,Tabel10[],3,0)","v":{"$error":"#N/A"}},null,null,null,null,0,null,null,null,null,null,null,{"$error":"#DIV/0!"},0,0,null,"","","","","","","","","","",null,null,null,null,null,null,null,null,null,null,null,null,null,null,null,null,null,"ZWO"]
[null,null,null,null,null,null,null,null,null,null,null,null,null,null,{"$f":"VLOOKUP(N895,Tabel10[[korte omschrijving]:[MCC3_CODE]],2,0)","v":{"$error":"#N/A"}},{"$f":"VLOOKUP(N895,Tabel10[],3,0)","v":{"$error":"#N/A"}},null,null,null,null,null,null,null,null,null,null,null,{"$error":"#DIV/0!"},0,0,null,"","","","","","","","","","",null,null,null,null,null,null,null,null,null,null,null,null,null,null,null,null,null,"ZWO"]
[null,null,null,null,null,null,null,null,null,null,null,null,null,null,{"$f":"VLOOKUP(N896,Tabel10[[korte omschrijving]:[MCC3_CODE]],2,0)","v":{"$error":"#N/A"}},{"$f":"VLOOKUP(N896,Tabel10[],3,0)","v":{"$error":"#N/A"}},null,null,null,null,null,null,null,null,null,null,null,{"$error":"#DIV/0!"},0,0,null,"","","","","","","","","","",null,null,null,null,null,null,null,null,null,null,null,null,null,null,null,null,null,"ZWO"]
[null,null,null,null,null,null,null,null,null,null,null,null,null,null,{"$f":"VLOOKUP(N897,Tabel10[[korte omschrijving]:[MCC3_CODE]],2,0)","v":{"$error":"#N/A"}},{"$f":"VLOOKUP(N897,Tabel10[],3,0)","v":{"$error":"#N/A"}},null,null,null,null,null,null,null,null,null,null,null,{"$error":"#DIV/0!"},0,0,null,"","","","","","","","","","",null,null,null,null,null,null,null,null,null,null,null,null,null,null,null,null,null,"ZWO"]
[null,null,null,null,null,null,null,null,null,null,null,null,null,null,{"$f":"VLOOKUP(N898,Tabel10[[korte omschrijving]:[MCC3_CODE]],2,0)","v":{"$error":"#N/A"}},{"$f":"VLOOKUP(N898,Tabel10[],3,0)","v":{"$error":"#N/A"}},null,null,null,null,null,null,null,null,null,null,null,{"$error":"#DIV/0!"},0,0,null,"","","","","","","","","","",null,null,null,null,null,null,null,null,null,null,null,null,null,null,null,null,null,"ZWO"]
[null,null,null,null,null,null,null,null,null,null,null,null,null,null,{"$f":"VLOOKUP(N899,Tabel10[[korte omschrijving]:[MCC3_CODE]],2,0)","v":{"$error":"#N/A"}},{"$f":"VLOOKUP(N899,Tabel10[],3,0)","v":{"$error":"#N/A"}},null,null,null,null,null,null,null,null,null,null,null,{"$error":"#DIV/0!"},0,0,null,"","","","","","","","","","",null,null,null,null,null,null,null,null,null,null,null,null,null,null,null,null,null,"ZWO"]
[null,null,null,null,null,null,null,null,null,null,null,null,null,null,{"$f":"VLOOKUP(N900,Tabel10[[korte omschrijving]:[MCC3_CODE]],2,0)","v":{"$error":"#N/A"}},{"$f":"VLOOKUP(N900,Tabel10[],3,0)","v":{"$error":"#N/A"}},null,null,null,null,{"$f":"SUM(T900:T905)","v":0},null,null,null,null,null,null,{"$error":"#DIV/0!"},0,0,null,"","","","","","","","","","",null,null,null,null,null,null,null,null,null,null,null,null,null,null,null,null,null,"ZWO"]
[null,null,null,null,null,null,null,null,null,null,null,null,null,null,{"$f":"VLOOKUP(N901,Tabel10[[korte omschrijving]:[MCC3_CODE]],2,0)","v":{"$error":"#N/A"}},{"$f":"VLOOKUP(N901,Tabel10[],3,0)","v":{"$error":"#N/A"}},null,null,null,null,null,null,null,null,null,null,null,{"$error":"#DIV/0!"},0,0,null,"","","","","","","","","","",null,null,null,null,null,null,null,null,null,null,null,null,null,null,null,null,null,"ZWO"]
[null,null,null,null,null,null,null,null,null,null,null,null,null,null,{"$f":"VLOOKUP(N902,Tabel10[[korte omschrijving]:[MCC3_CODE]],2,0)","v":{"$error":"#N/A"}},{"$f":"VLOOKUP(N902,Tabel10[],3,0)","v":{"$error":"#N/A"}},null,null,null,null,null,null,null,null,null,null,null,{"$error":"#DIV/0!"},0,0,null,"","","","","","","","","","",null,null,null,null,null,null,null,null,null,null,null,null,null,null,null,null,null,"ZWO"]
[null,null,null,null,null,null,null,null,null,null,null,null,null,null,{"$f":"VLOOKUP(N903,Tabel10[[korte omschrijving]:[MCC3_CODE]],2,0)","v":{"$error":"#N/A"}},{"$f":"VLOOKUP(N903,Tabel10[],3,0)","v":{"$error":"#N/A"}},null,null,null,null,null,null,null,null,null,null,null,{"$error":"#DIV/0!"},0,0,null,"","","","","","","","","","",null,null,null,null,null,null,null,null,null,null,null,null,null,null,null,null,null,"ZWO"]
[null,null,null,null,null,null,null,null,null,null,null,null,null,null,{"$f":"VLOOKUP(N904,Tabel10[[korte omschrijving]:[MCC3_CODE]],2,0)","v":{"$error":"#N/A"}},{"$f":"VLOOKUP(N904,Tabel10[],3,0)","v":{"$error":"#N/A"}},null,null,null,null,null,null,null,null,null,null,null,{"$error":"#DIV/0!"},0,0,null,"","","","","","","","","","",null,null,null,null,null,null,null,null,null,null,null,null,null,null,null,null,null,"ZWO"]
[null,null,null,null,null,null,null,null,null,null,null,null,null,null,{"$f":"VLOOKUP(N905,Tabel10[[korte omschrijving]:[MCC3_CODE]],2,0)","v":{"$error":"#N/A"}},{"$f":"VLOOKUP(N905,Tabel10[],3,0)","v":{"$error":"#N/A"}},null,null,null,null,null,null,null,null,null,null,null,{"$error":"#DIV/0!"},0,0,null,"","","","","","","","","","",null,null,null,null,null,null,null,null,null,null,null,null,null,null,null,null,null,"ZWO"]
[null,null,null,null,null,null,null,null,null,null,null,null,null,null,{"$f":"VLOOKUP(N906,Tabel10[[korte omschrijving]:[MCC3_CODE]],2,0)","v":{"$error":"#N/A"}},{"$f":"VLOOKUP(N906,Tabel10[],3,0)","v":{"$error":"#N/A"}},null,null,null,null,0,null,null,null,null,null,null,{"$error":"#DIV/0!"},0,0,null,"","","","","","","","","","",null,null,null,null,null,null,null,null,null,null,null,null,null,null,null,null,null,"ZWO"]
[null,null,null,null,null,null,null,null,null,null,null,null,null,null,{"$f":"VLOOKUP(N907,Tabel10[[korte omschrijving]:[MCC3_CODE]],2,0)","v":{"$error":"#N/A"}},{"$f":"VLOOKUP(N907,Tabel10[],3,0)","v":{"$error":"#N/A"}},null,null,null,null,null,null,null,null,null,null,null,{"$error":"#DIV/0!"},0,0,null,"","","","","","","","","","",null,null,null,null,null,null,null,null,null,null,null,null,null,null,null,null,null,"ZWO"]
[null,null,null,null,null,null,null,null,null,null,null,null,null,null,{"$f":"VLOOKUP(N908,Tabel10[[korte omschrijving]:[MCC3_CODE]],2,0)","v":{"$error":"#N/A"}},{"$f":"VLOOKUP(N908,Tabel10[],3,0)","v":{"$error":"#N/A"}},null,null,null,null,null,null,null,null,null,null,null,{"$error":"#DIV/0!"},0,0,null,"","","","","","","","","","",null,null,null,null,null,null,null,null,null,null,null,null,null,null,null,null,null,"ZWO"]
[null,null,null,null,null,null,null,null,null,null,null,null,null,null,{"$f":"VLOOKUP(N909,Tabel10[[korte omschrijving]:[MCC3_CODE]],2,0)","v":{"$error":"#N/A"}},{"$f":"VLOOKUP(N909,Tabel10[],3,0)","v":{"$error":"#N/A"}},null,null,null,null,null,null,null,null,null,null,null,{"$error":"#DIV/0!"},0,0,null,"","","","","","","","","","",null,null,null,null,null,null,null,null,null,null,null,null,null,null,null,null,null,"ZWO"]
[null,null,null,null,null,null,null,null,null,null,null,null,null,null,{"$f":"VLOOKUP(N910,Tabel10[[korte omschrijving]:[MCC3_CODE]],2,0)","v":{"$error":"#N/A"}},{"$f":"VLOOKUP(N910,Tabel10[],3,0)","v":{"$error":"#N/A"}},null,null,null,null,null,null,null,null,null,null,null,{"$error":"#DIV/0!"},0,0,null,"","","","","","","","","","",null,null,null,null,null,null,null,null,null,null,null,null,null,null,null,null,null,"ZWO"]
[null,null,null,null,null,null,null,null,null,null,null,null,null,null,{"$f":"VLOOKUP(N911,Tabel10[[korte omschrijving]:[MCC3_CODE]],2,0)","v":{"$error":"#N/A"}},{"$f":"VLOOKUP(N911,Tabel10[],3,0)","v":{"$error":"#N/A"}},null,null,null,null,null,null,null,null,null,null,null,{"$error":"#DIV/0!"},0,0,null,"","","","","","","","","","",null,null,null,null,null,null,null,null,null,null,null,null,null,null,null,null,null,"ZWO"]
[null,null,null,null,null,null,null,null,null,null,null,null,null,null,{"$f":"VLOOKUP(N912,Tabel10[[korte omschrijving]:[MCC3_CODE]],2,0)","v":{"$error":"#N/A"}},{"$f":"VLOOKUP(N912,Tabel10[],3,0)","v":{"$error":"#N/A"}},null,null,null,null,0,null,null,null,null,null,null,{"$error":"#DIV/0!"},0,0,null,"","","","","","","","","","",null,null,null,null,null,null,null,null,null,null,null,null,null,null,null,null,null,"ZWO"]
[null,null,null,null,null,null,null,null,null,null,null,null,null,null,{"$f":"VLOOKUP(N913,Tabel10[[korte omschrijving]:[MCC3_CODE]],2,0)","v":{"$error":"#N/A"}},{"$f":"VLOOKUP(N913,Tabel10[],3,0)","v":{"$error":"#N/A"}},null,null,null,null,null,null,null,null,null,null,null,{"$error":"#DIV/0!"},0,0,null,"","","","","","","","","","",null,null,null,null,null,null,null,null,null,null,null,null,null,null,null,null,null,"ZWO"]
[null,null,null,null,null,null,null,null,null,null,null,null,null,null,{"$f":"VLOOKUP(N914,Tabel10[[korte omschrijving]:[MCC3_CODE]],2,0)","v":{"$error":"#N/A"}},{"$f":"VLOOKUP(N914,Tabel10[],3,0)","v":{"$error":"#N/A"}},null,null,null,null,null,null,null,null,null,null,null,{"$error":"#DIV/0!"},0,0,null,"","","","","","","","","","",null,null,null,null,null,null,null,null,null,null,null,null,null,null,null,null,null,"ZWO"]
[null,null,null,null,null,null,null,null,null,null,null,null,null,null,{"$f":"VLOOKUP(N915,Tabel10[[korte omschrijving]:[MCC3_CODE]],2,0)","v":{"$error":"#N/A"}},{"$f":"VLOOKUP(N915,Tabel10[],3,0)","v":{"$error":"#N/A"}},null,null,null,null,null,null,null,null,null,null,null,{"$error":"#DIV/0!"},0,0,null,"","","","","","","","","","",null,null,null,null,null,null,null,null,null,null,null,null,null,null,null,null,null,"ZWO"]
[null,null,null,null,null,null,null,null,null,null,null,null,null,null,{"$f":"VLOOKUP(N916,Tabel10[[korte omschrijving]:[MCC3_CODE]],2,0)","v":{"$error":"#N/A"}},{"$f":"VLOOKUP(N916,Tabel10[],3,0)","v":{"$error":"#N/A"}},null,null,null,null,null,null,null,null,null,null,null,{"$error":"#DIV/0!"},0,0,null,"","","","","","","","","","",null,null,null,null,null,null,null,null,null,null,null,null,null,null,null,null,null,"ZWO"]
[null,null,null,null,null,null,null,null,null,null,null,null,null,null,{"$f":"VLOOKUP(N917,Tabel10[[korte omschrijving]:[MCC3_CODE]],2,0)","v":{"$error":"#N/A"}},{"$f":"VLOOKUP(N917,Tabel10[],3,0)","v":{"$error":"#N/A"}},null,null,null,null,null,null,null,null,null,null,null,{"$error":"#DIV/0!"},0,0,null,"","","","","","","","","","",null,null,null,null,null,null,null,null,null,null,null,null,null,null,null,null,null,"ZWO"]
[null,null,null,null,null,null,null,null,null,null,null,null,null,null,{"$f":"VLOOKUP(N918,Tabel10[[korte omschrijving]:[MCC3_CODE]],2,0)","v":{"$error":"#N/A"}},{"$f":"VLOOKUP(N918,Tabel10[],3,0)","v":{"$error":"#N/A"}},null,null,null,null,0,null,null,null,null,null,null,{"$error":"#DIV/0!"},0,0,null,"","","","","","","","","","",null,null,null,null,null,null,null,null,null,null,null,null,null,null,null,null,null,"ZWO"]
[null,null,null,null,null,null,null,null,null,null,null,null,null,null,{"$f":"VLOOKUP(N919,Tabel10[[korte omschrijving]:[MCC3_CODE]],2,0)","v":{"$error":"#N/A"}},{"$f":"VLOOKUP(N919,Tabel10[],3,0)","v":{"$error":"#N/A"}},null,null,null,null,null,null,null,null,null,null,null,{"$error":"#DIV/0!"},0,0,null,"","","","","","","","","","",null,null,null,null,null,null,null,null,null,null,null,null,null,null,null,null,null,"ZWO"]
[null,null,null,null,null,null,null,null,null,null,null,null,null,null,{"$f":"VLOOKUP(N920,Tabel10[[korte omschrijving]:[MCC3_CODE]],2,0)","v":{"$error":"#N/A"}},{"$f":"VLOOKUP(N920,Tabel10[],3,0)","v":{"$error":"#N/A"}},null,null,null,null,null,null,null,null,null,null,null,{"$error":"#DIV/0!"},0,0,null,"","","","","","","","","","",null,null,null,null,null,null,null,null,null,null,null,null,null,null,null,null,null,"ZWO"]
[null,null,null,null,null,null,null,null,null,null,null,null,null,null,{"$f":"VLOOKUP(N921,Tabel10[[korte omschrijving]:[MCC3_CODE]],2,0)","v":{"$error":"#N/A"}},{"$f":"VLOOKUP(N921,Tabel10[],3,0)","v":{"$error":"#N/A"}},null,null,null,null,null,null,null,null,null,null,null,{"$error":"#DIV/0!"},0,0,null,"","","","","","","","","","",null,null,null,null,null,null,null,null,null,null,null,null,null,null,null,null,null,"ZWO"]
[null,null,null,null,null,null,null,null,null,null,null,null,null,null,{"$f":"VLOOKUP(N922,Tabel10[[korte omschrijving]:[MCC3_CODE]],2,0)","v":{"$error":"#N/A"}},{"$f":"VLOOKUP(N922,Tabel10[],3,0)","v":{"$error":"#N/A"}},null,null,null,null,null,null,null,null,null,null,null,{"$error":"#DIV/0!"},0,0,null,"","","","","","","","","","",null,null,null,null,null,null,null,null,null,null,null,null,null,null,null,null,null,"ZWO"]
[null,null,null,null,null,null,null,null,null,null,null,null,null,null,{"$f":"VLOOKUP(N923,Tabel10[[korte omschrijving]:[MCC3_CODE]],2,0)","v":{"$error":"#N/A"}},{"$f":"VLOOKUP(N923,Tabel10[],3,0)","v":{"$error":"#N/A"}},null,null,null,null,null,null,null,null,null,null,null,{"$error":"#DIV/0!"},0,0,null,"","","","","","","","","","",null,null,null,null,null,null,null,null,null,null,null,null,null,null,null,null,null,"ZWO"]
[null,null,null,null,null,null,null,null,null,null,null,null,null,null,{"$f":"VLOOKUP(N924,Tabel10[[korte omschrijving]:[MCC3_CODE]],2,0)","v":{"$error":"#N/A"}},{"$f":"VLOOKUP(N924,Tabel10[],3,0)","v":{"$error":"#N/A"}},null,null,null,null,0,null,null,null,null,null,null,{"$error":"#DIV/0!"},0,0,null,"","","","","","","","","","",null,null,null,null,null,null,null,null,null,null,null,null,null,null,null,null,null,"ZWO"]
[null,null,null,null,null,null,null,null,null,null,null,null,null,null,{"$f":"VLOOKUP(N925,Tabel10[[korte omschrijving]:[MCC3_CODE]],2,0)","v":{"$error":"#N/A"}},{"$f":"VLOOKUP(N925,Tabel10[],3,0)","v":{"$error":"#N/A"}},null,null,null,null,null,null,null,null,null,null,null,{"$error":"#DIV/0!"},0,0,null,"","","","","","","","","","",null,null,null,null,null,null,null,null,null,null,null,null,null,null,null,null,null,"ZWO"]
[null,null,null,null,null,null,null,null,null,null,null,null,null,null,{"$f":"VLOOKUP(N926,Tabel10[[korte omschrijving]:[MCC3_CODE]],2,0)","v":{"$error":"#N/A"}},{"$f":"VLOOKUP(N926,Tabel10[],3,0)","v":{"$error":"#N/A"}},null,null,null,null,null,null,null,null,null,null,null,{"$error":"#DIV/0!"},0,0,null,"","","","","","","","","","",null,null,null,null,null,null,null,null,null,null,null,null,null,null,null,null,null,"ZWO"]
[null,null,null,null,null,null,null,null,null,null,null,null,null,null,{"$f":"VLOOKUP(N927,Tabel10[[korte omschrijving]:[MCC3_CODE]],2,0)","v":{"$error":"#N/A"}},{"$f":"VLOOKUP(N927,Tabel10[],3,0)","v":{"$error":"#N/A"}},null,null,null,null,null,null,null,null,null,null,null,{"$error":"#DIV/0!"},0,0,null,"","","","","","","","","","",null,null,null,null,null,null,null,null,null,null,null,null,null,null,null,null,null,"ZWO"]
[null,null,null,null,null,null,null,null,null,null,null,null,null,null,{"$f":"VLOOKUP(N928,Tabel10[[korte omschrijving]:[MCC3_CODE]],2,0)","v":{"$error":"#N/A"}},{"$f":"VLOOKUP(N928,Tabel10[],3,0)","v":{"$error":"#N/A"}},null,null,null,null,null,null,null,null,null,null,null,{"$error":"#DIV/0!"},0,0,null,"","","","","","","","","","",null,null,null,null,null,null,null,null,null,null,null,null,null,null,null,null,null,"ZWO"]
[null,null,null,null,null,null,null,null,null,null,null,null,null,null,{"$f":"VLOOKUP(N929,Tabel10[[korte omschrijving]:[MCC3_CODE]],2,0)","v":{"$error":"#N/A"}},{"$f":"VLOOKUP(N929,Tabel10[],3,0)","v":{"$error":"#N/A"}},null,null,null,null,null,null,null,null,null,null,null,{"$error":"#DIV/0!"},0,0,null,"","","","","","","","","","",null,null,null,null,null,null,null,null,null,null,null,null,null,null,null,null,null,"ZWO"]
[null,null,null,null,null,null,null,null,null,null,null,null,null,null,{"$f":"VLOOKUP(N930,Tabel10[[korte omschrijving]:[MCC3_CODE]],2,0)","v":{"$error":"#N/A"}},{"$f":"VLOOKUP(N930,Tabel10[],3,0)","v":{"$error":"#N/A"}},null,null,null,null,0,null,null,null,null,null,null,{"$error":"#DIV/0!"},0,0,null,"","","","","","","","","","",null,null,null,null,null,null,null,null,null,null,null,null,null,null,null,null,null,"ZWO"]
[null,null,null,null,null,null,null,null,null,null,null,null,null,null,{"$f":"VLOOKUP(N931,Tabel10[[korte omschrijving]:[MCC3_CODE]],2,0)","v":{"$error":"#N/A"}},{"$f":"VLOOKUP(N931,Tabel10[],3,0)","v":{"$error":"#N/A"}},null,null,null,null,null,null,null,null,null,null,null,{"$error":"#DIV/0!"},0,0,null,"","","","","","","","","","",null,null,null,null,null,null,null,null,null,null,null,null,null,null,null,null,null,"ZWO"]
[null,null,null,null,null,null,null,null,null,null,null,null,null,null,{"$f":"VLOOKUP(N932,Tabel10[[korte omschrijving]:[MCC3_CODE]],2,0)","v":{"$error":"#N/A"}},{"$f":"VLOOKUP(N932,Tabel10[],3,0)","v":{"$error":"#N/A"}},null,null,null,null,null,null,null,null,null,null,null,{"$error":"#DIV/0!"},0,0,null,"","","","","","","","","","",null,null,null,null,null,null,null,null,null,null,null,null,null,null,null,null,null,"ZWO"]
[null,null,null,null,null,null,null,null,null,null,null,null,null,null,{"$f":"VLOOKUP(N933,Tabel10[[korte omschrijving]:[MCC3_CODE]],2,0)","v":{"$error":"#N/A"}},{"$f":"VLOOKUP(N933,Tabel10[],3,0)","v":{"$error":"#N/A"}},null,null,null,null,null,null,null,null,null,null,null,{"$error":"#DIV/0!"},0,0,null,"","","","","","","","","","",null,null,null,null,null,null,null,null,null,null,null,null,null,null,null,null,null,"ZWO"]
[null,null,null,null,null,null,null,null,null,null,null,null,null,null,{"$f":"VLOOKUP(N934,Tabel10[[korte omschrijving]:[MCC3_CODE]],2,0)","v":{"$error":"#N/A"}},{"$f":"VLOOKUP(N934,Tabel10[],3,0)","v":{"$error":"#N/A"}},null,null,null,null,null,null,null,null,null,null,null,{"$error":"#DIV/0!"},0,0,null,"","","","","","","","","","",null,null,null,null,null,null,null,null,null,null,null,null,null,null,null,null,null,"ZWO"]
[null,null,null,null,null,null,null,null,null,null,null,null,null,null,{"$f":"VLOOKUP(N935,Tabel10[[korte omschrijving]:[MCC3_CODE]],2,0)","v":{"$error":"#N/A"}},{"$f":"VLOOKUP(N935,Tabel10[],3,0)","v":{"$error":"#N/A"}},null,null,null,null,null,null,null,null,null,null,null,{"$error":"#DIV/0!"},0,0,null,"","","","","","","","","","",null,null,null,null,null,null,null,null,null,null,null,null,null,null,null,null,null,"ZWO"]
[null,null,null,null,null,null,null,null,null,null,null,null,null,null,{"$f":"VLOOKUP(N936,Tabel10[[korte omschrijving]:[MCC3_CODE]],2,0)","v":{"$error":"#N/A"}},{"$f":"VLOOKUP(N936,Tabel10[],3,0)","v":{"$error":"#N/A"}},null,null,null,null,0,null,null,null,null,null,null,{"$error":"#DIV/0!"},0,0,null,"","","","","","","","","","",null,null,null,null,null,null,null,null,null,null,null,null,null,null,null,null,null,"ZWO"]
[null,null,null,null,null,null,null,null,null,null,null,null,null,null,{"$f":"VLOOKUP(N937,Tabel10[[korte omschrijving]:[MCC3_CODE]],2,0)","v":{"$error":"#N/A"}},{"$f":"VLOOKUP(N937,Tabel10[],3,0)","v":{"$error":"#N/A"}},null,null,null,null,null,null,null,null,null,null,null,{"$error":"#DIV/0!"},0,0,null,"","","","","","","","","","",null,null,null,null,null,null,null,null,null,null,null,null,null,null,null,null,null,"ZWO"]
[null,null,null,null,null,null,null,null,null,null,null,null,null,null,{"$f":"VLOOKUP(N938,Tabel10[[korte omschrijving]:[MCC3_CODE]],2,0)","v":{"$error":"#N/A"}},{"$f":"VLOOKUP(N938,Tabel10[],3,0)","v":{"$error":"#N/A"}},null,null,null,null,null,null,null,null,null,null,null,{"$error":"#DIV/0!"},0,0,null,"","","","","","","","","","",null,null,null,null,null,null,null,null,null,null,null,null,null,null,null,null,null,"ZWO"]
[null,null,null,null,null,null,null,null,null,null,null,null,null,null,{"$f":"VLOOKUP(N939,Tabel10[[korte omschrijving]:[MCC3_CODE]],2,0)","v":{"$error":"#N/A"}},{"$f":"VLOOKUP(N939,Tabel10[],3,0)","v":{"$error":"#N/A"}},null,null,null,null,null,null,null,null,null,null,null,{"$error":"#DIV/0!"},0,0,null,"","","","","","","","","","",null,null,null,null,null,null,null,null,null,null,null,null,null,null,null,null,null,"ZWO"]
[null,null,null,null,null,null,null,null,null,null,null,null,null,null,{"$f":"VLOOKUP(N940,Tabel10[[korte omschrijving]:[MCC3_CODE]],2,0)","v":{"$error":"#N/A"}},{"$f":"VLOOKUP(N940,Tabel10[],3,0)","v":{"$error":"#N/A"}},null,null,null,null,null,null,null,null,null,null,null,{"$error":"#DIV/0!"},0,0,null,"","","","","","","","","","",null,null,null,null,null,null,null,null,null,null,null,null,null,null,null,null,null,"ZWO"]
[null,null,null,null,null,null,null,null,null,null,null,null,null,null,{"$f":"VLOOKUP(N941,Tabel10[[korte omschrijving]:[MCC3_CODE]],2,0)","v":{"$error":"#N/A"}},{"$f":"VLOOKUP(N941,Tabel10[],3,0)","v":{"$error":"#N/A"}},null,null,null,null,null,null,null,null,null,null,null,{"$error":"#DIV/0!"},0,0,null,"","","","","","","","","","",null,null,null,null,null,null,null,null,null,null,null,null,null,null,null,null,null,"ZWO"]
[null,null,null,null,null,null,null,null,null,null,null,null,null,null,{"$f":"VLOOKUP(N942,Tabel10[[korte omschrijving]:[MCC3_CODE]],2,0)","v":{"$error":"#N/A"}},{"$f":"VLOOKUP(N942,Tabel10[],3,0)","v":{"$error":"#N/A"}},null,null,null,null,0,null,null,null,null,null,null,{"$error":"#DIV/0!"},0,0,null,"","","","","","","","","","",null,null,null,null,null,null,null,null,null,null,null,null,null,null,null,null,null,"ZWO"]
[null,null,null,null,null,null,null,null,null,null,null,null,null,null,{"$f":"VLOOKUP(N943,Tabel10[[korte omschrijving]:[MCC3_CODE]],2,0)","v":{"$error":"#N/A"}},{"$f":"VLOOKUP(N943,Tabel10[],3,0)","v":{"$error":"#N/A"}},null,null,null,null,null,null,null,null,null,null,null,{"$error":"#DIV/0!"},0,0,null,"","","","","","","","","","",null,null,null,null,null,null,null,null,null,null,null,null,null,null,null,null,null,"ZWO"]
[null,null,null,null,null,null,null,null,null,null,null,null,null,null,{"$f":"VLOOKUP(N944,Tabel10[[korte omschrijving]:[MCC3_CODE]],2,0)","v":{"$error":"#N/A"}},{"$f":"VLOOKUP(N944,Tabel10[],3,0)","v":{"$error":"#N/A"}},null,null,null,null,null,null,null,null,null,null,null,{"$error":"#DIV/0!"},0,0,null,"","","","","","","","","","",null,null,null,null,null,null,null,null,null,null,null,null,null,null,null,null,null,"ZWO"]
[null,null,null,null,null,null,null,null,null,null,null,null,null,null,{"$f":"VLOOKUP(N945,Tabel10[[korte omschrijving]:[MCC3_CODE]],2,0)","v":{"$error":"#N/A"}},{"$f":"VLOOKUP(N945,Tabel10[],3,0)","v":{"$error":"#N/A"}},null,null,null,null,null,null,null,null,null,null,null,{"$error":"#DIV/0!"},0,0,null,"","","","","","","","","","",null,null,null,null,null,null,null,null,null,null,null,null,null,null,null,null,null,"ZWO"]
[null,null,null,null,null,null,null,null,null,null,null,null,null,null,{"$f":"VLOOKUP(N946,Tabel10[[korte omschrijving]:[MCC3_CODE]],2,0)","v":{"$error":"#N/A"}},{"$f":"VLOOKUP(N946,Tabel10[],3,0)","v":{"$error":"#N/A"}},null,null,null,null,null,null,null,null,null,null,null,{"$error":"#DIV/0!"},0,0,null,"","","","","","","","","","",null,null,null,null,null,null,null,null,null,null,null,null,null,null,null,null,null,"ZWO"]
[null,null,null,null,null,null,null,null,null,null,null,null,null,null,{"$f":"VLOOKUP(N947,Tabel10[[korte omschrijving]:[MCC3_CODE]],2,0)","v":{"$error":"#N/A"}},{"$f":"VLOOKUP(N947,Tabel10[],3,0)","v":{"$error":"#N/A"}},null,null,null,null,null,null,null,null,null,null,null,{"$error":"#DIV/0!"},0,0,null,"","","","","","","","","","",null,null,null,null,null,null,null,null,null,null,null,null,null,null,null,null,null,"ZWO"]
[null,null,null,null,null,null,null,null,null,null,null,null,null,null,{"$f":"VLOOKUP(N948,Tabel10[[korte omschrijving]:[MCC3_CODE]],2,0)","v":{"$error":"#N/A"}},{"$f":"VLOOKUP(N948,Tabel10[],3,0)","v":{"$error":"#N/A"}},null,null,null,null,0,null,null,null,null,null,null,{"$error":"#DIV/0!"},0,0,null,"","","","","","","","","","",null,null,null,null,null,null,null,null,null,null,null,null,null,null,null,null,null,"ZWO"]
[null,null,null,null,null,null,null,null,null,null,null,null,null,null,{"$f":"VLOOKUP(N949,Tabel10[[korte omschrijving]:[MCC3_CODE]],2,0)","v":{"$error":"#N/A"}},{"$f":"VLOOKUP(N949,Tabel10[],3,0)","v":{"$error":"#N/A"}},null,null,null,null,null,null,null,null,null,null,null,{"$error":"#DIV/0!"},0,0,null,"","","","","","","","","","",null,null,null,null,null,null,null,null,null,null,null,null,null,null,null,null,null,"ZWO"]
[null,null,null,null,null,null,null,null,null,null,null,null,null,null,{"$f":"VLOOKUP(N950,Tabel10[[korte omschrijving]:[MCC3_CODE]],2,0)","v":{"$error":"#N/A"}},{"$f":"VLOOKUP(N950,Tabel10[],3,0)","v":{"$error":"#N/A"}},null,null,null,null,null,null,null,null,null,null,null,{"$error":"#DIV/0!"},0,0,null,"","","","","","","","","","",null,null,null,null,null,null,null,null,null,null,null,null,null,null,null,null,null,"ZWO"]
[null,null,null,null,null,null,null,null,null,null,null,null,null,null,{"$f":"VLOOKUP(N951,Tabel10[[korte omschrijving]:[MCC3_CODE]],2,0)","v":{"$error":"#N/A"}},{"$f":"VLOOKUP(N951,Tabel10[],3,0)","v":{"$error":"#N/A"}},null,null,null,null,null,null,null,null,null,null,null,{"$error":"#DIV/0!"},0,0,null,"","","","","","","","","","",null,null,null,null,null,null,null,null,null,null,null,null,null,null,null,null,null,"ZWO"]
[null,null,null,null,null,null,null,null,null,null,null,null,null,null,{"$f":"VLOOKUP(N952,Tabel10[[korte omschrijving]:[MCC3_CODE]],2,0)","v":{"$error":"#N/A"}},{"$f":"VLOOKUP(N952,Tabel10[],3,0)","v":{"$error":"#N/A"}},null,null,null,null,null,null,null,null,null,null,null,{"$f":"AA952/Y952","v":{"$error":"#DIV/0!"}},{"$f":"T952*Y952","v":0},{"$f":"T952*AA952","v":0},null,{"$f":"IF(AE952 <> \"\",\n    IF(ISNUMBER(VALUE(LEFT(AE952, FIND(\"%\", AE952)-1))),\n        VALUE(LEFT(AE952, FIND(\"%\", AE952)-1)),\n        \"Invalid format\"),\n    \"\")","v":""},{"$f":"IF(AE952 <> \"\",\n    IF(ISNUMBER(VALUE(LEFT(AE952, FIND(\"%\", AE952)-1))) * ISNUMBER(FIND(\"%\", AE952 & \"wol\")) > 0,\n        TRIM(MID(AE952, FIND(\"%\", AE952)+1, FIND(\"/\", AE952 & \"/\")-FIND(\"%\", AE952)-1)),\n        \"Invalid format\"),\n    \"\")","v":""},{"$f":"IF(AE952 <> \"\",\n    IF(ISNUMBER(VALUE(MID(AE952, FIND(\"/\", AE952) + 1, FIND(\"%\", AE952, FIND(\"/\", AE952)) - FIND(\"/\", AE952) - 1))),\n        VALUE(MID(AE952, FIND(\"/\", AE952) + 1, FIND(\"%\", AE952, FIND(\"/\", AE952)) - FIND(\"/\", AE952) - 1)),\n        \"\"),\n    \"\")","v":""},{"$f":"IF(AE952 <> \"\",\n    IFERROR(TRIM(MID(AE952, FIND(\"%\", AE952, FIND(\"/\", AE952)+1)+2,\n        IFERROR(FIND(\"/\", AE952 & \"/\", FIND(\"/\", AE952)+1)-FIND(\"%\", AE952, FIND(\"/\", AE952)+1)-2, LEN(AE952)-FIND(\"%\", AE952, FIND(\"/\", AE952)+1)-1))),\n        \"\"),\n    \"\")","v":""},{"$f":"IF(AE952 <> \"\",\n    IF(ISNUMBER(VALUE(MID(AE952, FIND(\"/\", AE952, FIND(\"/\", AE952)+1) + 1, FIND(\"%\", AE952, FIND(\"/\", AE952, FIND(\"/\", AE952)+1)) - FIND(\"/\", AE952, FIND(\"/\", AE952)+1) - 1))),\n        VALUE(MID(AE952, FIND(\"/\", AE952, FIND(\"/\", AE952)+1) + 1, FIND(\"%\", AE952, FIND(\"/\", AE952, FIND(\"/\", AE952)+1)) - FIND(\"/\", AE952, FIND(\"/\", AE952)+1) - 1)),\n        \"\"),\n    \"\")","v":""},{"$f":"IF(AE952 <> \"\",\n    IFERROR(\n        TRIM(MID(AE952,\n            FIND(\"%\", AE952, FIND(\"%\", AE952, FIND(\"%\", AE952)+1)+1)+1,\n            FIND(\"/\", AE952 & \"/\", FIND(\"%\", AE952, FIND(\"%\", AE952, FIND(\"%\", AE952)+1)+1))-FIND(\"%\", AE952, FIND(\"%\", AE952, FIND(\"%\", AE952)+1)+1)-1)\n        ),\n        \"\"\n    ),\n    \"\"\n)","v":""},{"$f":"IF(AE952 <> \"\",\n    IF(ISNUMBER(VALUE(MID(AE952, FIND(\"/\", AE952, FIND(\"/\", AE952, FIND(\"/\", AE952)+1)+1) + 1, FIND(\"%\", AE952, FIND(\"/\", AE952, FIND(\"/\", AE952, FIND(\"/\", AE952)+1)+1)) - FIND(\"/\", AE952, FIND(\"/\", AE952, FIND(\"/\", AE952)+1)+1) - 1))),\n        VALUE(MID(AE952, FIND(\"/\", AE952, FIND(\"/\", AE952, FIND(\"/\", AE952)+1)+1) + 1, FIND(\"%\", AE952, FIND(\"/\", AE952, FIND(\"/\", AE952, FIND(\"/\", AE952)+1)+1)) - FIND(\"/\", AE952, FIND(\"/\", AE952, FIND(\"/\", AE952)+1)+1) - 1)),\n        \"\"),\n    \"\")","v":""},{"$f":"IF(AE952 <> \"\",\n    IFERROR(TRIM(MID(AE952, FIND(\"%\", AE952, FIND(\"/\", AE952, FIND(\"/\", AE952, FIND(\"/\", AE952)+1)+1)+1)+2,\n        IFERROR(FIND(\"/\", AE952, FIND(\"/\", AE952, FIND(\"/\", AE952, FIND(\"/\", AE952)+1)+1)+1)-FIND(\"%\", AE952, FIND(\"/\", AE952, FIND(\"/\", AE952, FIND(\"/\", AE952)+1)+1)+1)-2, LEN(AE952)-FIND(\"%\", AE952, FIND(\"/\", AE952, FIND(\"/\", AE952, FIND(\"/\", AE952)+1)+1)+1)-1))),\n        \"\"),\n    \"\")","v":""},{"$f":"IF(AE952 <> \"\",\n    IF(ISNUMBER(VALUE(MID(AE952, FIND(\"/\", AE952, FIND(\"/\", AE952, FIND(\"/\", AE952, FIND(\"/\", AE952)+1)+1)+1) + 1, FIND(\"%\", AE952, FIND(\"/\", AE952, FIND(\"/\", AE952, FIND(\"/\", AE952, FIND(\"/\", AE952)+1)+1)+1)) - FIND(\"/\", AE952, FIND(\"/\", AE952, FIND(\"/\", AE952, FIND(\"/\", AE952)+1)+1)+1) - 1))),\n        VALUE(MID(AE952, FIND(\"/\", AE952, FIND(\"/\", AE952, FIND(\"/\", AE952, FIND(\"/\", AE952)+1)+1)+1) + 1, FIND(\"%\", AE952, FIND(\"/\", AE952, FIND(\"/\", AE952, FIND(\"/\", AE952, FIND(\"/\", AE952)+1)+1)+1)) - FIND(\"/\", AE952, FIND(\"/\", AE952, FIND(\"/\", AE952, FIND(\"/\", AE952)+1)+1)+1) - 1)),\n        \"\"),\n    \"\")","v":""},{"$f":"IF(AE952 = \"\", \"\",\n    IFERROR(TRIM(\n        MID(\n            AE952,\n            FIND(\"%\", AE952, FIND(\"/\", AE952, FIND(\"/\", AE952, FIND(\"/\", AE952, FIND(\"/\", AE952)+1)+1)+1)+1) + 1,\n            FIND(\"/\", AE952 & \"/\", FIND(\"%\", AE952, FIND(\"/\", AE952, FIND(\"/\", AE952, FIND(\"/\", AE952, FIND(\"/\", AE952)+1)+1)+1)+1)) -\n            FIND(\"%\", AE952, FIND(\"/\", AE952, FIND(\"/\", AE952, FIND(\"/\", AE952, FIND(\"/\", AE952)+1)+1)+1)+1) - 1\n        )\n    ),\n    \"\")\n)","v":""},null,null,null,null,null,null,null,null,null,null,null,null,null,null,null,null,null,"ZWO"]
[null,null,null,null,null,null,null,null,null,null,null,null,null,null,{"$f":"VLOOKUP(N953,Tabel10[[korte omschrijving]:[MCC3_CODE]],2,0)","v":{"$error":"#N/A"}},{"$f":"VLOOKUP(N953,Tabel10[],3,0)","v":{"$error":"#N/A"}},null,null,null,null,null,null,null,null,null,null,null,{"$error":"#DIV/0!"},0,0,null,"","","","","","","","","","",null,null,null,null,null,null,null,null,null,null,null,null,null,null,null,null,null,"ZWO"]
[null,null,null,null,null,null,null,null,null,null,null,null,null,null,{"$f":"VLOOKUP(N954,Tabel10[[korte omschrijving]:[MCC3_CODE]],2,0)","v":{"$error":"#N/A"}},{"$f":"VLOOKUP(N954,Tabel10[],3,0)","v":{"$error":"#N/A"}},null,null,null,null,0,null,null,null,null,null,null,{"$error":"#DIV/0!"},0,0,null,"","","","","","","","","","",null,null,null,null,null,null,null,null,null,null,null,null,null,null,null,null,null,"ZWO"]
[null,null,null,null,null,null,null,null,null,null,null,null,null,null,{"$f":"VLOOKUP(N955,Tabel10[[korte omschrijving]:[MCC3_CODE]],2,0)","v":{"$error":"#N/A"}},{"$f":"VLOOKUP(N955,Tabel10[],3,0)","v":{"$error":"#N/A"}},null,null,null,null,null,null,null,null,null,null,null,{"$error":"#DIV/0!"},0,0,null,"","","","","","","","","","",null,null,null,null,null,null,null,null,null,null,null,null,null,null,null,null,null,"ZWO"]
[null,null,null,null,null,null,null,null,null,null,null,null,null,null,{"$f":"VLOOKUP(N956,Tabel10[[korte omschrijving]:[MCC3_CODE]],2,0)","v":{"$error":"#N/A"}},{"$f":"VLOOKUP(N956,Tabel10[],3,0)","v":{"$error":"#N/A"}},null,null,null,null,null,null,null,null,null,null,null,{"$error":"#DIV/0!"},0,0,null,"","","","","","","","","","",null,null,null,null,null,null,null,null,null,null,null,null,null,null,null,null,null,"ZWO"]
[null,null,null,null,null,null,null,null,null,null,null,null,null,null,{"$f":"VLOOKUP(N957,Tabel10[[korte omschrijving]:[MCC3_CODE]],2,0)","v":{"$error":"#N/A"}},{"$f":"VLOOKUP(N957,Tabel10[],3,0)","v":{"$error":"#N/A"}},null,null,null,null,null,null,null,null,null,null,null,{"$error":"#DIV/0!"},0,0,null,"","","","","","","","","","",null,null,null,null,null,null,null,null,null,null,null,null,null,null,null,null,null,"ZWO"]
[null,null,null,null,null,null,null,null,null,null,null,null,null,null,{"$f":"VLOOKUP(N958,Tabel10[[korte omschrijving]:[MCC3_CODE]],2,0)","v":{"$error":"#N/A"}},{"$f":"VLOOKUP(N958,Tabel10[],3,0)","v":{"$error":"#N/A"}},null,null,null,null,null,null,null,null,null,null,null,{"$error":"#DIV/0!"},0,0,null,"","","","","","","","","","",null,null,null,null,null,null,null,null,null,null,null,null,null,null,null,null,null,"ZWO"]
[null,null,null,null,null,null,null,null,null,null,null,null,null,null,{"$f":"VLOOKUP(N959,Tabel10[[korte omschrijving]:[MCC3_CODE]],2,0)","v":{"$error":"#N/A"}},{"$f":"VLOOKUP(N959,Tabel10[],3,0)","v":{"$error":"#N/A"}},null,null,null,null,null,null,null,null,null,null,null,{"$error":"#DIV/0!"},0,0,null,"","","","","","","","","","",null,null,null,null,null,null,null,null,null,null,null,null,null,null,null,null,null,"ZWO"]
[null,null,null,null,null,null,null,null,null,null,null,null,null,null,{"$f":"VLOOKUP(N960,Tabel10[[korte omschrijving]:[MCC3_CODE]],2,0)","v":{"$error":"#N/A"}},{"$f":"VLOOKUP(N960,Tabel10[],3,0)","v":{"$error":"#N/A"}},null,null,null,null,0,null,null,null,null,null,null,{"$error":"#DIV/0!"},0,0,null,"","","","","","","","","","",null,null,null,null,null,null,null,null,null,null,null,null,null,null,null,null,null,"ZWO"]
[null,null,null,null,null,null,null,null,null,null,null,null,null,null,{"$f":"VLOOKUP(N961,Tabel10[[korte omschrijving]:[MCC3_CODE]],2,0)","v":{"$error":"#N/A"}},{"$f":"VLOOKUP(N961,Tabel10[],3,0)","v":{"$error":"#N/A"}},null,null,null,null,null,null,null,null,null,null,null,{"$error":"#DIV/0!"},0,0,null,"","","","","","","","","","",null,null,null,null,null,null,null,null,null,null,null,null,null,null,null,null,null,"ZWO"]
[null,null,null,null,null,null,null,null,null,null,null,null,null,null,{"$f":"VLOOKUP(N962,Tabel10[[korte omschrijving]:[MCC3_CODE]],2,0)","v":{"$error":"#N/A"}},{"$f":"VLOOKUP(N962,Tabel10[],3,0)","v":{"$error":"#N/A"}},null,null,null,null,null,null,null,null,null,null,null,{"$error":"#DIV/0!"},0,0,null,"","","","","","","","","","",null,null,null,null,null,null,null,null,null,null,null,null,null,null,null,null,null,"ZWO"]
[null,null,null,null,null,null,null,null,null,null,null,null,null,null,{"$f":"VLOOKUP(N963,Tabel10[[korte omschrijving]:[MCC3_CODE]],2,0)","v":{"$error":"#N/A"}},{"$f":"VLOOKUP(N963,Tabel10[],3,0)","v":{"$error":"#N/A"}},null,null,null,null,null,null,null,null,null,null,null,{"$error":"#DIV/0!"},0,0,null,"","","","","","","","","","",null,null,null,null,null,null,null,null,null,null,null,null,null,null,null,null,null,"ZWO"]
[null,null,null,null,null,null,null,null,null,null,null,null,null,null,{"$f":"VLOOKUP(N964,Tabel10[[korte omschrijving]:[MCC3_CODE]],2,0)","v":{"$error":"#N/A"}},{"$f":"VLOOKUP(N964,Tabel10[],3,0)","v":{"$error":"#N/A"}},null,null,null,null,null,null,null,null,null,null,null,{"$error":"#DIV/0!"},0,0,null,"","","","","","","","","","",null,null,null,null,null,null,null,null,null,null,null,null,null,null,null,null,null,"ZWO"]
[null,null,null,null,null,null,null,null,null,null,null,null,null,null,{"$f":"VLOOKUP(N965,Tabel10[[korte omschrijving]:[MCC3_CODE]],2,0)","v":{"$error":"#N/A"}},{"$f":"VLOOKUP(N965,Tabel10[],3,0)","v":{"$error":"#N/A"}},null,null,null,null,null,null,null,null,null,null,null,{"$error":"#DIV/0!"},0,0,null,"","","","","","","","","","",null,null,null,null,null,null,null,null,null,null,null,null,null,null,null,null,null,"ZWO"]
[null,null,null,null,null,null,null,null,null,null,null,null,null,null,{"$f":"VLOOKUP(N966,Tabel10[[korte omschrijving]:[MCC3_CODE]],2,0)","v":{"$error":"#N/A"}},{"$f":"VLOOKUP(N966,Tabel10[],3,0)","v":{"$error":"#N/A"}},null,null,null,null,{"$f":"SUM(T966:T971)","v":0},null,null,null,null,null,null,{"$error":"#DIV/0!"},0,0,null,"","","","","","","","","","",null,null,null,null,null,null,null,null,null,null,null,null,null,null,null,null,null,"ZWO"]
[null,null,null,null,null,null,null,null,null,null,null,null,null,null,{"$f":"VLOOKUP(N967,Tabel10[[korte omschrijving]:[MCC3_CODE]],2,0)","v":{"$error":"#N/A"}},{"$f":"VLOOKUP(N967,Tabel10[],3,0)","v":{"$error":"#N/A"}},null,null,null,null,null,null,null,null,null,null,null,{"$error":"#DIV/0!"},0,0,null,"","","","","","","","","","",null,null,null,null,null,null,null,null,null,null,null,null,null,null,null,null,null,"ZWO"]
[null,null,null,null,null,null,null,null,null,null,null,null,null,null,{"$f":"VLOOKUP(N968,Tabel10[[korte omschrijving]:[MCC3_CODE]],2,0)","v":{"$error":"#N/A"}},{"$f":"VLOOKUP(N968,Tabel10[],3,0)","v":{"$error":"#N/A"}},null,null,null,null,null,null,null,null,null,null,null,{"$error":"#DIV/0!"},0,0,null,"","","","","","","","","","",null,null,null,null,null,null,null,null,null,null,null,null,null,null,null,null,null,"ZWO"]
[null,null,null,null,null,null,null,null,null,null,null,null,null,null,{"$f":"VLOOKUP(N969,Tabel10[[korte omschrijving]:[MCC3_CODE]],2,0)","v":{"$error":"#N/A"}},{"$f":"VLOOKUP(N969,Tabel10[],3,0)","v":{"$error":"#N/A"}},null,null,null,null,null,null,null,null,null,null,null,{"$error":"#DIV/0!"},0,0,null,"","","","","","","","","","",null,null,null,null,null,null,null,null,null,null,null,null,null,null,null,null,null,"ZWO"]
[null,null,null,null,null,null,null,null,null,null,null,null,null,null,{"$f":"VLOOKUP(N970,Tabel10[[korte omschrijving]:[MCC3_CODE]],2,0)","v":{"$error":"#N/A"}},{"$f":"VLOOKUP(N970,Tabel10[],3,0)","v":{"$error":"#N/A"}},null,null,null,null,null,null,null,null,null,null,null,{"$error":"#DIV/0!"},0,0,null,"","","","","","","","","","",null,null,null,null,null,null,null,null,null,null,null,null,null,null,null,null,null,"ZWO"]
[null,null,null,null,null,null,null,null,null,null,null,null,null,null,{"$f":"VLOOKUP(N971,Tabel10[[korte omschrijving]:[MCC3_CODE]],2,0)","v":{"$error":"#N/A"}},{"$f":"VLOOKUP(N971,Tabel10[],3,0)","v":{"$error":"#N/A"}},null,null,null,null,null,null,null,null,null,null,null,{"$error":"#DIV/0!"},0,0,null,"","","","","","","","","","",null,null,null,null,null,null,null,null,null,null,null,null,null,null,null,null,null,"ZWO"]
[null,null,null,null,null,null,null,null,null,null,null,null,null,null,{"$f":"VLOOKUP(N972,Tabel10[[korte omschrijving]:[MCC3_CODE]],2,0)","v":{"$error":"#N/A"}},{"$f":"VLOOKUP(N972,Tabel10[],3,0)","v":{"$error":"#N/A"}},null,null,null,null,0,null,null,null,null,null,null,{"$error":"#DIV/0!"},0,0,null,"","","","","","","","","","",null,null,null,null,null,null,null,null,null,null,null,null,null,null,null,null,null,"ZWO"]
[null,null,null,null,null,null,null,null,null,null,null,null,null,null,{"$f":"VLOOKUP(N973,Tabel10[[korte omschrijving]:[MCC3_CODE]],2,0)","v":{"$error":"#N/A"}},{"$f":"VLOOKUP(N973,Tabel10[],3,0)","v":{"$error":"#N/A"}},null,null,null,null,null,null,null,null,null,null,null,{"$error":"#DIV/0!"},0,0,null,"","","","","","","","","","",null,null,null,null,null,null,null,null,null,null,null,null,null,null,null,null,null,"ZWO"]
[null,null,null,null,null,null,null,null,null,null,null,null,null,null,{"$f":"VLOOKUP(N974,Tabel10[[korte omschrijving]:[MCC3_CODE]],2,0)","v":{"$error":"#N/A"}},{"$f":"VLOOKUP(N974,Tabel10[],3,0)","v":{"$error":"#N/A"}},null,null,null,null,null,null,null,null,null,null,null,{"$error":"#DIV/0!"},0,0,null,"","","","","","","","","","",null,null,null,null,null,null,null,null,null,null,null,null,null,null,null,null,null,"ZWO"]
[null,null,null,null,null,null,null,null,null,null,null,null,null,null,{"$f":"VLOOKUP(N975,Tabel10[[korte omschrijving]:[MCC3_CODE]],2,0)","v":{"$error":"#N/A"}},{"$f":"VLOOKUP(N975,Tabel10[],3,0)","v":{"$error":"#N/A"}},null,null,null,null,null,null,null,null,null,null,null,{"$error":"#DIV/0!"},0,0,null,"","","","","","","","","","",null,null,null,null,null,null,null,null,null,null,null,null,null,null,null,null,null,"ZWO"]
[null,null,null,null,null,null,null,null,null,null,null,null,null,null,{"$f":"VLOOKUP(N976,Tabel10[[korte omschrijving]:[MCC3_CODE]],2,0)","v":{"$error":"#N/A"}},{"$f":"VLOOKUP(N976,Tabel10[],3,0)","v":{"$error":"#N/A"}},null,null,null,null,null,null,null,null,null,null,null,{"$error":"#DIV/0!"},0,0,null,"","","","","","","","","","",null,null,null,null,null,null,null,null,null,null,null,null,null,null,null,null,null,"ZWO"]
[null,null,null,null,null,null,null,null,null,null,null,null,null,null,{"$f":"VLOOKUP(N977,Tabel10[[korte omschrijving]:[MCC3_CODE]],2,0)","v":{"$error":"#N/A"}},{"$f":"VLOOKUP(N977,Tabel10[],3,0)","v":{"$error":"#N/A"}},null,null,null,null,null,null,null,null,null,null,null,{"$error":"#DIV/0!"},0,0,null,"","","","","","","","","","",null,null,null,null,null,null,null,null,null,null,null,null,null,null,null,null,null,"ZWO"]
[null,null,null,null,null,null,null,null,null,null,null,null,null,null,{"$f":"VLOOKUP(N978,Tabel10[[korte omschrijving]:[MCC3_CODE]],2,0)","v":{"$error":"#N/A"}},{"$f":"VLOOKUP(N978,Tabel10[],3,0)","v":{"$error":"#N/A"}},null,null,null,null,0,null,null,null,null,null,null,{"$error":"#DIV/0!"},0,0,null,"","","","","","","","","","",null,null,null,null,null,null,null,null,null,null,null,null,null,null,null,null,null,"ZWO"]
[null,null,null,null,null,null,null,null,null,null,null,null,null,null,{"$f":"VLOOKUP(N979,Tabel10[[korte omschrijving]:[MCC3_CODE]],2,0)","v":{"$error":"#N/A"}},{"$f":"VLOOKUP(N979,Tabel10[],3,0)","v":{"$error":"#N/A"}},null,null,null,null,null,null,null,null,null,null,null,{"$error":"#DIV/0!"},0,0,null,"","","","","","","","","","",null,null,null,null,null,null,null,null,null,null,null,null,null,null,null,null,null,"ZWO"]
[null,null,null,null,null,null,null,null,null,null,null,null,null,null,{"$f":"VLOOKUP(N980,Tabel10[[korte omschrijving]:[MCC3_CODE]],2,0)","v":{"$error":"#N/A"}},{"$f":"VLOOKUP(N980,Tabel10[],3,0)","v":{"$error":"#N/A"}},null,null,null,null,null,null,null,null,null,null,null,{"$error":"#DIV/0!"},0,0,null,"","","","","","","","","","",null,null,null,null,null,null,null,null,null,null,null,null,null,null,null,null,null,"ZWO"]
[null,null,null,null,null,null,null,null,null,null,null,null,null,null,{"$f":"VLOOKUP(N981,Tabel10[[korte omschrijving]:[MCC3_CODE]],2,0)","v":{"$error":"#N/A"}},{"$f":"VLOOKUP(N981,Tabel10[],3,0)","v":{"$error":"#N/A"}},null,null,null,null,null,null,null,null,null,null,null,{"$error":"#DIV/0!"},0,0,null,"","","","","","","","","","",null,null,null,null,null,null,null,null,null,null,null,null,null,null,null,null,null,"ZWO"]
[null,null,null,null,null,null,null,null,null,null,null,null,null,null,{"$f":"VLOOKUP(N982,Tabel10[[korte omschrijving]:[MCC3_CODE]],2,0)","v":{"$error":"#N/A"}},{"$f":"VLOOKUP(N982,Tabel10[],3,0)","v":{"$error":"#N/A"}},null,null,null,null,null,null,null,null,null,null,null,{"$error":"#DIV/0!"},0,0,null,"","","","","","","","","","",null,null,null,null,null,null,null,null,null,null,null,null,null,null,null,null,null,"ZWO"]
[null,null,null,null,null,null,null,null,null,null,null,null,null,null,{"$f":"VLOOKUP(N983,Tabel10[[korte omschrijving]:[MCC3_CODE]],2,0)","v":{"$error":"#N/A"}},{"$f":"VLOOKUP(N983,Tabel10[],3,0)","v":{"$error":"#N/A"}},null,null,null,null,null,null,null,null,null,null,null,{"$error":"#DIV/0!"},0,0,null,"","","","","","","","","","",null,null,null,null,null,null,null,null,null,null,null,null,null,null,null,null,null,"ZWO"]
[null,null,null,null,null,null,null,null,null,null,null,null,null,null,{"$f":"VLOOKUP(N984,Tabel10[[korte omschrijving]:[MCC3_CODE]],2,0)","v":{"$error":"#N/A"}},{"$f":"VLOOKUP(N984,Tabel10[],3,0)","v":{"$error":"#N/A"}},null,null,null,null,0,null,null,null,null,null,null,{"$error":"#DIV/0!"},0,0,null,"","","","","","","","","","",null,null,null,null,null,null,null,null,null,null,null,null,null,null,null,null,null,"ZWO"]
[null,null,null,null,null,null,null,null,null,null,null,null,null,null,{"$f":"VLOOKUP(N985,Tabel10[[korte omschrijving]:[MCC3_CODE]],2,0)","v":{"$error":"#N/A"}},{"$f":"VLOOKUP(N985,Tabel10[],3,0)","v":{"$error":"#N/A"}},null,null,null,null,null,null,null,null,null,null,null,{"$error":"#DIV/0!"},0,0,null,"","","","","","","","","","",null,null,null,null,null,null,null,null,null,null,null,null,null,null,null,null,null,"ZWO"]
[null,null,null,null,null,null,null,null,null,null,null,null,null,null,{"$f":"VLOOKUP(N986,Tabel10[[korte omschrijving]:[MCC3_CODE]],2,0)","v":{"$error":"#N/A"}},{"$f":"VLOOKUP(N986,Tabel10[],3,0)","v":{"$error":"#N/A"}},null,null,null,null,null,null,null,null,null,null,null,{"$error":"#DIV/0!"},0,0,null,"","","","","","","","","","",null,null,null,null,null,null,null,null,null,null,null,null,null,null,null,null,null,"ZWO"]
[null,null,null,null,null,null,null,null,null,null,null,null,null,null,{"$f":"VLOOKUP(N987,Tabel10[[korte omschrijving]:[MCC3_CODE]],2,0)","v":{"$error":"#N/A"}},{"$f":"VLOOKUP(N987,Tabel10[],3,0)","v":{"$error":"#N/A"}},null,null,null,null,null,null,null,null,null,null,null,{"$error":"#DIV/0!"},0,0,null,"","","","","","","","","","",null,null,null,null,null,null,null,null,null,null,null,null,null,null,null,null,null,"ZWO"]
[null,null,null,null,null,null,null,null,null,null,null,null,null,null,{"$f":"VLOOKUP(N988,Tabel10[[korte omschrijving]:[MCC3_CODE]],2,0)","v":{"$error":"#N/A"}},{"$f":"VLOOKUP(N988,Tabel10[],3,0)","v":{"$error":"#N/A"}},null,null,null,null,null,null,null,null,null,null,null,{"$error":"#DIV/0!"},0,0,null,"","","","","","","","","","",null,null,null,null,null,null,null,null,null,null,null,null,null,null,null,null,null,"ZWO"]
[null,null,null,null,null,null,null,null,null,null,null,null,null,null,{"$f":"VLOOKUP(N989,Tabel10[[korte omschrijving]:[MCC3_CODE]],2,0)","v":{"$error":"#N/A"}},{"$f":"VLOOKUP(N989,Tabel10[],3,0)","v":{"$error":"#N/A"}},null,null,null,null,null,null,null,null,null,null,null,{"$error":"#DIV/0!"},0,0,null,"","","","","","","","","","",null,null,null,null,null,null,null,null,null,null,null,null,null,null,null,null,null,"ZWO"]
[null,null,null,null,null,null,null,null,null,null,null,null,null,null,{"$f":"VLOOKUP(N990,Tabel10[[korte omschrijving]:[MCC3_CODE]],2,0)","v":{"$error":"#N/A"}},{"$f":"VLOOKUP(N990,Tabel10[],3,0)","v":{"$error":"#N/A"}},null,null,null,null,0,null,null,null,null,null,null,{"$error":"#DIV/0!"},0,0,null,"","","","","","","","","","",null,null,null,null,null,null,null,null,null,null,null,null,null,null,null,null,null,"ZWO"]
[null,null,null,null,null,null,null,null,null,null,null,null,null,null,{"$f":"VLOOKUP(N991,Tabel10[[korte omschrijving]:[MCC3_CODE]],2,0)","v":{"$error":"#N/A"}},{"$f":"VLOOKUP(N991,Tabel10[],3,0)","v":{"$error":"#N/A"}},null,null,null,null,null,null,null,null,null,null,null,{"$error":"#DIV/0!"},0,0,null,"","","","","","","","","","",null,null,null,null,null,null,null,null,null,null,null,null,null,null,null,null,null,"ZWO"]
[null,null,null,null,null,null,null,null,null,null,null,null,null,null,{"$f":"VLOOKUP(N992,Tabel10[[korte omschrijving]:[MCC3_CODE]],2,0)","v":{"$error":"#N/A"}},{"$f":"VLOOKUP(N992,Tabel10[],3,0)","v":{"$error":"#N/A"}},null,null,null,null,null,null,null,null,null,null,null,{"$error":"#DIV/0!"},0,0,null,"","","","","","","","","","",null,null,null,null,null,null,null,null,null,null,null,null,null,null,null,null,null,"ZWO"]
[null,null,null,null,null,null,null,null,null,null,null,null,null,null,{"$f":"VLOOKUP(N993,Tabel10[[korte omschrijving]:[MCC3_CODE]],2,0)","v":{"$error":"#N/A"}},{"$f":"VLOOKUP(N993,Tabel10[],3,0)","v":{"$error":"#N/A"}},null,null,null,null,null,null,null,null,null,null,null,{"$error":"#DIV/0!"},0,0,null,"","","","","","","","","","",null,null,null,null,null,null,null,null,null,null,null,null,null,null,null,null,null,"ZWO"]
[null,null,null,null,null,null,null,null,null,null,null,null,null,null,{"$f":"VLOOKUP(N994,Tabel10[[korte omschrijving]:[MCC3_CODE]],2,0)","v":{"$error":"#N/A"}},{"$f":"VLOOKUP(N994,Tabel10[],3,0)","v":{"$error":"#N/A"}},null,null,null,null,null,null,null,null,null,null,null,{"$error":"#DIV/0!"},0,0,null,"","","","","","","","","","",null,null,null,null,null,null,null,null,null,null,null,null,null,null,null,null,null,"ZWO"]
[null,null,null,null,null,null,null,null,null,null,null,null,null,null,{"$f":"VLOOKUP(N995,Tabel10[[korte omschrijving]:[MCC3_CODE]],2,0)","v":{"$error":"#N/A"}},{"$f":"VLOOKUP(N995,Tabel10[],3,0)","v":{"$error":"#N/A"}},null,null,null,null,null,null,null,null,null,null,null,{"$error":"#DIV/0!"},0,0,null,"","","","","","","","","","",null,null,null,null,null,null,null,null,null,null,null,null,null,null,null,null,null,"ZWO"]
[null,null,null,null,null,null,null,null,null,null,null,null,null,null,{"$f":"VLOOKUP(N996,Tabel10[[korte omschrijving]:[MCC3_CODE]],2,0)","v":{"$error":"#N/A"}},{"$f":"VLOOKUP(N996,Tabel10[],3,0)","v":{"$error":"#N/A"}},null,null,null,null,0,null,null,null,null,null,null,{"$error":"#DIV/0!"},0,0,null,"","","","","","","","","","",null,null,null,null,null,null,null,null,null,null,null,null,null,null,null,null,null,"ZWO"]
[null,null,null,null,null,null,null,null,null,null,null,null,null,null,{"$f":"VLOOKUP(N997,Tabel10[[korte omschrijving]:[MCC3_CODE]],2,0)","v":{"$error":"#N/A"}},{"$f":"VLOOKUP(N997,Tabel10[],3,0)","v":{"$error":"#N/A"}},null,null,null,null,null,null,null,null,null,null,null,{"$error":"#DIV/0!"},0,0,null,"","","","","","","","","","",null,null,null,null,null,null,null,null,null,null,null,null,null,null,null,null,null,"ZWO"]
[null,null,null,null,null,null,null,null,null,null,null,null,null,null,{"$f":"VLOOKUP(N998,Tabel10[[korte omschrijving]:[MCC3_CODE]],2,0)","v":{"$error":"#N/A"}},{"$f":"VLOOKUP(N998,Tabel10[],3,0)","v":{"$error":"#N/A"}},null,null,null,null,null,null,null,null,null,null,null,{"$error":"#DIV/0!"},0,0,null,"","","","","","","","","","",null,null,null,null,null,null,null,null,null,null,null,null,null,null,null,null,null,"ZWO"]
[null,null,null,null,null,null,null,null,null,null,null,null,null,null,{"$f":"VLOOKUP(N999,Tabel10[[korte omschrijving]:[MCC3_CODE]],2,0)","v":{"$error":"#N/A"}},{"$f":"VLOOKUP(N999,Tabel10[],3,0)","v":{"$error":"#N/A"}},null,null,null,null,null,null,null,null,null,null,null,{"$error":"#DIV/0!"},0,0,null,"","","","","","","","","","",null,null,null,null,null,null,null,null,null,null,null,null,null,null,null,null,null,"ZWO"]
[null,null,null,null,null,null,null,null,null,null,null,null,null,null,{"$f":"VLOOKUP(N1000,Tabel10[[korte omschrijving]:[MCC3_CODE]],2,0)","v":{"$error":"#N/A"}},{"$f":"VLOOKUP(N1000,Tabel10[],3,0)","v":{"$error":"#N/A"}},null,null,null,null,null,null,null,null,null,null,null,{"$error":"#DIV/0!"},0,0,null,"","","","","","","","","","",null,null,null,null,null,null,null,null,null,null,null,null,null,null,null,null,null,"ZWO"]
[null,null,null,null,null,null,null,null,null,null,null,null,null,null,{"$f":"VLOOKUP(N1001,Tabel10[[korte omschrijving]:[MCC3_CODE]],2,0)","v":{"$error":"#N/A"}},{"$f":"VLOOKUP(N1001,Tabel10[],3,0)","v":{"$error":"#N/A"}},null,null,null,null,null,null,null,null,null,null,null,{"$error":"#DIV/0!"},0,0,null,"","","","","","","","","","",null,null,null,null,null,null,null,null,null,null,null,null,null,null,null,null,null,"ZWO"]
[null,null,null,null,null,null,null,null,null,null,null,null,null,null,{"$f":"VLOOKUP(N1002,Tabel10[[korte omschrijving]:[MCC3_CODE]],2,0)","v":{"$error":"#N/A"}},{"$f":"VLOOKUP(N1002,Tabel10[],3,0)","v":{"$error":"#N/A"}},null,null,null,null,0,null,null,null,null,null,null,{"$error":"#DIV/0!"},0,0,null,"","","","","","","","","","",null,null,null,null,null,null,null,null,null,null,null,null,null,null,null,null,null,"ZWO"]
[null,null,null,null,null,null,null,null,null,null,null,null,null,null,{"$f":"VLOOKUP(N1003,Tabel10[[korte omschrijving]:[MCC3_CODE]],2,0)","v":{"$error":"#N/A"}},{"$f":"VLOOKUP(N1003,Tabel10[],3,0)","v":{"$error":"#N/A"}},null,null,null,null,null,null,null,null,null,null,null,{"$error":"#DIV/0!"},0,0,null,"","","","","","","","","","",null,null,null,null,null,null,null,null,null,null,null,null,null,null,null,null,null,"ZWO"]
[null,null,null,null,null,null,null,null,null,null,null,null,null,null,{"$f":"VLOOKUP(N1004,Tabel10[[korte omschrijving]:[MCC3_CODE]],2,0)","v":{"$error":"#N/A"}},{"$f":"VLOOKUP(N1004,Tabel10[],3,0)","v":{"$error":"#N/A"}},null,null,null,null,null,null,null,null,null,null,null,{"$error":"#DIV/0!"},0,0,null,"","","","","","","","","","",null,null,null,null,null,null,null,null,null,null,null,null,null,null,null,null,null,"ZWO"]
[null,null,null,null,null,null,null,null,null,null,null,null,null,null,{"$f":"VLOOKUP(N1005,Tabel10[[korte omschrijving]:[MCC3_CODE]],2,0)","v":{"$error":"#N/A"}},{"$f":"VLOOKUP(N1005,Tabel10[],3,0)","v":{"$error":"#N/A"}},null,null,null,null,null,null,null,null,null,null,null,{"$error":"#DIV/0!"},0,0,null,"","","","","","","","","","",null,null,null,null,null,null,null,null,null,null,null,null,null,null,null,null,null,"ZWO"]
[null,null,null,null,null,null,null,null,null,null,null,null,null,null,{"$f":"VLOOKUP(N1006,Tabel10[[korte omschrijving]:[MCC3_CODE]],2,0)","v":{"$error":"#N/A"}},{"$f":"VLOOKUP(N1006,Tabel10[],3,0)","v":{"$error":"#N/A"}},null,null,null,null,null,null,null,null,null,null,null,{"$error":"#DIV/0!"},0,0,null,"","","","","","","","","","",null,null,null,null,null,null,null,null,null,null,null,null,null,null,null,null,null,"ZWO"]
[null,null,null,null,null,null,null,null,null,null,null,null,null,null,{"$f":"VLOOKUP(N1007,Tabel10[[korte omschrijving]:[MCC3_CODE]],2,0)","v":{"$error":"#N/A"}},{"$f":"VLOOKUP(N1007,Tabel10[],3,0)","v":{"$error":"#N/A"}},null,null,null,null,null,null,null,null,null,null,null,{"$error":"#DIV/0!"},0,0,null,"","","","","","","","","","",null,null,null,null,null,null,null,null,null,null,null,null,null,null,null,null,null,"ZWO"]
[null,null,null,null,null,null,null,null,null,null,null,null,null,null,{"$f":"VLOOKUP(N1008,Tabel10[[korte omschrijving]:[MCC3_CODE]],2,0)","v":{"$error":"#N/A"}},{"$f":"VLOOKUP(N1008,Tabel10[],3,0)","v":{"$error":"#N/A"}},null,null,null,null,0,null,null,null,null,null,null,{"$error":"#DIV/0!"},0,0,null,"","","","","","","","","","",null,null,null,null,null,null,null,null,null,null,null,null,null,null,null,null,null,"ZWO"]
[null,null,null,null,null,null,null,null,null,null,null,null,null,null,{"$f":"VLOOKUP(N1009,Tabel10[[korte omschrijving]:[MCC3_CODE]],2,0)","v":{"$error":"#N/A"}},{"$f":"VLOOKUP(N1009,Tabel10[],3,0)","v":{"$error":"#N/A"}},null,null,null,null,null,null,null,null,null,null,null,{"$error":"#DIV/0!"},0,0,null,"","","","","","","","","","",null,null,null,null,null,null,null,null,null,null,null,null,null,null,null,null,null,"ZWO"]
[null,null,null,null,null,null,null,null,null,null,null,null,null,null,{"$f":"VLOOKUP(N1010,Tabel10[[korte omschrijving]:[MCC3_CODE]],2,0)","v":{"$error":"#N/A"}},{"$f":"VLOOKUP(N1010,Tabel10[],3,0)","v":{"$error":"#N/A"}},null,null,null,null,null,null,null,null,null,null,null,{"$error":"#DIV/0!"},0,0,null,"","","","","","","","","","",null,null,null,null,null,null,null,null,null,null,null,null,null,null,null,null,null,"ZWO"]
[null,null,null,null,null,null,null,null,null,null,null,null,null,null,{"$f":"VLOOKUP(N1011,Tabel10[[korte omschrijving]:[MCC3_CODE]],2,0)","v":{"$error":"#N/A"}},{"$f":"VLOOKUP(N1011,Tabel10[],3,0)","v":{"$error":"#N/A"}},null,null,null,null,null,null,null,null,null,null,null,{"$error":"#DIV/0!"},0,0,null,"","","","","","","","","","",null,null,null,null,null,null,null,null,null,null,null,null,null,null,null,null,null,"ZWO"]
[null,null,null,null,null,null,null,null,null,null,null,null,null,null,{"$f":"VLOOKUP(N1012,Tabel10[[korte omschrijving]:[MCC3_CODE]],2,0)","v":{"$error":"#N/A"}},{"$f":"VLOOKUP(N1012,Tabel10[],3,0)","v":{"$error":"#N/A"}},null,null,null,null,null,null,null,null,null,null,null,{"$error":"#DIV/0!"},0,0,null,"","","","","","","","","","",null,null,null,null,null,null,null,null,null,null,null,null,null,null,null,null,null,"ZWO"]
[null,null,null,null,null,null,null,null,null,null,null,null,null,null,{"$f":"VLOOKUP(N1013,Tabel10[[korte omschrijving]:[MCC3_CODE]],2,0)","v":{"$error":"#N/A"}},{"$f":"VLOOKUP(N1013,Tabel10[],3,0)","v":{"$error":"#N/A"}},null,null,null,null,null,null,null,null,null,null,null,{"$error":"#DIV/0!"},0,0,null,"","","","","","","","","","",null,null,null,null,null,null,null,null,null,null,null,null,null,null,null,null,null,"ZWO"]
[null,null,null,null,null,null,null,null,null,null,null,null,null,null,{"$f":"VLOOKUP(N1014,Tabel10[[korte omschrijving]:[MCC3_CODE]],2,0)","v":{"$error":"#N/A"}},{"$f":"VLOOKUP(N1014,Tabel10[],3,0)","v":{"$error":"#N/A"}},null,null,null,null,0,null,null,null,null,null,null,{"$error":"#DIV/0!"},0,0,null,"","","","","","","","","","",null,null,null,null,null,null,null,null,null,null,null,null,null,null,null,null,null,"ZWO"]
[null,null,null,null,null,null,null,null,null,null,null,null,null,null,{"$f":"VLOOKUP(N1015,Tabel10[[korte omschrijving]:[MCC3_CODE]],2,0)","v":{"$error":"#N/A"}},{"$f":"VLOOKUP(N1015,Tabel10[],3,0)","v":{"$error":"#N/A"}},null,null,null,null,null,null,null,null,null,null,null,{"$error":"#DIV/0!"},0,0,null,"","","","","","","","","","",null,null,null,null,null,null,null,null,null,null,null,null,null,null,null,null,null,"ZWO"]
[null,null,null,null,null,null,null,null,null,null,null,null,null,null,{"$f":"VLOOKUP(N1016,Tabel10[[korte omschrijving]:[MCC3_CODE]],2,0)","v":{"$error":"#N/A"}},{"$f":"VLOOKUP(N1016,Tabel10[],3,0)","v":{"$error":"#N/A"}},null,null,null,null,null,null,null,null,null,null,null,{"$f":"AA1016/Y1016","v":{"$error":"#DIV/0!"}},{"$f":"T1016*Y1016","v":0},{"$f":"T1016*AA1016","v":0},null,{"$f":"IF(AE1016 <> \"\",\n    IF(ISNUMBER(VALUE(LEFT(AE1016, FIND(\"%\", AE1016)-1))),\n        VALUE(LEFT(AE1016, FIND(\"%\", AE1016)-1)),\n        \"Invalid format\"),\n    \"\")","v":""},{"$f":"IF(AE1016 <> \"\",\n    IF(ISNUMBER(VALUE(LEFT(AE1016, FIND(\"%\", AE1016)-1))) * ISNUMBER(FIND(\"%\", AE1016 & \"wol\")) > 0,\n        TRIM(MID(AE1016, FIND(\"%\", AE1016)+1, FIND(\"/\", AE1016 & \"/\")-FIND(\"%\", AE1016)-1)),\n        \"Invalid format\"),\n    \"\")","v":""},{"$f":"IF(AE1016 <> \"\",\n    IF(ISNUMBER(VALUE(MID(AE1016, FIND(\"/\", AE1016) + 1, FIND(\"%\", AE1016, FIND(\"/\", AE1016)) - FIND(\"/\", AE1016) - 1))),\n        VALUE(MID(AE1016, FIND(\"/\", AE1016) + 1, FIND(\"%\", AE1016, FIND(\"/\", AE1016)) - FIND(\"/\", AE1016) - 1)),\n        \"\"),\n    \"\")","v":""},{"$f":"IF(AE1016 <> \"\",\n    IFERROR(TRIM(MID(AE1016, FIND(\"%\", AE1016, FIND(\"/\", AE1016)+1)+2,\n        IFERROR(FIND(\"/\", AE1016 & \"/\", FIND(\"/\", AE1016)+1)-FIND(\"%\", AE1016, FIND(\"/\", AE1016)+1)-2, LEN(AE1016)-FIND(\"%\", AE1016, FIND(\"/\", AE1016)+1)-1))),\n        \"\"),\n    \"\")","v":""},{"$f":"IF(AE1016 <> \"\",\n    IF(ISNUMBER(VALUE(MID(AE1016, FIND(\"/\", AE1016, FIND(\"/\", AE1016)+1) + 1, FIND(\"%\", AE1016, FIND(\"/\", AE1016, FIND(\"/\", AE1016)+1)) - FIND(\"/\", AE1016, FIND(\"/\", AE1016)+1) - 1))),\n        VALUE(MID(AE1016, FIND(\"/\", AE1016, FIND(\"/\", AE1016)+1) + 1, FIND(\"%\", AE1016, FIND(\"/\", AE1016, FIND(\"/\", AE1016)+1)) - FIND(\"/\", AE1016, FIND(\"/\", AE1016)+1) - 1)),\n        \"\"),\n    \"\")","v":""},{"$f":"IF(AE1016 <> \"\",\n    IFERROR(\n        TRIM(MID(AE1016,\n            FIND(\"%\", AE1016, FIND(\"%\", AE1016, FIND(\"%\", AE1016)+1)+1)+1,\n            FIND(\"/\", AE1016 & \"/\", FIND(\"%\", AE1016, FIND(\"%\", AE1016, FIND(\"%\", AE1016)+1)+1))-FIND(\"%\", AE1016, FIND(\"%\", AE1016, FIND(\"%\", AE1016)+1)+1)-1)\n        ),\n        \"\"\n    ),\n    \"\"\n)","v":""},{"$f":"IF(AE1016 <> \"\",\n    IF(ISNUMBER(VALUE(MID(AE1016, FIND(\"/\", AE1016, FIND(\"/\", AE1016, FIND(\"/\", AE1016)+1)+1) + 1, FIND(\"%\", AE1016, FIND(\"/\", AE1016, FIND(\"/\", AE1016, FIND(\"/\", AE1016)+1)+1)) - FIND(\"/\", AE1016, FIND(\"/\", AE1016, FIND(\"/\", AE1016)+1)+1) - 1))),\n        VALUE(MID(AE1016, FIND(\"/\", AE1016, FIND(\"/\", AE1016, FIND(\"/\", AE1016)+1)+1) + 1, FIND(\"%\", AE1016, FIND(\"/\", AE1016, FIND(\"/\", AE1016, FIND(\"/\", AE1016)+1)+1)) - FIND(\"/\", AE1016, FIND(\"/\", AE1016, FIND(\"/\", AE1016)+1)+1) - 1)),\n        \"\"),\n    \"\")","v":""},{"$f":"IF(AE1016 <> \"\",\n    IFERROR(TRIM(MID(AE1016, FIND(\"%\", AE1016, FIND(\"/\", AE1016, FIND(\"/\", AE1016, FIND(\"/\", AE1016)+1)+1)+1)+2,\n        IFERROR(FIND(\"/\", AE1016, FIND(\"/\", AE1016, FIND(\"/\", AE1016, FIND(\"/\", AE1016)+1)+1)+1)-FIND(\"%\", AE1016, FIND(\"/\", AE1016, FIND(\"/\", AE1016, FIND(\"/\", AE1016)+1)+1)+1)-2, LEN(AE1016)-FIND(\"%\", AE1016, FIND(\"/\", AE1016, FIND(\"/\", AE1016, FIND(\"/\", AE1016)+1)+1)+1)-1))),\n        \"\"),\n    \"\")","v":""},{"$f":"IF(AE1016 <> \"\",\n    IF(ISNUMBER(VALUE(MID(AE1016, FIND(\"/\", AE1016, FIND(\"/\", AE1016, FIND(\"/\", AE1016, FIND(\"/\", AE1016)+1)+1)+1) + 1, FIND(\"%\", AE1016, FIND(\"/\", AE1016, FIND(\"/\", AE1016, FIND(\"/\", AE1016, FIND(\"/\", AE1016)+1)+1)+1)) - FIND(\"/\", AE1016, FIND(\"/\", AE1016, FIND(\"/\", AE1016, FIND(\"/\", AE1016)+1)+1)+1) - 1))),\n        VALUE(MID(AE1016, FIND(\"/\", AE1016, FIND(\"/\", AE1016, FIND(\"/\", AE1016, FIND(\"/\", AE1016)+1)+1)+1) + 1, FIND(\"%\", AE1016, FIND(\"/\", AE1016, FIND(\"/\", AE1016, FIND(\"/\", AE1016, FIND(\"/\", AE1016)+1)+1)+1)) - FIND(\"/\", AE1016, FIND(\"/\", AE1016, FIND(\"/\", AE1016, FIND(\"/\", AE1016)+1)+1)+1) - 1)),\n        \"\"),\n    \"\")","v":""},{"$f":"IF(AE1016 = \"\", \"\",\n    IFERROR(TRIM(\n        MID(\n            AE1016,\n            FIND(\"%\", AE1016, FIND(\"/\", AE1016, FIND(\"/\", AE1016, FIND(\"/\", AE1016, FIND(\"/\", AE1016)+1)+1)+1)+1) + 1,\n            FIND(\"/\", AE1016 & \"/\", FIND(\"%\", AE1016, FIND(\"/\", AE1016, FIND(\"/\", AE1016, FIND(\"/\", AE1016, FIND(\"/\", AE1016)+1)+1)+1)+1)) -\n            FIND(\"%\", AE1016, FIND(\"/\", AE1016, FIND(\"/\", AE1016, FIND(\"/\", AE1016, FIND(\"/\", AE1016)+1)+1)+1)+1) - 1\n        )\n    ),\n    \"\")\n)","v":""},null,null,null,null,null,null,null,null,null,null,null,null,null,null,null,null,null,"ZWO"]
[null,null,null,null,null,null,null,null,null,null,null,null,null,null,{"$f":"VLOOKUP(N1017,Tabel10[[korte omschrijving]:[MCC3_CODE]],2,0)","v":{"$error":"#N/A"}},{"$f":"VLOOKUP(N1017,Tabel10[],3,0)","v":{"$error":"#N/A"}},null,null,null,null,null,null,null,null,null,null,null,{"$error":"#DIV/0!"},0,0,null,"","","","","","","","","","",null,null,null,null,null,null,null,null,null,null,null,null,null,null,null,null,null,"ZWO"]
[null,null,null,null,null,null,null,null,null,null,null,null,null,null,{"$f":"VLOOKUP(N1018,Tabel10[[korte omschrijving]:[MCC3_CODE]],2,0)","v":{"$error":"#N/A"}},{"$f":"VLOOKUP(N1018,Tabel10[],3,0)","v":{"$error":"#N/A"}},null,null,null,null,null,null,null,null,null,null,null,{"$error":"#DIV/0!"},0,0,null,"","","","","","","","","","",null,null,null,null,null,null,null,null,null,null,null,null,null,null,null,null,null,"ZWO"]
[null,null,null,null,null,null,null,null,null,null,null,null,null,null,{"$f":"VLOOKUP(N1019,Tabel10[[korte omschrijving]:[MCC3_CODE]],2,0)","v":{"$error":"#N/A"}},{"$f":"VLOOKUP(N1019,Tabel10[],3,0)","v":{"$error":"#N/A"}},null,null,null,null,null,null,null,null,null,null,null,{"$error":"#DIV/0!"},0,0,null,"","","","","","","","","","",null,null,null,null,null,null,null,null,null,null,null,null,null,null,null,null,null,"ZWO"]
[null,null,null,null,null,null,null,null,null,null,null,null,null,null,{"$f":"VLOOKUP(N1020,Tabel10[[korte omschrijving]:[MCC3_CODE]],2,0)","v":{"$error":"#N/A"}},{"$f":"VLOOKUP(N1020,Tabel10[],3,0)","v":{"$error":"#N/A"}},null,null,null,null,0,null,null,null,null,null,null,{"$error":"#DIV/0!"},0,0,null,"","","","","","","","","","",null,null,null,null,null,null,null,null,null,null,null,null,null,null,null,null,null,"ZWO"]
[null,null,null,null,null,null,null,null,null,null,null,null,null,null,{"$f":"VLOOKUP(N1021,Tabel10[[korte omschrijving]:[MCC3_CODE]],2,0)","v":{"$error":"#N/A"}},{"$f":"VLOOKUP(N1021,Tabel10[],3,0)","v":{"$error":"#N/A"}},null,null,null,null,null,null,null,null,null,null,null,{"$error":"#DIV/0!"},0,0,null,"","","","","","","","","","",null,null,null,null,null,null,null,null,null,null,null,null,null,null,null,null,null,"ZWO"]
[null,null,null,null,null,null,null,null,null,null,null,null,null,null,{"$f":"VLOOKUP(N1022,Tabel10[[korte omschrijving]:[MCC3_CODE]],2,0)","v":{"$error":"#N/A"}},{"$f":"VLOOKUP(N1022,Tabel10[],3,0)","v":{"$error":"#N/A"}},null,null,null,null,null,null,null,null,null,null,null,{"$error":"#DIV/0!"},0,0,null,"","","","","","","","","","",null,null,null,null,null,null,null,null,null,null,null,null,null,null,null,null,null,"ZWO"]
[null,null,null,null,null,null,null,null,null,null,null,null,null,null,{"$f":"VLOOKUP(N1023,Tabel10[[korte omschrijving]:[MCC3_CODE]],2,0)","v":{"$error":"#N/A"}},{"$f":"VLOOKUP(N1023,Tabel10[],3,0)","v":{"$error":"#N/A"}},null,null,null,null,null,null,null,null,null,null,null,{"$error":"#DIV/0!"},0,0,null,"","","","","","","","","","",null,null,null,null,null,null,null,null,null,null,null,null,null,null,null,null,null,"ZWO"]
[null,null,null,null,null,null,null,null,null,null,null,null,null,null,{"$f":"VLOOKUP(N1024,Tabel10[[korte omschrijving]:[MCC3_CODE]],2,0)","v":{"$error":"#N/A"}},{"$f":"VLOOKUP(N1024,Tabel10[],3,0)","v":{"$error":"#N/A"}},null,null,null,null,null,null,null,null,null,null,null,{"$error":"#DIV/0!"},0,0,null,"","","","","","","","","","",null,null,null,null,null,null,null,null,null,null,null,null,null,null,null,null,null,"ZWO"]
[null,null,null,null,null,null,null,null,null,null,null,null,null,null,{"$f":"VLOOKUP(N1025,Tabel10[[korte omschrijving]:[MCC3_CODE]],2,0)","v":{"$error":"#N/A"}},{"$f":"VLOOKUP(N1025,Tabel10[],3,0)","v":{"$error":"#N/A"}},null,null,null,null,null,null,null,null,null,null,null,{"$error":"#DIV/0!"},0,0,null,"","","","","","","","","","",null,null,null,null,null,null,null,null,null,null,null,null,null,null,null,null,null,"ZWO"]
[null,null,null,null,null,null,null,null,null,null,null,null,null,null,{"$f":"VLOOKUP(N1026,Tabel10[[korte omschrijving]:[MCC3_CODE]],2,0)","v":{"$error":"#N/A"}},{"$f":"VLOOKUP(N1026,Tabel10[],3,0)","v":{"$error":"#N/A"}},null,null,null,null,0,null,null,null,null,null,null,{"$error":"#DIV/0!"},0,0,null,"","","","","","","","","","",null,null,null,null,null,null,null,null,null,null,null,null,null,null,null,null,null,"ZWO"]
[null,null,null,null,null,null,null,null,null,null,null,null,null,null,{"$f":"VLOOKUP(N1027,Tabel10[[korte omschrijving]:[MCC3_CODE]],2,0)","v":{"$error":"#N/A"}},{"$f":"VLOOKUP(N1027,Tabel10[],3,0)","v":{"$error":"#N/A"}},null,null,null,null,null,null,null,null,null,null,null,{"$error":"#DIV/0!"},0,0,null,"","","","","","","","","","",null,null,null,null,null,null,null,null,null,null,null,null,null,null,null,null,null,"ZWO"]
[null,null,null,null,null,null,null,null,null,null,null,null,null,null,{"$f":"VLOOKUP(N1028,Tabel10[[korte omschrijving]:[MCC3_CODE]],2,0)","v":{"$error":"#N/A"}},{"$f":"VLOOKUP(N1028,Tabel10[],3,0)","v":{"$error":"#N/A"}},null,null,null,null,null,null,null,null,null,null,null,{"$error":"#DIV/0!"},0,0,null,"","","","","","","","","","",null,null,null,null,null,null,null,null,null,null,null,null,null,null,null,null,null,"ZWO"]
[null,null,null,null,null,null,null,null,null,null,null,null,null,null,{"$f":"VLOOKUP(N1029,Tabel10[[korte omschrijving]:[MCC3_CODE]],2,0)","v":{"$error":"#N/A"}},{"$f":"VLOOKUP(N1029,Tabel10[],3,0)","v":{"$error":"#N/A"}},null,null,null,null,null,null,null,null,null,null,null,{"$error":"#DIV/0!"},0,0,null,"","","","","","","","","","",null,null,null,null,null,null,null,null,null,null,null,null,null,null,null,null,null,"ZWO"]
[null,null,null,null,null,null,null,null,null,null,null,null,null,null,{"$f":"VLOOKUP(N1030,Tabel10[[korte omschrijving]:[MCC3_CODE]],2,0)","v":{"$error":"#N/A"}},{"$f":"VLOOKUP(N1030,Tabel10[],3,0)","v":{"$error":"#N/A"}},null,null,null,null,null,null,null,null,null,null,null,{"$error":"#DIV/0!"},0,0,null,"","","","","","","","","","",null,null,null,null,null,null,null,null,null,null,null,null,null,null,null,null,null,"ZWO"]
[null,null,null,null,null,null,null,null,null,null,null,null,null,null,{"$f":"VLOOKUP(N1031,Tabel10[[korte omschrijving]:[MCC3_CODE]],2,0)","v":{"$error":"#N/A"}},{"$f":"VLOOKUP(N1031,Tabel10[],3,0)","v":{"$error":"#N/A"}},null,null,null,null,null,null,null,null,null,null,null,{"$error":"#DIV/0!"},0,0,null,"","","","","","","","","","",null,null,null,null,null,null,null,null,null,null,null,null,null,null,null,null,null,"ZWO"]
[null,null,null,null,null,null,null,null,null,null,null,null,null,null,{"$f":"VLOOKUP(N1032,Tabel10[[korte omschrijving]:[MCC3_CODE]],2,0)","v":{"$error":"#N/A"}},{"$f":"VLOOKUP(N1032,Tabel10[],3,0)","v":{"$error":"#N/A"}},null,null,null,null,{"$f":"SUM(T1032:T1037)","v":0},null,null,null,null,null,null,{"$error":"#DIV/0!"},0,0,null,"","","","","","","","","","",null,null,null,null,null,null,null,null,null,null,null,null,null,null,null,null,null,"ZWO"]
[null,null,null,null,null,null,null,null,null,null,null,null,null,null,{"$f":"VLOOKUP(N1033,Tabel10[[korte omschrijving]:[MCC3_CODE]],2,0)","v":{"$error":"#N/A"}},{"$f":"VLOOKUP(N1033,Tabel10[],3,0)","v":{"$error":"#N/A"}},null,null,null,null,null,null,null,null,null,null,null,{"$error":"#DIV/0!"},0,0,null,"","","","","","","","","","",null,null,null,null,null,null,null,null,null,null,null,null,null,null,null,null,null,"ZWO"]
[null,null,null,null,null,null,null,null,null,null,null,null,null,null,{"$f":"VLOOKUP(N1034,Tabel10[[korte omschrijving]:[MCC3_CODE]],2,0)","v":{"$error":"#N/A"}},{"$f":"VLOOKUP(N1034,Tabel10[],3,0)","v":{"$error":"#N/A"}},null,null,null,null,null,null,null,null,null,null,null,{"$error":"#DIV/0!"},0,0,null,"","","","","","","","","","",null,null,null,null,null,null,null,null,null,null,null,null,null,null,null,null,null,"ZWO"]
[null,null,null,null,null,null,null,null,null,null,null,null,null,null,{"$f":"VLOOKUP(N1035,Tabel10[[korte omschrijving]:[MCC3_CODE]],2,0)","v":{"$error":"#N/A"}},{"$f":"VLOOKUP(N1035,Tabel10[],3,0)","v":{"$error":"#N/A"}},null,null,null,null,null,null,null,null,null,null,null,{"$error":"#DIV/0!"},0,0,null,"","","","","","","","","","",null,null,null,null,null,null,null,null,null,null,null,null,null,null,null,null,null,"ZWO"]
[null,null,null,null,null,null,null,null,null,null,null,null,null,null,{"$f":"VLOOKUP(N1036,Tabel10[[korte omschrijving]:[MCC3_CODE]],2,0)","v":{"$error":"#N/A"}},{"$f":"VLOOKUP(N1036,Tabel10[],3,0)","v":{"$error":"#N/A"}},null,null,null,null,null,null,null,null,null,null,null,{"$error":"#DIV/0!"},0,0,null,"","","","","","","","","","",null,null,null,null,null,null,null,null,null,null,null,null,null,null,null,null,null,"ZWO"]
[null,null,null,null,null,null,null,null,null,null,null,null,null,null,{"$f":"VLOOKUP(N1037,Tabel10[[korte omschrijving]:[MCC3_CODE]],2,0)","v":{"$error":"#N/A"}},{"$f":"VLOOKUP(N1037,Tabel10[],3,0)","v":{"$error":"#N/A"}},null,null,null,null,null,null,null,null,null,null,null,{"$error":"#DIV/0!"},0,0,null,"","","","","","","","","","",null,null,null,null,null,null,null,null,null,null,null,null,null,null,null,null,null,"ZWO"]
[null,null,null,null,null,null,null,null,null,null,null,null,null,null,{"$f":"VLOOKUP(N1038,Tabel10[[korte omschrijving]:[MCC3_CODE]],2,0)","v":{"$error":"#N/A"}},{"$f":"VLOOKUP(N1038,Tabel10[],3,0)","v":{"$error":"#N/A"}},null,null,null,null,0,null,null,null,null,null,null,{"$error":"#DIV/0!"},0,0,null,"","","","","","","","","","",null,null,null,null,null,null,null,null,null,null,null,null,null,null,null,null,null,"ZWO"]
[null,null,null,null,null,null,null,null,null,null,null,null,null,null,{"$f":"VLOOKUP(N1039,Tabel10[[korte omschrijving]:[MCC3_CODE]],2,0)","v":{"$error":"#N/A"}},{"$f":"VLOOKUP(N1039,Tabel10[],3,0)","v":{"$error":"#N/A"}},null,null,null,null,null,null,null,null,null,null,null,{"$error":"#DIV/0!"},0,0,null,"","","","","","","","","","",null,null,null,null,null,null,null,null,null,null,null,null,null,null,null,null,null,"ZWO"]
[null,null,null,null,null,null,null,null,null,null,null,null,null,null,{"$f":"VLOOKUP(N1040,Tabel10[[korte omschrijving]:[MCC3_CODE]],2,0)","v":{"$error":"#N/A"}},{"$f":"VLOOKUP(N1040,Tabel10[],3,0)","v":{"$error":"#N/A"}},null,null,null,null,null,null,null,null,null,null,null,{"$error":"#DIV/0!"},0,0,null,"","","","","","","","","","",null,null,null,null,null,null,null,null,null,null,null,null,null,null,null,null,null,"ZWO"]
[null,null,null,null,null,null,null,null,null,null,null,null,null,null,{"$f":"VLOOKUP(N1041,Tabel10[[korte omschrijving]:[MCC3_CODE]],2,0)","v":{"$error":"#N/A"}},{"$f":"VLOOKUP(N1041,Tabel10[],3,0)","v":{"$error":"#N/A"}},null,null,null,null,null,null,null,null,null,null,null,{"$error":"#DIV/0!"},0,0,null,"","","","","","","","","","",null,null,null,null,null,null,null,null,null,null,null,null,null,null,null,null,null,"ZWO"]
[null,null,null,null,null,null,null,null,null,null,null,null,null,null,{"$f":"VLOOKUP(N1042,Tabel10[[korte omschrijving]:[MCC3_CODE]],2,0)","v":{"$error":"#N/A"}},{"$f":"VLOOKUP(N1042,Tabel10[],3,0)","v":{"$error":"#N/A"}},null,null,null,null,null,null,null,null,null,null,null,{"$error":"#DIV/0!"},0,0,null,"","","","","","","","","","",null,null,null,null,null,null,null,null,null,null,null,null,null,null,null,null,null,"ZWO"]
[null,null,null,null,null,null,null,null,null,null,null,null,null,null,{"$f":"VLOOKUP(N1043,Tabel10[[korte omschrijving]:[MCC3_CODE]],2,0)","v":{"$error":"#N/A"}},{"$f":"VLOOKUP(N1043,Tabel10[],3,0)","v":{"$error":"#N/A"}},null,null,null,null,null,null,null,null,null,null,null,{"$error":"#DIV/0!"},0,0,null,"","","","","","","","","","",null,null,null,null,null,null,null,null,null,null,null,null,null,null,null,null,null,"ZWO"]
[null,null,null,null,null,null,null,null,null,null,null,null,null,null,{"$f":"VLOOKUP(N1044,Tabel10[[korte omschrijving]:[MCC3_CODE]],2,0)","v":{"$error":"#N/A"}},{"$f":"VLOOKUP(N1044,Tabel10[],3,0)","v":{"$error":"#N/A"}},null,null,null,null,0,null,null,null,null,null,null,{"$error":"#DIV/0!"},0,0,null,"","","","","","","","","","",null,null,null,null,null,null,null,null,null,null,null,null,null,null,null,null,null,"ZWO"]
[null,null,null,null,null,null,null,null,null,null,null,null,null,null,{"$f":"VLOOKUP(N1045,Tabel10[[korte omschrijving]:[MCC3_CODE]],2,0)","v":{"$error":"#N/A"}},{"$f":"VLOOKUP(N1045,Tabel10[],3,0)","v":{"$error":"#N/A"}},null,null,null,null,null,null,null,null,null,null,null,{"$error":"#DIV/0!"},0,0,null,"","","","","","","","","","",null,null,null,null,null,null,null,null,null,null,null,null,null,null,null,null,null,"ZWO"]
[null,null,null,null,null,null,null,null,null,null,null,null,null,null,{"$f":"VLOOKUP(N1046,Tabel10[[korte omschrijving]:[MCC3_CODE]],2,0)","v":{"$error":"#N/A"}},{"$f":"VLOOKUP(N1046,Tabel10[],3,0)","v":{"$error":"#N/A"}},null,null,null,null,null,null,null,null,null,null,null,{"$error":"#DIV/0!"},0,0,null,"","","","","","","","","","",null,null,null,null,null,null,null,null,null,null,null,null,null,null,null,null,null,"ZWO"]
[null,null,null,null,null,null,null,null,null,null,null,null,null,null,{"$f":"VLOOKUP(N1047,Tabel10[[korte omschrijving]:[MCC3_CODE]],2,0)","v":{"$error":"#N/A"}},{"$f":"VLOOKUP(N1047,Tabel10[],3,0)","v":{"$error":"#N/A"}},null,null,null,null,null,null,null,null,null,null,null,{"$error":"#DIV/0!"},0,0,null,"","","","","","","","","","",null,null,null,null,null,null,null,null,null,null,null,null,null,null,null,null,null,"ZWO"]
[null,null,null,null,null,null,null,null,null,null,null,null,null,null,{"$f":"VLOOKUP(N1048,Tabel10[[korte omschrijving]:[MCC3_CODE]],2,0)","v":{"$error":"#N/A"}},{"$f":"VLOOKUP(N1048,Tabel10[],3,0)","v":{"$error":"#N/A"}},null,null,null,null,null,null,null,null,null,null,null,{"$error":"#DIV/0!"},0,0,null,"","","","","","","","","","",null,null,null,null,null,null,null,null,null,null,null,null,null,null,null,null,null,"ZWO"]
[null,null,null,null,null,null,null,null,null,null,null,null,null,null,{"$f":"VLOOKUP(N1049,Tabel10[[korte omschrijving]:[MCC3_CODE]],2,0)","v":{"$error":"#N/A"}},{"$f":"VLOOKUP(N1049,Tabel10[],3,0)","v":{"$error":"#N/A"}},null,null,null,null,null,null,null,null,null,null,null,{"$error":"#DIV/0!"},0,0,null,"","","","","","","","","","",null,null,null,null,null,null,null,null,null,null,null,null,null,null,null,null,null,"ZWO"]
[null,null,null,null,null,null,null,null,null,null,null,null,null,null,{"$f":"VLOOKUP(N1050,Tabel10[[korte omschrijving]:[MCC3_CODE]],2,0)","v":{"$error":"#N/A"}},{"$f":"VLOOKUP(N1050,Tabel10[],3,0)","v":{"$error":"#N/A"}},null,null,null,null,0,null,null,null,null,null,null,{"$error":"#DIV/0!"},0,0,null,"","","","","","","","","","",null,null,null,null,null,null,null,null,null,null,null,null,null,null,null,null,null,"ZWO"]
[null,null,null,null,null,null,null,null,null,null,null,null,null,null,{"$f":"VLOOKUP(N1051,Tabel10[[korte omschrijving]:[MCC3_CODE]],2,0)","v":{"$error":"#N/A"}},{"$f":"VLOOKUP(N1051,Tabel10[],3,0)","v":{"$error":"#N/A"}},null,null,null,null,null,null,null,null,null,null,null,{"$error":"#DIV/0!"},0,0,null,"","","","","","","","","","",null,null,null,null,null,null,null,null,null,null,null,null,null,null,null,null,null,"ZWO"]
[null,null,null,null,null,null,null,null,null,null,null,null,null,null,{"$f":"VLOOKUP(N1052,Tabel10[[korte omschrijving]:[MCC3_CODE]],2,0)","v":{"$error":"#N/A"}},{"$f":"VLOOKUP(N1052,Tabel10[],3,0)","v":{"$error":"#N/A"}},null,null,null,null,null,null,null,null,null,null,null,{"$error":"#DIV/0!"},0,0,null,"","","","","","","","","","",null,null,null,null,null,null,null,null,null,null,null,null,null,null,null,null,null,"ZWO"]
[null,null,null,null,null,null,null,null,null,null,null,null,null,null,{"$f":"VLOOKUP(N1053,Tabel10[[korte omschrijving]:[MCC3_CODE]],2,0)","v":{"$error":"#N/A"}},{"$f":"VLOOKUP(N1053,Tabel10[],3,0)","v":{"$error":"#N/A"}},null,null,null,null,null,null,null,null,null,null,null,{"$error":"#DIV/0!"},0,0,null,"","","","","","","","","","",null,null,null,null,null,null,null,null,null,null,null,null,null,null,null,null,null,"ZWO"]
[null,null,null,null,null,null,null,null,null,null,null,null,null,null,{"$f":"VLOOKUP(N1054,Tabel10[[korte omschrijving]:[MCC3_CODE]],2,0)","v":{"$error":"#N/A"}},{"$f":"VLOOKUP(N1054,Tabel10[],3,0)","v":{"$error":"#N/A"}},null,null,null,null,null,null,null,null,null,null,null,{"$error":"#DIV/0!"},0,0,null,"","","","","","","","","","",null,null,null,null,null,null,null,null,null,null,null,null,null,null,null,null,null,"ZWO"]
[null,null,null,null,null,null,null,null,null,null,null,null,null,null,{"$f":"VLOOKUP(N1055,Tabel10[[korte omschrijving]:[MCC3_CODE]],2,0)","v":{"$error":"#N/A"}},{"$f":"VLOOKUP(N1055,Tabel10[],3,0)","v":{"$error":"#N/A"}},null,null,null,null,null,null,null,null,null,null,null,{"$error":"#DIV/0!"},0,0,null,"","","","","","","","","","",null,null,null,null,null,null,null,null,null,null,null,null,null,null,null,null,null,"ZWO"]
[null,null,null,null,null,null,null,null,null,null,null,null,null,null,{"$f":"VLOOKUP(N1056,Tabel10[[korte omschrijving]:[MCC3_CODE]],2,0)","v":{"$error":"#N/A"}},{"$f":"VLOOKUP(N1056,Tabel10[],3,0)","v":{"$error":"#N/A"}},null,null,null,null,0,null,null,null,null,null,null,{"$error":"#DIV/0!"},0,0,null,"","","","","","","","","","",null,null,null,null,null,null,null,null,null,null,null,null,null,null,null,null,null,"ZWO"]
[null,null,null,null,null,null,null,null,null,null,null,null,null,null,{"$f":"VLOOKUP(N1057,Tabel10[[korte omschrijving]:[MCC3_CODE]],2,0)","v":{"$error":"#N/A"}},{"$f":"VLOOKUP(N1057,Tabel10[],3,0)","v":{"$error":"#N/A"}},null,null,null,null,null,null,null,null,null,null,null,{"$error":"#DIV/0!"},0,0,null,"","","","","","","","","","",null,null,null,null,null,null,null,null,null,null,null,null,null,null,null,null,null,"ZWO"]
[null,null,null,null,null,null,null,null,null,null,null,null,null,null,{"$f":"VLOOKUP(N1058,Tabel10[[korte omschrijving]:[MCC3_CODE]],2,0)","v":{"$error":"#N/A"}},{"$f":"VLOOKUP(N1058,Tabel10[],3,0)","v":{"$error":"#N/A"}},null,null,null,null,null,null,null,null,null,null,null,{"$error":"#DIV/0!"},0,0,null,"","","","","","","","","","",null,null,null,null,null,null,null,null,null,null,null,null,null,null,null,null,null,"ZWO"]
[null,null,null,null,null,null,null,null,null,null,null,null,null,null,{"$f":"VLOOKUP(N1059,Tabel10[[korte omschrijving]:[MCC3_CODE]],2,0)","v":{"$error":"#N/A"}},{"$f":"VLOOKUP(N1059,Tabel10[],3,0)","v":{"$error":"#N/A"}},null,null,null,null,null,null,null,null,null,null,null,{"$error":"#DIV/0!"},0,0,null,"","","","","","","","","","",null,null,null,null,null,null,null,null,null,null,null,null,null,null,null,null,null,"ZWO"]
[null,null,null,null,null,null,null,null,null,null,null,null,null,null,{"$f":"VLOOKUP(N1060,Tabel10[[korte omschrijving]:[MCC3_CODE]],2,0)","v":{"$error":"#N/A"}},{"$f":"VLOOKUP(N1060,Tabel10[],3,0)","v":{"$error":"#N/A"}},null,null,null,null,null,null,null,null,null,null,null,{"$error":"#DIV/0!"},0,0,null,"","","","","","","","","","",null,null,null,null,null,null,null,null,null,null,null,null,null,null,null,null,null,"ZWO"]
[null,null,null,null,null,null,null,null,null,null,null,null,null,null,{"$f":"VLOOKUP(N1061,Tabel10[[korte omschrijving]:[MCC3_CODE]],2,0)","v":{"$error":"#N/A"}},{"$f":"VLOOKUP(N1061,Tabel10[],3,0)","v":{"$error":"#N/A"}},null,null,null,null,null,null,null,null,null,null,null,{"$error":"#DIV/0!"},0,0,null,"","","","","","","","","","",null,null,null,null,null,null,null,null,null,null,null,null,null,null,null,null,null,"ZWO"]
[null,null,null,null,null,null,null,null,null,null,null,null,null,null,{"$f":"VLOOKUP(N1062,Tabel10[[korte omschrijving]:[MCC3_CODE]],2,0)","v":{"$error":"#N/A"}},{"$f":"VLOOKUP(N1062,Tabel10[],3,0)","v":{"$error":"#N/A"}},null,null,null,null,0,null,null,null,null,null,null,{"$error":"#DIV/0!"},0,0,null,"","","","","","","","","","",null,null,null,null,null,null,null,null,null,null,null,null,null,null,null,null,null,"ZWO"]
[null,null,null,null,null,null,null,null,null,null,null,null,null,null,{"$f":"VLOOKUP(N1063,Tabel10[[korte omschrijving]:[MCC3_CODE]],2,0)","v":{"$error":"#N/A"}},{"$f":"VLOOKUP(N1063,Tabel10[],3,0)","v":{"$error":"#N/A"}},null,null,null,null,null,null,null,null,null,null,null,{"$error":"#DIV/0!"},0,0,null,"","","","","","","","","","",null,null,null,null,null,null,null,null,null,null,null,null,null,null,null,null,null,"ZWO"]
[null,null,null,null,null,null,null,null,null,null,null,null,null,null,{"$f":"VLOOKUP(N1064,Tabel10[[korte omschrijving]:[MCC3_CODE]],2,0)","v":{"$error":"#N/A"}},{"$f":"VLOOKUP(N1064,Tabel10[],3,0)","v":{"$error":"#N/A"}},null,null,null,null,null,null,null,null,null,null,null,{"$error":"#DIV/0!"},0,0,null,"","","","","","","","","","",null,null,null,null,null,null,null,null,null,null,null,null,null,null,null,null,null,"ZWO"]
[null,null,null,null,null,null,null,null,null,null,null,null,null,null,{"$f":"VLOOKUP(N1065,Tabel10[[korte omschrijving]:[MCC3_CODE]],2,0)","v":{"$error":"#N/A"}},{"$f":"VLOOKUP(N1065,Tabel10[],3,0)","v":{"$error":"#N/A"}},null,null,null,null,null,null,null,null,null,null,null,{"$error":"#DIV/0!"},0,0,null,"","","","","","","","","","",null,null,null,null,null,null,null,null,null,null,null,null,null,null,null,null,null,"ZWO"]
[null,null,null,null,null,null,null,null,null,null,null,null,null,null,{"$f":"VLOOKUP(N1066,Tabel10[[korte omschrijving]:[MCC3_CODE]],2,0)","v":{"$error":"#N/A"}},{"$f":"VLOOKUP(N1066,Tabel10[],3,0)","v":{"$error":"#N/A"}},null,null,null,null,null,null,null,null,null,null,null,{"$error":"#DIV/0!"},0,0,null,"","","","","","","","","","",null,null,null,null,null,null,null,null,null,null,null,null,null,null,null,null,null,"ZWO"]
[null,null,null,null,null,null,null,null,null,null,null,null,null,null,{"$f":"VLOOKUP(N1067,Tabel10[[korte omschrijving]:[MCC3_CODE]],2,0)","v":{"$error":"#N/A"}},{"$f":"VLOOKUP(N1067,Tabel10[],3,0)","v":{"$error":"#N/A"}},null,null,null,null,null,null,null,null,null,null,null,{"$error":"#DIV/0!"},0,0,null,"","","","","","","","","","",null,null,null,null,null,null,null,null,null,null,null,null,null,null,null,null,null,"ZWO"]
[null,null,null,null,null,null,null,null,null,null,null,null,null,null,{"$f":"VLOOKUP(N1068,Tabel10[[korte omschrijving]:[MCC3_CODE]],2,0)","v":{"$error":"#N/A"}},{"$f":"VLOOKUP(N1068,Tabel10[],3,0)","v":{"$error":"#N/A"}},null,null,null,null,0,null,null,null,null,null,null,{"$error":"#DIV/0!"},0,0,null,"","","","","","","","","","",null,null,null,null,null,null,null,null,null,null,null,null,null,null,null,null,null,"ZWO"]
[null,null,null,null,null,null,null,null,null,null,null,null,null,null,{"$f":"VLOOKUP(N1069,Tabel10[[korte omschrijving]:[MCC3_CODE]],2,0)","v":{"$error":"#N/A"}},{"$f":"VLOOKUP(N1069,Tabel10[],3,0)","v":{"$error":"#N/A"}},null,null,null,null,null,null,null,null,null,null,null,{"$error":"#DIV/0!"},0,0,null,"","","","","","","","","","",null,null,null,null,null,null,null,null,null,null,null,null,null,null,null,null,null,"ZWO"]
[null,null,null,null,null,null,null,null,null,null,null,null,null,null,{"$f":"VLOOKUP(N1070,Tabel10[[korte omschrijving]:[MCC3_CODE]],2,0)","v":{"$error":"#N/A"}},{"$f":"VLOOKUP(N1070,Tabel10[],3,0)","v":{"$error":"#N/A"}},null,null,null,null,null,null,null,null,null,null,null,{"$error":"#DIV/0!"},0,0,null,"","","","","","","","","","",null,null,null,null,null,null,null,null,null,null,null,null,null,null,null,null,null,"ZWO"]
[null,null,null,null,null,null,null,null,null,null,null,null,null,null,{"$f":"VLOOKUP(N1071,Tabel10[[korte omschrijving]:[MCC3_CODE]],2,0)","v":{"$error":"#N/A"}},{"$f":"VLOOKUP(N1071,Tabel10[],3,0)","v":{"$error":"#N/A"}},null,null,null,null,null,null,null,null,null,null,null,{"$error":"#DIV/0!"},0,0,null,"","","","","","","","","","",null,null,null,null,null,null,null,null,null,null,null,null,null,null,null,null,null,"ZWO"]
[null,null,null,null,null,null,null,null,null,null,null,null,null,null,{"$f":"VLOOKUP(N1072,Tabel10[[korte omschrijving]:[MCC3_CODE]],2,0)","v":{"$error":"#N/A"}},{"$f":"VLOOKUP(N1072,Tabel10[],3,0)","v":{"$error":"#N/A"}},null,null,null,null,null,null,null,null,null,null,null,{"$error":"#DIV/0!"},0,0,null,"","","","","","","","","","",null,null,null,null,null,null,null,null,null,null,null,null,null,null,null,null,null,"ZWO"]
[null,null,null,null,null,null,null,null,null,null,null,null,null,null,{"$f":"VLOOKUP(N1073,Tabel10[[korte omschrijving]:[MCC3_CODE]],2,0)","v":{"$error":"#N/A"}},{"$f":"VLOOKUP(N1073,Tabel10[],3,0)","v":{"$error":"#N/A"}},null,null,null,null,null,null,null,null,null,null,null,{"$error":"#DIV/0!"},0,0,null,"","","","","","","","","","",null,null,null,null,null,null,null,null,null,null,null,null,null,null,null,null,null,"ZWO"]
[null,null,null,null,null,null,null,null,null,null,null,null,null,null,{"$f":"VLOOKUP(N1074,Tabel10[[korte omschrijving]:[MCC3_CODE]],2,0)","v":{"$error":"#N/A"}},{"$f":"VLOOKUP(N1074,Tabel10[],3,0)","v":{"$error":"#N/A"}},null,null,null,null,0,null,null,null,null,null,null,{"$error":"#DIV/0!"},0,0,null,"","","","","","","","","","",null,null,null,null,null,null,null,null,null,null,null,null,null,null,null,null,null,"ZWO"]
[null,null,null,null,null,null,null,null,null,null,null,null,null,null,{"$f":"VLOOKUP(N1075,Tabel10[[korte omschrijving]:[MCC3_CODE]],2,0)","v":{"$error":"#N/A"}},{"$f":"VLOOKUP(N1075,Tabel10[],3,0)","v":{"$error":"#N/A"}},null,null,null,null,null,null,null,null,null,null,null,{"$error":"#DIV/0!"},0,0,null,"","","","","","","","","","",null,null,null,null,null,null,null,null,null,null,null,null,null,null,null,null,null,"ZWO"]
[null,null,null,null,null,null,null,null,null,null,null,null,null,null,{"$f":"VLOOKUP(N1076,Tabel10[[korte omschrijving]:[MCC3_CODE]],2,0)","v":{"$error":"#N/A"}},{"$f":"VLOOKUP(N1076,Tabel10[],3,0)","v":{"$error":"#N/A"}},null,null,null,null,null,null,null,null,null,null,null,{"$error":"#DIV/0!"},0,0,null,"","","","","","","","","","",null,null,null,null,null,null,null,null,null,null,null,null,null,null,null,null,null,"ZWO"]
[null,null,null,null,null,null,null,null,null,null,null,null,null,null,{"$f":"VLOOKUP(N1077,Tabel10[[korte omschrijving]:[MCC3_CODE]],2,0)","v":{"$error":"#N/A"}},{"$f":"VLOOKUP(N1077,Tabel10[],3,0)","v":{"$error":"#N/A"}},null,null,null,null,null,null,null,null,null,null,null,{"$error":"#DIV/0!"},0,0,null,"","","","","","","","","","",null,null,null,null,null,null,null,null,null,null,null,null,null,null,null,null,null,"ZWO"]
[null,null,null,null,null,null,null,null,null,null,null,null,null,null,{"$f":"VLOOKUP(N1078,Tabel10[[korte omschrijving]:[MCC3_CODE]],2,0)","v":{"$error":"#N/A"}},{"$f":"VLOOKUP(N1078,Tabel10[],3,0)","v":{"$error":"#N/A"}},null,null,null,null,null,null,null,null,null,null,null,{"$error":"#DIV/0!"},0,0,null,"","","","","","","","","","",null,null,null,null,null,null,null,null,null,null,null,null,null,null,null,null,null,"ZWO"]
[null,null,null,null,null,null,null,null,null,null,null,null,null,null,{"$f":"VLOOKUP(N1079,Tabel10[[korte omschrijving]:[MCC3_CODE]],2,0)","v":{"$error":"#N/A"}},{"$f":"VLOOKUP(N1079,Tabel10[],3,0)","v":{"$error":"#N/A"}},null,null,null,null,null,null,null,null,null,null,null,{"$error":"#DIV/0!"},0,0,null,"","","","","","","","","","",null,null,null,null,null,null,null,null,null,null,null,null,null,null,null,null,null,"ZWO"]
[null,null,null,null,null,null,null,null,null,null,null,null,null,null,{"$f":"VLOOKUP(N1080,Tabel10[[korte omschrijving]:[MCC3_CODE]],2,0)","v":{"$error":"#N/A"}},{"$f":"VLOOKUP(N1080,Tabel10[],3,0)","v":{"$error":"#N/A"}},null,null,null,null,0,null,null,null,null,null,null,{"$f":"AA1080/Y1080","v":{"$error":"#DIV/0!"}},{"$f":"T1080*Y1080","v":0},{"$f":"T1080*AA1080","v":0},null,{"$f":"IF(AE1080 <> \"\",\n    IF(ISNUMBER(VALUE(LEFT(AE1080, FIND(\"%\", AE1080)-1))),\n        VALUE(LEFT(AE1080, FIND(\"%\", AE1080)-1)),\n        \"Invalid format\"),\n    \"\")","v":""},{"$f":"IF(AE1080 <> \"\",\n    IF(ISNUMBER(VALUE(LEFT(AE1080, FIND(\"%\", AE1080)-1))) * ISNUMBER(FIND(\"%\", AE1080 & \"wol\")) > 0,\n        TRIM(MID(AE1080, FIND(\"%\", AE1080)+1, FIND(\"/\", AE1080 & \"/\")-FIND(\"%\", AE1080)-1)),\n        \"Invalid format\"),\n    \"\")","v":""},{"$f":"IF(AE1080 <> \"\",\n    IF(ISNUMBER(VALUE(MID(AE1080, FIND(\"/\", AE1080) + 1, FIND(\"%\", AE1080, FIND(\"/\", AE1080)) - FIND(\"/\", AE1080) - 1))),\n        VALUE(MID(AE1080, FIND(\"/\", AE1080) + 1, FIND(\"%\", AE1080, FIND(\"/\", AE1080)) - FIND(\"/\", AE1080) - 1)),\n        \"\"),\n    \"\")","v":""},{"$f":"IF(AE1080 <> \"\",\n    IFERROR(TRIM(MID(AE1080, FIND(\"%\", AE1080, FIND(\"/\", AE1080)+1)+2,\n        IFERROR(FIND(\"/\", AE1080 & \"/\", FIND(\"/\", AE1080)+1)-FIND(\"%\", AE1080, FIND(\"/\", AE1080)+1)-2, LEN(AE1080)-FIND(\"%\", AE1080, FIND(\"/\", AE1080)+1)-1))),\n        \"\"),\n    \"\")","v":""},{"$f":"IF(AE1080 <> \"\",\n    IF(ISNUMBER(VALUE(MID(AE1080, FIND(\"/\", AE1080, FIND(\"/\", AE1080)+1) + 1, FIND(\"%\", AE1080, FIND(\"/\", AE1080, FIND(\"/\", AE1080)+1)) - FIND(\"/\", AE1080, FIND(\"/\", AE1080)+1) - 1))),\n        VALUE(MID(AE1080, FIND(\"/\", AE1080, FIND(\"/\", AE1080)+1) + 1, FIND(\"%\", AE1080, FIND(\"/\", AE1080, FIND(\"/\", AE1080)+1)) - FIND(\"/\", AE1080, FIND(\"/\", AE1080)+1) - 1)),\n        \"\"),\n    \"\")","v":""},{"$f":"IF(AE1080 <> \"\",\n    IFERROR(\n        TRIM(MID(AE1080,\n            FIND(\"%\", AE1080, FIND(\"%\", AE1080, FIND(\"%\", AE1080)+1)+1)+1,\n            FIND(\"/\", AE1080 & \"/\", FIND(\"%\", AE1080, FIND(\"%\", AE1080, FIND(\"%\", AE1080)+1)+1))-FIND(\"%\", AE1080, FIND(\"%\", AE1080, FIND(\"%\", AE1080)+1)+1)-1)\n        ),\n        \"\"\n    ),\n    \"\"\n)","v":""},{"$f":"IF(AE1080 <> \"\",\n    IF(ISNUMBER(VALUE(MID(AE1080, FIND(\"/\", AE1080, FIND(\"/\", AE1080, FIND(\"/\", AE1080)+1)+1) + 1, FIND(\"%\", AE1080, FIND(\"/\", AE1080, FIND(\"/\", AE1080, FIND(\"/\", AE1080)+1)+1)) - FIND(\"/\", AE1080, FIND(\"/\", AE1080, FIND(\"/\", AE1080)+1)+1) - 1))),\n        VALUE(MID(AE1080, FIND(\"/\", AE1080, FIND(\"/\", AE1080, FIND(\"/\", AE1080)+1)+1) + 1, FIND(\"%\", AE1080, FIND(\"/\", AE1080, FIND(\"/\", AE1080, FIND(\"/\", AE1080)+1)+1)) - FIND(\"/\", AE1080, FIND(\"/\", AE1080, FIND(\"/\", AE1080)+1)+1) - 1)),\n        \"\"),\n    \"\")","v":""},{"$f":"IF(AE1080 <> \"\",\n    IFERROR(TRIM(MID(AE1080, FIND(\"%\", AE1080, FIND(\"/\", AE1080, FIND(\"/\", AE1080, FIND(\"/\", AE1080)+1)+1)+1)+2,\n        IFERROR(FIND(\"/\", AE1080, FIND(\"/\", AE1080, FIND(\"/\", AE1080, FIND(\"/\", AE1080)+1)+1)+1)-FIND(\"%\", AE1080, FIND(\"/\", AE1080, FIND(\"/\", AE1080, FIND(\"/\", AE1080)+1)+1)+1)-2, LEN(AE1080)-FIND(\"%\", AE1080, FIND(\"/\", AE1080, FIND(\"/\", AE1080, FIND(\"/\", AE1080)+1)+1)+1)-1))),\n        \"\"),\n    \"\")","v":""},{"$f":"IF(AE1080 <> \"\",\n    IF(ISNUMBER(VALUE(MID(AE1080, FIND(\"/\", AE1080, FIND(\"/\", AE1080, FIND(\"/\", AE1080, FIND(\"/\", AE1080)+1)+1)+1) + 1, FIND(\"%\", AE1080, FIND(\"/\", AE1080, FIND(\"/\", AE1080, FIND(\"/\", AE1080, FIND(\"/\", AE1080)+1)+1)+1)) - FIND(\"/\", AE1080, FIND(\"/\", AE1080, FIND(\"/\", AE1080, FIND(\"/\", AE1080)+1)+1)+1) - 1))),\n        VALUE(MID(AE1080, FIND(\"/\", AE1080, FIND(\"/\", AE1080, FIND(\"/\", AE1080, FIND(\"/\", AE1080)+1)+1)+1) + 1, FIND(\"%\", AE1080, FIND(\"/\", AE1080, FIND(\"/\", AE1080, FIND(\"/\", AE1080, FIND(\"/\", AE1080)+1)+1)+1)) - FIND(\"/\", AE1080, FIND(\"/\", AE1080, FIND(\"/\", AE1080, FIND(\"/\", AE1080)+1)+1)+1) - 1)),\n        \"\"),\n    \"\")","v":""},{"$f":"IF(AE1080 = \"\", \"\",\n    IFERROR(TRIM(\n        MID(\n            AE1080,\n            FIND(\"%\", AE1080, FIND(\"/\", AE1080, FIND(\"/\", AE1080, FIND(\"/\", AE1080, FIND(\"/\", AE1080)+1)+1)+1)+1) + 1,\n            FIND(\"/\", AE1080 & \"/\", FIND(\"%\", AE1080, FIND(\"/\", AE1080, FIND(\"/\", AE1080, FIND(\"/\", AE1080, FIND(\"/\", AE1080)+1)+1)+1)+1)) -\n            FIND(\"%\", AE1080, FIND(\"/\", AE1080, FIND(\"/\", AE1080, FIND(\"/\", AE1080, FIND(\"/\", AE1080)+1)+1)+1)+1) - 1\n        )\n    ),\n    \"\")\n)","v":""},null,null,null,null,null,null,null,null,null,null,null,null,null,null,null,null,null,"ZWO"]
[null,null,null,null,null,null,null,null,null,null,null,null,null,null,{"$f":"VLOOKUP(N1081,Tabel10[[korte omschrijving]:[MCC3_CODE]],2,0)","v":{"$error":"#N/A"}},{"$f":"VLOOKUP(N1081,Tabel10[],3,0)","v":{"$error":"#N/A"}},null,null,null,null,null,null,null,null,null,null,null,{"$error":"#DIV/0!"},0,0,null,"","","","","","","","","","",null,null,null,null,null,null,null,null,null,null,null,null,null,null,null,null,null,"ZWO"]
[null,null,null,null,null,null,null,null,null,null,null,null,null,null,{"$f":"VLOOKUP(N1082,Tabel10[[korte omschrijving]:[MCC3_CODE]],2,0)","v":{"$error":"#N/A"}},{"$f":"VLOOKUP(N1082,Tabel10[],3,0)","v":{"$error":"#N/A"}},null,null,null,null,null,null,null,null,null,null,null,{"$error":"#DIV/0!"},0,0,null,"","","","","","","","","","",null,null,null,null,null,null,null,null,null,null,null,null,null,null,null,null,null,"ZWO"]
[null,null,null,null,null,null,null,null,null,null,null,null,null,null,{"$f":"VLOOKUP(N1083,Tabel10[[korte omschrijving]:[MCC3_CODE]],2,0)","v":{"$error":"#N/A"}},{"$f":"VLOOKUP(N1083,Tabel10[],3,0)","v":{"$error":"#N/A"}},null,null,null,null,null,null,null,null,null,null,null,{"$error":"#DIV/0!"},0,0,null,"","","","","","","","","","",null,null,null,null,null,null,null,null,null,null,null,null,null,null,null,null,null,"ZWO"]
[null,null,null,null,null,null,null,null,null,null,null,null,null,null,{"$f":"VLOOKUP(N1084,Tabel10[[korte omschrijving]:[MCC3_CODE]],2,0)","v":{"$error":"#N/A"}},{"$f":"VLOOKUP(N1084,Tabel10[],3,0)","v":{"$error":"#N/A"}},null,null,null,null,null,null,null,null,null,null,null,{"$error":"#DIV/0!"},0,0,null,"","","","","","","","","","",null,null,null,null,null,null,null,null,null,null,null,null,null,null,null,null,null,"ZWO"]
[null,null,null,null,null,null,null,null,null,null,null,null,null,null,{"$f":"VLOOKUP(N1085,Tabel10[[korte omschrijving]:[MCC3_CODE]],2,0)","v":{"$error":"#N/A"}},{"$f":"VLOOKUP(N1085,Tabel10[],3,0)","v":{"$error":"#N/A"}},null,null,null,null,null,null,null,null,null,null,null,{"$error":"#DIV/0!"},0,0,null,"","","","","","","","","","",null,null,null,null,null,null,null,null,null,null,null,null,null,null,null,null,null,"ZWO"]
[null,null,null,null,null,null,null,null,null,null,null,null,null,null,{"$f":"VLOOKUP(N1086,Tabel10[[korte omschrijving]:[MCC3_CODE]],2,0)","v":{"$error":"#N/A"}},{"$f":"VLOOKUP(N1086,Tabel10[],3,0)","v":{"$error":"#N/A"}},null,null,null,null,0,null,null,null,null,null,null,{"$error":"#DIV/0!"},0,0,null,"","","","","","","","","","",null,null,null,null,null,null,null,null,null,null,null,null,null,null,null,null,null,"ZWO"]
[null,null,null,null,null,null,null,null,null,null,null,null,null,null,{"$f":"VLOOKUP(N1087,Tabel10[[korte omschrijving]:[MCC3_CODE]],2,0)","v":{"$error":"#N/A"}},{"$f":"VLOOKUP(N1087,Tabel10[],3,0)","v":{"$error":"#N/A"}},null,null,null,null,null,null,null,null,null,null,null,{"$error":"#DIV/0!"},0,0,null,"","","","","","","","","","",null,null,null,null,null,null,null,null,null,null,null,null,null,null,null,null,null,"ZWO"]
[null,null,null,null,null,null,null,null,null,null,null,null,null,null,{"$f":"VLOOKUP(N1088,Tabel10[[korte omschrijving]:[MCC3_CODE]],2,0)","v":{"$error":"#N/A"}},{"$f":"VLOOKUP(N1088,Tabel10[],3,0)","v":{"$error":"#N/A"}},null,null,null,null,null,null,null,null,null,null,null,{"$error":"#DIV/0!"},0,0,null,"","","","","","","","","","",null,null,null,null,null,null,null,null,null,null,null,null,null,null,null,null,null,"ZWO"]
[null,null,null,null,null,null,null,null,null,null,null,null,null,null,{"$f":"VLOOKUP(N1089,Tabel10[[korte omschrijving]:[MCC3_CODE]],2,0)","v":{"$error":"#N/A"}},{"$f":"VLOOKUP(N1089,Tabel10[],3,0)","v":{"$error":"#N/A"}},null,null,null,null,null,null,null,null,null,null,null,{"$error":"#DIV/0!"},0,0,null,"","","","","","","","","","",null,null,null,null,null,null,null,null,null,null,null,null,null,null,null,null,null,"ZWO"]
[null,null,null,null,null,null,null,null,null,null,null,null,null,null,{"$f":"VLOOKUP(N1090,Tabel10[[korte omschrijving]:[MCC3_CODE]],2,0)","v":{"$error":"#N/A"}},{"$f":"VLOOKUP(N1090,Tabel10[],3,0)","v":{"$error":"#N/A"}},null,null,null,null,null,null,null,null,null,null,null,{"$error":"#DIV/0!"},0,0,null,"","","","","","","","","","",null,null,null,null,null,null,null,null,null,null,null,null,null,null,null,null,null,"ZWO"]
[null,null,null,null,null,null,null,null,null,null,null,null,null,null,{"$f":"VLOOKUP(N1091,Tabel10[[korte omschrijving]:[MCC3_CODE]],2,0)","v":{"$error":"#N/A"}},{"$f":"VLOOKUP(N1091,Tabel10[],3,0)","v":{"$error":"#N/A"}},null,null,null,null,null,null,null,null,null,null,null,{"$error":"#DIV/0!"},0,0,null,"","","","","","","","","","",null,null,null,null,null,null,null,null,null,null,null,null,null,null,null,null,null,"ZWO"]
[null,null,null,null,null,null,null,null,null,null,null,null,null,null,{"$f":"VLOOKUP(N1092,Tabel10[[korte omschrijving]:[MCC3_CODE]],2,0)","v":{"$error":"#N/A"}},{"$f":"VLOOKUP(N1092,Tabel10[],3,0)","v":{"$error":"#N/A"}},null,null,null,null,0,null,null,null,null,null,null,{"$error":"#DIV/0!"},0,0,null,"","","","","","","","","","",null,null,null,null,null,null,null,null,null,null,null,null,null,null,null,null,null,"ZWO"]
[null,null,null,null,null,null,null,null,null,null,null,null,null,null,{"$f":"VLOOKUP(N1093,Tabel10[[korte omschrijving]:[MCC3_CODE]],2,0)","v":{"$error":"#N/A"}},{"$f":"VLOOKUP(N1093,Tabel10[],3,0)","v":{"$error":"#N/A"}},null,null,null,null,null,null,null,null,null,null,null,{"$error":"#DIV/0!"},0,0,null,"","","","","","","","","","",null,null,null,null,null,null,null,null,null,null,null,null,null,null,null,null,null,"ZWO"]
[null,null,null,null,null,null,null,null,null,null,null,null,null,null,{"$f":"VLOOKUP(N1094,Tabel10[[korte omschrijving]:[MCC3_CODE]],2,0)","v":{"$error":"#N/A"}},{"$f":"VLOOKUP(N1094,Tabel10[],3,0)","v":{"$error":"#N/A"}},null,null,null,null,null,null,null,null,null,null,null,{"$error":"#DIV/0!"},0,0,null,"","","","","","","","","","",null,null,null,null,null,null,null,null,null,null,null,null,null,null,null,null,null,"ZWO"]
[null,null,null,null,null,null,null,null,null,null,null,null,null,null,{"$f":"VLOOKUP(N1095,Tabel10[[korte omschrijving]:[MCC3_CODE]],2,0)","v":{"$error":"#N/A"}},{"$f":"VLOOKUP(N1095,Tabel10[],3,0)","v":{"$error":"#N/A"}},null,null,null,null,null,null,null,null,null,null,null,{"$error":"#DIV/0!"},0,0,null,"","","","","","","","","","",null,null,null,null,null,null,null,null,null,null,null,null,null,null,null,null,null,"ZWO"]
[null,null,null,null,null,null,null,null,null,null,null,null,null,null,{"$f":"VLOOKUP(N1096,Tabel10[[korte omschrijving]:[MCC3_CODE]],2,0)","v":{"$error":"#N/A"}},{"$f":"VLOOKUP(N1096,Tabel10[],3,0)","v":{"$error":"#N/A"}},null,null,null,null,null,null,null,null,null,null,null,{"$error":"#DIV/0!"},0,0,null,"","","","","","","","","","",null,null,null,null,null,null,null,null,null,null,null,null,null,null,null,null,null,"ZWO"]
[null,null,null,null,null,null,null,null,null,null,null,null,null,null,{"$f":"VLOOKUP(N1097,Tabel10[[korte omschrijving]:[MCC3_CODE]],2,0)","v":{"$error":"#N/A"}},{"$f":"VLOOKUP(N1097,Tabel10[],3,0)","v":{"$error":"#N/A"}},null,null,null,null,null,null,null,null,null,null,null,{"$error":"#DIV/0!"},0,0,null,"","","","","","","","","","",null,null,null,null,null,null,null,null,null,null,null,null,null,null,null,null,null,"ZWO"]
[null,null,null,null,null,null,null,null,null,null,null,null,null,null,{"$f":"VLOOKUP(N1098,Tabel10[[korte omschrijving]:[MCC3_CODE]],2,0)","v":{"$error":"#N/A"}},{"$f":"VLOOKUP(N1098,Tabel10[],3,0)","v":{"$error":"#N/A"}},null,null,null,null,{"$f":"SUM(T1098:T1103)","v":0},null,null,null,null,null,null,{"$error":"#DIV/0!"},0,0,null,"","","","","","","","","","",null,null,null,null,null,null,null,null,null,null,null,null,null,null,null,null,null,"ZWO"]
[null,null,null,null,null,null,null,null,null,null,null,null,null,null,{"$f":"VLOOKUP(N1099,Tabel10[[korte omschrijving]:[MCC3_CODE]],2,0)","v":{"$error":"#N/A"}},{"$f":"VLOOKUP(N1099,Tabel10[],3,0)","v":{"$error":"#N/A"}},null,null,null,null,null,null,null,null,null,null,null,{"$error":"#DIV/0!"},0,0,null,"","","","","","","","","","",null,null,null,null,null,null,null,null,null,null,null,null,null,null,null,null,null,"ZWO"]
[null,null,null,null,null,null,null,null,null,null,null,null,null,null,{"$f":"VLOOKUP(N1100,Tabel10[[korte omschrijving]:[MCC3_CODE]],2,0)","v":{"$error":"#N/A"}},{"$f":"VLOOKUP(N1100,Tabel10[],3,0)","v":{"$error":"#N/A"}},null,null,null,null,null,null,null,null,null,null,null,{"$error":"#DIV/0!"},0,0,null,"","","","","","","","","","",null,null,null,null,null,null,null,null,null,null,null,null,null,null,null,null,null,"ZWO"]
[null,null,null,null,null,null,null,null,null,null,null,null,null,null,{"$f":"VLOOKUP(N1101,Tabel10[[korte omschrijving]:[MCC3_CODE]],2,0)","v":{"$error":"#N/A"}},{"$f":"VLOOKUP(N1101,Tabel10[],3,0)","v":{"$error":"#N/A"}},null,null,null,null,null,null,null,null,null,null,null,{"$error":"#DIV/0!"},0,0,null,"","","","","","","","","","",null,null,null,null,null,null,null,null,null,null,null,null,null,null,null,null,null,"ZWO"]
[null,null,null,null,null,null,null,null,null,null,null,null,null,null,{"$f":"VLOOKUP(N1102,Tabel10[[korte omschrijving]:[MCC3_CODE]],2,0)","v":{"$error":"#N/A"}},{"$f":"VLOOKUP(N1102,Tabel10[],3,0)","v":{"$error":"#N/A"}},null,null,null,null,null,null,null,null,null,null,null,{"$error":"#DIV/0!"},0,0,null,"","","","","","","","","","",null,null,null,null,null,null,null,null,null,null,null,null,null,null,null,null,null,"ZWO"]
[null,null,null,null,null,null,null,null,null,null,null,null,null,null,{"$f":"VLOOKUP(N1103,Tabel10[[korte omschrijving]:[MCC3_CODE]],2,0)","v":{"$error":"#N/A"}},{"$f":"VLOOKUP(N1103,Tabel10[],3,0)","v":{"$error":"#N/A"}},null,null,null,null,null,null,null,null,null,null,null,{"$error":"#DIV/0!"},0,0,null,"","","","","","","","","","",null,null,null,null,null,null,null,null,null,null,null,null,null,null,null,null,null,"ZWO"]
[null,null,null,null,null,null,null,null,null,null,null,null,null,null,{"$f":"VLOOKUP(N1104,Tabel10[[korte omschrijving]:[MCC3_CODE]],2,0)","v":{"$error":"#N/A"}},{"$f":"VLOOKUP(N1104,Tabel10[],3,0)","v":{"$error":"#N/A"}},null,null,null,null,0,null,null,null,null,null,null,{"$error":"#DIV/0!"},0,0,null,"","","","","","","","","","",null,null,null,null,null,null,null,null,null,null,null,null,null,null,null,null,null,"ZWO"]
[null,null,null,null,null,null,null,null,null,null,null,null,null,null,{"$f":"VLOOKUP(N1105,Tabel10[[korte omschrijving]:[MCC3_CODE]],2,0)","v":{"$error":"#N/A"}},{"$f":"VLOOKUP(N1105,Tabel10[],3,0)","v":{"$error":"#N/A"}},null,null,null,null,null,null,null,null,null,null,null,{"$error":"#DIV/0!"},0,0,null,"","","","","","","","","","",null,null,null,null,null,null,null,null,null,null,null,null,null,null,null,null,null,"ZWO"]
[null,null,null,null,null,null,null,null,null,null,null,null,null,null,{"$f":"VLOOKUP(N1106,Tabel10[[korte omschrijving]:[MCC3_CODE]],2,0)","v":{"$error":"#N/A"}},{"$f":"VLOOKUP(N1106,Tabel10[],3,0)","v":{"$error":"#N/A"}},null,null,null,null,null,null,null,null,null,null,null,{"$error":"#DIV/0!"},0,0,null,"","","","","","","","","","",null,null,null,null,null,null,null,null,null,null,null,null,null,null,null,null,null,"ZWO"]
[null,null,null,null,null,null,null,null,null,null,null,null,null,null,{"$f":"VLOOKUP(N1107,Tabel10[[korte omschrijving]:[MCC3_CODE]],2,0)","v":{"$error":"#N/A"}},{"$f":"VLOOKUP(N1107,Tabel10[],3,0)","v":{"$error":"#N/A"}},null,null,null,null,null,null,null,null,null,null,null,{"$error":"#DIV/0!"},0,0,null,"","","","","","","","","","",null,null,null,null,null,null,null,null,null,null,null,null,null,null,null,null,null,"ZWO"]
[null,null,null,null,null,null,null,null,null,null,null,null,null,null,{"$f":"VLOOKUP(N1108,Tabel10[[korte omschrijving]:[MCC3_CODE]],2,0)","v":{"$error":"#N/A"}},{"$f":"VLOOKUP(N1108,Tabel10[],3,0)","v":{"$error":"#N/A"}},null,null,null,null,null,null,null,null,null,null,null,{"$error":"#DIV/0!"},0,0,null,"","","","","","","","","","",null,null,null,null,null,null,null,null,null,null,null,null,null,null,null,null,null,"ZWO"]
[null,null,null,null,null,null,null,null,null,null,null,null,null,null,{"$f":"VLOOKUP(N1109,Tabel10[[korte omschrijving]:[MCC3_CODE]],2,0)","v":{"$error":"#N/A"}},{"$f":"VLOOKUP(N1109,Tabel10[],3,0)","v":{"$error":"#N/A"}},null,null,null,null,null,null,null,null,null,null,null,{"$error":"#DIV/0!"},0,0,null,"","","","","","","","","","",null,null,null,null,null,null,null,null,null,null,null,null,null,null,null,null,null,"ZWO"]
[null,null,null,null,null,null,null,null,null,null,null,null,null,null,{"$f":"VLOOKUP(N1110,Tabel10[[korte omschrijving]:[MCC3_CODE]],2,0)","v":{"$error":"#N/A"}},{"$f":"VLOOKUP(N1110,Tabel10[],3,0)","v":{"$error":"#N/A"}},null,null,null,null,0,null,null,null,null,null,null,{"$error":"#DIV/0!"},0,0,null,"","","","","","","","","","",null,null,null,null,null,null,null,null,null,null,null,null,null,null,null,null,null,"ZWO"]
[null,null,null,null,null,null,null,null,null,null,null,null,null,null,{"$f":"VLOOKUP(N1111,Tabel10[[korte omschrijving]:[MCC3_CODE]],2,0)","v":{"$error":"#N/A"}},{"$f":"VLOOKUP(N1111,Tabel10[],3,0)","v":{"$error":"#N/A"}},null,null,null,null,null,null,null,null,null,null,null,{"$error":"#DIV/0!"},0,0,null,"","","","","","","","","","",null,null,null,null,null,null,null,null,null,null,null,null,null,null,null,null,null,"ZWO"]
[null,null,null,null,null,null,null,null,null,null,null,null,null,null,{"$f":"VLOOKUP(N1112,Tabel10[[korte omschrijving]:[MCC3_CODE]],2,0)","v":{"$error":"#N/A"}},{"$f":"VLOOKUP(N1112,Tabel10[],3,0)","v":{"$error":"#N/A"}},null,null,null,null,null,null,null,null,null,null,null,{"$error":"#DIV/0!"},0,0,null,"","","","","","","","","","",null,null,null,null,null,null,null,null,null,null,null,null,null,null,null,null,null,"ZWO"]
[null,null,null,null,null,null,null,null,null,null,null,null,null,null,{"$f":"VLOOKUP(N1113,Tabel10[[korte omschrijving]:[MCC3_CODE]],2,0)","v":{"$error":"#N/A"}},{"$f":"VLOOKUP(N1113,Tabel10[],3,0)","v":{"$error":"#N/A"}},null,null,null,null,null,null,null,null,null,null,null,{"$error":"#DIV/0!"},0,0,null,"","","","","","","","","","",null,null,null,null,null,null,null,null,null,null,null,null,null,null,null,null,null,"ZWO"]
[null,null,null,null,null,null,null,null,null,null,null,null,null,null,{"$f":"VLOOKUP(N1114,Tabel10[[korte omschrijving]:[MCC3_CODE]],2,0)","v":{"$error":"#N/A"}},{"$f":"VLOOKUP(N1114,Tabel10[],3,0)","v":{"$error":"#N/A"}},null,null,null,null,null,null,null,null,null,null,null,{"$error":"#DIV/0!"},0,0,null,"","","","","","","","","","",null,null,null,null,null,null,null,null,null,null,null,null,null,null,null,null,null,"ZWO"]
[null,null,null,null,null,null,null,null,null,null,null,null,null,null,{"$f":"VLOOKUP(N1115,Tabel10[[korte omschrijving]:[MCC3_CODE]],2,0)","v":{"$error":"#N/A"}},{"$f":"VLOOKUP(N1115,Tabel10[],3,0)","v":{"$error":"#N/A"}},null,null,null,null,null,null,null,null,null,null,null,{"$error":"#DIV/0!"},0,0,null,"","","","","","","","","","",null,null,null,null,null,null,null,null,null,null,null,null,null,null,null,null,null,"ZWO"]
[null,null,null,null,null,null,null,null,null,null,null,null,null,null,{"$f":"VLOOKUP(N1116,Tabel10[[korte omschrijving]:[MCC3_CODE]],2,0)","v":{"$error":"#N/A"}},{"$f":"VLOOKUP(N1116,Tabel10[],3,0)","v":{"$error":"#N/A"}},null,null,null,null,0,null,null,null,null,null,null,{"$error":"#DIV/0!"},0,0,null,"","","","","","","","","","",null,null,null,null,null,null,null,null,null,null,null,null,null,null,null,null,null,"ZWO"]
[null,null,null,null,null,null,null,null,null,null,null,null,null,null,{"$f":"VLOOKUP(N1117,Tabel10[[korte omschrijving]:[MCC3_CODE]],2,0)","v":{"$error":"#N/A"}},{"$f":"VLOOKUP(N1117,Tabel10[],3,0)","v":{"$error":"#N/A"}},null,null,null,null,null,null,null,null,null,null,null,{"$error":"#DIV/0!"},0,0,null,"","","","","","","","","","",null,null,null,null,null,null,null,null,null,null,null,null,null,null,null,null,null,"ZWO"]
[null,null,null,null,null,null,null,null,null,null,null,null,null,null,{"$f":"VLOOKUP(N1118,Tabel10[[korte omschrijving]:[MCC3_CODE]],2,0)","v":{"$error":"#N/A"}},{"$f":"VLOOKUP(N1118,Tabel10[],3,0)","v":{"$error":"#N/A"}},null,null,null,null,null,null,null,null,null,null,null,{"$error":"#DIV/0!"},0,0,null,"","","","","","","","","","",null,null,null,null,null,null,null,null,null,null,null,null,null,null,null,null,null,"ZWO"]
[null,null,null,null,null,null,null,null,null,null,null,null,null,null,{"$f":"VLOOKUP(N1119,Tabel10[[korte omschrijving]:[MCC3_CODE]],2,0)","v":{"$error":"#N/A"}},{"$f":"VLOOKUP(N1119,Tabel10[],3,0)","v":{"$error":"#N/A"}},null,null,null,null,null,null,null,null,null,null,null,{"$error":"#DIV/0!"},0,0,null,"","","","","","","","","","",null,null,null,null,null,null,null,null,null,null,null,null,null,null,null,null,null,"ZWO"]
[null,null,null,null,null,null,null,null,null,null,null,null,null,null,{"$f":"VLOOKUP(N1120,Tabel10[[korte omschrijving]:[MCC3_CODE]],2,0)","v":{"$error":"#N/A"}},{"$f":"VLOOKUP(N1120,Tabel10[],3,0)","v":{"$error":"#N/A"}},null,null,null,null,null,null,null,null,null,null,null,{"$error":"#DIV/0!"},0,0,null,"","","","","","","","","","",null,null,null,null,null,null,null,null,null,null,null,null,null,null,null,null,null,"ZWO"]
[null,null,null,null,null,null,null,null,null,null,null,null,null,null,{"$f":"VLOOKUP(N1121,Tabel10[[korte omschrijving]:[MCC3_CODE]],2,0)","v":{"$error":"#N/A"}},{"$f":"VLOOKUP(N1121,Tabel10[],3,0)","v":{"$error":"#N/A"}},null,null,null,null,null,null,null,null,null,null,null,{"$error":"#DIV/0!"},0,0,null,"","","","","","","","","","",null,null,null,null,null,null,null,null,null,null,null,null,null,null,null,null,null,"ZWO"]
[null,null,null,null,null,null,null,null,null,null,null,null,null,null,{"$f":"VLOOKUP(N1122,Tabel10[[korte omschrijving]:[MCC3_CODE]],2,0)","v":{"$error":"#N/A"}},{"$f":"VLOOKUP(N1122,Tabel10[],3,0)","v":{"$error":"#N/A"}},null,null,null,null,0,null,null,null,null,null,null,{"$error":"#DIV/0!"},0,0,null,"","","","","","","","","","",null,null,null,null,null,null,null,null,null,null,null,null,null,null,null,null,null,"ZWO"]
[null,null,null,null,null,null,null,null,null,null,null,null,null,null,{"$f":"VLOOKUP(N1123,Tabel10[[korte omschrijving]:[MCC3_CODE]],2,0)","v":{"$error":"#N/A"}},{"$f":"VLOOKUP(N1123,Tabel10[],3,0)","v":{"$error":"#N/A"}},null,null,null,null,null,null,null,null,null,null,null,{"$error":"#DIV/0!"},0,0,null,"","","","","","","","","","",null,null,null,null,null,null,null,null,null,null,null,null,null,null,null,null,null,"ZWO"]
[null,null,null,null,null,null,null,null,null,null,null,null,null,null,{"$f":"VLOOKUP(N1124,Tabel10[[korte omschrijving]:[MCC3_CODE]],2,0)","v":{"$error":"#N/A"}},{"$f":"VLOOKUP(N1124,Tabel10[],3,0)","v":{"$error":"#N/A"}},null,null,null,null,null,null,null,null,null,null,null,{"$error":"#DIV/0!"},0,0,null,"","","","","","","","","","",null,null,null,null,null,null,null,null,null,null,null,null,null,null,null,null,null,"ZWO"]
[null,null,null,null,null,null,null,null,null,null,null,null,null,null,{"$f":"VLOOKUP(N1125,Tabel10[[korte omschrijving]:[MCC3_CODE]],2,0)","v":{"$error":"#N/A"}},{"$f":"VLOOKUP(N1125,Tabel10[],3,0)","v":{"$error":"#N/A"}},null,null,null,null,null,null,null,null,null,null,null,{"$error":"#DIV/0!"},0,0,null,"","","","","","","","","","",null,null,null,null,null,null,null,null,null,null,null,null,null,null,null,null,null,"ZWO"]
[null,null,null,null,null,null,null,null,null,null,null,null,null,null,{"$f":"VLOOKUP(N1126,Tabel10[[korte omschrijving]:[MCC3_CODE]],2,0)","v":{"$error":"#N/A"}},{"$f":"VLOOKUP(N1126,Tabel10[],3,0)","v":{"$error":"#N/A"}},null,null,null,null,null,null,null,null,null,null,null,{"$error":"#DIV/0!"},0,0,null,"","","","","","","","","","",null,null,null,null,null,null,null,null,null,null,null,null,null,null,null,null,null,"ZWO"]
[null,null,null,null,null,null,null,null,null,null,null,null,null,null,{"$f":"VLOOKUP(N1127,Tabel10[[korte omschrijving]:[MCC3_CODE]],2,0)","v":{"$error":"#N/A"}},{"$f":"VLOOKUP(N1127,Tabel10[],3,0)","v":{"$error":"#N/A"}},null,null,null,null,null,null,null,null,null,null,null,{"$error":"#DIV/0!"},0,0,null,"","","","","","","","","","",null,null,null,null,null,null,null,null,null,null,null,null,null,null,null,null,null,"ZWO"]
[null,null,null,null,null,null,null,null,null,null,null,null,null,null,{"$f":"VLOOKUP(N1128,Tabel10[[korte omschrijving]:[MCC3_CODE]],2,0)","v":{"$error":"#N/A"}},{"$f":"VLOOKUP(N1128,Tabel10[],3,0)","v":{"$error":"#N/A"}},null,null,null,null,0,null,null,null,null,null,null,{"$error":"#DIV/0!"},0,0,null,"","","","","","","","","","",null,null,null,null,null,null,null,null,null,null,null,null,null,null,null,null,null,"ZWO"]
[null,null,null,null,null,null,null,null,null,null,null,null,null,null,{"$f":"VLOOKUP(N1129,Tabel10[[korte omschrijving]:[MCC3_CODE]],2,0)","v":{"$error":"#N/A"}},{"$f":"VLOOKUP(N1129,Tabel10[],3,0)","v":{"$error":"#N/A"}},null,null,null,null,null,null,null,null,null,null,null,{"$error":"#DIV/0!"},0,0,null,"","","","","","","","","","",null,null,null,null,null,null,null,null,null,null,null,null,null,null,null,null,null,"ZWO"]
[null,null,null,null,null,null,null,null,null,null,null,null,null,null,{"$f":"VLOOKUP(N1130,Tabel10[[korte omschrijving]:[MCC3_CODE]],2,0)","v":{"$error":"#N/A"}},{"$f":"VLOOKUP(N1130,Tabel10[],3,0)","v":{"$error":"#N/A"}},null,null,null,null,null,null,null,null,null,null,null,{"$error":"#DIV/0!"},0,0,null,"","","","","","","","","","",null,null,null,null,null,null,null,null,null,null,null,null,null,null,null,null,null,"ZWO"]
[null,null,null,null,null,null,null,null,null,null,null,null,null,null,{"$f":"VLOOKUP(N1131,Tabel10[[korte omschrijving]:[MCC3_CODE]],2,0)","v":{"$error":"#N/A"}},{"$f":"VLOOKUP(N1131,Tabel10[],3,0)","v":{"$error":"#N/A"}},null,null,null,null,null,null,null,null,null,null,null,{"$error":"#DIV/0!"},0,0,null,"","","","","","","","","","",null,null,null,null,null,null,null,null,null,null,null,null,null,null,null,null,null,"ZWO"]
[null,null,null,null,null,null,null,null,null,null,null,null,null,null,{"$f":"VLOOKUP(N1132,Tabel10[[korte omschrijving]:[MCC3_CODE]],2,0)","v":{"$error":"#N/A"}},{"$f":"VLOOKUP(N1132,Tabel10[],3,0)","v":{"$error":"#N/A"}},null,null,null,null,null,null,null,null,null,null,null,{"$error":"#DIV/0!"},0,0,null,"","","","","","","","","","",null,null,null,null,null,null,null,null,null,null,null,null,null,null,null,null,null,"ZWO"]
[null,null,null,null,null,null,null,null,null,null,null,null,null,null,{"$f":"VLOOKUP(N1133,Tabel10[[korte omschrijving]:[MCC3_CODE]],2,0)","v":{"$error":"#N/A"}},{"$f":"VLOOKUP(N1133,Tabel10[],3,0)","v":{"$error":"#N/A"}},null,null,null,null,null,null,null,null,null,null,null,{"$error":"#DIV/0!"},0,0,null,"","","","","","","","","","",null,null,null,null,null,null,null,null,null,null,null,null,null,null,null,null,null,"ZWO"]
[null,null,null,null,null,null,null,null,null,null,null,null,null,null,{"$f":"VLOOKUP(N1134,Tabel10[[korte omschrijving]:[MCC3_CODE]],2,0)","v":{"$error":"#N/A"}},{"$f":"VLOOKUP(N1134,Tabel10[],3,0)","v":{"$error":"#N/A"}},null,null,null,null,0,null,null,null,null,null,null,{"$error":"#DIV/0!"},0,0,null,"","","","","","","","","","",null,null,null,null,null,null,null,null,null,null,null,null,null,null,null,null,null,"ZWO"]
[null,null,null,null,null,null,null,null,null,null,null,null,null,null,{"$f":"VLOOKUP(N1135,Tabel10[[korte omschrijving]:[MCC3_CODE]],2,0)","v":{"$error":"#N/A"}},{"$f":"VLOOKUP(N1135,Tabel10[],3,0)","v":{"$error":"#N/A"}},null,null,null,null,null,null,null,null,null,null,null,{"$error":"#DIV/0!"},0,0,null,"","","","","","","","","","",null,null,null,null,null,null,null,null,null,null,null,null,null,null,null,null,null,"ZWO"]
[null,null,null,null,null,null,null,null,null,null,null,null,null,null,{"$f":"VLOOKUP(N1136,Tabel10[[korte omschrijving]:[MCC3_CODE]],2,0)","v":{"$error":"#N/A"}},{"$f":"VLOOKUP(N1136,Tabel10[],3,0)","v":{"$error":"#N/A"}},null,null,null,null,null,null,null,null,null,null,null,{"$error":"#DIV/0!"},0,0,null,"","","","","","","","","","",null,null,null,null,null,null,null,null,null,null,null,null,null,null,null,null,null,"ZWO"]
[null,null,null,null,null,null,null,null,null,null,null,null,null,null,{"$f":"VLOOKUP(N1137,Tabel10[[korte omschrijving]:[MCC3_CODE]],2,0)","v":{"$error":"#N/A"}},{"$f":"VLOOKUP(N1137,Tabel10[],3,0)","v":{"$error":"#N/A"}},null,null,null,null,null,null,null,null,null,null,null,{"$error":"#DIV/0!"},0,0,null,"","","","","","","","","","",null,null,null,null,null,null,null,null,null,null,null,null,null,null,null,null,null,"ZWO"]
[null,null,null,null,null,null,null,null,null,null,null,null,null,null,{"$f":"VLOOKUP(N1138,Tabel10[[korte omschrijving]:[MCC3_CODE]],2,0)","v":{"$error":"#N/A"}},{"$f":"VLOOKUP(N1138,Tabel10[],3,0)","v":{"$error":"#N/A"}},null,null,null,null,null,null,null,null,null,null,null,{"$error":"#DIV/0!"},0,0,null,"","","","","","","","","","",null,null,null,null,null,null,null,null,null,null,null,null,null,null,null,null,null,"ZWO"]
[null,null,null,null,null,null,null,null,null,null,null,null,null,null,{"$f":"VLOOKUP(N1139,Tabel10[[korte omschrijving]:[MCC3_CODE]],2,0)","v":{"$error":"#N/A"}},{"$f":"VLOOKUP(N1139,Tabel10[],3,0)","v":{"$error":"#N/A"}},null,null,null,null,null,null,null,null,null,null,null,{"$error":"#DIV/0!"},0,0,null,"","","","","","","","","","",null,null,null,null,null,null,null,null,null,null,null,null,null,null,null,null,null,"ZWO"]
[null,null,null,null,null,null,null,null,null,null,null,null,null,null,{"$f":"VLOOKUP(N1140,Tabel10[[korte omschrijving]:[MCC3_CODE]],2,0)","v":{"$error":"#N/A"}},{"$f":"VLOOKUP(N1140,Tabel10[],3,0)","v":{"$error":"#N/A"}},null,null,null,null,0,null,null,null,null,null,null,{"$error":"#DIV/0!"},0,0,null,"","","","","","","","","","",null,null,null,null,null,null,null,null,null,null,null,null,null,null,null,null,null,"ZWO"]
[null,null,null,null,null,null,null,null,null,null,null,null,null,null,{"$f":"VLOOKUP(N1141,Tabel10[[korte omschrijving]:[MCC3_CODE]],2,0)","v":{"$error":"#N/A"}},{"$f":"VLOOKUP(N1141,Tabel10[],3,0)","v":{"$error":"#N/A"}},null,null,null,null,null,null,null,null,null,null,null,{"$error":"#DIV/0!"},0,0,null,"","","","","","","","","","",null,null,null,null,null,null,null,null,null,null,null,null,null,null,null,null,null,"ZWO"]
[null,null,null,null,null,null,null,null,null,null,null,null,null,null,{"$f":"VLOOKUP(N1142,Tabel10[[korte omschrijving]:[MCC3_CODE]],2,0)","v":{"$error":"#N/A"}},{"$f":"VLOOKUP(N1142,Tabel10[],3,0)","v":{"$error":"#N/A"}},null,null,null,null,null,null,null,null,null,null,null,{"$error":"#DIV/0!"},0,0,null,"","","","","","","","","","",null,null,null,null,null,null,null,null,null,null,null,null,null,null,null,null,null,"ZWO"]
[null,null,null,null,null,null,null,null,null,null,null,null,null,null,{"$f":"VLOOKUP(N1143,Tabel10[[korte omschrijving]:[MCC3_CODE]],2,0)","v":{"$error":"#N/A"}},{"$f":"VLOOKUP(N1143,Tabel10[],3,0)","v":{"$error":"#N/A"}},null,null,null,null,null,null,null,null,null,null,null,{"$error":"#DIV/0!"},0,0,null,"","","","","","","","","","",null,null,null,null,null,null,null,null,null,null,null,null,null,null,null,null,null,"ZWO"]
[null,null,null,null,null,null,null,null,null,null,null,null,null,null,{"$f":"VLOOKUP(N1144,Tabel10[[korte omschrijving]:[MCC3_CODE]],2,0)","v":{"$error":"#N/A"}},{"$f":"VLOOKUP(N1144,Tabel10[],3,0)","v":{"$error":"#N/A"}},null,null,null,null,null,null,null,null,null,null,null,{"$f":"AA1144/Y1144","v":{"$error":"#DIV/0!"}},{"$f":"T1144*Y1144","v":0},{"$f":"T1144*AA1144","v":0},null,{"$f":"IF(AE1144 <> \"\",\n    IF(ISNUMBER(VALUE(LEFT(AE1144, FIND(\"%\", AE1144)-1))),\n        VALUE(LEFT(AE1144, FIND(\"%\", AE1144)-1)),\n        \"Invalid format\"),\n    \"\")","v":""},{"$f":"IF(AE1144 <> \"\",\n    IF(ISNUMBER(VALUE(LEFT(AE1144, FIND(\"%\", AE1144)-1))) * ISNUMBER(FIND(\"%\", AE1144 & \"wol\")) > 0,\n        TRIM(MID(AE1144, FIND(\"%\", AE1144)+1, FIND(\"/\", AE1144 & \"/\")-FIND(\"%\", AE1144)-1)),\n        \"Invalid format\"),\n    \"\")","v":""},{"$f":"IF(AE1144 <> \"\",\n    IF(ISNUMBER(VALUE(MID(AE1144, FIND(\"/\", AE1144) + 1, FIND(\"%\", AE1144, FIND(\"/\", AE1144)) - FIND(\"/\", AE1144) - 1))),\n        VALUE(MID(AE1144, FIND(\"/\", AE1144) + 1, FIND(\"%\", AE1144, FIND(\"/\", AE1144)) - FIND(\"/\", AE1144) - 1)),\n        \"\"),\n    \"\")","v":""},{"$f":"IF(AE1144 <> \"\",\n    IFERROR(TRIM(MID(AE1144, FIND(\"%\", AE1144, FIND(\"/\", AE1144)+1)+2,\n        IFERROR(FIND(\"/\", AE1144 & \"/\", FIND(\"/\", AE1144)+1)-FIND(\"%\", AE1144, FIND(\"/\", AE1144)+1)-2, LEN(AE1144)-FIND(\"%\", AE1144, FIND(\"/\", AE1144)+1)-1))),\n        \"\"),\n    \"\")","v":""},{"$f":"IF(AE1144 <> \"\",\n    IF(ISNUMBER(VALUE(MID(AE1144, FIND(\"/\", AE1144, FIND(\"/\", AE1144)+1) + 1, FIND(\"%\", AE1144, FIND(\"/\", AE1144, FIND(\"/\", AE1144)+1)) - FIND(\"/\", AE1144, FIND(\"/\", AE1144)+1) - 1))),\n        VALUE(MID(AE1144, FIND(\"/\", AE1144, FIND(\"/\", AE1144)+1) + 1, FIND(\"%\", AE1144, FIND(\"/\", AE1144, FIND(\"/\", AE1144)+1)) - FIND(\"/\", AE1144, FIND(\"/\", AE1144)+1) - 1)),\n        \"\"),\n    \"\")","v":""},{"$f":"IF(AE1144 <> \"\",\n    IFERROR(\n        TRIM(MID(AE1144,\n            FIND(\"%\", AE1144, FIND(\"%\", AE1144, FIND(\"%\", AE1144)+1)+1)+1,\n            FIND(\"/\", AE1144 & \"/\", FIND(\"%\", AE1144, FIND(\"%\", AE1144, FIND(\"%\", AE1144)+1)+1))-FIND(\"%\", AE1144, FIND(\"%\", AE1144, FIND(\"%\", AE1144)+1)+1)-1)\n        ),\n        \"\"\n    ),\n    \"\"\n)","v":""},{"$f":"IF(AE1144 <> \"\",\n    IF(ISNUMBER(VALUE(MID(AE1144, FIND(\"/\", AE1144, FIND(\"/\", AE1144, FIND(\"/\", AE1144)+1)+1) + 1, FIND(\"%\", AE1144, FIND(\"/\", AE1144, FIND(\"/\", AE1144, FIND(\"/\", AE1144)+1)+1)) - FIND(\"/\", AE1144, FIND(\"/\", AE1144, FIND(\"/\", AE1144)+1)+1) - 1))),\n        VALUE(MID(AE1144, FIND(\"/\", AE1144, FIND(\"/\", AE1144, FIND(\"/\", AE1144)+1)+1) + 1, FIND(\"%\", AE1144, FIND(\"/\", AE1144, FIND(\"/\", AE1144, FIND(\"/\", AE1144)+1)+1)) - FIND(\"/\", AE1144, FIND(\"/\", AE1144, FIND(\"/\", AE1144)+1)+1) - 1)),\n        \"\"),\n    \"\")","v":""},{"$f":"IF(AE1144 <> \"\",\n    IFERROR(TRIM(MID(AE1144, FIND(\"%\", AE1144, FIND(\"/\", AE1144, FIND(\"/\", AE1144, FIND(\"/\", AE1144)+1)+1)+1)+2,\n        IFERROR(FIND(\"/\", AE1144, FIND(\"/\", AE1144, FIND(\"/\", AE1144, FIND(\"/\", AE1144)+1)+1)+1)-FIND(\"%\", AE1144, FIND(\"/\", AE1144, FIND(\"/\", AE1144, FIND(\"/\", AE1144)+1)+1)+1)-2, LEN(AE1144)-FIND(\"%\", AE1144, FIND(\"/\", AE1144, FIND(\"/\", AE1144, FIND(\"/\", AE1144)+1)+1)+1)-1))),\n        \"\"),\n    \"\")","v":""},{"$f":"IF(AE1144 <> \"\",\n    IF(ISNUMBER(VALUE(MID(AE1144, FIND(\"/\", AE1144, FIND(\"/\", AE1144, FIND(\"/\", AE1144, FIND(\"/\", AE1144)+1)+1)+1) + 1, FIND(\"%\", AE1144, FIND(\"/\", AE1144, FIND(\"/\", AE1144, FIND(\"/\", AE1144, FIND(\"/\", AE1144)+1)+1)+1)) - FIND(\"/\", AE1144, FIND(\"/\", AE1144, FIND(\"/\", AE1144, FIND(\"/\", AE1144)+1)+1)+1) - 1))),\n        VALUE(MID(AE1144, FIND(\"/\", AE1144, FIND(\"/\", AE1144, FIND(\"/\", AE1144, FIND(\"/\", AE1144)+1)+1)+1) + 1, FIND(\"%\", AE1144, FIND(\"/\", AE1144, FIND(\"/\", AE1144, FIND(\"/\", AE1144, FIND(\"/\", AE1144)+1)+1)+1)) - FIND(\"/\", AE1144, FIND(\"/\", AE1144, FIND(\"/\", AE1144, FIND(\"/\", AE1144)+1)+1)+1) - 1)),\n        \"\"),\n    \"\")","v":""},{"$f":"IF(AE1144 = \"\", \"\",\n    IFERROR(TRIM(\n        MID(\n            AE1144,\n            FIND(\"%\", AE1144, FIND(\"/\", AE1144, FIND(\"/\", AE1144, FIND(\"/\", AE1144, FIND(\"/\", AE1144)+1)+1)+1)+1) + 1,\n            FIND(\"/\", AE1144 & \"/\", FIND(\"%\", AE1144, FIND(\"/\", AE1144, FIND(\"/\", AE1144, FIND(\"/\", AE1144, FIND(\"/\", AE1144)+1)+1)+1)+1)) -\n            FIND(\"%\", AE1144, FIND(\"/\", AE1144, FIND(\"/\", AE1144, FIND(\"/\", AE1144, FIND(\"/\", AE1144)+1)+1)+1)+1) - 1\n        )\n    ),\n    \"\")\n)","v":""},null,null,null,null,null,null,null,null,null,null,null,null,null,null,null,null,null,"ZWO"]
[null,null,null,null,null,null,null,null,null,null,null,null,null,null,{"$f":"VLOOKUP(N1145,Tabel10[[korte omschrijving]:[MCC3_CODE]],2,0)","v":{"$error":"#N/A"}},{"$f":"VLOOKUP(N1145,Tabel10[],3,0)","v":{"$error":"#N/A"}},null,null,null,null,null,null,null,null,null,null,null,{"$error":"#DIV/0!"},0,0,null,"","","","","","","","","","",null,null,null,null,null,null,null,null,null,null,null,null,null,null,null,null,null,"ZWO"]
[null,null,null,null,null,null,null,null,null,null,null,null,null,null,{"$f":"VLOOKUP(N1146,Tabel10[[korte omschrijving]:[MCC3_CODE]],2,0)","v":{"$error":"#N/A"}},{"$f":"VLOOKUP(N1146,Tabel10[],3,0)","v":{"$error":"#N/A"}},null,null,null,null,0,null,null,null,null,null,null,{"$error":"#DIV/0!"},0,0,null,"","","","","","","","","","",null,null,null,null,null,null,null,null,null,null,null,null,null,null,null,null,null,"ZWO"]
[null,null,null,null,null,null,null,null,null,null,null,null,null,null,{"$f":"VLOOKUP(N1147,Tabel10[[korte omschrijving]:[MCC3_CODE]],2,0)","v":{"$error":"#N/A"}},{"$f":"VLOOKUP(N1147,Tabel10[],3,0)","v":{"$error":"#N/A"}},null,null,null,null,null,null,null,null,null,null,null,{"$error":"#DIV/0!"},0,0,null,"","","","","","","","","","",null,null,null,null,null,null,null,null,null,null,null,null,null,null,null,null,null,"ZWO"]
[null,null,null,null,null,null,null,null,null,null,null,null,null,null,{"$f":"VLOOKUP(N1148,Tabel10[[korte omschrijving]:[MCC3_CODE]],2,0)","v":{"$error":"#N/A"}},{"$f":"VLOOKUP(N1148,Tabel10[],3,0)","v":{"$error":"#N/A"}},null,null,null,null,null,null,null,null,null,null,null,{"$error":"#DIV/0!"},0,0,null,"","","","","","","","","","",null,null,null,null,null,null,null,null,null,null,null,null,null,null,null,null,null,"ZWO"]
[null,null,null,null,null,null,null,null,null,null,null,null,null,null,{"$f":"VLOOKUP(N1149,Tabel10[[korte omschrijving]:[MCC3_CODE]],2,0)","v":{"$error":"#N/A"}},{"$f":"VLOOKUP(N1149,Tabel10[],3,0)","v":{"$error":"#N/A"}},null,null,null,null,null,null,null,null,null,null,null,{"$error":"#DIV/0!"},0,0,null,"","","","","","","","","","",null,null,null,null,null,null,null,null,null,null,null,null,null,null,null,null,null,"ZWO"]
[null,null,null,null,null,null,null,null,null,null,null,null,null,null,{"$f":"VLOOKUP(N1150,Tabel10[[korte omschrijving]:[MCC3_CODE]],2,0)","v":{"$error":"#N/A"}},{"$f":"VLOOKUP(N1150,Tabel10[],3,0)","v":{"$error":"#N/A"}},null,null,null,null,null,null,null,null,null,null,null,{"$error":"#DIV/0!"},0,0,null,"","","","","","","","","","",null,null,null,null,null,null,null,null,null,null,null,null,null,null,null,null,null,"ZWO"]
[null,null,null,null,null,null,null,null,null,null,null,null,null,null,{"$f":"VLOOKUP(N1151,Tabel10[[korte omschrijving]:[MCC3_CODE]],2,0)","v":{"$error":"#N/A"}},{"$f":"VLOOKUP(N1151,Tabel10[],3,0)","v":{"$error":"#N/A"}},null,null,null,null,null,null,null,null,null,null,null,{"$error":"#DIV/0!"},0,0,null,"","","","","","","","","","",null,null,null,null,null,null,null,null,null,null,null,null,null,null,null,null,null,"ZWO"]
[null,null,null,null,null,null,null,null,null,null,null,null,null,null,{"$f":"VLOOKUP(N1152,Tabel10[[korte omschrijving]:[MCC3_CODE]],2,0)","v":{"$error":"#N/A"}},{"$f":"VLOOKUP(N1152,Tabel10[],3,0)","v":{"$error":"#N/A"}},null,null,null,null,0,null,null,null,null,null,null,{"$error":"#DIV/0!"},0,0,null,"","","","","","","","","","",null,null,null,null,null,null,null,null,null,null,null,null,null,null,null,null,null,"ZWO"]
[null,null,null,null,null,null,null,null,null,null,null,null,null,null,{"$f":"VLOOKUP(N1153,Tabel10[[korte omschrijving]:[MCC3_CODE]],2,0)","v":{"$error":"#N/A"}},{"$f":"VLOOKUP(N1153,Tabel10[],3,0)","v":{"$error":"#N/A"}},null,null,null,null,null,null,null,null,null,null,null,{"$error":"#DIV/0!"},0,0,null,"","","","","","","","","","",null,null,null,null,null,null,null,null,null,null,null,null,null,null,null,null,null,"ZWO"]
[null,null,null,null,null,null,null,null,null,null,null,null,null,null,{"$f":"VLOOKUP(N1154,Tabel10[[korte omschrijving]:[MCC3_CODE]],2,0)","v":{"$error":"#N/A"}},{"$f":"VLOOKUP(N1154,Tabel10[],3,0)","v":{"$error":"#N/A"}},null,null,null,null,null,null,null,null,null,null,null,{"$error":"#DIV/0!"},0,0,null,"","","","","","","","","","",null,null,null,null,null,null,null,null,null,null,null,null,null,null,null,null,null,"ZWO"]
[null,null,null,null,null,null,null,null,null,null,null,null,null,null,{"$f":"VLOOKUP(N1155,Tabel10[[korte omschrijving]:[MCC3_CODE]],2,0)","v":{"$error":"#N/A"}},{"$f":"VLOOKUP(N1155,Tabel10[],3,0)","v":{"$error":"#N/A"}},null,null,null,null,null,null,null,null,null,null,null,{"$error":"#DIV/0!"},0,0,null,"","","","","","","","","","",null,null,null,null,null,null,null,null,null,null,null,null,null,null,null,null,null,"ZWO"]
[null,null,null,null,null,null,null,null,null,null,null,null,null,null,{"$f":"VLOOKUP(N1156,Tabel10[[korte omschrijving]:[MCC3_CODE]],2,0)","v":{"$error":"#N/A"}},{"$f":"VLOOKUP(N1156,Tabel10[],3,0)","v":{"$error":"#N/A"}},null,null,null,null,null,null,null,null,null,null,null,{"$error":"#DIV/0!"},0,0,null,"","","","","","","","","","",null,null,null,null,null,null,null,null,null,null,null,null,null,null,null,null,null,"ZWO"]
[null,null,null,null,null,null,null,null,null,null,null,null,null,null,{"$f":"VLOOKUP(N1157,Tabel10[[korte omschrijving]:[MCC3_CODE]],2,0)","v":{"$error":"#N/A"}},{"$f":"VLOOKUP(N1157,Tabel10[],3,0)","v":{"$error":"#N/A"}},null,null,null,null,null,null,null,null,null,null,null,{"$error":"#DIV/0!"},0,0,null,"","","","","","","","","","",null,null,null,null,null,null,null,null,null,null,null,null,null,null,null,null,null,"ZWO"]
[null,null,null,null,null,null,null,null,null,null,null,null,null,null,{"$f":"VLOOKUP(N1158,Tabel10[[korte omschrijving]:[MCC3_CODE]],2,0)","v":{"$error":"#N/A"}},{"$f":"VLOOKUP(N1158,Tabel10[],3,0)","v":{"$error":"#N/A"}},null,null,null,null,0,null,null,null,null,null,null,{"$error":"#DIV/0!"},0,0,null,"","","","","","","","","","",null,null,null,null,null,null,null,null,null,null,null,null,null,null,null,null,null,"ZWO"]
[null,null,null,null,null,null,null,null,null,null,null,null,null,null,{"$f":"VLOOKUP(N1159,Tabel10[[korte omschrijving]:[MCC3_CODE]],2,0)","v":{"$error":"#N/A"}},{"$f":"VLOOKUP(N1159,Tabel10[],3,0)","v":{"$error":"#N/A"}},null,null,null,null,null,null,null,null,null,null,null,{"$error":"#DIV/0!"},0,0,null,"","","","","","","","","","",null,null,null,null,null,null,null,null,null,null,null,null,null,null,null,null,null,"ZWO"]
[null,null,null,null,null,null,null,null,null,null,null,null,null,null,{"$f":"VLOOKUP(N1160,Tabel10[[korte omschrijving]:[MCC3_CODE]],2,0)","v":{"$error":"#N/A"}},{"$f":"VLOOKUP(N1160,Tabel10[],3,0)","v":{"$error":"#N/A"}},null,null,null,null,null,null,null,null,null,null,null,{"$error":"#DIV/0!"},0,0,null,"","","","","","","","","","",null,null,null,null,null,null,null,null,null,null,null,null,null,null,null,null,null,"ZWO"]
[null,null,null,null,null,null,null,null,null,null,null,null,null,null,{"$f":"VLOOKUP(N1161,Tabel10[[korte omschrijving]:[MCC3_CODE]],2,0)","v":{"$error":"#N/A"}},{"$f":"VLOOKUP(N1161,Tabel10[],3,0)","v":{"$error":"#N/A"}},null,null,null,null,null,null,null,null,null,null,null,{"$error":"#DIV/0!"},0,0,null,"","","","","","","","","","",null,null,null,null,null,null,null,null,null,null,null,null,null,null,null,null,null,"ZWO"]
[null,null,null,null,null,null,null,null,null,null,null,null,null,null,{"$f":"VLOOKUP(N1162,Tabel10[[korte omschrijving]:[MCC3_CODE]],2,0)","v":{"$error":"#N/A"}},{"$f":"VLOOKUP(N1162,Tabel10[],3,0)","v":{"$error":"#N/A"}},null,null,null,null,null,null,null,null,null,null,null,{"$error":"#DIV/0!"},0,0,null,"","","","","","","","","","",null,null,null,null,null,null,null,null,null,null,null,null,null,null,null,null,null,"ZWO"]
[null,null,null,null,null,null,null,null,null,null,null,null,null,null,{"$f":"VLOOKUP(N1163,Tabel10[[korte omschrijving]:[MCC3_CODE]],2,0)","v":{"$error":"#N/A"}},{"$f":"VLOOKUP(N1163,Tabel10[],3,0)","v":{"$error":"#N/A"}},null,null,null,null,null,null,null,null,null,null,null,{"$error":"#DIV/0!"},0,0,null,"","","","","","","","","","",null,null,null,null,null,null,null,null,null,null,null,null,null,null,null,null,null,"ZWO"]
[null,null,null,null,null,null,null,null,null,null,null,null,null,null,{"$f":"VLOOKUP(N1164,Tabel10[[korte omschrijving]:[MCC3_CODE]],2,0)","v":{"$error":"#N/A"}},{"$f":"VLOOKUP(N1164,Tabel10[],3,0)","v":{"$error":"#N/A"}},null,null,null,null,{"$f":"SUM(T1164:T1169)","v":0},null,null,null,null,null,null,{"$error":"#DIV/0!"},0,0,null,"","","","","","","","","","",null,null,null,null,null,null,null,null,null,null,null,null,null,null,null,null,null,"ZWO"]
[null,null,null,null,null,null,null,null,null,null,null,null,null,null,{"$f":"VLOOKUP(N1165,Tabel10[[korte omschrijving]:[MCC3_CODE]],2,0)","v":{"$error":"#N/A"}},{"$f":"VLOOKUP(N1165,Tabel10[],3,0)","v":{"$error":"#N/A"}},null,null,null,null,null,null,null,null,null,null,null,{"$error":"#DIV/0!"},0,0,null,"","","","","","","","","","",null,null,null,null,null,null,null,null,null,null,null,null,null,null,null,null,null,"ZWO"]
[null,null,null,null,null,null,null,null,null,null,null,null,null,null,{"$f":"VLOOKUP(N1166,Tabel10[[korte omschrijving]:[MCC3_CODE]],2,0)","v":{"$error":"#N/A"}},{"$f":"VLOOKUP(N1166,Tabel10[],3,0)","v":{"$error":"#N/A"}},null,null,null,null,null,null,null,null,null,null,null,{"$error":"#DIV/0!"},0,0,null,"","","","","","","","","","",null,null,null,null,null,null,null,null,null,null,null,null,null,null,null,null,null,"ZWO"]
[null,null,null,null,null,null,null,null,null,null,null,null,null,null,{"$f":"VLOOKUP(N1167,Tabel10[[korte omschrijving]:[MCC3_CODE]],2,0)","v":{"$error":"#N/A"}},{"$f":"VLOOKUP(N1167,Tabel10[],3,0)","v":{"$error":"#N/A"}},null,null,null,null,null,null,null,null,null,null,null,{"$error":"#DIV/0!"},0,0,null,"","","","","","","","","","",null,null,null,null,null,null,null,null,null,null,null,null,null,null,null,null,null,"ZWO"]
[null,null,null,null,null,null,null,null,null,null,null,null,null,null,{"$f":"VLOOKUP(N1168,Tabel10[[korte omschrijving]:[MCC3_CODE]],2,0)","v":{"$error":"#N/A"}},{"$f":"VLOOKUP(N1168,Tabel10[],3,0)","v":{"$error":"#N/A"}},null,null,null,null,null,null,null,null,null,null,null,{"$error":"#DIV/0!"},0,0,null,"","","","","","","","","","",null,null,null,null,null,null,null,null,null,null,null,null,null,null,null,null,null,"ZWO"]
[null,null,null,null,null,null,null,null,null,null,null,null,null,null,{"$f":"VLOOKUP(N1169,Tabel10[[korte omschrijving]:[MCC3_CODE]],2,0)","v":{"$error":"#N/A"}},{"$f":"VLOOKUP(N1169,Tabel10[],3,0)","v":{"$error":"#N/A"}},null,null,null,null,null,null,null,null,null,null,null,{"$error":"#DIV/0!"},0,0,null,"","","","","","","","","","",null,null,null,null,null,null,null,null,null,null,null,null,null,null,null,null,null,"ZWO"]
[null,null,null,null,null,null,null,null,null,null,null,null,null,null,{"$f":"VLOOKUP(N1170,Tabel10[[korte omschrijving]:[MCC3_CODE]],2,0)","v":{"$error":"#N/A"}},{"$f":"VLOOKUP(N1170,Tabel10[],3,0)","v":{"$error":"#N/A"}},null,null,null,null,0,null,null,null,null,null,null,{"$error":"#DIV/0!"},0,0,null,"","","","","","","","","","",null,null,null,null,null,null,null,null,null,null,null,null,null,null,null,null,null,"ZWO"]
[null,null,null,null,null,null,null,null,null,null,null,null,null,null,{"$f":"VLOOKUP(N1171,Tabel10[[korte omschrijving]:[MCC3_CODE]],2,0)","v":{"$error":"#N/A"}},{"$f":"VLOOKUP(N1171,Tabel10[],3,0)","v":{"$error":"#N/A"}},null,null,null,null,null,null,null,null,null,null,null,{"$error":"#DIV/0!"},0,0,null,"","","","","","","","","","",null,null,null,null,null,null,null,null,null,null,null,null,null,null,null,null,null,"ZWO"]
[null,null,null,null,null,null,null,null,null,null,null,null,null,null,{"$f":"VLOOKUP(N1172,Tabel10[[korte omschrijving]:[MCC3_CODE]],2,0)","v":{"$error":"#N/A"}},{"$f":"VLOOKUP(N1172,Tabel10[],3,0)","v":{"$error":"#N/A"}},null,null,null,null,null,null,null,null,null,null,null,{"$error":"#DIV/0!"},0,0,null,"","","","","","","","","","",null,null,null,null,null,null,null,null,null,null,null,null,null,null,null,null,null,"ZWO"]
[null,null,null,null,null,null,null,null,null,null,null,null,null,null,{"$f":"VLOOKUP(N1173,Tabel10[[korte omschrijving]:[MCC3_CODE]],2,0)","v":{"$error":"#N/A"}},{"$f":"VLOOKUP(N1173,Tabel10[],3,0)","v":{"$error":"#N/A"}},null,null,null,null,null,null,null,null,null,null,null,{"$error":"#DIV/0!"},0,0,null,"","","","","","","","","","",null,null,null,null,null,null,null,null,null,null,null,null,null,null,null,null,null,"ZWO"]
[null,null,null,null,null,null,null,null,null,null,null,null,null,null,{"$f":"VLOOKUP(N1174,Tabel10[[korte omschrijving]:[MCC3_CODE]],2,0)","v":{"$error":"#N/A"}},{"$f":"VLOOKUP(N1174,Tabel10[],3,0)","v":{"$error":"#N/A"}},null,null,null,null,null,null,null,null,null,null,null,{"$error":"#DIV/0!"},0,0,null,"","","","","","","","","","",null,null,null,null,null,null,null,null,null,null,null,null,null,null,null,null,null,"ZWO"]
[null,null,null,null,null,null,null,null,null,null,null,null,null,null,{"$f":"VLOOKUP(N1175,Tabel10[[korte omschrijving]:[MCC3_CODE]],2,0)","v":{"$error":"#N/A"}},{"$f":"VLOOKUP(N1175,Tabel10[],3,0)","v":{"$error":"#N/A"}},null,null,null,null,null,null,null,null,null,null,null,{"$error":"#DIV/0!"},0,0,null,"","","","","","","","","","",null,null,null,null,null,null,null,null,null,null,null,null,null,null,null,null,null,"ZWO"]
[null,null,null,null,null,null,null,null,null,null,null,null,null,null,{"$f":"VLOOKUP(N1176,Tabel10[[korte omschrijving]:[MCC3_CODE]],2,0)","v":{"$error":"#N/A"}},{"$f":"VLOOKUP(N1176,Tabel10[],3,0)","v":{"$error":"#N/A"}},null,null,null,null,0,null,null,null,null,null,null,{"$error":"#DIV/0!"},0,0,null,"","","","","","","","","","",null,null,null,null,null,null,null,null,null,null,null,null,null,null,null,null,null,"ZWO"]
[null,null,null,null,null,null,null,null,null,null,null,null,null,null,{"$f":"VLOOKUP(N1177,Tabel10[[korte omschrijving]:[MCC3_CODE]],2,0)","v":{"$error":"#N/A"}},{"$f":"VLOOKUP(N1177,Tabel10[],3,0)","v":{"$error":"#N/A"}},null,null,null,null,null,null,null,null,null,null,null,{"$error":"#DIV/0!"},0,0,null,"","","","","","","","","","",null,null,null,null,null,null,null,null,null,null,null,null,null,null,null,null,null,"ZWO"]
[null,null,null,null,null,null,null,null,null,null,null,null,null,null,{"$f":"VLOOKUP(N1178,Tabel10[[korte omschrijving]:[MCC3_CODE]],2,0)","v":{"$error":"#N/A"}},{"$f":"VLOOKUP(N1178,Tabel10[],3,0)","v":{"$error":"#N/A"}},null,null,null,null,null,null,null,null,null,null,null,{"$error":"#DIV/0!"},0,0,null,"","","","","","","","","","",null,null,null,null,null,null,null,null,null,null,null,null,null,null,null,null,null,"ZWO"]
[null,null,null,null,null,null,null,null,null,null,null,null,null,null,{"$f":"VLOOKUP(N1179,Tabel10[[korte omschrijving]:[MCC3_CODE]],2,0)","v":{"$error":"#N/A"}},{"$f":"VLOOKUP(N1179,Tabel10[],3,0)","v":{"$error":"#N/A"}},null,null,null,null,null,null,null,null,null,null,null,{"$error":"#DIV/0!"},0,0,null,"","","","","","","","","","",null,null,null,null,null,null,null,null,null,null,null,null,null,null,null,null,null,"ZWO"]
[null,null,null,null,null,null,null,null,null,null,null,null,null,null,{"$f":"VLOOKUP(N1180,Tabel10[[korte omschrijving]:[MCC3_CODE]],2,0)","v":{"$error":"#N/A"}},{"$f":"VLOOKUP(N1180,Tabel10[],3,0)","v":{"$error":"#N/A"}},null,null,null,null,null,null,null,null,null,null,null,{"$error":"#DIV/0!"},0,0,null,"","","","","","","","","","",null,null,null,null,null,null,null,null,null,null,null,null,null,null,null,null,null,"ZWO"]
[null,null,null,null,null,null,null,null,null,null,null,null,null,null,{"$f":"VLOOKUP(N1181,Tabel10[[korte omschrijving]:[MCC3_CODE]],2,0)","v":{"$error":"#N/A"}},{"$f":"VLOOKUP(N1181,Tabel10[],3,0)","v":{"$error":"#N/A"}},null,null,null,null,null,null,null,null,null,null,null,{"$error":"#DIV/0!"},0,0,null,"","","","","","","","","","",null,null,null,null,null,null,null,null,null,null,null,null,null,null,null,null,null,"ZWO"]
[null,null,null,null,null,null,null,null,null,null,null,null,null,null,{"$f":"VLOOKUP(N1182,Tabel10[[korte omschrijving]:[MCC3_CODE]],2,0)","v":{"$error":"#N/A"}},{"$f":"VLOOKUP(N1182,Tabel10[],3,0)","v":{"$error":"#N/A"}},null,null,null,null,0,null,null,null,null,null,null,{"$error":"#DIV/0!"},0,0,null,"","","","","","","","","","",null,null,null,null,null,null,null,null,null,null,null,null,null,null,null,null,null,"ZWO"]
[null,null,null,null,null,null,null,null,null,null,null,null,null,null,{"$f":"VLOOKUP(N1183,Tabel10[[korte omschrijving]:[MCC3_CODE]],2,0)","v":{"$error":"#N/A"}},{"$f":"VLOOKUP(N1183,Tabel10[],3,0)","v":{"$error":"#N/A"}},null,null,null,null,null,null,null,null,null,null,null,{"$error":"#DIV/0!"},0,0,null,"","","","","","","","","","",null,null,null,null,null,null,null,null,null,null,null,null,null,null,null,null,null,"ZWO"]
[null,null,null,null,null,null,null,null,null,null,null,null,null,null,{"$f":"VLOOKUP(N1184,Tabel10[[korte omschrijving]:[MCC3_CODE]],2,0)","v":{"$error":"#N/A"}},{"$f":"VLOOKUP(N1184,Tabel10[],3,0)","v":{"$error":"#N/A"}},null,null,null,null,null,null,null,null,null,null,null,{"$error":"#DIV/0!"},0,0,null,"","","","","","","","","","",null,null,null,null,null,null,null,null,null,null,null,null,null,null,null,null,null,"ZWO"]
[null,null,null,null,null,null,null,null,null,null,null,null,null,null,{"$f":"VLOOKUP(N1185,Tabel10[[korte omschrijving]:[MCC3_CODE]],2,0)","v":{"$error":"#N/A"}},{"$f":"VLOOKUP(N1185,Tabel10[],3,0)","v":{"$error":"#N/A"}},null,null,null,null,null,null,null,null,null,null,null,{"$error":"#DIV/0!"},0,0,null,"","","","","","","","","","",null,null,null,null,null,null,null,null,null,null,null,null,null,null,null,null,null,"ZWO"]
[null,null,null,null,null,null,null,null,null,null,null,null,null,null,{"$f":"VLOOKUP(N1186,Tabel10[[korte omschrijving]:[MCC3_CODE]],2,0)","v":{"$error":"#N/A"}},{"$f":"VLOOKUP(N1186,Tabel10[],3,0)","v":{"$error":"#N/A"}},null,null,null,null,null,null,null,null,null,null,null,{"$error":"#DIV/0!"},0,0,null,"","","","","","","","","","",null,null,null,null,null,null,null,null,null,null,null,null,null,null,null,null,null,"ZWO"]
[null,null,null,null,null,null,null,null,null,null,null,null,null,null,{"$f":"VLOOKUP(N1187,Tabel10[[korte omschrijving]:[MCC3_CODE]],2,0)","v":{"$error":"#N/A"}},{"$f":"VLOOKUP(N1187,Tabel10[],3,0)","v":{"$error":"#N/A"}},null,null,null,null,null,null,null,null,null,null,null,{"$error":"#DIV/0!"},0,0,null,"","","","","","","","","","",null,null,null,null,null,null,null,null,null,null,null,null,null,null,null,null,null,"ZWO"]
[null,null,null,null,null,null,null,null,null,null,null,null,null,null,{"$f":"VLOOKUP(N1188,Tabel10[[korte omschrijving]:[MCC3_CODE]],2,0)","v":{"$error":"#N/A"}},{"$f":"VLOOKUP(N1188,Tabel10[],3,0)","v":{"$error":"#N/A"}},null,null,null,null,0,null,null,null,null,null,null,{"$error":"#DIV/0!"},0,0,null,"","","","","","","","","","",null,null,null,null,null,null,null,null,null,null,null,null,null,null,null,null,null,"ZWO"]
[null,null,null,null,null,null,null,null,null,null,null,null,null,null,{"$f":"VLOOKUP(N1189,Tabel10[[korte omschrijving]:[MCC3_CODE]],2,0)","v":{"$error":"#N/A"}},{"$f":"VLOOKUP(N1189,Tabel10[],3,0)","v":{"$error":"#N/A"}},null,null,null,null,null,null,null,null,null,null,null,{"$error":"#DIV/0!"},0,0,null,"","","","","","","","","","",null,null,null,null,null,null,null,null,null,null,null,null,null,null,null,null,null,"ZWO"]
[null,null,null,null,null,null,null,null,null,null,null,null,null,null,{"$f":"VLOOKUP(N1190,Tabel10[[korte omschrijving]:[MCC3_CODE]],2,0)","v":{"$error":"#N/A"}},{"$f":"VLOOKUP(N1190,Tabel10[],3,0)","v":{"$error":"#N/A"}},null,null,null,null,null,null,null,null,null,null,null,{"$error":"#DIV/0!"},0,0,null,"","","","","","","","","","",null,null,null,null,null,null,null,null,null,null,null,null,null,null,null,null,null,"ZWO"]
[null,null,null,null,null,null,null,null,null,null,null,null,null,null,{"$f":"VLOOKUP(N1191,Tabel10[[korte omschrijving]:[MCC3_CODE]],2,0)","v":{"$error":"#N/A"}},{"$f":"VLOOKUP(N1191,Tabel10[],3,0)","v":{"$error":"#N/A"}},null,null,null,null,null,null,null,null,null,null,null,{"$error":"#DIV/0!"},0,0,null,"","","","","","","","","","",null,null,null,null,null,null,null,null,null,null,null,null,null,null,null,null,null,"ZWO"]
[null,null,null,null,null,null,null,null,null,null,null,null,null,null,{"$f":"VLOOKUP(N1192,Tabel10[[korte omschrijving]:[MCC3_CODE]],2,0)","v":{"$error":"#N/A"}},{"$f":"VLOOKUP(N1192,Tabel10[],3,0)","v":{"$error":"#N/A"}},null,null,null,null,null,null,null,null,null,null,null,{"$error":"#DIV/0!"},0,0,null,"","","","","","","","","","",null,null,null,null,null,null,null,null,null,null,null,null,null,null,null,null,null,"ZWO"]
[null,null,null,null,null,null,null,null,null,null,null,null,null,null,{"$f":"VLOOKUP(N1193,Tabel10[[korte omschrijving]:[MCC3_CODE]],2,0)","v":{"$error":"#N/A"}},{"$f":"VLOOKUP(N1193,Tabel10[],3,0)","v":{"$error":"#N/A"}},null,null,null,null,null,null,null,null,null,null,null,{"$error":"#DIV/0!"},0,0,null,"","","","","","","","","","",null,null,null,null,null,null,null,null,null,null,null,null,null,null,null,null,null,"ZWO"]
[null,null,null,null,null,null,null,null,null,null,null,null,null,null,{"$f":"VLOOKUP(N1194,Tabel10[[korte omschrijving]:[MCC3_CODE]],2,0)","v":{"$error":"#N/A"}},{"$f":"VLOOKUP(N1194,Tabel10[],3,0)","v":{"$error":"#N/A"}},null,null,null,null,0,null,null,null,null,null,null,{"$error":"#DIV/0!"},0,0,null,"","","","","","","","","","",null,null,null,null,null,null,null,null,null,null,null,null,null,null,null,null,null,"ZWO"]
[null,null,null,null,null,null,null,null,null,null,null,null,null,null,{"$f":"VLOOKUP(N1195,Tabel10[[korte omschrijving]:[MCC3_CODE]],2,0)","v":{"$error":"#N/A"}},{"$f":"VLOOKUP(N1195,Tabel10[],3,0)","v":{"$error":"#N/A"}},null,null,null,null,null,null,null,null,null,null,null,{"$error":"#DIV/0!"},0,0,null,"","","","","","","","","","",null,null,null,null,null,null,null,null,null,null,null,null,null,null,null,null,null,"ZWO"]
[null,null,null,null,null,null,null,null,null,null,null,null,null,null,{"$f":"VLOOKUP(N1196,Tabel10[[korte omschrijving]:[MCC3_CODE]],2,0)","v":{"$error":"#N/A"}},{"$f":"VLOOKUP(N1196,Tabel10[],3,0)","v":{"$error":"#N/A"}},null,null,null,null,null,null,null,null,null,null,null,{"$error":"#DIV/0!"},0,0,null,"","","","","","","","","","",null,null,null,null,null,null,null,null,null,null,null,null,null,null,null,null,null,"ZWO"]
[null,null,null,null,null,null,null,null,null,null,null,null,null,null,{"$f":"VLOOKUP(N1197,Tabel10[[korte omschrijving]:[MCC3_CODE]],2,0)","v":{"$error":"#N/A"}},{"$f":"VLOOKUP(N1197,Tabel10[],3,0)","v":{"$error":"#N/A"}},null,null,null,null,null,null,null,null,null,null,null,{"$error":"#DIV/0!"},0,0,null,"","","","","","","","","","",null,null,null,null,null,null,null,null,null,null,null,null,null,null,null,null,null,"ZWO"]
[null,null,null,null,null,null,null,null,null,null,null,null,null,null,{"$f":"VLOOKUP(N1198,Tabel10[[korte omschrijving]:[MCC3_CODE]],2,0)","v":{"$error":"#N/A"}},{"$f":"VLOOKUP(N1198,Tabel10[],3,0)","v":{"$error":"#N/A"}},null,null,null,null,null,null,null,null,null,null,null,{"$error":"#DIV/0!"},0,0,null,"","","","","","","","","","",null,null,null,null,null,null,null,null,null,null,null,null,null,null,null,null,null,"ZWO"]
[null,null,null,null,null,null,null,null,null,null,null,null,null,null,{"$f":"VLOOKUP(N1199,Tabel10[[korte omschrijving]:[MCC3_CODE]],2,0)","v":{"$error":"#N/A"}},{"$f":"VLOOKUP(N1199,Tabel10[],3,0)","v":{"$error":"#N/A"}},null,null,null,null,null,null,null,null,null,null,null,{"$error":"#DIV/0!"},0,0,null,"","","","","","","","","","",null,null,null,null,null,null,null,null,null,null,null,null,null,null,null,null,null,"ZWO"]
[null,null,null,null,null,null,null,null,null,null,null,null,null,null,{"$f":"VLOOKUP(N1200,Tabel10[[korte omschrijving]:[MCC3_CODE]],2,0)","v":{"$error":"#N/A"}},{"$f":"VLOOKUP(N1200,Tabel10[],3,0)","v":{"$error":"#N/A"}},null,null,null,null,0,null,null,null,null,null,null,{"$error":"#DIV/0!"},0,0,null,"","","","","","","","","","",null,null,null,null,null,null,null,null,null,null,null,null,null,null,null,null,null,"ZWO"]
[null,null,null,null,null,null,null,null,null,null,null,null,null,null,{"$f":"VLOOKUP(N1201,Tabel10[[korte omschrijving]:[MCC3_CODE]],2,0)","v":{"$error":"#N/A"}},{"$f":"VLOOKUP(N1201,Tabel10[],3,0)","v":{"$error":"#N/A"}},null,null,null,null,null,null,null,null,null,null,null,{"$error":"#DIV/0!"},0,0,null,"","","","","","","","","","",null,null,null,null,null,null,null,null,null,null,null,null,null,null,null,null,null,"ZWO"]
[null,null,null,null,null,null,null,null,null,null,null,null,null,null,{"$f":"VLOOKUP(N1202,Tabel10[[korte omschrijving]:[MCC3_CODE]],2,0)","v":{"$error":"#N/A"}},{"$f":"VLOOKUP(N1202,Tabel10[],3,0)","v":{"$error":"#N/A"}},null,null,null,null,null,null,null,null,null,null,null,{"$error":"#DIV/0!"},0,0,null,"","","","","","","","","","",null,null,null,null,null,null,null,null,null,null,null,null,null,null,null,null,null,"ZWO"]
[null,null,null,null,null,null,null,null,null,null,null,null,null,null,{"$f":"VLOOKUP(N1203,Tabel10[[korte omschrijving]:[MCC3_CODE]],2,0)","v":{"$error":"#N/A"}},{"$f":"VLOOKUP(N1203,Tabel10[],3,0)","v":{"$error":"#N/A"}},null,null,null,null,null,null,null,null,null,null,null,{"$error":"#DIV/0!"},0,0,null,"","","","","","","","","","",null,null,null,null,null,null,null,null,null,null,null,null,null,null,null,null,null,"ZWO"]
[null,null,null,null,null,null,null,null,null,null,null,null,null,null,{"$f":"VLOOKUP(N1204,Tabel10[[korte omschrijving]:[MCC3_CODE]],2,0)","v":{"$error":"#N/A"}},{"$f":"VLOOKUP(N1204,Tabel10[],3,0)","v":{"$error":"#N/A"}},null,null,null,null,null,null,null,null,null,null,null,{"$error":"#DIV/0!"},0,0,null,"","","","","","","","","","",null,null,null,null,null,null,null,null,null,null,null,null,null,null,null,null,null,"ZWO"]
[null,null,null,null,null,null,null,null,null,null,null,null,null,null,{"$f":"VLOOKUP(N1205,Tabel10[[korte omschrijving]:[MCC3_CODE]],2,0)","v":{"$error":"#N/A"}},{"$f":"VLOOKUP(N1205,Tabel10[],3,0)","v":{"$error":"#N/A"}},null,null,null,null,null,null,null,null,null,null,null,{"$error":"#DIV/0!"},0,0,null,"","","","","","","","","","",null,null,null,null,null,null,null,null,null,null,null,null,null,null,null,null,null,"ZWO"]
[null,null,null,null,null,null,null,null,null,null,null,null,null,null,{"$f":"VLOOKUP(N1206,Tabel10[[korte omschrijving]:[MCC3_CODE]],2,0)","v":{"$error":"#N/A"}},{"$f":"VLOOKUP(N1206,Tabel10[],3,0)","v":{"$error":"#N/A"}},null,null,null,null,0,null,null,null,null,null,null,{"$error":"#DIV/0!"},0,0,null,"","","","","","","","","","",null,null,null,null,null,null,null,null,null,null,null,null,null,null,null,null,null,"ZWO"]
[null,null,null,null,null,null,null,null,null,null,null,null,null,null,{"$f":"VLOOKUP(N1207,Tabel10[[korte omschrijving]:[MCC3_CODE]],2,0)","v":{"$error":"#N/A"}},{"$f":"VLOOKUP(N1207,Tabel10[],3,0)","v":{"$error":"#N/A"}},null,null,null,null,null,null,null,null,null,null,null,{"$error":"#DIV/0!"},0,0,null,"","","","","","","","","","",null,null,null,null,null,null,null,null,null,null,null,null,null,null,null,null,null,"ZWO"]
[null,null,null,null,null,null,null,null,null,null,null,null,null,null,{"$f":"VLOOKUP(N1208,Tabel10[[korte omschrijving]:[MCC3_CODE]],2,0)","v":{"$error":"#N/A"}},{"$f":"VLOOKUP(N1208,Tabel10[],3,0)","v":{"$error":"#N/A"}},null,null,null,null,null,null,null,null,null,null,null,{"$f":"AA1208/Y1208","v":{"$error":"#DIV/0!"}},{"$f":"T1208*Y1208","v":0},{"$f":"T1208*AA1208","v":0},null,{"$f":"IF(AE1208 <> \"\",\n    IF(ISNUMBER(VALUE(LEFT(AE1208, FIND(\"%\", AE1208)-1))),\n        VALUE(LEFT(AE1208, FIND(\"%\", AE1208)-1)),\n        \"Invalid format\"),\n    \"\")","v":""},{"$f":"IF(AE1208 <> \"\",\n    IF(ISNUMBER(VALUE(LEFT(AE1208, FIND(\"%\", AE1208)-1))) * ISNUMBER(FIND(\"%\", AE1208 & \"wol\")) > 0,\n        TRIM(MID(AE1208, FIND(\"%\", AE1208)+1, FIND(\"/\", AE1208 & \"/\")-FIND(\"%\", AE1208)-1)),\n        \"Invalid format\"),\n    \"\")","v":""},{"$f":"IF(AE1208 <> \"\",\n    IF(ISNUMBER(VALUE(MID(AE1208, FIND(\"/\", AE1208) + 1, FIND(\"%\", AE1208, FIND(\"/\", AE1208)) - FIND(\"/\", AE1208) - 1))),\n        VALUE(MID(AE1208, FIND(\"/\", AE1208) + 1, FIND(\"%\", AE1208, FIND(\"/\", AE1208)) - FIND(\"/\", AE1208) - 1)),\n        \"\"),\n    \"\")","v":""},{"$f":"IF(AE1208 <> \"\",\n    IFERROR(TRIM(MID(AE1208, FIND(\"%\", AE1208, FIND(\"/\", AE1208)+1)+2,\n        IFERROR(FIND(\"/\", AE1208 & \"/\", FIND(\"/\", AE1208)+1)-FIND(\"%\", AE1208, FIND(\"/\", AE1208)+1)-2, LEN(AE1208)-FIND(\"%\", AE1208, FIND(\"/\", AE1208)+1)-1))),\n        \"\"),\n    \"\")","v":""},{"$f":"IF(AE1208 <> \"\",\n    IF(ISNUMBER(VALUE(MID(AE1208, FIND(\"/\", AE1208, FIND(\"/\", AE1208)+1) + 1, FIND(\"%\", AE1208, FIND(\"/\", AE1208, FIND(\"/\", AE1208)+1)) - FIND(\"/\", AE1208, FIND(\"/\", AE1208)+1) - 1))),\n        VALUE(MID(AE1208, FIND(\"/\", AE1208, FIND(\"/\", AE1208)+1) + 1, FIND(\"%\", AE1208, FIND(\"/\", AE1208, FIND(\"/\", AE1208)+1)) - FIND(\"/\", AE1208, FIND(\"/\", AE1208)+1) - 1)),\n        \"\"),\n    \"\")","v":""},{"$f":"IF(AE1208 <> \"\",\n    IFERROR(\n        TRIM(MID(AE1208,\n            FIND(\"%\", AE1208, FIND(\"%\", AE1208, FIND(\"%\", AE1208)+1)+1)+1,\n            FIND(\"/\", AE1208 & \"/\", FIND(\"%\", AE1208, FIND(\"%\", AE1208, FIND(\"%\", AE1208)+1)+1))-FIND(\"%\", AE1208, FIND(\"%\", AE1208, FIND(\"%\", AE1208)+1)+1)-1)\n        ),\n        \"\"\n    ),\n    \"\"\n)","v":""},{"$f":"IF(AE1208 <> \"\",\n    IF(ISNUMBER(VALUE(MID(AE1208, FIND(\"/\", AE1208, FIND(\"/\", AE1208, FIND(\"/\", AE1208)+1)+1) + 1, FIND(\"%\", AE1208, FIND(\"/\", AE1208, FIND(\"/\", AE1208, FIND(\"/\", AE1208)+1)+1)) - FIND(\"/\", AE1208, FIND(\"/\", AE1208, FIND(\"/\", AE1208)+1)+1) - 1))),\n        VALUE(MID(AE1208, FIND(\"/\", AE1208, FIND(\"/\", AE1208, FIND(\"/\", AE1208)+1)+1) + 1, FIND(\"%\", AE1208, FIND(\"/\", AE1208, FIND(\"/\", AE1208, FIND(\"/\", AE1208)+1)+1)) - FIND(\"/\", AE1208, FIND(\"/\", AE1208, FIND(\"/\", AE1208)+1)+1) - 1)),\n        \"\"),\n    \"\")","v":""},{"$f":"IF(AE1208 <> \"\",\n    IFERROR(TRIM(MID(AE1208, FIND(\"%\", AE1208, FIND(\"/\", AE1208, FIND(\"/\", AE1208, FIND(\"/\", AE1208)+1)+1)+1)+2,\n        IFERROR(FIND(\"/\", AE1208, FIND(\"/\", AE1208, FIND(\"/\", AE1208, FIND(\"/\", AE1208)+1)+1)+1)-FIND(\"%\", AE1208, FIND(\"/\", AE1208, FIND(\"/\", AE1208, FIND(\"/\", AE1208)+1)+1)+1)-2, LEN(AE1208)-FIND(\"%\", AE1208, FIND(\"/\", AE1208, FIND(\"/\", AE1208, FIND(\"/\", AE1208)+1)+1)+1)-1))),\n        \"\"),\n    \"\")","v":""},{"$f":"IF(AE1208 <> \"\",\n    IF(ISNUMBER(VALUE(MID(AE1208, FIND(\"/\", AE1208, FIND(\"/\", AE1208, FIND(\"/\", AE1208, FIND(\"/\", AE1208)+1)+1)+1) + 1, FIND(\"%\", AE1208, FIND(\"/\", AE1208, FIND(\"/\", AE1208, FIND(\"/\", AE1208, FIND(\"/\", AE1208)+1)+1)+1)) - FIND(\"/\", AE1208, FIND(\"/\", AE1208, FIND(\"/\", AE1208, FIND(\"/\", AE1208)+1)+1)+1) - 1))),\n        VALUE(MID(AE1208, FIND(\"/\", AE1208, FIND(\"/\", AE1208, FIND(\"/\", AE1208, FIND(\"/\", AE1208)+1)+1)+1) + 1, FIND(\"%\", AE1208, FIND(\"/\", AE1208, FIND(\"/\", AE1208, FIND(\"/\", AE1208, FIND(\"/\", AE1208)+1)+1)+1)) - FIND(\"/\", AE1208, FIND(\"/\", AE1208, FIND(\"/\", AE1208, FIND(\"/\", AE1208)+1)+1)+1) - 1)),\n        \"\"),\n    \"\")","v":""},{"$f":"IF(AE1208 = \"\", \"\",\n    IFERROR(TRIM(\n        MID(\n            AE1208,\n            FIND(\"%\", AE1208, FIND(\"/\", AE1208, FIND(\"/\", AE1208, FIND(\"/\", AE1208, FIND(\"/\", AE1208)+1)+1)+1)+1) + 1,\n            FIND(\"/\", AE1208 & \"/\", FIND(\"%\", AE1208, FIND(\"/\", AE1208, FIND(\"/\", AE1208, FIND(\"/\", AE1208, FIND(\"/\", AE1208)+1)+1)+1)+1)) -\n            FIND(\"%\", AE1208, FIND(\"/\", AE1208, FIND(\"/\", AE1208, FIND(\"/\", AE1208, FIND(\"/\", AE1208)+1)+1)+1)+1) - 1\n        )\n    ),\n    \"\")\n)","v":""},null,null,null,null,null,null,null,null,null,null,null,null,null,null,null,null,null,"ZWO"]
[null,null,null,null,null,null,null,null,null,null,null,null,null,null,{"$f":"VLOOKUP(N1209,Tabel10[[korte omschrijving]:[MCC3_CODE]],2,0)","v":{"$error":"#N/A"}},{"$f":"VLOOKUP(N1209,Tabel10[],3,0)","v":{"$error":"#N/A"}},null,null,null,null,null,null,null,null,null,null,null,{"$error":"#DIV/0!"},0,0,null,"","","","","","","","","","",null,null,null,null,null,null,null,null,null,null,null,null,null,null,null,null,null,"ZWO"]
[null,null,null,null,null,null,null,null,null,null,null,null,null,null,{"$f":"VLOOKUP(N1210,Tabel10[[korte omschrijving]:[MCC3_CODE]],2,0)","v":{"$error":"#N/A"}},{"$f":"VLOOKUP(N1210,Tabel10[],3,0)","v":{"$error":"#N/A"}},null,null,null,null,null,null,null,null,null,null,null,{"$error":"#DIV/0!"},0,0,null,"","","","","","","","","","",null,null,null,null,null,null,null,null,null,null,null,null,null,null,null,null,null,"ZWO"]
[null,null,null,null,null,null,null,null,null,null,null,null,null,null,{"$f":"VLOOKUP(N1211,Tabel10[[korte omschrijving]:[MCC3_CODE]],2,0)","v":{"$error":"#N/A"}},{"$f":"VLOOKUP(N1211,Tabel10[],3,0)","v":{"$error":"#N/A"}},null,null,null,null,null,null,null,null,null,null,null,{"$error":"#DIV/0!"},0,0,null,"","","","","","","","","","",null,null,null,null,null,null,null,null,null,null,null,null,null,null,null,null,null,"ZWO"]
[null,null,null,null,null,null,null,null,null,null,null,null,null,null,{"$f":"VLOOKUP(N1212,Tabel10[[korte omschrijving]:[MCC3_CODE]],2,0)","v":{"$error":"#N/A"}},{"$f":"VLOOKUP(N1212,Tabel10[],3,0)","v":{"$error":"#N/A"}},null,null,null,null,0,null,null,null,null,null,null,{"$error":"#DIV/0!"},0,0,null,"","","","","","","","","","",null,null,null,null,null,null,null,null,null,null,null,null,null,null,null,null,null,"ZWO"]
[null,null,null,null,null,null,null,null,null,null,null,null,null,null,{"$f":"VLOOKUP(N1213,Tabel10[[korte omschrijving]:[MCC3_CODE]],2,0)","v":{"$error":"#N/A"}},{"$f":"VLOOKUP(N1213,Tabel10[],3,0)","v":{"$error":"#N/A"}},null,null,null,null,null,null,null,null,null,null,null,{"$error":"#DIV/0!"},0,0,null,"","","","","","","","","","",null,null,null,null,null,null,null,null,null,null,null,null,null,null,null,null,null,"ZWO"]
[null,null,null,null,null,null,null,null,null,null,null,null,null,null,{"$f":"VLOOKUP(N1214,Tabel10[[korte omschrijving]:[MCC3_CODE]],2,0)","v":{"$error":"#N/A"}},{"$f":"VLOOKUP(N1214,Tabel10[],3,0)","v":{"$error":"#N/A"}},null,null,null,null,null,null,null,null,null,null,null,{"$error":"#DIV/0!"},0,0,null,"","","","","","","","","","",null,null,null,null,null,null,null,null,null,null,null,null,null,null,null,null,null,"ZWO"]
[null,null,null,null,null,null,null,null,null,null,null,null,null,null,{"$f":"VLOOKUP(N1215,Tabel10[[korte omschrijving]:[MCC3_CODE]],2,0)","v":{"$error":"#N/A"}},{"$f":"VLOOKUP(N1215,Tabel10[],3,0)","v":{"$error":"#N/A"}},null,null,null,null,null,null,null,null,null,null,null,{"$error":"#DIV/0!"},0,0,null,"","","","","","","","","","",null,null,null,null,null,null,null,null,null,null,null,null,null,null,null,null,null,"ZWO"]
[null,null,null,null,null,null,null,null,null,null,null,null,null,null,{"$f":"VLOOKUP(N1216,Tabel10[[korte omschrijving]:[MCC3_CODE]],2,0)","v":{"$error":"#N/A"}},{"$f":"VLOOKUP(N1216,Tabel10[],3,0)","v":{"$error":"#N/A"}},null,null,null,null,null,null,null,null,null,null,null,{"$error":"#DIV/0!"},0,0,null,"","","","","","","","","","",null,null,null,null,null,null,null,null,null,null,null,null,null,null,null,null,null,"ZWO"]
[null,null,null,null,null,null,null,null,null,null,null,null,null,null,{"$f":"VLOOKUP(N1217,Tabel10[[korte omschrijving]:[MCC3_CODE]],2,0)","v":{"$error":"#N/A"}},{"$f":"VLOOKUP(N1217,Tabel10[],3,0)","v":{"$error":"#N/A"}},null,null,null,null,null,null,null,null,null,null,null,{"$error":"#DIV/0!"},0,0,null,"","","","","","","","","","",null,null,null,null,null,null,null,null,null,null,null,null,null,null,null,null,null,"ZWO"]
[null,null,null,null,null,null,null,null,null,null,null,null,null,null,{"$f":"VLOOKUP(N1218,Tabel10[[korte omschrijving]:[MCC3_CODE]],2,0)","v":{"$error":"#N/A"}},{"$f":"VLOOKUP(N1218,Tabel10[],3,0)","v":{"$error":"#N/A"}},null,null,null,null,0,null,null,null,null,null,null,{"$error":"#DIV/0!"},0,0,null,"","","","","","","","","","",null,null,null,null,null,null,null,null,null,null,null,null,null,null,null,null,null,"ZWO"]
[null,null,null,null,null,null,null,null,null,null,null,null,null,null,{"$f":"VLOOKUP(N1219,Tabel10[[korte omschrijving]:[MCC3_CODE]],2,0)","v":{"$error":"#N/A"}},{"$f":"VLOOKUP(N1219,Tabel10[],3,0)","v":{"$error":"#N/A"}},null,null,null,null,null,null,null,null,null,null,null,{"$error":"#DIV/0!"},0,0,null,"","","","","","","","","","",null,null,null,null,null,null,null,null,null,null,null,null,null,null,null,null,null,"ZWO"]
[null,null,null,null,null,null,null,null,null,null,null,null,null,null,{"$f":"VLOOKUP(N1220,Tabel10[[korte omschrijving]:[MCC3_CODE]],2,0)","v":{"$error":"#N/A"}},{"$f":"VLOOKUP(N1220,Tabel10[],3,0)","v":{"$error":"#N/A"}},null,null,null,null,null,null,null,null,null,null,null,{"$error":"#DIV/0!"},0,0,null,"","","","","","","","","","",null,null,null,null,null,null,null,null,null,null,null,null,null,null,null,null,null,"ZWO"]
[null,null,null,null,null,null,null,null,null,null,null,null,null,null,{"$f":"VLOOKUP(N1221,Tabel10[[korte omschrijving]:[MCC3_CODE]],2,0)","v":{"$error":"#N/A"}},{"$f":"VLOOKUP(N1221,Tabel10[],3,0)","v":{"$error":"#N/A"}},null,null,null,null,null,null,null,null,null,null,null,{"$error":"#DIV/0!"},0,0,null,"","","","","","","","","","",null,null,null,null,null,null,null,null,null,null,null,null,null,null,null,null,null,"ZWO"]
[null,null,null,null,null,null,null,null,null,null,null,null,null,null,{"$f":"VLOOKUP(N1222,Tabel10[[korte omschrijving]:[MCC3_CODE]],2,0)","v":{"$error":"#N/A"}},{"$f":"VLOOKUP(N1222,Tabel10[],3,0)","v":{"$error":"#N/A"}},null,null,null,null,null,null,null,null,null,null,null,{"$error":"#DIV/0!"},0,0,null,"","","","","","","","","","",null,null,null,null,null,null,null,null,null,null,null,null,null,null,null,null,null,"ZWO"]
[null,null,null,null,null,null,null,null,null,null,null,null,null,null,{"$f":"VLOOKUP(N1223,Tabel10[[korte omschrijving]:[MCC3_CODE]],2,0)","v":{"$error":"#N/A"}},{"$f":"VLOOKUP(N1223,Tabel10[],3,0)","v":{"$error":"#N/A"}},null,null,null,null,null,null,null,null,null,null,null,{"$error":"#DIV/0!"},0,0,null,"","","","","","","","","","",null,null,null,null,null,null,null,null,null,null,null,null,null,null,null,null,null,"ZWO"]
[null,null,null,null,null,null,null,null,null,null,null,null,null,null,{"$f":"VLOOKUP(N1224,Tabel10[[korte omschrijving]:[MCC3_CODE]],2,0)","v":{"$error":"#N/A"}},{"$f":"VLOOKUP(N1224,Tabel10[],3,0)","v":{"$error":"#N/A"}},null,null,null,null,0,null,null,null,null,null,null,{"$error":"#DIV/0!"},0,0,null,"","","","","","","","","","",null,null,null,null,null,null,null,null,null,null,null,null,null,null,null,null,null,"ZWO"]
[null,null,null,null,null,null,null,null,null,null,null,null,null,null,{"$f":"VLOOKUP(N1225,Tabel10[[korte omschrijving]:[MCC3_CODE]],2,0)","v":{"$error":"#N/A"}},{"$f":"VLOOKUP(N1225,Tabel10[],3,0)","v":{"$error":"#N/A"}},null,null,null,null,null,null,null,null,null,null,null,{"$error":"#DIV/0!"},0,0,null,"","","","","","","","","","",null,null,null,null,null,null,null,null,null,null,null,null,null,null,null,null,null,"ZWO"]
[null,null,null,null,null,null,null,null,null,null,null,null,null,null,{"$f":"VLOOKUP(N1226,Tabel10[[korte omschrijving]:[MCC3_CODE]],2,0)","v":{"$error":"#N/A"}},{"$f":"VLOOKUP(N1226,Tabel10[],3,0)","v":{"$error":"#N/A"}},null,null,null,null,null,null,null,null,null,null,null,{"$error":"#DIV/0!"},0,0,null,"","","","","","","","","","",null,null,null,null,null,null,null,null,null,null,null,null,null,null,null,null,null,"ZWO"]
[null,null,null,null,null,null,null,null,null,null,null,null,null,null,{"$f":"VLOOKUP(N1227,Tabel10[[korte omschrijving]:[MCC3_CODE]],2,0)","v":{"$error":"#N/A"}},{"$f":"VLOOKUP(N1227,Tabel10[],3,0)","v":{"$error":"#N/A"}},null,null,null,null,null,null,null,null,null,null,null,{"$error":"#DIV/0!"},0,0,null,"","","","","","","","","","",null,null,null,null,null,null,null,null,null,null,null,null,null,null,null,null,null,"ZWO"]
[null,null,null,null,null,null,null,null,null,null,null,null,null,null,{"$f":"VLOOKUP(N1228,Tabel10[[korte omschrijving]:[MCC3_CODE]],2,0)","v":{"$error":"#N/A"}},{"$f":"VLOOKUP(N1228,Tabel10[],3,0)","v":{"$error":"#N/A"}},null,null,null,null,null,null,null,null,null,null,null,{"$error":"#DIV/0!"},0,0,null,"","","","","","","","","","",null,null,null,null,null,null,null,null,null,null,null,null,null,null,null,null,null,"ZWO"]
[null,null,null,null,null,null,null,null,null,null,null,null,null,null,{"$f":"VLOOKUP(N1229,Tabel10[[korte omschrijving]:[MCC3_CODE]],2,0)","v":{"$error":"#N/A"}},{"$f":"VLOOKUP(N1229,Tabel10[],3,0)","v":{"$error":"#N/A"}},null,null,null,null,null,null,null,null,null,null,null,{"$error":"#DIV/0!"},0,0,null,"","","","","","","","","","",null,null,null,null,null,null,null,null,null,null,null,null,null,null,null,null,null,"ZWO"]
[null,null,null,null,null,null,null,null,null,null,null,null,null,null,{"$f":"VLOOKUP(N1230,Tabel10[[korte omschrijving]:[MCC3_CODE]],2,0)","v":{"$error":"#N/A"}},{"$f":"VLOOKUP(N1230,Tabel10[],3,0)","v":{"$error":"#N/A"}},null,null,null,null,{"$f":"SUM(T1230:T1235)","v":0},null,null,null,null,null,null,{"$error":"#DIV/0!"},0,0,null,"","","","","","","","","","",null,null,null,null,null,null,null,null,null,null,null,null,null,null,null,null,null,"ZWO"]
[null,null,null,null,null,null,null,null,null,null,null,null,null,null,{"$f":"VLOOKUP(N1231,Tabel10[[korte omschrijving]:[MCC3_CODE]],2,0)","v":{"$error":"#N/A"}},{"$f":"VLOOKUP(N1231,Tabel10[],3,0)","v":{"$error":"#N/A"}},null,null,null,null,null,null,null,null,null,null,null,{"$error":"#DIV/0!"},0,0,null,"","","","","","","","","","",null,null,null,null,null,null,null,null,null,null,null,null,null,null,null,null,null,"ZWO"]
[null,null,null,null,null,null,null,null,null,null,null,null,null,null,{"$f":"VLOOKUP(N1232,Tabel10[[korte omschrijving]:[MCC3_CODE]],2,0)","v":{"$error":"#N/A"}},{"$f":"VLOOKUP(N1232,Tabel10[],3,0)","v":{"$error":"#N/A"}},null,null,null,null,null,null,null,null,null,null,null,{"$error":"#DIV/0!"},0,0,null,"","","","","","","","","","",null,null,null,null,null,null,null,null,null,null,null,null,null,null,null,null,null,"ZWO"]
[null,null,null,null,null,null,null,null,null,null,null,null,null,null,{"$f":"VLOOKUP(N1233,Tabel10[[korte omschrijving]:[MCC3_CODE]],2,0)","v":{"$error":"#N/A"}},{"$f":"VLOOKUP(N1233,Tabel10[],3,0)","v":{"$error":"#N/A"}},null,null,null,null,null,null,null,null,null,null,null,{"$error":"#DIV/0!"},0,0,null,"","","","","","","","","","",null,null,null,null,null,null,null,null,null,null,null,null,null,null,null,null,null,"ZWO"]
[null,null,null,null,null,null,null,null,null,null,null,null,null,null,{"$f":"VLOOKUP(N1234,Tabel10[[korte omschrijving]:[MCC3_CODE]],2,0)","v":{"$error":"#N/A"}},{"$f":"VLOOKUP(N1234,Tabel10[],3,0)","v":{"$error":"#N/A"}},null,null,null,null,null,null,null,null,null,null,null,{"$error":"#DIV/0!"},0,0,null,"","","","","","","","","","",null,null,null,null,null,null,null,null,null,null,null,null,null,null,null,null,null,"ZWO"]
[null,null,null,null,null,null,null,null,null,null,null,null,null,null,{"$f":"VLOOKUP(N1235,Tabel10[[korte omschrijving]:[MCC3_CODE]],2,0)","v":{"$error":"#N/A"}},{"$f":"VLOOKUP(N1235,Tabel10[],3,0)","v":{"$error":"#N/A"}},null,null,null,null,null,null,null,null,null,null,null,{"$error":"#DIV/0!"},0,0,null,"","","","","","","","","","",null,null,null,null,null,null,null,null,null,null,null,null,null,null,null,null,null,"ZWO"]
[null,null,null,null,null,null,null,null,null,null,null,null,null,null,{"$f":"VLOOKUP(N1236,Tabel10[[korte omschrijving]:[MCC3_CODE]],2,0)","v":{"$error":"#N/A"}},{"$f":"VLOOKUP(N1236,Tabel10[],3,0)","v":{"$error":"#N/A"}},null,null,null,null,0,null,null,null,null,null,null,{"$error":"#DIV/0!"},0,0,null,"","","","","","","","","","",null,null,null,null,null,null,null,null,null,null,null,null,null,null,null,null,null,"ZWO"]
[null,null,null,null,null,null,null,null,null,null,null,null,null,null,{"$f":"VLOOKUP(N1237,Tabel10[[korte omschrijving]:[MCC3_CODE]],2,0)","v":{"$error":"#N/A"}},{"$f":"VLOOKUP(N1237,Tabel10[],3,0)","v":{"$error":"#N/A"}},null,null,null,null,null,null,null,null,null,null,null,{"$error":"#DIV/0!"},0,0,null,"","","","","","","","","","",null,null,null,null,null,null,null,null,null,null,null,null,null,null,null,null,null,"ZWO"]
[null,null,null,null,null,null,null,null,null,null,null,null,null,null,{"$f":"VLOOKUP(N1238,Tabel10[[korte omschrijving]:[MCC3_CODE]],2,0)","v":{"$error":"#N/A"}},{"$f":"VLOOKUP(N1238,Tabel10[],3,0)","v":{"$error":"#N/A"}},null,null,null,null,null,null,null,null,null,null,null,{"$error":"#DIV/0!"},0,0,null,"","","","","","","","","","",null,null,null,null,null,null,null,null,null,null,null,null,null,null,null,null,null,"ZWO"]
[null,null,null,null,null,null,null,null,null,null,null,null,null,null,{"$f":"VLOOKUP(N1239,Tabel10[[korte omschrijving]:[MCC3_CODE]],2,0)","v":{"$error":"#N/A"}},{"$f":"VLOOKUP(N1239,Tabel10[],3,0)","v":{"$error":"#N/A"}},null,null,null,null,null,null,null,null,null,null,null,{"$error":"#DIV/0!"},0,0,null,"","","","","","","","","","",null,null,null,null,null,null,null,null,null,null,null,null,null,null,null,null,null,"ZWO"]
[null,null,null,null,null,null,null,null,null,null,null,null,null,null,{"$f":"VLOOKUP(N1240,Tabel10[[korte omschrijving]:[MCC3_CODE]],2,0)","v":{"$error":"#N/A"}},{"$f":"VLOOKUP(N1240,Tabel10[],3,0)","v":{"$error":"#N/A"}},null,null,null,null,null,null,null,null,null,null,null,{"$error":"#DIV/0!"},0,0,null,"","","","","","","","","","",null,null,null,null,null,null,null,null,null,null,null,null,null,null,null,null,null,"ZWO"]
[null,null,null,null,null,null,null,null,null,null,null,null,null,null,{"$f":"VLOOKUP(N1241,Tabel10[[korte omschrijving]:[MCC3_CODE]],2,0)","v":{"$error":"#N/A"}},{"$f":"VLOOKUP(N1241,Tabel10[],3,0)","v":{"$error":"#N/A"}},null,null,null,null,null,null,null,null,null,null,null,{"$error":"#DIV/0!"},0,0,null,"","","","","","","","","","",null,null,null,null,null,null,null,null,null,null,null,null,null,null,null,null,null,"ZWO"]
[null,null,null,null,null,null,null,null,null,null,null,null,null,null,{"$f":"VLOOKUP(N1242,Tabel10[[korte omschrijving]:[MCC3_CODE]],2,0)","v":{"$error":"#N/A"}},{"$f":"VLOOKUP(N1242,Tabel10[],3,0)","v":{"$error":"#N/A"}},null,null,null,null,0,null,null,null,null,null,null,{"$error":"#DIV/0!"},0,0,null,"","","","","","","","","","",null,null,null,null,null,null,null,null,null,null,null,null,null,null,null,null,null,"ZWO"]
[null,null,null,null,null,null,null,null,null,null,null,null,null,null,{"$f":"VLOOKUP(N1243,Tabel10[[korte omschrijving]:[MCC3_CODE]],2,0)","v":{"$error":"#N/A"}},{"$f":"VLOOKUP(N1243,Tabel10[],3,0)","v":{"$error":"#N/A"}},null,null,null,null,null,null,null,null,null,null,null,{"$error":"#DIV/0!"},0,0,null,"","","","","","","","","","",null,null,null,null,null,null,null,null,null,null,null,null,null,null,null,null,null,"ZWO"]
[null,null,null,null,null,null,null,null,null,null,null,null,null,null,{"$f":"VLOOKUP(N1244,Tabel10[[korte omschrijving]:[MCC3_CODE]],2,0)","v":{"$error":"#N/A"}},{"$f":"VLOOKUP(N1244,Tabel10[],3,0)","v":{"$error":"#N/A"}},null,null,null,null,null,null,null,null,null,null,null,{"$error":"#DIV/0!"},0,0,null,"","","","","","","","","","",null,null,null,null,null,null,null,null,null,null,null,null,null,null,null,null,null,"ZWO"]
[null,null,null,null,null,null,null,null,null,null,null,null,null,null,{"$f":"VLOOKUP(N1245,Tabel10[[korte omschrijving]:[MCC3_CODE]],2,0)","v":{"$error":"#N/A"}},{"$f":"VLOOKUP(N1245,Tabel10[],3,0)","v":{"$error":"#N/A"}},null,null,null,null,null,null,null,null,null,null,null,{"$error":"#DIV/0!"},0,0,null,"","","","","","","","","","",null,null,null,null,null,null,null,null,null,null,null,null,null,null,null,null,null,"ZWO"]
[null,null,null,null,null,null,null,null,null,null,null,null,null,null,{"$f":"VLOOKUP(N1246,Tabel10[[korte omschrijving]:[MCC3_CODE]],2,0)","v":{"$error":"#N/A"}},{"$f":"VLOOKUP(N1246,Tabel10[],3,0)","v":{"$error":"#N/A"}},null,null,null,null,null,null,null,null,null,null,null,{"$error":"#DIV/0!"},0,0,null,"","","","","","","","","","",null,null,null,null,null,null,null,null,null,null,null,null,null,null,null,null,null,"ZWO"]
[null,null,null,null,null,null,null,null,null,null,null,null,null,null,{"$f":"VLOOKUP(N1247,Tabel10[[korte omschrijving]:[MCC3_CODE]],2,0)","v":{"$error":"#N/A"}},{"$f":"VLOOKUP(N1247,Tabel10[],3,0)","v":{"$error":"#N/A"}},null,null,null,null,null,null,null,null,null,null,null,{"$error":"#DIV/0!"},0,0,null,"","","","","","","","","","",null,null,null,null,null,null,null,null,null,null,null,null,null,null,null,null,null,"ZWO"]
[null,null,null,null,null,null,null,null,null,null,null,null,null,null,{"$f":"VLOOKUP(N1248,Tabel10[[korte omschrijving]:[MCC3_CODE]],2,0)","v":{"$error":"#N/A"}},{"$f":"VLOOKUP(N1248,Tabel10[],3,0)","v":{"$error":"#N/A"}},null,null,null,null,0,null,null,null,null,null,null,{"$error":"#DIV/0!"},0,0,null,"","","","","","","","","","",null,null,null,null,null,null,null,null,null,null,null,null,null,null,null,null,null,"ZWO"]
[null,null,null,null,null,null,null,null,null,null,null,null,null,null,{"$f":"VLOOKUP(N1249,Tabel10[[korte omschrijving]:[MCC3_CODE]],2,0)","v":{"$error":"#N/A"}},{"$f":"VLOOKUP(N1249,Tabel10[],3,0)","v":{"$error":"#N/A"}},null,null,null,null,null,null,null,null,null,null,null,{"$error":"#DIV/0!"},0,0,null,"","","","","","","","","","",null,null,null,null,null,null,null,null,null,null,null,null,null,null,null,null,null,"ZWO"]
[null,null,null,null,null,null,null,null,null,null,null,null,null,null,{"$f":"VLOOKUP(N1250,Tabel10[[korte omschrijving]:[MCC3_CODE]],2,0)","v":{"$error":"#N/A"}},{"$f":"VLOOKUP(N1250,Tabel10[],3,0)","v":{"$error":"#N/A"}},null,null,null,null,null,null,null,null,null,null,null,{"$error":"#DIV/0!"},0,0,null,"","","","","","","","","","",null,null,null,null,null,null,null,null,null,null,null,null,null,null,null,null,null,"ZWO"]
[null,null,null,null,null,null,null,null,null,null,null,null,null,null,{"$f":"VLOOKUP(N1251,Tabel10[[korte omschrijving]:[MCC3_CODE]],2,0)","v":{"$error":"#N/A"}},{"$f":"VLOOKUP(N1251,Tabel10[],3,0)","v":{"$error":"#N/A"}},null,null,null,null,null,null,null,null,null,null,null,{"$error":"#DIV/0!"},0,0,null,"","","","","","","","","","",null,null,null,null,null,null,null,null,null,null,null,null,null,null,null,null,null,"ZWO"]
[null,null,null,null,null,null,null,null,null,null,null,null,null,null,{"$f":"VLOOKUP(N1252,Tabel10[[korte omschrijving]:[MCC3_CODE]],2,0)","v":{"$error":"#N/A"}},{"$f":"VLOOKUP(N1252,Tabel10[],3,0)","v":{"$error":"#N/A"}},null,null,null,null,null,null,null,null,null,null,null,{"$error":"#DIV/0!"},0,0,null,"","","","","","","","","","",null,null,null,null,null,null,null,null,null,null,null,null,null,null,null,null,null,"ZWO"]
[null,null,null,null,null,null,null,null,null,null,null,null,null,null,{"$f":"VLOOKUP(N1253,Tabel10[[korte omschrijving]:[MCC3_CODE]],2,0)","v":{"$error":"#N/A"}},{"$f":"VLOOKUP(N1253,Tabel10[],3,0)","v":{"$error":"#N/A"}},null,null,null,null,null,null,null,null,null,null,null,{"$error":"#DIV/0!"},0,0,null,"","","","","","","","","","",null,null,null,null,null,null,null,null,null,null,null,null,null,null,null,null,null,"ZWO"]
[null,null,null,null,null,null,null,null,null,null,null,null,null,null,{"$f":"VLOOKUP(N1254,Tabel10[[korte omschrijving]:[MCC3_CODE]],2,0)","v":{"$error":"#N/A"}},{"$f":"VLOOKUP(N1254,Tabel10[],3,0)","v":{"$error":"#N/A"}},null,null,null,null,0,null,null,null,null,null,null,{"$error":"#DIV/0!"},0,0,null,"","","","","","","","","","",null,null,null,null,null,null,null,null,null,null,null,null,null,null,null,null,null,"ZWO"]
[null,null,null,null,null,null,null,null,null,null,null,null,null,null,{"$f":"VLOOKUP(N1255,Tabel10[[korte omschrijving]:[MCC3_CODE]],2,0)","v":{"$error":"#N/A"}},{"$f":"VLOOKUP(N1255,Tabel10[],3,0)","v":{"$error":"#N/A"}},null,null,null,null,null,null,null,null,null,null,null,{"$error":"#DIV/0!"},0,0,null,"","","","","","","","","","",null,null,null,null,null,null,null,null,null,null,null,null,null,null,null,null,null,"ZWO"]
[null,null,null,null,null,null,null,null,null,null,null,null,null,null,{"$f":"VLOOKUP(N1256,Tabel10[[korte omschrijving]:[MCC3_CODE]],2,0)","v":{"$error":"#N/A"}},{"$f":"VLOOKUP(N1256,Tabel10[],3,0)","v":{"$error":"#N/A"}},null,null,null,null,null,null,null,null,null,null,null,{"$error":"#DIV/0!"},0,0,null,"","","","","","","","","","",null,null,null,null,null,null,null,null,null,null,null,null,null,null,null,null,null,"ZWO"]
[null,null,null,null,null,null,null,null,null,null,null,null,null,null,{"$f":"VLOOKUP(N1257,Tabel10[[korte omschrijving]:[MCC3_CODE]],2,0)","v":{"$error":"#N/A"}},{"$f":"VLOOKUP(N1257,Tabel10[],3,0)","v":{"$error":"#N/A"}},null,null,null,null,null,null,null,null,null,null,null,{"$error":"#DIV/0!"},0,0,null,"","","","","","","","","","",null,null,null,null,null,null,null,null,null,null,null,null,null,null,null,null,null,"ZWO"]
[null,null,null,null,null,null,null,null,null,null,null,null,null,null,{"$f":"VLOOKUP(N1258,Tabel10[[korte omschrijving]:[MCC3_CODE]],2,0)","v":{"$error":"#N/A"}},{"$f":"VLOOKUP(N1258,Tabel10[],3,0)","v":{"$error":"#N/A"}},null,null,null,null,null,null,null,null,null,null,null,{"$error":"#DIV/0!"},0,0,null,"","","","","","","","","","",null,null,null,null,null,null,null,null,null,null,null,null,null,null,null,null,null,"ZWO"]
[null,null,null,null,null,null,null,null,null,null,null,null,null,null,{"$f":"VLOOKUP(N1259,Tabel10[[korte omschrijving]:[MCC3_CODE]],2,0)","v":{"$error":"#N/A"}},{"$f":"VLOOKUP(N1259,Tabel10[],3,0)","v":{"$error":"#N/A"}},null,null,null,null,null,null,null,null,null,null,null,{"$error":"#DIV/0!"},0,0,null,"","","","","","","","","","",null,null,null,null,null,null,null,null,null,null,null,null,null,null,null,null,null,"ZWO"]
[null,null,null,null,null,null,null,null,null,null,null,null,null,null,{"$f":"VLOOKUP(N1260,Tabel10[[korte omschrijving]:[MCC3_CODE]],2,0)","v":{"$error":"#N/A"}},{"$f":"VLOOKUP(N1260,Tabel10[],3,0)","v":{"$error":"#N/A"}},null,null,null,null,0,null,null,null,null,null,null,{"$error":"#DIV/0!"},0,0,null,"","","","","","","","","","",null,null,null,null,null,null,null,null,null,null,null,null,null,null,null,null,null,"ZWO"]
[null,null,null,null,null,null,null,null,null,null,null,null,null,null,{"$f":"VLOOKUP(N1261,Tabel10[[korte omschrijving]:[MCC3_CODE]],2,0)","v":{"$error":"#N/A"}},{"$f":"VLOOKUP(N1261,Tabel10[],3,0)","v":{"$error":"#N/A"}},null,null,null,null,null,null,null,null,null,null,null,{"$error":"#DIV/0!"},0,0,null,"","","","","","","","","","",null,null,null,null,null,null,null,null,null,null,null,null,null,null,null,null,null,"ZWO"]
[null,null,null,null,null,null,null,null,null,null,null,null,null,null,{"$f":"VLOOKUP(N1262,Tabel10[[korte omschrijving]:[MCC3_CODE]],2,0)","v":{"$error":"#N/A"}},{"$f":"VLOOKUP(N1262,Tabel10[],3,0)","v":{"$error":"#N/A"}},null,null,null,null,null,null,null,null,null,null,null,{"$error":"#DIV/0!"},0,0,null,"","","","","","","","","","",null,null,null,null,null,null,null,null,null,null,null,null,null,null,null,null,null,"ZWO"]
[null,null,null,null,null,null,null,null,null,null,null,null,null,null,{"$f":"VLOOKUP(N1263,Tabel10[[korte omschrijving]:[MCC3_CODE]],2,0)","v":{"$error":"#N/A"}},{"$f":"VLOOKUP(N1263,Tabel10[],3,0)","v":{"$error":"#N/A"}},null,null,null,null,null,null,null,null,null,null,null,{"$error":"#DIV/0!"},0,0,null,"","","","","","","","","","",null,null,null,null,null,null,null,null,null,null,null,null,null,null,null,null,null,"ZWO"]
[null,null,null,null,null,null,null,null,null,null,null,null,null,null,{"$f":"VLOOKUP(N1264,Tabel10[[korte omschrijving]:[MCC3_CODE]],2,0)","v":{"$error":"#N/A"}},{"$f":"VLOOKUP(N1264,Tabel10[],3,0)","v":{"$error":"#N/A"}},null,null,null,null,null,null,null,null,null,null,null,{"$error":"#DIV/0!"},0,0,null,"","","","","","","","","","",null,null,null,null,null,null,null,null,null,null,null,null,null,null,null,null,null,"ZWO"]
[null,null,null,null,null,null,null,null,null,null,null,null,null,null,{"$f":"VLOOKUP(N1265,Tabel10[[korte omschrijving]:[MCC3_CODE]],2,0)","v":{"$error":"#N/A"}},{"$f":"VLOOKUP(N1265,Tabel10[],3,0)","v":{"$error":"#N/A"}},null,null,null,null,null,null,null,null,null,null,null,{"$error":"#DIV/0!"},0,0,null,"","","","","","","","","","",null,null,null,null,null,null,null,null,null,null,null,null,null,null,null,null,null,"ZWO"]
[null,null,null,null,null,null,null,null,null,null,null,null,null,null,{"$f":"VLOOKUP(N1266,Tabel10[[korte omschrijving]:[MCC3_CODE]],2,0)","v":{"$error":"#N/A"}},{"$f":"VLOOKUP(N1266,Tabel10[],3,0)","v":{"$error":"#N/A"}},null,null,null,null,0,null,null,null,null,null,null,{"$error":"#DIV/0!"},0,0,null,"","","","","","","","","","",null,null,null,null,null,null,null,null,null,null,null,null,null,null,null,null,null,"ZWO"]
[null,null,null,null,null,null,null,null,null,null,null,null,null,null,{"$f":"VLOOKUP(N1267,Tabel10[[korte omschrijving]:[MCC3_CODE]],2,0)","v":{"$error":"#N/A"}},{"$f":"VLOOKUP(N1267,Tabel10[],3,0)","v":{"$error":"#N/A"}},null,null,null,null,null,null,null,null,null,null,null,{"$error":"#DIV/0!"},0,0,null,"","","","","","","","","","",null,null,null,null,null,null,null,null,null,null,null,null,null,null,null,null,null,"ZWO"]
[null,null,null,null,null,null,null,null,null,null,null,null,null,null,{"$f":"VLOOKUP(N1268,Tabel10[[korte omschrijving]:[MCC3_CODE]],2,0)","v":{"$error":"#N/A"}},{"$f":"VLOOKUP(N1268,Tabel10[],3,0)","v":{"$error":"#N/A"}},null,null,null,null,null,null,null,null,null,null,null,{"$error":"#DIV/0!"},0,0,null,"","","","","","","","","","",null,null,null,null,null,null,null,null,null,null,null,null,null,null,null,null,null,"ZWO"]
[null,null,null,null,null,null,null,null,null,null,null,null,null,null,{"$f":"VLOOKUP(N1269,Tabel10[[korte omschrijving]:[MCC3_CODE]],2,0)","v":{"$error":"#N/A"}},{"$f":"VLOOKUP(N1269,Tabel10[],3,0)","v":{"$error":"#N/A"}},null,null,null,null,null,null,null,null,null,null,null,{"$error":"#DIV/0!"},0,0,null,"","","","","","","","","","",null,null,null,null,null,null,null,null,null,null,null,null,null,null,null,null,null,"ZWO"]
[null,null,null,null,null,null,null,null,null,null,null,null,null,null,{"$f":"VLOOKUP(N1270,Tabel10[[korte omschrijving]:[MCC3_CODE]],2,0)","v":{"$error":"#N/A"}},{"$f":"VLOOKUP(N1270,Tabel10[],3,0)","v":{"$error":"#N/A"}},null,null,null,null,null,null,null,null,null,null,null,{"$error":"#DIV/0!"},0,0,null,"","","","","","","","","","",null,null,null,null,null,null,null,null,null,null,null,null,null,null,null,null,null,"ZWO"]
[null,null,null,null,null,null,null,null,null,null,null,null,null,null,{"$f":"VLOOKUP(N1271,Tabel10[[korte omschrijving]:[MCC3_CODE]],2,0)","v":{"$error":"#N/A"}},{"$f":"VLOOKUP(N1271,Tabel10[],3,0)","v":{"$error":"#N/A"}},null,null,null,null,null,null,null,null,null,null,null,{"$error":"#DIV/0!"},0,0,null,"","","","","","","","","","",null,null,null,null,null,null,null,null,null,null,null,null,null,null,null,null,null,"ZWO"]
[null,null,null,null,null,null,null,null,null,null,null,null,null,null,{"$f":"VLOOKUP(N1272,Tabel10[[korte omschrijving]:[MCC3_CODE]],2,0)","v":{"$error":"#N/A"}},{"$f":"VLOOKUP(N1272,Tabel10[],3,0)","v":{"$error":"#N/A"}},null,null,null,null,0,null,null,null,null,null,null,{"$f":"AA1272/Y1272","v":{"$error":"#DIV/0!"}},{"$f":"T1272*Y1272","v":0},{"$f":"T1272*AA1272","v":0},null,{"$f":"IF(AE1272 <> \"\",\n    IF(ISNUMBER(VALUE(LEFT(AE1272, FIND(\"%\", AE1272)-1))),\n        VALUE(LEFT(AE1272, FIND(\"%\", AE1272)-1)),\n        \"Invalid format\"),\n    \"\")","v":""},{"$f":"IF(AE1272 <> \"\",\n    IF(ISNUMBER(VALUE(LEFT(AE1272, FIND(\"%\", AE1272)-1))) * ISNUMBER(FIND(\"%\", AE1272 & \"wol\")) > 0,\n        TRIM(MID(AE1272, FIND(\"%\", AE1272)+1, FIND(\"/\", AE1272 & \"/\")-FIND(\"%\", AE1272)-1)),\n        \"Invalid format\"),\n    \"\")","v":""},{"$f":"IF(AE1272 <> \"\",\n    IF(ISNUMBER(VALUE(MID(AE1272, FIND(\"/\", AE1272) + 1, FIND(\"%\", AE1272, FIND(\"/\", AE1272)) - FIND(\"/\", AE1272) - 1))),\n        VALUE(MID(AE1272, FIND(\"/\", AE1272) + 1, FIND(\"%\", AE1272, FIND(\"/\", AE1272)) - FIND(\"/\", AE1272) - 1)),\n        \"\"),\n    \"\")","v":""},{"$f":"IF(AE1272 <> \"\",\n    IFERROR(TRIM(MID(AE1272, FIND(\"%\", AE1272, FIND(\"/\", AE1272)+1)+2,\n        IFERROR(FIND(\"/\", AE1272 & \"/\", FIND(\"/\", AE1272)+1)-FIND(\"%\", AE1272, FIND(\"/\", AE1272)+1)-2, LEN(AE1272)-FIND(\"%\", AE1272, FIND(\"/\", AE1272)+1)-1))),\n        \"\"),\n    \"\")","v":""},{"$f":"IF(AE1272 <> \"\",\n    IF(ISNUMBER(VALUE(MID(AE1272, FIND(\"/\", AE1272, FIND(\"/\", AE1272)+1) + 1, FIND(\"%\", AE1272, FIND(\"/\", AE1272, FIND(\"/\", AE1272)+1)) - FIND(\"/\", AE1272, FIND(\"/\", AE1272)+1) - 1))),\n        VALUE(MID(AE1272, FIND(\"/\", AE1272, FIND(\"/\", AE1272)+1) + 1, FIND(\"%\", AE1272, FIND(\"/\", AE1272, FIND(\"/\", AE1272)+1)) - FIND(\"/\", AE1272, FIND(\"/\", AE1272)+1) - 1)),\n        \"\"),\n    \"\")","v":""},{"$f":"IF(AE1272 <> \"\",\n    IFERROR(\n        TRIM(MID(AE1272,\n            FIND(\"%\", AE1272, FIND(\"%\", AE1272, FIND(\"%\", AE1272)+1)+1)+1,\n            FIND(\"/\", AE1272 & \"/\", FIND(\"%\", AE1272, FIND(\"%\", AE1272, FIND(\"%\", AE1272)+1)+1))-FIND(\"%\", AE1272, FIND(\"%\", AE1272, FIND(\"%\", AE1272)+1)+1)-1)\n        ),\n        \"\"\n    ),\n    \"\"\n)","v":""},{"$f":"IF(AE1272 <> \"\",\n    IF(ISNUMBER(VALUE(MID(AE1272, FIND(\"/\", AE1272, FIND(\"/\", AE1272, FIND(\"/\", AE1272)+1)+1) + 1, FIND(\"%\", AE1272, FIND(\"/\", AE1272, FIND(\"/\", AE1272, FIND(\"/\", AE1272)+1)+1)) - FIND(\"/\", AE1272, FIND(\"/\", AE1272, FIND(\"/\", AE1272)+1)+1) - 1))),\n        VALUE(MID(AE1272, FIND(\"/\", AE1272, FIND(\"/\", AE1272, FIND(\"/\", AE1272)+1)+1) + 1, FIND(\"%\", AE1272, FIND(\"/\", AE1272, FIND(\"/\", AE1272, FIND(\"/\", AE1272)+1)+1)) - FIND(\"/\", AE1272, FIND(\"/\", AE1272, FIND(\"/\", AE1272)+1)+1) - 1)),\n        \"\"),\n    \"\")","v":""},{"$f":"IF(AE1272 <> \"\",\n    IFERROR(TRIM(MID(AE1272, FIND(\"%\", AE1272, FIND(\"/\", AE1272, FIND(\"/\", AE1272, FIND(\"/\", AE1272)+1)+1)+1)+2,\n        IFERROR(FIND(\"/\", AE1272, FIND(\"/\", AE1272, FIND(\"/\", AE1272, FIND(\"/\", AE1272)+1)+1)+1)-FIND(\"%\", AE1272, FIND(\"/\", AE1272, FIND(\"/\", AE1272, FIND(\"/\", AE1272)+1)+1)+1)-2, LEN(AE1272)-FIND(\"%\", AE1272, FIND(\"/\", AE1272, FIND(\"/\", AE1272, FIND(\"/\", AE1272)+1)+1)+1)-1))),\n        \"\"),\n    \"\")","v":""},{"$f":"IF(AE1272 <> \"\",\n    IF(ISNUMBER(VALUE(MID(AE1272, FIND(\"/\", AE1272, FIND(\"/\", AE1272, FIND(\"/\", AE1272, FIND(\"/\", AE1272)+1)+1)+1) + 1, FIND(\"%\", AE1272, FIND(\"/\", AE1272, FIND(\"/\", AE1272, FIND(\"/\", AE1272, FIND(\"/\", AE1272)+1)+1)+1)) - FIND(\"/\", AE1272, FIND(\"/\", AE1272, FIND(\"/\", AE1272, FIND(\"/\", AE1272)+1)+1)+1) - 1))),\n        VALUE(MID(AE1272, FIND(\"/\", AE1272, FIND(\"/\", AE1272, FIND(\"/\", AE1272, FIND(\"/\", AE1272)+1)+1)+1) + 1, FIND(\"%\", AE1272, FIND(\"/\", AE1272, FIND(\"/\", AE1272, FIND(\"/\", AE1272, FIND(\"/\", AE1272)+1)+1)+1)) - FIND(\"/\", AE1272, FIND(\"/\", AE1272, FIND(\"/\", AE1272, FIND(\"/\", AE1272)+1)+1)+1) - 1)),\n        \"\"),\n    \"\")","v":""},{"$f":"IF(AE1272 = \"\", \"\",\n    IFERROR(TRIM(\n        MID(\n            AE1272,\n            FIND(\"%\", AE1272, FIND(\"/\", AE1272, FIND(\"/\", AE1272, FIND(\"/\", AE1272, FIND(\"/\", AE1272)+1)+1)+1)+1) + 1,\n            FIND(\"/\", AE1272 & \"/\", FIND(\"%\", AE1272, FIND(\"/\", AE1272, FIND(\"/\", AE1272, FIND(\"/\", AE1272, FIND(\"/\", AE1272)+1)+1)+1)+1)) -\n            FIND(\"%\", AE1272, FIND(\"/\", AE1272, FIND(\"/\", AE1272, FIND(\"/\", AE1272, FIND(\"/\", AE1272)+1)+1)+1)+1) - 1\n        )\n    ),\n    \"\")\n)","v":""},null,null,null,null,null,null,null,null,null,null,null,null,null,null,null,null,null,"ZWO"]
[null,null,null,null,null,null,null,null,null,null,null,null,null,null,{"$f":"VLOOKUP(N1273,Tabel10[[korte omschrijving]:[MCC3_CODE]],2,0)","v":{"$error":"#N/A"}},{"$f":"VLOOKUP(N1273,Tabel10[],3,0)","v":{"$error":"#N/A"}},null,null,null,null,null,null,null,null,null,null,null,{"$error":"#DIV/0!"},0,0,null,"","","","","","","","","","",null,null,null,null,null,null,null,null,null,null,null,null,null,null,null,null,null,"ZWO"]
[null,null,null,null,null,null,null,null,null,null,null,null,null,null,{"$f":"VLOOKUP(N1274,Tabel10[[korte omschrijving]:[MCC3_CODE]],2,0)","v":{"$error":"#N/A"}},{"$f":"VLOOKUP(N1274,Tabel10[],3,0)","v":{"$error":"#N/A"}},null,null,null,null,null,null,null,null,null,null,null,{"$error":"#DIV/0!"},0,0,null,"","","","","","","","","","",null,null,null,null,null,null,null,null,null,null,null,null,null,null,null,null,null,"ZWO"]
[null,null,null,null,null,null,null,null,null,null,null,null,null,null,{"$f":"VLOOKUP(N1275,Tabel10[[korte omschrijving]:[MCC3_CODE]],2,0)","v":{"$error":"#N/A"}},{"$f":"VLOOKUP(N1275,Tabel10[],3,0)","v":{"$error":"#N/A"}},null,null,null,null,null,null,null,null,null,null,null,{"$error":"#DIV/0!"},0,0,null,"","","","","","","","","","",null,null,null,null,null,null,null,null,null,null,null,null,null,null,null,null,null,"ZWO"]
[null,null,null,null,null,null,null,null,null,null,null,null,null,null,{"$f":"VLOOKUP(N1276,Tabel10[[korte omschrijving]:[MCC3_CODE]],2,0)","v":{"$error":"#N/A"}},{"$f":"VLOOKUP(N1276,Tabel10[],3,0)","v":{"$error":"#N/A"}},null,null,null,null,null,null,null,null,null,null,null,{"$error":"#DIV/0!"},0,0,null,"","","","","","","","","","",null,null,null,null,null,null,null,null,null,null,null,null,null,null,null,null,null,"ZWO"]
[null,null,null,null,null,null,null,null,null,null,null,null,null,null,{"$f":"VLOOKUP(N1277,Tabel10[[korte omschrijving]:[MCC3_CODE]],2,0)","v":{"$error":"#N/A"}},{"$f":"VLOOKUP(N1277,Tabel10[],3,0)","v":{"$error":"#N/A"}},null,null,null,null,null,null,null,null,null,null,null,{"$error":"#DIV/0!"},0,0,null,"","","","","","","","","","",null,null,null,null,null,null,null,null,null,null,null,null,null,null,null,null,null,"ZWO"]
[null,null,null,null,null,null,null,null,null,null,null,null,null,null,{"$f":"VLOOKUP(N1278,Tabel10[[korte omschrijving]:[MCC3_CODE]],2,0)","v":{"$error":"#N/A"}},{"$f":"VLOOKUP(N1278,Tabel10[],3,0)","v":{"$error":"#N/A"}},null,null,null,null,0,null,null,null,null,null,null,{"$error":"#DIV/0!"},0,0,null,"","","","","","","","","","",null,null,null,null,null,null,null,null,null,null,null,null,null,null,null,null,null,"ZWO"]
[null,null,null,null,null,null,null,null,null,null,null,null,null,null,{"$f":"VLOOKUP(N1279,Tabel10[[korte omschrijving]:[MCC3_CODE]],2,0)","v":{"$error":"#N/A"}},{"$f":"VLOOKUP(N1279,Tabel10[],3,0)","v":{"$error":"#N/A"}},null,null,null,null,null,null,null,null,null,null,null,{"$error":"#DIV/0!"},0,0,null,"","","","","","","","","","",null,null,null,null,null,null,null,null,null,null,null,null,null,null,null,null,null,"ZWO"]
[null,null,null,null,null,null,null,null,null,null,null,null,null,null,{"$f":"VLOOKUP(N1280,Tabel10[[korte omschrijving]:[MCC3_CODE]],2,0)","v":{"$error":"#N/A"}},{"$f":"VLOOKUP(N1280,Tabel10[],3,0)","v":{"$error":"#N/A"}},null,null,null,null,null,null,null,null,null,null,null,{"$error":"#DIV/0!"},0,0,null,"","","","","","","","","","",null,null,null,null,null,null,null,null,null,null,null,null,null,null,null,null,null,"ZWO"]
[null,null,null,null,null,null,null,null,null,null,null,null,null,null,{"$f":"VLOOKUP(N1281,Tabel10[[korte omschrijving]:[MCC3_CODE]],2,0)","v":{"$error":"#N/A"}},{"$f":"VLOOKUP(N1281,Tabel10[],3,0)","v":{"$error":"#N/A"}},null,null,null,null,null,null,null,null,null,null,null,{"$error":"#DIV/0!"},0,0,null,"","","","","","","","","","",null,null,null,null,null,null,null,null,null,null,null,null,null,null,null,null,null,"ZWO"]
[null,null,null,null,null,null,null,null,null,null,null,null,null,null,{"$f":"VLOOKUP(N1282,Tabel10[[korte omschrijving]:[MCC3_CODE]],2,0)","v":{"$error":"#N/A"}},{"$f":"VLOOKUP(N1282,Tabel10[],3,0)","v":{"$error":"#N/A"}},null,null,null,null,null,null,null,null,null,null,null,{"$error":"#DIV/0!"},0,0,null,"","","","","","","","","","",null,null,null,null,null,null,null,null,null,null,null,null,null,null,null,null,null,"ZWO"]
[null,null,null,null,null,null,null,null,null,null,null,null,null,null,{"$f":"VLOOKUP(N1283,Tabel10[[korte omschrijving]:[MCC3_CODE]],2,0)","v":{"$error":"#N/A"}},{"$f":"VLOOKUP(N1283,Tabel10[],3,0)","v":{"$error":"#N/A"}},null,null,null,null,null,null,null,null,null,null,null,{"$error":"#DIV/0!"},0,0,null,"","","","","","","","","","",null,null,null,null,null,null,null,null,null,null,null,null,null,null,null,null,null,"ZWO"]
[null,null,null,null,null,null,null,null,null,null,null,null,null,null,{"$f":"VLOOKUP(N1284,Tabel10[[korte omschrijving]:[MCC3_CODE]],2,0)","v":{"$error":"#N/A"}},{"$f":"VLOOKUP(N1284,Tabel10[],3,0)","v":{"$error":"#N/A"}},null,null,null,null,0,null,null,null,null,null,null,{"$error":"#DIV/0!"},0,0,null,"","","","","","","","","","",null,null,null,null,null,null,null,null,null,null,null,null,null,null,null,null,null,"ZWO"]
[null,null,null,null,null,null,null,null,null,null,null,null,null,null,{"$f":"VLOOKUP(N1285,Tabel10[[korte omschrijving]:[MCC3_CODE]],2,0)","v":{"$error":"#N/A"}},{"$f":"VLOOKUP(N1285,Tabel10[],3,0)","v":{"$error":"#N/A"}},null,null,null,null,null,null,null,null,null,null,null,{"$error":"#DIV/0!"},0,0,null,"","","","","","","","","","",null,null,null,null,null,null,null,null,null,null,null,null,null,null,null,null,null,"ZWO"]
[null,null,null,null,null,null,null,null,null,null,null,null,null,null,{"$f":"VLOOKUP(N1286,Tabel10[[korte omschrijving]:[MCC3_CODE]],2,0)","v":{"$error":"#N/A"}},{"$f":"VLOOKUP(N1286,Tabel10[],3,0)","v":{"$error":"#N/A"}},null,null,null,null,null,null,null,null,null,null,null,{"$error":"#DIV/0!"},0,0,null,"","","","","","","","","","",null,null,null,null,null,null,null,null,null,null,null,null,null,null,null,null,null,"ZWO"]
[null,null,null,null,null,null,null,null,null,null,null,null,null,null,{"$f":"VLOOKUP(N1287,Tabel10[[korte omschrijving]:[MCC3_CODE]],2,0)","v":{"$error":"#N/A"}},{"$f":"VLOOKUP(N1287,Tabel10[],3,0)","v":{"$error":"#N/A"}},null,null,null,null,null,null,null,null,null,null,null,{"$error":"#DIV/0!"},0,0,null,"","","","","","","","","","",null,null,null,null,null,null,null,null,null,null,null,null,null,null,null,null,null,"ZWO"]
[null,null,null,null,null,null,null,null,null,null,null,null,null,null,{"$f":"VLOOKUP(N1288,Tabel10[[korte omschrijving]:[MCC3_CODE]],2,0)","v":{"$error":"#N/A"}},{"$f":"VLOOKUP(N1288,Tabel10[],3,0)","v":{"$error":"#N/A"}},null,null,null,null,null,null,null,null,null,null,null,{"$error":"#DIV/0!"},0,0,null,"","","","","","","","","","",null,null,null,null,null,null,null,null,null,null,null,null,null,null,null,null,null,"ZWO"]
[null,null,null,null,null,null,null,null,null,null,null,null,null,null,{"$f":"VLOOKUP(N1289,Tabel10[[korte omschrijving]:[MCC3_CODE]],2,0)","v":{"$error":"#N/A"}},{"$f":"VLOOKUP(N1289,Tabel10[],3,0)","v":{"$error":"#N/A"}},null,null,null,null,null,null,null,null,null,null,null,{"$error":"#DIV/0!"},0,0,null,"","","","","","","","","","",null,null,null,null,null,null,null,null,null,null,null,null,null,null,null,null,null,"ZWO"]
[null,null,null,null,null,null,null,null,null,null,null,null,null,null,{"$f":"VLOOKUP(N1290,Tabel10[[korte omschrijving]:[MCC3_CODE]],2,0)","v":{"$error":"#N/A"}},{"$f":"VLOOKUP(N1290,Tabel10[],3,0)","v":{"$error":"#N/A"}},null,null,null,null,0,null,null,null,null,null,null,{"$error":"#DIV/0!"},0,0,null,"","","","","","","","","","",null,null,null,null,null,null,null,null,null,null,null,null,null,null,null,null,null,"ZWO"]
[null,null,null,null,null,null,null,null,null,null,null,null,null,null,{"$f":"VLOOKUP(N1291,Tabel10[[korte omschrijving]:[MCC3_CODE]],2,0)","v":{"$error":"#N/A"}},{"$f":"VLOOKUP(N1291,Tabel10[],3,0)","v":{"$error":"#N/A"}},null,null,null,null,null,null,null,null,null,null,null,{"$error":"#DIV/0!"},0,0,null,"","","","","","","","","","",null,null,null,null,null,null,null,null,null,null,null,null,null,null,null,null,null,"ZWO"]
[null,null,null,null,null,null,null,null,null,null,null,null,null,null,{"$f":"VLOOKUP(N1292,Tabel10[[korte omschrijving]:[MCC3_CODE]],2,0)","v":{"$error":"#N/A"}},{"$f":"VLOOKUP(N1292,Tabel10[],3,0)","v":{"$error":"#N/A"}},null,null,null,null,null,null,null,null,null,null,null,{"$error":"#DIV/0!"},0,0,null,"","","","","","","","","","",null,null,null,null,null,null,null,null,null,null,null,null,null,null,null,null,null,"ZWO"]
[null,null,null,null,null,null,null,null,null,null,null,null,null,null,{"$f":"VLOOKUP(N1293,Tabel10[[korte omschrijving]:[MCC3_CODE]],2,0)","v":{"$error":"#N/A"}},{"$f":"VLOOKUP(N1293,Tabel10[],3,0)","v":{"$error":"#N/A"}},null,null,null,null,null,null,null,null,null,null,null,{"$error":"#DIV/0!"},0,0,null,"","","","","","","","","","",null,null,null,null,null,null,null,null,null,null,null,null,null,null,null,null,null,"ZWO"]
[null,null,null,null,null,null,null,null,null,null,null,null,null,null,{"$f":"VLOOKUP(N1294,Tabel10[[korte omschrijving]:[MCC3_CODE]],2,0)","v":{"$error":"#N/A"}},{"$f":"VLOOKUP(N1294,Tabel10[],3,0)","v":{"$error":"#N/A"}},null,null,null,null,null,null,null,null,null,null,null,{"$error":"#DIV/0!"},0,0,null,"","","","","","","","","","",null,null,null,null,null,null,null,null,null,null,null,null,null,null,null,null,null,"ZWO"]
[null,null,null,null,null,null,null,null,null,null,null,null,null,null,{"$f":"VLOOKUP(N1295,Tabel10[[korte omschrijving]:[MCC3_CODE]],2,0)","v":{"$error":"#N/A"}},{"$f":"VLOOKUP(N1295,Tabel10[],3,0)","v":{"$error":"#N/A"}},null,null,null,null,null,null,null,null,null,null,null,{"$error":"#DIV/0!"},0,0,null,"","","","","","","","","","",null,null,null,null,null,null,null,null,null,null,null,null,null,null,null,null,null,"ZWO"]
[null,null,null,null,null,null,null,null,null,null,null,null,null,null,{"$f":"VLOOKUP(N1296,Tabel10[[korte omschrijving]:[MCC3_CODE]],2,0)","v":{"$error":"#N/A"}},{"$f":"VLOOKUP(N1296,Tabel10[],3,0)","v":{"$error":"#N/A"}},null,null,null,null,{"$f":"SUM(T1296:T1301)","v":0},null,null,null,null,null,null,{"$error":"#DIV/0!"},0,0,null,"","","","","","","","","","",null,null,null,null,null,null,null,null,null,null,null,null,null,null,null,null,null,"ZWO"]
[null,null,null,null,null,null,null,null,null,null,null,null,null,null,{"$f":"VLOOKUP(N1297,Tabel10[[korte omschrijving]:[MCC3_CODE]],2,0)","v":{"$error":"#N/A"}},{"$f":"VLOOKUP(N1297,Tabel10[],3,0)","v":{"$error":"#N/A"}},null,null,null,null,null,null,null,null,null,null,null,{"$error":"#DIV/0!"},0,0,null,"","","","","","","","","","",null,null,null,null,null,null,null,null,null,null,null,null,null,null,null,null,null,"ZWO"]
[null,null,null,null,null,null,null,null,null,null,null,null,null,null,{"$f":"VLOOKUP(N1298,Tabel10[[korte omschrijving]:[MCC3_CODE]],2,0)","v":{"$error":"#N/A"}},{"$f":"VLOOKUP(N1298,Tabel10[],3,0)","v":{"$error":"#N/A"}},null,null,null,null,null,null,null,null,null,null,null,{"$error":"#DIV/0!"},0,0,null,"","","","","","","","","","",null,null,null,null,null,null,null,null,null,null,null,null,null,null,null,null,null,"ZWO"]
[null,null,null,null,null,null,null,null,null,null,null,null,null,null,{"$f":"VLOOKUP(N1299,Tabel10[[korte omschrijving]:[MCC3_CODE]],2,0)","v":{"$error":"#N/A"}},{"$f":"VLOOKUP(N1299,Tabel10[],3,0)","v":{"$error":"#N/A"}},null,null,null,null,null,null,null,null,null,null,null,{"$error":"#DIV/0!"},0,0,null,"","","","","","","","","","",null,null,null,null,null,null,null,null,null,null,null,null,null,null,null,null,null,"ZWO"]
[null,null,null,null,null,null,null,null,null,null,null,null,null,null,{"$f":"VLOOKUP(N1300,Tabel10[[korte omschrijving]:[MCC3_CODE]],2,0)","v":{"$error":"#N/A"}},{"$f":"VLOOKUP(N1300,Tabel10[],3,0)","v":{"$error":"#N/A"}},null,null,null,null,null,null,null,null,null,null,null,{"$error":"#DIV/0!"},0,0,null,"","","","","","","","","","",null,null,null,null,null,null,null,null,null,null,null,null,null,null,null,null,null,"ZWO"]
[null,null,null,null,null,null,null,null,null,null,null,null,null,null,{"$f":"VLOOKUP(N1301,Tabel10[[korte omschrijving]:[MCC3_CODE]],2,0)","v":{"$error":"#N/A"}},{"$f":"VLOOKUP(N1301,Tabel10[],3,0)","v":{"$error":"#N/A"}},null,null,null,null,null,null,null,null,null,null,null,{"$error":"#DIV/0!"},0,0,null,"","","","","","","","","","",null,null,null,null,null,null,null,null,null,null,null,null,null,null,null,null,null,"ZWO"]
[null,null,null,null,null,null,null,null,null,null,null,null,null,null,{"$f":"VLOOKUP(N1302,Tabel10[[korte omschrijving]:[MCC3_CODE]],2,0)","v":{"$error":"#N/A"}},{"$f":"VLOOKUP(N1302,Tabel10[],3,0)","v":{"$error":"#N/A"}},null,null,null,null,0,null,null,null,null,null,null,{"$error":"#DIV/0!"},0,0,null,"","","","","","","","","","",null,null,null,null,null,null,null,null,null,null,null,null,null,null,null,null,null,"ZWO"]
[null,null,null,null,null,null,null,null,null,null,null,null,null,null,{"$f":"VLOOKUP(N1303,Tabel10[[korte omschrijving]:[MCC3_CODE]],2,0)","v":{"$error":"#N/A"}},{"$f":"VLOOKUP(N1303,Tabel10[],3,0)","v":{"$error":"#N/A"}},null,null,null,null,null,null,null,null,null,null,null,{"$error":"#DIV/0!"},0,0,null,"","","","","","","","","","",null,null,null,null,null,null,null,null,null,null,null,null,null,null,null,null,null,"ZWO"]
[null,null,null,null,null,null,null,null,null,null,null,null,null,null,{"$f":"VLOOKUP(N1304,Tabel10[[korte omschrijving]:[MCC3_CODE]],2,0)","v":{"$error":"#N/A"}},{"$f":"VLOOKUP(N1304,Tabel10[],3,0)","v":{"$error":"#N/A"}},null,null,null,null,null,null,null,null,null,null,null,{"$error":"#DIV/0!"},0,0,null,"","","","","","","","","","",null,null,null,null,null,null,null,null,null,null,null,null,null,null,null,null,null,"ZWO"]
[null,null,null,null,null,null,null,null,null,null,null,null,null,null,{"$f":"VLOOKUP(N1305,Tabel10[[korte omschrijving]:[MCC3_CODE]],2,0)","v":{"$error":"#N/A"}},{"$f":"VLOOKUP(N1305,Tabel10[],3,0)","v":{"$error":"#N/A"}},null,null,null,null,null,null,null,null,null,null,null,{"$error":"#DIV/0!"},0,0,null,"","","","","","","","","","",null,null,null,null,null,null,null,null,null,null,null,null,null,null,null,null,null,"ZWO"]
[null,null,null,null,null,null,null,null,null,null,null,null,null,null,{"$f":"VLOOKUP(N1306,Tabel10[[korte omschrijving]:[MCC3_CODE]],2,0)","v":{"$error":"#N/A"}},{"$f":"VLOOKUP(N1306,Tabel10[],3,0)","v":{"$error":"#N/A"}},null,null,null,null,null,null,null,null,null,null,null,{"$error":"#DIV/0!"},0,0,null,"","","","","","","","","","",null,null,null,null,null,null,null,null,null,null,null,null,null,null,null,null,null,"ZWO"]
[null,null,null,null,null,null,null,null,null,null,null,null,null,null,{"$f":"VLOOKUP(N1307,Tabel10[[korte omschrijving]:[MCC3_CODE]],2,0)","v":{"$error":"#N/A"}},{"$f":"VLOOKUP(N1307,Tabel10[],3,0)","v":{"$error":"#N/A"}},null,null,null,null,null,null,null,null,null,null,null,{"$error":"#DIV/0!"},0,0,null,"","","","","","","","","","",null,null,null,null,null,null,null,null,null,null,null,null,null,null,null,null,null,"ZWO"]
[null,null,null,null,null,null,null,null,null,null,null,null,null,null,{"$f":"VLOOKUP(N1308,Tabel10[[korte omschrijving]:[MCC3_CODE]],2,0)","v":{"$error":"#N/A"}},{"$f":"VLOOKUP(N1308,Tabel10[],3,0)","v":{"$error":"#N/A"}},null,null,null,null,0,null,null,null,null,null,null,{"$error":"#DIV/0!"},0,0,null,"","","","","","","","","","",null,null,null,null,null,null,null,null,null,null,null,null,null,null,null,null,null,"ZWO"]
[null,null,null,null,null,null,null,null,null,null,null,null,null,null,{"$f":"VLOOKUP(N1309,Tabel10[[korte omschrijving]:[MCC3_CODE]],2,0)","v":{"$error":"#N/A"}},{"$f":"VLOOKUP(N1309,Tabel10[],3,0)","v":{"$error":"#N/A"}},null,null,null,null,null,null,null,null,null,null,null,{"$error":"#DIV/0!"},0,0,null,"","","","","","","","","","",null,null,null,null,null,null,null,null,null,null,null,null,null,null,null,null,null,"ZWO"]
[null,null,null,null,null,null,null,null,null,null,null,null,null,null,{"$f":"VLOOKUP(N1310,Tabel10[[korte omschrijving]:[MCC3_CODE]],2,0)","v":{"$error":"#N/A"}},{"$f":"VLOOKUP(N1310,Tabel10[],3,0)","v":{"$error":"#N/A"}},null,null,null,null,null,null,null,null,null,null,null,{"$error":"#DIV/0!"},0,0,null,"","","","","","","","","","",null,null,null,null,null,null,null,null,null,null,null,null,null,null,null,null,null,"ZWO"]
[null,null,null,null,null,null,null,null,null,null,null,null,null,null,{"$f":"VLOOKUP(N1311,Tabel10[[korte omschrijving]:[MCC3_CODE]],2,0)","v":{"$error":"#N/A"}},{"$f":"VLOOKUP(N1311,Tabel10[],3,0)","v":{"$error":"#N/A"}},null,null,null,null,null,null,null,null,null,null,null,{"$error":"#DIV/0!"},0,0,null,"","","","","","","","","","",null,null,null,null,null,null,null,null,null,null,null,null,null,null,null,null,null,"ZWO"]
[null,null,null,null,null,null,null,null,null,null,null,null,null,null,{"$f":"VLOOKUP(N1312,Tabel10[[korte omschrijving]:[MCC3_CODE]],2,0)","v":{"$error":"#N/A"}},{"$f":"VLOOKUP(N1312,Tabel10[],3,0)","v":{"$error":"#N/A"}},null,null,null,null,null,null,null,null,null,null,null,{"$error":"#DIV/0!"},0,0,null,"","","","","","","","","","",null,null,null,null,null,null,null,null,null,null,null,null,null,null,null,null,null,"ZWO"]
[null,null,null,null,null,null,null,null,null,null,null,null,null,null,{"$f":"VLOOKUP(N1313,Tabel10[[korte omschrijving]:[MCC3_CODE]],2,0)","v":{"$error":"#N/A"}},{"$f":"VLOOKUP(N1313,Tabel10[],3,0)","v":{"$error":"#N/A"}},null,null,null,null,null,null,null,null,null,null,null,{"$error":"#DIV/0!"},0,0,null,"","","","","","","","","","",null,null,null,null,null,null,null,null,null,null,null,null,null,null,null,null,null,"ZWO"]
[null,null,null,null,null,null,null,null,null,null,null,null,null,null,{"$f":"VLOOKUP(N1314,Tabel10[[korte omschrijving]:[MCC3_CODE]],2,0)","v":{"$error":"#N/A"}},{"$f":"VLOOKUP(N1314,Tabel10[],3,0)","v":{"$error":"#N/A"}},null,null,null,null,0,null,null,null,null,null,null,{"$error":"#DIV/0!"},0,0,null,"","","","","","","","","","",null,null,null,null,null,null,null,null,null,null,null,null,null,null,null,null,null,"ZWO"]
[null,null,null,null,null,null,null,null,null,null,null,null,null,null,{"$f":"VLOOKUP(N1315,Tabel10[[korte omschrijving]:[MCC3_CODE]],2,0)","v":{"$error":"#N/A"}},{"$f":"VLOOKUP(N1315,Tabel10[],3,0)","v":{"$error":"#N/A"}},null,null,null,null,null,null,null,null,null,null,null,{"$error":"#DIV/0!"},0,0,null,"","","","","","","","","","",null,null,null,null,null,null,null,null,null,null,null,null,null,null,null,null,null,"ZWO"]
[null,null,null,null,null,null,null,null,null,null,null,null,null,null,{"$f":"VLOOKUP(N1316,Tabel10[[korte omschrijving]:[MCC3_CODE]],2,0)","v":{"$error":"#N/A"}},{"$f":"VLOOKUP(N1316,Tabel10[],3,0)","v":{"$error":"#N/A"}},null,null,null,null,null,null,null,null,null,null,null,{"$error":"#DIV/0!"},0,0,null,"","","","","","","","","","",null,null,null,null,null,null,null,null,null,null,null,null,null,null,null,null,null,"ZWO"]
[null,null,null,null,null,null,null,null,null,null,null,null,null,null,{"$f":"VLOOKUP(N1317,Tabel10[[korte omschrijving]:[MCC3_CODE]],2,0)","v":{"$error":"#N/A"}},{"$f":"VLOOKUP(N1317,Tabel10[],3,0)","v":{"$error":"#N/A"}},null,null,null,null,null,null,null,null,null,null,null,{"$error":"#DIV/0!"},0,0,null,"","","","","","","","","","",null,null,null,null,null,null,null,null,null,null,null,null,null,null,null,null,null,"ZWO"]
[null,null,null,null,null,null,null,null,null,null,null,null,null,null,{"$f":"VLOOKUP(N1318,Tabel10[[korte omschrijving]:[MCC3_CODE]],2,0)","v":{"$error":"#N/A"}},{"$f":"VLOOKUP(N1318,Tabel10[],3,0)","v":{"$error":"#N/A"}},null,null,null,null,null,null,null,null,null,null,null,{"$error":"#DIV/0!"},0,0,null,"","","","","","","","","","",null,null,null,null,null,null,null,null,null,null,null,null,null,null,null,null,null,"ZWO"]
[null,null,null,null,null,null,null,null,null,null,null,null,null,null,{"$f":"VLOOKUP(N1319,Tabel10[[korte omschrijving]:[MCC3_CODE]],2,0)","v":{"$error":"#N/A"}},{"$f":"VLOOKUP(N1319,Tabel10[],3,0)","v":{"$error":"#N/A"}},null,null,null,null,null,null,null,null,null,null,null,{"$error":"#DIV/0!"},0,0,null,"","","","","","","","","","",null,null,null,null,null,null,null,null,null,null,null,null,null,null,null,null,null,"ZWO"]
[null,null,null,null,null,null,null,null,null,null,null,null,null,null,{"$f":"VLOOKUP(N1320,Tabel10[[korte omschrijving]:[MCC3_CODE]],2,0)","v":{"$error":"#N/A"}},{"$f":"VLOOKUP(N1320,Tabel10[],3,0)","v":{"$error":"#N/A"}},null,null,null,null,0,null,null,null,null,null,null,{"$error":"#DIV/0!"},0,0,null,"","","","","","","","","","",null,null,null,null,null,null,null,null,null,null,null,null,null,null,null,null,null,"ZWO"]
[null,null,null,null,null,null,null,null,null,null,null,null,null,null,{"$f":"VLOOKUP(N1321,Tabel10[[korte omschrijving]:[MCC3_CODE]],2,0)","v":{"$error":"#N/A"}},{"$f":"VLOOKUP(N1321,Tabel10[],3,0)","v":{"$error":"#N/A"}},null,null,null,null,null,null,null,null,null,null,null,{"$error":"#DIV/0!"},0,0,null,"","","","","","","","","","",null,null,null,null,null,null,null,null,null,null,null,null,null,null,null,null,null,"ZWO"]
[null,null,null,null,null,null,null,null,null,null,null,null,null,null,{"$f":"VLOOKUP(N1322,Tabel10[[korte omschrijving]:[MCC3_CODE]],2,0)","v":{"$error":"#N/A"}},{"$f":"VLOOKUP(N1322,Tabel10[],3,0)","v":{"$error":"#N/A"}},null,null,null,null,null,null,null,null,null,null,null,{"$error":"#DIV/0!"},0,0,null,"","","","","","","","","","",null,null,null,null,null,null,null,null,null,null,null,null,null,null,null,null,null,"ZWO"]
[null,null,null,null,null,null,null,null,null,null,null,null,null,null,{"$f":"VLOOKUP(N1323,Tabel10[[korte omschrijving]:[MCC3_CODE]],2,0)","v":{"$error":"#N/A"}},{"$f":"VLOOKUP(N1323,Tabel10[],3,0)","v":{"$error":"#N/A"}},null,null,null,null,null,null,null,null,null,null,null,{"$error":"#DIV/0!"},0,0,null,"","","","","","","","","","",null,null,null,null,null,null,null,null,null,null,null,null,null,null,null,null,null,"ZWO"]
[null,null,null,null,null,null,null,null,null,null,null,null,null,null,{"$f":"VLOOKUP(N1324,Tabel10[[korte omschrijving]:[MCC3_CODE]],2,0)","v":{"$error":"#N/A"}},{"$f":"VLOOKUP(N1324,Tabel10[],3,0)","v":{"$error":"#N/A"}},null,null,null,null,null,null,null,null,null,null,null,{"$error":"#DIV/0!"},0,0,null,"","","","","","","","","","",null,null,null,null,null,null,null,null,null,null,null,null,null,null,null,null,null,"ZWO"]
[null,null,null,null,null,null,null,null,null,null,null,null,null,null,{"$f":"VLOOKUP(N1325,Tabel10[[korte omschrijving]:[MCC3_CODE]],2,0)","v":{"$error":"#N/A"}},{"$f":"VLOOKUP(N1325,Tabel10[],3,0)","v":{"$error":"#N/A"}},null,null,null,null,null,null,null,null,null,null,null,{"$error":"#DIV/0!"},0,0,null,"","","","","","","","","","",null,null,null,null,null,null,null,null,null,null,null,null,null,null,null,null,null,"ZWO"]
[null,null,null,null,null,null,null,null,null,null,null,null,null,null,{"$f":"VLOOKUP(N1326,Tabel10[[korte omschrijving]:[MCC3_CODE]],2,0)","v":{"$error":"#N/A"}},{"$f":"VLOOKUP(N1326,Tabel10[],3,0)","v":{"$error":"#N/A"}},null,null,null,null,0,null,null,null,null,null,null,{"$error":"#DIV/0!"},0,0,null,"","","","","","","","","","",null,null,null,null,null,null,null,null,null,null,null,null,null,null,null,null,null,"ZWO"]
[null,null,null,null,null,null,null,null,null,null,null,null,null,null,{"$f":"VLOOKUP(N1327,Tabel10[[korte omschrijving]:[MCC3_CODE]],2,0)","v":{"$error":"#N/A"}},{"$f":"VLOOKUP(N1327,Tabel10[],3,0)","v":{"$error":"#N/A"}},null,null,null,null,null,null,null,null,null,null,null,{"$error":"#DIV/0!"},0,0,null,"","","","","","","","","","",null,null,null,null,null,null,null,null,null,null,null,null,null,null,null,null,null,"ZWO"]
[null,null,null,null,null,null,null,null,null,null,null,null,null,null,{"$f":"VLOOKUP(N1328,Tabel10[[korte omschrijving]:[MCC3_CODE]],2,0)","v":{"$error":"#N/A"}},{"$f":"VLOOKUP(N1328,Tabel10[],3,0)","v":{"$error":"#N/A"}},null,null,null,null,null,null,null,null,null,null,null,{"$error":"#DIV/0!"},0,0,null,"","","","","","","","","","",null,null,null,null,null,null,null,null,null,null,null,null,null,null,null,null,null,"ZWO"]
[null,null,null,null,null,null,null,null,null,null,null,null,null,null,{"$f":"VLOOKUP(N1329,Tabel10[[korte omschrijving]:[MCC3_CODE]],2,0)","v":{"$error":"#N/A"}},{"$f":"VLOOKUP(N1329,Tabel10[],3,0)","v":{"$error":"#N/A"}},null,null,null,null,null,null,null,null,null,null,null,{"$error":"#DIV/0!"},0,0,null,"","","","","","","","","","",null,null,null,null,null,null,null,null,null,null,null,null,null,null,null,null,null,"ZWO"]
[null,null,null,null,null,null,null,null,null,null,null,null,null,null,{"$f":"VLOOKUP(N1330,Tabel10[[korte omschrijving]:[MCC3_CODE]],2,0)","v":{"$error":"#N/A"}},{"$f":"VLOOKUP(N1330,Tabel10[],3,0)","v":{"$error":"#N/A"}},null,null,null,null,null,null,null,null,null,null,null,{"$error":"#DIV/0!"},0,0,null,"","","","","","","","","","",null,null,null,null,null,null,null,null,null,null,null,null,null,null,null,null,null,"ZWO"]
[null,null,null,null,null,null,null,null,null,null,null,null,null,null,{"$f":"VLOOKUP(N1331,Tabel10[[korte omschrijving]:[MCC3_CODE]],2,0)","v":{"$error":"#N/A"}},{"$f":"VLOOKUP(N1331,Tabel10[],3,0)","v":{"$error":"#N/A"}},null,null,null,null,null,null,null,null,null,null,null,{"$error":"#DIV/0!"},0,0,null,"","","","","","","","","","",null,null,null,null,null,null,null,null,null,null,null,null,null,null,null,null,null,"ZWO"]
[null,null,null,null,null,null,null,null,null,null,null,null,null,null,{"$f":"VLOOKUP(N1332,Tabel10[[korte omschrijving]:[MCC3_CODE]],2,0)","v":{"$error":"#N/A"}},{"$f":"VLOOKUP(N1332,Tabel10[],3,0)","v":{"$error":"#N/A"}},null,null,null,null,0,null,null,null,null,null,null,{"$error":"#DIV/0!"},0,0,null,"","","","","","","","","","",null,null,null,null,null,null,null,null,null,null,null,null,null,null,null,null,null,"ZWO"]
[null,null,null,null,null,null,null,null,null,null,null,null,null,null,{"$f":"VLOOKUP(N1333,Tabel10[[korte omschrijving]:[MCC3_CODE]],2,0)","v":{"$error":"#N/A"}},{"$f":"VLOOKUP(N1333,Tabel10[],3,0)","v":{"$error":"#N/A"}},null,null,null,null,null,null,null,null,null,null,null,{"$error":"#DIV/0!"},0,0,null,"","","","","","","","","","",null,null,null,null,null,null,null,null,null,null,null,null,null,null,null,null,null,"ZWO"]
[null,null,null,null,null,null,null,null,null,null,null,null,null,null,{"$f":"VLOOKUP(N1334,Tabel10[[korte omschrijving]:[MCC3_CODE]],2,0)","v":{"$error":"#N/A"}},{"$f":"VLOOKUP(N1334,Tabel10[],3,0)","v":{"$error":"#N/A"}},null,null,null,null,null,null,null,null,null,null,null,{"$error":"#DIV/0!"},0,0,null,"","","","","","","","","","",null,null,null,null,null,null,null,null,null,null,null,null,null,null,null,null,null,"ZWO"]
[null,null,null,null,null,null,null,null,null,null,null,null,null,null,{"$f":"VLOOKUP(N1335,Tabel10[[korte omschrijving]:[MCC3_CODE]],2,0)","v":{"$error":"#N/A"}},{"$f":"VLOOKUP(N1335,Tabel10[],3,0)","v":{"$error":"#N/A"}},null,null,null,null,null,null,null,null,null,null,null,{"$error":"#DIV/0!"},0,0,null,"","","","","","","","","","",null,null,null,null,null,null,null,null,null,null,null,null,null,null,null,null,null,"ZWO"]
[null,null,null,null,null,null,null,null,null,null,null,null,null,null,{"$f":"VLOOKUP(N1336,Tabel10[[korte omschrijving]:[MCC3_CODE]],2,0)","v":{"$error":"#N/A"}},{"$f":"VLOOKUP(N1336,Tabel10[],3,0)","v":{"$error":"#N/A"}},null,null,null,null,null,null,null,null,null,null,null,{"$f":"AA1336/Y1336","v":{"$error":"#DIV/0!"}},{"$f":"T1336*Y1336","v":0},{"$f":"T1336*AA1336","v":0},null,{"$f":"IF(AE1336 <> \"\",\n    IF(ISNUMBER(VALUE(LEFT(AE1336, FIND(\"%\", AE1336)-1))),\n        VALUE(LEFT(AE1336, FIND(\"%\", AE1336)-1)),\n        \"Invalid format\"),\n    \"\")","v":""},{"$f":"IF(AE1336 <> \"\",\n    IF(ISNUMBER(VALUE(LEFT(AE1336, FIND(\"%\", AE1336)-1))) * ISNUMBER(FIND(\"%\", AE1336 & \"wol\")) > 0,\n        TRIM(MID(AE1336, FIND(\"%\", AE1336)+1, FIND(\"/\", AE1336 & \"/\")-FIND(\"%\", AE1336)-1)),\n        \"Invalid format\"),\n    \"\")","v":""},{"$f":"IF(AE1336 <> \"\",\n    IF(ISNUMBER(VALUE(MID(AE1336, FIND(\"/\", AE1336) + 1, FIND(\"%\", AE1336, FIND(\"/\", AE1336)) - FIND(\"/\", AE1336) - 1))),\n        VALUE(MID(AE1336, FIND(\"/\", AE1336) + 1, FIND(\"%\", AE1336, FIND(\"/\", AE1336)) - FIND(\"/\", AE1336) - 1)),\n        \"\"),\n    \"\")","v":""},{"$f":"IF(AE1336 <> \"\",\n    IFERROR(TRIM(MID(AE1336, FIND(\"%\", AE1336, FIND(\"/\", AE1336)+1)+2,\n        IFERROR(FIND(\"/\", AE1336 & \"/\", FIND(\"/\", AE1336)+1)-FIND(\"%\", AE1336, FIND(\"/\", AE1336)+1)-2, LEN(AE1336)-FIND(\"%\", AE1336, FIND(\"/\", AE1336)+1)-1))),\n        \"\"),\n    \"\")","v":""},{"$f":"IF(AE1336 <> \"\",\n    IF(ISNUMBER(VALUE(MID(AE1336, FIND(\"/\", AE1336, FIND(\"/\", AE1336)+1) + 1, FIND(\"%\", AE1336, FIND(\"/\", AE1336, FIND(\"/\", AE1336)+1)) - FIND(\"/\", AE1336, FIND(\"/\", AE1336)+1) - 1))),\n        VALUE(MID(AE1336, FIND(\"/\", AE1336, FIND(\"/\", AE1336)+1) + 1, FIND(\"%\", AE1336, FIND(\"/\", AE1336, FIND(\"/\", AE1336)+1)) - FIND(\"/\", AE1336, FIND(\"/\", AE1336)+1) - 1)),\n        \"\"),\n    \"\")","v":""},{"$f":"IF(AE1336 <> \"\",\n    IFERROR(\n        TRIM(MID(AE1336,\n            FIND(\"%\", AE1336, FIND(\"%\", AE1336, FIND(\"%\", AE1336)+1)+1)+1,\n            FIND(\"/\", AE1336 & \"/\", FIND(\"%\", AE1336, FIND(\"%\", AE1336, FIND(\"%\", AE1336)+1)+1))-FIND(\"%\", AE1336, FIND(\"%\", AE1336, FIND(\"%\", AE1336)+1)+1)-1)\n        ),\n        \"\"\n    ),\n    \"\"\n)","v":""},{"$f":"IF(AE1336 <> \"\",\n    IF(ISNUMBER(VALUE(MID(AE1336, FIND(\"/\", AE1336, FIND(\"/\", AE1336, FIND(\"/\", AE1336)+1)+1) + 1, FIND(\"%\", AE1336, FIND(\"/\", AE1336, FIND(\"/\", AE1336, FIND(\"/\", AE1336)+1)+1)) - FIND(\"/\", AE1336, FIND(\"/\", AE1336, FIND(\"/\", AE1336)+1)+1) - 1))),\n        VALUE(MID(AE1336, FIND(\"/\", AE1336, FIND(\"/\", AE1336, FIND(\"/\", AE1336)+1)+1) + 1, FIND(\"%\", AE1336, FIND(\"/\", AE1336, FIND(\"/\", AE1336, FIND(\"/\", AE1336)+1)+1)) - FIND(\"/\", AE1336, FIND(\"/\", AE1336, FIND(\"/\", AE1336)+1)+1) - 1)),\n        \"\"),\n    \"\")","v":""},{"$f":"IF(AE1336 <> \"\",\n    IFERROR(TRIM(MID(AE1336, FIND(\"%\", AE1336, FIND(\"/\", AE1336, FIND(\"/\", AE1336, FIND(\"/\", AE1336)+1)+1)+1)+2,\n        IFERROR(FIND(\"/\", AE1336, FIND(\"/\", AE1336, FIND(\"/\", AE1336, FIND(\"/\", AE1336)+1)+1)+1)-FIND(\"%\", AE1336, FIND(\"/\", AE1336, FIND(\"/\", AE1336, FIND(\"/\", AE1336)+1)+1)+1)-2, LEN(AE1336)-FIND(\"%\", AE1336, FIND(\"/\", AE1336, FIND(\"/\", AE1336, FIND(\"/\", AE1336)+1)+1)+1)-1))),\n        \"\"),\n    \"\")","v":""},{"$f":"IF(AE1336 <> \"\",\n    IF(ISNUMBER(VALUE(MID(AE1336, FIND(\"/\", AE1336, FIND(\"/\", AE1336, FIND(\"/\", AE1336, FIND(\"/\", AE1336)+1)+1)+1) + 1, FIND(\"%\", AE1336, FIND(\"/\", AE1336, FIND(\"/\", AE1336, FIND(\"/\", AE1336, FIND(\"/\", AE1336)+1)+1)+1)) - FIND(\"/\", AE1336, FIND(\"/\", AE1336, FIND(\"/\", AE1336, FIND(\"/\", AE1336)+1)+1)+1) - 1))),\n        VALUE(MID(AE1336, FIND(\"/\", AE1336, FIND(\"/\", AE1336, FIND(\"/\", AE1336, FIND(\"/\", AE1336)+1)+1)+1) + 1, FIND(\"%\", AE1336, FIND(\"/\", AE1336, FIND(\"/\", AE1336, FIND(\"/\", AE1336, FIND(\"/\", AE1336)+1)+1)+1)) - FIND(\"/\", AE1336, FIND(\"/\", AE1336, FIND(\"/\", AE1336, FIND(\"/\", AE1336)+1)+1)+1) - 1)),\n        \"\"),\n    \"\")","v":""},{"$f":"IF(AE1336 = \"\", \"\",\n    IFERROR(TRIM(\n        MID(\n            AE1336,\n            FIND(\"%\", AE1336, FIND(\"/\", AE1336, FIND(\"/\", AE1336, FIND(\"/\", AE1336, FIND(\"/\", AE1336)+1)+1)+1)+1) + 1,\n            FIND(\"/\", AE1336 & \"/\", FIND(\"%\", AE1336, FIND(\"/\", AE1336, FIND(\"/\", AE1336, FIND(\"/\", AE1336, FIND(\"/\", AE1336)+1)+1)+1)+1)) -\n            FIND(\"%\", AE1336, FIND(\"/\", AE1336, FIND(\"/\", AE1336, FIND(\"/\", AE1336, FIND(\"/\", AE1336)+1)+1)+1)+1) - 1\n        )\n    ),\n    \"\")\n)","v":""},null,null,null,null,null,null,null,null,null,null,null,null,null,null,null,null,null,"ZWO"]
[null,null,null,null,null,null,null,null,null,null,null,null,null,null,{"$f":"VLOOKUP(N1337,Tabel10[[korte omschrijving]:[MCC3_CODE]],2,0)","v":{"$error":"#N/A"}},{"$f":"VLOOKUP(N1337,Tabel10[],3,0)","v":{"$error":"#N/A"}},null,null,null,null,null,null,null,null,null,null,null,{"$error":"#DIV/0!"},0,0,null,"","","","","","","","","","",null,null,null,null,null,null,null,null,null,null,null,null,null,null,null,null,null,"ZWO"]
[null,null,null,null,null,null,null,null,null,null,null,null,null,null,{"$f":"VLOOKUP(N1338,Tabel10[[korte omschrijving]:[MCC3_CODE]],2,0)","v":{"$error":"#N/A"}},{"$f":"VLOOKUP(N1338,Tabel10[],3,0)","v":{"$error":"#N/A"}},null,null,null,null,0,null,null,null,null,null,null,{"$error":"#DIV/0!"},0,0,null,"","","","","","","","","","",null,null,null,null,null,null,null,null,null,null,null,null,null,null,null,null,null,"ZWO"]
[null,null,null,null,null,null,null,null,null,null,null,null,null,null,{"$f":"VLOOKUP(N1339,Tabel10[[korte omschrijving]:[MCC3_CODE]],2,0)","v":{"$error":"#N/A"}},{"$f":"VLOOKUP(N1339,Tabel10[],3,0)","v":{"$error":"#N/A"}},null,null,null,null,null,null,null,null,null,null,null,{"$error":"#DIV/0!"},0,0,null,"","","","","","","","","","",null,null,null,null,null,null,null,null,null,null,null,null,null,null,null,null,null,"ZWO"]
[null,null,null,null,null,null,null,null,null,null,null,null,null,null,{"$f":"VLOOKUP(N1340,Tabel10[[korte omschrijving]:[MCC3_CODE]],2,0)","v":{"$error":"#N/A"}},{"$f":"VLOOKUP(N1340,Tabel10[],3,0)","v":{"$error":"#N/A"}},null,null,null,null,null,null,null,null,null,null,null,{"$error":"#DIV/0!"},0,0,null,"","","","","","","","","","",null,null,null,null,null,null,null,null,null,null,null,null,null,null,null,null,null,"ZWO"]
[null,null,null,null,null,null,null,null,null,null,null,null,null,null,{"$f":"VLOOKUP(N1341,Tabel10[[korte omschrijving]:[MCC3_CODE]],2,0)","v":{"$error":"#N/A"}},{"$f":"VLOOKUP(N1341,Tabel10[],3,0)","v":{"$error":"#N/A"}},null,null,null,null,null,null,null,null,null,null,null,{"$error":"#DIV/0!"},0,0,null,"","","","","","","","","","",null,null,null,null,null,null,null,null,null,null,null,null,null,null,null,null,null,"ZWO"]
[null,null,null,null,null,null,null,null,null,null,null,null,null,null,{"$f":"VLOOKUP(N1342,Tabel10[[korte omschrijving]:[MCC3_CODE]],2,0)","v":{"$error":"#N/A"}},{"$f":"VLOOKUP(N1342,Tabel10[],3,0)","v":{"$error":"#N/A"}},null,null,null,null,null,null,null,null,null,null,null,{"$error":"#DIV/0!"},0,0,null,"","","","","","","","","","",null,null,null,null,null,null,null,null,null,null,null,null,null,null,null,null,null,"ZWO"]
[null,null,null,null,null,null,null,null,null,null,null,null,null,null,{"$f":"VLOOKUP(N1343,Tabel10[[korte omschrijving]:[MCC3_CODE]],2,0)","v":{"$error":"#N/A"}},{"$f":"VLOOKUP(N1343,Tabel10[],3,0)","v":{"$error":"#N/A"}},null,null,null,null,null,null,null,null,null,null,null,{"$error":"#DIV/0!"},0,0,null,"","","","","","","","","","",null,null,null,null,null,null,null,null,null,null,null,null,null,null,null,null,null,"ZWO"]
[null,null,null,null,null,null,null,null,null,null,null,null,null,null,{"$f":"VLOOKUP(N1344,Tabel10[[korte omschrijving]:[MCC3_CODE]],2,0)","v":{"$error":"#N/A"}},{"$f":"VLOOKUP(N1344,Tabel10[],3,0)","v":{"$error":"#N/A"}},null,null,null,null,0,null,null,null,null,null,null,{"$error":"#DIV/0!"},0,0,null,"","","","","","","","","","",null,null,null,null,null,null,null,null,null,null,null,null,null,null,null,null,null,"ZWO"]
[null,null,null,null,null,null,null,null,null,null,null,null,null,null,{"$f":"VLOOKUP(N1345,Tabel10[[korte omschrijving]:[MCC3_CODE]],2,0)","v":{"$error":"#N/A"}},{"$f":"VLOOKUP(N1345,Tabel10[],3,0)","v":{"$error":"#N/A"}},null,null,null,null,null,null,null,null,null,null,null,{"$error":"#DIV/0!"},0,0,null,"","","","","","","","","","",null,null,null,null,null,null,null,null,null,null,null,null,null,null,null,null,null,"ZWO"]
[null,null,null,null,null,null,null,null,null,null,null,null,null,null,{"$f":"VLOOKUP(N1346,Tabel10[[korte omschrijving]:[MCC3_CODE]],2,0)","v":{"$error":"#N/A"}},{"$f":"VLOOKUP(N1346,Tabel10[],3,0)","v":{"$error":"#N/A"}},null,null,null,null,null,null,null,null,null,null,null,{"$error":"#DIV/0!"},0,0,null,"","","","","","","","","","",null,null,null,null,null,null,null,null,null,null,null,null,null,null,null,null,null,"ZWO"]
[null,null,null,null,null,null,null,null,null,null,null,null,null,null,{"$f":"VLOOKUP(N1347,Tabel10[[korte omschrijving]:[MCC3_CODE]],2,0)","v":{"$error":"#N/A"}},{"$f":"VLOOKUP(N1347,Tabel10[],3,0)","v":{"$error":"#N/A"}},null,null,null,null,null,null,null,null,null,null,null,{"$error":"#DIV/0!"},0,0,null,"","","","","","","","","","",null,null,null,null,null,null,null,null,null,null,null,null,null,null,null,null,null,"ZWO"]
[null,null,null,null,null,null,null,null,null,null,null,null,null,null,{"$f":"VLOOKUP(N1348,Tabel10[[korte omschrijving]:[MCC3_CODE]],2,0)","v":{"$error":"#N/A"}},{"$f":"VLOOKUP(N1348,Tabel10[],3,0)","v":{"$error":"#N/A"}},null,null,null,null,null,null,null,null,null,null,null,{"$error":"#DIV/0!"},0,0,null,"","","","","","","","","","",null,null,null,null,null,null,null,null,null,null,null,null,null,null,null,null,null,"ZWO"]
[null,null,null,null,null,null,null,null,null,null,null,null,null,null,{"$f":"VLOOKUP(N1349,Tabel10[[korte omschrijving]:[MCC3_CODE]],2,0)","v":{"$error":"#N/A"}},{"$f":"VLOOKUP(N1349,Tabel10[],3,0)","v":{"$error":"#N/A"}},null,null,null,null,null,null,null,null,null,null,null,{"$error":"#DIV/0!"},0,0,null,"","","","","","","","","","",null,null,null,null,null,null,null,null,null,null,null,null,null,null,null,null,null,"ZWO"]
[null,null,null,null,null,null,null,null,null,null,null,null,null,null,{"$f":"VLOOKUP(N1350,Tabel10[[korte omschrijving]:[MCC3_CODE]],2,0)","v":{"$error":"#N/A"}},{"$f":"VLOOKUP(N1350,Tabel10[],3,0)","v":{"$error":"#N/A"}},null,null,null,null,0,null,null,null,null,null,null,{"$error":"#DIV/0!"},0,0,null,"","","","","","","","","","",null,null,null,null,null,null,null,null,null,null,null,null,null,null,null,null,null,"ZWO"]
[null,null,null,null,null,null,null,null,null,null,null,null,null,null,{"$f":"VLOOKUP(N1351,Tabel10[[korte omschrijving]:[MCC3_CODE]],2,0)","v":{"$error":"#N/A"}},{"$f":"VLOOKUP(N1351,Tabel10[],3,0)","v":{"$error":"#N/A"}},null,null,null,null,null,null,null,null,null,null,null,{"$error":"#DIV/0!"},0,0,null,"","","","","","","","","","",null,null,null,null,null,null,null,null,null,null,null,null,null,null,null,null,null,"ZWO"]
[null,null,null,null,null,null,null,null,null,null,null,null,null,null,{"$f":"VLOOKUP(N1352,Tabel10[[korte omschrijving]:[MCC3_CODE]],2,0)","v":{"$error":"#N/A"}},{"$f":"VLOOKUP(N1352,Tabel10[],3,0)","v":{"$error":"#N/A"}},null,null,null,null,null,null,null,null,null,null,null,{"$error":"#DIV/0!"},0,0,null,"","","","","","","","","","",null,null,null,null,null,null,null,null,null,null,null,null,null,null,null,null,null,"ZWO"]
[null,null,null,null,null,null,null,null,null,null,null,null,null,null,{"$f":"VLOOKUP(N1353,Tabel10[[korte omschrijving]:[MCC3_CODE]],2,0)","v":{"$error":"#N/A"}},{"$f":"VLOOKUP(N1353,Tabel10[],3,0)","v":{"$error":"#N/A"}},null,null,null,null,null,null,null,null,null,null,null,{"$error":"#DIV/0!"},0,0,null,"","","","","","","","","","",null,null,null,null,null,null,null,null,null,null,null,null,null,null,null,null,null,"ZWO"]
[null,null,null,null,null,null,null,null,null,null,null,null,null,null,{"$f":"VLOOKUP(N1354,Tabel10[[korte omschrijving]:[MCC3_CODE]],2,0)","v":{"$error":"#N/A"}},{"$f":"VLOOKUP(N1354,Tabel10[],3,0)","v":{"$error":"#N/A"}},null,null,null,null,null,null,null,null,null,null,null,{"$error":"#DIV/0!"},0,0,null,"","","","","","","","","","",null,null,null,null,null,null,null,null,null,null,null,null,null,null,null,null,null,"ZWO"]
[null,null,null,null,null,null,null,null,null,null,null,null,null,null,{"$f":"VLOOKUP(N1355,Tabel10[[korte omschrijving]:[MCC3_CODE]],2,0)","v":{"$error":"#N/A"}},{"$f":"VLOOKUP(N1355,Tabel10[],3,0)","v":{"$error":"#N/A"}},null,null,null,null,null,null,null,null,null,null,null,{"$error":"#DIV/0!"},0,0,null,"","","","","","","","","","",null,null,null,null,null,null,null,null,null,null,null,null,null,null,null,null,null,"ZWO"]
[null,null,null,null,null,null,null,null,null,null,null,null,null,null,{"$f":"VLOOKUP(N1356,Tabel10[[korte omschrijving]:[MCC3_CODE]],2,0)","v":{"$error":"#N/A"}},{"$f":"VLOOKUP(N1356,Tabel10[],3,0)","v":{"$error":"#N/A"}},null,null,null,null,0,null,null,null,null,null,null,{"$error":"#DIV/0!"},0,0,null,"","","","","","","","","","",null,null,null,null,null,null,null,null,null,null,null,null,null,null,null,null,null,"ZWO"]
[null,null,null,null,null,null,null,null,null,null,null,null,null,null,{"$f":"VLOOKUP(N1357,Tabel10[[korte omschrijving]:[MCC3_CODE]],2,0)","v":{"$error":"#N/A"}},{"$f":"VLOOKUP(N1357,Tabel10[],3,0)","v":{"$error":"#N/A"}},null,null,null,null,null,null,null,null,null,null,null,{"$error":"#DIV/0!"},0,0,null,"","","","","","","","","","",null,null,null,null,null,null,null,null,null,null,null,null,null,null,null,null,null,"ZWO"]
[null,null,null,null,null,null,null,null,null,null,null,null,null,null,{"$f":"VLOOKUP(N1358,Tabel10[[korte omschrijving]:[MCC3_CODE]],2,0)","v":{"$error":"#N/A"}},{"$f":"VLOOKUP(N1358,Tabel10[],3,0)","v":{"$error":"#N/A"}},null,null,null,null,null,null,null,null,null,null,null,{"$error":"#DIV/0!"},0,0,null,"","","","","","","","","","",null,null,null,null,null,null,null,null,null,null,null,null,null,null,null,null,null,"ZWO"]
[null,null,null,null,null,null,null,null,null,null,null,null,null,null,{"$f":"VLOOKUP(N1359,Tabel10[[korte omschrijving]:[MCC3_CODE]],2,0)","v":{"$error":"#N/A"}},{"$f":"VLOOKUP(N1359,Tabel10[],3,0)","v":{"$error":"#N/A"}},null,null,null,null,null,null,null,null,null,null,null,{"$error":"#DIV/0!"},0,0,null,"","","","","","","","","","",null,null,null,null,null,null,null,null,null,null,null,null,null,null,null,null,null,"ZWO"]
[null,null,null,null,null,null,null,null,null,null,null,null,null,null,{"$f":"VLOOKUP(N1360,Tabel10[[korte omschrijving]:[MCC3_CODE]],2,0)","v":{"$error":"#N/A"}},{"$f":"VLOOKUP(N1360,Tabel10[],3,0)","v":{"$error":"#N/A"}},null,null,null,null,null,null,null,null,null,null,null,{"$error":"#DIV/0!"},0,0,null,"","","","","","","","","","",null,null,null,null,null,null,null,null,null,null,null,null,null,null,null,null,null,"ZWO"]
[null,null,null,null,null,null,null,null,null,null,null,null,null,null,{"$f":"VLOOKUP(N1361,Tabel10[[korte omschrijving]:[MCC3_CODE]],2,0)","v":{"$error":"#N/A"}},{"$f":"VLOOKUP(N1361,Tabel10[],3,0)","v":{"$error":"#N/A"}},null,null,null,null,null,null,null,null,null,null,null,{"$error":"#DIV/0!"},0,0,null,"","","","","","","","","","",null,null,null,null,null,null,null,null,null,null,null,null,null,null,null,null,null,"ZWO"]
[null,null,null,null,null,null,null,null,null,null,null,null,null,null,{"$f":"VLOOKUP(N1362,Tabel10[[korte omschrijving]:[MCC3_CODE]],2,0)","v":{"$error":"#N/A"}},{"$f":"VLOOKUP(N1362,Tabel10[],3,0)","v":{"$error":"#N/A"}},null,null,null,null,{"$f":"SUM(T1362:T1367)","v":0},null,null,null,null,null,null,{"$error":"#DIV/0!"},0,0,null,"","","","","","","","","","",null,null,null,null,null,null,null,null,null,null,null,null,null,null,null,null,null,"ZWO"]
[null,null,null,null,null,null,null,null,null,null,null,null,null,null,{"$f":"VLOOKUP(N1363,Tabel10[[korte omschrijving]:[MCC3_CODE]],2,0)","v":{"$error":"#N/A"}},{"$f":"VLOOKUP(N1363,Tabel10[],3,0)","v":{"$error":"#N/A"}},null,null,null,null,null,null,null,null,null,null,null,{"$error":"#DIV/0!"},0,0,null,"","","","","","","","","","",null,null,null,null,null,null,null,null,null,null,null,null,null,null,null,null,null,"ZWO"]
[null,null,null,null,null,null,null,null,null,null,null,null,null,null,{"$f":"VLOOKUP(N1364,Tabel10[[korte omschrijving]:[MCC3_CODE]],2,0)","v":{"$error":"#N/A"}},{"$f":"VLOOKUP(N1364,Tabel10[],3,0)","v":{"$error":"#N/A"}},null,null,null,null,null,null,null,null,null,null,null,{"$error":"#DIV/0!"},0,0,null,"","","","","","","","","","",null,null,null,null,null,null,null,null,null,null,null,null,null,null,null,null,null,"ZWO"]
[null,null,null,null,null,null,null,null,null,null,null,null,null,null,{"$f":"VLOOKUP(N1365,Tabel10[[korte omschrijving]:[MCC3_CODE]],2,0)","v":{"$error":"#N/A"}},{"$f":"VLOOKUP(N1365,Tabel10[],3,0)","v":{"$error":"#N/A"}},null,null,null,null,null,null,null,null,null,null,null,{"$error":"#DIV/0!"},0,0,null,"","","","","","","","","","",null,null,null,null,null,null,null,null,null,null,null,null,null,null,null,null,null,"ZWO"]
[null,null,null,null,null,null,null,null,null,null,null,null,null,null,{"$f":"VLOOKUP(N1366,Tabel10[[korte omschrijving]:[MCC3_CODE]],2,0)","v":{"$error":"#N/A"}},{"$f":"VLOOKUP(N1366,Tabel10[],3,0)","v":{"$error":"#N/A"}},null,null,null,null,null,null,null,null,null,null,null,{"$error":"#DIV/0!"},0,0,null,"","","","","","","","","","",null,null,null,null,null,null,null,null,null,null,null,null,null,null,null,null,null,"ZWO"]
[null,null,null,null,null,null,null,null,null,null,null,null,null,null,{"$f":"VLOOKUP(N1367,Tabel10[[korte omschrijving]:[MCC3_CODE]],2,0)","v":{"$error":"#N/A"}},{"$f":"VLOOKUP(N1367,Tabel10[],3,0)","v":{"$error":"#N/A"}},null,null,null,null,null,null,null,null,null,null,null,{"$error":"#DIV/0!"},0,0,null,"","","","","","","","","","",null,null,null,null,null,null,null,null,null,null,null,null,null,null,null,null,null,"ZWO"]
[null,null,null,null,null,null,null,null,null,null,null,null,null,null,{"$f":"VLOOKUP(N1368,Tabel10[[korte omschrijving]:[MCC3_CODE]],2,0)","v":{"$error":"#N/A"}},{"$f":"VLOOKUP(N1368,Tabel10[],3,0)","v":{"$error":"#N/A"}},null,null,null,null,0,null,null,null,null,null,null,{"$error":"#DIV/0!"},0,0,null,"","","","","","","","","","",null,null,null,null,null,null,null,null,null,null,null,null,null,null,null,null,null,"ZWO"]
[null,null,null,null,null,null,null,null,null,null,null,null,null,null,{"$f":"VLOOKUP(N1369,Tabel10[[korte omschrijving]:[MCC3_CODE]],2,0)","v":{"$error":"#N/A"}},{"$f":"VLOOKUP(N1369,Tabel10[],3,0)","v":{"$error":"#N/A"}},null,null,null,null,null,null,null,null,null,null,null,{"$error":"#DIV/0!"},0,0,null,"","","","","","","","","","",null,null,null,null,null,null,null,null,null,null,null,null,null,null,null,null,null,"ZWO"]
[null,null,null,null,null,null,null,null,null,null,null,null,null,null,{"$f":"VLOOKUP(N1370,Tabel10[[korte omschrijving]:[MCC3_CODE]],2,0)","v":{"$error":"#N/A"}},{"$f":"VLOOKUP(N1370,Tabel10[],3,0)","v":{"$error":"#N/A"}},null,null,null,null,null,null,null,null,null,null,null,{"$error":"#DIV/0!"},0,0,null,"","","","","","","","","","",null,null,null,null,null,null,null,null,null,null,null,null,null,null,null,null,null,"ZWO"]
[null,null,null,null,null,null,null,null,null,null,null,null,null,null,{"$f":"VLOOKUP(N1371,Tabel10[[korte omschrijving]:[MCC3_CODE]],2,0)","v":{"$error":"#N/A"}},{"$f":"VLOOKUP(N1371,Tabel10[],3,0)","v":{"$error":"#N/A"}},null,null,null,null,null,null,null,null,null,null,null,{"$error":"#DIV/0!"},0,0,null,"","","","","","","","","","",null,null,null,null,null,null,null,null,null,null,null,null,null,null,null,null,null,"ZWO"]
[null,null,null,null,null,null,null,null,null,null,null,null,null,null,{"$f":"VLOOKUP(N1372,Tabel10[[korte omschrijving]:[MCC3_CODE]],2,0)","v":{"$error":"#N/A"}},{"$f":"VLOOKUP(N1372,Tabel10[],3,0)","v":{"$error":"#N/A"}},null,null,null,null,null,null,null,null,null,null,null,{"$error":"#DIV/0!"},0,0,null,"","","","","","","","","","",null,null,null,null,null,null,null,null,null,null,null,null,null,null,null,null,null,"ZWO"]
[null,null,null,null,null,null,null,null,null,null,null,null,null,null,{"$f":"VLOOKUP(N1373,Tabel10[[korte omschrijving]:[MCC3_CODE]],2,0)","v":{"$error":"#N/A"}},{"$f":"VLOOKUP(N1373,Tabel10[],3,0)","v":{"$error":"#N/A"}},null,null,null,null,null,null,null,null,null,null,null,{"$error":"#DIV/0!"},0,0,null,"","","","","","","","","","",null,null,null,null,null,null,null,null,null,null,null,null,null,null,null,null,null,"ZWO"]
[null,null,null,null,null,null,null,null,null,null,null,null,null,null,{"$f":"VLOOKUP(N1374,Tabel10[[korte omschrijving]:[MCC3_CODE]],2,0)","v":{"$error":"#N/A"}},{"$f":"VLOOKUP(N1374,Tabel10[],3,0)","v":{"$error":"#N/A"}},null,null,null,null,0,null,null,null,null,null,null,{"$error":"#DIV/0!"},0,0,null,"","","","","","","","","","",null,null,null,null,null,null,null,null,null,null,null,null,null,null,null,null,null,"ZWO"]
[null,null,null,null,null,null,null,null,null,null,null,null,null,null,{"$f":"VLOOKUP(N1375,Tabel10[[korte omschrijving]:[MCC3_CODE]],2,0)","v":{"$error":"#N/A"}},{"$f":"VLOOKUP(N1375,Tabel10[],3,0)","v":{"$error":"#N/A"}},null,null,null,null,null,null,null,null,null,null,null,{"$error":"#DIV/0!"},0,0,null,"","","","","","","","","","",null,null,null,null,null,null,null,null,null,null,null,null,null,null,null,null,null,"ZWO"]
[null,null,null,null,null,null,null,null,null,null,null,null,null,null,{"$f":"VLOOKUP(N1376,Tabel10[[korte omschrijving]:[MCC3_CODE]],2,0)","v":{"$error":"#N/A"}},{"$f":"VLOOKUP(N1376,Tabel10[],3,0)","v":{"$error":"#N/A"}},null,null,null,null,null,null,null,null,null,null,null,{"$error":"#DIV/0!"},0,0,null,"","","","","","","","","","",null,null,null,null,null,null,null,null,null,null,null,null,null,null,null,null,null,"ZWO"]
[null,null,null,null,null,null,null,null,null,null,null,null,null,null,{"$f":"VLOOKUP(N1377,Tabel10[[korte omschrijving]:[MCC3_CODE]],2,0)","v":{"$error":"#N/A"}},{"$f":"VLOOKUP(N1377,Tabel10[],3,0)","v":{"$error":"#N/A"}},null,null,null,null,null,null,null,null,null,null,null,{"$error":"#DIV/0!"},0,0,null,"","","","","","","","","","",null,null,null,null,null,null,null,null,null,null,null,null,null,null,null,null,null,"ZWO"]
[null,null,null,null,null,null,null,null,null,null,null,null,null,null,{"$f":"VLOOKUP(N1378,Tabel10[[korte omschrijving]:[MCC3_CODE]],2,0)","v":{"$error":"#N/A"}},{"$f":"VLOOKUP(N1378,Tabel10[],3,0)","v":{"$error":"#N/A"}},null,null,null,null,null,null,null,null,null,null,null,{"$error":"#DIV/0!"},0,0,null,"","","","","","","","","","",null,null,null,null,null,null,null,null,null,null,null,null,null,null,null,null,null,"ZWO"]
[null,null,null,null,null,null,null,null,null,null,null,null,null,null,{"$f":"VLOOKUP(N1379,Tabel10[[korte omschrijving]:[MCC3_CODE]],2,0)","v":{"$error":"#N/A"}},{"$f":"VLOOKUP(N1379,Tabel10[],3,0)","v":{"$error":"#N/A"}},null,null,null,null,null,null,null,null,null,null,null,{"$error":"#DIV/0!"},0,0,null,"","","","","","","","","","",null,null,null,null,null,null,null,null,null,null,null,null,null,null,null,null,null,"ZWO"]
[null,null,null,null,null,null,null,null,null,null,null,null,null,null,{"$f":"VLOOKUP(N1380,Tabel10[[korte omschrijving]:[MCC3_CODE]],2,0)","v":{"$error":"#N/A"}},{"$f":"VLOOKUP(N1380,Tabel10[],3,0)","v":{"$error":"#N/A"}},null,null,null,null,0,null,null,null,null,null,null,{"$error":"#DIV/0!"},0,0,null,"","","","","","","","","","",null,null,null,null,null,null,null,null,null,null,null,null,null,null,null,null,null,"ZWO"]
[null,null,null,null,null,null,null,null,null,null,null,null,null,null,{"$f":"VLOOKUP(N1381,Tabel10[[korte omschrijving]:[MCC3_CODE]],2,0)","v":{"$error":"#N/A"}},{"$f":"VLOOKUP(N1381,Tabel10[],3,0)","v":{"$error":"#N/A"}},null,null,null,null,null,null,null,null,null,null,null,{"$error":"#DIV/0!"},0,0,null,"","","","","","","","","","",null,null,null,null,null,null,null,null,null,null,null,null,null,null,null,null,null,"ZWO"]
[null,null,null,null,null,null,null,null,null,null,null,null,null,null,{"$f":"VLOOKUP(N1382,Tabel10[[korte omschrijving]:[MCC3_CODE]],2,0)","v":{"$error":"#N/A"}},{"$f":"VLOOKUP(N1382,Tabel10[],3,0)","v":{"$error":"#N/A"}},null,null,null,null,null,null,null,null,null,null,null,{"$error":"#DIV/0!"},0,0,null,"","","","","","","","","","",null,null,null,null,null,null,null,null,null,null,null,null,null,null,null,null,null,"ZWO"]
[null,null,null,null,null,null,null,null,null,null,null,null,null,null,{"$f":"VLOOKUP(N1383,Tabel10[[korte omschrijving]:[MCC3_CODE]],2,0)","v":{"$error":"#N/A"}},{"$f":"VLOOKUP(N1383,Tabel10[],3,0)","v":{"$error":"#N/A"}},null,null,null,null,null,null,null,null,null,null,null,{"$error":"#DIV/0!"},0,0,null,"","","","","","","","","","",null,null,null,null,null,null,null,null,null,null,null,null,null,null,null,null,null,"ZWO"]
[null,null,null,null,null,null,null,null,null,null,null,null,null,null,{"$f":"VLOOKUP(N1384,Tabel10[[korte omschrijving]:[MCC3_CODE]],2,0)","v":{"$error":"#N/A"}},{"$f":"VLOOKUP(N1384,Tabel10[],3,0)","v":{"$error":"#N/A"}},null,null,null,null,null,null,null,null,null,null,null,{"$error":"#DIV/0!"},0,0,null,"","","","","","","","","","",null,null,null,null,null,null,null,null,null,null,null,null,null,null,null,null,null,"ZWO"]
[null,null,null,null,null,null,null,null,null,null,null,null,null,null,{"$f":"VLOOKUP(N1385,Tabel10[[korte omschrijving]:[MCC3_CODE]],2,0)","v":{"$error":"#N/A"}},{"$f":"VLOOKUP(N1385,Tabel10[],3,0)","v":{"$error":"#N/A"}},null,null,null,null,null,null,null,null,null,null,null,{"$error":"#DIV/0!"},0,0,null,"","","","","","","","","","",null,null,null,null,null,null,null,null,null,null,null,null,null,null,null,null,null,"ZWO"]
[null,null,null,null,null,null,null,null,null,null,null,null,null,null,{"$f":"VLOOKUP(N1386,Tabel10[[korte omschrijving]:[MCC3_CODE]],2,0)","v":{"$error":"#N/A"}},{"$f":"VLOOKUP(N1386,Tabel10[],3,0)","v":{"$error":"#N/A"}},null,null,null,null,0,null,null,null,null,null,null,{"$error":"#DIV/0!"},0,0,null,"","","","","","","","","","",null,null,null,null,null,null,null,null,null,null,null,null,null,null,null,null,null,"ZWO"]
[null,null,null,null,null,null,null,null,null,null,null,null,null,null,{"$f":"VLOOKUP(N1387,Tabel10[[korte omschrijving]:[MCC3_CODE]],2,0)","v":{"$error":"#N/A"}},{"$f":"VLOOKUP(N1387,Tabel10[],3,0)","v":{"$error":"#N/A"}},null,null,null,null,null,null,null,null,null,null,null,{"$error":"#DIV/0!"},0,0,null,"","","","","","","","","","",null,null,null,null,null,null,null,null,null,null,null,null,null,null,null,null,null,"ZWO"]
[null,null,null,null,null,null,null,null,null,null,null,null,null,null,{"$f":"VLOOKUP(N1388,Tabel10[[korte omschrijving]:[MCC3_CODE]],2,0)","v":{"$error":"#N/A"}},{"$f":"VLOOKUP(N1388,Tabel10[],3,0)","v":{"$error":"#N/A"}},null,null,null,null,null,null,null,null,null,null,null,{"$error":"#DIV/0!"},0,0,null,"","","","","","","","","","",null,null,null,null,null,null,null,null,null,null,null,null,null,null,null,null,null,"ZWO"]
[null,null,null,null,null,null,null,null,null,null,null,null,null,null,{"$f":"VLOOKUP(N1389,Tabel10[[korte omschrijving]:[MCC3_CODE]],2,0)","v":{"$error":"#N/A"}},{"$f":"VLOOKUP(N1389,Tabel10[],3,0)","v":{"$error":"#N/A"}},null,null,null,null,null,null,null,null,null,null,null,{"$error":"#DIV/0!"},0,0,null,"","","","","","","","","","",null,null,null,null,null,null,null,null,null,null,null,null,null,null,null,null,null,"ZWO"]
[null,null,null,null,null,null,null,null,null,null,null,null,null,null,{"$f":"VLOOKUP(N1390,Tabel10[[korte omschrijving]:[MCC3_CODE]],2,0)","v":{"$error":"#N/A"}},{"$f":"VLOOKUP(N1390,Tabel10[],3,0)","v":{"$error":"#N/A"}},null,null,null,null,null,null,null,null,null,null,null,{"$error":"#DIV/0!"},0,0,null,"","","","","","","","","","",null,null,null,null,null,null,null,null,null,null,null,null,null,null,null,null,null,"ZWO"]
[null,null,null,null,null,null,null,null,null,null,null,null,null,null,{"$f":"VLOOKUP(N1391,Tabel10[[korte omschrijving]:[MCC3_CODE]],2,0)","v":{"$error":"#N/A"}},{"$f":"VLOOKUP(N1391,Tabel10[],3,0)","v":{"$error":"#N/A"}},null,null,null,null,null,null,null,null,null,null,null,{"$error":"#DIV/0!"},0,0,null,"","","","","","","","","","",null,null,null,null,null,null,null,null,null,null,null,null,null,null,null,null,null,"ZWO"]
[null,null,null,null,null,null,null,null,null,null,null,null,null,null,{"$f":"VLOOKUP(N1392,Tabel10[[korte omschrijving]:[MCC3_CODE]],2,0)","v":{"$error":"#N/A"}},{"$f":"VLOOKUP(N1392,Tabel10[],3,0)","v":{"$error":"#N/A"}},null,null,null,null,0,null,null,null,null,null,null,{"$error":"#DIV/0!"},0,0,null,"","","","","","","","","","",null,null,null,null,null,null,null,null,null,null,null,null,null,null,null,null,null,"ZWO"]
[null,null,null,null,null,null,null,null,null,null,null,null,null,null,{"$f":"VLOOKUP(N1393,Tabel10[[korte omschrijving]:[MCC3_CODE]],2,0)","v":{"$error":"#N/A"}},{"$f":"VLOOKUP(N1393,Tabel10[],3,0)","v":{"$error":"#N/A"}},null,null,null,null,null,null,null,null,null,null,null,{"$error":"#DIV/0!"},0,0,null,"","","","","","","","","","",null,null,null,null,null,null,null,null,null,null,null,null,null,null,null,null,null,"ZWO"]
[null,null,null,null,null,null,null,null,null,null,null,null,null,null,{"$f":"VLOOKUP(N1394,Tabel10[[korte omschrijving]:[MCC3_CODE]],2,0)","v":{"$error":"#N/A"}},{"$f":"VLOOKUP(N1394,Tabel10[],3,0)","v":{"$error":"#N/A"}},null,null,null,null,null,null,null,null,null,null,null,{"$error":"#DIV/0!"},0,0,null,"","","","","","","","","","",null,null,null,null,null,null,null,null,null,null,null,null,null,null,null,null,null,"ZWO"]
[null,null,null,null,null,null,null,null,null,null,null,null,null,null,{"$f":"VLOOKUP(N1395,Tabel10[[korte omschrijving]:[MCC3_CODE]],2,0)","v":{"$error":"#N/A"}},{"$f":"VLOOKUP(N1395,Tabel10[],3,0)","v":{"$error":"#N/A"}},null,null,null,null,null,null,null,null,null,null,null,{"$error":"#DIV/0!"},0,0,null,"","","","","","","","","","",null,null,null,null,null,null,null,null,null,null,null,null,null,null,null,null,null,"ZWO"]
[null,null,null,null,null,null,null,null,null,null,null,null,null,null,{"$f":"VLOOKUP(N1396,Tabel10[[korte omschrijving]:[MCC3_CODE]],2,0)","v":{"$error":"#N/A"}},{"$f":"VLOOKUP(N1396,Tabel10[],3,0)","v":{"$error":"#N/A"}},null,null,null,null,null,null,null,null,null,null,null,{"$error":"#DIV/0!"},0,0,null,"","","","","","","","","","",null,null,null,null,null,null,null,null,null,null,null,null,null,null,null,null,null,"ZWO"]
[null,null,null,null,null,null,null,null,null,null,null,null,null,null,{"$f":"VLOOKUP(N1397,Tabel10[[korte omschrijving]:[MCC3_CODE]],2,0)","v":{"$error":"#N/A"}},{"$f":"VLOOKUP(N1397,Tabel10[],3,0)","v":{"$error":"#N/A"}},null,null,null,null,null,null,null,null,null,null,null,{"$error":"#DIV/0!"},0,0,null,"","","","","","","","","","",null,null,null,null,null,null,null,null,null,null,null,null,null,null,null,null,null,"ZWO"]
[null,null,null,null,null,null,null,null,null,null,null,null,null,null,{"$f":"VLOOKUP(N1398,Tabel10[[korte omschrijving]:[MCC3_CODE]],2,0)","v":{"$error":"#N/A"}},{"$f":"VLOOKUP(N1398,Tabel10[],3,0)","v":{"$error":"#N/A"}},null,null,null,null,0,null,null,null,null,null,null,{"$error":"#DIV/0!"},0,0,null,"","","","","","","","","","",null,null,null,null,null,null,null,null,null,null,null,null,null,null,null,null,null,"ZWO"]
[null,null,null,null,null,null,null,null,null,null,null,null,null,null,{"$f":"VLOOKUP(N1399,Tabel10[[korte omschrijving]:[MCC3_CODE]],2,0)","v":{"$error":"#N/A"}},{"$f":"VLOOKUP(N1399,Tabel10[],3,0)","v":{"$error":"#N/A"}},null,null,null,null,null,null,null,null,null,null,null,{"$error":"#DIV/0!"},0,0,null,"","","","","","","","","","",null,null,null,null,null,null,null,null,null,null,null,null,null,null,null,null,null,"ZWO"]
[null,null,null,null,null,null,null,null,null,null,null,null,null,null,{"$f":"VLOOKUP(N1400,Tabel10[[korte omschrijving]:[MCC3_CODE]],2,0)","v":{"$error":"#N/A"}},{"$f":"VLOOKUP(N1400,Tabel10[],3,0)","v":{"$error":"#N/A"}},null,null,null,null,null,null,null,null,null,null,null,{"$f":"AA1400/Y1400","v":{"$error":"#DIV/0!"}},{"$f":"T1400*Y1400","v":0},{"$f":"T1400*AA1400","v":0},null,{"$f":"IF(AE1400 <> \"\",\n    IF(ISNUMBER(VALUE(LEFT(AE1400, FIND(\"%\", AE1400)-1))),\n        VALUE(LEFT(AE1400, FIND(\"%\", AE1400)-1)),\n        \"Invalid format\"),\n    \"\")","v":""},{"$f":"IF(AE1400 <> \"\",\n    IF(ISNUMBER(VALUE(LEFT(AE1400, FIND(\"%\", AE1400)-1))) * ISNUMBER(FIND(\"%\", AE1400 & \"wol\")) > 0,\n        TRIM(MID(AE1400, FIND(\"%\", AE1400)+1, FIND(\"/\", AE1400 & \"/\")-FIND(\"%\", AE1400)-1)),\n        \"Invalid format\"),\n    \"\")","v":""},{"$f":"IF(AE1400 <> \"\",\n    IF(ISNUMBER(VALUE(MID(AE1400, FIND(\"/\", AE1400) + 1, FIND(\"%\", AE1400, FIND(\"/\", AE1400)) - FIND(\"/\", AE1400) - 1))),\n        VALUE(MID(AE1400, FIND(\"/\", AE1400) + 1, FIND(\"%\", AE1400, FIND(\"/\", AE1400)) - FIND(\"/\", AE1400) - 1)),\n        \"\"),\n    \"\")","v":""},{"$f":"IF(AE1400 <> \"\",\n    IFERROR(TRIM(MID(AE1400, FIND(\"%\", AE1400, FIND(\"/\", AE1400)+1)+2,\n        IFERROR(FIND(\"/\", AE1400 & \"/\", FIND(\"/\", AE1400)+1)-FIND(\"%\", AE1400, FIND(\"/\", AE1400)+1)-2, LEN(AE1400)-FIND(\"%\", AE1400, FIND(\"/\", AE1400)+1)-1))),\n        \"\"),\n    \"\")","v":""},{"$f":"IF(AE1400 <> \"\",\n    IF(ISNUMBER(VALUE(MID(AE1400, FIND(\"/\", AE1400, FIND(\"/\", AE1400)+1) + 1, FIND(\"%\", AE1400, FIND(\"/\", AE1400, FIND(\"/\", AE1400)+1)) - FIND(\"/\", AE1400, FIND(\"/\", AE1400)+1) - 1))),\n        VALUE(MID(AE1400, FIND(\"/\", AE1400, FIND(\"/\", AE1400)+1) + 1, FIND(\"%\", AE1400, FIND(\"/\", AE1400, FIND(\"/\", AE1400)+1)) - FIND(\"/\", AE1400, FIND(\"/\", AE1400)+1) - 1)),\n        \"\"),\n    \"\")","v":""},{"$f":"IF(AE1400 <> \"\",\n    IFERROR(\n        TRIM(MID(AE1400,\n            FIND(\"%\", AE1400, FIND(\"%\", AE1400, FIND(\"%\", AE1400)+1)+1)+1,\n            FIND(\"/\", AE1400 & \"/\", FIND(\"%\", AE1400, FIND(\"%\", AE1400, FIND(\"%\", AE1400)+1)+1))-FIND(\"%\", AE1400, FIND(\"%\", AE1400, FIND(\"%\", AE1400)+1)+1)-1)\n        ),\n        \"\"\n    ),\n    \"\"\n)","v":""},{"$f":"IF(AE1400 <> \"\",\n    IF(ISNUMBER(VALUE(MID(AE1400, FIND(\"/\", AE1400, FIND(\"/\", AE1400, FIND(\"/\", AE1400)+1)+1) + 1, FIND(\"%\", AE1400, FIND(\"/\", AE1400, FIND(\"/\", AE1400, FIND(\"/\", AE1400)+1)+1)) - FIND(\"/\", AE1400, FIND(\"/\", AE1400, FIND(\"/\", AE1400)+1)+1) - 1))),\n        VALUE(MID(AE1400, FIND(\"/\", AE1400, FIND(\"/\", AE1400, FIND(\"/\", AE1400)+1)+1) + 1, FIND(\"%\", AE1400, FIND(\"/\", AE1400, FIND(\"/\", AE1400, FIND(\"/\", AE1400)+1)+1)) - FIND(\"/\", AE1400, FIND(\"/\", AE1400, FIND(\"/\", AE1400)+1)+1) - 1)),\n        \"\"),\n    \"\")","v":""},{"$f":"IF(AE1400 <> \"\",\n    IFERROR(TRIM(MID(AE1400, FIND(\"%\", AE1400, FIND(\"/\", AE1400, FIND(\"/\", AE1400, FIND(\"/\", AE1400)+1)+1)+1)+2,\n        IFERROR(FIND(\"/\", AE1400, FIND(\"/\", AE1400, FIND(\"/\", AE1400, FIND(\"/\", AE1400)+1)+1)+1)-FIND(\"%\", AE1400, FIND(\"/\", AE1400, FIND(\"/\", AE1400, FIND(\"/\", AE1400)+1)+1)+1)-2, LEN(AE1400)-FIND(\"%\", AE1400, FIND(\"/\", AE1400, FIND(\"/\", AE1400, FIND(\"/\", AE1400)+1)+1)+1)-1))),\n        \"\"),\n    \"\")","v":""},{"$f":"IF(AE1400 <> \"\",\n    IF(ISNUMBER(VALUE(MID(AE1400, FIND(\"/\", AE1400, FIND(\"/\", AE1400, FIND(\"/\", AE1400, FIND(\"/\", AE1400)+1)+1)+1) + 1, FIND(\"%\", AE1400, FIND(\"/\", AE1400, FIND(\"/\", AE1400, FIND(\"/\", AE1400, FIND(\"/\", AE1400)+1)+1)+1)) - FIND(\"/\", AE1400, FIND(\"/\", AE1400, FIND(\"/\", AE1400, FIND(\"/\", AE1400)+1)+1)+1) - 1))),\n        VALUE(MID(AE1400, FIND(\"/\", AE1400, FIND(\"/\", AE1400, FIND(\"/\", AE1400, FIND(\"/\", AE1400)+1)+1)+1) + 1, FIND(\"%\", AE1400, FIND(\"/\", AE1400, FIND(\"/\", AE1400, FIND(\"/\", AE1400, FIND(\"/\", AE1400)+1)+1)+1)) - FIND(\"/\", AE1400, FIND(\"/\", AE1400, FIND(\"/\", AE1400, FIND(\"/\", AE1400)+1)+1)+1) - 1)),\n        \"\"),\n    \"\")","v":""},{"$f":"IF(AE1400 = \"\", \"\",\n    IFERROR(TRIM(\n        MID(\n            AE1400,\n            FIND(\"%\", AE1400, FIND(\"/\", AE1400, FIND(\"/\", AE1400, FIND(\"/\", AE1400, FIND(\"/\", AE1400)+1)+1)+1)+1) + 1,\n            FIND(\"/\", AE1400 & \"/\", FIND(\"%\", AE1400, FIND(\"/\", AE1400, FIND(\"/\", AE1400, FIND(\"/\", AE1400, FIND(\"/\", AE1400)+1)+1)+1)+1)) -\n            FIND(\"%\", AE1400, FIND(\"/\", AE1400, FIND(\"/\", AE1400, FIND(\"/\", AE1400, FIND(\"/\", AE1400)+1)+1)+1)+1) - 1\n        )\n    ),\n    \"\")\n)","v":""},null,null,null,null,null,null,null,null,null,null,null,null,null,null,null,null,null,"ZWO"]
[null,null,null,null,null,null,null,null,null,null,null,null,null,null,{"$f":"VLOOKUP(N1401,Tabel10[[korte omschrijving]:[MCC3_CODE]],2,0)","v":{"$error":"#N/A"}},{"$f":"VLOOKUP(N1401,Tabel10[],3,0)","v":{"$error":"#N/A"}},null,null,null,null,null,null,null,null,null,null,null,{"$error":"#DIV/0!"},0,0,null,"","","","","","","","","","",null,null,null,null,null,null,null,null,null,null,null,null,null,null,null,null,null,"ZWO"]
[null,null,null,null,null,null,null,null,null,null,null,null,null,null,{"$f":"VLOOKUP(N1402,Tabel10[[korte omschrijving]:[MCC3_CODE]],2,0)","v":{"$error":"#N/A"}},{"$f":"VLOOKUP(N1402,Tabel10[],3,0)","v":{"$error":"#N/A"}},null,null,null,null,null,null,null,null,null,null,null,{"$error":"#DIV/0!"},0,0,null,"","","","","","","","","","",null,null,null,null,null,null,null,null,null,null,null,null,null,null,null,null,null,"ZWO"]
[null,null,null,null,null,null,null,null,null,null,null,null,null,null,{"$f":"VLOOKUP(N1403,Tabel10[[korte omschrijving]:[MCC3_CODE]],2,0)","v":{"$error":"#N/A"}},{"$f":"VLOOKUP(N1403,Tabel10[],3,0)","v":{"$error":"#N/A"}},null,null,null,null,null,null,null,null,null,null,null,{"$error":"#DIV/0!"},0,0,null,"","","","","","","","","","",null,null,null,null,null,null,null,null,null,null,null,null,null,null,null,null,null,"ZWO"]
[null,null,null,null,null,null,null,null,null,null,null,null,null,null,{"$f":"VLOOKUP(N1404,Tabel10[[korte omschrijving]:[MCC3_CODE]],2,0)","v":{"$error":"#N/A"}},{"$f":"VLOOKUP(N1404,Tabel10[],3,0)","v":{"$error":"#N/A"}},null,null,null,null,0,null,null,null,null,null,null,{"$error":"#DIV/0!"},0,0,null,"","","","","","","","","","",null,null,null,null,null,null,null,null,null,null,null,null,null,null,null,null,null,"ZWO"]
[null,null,null,null,null,null,null,null,null,null,null,null,null,null,{"$f":"VLOOKUP(N1405,Tabel10[[korte omschrijving]:[MCC3_CODE]],2,0)","v":{"$error":"#N/A"}},{"$f":"VLOOKUP(N1405,Tabel10[],3,0)","v":{"$error":"#N/A"}},null,null,null,null,null,null,null,null,null,null,null,{"$error":"#DIV/0!"},0,0,null,"","","","","","","","","","",null,null,null,null,null,null,null,null,null,null,null,null,null,null,null,null,null,"ZWO"]
[null,null,null,null,null,null,null,null,null,null,null,null,null,null,{"$f":"VLOOKUP(N1406,Tabel10[[korte omschrijving]:[MCC3_CODE]],2,0)","v":{"$error":"#N/A"}},{"$f":"VLOOKUP(N1406,Tabel10[],3,0)","v":{"$error":"#N/A"}},null,null,null,null,null,null,null,null,null,null,null,{"$error":"#DIV/0!"},0,0,null,"","","","","","","","","","",null,null,null,null,null,null,null,null,null,null,null,null,null,null,null,null,null,"ZWO"]
[null,null,null,null,null,null,null,null,null,null,null,null,null,null,{"$f":"VLOOKUP(N1407,Tabel10[[korte omschrijving]:[MCC3_CODE]],2,0)","v":{"$error":"#N/A"}},{"$f":"VLOOKUP(N1407,Tabel10[],3,0)","v":{"$error":"#N/A"}},null,null,null,null,null,null,null,null,null,null,null,{"$error":"#DIV/0!"},0,0,null,"","","","","","","","","","",null,null,null,null,null,null,null,null,null,null,null,null,null,null,null,null,null,"ZWO"]
[null,null,null,null,null,null,null,null,null,null,null,null,null,null,{"$f":"VLOOKUP(N1408,Tabel10[[korte omschrijving]:[MCC3_CODE]],2,0)","v":{"$error":"#N/A"}},{"$f":"VLOOKUP(N1408,Tabel10[],3,0)","v":{"$error":"#N/A"}},null,null,null,null,null,null,null,null,null,null,null,{"$error":"#DIV/0!"},0,0,null,"","","","","","","","","","",null,null,null,null,null,null,null,null,null,null,null,null,null,null,null,null,null,"ZWO"]
[null,null,null,null,null,null,null,null,null,null,null,null,null,null,{"$f":"VLOOKUP(N1409,Tabel10[[korte omschrijving]:[MCC3_CODE]],2,0)","v":{"$error":"#N/A"}},{"$f":"VLOOKUP(N1409,Tabel10[],3,0)","v":{"$error":"#N/A"}},null,null,null,null,null,null,null,null,null,null,null,{"$error":"#DIV/0!"},0,0,null,"","","","","","","","","","",null,null,null,null,null,null,null,null,null,null,null,null,null,null,null,null,null,"ZWO"]
[null,null,null,null,null,null,null,null,null,null,null,null,null,null,{"$f":"VLOOKUP(N1410,Tabel10[[korte omschrijving]:[MCC3_CODE]],2,0)","v":{"$error":"#N/A"}},{"$f":"VLOOKUP(N1410,Tabel10[],3,0)","v":{"$error":"#N/A"}},null,null,null,null,0,null,null,null,null,null,null,{"$error":"#DIV/0!"},0,0,null,"","","","","","","","","","",null,null,null,null,null,null,null,null,null,null,null,null,null,null,null,null,null,"ZWO"]
[null,null,null,null,null,null,null,null,null,null,null,null,null,null,{"$f":"VLOOKUP(N1411,Tabel10[[korte omschrijving]:[MCC3_CODE]],2,0)","v":{"$error":"#N/A"}},{"$f":"VLOOKUP(N1411,Tabel10[],3,0)","v":{"$error":"#N/A"}},null,null,null,null,null,null,null,null,null,null,null,{"$error":"#DIV/0!"},0,0,null,"","","","","","","","","","",null,null,null,null,null,null,null,null,null,null,null,null,null,null,null,null,null,"ZWO"]
[null,null,null,null,null,null,null,null,null,null,null,null,null,null,{"$f":"VLOOKUP(N1412,Tabel10[[korte omschrijving]:[MCC3_CODE]],2,0)","v":{"$error":"#N/A"}},{"$f":"VLOOKUP(N1412,Tabel10[],3,0)","v":{"$error":"#N/A"}},null,null,null,null,null,null,null,null,null,null,null,{"$error":"#DIV/0!"},0,0,null,"","","","","","","","","","",null,null,null,null,null,null,null,null,null,null,null,null,null,null,null,null,null,"ZWO"]
[null,null,null,null,null,null,null,null,null,null,null,null,null,null,{"$f":"VLOOKUP(N1413,Tabel10[[korte omschrijving]:[MCC3_CODE]],2,0)","v":{"$error":"#N/A"}},{"$f":"VLOOKUP(N1413,Tabel10[],3,0)","v":{"$error":"#N/A"}},null,null,null,null,null,null,null,null,null,null,null,{"$error":"#DIV/0!"},0,0,null,"","","","","","","","","","",null,null,null,null,null,null,null,null,null,null,null,null,null,null,null,null,null,"ZWO"]
[null,null,null,null,null,null,null,null,null,null,null,null,null,null,{"$f":"VLOOKUP(N1414,Tabel10[[korte omschrijving]:[MCC3_CODE]],2,0)","v":{"$error":"#N/A"}},{"$f":"VLOOKUP(N1414,Tabel10[],3,0)","v":{"$error":"#N/A"}},null,null,null,null,null,null,null,null,null,null,null,{"$error":"#DIV/0!"},0,0,null,"","","","","","","","","","",null,null,null,null,null,null,null,null,null,null,null,null,null,null,null,null,null,"ZWO"]
[null,null,null,null,null,null,null,null,null,null,null,null,null,null,{"$f":"VLOOKUP(N1415,Tabel10[[korte omschrijving]:[MCC3_CODE]],2,0)","v":{"$error":"#N/A"}},{"$f":"VLOOKUP(N1415,Tabel10[],3,0)","v":{"$error":"#N/A"}},null,null,null,null,null,null,null,null,null,null,null,{"$error":"#DIV/0!"},0,0,null,"","","","","","","","","","",null,null,null,null,null,null,null,null,null,null,null,null,null,null,null,null,null,"ZWO"]
[null,null,null,null,null,null,null,null,null,null,null,null,null,null,{"$f":"VLOOKUP(N1416,Tabel10[[korte omschrijving]:[MCC3_CODE]],2,0)","v":{"$error":"#N/A"}},{"$f":"VLOOKUP(N1416,Tabel10[],3,0)","v":{"$error":"#N/A"}},null,null,null,null,0,null,null,null,null,null,null,{"$error":"#DIV/0!"},0,0,null,"","","","","","","","","","",null,null,null,null,null,null,null,null,null,null,null,null,null,null,null,null,null,"ZWO"]
[null,null,null,null,null,null,null,null,null,null,null,null,null,null,{"$f":"VLOOKUP(N1417,Tabel10[[korte omschrijving]:[MCC3_CODE]],2,0)","v":{"$error":"#N/A"}},{"$f":"VLOOKUP(N1417,Tabel10[],3,0)","v":{"$error":"#N/A"}},null,null,null,null,null,null,null,null,null,null,null,{"$error":"#DIV/0!"},0,0,null,"","","","","","","","","","",null,null,null,null,null,null,null,null,null,null,null,null,null,null,null,null,null,"ZWO"]
[null,null,null,null,null,null,null,null,null,null,null,null,null,null,{"$f":"VLOOKUP(N1418,Tabel10[[korte omschrijving]:[MCC3_CODE]],2,0)","v":{"$error":"#N/A"}},{"$f":"VLOOKUP(N1418,Tabel10[],3,0)","v":{"$error":"#N/A"}},null,null,null,null,null,null,null,null,null,null,null,{"$error":"#DIV/0!"},0,0,null,"","","","","","","","","","",null,null,null,null,null,null,null,null,null,null,null,null,null,null,null,null,null,"ZWO"]
[null,null,null,null,null,null,null,null,null,null,null,null,null,null,{"$f":"VLOOKUP(N1419,Tabel10[[korte omschrijving]:[MCC3_CODE]],2,0)","v":{"$error":"#N/A"}},{"$f":"VLOOKUP(N1419,Tabel10[],3,0)","v":{"$error":"#N/A"}},null,null,null,null,null,null,null,null,null,null,null,{"$error":"#DIV/0!"},0,0,null,"","","","","","","","","","",null,null,null,null,null,null,null,null,null,null,null,null,null,null,null,null,null,"ZWO"]
[null,null,null,null,null,null,null,null,null,null,null,null,null,null,{"$f":"VLOOKUP(N1420,Tabel10[[korte omschrijving]:[MCC3_CODE]],2,0)","v":{"$error":"#N/A"}},{"$f":"VLOOKUP(N1420,Tabel10[],3,0)","v":{"$error":"#N/A"}},null,null,null,null,null,null,null,null,null,null,null,{"$error":"#DIV/0!"},0,0,null,"","","","","","","","","","",null,null,null,null,null,null,null,null,null,null,null,null,null,null,null,null,null,"ZWO"]
[null,null,null,null,null,null,null,null,null,null,null,null,null,null,{"$f":"VLOOKUP(N1421,Tabel10[[korte omschrijving]:[MCC3_CODE]],2,0)","v":{"$error":"#N/A"}},{"$f":"VLOOKUP(N1421,Tabel10[],3,0)","v":{"$error":"#N/A"}},null,null,null,null,null,null,null,null,null,null,null,{"$error":"#DIV/0!"},0,0,null,"","","","","","","","","","",null,null,null,null,null,null,null,null,null,null,null,null,null,null,null,null,null,"ZWO"]
[null,null,null,null,null,null,null,null,null,null,null,null,null,null,{"$f":"VLOOKUP(N1422,Tabel10[[korte omschrijving]:[MCC3_CODE]],2,0)","v":{"$error":"#N/A"}},{"$f":"VLOOKUP(N1422,Tabel10[],3,0)","v":{"$error":"#N/A"}},null,null,null,null,0,null,null,null,null,null,null,{"$error":"#DIV/0!"},0,0,null,"","","","","","","","","","",null,null,null,null,null,null,null,null,null,null,null,null,null,null,null,null,null,"ZWO"]
[null,null,null,null,null,null,null,null,null,null,null,null,null,null,{"$f":"VLOOKUP(N1423,Tabel10[[korte omschrijving]:[MCC3_CODE]],2,0)","v":{"$error":"#N/A"}},{"$f":"VLOOKUP(N1423,Tabel10[],3,0)","v":{"$error":"#N/A"}},null,null,null,null,null,null,null,null,null,null,null,{"$error":"#DIV/0!"},0,0,null,"","","","","","","","","","",null,null,null,null,null,null,null,null,null,null,null,null,null,null,null,null,null,"ZWO"]
[null,null,null,null,null,null,null,null,null,null,null,null,null,null,{"$f":"VLOOKUP(N1424,Tabel10[[korte omschrijving]:[MCC3_CODE]],2,0)","v":{"$error":"#N/A"}},{"$f":"VLOOKUP(N1424,Tabel10[],3,0)","v":{"$error":"#N/A"}},null,null,null,null,null,null,null,null,null,null,null,{"$error":"#DIV/0!"},0,0,null,"","","","","","","","","","",null,null,null,null,null,null,null,null,null,null,null,null,null,null,null,null,null,"ZWO"]
[null,null,null,null,null,null,null,null,null,null,null,null,null,null,{"$f":"VLOOKUP(N1425,Tabel10[[korte omschrijving]:[MCC3_CODE]],2,0)","v":{"$error":"#N/A"}},{"$f":"VLOOKUP(N1425,Tabel10[],3,0)","v":{"$error":"#N/A"}},null,null,null,null,null,null,null,null,null,null,null,{"$error":"#DIV/0!"},0,0,null,"","","","","","","","","","",null,null,null,null,null,null,null,null,null,null,null,null,null,null,null,null,null,"ZWO"]
[null,null,null,null,null,null,null,null,null,null,null,null,null,null,{"$f":"VLOOKUP(N1426,Tabel10[[korte omschrijving]:[MCC3_CODE]],2,0)","v":{"$error":"#N/A"}},{"$f":"VLOOKUP(N1426,Tabel10[],3,0)","v":{"$error":"#N/A"}},null,null,null,null,null,null,null,null,null,null,null,{"$error":"#DIV/0!"},0,0,null,"","","","","","","","","","",null,null,null,null,null,null,null,null,null,null,null,null,null,null,null,null,null,"ZWO"]
[null,null,null,null,null,null,null,null,null,null,null,null,null,null,{"$f":"VLOOKUP(N1427,Tabel10[[korte omschrijving]:[MCC3_CODE]],2,0)","v":{"$error":"#N/A"}},{"$f":"VLOOKUP(N1427,Tabel10[],3,0)","v":{"$error":"#N/A"}},null,null,null,null,null,null,null,null,null,null,null,{"$error":"#DIV/0!"},0,0,null,"","","","","","","","","","",null,null,null,null,null,null,null,null,null,null,null,null,null,null,null,null,null,"ZWO"]
[null,null,null,null,null,null,null,null,null,null,null,null,null,null,{"$f":"VLOOKUP(N1428,Tabel10[[korte omschrijving]:[MCC3_CODE]],2,0)","v":{"$error":"#N/A"}},{"$f":"VLOOKUP(N1428,Tabel10[],3,0)","v":{"$error":"#N/A"}},null,null,null,null,{"$f":"SUM(T1428:T1433)","v":0},null,null,null,null,null,null,{"$error":"#DIV/0!"},0,0,null,"","","","","","","","","","",null,null,null,null,null,null,null,null,null,null,null,null,null,null,null,null,null,"ZWO"]
[null,null,null,null,null,null,null,null,null,null,null,null,null,null,{"$f":"VLOOKUP(N1429,Tabel10[[korte omschrijving]:[MCC3_CODE]],2,0)","v":{"$error":"#N/A"}},{"$f":"VLOOKUP(N1429,Tabel10[],3,0)","v":{"$error":"#N/A"}},null,null,null,null,null,null,null,null,null,null,null,{"$error":"#DIV/0!"},0,0,null,"","","","","","","","","","",null,null,null,null,null,null,null,null,null,null,null,null,null,null,null,null,null,"ZWO"]
[null,null,null,null,null,null,null,null,null,null,null,null,null,null,{"$f":"VLOOKUP(N1430,Tabel10[[korte omschrijving]:[MCC3_CODE]],2,0)","v":{"$error":"#N/A"}},{"$f":"VLOOKUP(N1430,Tabel10[],3,0)","v":{"$error":"#N/A"}},null,null,null,null,null,null,null,null,null,null,null,{"$error":"#DIV/0!"},0,0,null,"","","","","","","","","","",null,null,null,null,null,null,null,null,null,null,null,null,null,null,null,null,null,"ZWO"]
[null,null,null,null,null,null,null,null,null,null,null,null,null,null,{"$f":"VLOOKUP(N1431,Tabel10[[korte omschrijving]:[MCC3_CODE]],2,0)","v":{"$error":"#N/A"}},{"$f":"VLOOKUP(N1431,Tabel10[],3,0)","v":{"$error":"#N/A"}},null,null,null,null,null,null,null,null,null,null,null,{"$error":"#DIV/0!"},0,0,null,"","","","","","","","","","",null,null,null,null,null,null,null,null,null,null,null,null,null,null,null,null,null,"ZWO"]
[null,null,null,null,null,null,null,null,null,null,null,null,null,null,{"$f":"VLOOKUP(N1432,Tabel10[[korte omschrijving]:[MCC3_CODE]],2,0)","v":{"$error":"#N/A"}},{"$f":"VLOOKUP(N1432,Tabel10[],3,0)","v":{"$error":"#N/A"}},null,null,null,null,null,null,null,null,null,null,null,{"$error":"#DIV/0!"},0,0,null,"","","","","","","","","","",null,null,null,null,null,null,null,null,null,null,null,null,null,null,null,null,null,"ZWO"]
[null,null,null,null,null,null,null,null,null,null,null,null,null,null,{"$f":"VLOOKUP(N1433,Tabel10[[korte omschrijving]:[MCC3_CODE]],2,0)","v":{"$error":"#N/A"}},{"$f":"VLOOKUP(N1433,Tabel10[],3,0)","v":{"$error":"#N/A"}},null,null,null,null,null,null,null,null,null,null,null,{"$error":"#DIV/0!"},0,0,null,"","","","","","","","","","",null,null,null,null,null,null,null,null,null,null,null,null,null,null,null,null,null,"ZWO"]
[null,null,null,null,null,null,null,null,null,null,null,null,null,null,{"$f":"VLOOKUP(N1434,Tabel10[[korte omschrijving]:[MCC3_CODE]],2,0)","v":{"$error":"#N/A"}},{"$f":"VLOOKUP(N1434,Tabel10[],3,0)","v":{"$error":"#N/A"}},null,null,null,null,0,null,null,null,null,null,null,{"$error":"#DIV/0!"},0,0,null,"","","","","","","","","","",null,null,null,null,null,null,null,null,null,null,null,null,null,null,null,null,null,"ZWO"]
[null,null,null,null,null,null,null,null,null,null,null,null,null,null,{"$f":"VLOOKUP(N1435,Tabel10[[korte omschrijving]:[MCC3_CODE]],2,0)","v":{"$error":"#N/A"}},{"$f":"VLOOKUP(N1435,Tabel10[],3,0)","v":{"$error":"#N/A"}},null,null,null,null,null,null,null,null,null,null,null,{"$error":"#DIV/0!"},0,0,null,"","","","","","","","","","",null,null,null,null,null,null,null,null,null,null,null,null,null,null,null,null,null,"ZWO"]
[null,null,null,null,null,null,null,null,null,null,null,null,null,null,{"$f":"VLOOKUP(N1436,Tabel10[[korte omschrijving]:[MCC3_CODE]],2,0)","v":{"$error":"#N/A"}},{"$f":"VLOOKUP(N1436,Tabel10[],3,0)","v":{"$error":"#N/A"}},null,null,null,null,null,null,null,null,null,null,null,{"$error":"#DIV/0!"},0,0,null,"","","","","","","","","","",null,null,null,null,null,null,null,null,null,null,null,null,null,null,null,null,null,"ZWO"]
[null,null,null,null,null,null,null,null,null,null,null,null,null,null,{"$f":"VLOOKUP(N1437,Tabel10[[korte omschrijving]:[MCC3_CODE]],2,0)","v":{"$error":"#N/A"}},{"$f":"VLOOKUP(N1437,Tabel10[],3,0)","v":{"$error":"#N/A"}},null,null,null,null,null,null,null,null,null,null,null,{"$error":"#DIV/0!"},0,0,null,"","","","","","","","","","",null,null,null,null,null,null,null,null,null,null,null,null,null,null,null,null,null,"ZWO"]
[null,null,null,null,null,null,null,null,null,null,null,null,null,null,{"$f":"VLOOKUP(N1438,Tabel10[[korte omschrijving]:[MCC3_CODE]],2,0)","v":{"$error":"#N/A"}},{"$f":"VLOOKUP(N1438,Tabel10[],3,0)","v":{"$error":"#N/A"}},null,null,null,null,null,null,null,null,null,null,null,{"$error":"#DIV/0!"},0,0,null,"","","","","","","","","","",null,null,null,null,null,null,null,null,null,null,null,null,null,null,null,null,null,"ZWO"]
[null,null,null,null,null,null,null,null,null,null,null,null,null,null,{"$f":"VLOOKUP(N1439,Tabel10[[korte omschrijving]:[MCC3_CODE]],2,0)","v":{"$error":"#N/A"}},{"$f":"VLOOKUP(N1439,Tabel10[],3,0)","v":{"$error":"#N/A"}},null,null,null,null,null,null,null,null,null,null,null,{"$error":"#DIV/0!"},0,0,null,"","","","","","","","","","",null,null,null,null,null,null,null,null,null,null,null,null,null,null,null,null,null,"ZWO"]
[null,null,null,null,null,null,null,null,null,null,null,null,null,null,{"$f":"VLOOKUP(N1440,Tabel10[[korte omschrijving]:[MCC3_CODE]],2,0)","v":{"$error":"#N/A"}},{"$f":"VLOOKUP(N1440,Tabel10[],3,0)","v":{"$error":"#N/A"}},null,null,null,null,0,null,null,null,null,null,null,{"$error":"#DIV/0!"},0,0,null,"","","","","","","","","","",null,null,null,null,null,null,null,null,null,null,null,null,null,null,null,null,null,"ZWO"]
[null,null,null,null,null,null,null,null,null,null,null,null,null,null,{"$f":"VLOOKUP(N1441,Tabel10[[korte omschrijving]:[MCC3_CODE]],2,0)","v":{"$error":"#N/A"}},{"$f":"VLOOKUP(N1441,Tabel10[],3,0)","v":{"$error":"#N/A"}},null,null,null,null,null,null,null,null,null,null,null,{"$error":"#DIV/0!"},0,0,null,"","","","","","","","","","",null,null,null,null,null,null,null,null,null,null,null,null,null,null,null,null,null,"ZWO"]
[null,null,null,null,null,null,null,null,null,null,null,null,null,null,{"$f":"VLOOKUP(N1442,Tabel10[[korte omschrijving]:[MCC3_CODE]],2,0)","v":{"$error":"#N/A"}},{"$f":"VLOOKUP(N1442,Tabel10[],3,0)","v":{"$error":"#N/A"}},null,null,null,null,null,null,null,null,null,null,null,{"$error":"#DIV/0!"},0,0,null,"","","","","","","","","","",null,null,null,null,null,null,null,null,null,null,null,null,null,null,null,null,null,"ZWO"]
[null,null,null,null,null,null,null,null,null,null,null,null,null,null,{"$f":"VLOOKUP(N1443,Tabel10[[korte omschrijving]:[MCC3_CODE]],2,0)","v":{"$error":"#N/A"}},{"$f":"VLOOKUP(N1443,Tabel10[],3,0)","v":{"$error":"#N/A"}},null,null,null,null,null,null,null,null,null,null,null,{"$error":"#DIV/0!"},0,0,null,"","","","","","","","","","",null,null,null,null,null,null,null,null,null,null,null,null,null,null,null,null,null,"ZWO"]
[null,null,null,null,null,null,null,null,null,null,null,null,null,null,{"$f":"VLOOKUP(N1444,Tabel10[[korte omschrijving]:[MCC3_CODE]],2,0)","v":{"$error":"#N/A"}},{"$f":"VLOOKUP(N1444,Tabel10[],3,0)","v":{"$error":"#N/A"}},null,null,null,null,null,null,null,null,null,null,null,{"$error":"#DIV/0!"},0,0,null,"","","","","","","","","","",null,null,null,null,null,null,null,null,null,null,null,null,null,null,null,null,null,"ZWO"]
[null,null,null,null,null,null,null,null,null,null,null,null,null,null,{"$f":"VLOOKUP(N1445,Tabel10[[korte omschrijving]:[MCC3_CODE]],2,0)","v":{"$error":"#N/A"}},{"$f":"VLOOKUP(N1445,Tabel10[],3,0)","v":{"$error":"#N/A"}},null,null,null,null,null,null,null,null,null,null,null,{"$error":"#DIV/0!"},0,0,null,"","","","","","","","","","",null,null,null,null,null,null,null,null,null,null,null,null,null,null,null,null,null,"ZWO"]
[null,null,null,null,null,null,null,null,null,null,null,null,null,null,{"$f":"VLOOKUP(N1446,Tabel10[[korte omschrijving]:[MCC3_CODE]],2,0)","v":{"$error":"#N/A"}},{"$f":"VLOOKUP(N1446,Tabel10[],3,0)","v":{"$error":"#N/A"}},null,null,null,null,0,null,null,null,null,null,null,{"$error":"#DIV/0!"},0,0,null,"","","","","","","","","","",null,null,null,null,null,null,null,null,null,null,null,null,null,null,null,null,null,"ZWO"]
[null,null,null,null,null,null,null,null,null,null,null,null,null,null,{"$f":"VLOOKUP(N1447,Tabel10[[korte omschrijving]:[MCC3_CODE]],2,0)","v":{"$error":"#N/A"}},{"$f":"VLOOKUP(N1447,Tabel10[],3,0)","v":{"$error":"#N/A"}},null,null,null,null,null,null,null,null,null,null,null,{"$error":"#DIV/0!"},0,0,null,"","","","","","","","","","",null,null,null,null,null,null,null,null,null,null,null,null,null,null,null,null,null,"ZWO"]
[null,null,null,null,null,null,null,null,null,null,null,null,null,null,{"$f":"VLOOKUP(N1448,Tabel10[[korte omschrijving]:[MCC3_CODE]],2,0)","v":{"$error":"#N/A"}},{"$f":"VLOOKUP(N1448,Tabel10[],3,0)","v":{"$error":"#N/A"}},null,null,null,null,null,null,null,null,null,null,null,{"$error":"#DIV/0!"},0,0,null,"","","","","","","","","","",null,null,null,null,null,null,null,null,null,null,null,null,null,null,null,null,null,"ZWO"]
[null,null,null,null,null,null,null,null,null,null,null,null,null,null,{"$f":"VLOOKUP(N1449,Tabel10[[korte omschrijving]:[MCC3_CODE]],2,0)","v":{"$error":"#N/A"}},{"$f":"VLOOKUP(N1449,Tabel10[],3,0)","v":{"$error":"#N/A"}},null,null,null,null,null,null,null,null,null,null,null,{"$error":"#DIV/0!"},0,0,null,"","","","","","","","","","",null,null,null,null,null,null,null,null,null,null,null,null,null,null,null,null,null,"ZWO"]
[null,null,null,null,null,null,null,null,null,null,null,null,null,null,{"$f":"VLOOKUP(N1450,Tabel10[[korte omschrijving]:[MCC3_CODE]],2,0)","v":{"$error":"#N/A"}},{"$f":"VLOOKUP(N1450,Tabel10[],3,0)","v":{"$error":"#N/A"}},null,null,null,null,null,null,null,null,null,null,null,{"$error":"#DIV/0!"},0,0,null,"","","","","","","","","","",null,null,null,null,null,null,null,null,null,null,null,null,null,null,null,null,null,"ZWO"]
[null,null,null,null,null,null,null,null,null,null,null,null,null,null,{"$f":"VLOOKUP(N1451,Tabel10[[korte omschrijving]:[MCC3_CODE]],2,0)","v":{"$error":"#N/A"}},{"$f":"VLOOKUP(N1451,Tabel10[],3,0)","v":{"$error":"#N/A"}},null,null,null,null,null,null,null,null,null,null,null,{"$error":"#DIV/0!"},0,0,null,"","","","","","","","","","",null,null,null,null,null,null,null,null,null,null,null,null,null,null,null,null,null,"ZWO"]
[null,null,null,null,null,null,null,null,null,null,null,null,null,null,{"$f":"VLOOKUP(N1452,Tabel10[[korte omschrijving]:[MCC3_CODE]],2,0)","v":{"$error":"#N/A"}},{"$f":"VLOOKUP(N1452,Tabel10[],3,0)","v":{"$error":"#N/A"}},null,null,null,null,0,null,null,null,null,null,null,{"$error":"#DIV/0!"},0,0,null,"","","","","","","","","","",null,null,null,null,null,null,null,null,null,null,null,null,null,null,null,null,null,"ZWO"]
[null,null,null,null,null,null,null,null,null,null,null,null,null,null,{"$f":"VLOOKUP(N1453,Tabel10[[korte omschrijving]:[MCC3_CODE]],2,0)","v":{"$error":"#N/A"}},{"$f":"VLOOKUP(N1453,Tabel10[],3,0)","v":{"$error":"#N/A"}},null,null,null,null,null,null,null,null,null,null,null,{"$error":"#DIV/0!"},0,0,null,"","","","","","","","","","",null,null,null,null,null,null,null,null,null,null,null,null,null,null,null,null,null,"ZWO"]
[null,null,null,null,null,null,null,null,null,null,null,null,null,null,{"$f":"VLOOKUP(N1454,Tabel10[[korte omschrijving]:[MCC3_CODE]],2,0)","v":{"$error":"#N/A"}},{"$f":"VLOOKUP(N1454,Tabel10[],3,0)","v":{"$error":"#N/A"}},null,null,null,null,null,null,null,null,null,null,null,{"$error":"#DIV/0!"},0,0,null,"","","","","","","","","","",null,null,null,null,null,null,null,null,null,null,null,null,null,null,null,null,null,"ZWO"]
[null,null,null,null,null,null,null,null,null,null,null,null,null,null,{"$f":"VLOOKUP(N1455,Tabel10[[korte omschrijving]:[MCC3_CODE]],2,0)","v":{"$error":"#N/A"}},{"$f":"VLOOKUP(N1455,Tabel10[],3,0)","v":{"$error":"#N/A"}},null,null,null,null,null,null,null,null,null,null,null,{"$error":"#DIV/0!"},0,0,null,"","","","","","","","","","",null,null,null,null,null,null,null,null,null,null,null,null,null,null,null,null,null,"ZWO"]
[null,null,null,null,null,null,null,null,null,null,null,null,null,null,{"$f":"VLOOKUP(N1456,Tabel10[[korte omschrijving]:[MCC3_CODE]],2,0)","v":{"$error":"#N/A"}},{"$f":"VLOOKUP(N1456,Tabel10[],3,0)","v":{"$error":"#N/A"}},null,null,null,null,null,null,null,null,null,null,null,{"$error":"#DIV/0!"},0,0,null,"","","","","","","","","","",null,null,null,null,null,null,null,null,null,null,null,null,null,null,null,null,null,"ZWO"]
[null,null,null,null,null,null,null,null,null,null,null,null,null,null,{"$f":"VLOOKUP(N1457,Tabel10[[korte omschrijving]:[MCC3_CODE]],2,0)","v":{"$error":"#N/A"}},{"$f":"VLOOKUP(N1457,Tabel10[],3,0)","v":{"$error":"#N/A"}},null,null,null,null,null,null,null,null,null,null,null,{"$error":"#DIV/0!"},0,0,null,"","","","","","","","","","",null,null,null,null,null,null,null,null,null,null,null,null,null,null,null,null,null,"ZWO"]
[null,null,null,null,null,null,null,null,null,null,null,null,null,null,{"$f":"VLOOKUP(N1458,Tabel10[[korte omschrijving]:[MCC3_CODE]],2,0)","v":{"$error":"#N/A"}},{"$f":"VLOOKUP(N1458,Tabel10[],3,0)","v":{"$error":"#N/A"}},null,null,null,null,0,null,null,null,null,null,null,{"$error":"#DIV/0!"},0,0,null,"","","","","","","","","","",null,null,null,null,null,null,null,null,null,null,null,null,null,null,null,null,null,"ZWO"]
[null,null,null,null,null,null,null,null,null,null,null,null,null,null,{"$f":"VLOOKUP(N1459,Tabel10[[korte omschrijving]:[MCC3_CODE]],2,0)","v":{"$error":"#N/A"}},{"$f":"VLOOKUP(N1459,Tabel10[],3,0)","v":{"$error":"#N/A"}},null,null,null,null,null,null,null,null,null,null,null,{"$error":"#DIV/0!"},0,0,null,"","","","","","","","","","",null,null,null,null,null,null,null,null,null,null,null,null,null,null,null,null,null,"ZWO"]
[null,null,null,null,null,null,null,null,null,null,null,null,null,null,{"$f":"VLOOKUP(N1460,Tabel10[[korte omschrijving]:[MCC3_CODE]],2,0)","v":{"$error":"#N/A"}},{"$f":"VLOOKUP(N1460,Tabel10[],3,0)","v":{"$error":"#N/A"}},null,null,null,null,null,null,null,null,null,null,null,{"$error":"#DIV/0!"},0,0,null,"","","","","","","","","","",null,null,null,null,null,null,null,null,null,null,null,null,null,null,null,null,null,"ZWO"]
[null,null,null,null,null,null,null,null,null,null,null,null,null,null,{"$f":"VLOOKUP(N1461,Tabel10[[korte omschrijving]:[MCC3_CODE]],2,0)","v":{"$error":"#N/A"}},{"$f":"VLOOKUP(N1461,Tabel10[],3,0)","v":{"$error":"#N/A"}},null,null,null,null,null,null,null,null,null,null,null,{"$error":"#DIV/0!"},0,0,null,"","","","","","","","","","",null,null,null,null,null,null,null,null,null,null,null,null,null,null,null,null,null,"ZWO"]
[null,null,null,null,null,null,null,null,null,null,null,null,null,null,{"$f":"VLOOKUP(N1462,Tabel10[[korte omschrijving]:[MCC3_CODE]],2,0)","v":{"$error":"#N/A"}},{"$f":"VLOOKUP(N1462,Tabel10[],3,0)","v":{"$error":"#N/A"}},null,null,null,null,null,null,null,null,null,null,null,{"$error":"#DIV/0!"},0,0,null,"","","","","","","","","","",null,null,null,null,null,null,null,null,null,null,null,null,null,null,null,null,null,"ZWO"]
[null,null,null,null,null,null,null,null,null,null,null,null,null,null,{"$f":"VLOOKUP(N1463,Tabel10[[korte omschrijving]:[MCC3_CODE]],2,0)","v":{"$error":"#N/A"}},{"$f":"VLOOKUP(N1463,Tabel10[],3,0)","v":{"$error":"#N/A"}},null,null,null,null,null,null,null,null,null,null,null,{"$error":"#DIV/0!"},0,0,null,"","","","","","","","","","",null,null,null,null,null,null,null,null,null,null,null,null,null,null,null,null,null,"ZWO"]
[null,null,null,null,null,null,null,null,null,null,null,null,null,null,{"$f":"VLOOKUP(N1464,Tabel10[[korte omschrijving]:[MCC3_CODE]],2,0)","v":{"$error":"#N/A"}},{"$f":"VLOOKUP(N1464,Tabel10[],3,0)","v":{"$error":"#N/A"}},null,null,null,null,0,null,null,null,null,null,null,{"$f":"AA1464/Y1464","v":{"$error":"#DIV/0!"}},{"$f":"T1464*Y1464","v":0},{"$f":"T1464*AA1464","v":0},null,{"$f":"IF(AE1464 <> \"\",\n    IF(ISNUMBER(VALUE(LEFT(AE1464, FIND(\"%\", AE1464)-1))),\n        VALUE(LEFT(AE1464, FIND(\"%\", AE1464)-1)),\n        \"Invalid format\"),\n    \"\")","v":""},{"$f":"IF(AE1464 <> \"\",\n    IF(ISNUMBER(VALUE(LEFT(AE1464, FIND(\"%\", AE1464)-1))) * ISNUMBER(FIND(\"%\", AE1464 & \"wol\")) > 0,\n        TRIM(MID(AE1464, FIND(\"%\", AE1464)+1, FIND(\"/\", AE1464 & \"/\")-FIND(\"%\", AE1464)-1)),\n        \"Invalid format\"),\n    \"\")","v":""},{"$f":"IF(AE1464 <> \"\",\n    IF(ISNUMBER(VALUE(MID(AE1464, FIND(\"/\", AE1464) + 1, FIND(\"%\", AE1464, FIND(\"/\", AE1464)) - FIND(\"/\", AE1464) - 1))),\n        VALUE(MID(AE1464, FIND(\"/\", AE1464) + 1, FIND(\"%\", AE1464, FIND(\"/\", AE1464)) - FIND(\"/\", AE1464) - 1)),\n        \"\"),\n    \"\")","v":""},{"$f":"IF(AE1464 <> \"\",\n    IFERROR(TRIM(MID(AE1464, FIND(\"%\", AE1464, FIND(\"/\", AE1464)+1)+2,\n        IFERROR(FIND(\"/\", AE1464 & \"/\", FIND(\"/\", AE1464)+1)-FIND(\"%\", AE1464, FIND(\"/\", AE1464)+1)-2, LEN(AE1464)-FIND(\"%\", AE1464, FIND(\"/\", AE1464)+1)-1))),\n        \"\"),\n    \"\")","v":""},{"$f":"IF(AE1464 <> \"\",\n    IF(ISNUMBER(VALUE(MID(AE1464, FIND(\"/\", AE1464, FIND(\"/\", AE1464)+1) + 1, FIND(\"%\", AE1464, FIND(\"/\", AE1464, FIND(\"/\", AE1464)+1)) - FIND(\"/\", AE1464, FIND(\"/\", AE1464)+1) - 1))),\n        VALUE(MID(AE1464, FIND(\"/\", AE1464, FIND(\"/\", AE1464)+1) + 1, FIND(\"%\", AE1464, FIND(\"/\", AE1464, FIND(\"/\", AE1464)+1)) - FIND(\"/\", AE1464, FIND(\"/\", AE1464)+1) - 1)),\n        \"\"),\n    \"\")","v":""},{"$f":"IF(AE1464 <> \"\",\n    IFERROR(\n        TRIM(MID(AE1464,\n            FIND(\"%\", AE1464, FIND(\"%\", AE1464, FIND(\"%\", AE1464)+1)+1)+1,\n            FIND(\"/\", AE1464 & \"/\", FIND(\"%\", AE1464, FIND(\"%\", AE1464, FIND(\"%\", AE1464)+1)+1))-FIND(\"%\", AE1464, FIND(\"%\", AE1464, FIND(\"%\", AE1464)+1)+1)-1)\n        ),\n        \"\"\n    ),\n    \"\"\n)","v":""},{"$f":"IF(AE1464 <> \"\",\n    IF(ISNUMBER(VALUE(MID(AE1464, FIND(\"/\", AE1464, FIND(\"/\", AE1464, FIND(\"/\", AE1464)+1)+1) + 1, FIND(\"%\", AE1464, FIND(\"/\", AE1464, FIND(\"/\", AE1464, FIND(\"/\", AE1464)+1)+1)) - FIND(\"/\", AE1464, FIND(\"/\", AE1464, FIND(\"/\", AE1464)+1)+1) - 1))),\n        VALUE(MID(AE1464, FIND(\"/\", AE1464, FIND(\"/\", AE1464, FIND(\"/\", AE1464)+1)+1) + 1, FIND(\"%\", AE1464, FIND(\"/\", AE1464, FIND(\"/\", AE1464, FIND(\"/\", AE1464)+1)+1)) - FIND(\"/\", AE1464, FIND(\"/\", AE1464, FIND(\"/\", AE1464)+1)+1) - 1)),\n        \"\"),\n    \"\")","v":""},{"$f":"IF(AE1464 <> \"\",\n    IFERROR(TRIM(MID(AE1464, FIND(\"%\", AE1464, FIND(\"/\", AE1464, FIND(\"/\", AE1464, FIND(\"/\", AE1464)+1)+1)+1)+2,\n        IFERROR(FIND(\"/\", AE1464, FIND(\"/\", AE1464, FIND(\"/\", AE1464, FIND(\"/\", AE1464)+1)+1)+1)-FIND(\"%\", AE1464, FIND(\"/\", AE1464, FIND(\"/\", AE1464, FIND(\"/\", AE1464)+1)+1)+1)-2, LEN(AE1464)-FIND(\"%\", AE1464, FIND(\"/\", AE1464, FIND(\"/\", AE1464, FIND(\"/\", AE1464)+1)+1)+1)-1))),\n        \"\"),\n    \"\")","v":""},{"$f":"IF(AE1464 <> \"\",\n    IF(ISNUMBER(VALUE(MID(AE1464, FIND(\"/\", AE1464, FIND(\"/\", AE1464, FIND(\"/\", AE1464, FIND(\"/\", AE1464)+1)+1)+1) + 1, FIND(\"%\", AE1464, FIND(\"/\", AE1464, FIND(\"/\", AE1464, FIND(\"/\", AE1464, FIND(\"/\", AE1464)+1)+1)+1)) - FIND(\"/\", AE1464, FIND(\"/\", AE1464, FIND(\"/\", AE1464, FIND(\"/\", AE1464)+1)+1)+1) - 1))),\n        VALUE(MID(AE1464, FIND(\"/\", AE1464, FIND(\"/\", AE1464, FIND(\"/\", AE1464, FIND(\"/\", AE1464)+1)+1)+1) + 1, FIND(\"%\", AE1464, FIND(\"/\", AE1464, FIND(\"/\", AE1464, FIND(\"/\", AE1464, FIND(\"/\", AE1464)+1)+1)+1)) - FIND(\"/\", AE1464, FIND(\"/\", AE1464, FIND(\"/\", AE1464, FIND(\"/\", AE1464)+1)+1)+1) - 1)),\n        \"\"),\n    \"\")","v":""},{"$f":"IF(AE1464 = \"\", \"\",\n    IFERROR(TRIM(\n        MID(\n            AE1464,\n            FIND(\"%\", AE1464, FIND(\"/\", AE1464, FIND(\"/\", AE1464, FIND(\"/\", AE1464, FIND(\"/\", AE1464)+1)+1)+1)+1) + 1,\n            FIND(\"/\", AE1464 & \"/\", FIND(\"%\", AE1464, FIND(\"/\", AE1464, FIND(\"/\", AE1464, FIND(\"/\", AE1464, FIND(\"/\", AE1464)+1)+1)+1)+1)) -\n            FIND(\"%\", AE1464, FIND(\"/\", AE1464, FIND(\"/\", AE1464, FIND(\"/\", AE1464, FIND(\"/\", AE1464)+1)+1)+1)+1) - 1\n        )\n    ),\n    \"\")\n)","v":""},null,null,null,null,null,null,null,null,null,null,null,null,null,null,null,null,null,"ZWO"]
[null,null,null,null,null,null,null,null,null,null,null,null,null,null,{"$f":"VLOOKUP(N1465,Tabel10[[korte omschrijving]:[MCC3_CODE]],2,0)","v":{"$error":"#N/A"}},{"$f":"VLOOKUP(N1465,Tabel10[],3,0)","v":{"$error":"#N/A"}},null,null,null,null,null,null,null,null,null,null,null,{"$error":"#DIV/0!"},0,0,null,"","","","","","","","","","",null,null,null,null,null,null,null,null,null,null,null,null,null,null,null,null,null,"ZWO"]
[null,null,null,null,null,null,null,null,null,null,null,null,null,null,{"$f":"VLOOKUP(N1466,Tabel10[[korte omschrijving]:[MCC3_CODE]],2,0)","v":{"$error":"#N/A"}},{"$f":"VLOOKUP(N1466,Tabel10[],3,0)","v":{"$error":"#N/A"}},null,null,null,null,null,null,null,null,null,null,null,{"$error":"#DIV/0!"},0,0,null,"","","","","","","","","","",null,null,null,null,null,null,null,null,null,null,null,null,null,null,null,null,null,"ZWO"]
[null,null,null,null,null,null,null,null,null,null,null,null,null,null,{"$f":"VLOOKUP(N1467,Tabel10[[korte omschrijving]:[MCC3_CODE]],2,0)","v":{"$error":"#N/A"}},{"$f":"VLOOKUP(N1467,Tabel10[],3,0)","v":{"$error":"#N/A"}},null,null,null,null,null,null,null,null,null,null,null,{"$error":"#DIV/0!"},0,0,null,"","","","","","","","","","",null,null,null,null,null,null,null,null,null,null,null,null,null,null,null,null,null,"ZWO"]
[null,null,null,null,null,null,null,null,null,null,null,null,null,null,{"$f":"VLOOKUP(N1468,Tabel10[[korte omschrijving]:[MCC3_CODE]],2,0)","v":{"$error":"#N/A"}},{"$f":"VLOOKUP(N1468,Tabel10[],3,0)","v":{"$error":"#N/A"}},null,null,null,null,null,null,null,null,null,null,null,{"$error":"#DIV/0!"},0,0,null,"","","","","","","","","","",null,null,null,null,null,null,null,null,null,null,null,null,null,null,null,null,null,"ZWO"]
[null,null,null,null,null,null,null,null,null,null,null,null,null,null,{"$f":"VLOOKUP(N1469,Tabel10[[korte omschrijving]:[MCC3_CODE]],2,0)","v":{"$error":"#N/A"}},{"$f":"VLOOKUP(N1469,Tabel10[],3,0)","v":{"$error":"#N/A"}},null,null,null,null,null,null,null,null,null,null,null,{"$error":"#DIV/0!"},0,0,null,"","","","","","","","","","",null,null,null,null,null,null,null,null,null,null,null,null,null,null,null,null,null,"ZWO"]
[null,null,null,null,null,null,null,null,null,null,null,null,null,null,{"$f":"VLOOKUP(N1470,Tabel10[[korte omschrijving]:[MCC3_CODE]],2,0)","v":{"$error":"#N/A"}},{"$f":"VLOOKUP(N1470,Tabel10[],3,0)","v":{"$error":"#N/A"}},null,null,null,null,0,null,null,null,null,null,null,{"$error":"#DIV/0!"},0,0,null,"","","","","","","","","","",null,null,null,null,null,null,null,null,null,null,null,null,null,null,null,null,null,"ZWO"]
[null,null,null,null,null,null,null,null,null,null,null,null,null,null,{"$f":"VLOOKUP(N1471,Tabel10[[korte omschrijving]:[MCC3_CODE]],2,0)","v":{"$error":"#N/A"}},{"$f":"VLOOKUP(N1471,Tabel10[],3,0)","v":{"$error":"#N/A"}},null,null,null,null,null,null,null,null,null,null,null,{"$error":"#DIV/0!"},0,0,null,"","","","","","","","","","",null,null,null,null,null,null,null,null,null,null,null,null,null,null,null,null,null,"ZWO"]
[null,null,null,null,null,null,null,null,null,null,null,null,null,null,{"$f":"VLOOKUP(N1472,Tabel10[[korte omschrijving]:[MCC3_CODE]],2,0)","v":{"$error":"#N/A"}},{"$f":"VLOOKUP(N1472,Tabel10[],3,0)","v":{"$error":"#N/A"}},null,null,null,null,null,null,null,null,null,null,null,{"$error":"#DIV/0!"},0,0,null,"","","","","","","","","","",null,null,null,null,null,null,null,null,null,null,null,null,null,null,null,null,null,"ZWO"]
[null,null,null,null,null,null,null,null,null,null,null,null,null,null,{"$f":"VLOOKUP(N1473,Tabel10[[korte omschrijving]:[MCC3_CODE]],2,0)","v":{"$error":"#N/A"}},{"$f":"VLOOKUP(N1473,Tabel10[],3,0)","v":{"$error":"#N/A"}},null,null,null,null,null,null,null,null,null,null,null,{"$error":"#DIV/0!"},0,0,null,"","","","","","","","","","",null,null,null,null,null,null,null,null,null,null,null,null,null,null,null,null,null,"ZWO"]
[null,null,null,null,null,null,null,null,null,null,null,null,null,null,{"$f":"VLOOKUP(N1474,Tabel10[[korte omschrijving]:[MCC3_CODE]],2,0)","v":{"$error":"#N/A"}},{"$f":"VLOOKUP(N1474,Tabel10[],3,0)","v":{"$error":"#N/A"}},null,null,null,null,null,null,null,null,null,null,null,{"$error":"#DIV/0!"},0,0,null,"","","","","","","","","","",null,null,null,null,null,null,null,null,null,null,null,null,null,null,null,null,null,"ZWO"]
[null,null,null,null,null,null,null,null,null,null,null,null,null,null,{"$f":"VLOOKUP(N1475,Tabel10[[korte omschrijving]:[MCC3_CODE]],2,0)","v":{"$error":"#N/A"}},{"$f":"VLOOKUP(N1475,Tabel10[],3,0)","v":{"$error":"#N/A"}},null,null,null,null,null,null,null,null,null,null,null,{"$error":"#DIV/0!"},0,0,null,"","","","","","","","","","",null,null,null,null,null,null,null,null,null,null,null,null,null,null,null,null,null,"ZWO"]
[null,null,null,null,null,null,null,null,null,null,null,null,null,null,{"$f":"VLOOKUP(N1476,Tabel10[[korte omschrijving]:[MCC3_CODE]],2,0)","v":{"$error":"#N/A"}},{"$f":"VLOOKUP(N1476,Tabel10[],3,0)","v":{"$error":"#N/A"}},null,null,null,null,0,null,null,null,null,null,null,{"$error":"#DIV/0!"},0,0,null,"","","","","","","","","","",null,null,null,null,null,null,null,null,null,null,null,null,null,null,null,null,null,"ZWO"]
[null,null,null,null,null,null,null,null,null,null,null,null,null,null,{"$f":"VLOOKUP(N1477,Tabel10[[korte omschrijving]:[MCC3_CODE]],2,0)","v":{"$error":"#N/A"}},{"$f":"VLOOKUP(N1477,Tabel10[],3,0)","v":{"$error":"#N/A"}},null,null,null,null,null,null,null,null,null,null,null,{"$error":"#DIV/0!"},0,0,null,"","","","","","","","","","",null,null,null,null,null,null,null,null,null,null,null,null,null,null,null,null,null,"ZWO"]
[null,null,null,null,null,null,null,null,null,null,null,null,null,null,{"$f":"VLOOKUP(N1478,Tabel10[[korte omschrijving]:[MCC3_CODE]],2,0)","v":{"$error":"#N/A"}},{"$f":"VLOOKUP(N1478,Tabel10[],3,0)","v":{"$error":"#N/A"}},null,null,null,null,null,null,null,null,null,null,null,{"$error":"#DIV/0!"},0,0,null,"","","","","","","","","","",null,null,null,null,null,null,null,null,null,null,null,null,null,null,null,null,null,"ZWO"]
[null,null,null,null,null,null,null,null,null,null,null,null,null,null,{"$f":"VLOOKUP(N1479,Tabel10[[korte omschrijving]:[MCC3_CODE]],2,0)","v":{"$error":"#N/A"}},{"$f":"VLOOKUP(N1479,Tabel10[],3,0)","v":{"$error":"#N/A"}},null,null,null,null,null,null,null,null,null,null,null,{"$error":"#DIV/0!"},0,0,null,"","","","","","","","","","",null,null,null,null,null,null,null,null,null,null,null,null,null,null,null,null,null,"ZWO"]
[null,null,null,null,null,null,null,null,null,null,null,null,null,null,{"$f":"VLOOKUP(N1480,Tabel10[[korte omschrijving]:[MCC3_CODE]],2,0)","v":{"$error":"#N/A"}},{"$f":"VLOOKUP(N1480,Tabel10[],3,0)","v":{"$error":"#N/A"}},null,null,null,null,null,null,null,null,null,null,null,{"$error":"#DIV/0!"},0,0,null,"","","","","","","","","","",null,null,null,null,null,null,null,null,null,null,null,null,null,null,null,null,null,"ZWO"]
[null,null,null,null,null,null,null,null,null,null,null,null,null,null,{"$f":"VLOOKUP(N1481,Tabel10[[korte omschrijving]:[MCC3_CODE]],2,0)","v":{"$error":"#N/A"}},{"$f":"VLOOKUP(N1481,Tabel10[],3,0)","v":{"$error":"#N/A"}},null,null,null,null,null,null,null,null,null,null,null,{"$error":"#DIV/0!"},0,0,null,"","","","","","","","","","",null,null,null,null,null,null,null,null,null,null,null,null,null,null,null,null,null,"ZWO"]
[null,null,null,null,null,null,null,null,null,null,null,null,null,null,{"$f":"VLOOKUP(N1482,Tabel10[[korte omschrijving]:[MCC3_CODE]],2,0)","v":{"$error":"#N/A"}},{"$f":"VLOOKUP(N1482,Tabel10[],3,0)","v":{"$error":"#N/A"}},null,null,null,null,0,null,null,null,null,null,null,{"$error":"#DIV/0!"},0,0,null,"","","","","","","","","","",null,null,null,null,null,null,null,null,null,null,null,null,null,null,null,null,null,"ZWO"]
[null,null,null,null,null,null,null,null,null,null,null,null,null,null,{"$f":"VLOOKUP(N1483,Tabel10[[korte omschrijving]:[MCC3_CODE]],2,0)","v":{"$error":"#N/A"}},{"$f":"VLOOKUP(N1483,Tabel10[],3,0)","v":{"$error":"#N/A"}},null,null,null,null,null,null,null,null,null,null,null,{"$error":"#DIV/0!"},0,0,null,"","","","","","","","","","",null,null,null,null,null,null,null,null,null,null,null,null,null,null,null,null,null,"ZWO"]
[null,null,null,null,null,null,null,null,null,null,null,null,null,null,{"$f":"VLOOKUP(N1484,Tabel10[[korte omschrijving]:[MCC3_CODE]],2,0)","v":{"$error":"#N/A"}},{"$f":"VLOOKUP(N1484,Tabel10[],3,0)","v":{"$error":"#N/A"}},null,null,null,null,null,null,null,null,null,null,null,{"$error":"#DIV/0!"},0,0,null,"","","","","","","","","","",null,null,null,null,null,null,null,null,null,null,null,null,null,null,null,null,null,"ZWO"]
[null,null,null,null,null,null,null,null,null,null,null,null,null,null,{"$f":"VLOOKUP(N1485,Tabel10[[korte omschrijving]:[MCC3_CODE]],2,0)","v":{"$error":"#N/A"}},{"$f":"VLOOKUP(N1485,Tabel10[],3,0)","v":{"$error":"#N/A"}},null,null,null,null,null,null,null,null,null,null,null,{"$error":"#DIV/0!"},0,0,null,"","","","","","","","","","",null,null,null,null,null,null,null,null,null,null,null,null,null,null,null,null,null,"ZWO"]
[null,null,null,null,null,null,null,null,null,null,null,null,null,null,{"$f":"VLOOKUP(N1486,Tabel10[[korte omschrijving]:[MCC3_CODE]],2,0)","v":{"$error":"#N/A"}},{"$f":"VLOOKUP(N1486,Tabel10[],3,0)","v":{"$error":"#N/A"}},null,null,null,null,null,null,null,null,null,null,null,{"$error":"#DIV/0!"},0,0,null,"","","","","","","","","","",null,null,null,null,null,null,null,null,null,null,null,null,null,null,null,null,null,"ZWO"]
[null,null,null,null,null,null,null,null,null,null,null,null,null,null,{"$f":"VLOOKUP(N1487,Tabel10[[korte omschrijving]:[MCC3_CODE]],2,0)","v":{"$error":"#N/A"}},{"$f":"VLOOKUP(N1487,Tabel10[],3,0)","v":{"$error":"#N/A"}},null,null,null,null,null,null,null,null,null,null,null,{"$error":"#DIV/0!"},0,0,null,"","","","","","","","","","",null,null,null,null,null,null,null,null,null,null,null,null,null,null,null,null,null,"ZWO"]
[null,null,null,null,null,null,null,null,null,null,null,null,null,null,{"$f":"VLOOKUP(N1488,Tabel10[[korte omschrijving]:[MCC3_CODE]],2,0)","v":{"$error":"#N/A"}},{"$f":"VLOOKUP(N1488,Tabel10[],3,0)","v":{"$error":"#N/A"}},null,null,null,null,0,null,null,null,null,null,null,{"$error":"#DIV/0!"},0,0,null,"","","","","","","","","","",null,null,null,null,null,null,null,null,null,null,null,null,null,null,null,null,null,"ZWO"]
[null,null,null,null,null,null,null,null,null,null,null,null,null,null,{"$f":"VLOOKUP(N1489,Tabel10[[korte omschrijving]:[MCC3_CODE]],2,0)","v":{"$error":"#N/A"}},{"$f":"VLOOKUP(N1489,Tabel10[],3,0)","v":{"$error":"#N/A"}},null,null,null,null,null,null,null,null,null,null,null,{"$error":"#DIV/0!"},0,0,null,"","","","","","","","","","",null,null,null,null,null,null,null,null,null,null,null,null,null,null,null,null,null,"ZWO"]
[null,null,null,null,null,null,null,null,null,null,null,null,null,null,{"$f":"VLOOKUP(N1490,Tabel10[[korte omschrijving]:[MCC3_CODE]],2,0)","v":{"$error":"#N/A"}},{"$f":"VLOOKUP(N1490,Tabel10[],3,0)","v":{"$error":"#N/A"}},null,null,null,null,null,null,null,null,null,null,null,{"$error":"#DIV/0!"},0,0,null,"","","","","","","","","","",null,null,null,null,null,null,null,null,null,null,null,null,null,null,null,null,null,"ZWO"]
[null,null,null,null,null,null,null,null,null,null,null,null,null,null,{"$f":"VLOOKUP(N1491,Tabel10[[korte omschrijving]:[MCC3_CODE]],2,0)","v":{"$error":"#N/A"}},{"$f":"VLOOKUP(N1491,Tabel10[],3,0)","v":{"$error":"#N/A"}},null,null,null,null,null,null,null,null,null,null,null,{"$error":"#DIV/0!"},0,0,null,"","","","","","","","","","",null,null,null,null,null,null,null,null,null,null,null,null,null,null,null,null,null,"ZWO"]
[null,null,null,null,null,null,null,null,null,null,null,null,null,null,{"$f":"VLOOKUP(N1492,Tabel10[[korte omschrijving]:[MCC3_CODE]],2,0)","v":{"$error":"#N/A"}},{"$f":"VLOOKUP(N1492,Tabel10[],3,0)","v":{"$error":"#N/A"}},null,null,null,null,null,null,null,null,null,null,null,{"$error":"#DIV/0!"},0,0,null,"","","","","","","","","","",null,null,null,null,null,null,null,null,null,null,null,null,null,null,null,null,null,"ZWO"]
[null,null,null,null,null,null,null,null,null,null,null,null,null,null,{"$f":"VLOOKUP(N1493,Tabel10[[korte omschrijving]:[MCC3_CODE]],2,0)","v":{"$error":"#N/A"}},{"$f":"VLOOKUP(N1493,Tabel10[],3,0)","v":{"$error":"#N/A"}},null,null,null,null,null,null,null,null,null,null,null,{"$error":"#DIV/0!"},0,0,null,"","","","","","","","","","",null,null,null,null,null,null,null,null,null,null,null,null,null,null,null,null,null,"ZWO"]
[null,null,null,null,null,null,null,null,null,null,null,null,null,null,{"$f":"VLOOKUP(N1494,Tabel10[[korte omschrijving]:[MCC3_CODE]],2,0)","v":{"$error":"#N/A"}},{"$f":"VLOOKUP(N1494,Tabel10[],3,0)","v":{"$error":"#N/A"}},null,null,null,null,{"$f":"SUM(T1494:T1499)","v":0},null,null,null,null,null,null,{"$error":"#DIV/0!"},0,0,null,"","","","","","","","","","",null,null,null,null,null,null,null,null,null,null,null,null,null,null,null,null,null,"ZWO"]
[null,null,null,null,null,null,null,null,null,null,null,null,null,null,{"$f":"VLOOKUP(N1495,Tabel10[[korte omschrijving]:[MCC3_CODE]],2,0)","v":{"$error":"#N/A"}},{"$f":"VLOOKUP(N1495,Tabel10[],3,0)","v":{"$error":"#N/A"}},null,null,null,null,null,null,null,null,null,null,null,{"$error":"#DIV/0!"},0,0,null,"","","","","","","","","","",null,null,null,null,null,null,null,null,null,null,null,null,null,null,null,null,null,"ZWO"]
[null,null,null,null,null,null,null,null,null,null,null,null,null,null,{"$f":"VLOOKUP(N1496,Tabel10[[korte omschrijving]:[MCC3_CODE]],2,0)","v":{"$error":"#N/A"}},{"$f":"VLOOKUP(N1496,Tabel10[],3,0)","v":{"$error":"#N/A"}},null,null,null,null,null,null,null,null,null,null,null,{"$error":"#DIV/0!"},0,0,null,"","","","","","","","","","",null,null,null,null,null,null,null,null,null,null,null,null,null,null,null,null,null,"ZWO"]
[null,null,null,null,null,null,null,null,null,null,null,null,null,null,{"$f":"VLOOKUP(N1497,Tabel10[[korte omschrijving]:[MCC3_CODE]],2,0)","v":{"$error":"#N/A"}},{"$f":"VLOOKUP(N1497,Tabel10[],3,0)","v":{"$error":"#N/A"}},null,null,null,null,null,null,null,null,null,null,null,{"$error":"#DIV/0!"},0,0,null,"","","","","","","","","","",null,null,null,null,null,null,null,null,null,null,null,null,null,null,null,null,null,"ZWO"]
[null,null,null,null,null,null,null,null,null,null,null,null,null,null,{"$f":"VLOOKUP(N1498,Tabel10[[korte omschrijving]:[MCC3_CODE]],2,0)","v":{"$error":"#N/A"}},{"$f":"VLOOKUP(N1498,Tabel10[],3,0)","v":{"$error":"#N/A"}},null,null,null,null,null,null,null,null,null,null,null,{"$error":"#DIV/0!"},0,0,null,"","","","","","","","","","",null,null,null,null,null,null,null,null,null,null,null,null,null,null,null,null,null,"ZWO"]
[null,null,null,null,null,null,null,null,null,null,null,null,null,null,{"$f":"VLOOKUP(N1499,Tabel10[[korte omschrijving]:[MCC3_CODE]],2,0)","v":{"$error":"#N/A"}},{"$f":"VLOOKUP(N1499,Tabel10[],3,0)","v":{"$error":"#N/A"}},null,null,null,null,null,null,null,null,null,null,null,{"$error":"#DIV/0!"},0,0,null,"","","","","","","","","","",null,null,null,null,null,null,null,null,null,null,null,null,null,null,null,null,null,"ZWO"]
[null,null,null,null,null,null,null,null,null,null,null,null,null,null,{"$f":"VLOOKUP(N1500,Tabel10[[korte omschrijving]:[MCC3_CODE]],2,0)","v":{"$error":"#N/A"}},{"$f":"VLOOKUP(N1500,Tabel10[],3,0)","v":{"$error":"#N/A"}},null,null,null,null,0,null,null,null,null,null,null,{"$error":"#DIV/0!"},0,0,null,"","","","","","","","","","",null,null,null,null,null,null,null,null,null,null,null,null,null,null,null,null,null,"ZWO"]
[null,null,null,null,null,null,null,null,null,null,null,null,null,null,{"$f":"VLOOKUP(N1501,Tabel10[[korte omschrijving]:[MCC3_CODE]],2,0)","v":{"$error":"#N/A"}},{"$f":"VLOOKUP(N1501,Tabel10[],3,0)","v":{"$error":"#N/A"}},null,null,null,null,null,null,null,null,null,null,null,{"$error":"#DIV/0!"},0,0,null,"","","","","","","","","","",null,null,null,null,null,null,null,null,null,null,null,null,null,null,null,null,null,"ZWO"]
[null,null,null,null,null,null,null,null,null,null,null,null,null,null,{"$f":"VLOOKUP(N1502,Tabel10[[korte omschrijving]:[MCC3_CODE]],2,0)","v":{"$error":"#N/A"}},{"$f":"VLOOKUP(N1502,Tabel10[],3,0)","v":{"$error":"#N/A"}},null,null,null,null,null,null,null,null,null,null,null,{"$error":"#DIV/0!"},0,0,null,"","","","","","","","","","",null,null,null,null,null,null,null,null,null,null,null,null,null,null,null,null,null,"ZWO"]
[null,null,null,null,null,null,null,null,null,null,null,null,null,null,{"$f":"VLOOKUP(N1503,Tabel10[[korte omschrijving]:[MCC3_CODE]],2,0)","v":{"$error":"#N/A"}},{"$f":"VLOOKUP(N1503,Tabel10[],3,0)","v":{"$error":"#N/A"}},null,null,null,null,null,null,null,null,null,null,null,{"$error":"#DIV/0!"},0,0,null,"","","","","","","","","","",null,null,null,null,null,null,null,null,null,null,null,null,null,null,null,null,null,"ZWO"]
[null,null,null,null,null,null,null,null,null,null,null,null,null,null,{"$f":"VLOOKUP(N1504,Tabel10[[korte omschrijving]:[MCC3_CODE]],2,0)","v":{"$error":"#N/A"}},{"$f":"VLOOKUP(N1504,Tabel10[],3,0)","v":{"$error":"#N/A"}},null,null,null,null,null,null,null,null,null,null,null,{"$error":"#DIV/0!"},0,0,null,"","","","","","","","","","",null,null,null,null,null,null,null,null,null,null,null,null,null,null,null,null,null,"ZWO"]
[null,null,null,null,null,null,null,null,null,null,null,null,null,null,{"$f":"VLOOKUP(N1505,Tabel10[[korte omschrijving]:[MCC3_CODE]],2,0)","v":{"$error":"#N/A"}},{"$f":"VLOOKUP(N1505,Tabel10[],3,0)","v":{"$error":"#N/A"}},null,null,null,null,null,null,null,null,null,null,null,{"$error":"#DIV/0!"},0,0,null,"","","","","","","","","","",null,null,null,null,null,null,null,null,null,null,null,null,null,null,null,null,null,"ZWO"]

{"sheet":"2. Content (NL)","index":2,"n_rows":1505,"n_cols":22,"rows_kept":1505,"cut":false,"hidden":false,"merged":[[0,20,0,21],[0,13,0,16],[0,17,0,18],[0,0,0,4],[0,5,0,12]]}
["PRODUCT INFORMATIE",null,null,null,null,"ALGEMENE CONTENT",null,null,null,null,null,null,null,null,null,null,null,"BADPAKKEN",null,"ZWEMSHORTS","NACHTMODE"]
["Wehkamp artikelnummer","Leveranciers artikelnummer","AX Inkooptekst","Inkoopkleur","EAN/UPC","Filterkleur","Kleur","Filtermateriaal","Materiaal ","Print","Sluiting","Multi: Soort zak","Softcups","Multi: Soort bikinibroekje","Multi: Soort bikinitopje","Achterkant broekje","Hoogte taille (cm)","Multi: Soort badpak","Corrigerend","Multi: Soort zwembroek","Kraagvorm","Mouwlengte"]
[{"$f":"IF('1. Ordersheet'!B6=\"\",\"\",'1. Ordersheet'!B6)","v":""},{"$f":"IF('1. Ordersheet'!I6=\"\",\"\",'1. Ordersheet'!I6)","v":""},{"$f":"IF('1. Ordersheet'!J6=\"\",\"\",'1. Ordersheet'!J6)","v":""},{"$f":"IF('1. Ordersheet'!K6=\"\",\"\",'1. Ordersheet'!K6)","v":""},{"$f":"IF('1. Ordersheet'!M6=\"\",\"\",'1. Ordersheet'!M6)","v":""},null,null,{"$f":"IF('1. Ordersheet'!AR6=\"\",\"\",'1. Ordersheet'!AR6)","v":""},{"$f":"IF('1. Ordersheet'!AE6=\"\",\"\",'1. Ordersheet'!AE6)","v":""}]
[{"$f":"IF('1. Ordersheet'!B7=\"\",\"\",'1. Ordersheet'!B7)","v":""},{"$f":"IF('1. Ordersheet'!I7=\"\",\"\",'1. Ordersheet'!I7)","v":""},{"$f":"IF('1. Ordersheet'!J7=\"\",\"\",'1. Ordersheet'!J7)","v":""},{"$f":"IF('1. Ordersheet'!K7=\"\",\"\",'1. Ordersheet'!K7)","v":""},{"$f":"IF('1. Ordersheet'!M7=\"\",\"\",'1. Ordersheet'!M7)","v":""},null,null,{"$f":"IF('1. Ordersheet'!AR7=\"\",\"\",'1. Ordersheet'!AR7)","v":""},{"$f":"IF('1. Ordersheet'!AE7=\"\",\"\",'1. Ordersheet'!AE7)","v":""}]
[{"$f":"IF('1. Ordersheet'!B8=\"\",\"\",'1. Ordersheet'!B8)","v":""},{"$f":"IF('1. Ordersheet'!I8=\"\",\"\",'1. Ordersheet'!I8)","v":""},{"$f":"IF('1. Ordersheet'!J8=\"\",\"\",'1. Ordersheet'!J8)","v":""},{"$f":"IF('1. Ordersheet'!K8=\"\",\"\",'1. Ordersheet'!K8)","v":""},{"$f":"IF('1. Ordersheet'!M8=\"\",\"\",'1. Ordersheet'!M8)","v":""},null,null,{"$f":"IF('1. Ordersheet'!AR8=\"\",\"\",'1. Ordersheet'!AR8)","v":""},{"$f":"IF('1. Ordersheet'!AE8=\"\",\"\",'1. Ordersheet'!AE8)","v":""}]
[{"$f":"IF('1. Ordersheet'!B9=\"\",\"\",'1. Ordersheet'!B9)","v":""},{"$f":"IF('1. Ordersheet'!I9=\"\",\"\",'1. Ordersheet'!I9)","v":""},{"$f":"IF('1. Ordersheet'!J9=\"\",\"\",'1. Ordersheet'!J9)","v":""},{"$f":"IF('1. Ordersheet'!K9=\"\",\"\",'1. Ordersheet'!K9)","v":""},{"$f":"IF('1. Ordersheet'!M9=\"\",\"\",'1. Ordersheet'!M9)","v":""},null,null,{"$f":"IF('1. Ordersheet'!AR9=\"\",\"\",'1. Ordersheet'!AR9)","v":""},{"$f":"IF('1. Ordersheet'!AE9=\"\",\"\",'1. Ordersheet'!AE9)","v":""}]
[{"$f":"IF('1. Ordersheet'!B10=\"\",\"\",'1. Ordersheet'!B10)","v":""},{"$f":"IF('1. Ordersheet'!I10=\"\",\"\",'1. Ordersheet'!I10)","v":""},{"$f":"IF('1. Ordersheet'!J10=\"\",\"\",'1. Ordersheet'!J10)","v":""},{"$f":"IF('1. Ordersheet'!K10=\"\",\"\",'1. Ordersheet'!K10)","v":""},{"$f":"IF('1. Ordersheet'!M10=\"\",\"\",'1. Ordersheet'!M10)","v":""},null,null,{"$f":"IF('1. Ordersheet'!AR10=\"\",\"\",'1. Ordersheet'!AR10)","v":""},{"$f":"IF('1. Ordersheet'!AE10=\"\",\"\",'1. Ordersheet'!AE10)","v":""}]
[{"$f":"IF('1. Ordersheet'!B11=\"\",\"\",'1. Ordersheet'!B11)","v":""},{"$f":"IF('1. Ordersheet'!I11=\"\",\"\",'1. Ordersheet'!I11)","v":""},{"$f":"IF('1. Ordersheet'!J11=\"\",\"\",'1. Ordersheet'!J11)","v":""},{"$f":"IF('1. Ordersheet'!K11=\"\",\"\",'1. Ordersheet'!K11)","v":""},{"$f":"IF('1. Ordersheet'!M11=\"\",\"\",'1. Ordersheet'!M11)","v":""},null,null,{"$f":"IF('1. Ordersheet'!AR11=\"\",\"\",'1. Ordersheet'!AR11)","v":""},{"$f":"IF('1. Ordersheet'!AE11=\"\",\"\",'1. Ordersheet'!AE11)","v":""}]
[{"$f":"IF('1. Ordersheet'!B12=\"\",\"\",'1. Ordersheet'!B12)","v":""},{"$f":"IF('1. Ordersheet'!I12=\"\",\"\",'1. Ordersheet'!I12)","v":""},{"$f":"IF('1. Ordersheet'!J12=\"\",\"\",'1. Ordersheet'!J12)","v":""},{"$f":"IF('1. Ordersheet'!K12=\"\",\"\",'1. Ordersheet'!K12)","v":""},{"$f":"IF('1. Ordersheet'!M12=\"\",\"\",'1. Ordersheet'!M12)","v":""},null,null,{"$f":"IF('1. Ordersheet'!AR12=\"\",\"\",'1. Ordersheet'!AR12)","v":""},{"$f":"IF('1. Ordersheet'!AE12=\"\",\"\",'1. Ordersheet'!AE12)","v":""}]
[{"$f":"IF('1. Ordersheet'!B13=\"\",\"\",'1. Ordersheet'!B13)","v":""},{"$f":"IF('1. Ordersheet'!I13=\"\",\"\",'1. Ordersheet'!I13)","v":""},{"$f":"IF('1. Ordersheet'!J13=\"\",\"\",'1. Ordersheet'!J13)","v":""},{"$f":"IF('1. Ordersheet'!K13=\"\",\"\",'1. Ordersheet'!K13)","v":""},{"$f":"IF('1. Ordersheet'!M13=\"\",\"\",'1. Ordersheet'!M13)","v":""},null,null,{"$f":"IF('1. Ordersheet'!AR13=\"\",\"\",'1. Ordersheet'!AR13)","v":""},{"$f":"IF('1. Ordersheet'!AE13=\"\",\"\",'1. Ordersheet'!AE13)","v":""}]
[{"$f":"IF('1. Ordersheet'!B14=\"\",\"\",'1. Ordersheet'!B14)","v":""},{"$f":"IF('1. Ordersheet'!I14=\"\",\"\",'1. Ordersheet'!I14)","v":""},{"$f":"IF('1. Ordersheet'!J14=\"\",\"\",'1. Ordersheet'!J14)","v":""},{"$f":"IF('1. Ordersheet'!K14=\"\",\"\",'1. Ordersheet'!K14)","v":""},{"$f":"IF('1. Ordersheet'!M14=\"\",\"\",'1. Ordersheet'!M14)","v":""},null,null,{"$f":"IF('1. Ordersheet'!AR14=\"\",\"\",'1. Ordersheet'!AR14)","v":""},{"$f":"IF('1. Ordersheet'!AE14=\"\",\"\",'1. Ordersheet'!AE14)","v":""}]
[{"$f":"IF('1. Ordersheet'!B15=\"\",\"\",'1. Ordersheet'!B15)","v":""},{"$f":"IF('1. Ordersheet'!I15=\"\",\"\",'1. Ordersheet'!I15)","v":""},{"$f":"IF('1. Ordersheet'!J15=\"\",\"\",'1. Ordersheet'!J15)","v":""},{"$f":"IF('1. Ordersheet'!K15=\"\",\"\",'1. Ordersheet'!K15)","v":""},{"$f":"IF('1. Ordersheet'!M15=\"\",\"\",'1. Ordersheet'!M15)","v":""},null,null,{"$f":"IF('1. Ordersheet'!AR15=\"\",\"\",'1. Ordersheet'!AR15)","v":""},{"$f":"IF('1. Ordersheet'!AE15=\"\",\"\",'1. Ordersheet'!AE15)","v":""}]
[{"$f":"IF('1. Ordersheet'!B16=\"\",\"\",'1. Ordersheet'!B16)","v":""},{"$f":"IF('1. Ordersheet'!I16=\"\",\"\",'1. Ordersheet'!I16)","v":""},{"$f":"IF('1. Ordersheet'!J16=\"\",\"\",'1. Ordersheet'!J16)","v":""},{"$f":"IF('1. Ordersheet'!K16=\"\",\"\",'1. Ordersheet'!K16)","v":""},{"$f":"IF('1. Ordersheet'!M16=\"\",\"\",'1. Ordersheet'!M16)","v":""},null,null,{"$f":"IF('1. Ordersheet'!AR16=\"\",\"\",'1. Ordersheet'!AR16)","v":""},{"$f":"IF('1. Ordersheet'!AE16=\"\",\"\",'1. Ordersheet'!AE16)","v":""}]
[{"$f":"IF('1. Ordersheet'!B17=\"\",\"\",'1. Ordersheet'!B17)","v":""},{"$f":"IF('1. Ordersheet'!I17=\"\",\"\",'1. Ordersheet'!I17)","v":""},{"$f":"IF('1. Ordersheet'!J17=\"\",\"\",'1. Ordersheet'!J17)","v":""},{"$f":"IF('1. Ordersheet'!K17=\"\",\"\",'1. Ordersheet'!K17)","v":""},{"$f":"IF('1. Ordersheet'!M17=\"\",\"\",'1. Ordersheet'!M17)","v":""},null,null,{"$f":"IF('1. Ordersheet'!AR17=\"\",\"\",'1. Ordersheet'!AR17)","v":""},{"$f":"IF('1. Ordersheet'!AE17=\"\",\"\",'1. Ordersheet'!AE17)","v":""}]
[{"$f":"IF('1. Ordersheet'!B18=\"\",\"\",'1. Ordersheet'!B18)","v":""},{"$f":"IF('1. Ordersheet'!I18=\"\",\"\",'1. Ordersheet'!I18)","v":""},{"$f":"IF('1. Ordersheet'!J18=\"\",\"\",'1. Ordersheet'!J18)","v":""},{"$f":"IF('1. Ordersheet'!K18=\"\",\"\",'1. Ordersheet'!K18)","v":""},{"$f":"IF('1. Ordersheet'!M18=\"\",\"\",'1. Ordersheet'!M18)","v":""},null,null,{"$f":"IF('1. Ordersheet'!AR18=\"\",\"\",'1. Ordersheet'!AR18)","v":""},{"$f":"IF('1. Ordersheet'!AE18=\"\",\"\",'1. Ordersheet'!AE18)","v":""}]
[{"$f":"IF('1. Ordersheet'!B19=\"\",\"\",'1. Ordersheet'!B19)","v":""},{"$f":"IF('1. Ordersheet'!I19=\"\",\"\",'1. Ordersheet'!I19)","v":""},{"$f":"IF('1. Ordersheet'!J19=\"\",\"\",'1. Ordersheet'!J19)","v":""},{"$f":"IF('1. Ordersheet'!K19=\"\",\"\",'1. Ordersheet'!K19)","v":""},{"$f":"IF('1. Ordersheet'!M19=\"\",\"\",'1. Ordersheet'!M19)","v":""},null,null,{"$f":"IF('1. Ordersheet'!AR19=\"\",\"\",'1. Ordersheet'!AR19)","v":""},{"$f":"IF('1. Ordersheet'!AE19=\"\",\"\",'1. Ordersheet'!AE19)","v":""}]
[{"$f":"IF('1. Ordersheet'!B20=\"\",\"\",'1. Ordersheet'!B20)","v":""},{"$f":"IF('1. Ordersheet'!I20=\"\",\"\",'1. Ordersheet'!I20)","v":""},{"$f":"IF('1. Ordersheet'!J20=\"\",\"\",'1. Ordersheet'!J20)","v":""},{"$f":"IF('1. Ordersheet'!K20=\"\",\"\",'1. Ordersheet'!K20)","v":""},{"$f":"IF('1. Ordersheet'!M20=\"\",\"\",'1. Ordersheet'!M20)","v":""},null,null,{"$f":"IF('1. Ordersheet'!AR20=\"\",\"\",'1. Ordersheet'!AR20)","v":""},{"$f":"IF('1. Ordersheet'!AE20=\"\",\"\",'1. Ordersheet'!AE20)","v":""}]
[{"$f":"IF('1. Ordersheet'!B21=\"\",\"\",'1. Ordersheet'!B21)","v":""},{"$f":"IF('1. Ordersheet'!I21=\"\",\"\",'1. Ordersheet'!I21)","v":""},{"$f":"IF('1. Ordersheet'!J21=\"\",\"\",'1. Ordersheet'!J21)","v":""},{"$f":"IF('1. Ordersheet'!K21=\"\",\"\",'1. Ordersheet'!K21)","v":""},{"$f":"IF('1. Ordersheet'!M21=\"\",\"\",'1. Ordersheet'!M21)","v":""},null,null,{"$f":"IF('1. Ordersheet'!AR21=\"\",\"\",'1. Ordersheet'!AR21)","v":""},{"$f":"IF('1. Ordersheet'!AE21=\"\",\"\",'1. Ordersheet'!AE21)","v":""}]
[{"$f":"IF('1. Ordersheet'!B22=\"\",\"\",'1. Ordersheet'!B22)","v":""},{"$f":"IF('1. Ordersheet'!I22=\"\",\"\",'1. Ordersheet'!I22)","v":""},{"$f":"IF('1. Ordersheet'!J22=\"\",\"\",'1. Ordersheet'!J22)","v":""},{"$f":"IF('1. Ordersheet'!K22=\"\",\"\",'1. Ordersheet'!K22)","v":""},{"$f":"IF('1. Ordersheet'!M22=\"\",\"\",'1. Ordersheet'!M22)","v":""},null,null,{"$f":"IF('1. Ordersheet'!AR22=\"\",\"\",'1. Ordersheet'!AR22)","v":""},{"$f":"IF('1. Ordersheet'!AE22=\"\",\"\",'1. Ordersheet'!AE22)","v":""}]
[{"$f":"IF('1. Ordersheet'!B23=\"\",\"\",'1. Ordersheet'!B23)","v":""},{"$f":"IF('1. Ordersheet'!I23=\"\",\"\",'1. Ordersheet'!I23)","v":""},{"$f":"IF('1. Ordersheet'!J23=\"\",\"\",'1. Ordersheet'!J23)","v":""},{"$f":"IF('1. Ordersheet'!K23=\"\",\"\",'1. Ordersheet'!K23)","v":""},{"$f":"IF('1. Ordersheet'!M23=\"\",\"\",'1. Ordersheet'!M23)","v":""},null,null,{"$f":"IF('1. Ordersheet'!AR23=\"\",\"\",'1. Ordersheet'!AR23)","v":""},{"$f":"IF('1. Ordersheet'!AE23=\"\",\"\",'1. Ordersheet'!AE23)","v":""}]
[{"$f":"IF('1. Ordersheet'!B24=\"\",\"\",'1. Ordersheet'!B24)","v":""},{"$f":"IF('1. Ordersheet'!I24=\"\",\"\",'1. Ordersheet'!I24)","v":""},{"$f":"IF('1. Ordersheet'!J24=\"\",\"\",'1. Ordersheet'!J24)","v":""},{"$f":"IF('1. Ordersheet'!K24=\"\",\"\",'1. Ordersheet'!K24)","v":""},{"$f":"IF('1. Ordersheet'!M24=\"\",\"\",'1. Ordersheet'!M24)","v":""},null,null,{"$f":"IF('1. Ordersheet'!AR24=\"\",\"\",'1. Ordersheet'!AR24)","v":""},{"$f":"IF('1. Ordersheet'!AE24=\"\",\"\",'1. Ordersheet'!AE24)","v":""}]
[{"$f":"IF('1. Ordersheet'!B25=\"\",\"\",'1. Ordersheet'!B25)","v":""},{"$f":"IF('1. Ordersheet'!I25=\"\",\"\",'1. Ordersheet'!I25)","v":""},{"$f":"IF('1. Ordersheet'!J25=\"\",\"\",'1. Ordersheet'!J25)","v":""},{"$f":"IF('1. Ordersheet'!K25=\"\",\"\",'1. Ordersheet'!K25)","v":""},{"$f":"IF('1. Ordersheet'!M25=\"\",\"\",'1. Ordersheet'!M25)","v":""},null,null,{"$f":"IF('1. Ordersheet'!AR25=\"\",\"\",'1. Ordersheet'!AR25)","v":""},{"$f":"IF('1. Ordersheet'!AE25=\"\",\"\",'1. Ordersheet'!AE25)","v":""}]
[{"$f":"IF('1. Ordersheet'!B26=\"\",\"\",'1. Ordersheet'!B26)","v":""},{"$f":"IF('1. Ordersheet'!I26=\"\",\"\",'1. Ordersheet'!I26)","v":""},{"$f":"IF('1. Ordersheet'!J26=\"\",\"\",'1. Ordersheet'!J26)","v":""},{"$f":"IF('1. Ordersheet'!K26=\"\",\"\",'1. Ordersheet'!K26)","v":""},{"$f":"IF('1. Ordersheet'!M26=\"\",\"\",'1. Ordersheet'!M26)","v":""},null,null,{"$f":"IF('1. Ordersheet'!AR26=\"\",\"\",'1. Ordersheet'!AR26)","v":""},{"$f":"IF('1. Ordersheet'!AE26=\"\",\"\",'1. Ordersheet'!AE26)","v":""}]
[{"$f":"IF('1. Ordersheet'!B27=\"\",\"\",'1. Ordersheet'!B27)","v":""},{"$f":"IF('1. Ordersheet'!I27=\"\",\"\",'1. Ordersheet'!I27)","v":""},{"$f":"IF('1. Ordersheet'!J27=\"\",\"\",'1. Ordersheet'!J27)","v":""},{"$f":"IF('1. Ordersheet'!K27=\"\",\"\",'1. Ordersheet'!K27)","v":""},{"$f":"IF('1. Ordersheet'!M27=\"\",\"\",'1. Ordersheet'!M27)","v":""},null,null,{"$f":"IF('1. Ordersheet'!AR27=\"\",\"\",'1. Ordersheet'!AR27)","v":""},{"$f":"IF('1. Ordersheet'!AE27=\"\",\"\",'1. Ordersheet'!AE27)","v":""}]
[{"$f":"IF('1. Ordersheet'!B28=\"\",\"\",'1. Ordersheet'!B28)","v":""},{"$f":"IF('1. Ordersheet'!I28=\"\",\"\",'1. Ordersheet'!I28)","v":""},{"$f":"IF('1. Ordersheet'!J28=\"\",\"\",'1. Ordersheet'!J28)","v":""},{"$f":"IF('1. Ordersheet'!K28=\"\",\"\",'1. Ordersheet'!K28)","v":""},{"$f":"IF('1. Ordersheet'!M28=\"\",\"\",'1. Ordersheet'!M28)","v":""},null,null,{"$f":"IF('1. Ordersheet'!AR28=\"\",\"\",'1. Ordersheet'!AR28)","v":""},{"$f":"IF('1. Ordersheet'!AE28=\"\",\"\",'1. Ordersheet'!AE28)","v":""}]
[{"$f":"IF('1. Ordersheet'!B29=\"\",\"\",'1. Ordersheet'!B29)","v":""},{"$f":"IF('1. Ordersheet'!I29=\"\",\"\",'1. Ordersheet'!I29)","v":""},{"$f":"IF('1. Ordersheet'!J29=\"\",\"\",'1. Ordersheet'!J29)","v":""},{"$f":"IF('1. Ordersheet'!K29=\"\",\"\",'1. Ordersheet'!K29)","v":""},{"$f":"IF('1. Ordersheet'!M29=\"\",\"\",'1. Ordersheet'!M29)","v":""},null,null,{"$f":"IF('1. Ordersheet'!AR29=\"\",\"\",'1. Ordersheet'!AR29)","v":""},{"$f":"IF('1. Ordersheet'!AE29=\"\",\"\",'1. Ordersheet'!AE29)","v":""}]
[{"$f":"IF('1. Ordersheet'!B30=\"\",\"\",'1. Ordersheet'!B30)","v":""},{"$f":"IF('1. Ordersheet'!I30=\"\",\"\",'1. Ordersheet'!I30)","v":""},{"$f":"IF('1. Ordersheet'!J30=\"\",\"\",'1. Ordersheet'!J30)","v":""},{"$f":"IF('1. Ordersheet'!K30=\"\",\"\",'1. Ordersheet'!K30)","v":""},{"$f":"IF('1. Ordersheet'!M30=\"\",\"\",'1. Ordersheet'!M30)","v":""},null,null,{"$f":"IF('1. Ordersheet'!AR30=\"\",\"\",'1. Ordersheet'!AR30)","v":""},{"$f":"IF('1. Ordersheet'!AE30=\"\",\"\",'1. Ordersheet'!AE30)","v":""}]
[{"$f":"IF('1. Ordersheet'!B31=\"\",\"\",'1. Ordersheet'!B31)","v":""},{"$f":"IF('1. Ordersheet'!I31=\"\",\"\",'1. Ordersheet'!I31)","v":""},{"$f":"IF('1. Ordersheet'!J31=\"\",\"\",'1. Ordersheet'!J31)","v":""},{"$f":"IF('1. Ordersheet'!K31=\"\",\"\",'1. Ordersheet'!K31)","v":""},{"$f":"IF('1. Ordersheet'!M31=\"\",\"\",'1. Ordersheet'!M31)","v":""},null,null,{"$f":"IF('1. Ordersheet'!AR31=\"\",\"\",'1. Ordersheet'!AR31)","v":""},{"$f":"IF('1. Ordersheet'!AE31=\"\",\"\",'1. Ordersheet'!AE31)","v":""}]
[{"$f":"IF('1. Ordersheet'!B32=\"\",\"\",'1. Ordersheet'!B32)","v":""},{"$f":"IF('1. Ordersheet'!I32=\"\",\"\",'1. Ordersheet'!I32)","v":""},{"$f":"IF('1. Ordersheet'!J32=\"\",\"\",'1. Ordersheet'!J32)","v":""},{"$f":"IF('1. Ordersheet'!K32=\"\",\"\",'1. Ordersheet'!K32)","v":""},{"$f":"IF('1. Ordersheet'!M32=\"\",\"\",'1. Ordersheet'!M32)","v":""},null,null,{"$f":"IF('1. Ordersheet'!AR32=\"\",\"\",'1. Ordersheet'!AR32)","v":""},{"$f":"IF('1. Ordersheet'!AE32=\"\",\"\",'1. Ordersheet'!AE32)","v":""}]
[{"$f":"IF('1. Ordersheet'!B33=\"\",\"\",'1. Ordersheet'!B33)","v":""},{"$f":"IF('1. Ordersheet'!I33=\"\",\"\",'1. Ordersheet'!I33)","v":""},{"$f":"IF('1. Ordersheet'!J33=\"\",\"\",'1. Ordersheet'!J33)","v":""},{"$f":"IF('1. Ordersheet'!K33=\"\",\"\",'1. Ordersheet'!K33)","v":""},{"$f":"IF('1. Ordersheet'!M33=\"\",\"\",'1. Ordersheet'!M33)","v":""},null,null,{"$f":"IF('1. Ordersheet'!AR33=\"\",\"\",'1. Ordersheet'!AR33)","v":""},{"$f":"IF('1. Ordersheet'!AE33=\"\",\"\",'1. Ordersheet'!AE33)","v":""}]
[{"$f":"IF('1. Ordersheet'!B34=\"\",\"\",'1. Ordersheet'!B34)","v":""},{"$f":"IF('1. Ordersheet'!I34=\"\",\"\",'1. Ordersheet'!I34)","v":""},{"$f":"IF('1. Ordersheet'!J34=\"\",\"\",'1. Ordersheet'!J34)","v":""},{"$f":"IF('1. Ordersheet'!K34=\"\",\"\",'1. Ordersheet'!K34)","v":""},{"$f":"IF('1. Ordersheet'!M34=\"\",\"\",'1. Ordersheet'!M34)","v":""},null,null,{"$f":"IF('1. Ordersheet'!AR34=\"\",\"\",'1. Ordersheet'!AR34)","v":""},{"$f":"IF('1. Ordersheet'!AE34=\"\",\"\",'1. Ordersheet'!AE34)","v":""}]
[{"$f":"IF('1. Ordersheet'!B35=\"\",\"\",'1. Ordersheet'!B35)","v":""},{"$f":"IF('1. Ordersheet'!I35=\"\",\"\",'1. Ordersheet'!I35)","v":""},{"$f":"IF('1. Ordersheet'!J35=\"\",\"\",'1. Ordersheet'!J35)","v":""},{"$f":"IF('1. Ordersheet'!K35=\"\",\"\",'1. Ordersheet'!K35)","v":""},{"$f":"IF('1. Ordersheet'!M35=\"\",\"\",'1. Ordersheet'!M35)","v":""},null,null,{"$f":"IF('1. Ordersheet'!AR35=\"\",\"\",'1. Ordersheet'!AR35)","v":""},{"$f":"IF('1. Ordersheet'!AE35=\"\",\"\",'1. Ordersheet'!AE35)","v":""}]
[{"$f":"IF('1. Ordersheet'!B36=\"\",\"\",'1. Ordersheet'!B36)","v":""},{"$f":"IF('1. Ordersheet'!I36=\"\",\"\",'1. Ordersheet'!I36)","v":""},{"$f":"IF('1. Ordersheet'!J36=\"\",\"\",'1. Ordersheet'!J36)","v":""},{"$f":"IF('1. Ordersheet'!K36=\"\",\"\",'1. Ordersheet'!K36)","v":""},{"$f":"IF('1. Ordersheet'!M36=\"\",\"\",'1. Ordersheet'!M36)","v":""},null,null,{"$f":"IF('1. Ordersheet'!AR36=\"\",\"\",'1. Ordersheet'!AR36)","v":""},{"$f":"IF('1. Ordersheet'!AE36=\"\",\"\",'1. Ordersheet'!AE36)","v":""}]
[{"$f":"IF('1. Ordersheet'!B37=\"\",\"\",'1. Ordersheet'!B37)","v":""},{"$f":"IF('1. Ordersheet'!I37=\"\",\"\",'1. Ordersheet'!I37)","v":""},{"$f":"IF('1. Ordersheet'!J37=\"\",\"\",'1. Ordersheet'!J37)","v":""},{"$f":"IF('1. Ordersheet'!K37=\"\",\"\",'1. Ordersheet'!K37)","v":""},{"$f":"IF('1. Ordersheet'!M37=\"\",\"\",'1. Ordersheet'!M37)","v":""},null,null,{"$f":"IF('1. Ordersheet'!AR37=\"\",\"\",'1. Ordersheet'!AR37)","v":""},{"$f":"IF('1. Ordersheet'!AE37=\"\",\"\",'1. Ordersheet'!AE37)","v":""}]
[{"$f":"IF('1. Ordersheet'!B38=\"\",\"\",'1. Ordersheet'!B38)","v":""},{"$f":"IF('1. Ordersheet'!I38=\"\",\"\",'1. Ordersheet'!I38)","v":""},{"$f":"IF('1. Ordersheet'!J38=\"\",\"\",'1. Ordersheet'!J38)","v":""},{"$f":"IF('1. Ordersheet'!K38=\"\",\"\",'1. Ordersheet'!K38)","v":""},{"$f":"IF('1. Ordersheet'!M38=\"\",\"\",'1. Ordersheet'!M38)","v":""},null,null,{"$f":"IF('1. Ordersheet'!AR38=\"\",\"\",'1. Ordersheet'!AR38)","v":""},{"$f":"IF('1. Ordersheet'!AE38=\"\",\"\",'1. Ordersheet'!AE38)","v":""}]
[{"$f":"IF('1. Ordersheet'!B39=\"\",\"\",'1. Ordersheet'!B39)","v":""},{"$f":"IF('1. Ordersheet'!I39=\"\",\"\",'1. Ordersheet'!I39)","v":""},{"$f":"IF('1. Ordersheet'!J39=\"\",\"\",'1. Ordersheet'!J39)","v":""},{"$f":"IF('1. Ordersheet'!K39=\"\",\"\",'1. Ordersheet'!K39)","v":""},{"$f":"IF('1. Ordersheet'!M39=\"\",\"\",'1. Ordersheet'!M39)","v":""},null,null,{"$f":"IF('1. Ordersheet'!AR39=\"\",\"\",'1. Ordersheet'!AR39)","v":""},{"$f":"IF('1. Ordersheet'!AE39=\"\",\"\",'1. Ordersheet'!AE39)","v":""}]
[{"$f":"IF('1. Ordersheet'!B40=\"\",\"\",'1. Ordersheet'!B40)","v":""},{"$f":"IF('1. Ordersheet'!I40=\"\",\"\",'1. Ordersheet'!I40)","v":""},{"$f":"IF('1. Ordersheet'!J40=\"\",\"\",'1. Ordersheet'!J40)","v":""},{"$f":"IF('1. Ordersheet'!K40=\"\",\"\",'1. Ordersheet'!K40)","v":""},{"$f":"IF('1. Ordersheet'!M40=\"\",\"\",'1. Ordersheet'!M40)","v":""},null,null,{"$f":"IF('1. Ordersheet'!AR40=\"\",\"\",'1. Ordersheet'!AR40)","v":""},{"$f":"IF('1. Ordersheet'!AE40=\"\",\"\",'1. Ordersheet'!AE40)","v":""}]
[{"$f":"IF('1. Ordersheet'!B41=\"\",\"\",'1. Ordersheet'!B41)","v":""},{"$f":"IF('1. Ordersheet'!I41=\"\",\"\",'1. Ordersheet'!I41)","v":""},{"$f":"IF('1. Ordersheet'!J41=\"\",\"\",'1. Ordersheet'!J41)","v":""},{"$f":"IF('1. Ordersheet'!K41=\"\",\"\",'1. Ordersheet'!K41)","v":""},{"$f":"IF('1. Ordersheet'!M41=\"\",\"\",'1. Ordersheet'!M41)","v":""},null,null,{"$f":"IF('1. Ordersheet'!AR41=\"\",\"\",'1. Ordersheet'!AR41)","v":""},{"$f":"IF('1. Ordersheet'!AE41=\"\",\"\",'1. Ordersheet'!AE41)","v":""}]
[{"$f":"IF('1. Ordersheet'!B42=\"\",\"\",'1. Ordersheet'!B42)","v":""},{"$f":"IF('1. Ordersheet'!I42=\"\",\"\",'1. Ordersheet'!I42)","v":""},{"$f":"IF('1. Ordersheet'!J42=\"\",\"\",'1. Ordersheet'!J42)","v":""},{"$f":"IF('1. Ordersheet'!K42=\"\",\"\",'1. Ordersheet'!K42)","v":""},{"$f":"IF('1. Ordersheet'!M42=\"\",\"\",'1. Ordersheet'!M42)","v":""},null,null,{"$f":"IF('1. Ordersheet'!AR42=\"\",\"\",'1. Ordersheet'!AR42)","v":""},{"$f":"IF('1. Ordersheet'!AE42=\"\",\"\",'1. Ordersheet'!AE42)","v":""}]
[{"$f":"IF('1. Ordersheet'!B43=\"\",\"\",'1. Ordersheet'!B43)","v":""},{"$f":"IF('1. Ordersheet'!I43=\"\",\"\",'1. Ordersheet'!I43)","v":""},{"$f":"IF('1. Ordersheet'!J43=\"\",\"\",'1. Ordersheet'!J43)","v":""},{"$f":"IF('1. Ordersheet'!K43=\"\",\"\",'1. Ordersheet'!K43)","v":""},{"$f":"IF('1. Ordersheet'!M43=\"\",\"\",'1. Ordersheet'!M43)","v":""},null,null,{"$f":"IF('1. Ordersheet'!AR43=\"\",\"\",'1. Ordersheet'!AR43)","v":""},{"$f":"IF('1. Ordersheet'!AE43=\"\",\"\",'1. Ordersheet'!AE43)","v":""}]
[{"$f":"IF('1. Ordersheet'!B44=\"\",\"\",'1. Ordersheet'!B44)","v":""},{"$f":"IF('1. Ordersheet'!I44=\"\",\"\",'1. Ordersheet'!I44)","v":""},{"$f":"IF('1. Ordersheet'!J44=\"\",\"\",'1. Ordersheet'!J44)","v":""},{"$f":"IF('1. Ordersheet'!K44=\"\",\"\",'1. Ordersheet'!K44)","v":""},{"$f":"IF('1. Ordersheet'!M44=\"\",\"\",'1. Ordersheet'!M44)","v":""},null,null,{"$f":"IF('1. Ordersheet'!AR44=\"\",\"\",'1. Ordersheet'!AR44)","v":""},{"$f":"IF('1. Ordersheet'!AE44=\"\",\"\",'1. Ordersheet'!AE44)","v":""}]
[{"$f":"IF('1. Ordersheet'!B45=\"\",\"\",'1. Ordersheet'!B45)","v":""},{"$f":"IF('1. Ordersheet'!I45=\"\",\"\",'1. Ordersheet'!I45)","v":""},{"$f":"IF('1. Ordersheet'!J45=\"\",\"\",'1. Ordersheet'!J45)","v":""},{"$f":"IF('1. Ordersheet'!K45=\"\",\"\",'1. Ordersheet'!K45)","v":""},{"$f":"IF('1. Ordersheet'!M45=\"\",\"\",'1. Ordersheet'!M45)","v":""},null,null,{"$f":"IF('1. Ordersheet'!AR45=\"\",\"\",'1. Ordersheet'!AR45)","v":""},{"$f":"IF('1. Ordersheet'!AE45=\"\",\"\",'1. Ordersheet'!AE45)","v":""}]
[{"$f":"IF('1. Ordersheet'!B46=\"\",\"\",'1. Ordersheet'!B46)","v":""},{"$f":"IF('1. Ordersheet'!I46=\"\",\"\",'1. Ordersheet'!I46)","v":""},{"$f":"IF('1. Ordersheet'!J46=\"\",\"\",'1. Ordersheet'!J46)","v":""},{"$f":"IF('1. Ordersheet'!K46=\"\",\"\",'1. Ordersheet'!K46)","v":""},{"$f":"IF('1. Ordersheet'!M46=\"\",\"\",'1. Ordersheet'!M46)","v":""},null,null,{"$f":"IF('1. Ordersheet'!AR46=\"\",\"\",'1. Ordersheet'!AR46)","v":""},{"$f":"IF('1. Ordersheet'!AE46=\"\",\"\",'1. Ordersheet'!AE46)","v":""}]
[{"$f":"IF('1. Ordersheet'!B47=\"\",\"\",'1. Ordersheet'!B47)","v":""},{"$f":"IF('1. Ordersheet'!I47=\"\",\"\",'1. Ordersheet'!I47)","v":""},{"$f":"IF('1. Ordersheet'!J47=\"\",\"\",'1. Ordersheet'!J47)","v":""},{"$f":"IF('1. Ordersheet'!K47=\"\",\"\",'1. Ordersheet'!K47)","v":""},{"$f":"IF('1. Ordersheet'!M47=\"\",\"\",'1. Ordersheet'!M47)","v":""},null,null,{"$f":"IF('1. Ordersheet'!AR47=\"\",\"\",'1. Ordersheet'!AR47)","v":""},{"$f":"IF('1. Ordersheet'!AE47=\"\",\"\",'1. Ordersheet'!AE47)","v":""}]
[{"$f":"IF('1. Ordersheet'!B48=\"\",\"\",'1. Ordersheet'!B48)","v":""},{"$f":"IF('1. Ordersheet'!I48=\"\",\"\",'1. Ordersheet'!I48)","v":""},{"$f":"IF('1. Ordersheet'!J48=\"\",\"\",'1. Ordersheet'!J48)","v":""},{"$f":"IF('1. Ordersheet'!K48=\"\",\"\",'1. Ordersheet'!K48)","v":""},{"$f":"IF('1. Ordersheet'!M48=\"\",\"\",'1. Ordersheet'!M48)","v":""},null,null,{"$f":"IF('1. Ordersheet'!AR48=\"\",\"\",'1. Ordersheet'!AR48)","v":""},{"$f":"IF('1. Ordersheet'!AE48=\"\",\"\",'1. Ordersheet'!AE48)","v":""}]
[{"$f":"IF('1. Ordersheet'!B49=\"\",\"\",'1. Ordersheet'!B49)","v":""},{"$f":"IF('1. Ordersheet'!I49=\"\",\"\",'1. Ordersheet'!I49)","v":""},{"$f":"IF('1. Ordersheet'!J49=\"\",\"\",'1. Ordersheet'!J49)","v":""},{"$f":"IF('1. Ordersheet'!K49=\"\",\"\",'1. Ordersheet'!K49)","v":""},{"$f":"IF('1. Ordersheet'!M49=\"\",\"\",'1. Ordersheet'!M49)","v":""},null,null,{"$f":"IF('1. Ordersheet'!AR49=\"\",\"\",'1. Ordersheet'!AR49)","v":""},{"$f":"IF('1. Ordersheet'!AE49=\"\",\"\",'1. Ordersheet'!AE49)","v":""}]
[{"$f":"IF('1. Ordersheet'!B50=\"\",\"\",'1. Ordersheet'!B50)","v":""},{"$f":"IF('1. Ordersheet'!I50=\"\",\"\",'1. Ordersheet'!I50)","v":""},{"$f":"IF('1. Ordersheet'!J50=\"\",\"\",'1. Ordersheet'!J50)","v":""},{"$f":"IF('1. Ordersheet'!K50=\"\",\"\",'1. Ordersheet'!K50)","v":""},{"$f":"IF('1. Ordersheet'!M50=\"\",\"\",'1. Ordersheet'!M50)","v":""},null,null,{"$f":"IF('1. Ordersheet'!AR50=\"\",\"\",'1. Ordersheet'!AR50)","v":""},{"$f":"IF('1. Ordersheet'!AE50=\"\",\"\",'1. Ordersheet'!AE50)","v":""}]
[{"$f":"IF('1. Ordersheet'!B51=\"\",\"\",'1. Ordersheet'!B51)","v":""},{"$f":"IF('1. Ordersheet'!I51=\"\",\"\",'1. Ordersheet'!I51)","v":""},{"$f":"IF('1. Ordersheet'!J51=\"\",\"\",'1. Ordersheet'!J51)","v":""},{"$f":"IF('1. Ordersheet'!K51=\"\",\"\",'1. Ordersheet'!K51)","v":""},{"$f":"IF('1. Ordersheet'!M51=\"\",\"\",'1. Ordersheet'!M51)","v":""},null,null,{"$f":"IF('1. Ordersheet'!AR51=\"\",\"\",'1. Ordersheet'!AR51)","v":""},{"$f":"IF('1. Ordersheet'!AE51=\"\",\"\",'1. Ordersheet'!AE51)","v":""}]
[{"$f":"IF('1. Ordersheet'!B52=\"\",\"\",'1. Ordersheet'!B52)","v":""},{"$f":"IF('1. Ordersheet'!I52=\"\",\"\",'1. Ordersheet'!I52)","v":""},{"$f":"IF('1. Ordersheet'!J52=\"\",\"\",'1. Ordersheet'!J52)","v":""},{"$f":"IF('1. Ordersheet'!K52=\"\",\"\",'1. Ordersheet'!K52)","v":""},{"$f":"IF('1. Ordersheet'!M52=\"\",\"\",'1. Ordersheet'!M52)","v":""},null,null,{"$f":"IF('1. Ordersheet'!AR52=\"\",\"\",'1. Ordersheet'!AR52)","v":""},{"$f":"IF('1. Ordersheet'!AE52=\"\",\"\",'1. Ordersheet'!AE52)","v":""}]
[{"$f":"IF('1. Ordersheet'!B53=\"\",\"\",'1. Ordersheet'!B53)","v":""},{"$f":"IF('1. Ordersheet'!I53=\"\",\"\",'1. Ordersheet'!I53)","v":""},{"$f":"IF('1. Ordersheet'!J53=\"\",\"\",'1. Ordersheet'!J53)","v":""},{"$f":"IF('1. Ordersheet'!K53=\"\",\"\",'1. Ordersheet'!K53)","v":""},{"$f":"IF('1. Ordersheet'!M53=\"\",\"\",'1. Ordersheet'!M53)","v":""},null,null,{"$f":"IF('1. Ordersheet'!AR53=\"\",\"\",'1. Ordersheet'!AR53)","v":""},{"$f":"IF('1. Ordersheet'!AE53=\"\",\"\",'1. Ordersheet'!AE53)","v":""}]
[{"$f":"IF('1. Ordersheet'!B54=\"\",\"\",'1. Ordersheet'!B54)","v":""},{"$f":"IF('1. Ordersheet'!I54=\"\",\"\",'1. Ordersheet'!I54)","v":""},{"$f":"IF('1. Ordersheet'!J54=\"\",\"\",'1. Ordersheet'!J54)","v":""},{"$f":"IF('1. Ordersheet'!K54=\"\",\"\",'1. Ordersheet'!K54)","v":""},{"$f":"IF('1. Ordersheet'!M54=\"\",\"\",'1. Ordersheet'!M54)","v":""},null,null,{"$f":"IF('1. Ordersheet'!AR54=\"\",\"\",'1. Ordersheet'!AR54)","v":""},{"$f":"IF('1. Ordersheet'!AE54=\"\",\"\",'1. Ordersheet'!AE54)","v":""}]
[{"$f":"IF('1. Ordersheet'!B55=\"\",\"\",'1. Ordersheet'!B55)","v":""},{"$f":"IF('1. Ordersheet'!I55=\"\",\"\",'1. Ordersheet'!I55)","v":""},{"$f":"IF('1. Ordersheet'!J55=\"\",\"\",'1. Ordersheet'!J55)","v":""},{"$f":"IF('1. Ordersheet'!K55=\"\",\"\",'1. Ordersheet'!K55)","v":""},{"$f":"IF('1. Ordersheet'!M55=\"\",\"\",'1. Ordersheet'!M55)","v":""},null,null,{"$f":"IF('1. Ordersheet'!AR55=\"\",\"\",'1. Ordersheet'!AR55)","v":""},{"$f":"IF('1. Ordersheet'!AE55=\"\",\"\",'1. Ordersheet'!AE55)","v":""}]
[{"$f":"IF('1. Ordersheet'!B56=\"\",\"\",'1. Ordersheet'!B56)","v":""},{"$f":"IF('1. Ordersheet'!I56=\"\",\"\",'1. Ordersheet'!I56)","v":""},{"$f":"IF('1. Ordersheet'!J56=\"\",\"\",'1. Ordersheet'!J56)","v":""},{"$f":"IF('1. Ordersheet'!K56=\"\",\"\",'1. Ordersheet'!K56)","v":""},{"$f":"IF('1. Ordersheet'!M56=\"\",\"\",'1. Ordersheet'!M56)","v":""},null,null,{"$f":"IF('1. Ordersheet'!AR56=\"\",\"\",'1. Ordersheet'!AR56)","v":""},{"$f":"IF('1. Ordersheet'!AE56=\"\",\"\",'1. Ordersheet'!AE56)","v":""}]
[{"$f":"IF('1. Ordersheet'!B57=\"\",\"\",'1. Ordersheet'!B57)","v":""},{"$f":"IF('1. Ordersheet'!I57=\"\",\"\",'1. Ordersheet'!I57)","v":""},{"$f":"IF('1. Ordersheet'!J57=\"\",\"\",'1. Ordersheet'!J57)","v":""},{"$f":"IF('1. Ordersheet'!K57=\"\",\"\",'1. Ordersheet'!K57)","v":""},{"$f":"IF('1. Ordersheet'!M57=\"\",\"\",'1. Ordersheet'!M57)","v":""},null,null,{"$f":"IF('1. Ordersheet'!AR57=\"\",\"\",'1. Ordersheet'!AR57)","v":""},{"$f":"IF('1. Ordersheet'!AE57=\"\",\"\",'1. Ordersheet'!AE57)","v":""}]
[{"$f":"IF('1. Ordersheet'!B58=\"\",\"\",'1. Ordersheet'!B58)","v":""},{"$f":"IF('1. Ordersheet'!I58=\"\",\"\",'1. Ordersheet'!I58)","v":""},{"$f":"IF('1. Ordersheet'!J58=\"\",\"\",'1. Ordersheet'!J58)","v":""},{"$f":"IF('1. Ordersheet'!K58=\"\",\"\",'1. Ordersheet'!K58)","v":""},{"$f":"IF('1. Ordersheet'!M58=\"\",\"\",'1. Ordersheet'!M58)","v":""},null,null,{"$f":"IF('1. Ordersheet'!AR58=\"\",\"\",'1. Ordersheet'!AR58)","v":""},{"$f":"IF('1. Ordersheet'!AE58=\"\",\"\",'1. Ordersheet'!AE58)","v":""}]
[{"$f":"IF('1. Ordersheet'!B59=\"\",\"\",'1. Ordersheet'!B59)","v":""},{"$f":"IF('1. Ordersheet'!I59=\"\",\"\",'1. Ordersheet'!I59)","v":""},{"$f":"IF('1. Ordersheet'!J59=\"\",\"\",'1. Ordersheet'!J59)","v":""},{"$f":"IF('1. Ordersheet'!K59=\"\",\"\",'1. Ordersheet'!K59)","v":""},{"$f":"IF('1. Ordersheet'!M59=\"\",\"\",'1. Ordersheet'!M59)","v":""},null,null,{"$f":"IF('1. Ordersheet'!AR59=\"\",\"\",'1. Ordersheet'!AR59)","v":""},{"$f":"IF('1. Ordersheet'!AE59=\"\",\"\",'1. Ordersheet'!AE59)","v":""}]
[{"$f":"IF('1. Ordersheet'!B60=\"\",\"\",'1. Ordersheet'!B60)","v":""},{"$f":"IF('1. Ordersheet'!I60=\"\",\"\",'1. Ordersheet'!I60)","v":""},{"$f":"IF('1. Ordersheet'!J60=\"\",\"\",'1. Ordersheet'!J60)","v":""},{"$f":"IF('1. Ordersheet'!K60=\"\",\"\",'1. Ordersheet'!K60)","v":""},{"$f":"IF('1. Ordersheet'!M60=\"\",\"\",'1. Ordersheet'!M60)","v":""},null,null,{"$f":"IF('1. Ordersheet'!AR60=\"\",\"\",'1. Ordersheet'!AR60)","v":""},{"$f":"IF('1. Ordersheet'!AE60=\"\",\"\",'1. Ordersheet'!AE60)","v":""}]
[{"$f":"IF('1. Ordersheet'!B61=\"\",\"\",'1. Ordersheet'!B61)","v":""},{"$f":"IF('1. Ordersheet'!I61=\"\",\"\",'1. Ordersheet'!I61)","v":""},{"$f":"IF('1. Ordersheet'!J61=\"\",\"\",'1. Ordersheet'!J61)","v":""},{"$f":"IF('1. Ordersheet'!K61=\"\",\"\",'1. Ordersheet'!K61)","v":""},{"$f":"IF('1. Ordersheet'!M61=\"\",\"\",'1. Ordersheet'!M61)","v":""},null,null,{"$f":"IF('1. Ordersheet'!AR61=\"\",\"\",'1. Ordersheet'!AR61)","v":""},{"$f":"IF('1. Ordersheet'!AE61=\"\",\"\",'1. Ordersheet'!AE61)","v":""}]
[{"$f":"IF('1. Ordersheet'!B62=\"\",\"\",'1. Ordersheet'!B62)","v":""},{"$f":"IF('1. Ordersheet'!I62=\"\",\"\",'1. Ordersheet'!I62)","v":""},{"$f":"IF('1. Ordersheet'!J62=\"\",\"\",'1. Ordersheet'!J62)","v":""},{"$f":"IF('1. Ordersheet'!K62=\"\",\"\",'1. Ordersheet'!K62)","v":""},{"$f":"IF('1. Ordersheet'!M62=\"\",\"\",'1. Ordersheet'!M62)","v":""},null,null,{"$f":"IF('1. Ordersheet'!AR62=\"\",\"\",'1. Ordersheet'!AR62)","v":""},{"$f":"IF('1. Ordersheet'!AE62=\"\",\"\",'1. Ordersheet'!AE62)","v":""}]
[{"$f":"IF('1. Ordersheet'!B63=\"\",\"\",'1. Ordersheet'!B63)","v":""},{"$f":"IF('1. Ordersheet'!I63=\"\",\"\",'1. Ordersheet'!I63)","v":""},{"$f":"IF('1. Ordersheet'!J63=\"\",\"\",'1. Ordersheet'!J63)","v":""},{"$f":"IF('1. Ordersheet'!K63=\"\",\"\",'1. Ordersheet'!K63)","v":""},{"$f":"IF('1. Ordersheet'!M63=\"\",\"\",'1. Ordersheet'!M63)","v":""},null,null,{"$f":"IF('1. Ordersheet'!AR63=\"\",\"\",'1. Ordersheet'!AR63)","v":""},{"$f":"IF('1. Ordersheet'!AE63=\"\",\"\",'1. Ordersheet'!AE63)","v":""}]
[{"$f":"IF('1. Ordersheet'!B64=\"\",\"\",'1. Ordersheet'!B64)","v":""},{"$f":"IF('1. Ordersheet'!I64=\"\",\"\",'1. Ordersheet'!I64)","v":""},{"$f":"IF('1. Ordersheet'!J64=\"\",\"\",'1. Ordersheet'!J64)","v":""},{"$f":"IF('1. Ordersheet'!K64=\"\",\"\",'1. Ordersheet'!K64)","v":""},{"$f":"IF('1. Ordersheet'!M64=\"\",\"\",'1. Ordersheet'!M64)","v":""},null,null,{"$f":"IF('1. Ordersheet'!AR64=\"\",\"\",'1. Ordersheet'!AR64)","v":""},{"$f":"IF('1. Ordersheet'!AE64=\"\",\"\",'1. Ordersheet'!AE64)","v":""}]
[{"$f":"IF('1. Ordersheet'!B65=\"\",\"\",'1. Ordersheet'!B65)","v":""},{"$f":"IF('1. Ordersheet'!I65=\"\",\"\",'1. Ordersheet'!I65)","v":""},{"$f":"IF('1. Ordersheet'!J65=\"\",\"\",'1. Ordersheet'!J65)","v":""},{"$f":"IF('1. Ordersheet'!K65=\"\",\"\",'1. Ordersheet'!K65)","v":""},{"$f":"IF('1. Ordersheet'!M65=\"\",\"\",'1. Ordersheet'!M65)","v":""},null,null,{"$f":"IF('1. Ordersheet'!AR65=\"\",\"\",'1. Ordersheet'!AR65)","v":""},{"$f":"IF('1. Ordersheet'!AE65=\"\",\"\",'1. Ordersheet'!AE65)","v":""}]
[{"$f":"IF('1. Ordersheet'!B66=\"\",\"\",'1. Ordersheet'!B66)","v":""},{"$f":"IF('1. Ordersheet'!I66=\"\",\"\",'1. Ordersheet'!I66)","v":""},{"$f":"IF('1. Ordersheet'!J66=\"\",\"\",'1. Ordersheet'!J66)","v":""},{"$f":"IF('1. Ordersheet'!K66=\"\",\"\",'1. Ordersheet'!K66)","v":""},{"$f":"IF('1. Ordersheet'!M66=\"\",\"\",'1. Ordersheet'!M66)","v":""},null,null,{"$f":"IF('1. Ordersheet'!AR66=\"\",\"\",'1. Ordersheet'!AR66)","v":""},{"$f":"IF('1. Ordersheet'!AE66=\"\",\"\",'1. Ordersheet'!AE66)","v":""}]
[{"$f":"IF('1. Ordersheet'!B67=\"\",\"\",'1. Ordersheet'!B67)","v":""},{"$f":"IF('1. Ordersheet'!I67=\"\",\"\",'1. Ordersheet'!I67)","v":""},{"$f":"IF('1. Ordersheet'!J67=\"\",\"\",'1. Ordersheet'!J67)","v":""},{"$f":"IF('1. Ordersheet'!K67=\"\",\"\",'1. Ordersheet'!K67)","v":""},{"$f":"IF('1. Ordersheet'!M67=\"\",\"\",'1. Ordersheet'!M67)","v":""},null,null,{"$f":"IF('1. Ordersheet'!AR67=\"\",\"\",'1. Ordersheet'!AR67)","v":""},{"$f":"IF('1. Ordersheet'!AE67=\"\",\"\",'1. Ordersheet'!AE67)","v":""}]
[{"$f":"IF('1. Ordersheet'!B68=\"\",\"\",'1. Ordersheet'!B68)","v":""},{"$f":"IF('1. Ordersheet'!I68=\"\",\"\",'1. Ordersheet'!I68)","v":""},{"$f":"IF('1. Ordersheet'!J68=\"\",\"\",'1. Ordersheet'!J68)","v":""},{"$f":"IF('1. Ordersheet'!K68=\"\",\"\",'1. Ordersheet'!K68)","v":""},{"$f":"IF('1. Ordersheet'!M68=\"\",\"\",'1. Ordersheet'!M68)","v":""},null,null,{"$f":"IF('1. Ordersheet'!AR68=\"\",\"\",'1. Ordersheet'!AR68)","v":""},{"$f":"IF('1. Ordersheet'!AE68=\"\",\"\",'1. Ordersheet'!AE68)","v":""}]
[{"$f":"IF('1. Ordersheet'!B69=\"\",\"\",'1. Ordersheet'!B69)","v":""},{"$f":"IF('1. Ordersheet'!I69=\"\",\"\",'1. Ordersheet'!I69)","v":""},{"$f":"IF('1. Ordersheet'!J69=\"\",\"\",'1. Ordersheet'!J69)","v":""},{"$f":"IF('1. Ordersheet'!K69=\"\",\"\",'1. Ordersheet'!K69)","v":""},{"$f":"IF('1. Ordersheet'!M69=\"\",\"\",'1. Ordersheet'!M69)","v":""},null,null,{"$f":"IF('1. Ordersheet'!AR69=\"\",\"\",'1. Ordersheet'!AR69)","v":""},{"$f":"IF('1. Ordersheet'!AE69=\"\",\"\",'1. Ordersheet'!AE69)","v":""}]
[{"$f":"IF('1. Ordersheet'!B70=\"\",\"\",'1. Ordersheet'!B70)","v":""},{"$f":"IF('1. Ordersheet'!I70=\"\",\"\",'1. Ordersheet'!I70)","v":""},{"$f":"IF('1. Ordersheet'!J70=\"\",\"\",'1. Ordersheet'!J70)","v":""},{"$f":"IF('1. Ordersheet'!K70=\"\",\"\",'1. Ordersheet'!K70)","v":""},{"$f":"IF('1. Ordersheet'!M70=\"\",\"\",'1. Ordersheet'!M70)","v":""},null,null,{"$f":"IF('1. Ordersheet'!AR70=\"\",\"\",'1. Ordersheet'!AR70)","v":""},{"$f":"IF('1. Ordersheet'!AE70=\"\",\"\",'1. Ordersheet'!AE70)","v":""}]
[{"$f":"IF('1. Ordersheet'!B71=\"\",\"\",'1. Ordersheet'!B71)","v":""},{"$f":"IF('1. Ordersheet'!I71=\"\",\"\",'1. Ordersheet'!I71)","v":""},{"$f":"IF('1. Ordersheet'!J71=\"\",\"\",'1. Ordersheet'!J71)","v":""},{"$f":"IF('1. Ordersheet'!K71=\"\",\"\",'1. Ordersheet'!K71)","v":""},{"$f":"IF('1. Ordersheet'!M71=\"\",\"\",'1. Ordersheet'!M71)","v":""},null,null,{"$f":"IF('1. Ordersheet'!AR71=\"\",\"\",'1. Ordersheet'!AR71)","v":""},{"$f":"IF('1. Ordersheet'!AE71=\"\",\"\",'1. Ordersheet'!AE71)","v":""}]
[{"$f":"IF('1. Ordersheet'!B72=\"\",\"\",'1. Ordersheet'!B72)","v":""},{"$f":"IF('1. Ordersheet'!I72=\"\",\"\",'1. Ordersheet'!I72)","v":""},{"$f":"IF('1. Ordersheet'!J72=\"\",\"\",'1. Ordersheet'!J72)","v":""},{"$f":"IF('1. Ordersheet'!K72=\"\",\"\",'1. Ordersheet'!K72)","v":""},{"$f":"IF('1. Ordersheet'!M72=\"\",\"\",'1. Ordersheet'!M72)","v":""},null,null,{"$f":"IF('1. Ordersheet'!AR72=\"\",\"\",'1. Ordersheet'!AR72)","v":""},{"$f":"IF('1. Ordersheet'!AE72=\"\",\"\",'1. Ordersheet'!AE72)","v":""}]
[{"$f":"IF('1. Ordersheet'!B73=\"\",\"\",'1. Ordersheet'!B73)","v":""},{"$f":"IF('1. Ordersheet'!I73=\"\",\"\",'1. Ordersheet'!I73)","v":""},{"$f":"IF('1. Ordersheet'!J73=\"\",\"\",'1. Ordersheet'!J73)","v":""},{"$f":"IF('1. Ordersheet'!K73=\"\",\"\",'1. Ordersheet'!K73)","v":""},{"$f":"IF('1. Ordersheet'!M73=\"\",\"\",'1. Ordersheet'!M73)","v":""},null,null,{"$f":"IF('1. Ordersheet'!AR73=\"\",\"\",'1. Ordersheet'!AR73)","v":""},{"$f":"IF('1. Ordersheet'!AE73=\"\",\"\",'1. Ordersheet'!AE73)","v":""}]
[{"$f":"IF('1. Ordersheet'!B74=\"\",\"\",'1. Ordersheet'!B74)","v":""},{"$f":"IF('1. Ordersheet'!I74=\"\",\"\",'1. Ordersheet'!I74)","v":""},{"$f":"IF('1. Ordersheet'!J74=\"\",\"\",'1. Ordersheet'!J74)","v":""},{"$f":"IF('1. Ordersheet'!K74=\"\",\"\",'1. Ordersheet'!K74)","v":""},{"$f":"IF('1. Ordersheet'!M74=\"\",\"\",'1. Ordersheet'!M74)","v":""},null,null,{"$f":"IF('1. Ordersheet'!AR74=\"\",\"\",'1. Ordersheet'!AR74)","v":""},{"$f":"IF('1. Ordersheet'!AE74=\"\",\"\",'1. Ordersheet'!AE74)","v":""}]
[{"$f":"IF('1. Ordersheet'!B75=\"\",\"\",'1. Ordersheet'!B75)","v":""},{"$f":"IF('1. Ordersheet'!I75=\"\",\"\",'1. Ordersheet'!I75)","v":""},{"$f":"IF('1. Ordersheet'!J75=\"\",\"\",'1. Ordersheet'!J75)","v":""},{"$f":"IF('1. Ordersheet'!K75=\"\",\"\",'1. Ordersheet'!K75)","v":""},{"$f":"IF('1. Ordersheet'!M75=\"\",\"\",'1. Ordersheet'!M75)","v":""},null,null,{"$f":"IF('1. Ordersheet'!AR75=\"\",\"\",'1. Ordersheet'!AR75)","v":""},{"$f":"IF('1. Ordersheet'!AE75=\"\",\"\",'1. Ordersheet'!AE75)","v":""}]
[{"$f":"IF('1. Ordersheet'!B76=\"\",\"\",'1. Ordersheet'!B76)","v":""},{"$f":"IF('1. Ordersheet'!I76=\"\",\"\",'1. Ordersheet'!I76)","v":""},{"$f":"IF('1. Ordersheet'!J76=\"\",\"\",'1. Ordersheet'!J76)","v":""},{"$f":"IF('1. Ordersheet'!K76=\"\",\"\",'1. Ordersheet'!K76)","v":""},{"$f":"IF('1. Ordersheet'!M76=\"\",\"\",'1. Ordersheet'!M76)","v":""},null,null,{"$f":"IF('1. Ordersheet'!AR76=\"\",\"\",'1. Ordersheet'!AR76)","v":""},{"$f":"IF('1. Ordersheet'!AE76=\"\",\"\",'1. Ordersheet'!AE76)","v":""}]
[{"$f":"IF('1. Ordersheet'!B77=\"\",\"\",'1. Ordersheet'!B77)","v":""},{"$f":"IF('1. Ordersheet'!I77=\"\",\"\",'1. Ordersheet'!I77)","v":""},{"$f":"IF('1. Ordersheet'!J77=\"\",\"\",'1. Ordersheet'!J77)","v":""},{"$f":"IF('1. Ordersheet'!K77=\"\",\"\",'1. Ordersheet'!K77)","v":""},{"$f":"IF('1. Ordersheet'!M77=\"\",\"\",'1. Ordersheet'!M77)","v":""},null,null,{"$f":"IF('1. Ordersheet'!AR77=\"\",\"\",'1. Ordersheet'!AR77)","v":""},{"$f":"IF('1. Ordersheet'!AE77=\"\",\"\",'1. Ordersheet'!AE77)","v":""}]
[{"$f":"IF('1. Ordersheet'!B78=\"\",\"\",'1. Ordersheet'!B78)","v":""},{"$f":"IF('1. Ordersheet'!I78=\"\",\"\",'1. Ordersheet'!I78)","v":""},{"$f":"IF('1. Ordersheet'!J78=\"\",\"\",'1. Ordersheet'!J78)","v":""},{"$f":"IF('1. Ordersheet'!K78=\"\",\"\",'1. Ordersheet'!K78)","v":""},{"$f":"IF('1. Ordersheet'!M78=\"\",\"\",'1. Ordersheet'!M78)","v":""},null,null,{"$f":"IF('1. Ordersheet'!AR78=\"\",\"\",'1. Ordersheet'!AR78)","v":""},{"$f":"IF('1. Ordersheet'!AE78=\"\",\"\",'1. Ordersheet'!AE78)","v":""}]
[{"$f":"IF('1. Ordersheet'!B79=\"\",\"\",'1. Ordersheet'!B79)","v":""},{"$f":"IF('1. Ordersheet'!I79=\"\",\"\",'1. Ordersheet'!I79)","v":""},{"$f":"IF('1. Ordersheet'!J79=\"\",\"\",'1. Ordersheet'!J79)","v":""},{"$f":"IF('1. Ordersheet'!K79=\"\",\"\",'1. Ordersheet'!K79)","v":""},{"$f":"IF('1. Ordersheet'!M79=\"\",\"\",'1. Ordersheet'!M79)","v":""},null,null,{"$f":"IF('1. Ordersheet'!AR79=\"\",\"\",'1. Ordersheet'!AR79)","v":""},{"$f":"IF('1. Ordersheet'!AE79=\"\",\"\",'1. Ordersheet'!AE79)","v":""}]
[{"$f":"IF('1. Ordersheet'!B80=\"\",\"\",'1. Ordersheet'!B80)","v":""},{"$f":"IF('1. Ordersheet'!I80=\"\",\"\",'1. Ordersheet'!I80)","v":""},{"$f":"IF('1. Ordersheet'!J80=\"\",\"\",'1. Ordersheet'!J80)","v":""},{"$f":"IF('1. Ordersheet'!K80=\"\",\"\",'1. Ordersheet'!K80)","v":""},{"$f":"IF('1. Ordersheet'!M80=\"\",\"\",'1. Ordersheet'!M80)","v":""},null,null,{"$f":"IF('1. Ordersheet'!AR80=\"\",\"\",'1. Ordersheet'!AR80)","v":""},{"$f":"IF('1. Ordersheet'!AE80=\"\",\"\",'1. Ordersheet'!AE80)","v":""}]
[{"$f":"IF('1. Ordersheet'!B81=\"\",\"\",'1. Ordersheet'!B81)","v":""},{"$f":"IF('1. Ordersheet'!I81=\"\",\"\",'1. Ordersheet'!I81)","v":""},{"$f":"IF('1. Ordersheet'!J81=\"\",\"\",'1. Ordersheet'!J81)","v":""},{"$f":"IF('1. Ordersheet'!K81=\"\",\"\",'1. Ordersheet'!K81)","v":""},{"$f":"IF('1. Ordersheet'!M81=\"\",\"\",'1. Ordersheet'!M81)","v":""},null,null,{"$f":"IF('1. Ordersheet'!AR81=\"\",\"\",'1. Ordersheet'!AR81)","v":""},{"$f":"IF('1. Ordersheet'!AE81=\"\",\"\",'1. Ordersheet'!AE81)","v":""}]
[{"$f":"IF('1. Ordersheet'!B82=\"\",\"\",'1. Ordersheet'!B82)","v":""},{"$f":"IF('1. Ordersheet'!I82=\"\",\"\",'1. Ordersheet'!I82)","v":""},{"$f":"IF('1. Ordersheet'!J82=\"\",\"\",'1. Ordersheet'!J82)","v":""},{"$f":"IF('1. Ordersheet'!K82=\"\",\"\",'1. Ordersheet'!K82)","v":""},{"$f":"IF('1. Ordersheet'!M82=\"\",\"\",'1. Ordersheet'!M82)","v":""},null,null,{"$f":"IF('1. Ordersheet'!AR82=\"\",\"\",'1. Ordersheet'!AR82)","v":""},{"$f":"IF('1. Ordersheet'!AE82=\"\",\"\",'1. Ordersheet'!AE82)","v":""}]
[{"$f":"IF('1. Ordersheet'!B83=\"\",\"\",'1. Ordersheet'!B83)","v":""},{"$f":"IF('1. Ordersheet'!I83=\"\",\"\",'1. Ordersheet'!I83)","v":""},{"$f":"IF('1. Ordersheet'!J83=\"\",\"\",'1. Ordersheet'!J83)","v":""},{"$f":"IF('1. Ordersheet'!K83=\"\",\"\",'1. Ordersheet'!K83)","v":""},{"$f":"IF('1. Ordersheet'!M83=\"\",\"\",'1. Ordersheet'!M83)","v":""},null,null,{"$f":"IF('1. Ordersheet'!AR83=\"\",\"\",'1. Ordersheet'!AR83)","v":""},{"$f":"IF('1. Ordersheet'!AE83=\"\",\"\",'1. Ordersheet'!AE83)","v":""}]
[{"$f":"IF('1. Ordersheet'!B84=\"\",\"\",'1. Ordersheet'!B84)","v":""},{"$f":"IF('1. Ordersheet'!I84=\"\",\"\",'1. Ordersheet'!I84)","v":""},{"$f":"IF('1. Ordersheet'!J84=\"\",\"\",'1. Ordersheet'!J84)","v":""},{"$f":"IF('1. Ordersheet'!K84=\"\",\"\",'1. Ordersheet'!K84)","v":""},{"$f":"IF('1. Ordersheet'!M84=\"\",\"\",'1. Ordersheet'!M84)","v":""},null,null,{"$f":"IF('1. Ordersheet'!AR84=\"\",\"\",'1. Ordersheet'!AR84)","v":""},{"$f":"IF('1. Ordersheet'!AE84=\"\",\"\",'1. Ordersheet'!AE84)","v":""}]
[{"$f":"IF('1. Ordersheet'!B85=\"\",\"\",'1. Ordersheet'!B85)","v":""},{"$f":"IF('1. Ordersheet'!I85=\"\",\"\",'1. Ordersheet'!I85)","v":""},{"$f":"IF('1. Ordersheet'!J85=\"\",\"\",'1. Ordersheet'!J85)","v":""},{"$f":"IF('1. Ordersheet'!K85=\"\",\"\",'1. Ordersheet'!K85)","v":""},{"$f":"IF('1. Ordersheet'!M85=\"\",\"\",'1. Ordersheet'!M85)","v":""},null,null,{"$f":"IF('1. Ordersheet'!AR85=\"\",\"\",'1. Ordersheet'!AR85)","v":""},{"$f":"IF('1. Ordersheet'!AE85=\"\",\"\",'1. Ordersheet'!AE85)","v":""}]
[{"$f":"IF('1. Ordersheet'!B86=\"\",\"\",'1. Ordersheet'!B86)","v":""},{"$f":"IF('1. Ordersheet'!I86=\"\",\"\",'1. Ordersheet'!I86)","v":""},{"$f":"IF('1. Ordersheet'!J86=\"\",\"\",'1. Ordersheet'!J86)","v":""},{"$f":"IF('1. Ordersheet'!K86=\"\",\"\",'1. Ordersheet'!K86)","v":""},{"$f":"IF('1. Ordersheet'!M86=\"\",\"\",'1. Ordersheet'!M86)","v":""},null,null,{"$f":"IF('1. Ordersheet'!AR86=\"\",\"\",'1. Ordersheet'!AR86)","v":""},{"$f":"IF('1. Ordersheet'!AE86=\"\",\"\",'1. Ordersheet'!AE86)","v":""}]
[{"$f":"IF('1. Ordersheet'!B87=\"\",\"\",'1. Ordersheet'!B87)","v":""},{"$f":"IF('1. Ordersheet'!I87=\"\",\"\",'1. Ordersheet'!I87)","v":""},{"$f":"IF('1. Ordersheet'!J87=\"\",\"\",'1. Ordersheet'!J87)","v":""},{"$f":"IF('1. Ordersheet'!K87=\"\",\"\",'1. Ordersheet'!K87)","v":""},{"$f":"IF('1. Ordersheet'!M87=\"\",\"\",'1. Ordersheet'!M87)","v":""},null,null,{"$f":"IF('1. Ordersheet'!AR87=\"\",\"\",'1. Ordersheet'!AR87)","v":""},{"$f":"IF('1. Ordersheet'!AE87=\"\",\"\",'1. Ordersheet'!AE87)","v":""}]
[{"$f":"IF('1. Ordersheet'!B88=\"\",\"\",'1. Ordersheet'!B88)","v":""},{"$f":"IF('1. Ordersheet'!I88=\"\",\"\",'1. Ordersheet'!I88)","v":""},{"$f":"IF('1. Ordersheet'!J88=\"\",\"\",'1. Ordersheet'!J88)","v":""},{"$f":"IF('1. Ordersheet'!K88=\"\",\"\",'1. Ordersheet'!K88)","v":""},{"$f":"IF('1. Ordersheet'!M88=\"\",\"\",'1. Ordersheet'!M88)","v":""},null,null,{"$f":"IF('1. Ordersheet'!AR88=\"\",\"\",'1. Ordersheet'!AR88)","v":""},{"$f":"IF('1. Ordersheet'!AE88=\"\",\"\",'1. Ordersheet'!AE88)","v":""}]
[{"$f":"IF('1. Ordersheet'!B89=\"\",\"\",'1. Ordersheet'!B89)","v":""},{"$f":"IF('1. Ordersheet'!I89=\"\",\"\",'1. Ordersheet'!I89)","v":""},{"$f":"IF('1. Ordersheet'!J89=\"\",\"\",'1. Ordersheet'!J89)","v":""},{"$f":"IF('1. Ordersheet'!K89=\"\",\"\",'1. Ordersheet'!K89)","v":""},{"$f":"IF('1. Ordersheet'!M89=\"\",\"\",'1. Ordersheet'!M89)","v":""},null,null,{"$f":"IF('1. Ordersheet'!AR89=\"\",\"\",'1. Ordersheet'!AR89)","v":""},{"$f":"IF('1. Ordersheet'!AE89=\"\",\"\",'1. Ordersheet'!AE89)","v":""}]
[{"$f":"IF('1. Ordersheet'!B90=\"\",\"\",'1. Ordersheet'!B90)","v":""},{"$f":"IF('1. Ordersheet'!I90=\"\",\"\",'1. Ordersheet'!I90)","v":""},{"$f":"IF('1. Ordersheet'!J90=\"\",\"\",'1. Ordersheet'!J90)","v":""},{"$f":"IF('1. Ordersheet'!K90=\"\",\"\",'1. Ordersheet'!K90)","v":""},{"$f":"IF('1. Ordersheet'!M90=\"\",\"\",'1. Ordersheet'!M90)","v":""},null,null,{"$f":"IF('1. Ordersheet'!AR90=\"\",\"\",'1. Ordersheet'!AR90)","v":""},{"$f":"IF('1. Ordersheet'!AE90=\"\",\"\",'1. Ordersheet'!AE90)","v":""}]
[{"$f":"IF('1. Ordersheet'!B91=\"\",\"\",'1. Ordersheet'!B91)","v":""},{"$f":"IF('1. Ordersheet'!I91=\"\",\"\",'1. Ordersheet'!I91)","v":""},{"$f":"IF('1. Ordersheet'!J91=\"\",\"\",'1. Ordersheet'!J91)","v":""},{"$f":"IF('1. Ordersheet'!K91=\"\",\"\",'1. Ordersheet'!K91)","v":""},{"$f":"IF('1. Ordersheet'!M91=\"\",\"\",'1. Ordersheet'!M91)","v":""},null,null,{"$f":"IF('1. Ordersheet'!AR91=\"\",\"\",'1. Ordersheet'!AR91)","v":""},{"$f":"IF('1. Ordersheet'!AE91=\"\",\"\",'1. Ordersheet'!AE91)","v":""}]
[{"$f":"IF('1. Ordersheet'!B92=\"\",\"\",'1. Ordersheet'!B92)","v":""},{"$f":"IF('1. Ordersheet'!I92=\"\",\"\",'1. Ordersheet'!I92)","v":""},{"$f":"IF('1. Ordersheet'!J92=\"\",\"\",'1. Ordersheet'!J92)","v":""},{"$f":"IF('1. Ordersheet'!K92=\"\",\"\",'1. Ordersheet'!K92)","v":""},{"$f":"IF('1. Ordersheet'!M92=\"\",\"\",'1. Ordersheet'!M92)","v":""},null,null,{"$f":"IF('1. Ordersheet'!AR92=\"\",\"\",'1. Ordersheet'!AR92)","v":""},{"$f":"IF('1. Ordersheet'!AE92=\"\",\"\",'1. Ordersheet'!AE92)","v":""}]
[{"$f":"IF('1. Ordersheet'!B93=\"\",\"\",'1. Ordersheet'!B93)","v":""},{"$f":"IF('1. Ordersheet'!I93=\"\",\"\",'1. Ordersheet'!I93)","v":""},{"$f":"IF('1. Ordersheet'!J93=\"\",\"\",'1. Ordersheet'!J93)","v":""},{"$f":"IF('1. Ordersheet'!K93=\"\",\"\",'1. Ordersheet'!K93)","v":""},{"$f":"IF('1. Ordersheet'!M93=\"\",\"\",'1. Ordersheet'!M93)","v":""},null,null,{"$f":"IF('1. Ordersheet'!AR93=\"\",\"\",'1. Ordersheet'!AR93)","v":""},{"$f":"IF('1. Ordersheet'!AE93=\"\",\"\",'1. Ordersheet'!AE93)","v":""}]
[{"$f":"IF('1. Ordersheet'!B94=\"\",\"\",'1. Ordersheet'!B94)","v":""},{"$f":"IF('1. Ordersheet'!I94=\"\",\"\",'1. Ordersheet'!I94)","v":""},{"$f":"IF('1. Ordersheet'!J94=\"\",\"\",'1. Ordersheet'!J94)","v":""},{"$f":"IF('1. Ordersheet'!K94=\"\",\"\",'1. Ordersheet'!K94)","v":""},{"$f":"IF('1. Ordersheet'!M94=\"\",\"\",'1. Ordersheet'!M94)","v":""},null,null,{"$f":"IF('1. Ordersheet'!AR94=\"\",\"\",'1. Ordersheet'!AR94)","v":""},{"$f":"IF('1. Ordersheet'!AE94=\"\",\"\",'1. Ordersheet'!AE94)","v":""}]
[{"$f":"IF('1. Ordersheet'!B95=\"\",\"\",'1. Ordersheet'!B95)","v":""},{"$f":"IF('1. Ordersheet'!I95=\"\",\"\",'1. Ordersheet'!I95)","v":""},{"$f":"IF('1. Ordersheet'!J95=\"\",\"\",'1. Ordersheet'!J95)","v":""},{"$f":"IF('1. Ordersheet'!K95=\"\",\"\",'1. Ordersheet'!K95)","v":""},{"$f":"IF('1. Ordersheet'!M95=\"\",\"\",'1. Ordersheet'!M95)","v":""},null,null,{"$f":"IF('1. Ordersheet'!AR95=\"\",\"\",'1. Ordersheet'!AR95)","v":""},{"$f":"IF('1. Ordersheet'!AE95=\"\",\"\",'1. Ordersheet'!AE95)","v":""}]
[{"$f":"IF('1. Ordersheet'!B96=\"\",\"\",'1. Ordersheet'!B96)","v":""},{"$f":"IF('1. Ordersheet'!I96=\"\",\"\",'1. Ordersheet'!I96)","v":""},{"$f":"IF('1. Ordersheet'!J96=\"\",\"\",'1. Ordersheet'!J96)","v":""},{"$f":"IF('1. Ordersheet'!K96=\"\",\"\",'1. Ordersheet'!K96)","v":""},{"$f":"IF('1. Ordersheet'!M96=\"\",\"\",'1. Ordersheet'!M96)","v":""},null,null,{"$f":"IF('1. Ordersheet'!AR96=\"\",\"\",'1. Ordersheet'!AR96)","v":""},{"$f":"IF('1. Ordersheet'!AE96=\"\",\"\",'1. Ordersheet'!AE96)","v":""}]
[{"$f":"IF('1. Ordersheet'!B97=\"\",\"\",'1. Ordersheet'!B97)","v":""},{"$f":"IF('1. Ordersheet'!I97=\"\",\"\",'1. Ordersheet'!I97)","v":""},{"$f":"IF('1. Ordersheet'!J97=\"\",\"\",'1. Ordersheet'!J97)","v":""},{"$f":"IF('1. Ordersheet'!K97=\"\",\"\",'1. Ordersheet'!K97)","v":""},{"$f":"IF('1. Ordersheet'!M97=\"\",\"\",'1. Ordersheet'!M97)","v":""},null,null,{"$f":"IF('1. Ordersheet'!AR97=\"\",\"\",'1. Ordersheet'!AR97)","v":""},{"$f":"IF('1. Ordersheet'!AE97=\"\",\"\",'1. Ordersheet'!AE97)","v":""}]
[{"$f":"IF('1. Ordersheet'!B98=\"\",\"\",'1. Ordersheet'!B98)","v":""},{"$f":"IF('1. Ordersheet'!I98=\"\",\"\",'1. Ordersheet'!I98)","v":""},{"$f":"IF('1. Ordersheet'!J98=\"\",\"\",'1. Ordersheet'!J98)","v":""},{"$f":"IF('1. Ordersheet'!K98=\"\",\"\",'1. Ordersheet'!K98)","v":""},{"$f":"IF('1. Ordersheet'!M98=\"\",\"\",'1. Ordersheet'!M98)","v":""},null,null,{"$f":"IF('1. Ordersheet'!AR98=\"\",\"\",'1. Ordersheet'!AR98)","v":""},{"$f":"IF('1. Ordersheet'!AE98=\"\",\"\",'1. Ordersheet'!AE98)","v":""}]
[{"$f":"IF('1. Ordersheet'!B99=\"\",\"\",'1. Ordersheet'!B99)","v":""},{"$f":"IF('1. Ordersheet'!I99=\"\",\"\",'1. Ordersheet'!I99)","v":""},{"$f":"IF('1. Ordersheet'!J99=\"\",\"\",'1. Ordersheet'!J99)","v":""},{"$f":"IF('1. Ordersheet'!K99=\"\",\"\",'1. Ordersheet'!K99)","v":""},{"$f":"IF('1. Ordersheet'!M99=\"\",\"\",'1. Ordersheet'!M99)","v":""},null,null,{"$f":"IF('1. Ordersheet'!AR99=\"\",\"\",'1. Ordersheet'!AR99)","v":""},{"$f":"IF('1. Ordersheet'!AE99=\"\",\"\",'1. Ordersheet'!AE99)","v":""}]
[{"$f":"IF('1. Ordersheet'!B100=\"\",\"\",'1. Ordersheet'!B100)","v":""},{"$f":"IF('1. Ordersheet'!I100=\"\",\"\",'1. Ordersheet'!I100)","v":""},{"$f":"IF('1. Ordersheet'!J100=\"\",\"\",'1. Ordersheet'!J100)","v":""},{"$f":"IF('1. Ordersheet'!K100=\"\",\"\",'1. Ordersheet'!K100)","v":""},{"$f":"IF('1. Ordersheet'!M100=\"\",\"\",'1. Ordersheet'!M100)","v":""},null,null,{"$f":"IF('1. Ordersheet'!AR100=\"\",\"\",'1. Ordersheet'!AR100)","v":""},{"$f":"IF('1. Ordersheet'!AE100=\"\",\"\",'1. Ordersheet'!AE100)","v":""}]
[{"$f":"IF('1. Ordersheet'!B101=\"\",\"\",'1. Ordersheet'!B101)","v":""},{"$f":"IF('1. Ordersheet'!I101=\"\",\"\",'1. Ordersheet'!I101)","v":""},{"$f":"IF('1. Ordersheet'!J101=\"\",\"\",'1. Ordersheet'!J101)","v":""},{"$f":"IF('1. Ordersheet'!K101=\"\",\"\",'1. Ordersheet'!K101)","v":""},{"$f":"IF('1. Ordersheet'!M101=\"\",\"\",'1. Ordersheet'!M101)","v":""},null,null,{"$f":"IF('1. Ordersheet'!AR101=\"\",\"\",'1. Ordersheet'!AR101)","v":""},{"$f":"IF('1. Ordersheet'!AE101=\"\",\"\",'1. Ordersheet'!AE101)","v":""}]
[{"$f":"IF('1. Ordersheet'!B102=\"\",\"\",'1. Ordersheet'!B102)","v":""},{"$f":"IF('1. Ordersheet'!I102=\"\",\"\",'1. Ordersheet'!I102)","v":""},{"$f":"IF('1. Ordersheet'!J102=\"\",\"\",'1. Ordersheet'!J102)","v":""},{"$f":"IF('1. Ordersheet'!K102=\"\",\"\",'1. Ordersheet'!K102)","v":""},{"$f":"IF('1. Ordersheet'!M102=\"\",\"\",'1. Ordersheet'!M102)","v":""},null,null,{"$f":"IF('1. Ordersheet'!AR102=\"\",\"\",'1. Ordersheet'!AR102)","v":""},{"$f":"IF('1. Ordersheet'!AE102=\"\",\"\",'1. Ordersheet'!AE102)","v":""}]
[{"$f":"IF('1. Ordersheet'!B103=\"\",\"\",'1. Ordersheet'!B103)","v":""},{"$f":"IF('1. Ordersheet'!I103=\"\",\"\",'1. Ordersheet'!I103)","v":""},{"$f":"IF('1. Ordersheet'!J103=\"\",\"\",'1. Ordersheet'!J103)","v":""},{"$f":"IF('1. Ordersheet'!K103=\"\",\"\",'1. Ordersheet'!K103)","v":""},{"$f":"IF('1. Ordersheet'!M103=\"\",\"\",'1. Ordersheet'!M103)","v":""},null,null,{"$f":"IF('1. Ordersheet'!AR103=\"\",\"\",'1. Ordersheet'!AR103)","v":""},{"$f":"IF('1. Ordersheet'!AE103=\"\",\"\",'1. Ordersheet'!AE103)","v":""}]
[{"$f":"IF('1. Ordersheet'!B104=\"\",\"\",'1. Ordersheet'!B104)","v":""},{"$f":"IF('1. Ordersheet'!I104=\"\",\"\",'1. Ordersheet'!I104)","v":""},{"$f":"IF('1. Ordersheet'!J104=\"\",\"\",'1. Ordersheet'!J104)","v":""},{"$f":"IF('1. Ordersheet'!K104=\"\",\"\",'1. Ordersheet'!K104)","v":""},{"$f":"IF('1. Ordersheet'!M104=\"\",\"\",'1. Ordersheet'!M104)","v":""},null,null,{"$f":"IF('1. Ordersheet'!AR104=\"\",\"\",'1. Ordersheet'!AR104)","v":""},{"$f":"IF('1. Ordersheet'!AE104=\"\",\"\",'1. Ordersheet'!AE104)","v":""}]
[{"$f":"IF('1. Ordersheet'!B105=\"\",\"\",'1. Ordersheet'!B105)","v":""},{"$f":"IF('1. Ordersheet'!I105=\"\",\"\",'1. Ordersheet'!I105)","v":""},{"$f":"IF('1. Ordersheet'!J105=\"\",\"\",'1. Ordersheet'!J105)","v":""},{"$f":"IF('1. Ordersheet'!K105=\"\",\"\",'1. Ordersheet'!K105)","v":""},{"$f":"IF('1. Ordersheet'!M105=\"\",\"\",'1. Ordersheet'!M105)","v":""},null,null,{"$f":"IF('1. Ordersheet'!AR105=\"\",\"\",'1. Ordersheet'!AR105)","v":""},{"$f":"IF('1. Ordersheet'!AE105=\"\",\"\",'1. Ordersheet'!AE105)","v":""}]
[{"$f":"IF('1. Ordersheet'!B106=\"\",\"\",'1. Ordersheet'!B106)","v":""},{"$f":"IF('1. Ordersheet'!I106=\"\",\"\",'1. Ordersheet'!I106)","v":""},{"$f":"IF('1. Ordersheet'!J106=\"\",\"\",'1. Ordersheet'!J106)","v":""},{"$f":"IF('1. Ordersheet'!K106=\"\",\"\",'1. Ordersheet'!K106)","v":""},{"$f":"IF('1. Ordersheet'!M106=\"\",\"\",'1. Ordersheet'!M106)","v":""},null,null,{"$f":"IF('1. Ordersheet'!AR106=\"\",\"\",'1. Ordersheet'!AR106)","v":""},{"$f":"IF('1. Ordersheet'!AE106=\"\",\"\",'1. Ordersheet'!AE106)","v":""}]
[{"$f":"IF('1. Ordersheet'!B107=\"\",\"\",'1. Ordersheet'!B107)","v":""},{"$f":"IF('1. Ordersheet'!I107=\"\",\"\",'1. Ordersheet'!I107)","v":""},{"$f":"IF('1. Ordersheet'!J107=\"\",\"\",'1. Ordersheet'!J107)","v":""},{"$f":"IF('1. Ordersheet'!K107=\"\",\"\",'1. Ordersheet'!K107)","v":""},{"$f":"IF('1. Ordersheet'!M107=\"\",\"\",'1. Ordersheet'!M107)","v":""},null,null,{"$f":"IF('1. Ordersheet'!AR107=\"\",\"\",'1. Ordersheet'!AR107)","v":""},{"$f":"IF('1. Ordersheet'!AE107=\"\",\"\",'1. Ordersheet'!AE107)","v":""}]
[{"$f":"IF('1. Ordersheet'!B108=\"\",\"\",'1. Ordersheet'!B108)","v":""},{"$f":"IF('1. Ordersheet'!I108=\"\",\"\",'1. Ordersheet'!I108)","v":""},{"$f":"IF('1. Ordersheet'!J108=\"\",\"\",'1. Ordersheet'!J108)","v":""},{"$f":"IF('1. Ordersheet'!K108=\"\",\"\",'1. Ordersheet'!K108)","v":""},{"$f":"IF('1. Ordersheet'!M108=\"\",\"\",'1. Ordersheet'!M108)","v":""},null,null,{"$f":"IF('1. Ordersheet'!AR108=\"\",\"\",'1. Ordersheet'!AR108)","v":""},{"$f":"IF('1. Ordersheet'!AE108=\"\",\"\",'1. Ordersheet'!AE108)","v":""}]
[{"$f":"IF('1. Ordersheet'!B109=\"\",\"\",'1. Ordersheet'!B109)","v":""},{"$f":"IF('1. Ordersheet'!I109=\"\",\"\",'1. Ordersheet'!I109)","v":""},{"$f":"IF('1. Ordersheet'!J109=\"\",\"\",'1. Ordersheet'!J109)","v":""},{"$f":"IF('1. Ordersheet'!K109=\"\",\"\",'1. Ordersheet'!K109)","v":""},{"$f":"IF('1. Ordersheet'!M109=\"\",\"\",'1. Ordersheet'!M109)","v":""},null,null,{"$f":"IF('1. Ordersheet'!AR109=\"\",\"\",'1. Ordersheet'!AR109)","v":""},{"$f":"IF('1. Ordersheet'!AE109=\"\",\"\",'1. Ordersheet'!AE109)","v":""}]
[{"$f":"IF('1. Ordersheet'!B110=\"\",\"\",'1. Ordersheet'!B110)","v":""},{"$f":"IF('1. Ordersheet'!I110=\"\",\"\",'1. Ordersheet'!I110)","v":""},{"$f":"IF('1. Ordersheet'!J110=\"\",\"\",'1. Ordersheet'!J110)","v":""},{"$f":"IF('1. Ordersheet'!K110=\"\",\"\",'1. Ordersheet'!K110)","v":""},{"$f":"IF('1. Ordersheet'!M110=\"\",\"\",'1. Ordersheet'!M110)","v":""},null,null,{"$f":"IF('1. Ordersheet'!AR110=\"\",\"\",'1. Ordersheet'!AR110)","v":""},{"$f":"IF('1. Ordersheet'!AE110=\"\",\"\",'1. Ordersheet'!AE110)","v":""}]
[{"$f":"IF('1. Ordersheet'!B111=\"\",\"\",'1. Ordersheet'!B111)","v":""},{"$f":"IF('1. Ordersheet'!I111=\"\",\"\",'1. Ordersheet'!I111)","v":""},{"$f":"IF('1. Ordersheet'!J111=\"\",\"\",'1. Ordersheet'!J111)","v":""},{"$f":"IF('1. Ordersheet'!K111=\"\",\"\",'1. Ordersheet'!K111)","v":""},{"$f":"IF('1. Ordersheet'!M111=\"\",\"\",'1. Ordersheet'!M111)","v":""},null,null,{"$f":"IF('1. Ordersheet'!AR111=\"\",\"\",'1. Ordersheet'!AR111)","v":""},{"$f":"IF('1. Ordersheet'!AE111=\"\",\"\",'1. Ordersheet'!AE111)","v":""}]
[{"$f":"IF('1. Ordersheet'!B112=\"\",\"\",'1. Ordersheet'!B112)","v":""},{"$f":"IF('1. Ordersheet'!I112=\"\",\"\",'1. Ordersheet'!I112)","v":""},{"$f":"IF('1. Ordersheet'!J112=\"\",\"\",'1. Ordersheet'!J112)","v":""},{"$f":"IF('1. Ordersheet'!K112=\"\",\"\",'1. Ordersheet'!K112)","v":""},{"$f":"IF('1. Ordersheet'!M112=\"\",\"\",'1. Ordersheet'!M112)","v":""},null,null,{"$f":"IF('1. Ordersheet'!AR112=\"\",\"\",'1. Ordersheet'!AR112)","v":""},{"$f":"IF('1. Ordersheet'!AE112=\"\",\"\",'1. Ordersheet'!AE112)","v":""}]
[{"$f":"IF('1. Ordersheet'!B113=\"\",\"\",'1. Ordersheet'!B113)","v":""},{"$f":"IF('1. Ordersheet'!I113=\"\",\"\",'1. Ordersheet'!I113)","v":""},{"$f":"IF('1. Ordersheet'!J113=\"\",\"\",'1. Ordersheet'!J113)","v":""},{"$f":"IF('1. Ordersheet'!K113=\"\",\"\",'1. Ordersheet'!K113)","v":""},{"$f":"IF('1. Ordersheet'!M113=\"\",\"\",'1. Ordersheet'!M113)","v":""},null,null,{"$f":"IF('1. Ordersheet'!AR113=\"\",\"\",'1. Ordersheet'!AR113)","v":""},{"$f":"IF('1. Ordersheet'!AE113=\"\",\"\",'1. Ordersheet'!AE113)","v":""}]
[{"$f":"IF('1. Ordersheet'!B114=\"\",\"\",'1. Ordersheet'!B114)","v":""},{"$f":"IF('1. Ordersheet'!I114=\"\",\"\",'1. Ordersheet'!I114)","v":""},{"$f":"IF('1. Ordersheet'!J114=\"\",\"\",'1. Ordersheet'!J114)","v":""},{"$f":"IF('1. Ordersheet'!K114=\"\",\"\",'1. Ordersheet'!K114)","v":""},{"$f":"IF('1. Ordersheet'!M114=\"\",\"\",'1. Ordersheet'!M114)","v":""},null,null,{"$f":"IF('1. Ordersheet'!AR114=\"\",\"\",'1. Ordersheet'!AR114)","v":""},{"$f":"IF('1. Ordersheet'!AE114=\"\",\"\",'1. Ordersheet'!AE114)","v":""}]
[{"$f":"IF('1. Ordersheet'!B115=\"\",\"\",'1. Ordersheet'!B115)","v":""},{"$f":"IF('1. Ordersheet'!I115=\"\",\"\",'1. Ordersheet'!I115)","v":""},{"$f":"IF('1. Ordersheet'!J115=\"\",\"\",'1. Ordersheet'!J115)","v":""},{"$f":"IF('1. Ordersheet'!K115=\"\",\"\",'1. Ordersheet'!K115)","v":""},{"$f":"IF('1. Ordersheet'!M115=\"\",\"\",'1. Ordersheet'!M115)","v":""},null,null,{"$f":"IF('1. Ordersheet'!AR115=\"\",\"\",'1. Ordersheet'!AR115)","v":""},{"$f":"IF('1. Ordersheet'!AE115=\"\",\"\",'1. Ordersheet'!AE115)","v":""}]
[{"$f":"IF('1. Ordersheet'!B116=\"\",\"\",'1. Ordersheet'!B116)","v":""},{"$f":"IF('1. Ordersheet'!I116=\"\",\"\",'1. Ordersheet'!I116)","v":""},{"$f":"IF('1. Ordersheet'!J116=\"\",\"\",'1. Ordersheet'!J116)","v":""},{"$f":"IF('1. Ordersheet'!K116=\"\",\"\",'1. Ordersheet'!K116)","v":""},{"$f":"IF('1. Ordersheet'!M116=\"\",\"\",'1. Ordersheet'!M116)","v":""},null,null,{"$f":"IF('1. Ordersheet'!AR116=\"\",\"\",'1. Ordersheet'!AR116)","v":""},{"$f":"IF('1. Ordersheet'!AE116=\"\",\"\",'1. Ordersheet'!AE116)","v":""}]
[{"$f":"IF('1. Ordersheet'!B117=\"\",\"\",'1. Ordersheet'!B117)","v":""},{"$f":"IF('1. Ordersheet'!I117=\"\",\"\",'1. Ordersheet'!I117)","v":""},{"$f":"IF('1. Ordersheet'!J117=\"\",\"\",'1. Ordersheet'!J117)","v":""},{"$f":"IF('1. Ordersheet'!K117=\"\",\"\",'1. Ordersheet'!K117)","v":""},{"$f":"IF('1. Ordersheet'!M117=\"\",\"\",'1. Ordersheet'!M117)","v":""},null,null,{"$f":"IF('1. Ordersheet'!AR117=\"\",\"\",'1. Ordersheet'!AR117)","v":""},{"$f":"IF('1. Ordersheet'!AE117=\"\",\"\",'1. Ordersheet'!AE117)","v":""}]
[{"$f":"IF('1. Ordersheet'!B118=\"\",\"\",'1. Ordersheet'!B118)","v":""},{"$f":"IF('1. Ordersheet'!I118=\"\",\"\",'1. Ordersheet'!I118)","v":""},{"$f":"IF('1. Ordersheet'!J118=\"\",\"\",'1. Ordersheet'!J118)","v":""},{"$f":"IF('1. Ordersheet'!K118=\"\",\"\",'1. Ordersheet'!K118)","v":""},{"$f":"IF('1. Ordersheet'!M118=\"\",\"\",'1. Ordersheet'!M118)","v":""},null,null,{"$f":"IF('1. Ordersheet'!AR118=\"\",\"\",'1. Ordersheet'!AR118)","v":""},{"$f":"IF('1. Ordersheet'!AE118=\"\",\"\",'1. Ordersheet'!AE118)","v":""}]
[{"$f":"IF('1. Ordersheet'!B119=\"\",\"\",'1. Ordersheet'!B119)","v":""},{"$f":"IF('1. Ordersheet'!I119=\"\",\"\",'1. Ordersheet'!I119)","v":""},{"$f":"IF('1. Ordersheet'!J119=\"\",\"\",'1. Ordersheet'!J119)","v":""},{"$f":"IF('1. Ordersheet'!K119=\"\",\"\",'1. Ordersheet'!K119)","v":""},{"$f":"IF('1. Ordersheet'!M119=\"\",\"\",'1. Ordersheet'!M119)","v":""},null,null,{"$f":"IF('1. Ordersheet'!AR119=\"\",\"\",'1. Ordersheet'!AR119)","v":""},{"$f":"IF('1. Ordersheet'!AE119=\"\",\"\",'1. Ordersheet'!AE119)","v":""}]
[{"$f":"IF('1. Ordersheet'!B120=\"\",\"\",'1. Ordersheet'!B120)","v":""},{"$f":"IF('1. Ordersheet'!I120=\"\",\"\",'1. Ordersheet'!I120)","v":""},{"$f":"IF('1. Ordersheet'!J120=\"\",\"\",'1. Ordersheet'!J120)","v":""},{"$f":"IF('1. Ordersheet'!K120=\"\",\"\",'1. Ordersheet'!K120)","v":""},{"$f":"IF('1. Ordersheet'!M120=\"\",\"\",'1. Ordersheet'!M120)","v":""},null,null,{"$f":"IF('1. Ordersheet'!AR120=\"\",\"\",'1. Ordersheet'!AR120)","v":""},{"$f":"IF('1. Ordersheet'!AE120=\"\",\"\",'1. Ordersheet'!AE120)","v":""}]
[{"$f":"IF('1. Ordersheet'!B121=\"\",\"\",'1. Ordersheet'!B121)","v":""},{"$f":"IF('1. Ordersheet'!I121=\"\",\"\",'1. Ordersheet'!I121)","v":""},{"$f":"IF('1. Ordersheet'!J121=\"\",\"\",'1. Ordersheet'!J121)","v":""},{"$f":"IF('1. Ordersheet'!K121=\"\",\"\",'1. Ordersheet'!K121)","v":""},{"$f":"IF('1. Ordersheet'!M121=\"\",\"\",'1. Ordersheet'!M121)","v":""},null,null,{"$f":"IF('1. Ordersheet'!AR121=\"\",\"\",'1. Ordersheet'!AR121)","v":""},{"$f":"IF('1. Ordersheet'!AE121=\"\",\"\",'1. Ordersheet'!AE121)","v":""}]
[{"$f":"IF('1. Ordersheet'!B122=\"\",\"\",'1. Ordersheet'!B122)","v":""},{"$f":"IF('1. Ordersheet'!I122=\"\",\"\",'1. Ordersheet'!I122)","v":""},{"$f":"IF('1. Ordersheet'!J122=\"\",\"\",'1. Ordersheet'!J122)","v":""},{"$f":"IF('1. Ordersheet'!K122=\"\",\"\",'1. Ordersheet'!K122)","v":""},{"$f":"IF('1. Ordersheet'!M122=\"\",\"\",'1. Ordersheet'!M122)","v":""},null,null,{"$f":"IF('1. Ordersheet'!AR122=\"\",\"\",'1. Ordersheet'!AR122)","v":""},{"$f":"IF('1. Ordersheet'!AE122=\"\",\"\",'1. Ordersheet'!AE122)","v":""}]
[{"$f":"IF('1. Ordersheet'!B123=\"\",\"\",'1. Ordersheet'!B123)","v":""},{"$f":"IF('1. Ordersheet'!I123=\"\",\"\",'1. Ordersheet'!I123)","v":""},{"$f":"IF('1. Ordersheet'!J123=\"\",\"\",'1. Ordersheet'!J123)","v":""},{"$f":"IF('1. Ordersheet'!K123=\"\",\"\",'1. Ordersheet'!K123)","v":""},{"$f":"IF('1. Ordersheet'!M123=\"\",\"\",'1. Ordersheet'!M123)","v":""},null,null,{"$f":"IF('1. Ordersheet'!AR123=\"\",\"\",'1. Ordersheet'!AR123)","v":""},{"$f":"IF('1. Ordersheet'!AE123=\"\",\"\",'1. Ordersheet'!AE123)","v":""}]
[{"$f":"IF('1. Ordersheet'!B124=\"\",\"\",'1. Ordersheet'!B124)","v":""},{"$f":"IF('1. Ordersheet'!I124=\"\",\"\",'1. Ordersheet'!I124)","v":""},{"$f":"IF('1. Ordersheet'!J124=\"\",\"\",'1. Ordersheet'!J124)","v":""},{"$f":"IF('1. Ordersheet'!K124=\"\",\"\",'1. Ordersheet'!K124)","v":""},{"$f":"IF('1. Ordersheet'!M124=\"\",\"\",'1. Ordersheet'!M124)","v":""},null,null,{"$f":"IF('1. Ordersheet'!AR124=\"\",\"\",'1. Ordersheet'!AR124)","v":""},{"$f":"IF('1. Ordersheet'!AE124=\"\",\"\",'1. Ordersheet'!AE124)","v":""}]
[{"$f":"IF('1. Ordersheet'!B125=\"\",\"\",'1. Ordersheet'!B125)","v":""},{"$f":"IF('1. Ordersheet'!I125=\"\",\"\",'1. Ordersheet'!I125)","v":""},{"$f":"IF('1. Ordersheet'!J125=\"\",\"\",'1. Ordersheet'!J125)","v":""},{"$f":"IF('1. Ordersheet'!K125=\"\",\"\",'1. Ordersheet'!K125)","v":""},{"$f":"IF('1. Ordersheet'!M125=\"\",\"\",'1. Ordersheet'!M125)","v":""},null,null,{"$f":"IF('1. Ordersheet'!AR125=\"\",\"\",'1. Ordersheet'!AR125)","v":""},{"$f":"IF('1. Ordersheet'!AE125=\"\",\"\",'1. Ordersheet'!AE125)","v":""}]
[{"$f":"IF('1. Ordersheet'!B126=\"\",\"\",'1. Ordersheet'!B126)","v":""},{"$f":"IF('1. Ordersheet'!I126=\"\",\"\",'1. Ordersheet'!I126)","v":""},{"$f":"IF('1. Ordersheet'!J126=\"\",\"\",'1. Ordersheet'!J126)","v":""},{"$f":"IF('1. Ordersheet'!K126=\"\",\"\",'1. Ordersheet'!K126)","v":""},{"$f":"IF('1. Ordersheet'!M126=\"\",\"\",'1. Ordersheet'!M126)","v":""},null,null,{"$f":"IF('1. Ordersheet'!AR126=\"\",\"\",'1. Ordersheet'!AR126)","v":""},{"$f":"IF('1. Ordersheet'!AE126=\"\",\"\",'1. Ordersheet'!AE126)","v":""}]
[{"$f":"IF('1. Ordersheet'!B127=\"\",\"\",'1. Ordersheet'!B127)","v":""},{"$f":"IF('1. Ordersheet'!I127=\"\",\"\",'1. Ordersheet'!I127)","v":""},{"$f":"IF('1. Ordersheet'!J127=\"\",\"\",'1. Ordersheet'!J127)","v":""},{"$f":"IF('1. Ordersheet'!K127=\"\",\"\",'1. Ordersheet'!K127)","v":""},{"$f":"IF('1. Ordersheet'!M127=\"\",\"\",'1. Ordersheet'!M127)","v":""},null,null,{"$f":"IF('1. Ordersheet'!AR127=\"\",\"\",'1. Ordersheet'!AR127)","v":""},{"$f":"IF('1. Ordersheet'!AE127=\"\",\"\",'1. Ordersheet'!AE127)","v":""}]
[{"$f":"IF('1. Ordersheet'!B128=\"\",\"\",'1. Ordersheet'!B128)","v":""},{"$f":"IF('1. Ordersheet'!I128=\"\",\"\",'1. Ordersheet'!I128)","v":""},{"$f":"IF('1. Ordersheet'!J128=\"\",\"\",'1. Ordersheet'!J128)","v":""},{"$f":"IF('1. Ordersheet'!K128=\"\",\"\",'1. Ordersheet'!K128)","v":""},{"$f":"IF('1. Ordersheet'!M128=\"\",\"\",'1. Ordersheet'!M128)","v":""},null,null,{"$f":"IF('1. Ordersheet'!AR128=\"\",\"\",'1. Ordersheet'!AR128)","v":""},{"$f":"IF('1. Ordersheet'!AE128=\"\",\"\",'1. Ordersheet'!AE128)","v":""}]
[{"$f":"IF('1. Ordersheet'!B129=\"\",\"\",'1. Ordersheet'!B129)","v":""},{"$f":"IF('1. Ordersheet'!I129=\"\",\"\",'1. Ordersheet'!I129)","v":""},{"$f":"IF('1. Ordersheet'!J129=\"\",\"\",'1. Ordersheet'!J129)","v":""},{"$f":"IF('1. Ordersheet'!K129=\"\",\"\",'1. Ordersheet'!K129)","v":""},{"$f":"IF('1. Ordersheet'!M129=\"\",\"\",'1. Ordersheet'!M129)","v":""},null,null,{"$f":"IF('1. Ordersheet'!AR129=\"\",\"\",'1. Ordersheet'!AR129)","v":""},{"$f":"IF('1. Ordersheet'!AE129=\"\",\"\",'1. Ordersheet'!AE129)","v":""}]
[{"$f":"IF('1. Ordersheet'!B130=\"\",\"\",'1. Ordersheet'!B130)","v":""},{"$f":"IF('1. Ordersheet'!I130=\"\",\"\",'1. Ordersheet'!I130)","v":""},{"$f":"IF('1. Ordersheet'!J130=\"\",\"\",'1. Ordersheet'!J130)","v":""},{"$f":"IF('1. Ordersheet'!K130=\"\",\"\",'1. Ordersheet'!K130)","v":""},{"$f":"IF('1. Ordersheet'!M130=\"\",\"\",'1. Ordersheet'!M130)","v":""},null,null,{"$f":"IF('1. Ordersheet'!AR130=\"\",\"\",'1. Ordersheet'!AR130)","v":""},{"$f":"IF('1. Ordersheet'!AE130=\"\",\"\",'1. Ordersheet'!AE130)","v":""}]
[{"$f":"IF('1. Ordersheet'!B131=\"\",\"\",'1. Ordersheet'!B131)","v":""},{"$f":"IF('1. Ordersheet'!I131=\"\",\"\",'1. Ordersheet'!I131)","v":""},{"$f":"IF('1. Ordersheet'!J131=\"\",\"\",'1. Ordersheet'!J131)","v":""},{"$f":"IF('1. Ordersheet'!K131=\"\",\"\",'1. Ordersheet'!K131)","v":""},{"$f":"IF('1. Ordersheet'!M131=\"\",\"\",'1. Ordersheet'!M131)","v":""},null,null,{"$f":"IF('1. Ordersheet'!AR131=\"\",\"\",'1. Ordersheet'!AR131)","v":""},{"$f":"IF('1. Ordersheet'!AE131=\"\",\"\",'1. Ordersheet'!AE131)","v":""}]
[{"$f":"IF('1. Ordersheet'!B132=\"\",\"\",'1. Ordersheet'!B132)","v":""},{"$f":"IF('1. Ordersheet'!I132=\"\",\"\",'1. Ordersheet'!I132)","v":""},{"$f":"IF('1. Ordersheet'!J132=\"\",\"\",'1. Ordersheet'!J132)","v":""},{"$f":"IF('1. Ordersheet'!K132=\"\",\"\",'1. Ordersheet'!K132)","v":""},{"$f":"IF('1. Ordersheet'!M132=\"\",\"\",'1. Ordersheet'!M132)","v":""},null,null,{"$f":"IF('1. Ordersheet'!AR132=\"\",\"\",'1. Ordersheet'!AR132)","v":""},{"$f":"IF('1. Ordersheet'!AE132=\"\",\"\",'1. Ordersheet'!AE132)","v":""}]
[{"$f":"IF('1. Ordersheet'!B133=\"\",\"\",'1. Ordersheet'!B133)","v":""},{"$f":"IF('1. Ordersheet'!I133=\"\",\"\",'1. Ordersheet'!I133)","v":""},{"$f":"IF('1. Ordersheet'!J133=\"\",\"\",'1. Ordersheet'!J133)","v":""},{"$f":"IF('1. Ordersheet'!K133=\"\",\"\",'1. Ordersheet'!K133)","v":""},{"$f":"IF('1. Ordersheet'!M133=\"\",\"\",'1. Ordersheet'!M133)","v":""},null,null,{"$f":"IF('1. Ordersheet'!AR133=\"\",\"\",'1. Ordersheet'!AR133)","v":""},{"$f":"IF('1. Ordersheet'!AE133=\"\",\"\",'1. Ordersheet'!AE133)","v":""}]
[{"$f":"IF('1. Ordersheet'!B134=\"\",\"\",'1. Ordersheet'!B134)","v":""},{"$f":"IF('1. Ordersheet'!I134=\"\",\"\",'1. Ordersheet'!I134)","v":""},{"$f":"IF('1. Ordersheet'!J134=\"\",\"\",'1. Ordersheet'!J134)","v":""},{"$f":"IF('1. Ordersheet'!K134=\"\",\"\",'1. Ordersheet'!K134)","v":""},{"$f":"IF('1. Ordersheet'!M134=\"\",\"\",'1. Ordersheet'!M134)","v":""},null,null,{"$f":"IF('1. Ordersheet'!AR134=\"\",\"\",'1. Ordersheet'!AR134)","v":""},{"$f":"IF('1. Ordersheet'!AE134=\"\",\"\",'1. Ordersheet'!AE134)","v":""}]
[{"$f":"IF('1. Ordersheet'!B135=\"\",\"\",'1. Ordersheet'!B135)","v":""},{"$f":"IF('1. Ordersheet'!I135=\"\",\"\",'1. Ordersheet'!I135)","v":""},{"$f":"IF('1. Ordersheet'!J135=\"\",\"\",'1. Ordersheet'!J135)","v":""},{"$f":"IF('1. Ordersheet'!K135=\"\",\"\",'1. Ordersheet'!K135)","v":""},{"$f":"IF('1. Ordersheet'!M135=\"\",\"\",'1. Ordersheet'!M135)","v":""},null,null,{"$f":"IF('1. Ordersheet'!AR135=\"\",\"\",'1. Ordersheet'!AR135)","v":""},{"$f":"IF('1. Ordersheet'!AE135=\"\",\"\",'1. Ordersheet'!AE135)","v":""}]
[{"$f":"IF('1. Ordersheet'!B136=\"\",\"\",'1. Ordersheet'!B136)","v":""},{"$f":"IF('1. Ordersheet'!I136=\"\",\"\",'1. Ordersheet'!I136)","v":""},{"$f":"IF('1. Ordersheet'!J136=\"\",\"\",'1. Ordersheet'!J136)","v":""},{"$f":"IF('1. Ordersheet'!K136=\"\",\"\",'1. Ordersheet'!K136)","v":""},{"$f":"IF('1. Ordersheet'!M136=\"\",\"\",'1. Ordersheet'!M136)","v":""},null,null,{"$f":"IF('1. Ordersheet'!AR136=\"\",\"\",'1. Ordersheet'!AR136)","v":""},{"$f":"IF('1. Ordersheet'!AE136=\"\",\"\",'1. Ordersheet'!AE136)","v":""}]
[{"$f":"IF('1. Ordersheet'!B137=\"\",\"\",'1. Ordersheet'!B137)","v":""},{"$f":"IF('1. Ordersheet'!I137=\"\",\"\",'1. Ordersheet'!I137)","v":""},{"$f":"IF('1. Ordersheet'!J137=\"\",\"\",'1. Ordersheet'!J137)","v":""},{"$f":"IF('1. Ordersheet'!K137=\"\",\"\",'1. Ordersheet'!K137)","v":""},{"$f":"IF('1. Ordersheet'!M137=\"\",\"\",'1. Ordersheet'!M137)","v":""},null,null,{"$f":"IF('1. Ordersheet'!AR137=\"\",\"\",'1. Ordersheet'!AR137)","v":""},{"$f":"IF('1. Ordersheet'!AE137=\"\",\"\",'1. Ordersheet'!AE137)","v":""}]
[{"$f":"IF('1. Ordersheet'!B138=\"\",\"\",'1. Ordersheet'!B138)","v":""},{"$f":"IF('1. Ordersheet'!I138=\"\",\"\",'1. Ordersheet'!I138)","v":""},{"$f":"IF('1. Ordersheet'!J138=\"\",\"\",'1. Ordersheet'!J138)","v":""},{"$f":"IF('1. Ordersheet'!K138=\"\",\"\",'1. Ordersheet'!K138)","v":""},{"$f":"IF('1. Ordersheet'!M138=\"\",\"\",'1. Ordersheet'!M138)","v":""},null,null,{"$f":"IF('1. Ordersheet'!AR138=\"\",\"\",'1. Ordersheet'!AR138)","v":""},{"$f":"IF('1. Ordersheet'!AE138=\"\",\"\",'1. Ordersheet'!AE138)","v":""}]
[{"$f":"IF('1. Ordersheet'!B139=\"\",\"\",'1. Ordersheet'!B139)","v":""},{"$f":"IF('1. Ordersheet'!I139=\"\",\"\",'1. Ordersheet'!I139)","v":""},{"$f":"IF('1. Ordersheet'!J139=\"\",\"\",'1. Ordersheet'!J139)","v":""},{"$f":"IF('1. Ordersheet'!K139=\"\",\"\",'1. Ordersheet'!K139)","v":""},{"$f":"IF('1. Ordersheet'!M139=\"\",\"\",'1. Ordersheet'!M139)","v":""},null,null,{"$f":"IF('1. Ordersheet'!AR139=\"\",\"\",'1. Ordersheet'!AR139)","v":""},{"$f":"IF('1. Ordersheet'!AE139=\"\",\"\",'1. Ordersheet'!AE139)","v":""}]
[{"$f":"IF('1. Ordersheet'!B140=\"\",\"\",'1. Ordersheet'!B140)","v":""},{"$f":"IF('1. Ordersheet'!I140=\"\",\"\",'1. Ordersheet'!I140)","v":""},{"$f":"IF('1. Ordersheet'!J140=\"\",\"\",'1. Ordersheet'!J140)","v":""},{"$f":"IF('1. Ordersheet'!K140=\"\",\"\",'1. Ordersheet'!K140)","v":""},{"$f":"IF('1. Ordersheet'!M140=\"\",\"\",'1. Ordersheet'!M140)","v":""},null,null,{"$f":"IF('1. Ordersheet'!AR140=\"\",\"\",'1. Ordersheet'!AR140)","v":""},{"$f":"IF('1. Ordersheet'!AE140=\"\",\"\",'1. Ordersheet'!AE140)","v":""}]
[{"$f":"IF('1. Ordersheet'!B141=\"\",\"\",'1. Ordersheet'!B141)","v":""},{"$f":"IF('1. Ordersheet'!I141=\"\",\"\",'1. Ordersheet'!I141)","v":""},{"$f":"IF('1. Ordersheet'!J141=\"\",\"\",'1. Ordersheet'!J141)","v":""},{"$f":"IF('1. Ordersheet'!K141=\"\",\"\",'1. Ordersheet'!K141)","v":""},{"$f":"IF('1. Ordersheet'!M141=\"\",\"\",'1. Ordersheet'!M141)","v":""},null,null,{"$f":"IF('1. Ordersheet'!AR141=\"\",\"\",'1. Ordersheet'!AR141)","v":""},{"$f":"IF('1. Ordersheet'!AE141=\"\",\"\",'1. Ordersheet'!AE141)","v":""}]
[{"$f":"IF('1. Ordersheet'!B142=\"\",\"\",'1. Ordersheet'!B142)","v":""},{"$f":"IF('1. Ordersheet'!I142=\"\",\"\",'1. Ordersheet'!I142)","v":""},{"$f":"IF('1. Ordersheet'!J142=\"\",\"\",'1. Ordersheet'!J142)","v":""},{"$f":"IF('1. Ordersheet'!K142=\"\",\"\",'1. Ordersheet'!K142)","v":""},{"$f":"IF('1. Ordersheet'!M142=\"\",\"\",'1. Ordersheet'!M142)","v":""},null,null,{"$f":"IF('1. Ordersheet'!AR142=\"\",\"\",'1. Ordersheet'!AR142)","v":""},{"$f":"IF('1. Ordersheet'!AE142=\"\",\"\",'1. Ordersheet'!AE142)","v":""}]
[{"$f":"IF('1. Ordersheet'!B143=\"\",\"\",'1. Ordersheet'!B143)","v":""},{"$f":"IF('1. Ordersheet'!I143=\"\",\"\",'1. Ordersheet'!I143)","v":""},{"$f":"IF('1. Ordersheet'!J143=\"\",\"\",'1. Ordersheet'!J143)","v":""},{"$f":"IF('1. Ordersheet'!K143=\"\",\"\",'1. Ordersheet'!K143)","v":""},{"$f":"IF('1. Ordersheet'!M143=\"\",\"\",'1. Ordersheet'!M143)","v":""},null,null,{"$f":"IF('1. Ordersheet'!AR143=\"\",\"\",'1. Ordersheet'!AR143)","v":""},{"$f":"IF('1. Ordersheet'!AE143=\"\",\"\",'1. Ordersheet'!AE143)","v":""}]
[{"$f":"IF('1. Ordersheet'!B144=\"\",\"\",'1. Ordersheet'!B144)","v":""},{"$f":"IF('1. Ordersheet'!I144=\"\",\"\",'1. Ordersheet'!I144)","v":""},{"$f":"IF('1. Ordersheet'!J144=\"\",\"\",'1. Ordersheet'!J144)","v":""},{"$f":"IF('1. Ordersheet'!K144=\"\",\"\",'1. Ordersheet'!K144)","v":""},{"$f":"IF('1. Ordersheet'!M144=\"\",\"\",'1. Ordersheet'!M144)","v":""},null,null,{"$f":"IF('1. Ordersheet'!AR144=\"\",\"\",'1. Ordersheet'!AR144)","v":""},{"$f":"IF('1. Ordersheet'!AE144=\"\",\"\",'1. Ordersheet'!AE144)","v":""}]
[{"$f":"IF('1. Ordersheet'!B145=\"\",\"\",'1. Ordersheet'!B145)","v":""},{"$f":"IF('1. Ordersheet'!I145=\"\",\"\",'1. Ordersheet'!I145)","v":""},{"$f":"IF('1. Ordersheet'!J145=\"\",\"\",'1. Ordersheet'!J145)","v":""},{"$f":"IF('1. Ordersheet'!K145=\"\",\"\",'1. Ordersheet'!K145)","v":""},{"$f":"IF('1. Ordersheet'!M145=\"\",\"\",'1. Ordersheet'!M145)","v":""},null,null,{"$f":"IF('1. Ordersheet'!AR145=\"\",\"\",'1. Ordersheet'!AR145)","v":""},{"$f":"IF('1. Ordersheet'!AE145=\"\",\"\",'1. Ordersheet'!AE145)","v":""}]
[{"$f":"IF('1. Ordersheet'!B146=\"\",\"\",'1. Ordersheet'!B146)","v":""},{"$f":"IF('1. Ordersheet'!I146=\"\",\"\",'1. Ordersheet'!I146)","v":""},{"$f":"IF('1. Ordersheet'!J146=\"\",\"\",'1. Ordersheet'!J146)","v":""},{"$f":"IF('1. Ordersheet'!K146=\"\",\"\",'1. Ordersheet'!K146)","v":""},{"$f":"IF('1. Ordersheet'!M146=\"\",\"\",'1. Ordersheet'!M146)","v":""},null,null,{"$f":"IF('1. Ordersheet'!AR146=\"\",\"\",'1. Ordersheet'!AR146)","v":""},{"$f":"IF('1. Ordersheet'!AE146=\"\",\"\",'1. Ordersheet'!AE146)","v":""}]
[{"$f":"IF('1. Ordersheet'!B147=\"\",\"\",'1. Ordersheet'!B147)","v":""},{"$f":"IF('1. Ordersheet'!I147=\"\",\"\",'1. Ordersheet'!I147)","v":""},{"$f":"IF('1. Ordersheet'!J147=\"\",\"\",'1. Ordersheet'!J147)","v":""},{"$f":"IF('1. Ordersheet'!K147=\"\",\"\",'1. Ordersheet'!K147)","v":""},{"$f":"IF('1. Ordersheet'!M147=\"\",\"\",'1. Ordersheet'!M147)","v":""},null,null,{"$f":"IF('1. Ordersheet'!AR147=\"\",\"\",'1. Ordersheet'!AR147)","v":""},{"$f":"IF('1. Ordersheet'!AE147=\"\",\"\",'1. Ordersheet'!AE147)","v":""}]
[{"$f":"IF('1. Ordersheet'!B148=\"\",\"\",'1. Ordersheet'!B148)","v":""},{"$f":"IF('1. Ordersheet'!I148=\"\",\"\",'1. Ordersheet'!I148)","v":""},{"$f":"IF('1. Ordersheet'!J148=\"\",\"\",'1. Ordersheet'!J148)","v":""},{"$f":"IF('1. Ordersheet'!K148=\"\",\"\",'1. Ordersheet'!K148)","v":""},{"$f":"IF('1. Ordersheet'!M148=\"\",\"\",'1. Ordersheet'!M148)","v":""},null,null,{"$f":"IF('1. Ordersheet'!AR148=\"\",\"\",'1. Ordersheet'!AR148)","v":""},{"$f":"IF('1. Ordersheet'!AE148=\"\",\"\",'1. Ordersheet'!AE148)","v":""}]
[{"$f":"IF('1. Ordersheet'!B149=\"\",\"\",'1. Ordersheet'!B149)","v":""},{"$f":"IF('1. Ordersheet'!I149=\"\",\"\",'1. Ordersheet'!I149)","v":""},{"$f":"IF('1. Ordersheet'!J149=\"\",\"\",'1. Ordersheet'!J149)","v":""},{"$f":"IF('1. Ordersheet'!K149=\"\",\"\",'1. Ordersheet'!K149)","v":""},{"$f":"IF('1. Ordersheet'!M149=\"\",\"\",'1. Ordersheet'!M149)","v":""},null,null,{"$f":"IF('1. Ordersheet'!AR149=\"\",\"\",'1. Ordersheet'!AR149)","v":""},{"$f":"IF('1. Ordersheet'!AE149=\"\",\"\",'1. Ordersheet'!AE149)","v":""}]
[{"$f":"IF('1. Ordersheet'!B150=\"\",\"\",'1. Ordersheet'!B150)","v":""},{"$f":"IF('1. Ordersheet'!I150=\"\",\"\",'1. Ordersheet'!I150)","v":""},{"$f":"IF('1. Ordersheet'!J150=\"\",\"\",'1. Ordersheet'!J150)","v":""},{"$f":"IF('1. Ordersheet'!K150=\"\",\"\",'1. Ordersheet'!K150)","v":""},{"$f":"IF('1. Ordersheet'!M150=\"\",\"\",'1. Ordersheet'!M150)","v":""},null,null,{"$f":"IF('1. Ordersheet'!AR150=\"\",\"\",'1. Ordersheet'!AR150)","v":""},{"$f":"IF('1. Ordersheet'!AE150=\"\",\"\",'1. Ordersheet'!AE150)","v":""}]
[{"$f":"IF('1. Ordersheet'!B151=\"\",\"\",'1. Ordersheet'!B151)","v":""},{"$f":"IF('1. Ordersheet'!I151=\"\",\"\",'1. Ordersheet'!I151)","v":""},{"$f":"IF('1. Ordersheet'!J151=\"\",\"\",'1. Ordersheet'!J151)","v":""},{"$f":"IF('1. Ordersheet'!K151=\"\",\"\",'1. Ordersheet'!K151)","v":""},{"$f":"IF('1. Ordersheet'!M151=\"\",\"\",'1. Ordersheet'!M151)","v":""},null,null,{"$f":"IF('1. Ordersheet'!AR151=\"\",\"\",'1. Ordersheet'!AR151)","v":""},{"$f":"IF('1. Ordersheet'!AE151=\"\",\"\",'1. Ordersheet'!AE151)","v":""}]
[{"$f":"IF('1. Ordersheet'!B152=\"\",\"\",'1. Ordersheet'!B152)","v":""},{"$f":"IF('1. Ordersheet'!I152=\"\",\"\",'1. Ordersheet'!I152)","v":""},{"$f":"IF('1. Ordersheet'!J152=\"\",\"\",'1. Ordersheet'!J152)","v":""},{"$f":"IF('1. Ordersheet'!K152=\"\",\"\",'1. Ordersheet'!K152)","v":""},{"$f":"IF('1. Ordersheet'!M152=\"\",\"\",'1. Ordersheet'!M152)","v":""},null,null,{"$f":"IF('1. Ordersheet'!AR152=\"\",\"\",'1. Ordersheet'!AR152)","v":""},{"$f":"IF('1. Ordersheet'!AE152=\"\",\"\",'1. Ordersheet'!AE152)","v":""}]
[{"$f":"IF('1. Ordersheet'!B153=\"\",\"\",'1. Ordersheet'!B153)","v":""},{"$f":"IF('1. Ordersheet'!I153=\"\",\"\",'1. Ordersheet'!I153)","v":""},{"$f":"IF('1. Ordersheet'!J153=\"\",\"\",'1. Ordersheet'!J153)","v":""},{"$f":"IF('1. Ordersheet'!K153=\"\",\"\",'1. Ordersheet'!K153)","v":""},{"$f":"IF('1. Ordersheet'!M153=\"\",\"\",'1. Ordersheet'!M153)","v":""},null,null,{"$f":"IF('1. Ordersheet'!AR153=\"\",\"\",'1. Ordersheet'!AR153)","v":""},{"$f":"IF('1. Ordersheet'!AE153=\"\",\"\",'1. Ordersheet'!AE153)","v":""}]
[{"$f":"IF('1. Ordersheet'!B154=\"\",\"\",'1. Ordersheet'!B154)","v":""},{"$f":"IF('1. Ordersheet'!I154=\"\",\"\",'1. Ordersheet'!I154)","v":""},{"$f":"IF('1. Ordersheet'!J154=\"\",\"\",'1. Ordersheet'!J154)","v":""},{"$f":"IF('1. Ordersheet'!K154=\"\",\"\",'1. Ordersheet'!K154)","v":""},{"$f":"IF('1. Ordersheet'!M154=\"\",\"\",'1. Ordersheet'!M154)","v":""},null,null,{"$f":"IF('1. Ordersheet'!AR154=\"\",\"\",'1. Ordersheet'!AR154)","v":""},{"$f":"IF('1. Ordersheet'!AE154=\"\",\"\",'1. Ordersheet'!AE154)","v":""}]
[{"$f":"IF('1. Ordersheet'!B155=\"\",\"\",'1. Ordersheet'!B155)","v":""},{"$f":"IF('1. Ordersheet'!I155=\"\",\"\",'1. Ordersheet'!I155)","v":""},{"$f":"IF('1. Ordersheet'!J155=\"\",\"\",'1. Ordersheet'!J155)","v":""},{"$f":"IF('1. Ordersheet'!K155=\"\",\"\",'1. Ordersheet'!K155)","v":""},{"$f":"IF('1. Ordersheet'!M155=\"\",\"\",'1. Ordersheet'!M155)","v":""},null,null,{"$f":"IF('1. Ordersheet'!AR155=\"\",\"\",'1. Ordersheet'!AR155)","v":""},{"$f":"IF('1. Ordersheet'!AE155=\"\",\"\",'1. Ordersheet'!AE155)","v":""}]
[{"$f":"IF('1. Ordersheet'!B156=\"\",\"\",'1. Ordersheet'!B156)","v":""},{"$f":"IF('1. Ordersheet'!I156=\"\",\"\",'1. Ordersheet'!I156)","v":""},{"$f":"IF('1. Ordersheet'!J156=\"\",\"\",'1. Ordersheet'!J156)","v":""},{"$f":"IF('1. Ordersheet'!K156=\"\",\"\",'1. Ordersheet'!K156)","v":""},{"$f":"IF('1. Ordersheet'!M156=\"\",\"\",'1. Ordersheet'!M156)","v":""},null,null,{"$f":"IF('1. Ordersheet'!AR156=\"\",\"\",'1. Ordersheet'!AR156)","v":""},{"$f":"IF('1. Ordersheet'!AE156=\"\",\"\",'1. Ordersheet'!AE156)","v":""}]
[{"$f":"IF('1. Ordersheet'!B157=\"\",\"\",'1. Ordersheet'!B157)","v":""},{"$f":"IF('1. Ordersheet'!I157=\"\",\"\",'1. Ordersheet'!I157)","v":""},{"$f":"IF('1. Ordersheet'!J157=\"\",\"\",'1. Ordersheet'!J157)","v":""},{"$f":"IF('1. Ordersheet'!K157=\"\",\"\",'1. Ordersheet'!K157)","v":""},{"$f":"IF('1. Ordersheet'!M157=\"\",\"\",'1. Ordersheet'!M157)","v":""},null,null,{"$f":"IF('1. Ordersheet'!AR157=\"\",\"\",'1. Ordersheet'!AR157)","v":""},{"$f":"IF('1. Ordersheet'!AE157=\"\",\"\",'1. Ordersheet'!AE157)","v":""}]
[{"$f":"IF('1. Ordersheet'!B158=\"\",\"\",'1. Ordersheet'!B158)","v":""},{"$f":"IF('1. Ordersheet'!I158=\"\",\"\",'1. Ordersheet'!I158)","v":""},{"$f":"IF('1. Ordersheet'!J158=\"\",\"\",'1. Ordersheet'!J158)","v":""},{"$f":"IF('1. Ordersheet'!K158=\"\",\"\",'1. Ordersheet'!K158)","v":""},{"$f":"IF('1. Ordersheet'!M158=\"\",\"\",'1. Ordersheet'!M158)","v":""},null,null,{"$f":"IF('1. Ordersheet'!AR158=\"\",\"\",'1. Ordersheet'!AR158)","v":""},{"$f":"IF('1. Ordersheet'!AE158=\"\",\"\",'1. Ordersheet'!AE158)","v":""}]
[{"$f":"IF('1. Ordersheet'!B159=\"\",\"\",'1. Ordersheet'!B159)","v":""},{"$f":"IF('1. Ordersheet'!I159=\"\",\"\",'1. Ordersheet'!I159)","v":""},{"$f":"IF('1. Ordersheet'!J159=\"\",\"\",'1. Ordersheet'!J159)","v":""},{"$f":"IF('1. Ordersheet'!K159=\"\",\"\",'1. Ordersheet'!K159)","v":""},{"$f":"IF('1. Ordersheet'!M159=\"\",\"\",'1. Ordersheet'!M159)","v":""},null,null,{"$f":"IF('1. Ordersheet'!AR159=\"\",\"\",'1. Ordersheet'!AR159)","v":""},{"$f":"IF('1. Ordersheet'!AE159=\"\",\"\",'1. Ordersheet'!AE159)","v":""}]
[{"$f":"IF('1. Ordersheet'!B160=\"\",\"\",'1. Ordersheet'!B160)","v":""},{"$f":"IF('1. Ordersheet'!I160=\"\",\"\",'1. Ordersheet'!I160)","v":""},{"$f":"IF('1. Ordersheet'!J160=\"\",\"\",'1. Ordersheet'!J160)","v":""},{"$f":"IF('1. Ordersheet'!K160=\"\",\"\",'1. Ordersheet'!K160)","v":""},{"$f":"IF('1. Ordersheet'!M160=\"\",\"\",'1. Ordersheet'!M160)","v":""},null,null,{"$f":"IF('1. Ordersheet'!AR160=\"\",\"\",'1. Ordersheet'!AR160)","v":""},{"$f":"IF('1. Ordersheet'!AE160=\"\",\"\",'1. Ordersheet'!AE160)","v":""}]
[{"$f":"IF('1. Ordersheet'!B161=\"\",\"\",'1. Ordersheet'!B161)","v":""},{"$f":"IF('1. Ordersheet'!I161=\"\",\"\",'1. Ordersheet'!I161)","v":""},{"$f":"IF('1. Ordersheet'!J161=\"\",\"\",'1. Ordersheet'!J161)","v":""},{"$f":"IF('1. Ordersheet'!K161=\"\",\"\",'1. Ordersheet'!K161)","v":""},{"$f":"IF('1. Ordersheet'!M161=\"\",\"\",'1. Ordersheet'!M161)","v":""},null,null,{"$f":"IF('1. Ordersheet'!AR161=\"\",\"\",'1. Ordersheet'!AR161)","v":""},{"$f":"IF('1. Ordersheet'!AE161=\"\",\"\",'1. Ordersheet'!AE161)","v":""}]
[{"$f":"IF('1. Ordersheet'!B162=\"\",\"\",'1. Ordersheet'!B162)","v":""},{"$f":"IF('1. Ordersheet'!I162=\"\",\"\",'1. Ordersheet'!I162)","v":""},{"$f":"IF('1. Ordersheet'!J162=\"\",\"\",'1. Ordersheet'!J162)","v":""},{"$f":"IF('1. Ordersheet'!K162=\"\",\"\",'1. Ordersheet'!K162)","v":""},{"$f":"IF('1. Ordersheet'!M162=\"\",\"\",'1. Ordersheet'!M162)","v":""},null,null,{"$f":"IF('1. Ordersheet'!AR162=\"\",\"\",'1. Ordersheet'!AR162)","v":""},{"$f":"IF('1. Ordersheet'!AE162=\"\",\"\",'1. Ordersheet'!AE162)","v":""}]
[{"$f":"IF('1. Ordersheet'!B163=\"\",\"\",'1. Ordersheet'!B163)","v":""},{"$f":"IF('1. Ordersheet'!I163=\"\",\"\",'1. Ordersheet'!I163)","v":""},{"$f":"IF('1. Ordersheet'!J163=\"\",\"\",'1. Ordersheet'!J163)","v":""},{"$f":"IF('1. Ordersheet'!K163=\"\",\"\",'1. Ordersheet'!K163)","v":""},{"$f":"IF('1. Ordersheet'!M163=\"\",\"\",'1. Ordersheet'!M163)","v":""},null,null,{"$f":"IF('1. Ordersheet'!AR163=\"\",\"\",'1. Ordersheet'!AR163)","v":""},{"$f":"IF('1. Ordersheet'!AE163=\"\",\"\",'1. Ordersheet'!AE163)","v":""}]
[{"$f":"IF('1. Ordersheet'!B164=\"\",\"\",'1. Ordersheet'!B164)","v":""},{"$f":"IF('1. Ordersheet'!I164=\"\",\"\",'1. Ordersheet'!I164)","v":""},{"$f":"IF('1. Ordersheet'!J164=\"\",\"\",'1. Ordersheet'!J164)","v":""},{"$f":"IF('1. Ordersheet'!K164=\"\",\"\",'1. Ordersheet'!K164)","v":""},{"$f":"IF('1. Ordersheet'!M164=\"\",\"\",'1. Ordersheet'!M164)","v":""},null,null,{"$f":"IF('1. Ordersheet'!AR164=\"\",\"\",'1. Ordersheet'!AR164)","v":""},{"$f":"IF('1. Ordersheet'!AE164=\"\",\"\",'1. Ordersheet'!AE164)","v":""}]
[{"$f":"IF('1. Ordersheet'!B165=\"\",\"\",'1. Ordersheet'!B165)","v":""},{"$f":"IF('1. Ordersheet'!I165=\"\",\"\",'1. Ordersheet'!I165)","v":""},{"$f":"IF('1. Ordersheet'!J165=\"\",\"\",'1. Ordersheet'!J165)","v":""},{"$f":"IF('1. Ordersheet'!K165=\"\",\"\",'1. Ordersheet'!K165)","v":""},{"$f":"IF('1. Ordersheet'!M165=\"\",\"\",'1. Ordersheet'!M165)","v":""},null,null,{"$f":"IF('1. Ordersheet'!AR165=\"\",\"\",'1. Ordersheet'!AR165)","v":""},{"$f":"IF('1. Ordersheet'!AE165=\"\",\"\",'1. Ordersheet'!AE165)","v":""}]
[{"$f":"IF('1. Ordersheet'!B166=\"\",\"\",'1. Ordersheet'!B166)","v":""},{"$f":"IF('1. Ordersheet'!I166=\"\",\"\",'1. Ordersheet'!I166)","v":""},{"$f":"IF('1. Ordersheet'!J166=\"\",\"\",'1. Ordersheet'!J166)","v":""},{"$f":"IF('1. Ordersheet'!K166=\"\",\"\",'1. Ordersheet'!K166)","v":""},{"$f":"IF('1. Ordersheet'!M166=\"\",\"\",'1. Ordersheet'!M166)","v":""},null,null,{"$f":"IF('1. Ordersheet'!AR166=\"\",\"\",'1. Ordersheet'!AR166)","v":""},{"$f":"IF('1. Ordersheet'!AE166=\"\",\"\",'1. Ordersheet'!AE166)","v":""}]
[{"$f":"IF('1. Ordersheet'!B167=\"\",\"\",'1. Ordersheet'!B167)","v":""},{"$f":"IF('1. Ordersheet'!I167=\"\",\"\",'1. Ordersheet'!I167)","v":""},{"$f":"IF('1. Ordersheet'!J167=\"\",\"\",'1. Ordersheet'!J167)","v":""},{"$f":"IF('1. Ordersheet'!K167=\"\",\"\",'1. Ordersheet'!K167)","v":""},{"$f":"IF('1. Ordersheet'!M167=\"\",\"\",'1. Ordersheet'!M167)","v":""},null,null,{"$f":"IF('1. Ordersheet'!AR167=\"\",\"\",'1. Ordersheet'!AR167)","v":""},{"$f":"IF('1. Ordersheet'!AE167=\"\",\"\",'1. Ordersheet'!AE167)","v":""}]
[{"$f":"IF('1. Ordersheet'!B168=\"\",\"\",'1. Ordersheet'!B168)","v":""},{"$f":"IF('1. Ordersheet'!I168=\"\",\"\",'1. Ordersheet'!I168)","v":""},{"$f":"IF('1. Ordersheet'!J168=\"\",\"\",'1. Ordersheet'!J168)","v":""},{"$f":"IF('1. Ordersheet'!K168=\"\",\"\",'1. Ordersheet'!K168)","v":""},{"$f":"IF('1. Ordersheet'!M168=\"\",\"\",'1. Ordersheet'!M168)","v":""},null,null,{"$f":"IF('1. Ordersheet'!AR168=\"\",\"\",'1. Ordersheet'!AR168)","v":""},{"$f":"IF('1. Ordersheet'!AE168=\"\",\"\",'1. Ordersheet'!AE168)","v":""}]
[{"$f":"IF('1. Ordersheet'!B169=\"\",\"\",'1. Ordersheet'!B169)","v":""},{"$f":"IF('1. Ordersheet'!I169=\"\",\"\",'1. Ordersheet'!I169)","v":""},{"$f":"IF('1. Ordersheet'!J169=\"\",\"\",'1. Ordersheet'!J169)","v":""},{"$f":"IF('1. Ordersheet'!K169=\"\",\"\",'1. Ordersheet'!K169)","v":""},{"$f":"IF('1. Ordersheet'!M169=\"\",\"\",'1. Ordersheet'!M169)","v":""},null,null,{"$f":"IF('1. Ordersheet'!AR169=\"\",\"\",'1. Ordersheet'!AR169)","v":""},{"$f":"IF('1. Ordersheet'!AE169=\"\",\"\",'1. Ordersheet'!AE169)","v":""}]
[{"$f":"IF('1. Ordersheet'!B170=\"\",\"\",'1. Ordersheet'!B170)","v":""},{"$f":"IF('1. Ordersheet'!I170=\"\",\"\",'1. Ordersheet'!I170)","v":""},{"$f":"IF('1. Ordersheet'!J170=\"\",\"\",'1. Ordersheet'!J170)","v":""},{"$f":"IF('1. Ordersheet'!K170=\"\",\"\",'1. Ordersheet'!K170)","v":""},{"$f":"IF('1. Ordersheet'!M170=\"\",\"\",'1. Ordersheet'!M170)","v":""},null,null,{"$f":"IF('1. Ordersheet'!AR170=\"\",\"\",'1. Ordersheet'!AR170)","v":""},{"$f":"IF('1. Ordersheet'!AE170=\"\",\"\",'1. Ordersheet'!AE170)","v":""}]
[{"$f":"IF('1. Ordersheet'!B171=\"\",\"\",'1. Ordersheet'!B171)","v":""},{"$f":"IF('1. Ordersheet'!I171=\"\",\"\",'1. Ordersheet'!I171)","v":""},{"$f":"IF('1. Ordersheet'!J171=\"\",\"\",'1. Ordersheet'!J171)","v":""},{"$f":"IF('1. Ordersheet'!K171=\"\",\"\",'1. Ordersheet'!K171)","v":""},{"$f":"IF('1. Ordersheet'!M171=\"\",\"\",'1. Ordersheet'!M171)","v":""},null,null,{"$f":"IF('1. Ordersheet'!AR171=\"\",\"\",'1. Ordersheet'!AR171)","v":""},{"$f":"IF('1. Ordersheet'!AE171=\"\",\"\",'1. Ordersheet'!AE171)","v":""}]
[{"$f":"IF('1. Ordersheet'!B172=\"\",\"\",'1. Ordersheet'!B172)","v":""},{"$f":"IF('1. Ordersheet'!I172=\"\",\"\",'1. Ordersheet'!I172)","v":""},{"$f":"IF('1. Ordersheet'!J172=\"\",\"\",'1. Ordersheet'!J172)","v":""},{"$f":"IF('1. Ordersheet'!K172=\"\",\"\",'1. Ordersheet'!K172)","v":""},{"$f":"IF('1. Ordersheet'!M172=\"\",\"\",'1. Ordersheet'!M172)","v":""},null,null,{"$f":"IF('1. Ordersheet'!AR172=\"\",\"\",'1. Ordersheet'!AR172)","v":""},{"$f":"IF('1. Ordersheet'!AE172=\"\",\"\",'1. Ordersheet'!AE172)","v":""}]
[{"$f":"IF('1. Ordersheet'!B173=\"\",\"\",'1. Ordersheet'!B173)","v":""},{"$f":"IF('1. Ordersheet'!I173=\"\",\"\",'1. Ordersheet'!I173)","v":""},{"$f":"IF('1. Ordersheet'!J173=\"\",\"\",'1. Ordersheet'!J173)","v":""},{"$f":"IF('1. Ordersheet'!K173=\"\",\"\",'1. Ordersheet'!K173)","v":""},{"$f":"IF('1. Ordersheet'!M173=\"\",\"\",'1. Ordersheet'!M173)","v":""},null,null,{"$f":"IF('1. Ordersheet'!AR173=\"\",\"\",'1. Ordersheet'!AR173)","v":""},{"$f":"IF('1. Ordersheet'!AE173=\"\",\"\",'1. Ordersheet'!AE173)","v":""}]
[{"$f":"IF('1. Ordersheet'!B174=\"\",\"\",'1. Ordersheet'!B174)","v":""},{"$f":"IF('1. Ordersheet'!I174=\"\",\"\",'1. Ordersheet'!I174)","v":""},{"$f":"IF('1. Ordersheet'!J174=\"\",\"\",'1. Ordersheet'!J174)","v":""},{"$f":"IF('1. Ordersheet'!K174=\"\",\"\",'1. Ordersheet'!K174)","v":""},{"$f":"IF('1. Ordersheet'!M174=\"\",\"\",'1. Ordersheet'!M174)","v":""},null,null,{"$f":"IF('1. Ordersheet'!AR174=\"\",\"\",'1. Ordersheet'!AR174)","v":""},{"$f":"IF('1. Ordersheet'!AE174=\"\",\"\",'1. Ordersheet'!AE174)","v":""}]
[{"$f":"IF('1. Ordersheet'!B175=\"\",\"\",'1. Ordersheet'!B175)","v":""},{"$f":"IF('1. Ordersheet'!I175=\"\",\"\",'1. Ordersheet'!I175)","v":""},{"$f":"IF('1. Ordersheet'!J175=\"\",\"\",'1. Ordersheet'!J175)","v":""},{"$f":"IF('1. Ordersheet'!K175=\"\",\"\",'1. Ordersheet'!K175)","v":""},{"$f":"IF('1. Ordersheet'!M175=\"\",\"\",'1. Ordersheet'!M175)","v":""},null,null,{"$f":"IF('1. Ordersheet'!AR175=\"\",\"\",'1. Ordersheet'!AR175)","v":""},{"$f":"IF('1. Ordersheet'!AE175=\"\",\"\",'1. Ordersheet'!AE175)","v":""}]
[{"$f":"IF('1. Ordersheet'!B176=\"\",\"\",'1. Ordersheet'!B176)","v":""},{"$f":"IF('1. Ordersheet'!I176=\"\",\"\",'1. Ordersheet'!I176)","v":""},{"$f":"IF('1. Ordersheet'!J176=\"\",\"\",'1. Ordersheet'!J176)","v":""},{"$f":"IF('1. Ordersheet'!K176=\"\",\"\",'1. Ordersheet'!K176)","v":""},{"$f":"IF('1. Ordersheet'!M176=\"\",\"\",'1. Ordersheet'!M176)","v":""},null,null,{"$f":"IF('1. Ordersheet'!AR176=\"\",\"\",'1. Ordersheet'!AR176)","v":""},{"$f":"IF('1. Ordersheet'!AE176=\"\",\"\",'1. Ordersheet'!AE176)","v":""}]
[{"$f":"IF('1. Ordersheet'!B177=\"\",\"\",'1. Ordersheet'!B177)","v":""},{"$f":"IF('1. Ordersheet'!I177=\"\",\"\",'1. Ordersheet'!I177)","v":""},{"$f":"IF('1. Ordersheet'!J177=\"\",\"\",'1. Ordersheet'!J177)","v":""},{"$f":"IF('1. Ordersheet'!K177=\"\",\"\",'1. Ordersheet'!K177)","v":""},{"$f":"IF('1. Ordersheet'!M177=\"\",\"\",'1. Ordersheet'!M177)","v":""},null,null,{"$f":"IF('1. Ordersheet'!AR177=\"\",\"\",'1. Ordersheet'!AR177)","v":""},{"$f":"IF('1. Ordersheet'!AE177=\"\",\"\",'1. Ordersheet'!AE177)","v":""}]
[{"$f":"IF('1. Ordersheet'!B178=\"\",\"\",'1. Ordersheet'!B178)","v":""},{"$f":"IF('1. Ordersheet'!I178=\"\",\"\",'1. Ordersheet'!I178)","v":""},{"$f":"IF('1. Ordersheet'!J178=\"\",\"\",'1. Ordersheet'!J178)","v":""},{"$f":"IF('1. Ordersheet'!K178=\"\",\"\",'1. Ordersheet'!K178)","v":""},{"$f":"IF('1. Ordersheet'!M178=\"\",\"\",'1. Ordersheet'!M178)","v":""},null,null,{"$f":"IF('1. Ordersheet'!AR178=\"\",\"\",'1. Ordersheet'!AR178)","v":""},{"$f":"IF('1. Ordersheet'!AE178=\"\",\"\",'1. Ordersheet'!AE178)","v":""}]
[{"$f":"IF('1. Ordersheet'!B179=\"\",\"\",'1. Ordersheet'!B179)","v":""},{"$f":"IF('1. Ordersheet'!I179=\"\",\"\",'1. Ordersheet'!I179)","v":""},{"$f":"IF('1. Ordersheet'!J179=\"\",\"\",'1. Ordersheet'!J179)","v":""},{"$f":"IF('1. Ordersheet'!K179=\"\",\"\",'1. Ordersheet'!K179)","v":""},{"$f":"IF('1. Ordersheet'!M179=\"\",\"\",'1. Ordersheet'!M179)","v":""},null,null,{"$f":"IF('1. Ordersheet'!AR179=\"\",\"\",'1. Ordersheet'!AR179)","v":""},{"$f":"IF('1. Ordersheet'!AE179=\"\",\"\",'1. Ordersheet'!AE179)","v":""}]
[{"$f":"IF('1. Ordersheet'!B180=\"\",\"\",'1. Ordersheet'!B180)","v":""},{"$f":"IF('1. Ordersheet'!I180=\"\",\"\",'1. Ordersheet'!I180)","v":""},{"$f":"IF('1. Ordersheet'!J180=\"\",\"\",'1. Ordersheet'!J180)","v":""},{"$f":"IF('1. Ordersheet'!K180=\"\",\"\",'1. Ordersheet'!K180)","v":""},{"$f":"IF('1. Ordersheet'!M180=\"\",\"\",'1. Ordersheet'!M180)","v":""},null,null,{"$f":"IF('1. Ordersheet'!AR180=\"\",\"\",'1. Ordersheet'!AR180)","v":""},{"$f":"IF('1. Ordersheet'!AE180=\"\",\"\",'1. Ordersheet'!AE180)","v":""}]
[{"$f":"IF('1. Ordersheet'!B181=\"\",\"\",'1. Ordersheet'!B181)","v":""},{"$f":"IF('1. Ordersheet'!I181=\"\",\"\",'1. Ordersheet'!I181)","v":""},{"$f":"IF('1. Ordersheet'!J181=\"\",\"\",'1. Ordersheet'!J181)","v":""},{"$f":"IF('1. Ordersheet'!K181=\"\",\"\",'1. Ordersheet'!K181)","v":""},{"$f":"IF('1. Ordersheet'!M181=\"\",\"\",'1. Ordersheet'!M181)","v":""},null,null,{"$f":"IF('1. Ordersheet'!AR181=\"\",\"\",'1. Ordersheet'!AR181)","v":""},{"$f":"IF('1. Ordersheet'!AE181=\"\",\"\",'1. Ordersheet'!AE181)","v":""}]
[{"$f":"IF('1. Ordersheet'!B182=\"\",\"\",'1. Ordersheet'!B182)","v":""},{"$f":"IF('1. Ordersheet'!I182=\"\",\"\",'1. Ordersheet'!I182)","v":""},{"$f":"IF('1. Ordersheet'!J182=\"\",\"\",'1. Ordersheet'!J182)","v":""},{"$f":"IF('1. Ordersheet'!K182=\"\",\"\",'1. Ordersheet'!K182)","v":""},{"$f":"IF('1. Ordersheet'!M182=\"\",\"\",'1. Ordersheet'!M182)","v":""},null,null,{"$f":"IF('1. Ordersheet'!AR182=\"\",\"\",'1. Ordersheet'!AR182)","v":""},{"$f":"IF('1. Ordersheet'!AE182=\"\",\"\",'1. Ordersheet'!AE182)","v":""}]
[{"$f":"IF('1. Ordersheet'!B183=\"\",\"\",'1. Ordersheet'!B183)","v":""},{"$f":"IF('1. Ordersheet'!I183=\"\",\"\",'1. Ordersheet'!I183)","v":""},{"$f":"IF('1. Ordersheet'!J183=\"\",\"\",'1. Ordersheet'!J183)","v":""},{"$f":"IF('1. Ordersheet'!K183=\"\",\"\",'1. Ordersheet'!K183)","v":""},{"$f":"IF('1. Ordersheet'!M183=\"\",\"\",'1. Ordersheet'!M183)","v":""},null,null,{"$f":"IF('1. Ordersheet'!AR183=\"\",\"\",'1. Ordersheet'!AR183)","v":""},{"$f":"IF('1. Ordersheet'!AE183=\"\",\"\",'1. Ordersheet'!AE183)","v":""}]
[{"$f":"IF('1. Ordersheet'!B184=\"\",\"\",'1. Ordersheet'!B184)","v":""},{"$f":"IF('1. Ordersheet'!I184=\"\",\"\",'1. Ordersheet'!I184)","v":""},{"$f":"IF('1. Ordersheet'!J184=\"\",\"\",'1. Ordersheet'!J184)","v":""},{"$f":"IF('1. Ordersheet'!K184=\"\",\"\",'1. Ordersheet'!K184)","v":""},{"$f":"IF('1. Ordersheet'!M184=\"\",\"\",'1. Ordersheet'!M184)","v":""},null,null,{"$f":"IF('1. Ordersheet'!AR184=\"\",\"\",'1. Ordersheet'!AR184)","v":""},{"$f":"IF('1. Ordersheet'!AE184=\"\",\"\",'1. Ordersheet'!AE184)","v":""}]
[{"$f":"IF('1. Ordersheet'!B185=\"\",\"\",'1. Ordersheet'!B185)","v":""},{"$f":"IF('1. Ordersheet'!I185=\"\",\"\",'1. Ordersheet'!I185)","v":""},{"$f":"IF('1. Ordersheet'!J185=\"\",\"\",'1. Ordersheet'!J185)","v":""},{"$f":"IF('1. Ordersheet'!K185=\"\",\"\",'1. Ordersheet'!K185)","v":""},{"$f":"IF('1. Ordersheet'!M185=\"\",\"\",'1. Ordersheet'!M185)","v":""},null,null,{"$f":"IF('1. Ordersheet'!AR185=\"\",\"\",'1. Ordersheet'!AR185)","v":""},{"$f":"IF('1. Ordersheet'!AE185=\"\",\"\",'1. Ordersheet'!AE185)","v":""}]
[{"$f":"IF('1. Ordersheet'!B186=\"\",\"\",'1. Ordersheet'!B186)","v":""},{"$f":"IF('1. Ordersheet'!I186=\"\",\"\",'1. Ordersheet'!I186)","v":""},{"$f":"IF('1. Ordersheet'!J186=\"\",\"\",'1. Ordersheet'!J186)","v":""},{"$f":"IF('1. Ordersheet'!K186=\"\",\"\",'1. Ordersheet'!K186)","v":""},{"$f":"IF('1. Ordersheet'!M186=\"\",\"\",'1. Ordersheet'!M186)","v":""},null,null,{"$f":"IF('1. Ordersheet'!AR186=\"\",\"\",'1. Ordersheet'!AR186)","v":""},{"$f":"IF('1. Ordersheet'!AE186=\"\",\"\",'1. Ordersheet'!AE186)","v":""}]
[{"$f":"IF('1. Ordersheet'!B187=\"\",\"\",'1. Ordersheet'!B187)","v":""},{"$f":"IF('1. Ordersheet'!I187=\"\",\"\",'1. Ordersheet'!I187)","v":""},{"$f":"IF('1. Ordersheet'!J187=\"\",\"\",'1. Ordersheet'!J187)","v":""},{"$f":"IF('1. Ordersheet'!K187=\"\",\"\",'1. Ordersheet'!K187)","v":""},{"$f":"IF('1. Ordersheet'!M187=\"\",\"\",'1. Ordersheet'!M187)","v":""},null,null,{"$f":"IF('1. Ordersheet'!AR187=\"\",\"\",'1. Ordersheet'!AR187)","v":""},{"$f":"IF('1. Ordersheet'!AE187=\"\",\"\",'1. Ordersheet'!AE187)","v":""}]
[{"$f":"IF('1. Ordersheet'!B188=\"\",\"\",'1. Ordersheet'!B188)","v":""},{"$f":"IF('1. Ordersheet'!I188=\"\",\"\",'1. Ordersheet'!I188)","v":""},{"$f":"IF('1. Ordersheet'!J188=\"\",\"\",'1. Ordersheet'!J188)","v":""},{"$f":"IF('1. Ordersheet'!K188=\"\",\"\",'1. Ordersheet'!K188)","v":""},{"$f":"IF('1. Ordersheet'!M188=\"\",\"\",'1. Ordersheet'!M188)","v":""},null,null,{"$f":"IF('1. Ordersheet'!AR188=\"\",\"\",'1. Ordersheet'!AR188)","v":""},{"$f":"IF('1. Ordersheet'!AE188=\"\",\"\",'1. Ordersheet'!AE188)","v":""}]
[{"$f":"IF('1. Ordersheet'!B189=\"\",\"\",'1. Ordersheet'!B189)","v":""},{"$f":"IF('1. Ordersheet'!I189=\"\",\"\",'1. Ordersheet'!I189)","v":""},{"$f":"IF('1. Ordersheet'!J189=\"\",\"\",'1. Ordersheet'!J189)","v":""},{"$f":"IF('1. Ordersheet'!K189=\"\",\"\",'1. Ordersheet'!K189)","v":""},{"$f":"IF('1. Ordersheet'!M189=\"\",\"\",'1. Ordersheet'!M189)","v":""},null,null,{"$f":"IF('1. Ordersheet'!AR189=\"\",\"\",'1. Ordersheet'!AR189)","v":""},{"$f":"IF('1. Ordersheet'!AE189=\"\",\"\",'1. Ordersheet'!AE189)","v":""}]
[{"$f":"IF('1. Ordersheet'!B190=\"\",\"\",'1. Ordersheet'!B190)","v":""},{"$f":"IF('1. Ordersheet'!I190=\"\",\"\",'1. Ordersheet'!I190)","v":""},{"$f":"IF('1. Ordersheet'!J190=\"\",\"\",'1. Ordersheet'!J190)","v":""},{"$f":"IF('1. Ordersheet'!K190=\"\",\"\",'1. Ordersheet'!K190)","v":""},{"$f":"IF('1. Ordersheet'!M190=\"\",\"\",'1. Ordersheet'!M190)","v":""},null,null,{"$f":"IF('1. Ordersheet'!AR190=\"\",\"\",'1. Ordersheet'!AR190)","v":""},{"$f":"IF('1. Ordersheet'!AE190=\"\",\"\",'1. Ordersheet'!AE190)","v":""}]
[{"$f":"IF('1. Ordersheet'!B191=\"\",\"\",'1. Ordersheet'!B191)","v":""},{"$f":"IF('1. Ordersheet'!I191=\"\",\"\",'1. Ordersheet'!I191)","v":""},{"$f":"IF('1. Ordersheet'!J191=\"\",\"\",'1. Ordersheet'!J191)","v":""},{"$f":"IF('1. Ordersheet'!K191=\"\",\"\",'1. Ordersheet'!K191)","v":""},{"$f":"IF('1. Ordersheet'!M191=\"\",\"\",'1. Ordersheet'!M191)","v":""},null,null,{"$f":"IF('1. Ordersheet'!AR191=\"\",\"\",'1. Ordersheet'!AR191)","v":""},{"$f":"IF('1. Ordersheet'!AE191=\"\",\"\",'1. Ordersheet'!AE191)","v":""}]
[{"$f":"IF('1. Ordersheet'!B192=\"\",\"\",'1. Ordersheet'!B192)","v":""},{"$f":"IF('1. Ordersheet'!I192=\"\",\"\",'1. Ordersheet'!I192)","v":""},{"$f":"IF('1. Ordersheet'!J192=\"\",\"\",'1. Ordersheet'!J192)","v":""},{"$f":"IF('1. Ordersheet'!K192=\"\",\"\",'1. Ordersheet'!K192)","v":""},{"$f":"IF('1. Ordersheet'!M192=\"\",\"\",'1. Ordersheet'!M192)","v":""},null,null,{"$f":"IF('1. Ordersheet'!AR192=\"\",\"\",'1. Ordersheet'!AR192)","v":""},{"$f":"IF('1. Ordersheet'!AE192=\"\",\"\",'1. Ordersheet'!AE192)","v":""}]
[{"$f":"IF('1. Ordersheet'!B193=\"\",\"\",'1. Ordersheet'!B193)","v":""},{"$f":"IF('1. Ordersheet'!I193=\"\",\"\",'1. Ordersheet'!I193)","v":""},{"$f":"IF('1. Ordersheet'!J193=\"\",\"\",'1. Ordersheet'!J193)","v":""},{"$f":"IF('1. Ordersheet'!K193=\"\",\"\",'1. Ordersheet'!K193)","v":""},{"$f":"IF('1. Ordersheet'!M193=\"\",\"\",'1. Ordersheet'!M193)","v":""},null,null,{"$f":"IF('1. Ordersheet'!AR193=\"\",\"\",'1. Ordersheet'!AR193)","v":""},{"$f":"IF('1. Ordersheet'!AE193=\"\",\"\",'1. Ordersheet'!AE193)","v":""}]
[{"$f":"IF('1. Ordersheet'!B194=\"\",\"\",'1. Ordersheet'!B194)","v":""},{"$f":"IF('1. Ordersheet'!I194=\"\",\"\",'1. Ordersheet'!I194)","v":""},{"$f":"IF('1. Ordersheet'!J194=\"\",\"\",'1. Ordersheet'!J194)","v":""},{"$f":"IF('1. Ordersheet'!K194=\"\",\"\",'1. Ordersheet'!K194)","v":""},{"$f":"IF('1. Ordersheet'!M194=\"\",\"\",'1. Ordersheet'!M194)","v":""},null,null,{"$f":"IF('1. Ordersheet'!AR194=\"\",\"\",'1. Ordersheet'!AR194)","v":""},{"$f":"IF('1. Ordersheet'!AE194=\"\",\"\",'1. Ordersheet'!AE194)","v":""}]
[{"$f":"IF('1. Ordersheet'!B195=\"\",\"\",'1. Ordersheet'!B195)","v":""},{"$f":"IF('1. Ordersheet'!I195=\"\",\"\",'1. Ordersheet'!I195)","v":""},{"$f":"IF('1. Ordersheet'!J195=\"\",\"\",'1. Ordersheet'!J195)","v":""},{"$f":"IF('1. Ordersheet'!K195=\"\",\"\",'1. Ordersheet'!K195)","v":""},{"$f":"IF('1. Ordersheet'!M195=\"\",\"\",'1. Ordersheet'!M195)","v":""},null,null,{"$f":"IF('1. Ordersheet'!AR195=\"\",\"\",'1. Ordersheet'!AR195)","v":""},{"$f":"IF('1. Ordersheet'!AE195=\"\",\"\",'1. Ordersheet'!AE195)","v":""}]
[{"$f":"IF('1. Ordersheet'!B196=\"\",\"\",'1. Ordersheet'!B196)","v":""},{"$f":"IF('1. Ordersheet'!I196=\"\",\"\",'1. Ordersheet'!I196)","v":""},{"$f":"IF('1. Ordersheet'!J196=\"\",\"\",'1. Ordersheet'!J196)","v":""},{"$f":"IF('1. Ordersheet'!K196=\"\",\"\",'1. Ordersheet'!K196)","v":""},{"$f":"IF('1. Ordersheet'!M196=\"\",\"\",'1. Ordersheet'!M196)","v":""},null,null,{"$f":"IF('1. Ordersheet'!AR196=\"\",\"\",'1. Ordersheet'!AR196)","v":""},{"$f":"IF('1. Ordersheet'!AE196=\"\",\"\",'1. Ordersheet'!AE196)","v":""}]
[{"$f":"IF('1. Ordersheet'!B197=\"\",\"\",'1. Ordersheet'!B197)","v":""},{"$f":"IF('1. Ordersheet'!I197=\"\",\"\",'1. Ordersheet'!I197)","v":""},{"$f":"IF('1. Ordersheet'!J197=\"\",\"\",'1. Ordersheet'!J197)","v":""},{"$f":"IF('1. Ordersheet'!K197=\"\",\"\",'1. Ordersheet'!K197)","v":""},{"$f":"IF('1. Ordersheet'!M197=\"\",\"\",'1. Ordersheet'!M197)","v":""},null,null,{"$f":"IF('1. Ordersheet'!AR197=\"\",\"\",'1. Ordersheet'!AR197)","v":""},{"$f":"IF('1. Ordersheet'!AE197=\"\",\"\",'1. Ordersheet'!AE197)","v":""}]
[{"$f":"IF('1. Ordersheet'!B198=\"\",\"\",'1. Ordersheet'!B198)","v":""},{"$f":"IF('1. Ordersheet'!I198=\"\",\"\",'1. Ordersheet'!I198)","v":""},{"$f":"IF('1. Ordersheet'!J198=\"\",\"\",'1. Ordersheet'!J198)","v":""},{"$f":"IF('1. Ordersheet'!K198=\"\",\"\",'1. Ordersheet'!K198)","v":""},{"$f":"IF('1. Ordersheet'!M198=\"\",\"\",'1. Ordersheet'!M198)","v":""},null,null,{"$f":"IF('1. Ordersheet'!AR198=\"\",\"\",'1. Ordersheet'!AR198)","v":""},{"$f":"IF('1. Ordersheet'!AE198=\"\",\"\",'1. Ordersheet'!AE198)","v":""}]
[{"$f":"IF('1. Ordersheet'!B199=\"\",\"\",'1. Ordersheet'!B199)","v":""},{"$f":"IF('1. Ordersheet'!I199=\"\",\"\",'1. Ordersheet'!I199)","v":""},{"$f":"IF('1. Ordersheet'!J199=\"\",\"\",'1. Ordersheet'!J199)","v":""},{"$f":"IF('1. Ordersheet'!K199=\"\",\"\",'1. Ordersheet'!K199)","v":""},{"$f":"IF('1. Ordersheet'!M199=\"\",\"\",'1. Ordersheet'!M199)","v":""},null,null,{"$f":"IF('1. Ordersheet'!AR199=\"\",\"\",'1. Ordersheet'!AR199)","v":""},{"$f":"IF('1. Ordersheet'!AE199=\"\",\"\",'1. Ordersheet'!AE199)","v":""}]
[{"$f":"IF('1. Ordersheet'!B200=\"\",\"\",'1. Ordersheet'!B200)","v":""},{"$f":"IF('1. Ordersheet'!I200=\"\",\"\",'1. Ordersheet'!I200)","v":""},{"$f":"IF('1. Ordersheet'!J200=\"\",\"\",'1. Ordersheet'!J200)","v":""},{"$f":"IF('1. Ordersheet'!K200=\"\",\"\",'1. Ordersheet'!K200)","v":""},{"$f":"IF('1. Ordersheet'!M200=\"\",\"\",'1. Ordersheet'!M200)","v":""},null,null,{"$f":"IF('1. Ordersheet'!AR200=\"\",\"\",'1. Ordersheet'!AR200)","v":""},{"$f":"IF('1. Ordersheet'!AE200=\"\",\"\",'1. Ordersheet'!AE200)","v":""}]
[{"$f":"IF('1. Ordersheet'!B201=\"\",\"\",'1. Ordersheet'!B201)","v":""},{"$f":"IF('1. Ordersheet'!I201=\"\",\"\",'1. Ordersheet'!I201)","v":""},{"$f":"IF('1. Ordersheet'!J201=\"\",\"\",'1. Ordersheet'!J201)","v":""},{"$f":"IF('1. Ordersheet'!K201=\"\",\"\",'1. Ordersheet'!K201)","v":""},{"$f":"IF('1. Ordersheet'!M201=\"\",\"\",'1. Ordersheet'!M201)","v":""},null,null,{"$f":"IF('1. Ordersheet'!AR201=\"\",\"\",'1. Ordersheet'!AR201)","v":""},{"$f":"IF('1. Ordersheet'!AE201=\"\",\"\",'1. Ordersheet'!AE201)","v":""}]
[{"$f":"IF('1. Ordersheet'!B202=\"\",\"\",'1. Ordersheet'!B202)","v":""},{"$f":"IF('1. Ordersheet'!I202=\"\",\"\",'1. Ordersheet'!I202)","v":""},{"$f":"IF('1. Ordersheet'!J202=\"\",\"\",'1. Ordersheet'!J202)","v":""},{"$f":"IF('1. Ordersheet'!K202=\"\",\"\",'1. Ordersheet'!K202)","v":""},{"$f":"IF('1. Ordersheet'!M202=\"\",\"\",'1. Ordersheet'!M202)","v":""},null,null,{"$f":"IF('1. Ordersheet'!AR202=\"\",\"\",'1. Ordersheet'!AR202)","v":""},{"$f":"IF('1. Ordersheet'!AE202=\"\",\"\",'1. Ordersheet'!AE202)","v":""}]
[{"$f":"IF('1. Ordersheet'!B203=\"\",\"\",'1. Ordersheet'!B203)","v":""},{"$f":"IF('1. Ordersheet'!I203=\"\",\"\",'1. Ordersheet'!I203)","v":""},{"$f":"IF('1. Ordersheet'!J203=\"\",\"\",'1. Ordersheet'!J203)","v":""},{"$f":"IF('1. Ordersheet'!K203=\"\",\"\",'1. Ordersheet'!K203)","v":""},{"$f":"IF('1. Ordersheet'!M203=\"\",\"\",'1. Ordersheet'!M203)","v":""},null,null,{"$f":"IF('1. Ordersheet'!AR203=\"\",\"\",'1. Ordersheet'!AR203)","v":""},{"$f":"IF('1. Ordersheet'!AE203=\"\",\"\",'1. Ordersheet'!AE203)","v":""}]
[{"$f":"IF('1. Ordersheet'!B204=\"\",\"\",'1. Ordersheet'!B204)","v":""},{"$f":"IF('1. Ordersheet'!I204=\"\",\"\",'1. Ordersheet'!I204)","v":""},{"$f":"IF('1. Ordersheet'!J204=\"\",\"\",'1. Ordersheet'!J204)","v":""},{"$f":"IF('1. Ordersheet'!K204=\"\",\"\",'1. Ordersheet'!K204)","v":""},{"$f":"IF('1. Ordersheet'!M204=\"\",\"\",'1. Ordersheet'!M204)","v":""},null,null,{"$f":"IF('1. Ordersheet'!AR204=\"\",\"\",'1. Ordersheet'!AR204)","v":""},{"$f":"IF('1. Ordersheet'!AE204=\"\",\"\",'1. Ordersheet'!AE204)","v":""}]
[{"$f":"IF('1. Ordersheet'!B205=\"\",\"\",'1. Ordersheet'!B205)","v":""},{"$f":"IF('1. Ordersheet'!I205=\"\",\"\",'1. Ordersheet'!I205)","v":""},{"$f":"IF('1. Ordersheet'!J205=\"\",\"\",'1. Ordersheet'!J205)","v":""},{"$f":"IF('1. Ordersheet'!K205=\"\",\"\",'1. Ordersheet'!K205)","v":""},{"$f":"IF('1. Ordersheet'!M205=\"\",\"\",'1. Ordersheet'!M205)","v":""},null,null,{"$f":"IF('1. Ordersheet'!AR205=\"\",\"\",'1. Ordersheet'!AR205)","v":""},{"$f":"IF('1. Ordersheet'!AE205=\"\",\"\",'1. Ordersheet'!AE205)","v":""}]
[{"$f":"IF('1. Ordersheet'!B206=\"\",\"\",'1. Ordersheet'!B206)","v":""},{"$f":"IF('1. Ordersheet'!I206=\"\",\"\",'1. Ordersheet'!I206)","v":""},{"$f":"IF('1. Ordersheet'!J206=\"\",\"\",'1. Ordersheet'!J206)","v":""},{"$f":"IF('1. Ordersheet'!K206=\"\",\"\",'1. Ordersheet'!K206)","v":""},{"$f":"IF('1. Ordersheet'!M206=\"\",\"\",'1. Ordersheet'!M206)","v":""},null,null,{"$f":"IF('1. Ordersheet'!AR206=\"\",\"\",'1. Ordersheet'!AR206)","v":""},{"$f":"IF('1. Ordersheet'!AE206=\"\",\"\",'1. Ordersheet'!AE206)","v":""}]
[{"$f":"IF('1. Ordersheet'!B207=\"\",\"\",'1. Ordersheet'!B207)","v":""},{"$f":"IF('1. Ordersheet'!I207=\"\",\"\",'1. Ordersheet'!I207)","v":""},{"$f":"IF('1. Ordersheet'!J207=\"\",\"\",'1. Ordersheet'!J207)","v":""},{"$f":"IF('1. Ordersheet'!K207=\"\",\"\",'1. Ordersheet'!K207)","v":""},{"$f":"IF('1. Ordersheet'!M207=\"\",\"\",'1. Ordersheet'!M207)","v":""},null,null,{"$f":"IF('1. Ordersheet'!AR207=\"\",\"\",'1. Ordersheet'!AR207)","v":""},{"$f":"IF('1. Ordersheet'!AE207=\"\",\"\",'1. Ordersheet'!AE207)","v":""}]
[{"$f":"IF('1. Ordersheet'!B208=\"\",\"\",'1. Ordersheet'!B208)","v":""},{"$f":"IF('1. Ordersheet'!I208=\"\",\"\",'1. Ordersheet'!I208)","v":""},{"$f":"IF('1. Ordersheet'!J208=\"\",\"\",'1. Ordersheet'!J208)","v":""},{"$f":"IF('1. Ordersheet'!K208=\"\",\"\",'1. Ordersheet'!K208)","v":""},{"$f":"IF('1. Ordersheet'!M208=\"\",\"\",'1. Ordersheet'!M208)","v":""},null,null,{"$f":"IF('1. Ordersheet'!AR208=\"\",\"\",'1. Ordersheet'!AR208)","v":""},{"$f":"IF('1. Ordersheet'!AE208=\"\",\"\",'1. Ordersheet'!AE208)","v":""}]
[{"$f":"IF('1. Ordersheet'!B209=\"\",\"\",'1. Ordersheet'!B209)","v":""},{"$f":"IF('1. Ordersheet'!I209=\"\",\"\",'1. Ordersheet'!I209)","v":""},{"$f":"IF('1. Ordersheet'!J209=\"\",\"\",'1. Ordersheet'!J209)","v":""},{"$f":"IF('1. Ordersheet'!K209=\"\",\"\",'1. Ordersheet'!K209)","v":""},{"$f":"IF('1. Ordersheet'!M209=\"\",\"\",'1. Ordersheet'!M209)","v":""},null,null,{"$f":"IF('1. Ordersheet'!AR209=\"\",\"\",'1. Ordersheet'!AR209)","v":""},{"$f":"IF('1. Ordersheet'!AE209=\"\",\"\",'1. Ordersheet'!AE209)","v":""}]
[{"$f":"IF('1. Ordersheet'!B210=\"\",\"\",'1. Ordersheet'!B210)","v":""},{"$f":"IF('1. Ordersheet'!I210=\"\",\"\",'1. Ordersheet'!I210)","v":""},{"$f":"IF('1. Ordersheet'!J210=\"\",\"\",'1. Ordersheet'!J210)","v":""},{"$f":"IF('1. Ordersheet'!K210=\"\",\"\",'1. Ordersheet'!K210)","v":""},{"$f":"IF('1. Ordersheet'!M210=\"\",\"\",'1. Ordersheet'!M210)","v":""},null,null,{"$f":"IF('1. Ordersheet'!AR210=\"\",\"\",'1. Ordersheet'!AR210)","v":""},{"$f":"IF('1. Ordersheet'!AE210=\"\",\"\",'1. Ordersheet'!AE210)","v":""}]
[{"$f":"IF('1. Ordersheet'!B211=\"\",\"\",'1. Ordersheet'!B211)","v":""},{"$f":"IF('1. Ordersheet'!I211=\"\",\"\",'1. Ordersheet'!I211)","v":""},{"$f":"IF('1. Ordersheet'!J211=\"\",\"\",'1. Ordersheet'!J211)","v":""},{"$f":"IF('1. Ordersheet'!K211=\"\",\"\",'1. Ordersheet'!K211)","v":""},{"$f":"IF('1. Ordersheet'!M211=\"\",\"\",'1. Ordersheet'!M211)","v":""},null,null,{"$f":"IF('1. Ordersheet'!AR211=\"\",\"\",'1. Ordersheet'!AR211)","v":""},{"$f":"IF('1. Ordersheet'!AE211=\"\",\"\",'1. Ordersheet'!AE211)","v":""}]
[{"$f":"IF('1. Ordersheet'!B212=\"\",\"\",'1. Ordersheet'!B212)","v":""},{"$f":"IF('1. Ordersheet'!I212=\"\",\"\",'1. Ordersheet'!I212)","v":""},{"$f":"IF('1. Ordersheet'!J212=\"\",\"\",'1. Ordersheet'!J212)","v":""},{"$f":"IF('1. Ordersheet'!K212=\"\",\"\",'1. Ordersheet'!K212)","v":""},{"$f":"IF('1. Ordersheet'!M212=\"\",\"\",'1. Ordersheet'!M212)","v":""},null,null,{"$f":"IF('1. Ordersheet'!AR212=\"\",\"\",'1. Ordersheet'!AR212)","v":""},{"$f":"IF('1. Ordersheet'!AE212=\"\",\"\",'1. Ordersheet'!AE212)","v":""}]
[{"$f":"IF('1. Ordersheet'!B213=\"\",\"\",'1. Ordersheet'!B213)","v":""},{"$f":"IF('1. Ordersheet'!I213=\"\",\"\",'1. Ordersheet'!I213)","v":""},{"$f":"IF('1. Ordersheet'!J213=\"\",\"\",'1. Ordersheet'!J213)","v":""},{"$f":"IF('1. Ordersheet'!K213=\"\",\"\",'1. Ordersheet'!K213)","v":""},{"$f":"IF('1. Ordersheet'!M213=\"\",\"\",'1. Ordersheet'!M213)","v":""},null,null,{"$f":"IF('1. Ordersheet'!AR213=\"\",\"\",'1. Ordersheet'!AR213)","v":""},{"$f":"IF('1. Ordersheet'!AE213=\"\",\"\",'1. Ordersheet'!AE213)","v":""}]
[{"$f":"IF('1. Ordersheet'!B214=\"\",\"\",'1. Ordersheet'!B214)","v":""},{"$f":"IF('1. Ordersheet'!I214=\"\",\"\",'1. Ordersheet'!I214)","v":""},{"$f":"IF('1. Ordersheet'!J214=\"\",\"\",'1. Ordersheet'!J214)","v":""},{"$f":"IF('1. Ordersheet'!K214=\"\",\"\",'1. Ordersheet'!K214)","v":""},{"$f":"IF('1. Ordersheet'!M214=\"\",\"\",'1. Ordersheet'!M214)","v":""},null,null,{"$f":"IF('1. Ordersheet'!AR214=\"\",\"\",'1. Ordersheet'!AR214)","v":""},{"$f":"IF('1. Ordersheet'!AE214=\"\",\"\",'1. Ordersheet'!AE214)","v":""}]
[{"$f":"IF('1. Ordersheet'!B215=\"\",\"\",'1. Ordersheet'!B215)","v":""},{"$f":"IF('1. Ordersheet'!I215=\"\",\"\",'1. Ordersheet'!I215)","v":""},{"$f":"IF('1. Ordersheet'!J215=\"\",\"\",'1. Ordersheet'!J215)","v":""},{"$f":"IF('1. Ordersheet'!K215=\"\",\"\",'1. Ordersheet'!K215)","v":""},{"$f":"IF('1. Ordersheet'!M215=\"\",\"\",'1. Ordersheet'!M215)","v":""},null,null,{"$f":"IF('1. Ordersheet'!AR215=\"\",\"\",'1. Ordersheet'!AR215)","v":""},{"$f":"IF('1. Ordersheet'!AE215=\"\",\"\",'1. Ordersheet'!AE215)","v":""}]
[{"$f":"IF('1. Ordersheet'!B216=\"\",\"\",'1. Ordersheet'!B216)","v":""},{"$f":"IF('1. Ordersheet'!I216=\"\",\"\",'1. Ordersheet'!I216)","v":""},{"$f":"IF('1. Ordersheet'!J216=\"\",\"\",'1. Ordersheet'!J216)","v":""},{"$f":"IF('1. Ordersheet'!K216=\"\",\"\",'1. Ordersheet'!K216)","v":""},{"$f":"IF('1. Ordersheet'!M216=\"\",\"\",'1. Ordersheet'!M216)","v":""},null,null,{"$f":"IF('1. Ordersheet'!AR216=\"\",\"\",'1. Ordersheet'!AR216)","v":""},{"$f":"IF('1. Ordersheet'!AE216=\"\",\"\",'1. Ordersheet'!AE216)","v":""}]
[{"$f":"IF('1. Ordersheet'!B217=\"\",\"\",'1. Ordersheet'!B217)","v":""},{"$f":"IF('1. Ordersheet'!I217=\"\",\"\",'1. Ordersheet'!I217)","v":""},{"$f":"IF('1. Ordersheet'!J217=\"\",\"\",'1. Ordersheet'!J217)","v":""},{"$f":"IF('1. Ordersheet'!K217=\"\",\"\",'1. Ordersheet'!K217)","v":""},{"$f":"IF('1. Ordersheet'!M217=\"\",\"\",'1. Ordersheet'!M217)","v":""},null,null,{"$f":"IF('1. Ordersheet'!AR217=\"\",\"\",'1. Ordersheet'!AR217)","v":""},{"$f":"IF('1. Ordersheet'!AE217=\"\",\"\",'1. Ordersheet'!AE217)","v":""}]
[{"$f":"IF('1. Ordersheet'!B218=\"\",\"\",'1. Ordersheet'!B218)","v":""},{"$f":"IF('1. Ordersheet'!I218=\"\",\"\",'1. Ordersheet'!I218)","v":""},{"$f":"IF('1. Ordersheet'!J218=\"\",\"\",'1. Ordersheet'!J218)","v":""},{"$f":"IF('1. Ordersheet'!K218=\"\",\"\",'1. Ordersheet'!K218)","v":""},{"$f":"IF('1. Ordersheet'!M218=\"\",\"\",'1. Ordersheet'!M218)","v":""},null,null,{"$f":"IF('1. Ordersheet'!AR218=\"\",\"\",'1. Ordersheet'!AR218)","v":""},{"$f":"IF('1. Ordersheet'!AE218=\"\",\"\",'1. Ordersheet'!AE218)","v":""}]
[{"$f":"IF('1. Ordersheet'!B219=\"\",\"\",'1. Ordersheet'!B219)","v":""},{"$f":"IF('1. Ordersheet'!I219=\"\",\"\",'1. Ordersheet'!I219)","v":""},{"$f":"IF('1. Ordersheet'!J219=\"\",\"\",'1. Ordersheet'!J219)","v":""},{"$f":"IF('1. Ordersheet'!K219=\"\",\"\",'1. Ordersheet'!K219)","v":""},{"$f":"IF('1. Ordersheet'!M219=\"\",\"\",'1. Ordersheet'!M219)","v":""},null,null,{"$f":"IF('1. Ordersheet'!AR219=\"\",\"\",'1. Ordersheet'!AR219)","v":""},{"$f":"IF('1. Ordersheet'!AE219=\"\",\"\",'1. Ordersheet'!AE219)","v":""}]
[{"$f":"IF('1. Ordersheet'!B220=\"\",\"\",'1. Ordersheet'!B220)","v":""},{"$f":"IF('1. Ordersheet'!I220=\"\",\"\",'1. Ordersheet'!I220)","v":""},{"$f":"IF('1. Ordersheet'!J220=\"\",\"\",'1. Ordersheet'!J220)","v":""},{"$f":"IF('1. Ordersheet'!K220=\"\",\"\",'1. Ordersheet'!K220)","v":""},{"$f":"IF('1. Ordersheet'!M220=\"\",\"\",'1. Ordersheet'!M220)","v":""},null,null,{"$f":"IF('1. Ordersheet'!AR220=\"\",\"\",'1. Ordersheet'!AR220)","v":""},{"$f":"IF('1. Ordersheet'!AE220=\"\",\"\",'1. Ordersheet'!AE220)","v":""}]
[{"$f":"IF('1. Ordersheet'!B221=\"\",\"\",'1. Ordersheet'!B221)","v":""},{"$f":"IF('1. Ordersheet'!I221=\"\",\"\",'1. Ordersheet'!I221)","v":""},{"$f":"IF('1. Ordersheet'!J221=\"\",\"\",'1. Ordersheet'!J221)","v":""},{"$f":"IF('1. Ordersheet'!K221=\"\",\"\",'1. Ordersheet'!K221)","v":""},{"$f":"IF('1. Ordersheet'!M221=\"\",\"\",'1. Ordersheet'!M221)","v":""},null,null,{"$f":"IF('1. Ordersheet'!AR221=\"\",\"\",'1. Ordersheet'!AR221)","v":""},{"$f":"IF('1. Ordersheet'!AE221=\"\",\"\",'1. Ordersheet'!AE221)","v":""}]
[{"$f":"IF('1. Ordersheet'!B222=\"\",\"\",'1. Ordersheet'!B222)","v":""},{"$f":"IF('1. Ordersheet'!I222=\"\",\"\",'1. Ordersheet'!I222)","v":""},{"$f":"IF('1. Ordersheet'!J222=\"\",\"\",'1. Ordersheet'!J222)","v":""},{"$f":"IF('1. Ordersheet'!K222=\"\",\"\",'1. Ordersheet'!K222)","v":""},{"$f":"IF('1. Ordersheet'!M222=\"\",\"\",'1. Ordersheet'!M222)","v":""},null,null,{"$f":"IF('1. Ordersheet'!AR222=\"\",\"\",'1. Ordersheet'!AR222)","v":""},{"$f":"IF('1. Ordersheet'!AE222=\"\",\"\",'1. Ordersheet'!AE222)","v":""}]
[{"$f":"IF('1. Ordersheet'!B223=\"\",\"\",'1. Ordersheet'!B223)","v":""},{"$f":"IF('1. Ordersheet'!I223=\"\",\"\",'1. Ordersheet'!I223)","v":""},{"$f":"IF('1. Ordersheet'!J223=\"\",\"\",'1. Ordersheet'!J223)","v":""},{"$f":"IF('1. Ordersheet'!K223=\"\",\"\",'1. Ordersheet'!K223)","v":""},{"$f":"IF('1. Ordersheet'!M223=\"\",\"\",'1. Ordersheet'!M223)","v":""},null,null,{"$f":"IF('1. Ordersheet'!AR223=\"\",\"\",'1. Ordersheet'!AR223)","v":""},{"$f":"IF('1. Ordersheet'!AE223=\"\",\"\",'1. Ordersheet'!AE223)","v":""}]
[{"$f":"IF('1. Ordersheet'!B224=\"\",\"\",'1. Ordersheet'!B224)","v":""},{"$f":"IF('1. Ordersheet'!I224=\"\",\"\",'1. Ordersheet'!I224)","v":""},{"$f":"IF('1. Ordersheet'!J224=\"\",\"\",'1. Ordersheet'!J224)","v":""},{"$f":"IF('1. Ordersheet'!K224=\"\",\"\",'1. Ordersheet'!K224)","v":""},{"$f":"IF('1. Ordersheet'!M224=\"\",\"\",'1. Ordersheet'!M224)","v":""},null,null,{"$f":"IF('1. Ordersheet'!AR224=\"\",\"\",'1. Ordersheet'!AR224)","v":""},{"$f":"IF('1. Ordersheet'!AE224=\"\",\"\",'1. Ordersheet'!AE224)","v":""}]
[{"$f":"IF('1. Ordersheet'!B225=\"\",\"\",'1. Ordersheet'!B225)","v":""},{"$f":"IF('1. Ordersheet'!I225=\"\",\"\",'1. Ordersheet'!I225)","v":""},{"$f":"IF('1. Ordersheet'!J225=\"\",\"\",'1. Ordersheet'!J225)","v":""},{"$f":"IF('1. Ordersheet'!K225=\"\",\"\",'1. Ordersheet'!K225)","v":""},{"$f":"IF('1. Ordersheet'!M225=\"\",\"\",'1. Ordersheet'!M225)","v":""},null,null,{"$f":"IF('1. Ordersheet'!AR225=\"\",\"\",'1. Ordersheet'!AR225)","v":""},{"$f":"IF('1. Ordersheet'!AE225=\"\",\"\",'1. Ordersheet'!AE225)","v":""}]
[{"$f":"IF('1. Ordersheet'!B226=\"\",\"\",'1. Ordersheet'!B226)","v":""},{"$f":"IF('1. Ordersheet'!I226=\"\",\"\",'1. Ordersheet'!I226)","v":""},{"$f":"IF('1. Ordersheet'!J226=\"\",\"\",'1. Ordersheet'!J226)","v":""},{"$f":"IF('1. Ordersheet'!K226=\"\",\"\",'1. Ordersheet'!K226)","v":""},{"$f":"IF('1. Ordersheet'!M226=\"\",\"\",'1. Ordersheet'!M226)","v":""},null,null,{"$f":"IF('1. Ordersheet'!AR226=\"\",\"\",'1. Ordersheet'!AR226)","v":""},{"$f":"IF('1. Ordersheet'!AE226=\"\",\"\",'1. Ordersheet'!AE226)","v":""}]
[{"$f":"IF('1. Ordersheet'!B227=\"\",\"\",'1. Ordersheet'!B227)","v":""},{"$f":"IF('1. Ordersheet'!I227=\"\",\"\",'1. Ordersheet'!I227)","v":""},{"$f":"IF('1. Ordersheet'!J227=\"\",\"\",'1. Ordersheet'!J227)","v":""},{"$f":"IF('1. Ordersheet'!K227=\"\",\"\",'1. Ordersheet'!K227)","v":""},{"$f":"IF('1. Ordersheet'!M227=\"\",\"\",'1. Ordersheet'!M227)","v":""},null,null,{"$f":"IF('1. Ordersheet'!AR227=\"\",\"\",'1. Ordersheet'!AR227)","v":""},{"$f":"IF('1. Ordersheet'!AE227=\"\",\"\",'1. Ordersheet'!AE227)","v":""}]
[{"$f":"IF('1. Ordersheet'!B228=\"\",\"\",'1. Ordersheet'!B228)","v":""},{"$f":"IF('1. Ordersheet'!I228=\"\",\"\",'1. Ordersheet'!I228)","v":""},{"$f":"IF('1. Ordersheet'!J228=\"\",\"\",'1. Ordersheet'!J228)","v":""},{"$f":"IF('1. Ordersheet'!K228=\"\",\"\",'1. Ordersheet'!K228)","v":""},{"$f":"IF('1. Ordersheet'!M228=\"\",\"\",'1. Ordersheet'!M228)","v":""},null,null,{"$f":"IF('1. Ordersheet'!AR228=\"\",\"\",'1. Ordersheet'!AR228)","v":""},{"$f":"IF('1. Ordersheet'!AE228=\"\",\"\",'1. Ordersheet'!AE228)","v":""}]
[{"$f":"IF('1. Ordersheet'!B229=\"\",\"\",'1. Ordersheet'!B229)","v":""},{"$f":"IF('1. Ordersheet'!I229=\"\",\"\",'1. Ordersheet'!I229)","v":""},{"$f":"IF('1. Ordersheet'!J229=\"\",\"\",'1. Ordersheet'!J229)","v":""},{"$f":"IF('1. Ordersheet'!K229=\"\",\"\",'1. Ordersheet'!K229)","v":""},{"$f":"IF('1. Ordersheet'!M229=\"\",\"\",'1. Ordersheet'!M229)","v":""},null,null,{"$f":"IF('1. Ordersheet'!AR229=\"\",\"\",'1. Ordersheet'!AR229)","v":""},{"$f":"IF('1. Ordersheet'!AE229=\"\",\"\",'1. Ordersheet'!AE229)","v":""}]
[{"$f":"IF('1. Ordersheet'!B230=\"\",\"\",'1. Ordersheet'!B230)","v":""},{"$f":"IF('1. Ordersheet'!I230=\"\",\"\",'1. Ordersheet'!I230)","v":""},{"$f":"IF('1. Ordersheet'!J230=\"\",\"\",'1. Ordersheet'!J230)","v":""},{"$f":"IF('1. Ordersheet'!K230=\"\",\"\",'1. Ordersheet'!K230)","v":""},{"$f":"IF('1. Ordersheet'!M230=\"\",\"\",'1. Ordersheet'!M230)","v":""},null,null,{"$f":"IF('1. Ordersheet'!AR230=\"\",\"\",'1. Ordersheet'!AR230)","v":""},{"$f":"IF('1. Ordersheet'!AE230=\"\",\"\",'1. Ordersheet'!AE230)","v":""}]
[{"$f":"IF('1. Ordersheet'!B231=\"\",\"\",'1. Ordersheet'!B231)","v":""},{"$f":"IF('1. Ordersheet'!I231=\"\",\"\",'1. Ordersheet'!I231)","v":""},{"$f":"IF('1. Ordersheet'!J231=\"\",\"\",'1. Ordersheet'!J231)","v":""},{"$f":"IF('1. Ordersheet'!K231=\"\",\"\",'1. Ordersheet'!K231)","v":""},{"$f":"IF('1. Ordersheet'!M231=\"\",\"\",'1. Ordersheet'!M231)","v":""},null,null,{"$f":"IF('1. Ordersheet'!AR231=\"\",\"\",'1. Ordersheet'!AR231)","v":""},{"$f":"IF('1. Ordersheet'!AE231=\"\",\"\",'1. Ordersheet'!AE231)","v":""}]
[{"$f":"IF('1. Ordersheet'!B232=\"\",\"\",'1. Ordersheet'!B232)","v":""},{"$f":"IF('1. Ordersheet'!I232=\"\",\"\",'1. Ordersheet'!I232)","v":""},{"$f":"IF('1. Ordersheet'!J232=\"\",\"\",'1. Ordersheet'!J232)","v":""},{"$f":"IF('1. Ordersheet'!K232=\"\",\"\",'1. Ordersheet'!K232)","v":""},{"$f":"IF('1. Ordersheet'!M232=\"\",\"\",'1. Ordersheet'!M232)","v":""},null,null,{"$f":"IF('1. Ordersheet'!AR232=\"\",\"\",'1. Ordersheet'!AR232)","v":""},{"$f":"IF('1. Ordersheet'!AE232=\"\",\"\",'1. Ordersheet'!AE232)","v":""}]
[{"$f":"IF('1. Ordersheet'!B233=\"\",\"\",'1. Ordersheet'!B233)","v":""},{"$f":"IF('1. Ordersheet'!I233=\"\",\"\",'1. Ordersheet'!I233)","v":""},{"$f":"IF('1. Ordersheet'!J233=\"\",\"\",'1. Ordersheet'!J233)","v":""},{"$f":"IF('1. Ordersheet'!K233=\"\",\"\",'1. Ordersheet'!K233)","v":""},{"$f":"IF('1. Ordersheet'!M233=\"\",\"\",'1. Ordersheet'!M233)","v":""},null,null,{"$f":"IF('1. Ordersheet'!AR233=\"\",\"\",'1. Ordersheet'!AR233)","v":""},{"$f":"IF('1. Ordersheet'!AE233=\"\",\"\",'1. Ordersheet'!AE233)","v":""}]
[{"$f":"IF('1. Ordersheet'!B234=\"\",\"\",'1. Ordersheet'!B234)","v":""},{"$f":"IF('1. Ordersheet'!I234=\"\",\"\",'1. Ordersheet'!I234)","v":""},{"$f":"IF('1. Ordersheet'!J234=\"\",\"\",'1. Ordersheet'!J234)","v":""},{"$f":"IF('1. Ordersheet'!K234=\"\",\"\",'1. Ordersheet'!K234)","v":""},{"$f":"IF('1. Ordersheet'!M234=\"\",\"\",'1. Ordersheet'!M234)","v":""},null,null,{"$f":"IF('1. Ordersheet'!AR234=\"\",\"\",'1. Ordersheet'!AR234)","v":""},{"$f":"IF('1. Ordersheet'!AE234=\"\",\"\",'1. Ordersheet'!AE234)","v":""}]
[{"$f":"IF('1. Ordersheet'!B235=\"\",\"\",'1. Ordersheet'!B235)","v":""},{"$f":"IF('1. Ordersheet'!I235=\"\",\"\",'1. Ordersheet'!I235)","v":""},{"$f":"IF('1. Ordersheet'!J235=\"\",\"\",'1. Ordersheet'!J235)","v":""},{"$f":"IF('1. Ordersheet'!K235=\"\",\"\",'1. Ordersheet'!K235)","v":""},{"$f":"IF('1. Ordersheet'!M235=\"\",\"\",'1. Ordersheet'!M235)","v":""},null,null,{"$f":"IF('1. Ordersheet'!AR235=\"\",\"\",'1. Ordersheet'!AR235)","v":""},{"$f":"IF('1. Ordersheet'!AE235=\"\",\"\",'1. Ordersheet'!AE235)","v":""}]
[{"$f":"IF('1. Ordersheet'!B236=\"\",\"\",'1. Ordersheet'!B236)","v":""},{"$f":"IF('1. Ordersheet'!I236=\"\",\"\",'1. Ordersheet'!I236)","v":""},{"$f":"IF('1. Ordersheet'!J236=\"\",\"\",'1. Ordersheet'!J236)","v":""},{"$f":"IF('1. Ordersheet'!K236=\"\",\"\",'1. Ordersheet'!K236)","v":""},{"$f":"IF('1. Ordersheet'!M236=\"\",\"\",'1. Ordersheet'!M236)","v":""},null,null,{"$f":"IF('1. Ordersheet'!AR236=\"\",\"\",'1. Ordersheet'!AR236)","v":""},{"$f":"IF('1. Ordersheet'!AE236=\"\",\"\",'1. Ordersheet'!AE236)","v":""}]
[{"$f":"IF('1. Ordersheet'!B237=\"\",\"\",'1. Ordersheet'!B237)","v":""},{"$f":"IF('1. Ordersheet'!I237=\"\",\"\",'1. Ordersheet'!I237)","v":""},{"$f":"IF('1. Ordersheet'!J237=\"\",\"\",'1. Ordersheet'!J237)","v":""},{"$f":"IF('1. Ordersheet'!K237=\"\",\"\",'1. Ordersheet'!K237)","v":""},{"$f":"IF('1. Ordersheet'!M237=\"\",\"\",'1. Ordersheet'!M237)","v":""},null,null,{"$f":"IF('1. Ordersheet'!AR237=\"\",\"\",'1. Ordersheet'!AR237)","v":""},{"$f":"IF('1. Ordersheet'!AE237=\"\",\"\",'1. Ordersheet'!AE237)","v":""}]
[{"$f":"IF('1. Ordersheet'!B238=\"\",\"\",'1. Ordersheet'!B238)","v":""},{"$f":"IF('1. Ordersheet'!I238=\"\",\"\",'1. Ordersheet'!I238)","v":""},{"$f":"IF('1. Ordersheet'!J238=\"\",\"\",'1. Ordersheet'!J238)","v":""},{"$f":"IF('1. Ordersheet'!K238=\"\",\"\",'1. Ordersheet'!K238)","v":""},{"$f":"IF('1. Ordersheet'!M238=\"\",\"\",'1. Ordersheet'!M238)","v":""},null,null,{"$f":"IF('1. Ordersheet'!AR238=\"\",\"\",'1. Ordersheet'!AR238)","v":""},{"$f":"IF('1. Ordersheet'!AE238=\"\",\"\",'1. Ordersheet'!AE238)","v":""}]
[{"$f":"IF('1. Ordersheet'!B239=\"\",\"\",'1. Ordersheet'!B239)","v":""},{"$f":"IF('1. Ordersheet'!I239=\"\",\"\",'1. Ordersheet'!I239)","v":""},{"$f":"IF('1. Ordersheet'!J239=\"\",\"\",'1. Ordersheet'!J239)","v":""},{"$f":"IF('1. Ordersheet'!K239=\"\",\"\",'1. Ordersheet'!K239)","v":""},{"$f":"IF('1. Ordersheet'!M239=\"\",\"\",'1. Ordersheet'!M239)","v":""},null,null,{"$f":"IF('1. Ordersheet'!AR239=\"\",\"\",'1. Ordersheet'!AR239)","v":""},{"$f":"IF('1. Ordersheet'!AE239=\"\",\"\",'1. Ordersheet'!AE239)","v":""}]
[{"$f":"IF('1. Ordersheet'!B240=\"\",\"\",'1. Ordersheet'!B240)","v":""},{"$f":"IF('1. Ordersheet'!I240=\"\",\"\",'1. Ordersheet'!I240)","v":""},{"$f":"IF('1. Ordersheet'!J240=\"\",\"\",'1. Ordersheet'!J240)","v":""},{"$f":"IF('1. Ordersheet'!K240=\"\",\"\",'1. Ordersheet'!K240)","v":""},{"$f":"IF('1. Ordersheet'!M240=\"\",\"\",'1. Ordersheet'!M240)","v":""},null,null,{"$f":"IF('1. Ordersheet'!AR240=\"\",\"\",'1. Ordersheet'!AR240)","v":""},{"$f":"IF('1. Ordersheet'!AE240=\"\",\"\",'1. Ordersheet'!AE240)","v":""}]
[{"$f":"IF('1. Ordersheet'!B241=\"\",\"\",'1. Ordersheet'!B241)","v":""},{"$f":"IF('1. Ordersheet'!I241=\"\",\"\",'1. Ordersheet'!I241)","v":""},{"$f":"IF('1. Ordersheet'!J241=\"\",\"\",'1. Ordersheet'!J241)","v":""},{"$f":"IF('1. Ordersheet'!K241=\"\",\"\",'1. Ordersheet'!K241)","v":""},{"$f":"IF('1. Ordersheet'!M241=\"\",\"\",'1. Ordersheet'!M241)","v":""},null,null,{"$f":"IF('1. Ordersheet'!AR241=\"\",\"\",'1. Ordersheet'!AR241)","v":""},{"$f":"IF('1. Ordersheet'!AE241=\"\",\"\",'1. Ordersheet'!AE241)","v":""}]
[{"$f":"IF('1. Ordersheet'!B242=\"\",\"\",'1. Ordersheet'!B242)","v":""},{"$f":"IF('1. Ordersheet'!I242=\"\",\"\",'1. Ordersheet'!I242)","v":""},{"$f":"IF('1. Ordersheet'!J242=\"\",\"\",'1. Ordersheet'!J242)","v":""},{"$f":"IF('1. Ordersheet'!K242=\"\",\"\",'1. Ordersheet'!K242)","v":""},{"$f":"IF('1. Ordersheet'!M242=\"\",\"\",'1. Ordersheet'!M242)","v":""},null,null,{"$f":"IF('1. Ordersheet'!AR242=\"\",\"\",'1. Ordersheet'!AR242)","v":""},{"$f":"IF('1. Ordersheet'!AE242=\"\",\"\",'1. Ordersheet'!AE242)","v":""}]
[{"$f":"IF('1. Ordersheet'!B243=\"\",\"\",'1. Ordersheet'!B243)","v":""},{"$f":"IF('1. Ordersheet'!I243=\"\",\"\",'1. Ordersheet'!I243)","v":""},{"$f":"IF('1. Ordersheet'!J243=\"\",\"\",'1. Ordersheet'!J243)","v":""},{"$f":"IF('1. Ordersheet'!K243=\"\",\"\",'1. Ordersheet'!K243)","v":""},{"$f":"IF('1. Ordersheet'!M243=\"\",\"\",'1. Ordersheet'!M243)","v":""},null,null,{"$f":"IF('1. Ordersheet'!AR243=\"\",\"\",'1. Ordersheet'!AR243)","v":""},{"$f":"IF('1. Ordersheet'!AE243=\"\",\"\",'1. Ordersheet'!AE243)","v":""}]
[{"$f":"IF('1. Ordersheet'!B244=\"\",\"\",'1. Ordersheet'!B244)","v":""},{"$f":"IF('1. Ordersheet'!I244=\"\",\"\",'1. Ordersheet'!I244)","v":""},{"$f":"IF('1. Ordersheet'!J244=\"\",\"\",'1. Ordersheet'!J244)","v":""},{"$f":"IF('1. Ordersheet'!K244=\"\",\"\",'1. Ordersheet'!K244)","v":""},{"$f":"IF('1. Ordersheet'!M244=\"\",\"\",'1. Ordersheet'!M244)","v":""},null,null,{"$f":"IF('1. Ordersheet'!AR244=\"\",\"\",'1. Ordersheet'!AR244)","v":""},{"$f":"IF('1. Ordersheet'!AE244=\"\",\"\",'1. Ordersheet'!AE244)","v":""}]
[{"$f":"IF('1. Ordersheet'!B245=\"\",\"\",'1. Ordersheet'!B245)","v":""},{"$f":"IF('1. Ordersheet'!I245=\"\",\"\",'1. Ordersheet'!I245)","v":""},{"$f":"IF('1. Ordersheet'!J245=\"\",\"\",'1. Ordersheet'!J245)","v":""},{"$f":"IF('1. Ordersheet'!K245=\"\",\"\",'1. Ordersheet'!K245)","v":""},{"$f":"IF('1. Ordersheet'!M245=\"\",\"\",'1. Ordersheet'!M245)","v":""},null,null,{"$f":"IF('1. Ordersheet'!AR245=\"\",\"\",'1. Ordersheet'!AR245)","v":""},{"$f":"IF('1. Ordersheet'!AE245=\"\",\"\",'1. Ordersheet'!AE245)","v":""}]
[{"$f":"IF('1. Ordersheet'!B246=\"\",\"\",'1. Ordersheet'!B246)","v":""},{"$f":"IF('1. Ordersheet'!I246=\"\",\"\",'1. Ordersheet'!I246)","v":""},{"$f":"IF('1. Ordersheet'!J246=\"\",\"\",'1. Ordersheet'!J246)","v":""},{"$f":"IF('1. Ordersheet'!K246=\"\",\"\",'1. Ordersheet'!K246)","v":""},{"$f":"IF('1. Ordersheet'!M246=\"\",\"\",'1. Ordersheet'!M246)","v":""},null,null,{"$f":"IF('1. Ordersheet'!AR246=\"\",\"\",'1. Ordersheet'!AR246)","v":""},{"$f":"IF('1. Ordersheet'!AE246=\"\",\"\",'1. Ordersheet'!AE246)","v":""}]
[{"$f":"IF('1. Ordersheet'!B247=\"\",\"\",'1. Ordersheet'!B247)","v":""},{"$f":"IF('1. Ordersheet'!I247=\"\",\"\",'1. Ordersheet'!I247)","v":""},{"$f":"IF('1. Ordersheet'!J247=\"\",\"\",'1. Ordersheet'!J247)","v":""},{"$f":"IF('1. Ordersheet'!K247=\"\",\"\",'1. Ordersheet'!K247)","v":""},{"$f":"IF('1. Ordersheet'!M247=\"\",\"\",'1. Ordersheet'!M247)","v":""},null,null,{"$f":"IF('1. Ordersheet'!AR247=\"\",\"\",'1. Ordersheet'!AR247)","v":""},{"$f":"IF('1. Ordersheet'!AE247=\"\",\"\",'1. Ordersheet'!AE247)","v":""}]
[{"$f":"IF('1. Ordersheet'!B248=\"\",\"\",'1. Ordersheet'!B248)","v":""},{"$f":"IF('1. Ordersheet'!I248=\"\",\"\",'1. Ordersheet'!I248)","v":""},{"$f":"IF('1. Ordersheet'!J248=\"\",\"\",'1. Ordersheet'!J248)","v":""},{"$f":"IF('1. Ordersheet'!K248=\"\",\"\",'1. Ordersheet'!K248)","v":""},{"$f":"IF('1. Ordersheet'!M248=\"\",\"\",'1. Ordersheet'!M248)","v":""},null,null,{"$f":"IF('1. Ordersheet'!AR248=\"\",\"\",'1. Ordersheet'!AR248)","v":""},{"$f":"IF('1. Ordersheet'!AE248=\"\",\"\",'1. Ordersheet'!AE248)","v":""}]
[{"$f":"IF('1. Ordersheet'!B249=\"\",\"\",'1. Ordersheet'!B249)","v":""},{"$f":"IF('1. Ordersheet'!I249=\"\",\"\",'1. Ordersheet'!I249)","v":""},{"$f":"IF('1. Ordersheet'!J249=\"\",\"\",'1. Ordersheet'!J249)","v":""},{"$f":"IF('1. Ordersheet'!K249=\"\",\"\",'1. Ordersheet'!K249)","v":""},{"$f":"IF('1. Ordersheet'!M249=\"\",\"\",'1. Ordersheet'!M249)","v":""},null,null,{"$f":"IF('1. Ordersheet'!AR249=\"\",\"\",'1. Ordersheet'!AR249)","v":""},{"$f":"IF('1. Ordersheet'!AE249=\"\",\"\",'1. Ordersheet'!AE249)","v":""}]
[{"$f":"IF('1. Ordersheet'!B250=\"\",\"\",'1. Ordersheet'!B250)","v":""},{"$f":"IF('1. Ordersheet'!I250=\"\",\"\",'1. Ordersheet'!I250)","v":""},{"$f":"IF('1. Ordersheet'!J250=\"\",\"\",'1. Ordersheet'!J250)","v":""},{"$f":"IF('1. Ordersheet'!K250=\"\",\"\",'1. Ordersheet'!K250)","v":""},{"$f":"IF('1. Ordersheet'!M250=\"\",\"\",'1. Ordersheet'!M250)","v":""},null,null,{"$f":"IF('1. Ordersheet'!AR250=\"\",\"\",'1. Ordersheet'!AR250)","v":""},{"$f":"IF('1. Ordersheet'!AE250=\"\",\"\",'1. Ordersheet'!AE250)","v":""}]
[{"$f":"IF('1. Ordersheet'!B251=\"\",\"\",'1. Ordersheet'!B251)","v":""},{"$f":"IF('1. Ordersheet'!I251=\"\",\"\",'1. Ordersheet'!I251)","v":""},{"$f":"IF('1. Ordersheet'!J251=\"\",\"\",'1. Ordersheet'!J251)","v":""},{"$f":"IF('1. Ordersheet'!K251=\"\",\"\",'1. Ordersheet'!K251)","v":""},{"$f":"IF('1. Ordersheet'!M251=\"\",\"\",'1. Ordersheet'!M251)","v":""},null,null,{"$f":"IF('1. Ordersheet'!AR251=\"\",\"\",'1. Ordersheet'!AR251)","v":""},{"$f":"IF('1. Ordersheet'!AE251=\"\",\"\",'1. Ordersheet'!AE251)","v":""}]
[{"$f":"IF('1. Ordersheet'!B252=\"\",\"\",'1. Ordersheet'!B252)","v":""},{"$f":"IF('1. Ordersheet'!I252=\"\",\"\",'1. Ordersheet'!I252)","v":""},{"$f":"IF('1. Ordersheet'!J252=\"\",\"\",'1. Ordersheet'!J252)","v":""},{"$f":"IF('1. Ordersheet'!K252=\"\",\"\",'1. Ordersheet'!K252)","v":""},{"$f":"IF('1. Ordersheet'!M252=\"\",\"\",'1. Ordersheet'!M252)","v":""},null,null,{"$f":"IF('1. Ordersheet'!AR252=\"\",\"\",'1. Ordersheet'!AR252)","v":""},{"$f":"IF('1. Ordersheet'!AE252=\"\",\"\",'1. Ordersheet'!AE252)","v":""}]
[{"$f":"IF('1. Ordersheet'!B253=\"\",\"\",'1. Ordersheet'!B253)","v":""},{"$f":"IF('1. Ordersheet'!I253=\"\",\"\",'1. Ordersheet'!I253)","v":""},{"$f":"IF('1. Ordersheet'!J253=\"\",\"\",'1. Ordersheet'!J253)","v":""},{"$f":"IF('1. Ordersheet'!K253=\"\",\"\",'1. Ordersheet'!K253)","v":""},{"$f":"IF('1. Ordersheet'!M253=\"\",\"\",'1. Ordersheet'!M253)","v":""},null,null,{"$f":"IF('1. Ordersheet'!AR253=\"\",\"\",'1. Ordersheet'!AR253)","v":""},{"$f":"IF('1. Ordersheet'!AE253=\"\",\"\",'1. Ordersheet'!AE253)","v":""}]
[{"$f":"IF('1. Ordersheet'!B254=\"\",\"\",'1. Ordersheet'!B254)","v":""},{"$f":"IF('1. Ordersheet'!I254=\"\",\"\",'1. Ordersheet'!I254)","v":""},{"$f":"IF('1. Ordersheet'!J254=\"\",\"\",'1. Ordersheet'!J254)","v":""},{"$f":"IF('1. Ordersheet'!K254=\"\",\"\",'1. Ordersheet'!K254)","v":""},{"$f":"IF('1. Ordersheet'!M254=\"\",\"\",'1. Ordersheet'!M254)","v":""},null,null,{"$f":"IF('1. Ordersheet'!AR254=\"\",\"\",'1. Ordersheet'!AR254)","v":""},{"$f":"IF('1. Ordersheet'!AE254=\"\",\"\",'1. Ordersheet'!AE254)","v":""}]
[{"$f":"IF('1. Ordersheet'!B255=\"\",\"\",'1. Ordersheet'!B255)","v":""},{"$f":"IF('1. Ordersheet'!I255=\"\",\"\",'1. Ordersheet'!I255)","v":""},{"$f":"IF('1. Ordersheet'!J255=\"\",\"\",'1. Ordersheet'!J255)","v":""},{"$f":"IF('1. Ordersheet'!K255=\"\",\"\",'1. Ordersheet'!K255)","v":""},{"$f":"IF('1. Ordersheet'!M255=\"\",\"\",'1. Ordersheet'!M255)","v":""},null,null,{"$f":"IF('1. Ordersheet'!AR255=\"\",\"\",'1. Ordersheet'!AR255)","v":""},{"$f":"IF('1. Ordersheet'!AE255=\"\",\"\",'1. Ordersheet'!AE255)","v":""}]
[{"$f":"IF('1. Ordersheet'!B256=\"\",\"\",'1. Ordersheet'!B256)","v":""},{"$f":"IF('1. Ordersheet'!I256=\"\",\"\",'1. Ordersheet'!I256)","v":""},{"$f":"IF('1. Ordersheet'!J256=\"\",\"\",'1. Ordersheet'!J256)","v":""},{"$f":"IF('1. Ordersheet'!K256=\"\",\"\",'1. Ordersheet'!K256)","v":""},{"$f":"IF('1. Ordersheet'!M256=\"\",\"\",'1. Ordersheet'!M256)","v":""},null,null,{"$f":"IF('1. Ordersheet'!AR256=\"\",\"\",'1. Ordersheet'!AR256)","v":""},{"$f":"IF('1. Ordersheet'!AE256=\"\",\"\",'1. Ordersheet'!AE256)","v":""}]
[{"$f":"IF('1. Ordersheet'!B257=\"\",\"\",'1. Ordersheet'!B257)","v":""},{"$f":"IF('1. Ordersheet'!I257=\"\",\"\",'1. Ordersheet'!I257)","v":""},{"$f":"IF('1. Ordersheet'!J257=\"\",\"\",'1. Ordersheet'!J257)","v":""},{"$f":"IF('1. Ordersheet'!K257=\"\",\"\",'1. Ordersheet'!K257)","v":""},{"$f":"IF('1. Ordersheet'!M257=\"\",\"\",'1. Ordersheet'!M257)","v":""},null,null,{"$f":"IF('1. Ordersheet'!AR257=\"\",\"\",'1. Ordersheet'!AR257)","v":""},{"$f":"IF('1. Ordersheet'!AE257=\"\",\"\",'1. Ordersheet'!AE257)","v":""}]
[{"$f":"IF('1. Ordersheet'!B258=\"\",\"\",'1. Ordersheet'!B258)","v":""},{"$f":"IF('1. Ordersheet'!I258=\"\",\"\",'1. Ordersheet'!I258)","v":""},{"$f":"IF('1. Ordersheet'!J258=\"\",\"\",'1. Ordersheet'!J258)","v":""},{"$f":"IF('1. Ordersheet'!K258=\"\",\"\",'1. Ordersheet'!K258)","v":""},{"$f":"IF('1. Ordersheet'!M258=\"\",\"\",'1. Ordersheet'!M258)","v":""},null,null,{"$f":"IF('1. Ordersheet'!AR258=\"\",\"\",'1. Ordersheet'!AR258)","v":""},{"$f":"IF('1. Ordersheet'!AE258=\"\",\"\",'1. Ordersheet'!AE258)","v":""}]
[{"$f":"IF('1. Ordersheet'!B259=\"\",\"\",'1. Ordersheet'!B259)","v":""},{"$f":"IF('1. Ordersheet'!I259=\"\",\"\",'1. Ordersheet'!I259)","v":""},{"$f":"IF('1. Ordersheet'!J259=\"\",\"\",'1. Ordersheet'!J259)","v":""},{"$f":"IF('1. Ordersheet'!K259=\"\",\"\",'1. Ordersheet'!K259)","v":""},{"$f":"IF('1. Ordersheet'!M259=\"\",\"\",'1. Ordersheet'!M259)","v":""},null,null,{"$f":"IF('1. Ordersheet'!AR259=\"\",\"\",'1. Ordersheet'!AR259)","v":""},{"$f":"IF('1. Ordersheet'!AE259=\"\",\"\",'1. Ordersheet'!AE259)","v":""}]
[{"$f":"IF('1. Ordersheet'!B260=\"\",\"\",'1. Ordersheet'!B260)","v":""},{"$f":"IF('1. Ordersheet'!I260=\"\",\"\",'1. Ordersheet'!I260)","v":""},{"$f":"IF('1. Ordersheet'!J260=\"\",\"\",'1. Ordersheet'!J260)","v":""},{"$f":"IF('1. Ordersheet'!K260=\"\",\"\",'1. Ordersheet'!K260)","v":""},{"$f":"IF('1. Ordersheet'!M260=\"\",\"\",'1. Ordersheet'!M260)","v":""},null,null,{"$f":"IF('1. Ordersheet'!AR260=\"\",\"\",'1. Ordersheet'!AR260)","v":""},{"$f":"IF('1. Ordersheet'!AE260=\"\",\"\",'1. Ordersheet'!AE260)","v":""}]
[{"$f":"IF('1. Ordersheet'!B261=\"\",\"\",'1. Ordersheet'!B261)","v":""},{"$f":"IF('1. Ordersheet'!I261=\"\",\"\",'1. Ordersheet'!I261)","v":""},{"$f":"IF('1. Ordersheet'!J261=\"\",\"\",'1. Ordersheet'!J261)","v":""},{"$f":"IF('1. Ordersheet'!K261=\"\",\"\",'1. Ordersheet'!K261)","v":""},{"$f":"IF('1. Ordersheet'!M261=\"\",\"\",'1. Ordersheet'!M261)","v":""},null,null,{"$f":"IF('1. Ordersheet'!AR261=\"\",\"\",'1. Ordersheet'!AR261)","v":""},{"$f":"IF('1. Ordersheet'!AE261=\"\",\"\",'1. Ordersheet'!AE261)","v":""}]
[{"$f":"IF('1. Ordersheet'!B262=\"\",\"\",'1. Ordersheet'!B262)","v":""},{"$f":"IF('1. Ordersheet'!I262=\"\",\"\",'1. Ordersheet'!I262)","v":""},{"$f":"IF('1. Ordersheet'!J262=\"\",\"\",'1. Ordersheet'!J262)","v":""},{"$f":"IF('1. Ordersheet'!K262=\"\",\"\",'1. Ordersheet'!K262)","v":""},{"$f":"IF('1. Ordersheet'!M262=\"\",\"\",'1. Ordersheet'!M262)","v":""},null,null,{"$f":"IF('1. Ordersheet'!AR262=\"\",\"\",'1. Ordersheet'!AR262)","v":""},{"$f":"IF('1. Ordersheet'!AE262=\"\",\"\",'1. Ordersheet'!AE262)","v":""}]
[{"$f":"IF('1. Ordersheet'!B263=\"\",\"\",'1. Ordersheet'!B263)","v":""},{"$f":"IF('1. Ordersheet'!I263=\"\",\"\",'1. Ordersheet'!I263)","v":""},{"$f":"IF('1. Ordersheet'!J263=\"\",\"\",'1. Ordersheet'!J263)","v":""},{"$f":"IF('1. Ordersheet'!K263=\"\",\"\",'1. Ordersheet'!K263)","v":""},{"$f":"IF('1. Ordersheet'!M263=\"\",\"\",'1. Ordersheet'!M263)","v":""},null,null,{"$f":"IF('1. Ordersheet'!AR263=\"\",\"\",'1. Ordersheet'!AR263)","v":""},{"$f":"IF('1. Ordersheet'!AE263=\"\",\"\",'1. Ordersheet'!AE263)","v":""}]
[{"$f":"IF('1. Ordersheet'!B264=\"\",\"\",'1. Ordersheet'!B264)","v":""},{"$f":"IF('1. Ordersheet'!I264=\"\",\"\",'1. Ordersheet'!I264)","v":""},{"$f":"IF('1. Ordersheet'!J264=\"\",\"\",'1. Ordersheet'!J264)","v":""},{"$f":"IF('1. Ordersheet'!K264=\"\",\"\",'1. Ordersheet'!K264)","v":""},{"$f":"IF('1. Ordersheet'!M264=\"\",\"\",'1. Ordersheet'!M264)","v":""},null,null,{"$f":"IF('1. Ordersheet'!AR264=\"\",\"\",'1. Ordersheet'!AR264)","v":""},{"$f":"IF('1. Ordersheet'!AE264=\"\",\"\",'1. Ordersheet'!AE264)","v":""}]
[{"$f":"IF('1. Ordersheet'!B265=\"\",\"\",'1. Ordersheet'!B265)","v":""},{"$f":"IF('1. Ordersheet'!I265=\"\",\"\",'1. Ordersheet'!I265)","v":""},{"$f":"IF('1. Ordersheet'!J265=\"\",\"\",'1. Ordersheet'!J265)","v":""},{"$f":"IF('1. Ordersheet'!K265=\"\",\"\",'1. Ordersheet'!K265)","v":""},{"$f":"IF('1. Ordersheet'!M265=\"\",\"\",'1. Ordersheet'!M265)","v":""},null,null,{"$f":"IF('1. Ordersheet'!AR265=\"\",\"\",'1. Ordersheet'!AR265)","v":""},{"$f":"IF('1. Ordersheet'!AE265=\"\",\"\",'1. Ordersheet'!AE265)","v":""}]
[{"$f":"IF('1. Ordersheet'!B266=\"\",\"\",'1. Ordersheet'!B266)","v":""},{"$f":"IF('1. Ordersheet'!I266=\"\",\"\",'1. Ordersheet'!I266)","v":""},{"$f":"IF('1. Ordersheet'!J266=\"\",\"\",'1. Ordersheet'!J266)","v":""},{"$f":"IF('1. Ordersheet'!K266=\"\",\"\",'1. Ordersheet'!K266)","v":""},{"$f":"IF('1. Ordersheet'!M266=\"\",\"\",'1. Ordersheet'!M266)","v":""},null,null,{"$f":"IF('1. Ordersheet'!AR266=\"\",\"\",'1. Ordersheet'!AR266)","v":""},{"$f":"IF('1. Ordersheet'!AE266=\"\",\"\",'1. Ordersheet'!AE266)","v":""}]
[{"$f":"IF('1. Ordersheet'!B267=\"\",\"\",'1. Ordersheet'!B267)","v":""},{"$f":"IF('1. Ordersheet'!I267=\"\",\"\",'1. Ordersheet'!I267)","v":""},{"$f":"IF('1. Ordersheet'!J267=\"\",\"\",'1. Ordersheet'!J267)","v":""},{"$f":"IF('1. Ordersheet'!K267=\"\",\"\",'1. Ordersheet'!K267)","v":""},{"$f":"IF('1. Ordersheet'!M267=\"\",\"\",'1. Ordersheet'!M267)","v":""},null,null,{"$f":"IF('1. Ordersheet'!AR267=\"\",\"\",'1. Ordersheet'!AR267)","v":""},{"$f":"IF('1. Ordersheet'!AE267=\"\",\"\",'1. Ordersheet'!AE267)","v":""}]
[{"$f":"IF('1. Ordersheet'!B268=\"\",\"\",'1. Ordersheet'!B268)","v":""},{"$f":"IF('1. Ordersheet'!I268=\"\",\"\",'1. Ordersheet'!I268)","v":""},{"$f":"IF('1. Ordersheet'!J268=\"\",\"\",'1. Ordersheet'!J268)","v":""},{"$f":"IF('1. Ordersheet'!K268=\"\",\"\",'1. Ordersheet'!K268)","v":""},{"$f":"IF('1. Ordersheet'!M268=\"\",\"\",'1. Ordersheet'!M268)","v":""},null,null,{"$f":"IF('1. Ordersheet'!AR268=\"\",\"\",'1. Ordersheet'!AR268)","v":""},{"$f":"IF('1. Ordersheet'!AE268=\"\",\"\",'1. Ordersheet'!AE268)","v":""}]
[{"$f":"IF('1. Ordersheet'!B269=\"\",\"\",'1. Ordersheet'!B269)","v":""},{"$f":"IF('1. Ordersheet'!I269=\"\",\"\",'1. Ordersheet'!I269)","v":""},{"$f":"IF('1. Ordersheet'!J269=\"\",\"\",'1. Ordersheet'!J269)","v":""},{"$f":"IF('1. Ordersheet'!K269=\"\",\"\",'1. Ordersheet'!K269)","v":""},{"$f":"IF('1. Ordersheet'!M269=\"\",\"\",'1. Ordersheet'!M269)","v":""},null,null,{"$f":"IF('1. Ordersheet'!AR269=\"\",\"\",'1. Ordersheet'!AR269)","v":""},{"$f":"IF('1. Ordersheet'!AE269=\"\",\"\",'1. Ordersheet'!AE269)","v":""}]
[{"$f":"IF('1. Ordersheet'!B270=\"\",\"\",'1. Ordersheet'!B270)","v":""},{"$f":"IF('1. Ordersheet'!I270=\"\",\"\",'1. Ordersheet'!I270)","v":""},{"$f":"IF('1. Ordersheet'!J270=\"\",\"\",'1. Ordersheet'!J270)","v":""},{"$f":"IF('1. Ordersheet'!K270=\"\",\"\",'1. Ordersheet'!K270)","v":""},{"$f":"IF('1. Ordersheet'!M270=\"\",\"\",'1. Ordersheet'!M270)","v":""},null,null,{"$f":"IF('1. Ordersheet'!AR270=\"\",\"\",'1. Ordersheet'!AR270)","v":""},{"$f":"IF('1. Ordersheet'!AE270=\"\",\"\",'1. Ordersheet'!AE270)","v":""}]
[{"$f":"IF('1. Ordersheet'!B271=\"\",\"\",'1. Ordersheet'!B271)","v":""},{"$f":"IF('1. Ordersheet'!I271=\"\",\"\",'1. Ordersheet'!I271)","v":""},{"$f":"IF('1. Ordersheet'!J271=\"\",\"\",'1. Ordersheet'!J271)","v":""},{"$f":"IF('1. Ordersheet'!K271=\"\",\"\",'1. Ordersheet'!K271)","v":""},{"$f":"IF('1. Ordersheet'!M271=\"\",\"\",'1. Ordersheet'!M271)","v":""},null,null,{"$f":"IF('1. Ordersheet'!AR271=\"\",\"\",'1. Ordersheet'!AR271)","v":""},{"$f":"IF('1. Ordersheet'!AE271=\"\",\"\",'1. Ordersheet'!AE271)","v":""}]
[{"$f":"IF('1. Ordersheet'!B272=\"\",\"\",'1. Ordersheet'!B272)","v":""},{"$f":"IF('1. Ordersheet'!I272=\"\",\"\",'1. Ordersheet'!I272)","v":""},{"$f":"IF('1. Ordersheet'!J272=\"\",\"\",'1. Ordersheet'!J272)","v":""},{"$f":"IF('1. Ordersheet'!K272=\"\",\"\",'1. Ordersheet'!K272)","v":""},{"$f":"IF('1. Ordersheet'!M272=\"\",\"\",'1. Ordersheet'!M272)","v":""},null,null,{"$f":"IF('1. Ordersheet'!AR272=\"\",\"\",'1. Ordersheet'!AR272)","v":""},{"$f":"IF('1. Ordersheet'!AE272=\"\",\"\",'1. Ordersheet'!AE272)","v":""}]
[{"$f":"IF('1. Ordersheet'!B273=\"\",\"\",'1. Ordersheet'!B273)","v":""},{"$f":"IF('1. Ordersheet'!I273=\"\",\"\",'1. Ordersheet'!I273)","v":""},{"$f":"IF('1. Ordersheet'!J273=\"\",\"\",'1. Ordersheet'!J273)","v":""},{"$f":"IF('1. Ordersheet'!K273=\"\",\"\",'1. Ordersheet'!K273)","v":""},{"$f":"IF('1. Ordersheet'!M273=\"\",\"\",'1. Ordersheet'!M273)","v":""},null,null,{"$f":"IF('1. Ordersheet'!AR273=\"\",\"\",'1. Ordersheet'!AR273)","v":""},{"$f":"IF('1. Ordersheet'!AE273=\"\",\"\",'1. Ordersheet'!AE273)","v":""}]
[{"$f":"IF('1. Ordersheet'!B274=\"\",\"\",'1. Ordersheet'!B274)","v":""},{"$f":"IF('1. Ordersheet'!I274=\"\",\"\",'1. Ordersheet'!I274)","v":""},{"$f":"IF('1. Ordersheet'!J274=\"\",\"\",'1. Ordersheet'!J274)","v":""},{"$f":"IF('1. Ordersheet'!K274=\"\",\"\",'1. Ordersheet'!K274)","v":""},{"$f":"IF('1. Ordersheet'!M274=\"\",\"\",'1. Ordersheet'!M274)","v":""},null,null,{"$f":"IF('1. Ordersheet'!AR274=\"\",\"\",'1. Ordersheet'!AR274)","v":""},{"$f":"IF('1. Ordersheet'!AE274=\"\",\"\",'1. Ordersheet'!AE274)","v":""}]
[{"$f":"IF('1. Ordersheet'!B275=\"\",\"\",'1. Ordersheet'!B275)","v":""},{"$f":"IF('1. Ordersheet'!I275=\"\",\"\",'1. Ordersheet'!I275)","v":""},{"$f":"IF('1. Ordersheet'!J275=\"\",\"\",'1. Ordersheet'!J275)","v":""},{"$f":"IF('1. Ordersheet'!K275=\"\",\"\",'1. Ordersheet'!K275)","v":""},{"$f":"IF('1. Ordersheet'!M275=\"\",\"\",'1. Ordersheet'!M275)","v":""},null,null,{"$f":"IF('1. Ordersheet'!AR275=\"\",\"\",'1. Ordersheet'!AR275)","v":""},{"$f":"IF('1. Ordersheet'!AE275=\"\",\"\",'1. Ordersheet'!AE275)","v":""}]
[{"$f":"IF('1. Ordersheet'!B276=\"\",\"\",'1. Ordersheet'!B276)","v":""},{"$f":"IF('1. Ordersheet'!I276=\"\",\"\",'1. Ordersheet'!I276)","v":""},{"$f":"IF('1. Ordersheet'!J276=\"\",\"\",'1. Ordersheet'!J276)","v":""},{"$f":"IF('1. Ordersheet'!K276=\"\",\"\",'1. Ordersheet'!K276)","v":""},{"$f":"IF('1. Ordersheet'!M276=\"\",\"\",'1. Ordersheet'!M276)","v":""},null,null,{"$f":"IF('1. Ordersheet'!AR276=\"\",\"\",'1. Ordersheet'!AR276)","v":""},{"$f":"IF('1. Ordersheet'!AE276=\"\",\"\",'1. Ordersheet'!AE276)","v":""}]
[{"$f":"IF('1. Ordersheet'!B277=\"\",\"\",'1. Ordersheet'!B277)","v":""},{"$f":"IF('1. Ordersheet'!I277=\"\",\"\",'1. Ordersheet'!I277)","v":""},{"$f":"IF('1. Ordersheet'!J277=\"\",\"\",'1. Ordersheet'!J277)","v":""},{"$f":"IF('1. Ordersheet'!K277=\"\",\"\",'1. Ordersheet'!K277)","v":""},{"$f":"IF('1. Ordersheet'!M277=\"\",\"\",'1. Ordersheet'!M277)","v":""},null,null,{"$f":"IF('1. Ordersheet'!AR277=\"\",\"\",'1. Ordersheet'!AR277)","v":""},{"$f":"IF('1. Ordersheet'!AE277=\"\",\"\",'1. Ordersheet'!AE277)","v":""}]
[{"$f":"IF('1. Ordersheet'!B278=\"\",\"\",'1. Ordersheet'!B278)","v":""},{"$f":"IF('1. Ordersheet'!I278=\"\",\"\",'1. Ordersheet'!I278)","v":""},{"$f":"IF('1. Ordersheet'!J278=\"\",\"\",'1. Ordersheet'!J278)","v":""},{"$f":"IF('1. Ordersheet'!K278=\"\",\"\",'1. Ordersheet'!K278)","v":""},{"$f":"IF('1. Ordersheet'!M278=\"\",\"\",'1. Ordersheet'!M278)","v":""},null,null,{"$f":"IF('1. Ordersheet'!AR278=\"\",\"\",'1. Ordersheet'!AR278)","v":""},{"$f":"IF('1. Ordersheet'!AE278=\"\",\"\",'1. Ordersheet'!AE278)","v":""}]
[{"$f":"IF('1. Ordersheet'!B279=\"\",\"\",'1. Ordersheet'!B279)","v":""},{"$f":"IF('1. Ordersheet'!I279=\"\",\"\",'1. Ordersheet'!I279)","v":""},{"$f":"IF('1. Ordersheet'!J279=\"\",\"\",'1. Ordersheet'!J279)","v":""},{"$f":"IF('1. Ordersheet'!K279=\"\",\"\",'1. Ordersheet'!K279)","v":""},{"$f":"IF('1. Ordersheet'!M279=\"\",\"\",'1. Ordersheet'!M279)","v":""},null,null,{"$f":"IF('1. Ordersheet'!AR279=\"\",\"\",'1. Ordersheet'!AR279)","v":""},{"$f":"IF('1. Ordersheet'!AE279=\"\",\"\",'1. Ordersheet'!AE279)","v":""}]
[{"$f":"IF('1. Ordersheet'!B280=\"\",\"\",'1. Ordersheet'!B280)","v":""},{"$f":"IF('1. Ordersheet'!I280=\"\",\"\",'1. Ordersheet'!I280)","v":""},{"$f":"IF('1. Ordersheet'!J280=\"\",\"\",'1. Ordersheet'!J280)","v":""},{"$f":"IF('1. Ordersheet'!K280=\"\",\"\",'1. Ordersheet'!K280)","v":""},{"$f":"IF('1. Ordersheet'!M280=\"\",\"\",'1. Ordersheet'!M280)","v":""},null,null,{"$f":"IF('1. Ordersheet'!AR280=\"\",\"\",'1. Ordersheet'!AR280)","v":""},{"$f":"IF('1. Ordersheet'!AE280=\"\",\"\",'1. Ordersheet'!AE280)","v":""}]
[{"$f":"IF('1. Ordersheet'!B281=\"\",\"\",'1. Ordersheet'!B281)","v":""},{"$f":"IF('1. Ordersheet'!I281=\"\",\"\",'1. Ordersheet'!I281)","v":""},{"$f":"IF('1. Ordersheet'!J281=\"\",\"\",'1. Ordersheet'!J281)","v":""},{"$f":"IF('1. Ordersheet'!K281=\"\",\"\",'1. Ordersheet'!K281)","v":""},{"$f":"IF('1. Ordersheet'!M281=\"\",\"\",'1. Ordersheet'!M281)","v":""},null,null,{"$f":"IF('1. Ordersheet'!AR281=\"\",\"\",'1. Ordersheet'!AR281)","v":""},{"$f":"IF('1. Ordersheet'!AE281=\"\",\"\",'1. Ordersheet'!AE281)","v":""}]
[{"$f":"IF('1. Ordersheet'!B282=\"\",\"\",'1. Ordersheet'!B282)","v":""},{"$f":"IF('1. Ordersheet'!I282=\"\",\"\",'1. Ordersheet'!I282)","v":""},{"$f":"IF('1. Ordersheet'!J282=\"\",\"\",'1. Ordersheet'!J282)","v":""},{"$f":"IF('1. Ordersheet'!K282=\"\",\"\",'1. Ordersheet'!K282)","v":""},{"$f":"IF('1. Ordersheet'!M282=\"\",\"\",'1. Ordersheet'!M282)","v":""},null,null,{"$f":"IF('1. Ordersheet'!AR282=\"\",\"\",'1. Ordersheet'!AR282)","v":""},{"$f":"IF('1. Ordersheet'!AE282=\"\",\"\",'1. Ordersheet'!AE282)","v":""}]
[{"$f":"IF('1. Ordersheet'!B283=\"\",\"\",'1. Ordersheet'!B283)","v":""},{"$f":"IF('1. Ordersheet'!I283=\"\",\"\",'1. Ordersheet'!I283)","v":""},{"$f":"IF('1. Ordersheet'!J283=\"\",\"\",'1. Ordersheet'!J283)","v":""},{"$f":"IF('1. Ordersheet'!K283=\"\",\"\",'1. Ordersheet'!K283)","v":""},{"$f":"IF('1. Ordersheet'!M283=\"\",\"\",'1. Ordersheet'!M283)","v":""},null,null,{"$f":"IF('1. Ordersheet'!AR283=\"\",\"\",'1. Ordersheet'!AR283)","v":""},{"$f":"IF('1. Ordersheet'!AE283=\"\",\"\",'1. Ordersheet'!AE283)","v":""}]
[{"$f":"IF('1. Ordersheet'!B284=\"\",\"\",'1. Ordersheet'!B284)","v":""},{"$f":"IF('1. Ordersheet'!I284=\"\",\"\",'1. Ordersheet'!I284)","v":""},{"$f":"IF('1. Ordersheet'!J284=\"\",\"\",'1. Ordersheet'!J284)","v":""},{"$f":"IF('1. Ordersheet'!K284=\"\",\"\",'1. Ordersheet'!K284)","v":""},{"$f":"IF('1. Ordersheet'!M284=\"\",\"\",'1. Ordersheet'!M284)","v":""},null,null,{"$f":"IF('1. Ordersheet'!AR284=\"\",\"\",'1. Ordersheet'!AR284)","v":""},{"$f":"IF('1. Ordersheet'!AE284=\"\",\"\",'1. Ordersheet'!AE284)","v":""}]
[{"$f":"IF('1. Ordersheet'!B285=\"\",\"\",'1. Ordersheet'!B285)","v":""},{"$f":"IF('1. Ordersheet'!I285=\"\",\"\",'1. Ordersheet'!I285)","v":""},{"$f":"IF('1. Ordersheet'!J285=\"\",\"\",'1. Ordersheet'!J285)","v":""},{"$f":"IF('1. Ordersheet'!K285=\"\",\"\",'1. Ordersheet'!K285)","v":""},{"$f":"IF('1. Ordersheet'!M285=\"\",\"\",'1. Ordersheet'!M285)","v":""},null,null,{"$f":"IF('1. Ordersheet'!AR285=\"\",\"\",'1. Ordersheet'!AR285)","v":""},{"$f":"IF('1. Ordersheet'!AE285=\"\",\"\",'1. Ordersheet'!AE285)","v":""}]
[{"$f":"IF('1. Ordersheet'!B286=\"\",\"\",'1. Ordersheet'!B286)","v":""},{"$f":"IF('1. Ordersheet'!I286=\"\",\"\",'1. Ordersheet'!I286)","v":""},{"$f":"IF('1. Ordersheet'!J286=\"\",\"\",'1. Ordersheet'!J286)","v":""},{"$f":"IF('1. Ordersheet'!K286=\"\",\"\",'1. Ordersheet'!K286)","v":""},{"$f":"IF('1. Ordersheet'!M286=\"\",\"\",'1. Ordersheet'!M286)","v":""},null,null,{"$f":"IF('1. Ordersheet'!AR286=\"\",\"\",'1. Ordersheet'!AR286)","v":""},{"$f":"IF('1. Ordersheet'!AE286=\"\",\"\",'1. Ordersheet'!AE286)","v":""}]
[{"$f":"IF('1. Ordersheet'!B287=\"\",\"\",'1. Ordersheet'!B287)","v":""},{"$f":"IF('1. Ordersheet'!I287=\"\",\"\",'1. Ordersheet'!I287)","v":""},{"$f":"IF('1. Ordersheet'!J287=\"\",\"\",'1. Ordersheet'!J287)","v":""},{"$f":"IF('1. Ordersheet'!K287=\"\",\"\",'1. Ordersheet'!K287)","v":""},{"$f":"IF('1. Ordersheet'!M287=\"\",\"\",'1. Ordersheet'!M287)","v":""},null,null,{"$f":"IF('1. Ordersheet'!AR287=\"\",\"\",'1. Ordersheet'!AR287)","v":""},{"$f":"IF('1. Ordersheet'!AE287=\"\",\"\",'1. Ordersheet'!AE287)","v":""}]
[{"$f":"IF('1. Ordersheet'!B288=\"\",\"\",'1. Ordersheet'!B288)","v":""},{"$f":"IF('1. Ordersheet'!I288=\"\",\"\",'1. Ordersheet'!I288)","v":""},{"$f":"IF('1. Ordersheet'!J288=\"\",\"\",'1. Ordersheet'!J288)","v":""},{"$f":"IF('1. Ordersheet'!K288=\"\",\"\",'1. Ordersheet'!K288)","v":""},{"$f":"IF('1. Ordersheet'!M288=\"\",\"\",'1. Ordersheet'!M288)","v":""},null,null,{"$f":"IF('1. Ordersheet'!AR288=\"\",\"\",'1. Ordersheet'!AR288)","v":""},{"$f":"IF('1. Ordersheet'!AE288=\"\",\"\",'1. Ordersheet'!AE288)","v":""}]
[{"$f":"IF('1. Ordersheet'!B289=\"\",\"\",'1. Ordersheet'!B289)","v":""},{"$f":"IF('1. Ordersheet'!I289=\"\",\"\",'1. Ordersheet'!I289)","v":""},{"$f":"IF('1. Ordersheet'!J289=\"\",\"\",'1. Ordersheet'!J289)","v":""},{"$f":"IF('1. Ordersheet'!K289=\"\",\"\",'1. Ordersheet'!K289)","v":""},{"$f":"IF('1. Ordersheet'!M289=\"\",\"\",'1. Ordersheet'!M289)","v":""},null,null,{"$f":"IF('1. Ordersheet'!AR289=\"\",\"\",'1. Ordersheet'!AR289)","v":""},{"$f":"IF('1. Ordersheet'!AE289=\"\",\"\",'1. Ordersheet'!AE289)","v":""}]
[{"$f":"IF('1. Ordersheet'!B290=\"\",\"\",'1. Ordersheet'!B290)","v":""},{"$f":"IF('1. Ordersheet'!I290=\"\",\"\",'1. Ordersheet'!I290)","v":""},{"$f":"IF('1. Ordersheet'!J290=\"\",\"\",'1. Ordersheet'!J290)","v":""},{"$f":"IF('1. Ordersheet'!K290=\"\",\"\",'1. Ordersheet'!K290)","v":""},{"$f":"IF('1. Ordersheet'!M290=\"\",\"\",'1. Ordersheet'!M290)","v":""},null,null,{"$f":"IF('1. Ordersheet'!AR290=\"\",\"\",'1. Ordersheet'!AR290)","v":""},{"$f":"IF('1. Ordersheet'!AE290=\"\",\"\",'1. Ordersheet'!AE290)","v":""}]
[{"$f":"IF('1. Ordersheet'!B291=\"\",\"\",'1. Ordersheet'!B291)","v":""},{"$f":"IF('1. Ordersheet'!I291=\"\",\"\",'1. Ordersheet'!I291)","v":""},{"$f":"IF('1. Ordersheet'!J291=\"\",\"\",'1. Ordersheet'!J291)","v":""},{"$f":"IF('1. Ordersheet'!K291=\"\",\"\",'1. Ordersheet'!K291)","v":""},{"$f":"IF('1. Ordersheet'!M291=\"\",\"\",'1. Ordersheet'!M291)","v":""},null,null,{"$f":"IF('1. Ordersheet'!AR291=\"\",\"\",'1. Ordersheet'!AR291)","v":""},{"$f":"IF('1. Ordersheet'!AE291=\"\",\"\",'1. Ordersheet'!AE291)","v":""}]
[{"$f":"IF('1. Ordersheet'!B292=\"\",\"\",'1. Ordersheet'!B292)","v":""},{"$f":"IF('1. Ordersheet'!I292=\"\",\"\",'1. Ordersheet'!I292)","v":""},{"$f":"IF('1. Ordersheet'!J292=\"\",\"\",'1. Ordersheet'!J292)","v":""},{"$f":"IF('1. Ordersheet'!K292=\"\",\"\",'1. Ordersheet'!K292)","v":""},{"$f":"IF('1. Ordersheet'!M292=\"\",\"\",'1. Ordersheet'!M292)","v":""},null,null,{"$f":"IF('1. Ordersheet'!AR292=\"\",\"\",'1. Ordersheet'!AR292)","v":""},{"$f":"IF('1. Ordersheet'!AE292=\"\",\"\",'1. Ordersheet'!AE292)","v":""}]
[{"$f":"IF('1. Ordersheet'!B293=\"\",\"\",'1. Ordersheet'!B293)","v":""},{"$f":"IF('1. Ordersheet'!I293=\"\",\"\",'1. Ordersheet'!I293)","v":""},{"$f":"IF('1. Ordersheet'!J293=\"\",\"\",'1. Ordersheet'!J293)","v":""},{"$f":"IF('1. Ordersheet'!K293=\"\",\"\",'1. Ordersheet'!K293)","v":""},{"$f":"IF('1. Ordersheet'!M293=\"\",\"\",'1. Ordersheet'!M293)","v":""},null,null,{"$f":"IF('1. Ordersheet'!AR293=\"\",\"\",'1. Ordersheet'!AR293)","v":""},{"$f":"IF('1. Ordersheet'!AE293=\"\",\"\",'1. Ordersheet'!AE293)","v":""}]
[{"$f":"IF('1. Ordersheet'!B294=\"\",\"\",'1. Ordersheet'!B294)","v":""},{"$f":"IF('1. Ordersheet'!I294=\"\",\"\",'1. Ordersheet'!I294)","v":""},{"$f":"IF('1. Ordersheet'!J294=\"\",\"\",'1. Ordersheet'!J294)","v":""},{"$f":"IF('1. Ordersheet'!K294=\"\",\"\",'1. Ordersheet'!K294)","v":""},{"$f":"IF('1. Ordersheet'!M294=\"\",\"\",'1. Ordersheet'!M294)","v":""},null,null,{"$f":"IF('1. Ordersheet'!AR294=\"\",\"\",'1. Ordersheet'!AR294)","v":""},{"$f":"IF('1. Ordersheet'!AE294=\"\",\"\",'1. Ordersheet'!AE294)","v":""}]
[{"$f":"IF('1. Ordersheet'!B295=\"\",\"\",'1. Ordersheet'!B295)","v":""},{"$f":"IF('1. Ordersheet'!I295=\"\",\"\",'1. Ordersheet'!I295)","v":""},{"$f":"IF('1. Ordersheet'!J295=\"\",\"\",'1. Ordersheet'!J295)","v":""},{"$f":"IF('1. Ordersheet'!K295=\"\",\"\",'1. Ordersheet'!K295)","v":""},{"$f":"IF('1. Ordersheet'!M295=\"\",\"\",'1. Ordersheet'!M295)","v":""},null,null,{"$f":"IF('1. Ordersheet'!AR295=\"\",\"\",'1. Ordersheet'!AR295)","v":""},{"$f":"IF('1. Ordersheet'!AE295=\"\",\"\",'1. Ordersheet'!AE295)","v":""}]
[{"$f":"IF('1. Ordersheet'!B296=\"\",\"\",'1. Ordersheet'!B296)","v":""},{"$f":"IF('1. Ordersheet'!I296=\"\",\"\",'1. Ordersheet'!I296)","v":""},{"$f":"IF('1. Ordersheet'!J296=\"\",\"\",'1. Ordersheet'!J296)","v":""},{"$f":"IF('1. Ordersheet'!K296=\"\",\"\",'1. Ordersheet'!K296)","v":""},{"$f":"IF('1. Ordersheet'!M296=\"\",\"\",'1. Ordersheet'!M296)","v":""},null,null,{"$f":"IF('1. Ordersheet'!AR296=\"\",\"\",'1. Ordersheet'!AR296)","v":""},{"$f":"IF('1. Ordersheet'!AE296=\"\",\"\",'1. Ordersheet'!AE296)","v":""}]
[{"$f":"IF('1. Ordersheet'!B297=\"\",\"\",'1. Ordersheet'!B297)","v":""},{"$f":"IF('1. Ordersheet'!I297=\"\",\"\",'1. Ordersheet'!I297)","v":""},{"$f":"IF('1. Ordersheet'!J297=\"\",\"\",'1. Ordersheet'!J297)","v":""},{"$f":"IF('1. Ordersheet'!K297=\"\",\"\",'1. Ordersheet'!K297)","v":""},{"$f":"IF('1. Ordersheet'!M297=\"\",\"\",'1. Ordersheet'!M297)","v":""},null,null,{"$f":"IF('1. Ordersheet'!AR297=\"\",\"\",'1. Ordersheet'!AR297)","v":""},{"$f":"IF('1. Ordersheet'!AE297=\"\",\"\",'1. Ordersheet'!AE297)","v":""}]
[{"$f":"IF('1. Ordersheet'!B298=\"\",\"\",'1. Ordersheet'!B298)","v":""},{"$f":"IF('1. Ordersheet'!I298=\"\",\"\",'1. Ordersheet'!I298)","v":""},{"$f":"IF('1. Ordersheet'!J298=\"\",\"\",'1. Ordersheet'!J298)","v":""},{"$f":"IF('1. Ordersheet'!K298=\"\",\"\",'1. Ordersheet'!K298)","v":""},{"$f":"IF('1. Ordersheet'!M298=\"\",\"\",'1. Ordersheet'!M298)","v":""},null,null,{"$f":"IF('1. Ordersheet'!AR298=\"\",\"\",'1. Ordersheet'!AR298)","v":""},{"$f":"IF('1. Ordersheet'!AE298=\"\",\"\",'1. Ordersheet'!AE298)","v":""}]
[{"$f":"IF('1. Ordersheet'!B299=\"\",\"\",'1. Ordersheet'!B299)","v":""},{"$f":"IF('1. Ordersheet'!I299=\"\",\"\",'1. Ordersheet'!I299)","v":""},{"$f":"IF('1. Ordersheet'!J299=\"\",\"\",'1. Ordersheet'!J299)","v":""},{"$f":"IF('1. Ordersheet'!K299=\"\",\"\",'1. Ordersheet'!K299)","v":""},{"$f":"IF('1. Ordersheet'!M299=\"\",\"\",'1. Ordersheet'!M299)","v":""},null,null,{"$f":"IF('1. Ordersheet'!AR299=\"\",\"\",'1. Ordersheet'!AR299)","v":""},{"$f":"IF('1. Ordersheet'!AE299=\"\",\"\",'1. Ordersheet'!AE299)","v":""}]
[{"$f":"IF('1. Ordersheet'!B300=\"\",\"\",'1. Ordersheet'!B300)","v":""},{"$f":"IF('1. Ordersheet'!I300=\"\",\"\",'1. Ordersheet'!I300)","v":""},{"$f":"IF('1. Ordersheet'!J300=\"\",\"\",'1. Ordersheet'!J300)","v":""},{"$f":"IF('1. Ordersheet'!K300=\"\",\"\",'1. Ordersheet'!K300)","v":""},{"$f":"IF('1. Ordersheet'!M300=\"\",\"\",'1. Ordersheet'!M300)","v":""},null,null,{"$f":"IF('1. Ordersheet'!AR300=\"\",\"\",'1. Ordersheet'!AR300)","v":""},{"$f":"IF('1. Ordersheet'!AE300=\"\",\"\",'1. Ordersheet'!AE300)","v":""}]
[{"$f":"IF('1. Ordersheet'!B301=\"\",\"\",'1. Ordersheet'!B301)","v":""},{"$f":"IF('1. Ordersheet'!I301=\"\",\"\",'1. Ordersheet'!I301)","v":""},{"$f":"IF('1. Ordersheet'!J301=\"\",\"\",'1. Ordersheet'!J301)","v":""},{"$f":"IF('1. Ordersheet'!K301=\"\",\"\",'1. Ordersheet'!K301)","v":""},{"$f":"IF('1. Ordersheet'!M301=\"\",\"\",'1. Ordersheet'!M301)","v":""},null,null,{"$f":"IF('1. Ordersheet'!AR301=\"\",\"\",'1. Ordersheet'!AR301)","v":""},{"$f":"IF('1. Ordersheet'!AE301=\"\",\"\",'1. Ordersheet'!AE301)","v":""}]
[{"$f":"IF('1. Ordersheet'!B302=\"\",\"\",'1. Ordersheet'!B302)","v":""},{"$f":"IF('1. Ordersheet'!I302=\"\",\"\",'1. Ordersheet'!I302)","v":""},{"$f":"IF('1. Ordersheet'!J302=\"\",\"\",'1. Ordersheet'!J302)","v":""},{"$f":"IF('1. Ordersheet'!K302=\"\",\"\",'1. Ordersheet'!K302)","v":""},{"$f":"IF('1. Ordersheet'!M302=\"\",\"\",'1. Ordersheet'!M302)","v":""},null,null,{"$f":"IF('1. Ordersheet'!AR302=\"\",\"\",'1. Ordersheet'!AR302)","v":""},{"$f":"IF('1. Ordersheet'!AE302=\"\",\"\",'1. Ordersheet'!AE302)","v":""}]
[{"$f":"IF('1. Ordersheet'!B303=\"\",\"\",'1. Ordersheet'!B303)","v":""},{"$f":"IF('1. Ordersheet'!I303=\"\",\"\",'1. Ordersheet'!I303)","v":""},{"$f":"IF('1. Ordersheet'!J303=\"\",\"\",'1. Ordersheet'!J303)","v":""},{"$f":"IF('1. Ordersheet'!K303=\"\",\"\",'1. Ordersheet'!K303)","v":""},{"$f":"IF('1. Ordersheet'!M303=\"\",\"\",'1. Ordersheet'!M303)","v":""},null,null,{"$f":"IF('1. Ordersheet'!AR303=\"\",\"\",'1. Ordersheet'!AR303)","v":""},{"$f":"IF('1. Ordersheet'!AE303=\"\",\"\",'1. Ordersheet'!AE303)","v":""}]
[{"$f":"IF('1. Ordersheet'!B304=\"\",\"\",'1. Ordersheet'!B304)","v":""},{"$f":"IF('1. Ordersheet'!I304=\"\",\"\",'1. Ordersheet'!I304)","v":""},{"$f":"IF('1. Ordersheet'!J304=\"\",\"\",'1. Ordersheet'!J304)","v":""},{"$f":"IF('1. Ordersheet'!K304=\"\",\"\",'1. Ordersheet'!K304)","v":""},{"$f":"IF('1. Ordersheet'!M304=\"\",\"\",'1. Ordersheet'!M304)","v":""},null,null,{"$f":"IF('1. Ordersheet'!AR304=\"\",\"\",'1. Ordersheet'!AR304)","v":""},{"$f":"IF('1. Ordersheet'!AE304=\"\",\"\",'1. Ordersheet'!AE304)","v":""}]
[{"$f":"IF('1. Ordersheet'!B305=\"\",\"\",'1. Ordersheet'!B305)","v":""},{"$f":"IF('1. Ordersheet'!I305=\"\",\"\",'1. Ordersheet'!I305)","v":""},{"$f":"IF('1. Ordersheet'!J305=\"\",\"\",'1. Ordersheet'!J305)","v":""},{"$f":"IF('1. Ordersheet'!K305=\"\",\"\",'1. Ordersheet'!K305)","v":""},{"$f":"IF('1. Ordersheet'!M305=\"\",\"\",'1. Ordersheet'!M305)","v":""},null,null,{"$f":"IF('1. Ordersheet'!AR305=\"\",\"\",'1. Ordersheet'!AR305)","v":""},{"$f":"IF('1. Ordersheet'!AE305=\"\",\"\",'1. Ordersheet'!AE305)","v":""}]
[{"$f":"IF('1. Ordersheet'!B306=\"\",\"\",'1. Ordersheet'!B306)","v":""},{"$f":"IF('1. Ordersheet'!I306=\"\",\"\",'1. Ordersheet'!I306)","v":""},{"$f":"IF('1. Ordersheet'!J306=\"\",\"\",'1. Ordersheet'!J306)","v":""},{"$f":"IF('1. Ordersheet'!K306=\"\",\"\",'1. Ordersheet'!K306)","v":""},{"$f":"IF('1. Ordersheet'!M306=\"\",\"\",'1. Ordersheet'!M306)","v":""},null,null,{"$f":"IF('1. Ordersheet'!AR306=\"\",\"\",'1. Ordersheet'!AR306)","v":""},{"$f":"IF('1. Ordersheet'!AE306=\"\",\"\",'1. Ordersheet'!AE306)","v":""}]
[{"$f":"IF('1. Ordersheet'!B307=\"\",\"\",'1. Ordersheet'!B307)","v":""},{"$f":"IF('1. Ordersheet'!I307=\"\",\"\",'1. Ordersheet'!I307)","v":""},{"$f":"IF('1. Ordersheet'!J307=\"\",\"\",'1. Ordersheet'!J307)","v":""},{"$f":"IF('1. Ordersheet'!K307=\"\",\"\",'1. Ordersheet'!K307)","v":""},{"$f":"IF('1. Ordersheet'!M307=\"\",\"\",'1. Ordersheet'!M307)","v":""},null,null,{"$f":"IF('1. Ordersheet'!AR307=\"\",\"\",'1. Ordersheet'!AR307)","v":""},{"$f":"IF('1. Ordersheet'!AE307=\"\",\"\",'1. Ordersheet'!AE307)","v":""}]
[{"$f":"IF('1. Ordersheet'!B308=\"\",\"\",'1. Ordersheet'!B308)","v":""},{"$f":"IF('1. Ordersheet'!I308=\"\",\"\",'1. Ordersheet'!I308)","v":""},{"$f":"IF('1. Ordersheet'!J308=\"\",\"\",'1. Ordersheet'!J308)","v":""},{"$f":"IF('1. Ordersheet'!K308=\"\",\"\",'1. Ordersheet'!K308)","v":""},{"$f":"IF('1. Ordersheet'!M308=\"\",\"\",'1. Ordersheet'!M308)","v":""},null,null,{"$f":"IF('1. Ordersheet'!AR308=\"\",\"\",'1. Ordersheet'!AR308)","v":""},{"$f":"IF('1. Ordersheet'!AE308=\"\",\"\",'1. Ordersheet'!AE308)","v":""}]
[{"$f":"IF('1. Ordersheet'!B309=\"\",\"\",'1. Ordersheet'!B309)","v":""},{"$f":"IF('1. Ordersheet'!I309=\"\",\"\",'1. Ordersheet'!I309)","v":""},{"$f":"IF('1. Ordersheet'!J309=\"\",\"\",'1. Ordersheet'!J309)","v":""},{"$f":"IF('1. Ordersheet'!K309=\"\",\"\",'1. Ordersheet'!K309)","v":""},{"$f":"IF('1. Ordersheet'!M309=\"\",\"\",'1. Ordersheet'!M309)","v":""},null,null,{"$f":"IF('1. Ordersheet'!AR309=\"\",\"\",'1. Ordersheet'!AR309)","v":""},{"$f":"IF('1. Ordersheet'!AE309=\"\",\"\",'1. Ordersheet'!AE309)","v":""}]
[{"$f":"IF('1. Ordersheet'!B310=\"\",\"\",'1. Ordersheet'!B310)","v":""},{"$f":"IF('1. Ordersheet'!I310=\"\",\"\",'1. Ordersheet'!I310)","v":""},{"$f":"IF('1. Ordersheet'!J310=\"\",\"\",'1. Ordersheet'!J310)","v":""},{"$f":"IF('1. Ordersheet'!K310=\"\",\"\",'1. Ordersheet'!K310)","v":""},{"$f":"IF('1. Ordersheet'!M310=\"\",\"\",'1. Ordersheet'!M310)","v":""},null,null,{"$f":"IF('1. Ordersheet'!AR310=\"\",\"\",'1. Ordersheet'!AR310)","v":""},{"$f":"IF('1. Ordersheet'!AE310=\"\",\"\",'1. Ordersheet'!AE310)","v":""}]
[{"$f":"IF('1. Ordersheet'!B311=\"\",\"\",'1. Ordersheet'!B311)","v":""},{"$f":"IF('1. Ordersheet'!I311=\"\",\"\",'1. Ordersheet'!I311)","v":""},{"$f":"IF('1. Ordersheet'!J311=\"\",\"\",'1. Ordersheet'!J311)","v":""},{"$f":"IF('1. Ordersheet'!K311=\"\",\"\",'1. Ordersheet'!K311)","v":""},{"$f":"IF('1. Ordersheet'!M311=\"\",\"\",'1. Ordersheet'!M311)","v":""},null,null,{"$f":"IF('1. Ordersheet'!AR311=\"\",\"\",'1. Ordersheet'!AR311)","v":""},{"$f":"IF('1. Ordersheet'!AE311=\"\",\"\",'1. Ordersheet'!AE311)","v":""}]
[{"$f":"IF('1. Ordersheet'!B312=\"\",\"\",'1. Ordersheet'!B312)","v":""},{"$f":"IF('1. Ordersheet'!I312=\"\",\"\",'1. Ordersheet'!I312)","v":""},{"$f":"IF('1. Ordersheet'!J312=\"\",\"\",'1. Ordersheet'!J312)","v":""},{"$f":"IF('1. Ordersheet'!K312=\"\",\"\",'1. Ordersheet'!K312)","v":""},{"$f":"IF('1. Ordersheet'!M312=\"\",\"\",'1. Ordersheet'!M312)","v":""},null,null,{"$f":"IF('1. Ordersheet'!AR312=\"\",\"\",'1. Ordersheet'!AR312)","v":""},{"$f":"IF('1. Ordersheet'!AE312=\"\",\"\",'1. Ordersheet'!AE312)","v":""}]
[{"$f":"IF('1. Ordersheet'!B313=\"\",\"\",'1. Ordersheet'!B313)","v":""},{"$f":"IF('1. Ordersheet'!I313=\"\",\"\",'1. Ordersheet'!I313)","v":""},{"$f":"IF('1. Ordersheet'!J313=\"\",\"\",'1. Ordersheet'!J313)","v":""},{"$f":"IF('1. Ordersheet'!K313=\"\",\"\",'1. Ordersheet'!K313)","v":""},{"$f":"IF('1. Ordersheet'!M313=\"\",\"\",'1. Ordersheet'!M313)","v":""},null,null,{"$f":"IF('1. Ordersheet'!AR313=\"\",\"\",'1. Ordersheet'!AR313)","v":""},{"$f":"IF('1. Ordersheet'!AE313=\"\",\"\",'1. Ordersheet'!AE313)","v":""}]
[{"$f":"IF('1. Ordersheet'!B314=\"\",\"\",'1. Ordersheet'!B314)","v":""},{"$f":"IF('1. Ordersheet'!I314=\"\",\"\",'1. Ordersheet'!I314)","v":""},{"$f":"IF('1. Ordersheet'!J314=\"\",\"\",'1. Ordersheet'!J314)","v":""},{"$f":"IF('1. Ordersheet'!K314=\"\",\"\",'1. Ordersheet'!K314)","v":""},{"$f":"IF('1. Ordersheet'!M314=\"\",\"\",'1. Ordersheet'!M314)","v":""},null,null,{"$f":"IF('1. Ordersheet'!AR314=\"\",\"\",'1. Ordersheet'!AR314)","v":""},{"$f":"IF('1. Ordersheet'!AE314=\"\",\"\",'1. Ordersheet'!AE314)","v":""}]
[{"$f":"IF('1. Ordersheet'!B315=\"\",\"\",'1. Ordersheet'!B315)","v":""},{"$f":"IF('1. Ordersheet'!I315=\"\",\"\",'1. Ordersheet'!I315)","v":""},{"$f":"IF('1. Ordersheet'!J315=\"\",\"\",'1. Ordersheet'!J315)","v":""},{"$f":"IF('1. Ordersheet'!K315=\"\",\"\",'1. Ordersheet'!K315)","v":""},{"$f":"IF('1. Ordersheet'!M315=\"\",\"\",'1. Ordersheet'!M315)","v":""},null,null,{"$f":"IF('1. Ordersheet'!AR315=\"\",\"\",'1. Ordersheet'!AR315)","v":""},{"$f":"IF('1. Ordersheet'!AE315=\"\",\"\",'1. Ordersheet'!AE315)","v":""}]
[{"$f":"IF('1. Ordersheet'!B316=\"\",\"\",'1. Ordersheet'!B316)","v":""},{"$f":"IF('1. Ordersheet'!I316=\"\",\"\",'1. Ordersheet'!I316)","v":""},{"$f":"IF('1. Ordersheet'!J316=\"\",\"\",'1. Ordersheet'!J316)","v":""},{"$f":"IF('1. Ordersheet'!K316=\"\",\"\",'1. Ordersheet'!K316)","v":""},{"$f":"IF('1. Ordersheet'!M316=\"\",\"\",'1. Ordersheet'!M316)","v":""},null,null,{"$f":"IF('1. Ordersheet'!AR316=\"\",\"\",'1. Ordersheet'!AR316)","v":""},{"$f":"IF('1. Ordersheet'!AE316=\"\",\"\",'1. Ordersheet'!AE316)","v":""}]
[{"$f":"IF('1. Ordersheet'!B317=\"\",\"\",'1. Ordersheet'!B317)","v":""},{"$f":"IF('1. Ordersheet'!I317=\"\",\"\",'1. Ordersheet'!I317)","v":""},{"$f":"IF('1. Ordersheet'!J317=\"\",\"\",'1. Ordersheet'!J317)","v":""},{"$f":"IF('1. Ordersheet'!K317=\"\",\"\",'1. Ordersheet'!K317)","v":""},{"$f":"IF('1. Ordersheet'!M317=\"\",\"\",'1. Ordersheet'!M317)","v":""},null,null,{"$f":"IF('1. Ordersheet'!AR317=\"\",\"\",'1. Ordersheet'!AR317)","v":""},{"$f":"IF('1. Ordersheet'!AE317=\"\",\"\",'1. Ordersheet'!AE317)","v":""}]
[{"$f":"IF('1. Ordersheet'!B318=\"\",\"\",'1. Ordersheet'!B318)","v":""},{"$f":"IF('1. Ordersheet'!I318=\"\",\"\",'1. Ordersheet'!I318)","v":""},{"$f":"IF('1. Ordersheet'!J318=\"\",\"\",'1. Ordersheet'!J318)","v":""},{"$f":"IF('1. Ordersheet'!K318=\"\",\"\",'1. Ordersheet'!K318)","v":""},{"$f":"IF('1. Ordersheet'!M318=\"\",\"\",'1. Ordersheet'!M318)","v":""},null,null,{"$f":"IF('1. Ordersheet'!AR318=\"\",\"\",'1. Ordersheet'!AR318)","v":""},{"$f":"IF('1. Ordersheet'!AE318=\"\",\"\",'1. Ordersheet'!AE318)","v":""}]
[{"$f":"IF('1. Ordersheet'!B319=\"\",\"\",'1. Ordersheet'!B319)","v":""},{"$f":"IF('1. Ordersheet'!I319=\"\",\"\",'1. Ordersheet'!I319)","v":""},{"$f":"IF('1. Ordersheet'!J319=\"\",\"\",'1. Ordersheet'!J319)","v":""},{"$f":"IF('1. Ordersheet'!K319=\"\",\"\",'1. Ordersheet'!K319)","v":""},{"$f":"IF('1. Ordersheet'!M319=\"\",\"\",'1. Ordersheet'!M319)","v":""},null,null,{"$f":"IF('1. Ordersheet'!AR319=\"\",\"\",'1. Ordersheet'!AR319)","v":""},{"$f":"IF('1. Ordersheet'!AE319=\"\",\"\",'1. Ordersheet'!AE319)","v":""}]
[{"$f":"IF('1. Ordersheet'!B320=\"\",\"\",'1. Ordersheet'!B320)","v":""},{"$f":"IF('1. Ordersheet'!I320=\"\",\"\",'1. Ordersheet'!I320)","v":""},{"$f":"IF('1. Ordersheet'!J320=\"\",\"\",'1. Ordersheet'!J320)","v":""},{"$f":"IF('1. Ordersheet'!K320=\"\",\"\",'1. Ordersheet'!K320)","v":""},{"$f":"IF('1. Ordersheet'!M320=\"\",\"\",'1. Ordersheet'!M320)","v":""},null,null,{"$f":"IF('1. Ordersheet'!AR320=\"\",\"\",'1. Ordersheet'!AR320)","v":""},{"$f":"IF('1. Ordersheet'!AE320=\"\",\"\",'1. Ordersheet'!AE320)","v":""}]
[{"$f":"IF('1. Ordersheet'!B321=\"\",\"\",'1. Ordersheet'!B321)","v":""},{"$f":"IF('1. Ordersheet'!I321=\"\",\"\",'1. Ordersheet'!I321)","v":""},{"$f":"IF('1. Ordersheet'!J321=\"\",\"\",'1. Ordersheet'!J321)","v":""},{"$f":"IF('1. Ordersheet'!K321=\"\",\"\",'1. Ordersheet'!K321)","v":""},{"$f":"IF('1. Ordersheet'!M321=\"\",\"\",'1. Ordersheet'!M321)","v":""},null,null,{"$f":"IF('1. Ordersheet'!AR321=\"\",\"\",'1. Ordersheet'!AR321)","v":""},{"$f":"IF('1. Ordersheet'!AE321=\"\",\"\",'1. Ordersheet'!AE321)","v":""}]
[{"$f":"IF('1. Ordersheet'!B322=\"\",\"\",'1. Ordersheet'!B322)","v":""},{"$f":"IF('1. Ordersheet'!I322=\"\",\"\",'1. Ordersheet'!I322)","v":""},{"$f":"IF('1. Ordersheet'!J322=\"\",\"\",'1. Ordersheet'!J322)","v":""},{"$f":"IF('1. Ordersheet'!K322=\"\",\"\",'1. Ordersheet'!K322)","v":""},{"$f":"IF('1. Ordersheet'!M322=\"\",\"\",'1. Ordersheet'!M322)","v":""},null,null,{"$f":"IF('1. Ordersheet'!AR322=\"\",\"\",'1. Ordersheet'!AR322)","v":""},{"$f":"IF('1. Ordersheet'!AE322=\"\",\"\",'1. Ordersheet'!AE322)","v":""}]
[{"$f":"IF('1. Ordersheet'!B323=\"\",\"\",'1. Ordersheet'!B323)","v":""},{"$f":"IF('1. Ordersheet'!I323=\"\",\"\",'1. Ordersheet'!I323)","v":""},{"$f":"IF('1. Ordersheet'!J323=\"\",\"\",'1. Ordersheet'!J323)","v":""},{"$f":"IF('1. Ordersheet'!K323=\"\",\"\",'1. Ordersheet'!K323)","v":""},{"$f":"IF('1. Ordersheet'!M323=\"\",\"\",'1. Ordersheet'!M323)","v":""},null,null,{"$f":"IF('1. Ordersheet'!AR323=\"\",\"\",'1. Ordersheet'!AR323)","v":""},{"$f":"IF('1. Ordersheet'!AE323=\"\",\"\",'1. Ordersheet'!AE323)","v":""}]
[{"$f":"IF('1. Ordersheet'!B324=\"\",\"\",'1. Ordersheet'!B324)","v":""},{"$f":"IF('1. Ordersheet'!I324=\"\",\"\",'1. Ordersheet'!I324)","v":""},{"$f":"IF('1. Ordersheet'!J324=\"\",\"\",'1. Ordersheet'!J324)","v":""},{"$f":"IF('1. Ordersheet'!K324=\"\",\"\",'1. Ordersheet'!K324)","v":""},{"$f":"IF('1. Ordersheet'!M324=\"\",\"\",'1. Ordersheet'!M324)","v":""},null,null,{"$f":"IF('1. Ordersheet'!AR324=\"\",\"\",'1. Ordersheet'!AR324)","v":""},{"$f":"IF('1. Ordersheet'!AE324=\"\",\"\",'1. Ordersheet'!AE324)","v":""}]
[{"$f":"IF('1. Ordersheet'!B325=\"\",\"\",'1. Ordersheet'!B325)","v":""},{"$f":"IF('1. Ordersheet'!I325=\"\",\"\",'1. Ordersheet'!I325)","v":""},{"$f":"IF('1. Ordersheet'!J325=\"\",\"\",'1. Ordersheet'!J325)","v":""},{"$f":"IF('1. Ordersheet'!K325=\"\",\"\",'1. Ordersheet'!K325)","v":""},{"$f":"IF('1. Ordersheet'!M325=\"\",\"\",'1. Ordersheet'!M325)","v":""},null,null,{"$f":"IF('1. Ordersheet'!AR325=\"\",\"\",'1. Ordersheet'!AR325)","v":""},{"$f":"IF('1. Ordersheet'!AE325=\"\",\"\",'1. Ordersheet'!AE325)","v":""}]
[{"$f":"IF('1. Ordersheet'!B326=\"\",\"\",'1. Ordersheet'!B326)","v":""},{"$f":"IF('1. Ordersheet'!I326=\"\",\"\",'1. Ordersheet'!I326)","v":""},{"$f":"IF('1. Ordersheet'!J326=\"\",\"\",'1. Ordersheet'!J326)","v":""},{"$f":"IF('1. Ordersheet'!K326=\"\",\"\",'1. Ordersheet'!K326)","v":""},{"$f":"IF('1. Ordersheet'!M326=\"\",\"\",'1. Ordersheet'!M326)","v":""},null,null,{"$f":"IF('1. Ordersheet'!AR326=\"\",\"\",'1. Ordersheet'!AR326)","v":""},{"$f":"IF('1. Ordersheet'!AE326=\"\",\"\",'1. Ordersheet'!AE326)","v":""}]
[{"$f":"IF('1. Ordersheet'!B327=\"\",\"\",'1. Ordersheet'!B327)","v":""},{"$f":"IF('1. Ordersheet'!I327=\"\",\"\",'1. Ordersheet'!I327)","v":""},{"$f":"IF('1. Ordersheet'!J327=\"\",\"\",'1. Ordersheet'!J327)","v":""},{"$f":"IF('1. Ordersheet'!K327=\"\",\"\",'1. Ordersheet'!K327)","v":""},{"$f":"IF('1. Ordersheet'!M327=\"\",\"\",'1. Ordersheet'!M327)","v":""},null,null,{"$f":"IF('1. Ordersheet'!AR327=\"\",\"\",'1. Ordersheet'!AR327)","v":""},{"$f":"IF('1. Ordersheet'!AE327=\"\",\"\",'1. Ordersheet'!AE327)","v":""}]
[{"$f":"IF('1. Ordersheet'!B328=\"\",\"\",'1. Ordersheet'!B328)","v":""},{"$f":"IF('1. Ordersheet'!I328=\"\",\"\",'1. Ordersheet'!I328)","v":""},{"$f":"IF('1. Ordersheet'!J328=\"\",\"\",'1. Ordersheet'!J328)","v":""},{"$f":"IF('1. Ordersheet'!K328=\"\",\"\",'1. Ordersheet'!K328)","v":""},{"$f":"IF('1. Ordersheet'!M328=\"\",\"\",'1. Ordersheet'!M328)","v":""},null,null,{"$f":"IF('1. Ordersheet'!AR328=\"\",\"\",'1. Ordersheet'!AR328)","v":""},{"$f":"IF('1. Ordersheet'!AE328=\"\",\"\",'1. Ordersheet'!AE328)","v":""}]
[{"$f":"IF('1. Ordersheet'!B329=\"\",\"\",'1. Ordersheet'!B329)","v":""},{"$f":"IF('1. Ordersheet'!I329=\"\",\"\",'1. Ordersheet'!I329)","v":""},{"$f":"IF('1. Ordersheet'!J329=\"\",\"\",'1. Ordersheet'!J329)","v":""},{"$f":"IF('1. Ordersheet'!K329=\"\",\"\",'1. Ordersheet'!K329)","v":""},{"$f":"IF('1. Ordersheet'!M329=\"\",\"\",'1. Ordersheet'!M329)","v":""},null,null,{"$f":"IF('1. Ordersheet'!AR329=\"\",\"\",'1. Ordersheet'!AR329)","v":""},{"$f":"IF('1. Ordersheet'!AE329=\"\",\"\",'1. Ordersheet'!AE329)","v":""}]
[{"$f":"IF('1. Ordersheet'!B330=\"\",\"\",'1. Ordersheet'!B330)","v":""},{"$f":"IF('1. Ordersheet'!I330=\"\",\"\",'1. Ordersheet'!I330)","v":""},{"$f":"IF('1. Ordersheet'!J330=\"\",\"\",'1. Ordersheet'!J330)","v":""},{"$f":"IF('1. Ordersheet'!K330=\"\",\"\",'1. Ordersheet'!K330)","v":""},{"$f":"IF('1. Ordersheet'!M330=\"\",\"\",'1. Ordersheet'!M330)","v":""},null,null,{"$f":"IF('1. Ordersheet'!AR330=\"\",\"\",'1. Ordersheet'!AR330)","v":""},{"$f":"IF('1. Ordersheet'!AE330=\"\",\"\",'1. Ordersheet'!AE330)","v":""}]
[{"$f":"IF('1. Ordersheet'!B331=\"\",\"\",'1. Ordersheet'!B331)","v":""},{"$f":"IF('1. Ordersheet'!I331=\"\",\"\",'1. Ordersheet'!I331)","v":""},{"$f":"IF('1. Ordersheet'!J331=\"\",\"\",'1. Ordersheet'!J331)","v":""},{"$f":"IF('1. Ordersheet'!K331=\"\",\"\",'1. Ordersheet'!K331)","v":""},{"$f":"IF('1. Ordersheet'!M331=\"\",\"\",'1. Ordersheet'!M331)","v":""},null,null,{"$f":"IF('1. Ordersheet'!AR331=\"\",\"\",'1. Ordersheet'!AR331)","v":""},{"$f":"IF('1. Ordersheet'!AE331=\"\",\"\",'1. Ordersheet'!AE331)","v":""}]
[{"$f":"IF('1. Ordersheet'!B332=\"\",\"\",'1. Ordersheet'!B332)","v":""},{"$f":"IF('1. Ordersheet'!I332=\"\",\"\",'1. Ordersheet'!I332)","v":""},{"$f":"IF('1. Ordersheet'!J332=\"\",\"\",'1. Ordersheet'!J332)","v":""},{"$f":"IF('1. Ordersheet'!K332=\"\",\"\",'1. Ordersheet'!K332)","v":""},{"$f":"IF('1. Ordersheet'!M332=\"\",\"\",'1. Ordersheet'!M332)","v":""},null,null,{"$f":"IF('1. Ordersheet'!AR332=\"\",\"\",'1. Ordersheet'!AR332)","v":""},{"$f":"IF('1. Ordersheet'!AE332=\"\",\"\",'1. Ordersheet'!AE332)","v":""}]
[{"$f":"IF('1. Ordersheet'!B333=\"\",\"\",'1. Ordersheet'!B333)","v":""},{"$f":"IF('1. Ordersheet'!I333=\"\",\"\",'1. Ordersheet'!I333)","v":""},{"$f":"IF('1. Ordersheet'!J333=\"\",\"\",'1. Ordersheet'!J333)","v":""},{"$f":"IF('1. Ordersheet'!K333=\"\",\"\",'1. Ordersheet'!K333)","v":""},{"$f":"IF('1. Ordersheet'!M333=\"\",\"\",'1. Ordersheet'!M333)","v":""},null,null,{"$f":"IF('1. Ordersheet'!AR333=\"\",\"\",'1. Ordersheet'!AR333)","v":""},{"$f":"IF('1. Ordersheet'!AE333=\"\",\"\",'1. Ordersheet'!AE333)","v":""}]
[{"$f":"IF('1. Ordersheet'!B334=\"\",\"\",'1. Ordersheet'!B334)","v":""},{"$f":"IF('1. Ordersheet'!I334=\"\",\"\",'1. Ordersheet'!I334)","v":""},{"$f":"IF('1. Ordersheet'!J334=\"\",\"\",'1. Ordersheet'!J334)","v":""},{"$f":"IF('1. Ordersheet'!K334=\"\",\"\",'1. Ordersheet'!K334)","v":""},{"$f":"IF('1. Ordersheet'!M334=\"\",\"\",'1. Ordersheet'!M334)","v":""},null,null,{"$f":"IF('1. Ordersheet'!AR334=\"\",\"\",'1. Ordersheet'!AR334)","v":""},{"$f":"IF('1. Ordersheet'!AE334=\"\",\"\",'1. Ordersheet'!AE334)","v":""}]
[{"$f":"IF('1. Ordersheet'!B335=\"\",\"\",'1. Ordersheet'!B335)","v":""},{"$f":"IF('1. Ordersheet'!I335=\"\",\"\",'1. Ordersheet'!I335)","v":""},{"$f":"IF('1. Ordersheet'!J335=\"\",\"\",'1. Ordersheet'!J335)","v":""},{"$f":"IF('1. Ordersheet'!K335=\"\",\"\",'1. Ordersheet'!K335)","v":""},{"$f":"IF('1. Ordersheet'!M335=\"\",\"\",'1. Ordersheet'!M335)","v":""},null,null,{"$f":"IF('1. Ordersheet'!AR335=\"\",\"\",'1. Ordersheet'!AR335)","v":""},{"$f":"IF('1. Ordersheet'!AE335=\"\",\"\",'1. Ordersheet'!AE335)","v":""}]
[{"$f":"IF('1. Ordersheet'!B336=\"\",\"\",'1. Ordersheet'!B336)","v":""},{"$f":"IF('1. Ordersheet'!I336=\"\",\"\",'1. Ordersheet'!I336)","v":""},{"$f":"IF('1. Ordersheet'!J336=\"\",\"\",'1. Ordersheet'!J336)","v":""},{"$f":"IF('1. Ordersheet'!K336=\"\",\"\",'1. Ordersheet'!K336)","v":""},{"$f":"IF('1. Ordersheet'!M336=\"\",\"\",'1. Ordersheet'!M336)","v":""},null,null,{"$f":"IF('1. Ordersheet'!AR336=\"\",\"\",'1. Ordersheet'!AR336)","v":""},{"$f":"IF('1. Ordersheet'!AE336=\"\",\"\",'1. Ordersheet'!AE336)","v":""}]
[{"$f":"IF('1. Ordersheet'!B337=\"\",\"\",'1. Ordersheet'!B337)","v":""},{"$f":"IF('1. Ordersheet'!I337=\"\",\"\",'1. Ordersheet'!I337)","v":""},{"$f":"IF('1. Ordersheet'!J337=\"\",\"\",'1. Ordersheet'!J337)","v":""},{"$f":"IF('1. Ordersheet'!K337=\"\",\"\",'1. Ordersheet'!K337)","v":""},{"$f":"IF('1. Ordersheet'!M337=\"\",\"\",'1. Ordersheet'!M337)","v":""},null,null,{"$f":"IF('1. Ordersheet'!AR337=\"\",\"\",'1. Ordersheet'!AR337)","v":""},{"$f":"IF('1. Ordersheet'!AE337=\"\",\"\",'1. Ordersheet'!AE337)","v":""}]
[{"$f":"IF('1. Ordersheet'!B338=\"\",\"\",'1. Ordersheet'!B338)","v":""},{"$f":"IF('1. Ordersheet'!I338=\"\",\"\",'1. Ordersheet'!I338)","v":""},{"$f":"IF('1. Ordersheet'!J338=\"\",\"\",'1. Ordersheet'!J338)","v":""},{"$f":"IF('1. Ordersheet'!K338=\"\",\"\",'1. Ordersheet'!K338)","v":""},{"$f":"IF('1. Ordersheet'!M338=\"\",\"\",'1. Ordersheet'!M338)","v":""},null,null,{"$f":"IF('1. Ordersheet'!AR338=\"\",\"\",'1. Ordersheet'!AR338)","v":""},{"$f":"IF('1. Ordersheet'!AE338=\"\",\"\",'1. Ordersheet'!AE338)","v":""}]
[{"$f":"IF('1. Ordersheet'!B339=\"\",\"\",'1. Ordersheet'!B339)","v":""},{"$f":"IF('1. Ordersheet'!I339=\"\",\"\",'1. Ordersheet'!I339)","v":""},{"$f":"IF('1. Ordersheet'!J339=\"\",\"\",'1. Ordersheet'!J339)","v":""},{"$f":"IF('1. Ordersheet'!K339=\"\",\"\",'1. Ordersheet'!K339)","v":""},{"$f":"IF('1. Ordersheet'!M339=\"\",\"\",'1. Ordersheet'!M339)","v":""},null,null,{"$f":"IF('1. Ordersheet'!AR339=\"\",\"\",'1. Ordersheet'!AR339)","v":""},{"$f":"IF('1. Ordersheet'!AE339=\"\",\"\",'1. Ordersheet'!AE339)","v":""}]
[{"$f":"IF('1. Ordersheet'!B340=\"\",\"\",'1. Ordersheet'!B340)","v":""},{"$f":"IF('1. Ordersheet'!I340=\"\",\"\",'1. Ordersheet'!I340)","v":""},{"$f":"IF('1. Ordersheet'!J340=\"\",\"\",'1. Ordersheet'!J340)","v":""},{"$f":"IF('1. Ordersheet'!K340=\"\",\"\",'1. Ordersheet'!K340)","v":""},{"$f":"IF('1. Ordersheet'!M340=\"\",\"\",'1. Ordersheet'!M340)","v":""},null,null,{"$f":"IF('1. Ordersheet'!AR340=\"\",\"\",'1. Ordersheet'!AR340)","v":""},{"$f":"IF('1. Ordersheet'!AE340=\"\",\"\",'1. Ordersheet'!AE340)","v":""}]
[{"$f":"IF('1. Ordersheet'!B341=\"\",\"\",'1. Ordersheet'!B341)","v":""},{"$f":"IF('1. Ordersheet'!I341=\"\",\"\",'1. Ordersheet'!I341)","v":""},{"$f":"IF('1. Ordersheet'!J341=\"\",\"\",'1. Ordersheet'!J341)","v":""},{"$f":"IF('1. Ordersheet'!K341=\"\",\"\",'1. Ordersheet'!K341)","v":""},{"$f":"IF('1. Ordersheet'!M341=\"\",\"\",'1. Ordersheet'!M341)","v":""},null,null,{"$f":"IF('1. Ordersheet'!AR341=\"\",\"\",'1. Ordersheet'!AR341)","v":""},{"$f":"IF('1. Ordersheet'!AE341=\"\",\"\",'1. Ordersheet'!AE341)","v":""}]
[{"$f":"IF('1. Ordersheet'!B342=\"\",\"\",'1. Ordersheet'!B342)","v":""},{"$f":"IF('1. Ordersheet'!I342=\"\",\"\",'1. Ordersheet'!I342)","v":""},{"$f":"IF('1. Ordersheet'!J342=\"\",\"\",'1. Ordersheet'!J342)","v":""},{"$f":"IF('1. Ordersheet'!K342=\"\",\"\",'1. Ordersheet'!K342)","v":""},{"$f":"IF('1. Ordersheet'!M342=\"\",\"\",'1. Ordersheet'!M342)","v":""},null,null,{"$f":"IF('1. Ordersheet'!AR342=\"\",\"\",'1. Ordersheet'!AR342)","v":""},{"$f":"IF('1. Ordersheet'!AE342=\"\",\"\",'1. Ordersheet'!AE342)","v":""}]
[{"$f":"IF('1. Ordersheet'!B343=\"\",\"\",'1. Ordersheet'!B343)","v":""},{"$f":"IF('1. Ordersheet'!I343=\"\",\"\",'1. Ordersheet'!I343)","v":""},{"$f":"IF('1. Ordersheet'!J343=\"\",\"\",'1. Ordersheet'!J343)","v":""},{"$f":"IF('1. Ordersheet'!K343=\"\",\"\",'1. Ordersheet'!K343)","v":""},{"$f":"IF('1. Ordersheet'!M343=\"\",\"\",'1. Ordersheet'!M343)","v":""},null,null,{"$f":"IF('1. Ordersheet'!AR343=\"\",\"\",'1. Ordersheet'!AR343)","v":""},{"$f":"IF('1. Ordersheet'!AE343=\"\",\"\",'1. Ordersheet'!AE343)","v":""}]
[{"$f":"IF('1. Ordersheet'!B344=\"\",\"\",'1. Ordersheet'!B344)","v":""},{"$f":"IF('1. Ordersheet'!I344=\"\",\"\",'1. Ordersheet'!I344)","v":""},{"$f":"IF('1. Ordersheet'!J344=\"\",\"\",'1. Ordersheet'!J344)","v":""},{"$f":"IF('1. Ordersheet'!K344=\"\",\"\",'1. Ordersheet'!K344)","v":""},{"$f":"IF('1. Ordersheet'!M344=\"\",\"\",'1. Ordersheet'!M344)","v":""},null,null,{"$f":"IF('1. Ordersheet'!AR344=\"\",\"\",'1. Ordersheet'!AR344)","v":""},{"$f":"IF('1. Ordersheet'!AE344=\"\",\"\",'1. Ordersheet'!AE344)","v":""}]
[{"$f":"IF('1. Ordersheet'!B345=\"\",\"\",'1. Ordersheet'!B345)","v":""},{"$f":"IF('1. Ordersheet'!I345=\"\",\"\",'1. Ordersheet'!I345)","v":""},{"$f":"IF('1. Ordersheet'!J345=\"\",\"\",'1. Ordersheet'!J345)","v":""},{"$f":"IF('1. Ordersheet'!K345=\"\",\"\",'1. Ordersheet'!K345)","v":""},{"$f":"IF('1. Ordersheet'!M345=\"\",\"\",'1. Ordersheet'!M345)","v":""},null,null,{"$f":"IF('1. Ordersheet'!AR345=\"\",\"\",'1. Ordersheet'!AR345)","v":""},{"$f":"IF('1. Ordersheet'!AE345=\"\",\"\",'1. Ordersheet'!AE345)","v":""}]
[{"$f":"IF('1. Ordersheet'!B346=\"\",\"\",'1. Ordersheet'!B346)","v":""},{"$f":"IF('1. Ordersheet'!I346=\"\",\"\",'1. Ordersheet'!I346)","v":""},{"$f":"IF('1. Ordersheet'!J346=\"\",\"\",'1. Ordersheet'!J346)","v":""},{"$f":"IF('1. Ordersheet'!K346=\"\",\"\",'1. Ordersheet'!K346)","v":""},{"$f":"IF('1. Ordersheet'!M346=\"\",\"\",'1. Ordersheet'!M346)","v":""},null,null,{"$f":"IF('1. Ordersheet'!AR346=\"\",\"\",'1. Ordersheet'!AR346)","v":""},{"$f":"IF('1. Ordersheet'!AE346=\"\",\"\",'1. Ordersheet'!AE346)","v":""}]
[{"$f":"IF('1. Ordersheet'!B347=\"\",\"\",'1. Ordersheet'!B347)","v":""},{"$f":"IF('1. Ordersheet'!I347=\"\",\"\",'1. Ordersheet'!I347)","v":""},{"$f":"IF('1. Ordersheet'!J347=\"\",\"\",'1. Ordersheet'!J347)","v":""},{"$f":"IF('1. Ordersheet'!K347=\"\",\"\",'1. Ordersheet'!K347)","v":""},{"$f":"IF('1. Ordersheet'!M347=\"\",\"\",'1. Ordersheet'!M347)","v":""},null,null,{"$f":"IF('1. Ordersheet'!AR347=\"\",\"\",'1. Ordersheet'!AR347)","v":""},{"$f":"IF('1. Ordersheet'!AE347=\"\",\"\",'1. Ordersheet'!AE347)","v":""}]
[{"$f":"IF('1. Ordersheet'!B348=\"\",\"\",'1. Ordersheet'!B348)","v":""},{"$f":"IF('1. Ordersheet'!I348=\"\",\"\",'1. Ordersheet'!I348)","v":""},{"$f":"IF('1. Ordersheet'!J348=\"\",\"\",'1. Ordersheet'!J348)","v":""},{"$f":"IF('1. Ordersheet'!K348=\"\",\"\",'1. Ordersheet'!K348)","v":""},{"$f":"IF('1. Ordersheet'!M348=\"\",\"\",'1. Ordersheet'!M348)","v":""},null,null,{"$f":"IF('1. Ordersheet'!AR348=\"\",\"\",'1. Ordersheet'!AR348)","v":""},{"$f":"IF('1. Ordersheet'!AE348=\"\",\"\",'1. Ordersheet'!AE348)","v":""}]
[{"$f":"IF('1. Ordersheet'!B349=\"\",\"\",'1. Ordersheet'!B349)","v":""},{"$f":"IF('1. Ordersheet'!I349=\"\",\"\",'1. Ordersheet'!I349)","v":""},{"$f":"IF('1. Ordersheet'!J349=\"\",\"\",'1. Ordersheet'!J349)","v":""},{"$f":"IF('1. Ordersheet'!K349=\"\",\"\",'1. Ordersheet'!K349)","v":""},{"$f":"IF('1. Ordersheet'!M349=\"\",\"\",'1. Ordersheet'!M349)","v":""},null,null,{"$f":"IF('1. Ordersheet'!AR349=\"\",\"\",'1. Ordersheet'!AR349)","v":""},{"$f":"IF('1. Ordersheet'!AE349=\"\",\"\",'1. Ordersheet'!AE349)","v":""}]
[{"$f":"IF('1. Ordersheet'!B350=\"\",\"\",'1. Ordersheet'!B350)","v":""},{"$f":"IF('1. Ordersheet'!I350=\"\",\"\",'1. Ordersheet'!I350)","v":""},{"$f":"IF('1. Ordersheet'!J350=\"\",\"\",'1. Ordersheet'!J350)","v":""},{"$f":"IF('1. Ordersheet'!K350=\"\",\"\",'1. Ordersheet'!K350)","v":""},{"$f":"IF('1. Ordersheet'!M350=\"\",\"\",'1. Ordersheet'!M350)","v":""},null,null,{"$f":"IF('1. Ordersheet'!AR350=\"\",\"\",'1. Ordersheet'!AR350)","v":""},{"$f":"IF('1. Ordersheet'!AE350=\"\",\"\",'1. Ordersheet'!AE350)","v":""}]
[{"$f":"IF('1. Ordersheet'!B351=\"\",\"\",'1. Ordersheet'!B351)","v":""},{"$f":"IF('1. Ordersheet'!I351=\"\",\"\",'1. Ordersheet'!I351)","v":""},{"$f":"IF('1. Ordersheet'!J351=\"\",\"\",'1. Ordersheet'!J351)","v":""},{"$f":"IF('1. Ordersheet'!K351=\"\",\"\",'1. Ordersheet'!K351)","v":""},{"$f":"IF('1. Ordersheet'!M351=\"\",\"\",'1. Ordersheet'!M351)","v":""},null,null,{"$f":"IF('1. Ordersheet'!AR351=\"\",\"\",'1. Ordersheet'!AR351)","v":""},{"$f":"IF('1. Ordersheet'!AE351=\"\",\"\",'1. Ordersheet'!AE351)","v":""}]
[{"$f":"IF('1. Ordersheet'!B352=\"\",\"\",'1. Ordersheet'!B352)","v":""},{"$f":"IF('1. Ordersheet'!I352=\"\",\"\",'1. Ordersheet'!I352)","v":""},{"$f":"IF('1. Ordersheet'!J352=\"\",\"\",'1. Ordersheet'!J352)","v":""},{"$f":"IF('1. Ordersheet'!K352=\"\",\"\",'1. Ordersheet'!K352)","v":""},{"$f":"IF('1. Ordersheet'!M352=\"\",\"\",'1. Ordersheet'!M352)","v":""},null,null,{"$f":"IF('1. Ordersheet'!AR352=\"\",\"\",'1. Ordersheet'!AR352)","v":""},{"$f":"IF('1. Ordersheet'!AE352=\"\",\"\",'1. Ordersheet'!AE352)","v":""}]
[{"$f":"IF('1. Ordersheet'!B353=\"\",\"\",'1. Ordersheet'!B353)","v":""},{"$f":"IF('1. Ordersheet'!I353=\"\",\"\",'1. Ordersheet'!I353)","v":""},{"$f":"IF('1. Ordersheet'!J353=\"\",\"\",'1. Ordersheet'!J353)","v":""},{"$f":"IF('1. Ordersheet'!K353=\"\",\"\",'1. Ordersheet'!K353)","v":""},{"$f":"IF('1. Ordersheet'!M353=\"\",\"\",'1. Ordersheet'!M353)","v":""},null,null,{"$f":"IF('1. Ordersheet'!AR353=\"\",\"\",'1. Ordersheet'!AR353)","v":""},{"$f":"IF('1. Ordersheet'!AE353=\"\",\"\",'1. Ordersheet'!AE353)","v":""}]
[{"$f":"IF('1. Ordersheet'!B354=\"\",\"\",'1. Ordersheet'!B354)","v":""},{"$f":"IF('1. Ordersheet'!I354=\"\",\"\",'1. Ordersheet'!I354)","v":""},{"$f":"IF('1. Ordersheet'!J354=\"\",\"\",'1. Ordersheet'!J354)","v":""},{"$f":"IF('1. Ordersheet'!K354=\"\",\"\",'1. Ordersheet'!K354)","v":""},{"$f":"IF('1. Ordersheet'!M354=\"\",\"\",'1. Ordersheet'!M354)","v":""},null,null,{"$f":"IF('1. Ordersheet'!AR354=\"\",\"\",'1. Ordersheet'!AR354)","v":""},{"$f":"IF('1. Ordersheet'!AE354=\"\",\"\",'1. Ordersheet'!AE354)","v":""}]
[{"$f":"IF('1. Ordersheet'!B355=\"\",\"\",'1. Ordersheet'!B355)","v":""},{"$f":"IF('1. Ordersheet'!I355=\"\",\"\",'1. Ordersheet'!I355)","v":""},{"$f":"IF('1. Ordersheet'!J355=\"\",\"\",'1. Ordersheet'!J355)","v":""},{"$f":"IF('1. Ordersheet'!K355=\"\",\"\",'1. Ordersheet'!K355)","v":""},{"$f":"IF('1. Ordersheet'!M355=\"\",\"\",'1. Ordersheet'!M355)","v":""},null,null,{"$f":"IF('1. Ordersheet'!AR355=\"\",\"\",'1. Ordersheet'!AR355)","v":""},{"$f":"IF('1. Ordersheet'!AE355=\"\",\"\",'1. Ordersheet'!AE355)","v":""}]
[{"$f":"IF('1. Ordersheet'!B356=\"\",\"\",'1. Ordersheet'!B356)","v":""},{"$f":"IF('1. Ordersheet'!I356=\"\",\"\",'1. Ordersheet'!I356)","v":""},{"$f":"IF('1. Ordersheet'!J356=\"\",\"\",'1. Ordersheet'!J356)","v":""},{"$f":"IF('1. Ordersheet'!K356=\"\",\"\",'1. Ordersheet'!K356)","v":""},{"$f":"IF('1. Ordersheet'!M356=\"\",\"\",'1. Ordersheet'!M356)","v":""},null,null,{"$f":"IF('1. Ordersheet'!AR356=\"\",\"\",'1. Ordersheet'!AR356)","v":""},{"$f":"IF('1. Ordersheet'!AE356=\"\",\"\",'1. Ordersheet'!AE356)","v":""}]
[{"$f":"IF('1. Ordersheet'!B357=\"\",\"\",'1. Ordersheet'!B357)","v":""},{"$f":"IF('1. Ordersheet'!I357=\"\",\"\",'1. Ordersheet'!I357)","v":""},{"$f":"IF('1. Ordersheet'!J357=\"\",\"\",'1. Ordersheet'!J357)","v":""},{"$f":"IF('1. Ordersheet'!K357=\"\",\"\",'1. Ordersheet'!K357)","v":""},{"$f":"IF('1. Ordersheet'!M357=\"\",\"\",'1. Ordersheet'!M357)","v":""},null,null,{"$f":"IF('1. Ordersheet'!AR357=\"\",\"\",'1. Ordersheet'!AR357)","v":""},{"$f":"IF('1. Ordersheet'!AE357=\"\",\"\",'1. Ordersheet'!AE357)","v":""}]
[{"$f":"IF('1. Ordersheet'!B358=\"\",\"\",'1. Ordersheet'!B358)","v":""},{"$f":"IF('1. Ordersheet'!I358=\"\",\"\",'1. Ordersheet'!I358)","v":""},{"$f":"IF('1. Ordersheet'!J358=\"\",\"\",'1. Ordersheet'!J358)","v":""},{"$f":"IF('1. Ordersheet'!K358=\"\",\"\",'1. Ordersheet'!K358)","v":""},{"$f":"IF('1. Ordersheet'!M358=\"\",\"\",'1. Ordersheet'!M358)","v":""},null,null,{"$f":"IF('1. Ordersheet'!AR358=\"\",\"\",'1. Ordersheet'!AR358)","v":""},{"$f":"IF('1. Ordersheet'!AE358=\"\",\"\",'1. Ordersheet'!AE358)","v":""}]
[{"$f":"IF('1. Ordersheet'!B359=\"\",\"\",'1. Ordersheet'!B359)","v":""},{"$f":"IF('1. Ordersheet'!I359=\"\",\"\",'1. Ordersheet'!I359)","v":""},{"$f":"IF('1. Ordersheet'!J359=\"\",\"\",'1. Ordersheet'!J359)","v":""},{"$f":"IF('1. Ordersheet'!K359=\"\",\"\",'1. Ordersheet'!K359)","v":""},{"$f":"IF('1. Ordersheet'!M359=\"\",\"\",'1. Ordersheet'!M359)","v":""},null,null,{"$f":"IF('1. Ordersheet'!AR359=\"\",\"\",'1. Ordersheet'!AR359)","v":""},{"$f":"IF('1. Ordersheet'!AE359=\"\",\"\",'1. Ordersheet'!AE359)","v":""}]
[{"$f":"IF('1. Ordersheet'!B360=\"\",\"\",'1. Ordersheet'!B360)","v":""},{"$f":"IF('1. Ordersheet'!I360=\"\",\"\",'1. Ordersheet'!I360)","v":""},{"$f":"IF('1. Ordersheet'!J360=\"\",\"\",'1. Ordersheet'!J360)","v":""},{"$f":"IF('1. Ordersheet'!K360=\"\",\"\",'1. Ordersheet'!K360)","v":""},{"$f":"IF('1. Ordersheet'!M360=\"\",\"\",'1. Ordersheet'!M360)","v":""},null,null,{"$f":"IF('1. Ordersheet'!AR360=\"\",\"\",'1. Ordersheet'!AR360)","v":""},{"$f":"IF('1. Ordersheet'!AE360=\"\",\"\",'1. Ordersheet'!AE360)","v":""}]
[{"$f":"IF('1. Ordersheet'!B361=\"\",\"\",'1. Ordersheet'!B361)","v":""},{"$f":"IF('1. Ordersheet'!I361=\"\",\"\",'1. Ordersheet'!I361)","v":""},{"$f":"IF('1. Ordersheet'!J361=\"\",\"\",'1. Ordersheet'!J361)","v":""},{"$f":"IF('1. Ordersheet'!K361=\"\",\"\",'1. Ordersheet'!K361)","v":""},{"$f":"IF('1. Ordersheet'!M361=\"\",\"\",'1. Ordersheet'!M361)","v":""},null,null,{"$f":"IF('1. Ordersheet'!AR361=\"\",\"\",'1. Ordersheet'!AR361)","v":""},{"$f":"IF('1. Ordersheet'!AE361=\"\",\"\",'1. Ordersheet'!AE361)","v":""}]
[{"$f":"IF('1. Ordersheet'!B362=\"\",\"\",'1. Ordersheet'!B362)","v":""},{"$f":"IF('1. Ordersheet'!I362=\"\",\"\",'1. Ordersheet'!I362)","v":""},{"$f":"IF('1. Ordersheet'!J362=\"\",\"\",'1. Ordersheet'!J362)","v":""},{"$f":"IF('1. Ordersheet'!K362=\"\",\"\",'1. Ordersheet'!K362)","v":""},{"$f":"IF('1. Ordersheet'!M362=\"\",\"\",'1. Ordersheet'!M362)","v":""},null,null,{"$f":"IF('1. Ordersheet'!AR362=\"\",\"\",'1. Ordersheet'!AR362)","v":""},{"$f":"IF('1. Ordersheet'!AE362=\"\",\"\",'1. Ordersheet'!AE362)","v":""}]
[{"$f":"IF('1. Ordersheet'!B363=\"\",\"\",'1. Ordersheet'!B363)","v":""},{"$f":"IF('1. Ordersheet'!I363=\"\",\"\",'1. Ordersheet'!I363)","v":""},{"$f":"IF('1. Ordersheet'!J363=\"\",\"\",'1. Ordersheet'!J363)","v":""},{"$f":"IF('1. Ordersheet'!K363=\"\",\"\",'1. Ordersheet'!K363)","v":""},{"$f":"IF('1. Ordersheet'!M363=\"\",\"\",'1. Ordersheet'!M363)","v":""},null,null,{"$f":"IF('1. Ordersheet'!AR363=\"\",\"\",'1. Ordersheet'!AR363)","v":""},{"$f":"IF('1. Ordersheet'!AE363=\"\",\"\",'1. Ordersheet'!AE363)","v":""}]
[{"$f":"IF('1. Ordersheet'!B364=\"\",\"\",'1. Ordersheet'!B364)","v":""},{"$f":"IF('1. Ordersheet'!I364=\"\",\"\",'1. Ordersheet'!I364)","v":""},{"$f":"IF('1. Ordersheet'!J364=\"\",\"\",'1. Ordersheet'!J364)","v":""},{"$f":"IF('1. Ordersheet'!K364=\"\",\"\",'1. Ordersheet'!K364)","v":""},{"$f":"IF('1. Ordersheet'!M364=\"\",\"\",'1. Ordersheet'!M364)","v":""},null,null,{"$f":"IF('1. Ordersheet'!AR364=\"\",\"\",'1. Ordersheet'!AR364)","v":""},{"$f":"IF('1. Ordersheet'!AE364=\"\",\"\",'1. Ordersheet'!AE364)","v":""}]
[{"$f":"IF('1. Ordersheet'!B365=\"\",\"\",'1. Ordersheet'!B365)","v":""},{"$f":"IF('1. Ordersheet'!I365=\"\",\"\",'1. Ordersheet'!I365)","v":""},{"$f":"IF('1. Ordersheet'!J365=\"\",\"\",'1. Ordersheet'!J365)","v":""},{"$f":"IF('1. Ordersheet'!K365=\"\",\"\",'1. Ordersheet'!K365)","v":""},{"$f":"IF('1. Ordersheet'!M365=\"\",\"\",'1. Ordersheet'!M365)","v":""},null,null,{"$f":"IF('1. Ordersheet'!AR365=\"\",\"\",'1. Ordersheet'!AR365)","v":""},{"$f":"IF('1. Ordersheet'!AE365=\"\",\"\",'1. Ordersheet'!AE365)","v":""}]
[{"$f":"IF('1. Ordersheet'!B366=\"\",\"\",'1. Ordersheet'!B366)","v":""},{"$f":"IF('1. Ordersheet'!I366=\"\",\"\",'1. Ordersheet'!I366)","v":""},{"$f":"IF('1. Ordersheet'!J366=\"\",\"\",'1. Ordersheet'!J366)","v":""},{"$f":"IF('1. Ordersheet'!K366=\"\",\"\",'1. Ordersheet'!K366)","v":""},{"$f":"IF('1. Ordersheet'!M366=\"\",\"\",'1. Ordersheet'!M366)","v":""},null,null,{"$f":"IF('1. Ordersheet'!AR366=\"\",\"\",'1. Ordersheet'!AR366)","v":""},{"$f":"IF('1. Ordersheet'!AE366=\"\",\"\",'1. Ordersheet'!AE366)","v":""}]
[{"$f":"IF('1. Ordersheet'!B367=\"\",\"\",'1. Ordersheet'!B367)","v":""},{"$f":"IF('1. Ordersheet'!I367=\"\",\"\",'1. Ordersheet'!I367)","v":""},{"$f":"IF('1. Ordersheet'!J367=\"\",\"\",'1. Ordersheet'!J367)","v":""},{"$f":"IF('1. Ordersheet'!K367=\"\",\"\",'1. Ordersheet'!K367)","v":""},{"$f":"IF('1. Ordersheet'!M367=\"\",\"\",'1. Ordersheet'!M367)","v":""},null,null,{"$f":"IF('1. Ordersheet'!AR367=\"\",\"\",'1. Ordersheet'!AR367)","v":""},{"$f":"IF('1. Ordersheet'!AE367=\"\",\"\",'1. Ordersheet'!AE367)","v":""}]
[{"$f":"IF('1. Ordersheet'!B368=\"\",\"\",'1. Ordersheet'!B368)","v":""},{"$f":"IF('1. Ordersheet'!I368=\"\",\"\",'1. Ordersheet'!I368)","v":""},{"$f":"IF('1. Ordersheet'!J368=\"\",\"\",'1. Ordersheet'!J368)","v":""},{"$f":"IF('1. Ordersheet'!K368=\"\",\"\",'1. Ordersheet'!K368)","v":""},{"$f":"IF('1. Ordersheet'!M368=\"\",\"\",'1. Ordersheet'!M368)","v":""},null,null,{"$f":"IF('1. Ordersheet'!AR368=\"\",\"\",'1. Ordersheet'!AR368)","v":""},{"$f":"IF('1. Ordersheet'!AE368=\"\",\"\",'1. Ordersheet'!AE368)","v":""}]
[{"$f":"IF('1. Ordersheet'!B369=\"\",\"\",'1. Ordersheet'!B369)","v":""},{"$f":"IF('1. Ordersheet'!I369=\"\",\"\",'1. Ordersheet'!I369)","v":""},{"$f":"IF('1. Ordersheet'!J369=\"\",\"\",'1. Ordersheet'!J369)","v":""},{"$f":"IF('1. Ordersheet'!K369=\"\",\"\",'1. Ordersheet'!K369)","v":""},{"$f":"IF('1. Ordersheet'!M369=\"\",\"\",'1. Ordersheet'!M369)","v":""},null,null,{"$f":"IF('1. Ordersheet'!AR369=\"\",\"\",'1. Ordersheet'!AR369)","v":""},{"$f":"IF('1. Ordersheet'!AE369=\"\",\"\",'1. Ordersheet'!AE369)","v":""}]
[{"$f":"IF('1. Ordersheet'!B370=\"\",\"\",'1. Ordersheet'!B370)","v":""},{"$f":"IF('1. Ordersheet'!I370=\"\",\"\",'1. Ordersheet'!I370)","v":""},{"$f":"IF('1. Ordersheet'!J370=\"\",\"\",'1. Ordersheet'!J370)","v":""},{"$f":"IF('1. Ordersheet'!K370=\"\",\"\",'1. Ordersheet'!K370)","v":""},{"$f":"IF('1. Ordersheet'!M370=\"\",\"\",'1. Ordersheet'!M370)","v":""},null,null,{"$f":"IF('1. Ordersheet'!AR370=\"\",\"\",'1. Ordersheet'!AR370)","v":""},{"$f":"IF('1. Ordersheet'!AE370=\"\",\"\",'1. Ordersheet'!AE370)","v":""}]
[{"$f":"IF('1. Ordersheet'!B371=\"\",\"\",'1. Ordersheet'!B371)","v":""},{"$f":"IF('1. Ordersheet'!I371=\"\",\"\",'1. Ordersheet'!I371)","v":""},{"$f":"IF('1. Ordersheet'!J371=\"\",\"\",'1. Ordersheet'!J371)","v":""},{"$f":"IF('1. Ordersheet'!K371=\"\",\"\",'1. Ordersheet'!K371)","v":""},{"$f":"IF('1. Ordersheet'!M371=\"\",\"\",'1. Ordersheet'!M371)","v":""},null,null,{"$f":"IF('1. Ordersheet'!AR371=\"\",\"\",'1. Ordersheet'!AR371)","v":""},{"$f":"IF('1. Ordersheet'!AE371=\"\",\"\",'1. Ordersheet'!AE371)","v":""}]
[{"$f":"IF('1. Ordersheet'!B372=\"\",\"\",'1. Ordersheet'!B372)","v":""},{"$f":"IF('1. Ordersheet'!I372=\"\",\"\",'1. Ordersheet'!I372)","v":""},{"$f":"IF('1. Ordersheet'!J372=\"\",\"\",'1. Ordersheet'!J372)","v":""},{"$f":"IF('1. Ordersheet'!K372=\"\",\"\",'1. Ordersheet'!K372)","v":""},{"$f":"IF('1. Ordersheet'!M372=\"\",\"\",'1. Ordersheet'!M372)","v":""},null,null,{"$f":"IF('1. Ordersheet'!AR372=\"\",\"\",'1. Ordersheet'!AR372)","v":""},{"$f":"IF('1. Ordersheet'!AE372=\"\",\"\",'1. Ordersheet'!AE372)","v":""}]
[{"$f":"IF('1. Ordersheet'!B373=\"\",\"\",'1. Ordersheet'!B373)","v":""},{"$f":"IF('1. Ordersheet'!I373=\"\",\"\",'1. Ordersheet'!I373)","v":""},{"$f":"IF('1. Ordersheet'!J373=\"\",\"\",'1. Ordersheet'!J373)","v":""},{"$f":"IF('1. Ordersheet'!K373=\"\",\"\",'1. Ordersheet'!K373)","v":""},{"$f":"IF('1. Ordersheet'!M373=\"\",\"\",'1. Ordersheet'!M373)","v":""},null,null,{"$f":"IF('1. Ordersheet'!AR373=\"\",\"\",'1. Ordersheet'!AR373)","v":""},{"$f":"IF('1. Ordersheet'!AE373=\"\",\"\",'1. Ordersheet'!AE373)","v":""}]
[{"$f":"IF('1. Ordersheet'!B374=\"\",\"\",'1. Ordersheet'!B374)","v":""},{"$f":"IF('1. Ordersheet'!I374=\"\",\"\",'1. Ordersheet'!I374)","v":""},{"$f":"IF('1. Ordersheet'!J374=\"\",\"\",'1. Ordersheet'!J374)","v":""},{"$f":"IF('1. Ordersheet'!K374=\"\",\"\",'1. Ordersheet'!K374)","v":""},{"$f":"IF('1. Ordersheet'!M374=\"\",\"\",'1. Ordersheet'!M374)","v":""},null,null,{"$f":"IF('1. Ordersheet'!AR374=\"\",\"\",'1. Ordersheet'!AR374)","v":""},{"$f":"IF('1. Ordersheet'!AE374=\"\",\"\",'1. Ordersheet'!AE374)","v":""}]
[{"$f":"IF('1. Ordersheet'!B375=\"\",\"\",'1. Ordersheet'!B375)","v":""},{"$f":"IF('1. Ordersheet'!I375=\"\",\"\",'1. Ordersheet'!I375)","v":""},{"$f":"IF('1. Ordersheet'!J375=\"\",\"\",'1. Ordersheet'!J375)","v":""},{"$f":"IF('1. Ordersheet'!K375=\"\",\"\",'1. Ordersheet'!K375)","v":""},{"$f":"IF('1. Ordersheet'!M375=\"\",\"\",'1. Ordersheet'!M375)","v":""},null,null,{"$f":"IF('1. Ordersheet'!AR375=\"\",\"\",'1. Ordersheet'!AR375)","v":""},{"$f":"IF('1. Ordersheet'!AE375=\"\",\"\",'1. Ordersheet'!AE375)","v":""}]
[{"$f":"IF('1. Ordersheet'!B376=\"\",\"\",'1. Ordersheet'!B376)","v":""},{"$f":"IF('1. Ordersheet'!I376=\"\",\"\",'1. Ordersheet'!I376)","v":""},{"$f":"IF('1. Ordersheet'!J376=\"\",\"\",'1. Ordersheet'!J376)","v":""},{"$f":"IF('1. Ordersheet'!K376=\"\",\"\",'1. Ordersheet'!K376)","v":""},{"$f":"IF('1. Ordersheet'!M376=\"\",\"\",'1. Ordersheet'!M376)","v":""},null,null,{"$f":"IF('1. Ordersheet'!AR376=\"\",\"\",'1. Ordersheet'!AR376)","v":""},{"$f":"IF('1. Ordersheet'!AE376=\"\",\"\",'1. Ordersheet'!AE376)","v":""}]
[{"$f":"IF('1. Ordersheet'!B377=\"\",\"\",'1. Ordersheet'!B377)","v":""},{"$f":"IF('1. Ordersheet'!I377=\"\",\"\",'1. Ordersheet'!I377)","v":""},{"$f":"IF('1. Ordersheet'!J377=\"\",\"\",'1. Ordersheet'!J377)","v":""},{"$f":"IF('1. Ordersheet'!K377=\"\",\"\",'1. Ordersheet'!K377)","v":""},{"$f":"IF('1. Ordersheet'!M377=\"\",\"\",'1. Ordersheet'!M377)","v":""},null,null,{"$f":"IF('1. Ordersheet'!AR377=\"\",\"\",'1. Ordersheet'!AR377)","v":""},{"$f":"IF('1. Ordersheet'!AE377=\"\",\"\",'1. Ordersheet'!AE377)","v":""}]
[{"$f":"IF('1. Ordersheet'!B378=\"\",\"\",'1. Ordersheet'!B378)","v":""},{"$f":"IF('1. Ordersheet'!I378=\"\",\"\",'1. Ordersheet'!I378)","v":""},{"$f":"IF('1. Ordersheet'!J378=\"\",\"\",'1. Ordersheet'!J378)","v":""},{"$f":"IF('1. Ordersheet'!K378=\"\",\"\",'1. Ordersheet'!K378)","v":""},{"$f":"IF('1. Ordersheet'!M378=\"\",\"\",'1. Ordersheet'!M378)","v":""},null,null,{"$f":"IF('1. Ordersheet'!AR378=\"\",\"\",'1. Ordersheet'!AR378)","v":""},{"$f":"IF('1. Ordersheet'!AE378=\"\",\"\",'1. Ordersheet'!AE378)","v":""}]
[{"$f":"IF('1. Ordersheet'!B379=\"\",\"\",'1. Ordersheet'!B379)","v":""},{"$f":"IF('1. Ordersheet'!I379=\"\",\"\",'1. Ordersheet'!I379)","v":""},{"$f":"IF('1. Ordersheet'!J379=\"\",\"\",'1. Ordersheet'!J379)","v":""},{"$f":"IF('1. Ordersheet'!K379=\"\",\"\",'1. Ordersheet'!K379)","v":""},{"$f":"IF('1. Ordersheet'!M379=\"\",\"\",'1. Ordersheet'!M379)","v":""},null,null,{"$f":"IF('1. Ordersheet'!AR379=\"\",\"\",'1. Ordersheet'!AR379)","v":""},{"$f":"IF('1. Ordersheet'!AE379=\"\",\"\",'1. Ordersheet'!AE379)","v":""}]
[{"$f":"IF('1. Ordersheet'!B380=\"\",\"\",'1. Ordersheet'!B380)","v":""},{"$f":"IF('1. Ordersheet'!I380=\"\",\"\",'1. Ordersheet'!I380)","v":""},{"$f":"IF('1. Ordersheet'!J380=\"\",\"\",'1. Ordersheet'!J380)","v":""},{"$f":"IF('1. Ordersheet'!K380=\"\",\"\",'1. Ordersheet'!K380)","v":""},{"$f":"IF('1. Ordersheet'!M380=\"\",\"\",'1. Ordersheet'!M380)","v":""},null,null,{"$f":"IF('1. Ordersheet'!AR380=\"\",\"\",'1. Ordersheet'!AR380)","v":""},{"$f":"IF('1. Ordersheet'!AE380=\"\",\"\",'1. Ordersheet'!AE380)","v":""}]
[{"$f":"IF('1. Ordersheet'!B381=\"\",\"\",'1. Ordersheet'!B381)","v":""},{"$f":"IF('1. Ordersheet'!I381=\"\",\"\",'1. Ordersheet'!I381)","v":""},{"$f":"IF('1. Ordersheet'!J381=\"\",\"\",'1. Ordersheet'!J381)","v":""},{"$f":"IF('1. Ordersheet'!K381=\"\",\"\",'1. Ordersheet'!K381)","v":""},{"$f":"IF('1. Ordersheet'!M381=\"\",\"\",'1. Ordersheet'!M381)","v":""},null,null,{"$f":"IF('1. Ordersheet'!AR381=\"\",\"\",'1. Ordersheet'!AR381)","v":""},{"$f":"IF('1. Ordersheet'!AE381=\"\",\"\",'1. Ordersheet'!AE381)","v":""}]
[{"$f":"IF('1. Ordersheet'!B382=\"\",\"\",'1. Ordersheet'!B382)","v":""},{"$f":"IF('1. Ordersheet'!I382=\"\",\"\",'1. Ordersheet'!I382)","v":""},{"$f":"IF('1. Ordersheet'!J382=\"\",\"\",'1. Ordersheet'!J382)","v":""},{"$f":"IF('1. Ordersheet'!K382=\"\",\"\",'1. Ordersheet'!K382)","v":""},{"$f":"IF('1. Ordersheet'!M382=\"\",\"\",'1. Ordersheet'!M382)","v":""},null,null,{"$f":"IF('1. Ordersheet'!AR382=\"\",\"\",'1. Ordersheet'!AR382)","v":""},{"$f":"IF('1. Ordersheet'!AE382=\"\",\"\",'1. Ordersheet'!AE382)","v":""}]
[{"$f":"IF('1. Ordersheet'!B383=\"\",\"\",'1. Ordersheet'!B383)","v":""},{"$f":"IF('1. Ordersheet'!I383=\"\",\"\",'1. Ordersheet'!I383)","v":""},{"$f":"IF('1. Ordersheet'!J383=\"\",\"\",'1. Ordersheet'!J383)","v":""},{"$f":"IF('1. Ordersheet'!K383=\"\",\"\",'1. Ordersheet'!K383)","v":""},{"$f":"IF('1. Ordersheet'!M383=\"\",\"\",'1. Ordersheet'!M383)","v":""},null,null,{"$f":"IF('1. Ordersheet'!AR383=\"\",\"\",'1. Ordersheet'!AR383)","v":""},{"$f":"IF('1. Ordersheet'!AE383=\"\",\"\",'1. Ordersheet'!AE383)","v":""}]
[{"$f":"IF('1. Ordersheet'!B384=\"\",\"\",'1. Ordersheet'!B384)","v":""},{"$f":"IF('1. Ordersheet'!I384=\"\",\"\",'1. Ordersheet'!I384)","v":""},{"$f":"IF('1. Ordersheet'!J384=\"\",\"\",'1. Ordersheet'!J384)","v":""},{"$f":"IF('1. Ordersheet'!K384=\"\",\"\",'1. Ordersheet'!K384)","v":""},{"$f":"IF('1. Ordersheet'!M384=\"\",\"\",'1. Ordersheet'!M384)","v":""},null,null,{"$f":"IF('1. Ordersheet'!AR384=\"\",\"\",'1. Ordersheet'!AR384)","v":""},{"$f":"IF('1. Ordersheet'!AE384=\"\",\"\",'1. Ordersheet'!AE384)","v":""}]
[{"$f":"IF('1. Ordersheet'!B385=\"\",\"\",'1. Ordersheet'!B385)","v":""},{"$f":"IF('1. Ordersheet'!I385=\"\",\"\",'1. Ordersheet'!I385)","v":""},{"$f":"IF('1. Ordersheet'!J385=\"\",\"\",'1. Ordersheet'!J385)","v":""},{"$f":"IF('1. Ordersheet'!K385=\"\",\"\",'1. Ordersheet'!K385)","v":""},{"$f":"IF('1. Ordersheet'!M385=\"\",\"\",'1. Ordersheet'!M385)","v":""},null,null,{"$f":"IF('1. Ordersheet'!AR385=\"\",\"\",'1. Ordersheet'!AR385)","v":""},{"$f":"IF('1. Ordersheet'!AE385=\"\",\"\",'1. Ordersheet'!AE385)","v":""}]
[{"$f":"IF('1. Ordersheet'!B386=\"\",\"\",'1. Ordersheet'!B386)","v":""},{"$f":"IF('1. Ordersheet'!I386=\"\",\"\",'1. Ordersheet'!I386)","v":""},{"$f":"IF('1. Ordersheet'!J386=\"\",\"\",'1. Ordersheet'!J386)","v":""},{"$f":"IF('1. Ordersheet'!K386=\"\",\"\",'1. Ordersheet'!K386)","v":""},{"$f":"IF('1. Ordersheet'!M386=\"\",\"\",'1. Ordersheet'!M386)","v":""},null,null,{"$f":"IF('1. Ordersheet'!AR386=\"\",\"\",'1. Ordersheet'!AR386)","v":""},{"$f":"IF('1. Ordersheet'!AE386=\"\",\"\",'1. Ordersheet'!AE386)","v":""}]
[{"$f":"IF('1. Ordersheet'!B387=\"\",\"\",'1. Ordersheet'!B387)","v":""},{"$f":"IF('1. Ordersheet'!I387=\"\",\"\",'1. Ordersheet'!I387)","v":""},{"$f":"IF('1. Ordersheet'!J387=\"\",\"\",'1. Ordersheet'!J387)","v":""},{"$f":"IF('1. Ordersheet'!K387=\"\",\"\",'1. Ordersheet'!K387)","v":""},{"$f":"IF('1. Ordersheet'!M387=\"\",\"\",'1. Ordersheet'!M387)","v":""},null,null,{"$f":"IF('1. Ordersheet'!AR387=\"\",\"\",'1. Ordersheet'!AR387)","v":""},{"$f":"IF('1. Ordersheet'!AE387=\"\",\"\",'1. Ordersheet'!AE387)","v":""}]
[{"$f":"IF('1. Ordersheet'!B388=\"\",\"\",'1. Ordersheet'!B388)","v":""},{"$f":"IF('1. Ordersheet'!I388=\"\",\"\",'1. Ordersheet'!I388)","v":""},{"$f":"IF('1. Ordersheet'!J388=\"\",\"\",'1. Ordersheet'!J388)","v":""},{"$f":"IF('1. Ordersheet'!K388=\"\",\"\",'1. Ordersheet'!K388)","v":""},{"$f":"IF('1. Ordersheet'!M388=\"\",\"\",'1. Ordersheet'!M388)","v":""},null,null,{"$f":"IF('1. Ordersheet'!AR388=\"\",\"\",'1. Ordersheet'!AR388)","v":""},{"$f":"IF('1. Ordersheet'!AE388=\"\",\"\",'1. Ordersheet'!AE388)","v":""}]
[{"$f":"IF('1. Ordersheet'!B389=\"\",\"\",'1. Ordersheet'!B389)","v":""},{"$f":"IF('1. Ordersheet'!I389=\"\",\"\",'1. Ordersheet'!I389)","v":""},{"$f":"IF('1. Ordersheet'!J389=\"\",\"\",'1. Ordersheet'!J389)","v":""},{"$f":"IF('1. Ordersheet'!K389=\"\",\"\",'1. Ordersheet'!K389)","v":""},{"$f":"IF('1. Ordersheet'!M389=\"\",\"\",'1. Ordersheet'!M389)","v":""},null,null,{"$f":"IF('1. Ordersheet'!AR389=\"\",\"\",'1. Ordersheet'!AR389)","v":""},{"$f":"IF('1. Ordersheet'!AE389=\"\",\"\",'1. Ordersheet'!AE389)","v":""}]
[{"$f":"IF('1. Ordersheet'!B390=\"\",\"\",'1. Ordersheet'!B390)","v":""},{"$f":"IF('1. Ordersheet'!I390=\"\",\"\",'1. Ordersheet'!I390)","v":""},{"$f":"IF('1. Ordersheet'!J390=\"\",\"\",'1. Ordersheet'!J390)","v":""},{"$f":"IF('1. Ordersheet'!K390=\"\",\"\",'1. Ordersheet'!K390)","v":""},{"$f":"IF('1. Ordersheet'!M390=\"\",\"\",'1. Ordersheet'!M390)","v":""},null,null,{"$f":"IF('1. Ordersheet'!AR390=\"\",\"\",'1. Ordersheet'!AR390)","v":""},{"$f":"IF('1. Ordersheet'!AE390=\"\",\"\",'1. Ordersheet'!AE390)","v":""}]
[{"$f":"IF('1. Ordersheet'!B391=\"\",\"\",'1. Ordersheet'!B391)","v":""},{"$f":"IF('1. Ordersheet'!I391=\"\",\"\",'1. Ordersheet'!I391)","v":""},{"$f":"IF('1. Ordersheet'!J391=\"\",\"\",'1. Ordersheet'!J391)","v":""},{"$f":"IF('1. Ordersheet'!K391=\"\",\"\",'1. Ordersheet'!K391)","v":""},{"$f":"IF('1. Ordersheet'!M391=\"\",\"\",'1. Ordersheet'!M391)","v":""},null,null,{"$f":"IF('1. Ordersheet'!AR391=\"\",\"\",'1. Ordersheet'!AR391)","v":""},{"$f":"IF('1. Ordersheet'!AE391=\"\",\"\",'1. Ordersheet'!AE391)","v":""}]
[{"$f":"IF('1. Ordersheet'!B392=\"\",\"\",'1. Ordersheet'!B392)","v":""},{"$f":"IF('1. Ordersheet'!I392=\"\",\"\",'1. Ordersheet'!I392)","v":""},{"$f":"IF('1. Ordersheet'!J392=\"\",\"\",'1. Ordersheet'!J392)","v":""},{"$f":"IF('1. Ordersheet'!K392=\"\",\"\",'1. Ordersheet'!K392)","v":""},{"$f":"IF('1. Ordersheet'!M392=\"\",\"\",'1. Ordersheet'!M392)","v":""},null,null,{"$f":"IF('1. Ordersheet'!AR392=\"\",\"\",'1. Ordersheet'!AR392)","v":""},{"$f":"IF('1. Ordersheet'!AE392=\"\",\"\",'1. Ordersheet'!AE392)","v":""}]
[{"$f":"IF('1. Ordersheet'!B393=\"\",\"\",'1. Ordersheet'!B393)","v":""},{"$f":"IF('1. Ordersheet'!I393=\"\",\"\",'1. Ordersheet'!I393)","v":""},{"$f":"IF('1. Ordersheet'!J393=\"\",\"\",'1. Ordersheet'!J393)","v":""},{"$f":"IF('1. Ordersheet'!K393=\"\",\"\",'1. Ordersheet'!K393)","v":""},{"$f":"IF('1. Ordersheet'!M393=\"\",\"\",'1. Ordersheet'!M393)","v":""},null,null,{"$f":"IF('1. Ordersheet'!AR393=\"\",\"\",'1. Ordersheet'!AR393)","v":""},{"$f":"IF('1. Ordersheet'!AE393=\"\",\"\",'1. Ordersheet'!AE393)","v":""}]
[{"$f":"IF('1. Ordersheet'!B394=\"\",\"\",'1. Ordersheet'!B394)","v":""},{"$f":"IF('1. Ordersheet'!I394=\"\",\"\",'1. Ordersheet'!I394)","v":""},{"$f":"IF('1. Ordersheet'!J394=\"\",\"\",'1. Ordersheet'!J394)","v":""},{"$f":"IF('1. Ordersheet'!K394=\"\",\"\",'1. Ordersheet'!K394)","v":""},{"$f":"IF('1. Ordersheet'!M394=\"\",\"\",'1. Ordersheet'!M394)","v":""},null,null,{"$f":"IF('1. Ordersheet'!AR394=\"\",\"\",'1. Ordersheet'!AR394)","v":""},{"$f":"IF('1. Ordersheet'!AE394=\"\",\"\",'1. Ordersheet'!AE394)","v":""}]
[{"$f":"IF('1. Ordersheet'!B395=\"\",\"\",'1. Ordersheet'!B395)","v":""},{"$f":"IF('1. Ordersheet'!I395=\"\",\"\",'1. Ordersheet'!I395)","v":""},{"$f":"IF('1. Ordersheet'!J395=\"\",\"\",'1. Ordersheet'!J395)","v":""},{"$f":"IF('1. Ordersheet'!K395=\"\",\"\",'1. Ordersheet'!K395)","v":""},{"$f":"IF('1. Ordersheet'!M395=\"\",\"\",'1. Ordersheet'!M395)","v":""},null,null,{"$f":"IF('1. Ordersheet'!AR395=\"\",\"\",'1. Ordersheet'!AR395)","v":""},{"$f":"IF('1. Ordersheet'!AE395=\"\",\"\",'1. Ordersheet'!AE395)","v":""}]
[{"$f":"IF('1. Ordersheet'!B396=\"\",\"\",'1. Ordersheet'!B396)","v":""},{"$f":"IF('1. Ordersheet'!I396=\"\",\"\",'1. Ordersheet'!I396)","v":""},{"$f":"IF('1. Ordersheet'!J396=\"\",\"\",'1. Ordersheet'!J396)","v":""},{"$f":"IF('1. Ordersheet'!K396=\"\",\"\",'1. Ordersheet'!K396)","v":""},{"$f":"IF('1. Ordersheet'!M396=\"\",\"\",'1. Ordersheet'!M396)","v":""},null,null,{"$f":"IF('1. Ordersheet'!AR396=\"\",\"\",'1. Ordersheet'!AR396)","v":""},{"$f":"IF('1. Ordersheet'!AE396=\"\",\"\",'1. Ordersheet'!AE396)","v":""}]
[{"$f":"IF('1. Ordersheet'!B397=\"\",\"\",'1. Ordersheet'!B397)","v":""},{"$f":"IF('1. Ordersheet'!I397=\"\",\"\",'1. Ordersheet'!I397)","v":""},{"$f":"IF('1. Ordersheet'!J397=\"\",\"\",'1. Ordersheet'!J397)","v":""},{"$f":"IF('1. Ordersheet'!K397=\"\",\"\",'1. Ordersheet'!K397)","v":""},{"$f":"IF('1. Ordersheet'!M397=\"\",\"\",'1. Ordersheet'!M397)","v":""},null,null,{"$f":"IF('1. Ordersheet'!AR397=\"\",\"\",'1. Ordersheet'!AR397)","v":""},{"$f":"IF('1. Ordersheet'!AE397=\"\",\"\",'1. Ordersheet'!AE397)","v":""}]
[{"$f":"IF('1. Ordersheet'!B398=\"\",\"\",'1. Ordersheet'!B398)","v":""},{"$f":"IF('1. Ordersheet'!I398=\"\",\"\",'1. Ordersheet'!I398)","v":""},{"$f":"IF('1. Ordersheet'!J398=\"\",\"\",'1. Ordersheet'!J398)","v":""},{"$f":"IF('1. Ordersheet'!K398=\"\",\"\",'1. Ordersheet'!K398)","v":""},{"$f":"IF('1. Ordersheet'!M398=\"\",\"\",'1. Ordersheet'!M398)","v":""},null,null,{"$f":"IF('1. Ordersheet'!AR398=\"\",\"\",'1. Ordersheet'!AR398)","v":""},{"$f":"IF('1. Ordersheet'!AE398=\"\",\"\",'1. Ordersheet'!AE398)","v":""}]
[{"$f":"IF('1. Ordersheet'!B399=\"\",\"\",'1. Ordersheet'!B399)","v":""},{"$f":"IF('1. Ordersheet'!I399=\"\",\"\",'1. Ordersheet'!I399)","v":""},{"$f":"IF('1. Ordersheet'!J399=\"\",\"\",'1. Ordersheet'!J399)","v":""},{"$f":"IF('1. Ordersheet'!K399=\"\",\"\",'1. Ordersheet'!K399)","v":""},{"$f":"IF('1. Ordersheet'!M399=\"\",\"\",'1. Ordersheet'!M399)","v":""},null,null,{"$f":"IF('1. Ordersheet'!AR399=\"\",\"\",'1. Ordersheet'!AR399)","v":""},{"$f":"IF('1. Ordersheet'!AE399=\"\",\"\",'1. Ordersheet'!AE399)","v":""}]
[{"$f":"IF('1. Ordersheet'!B400=\"\",\"\",'1. Ordersheet'!B400)","v":""},{"$f":"IF('1. Ordersheet'!I400=\"\",\"\",'1. Ordersheet'!I400)","v":""},{"$f":"IF('1. Ordersheet'!J400=\"\",\"\",'1. Ordersheet'!J400)","v":""},{"$f":"IF('1. Ordersheet'!K400=\"\",\"\",'1. Ordersheet'!K400)","v":""},{"$f":"IF('1. Ordersheet'!M400=\"\",\"\",'1. Ordersheet'!M400)","v":""},null,null,{"$f":"IF('1. Ordersheet'!AR400=\"\",\"\",'1. Ordersheet'!AR400)","v":""},{"$f":"IF('1. Ordersheet'!AE400=\"\",\"\",'1. Ordersheet'!AE400)","v":""}]
[{"$f":"IF('1. Ordersheet'!B401=\"\",\"\",'1. Ordersheet'!B401)","v":""},{"$f":"IF('1. Ordersheet'!I401=\"\",\"\",'1. Ordersheet'!I401)","v":""},{"$f":"IF('1. Ordersheet'!J401=\"\",\"\",'1. Ordersheet'!J401)","v":""},{"$f":"IF('1. Ordersheet'!K401=\"\",\"\",'1. Ordersheet'!K401)","v":""},{"$f":"IF('1. Ordersheet'!M401=\"\",\"\",'1. Ordersheet'!M401)","v":""},null,null,{"$f":"IF('1. Ordersheet'!AR401=\"\",\"\",'1. Ordersheet'!AR401)","v":""},{"$f":"IF('1. Ordersheet'!AE401=\"\",\"\",'1. Ordersheet'!AE401)","v":""}]
[{"$f":"IF('1. Ordersheet'!B402=\"\",\"\",'1. Ordersheet'!B402)","v":""},{"$f":"IF('1. Ordersheet'!I402=\"\",\"\",'1. Ordersheet'!I402)","v":""},{"$f":"IF('1. Ordersheet'!J402=\"\",\"\",'1. Ordersheet'!J402)","v":""},{"$f":"IF('1. Ordersheet'!K402=\"\",\"\",'1. Ordersheet'!K402)","v":""},{"$f":"IF('1. Ordersheet'!M402=\"\",\"\",'1. Ordersheet'!M402)","v":""},null,null,{"$f":"IF('1. Ordersheet'!AR402=\"\",\"\",'1. Ordersheet'!AR402)","v":""},{"$f":"IF('1. Ordersheet'!AE402=\"\",\"\",'1. Ordersheet'!AE402)","v":""}]
[{"$f":"IF('1. Ordersheet'!B403=\"\",\"\",'1. Ordersheet'!B403)","v":""},{"$f":"IF('1. Ordersheet'!I403=\"\",\"\",'1. Ordersheet'!I403)","v":""},{"$f":"IF('1. Ordersheet'!J403=\"\",\"\",'1. Ordersheet'!J403)","v":""},{"$f":"IF('1. Ordersheet'!K403=\"\",\"\",'1. Ordersheet'!K403)","v":""},{"$f":"IF('1. Ordersheet'!M403=\"\",\"\",'1. Ordersheet'!M403)","v":""},null,null,{"$f":"IF('1. Ordersheet'!AR403=\"\",\"\",'1. Ordersheet'!AR403)","v":""},{"$f":"IF('1. Ordersheet'!AE403=\"\",\"\",'1. Ordersheet'!AE403)","v":""}]
[{"$f":"IF('1. Ordersheet'!B404=\"\",\"\",'1. Ordersheet'!B404)","v":""},{"$f":"IF('1. Ordersheet'!I404=\"\",\"\",'1. Ordersheet'!I404)","v":""},{"$f":"IF('1. Ordersheet'!J404=\"\",\"\",'1. Ordersheet'!J404)","v":""},{"$f":"IF('1. Ordersheet'!K404=\"\",\"\",'1. Ordersheet'!K404)","v":""},{"$f":"IF('1. Ordersheet'!M404=\"\",\"\",'1. Ordersheet'!M404)","v":""},null,null,{"$f":"IF('1. Ordersheet'!AR404=\"\",\"\",'1. Ordersheet'!AR404)","v":""},{"$f":"IF('1. Ordersheet'!AE404=\"\",\"\",'1. Ordersheet'!AE404)","v":""}]
[{"$f":"IF('1. Ordersheet'!B405=\"\",\"\",'1. Ordersheet'!B405)","v":""},{"$f":"IF('1. Ordersheet'!I405=\"\",\"\",'1. Ordersheet'!I405)","v":""},{"$f":"IF('1. Ordersheet'!J405=\"\",\"\",'1. Ordersheet'!J405)","v":""},{"$f":"IF('1. Ordersheet'!K405=\"\",\"\",'1. Ordersheet'!K405)","v":""},{"$f":"IF('1. Ordersheet'!M405=\"\",\"\",'1. Ordersheet'!M405)","v":""},null,null,{"$f":"IF('1. Ordersheet'!AR405=\"\",\"\",'1. Ordersheet'!AR405)","v":""},{"$f":"IF('1. Ordersheet'!AE405=\"\",\"\",'1. Ordersheet'!AE405)","v":""}]
[{"$f":"IF('1. Ordersheet'!B406=\"\",\"\",'1. Ordersheet'!B406)","v":""},{"$f":"IF('1. Ordersheet'!I406=\"\",\"\",'1. Ordersheet'!I406)","v":""},{"$f":"IF('1. Ordersheet'!J406=\"\",\"\",'1. Ordersheet'!J406)","v":""},{"$f":"IF('1. Ordersheet'!K406=\"\",\"\",'1. Ordersheet'!K406)","v":""},{"$f":"IF('1. Ordersheet'!M406=\"\",\"\",'1. Ordersheet'!M406)","v":""},null,null,{"$f":"IF('1. Ordersheet'!AR406=\"\",\"\",'1. Ordersheet'!AR406)","v":""},{"$f":"IF('1. Ordersheet'!AE406=\"\",\"\",'1. Ordersheet'!AE406)","v":""}]
[{"$f":"IF('1. Ordersheet'!B407=\"\",\"\",'1. Ordersheet'!B407)","v":""},{"$f":"IF('1. Ordersheet'!I407=\"\",\"\",'1. Ordersheet'!I407)","v":""},{"$f":"IF('1. Ordersheet'!J407=\"\",\"\",'1. Ordersheet'!J407)","v":""},{"$f":"IF('1. Ordersheet'!K407=\"\",\"\",'1. Ordersheet'!K407)","v":""},{"$f":"IF('1. Ordersheet'!M407=\"\",\"\",'1. Ordersheet'!M407)","v":""},null,null,{"$f":"IF('1. Ordersheet'!AR407=\"\",\"\",'1. Ordersheet'!AR407)","v":""},{"$f":"IF('1. Ordersheet'!AE407=\"\",\"\",'1. Ordersheet'!AE407)","v":""}]
[{"$f":"IF('1. Ordersheet'!B408=\"\",\"\",'1. Ordersheet'!B408)","v":""},{"$f":"IF('1. Ordersheet'!I408=\"\",\"\",'1. Ordersheet'!I408)","v":""},{"$f":"IF('1. Ordersheet'!J408=\"\",\"\",'1. Ordersheet'!J408)","v":""},{"$f":"IF('1. Ordersheet'!K408=\"\",\"\",'1. Ordersheet'!K408)","v":""},{"$f":"IF('1. Ordersheet'!M408=\"\",\"\",'1. Ordersheet'!M408)","v":""},null,null,{"$f":"IF('1. Ordersheet'!AR408=\"\",\"\",'1. Ordersheet'!AR408)","v":""},{"$f":"IF('1. Ordersheet'!AE408=\"\",\"\",'1. Ordersheet'!AE408)","v":""}]
[{"$f":"IF('1. Ordersheet'!B409=\"\",\"\",'1. Ordersheet'!B409)","v":""},{"$f":"IF('1. Ordersheet'!I409=\"\",\"\",'1. Ordersheet'!I409)","v":""},{"$f":"IF('1. Ordersheet'!J409=\"\",\"\",'1. Ordersheet'!J409)","v":""},{"$f":"IF('1. Ordersheet'!K409=\"\",\"\",'1. Ordersheet'!K409)","v":""},{"$f":"IF('1. Ordersheet'!M409=\"\",\"\",'1. Ordersheet'!M409)","v":""},null,null,{"$f":"IF('1. Ordersheet'!AR409=\"\",\"\",'1. Ordersheet'!AR409)","v":""},{"$f":"IF('1. Ordersheet'!AE409=\"\",\"\",'1. Ordersheet'!AE409)","v":""}]
[{"$f":"IF('1. Ordersheet'!B410=\"\",\"\",'1. Ordersheet'!B410)","v":""},{"$f":"IF('1. Ordersheet'!I410=\"\",\"\",'1. Ordersheet'!I410)","v":""},{"$f":"IF('1. Ordersheet'!J410=\"\",\"\",'1. Ordersheet'!J410)","v":""},{"$f":"IF('1. Ordersheet'!K410=\"\",\"\",'1. Ordersheet'!K410)","v":""},{"$f":"IF('1. Ordersheet'!M410=\"\",\"\",'1. Ordersheet'!M410)","v":""},null,null,{"$f":"IF('1. Ordersheet'!AR410=\"\",\"\",'1. Ordersheet'!AR410)","v":""},{"$f":"IF('1. Ordersheet'!AE410=\"\",\"\",'1. Ordersheet'!AE410)","v":""}]
[{"$f":"IF('1. Ordersheet'!B411=\"\",\"\",'1. Ordersheet'!B411)","v":""},{"$f":"IF('1. Ordersheet'!I411=\"\",\"\",'1. Ordersheet'!I411)","v":""},{"$f":"IF('1. Ordersheet'!J411=\"\",\"\",'1. Ordersheet'!J411)","v":""},{"$f":"IF('1. Ordersheet'!K411=\"\",\"\",'1. Ordersheet'!K411)","v":""},{"$f":"IF('1. Ordersheet'!M411=\"\",\"\",'1. Ordersheet'!M411)","v":""},null,null,{"$f":"IF('1. Ordersheet'!AR411=\"\",\"\",'1. Ordersheet'!AR411)","v":""},{"$f":"IF('1. Ordersheet'!AE411=\"\",\"\",'1. Ordersheet'!AE411)","v":""}]
[{"$f":"IF('1. Ordersheet'!B412=\"\",\"\",'1. Ordersheet'!B412)","v":""},{"$f":"IF('1. Ordersheet'!I412=\"\",\"\",'1. Ordersheet'!I412)","v":""},{"$f":"IF('1. Ordersheet'!J412=\"\",\"\",'1. Ordersheet'!J412)","v":""},{"$f":"IF('1. Ordersheet'!K412=\"\",\"\",'1. Ordersheet'!K412)","v":""},{"$f":"IF('1. Ordersheet'!M412=\"\",\"\",'1. Ordersheet'!M412)","v":""},null,null,{"$f":"IF('1. Ordersheet'!AR412=\"\",\"\",'1. Ordersheet'!AR412)","v":""},{"$f":"IF('1. Ordersheet'!AE412=\"\",\"\",'1. Ordersheet'!AE412)","v":""}]
[{"$f":"IF('1. Ordersheet'!B413=\"\",\"\",'1. Ordersheet'!B413)","v":""},{"$f":"IF('1. Ordersheet'!I413=\"\",\"\",'1. Ordersheet'!I413)","v":""},{"$f":"IF('1. Ordersheet'!J413=\"\",\"\",'1. Ordersheet'!J413)","v":""},{"$f":"IF('1. Ordersheet'!K413=\"\",\"\",'1. Ordersheet'!K413)","v":""},{"$f":"IF('1. Ordersheet'!M413=\"\",\"\",'1. Ordersheet'!M413)","v":""},null,null,{"$f":"IF('1. Ordersheet'!AR413=\"\",\"\",'1. Ordersheet'!AR413)","v":""},{"$f":"IF('1. Ordersheet'!AE413=\"\",\"\",'1. Ordersheet'!AE413)","v":""}]
[{"$f":"IF('1. Ordersheet'!B414=\"\",\"\",'1. Ordersheet'!B414)","v":""},{"$f":"IF('1. Ordersheet'!I414=\"\",\"\",'1. Ordersheet'!I414)","v":""},{"$f":"IF('1. Ordersheet'!J414=\"\",\"\",'1. Ordersheet'!J414)","v":""},{"$f":"IF('1. Ordersheet'!K414=\"\",\"\",'1. Ordersheet'!K414)","v":""},{"$f":"IF('1. Ordersheet'!M414=\"\",\"\",'1. Ordersheet'!M414)","v":""},null,null,{"$f":"IF('1. Ordersheet'!AR414=\"\",\"\",'1. Ordersheet'!AR414)","v":""},{"$f":"IF('1. Ordersheet'!AE414=\"\",\"\",'1. Ordersheet'!AE414)","v":""}]
[{"$f":"IF('1. Ordersheet'!B415=\"\",\"\",'1. Ordersheet'!B415)","v":""},{"$f":"IF('1. Ordersheet'!I415=\"\",\"\",'1. Ordersheet'!I415)","v":""},{"$f":"IF('1. Ordersheet'!J415=\"\",\"\",'1. Ordersheet'!J415)","v":""},{"$f":"IF('1. Ordersheet'!K415=\"\",\"\",'1. Ordersheet'!K415)","v":""},{"$f":"IF('1. Ordersheet'!M415=\"\",\"\",'1. Ordersheet'!M415)","v":""},null,null,{"$f":"IF('1. Ordersheet'!AR415=\"\",\"\",'1. Ordersheet'!AR415)","v":""},{"$f":"IF('1. Ordersheet'!AE415=\"\",\"\",'1. Ordersheet'!AE415)","v":""}]
[{"$f":"IF('1. Ordersheet'!B416=\"\",\"\",'1. Ordersheet'!B416)","v":""},{"$f":"IF('1. Ordersheet'!I416=\"\",\"\",'1. Ordersheet'!I416)","v":""},{"$f":"IF('1. Ordersheet'!J416=\"\",\"\",'1. Ordersheet'!J416)","v":""},{"$f":"IF('1. Ordersheet'!K416=\"\",\"\",'1. Ordersheet'!K416)","v":""},{"$f":"IF('1. Ordersheet'!M416=\"\",\"\",'1. Ordersheet'!M416)","v":""},null,null,{"$f":"IF('1. Ordersheet'!AR416=\"\",\"\",'1. Ordersheet'!AR416)","v":""},{"$f":"IF('1. Ordersheet'!AE416=\"\",\"\",'1. Ordersheet'!AE416)","v":""}]
[{"$f":"IF('1. Ordersheet'!B417=\"\",\"\",'1. Ordersheet'!B417)","v":""},{"$f":"IF('1. Ordersheet'!I417=\"\",\"\",'1. Ordersheet'!I417)","v":""},{"$f":"IF('1. Ordersheet'!J417=\"\",\"\",'1. Ordersheet'!J417)","v":""},{"$f":"IF('1. Ordersheet'!K417=\"\",\"\",'1. Ordersheet'!K417)","v":""},{"$f":"IF('1. Ordersheet'!M417=\"\",\"\",'1. Ordersheet'!M417)","v":""},null,null,{"$f":"IF('1. Ordersheet'!AR417=\"\",\"\",'1. Ordersheet'!AR417)","v":""},{"$f":"IF('1. Ordersheet'!AE417=\"\",\"\",'1. Ordersheet'!AE417)","v":""}]
[{"$f":"IF('1. Ordersheet'!B418=\"\",\"\",'1. Ordersheet'!B418)","v":""},{"$f":"IF('1. Ordersheet'!I418=\"\",\"\",'1. Ordersheet'!I418)","v":""},{"$f":"IF('1. Ordersheet'!J418=\"\",\"\",'1. Ordersheet'!J418)","v":""},{"$f":"IF('1. Ordersheet'!K418=\"\",\"\",'1. Ordersheet'!K418)","v":""},{"$f":"IF('1. Ordersheet'!M418=\"\",\"\",'1. Ordersheet'!M418)","v":""},null,null,{"$f":"IF('1. Ordersheet'!AR418=\"\",\"\",'1. Ordersheet'!AR418)","v":""},{"$f":"IF('1. Ordersheet'!AE418=\"\",\"\",'1. Ordersheet'!AE418)","v":""}]
[{"$f":"IF('1. Ordersheet'!B419=\"\",\"\",'1. Ordersheet'!B419)","v":""},{"$f":"IF('1. Ordersheet'!I419=\"\",\"\",'1. Ordersheet'!I419)","v":""},{"$f":"IF('1. Ordersheet'!J419=\"\",\"\",'1. Ordersheet'!J419)","v":""},{"$f":"IF('1. Ordersheet'!K419=\"\",\"\",'1. Ordersheet'!K419)","v":""},{"$f":"IF('1. Ordersheet'!M419=\"\",\"\",'1. Ordersheet'!M419)","v":""},null,null,{"$f":"IF('1. Ordersheet'!AR419=\"\",\"\",'1. Ordersheet'!AR419)","v":""},{"$f":"IF('1. Ordersheet'!AE419=\"\",\"\",'1. Ordersheet'!AE419)","v":""}]
[{"$f":"IF('1. Ordersheet'!B420=\"\",\"\",'1. Ordersheet'!B420)","v":""},{"$f":"IF('1. Ordersheet'!I420=\"\",\"\",'1. Ordersheet'!I420)","v":""},{"$f":"IF('1. Ordersheet'!J420=\"\",\"\",'1. Ordersheet'!J420)","v":""},{"$f":"IF('1. Ordersheet'!K420=\"\",\"\",'1. Ordersheet'!K420)","v":""},{"$f":"IF('1. Ordersheet'!M420=\"\",\"\",'1. Ordersheet'!M420)","v":""},null,null,{"$f":"IF('1. Ordersheet'!AR420=\"\",\"\",'1. Ordersheet'!AR420)","v":""},{"$f":"IF('1. Ordersheet'!AE420=\"\",\"\",'1. Ordersheet'!AE420)","v":""}]
[{"$f":"IF('1. Ordersheet'!B421=\"\",\"\",'1. Ordersheet'!B421)","v":""},{"$f":"IF('1. Ordersheet'!I421=\"\",\"\",'1. Ordersheet'!I421)","v":""},{"$f":"IF('1. Ordersheet'!J421=\"\",\"\",'1. Ordersheet'!J421)","v":""},{"$f":"IF('1. Ordersheet'!K421=\"\",\"\",'1. Ordersheet'!K421)","v":""},{"$f":"IF('1. Ordersheet'!M421=\"\",\"\",'1. Ordersheet'!M421)","v":""},null,null,{"$f":"IF('1. Ordersheet'!AR421=\"\",\"\",'1. Ordersheet'!AR421)","v":""},{"$f":"IF('1. Ordersheet'!AE421=\"\",\"\",'1. Ordersheet'!AE421)","v":""}]
[{"$f":"IF('1. Ordersheet'!B422=\"\",\"\",'1. Ordersheet'!B422)","v":""},{"$f":"IF('1. Ordersheet'!I422=\"\",\"\",'1. Ordersheet'!I422)","v":""},{"$f":"IF('1. Ordersheet'!J422=\"\",\"\",'1. Ordersheet'!J422)","v":""},{"$f":"IF('1. Ordersheet'!K422=\"\",\"\",'1. Ordersheet'!K422)","v":""},{"$f":"IF('1. Ordersheet'!M422=\"\",\"\",'1. Ordersheet'!M422)","v":""},null,null,{"$f":"IF('1. Ordersheet'!AR422=\"\",\"\",'1. Ordersheet'!AR422)","v":""},{"$f":"IF('1. Ordersheet'!AE422=\"\",\"\",'1. Ordersheet'!AE422)","v":""}]
[{"$f":"IF('1. Ordersheet'!B423=\"\",\"\",'1. Ordersheet'!B423)","v":""},{"$f":"IF('1. Ordersheet'!I423=\"\",\"\",'1. Ordersheet'!I423)","v":""},{"$f":"IF('1. Ordersheet'!J423=\"\",\"\",'1. Ordersheet'!J423)","v":""},{"$f":"IF('1. Ordersheet'!K423=\"\",\"\",'1. Ordersheet'!K423)","v":""},{"$f":"IF('1. Ordersheet'!M423=\"\",\"\",'1. Ordersheet'!M423)","v":""},null,null,{"$f":"IF('1. Ordersheet'!AR423=\"\",\"\",'1. Ordersheet'!AR423)","v":""},{"$f":"IF('1. Ordersheet'!AE423=\"\",\"\",'1. Ordersheet'!AE423)","v":""}]
[{"$f":"IF('1. Ordersheet'!B424=\"\",\"\",'1. Ordersheet'!B424)","v":""},{"$f":"IF('1. Ordersheet'!I424=\"\",\"\",'1. Ordersheet'!I424)","v":""},{"$f":"IF('1. Ordersheet'!J424=\"\",\"\",'1. Ordersheet'!J424)","v":""},{"$f":"IF('1. Ordersheet'!K424=\"\",\"\",'1. Ordersheet'!K424)","v":""},{"$f":"IF('1. Ordersheet'!M424=\"\",\"\",'1. Ordersheet'!M424)","v":""},null,null,{"$f":"IF('1. Ordersheet'!AR424=\"\",\"\",'1. Ordersheet'!AR424)","v":""},{"$f":"IF('1. Ordersheet'!AE424=\"\",\"\",'1. Ordersheet'!AE424)","v":""}]
[{"$f":"IF('1. Ordersheet'!B425=\"\",\"\",'1. Ordersheet'!B425)","v":""},{"$f":"IF('1. Ordersheet'!I425=\"\",\"\",'1. Ordersheet'!I425)","v":""},{"$f":"IF('1. Ordersheet'!J425=\"\",\"\",'1. Ordersheet'!J425)","v":""},{"$f":"IF('1. Ordersheet'!K425=\"\",\"\",'1. Ordersheet'!K425)","v":""},{"$f":"IF('1. Ordersheet'!M425=\"\",\"\",'1. Ordersheet'!M425)","v":""},null,null,{"$f":"IF('1. Ordersheet'!AR425=\"\",\"\",'1. Ordersheet'!AR425)","v":""},{"$f":"IF('1. Ordersheet'!AE425=\"\",\"\",'1. Ordersheet'!AE425)","v":""}]
[{"$f":"IF('1. Ordersheet'!B426=\"\",\"\",'1. Ordersheet'!B426)","v":""},{"$f":"IF('1. Ordersheet'!I426=\"\",\"\",'1. Ordersheet'!I426)","v":""},{"$f":"IF('1. Ordersheet'!J426=\"\",\"\",'1. Ordersheet'!J426)","v":""},{"$f":"IF('1. Ordersheet'!K426=\"\",\"\",'1. Ordersheet'!K426)","v":""},{"$f":"IF('1. Ordersheet'!M426=\"\",\"\",'1. Ordersheet'!M426)","v":""},null,null,{"$f":"IF('1. Ordersheet'!AR426=\"\",\"\",'1. Ordersheet'!AR426)","v":""},{"$f":"IF('1. Ordersheet'!AE426=\"\",\"\",'1. Ordersheet'!AE426)","v":""}]
[{"$f":"IF('1. Ordersheet'!B427=\"\",\"\",'1. Ordersheet'!B427)","v":""},{"$f":"IF('1. Ordersheet'!I427=\"\",\"\",'1. Ordersheet'!I427)","v":""},{"$f":"IF('1. Ordersheet'!J427=\"\",\"\",'1. Ordersheet'!J427)","v":""},{"$f":"IF('1. Ordersheet'!K427=\"\",\"\",'1. Ordersheet'!K427)","v":""},{"$f":"IF('1. Ordersheet'!M427=\"\",\"\",'1. Ordersheet'!M427)","v":""},null,null,{"$f":"IF('1. Ordersheet'!AR427=\"\",\"\",'1. Ordersheet'!AR427)","v":""},{"$f":"IF('1. Ordersheet'!AE427=\"\",\"\",'1. Ordersheet'!AE427)","v":""}]
[{"$f":"IF('1. Ordersheet'!B428=\"\",\"\",'1. Ordersheet'!B428)","v":""},{"$f":"IF('1. Ordersheet'!I428=\"\",\"\",'1. Ordersheet'!I428)","v":""},{"$f":"IF('1. Ordersheet'!J428=\"\",\"\",'1. Ordersheet'!J428)","v":""},{"$f":"IF('1. Ordersheet'!K428=\"\",\"\",'1. Ordersheet'!K428)","v":""},{"$f":"IF('1. Ordersheet'!M428=\"\",\"\",'1. Ordersheet'!M428)","v":""},null,null,{"$f":"IF('1. Ordersheet'!AR428=\"\",\"\",'1. Ordersheet'!AR428)","v":""},{"$f":"IF('1. Ordersheet'!AE428=\"\",\"\",'1. Ordersheet'!AE428)","v":""}]
[{"$f":"IF('1. Ordersheet'!B429=\"\",\"\",'1. Ordersheet'!B429)","v":""},{"$f":"IF('1. Ordersheet'!I429=\"\",\"\",'1. Ordersheet'!I429)","v":""},{"$f":"IF('1. Ordersheet'!J429=\"\",\"\",'1. Ordersheet'!J429)","v":""},{"$f":"IF('1. Ordersheet'!K429=\"\",\"\",'1. Ordersheet'!K429)","v":""},{"$f":"IF('1. Ordersheet'!M429=\"\",\"\",'1. Ordersheet'!M429)","v":""},null,null,{"$f":"IF('1. Ordersheet'!AR429=\"\",\"\",'1. Ordersheet'!AR429)","v":""},{"$f":"IF('1. Ordersheet'!AE429=\"\",\"\",'1. Ordersheet'!AE429)","v":""}]
[{"$f":"IF('1. Ordersheet'!B430=\"\",\"\",'1. Ordersheet'!B430)","v":""},{"$f":"IF('1. Ordersheet'!I430=\"\",\"\",'1. Ordersheet'!I430)","v":""},{"$f":"IF('1. Ordersheet'!J430=\"\",\"\",'1. Ordersheet'!J430)","v":""},{"$f":"IF('1. Ordersheet'!K430=\"\",\"\",'1. Ordersheet'!K430)","v":""},{"$f":"IF('1. Ordersheet'!M430=\"\",\"\",'1. Ordersheet'!M430)","v":""},null,null,{"$f":"IF('1. Ordersheet'!AR430=\"\",\"\",'1. Ordersheet'!AR430)","v":""},{"$f":"IF('1. Ordersheet'!AE430=\"\",\"\",'1. Ordersheet'!AE430)","v":""}]
[{"$f":"IF('1. Ordersheet'!B431=\"\",\"\",'1. Ordersheet'!B431)","v":""},{"$f":"IF('1. Ordersheet'!I431=\"\",\"\",'1. Ordersheet'!I431)","v":""},{"$f":"IF('1. Ordersheet'!J431=\"\",\"\",'1. Ordersheet'!J431)","v":""},{"$f":"IF('1. Ordersheet'!K431=\"\",\"\",'1. Ordersheet'!K431)","v":""},{"$f":"IF('1. Ordersheet'!M431=\"\",\"\",'1. Ordersheet'!M431)","v":""},null,null,{"$f":"IF('1. Ordersheet'!AR431=\"\",\"\",'1. Ordersheet'!AR431)","v":""},{"$f":"IF('1. Ordersheet'!AE431=\"\",\"\",'1. Ordersheet'!AE431)","v":""}]
[{"$f":"IF('1. Ordersheet'!B432=\"\",\"\",'1. Ordersheet'!B432)","v":""},{"$f":"IF('1. Ordersheet'!I432=\"\",\"\",'1. Ordersheet'!I432)","v":""},{"$f":"IF('1. Ordersheet'!J432=\"\",\"\",'1. Ordersheet'!J432)","v":""},{"$f":"IF('1. Ordersheet'!K432=\"\",\"\",'1. Ordersheet'!K432)","v":""},{"$f":"IF('1. Ordersheet'!M432=\"\",\"\",'1. Ordersheet'!M432)","v":""},null,null,{"$f":"IF('1. Ordersheet'!AR432=\"\",\"\",'1. Ordersheet'!AR432)","v":""},{"$f":"IF('1. Ordersheet'!AE432=\"\",\"\",'1. Ordersheet'!AE432)","v":""}]
[{"$f":"IF('1. Ordersheet'!B433=\"\",\"\",'1. Ordersheet'!B433)","v":""},{"$f":"IF('1. Ordersheet'!I433=\"\",\"\",'1. Ordersheet'!I433)","v":""},{"$f":"IF('1. Ordersheet'!J433=\"\",\"\",'1. Ordersheet'!J433)","v":""},{"$f":"IF('1. Ordersheet'!K433=\"\",\"\",'1. Ordersheet'!K433)","v":""},{"$f":"IF('1. Ordersheet'!M433=\"\",\"\",'1. Ordersheet'!M433)","v":""},null,null,{"$f":"IF('1. Ordersheet'!AR433=\"\",\"\",'1. Ordersheet'!AR433)","v":""},{"$f":"IF('1. Ordersheet'!AE433=\"\",\"\",'1. Ordersheet'!AE433)","v":""}]
[{"$f":"IF('1. Ordersheet'!B434=\"\",\"\",'1. Ordersheet'!B434)","v":""},{"$f":"IF('1. Ordersheet'!I434=\"\",\"\",'1. Ordersheet'!I434)","v":""},{"$f":"IF('1. Ordersheet'!J434=\"\",\"\",'1. Ordersheet'!J434)","v":""},{"$f":"IF('1. Ordersheet'!K434=\"\",\"\",'1. Ordersheet'!K434)","v":""},{"$f":"IF('1. Ordersheet'!M434=\"\",\"\",'1. Ordersheet'!M434)","v":""},null,null,{"$f":"IF('1. Ordersheet'!AR434=\"\",\"\",'1. Ordersheet'!AR434)","v":""},{"$f":"IF('1. Ordersheet'!AE434=\"\",\"\",'1. Ordersheet'!AE434)","v":""}]
[{"$f":"IF('1. Ordersheet'!B435=\"\",\"\",'1. Ordersheet'!B435)","v":""},{"$f":"IF('1. Ordersheet'!I435=\"\",\"\",'1. Ordersheet'!I435)","v":""},{"$f":"IF('1. Ordersheet'!J435=\"\",\"\",'1. Ordersheet'!J435)","v":""},{"$f":"IF('1. Ordersheet'!K435=\"\",\"\",'1. Ordersheet'!K435)","v":""},{"$f":"IF('1. Ordersheet'!M435=\"\",\"\",'1. Ordersheet'!M435)","v":""},null,null,{"$f":"IF('1. Ordersheet'!AR435=\"\",\"\",'1. Ordersheet'!AR435)","v":""},{"$f":"IF('1. Ordersheet'!AE435=\"\",\"\",'1. Ordersheet'!AE435)","v":""}]
[{"$f":"IF('1. Ordersheet'!B436=\"\",\"\",'1. Ordersheet'!B436)","v":""},{"$f":"IF('1. Ordersheet'!I436=\"\",\"\",'1. Ordersheet'!I436)","v":""},{"$f":"IF('1. Ordersheet'!J436=\"\",\"\",'1. Ordersheet'!J436)","v":""},{"$f":"IF('1. Ordersheet'!K436=\"\",\"\",'1. Ordersheet'!K436)","v":""},{"$f":"IF('1. Ordersheet'!M436=\"\",\"\",'1. Ordersheet'!M436)","v":""},null,null,{"$f":"IF('1. Ordersheet'!AR436=\"\",\"\",'1. Ordersheet'!AR436)","v":""},{"$f":"IF('1. Ordersheet'!AE436=\"\",\"\",'1. Ordersheet'!AE436)","v":""}]
[{"$f":"IF('1. Ordersheet'!B437=\"\",\"\",'1. Ordersheet'!B437)","v":""},{"$f":"IF('1. Ordersheet'!I437=\"\",\"\",'1. Ordersheet'!I437)","v":""},{"$f":"IF('1. Ordersheet'!J437=\"\",\"\",'1. Ordersheet'!J437)","v":""},{"$f":"IF('1. Ordersheet'!K437=\"\",\"\",'1. Ordersheet'!K437)","v":""},{"$f":"IF('1. Ordersheet'!M437=\"\",\"\",'1. Ordersheet'!M437)","v":""},null,null,{"$f":"IF('1. Ordersheet'!AR437=\"\",\"\",'1. Ordersheet'!AR437)","v":""},{"$f":"IF('1. Ordersheet'!AE437=\"\",\"\",'1. Ordersheet'!AE437)","v":""}]
[{"$f":"IF('1. Ordersheet'!B438=\"\",\"\",'1. Ordersheet'!B438)","v":""},{"$f":"IF('1. Ordersheet'!I438=\"\",\"\",'1. Ordersheet'!I438)","v":""},{"$f":"IF('1. Ordersheet'!J438=\"\",\"\",'1. Ordersheet'!J438)","v":""},{"$f":"IF('1. Ordersheet'!K438=\"\",\"\",'1. Ordersheet'!K438)","v":""},{"$f":"IF('1. Ordersheet'!M438=\"\",\"\",'1. Ordersheet'!M438)","v":""},null,null,{"$f":"IF('1. Ordersheet'!AR438=\"\",\"\",'1. Ordersheet'!AR438)","v":""},{"$f":"IF('1. Ordersheet'!AE438=\"\",\"\",'1. Ordersheet'!AE438)","v":""}]
[{"$f":"IF('1. Ordersheet'!B439=\"\",\"\",'1. Ordersheet'!B439)","v":""},{"$f":"IF('1. Ordersheet'!I439=\"\",\"\",'1. Ordersheet'!I439)","v":""},{"$f":"IF('1. Ordersheet'!J439=\"\",\"\",'1. Ordersheet'!J439)","v":""},{"$f":"IF('1. Ordersheet'!K439=\"\",\"\",'1. Ordersheet'!K439)","v":""},{"$f":"IF('1. Ordersheet'!M439=\"\",\"\",'1. Ordersheet'!M439)","v":""},null,null,{"$f":"IF('1. Ordersheet'!AR439=\"\",\"\",'1. Ordersheet'!AR439)","v":""},{"$f":"IF('1. Ordersheet'!AE439=\"\",\"\",'1. Ordersheet'!AE439)","v":""}]
[{"$f":"IF('1. Ordersheet'!B440=\"\",\"\",'1. Ordersheet'!B440)","v":""},{"$f":"IF('1. Ordersheet'!I440=\"\",\"\",'1. Ordersheet'!I440)","v":""},{"$f":"IF('1. Ordersheet'!J440=\"\",\"\",'1. Ordersheet'!J440)","v":""},{"$f":"IF('1. Ordersheet'!K440=\"\",\"\",'1. Ordersheet'!K440)","v":""},{"$f":"IF('1. Ordersheet'!M440=\"\",\"\",'1. Ordersheet'!M440)","v":""},null,null,{"$f":"IF('1. Ordersheet'!AR440=\"\",\"\",'1. Ordersheet'!AR440)","v":""},{"$f":"IF('1. Ordersheet'!AE440=\"\",\"\",'1. Ordersheet'!AE440)","v":""}]
[{"$f":"IF('1. Ordersheet'!B441=\"\",\"\",'1. Ordersheet'!B441)","v":""},{"$f":"IF('1. Ordersheet'!I441=\"\",\"\",'1. Ordersheet'!I441)","v":""},{"$f":"IF('1. Ordersheet'!J441=\"\",\"\",'1. Ordersheet'!J441)","v":""},{"$f":"IF('1. Ordersheet'!K441=\"\",\"\",'1. Ordersheet'!K441)","v":""},{"$f":"IF('1. Ordersheet'!M441=\"\",\"\",'1. Ordersheet'!M441)","v":""},null,null,{"$f":"IF('1. Ordersheet'!AR441=\"\",\"\",'1. Ordersheet'!AR441)","v":""},{"$f":"IF('1. Ordersheet'!AE441=\"\",\"\",'1. Ordersheet'!AE441)","v":""}]
[{"$f":"IF('1. Ordersheet'!B442=\"\",\"\",'1. Ordersheet'!B442)","v":""},{"$f":"IF('1. Ordersheet'!I442=\"\",\"\",'1. Ordersheet'!I442)","v":""},{"$f":"IF('1. Ordersheet'!J442=\"\",\"\",'1. Ordersheet'!J442)","v":""},{"$f":"IF('1. Ordersheet'!K442=\"\",\"\",'1. Ordersheet'!K442)","v":""},{"$f":"IF('1. Ordersheet'!M442=\"\",\"\",'1. Ordersheet'!M442)","v":""},null,null,{"$f":"IF('1. Ordersheet'!AR442=\"\",\"\",'1. Ordersheet'!AR442)","v":""},{"$f":"IF('1. Ordersheet'!AE442=\"\",\"\",'1. Ordersheet'!AE442)","v":""}]
[{"$f":"IF('1. Ordersheet'!B443=\"\",\"\",'1. Ordersheet'!B443)","v":""},{"$f":"IF('1. Ordersheet'!I443=\"\",\"\",'1. Ordersheet'!I443)","v":""},{"$f":"IF('1. Ordersheet'!J443=\"\",\"\",'1. Ordersheet'!J443)","v":""},{"$f":"IF('1. Ordersheet'!K443=\"\",\"\",'1. Ordersheet'!K443)","v":""},{"$f":"IF('1. Ordersheet'!M443=\"\",\"\",'1. Ordersheet'!M443)","v":""},null,null,{"$f":"IF('1. Ordersheet'!AR443=\"\",\"\",'1. Ordersheet'!AR443)","v":""},{"$f":"IF('1. Ordersheet'!AE443=\"\",\"\",'1. Ordersheet'!AE443)","v":""}]
[{"$f":"IF('1. Ordersheet'!B444=\"\",\"\",'1. Ordersheet'!B444)","v":""},{"$f":"IF('1. Ordersheet'!I444=\"\",\"\",'1. Ordersheet'!I444)","v":""},{"$f":"IF('1. Ordersheet'!J444=\"\",\"\",'1. Ordersheet'!J444)","v":""},{"$f":"IF('1. Ordersheet'!K444=\"\",\"\",'1. Ordersheet'!K444)","v":""},{"$f":"IF('1. Ordersheet'!M444=\"\",\"\",'1. Ordersheet'!M444)","v":""},null,null,{"$f":"IF('1. Ordersheet'!AR444=\"\",\"\",'1. Ordersheet'!AR444)","v":""},{"$f":"IF('1. Ordersheet'!AE444=\"\",\"\",'1. Ordersheet'!AE444)","v":""}]
[{"$f":"IF('1. Ordersheet'!B445=\"\",\"\",'1. Ordersheet'!B445)","v":""},{"$f":"IF('1. Ordersheet'!I445=\"\",\"\",'1. Ordersheet'!I445)","v":""},{"$f":"IF('1. Ordersheet'!J445=\"\",\"\",'1. Ordersheet'!J445)","v":""},{"$f":"IF('1. Ordersheet'!K445=\"\",\"\",'1. Ordersheet'!K445)","v":""},{"$f":"IF('1. Ordersheet'!M445=\"\",\"\",'1. Ordersheet'!M445)","v":""},null,null,{"$f":"IF('1. Ordersheet'!AR445=\"\",\"\",'1. Ordersheet'!AR445)","v":""},{"$f":"IF('1. Ordersheet'!AE445=\"\",\"\",'1. Ordersheet'!AE445)","v":""}]
[{"$f":"IF('1. Ordersheet'!B446=\"\",\"\",'1. Ordersheet'!B446)","v":""},{"$f":"IF('1. Ordersheet'!I446=\"\",\"\",'1. Ordersheet'!I446)","v":""},{"$f":"IF('1. Ordersheet'!J446=\"\",\"\",'1. Ordersheet'!J446)","v":""},{"$f":"IF('1. Ordersheet'!K446=\"\",\"\",'1. Ordersheet'!K446)","v":""},{"$f":"IF('1. Ordersheet'!M446=\"\",\"\",'1. Ordersheet'!M446)","v":""},null,null,{"$f":"IF('1. Ordersheet'!AR446=\"\",\"\",'1. Ordersheet'!AR446)","v":""},{"$f":"IF('1. Ordersheet'!AE446=\"\",\"\",'1. Ordersheet'!AE446)","v":""}]
[{"$f":"IF('1. Ordersheet'!B447=\"\",\"\",'1. Ordersheet'!B447)","v":""},{"$f":"IF('1. Ordersheet'!I447=\"\",\"\",'1. Ordersheet'!I447)","v":""},{"$f":"IF('1. Ordersheet'!J447=\"\",\"\",'1. Ordersheet'!J447)","v":""},{"$f":"IF('1. Ordersheet'!K447=\"\",\"\",'1. Ordersheet'!K447)","v":""},{"$f":"IF('1. Ordersheet'!M447=\"\",\"\",'1. Ordersheet'!M447)","v":""},null,null,{"$f":"IF('1. Ordersheet'!AR447=\"\",\"\",'1. Ordersheet'!AR447)","v":""},{"$f":"IF('1. Ordersheet'!AE447=\"\",\"\",'1. Ordersheet'!AE447)","v":""}]
[{"$f":"IF('1. Ordersheet'!B448=\"\",\"\",'1. Ordersheet'!B448)","v":""},{"$f":"IF('1. Ordersheet'!I448=\"\",\"\",'1. Ordersheet'!I448)","v":""},{"$f":"IF('1. Ordersheet'!J448=\"\",\"\",'1. Ordersheet'!J448)","v":""},{"$f":"IF('1. Ordersheet'!K448=\"\",\"\",'1. Ordersheet'!K448)","v":""},{"$f":"IF('1. Ordersheet'!M448=\"\",\"\",'1. Ordersheet'!M448)","v":""},null,null,{"$f":"IF('1. Ordersheet'!AR448=\"\",\"\",'1. Ordersheet'!AR448)","v":""},{"$f":"IF('1. Ordersheet'!AE448=\"\",\"\",'1. Ordersheet'!AE448)","v":""}]
[{"$f":"IF('1. Ordersheet'!B449=\"\",\"\",'1. Ordersheet'!B449)","v":""},{"$f":"IF('1. Ordersheet'!I449=\"\",\"\",'1. Ordersheet'!I449)","v":""},{"$f":"IF('1. Ordersheet'!J449=\"\",\"\",'1. Ordersheet'!J449)","v":""},{"$f":"IF('1. Ordersheet'!K449=\"\",\"\",'1. Ordersheet'!K449)","v":""},{"$f":"IF('1. Ordersheet'!M449=\"\",\"\",'1. Ordersheet'!M449)","v":""},null,null,{"$f":"IF('1. Ordersheet'!AR449=\"\",\"\",'1. Ordersheet'!AR449)","v":""},{"$f":"IF('1. Ordersheet'!AE449=\"\",\"\",'1. Ordersheet'!AE449)","v":""}]
[{"$f":"IF('1. Ordersheet'!B450=\"\",\"\",'1. Ordersheet'!B450)","v":""},{"$f":"IF('1. Ordersheet'!I450=\"\",\"\",'1. Ordersheet'!I450)","v":""},{"$f":"IF('1. Ordersheet'!J450=\"\",\"\",'1. Ordersheet'!J450)","v":""},{"$f":"IF('1. Ordersheet'!K450=\"\",\"\",'1. Ordersheet'!K450)","v":""},{"$f":"IF('1. Ordersheet'!M450=\"\",\"\",'1. Ordersheet'!M450)","v":""},null,null,{"$f":"IF('1. Ordersheet'!AR450=\"\",\"\",'1. Ordersheet'!AR450)","v":""},{"$f":"IF('1. Ordersheet'!AE450=\"\",\"\",'1. Ordersheet'!AE450)","v":""}]
[{"$f":"IF('1. Ordersheet'!B451=\"\",\"\",'1. Ordersheet'!B451)","v":""},{"$f":"IF('1. Ordersheet'!I451=\"\",\"\",'1. Ordersheet'!I451)","v":""},{"$f":"IF('1. Ordersheet'!J451=\"\",\"\",'1. Ordersheet'!J451)","v":""},{"$f":"IF('1. Ordersheet'!K451=\"\",\"\",'1. Ordersheet'!K451)","v":""},{"$f":"IF('1. Ordersheet'!M451=\"\",\"\",'1. Ordersheet'!M451)","v":""},null,null,{"$f":"IF('1. Ordersheet'!AR451=\"\",\"\",'1. Ordersheet'!AR451)","v":""},{"$f":"IF('1. Ordersheet'!AE451=\"\",\"\",'1. Ordersheet'!AE451)","v":""}]
[{"$f":"IF('1. Ordersheet'!B452=\"\",\"\",'1. Ordersheet'!B452)","v":""},{"$f":"IF('1. Ordersheet'!I452=\"\",\"\",'1. Ordersheet'!I452)","v":""},{"$f":"IF('1. Ordersheet'!J452=\"\",\"\",'1. Ordersheet'!J452)","v":""},{"$f":"IF('1. Ordersheet'!K452=\"\",\"\",'1. Ordersheet'!K452)","v":""},{"$f":"IF('1. Ordersheet'!M452=\"\",\"\",'1. Ordersheet'!M452)","v":""},null,null,{"$f":"IF('1. Ordersheet'!AR452=\"\",\"\",'1. Ordersheet'!AR452)","v":""},{"$f":"IF('1. Ordersheet'!AE452=\"\",\"\",'1. Ordersheet'!AE452)","v":""}]
[{"$f":"IF('1. Ordersheet'!B453=\"\",\"\",'1. Ordersheet'!B453)","v":""},{"$f":"IF('1. Ordersheet'!I453=\"\",\"\",'1. Ordersheet'!I453)","v":""},{"$f":"IF('1. Ordersheet'!J453=\"\",\"\",'1. Ordersheet'!J453)","v":""},{"$f":"IF('1. Ordersheet'!K453=\"\",\"\",'1. Ordersheet'!K453)","v":""},{"$f":"IF('1. Ordersheet'!M453=\"\",\"\",'1. Ordersheet'!M453)","v":""},null,null,{"$f":"IF('1. Ordersheet'!AR453=\"\",\"\",'1. Ordersheet'!AR453)","v":""},{"$f":"IF('1. Ordersheet'!AE453=\"\",\"\",'1. Ordersheet'!AE453)","v":""}]
[{"$f":"IF('1. Ordersheet'!B454=\"\",\"\",'1. Ordersheet'!B454)","v":""},{"$f":"IF('1. Ordersheet'!I454=\"\",\"\",'1. Ordersheet'!I454)","v":""},{"$f":"IF('1. Ordersheet'!J454=\"\",\"\",'1. Ordersheet'!J454)","v":""},{"$f":"IF('1. Ordersheet'!K454=\"\",\"\",'1. Ordersheet'!K454)","v":""},{"$f":"IF('1. Ordersheet'!M454=\"\",\"\",'1. Ordersheet'!M454)","v":""},null,null,{"$f":"IF('1. Ordersheet'!AR454=\"\",\"\",'1. Ordersheet'!AR454)","v":""},{"$f":"IF('1. Ordersheet'!AE454=\"\",\"\",'1. Ordersheet'!AE454)","v":""}]
[{"$f":"IF('1. Ordersheet'!B455=\"\",\"\",'1. Ordersheet'!B455)","v":""},{"$f":"IF('1. Ordersheet'!I455=\"\",\"\",'1. Ordersheet'!I455)","v":""},{"$f":"IF('1. Ordersheet'!J455=\"\",\"\",'1. Ordersheet'!J455)","v":""},{"$f":"IF('1. Ordersheet'!K455=\"\",\"\",'1. Ordersheet'!K455)","v":""},{"$f":"IF('1. Ordersheet'!M455=\"\",\"\",'1. Ordersheet'!M455)","v":""},null,null,{"$f":"IF('1. Ordersheet'!AR455=\"\",\"\",'1. Ordersheet'!AR455)","v":""},{"$f":"IF('1. Ordersheet'!AE455=\"\",\"\",'1. Ordersheet'!AE455)","v":""}]
[{"$f":"IF('1. Ordersheet'!B456=\"\",\"\",'1. Ordersheet'!B456)","v":""},{"$f":"IF('1. Ordersheet'!I456=\"\",\"\",'1. Ordersheet'!I456)","v":""},{"$f":"IF('1. Ordersheet'!J456=\"\",\"\",'1. Ordersheet'!J456)","v":""},{"$f":"IF('1. Ordersheet'!K456=\"\",\"\",'1. Ordersheet'!K456)","v":""},{"$f":"IF('1. Ordersheet'!M456=\"\",\"\",'1. Ordersheet'!M456)","v":""},null,null,{"$f":"IF('1. Ordersheet'!AR456=\"\",\"\",'1. Ordersheet'!AR456)","v":""},{"$f":"IF('1. Ordersheet'!AE456=\"\",\"\",'1. Ordersheet'!AE456)","v":""}]
[{"$f":"IF('1. Ordersheet'!B457=\"\",\"\",'1. Ordersheet'!B457)","v":""},{"$f":"IF('1. Ordersheet'!I457=\"\",\"\",'1. Ordersheet'!I457)","v":""},{"$f":"IF('1. Ordersheet'!J457=\"\",\"\",'1. Ordersheet'!J457)","v":""},{"$f":"IF('1. Ordersheet'!K457=\"\",\"\",'1. Ordersheet'!K457)","v":""},{"$f":"IF('1. Ordersheet'!M457=\"\",\"\",'1. Ordersheet'!M457)","v":""},null,null,{"$f":"IF('1. Ordersheet'!AR457=\"\",\"\",'1. Ordersheet'!AR457)","v":""},{"$f":"IF('1. Ordersheet'!AE457=\"\",\"\",'1. Ordersheet'!AE457)","v":""}]
[{"$f":"IF('1. Ordersheet'!B458=\"\",\"\",'1. Ordersheet'!B458)","v":""},{"$f":"IF('1. Ordersheet'!I458=\"\",\"\",'1. Ordersheet'!I458)","v":""},{"$f":"IF('1. Ordersheet'!J458=\"\",\"\",'1. Ordersheet'!J458)","v":""},{"$f":"IF('1. Ordersheet'!K458=\"\",\"\",'1. Ordersheet'!K458)","v":""},{"$f":"IF('1. Ordersheet'!M458=\"\",\"\",'1. Ordersheet'!M458)","v":""},null,null,{"$f":"IF('1. Ordersheet'!AR458=\"\",\"\",'1. Ordersheet'!AR458)","v":""},{"$f":"IF('1. Ordersheet'!AE458=\"\",\"\",'1. Ordersheet'!AE458)","v":""}]
[{"$f":"IF('1. Ordersheet'!B459=\"\",\"\",'1. Ordersheet'!B459)","v":""},{"$f":"IF('1. Ordersheet'!I459=\"\",\"\",'1. Ordersheet'!I459)","v":""},{"$f":"IF('1. Ordersheet'!J459=\"\",\"\",'1. Ordersheet'!J459)","v":""},{"$f":"IF('1. Ordersheet'!K459=\"\",\"\",'1. Ordersheet'!K459)","v":""},{"$f":"IF('1. Ordersheet'!M459=\"\",\"\",'1. Ordersheet'!M459)","v":""},null,null,{"$f":"IF('1. Ordersheet'!AR459=\"\",\"\",'1. Ordersheet'!AR459)","v":""},{"$f":"IF('1. Ordersheet'!AE459=\"\",\"\",'1. Ordersheet'!AE459)","v":""}]
[{"$f":"IF('1. Ordersheet'!B460=\"\",\"\",'1. Ordersheet'!B460)","v":""},{"$f":"IF('1. Ordersheet'!I460=\"\",\"\",'1. Ordersheet'!I460)","v":""},{"$f":"IF('1. Ordersheet'!J460=\"\",\"\",'1. Ordersheet'!J460)","v":""},{"$f":"IF('1. Ordersheet'!K460=\"\",\"\",'1. Ordersheet'!K460)","v":""},{"$f":"IF('1. Ordersheet'!M460=\"\",\"\",'1. Ordersheet'!M460)","v":""},null,null,{"$f":"IF('1. Ordersheet'!AR460=\"\",\"\",'1. Ordersheet'!AR460)","v":""},{"$f":"IF('1. Ordersheet'!AE460=\"\",\"\",'1. Ordersheet'!AE460)","v":""}]
[{"$f":"IF('1. Ordersheet'!B461=\"\",\"\",'1. Ordersheet'!B461)","v":""},{"$f":"IF('1. Ordersheet'!I461=\"\",\"\",'1. Ordersheet'!I461)","v":""},{"$f":"IF('1. Ordersheet'!J461=\"\",\"\",'1. Ordersheet'!J461)","v":""},{"$f":"IF('1. Ordersheet'!K461=\"\",\"\",'1. Ordersheet'!K461)","v":""},{"$f":"IF('1. Ordersheet'!M461=\"\",\"\",'1. Ordersheet'!M461)","v":""},null,null,{"$f":"IF('1. Ordersheet'!AR461=\"\",\"\",'1. Ordersheet'!AR461)","v":""},{"$f":"IF('1. Ordersheet'!AE461=\"\",\"\",'1. Ordersheet'!AE461)","v":""}]
[{"$f":"IF('1. Ordersheet'!B462=\"\",\"\",'1. Ordersheet'!B462)","v":""},{"$f":"IF('1. Ordersheet'!I462=\"\",\"\",'1. Ordersheet'!I462)","v":""},{"$f":"IF('1. Ordersheet'!J462=\"\",\"\",'1. Ordersheet'!J462)","v":""},{"$f":"IF('1. Ordersheet'!K462=\"\",\"\",'1. Ordersheet'!K462)","v":""},{"$f":"IF('1. Ordersheet'!M462=\"\",\"\",'1. Ordersheet'!M462)","v":""},null,null,{"$f":"IF('1. Ordersheet'!AR462=\"\",\"\",'1. Ordersheet'!AR462)","v":""},{"$f":"IF('1. Ordersheet'!AE462=\"\",\"\",'1. Ordersheet'!AE462)","v":""}]
[{"$f":"IF('1. Ordersheet'!B463=\"\",\"\",'1. Ordersheet'!B463)","v":""},{"$f":"IF('1. Ordersheet'!I463=\"\",\"\",'1. Ordersheet'!I463)","v":""},{"$f":"IF('1. Ordersheet'!J463=\"\",\"\",'1. Ordersheet'!J463)","v":""},{"$f":"IF('1. Ordersheet'!K463=\"\",\"\",'1. Ordersheet'!K463)","v":""},{"$f":"IF('1. Ordersheet'!M463=\"\",\"\",'1. Ordersheet'!M463)","v":""},null,null,{"$f":"IF('1. Ordersheet'!AR463=\"\",\"\",'1. Ordersheet'!AR463)","v":""},{"$f":"IF('1. Ordersheet'!AE463=\"\",\"\",'1. Ordersheet'!AE463)","v":""}]
[{"$f":"IF('1. Ordersheet'!B464=\"\",\"\",'1. Ordersheet'!B464)","v":""},{"$f":"IF('1. Ordersheet'!I464=\"\",\"\",'1. Ordersheet'!I464)","v":""},{"$f":"IF('1. Ordersheet'!J464=\"\",\"\",'1. Ordersheet'!J464)","v":""},{"$f":"IF('1. Ordersheet'!K464=\"\",\"\",'1. Ordersheet'!K464)","v":""},{"$f":"IF('1. Ordersheet'!M464=\"\",\"\",'1. Ordersheet'!M464)","v":""},null,null,{"$f":"IF('1. Ordersheet'!AR464=\"\",\"\",'1. Ordersheet'!AR464)","v":""},{"$f":"IF('1. Ordersheet'!AE464=\"\",\"\",'1. Ordersheet'!AE464)","v":""}]
[{"$f":"IF('1. Ordersheet'!B465=\"\",\"\",'1. Ordersheet'!B465)","v":""},{"$f":"IF('1. Ordersheet'!I465=\"\",\"\",'1. Ordersheet'!I465)","v":""},{"$f":"IF('1. Ordersheet'!J465=\"\",\"\",'1. Ordersheet'!J465)","v":""},{"$f":"IF('1. Ordersheet'!K465=\"\",\"\",'1. Ordersheet'!K465)","v":""},{"$f":"IF('1. Ordersheet'!M465=\"\",\"\",'1. Ordersheet'!M465)","v":""},null,null,{"$f":"IF('1. Ordersheet'!AR465=\"\",\"\",'1. Ordersheet'!AR465)","v":""},{"$f":"IF('1. Ordersheet'!AE465=\"\",\"\",'1. Ordersheet'!AE465)","v":""}]
[{"$f":"IF('1. Ordersheet'!B466=\"\",\"\",'1. Ordersheet'!B466)","v":""},{"$f":"IF('1. Ordersheet'!I466=\"\",\"\",'1. Ordersheet'!I466)","v":""},{"$f":"IF('1. Ordersheet'!J466=\"\",\"\",'1. Ordersheet'!J466)","v":""},{"$f":"IF('1. Ordersheet'!K466=\"\",\"\",'1. Ordersheet'!K466)","v":""},{"$f":"IF('1. Ordersheet'!M466=\"\",\"\",'1. Ordersheet'!M466)","v":""},null,null,{"$f":"IF('1. Ordersheet'!AR466=\"\",\"\",'1. Ordersheet'!AR466)","v":""},{"$f":"IF('1. Ordersheet'!AE466=\"\",\"\",'1. Ordersheet'!AE466)","v":""}]
[{"$f":"IF('1. Ordersheet'!B467=\"\",\"\",'1. Ordersheet'!B467)","v":""},{"$f":"IF('1. Ordersheet'!I467=\"\",\"\",'1. Ordersheet'!I467)","v":""},{"$f":"IF('1. Ordersheet'!J467=\"\",\"\",'1. Ordersheet'!J467)","v":""},{"$f":"IF('1. Ordersheet'!K467=\"\",\"\",'1. Ordersheet'!K467)","v":""},{"$f":"IF('1. Ordersheet'!M467=\"\",\"\",'1. Ordersheet'!M467)","v":""},null,null,{"$f":"IF('1. Ordersheet'!AR467=\"\",\"\",'1. Ordersheet'!AR467)","v":""},{"$f":"IF('1. Ordersheet'!AE467=\"\",\"\",'1. Ordersheet'!AE467)","v":""}]
[{"$f":"IF('1. Ordersheet'!B468=\"\",\"\",'1. Ordersheet'!B468)","v":""},{"$f":"IF('1. Ordersheet'!I468=\"\",\"\",'1. Ordersheet'!I468)","v":""},{"$f":"IF('1. Ordersheet'!J468=\"\",\"\",'1. Ordersheet'!J468)","v":""},{"$f":"IF('1. Ordersheet'!K468=\"\",\"\",'1. Ordersheet'!K468)","v":""},{"$f":"IF('1. Ordersheet'!M468=\"\",\"\",'1. Ordersheet'!M468)","v":""},null,null,{"$f":"IF('1. Ordersheet'!AR468=\"\",\"\",'1. Ordersheet'!AR468)","v":""},{"$f":"IF('1. Ordersheet'!AE468=\"\",\"\",'1. Ordersheet'!AE468)","v":""}]
[{"$f":"IF('1. Ordersheet'!B469=\"\",\"\",'1. Ordersheet'!B469)","v":""},{"$f":"IF('1. Ordersheet'!I469=\"\",\"\",'1. Ordersheet'!I469)","v":""},{"$f":"IF('1. Ordersheet'!J469=\"\",\"\",'1. Ordersheet'!J469)","v":""},{"$f":"IF('1. Ordersheet'!K469=\"\",\"\",'1. Ordersheet'!K469)","v":""},{"$f":"IF('1. Ordersheet'!M469=\"\",\"\",'1. Ordersheet'!M469)","v":""},null,null,{"$f":"IF('1. Ordersheet'!AR469=\"\",\"\",'1. Ordersheet'!AR469)","v":""},{"$f":"IF('1. Ordersheet'!AE469=\"\",\"\",'1. Ordersheet'!AE469)","v":""}]
[{"$f":"IF('1. Ordersheet'!B470=\"\",\"\",'1. Ordersheet'!B470)","v":""},{"$f":"IF('1. Ordersheet'!I470=\"\",\"\",'1. Ordersheet'!I470)","v":""},{"$f":"IF('1. Ordersheet'!J470=\"\",\"\",'1. Ordersheet'!J470)","v":""},{"$f":"IF('1. Ordersheet'!K470=\"\",\"\",'1. Ordersheet'!K470)","v":""},{"$f":"IF('1. Ordersheet'!M470=\"\",\"\",'1. Ordersheet'!M470)","v":""},null,null,{"$f":"IF('1. Ordersheet'!AR470=\"\",\"\",'1. Ordersheet'!AR470)","v":""},{"$f":"IF('1. Ordersheet'!AE470=\"\",\"\",'1. Ordersheet'!AE470)","v":""}]
[{"$f":"IF('1. Ordersheet'!B471=\"\",\"\",'1. Ordersheet'!B471)","v":""},{"$f":"IF('1. Ordersheet'!I471=\"\",\"\",'1. Ordersheet'!I471)","v":""},{"$f":"IF('1. Ordersheet'!J471=\"\",\"\",'1. Ordersheet'!J471)","v":""},{"$f":"IF('1. Ordersheet'!K471=\"\",\"\",'1. Ordersheet'!K471)","v":""},{"$f":"IF('1. Ordersheet'!M471=\"\",\"\",'1. Ordersheet'!M471)","v":""},null,null,{"$f":"IF('1. Ordersheet'!AR471=\"\",\"\",'1. Ordersheet'!AR471)","v":""},{"$f":"IF('1. Ordersheet'!AE471=\"\",\"\",'1. Ordersheet'!AE471)","v":""}]
[{"$f":"IF('1. Ordersheet'!B472=\"\",\"\",'1. Ordersheet'!B472)","v":""},{"$f":"IF('1. Ordersheet'!I472=\"\",\"\",'1. Ordersheet'!I472)","v":""},{"$f":"IF('1. Ordersheet'!J472=\"\",\"\",'1. Ordersheet'!J472)","v":""},{"$f":"IF('1. Ordersheet'!K472=\"\",\"\",'1. Ordersheet'!K472)","v":""},{"$f":"IF('1. Ordersheet'!M472=\"\",\"\",'1. Ordersheet'!M472)","v":""},null,null,{"$f":"IF('1. Ordersheet'!AR472=\"\",\"\",'1. Ordersheet'!AR472)","v":""},{"$f":"IF('1. Ordersheet'!AE472=\"\",\"\",'1. Ordersheet'!AE472)","v":""}]
[{"$f":"IF('1. Ordersheet'!B473=\"\",\"\",'1. Ordersheet'!B473)","v":""},{"$f":"IF('1. Ordersheet'!I473=\"\",\"\",'1. Ordersheet'!I473)","v":""},{"$f":"IF('1. Ordersheet'!J473=\"\",\"\",'1. Ordersheet'!J473)","v":""},{"$f":"IF('1. Ordersheet'!K473=\"\",\"\",'1. Ordersheet'!K473)","v":""},{"$f":"IF('1. Ordersheet'!M473=\"\",\"\",'1. Ordersheet'!M473)","v":""},null,null,{"$f":"IF('1. Ordersheet'!AR473=\"\",\"\",'1. Ordersheet'!AR473)","v":""},{"$f":"IF('1. Ordersheet'!AE473=\"\",\"\",'1. Ordersheet'!AE473)","v":""}]
[{"$f":"IF('1. Ordersheet'!B474=\"\",\"\",'1. Ordersheet'!B474)","v":""},{"$f":"IF('1. Ordersheet'!I474=\"\",\"\",'1. Ordersheet'!I474)","v":""},{"$f":"IF('1. Ordersheet'!J474=\"\",\"\",'1. Ordersheet'!J474)","v":""},{"$f":"IF('1. Ordersheet'!K474=\"\",\"\",'1. Ordersheet'!K474)","v":""},{"$f":"IF('1. Ordersheet'!M474=\"\",\"\",'1. Ordersheet'!M474)","v":""},null,null,{"$f":"IF('1. Ordersheet'!AR474=\"\",\"\",'1. Ordersheet'!AR474)","v":""},{"$f":"IF('1. Ordersheet'!AE474=\"\",\"\",'1. Ordersheet'!AE474)","v":""}]
[{"$f":"IF('1. Ordersheet'!B475=\"\",\"\",'1. Ordersheet'!B475)","v":""},{"$f":"IF('1. Ordersheet'!I475=\"\",\"\",'1. Ordersheet'!I475)","v":""},{"$f":"IF('1. Ordersheet'!J475=\"\",\"\",'1. Ordersheet'!J475)","v":""},{"$f":"IF('1. Ordersheet'!K475=\"\",\"\",'1. Ordersheet'!K475)","v":""},{"$f":"IF('1. Ordersheet'!M475=\"\",\"\",'1. Ordersheet'!M475)","v":""},null,null,{"$f":"IF('1. Ordersheet'!AR475=\"\",\"\",'1. Ordersheet'!AR475)","v":""},{"$f":"IF('1. Ordersheet'!AE475=\"\",\"\",'1. Ordersheet'!AE475)","v":""}]
[{"$f":"IF('1. Ordersheet'!B476=\"\",\"\",'1. Ordersheet'!B476)","v":""},{"$f":"IF('1. Ordersheet'!I476=\"\",\"\",'1. Ordersheet'!I476)","v":""},{"$f":"IF('1. Ordersheet'!J476=\"\",\"\",'1. Ordersheet'!J476)","v":""},{"$f":"IF('1. Ordersheet'!K476=\"\",\"\",'1. Ordersheet'!K476)","v":""},{"$f":"IF('1. Ordersheet'!M476=\"\",\"\",'1. Ordersheet'!M476)","v":""},null,null,{"$f":"IF('1. Ordersheet'!AR476=\"\",\"\",'1. Ordersheet'!AR476)","v":""},{"$f":"IF('1. Ordersheet'!AE476=\"\",\"\",'1. Ordersheet'!AE476)","v":""}]
[{"$f":"IF('1. Ordersheet'!B477=\"\",\"\",'1. Ordersheet'!B477)","v":""},{"$f":"IF('1. Ordersheet'!I477=\"\",\"\",'1. Ordersheet'!I477)","v":""},{"$f":"IF('1. Ordersheet'!J477=\"\",\"\",'1. Ordersheet'!J477)","v":""},{"$f":"IF('1. Ordersheet'!K477=\"\",\"\",'1. Ordersheet'!K477)","v":""},{"$f":"IF('1. Ordersheet'!M477=\"\",\"\",'1. Ordersheet'!M477)","v":""},null,null,{"$f":"IF('1. Ordersheet'!AR477=\"\",\"\",'1. Ordersheet'!AR477)","v":""},{"$f":"IF('1. Ordersheet'!AE477=\"\",\"\",'1. Ordersheet'!AE477)","v":""}]
[{"$f":"IF('1. Ordersheet'!B478=\"\",\"\",'1. Ordersheet'!B478)","v":""},{"$f":"IF('1. Ordersheet'!I478=\"\",\"\",'1. Ordersheet'!I478)","v":""},{"$f":"IF('1. Ordersheet'!J478=\"\",\"\",'1. Ordersheet'!J478)","v":""},{"$f":"IF('1. Ordersheet'!K478=\"\",\"\",'1. Ordersheet'!K478)","v":""},{"$f":"IF('1. Ordersheet'!M478=\"\",\"\",'1. Ordersheet'!M478)","v":""},null,null,{"$f":"IF('1. Ordersheet'!AR478=\"\",\"\",'1. Ordersheet'!AR478)","v":""},{"$f":"IF('1. Ordersheet'!AE478=\"\",\"\",'1. Ordersheet'!AE478)","v":""}]
[{"$f":"IF('1. Ordersheet'!B479=\"\",\"\",'1. Ordersheet'!B479)","v":""},{"$f":"IF('1. Ordersheet'!I479=\"\",\"\",'1. Ordersheet'!I479)","v":""},{"$f":"IF('1. Ordersheet'!J479=\"\",\"\",'1. Ordersheet'!J479)","v":""},{"$f":"IF('1. Ordersheet'!K479=\"\",\"\",'1. Ordersheet'!K479)","v":""},{"$f":"IF('1. Ordersheet'!M479=\"\",\"\",'1. Ordersheet'!M479)","v":""},null,null,{"$f":"IF('1. Ordersheet'!AR479=\"\",\"\",'1. Ordersheet'!AR479)","v":""},{"$f":"IF('1. Ordersheet'!AE479=\"\",\"\",'1. Ordersheet'!AE479)","v":""}]
[{"$f":"IF('1. Ordersheet'!B480=\"\",\"\",'1. Ordersheet'!B480)","v":""},{"$f":"IF('1. Ordersheet'!I480=\"\",\"\",'1. Ordersheet'!I480)","v":""},{"$f":"IF('1. Ordersheet'!J480=\"\",\"\",'1. Ordersheet'!J480)","v":""},{"$f":"IF('1. Ordersheet'!K480=\"\",\"\",'1. Ordersheet'!K480)","v":""},{"$f":"IF('1. Ordersheet'!M480=\"\",\"\",'1. Ordersheet'!M480)","v":""},null,null,{"$f":"IF('1. Ordersheet'!AR480=\"\",\"\",'1. Ordersheet'!AR480)","v":""},{"$f":"IF('1. Ordersheet'!AE480=\"\",\"\",'1. Ordersheet'!AE480)","v":""}]
[{"$f":"IF('1. Ordersheet'!B481=\"\",\"\",'1. Ordersheet'!B481)","v":""},{"$f":"IF('1. Ordersheet'!I481=\"\",\"\",'1. Ordersheet'!I481)","v":""},{"$f":"IF('1. Ordersheet'!J481=\"\",\"\",'1. Ordersheet'!J481)","v":""},{"$f":"IF('1. Ordersheet'!K481=\"\",\"\",'1. Ordersheet'!K481)","v":""},{"$f":"IF('1. Ordersheet'!M481=\"\",\"\",'1. Ordersheet'!M481)","v":""},null,null,{"$f":"IF('1. Ordersheet'!AR481=\"\",\"\",'1. Ordersheet'!AR481)","v":""},{"$f":"IF('1. Ordersheet'!AE481=\"\",\"\",'1. Ordersheet'!AE481)","v":""}]
[{"$f":"IF('1. Ordersheet'!B482=\"\",\"\",'1. Ordersheet'!B482)","v":""},{"$f":"IF('1. Ordersheet'!I482=\"\",\"\",'1. Ordersheet'!I482)","v":""},{"$f":"IF('1. Ordersheet'!J482=\"\",\"\",'1. Ordersheet'!J482)","v":""},{"$f":"IF('1. Ordersheet'!K482=\"\",\"\",'1. Ordersheet'!K482)","v":""},{"$f":"IF('1. Ordersheet'!M482=\"\",\"\",'1. Ordersheet'!M482)","v":""},null,null,{"$f":"IF('1. Ordersheet'!AR482=\"\",\"\",'1. Ordersheet'!AR482)","v":""},{"$f":"IF('1. Ordersheet'!AE482=\"\",\"\",'1. Ordersheet'!AE482)","v":""}]
[{"$f":"IF('1. Ordersheet'!B483=\"\",\"\",'1. Ordersheet'!B483)","v":""},{"$f":"IF('1. Ordersheet'!I483=\"\",\"\",'1. Ordersheet'!I483)","v":""},{"$f":"IF('1. Ordersheet'!J483=\"\",\"\",'1. Ordersheet'!J483)","v":""},{"$f":"IF('1. Ordersheet'!K483=\"\",\"\",'1. Ordersheet'!K483)","v":""},{"$f":"IF('1. Ordersheet'!M483=\"\",\"\",'1. Ordersheet'!M483)","v":""},null,null,{"$f":"IF('1. Ordersheet'!AR483=\"\",\"\",'1. Ordersheet'!AR483)","v":""},{"$f":"IF('1. Ordersheet'!AE483=\"\",\"\",'1. Ordersheet'!AE483)","v":""}]
[{"$f":"IF('1. Ordersheet'!B484=\"\",\"\",'1. Ordersheet'!B484)","v":""},{"$f":"IF('1. Ordersheet'!I484=\"\",\"\",'1. Ordersheet'!I484)","v":""},{"$f":"IF('1. Ordersheet'!J484=\"\",\"\",'1. Ordersheet'!J484)","v":""},{"$f":"IF('1. Ordersheet'!K484=\"\",\"\",'1. Ordersheet'!K484)","v":""},{"$f":"IF('1. Ordersheet'!M484=\"\",\"\",'1. Ordersheet'!M484)","v":""},null,null,{"$f":"IF('1. Ordersheet'!AR484=\"\",\"\",'1. Ordersheet'!AR484)","v":""},{"$f":"IF('1. Ordersheet'!AE484=\"\",\"\",'1. Ordersheet'!AE484)","v":""}]
[{"$f":"IF('1. Ordersheet'!B485=\"\",\"\",'1. Ordersheet'!B485)","v":""},{"$f":"IF('1. Ordersheet'!I485=\"\",\"\",'1. Ordersheet'!I485)","v":""},{"$f":"IF('1. Ordersheet'!J485=\"\",\"\",'1. Ordersheet'!J485)","v":""},{"$f":"IF('1. Ordersheet'!K485=\"\",\"\",'1. Ordersheet'!K485)","v":""},{"$f":"IF('1. Ordersheet'!M485=\"\",\"\",'1. Ordersheet'!M485)","v":""},null,null,{"$f":"IF('1. Ordersheet'!AR485=\"\",\"\",'1. Ordersheet'!AR485)","v":""},{"$f":"IF('1. Ordersheet'!AE485=\"\",\"\",'1. Ordersheet'!AE485)","v":""}]
[{"$f":"IF('1. Ordersheet'!B486=\"\",\"\",'1. Ordersheet'!B486)","v":""},{"$f":"IF('1. Ordersheet'!I486=\"\",\"\",'1. Ordersheet'!I486)","v":""},{"$f":"IF('1. Ordersheet'!J486=\"\",\"\",'1. Ordersheet'!J486)","v":""},{"$f":"IF('1. Ordersheet'!K486=\"\",\"\",'1. Ordersheet'!K486)","v":""},{"$f":"IF('1. Ordersheet'!M486=\"\",\"\",'1. Ordersheet'!M486)","v":""},null,null,{"$f":"IF('1. Ordersheet'!AR486=\"\",\"\",'1. Ordersheet'!AR486)","v":""},{"$f":"IF('1. Ordersheet'!AE486=\"\",\"\",'1. Ordersheet'!AE486)","v":""}]
[{"$f":"IF('1. Ordersheet'!B487=\"\",\"\",'1. Ordersheet'!B487)","v":""},{"$f":"IF('1. Ordersheet'!I487=\"\",\"\",'1. Ordersheet'!I487)","v":""},{"$f":"IF('1. Ordersheet'!J487=\"\",\"\",'1. Ordersheet'!J487)","v":""},{"$f":"IF('1. Ordersheet'!K487=\"\",\"\",'1. Ordersheet'!K487)","v":""},{"$f":"IF('1. Ordersheet'!M487=\"\",\"\",'1. Ordersheet'!M487)","v":""},null,null,{"$f":"IF('1. Ordersheet'!AR487=\"\",\"\",'1. Ordersheet'!AR487)","v":""},{"$f":"IF('1. Ordersheet'!AE487=\"\",\"\",'1. Ordersheet'!AE487)","v":""}]
[{"$f":"IF('1. Ordersheet'!B488=\"\",\"\",'1. Ordersheet'!B488)","v":""},{"$f":"IF('1. Ordersheet'!I488=\"\",\"\",'1. Ordersheet'!I488)","v":""},{"$f":"IF('1. Ordersheet'!J488=\"\",\"\",'1. Ordersheet'!J488)","v":""},{"$f":"IF('1. Ordersheet'!K488=\"\",\"\",'1. Ordersheet'!K488)","v":""},{"$f":"IF('1. Ordersheet'!M488=\"\",\"\",'1. Ordersheet'!M488)","v":""},null,null,{"$f":"IF('1. Ordersheet'!AR488=\"\",\"\",'1. Ordersheet'!AR488)","v":""},{"$f":"IF('1. Ordersheet'!AE488=\"\",\"\",'1. Ordersheet'!AE488)","v":""}]
[{"$f":"IF('1. Ordersheet'!B489=\"\",\"\",'1. Ordersheet'!B489)","v":""},{"$f":"IF('1. Ordersheet'!I489=\"\",\"\",'1. Ordersheet'!I489)","v":""},{"$f":"IF('1. Ordersheet'!J489=\"\",\"\",'1. Ordersheet'!J489)","v":""},{"$f":"IF('1. Ordersheet'!K489=\"\",\"\",'1. Ordersheet'!K489)","v":""},{"$f":"IF('1. Ordersheet'!M489=\"\",\"\",'1. Ordersheet'!M489)","v":""},null,null,{"$f":"IF('1. Ordersheet'!AR489=\"\",\"\",'1. Ordersheet'!AR489)","v":""},{"$f":"IF('1. Ordersheet'!AE489=\"\",\"\",'1. Ordersheet'!AE489)","v":""}]
[{"$f":"IF('1. Ordersheet'!B490=\"\",\"\",'1. Ordersheet'!B490)","v":""},{"$f":"IF('1. Ordersheet'!I490=\"\",\"\",'1. Ordersheet'!I490)","v":""},{"$f":"IF('1. Ordersheet'!J490=\"\",\"\",'1. Ordersheet'!J490)","v":""},{"$f":"IF('1. Ordersheet'!K490=\"\",\"\",'1. Ordersheet'!K490)","v":""},{"$f":"IF('1. Ordersheet'!M490=\"\",\"\",'1. Ordersheet'!M490)","v":""},null,null,{"$f":"IF('1. Ordersheet'!AR490=\"\",\"\",'1. Ordersheet'!AR490)","v":""},{"$f":"IF('1. Ordersheet'!AE490=\"\",\"\",'1. Ordersheet'!AE490)","v":""}]
[{"$f":"IF('1. Ordersheet'!B491=\"\",\"\",'1. Ordersheet'!B491)","v":""},{"$f":"IF('1. Ordersheet'!I491=\"\",\"\",'1. Ordersheet'!I491)","v":""},{"$f":"IF('1. Ordersheet'!J491=\"\",\"\",'1. Ordersheet'!J491)","v":""},{"$f":"IF('1. Ordersheet'!K491=\"\",\"\",'1. Ordersheet'!K491)","v":""},{"$f":"IF('1. Ordersheet'!M491=\"\",\"\",'1. Ordersheet'!M491)","v":""},null,null,{"$f":"IF('1. Ordersheet'!AR491=\"\",\"\",'1. Ordersheet'!AR491)","v":""},{"$f":"IF('1. Ordersheet'!AE491=\"\",\"\",'1. Ordersheet'!AE491)","v":""}]
[{"$f":"IF('1. Ordersheet'!B492=\"\",\"\",'1. Ordersheet'!B492)","v":""},{"$f":"IF('1. Ordersheet'!I492=\"\",\"\",'1. Ordersheet'!I492)","v":""},{"$f":"IF('1. Ordersheet'!J492=\"\",\"\",'1. Ordersheet'!J492)","v":""},{"$f":"IF('1. Ordersheet'!K492=\"\",\"\",'1. Ordersheet'!K492)","v":""},{"$f":"IF('1. Ordersheet'!M492=\"\",\"\",'1. Ordersheet'!M492)","v":""},null,null,{"$f":"IF('1. Ordersheet'!AR492=\"\",\"\",'1. Ordersheet'!AR492)","v":""},{"$f":"IF('1. Ordersheet'!AE492=\"\",\"\",'1. Ordersheet'!AE492)","v":""}]
[{"$f":"IF('1. Ordersheet'!B493=\"\",\"\",'1. Ordersheet'!B493)","v":""},{"$f":"IF('1. Ordersheet'!I493=\"\",\"\",'1. Ordersheet'!I493)","v":""},{"$f":"IF('1. Ordersheet'!J493=\"\",\"\",'1. Ordersheet'!J493)","v":""},{"$f":"IF('1. Ordersheet'!K493=\"\",\"\",'1. Ordersheet'!K493)","v":""},{"$f":"IF('1. Ordersheet'!M493=\"\",\"\",'1. Ordersheet'!M493)","v":""},null,null,{"$f":"IF('1. Ordersheet'!AR493=\"\",\"\",'1. Ordersheet'!AR493)","v":""},{"$f":"IF('1. Ordersheet'!AE493=\"\",\"\",'1. Ordersheet'!AE493)","v":""}]
[{"$f":"IF('1. Ordersheet'!B494=\"\",\"\",'1. Ordersheet'!B494)","v":""},{"$f":"IF('1. Ordersheet'!I494=\"\",\"\",'1. Ordersheet'!I494)","v":""},{"$f":"IF('1. Ordersheet'!J494=\"\",\"\",'1. Ordersheet'!J494)","v":""},{"$f":"IF('1. Ordersheet'!K494=\"\",\"\",'1. Ordersheet'!K494)","v":""},{"$f":"IF('1. Ordersheet'!M494=\"\",\"\",'1. Ordersheet'!M494)","v":""},null,null,{"$f":"IF('1. Ordersheet'!AR494=\"\",\"\",'1. Ordersheet'!AR494)","v":""},{"$f":"IF('1. Ordersheet'!AE494=\"\",\"\",'1. Ordersheet'!AE494)","v":""}]
[{"$f":"IF('1. Ordersheet'!B495=\"\",\"\",'1. Ordersheet'!B495)","v":""},{"$f":"IF('1. Ordersheet'!I495=\"\",\"\",'1. Ordersheet'!I495)","v":""},{"$f":"IF('1. Ordersheet'!J495=\"\",\"\",'1. Ordersheet'!J495)","v":""},{"$f":"IF('1. Ordersheet'!K495=\"\",\"\",'1. Ordersheet'!K495)","v":""},{"$f":"IF('1. Ordersheet'!M495=\"\",\"\",'1. Ordersheet'!M495)","v":""},null,null,{"$f":"IF('1. Ordersheet'!AR495=\"\",\"\",'1. Ordersheet'!AR495)","v":""},{"$f":"IF('1. Ordersheet'!AE495=\"\",\"\",'1. Ordersheet'!AE495)","v":""}]
[{"$f":"IF('1. Ordersheet'!B496=\"\",\"\",'1. Ordersheet'!B496)","v":""},{"$f":"IF('1. Ordersheet'!I496=\"\",\"\",'1. Ordersheet'!I496)","v":""},{"$f":"IF('1. Ordersheet'!J496=\"\",\"\",'1. Ordersheet'!J496)","v":""},{"$f":"IF('1. Ordersheet'!K496=\"\",\"\",'1. Ordersheet'!K496)","v":""},{"$f":"IF('1. Ordersheet'!M496=\"\",\"\",'1. Ordersheet'!M496)","v":""},null,null,{"$f":"IF('1. Ordersheet'!AR496=\"\",\"\",'1. Ordersheet'!AR496)","v":""},{"$f":"IF('1. Ordersheet'!AE496=\"\",\"\",'1. Ordersheet'!AE496)","v":""}]
[{"$f":"IF('1. Ordersheet'!B497=\"\",\"\",'1. Ordersheet'!B497)","v":""},{"$f":"IF('1. Ordersheet'!I497=\"\",\"\",'1. Ordersheet'!I497)","v":""},{"$f":"IF('1. Ordersheet'!J497=\"\",\"\",'1. Ordersheet'!J497)","v":""},{"$f":"IF('1. Ordersheet'!K497=\"\",\"\",'1. Ordersheet'!K497)","v":""},{"$f":"IF('1. Ordersheet'!M497=\"\",\"\",'1. Ordersheet'!M497)","v":""},null,null,{"$f":"IF('1. Ordersheet'!AR497=\"\",\"\",'1. Ordersheet'!AR497)","v":""},{"$f":"IF('1. Ordersheet'!AE497=\"\",\"\",'1. Ordersheet'!AE497)","v":""}]
[{"$f":"IF('1. Ordersheet'!B498=\"\",\"\",'1. Ordersheet'!B498)","v":""},{"$f":"IF('1. Ordersheet'!I498=\"\",\"\",'1. Ordersheet'!I498)","v":""},{"$f":"IF('1. Ordersheet'!J498=\"\",\"\",'1. Ordersheet'!J498)","v":""},{"$f":"IF('1. Ordersheet'!K498=\"\",\"\",'1. Ordersheet'!K498)","v":""},{"$f":"IF('1. Ordersheet'!M498=\"\",\"\",'1. Ordersheet'!M498)","v":""},null,null,{"$f":"IF('1. Ordersheet'!AR498=\"\",\"\",'1. Ordersheet'!AR498)","v":""},{"$f":"IF('1. Ordersheet'!AE498=\"\",\"\",'1. Ordersheet'!AE498)","v":""}]
[{"$f":"IF('1. Ordersheet'!B499=\"\",\"\",'1. Ordersheet'!B499)","v":""},{"$f":"IF('1. Ordersheet'!I499=\"\",\"\",'1. Ordersheet'!I499)","v":""},{"$f":"IF('1. Ordersheet'!J499=\"\",\"\",'1. Ordersheet'!J499)","v":""},{"$f":"IF('1. Ordersheet'!K499=\"\",\"\",'1. Ordersheet'!K499)","v":""},{"$f":"IF('1. Ordersheet'!M499=\"\",\"\",'1. Ordersheet'!M499)","v":""},null,null,{"$f":"IF('1. Ordersheet'!AR499=\"\",\"\",'1. Ordersheet'!AR499)","v":""},{"$f":"IF('1. Ordersheet'!AE499=\"\",\"\",'1. Ordersheet'!AE499)","v":""}]
[{"$f":"IF('1. Ordersheet'!B500=\"\",\"\",'1. Ordersheet'!B500)","v":""},{"$f":"IF('1. Ordersheet'!I500=\"\",\"\",'1. Ordersheet'!I500)","v":""},{"$f":"IF('1. Ordersheet'!J500=\"\",\"\",'1. Ordersheet'!J500)","v":""},{"$f":"IF('1. Ordersheet'!K500=\"\",\"\",'1. Ordersheet'!K500)","v":""},{"$f":"IF('1. Ordersheet'!M500=\"\",\"\",'1. Ordersheet'!M500)","v":""},null,null,{"$f":"IF('1. Ordersheet'!AR500=\"\",\"\",'1. Ordersheet'!AR500)","v":""},{"$f":"IF('1. Ordersheet'!AE500=\"\",\"\",'1. Ordersheet'!AE500)","v":""}]
[{"$f":"IF('1. Ordersheet'!B501=\"\",\"\",'1. Ordersheet'!B501)","v":""},{"$f":"IF('1. Ordersheet'!I501=\"\",\"\",'1. Ordersheet'!I501)","v":""},{"$f":"IF('1. Ordersheet'!J501=\"\",\"\",'1. Ordersheet'!J501)","v":""},{"$f":"IF('1. Ordersheet'!K501=\"\",\"\",'1. Ordersheet'!K501)","v":""},{"$f":"IF('1. Ordersheet'!M501=\"\",\"\",'1. Ordersheet'!M501)","v":""},null,null,{"$f":"IF('1. Ordersheet'!AR501=\"\",\"\",'1. Ordersheet'!AR501)","v":""},{"$f":"IF('1. Ordersheet'!AE501=\"\",\"\",'1. Ordersheet'!AE501)","v":""}]
[{"$f":"IF('1. Ordersheet'!B502=\"\",\"\",'1. Ordersheet'!B502)","v":""},{"$f":"IF('1. Ordersheet'!I502=\"\",\"\",'1. Ordersheet'!I502)","v":""},{"$f":"IF('1. Ordersheet'!J502=\"\",\"\",'1. Ordersheet'!J502)","v":""},{"$f":"IF('1. Ordersheet'!K502=\"\",\"\",'1. Ordersheet'!K502)","v":""},{"$f":"IF('1. Ordersheet'!M502=\"\",\"\",'1. Ordersheet'!M502)","v":""},null,null,{"$f":"IF('1. Ordersheet'!AR502=\"\",\"\",'1. Ordersheet'!AR502)","v":""},{"$f":"IF('1. Ordersheet'!AE502=\"\",\"\",'1. Ordersheet'!AE502)","v":""}]
[{"$f":"IF('1. Ordersheet'!B503=\"\",\"\",'1. Ordersheet'!B503)","v":""},{"$f":"IF('1. Ordersheet'!I503=\"\",\"\",'1. Ordersheet'!I503)","v":""},{"$f":"IF('1. Ordersheet'!J503=\"\",\"\",'1. Ordersheet'!J503)","v":""},{"$f":"IF('1. Ordersheet'!K503=\"\",\"\",'1. Ordersheet'!K503)","v":""},{"$f":"IF('1. Ordersheet'!M503=\"\",\"\",'1. Ordersheet'!M503)","v":""},null,null,{"$f":"IF('1. Ordersheet'!AR503=\"\",\"\",'1. Ordersheet'!AR503)","v":""},{"$f":"IF('1. Ordersheet'!AE503=\"\",\"\",'1. Ordersheet'!AE503)","v":""}]
[{"$f":"IF('1. Ordersheet'!B504=\"\",\"\",'1. Ordersheet'!B504)","v":""},{"$f":"IF('1. Ordersheet'!I504=\"\",\"\",'1. Ordersheet'!I504)","v":""},{"$f":"IF('1. Ordersheet'!J504=\"\",\"\",'1. Ordersheet'!J504)","v":""},{"$f":"IF('1. Ordersheet'!K504=\"\",\"\",'1. Ordersheet'!K504)","v":""},{"$f":"IF('1. Ordersheet'!M504=\"\",\"\",'1. Ordersheet'!M504)","v":""},null,null,{"$f":"IF('1. Ordersheet'!AR504=\"\",\"\",'1. Ordersheet'!AR504)","v":""},{"$f":"IF('1. Ordersheet'!AE504=\"\",\"\",'1. Ordersheet'!AE504)","v":""}]
[{"$f":"IF('1. Ordersheet'!B505=\"\",\"\",'1. Ordersheet'!B505)","v":""},{"$f":"IF('1. Ordersheet'!I505=\"\",\"\",'1. Ordersheet'!I505)","v":""},{"$f":"IF('1. Ordersheet'!J505=\"\",\"\",'1. Ordersheet'!J505)","v":""},{"$f":"IF('1. Ordersheet'!K505=\"\",\"\",'1. Ordersheet'!K505)","v":""},{"$f":"IF('1. Ordersheet'!M505=\"\",\"\",'1. Ordersheet'!M505)","v":""},null,null,{"$f":"IF('1. Ordersheet'!AR505=\"\",\"\",'1. Ordersheet'!AR505)","v":""},{"$f":"IF('1. Ordersheet'!AE505=\"\",\"\",'1. Ordersheet'!AE505)","v":""}]
[{"$f":"IF('1. Ordersheet'!B506=\"\",\"\",'1. Ordersheet'!B506)","v":""},{"$f":"IF('1. Ordersheet'!I506=\"\",\"\",'1. Ordersheet'!I506)","v":""},{"$f":"IF('1. Ordersheet'!J506=\"\",\"\",'1. Ordersheet'!J506)","v":""},{"$f":"IF('1. Ordersheet'!K506=\"\",\"\",'1. Ordersheet'!K506)","v":""},{"$f":"IF('1. Ordersheet'!M506=\"\",\"\",'1. Ordersheet'!M506)","v":""},null,null,{"$f":"IF('1. Ordersheet'!AR506=\"\",\"\",'1. Ordersheet'!AR506)","v":""},{"$f":"IF('1. Ordersheet'!AE506=\"\",\"\",'1. Ordersheet'!AE506)","v":""}]
[{"$f":"IF('1. Ordersheet'!B507=\"\",\"\",'1. Ordersheet'!B507)","v":""},{"$f":"IF('1. Ordersheet'!I507=\"\",\"\",'1. Ordersheet'!I507)","v":""},{"$f":"IF('1. Ordersheet'!J507=\"\",\"\",'1. Ordersheet'!J507)","v":""},{"$f":"IF('1. Ordersheet'!K507=\"\",\"\",'1. Ordersheet'!K507)","v":""},{"$f":"IF('1. Ordersheet'!M507=\"\",\"\",'1. Ordersheet'!M507)","v":""},null,null,{"$f":"IF('1. Ordersheet'!AR507=\"\",\"\",'1. Ordersheet'!AR507)","v":""},{"$f":"IF('1. Ordersheet'!AE507=\"\",\"\",'1. Ordersheet'!AE507)","v":""}]
[{"$f":"IF('1. Ordersheet'!B508=\"\",\"\",'1. Ordersheet'!B508)","v":""},{"$f":"IF('1. Ordersheet'!I508=\"\",\"\",'1. Ordersheet'!I508)","v":""},{"$f":"IF('1. Ordersheet'!J508=\"\",\"\",'1. Ordersheet'!J508)","v":""},{"$f":"IF('1. Ordersheet'!K508=\"\",\"\",'1. Ordersheet'!K508)","v":""},{"$f":"IF('1. Ordersheet'!M508=\"\",\"\",'1. Ordersheet'!M508)","v":""},null,null,{"$f":"IF('1. Ordersheet'!AR508=\"\",\"\",'1. Ordersheet'!AR508)","v":""},{"$f":"IF('1. Ordersheet'!AE508=\"\",\"\",'1. Ordersheet'!AE508)","v":""}]
[{"$f":"IF('1. Ordersheet'!B509=\"\",\"\",'1. Ordersheet'!B509)","v":""},{"$f":"IF('1. Ordersheet'!I509=\"\",\"\",'1. Ordersheet'!I509)","v":""},{"$f":"IF('1. Ordersheet'!J509=\"\",\"\",'1. Ordersheet'!J509)","v":""},{"$f":"IF('1. Ordersheet'!K509=\"\",\"\",'1. Ordersheet'!K509)","v":""},{"$f":"IF('1. Ordersheet'!M509=\"\",\"\",'1. Ordersheet'!M509)","v":""},null,null,{"$f":"IF('1. Ordersheet'!AR509=\"\",\"\",'1. Ordersheet'!AR509)","v":""},{"$f":"IF('1. Ordersheet'!AE509=\"\",\"\",'1. Ordersheet'!AE509)","v":""}]
[{"$f":"IF('1. Ordersheet'!B510=\"\",\"\",'1. Ordersheet'!B510)","v":""},{"$f":"IF('1. Ordersheet'!I510=\"\",\"\",'1. Ordersheet'!I510)","v":""},{"$f":"IF('1. Ordersheet'!J510=\"\",\"\",'1. Ordersheet'!J510)","v":""},{"$f":"IF('1. Ordersheet'!K510=\"\",\"\",'1. Ordersheet'!K510)","v":""},{"$f":"IF('1. Ordersheet'!M510=\"\",\"\",'1. Ordersheet'!M510)","v":""},null,null,{"$f":"IF('1. Ordersheet'!AR510=\"\",\"\",'1. Ordersheet'!AR510)","v":""},{"$f":"IF('1. Ordersheet'!AE510=\"\",\"\",'1. Ordersheet'!AE510)","v":""}]
[{"$f":"IF('1. Ordersheet'!B511=\"\",\"\",'1. Ordersheet'!B511)","v":""},{"$f":"IF('1. Ordersheet'!I511=\"\",\"\",'1. Ordersheet'!I511)","v":""},{"$f":"IF('1. Ordersheet'!J511=\"\",\"\",'1. Ordersheet'!J511)","v":""},{"$f":"IF('1. Ordersheet'!K511=\"\",\"\",'1. Ordersheet'!K511)","v":""},{"$f":"IF('1. Ordersheet'!M511=\"\",\"\",'1. Ordersheet'!M511)","v":""},null,null,{"$f":"IF('1. Ordersheet'!AR511=\"\",\"\",'1. Ordersheet'!AR511)","v":""},{"$f":"IF('1. Ordersheet'!AE511=\"\",\"\",'1. Ordersheet'!AE511)","v":""}]
[{"$f":"IF('1. Ordersheet'!B512=\"\",\"\",'1. Ordersheet'!B512)","v":""},{"$f":"IF('1. Ordersheet'!I512=\"\",\"\",'1. Ordersheet'!I512)","v":""},{"$f":"IF('1. Ordersheet'!J512=\"\",\"\",'1. Ordersheet'!J512)","v":""},{"$f":"IF('1. Ordersheet'!K512=\"\",\"\",'1. Ordersheet'!K512)","v":""},{"$f":"IF('1. Ordersheet'!M512=\"\",\"\",'1. Ordersheet'!M512)","v":""},null,null,{"$f":"IF('1. Ordersheet'!AR512=\"\",\"\",'1. Ordersheet'!AR512)","v":""},{"$f":"IF('1. Ordersheet'!AE512=\"\",\"\",'1. Ordersheet'!AE512)","v":""}]
[{"$f":"IF('1. Ordersheet'!B513=\"\",\"\",'1. Ordersheet'!B513)","v":""},{"$f":"IF('1. Ordersheet'!I513=\"\",\"\",'1. Ordersheet'!I513)","v":""},{"$f":"IF('1. Ordersheet'!J513=\"\",\"\",'1. Ordersheet'!J513)","v":""},{"$f":"IF('1. Ordersheet'!K513=\"\",\"\",'1. Ordersheet'!K513)","v":""},{"$f":"IF('1. Ordersheet'!M513=\"\",\"\",'1. Ordersheet'!M513)","v":""},null,null,{"$f":"IF('1. Ordersheet'!AR513=\"\",\"\",'1. Ordersheet'!AR513)","v":""},{"$f":"IF('1. Ordersheet'!AE513=\"\",\"\",'1. Ordersheet'!AE513)","v":""}]
[{"$f":"IF('1. Ordersheet'!B514=\"\",\"\",'1. Ordersheet'!B514)","v":""},{"$f":"IF('1. Ordersheet'!I514=\"\",\"\",'1. Ordersheet'!I514)","v":""},{"$f":"IF('1. Ordersheet'!J514=\"\",\"\",'1. Ordersheet'!J514)","v":""},{"$f":"IF('1. Ordersheet'!K514=\"\",\"\",'1. Ordersheet'!K514)","v":""},{"$f":"IF('1. Ordersheet'!M514=\"\",\"\",'1. Ordersheet'!M514)","v":""},null,null,{"$f":"IF('1. Ordersheet'!AR514=\"\",\"\",'1. Ordersheet'!AR514)","v":""},{"$f":"IF('1. Ordersheet'!AE514=\"\",\"\",'1. Ordersheet'!AE514)","v":""}]
[{"$f":"IF('1. Ordersheet'!B515=\"\",\"\",'1. Ordersheet'!B515)","v":""},{"$f":"IF('1. Ordersheet'!I515=\"\",\"\",'1. Ordersheet'!I515)","v":""},{"$f":"IF('1. Ordersheet'!J515=\"\",\"\",'1. Ordersheet'!J515)","v":""},{"$f":"IF('1. Ordersheet'!K515=\"\",\"\",'1. Ordersheet'!K515)","v":""},{"$f":"IF('1. Ordersheet'!M515=\"\",\"\",'1. Ordersheet'!M515)","v":""},null,null,{"$f":"IF('1. Ordersheet'!AR515=\"\",\"\",'1. Ordersheet'!AR515)","v":""},{"$f":"IF('1. Ordersheet'!AE515=\"\",\"\",'1. Ordersheet'!AE515)","v":""}]
[{"$f":"IF('1. Ordersheet'!B516=\"\",\"\",'1. Ordersheet'!B516)","v":""},{"$f":"IF('1. Ordersheet'!I516=\"\",\"\",'1. Ordersheet'!I516)","v":""},{"$f":"IF('1. Ordersheet'!J516=\"\",\"\",'1. Ordersheet'!J516)","v":""},{"$f":"IF('1. Ordersheet'!K516=\"\",\"\",'1. Ordersheet'!K516)","v":""},{"$f":"IF('1. Ordersheet'!M516=\"\",\"\",'1. Ordersheet'!M516)","v":""},null,null,{"$f":"IF('1. Ordersheet'!AR516=\"\",\"\",'1. Ordersheet'!AR516)","v":""},{"$f":"IF('1. Ordersheet'!AE516=\"\",\"\",'1. Ordersheet'!AE516)","v":""}]
[{"$f":"IF('1. Ordersheet'!B517=\"\",\"\",'1. Ordersheet'!B517)","v":""},{"$f":"IF('1. Ordersheet'!I517=\"\",\"\",'1. Ordersheet'!I517)","v":""},{"$f":"IF('1. Ordersheet'!J517=\"\",\"\",'1. Ordersheet'!J517)","v":""},{"$f":"IF('1. Ordersheet'!K517=\"\",\"\",'1. Ordersheet'!K517)","v":""},{"$f":"IF('1. Ordersheet'!M517=\"\",\"\",'1. Ordersheet'!M517)","v":""},null,null,{"$f":"IF('1. Ordersheet'!AR517=\"\",\"\",'1. Ordersheet'!AR517)","v":""},{"$f":"IF('1. Ordersheet'!AE517=\"\",\"\",'1. Ordersheet'!AE517)","v":""}]
[{"$f":"IF('1. Ordersheet'!B518=\"\",\"\",'1. Ordersheet'!B518)","v":""},{"$f":"IF('1. Ordersheet'!I518=\"\",\"\",'1. Ordersheet'!I518)","v":""},{"$f":"IF('1. Ordersheet'!J518=\"\",\"\",'1. Ordersheet'!J518)","v":""},{"$f":"IF('1. Ordersheet'!K518=\"\",\"\",'1. Ordersheet'!K518)","v":""},{"$f":"IF('1. Ordersheet'!M518=\"\",\"\",'1. Ordersheet'!M518)","v":""},null,null,{"$f":"IF('1. Ordersheet'!AR518=\"\",\"\",'1. Ordersheet'!AR518)","v":""},{"$f":"IF('1. Ordersheet'!AE518=\"\",\"\",'1. Ordersheet'!AE518)","v":""}]
[{"$f":"IF('1. Ordersheet'!B519=\"\",\"\",'1. Ordersheet'!B519)","v":""},{"$f":"IF('1. Ordersheet'!I519=\"\",\"\",'1. Ordersheet'!I519)","v":""},{"$f":"IF('1. Ordersheet'!J519=\"\",\"\",'1. Ordersheet'!J519)","v":""},{"$f":"IF('1. Ordersheet'!K519=\"\",\"\",'1. Ordersheet'!K519)","v":""},{"$f":"IF('1. Ordersheet'!M519=\"\",\"\",'1. Ordersheet'!M519)","v":""},null,null,{"$f":"IF('1. Ordersheet'!AR519=\"\",\"\",'1. Ordersheet'!AR519)","v":""},{"$f":"IF('1. Ordersheet'!AE519=\"\",\"\",'1. Ordersheet'!AE519)","v":""}]
[{"$f":"IF('1. Ordersheet'!B520=\"\",\"\",'1. Ordersheet'!B520)","v":""},{"$f":"IF('1. Ordersheet'!I520=\"\",\"\",'1. Ordersheet'!I520)","v":""},{"$f":"IF('1. Ordersheet'!J520=\"\",\"\",'1. Ordersheet'!J520)","v":""},{"$f":"IF('1. Ordersheet'!K520=\"\",\"\",'1. Ordersheet'!K520)","v":""},{"$f":"IF('1. Ordersheet'!M520=\"\",\"\",'1. Ordersheet'!M520)","v":""},null,null,{"$f":"IF('1. Ordersheet'!AR520=\"\",\"\",'1. Ordersheet'!AR520)","v":""},{"$f":"IF('1. Ordersheet'!AE520=\"\",\"\",'1. Ordersheet'!AE520)","v":""}]
[{"$f":"IF('1. Ordersheet'!B521=\"\",\"\",'1. Ordersheet'!B521)","v":""},{"$f":"IF('1. Ordersheet'!I521=\"\",\"\",'1. Ordersheet'!I521)","v":""},{"$f":"IF('1. Ordersheet'!J521=\"\",\"\",'1. Ordersheet'!J521)","v":""},{"$f":"IF('1. Ordersheet'!K521=\"\",\"\",'1. Ordersheet'!K521)","v":""},{"$f":"IF('1. Ordersheet'!M521=\"\",\"\",'1. Ordersheet'!M521)","v":""},null,null,{"$f":"IF('1. Ordersheet'!AR521=\"\",\"\",'1. Ordersheet'!AR521)","v":""},{"$f":"IF('1. Ordersheet'!AE521=\"\",\"\",'1. Ordersheet'!AE521)","v":""}]
[{"$f":"IF('1. Ordersheet'!B522=\"\",\"\",'1. Ordersheet'!B522)","v":""},{"$f":"IF('1. Ordersheet'!I522=\"\",\"\",'1. Ordersheet'!I522)","v":""},{"$f":"IF('1. Ordersheet'!J522=\"\",\"\",'1. Ordersheet'!J522)","v":""},{"$f":"IF('1. Ordersheet'!K522=\"\",\"\",'1. Ordersheet'!K522)","v":""},{"$f":"IF('1. Ordersheet'!M522=\"\",\"\",'1. Ordersheet'!M522)","v":""},null,null,{"$f":"IF('1. Ordersheet'!AR522=\"\",\"\",'1. Ordersheet'!AR522)","v":""},{"$f":"IF('1. Ordersheet'!AE522=\"\",\"\",'1. Ordersheet'!AE522)","v":""}]
[{"$f":"IF('1. Ordersheet'!B523=\"\",\"\",'1. Ordersheet'!B523)","v":""},{"$f":"IF('1. Ordersheet'!I523=\"\",\"\",'1. Ordersheet'!I523)","v":""},{"$f":"IF('1. Ordersheet'!J523=\"\",\"\",'1. Ordersheet'!J523)","v":""},{"$f":"IF('1. Ordersheet'!K523=\"\",\"\",'1. Ordersheet'!K523)","v":""},{"$f":"IF('1. Ordersheet'!M523=\"\",\"\",'1. Ordersheet'!M523)","v":""},null,null,{"$f":"IF('1. Ordersheet'!AR523=\"\",\"\",'1. Ordersheet'!AR523)","v":""},{"$f":"IF('1. Ordersheet'!AE523=\"\",\"\",'1. Ordersheet'!AE523)","v":""}]
[{"$f":"IF('1. Ordersheet'!B524=\"\",\"\",'1. Ordersheet'!B524)","v":""},{"$f":"IF('1. Ordersheet'!I524=\"\",\"\",'1. Ordersheet'!I524)","v":""},{"$f":"IF('1. Ordersheet'!J524=\"\",\"\",'1. Ordersheet'!J524)","v":""},{"$f":"IF('1. Ordersheet'!K524=\"\",\"\",'1. Ordersheet'!K524)","v":""},{"$f":"IF('1. Ordersheet'!M524=\"\",\"\",'1. Ordersheet'!M524)","v":""},null,null,{"$f":"IF('1. Ordersheet'!AR524=\"\",\"\",'1. Ordersheet'!AR524)","v":""},{"$f":"IF('1. Ordersheet'!AE524=\"\",\"\",'1. Ordersheet'!AE524)","v":""}]
[{"$f":"IF('1. Ordersheet'!B525=\"\",\"\",'1. Ordersheet'!B525)","v":""},{"$f":"IF('1. Ordersheet'!I525=\"\",\"\",'1. Ordersheet'!I525)","v":""},{"$f":"IF('1. Ordersheet'!J525=\"\",\"\",'1. Ordersheet'!J525)","v":""},{"$f":"IF('1. Ordersheet'!K525=\"\",\"\",'1. Ordersheet'!K525)","v":""},{"$f":"IF('1. Ordersheet'!M525=\"\",\"\",'1. Ordersheet'!M525)","v":""},null,null,{"$f":"IF('1. Ordersheet'!AR525=\"\",\"\",'1. Ordersheet'!AR525)","v":""},{"$f":"IF('1. Ordersheet'!AE525=\"\",\"\",'1. Ordersheet'!AE525)","v":""}]
[{"$f":"IF('1. Ordersheet'!B526=\"\",\"\",'1. Ordersheet'!B526)","v":""},{"$f":"IF('1. Ordersheet'!I526=\"\",\"\",'1. Ordersheet'!I526)","v":""},{"$f":"IF('1. Ordersheet'!J526=\"\",\"\",'1. Ordersheet'!J526)","v":""},{"$f":"IF('1. Ordersheet'!K526=\"\",\"\",'1. Ordersheet'!K526)","v":""},{"$f":"IF('1. Ordersheet'!M526=\"\",\"\",'1. Ordersheet'!M526)","v":""},null,null,{"$f":"IF('1. Ordersheet'!AR526=\"\",\"\",'1. Ordersheet'!AR526)","v":""},{"$f":"IF('1. Ordersheet'!AE526=\"\",\"\",'1. Ordersheet'!AE526)","v":""}]
[{"$f":"IF('1. Ordersheet'!B527=\"\",\"\",'1. Ordersheet'!B527)","v":""},{"$f":"IF('1. Ordersheet'!I527=\"\",\"\",'1. Ordersheet'!I527)","v":""},{"$f":"IF('1. Ordersheet'!J527=\"\",\"\",'1. Ordersheet'!J527)","v":""},{"$f":"IF('1. Ordersheet'!K527=\"\",\"\",'1. Ordersheet'!K527)","v":""},{"$f":"IF('1. Ordersheet'!M527=\"\",\"\",'1. Ordersheet'!M527)","v":""},null,null,{"$f":"IF('1. Ordersheet'!AR527=\"\",\"\",'1. Ordersheet'!AR527)","v":""},{"$f":"IF('1. Ordersheet'!AE527=\"\",\"\",'1. Ordersheet'!AE527)","v":""}]
[{"$f":"IF('1. Ordersheet'!B528=\"\",\"\",'1. Ordersheet'!B528)","v":""},{"$f":"IF('1. Ordersheet'!I528=\"\",\"\",'1. Ordersheet'!I528)","v":""},{"$f":"IF('1. Ordersheet'!J528=\"\",\"\",'1. Ordersheet'!J528)","v":""},{"$f":"IF('1. Ordersheet'!K528=\"\",\"\",'1. Ordersheet'!K528)","v":""},{"$f":"IF('1. Ordersheet'!M528=\"\",\"\",'1. Ordersheet'!M528)","v":""},null,null,{"$f":"IF('1. Ordersheet'!AR528=\"\",\"\",'1. Ordersheet'!AR528)","v":""},{"$f":"IF('1. Ordersheet'!AE528=\"\",\"\",'1. Ordersheet'!AE528)","v":""}]
[{"$f":"IF('1. Ordersheet'!B529=\"\",\"\",'1. Ordersheet'!B529)","v":""},{"$f":"IF('1. Ordersheet'!I529=\"\",\"\",'1. Ordersheet'!I529)","v":""},{"$f":"IF('1. Ordersheet'!J529=\"\",\"\",'1. Ordersheet'!J529)","v":""},{"$f":"IF('1. Ordersheet'!K529=\"\",\"\",'1. Ordersheet'!K529)","v":""},{"$f":"IF('1. Ordersheet'!M529=\"\",\"\",'1. Ordersheet'!M529)","v":""},null,null,{"$f":"IF('1. Ordersheet'!AR529=\"\",\"\",'1. Ordersheet'!AR529)","v":""},{"$f":"IF('1. Ordersheet'!AE529=\"\",\"\",'1. Ordersheet'!AE529)","v":""}]
[{"$f":"IF('1. Ordersheet'!B530=\"\",\"\",'1. Ordersheet'!B530)","v":""},{"$f":"IF('1. Ordersheet'!I530=\"\",\"\",'1. Ordersheet'!I530)","v":""},{"$f":"IF('1. Ordersheet'!J530=\"\",\"\",'1. Ordersheet'!J530)","v":""},{"$f":"IF('1. Ordersheet'!K530=\"\",\"\",'1. Ordersheet'!K530)","v":""},{"$f":"IF('1. Ordersheet'!M530=\"\",\"\",'1. Ordersheet'!M530)","v":""},null,null,{"$f":"IF('1. Ordersheet'!AR530=\"\",\"\",'1. Ordersheet'!AR530)","v":""},{"$f":"IF('1. Ordersheet'!AE530=\"\",\"\",'1. Ordersheet'!AE530)","v":""}]
[{"$f":"IF('1. Ordersheet'!B531=\"\",\"\",'1. Ordersheet'!B531)","v":""},{"$f":"IF('1. Ordersheet'!I531=\"\",\"\",'1. Ordersheet'!I531)","v":""},{"$f":"IF('1. Ordersheet'!J531=\"\",\"\",'1. Ordersheet'!J531)","v":""},{"$f":"IF('1. Ordersheet'!K531=\"\",\"\",'1. Ordersheet'!K531)","v":""},{"$f":"IF('1. Ordersheet'!M531=\"\",\"\",'1. Ordersheet'!M531)","v":""},null,null,{"$f":"IF('1. Ordersheet'!AR531=\"\",\"\",'1. Ordersheet'!AR531)","v":""},{"$f":"IF('1. Ordersheet'!AE531=\"\",\"\",'1. Ordersheet'!AE531)","v":""}]
[{"$f":"IF('1. Ordersheet'!B532=\"\",\"\",'1. Ordersheet'!B532)","v":""},{"$f":"IF('1. Ordersheet'!I532=\"\",\"\",'1. Ordersheet'!I532)","v":""},{"$f":"IF('1. Ordersheet'!J532=\"\",\"\",'1. Ordersheet'!J532)","v":""},{"$f":"IF('1. Ordersheet'!K532=\"\",\"\",'1. Ordersheet'!K532)","v":""},{"$f":"IF('1. Ordersheet'!M532=\"\",\"\",'1. Ordersheet'!M532)","v":""},null,null,{"$f":"IF('1. Ordersheet'!AR532=\"\",\"\",'1. Ordersheet'!AR532)","v":""},{"$f":"IF('1. Ordersheet'!AE532=\"\",\"\",'1. Ordersheet'!AE532)","v":""}]
[{"$f":"IF('1. Ordersheet'!B533=\"\",\"\",'1. Ordersheet'!B533)","v":""},{"$f":"IF('1. Ordersheet'!I533=\"\",\"\",'1. Ordersheet'!I533)","v":""},{"$f":"IF('1. Ordersheet'!J533=\"\",\"\",'1. Ordersheet'!J533)","v":""},{"$f":"IF('1. Ordersheet'!K533=\"\",\"\",'1. Ordersheet'!K533)","v":""},{"$f":"IF('1. Ordersheet'!M533=\"\",\"\",'1. Ordersheet'!M533)","v":""},null,null,{"$f":"IF('1. Ordersheet'!AR533=\"\",\"\",'1. Ordersheet'!AR533)","v":""},{"$f":"IF('1. Ordersheet'!AE533=\"\",\"\",'1. Ordersheet'!AE533)","v":""}]
[{"$f":"IF('1. Ordersheet'!B534=\"\",\"\",'1. Ordersheet'!B534)","v":""},{"$f":"IF('1. Ordersheet'!I534=\"\",\"\",'1. Ordersheet'!I534)","v":""},{"$f":"IF('1. Ordersheet'!J534=\"\",\"\",'1. Ordersheet'!J534)","v":""},{"$f":"IF('1. Ordersheet'!K534=\"\",\"\",'1. Ordersheet'!K534)","v":""},{"$f":"IF('1. Ordersheet'!M534=\"\",\"\",'1. Ordersheet'!M534)","v":""},null,null,{"$f":"IF('1. Ordersheet'!AR534=\"\",\"\",'1. Ordersheet'!AR534)","v":""},{"$f":"IF('1. Ordersheet'!AE534=\"\",\"\",'1. Ordersheet'!AE534)","v":""}]
[{"$f":"IF('1. Ordersheet'!B535=\"\",\"\",'1. Ordersheet'!B535)","v":""},{"$f":"IF('1. Ordersheet'!I535=\"\",\"\",'1. Ordersheet'!I535)","v":""},{"$f":"IF('1. Ordersheet'!J535=\"\",\"\",'1. Ordersheet'!J535)","v":""},{"$f":"IF('1. Ordersheet'!K535=\"\",\"\",'1. Ordersheet'!K535)","v":""},{"$f":"IF('1. Ordersheet'!M535=\"\",\"\",'1. Ordersheet'!M535)","v":""},null,null,{"$f":"IF('1. Ordersheet'!AR535=\"\",\"\",'1. Ordersheet'!AR535)","v":""},{"$f":"IF('1. Ordersheet'!AE535=\"\",\"\",'1. Ordersheet'!AE535)","v":""}]
[{"$f":"IF('1. Ordersheet'!B536=\"\",\"\",'1. Ordersheet'!B536)","v":""},{"$f":"IF('1. Ordersheet'!I536=\"\",\"\",'1. Ordersheet'!I536)","v":""},{"$f":"IF('1. Ordersheet'!J536=\"\",\"\",'1. Ordersheet'!J536)","v":""},{"$f":"IF('1. Ordersheet'!K536=\"\",\"\",'1. Ordersheet'!K536)","v":""},{"$f":"IF('1. Ordersheet'!M536=\"\",\"\",'1. Ordersheet'!M536)","v":""},null,null,{"$f":"IF('1. Ordersheet'!AR536=\"\",\"\",'1. Ordersheet'!AR536)","v":""},{"$f":"IF('1. Ordersheet'!AE536=\"\",\"\",'1. Ordersheet'!AE536)","v":""}]
[{"$f":"IF('1. Ordersheet'!B537=\"\",\"\",'1. Ordersheet'!B537)","v":""},{"$f":"IF('1. Ordersheet'!I537=\"\",\"\",'1. Ordersheet'!I537)","v":""},{"$f":"IF('1. Ordersheet'!J537=\"\",\"\",'1. Ordersheet'!J537)","v":""},{"$f":"IF('1. Ordersheet'!K537=\"\",\"\",'1. Ordersheet'!K537)","v":""},{"$f":"IF('1. Ordersheet'!M537=\"\",\"\",'1. Ordersheet'!M537)","v":""},null,null,{"$f":"IF('1. Ordersheet'!AR537=\"\",\"\",'1. Ordersheet'!AR537)","v":""},{"$f":"IF('1. Ordersheet'!AE537=\"\",\"\",'1. Ordersheet'!AE537)","v":""}]
[{"$f":"IF('1. Ordersheet'!B538=\"\",\"\",'1. Ordersheet'!B538)","v":""},{"$f":"IF('1. Ordersheet'!I538=\"\",\"\",'1. Ordersheet'!I538)","v":""},{"$f":"IF('1. Ordersheet'!J538=\"\",\"\",'1. Ordersheet'!J538)","v":""},{"$f":"IF('1. Ordersheet'!K538=\"\",\"\",'1. Ordersheet'!K538)","v":""},{"$f":"IF('1. Ordersheet'!M538=\"\",\"\",'1. Ordersheet'!M538)","v":""},null,null,{"$f":"IF('1. Ordersheet'!AR538=\"\",\"\",'1. Ordersheet'!AR538)","v":""},{"$f":"IF('1. Ordersheet'!AE538=\"\",\"\",'1. Ordersheet'!AE538)","v":""}]
[{"$f":"IF('1. Ordersheet'!B539=\"\",\"\",'1. Ordersheet'!B539)","v":""},{"$f":"IF('1. Ordersheet'!I539=\"\",\"\",'1. Ordersheet'!I539)","v":""},{"$f":"IF('1. Ordersheet'!J539=\"\",\"\",'1. Ordersheet'!J539)","v":""},{"$f":"IF('1. Ordersheet'!K539=\"\",\"\",'1. Ordersheet'!K539)","v":""},{"$f":"IF('1. Ordersheet'!M539=\"\",\"\",'1. Ordersheet'!M539)","v":""},null,null,{"$f":"IF('1. Ordersheet'!AR539=\"\",\"\",'1. Ordersheet'!AR539)","v":""},{"$f":"IF('1. Ordersheet'!AE539=\"\",\"\",'1. Ordersheet'!AE539)","v":""}]
[{"$f":"IF('1. Ordersheet'!B540=\"\",\"\",'1. Ordersheet'!B540)","v":""},{"$f":"IF('1. Ordersheet'!I540=\"\",\"\",'1. Ordersheet'!I540)","v":""},{"$f":"IF('1. Ordersheet'!J540=\"\",\"\",'1. Ordersheet'!J540)","v":""},{"$f":"IF('1. Ordersheet'!K540=\"\",\"\",'1. Ordersheet'!K540)","v":""},{"$f":"IF('1. Ordersheet'!M540=\"\",\"\",'1. Ordersheet'!M540)","v":""},null,null,{"$f":"IF('1. Ordersheet'!AR540=\"\",\"\",'1. Ordersheet'!AR540)","v":""},{"$f":"IF('1. Ordersheet'!AE540=\"\",\"\",'1. Ordersheet'!AE540)","v":""}]
[{"$f":"IF('1. Ordersheet'!B541=\"\",\"\",'1. Ordersheet'!B541)","v":""},{"$f":"IF('1. Ordersheet'!I541=\"\",\"\",'1. Ordersheet'!I541)","v":""},{"$f":"IF('1. Ordersheet'!J541=\"\",\"\",'1. Ordersheet'!J541)","v":""},{"$f":"IF('1. Ordersheet'!K541=\"\",\"\",'1. Ordersheet'!K541)","v":""},{"$f":"IF('1. Ordersheet'!M541=\"\",\"\",'1. Ordersheet'!M541)","v":""},null,null,{"$f":"IF('1. Ordersheet'!AR541=\"\",\"\",'1. Ordersheet'!AR541)","v":""},{"$f":"IF('1. Ordersheet'!AE541=\"\",\"\",'1. Ordersheet'!AE541)","v":""}]
[{"$f":"IF('1. Ordersheet'!B542=\"\",\"\",'1. Ordersheet'!B542)","v":""},{"$f":"IF('1. Ordersheet'!I542=\"\",\"\",'1. Ordersheet'!I542)","v":""},{"$f":"IF('1. Ordersheet'!J542=\"\",\"\",'1. Ordersheet'!J542)","v":""},{"$f":"IF('1. Ordersheet'!K542=\"\",\"\",'1. Ordersheet'!K542)","v":""},{"$f":"IF('1. Ordersheet'!M542=\"\",\"\",'1. Ordersheet'!M542)","v":""},null,null,{"$f":"IF('1. Ordersheet'!AR542=\"\",\"\",'1. Ordersheet'!AR542)","v":""},{"$f":"IF('1. Ordersheet'!AE542=\"\",\"\",'1. Ordersheet'!AE542)","v":""}]
[{"$f":"IF('1. Ordersheet'!B543=\"\",\"\",'1. Ordersheet'!B543)","v":""},{"$f":"IF('1. Ordersheet'!I543=\"\",\"\",'1. Ordersheet'!I543)","v":""},{"$f":"IF('1. Ordersheet'!J543=\"\",\"\",'1. Ordersheet'!J543)","v":""},{"$f":"IF('1. Ordersheet'!K543=\"\",\"\",'1. Ordersheet'!K543)","v":""},{"$f":"IF('1. Ordersheet'!M543=\"\",\"\",'1. Ordersheet'!M543)","v":""},null,null,{"$f":"IF('1. Ordersheet'!AR543=\"\",\"\",'1. Ordersheet'!AR543)","v":""},{"$f":"IF('1. Ordersheet'!AE543=\"\",\"\",'1. Ordersheet'!AE543)","v":""}]
[{"$f":"IF('1. Ordersheet'!B544=\"\",\"\",'1. Ordersheet'!B544)","v":""},{"$f":"IF('1. Ordersheet'!I544=\"\",\"\",'1. Ordersheet'!I544)","v":""},{"$f":"IF('1. Ordersheet'!J544=\"\",\"\",'1. Ordersheet'!J544)","v":""},{"$f":"IF('1. Ordersheet'!K544=\"\",\"\",'1. Ordersheet'!K544)","v":""},{"$f":"IF('1. Ordersheet'!M544=\"\",\"\",'1. Ordersheet'!M544)","v":""},null,null,{"$f":"IF('1. Ordersheet'!AR544=\"\",\"\",'1. Ordersheet'!AR544)","v":""},{"$f":"IF('1. Ordersheet'!AE544=\"\",\"\",'1. Ordersheet'!AE544)","v":""}]
[{"$f":"IF('1. Ordersheet'!B545=\"\",\"\",'1. Ordersheet'!B545)","v":""},{"$f":"IF('1. Ordersheet'!I545=\"\",\"\",'1. Ordersheet'!I545)","v":""},{"$f":"IF('1. Ordersheet'!J545=\"\",\"\",'1. Ordersheet'!J545)","v":""},{"$f":"IF('1. Ordersheet'!K545=\"\",\"\",'1. Ordersheet'!K545)","v":""},{"$f":"IF('1. Ordersheet'!M545=\"\",\"\",'1. Ordersheet'!M545)","v":""},null,null,{"$f":"IF('1. Ordersheet'!AR545=\"\",\"\",'1. Ordersheet'!AR545)","v":""},{"$f":"IF('1. Ordersheet'!AE545=\"\",\"\",'1. Ordersheet'!AE545)","v":""}]
[{"$f":"IF('1. Ordersheet'!B546=\"\",\"\",'1. Ordersheet'!B546)","v":""},{"$f":"IF('1. Ordersheet'!I546=\"\",\"\",'1. Ordersheet'!I546)","v":""},{"$f":"IF('1. Ordersheet'!J546=\"\",\"\",'1. Ordersheet'!J546)","v":""},{"$f":"IF('1. Ordersheet'!K546=\"\",\"\",'1. Ordersheet'!K546)","v":""},{"$f":"IF('1. Ordersheet'!M546=\"\",\"\",'1. Ordersheet'!M546)","v":""},null,null,{"$f":"IF('1. Ordersheet'!AR546=\"\",\"\",'1. Ordersheet'!AR546)","v":""},{"$f":"IF('1. Ordersheet'!AE546=\"\",\"\",'1. Ordersheet'!AE546)","v":""}]
[{"$f":"IF('1. Ordersheet'!B547=\"\",\"\",'1. Ordersheet'!B547)","v":""},{"$f":"IF('1. Ordersheet'!I547=\"\",\"\",'1. Ordersheet'!I547)","v":""},{"$f":"IF('1. Ordersheet'!J547=\"\",\"\",'1. Ordersheet'!J547)","v":""},{"$f":"IF('1. Ordersheet'!K547=\"\",\"\",'1. Ordersheet'!K547)","v":""},{"$f":"IF('1. Ordersheet'!M547=\"\",\"\",'1. Ordersheet'!M547)","v":""},null,null,{"$f":"IF('1. Ordersheet'!AR547=\"\",\"\",'1. Ordersheet'!AR547)","v":""},{"$f":"IF('1. Ordersheet'!AE547=\"\",\"\",'1. Ordersheet'!AE547)","v":""}]
[{"$f":"IF('1. Ordersheet'!B548=\"\",\"\",'1. Ordersheet'!B548)","v":""},{"$f":"IF('1. Ordersheet'!I548=\"\",\"\",'1. Ordersheet'!I548)","v":""},{"$f":"IF('1. Ordersheet'!J548=\"\",\"\",'1. Ordersheet'!J548)","v":""},{"$f":"IF('1. Ordersheet'!K548=\"\",\"\",'1. Ordersheet'!K548)","v":""},{"$f":"IF('1. Ordersheet'!M548=\"\",\"\",'1. Ordersheet'!M548)","v":""},null,null,{"$f":"IF('1. Ordersheet'!AR548=\"\",\"\",'1. Ordersheet'!AR548)","v":""},{"$f":"IF('1. Ordersheet'!AE548=\"\",\"\",'1. Ordersheet'!AE548)","v":""}]
[{"$f":"IF('1. Ordersheet'!B549=\"\",\"\",'1. Ordersheet'!B549)","v":""},{"$f":"IF('1. Ordersheet'!I549=\"\",\"\",'1. Ordersheet'!I549)","v":""},{"$f":"IF('1. Ordersheet'!J549=\"\",\"\",'1. Ordersheet'!J549)","v":""},{"$f":"IF('1. Ordersheet'!K549=\"\",\"\",'1. Ordersheet'!K549)","v":""},{"$f":"IF('1. Ordersheet'!M549=\"\",\"\",'1. Ordersheet'!M549)","v":""},null,null,{"$f":"IF('1. Ordersheet'!AR549=\"\",\"\",'1. Ordersheet'!AR549)","v":""},{"$f":"IF('1. Ordersheet'!AE549=\"\",\"\",'1. Ordersheet'!AE549)","v":""}]
[{"$f":"IF('1. Ordersheet'!B550=\"\",\"\",'1. Ordersheet'!B550)","v":""},{"$f":"IF('1. Ordersheet'!I550=\"\",\"\",'1. Ordersheet'!I550)","v":""},{"$f":"IF('1. Ordersheet'!J550=\"\",\"\",'1. Ordersheet'!J550)","v":""},{"$f":"IF('1. Ordersheet'!K550=\"\",\"\",'1. Ordersheet'!K550)","v":""},{"$f":"IF('1. Ordersheet'!M550=\"\",\"\",'1. Ordersheet'!M550)","v":""},null,null,{"$f":"IF('1. Ordersheet'!AR550=\"\",\"\",'1. Ordersheet'!AR550)","v":""},{"$f":"IF('1. Ordersheet'!AE550=\"\",\"\",'1. Ordersheet'!AE550)","v":""}]
[{"$f":"IF('1. Ordersheet'!B551=\"\",\"\",'1. Ordersheet'!B551)","v":""},{"$f":"IF('1. Ordersheet'!I551=\"\",\"\",'1. Ordersheet'!I551)","v":""},{"$f":"IF('1. Ordersheet'!J551=\"\",\"\",'1. Ordersheet'!J551)","v":""},{"$f":"IF('1. Ordersheet'!K551=\"\",\"\",'1. Ordersheet'!K551)","v":""},{"$f":"IF('1. Ordersheet'!M551=\"\",\"\",'1. Ordersheet'!M551)","v":""},null,null,{"$f":"IF('1. Ordersheet'!AR551=\"\",\"\",'1. Ordersheet'!AR551)","v":""},{"$f":"IF('1. Ordersheet'!AE551=\"\",\"\",'1. Ordersheet'!AE551)","v":""}]
[{"$f":"IF('1. Ordersheet'!B552=\"\",\"\",'1. Ordersheet'!B552)","v":""},{"$f":"IF('1. Ordersheet'!I552=\"\",\"\",'1. Ordersheet'!I552)","v":""},{"$f":"IF('1. Ordersheet'!J552=\"\",\"\",'1. Ordersheet'!J552)","v":""},{"$f":"IF('1. Ordersheet'!K552=\"\",\"\",'1. Ordersheet'!K552)","v":""},{"$f":"IF('1. Ordersheet'!M552=\"\",\"\",'1. Ordersheet'!M552)","v":""},null,null,{"$f":"IF('1. Ordersheet'!AR552=\"\",\"\",'1. Ordersheet'!AR552)","v":""},{"$f":"IF('1. Ordersheet'!AE552=\"\",\"\",'1. Ordersheet'!AE552)","v":""}]
[{"$f":"IF('1. Ordersheet'!B553=\"\",\"\",'1. Ordersheet'!B553)","v":""},{"$f":"IF('1. Ordersheet'!I553=\"\",\"\",'1. Ordersheet'!I553)","v":""},{"$f":"IF('1. Ordersheet'!J553=\"\",\"\",'1. Ordersheet'!J553)","v":""},{"$f":"IF('1. Ordersheet'!K553=\"\",\"\",'1. Ordersheet'!K553)","v":""},{"$f":"IF('1. Ordersheet'!M553=\"\",\"\",'1. Ordersheet'!M553)","v":""},null,null,{"$f":"IF('1. Ordersheet'!AR553=\"\",\"\",'1. Ordersheet'!AR553)","v":""},{"$f":"IF('1. Ordersheet'!AE553=\"\",\"\",'1. Ordersheet'!AE553)","v":""}]
[{"$f":"IF('1. Ordersheet'!B554=\"\",\"\",'1. Ordersheet'!B554)","v":""},{"$f":"IF('1. Ordersheet'!I554=\"\",\"\",'1. Ordersheet'!I554)","v":""},{"$f":"IF('1. Ordersheet'!J554=\"\",\"\",'1. Ordersheet'!J554)","v":""},{"$f":"IF('1. Ordersheet'!K554=\"\",\"\",'1. Ordersheet'!K554)","v":""},{"$f":"IF('1. Ordersheet'!M554=\"\",\"\",'1. Ordersheet'!M554)","v":""},null,null,{"$f":"IF('1. Ordersheet'!AR554=\"\",\"\",'1. Ordersheet'!AR554)","v":""},{"$f":"IF('1. Ordersheet'!AE554=\"\",\"\",'1. Ordersheet'!AE554)","v":""}]
[{"$f":"IF('1. Ordersheet'!B555=\"\",\"\",'1. Ordersheet'!B555)","v":""},{"$f":"IF('1. Ordersheet'!I555=\"\",\"\",'1. Ordersheet'!I555)","v":""},{"$f":"IF('1. Ordersheet'!J555=\"\",\"\",'1. Ordersheet'!J555)","v":""},{"$f":"IF('1. Ordersheet'!K555=\"\",\"\",'1. Ordersheet'!K555)","v":""},{"$f":"IF('1. Ordersheet'!M555=\"\",\"\",'1. Ordersheet'!M555)","v":""},null,null,{"$f":"IF('1. Ordersheet'!AR555=\"\",\"\",'1. Ordersheet'!AR555)","v":""},{"$f":"IF('1. Ordersheet'!AE555=\"\",\"\",'1. Ordersheet'!AE555)","v":""}]
[{"$f":"IF('1. Ordersheet'!B556=\"\",\"\",'1. Ordersheet'!B556)","v":""},{"$f":"IF('1. Ordersheet'!I556=\"\",\"\",'1. Ordersheet'!I556)","v":""},{"$f":"IF('1. Ordersheet'!J556=\"\",\"\",'1. Ordersheet'!J556)","v":""},{"$f":"IF('1. Ordersheet'!K556=\"\",\"\",'1. Ordersheet'!K556)","v":""},{"$f":"IF('1. Ordersheet'!M556=\"\",\"\",'1. Ordersheet'!M556)","v":""},null,null,{"$f":"IF('1. Ordersheet'!AR556=\"\",\"\",'1. Ordersheet'!AR556)","v":""},{"$f":"IF('1. Ordersheet'!AE556=\"\",\"\",'1. Ordersheet'!AE556)","v":""}]
[{"$f":"IF('1. Ordersheet'!B557=\"\",\"\",'1. Ordersheet'!B557)","v":""},{"$f":"IF('1. Ordersheet'!I557=\"\",\"\",'1. Ordersheet'!I557)","v":""},{"$f":"IF('1. Ordersheet'!J557=\"\",\"\",'1. Ordersheet'!J557)","v":""},{"$f":"IF('1. Ordersheet'!K557=\"\",\"\",'1. Ordersheet'!K557)","v":""},{"$f":"IF('1. Ordersheet'!M557=\"\",\"\",'1. Ordersheet'!M557)","v":""},null,null,{"$f":"IF('1. Ordersheet'!AR557=\"\",\"\",'1. Ordersheet'!AR557)","v":""},{"$f":"IF('1. Ordersheet'!AE557=\"\",\"\",'1. Ordersheet'!AE557)","v":""}]
[{"$f":"IF('1. Ordersheet'!B558=\"\",\"\",'1. Ordersheet'!B558)","v":""},{"$f":"IF('1. Ordersheet'!I558=\"\",\"\",'1. Ordersheet'!I558)","v":""},{"$f":"IF('1. Ordersheet'!J558=\"\",\"\",'1. Ordersheet'!J558)","v":""},{"$f":"IF('1. Ordersheet'!K558=\"\",\"\",'1. Ordersheet'!K558)","v":""},{"$f":"IF('1. Ordersheet'!M558=\"\",\"\",'1. Ordersheet'!M558)","v":""},null,null,{"$f":"IF('1. Ordersheet'!AR558=\"\",\"\",'1. Ordersheet'!AR558)","v":""},{"$f":"IF('1. Ordersheet'!AE558=\"\",\"\",'1. Ordersheet'!AE558)","v":""}]
[{"$f":"IF('1. Ordersheet'!B559=\"\",\"\",'1. Ordersheet'!B559)","v":""},{"$f":"IF('1. Ordersheet'!I559=\"\",\"\",'1. Ordersheet'!I559)","v":""},{"$f":"IF('1. Ordersheet'!J559=\"\",\"\",'1. Ordersheet'!J559)","v":""},{"$f":"IF('1. Ordersheet'!K559=\"\",\"\",'1. Ordersheet'!K559)","v":""},{"$f":"IF('1. Ordersheet'!M559=\"\",\"\",'1. Ordersheet'!M559)","v":""},null,null,{"$f":"IF('1. Ordersheet'!AR559=\"\",\"\",'1. Ordersheet'!AR559)","v":""},{"$f":"IF('1. Ordersheet'!AE559=\"\",\"\",'1. Ordersheet'!AE559)","v":""}]
[{"$f":"IF('1. Ordersheet'!B560=\"\",\"\",'1. Ordersheet'!B560)","v":""},{"$f":"IF('1. Ordersheet'!I560=\"\",\"\",'1. Ordersheet'!I560)","v":""},{"$f":"IF('1. Ordersheet'!J560=\"\",\"\",'1. Ordersheet'!J560)","v":""},{"$f":"IF('1. Ordersheet'!K560=\"\",\"\",'1. Ordersheet'!K560)","v":""},{"$f":"IF('1. Ordersheet'!M560=\"\",\"\",'1. Ordersheet'!M560)","v":""},null,null,{"$f":"IF('1. Ordersheet'!AR560=\"\",\"\",'1. Ordersheet'!AR560)","v":""},{"$f":"IF('1. Ordersheet'!AE560=\"\",\"\",'1. Ordersheet'!AE560)","v":""}]
[{"$f":"IF('1. Ordersheet'!B561=\"\",\"\",'1. Ordersheet'!B561)","v":""},{"$f":"IF('1. Ordersheet'!I561=\"\",\"\",'1. Ordersheet'!I561)","v":""},{"$f":"IF('1. Ordersheet'!J561=\"\",\"\",'1. Ordersheet'!J561)","v":""},{"$f":"IF('1. Ordersheet'!K561=\"\",\"\",'1. Ordersheet'!K561)","v":""},{"$f":"IF('1. Ordersheet'!M561=\"\",\"\",'1. Ordersheet'!M561)","v":""},null,null,{"$f":"IF('1. Ordersheet'!AR561=\"\",\"\",'1. Ordersheet'!AR561)","v":""},{"$f":"IF('1. Ordersheet'!AE561=\"\",\"\",'1. Ordersheet'!AE561)","v":""}]
[{"$f":"IF('1. Ordersheet'!B562=\"\",\"\",'1. Ordersheet'!B562)","v":""},{"$f":"IF('1. Ordersheet'!I562=\"\",\"\",'1. Ordersheet'!I562)","v":""},{"$f":"IF('1. Ordersheet'!J562=\"\",\"\",'1. Ordersheet'!J562)","v":""},{"$f":"IF('1. Ordersheet'!K562=\"\",\"\",'1. Ordersheet'!K562)","v":""},{"$f":"IF('1. Ordersheet'!M562=\"\",\"\",'1. Ordersheet'!M562)","v":""},null,null,{"$f":"IF('1. Ordersheet'!AR562=\"\",\"\",'1. Ordersheet'!AR562)","v":""},{"$f":"IF('1. Ordersheet'!AE562=\"\",\"\",'1. Ordersheet'!AE562)","v":""}]
[{"$f":"IF('1. Ordersheet'!B563=\"\",\"\",'1. Ordersheet'!B563)","v":""},{"$f":"IF('1. Ordersheet'!I563=\"\",\"\",'1. Ordersheet'!I563)","v":""},{"$f":"IF('1. Ordersheet'!J563=\"\",\"\",'1. Ordersheet'!J563)","v":""},{"$f":"IF('1. Ordersheet'!K563=\"\",\"\",'1. Ordersheet'!K563)","v":""},{"$f":"IF('1. Ordersheet'!M563=\"\",\"\",'1. Ordersheet'!M563)","v":""},null,null,{"$f":"IF('1. Ordersheet'!AR563=\"\",\"\",'1. Ordersheet'!AR563)","v":""},{"$f":"IF('1. Ordersheet'!AE563=\"\",\"\",'1. Ordersheet'!AE563)","v":""}]
[{"$f":"IF('1. Ordersheet'!B564=\"\",\"\",'1. Ordersheet'!B564)","v":""},{"$f":"IF('1. Ordersheet'!I564=\"\",\"\",'1. Ordersheet'!I564)","v":""},{"$f":"IF('1. Ordersheet'!J564=\"\",\"\",'1. Ordersheet'!J564)","v":""},{"$f":"IF('1. Ordersheet'!K564=\"\",\"\",'1. Ordersheet'!K564)","v":""},{"$f":"IF('1. Ordersheet'!M564=\"\",\"\",'1. Ordersheet'!M564)","v":""},null,null,{"$f":"IF('1. Ordersheet'!AR564=\"\",\"\",'1. Ordersheet'!AR564)","v":""},{"$f":"IF('1. Ordersheet'!AE564=\"\",\"\",'1. Ordersheet'!AE564)","v":""}]
[{"$f":"IF('1. Ordersheet'!B565=\"\",\"\",'1. Ordersheet'!B565)","v":""},{"$f":"IF('1. Ordersheet'!I565=\"\",\"\",'1. Ordersheet'!I565)","v":""},{"$f":"IF('1. Ordersheet'!J565=\"\",\"\",'1. Ordersheet'!J565)","v":""},{"$f":"IF('1. Ordersheet'!K565=\"\",\"\",'1. Ordersheet'!K565)","v":""},{"$f":"IF('1. Ordersheet'!M565=\"\",\"\",'1. Ordersheet'!M565)","v":""},null,null,{"$f":"IF('1. Ordersheet'!AR565=\"\",\"\",'1. Ordersheet'!AR565)","v":""},{"$f":"IF('1. Ordersheet'!AE565=\"\",\"\",'1. Ordersheet'!AE565)","v":""}]
[{"$f":"IF('1. Ordersheet'!B566=\"\",\"\",'1. Ordersheet'!B566)","v":""},{"$f":"IF('1. Ordersheet'!I566=\"\",\"\",'1. Ordersheet'!I566)","v":""},{"$f":"IF('1. Ordersheet'!J566=\"\",\"\",'1. Ordersheet'!J566)","v":""},{"$f":"IF('1. Ordersheet'!K566=\"\",\"\",'1. Ordersheet'!K566)","v":""},{"$f":"IF('1. Ordersheet'!M566=\"\",\"\",'1. Ordersheet'!M566)","v":""},null,null,{"$f":"IF('1. Ordersheet'!AR566=\"\",\"\",'1. Ordersheet'!AR566)","v":""},{"$f":"IF('1. Ordersheet'!AE566=\"\",\"\",'1. Ordersheet'!AE566)","v":""}]
[{"$f":"IF('1. Ordersheet'!B567=\"\",\"\",'1. Ordersheet'!B567)","v":""},{"$f":"IF('1. Ordersheet'!I567=\"\",\"\",'1. Ordersheet'!I567)","v":""},{"$f":"IF('1. Ordersheet'!J567=\"\",\"\",'1. Ordersheet'!J567)","v":""},{"$f":"IF('1. Ordersheet'!K567=\"\",\"\",'1. Ordersheet'!K567)","v":""},{"$f":"IF('1. Ordersheet'!M567=\"\",\"\",'1. Ordersheet'!M567)","v":""},null,null,{"$f":"IF('1. Ordersheet'!AR567=\"\",\"\",'1. Ordersheet'!AR567)","v":""},{"$f":"IF('1. Ordersheet'!AE567=\"\",\"\",'1. Ordersheet'!AE567)","v":""}]
[{"$f":"IF('1. Ordersheet'!B568=\"\",\"\",'1. Ordersheet'!B568)","v":""},{"$f":"IF('1. Ordersheet'!I568=\"\",\"\",'1. Ordersheet'!I568)","v":""},{"$f":"IF('1. Ordersheet'!J568=\"\",\"\",'1. Ordersheet'!J568)","v":""},{"$f":"IF('1. Ordersheet'!K568=\"\",\"\",'1. Ordersheet'!K568)","v":""},{"$f":"IF('1. Ordersheet'!M568=\"\",\"\",'1. Ordersheet'!M568)","v":""},null,null,{"$f":"IF('1. Ordersheet'!AR568=\"\",\"\",'1. Ordersheet'!AR568)","v":""},{"$f":"IF('1. Ordersheet'!AE568=\"\",\"\",'1. Ordersheet'!AE568)","v":""}]
[{"$f":"IF('1. Ordersheet'!B569=\"\",\"\",'1. Ordersheet'!B569)","v":""},{"$f":"IF('1. Ordersheet'!I569=\"\",\"\",'1. Ordersheet'!I569)","v":""},{"$f":"IF('1. Ordersheet'!J569=\"\",\"\",'1. Ordersheet'!J569)","v":""},{"$f":"IF('1. Ordersheet'!K569=\"\",\"\",'1. Ordersheet'!K569)","v":""},{"$f":"IF('1. Ordersheet'!M569=\"\",\"\",'1. Ordersheet'!M569)","v":""},null,null,{"$f":"IF('1. Ordersheet'!AR569=\"\",\"\",'1. Ordersheet'!AR569)","v":""},{"$f":"IF('1. Ordersheet'!AE569=\"\",\"\",'1. Ordersheet'!AE569)","v":""}]
[{"$f":"IF('1. Ordersheet'!B570=\"\",\"\",'1. Ordersheet'!B570)","v":""},{"$f":"IF('1. Ordersheet'!I570=\"\",\"\",'1. Ordersheet'!I570)","v":""},{"$f":"IF('1. Ordersheet'!J570=\"\",\"\",'1. Ordersheet'!J570)","v":""},{"$f":"IF('1. Ordersheet'!K570=\"\",\"\",'1. Ordersheet'!K570)","v":""},{"$f":"IF('1. Ordersheet'!M570=\"\",\"\",'1. Ordersheet'!M570)","v":""},null,null,{"$f":"IF('1. Ordersheet'!AR570=\"\",\"\",'1. Ordersheet'!AR570)","v":""},{"$f":"IF('1. Ordersheet'!AE570=\"\",\"\",'1. Ordersheet'!AE570)","v":""}]
[{"$f":"IF('1. Ordersheet'!B571=\"\",\"\",'1. Ordersheet'!B571)","v":""},{"$f":"IF('1. Ordersheet'!I571=\"\",\"\",'1. Ordersheet'!I571)","v":""},{"$f":"IF('1. Ordersheet'!J571=\"\",\"\",'1. Ordersheet'!J571)","v":""},{"$f":"IF('1. Ordersheet'!K571=\"\",\"\",'1. Ordersheet'!K571)","v":""},{"$f":"IF('1. Ordersheet'!M571=\"\",\"\",'1. Ordersheet'!M571)","v":""},null,null,{"$f":"IF('1. Ordersheet'!AR571=\"\",\"\",'1. Ordersheet'!AR571)","v":""},{"$f":"IF('1. Ordersheet'!AE571=\"\",\"\",'1. Ordersheet'!AE571)","v":""}]
[{"$f":"IF('1. Ordersheet'!B572=\"\",\"\",'1. Ordersheet'!B572)","v":""},{"$f":"IF('1. Ordersheet'!I572=\"\",\"\",'1. Ordersheet'!I572)","v":""},{"$f":"IF('1. Ordersheet'!J572=\"\",\"\",'1. Ordersheet'!J572)","v":""},{"$f":"IF('1. Ordersheet'!K572=\"\",\"\",'1. Ordersheet'!K572)","v":""},{"$f":"IF('1. Ordersheet'!M572=\"\",\"\",'1. Ordersheet'!M572)","v":""},null,null,{"$f":"IF('1. Ordersheet'!AR572=\"\",\"\",'1. Ordersheet'!AR572)","v":""},{"$f":"IF('1. Ordersheet'!AE572=\"\",\"\",'1. Ordersheet'!AE572)","v":""}]
[{"$f":"IF('1. Ordersheet'!B573=\"\",\"\",'1. Ordersheet'!B573)","v":""},{"$f":"IF('1. Ordersheet'!I573=\"\",\"\",'1. Ordersheet'!I573)","v":""},{"$f":"IF('1. Ordersheet'!J573=\"\",\"\",'1. Ordersheet'!J573)","v":""},{"$f":"IF('1. Ordersheet'!K573=\"\",\"\",'1. Ordersheet'!K573)","v":""},{"$f":"IF('1. Ordersheet'!M573=\"\",\"\",'1. Ordersheet'!M573)","v":""},null,null,{"$f":"IF('1. Ordersheet'!AR573=\"\",\"\",'1. Ordersheet'!AR573)","v":""},{"$f":"IF('1. Ordersheet'!AE573=\"\",\"\",'1. Ordersheet'!AE573)","v":""}]
[{"$f":"IF('1. Ordersheet'!B574=\"\",\"\",'1. Ordersheet'!B574)","v":""},{"$f":"IF('1. Ordersheet'!I574=\"\",\"\",'1. Ordersheet'!I574)","v":""},{"$f":"IF('1. Ordersheet'!J574=\"\",\"\",'1. Ordersheet'!J574)","v":""},{"$f":"IF('1. Ordersheet'!K574=\"\",\"\",'1. Ordersheet'!K574)","v":""},{"$f":"IF('1. Ordersheet'!M574=\"\",\"\",'1. Ordersheet'!M574)","v":""},null,null,{"$f":"IF('1. Ordersheet'!AR574=\"\",\"\",'1. Ordersheet'!AR574)","v":""},{"$f":"IF('1. Ordersheet'!AE574=\"\",\"\",'1. Ordersheet'!AE574)","v":""}]
[{"$f":"IF('1. Ordersheet'!B575=\"\",\"\",'1. Ordersheet'!B575)","v":""},{"$f":"IF('1. Ordersheet'!I575=\"\",\"\",'1. Ordersheet'!I575)","v":""},{"$f":"IF('1. Ordersheet'!J575=\"\",\"\",'1. Ordersheet'!J575)","v":""},{"$f":"IF('1. Ordersheet'!K575=\"\",\"\",'1. Ordersheet'!K575)","v":""},{"$f":"IF('1. Ordersheet'!M575=\"\",\"\",'1. Ordersheet'!M575)","v":""},null,null,{"$f":"IF('1. Ordersheet'!AR575=\"\",\"\",'1. Ordersheet'!AR575)","v":""},{"$f":"IF('1. Ordersheet'!AE575=\"\",\"\",'1. Ordersheet'!AE575)","v":""}]
[{"$f":"IF('1. Ordersheet'!B576=\"\",\"\",'1. Ordersheet'!B576)","v":""},{"$f":"IF('1. Ordersheet'!I576=\"\",\"\",'1. Ordersheet'!I576)","v":""},{"$f":"IF('1. Ordersheet'!J576=\"\",\"\",'1. Ordersheet'!J576)","v":""},{"$f":"IF('1. Ordersheet'!K576=\"\",\"\",'1. Ordersheet'!K576)","v":""},{"$f":"IF('1. Ordersheet'!M576=\"\",\"\",'1. Ordersheet'!M576)","v":""},null,null,{"$f":"IF('1. Ordersheet'!AR576=\"\",\"\",'1. Ordersheet'!AR576)","v":""},{"$f":"IF('1. Ordersheet'!AE576=\"\",\"\",'1. Ordersheet'!AE576)","v":""}]
[{"$f":"IF('1. Ordersheet'!B577=\"\",\"\",'1. Ordersheet'!B577)","v":""},{"$f":"IF('1. Ordersheet'!I577=\"\",\"\",'1. Ordersheet'!I577)","v":""},{"$f":"IF('1. Ordersheet'!J577=\"\",\"\",'1. Ordersheet'!J577)","v":""},{"$f":"IF('1. Ordersheet'!K577=\"\",\"\",'1. Ordersheet'!K577)","v":""},{"$f":"IF('1. Ordersheet'!M577=\"\",\"\",'1. Ordersheet'!M577)","v":""},null,null,{"$f":"IF('1. Ordersheet'!AR577=\"\",\"\",'1. Ordersheet'!AR577)","v":""},{"$f":"IF('1. Ordersheet'!AE577=\"\",\"\",'1. Ordersheet'!AE577)","v":""}]
[{"$f":"IF('1. Ordersheet'!B578=\"\",\"\",'1. Ordersheet'!B578)","v":""},{"$f":"IF('1. Ordersheet'!I578=\"\",\"\",'1. Ordersheet'!I578)","v":""},{"$f":"IF('1. Ordersheet'!J578=\"\",\"\",'1. Ordersheet'!J578)","v":""},{"$f":"IF('1. Ordersheet'!K578=\"\",\"\",'1. Ordersheet'!K578)","v":""},{"$f":"IF('1. Ordersheet'!M578=\"\",\"\",'1. Ordersheet'!M578)","v":""},null,null,{"$f":"IF('1. Ordersheet'!AR578=\"\",\"\",'1. Ordersheet'!AR578)","v":""},{"$f":"IF('1. Ordersheet'!AE578=\"\",\"\",'1. Ordersheet'!AE578)","v":""}]
[{"$f":"IF('1. Ordersheet'!B579=\"\",\"\",'1. Ordersheet'!B579)","v":""},{"$f":"IF('1. Ordersheet'!I579=\"\",\"\",'1. Ordersheet'!I579)","v":""},{"$f":"IF('1. Ordersheet'!J579=\"\",\"\",'1. Ordersheet'!J579)","v":""},{"$f":"IF('1. Ordersheet'!K579=\"\",\"\",'1. Ordersheet'!K579)","v":""},{"$f":"IF('1. Ordersheet'!M579=\"\",\"\",'1. Ordersheet'!M579)","v":""},null,null,{"$f":"IF('1. Ordersheet'!AR579=\"\",\"\",'1. Ordersheet'!AR579)","v":""},{"$f":"IF('1. Ordersheet'!AE579=\"\",\"\",'1. Ordersheet'!AE579)","v":""}]
[{"$f":"IF('1. Ordersheet'!B580=\"\",\"\",'1. Ordersheet'!B580)","v":""},{"$f":"IF('1. Ordersheet'!I580=\"\",\"\",'1. Ordersheet'!I580)","v":""},{"$f":"IF('1. Ordersheet'!J580=\"\",\"\",'1. Ordersheet'!J580)","v":""},{"$f":"IF('1. Ordersheet'!K580=\"\",\"\",'1. Ordersheet'!K580)","v":""},{"$f":"IF('1. Ordersheet'!M580=\"\",\"\",'1. Ordersheet'!M580)","v":""},null,null,{"$f":"IF('1. Ordersheet'!AR580=\"\",\"\",'1. Ordersheet'!AR580)","v":""},{"$f":"IF('1. Ordersheet'!AE580=\"\",\"\",'1. Ordersheet'!AE580)","v":""}]
[{"$f":"IF('1. Ordersheet'!B581=\"\",\"\",'1. Ordersheet'!B581)","v":""},{"$f":"IF('1. Ordersheet'!I581=\"\",\"\",'1. Ordersheet'!I581)","v":""},{"$f":"IF('1. Ordersheet'!J581=\"\",\"\",'1. Ordersheet'!J581)","v":""},{"$f":"IF('1. Ordersheet'!K581=\"\",\"\",'1. Ordersheet'!K581)","v":""},{"$f":"IF('1. Ordersheet'!M581=\"\",\"\",'1. Ordersheet'!M581)","v":""},null,null,{"$f":"IF('1. Ordersheet'!AR581=\"\",\"\",'1. Ordersheet'!AR581)","v":""},{"$f":"IF('1. Ordersheet'!AE581=\"\",\"\",'1. Ordersheet'!AE581)","v":""}]
[{"$f":"IF('1. Ordersheet'!B582=\"\",\"\",'1. Ordersheet'!B582)","v":""},{"$f":"IF('1. Ordersheet'!I582=\"\",\"\",'1. Ordersheet'!I582)","v":""},{"$f":"IF('1. Ordersheet'!J582=\"\",\"\",'1. Ordersheet'!J582)","v":""},{"$f":"IF('1. Ordersheet'!K582=\"\",\"\",'1. Ordersheet'!K582)","v":""},{"$f":"IF('1. Ordersheet'!M582=\"\",\"\",'1. Ordersheet'!M582)","v":""},null,null,{"$f":"IF('1. Ordersheet'!AR582=\"\",\"\",'1. Ordersheet'!AR582)","v":""},{"$f":"IF('1. Ordersheet'!AE582=\"\",\"\",'1. Ordersheet'!AE582)","v":""}]
[{"$f":"IF('1. Ordersheet'!B583=\"\",\"\",'1. Ordersheet'!B583)","v":""},{"$f":"IF('1. Ordersheet'!I583=\"\",\"\",'1. Ordersheet'!I583)","v":""},{"$f":"IF('1. Ordersheet'!J583=\"\",\"\",'1. Ordersheet'!J583)","v":""},{"$f":"IF('1. Ordersheet'!K583=\"\",\"\",'1. Ordersheet'!K583)","v":""},{"$f":"IF('1. Ordersheet'!M583=\"\",\"\",'1. Ordersheet'!M583)","v":""},null,null,{"$f":"IF('1. Ordersheet'!AR583=\"\",\"\",'1. Ordersheet'!AR583)","v":""},{"$f":"IF('1. Ordersheet'!AE583=\"\",\"\",'1. Ordersheet'!AE583)","v":""}]
[{"$f":"IF('1. Ordersheet'!B584=\"\",\"\",'1. Ordersheet'!B584)","v":""},{"$f":"IF('1. Ordersheet'!I584=\"\",\"\",'1. Ordersheet'!I584)","v":""},{"$f":"IF('1. Ordersheet'!J584=\"\",\"\",'1. Ordersheet'!J584)","v":""},{"$f":"IF('1. Ordersheet'!K584=\"\",\"\",'1. Ordersheet'!K584)","v":""},{"$f":"IF('1. Ordersheet'!M584=\"\",\"\",'1. Ordersheet'!M584)","v":""},null,null,{"$f":"IF('1. Ordersheet'!AR584=\"\",\"\",'1. Ordersheet'!AR584)","v":""},{"$f":"IF('1. Ordersheet'!AE584=\"\",\"\",'1. Ordersheet'!AE584)","v":""}]
[{"$f":"IF('1. Ordersheet'!B585=\"\",\"\",'1. Ordersheet'!B585)","v":""},{"$f":"IF('1. Ordersheet'!I585=\"\",\"\",'1. Ordersheet'!I585)","v":""},{"$f":"IF('1. Ordersheet'!J585=\"\",\"\",'1. Ordersheet'!J585)","v":""},{"$f":"IF('1. Ordersheet'!K585=\"\",\"\",'1. Ordersheet'!K585)","v":""},{"$f":"IF('1. Ordersheet'!M585=\"\",\"\",'1. Ordersheet'!M585)","v":""},null,null,{"$f":"IF('1. Ordersheet'!AR585=\"\",\"\",'1. Ordersheet'!AR585)","v":""},{"$f":"IF('1. Ordersheet'!AE585=\"\",\"\",'1. Ordersheet'!AE585)","v":""}]
[{"$f":"IF('1. Ordersheet'!B586=\"\",\"\",'1. Ordersheet'!B586)","v":""},{"$f":"IF('1. Ordersheet'!I586=\"\",\"\",'1. Ordersheet'!I586)","v":""},{"$f":"IF('1. Ordersheet'!J586=\"\",\"\",'1. Ordersheet'!J586)","v":""},{"$f":"IF('1. Ordersheet'!K586=\"\",\"\",'1. Ordersheet'!K586)","v":""},{"$f":"IF('1. Ordersheet'!M586=\"\",\"\",'1. Ordersheet'!M586)","v":""},null,null,{"$f":"IF('1. Ordersheet'!AR586=\"\",\"\",'1. Ordersheet'!AR586)","v":""},{"$f":"IF('1. Ordersheet'!AE586=\"\",\"\",'1. Ordersheet'!AE586)","v":""}]
[{"$f":"IF('1. Ordersheet'!B587=\"\",\"\",'1. Ordersheet'!B587)","v":""},{"$f":"IF('1. Ordersheet'!I587=\"\",\"\",'1. Ordersheet'!I587)","v":""},{"$f":"IF('1. Ordersheet'!J587=\"\",\"\",'1. Ordersheet'!J587)","v":""},{"$f":"IF('1. Ordersheet'!K587=\"\",\"\",'1. Ordersheet'!K587)","v":""},{"$f":"IF('1. Ordersheet'!M587=\"\",\"\",'1. Ordersheet'!M587)","v":""},null,null,{"$f":"IF('1. Ordersheet'!AR587=\"\",\"\",'1. Ordersheet'!AR587)","v":""},{"$f":"IF('1. Ordersheet'!AE587=\"\",\"\",'1. Ordersheet'!AE587)","v":""}]
[{"$f":"IF('1. Ordersheet'!B588=\"\",\"\",'1. Ordersheet'!B588)","v":""},{"$f":"IF('1. Ordersheet'!I588=\"\",\"\",'1. Ordersheet'!I588)","v":""},{"$f":"IF('1. Ordersheet'!J588=\"\",\"\",'1. Ordersheet'!J588)","v":""},{"$f":"IF('1. Ordersheet'!K588=\"\",\"\",'1. Ordersheet'!K588)","v":""},{"$f":"IF('1. Ordersheet'!M588=\"\",\"\",'1. Ordersheet'!M588)","v":""},null,null,{"$f":"IF('1. Ordersheet'!AR588=\"\",\"\",'1. Ordersheet'!AR588)","v":""},{"$f":"IF('1. Ordersheet'!AE588=\"\",\"\",'1. Ordersheet'!AE588)","v":""}]
[{"$f":"IF('1. Ordersheet'!B589=\"\",\"\",'1. Ordersheet'!B589)","v":""},{"$f":"IF('1. Ordersheet'!I589=\"\",\"\",'1. Ordersheet'!I589)","v":""},{"$f":"IF('1. Ordersheet'!J589=\"\",\"\",'1. Ordersheet'!J589)","v":""},{"$f":"IF('1. Ordersheet'!K589=\"\",\"\",'1. Ordersheet'!K589)","v":""},{"$f":"IF('1. Ordersheet'!M589=\"\",\"\",'1. Ordersheet'!M589)","v":""},null,null,{"$f":"IF('1. Ordersheet'!AR589=\"\",\"\",'1. Ordersheet'!AR589)","v":""},{"$f":"IF('1. Ordersheet'!AE589=\"\",\"\",'1. Ordersheet'!AE589)","v":""}]
[{"$f":"IF('1. Ordersheet'!B590=\"\",\"\",'1. Ordersheet'!B590)","v":""},{"$f":"IF('1. Ordersheet'!I590=\"\",\"\",'1. Ordersheet'!I590)","v":""},{"$f":"IF('1. Ordersheet'!J590=\"\",\"\",'1. Ordersheet'!J590)","v":""},{"$f":"IF('1. Ordersheet'!K590=\"\",\"\",'1. Ordersheet'!K590)","v":""},{"$f":"IF('1. Ordersheet'!M590=\"\",\"\",'1. Ordersheet'!M590)","v":""},null,null,{"$f":"IF('1. Ordersheet'!AR590=\"\",\"\",'1. Ordersheet'!AR590)","v":""},{"$f":"IF('1. Ordersheet'!AE590=\"\",\"\",'1. Ordersheet'!AE590)","v":""}]
[{"$f":"IF('1. Ordersheet'!B591=\"\",\"\",'1. Ordersheet'!B591)","v":""},{"$f":"IF('1. Ordersheet'!I591=\"\",\"\",'1. Ordersheet'!I591)","v":""},{"$f":"IF('1. Ordersheet'!J591=\"\",\"\",'1. Ordersheet'!J591)","v":""},{"$f":"IF('1. Ordersheet'!K591=\"\",\"\",'1. Ordersheet'!K591)","v":""},{"$f":"IF('1. Ordersheet'!M591=\"\",\"\",'1. Ordersheet'!M591)","v":""},null,null,{"$f":"IF('1. Ordersheet'!AR591=\"\",\"\",'1. Ordersheet'!AR591)","v":""},{"$f":"IF('1. Ordersheet'!AE591=\"\",\"\",'1. Ordersheet'!AE591)","v":""}]
[{"$f":"IF('1. Ordersheet'!B592=\"\",\"\",'1. Ordersheet'!B592)","v":""},{"$f":"IF('1. Ordersheet'!I592=\"\",\"\",'1. Ordersheet'!I592)","v":""},{"$f":"IF('1. Ordersheet'!J592=\"\",\"\",'1. Ordersheet'!J592)","v":""},{"$f":"IF('1. Ordersheet'!K592=\"\",\"\",'1. Ordersheet'!K592)","v":""},{"$f":"IF('1. Ordersheet'!M592=\"\",\"\",'1. Ordersheet'!M592)","v":""},null,null,{"$f":"IF('1. Ordersheet'!AR592=\"\",\"\",'1. Ordersheet'!AR592)","v":""},{"$f":"IF('1. Ordersheet'!AE592=\"\",\"\",'1. Ordersheet'!AE592)","v":""}]
[{"$f":"IF('1. Ordersheet'!B593=\"\",\"\",'1. Ordersheet'!B593)","v":""},{"$f":"IF('1. Ordersheet'!I593=\"\",\"\",'1. Ordersheet'!I593)","v":""},{"$f":"IF('1. Ordersheet'!J593=\"\",\"\",'1. Ordersheet'!J593)","v":""},{"$f":"IF('1. Ordersheet'!K593=\"\",\"\",'1. Ordersheet'!K593)","v":""},{"$f":"IF('1. Ordersheet'!M593=\"\",\"\",'1. Ordersheet'!M593)","v":""},null,null,{"$f":"IF('1. Ordersheet'!AR593=\"\",\"\",'1. Ordersheet'!AR593)","v":""},{"$f":"IF('1. Ordersheet'!AE593=\"\",\"\",'1. Ordersheet'!AE593)","v":""}]
[{"$f":"IF('1. Ordersheet'!B594=\"\",\"\",'1. Ordersheet'!B594)","v":""},{"$f":"IF('1. Ordersheet'!I594=\"\",\"\",'1. Ordersheet'!I594)","v":""},{"$f":"IF('1. Ordersheet'!J594=\"\",\"\",'1. Ordersheet'!J594)","v":""},{"$f":"IF('1. Ordersheet'!K594=\"\",\"\",'1. Ordersheet'!K594)","v":""},{"$f":"IF('1. Ordersheet'!M594=\"\",\"\",'1. Ordersheet'!M594)","v":""},null,null,{"$f":"IF('1. Ordersheet'!AR594=\"\",\"\",'1. Ordersheet'!AR594)","v":""},{"$f":"IF('1. Ordersheet'!AE594=\"\",\"\",'1. Ordersheet'!AE594)","v":""}]
[{"$f":"IF('1. Ordersheet'!B595=\"\",\"\",'1. Ordersheet'!B595)","v":""},{"$f":"IF('1. Ordersheet'!I595=\"\",\"\",'1. Ordersheet'!I595)","v":""},{"$f":"IF('1. Ordersheet'!J595=\"\",\"\",'1. Ordersheet'!J595)","v":""},{"$f":"IF('1. Ordersheet'!K595=\"\",\"\",'1. Ordersheet'!K595)","v":""},{"$f":"IF('1. Ordersheet'!M595=\"\",\"\",'1. Ordersheet'!M595)","v":""},null,null,{"$f":"IF('1. Ordersheet'!AR595=\"\",\"\",'1. Ordersheet'!AR595)","v":""},{"$f":"IF('1. Ordersheet'!AE595=\"\",\"\",'1. Ordersheet'!AE595)","v":""}]
[{"$f":"IF('1. Ordersheet'!B596=\"\",\"\",'1. Ordersheet'!B596)","v":""},{"$f":"IF('1. Ordersheet'!I596=\"\",\"\",'1. Ordersheet'!I596)","v":""},{"$f":"IF('1. Ordersheet'!J596=\"\",\"\",'1. Ordersheet'!J596)","v":""},{"$f":"IF('1. Ordersheet'!K596=\"\",\"\",'1. Ordersheet'!K596)","v":""},{"$f":"IF('1. Ordersheet'!M596=\"\",\"\",'1. Ordersheet'!M596)","v":""},null,null,{"$f":"IF('1. Ordersheet'!AR596=\"\",\"\",'1. Ordersheet'!AR596)","v":""},{"$f":"IF('1. Ordersheet'!AE596=\"\",\"\",'1. Ordersheet'!AE596)","v":""}]
[{"$f":"IF('1. Ordersheet'!B597=\"\",\"\",'1. Ordersheet'!B597)","v":""},{"$f":"IF('1. Ordersheet'!I597=\"\",\"\",'1. Ordersheet'!I597)","v":""},{"$f":"IF('1. Ordersheet'!J597=\"\",\"\",'1. Ordersheet'!J597)","v":""},{"$f":"IF('1. Ordersheet'!K597=\"\",\"\",'1. Ordersheet'!K597)","v":""},{"$f":"IF('1. Ordersheet'!M597=\"\",\"\",'1. Ordersheet'!M597)","v":""},null,null,{"$f":"IF('1. Ordersheet'!AR597=\"\",\"\",'1. Ordersheet'!AR597)","v":""},{"$f":"IF('1. Ordersheet'!AE597=\"\",\"\",'1. Ordersheet'!AE597)","v":""}]
[{"$f":"IF('1. Ordersheet'!B598=\"\",\"\",'1. Ordersheet'!B598)","v":""},{"$f":"IF('1. Ordersheet'!I598=\"\",\"\",'1. Ordersheet'!I598)","v":""},{"$f":"IF('1. Ordersheet'!J598=\"\",\"\",'1. Ordersheet'!J598)","v":""},{"$f":"IF('1. Ordersheet'!K598=\"\",\"\",'1. Ordersheet'!K598)","v":""},{"$f":"IF('1. Ordersheet'!M598=\"\",\"\",'1. Ordersheet'!M598)","v":""},null,null,{"$f":"IF('1. Ordersheet'!AR598=\"\",\"\",'1. Ordersheet'!AR598)","v":""},{"$f":"IF('1. Ordersheet'!AE598=\"\",\"\",'1. Ordersheet'!AE598)","v":""}]
[{"$f":"IF('1. Ordersheet'!B599=\"\",\"\",'1. Ordersheet'!B599)","v":""},{"$f":"IF('1. Ordersheet'!I599=\"\",\"\",'1. Ordersheet'!I599)","v":""},{"$f":"IF('1. Ordersheet'!J599=\"\",\"\",'1. Ordersheet'!J599)","v":""},{"$f":"IF('1. Ordersheet'!K599=\"\",\"\",'1. Ordersheet'!K599)","v":""},{"$f":"IF('1. Ordersheet'!M599=\"\",\"\",'1. Ordersheet'!M599)","v":""},null,null,{"$f":"IF('1. Ordersheet'!AR599=\"\",\"\",'1. Ordersheet'!AR599)","v":""},{"$f":"IF('1. Ordersheet'!AE599=\"\",\"\",'1. Ordersheet'!AE599)","v":""}]
[{"$f":"IF('1. Ordersheet'!B600=\"\",\"\",'1. Ordersheet'!B600)","v":""},{"$f":"IF('1. Ordersheet'!I600=\"\",\"\",'1. Ordersheet'!I600)","v":""},{"$f":"IF('1. Ordersheet'!J600=\"\",\"\",'1. Ordersheet'!J600)","v":""},{"$f":"IF('1. Ordersheet'!K600=\"\",\"\",'1. Ordersheet'!K600)","v":""},{"$f":"IF('1. Ordersheet'!M600=\"\",\"\",'1. Ordersheet'!M600)","v":""},null,null,{"$f":"IF('1. Ordersheet'!AR600=\"\",\"\",'1. Ordersheet'!AR600)","v":""},{"$f":"IF('1. Ordersheet'!AE600=\"\",\"\",'1. Ordersheet'!AE600)","v":""}]
[{"$f":"IF('1. Ordersheet'!B601=\"\",\"\",'1. Ordersheet'!B601)","v":""},{"$f":"IF('1. Ordersheet'!I601=\"\",\"\",'1. Ordersheet'!I601)","v":""},{"$f":"IF('1. Ordersheet'!J601=\"\",\"\",'1. Ordersheet'!J601)","v":""},{"$f":"IF('1. Ordersheet'!K601=\"\",\"\",'1. Ordersheet'!K601)","v":""},{"$f":"IF('1. Ordersheet'!M601=\"\",\"\",'1. Ordersheet'!M601)","v":""},null,null,{"$f":"IF('1. Ordersheet'!AR601=\"\",\"\",'1. Ordersheet'!AR601)","v":""},{"$f":"IF('1. Ordersheet'!AE601=\"\",\"\",'1. Ordersheet'!AE601)","v":""}]
[{"$f":"IF('1. Ordersheet'!B602=\"\",\"\",'1. Ordersheet'!B602)","v":""},{"$f":"IF('1. Ordersheet'!I602=\"\",\"\",'1. Ordersheet'!I602)","v":""},{"$f":"IF('1. Ordersheet'!J602=\"\",\"\",'1. Ordersheet'!J602)","v":""},{"$f":"IF('1. Ordersheet'!K602=\"\",\"\",'1. Ordersheet'!K602)","v":""},{"$f":"IF('1. Ordersheet'!M602=\"\",\"\",'1. Ordersheet'!M602)","v":""},null,null,{"$f":"IF('1. Ordersheet'!AR602=\"\",\"\",'1. Ordersheet'!AR602)","v":""},{"$f":"IF('1. Ordersheet'!AE602=\"\",\"\",'1. Ordersheet'!AE602)","v":""}]
[{"$f":"IF('1. Ordersheet'!B603=\"\",\"\",'1. Ordersheet'!B603)","v":""},{"$f":"IF('1. Ordersheet'!I603=\"\",\"\",'1. Ordersheet'!I603)","v":""},{"$f":"IF('1. Ordersheet'!J603=\"\",\"\",'1. Ordersheet'!J603)","v":""},{"$f":"IF('1. Ordersheet'!K603=\"\",\"\",'1. Ordersheet'!K603)","v":""},{"$f":"IF('1. Ordersheet'!M603=\"\",\"\",'1. Ordersheet'!M603)","v":""},null,null,{"$f":"IF('1. Ordersheet'!AR603=\"\",\"\",'1. Ordersheet'!AR603)","v":""},{"$f":"IF('1. Ordersheet'!AE603=\"\",\"\",'1. Ordersheet'!AE603)","v":""}]
[{"$f":"IF('1. Ordersheet'!B604=\"\",\"\",'1. Ordersheet'!B604)","v":""},{"$f":"IF('1. Ordersheet'!I604=\"\",\"\",'1. Ordersheet'!I604)","v":""},{"$f":"IF('1. Ordersheet'!J604=\"\",\"\",'1. Ordersheet'!J604)","v":""},{"$f":"IF('1. Ordersheet'!K604=\"\",\"\",'1. Ordersheet'!K604)","v":""},{"$f":"IF('1. Ordersheet'!M604=\"\",\"\",'1. Ordersheet'!M604)","v":""},null,null,{"$f":"IF('1. Ordersheet'!AR604=\"\",\"\",'1. Ordersheet'!AR604)","v":""},{"$f":"IF('1. Ordersheet'!AE604=\"\",\"\",'1. Ordersheet'!AE604)","v":""}]
[{"$f":"IF('1. Ordersheet'!B605=\"\",\"\",'1. Ordersheet'!B605)","v":""},{"$f":"IF('1. Ordersheet'!I605=\"\",\"\",'1. Ordersheet'!I605)","v":""},{"$f":"IF('1. Ordersheet'!J605=\"\",\"\",'1. Ordersheet'!J605)","v":""},{"$f":"IF('1. Ordersheet'!K605=\"\",\"\",'1. Ordersheet'!K605)","v":""},{"$f":"IF('1. Ordersheet'!M605=\"\",\"\",'1. Ordersheet'!M605)","v":""},null,null,{"$f":"IF('1. Ordersheet'!AR605=\"\",\"\",'1. Ordersheet'!AR605)","v":""},{"$f":"IF('1. Ordersheet'!AE605=\"\",\"\",'1. Ordersheet'!AE605)","v":""}]
[{"$f":"IF('1. Ordersheet'!B606=\"\",\"\",'1. Ordersheet'!B606)","v":""},{"$f":"IF('1. Ordersheet'!I606=\"\",\"\",'1. Ordersheet'!I606)","v":""},{"$f":"IF('1. Ordersheet'!J606=\"\",\"\",'1. Ordersheet'!J606)","v":""},{"$f":"IF('1. Ordersheet'!K606=\"\",\"\",'1. Ordersheet'!K606)","v":""},{"$f":"IF('1. Ordersheet'!M606=\"\",\"\",'1. Ordersheet'!M606)","v":""},null,null,{"$f":"IF('1. Ordersheet'!AR606=\"\",\"\",'1. Ordersheet'!AR606)","v":""},{"$f":"IF('1. Ordersheet'!AE606=\"\",\"\",'1. Ordersheet'!AE606)","v":""}]
[{"$f":"IF('1. Ordersheet'!B607=\"\",\"\",'1. Ordersheet'!B607)","v":""},{"$f":"IF('1. Ordersheet'!I607=\"\",\"\",'1. Ordersheet'!I607)","v":""},{"$f":"IF('1. Ordersheet'!J607=\"\",\"\",'1. Ordersheet'!J607)","v":""},{"$f":"IF('1. Ordersheet'!K607=\"\",\"\",'1. Ordersheet'!K607)","v":""},{"$f":"IF('1. Ordersheet'!M607=\"\",\"\",'1. Ordersheet'!M607)","v":""},null,null,{"$f":"IF('1. Ordersheet'!AR607=\"\",\"\",'1. Ordersheet'!AR607)","v":""},{"$f":"IF('1. Ordersheet'!AE607=\"\",\"\",'1. Ordersheet'!AE607)","v":""}]
[{"$f":"IF('1. Ordersheet'!B608=\"\",\"\",'1. Ordersheet'!B608)","v":""},{"$f":"IF('1. Ordersheet'!I608=\"\",\"\",'1. Ordersheet'!I608)","v":""},{"$f":"IF('1. Ordersheet'!J608=\"\",\"\",'1. Ordersheet'!J608)","v":""},{"$f":"IF('1. Ordersheet'!K608=\"\",\"\",'1. Ordersheet'!K608)","v":""},{"$f":"IF('1. Ordersheet'!M608=\"\",\"\",'1. Ordersheet'!M608)","v":""},null,null,{"$f":"IF('1. Ordersheet'!AR608=\"\",\"\",'1. Ordersheet'!AR608)","v":""},{"$f":"IF('1. Ordersheet'!AE608=\"\",\"\",'1. Ordersheet'!AE608)","v":""}]
[{"$f":"IF('1. Ordersheet'!B609=\"\",\"\",'1. Ordersheet'!B609)","v":""},{"$f":"IF('1. Ordersheet'!I609=\"\",\"\",'1. Ordersheet'!I609)","v":""},{"$f":"IF('1. Ordersheet'!J609=\"\",\"\",'1. Ordersheet'!J609)","v":""},{"$f":"IF('1. Ordersheet'!K609=\"\",\"\",'1. Ordersheet'!K609)","v":""},{"$f":"IF('1. Ordersheet'!M609=\"\",\"\",'1. Ordersheet'!M609)","v":""},null,null,{"$f":"IF('1. Ordersheet'!AR609=\"\",\"\",'1. Ordersheet'!AR609)","v":""},{"$f":"IF('1. Ordersheet'!AE609=\"\",\"\",'1. Ordersheet'!AE609)","v":""}]
[{"$f":"IF('1. Ordersheet'!B610=\"\",\"\",'1. Ordersheet'!B610)","v":""},{"$f":"IF('1. Ordersheet'!I610=\"\",\"\",'1. Ordersheet'!I610)","v":""},{"$f":"IF('1. Ordersheet'!J610=\"\",\"\",'1. Ordersheet'!J610)","v":""},{"$f":"IF('1. Ordersheet'!K610=\"\",\"\",'1. Ordersheet'!K610)","v":""},{"$f":"IF('1. Ordersheet'!M610=\"\",\"\",'1. Ordersheet'!M610)","v":""},null,null,{"$f":"IF('1. Ordersheet'!AR610=\"\",\"\",'1. Ordersheet'!AR610)","v":""},{"$f":"IF('1. Ordersheet'!AE610=\"\",\"\",'1. Ordersheet'!AE610)","v":""}]
[{"$f":"IF('1. Ordersheet'!B611=\"\",\"\",'1. Ordersheet'!B611)","v":""},{"$f":"IF('1. Ordersheet'!I611=\"\",\"\",'1. Ordersheet'!I611)","v":""},{"$f":"IF('1. Ordersheet'!J611=\"\",\"\",'1. Ordersheet'!J611)","v":""},{"$f":"IF('1. Ordersheet'!K611=\"\",\"\",'1. Ordersheet'!K611)","v":""},{"$f":"IF('1. Ordersheet'!M611=\"\",\"\",'1. Ordersheet'!M611)","v":""},null,null,{"$f":"IF('1. Ordersheet'!AR611=\"\",\"\",'1. Ordersheet'!AR611)","v":""},{"$f":"IF('1. Ordersheet'!AE611=\"\",\"\",'1. Ordersheet'!AE611)","v":""}]
[{"$f":"IF('1. Ordersheet'!B612=\"\",\"\",'1. Ordersheet'!B612)","v":""},{"$f":"IF('1. Ordersheet'!I612=\"\",\"\",'1. Ordersheet'!I612)","v":""},{"$f":"IF('1. Ordersheet'!J612=\"\",\"\",'1. Ordersheet'!J612)","v":""},{"$f":"IF('1. Ordersheet'!K612=\"\",\"\",'1. Ordersheet'!K612)","v":""},{"$f":"IF('1. Ordersheet'!M612=\"\",\"\",'1. Ordersheet'!M612)","v":""},null,null,{"$f":"IF('1. Ordersheet'!AR612=\"\",\"\",'1. Ordersheet'!AR612)","v":""},{"$f":"IF('1. Ordersheet'!AE612=\"\",\"\",'1. Ordersheet'!AE612)","v":""}]
[{"$f":"IF('1. Ordersheet'!B613=\"\",\"\",'1. Ordersheet'!B613)","v":""},{"$f":"IF('1. Ordersheet'!I613=\"\",\"\",'1. Ordersheet'!I613)","v":""},{"$f":"IF('1. Ordersheet'!J613=\"\",\"\",'1. Ordersheet'!J613)","v":""},{"$f":"IF('1. Ordersheet'!K613=\"\",\"\",'1. Ordersheet'!K613)","v":""},{"$f":"IF('1. Ordersheet'!M613=\"\",\"\",'1. Ordersheet'!M613)","v":""},null,null,{"$f":"IF('1. Ordersheet'!AR613=\"\",\"\",'1. Ordersheet'!AR613)","v":""},{"$f":"IF('1. Ordersheet'!AE613=\"\",\"\",'1. Ordersheet'!AE613)","v":""}]
[{"$f":"IF('1. Ordersheet'!B614=\"\",\"\",'1. Ordersheet'!B614)","v":""},{"$f":"IF('1. Ordersheet'!I614=\"\",\"\",'1. Ordersheet'!I614)","v":""},{"$f":"IF('1. Ordersheet'!J614=\"\",\"\",'1. Ordersheet'!J614)","v":""},{"$f":"IF('1. Ordersheet'!K614=\"\",\"\",'1. Ordersheet'!K614)","v":""},{"$f":"IF('1. Ordersheet'!M614=\"\",\"\",'1. Ordersheet'!M614)","v":""},null,null,{"$f":"IF('1. Ordersheet'!AR614=\"\",\"\",'1. Ordersheet'!AR614)","v":""},{"$f":"IF('1. Ordersheet'!AE614=\"\",\"\",'1. Ordersheet'!AE614)","v":""}]
[{"$f":"IF('1. Ordersheet'!B615=\"\",\"\",'1. Ordersheet'!B615)","v":""},{"$f":"IF('1. Ordersheet'!I615=\"\",\"\",'1. Ordersheet'!I615)","v":""},{"$f":"IF('1. Ordersheet'!J615=\"\",\"\",'1. Ordersheet'!J615)","v":""},{"$f":"IF('1. Ordersheet'!K615=\"\",\"\",'1. Ordersheet'!K615)","v":""},{"$f":"IF('1. Ordersheet'!M615=\"\",\"\",'1. Ordersheet'!M615)","v":""},null,null,{"$f":"IF('1. Ordersheet'!AR615=\"\",\"\",'1. Ordersheet'!AR615)","v":""},{"$f":"IF('1. Ordersheet'!AE615=\"\",\"\",'1. Ordersheet'!AE615)","v":""}]
[{"$f":"IF('1. Ordersheet'!B616=\"\",\"\",'1. Ordersheet'!B616)","v":""},{"$f":"IF('1. Ordersheet'!I616=\"\",\"\",'1. Ordersheet'!I616)","v":""},{"$f":"IF('1. Ordersheet'!J616=\"\",\"\",'1. Ordersheet'!J616)","v":""},{"$f":"IF('1. Ordersheet'!K616=\"\",\"\",'1. Ordersheet'!K616)","v":""},{"$f":"IF('1. Ordersheet'!M616=\"\",\"\",'1. Ordersheet'!M616)","v":""},null,null,{"$f":"IF('1. Ordersheet'!AR616=\"\",\"\",'1. Ordersheet'!AR616)","v":""},{"$f":"IF('1. Ordersheet'!AE616=\"\",\"\",'1. Ordersheet'!AE616)","v":""}]
[{"$f":"IF('1. Ordersheet'!B617=\"\",\"\",'1. Ordersheet'!B617)","v":""},{"$f":"IF('1. Ordersheet'!I617=\"\",\"\",'1. Ordersheet'!I617)","v":""},{"$f":"IF('1. Ordersheet'!J617=\"\",\"\",'1. Ordersheet'!J617)","v":""},{"$f":"IF('1. Ordersheet'!K617=\"\",\"\",'1. Ordersheet'!K617)","v":""},{"$f":"IF('1. Ordersheet'!M617=\"\",\"\",'1. Ordersheet'!M617)","v":""},null,null,{"$f":"IF('1. Ordersheet'!AR617=\"\",\"\",'1. Ordersheet'!AR617)","v":""},{"$f":"IF('1. Ordersheet'!AE617=\"\",\"\",'1. Ordersheet'!AE617)","v":""}]
[{"$f":"IF('1. Ordersheet'!B618=\"\",\"\",'1. Ordersheet'!B618)","v":""},{"$f":"IF('1. Ordersheet'!I618=\"\",\"\",'1. Ordersheet'!I618)","v":""},{"$f":"IF('1. Ordersheet'!J618=\"\",\"\",'1. Ordersheet'!J618)","v":""},{"$f":"IF('1. Ordersheet'!K618=\"\",\"\",'1. Ordersheet'!K618)","v":""},{"$f":"IF('1. Ordersheet'!M618=\"\",\"\",'1. Ordersheet'!M618)","v":""},null,null,{"$f":"IF('1. Ordersheet'!AR618=\"\",\"\",'1. Ordersheet'!AR618)","v":""},{"$f":"IF('1. Ordersheet'!AE618=\"\",\"\",'1. Ordersheet'!AE618)","v":""}]
[{"$f":"IF('1. Ordersheet'!B619=\"\",\"\",'1. Ordersheet'!B619)","v":""},{"$f":"IF('1. Ordersheet'!I619=\"\",\"\",'1. Ordersheet'!I619)","v":""},{"$f":"IF('1. Ordersheet'!J619=\"\",\"\",'1. Ordersheet'!J619)","v":""},{"$f":"IF('1. Ordersheet'!K619=\"\",\"\",'1. Ordersheet'!K619)","v":""},{"$f":"IF('1. Ordersheet'!M619=\"\",\"\",'1. Ordersheet'!M619)","v":""},null,null,{"$f":"IF('1. Ordersheet'!AR619=\"\",\"\",'1. Ordersheet'!AR619)","v":""},{"$f":"IF('1. Ordersheet'!AE619=\"\",\"\",'1. Ordersheet'!AE619)","v":""}]
[{"$f":"IF('1. Ordersheet'!B620=\"\",\"\",'1. Ordersheet'!B620)","v":""},{"$f":"IF('1. Ordersheet'!I620=\"\",\"\",'1. Ordersheet'!I620)","v":""},{"$f":"IF('1. Ordersheet'!J620=\"\",\"\",'1. Ordersheet'!J620)","v":""},{"$f":"IF('1. Ordersheet'!K620=\"\",\"\",'1. Ordersheet'!K620)","v":""},{"$f":"IF('1. Ordersheet'!M620=\"\",\"\",'1. Ordersheet'!M620)","v":""},null,null,{"$f":"IF('1. Ordersheet'!AR620=\"\",\"\",'1. Ordersheet'!AR620)","v":""},{"$f":"IF('1. Ordersheet'!AE620=\"\",\"\",'1. Ordersheet'!AE620)","v":""}]
[{"$f":"IF('1. Ordersheet'!B621=\"\",\"\",'1. Ordersheet'!B621)","v":""},{"$f":"IF('1. Ordersheet'!I621=\"\",\"\",'1. Ordersheet'!I621)","v":""},{"$f":"IF('1. Ordersheet'!J621=\"\",\"\",'1. Ordersheet'!J621)","v":""},{"$f":"IF('1. Ordersheet'!K621=\"\",\"\",'1. Ordersheet'!K621)","v":""},{"$f":"IF('1. Ordersheet'!M621=\"\",\"\",'1. Ordersheet'!M621)","v":""},null,null,{"$f":"IF('1. Ordersheet'!AR621=\"\",\"\",'1. Ordersheet'!AR621)","v":""},{"$f":"IF('1. Ordersheet'!AE621=\"\",\"\",'1. Ordersheet'!AE621)","v":""}]
[{"$f":"IF('1. Ordersheet'!B622=\"\",\"\",'1. Ordersheet'!B622)","v":""},{"$f":"IF('1. Ordersheet'!I622=\"\",\"\",'1. Ordersheet'!I622)","v":""},{"$f":"IF('1. Ordersheet'!J622=\"\",\"\",'1. Ordersheet'!J622)","v":""},{"$f":"IF('1. Ordersheet'!K622=\"\",\"\",'1. Ordersheet'!K622)","v":""},{"$f":"IF('1. Ordersheet'!M622=\"\",\"\",'1. Ordersheet'!M622)","v":""},null,null,{"$f":"IF('1. Ordersheet'!AR622=\"\",\"\",'1. Ordersheet'!AR622)","v":""},{"$f":"IF('1. Ordersheet'!AE622=\"\",\"\",'1. Ordersheet'!AE622)","v":""}]
[{"$f":"IF('1. Ordersheet'!B623=\"\",\"\",'1. Ordersheet'!B623)","v":""},{"$f":"IF('1. Ordersheet'!I623=\"\",\"\",'1. Ordersheet'!I623)","v":""},{"$f":"IF('1. Ordersheet'!J623=\"\",\"\",'1. Ordersheet'!J623)","v":""},{"$f":"IF('1. Ordersheet'!K623=\"\",\"\",'1. Ordersheet'!K623)","v":""},{"$f":"IF('1. Ordersheet'!M623=\"\",\"\",'1. Ordersheet'!M623)","v":""},null,null,{"$f":"IF('1. Ordersheet'!AR623=\"\",\"\",'1. Ordersheet'!AR623)","v":""},{"$f":"IF('1. Ordersheet'!AE623=\"\",\"\",'1. Ordersheet'!AE623)","v":""}]
[{"$f":"IF('1. Ordersheet'!B624=\"\",\"\",'1. Ordersheet'!B624)","v":""},{"$f":"IF('1. Ordersheet'!I624=\"\",\"\",'1. Ordersheet'!I624)","v":""},{"$f":"IF('1. Ordersheet'!J624=\"\",\"\",'1. Ordersheet'!J624)","v":""},{"$f":"IF('1. Ordersheet'!K624=\"\",\"\",'1. Ordersheet'!K624)","v":""},{"$f":"IF('1. Ordersheet'!M624=\"\",\"\",'1. Ordersheet'!M624)","v":""},null,null,{"$f":"IF('1. Ordersheet'!AR624=\"\",\"\",'1. Ordersheet'!AR624)","v":""},{"$f":"IF('1. Ordersheet'!AE624=\"\",\"\",'1. Ordersheet'!AE624)","v":""}]
[{"$f":"IF('1. Ordersheet'!B625=\"\",\"\",'1. Ordersheet'!B625)","v":""},{"$f":"IF('1. Ordersheet'!I625=\"\",\"\",'1. Ordersheet'!I625)","v":""},{"$f":"IF('1. Ordersheet'!J625=\"\",\"\",'1. Ordersheet'!J625)","v":""},{"$f":"IF('1. Ordersheet'!K625=\"\",\"\",'1. Ordersheet'!K625)","v":""},{"$f":"IF('1. Ordersheet'!M625=\"\",\"\",'1. Ordersheet'!M625)","v":""},null,null,{"$f":"IF('1. Ordersheet'!AR625=\"\",\"\",'1. Ordersheet'!AR625)","v":""},{"$f":"IF('1. Ordersheet'!AE625=\"\",\"\",'1. Ordersheet'!AE625)","v":""}]
[{"$f":"IF('1. Ordersheet'!B626=\"\",\"\",'1. Ordersheet'!B626)","v":""},{"$f":"IF('1. Ordersheet'!I626=\"\",\"\",'1. Ordersheet'!I626)","v":""},{"$f":"IF('1. Ordersheet'!J626=\"\",\"\",'1. Ordersheet'!J626)","v":""},{"$f":"IF('1. Ordersheet'!K626=\"\",\"\",'1. Ordersheet'!K626)","v":""},{"$f":"IF('1. Ordersheet'!M626=\"\",\"\",'1. Ordersheet'!M626)","v":""},null,null,{"$f":"IF('1. Ordersheet'!AR626=\"\",\"\",'1. Ordersheet'!AR626)","v":""},{"$f":"IF('1. Ordersheet'!AE626=\"\",\"\",'1. Ordersheet'!AE626)","v":""}]
[{"$f":"IF('1. Ordersheet'!B627=\"\",\"\",'1. Ordersheet'!B627)","v":""},{"$f":"IF('1. Ordersheet'!I627=\"\",\"\",'1. Ordersheet'!I627)","v":""},{"$f":"IF('1. Ordersheet'!J627=\"\",\"\",'1. Ordersheet'!J627)","v":""},{"$f":"IF('1. Ordersheet'!K627=\"\",\"\",'1. Ordersheet'!K627)","v":""},{"$f":"IF('1. Ordersheet'!M627=\"\",\"\",'1. Ordersheet'!M627)","v":""},null,null,{"$f":"IF('1. Ordersheet'!AR627=\"\",\"\",'1. Ordersheet'!AR627)","v":""},{"$f":"IF('1. Ordersheet'!AE627=\"\",\"\",'1. Ordersheet'!AE627)","v":""}]
[{"$f":"IF('1. Ordersheet'!B628=\"\",\"\",'1. Ordersheet'!B628)","v":""},{"$f":"IF('1. Ordersheet'!I628=\"\",\"\",'1. Ordersheet'!I628)","v":""},{"$f":"IF('1. Ordersheet'!J628=\"\",\"\",'1. Ordersheet'!J628)","v":""},{"$f":"IF('1. Ordersheet'!K628=\"\",\"\",'1. Ordersheet'!K628)","v":""},{"$f":"IF('1. Ordersheet'!M628=\"\",\"\",'1. Ordersheet'!M628)","v":""},null,null,{"$f":"IF('1. Ordersheet'!AR628=\"\",\"\",'1. Ordersheet'!AR628)","v":""},{"$f":"IF('1. Ordersheet'!AE628=\"\",\"\",'1. Ordersheet'!AE628)","v":""}]
[{"$f":"IF('1. Ordersheet'!B629=\"\",\"\",'1. Ordersheet'!B629)","v":""},{"$f":"IF('1. Ordersheet'!I629=\"\",\"\",'1. Ordersheet'!I629)","v":""},{"$f":"IF('1. Ordersheet'!J629=\"\",\"\",'1. Ordersheet'!J629)","v":""},{"$f":"IF('1. Ordersheet'!K629=\"\",\"\",'1. Ordersheet'!K629)","v":""},{"$f":"IF('1. Ordersheet'!M629=\"\",\"\",'1. Ordersheet'!M629)","v":""},null,null,{"$f":"IF('1. Ordersheet'!AR629=\"\",\"\",'1. Ordersheet'!AR629)","v":""},{"$f":"IF('1. Ordersheet'!AE629=\"\",\"\",'1. Ordersheet'!AE629)","v":""}]
[{"$f":"IF('1. Ordersheet'!B630=\"\",\"\",'1. Ordersheet'!B630)","v":""},{"$f":"IF('1. Ordersheet'!I630=\"\",\"\",'1. Ordersheet'!I630)","v":""},{"$f":"IF('1. Ordersheet'!J630=\"\",\"\",'1. Ordersheet'!J630)","v":""},{"$f":"IF('1. Ordersheet'!K630=\"\",\"\",'1. Ordersheet'!K630)","v":""},{"$f":"IF('1. Ordersheet'!M630=\"\",\"\",'1. Ordersheet'!M630)","v":""},null,null,{"$f":"IF('1. Ordersheet'!AR630=\"\",\"\",'1. Ordersheet'!AR630)","v":""},{"$f":"IF('1. Ordersheet'!AE630=\"\",\"\",'1. Ordersheet'!AE630)","v":""}]
[{"$f":"IF('1. Ordersheet'!B631=\"\",\"\",'1. Ordersheet'!B631)","v":""},{"$f":"IF('1. Ordersheet'!I631=\"\",\"\",'1. Ordersheet'!I631)","v":""},{"$f":"IF('1. Ordersheet'!J631=\"\",\"\",'1. Ordersheet'!J631)","v":""},{"$f":"IF('1. Ordersheet'!K631=\"\",\"\",'1. Ordersheet'!K631)","v":""},{"$f":"IF('1. Ordersheet'!M631=\"\",\"\",'1. Ordersheet'!M631)","v":""},null,null,{"$f":"IF('1. Ordersheet'!AR631=\"\",\"\",'1. Ordersheet'!AR631)","v":""},{"$f":"IF('1. Ordersheet'!AE631=\"\",\"\",'1. Ordersheet'!AE631)","v":""}]
[{"$f":"IF('1. Ordersheet'!B632=\"\",\"\",'1. Ordersheet'!B632)","v":""},{"$f":"IF('1. Ordersheet'!I632=\"\",\"\",'1. Ordersheet'!I632)","v":""},{"$f":"IF('1. Ordersheet'!J632=\"\",\"\",'1. Ordersheet'!J632)","v":""},{"$f":"IF('1. Ordersheet'!K632=\"\",\"\",'1. Ordersheet'!K632)","v":""},{"$f":"IF('1. Ordersheet'!M632=\"\",\"\",'1. Ordersheet'!M632)","v":""},null,null,{"$f":"IF('1. Ordersheet'!AR632=\"\",\"\",'1. Ordersheet'!AR632)","v":""},{"$f":"IF('1. Ordersheet'!AE632=\"\",\"\",'1. Ordersheet'!AE632)","v":""}]
[{"$f":"IF('1. Ordersheet'!B633=\"\",\"\",'1. Ordersheet'!B633)","v":""},{"$f":"IF('1. Ordersheet'!I633=\"\",\"\",'1. Ordersheet'!I633)","v":""},{"$f":"IF('1. Ordersheet'!J633=\"\",\"\",'1. Ordersheet'!J633)","v":""},{"$f":"IF('1. Ordersheet'!K633=\"\",\"\",'1. Ordersheet'!K633)","v":""},{"$f":"IF('1. Ordersheet'!M633=\"\",\"\",'1. Ordersheet'!M633)","v":""},null,null,{"$f":"IF('1. Ordersheet'!AR633=\"\",\"\",'1. Ordersheet'!AR633)","v":""},{"$f":"IF('1. Ordersheet'!AE633=\"\",\"\",'1. Ordersheet'!AE633)","v":""}]
[{"$f":"IF('1. Ordersheet'!B634=\"\",\"\",'1. Ordersheet'!B634)","v":""},{"$f":"IF('1. Ordersheet'!I634=\"\",\"\",'1. Ordersheet'!I634)","v":""},{"$f":"IF('1. Ordersheet'!J634=\"\",\"\",'1. Ordersheet'!J634)","v":""},{"$f":"IF('1. Ordersheet'!K634=\"\",\"\",'1. Ordersheet'!K634)","v":""},{"$f":"IF('1. Ordersheet'!M634=\"\",\"\",'1. Ordersheet'!M634)","v":""},null,null,{"$f":"IF('1. Ordersheet'!AR634=\"\",\"\",'1. Ordersheet'!AR634)","v":""},{"$f":"IF('1. Ordersheet'!AE634=\"\",\"\",'1. Ordersheet'!AE634)","v":""}]
[{"$f":"IF('1. Ordersheet'!B635=\"\",\"\",'1. Ordersheet'!B635)","v":""},{"$f":"IF('1. Ordersheet'!I635=\"\",\"\",'1. Ordersheet'!I635)","v":""},{"$f":"IF('1. Ordersheet'!J635=\"\",\"\",'1. Ordersheet'!J635)","v":""},{"$f":"IF('1. Ordersheet'!K635=\"\",\"\",'1. Ordersheet'!K635)","v":""},{"$f":"IF('1. Ordersheet'!M635=\"\",\"\",'1. Ordersheet'!M635)","v":""},null,null,{"$f":"IF('1. Ordersheet'!AR635=\"\",\"\",'1. Ordersheet'!AR635)","v":""},{"$f":"IF('1. Ordersheet'!AE635=\"\",\"\",'1. Ordersheet'!AE635)","v":""}]
[{"$f":"IF('1. Ordersheet'!B636=\"\",\"\",'1. Ordersheet'!B636)","v":""},{"$f":"IF('1. Ordersheet'!I636=\"\",\"\",'1. Ordersheet'!I636)","v":""},{"$f":"IF('1. Ordersheet'!J636=\"\",\"\",'1. Ordersheet'!J636)","v":""},{"$f":"IF('1. Ordersheet'!K636=\"\",\"\",'1. Ordersheet'!K636)","v":""},{"$f":"IF('1. Ordersheet'!M636=\"\",\"\",'1. Ordersheet'!M636)","v":""},null,null,{"$f":"IF('1. Ordersheet'!AR636=\"\",\"\",'1. Ordersheet'!AR636)","v":""},{"$f":"IF('1. Ordersheet'!AE636=\"\",\"\",'1. Ordersheet'!AE636)","v":""}]
[{"$f":"IF('1. Ordersheet'!B637=\"\",\"\",'1. Ordersheet'!B637)","v":""},{"$f":"IF('1. Ordersheet'!I637=\"\",\"\",'1. Ordersheet'!I637)","v":""},{"$f":"IF('1. Ordersheet'!J637=\"\",\"\",'1. Ordersheet'!J637)","v":""},{"$f":"IF('1. Ordersheet'!K637=\"\",\"\",'1. Ordersheet'!K637)","v":""},{"$f":"IF('1. Ordersheet'!M637=\"\",\"\",'1. Ordersheet'!M637)","v":""},null,null,{"$f":"IF('1. Ordersheet'!AR637=\"\",\"\",'1. Ordersheet'!AR637)","v":""},{"$f":"IF('1. Ordersheet'!AE637=\"\",\"\",'1. Ordersheet'!AE637)","v":""}]
[{"$f":"IF('1. Ordersheet'!B638=\"\",\"\",'1. Ordersheet'!B638)","v":""},{"$f":"IF('1. Ordersheet'!I638=\"\",\"\",'1. Ordersheet'!I638)","v":""},{"$f":"IF('1. Ordersheet'!J638=\"\",\"\",'1. Ordersheet'!J638)","v":""},{"$f":"IF('1. Ordersheet'!K638=\"\",\"\",'1. Ordersheet'!K638)","v":""},{"$f":"IF('1. Ordersheet'!M638=\"\",\"\",'1. Ordersheet'!M638)","v":""},null,null,{"$f":"IF('1. Ordersheet'!AR638=\"\",\"\",'1. Ordersheet'!AR638)","v":""},{"$f":"IF('1. Ordersheet'!AE638=\"\",\"\",'1. Ordersheet'!AE638)","v":""}]
[{"$f":"IF('1. Ordersheet'!B639=\"\",\"\",'1. Ordersheet'!B639)","v":""},{"$f":"IF('1. Ordersheet'!I639=\"\",\"\",'1. Ordersheet'!I639)","v":""},{"$f":"IF('1. Ordersheet'!J639=\"\",\"\",'1. Ordersheet'!J639)","v":""},{"$f":"IF('1. Ordersheet'!K639=\"\",\"\",'1. Ordersheet'!K639)","v":""},{"$f":"IF('1. Ordersheet'!M639=\"\",\"\",'1. Ordersheet'!M639)","v":""},null,null,{"$f":"IF('1. Ordersheet'!AR639=\"\",\"\",'1. Ordersheet'!AR639)","v":""},{"$f":"IF('1. Ordersheet'!AE639=\"\",\"\",'1. Ordersheet'!AE639)","v":""}]
[{"$f":"IF('1. Ordersheet'!B640=\"\",\"\",'1. Ordersheet'!B640)","v":""},{"$f":"IF('1. Ordersheet'!I640=\"\",\"\",'1. Ordersheet'!I640)","v":""},{"$f":"IF('1. Ordersheet'!J640=\"\",\"\",'1. Ordersheet'!J640)","v":""},{"$f":"IF('1. Ordersheet'!K640=\"\",\"\",'1. Ordersheet'!K640)","v":""},{"$f":"IF('1. Ordersheet'!M640=\"\",\"\",'1. Ordersheet'!M640)","v":""},null,null,{"$f":"IF('1. Ordersheet'!AR640=\"\",\"\",'1. Ordersheet'!AR640)","v":""},{"$f":"IF('1. Ordersheet'!AE640=\"\",\"\",'1. Ordersheet'!AE640)","v":""}]
[{"$f":"IF('1. Ordersheet'!B641=\"\",\"\",'1. Ordersheet'!B641)","v":""},{"$f":"IF('1. Ordersheet'!I641=\"\",\"\",'1. Ordersheet'!I641)","v":""},{"$f":"IF('1. Ordersheet'!J641=\"\",\"\",'1. Ordersheet'!J641)","v":""},{"$f":"IF('1. Ordersheet'!K641=\"\",\"\",'1. Ordersheet'!K641)","v":""},{"$f":"IF('1. Ordersheet'!M641=\"\",\"\",'1. Ordersheet'!M641)","v":""},null,null,{"$f":"IF('1. Ordersheet'!AR641=\"\",\"\",'1. Ordersheet'!AR641)","v":""},{"$f":"IF('1. Ordersheet'!AE641=\"\",\"\",'1. Ordersheet'!AE641)","v":""}]
[{"$f":"IF('1. Ordersheet'!B642=\"\",\"\",'1. Ordersheet'!B642)","v":""},{"$f":"IF('1. Ordersheet'!I642=\"\",\"\",'1. Ordersheet'!I642)","v":""},{"$f":"IF('1. Ordersheet'!J642=\"\",\"\",'1. Ordersheet'!J642)","v":""},{"$f":"IF('1. Ordersheet'!K642=\"\",\"\",'1. Ordersheet'!K642)","v":""},{"$f":"IF('1. Ordersheet'!M642=\"\",\"\",'1. Ordersheet'!M642)","v":""},null,null,{"$f":"IF('1. Ordersheet'!AR642=\"\",\"\",'1. Ordersheet'!AR642)","v":""},{"$f":"IF('1. Ordersheet'!AE642=\"\",\"\",'1. Ordersheet'!AE642)","v":""}]
[{"$f":"IF('1. Ordersheet'!B643=\"\",\"\",'1. Ordersheet'!B643)","v":""},{"$f":"IF('1. Ordersheet'!I643=\"\",\"\",'1. Ordersheet'!I643)","v":""},{"$f":"IF('1. Ordersheet'!J643=\"\",\"\",'1. Ordersheet'!J643)","v":""},{"$f":"IF('1. Ordersheet'!K643=\"\",\"\",'1. Ordersheet'!K643)","v":""},{"$f":"IF('1. Ordersheet'!M643=\"\",\"\",'1. Ordersheet'!M643)","v":""},null,null,{"$f":"IF('1. Ordersheet'!AR643=\"\",\"\",'1. Ordersheet'!AR643)","v":""},{"$f":"IF('1. Ordersheet'!AE643=\"\",\"\",'1. Ordersheet'!AE643)","v":""}]
[{"$f":"IF('1. Ordersheet'!B644=\"\",\"\",'1. Ordersheet'!B644)","v":""},{"$f":"IF('1. Ordersheet'!I644=\"\",\"\",'1. Ordersheet'!I644)","v":""},{"$f":"IF('1. Ordersheet'!J644=\"\",\"\",'1. Ordersheet'!J644)","v":""},{"$f":"IF('1. Ordersheet'!K644=\"\",\"\",'1. Ordersheet'!K644)","v":""},{"$f":"IF('1. Ordersheet'!M644=\"\",\"\",'1. Ordersheet'!M644)","v":""},null,null,{"$f":"IF('1. Ordersheet'!AR644=\"\",\"\",'1. Ordersheet'!AR644)","v":""},{"$f":"IF('1. Ordersheet'!AE644=\"\",\"\",'1. Ordersheet'!AE644)","v":""}]
[{"$f":"IF('1. Ordersheet'!B645=\"\",\"\",'1. Ordersheet'!B645)","v":""},{"$f":"IF('1. Ordersheet'!I645=\"\",\"\",'1. Ordersheet'!I645)","v":""},{"$f":"IF('1. Ordersheet'!J645=\"\",\"\",'1. Ordersheet'!J645)","v":""},{"$f":"IF('1. Ordersheet'!K645=\"\",\"\",'1. Ordersheet'!K645)","v":""},{"$f":"IF('1. Ordersheet'!M645=\"\",\"\",'1. Ordersheet'!M645)","v":""},null,null,{"$f":"IF('1. Ordersheet'!AR645=\"\",\"\",'1. Ordersheet'!AR645)","v":""},{"$f":"IF('1. Ordersheet'!AE645=\"\",\"\",'1. Ordersheet'!AE645)","v":""}]
[{"$f":"IF('1. Ordersheet'!B646=\"\",\"\",'1. Ordersheet'!B646)","v":""},{"$f":"IF('1. Ordersheet'!I646=\"\",\"\",'1. Ordersheet'!I646)","v":""},{"$f":"IF('1. Ordersheet'!J646=\"\",\"\",'1. Ordersheet'!J646)","v":""},{"$f":"IF('1. Ordersheet'!K646=\"\",\"\",'1. Ordersheet'!K646)","v":""},{"$f":"IF('1. Ordersheet'!M646=\"\",\"\",'1. Ordersheet'!M646)","v":""},null,null,{"$f":"IF('1. Ordersheet'!AR646=\"\",\"\",'1. Ordersheet'!AR646)","v":""},{"$f":"IF('1. Ordersheet'!AE646=\"\",\"\",'1. Ordersheet'!AE646)","v":""}]
[{"$f":"IF('1. Ordersheet'!B647=\"\",\"\",'1. Ordersheet'!B647)","v":""},{"$f":"IF('1. Ordersheet'!I647=\"\",\"\",'1. Ordersheet'!I647)","v":""},{"$f":"IF('1. Ordersheet'!J647=\"\",\"\",'1. Ordersheet'!J647)","v":""},{"$f":"IF('1. Ordersheet'!K647=\"\",\"\",'1. Ordersheet'!K647)","v":""},{"$f":"IF('1. Ordersheet'!M647=\"\",\"\",'1. Ordersheet'!M647)","v":""},null,null,{"$f":"IF('1. Ordersheet'!AR647=\"\",\"\",'1. Ordersheet'!AR647)","v":""},{"$f":"IF('1. Ordersheet'!AE647=\"\",\"\",'1. Ordersheet'!AE647)","v":""}]
[{"$f":"IF('1. Ordersheet'!B648=\"\",\"\",'1. Ordersheet'!B648)","v":""},{"$f":"IF('1. Ordersheet'!I648=\"\",\"\",'1. Ordersheet'!I648)","v":""},{"$f":"IF('1. Ordersheet'!J648=\"\",\"\",'1. Ordersheet'!J648)","v":""},{"$f":"IF('1. Ordersheet'!K648=\"\",\"\",'1. Ordersheet'!K648)","v":""},{"$f":"IF('1. Ordersheet'!M648=\"\",\"\",'1. Ordersheet'!M648)","v":""},null,null,{"$f":"IF('1. Ordersheet'!AR648=\"\",\"\",'1. Ordersheet'!AR648)","v":""},{"$f":"IF('1. Ordersheet'!AE648=\"\",\"\",'1. Ordersheet'!AE648)","v":""}]
[{"$f":"IF('1. Ordersheet'!B649=\"\",\"\",'1. Ordersheet'!B649)","v":""},{"$f":"IF('1. Ordersheet'!I649=\"\",\"\",'1. Ordersheet'!I649)","v":""},{"$f":"IF('1. Ordersheet'!J649=\"\",\"\",'1. Ordersheet'!J649)","v":""},{"$f":"IF('1. Ordersheet'!K649=\"\",\"\",'1. Ordersheet'!K649)","v":""},{"$f":"IF('1. Ordersheet'!M649=\"\",\"\",'1. Ordersheet'!M649)","v":""},null,null,{"$f":"IF('1. Ordersheet'!AR649=\"\",\"\",'1. Ordersheet'!AR649)","v":""},{"$f":"IF('1. Ordersheet'!AE649=\"\",\"\",'1. Ordersheet'!AE649)","v":""}]
[{"$f":"IF('1. Ordersheet'!B650=\"\",\"\",'1. Ordersheet'!B650)","v":""},{"$f":"IF('1. Ordersheet'!I650=\"\",\"\",'1. Ordersheet'!I650)","v":""},{"$f":"IF('1. Ordersheet'!J650=\"\",\"\",'1. Ordersheet'!J650)","v":""},{"$f":"IF('1. Ordersheet'!K650=\"\",\"\",'1. Ordersheet'!K650)","v":""},{"$f":"IF('1. Ordersheet'!M650=\"\",\"\",'1. Ordersheet'!M650)","v":""},null,null,{"$f":"IF('1. Ordersheet'!AR650=\"\",\"\",'1. Ordersheet'!AR650)","v":""},{"$f":"IF('1. Ordersheet'!AE650=\"\",\"\",'1. Ordersheet'!AE650)","v":""}]
[{"$f":"IF('1. Ordersheet'!B651=\"\",\"\",'1. Ordersheet'!B651)","v":""},{"$f":"IF('1. Ordersheet'!I651=\"\",\"\",'1. Ordersheet'!I651)","v":""},{"$f":"IF('1. Ordersheet'!J651=\"\",\"\",'1. Ordersheet'!J651)","v":""},{"$f":"IF('1. Ordersheet'!K651=\"\",\"\",'1. Ordersheet'!K651)","v":""},{"$f":"IF('1. Ordersheet'!M651=\"\",\"\",'1. Ordersheet'!M651)","v":""},null,null,{"$f":"IF('1. Ordersheet'!AR651=\"\",\"\",'1. Ordersheet'!AR651)","v":""},{"$f":"IF('1. Ordersheet'!AE651=\"\",\"\",'1. Ordersheet'!AE651)","v":""}]
[{"$f":"IF('1. Ordersheet'!B652=\"\",\"\",'1. Ordersheet'!B652)","v":""},{"$f":"IF('1. Ordersheet'!I652=\"\",\"\",'1. Ordersheet'!I652)","v":""},{"$f":"IF('1. Ordersheet'!J652=\"\",\"\",'1. Ordersheet'!J652)","v":""},{"$f":"IF('1. Ordersheet'!K652=\"\",\"\",'1. Ordersheet'!K652)","v":""},{"$f":"IF('1. Ordersheet'!M652=\"\",\"\",'1. Ordersheet'!M652)","v":""},null,null,{"$f":"IF('1. Ordersheet'!AR652=\"\",\"\",'1. Ordersheet'!AR652)","v":""},{"$f":"IF('1. Ordersheet'!AE652=\"\",\"\",'1. Ordersheet'!AE652)","v":""}]
[{"$f":"IF('1. Ordersheet'!B653=\"\",\"\",'1. Ordersheet'!B653)","v":""},{"$f":"IF('1. Ordersheet'!I653=\"\",\"\",'1. Ordersheet'!I653)","v":""},{"$f":"IF('1. Ordersheet'!J653=\"\",\"\",'1. Ordersheet'!J653)","v":""},{"$f":"IF('1. Ordersheet'!K653=\"\",\"\",'1. Ordersheet'!K653)","v":""},{"$f":"IF('1. Ordersheet'!M653=\"\",\"\",'1. Ordersheet'!M653)","v":""},null,null,{"$f":"IF('1. Ordersheet'!AR653=\"\",\"\",'1. Ordersheet'!AR653)","v":""},{"$f":"IF('1. Ordersheet'!AE653=\"\",\"\",'1. Ordersheet'!AE653)","v":""}]
[{"$f":"IF('1. Ordersheet'!B654=\"\",\"\",'1. Ordersheet'!B654)","v":""},{"$f":"IF('1. Ordersheet'!I654=\"\",\"\",'1. Ordersheet'!I654)","v":""},{"$f":"IF('1. Ordersheet'!J654=\"\",\"\",'1. Ordersheet'!J654)","v":""},{"$f":"IF('1. Ordersheet'!K654=\"\",\"\",'1. Ordersheet'!K654)","v":""},{"$f":"IF('1. Ordersheet'!M654=\"\",\"\",'1. Ordersheet'!M654)","v":""},null,null,{"$f":"IF('1. Ordersheet'!AR654=\"\",\"\",'1. Ordersheet'!AR654)","v":""},{"$f":"IF('1. Ordersheet'!AE654=\"\",\"\",'1. Ordersheet'!AE654)","v":""}]
[{"$f":"IF('1. Ordersheet'!B655=\"\",\"\",'1. Ordersheet'!B655)","v":""},{"$f":"IF('1. Ordersheet'!I655=\"\",\"\",'1. Ordersheet'!I655)","v":""},{"$f":"IF('1. Ordersheet'!J655=\"\",\"\",'1. Ordersheet'!J655)","v":""},{"$f":"IF('1. Ordersheet'!K655=\"\",\"\",'1. Ordersheet'!K655)","v":""},{"$f":"IF('1. Ordersheet'!M655=\"\",\"\",'1. Ordersheet'!M655)","v":""},null,null,{"$f":"IF('1. Ordersheet'!AR655=\"\",\"\",'1. Ordersheet'!AR655)","v":""},{"$f":"IF('1. Ordersheet'!AE655=\"\",\"\",'1. Ordersheet'!AE655)","v":""}]
[{"$f":"IF('1. Ordersheet'!B656=\"\",\"\",'1. Ordersheet'!B656)","v":""},{"$f":"IF('1. Ordersheet'!I656=\"\",\"\",'1. Ordersheet'!I656)","v":""},{"$f":"IF('1. Ordersheet'!J656=\"\",\"\",'1. Ordersheet'!J656)","v":""},{"$f":"IF('1. Ordersheet'!K656=\"\",\"\",'1. Ordersheet'!K656)","v":""},{"$f":"IF('1. Ordersheet'!M656=\"\",\"\",'1. Ordersheet'!M656)","v":""},null,null,{"$f":"IF('1. Ordersheet'!AR656=\"\",\"\",'1. Ordersheet'!AR656)","v":""},{"$f":"IF('1. Ordersheet'!AE656=\"\",\"\",'1. Ordersheet'!AE656)","v":""}]
[{"$f":"IF('1. Ordersheet'!B657=\"\",\"\",'1. Ordersheet'!B657)","v":""},{"$f":"IF('1. Ordersheet'!I657=\"\",\"\",'1. Ordersheet'!I657)","v":""},{"$f":"IF('1. Ordersheet'!J657=\"\",\"\",'1. Ordersheet'!J657)","v":""},{"$f":"IF('1. Ordersheet'!K657=\"\",\"\",'1. Ordersheet'!K657)","v":""},{"$f":"IF('1. Ordersheet'!M657=\"\",\"\",'1. Ordersheet'!M657)","v":""},null,null,{"$f":"IF('1. Ordersheet'!AR657=\"\",\"\",'1. Ordersheet'!AR657)","v":""},{"$f":"IF('1. Ordersheet'!AE657=\"\",\"\",'1. Ordersheet'!AE657)","v":""}]
[{"$f":"IF('1. Ordersheet'!B658=\"\",\"\",'1. Ordersheet'!B658)","v":""},{"$f":"IF('1. Ordersheet'!I658=\"\",\"\",'1. Ordersheet'!I658)","v":""},{"$f":"IF('1. Ordersheet'!J658=\"\",\"\",'1. Ordersheet'!J658)","v":""},{"$f":"IF('1. Ordersheet'!K658=\"\",\"\",'1. Ordersheet'!K658)","v":""},{"$f":"IF('1. Ordersheet'!M658=\"\",\"\",'1. Ordersheet'!M658)","v":""},null,null,{"$f":"IF('1. Ordersheet'!AR658=\"\",\"\",'1. Ordersheet'!AR658)","v":""},{"$f":"IF('1. Ordersheet'!AE658=\"\",\"\",'1. Ordersheet'!AE658)","v":""}]
[{"$f":"IF('1. Ordersheet'!B659=\"\",\"\",'1. Ordersheet'!B659)","v":""},{"$f":"IF('1. Ordersheet'!I659=\"\",\"\",'1. Ordersheet'!I659)","v":""},{"$f":"IF('1. Ordersheet'!J659=\"\",\"\",'1. Ordersheet'!J659)","v":""},{"$f":"IF('1. Ordersheet'!K659=\"\",\"\",'1. Ordersheet'!K659)","v":""},{"$f":"IF('1. Ordersheet'!M659=\"\",\"\",'1. Ordersheet'!M659)","v":""},null,null,{"$f":"IF('1. Ordersheet'!AR659=\"\",\"\",'1. Ordersheet'!AR659)","v":""},{"$f":"IF('1. Ordersheet'!AE659=\"\",\"\",'1. Ordersheet'!AE659)","v":""}]
[{"$f":"IF('1. Ordersheet'!B660=\"\",\"\",'1. Ordersheet'!B660)","v":""},{"$f":"IF('1. Ordersheet'!I660=\"\",\"\",'1. Ordersheet'!I660)","v":""},{"$f":"IF('1. Ordersheet'!J660=\"\",\"\",'1. Ordersheet'!J660)","v":""},{"$f":"IF('1. Ordersheet'!K660=\"\",\"\",'1. Ordersheet'!K660)","v":""},{"$f":"IF('1. Ordersheet'!M660=\"\",\"\",'1. Ordersheet'!M660)","v":""},null,null,{"$f":"IF('1. Ordersheet'!AR660=\"\",\"\",'1. Ordersheet'!AR660)","v":""},{"$f":"IF('1. Ordersheet'!AE660=\"\",\"\",'1. Ordersheet'!AE660)","v":""}]
[{"$f":"IF('1. Ordersheet'!B661=\"\",\"\",'1. Ordersheet'!B661)","v":""},{"$f":"IF('1. Ordersheet'!I661=\"\",\"\",'1. Ordersheet'!I661)","v":""},{"$f":"IF('1. Ordersheet'!J661=\"\",\"\",'1. Ordersheet'!J661)","v":""},{"$f":"IF('1. Ordersheet'!K661=\"\",\"\",'1. Ordersheet'!K661)","v":""},{"$f":"IF('1. Ordersheet'!M661=\"\",\"\",'1. Ordersheet'!M661)","v":""},null,null,{"$f":"IF('1. Ordersheet'!AR661=\"\",\"\",'1. Ordersheet'!AR661)","v":""},{"$f":"IF('1. Ordersheet'!AE661=\"\",\"\",'1. Ordersheet'!AE661)","v":""}]
[{"$f":"IF('1. Ordersheet'!B662=\"\",\"\",'1. Ordersheet'!B662)","v":""},{"$f":"IF('1. Ordersheet'!I662=\"\",\"\",'1. Ordersheet'!I662)","v":""},{"$f":"IF('1. Ordersheet'!J662=\"\",\"\",'1. Ordersheet'!J662)","v":""},{"$f":"IF('1. Ordersheet'!K662=\"\",\"\",'1. Ordersheet'!K662)","v":""},{"$f":"IF('1. Ordersheet'!M662=\"\",\"\",'1. Ordersheet'!M662)","v":""},null,null,{"$f":"IF('1. Ordersheet'!AR662=\"\",\"\",'1. Ordersheet'!AR662)","v":""},{"$f":"IF('1. Ordersheet'!AE662=\"\",\"\",'1. Ordersheet'!AE662)","v":""}]
[{"$f":"IF('1. Ordersheet'!B663=\"\",\"\",'1. Ordersheet'!B663)","v":""},{"$f":"IF('1. Ordersheet'!I663=\"\",\"\",'1. Ordersheet'!I663)","v":""},{"$f":"IF('1. Ordersheet'!J663=\"\",\"\",'1. Ordersheet'!J663)","v":""},{"$f":"IF('1. Ordersheet'!K663=\"\",\"\",'1. Ordersheet'!K663)","v":""},{"$f":"IF('1. Ordersheet'!M663=\"\",\"\",'1. Ordersheet'!M663)","v":""},null,null,{"$f":"IF('1. Ordersheet'!AR663=\"\",\"\",'1. Ordersheet'!AR663)","v":""},{"$f":"IF('1. Ordersheet'!AE663=\"\",\"\",'1. Ordersheet'!AE663)","v":""}]
[{"$f":"IF('1. Ordersheet'!B664=\"\",\"\",'1. Ordersheet'!B664)","v":""},{"$f":"IF('1. Ordersheet'!I664=\"\",\"\",'1. Ordersheet'!I664)","v":""},{"$f":"IF('1. Ordersheet'!J664=\"\",\"\",'1. Ordersheet'!J664)","v":""},{"$f":"IF('1. Ordersheet'!K664=\"\",\"\",'1. Ordersheet'!K664)","v":""},{"$f":"IF('1. Ordersheet'!M664=\"\",\"\",'1. Ordersheet'!M664)","v":""},null,null,{"$f":"IF('1. Ordersheet'!AR664=\"\",\"\",'1. Ordersheet'!AR664)","v":""},{"$f":"IF('1. Ordersheet'!AE664=\"\",\"\",'1. Ordersheet'!AE664)","v":""}]
[{"$f":"IF('1. Ordersheet'!B665=\"\",\"\",'1. Ordersheet'!B665)","v":""},{"$f":"IF('1. Ordersheet'!I665=\"\",\"\",'1. Ordersheet'!I665)","v":""},{"$f":"IF('1. Ordersheet'!J665=\"\",\"\",'1. Ordersheet'!J665)","v":""},{"$f":"IF('1. Ordersheet'!K665=\"\",\"\",'1. Ordersheet'!K665)","v":""},{"$f":"IF('1. Ordersheet'!M665=\"\",\"\",'1. Ordersheet'!M665)","v":""},null,null,{"$f":"IF('1. Ordersheet'!AR665=\"\",\"\",'1. Ordersheet'!AR665)","v":""},{"$f":"IF('1. Ordersheet'!AE665=\"\",\"\",'1. Ordersheet'!AE665)","v":""}]
[{"$f":"IF('1. Ordersheet'!B666=\"\",\"\",'1. Ordersheet'!B666)","v":""},{"$f":"IF('1. Ordersheet'!I666=\"\",\"\",'1. Ordersheet'!I666)","v":""},{"$f":"IF('1. Ordersheet'!J666=\"\",\"\",'1. Ordersheet'!J666)","v":""},{"$f":"IF('1. Ordersheet'!K666=\"\",\"\",'1. Ordersheet'!K666)","v":""},{"$f":"IF('1. Ordersheet'!M666=\"\",\"\",'1. Ordersheet'!M666)","v":""},null,null,{"$f":"IF('1. Ordersheet'!AR666=\"\",\"\",'1. Ordersheet'!AR666)","v":""},{"$f":"IF('1. Ordersheet'!AE666=\"\",\"\",'1. Ordersheet'!AE666)","v":""}]
[{"$f":"IF('1. Ordersheet'!B667=\"\",\"\",'1. Ordersheet'!B667)","v":""},{"$f":"IF('1. Ordersheet'!I667=\"\",\"\",'1. Ordersheet'!I667)","v":""},{"$f":"IF('1. Ordersheet'!J667=\"\",\"\",'1. Ordersheet'!J667)","v":""},{"$f":"IF('1. Ordersheet'!K667=\"\",\"\",'1. Ordersheet'!K667)","v":""},{"$f":"IF('1. Ordersheet'!M667=\"\",\"\",'1. Ordersheet'!M667)","v":""},null,null,{"$f":"IF('1. Ordersheet'!AR667=\"\",\"\",'1. Ordersheet'!AR667)","v":""},{"$f":"IF('1. Ordersheet'!AE667=\"\",\"\",'1. Ordersheet'!AE667)","v":""}]
[{"$f":"IF('1. Ordersheet'!B668=\"\",\"\",'1. Ordersheet'!B668)","v":""},{"$f":"IF('1. Ordersheet'!I668=\"\",\"\",'1. Ordersheet'!I668)","v":""},{"$f":"IF('1. Ordersheet'!J668=\"\",\"\",'1. Ordersheet'!J668)","v":""},{"$f":"IF('1. Ordersheet'!K668=\"\",\"\",'1. Ordersheet'!K668)","v":""},{"$f":"IF('1. Ordersheet'!M668=\"\",\"\",'1. Ordersheet'!M668)","v":""},null,null,{"$f":"IF('1. Ordersheet'!AR668=\"\",\"\",'1. Ordersheet'!AR668)","v":""},{"$f":"IF('1. Ordersheet'!AE668=\"\",\"\",'1. Ordersheet'!AE668)","v":""}]
[{"$f":"IF('1. Ordersheet'!B669=\"\",\"\",'1. Ordersheet'!B669)","v":""},{"$f":"IF('1. Ordersheet'!I669=\"\",\"\",'1. Ordersheet'!I669)","v":""},{"$f":"IF('1. Ordersheet'!J669=\"\",\"\",'1. Ordersheet'!J669)","v":""},{"$f":"IF('1. Ordersheet'!K669=\"\",\"\",'1. Ordersheet'!K669)","v":""},{"$f":"IF('1. Ordersheet'!M669=\"\",\"\",'1. Ordersheet'!M669)","v":""},null,null,{"$f":"IF('1. Ordersheet'!AR669=\"\",\"\",'1. Ordersheet'!AR669)","v":""},{"$f":"IF('1. Ordersheet'!AE669=\"\",\"\",'1. Ordersheet'!AE669)","v":""}]
[{"$f":"IF('1. Ordersheet'!B670=\"\",\"\",'1. Ordersheet'!B670)","v":""},{"$f":"IF('1. Ordersheet'!I670=\"\",\"\",'1. Ordersheet'!I670)","v":""},{"$f":"IF('1. Ordersheet'!J670=\"\",\"\",'1. Ordersheet'!J670)","v":""},{"$f":"IF('1. Ordersheet'!K670=\"\",\"\",'1. Ordersheet'!K670)","v":""},{"$f":"IF('1. Ordersheet'!M670=\"\",\"\",'1. Ordersheet'!M670)","v":""},null,null,{"$f":"IF('1. Ordersheet'!AR670=\"\",\"\",'1. Ordersheet'!AR670)","v":""},{"$f":"IF('1. Ordersheet'!AE670=\"\",\"\",'1. Ordersheet'!AE670)","v":""}]
[{"$f":"IF('1. Ordersheet'!B671=\"\",\"\",'1. Ordersheet'!B671)","v":""},{"$f":"IF('1. Ordersheet'!I671=\"\",\"\",'1. Ordersheet'!I671)","v":""},{"$f":"IF('1. Ordersheet'!J671=\"\",\"\",'1. Ordersheet'!J671)","v":""},{"$f":"IF('1. Ordersheet'!K671=\"\",\"\",'1. Ordersheet'!K671)","v":""},{"$f":"IF('1. Ordersheet'!M671=\"\",\"\",'1. Ordersheet'!M671)","v":""},null,null,{"$f":"IF('1. Ordersheet'!AR671=\"\",\"\",'1. Ordersheet'!AR671)","v":""},{"$f":"IF('1. Ordersheet'!AE671=\"\",\"\",'1. Ordersheet'!AE671)","v":""}]
[{"$f":"IF('1. Ordersheet'!B672=\"\",\"\",'1. Ordersheet'!B672)","v":""},{"$f":"IF('1. Ordersheet'!I672=\"\",\"\",'1. Ordersheet'!I672)","v":""},{"$f":"IF('1. Ordersheet'!J672=\"\",\"\",'1. Ordersheet'!J672)","v":""},{"$f":"IF('1. Ordersheet'!K672=\"\",\"\",'1. Ordersheet'!K672)","v":""},{"$f":"IF('1. Ordersheet'!M672=\"\",\"\",'1. Ordersheet'!M672)","v":""},null,null,{"$f":"IF('1. Ordersheet'!AR672=\"\",\"\",'1. Ordersheet'!AR672)","v":""},{"$f":"IF('1. Ordersheet'!AE672=\"\",\"\",'1. Ordersheet'!AE672)","v":""}]
[{"$f":"IF('1. Ordersheet'!B673=\"\",\"\",'1. Ordersheet'!B673)","v":""},{"$f":"IF('1. Ordersheet'!I673=\"\",\"\",'1. Ordersheet'!I673)","v":""},{"$f":"IF('1. Ordersheet'!J673=\"\",\"\",'1. Ordersheet'!J673)","v":""},{"$f":"IF('1. Ordersheet'!K673=\"\",\"\",'1. Ordersheet'!K673)","v":""},{"$f":"IF('1. Ordersheet'!M673=\"\",\"\",'1. Ordersheet'!M673)","v":""},null,null,{"$f":"IF('1. Ordersheet'!AR673=\"\",\"\",'1. Ordersheet'!AR673)","v":""},{"$f":"IF('1. Ordersheet'!AE673=\"\",\"\",'1. Ordersheet'!AE673)","v":""}]
[{"$f":"IF('1. Ordersheet'!B674=\"\",\"\",'1. Ordersheet'!B674)","v":""},{"$f":"IF('1. Ordersheet'!I674=\"\",\"\",'1. Ordersheet'!I674)","v":""},{"$f":"IF('1. Ordersheet'!J674=\"\",\"\",'1. Ordersheet'!J674)","v":""},{"$f":"IF('1. Ordersheet'!K674=\"\",\"\",'1. Ordersheet'!K674)","v":""},{"$f":"IF('1. Ordersheet'!M674=\"\",\"\",'1. Ordersheet'!M674)","v":""},null,null,{"$f":"IF('1. Ordersheet'!AR674=\"\",\"\",'1. Ordersheet'!AR674)","v":""},{"$f":"IF('1. Ordersheet'!AE674=\"\",\"\",'1. Ordersheet'!AE674)","v":""}]
[{"$f":"IF('1. Ordersheet'!B675=\"\",\"\",'1. Ordersheet'!B675)","v":""},{"$f":"IF('1. Ordersheet'!I675=\"\",\"\",'1. Ordersheet'!I675)","v":""},{"$f":"IF('1. Ordersheet'!J675=\"\",\"\",'1. Ordersheet'!J675)","v":""},{"$f":"IF('1. Ordersheet'!K675=\"\",\"\",'1. Ordersheet'!K675)","v":""},{"$f":"IF('1. Ordersheet'!M675=\"\",\"\",'1. Ordersheet'!M675)","v":""},null,null,{"$f":"IF('1. Ordersheet'!AR675=\"\",\"\",'1. Ordersheet'!AR675)","v":""},{"$f":"IF('1. Ordersheet'!AE675=\"\",\"\",'1. Ordersheet'!AE675)","v":""}]
[{"$f":"IF('1. Ordersheet'!B676=\"\",\"\",'1. Ordersheet'!B676)","v":""},{"$f":"IF('1. Ordersheet'!I676=\"\",\"\",'1. Ordersheet'!I676)","v":""},{"$f":"IF('1. Ordersheet'!J676=\"\",\"\",'1. Ordersheet'!J676)","v":""},{"$f":"IF('1. Ordersheet'!K676=\"\",\"\",'1. Ordersheet'!K676)","v":""},{"$f":"IF('1. Ordersheet'!M676=\"\",\"\",'1. Ordersheet'!M676)","v":""},null,null,{"$f":"IF('1. Ordersheet'!AR676=\"\",\"\",'1. Ordersheet'!AR676)","v":""},{"$f":"IF('1. Ordersheet'!AE676=\"\",\"\",'1. Ordersheet'!AE676)","v":""}]
[{"$f":"IF('1. Ordersheet'!B677=\"\",\"\",'1. Ordersheet'!B677)","v":""},{"$f":"IF('1. Ordersheet'!I677=\"\",\"\",'1. Ordersheet'!I677)","v":""},{"$f":"IF('1. Ordersheet'!J677=\"\",\"\",'1. Ordersheet'!J677)","v":""},{"$f":"IF('1. Ordersheet'!K677=\"\",\"\",'1. Ordersheet'!K677)","v":""},{"$f":"IF('1. Ordersheet'!M677=\"\",\"\",'1. Ordersheet'!M677)","v":""},null,null,{"$f":"IF('1. Ordersheet'!AR677=\"\",\"\",'1. Ordersheet'!AR677)","v":""},{"$f":"IF('1. Ordersheet'!AE677=\"\",\"\",'1. Ordersheet'!AE677)","v":""}]
[{"$f":"IF('1. Ordersheet'!B678=\"\",\"\",'1. Ordersheet'!B678)","v":""},{"$f":"IF('1. Ordersheet'!I678=\"\",\"\",'1. Ordersheet'!I678)","v":""},{"$f":"IF('1. Ordersheet'!J678=\"\",\"\",'1. Ordersheet'!J678)","v":""},{"$f":"IF('1. Ordersheet'!K678=\"\",\"\",'1. Ordersheet'!K678)","v":""},{"$f":"IF('1. Ordersheet'!M678=\"\",\"\",'1. Ordersheet'!M678)","v":""},null,null,{"$f":"IF('1. Ordersheet'!AR678=\"\",\"\",'1. Ordersheet'!AR678)","v":""},{"$f":"IF('1. Ordersheet'!AE678=\"\",\"\",'1. Ordersheet'!AE678)","v":""}]
[{"$f":"IF('1. Ordersheet'!B679=\"\",\"\",'1. Ordersheet'!B679)","v":""},{"$f":"IF('1. Ordersheet'!I679=\"\",\"\",'1. Ordersheet'!I679)","v":""},{"$f":"IF('1. Ordersheet'!J679=\"\",\"\",'1. Ordersheet'!J679)","v":""},{"$f":"IF('1. Ordersheet'!K679=\"\",\"\",'1. Ordersheet'!K679)","v":""},{"$f":"IF('1. Ordersheet'!M679=\"\",\"\",'1. Ordersheet'!M679)","v":""},null,null,{"$f":"IF('1. Ordersheet'!AR679=\"\",\"\",'1. Ordersheet'!AR679)","v":""},{"$f":"IF('1. Ordersheet'!AE679=\"\",\"\",'1. Ordersheet'!AE679)","v":""}]
[{"$f":"IF('1. Ordersheet'!B680=\"\",\"\",'1. Ordersheet'!B680)","v":""},{"$f":"IF('1. Ordersheet'!I680=\"\",\"\",'1. Ordersheet'!I680)","v":""},{"$f":"IF('1. Ordersheet'!J680=\"\",\"\",'1. Ordersheet'!J680)","v":""},{"$f":"IF('1. Ordersheet'!K680=\"\",\"\",'1. Ordersheet'!K680)","v":""},{"$f":"IF('1. Ordersheet'!M680=\"\",\"\",'1. Ordersheet'!M680)","v":""},null,null,{"$f":"IF('1. Ordersheet'!AR680=\"\",\"\",'1. Ordersheet'!AR680)","v":""},{"$f":"IF('1. Ordersheet'!AE680=\"\",\"\",'1. Ordersheet'!AE680)","v":""}]
[{"$f":"IF('1. Ordersheet'!B681=\"\",\"\",'1. Ordersheet'!B681)","v":""},{"$f":"IF('1. Ordersheet'!I681=\"\",\"\",'1. Ordersheet'!I681)","v":""},{"$f":"IF('1. Ordersheet'!J681=\"\",\"\",'1. Ordersheet'!J681)","v":""},{"$f":"IF('1. Ordersheet'!K681=\"\",\"\",'1. Ordersheet'!K681)","v":""},{"$f":"IF('1. Ordersheet'!M681=\"\",\"\",'1. Ordersheet'!M681)","v":""},null,null,{"$f":"IF('1. Ordersheet'!AR681=\"\",\"\",'1. Ordersheet'!AR681)","v":""},{"$f":"IF('1. Ordersheet'!AE681=\"\",\"\",'1. Ordersheet'!AE681)","v":""}]
[{"$f":"IF('1. Ordersheet'!B682=\"\",\"\",'1. Ordersheet'!B682)","v":""},{"$f":"IF('1. Ordersheet'!I682=\"\",\"\",'1. Ordersheet'!I682)","v":""},{"$f":"IF('1. Ordersheet'!J682=\"\",\"\",'1. Ordersheet'!J682)","v":""},{"$f":"IF('1. Ordersheet'!K682=\"\",\"\",'1. Ordersheet'!K682)","v":""},{"$f":"IF('1. Ordersheet'!M682=\"\",\"\",'1. Ordersheet'!M682)","v":""},null,null,{"$f":"IF('1. Ordersheet'!AR682=\"\",\"\",'1. Ordersheet'!AR682)","v":""},{"$f":"IF('1. Ordersheet'!AE682=\"\",\"\",'1. Ordersheet'!AE682)","v":""}]
[{"$f":"IF('1. Ordersheet'!B683=\"\",\"\",'1. Ordersheet'!B683)","v":""},{"$f":"IF('1. Ordersheet'!I683=\"\",\"\",'1. Ordersheet'!I683)","v":""},{"$f":"IF('1. Ordersheet'!J683=\"\",\"\",'1. Ordersheet'!J683)","v":""},{"$f":"IF('1. Ordersheet'!K683=\"\",\"\",'1. Ordersheet'!K683)","v":""},{"$f":"IF('1. Ordersheet'!M683=\"\",\"\",'1. Ordersheet'!M683)","v":""},null,null,{"$f":"IF('1. Ordersheet'!AR683=\"\",\"\",'1. Ordersheet'!AR683)","v":""},{"$f":"IF('1. Ordersheet'!AE683=\"\",\"\",'1. Ordersheet'!AE683)","v":""}]
[{"$f":"IF('1. Ordersheet'!B684=\"\",\"\",'1. Ordersheet'!B684)","v":""},{"$f":"IF('1. Ordersheet'!I684=\"\",\"\",'1. Ordersheet'!I684)","v":""},{"$f":"IF('1. Ordersheet'!J684=\"\",\"\",'1. Ordersheet'!J684)","v":""},{"$f":"IF('1. Ordersheet'!K684=\"\",\"\",'1. Ordersheet'!K684)","v":""},{"$f":"IF('1. Ordersheet'!M684=\"\",\"\",'1. Ordersheet'!M684)","v":""},null,null,{"$f":"IF('1. Ordersheet'!AR684=\"\",\"\",'1. Ordersheet'!AR684)","v":""},{"$f":"IF('1. Ordersheet'!AE684=\"\",\"\",'1. Ordersheet'!AE684)","v":""}]
[{"$f":"IF('1. Ordersheet'!B685=\"\",\"\",'1. Ordersheet'!B685)","v":""},{"$f":"IF('1. Ordersheet'!I685=\"\",\"\",'1. Ordersheet'!I685)","v":""},{"$f":"IF('1. Ordersheet'!J685=\"\",\"\",'1. Ordersheet'!J685)","v":""},{"$f":"IF('1. Ordersheet'!K685=\"\",\"\",'1. Ordersheet'!K685)","v":""},{"$f":"IF('1. Ordersheet'!M685=\"\",\"\",'1. Ordersheet'!M685)","v":""},null,null,{"$f":"IF('1. Ordersheet'!AR685=\"\",\"\",'1. Ordersheet'!AR685)","v":""},{"$f":"IF('1. Ordersheet'!AE685=\"\",\"\",'1. Ordersheet'!AE685)","v":""}]
[{"$f":"IF('1. Ordersheet'!B686=\"\",\"\",'1. Ordersheet'!B686)","v":""},{"$f":"IF('1. Ordersheet'!I686=\"\",\"\",'1. Ordersheet'!I686)","v":""},{"$f":"IF('1. Ordersheet'!J686=\"\",\"\",'1. Ordersheet'!J686)","v":""},{"$f":"IF('1. Ordersheet'!K686=\"\",\"\",'1. Ordersheet'!K686)","v":""},{"$f":"IF('1. Ordersheet'!M686=\"\",\"\",'1. Ordersheet'!M686)","v":""},null,null,{"$f":"IF('1. Ordersheet'!AR686=\"\",\"\",'1. Ordersheet'!AR686)","v":""},{"$f":"IF('1. Ordersheet'!AE686=\"\",\"\",'1. Ordersheet'!AE686)","v":""}]
[{"$f":"IF('1. Ordersheet'!B687=\"\",\"\",'1. Ordersheet'!B687)","v":""},{"$f":"IF('1. Ordersheet'!I687=\"\",\"\",'1. Ordersheet'!I687)","v":""},{"$f":"IF('1. Ordersheet'!J687=\"\",\"\",'1. Ordersheet'!J687)","v":""},{"$f":"IF('1. Ordersheet'!K687=\"\",\"\",'1. Ordersheet'!K687)","v":""},{"$f":"IF('1. Ordersheet'!M687=\"\",\"\",'1. Ordersheet'!M687)","v":""},null,null,{"$f":"IF('1. Ordersheet'!AR687=\"\",\"\",'1. Ordersheet'!AR687)","v":""},{"$f":"IF('1. Ordersheet'!AE687=\"\",\"\",'1. Ordersheet'!AE687)","v":""}]
[{"$f":"IF('1. Ordersheet'!B688=\"\",\"\",'1. Ordersheet'!B688)","v":""},{"$f":"IF('1. Ordersheet'!I688=\"\",\"\",'1. Ordersheet'!I688)","v":""},{"$f":"IF('1. Ordersheet'!J688=\"\",\"\",'1. Ordersheet'!J688)","v":""},{"$f":"IF('1. Ordersheet'!K688=\"\",\"\",'1. Ordersheet'!K688)","v":""},{"$f":"IF('1. Ordersheet'!M688=\"\",\"\",'1. Ordersheet'!M688)","v":""},null,null,{"$f":"IF('1. Ordersheet'!AR688=\"\",\"\",'1. Ordersheet'!AR688)","v":""},{"$f":"IF('1. Ordersheet'!AE688=\"\",\"\",'1. Ordersheet'!AE688)","v":""}]
[{"$f":"IF('1. Ordersheet'!B689=\"\",\"\",'1. Ordersheet'!B689)","v":""},{"$f":"IF('1. Ordersheet'!I689=\"\",\"\",'1. Ordersheet'!I689)","v":""},{"$f":"IF('1. Ordersheet'!J689=\"\",\"\",'1. Ordersheet'!J689)","v":""},{"$f":"IF('1. Ordersheet'!K689=\"\",\"\",'1. Ordersheet'!K689)","v":""},{"$f":"IF('1. Ordersheet'!M689=\"\",\"\",'1. Ordersheet'!M689)","v":""},null,null,{"$f":"IF('1. Ordersheet'!AR689=\"\",\"\",'1. Ordersheet'!AR689)","v":""},{"$f":"IF('1. Ordersheet'!AE689=\"\",\"\",'1. Ordersheet'!AE689)","v":""}]
[{"$f":"IF('1. Ordersheet'!B690=\"\",\"\",'1. Ordersheet'!B690)","v":""},{"$f":"IF('1. Ordersheet'!I690=\"\",\"\",'1. Ordersheet'!I690)","v":""},{"$f":"IF('1. Ordersheet'!J690=\"\",\"\",'1. Ordersheet'!J690)","v":""},{"$f":"IF('1. Ordersheet'!K690=\"\",\"\",'1. Ordersheet'!K690)","v":""},{"$f":"IF('1. Ordersheet'!M690=\"\",\"\",'1. Ordersheet'!M690)","v":""},null,null,{"$f":"IF('1. Ordersheet'!AR690=\"\",\"\",'1. Ordersheet'!AR690)","v":""},{"$f":"IF('1. Ordersheet'!AE690=\"\",\"\",'1. Ordersheet'!AE690)","v":""}]
[{"$f":"IF('1. Ordersheet'!B691=\"\",\"\",'1. Ordersheet'!B691)","v":""},{"$f":"IF('1. Ordersheet'!I691=\"\",\"\",'1. Ordersheet'!I691)","v":""},{"$f":"IF('1. Ordersheet'!J691=\"\",\"\",'1. Ordersheet'!J691)","v":""},{"$f":"IF('1. Ordersheet'!K691=\"\",\"\",'1. Ordersheet'!K691)","v":""},{"$f":"IF('1. Ordersheet'!M691=\"\",\"\",'1. Ordersheet'!M691)","v":""},null,null,{"$f":"IF('1. Ordersheet'!AR691=\"\",\"\",'1. Ordersheet'!AR691)","v":""},{"$f":"IF('1. Ordersheet'!AE691=\"\",\"\",'1. Ordersheet'!AE691)","v":""}]
[{"$f":"IF('1. Ordersheet'!B692=\"\",\"\",'1. Ordersheet'!B692)","v":""},{"$f":"IF('1. Ordersheet'!I692=\"\",\"\",'1. Ordersheet'!I692)","v":""},{"$f":"IF('1. Ordersheet'!J692=\"\",\"\",'1. Ordersheet'!J692)","v":""},{"$f":"IF('1. Ordersheet'!K692=\"\",\"\",'1. Ordersheet'!K692)","v":""},{"$f":"IF('1. Ordersheet'!M692=\"\",\"\",'1. Ordersheet'!M692)","v":""},null,null,{"$f":"IF('1. Ordersheet'!AR692=\"\",\"\",'1. Ordersheet'!AR692)","v":""},{"$f":"IF('1. Ordersheet'!AE692=\"\",\"\",'1. Ordersheet'!AE692)","v":""}]
[{"$f":"IF('1. Ordersheet'!B693=\"\",\"\",'1. Ordersheet'!B693)","v":""},{"$f":"IF('1. Ordersheet'!I693=\"\",\"\",'1. Ordersheet'!I693)","v":""},{"$f":"IF('1. Ordersheet'!J693=\"\",\"\",'1. Ordersheet'!J693)","v":""},{"$f":"IF('1. Ordersheet'!K693=\"\",\"\",'1. Ordersheet'!K693)","v":""},{"$f":"IF('1. Ordersheet'!M693=\"\",\"\",'1. Ordersheet'!M693)","v":""},null,null,{"$f":"IF('1. Ordersheet'!AR693=\"\",\"\",'1. Ordersheet'!AR693)","v":""},{"$f":"IF('1. Ordersheet'!AE693=\"\",\"\",'1. Ordersheet'!AE693)","v":""}]
[{"$f":"IF('1. Ordersheet'!B694=\"\",\"\",'1. Ordersheet'!B694)","v":""},{"$f":"IF('1. Ordersheet'!I694=\"\",\"\",'1. Ordersheet'!I694)","v":""},{"$f":"IF('1. Ordersheet'!J694=\"\",\"\",'1. Ordersheet'!J694)","v":""},{"$f":"IF('1. Ordersheet'!K694=\"\",\"\",'1. Ordersheet'!K694)","v":""},{"$f":"IF('1. Ordersheet'!M694=\"\",\"\",'1. Ordersheet'!M694)","v":""},null,null,{"$f":"IF('1. Ordersheet'!AR694=\"\",\"\",'1. Ordersheet'!AR694)","v":""},{"$f":"IF('1. Ordersheet'!AE694=\"\",\"\",'1. Ordersheet'!AE694)","v":""}]
[{"$f":"IF('1. Ordersheet'!B695=\"\",\"\",'1. Ordersheet'!B695)","v":""},{"$f":"IF('1. Ordersheet'!I695=\"\",\"\",'1. Ordersheet'!I695)","v":""},{"$f":"IF('1. Ordersheet'!J695=\"\",\"\",'1. Ordersheet'!J695)","v":""},{"$f":"IF('1. Ordersheet'!K695=\"\",\"\",'1. Ordersheet'!K695)","v":""},{"$f":"IF('1. Ordersheet'!M695=\"\",\"\",'1. Ordersheet'!M695)","v":""},null,null,{"$f":"IF('1. Ordersheet'!AR695=\"\",\"\",'1. Ordersheet'!AR695)","v":""},{"$f":"IF('1. Ordersheet'!AE695=\"\",\"\",'1. Ordersheet'!AE695)","v":""}]
[{"$f":"IF('1. Ordersheet'!B696=\"\",\"\",'1. Ordersheet'!B696)","v":""},{"$f":"IF('1. Ordersheet'!I696=\"\",\"\",'1. Ordersheet'!I696)","v":""},{"$f":"IF('1. Ordersheet'!J696=\"\",\"\",'1. Ordersheet'!J696)","v":""},{"$f":"IF('1. Ordersheet'!K696=\"\",\"\",'1. Ordersheet'!K696)","v":""},{"$f":"IF('1. Ordersheet'!M696=\"\",\"\",'1. Ordersheet'!M696)","v":""},null,null,{"$f":"IF('1. Ordersheet'!AR696=\"\",\"\",'1. Ordersheet'!AR696)","v":""},{"$f":"IF('1. Ordersheet'!AE696=\"\",\"\",'1. Ordersheet'!AE696)","v":""}]
[{"$f":"IF('1. Ordersheet'!B697=\"\",\"\",'1. Ordersheet'!B697)","v":""},{"$f":"IF('1. Ordersheet'!I697=\"\",\"\",'1. Ordersheet'!I697)","v":""},{"$f":"IF('1. Ordersheet'!J697=\"\",\"\",'1. Ordersheet'!J697)","v":""},{"$f":"IF('1. Ordersheet'!K697=\"\",\"\",'1. Ordersheet'!K697)","v":""},{"$f":"IF('1. Ordersheet'!M697=\"\",\"\",'1. Ordersheet'!M697)","v":""},null,null,{"$f":"IF('1. Ordersheet'!AR697=\"\",\"\",'1. Ordersheet'!AR697)","v":""},{"$f":"IF('1. Ordersheet'!AE697=\"\",\"\",'1. Ordersheet'!AE697)","v":""}]
[{"$f":"IF('1. Ordersheet'!B698=\"\",\"\",'1. Ordersheet'!B698)","v":""},{"$f":"IF('1. Ordersheet'!I698=\"\",\"\",'1. Ordersheet'!I698)","v":""},{"$f":"IF('1. Ordersheet'!J698=\"\",\"\",'1. Ordersheet'!J698)","v":""},{"$f":"IF('1. Ordersheet'!K698=\"\",\"\",'1. Ordersheet'!K698)","v":""},{"$f":"IF('1. Ordersheet'!M698=\"\",\"\",'1. Ordersheet'!M698)","v":""},null,null,{"$f":"IF('1. Ordersheet'!AR698=\"\",\"\",'1. Ordersheet'!AR698)","v":""},{"$f":"IF('1. Ordersheet'!AE698=\"\",\"\",'1. Ordersheet'!AE698)","v":""}]
[{"$f":"IF('1. Ordersheet'!B699=\"\",\"\",'1. Ordersheet'!B699)","v":""},{"$f":"IF('1. Ordersheet'!I699=\"\",\"\",'1. Ordersheet'!I699)","v":""},{"$f":"IF('1. Ordersheet'!J699=\"\",\"\",'1. Ordersheet'!J699)","v":""},{"$f":"IF('1. Ordersheet'!K699=\"\",\"\",'1. Ordersheet'!K699)","v":""},{"$f":"IF('1. Ordersheet'!M699=\"\",\"\",'1. Ordersheet'!M699)","v":""},null,null,{"$f":"IF('1. Ordersheet'!AR699=\"\",\"\",'1. Ordersheet'!AR699)","v":""},{"$f":"IF('1. Ordersheet'!AE699=\"\",\"\",'1. Ordersheet'!AE699)","v":""}]
[{"$f":"IF('1. Ordersheet'!B700=\"\",\"\",'1. Ordersheet'!B700)","v":""},{"$f":"IF('1. Ordersheet'!I700=\"\",\"\",'1. Ordersheet'!I700)","v":""},{"$f":"IF('1. Ordersheet'!J700=\"\",\"\",'1. Ordersheet'!J700)","v":""},{"$f":"IF('1. Ordersheet'!K700=\"\",\"\",'1. Ordersheet'!K700)","v":""},{"$f":"IF('1. Ordersheet'!M700=\"\",\"\",'1. Ordersheet'!M700)","v":""},null,null,{"$f":"IF('1. Ordersheet'!AR700=\"\",\"\",'1. Ordersheet'!AR700)","v":""},{"$f":"IF('1. Ordersheet'!AE700=\"\",\"\",'1. Ordersheet'!AE700)","v":""}]
[{"$f":"IF('1. Ordersheet'!B701=\"\",\"\",'1. Ordersheet'!B701)","v":""},{"$f":"IF('1. Ordersheet'!I701=\"\",\"\",'1. Ordersheet'!I701)","v":""},{"$f":"IF('1. Ordersheet'!J701=\"\",\"\",'1. Ordersheet'!J701)","v":""},{"$f":"IF('1. Ordersheet'!K701=\"\",\"\",'1. Ordersheet'!K701)","v":""},{"$f":"IF('1. Ordersheet'!M701=\"\",\"\",'1. Ordersheet'!M701)","v":""},null,null,{"$f":"IF('1. Ordersheet'!AR701=\"\",\"\",'1. Ordersheet'!AR701)","v":""},{"$f":"IF('1. Ordersheet'!AE701=\"\",\"\",'1. Ordersheet'!AE701)","v":""}]
[{"$f":"IF('1. Ordersheet'!B702=\"\",\"\",'1. Ordersheet'!B702)","v":""},{"$f":"IF('1. Ordersheet'!I702=\"\",\"\",'1. Ordersheet'!I702)","v":""},{"$f":"IF('1. Ordersheet'!J702=\"\",\"\",'1. Ordersheet'!J702)","v":""},{"$f":"IF('1. Ordersheet'!K702=\"\",\"\",'1. Ordersheet'!K702)","v":""},{"$f":"IF('1. Ordersheet'!M702=\"\",\"\",'1. Ordersheet'!M702)","v":""},null,null,{"$f":"IF('1. Ordersheet'!AR702=\"\",\"\",'1. Ordersheet'!AR702)","v":""},{"$f":"IF('1. Ordersheet'!AE702=\"\",\"\",'1. Ordersheet'!AE702)","v":""}]
[{"$f":"IF('1. Ordersheet'!B703=\"\",\"\",'1. Ordersheet'!B703)","v":""},{"$f":"IF('1. Ordersheet'!I703=\"\",\"\",'1. Ordersheet'!I703)","v":""},{"$f":"IF('1. Ordersheet'!J703=\"\",\"\",'1. Ordersheet'!J703)","v":""},{"$f":"IF('1. Ordersheet'!K703=\"\",\"\",'1. Ordersheet'!K703)","v":""},{"$f":"IF('1. Ordersheet'!M703=\"\",\"\",'1. Ordersheet'!M703)","v":""},null,null,{"$f":"IF('1. Ordersheet'!AR703=\"\",\"\",'1. Ordersheet'!AR703)","v":""},{"$f":"IF('1. Ordersheet'!AE703=\"\",\"\",'1. Ordersheet'!AE703)","v":""}]
[{"$f":"IF('1. Ordersheet'!B704=\"\",\"\",'1. Ordersheet'!B704)","v":""},{"$f":"IF('1. Ordersheet'!I704=\"\",\"\",'1. Ordersheet'!I704)","v":""},{"$f":"IF('1. Ordersheet'!J704=\"\",\"\",'1. Ordersheet'!J704)","v":""},{"$f":"IF('1. Ordersheet'!K704=\"\",\"\",'1. Ordersheet'!K704)","v":""},{"$f":"IF('1. Ordersheet'!M704=\"\",\"\",'1. Ordersheet'!M704)","v":""},null,null,{"$f":"IF('1. Ordersheet'!AR704=\"\",\"\",'1. Ordersheet'!AR704)","v":""},{"$f":"IF('1. Ordersheet'!AE704=\"\",\"\",'1. Ordersheet'!AE704)","v":""}]
[{"$f":"IF('1. Ordersheet'!B705=\"\",\"\",'1. Ordersheet'!B705)","v":""},{"$f":"IF('1. Ordersheet'!I705=\"\",\"\",'1. Ordersheet'!I705)","v":""},{"$f":"IF('1. Ordersheet'!J705=\"\",\"\",'1. Ordersheet'!J705)","v":""},{"$f":"IF('1. Ordersheet'!K705=\"\",\"\",'1. Ordersheet'!K705)","v":""},{"$f":"IF('1. Ordersheet'!M705=\"\",\"\",'1. Ordersheet'!M705)","v":""},null,null,{"$f":"IF('1. Ordersheet'!AR705=\"\",\"\",'1. Ordersheet'!AR705)","v":""},{"$f":"IF('1. Ordersheet'!AE705=\"\",\"\",'1. Ordersheet'!AE705)","v":""}]
[{"$f":"IF('1. Ordersheet'!B706=\"\",\"\",'1. Ordersheet'!B706)","v":""},{"$f":"IF('1. Ordersheet'!I706=\"\",\"\",'1. Ordersheet'!I706)","v":""},{"$f":"IF('1. Ordersheet'!J706=\"\",\"\",'1. Ordersheet'!J706)","v":""},{"$f":"IF('1. Ordersheet'!K706=\"\",\"\",'1. Ordersheet'!K706)","v":""},{"$f":"IF('1. Ordersheet'!M706=\"\",\"\",'1. Ordersheet'!M706)","v":""},null,null,{"$f":"IF('1. Ordersheet'!AR706=\"\",\"\",'1. Ordersheet'!AR706)","v":""},{"$f":"IF('1. Ordersheet'!AE706=\"\",\"\",'1. Ordersheet'!AE706)","v":""}]
[{"$f":"IF('1. Ordersheet'!B707=\"\",\"\",'1. Ordersheet'!B707)","v":""},{"$f":"IF('1. Ordersheet'!I707=\"\",\"\",'1. Ordersheet'!I707)","v":""},{"$f":"IF('1. Ordersheet'!J707=\"\",\"\",'1. Ordersheet'!J707)","v":""},{"$f":"IF('1. Ordersheet'!K707=\"\",\"\",'1. Ordersheet'!K707)","v":""},{"$f":"IF('1. Ordersheet'!M707=\"\",\"\",'1. Ordersheet'!M707)","v":""},null,null,{"$f":"IF('1. Ordersheet'!AR707=\"\",\"\",'1. Ordersheet'!AR707)","v":""},{"$f":"IF('1. Ordersheet'!AE707=\"\",\"\",'1. Ordersheet'!AE707)","v":""}]
[{"$f":"IF('1. Ordersheet'!B708=\"\",\"\",'1. Ordersheet'!B708)","v":""},{"$f":"IF('1. Ordersheet'!I708=\"\",\"\",'1. Ordersheet'!I708)","v":""},{"$f":"IF('1. Ordersheet'!J708=\"\",\"\",'1. Ordersheet'!J708)","v":""},{"$f":"IF('1. Ordersheet'!K708=\"\",\"\",'1. Ordersheet'!K708)","v":""},{"$f":"IF('1. Ordersheet'!M708=\"\",\"\",'1. Ordersheet'!M708)","v":""},null,null,{"$f":"IF('1. Ordersheet'!AR708=\"\",\"\",'1. Ordersheet'!AR708)","v":""},{"$f":"IF('1. Ordersheet'!AE708=\"\",\"\",'1. Ordersheet'!AE708)","v":""}]
[{"$f":"IF('1. Ordersheet'!B709=\"\",\"\",'1. Ordersheet'!B709)","v":""},{"$f":"IF('1. Ordersheet'!I709=\"\",\"\",'1. Ordersheet'!I709)","v":""},{"$f":"IF('1. Ordersheet'!J709=\"\",\"\",'1. Ordersheet'!J709)","v":""},{"$f":"IF('1. Ordersheet'!K709=\"\",\"\",'1. Ordersheet'!K709)","v":""},{"$f":"IF('1. Ordersheet'!M709=\"\",\"\",'1. Ordersheet'!M709)","v":""},null,null,{"$f":"IF('1. Ordersheet'!AR709=\"\",\"\",'1. Ordersheet'!AR709)","v":""},{"$f":"IF('1. Ordersheet'!AE709=\"\",\"\",'1. Ordersheet'!AE709)","v":""}]
[{"$f":"IF('1. Ordersheet'!B710=\"\",\"\",'1. Ordersheet'!B710)","v":""},{"$f":"IF('1. Ordersheet'!I710=\"\",\"\",'1. Ordersheet'!I710)","v":""},{"$f":"IF('1. Ordersheet'!J710=\"\",\"\",'1. Ordersheet'!J710)","v":""},{"$f":"IF('1. Ordersheet'!K710=\"\",\"\",'1. Ordersheet'!K710)","v":""},{"$f":"IF('1. Ordersheet'!M710=\"\",\"\",'1. Ordersheet'!M710)","v":""},null,null,{"$f":"IF('1. Ordersheet'!AR710=\"\",\"\",'1. Ordersheet'!AR710)","v":""},{"$f":"IF('1. Ordersheet'!AE710=\"\",\"\",'1. Ordersheet'!AE710)","v":""}]
[{"$f":"IF('1. Ordersheet'!B711=\"\",\"\",'1. Ordersheet'!B711)","v":""},{"$f":"IF('1. Ordersheet'!I711=\"\",\"\",'1. Ordersheet'!I711)","v":""},{"$f":"IF('1. Ordersheet'!J711=\"\",\"\",'1. Ordersheet'!J711)","v":""},{"$f":"IF('1. Ordersheet'!K711=\"\",\"\",'1. Ordersheet'!K711)","v":""},{"$f":"IF('1. Ordersheet'!M711=\"\",\"\",'1. Ordersheet'!M711)","v":""},null,null,{"$f":"IF('1. Ordersheet'!AR711=\"\",\"\",'1. Ordersheet'!AR711)","v":""},{"$f":"IF('1. Ordersheet'!AE711=\"\",\"\",'1. Ordersheet'!AE711)","v":""}]
[{"$f":"IF('1. Ordersheet'!B712=\"\",\"\",'1. Ordersheet'!B712)","v":""},{"$f":"IF('1. Ordersheet'!I712=\"\",\"\",'1. Ordersheet'!I712)","v":""},{"$f":"IF('1. Ordersheet'!J712=\"\",\"\",'1. Ordersheet'!J712)","v":""},{"$f":"IF('1. Ordersheet'!K712=\"\",\"\",'1. Ordersheet'!K712)","v":""},{"$f":"IF('1. Ordersheet'!M712=\"\",\"\",'1. Ordersheet'!M712)","v":""},null,null,{"$f":"IF('1. Ordersheet'!AR712=\"\",\"\",'1. Ordersheet'!AR712)","v":""},{"$f":"IF('1. Ordersheet'!AE712=\"\",\"\",'1. Ordersheet'!AE712)","v":""}]
[{"$f":"IF('1. Ordersheet'!B713=\"\",\"\",'1. Ordersheet'!B713)","v":""},{"$f":"IF('1. Ordersheet'!I713=\"\",\"\",'1. Ordersheet'!I713)","v":""},{"$f":"IF('1. Ordersheet'!J713=\"\",\"\",'1. Ordersheet'!J713)","v":""},{"$f":"IF('1. Ordersheet'!K713=\"\",\"\",'1. Ordersheet'!K713)","v":""},{"$f":"IF('1. Ordersheet'!M713=\"\",\"\",'1. Ordersheet'!M713)","v":""},null,null,{"$f":"IF('1. Ordersheet'!AR713=\"\",\"\",'1. Ordersheet'!AR713)","v":""},{"$f":"IF('1. Ordersheet'!AE713=\"\",\"\",'1. Ordersheet'!AE713)","v":""}]
[{"$f":"IF('1. Ordersheet'!B714=\"\",\"\",'1. Ordersheet'!B714)","v":""},{"$f":"IF('1. Ordersheet'!I714=\"\",\"\",'1. Ordersheet'!I714)","v":""},{"$f":"IF('1. Ordersheet'!J714=\"\",\"\",'1. Ordersheet'!J714)","v":""},{"$f":"IF('1. Ordersheet'!K714=\"\",\"\",'1. Ordersheet'!K714)","v":""},{"$f":"IF('1. Ordersheet'!M714=\"\",\"\",'1. Ordersheet'!M714)","v":""},null,null,{"$f":"IF('1. Ordersheet'!AR714=\"\",\"\",'1. Ordersheet'!AR714)","v":""},{"$f":"IF('1. Ordersheet'!AE714=\"\",\"\",'1. Ordersheet'!AE714)","v":""}]
[{"$f":"IF('1. Ordersheet'!B715=\"\",\"\",'1. Ordersheet'!B715)","v":""},{"$f":"IF('1. Ordersheet'!I715=\"\",\"\",'1. Ordersheet'!I715)","v":""},{"$f":"IF('1. Ordersheet'!J715=\"\",\"\",'1. Ordersheet'!J715)","v":""},{"$f":"IF('1. Ordersheet'!K715=\"\",\"\",'1. Ordersheet'!K715)","v":""},{"$f":"IF('1. Ordersheet'!M715=\"\",\"\",'1. Ordersheet'!M715)","v":""},null,null,{"$f":"IF('1. Ordersheet'!AR715=\"\",\"\",'1. Ordersheet'!AR715)","v":""},{"$f":"IF('1. Ordersheet'!AE715=\"\",\"\",'1. Ordersheet'!AE715)","v":""}]
[{"$f":"IF('1. Ordersheet'!B716=\"\",\"\",'1. Ordersheet'!B716)","v":""},{"$f":"IF('1. Ordersheet'!I716=\"\",\"\",'1. Ordersheet'!I716)","v":""},{"$f":"IF('1. Ordersheet'!J716=\"\",\"\",'1. Ordersheet'!J716)","v":""},{"$f":"IF('1. Ordersheet'!K716=\"\",\"\",'1. Ordersheet'!K716)","v":""},{"$f":"IF('1. Ordersheet'!M716=\"\",\"\",'1. Ordersheet'!M716)","v":""},null,null,{"$f":"IF('1. Ordersheet'!AR716=\"\",\"\",'1. Ordersheet'!AR716)","v":""},{"$f":"IF('1. Ordersheet'!AE716=\"\",\"\",'1. Ordersheet'!AE716)","v":""}]
[{"$f":"IF('1. Ordersheet'!B717=\"\",\"\",'1. Ordersheet'!B717)","v":""},{"$f":"IF('1. Ordersheet'!I717=\"\",\"\",'1. Ordersheet'!I717)","v":""},{"$f":"IF('1. Ordersheet'!J717=\"\",\"\",'1. Ordersheet'!J717)","v":""},{"$f":"IF('1. Ordersheet'!K717=\"\",\"\",'1. Ordersheet'!K717)","v":""},{"$f":"IF('1. Ordersheet'!M717=\"\",\"\",'1. Ordersheet'!M717)","v":""},null,null,{"$f":"IF('1. Ordersheet'!AR717=\"\",\"\",'1. Ordersheet'!AR717)","v":""},{"$f":"IF('1. Ordersheet'!AE717=\"\",\"\",'1. Ordersheet'!AE717)","v":""}]
[{"$f":"IF('1. Ordersheet'!B718=\"\",\"\",'1. Ordersheet'!B718)","v":""},{"$f":"IF('1. Ordersheet'!I718=\"\",\"\",'1. Ordersheet'!I718)","v":""},{"$f":"IF('1. Ordersheet'!J718=\"\",\"\",'1. Ordersheet'!J718)","v":""},{"$f":"IF('1. Ordersheet'!K718=\"\",\"\",'1. Ordersheet'!K718)","v":""},{"$f":"IF('1. Ordersheet'!M718=\"\",\"\",'1. Ordersheet'!M718)","v":""},null,null,{"$f":"IF('1. Ordersheet'!AR718=\"\",\"\",'1. Ordersheet'!AR718)","v":""},{"$f":"IF('1. Ordersheet'!AE718=\"\",\"\",'1. Ordersheet'!AE718)","v":""}]
[{"$f":"IF('1. Ordersheet'!B719=\"\",\"\",'1. Ordersheet'!B719)","v":""},{"$f":"IF('1. Ordersheet'!I719=\"\",\"\",'1. Ordersheet'!I719)","v":""},{"$f":"IF('1. Ordersheet'!J719=\"\",\"\",'1. Ordersheet'!J719)","v":""},{"$f":"IF('1. Ordersheet'!K719=\"\",\"\",'1. Ordersheet'!K719)","v":""},{"$f":"IF('1. Ordersheet'!M719=\"\",\"\",'1. Ordersheet'!M719)","v":""},null,null,{"$f":"IF('1. Ordersheet'!AR719=\"\",\"\",'1. Ordersheet'!AR719)","v":""},{"$f":"IF('1. Ordersheet'!AE719=\"\",\"\",'1. Ordersheet'!AE719)","v":""}]
[{"$f":"IF('1. Ordersheet'!B720=\"\",\"\",'1. Ordersheet'!B720)","v":""},{"$f":"IF('1. Ordersheet'!I720=\"\",\"\",'1. Ordersheet'!I720)","v":""},{"$f":"IF('1. Ordersheet'!J720=\"\",\"\",'1. Ordersheet'!J720)","v":""},{"$f":"IF('1. Ordersheet'!K720=\"\",\"\",'1. Ordersheet'!K720)","v":""},{"$f":"IF('1. Ordersheet'!M720=\"\",\"\",'1. Ordersheet'!M720)","v":""},null,null,{"$f":"IF('1. Ordersheet'!AR720=\"\",\"\",'1. Ordersheet'!AR720)","v":""},{"$f":"IF('1. Ordersheet'!AE720=\"\",\"\",'1. Ordersheet'!AE720)","v":""}]
[{"$f":"IF('1. Ordersheet'!B721=\"\",\"\",'1. Ordersheet'!B721)","v":""},{"$f":"IF('1. Ordersheet'!I721=\"\",\"\",'1. Ordersheet'!I721)","v":""},{"$f":"IF('1. Ordersheet'!J721=\"\",\"\",'1. Ordersheet'!J721)","v":""},{"$f":"IF('1. Ordersheet'!K721=\"\",\"\",'1. Ordersheet'!K721)","v":""},{"$f":"IF('1. Ordersheet'!M721=\"\",\"\",'1. Ordersheet'!M721)","v":""},null,null,{"$f":"IF('1. Ordersheet'!AR721=\"\",\"\",'1. Ordersheet'!AR721)","v":""},{"$f":"IF('1. Ordersheet'!AE721=\"\",\"\",'1. Ordersheet'!AE721)","v":""}]
[{"$f":"IF('1. Ordersheet'!B722=\"\",\"\",'1. Ordersheet'!B722)","v":""},{"$f":"IF('1. Ordersheet'!I722=\"\",\"\",'1. Ordersheet'!I722)","v":""},{"$f":"IF('1. Ordersheet'!J722=\"\",\"\",'1. Ordersheet'!J722)","v":""},{"$f":"IF('1. Ordersheet'!K722=\"\",\"\",'1. Ordersheet'!K722)","v":""},{"$f":"IF('1. Ordersheet'!M722=\"\",\"\",'1. Ordersheet'!M722)","v":""},null,null,{"$f":"IF('1. Ordersheet'!AR722=\"\",\"\",'1. Ordersheet'!AR722)","v":""},{"$f":"IF('1. Ordersheet'!AE722=\"\",\"\",'1. Ordersheet'!AE722)","v":""}]
[{"$f":"IF('1. Ordersheet'!B723=\"\",\"\",'1. Ordersheet'!B723)","v":""},{"$f":"IF('1. Ordersheet'!I723=\"\",\"\",'1. Ordersheet'!I723)","v":""},{"$f":"IF('1. Ordersheet'!J723=\"\",\"\",'1. Ordersheet'!J723)","v":""},{"$f":"IF('1. Ordersheet'!K723=\"\",\"\",'1. Ordersheet'!K723)","v":""},{"$f":"IF('1. Ordersheet'!M723=\"\",\"\",'1. Ordersheet'!M723)","v":""},null,null,{"$f":"IF('1. Ordersheet'!AR723=\"\",\"\",'1. Ordersheet'!AR723)","v":""},{"$f":"IF('1. Ordersheet'!AE723=\"\",\"\",'1. Ordersheet'!AE723)","v":""}]
[{"$f":"IF('1. Ordersheet'!B724=\"\",\"\",'1. Ordersheet'!B724)","v":""},{"$f":"IF('1. Ordersheet'!I724=\"\",\"\",'1. Ordersheet'!I724)","v":""},{"$f":"IF('1. Ordersheet'!J724=\"\",\"\",'1. Ordersheet'!J724)","v":""},{"$f":"IF('1. Ordersheet'!K724=\"\",\"\",'1. Ordersheet'!K724)","v":""},{"$f":"IF('1. Ordersheet'!M724=\"\",\"\",'1. Ordersheet'!M724)","v":""},null,null,{"$f":"IF('1. Ordersheet'!AR724=\"\",\"\",'1. Ordersheet'!AR724)","v":""},{"$f":"IF('1. Ordersheet'!AE724=\"\",\"\",'1. Ordersheet'!AE724)","v":""}]
[{"$f":"IF('1. Ordersheet'!B725=\"\",\"\",'1. Ordersheet'!B725)","v":""},{"$f":"IF('1. Ordersheet'!I725=\"\",\"\",'1. Ordersheet'!I725)","v":""},{"$f":"IF('1. Ordersheet'!J725=\"\",\"\",'1. Ordersheet'!J725)","v":""},{"$f":"IF('1. Ordersheet'!K725=\"\",\"\",'1. Ordersheet'!K725)","v":""},{"$f":"IF('1. Ordersheet'!M725=\"\",\"\",'1. Ordersheet'!M725)","v":""},null,null,{"$f":"IF('1. Ordersheet'!AR725=\"\",\"\",'1. Ordersheet'!AR725)","v":""},{"$f":"IF('1. Ordersheet'!AE725=\"\",\"\",'1. Ordersheet'!AE725)","v":""}]
[{"$f":"IF('1. Ordersheet'!B726=\"\",\"\",'1. Ordersheet'!B726)","v":""},{"$f":"IF('1. Ordersheet'!I726=\"\",\"\",'1. Ordersheet'!I726)","v":""},{"$f":"IF('1. Ordersheet'!J726=\"\",\"\",'1. Ordersheet'!J726)","v":""},{"$f":"IF('1. Ordersheet'!K726=\"\",\"\",'1. Ordersheet'!K726)","v":""},{"$f":"IF('1. Ordersheet'!M726=\"\",\"\",'1. Ordersheet'!M726)","v":""},null,null,{"$f":"IF('1. Ordersheet'!AR726=\"\",\"\",'1. Ordersheet'!AR726)","v":""},{"$f":"IF('1. Ordersheet'!AE726=\"\",\"\",'1. Ordersheet'!AE726)","v":""}]
[{"$f":"IF('1. Ordersheet'!B727=\"\",\"\",'1. Ordersheet'!B727)","v":""},{"$f":"IF('1. Ordersheet'!I727=\"\",\"\",'1. Ordersheet'!I727)","v":""},{"$f":"IF('1. Ordersheet'!J727=\"\",\"\",'1. Ordersheet'!J727)","v":""},{"$f":"IF('1. Ordersheet'!K727=\"\",\"\",'1. Ordersheet'!K727)","v":""},{"$f":"IF('1. Ordersheet'!M727=\"\",\"\",'1. Ordersheet'!M727)","v":""},null,null,{"$f":"IF('1. Ordersheet'!AR727=\"\",\"\",'1. Ordersheet'!AR727)","v":""},{"$f":"IF('1. Ordersheet'!AE727=\"\",\"\",'1. Ordersheet'!AE727)","v":""}]
[{"$f":"IF('1. Ordersheet'!B728=\"\",\"\",'1. Ordersheet'!B728)","v":""},{"$f":"IF('1. Ordersheet'!I728=\"\",\"\",'1. Ordersheet'!I728)","v":""},{"$f":"IF('1. Ordersheet'!J728=\"\",\"\",'1. Ordersheet'!J728)","v":""},{"$f":"IF('1. Ordersheet'!K728=\"\",\"\",'1. Ordersheet'!K728)","v":""},{"$f":"IF('1. Ordersheet'!M728=\"\",\"\",'1. Ordersheet'!M728)","v":""},null,null,{"$f":"IF('1. Ordersheet'!AR728=\"\",\"\",'1. Ordersheet'!AR728)","v":""},{"$f":"IF('1. Ordersheet'!AE728=\"\",\"\",'1. Ordersheet'!AE728)","v":""}]
[{"$f":"IF('1. Ordersheet'!B729=\"\",\"\",'1. Ordersheet'!B729)","v":""},{"$f":"IF('1. Ordersheet'!I729=\"\",\"\",'1. Ordersheet'!I729)","v":""},{"$f":"IF('1. Ordersheet'!J729=\"\",\"\",'1. Ordersheet'!J729)","v":""},{"$f":"IF('1. Ordersheet'!K729=\"\",\"\",'1. Ordersheet'!K729)","v":""},{"$f":"IF('1. Ordersheet'!M729=\"\",\"\",'1. Ordersheet'!M729)","v":""},null,null,{"$f":"IF('1. Ordersheet'!AR729=\"\",\"\",'1. Ordersheet'!AR729)","v":""},{"$f":"IF('1. Ordersheet'!AE729=\"\",\"\",'1. Ordersheet'!AE729)","v":""}]
[{"$f":"IF('1. Ordersheet'!B730=\"\",\"\",'1. Ordersheet'!B730)","v":""},{"$f":"IF('1. Ordersheet'!I730=\"\",\"\",'1. Ordersheet'!I730)","v":""},{"$f":"IF('1. Ordersheet'!J730=\"\",\"\",'1. Ordersheet'!J730)","v":""},{"$f":"IF('1. Ordersheet'!K730=\"\",\"\",'1. Ordersheet'!K730)","v":""},{"$f":"IF('1. Ordersheet'!M730=\"\",\"\",'1. Ordersheet'!M730)","v":""},null,null,{"$f":"IF('1. Ordersheet'!AR730=\"\",\"\",'1. Ordersheet'!AR730)","v":""},{"$f":"IF('1. Ordersheet'!AE730=\"\",\"\",'1. Ordersheet'!AE730)","v":""}]
[{"$f":"IF('1. Ordersheet'!B731=\"\",\"\",'1. Ordersheet'!B731)","v":""},{"$f":"IF('1. Ordersheet'!I731=\"\",\"\",'1. Ordersheet'!I731)","v":""},{"$f":"IF('1. Ordersheet'!J731=\"\",\"\",'1. Ordersheet'!J731)","v":""},{"$f":"IF('1. Ordersheet'!K731=\"\",\"\",'1. Ordersheet'!K731)","v":""},{"$f":"IF('1. Ordersheet'!M731=\"\",\"\",'1. Ordersheet'!M731)","v":""},null,null,{"$f":"IF('1. Ordersheet'!AR731=\"\",\"\",'1. Ordersheet'!AR731)","v":""},{"$f":"IF('1. Ordersheet'!AE731=\"\",\"\",'1. Ordersheet'!AE731)","v":""}]
[{"$f":"IF('1. Ordersheet'!B732=\"\",\"\",'1. Ordersheet'!B732)","v":""},{"$f":"IF('1. Ordersheet'!I732=\"\",\"\",'1. Ordersheet'!I732)","v":""},{"$f":"IF('1. Ordersheet'!J732=\"\",\"\",'1. Ordersheet'!J732)","v":""},{"$f":"IF('1. Ordersheet'!K732=\"\",\"\",'1. Ordersheet'!K732)","v":""},{"$f":"IF('1. Ordersheet'!M732=\"\",\"\",'1. Ordersheet'!M732)","v":""},null,null,{"$f":"IF('1. Ordersheet'!AR732=\"\",\"\",'1. Ordersheet'!AR732)","v":""},{"$f":"IF('1. Ordersheet'!AE732=\"\",\"\",'1. Ordersheet'!AE732)","v":""}]
[{"$f":"IF('1. Ordersheet'!B733=\"\",\"\",'1. Ordersheet'!B733)","v":""},{"$f":"IF('1. Ordersheet'!I733=\"\",\"\",'1. Ordersheet'!I733)","v":""},{"$f":"IF('1. Ordersheet'!J733=\"\",\"\",'1. Ordersheet'!J733)","v":""},{"$f":"IF('1. Ordersheet'!K733=\"\",\"\",'1. Ordersheet'!K733)","v":""},{"$f":"IF('1. Ordersheet'!M733=\"\",\"\",'1. Ordersheet'!M733)","v":""},null,null,{"$f":"IF('1. Ordersheet'!AR733=\"\",\"\",'1. Ordersheet'!AR733)","v":""},{"$f":"IF('1. Ordersheet'!AE733=\"\",\"\",'1. Ordersheet'!AE733)","v":""}]
[{"$f":"IF('1. Ordersheet'!B734=\"\",\"\",'1. Ordersheet'!B734)","v":""},{"$f":"IF('1. Ordersheet'!I734=\"\",\"\",'1. Ordersheet'!I734)","v":""},{"$f":"IF('1. Ordersheet'!J734=\"\",\"\",'1. Ordersheet'!J734)","v":""},{"$f":"IF('1. Ordersheet'!K734=\"\",\"\",'1. Ordersheet'!K734)","v":""},{"$f":"IF('1. Ordersheet'!M734=\"\",\"\",'1. Ordersheet'!M734)","v":""},null,null,{"$f":"IF('1. Ordersheet'!AR734=\"\",\"\",'1. Ordersheet'!AR734)","v":""},{"$f":"IF('1. Ordersheet'!AE734=\"\",\"\",'1. Ordersheet'!AE734)","v":""}]
[{"$f":"IF('1. Ordersheet'!B735=\"\",\"\",'1. Ordersheet'!B735)","v":""},{"$f":"IF('1. Ordersheet'!I735=\"\",\"\",'1. Ordersheet'!I735)","v":""},{"$f":"IF('1. Ordersheet'!J735=\"\",\"\",'1. Ordersheet'!J735)","v":""},{"$f":"IF('1. Ordersheet'!K735=\"\",\"\",'1. Ordersheet'!K735)","v":""},{"$f":"IF('1. Ordersheet'!M735=\"\",\"\",'1. Ordersheet'!M735)","v":""},null,null,{"$f":"IF('1. Ordersheet'!AR735=\"\",\"\",'1. Ordersheet'!AR735)","v":""},{"$f":"IF('1. Ordersheet'!AE735=\"\",\"\",'1. Ordersheet'!AE735)","v":""}]
[{"$f":"IF('1. Ordersheet'!B736=\"\",\"\",'1. Ordersheet'!B736)","v":""},{"$f":"IF('1. Ordersheet'!I736=\"\",\"\",'1. Ordersheet'!I736)","v":""},{"$f":"IF('1. Ordersheet'!J736=\"\",\"\",'1. Ordersheet'!J736)","v":""},{"$f":"IF('1. Ordersheet'!K736=\"\",\"\",'1. Ordersheet'!K736)","v":""},{"$f":"IF('1. Ordersheet'!M736=\"\",\"\",'1. Ordersheet'!M736)","v":""},null,null,{"$f":"IF('1. Ordersheet'!AR736=\"\",\"\",'1. Ordersheet'!AR736)","v":""},{"$f":"IF('1. Ordersheet'!AE736=\"\",\"\",'1. Ordersheet'!AE736)","v":""}]
[{"$f":"IF('1. Ordersheet'!B737=\"\",\"\",'1. Ordersheet'!B737)","v":""},{"$f":"IF('1. Ordersheet'!I737=\"\",\"\",'1. Ordersheet'!I737)","v":""},{"$f":"IF('1. Ordersheet'!J737=\"\",\"\",'1. Ordersheet'!J737)","v":""},{"$f":"IF('1. Ordersheet'!K737=\"\",\"\",'1. Ordersheet'!K737)","v":""},{"$f":"IF('1. Ordersheet'!M737=\"\",\"\",'1. Ordersheet'!M737)","v":""},null,null,{"$f":"IF('1. Ordersheet'!AR737=\"\",\"\",'1. Ordersheet'!AR737)","v":""},{"$f":"IF('1. Ordersheet'!AE737=\"\",\"\",'1. Ordersheet'!AE737)","v":""}]
[{"$f":"IF('1. Ordersheet'!B738=\"\",\"\",'1. Ordersheet'!B738)","v":""},{"$f":"IF('1. Ordersheet'!I738=\"\",\"\",'1. Ordersheet'!I738)","v":""},{"$f":"IF('1. Ordersheet'!J738=\"\",\"\",'1. Ordersheet'!J738)","v":""},{"$f":"IF('1. Ordersheet'!K738=\"\",\"\",'1. Ordersheet'!K738)","v":""},{"$f":"IF('1. Ordersheet'!M738=\"\",\"\",'1. Ordersheet'!M738)","v":""},null,null,{"$f":"IF('1. Ordersheet'!AR738=\"\",\"\",'1. Ordersheet'!AR738)","v":""},{"$f":"IF('1. Ordersheet'!AE738=\"\",\"\",'1. Ordersheet'!AE738)","v":""}]
[{"$f":"IF('1. Ordersheet'!B739=\"\",\"\",'1. Ordersheet'!B739)","v":""},{"$f":"IF('1. Ordersheet'!I739=\"\",\"\",'1. Ordersheet'!I739)","v":""},{"$f":"IF('1. Ordersheet'!J739=\"\",\"\",'1. Ordersheet'!J739)","v":""},{"$f":"IF('1. Ordersheet'!K739=\"\",\"\",'1. Ordersheet'!K739)","v":""},{"$f":"IF('1. Ordersheet'!M739=\"\",\"\",'1. Ordersheet'!M739)","v":""},null,null,{"$f":"IF('1. Ordersheet'!AR739=\"\",\"\",'1. Ordersheet'!AR739)","v":""},{"$f":"IF('1. Ordersheet'!AE739=\"\",\"\",'1. Ordersheet'!AE739)","v":""}]
[{"$f":"IF('1. Ordersheet'!B740=\"\",\"\",'1. Ordersheet'!B740)","v":""},{"$f":"IF('1. Ordersheet'!I740=\"\",\"\",'1. Ordersheet'!I740)","v":""},{"$f":"IF('1. Ordersheet'!J740=\"\",\"\",'1. Ordersheet'!J740)","v":""},{"$f":"IF('1. Ordersheet'!K740=\"\",\"\",'1. Ordersheet'!K740)","v":""},{"$f":"IF('1. Ordersheet'!M740=\"\",\"\",'1. Ordersheet'!M740)","v":""},null,null,{"$f":"IF('1. Ordersheet'!AR740=\"\",\"\",'1. Ordersheet'!AR740)","v":""},{"$f":"IF('1. Ordersheet'!AE740=\"\",\"\",'1. Ordersheet'!AE740)","v":""}]
[{"$f":"IF('1. Ordersheet'!B741=\"\",\"\",'1. Ordersheet'!B741)","v":""},{"$f":"IF('1. Ordersheet'!I741=\"\",\"\",'1. Ordersheet'!I741)","v":""},{"$f":"IF('1. Ordersheet'!J741=\"\",\"\",'1. Ordersheet'!J741)","v":""},{"$f":"IF('1. Ordersheet'!K741=\"\",\"\",'1. Ordersheet'!K741)","v":""},{"$f":"IF('1. Ordersheet'!M741=\"\",\"\",'1. Ordersheet'!M741)","v":""},null,null,{"$f":"IF('1. Ordersheet'!AR741=\"\",\"\",'1. Ordersheet'!AR741)","v":""},{"$f":"IF('1. Ordersheet'!AE741=\"\",\"\",'1. Ordersheet'!AE741)","v":""}]
[{"$f":"IF('1. Ordersheet'!B742=\"\",\"\",'1. Ordersheet'!B742)","v":""},{"$f":"IF('1. Ordersheet'!I742=\"\",\"\",'1. Ordersheet'!I742)","v":""},{"$f":"IF('1. Ordersheet'!J742=\"\",\"\",'1. Ordersheet'!J742)","v":""},{"$f":"IF('1. Ordersheet'!K742=\"\",\"\",'1. Ordersheet'!K742)","v":""},{"$f":"IF('1. Ordersheet'!M742=\"\",\"\",'1. Ordersheet'!M742)","v":""},null,null,{"$f":"IF('1. Ordersheet'!AR742=\"\",\"\",'1. Ordersheet'!AR742)","v":""},{"$f":"IF('1. Ordersheet'!AE742=\"\",\"\",'1. Ordersheet'!AE742)","v":""}]
[{"$f":"IF('1. Ordersheet'!B743=\"\",\"\",'1. Ordersheet'!B743)","v":""},{"$f":"IF('1. Ordersheet'!I743=\"\",\"\",'1. Ordersheet'!I743)","v":""},{"$f":"IF('1. Ordersheet'!J743=\"\",\"\",'1. Ordersheet'!J743)","v":""},{"$f":"IF('1. Ordersheet'!K743=\"\",\"\",'1. Ordersheet'!K743)","v":""},{"$f":"IF('1. Ordersheet'!M743=\"\",\"\",'1. Ordersheet'!M743)","v":""},null,null,{"$f":"IF('1. Ordersheet'!AR743=\"\",\"\",'1. Ordersheet'!AR743)","v":""},{"$f":"IF('1. Ordersheet'!AE743=\"\",\"\",'1. Ordersheet'!AE743)","v":""}]
[{"$f":"IF('1. Ordersheet'!B744=\"\",\"\",'1. Ordersheet'!B744)","v":""},{"$f":"IF('1. Ordersheet'!I744=\"\",\"\",'1. Ordersheet'!I744)","v":""},{"$f":"IF('1. Ordersheet'!J744=\"\",\"\",'1. Ordersheet'!J744)","v":""},{"$f":"IF('1. Ordersheet'!K744=\"\",\"\",'1. Ordersheet'!K744)","v":""},{"$f":"IF('1. Ordersheet'!M744=\"\",\"\",'1. Ordersheet'!M744)","v":""},null,null,{"$f":"IF('1. Ordersheet'!AR744=\"\",\"\",'1. Ordersheet'!AR744)","v":""},{"$f":"IF('1. Ordersheet'!AE744=\"\",\"\",'1. Ordersheet'!AE744)","v":""}]
[{"$f":"IF('1. Ordersheet'!B745=\"\",\"\",'1. Ordersheet'!B745)","v":""},{"$f":"IF('1. Ordersheet'!I745=\"\",\"\",'1. Ordersheet'!I745)","v":""},{"$f":"IF('1. Ordersheet'!J745=\"\",\"\",'1. Ordersheet'!J745)","v":""},{"$f":"IF('1. Ordersheet'!K745=\"\",\"\",'1. Ordersheet'!K745)","v":""},{"$f":"IF('1. Ordersheet'!M745=\"\",\"\",'1. Ordersheet'!M745)","v":""},null,null,{"$f":"IF('1. Ordersheet'!AR745=\"\",\"\",'1. Ordersheet'!AR745)","v":""},{"$f":"IF('1. Ordersheet'!AE745=\"\",\"\",'1. Ordersheet'!AE745)","v":""}]
[{"$f":"IF('1. Ordersheet'!B746=\"\",\"\",'1. Ordersheet'!B746)","v":""},{"$f":"IF('1. Ordersheet'!I746=\"\",\"\",'1. Ordersheet'!I746)","v":""},{"$f":"IF('1. Ordersheet'!J746=\"\",\"\",'1. Ordersheet'!J746)","v":""},{"$f":"IF('1. Ordersheet'!K746=\"\",\"\",'1. Ordersheet'!K746)","v":""},{"$f":"IF('1. Ordersheet'!M746=\"\",\"\",'1. Ordersheet'!M746)","v":""},null,null,{"$f":"IF('1. Ordersheet'!AR746=\"\",\"\",'1. Ordersheet'!AR746)","v":""},{"$f":"IF('1. Ordersheet'!AE746=\"\",\"\",'1. Ordersheet'!AE746)","v":""}]
[{"$f":"IF('1. Ordersheet'!B747=\"\",\"\",'1. Ordersheet'!B747)","v":""},{"$f":"IF('1. Ordersheet'!I747=\"\",\"\",'1. Ordersheet'!I747)","v":""},{"$f":"IF('1. Ordersheet'!J747=\"\",\"\",'1. Ordersheet'!J747)","v":""},{"$f":"IF('1. Ordersheet'!K747=\"\",\"\",'1. Ordersheet'!K747)","v":""},{"$f":"IF('1. Ordersheet'!M747=\"\",\"\",'1. Ordersheet'!M747)","v":""},null,null,{"$f":"IF('1. Ordersheet'!AR747=\"\",\"\",'1. Ordersheet'!AR747)","v":""},{"$f":"IF('1. Ordersheet'!AE747=\"\",\"\",'1. Ordersheet'!AE747)","v":""}]
[{"$f":"IF('1. Ordersheet'!B748=\"\",\"\",'1. Ordersheet'!B748)","v":""},{"$f":"IF('1. Ordersheet'!I748=\"\",\"\",'1. Ordersheet'!I748)","v":""},{"$f":"IF('1. Ordersheet'!J748=\"\",\"\",'1. Ordersheet'!J748)","v":""},{"$f":"IF('1. Ordersheet'!K748=\"\",\"\",'1. Ordersheet'!K748)","v":""},{"$f":"IF('1. Ordersheet'!M748=\"\",\"\",'1. Ordersheet'!M748)","v":""},null,null,{"$f":"IF('1. Ordersheet'!AR748=\"\",\"\",'1. Ordersheet'!AR748)","v":""},{"$f":"IF('1. Ordersheet'!AE748=\"\",\"\",'1. Ordersheet'!AE748)","v":""}]
[{"$f":"IF('1. Ordersheet'!B749=\"\",\"\",'1. Ordersheet'!B749)","v":""},{"$f":"IF('1. Ordersheet'!I749=\"\",\"\",'1. Ordersheet'!I749)","v":""},{"$f":"IF('1. Ordersheet'!J749=\"\",\"\",'1. Ordersheet'!J749)","v":""},{"$f":"IF('1. Ordersheet'!K749=\"\",\"\",'1. Ordersheet'!K749)","v":""},{"$f":"IF('1. Ordersheet'!M749=\"\",\"\",'1. Ordersheet'!M749)","v":""},null,null,{"$f":"IF('1. Ordersheet'!AR749=\"\",\"\",'1. Ordersheet'!AR749)","v":""},{"$f":"IF('1. Ordersheet'!AE749=\"\",\"\",'1. Ordersheet'!AE749)","v":""}]
[{"$f":"IF('1. Ordersheet'!B750=\"\",\"\",'1. Ordersheet'!B750)","v":""},{"$f":"IF('1. Ordersheet'!I750=\"\",\"\",'1. Ordersheet'!I750)","v":""},{"$f":"IF('1. Ordersheet'!J750=\"\",\"\",'1. Ordersheet'!J750)","v":""},{"$f":"IF('1. Ordersheet'!K750=\"\",\"\",'1. Ordersheet'!K750)","v":""},{"$f":"IF('1. Ordersheet'!M750=\"\",\"\",'1. Ordersheet'!M750)","v":""},null,null,{"$f":"IF('1. Ordersheet'!AR750=\"\",\"\",'1. Ordersheet'!AR750)","v":""},{"$f":"IF('1. Ordersheet'!AE750=\"\",\"\",'1. Ordersheet'!AE750)","v":""}]
[{"$f":"IF('1. Ordersheet'!B751=\"\",\"\",'1. Ordersheet'!B751)","v":""},{"$f":"IF('1. Ordersheet'!I751=\"\",\"\",'1. Ordersheet'!I751)","v":""},{"$f":"IF('1. Ordersheet'!J751=\"\",\"\",'1. Ordersheet'!J751)","v":""},{"$f":"IF('1. Ordersheet'!K751=\"\",\"\",'1. Ordersheet'!K751)","v":""},{"$f":"IF('1. Ordersheet'!M751=\"\",\"\",'1. Ordersheet'!M751)","v":""},null,null,{"$f":"IF('1. Ordersheet'!AR751=\"\",\"\",'1. Ordersheet'!AR751)","v":""},{"$f":"IF('1. Ordersheet'!AE751=\"\",\"\",'1. Ordersheet'!AE751)","v":""}]
[{"$f":"IF('1. Ordersheet'!B752=\"\",\"\",'1. Ordersheet'!B752)","v":""},{"$f":"IF('1. Ordersheet'!I752=\"\",\"\",'1. Ordersheet'!I752)","v":""},{"$f":"IF('1. Ordersheet'!J752=\"\",\"\",'1. Ordersheet'!J752)","v":""},{"$f":"IF('1. Ordersheet'!K752=\"\",\"\",'1. Ordersheet'!K752)","v":""},{"$f":"IF('1. Ordersheet'!M752=\"\",\"\",'1. Ordersheet'!M752)","v":""},null,null,{"$f":"IF('1. Ordersheet'!AR752=\"\",\"\",'1. Ordersheet'!AR752)","v":""},{"$f":"IF('1. Ordersheet'!AE752=\"\",\"\",'1. Ordersheet'!AE752)","v":""}]
[{"$f":"IF('1. Ordersheet'!B753=\"\",\"\",'1. Ordersheet'!B753)","v":""},{"$f":"IF('1. Ordersheet'!I753=\"\",\"\",'1. Ordersheet'!I753)","v":""},{"$f":"IF('1. Ordersheet'!J753=\"\",\"\",'1. Ordersheet'!J753)","v":""},{"$f":"IF('1. Ordersheet'!K753=\"\",\"\",'1. Ordersheet'!K753)","v":""},{"$f":"IF('1. Ordersheet'!M753=\"\",\"\",'1. Ordersheet'!M753)","v":""},null,null,{"$f":"IF('1. Ordersheet'!AR753=\"\",\"\",'1. Ordersheet'!AR753)","v":""},{"$f":"IF('1. Ordersheet'!AE753=\"\",\"\",'1. Ordersheet'!AE753)","v":""}]
[{"$f":"IF('1. Ordersheet'!B754=\"\",\"\",'1. Ordersheet'!B754)","v":""},{"$f":"IF('1. Ordersheet'!I754=\"\",\"\",'1. Ordersheet'!I754)","v":""},{"$f":"IF('1. Ordersheet'!J754=\"\",\"\",'1. Ordersheet'!J754)","v":""},{"$f":"IF('1. Ordersheet'!K754=\"\",\"\",'1. Ordersheet'!K754)","v":""},{"$f":"IF('1. Ordersheet'!M754=\"\",\"\",'1. Ordersheet'!M754)","v":""},null,null,{"$f":"IF('1. Ordersheet'!AR754=\"\",\"\",'1. Ordersheet'!AR754)","v":""},{"$f":"IF('1. Ordersheet'!AE754=\"\",\"\",'1. Ordersheet'!AE754)","v":""}]
[{"$f":"IF('1. Ordersheet'!B755=\"\",\"\",'1. Ordersheet'!B755)","v":""},{"$f":"IF('1. Ordersheet'!I755=\"\",\"\",'1. Ordersheet'!I755)","v":""},{"$f":"IF('1. Ordersheet'!J755=\"\",\"\",'1. Ordersheet'!J755)","v":""},{"$f":"IF('1. Ordersheet'!K755=\"\",\"\",'1. Ordersheet'!K755)","v":""},{"$f":"IF('1. Ordersheet'!M755=\"\",\"\",'1. Ordersheet'!M755)","v":""},null,null,{"$f":"IF('1. Ordersheet'!AR755=\"\",\"\",'1. Ordersheet'!AR755)","v":""},{"$f":"IF('1. Ordersheet'!AE755=\"\",\"\",'1. Ordersheet'!AE755)","v":""}]
[{"$f":"IF('1. Ordersheet'!B756=\"\",\"\",'1. Ordersheet'!B756)","v":""},{"$f":"IF('1. Ordersheet'!I756=\"\",\"\",'1. Ordersheet'!I756)","v":""},{"$f":"IF('1. Ordersheet'!J756=\"\",\"\",'1. Ordersheet'!J756)","v":""},{"$f":"IF('1. Ordersheet'!K756=\"\",\"\",'1. Ordersheet'!K756)","v":""},{"$f":"IF('1. Ordersheet'!M756=\"\",\"\",'1. Ordersheet'!M756)","v":""},null,null,{"$f":"IF('1. Ordersheet'!AR756=\"\",\"\",'1. Ordersheet'!AR756)","v":""},{"$f":"IF('1. Ordersheet'!AE756=\"\",\"\",'1. Ordersheet'!AE756)","v":""}]
[{"$f":"IF('1. Ordersheet'!B757=\"\",\"\",'1. Ordersheet'!B757)","v":""},{"$f":"IF('1. Ordersheet'!I757=\"\",\"\",'1. Ordersheet'!I757)","v":""},{"$f":"IF('1. Ordersheet'!J757=\"\",\"\",'1. Ordersheet'!J757)","v":""},{"$f":"IF('1. Ordersheet'!K757=\"\",\"\",'1. Ordersheet'!K757)","v":""},{"$f":"IF('1. Ordersheet'!M757=\"\",\"\",'1. Ordersheet'!M757)","v":""},null,null,{"$f":"IF('1. Ordersheet'!AR757=\"\",\"\",'1. Ordersheet'!AR757)","v":""},{"$f":"IF('1. Ordersheet'!AE757=\"\",\"\",'1. Ordersheet'!AE757)","v":""}]
[{"$f":"IF('1. Ordersheet'!B758=\"\",\"\",'1. Ordersheet'!B758)","v":""},{"$f":"IF('1. Ordersheet'!I758=\"\",\"\",'1. Ordersheet'!I758)","v":""},{"$f":"IF('1. Ordersheet'!J758=\"\",\"\",'1. Ordersheet'!J758)","v":""},{"$f":"IF('1. Ordersheet'!K758=\"\",\"\",'1. Ordersheet'!K758)","v":""},{"$f":"IF('1. Ordersheet'!M758=\"\",\"\",'1. Ordersheet'!M758)","v":""},null,null,{"$f":"IF('1. Ordersheet'!AR758=\"\",\"\",'1. Ordersheet'!AR758)","v":""},{"$f":"IF('1. Ordersheet'!AE758=\"\",\"\",'1. Ordersheet'!AE758)","v":""}]
[{"$f":"IF('1. Ordersheet'!B759=\"\",\"\",'1. Ordersheet'!B759)","v":""},{"$f":"IF('1. Ordersheet'!I759=\"\",\"\",'1. Ordersheet'!I759)","v":""},{"$f":"IF('1. Ordersheet'!J759=\"\",\"\",'1. Ordersheet'!J759)","v":""},{"$f":"IF('1. Ordersheet'!K759=\"\",\"\",'1. Ordersheet'!K759)","v":""},{"$f":"IF('1. Ordersheet'!M759=\"\",\"\",'1. Ordersheet'!M759)","v":""},null,null,{"$f":"IF('1. Ordersheet'!AR759=\"\",\"\",'1. Ordersheet'!AR759)","v":""},{"$f":"IF('1. Ordersheet'!AE759=\"\",\"\",'1. Ordersheet'!AE759)","v":""}]
[{"$f":"IF('1. Ordersheet'!B760=\"\",\"\",'1. Ordersheet'!B760)","v":""},{"$f":"IF('1. Ordersheet'!I760=\"\",\"\",'1. Ordersheet'!I760)","v":""},{"$f":"IF('1. Ordersheet'!J760=\"\",\"\",'1. Ordersheet'!J760)","v":""},{"$f":"IF('1. Ordersheet'!K760=\"\",\"\",'1. Ordersheet'!K760)","v":""},{"$f":"IF('1. Ordersheet'!M760=\"\",\"\",'1. Ordersheet'!M760)","v":""},null,null,{"$f":"IF('1. Ordersheet'!AR760=\"\",\"\",'1. Ordersheet'!AR760)","v":""},{"$f":"IF('1. Ordersheet'!AE760=\"\",\"\",'1. Ordersheet'!AE760)","v":""}]
[{"$f":"IF('1. Ordersheet'!B761=\"\",\"\",'1. Ordersheet'!B761)","v":""},{"$f":"IF('1. Ordersheet'!I761=\"\",\"\",'1. Ordersheet'!I761)","v":""},{"$f":"IF('1. Ordersheet'!J761=\"\",\"\",'1. Ordersheet'!J761)","v":""},{"$f":"IF('1. Ordersheet'!K761=\"\",\"\",'1. Ordersheet'!K761)","v":""},{"$f":"IF('1. Ordersheet'!M761=\"\",\"\",'1. Ordersheet'!M761)","v":""},null,null,{"$f":"IF('1. Ordersheet'!AR761=\"\",\"\",'1. Ordersheet'!AR761)","v":""},{"$f":"IF('1. Ordersheet'!AE761=\"\",\"\",'1. Ordersheet'!AE761)","v":""}]
[{"$f":"IF('1. Ordersheet'!B762=\"\",\"\",'1. Ordersheet'!B762)","v":""},{"$f":"IF('1. Ordersheet'!I762=\"\",\"\",'1. Ordersheet'!I762)","v":""},{"$f":"IF('1. Ordersheet'!J762=\"\",\"\",'1. Ordersheet'!J762)","v":""},{"$f":"IF('1. Ordersheet'!K762=\"\",\"\",'1. Ordersheet'!K762)","v":""},{"$f":"IF('1. Ordersheet'!M762=\"\",\"\",'1. Ordersheet'!M762)","v":""},null,null,{"$f":"IF('1. Ordersheet'!AR762=\"\",\"\",'1. Ordersheet'!AR762)","v":""},{"$f":"IF('1. Ordersheet'!AE762=\"\",\"\",'1. Ordersheet'!AE762)","v":""}]
[{"$f":"IF('1. Ordersheet'!B763=\"\",\"\",'1. Ordersheet'!B763)","v":""},{"$f":"IF('1. Ordersheet'!I763=\"\",\"\",'1. Ordersheet'!I763)","v":""},{"$f":"IF('1. Ordersheet'!J763=\"\",\"\",'1. Ordersheet'!J763)","v":""},{"$f":"IF('1. Ordersheet'!K763=\"\",\"\",'1. Ordersheet'!K763)","v":""},{"$f":"IF('1. Ordersheet'!M763=\"\",\"\",'1. Ordersheet'!M763)","v":""},null,null,{"$f":"IF('1. Ordersheet'!AR763=\"\",\"\",'1. Ordersheet'!AR763)","v":""},{"$f":"IF('1. Ordersheet'!AE763=\"\",\"\",'1. Ordersheet'!AE763)","v":""}]
[{"$f":"IF('1. Ordersheet'!B764=\"\",\"\",'1. Ordersheet'!B764)","v":""},{"$f":"IF('1. Ordersheet'!I764=\"\",\"\",'1. Ordersheet'!I764)","v":""},{"$f":"IF('1. Ordersheet'!J764=\"\",\"\",'1. Ordersheet'!J764)","v":""},{"$f":"IF('1. Ordersheet'!K764=\"\",\"\",'1. Ordersheet'!K764)","v":""},{"$f":"IF('1. Ordersheet'!M764=\"\",\"\",'1. Ordersheet'!M764)","v":""},null,null,{"$f":"IF('1. Ordersheet'!AR764=\"\",\"\",'1. Ordersheet'!AR764)","v":""},{"$f":"IF('1. Ordersheet'!AE764=\"\",\"\",'1. Ordersheet'!AE764)","v":""}]
[{"$f":"IF('1. Ordersheet'!B765=\"\",\"\",'1. Ordersheet'!B765)","v":""},{"$f":"IF('1. Ordersheet'!I765=\"\",\"\",'1. Ordersheet'!I765)","v":""},{"$f":"IF('1. Ordersheet'!J765=\"\",\"\",'1. Ordersheet'!J765)","v":""},{"$f":"IF('1. Ordersheet'!K765=\"\",\"\",'1. Ordersheet'!K765)","v":""},{"$f":"IF('1. Ordersheet'!M765=\"\",\"\",'1. Ordersheet'!M765)","v":""},null,null,{"$f":"IF('1. Ordersheet'!AR765=\"\",\"\",'1. Ordersheet'!AR765)","v":""},{"$f":"IF('1. Ordersheet'!AE765=\"\",\"\",'1. Ordersheet'!AE765)","v":""}]
[{"$f":"IF('1. Ordersheet'!B766=\"\",\"\",'1. Ordersheet'!B766)","v":""},{"$f":"IF('1. Ordersheet'!I766=\"\",\"\",'1. Ordersheet'!I766)","v":""},{"$f":"IF('1. Ordersheet'!J766=\"\",\"\",'1. Ordersheet'!J766)","v":""},{"$f":"IF('1. Ordersheet'!K766=\"\",\"\",'1. Ordersheet'!K766)","v":""},{"$f":"IF('1. Ordersheet'!M766=\"\",\"\",'1. Ordersheet'!M766)","v":""},null,null,{"$f":"IF('1. Ordersheet'!AR766=\"\",\"\",'1. Ordersheet'!AR766)","v":""},{"$f":"IF('1. Ordersheet'!AE766=\"\",\"\",'1. Ordersheet'!AE766)","v":""}]
[{"$f":"IF('1. Ordersheet'!B767=\"\",\"\",'1. Ordersheet'!B767)","v":""},{"$f":"IF('1. Ordersheet'!I767=\"\",\"\",'1. Ordersheet'!I767)","v":""},{"$f":"IF('1. Ordersheet'!J767=\"\",\"\",'1. Ordersheet'!J767)","v":""},{"$f":"IF('1. Ordersheet'!K767=\"\",\"\",'1. Ordersheet'!K767)","v":""},{"$f":"IF('1. Ordersheet'!M767=\"\",\"\",'1. Ordersheet'!M767)","v":""},null,null,{"$f":"IF('1. Ordersheet'!AR767=\"\",\"\",'1. Ordersheet'!AR767)","v":""},{"$f":"IF('1. Ordersheet'!AE767=\"\",\"\",'1. Ordersheet'!AE767)","v":""}]
[{"$f":"IF('1. Ordersheet'!B768=\"\",\"\",'1. Ordersheet'!B768)","v":""},{"$f":"IF('1. Ordersheet'!I768=\"\",\"\",'1. Ordersheet'!I768)","v":""},{"$f":"IF('1. Ordersheet'!J768=\"\",\"\",'1. Ordersheet'!J768)","v":""},{"$f":"IF('1. Ordersheet'!K768=\"\",\"\",'1. Ordersheet'!K768)","v":""},{"$f":"IF('1. Ordersheet'!M768=\"\",\"\",'1. Ordersheet'!M768)","v":""},null,null,{"$f":"IF('1. Ordersheet'!AR768=\"\",\"\",'1. Ordersheet'!AR768)","v":""},{"$f":"IF('1. Ordersheet'!AE768=\"\",\"\",'1. Ordersheet'!AE768)","v":""}]
[{"$f":"IF('1. Ordersheet'!B769=\"\",\"\",'1. Ordersheet'!B769)","v":""},{"$f":"IF('1. Ordersheet'!I769=\"\",\"\",'1. Ordersheet'!I769)","v":""},{"$f":"IF('1. Ordersheet'!J769=\"\",\"\",'1. Ordersheet'!J769)","v":""},{"$f":"IF('1. Ordersheet'!K769=\"\",\"\",'1. Ordersheet'!K769)","v":""},{"$f":"IF('1. Ordersheet'!M769=\"\",\"\",'1. Ordersheet'!M769)","v":""},null,null,{"$f":"IF('1. Ordersheet'!AR769=\"\",\"\",'1. Ordersheet'!AR769)","v":""},{"$f":"IF('1. Ordersheet'!AE769=\"\",\"\",'1. Ordersheet'!AE769)","v":""}]
[{"$f":"IF('1. Ordersheet'!B770=\"\",\"\",'1. Ordersheet'!B770)","v":""},{"$f":"IF('1. Ordersheet'!I770=\"\",\"\",'1. Ordersheet'!I770)","v":""},{"$f":"IF('1. Ordersheet'!J770=\"\",\"\",'1. Ordersheet'!J770)","v":""},{"$f":"IF('1. Ordersheet'!K770=\"\",\"\",'1. Ordersheet'!K770)","v":""},{"$f":"IF('1. Ordersheet'!M770=\"\",\"\",'1. Ordersheet'!M770)","v":""},null,null,{"$f":"IF('1. Ordersheet'!AR770=\"\",\"\",'1. Ordersheet'!AR770)","v":""},{"$f":"IF('1. Ordersheet'!AE770=\"\",\"\",'1. Ordersheet'!AE770)","v":""}]
[{"$f":"IF('1. Ordersheet'!B771=\"\",\"\",'1. Ordersheet'!B771)","v":""},{"$f":"IF('1. Ordersheet'!I771=\"\",\"\",'1. Ordersheet'!I771)","v":""},{"$f":"IF('1. Ordersheet'!J771=\"\",\"\",'1. Ordersheet'!J771)","v":""},{"$f":"IF('1. Ordersheet'!K771=\"\",\"\",'1. Ordersheet'!K771)","v":""},{"$f":"IF('1. Ordersheet'!M771=\"\",\"\",'1. Ordersheet'!M771)","v":""},null,null,{"$f":"IF('1. Ordersheet'!AR771=\"\",\"\",'1. Ordersheet'!AR771)","v":""},{"$f":"IF('1. Ordersheet'!AE771=\"\",\"\",'1. Ordersheet'!AE771)","v":""}]
[{"$f":"IF('1. Ordersheet'!B772=\"\",\"\",'1. Ordersheet'!B772)","v":""},{"$f":"IF('1. Ordersheet'!I772=\"\",\"\",'1. Ordersheet'!I772)","v":""},{"$f":"IF('1. Ordersheet'!J772=\"\",\"\",'1. Ordersheet'!J772)","v":""},{"$f":"IF('1. Ordersheet'!K772=\"\",\"\",'1. Ordersheet'!K772)","v":""},{"$f":"IF('1. Ordersheet'!M772=\"\",\"\",'1. Ordersheet'!M772)","v":""},null,null,{"$f":"IF('1. Ordersheet'!AR772=\"\",\"\",'1. Ordersheet'!AR772)","v":""},{"$f":"IF('1. Ordersheet'!AE772=\"\",\"\",'1. Ordersheet'!AE772)","v":""}]
[{"$f":"IF('1. Ordersheet'!B773=\"\",\"\",'1. Ordersheet'!B773)","v":""},{"$f":"IF('1. Ordersheet'!I773=\"\",\"\",'1. Ordersheet'!I773)","v":""},{"$f":"IF('1. Ordersheet'!J773=\"\",\"\",'1. Ordersheet'!J773)","v":""},{"$f":"IF('1. Ordersheet'!K773=\"\",\"\",'1. Ordersheet'!K773)","v":""},{"$f":"IF('1. Ordersheet'!M773=\"\",\"\",'1. Ordersheet'!M773)","v":""},null,null,{"$f":"IF('1. Ordersheet'!AR773=\"\",\"\",'1. Ordersheet'!AR773)","v":""},{"$f":"IF('1. Ordersheet'!AE773=\"\",\"\",'1. Ordersheet'!AE773)","v":""}]
[{"$f":"IF('1. Ordersheet'!B774=\"\",\"\",'1. Ordersheet'!B774)","v":""},{"$f":"IF('1. Ordersheet'!I774=\"\",\"\",'1. Ordersheet'!I774)","v":""},{"$f":"IF('1. Ordersheet'!J774=\"\",\"\",'1. Ordersheet'!J774)","v":""},{"$f":"IF('1. Ordersheet'!K774=\"\",\"\",'1. Ordersheet'!K774)","v":""},{"$f":"IF('1. Ordersheet'!M774=\"\",\"\",'1. Ordersheet'!M774)","v":""},null,null,{"$f":"IF('1. Ordersheet'!AR774=\"\",\"\",'1. Ordersheet'!AR774)","v":""},{"$f":"IF('1. Ordersheet'!AE774=\"\",\"\",'1. Ordersheet'!AE774)","v":""}]
[{"$f":"IF('1. Ordersheet'!B775=\"\",\"\",'1. Ordersheet'!B775)","v":""},{"$f":"IF('1. Ordersheet'!I775=\"\",\"\",'1. Ordersheet'!I775)","v":""},{"$f":"IF('1. Ordersheet'!J775=\"\",\"\",'1. Ordersheet'!J775)","v":""},{"$f":"IF('1. Ordersheet'!K775=\"\",\"\",'1. Ordersheet'!K775)","v":""},{"$f":"IF('1. Ordersheet'!M775=\"\",\"\",'1. Ordersheet'!M775)","v":""},null,null,{"$f":"IF('1. Ordersheet'!AR775=\"\",\"\",'1. Ordersheet'!AR775)","v":""},{"$f":"IF('1. Ordersheet'!AE775=\"\",\"\",'1. Ordersheet'!AE775)","v":""}]
[{"$f":"IF('1. Ordersheet'!B776=\"\",\"\",'1. Ordersheet'!B776)","v":""},{"$f":"IF('1. Ordersheet'!I776=\"\",\"\",'1. Ordersheet'!I776)","v":""},{"$f":"IF('1. Ordersheet'!J776=\"\",\"\",'1. Ordersheet'!J776)","v":""},{"$f":"IF('1. Ordersheet'!K776=\"\",\"\",'1. Ordersheet'!K776)","v":""},{"$f":"IF('1. Ordersheet'!M776=\"\",\"\",'1. Ordersheet'!M776)","v":""},null,null,{"$f":"IF('1. Ordersheet'!AR776=\"\",\"\",'1. Ordersheet'!AR776)","v":""},{"$f":"IF('1. Ordersheet'!AE776=\"\",\"\",'1. Ordersheet'!AE776)","v":""}]
[{"$f":"IF('1. Ordersheet'!B777=\"\",\"\",'1. Ordersheet'!B777)","v":""},{"$f":"IF('1. Ordersheet'!I777=\"\",\"\",'1. Ordersheet'!I777)","v":""},{"$f":"IF('1. Ordersheet'!J777=\"\",\"\",'1. Ordersheet'!J777)","v":""},{"$f":"IF('1. Ordersheet'!K777=\"\",\"\",'1. Ordersheet'!K777)","v":""},{"$f":"IF('1. Ordersheet'!M777=\"\",\"\",'1. Ordersheet'!M777)","v":""},null,null,{"$f":"IF('1. Ordersheet'!AR777=\"\",\"\",'1. Ordersheet'!AR777)","v":""},{"$f":"IF('1. Ordersheet'!AE777=\"\",\"\",'1. Ordersheet'!AE777)","v":""}]
[{"$f":"IF('1. Ordersheet'!B778=\"\",\"\",'1. Ordersheet'!B778)","v":""},{"$f":"IF('1. Ordersheet'!I778=\"\",\"\",'1. Ordersheet'!I778)","v":""},{"$f":"IF('1. Ordersheet'!J778=\"\",\"\",'1. Ordersheet'!J778)","v":""},{"$f":"IF('1. Ordersheet'!K778=\"\",\"\",'1. Ordersheet'!K778)","v":""},{"$f":"IF('1. Ordersheet'!M778=\"\",\"\",'1. Ordersheet'!M778)","v":""},null,null,{"$f":"IF('1. Ordersheet'!AR778=\"\",\"\",'1. Ordersheet'!AR778)","v":""},{"$f":"IF('1. Ordersheet'!AE778=\"\",\"\",'1. Ordersheet'!AE778)","v":""}]
[{"$f":"IF('1. Ordersheet'!B779=\"\",\"\",'1. Ordersheet'!B779)","v":""},{"$f":"IF('1. Ordersheet'!I779=\"\",\"\",'1. Ordersheet'!I779)","v":""},{"$f":"IF('1. Ordersheet'!J779=\"\",\"\",'1. Ordersheet'!J779)","v":""},{"$f":"IF('1. Ordersheet'!K779=\"\",\"\",'1. Ordersheet'!K779)","v":""},{"$f":"IF('1. Ordersheet'!M779=\"\",\"\",'1. Ordersheet'!M779)","v":""},null,null,{"$f":"IF('1. Ordersheet'!AR779=\"\",\"\",'1. Ordersheet'!AR779)","v":""},{"$f":"IF('1. Ordersheet'!AE779=\"\",\"\",'1. Ordersheet'!AE779)","v":""}]
[{"$f":"IF('1. Ordersheet'!B780=\"\",\"\",'1. Ordersheet'!B780)","v":""},{"$f":"IF('1. Ordersheet'!I780=\"\",\"\",'1. Ordersheet'!I780)","v":""},{"$f":"IF('1. Ordersheet'!J780=\"\",\"\",'1. Ordersheet'!J780)","v":""},{"$f":"IF('1. Ordersheet'!K780=\"\",\"\",'1. Ordersheet'!K780)","v":""},{"$f":"IF('1. Ordersheet'!M780=\"\",\"\",'1. Ordersheet'!M780)","v":""},null,null,{"$f":"IF('1. Ordersheet'!AR780=\"\",\"\",'1. Ordersheet'!AR780)","v":""},{"$f":"IF('1. Ordersheet'!AE780=\"\",\"\",'1. Ordersheet'!AE780)","v":""}]
[{"$f":"IF('1. Ordersheet'!B781=\"\",\"\",'1. Ordersheet'!B781)","v":""},{"$f":"IF('1. Ordersheet'!I781=\"\",\"\",'1. Ordersheet'!I781)","v":""},{"$f":"IF('1. Ordersheet'!J781=\"\",\"\",'1. Ordersheet'!J781)","v":""},{"$f":"IF('1. Ordersheet'!K781=\"\",\"\",'1. Ordersheet'!K781)","v":""},{"$f":"IF('1. Ordersheet'!M781=\"\",\"\",'1. Ordersheet'!M781)","v":""},null,null,{"$f":"IF('1. Ordersheet'!AR781=\"\",\"\",'1. Ordersheet'!AR781)","v":""},{"$f":"IF('1. Ordersheet'!AE781=\"\",\"\",'1. Ordersheet'!AE781)","v":""}]
[{"$f":"IF('1. Ordersheet'!B782=\"\",\"\",'1. Ordersheet'!B782)","v":""},{"$f":"IF('1. Ordersheet'!I782=\"\",\"\",'1. Ordersheet'!I782)","v":""},{"$f":"IF('1. Ordersheet'!J782=\"\",\"\",'1. Ordersheet'!J782)","v":""},{"$f":"IF('1. Ordersheet'!K782=\"\",\"\",'1. Ordersheet'!K782)","v":""},{"$f":"IF('1. Ordersheet'!M782=\"\",\"\",'1. Ordersheet'!M782)","v":""},null,null,{"$f":"IF('1. Ordersheet'!AR782=\"\",\"\",'1. Ordersheet'!AR782)","v":""},{"$f":"IF('1. Ordersheet'!AE782=\"\",\"\",'1. Ordersheet'!AE782)","v":""}]
[{"$f":"IF('1. Ordersheet'!B783=\"\",\"\",'1. Ordersheet'!B783)","v":""},{"$f":"IF('1. Ordersheet'!I783=\"\",\"\",'1. Ordersheet'!I783)","v":""},{"$f":"IF('1. Ordersheet'!J783=\"\",\"\",'1. Ordersheet'!J783)","v":""},{"$f":"IF('1. Ordersheet'!K783=\"\",\"\",'1. Ordersheet'!K783)","v":""},{"$f":"IF('1. Ordersheet'!M783=\"\",\"\",'1. Ordersheet'!M783)","v":""},null,null,{"$f":"IF('1. Ordersheet'!AR783=\"\",\"\",'1. Ordersheet'!AR783)","v":""},{"$f":"IF('1. Ordersheet'!AE783=\"\",\"\",'1. Ordersheet'!AE783)","v":""}]
[{"$f":"IF('1. Ordersheet'!B784=\"\",\"\",'1. Ordersheet'!B784)","v":""},{"$f":"IF('1. Ordersheet'!I784=\"\",\"\",'1. Ordersheet'!I784)","v":""},{"$f":"IF('1. Ordersheet'!J784=\"\",\"\",'1. Ordersheet'!J784)","v":""},{"$f":"IF('1. Ordersheet'!K784=\"\",\"\",'1. Ordersheet'!K784)","v":""},{"$f":"IF('1. Ordersheet'!M784=\"\",\"\",'1. Ordersheet'!M784)","v":""},null,null,{"$f":"IF('1. Ordersheet'!AR784=\"\",\"\",'1. Ordersheet'!AR784)","v":""},{"$f":"IF('1. Ordersheet'!AE784=\"\",\"\",'1. Ordersheet'!AE784)","v":""}]
[{"$f":"IF('1. Ordersheet'!B785=\"\",\"\",'1. Ordersheet'!B785)","v":""},{"$f":"IF('1. Ordersheet'!I785=\"\",\"\",'1. Ordersheet'!I785)","v":""},{"$f":"IF('1. Ordersheet'!J785=\"\",\"\",'1. Ordersheet'!J785)","v":""},{"$f":"IF('1. Ordersheet'!K785=\"\",\"\",'1. Ordersheet'!K785)","v":""},{"$f":"IF('1. Ordersheet'!M785=\"\",\"\",'1. Ordersheet'!M785)","v":""},null,null,{"$f":"IF('1. Ordersheet'!AR785=\"\",\"\",'1. Ordersheet'!AR785)","v":""},{"$f":"IF('1. Ordersheet'!AE785=\"\",\"\",'1. Ordersheet'!AE785)","v":""}]
[{"$f":"IF('1. Ordersheet'!B786=\"\",\"\",'1. Ordersheet'!B786)","v":""},{"$f":"IF('1. Ordersheet'!I786=\"\",\"\",'1. Ordersheet'!I786)","v":""},{"$f":"IF('1. Ordersheet'!J786=\"\",\"\",'1. Ordersheet'!J786)","v":""},{"$f":"IF('1. Ordersheet'!K786=\"\",\"\",'1. Ordersheet'!K786)","v":""},{"$f":"IF('1. Ordersheet'!M786=\"\",\"\",'1. Ordersheet'!M786)","v":""},null,null,{"$f":"IF('1. Ordersheet'!AR786=\"\",\"\",'1. Ordersheet'!AR786)","v":""},{"$f":"IF('1. Ordersheet'!AE786=\"\",\"\",'1. Ordersheet'!AE786)","v":""}]
[{"$f":"IF('1. Ordersheet'!B787=\"\",\"\",'1. Ordersheet'!B787)","v":""},{"$f":"IF('1. Ordersheet'!I787=\"\",\"\",'1. Ordersheet'!I787)","v":""},{"$f":"IF('1. Ordersheet'!J787=\"\",\"\",'1. Ordersheet'!J787)","v":""},{"$f":"IF('1. Ordersheet'!K787=\"\",\"\",'1. Ordersheet'!K787)","v":""},{"$f":"IF('1. Ordersheet'!M787=\"\",\"\",'1. Ordersheet'!M787)","v":""},null,null,{"$f":"IF('1. Ordersheet'!AR787=\"\",\"\",'1. Ordersheet'!AR787)","v":""},{"$f":"IF('1. Ordersheet'!AE787=\"\",\"\",'1. Ordersheet'!AE787)","v":""}]
[{"$f":"IF('1. Ordersheet'!B788=\"\",\"\",'1. Ordersheet'!B788)","v":""},{"$f":"IF('1. Ordersheet'!I788=\"\",\"\",'1. Ordersheet'!I788)","v":""},{"$f":"IF('1. Ordersheet'!J788=\"\",\"\",'1. Ordersheet'!J788)","v":""},{"$f":"IF('1. Ordersheet'!K788=\"\",\"\",'1. Ordersheet'!K788)","v":""},{"$f":"IF('1. Ordersheet'!M788=\"\",\"\",'1. Ordersheet'!M788)","v":""},null,null,{"$f":"IF('1. Ordersheet'!AR788=\"\",\"\",'1. Ordersheet'!AR788)","v":""},{"$f":"IF('1. Ordersheet'!AE788=\"\",\"\",'1. Ordersheet'!AE788)","v":""}]
[{"$f":"IF('1. Ordersheet'!B789=\"\",\"\",'1. Ordersheet'!B789)","v":""},{"$f":"IF('1. Ordersheet'!I789=\"\",\"\",'1. Ordersheet'!I789)","v":""},{"$f":"IF('1. Ordersheet'!J789=\"\",\"\",'1. Ordersheet'!J789)","v":""},{"$f":"IF('1. Ordersheet'!K789=\"\",\"\",'1. Ordersheet'!K789)","v":""},{"$f":"IF('1. Ordersheet'!M789=\"\",\"\",'1. Ordersheet'!M789)","v":""},null,null,{"$f":"IF('1. Ordersheet'!AR789=\"\",\"\",'1. Ordersheet'!AR789)","v":""},{"$f":"IF('1. Ordersheet'!AE789=\"\",\"\",'1. Ordersheet'!AE789)","v":""}]
[{"$f":"IF('1. Ordersheet'!B790=\"\",\"\",'1. Ordersheet'!B790)","v":""},{"$f":"IF('1. Ordersheet'!I790=\"\",\"\",'1. Ordersheet'!I790)","v":""},{"$f":"IF('1. Ordersheet'!J790=\"\",\"\",'1. Ordersheet'!J790)","v":""},{"$f":"IF('1. Ordersheet'!K790=\"\",\"\",'1. Ordersheet'!K790)","v":""},{"$f":"IF('1. Ordersheet'!M790=\"\",\"\",'1. Ordersheet'!M790)","v":""},null,null,{"$f":"IF('1. Ordersheet'!AR790=\"\",\"\",'1. Ordersheet'!AR790)","v":""},{"$f":"IF('1. Ordersheet'!AE790=\"\",\"\",'1. Ordersheet'!AE790)","v":""}]
[{"$f":"IF('1. Ordersheet'!B791=\"\",\"\",'1. Ordersheet'!B791)","v":""},{"$f":"IF('1. Ordersheet'!I791=\"\",\"\",'1. Ordersheet'!I791)","v":""},{"$f":"IF('1. Ordersheet'!J791=\"\",\"\",'1. Ordersheet'!J791)","v":""},{"$f":"IF('1. Ordersheet'!K791=\"\",\"\",'1. Ordersheet'!K791)","v":""},{"$f":"IF('1. Ordersheet'!M791=\"\",\"\",'1. Ordersheet'!M791)","v":""},null,null,{"$f":"IF('1. Ordersheet'!AR791=\"\",\"\",'1. Ordersheet'!AR791)","v":""},{"$f":"IF('1. Ordersheet'!AE791=\"\",\"\",'1. Ordersheet'!AE791)","v":""}]
[{"$f":"IF('1. Ordersheet'!B792=\"\",\"\",'1. Ordersheet'!B792)","v":""},{"$f":"IF('1. Ordersheet'!I792=\"\",\"\",'1. Ordersheet'!I792)","v":""},{"$f":"IF('1. Ordersheet'!J792=\"\",\"\",'1. Ordersheet'!J792)","v":""},{"$f":"IF('1. Ordersheet'!K792=\"\",\"\",'1. Ordersheet'!K792)","v":""},{"$f":"IF('1. Ordersheet'!M792=\"\",\"\",'1. Ordersheet'!M792)","v":""},null,null,{"$f":"IF('1. Ordersheet'!AR792=\"\",\"\",'1. Ordersheet'!AR792)","v":""},{"$f":"IF('1. Ordersheet'!AE792=\"\",\"\",'1. Ordersheet'!AE792)","v":""}]
[{"$f":"IF('1. Ordersheet'!B793=\"\",\"\",'1. Ordersheet'!B793)","v":""},{"$f":"IF('1. Ordersheet'!I793=\"\",\"\",'1. Ordersheet'!I793)","v":""},{"$f":"IF('1. Ordersheet'!J793=\"\",\"\",'1. Ordersheet'!J793)","v":""},{"$f":"IF('1. Ordersheet'!K793=\"\",\"\",'1. Ordersheet'!K793)","v":""},{"$f":"IF('1. Ordersheet'!M793=\"\",\"\",'1. Ordersheet'!M793)","v":""},null,null,{"$f":"IF('1. Ordersheet'!AR793=\"\",\"\",'1. Ordersheet'!AR793)","v":""},{"$f":"IF('1. Ordersheet'!AE793=\"\",\"\",'1. Ordersheet'!AE793)","v":""}]
[{"$f":"IF('1. Ordersheet'!B794=\"\",\"\",'1. Ordersheet'!B794)","v":""},{"$f":"IF('1. Ordersheet'!I794=\"\",\"\",'1. Ordersheet'!I794)","v":""},{"$f":"IF('1. Ordersheet'!J794=\"\",\"\",'1. Ordersheet'!J794)","v":""},{"$f":"IF('1. Ordersheet'!K794=\"\",\"\",'1. Ordersheet'!K794)","v":""},{"$f":"IF('1. Ordersheet'!M794=\"\",\"\",'1. Ordersheet'!M794)","v":""},null,null,{"$f":"IF('1. Ordersheet'!AR794=\"\",\"\",'1. Ordersheet'!AR794)","v":""},{"$f":"IF('1. Ordersheet'!AE794=\"\",\"\",'1. Ordersheet'!AE794)","v":""}]
[{"$f":"IF('1. Ordersheet'!B795=\"\",\"\",'1. Ordersheet'!B795)","v":""},{"$f":"IF('1. Ordersheet'!I795=\"\",\"\",'1. Ordersheet'!I795)","v":""},{"$f":"IF('1. Ordersheet'!J795=\"\",\"\",'1. Ordersheet'!J795)","v":""},{"$f":"IF('1. Ordersheet'!K795=\"\",\"\",'1. Ordersheet'!K795)","v":""},{"$f":"IF('1. Ordersheet'!M795=\"\",\"\",'1. Ordersheet'!M795)","v":""},null,null,{"$f":"IF('1. Ordersheet'!AR795=\"\",\"\",'1. Ordersheet'!AR795)","v":""},{"$f":"IF('1. Ordersheet'!AE795=\"\",\"\",'1. Ordersheet'!AE795)","v":""}]
[{"$f":"IF('1. Ordersheet'!B796=\"\",\"\",'1. Ordersheet'!B796)","v":""},{"$f":"IF('1. Ordersheet'!I796=\"\",\"\",'1. Ordersheet'!I796)","v":""},{"$f":"IF('1. Ordersheet'!J796=\"\",\"\",'1. Ordersheet'!J796)","v":""},{"$f":"IF('1. Ordersheet'!K796=\"\",\"\",'1. Ordersheet'!K796)","v":""},{"$f":"IF('1. Ordersheet'!M796=\"\",\"\",'1. Ordersheet'!M796)","v":""},null,null,{"$f":"IF('1. Ordersheet'!AR796=\"\",\"\",'1. Ordersheet'!AR796)","v":""},{"$f":"IF('1. Ordersheet'!AE796=\"\",\"\",'1. Ordersheet'!AE796)","v":""}]
[{"$f":"IF('1. Ordersheet'!B797=\"\",\"\",'1. Ordersheet'!B797)","v":""},{"$f":"IF('1. Ordersheet'!I797=\"\",\"\",'1. Ordersheet'!I797)","v":""},{"$f":"IF('1. Ordersheet'!J797=\"\",\"\",'1. Ordersheet'!J797)","v":""},{"$f":"IF('1. Ordersheet'!K797=\"\",\"\",'1. Ordersheet'!K797)","v":""},{"$f":"IF('1. Ordersheet'!M797=\"\",\"\",'1. Ordersheet'!M797)","v":""},null,null,{"$f":"IF('1. Ordersheet'!AR797=\"\",\"\",'1. Ordersheet'!AR797)","v":""},{"$f":"IF('1. Ordersheet'!AE797=\"\",\"\",'1. Ordersheet'!AE797)","v":""}]
[{"$f":"IF('1. Ordersheet'!B798=\"\",\"\",'1. Ordersheet'!B798)","v":""},{"$f":"IF('1. Ordersheet'!I798=\"\",\"\",'1. Ordersheet'!I798)","v":""},{"$f":"IF('1. Ordersheet'!J798=\"\",\"\",'1. Ordersheet'!J798)","v":""},{"$f":"IF('1. Ordersheet'!K798=\"\",\"\",'1. Ordersheet'!K798)","v":""},{"$f":"IF('1. Ordersheet'!M798=\"\",\"\",'1. Ordersheet'!M798)","v":""},null,null,{"$f":"IF('1. Ordersheet'!AR798=\"\",\"\",'1. Ordersheet'!AR798)","v":""},{"$f":"IF('1. Ordersheet'!AE798=\"\",\"\",'1. Ordersheet'!AE798)","v":""}]
[{"$f":"IF('1. Ordersheet'!B799=\"\",\"\",'1. Ordersheet'!B799)","v":""},{"$f":"IF('1. Ordersheet'!I799=\"\",\"\",'1. Ordersheet'!I799)","v":""},{"$f":"IF('1. Ordersheet'!J799=\"\",\"\",'1. Ordersheet'!J799)","v":""},{"$f":"IF('1. Ordersheet'!K799=\"\",\"\",'1. Ordersheet'!K799)","v":""},{"$f":"IF('1. Ordersheet'!M799=\"\",\"\",'1. Ordersheet'!M799)","v":""},null,null,{"$f":"IF('1. Ordersheet'!AR799=\"\",\"\",'1. Ordersheet'!AR799)","v":""},{"$f":"IF('1. Ordersheet'!AE799=\"\",\"\",'1. Ordersheet'!AE799)","v":""}]
[{"$f":"IF('1. Ordersheet'!B800=\"\",\"\",'1. Ordersheet'!B800)","v":""},{"$f":"IF('1. Ordersheet'!I800=\"\",\"\",'1. Ordersheet'!I800)","v":""},{"$f":"IF('1. Ordersheet'!J800=\"\",\"\",'1. Ordersheet'!J800)","v":""},{"$f":"IF('1. Ordersheet'!K800=\"\",\"\",'1. Ordersheet'!K800)","v":""},{"$f":"IF('1. Ordersheet'!M800=\"\",\"\",'1. Ordersheet'!M800)","v":""},null,null,{"$f":"IF('1. Ordersheet'!AR800=\"\",\"\",'1. Ordersheet'!AR800)","v":""},{"$f":"IF('1. Ordersheet'!AE800=\"\",\"\",'1. Ordersheet'!AE800)","v":""}]
[{"$f":"IF('1. Ordersheet'!B801=\"\",\"\",'1. Ordersheet'!B801)","v":""},{"$f":"IF('1. Ordersheet'!I801=\"\",\"\",'1. Ordersheet'!I801)","v":""},{"$f":"IF('1. Ordersheet'!J801=\"\",\"\",'1. Ordersheet'!J801)","v":""},{"$f":"IF('1. Ordersheet'!K801=\"\",\"\",'1. Ordersheet'!K801)","v":""},{"$f":"IF('1. Ordersheet'!M801=\"\",\"\",'1. Ordersheet'!M801)","v":""},null,null,{"$f":"IF('1. Ordersheet'!AR801=\"\",\"\",'1. Ordersheet'!AR801)","v":""},{"$f":"IF('1. Ordersheet'!AE801=\"\",\"\",'1. Ordersheet'!AE801)","v":""}]
[{"$f":"IF('1. Ordersheet'!B802=\"\",\"\",'1. Ordersheet'!B802)","v":""},{"$f":"IF('1. Ordersheet'!I802=\"\",\"\",'1. Ordersheet'!I802)","v":""},{"$f":"IF('1. Ordersheet'!J802=\"\",\"\",'1. Ordersheet'!J802)","v":""},{"$f":"IF('1. Ordersheet'!K802=\"\",\"\",'1. Ordersheet'!K802)","v":""},{"$f":"IF('1. Ordersheet'!M802=\"\",\"\",'1. Ordersheet'!M802)","v":""},null,null,{"$f":"IF('1. Ordersheet'!AR802=\"\",\"\",'1. Ordersheet'!AR802)","v":""},{"$f":"IF('1. Ordersheet'!AE802=\"\",\"\",'1. Ordersheet'!AE802)","v":""}]
[{"$f":"IF('1. Ordersheet'!B803=\"\",\"\",'1. Ordersheet'!B803)","v":""},{"$f":"IF('1. Ordersheet'!I803=\"\",\"\",'1. Ordersheet'!I803)","v":""},{"$f":"IF('1. Ordersheet'!J803=\"\",\"\",'1. Ordersheet'!J803)","v":""},{"$f":"IF('1. Ordersheet'!K803=\"\",\"\",'1. Ordersheet'!K803)","v":""},{"$f":"IF('1. Ordersheet'!M803=\"\",\"\",'1. Ordersheet'!M803)","v":""},null,null,{"$f":"IF('1. Ordersheet'!AR803=\"\",\"\",'1. Ordersheet'!AR803)","v":""},{"$f":"IF('1. Ordersheet'!AE803=\"\",\"\",'1. Ordersheet'!AE803)","v":""}]
[{"$f":"IF('1. Ordersheet'!B804=\"\",\"\",'1. Ordersheet'!B804)","v":""},{"$f":"IF('1. Ordersheet'!I804=\"\",\"\",'1. Ordersheet'!I804)","v":""},{"$f":"IF('1. Ordersheet'!J804=\"\",\"\",'1. Ordersheet'!J804)","v":""},{"$f":"IF('1. Ordersheet'!K804=\"\",\"\",'1. Ordersheet'!K804)","v":""},{"$f":"IF('1. Ordersheet'!M804=\"\",\"\",'1. Ordersheet'!M804)","v":""},null,null,{"$f":"IF('1. Ordersheet'!AR804=\"\",\"\",'1. Ordersheet'!AR804)","v":""},{"$f":"IF('1. Ordersheet'!AE804=\"\",\"\",'1. Ordersheet'!AE804)","v":""}]
[{"$f":"IF('1. Ordersheet'!B805=\"\",\"\",'1. Ordersheet'!B805)","v":""},{"$f":"IF('1. Ordersheet'!I805=\"\",\"\",'1. Ordersheet'!I805)","v":""},{"$f":"IF('1. Ordersheet'!J805=\"\",\"\",'1. Ordersheet'!J805)","v":""},{"$f":"IF('1. Ordersheet'!K805=\"\",\"\",'1. Ordersheet'!K805)","v":""},{"$f":"IF('1. Ordersheet'!M805=\"\",\"\",'1. Ordersheet'!M805)","v":""},null,null,{"$f":"IF('1. Ordersheet'!AR805=\"\",\"\",'1. Ordersheet'!AR805)","v":""},{"$f":"IF('1. Ordersheet'!AE805=\"\",\"\",'1. Ordersheet'!AE805)","v":""}]
[{"$f":"IF('1. Ordersheet'!B806=\"\",\"\",'1. Ordersheet'!B806)","v":""},{"$f":"IF('1. Ordersheet'!I806=\"\",\"\",'1. Ordersheet'!I806)","v":""},{"$f":"IF('1. Ordersheet'!J806=\"\",\"\",'1. Ordersheet'!J806)","v":""},{"$f":"IF('1. Ordersheet'!K806=\"\",\"\",'1. Ordersheet'!K806)","v":""},{"$f":"IF('1. Ordersheet'!M806=\"\",\"\",'1. Ordersheet'!M806)","v":""},null,null,{"$f":"IF('1. Ordersheet'!AR806=\"\",\"\",'1. Ordersheet'!AR806)","v":""},{"$f":"IF('1. Ordersheet'!AE806=\"\",\"\",'1. Ordersheet'!AE806)","v":""}]
[{"$f":"IF('1. Ordersheet'!B807=\"\",\"\",'1. Ordersheet'!B807)","v":""},{"$f":"IF('1. Ordersheet'!I807=\"\",\"\",'1. Ordersheet'!I807)","v":""},{"$f":"IF('1. Ordersheet'!J807=\"\",\"\",'1. Ordersheet'!J807)","v":""},{"$f":"IF('1. Ordersheet'!K807=\"\",\"\",'1. Ordersheet'!K807)","v":""},{"$f":"IF('1. Ordersheet'!M807=\"\",\"\",'1. Ordersheet'!M807)","v":""},null,null,{"$f":"IF('1. Ordersheet'!AR807=\"\",\"\",'1. Ordersheet'!AR807)","v":""},{"$f":"IF('1. Ordersheet'!AE807=\"\",\"\",'1. Ordersheet'!AE807)","v":""}]
[{"$f":"IF('1. Ordersheet'!B808=\"\",\"\",'1. Ordersheet'!B808)","v":""},{"$f":"IF('1. Ordersheet'!I808=\"\",\"\",'1. Ordersheet'!I808)","v":""},{"$f":"IF('1. Ordersheet'!J808=\"\",\"\",'1. Ordersheet'!J808)","v":""},{"$f":"IF('1. Ordersheet'!K808=\"\",\"\",'1. Ordersheet'!K808)","v":""},{"$f":"IF('1. Ordersheet'!M808=\"\",\"\",'1. Ordersheet'!M808)","v":""},null,null,{"$f":"IF('1. Ordersheet'!AR808=\"\",\"\",'1. Ordersheet'!AR808)","v":""},{"$f":"IF('1. Ordersheet'!AE808=\"\",\"\",'1. Ordersheet'!AE808)","v":""}]
[{"$f":"IF('1. Ordersheet'!B809=\"\",\"\",'1. Ordersheet'!B809)","v":""},{"$f":"IF('1. Ordersheet'!I809=\"\",\"\",'1. Ordersheet'!I809)","v":""},{"$f":"IF('1. Ordersheet'!J809=\"\",\"\",'1. Ordersheet'!J809)","v":""},{"$f":"IF('1. Ordersheet'!K809=\"\",\"\",'1. Ordersheet'!K809)","v":""},{"$f":"IF('1. Ordersheet'!M809=\"\",\"\",'1. Ordersheet'!M809)","v":""},null,null,{"$f":"IF('1. Ordersheet'!AR809=\"\",\"\",'1. Ordersheet'!AR809)","v":""},{"$f":"IF('1. Ordersheet'!AE809=\"\",\"\",'1. Ordersheet'!AE809)","v":""}]
[{"$f":"IF('1. Ordersheet'!B810=\"\",\"\",'1. Ordersheet'!B810)","v":""},{"$f":"IF('1. Ordersheet'!I810=\"\",\"\",'1. Ordersheet'!I810)","v":""},{"$f":"IF('1. Ordersheet'!J810=\"\",\"\",'1. Ordersheet'!J810)","v":""},{"$f":"IF('1. Ordersheet'!K810=\"\",\"\",'1. Ordersheet'!K810)","v":""},{"$f":"IF('1. Ordersheet'!M810=\"\",\"\",'1. Ordersheet'!M810)","v":""},null,null,{"$f":"IF('1. Ordersheet'!AR810=\"\",\"\",'1. Ordersheet'!AR810)","v":""},{"$f":"IF('1. Ordersheet'!AE810=\"\",\"\",'1. Ordersheet'!AE810)","v":""}]
[{"$f":"IF('1. Ordersheet'!B811=\"\",\"\",'1. Ordersheet'!B811)","v":""},{"$f":"IF('1. Ordersheet'!I811=\"\",\"\",'1. Ordersheet'!I811)","v":""},{"$f":"IF('1. Ordersheet'!J811=\"\",\"\",'1. Ordersheet'!J811)","v":""},{"$f":"IF('1. Ordersheet'!K811=\"\",\"\",'1. Ordersheet'!K811)","v":""},{"$f":"IF('1. Ordersheet'!M811=\"\",\"\",'1. Ordersheet'!M811)","v":""},null,null,{"$f":"IF('1. Ordersheet'!AR811=\"\",\"\",'1. Ordersheet'!AR811)","v":""},{"$f":"IF('1. Ordersheet'!AE811=\"\",\"\",'1. Ordersheet'!AE811)","v":""}]
[{"$f":"IF('1. Ordersheet'!B812=\"\",\"\",'1. Ordersheet'!B812)","v":""},{"$f":"IF('1. Ordersheet'!I812=\"\",\"\",'1. Ordersheet'!I812)","v":""},{"$f":"IF('1. Ordersheet'!J812=\"\",\"\",'1. Ordersheet'!J812)","v":""},{"$f":"IF('1. Ordersheet'!K812=\"\",\"\",'1. Ordersheet'!K812)","v":""},{"$f":"IF('1. Ordersheet'!M812=\"\",\"\",'1. Ordersheet'!M812)","v":""},null,null,{"$f":"IF('1. Ordersheet'!AR812=\"\",\"\",'1. Ordersheet'!AR812)","v":""},{"$f":"IF('1. Ordersheet'!AE812=\"\",\"\",'1. Ordersheet'!AE812)","v":""}]
[{"$f":"IF('1. Ordersheet'!B813=\"\",\"\",'1. Ordersheet'!B813)","v":""},{"$f":"IF('1. Ordersheet'!I813=\"\",\"\",'1. Ordersheet'!I813)","v":""},{"$f":"IF('1. Ordersheet'!J813=\"\",\"\",'1. Ordersheet'!J813)","v":""},{"$f":"IF('1. Ordersheet'!K813=\"\",\"\",'1. Ordersheet'!K813)","v":""},{"$f":"IF('1. Ordersheet'!M813=\"\",\"\",'1. Ordersheet'!M813)","v":""},null,null,{"$f":"IF('1. Ordersheet'!AR813=\"\",\"\",'1. Ordersheet'!AR813)","v":""},{"$f":"IF('1. Ordersheet'!AE813=\"\",\"\",'1. Ordersheet'!AE813)","v":""}]
[{"$f":"IF('1. Ordersheet'!B814=\"\",\"\",'1. Ordersheet'!B814)","v":""},{"$f":"IF('1. Ordersheet'!I814=\"\",\"\",'1. Ordersheet'!I814)","v":""},{"$f":"IF('1. Ordersheet'!J814=\"\",\"\",'1. Ordersheet'!J814)","v":""},{"$f":"IF('1. Ordersheet'!K814=\"\",\"\",'1. Ordersheet'!K814)","v":""},{"$f":"IF('1. Ordersheet'!M814=\"\",\"\",'1. Ordersheet'!M814)","v":""},null,null,{"$f":"IF('1. Ordersheet'!AR814=\"\",\"\",'1. Ordersheet'!AR814)","v":""},{"$f":"IF('1. Ordersheet'!AE814=\"\",\"\",'1. Ordersheet'!AE814)","v":""}]
[{"$f":"IF('1. Ordersheet'!B815=\"\",\"\",'1. Ordersheet'!B815)","v":""},{"$f":"IF('1. Ordersheet'!I815=\"\",\"\",'1. Ordersheet'!I815)","v":""},{"$f":"IF('1. Ordersheet'!J815=\"\",\"\",'1. Ordersheet'!J815)","v":""},{"$f":"IF('1. Ordersheet'!K815=\"\",\"\",'1. Ordersheet'!K815)","v":""},{"$f":"IF('1. Ordersheet'!M815=\"\",\"\",'1. Ordersheet'!M815)","v":""},null,null,{"$f":"IF('1. Ordersheet'!AR815=\"\",\"\",'1. Ordersheet'!AR815)","v":""},{"$f":"IF('1. Ordersheet'!AE815=\"\",\"\",'1. Ordersheet'!AE815)","v":""}]
[{"$f":"IF('1. Ordersheet'!B816=\"\",\"\",'1. Ordersheet'!B816)","v":""},{"$f":"IF('1. Ordersheet'!I816=\"\",\"\",'1. Ordersheet'!I816)","v":""},{"$f":"IF('1. Ordersheet'!J816=\"\",\"\",'1. Ordersheet'!J816)","v":""},{"$f":"IF('1. Ordersheet'!K816=\"\",\"\",'1. Ordersheet'!K816)","v":""},{"$f":"IF('1. Ordersheet'!M816=\"\",\"\",'1. Ordersheet'!M816)","v":""},null,null,{"$f":"IF('1. Ordersheet'!AR816=\"\",\"\",'1. Ordersheet'!AR816)","v":""},{"$f":"IF('1. Ordersheet'!AE816=\"\",\"\",'1. Ordersheet'!AE816)","v":""}]
[{"$f":"IF('1. Ordersheet'!B817=\"\",\"\",'1. Ordersheet'!B817)","v":""},{"$f":"IF('1. Ordersheet'!I817=\"\",\"\",'1. Ordersheet'!I817)","v":""},{"$f":"IF('1. Ordersheet'!J817=\"\",\"\",'1. Ordersheet'!J817)","v":""},{"$f":"IF('1. Ordersheet'!K817=\"\",\"\",'1. Ordersheet'!K817)","v":""},{"$f":"IF('1. Ordersheet'!M817=\"\",\"\",'1. Ordersheet'!M817)","v":""},null,null,{"$f":"IF('1. Ordersheet'!AR817=\"\",\"\",'1. Ordersheet'!AR817)","v":""},{"$f":"IF('1. Ordersheet'!AE817=\"\",\"\",'1. Ordersheet'!AE817)","v":""}]
[{"$f":"IF('1. Ordersheet'!B818=\"\",\"\",'1. Ordersheet'!B818)","v":""},{"$f":"IF('1. Ordersheet'!I818=\"\",\"\",'1. Ordersheet'!I818)","v":""},{"$f":"IF('1. Ordersheet'!J818=\"\",\"\",'1. Ordersheet'!J818)","v":""},{"$f":"IF('1. Ordersheet'!K818=\"\",\"\",'1. Ordersheet'!K818)","v":""},{"$f":"IF('1. Ordersheet'!M818=\"\",\"\",'1. Ordersheet'!M818)","v":""},null,null,{"$f":"IF('1. Ordersheet'!AR818=\"\",\"\",'1. Ordersheet'!AR818)","v":""},{"$f":"IF('1. Ordersheet'!AE818=\"\",\"\",'1. Ordersheet'!AE818)","v":""}]
[{"$f":"IF('1. Ordersheet'!B819=\"\",\"\",'1. Ordersheet'!B819)","v":""},{"$f":"IF('1. Ordersheet'!I819=\"\",\"\",'1. Ordersheet'!I819)","v":""},{"$f":"IF('1. Ordersheet'!J819=\"\",\"\",'1. Ordersheet'!J819)","v":""},{"$f":"IF('1. Ordersheet'!K819=\"\",\"\",'1. Ordersheet'!K819)","v":""},{"$f":"IF('1. Ordersheet'!M819=\"\",\"\",'1. Ordersheet'!M819)","v":""},null,null,{"$f":"IF('1. Ordersheet'!AR819=\"\",\"\",'1. Ordersheet'!AR819)","v":""},{"$f":"IF('1. Ordersheet'!AE819=\"\",\"\",'1. Ordersheet'!AE819)","v":""}]
[{"$f":"IF('1. Ordersheet'!B820=\"\",\"\",'1. Ordersheet'!B820)","v":""},{"$f":"IF('1. Ordersheet'!I820=\"\",\"\",'1. Ordersheet'!I820)","v":""},{"$f":"IF('1. Ordersheet'!J820=\"\",\"\",'1. Ordersheet'!J820)","v":""},{"$f":"IF('1. Ordersheet'!K820=\"\",\"\",'1. Ordersheet'!K820)","v":""},{"$f":"IF('1. Ordersheet'!M820=\"\",\"\",'1. Ordersheet'!M820)","v":""},null,null,{"$f":"IF('1. Ordersheet'!AR820=\"\",\"\",'1. Ordersheet'!AR820)","v":""},{"$f":"IF('1. Ordersheet'!AE820=\"\",\"\",'1. Ordersheet'!AE820)","v":""}]
[{"$f":"IF('1. Ordersheet'!B821=\"\",\"\",'1. Ordersheet'!B821)","v":""},{"$f":"IF('1. Ordersheet'!I821=\"\",\"\",'1. Ordersheet'!I821)","v":""},{"$f":"IF('1. Ordersheet'!J821=\"\",\"\",'1. Ordersheet'!J821)","v":""},{"$f":"IF('1. Ordersheet'!K821=\"\",\"\",'1. Ordersheet'!K821)","v":""},{"$f":"IF('1. Ordersheet'!M821=\"\",\"\",'1. Ordersheet'!M821)","v":""},null,null,{"$f":"IF('1. Ordersheet'!AR821=\"\",\"\",'1. Ordersheet'!AR821)","v":""},{"$f":"IF('1. Ordersheet'!AE821=\"\",\"\",'1. Ordersheet'!AE821)","v":""}]
[{"$f":"IF('1. Ordersheet'!B822=\"\",\"\",'1. Ordersheet'!B822)","v":""},{"$f":"IF('1. Ordersheet'!I822=\"\",\"\",'1. Ordersheet'!I822)","v":""},{"$f":"IF('1. Ordersheet'!J822=\"\",\"\",'1. Ordersheet'!J822)","v":""},{"$f":"IF('1. Ordersheet'!K822=\"\",\"\",'1. Ordersheet'!K822)","v":""},{"$f":"IF('1. Ordersheet'!M822=\"\",\"\",'1. Ordersheet'!M822)","v":""},null,null,{"$f":"IF('1. Ordersheet'!AR822=\"\",\"\",'1. Ordersheet'!AR822)","v":""},{"$f":"IF('1. Ordersheet'!AE822=\"\",\"\",'1. Ordersheet'!AE822)","v":""}]
[{"$f":"IF('1. Ordersheet'!B823=\"\",\"\",'1. Ordersheet'!B823)","v":""},{"$f":"IF('1. Ordersheet'!I823=\"\",\"\",'1. Ordersheet'!I823)","v":""},{"$f":"IF('1. Ordersheet'!J823=\"\",\"\",'1. Ordersheet'!J823)","v":""},{"$f":"IF('1. Ordersheet'!K823=\"\",\"\",'1. Ordersheet'!K823)","v":""},{"$f":"IF('1. Ordersheet'!M823=\"\",\"\",'1. Ordersheet'!M823)","v":""},null,null,{"$f":"IF('1. Ordersheet'!AR823=\"\",\"\",'1. Ordersheet'!AR823)","v":""},{"$f":"IF('1. Ordersheet'!AE823=\"\",\"\",'1. Ordersheet'!AE823)","v":""}]
[{"$f":"IF('1. Ordersheet'!B824=\"\",\"\",'1. Ordersheet'!B824)","v":""},{"$f":"IF('1. Ordersheet'!I824=\"\",\"\",'1. Ordersheet'!I824)","v":""},{"$f":"IF('1. Ordersheet'!J824=\"\",\"\",'1. Ordersheet'!J824)","v":""},{"$f":"IF('1. Ordersheet'!K824=\"\",\"\",'1. Ordersheet'!K824)","v":""},{"$f":"IF('1. Ordersheet'!M824=\"\",\"\",'1. Ordersheet'!M824)","v":""},null,null,{"$f":"IF('1. Ordersheet'!AR824=\"\",\"\",'1. Ordersheet'!AR824)","v":""},{"$f":"IF('1. Ordersheet'!AE824=\"\",\"\",'1. Ordersheet'!AE824)","v":""}]
[{"$f":"IF('1. Ordersheet'!B825=\"\",\"\",'1. Ordersheet'!B825)","v":""},{"$f":"IF('1. Ordersheet'!I825=\"\",\"\",'1. Ordersheet'!I825)","v":""},{"$f":"IF('1. Ordersheet'!J825=\"\",\"\",'1. Ordersheet'!J825)","v":""},{"$f":"IF('1. Ordersheet'!K825=\"\",\"\",'1. Ordersheet'!K825)","v":""},{"$f":"IF('1. Ordersheet'!M825=\"\",\"\",'1. Ordersheet'!M825)","v":""},null,null,{"$f":"IF('1. Ordersheet'!AR825=\"\",\"\",'1. Ordersheet'!AR825)","v":""},{"$f":"IF('1. Ordersheet'!AE825=\"\",\"\",'1. Ordersheet'!AE825)","v":""}]
[{"$f":"IF('1. Ordersheet'!B826=\"\",\"\",'1. Ordersheet'!B826)","v":""},{"$f":"IF('1. Ordersheet'!I826=\"\",\"\",'1. Ordersheet'!I826)","v":""},{"$f":"IF('1. Ordersheet'!J826=\"\",\"\",'1. Ordersheet'!J826)","v":""},{"$f":"IF('1. Ordersheet'!K826=\"\",\"\",'1. Ordersheet'!K826)","v":""},{"$f":"IF('1. Ordersheet'!M826=\"\",\"\",'1. Ordersheet'!M826)","v":""},null,null,{"$f":"IF('1. Ordersheet'!AR826=\"\",\"\",'1. Ordersheet'!AR826)","v":""},{"$f":"IF('1. Ordersheet'!AE826=\"\",\"\",'1. Ordersheet'!AE826)","v":""}]
[{"$f":"IF('1. Ordersheet'!B827=\"\",\"\",'1. Ordersheet'!B827)","v":""},{"$f":"IF('1. Ordersheet'!I827=\"\",\"\",'1. Ordersheet'!I827)","v":""},{"$f":"IF('1. Ordersheet'!J827=\"\",\"\",'1. Ordersheet'!J827)","v":""},{"$f":"IF('1. Ordersheet'!K827=\"\",\"\",'1. Ordersheet'!K827)","v":""},{"$f":"IF('1. Ordersheet'!M827=\"\",\"\",'1. Ordersheet'!M827)","v":""},null,null,{"$f":"IF('1. Ordersheet'!AR827=\"\",\"\",'1. Ordersheet'!AR827)","v":""},{"$f":"IF('1. Ordersheet'!AE827=\"\",\"\",'1. Ordersheet'!AE827)","v":""}]
[{"$f":"IF('1. Ordersheet'!B828=\"\",\"\",'1. Ordersheet'!B828)","v":""},{"$f":"IF('1. Ordersheet'!I828=\"\",\"\",'1. Ordersheet'!I828)","v":""},{"$f":"IF('1. Ordersheet'!J828=\"\",\"\",'1. Ordersheet'!J828)","v":""},{"$f":"IF('1. Ordersheet'!K828=\"\",\"\",'1. Ordersheet'!K828)","v":""},{"$f":"IF('1. Ordersheet'!M828=\"\",\"\",'1. Ordersheet'!M828)","v":""},null,null,{"$f":"IF('1. Ordersheet'!AR828=\"\",\"\",'1. Ordersheet'!AR828)","v":""},{"$f":"IF('1. Ordersheet'!AE828=\"\",\"\",'1. Ordersheet'!AE828)","v":""}]
[{"$f":"IF('1. Ordersheet'!B829=\"\",\"\",'1. Ordersheet'!B829)","v":""},{"$f":"IF('1. Ordersheet'!I829=\"\",\"\",'1. Ordersheet'!I829)","v":""},{"$f":"IF('1. Ordersheet'!J829=\"\",\"\",'1. Ordersheet'!J829)","v":""},{"$f":"IF('1. Ordersheet'!K829=\"\",\"\",'1. Ordersheet'!K829)","v":""},{"$f":"IF('1. Ordersheet'!M829=\"\",\"\",'1. Ordersheet'!M829)","v":""},null,null,{"$f":"IF('1. Ordersheet'!AR829=\"\",\"\",'1. Ordersheet'!AR829)","v":""},{"$f":"IF('1. Ordersheet'!AE829=\"\",\"\",'1. Ordersheet'!AE829)","v":""}]
[{"$f":"IF('1. Ordersheet'!B830=\"\",\"\",'1. Ordersheet'!B830)","v":""},{"$f":"IF('1. Ordersheet'!I830=\"\",\"\",'1. Ordersheet'!I830)","v":""},{"$f":"IF('1. Ordersheet'!J830=\"\",\"\",'1. Ordersheet'!J830)","v":""},{"$f":"IF('1. Ordersheet'!K830=\"\",\"\",'1. Ordersheet'!K830)","v":""},{"$f":"IF('1. Ordersheet'!M830=\"\",\"\",'1. Ordersheet'!M830)","v":""},null,null,{"$f":"IF('1. Ordersheet'!AR830=\"\",\"\",'1. Ordersheet'!AR830)","v":""},{"$f":"IF('1. Ordersheet'!AE830=\"\",\"\",'1. Ordersheet'!AE830)","v":""}]
[{"$f":"IF('1. Ordersheet'!B831=\"\",\"\",'1. Ordersheet'!B831)","v":""},{"$f":"IF('1. Ordersheet'!I831=\"\",\"\",'1. Ordersheet'!I831)","v":""},{"$f":"IF('1. Ordersheet'!J831=\"\",\"\",'1. Ordersheet'!J831)","v":""},{"$f":"IF('1. Ordersheet'!K831=\"\",\"\",'1. Ordersheet'!K831)","v":""},{"$f":"IF('1. Ordersheet'!M831=\"\",\"\",'1. Ordersheet'!M831)","v":""},null,null,{"$f":"IF('1. Ordersheet'!AR831=\"\",\"\",'1. Ordersheet'!AR831)","v":""},{"$f":"IF('1. Ordersheet'!AE831=\"\",\"\",'1. Ordersheet'!AE831)","v":""}]
[{"$f":"IF('1. Ordersheet'!B832=\"\",\"\",'1. Ordersheet'!B832)","v":""},{"$f":"IF('1. Ordersheet'!I832=\"\",\"\",'1. Ordersheet'!I832)","v":""},{"$f":"IF('1. Ordersheet'!J832=\"\",\"\",'1. Ordersheet'!J832)","v":""},{"$f":"IF('1. Ordersheet'!K832=\"\",\"\",'1. Ordersheet'!K832)","v":""},{"$f":"IF('1. Ordersheet'!M832=\"\",\"\",'1. Ordersheet'!M832)","v":""},null,null,{"$f":"IF('1. Ordersheet'!AR832=\"\",\"\",'1. Ordersheet'!AR832)","v":""},{"$f":"IF('1. Ordersheet'!AE832=\"\",\"\",'1. Ordersheet'!AE832)","v":""}]
[{"$f":"IF('1. Ordersheet'!B833=\"\",\"\",'1. Ordersheet'!B833)","v":""},{"$f":"IF('1. Ordersheet'!I833=\"\",\"\",'1. Ordersheet'!I833)","v":""},{"$f":"IF('1. Ordersheet'!J833=\"\",\"\",'1. Ordersheet'!J833)","v":""},{"$f":"IF('1. Ordersheet'!K833=\"\",\"\",'1. Ordersheet'!K833)","v":""},{"$f":"IF('1. Ordersheet'!M833=\"\",\"\",'1. Ordersheet'!M833)","v":""},null,null,{"$f":"IF('1. Ordersheet'!AR833=\"\",\"\",'1. Ordersheet'!AR833)","v":""},{"$f":"IF('1. Ordersheet'!AE833=\"\",\"\",'1. Ordersheet'!AE833)","v":""}]
[{"$f":"IF('1. Ordersheet'!B834=\"\",\"\",'1. Ordersheet'!B834)","v":""},{"$f":"IF('1. Ordersheet'!I834=\"\",\"\",'1. Ordersheet'!I834)","v":""},{"$f":"IF('1. Ordersheet'!J834=\"\",\"\",'1. Ordersheet'!J834)","v":""},{"$f":"IF('1. Ordersheet'!K834=\"\",\"\",'1. Ordersheet'!K834)","v":""},{"$f":"IF('1. Ordersheet'!M834=\"\",\"\",'1. Ordersheet'!M834)","v":""},null,null,{"$f":"IF('1. Ordersheet'!AR834=\"\",\"\",'1. Ordersheet'!AR834)","v":""},{"$f":"IF('1. Ordersheet'!AE834=\"\",\"\",'1. Ordersheet'!AE834)","v":""}]
[{"$f":"IF('1. Ordersheet'!B835=\"\",\"\",'1. Ordersheet'!B835)","v":""},{"$f":"IF('1. Ordersheet'!I835=\"\",\"\",'1. Ordersheet'!I835)","v":""},{"$f":"IF('1. Ordersheet'!J835=\"\",\"\",'1. Ordersheet'!J835)","v":""},{"$f":"IF('1. Ordersheet'!K835=\"\",\"\",'1. Ordersheet'!K835)","v":""},{"$f":"IF('1. Ordersheet'!M835=\"\",\"\",'1. Ordersheet'!M835)","v":""},null,null,{"$f":"IF('1. Ordersheet'!AR835=\"\",\"\",'1. Ordersheet'!AR835)","v":""},{"$f":"IF('1. Ordersheet'!AE835=\"\",\"\",'1. Ordersheet'!AE835)","v":""}]
[{"$f":"IF('1. Ordersheet'!B836=\"\",\"\",'1. Ordersheet'!B836)","v":""},{"$f":"IF('1. Ordersheet'!I836=\"\",\"\",'1. Ordersheet'!I836)","v":""},{"$f":"IF('1. Ordersheet'!J836=\"\",\"\",'1. Ordersheet'!J836)","v":""},{"$f":"IF('1. Ordersheet'!K836=\"\",\"\",'1. Ordersheet'!K836)","v":""},{"$f":"IF('1. Ordersheet'!M836=\"\",\"\",'1. Ordersheet'!M836)","v":""},null,null,{"$f":"IF('1. Ordersheet'!AR836=\"\",\"\",'1. Ordersheet'!AR836)","v":""},{"$f":"IF('1. Ordersheet'!AE836=\"\",\"\",'1. Ordersheet'!AE836)","v":""}]
[{"$f":"IF('1. Ordersheet'!B837=\"\",\"\",'1. Ordersheet'!B837)","v":""},{"$f":"IF('1. Ordersheet'!I837=\"\",\"\",'1. Ordersheet'!I837)","v":""},{"$f":"IF('1. Ordersheet'!J837=\"\",\"\",'1. Ordersheet'!J837)","v":""},{"$f":"IF('1. Ordersheet'!K837=\"\",\"\",'1. Ordersheet'!K837)","v":""},{"$f":"IF('1. Ordersheet'!M837=\"\",\"\",'1. Ordersheet'!M837)","v":""},null,null,{"$f":"IF('1. Ordersheet'!AR837=\"\",\"\",'1. Ordersheet'!AR837)","v":""},{"$f":"IF('1. Ordersheet'!AE837=\"\",\"\",'1. Ordersheet'!AE837)","v":""}]
[{"$f":"IF('1. Ordersheet'!B838=\"\",\"\",'1. Ordersheet'!B838)","v":""},{"$f":"IF('1. Ordersheet'!I838=\"\",\"\",'1. Ordersheet'!I838)","v":""},{"$f":"IF('1. Ordersheet'!J838=\"\",\"\",'1. Ordersheet'!J838)","v":""},{"$f":"IF('1. Ordersheet'!K838=\"\",\"\",'1. Ordersheet'!K838)","v":""},{"$f":"IF('1. Ordersheet'!M838=\"\",\"\",'1. Ordersheet'!M838)","v":""},null,null,{"$f":"IF('1. Ordersheet'!AR838=\"\",\"\",'1. Ordersheet'!AR838)","v":""},{"$f":"IF('1. Ordersheet'!AE838=\"\",\"\",'1. Ordersheet'!AE838)","v":""}]
[{"$f":"IF('1. Ordersheet'!B839=\"\",\"\",'1. Ordersheet'!B839)","v":""},{"$f":"IF('1. Ordersheet'!I839=\"\",\"\",'1. Ordersheet'!I839)","v":""},{"$f":"IF('1. Ordersheet'!J839=\"\",\"\",'1. Ordersheet'!J839)","v":""},{"$f":"IF('1. Ordersheet'!K839=\"\",\"\",'1. Ordersheet'!K839)","v":""},{"$f":"IF('1. Ordersheet'!M839=\"\",\"\",'1. Ordersheet'!M839)","v":""},null,null,{"$f":"IF('1. Ordersheet'!AR839=\"\",\"\",'1. Ordersheet'!AR839)","v":""},{"$f":"IF('1. Ordersheet'!AE839=\"\",\"\",'1. Ordersheet'!AE839)","v":""}]
[{"$f":"IF('1. Ordersheet'!B840=\"\",\"\",'1. Ordersheet'!B840)","v":""},{"$f":"IF('1. Ordersheet'!I840=\"\",\"\",'1. Ordersheet'!I840)","v":""},{"$f":"IF('1. Ordersheet'!J840=\"\",\"\",'1. Ordersheet'!J840)","v":""},{"$f":"IF('1. Ordersheet'!K840=\"\",\"\",'1. Ordersheet'!K840)","v":""},{"$f":"IF('1. Ordersheet'!M840=\"\",\"\",'1. Ordersheet'!M840)","v":""},null,null,{"$f":"IF('1. Ordersheet'!AR840=\"\",\"\",'1. Ordersheet'!AR840)","v":""},{"$f":"IF('1. Ordersheet'!AE840=\"\",\"\",'1. Ordersheet'!AE840)","v":""}]
[{"$f":"IF('1. Ordersheet'!B841=\"\",\"\",'1. Ordersheet'!B841)","v":""},{"$f":"IF('1. Ordersheet'!I841=\"\",\"\",'1. Ordersheet'!I841)","v":""},{"$f":"IF('1. Ordersheet'!J841=\"\",\"\",'1. Ordersheet'!J841)","v":""},{"$f":"IF('1. Ordersheet'!K841=\"\",\"\",'1. Ordersheet'!K841)","v":""},{"$f":"IF('1. Ordersheet'!M841=\"\",\"\",'1. Ordersheet'!M841)","v":""},null,null,{"$f":"IF('1. Ordersheet'!AR841=\"\",\"\",'1. Ordersheet'!AR841)","v":""},{"$f":"IF('1. Ordersheet'!AE841=\"\",\"\",'1. Ordersheet'!AE841)","v":""}]
[{"$f":"IF('1. Ordersheet'!B842=\"\",\"\",'1. Ordersheet'!B842)","v":""},{"$f":"IF('1. Ordersheet'!I842=\"\",\"\",'1. Ordersheet'!I842)","v":""},{"$f":"IF('1. Ordersheet'!J842=\"\",\"\",'1. Ordersheet'!J842)","v":""},{"$f":"IF('1. Ordersheet'!K842=\"\",\"\",'1. Ordersheet'!K842)","v":""},{"$f":"IF('1. Ordersheet'!M842=\"\",\"\",'1. Ordersheet'!M842)","v":""},null,null,{"$f":"IF('1. Ordersheet'!AR842=\"\",\"\",'1. Ordersheet'!AR842)","v":""},{"$f":"IF('1. Ordersheet'!AE842=\"\",\"\",'1. Ordersheet'!AE842)","v":""}]
[{"$f":"IF('1. Ordersheet'!B843=\"\",\"\",'1. Ordersheet'!B843)","v":""},{"$f":"IF('1. Ordersheet'!I843=\"\",\"\",'1. Ordersheet'!I843)","v":""},{"$f":"IF('1. Ordersheet'!J843=\"\",\"\",'1. Ordersheet'!J843)","v":""},{"$f":"IF('1. Ordersheet'!K843=\"\",\"\",'1. Ordersheet'!K843)","v":""},{"$f":"IF('1. Ordersheet'!M843=\"\",\"\",'1. Ordersheet'!M843)","v":""},null,null,{"$f":"IF('1. Ordersheet'!AR843=\"\",\"\",'1. Ordersheet'!AR843)","v":""},{"$f":"IF('1. Ordersheet'!AE843=\"\",\"\",'1. Ordersheet'!AE843)","v":""}]
[{"$f":"IF('1. Ordersheet'!B844=\"\",\"\",'1. Ordersheet'!B844)","v":""},{"$f":"IF('1. Ordersheet'!I844=\"\",\"\",'1. Ordersheet'!I844)","v":""},{"$f":"IF('1. Ordersheet'!J844=\"\",\"\",'1. Ordersheet'!J844)","v":""},{"$f":"IF('1. Ordersheet'!K844=\"\",\"\",'1. Ordersheet'!K844)","v":""},{"$f":"IF('1. Ordersheet'!M844=\"\",\"\",'1. Ordersheet'!M844)","v":""},null,null,{"$f":"IF('1. Ordersheet'!AR844=\"\",\"\",'1. Ordersheet'!AR844)","v":""},{"$f":"IF('1. Ordersheet'!AE844=\"\",\"\",'1. Ordersheet'!AE844)","v":""}]
[{"$f":"IF('1. Ordersheet'!B845=\"\",\"\",'1. Ordersheet'!B845)","v":""},{"$f":"IF('1. Ordersheet'!I845=\"\",\"\",'1. Ordersheet'!I845)","v":""},{"$f":"IF('1. Ordersheet'!J845=\"\",\"\",'1. Ordersheet'!J845)","v":""},{"$f":"IF('1. Ordersheet'!K845=\"\",\"\",'1. Ordersheet'!K845)","v":""},{"$f":"IF('1. Ordersheet'!M845=\"\",\"\",'1. Ordersheet'!M845)","v":""},null,null,{"$f":"IF('1. Ordersheet'!AR845=\"\",\"\",'1. Ordersheet'!AR845)","v":""},{"$f":"IF('1. Ordersheet'!AE845=\"\",\"\",'1. Ordersheet'!AE845)","v":""}]
[{"$f":"IF('1. Ordersheet'!B846=\"\",\"\",'1. Ordersheet'!B846)","v":""},{"$f":"IF('1. Ordersheet'!I846=\"\",\"\",'1. Ordersheet'!I846)","v":""},{"$f":"IF('1. Ordersheet'!J846=\"\",\"\",'1. Ordersheet'!J846)","v":""},{"$f":"IF('1. Ordersheet'!K846=\"\",\"\",'1. Ordersheet'!K846)","v":""},{"$f":"IF('1. Ordersheet'!M846=\"\",\"\",'1. Ordersheet'!M846)","v":""},null,null,{"$f":"IF('1. Ordersheet'!AR846=\"\",\"\",'1. Ordersheet'!AR846)","v":""},{"$f":"IF('1. Ordersheet'!AE846=\"\",\"\",'1. Ordersheet'!AE846)","v":""}]
[{"$f":"IF('1. Ordersheet'!B847=\"\",\"\",'1. Ordersheet'!B847)","v":""},{"$f":"IF('1. Ordersheet'!I847=\"\",\"\",'1. Ordersheet'!I847)","v":""},{"$f":"IF('1. Ordersheet'!J847=\"\",\"\",'1. Ordersheet'!J847)","v":""},{"$f":"IF('1. Ordersheet'!K847=\"\",\"\",'1. Ordersheet'!K847)","v":""},{"$f":"IF('1. Ordersheet'!M847=\"\",\"\",'1. Ordersheet'!M847)","v":""},null,null,{"$f":"IF('1. Ordersheet'!AR847=\"\",\"\",'1. Ordersheet'!AR847)","v":""},{"$f":"IF('1. Ordersheet'!AE847=\"\",\"\",'1. Ordersheet'!AE847)","v":""}]
[{"$f":"IF('1. Ordersheet'!B848=\"\",\"\",'1. Ordersheet'!B848)","v":""},{"$f":"IF('1. Ordersheet'!I848=\"\",\"\",'1. Ordersheet'!I848)","v":""},{"$f":"IF('1. Ordersheet'!J848=\"\",\"\",'1. Ordersheet'!J848)","v":""},{"$f":"IF('1. Ordersheet'!K848=\"\",\"\",'1. Ordersheet'!K848)","v":""},{"$f":"IF('1. Ordersheet'!M848=\"\",\"\",'1. Ordersheet'!M848)","v":""},null,null,{"$f":"IF('1. Ordersheet'!AR848=\"\",\"\",'1. Ordersheet'!AR848)","v":""},{"$f":"IF('1. Ordersheet'!AE848=\"\",\"\",'1. Ordersheet'!AE848)","v":""}]
[{"$f":"IF('1. Ordersheet'!B849=\"\",\"\",'1. Ordersheet'!B849)","v":""},{"$f":"IF('1. Ordersheet'!I849=\"\",\"\",'1. Ordersheet'!I849)","v":""},{"$f":"IF('1. Ordersheet'!J849=\"\",\"\",'1. Ordersheet'!J849)","v":""},{"$f":"IF('1. Ordersheet'!K849=\"\",\"\",'1. Ordersheet'!K849)","v":""},{"$f":"IF('1. Ordersheet'!M849=\"\",\"\",'1. Ordersheet'!M849)","v":""},null,null,{"$f":"IF('1. Ordersheet'!AR849=\"\",\"\",'1. Ordersheet'!AR849)","v":""},{"$f":"IF('1. Ordersheet'!AE849=\"\",\"\",'1. Ordersheet'!AE849)","v":""}]
[{"$f":"IF('1. Ordersheet'!B850=\"\",\"\",'1. Ordersheet'!B850)","v":""},{"$f":"IF('1. Ordersheet'!I850=\"\",\"\",'1. Ordersheet'!I850)","v":""},{"$f":"IF('1. Ordersheet'!J850=\"\",\"\",'1. Ordersheet'!J850)","v":""},{"$f":"IF('1. Ordersheet'!K850=\"\",\"\",'1. Ordersheet'!K850)","v":""},{"$f":"IF('1. Ordersheet'!M850=\"\",\"\",'1. Ordersheet'!M850)","v":""},null,null,{"$f":"IF('1. Ordersheet'!AR850=\"\",\"\",'1. Ordersheet'!AR850)","v":""},{"$f":"IF('1. Ordersheet'!AE850=\"\",\"\",'1. Ordersheet'!AE850)","v":""}]
[{"$f":"IF('1. Ordersheet'!B851=\"\",\"\",'1. Ordersheet'!B851)","v":""},{"$f":"IF('1. Ordersheet'!I851=\"\",\"\",'1. Ordersheet'!I851)","v":""},{"$f":"IF('1. Ordersheet'!J851=\"\",\"\",'1. Ordersheet'!J851)","v":""},{"$f":"IF('1. Ordersheet'!K851=\"\",\"\",'1. Ordersheet'!K851)","v":""},{"$f":"IF('1. Ordersheet'!M851=\"\",\"\",'1. Ordersheet'!M851)","v":""},null,null,{"$f":"IF('1. Ordersheet'!AR851=\"\",\"\",'1. Ordersheet'!AR851)","v":""},{"$f":"IF('1. Ordersheet'!AE851=\"\",\"\",'1. Ordersheet'!AE851)","v":""}]
[{"$f":"IF('1. Ordersheet'!B852=\"\",\"\",'1. Ordersheet'!B852)","v":""},{"$f":"IF('1. Ordersheet'!I852=\"\",\"\",'1. Ordersheet'!I852)","v":""},{"$f":"IF('1. Ordersheet'!J852=\"\",\"\",'1. Ordersheet'!J852)","v":""},{"$f":"IF('1. Ordersheet'!K852=\"\",\"\",'1. Ordersheet'!K852)","v":""},{"$f":"IF('1. Ordersheet'!M852=\"\",\"\",'1. Ordersheet'!M852)","v":""},null,null,{"$f":"IF('1. Ordersheet'!AR852=\"\",\"\",'1. Ordersheet'!AR852)","v":""},{"$f":"IF('1. Ordersheet'!AE852=\"\",\"\",'1. Ordersheet'!AE852)","v":""}]
[{"$f":"IF('1. Ordersheet'!B853=\"\",\"\",'1. Ordersheet'!B853)","v":""},{"$f":"IF('1. Ordersheet'!I853=\"\",\"\",'1. Ordersheet'!I853)","v":""},{"$f":"IF('1. Ordersheet'!J853=\"\",\"\",'1. Ordersheet'!J853)","v":""},{"$f":"IF('1. Ordersheet'!K853=\"\",\"\",'1. Ordersheet'!K853)","v":""},{"$f":"IF('1. Ordersheet'!M853=\"\",\"\",'1. Ordersheet'!M853)","v":""},null,null,{"$f":"IF('1. Ordersheet'!AR853=\"\",\"\",'1. Ordersheet'!AR853)","v":""},{"$f":"IF('1. Ordersheet'!AE853=\"\",\"\",'1. Ordersheet'!AE853)","v":""}]
[{"$f":"IF('1. Ordersheet'!B854=\"\",\"\",'1. Ordersheet'!B854)","v":""},{"$f":"IF('1. Ordersheet'!I854=\"\",\"\",'1. Ordersheet'!I854)","v":""},{"$f":"IF('1. Ordersheet'!J854=\"\",\"\",'1. Ordersheet'!J854)","v":""},{"$f":"IF('1. Ordersheet'!K854=\"\",\"\",'1. Ordersheet'!K854)","v":""},{"$f":"IF('1. Ordersheet'!M854=\"\",\"\",'1. Ordersheet'!M854)","v":""},null,null,{"$f":"IF('1. Ordersheet'!AR854=\"\",\"\",'1. Ordersheet'!AR854)","v":""},{"$f":"IF('1. Ordersheet'!AE854=\"\",\"\",'1. Ordersheet'!AE854)","v":""}]
[{"$f":"IF('1. Ordersheet'!B855=\"\",\"\",'1. Ordersheet'!B855)","v":""},{"$f":"IF('1. Ordersheet'!I855=\"\",\"\",'1. Ordersheet'!I855)","v":""},{"$f":"IF('1. Ordersheet'!J855=\"\",\"\",'1. Ordersheet'!J855)","v":""},{"$f":"IF('1. Ordersheet'!K855=\"\",\"\",'1. Ordersheet'!K855)","v":""},{"$f":"IF('1. Ordersheet'!M855=\"\",\"\",'1. Ordersheet'!M855)","v":""},null,null,{"$f":"IF('1. Ordersheet'!AR855=\"\",\"\",'1. Ordersheet'!AR855)","v":""},{"$f":"IF('1. Ordersheet'!AE855=\"\",\"\",'1. Ordersheet'!AE855)","v":""}]
[{"$f":"IF('1. Ordersheet'!B856=\"\",\"\",'1. Ordersheet'!B856)","v":""},{"$f":"IF('1. Ordersheet'!I856=\"\",\"\",'1. Ordersheet'!I856)","v":""},{"$f":"IF('1. Ordersheet'!J856=\"\",\"\",'1. Ordersheet'!J856)","v":""},{"$f":"IF('1. Ordersheet'!K856=\"\",\"\",'1. Ordersheet'!K856)","v":""},{"$f":"IF('1. Ordersheet'!M856=\"\",\"\",'1. Ordersheet'!M856)","v":""},null,null,{"$f":"IF('1. Ordersheet'!AR856=\"\",\"\",'1. Ordersheet'!AR856)","v":""},{"$f":"IF('1. Ordersheet'!AE856=\"\",\"\",'1. Ordersheet'!AE856)","v":""}]
[{"$f":"IF('1. Ordersheet'!B857=\"\",\"\",'1. Ordersheet'!B857)","v":""},{"$f":"IF('1. Ordersheet'!I857=\"\",\"\",'1. Ordersheet'!I857)","v":""},{"$f":"IF('1. Ordersheet'!J857=\"\",\"\",'1. Ordersheet'!J857)","v":""},{"$f":"IF('1. Ordersheet'!K857=\"\",\"\",'1. Ordersheet'!K857)","v":""},{"$f":"IF('1. Ordersheet'!M857=\"\",\"\",'1. Ordersheet'!M857)","v":""},null,null,{"$f":"IF('1. Ordersheet'!AR857=\"\",\"\",'1. Ordersheet'!AR857)","v":""},{"$f":"IF('1. Ordersheet'!AE857=\"\",\"\",'1. Ordersheet'!AE857)","v":""}]
[{"$f":"IF('1. Ordersheet'!B858=\"\",\"\",'1. Ordersheet'!B858)","v":""},{"$f":"IF('1. Ordersheet'!I858=\"\",\"\",'1. Ordersheet'!I858)","v":""},{"$f":"IF('1. Ordersheet'!J858=\"\",\"\",'1. Ordersheet'!J858)","v":""},{"$f":"IF('1. Ordersheet'!K858=\"\",\"\",'1. Ordersheet'!K858)","v":""},{"$f":"IF('1. Ordersheet'!M858=\"\",\"\",'1. Ordersheet'!M858)","v":""},null,null,{"$f":"IF('1. Ordersheet'!AR858=\"\",\"\",'1. Ordersheet'!AR858)","v":""},{"$f":"IF('1. Ordersheet'!AE858=\"\",\"\",'1. Ordersheet'!AE858)","v":""}]
[{"$f":"IF('1. Ordersheet'!B859=\"\",\"\",'1. Ordersheet'!B859)","v":""},{"$f":"IF('1. Ordersheet'!I859=\"\",\"\",'1. Ordersheet'!I859)","v":""},{"$f":"IF('1. Ordersheet'!J859=\"\",\"\",'1. Ordersheet'!J859)","v":""},{"$f":"IF('1. Ordersheet'!K859=\"\",\"\",'1. Ordersheet'!K859)","v":""},{"$f":"IF('1. Ordersheet'!M859=\"\",\"\",'1. Ordersheet'!M859)","v":""},null,null,{"$f":"IF('1. Ordersheet'!AR859=\"\",\"\",'1. Ordersheet'!AR859)","v":""},{"$f":"IF('1. Ordersheet'!AE859=\"\",\"\",'1. Ordersheet'!AE859)","v":""}]
[{"$f":"IF('1. Ordersheet'!B860=\"\",\"\",'1. Ordersheet'!B860)","v":""},{"$f":"IF('1. Ordersheet'!I860=\"\",\"\",'1. Ordersheet'!I860)","v":""},{"$f":"IF('1. Ordersheet'!J860=\"\",\"\",'1. Ordersheet'!J860)","v":""},{"$f":"IF('1. Ordersheet'!K860=\"\",\"\",'1. Ordersheet'!K860)","v":""},{"$f":"IF('1. Ordersheet'!M860=\"\",\"\",'1. Ordersheet'!M860)","v":""},null,null,{"$f":"IF('1. Ordersheet'!AR860=\"\",\"\",'1. Ordersheet'!AR860)","v":""},{"$f":"IF('1. Ordersheet'!AE860=\"\",\"\",'1. Ordersheet'!AE860)","v":""}]
[{"$f":"IF('1. Ordersheet'!B861=\"\",\"\",'1. Ordersheet'!B861)","v":""},{"$f":"IF('1. Ordersheet'!I861=\"\",\"\",'1. Ordersheet'!I861)","v":""},{"$f":"IF('1. Ordersheet'!J861=\"\",\"\",'1. Ordersheet'!J861)","v":""},{"$f":"IF('1. Ordersheet'!K861=\"\",\"\",'1. Ordersheet'!K861)","v":""},{"$f":"IF('1. Ordersheet'!M861=\"\",\"\",'1. Ordersheet'!M861)","v":""},null,null,{"$f":"IF('1. Ordersheet'!AR861=\"\",\"\",'1. Ordersheet'!AR861)","v":""},{"$f":"IF('1. Ordersheet'!AE861=\"\",\"\",'1. Ordersheet'!AE861)","v":""}]
[{"$f":"IF('1. Ordersheet'!B862=\"\",\"\",'1. Ordersheet'!B862)","v":""},{"$f":"IF('1. Ordersheet'!I862=\"\",\"\",'1. Ordersheet'!I862)","v":""},{"$f":"IF('1. Ordersheet'!J862=\"\",\"\",'1. Ordersheet'!J862)","v":""},{"$f":"IF('1. Ordersheet'!K862=\"\",\"\",'1. Ordersheet'!K862)","v":""},{"$f":"IF('1. Ordersheet'!M862=\"\",\"\",'1. Ordersheet'!M862)","v":""},null,null,{"$f":"IF('1. Ordersheet'!AR862=\"\",\"\",'1. Ordersheet'!AR862)","v":""},{"$f":"IF('1. Ordersheet'!AE862=\"\",\"\",'1. Ordersheet'!AE862)","v":""}]
[{"$f":"IF('1. Ordersheet'!B863=\"\",\"\",'1. Ordersheet'!B863)","v":""},{"$f":"IF('1. Ordersheet'!I863=\"\",\"\",'1. Ordersheet'!I863)","v":""},{"$f":"IF('1. Ordersheet'!J863=\"\",\"\",'1. Ordersheet'!J863)","v":""},{"$f":"IF('1. Ordersheet'!K863=\"\",\"\",'1. Ordersheet'!K863)","v":""},{"$f":"IF('1. Ordersheet'!M863=\"\",\"\",'1. Ordersheet'!M863)","v":""},null,null,{"$f":"IF('1. Ordersheet'!AR863=\"\",\"\",'1. Ordersheet'!AR863)","v":""},{"$f":"IF('1. Ordersheet'!AE863=\"\",\"\",'1. Ordersheet'!AE863)","v":""}]
[{"$f":"IF('1. Ordersheet'!B864=\"\",\"\",'1. Ordersheet'!B864)","v":""},{"$f":"IF('1. Ordersheet'!I864=\"\",\"\",'1. Ordersheet'!I864)","v":""},{"$f":"IF('1. Ordersheet'!J864=\"\",\"\",'1. Ordersheet'!J864)","v":""},{"$f":"IF('1. Ordersheet'!K864=\"\",\"\",'1. Ordersheet'!K864)","v":""},{"$f":"IF('1. Ordersheet'!M864=\"\",\"\",'1. Ordersheet'!M864)","v":""},null,null,{"$f":"IF('1. Ordersheet'!AR864=\"\",\"\",'1. Ordersheet'!AR864)","v":""},{"$f":"IF('1. Ordersheet'!AE864=\"\",\"\",'1. Ordersheet'!AE864)","v":""}]
[{"$f":"IF('1. Ordersheet'!B865=\"\",\"\",'1. Ordersheet'!B865)","v":""},{"$f":"IF('1. Ordersheet'!I865=\"\",\"\",'1. Ordersheet'!I865)","v":""},{"$f":"IF('1. Ordersheet'!J865=\"\",\"\",'1. Ordersheet'!J865)","v":""},{"$f":"IF('1. Ordersheet'!K865=\"\",\"\",'1. Ordersheet'!K865)","v":""},{"$f":"IF('1. Ordersheet'!M865=\"\",\"\",'1. Ordersheet'!M865)","v":""},null,null,{"$f":"IF('1. Ordersheet'!AR865=\"\",\"\",'1. Ordersheet'!AR865)","v":""},{"$f":"IF('1. Ordersheet'!AE865=\"\",\"\",'1. Ordersheet'!AE865)","v":""}]
[{"$f":"IF('1. Ordersheet'!B866=\"\",\"\",'1. Ordersheet'!B866)","v":""},{"$f":"IF('1. Ordersheet'!I866=\"\",\"\",'1. Ordersheet'!I866)","v":""},{"$f":"IF('1. Ordersheet'!J866=\"\",\"\",'1. Ordersheet'!J866)","v":""},{"$f":"IF('1. Ordersheet'!K866=\"\",\"\",'1. Ordersheet'!K866)","v":""},{"$f":"IF('1. Ordersheet'!M866=\"\",\"\",'1. Ordersheet'!M866)","v":""},null,null,{"$f":"IF('1. Ordersheet'!AR866=\"\",\"\",'1. Ordersheet'!AR866)","v":""},{"$f":"IF('1. Ordersheet'!AE866=\"\",\"\",'1. Ordersheet'!AE866)","v":""}]
[{"$f":"IF('1. Ordersheet'!B867=\"\",\"\",'1. Ordersheet'!B867)","v":""},{"$f":"IF('1. Ordersheet'!I867=\"\",\"\",'1. Ordersheet'!I867)","v":""},{"$f":"IF('1. Ordersheet'!J867=\"\",\"\",'1. Ordersheet'!J867)","v":""},{"$f":"IF('1. Ordersheet'!K867=\"\",\"\",'1. Ordersheet'!K867)","v":""},{"$f":"IF('1. Ordersheet'!M867=\"\",\"\",'1. Ordersheet'!M867)","v":""},null,null,{"$f":"IF('1. Ordersheet'!AR867=\"\",\"\",'1. Ordersheet'!AR867)","v":""},{"$f":"IF('1. Ordersheet'!AE867=\"\",\"\",'1. Ordersheet'!AE867)","v":""}]
[{"$f":"IF('1. Ordersheet'!B868=\"\",\"\",'1. Ordersheet'!B868)","v":""},{"$f":"IF('1. Ordersheet'!I868=\"\",\"\",'1. Ordersheet'!I868)","v":""},{"$f":"IF('1. Ordersheet'!J868=\"\",\"\",'1. Ordersheet'!J868)","v":""},{"$f":"IF('1. Ordersheet'!K868=\"\",\"\",'1. Ordersheet'!K868)","v":""},{"$f":"IF('1. Ordersheet'!M868=\"\",\"\",'1. Ordersheet'!M868)","v":""},null,null,{"$f":"IF('1. Ordersheet'!AR868=\"\",\"\",'1. Ordersheet'!AR868)","v":""},{"$f":"IF('1. Ordersheet'!AE868=\"\",\"\",'1. Ordersheet'!AE868)","v":""}]
[{"$f":"IF('1. Ordersheet'!B869=\"\",\"\",'1. Ordersheet'!B869)","v":""},{"$f":"IF('1. Ordersheet'!I869=\"\",\"\",'1. Ordersheet'!I869)","v":""},{"$f":"IF('1. Ordersheet'!J869=\"\",\"\",'1. Ordersheet'!J869)","v":""},{"$f":"IF('1. Ordersheet'!K869=\"\",\"\",'1. Ordersheet'!K869)","v":""},{"$f":"IF('1. Ordersheet'!M869=\"\",\"\",'1. Ordersheet'!M869)","v":""},null,null,{"$f":"IF('1. Ordersheet'!AR869=\"\",\"\",'1. Ordersheet'!AR869)","v":""},{"$f":"IF('1. Ordersheet'!AE869=\"\",\"\",'1. Ordersheet'!AE869)","v":""}]
[{"$f":"IF('1. Ordersheet'!B870=\"\",\"\",'1. Ordersheet'!B870)","v":""},{"$f":"IF('1. Ordersheet'!I870=\"\",\"\",'1. Ordersheet'!I870)","v":""},{"$f":"IF('1. Ordersheet'!J870=\"\",\"\",'1. Ordersheet'!J870)","v":""},{"$f":"IF('1. Ordersheet'!K870=\"\",\"\",'1. Ordersheet'!K870)","v":""},{"$f":"IF('1. Ordersheet'!M870=\"\",\"\",'1. Ordersheet'!M870)","v":""},null,null,{"$f":"IF('1. Ordersheet'!AR870=\"\",\"\",'1. Ordersheet'!AR870)","v":""},{"$f":"IF('1. Ordersheet'!AE870=\"\",\"\",'1. Ordersheet'!AE870)","v":""}]
[{"$f":"IF('1. Ordersheet'!B871=\"\",\"\",'1. Ordersheet'!B871)","v":""},{"$f":"IF('1. Ordersheet'!I871=\"\",\"\",'1. Ordersheet'!I871)","v":""},{"$f":"IF('1. Ordersheet'!J871=\"\",\"\",'1. Ordersheet'!J871)","v":""},{"$f":"IF('1. Ordersheet'!K871=\"\",\"\",'1. Ordersheet'!K871)","v":""},{"$f":"IF('1. Ordersheet'!M871=\"\",\"\",'1. Ordersheet'!M871)","v":""},null,null,{"$f":"IF('1. Ordersheet'!AR871=\"\",\"\",'1. Ordersheet'!AR871)","v":""},{"$f":"IF('1. Ordersheet'!AE871=\"\",\"\",'1. Ordersheet'!AE871)","v":""}]
[{"$f":"IF('1. Ordersheet'!B872=\"\",\"\",'1. Ordersheet'!B872)","v":""},{"$f":"IF('1. Ordersheet'!I872=\"\",\"\",'1. Ordersheet'!I872)","v":""},{"$f":"IF('1. Ordersheet'!J872=\"\",\"\",'1. Ordersheet'!J872)","v":""},{"$f":"IF('1. Ordersheet'!K872=\"\",\"\",'1. Ordersheet'!K872)","v":""},{"$f":"IF('1. Ordersheet'!M872=\"\",\"\",'1. Ordersheet'!M872)","v":""},null,null,{"$f":"IF('1. Ordersheet'!AR872=\"\",\"\",'1. Ordersheet'!AR872)","v":""},{"$f":"IF('1. Ordersheet'!AE872=\"\",\"\",'1. Ordersheet'!AE872)","v":""}]
[{"$f":"IF('1. Ordersheet'!B873=\"\",\"\",'1. Ordersheet'!B873)","v":""},{"$f":"IF('1. Ordersheet'!I873=\"\",\"\",'1. Ordersheet'!I873)","v":""},{"$f":"IF('1. Ordersheet'!J873=\"\",\"\",'1. Ordersheet'!J873)","v":""},{"$f":"IF('1. Ordersheet'!K873=\"\",\"\",'1. Ordersheet'!K873)","v":""},{"$f":"IF('1. Ordersheet'!M873=\"\",\"\",'1. Ordersheet'!M873)","v":""},null,null,{"$f":"IF('1. Ordersheet'!AR873=\"\",\"\",'1. Ordersheet'!AR873)","v":""},{"$f":"IF('1. Ordersheet'!AE873=\"\",\"\",'1. Ordersheet'!AE873)","v":""}]
[{"$f":"IF('1. Ordersheet'!B874=\"\",\"\",'1. Ordersheet'!B874)","v":""},{"$f":"IF('1. Ordersheet'!I874=\"\",\"\",'1. Ordersheet'!I874)","v":""},{"$f":"IF('1. Ordersheet'!J874=\"\",\"\",'1. Ordersheet'!J874)","v":""},{"$f":"IF('1. Ordersheet'!K874=\"\",\"\",'1. Ordersheet'!K874)","v":""},{"$f":"IF('1. Ordersheet'!M874=\"\",\"\",'1. Ordersheet'!M874)","v":""},null,null,{"$f":"IF('1. Ordersheet'!AR874=\"\",\"\",'1. Ordersheet'!AR874)","v":""},{"$f":"IF('1. Ordersheet'!AE874=\"\",\"\",'1. Ordersheet'!AE874)","v":""}]
[{"$f":"IF('1. Ordersheet'!B875=\"\",\"\",'1. Ordersheet'!B875)","v":""},{"$f":"IF('1. Ordersheet'!I875=\"\",\"\",'1. Ordersheet'!I875)","v":""},{"$f":"IF('1. Ordersheet'!J875=\"\",\"\",'1. Ordersheet'!J875)","v":""},{"$f":"IF('1. Ordersheet'!K875=\"\",\"\",'1. Ordersheet'!K875)","v":""},{"$f":"IF('1. Ordersheet'!M875=\"\",\"\",'1. Ordersheet'!M875)","v":""},null,null,{"$f":"IF('1. Ordersheet'!AR875=\"\",\"\",'1. Ordersheet'!AR875)","v":""},{"$f":"IF('1. Ordersheet'!AE875=\"\",\"\",'1. Ordersheet'!AE875)","v":""}]
[{"$f":"IF('1. Ordersheet'!B876=\"\",\"\",'1. Ordersheet'!B876)","v":""},{"$f":"IF('1. Ordersheet'!I876=\"\",\"\",'1. Ordersheet'!I876)","v":""},{"$f":"IF('1. Ordersheet'!J876=\"\",\"\",'1. Ordersheet'!J876)","v":""},{"$f":"IF('1. Ordersheet'!K876=\"\",\"\",'1. Ordersheet'!K876)","v":""},{"$f":"IF('1. Ordersheet'!M876=\"\",\"\",'1. Ordersheet'!M876)","v":""},null,null,{"$f":"IF('1. Ordersheet'!AR876=\"\",\"\",'1. Ordersheet'!AR876)","v":""},{"$f":"IF('1. Ordersheet'!AE876=\"\",\"\",'1. Ordersheet'!AE876)","v":""}]
[{"$f":"IF('1. Ordersheet'!B877=\"\",\"\",'1. Ordersheet'!B877)","v":""},{"$f":"IF('1. Ordersheet'!I877=\"\",\"\",'1. Ordersheet'!I877)","v":""},{"$f":"IF('1. Ordersheet'!J877=\"\",\"\",'1. Ordersheet'!J877)","v":""},{"$f":"IF('1. Ordersheet'!K877=\"\",\"\",'1. Ordersheet'!K877)","v":""},{"$f":"IF('1. Ordersheet'!M877=\"\",\"\",'1. Ordersheet'!M877)","v":""},null,null,{"$f":"IF('1. Ordersheet'!AR877=\"\",\"\",'1. Ordersheet'!AR877)","v":""},{"$f":"IF('1. Ordersheet'!AE877=\"\",\"\",'1. Ordersheet'!AE877)","v":""}]
[{"$f":"IF('1. Ordersheet'!B878=\"\",\"\",'1. Ordersheet'!B878)","v":""},{"$f":"IF('1. Ordersheet'!I878=\"\",\"\",'1. Ordersheet'!I878)","v":""},{"$f":"IF('1. Ordersheet'!J878=\"\",\"\",'1. Ordersheet'!J878)","v":""},{"$f":"IF('1. Ordersheet'!K878=\"\",\"\",'1. Ordersheet'!K878)","v":""},{"$f":"IF('1. Ordersheet'!M878=\"\",\"\",'1. Ordersheet'!M878)","v":""},null,null,{"$f":"IF('1. Ordersheet'!AR878=\"\",\"\",'1. Ordersheet'!AR878)","v":""},{"$f":"IF('1. Ordersheet'!AE878=\"\",\"\",'1. Ordersheet'!AE878)","v":""}]
[{"$f":"IF('1. Ordersheet'!B879=\"\",\"\",'1. Ordersheet'!B879)","v":""},{"$f":"IF('1. Ordersheet'!I879=\"\",\"\",'1. Ordersheet'!I879)","v":""},{"$f":"IF('1. Ordersheet'!J879=\"\",\"\",'1. Ordersheet'!J879)","v":""},{"$f":"IF('1. Ordersheet'!K879=\"\",\"\",'1. Ordersheet'!K879)","v":""},{"$f":"IF('1. Ordersheet'!M879=\"\",\"\",'1. Ordersheet'!M879)","v":""},null,null,{"$f":"IF('1. Ordersheet'!AR879=\"\",\"\",'1. Ordersheet'!AR879)","v":""},{"$f":"IF('1. Ordersheet'!AE879=\"\",\"\",'1. Ordersheet'!AE879)","v":""}]
[{"$f":"IF('1. Ordersheet'!B880=\"\",\"\",'1. Ordersheet'!B880)","v":""},{"$f":"IF('1. Ordersheet'!I880=\"\",\"\",'1. Ordersheet'!I880)","v":""},{"$f":"IF('1. Ordersheet'!J880=\"\",\"\",'1. Ordersheet'!J880)","v":""},{"$f":"IF('1. Ordersheet'!K880=\"\",\"\",'1. Ordersheet'!K880)","v":""},{"$f":"IF('1. Ordersheet'!M880=\"\",\"\",'1. Ordersheet'!M880)","v":""},null,null,{"$f":"IF('1. Ordersheet'!AR880=\"\",\"\",'1. Ordersheet'!AR880)","v":""},{"$f":"IF('1. Ordersheet'!AE880=\"\",\"\",'1. Ordersheet'!AE880)","v":""}]
[{"$f":"IF('1. Ordersheet'!B881=\"\",\"\",'1. Ordersheet'!B881)","v":""},{"$f":"IF('1. Ordersheet'!I881=\"\",\"\",'1. Ordersheet'!I881)","v":""},{"$f":"IF('1. Ordersheet'!J881=\"\",\"\",'1. Ordersheet'!J881)","v":""},{"$f":"IF('1. Ordersheet'!K881=\"\",\"\",'1. Ordersheet'!K881)","v":""},{"$f":"IF('1. Ordersheet'!M881=\"\",\"\",'1. Ordersheet'!M881)","v":""},null,null,{"$f":"IF('1. Ordersheet'!AR881=\"\",\"\",'1. Ordersheet'!AR881)","v":""},{"$f":"IF('1. Ordersheet'!AE881=\"\",\"\",'1. Ordersheet'!AE881)","v":""}]
[{"$f":"IF('1. Ordersheet'!B882=\"\",\"\",'1. Ordersheet'!B882)","v":""},{"$f":"IF('1. Ordersheet'!I882=\"\",\"\",'1. Ordersheet'!I882)","v":""},{"$f":"IF('1. Ordersheet'!J882=\"\",\"\",'1. Ordersheet'!J882)","v":""},{"$f":"IF('1. Ordersheet'!K882=\"\",\"\",'1. Ordersheet'!K882)","v":""},{"$f":"IF('1. Ordersheet'!M882=\"\",\"\",'1. Ordersheet'!M882)","v":""},null,null,{"$f":"IF('1. Ordersheet'!AR882=\"\",\"\",'1. Ordersheet'!AR882)","v":""},{"$f":"IF('1. Ordersheet'!AE882=\"\",\"\",'1. Ordersheet'!AE882)","v":""}]
[{"$f":"IF('1. Ordersheet'!B883=\"\",\"\",'1. Ordersheet'!B883)","v":""},{"$f":"IF('1. Ordersheet'!I883=\"\",\"\",'1. Ordersheet'!I883)","v":""},{"$f":"IF('1. Ordersheet'!J883=\"\",\"\",'1. Ordersheet'!J883)","v":""},{"$f":"IF('1. Ordersheet'!K883=\"\",\"\",'1. Ordersheet'!K883)","v":""},{"$f":"IF('1. Ordersheet'!M883=\"\",\"\",'1. Ordersheet'!M883)","v":""},null,null,{"$f":"IF('1. Ordersheet'!AR883=\"\",\"\",'1. Ordersheet'!AR883)","v":""},{"$f":"IF('1. Ordersheet'!AE883=\"\",\"\",'1. Ordersheet'!AE883)","v":""}]
[{"$f":"IF('1. Ordersheet'!B884=\"\",\"\",'1. Ordersheet'!B884)","v":""},{"$f":"IF('1. Ordersheet'!I884=\"\",\"\",'1. Ordersheet'!I884)","v":""},{"$f":"IF('1. Ordersheet'!J884=\"\",\"\",'1. Ordersheet'!J884)","v":""},{"$f":"IF('1. Ordersheet'!K884=\"\",\"\",'1. Ordersheet'!K884)","v":""},{"$f":"IF('1. Ordersheet'!M884=\"\",\"\",'1. Ordersheet'!M884)","v":""},null,null,{"$f":"IF('1. Ordersheet'!AR884=\"\",\"\",'1. Ordersheet'!AR884)","v":""},{"$f":"IF('1. Ordersheet'!AE884=\"\",\"\",'1. Ordersheet'!AE884)","v":""}]
[{"$f":"IF('1. Ordersheet'!B885=\"\",\"\",'1. Ordersheet'!B885)","v":""},{"$f":"IF('1. Ordersheet'!I885=\"\",\"\",'1. Ordersheet'!I885)","v":""},{"$f":"IF('1. Ordersheet'!J885=\"\",\"\",'1. Ordersheet'!J885)","v":""},{"$f":"IF('1. Ordersheet'!K885=\"\",\"\",'1. Ordersheet'!K885)","v":""},{"$f":"IF('1. Ordersheet'!M885=\"\",\"\",'1. Ordersheet'!M885)","v":""},null,null,{"$f":"IF('1. Ordersheet'!AR885=\"\",\"\",'1. Ordersheet'!AR885)","v":""},{"$f":"IF('1. Ordersheet'!AE885=\"\",\"\",'1. Ordersheet'!AE885)","v":""}]
[{"$f":"IF('1. Ordersheet'!B886=\"\",\"\",'1. Ordersheet'!B886)","v":""},{"$f":"IF('1. Ordersheet'!I886=\"\",\"\",'1. Ordersheet'!I886)","v":""},{"$f":"IF('1. Ordersheet'!J886=\"\",\"\",'1. Ordersheet'!J886)","v":""},{"$f":"IF('1. Ordersheet'!K886=\"\",\"\",'1. Ordersheet'!K886)","v":""},{"$f":"IF('1. Ordersheet'!M886=\"\",\"\",'1. Ordersheet'!M886)","v":""},null,null,{"$f":"IF('1. Ordersheet'!AR886=\"\",\"\",'1. Ordersheet'!AR886)","v":""},{"$f":"IF('1. Ordersheet'!AE886=\"\",\"\",'1. Ordersheet'!AE886)","v":""}]
[{"$f":"IF('1. Ordersheet'!B887=\"\",\"\",'1. Ordersheet'!B887)","v":""},{"$f":"IF('1. Ordersheet'!I887=\"\",\"\",'1. Ordersheet'!I887)","v":""},{"$f":"IF('1. Ordersheet'!J887=\"\",\"\",'1. Ordersheet'!J887)","v":""},{"$f":"IF('1. Ordersheet'!K887=\"\",\"\",'1. Ordersheet'!K887)","v":""},{"$f":"IF('1. Ordersheet'!M887=\"\",\"\",'1. Ordersheet'!M887)","v":""},null,null,{"$f":"IF('1. Ordersheet'!AR887=\"\",\"\",'1. Ordersheet'!AR887)","v":""},{"$f":"IF('1. Ordersheet'!AE887=\"\",\"\",'1. Ordersheet'!AE887)","v":""}]
[{"$f":"IF('1. Ordersheet'!B888=\"\",\"\",'1. Ordersheet'!B888)","v":""},{"$f":"IF('1. Ordersheet'!I888=\"\",\"\",'1. Ordersheet'!I888)","v":""},{"$f":"IF('1. Ordersheet'!J888=\"\",\"\",'1. Ordersheet'!J888)","v":""},{"$f":"IF('1. Ordersheet'!K888=\"\",\"\",'1. Ordersheet'!K888)","v":""},{"$f":"IF('1. Ordersheet'!M888=\"\",\"\",'1. Ordersheet'!M888)","v":""},null,null,{"$f":"IF('1. Ordersheet'!AR888=\"\",\"\",'1. Ordersheet'!AR888)","v":""},{"$f":"IF('1. Ordersheet'!AE888=\"\",\"\",'1. Ordersheet'!AE888)","v":""}]
[{"$f":"IF('1. Ordersheet'!B889=\"\",\"\",'1. Ordersheet'!B889)","v":""},{"$f":"IF('1. Ordersheet'!I889=\"\",\"\",'1. Ordersheet'!I889)","v":""},{"$f":"IF('1. Ordersheet'!J889=\"\",\"\",'1. Ordersheet'!J889)","v":""},{"$f":"IF('1. Ordersheet'!K889=\"\",\"\",'1. Ordersheet'!K889)","v":""},{"$f":"IF('1. Ordersheet'!M889=\"\",\"\",'1. Ordersheet'!M889)","v":""},null,null,{"$f":"IF('1. Ordersheet'!AR889=\"\",\"\",'1. Ordersheet'!AR889)","v":""},{"$f":"IF('1. Ordersheet'!AE889=\"\",\"\",'1. Ordersheet'!AE889)","v":""}]
[{"$f":"IF('1. Ordersheet'!B890=\"\",\"\",'1. Ordersheet'!B890)","v":""},{"$f":"IF('1. Ordersheet'!I890=\"\",\"\",'1. Ordersheet'!I890)","v":""},{"$f":"IF('1. Ordersheet'!J890=\"\",\"\",'1. Ordersheet'!J890)","v":""},{"$f":"IF('1. Ordersheet'!K890=\"\",\"\",'1. Ordersheet'!K890)","v":""},{"$f":"IF('1. Ordersheet'!M890=\"\",\"\",'1. Ordersheet'!M890)","v":""},null,null,{"$f":"IF('1. Ordersheet'!AR890=\"\",\"\",'1. Ordersheet'!AR890)","v":""},{"$f":"IF('1. Ordersheet'!AE890=\"\",\"\",'1. Ordersheet'!AE890)","v":""}]
[{"$f":"IF('1. Ordersheet'!B891=\"\",\"\",'1. Ordersheet'!B891)","v":""},{"$f":"IF('1. Ordersheet'!I891=\"\",\"\",'1. Ordersheet'!I891)","v":""},{"$f":"IF('1. Ordersheet'!J891=\"\",\"\",'1. Ordersheet'!J891)","v":""},{"$f":"IF('1. Ordersheet'!K891=\"\",\"\",'1. Ordersheet'!K891)","v":""},{"$f":"IF('1. Ordersheet'!M891=\"\",\"\",'1. Ordersheet'!M891)","v":""},null,null,{"$f":"IF('1. Ordersheet'!AR891=\"\",\"\",'1. Ordersheet'!AR891)","v":""},{"$f":"IF('1. Ordersheet'!AE891=\"\",\"\",'1. Ordersheet'!AE891)","v":""}]
[{"$f":"IF('1. Ordersheet'!B892=\"\",\"\",'1. Ordersheet'!B892)","v":""},{"$f":"IF('1. Ordersheet'!I892=\"\",\"\",'1. Ordersheet'!I892)","v":""},{"$f":"IF('1. Ordersheet'!J892=\"\",\"\",'1. Ordersheet'!J892)","v":""},{"$f":"IF('1. Ordersheet'!K892=\"\",\"\",'1. Ordersheet'!K892)","v":""},{"$f":"IF('1. Ordersheet'!M892=\"\",\"\",'1. Ordersheet'!M892)","v":""},null,null,{"$f":"IF('1. Ordersheet'!AR892=\"\",\"\",'1. Ordersheet'!AR892)","v":""},{"$f":"IF('1. Ordersheet'!AE892=\"\",\"\",'1. Ordersheet'!AE892)","v":""}]
[{"$f":"IF('1. Ordersheet'!B893=\"\",\"\",'1. Ordersheet'!B893)","v":""},{"$f":"IF('1. Ordersheet'!I893=\"\",\"\",'1. Ordersheet'!I893)","v":""},{"$f":"IF('1. Ordersheet'!J893=\"\",\"\",'1. Ordersheet'!J893)","v":""},{"$f":"IF('1. Ordersheet'!K893=\"\",\"\",'1. Ordersheet'!K893)","v":""},{"$f":"IF('1. Ordersheet'!M893=\"\",\"\",'1. Ordersheet'!M893)","v":""},null,null,{"$f":"IF('1. Ordersheet'!AR893=\"\",\"\",'1. Ordersheet'!AR893)","v":""},{"$f":"IF('1. Ordersheet'!AE893=\"\",\"\",'1. Ordersheet'!AE893)","v":""}]
[{"$f":"IF('1. Ordersheet'!B894=\"\",\"\",'1. Ordersheet'!B894)","v":""},{"$f":"IF('1. Ordersheet'!I894=\"\",\"\",'1. Ordersheet'!I894)","v":""},{"$f":"IF('1. Ordersheet'!J894=\"\",\"\",'1. Ordersheet'!J894)","v":""},{"$f":"IF('1. Ordersheet'!K894=\"\",\"\",'1. Ordersheet'!K894)","v":""},{"$f":"IF('1. Ordersheet'!M894=\"\",\"\",'1. Ordersheet'!M894)","v":""},null,null,{"$f":"IF('1. Ordersheet'!AR894=\"\",\"\",'1. Ordersheet'!AR894)","v":""},{"$f":"IF('1. Ordersheet'!AE894=\"\",\"\",'1. Ordersheet'!AE894)","v":""}]
[{"$f":"IF('1. Ordersheet'!B895=\"\",\"\",'1. Ordersheet'!B895)","v":""},{"$f":"IF('1. Ordersheet'!I895=\"\",\"\",'1. Ordersheet'!I895)","v":""},{"$f":"IF('1. Ordersheet'!J895=\"\",\"\",'1. Ordersheet'!J895)","v":""},{"$f":"IF('1. Ordersheet'!K895=\"\",\"\",'1. Ordersheet'!K895)","v":""},{"$f":"IF('1. Ordersheet'!M895=\"\",\"\",'1. Ordersheet'!M895)","v":""},null,null,{"$f":"IF('1. Ordersheet'!AR895=\"\",\"\",'1. Ordersheet'!AR895)","v":""},{"$f":"IF('1. Ordersheet'!AE895=\"\",\"\",'1. Ordersheet'!AE895)","v":""}]
[{"$f":"IF('1. Ordersheet'!B896=\"\",\"\",'1. Ordersheet'!B896)","v":""},{"$f":"IF('1. Ordersheet'!I896=\"\",\"\",'1. Ordersheet'!I896)","v":""},{"$f":"IF('1. Ordersheet'!J896=\"\",\"\",'1. Ordersheet'!J896)","v":""},{"$f":"IF('1. Ordersheet'!K896=\"\",\"\",'1. Ordersheet'!K896)","v":""},{"$f":"IF('1. Ordersheet'!M896=\"\",\"\",'1. Ordersheet'!M896)","v":""},null,null,{"$f":"IF('1. Ordersheet'!AR896=\"\",\"\",'1. Ordersheet'!AR896)","v":""},{"$f":"IF('1. Ordersheet'!AE896=\"\",\"\",'1. Ordersheet'!AE896)","v":""}]
[{"$f":"IF('1. Ordersheet'!B897=\"\",\"\",'1. Ordersheet'!B897)","v":""},{"$f":"IF('1. Ordersheet'!I897=\"\",\"\",'1. Ordersheet'!I897)","v":""},{"$f":"IF('1. Ordersheet'!J897=\"\",\"\",'1. Ordersheet'!J897)","v":""},{"$f":"IF('1. Ordersheet'!K897=\"\",\"\",'1. Ordersheet'!K897)","v":""},{"$f":"IF('1. Ordersheet'!M897=\"\",\"\",'1. Ordersheet'!M897)","v":""},null,null,{"$f":"IF('1. Ordersheet'!AR897=\"\",\"\",'1. Ordersheet'!AR897)","v":""},{"$f":"IF('1. Ordersheet'!AE897=\"\",\"\",'1. Ordersheet'!AE897)","v":""}]
[{"$f":"IF('1. Ordersheet'!B898=\"\",\"\",'1. Ordersheet'!B898)","v":""},{"$f":"IF('1. Ordersheet'!I898=\"\",\"\",'1. Ordersheet'!I898)","v":""},{"$f":"IF('1. Ordersheet'!J898=\"\",\"\",'1. Ordersheet'!J898)","v":""},{"$f":"IF('1. Ordersheet'!K898=\"\",\"\",'1. Ordersheet'!K898)","v":""},{"$f":"IF('1. Ordersheet'!M898=\"\",\"\",'1. Ordersheet'!M898)","v":""},null,null,{"$f":"IF('1. Ordersheet'!AR898=\"\",\"\",'1. Ordersheet'!AR898)","v":""},{"$f":"IF('1. Ordersheet'!AE898=\"\",\"\",'1. Ordersheet'!AE898)","v":""}]
[{"$f":"IF('1. Ordersheet'!B899=\"\",\"\",'1. Ordersheet'!B899)","v":""},{"$f":"IF('1. Ordersheet'!I899=\"\",\"\",'1. Ordersheet'!I899)","v":""},{"$f":"IF('1. Ordersheet'!J899=\"\",\"\",'1. Ordersheet'!J899)","v":""},{"$f":"IF('1. Ordersheet'!K899=\"\",\"\",'1. Ordersheet'!K899)","v":""},{"$f":"IF('1. Ordersheet'!M899=\"\",\"\",'1. Ordersheet'!M899)","v":""},null,null,{"$f":"IF('1. Ordersheet'!AR899=\"\",\"\",'1. Ordersheet'!AR899)","v":""},{"$f":"IF('1. Ordersheet'!AE899=\"\",\"\",'1. Ordersheet'!AE899)","v":""}]
[{"$f":"IF('1. Ordersheet'!B900=\"\",\"\",'1. Ordersheet'!B900)","v":""},{"$f":"IF('1. Ordersheet'!I900=\"\",\"\",'1. Ordersheet'!I900)","v":""},{"$f":"IF('1. Ordersheet'!J900=\"\",\"\",'1. Ordersheet'!J900)","v":""},{"$f":"IF('1. Ordersheet'!K900=\"\",\"\",'1. Ordersheet'!K900)","v":""},{"$f":"IF('1. Ordersheet'!M900=\"\",\"\",'1. Ordersheet'!M900)","v":""},null,null,{"$f":"IF('1. Ordersheet'!AR900=\"\",\"\",'1. Ordersheet'!AR900)","v":""},{"$f":"IF('1. Ordersheet'!AE900=\"\",\"\",'1. Ordersheet'!AE900)","v":""}]
[{"$f":"IF('1. Ordersheet'!B901=\"\",\"\",'1. Ordersheet'!B901)","v":""},{"$f":"IF('1. Ordersheet'!I901=\"\",\"\",'1. Ordersheet'!I901)","v":""},{"$f":"IF('1. Ordersheet'!J901=\"\",\"\",'1. Ordersheet'!J901)","v":""},{"$f":"IF('1. Ordersheet'!K901=\"\",\"\",'1. Ordersheet'!K901)","v":""},{"$f":"IF('1. Ordersheet'!M901=\"\",\"\",'1. Ordersheet'!M901)","v":""},null,null,{"$f":"IF('1. Ordersheet'!AR901=\"\",\"\",'1. Ordersheet'!AR901)","v":""},{"$f":"IF('1. Ordersheet'!AE901=\"\",\"\",'1. Ordersheet'!AE901)","v":""}]
[{"$f":"IF('1. Ordersheet'!B902=\"\",\"\",'1. Ordersheet'!B902)","v":""},{"$f":"IF('1. Ordersheet'!I902=\"\",\"\",'1. Ordersheet'!I902)","v":""},{"$f":"IF('1. Ordersheet'!J902=\"\",\"\",'1. Ordersheet'!J902)","v":""},{"$f":"IF('1. Ordersheet'!K902=\"\",\"\",'1. Ordersheet'!K902)","v":""},{"$f":"IF('1. Ordersheet'!M902=\"\",\"\",'1. Ordersheet'!M902)","v":""},null,null,{"$f":"IF('1. Ordersheet'!AR902=\"\",\"\",'1. Ordersheet'!AR902)","v":""},{"$f":"IF('1. Ordersheet'!AE902=\"\",\"\",'1. Ordersheet'!AE902)","v":""}]
[{"$f":"IF('1. Ordersheet'!B903=\"\",\"\",'1. Ordersheet'!B903)","v":""},{"$f":"IF('1. Ordersheet'!I903=\"\",\"\",'1. Ordersheet'!I903)","v":""},{"$f":"IF('1. Ordersheet'!J903=\"\",\"\",'1. Ordersheet'!J903)","v":""},{"$f":"IF('1. Ordersheet'!K903=\"\",\"\",'1. Ordersheet'!K903)","v":""},{"$f":"IF('1. Ordersheet'!M903=\"\",\"\",'1. Ordersheet'!M903)","v":""},null,null,{"$f":"IF('1. Ordersheet'!AR903=\"\",\"\",'1. Ordersheet'!AR903)","v":""},{"$f":"IF('1. Ordersheet'!AE903=\"\",\"\",'1. Ordersheet'!AE903)","v":""}]
[{"$f":"IF('1. Ordersheet'!B904=\"\",\"\",'1. Ordersheet'!B904)","v":""},{"$f":"IF('1. Ordersheet'!I904=\"\",\"\",'1. Ordersheet'!I904)","v":""},{"$f":"IF('1. Ordersheet'!J904=\"\",\"\",'1. Ordersheet'!J904)","v":""},{"$f":"IF('1. Ordersheet'!K904=\"\",\"\",'1. Ordersheet'!K904)","v":""},{"$f":"IF('1. Ordersheet'!M904=\"\",\"\",'1. Ordersheet'!M904)","v":""},null,null,{"$f":"IF('1. Ordersheet'!AR904=\"\",\"\",'1. Ordersheet'!AR904)","v":""},{"$f":"IF('1. Ordersheet'!AE904=\"\",\"\",'1. Ordersheet'!AE904)","v":""}]
[{"$f":"IF('1. Ordersheet'!B905=\"\",\"\",'1. Ordersheet'!B905)","v":""},{"$f":"IF('1. Ordersheet'!I905=\"\",\"\",'1. Ordersheet'!I905)","v":""},{"$f":"IF('1. Ordersheet'!J905=\"\",\"\",'1. Ordersheet'!J905)","v":""},{"$f":"IF('1. Ordersheet'!K905=\"\",\"\",'1. Ordersheet'!K905)","v":""},{"$f":"IF('1. Ordersheet'!M905=\"\",\"\",'1. Ordersheet'!M905)","v":""},null,null,{"$f":"IF('1. Ordersheet'!AR905=\"\",\"\",'1. Ordersheet'!AR905)","v":""},{"$f":"IF('1. Ordersheet'!AE905=\"\",\"\",'1. Ordersheet'!AE905)","v":""}]
[{"$f":"IF('1. Ordersheet'!B906=\"\",\"\",'1. Ordersheet'!B906)","v":""},{"$f":"IF('1. Ordersheet'!I906=\"\",\"\",'1. Ordersheet'!I906)","v":""},{"$f":"IF('1. Ordersheet'!J906=\"\",\"\",'1. Ordersheet'!J906)","v":""},{"$f":"IF('1. Ordersheet'!K906=\"\",\"\",'1. Ordersheet'!K906)","v":""},{"$f":"IF('1. Ordersheet'!M906=\"\",\"\",'1. Ordersheet'!M906)","v":""},null,null,{"$f":"IF('1. Ordersheet'!AR906=\"\",\"\",'1. Ordersheet'!AR906)","v":""},{"$f":"IF('1. Ordersheet'!AE906=\"\",\"\",'1. Ordersheet'!AE906)","v":""}]
[{"$f":"IF('1. Ordersheet'!B907=\"\",\"\",'1. Ordersheet'!B907)","v":""},{"$f":"IF('1. Ordersheet'!I907=\"\",\"\",'1. Ordersheet'!I907)","v":""},{"$f":"IF('1. Ordersheet'!J907=\"\",\"\",'1. Ordersheet'!J907)","v":""},{"$f":"IF('1. Ordersheet'!K907=\"\",\"\",'1. Ordersheet'!K907)","v":""},{"$f":"IF('1. Ordersheet'!M907=\"\",\"\",'1. Ordersheet'!M907)","v":""},null,null,{"$f":"IF('1. Ordersheet'!AR907=\"\",\"\",'1. Ordersheet'!AR907)","v":""},{"$f":"IF('1. Ordersheet'!AE907=\"\",\"\",'1. Ordersheet'!AE907)","v":""}]
[{"$f":"IF('1. Ordersheet'!B908=\"\",\"\",'1. Ordersheet'!B908)","v":""},{"$f":"IF('1. Ordersheet'!I908=\"\",\"\",'1. Ordersheet'!I908)","v":""},{"$f":"IF('1. Ordersheet'!J908=\"\",\"\",'1. Ordersheet'!J908)","v":""},{"$f":"IF('1. Ordersheet'!K908=\"\",\"\",'1. Ordersheet'!K908)","v":""},{"$f":"IF('1. Ordersheet'!M908=\"\",\"\",'1. Ordersheet'!M908)","v":""},null,null,{"$f":"IF('1. Ordersheet'!AR908=\"\",\"\",'1. Ordersheet'!AR908)","v":""},{"$f":"IF('1. Ordersheet'!AE908=\"\",\"\",'1. Ordersheet'!AE908)","v":""}]
[{"$f":"IF('1. Ordersheet'!B909=\"\",\"\",'1. Ordersheet'!B909)","v":""},{"$f":"IF('1. Ordersheet'!I909=\"\",\"\",'1. Ordersheet'!I909)","v":""},{"$f":"IF('1. Ordersheet'!J909=\"\",\"\",'1. Ordersheet'!J909)","v":""},{"$f":"IF('1. Ordersheet'!K909=\"\",\"\",'1. Ordersheet'!K909)","v":""},{"$f":"IF('1. Ordersheet'!M909=\"\",\"\",'1. Ordersheet'!M909)","v":""},null,null,{"$f":"IF('1. Ordersheet'!AR909=\"\",\"\",'1. Ordersheet'!AR909)","v":""},{"$f":"IF('1. Ordersheet'!AE909=\"\",\"\",'1. Ordersheet'!AE909)","v":""}]
[{"$f":"IF('1. Ordersheet'!B910=\"\",\"\",'1. Ordersheet'!B910)","v":""},{"$f":"IF('1. Ordersheet'!I910=\"\",\"\",'1. Ordersheet'!I910)","v":""},{"$f":"IF('1. Ordersheet'!J910=\"\",\"\",'1. Ordersheet'!J910)","v":""},{"$f":"IF('1. Ordersheet'!K910=\"\",\"\",'1. Ordersheet'!K910)","v":""},{"$f":"IF('1. Ordersheet'!M910=\"\",\"\",'1. Ordersheet'!M910)","v":""},null,null,{"$f":"IF('1. Ordersheet'!AR910=\"\",\"\",'1. Ordersheet'!AR910)","v":""},{"$f":"IF('1. Ordersheet'!AE910=\"\",\"\",'1. Ordersheet'!AE910)","v":""}]
[{"$f":"IF('1. Ordersheet'!B911=\"\",\"\",'1. Ordersheet'!B911)","v":""},{"$f":"IF('1. Ordersheet'!I911=\"\",\"\",'1. Ordersheet'!I911)","v":""},{"$f":"IF('1. Ordersheet'!J911=\"\",\"\",'1. Ordersheet'!J911)","v":""},{"$f":"IF('1. Ordersheet'!K911=\"\",\"\",'1. Ordersheet'!K911)","v":""},{"$f":"IF('1. Ordersheet'!M911=\"\",\"\",'1. Ordersheet'!M911)","v":""},null,null,{"$f":"IF('1. Ordersheet'!AR911=\"\",\"\",'1. Ordersheet'!AR911)","v":""},{"$f":"IF('1. Ordersheet'!AE911=\"\",\"\",'1. Ordersheet'!AE911)","v":""}]
[{"$f":"IF('1. Ordersheet'!B912=\"\",\"\",'1. Ordersheet'!B912)","v":""},{"$f":"IF('1. Ordersheet'!I912=\"\",\"\",'1. Ordersheet'!I912)","v":""},{"$f":"IF('1. Ordersheet'!J912=\"\",\"\",'1. Ordersheet'!J912)","v":""},{"$f":"IF('1. Ordersheet'!K912=\"\",\"\",'1. Ordersheet'!K912)","v":""},{"$f":"IF('1. Ordersheet'!M912=\"\",\"\",'1. Ordersheet'!M912)","v":""},null,null,{"$f":"IF('1. Ordersheet'!AR912=\"\",\"\",'1. Ordersheet'!AR912)","v":""},{"$f":"IF('1. Ordersheet'!AE912=\"\",\"\",'1. Ordersheet'!AE912)","v":""}]
[{"$f":"IF('1. Ordersheet'!B913=\"\",\"\",'1. Ordersheet'!B913)","v":""},{"$f":"IF('1. Ordersheet'!I913=\"\",\"\",'1. Ordersheet'!I913)","v":""},{"$f":"IF('1. Ordersheet'!J913=\"\",\"\",'1. Ordersheet'!J913)","v":""},{"$f":"IF('1. Ordersheet'!K913=\"\",\"\",'1. Ordersheet'!K913)","v":""},{"$f":"IF('1. Ordersheet'!M913=\"\",\"\",'1. Ordersheet'!M913)","v":""},null,null,{"$f":"IF('1. Ordersheet'!AR913=\"\",\"\",'1. Ordersheet'!AR913)","v":""},{"$f":"IF('1. Ordersheet'!AE913=\"\",\"\",'1. Ordersheet'!AE913)","v":""}]
[{"$f":"IF('1. Ordersheet'!B914=\"\",\"\",'1. Ordersheet'!B914)","v":""},{"$f":"IF('1. Ordersheet'!I914=\"\",\"\",'1. Ordersheet'!I914)","v":""},{"$f":"IF('1. Ordersheet'!J914=\"\",\"\",'1. Ordersheet'!J914)","v":""},{"$f":"IF('1. Ordersheet'!K914=\"\",\"\",'1. Ordersheet'!K914)","v":""},{"$f":"IF('1. Ordersheet'!M914=\"\",\"\",'1. Ordersheet'!M914)","v":""},null,null,{"$f":"IF('1. Ordersheet'!AR914=\"\",\"\",'1. Ordersheet'!AR914)","v":""},{"$f":"IF('1. Ordersheet'!AE914=\"\",\"\",'1. Ordersheet'!AE914)","v":""}]
[{"$f":"IF('1. Ordersheet'!B915=\"\",\"\",'1. Ordersheet'!B915)","v":""},{"$f":"IF('1. Ordersheet'!I915=\"\",\"\",'1. Ordersheet'!I915)","v":""},{"$f":"IF('1. Ordersheet'!J915=\"\",\"\",'1. Ordersheet'!J915)","v":""},{"$f":"IF('1. Ordersheet'!K915=\"\",\"\",'1. Ordersheet'!K915)","v":""},{"$f":"IF('1. Ordersheet'!M915=\"\",\"\",'1. Ordersheet'!M915)","v":""},null,null,{"$f":"IF('1. Ordersheet'!AR915=\"\",\"\",'1. Ordersheet'!AR915)","v":""},{"$f":"IF('1. Ordersheet'!AE915=\"\",\"\",'1. Ordersheet'!AE915)","v":""}]
[{"$f":"IF('1. Ordersheet'!B916=\"\",\"\",'1. Ordersheet'!B916)","v":""},{"$f":"IF('1. Ordersheet'!I916=\"\",\"\",'1. Ordersheet'!I916)","v":""},{"$f":"IF('1. Ordersheet'!J916=\"\",\"\",'1. Ordersheet'!J916)","v":""},{"$f":"IF('1. Ordersheet'!K916=\"\",\"\",'1. Ordersheet'!K916)","v":""},{"$f":"IF('1. Ordersheet'!M916=\"\",\"\",'1. Ordersheet'!M916)","v":""},null,null,{"$f":"IF('1. Ordersheet'!AR916=\"\",\"\",'1. Ordersheet'!AR916)","v":""},{"$f":"IF('1. Ordersheet'!AE916=\"\",\"\",'1. Ordersheet'!AE916)","v":""}]
[{"$f":"IF('1. Ordersheet'!B917=\"\",\"\",'1. Ordersheet'!B917)","v":""},{"$f":"IF('1. Ordersheet'!I917=\"\",\"\",'1. Ordersheet'!I917)","v":""},{"$f":"IF('1. Ordersheet'!J917=\"\",\"\",'1. Ordersheet'!J917)","v":""},{"$f":"IF('1. Ordersheet'!K917=\"\",\"\",'1. Ordersheet'!K917)","v":""},{"$f":"IF('1. Ordersheet'!M917=\"\",\"\",'1. Ordersheet'!M917)","v":""},null,null,{"$f":"IF('1. Ordersheet'!AR917=\"\",\"\",'1. Ordersheet'!AR917)","v":""},{"$f":"IF('1. Ordersheet'!AE917=\"\",\"\",'1. Ordersheet'!AE917)","v":""}]
[{"$f":"IF('1. Ordersheet'!B918=\"\",\"\",'1. Ordersheet'!B918)","v":""},{"$f":"IF('1. Ordersheet'!I918=\"\",\"\",'1. Ordersheet'!I918)","v":""},{"$f":"IF('1. Ordersheet'!J918=\"\",\"\",'1. Ordersheet'!J918)","v":""},{"$f":"IF('1. Ordersheet'!K918=\"\",\"\",'1. Ordersheet'!K918)","v":""},{"$f":"IF('1. Ordersheet'!M918=\"\",\"\",'1. Ordersheet'!M918)","v":""},null,null,{"$f":"IF('1. Ordersheet'!AR918=\"\",\"\",'1. Ordersheet'!AR918)","v":""},{"$f":"IF('1. Ordersheet'!AE918=\"\",\"\",'1. Ordersheet'!AE918)","v":""}]
[{"$f":"IF('1. Ordersheet'!B919=\"\",\"\",'1. Ordersheet'!B919)","v":""},{"$f":"IF('1. Ordersheet'!I919=\"\",\"\",'1. Ordersheet'!I919)","v":""},{"$f":"IF('1. Ordersheet'!J919=\"\",\"\",'1. Ordersheet'!J919)","v":""},{"$f":"IF('1. Ordersheet'!K919=\"\",\"\",'1. Ordersheet'!K919)","v":""},{"$f":"IF('1. Ordersheet'!M919=\"\",\"\",'1. Ordersheet'!M919)","v":""},null,null,{"$f":"IF('1. Ordersheet'!AR919=\"\",\"\",'1. Ordersheet'!AR919)","v":""},{"$f":"IF('1. Ordersheet'!AE919=\"\",\"\",'1. Ordersheet'!AE919)","v":""}]
[{"$f":"IF('1. Ordersheet'!B920=\"\",\"\",'1. Ordersheet'!B920)","v":""},{"$f":"IF('1. Ordersheet'!I920=\"\",\"\",'1. Ordersheet'!I920)","v":""},{"$f":"IF('1. Ordersheet'!J920=\"\",\"\",'1. Ordersheet'!J920)","v":""},{"$f":"IF('1. Ordersheet'!K920=\"\",\"\",'1. Ordersheet'!K920)","v":""},{"$f":"IF('1. Ordersheet'!M920=\"\",\"\",'1. Ordersheet'!M920)","v":""},null,null,{"$f":"IF('1. Ordersheet'!AR920=\"\",\"\",'1. Ordersheet'!AR920)","v":""},{"$f":"IF('1. Ordersheet'!AE920=\"\",\"\",'1. Ordersheet'!AE920)","v":""}]
[{"$f":"IF('1. Ordersheet'!B921=\"\",\"\",'1. Ordersheet'!B921)","v":""},{"$f":"IF('1. Ordersheet'!I921=\"\",\"\",'1. Ordersheet'!I921)","v":""},{"$f":"IF('1. Ordersheet'!J921=\"\",\"\",'1. Ordersheet'!J921)","v":""},{"$f":"IF('1. Ordersheet'!K921=\"\",\"\",'1. Ordersheet'!K921)","v":""},{"$f":"IF('1. Ordersheet'!M921=\"\",\"\",'1. Ordersheet'!M921)","v":""},null,null,{"$f":"IF('1. Ordersheet'!AR921=\"\",\"\",'1. Ordersheet'!AR921)","v":""},{"$f":"IF('1. Ordersheet'!AE921=\"\",\"\",'1. Ordersheet'!AE921)","v":""}]
[{"$f":"IF('1. Ordersheet'!B922=\"\",\"\",'1. Ordersheet'!B922)","v":""},{"$f":"IF('1. Ordersheet'!I922=\"\",\"\",'1. Ordersheet'!I922)","v":""},{"$f":"IF('1. Ordersheet'!J922=\"\",\"\",'1. Ordersheet'!J922)","v":""},{"$f":"IF('1. Ordersheet'!K922=\"\",\"\",'1. Ordersheet'!K922)","v":""},{"$f":"IF('1. Ordersheet'!M922=\"\",\"\",'1. Ordersheet'!M922)","v":""},null,null,{"$f":"IF('1. Ordersheet'!AR922=\"\",\"\",'1. Ordersheet'!AR922)","v":""},{"$f":"IF('1. Ordersheet'!AE922=\"\",\"\",'1. Ordersheet'!AE922)","v":""}]
[{"$f":"IF('1. Ordersheet'!B923=\"\",\"\",'1. Ordersheet'!B923)","v":""},{"$f":"IF('1. Ordersheet'!I923=\"\",\"\",'1. Ordersheet'!I923)","v":""},{"$f":"IF('1. Ordersheet'!J923=\"\",\"\",'1. Ordersheet'!J923)","v":""},{"$f":"IF('1. Ordersheet'!K923=\"\",\"\",'1. Ordersheet'!K923)","v":""},{"$f":"IF('1. Ordersheet'!M923=\"\",\"\",'1. Ordersheet'!M923)","v":""},null,null,{"$f":"IF('1. Ordersheet'!AR923=\"\",\"\",'1. Ordersheet'!AR923)","v":""},{"$f":"IF('1. Ordersheet'!AE923=\"\",\"\",'1. Ordersheet'!AE923)","v":""}]
[{"$f":"IF('1. Ordersheet'!B924=\"\",\"\",'1. Ordersheet'!B924)","v":""},{"$f":"IF('1. Ordersheet'!I924=\"\",\"\",'1. Ordersheet'!I924)","v":""},{"$f":"IF('1. Ordersheet'!J924=\"\",\"\",'1. Ordersheet'!J924)","v":""},{"$f":"IF('1. Ordersheet'!K924=\"\",\"\",'1. Ordersheet'!K924)","v":""},{"$f":"IF('1. Ordersheet'!M924=\"\",\"\",'1. Ordersheet'!M924)","v":""},null,null,{"$f":"IF('1. Ordersheet'!AR924=\"\",\"\",'1. Ordersheet'!AR924)","v":""},{"$f":"IF('1. Ordersheet'!AE924=\"\",\"\",'1. Ordersheet'!AE924)","v":""}]
[{"$f":"IF('1. Ordersheet'!B925=\"\",\"\",'1. Ordersheet'!B925)","v":""},{"$f":"IF('1. Ordersheet'!I925=\"\",\"\",'1. Ordersheet'!I925)","v":""},{"$f":"IF('1. Ordersheet'!J925=\"\",\"\",'1. Ordersheet'!J925)","v":""},{"$f":"IF('1. Ordersheet'!K925=\"\",\"\",'1. Ordersheet'!K925)","v":""},{"$f":"IF('1. Ordersheet'!M925=\"\",\"\",'1. Ordersheet'!M925)","v":""},null,null,{"$f":"IF('1. Ordersheet'!AR925=\"\",\"\",'1. Ordersheet'!AR925)","v":""},{"$f":"IF('1. Ordersheet'!AE925=\"\",\"\",'1. Ordersheet'!AE925)","v":""}]
[{"$f":"IF('1. Ordersheet'!B926=\"\",\"\",'1. Ordersheet'!B926)","v":""},{"$f":"IF('1. Ordersheet'!I926=\"\",\"\",'1. Ordersheet'!I926)","v":""},{"$f":"IF('1. Ordersheet'!J926=\"\",\"\",'1. Ordersheet'!J926)","v":""},{"$f":"IF('1. Ordersheet'!K926=\"\",\"\",'1. Ordersheet'!K926)","v":""},{"$f":"IF('1. Ordersheet'!M926=\"\",\"\",'1. Ordersheet'!M926)","v":""},null,null,{"$f":"IF('1. Ordersheet'!AR926=\"\",\"\",'1. Ordersheet'!AR926)","v":""},{"$f":"IF('1. Ordersheet'!AE926=\"\",\"\",'1. Ordersheet'!AE926)","v":""}]
[{"$f":"IF('1. Ordersheet'!B927=\"\",\"\",'1. Ordersheet'!B927)","v":""},{"$f":"IF('1. Ordersheet'!I927=\"\",\"\",'1. Ordersheet'!I927)","v":""},{"$f":"IF('1. Ordersheet'!J927=\"\",\"\",'1. Ordersheet'!J927)","v":""},{"$f":"IF('1. Ordersheet'!K927=\"\",\"\",'1. Ordersheet'!K927)","v":""},{"$f":"IF('1. Ordersheet'!M927=\"\",\"\",'1. Ordersheet'!M927)","v":""},null,null,{"$f":"IF('1. Ordersheet'!AR927=\"\",\"\",'1. Ordersheet'!AR927)","v":""},{"$f":"IF('1. Ordersheet'!AE927=\"\",\"\",'1. Ordersheet'!AE927)","v":""}]
[{"$f":"IF('1. Ordersheet'!B928=\"\",\"\",'1. Ordersheet'!B928)","v":""},{"$f":"IF('1. Ordersheet'!I928=\"\",\"\",'1. Ordersheet'!I928)","v":""},{"$f":"IF('1. Ordersheet'!J928=\"\",\"\",'1. Ordersheet'!J928)","v":""},{"$f":"IF('1. Ordersheet'!K928=\"\",\"\",'1. Ordersheet'!K928)","v":""},{"$f":"IF('1. Ordersheet'!M928=\"\",\"\",'1. Ordersheet'!M928)","v":""},null,null,{"$f":"IF('1. Ordersheet'!AR928=\"\",\"\",'1. Ordersheet'!AR928)","v":""},{"$f":"IF('1. Ordersheet'!AE928=\"\",\"\",'1. Ordersheet'!AE928)","v":""}]
[{"$f":"IF('1. Ordersheet'!B929=\"\",\"\",'1. Ordersheet'!B929)","v":""},{"$f":"IF('1. Ordersheet'!I929=\"\",\"\",'1. Ordersheet'!I929)","v":""},{"$f":"IF('1. Ordersheet'!J929=\"\",\"\",'1. Ordersheet'!J929)","v":""},{"$f":"IF('1. Ordersheet'!K929=\"\",\"\",'1. Ordersheet'!K929)","v":""},{"$f":"IF('1. Ordersheet'!M929=\"\",\"\",'1. Ordersheet'!M929)","v":""},null,null,{"$f":"IF('1. Ordersheet'!AR929=\"\",\"\",'1. Ordersheet'!AR929)","v":""},{"$f":"IF('1. Ordersheet'!AE929=\"\",\"\",'1. Ordersheet'!AE929)","v":""}]
[{"$f":"IF('1. Ordersheet'!B930=\"\",\"\",'1. Ordersheet'!B930)","v":""},{"$f":"IF('1. Ordersheet'!I930=\"\",\"\",'1. Ordersheet'!I930)","v":""},{"$f":"IF('1. Ordersheet'!J930=\"\",\"\",'1. Ordersheet'!J930)","v":""},{"$f":"IF('1. Ordersheet'!K930=\"\",\"\",'1. Ordersheet'!K930)","v":""},{"$f":"IF('1. Ordersheet'!M930=\"\",\"\",'1. Ordersheet'!M930)","v":""},null,null,{"$f":"IF('1. Ordersheet'!AR930=\"\",\"\",'1. Ordersheet'!AR930)","v":""},{"$f":"IF('1. Ordersheet'!AE930=\"\",\"\",'1. Ordersheet'!AE930)","v":""}]
[{"$f":"IF('1. Ordersheet'!B931=\"\",\"\",'1. Ordersheet'!B931)","v":""},{"$f":"IF('1. Ordersheet'!I931=\"\",\"\",'1. Ordersheet'!I931)","v":""},{"$f":"IF('1. Ordersheet'!J931=\"\",\"\",'1. Ordersheet'!J931)","v":""},{"$f":"IF('1. Ordersheet'!K931=\"\",\"\",'1. Ordersheet'!K931)","v":""},{"$f":"IF('1. Ordersheet'!M931=\"\",\"\",'1. Ordersheet'!M931)","v":""},null,null,{"$f":"IF('1. Ordersheet'!AR931=\"\",\"\",'1. Ordersheet'!AR931)","v":""},{"$f":"IF('1. Ordersheet'!AE931=\"\",\"\",'1. Ordersheet'!AE931)","v":""}]
[{"$f":"IF('1. Ordersheet'!B932=\"\",\"\",'1. Ordersheet'!B932)","v":""},{"$f":"IF('1. Ordersheet'!I932=\"\",\"\",'1. Ordersheet'!I932)","v":""},{"$f":"IF('1. Ordersheet'!J932=\"\",\"\",'1. Ordersheet'!J932)","v":""},{"$f":"IF('1. Ordersheet'!K932=\"\",\"\",'1. Ordersheet'!K932)","v":""},{"$f":"IF('1. Ordersheet'!M932=\"\",\"\",'1. Ordersheet'!M932)","v":""},null,null,{"$f":"IF('1. Ordersheet'!AR932=\"\",\"\",'1. Ordersheet'!AR932)","v":""},{"$f":"IF('1. Ordersheet'!AE932=\"\",\"\",'1. Ordersheet'!AE932)","v":""}]
[{"$f":"IF('1. Ordersheet'!B933=\"\",\"\",'1. Ordersheet'!B933)","v":""},{"$f":"IF('1. Ordersheet'!I933=\"\",\"\",'1. Ordersheet'!I933)","v":""},{"$f":"IF('1. Ordersheet'!J933=\"\",\"\",'1. Ordersheet'!J933)","v":""},{"$f":"IF('1. Ordersheet'!K933=\"\",\"\",'1. Ordersheet'!K933)","v":""},{"$f":"IF('1. Ordersheet'!M933=\"\",\"\",'1. Ordersheet'!M933)","v":""},null,null,{"$f":"IF('1. Ordersheet'!AR933=\"\",\"\",'1. Ordersheet'!AR933)","v":""},{"$f":"IF('1. Ordersheet'!AE933=\"\",\"\",'1. Ordersheet'!AE933)","v":""}]
[{"$f":"IF('1. Ordersheet'!B934=\"\",\"\",'1. Ordersheet'!B934)","v":""},{"$f":"IF('1. Ordersheet'!I934=\"\",\"\",'1. Ordersheet'!I934)","v":""},{"$f":"IF('1. Ordersheet'!J934=\"\",\"\",'1. Ordersheet'!J934)","v":""},{"$f":"IF('1. Ordersheet'!K934=\"\",\"\",'1. Ordersheet'!K934)","v":""},{"$f":"IF('1. Ordersheet'!M934=\"\",\"\",'1. Ordersheet'!M934)","v":""},null,null,{"$f":"IF('1. Ordersheet'!AR934=\"\",\"\",'1. Ordersheet'!AR934)","v":""},{"$f":"IF('1. Ordersheet'!AE934=\"\",\"\",'1. Ordersheet'!AE934)","v":""}]
[{"$f":"IF('1. Ordersheet'!B935=\"\",\"\",'1. Ordersheet'!B935)","v":""},{"$f":"IF('1. Ordersheet'!I935=\"\",\"\",'1. Ordersheet'!I935)","v":""},{"$f":"IF('1. Ordersheet'!J935=\"\",\"\",'1. Ordersheet'!J935)","v":""},{"$f":"IF('1. Ordersheet'!K935=\"\",\"\",'1. Ordersheet'!K935)","v":""},{"$f":"IF('1. Ordersheet'!M935=\"\",\"\",'1. Ordersheet'!M935)","v":""},null,null,{"$f":"IF('1. Ordersheet'!AR935=\"\",\"\",'1. Ordersheet'!AR935)","v":""},{"$f":"IF('1. Ordersheet'!AE935=\"\",\"\",'1. Ordersheet'!AE935)","v":""}]
[{"$f":"IF('1. Ordersheet'!B936=\"\",\"\",'1. Ordersheet'!B936)","v":""},{"$f":"IF('1. Ordersheet'!I936=\"\",\"\",'1. Ordersheet'!I936)","v":""},{"$f":"IF('1. Ordersheet'!J936=\"\",\"\",'1. Ordersheet'!J936)","v":""},{"$f":"IF('1. Ordersheet'!K936=\"\",\"\",'1. Ordersheet'!K936)","v":""},{"$f":"IF('1. Ordersheet'!M936=\"\",\"\",'1. Ordersheet'!M936)","v":""},null,null,{"$f":"IF('1. Ordersheet'!AR936=\"\",\"\",'1. Ordersheet'!AR936)","v":""},{"$f":"IF('1. Ordersheet'!AE936=\"\",\"\",'1. Ordersheet'!AE936)","v":""}]
[{"$f":"IF('1. Ordersheet'!B937=\"\",\"\",'1. Ordersheet'!B937)","v":""},{"$f":"IF('1. Ordersheet'!I937=\"\",\"\",'1. Ordersheet'!I937)","v":""},{"$f":"IF('1. Ordersheet'!J937=\"\",\"\",'1. Ordersheet'!J937)","v":""},{"$f":"IF('1. Ordersheet'!K937=\"\",\"\",'1. Ordersheet'!K937)","v":""},{"$f":"IF('1. Ordersheet'!M937=\"\",\"\",'1. Ordersheet'!M937)","v":""},null,null,{"$f":"IF('1. Ordersheet'!AR937=\"\",\"\",'1. Ordersheet'!AR937)","v":""},{"$f":"IF('1. Ordersheet'!AE937=\"\",\"\",'1. Ordersheet'!AE937)","v":""}]
[{"$f":"IF('1. Ordersheet'!B938=\"\",\"\",'1. Ordersheet'!B938)","v":""},{"$f":"IF('1. Ordersheet'!I938=\"\",\"\",'1. Ordersheet'!I938)","v":""},{"$f":"IF('1. Ordersheet'!J938=\"\",\"\",'1. Ordersheet'!J938)","v":""},{"$f":"IF('1. Ordersheet'!K938=\"\",\"\",'1. Ordersheet'!K938)","v":""},{"$f":"IF('1. Ordersheet'!M938=\"\",\"\",'1. Ordersheet'!M938)","v":""},null,null,{"$f":"IF('1. Ordersheet'!AR938=\"\",\"\",'1. Ordersheet'!AR938)","v":""},{"$f":"IF('1. Ordersheet'!AE938=\"\",\"\",'1. Ordersheet'!AE938)","v":""}]
[{"$f":"IF('1. Ordersheet'!B939=\"\",\"\",'1. Ordersheet'!B939)","v":""},{"$f":"IF('1. Ordersheet'!I939=\"\",\"\",'1. Ordersheet'!I939)","v":""},{"$f":"IF('1. Ordersheet'!J939=\"\",\"\",'1. Ordersheet'!J939)","v":""},{"$f":"IF('1. Ordersheet'!K939=\"\",\"\",'1. Ordersheet'!K939)","v":""},{"$f":"IF('1. Ordersheet'!M939=\"\",\"\",'1. Ordersheet'!M939)","v":""},null,null,{"$f":"IF('1. Ordersheet'!AR939=\"\",\"\",'1. Ordersheet'!AR939)","v":""},{"$f":"IF('1. Ordersheet'!AE939=\"\",\"\",'1. Ordersheet'!AE939)","v":""}]
[{"$f":"IF('1. Ordersheet'!B940=\"\",\"\",'1. Ordersheet'!B940)","v":""},{"$f":"IF('1. Ordersheet'!I940=\"\",\"\",'1. Ordersheet'!I940)","v":""},{"$f":"IF('1. Ordersheet'!J940=\"\",\"\",'1. Ordersheet'!J940)","v":""},{"$f":"IF('1. Ordersheet'!K940=\"\",\"\",'1. Ordersheet'!K940)","v":""},{"$f":"IF('1. Ordersheet'!M940=\"\",\"\",'1. Ordersheet'!M940)","v":""},null,null,{"$f":"IF('1. Ordersheet'!AR940=\"\",\"\",'1. Ordersheet'!AR940)","v":""},{"$f":"IF('1. Ordersheet'!AE940=\"\",\"\",'1. Ordersheet'!AE940)","v":""}]
[{"$f":"IF('1. Ordersheet'!B941=\"\",\"\",'1. Ordersheet'!B941)","v":""},{"$f":"IF('1. Ordersheet'!I941=\"\",\"\",'1. Ordersheet'!I941)","v":""},{"$f":"IF('1. Ordersheet'!J941=\"\",\"\",'1. Ordersheet'!J941)","v":""},{"$f":"IF('1. Ordersheet'!K941=\"\",\"\",'1. Ordersheet'!K941)","v":""},{"$f":"IF('1. Ordersheet'!M941=\"\",\"\",'1. Ordersheet'!M941)","v":""},null,null,{"$f":"IF('1. Ordersheet'!AR941=\"\",\"\",'1. Ordersheet'!AR941)","v":""},{"$f":"IF('1. Ordersheet'!AE941=\"\",\"\",'1. Ordersheet'!AE941)","v":""}]
[{"$f":"IF('1. Ordersheet'!B942=\"\",\"\",'1. Ordersheet'!B942)","v":""},{"$f":"IF('1. Ordersheet'!I942=\"\",\"\",'1. Ordersheet'!I942)","v":""},{"$f":"IF('1. Ordersheet'!J942=\"\",\"\",'1. Ordersheet'!J942)","v":""},{"$f":"IF('1. Ordersheet'!K942=\"\",\"\",'1. Ordersheet'!K942)","v":""},{"$f":"IF('1. Ordersheet'!M942=\"\",\"\",'1. Ordersheet'!M942)","v":""},null,null,{"$f":"IF('1. Ordersheet'!AR942=\"\",\"\",'1. Ordersheet'!AR942)","v":""},{"$f":"IF('1. Ordersheet'!AE942=\"\",\"\",'1. Ordersheet'!AE942)","v":""}]
[{"$f":"IF('1. Ordersheet'!B943=\"\",\"\",'1. Ordersheet'!B943)","v":""},{"$f":"IF('1. Ordersheet'!I943=\"\",\"\",'1. Ordersheet'!I943)","v":""},{"$f":"IF('1. Ordersheet'!J943=\"\",\"\",'1. Ordersheet'!J943)","v":""},{"$f":"IF('1. Ordersheet'!K943=\"\",\"\",'1. Ordersheet'!K943)","v":""},{"$f":"IF('1. Ordersheet'!M943=\"\",\"\",'1. Ordersheet'!M943)","v":""},null,null,{"$f":"IF('1. Ordersheet'!AR943=\"\",\"\",'1. Ordersheet'!AR943)","v":""},{"$f":"IF('1. Ordersheet'!AE943=\"\",\"\",'1. Ordersheet'!AE943)","v":""}]
[{"$f":"IF('1. Ordersheet'!B944=\"\",\"\",'1. Ordersheet'!B944)","v":""},{"$f":"IF('1. Ordersheet'!I944=\"\",\"\",'1. Ordersheet'!I944)","v":""},{"$f":"IF('1. Ordersheet'!J944=\"\",\"\",'1. Ordersheet'!J944)","v":""},{"$f":"IF('1. Ordersheet'!K944=\"\",\"\",'1. Ordersheet'!K944)","v":""},{"$f":"IF('1. Ordersheet'!M944=\"\",\"\",'1. Ordersheet'!M944)","v":""},null,null,{"$f":"IF('1. Ordersheet'!AR944=\"\",\"\",'1. Ordersheet'!AR944)","v":""},{"$f":"IF('1. Ordersheet'!AE944=\"\",\"\",'1. Ordersheet'!AE944)","v":""}]
[{"$f":"IF('1. Ordersheet'!B945=\"\",\"\",'1. Ordersheet'!B945)","v":""},{"$f":"IF('1. Ordersheet'!I945=\"\",\"\",'1. Ordersheet'!I945)","v":""},{"$f":"IF('1. Ordersheet'!J945=\"\",\"\",'1. Ordersheet'!J945)","v":""},{"$f":"IF('1. Ordersheet'!K945=\"\",\"\",'1. Ordersheet'!K945)","v":""},{"$f":"IF('1. Ordersheet'!M945=\"\",\"\",'1. Ordersheet'!M945)","v":""},null,null,{"$f":"IF('1. Ordersheet'!AR945=\"\",\"\",'1. Ordersheet'!AR945)","v":""},{"$f":"IF('1. Ordersheet'!AE945=\"\",\"\",'1. Ordersheet'!AE945)","v":""}]
[{"$f":"IF('1. Ordersheet'!B946=\"\",\"\",'1. Ordersheet'!B946)","v":""},{"$f":"IF('1. Ordersheet'!I946=\"\",\"\",'1. Ordersheet'!I946)","v":""},{"$f":"IF('1. Ordersheet'!J946=\"\",\"\",'1. Ordersheet'!J946)","v":""},{"$f":"IF('1. Ordersheet'!K946=\"\",\"\",'1. Ordersheet'!K946)","v":""},{"$f":"IF('1. Ordersheet'!M946=\"\",\"\",'1. Ordersheet'!M946)","v":""},null,null,{"$f":"IF('1. Ordersheet'!AR946=\"\",\"\",'1. Ordersheet'!AR946)","v":""},{"$f":"IF('1. Ordersheet'!AE946=\"\",\"\",'1. Ordersheet'!AE946)","v":""}]
[{"$f":"IF('1. Ordersheet'!B947=\"\",\"\",'1. Ordersheet'!B947)","v":""},{"$f":"IF('1. Ordersheet'!I947=\"\",\"\",'1. Ordersheet'!I947)","v":""},{"$f":"IF('1. Ordersheet'!J947=\"\",\"\",'1. Ordersheet'!J947)","v":""},{"$f":"IF('1. Ordersheet'!K947=\"\",\"\",'1. Ordersheet'!K947)","v":""},{"$f":"IF('1. Ordersheet'!M947=\"\",\"\",'1. Ordersheet'!M947)","v":""},null,null,{"$f":"IF('1. Ordersheet'!AR947=\"\",\"\",'1. Ordersheet'!AR947)","v":""},{"$f":"IF('1. Ordersheet'!AE947=\"\",\"\",'1. Ordersheet'!AE947)","v":""}]
[{"$f":"IF('1. Ordersheet'!B948=\"\",\"\",'1. Ordersheet'!B948)","v":""},{"$f":"IF('1. Ordersheet'!I948=\"\",\"\",'1. Ordersheet'!I948)","v":""},{"$f":"IF('1. Ordersheet'!J948=\"\",\"\",'1. Ordersheet'!J948)","v":""},{"$f":"IF('1. Ordersheet'!K948=\"\",\"\",'1. Ordersheet'!K948)","v":""},{"$f":"IF('1. Ordersheet'!M948=\"\",\"\",'1. Ordersheet'!M948)","v":""},null,null,{"$f":"IF('1. Ordersheet'!AR948=\"\",\"\",'1. Ordersheet'!AR948)","v":""},{"$f":"IF('1. Ordersheet'!AE948=\"\",\"\",'1. Ordersheet'!AE948)","v":""}]
[{"$f":"IF('1. Ordersheet'!B949=\"\",\"\",'1. Ordersheet'!B949)","v":""},{"$f":"IF('1. Ordersheet'!I949=\"\",\"\",'1. Ordersheet'!I949)","v":""},{"$f":"IF('1. Ordersheet'!J949=\"\",\"\",'1. Ordersheet'!J949)","v":""},{"$f":"IF('1. Ordersheet'!K949=\"\",\"\",'1. Ordersheet'!K949)","v":""},{"$f":"IF('1. Ordersheet'!M949=\"\",\"\",'1. Ordersheet'!M949)","v":""},null,null,{"$f":"IF('1. Ordersheet'!AR949=\"\",\"\",'1. Ordersheet'!AR949)","v":""},{"$f":"IF('1. Ordersheet'!AE949=\"\",\"\",'1. Ordersheet'!AE949)","v":""}]
[{"$f":"IF('1. Ordersheet'!B950=\"\",\"\",'1. Ordersheet'!B950)","v":""},{"$f":"IF('1. Ordersheet'!I950=\"\",\"\",'1. Ordersheet'!I950)","v":""},{"$f":"IF('1. Ordersheet'!J950=\"\",\"\",'1. Ordersheet'!J950)","v":""},{"$f":"IF('1. Ordersheet'!K950=\"\",\"\",'1. Ordersheet'!K950)","v":""},{"$f":"IF('1. Ordersheet'!M950=\"\",\"\",'1. Ordersheet'!M950)","v":""},null,null,{"$f":"IF('1. Ordersheet'!AR950=\"\",\"\",'1. Ordersheet'!AR950)","v":""},{"$f":"IF('1. Ordersheet'!AE950=\"\",\"\",'1. Ordersheet'!AE950)","v":""}]
[{"$f":"IF('1. Ordersheet'!B951=\"\",\"\",'1. Ordersheet'!B951)","v":""},{"$f":"IF('1. Ordersheet'!I951=\"\",\"\",'1. Ordersheet'!I951)","v":""},{"$f":"IF('1. Ordersheet'!J951=\"\",\"\",'1. Ordersheet'!J951)","v":""},{"$f":"IF('1. Ordersheet'!K951=\"\",\"\",'1. Ordersheet'!K951)","v":""},{"$f":"IF('1. Ordersheet'!M951=\"\",\"\",'1. Ordersheet'!M951)","v":""},null,null,{"$f":"IF('1. Ordersheet'!AR951=\"\",\"\",'1. Ordersheet'!AR951)","v":""},{"$f":"IF('1. Ordersheet'!AE951=\"\",\"\",'1. Ordersheet'!AE951)","v":""}]
[{"$f":"IF('1. Ordersheet'!B952=\"\",\"\",'1. Ordersheet'!B952)","v":""},{"$f":"IF('1. Ordersheet'!I952=\"\",\"\",'1. Ordersheet'!I952)","v":""},{"$f":"IF('1. Ordersheet'!J952=\"\",\"\",'1. Ordersheet'!J952)","v":""},{"$f":"IF('1. Ordersheet'!K952=\"\",\"\",'1. Ordersheet'!K952)","v":""},{"$f":"IF('1. Ordersheet'!M952=\"\",\"\",'1. Ordersheet'!M952)","v":""},null,null,{"$f":"IF('1. Ordersheet'!AR952=\"\",\"\",'1. Ordersheet'!AR952)","v":""},{"$f":"IF('1. Ordersheet'!AE952=\"\",\"\",'1. Ordersheet'!AE952)","v":""}]
[{"$f":"IF('1. Ordersheet'!B953=\"\",\"\",'1. Ordersheet'!B953)","v":""},{"$f":"IF('1. Ordersheet'!I953=\"\",\"\",'1. Ordersheet'!I953)","v":""},{"$f":"IF('1. Ordersheet'!J953=\"\",\"\",'1. Ordersheet'!J953)","v":""},{"$f":"IF('1. Ordersheet'!K953=\"\",\"\",'1. Ordersheet'!K953)","v":""},{"$f":"IF('1. Ordersheet'!M953=\"\",\"\",'1. Ordersheet'!M953)","v":""},null,null,{"$f":"IF('1. Ordersheet'!AR953=\"\",\"\",'1. Ordersheet'!AR953)","v":""},{"$f":"IF('1. Ordersheet'!AE953=\"\",\"\",'1. Ordersheet'!AE953)","v":""}]
[{"$f":"IF('1. Ordersheet'!B954=\"\",\"\",'1. Ordersheet'!B954)","v":""},{"$f":"IF('1. Ordersheet'!I954=\"\",\"\",'1. Ordersheet'!I954)","v":""},{"$f":"IF('1. Ordersheet'!J954=\"\",\"\",'1. Ordersheet'!J954)","v":""},{"$f":"IF('1. Ordersheet'!K954=\"\",\"\",'1. Ordersheet'!K954)","v":""},{"$f":"IF('1. Ordersheet'!M954=\"\",\"\",'1. Ordersheet'!M954)","v":""},null,null,{"$f":"IF('1. Ordersheet'!AR954=\"\",\"\",'1. Ordersheet'!AR954)","v":""},{"$f":"IF('1. Ordersheet'!AE954=\"\",\"\",'1. Ordersheet'!AE954)","v":""}]
[{"$f":"IF('1. Ordersheet'!B955=\"\",\"\",'1. Ordersheet'!B955)","v":""},{"$f":"IF('1. Ordersheet'!I955=\"\",\"\",'1. Ordersheet'!I955)","v":""},{"$f":"IF('1. Ordersheet'!J955=\"\",\"\",'1. Ordersheet'!J955)","v":""},{"$f":"IF('1. Ordersheet'!K955=\"\",\"\",'1. Ordersheet'!K955)","v":""},{"$f":"IF('1. Ordersheet'!M955=\"\",\"\",'1. Ordersheet'!M955)","v":""},null,null,{"$f":"IF('1. Ordersheet'!AR955=\"\",\"\",'1. Ordersheet'!AR955)","v":""},{"$f":"IF('1. Ordersheet'!AE955=\"\",\"\",'1. Ordersheet'!AE955)","v":""}]
[{"$f":"IF('1. Ordersheet'!B956=\"\",\"\",'1. Ordersheet'!B956)","v":""},{"$f":"IF('1. Ordersheet'!I956=\"\",\"\",'1. Ordersheet'!I956)","v":""},{"$f":"IF('1. Ordersheet'!J956=\"\",\"\",'1. Ordersheet'!J956)","v":""},{"$f":"IF('1. Ordersheet'!K956=\"\",\"\",'1. Ordersheet'!K956)","v":""},{"$f":"IF('1. Ordersheet'!M956=\"\",\"\",'1. Ordersheet'!M956)","v":""},null,null,{"$f":"IF('1. Ordersheet'!AR956=\"\",\"\",'1. Ordersheet'!AR956)","v":""},{"$f":"IF('1. Ordersheet'!AE956=\"\",\"\",'1. Ordersheet'!AE956)","v":""}]
[{"$f":"IF('1. Ordersheet'!B957=\"\",\"\",'1. Ordersheet'!B957)","v":""},{"$f":"IF('1. Ordersheet'!I957=\"\",\"\",'1. Ordersheet'!I957)","v":""},{"$f":"IF('1. Ordersheet'!J957=\"\",\"\",'1. Ordersheet'!J957)","v":""},{"$f":"IF('1. Ordersheet'!K957=\"\",\"\",'1. Ordersheet'!K957)","v":""},{"$f":"IF('1. Ordersheet'!M957=\"\",\"\",'1. Ordersheet'!M957)","v":""},null,null,{"$f":"IF('1. Ordersheet'!AR957=\"\",\"\",'1. Ordersheet'!AR957)","v":""},{"$f":"IF('1. Ordersheet'!AE957=\"\",\"\",'1. Ordersheet'!AE957)","v":""}]
[{"$f":"IF('1. Ordersheet'!B958=\"\",\"\",'1. Ordersheet'!B958)","v":""},{"$f":"IF('1. Ordersheet'!I958=\"\",\"\",'1. Ordersheet'!I958)","v":""},{"$f":"IF('1. Ordersheet'!J958=\"\",\"\",'1. Ordersheet'!J958)","v":""},{"$f":"IF('1. Ordersheet'!K958=\"\",\"\",'1. Ordersheet'!K958)","v":""},{"$f":"IF('1. Ordersheet'!M958=\"\",\"\",'1. Ordersheet'!M958)","v":""},null,null,{"$f":"IF('1. Ordersheet'!AR958=\"\",\"\",'1. Ordersheet'!AR958)","v":""},{"$f":"IF('1. Ordersheet'!AE958=\"\",\"\",'1. Ordersheet'!AE958)","v":""}]
[{"$f":"IF('1. Ordersheet'!B959=\"\",\"\",'1. Ordersheet'!B959)","v":""},{"$f":"IF('1. Ordersheet'!I959=\"\",\"\",'1. Ordersheet'!I959)","v":""},{"$f":"IF('1. Ordersheet'!J959=\"\",\"\",'1. Ordersheet'!J959)","v":""},{"$f":"IF('1. Ordersheet'!K959=\"\",\"\",'1. Ordersheet'!K959)","v":""},{"$f":"IF('1. Ordersheet'!M959=\"\",\"\",'1. Ordersheet'!M959)","v":""},null,null,{"$f":"IF('1. Ordersheet'!AR959=\"\",\"\",'1. Ordersheet'!AR959)","v":""},{"$f":"IF('1. Ordersheet'!AE959=\"\",\"\",'1. Ordersheet'!AE959)","v":""}]
[{"$f":"IF('1. Ordersheet'!B960=\"\",\"\",'1. Ordersheet'!B960)","v":""},{"$f":"IF('1. Ordersheet'!I960=\"\",\"\",'1. Ordersheet'!I960)","v":""},{"$f":"IF('1. Ordersheet'!J960=\"\",\"\",'1. Ordersheet'!J960)","v":""},{"$f":"IF('1. Ordersheet'!K960=\"\",\"\",'1. Ordersheet'!K960)","v":""},{"$f":"IF('1. Ordersheet'!M960=\"\",\"\",'1. Ordersheet'!M960)","v":""},null,null,{"$f":"IF('1. Ordersheet'!AR960=\"\",\"\",'1. Ordersheet'!AR960)","v":""},{"$f":"IF('1. Ordersheet'!AE960=\"\",\"\",'1. Ordersheet'!AE960)","v":""}]
[{"$f":"IF('1. Ordersheet'!B961=\"\",\"\",'1. Ordersheet'!B961)","v":""},{"$f":"IF('1. Ordersheet'!I961=\"\",\"\",'1. Ordersheet'!I961)","v":""},{"$f":"IF('1. Ordersheet'!J961=\"\",\"\",'1. Ordersheet'!J961)","v":""},{"$f":"IF('1. Ordersheet'!K961=\"\",\"\",'1. Ordersheet'!K961)","v":""},{"$f":"IF('1. Ordersheet'!M961=\"\",\"\",'1. Ordersheet'!M961)","v":""},null,null,{"$f":"IF('1. Ordersheet'!AR961=\"\",\"\",'1. Ordersheet'!AR961)","v":""},{"$f":"IF('1. Ordersheet'!AE961=\"\",\"\",'1. Ordersheet'!AE961)","v":""}]
[{"$f":"IF('1. Ordersheet'!B962=\"\",\"\",'1. Ordersheet'!B962)","v":""},{"$f":"IF('1. Ordersheet'!I962=\"\",\"\",'1. Ordersheet'!I962)","v":""},{"$f":"IF('1. Ordersheet'!J962=\"\",\"\",'1. Ordersheet'!J962)","v":""},{"$f":"IF('1. Ordersheet'!K962=\"\",\"\",'1. Ordersheet'!K962)","v":""},{"$f":"IF('1. Ordersheet'!M962=\"\",\"\",'1. Ordersheet'!M962)","v":""},null,null,{"$f":"IF('1. Ordersheet'!AR962=\"\",\"\",'1. Ordersheet'!AR962)","v":""},{"$f":"IF('1. Ordersheet'!AE962=\"\",\"\",'1. Ordersheet'!AE962)","v":""}]
[{"$f":"IF('1. Ordersheet'!B963=\"\",\"\",'1. Ordersheet'!B963)","v":""},{"$f":"IF('1. Ordersheet'!I963=\"\",\"\",'1. Ordersheet'!I963)","v":""},{"$f":"IF('1. Ordersheet'!J963=\"\",\"\",'1. Ordersheet'!J963)","v":""},{"$f":"IF('1. Ordersheet'!K963=\"\",\"\",'1. Ordersheet'!K963)","v":""},{"$f":"IF('1. Ordersheet'!M963=\"\",\"\",'1. Ordersheet'!M963)","v":""},null,null,{"$f":"IF('1. Ordersheet'!AR963=\"\",\"\",'1. Ordersheet'!AR963)","v":""},{"$f":"IF('1. Ordersheet'!AE963=\"\",\"\",'1. Ordersheet'!AE963)","v":""}]
[{"$f":"IF('1. Ordersheet'!B964=\"\",\"\",'1. Ordersheet'!B964)","v":""},{"$f":"IF('1. Ordersheet'!I964=\"\",\"\",'1. Ordersheet'!I964)","v":""},{"$f":"IF('1. Ordersheet'!J964=\"\",\"\",'1. Ordersheet'!J964)","v":""},{"$f":"IF('1. Ordersheet'!K964=\"\",\"\",'1. Ordersheet'!K964)","v":""},{"$f":"IF('1. Ordersheet'!M964=\"\",\"\",'1. Ordersheet'!M964)","v":""},null,null,{"$f":"IF('1. Ordersheet'!AR964=\"\",\"\",'1. Ordersheet'!AR964)","v":""},{"$f":"IF('1. Ordersheet'!AE964=\"\",\"\",'1. Ordersheet'!AE964)","v":""}]
[{"$f":"IF('1. Ordersheet'!B965=\"\",\"\",'1. Ordersheet'!B965)","v":""},{"$f":"IF('1. Ordersheet'!I965=\"\",\"\",'1. Ordersheet'!I965)","v":""},{"$f":"IF('1. Ordersheet'!J965=\"\",\"\",'1. Ordersheet'!J965)","v":""},{"$f":"IF('1. Ordersheet'!K965=\"\",\"\",'1. Ordersheet'!K965)","v":""},{"$f":"IF('1. Ordersheet'!M965=\"\",\"\",'1. Ordersheet'!M965)","v":""},null,null,{"$f":"IF('1. Ordersheet'!AR965=\"\",\"\",'1. Ordersheet'!AR965)","v":""},{"$f":"IF('1. Ordersheet'!AE965=\"\",\"\",'1. Ordersheet'!AE965)","v":""}]
[{"$f":"IF('1. Ordersheet'!B966=\"\",\"\",'1. Ordersheet'!B966)","v":""},{"$f":"IF('1. Ordersheet'!I966=\"\",\"\",'1. Ordersheet'!I966)","v":""},{"$f":"IF('1. Ordersheet'!J966=\"\",\"\",'1. Ordersheet'!J966)","v":""},{"$f":"IF('1. Ordersheet'!K966=\"\",\"\",'1. Ordersheet'!K966)","v":""},{"$f":"IF('1. Ordersheet'!M966=\"\",\"\",'1. Ordersheet'!M966)","v":""},null,null,{"$f":"IF('1. Ordersheet'!AR966=\"\",\"\",'1. Ordersheet'!AR966)","v":""},{"$f":"IF('1. Ordersheet'!AE966=\"\",\"\",'1. Ordersheet'!AE966)","v":""}]
[{"$f":"IF('1. Ordersheet'!B967=\"\",\"\",'1. Ordersheet'!B967)","v":""},{"$f":"IF('1. Ordersheet'!I967=\"\",\"\",'1. Ordersheet'!I967)","v":""},{"$f":"IF('1. Ordersheet'!J967=\"\",\"\",'1. Ordersheet'!J967)","v":""},{"$f":"IF('1. Ordersheet'!K967=\"\",\"\",'1. Ordersheet'!K967)","v":""},{"$f":"IF('1. Ordersheet'!M967=\"\",\"\",'1. Ordersheet'!M967)","v":""},null,null,{"$f":"IF('1. Ordersheet'!AR967=\"\",\"\",'1. Ordersheet'!AR967)","v":""},{"$f":"IF('1. Ordersheet'!AE967=\"\",\"\",'1. Ordersheet'!AE967)","v":""}]
[{"$f":"IF('1. Ordersheet'!B968=\"\",\"\",'1. Ordersheet'!B968)","v":""},{"$f":"IF('1. Ordersheet'!I968=\"\",\"\",'1. Ordersheet'!I968)","v":""},{"$f":"IF('1. Ordersheet'!J968=\"\",\"\",'1. Ordersheet'!J968)","v":""},{"$f":"IF('1. Ordersheet'!K968=\"\",\"\",'1. Ordersheet'!K968)","v":""},{"$f":"IF('1. Ordersheet'!M968=\"\",\"\",'1. Ordersheet'!M968)","v":""},null,null,{"$f":"IF('1. Ordersheet'!AR968=\"\",\"\",'1. Ordersheet'!AR968)","v":""},{"$f":"IF('1. Ordersheet'!AE968=\"\",\"\",'1. Ordersheet'!AE968)","v":""}]
[{"$f":"IF('1. Ordersheet'!B969=\"\",\"\",'1. Ordersheet'!B969)","v":""},{"$f":"IF('1. Ordersheet'!I969=\"\",\"\",'1. Ordersheet'!I969)","v":""},{"$f":"IF('1. Ordersheet'!J969=\"\",\"\",'1. Ordersheet'!J969)","v":""},{"$f":"IF('1. Ordersheet'!K969=\"\",\"\",'1. Ordersheet'!K969)","v":""},{"$f":"IF('1. Ordersheet'!M969=\"\",\"\",'1. Ordersheet'!M969)","v":""},null,null,{"$f":"IF('1. Ordersheet'!AR969=\"\",\"\",'1. Ordersheet'!AR969)","v":""},{"$f":"IF('1. Ordersheet'!AE969=\"\",\"\",'1. Ordersheet'!AE969)","v":""}]
[{"$f":"IF('1. Ordersheet'!B970=\"\",\"\",'1. Ordersheet'!B970)","v":""},{"$f":"IF('1. Ordersheet'!I970=\"\",\"\",'1. Ordersheet'!I970)","v":""},{"$f":"IF('1. Ordersheet'!J970=\"\",\"\",'1. Ordersheet'!J970)","v":""},{"$f":"IF('1. Ordersheet'!K970=\"\",\"\",'1. Ordersheet'!K970)","v":""},{"$f":"IF('1. Ordersheet'!M970=\"\",\"\",'1. Ordersheet'!M970)","v":""},null,null,{"$f":"IF('1. Ordersheet'!AR970=\"\",\"\",'1. Ordersheet'!AR970)","v":""},{"$f":"IF('1. Ordersheet'!AE970=\"\",\"\",'1. Ordersheet'!AE970)","v":""}]
[{"$f":"IF('1. Ordersheet'!B971=\"\",\"\",'1. Ordersheet'!B971)","v":""},{"$f":"IF('1. Ordersheet'!I971=\"\",\"\",'1. Ordersheet'!I971)","v":""},{"$f":"IF('1. Ordersheet'!J971=\"\",\"\",'1. Ordersheet'!J971)","v":""},{"$f":"IF('1. Ordersheet'!K971=\"\",\"\",'1. Ordersheet'!K971)","v":""},{"$f":"IF('1. Ordersheet'!M971=\"\",\"\",'1. Ordersheet'!M971)","v":""},null,null,{"$f":"IF('1. Ordersheet'!AR971=\"\",\"\",'1. Ordersheet'!AR971)","v":""},{"$f":"IF('1. Ordersheet'!AE971=\"\",\"\",'1. Ordersheet'!AE971)","v":""}]
[{"$f":"IF('1. Ordersheet'!B972=\"\",\"\",'1. Ordersheet'!B972)","v":""},{"$f":"IF('1. Ordersheet'!I972=\"\",\"\",'1. Ordersheet'!I972)","v":""},{"$f":"IF('1. Ordersheet'!J972=\"\",\"\",'1. Ordersheet'!J972)","v":""},{"$f":"IF('1. Ordersheet'!K972=\"\",\"\",'1. Ordersheet'!K972)","v":""},{"$f":"IF('1. Ordersheet'!M972=\"\",\"\",'1. Ordersheet'!M972)","v":""},null,null,{"$f":"IF('1. Ordersheet'!AR972=\"\",\"\",'1. Ordersheet'!AR972)","v":""},{"$f":"IF('1. Ordersheet'!AE972=\"\",\"\",'1. Ordersheet'!AE972)","v":""}]
[{"$f":"IF('1. Ordersheet'!B973=\"\",\"\",'1. Ordersheet'!B973)","v":""},{"$f":"IF('1. Ordersheet'!I973=\"\",\"\",'1. Ordersheet'!I973)","v":""},{"$f":"IF('1. Ordersheet'!J973=\"\",\"\",'1. Ordersheet'!J973)","v":""},{"$f":"IF('1. Ordersheet'!K973=\"\",\"\",'1. Ordersheet'!K973)","v":""},{"$f":"IF('1. Ordersheet'!M973=\"\",\"\",'1. Ordersheet'!M973)","v":""},null,null,{"$f":"IF('1. Ordersheet'!AR973=\"\",\"\",'1. Ordersheet'!AR973)","v":""},{"$f":"IF('1. Ordersheet'!AE973=\"\",\"\",'1. Ordersheet'!AE973)","v":""}]
[{"$f":"IF('1. Ordersheet'!B974=\"\",\"\",'1. Ordersheet'!B974)","v":""},{"$f":"IF('1. Ordersheet'!I974=\"\",\"\",'1. Ordersheet'!I974)","v":""},{"$f":"IF('1. Ordersheet'!J974=\"\",\"\",'1. Ordersheet'!J974)","v":""},{"$f":"IF('1. Ordersheet'!K974=\"\",\"\",'1. Ordersheet'!K974)","v":""},{"$f":"IF('1. Ordersheet'!M974=\"\",\"\",'1. Ordersheet'!M974)","v":""},null,null,{"$f":"IF('1. Ordersheet'!AR974=\"\",\"\",'1. Ordersheet'!AR974)","v":""},{"$f":"IF('1. Ordersheet'!AE974=\"\",\"\",'1. Ordersheet'!AE974)","v":""}]
[{"$f":"IF('1. Ordersheet'!B975=\"\",\"\",'1. Ordersheet'!B975)","v":""},{"$f":"IF('1. Ordersheet'!I975=\"\",\"\",'1. Ordersheet'!I975)","v":""},{"$f":"IF('1. Ordersheet'!J975=\"\",\"\",'1. Ordersheet'!J975)","v":""},{"$f":"IF('1. Ordersheet'!K975=\"\",\"\",'1. Ordersheet'!K975)","v":""},{"$f":"IF('1. Ordersheet'!M975=\"\",\"\",'1. Ordersheet'!M975)","v":""},null,null,{"$f":"IF('1. Ordersheet'!AR975=\"\",\"\",'1. Ordersheet'!AR975)","v":""},{"$f":"IF('1. Ordersheet'!AE975=\"\",\"\",'1. Ordersheet'!AE975)","v":""}]
[{"$f":"IF('1. Ordersheet'!B976=\"\",\"\",'1. Ordersheet'!B976)","v":""},{"$f":"IF('1. Ordersheet'!I976=\"\",\"\",'1. Ordersheet'!I976)","v":""},{"$f":"IF('1. Ordersheet'!J976=\"\",\"\",'1. Ordersheet'!J976)","v":""},{"$f":"IF('1. Ordersheet'!K976=\"\",\"\",'1. Ordersheet'!K976)","v":""},{"$f":"IF('1. Ordersheet'!M976=\"\",\"\",'1. Ordersheet'!M976)","v":""},null,null,{"$f":"IF('1. Ordersheet'!AR976=\"\",\"\",'1. Ordersheet'!AR976)","v":""},{"$f":"IF('1. Ordersheet'!AE976=\"\",\"\",'1. Ordersheet'!AE976)","v":""}]
[{"$f":"IF('1. Ordersheet'!B977=\"\",\"\",'1. Ordersheet'!B977)","v":""},{"$f":"IF('1. Ordersheet'!I977=\"\",\"\",'1. Ordersheet'!I977)","v":""},{"$f":"IF('1. Ordersheet'!J977=\"\",\"\",'1. Ordersheet'!J977)","v":""},{"$f":"IF('1. Ordersheet'!K977=\"\",\"\",'1. Ordersheet'!K977)","v":""},{"$f":"IF('1. Ordersheet'!M977=\"\",\"\",'1. Ordersheet'!M977)","v":""},null,null,{"$f":"IF('1. Ordersheet'!AR977=\"\",\"\",'1. Ordersheet'!AR977)","v":""},{"$f":"IF('1. Ordersheet'!AE977=\"\",\"\",'1. Ordersheet'!AE977)","v":""}]
[{"$f":"IF('1. Ordersheet'!B978=\"\",\"\",'1. Ordersheet'!B978)","v":""},{"$f":"IF('1. Ordersheet'!I978=\"\",\"\",'1. Ordersheet'!I978)","v":""},{"$f":"IF('1. Ordersheet'!J978=\"\",\"\",'1. Ordersheet'!J978)","v":""},{"$f":"IF('1. Ordersheet'!K978=\"\",\"\",'1. Ordersheet'!K978)","v":""},{"$f":"IF('1. Ordersheet'!M978=\"\",\"\",'1. Ordersheet'!M978)","v":""},null,null,{"$f":"IF('1. Ordersheet'!AR978=\"\",\"\",'1. Ordersheet'!AR978)","v":""},{"$f":"IF('1. Ordersheet'!AE978=\"\",\"\",'1. Ordersheet'!AE978)","v":""}]
[{"$f":"IF('1. Ordersheet'!B979=\"\",\"\",'1. Ordersheet'!B979)","v":""},{"$f":"IF('1. Ordersheet'!I979=\"\",\"\",'1. Ordersheet'!I979)","v":""},{"$f":"IF('1. Ordersheet'!J979=\"\",\"\",'1. Ordersheet'!J979)","v":""},{"$f":"IF('1. Ordersheet'!K979=\"\",\"\",'1. Ordersheet'!K979)","v":""},{"$f":"IF('1. Ordersheet'!M979=\"\",\"\",'1. Ordersheet'!M979)","v":""},null,null,{"$f":"IF('1. Ordersheet'!AR979=\"\",\"\",'1. Ordersheet'!AR979)","v":""},{"$f":"IF('1. Ordersheet'!AE979=\"\",\"\",'1. Ordersheet'!AE979)","v":""}]
[{"$f":"IF('1. Ordersheet'!B980=\"\",\"\",'1. Ordersheet'!B980)","v":""},{"$f":"IF('1. Ordersheet'!I980=\"\",\"\",'1. Ordersheet'!I980)","v":""},{"$f":"IF('1. Ordersheet'!J980=\"\",\"\",'1. Ordersheet'!J980)","v":""},{"$f":"IF('1. Ordersheet'!K980=\"\",\"\",'1. Ordersheet'!K980)","v":""},{"$f":"IF('1. Ordersheet'!M980=\"\",\"\",'1. Ordersheet'!M980)","v":""},null,null,{"$f":"IF('1. Ordersheet'!AR980=\"\",\"\",'1. Ordersheet'!AR980)","v":""},{"$f":"IF('1. Ordersheet'!AE980=\"\",\"\",'1. Ordersheet'!AE980)","v":""}]
[{"$f":"IF('1. Ordersheet'!B981=\"\",\"\",'1. Ordersheet'!B981)","v":""},{"$f":"IF('1. Ordersheet'!I981=\"\",\"\",'1. Ordersheet'!I981)","v":""},{"$f":"IF('1. Ordersheet'!J981=\"\",\"\",'1. Ordersheet'!J981)","v":""},{"$f":"IF('1. Ordersheet'!K981=\"\",\"\",'1. Ordersheet'!K981)","v":""},{"$f":"IF('1. Ordersheet'!M981=\"\",\"\",'1. Ordersheet'!M981)","v":""},null,null,{"$f":"IF('1. Ordersheet'!AR981=\"\",\"\",'1. Ordersheet'!AR981)","v":""},{"$f":"IF('1. Ordersheet'!AE981=\"\",\"\",'1. Ordersheet'!AE981)","v":""}]
[{"$f":"IF('1. Ordersheet'!B982=\"\",\"\",'1. Ordersheet'!B982)","v":""},{"$f":"IF('1. Ordersheet'!I982=\"\",\"\",'1. Ordersheet'!I982)","v":""},{"$f":"IF('1. Ordersheet'!J982=\"\",\"\",'1. Ordersheet'!J982)","v":""},{"$f":"IF('1. Ordersheet'!K982=\"\",\"\",'1. Ordersheet'!K982)","v":""},{"$f":"IF('1. Ordersheet'!M982=\"\",\"\",'1. Ordersheet'!M982)","v":""},null,null,{"$f":"IF('1. Ordersheet'!AR982=\"\",\"\",'1. Ordersheet'!AR982)","v":""},{"$f":"IF('1. Ordersheet'!AE982=\"\",\"\",'1. Ordersheet'!AE982)","v":""}]
[{"$f":"IF('1. Ordersheet'!B983=\"\",\"\",'1. Ordersheet'!B983)","v":""},{"$f":"IF('1. Ordersheet'!I983=\"\",\"\",'1. Ordersheet'!I983)","v":""},{"$f":"IF('1. Ordersheet'!J983=\"\",\"\",'1. Ordersheet'!J983)","v":""},{"$f":"IF('1. Ordersheet'!K983=\"\",\"\",'1. Ordersheet'!K983)","v":""},{"$f":"IF('1. Ordersheet'!M983=\"\",\"\",'1. Ordersheet'!M983)","v":""},null,null,{"$f":"IF('1. Ordersheet'!AR983=\"\",\"\",'1. Ordersheet'!AR983)","v":""},{"$f":"IF('1. Ordersheet'!AE983=\"\",\"\",'1. Ordersheet'!AE983)","v":""}]
[{"$f":"IF('1. Ordersheet'!B984=\"\",\"\",'1. Ordersheet'!B984)","v":""},{"$f":"IF('1. Ordersheet'!I984=\"\",\"\",'1. Ordersheet'!I984)","v":""},{"$f":"IF('1. Ordersheet'!J984=\"\",\"\",'1. Ordersheet'!J984)","v":""},{"$f":"IF('1. Ordersheet'!K984=\"\",\"\",'1. Ordersheet'!K984)","v":""},{"$f":"IF('1. Ordersheet'!M984=\"\",\"\",'1. Ordersheet'!M984)","v":""},null,null,{"$f":"IF('1. Ordersheet'!AR984=\"\",\"\",'1. Ordersheet'!AR984)","v":""},{"$f":"IF('1. Ordersheet'!AE984=\"\",\"\",'1. Ordersheet'!AE984)","v":""}]
[{"$f":"IF('1. Ordersheet'!B985=\"\",\"\",'1. Ordersheet'!B985)","v":""},{"$f":"IF('1. Ordersheet'!I985=\"\",\"\",'1. Ordersheet'!I985)","v":""},{"$f":"IF('1. Ordersheet'!J985=\"\",\"\",'1. Ordersheet'!J985)","v":""},{"$f":"IF('1. Ordersheet'!K985=\"\",\"\",'1. Ordersheet'!K985)","v":""},{"$f":"IF('1. Ordersheet'!M985=\"\",\"\",'1. Ordersheet'!M985)","v":""},null,null,{"$f":"IF('1. Ordersheet'!AR985=\"\",\"\",'1. Ordersheet'!AR985)","v":""},{"$f":"IF('1. Ordersheet'!AE985=\"\",\"\",'1. Ordersheet'!AE985)","v":""}]
[{"$f":"IF('1. Ordersheet'!B986=\"\",\"\",'1. Ordersheet'!B986)","v":""},{"$f":"IF('1. Ordersheet'!I986=\"\",\"\",'1. Ordersheet'!I986)","v":""},{"$f":"IF('1. Ordersheet'!J986=\"\",\"\",'1. Ordersheet'!J986)","v":""},{"$f":"IF('1. Ordersheet'!K986=\"\",\"\",'1. Ordersheet'!K986)","v":""},{"$f":"IF('1. Ordersheet'!M986=\"\",\"\",'1. Ordersheet'!M986)","v":""},null,null,{"$f":"IF('1. Ordersheet'!AR986=\"\",\"\",'1. Ordersheet'!AR986)","v":""},{"$f":"IF('1. Ordersheet'!AE986=\"\",\"\",'1. Ordersheet'!AE986)","v":""}]
[{"$f":"IF('1. Ordersheet'!B987=\"\",\"\",'1. Ordersheet'!B987)","v":""},{"$f":"IF('1. Ordersheet'!I987=\"\",\"\",'1. Ordersheet'!I987)","v":""},{"$f":"IF('1. Ordersheet'!J987=\"\",\"\",'1. Ordersheet'!J987)","v":""},{"$f":"IF('1. Ordersheet'!K987=\"\",\"\",'1. Ordersheet'!K987)","v":""},{"$f":"IF('1. Ordersheet'!M987=\"\",\"\",'1. Ordersheet'!M987)","v":""},null,null,{"$f":"IF('1. Ordersheet'!AR987=\"\",\"\",'1. Ordersheet'!AR987)","v":""},{"$f":"IF('1. Ordersheet'!AE987=\"\",\"\",'1. Ordersheet'!AE987)","v":""}]
[{"$f":"IF('1. Ordersheet'!B988=\"\",\"\",'1. Ordersheet'!B988)","v":""},{"$f":"IF('1. Ordersheet'!I988=\"\",\"\",'1. Ordersheet'!I988)","v":""},{"$f":"IF('1. Ordersheet'!J988=\"\",\"\",'1. Ordersheet'!J988)","v":""},{"$f":"IF('1. Ordersheet'!K988=\"\",\"\",'1. Ordersheet'!K988)","v":""},{"$f":"IF('1. Ordersheet'!M988=\"\",\"\",'1. Ordersheet'!M988)","v":""},null,null,{"$f":"IF('1. Ordersheet'!AR988=\"\",\"\",'1. Ordersheet'!AR988)","v":""},{"$f":"IF('1. Ordersheet'!AE988=\"\",\"\",'1. Ordersheet'!AE988)","v":""}]
[{"$f":"IF('1. Ordersheet'!B989=\"\",\"\",'1. Ordersheet'!B989)","v":""},{"$f":"IF('1. Ordersheet'!I989=\"\",\"\",'1. Ordersheet'!I989)","v":""},{"$f":"IF('1. Ordersheet'!J989=\"\",\"\",'1. Ordersheet'!J989)","v":""},{"$f":"IF('1. Ordersheet'!K989=\"\",\"\",'1. Ordersheet'!K989)","v":""},{"$f":"IF('1. Ordersheet'!M989=\"\",\"\",'1. Ordersheet'!M989)","v":""},null,null,{"$f":"IF('1. Ordersheet'!AR989=\"\",\"\",'1. Ordersheet'!AR989)","v":""},{"$f":"IF('1. Ordersheet'!AE989=\"\",\"\",'1. Ordersheet'!AE989)","v":""}]
[{"$f":"IF('1. Ordersheet'!B990=\"\",\"\",'1. Ordersheet'!B990)","v":""},{"$f":"IF('1. Ordersheet'!I990=\"\",\"\",'1. Ordersheet'!I990)","v":""},{"$f":"IF('1. Ordersheet'!J990=\"\",\"\",'1. Ordersheet'!J990)","v":""},{"$f":"IF('1. Ordersheet'!K990=\"\",\"\",'1. Ordersheet'!K990)","v":""},{"$f":"IF('1. Ordersheet'!M990=\"\",\"\",'1. Ordersheet'!M990)","v":""},null,null,{"$f":"IF('1. Ordersheet'!AR990=\"\",\"\",'1. Ordersheet'!AR990)","v":""},{"$f":"IF('1. Ordersheet'!AE990=\"\",\"\",'1. Ordersheet'!AE990)","v":""}]
[{"$f":"IF('1. Ordersheet'!B991=\"\",\"\",'1. Ordersheet'!B991)","v":""},{"$f":"IF('1. Ordersheet'!I991=\"\",\"\",'1. Ordersheet'!I991)","v":""},{"$f":"IF('1. Ordersheet'!J991=\"\",\"\",'1. Ordersheet'!J991)","v":""},{"$f":"IF('1. Ordersheet'!K991=\"\",\"\",'1. Ordersheet'!K991)","v":""},{"$f":"IF('1. Ordersheet'!M991=\"\",\"\",'1. Ordersheet'!M991)","v":""},null,null,{"$f":"IF('1. Ordersheet'!AR991=\"\",\"\",'1. Ordersheet'!AR991)","v":""},{"$f":"IF('1. Ordersheet'!AE991=\"\",\"\",'1. Ordersheet'!AE991)","v":""}]
[{"$f":"IF('1. Ordersheet'!B992=\"\",\"\",'1. Ordersheet'!B992)","v":""},{"$f":"IF('1. Ordersheet'!I992=\"\",\"\",'1. Ordersheet'!I992)","v":""},{"$f":"IF('1. Ordersheet'!J992=\"\",\"\",'1. Ordersheet'!J992)","v":""},{"$f":"IF('1. Ordersheet'!K992=\"\",\"\",'1. Ordersheet'!K992)","v":""},{"$f":"IF('1. Ordersheet'!M992=\"\",\"\",'1. Ordersheet'!M992)","v":""},null,null,{"$f":"IF('1. Ordersheet'!AR992=\"\",\"\",'1. Ordersheet'!AR992)","v":""},{"$f":"IF('1. Ordersheet'!AE992=\"\",\"\",'1. Ordersheet'!AE992)","v":""}]
[{"$f":"IF('1. Ordersheet'!B993=\"\",\"\",'1. Ordersheet'!B993)","v":""},{"$f":"IF('1. Ordersheet'!I993=\"\",\"\",'1. Ordersheet'!I993)","v":""},{"$f":"IF('1. Ordersheet'!J993=\"\",\"\",'1. Ordersheet'!J993)","v":""},{"$f":"IF('1. Ordersheet'!K993=\"\",\"\",'1. Ordersheet'!K993)","v":""},{"$f":"IF('1. Ordersheet'!M993=\"\",\"\",'1. Ordersheet'!M993)","v":""},null,null,{"$f":"IF('1. Ordersheet'!AR993=\"\",\"\",'1. Ordersheet'!AR993)","v":""},{"$f":"IF('1. Ordersheet'!AE993=\"\",\"\",'1. Ordersheet'!AE993)","v":""}]
[{"$f":"IF('1. Ordersheet'!B994=\"\",\"\",'1. Ordersheet'!B994)","v":""},{"$f":"IF('1. Ordersheet'!I994=\"\",\"\",'1. Ordersheet'!I994)","v":""},{"$f":"IF('1. Ordersheet'!J994=\"\",\"\",'1. Ordersheet'!J994)","v":""},{"$f":"IF('1. Ordersheet'!K994=\"\",\"\",'1. Ordersheet'!K994)","v":""},{"$f":"IF('1. Ordersheet'!M994=\"\",\"\",'1. Ordersheet'!M994)","v":""},null,null,{"$f":"IF('1. Ordersheet'!AR994=\"\",\"\",'1. Ordersheet'!AR994)","v":""},{"$f":"IF('1. Ordersheet'!AE994=\"\",\"\",'1. Ordersheet'!AE994)","v":""}]
[{"$f":"IF('1. Ordersheet'!B995=\"\",\"\",'1. Ordersheet'!B995)","v":""},{"$f":"IF('1. Ordersheet'!I995=\"\",\"\",'1. Ordersheet'!I995)","v":""},{"$f":"IF('1. Ordersheet'!J995=\"\",\"\",'1. Ordersheet'!J995)","v":""},{"$f":"IF('1. Ordersheet'!K995=\"\",\"\",'1. Ordersheet'!K995)","v":""},{"$f":"IF('1. Ordersheet'!M995=\"\",\"\",'1. Ordersheet'!M995)","v":""},null,null,{"$f":"IF('1. Ordersheet'!AR995=\"\",\"\",'1. Ordersheet'!AR995)","v":""},{"$f":"IF('1. Ordersheet'!AE995=\"\",\"\",'1. Ordersheet'!AE995)","v":""}]
[{"$f":"IF('1. Ordersheet'!B996=\"\",\"\",'1. Ordersheet'!B996)","v":""},{"$f":"IF('1. Ordersheet'!I996=\"\",\"\",'1. Ordersheet'!I996)","v":""},{"$f":"IF('1. Ordersheet'!J996=\"\",\"\",'1. Ordersheet'!J996)","v":""},{"$f":"IF('1. Ordersheet'!K996=\"\",\"\",'1. Ordersheet'!K996)","v":""},{"$f":"IF('1. Ordersheet'!M996=\"\",\"\",'1. Ordersheet'!M996)","v":""},null,null,{"$f":"IF('1. Ordersheet'!AR996=\"\",\"\",'1. Ordersheet'!AR996)","v":""},{"$f":"IF('1. Ordersheet'!AE996=\"\",\"\",'1. Ordersheet'!AE996)","v":""}]
[{"$f":"IF('1. Ordersheet'!B997=\"\",\"\",'1. Ordersheet'!B997)","v":""},{"$f":"IF('1. Ordersheet'!I997=\"\",\"\",'1. Ordersheet'!I997)","v":""},{"$f":"IF('1. Ordersheet'!J997=\"\",\"\",'1. Ordersheet'!J997)","v":""},{"$f":"IF('1. Ordersheet'!K997=\"\",\"\",'1. Ordersheet'!K997)","v":""},{"$f":"IF('1. Ordersheet'!M997=\"\",\"\",'1. Ordersheet'!M997)","v":""},null,null,{"$f":"IF('1. Ordersheet'!AR997=\"\",\"\",'1. Ordersheet'!AR997)","v":""},{"$f":"IF('1. Ordersheet'!AE997=\"\",\"\",'1. Ordersheet'!AE997)","v":""}]
[{"$f":"IF('1. Ordersheet'!B998=\"\",\"\",'1. Ordersheet'!B998)","v":""},{"$f":"IF('1. Ordersheet'!I998=\"\",\"\",'1. Ordersheet'!I998)","v":""},{"$f":"IF('1. Ordersheet'!J998=\"\",\"\",'1. Ordersheet'!J998)","v":""},{"$f":"IF('1. Ordersheet'!K998=\"\",\"\",'1. Ordersheet'!K998)","v":""},{"$f":"IF('1. Ordersheet'!M998=\"\",\"\",'1. Ordersheet'!M998)","v":""},null,null,{"$f":"IF('1. Ordersheet'!AR998=\"\",\"\",'1. Ordersheet'!AR998)","v":""},{"$f":"IF('1. Ordersheet'!AE998=\"\",\"\",'1. Ordersheet'!AE998)","v":""}]
[{"$f":"IF('1. Ordersheet'!B999=\"\",\"\",'1. Ordersheet'!B999)","v":""},{"$f":"IF('1. Ordersheet'!I999=\"\",\"\",'1. Ordersheet'!I999)","v":""},{"$f":"IF('1. Ordersheet'!J999=\"\",\"\",'1. Ordersheet'!J999)","v":""},{"$f":"IF('1. Ordersheet'!K999=\"\",\"\",'1. Ordersheet'!K999)","v":""},{"$f":"IF('1. Ordersheet'!M999=\"\",\"\",'1. Ordersheet'!M999)","v":""},null,null,{"$f":"IF('1. Ordersheet'!AR999=\"\",\"\",'1. Ordersheet'!AR999)","v":""},{"$f":"IF('1. Ordersheet'!AE999=\"\",\"\",'1. Ordersheet'!AE999)","v":""}]
[{"$f":"IF('1. Ordersheet'!B1000=\"\",\"\",'1. Ordersheet'!B1000)","v":""},{"$f":"IF('1. Ordersheet'!I1000=\"\",\"\",'1. Ordersheet'!I1000)","v":""},{"$f":"IF('1. Ordersheet'!J1000=\"\",\"\",'1. Ordersheet'!J1000)","v":""},{"$f":"IF('1. Ordersheet'!K1000=\"\",\"\",'1. Ordersheet'!K1000)","v":""},{"$f":"IF('1. Ordersheet'!M1000=\"\",\"\",'1. Ordersheet'!M1000)","v":""},null,null,{"$f":"IF('1. Ordersheet'!AR1000=\"\",\"\",'1. Ordersheet'!AR1000)","v":""},{"$f":"IF('1. Ordersheet'!AE1000=\"\",\"\",'1. Ordersheet'!AE1000)","v":""}]
[{"$f":"IF('1. Ordersheet'!B1001=\"\",\"\",'1. Ordersheet'!B1001)","v":""},{"$f":"IF('1. Ordersheet'!I1001=\"\",\"\",'1. Ordersheet'!I1001)","v":""},{"$f":"IF('1. Ordersheet'!J1001=\"\",\"\",'1. Ordersheet'!J1001)","v":""},{"$f":"IF('1. Ordersheet'!K1001=\"\",\"\",'1. Ordersheet'!K1001)","v":""},{"$f":"IF('1. Ordersheet'!M1001=\"\",\"\",'1. Ordersheet'!M1001)","v":""},null,null,{"$f":"IF('1. Ordersheet'!AR1001=\"\",\"\",'1. Ordersheet'!AR1001)","v":""},{"$f":"IF('1. Ordersheet'!AE1001=\"\",\"\",'1. Ordersheet'!AE1001)","v":""}]
[{"$f":"IF('1. Ordersheet'!B1002=\"\",\"\",'1. Ordersheet'!B1002)","v":""},{"$f":"IF('1. Ordersheet'!I1002=\"\",\"\",'1. Ordersheet'!I1002)","v":""},{"$f":"IF('1. Ordersheet'!J1002=\"\",\"\",'1. Ordersheet'!J1002)","v":""},{"$f":"IF('1. Ordersheet'!K1002=\"\",\"\",'1. Ordersheet'!K1002)","v":""},{"$f":"IF('1. Ordersheet'!M1002=\"\",\"\",'1. Ordersheet'!M1002)","v":""},null,null,{"$f":"IF('1. Ordersheet'!AR1002=\"\",\"\",'1. Ordersheet'!AR1002)","v":""},{"$f":"IF('1. Ordersheet'!AE1002=\"\",\"\",'1. Ordersheet'!AE1002)","v":""}]
[{"$f":"IF('1. Ordersheet'!B1003=\"\",\"\",'1. Ordersheet'!B1003)","v":""},{"$f":"IF('1. Ordersheet'!I1003=\"\",\"\",'1. Ordersheet'!I1003)","v":""},{"$f":"IF('1. Ordersheet'!J1003=\"\",\"\",'1. Ordersheet'!J1003)","v":""},{"$f":"IF('1. Ordersheet'!K1003=\"\",\"\",'1. Ordersheet'!K1003)","v":""},{"$f":"IF('1. Ordersheet'!M1003=\"\",\"\",'1. Ordersheet'!M1003)","v":""},null,null,{"$f":"IF('1. Ordersheet'!AR1003=\"\",\"\",'1. Ordersheet'!AR1003)","v":""},{"$f":"IF('1. Ordersheet'!AE1003=\"\",\"\",'1. Ordersheet'!AE1003)","v":""}]
[{"$f":"IF('1. Ordersheet'!B1004=\"\",\"\",'1. Ordersheet'!B1004)","v":""},{"$f":"IF('1. Ordersheet'!I1004=\"\",\"\",'1. Ordersheet'!I1004)","v":""},{"$f":"IF('1. Ordersheet'!J1004=\"\",\"\",'1. Ordersheet'!J1004)","v":""},{"$f":"IF('1. Ordersheet'!K1004=\"\",\"\",'1. Ordersheet'!K1004)","v":""},{"$f":"IF('1. Ordersheet'!M1004=\"\",\"\",'1. Ordersheet'!M1004)","v":""},null,null,{"$f":"IF('1. Ordersheet'!AR1004=\"\",\"\",'1. Ordersheet'!AR1004)","v":""},{"$f":"IF('1. Ordersheet'!AE1004=\"\",\"\",'1. Ordersheet'!AE1004)","v":""}]
[{"$f":"IF('1. Ordersheet'!B1005=\"\",\"\",'1. Ordersheet'!B1005)","v":""},{"$f":"IF('1. Ordersheet'!I1005=\"\",\"\",'1. Ordersheet'!I1005)","v":""},{"$f":"IF('1. Ordersheet'!J1005=\"\",\"\",'1. Ordersheet'!J1005)","v":""},{"$f":"IF('1. Ordersheet'!K1005=\"\",\"\",'1. Ordersheet'!K1005)","v":""},{"$f":"IF('1. Ordersheet'!M1005=\"\",\"\",'1. Ordersheet'!M1005)","v":""},null,null,{"$f":"IF('1. Ordersheet'!AR1005=\"\",\"\",'1. Ordersheet'!AR1005)","v":""},{"$f":"IF('1. Ordersheet'!AE1005=\"\",\"\",'1. Ordersheet'!AE1005)","v":""}]
[{"$f":"IF('1. Ordersheet'!B1006=\"\",\"\",'1. Ordersheet'!B1006)","v":""},{"$f":"IF('1. Ordersheet'!I1006=\"\",\"\",'1. Ordersheet'!I1006)","v":""},{"$f":"IF('1. Ordersheet'!J1006=\"\",\"\",'1. Ordersheet'!J1006)","v":""},{"$f":"IF('1. Ordersheet'!K1006=\"\",\"\",'1. Ordersheet'!K1006)","v":""},{"$f":"IF('1. Ordersheet'!M1006=\"\",\"\",'1. Ordersheet'!M1006)","v":""},null,null,{"$f":"IF('1. Ordersheet'!AR1006=\"\",\"\",'1. Ordersheet'!AR1006)","v":""},{"$f":"IF('1. Ordersheet'!AE1006=\"\",\"\",'1. Ordersheet'!AE1006)","v":""}]
[{"$f":"IF('1. Ordersheet'!B1007=\"\",\"\",'1. Ordersheet'!B1007)","v":""},{"$f":"IF('1. Ordersheet'!I1007=\"\",\"\",'1. Ordersheet'!I1007)","v":""},{"$f":"IF('1. Ordersheet'!J1007=\"\",\"\",'1. Ordersheet'!J1007)","v":""},{"$f":"IF('1. Ordersheet'!K1007=\"\",\"\",'1. Ordersheet'!K1007)","v":""},{"$f":"IF('1. Ordersheet'!M1007=\"\",\"\",'1. Ordersheet'!M1007)","v":""},null,null,{"$f":"IF('1. Ordersheet'!AR1007=\"\",\"\",'1. Ordersheet'!AR1007)","v":""},{"$f":"IF('1. Ordersheet'!AE1007=\"\",\"\",'1. Ordersheet'!AE1007)","v":""}]
[{"$f":"IF('1. Ordersheet'!B1008=\"\",\"\",'1. Ordersheet'!B1008)","v":""},{"$f":"IF('1. Ordersheet'!I1008=\"\",\"\",'1. Ordersheet'!I1008)","v":""},{"$f":"IF('1. Ordersheet'!J1008=\"\",\"\",'1. Ordersheet'!J1008)","v":""},{"$f":"IF('1. Ordersheet'!K1008=\"\",\"\",'1. Ordersheet'!K1008)","v":""},{"$f":"IF('1. Ordersheet'!M1008=\"\",\"\",'1. Ordersheet'!M1008)","v":""},null,null,{"$f":"IF('1. Ordersheet'!AR1008=\"\",\"\",'1. Ordersheet'!AR1008)","v":""},{"$f":"IF('1. Ordersheet'!AE1008=\"\",\"\",'1. Ordersheet'!AE1008)","v":""}]
[{"$f":"IF('1. Ordersheet'!B1009=\"\",\"\",'1. Ordersheet'!B1009)","v":""},{"$f":"IF('1. Ordersheet'!I1009=\"\",\"\",'1. Ordersheet'!I1009)","v":""},{"$f":"IF('1. Ordersheet'!J1009=\"\",\"\",'1. Ordersheet'!J1009)","v":""},{"$f":"IF('1. Ordersheet'!K1009=\"\",\"\",'1. Ordersheet'!K1009)","v":""},{"$f":"IF('1. Ordersheet'!M1009=\"\",\"\",'1. Ordersheet'!M1009)","v":""},null,null,{"$f":"IF('1. Ordersheet'!AR1009=\"\",\"\",'1. Ordersheet'!AR1009)","v":""},{"$f":"IF('1. Ordersheet'!AE1009=\"\",\"\",'1. Ordersheet'!AE1009)","v":""}]
[{"$f":"IF('1. Ordersheet'!B1010=\"\",\"\",'1. Ordersheet'!B1010)","v":""},{"$f":"IF('1. Ordersheet'!I1010=\"\",\"\",'1. Ordersheet'!I1010)","v":""},{"$f":"IF('1. Ordersheet'!J1010=\"\",\"\",'1. Ordersheet'!J1010)","v":""},{"$f":"IF('1. Ordersheet'!K1010=\"\",\"\",'1. Ordersheet'!K1010)","v":""},{"$f":"IF('1. Ordersheet'!M1010=\"\",\"\",'1. Ordersheet'!M1010)","v":""},null,null,{"$f":"IF('1. Ordersheet'!AR1010=\"\",\"\",'1. Ordersheet'!AR1010)","v":""},{"$f":"IF('1. Ordersheet'!AE1010=\"\",\"\",'1. Ordersheet'!AE1010)","v":""}]
[{"$f":"IF('1. Ordersheet'!B1011=\"\",\"\",'1. Ordersheet'!B1011)","v":""},{"$f":"IF('1. Ordersheet'!I1011=\"\",\"\",'1. Ordersheet'!I1011)","v":""},{"$f":"IF('1. Ordersheet'!J1011=\"\",\"\",'1. Ordersheet'!J1011)","v":""},{"$f":"IF('1. Ordersheet'!K1011=\"\",\"\",'1. Ordersheet'!K1011)","v":""},{"$f":"IF('1. Ordersheet'!M1011=\"\",\"\",'1. Ordersheet'!M1011)","v":""},null,null,{"$f":"IF('1. Ordersheet'!AR1011=\"\",\"\",'1. Ordersheet'!AR1011)","v":""},{"$f":"IF('1. Ordersheet'!AE1011=\"\",\"\",'1. Ordersheet'!AE1011)","v":""}]
[{"$f":"IF('1. Ordersheet'!B1012=\"\",\"\",'1. Ordersheet'!B1012)","v":""},{"$f":"IF('1. Ordersheet'!I1012=\"\",\"\",'1. Ordersheet'!I1012)","v":""},{"$f":"IF('1. Ordersheet'!J1012=\"\",\"\",'1. Ordersheet'!J1012)","v":""},{"$f":"IF('1. Ordersheet'!K1012=\"\",\"\",'1. Ordersheet'!K1012)","v":""},{"$f":"IF('1. Ordersheet'!M1012=\"\",\"\",'1. Ordersheet'!M1012)","v":""},null,null,{"$f":"IF('1. Ordersheet'!AR1012=\"\",\"\",'1. Ordersheet'!AR1012)","v":""},{"$f":"IF('1. Ordersheet'!AE1012=\"\",\"\",'1. Ordersheet'!AE1012)","v":""}]
[{"$f":"IF('1. Ordersheet'!B1013=\"\",\"\",'1. Ordersheet'!B1013)","v":""},{"$f":"IF('1. Ordersheet'!I1013=\"\",\"\",'1. Ordersheet'!I1013)","v":""},{"$f":"IF('1. Ordersheet'!J1013=\"\",\"\",'1. Ordersheet'!J1013)","v":""},{"$f":"IF('1. Ordersheet'!K1013=\"\",\"\",'1. Ordersheet'!K1013)","v":""},{"$f":"IF('1. Ordersheet'!M1013=\"\",\"\",'1. Ordersheet'!M1013)","v":""},null,null,{"$f":"IF('1. Ordersheet'!AR1013=\"\",\"\",'1. Ordersheet'!AR1013)","v":""},{"$f":"IF('1. Ordersheet'!AE1013=\"\",\"\",'1. Ordersheet'!AE1013)","v":""}]
[{"$f":"IF('1. Ordersheet'!B1014=\"\",\"\",'1. Ordersheet'!B1014)","v":""},{"$f":"IF('1. Ordersheet'!I1014=\"\",\"\",'1. Ordersheet'!I1014)","v":""},{"$f":"IF('1. Ordersheet'!J1014=\"\",\"\",'1. Ordersheet'!J1014)","v":""},{"$f":"IF('1. Ordersheet'!K1014=\"\",\"\",'1. Ordersheet'!K1014)","v":""},{"$f":"IF('1. Ordersheet'!M1014=\"\",\"\",'1. Ordersheet'!M1014)","v":""},null,null,{"$f":"IF('1. Ordersheet'!AR1014=\"\",\"\",'1. Ordersheet'!AR1014)","v":""},{"$f":"IF('1. Ordersheet'!AE1014=\"\",\"\",'1. Ordersheet'!AE1014)","v":""}]
[{"$f":"IF('1. Ordersheet'!B1015=\"\",\"\",'1. Ordersheet'!B1015)","v":""},{"$f":"IF('1. Ordersheet'!I1015=\"\",\"\",'1. Ordersheet'!I1015)","v":""},{"$f":"IF('1. Ordersheet'!J1015=\"\",\"\",'1. Ordersheet'!J1015)","v":""},{"$f":"IF('1. Ordersheet'!K1015=\"\",\"\",'1. Ordersheet'!K1015)","v":""},{"$f":"IF('1. Ordersheet'!M1015=\"\",\"\",'1. Ordersheet'!M1015)","v":""},null,null,{"$f":"IF('1. Ordersheet'!AR1015=\"\",\"\",'1. Ordersheet'!AR1015)","v":""},{"$f":"IF('1. Ordersheet'!AE1015=\"\",\"\",'1. Ordersheet'!AE1015)","v":""}]
[{"$f":"IF('1. Ordersheet'!B1016=\"\",\"\",'1. Ordersheet'!B1016)","v":""},{"$f":"IF('1. Ordersheet'!I1016=\"\",\"\",'1. Ordersheet'!I1016)","v":""},{"$f":"IF('1. Ordersheet'!J1016=\"\",\"\",'1. Ordersheet'!J1016)","v":""},{"$f":"IF('1. Ordersheet'!K1016=\"\",\"\",'1. Ordersheet'!K1016)","v":""},{"$f":"IF('1. Ordersheet'!M1016=\"\",\"\",'1. Ordersheet'!M1016)","v":""},null,null,{"$f":"IF('1. Ordersheet'!AR1016=\"\",\"\",'1. Ordersheet'!AR1016)","v":""},{"$f":"IF('1. Ordersheet'!AE1016=\"\",\"\",'1. Ordersheet'!AE1016)","v":""}]
[{"$f":"IF('1. Ordersheet'!B1017=\"\",\"\",'1. Ordersheet'!B1017)","v":""},{"$f":"IF('1. Ordersheet'!I1017=\"\",\"\",'1. Ordersheet'!I1017)","v":""},{"$f":"IF('1. Ordersheet'!J1017=\"\",\"\",'1. Ordersheet'!J1017)","v":""},{"$f":"IF('1. Ordersheet'!K1017=\"\",\"\",'1. Ordersheet'!K1017)","v":""},{"$f":"IF('1. Ordersheet'!M1017=\"\",\"\",'1. Ordersheet'!M1017)","v":""},null,null,{"$f":"IF('1. Ordersheet'!AR1017=\"\",\"\",'1. Ordersheet'!AR1017)","v":""},{"$f":"IF('1. Ordersheet'!AE1017=\"\",\"\",'1. Ordersheet'!AE1017)","v":""}]
[{"$f":"IF('1. Ordersheet'!B1018=\"\",\"\",'1. Ordersheet'!B1018)","v":""},{"$f":"IF('1. Ordersheet'!I1018=\"\",\"\",'1. Ordersheet'!I1018)","v":""},{"$f":"IF('1. Ordersheet'!J1018=\"\",\"\",'1. Ordersheet'!J1018)","v":""},{"$f":"IF('1. Ordersheet'!K1018=\"\",\"\",'1. Ordersheet'!K1018)","v":""},{"$f":"IF('1. Ordersheet'!M1018=\"\",\"\",'1. Ordersheet'!M1018)","v":""},null,null,{"$f":"IF('1. Ordersheet'!AR1018=\"\",\"\",'1. Ordersheet'!AR1018)","v":""},{"$f":"IF('1. Ordersheet'!AE1018=\"\",\"\",'1. Ordersheet'!AE1018)","v":""}]
[{"$f":"IF('1. Ordersheet'!B1019=\"\",\"\",'1. Ordersheet'!B1019)","v":""},{"$f":"IF('1. Ordersheet'!I1019=\"\",\"\",'1. Ordersheet'!I1019)","v":""},{"$f":"IF('1. Ordersheet'!J1019=\"\",\"\",'1. Ordersheet'!J1019)","v":""},{"$f":"IF('1. Ordersheet'!K1019=\"\",\"\",'1. Ordersheet'!K1019)","v":""},{"$f":"IF('1. Ordersheet'!M1019=\"\",\"\",'1. Ordersheet'!M1019)","v":""},null,null,{"$f":"IF('1. Ordersheet'!AR1019=\"\",\"\",'1. Ordersheet'!AR1019)","v":""},{"$f":"IF('1. Ordersheet'!AE1019=\"\",\"\",'1. Ordersheet'!AE1019)","v":""}]
[{"$f":"IF('1. Ordersheet'!B1020=\"\",\"\",'1. Ordersheet'!B1020)","v":""},{"$f":"IF('1. Ordersheet'!I1020=\"\",\"\",'1. Ordersheet'!I1020)","v":""},{"$f":"IF('1. Ordersheet'!J1020=\"\",\"\",'1. Ordersheet'!J1020)","v":""},{"$f":"IF('1. Ordersheet'!K1020=\"\",\"\",'1. Ordersheet'!K1020)","v":""},{"$f":"IF('1. Ordersheet'!M1020=\"\",\"\",'1. Ordersheet'!M1020)","v":""},null,null,{"$f":"IF('1. Ordersheet'!AR1020=\"\",\"\",'1. Ordersheet'!AR1020)","v":""},{"$f":"IF('1. Ordersheet'!AE1020=\"\",\"\",'1. Ordersheet'!AE1020)","v":""}]
[{"$f":"IF('1. Ordersheet'!B1021=\"\",\"\",'1. Ordersheet'!B1021)","v":""},{"$f":"IF('1. Ordersheet'!I1021=\"\",\"\",'1. Ordersheet'!I1021)","v":""},{"$f":"IF('1. Ordersheet'!J1021=\"\",\"\",'1. Ordersheet'!J1021)","v":""},{"$f":"IF('1. Ordersheet'!K1021=\"\",\"\",'1. Ordersheet'!K1021)","v":""},{"$f":"IF('1. Ordersheet'!M1021=\"\",\"\",'1. Ordersheet'!M1021)","v":""},null,null,{"$f":"IF('1. Ordersheet'!AR1021=\"\",\"\",'1. Ordersheet'!AR1021)","v":""},{"$f":"IF('1. Ordersheet'!AE1021=\"\",\"\",'1. Ordersheet'!AE1021)","v":""}]
[{"$f":"IF('1. Ordersheet'!B1022=\"\",\"\",'1. Ordersheet'!B1022)","v":""},{"$f":"IF('1. Ordersheet'!I1022=\"\",\"\",'1. Ordersheet'!I1022)","v":""},{"$f":"IF('1. Ordersheet'!J1022=\"\",\"\",'1. Ordersheet'!J1022)","v":""},{"$f":"IF('1. Ordersheet'!K1022=\"\",\"\",'1. Ordersheet'!K1022)","v":""},{"$f":"IF('1. Ordersheet'!M1022=\"\",\"\",'1. Ordersheet'!M1022)","v":""},null,null,{"$f":"IF('1. Ordersheet'!AR1022=\"\",\"\",'1. Ordersheet'!AR1022)","v":""},{"$f":"IF('1. Ordersheet'!AE1022=\"\",\"\",'1. Ordersheet'!AE1022)","v":""}]
[{"$f":"IF('1. Ordersheet'!B1023=\"\",\"\",'1. Ordersheet'!B1023)","v":""},{"$f":"IF('1. Ordersheet'!I1023=\"\",\"\",'1. Ordersheet'!I1023)","v":""},{"$f":"IF('1. Ordersheet'!J1023=\"\",\"\",'1. Ordersheet'!J1023)","v":""},{"$f":"IF('1. Ordersheet'!K1023=\"\",\"\",'1. Ordersheet'!K1023)","v":""},{"$f":"IF('1. Ordersheet'!M1023=\"\",\"\",'1. Ordersheet'!M1023)","v":""},null,null,{"$f":"IF('1. Ordersheet'!AR1023=\"\",\"\",'1. Ordersheet'!AR1023)","v":""},{"$f":"IF('1. Ordersheet'!AE1023=\"\",\"\",'1. Ordersheet'!AE1023)","v":""}]
[{"$f":"IF('1. Ordersheet'!B1024=\"\",\"\",'1. Ordersheet'!B1024)","v":""},{"$f":"IF('1. Ordersheet'!I1024=\"\",\"\",'1. Ordersheet'!I1024)","v":""},{"$f":"IF('1. Ordersheet'!J1024=\"\",\"\",'1. Ordersheet'!J1024)","v":""},{"$f":"IF('1. Ordersheet'!K1024=\"\",\"\",'1. Ordersheet'!K1024)","v":""},{"$f":"IF('1. Ordersheet'!M1024=\"\",\"\",'1. Ordersheet'!M1024)","v":""},null,null,{"$f":"IF('1. Ordersheet'!AR1024=\"\",\"\",'1. Ordersheet'!AR1024)","v":""},{"$f":"IF('1. Ordersheet'!AE1024=\"\",\"\",'1. Ordersheet'!AE1024)","v":""}]
[{"$f":"IF('1. Ordersheet'!B1025=\"\",\"\",'1. Ordersheet'!B1025)","v":""},{"$f":"IF('1. Ordersheet'!I1025=\"\",\"\",'1. Ordersheet'!I1025)","v":""},{"$f":"IF('1. Ordersheet'!J1025=\"\",\"\",'1. Ordersheet'!J1025)","v":""},{"$f":"IF('1. Ordersheet'!K1025=\"\",\"\",'1. Ordersheet'!K1025)","v":""},{"$f":"IF('1. Ordersheet'!M1025=\"\",\"\",'1. Ordersheet'!M1025)","v":""},null,null,{"$f":"IF('1. Ordersheet'!AR1025=\"\",\"\",'1. Ordersheet'!AR1025)","v":""},{"$f":"IF('1. Ordersheet'!AE1025=\"\",\"\",'1. Ordersheet'!AE1025)","v":""}]
[{"$f":"IF('1. Ordersheet'!B1026=\"\",\"\",'1. Ordersheet'!B1026)","v":""},{"$f":"IF('1. Ordersheet'!I1026=\"\",\"\",'1. Ordersheet'!I1026)","v":""},{"$f":"IF('1. Ordersheet'!J1026=\"\",\"\",'1. Ordersheet'!J1026)","v":""},{"$f":"IF('1. Ordersheet'!K1026=\"\",\"\",'1. Ordersheet'!K1026)","v":""},{"$f":"IF('1. Ordersheet'!M1026=\"\",\"\",'1. Ordersheet'!M1026)","v":""},null,null,{"$f":"IF('1. Ordersheet'!AR1026=\"\",\"\",'1. Ordersheet'!AR1026)","v":""},{"$f":"IF('1. Ordersheet'!AE1026=\"\",\"\",'1. Ordersheet'!AE1026)","v":""}]
[{"$f":"IF('1. Ordersheet'!B1027=\"\",\"\",'1. Ordersheet'!B1027)","v":""},{"$f":"IF('1. Ordersheet'!I1027=\"\",\"\",'1. Ordersheet'!I1027)","v":""},{"$f":"IF('1. Ordersheet'!J1027=\"\",\"\",'1. Ordersheet'!J1027)","v":""},{"$f":"IF('1. Ordersheet'!K1027=\"\",\"\",'1. Ordersheet'!K1027)","v":""},{"$f":"IF('1. Ordersheet'!M1027=\"\",\"\",'1. Ordersheet'!M1027)","v":""},null,null,{"$f":"IF('1. Ordersheet'!AR1027=\"\",\"\",'1. Ordersheet'!AR1027)","v":""},{"$f":"IF('1. Ordersheet'!AE1027=\"\",\"\",'1. Ordersheet'!AE1027)","v":""}]
[{"$f":"IF('1. Ordersheet'!B1028=\"\",\"\",'1. Ordersheet'!B1028)","v":""},{"$f":"IF('1. Ordersheet'!I1028=\"\",\"\",'1. Ordersheet'!I1028)","v":""},{"$f":"IF('1. Ordersheet'!J1028=\"\",\"\",'1. Ordersheet'!J1028)","v":""},{"$f":"IF('1. Ordersheet'!K1028=\"\",\"\",'1. Ordersheet'!K1028)","v":""},{"$f":"IF('1. Ordersheet'!M1028=\"\",\"\",'1. Ordersheet'!M1028)","v":""},null,null,{"$f":"IF('1. Ordersheet'!AR1028=\"\",\"\",'1. Ordersheet'!AR1028)","v":""},{"$f":"IF('1. Ordersheet'!AE1028=\"\",\"\",'1. Ordersheet'!AE1028)","v":""}]
[{"$f":"IF('1. Ordersheet'!B1029=\"\",\"\",'1. Ordersheet'!B1029)","v":""},{"$f":"IF('1. Ordersheet'!I1029=\"\",\"\",'1. Ordersheet'!I1029)","v":""},{"$f":"IF('1. Ordersheet'!J1029=\"\",\"\",'1. Ordersheet'!J1029)","v":""},{"$f":"IF('1. Ordersheet'!K1029=\"\",\"\",'1. Ordersheet'!K1029)","v":""},{"$f":"IF('1. Ordersheet'!M1029=\"\",\"\",'1. Ordersheet'!M1029)","v":""},null,null,{"$f":"IF('1. Ordersheet'!AR1029=\"\",\"\",'1. Ordersheet'!AR1029)","v":""},{"$f":"IF('1. Ordersheet'!AE1029=\"\",\"\",'1. Ordersheet'!AE1029)","v":""}]
[{"$f":"IF('1. Ordersheet'!B1030=\"\",\"\",'1. Ordersheet'!B1030)","v":""},{"$f":"IF('1. Ordersheet'!I1030=\"\",\"\",'1. Ordersheet'!I1030)","v":""},{"$f":"IF('1. Ordersheet'!J1030=\"\",\"\",'1. Ordersheet'!J1030)","v":""},{"$f":"IF('1. Ordersheet'!K1030=\"\",\"\",'1. Ordersheet'!K1030)","v":""},{"$f":"IF('1. Ordersheet'!M1030=\"\",\"\",'1. Ordersheet'!M1030)","v":""},null,null,{"$f":"IF('1. Ordersheet'!AR1030=\"\",\"\",'1. Ordersheet'!AR1030)","v":""},{"$f":"IF('1. Ordersheet'!AE1030=\"\",\"\",'1. Ordersheet'!AE1030)","v":""}]
[{"$f":"IF('1. Ordersheet'!B1031=\"\",\"\",'1. Ordersheet'!B1031)","v":""},{"$f":"IF('1. Ordersheet'!I1031=\"\",\"\",'1. Ordersheet'!I1031)","v":""},{"$f":"IF('1. Ordersheet'!J1031=\"\",\"\",'1. Ordersheet'!J1031)","v":""},{"$f":"IF('1. Ordersheet'!K1031=\"\",\"\",'1. Ordersheet'!K1031)","v":""},{"$f":"IF('1. Ordersheet'!M1031=\"\",\"\",'1. Ordersheet'!M1031)","v":""},null,null,{"$f":"IF('1. Ordersheet'!AR1031=\"\",\"\",'1. Ordersheet'!AR1031)","v":""},{"$f":"IF('1. Ordersheet'!AE1031=\"\",\"\",'1. Ordersheet'!AE1031)","v":""}]
[{"$f":"IF('1. Ordersheet'!B1032=\"\",\"\",'1. Ordersheet'!B1032)","v":""},{"$f":"IF('1. Ordersheet'!I1032=\"\",\"\",'1. Ordersheet'!I1032)","v":""},{"$f":"IF('1. Ordersheet'!J1032=\"\",\"\",'1. Ordersheet'!J1032)","v":""},{"$f":"IF('1. Ordersheet'!K1032=\"\",\"\",'1. Ordersheet'!K1032)","v":""},{"$f":"IF('1. Ordersheet'!M1032=\"\",\"\",'1. Ordersheet'!M1032)","v":""},null,null,{"$f":"IF('1. Ordersheet'!AR1032=\"\",\"\",'1. Ordersheet'!AR1032)","v":""},{"$f":"IF('1. Ordersheet'!AE1032=\"\",\"\",'1. Ordersheet'!AE1032)","v":""}]
[{"$f":"IF('1. Ordersheet'!B1033=\"\",\"\",'1. Ordersheet'!B1033)","v":""},{"$f":"IF('1. Ordersheet'!I1033=\"\",\"\",'1. Ordersheet'!I1033)","v":""},{"$f":"IF('1. Ordersheet'!J1033=\"\",\"\",'1. Ordersheet'!J1033)","v":""},{"$f":"IF('1. Ordersheet'!K1033=\"\",\"\",'1. Ordersheet'!K1033)","v":""},{"$f":"IF('1. Ordersheet'!M1033=\"\",\"\",'1. Ordersheet'!M1033)","v":""},null,null,{"$f":"IF('1. Ordersheet'!AR1033=\"\",\"\",'1. Ordersheet'!AR1033)","v":""},{"$f":"IF('1. Ordersheet'!AE1033=\"\",\"\",'1. Ordersheet'!AE1033)","v":""}]
[{"$f":"IF('1. Ordersheet'!B1034=\"\",\"\",'1. Ordersheet'!B1034)","v":""},{"$f":"IF('1. Ordersheet'!I1034=\"\",\"\",'1. Ordersheet'!I1034)","v":""},{"$f":"IF('1. Ordersheet'!J1034=\"\",\"\",'1. Ordersheet'!J1034)","v":""},{"$f":"IF('1. Ordersheet'!K1034=\"\",\"\",'1. Ordersheet'!K1034)","v":""},{"$f":"IF('1. Ordersheet'!M1034=\"\",\"\",'1. Ordersheet'!M1034)","v":""},null,null,{"$f":"IF('1. Ordersheet'!AR1034=\"\",\"\",'1. Ordersheet'!AR1034)","v":""},{"$f":"IF('1. Ordersheet'!AE1034=\"\",\"\",'1. Ordersheet'!AE1034)","v":""}]
[{"$f":"IF('1. Ordersheet'!B1035=\"\",\"\",'1. Ordersheet'!B1035)","v":""},{"$f":"IF('1. Ordersheet'!I1035=\"\",\"\",'1. Ordersheet'!I1035)","v":""},{"$f":"IF('1. Ordersheet'!J1035=\"\",\"\",'1. Ordersheet'!J1035)","v":""},{"$f":"IF('1. Ordersheet'!K1035=\"\",\"\",'1. Ordersheet'!K1035)","v":""},{"$f":"IF('1. Ordersheet'!M1035=\"\",\"\",'1. Ordersheet'!M1035)","v":""},null,null,{"$f":"IF('1. Ordersheet'!AR1035=\"\",\"\",'1. Ordersheet'!AR1035)","v":""},{"$f":"IF('1. Ordersheet'!AE1035=\"\",\"\",'1. Ordersheet'!AE1035)","v":""}]
[{"$f":"IF('1. Ordersheet'!B1036=\"\",\"\",'1. Ordersheet'!B1036)","v":""},{"$f":"IF('1. Ordersheet'!I1036=\"\",\"\",'1. Ordersheet'!I1036)","v":""},{"$f":"IF('1. Ordersheet'!J1036=\"\",\"\",'1. Ordersheet'!J1036)","v":""},{"$f":"IF('1. Ordersheet'!K1036=\"\",\"\",'1. Ordersheet'!K1036)","v":""},{"$f":"IF('1. Ordersheet'!M1036=\"\",\"\",'1. Ordersheet'!M1036)","v":""},null,null,{"$f":"IF('1. Ordersheet'!AR1036=\"\",\"\",'1. Ordersheet'!AR1036)","v":""},{"$f":"IF('1. Ordersheet'!AE1036=\"\",\"\",'1. Ordersheet'!AE1036)","v":""}]
[{"$f":"IF('1. Ordersheet'!B1037=\"\",\"\",'1. Ordersheet'!B1037)","v":""},{"$f":"IF('1. Ordersheet'!I1037=\"\",\"\",'1. Ordersheet'!I1037)","v":""},{"$f":"IF('1. Ordersheet'!J1037=\"\",\"\",'1. Ordersheet'!J1037)","v":""},{"$f":"IF('1. Ordersheet'!K1037=\"\",\"\",'1. Ordersheet'!K1037)","v":""},{"$f":"IF('1. Ordersheet'!M1037=\"\",\"\",'1. Ordersheet'!M1037)","v":""},null,null,{"$f":"IF('1. Ordersheet'!AR1037=\"\",\"\",'1. Ordersheet'!AR1037)","v":""},{"$f":"IF('1. Ordersheet'!AE1037=\"\",\"\",'1. Ordersheet'!AE1037)","v":""}]
[{"$f":"IF('1. Ordersheet'!B1038=\"\",\"\",'1. Ordersheet'!B1038)","v":""},{"$f":"IF('1. Ordersheet'!I1038=\"\",\"\",'1. Ordersheet'!I1038)","v":""},{"$f":"IF('1. Ordersheet'!J1038=\"\",\"\",'1. Ordersheet'!J1038)","v":""},{"$f":"IF('1. Ordersheet'!K1038=\"\",\"\",'1. Ordersheet'!K1038)","v":""},{"$f":"IF('1. Ordersheet'!M1038=\"\",\"\",'1. Ordersheet'!M1038)","v":""},null,null,{"$f":"IF('1. Ordersheet'!AR1038=\"\",\"\",'1. Ordersheet'!AR1038)","v":""},{"$f":"IF('1. Ordersheet'!AE1038=\"\",\"\",'1. Ordersheet'!AE1038)","v":""}]
[{"$f":"IF('1. Ordersheet'!B1039=\"\",\"\",'1. Ordersheet'!B1039)","v":""},{"$f":"IF('1. Ordersheet'!I1039=\"\",\"\",'1. Ordersheet'!I1039)","v":""},{"$f":"IF('1. Ordersheet'!J1039=\"\",\"\",'1. Ordersheet'!J1039)","v":""},{"$f":"IF('1. Ordersheet'!K1039=\"\",\"\",'1. Ordersheet'!K1039)","v":""},{"$f":"IF('1. Ordersheet'!M1039=\"\",\"\",'1. Ordersheet'!M1039)","v":""},null,null,{"$f":"IF('1. Ordersheet'!AR1039=\"\",\"\",'1. Ordersheet'!AR1039)","v":""},{"$f":"IF('1. Ordersheet'!AE1039=\"\",\"\",'1. Ordersheet'!AE1039)","v":""}]
[{"$f":"IF('1. Ordersheet'!B1040=\"\",\"\",'1. Ordersheet'!B1040)","v":""},{"$f":"IF('1. Ordersheet'!I1040=\"\",\"\",'1. Ordersheet'!I1040)","v":""},{"$f":"IF('1. Ordersheet'!J1040=\"\",\"\",'1. Ordersheet'!J1040)","v":""},{"$f":"IF('1. Ordersheet'!K1040=\"\",\"\",'1. Ordersheet'!K1040)","v":""},{"$f":"IF('1. Ordersheet'!M1040=\"\",\"\",'1. Ordersheet'!M1040)","v":""},null,null,{"$f":"IF('1. Ordersheet'!AR1040=\"\",\"\",'1. Ordersheet'!AR1040)","v":""},{"$f":"IF('1. Ordersheet'!AE1040=\"\",\"\",'1. Ordersheet'!AE1040)","v":""}]
[{"$f":"IF('1. Ordersheet'!B1041=\"\",\"\",'1. Ordersheet'!B1041)","v":""},{"$f":"IF('1. Ordersheet'!I1041=\"\",\"\",'1. Ordersheet'!I1041)","v":""},{"$f":"IF('1. Ordersheet'!J1041=\"\",\"\",'1. Ordersheet'!J1041)","v":""},{"$f":"IF('1. Ordersheet'!K1041=\"\",\"\",'1. Ordersheet'!K1041)","v":""},{"$f":"IF('1. Ordersheet'!M1041=\"\",\"\",'1. Ordersheet'!M1041)","v":""},null,null,{"$f":"IF('1. Ordersheet'!AR1041=\"\",\"\",'1. Ordersheet'!AR1041)","v":""},{"$f":"IF('1. Ordersheet'!AE1041=\"\",\"\",'1. Ordersheet'!AE1041)","v":""}]
[{"$f":"IF('1. Ordersheet'!B1042=\"\",\"\",'1. Ordersheet'!B1042)","v":""},{"$f":"IF('1. Ordersheet'!I1042=\"\",\"\",'1. Ordersheet'!I1042)","v":""},{"$f":"IF('1. Ordersheet'!J1042=\"\",\"\",'1. Ordersheet'!J1042)","v":""},{"$f":"IF('1. Ordersheet'!K1042=\"\",\"\",'1. Ordersheet'!K1042)","v":""},{"$f":"IF('1. Ordersheet'!M1042=\"\",\"\",'1. Ordersheet'!M1042)","v":""},null,null,{"$f":"IF('1. Ordersheet'!AR1042=\"\",\"\",'1. Ordersheet'!AR1042)","v":""},{"$f":"IF('1. Ordersheet'!AE1042=\"\",\"\",'1. Ordersheet'!AE1042)","v":""}]
[{"$f":"IF('1. Ordersheet'!B1043=\"\",\"\",'1. Ordersheet'!B1043)","v":""},{"$f":"IF('1. Ordersheet'!I1043=\"\",\"\",'1. Ordersheet'!I1043)","v":""},{"$f":"IF('1. Ordersheet'!J1043=\"\",\"\",'1. Ordersheet'!J1043)","v":""},{"$f":"IF('1. Ordersheet'!K1043=\"\",\"\",'1. Ordersheet'!K1043)","v":""},{"$f":"IF('1. Ordersheet'!M1043=\"\",\"\",'1. Ordersheet'!M1043)","v":""},null,null,{"$f":"IF('1. Ordersheet'!AR1043=\"\",\"\",'1. Ordersheet'!AR1043)","v":""},{"$f":"IF('1. Ordersheet'!AE1043=\"\",\"\",'1. Ordersheet'!AE1043)","v":""}]
[{"$f":"IF('1. Ordersheet'!B1044=\"\",\"\",'1. Ordersheet'!B1044)","v":""},{"$f":"IF('1. Ordersheet'!I1044=\"\",\"\",'1. Ordersheet'!I1044)","v":""},{"$f":"IF('1. Ordersheet'!J1044=\"\",\"\",'1. Ordersheet'!J1044)","v":""},{"$f":"IF('1. Ordersheet'!K1044=\"\",\"\",'1. Ordersheet'!K1044)","v":""},{"$f":"IF('1. Ordersheet'!M1044=\"\",\"\",'1. Ordersheet'!M1044)","v":""},null,null,{"$f":"IF('1. Ordersheet'!AR1044=\"\",\"\",'1. Ordersheet'!AR1044)","v":""},{"$f":"IF('1. Ordersheet'!AE1044=\"\",\"\",'1. Ordersheet'!AE1044)","v":""}]
[{"$f":"IF('1. Ordersheet'!B1045=\"\",\"\",'1. Ordersheet'!B1045)","v":""},{"$f":"IF('1. Ordersheet'!I1045=\"\",\"\",'1. Ordersheet'!I1045)","v":""},{"$f":"IF('1. Ordersheet'!J1045=\"\",\"\",'1. Ordersheet'!J1045)","v":""},{"$f":"IF('1. Ordersheet'!K1045=\"\",\"\",'1. Ordersheet'!K1045)","v":""},{"$f":"IF('1. Ordersheet'!M1045=\"\",\"\",'1. Ordersheet'!M1045)","v":""},null,null,{"$f":"IF('1. Ordersheet'!AR1045=\"\",\"\",'1. Ordersheet'!AR1045)","v":""},{"$f":"IF('1. Ordersheet'!AE1045=\"\",\"\",'1. Ordersheet'!AE1045)","v":""}]
[{"$f":"IF('1. Ordersheet'!B1046=\"\",\"\",'1. Ordersheet'!B1046)","v":""},{"$f":"IF('1. Ordersheet'!I1046=\"\",\"\",'1. Ordersheet'!I1046)","v":""},{"$f":"IF('1. Ordersheet'!J1046=\"\",\"\",'1. Ordersheet'!J1046)","v":""},{"$f":"IF('1. Ordersheet'!K1046=\"\",\"\",'1. Ordersheet'!K1046)","v":""},{"$f":"IF('1. Ordersheet'!M1046=\"\",\"\",'1. Ordersheet'!M1046)","v":""},null,null,{"$f":"IF('1. Ordersheet'!AR1046=\"\",\"\",'1. Ordersheet'!AR1046)","v":""},{"$f":"IF('1. Ordersheet'!AE1046=\"\",\"\",'1. Ordersheet'!AE1046)","v":""}]
[{"$f":"IF('1. Ordersheet'!B1047=\"\",\"\",'1. Ordersheet'!B1047)","v":""},{"$f":"IF('1. Ordersheet'!I1047=\"\",\"\",'1. Ordersheet'!I1047)","v":""},{"$f":"IF('1. Ordersheet'!J1047=\"\",\"\",'1. Ordersheet'!J1047)","v":""},{"$f":"IF('1. Ordersheet'!K1047=\"\",\"\",'1. Ordersheet'!K1047)","v":""},{"$f":"IF('1. Ordersheet'!M1047=\"\",\"\",'1. Ordersheet'!M1047)","v":""},null,null,{"$f":"IF('1. Ordersheet'!AR1047=\"\",\"\",'1. Ordersheet'!AR1047)","v":""},{"$f":"IF('1. Ordersheet'!AE1047=\"\",\"\",'1. Ordersheet'!AE1047)","v":""}]
[{"$f":"IF('1. Ordersheet'!B1048=\"\",\"\",'1. Ordersheet'!B1048)","v":""},{"$f":"IF('1. Ordersheet'!I1048=\"\",\"\",'1. Ordersheet'!I1048)","v":""},{"$f":"IF('1. Ordersheet'!J1048=\"\",\"\",'1. Ordersheet'!J1048)","v":""},{"$f":"IF('1. Ordersheet'!K1048=\"\",\"\",'1. Ordersheet'!K1048)","v":""},{"$f":"IF('1. Ordersheet'!M1048=\"\",\"\",'1. Ordersheet'!M1048)","v":""},null,null,{"$f":"IF('1. Ordersheet'!AR1048=\"\",\"\",'1. Ordersheet'!AR1048)","v":""},{"$f":"IF('1. Ordersheet'!AE1048=\"\",\"\",'1. Ordersheet'!AE1048)","v":""}]
[{"$f":"IF('1. Ordersheet'!B1049=\"\",\"\",'1. Ordersheet'!B1049)","v":""},{"$f":"IF('1. Ordersheet'!I1049=\"\",\"\",'1. Ordersheet'!I1049)","v":""},{"$f":"IF('1. Ordersheet'!J1049=\"\",\"\",'1. Ordersheet'!J1049)","v":""},{"$f":"IF('1. Ordersheet'!K1049=\"\",\"\",'1. Ordersheet'!K1049)","v":""},{"$f":"IF('1. Ordersheet'!M1049=\"\",\"\",'1. Ordersheet'!M1049)","v":""},null,null,{"$f":"IF('1. Ordersheet'!AR1049=\"\",\"\",'1. Ordersheet'!AR1049)","v":""},{"$f":"IF('1. Ordersheet'!AE1049=\"\",\"\",'1. Ordersheet'!AE1049)","v":""}]
[{"$f":"IF('1. Ordersheet'!B1050=\"\",\"\",'1. Ordersheet'!B1050)","v":""},{"$f":"IF('1. Ordersheet'!I1050=\"\",\"\",'1. Ordersheet'!I1050)","v":""},{"$f":"IF('1. Ordersheet'!J1050=\"\",\"\",'1. Ordersheet'!J1050)","v":""},{"$f":"IF('1. Ordersheet'!K1050=\"\",\"\",'1. Ordersheet'!K1050)","v":""},{"$f":"IF('1. Ordersheet'!M1050=\"\",\"\",'1. Ordersheet'!M1050)","v":""},null,null,{"$f":"IF('1. Ordersheet'!AR1050=\"\",\"\",'1. Ordersheet'!AR1050)","v":""},{"$f":"IF('1. Ordersheet'!AE1050=\"\",\"\",'1. Ordersheet'!AE1050)","v":""}]
[{"$f":"IF('1. Ordersheet'!B1051=\"\",\"\",'1. Ordersheet'!B1051)","v":""},{"$f":"IF('1. Ordersheet'!I1051=\"\",\"\",'1. Ordersheet'!I1051)","v":""},{"$f":"IF('1. Ordersheet'!J1051=\"\",\"\",'1. Ordersheet'!J1051)","v":""},{"$f":"IF('1. Ordersheet'!K1051=\"\",\"\",'1. Ordersheet'!K1051)","v":""},{"$f":"IF('1. Ordersheet'!M1051=\"\",\"\",'1. Ordersheet'!M1051)","v":""},null,null,{"$f":"IF('1. Ordersheet'!AR1051=\"\",\"\",'1. Ordersheet'!AR1051)","v":""},{"$f":"IF('1. Ordersheet'!AE1051=\"\",\"\",'1. Ordersheet'!AE1051)","v":""}]
[{"$f":"IF('1. Ordersheet'!B1052=\"\",\"\",'1. Ordersheet'!B1052)","v":""},{"$f":"IF('1. Ordersheet'!I1052=\"\",\"\",'1. Ordersheet'!I1052)","v":""},{"$f":"IF('1. Ordersheet'!J1052=\"\",\"\",'1. Ordersheet'!J1052)","v":""},{"$f":"IF('1. Ordersheet'!K1052=\"\",\"\",'1. Ordersheet'!K1052)","v":""},{"$f":"IF('1. Ordersheet'!M1052=\"\",\"\",'1. Ordersheet'!M1052)","v":""},null,null,{"$f":"IF('1. Ordersheet'!AR1052=\"\",\"\",'1. Ordersheet'!AR1052)","v":""},{"$f":"IF('1. Ordersheet'!AE1052=\"\",\"\",'1. Ordersheet'!AE1052)","v":""}]
[{"$f":"IF('1. Ordersheet'!B1053=\"\",\"\",'1. Ordersheet'!B1053)","v":""},{"$f":"IF('1. Ordersheet'!I1053=\"\",\"\",'1. Ordersheet'!I1053)","v":""},{"$f":"IF('1. Ordersheet'!J1053=\"\",\"\",'1. Ordersheet'!J1053)","v":""},{"$f":"IF('1. Ordersheet'!K1053=\"\",\"\",'1. Ordersheet'!K1053)","v":""},{"$f":"IF('1. Ordersheet'!M1053=\"\",\"\",'1. Ordersheet'!M1053)","v":""},null,null,{"$f":"IF('1. Ordersheet'!AR1053=\"\",\"\",'1. Ordersheet'!AR1053)","v":""},{"$f":"IF('1. Ordersheet'!AE1053=\"\",\"\",'1. Ordersheet'!AE1053)","v":""}]
[{"$f":"IF('1. Ordersheet'!B1054=\"\",\"\",'1. Ordersheet'!B1054)","v":""},{"$f":"IF('1. Ordersheet'!I1054=\"\",\"\",'1. Ordersheet'!I1054)","v":""},{"$f":"IF('1. Ordersheet'!J1054=\"\",\"\",'1. Ordersheet'!J1054)","v":""},{"$f":"IF('1. Ordersheet'!K1054=\"\",\"\",'1. Ordersheet'!K1054)","v":""},{"$f":"IF('1. Ordersheet'!M1054=\"\",\"\",'1. Ordersheet'!M1054)","v":""},null,null,{"$f":"IF('1. Ordersheet'!AR1054=\"\",\"\",'1. Ordersheet'!AR1054)","v":""},{"$f":"IF('1. Ordersheet'!AE1054=\"\",\"\",'1. Ordersheet'!AE1054)","v":""}]
[{"$f":"IF('1. Ordersheet'!B1055=\"\",\"\",'1. Ordersheet'!B1055)","v":""},{"$f":"IF('1. Ordersheet'!I1055=\"\",\"\",'1. Ordersheet'!I1055)","v":""},{"$f":"IF('1. Ordersheet'!J1055=\"\",\"\",'1. Ordersheet'!J1055)","v":""},{"$f":"IF('1. Ordersheet'!K1055=\"\",\"\",'1. Ordersheet'!K1055)","v":""},{"$f":"IF('1. Ordersheet'!M1055=\"\",\"\",'1. Ordersheet'!M1055)","v":""},null,null,{"$f":"IF('1. Ordersheet'!AR1055=\"\",\"\",'1. Ordersheet'!AR1055)","v":""},{"$f":"IF('1. Ordersheet'!AE1055=\"\",\"\",'1. Ordersheet'!AE1055)","v":""}]
[{"$f":"IF('1. Ordersheet'!B1056=\"\",\"\",'1. Ordersheet'!B1056)","v":""},{"$f":"IF('1. Ordersheet'!I1056=\"\",\"\",'1. Ordersheet'!I1056)","v":""},{"$f":"IF('1. Ordersheet'!J1056=\"\",\"\",'1. Ordersheet'!J1056)","v":""},{"$f":"IF('1. Ordersheet'!K1056=\"\",\"\",'1. Ordersheet'!K1056)","v":""},{"$f":"IF('1. Ordersheet'!M1056=\"\",\"\",'1. Ordersheet'!M1056)","v":""},null,null,{"$f":"IF('1. Ordersheet'!AR1056=\"\",\"\",'1. Ordersheet'!AR1056)","v":""},{"$f":"IF('1. Ordersheet'!AE1056=\"\",\"\",'1. Ordersheet'!AE1056)","v":""}]
[{"$f":"IF('1. Ordersheet'!B1057=\"\",\"\",'1. Ordersheet'!B1057)","v":""},{"$f":"IF('1. Ordersheet'!I1057=\"\",\"\",'1. Ordersheet'!I1057)","v":""},{"$f":"IF('1. Ordersheet'!J1057=\"\",\"\",'1. Ordersheet'!J1057)","v":""},{"$f":"IF('1. Ordersheet'!K1057=\"\",\"\",'1. Ordersheet'!K1057)","v":""},{"$f":"IF('1. Ordersheet'!M1057=\"\",\"\",'1. Ordersheet'!M1057)","v":""},null,null,{"$f":"IF('1. Ordersheet'!AR1057=\"\",\"\",'1. Ordersheet'!AR1057)","v":""},{"$f":"IF('1. Ordersheet'!AE1057=\"\",\"\",'1. Ordersheet'!AE1057)","v":""}]
[{"$f":"IF('1. Ordersheet'!B1058=\"\",\"\",'1. Ordersheet'!B1058)","v":""},{"$f":"IF('1. Ordersheet'!I1058=\"\",\"\",'1. Ordersheet'!I1058)","v":""},{"$f":"IF('1. Ordersheet'!J1058=\"\",\"\",'1. Ordersheet'!J1058)","v":""},{"$f":"IF('1. Ordersheet'!K1058=\"\",\"\",'1. Ordersheet'!K1058)","v":""},{"$f":"IF('1. Ordersheet'!M1058=\"\",\"\",'1. Ordersheet'!M1058)","v":""},null,null,{"$f":"IF('1. Ordersheet'!AR1058=\"\",\"\",'1. Ordersheet'!AR1058)","v":""},{"$f":"IF('1. Ordersheet'!AE1058=\"\",\"\",'1. Ordersheet'!AE1058)","v":""}]
[{"$f":"IF('1. Ordersheet'!B1059=\"\",\"\",'1. Ordersheet'!B1059)","v":""},{"$f":"IF('1. Ordersheet'!I1059=\"\",\"\",'1. Ordersheet'!I1059)","v":""},{"$f":"IF('1. Ordersheet'!J1059=\"\",\"\",'1. Ordersheet'!J1059)","v":""},{"$f":"IF('1. Ordersheet'!K1059=\"\",\"\",'1. Ordersheet'!K1059)","v":""},{"$f":"IF('1. Ordersheet'!M1059=\"\",\"\",'1. Ordersheet'!M1059)","v":""},null,null,{"$f":"IF('1. Ordersheet'!AR1059=\"\",\"\",'1. Ordersheet'!AR1059)","v":""},{"$f":"IF('1. Ordersheet'!AE1059=\"\",\"\",'1. Ordersheet'!AE1059)","v":""}]
[{"$f":"IF('1. Ordersheet'!B1060=\"\",\"\",'1. Ordersheet'!B1060)","v":""},{"$f":"IF('1. Ordersheet'!I1060=\"\",\"\",'1. Ordersheet'!I1060)","v":""},{"$f":"IF('1. Ordersheet'!J1060=\"\",\"\",'1. Ordersheet'!J1060)","v":""},{"$f":"IF('1. Ordersheet'!K1060=\"\",\"\",'1. Ordersheet'!K1060)","v":""},{"$f":"IF('1. Ordersheet'!M1060=\"\",\"\",'1. Ordersheet'!M1060)","v":""},null,null,{"$f":"IF('1. Ordersheet'!AR1060=\"\",\"\",'1. Ordersheet'!AR1060)","v":""},{"$f":"IF('1. Ordersheet'!AE1060=\"\",\"\",'1. Ordersheet'!AE1060)","v":""}]
[{"$f":"IF('1. Ordersheet'!B1061=\"\",\"\",'1. Ordersheet'!B1061)","v":""},{"$f":"IF('1. Ordersheet'!I1061=\"\",\"\",'1. Ordersheet'!I1061)","v":""},{"$f":"IF('1. Ordersheet'!J1061=\"\",\"\",'1. Ordersheet'!J1061)","v":""},{"$f":"IF('1. Ordersheet'!K1061=\"\",\"\",'1. Ordersheet'!K1061)","v":""},{"$f":"IF('1. Ordersheet'!M1061=\"\",\"\",'1. Ordersheet'!M1061)","v":""},null,null,{"$f":"IF('1. Ordersheet'!AR1061=\"\",\"\",'1. Ordersheet'!AR1061)","v":""},{"$f":"IF('1. Ordersheet'!AE1061=\"\",\"\",'1. Ordersheet'!AE1061)","v":""}]
[{"$f":"IF('1. Ordersheet'!B1062=\"\",\"\",'1. Ordersheet'!B1062)","v":""},{"$f":"IF('1. Ordersheet'!I1062=\"\",\"\",'1. Ordersheet'!I1062)","v":""},{"$f":"IF('1. Ordersheet'!J1062=\"\",\"\",'1. Ordersheet'!J1062)","v":""},{"$f":"IF('1. Ordersheet'!K1062=\"\",\"\",'1. Ordersheet'!K1062)","v":""},{"$f":"IF('1. Ordersheet'!M1062=\"\",\"\",'1. Ordersheet'!M1062)","v":""},null,null,{"$f":"IF('1. Ordersheet'!AR1062=\"\",\"\",'1. Ordersheet'!AR1062)","v":""},{"$f":"IF('1. Ordersheet'!AE1062=\"\",\"\",'1. Ordersheet'!AE1062)","v":""}]
[{"$f":"IF('1. Ordersheet'!B1063=\"\",\"\",'1. Ordersheet'!B1063)","v":""},{"$f":"IF('1. Ordersheet'!I1063=\"\",\"\",'1. Ordersheet'!I1063)","v":""},{"$f":"IF('1. Ordersheet'!J1063=\"\",\"\",'1. Ordersheet'!J1063)","v":""},{"$f":"IF('1. Ordersheet'!K1063=\"\",\"\",'1. Ordersheet'!K1063)","v":""},{"$f":"IF('1. Ordersheet'!M1063=\"\",\"\",'1. Ordersheet'!M1063)","v":""},null,null,{"$f":"IF('1. Ordersheet'!AR1063=\"\",\"\",'1. Ordersheet'!AR1063)","v":""},{"$f":"IF('1. Ordersheet'!AE1063=\"\",\"\",'1. Ordersheet'!AE1063)","v":""}]
[{"$f":"IF('1. Ordersheet'!B1064=\"\",\"\",'1. Ordersheet'!B1064)","v":""},{"$f":"IF('1. Ordersheet'!I1064=\"\",\"\",'1. Ordersheet'!I1064)","v":""},{"$f":"IF('1. Ordersheet'!J1064=\"\",\"\",'1. Ordersheet'!J1064)","v":""},{"$f":"IF('1. Ordersheet'!K1064=\"\",\"\",'1. Ordersheet'!K1064)","v":""},{"$f":"IF('1. Ordersheet'!M1064=\"\",\"\",'1. Ordersheet'!M1064)","v":""},null,null,{"$f":"IF('1. Ordersheet'!AR1064=\"\",\"\",'1. Ordersheet'!AR1064)","v":""},{"$f":"IF('1. Ordersheet'!AE1064=\"\",\"\",'1. Ordersheet'!AE1064)","v":""}]
[{"$f":"IF('1. Ordersheet'!B1065=\"\",\"\",'1. Ordersheet'!B1065)","v":""},{"$f":"IF('1. Ordersheet'!I1065=\"\",\"\",'1. Ordersheet'!I1065)","v":""},{"$f":"IF('1. Ordersheet'!J1065=\"\",\"\",'1. Ordersheet'!J1065)","v":""},{"$f":"IF('1. Ordersheet'!K1065=\"\",\"\",'1. Ordersheet'!K1065)","v":""},{"$f":"IF('1. Ordersheet'!M1065=\"\",\"\",'1. Ordersheet'!M1065)","v":""},null,null,{"$f":"IF('1. Ordersheet'!AR1065=\"\",\"\",'1. Ordersheet'!AR1065)","v":""},{"$f":"IF('1. Ordersheet'!AE1065=\"\",\"\",'1. Ordersheet'!AE1065)","v":""}]
[{"$f":"IF('1. Ordersheet'!B1066=\"\",\"\",'1. Ordersheet'!B1066)","v":""},{"$f":"IF('1. Ordersheet'!I1066=\"\",\"\",'1. Ordersheet'!I1066)","v":""},{"$f":"IF('1. Ordersheet'!J1066=\"\",\"\",'1. Ordersheet'!J1066)","v":""},{"$f":"IF('1. Ordersheet'!K1066=\"\",\"\",'1. Ordersheet'!K1066)","v":""},{"$f":"IF('1. Ordersheet'!M1066=\"\",\"\",'1. Ordersheet'!M1066)","v":""},null,null,{"$f":"IF('1. Ordersheet'!AR1066=\"\",\"\",'1. Ordersheet'!AR1066)","v":""},{"$f":"IF('1. Ordersheet'!AE1066=\"\",\"\",'1. Ordersheet'!AE1066)","v":""}]
[{"$f":"IF('1. Ordersheet'!B1067=\"\",\"\",'1. Ordersheet'!B1067)","v":""},{"$f":"IF('1. Ordersheet'!I1067=\"\",\"\",'1. Ordersheet'!I1067)","v":""},{"$f":"IF('1. Ordersheet'!J1067=\"\",\"\",'1. Ordersheet'!J1067)","v":""},{"$f":"IF('1. Ordersheet'!K1067=\"\",\"\",'1. Ordersheet'!K1067)","v":""},{"$f":"IF('1. Ordersheet'!M1067=\"\",\"\",'1. Ordersheet'!M1067)","v":""},null,null,{"$f":"IF('1. Ordersheet'!AR1067=\"\",\"\",'1. Ordersheet'!AR1067)","v":""},{"$f":"IF('1. Ordersheet'!AE1067=\"\",\"\",'1. Ordersheet'!AE1067)","v":""}]
[{"$f":"IF('1. Ordersheet'!B1068=\"\",\"\",'1. Ordersheet'!B1068)","v":""},{"$f":"IF('1. Ordersheet'!I1068=\"\",\"\",'1. Ordersheet'!I1068)","v":""},{"$f":"IF('1. Ordersheet'!J1068=\"\",\"\",'1. Ordersheet'!J1068)","v":""},{"$f":"IF('1. Ordersheet'!K1068=\"\",\"\",'1. Ordersheet'!K1068)","v":""},{"$f":"IF('1. Ordersheet'!M1068=\"\",\"\",'1. Ordersheet'!M1068)","v":""},null,null,{"$f":"IF('1. Ordersheet'!AR1068=\"\",\"\",'1. Ordersheet'!AR1068)","v":""},{"$f":"IF('1. Ordersheet'!AE1068=\"\",\"\",'1. Ordersheet'!AE1068)","v":""}]
[{"$f":"IF('1. Ordersheet'!B1069=\"\",\"\",'1. Ordersheet'!B1069)","v":""},{"$f":"IF('1. Ordersheet'!I1069=\"\",\"\",'1. Ordersheet'!I1069)","v":""},{"$f":"IF('1. Ordersheet'!J1069=\"\",\"\",'1. Ordersheet'!J1069)","v":""},{"$f":"IF('1. Ordersheet'!K1069=\"\",\"\",'1. Ordersheet'!K1069)","v":""},{"$f":"IF('1. Ordersheet'!M1069=\"\",\"\",'1. Ordersheet'!M1069)","v":""},null,null,{"$f":"IF('1. Ordersheet'!AR1069=\"\",\"\",'1. Ordersheet'!AR1069)","v":""},{"$f":"IF('1. Ordersheet'!AE1069=\"\",\"\",'1. Ordersheet'!AE1069)","v":""}]
[{"$f":"IF('1. Ordersheet'!B1070=\"\",\"\",'1. Ordersheet'!B1070)","v":""},{"$f":"IF('1. Ordersheet'!I1070=\"\",\"\",'1. Ordersheet'!I1070)","v":""},{"$f":"IF('1. Ordersheet'!J1070=\"\",\"\",'1. Ordersheet'!J1070)","v":""},{"$f":"IF('1. Ordersheet'!K1070=\"\",\"\",'1. Ordersheet'!K1070)","v":""},{"$f":"IF('1. Ordersheet'!M1070=\"\",\"\",'1. Ordersheet'!M1070)","v":""},null,null,{"$f":"IF('1. Ordersheet'!AR1070=\"\",\"\",'1. Ordersheet'!AR1070)","v":""},{"$f":"IF('1. Ordersheet'!AE1070=\"\",\"\",'1. Ordersheet'!AE1070)","v":""}]
[{"$f":"IF('1. Ordersheet'!B1071=\"\",\"\",'1. Ordersheet'!B1071)","v":""},{"$f":"IF('1. Ordersheet'!I1071=\"\",\"\",'1. Ordersheet'!I1071)","v":""},{"$f":"IF('1. Ordersheet'!J1071=\"\",\"\",'1. Ordersheet'!J1071)","v":""},{"$f":"IF('1. Ordersheet'!K1071=\"\",\"\",'1. Ordersheet'!K1071)","v":""},{"$f":"IF('1. Ordersheet'!M1071=\"\",\"\",'1. Ordersheet'!M1071)","v":""},null,null,{"$f":"IF('1. Ordersheet'!AR1071=\"\",\"\",'1. Ordersheet'!AR1071)","v":""},{"$f":"IF('1. Ordersheet'!AE1071=\"\",\"\",'1. Ordersheet'!AE1071)","v":""}]
[{"$f":"IF('1. Ordersheet'!B1072=\"\",\"\",'1. Ordersheet'!B1072)","v":""},{"$f":"IF('1. Ordersheet'!I1072=\"\",\"\",'1. Ordersheet'!I1072)","v":""},{"$f":"IF('1. Ordersheet'!J1072=\"\",\"\",'1. Ordersheet'!J1072)","v":""},{"$f":"IF('1. Ordersheet'!K1072=\"\",\"\",'1. Ordersheet'!K1072)","v":""},{"$f":"IF('1. Ordersheet'!M1072=\"\",\"\",'1. Ordersheet'!M1072)","v":""},null,null,{"$f":"IF('1. Ordersheet'!AR1072=\"\",\"\",'1. Ordersheet'!AR1072)","v":""},{"$f":"IF('1. Ordersheet'!AE1072=\"\",\"\",'1. Ordersheet'!AE1072)","v":""}]
[{"$f":"IF('1. Ordersheet'!B1073=\"\",\"\",'1. Ordersheet'!B1073)","v":""},{"$f":"IF('1. Ordersheet'!I1073=\"\",\"\",'1. Ordersheet'!I1073)","v":""},{"$f":"IF('1. Ordersheet'!J1073=\"\",\"\",'1. Ordersheet'!J1073)","v":""},{"$f":"IF('1. Ordersheet'!K1073=\"\",\"\",'1. Ordersheet'!K1073)","v":""},{"$f":"IF('1. Ordersheet'!M1073=\"\",\"\",'1. Ordersheet'!M1073)","v":""},null,null,{"$f":"IF('1. Ordersheet'!AR1073=\"\",\"\",'1. Ordersheet'!AR1073)","v":""},{"$f":"IF('1. Ordersheet'!AE1073=\"\",\"\",'1. Ordersheet'!AE1073)","v":""}]
[{"$f":"IF('1. Ordersheet'!B1074=\"\",\"\",'1. Ordersheet'!B1074)","v":""},{"$f":"IF('1. Ordersheet'!I1074=\"\",\"\",'1. Ordersheet'!I1074)","v":""},{"$f":"IF('1. Ordersheet'!J1074=\"\",\"\",'1. Ordersheet'!J1074)","v":""},{"$f":"IF('1. Ordersheet'!K1074=\"\",\"\",'1. Ordersheet'!K1074)","v":""},{"$f":"IF('1. Ordersheet'!M1074=\"\",\"\",'1. Ordersheet'!M1074)","v":""},null,null,{"$f":"IF('1. Ordersheet'!AR1074=\"\",\"\",'1. Ordersheet'!AR1074)","v":""},{"$f":"IF('1. Ordersheet'!AE1074=\"\",\"\",'1. Ordersheet'!AE1074)","v":""}]
[{"$f":"IF('1. Ordersheet'!B1075=\"\",\"\",'1. Ordersheet'!B1075)","v":""},{"$f":"IF('1. Ordersheet'!I1075=\"\",\"\",'1. Ordersheet'!I1075)","v":""},{"$f":"IF('1. Ordersheet'!J1075=\"\",\"\",'1. Ordersheet'!J1075)","v":""},{"$f":"IF('1. Ordersheet'!K1075=\"\",\"\",'1. Ordersheet'!K1075)","v":""},{"$f":"IF('1. Ordersheet'!M1075=\"\",\"\",'1. Ordersheet'!M1075)","v":""},null,null,{"$f":"IF('1. Ordersheet'!AR1075=\"\",\"\",'1. Ordersheet'!AR1075)","v":""},{"$f":"IF('1. Ordersheet'!AE1075=\"\",\"\",'1. Ordersheet'!AE1075)","v":""}]
[{"$f":"IF('1. Ordersheet'!B1076=\"\",\"\",'1. Ordersheet'!B1076)","v":""},{"$f":"IF('1. Ordersheet'!I1076=\"\",\"\",'1. Ordersheet'!I1076)","v":""},{"$f":"IF('1. Ordersheet'!J1076=\"\",\"\",'1. Ordersheet'!J1076)","v":""},{"$f":"IF('1. Ordersheet'!K1076=\"\",\"\",'1. Ordersheet'!K1076)","v":""},{"$f":"IF('1. Ordersheet'!M1076=\"\",\"\",'1. Ordersheet'!M1076)","v":""},null,null,{"$f":"IF('1. Ordersheet'!AR1076=\"\",\"\",'1. Ordersheet'!AR1076)","v":""},{"$f":"IF('1. Ordersheet'!AE1076=\"\",\"\",'1. Ordersheet'!AE1076)","v":""}]
[{"$f":"IF('1. Ordersheet'!B1077=\"\",\"\",'1. Ordersheet'!B1077)","v":""},{"$f":"IF('1. Ordersheet'!I1077=\"\",\"\",'1. Ordersheet'!I1077)","v":""},{"$f":"IF('1. Ordersheet'!J1077=\"\",\"\",'1. Ordersheet'!J1077)","v":""},{"$f":"IF('1. Ordersheet'!K1077=\"\",\"\",'1. Ordersheet'!K1077)","v":""},{"$f":"IF('1. Ordersheet'!M1077=\"\",\"\",'1. Ordersheet'!M1077)","v":""},null,null,{"$f":"IF('1. Ordersheet'!AR1077=\"\",\"\",'1. Ordersheet'!AR1077)","v":""},{"$f":"IF('1. Ordersheet'!AE1077=\"\",\"\",'1. Ordersheet'!AE1077)","v":""}]
[{"$f":"IF('1. Ordersheet'!B1078=\"\",\"\",'1. Ordersheet'!B1078)","v":""},{"$f":"IF('1. Ordersheet'!I1078=\"\",\"\",'1. Ordersheet'!I1078)","v":""},{"$f":"IF('1. Ordersheet'!J1078=\"\",\"\",'1. Ordersheet'!J1078)","v":""},{"$f":"IF('1. Ordersheet'!K1078=\"\",\"\",'1. Ordersheet'!K1078)","v":""},{"$f":"IF('1. Ordersheet'!M1078=\"\",\"\",'1. Ordersheet'!M1078)","v":""},null,null,{"$f":"IF('1. Ordersheet'!AR1078=\"\",\"\",'1. Ordersheet'!AR1078)","v":""},{"$f":"IF('1. Ordersheet'!AE1078=\"\",\"\",'1. Ordersheet'!AE1078)","v":""}]
[{"$f":"IF('1. Ordersheet'!B1079=\"\",\"\",'1. Ordersheet'!B1079)","v":""},{"$f":"IF('1. Ordersheet'!I1079=\"\",\"\",'1. Ordersheet'!I1079)","v":""},{"$f":"IF('1. Ordersheet'!J1079=\"\",\"\",'1. Ordersheet'!J1079)","v":""},{"$f":"IF('1. Ordersheet'!K1079=\"\",\"\",'1. Ordersheet'!K1079)","v":""},{"$f":"IF('1. Ordersheet'!M1079=\"\",\"\",'1. Ordersheet'!M1079)","v":""},null,null,{"$f":"IF('1. Ordersheet'!AR1079=\"\",\"\",'1. Ordersheet'!AR1079)","v":""},{"$f":"IF('1. Ordersheet'!AE1079=\"\",\"\",'1. Ordersheet'!AE1079)","v":""}]
[{"$f":"IF('1. Ordersheet'!B1080=\"\",\"\",'1. Ordersheet'!B1080)","v":""},{"$f":"IF('1. Ordersheet'!I1080=\"\",\"\",'1. Ordersheet'!I1080)","v":""},{"$f":"IF('1. Ordersheet'!J1080=\"\",\"\",'1. Ordersheet'!J1080)","v":""},{"$f":"IF('1. Ordersheet'!K1080=\"\",\"\",'1. Ordersheet'!K1080)","v":""},{"$f":"IF('1. Ordersheet'!M1080=\"\",\"\",'1. Ordersheet'!M1080)","v":""},null,null,{"$f":"IF('1. Ordersheet'!AR1080=\"\",\"\",'1. Ordersheet'!AR1080)","v":""},{"$f":"IF('1. Ordersheet'!AE1080=\"\",\"\",'1. Ordersheet'!AE1080)","v":""}]
[{"$f":"IF('1. Ordersheet'!B1081=\"\",\"\",'1. Ordersheet'!B1081)","v":""},{"$f":"IF('1. Ordersheet'!I1081=\"\",\"\",'1. Ordersheet'!I1081)","v":""},{"$f":"IF('1. Ordersheet'!J1081=\"\",\"\",'1. Ordersheet'!J1081)","v":""},{"$f":"IF('1. Ordersheet'!K1081=\"\",\"\",'1. Ordersheet'!K1081)","v":""},{"$f":"IF('1. Ordersheet'!M1081=\"\",\"\",'1. Ordersheet'!M1081)","v":""},null,null,{"$f":"IF('1. Ordersheet'!AR1081=\"\",\"\",'1. Ordersheet'!AR1081)","v":""},{"$f":"IF('1. Ordersheet'!AE1081=\"\",\"\",'1. Ordersheet'!AE1081)","v":""}]
[{"$f":"IF('1. Ordersheet'!B1082=\"\",\"\",'1. Ordersheet'!B1082)","v":""},{"$f":"IF('1. Ordersheet'!I1082=\"\",\"\",'1. Ordersheet'!I1082)","v":""},{"$f":"IF('1. Ordersheet'!J1082=\"\",\"\",'1. Ordersheet'!J1082)","v":""},{"$f":"IF('1. Ordersheet'!K1082=\"\",\"\",'1. Ordersheet'!K1082)","v":""},{"$f":"IF('1. Ordersheet'!M1082=\"\",\"\",'1. Ordersheet'!M1082)","v":""},null,null,{"$f":"IF('1. Ordersheet'!AR1082=\"\",\"\",'1. Ordersheet'!AR1082)","v":""},{"$f":"IF('1. Ordersheet'!AE1082=\"\",\"\",'1. Ordersheet'!AE1082)","v":""}]
[{"$f":"IF('1. Ordersheet'!B1083=\"\",\"\",'1. Ordersheet'!B1083)","v":""},{"$f":"IF('1. Ordersheet'!I1083=\"\",\"\",'1. Ordersheet'!I1083)","v":""},{"$f":"IF('1. Ordersheet'!J1083=\"\",\"\",'1. Ordersheet'!J1083)","v":""},{"$f":"IF('1. Ordersheet'!K1083=\"\",\"\",'1. Ordersheet'!K1083)","v":""},{"$f":"IF('1. Ordersheet'!M1083=\"\",\"\",'1. Ordersheet'!M1083)","v":""},null,null,{"$f":"IF('1. Ordersheet'!AR1083=\"\",\"\",'1. Ordersheet'!AR1083)","v":""},{"$f":"IF('1. Ordersheet'!AE1083=\"\",\"\",'1. Ordersheet'!AE1083)","v":""}]
[{"$f":"IF('1. Ordersheet'!B1084=\"\",\"\",'1. Ordersheet'!B1084)","v":""},{"$f":"IF('1. Ordersheet'!I1084=\"\",\"\",'1. Ordersheet'!I1084)","v":""},{"$f":"IF('1. Ordersheet'!J1084=\"\",\"\",'1. Ordersheet'!J1084)","v":""},{"$f":"IF('1. Ordersheet'!K1084=\"\",\"\",'1. Ordersheet'!K1084)","v":""},{"$f":"IF('1. Ordersheet'!M1084=\"\",\"\",'1. Ordersheet'!M1084)","v":""},null,null,{"$f":"IF('1. Ordersheet'!AR1084=\"\",\"\",'1. Ordersheet'!AR1084)","v":""},{"$f":"IF('1. Ordersheet'!AE1084=\"\",\"\",'1. Ordersheet'!AE1084)","v":""}]
[{"$f":"IF('1. Ordersheet'!B1085=\"\",\"\",'1. Ordersheet'!B1085)","v":""},{"$f":"IF('1. Ordersheet'!I1085=\"\",\"\",'1. Ordersheet'!I1085)","v":""},{"$f":"IF('1. Ordersheet'!J1085=\"\",\"\",'1. Ordersheet'!J1085)","v":""},{"$f":"IF('1. Ordersheet'!K1085=\"\",\"\",'1. Ordersheet'!K1085)","v":""},{"$f":"IF('1. Ordersheet'!M1085=\"\",\"\",'1. Ordersheet'!M1085)","v":""},null,null,{"$f":"IF('1. Ordersheet'!AR1085=\"\",\"\",'1. Ordersheet'!AR1085)","v":""},{"$f":"IF('1. Ordersheet'!AE1085=\"\",\"\",'1. Ordersheet'!AE1085)","v":""}]
[{"$f":"IF('1. Ordersheet'!B1086=\"\",\"\",'1. Ordersheet'!B1086)","v":""},{"$f":"IF('1. Ordersheet'!I1086=\"\",\"\",'1. Ordersheet'!I1086)","v":""},{"$f":"IF('1. Ordersheet'!J1086=\"\",\"\",'1. Ordersheet'!J1086)","v":""},{"$f":"IF('1. Ordersheet'!K1086=\"\",\"\",'1. Ordersheet'!K1086)","v":""},{"$f":"IF('1. Ordersheet'!M1086=\"\",\"\",'1. Ordersheet'!M1086)","v":""},null,null,{"$f":"IF('1. Ordersheet'!AR1086=\"\",\"\",'1. Ordersheet'!AR1086)","v":""},{"$f":"IF('1. Ordersheet'!AE1086=\"\",\"\",'1. Ordersheet'!AE1086)","v":""}]
[{"$f":"IF('1. Ordersheet'!B1087=\"\",\"\",'1. Ordersheet'!B1087)","v":""},{"$f":"IF('1. Ordersheet'!I1087=\"\",\"\",'1. Ordersheet'!I1087)","v":""},{"$f":"IF('1. Ordersheet'!J1087=\"\",\"\",'1. Ordersheet'!J1087)","v":""},{"$f":"IF('1. Ordersheet'!K1087=\"\",\"\",'1. Ordersheet'!K1087)","v":""},{"$f":"IF('1. Ordersheet'!M1087=\"\",\"\",'1. Ordersheet'!M1087)","v":""},null,null,{"$f":"IF('1. Ordersheet'!AR1087=\"\",\"\",'1. Ordersheet'!AR1087)","v":""},{"$f":"IF('1. Ordersheet'!AE1087=\"\",\"\",'1. Ordersheet'!AE1087)","v":""}]
[{"$f":"IF('1. Ordersheet'!B1088=\"\",\"\",'1. Ordersheet'!B1088)","v":""},{"$f":"IF('1. Ordersheet'!I1088=\"\",\"\",'1. Ordersheet'!I1088)","v":""},{"$f":"IF('1. Ordersheet'!J1088=\"\",\"\",'1. Ordersheet'!J1088)","v":""},{"$f":"IF('1. Ordersheet'!K1088=\"\",\"\",'1. Ordersheet'!K1088)","v":""},{"$f":"IF('1. Ordersheet'!M1088=\"\",\"\",'1. Ordersheet'!M1088)","v":""},null,null,{"$f":"IF('1. Ordersheet'!AR1088=\"\",\"\",'1. Ordersheet'!AR1088)","v":""},{"$f":"IF('1. Ordersheet'!AE1088=\"\",\"\",'1. Ordersheet'!AE1088)","v":""}]
[{"$f":"IF('1. Ordersheet'!B1089=\"\",\"\",'1. Ordersheet'!B1089)","v":""},{"$f":"IF('1. Ordersheet'!I1089=\"\",\"\",'1. Ordersheet'!I1089)","v":""},{"$f":"IF('1. Ordersheet'!J1089=\"\",\"\",'1. Ordersheet'!J1089)","v":""},{"$f":"IF('1. Ordersheet'!K1089=\"\",\"\",'1. Ordersheet'!K1089)","v":""},{"$f":"IF('1. Ordersheet'!M1089=\"\",\"\",'1. Ordersheet'!M1089)","v":""},null,null,{"$f":"IF('1. Ordersheet'!AR1089=\"\",\"\",'1. Ordersheet'!AR1089)","v":""},{"$f":"IF('1. Ordersheet'!AE1089=\"\",\"\",'1. Ordersheet'!AE1089)","v":""}]
[{"$f":"IF('1. Ordersheet'!B1090=\"\",\"\",'1. Ordersheet'!B1090)","v":""},{"$f":"IF('1. Ordersheet'!I1090=\"\",\"\",'1. Ordersheet'!I1090)","v":""},{"$f":"IF('1. Ordersheet'!J1090=\"\",\"\",'1. Ordersheet'!J1090)","v":""},{"$f":"IF('1. Ordersheet'!K1090=\"\",\"\",'1. Ordersheet'!K1090)","v":""},{"$f":"IF('1. Ordersheet'!M1090=\"\",\"\",'1. Ordersheet'!M1090)","v":""},null,null,{"$f":"IF('1. Ordersheet'!AR1090=\"\",\"\",'1. Ordersheet'!AR1090)","v":""},{"$f":"IF('1. Ordersheet'!AE1090=\"\",\"\",'1. Ordersheet'!AE1090)","v":""}]
[{"$f":"IF('1. Ordersheet'!B1091=\"\",\"\",'1. Ordersheet'!B1091)","v":""},{"$f":"IF('1. Ordersheet'!I1091=\"\",\"\",'1. Ordersheet'!I1091)","v":""},{"$f":"IF('1. Ordersheet'!J1091=\"\",\"\",'1. Ordersheet'!J1091)","v":""},{"$f":"IF('1. Ordersheet'!K1091=\"\",\"\",'1. Ordersheet'!K1091)","v":""},{"$f":"IF('1. Ordersheet'!M1091=\"\",\"\",'1. Ordersheet'!M1091)","v":""},null,null,{"$f":"IF('1. Ordersheet'!AR1091=\"\",\"\",'1. Ordersheet'!AR1091)","v":""},{"$f":"IF('1. Ordersheet'!AE1091=\"\",\"\",'1. Ordersheet'!AE1091)","v":""}]
[{"$f":"IF('1. Ordersheet'!B1092=\"\",\"\",'1. Ordersheet'!B1092)","v":""},{"$f":"IF('1. Ordersheet'!I1092=\"\",\"\",'1. Ordersheet'!I1092)","v":""},{"$f":"IF('1. Ordersheet'!J1092=\"\",\"\",'1. Ordersheet'!J1092)","v":""},{"$f":"IF('1. Ordersheet'!K1092=\"\",\"\",'1. Ordersheet'!K1092)","v":""},{"$f":"IF('1. Ordersheet'!M1092=\"\",\"\",'1. Ordersheet'!M1092)","v":""},null,null,{"$f":"IF('1. Ordersheet'!AR1092=\"\",\"\",'1. Ordersheet'!AR1092)","v":""},{"$f":"IF('1. Ordersheet'!AE1092=\"\",\"\",'1. Ordersheet'!AE1092)","v":""}]
[{"$f":"IF('1. Ordersheet'!B1093=\"\",\"\",'1. Ordersheet'!B1093)","v":""},{"$f":"IF('1. Ordersheet'!I1093=\"\",\"\",'1. Ordersheet'!I1093)","v":""},{"$f":"IF('1. Ordersheet'!J1093=\"\",\"\",'1. Ordersheet'!J1093)","v":""},{"$f":"IF('1. Ordersheet'!K1093=\"\",\"\",'1. Ordersheet'!K1093)","v":""},{"$f":"IF('1. Ordersheet'!M1093=\"\",\"\",'1. Ordersheet'!M1093)","v":""},null,null,{"$f":"IF('1. Ordersheet'!AR1093=\"\",\"\",'1. Ordersheet'!AR1093)","v":""},{"$f":"IF('1. Ordersheet'!AE1093=\"\",\"\",'1. Ordersheet'!AE1093)","v":""}]
[{"$f":"IF('1. Ordersheet'!B1094=\"\",\"\",'1. Ordersheet'!B1094)","v":""},{"$f":"IF('1. Ordersheet'!I1094=\"\",\"\",'1. Ordersheet'!I1094)","v":""},{"$f":"IF('1. Ordersheet'!J1094=\"\",\"\",'1. Ordersheet'!J1094)","v":""},{"$f":"IF('1. Ordersheet'!K1094=\"\",\"\",'1. Ordersheet'!K1094)","v":""},{"$f":"IF('1. Ordersheet'!M1094=\"\",\"\",'1. Ordersheet'!M1094)","v":""},null,null,{"$f":"IF('1. Ordersheet'!AR1094=\"\",\"\",'1. Ordersheet'!AR1094)","v":""},{"$f":"IF('1. Ordersheet'!AE1094=\"\",\"\",'1. Ordersheet'!AE1094)","v":""}]
[{"$f":"IF('1. Ordersheet'!B1095=\"\",\"\",'1. Ordersheet'!B1095)","v":""},{"$f":"IF('1. Ordersheet'!I1095=\"\",\"\",'1. Ordersheet'!I1095)","v":""},{"$f":"IF('1. Ordersheet'!J1095=\"\",\"\",'1. Ordersheet'!J1095)","v":""},{"$f":"IF('1. Ordersheet'!K1095=\"\",\"\",'1. Ordersheet'!K1095)","v":""},{"$f":"IF('1. Ordersheet'!M1095=\"\",\"\",'1. Ordersheet'!M1095)","v":""},null,null,{"$f":"IF('1. Ordersheet'!AR1095=\"\",\"\",'1. Ordersheet'!AR1095)","v":""},{"$f":"IF('1. Ordersheet'!AE1095=\"\",\"\",'1. Ordersheet'!AE1095)","v":""}]
[{"$f":"IF('1. Ordersheet'!B1096=\"\",\"\",'1. Ordersheet'!B1096)","v":""},{"$f":"IF('1. Ordersheet'!I1096=\"\",\"\",'1. Ordersheet'!I1096)","v":""},{"$f":"IF('1. Ordersheet'!J1096=\"\",\"\",'1. Ordersheet'!J1096)","v":""},{"$f":"IF('1. Ordersheet'!K1096=\"\",\"\",'1. Ordersheet'!K1096)","v":""},{"$f":"IF('1. Ordersheet'!M1096=\"\",\"\",'1. Ordersheet'!M1096)","v":""},null,null,{"$f":"IF('1. Ordersheet'!AR1096=\"\",\"\",'1. Ordersheet'!AR1096)","v":""},{"$f":"IF('1. Ordersheet'!AE1096=\"\",\"\",'1. Ordersheet'!AE1096)","v":""}]
[{"$f":"IF('1. Ordersheet'!B1097=\"\",\"\",'1. Ordersheet'!B1097)","v":""},{"$f":"IF('1. Ordersheet'!I1097=\"\",\"\",'1. Ordersheet'!I1097)","v":""},{"$f":"IF('1. Ordersheet'!J1097=\"\",\"\",'1. Ordersheet'!J1097)","v":""},{"$f":"IF('1. Ordersheet'!K1097=\"\",\"\",'1. Ordersheet'!K1097)","v":""},{"$f":"IF('1. Ordersheet'!M1097=\"\",\"\",'1. Ordersheet'!M1097)","v":""},null,null,{"$f":"IF('1. Ordersheet'!AR1097=\"\",\"\",'1. Ordersheet'!AR1097)","v":""},{"$f":"IF('1. Ordersheet'!AE1097=\"\",\"\",'1. Ordersheet'!AE1097)","v":""}]
[{"$f":"IF('1. Ordersheet'!B1098=\"\",\"\",'1. Ordersheet'!B1098)","v":""},{"$f":"IF('1. Ordersheet'!I1098=\"\",\"\",'1. Ordersheet'!I1098)","v":""},{"$f":"IF('1. Ordersheet'!J1098=\"\",\"\",'1. Ordersheet'!J1098)","v":""},{"$f":"IF('1. Ordersheet'!K1098=\"\",\"\",'1. Ordersheet'!K1098)","v":""},{"$f":"IF('1. Ordersheet'!M1098=\"\",\"\",'1. Ordersheet'!M1098)","v":""},null,null,{"$f":"IF('1. Ordersheet'!AR1098=\"\",\"\",'1. Ordersheet'!AR1098)","v":""},{"$f":"IF('1. Ordersheet'!AE1098=\"\",\"\",'1. Ordersheet'!AE1098)","v":""}]
[{"$f":"IF('1. Ordersheet'!B1099=\"\",\"\",'1. Ordersheet'!B1099)","v":""},{"$f":"IF('1. Ordersheet'!I1099=\"\",\"\",'1. Ordersheet'!I1099)","v":""},{"$f":"IF('1. Ordersheet'!J1099=\"\",\"\",'1. Ordersheet'!J1099)","v":""},{"$f":"IF('1. Ordersheet'!K1099=\"\",\"\",'1. Ordersheet'!K1099)","v":""},{"$f":"IF('1. Ordersheet'!M1099=\"\",\"\",'1. Ordersheet'!M1099)","v":""},null,null,{"$f":"IF('1. Ordersheet'!AR1099=\"\",\"\",'1. Ordersheet'!AR1099)","v":""},{"$f":"IF('1. Ordersheet'!AE1099=\"\",\"\",'1. Ordersheet'!AE1099)","v":""}]
[{"$f":"IF('1. Ordersheet'!B1100=\"\",\"\",'1. Ordersheet'!B1100)","v":""},{"$f":"IF('1. Ordersheet'!I1100=\"\",\"\",'1. Ordersheet'!I1100)","v":""},{"$f":"IF('1. Ordersheet'!J1100=\"\",\"\",'1. Ordersheet'!J1100)","v":""},{"$f":"IF('1. Ordersheet'!K1100=\"\",\"\",'1. Ordersheet'!K1100)","v":""},{"$f":"IF('1. Ordersheet'!M1100=\"\",\"\",'1. Ordersheet'!M1100)","v":""},null,null,{"$f":"IF('1. Ordersheet'!AR1100=\"\",\"\",'1. Ordersheet'!AR1100)","v":""},{"$f":"IF('1. Ordersheet'!AE1100=\"\",\"\",'1. Ordersheet'!AE1100)","v":""}]
[{"$f":"IF('1. Ordersheet'!B1101=\"\",\"\",'1. Ordersheet'!B1101)","v":""},{"$f":"IF('1. Ordersheet'!I1101=\"\",\"\",'1. Ordersheet'!I1101)","v":""},{"$f":"IF('1. Ordersheet'!J1101=\"\",\"\",'1. Ordersheet'!J1101)","v":""},{"$f":"IF('1. Ordersheet'!K1101=\"\",\"\",'1. Ordersheet'!K1101)","v":""},{"$f":"IF('1. Ordersheet'!M1101=\"\",\"\",'1. Ordersheet'!M1101)","v":""},null,null,{"$f":"IF('1. Ordersheet'!AR1101=\"\",\"\",'1. Ordersheet'!AR1101)","v":""},{"$f":"IF('1. Ordersheet'!AE1101=\"\",\"\",'1. Ordersheet'!AE1101)","v":""}]
[{"$f":"IF('1. Ordersheet'!B1102=\"\",\"\",'1. Ordersheet'!B1102)","v":""},{"$f":"IF('1. Ordersheet'!I1102=\"\",\"\",'1. Ordersheet'!I1102)","v":""},{"$f":"IF('1. Ordersheet'!J1102=\"\",\"\",'1. Ordersheet'!J1102)","v":""},{"$f":"IF('1. Ordersheet'!K1102=\"\",\"\",'1. Ordersheet'!K1102)","v":""},{"$f":"IF('1. Ordersheet'!M1102=\"\",\"\",'1. Ordersheet'!M1102)","v":""},null,null,{"$f":"IF('1. Ordersheet'!AR1102=\"\",\"\",'1. Ordersheet'!AR1102)","v":""},{"$f":"IF('1. Ordersheet'!AE1102=\"\",\"\",'1. Ordersheet'!AE1102)","v":""}]
[{"$f":"IF('1. Ordersheet'!B1103=\"\",\"\",'1. Ordersheet'!B1103)","v":""},{"$f":"IF('1. Ordersheet'!I1103=\"\",\"\",'1. Ordersheet'!I1103)","v":""},{"$f":"IF('1. Ordersheet'!J1103=\"\",\"\",'1. Ordersheet'!J1103)","v":""},{"$f":"IF('1. Ordersheet'!K1103=\"\",\"\",'1. Ordersheet'!K1103)","v":""},{"$f":"IF('1. Ordersheet'!M1103=\"\",\"\",'1. Ordersheet'!M1103)","v":""},null,null,{"$f":"IF('1. Ordersheet'!AR1103=\"\",\"\",'1. Ordersheet'!AR1103)","v":""},{"$f":"IF('1. Ordersheet'!AE1103=\"\",\"\",'1. Ordersheet'!AE1103)","v":""}]
[{"$f":"IF('1. Ordersheet'!B1104=\"\",\"\",'1. Ordersheet'!B1104)","v":""},{"$f":"IF('1. Ordersheet'!I1104=\"\",\"\",'1. Ordersheet'!I1104)","v":""},{"$f":"IF('1. Ordersheet'!J1104=\"\",\"\",'1. Ordersheet'!J1104)","v":""},{"$f":"IF('1. Ordersheet'!K1104=\"\",\"\",'1. Ordersheet'!K1104)","v":""},{"$f":"IF('1. Ordersheet'!M1104=\"\",\"\",'1. Ordersheet'!M1104)","v":""},null,null,{"$f":"IF('1. Ordersheet'!AR1104=\"\",\"\",'1. Ordersheet'!AR1104)","v":""},{"$f":"IF('1. Ordersheet'!AE1104=\"\",\"\",'1. Ordersheet'!AE1104)","v":""}]
[{"$f":"IF('1. Ordersheet'!B1105=\"\",\"\",'1. Ordersheet'!B1105)","v":""},{"$f":"IF('1. Ordersheet'!I1105=\"\",\"\",'1. Ordersheet'!I1105)","v":""},{"$f":"IF('1. Ordersheet'!J1105=\"\",\"\",'1. Ordersheet'!J1105)","v":""},{"$f":"IF('1. Ordersheet'!K1105=\"\",\"\",'1. Ordersheet'!K1105)","v":""},{"$f":"IF('1. Ordersheet'!M1105=\"\",\"\",'1. Ordersheet'!M1105)","v":""},null,null,{"$f":"IF('1. Ordersheet'!AR1105=\"\",\"\",'1. Ordersheet'!AR1105)","v":""},{"$f":"IF('1. Ordersheet'!AE1105=\"\",\"\",'1. Ordersheet'!AE1105)","v":""}]
[{"$f":"IF('1. Ordersheet'!B1106=\"\",\"\",'1. Ordersheet'!B1106)","v":""},{"$f":"IF('1. Ordersheet'!I1106=\"\",\"\",'1. Ordersheet'!I1106)","v":""},{"$f":"IF('1. Ordersheet'!J1106=\"\",\"\",'1. Ordersheet'!J1106)","v":""},{"$f":"IF('1. Ordersheet'!K1106=\"\",\"\",'1. Ordersheet'!K1106)","v":""},{"$f":"IF('1. Ordersheet'!M1106=\"\",\"\",'1. Ordersheet'!M1106)","v":""},null,null,{"$f":"IF('1. Ordersheet'!AR1106=\"\",\"\",'1. Ordersheet'!AR1106)","v":""},{"$f":"IF('1. Ordersheet'!AE1106=\"\",\"\",'1. Ordersheet'!AE1106)","v":""}]
[{"$f":"IF('1. Ordersheet'!B1107=\"\",\"\",'1. Ordersheet'!B1107)","v":""},{"$f":"IF('1. Ordersheet'!I1107=\"\",\"\",'1. Ordersheet'!I1107)","v":""},{"$f":"IF('1. Ordersheet'!J1107=\"\",\"\",'1. Ordersheet'!J1107)","v":""},{"$f":"IF('1. Ordersheet'!K1107=\"\",\"\",'1. Ordersheet'!K1107)","v":""},{"$f":"IF('1. Ordersheet'!M1107=\"\",\"\",'1. Ordersheet'!M1107)","v":""},null,null,{"$f":"IF('1. Ordersheet'!AR1107=\"\",\"\",'1. Ordersheet'!AR1107)","v":""},{"$f":"IF('1. Ordersheet'!AE1107=\"\",\"\",'1. Ordersheet'!AE1107)","v":""}]
[{"$f":"IF('1. Ordersheet'!B1108=\"\",\"\",'1. Ordersheet'!B1108)","v":""},{"$f":"IF('1. Ordersheet'!I1108=\"\",\"\",'1. Ordersheet'!I1108)","v":""},{"$f":"IF('1. Ordersheet'!J1108=\"\",\"\",'1. Ordersheet'!J1108)","v":""},{"$f":"IF('1. Ordersheet'!K1108=\"\",\"\",'1. Ordersheet'!K1108)","v":""},{"$f":"IF('1. Ordersheet'!M1108=\"\",\"\",'1. Ordersheet'!M1108)","v":""},null,null,{"$f":"IF('1. Ordersheet'!AR1108=\"\",\"\",'1. Ordersheet'!AR1108)","v":""},{"$f":"IF('1. Ordersheet'!AE1108=\"\",\"\",'1. Ordersheet'!AE1108)","v":""}]
[{"$f":"IF('1. Ordersheet'!B1109=\"\",\"\",'1. Ordersheet'!B1109)","v":""},{"$f":"IF('1. Ordersheet'!I1109=\"\",\"\",'1. Ordersheet'!I1109)","v":""},{"$f":"IF('1. Ordersheet'!J1109=\"\",\"\",'1. Ordersheet'!J1109)","v":""},{"$f":"IF('1. Ordersheet'!K1109=\"\",\"\",'1. Ordersheet'!K1109)","v":""},{"$f":"IF('1. Ordersheet'!M1109=\"\",\"\",'1. Ordersheet'!M1109)","v":""},null,null,{"$f":"IF('1. Ordersheet'!AR1109=\"\",\"\",'1. Ordersheet'!AR1109)","v":""},{"$f":"IF('1. Ordersheet'!AE1109=\"\",\"\",'1. Ordersheet'!AE1109)","v":""}]
[{"$f":"IF('1. Ordersheet'!B1110=\"\",\"\",'1. Ordersheet'!B1110)","v":""},{"$f":"IF('1. Ordersheet'!I1110=\"\",\"\",'1. Ordersheet'!I1110)","v":""},{"$f":"IF('1. Ordersheet'!J1110=\"\",\"\",'1. Ordersheet'!J1110)","v":""},{"$f":"IF('1. Ordersheet'!K1110=\"\",\"\",'1. Ordersheet'!K1110)","v":""},{"$f":"IF('1. Ordersheet'!M1110=\"\",\"\",'1. Ordersheet'!M1110)","v":""},null,null,{"$f":"IF('1. Ordersheet'!AR1110=\"\",\"\",'1. Ordersheet'!AR1110)","v":""},{"$f":"IF('1. Ordersheet'!AE1110=\"\",\"\",'1. Ordersheet'!AE1110)","v":""}]
[{"$f":"IF('1. Ordersheet'!B1111=\"\",\"\",'1. Ordersheet'!B1111)","v":""},{"$f":"IF('1. Ordersheet'!I1111=\"\",\"\",'1. Ordersheet'!I1111)","v":""},{"$f":"IF('1. Ordersheet'!J1111=\"\",\"\",'1. Ordersheet'!J1111)","v":""},{"$f":"IF('1. Ordersheet'!K1111=\"\",\"\",'1. Ordersheet'!K1111)","v":""},{"$f":"IF('1. Ordersheet'!M1111=\"\",\"\",'1. Ordersheet'!M1111)","v":""},null,null,{"$f":"IF('1. Ordersheet'!AR1111=\"\",\"\",'1. Ordersheet'!AR1111)","v":""},{"$f":"IF('1. Ordersheet'!AE1111=\"\",\"\",'1. Ordersheet'!AE1111)","v":""}]
[{"$f":"IF('1. Ordersheet'!B1112=\"\",\"\",'1. Ordersheet'!B1112)","v":""},{"$f":"IF('1. Ordersheet'!I1112=\"\",\"\",'1. Ordersheet'!I1112)","v":""},{"$f":"IF('1. Ordersheet'!J1112=\"\",\"\",'1. Ordersheet'!J1112)","v":""},{"$f":"IF('1. Ordersheet'!K1112=\"\",\"\",'1. Ordersheet'!K1112)","v":""},{"$f":"IF('1. Ordersheet'!M1112=\"\",\"\",'1. Ordersheet'!M1112)","v":""},null,null,{"$f":"IF('1. Ordersheet'!AR1112=\"\",\"\",'1. Ordersheet'!AR1112)","v":""},{"$f":"IF('1. Ordersheet'!AE1112=\"\",\"\",'1. Ordersheet'!AE1112)","v":""}]
[{"$f":"IF('1. Ordersheet'!B1113=\"\",\"\",'1. Ordersheet'!B1113)","v":""},{"$f":"IF('1. Ordersheet'!I1113=\"\",\"\",'1. Ordersheet'!I1113)","v":""},{"$f":"IF('1. Ordersheet'!J1113=\"\",\"\",'1. Ordersheet'!J1113)","v":""},{"$f":"IF('1. Ordersheet'!K1113=\"\",\"\",'1. Ordersheet'!K1113)","v":""},{"$f":"IF('1. Ordersheet'!M1113=\"\",\"\",'1. Ordersheet'!M1113)","v":""},null,null,{"$f":"IF('1. Ordersheet'!AR1113=\"\",\"\",'1. Ordersheet'!AR1113)","v":""},{"$f":"IF('1. Ordersheet'!AE1113=\"\",\"\",'1. Ordersheet'!AE1113)","v":""}]
[{"$f":"IF('1. Ordersheet'!B1114=\"\",\"\",'1. Ordersheet'!B1114)","v":""},{"$f":"IF('1. Ordersheet'!I1114=\"\",\"\",'1. Ordersheet'!I1114)","v":""},{"$f":"IF('1. Ordersheet'!J1114=\"\",\"\",'1. Ordersheet'!J1114)","v":""},{"$f":"IF('1. Ordersheet'!K1114=\"\",\"\",'1. Ordersheet'!K1114)","v":""},{"$f":"IF('1. Ordersheet'!M1114=\"\",\"\",'1. Ordersheet'!M1114)","v":""},null,null,{"$f":"IF('1. Ordersheet'!AR1114=\"\",\"\",'1. Ordersheet'!AR1114)","v":""},{"$f":"IF('1. Ordersheet'!AE1114=\"\",\"\",'1. Ordersheet'!AE1114)","v":""}]
[{"$f":"IF('1. Ordersheet'!B1115=\"\",\"\",'1. Ordersheet'!B1115)","v":""},{"$f":"IF('1. Ordersheet'!I1115=\"\",\"\",'1. Ordersheet'!I1115)","v":""},{"$f":"IF('1. Ordersheet'!J1115=\"\",\"\",'1. Ordersheet'!J1115)","v":""},{"$f":"IF('1. Ordersheet'!K1115=\"\",\"\",'1. Ordersheet'!K1115)","v":""},{"$f":"IF('1. Ordersheet'!M1115=\"\",\"\",'1. Ordersheet'!M1115)","v":""},null,null,{"$f":"IF('1. Ordersheet'!AR1115=\"\",\"\",'1. Ordersheet'!AR1115)","v":""},{"$f":"IF('1. Ordersheet'!AE1115=\"\",\"\",'1. Ordersheet'!AE1115)","v":""}]
[{"$f":"IF('1. Ordersheet'!B1116=\"\",\"\",'1. Ordersheet'!B1116)","v":""},{"$f":"IF('1. Ordersheet'!I1116=\"\",\"\",'1. Ordersheet'!I1116)","v":""},{"$f":"IF('1. Ordersheet'!J1116=\"\",\"\",'1. Ordersheet'!J1116)","v":""},{"$f":"IF('1. Ordersheet'!K1116=\"\",\"\",'1. Ordersheet'!K1116)","v":""},{"$f":"IF('1. Ordersheet'!M1116=\"\",\"\",'1. Ordersheet'!M1116)","v":""},null,null,{"$f":"IF('1. Ordersheet'!AR1116=\"\",\"\",'1. Ordersheet'!AR1116)","v":""},{"$f":"IF('1. Ordersheet'!AE1116=\"\",\"\",'1. Ordersheet'!AE1116)","v":""}]
[{"$f":"IF('1. Ordersheet'!B1117=\"\",\"\",'1. Ordersheet'!B1117)","v":""},{"$f":"IF('1. Ordersheet'!I1117=\"\",\"\",'1. Ordersheet'!I1117)","v":""},{"$f":"IF('1. Ordersheet'!J1117=\"\",\"\",'1. Ordersheet'!J1117)","v":""},{"$f":"IF('1. Ordersheet'!K1117=\"\",\"\",'1. Ordersheet'!K1117)","v":""},{"$f":"IF('1. Ordersheet'!M1117=\"\",\"\",'1. Ordersheet'!M1117)","v":""},null,null,{"$f":"IF('1. Ordersheet'!AR1117=\"\",\"\",'1. Ordersheet'!AR1117)","v":""},{"$f":"IF('1. Ordersheet'!AE1117=\"\",\"\",'1. Ordersheet'!AE1117)","v":""}]
[{"$f":"IF('1. Ordersheet'!B1118=\"\",\"\",'1. Ordersheet'!B1118)","v":""},{"$f":"IF('1. Ordersheet'!I1118=\"\",\"\",'1. Ordersheet'!I1118)","v":""},{"$f":"IF('1. Ordersheet'!J1118=\"\",\"\",'1. Ordersheet'!J1118)","v":""},{"$f":"IF('1. Ordersheet'!K1118=\"\",\"\",'1. Ordersheet'!K1118)","v":""},{"$f":"IF('1. Ordersheet'!M1118=\"\",\"\",'1. Ordersheet'!M1118)","v":""},null,null,{"$f":"IF('1. Ordersheet'!AR1118=\"\",\"\",'1. Ordersheet'!AR1118)","v":""},{"$f":"IF('1. Ordersheet'!AE1118=\"\",\"\",'1. Ordersheet'!AE1118)","v":""}]
[{"$f":"IF('1. Ordersheet'!B1119=\"\",\"\",'1. Ordersheet'!B1119)","v":""},{"$f":"IF('1. Ordersheet'!I1119=\"\",\"\",'1. Ordersheet'!I1119)","v":""},{"$f":"IF('1. Ordersheet'!J1119=\"\",\"\",'1. Ordersheet'!J1119)","v":""},{"$f":"IF('1. Ordersheet'!K1119=\"\",\"\",'1. Ordersheet'!K1119)","v":""},{"$f":"IF('1. Ordersheet'!M1119=\"\",\"\",'1. Ordersheet'!M1119)","v":""},null,null,{"$f":"IF('1. Ordersheet'!AR1119=\"\",\"\",'1. Ordersheet'!AR1119)","v":""},{"$f":"IF('1. Ordersheet'!AE1119=\"\",\"\",'1. Ordersheet'!AE1119)","v":""}]
[{"$f":"IF('1. Ordersheet'!B1120=\"\",\"\",'1. Ordersheet'!B1120)","v":""},{"$f":"IF('1. Ordersheet'!I1120=\"\",\"\",'1. Ordersheet'!I1120)","v":""},{"$f":"IF('1. Ordersheet'!J1120=\"\",\"\",'1. Ordersheet'!J1120)","v":""},{"$f":"IF('1. Ordersheet'!K1120=\"\",\"\",'1. Ordersheet'!K1120)","v":""},{"$f":"IF('1. Ordersheet'!M1120=\"\",\"\",'1. Ordersheet'!M1120)","v":""},null,null,{"$f":"IF('1. Ordersheet'!AR1120=\"\",\"\",'1. Ordersheet'!AR1120)","v":""},{"$f":"IF('1. Ordersheet'!AE1120=\"\",\"\",'1. Ordersheet'!AE1120)","v":""}]
[{"$f":"IF('1. Ordersheet'!B1121=\"\",\"\",'1. Ordersheet'!B1121)","v":""},{"$f":"IF('1. Ordersheet'!I1121=\"\",\"\",'1. Ordersheet'!I1121)","v":""},{"$f":"IF('1. Ordersheet'!J1121=\"\",\"\",'1. Ordersheet'!J1121)","v":""},{"$f":"IF('1. Ordersheet'!K1121=\"\",\"\",'1. Ordersheet'!K1121)","v":""},{"$f":"IF('1. Ordersheet'!M1121=\"\",\"\",'1. Ordersheet'!M1121)","v":""},null,null,{"$f":"IF('1. Ordersheet'!AR1121=\"\",\"\",'1. Ordersheet'!AR1121)","v":""},{"$f":"IF('1. Ordersheet'!AE1121=\"\",\"\",'1. Ordersheet'!AE1121)","v":""}]
[{"$f":"IF('1. Ordersheet'!B1122=\"\",\"\",'1. Ordersheet'!B1122)","v":""},{"$f":"IF('1. Ordersheet'!I1122=\"\",\"\",'1. Ordersheet'!I1122)","v":""},{"$f":"IF('1. Ordersheet'!J1122=\"\",\"\",'1. Ordersheet'!J1122)","v":""},{"$f":"IF('1. Ordersheet'!K1122=\"\",\"\",'1. Ordersheet'!K1122)","v":""},{"$f":"IF('1. Ordersheet'!M1122=\"\",\"\",'1. Ordersheet'!M1122)","v":""},null,null,{"$f":"IF('1. Ordersheet'!AR1122=\"\",\"\",'1. Ordersheet'!AR1122)","v":""},{"$f":"IF('1. Ordersheet'!AE1122=\"\",\"\",'1. Ordersheet'!AE1122)","v":""}]
[{"$f":"IF('1. Ordersheet'!B1123=\"\",\"\",'1. Ordersheet'!B1123)","v":""},{"$f":"IF('1. Ordersheet'!I1123=\"\",\"\",'1. Ordersheet'!I1123)","v":""},{"$f":"IF('1. Ordersheet'!J1123=\"\",\"\",'1. Ordersheet'!J1123)","v":""},{"$f":"IF('1. Ordersheet'!K1123=\"\",\"\",'1. Ordersheet'!K1123)","v":""},{"$f":"IF('1. Ordersheet'!M1123=\"\",\"\",'1. Ordersheet'!M1123)","v":""},null,null,{"$f":"IF('1. Ordersheet'!AR1123=\"\",\"\",'1. Ordersheet'!AR1123)","v":""},{"$f":"IF('1. Ordersheet'!AE1123=\"\",\"\",'1. Ordersheet'!AE1123)","v":""}]
[{"$f":"IF('1. Ordersheet'!B1124=\"\",\"\",'1. Ordersheet'!B1124)","v":""},{"$f":"IF('1. Ordersheet'!I1124=\"\",\"\",'1. Ordersheet'!I1124)","v":""},{"$f":"IF('1. Ordersheet'!J1124=\"\",\"\",'1. Ordersheet'!J1124)","v":""},{"$f":"IF('1. Ordersheet'!K1124=\"\",\"\",'1. Ordersheet'!K1124)","v":""},{"$f":"IF('1. Ordersheet'!M1124=\"\",\"\",'1. Ordersheet'!M1124)","v":""},null,null,{"$f":"IF('1. Ordersheet'!AR1124=\"\",\"\",'1. Ordersheet'!AR1124)","v":""},{"$f":"IF('1. Ordersheet'!AE1124=\"\",\"\",'1. Ordersheet'!AE1124)","v":""}]
[{"$f":"IF('1. Ordersheet'!B1125=\"\",\"\",'1. Ordersheet'!B1125)","v":""},{"$f":"IF('1. Ordersheet'!I1125=\"\",\"\",'1. Ordersheet'!I1125)","v":""},{"$f":"IF('1. Ordersheet'!J1125=\"\",\"\",'1. Ordersheet'!J1125)","v":""},{"$f":"IF('1. Ordersheet'!K1125=\"\",\"\",'1. Ordersheet'!K1125)","v":""},{"$f":"IF('1. Ordersheet'!M1125=\"\",\"\",'1. Ordersheet'!M1125)","v":""},null,null,{"$f":"IF('1. Ordersheet'!AR1125=\"\",\"\",'1. Ordersheet'!AR1125)","v":""},{"$f":"IF('1. Ordersheet'!AE1125=\"\",\"\",'1. Ordersheet'!AE1125)","v":""}]
[{"$f":"IF('1. Ordersheet'!B1126=\"\",\"\",'1. Ordersheet'!B1126)","v":""},{"$f":"IF('1. Ordersheet'!I1126=\"\",\"\",'1. Ordersheet'!I1126)","v":""},{"$f":"IF('1. Ordersheet'!J1126=\"\",\"\",'1. Ordersheet'!J1126)","v":""},{"$f":"IF('1. Ordersheet'!K1126=\"\",\"\",'1. Ordersheet'!K1126)","v":""},{"$f":"IF('1. Ordersheet'!M1126=\"\",\"\",'1. Ordersheet'!M1126)","v":""},null,null,{"$f":"IF('1. Ordersheet'!AR1126=\"\",\"\",'1. Ordersheet'!AR1126)","v":""},{"$f":"IF('1. Ordersheet'!AE1126=\"\",\"\",'1. Ordersheet'!AE1126)","v":""}]
[{"$f":"IF('1. Ordersheet'!B1127=\"\",\"\",'1. Ordersheet'!B1127)","v":""},{"$f":"IF('1. Ordersheet'!I1127=\"\",\"\",'1. Ordersheet'!I1127)","v":""},{"$f":"IF('1. Ordersheet'!J1127=\"\",\"\",'1. Ordersheet'!J1127)","v":""},{"$f":"IF('1. Ordersheet'!K1127=\"\",\"\",'1. Ordersheet'!K1127)","v":""},{"$f":"IF('1. Ordersheet'!M1127=\"\",\"\",'1. Ordersheet'!M1127)","v":""},null,null,{"$f":"IF('1. Ordersheet'!AR1127=\"\",\"\",'1. Ordersheet'!AR1127)","v":""},{"$f":"IF('1. Ordersheet'!AE1127=\"\",\"\",'1. Ordersheet'!AE1127)","v":""}]
[{"$f":"IF('1. Ordersheet'!B1128=\"\",\"\",'1. Ordersheet'!B1128)","v":""},{"$f":"IF('1. Ordersheet'!I1128=\"\",\"\",'1. Ordersheet'!I1128)","v":""},{"$f":"IF('1. Ordersheet'!J1128=\"\",\"\",'1. Ordersheet'!J1128)","v":""},{"$f":"IF('1. Ordersheet'!K1128=\"\",\"\",'1. Ordersheet'!K1128)","v":""},{"$f":"IF('1. Ordersheet'!M1128=\"\",\"\",'1. Ordersheet'!M1128)","v":""},null,null,{"$f":"IF('1. Ordersheet'!AR1128=\"\",\"\",'1. Ordersheet'!AR1128)","v":""},{"$f":"IF('1. Ordersheet'!AE1128=\"\",\"\",'1. Ordersheet'!AE1128)","v":""}]
[{"$f":"IF('1. Ordersheet'!B1129=\"\",\"\",'1. Ordersheet'!B1129)","v":""},{"$f":"IF('1. Ordersheet'!I1129=\"\",\"\",'1. Ordersheet'!I1129)","v":""},{"$f":"IF('1. Ordersheet'!J1129=\"\",\"\",'1. Ordersheet'!J1129)","v":""},{"$f":"IF('1. Ordersheet'!K1129=\"\",\"\",'1. Ordersheet'!K1129)","v":""},{"$f":"IF('1. Ordersheet'!M1129=\"\",\"\",'1. Ordersheet'!M1129)","v":""},null,null,{"$f":"IF('1. Ordersheet'!AR1129=\"\",\"\",'1. Ordersheet'!AR1129)","v":""},{"$f":"IF('1. Ordersheet'!AE1129=\"\",\"\",'1. Ordersheet'!AE1129)","v":""}]
[{"$f":"IF('1. Ordersheet'!B1130=\"\",\"\",'1. Ordersheet'!B1130)","v":""},{"$f":"IF('1. Ordersheet'!I1130=\"\",\"\",'1. Ordersheet'!I1130)","v":""},{"$f":"IF('1. Ordersheet'!J1130=\"\",\"\",'1. Ordersheet'!J1130)","v":""},{"$f":"IF('1. Ordersheet'!K1130=\"\",\"\",'1. Ordersheet'!K1130)","v":""},{"$f":"IF('1. Ordersheet'!M1130=\"\",\"\",'1. Ordersheet'!M1130)","v":""},null,null,{"$f":"IF('1. Ordersheet'!AR1130=\"\",\"\",'1. Ordersheet'!AR1130)","v":""},{"$f":"IF('1. Ordersheet'!AE1130=\"\",\"\",'1. Ordersheet'!AE1130)","v":""}]
[{"$f":"IF('1. Ordersheet'!B1131=\"\",\"\",'1. Ordersheet'!B1131)","v":""},{"$f":"IF('1. Ordersheet'!I1131=\"\",\"\",'1. Ordersheet'!I1131)","v":""},{"$f":"IF('1. Ordersheet'!J1131=\"\",\"\",'1. Ordersheet'!J1131)","v":""},{"$f":"IF('1. Ordersheet'!K1131=\"\",\"\",'1. Ordersheet'!K1131)","v":""},{"$f":"IF('1. Ordersheet'!M1131=\"\",\"\",'1. Ordersheet'!M1131)","v":""},null,null,{"$f":"IF('1. Ordersheet'!AR1131=\"\",\"\",'1. Ordersheet'!AR1131)","v":""},{"$f":"IF('1. Ordersheet'!AE1131=\"\",\"\",'1. Ordersheet'!AE1131)","v":""}]
[{"$f":"IF('1. Ordersheet'!B1132=\"\",\"\",'1. Ordersheet'!B1132)","v":""},{"$f":"IF('1. Ordersheet'!I1132=\"\",\"\",'1. Ordersheet'!I1132)","v":""},{"$f":"IF('1. Ordersheet'!J1132=\"\",\"\",'1. Ordersheet'!J1132)","v":""},{"$f":"IF('1. Ordersheet'!K1132=\"\",\"\",'1. Ordersheet'!K1132)","v":""},{"$f":"IF('1. Ordersheet'!M1132=\"\",\"\",'1. Ordersheet'!M1132)","v":""},null,null,{"$f":"IF('1. Ordersheet'!AR1132=\"\",\"\",'1. Ordersheet'!AR1132)","v":""},{"$f":"IF('1. Ordersheet'!AE1132=\"\",\"\",'1. Ordersheet'!AE1132)","v":""}]
[{"$f":"IF('1. Ordersheet'!B1133=\"\",\"\",'1. Ordersheet'!B1133)","v":""},{"$f":"IF('1. Ordersheet'!I1133=\"\",\"\",'1. Ordersheet'!I1133)","v":""},{"$f":"IF('1. Ordersheet'!J1133=\"\",\"\",'1. Ordersheet'!J1133)","v":""},{"$f":"IF('1. Ordersheet'!K1133=\"\",\"\",'1. Ordersheet'!K1133)","v":""},{"$f":"IF('1. Ordersheet'!M1133=\"\",\"\",'1. Ordersheet'!M1133)","v":""},null,null,{"$f":"IF('1. Ordersheet'!AR1133=\"\",\"\",'1. Ordersheet'!AR1133)","v":""},{"$f":"IF('1. Ordersheet'!AE1133=\"\",\"\",'1. Ordersheet'!AE1133)","v":""}]
[{"$f":"IF('1. Ordersheet'!B1134=\"\",\"\",'1. Ordersheet'!B1134)","v":""},{"$f":"IF('1. Ordersheet'!I1134=\"\",\"\",'1. Ordersheet'!I1134)","v":""},{"$f":"IF('1. Ordersheet'!J1134=\"\",\"\",'1. Ordersheet'!J1134)","v":""},{"$f":"IF('1. Ordersheet'!K1134=\"\",\"\",'1. Ordersheet'!K1134)","v":""},{"$f":"IF('1. Ordersheet'!M1134=\"\",\"\",'1. Ordersheet'!M1134)","v":""},null,null,{"$f":"IF('1. Ordersheet'!AR1134=\"\",\"\",'1. Ordersheet'!AR1134)","v":""},{"$f":"IF('1. Ordersheet'!AE1134=\"\",\"\",'1. Ordersheet'!AE1134)","v":""}]
[{"$f":"IF('1. Ordersheet'!B1135=\"\",\"\",'1. Ordersheet'!B1135)","v":""},{"$f":"IF('1. Ordersheet'!I1135=\"\",\"\",'1. Ordersheet'!I1135)","v":""},{"$f":"IF('1. Ordersheet'!J1135=\"\",\"\",'1. Ordersheet'!J1135)","v":""},{"$f":"IF('1. Ordersheet'!K1135=\"\",\"\",'1. Ordersheet'!K1135)","v":""},{"$f":"IF('1. Ordersheet'!M1135=\"\",\"\",'1. Ordersheet'!M1135)","v":""},null,null,{"$f":"IF('1. Ordersheet'!AR1135=\"\",\"\",'1. Ordersheet'!AR1135)","v":""},{"$f":"IF('1. Ordersheet'!AE1135=\"\",\"\",'1. Ordersheet'!AE1135)","v":""}]
[{"$f":"IF('1. Ordersheet'!B1136=\"\",\"\",'1. Ordersheet'!B1136)","v":""},{"$f":"IF('1. Ordersheet'!I1136=\"\",\"\",'1. Ordersheet'!I1136)","v":""},{"$f":"IF('1. Ordersheet'!J1136=\"\",\"\",'1. Ordersheet'!J1136)","v":""},{"$f":"IF('1. Ordersheet'!K1136=\"\",\"\",'1. Ordersheet'!K1136)","v":""},{"$f":"IF('1. Ordersheet'!M1136=\"\",\"\",'1. Ordersheet'!M1136)","v":""},null,null,{"$f":"IF('1. Ordersheet'!AR1136=\"\",\"\",'1. Ordersheet'!AR1136)","v":""},{"$f":"IF('1. Ordersheet'!AE1136=\"\",\"\",'1. Ordersheet'!AE1136)","v":""}]
[{"$f":"IF('1. Ordersheet'!B1137=\"\",\"\",'1. Ordersheet'!B1137)","v":""},{"$f":"IF('1. Ordersheet'!I1137=\"\",\"\",'1. Ordersheet'!I1137)","v":""},{"$f":"IF('1. Ordersheet'!J1137=\"\",\"\",'1. Ordersheet'!J1137)","v":""},{"$f":"IF('1. Ordersheet'!K1137=\"\",\"\",'1. Ordersheet'!K1137)","v":""},{"$f":"IF('1. Ordersheet'!M1137=\"\",\"\",'1. Ordersheet'!M1137)","v":""},null,null,{"$f":"IF('1. Ordersheet'!AR1137=\"\",\"\",'1. Ordersheet'!AR1137)","v":""},{"$f":"IF('1. Ordersheet'!AE1137=\"\",\"\",'1. Ordersheet'!AE1137)","v":""}]
[{"$f":"IF('1. Ordersheet'!B1138=\"\",\"\",'1. Ordersheet'!B1138)","v":""},{"$f":"IF('1. Ordersheet'!I1138=\"\",\"\",'1. Ordersheet'!I1138)","v":""},{"$f":"IF('1. Ordersheet'!J1138=\"\",\"\",'1. Ordersheet'!J1138)","v":""},{"$f":"IF('1. Ordersheet'!K1138=\"\",\"\",'1. Ordersheet'!K1138)","v":""},{"$f":"IF('1. Ordersheet'!M1138=\"\",\"\",'1. Ordersheet'!M1138)","v":""},null,null,{"$f":"IF('1. Ordersheet'!AR1138=\"\",\"\",'1. Ordersheet'!AR1138)","v":""},{"$f":"IF('1. Ordersheet'!AE1138=\"\",\"\",'1. Ordersheet'!AE1138)","v":""}]
[{"$f":"IF('1. Ordersheet'!B1139=\"\",\"\",'1. Ordersheet'!B1139)","v":""},{"$f":"IF('1. Ordersheet'!I1139=\"\",\"\",'1. Ordersheet'!I1139)","v":""},{"$f":"IF('1. Ordersheet'!J1139=\"\",\"\",'1. Ordersheet'!J1139)","v":""},{"$f":"IF('1. Ordersheet'!K1139=\"\",\"\",'1. Ordersheet'!K1139)","v":""},{"$f":"IF('1. Ordersheet'!M1139=\"\",\"\",'1. Ordersheet'!M1139)","v":""},null,null,{"$f":"IF('1. Ordersheet'!AR1139=\"\",\"\",'1. Ordersheet'!AR1139)","v":""},{"$f":"IF('1. Ordersheet'!AE1139=\"\",\"\",'1. Ordersheet'!AE1139)","v":""}]
[{"$f":"IF('1. Ordersheet'!B1140=\"\",\"\",'1. Ordersheet'!B1140)","v":""},{"$f":"IF('1. Ordersheet'!I1140=\"\",\"\",'1. Ordersheet'!I1140)","v":""},{"$f":"IF('1. Ordersheet'!J1140=\"\",\"\",'1. Ordersheet'!J1140)","v":""},{"$f":"IF('1. Ordersheet'!K1140=\"\",\"\",'1. Ordersheet'!K1140)","v":""},{"$f":"IF('1. Ordersheet'!M1140=\"\",\"\",'1. Ordersheet'!M1140)","v":""},null,null,{"$f":"IF('1. Ordersheet'!AR1140=\"\",\"\",'1. Ordersheet'!AR1140)","v":""},{"$f":"IF('1. Ordersheet'!AE1140=\"\",\"\",'1. Ordersheet'!AE1140)","v":""}]
[{"$f":"IF('1. Ordersheet'!B1141=\"\",\"\",'1. Ordersheet'!B1141)","v":""},{"$f":"IF('1. Ordersheet'!I1141=\"\",\"\",'1. Ordersheet'!I1141)","v":""},{"$f":"IF('1. Ordersheet'!J1141=\"\",\"\",'1. Ordersheet'!J1141)","v":""},{"$f":"IF('1. Ordersheet'!K1141=\"\",\"\",'1. Ordersheet'!K1141)","v":""},{"$f":"IF('1. Ordersheet'!M1141=\"\",\"\",'1. Ordersheet'!M1141)","v":""},null,null,{"$f":"IF('1. Ordersheet'!AR1141=\"\",\"\",'1. Ordersheet'!AR1141)","v":""},{"$f":"IF('1. Ordersheet'!AE1141=\"\",\"\",'1. Ordersheet'!AE1141)","v":""}]
[{"$f":"IF('1. Ordersheet'!B1142=\"\",\"\",'1. Ordersheet'!B1142)","v":""},{"$f":"IF('1. Ordersheet'!I1142=\"\",\"\",'1. Ordersheet'!I1142)","v":""},{"$f":"IF('1. Ordersheet'!J1142=\"\",\"\",'1. Ordersheet'!J1142)","v":""},{"$f":"IF('1. Ordersheet'!K1142=\"\",\"\",'1. Ordersheet'!K1142)","v":""},{"$f":"IF('1. Ordersheet'!M1142=\"\",\"\",'1. Ordersheet'!M1142)","v":""},null,null,{"$f":"IF('1. Ordersheet'!AR1142=\"\",\"\",'1. Ordersheet'!AR1142)","v":""},{"$f":"IF('1. Ordersheet'!AE1142=\"\",\"\",'1. Ordersheet'!AE1142)","v":""}]
[{"$f":"IF('1. Ordersheet'!B1143=\"\",\"\",'1. Ordersheet'!B1143)","v":""},{"$f":"IF('1. Ordersheet'!I1143=\"\",\"\",'1. Ordersheet'!I1143)","v":""},{"$f":"IF('1. Ordersheet'!J1143=\"\",\"\",'1. Ordersheet'!J1143)","v":""},{"$f":"IF('1. Ordersheet'!K1143=\"\",\"\",'1. Ordersheet'!K1143)","v":""},{"$f":"IF('1. Ordersheet'!M1143=\"\",\"\",'1. Ordersheet'!M1143)","v":""},null,null,{"$f":"IF('1. Ordersheet'!AR1143=\"\",\"\",'1. Ordersheet'!AR1143)","v":""},{"$f":"IF('1. Ordersheet'!AE1143=\"\",\"\",'1. Ordersheet'!AE1143)","v":""}]
[{"$f":"IF('1. Ordersheet'!B1144=\"\",\"\",'1. Ordersheet'!B1144)","v":""},{"$f":"IF('1. Ordersheet'!I1144=\"\",\"\",'1. Ordersheet'!I1144)","v":""},{"$f":"IF('1. Ordersheet'!J1144=\"\",\"\",'1. Ordersheet'!J1144)","v":""},{"$f":"IF('1. Ordersheet'!K1144=\"\",\"\",'1. Ordersheet'!K1144)","v":""},{"$f":"IF('1. Ordersheet'!M1144=\"\",\"\",'1. Ordersheet'!M1144)","v":""},null,null,{"$f":"IF('1. Ordersheet'!AR1144=\"\",\"\",'1. Ordersheet'!AR1144)","v":""},{"$f":"IF('1. Ordersheet'!AE1144=\"\",\"\",'1. Ordersheet'!AE1144)","v":""}]
[{"$f":"IF('1. Ordersheet'!B1145=\"\",\"\",'1. Ordersheet'!B1145)","v":""},{"$f":"IF('1. Ordersheet'!I1145=\"\",\"\",'1. Ordersheet'!I1145)","v":""},{"$f":"IF('1. Ordersheet'!J1145=\"\",\"\",'1. Ordersheet'!J1145)","v":""},{"$f":"IF('1. Ordersheet'!K1145=\"\",\"\",'1. Ordersheet'!K1145)","v":""},{"$f":"IF('1. Ordersheet'!M1145=\"\",\"\",'1. Ordersheet'!M1145)","v":""},null,null,{"$f":"IF('1. Ordersheet'!AR1145=\"\",\"\",'1. Ordersheet'!AR1145)","v":""},{"$f":"IF('1. Ordersheet'!AE1145=\"\",\"\",'1. Ordersheet'!AE1145)","v":""}]
[{"$f":"IF('1. Ordersheet'!B1146=\"\",\"\",'1. Ordersheet'!B1146)","v":""},{"$f":"IF('1. Ordersheet'!I1146=\"\",\"\",'1. Ordersheet'!I1146)","v":""},{"$f":"IF('1. Ordersheet'!J1146=\"\",\"\",'1. Ordersheet'!J1146)","v":""},{"$f":"IF('1. Ordersheet'!K1146=\"\",\"\",'1. Ordersheet'!K1146)","v":""},{"$f":"IF('1. Ordersheet'!M1146=\"\",\"\",'1. Ordersheet'!M1146)","v":""},null,null,{"$f":"IF('1. Ordersheet'!AR1146=\"\",\"\",'1. Ordersheet'!AR1146)","v":""},{"$f":"IF('1. Ordersheet'!AE1146=\"\",\"\",'1. Ordersheet'!AE1146)","v":""}]
[{"$f":"IF('1. Ordersheet'!B1147=\"\",\"\",'1. Ordersheet'!B1147)","v":""},{"$f":"IF('1. Ordersheet'!I1147=\"\",\"\",'1. Ordersheet'!I1147)","v":""},{"$f":"IF('1. Ordersheet'!J1147=\"\",\"\",'1. Ordersheet'!J1147)","v":""},{"$f":"IF('1. Ordersheet'!K1147=\"\",\"\",'1. Ordersheet'!K1147)","v":""},{"$f":"IF('1. Ordersheet'!M1147=\"\",\"\",'1. Ordersheet'!M1147)","v":""},null,null,{"$f":"IF('1. Ordersheet'!AR1147=\"\",\"\",'1. Ordersheet'!AR1147)","v":""},{"$f":"IF('1. Ordersheet'!AE1147=\"\",\"\",'1. Ordersheet'!AE1147)","v":""}]
[{"$f":"IF('1. Ordersheet'!B1148=\"\",\"\",'1. Ordersheet'!B1148)","v":""},{"$f":"IF('1. Ordersheet'!I1148=\"\",\"\",'1. Ordersheet'!I1148)","v":""},{"$f":"IF('1. Ordersheet'!J1148=\"\",\"\",'1. Ordersheet'!J1148)","v":""},{"$f":"IF('1. Ordersheet'!K1148=\"\",\"\",'1. Ordersheet'!K1148)","v":""},{"$f":"IF('1. Ordersheet'!M1148=\"\",\"\",'1. Ordersheet'!M1148)","v":""},null,null,{"$f":"IF('1. Ordersheet'!AR1148=\"\",\"\",'1. Ordersheet'!AR1148)","v":""},{"$f":"IF('1. Ordersheet'!AE1148=\"\",\"\",'1. Ordersheet'!AE1148)","v":""}]
[{"$f":"IF('1. Ordersheet'!B1149=\"\",\"\",'1. Ordersheet'!B1149)","v":""},{"$f":"IF('1. Ordersheet'!I1149=\"\",\"\",'1. Ordersheet'!I1149)","v":""},{"$f":"IF('1. Ordersheet'!J1149=\"\",\"\",'1. Ordersheet'!J1149)","v":""},{"$f":"IF('1. Ordersheet'!K1149=\"\",\"\",'1. Ordersheet'!K1149)","v":""},{"$f":"IF('1. Ordersheet'!M1149=\"\",\"\",'1. Ordersheet'!M1149)","v":""},null,null,{"$f":"IF('1. Ordersheet'!AR1149=\"\",\"\",'1. Ordersheet'!AR1149)","v":""},{"$f":"IF('1. Ordersheet'!AE1149=\"\",\"\",'1. Ordersheet'!AE1149)","v":""}]
[{"$f":"IF('1. Ordersheet'!B1150=\"\",\"\",'1. Ordersheet'!B1150)","v":""},{"$f":"IF('1. Ordersheet'!I1150=\"\",\"\",'1. Ordersheet'!I1150)","v":""},{"$f":"IF('1. Ordersheet'!J1150=\"\",\"\",'1. Ordersheet'!J1150)","v":""},{"$f":"IF('1. Ordersheet'!K1150=\"\",\"\",'1. Ordersheet'!K1150)","v":""},{"$f":"IF('1. Ordersheet'!M1150=\"\",\"\",'1. Ordersheet'!M1150)","v":""},null,null,{"$f":"IF('1. Ordersheet'!AR1150=\"\",\"\",'1. Ordersheet'!AR1150)","v":""},{"$f":"IF('1. Ordersheet'!AE1150=\"\",\"\",'1. Ordersheet'!AE1150)","v":""}]
[{"$f":"IF('1. Ordersheet'!B1151=\"\",\"\",'1. Ordersheet'!B1151)","v":""},{"$f":"IF('1. Ordersheet'!I1151=\"\",\"\",'1. Ordersheet'!I1151)","v":""},{"$f":"IF('1. Ordersheet'!J1151=\"\",\"\",'1. Ordersheet'!J1151)","v":""},{"$f":"IF('1. Ordersheet'!K1151=\"\",\"\",'1. Ordersheet'!K1151)","v":""},{"$f":"IF('1. Ordersheet'!M1151=\"\",\"\",'1. Ordersheet'!M1151)","v":""},null,null,{"$f":"IF('1. Ordersheet'!AR1151=\"\",\"\",'1. Ordersheet'!AR1151)","v":""},{"$f":"IF('1. Ordersheet'!AE1151=\"\",\"\",'1. Ordersheet'!AE1151)","v":""}]
[{"$f":"IF('1. Ordersheet'!B1152=\"\",\"\",'1. Ordersheet'!B1152)","v":""},{"$f":"IF('1. Ordersheet'!I1152=\"\",\"\",'1. Ordersheet'!I1152)","v":""},{"$f":"IF('1. Ordersheet'!J1152=\"\",\"\",'1. Ordersheet'!J1152)","v":""},{"$f":"IF('1. Ordersheet'!K1152=\"\",\"\",'1. Ordersheet'!K1152)","v":""},{"$f":"IF('1. Ordersheet'!M1152=\"\",\"\",'1. Ordersheet'!M1152)","v":""},null,null,{"$f":"IF('1. Ordersheet'!AR1152=\"\",\"\",'1. Ordersheet'!AR1152)","v":""},{"$f":"IF('1. Ordersheet'!AE1152=\"\",\"\",'1. Ordersheet'!AE1152)","v":""}]
[{"$f":"IF('1. Ordersheet'!B1153=\"\",\"\",'1. Ordersheet'!B1153)","v":""},{"$f":"IF('1. Ordersheet'!I1153=\"\",\"\",'1. Ordersheet'!I1153)","v":""},{"$f":"IF('1. Ordersheet'!J1153=\"\",\"\",'1. Ordersheet'!J1153)","v":""},{"$f":"IF('1. Ordersheet'!K1153=\"\",\"\",'1. Ordersheet'!K1153)","v":""},{"$f":"IF('1. Ordersheet'!M1153=\"\",\"\",'1. Ordersheet'!M1153)","v":""},null,null,{"$f":"IF('1. Ordersheet'!AR1153=\"\",\"\",'1. Ordersheet'!AR1153)","v":""},{"$f":"IF('1. Ordersheet'!AE1153=\"\",\"\",'1. Ordersheet'!AE1153)","v":""}]
[{"$f":"IF('1. Ordersheet'!B1154=\"\",\"\",'1. Ordersheet'!B1154)","v":""},{"$f":"IF('1. Ordersheet'!I1154=\"\",\"\",'1. Ordersheet'!I1154)","v":""},{"$f":"IF('1. Ordersheet'!J1154=\"\",\"\",'1. Ordersheet'!J1154)","v":""},{"$f":"IF('1. Ordersheet'!K1154=\"\",\"\",'1. Ordersheet'!K1154)","v":""},{"$f":"IF('1. Ordersheet'!M1154=\"\",\"\",'1. Ordersheet'!M1154)","v":""},null,null,{"$f":"IF('1. Ordersheet'!AR1154=\"\",\"\",'1. Ordersheet'!AR1154)","v":""},{"$f":"IF('1. Ordersheet'!AE1154=\"\",\"\",'1. Ordersheet'!AE1154)","v":""}]
[{"$f":"IF('1. Ordersheet'!B1155=\"\",\"\",'1. Ordersheet'!B1155)","v":""},{"$f":"IF('1. Ordersheet'!I1155=\"\",\"\",'1. Ordersheet'!I1155)","v":""},{"$f":"IF('1. Ordersheet'!J1155=\"\",\"\",'1. Ordersheet'!J1155)","v":""},{"$f":"IF('1. Ordersheet'!K1155=\"\",\"\",'1. Ordersheet'!K1155)","v":""},{"$f":"IF('1. Ordersheet'!M1155=\"\",\"\",'1. Ordersheet'!M1155)","v":""},null,null,{"$f":"IF('1. Ordersheet'!AR1155=\"\",\"\",'1. Ordersheet'!AR1155)","v":""},{"$f":"IF('1. Ordersheet'!AE1155=\"\",\"\",'1. Ordersheet'!AE1155)","v":""}]
[{"$f":"IF('1. Ordersheet'!B1156=\"\",\"\",'1. Ordersheet'!B1156)","v":""},{"$f":"IF('1. Ordersheet'!I1156=\"\",\"\",'1. Ordersheet'!I1156)","v":""},{"$f":"IF('1. Ordersheet'!J1156=\"\",\"\",'1. Ordersheet'!J1156)","v":""},{"$f":"IF('1. Ordersheet'!K1156=\"\",\"\",'1. Ordersheet'!K1156)","v":""},{"$f":"IF('1. Ordersheet'!M1156=\"\",\"\",'1. Ordersheet'!M1156)","v":""},null,null,{"$f":"IF('1. Ordersheet'!AR1156=\"\",\"\",'1. Ordersheet'!AR1156)","v":""},{"$f":"IF('1. Ordersheet'!AE1156=\"\",\"\",'1. Ordersheet'!AE1156)","v":""}]
[{"$f":"IF('1. Ordersheet'!B1157=\"\",\"\",'1. Ordersheet'!B1157)","v":""},{"$f":"IF('1. Ordersheet'!I1157=\"\",\"\",'1. Ordersheet'!I1157)","v":""},{"$f":"IF('1. Ordersheet'!J1157=\"\",\"\",'1. Ordersheet'!J1157)","v":""},{"$f":"IF('1. Ordersheet'!K1157=\"\",\"\",'1. Ordersheet'!K1157)","v":""},{"$f":"IF('1. Ordersheet'!M1157=\"\",\"\",'1. Ordersheet'!M1157)","v":""},null,null,{"$f":"IF('1. Ordersheet'!AR1157=\"\",\"\",'1. Ordersheet'!AR1157)","v":""},{"$f":"IF('1. Ordersheet'!AE1157=\"\",\"\",'1. Ordersheet'!AE1157)","v":""}]
[{"$f":"IF('1. Ordersheet'!B1158=\"\",\"\",'1. Ordersheet'!B1158)","v":""},{"$f":"IF('1. Ordersheet'!I1158=\"\",\"\",'1. Ordersheet'!I1158)","v":""},{"$f":"IF('1. Ordersheet'!J1158=\"\",\"\",'1. Ordersheet'!J1158)","v":""},{"$f":"IF('1. Ordersheet'!K1158=\"\",\"\",'1. Ordersheet'!K1158)","v":""},{"$f":"IF('1. Ordersheet'!M1158=\"\",\"\",'1. Ordersheet'!M1158)","v":""},null,null,{"$f":"IF('1. Ordersheet'!AR1158=\"\",\"\",'1. Ordersheet'!AR1158)","v":""},{"$f":"IF('1. Ordersheet'!AE1158=\"\",\"\",'1. Ordersheet'!AE1158)","v":""}]
[{"$f":"IF('1. Ordersheet'!B1159=\"\",\"\",'1. Ordersheet'!B1159)","v":""},{"$f":"IF('1. Ordersheet'!I1159=\"\",\"\",'1. Ordersheet'!I1159)","v":""},{"$f":"IF('1. Ordersheet'!J1159=\"\",\"\",'1. Ordersheet'!J1159)","v":""},{"$f":"IF('1. Ordersheet'!K1159=\"\",\"\",'1. Ordersheet'!K1159)","v":""},{"$f":"IF('1. Ordersheet'!M1159=\"\",\"\",'1. Ordersheet'!M1159)","v":""},null,null,{"$f":"IF('1. Ordersheet'!AR1159=\"\",\"\",'1. Ordersheet'!AR1159)","v":""},{"$f":"IF('1. Ordersheet'!AE1159=\"\",\"\",'1. Ordersheet'!AE1159)","v":""}]
[{"$f":"IF('1. Ordersheet'!B1160=\"\",\"\",'1. Ordersheet'!B1160)","v":""},{"$f":"IF('1. Ordersheet'!I1160=\"\",\"\",'1. Ordersheet'!I1160)","v":""},{"$f":"IF('1. Ordersheet'!J1160=\"\",\"\",'1. Ordersheet'!J1160)","v":""},{"$f":"IF('1. Ordersheet'!K1160=\"\",\"\",'1. Ordersheet'!K1160)","v":""},{"$f":"IF('1. Ordersheet'!M1160=\"\",\"\",'1. Ordersheet'!M1160)","v":""},null,null,{"$f":"IF('1. Ordersheet'!AR1160=\"\",\"\",'1. Ordersheet'!AR1160)","v":""},{"$f":"IF('1. Ordersheet'!AE1160=\"\",\"\",'1. Ordersheet'!AE1160)","v":""}]
[{"$f":"IF('1. Ordersheet'!B1161=\"\",\"\",'1. Ordersheet'!B1161)","v":""},{"$f":"IF('1. Ordersheet'!I1161=\"\",\"\",'1. Ordersheet'!I1161)","v":""},{"$f":"IF('1. Ordersheet'!J1161=\"\",\"\",'1. Ordersheet'!J1161)","v":""},{"$f":"IF('1. Ordersheet'!K1161=\"\",\"\",'1. Ordersheet'!K1161)","v":""},{"$f":"IF('1. Ordersheet'!M1161=\"\",\"\",'1. Ordersheet'!M1161)","v":""},null,null,{"$f":"IF('1. Ordersheet'!AR1161=\"\",\"\",'1. Ordersheet'!AR1161)","v":""},{"$f":"IF('1. Ordersheet'!AE1161=\"\",\"\",'1. Ordersheet'!AE1161)","v":""}]
[{"$f":"IF('1. Ordersheet'!B1162=\"\",\"\",'1. Ordersheet'!B1162)","v":""},{"$f":"IF('1. Ordersheet'!I1162=\"\",\"\",'1. Ordersheet'!I1162)","v":""},{"$f":"IF('1. Ordersheet'!J1162=\"\",\"\",'1. Ordersheet'!J1162)","v":""},{"$f":"IF('1. Ordersheet'!K1162=\"\",\"\",'1. Ordersheet'!K1162)","v":""},{"$f":"IF('1. Ordersheet'!M1162=\"\",\"\",'1. Ordersheet'!M1162)","v":""},null,null,{"$f":"IF('1. Ordersheet'!AR1162=\"\",\"\",'1. Ordersheet'!AR1162)","v":""},{"$f":"IF('1. Ordersheet'!AE1162=\"\",\"\",'1. Ordersheet'!AE1162)","v":""}]
[{"$f":"IF('1. Ordersheet'!B1163=\"\",\"\",'1. Ordersheet'!B1163)","v":""},{"$f":"IF('1. Ordersheet'!I1163=\"\",\"\",'1. Ordersheet'!I1163)","v":""},{"$f":"IF('1. Ordersheet'!J1163=\"\",\"\",'1. Ordersheet'!J1163)","v":""},{"$f":"IF('1. Ordersheet'!K1163=\"\",\"\",'1. Ordersheet'!K1163)","v":""},{"$f":"IF('1. Ordersheet'!M1163=\"\",\"\",'1. Ordersheet'!M1163)","v":""},null,null,{"$f":"IF('1. Ordersheet'!AR1163=\"\",\"\",'1. Ordersheet'!AR1163)","v":""},{"$f":"IF('1. Ordersheet'!AE1163=\"\",\"\",'1. Ordersheet'!AE1163)","v":""}]
[{"$f":"IF('1. Ordersheet'!B1164=\"\",\"\",'1. Ordersheet'!B1164)","v":""},{"$f":"IF('1. Ordersheet'!I1164=\"\",\"\",'1. Ordersheet'!I1164)","v":""},{"$f":"IF('1. Ordersheet'!J1164=\"\",\"\",'1. Ordersheet'!J1164)","v":""},{"$f":"IF('1. Ordersheet'!K1164=\"\",\"\",'1. Ordersheet'!K1164)","v":""},{"$f":"IF('1. Ordersheet'!M1164=\"\",\"\",'1. Ordersheet'!M1164)","v":""},null,null,{"$f":"IF('1. Ordersheet'!AR1164=\"\",\"\",'1. Ordersheet'!AR1164)","v":""},{"$f":"IF('1. Ordersheet'!AE1164=\"\",\"\",'1. Ordersheet'!AE1164)","v":""}]
[{"$f":"IF('1. Ordersheet'!B1165=\"\",\"\",'1. Ordersheet'!B1165)","v":""},{"$f":"IF('1. Ordersheet'!I1165=\"\",\"\",'1. Ordersheet'!I1165)","v":""},{"$f":"IF('1. Ordersheet'!J1165=\"\",\"\",'1. Ordersheet'!J1165)","v":""},{"$f":"IF('1. Ordersheet'!K1165=\"\",\"\",'1. Ordersheet'!K1165)","v":""},{"$f":"IF('1. Ordersheet'!M1165=\"\",\"\",'1. Ordersheet'!M1165)","v":""},null,null,{"$f":"IF('1. Ordersheet'!AR1165=\"\",\"\",'1. Ordersheet'!AR1165)","v":""},{"$f":"IF('1. Ordersheet'!AE1165=\"\",\"\",'1. Ordersheet'!AE1165)","v":""}]
[{"$f":"IF('1. Ordersheet'!B1166=\"\",\"\",'1. Ordersheet'!B1166)","v":""},{"$f":"IF('1. Ordersheet'!I1166=\"\",\"\",'1. Ordersheet'!I1166)","v":""},{"$f":"IF('1. Ordersheet'!J1166=\"\",\"\",'1. Ordersheet'!J1166)","v":""},{"$f":"IF('1. Ordersheet'!K1166=\"\",\"\",'1. Ordersheet'!K1166)","v":""},{"$f":"IF('1. Ordersheet'!M1166=\"\",\"\",'1. Ordersheet'!M1166)","v":""},null,null,{"$f":"IF('1. Ordersheet'!AR1166=\"\",\"\",'1. Ordersheet'!AR1166)","v":""},{"$f":"IF('1. Ordersheet'!AE1166=\"\",\"\",'1. Ordersheet'!AE1166)","v":""}]
[{"$f":"IF('1. Ordersheet'!B1167=\"\",\"\",'1. Ordersheet'!B1167)","v":""},{"$f":"IF('1. Ordersheet'!I1167=\"\",\"\",'1. Ordersheet'!I1167)","v":""},{"$f":"IF('1. Ordersheet'!J1167=\"\",\"\",'1. Ordersheet'!J1167)","v":""},{"$f":"IF('1. Ordersheet'!K1167=\"\",\"\",'1. Ordersheet'!K1167)","v":""},{"$f":"IF('1. Ordersheet'!M1167=\"\",\"\",'1. Ordersheet'!M1167)","v":""},null,null,{"$f":"IF('1. Ordersheet'!AR1167=\"\",\"\",'1. Ordersheet'!AR1167)","v":""},{"$f":"IF('1. Ordersheet'!AE1167=\"\",\"\",'1. Ordersheet'!AE1167)","v":""}]
[{"$f":"IF('1. Ordersheet'!B1168=\"\",\"\",'1. Ordersheet'!B1168)","v":""},{"$f":"IF('1. Ordersheet'!I1168=\"\",\"\",'1. Ordersheet'!I1168)","v":""},{"$f":"IF('1. Ordersheet'!J1168=\"\",\"\",'1. Ordersheet'!J1168)","v":""},{"$f":"IF('1. Ordersheet'!K1168=\"\",\"\",'1. Ordersheet'!K1168)","v":""},{"$f":"IF('1. Ordersheet'!M1168=\"\",\"\",'1. Ordersheet'!M1168)","v":""},null,null,{"$f":"IF('1. Ordersheet'!AR1168=\"\",\"\",'1. Ordersheet'!AR1168)","v":""},{"$f":"IF('1. Ordersheet'!AE1168=\"\",\"\",'1. Ordersheet'!AE1168)","v":""}]
[{"$f":"IF('1. Ordersheet'!B1169=\"\",\"\",'1. Ordersheet'!B1169)","v":""},{"$f":"IF('1. Ordersheet'!I1169=\"\",\"\",'1. Ordersheet'!I1169)","v":""},{"$f":"IF('1. Ordersheet'!J1169=\"\",\"\",'1. Ordersheet'!J1169)","v":""},{"$f":"IF('1. Ordersheet'!K1169=\"\",\"\",'1. Ordersheet'!K1169)","v":""},{"$f":"IF('1. Ordersheet'!M1169=\"\",\"\",'1. Ordersheet'!M1169)","v":""},null,null,{"$f":"IF('1. Ordersheet'!AR1169=\"\",\"\",'1. Ordersheet'!AR1169)","v":""},{"$f":"IF('1. Ordersheet'!AE1169=\"\",\"\",'1. Ordersheet'!AE1169)","v":""}]
[{"$f":"IF('1. Ordersheet'!B1170=\"\",\"\",'1. Ordersheet'!B1170)","v":""},{"$f":"IF('1. Ordersheet'!I1170=\"\",\"\",'1. Ordersheet'!I1170)","v":""},{"$f":"IF('1. Ordersheet'!J1170=\"\",\"\",'1. Ordersheet'!J1170)","v":""},{"$f":"IF('1. Ordersheet'!K1170=\"\",\"\",'1. Ordersheet'!K1170)","v":""},{"$f":"IF('1. Ordersheet'!M1170=\"\",\"\",'1. Ordersheet'!M1170)","v":""},null,null,{"$f":"IF('1. Ordersheet'!AR1170=\"\",\"\",'1. Ordersheet'!AR1170)","v":""},{"$f":"IF('1. Ordersheet'!AE1170=\"\",\"\",'1. Ordersheet'!AE1170)","v":""}]
[{"$f":"IF('1. Ordersheet'!B1171=\"\",\"\",'1. Ordersheet'!B1171)","v":""},{"$f":"IF('1. Ordersheet'!I1171=\"\",\"\",'1. Ordersheet'!I1171)","v":""},{"$f":"IF('1. Ordersheet'!J1171=\"\",\"\",'1. Ordersheet'!J1171)","v":""},{"$f":"IF('1. Ordersheet'!K1171=\"\",\"\",'1. Ordersheet'!K1171)","v":""},{"$f":"IF('1. Ordersheet'!M1171=\"\",\"\",'1. Ordersheet'!M1171)","v":""},null,null,{"$f":"IF('1. Ordersheet'!AR1171=\"\",\"\",'1. Ordersheet'!AR1171)","v":""},{"$f":"IF('1. Ordersheet'!AE1171=\"\",\"\",'1. Ordersheet'!AE1171)","v":""}]
[{"$f":"IF('1. Ordersheet'!B1172=\"\",\"\",'1. Ordersheet'!B1172)","v":""},{"$f":"IF('1. Ordersheet'!I1172=\"\",\"\",'1. Ordersheet'!I1172)","v":""},{"$f":"IF('1. Ordersheet'!J1172=\"\",\"\",'1. Ordersheet'!J1172)","v":""},{"$f":"IF('1. Ordersheet'!K1172=\"\",\"\",'1. Ordersheet'!K1172)","v":""},{"$f":"IF('1. Ordersheet'!M1172=\"\",\"\",'1. Ordersheet'!M1172)","v":""},null,null,{"$f":"IF('1. Ordersheet'!AR1172=\"\",\"\",'1. Ordersheet'!AR1172)","v":""},{"$f":"IF('1. Ordersheet'!AE1172=\"\",\"\",'1. Ordersheet'!AE1172)","v":""}]
[{"$f":"IF('1. Ordersheet'!B1173=\"\",\"\",'1. Ordersheet'!B1173)","v":""},{"$f":"IF('1. Ordersheet'!I1173=\"\",\"\",'1. Ordersheet'!I1173)","v":""},{"$f":"IF('1. Ordersheet'!J1173=\"\",\"\",'1. Ordersheet'!J1173)","v":""},{"$f":"IF('1. Ordersheet'!K1173=\"\",\"\",'1. Ordersheet'!K1173)","v":""},{"$f":"IF('1. Ordersheet'!M1173=\"\",\"\",'1. Ordersheet'!M1173)","v":""},null,null,{"$f":"IF('1. Ordersheet'!AR1173=\"\",\"\",'1. Ordersheet'!AR1173)","v":""},{"$f":"IF('1. Ordersheet'!AE1173=\"\",\"\",'1. Ordersheet'!AE1173)","v":""}]
[{"$f":"IF('1. Ordersheet'!B1174=\"\",\"\",'1. Ordersheet'!B1174)","v":""},{"$f":"IF('1. Ordersheet'!I1174=\"\",\"\",'1. Ordersheet'!I1174)","v":""},{"$f":"IF('1. Ordersheet'!J1174=\"\",\"\",'1. Ordersheet'!J1174)","v":""},{"$f":"IF('1. Ordersheet'!K1174=\"\",\"\",'1. Ordersheet'!K1174)","v":""},{"$f":"IF('1. Ordersheet'!M1174=\"\",\"\",'1. Ordersheet'!M1174)","v":""},null,null,{"$f":"IF('1. Ordersheet'!AR1174=\"\",\"\",'1. Ordersheet'!AR1174)","v":""},{"$f":"IF('1. Ordersheet'!AE1174=\"\",\"\",'1. Ordersheet'!AE1174)","v":""}]
[{"$f":"IF('1. Ordersheet'!B1175=\"\",\"\",'1. Ordersheet'!B1175)","v":""},{"$f":"IF('1. Ordersheet'!I1175=\"\",\"\",'1. Ordersheet'!I1175)","v":""},{"$f":"IF('1. Ordersheet'!J1175=\"\",\"\",'1. Ordersheet'!J1175)","v":""},{"$f":"IF('1. Ordersheet'!K1175=\"\",\"\",'1. Ordersheet'!K1175)","v":""},{"$f":"IF('1. Ordersheet'!M1175=\"\",\"\",'1. Ordersheet'!M1175)","v":""},null,null,{"$f":"IF('1. Ordersheet'!AR1175=\"\",\"\",'1. Ordersheet'!AR1175)","v":""},{"$f":"IF('1. Ordersheet'!AE1175=\"\",\"\",'1. Ordersheet'!AE1175)","v":""}]
[{"$f":"IF('1. Ordersheet'!B1176=\"\",\"\",'1. Ordersheet'!B1176)","v":""},{"$f":"IF('1. Ordersheet'!I1176=\"\",\"\",'1. Ordersheet'!I1176)","v":""},{"$f":"IF('1. Ordersheet'!J1176=\"\",\"\",'1. Ordersheet'!J1176)","v":""},{"$f":"IF('1. Ordersheet'!K1176=\"\",\"\",'1. Ordersheet'!K1176)","v":""},{"$f":"IF('1. Ordersheet'!M1176=\"\",\"\",'1. Ordersheet'!M1176)","v":""},null,null,{"$f":"IF('1. Ordersheet'!AR1176=\"\",\"\",'1. Ordersheet'!AR1176)","v":""},{"$f":"IF('1. Ordersheet'!AE1176=\"\",\"\",'1. Ordersheet'!AE1176)","v":""}]
[{"$f":"IF('1. Ordersheet'!B1177=\"\",\"\",'1. Ordersheet'!B1177)","v":""},{"$f":"IF('1. Ordersheet'!I1177=\"\",\"\",'1. Ordersheet'!I1177)","v":""},{"$f":"IF('1. Ordersheet'!J1177=\"\",\"\",'1. Ordersheet'!J1177)","v":""},{"$f":"IF('1. Ordersheet'!K1177=\"\",\"\",'1. Ordersheet'!K1177)","v":""},{"$f":"IF('1. Ordersheet'!M1177=\"\",\"\",'1. Ordersheet'!M1177)","v":""},null,null,{"$f":"IF('1. Ordersheet'!AR1177=\"\",\"\",'1. Ordersheet'!AR1177)","v":""},{"$f":"IF('1. Ordersheet'!AE1177=\"\",\"\",'1. Ordersheet'!AE1177)","v":""}]
[{"$f":"IF('1. Ordersheet'!B1178=\"\",\"\",'1. Ordersheet'!B1178)","v":""},{"$f":"IF('1. Ordersheet'!I1178=\"\",\"\",'1. Ordersheet'!I1178)","v":""},{"$f":"IF('1. Ordersheet'!J1178=\"\",\"\",'1. Ordersheet'!J1178)","v":""},{"$f":"IF('1. Ordersheet'!K1178=\"\",\"\",'1. Ordersheet'!K1178)","v":""},{"$f":"IF('1. Ordersheet'!M1178=\"\",\"\",'1. Ordersheet'!M1178)","v":""},null,null,{"$f":"IF('1. Ordersheet'!AR1178=\"\",\"\",'1. Ordersheet'!AR1178)","v":""},{"$f":"IF('1. Ordersheet'!AE1178=\"\",\"\",'1. Ordersheet'!AE1178)","v":""}]
[{"$f":"IF('1. Ordersheet'!B1179=\"\",\"\",'1. Ordersheet'!B1179)","v":""},{"$f":"IF('1. Ordersheet'!I1179=\"\",\"\",'1. Ordersheet'!I1179)","v":""},{"$f":"IF('1. Ordersheet'!J1179=\"\",\"\",'1. Ordersheet'!J1179)","v":""},{"$f":"IF('1. Ordersheet'!K1179=\"\",\"\",'1. Ordersheet'!K1179)","v":""},{"$f":"IF('1. Ordersheet'!M1179=\"\",\"\",'1. Ordersheet'!M1179)","v":""},null,null,{"$f":"IF('1. Ordersheet'!AR1179=\"\",\"\",'1. Ordersheet'!AR1179)","v":""},{"$f":"IF('1. Ordersheet'!AE1179=\"\",\"\",'1. Ordersheet'!AE1179)","v":""}]
[{"$f":"IF('1. Ordersheet'!B1180=\"\",\"\",'1. Ordersheet'!B1180)","v":""},{"$f":"IF('1. Ordersheet'!I1180=\"\",\"\",'1. Ordersheet'!I1180)","v":""},{"$f":"IF('1. Ordersheet'!J1180=\"\",\"\",'1. Ordersheet'!J1180)","v":""},{"$f":"IF('1. Ordersheet'!K1180=\"\",\"\",'1. Ordersheet'!K1180)","v":""},{"$f":"IF('1. Ordersheet'!M1180=\"\",\"\",'1. Ordersheet'!M1180)","v":""},null,null,{"$f":"IF('1. Ordersheet'!AR1180=\"\",\"\",'1. Ordersheet'!AR1180)","v":""},{"$f":"IF('1. Ordersheet'!AE1180=\"\",\"\",'1. Ordersheet'!AE1180)","v":""}]
[{"$f":"IF('1. Ordersheet'!B1181=\"\",\"\",'1. Ordersheet'!B1181)","v":""},{"$f":"IF('1. Ordersheet'!I1181=\"\",\"\",'1. Ordersheet'!I1181)","v":""},{"$f":"IF('1. Ordersheet'!J1181=\"\",\"\",'1. Ordersheet'!J1181)","v":""},{"$f":"IF('1. Ordersheet'!K1181=\"\",\"\",'1. Ordersheet'!K1181)","v":""},{"$f":"IF('1. Ordersheet'!M1181=\"\",\"\",'1. Ordersheet'!M1181)","v":""},null,null,{"$f":"IF('1. Ordersheet'!AR1181=\"\",\"\",'1. Ordersheet'!AR1181)","v":""},{"$f":"IF('1. Ordersheet'!AE1181=\"\",\"\",'1. Ordersheet'!AE1181)","v":""}]
[{"$f":"IF('1. Ordersheet'!B1182=\"\",\"\",'1. Ordersheet'!B1182)","v":""},{"$f":"IF('1. Ordersheet'!I1182=\"\",\"\",'1. Ordersheet'!I1182)","v":""},{"$f":"IF('1. Ordersheet'!J1182=\"\",\"\",'1. Ordersheet'!J1182)","v":""},{"$f":"IF('1. Ordersheet'!K1182=\"\",\"\",'1. Ordersheet'!K1182)","v":""},{"$f":"IF('1. Ordersheet'!M1182=\"\",\"\",'1. Ordersheet'!M1182)","v":""},null,null,{"$f":"IF('1. Ordersheet'!AR1182=\"\",\"\",'1. Ordersheet'!AR1182)","v":""},{"$f":"IF('1. Ordersheet'!AE1182=\"\",\"\",'1. Ordersheet'!AE1182)","v":""}]
[{"$f":"IF('1. Ordersheet'!B1183=\"\",\"\",'1. Ordersheet'!B1183)","v":""},{"$f":"IF('1. Ordersheet'!I1183=\"\",\"\",'1. Ordersheet'!I1183)","v":""},{"$f":"IF('1. Ordersheet'!J1183=\"\",\"\",'1. Ordersheet'!J1183)","v":""},{"$f":"IF('1. Ordersheet'!K1183=\"\",\"\",'1. Ordersheet'!K1183)","v":""},{"$f":"IF('1. Ordersheet'!M1183=\"\",\"\",'1. Ordersheet'!M1183)","v":""},null,null,{"$f":"IF('1. Ordersheet'!AR1183=\"\",\"\",'1. Ordersheet'!AR1183)","v":""},{"$f":"IF('1. Ordersheet'!AE1183=\"\",\"\",'1. Ordersheet'!AE1183)","v":""}]
[{"$f":"IF('1. Ordersheet'!B1184=\"\",\"\",'1. Ordersheet'!B1184)","v":""},{"$f":"IF('1. Ordersheet'!I1184=\"\",\"\",'1. Ordersheet'!I1184)","v":""},{"$f":"IF('1. Ordersheet'!J1184=\"\",\"\",'1. Ordersheet'!J1184)","v":""},{"$f":"IF('1. Ordersheet'!K1184=\"\",\"\",'1. Ordersheet'!K1184)","v":""},{"$f":"IF('1. Ordersheet'!M1184=\"\",\"\",'1. Ordersheet'!M1184)","v":""},null,null,{"$f":"IF('1. Ordersheet'!AR1184=\"\",\"\",'1. Ordersheet'!AR1184)","v":""},{"$f":"IF('1. Ordersheet'!AE1184=\"\",\"\",'1. Ordersheet'!AE1184)","v":""}]
[{"$f":"IF('1. Ordersheet'!B1185=\"\",\"\",'1. Ordersheet'!B1185)","v":""},{"$f":"IF('1. Ordersheet'!I1185=\"\",\"\",'1. Ordersheet'!I1185)","v":""},{"$f":"IF('1. Ordersheet'!J1185=\"\",\"\",'1. Ordersheet'!J1185)","v":""},{"$f":"IF('1. Ordersheet'!K1185=\"\",\"\",'1. Ordersheet'!K1185)","v":""},{"$f":"IF('1. Ordersheet'!M1185=\"\",\"\",'1. Ordersheet'!M1185)","v":""},null,null,{"$f":"IF('1. Ordersheet'!AR1185=\"\",\"\",'1. Ordersheet'!AR1185)","v":""},{"$f":"IF('1. Ordersheet'!AE1185=\"\",\"\",'1. Ordersheet'!AE1185)","v":""}]
[{"$f":"IF('1. Ordersheet'!B1186=\"\",\"\",'1. Ordersheet'!B1186)","v":""},{"$f":"IF('1. Ordersheet'!I1186=\"\",\"\",'1. Ordersheet'!I1186)","v":""},{"$f":"IF('1. Ordersheet'!J1186=\"\",\"\",'1. Ordersheet'!J1186)","v":""},{"$f":"IF('1. Ordersheet'!K1186=\"\",\"\",'1. Ordersheet'!K1186)","v":""},{"$f":"IF('1. Ordersheet'!M1186=\"\",\"\",'1. Ordersheet'!M1186)","v":""},null,null,{"$f":"IF('1. Ordersheet'!AR1186=\"\",\"\",'1. Ordersheet'!AR1186)","v":""},{"$f":"IF('1. Ordersheet'!AE1186=\"\",\"\",'1. Ordersheet'!AE1186)","v":""}]
[{"$f":"IF('1. Ordersheet'!B1187=\"\",\"\",'1. Ordersheet'!B1187)","v":""},{"$f":"IF('1. Ordersheet'!I1187=\"\",\"\",'1. Ordersheet'!I1187)","v":""},{"$f":"IF('1. Ordersheet'!J1187=\"\",\"\",'1. Ordersheet'!J1187)","v":""},{"$f":"IF('1. Ordersheet'!K1187=\"\",\"\",'1. Ordersheet'!K1187)","v":""},{"$f":"IF('1. Ordersheet'!M1187=\"\",\"\",'1. Ordersheet'!M1187)","v":""},null,null,{"$f":"IF('1. Ordersheet'!AR1187=\"\",\"\",'1. Ordersheet'!AR1187)","v":""},{"$f":"IF('1. Ordersheet'!AE1187=\"\",\"\",'1. Ordersheet'!AE1187)","v":""}]
[{"$f":"IF('1. Ordersheet'!B1188=\"\",\"\",'1. Ordersheet'!B1188)","v":""},{"$f":"IF('1. Ordersheet'!I1188=\"\",\"\",'1. Ordersheet'!I1188)","v":""},{"$f":"IF('1. Ordersheet'!J1188=\"\",\"\",'1. Ordersheet'!J1188)","v":""},{"$f":"IF('1. Ordersheet'!K1188=\"\",\"\",'1. Ordersheet'!K1188)","v":""},{"$f":"IF('1. Ordersheet'!M1188=\"\",\"\",'1. Ordersheet'!M1188)","v":""},null,null,{"$f":"IF('1. Ordersheet'!AR1188=\"\",\"\",'1. Ordersheet'!AR1188)","v":""},{"$f":"IF('1. Ordersheet'!AE1188=\"\",\"\",'1. Ordersheet'!AE1188)","v":""}]
[{"$f":"IF('1. Ordersheet'!B1189=\"\",\"\",'1. Ordersheet'!B1189)","v":""},{"$f":"IF('1. Ordersheet'!I1189=\"\",\"\",'1. Ordersheet'!I1189)","v":""},{"$f":"IF('1. Ordersheet'!J1189=\"\",\"\",'1. Ordersheet'!J1189)","v":""},{"$f":"IF('1. Ordersheet'!K1189=\"\",\"\",'1. Ordersheet'!K1189)","v":""},{"$f":"IF('1. Ordersheet'!M1189=\"\",\"\",'1. Ordersheet'!M1189)","v":""},null,null,{"$f":"IF('1. Ordersheet'!AR1189=\"\",\"\",'1. Ordersheet'!AR1189)","v":""},{"$f":"IF('1. Ordersheet'!AE1189=\"\",\"\",'1. Ordersheet'!AE1189)","v":""}]
[{"$f":"IF('1. Ordersheet'!B1190=\"\",\"\",'1. Ordersheet'!B1190)","v":""},{"$f":"IF('1. Ordersheet'!I1190=\"\",\"\",'1. Ordersheet'!I1190)","v":""},{"$f":"IF('1. Ordersheet'!J1190=\"\",\"\",'1. Ordersheet'!J1190)","v":""},{"$f":"IF('1. Ordersheet'!K1190=\"\",\"\",'1. Ordersheet'!K1190)","v":""},{"$f":"IF('1. Ordersheet'!M1190=\"\",\"\",'1. Ordersheet'!M1190)","v":""},null,null,{"$f":"IF('1. Ordersheet'!AR1190=\"\",\"\",'1. Ordersheet'!AR1190)","v":""},{"$f":"IF('1. Ordersheet'!AE1190=\"\",\"\",'1. Ordersheet'!AE1190)","v":""}]
[{"$f":"IF('1. Ordersheet'!B1191=\"\",\"\",'1. Ordersheet'!B1191)","v":""},{"$f":"IF('1. Ordersheet'!I1191=\"\",\"\",'1. Ordersheet'!I1191)","v":""},{"$f":"IF('1. Ordersheet'!J1191=\"\",\"\",'1. Ordersheet'!J1191)","v":""},{"$f":"IF('1. Ordersheet'!K1191=\"\",\"\",'1. Ordersheet'!K1191)","v":""},{"$f":"IF('1. Ordersheet'!M1191=\"\",\"\",'1. Ordersheet'!M1191)","v":""},null,null,{"$f":"IF('1. Ordersheet'!AR1191=\"\",\"\",'1. Ordersheet'!AR1191)","v":""},{"$f":"IF('1. Ordersheet'!AE1191=\"\",\"\",'1. Ordersheet'!AE1191)","v":""}]
[{"$f":"IF('1. Ordersheet'!B1192=\"\",\"\",'1. Ordersheet'!B1192)","v":""},{"$f":"IF('1. Ordersheet'!I1192=\"\",\"\",'1. Ordersheet'!I1192)","v":""},{"$f":"IF('1. Ordersheet'!J1192=\"\",\"\",'1. Ordersheet'!J1192)","v":""},{"$f":"IF('1. Ordersheet'!K1192=\"\",\"\",'1. Ordersheet'!K1192)","v":""},{"$f":"IF('1. Ordersheet'!M1192=\"\",\"\",'1. Ordersheet'!M1192)","v":""},null,null,{"$f":"IF('1. Ordersheet'!AR1192=\"\",\"\",'1. Ordersheet'!AR1192)","v":""},{"$f":"IF('1. Ordersheet'!AE1192=\"\",\"\",'1. Ordersheet'!AE1192)","v":""}]
[{"$f":"IF('1. Ordersheet'!B1193=\"\",\"\",'1. Ordersheet'!B1193)","v":""},{"$f":"IF('1. Ordersheet'!I1193=\"\",\"\",'1. Ordersheet'!I1193)","v":""},{"$f":"IF('1. Ordersheet'!J1193=\"\",\"\",'1. Ordersheet'!J1193)","v":""},{"$f":"IF('1. Ordersheet'!K1193=\"\",\"\",'1. Ordersheet'!K1193)","v":""},{"$f":"IF('1. Ordersheet'!M1193=\"\",\"\",'1. Ordersheet'!M1193)","v":""},null,null,{"$f":"IF('1. Ordersheet'!AR1193=\"\",\"\",'1. Ordersheet'!AR1193)","v":""},{"$f":"IF('1. Ordersheet'!AE1193=\"\",\"\",'1. Ordersheet'!AE1193)","v":""}]
[{"$f":"IF('1. Ordersheet'!B1194=\"\",\"\",'1. Ordersheet'!B1194)","v":""},{"$f":"IF('1. Ordersheet'!I1194=\"\",\"\",'1. Ordersheet'!I1194)","v":""},{"$f":"IF('1. Ordersheet'!J1194=\"\",\"\",'1. Ordersheet'!J1194)","v":""},{"$f":"IF('1. Ordersheet'!K1194=\"\",\"\",'1. Ordersheet'!K1194)","v":""},{"$f":"IF('1. Ordersheet'!M1194=\"\",\"\",'1. Ordersheet'!M1194)","v":""},null,null,{"$f":"IF('1. Ordersheet'!AR1194=\"\",\"\",'1. Ordersheet'!AR1194)","v":""},{"$f":"IF('1. Ordersheet'!AE1194=\"\",\"\",'1. Ordersheet'!AE1194)","v":""}]
[{"$f":"IF('1. Ordersheet'!B1195=\"\",\"\",'1. Ordersheet'!B1195)","v":""},{"$f":"IF('1. Ordersheet'!I1195=\"\",\"\",'1. Ordersheet'!I1195)","v":""},{"$f":"IF('1. Ordersheet'!J1195=\"\",\"\",'1. Ordersheet'!J1195)","v":""},{"$f":"IF('1. Ordersheet'!K1195=\"\",\"\",'1. Ordersheet'!K1195)","v":""},{"$f":"IF('1. Ordersheet'!M1195=\"\",\"\",'1. Ordersheet'!M1195)","v":""},null,null,{"$f":"IF('1. Ordersheet'!AR1195=\"\",\"\",'1. Ordersheet'!AR1195)","v":""},{"$f":"IF('1. Ordersheet'!AE1195=\"\",\"\",'1. Ordersheet'!AE1195)","v":""}]
[{"$f":"IF('1. Ordersheet'!B1196=\"\",\"\",'1. Ordersheet'!B1196)","v":""},{"$f":"IF('1. Ordersheet'!I1196=\"\",\"\",'1. Ordersheet'!I1196)","v":""},{"$f":"IF('1. Ordersheet'!J1196=\"\",\"\",'1. Ordersheet'!J1196)","v":""},{"$f":"IF('1. Ordersheet'!K1196=\"\",\"\",'1. Ordersheet'!K1196)","v":""},{"$f":"IF('1. Ordersheet'!M1196=\"\",\"\",'1. Ordersheet'!M1196)","v":""},null,null,{"$f":"IF('1. Ordersheet'!AR1196=\"\",\"\",'1. Ordersheet'!AR1196)","v":""},{"$f":"IF('1. Ordersheet'!AE1196=\"\",\"\",'1. Ordersheet'!AE1196)","v":""}]
[{"$f":"IF('1. Ordersheet'!B1197=\"\",\"\",'1. Ordersheet'!B1197)","v":""},{"$f":"IF('1. Ordersheet'!I1197=\"\",\"\",'1. Ordersheet'!I1197)","v":""},{"$f":"IF('1. Ordersheet'!J1197=\"\",\"\",'1. Ordersheet'!J1197)","v":""},{"$f":"IF('1. Ordersheet'!K1197=\"\",\"\",'1. Ordersheet'!K1197)","v":""},{"$f":"IF('1. Ordersheet'!M1197=\"\",\"\",'1. Ordersheet'!M1197)","v":""},null,null,{"$f":"IF('1. Ordersheet'!AR1197=\"\",\"\",'1. Ordersheet'!AR1197)","v":""},{"$f":"IF('1. Ordersheet'!AE1197=\"\",\"\",'1. Ordersheet'!AE1197)","v":""}]
[{"$f":"IF('1. Ordersheet'!B1198=\"\",\"\",'1. Ordersheet'!B1198)","v":""},{"$f":"IF('1. Ordersheet'!I1198=\"\",\"\",'1. Ordersheet'!I1198)","v":""},{"$f":"IF('1. Ordersheet'!J1198=\"\",\"\",'1. Ordersheet'!J1198)","v":""},{"$f":"IF('1. Ordersheet'!K1198=\"\",\"\",'1. Ordersheet'!K1198)","v":""},{"$f":"IF('1. Ordersheet'!M1198=\"\",\"\",'1. Ordersheet'!M1198)","v":""},null,null,{"$f":"IF('1. Ordersheet'!AR1198=\"\",\"\",'1. Ordersheet'!AR1198)","v":""},{"$f":"IF('1. Ordersheet'!AE1198=\"\",\"\",'1. Ordersheet'!AE1198)","v":""}]
[{"$f":"IF('1. Ordersheet'!B1199=\"\",\"\",'1. Ordersheet'!B1199)","v":""},{"$f":"IF('1. Ordersheet'!I1199=\"\",\"\",'1. Ordersheet'!I1199)","v":""},{"$f":"IF('1. Ordersheet'!J1199=\"\",\"\",'1. Ordersheet'!J1199)","v":""},{"$f":"IF('1. Ordersheet'!K1199=\"\",\"\",'1. Ordersheet'!K1199)","v":""},{"$f":"IF('1. Ordersheet'!M1199=\"\",\"\",'1. Ordersheet'!M1199)","v":""},null,null,{"$f":"IF('1. Ordersheet'!AR1199=\"\",\"\",'1. Ordersheet'!AR1199)","v":""},{"$f":"IF('1. Ordersheet'!AE1199=\"\",\"\",'1. Ordersheet'!AE1199)","v":""}]
[{"$f":"IF('1. Ordersheet'!B1200=\"\",\"\",'1. Ordersheet'!B1200)","v":""},{"$f":"IF('1. Ordersheet'!I1200=\"\",\"\",'1. Ordersheet'!I1200)","v":""},{"$f":"IF('1. Ordersheet'!J1200=\"\",\"\",'1. Ordersheet'!J1200)","v":""},{"$f":"IF('1. Ordersheet'!K1200=\"\",\"\",'1. Ordersheet'!K1200)","v":""},{"$f":"IF('1. Ordersheet'!M1200=\"\",\"\",'1. Ordersheet'!M1200)","v":""},null,null,{"$f":"IF('1. Ordersheet'!AR1200=\"\",\"\",'1. Ordersheet'!AR1200)","v":""},{"$f":"IF('1. Ordersheet'!AE1200=\"\",\"\",'1. Ordersheet'!AE1200)","v":""}]
[{"$f":"IF('1. Ordersheet'!B1201=\"\",\"\",'1. Ordersheet'!B1201)","v":""},{"$f":"IF('1. Ordersheet'!I1201=\"\",\"\",'1. Ordersheet'!I1201)","v":""},{"$f":"IF('1. Ordersheet'!J1201=\"\",\"\",'1. Ordersheet'!J1201)","v":""},{"$f":"IF('1. Ordersheet'!K1201=\"\",\"\",'1. Ordersheet'!K1201)","v":""},{"$f":"IF('1. Ordersheet'!M1201=\"\",\"\",'1. Ordersheet'!M1201)","v":""},null,null,{"$f":"IF('1. Ordersheet'!AR1201=\"\",\"\",'1. Ordersheet'!AR1201)","v":""},{"$f":"IF('1. Ordersheet'!AE1201=\"\",\"\",'1. Ordersheet'!AE1201)","v":""}]
[{"$f":"IF('1. Ordersheet'!B1202=\"\",\"\",'1. Ordersheet'!B1202)","v":""},{"$f":"IF('1. Ordersheet'!I1202=\"\",\"\",'1. Ordersheet'!I1202)","v":""},{"$f":"IF('1. Ordersheet'!J1202=\"\",\"\",'1. Ordersheet'!J1202)","v":""},{"$f":"IF('1. Ordersheet'!K1202=\"\",\"\",'1. Ordersheet'!K1202)","v":""},{"$f":"IF('1. Ordersheet'!M1202=\"\",\"\",'1. Ordersheet'!M1202)","v":""},null,null,{"$f":"IF('1. Ordersheet'!AR1202=\"\",\"\",'1. Ordersheet'!AR1202)","v":""},{"$f":"IF('1. Ordersheet'!AE1202=\"\",\"\",'1. Ordersheet'!AE1202)","v":""}]
[{"$f":"IF('1. Ordersheet'!B1203=\"\",\"\",'1. Ordersheet'!B1203)","v":""},{"$f":"IF('1. Ordersheet'!I1203=\"\",\"\",'1. Ordersheet'!I1203)","v":""},{"$f":"IF('1. Ordersheet'!J1203=\"\",\"\",'1. Ordersheet'!J1203)","v":""},{"$f":"IF('1. Ordersheet'!K1203=\"\",\"\",'1. Ordersheet'!K1203)","v":""},{"$f":"IF('1. Ordersheet'!M1203=\"\",\"\",'1. Ordersheet'!M1203)","v":""},null,null,{"$f":"IF('1. Ordersheet'!AR1203=\"\",\"\",'1. Ordersheet'!AR1203)","v":""},{"$f":"IF('1. Ordersheet'!AE1203=\"\",\"\",'1. Ordersheet'!AE1203)","v":""}]
[{"$f":"IF('1. Ordersheet'!B1204=\"\",\"\",'1. Ordersheet'!B1204)","v":""},{"$f":"IF('1. Ordersheet'!I1204=\"\",\"\",'1. Ordersheet'!I1204)","v":""},{"$f":"IF('1. Ordersheet'!J1204=\"\",\"\",'1. Ordersheet'!J1204)","v":""},{"$f":"IF('1. Ordersheet'!K1204=\"\",\"\",'1. Ordersheet'!K1204)","v":""},{"$f":"IF('1. Ordersheet'!M1204=\"\",\"\",'1. Ordersheet'!M1204)","v":""},null,null,{"$f":"IF('1. Ordersheet'!AR1204=\"\",\"\",'1. Ordersheet'!AR1204)","v":""},{"$f":"IF('1. Ordersheet'!AE1204=\"\",\"\",'1. Ordersheet'!AE1204)","v":""}]
[{"$f":"IF('1. Ordersheet'!B1205=\"\",\"\",'1. Ordersheet'!B1205)","v":""},{"$f":"IF('1. Ordersheet'!I1205=\"\",\"\",'1. Ordersheet'!I1205)","v":""},{"$f":"IF('1. Ordersheet'!J1205=\"\",\"\",'1. Ordersheet'!J1205)","v":""},{"$f":"IF('1. Ordersheet'!K1205=\"\",\"\",'1. Ordersheet'!K1205)","v":""},{"$f":"IF('1. Ordersheet'!M1205=\"\",\"\",'1. Ordersheet'!M1205)","v":""},null,null,{"$f":"IF('1. Ordersheet'!AR1205=\"\",\"\",'1. Ordersheet'!AR1205)","v":""},{"$f":"IF('1. Ordersheet'!AE1205=\"\",\"\",'1. Ordersheet'!AE1205)","v":""}]
[{"$f":"IF('1. Ordersheet'!B1206=\"\",\"\",'1. Ordersheet'!B1206)","v":""},{"$f":"IF('1. Ordersheet'!I1206=\"\",\"\",'1. Ordersheet'!I1206)","v":""},{"$f":"IF('1. Ordersheet'!J1206=\"\",\"\",'1. Ordersheet'!J1206)","v":""},{"$f":"IF('1. Ordersheet'!K1206=\"\",\"\",'1. Ordersheet'!K1206)","v":""},{"$f":"IF('1. Ordersheet'!M1206=\"\",\"\",'1. Ordersheet'!M1206)","v":""},null,null,{"$f":"IF('1. Ordersheet'!AR1206=\"\",\"\",'1. Ordersheet'!AR1206)","v":""},{"$f":"IF('1. Ordersheet'!AE1206=\"\",\"\",'1. Ordersheet'!AE1206)","v":""}]
[{"$f":"IF('1. Ordersheet'!B1207=\"\",\"\",'1. Ordersheet'!B1207)","v":""},{"$f":"IF('1. Ordersheet'!I1207=\"\",\"\",'1. Ordersheet'!I1207)","v":""},{"$f":"IF('1. Ordersheet'!J1207=\"\",\"\",'1. Ordersheet'!J1207)","v":""},{"$f":"IF('1. Ordersheet'!K1207=\"\",\"\",'1. Ordersheet'!K1207)","v":""},{"$f":"IF('1. Ordersheet'!M1207=\"\",\"\",'1. Ordersheet'!M1207)","v":""},null,null,{"$f":"IF('1. Ordersheet'!AR1207=\"\",\"\",'1. Ordersheet'!AR1207)","v":""},{"$f":"IF('1. Ordersheet'!AE1207=\"\",\"\",'1. Ordersheet'!AE1207)","v":""}]
[{"$f":"IF('1. Ordersheet'!B1208=\"\",\"\",'1. Ordersheet'!B1208)","v":""},{"$f":"IF('1. Ordersheet'!I1208=\"\",\"\",'1. Ordersheet'!I1208)","v":""},{"$f":"IF('1. Ordersheet'!J1208=\"\",\"\",'1. Ordersheet'!J1208)","v":""},{"$f":"IF('1. Ordersheet'!K1208=\"\",\"\",'1. Ordersheet'!K1208)","v":""},{"$f":"IF('1. Ordersheet'!M1208=\"\",\"\",'1. Ordersheet'!M1208)","v":""},null,null,{"$f":"IF('1. Ordersheet'!AR1208=\"\",\"\",'1. Ordersheet'!AR1208)","v":""},{"$f":"IF('1. Ordersheet'!AE1208=\"\",\"\",'1. Ordersheet'!AE1208)","v":""}]
[{"$f":"IF('1. Ordersheet'!B1209=\"\",\"\",'1. Ordersheet'!B1209)","v":""},{"$f":"IF('1. Ordersheet'!I1209=\"\",\"\",'1. Ordersheet'!I1209)","v":""},{"$f":"IF('1. Ordersheet'!J1209=\"\",\"\",'1. Ordersheet'!J1209)","v":""},{"$f":"IF('1. Ordersheet'!K1209=\"\",\"\",'1. Ordersheet'!K1209)","v":""},{"$f":"IF('1. Ordersheet'!M1209=\"\",\"\",'1. Ordersheet'!M1209)","v":""},null,null,{"$f":"IF('1. Ordersheet'!AR1209=\"\",\"\",'1. Ordersheet'!AR1209)","v":""},{"$f":"IF('1. Ordersheet'!AE1209=\"\",\"\",'1. Ordersheet'!AE1209)","v":""}]
[{"$f":"IF('1. Ordersheet'!B1210=\"\",\"\",'1. Ordersheet'!B1210)","v":""},{"$f":"IF('1. Ordersheet'!I1210=\"\",\"\",'1. Ordersheet'!I1210)","v":""},{"$f":"IF('1. Ordersheet'!J1210=\"\",\"\",'1. Ordersheet'!J1210)","v":""},{"$f":"IF('1. Ordersheet'!K1210=\"\",\"\",'1. Ordersheet'!K1210)","v":""},{"$f":"IF('1. Ordersheet'!M1210=\"\",\"\",'1. Ordersheet'!M1210)","v":""},null,null,{"$f":"IF('1. Ordersheet'!AR1210=\"\",\"\",'1. Ordersheet'!AR1210)","v":""},{"$f":"IF('1. Ordersheet'!AE1210=\"\",\"\",'1. Ordersheet'!AE1210)","v":""}]
[{"$f":"IF('1. Ordersheet'!B1211=\"\",\"\",'1. Ordersheet'!B1211)","v":""},{"$f":"IF('1. Ordersheet'!I1211=\"\",\"\",'1. Ordersheet'!I1211)","v":""},{"$f":"IF('1. Ordersheet'!J1211=\"\",\"\",'1. Ordersheet'!J1211)","v":""},{"$f":"IF('1. Ordersheet'!K1211=\"\",\"\",'1. Ordersheet'!K1211)","v":""},{"$f":"IF('1. Ordersheet'!M1211=\"\",\"\",'1. Ordersheet'!M1211)","v":""},null,null,{"$f":"IF('1. Ordersheet'!AR1211=\"\",\"\",'1. Ordersheet'!AR1211)","v":""},{"$f":"IF('1. Ordersheet'!AE1211=\"\",\"\",'1. Ordersheet'!AE1211)","v":""}]
[{"$f":"IF('1. Ordersheet'!B1212=\"\",\"\",'1. Ordersheet'!B1212)","v":""},{"$f":"IF('1. Ordersheet'!I1212=\"\",\"\",'1. Ordersheet'!I1212)","v":""},{"$f":"IF('1. Ordersheet'!J1212=\"\",\"\",'1. Ordersheet'!J1212)","v":""},{"$f":"IF('1. Ordersheet'!K1212=\"\",\"\",'1. Ordersheet'!K1212)","v":""},{"$f":"IF('1. Ordersheet'!M1212=\"\",\"\",'1. Ordersheet'!M1212)","v":""},null,null,{"$f":"IF('1. Ordersheet'!AR1212=\"\",\"\",'1. Ordersheet'!AR1212)","v":""},{"$f":"IF('1. Ordersheet'!AE1212=\"\",\"\",'1. Ordersheet'!AE1212)","v":""}]
[{"$f":"IF('1. Ordersheet'!B1213=\"\",\"\",'1. Ordersheet'!B1213)","v":""},{"$f":"IF('1. Ordersheet'!I1213=\"\",\"\",'1. Ordersheet'!I1213)","v":""},{"$f":"IF('1. Ordersheet'!J1213=\"\",\"\",'1. Ordersheet'!J1213)","v":""},{"$f":"IF('1. Ordersheet'!K1213=\"\",\"\",'1. Ordersheet'!K1213)","v":""},{"$f":"IF('1. Ordersheet'!M1213=\"\",\"\",'1. Ordersheet'!M1213)","v":""},null,null,{"$f":"IF('1. Ordersheet'!AR1213=\"\",\"\",'1. Ordersheet'!AR1213)","v":""},{"$f":"IF('1. Ordersheet'!AE1213=\"\",\"\",'1. Ordersheet'!AE1213)","v":""}]
[{"$f":"IF('1. Ordersheet'!B1214=\"\",\"\",'1. Ordersheet'!B1214)","v":""},{"$f":"IF('1. Ordersheet'!I1214=\"\",\"\",'1. Ordersheet'!I1214)","v":""},{"$f":"IF('1. Ordersheet'!J1214=\"\",\"\",'1. Ordersheet'!J1214)","v":""},{"$f":"IF('1. Ordersheet'!K1214=\"\",\"\",'1. Ordersheet'!K1214)","v":""},{"$f":"IF('1. Ordersheet'!M1214=\"\",\"\",'1. Ordersheet'!M1214)","v":""},null,null,{"$f":"IF('1. Ordersheet'!AR1214=\"\",\"\",'1. Ordersheet'!AR1214)","v":""},{"$f":"IF('1. Ordersheet'!AE1214=\"\",\"\",'1. Ordersheet'!AE1214)","v":""}]
[{"$f":"IF('1. Ordersheet'!B1215=\"\",\"\",'1. Ordersheet'!B1215)","v":""},{"$f":"IF('1. Ordersheet'!I1215=\"\",\"\",'1. Ordersheet'!I1215)","v":""},{"$f":"IF('1. Ordersheet'!J1215=\"\",\"\",'1. Ordersheet'!J1215)","v":""},{"$f":"IF('1. Ordersheet'!K1215=\"\",\"\",'1. Ordersheet'!K1215)","v":""},{"$f":"IF('1. Ordersheet'!M1215=\"\",\"\",'1. Ordersheet'!M1215)","v":""},null,null,{"$f":"IF('1. Ordersheet'!AR1215=\"\",\"\",'1. Ordersheet'!AR1215)","v":""},{"$f":"IF('1. Ordersheet'!AE1215=\"\",\"\",'1. Ordersheet'!AE1215)","v":""}]
[{"$f":"IF('1. Ordersheet'!B1216=\"\",\"\",'1. Ordersheet'!B1216)","v":""},{"$f":"IF('1. Ordersheet'!I1216=\"\",\"\",'1. Ordersheet'!I1216)","v":""},{"$f":"IF('1. Ordersheet'!J1216=\"\",\"\",'1. Ordersheet'!J1216)","v":""},{"$f":"IF('1. Ordersheet'!K1216=\"\",\"\",'1. Ordersheet'!K1216)","v":""},{"$f":"IF('1. Ordersheet'!M1216=\"\",\"\",'1. Ordersheet'!M1216)","v":""},null,null,{"$f":"IF('1. Ordersheet'!AR1216=\"\",\"\",'1. Ordersheet'!AR1216)","v":""},{"$f":"IF('1. Ordersheet'!AE1216=\"\",\"\",'1. Ordersheet'!AE1216)","v":""}]
[{"$f":"IF('1. Ordersheet'!B1217=\"\",\"\",'1. Ordersheet'!B1217)","v":""},{"$f":"IF('1. Ordersheet'!I1217=\"\",\"\",'1. Ordersheet'!I1217)","v":""},{"$f":"IF('1. Ordersheet'!J1217=\"\",\"\",'1. Ordersheet'!J1217)","v":""},{"$f":"IF('1. Ordersheet'!K1217=\"\",\"\",'1. Ordersheet'!K1217)","v":""},{"$f":"IF('1. Ordersheet'!M1217=\"\",\"\",'1. Ordersheet'!M1217)","v":""},null,null,{"$f":"IF('1. Ordersheet'!AR1217=\"\",\"\",'1. Ordersheet'!AR1217)","v":""},{"$f":"IF('1. Ordersheet'!AE1217=\"\",\"\",'1. Ordersheet'!AE1217)","v":""}]
[{"$f":"IF('1. Ordersheet'!B1218=\"\",\"\",'1. Ordersheet'!B1218)","v":""},{"$f":"IF('1. Ordersheet'!I1218=\"\",\"\",'1. Ordersheet'!I1218)","v":""},{"$f":"IF('1. Ordersheet'!J1218=\"\",\"\",'1. Ordersheet'!J1218)","v":""},{"$f":"IF('1. Ordersheet'!K1218=\"\",\"\",'1. Ordersheet'!K1218)","v":""},{"$f":"IF('1. Ordersheet'!M1218=\"\",\"\",'1. Ordersheet'!M1218)","v":""},null,null,{"$f":"IF('1. Ordersheet'!AR1218=\"\",\"\",'1. Ordersheet'!AR1218)","v":""},{"$f":"IF('1. Ordersheet'!AE1218=\"\",\"\",'1. Ordersheet'!AE1218)","v":""}]
[{"$f":"IF('1. Ordersheet'!B1219=\"\",\"\",'1. Ordersheet'!B1219)","v":""},{"$f":"IF('1. Ordersheet'!I1219=\"\",\"\",'1. Ordersheet'!I1219)","v":""},{"$f":"IF('1. Ordersheet'!J1219=\"\",\"\",'1. Ordersheet'!J1219)","v":""},{"$f":"IF('1. Ordersheet'!K1219=\"\",\"\",'1. Ordersheet'!K1219)","v":""},{"$f":"IF('1. Ordersheet'!M1219=\"\",\"\",'1. Ordersheet'!M1219)","v":""},null,null,{"$f":"IF('1. Ordersheet'!AR1219=\"\",\"\",'1. Ordersheet'!AR1219)","v":""},{"$f":"IF('1. Ordersheet'!AE1219=\"\",\"\",'1. Ordersheet'!AE1219)","v":""}]
[{"$f":"IF('1. Ordersheet'!B1220=\"\",\"\",'1. Ordersheet'!B1220)","v":""},{"$f":"IF('1. Ordersheet'!I1220=\"\",\"\",'1. Ordersheet'!I1220)","v":""},{"$f":"IF('1. Ordersheet'!J1220=\"\",\"\",'1. Ordersheet'!J1220)","v":""},{"$f":"IF('1. Ordersheet'!K1220=\"\",\"\",'1. Ordersheet'!K1220)","v":""},{"$f":"IF('1. Ordersheet'!M1220=\"\",\"\",'1. Ordersheet'!M1220)","v":""},null,null,{"$f":"IF('1. Ordersheet'!AR1220=\"\",\"\",'1. Ordersheet'!AR1220)","v":""},{"$f":"IF('1. Ordersheet'!AE1220=\"\",\"\",'1. Ordersheet'!AE1220)","v":""}]
[{"$f":"IF('1. Ordersheet'!B1221=\"\",\"\",'1. Ordersheet'!B1221)","v":""},{"$f":"IF('1. Ordersheet'!I1221=\"\",\"\",'1. Ordersheet'!I1221)","v":""},{"$f":"IF('1. Ordersheet'!J1221=\"\",\"\",'1. Ordersheet'!J1221)","v":""},{"$f":"IF('1. Ordersheet'!K1221=\"\",\"\",'1. Ordersheet'!K1221)","v":""},{"$f":"IF('1. Ordersheet'!M1221=\"\",\"\",'1. Ordersheet'!M1221)","v":""},null,null,{"$f":"IF('1. Ordersheet'!AR1221=\"\",\"\",'1. Ordersheet'!AR1221)","v":""},{"$f":"IF('1. Ordersheet'!AE1221=\"\",\"\",'1. Ordersheet'!AE1221)","v":""}]
[{"$f":"IF('1. Ordersheet'!B1222=\"\",\"\",'1. Ordersheet'!B1222)","v":""},{"$f":"IF('1. Ordersheet'!I1222=\"\",\"\",'1. Ordersheet'!I1222)","v":""},{"$f":"IF('1. Ordersheet'!J1222=\"\",\"\",'1. Ordersheet'!J1222)","v":""},{"$f":"IF('1. Ordersheet'!K1222=\"\",\"\",'1. Ordersheet'!K1222)","v":""},{"$f":"IF('1. Ordersheet'!M1222=\"\",\"\",'1. Ordersheet'!M1222)","v":""},null,null,{"$f":"IF('1. Ordersheet'!AR1222=\"\",\"\",'1. Ordersheet'!AR1222)","v":""},{"$f":"IF('1. Ordersheet'!AE1222=\"\",\"\",'1. Ordersheet'!AE1222)","v":""}]
[{"$f":"IF('1. Ordersheet'!B1223=\"\",\"\",'1. Ordersheet'!B1223)","v":""},{"$f":"IF('1. Ordersheet'!I1223=\"\",\"\",'1. Ordersheet'!I1223)","v":""},{"$f":"IF('1. Ordersheet'!J1223=\"\",\"\",'1. Ordersheet'!J1223)","v":""},{"$f":"IF('1. Ordersheet'!K1223=\"\",\"\",'1. Ordersheet'!K1223)","v":""},{"$f":"IF('1. Ordersheet'!M1223=\"\",\"\",'1. Ordersheet'!M1223)","v":""},null,null,{"$f":"IF('1. Ordersheet'!AR1223=\"\",\"\",'1. Ordersheet'!AR1223)","v":""},{"$f":"IF('1. Ordersheet'!AE1223=\"\",\"\",'1. Ordersheet'!AE1223)","v":""}]
[{"$f":"IF('1. Ordersheet'!B1224=\"\",\"\",'1. Ordersheet'!B1224)","v":""},{"$f":"IF('1. Ordersheet'!I1224=\"\",\"\",'1. Ordersheet'!I1224)","v":""},{"$f":"IF('1. Ordersheet'!J1224=\"\",\"\",'1. Ordersheet'!J1224)","v":""},{"$f":"IF('1. Ordersheet'!K1224=\"\",\"\",'1. Ordersheet'!K1224)","v":""},{"$f":"IF('1. Ordersheet'!M1224=\"\",\"\",'1. Ordersheet'!M1224)","v":""},null,null,{"$f":"IF('1. Ordersheet'!AR1224=\"\",\"\",'1. Ordersheet'!AR1224)","v":""},{"$f":"IF('1. Ordersheet'!AE1224=\"\",\"\",'1. Ordersheet'!AE1224)","v":""}]
[{"$f":"IF('1. Ordersheet'!B1225=\"\",\"\",'1. Ordersheet'!B1225)","v":""},{"$f":"IF('1. Ordersheet'!I1225=\"\",\"\",'1. Ordersheet'!I1225)","v":""},{"$f":"IF('1. Ordersheet'!J1225=\"\",\"\",'1. Ordersheet'!J1225)","v":""},{"$f":"IF('1. Ordersheet'!K1225=\"\",\"\",'1. Ordersheet'!K1225)","v":""},{"$f":"IF('1. Ordersheet'!M1225=\"\",\"\",'1. Ordersheet'!M1225)","v":""},null,null,{"$f":"IF('1. Ordersheet'!AR1225=\"\",\"\",'1. Ordersheet'!AR1225)","v":""},{"$f":"IF('1. Ordersheet'!AE1225=\"\",\"\",'1. Ordersheet'!AE1225)","v":""}]
[{"$f":"IF('1. Ordersheet'!B1226=\"\",\"\",'1. Ordersheet'!B1226)","v":""},{"$f":"IF('1. Ordersheet'!I1226=\"\",\"\",'1. Ordersheet'!I1226)","v":""},{"$f":"IF('1. Ordersheet'!J1226=\"\",\"\",'1. Ordersheet'!J1226)","v":""},{"$f":"IF('1. Ordersheet'!K1226=\"\",\"\",'1. Ordersheet'!K1226)","v":""},{"$f":"IF('1. Ordersheet'!M1226=\"\",\"\",'1. Ordersheet'!M1226)","v":""},null,null,{"$f":"IF('1. Ordersheet'!AR1226=\"\",\"\",'1. Ordersheet'!AR1226)","v":""},{"$f":"IF('1. Ordersheet'!AE1226=\"\",\"\",'1. Ordersheet'!AE1226)","v":""}]
[{"$f":"IF('1. Ordersheet'!B1227=\"\",\"\",'1. Ordersheet'!B1227)","v":""},{"$f":"IF('1. Ordersheet'!I1227=\"\",\"\",'1. Ordersheet'!I1227)","v":""},{"$f":"IF('1. Ordersheet'!J1227=\"\",\"\",'1. Ordersheet'!J1227)","v":""},{"$f":"IF('1. Ordersheet'!K1227=\"\",\"\",'1. Ordersheet'!K1227)","v":""},{"$f":"IF('1. Ordersheet'!M1227=\"\",\"\",'1. Ordersheet'!M1227)","v":""},null,null,{"$f":"IF('1. Ordersheet'!AR1227=\"\",\"\",'1. Ordersheet'!AR1227)","v":""},{"$f":"IF('1. Ordersheet'!AE1227=\"\",\"\",'1. Ordersheet'!AE1227)","v":""}]
[{"$f":"IF('1. Ordersheet'!B1228=\"\",\"\",'1. Ordersheet'!B1228)","v":""},{"$f":"IF('1. Ordersheet'!I1228=\"\",\"\",'1. Ordersheet'!I1228)","v":""},{"$f":"IF('1. Ordersheet'!J1228=\"\",\"\",'1. Ordersheet'!J1228)","v":""},{"$f":"IF('1. Ordersheet'!K1228=\"\",\"\",'1. Ordersheet'!K1228)","v":""},{"$f":"IF('1. Ordersheet'!M1228=\"\",\"\",'1. Ordersheet'!M1228)","v":""},null,null,{"$f":"IF('1. Ordersheet'!AR1228=\"\",\"\",'1. Ordersheet'!AR1228)","v":""},{"$f":"IF('1. Ordersheet'!AE1228=\"\",\"\",'1. Ordersheet'!AE1228)","v":""}]
[{"$f":"IF('1. Ordersheet'!B1229=\"\",\"\",'1. Ordersheet'!B1229)","v":""},{"$f":"IF('1. Ordersheet'!I1229=\"\",\"\",'1. Ordersheet'!I1229)","v":""},{"$f":"IF('1. Ordersheet'!J1229=\"\",\"\",'1. Ordersheet'!J1229)","v":""},{"$f":"IF('1. Ordersheet'!K1229=\"\",\"\",'1. Ordersheet'!K1229)","v":""},{"$f":"IF('1. Ordersheet'!M1229=\"\",\"\",'1. Ordersheet'!M1229)","v":""},null,null,{"$f":"IF('1. Ordersheet'!AR1229=\"\",\"\",'1. Ordersheet'!AR1229)","v":""},{"$f":"IF('1. Ordersheet'!AE1229=\"\",\"\",'1. Ordersheet'!AE1229)","v":""}]
[{"$f":"IF('1. Ordersheet'!B1230=\"\",\"\",'1. Ordersheet'!B1230)","v":""},{"$f":"IF('1. Ordersheet'!I1230=\"\",\"\",'1. Ordersheet'!I1230)","v":""},{"$f":"IF('1. Ordersheet'!J1230=\"\",\"\",'1. Ordersheet'!J1230)","v":""},{"$f":"IF('1. Ordersheet'!K1230=\"\",\"\",'1. Ordersheet'!K1230)","v":""},{"$f":"IF('1. Ordersheet'!M1230=\"\",\"\",'1. Ordersheet'!M1230)","v":""},null,null,{"$f":"IF('1. Ordersheet'!AR1230=\"\",\"\",'1. Ordersheet'!AR1230)","v":""},{"$f":"IF('1. Ordersheet'!AE1230=\"\",\"\",'1. Ordersheet'!AE1230)","v":""}]
[{"$f":"IF('1. Ordersheet'!B1231=\"\",\"\",'1. Ordersheet'!B1231)","v":""},{"$f":"IF('1. Ordersheet'!I1231=\"\",\"\",'1. Ordersheet'!I1231)","v":""},{"$f":"IF('1. Ordersheet'!J1231=\"\",\"\",'1. Ordersheet'!J1231)","v":""},{"$f":"IF('1. Ordersheet'!K1231=\"\",\"\",'1. Ordersheet'!K1231)","v":""},{"$f":"IF('1. Ordersheet'!M1231=\"\",\"\",'1. Ordersheet'!M1231)","v":""},null,null,{"$f":"IF('1. Ordersheet'!AR1231=\"\",\"\",'1. Ordersheet'!AR1231)","v":""},{"$f":"IF('1. Ordersheet'!AE1231=\"\",\"\",'1. Ordersheet'!AE1231)","v":""}]
[{"$f":"IF('1. Ordersheet'!B1232=\"\",\"\",'1. Ordersheet'!B1232)","v":""},{"$f":"IF('1. Ordersheet'!I1232=\"\",\"\",'1. Ordersheet'!I1232)","v":""},{"$f":"IF('1. Ordersheet'!J1232=\"\",\"\",'1. Ordersheet'!J1232)","v":""},{"$f":"IF('1. Ordersheet'!K1232=\"\",\"\",'1. Ordersheet'!K1232)","v":""},{"$f":"IF('1. Ordersheet'!M1232=\"\",\"\",'1. Ordersheet'!M1232)","v":""},null,null,{"$f":"IF('1. Ordersheet'!AR1232=\"\",\"\",'1. Ordersheet'!AR1232)","v":""},{"$f":"IF('1. Ordersheet'!AE1232=\"\",\"\",'1. Ordersheet'!AE1232)","v":""}]
[{"$f":"IF('1. Ordersheet'!B1233=\"\",\"\",'1. Ordersheet'!B1233)","v":""},{"$f":"IF('1. Ordersheet'!I1233=\"\",\"\",'1. Ordersheet'!I1233)","v":""},{"$f":"IF('1. Ordersheet'!J1233=\"\",\"\",'1. Ordersheet'!J1233)","v":""},{"$f":"IF('1. Ordersheet'!K1233=\"\",\"\",'1. Ordersheet'!K1233)","v":""},{"$f":"IF('1. Ordersheet'!M1233=\"\",\"\",'1. Ordersheet'!M1233)","v":""},null,null,{"$f":"IF('1. Ordersheet'!AR1233=\"\",\"\",'1. Ordersheet'!AR1233)","v":""},{"$f":"IF('1. Ordersheet'!AE1233=\"\",\"\",'1. Ordersheet'!AE1233)","v":""}]
[{"$f":"IF('1. Ordersheet'!B1234=\"\",\"\",'1. Ordersheet'!B1234)","v":""},{"$f":"IF('1. Ordersheet'!I1234=\"\",\"\",'1. Ordersheet'!I1234)","v":""},{"$f":"IF('1. Ordersheet'!J1234=\"\",\"\",'1. Ordersheet'!J1234)","v":""},{"$f":"IF('1. Ordersheet'!K1234=\"\",\"\",'1. Ordersheet'!K1234)","v":""},{"$f":"IF('1. Ordersheet'!M1234=\"\",\"\",'1. Ordersheet'!M1234)","v":""},null,null,{"$f":"IF('1. Ordersheet'!AR1234=\"\",\"\",'1. Ordersheet'!AR1234)","v":""},{"$f":"IF('1. Ordersheet'!AE1234=\"\",\"\",'1. Ordersheet'!AE1234)","v":""}]
[{"$f":"IF('1. Ordersheet'!B1235=\"\",\"\",'1. Ordersheet'!B1235)","v":""},{"$f":"IF('1. Ordersheet'!I1235=\"\",\"\",'1. Ordersheet'!I1235)","v":""},{"$f":"IF('1. Ordersheet'!J1235=\"\",\"\",'1. Ordersheet'!J1235)","v":""},{"$f":"IF('1. Ordersheet'!K1235=\"\",\"\",'1. Ordersheet'!K1235)","v":""},{"$f":"IF('1. Ordersheet'!M1235=\"\",\"\",'1. Ordersheet'!M1235)","v":""},null,null,{"$f":"IF('1. Ordersheet'!AR1235=\"\",\"\",'1. Ordersheet'!AR1235)","v":""},{"$f":"IF('1. Ordersheet'!AE1235=\"\",\"\",'1. Ordersheet'!AE1235)","v":""}]
[{"$f":"IF('1. Ordersheet'!B1236=\"\",\"\",'1. Ordersheet'!B1236)","v":""},{"$f":"IF('1. Ordersheet'!I1236=\"\",\"\",'1. Ordersheet'!I1236)","v":""},{"$f":"IF('1. Ordersheet'!J1236=\"\",\"\",'1. Ordersheet'!J1236)","v":""},{"$f":"IF('1. Ordersheet'!K1236=\"\",\"\",'1. Ordersheet'!K1236)","v":""},{"$f":"IF('1. Ordersheet'!M1236=\"\",\"\",'1. Ordersheet'!M1236)","v":""},null,null,{"$f":"IF('1. Ordersheet'!AR1236=\"\",\"\",'1. Ordersheet'!AR1236)","v":""},{"$f":"IF('1. Ordersheet'!AE1236=\"\",\"\",'1. Ordersheet'!AE1236)","v":""}]
[{"$f":"IF('1. Ordersheet'!B1237=\"\",\"\",'1. Ordersheet'!B1237)","v":""},{"$f":"IF('1. Ordersheet'!I1237=\"\",\"\",'1. Ordersheet'!I1237)","v":""},{"$f":"IF('1. Ordersheet'!J1237=\"\",\"\",'1. Ordersheet'!J1237)","v":""},{"$f":"IF('1. Ordersheet'!K1237=\"\",\"\",'1. Ordersheet'!K1237)","v":""},{"$f":"IF('1. Ordersheet'!M1237=\"\",\"\",'1. Ordersheet'!M1237)","v":""},null,null,{"$f":"IF('1. Ordersheet'!AR1237=\"\",\"\",'1. Ordersheet'!AR1237)","v":""},{"$f":"IF('1. Ordersheet'!AE1237=\"\",\"\",'1. Ordersheet'!AE1237)","v":""}]
[{"$f":"IF('1. Ordersheet'!B1238=\"\",\"\",'1. Ordersheet'!B1238)","v":""},{"$f":"IF('1. Ordersheet'!I1238=\"\",\"\",'1. Ordersheet'!I1238)","v":""},{"$f":"IF('1. Ordersheet'!J1238=\"\",\"\",'1. Ordersheet'!J1238)","v":""},{"$f":"IF('1. Ordersheet'!K1238=\"\",\"\",'1. Ordersheet'!K1238)","v":""},{"$f":"IF('1. Ordersheet'!M1238=\"\",\"\",'1. Ordersheet'!M1238)","v":""},null,null,{"$f":"IF('1. Ordersheet'!AR1238=\"\",\"\",'1. Ordersheet'!AR1238)","v":""},{"$f":"IF('1. Ordersheet'!AE1238=\"\",\"\",'1. Ordersheet'!AE1238)","v":""}]
[{"$f":"IF('1. Ordersheet'!B1239=\"\",\"\",'1. Ordersheet'!B1239)","v":""},{"$f":"IF('1. Ordersheet'!I1239=\"\",\"\",'1. Ordersheet'!I1239)","v":""},{"$f":"IF('1. Ordersheet'!J1239=\"\",\"\",'1. Ordersheet'!J1239)","v":""},{"$f":"IF('1. Ordersheet'!K1239=\"\",\"\",'1. Ordersheet'!K1239)","v":""},{"$f":"IF('1. Ordersheet'!M1239=\"\",\"\",'1. Ordersheet'!M1239)","v":""},null,null,{"$f":"IF('1. Ordersheet'!AR1239=\"\",\"\",'1. Ordersheet'!AR1239)","v":""},{"$f":"IF('1. Ordersheet'!AE1239=\"\",\"\",'1. Ordersheet'!AE1239)","v":""}]
[{"$f":"IF('1. Ordersheet'!B1240=\"\",\"\",'1. Ordersheet'!B1240)","v":""},{"$f":"IF('1. Ordersheet'!I1240=\"\",\"\",'1. Ordersheet'!I1240)","v":""},{"$f":"IF('1. Ordersheet'!J1240=\"\",\"\",'1. Ordersheet'!J1240)","v":""},{"$f":"IF('1. Ordersheet'!K1240=\"\",\"\",'1. Ordersheet'!K1240)","v":""},{"$f":"IF('1. Ordersheet'!M1240=\"\",\"\",'1. Ordersheet'!M1240)","v":""},null,null,{"$f":"IF('1. Ordersheet'!AR1240=\"\",\"\",'1. Ordersheet'!AR1240)","v":""},{"$f":"IF('1. Ordersheet'!AE1240=\"\",\"\",'1. Ordersheet'!AE1240)","v":""}]
[{"$f":"IF('1. Ordersheet'!B1241=\"\",\"\",'1. Ordersheet'!B1241)","v":""},{"$f":"IF('1. Ordersheet'!I1241=\"\",\"\",'1. Ordersheet'!I1241)","v":""},{"$f":"IF('1. Ordersheet'!J1241=\"\",\"\",'1. Ordersheet'!J1241)","v":""},{"$f":"IF('1. Ordersheet'!K1241=\"\",\"\",'1. Ordersheet'!K1241)","v":""},{"$f":"IF('1. Ordersheet'!M1241=\"\",\"\",'1. Ordersheet'!M1241)","v":""},null,null,{"$f":"IF('1. Ordersheet'!AR1241=\"\",\"\",'1. Ordersheet'!AR1241)","v":""},{"$f":"IF('1. Ordersheet'!AE1241=\"\",\"\",'1. Ordersheet'!AE1241)","v":""}]
[{"$f":"IF('1. Ordersheet'!B1242=\"\",\"\",'1. Ordersheet'!B1242)","v":""},{"$f":"IF('1. Ordersheet'!I1242=\"\",\"\",'1. Ordersheet'!I1242)","v":""},{"$f":"IF('1. Ordersheet'!J1242=\"\",\"\",'1. Ordersheet'!J1242)","v":""},{"$f":"IF('1. Ordersheet'!K1242=\"\",\"\",'1. Ordersheet'!K1242)","v":""},{"$f":"IF('1. Ordersheet'!M1242=\"\",\"\",'1. Ordersheet'!M1242)","v":""},null,null,{"$f":"IF('1. Ordersheet'!AR1242=\"\",\"\",'1. Ordersheet'!AR1242)","v":""},{"$f":"IF('1. Ordersheet'!AE1242=\"\",\"\",'1. Ordersheet'!AE1242)","v":""}]
[{"$f":"IF('1. Ordersheet'!B1243=\"\",\"\",'1. Ordersheet'!B1243)","v":""},{"$f":"IF('1. Ordersheet'!I1243=\"\",\"\",'1. Ordersheet'!I1243)","v":""},{"$f":"IF('1. Ordersheet'!J1243=\"\",\"\",'1. Ordersheet'!J1243)","v":""},{"$f":"IF('1. Ordersheet'!K1243=\"\",\"\",'1. Ordersheet'!K1243)","v":""},{"$f":"IF('1. Ordersheet'!M1243=\"\",\"\",'1. Ordersheet'!M1243)","v":""},null,null,{"$f":"IF('1. Ordersheet'!AR1243=\"\",\"\",'1. Ordersheet'!AR1243)","v":""},{"$f":"IF('1. Ordersheet'!AE1243=\"\",\"\",'1. Ordersheet'!AE1243)","v":""}]
[{"$f":"IF('1. Ordersheet'!B1244=\"\",\"\",'1. Ordersheet'!B1244)","v":""},{"$f":"IF('1. Ordersheet'!I1244=\"\",\"\",'1. Ordersheet'!I1244)","v":""},{"$f":"IF('1. Ordersheet'!J1244=\"\",\"\",'1. Ordersheet'!J1244)","v":""},{"$f":"IF('1. Ordersheet'!K1244=\"\",\"\",'1. Ordersheet'!K1244)","v":""},{"$f":"IF('1. Ordersheet'!M1244=\"\",\"\",'1. Ordersheet'!M1244)","v":""},null,null,{"$f":"IF('1. Ordersheet'!AR1244=\"\",\"\",'1. Ordersheet'!AR1244)","v":""},{"$f":"IF('1. Ordersheet'!AE1244=\"\",\"\",'1. Ordersheet'!AE1244)","v":""}]
[{"$f":"IF('1. Ordersheet'!B1245=\"\",\"\",'1. Ordersheet'!B1245)","v":""},{"$f":"IF('1. Ordersheet'!I1245=\"\",\"\",'1. Ordersheet'!I1245)","v":""},{"$f":"IF('1. Ordersheet'!J1245=\"\",\"\",'1. Ordersheet'!J1245)","v":""},{"$f":"IF('1. Ordersheet'!K1245=\"\",\"\",'1. Ordersheet'!K1245)","v":""},{"$f":"IF('1. Ordersheet'!M1245=\"\",\"\",'1. Ordersheet'!M1245)","v":""},null,null,{"$f":"IF('1. Ordersheet'!AR1245=\"\",\"\",'1. Ordersheet'!AR1245)","v":""},{"$f":"IF('1. Ordersheet'!AE1245=\"\",\"\",'1. Ordersheet'!AE1245)","v":""}]
[{"$f":"IF('1. Ordersheet'!B1246=\"\",\"\",'1. Ordersheet'!B1246)","v":""},{"$f":"IF('1. Ordersheet'!I1246=\"\",\"\",'1. Ordersheet'!I1246)","v":""},{"$f":"IF('1. Ordersheet'!J1246=\"\",\"\",'1. Ordersheet'!J1246)","v":""},{"$f":"IF('1. Ordersheet'!K1246=\"\",\"\",'1. Ordersheet'!K1246)","v":""},{"$f":"IF('1. Ordersheet'!M1246=\"\",\"\",'1. Ordersheet'!M1246)","v":""},null,null,{"$f":"IF('1. Ordersheet'!AR1246=\"\",\"\",'1. Ordersheet'!AR1246)","v":""},{"$f":"IF('1. Ordersheet'!AE1246=\"\",\"\",'1. Ordersheet'!AE1246)","v":""}]
[{"$f":"IF('1. Ordersheet'!B1247=\"\",\"\",'1. Ordersheet'!B1247)","v":""},{"$f":"IF('1. Ordersheet'!I1247=\"\",\"\",'1. Ordersheet'!I1247)","v":""},{"$f":"IF('1. Ordersheet'!J1247=\"\",\"\",'1. Ordersheet'!J1247)","v":""},{"$f":"IF('1. Ordersheet'!K1247=\"\",\"\",'1. Ordersheet'!K1247)","v":""},{"$f":"IF('1. Ordersheet'!M1247=\"\",\"\",'1. Ordersheet'!M1247)","v":""},null,null,{"$f":"IF('1. Ordersheet'!AR1247=\"\",\"\",'1. Ordersheet'!AR1247)","v":""},{"$f":"IF('1. Ordersheet'!AE1247=\"\",\"\",'1. Ordersheet'!AE1247)","v":""}]
[{"$f":"IF('1. Ordersheet'!B1248=\"\",\"\",'1. Ordersheet'!B1248)","v":""},{"$f":"IF('1. Ordersheet'!I1248=\"\",\"\",'1. Ordersheet'!I1248)","v":""},{"$f":"IF('1. Ordersheet'!J1248=\"\",\"\",'1. Ordersheet'!J1248)","v":""},{"$f":"IF('1. Ordersheet'!K1248=\"\",\"\",'1. Ordersheet'!K1248)","v":""},{"$f":"IF('1. Ordersheet'!M1248=\"\",\"\",'1. Ordersheet'!M1248)","v":""},null,null,{"$f":"IF('1. Ordersheet'!AR1248=\"\",\"\",'1. Ordersheet'!AR1248)","v":""},{"$f":"IF('1. Ordersheet'!AE1248=\"\",\"\",'1. Ordersheet'!AE1248)","v":""}]
[{"$f":"IF('1. Ordersheet'!B1249=\"\",\"\",'1. Ordersheet'!B1249)","v":""},{"$f":"IF('1. Ordersheet'!I1249=\"\",\"\",'1. Ordersheet'!I1249)","v":""},{"$f":"IF('1. Ordersheet'!J1249=\"\",\"\",'1. Ordersheet'!J1249)","v":""},{"$f":"IF('1. Ordersheet'!K1249=\"\",\"\",'1. Ordersheet'!K1249)","v":""},{"$f":"IF('1. Ordersheet'!M1249=\"\",\"\",'1. Ordersheet'!M1249)","v":""},null,null,{"$f":"IF('1. Ordersheet'!AR1249=\"\",\"\",'1. Ordersheet'!AR1249)","v":""},{"$f":"IF('1. Ordersheet'!AE1249=\"\",\"\",'1. Ordersheet'!AE1249)","v":""}]
[{"$f":"IF('1. Ordersheet'!B1250=\"\",\"\",'1. Ordersheet'!B1250)","v":""},{"$f":"IF('1. Ordersheet'!I1250=\"\",\"\",'1. Ordersheet'!I1250)","v":""},{"$f":"IF('1. Ordersheet'!J1250=\"\",\"\",'1. Ordersheet'!J1250)","v":""},{"$f":"IF('1. Ordersheet'!K1250=\"\",\"\",'1. Ordersheet'!K1250)","v":""},{"$f":"IF('1. Ordersheet'!M1250=\"\",\"\",'1. Ordersheet'!M1250)","v":""},null,null,{"$f":"IF('1. Ordersheet'!AR1250=\"\",\"\",'1. Ordersheet'!AR1250)","v":""},{"$f":"IF('1. Ordersheet'!AE1250=\"\",\"\",'1. Ordersheet'!AE1250)","v":""}]
[{"$f":"IF('1. Ordersheet'!B1251=\"\",\"\",'1. Ordersheet'!B1251)","v":""},{"$f":"IF('1. Ordersheet'!I1251=\"\",\"\",'1. Ordersheet'!I1251)","v":""},{"$f":"IF('1. Ordersheet'!J1251=\"\",\"\",'1. Ordersheet'!J1251)","v":""},{"$f":"IF('1. Ordersheet'!K1251=\"\",\"\",'1. Ordersheet'!K1251)","v":""},{"$f":"IF('1. Ordersheet'!M1251=\"\",\"\",'1. Ordersheet'!M1251)","v":""},null,null,{"$f":"IF('1. Ordersheet'!AR1251=\"\",\"\",'1. Ordersheet'!AR1251)","v":""},{"$f":"IF('1. Ordersheet'!AE1251=\"\",\"\",'1. Ordersheet'!AE1251)","v":""}]
[{"$f":"IF('1. Ordersheet'!B1252=\"\",\"\",'1. Ordersheet'!B1252)","v":""},{"$f":"IF('1. Ordersheet'!I1252=\"\",\"\",'1. Ordersheet'!I1252)","v":""},{"$f":"IF('1. Ordersheet'!J1252=\"\",\"\",'1. Ordersheet'!J1252)","v":""},{"$f":"IF('1. Ordersheet'!K1252=\"\",\"\",'1. Ordersheet'!K1252)","v":""},{"$f":"IF('1. Ordersheet'!M1252=\"\",\"\",'1. Ordersheet'!M1252)","v":""},null,null,{"$f":"IF('1. Ordersheet'!AR1252=\"\",\"\",'1. Ordersheet'!AR1252)","v":""},{"$f":"IF('1. Ordersheet'!AE1252=\"\",\"\",'1. Ordersheet'!AE1252)","v":""}]
[{"$f":"IF('1. Ordersheet'!B1253=\"\",\"\",'1. Ordersheet'!B1253)","v":""},{"$f":"IF('1. Ordersheet'!I1253=\"\",\"\",'1. Ordersheet'!I1253)","v":""},{"$f":"IF('1. Ordersheet'!J1253=\"\",\"\",'1. Ordersheet'!J1253)","v":""},{"$f":"IF('1. Ordersheet'!K1253=\"\",\"\",'1. Ordersheet'!K1253)","v":""},{"$f":"IF('1. Ordersheet'!M1253=\"\",\"\",'1. Ordersheet'!M1253)","v":""},null,null,{"$f":"IF('1. Ordersheet'!AR1253=\"\",\"\",'1. Ordersheet'!AR1253)","v":""},{"$f":"IF('1. Ordersheet'!AE1253=\"\",\"\",'1. Ordersheet'!AE1253)","v":""}]
[{"$f":"IF('1. Ordersheet'!B1254=\"\",\"\",'1. Ordersheet'!B1254)","v":""},{"$f":"IF('1. Ordersheet'!I1254=\"\",\"\",'1. Ordersheet'!I1254)","v":""},{"$f":"IF('1. Ordersheet'!J1254=\"\",\"\",'1. Ordersheet'!J1254)","v":""},{"$f":"IF('1. Ordersheet'!K1254=\"\",\"\",'1. Ordersheet'!K1254)","v":""},{"$f":"IF('1. Ordersheet'!M1254=\"\",\"\",'1. Ordersheet'!M1254)","v":""},null,null,{"$f":"IF('1. Ordersheet'!AR1254=\"\",\"\",'1. Ordersheet'!AR1254)","v":""},{"$f":"IF('1. Ordersheet'!AE1254=\"\",\"\",'1. Ordersheet'!AE1254)","v":""}]
[{"$f":"IF('1. Ordersheet'!B1255=\"\",\"\",'1. Ordersheet'!B1255)","v":""},{"$f":"IF('1. Ordersheet'!I1255=\"\",\"\",'1. Ordersheet'!I1255)","v":""},{"$f":"IF('1. Ordersheet'!J1255=\"\",\"\",'1. Ordersheet'!J1255)","v":""},{"$f":"IF('1. Ordersheet'!K1255=\"\",\"\",'1. Ordersheet'!K1255)","v":""},{"$f":"IF('1. Ordersheet'!M1255=\"\",\"\",'1. Ordersheet'!M1255)","v":""},null,null,{"$f":"IF('1. Ordersheet'!AR1255=\"\",\"\",'1. Ordersheet'!AR1255)","v":""},{"$f":"IF('1. Ordersheet'!AE1255=\"\",\"\",'1. Ordersheet'!AE1255)","v":""}]
[{"$f":"IF('1. Ordersheet'!B1256=\"\",\"\",'1. Ordersheet'!B1256)","v":""},{"$f":"IF('1. Ordersheet'!I1256=\"\",\"\",'1. Ordersheet'!I1256)","v":""},{"$f":"IF('1. Ordersheet'!J1256=\"\",\"\",'1. Ordersheet'!J1256)","v":""},{"$f":"IF('1. Ordersheet'!K1256=\"\",\"\",'1. Ordersheet'!K1256)","v":""},{"$f":"IF('1. Ordersheet'!M1256=\"\",\"\",'1. Ordersheet'!M1256)","v":""},null,null,{"$f":"IF('1. Ordersheet'!AR1256=\"\",\"\",'1. Ordersheet'!AR1256)","v":""},{"$f":"IF('1. Ordersheet'!AE1256=\"\",\"\",'1. Ordersheet'!AE1256)","v":""}]
[{"$f":"IF('1. Ordersheet'!B1257=\"\",\"\",'1. Ordersheet'!B1257)","v":""},{"$f":"IF('1. Ordersheet'!I1257=\"\",\"\",'1. Ordersheet'!I1257)","v":""},{"$f":"IF('1. Ordersheet'!J1257=\"\",\"\",'1. Ordersheet'!J1257)","v":""},{"$f":"IF('1. Ordersheet'!K1257=\"\",\"\",'1. Ordersheet'!K1257)","v":""},{"$f":"IF('1. Ordersheet'!M1257=\"\",\"\",'1. Ordersheet'!M1257)","v":""},null,null,{"$f":"IF('1. Ordersheet'!AR1257=\"\",\"\",'1. Ordersheet'!AR1257)","v":""},{"$f":"IF('1. Ordersheet'!AE1257=\"\",\"\",'1. Ordersheet'!AE1257)","v":""}]
[{"$f":"IF('1. Ordersheet'!B1258=\"\",\"\",'1. Ordersheet'!B1258)","v":""},{"$f":"IF('1. Ordersheet'!I1258=\"\",\"\",'1. Ordersheet'!I1258)","v":""},{"$f":"IF('1. Ordersheet'!J1258=\"\",\"\",'1. Ordersheet'!J1258)","v":""},{"$f":"IF('1. Ordersheet'!K1258=\"\",\"\",'1. Ordersheet'!K1258)","v":""},{"$f":"IF('1. Ordersheet'!M1258=\"\",\"\",'1. Ordersheet'!M1258)","v":""},null,null,{"$f":"IF('1. Ordersheet'!AR1258=\"\",\"\",'1. Ordersheet'!AR1258)","v":""},{"$f":"IF('1. Ordersheet'!AE1258=\"\",\"\",'1. Ordersheet'!AE1258)","v":""}]
[{"$f":"IF('1. Ordersheet'!B1259=\"\",\"\",'1. Ordersheet'!B1259)","v":""},{"$f":"IF('1. Ordersheet'!I1259=\"\",\"\",'1. Ordersheet'!I1259)","v":""},{"$f":"IF('1. Ordersheet'!J1259=\"\",\"\",'1. Ordersheet'!J1259)","v":""},{"$f":"IF('1. Ordersheet'!K1259=\"\",\"\",'1. Ordersheet'!K1259)","v":""},{"$f":"IF('1. Ordersheet'!M1259=\"\",\"\",'1. Ordersheet'!M1259)","v":""},null,null,{"$f":"IF('1. Ordersheet'!AR1259=\"\",\"\",'1. Ordersheet'!AR1259)","v":""},{"$f":"IF('1. Ordersheet'!AE1259=\"\",\"\",'1. Ordersheet'!AE1259)","v":""}]
[{"$f":"IF('1. Ordersheet'!B1260=\"\",\"\",'1. Ordersheet'!B1260)","v":""},{"$f":"IF('1. Ordersheet'!I1260=\"\",\"\",'1. Ordersheet'!I1260)","v":""},{"$f":"IF('1. Ordersheet'!J1260=\"\",\"\",'1. Ordersheet'!J1260)","v":""},{"$f":"IF('1. Ordersheet'!K1260=\"\",\"\",'1. Ordersheet'!K1260)","v":""},{"$f":"IF('1. Ordersheet'!M1260=\"\",\"\",'1. Ordersheet'!M1260)","v":""},null,null,{"$f":"IF('1. Ordersheet'!AR1260=\"\",\"\",'1. Ordersheet'!AR1260)","v":""},{"$f":"IF('1. Ordersheet'!AE1260=\"\",\"\",'1. Ordersheet'!AE1260)","v":""}]
[{"$f":"IF('1. Ordersheet'!B1261=\"\",\"\",'1. Ordersheet'!B1261)","v":""},{"$f":"IF('1. Ordersheet'!I1261=\"\",\"\",'1. Ordersheet'!I1261)","v":""},{"$f":"IF('1. Ordersheet'!J1261=\"\",\"\",'1. Ordersheet'!J1261)","v":""},{"$f":"IF('1. Ordersheet'!K1261=\"\",\"\",'1. Ordersheet'!K1261)","v":""},{"$f":"IF('1. Ordersheet'!M1261=\"\",\"\",'1. Ordersheet'!M1261)","v":""},null,null,{"$f":"IF('1. Ordersheet'!AR1261=\"\",\"\",'1. Ordersheet'!AR1261)","v":""},{"$f":"IF('1. Ordersheet'!AE1261=\"\",\"\",'1. Ordersheet'!AE1261)","v":""}]
[{"$f":"IF('1. Ordersheet'!B1262=\"\",\"\",'1. Ordersheet'!B1262)","v":""},{"$f":"IF('1. Ordersheet'!I1262=\"\",\"\",'1. Ordersheet'!I1262)","v":""},{"$f":"IF('1. Ordersheet'!J1262=\"\",\"\",'1. Ordersheet'!J1262)","v":""},{"$f":"IF('1. Ordersheet'!K1262=\"\",\"\",'1. Ordersheet'!K1262)","v":""},{"$f":"IF('1. Ordersheet'!M1262=\"\",\"\",'1. Ordersheet'!M1262)","v":""},null,null,{"$f":"IF('1. Ordersheet'!AR1262=\"\",\"\",'1. Ordersheet'!AR1262)","v":""},{"$f":"IF('1. Ordersheet'!AE1262=\"\",\"\",'1. Ordersheet'!AE1262)","v":""}]
[{"$f":"IF('1. Ordersheet'!B1263=\"\",\"\",'1. Ordersheet'!B1263)","v":""},{"$f":"IF('1. Ordersheet'!I1263=\"\",\"\",'1. Ordersheet'!I1263)","v":""},{"$f":"IF('1. Ordersheet'!J1263=\"\",\"\",'1. Ordersheet'!J1263)","v":""},{"$f":"IF('1. Ordersheet'!K1263=\"\",\"\",'1. Ordersheet'!K1263)","v":""},{"$f":"IF('1. Ordersheet'!M1263=\"\",\"\",'1. Ordersheet'!M1263)","v":""},null,null,{"$f":"IF('1. Ordersheet'!AR1263=\"\",\"\",'1. Ordersheet'!AR1263)","v":""},{"$f":"IF('1. Ordersheet'!AE1263=\"\",\"\",'1. Ordersheet'!AE1263)","v":""}]
[{"$f":"IF('1. Ordersheet'!B1264=\"\",\"\",'1. Ordersheet'!B1264)","v":""},{"$f":"IF('1. Ordersheet'!I1264=\"\",\"\",'1. Ordersheet'!I1264)","v":""},{"$f":"IF('1. Ordersheet'!J1264=\"\",\"\",'1. Ordersheet'!J1264)","v":""},{"$f":"IF('1. Ordersheet'!K1264=\"\",\"\",'1. Ordersheet'!K1264)","v":""},{"$f":"IF('1. Ordersheet'!M1264=\"\",\"\",'1. Ordersheet'!M1264)","v":""},null,null,{"$f":"IF('1. Ordersheet'!AR1264=\"\",\"\",'1. Ordersheet'!AR1264)","v":""},{"$f":"IF('1. Ordersheet'!AE1264=\"\",\"\",'1. Ordersheet'!AE1264)","v":""}]
[{"$f":"IF('1. Ordersheet'!B1265=\"\",\"\",'1. Ordersheet'!B1265)","v":""},{"$f":"IF('1. Ordersheet'!I1265=\"\",\"\",'1. Ordersheet'!I1265)","v":""},{"$f":"IF('1. Ordersheet'!J1265=\"\",\"\",'1. Ordersheet'!J1265)","v":""},{"$f":"IF('1. Ordersheet'!K1265=\"\",\"\",'1. Ordersheet'!K1265)","v":""},{"$f":"IF('1. Ordersheet'!M1265=\"\",\"\",'1. Ordersheet'!M1265)","v":""},null,null,{"$f":"IF('1. Ordersheet'!AR1265=\"\",\"\",'1. Ordersheet'!AR1265)","v":""},{"$f":"IF('1. Ordersheet'!AE1265=\"\",\"\",'1. Ordersheet'!AE1265)","v":""}]
[{"$f":"IF('1. Ordersheet'!B1266=\"\",\"\",'1. Ordersheet'!B1266)","v":""},{"$f":"IF('1. Ordersheet'!I1266=\"\",\"\",'1. Ordersheet'!I1266)","v":""},{"$f":"IF('1. Ordersheet'!J1266=\"\",\"\",'1. Ordersheet'!J1266)","v":""},{"$f":"IF('1. Ordersheet'!K1266=\"\",\"\",'1. Ordersheet'!K1266)","v":""},{"$f":"IF('1. Ordersheet'!M1266=\"\",\"\",'1. Ordersheet'!M1266)","v":""},null,null,{"$f":"IF('1. Ordersheet'!AR1266=\"\",\"\",'1. Ordersheet'!AR1266)","v":""},{"$f":"IF('1. Ordersheet'!AE1266=\"\",\"\",'1. Ordersheet'!AE1266)","v":""}]
[{"$f":"IF('1. Ordersheet'!B1267=\"\",\"\",'1. Ordersheet'!B1267)","v":""},{"$f":"IF('1. Ordersheet'!I1267=\"\",\"\",'1. Ordersheet'!I1267)","v":""},{"$f":"IF('1. Ordersheet'!J1267=\"\",\"\",'1. Ordersheet'!J1267)","v":""},{"$f":"IF('1. Ordersheet'!K1267=\"\",\"\",'1. Ordersheet'!K1267)","v":""},{"$f":"IF('1. Ordersheet'!M1267=\"\",\"\",'1. Ordersheet'!M1267)","v":""},null,null,{"$f":"IF('1. Ordersheet'!AR1267=\"\",\"\",'1. Ordersheet'!AR1267)","v":""},{"$f":"IF('1. Ordersheet'!AE1267=\"\",\"\",'1. Ordersheet'!AE1267)","v":""}]
[{"$f":"IF('1. Ordersheet'!B1268=\"\",\"\",'1. Ordersheet'!B1268)","v":""},{"$f":"IF('1. Ordersheet'!I1268=\"\",\"\",'1. Ordersheet'!I1268)","v":""},{"$f":"IF('1. Ordersheet'!J1268=\"\",\"\",'1. Ordersheet'!J1268)","v":""},{"$f":"IF('1. Ordersheet'!K1268=\"\",\"\",'1. Ordersheet'!K1268)","v":""},{"$f":"IF('1. Ordersheet'!M1268=\"\",\"\",'1. Ordersheet'!M1268)","v":""},null,null,{"$f":"IF('1. Ordersheet'!AR1268=\"\",\"\",'1. Ordersheet'!AR1268)","v":""},{"$f":"IF('1. Ordersheet'!AE1268=\"\",\"\",'1. Ordersheet'!AE1268)","v":""}]
[{"$f":"IF('1. Ordersheet'!B1269=\"\",\"\",'1. Ordersheet'!B1269)","v":""},{"$f":"IF('1. Ordersheet'!I1269=\"\",\"\",'1. Ordersheet'!I1269)","v":""},{"$f":"IF('1. Ordersheet'!J1269=\"\",\"\",'1. Ordersheet'!J1269)","v":""},{"$f":"IF('1. Ordersheet'!K1269=\"\",\"\",'1. Ordersheet'!K1269)","v":""},{"$f":"IF('1. Ordersheet'!M1269=\"\",\"\",'1. Ordersheet'!M1269)","v":""},null,null,{"$f":"IF('1. Ordersheet'!AR1269=\"\",\"\",'1. Ordersheet'!AR1269)","v":""},{"$f":"IF('1. Ordersheet'!AE1269=\"\",\"\",'1. Ordersheet'!AE1269)","v":""}]
[{"$f":"IF('1. Ordersheet'!B1270=\"\",\"\",'1. Ordersheet'!B1270)","v":""},{"$f":"IF('1. Ordersheet'!I1270=\"\",\"\",'1. Ordersheet'!I1270)","v":""},{"$f":"IF('1. Ordersheet'!J1270=\"\",\"\",'1. Ordersheet'!J1270)","v":""},{"$f":"IF('1. Ordersheet'!K1270=\"\",\"\",'1. Ordersheet'!K1270)","v":""},{"$f":"IF('1. Ordersheet'!M1270=\"\",\"\",'1. Ordersheet'!M1270)","v":""},null,null,{"$f":"IF('1. Ordersheet'!AR1270=\"\",\"\",'1. Ordersheet'!AR1270)","v":""},{"$f":"IF('1. Ordersheet'!AE1270=\"\",\"\",'1. Ordersheet'!AE1270)","v":""}]
[{"$f":"IF('1. Ordersheet'!B1271=\"\",\"\",'1. Ordersheet'!B1271)","v":""},{"$f":"IF('1. Ordersheet'!I1271=\"\",\"\",'1. Ordersheet'!I1271)","v":""},{"$f":"IF('1. Ordersheet'!J1271=\"\",\"\",'1. Ordersheet'!J1271)","v":""},{"$f":"IF('1. Ordersheet'!K1271=\"\",\"\",'1. Ordersheet'!K1271)","v":""},{"$f":"IF('1. Ordersheet'!M1271=\"\",\"\",'1. Ordersheet'!M1271)","v":""},null,null,{"$f":"IF('1. Ordersheet'!AR1271=\"\",\"\",'1. Ordersheet'!AR1271)","v":""},{"$f":"IF('1. Ordersheet'!AE1271=\"\",\"\",'1. Ordersheet'!AE1271)","v":""}]
[{"$f":"IF('1. Ordersheet'!B1272=\"\",\"\",'1. Ordersheet'!B1272)","v":""},{"$f":"IF('1. Ordersheet'!I1272=\"\",\"\",'1. Ordersheet'!I1272)","v":""},{"$f":"IF('1. Ordersheet'!J1272=\"\",\"\",'1. Ordersheet'!J1272)","v":""},{"$f":"IF('1. Ordersheet'!K1272=\"\",\"\",'1. Ordersheet'!K1272)","v":""},{"$f":"IF('1. Ordersheet'!M1272=\"\",\"\",'1. Ordersheet'!M1272)","v":""},null,null,{"$f":"IF('1. Ordersheet'!AR1272=\"\",\"\",'1. Ordersheet'!AR1272)","v":""},{"$f":"IF('1. Ordersheet'!AE1272=\"\",\"\",'1. Ordersheet'!AE1272)","v":""}]
[{"$f":"IF('1. Ordersheet'!B1273=\"\",\"\",'1. Ordersheet'!B1273)","v":""},{"$f":"IF('1. Ordersheet'!I1273=\"\",\"\",'1. Ordersheet'!I1273)","v":""},{"$f":"IF('1. Ordersheet'!J1273=\"\",\"\",'1. Ordersheet'!J1273)","v":""},{"$f":"IF('1. Ordersheet'!K1273=\"\",\"\",'1. Ordersheet'!K1273)","v":""},{"$f":"IF('1. Ordersheet'!M1273=\"\",\"\",'1. Ordersheet'!M1273)","v":""},null,null,{"$f":"IF('1. Ordersheet'!AR1273=\"\",\"\",'1. Ordersheet'!AR1273)","v":""},{"$f":"IF('1. Ordersheet'!AE1273=\"\",\"\",'1. Ordersheet'!AE1273)","v":""}]
[{"$f":"IF('1. Ordersheet'!B1274=\"\",\"\",'1. Ordersheet'!B1274)","v":""},{"$f":"IF('1. Ordersheet'!I1274=\"\",\"\",'1. Ordersheet'!I1274)","v":""},{"$f":"IF('1. Ordersheet'!J1274=\"\",\"\",'1. Ordersheet'!J1274)","v":""},{"$f":"IF('1. Ordersheet'!K1274=\"\",\"\",'1. Ordersheet'!K1274)","v":""},{"$f":"IF('1. Ordersheet'!M1274=\"\",\"\",'1. Ordersheet'!M1274)","v":""},null,null,{"$f":"IF('1. Ordersheet'!AR1274=\"\",\"\",'1. Ordersheet'!AR1274)","v":""},{"$f":"IF('1. Ordersheet'!AE1274=\"\",\"\",'1. Ordersheet'!AE1274)","v":""}]
[{"$f":"IF('1. Ordersheet'!B1275=\"\",\"\",'1. Ordersheet'!B1275)","v":""},{"$f":"IF('1. Ordersheet'!I1275=\"\",\"\",'1. Ordersheet'!I1275)","v":""},{"$f":"IF('1. Ordersheet'!J1275=\"\",\"\",'1. Ordersheet'!J1275)","v":""},{"$f":"IF('1. Ordersheet'!K1275=\"\",\"\",'1. Ordersheet'!K1275)","v":""},{"$f":"IF('1. Ordersheet'!M1275=\"\",\"\",'1. Ordersheet'!M1275)","v":""},null,null,{"$f":"IF('1. Ordersheet'!AR1275=\"\",\"\",'1. Ordersheet'!AR1275)","v":""},{"$f":"IF('1. Ordersheet'!AE1275=\"\",\"\",'1. Ordersheet'!AE1275)","v":""}]
[{"$f":"IF('1. Ordersheet'!B1276=\"\",\"\",'1. Ordersheet'!B1276)","v":""},{"$f":"IF('1. Ordersheet'!I1276=\"\",\"\",'1. Ordersheet'!I1276)","v":""},{"$f":"IF('1. Ordersheet'!J1276=\"\",\"\",'1. Ordersheet'!J1276)","v":""},{"$f":"IF('1. Ordersheet'!K1276=\"\",\"\",'1. Ordersheet'!K1276)","v":""},{"$f":"IF('1. Ordersheet'!M1276=\"\",\"\",'1. Ordersheet'!M1276)","v":""},null,null,{"$f":"IF('1. Ordersheet'!AR1276=\"\",\"\",'1. Ordersheet'!AR1276)","v":""},{"$f":"IF('1. Ordersheet'!AE1276=\"\",\"\",'1. Ordersheet'!AE1276)","v":""}]
[{"$f":"IF('1. Ordersheet'!B1277=\"\",\"\",'1. Ordersheet'!B1277)","v":""},{"$f":"IF('1. Ordersheet'!I1277=\"\",\"\",'1. Ordersheet'!I1277)","v":""},{"$f":"IF('1. Ordersheet'!J1277=\"\",\"\",'1. Ordersheet'!J1277)","v":""},{"$f":"IF('1. Ordersheet'!K1277=\"\",\"\",'1. Ordersheet'!K1277)","v":""},{"$f":"IF('1. Ordersheet'!M1277=\"\",\"\",'1. Ordersheet'!M1277)","v":""},null,null,{"$f":"IF('1. Ordersheet'!AR1277=\"\",\"\",'1. Ordersheet'!AR1277)","v":""},{"$f":"IF('1. Ordersheet'!AE1277=\"\",\"\",'1. Ordersheet'!AE1277)","v":""}]
[{"$f":"IF('1. Ordersheet'!B1278=\"\",\"\",'1. Ordersheet'!B1278)","v":""},{"$f":"IF('1. Ordersheet'!I1278=\"\",\"\",'1. Ordersheet'!I1278)","v":""},{"$f":"IF('1. Ordersheet'!J1278=\"\",\"\",'1. Ordersheet'!J1278)","v":""},{"$f":"IF('1. Ordersheet'!K1278=\"\",\"\",'1. Ordersheet'!K1278)","v":""},{"$f":"IF('1. Ordersheet'!M1278=\"\",\"\",'1. Ordersheet'!M1278)","v":""},null,null,{"$f":"IF('1. Ordersheet'!AR1278=\"\",\"\",'1. Ordersheet'!AR1278)","v":""},{"$f":"IF('1. Ordersheet'!AE1278=\"\",\"\",'1. Ordersheet'!AE1278)","v":""}]
[{"$f":"IF('1. Ordersheet'!B1279=\"\",\"\",'1. Ordersheet'!B1279)","v":""},{"$f":"IF('1. Ordersheet'!I1279=\"\",\"\",'1. Ordersheet'!I1279)","v":""},{"$f":"IF('1. Ordersheet'!J1279=\"\",\"\",'1. Ordersheet'!J1279)","v":""},{"$f":"IF('1. Ordersheet'!K1279=\"\",\"\",'1. Ordersheet'!K1279)","v":""},{"$f":"IF('1. Ordersheet'!M1279=\"\",\"\",'1. Ordersheet'!M1279)","v":""},null,null,{"$f":"IF('1. Ordersheet'!AR1279=\"\",\"\",'1. Ordersheet'!AR1279)","v":""},{"$f":"IF('1. Ordersheet'!AE1279=\"\",\"\",'1. Ordersheet'!AE1279)","v":""}]
[{"$f":"IF('1. Ordersheet'!B1280=\"\",\"\",'1. Ordersheet'!B1280)","v":""},{"$f":"IF('1. Ordersheet'!I1280=\"\",\"\",'1. Ordersheet'!I1280)","v":""},{"$f":"IF('1. Ordersheet'!J1280=\"\",\"\",'1. Ordersheet'!J1280)","v":""},{"$f":"IF('1. Ordersheet'!K1280=\"\",\"\",'1. Ordersheet'!K1280)","v":""},{"$f":"IF('1. Ordersheet'!M1280=\"\",\"\",'1. Ordersheet'!M1280)","v":""},null,null,{"$f":"IF('1. Ordersheet'!AR1280=\"\",\"\",'1. Ordersheet'!AR1280)","v":""},{"$f":"IF('1. Ordersheet'!AE1280=\"\",\"\",'1. Ordersheet'!AE1280)","v":""}]
[{"$f":"IF('1. Ordersheet'!B1281=\"\",\"\",'1. Ordersheet'!B1281)","v":""},{"$f":"IF('1. Ordersheet'!I1281=\"\",\"\",'1. Ordersheet'!I1281)","v":""},{"$f":"IF('1. Ordersheet'!J1281=\"\",\"\",'1. Ordersheet'!J1281)","v":""},{"$f":"IF('1. Ordersheet'!K1281=\"\",\"\",'1. Ordersheet'!K1281)","v":""},{"$f":"IF('1. Ordersheet'!M1281=\"\",\"\",'1. Ordersheet'!M1281)","v":""},null,null,{"$f":"IF('1. Ordersheet'!AR1281=\"\",\"\",'1. Ordersheet'!AR1281)","v":""},{"$f":"IF('1. Ordersheet'!AE1281=\"\",\"\",'1. Ordersheet'!AE1281)","v":""}]
[{"$f":"IF('1. Ordersheet'!B1282=\"\",\"\",'1. Ordersheet'!B1282)","v":""},{"$f":"IF('1. Ordersheet'!I1282=\"\",\"\",'1. Ordersheet'!I1282)","v":""},{"$f":"IF('1. Ordersheet'!J1282=\"\",\"\",'1. Ordersheet'!J1282)","v":""},{"$f":"IF('1. Ordersheet'!K1282=\"\",\"\",'1. Ordersheet'!K1282)","v":""},{"$f":"IF('1. Ordersheet'!M1282=\"\",\"\",'1. Ordersheet'!M1282)","v":""},null,null,{"$f":"IF('1. Ordersheet'!AR1282=\"\",\"\",'1. Ordersheet'!AR1282)","v":""},{"$f":"IF('1. Ordersheet'!AE1282=\"\",\"\",'1. Ordersheet'!AE1282)","v":""}]
[{"$f":"IF('1. Ordersheet'!B1283=\"\",\"\",'1. Ordersheet'!B1283)","v":""},{"$f":"IF('1. Ordersheet'!I1283=\"\",\"\",'1. Ordersheet'!I1283)","v":""},{"$f":"IF('1. Ordersheet'!J1283=\"\",\"\",'1. Ordersheet'!J1283)","v":""},{"$f":"IF('1. Ordersheet'!K1283=\"\",\"\",'1. Ordersheet'!K1283)","v":""},{"$f":"IF('1. Ordersheet'!M1283=\"\",\"\",'1. Ordersheet'!M1283)","v":""},null,null,{"$f":"IF('1. Ordersheet'!AR1283=\"\",\"\",'1. Ordersheet'!AR1283)","v":""},{"$f":"IF('1. Ordersheet'!AE1283=\"\",\"\",'1. Ordersheet'!AE1283)","v":""}]
[{"$f":"IF('1. Ordersheet'!B1284=\"\",\"\",'1. Ordersheet'!B1284)","v":""},{"$f":"IF('1. Ordersheet'!I1284=\"\",\"\",'1. Ordersheet'!I1284)","v":""},{"$f":"IF('1. Ordersheet'!J1284=\"\",\"\",'1. Ordersheet'!J1284)","v":""},{"$f":"IF('1. Ordersheet'!K1284=\"\",\"\",'1. Ordersheet'!K1284)","v":""},{"$f":"IF('1. Ordersheet'!M1284=\"\",\"\",'1. Ordersheet'!M1284)","v":""},null,null,{"$f":"IF('1. Ordersheet'!AR1284=\"\",\"\",'1. Ordersheet'!AR1284)","v":""},{"$f":"IF('1. Ordersheet'!AE1284=\"\",\"\",'1. Ordersheet'!AE1284)","v":""}]
[{"$f":"IF('1. Ordersheet'!B1285=\"\",\"\",'1. Ordersheet'!B1285)","v":""},{"$f":"IF('1. Ordersheet'!I1285=\"\",\"\",'1. Ordersheet'!I1285)","v":""},{"$f":"IF('1. Ordersheet'!J1285=\"\",\"\",'1. Ordersheet'!J1285)","v":""},{"$f":"IF('1. Ordersheet'!K1285=\"\",\"\",'1. Ordersheet'!K1285)","v":""},{"$f":"IF('1. Ordersheet'!M1285=\"\",\"\",'1. Ordersheet'!M1285)","v":""},null,null,{"$f":"IF('1. Ordersheet'!AR1285=\"\",\"\",'1. Ordersheet'!AR1285)","v":""},{"$f":"IF('1. Ordersheet'!AE1285=\"\",\"\",'1. Ordersheet'!AE1285)","v":""}]
[{"$f":"IF('1. Ordersheet'!B1286=\"\",\"\",'1. Ordersheet'!B1286)","v":""},{"$f":"IF('1. Ordersheet'!I1286=\"\",\"\",'1. Ordersheet'!I1286)","v":""},{"$f":"IF('1. Ordersheet'!J1286=\"\",\"\",'1. Ordersheet'!J1286)","v":""},{"$f":"IF('1. Ordersheet'!K1286=\"\",\"\",'1. Ordersheet'!K1286)","v":""},{"$f":"IF('1. Ordersheet'!M1286=\"\",\"\",'1. Ordersheet'!M1286)","v":""},null,null,{"$f":"IF('1. Ordersheet'!AR1286=\"\",\"\",'1. Ordersheet'!AR1286)","v":""},{"$f":"IF('1. Ordersheet'!AE1286=\"\",\"\",'1. Ordersheet'!AE1286)","v":""}]
[{"$f":"IF('1. Ordersheet'!B1287=\"\",\"\",'1. Ordersheet'!B1287)","v":""},{"$f":"IF('1. Ordersheet'!I1287=\"\",\"\",'1. Ordersheet'!I1287)","v":""},{"$f":"IF('1. Ordersheet'!J1287=\"\",\"\",'1. Ordersheet'!J1287)","v":""},{"$f":"IF('1. Ordersheet'!K1287=\"\",\"\",'1. Ordersheet'!K1287)","v":""},{"$f":"IF('1. Ordersheet'!M1287=\"\",\"\",'1. Ordersheet'!M1287)","v":""},null,null,{"$f":"IF('1. Ordersheet'!AR1287=\"\",\"\",'1. Ordersheet'!AR1287)","v":""},{"$f":"IF('1. Ordersheet'!AE1287=\"\",\"\",'1. Ordersheet'!AE1287)","v":""}]
[{"$f":"IF('1. Ordersheet'!B1288=\"\",\"\",'1. Ordersheet'!B1288)","v":""},{"$f":"IF('1. Ordersheet'!I1288=\"\",\"\",'1. Ordersheet'!I1288)","v":""},{"$f":"IF('1. Ordersheet'!J1288=\"\",\"\",'1. Ordersheet'!J1288)","v":""},{"$f":"IF('1. Ordersheet'!K1288=\"\",\"\",'1. Ordersheet'!K1288)","v":""},{"$f":"IF('1. Ordersheet'!M1288=\"\",\"\",'1. Ordersheet'!M1288)","v":""},null,null,{"$f":"IF('1. Ordersheet'!AR1288=\"\",\"\",'1. Ordersheet'!AR1288)","v":""},{"$f":"IF('1. Ordersheet'!AE1288=\"\",\"\",'1. Ordersheet'!AE1288)","v":""}]
[{"$f":"IF('1. Ordersheet'!B1289=\"\",\"\",'1. Ordersheet'!B1289)","v":""},{"$f":"IF('1. Ordersheet'!I1289=\"\",\"\",'1. Ordersheet'!I1289)","v":""},{"$f":"IF('1. Ordersheet'!J1289=\"\",\"\",'1. Ordersheet'!J1289)","v":""},{"$f":"IF('1. Ordersheet'!K1289=\"\",\"\",'1. Ordersheet'!K1289)","v":""},{"$f":"IF('1. Ordersheet'!M1289=\"\",\"\",'1. Ordersheet'!M1289)","v":""},null,null,{"$f":"IF('1. Ordersheet'!AR1289=\"\",\"\",'1. Ordersheet'!AR1289)","v":""},{"$f":"IF('1. Ordersheet'!AE1289=\"\",\"\",'1. Ordersheet'!AE1289)","v":""}]
[{"$f":"IF('1. Ordersheet'!B1290=\"\",\"\",'1. Ordersheet'!B1290)","v":""},{"$f":"IF('1. Ordersheet'!I1290=\"\",\"\",'1. Ordersheet'!I1290)","v":""},{"$f":"IF('1. Ordersheet'!J1290=\"\",\"\",'1. Ordersheet'!J1290)","v":""},{"$f":"IF('1. Ordersheet'!K1290=\"\",\"\",'1. Ordersheet'!K1290)","v":""},{"$f":"IF('1. Ordersheet'!M1290=\"\",\"\",'1. Ordersheet'!M1290)","v":""},null,null,{"$f":"IF('1. Ordersheet'!AR1290=\"\",\"\",'1. Ordersheet'!AR1290)","v":""},{"$f":"IF('1. Ordersheet'!AE1290=\"\",\"\",'1. Ordersheet'!AE1290)","v":""}]
[{"$f":"IF('1. Ordersheet'!B1291=\"\",\"\",'1. Ordersheet'!B1291)","v":""},{"$f":"IF('1. Ordersheet'!I1291=\"\",\"\",'1. Ordersheet'!I1291)","v":""},{"$f":"IF('1. Ordersheet'!J1291=\"\",\"\",'1. Ordersheet'!J1291)","v":""},{"$f":"IF('1. Ordersheet'!K1291=\"\",\"\",'1. Ordersheet'!K1291)","v":""},{"$f":"IF('1. Ordersheet'!M1291=\"\",\"\",'1. Ordersheet'!M1291)","v":""},null,null,{"$f":"IF('1. Ordersheet'!AR1291=\"\",\"\",'1. Ordersheet'!AR1291)","v":""},{"$f":"IF('1. Ordersheet'!AE1291=\"\",\"\",'1. Ordersheet'!AE1291)","v":""}]
[{"$f":"IF('1. Ordersheet'!B1292=\"\",\"\",'1. Ordersheet'!B1292)","v":""},{"$f":"IF('1. Ordersheet'!I1292=\"\",\"\",'1. Ordersheet'!I1292)","v":""},{"$f":"IF('1. Ordersheet'!J1292=\"\",\"\",'1. Ordersheet'!J1292)","v":""},{"$f":"IF('1. Ordersheet'!K1292=\"\",\"\",'1. Ordersheet'!K1292)","v":""},{"$f":"IF('1. Ordersheet'!M1292=\"\",\"\",'1. Ordersheet'!M1292)","v":""},null,null,{"$f":"IF('1. Ordersheet'!AR1292=\"\",\"\",'1. Ordersheet'!AR1292)","v":""},{"$f":"IF('1. Ordersheet'!AE1292=\"\",\"\",'1. Ordersheet'!AE1292)","v":""}]
[{"$f":"IF('1. Ordersheet'!B1293=\"\",\"\",'1. Ordersheet'!B1293)","v":""},{"$f":"IF('1. Ordersheet'!I1293=\"\",\"\",'1. Ordersheet'!I1293)","v":""},{"$f":"IF('1. Ordersheet'!J1293=\"\",\"\",'1. Ordersheet'!J1293)","v":""},{"$f":"IF('1. Ordersheet'!K1293=\"\",\"\",'1. Ordersheet'!K1293)","v":""},{"$f":"IF('1. Ordersheet'!M1293=\"\",\"\",'1. Ordersheet'!M1293)","v":""},null,null,{"$f":"IF('1. Ordersheet'!AR1293=\"\",\"\",'1. Ordersheet'!AR1293)","v":""},{"$f":"IF('1. Ordersheet'!AE1293=\"\",\"\",'1. Ordersheet'!AE1293)","v":""}]
[{"$f":"IF('1. Ordersheet'!B1294=\"\",\"\",'1. Ordersheet'!B1294)","v":""},{"$f":"IF('1. Ordersheet'!I1294=\"\",\"\",'1. Ordersheet'!I1294)","v":""},{"$f":"IF('1. Ordersheet'!J1294=\"\",\"\",'1. Ordersheet'!J1294)","v":""},{"$f":"IF('1. Ordersheet'!K1294=\"\",\"\",'1. Ordersheet'!K1294)","v":""},{"$f":"IF('1. Ordersheet'!M1294=\"\",\"\",'1. Ordersheet'!M1294)","v":""},null,null,{"$f":"IF('1. Ordersheet'!AR1294=\"\",\"\",'1. Ordersheet'!AR1294)","v":""},{"$f":"IF('1. Ordersheet'!AE1294=\"\",\"\",'1. Ordersheet'!AE1294)","v":""}]
[{"$f":"IF('1. Ordersheet'!B1295=\"\",\"\",'1. Ordersheet'!B1295)","v":""},{"$f":"IF('1. Ordersheet'!I1295=\"\",\"\",'1. Ordersheet'!I1295)","v":""},{"$f":"IF('1. Ordersheet'!J1295=\"\",\"\",'1. Ordersheet'!J1295)","v":""},{"$f":"IF('1. Ordersheet'!K1295=\"\",\"\",'1. Ordersheet'!K1295)","v":""},{"$f":"IF('1. Ordersheet'!M1295=\"\",\"\",'1. Ordersheet'!M1295)","v":""},null,null,{"$f":"IF('1. Ordersheet'!AR1295=\"\",\"\",'1. Ordersheet'!AR1295)","v":""},{"$f":"IF('1. Ordersheet'!AE1295=\"\",\"\",'1. Ordersheet'!AE1295)","v":""}]
[{"$f":"IF('1. Ordersheet'!B1296=\"\",\"\",'1. Ordersheet'!B1296)","v":""},{"$f":"IF('1. Ordersheet'!I1296=\"\",\"\",'1. Ordersheet'!I1296)","v":""},{"$f":"IF('1. Ordersheet'!J1296=\"\",\"\",'1. Ordersheet'!J1296)","v":""},{"$f":"IF('1. Ordersheet'!K1296=\"\",\"\",'1. Ordersheet'!K1296)","v":""},{"$f":"IF('1. Ordersheet'!M1296=\"\",\"\",'1. Ordersheet'!M1296)","v":""},null,null,{"$f":"IF('1. Ordersheet'!AR1296=\"\",\"\",'1. Ordersheet'!AR1296)","v":""},{"$f":"IF('1. Ordersheet'!AE1296=\"\",\"\",'1. Ordersheet'!AE1296)","v":""}]
[{"$f":"IF('1. Ordersheet'!B1297=\"\",\"\",'1. Ordersheet'!B1297)","v":""},{"$f":"IF('1. Ordersheet'!I1297=\"\",\"\",'1. Ordersheet'!I1297)","v":""},{"$f":"IF('1. Ordersheet'!J1297=\"\",\"\",'1. Ordersheet'!J1297)","v":""},{"$f":"IF('1. Ordersheet'!K1297=\"\",\"\",'1. Ordersheet'!K1297)","v":""},{"$f":"IF('1. Ordersheet'!M1297=\"\",\"\",'1. Ordersheet'!M1297)","v":""},null,null,{"$f":"IF('1. Ordersheet'!AR1297=\"\",\"\",'1. Ordersheet'!AR1297)","v":""},{"$f":"IF('1. Ordersheet'!AE1297=\"\",\"\",'1. Ordersheet'!AE1297)","v":""}]
[{"$f":"IF('1. Ordersheet'!B1298=\"\",\"\",'1. Ordersheet'!B1298)","v":""},{"$f":"IF('1. Ordersheet'!I1298=\"\",\"\",'1. Ordersheet'!I1298)","v":""},{"$f":"IF('1. Ordersheet'!J1298=\"\",\"\",'1. Ordersheet'!J1298)","v":""},{"$f":"IF('1. Ordersheet'!K1298=\"\",\"\",'1. Ordersheet'!K1298)","v":""},{"$f":"IF('1. Ordersheet'!M1298=\"\",\"\",'1. Ordersheet'!M1298)","v":""},null,null,{"$f":"IF('1. Ordersheet'!AR1298=\"\",\"\",'1. Ordersheet'!AR1298)","v":""},{"$f":"IF('1. Ordersheet'!AE1298=\"\",\"\",'1. Ordersheet'!AE1298)","v":""}]
[{"$f":"IF('1. Ordersheet'!B1299=\"\",\"\",'1. Ordersheet'!B1299)","v":""},{"$f":"IF('1. Ordersheet'!I1299=\"\",\"\",'1. Ordersheet'!I1299)","v":""},{"$f":"IF('1. Ordersheet'!J1299=\"\",\"\",'1. Ordersheet'!J1299)","v":""},{"$f":"IF('1. Ordersheet'!K1299=\"\",\"\",'1. Ordersheet'!K1299)","v":""},{"$f":"IF('1. Ordersheet'!M1299=\"\",\"\",'1. Ordersheet'!M1299)","v":""},null,null,{"$f":"IF('1. Ordersheet'!AR1299=\"\",\"\",'1. Ordersheet'!AR1299)","v":""},{"$f":"IF('1. Ordersheet'!AE1299=\"\",\"\",'1. Ordersheet'!AE1299)","v":""}]
[{"$f":"IF('1. Ordersheet'!B1300=\"\",\"\",'1. Ordersheet'!B1300)","v":""},{"$f":"IF('1. Ordersheet'!I1300=\"\",\"\",'1. Ordersheet'!I1300)","v":""},{"$f":"IF('1. Ordersheet'!J1300=\"\",\"\",'1. Ordersheet'!J1300)","v":""},{"$f":"IF('1. Ordersheet'!K1300=\"\",\"\",'1. Ordersheet'!K1300)","v":""},{"$f":"IF('1. Ordersheet'!M1300=\"\",\"\",'1. Ordersheet'!M1300)","v":""},null,null,{"$f":"IF('1. Ordersheet'!AR1300=\"\",\"\",'1. Ordersheet'!AR1300)","v":""},{"$f":"IF('1. Ordersheet'!AE1300=\"\",\"\",'1. Ordersheet'!AE1300)","v":""}]
[{"$f":"IF('1. Ordersheet'!B1301=\"\",\"\",'1. Ordersheet'!B1301)","v":""},{"$f":"IF('1. Ordersheet'!I1301=\"\",\"\",'1. Ordersheet'!I1301)","v":""},{"$f":"IF('1. Ordersheet'!J1301=\"\",\"\",'1. Ordersheet'!J1301)","v":""},{"$f":"IF('1. Ordersheet'!K1301=\"\",\"\",'1. Ordersheet'!K1301)","v":""},{"$f":"IF('1. Ordersheet'!M1301=\"\",\"\",'1. Ordersheet'!M1301)","v":""},null,null,{"$f":"IF('1. Ordersheet'!AR1301=\"\",\"\",'1. Ordersheet'!AR1301)","v":""},{"$f":"IF('1. Ordersheet'!AE1301=\"\",\"\",'1. Ordersheet'!AE1301)","v":""}]
[{"$f":"IF('1. Ordersheet'!B1302=\"\",\"\",'1. Ordersheet'!B1302)","v":""},{"$f":"IF('1. Ordersheet'!I1302=\"\",\"\",'1. Ordersheet'!I1302)","v":""},{"$f":"IF('1. Ordersheet'!J1302=\"\",\"\",'1. Ordersheet'!J1302)","v":""},{"$f":"IF('1. Ordersheet'!K1302=\"\",\"\",'1. Ordersheet'!K1302)","v":""},{"$f":"IF('1. Ordersheet'!M1302=\"\",\"\",'1. Ordersheet'!M1302)","v":""},null,null,{"$f":"IF('1. Ordersheet'!AR1302=\"\",\"\",'1. Ordersheet'!AR1302)","v":""},{"$f":"IF('1. Ordersheet'!AE1302=\"\",\"\",'1. Ordersheet'!AE1302)","v":""}]
[{"$f":"IF('1. Ordersheet'!B1303=\"\",\"\",'1. Ordersheet'!B1303)","v":""},{"$f":"IF('1. Ordersheet'!I1303=\"\",\"\",'1. Ordersheet'!I1303)","v":""},{"$f":"IF('1. Ordersheet'!J1303=\"\",\"\",'1. Ordersheet'!J1303)","v":""},{"$f":"IF('1. Ordersheet'!K1303=\"\",\"\",'1. Ordersheet'!K1303)","v":""},{"$f":"IF('1. Ordersheet'!M1303=\"\",\"\",'1. Ordersheet'!M1303)","v":""},null,null,{"$f":"IF('1. Ordersheet'!AR1303=\"\",\"\",'1. Ordersheet'!AR1303)","v":""},{"$f":"IF('1. Ordersheet'!AE1303=\"\",\"\",'1. Ordersheet'!AE1303)","v":""}]
[{"$f":"IF('1. Ordersheet'!B1304=\"\",\"\",'1. Ordersheet'!B1304)","v":""},{"$f":"IF('1. Ordersheet'!I1304=\"\",\"\",'1. Ordersheet'!I1304)","v":""},{"$f":"IF('1. Ordersheet'!J1304=\"\",\"\",'1. Ordersheet'!J1304)","v":""},{"$f":"IF('1. Ordersheet'!K1304=\"\",\"\",'1. Ordersheet'!K1304)","v":""},{"$f":"IF('1. Ordersheet'!M1304=\"\",\"\",'1. Ordersheet'!M1304)","v":""},null,null,{"$f":"IF('1. Ordersheet'!AR1304=\"\",\"\",'1. Ordersheet'!AR1304)","v":""},{"$f":"IF('1. Ordersheet'!AE1304=\"\",\"\",'1. Ordersheet'!AE1304)","v":""}]
[{"$f":"IF('1. Ordersheet'!B1305=\"\",\"\",'1. Ordersheet'!B1305)","v":""},{"$f":"IF('1. Ordersheet'!I1305=\"\",\"\",'1. Ordersheet'!I1305)","v":""},{"$f":"IF('1. Ordersheet'!J1305=\"\",\"\",'1. Ordersheet'!J1305)","v":""},{"$f":"IF('1. Ordersheet'!K1305=\"\",\"\",'1. Ordersheet'!K1305)","v":""},{"$f":"IF('1. Ordersheet'!M1305=\"\",\"\",'1. Ordersheet'!M1305)","v":""},null,null,{"$f":"IF('1. Ordersheet'!AR1305=\"\",\"\",'1. Ordersheet'!AR1305)","v":""},{"$f":"IF('1. Ordersheet'!AE1305=\"\",\"\",'1. Ordersheet'!AE1305)","v":""}]
[{"$f":"IF('1. Ordersheet'!B1306=\"\",\"\",'1. Ordersheet'!B1306)","v":""},{"$f":"IF('1. Ordersheet'!I1306=\"\",\"\",'1. Ordersheet'!I1306)","v":""},{"$f":"IF('1. Ordersheet'!J1306=\"\",\"\",'1. Ordersheet'!J1306)","v":""},{"$f":"IF('1. Ordersheet'!K1306=\"\",\"\",'1. Ordersheet'!K1306)","v":""},{"$f":"IF('1. Ordersheet'!M1306=\"\",\"\",'1. Ordersheet'!M1306)","v":""},null,null,{"$f":"IF('1. Ordersheet'!AR1306=\"\",\"\",'1. Ordersheet'!AR1306)","v":""},{"$f":"IF('1. Ordersheet'!AE1306=\"\",\"\",'1. Ordersheet'!AE1306)","v":""}]
[{"$f":"IF('1. Ordersheet'!B1307=\"\",\"\",'1. Ordersheet'!B1307)","v":""},{"$f":"IF('1. Ordersheet'!I1307=\"\",\"\",'1. Ordersheet'!I1307)","v":""},{"$f":"IF('1. Ordersheet'!J1307=\"\",\"\",'1. Ordersheet'!J1307)","v":""},{"$f":"IF('1. Ordersheet'!K1307=\"\",\"\",'1. Ordersheet'!K1307)","v":""},{"$f":"IF('1. Ordersheet'!M1307=\"\",\"\",'1. Ordersheet'!M1307)","v":""},null,null,{"$f":"IF('1. Ordersheet'!AR1307=\"\",\"\",'1. Ordersheet'!AR1307)","v":""},{"$f":"IF('1. Ordersheet'!AE1307=\"\",\"\",'1. Ordersheet'!AE1307)","v":""}]
[{"$f":"IF('1. Ordersheet'!B1308=\"\",\"\",'1. Ordersheet'!B1308)","v":""},{"$f":"IF('1. Ordersheet'!I1308=\"\",\"\",'1. Ordersheet'!I1308)","v":""},{"$f":"IF('1. Ordersheet'!J1308=\"\",\"\",'1. Ordersheet'!J1308)","v":""},{"$f":"IF('1. Ordersheet'!K1308=\"\",\"\",'1. Ordersheet'!K1308)","v":""},{"$f":"IF('1. Ordersheet'!M1308=\"\",\"\",'1. Ordersheet'!M1308)","v":""},null,null,{"$f":"IF('1. Ordersheet'!AR1308=\"\",\"\",'1. Ordersheet'!AR1308)","v":""},{"$f":"IF('1. Ordersheet'!AE1308=\"\",\"\",'1. Ordersheet'!AE1308)","v":""}]
[{"$f":"IF('1. Ordersheet'!B1309=\"\",\"\",'1. Ordersheet'!B1309)","v":""},{"$f":"IF('1. Ordersheet'!I1309=\"\",\"\",'1. Ordersheet'!I1309)","v":""},{"$f":"IF('1. Ordersheet'!J1309=\"\",\"\",'1. Ordersheet'!J1309)","v":""},{"$f":"IF('1. Ordersheet'!K1309=\"\",\"\",'1. Ordersheet'!K1309)","v":""},{"$f":"IF('1. Ordersheet'!M1309=\"\",\"\",'1. Ordersheet'!M1309)","v":""},null,null,{"$f":"IF('1. Ordersheet'!AR1309=\"\",\"\",'1. Ordersheet'!AR1309)","v":""},{"$f":"IF('1. Ordersheet'!AE1309=\"\",\"\",'1. Ordersheet'!AE1309)","v":""}]
[{"$f":"IF('1. Ordersheet'!B1310=\"\",\"\",'1. Ordersheet'!B1310)","v":""},{"$f":"IF('1. Ordersheet'!I1310=\"\",\"\",'1. Ordersheet'!I1310)","v":""},{"$f":"IF('1. Ordersheet'!J1310=\"\",\"\",'1. Ordersheet'!J1310)","v":""},{"$f":"IF('1. Ordersheet'!K1310=\"\",\"\",'1. Ordersheet'!K1310)","v":""},{"$f":"IF('1. Ordersheet'!M1310=\"\",\"\",'1. Ordersheet'!M1310)","v":""},null,null,{"$f":"IF('1. Ordersheet'!AR1310=\"\",\"\",'1. Ordersheet'!AR1310)","v":""},{"$f":"IF('1. Ordersheet'!AE1310=\"\",\"\",'1. Ordersheet'!AE1310)","v":""}]
[{"$f":"IF('1. Ordersheet'!B1311=\"\",\"\",'1. Ordersheet'!B1311)","v":""},{"$f":"IF('1. Ordersheet'!I1311=\"\",\"\",'1. Ordersheet'!I1311)","v":""},{"$f":"IF('1. Ordersheet'!J1311=\"\",\"\",'1. Ordersheet'!J1311)","v":""},{"$f":"IF('1. Ordersheet'!K1311=\"\",\"\",'1. Ordersheet'!K1311)","v":""},{"$f":"IF('1. Ordersheet'!M1311=\"\",\"\",'1. Ordersheet'!M1311)","v":""},null,null,{"$f":"IF('1. Ordersheet'!AR1311=\"\",\"\",'1. Ordersheet'!AR1311)","v":""},{"$f":"IF('1. Ordersheet'!AE1311=\"\",\"\",'1. Ordersheet'!AE1311)","v":""}]
[{"$f":"IF('1. Ordersheet'!B1312=\"\",\"\",'1. Ordersheet'!B1312)","v":""},{"$f":"IF('1. Ordersheet'!I1312=\"\",\"\",'1. Ordersheet'!I1312)","v":""},{"$f":"IF('1. Ordersheet'!J1312=\"\",\"\",'1. Ordersheet'!J1312)","v":""},{"$f":"IF('1. Ordersheet'!K1312=\"\",\"\",'1. Ordersheet'!K1312)","v":""},{"$f":"IF('1. Ordersheet'!M1312=\"\",\"\",'1. Ordersheet'!M1312)","v":""},null,null,{"$f":"IF('1. Ordersheet'!AR1312=\"\",\"\",'1. Ordersheet'!AR1312)","v":""},{"$f":"IF('1. Ordersheet'!AE1312=\"\",\"\",'1. Ordersheet'!AE1312)","v":""}]
[{"$f":"IF('1. Ordersheet'!B1313=\"\",\"\",'1. Ordersheet'!B1313)","v":""},{"$f":"IF('1. Ordersheet'!I1313=\"\",\"\",'1. Ordersheet'!I1313)","v":""},{"$f":"IF('1. Ordersheet'!J1313=\"\",\"\",'1. Ordersheet'!J1313)","v":""},{"$f":"IF('1. Ordersheet'!K1313=\"\",\"\",'1. Ordersheet'!K1313)","v":""},{"$f":"IF('1. Ordersheet'!M1313=\"\",\"\",'1. Ordersheet'!M1313)","v":""},null,null,{"$f":"IF('1. Ordersheet'!AR1313=\"\",\"\",'1. Ordersheet'!AR1313)","v":""},{"$f":"IF('1. Ordersheet'!AE1313=\"\",\"\",'1. Ordersheet'!AE1313)","v":""}]
[{"$f":"IF('1. Ordersheet'!B1314=\"\",\"\",'1. Ordersheet'!B1314)","v":""},{"$f":"IF('1. Ordersheet'!I1314=\"\",\"\",'1. Ordersheet'!I1314)","v":""},{"$f":"IF('1. Ordersheet'!J1314=\"\",\"\",'1. Ordersheet'!J1314)","v":""},{"$f":"IF('1. Ordersheet'!K1314=\"\",\"\",'1. Ordersheet'!K1314)","v":""},{"$f":"IF('1. Ordersheet'!M1314=\"\",\"\",'1. Ordersheet'!M1314)","v":""},null,null,{"$f":"IF('1. Ordersheet'!AR1314=\"\",\"\",'1. Ordersheet'!AR1314)","v":""},{"$f":"IF('1. Ordersheet'!AE1314=\"\",\"\",'1. Ordersheet'!AE1314)","v":""}]
[{"$f":"IF('1. Ordersheet'!B1315=\"\",\"\",'1. Ordersheet'!B1315)","v":""},{"$f":"IF('1. Ordersheet'!I1315=\"\",\"\",'1. Ordersheet'!I1315)","v":""},{"$f":"IF('1. Ordersheet'!J1315=\"\",\"\",'1. Ordersheet'!J1315)","v":""},{"$f":"IF('1. Ordersheet'!K1315=\"\",\"\",'1. Ordersheet'!K1315)","v":""},{"$f":"IF('1. Ordersheet'!M1315=\"\",\"\",'1. Ordersheet'!M1315)","v":""},null,null,{"$f":"IF('1. Ordersheet'!AR1315=\"\",\"\",'1. Ordersheet'!AR1315)","v":""},{"$f":"IF('1. Ordersheet'!AE1315=\"\",\"\",'1. Ordersheet'!AE1315)","v":""}]
[{"$f":"IF('1. Ordersheet'!B1316=\"\",\"\",'1. Ordersheet'!B1316)","v":""},{"$f":"IF('1. Ordersheet'!I1316=\"\",\"\",'1. Ordersheet'!I1316)","v":""},{"$f":"IF('1. Ordersheet'!J1316=\"\",\"\",'1. Ordersheet'!J1316)","v":""},{"$f":"IF('1. Ordersheet'!K1316=\"\",\"\",'1. Ordersheet'!K1316)","v":""},{"$f":"IF('1. Ordersheet'!M1316=\"\",\"\",'1. Ordersheet'!M1316)","v":""},null,null,{"$f":"IF('1. Ordersheet'!AR1316=\"\",\"\",'1. Ordersheet'!AR1316)","v":""},{"$f":"IF('1. Ordersheet'!AE1316=\"\",\"\",'1. Ordersheet'!AE1316)","v":""}]
[{"$f":"IF('1. Ordersheet'!B1317=\"\",\"\",'1. Ordersheet'!B1317)","v":""},{"$f":"IF('1. Ordersheet'!I1317=\"\",\"\",'1. Ordersheet'!I1317)","v":""},{"$f":"IF('1. Ordersheet'!J1317=\"\",\"\",'1. Ordersheet'!J1317)","v":""},{"$f":"IF('1. Ordersheet'!K1317=\"\",\"\",'1. Ordersheet'!K1317)","v":""},{"$f":"IF('1. Ordersheet'!M1317=\"\",\"\",'1. Ordersheet'!M1317)","v":""},null,null,{"$f":"IF('1. Ordersheet'!AR1317=\"\",\"\",'1. Ordersheet'!AR1317)","v":""},{"$f":"IF('1. Ordersheet'!AE1317=\"\",\"\",'1. Ordersheet'!AE1317)","v":""}]
[{"$f":"IF('1. Ordersheet'!B1318=\"\",\"\",'1. Ordersheet'!B1318)","v":""},{"$f":"IF('1. Ordersheet'!I1318=\"\",\"\",'1. Ordersheet'!I1318)","v":""},{"$f":"IF('1. Ordersheet'!J1318=\"\",\"\",'1. Ordersheet'!J1318)","v":""},{"$f":"IF('1. Ordersheet'!K1318=\"\",\"\",'1. Ordersheet'!K1318)","v":""},{"$f":"IF('1. Ordersheet'!M1318=\"\",\"\",'1. Ordersheet'!M1318)","v":""},null,null,{"$f":"IF('1. Ordersheet'!AR1318=\"\",\"\",'1. Ordersheet'!AR1318)","v":""},{"$f":"IF('1. Ordersheet'!AE1318=\"\",\"\",'1. Ordersheet'!AE1318)","v":""}]
[{"$f":"IF('1. Ordersheet'!B1319=\"\",\"\",'1. Ordersheet'!B1319)","v":""},{"$f":"IF('1. Ordersheet'!I1319=\"\",\"\",'1. Ordersheet'!I1319)","v":""},{"$f":"IF('1. Ordersheet'!J1319=\"\",\"\",'1. Ordersheet'!J1319)","v":""},{"$f":"IF('1. Ordersheet'!K1319=\"\",\"\",'1. Ordersheet'!K1319)","v":""},{"$f":"IF('1. Ordersheet'!M1319=\"\",\"\",'1. Ordersheet'!M1319)","v":""},null,null,{"$f":"IF('1. Ordersheet'!AR1319=\"\",\"\",'1. Ordersheet'!AR1319)","v":""},{"$f":"IF('1. Ordersheet'!AE1319=\"\",\"\",'1. Ordersheet'!AE1319)","v":""}]
[{"$f":"IF('1. Ordersheet'!B1320=\"\",\"\",'1. Ordersheet'!B1320)","v":""},{"$f":"IF('1. Ordersheet'!I1320=\"\",\"\",'1. Ordersheet'!I1320)","v":""},{"$f":"IF('1. Ordersheet'!J1320=\"\",\"\",'1. Ordersheet'!J1320)","v":""},{"$f":"IF('1. Ordersheet'!K1320=\"\",\"\",'1. Ordersheet'!K1320)","v":""},{"$f":"IF('1. Ordersheet'!M1320=\"\",\"\",'1. Ordersheet'!M1320)","v":""},null,null,{"$f":"IF('1. Ordersheet'!AR1320=\"\",\"\",'1. Ordersheet'!AR1320)","v":""},{"$f":"IF('1. Ordersheet'!AE1320=\"\",\"\",'1. Ordersheet'!AE1320)","v":""}]
[{"$f":"IF('1. Ordersheet'!B1321=\"\",\"\",'1. Ordersheet'!B1321)","v":""},{"$f":"IF('1. Ordersheet'!I1321=\"\",\"\",'1. Ordersheet'!I1321)","v":""},{"$f":"IF('1. Ordersheet'!J1321=\"\",\"\",'1. Ordersheet'!J1321)","v":""},{"$f":"IF('1. Ordersheet'!K1321=\"\",\"\",'1. Ordersheet'!K1321)","v":""},{"$f":"IF('1. Ordersheet'!M1321=\"\",\"\",'1. Ordersheet'!M1321)","v":""},null,null,{"$f":"IF('1. Ordersheet'!AR1321=\"\",\"\",'1. Ordersheet'!AR1321)","v":""},{"$f":"IF('1. Ordersheet'!AE1321=\"\",\"\",'1. Ordersheet'!AE1321)","v":""}]
[{"$f":"IF('1. Ordersheet'!B1322=\"\",\"\",'1. Ordersheet'!B1322)","v":""},{"$f":"IF('1. Ordersheet'!I1322=\"\",\"\",'1. Ordersheet'!I1322)","v":""},{"$f":"IF('1. Ordersheet'!J1322=\"\",\"\",'1. Ordersheet'!J1322)","v":""},{"$f":"IF('1. Ordersheet'!K1322=\"\",\"\",'1. Ordersheet'!K1322)","v":""},{"$f":"IF('1. Ordersheet'!M1322=\"\",\"\",'1. Ordersheet'!M1322)","v":""},null,null,{"$f":"IF('1. Ordersheet'!AR1322=\"\",\"\",'1. Ordersheet'!AR1322)","v":""},{"$f":"IF('1. Ordersheet'!AE1322=\"\",\"\",'1. Ordersheet'!AE1322)","v":""}]
[{"$f":"IF('1. Ordersheet'!B1323=\"\",\"\",'1. Ordersheet'!B1323)","v":""},{"$f":"IF('1. Ordersheet'!I1323=\"\",\"\",'1. Ordersheet'!I1323)","v":""},{"$f":"IF('1. Ordersheet'!J1323=\"\",\"\",'1. Ordersheet'!J1323)","v":""},{"$f":"IF('1. Ordersheet'!K1323=\"\",\"\",'1. Ordersheet'!K1323)","v":""},{"$f":"IF('1. Ordersheet'!M1323=\"\",\"\",'1. Ordersheet'!M1323)","v":""},null,null,{"$f":"IF('1. Ordersheet'!AR1323=\"\",\"\",'1. Ordersheet'!AR1323)","v":""},{"$f":"IF('1. Ordersheet'!AE1323=\"\",\"\",'1. Ordersheet'!AE1323)","v":""}]
[{"$f":"IF('1. Ordersheet'!B1324=\"\",\"\",'1. Ordersheet'!B1324)","v":""},{"$f":"IF('1. Ordersheet'!I1324=\"\",\"\",'1. Ordersheet'!I1324)","v":""},{"$f":"IF('1. Ordersheet'!J1324=\"\",\"\",'1. Ordersheet'!J1324)","v":""},{"$f":"IF('1. Ordersheet'!K1324=\"\",\"\",'1. Ordersheet'!K1324)","v":""},{"$f":"IF('1. Ordersheet'!M1324=\"\",\"\",'1. Ordersheet'!M1324)","v":""},null,null,{"$f":"IF('1. Ordersheet'!AR1324=\"\",\"\",'1. Ordersheet'!AR1324)","v":""},{"$f":"IF('1. Ordersheet'!AE1324=\"\",\"\",'1. Ordersheet'!AE1324)","v":""}]
[{"$f":"IF('1. Ordersheet'!B1325=\"\",\"\",'1. Ordersheet'!B1325)","v":""},{"$f":"IF('1. Ordersheet'!I1325=\"\",\"\",'1. Ordersheet'!I1325)","v":""},{"$f":"IF('1. Ordersheet'!J1325=\"\",\"\",'1. Ordersheet'!J1325)","v":""},{"$f":"IF('1. Ordersheet'!K1325=\"\",\"\",'1. Ordersheet'!K1325)","v":""},{"$f":"IF('1. Ordersheet'!M1325=\"\",\"\",'1. Ordersheet'!M1325)","v":""},null,null,{"$f":"IF('1. Ordersheet'!AR1325=\"\",\"\",'1. Ordersheet'!AR1325)","v":""},{"$f":"IF('1. Ordersheet'!AE1325=\"\",\"\",'1. Ordersheet'!AE1325)","v":""}]
[{"$f":"IF('1. Ordersheet'!B1326=\"\",\"\",'1. Ordersheet'!B1326)","v":""},{"$f":"IF('1. Ordersheet'!I1326=\"\",\"\",'1. Ordersheet'!I1326)","v":""},{"$f":"IF('1. Ordersheet'!J1326=\"\",\"\",'1. Ordersheet'!J1326)","v":""},{"$f":"IF('1. Ordersheet'!K1326=\"\",\"\",'1. Ordersheet'!K1326)","v":""},{"$f":"IF('1. Ordersheet'!M1326=\"\",\"\",'1. Ordersheet'!M1326)","v":""},null,null,{"$f":"IF('1. Ordersheet'!AR1326=\"\",\"\",'1. Ordersheet'!AR1326)","v":""},{"$f":"IF('1. Ordersheet'!AE1326=\"\",\"\",'1. Ordersheet'!AE1326)","v":""}]
[{"$f":"IF('1. Ordersheet'!B1327=\"\",\"\",'1. Ordersheet'!B1327)","v":""},{"$f":"IF('1. Ordersheet'!I1327=\"\",\"\",'1. Ordersheet'!I1327)","v":""},{"$f":"IF('1. Ordersheet'!J1327=\"\",\"\",'1. Ordersheet'!J1327)","v":""},{"$f":"IF('1. Ordersheet'!K1327=\"\",\"\",'1. Ordersheet'!K1327)","v":""},{"$f":"IF('1. Ordersheet'!M1327=\"\",\"\",'1. Ordersheet'!M1327)","v":""},null,null,{"$f":"IF('1. Ordersheet'!AR1327=\"\",\"\",'1. Ordersheet'!AR1327)","v":""},{"$f":"IF('1. Ordersheet'!AE1327=\"\",\"\",'1. Ordersheet'!AE1327)","v":""}]
[{"$f":"IF('1. Ordersheet'!B1328=\"\",\"\",'1. Ordersheet'!B1328)","v":""},{"$f":"IF('1. Ordersheet'!I1328=\"\",\"\",'1. Ordersheet'!I1328)","v":""},{"$f":"IF('1. Ordersheet'!J1328=\"\",\"\",'1. Ordersheet'!J1328)","v":""},{"$f":"IF('1. Ordersheet'!K1328=\"\",\"\",'1. Ordersheet'!K1328)","v":""},{"$f":"IF('1. Ordersheet'!M1328=\"\",\"\",'1. Ordersheet'!M1328)","v":""},null,null,{"$f":"IF('1. Ordersheet'!AR1328=\"\",\"\",'1. Ordersheet'!AR1328)","v":""},{"$f":"IF('1. Ordersheet'!AE1328=\"\",\"\",'1. Ordersheet'!AE1328)","v":""}]
[{"$f":"IF('1. Ordersheet'!B1329=\"\",\"\",'1. Ordersheet'!B1329)","v":""},{"$f":"IF('1. Ordersheet'!I1329=\"\",\"\",'1. Ordersheet'!I1329)","v":""},{"$f":"IF('1. Ordersheet'!J1329=\"\",\"\",'1. Ordersheet'!J1329)","v":""},{"$f":"IF('1. Ordersheet'!K1329=\"\",\"\",'1. Ordersheet'!K1329)","v":""},{"$f":"IF('1. Ordersheet'!M1329=\"\",\"\",'1. Ordersheet'!M1329)","v":""},null,null,{"$f":"IF('1. Ordersheet'!AR1329=\"\",\"\",'1. Ordersheet'!AR1329)","v":""},{"$f":"IF('1. Ordersheet'!AE1329=\"\",\"\",'1. Ordersheet'!AE1329)","v":""}]
[{"$f":"IF('1. Ordersheet'!B1330=\"\",\"\",'1. Ordersheet'!B1330)","v":""},{"$f":"IF('1. Ordersheet'!I1330=\"\",\"\",'1. Ordersheet'!I1330)","v":""},{"$f":"IF('1. Ordersheet'!J1330=\"\",\"\",'1. Ordersheet'!J1330)","v":""},{"$f":"IF('1. Ordersheet'!K1330=\"\",\"\",'1. Ordersheet'!K1330)","v":""},{"$f":"IF('1. Ordersheet'!M1330=\"\",\"\",'1. Ordersheet'!M1330)","v":""},null,null,{"$f":"IF('1. Ordersheet'!AR1330=\"\",\"\",'1. Ordersheet'!AR1330)","v":""},{"$f":"IF('1. Ordersheet'!AE1330=\"\",\"\",'1. Ordersheet'!AE1330)","v":""}]
[{"$f":"IF('1. Ordersheet'!B1331=\"\",\"\",'1. Ordersheet'!B1331)","v":""},{"$f":"IF('1. Ordersheet'!I1331=\"\",\"\",'1. Ordersheet'!I1331)","v":""},{"$f":"IF('1. Ordersheet'!J1331=\"\",\"\",'1. Ordersheet'!J1331)","v":""},{"$f":"IF('1. Ordersheet'!K1331=\"\",\"\",'1. Ordersheet'!K1331)","v":""},{"$f":"IF('1. Ordersheet'!M1331=\"\",\"\",'1. Ordersheet'!M1331)","v":""},null,null,{"$f":"IF('1. Ordersheet'!AR1331=\"\",\"\",'1. Ordersheet'!AR1331)","v":""},{"$f":"IF('1. Ordersheet'!AE1331=\"\",\"\",'1. Ordersheet'!AE1331)","v":""}]
[{"$f":"IF('1. Ordersheet'!B1332=\"\",\"\",'1. Ordersheet'!B1332)","v":""},{"$f":"IF('1. Ordersheet'!I1332=\"\",\"\",'1. Ordersheet'!I1332)","v":""},{"$f":"IF('1. Ordersheet'!J1332=\"\",\"\",'1. Ordersheet'!J1332)","v":""},{"$f":"IF('1. Ordersheet'!K1332=\"\",\"\",'1. Ordersheet'!K1332)","v":""},{"$f":"IF('1. Ordersheet'!M1332=\"\",\"\",'1. Ordersheet'!M1332)","v":""},null,null,{"$f":"IF('1. Ordersheet'!AR1332=\"\",\"\",'1. Ordersheet'!AR1332)","v":""},{"$f":"IF('1. Ordersheet'!AE1332=\"\",\"\",'1. Ordersheet'!AE1332)","v":""}]
[{"$f":"IF('1. Ordersheet'!B1333=\"\",\"\",'1. Ordersheet'!B1333)","v":""},{"$f":"IF('1. Ordersheet'!I1333=\"\",\"\",'1. Ordersheet'!I1333)","v":""},{"$f":"IF('1. Ordersheet'!J1333=\"\",\"\",'1. Ordersheet'!J1333)","v":""},{"$f":"IF('1. Ordersheet'!K1333=\"\",\"\",'1. Ordersheet'!K1333)","v":""},{"$f":"IF('1. Ordersheet'!M1333=\"\",\"\",'1. Ordersheet'!M1333)","v":""},null,null,{"$f":"IF('1. Ordersheet'!AR1333=\"\",\"\",'1. Ordersheet'!AR1333)","v":""},{"$f":"IF('1. Ordersheet'!AE1333=\"\",\"\",'1. Ordersheet'!AE1333)","v":""}]
[{"$f":"IF('1. Ordersheet'!B1334=\"\",\"\",'1. Ordersheet'!B1334)","v":""},{"$f":"IF('1. Ordersheet'!I1334=\"\",\"\",'1. Ordersheet'!I1334)","v":""},{"$f":"IF('1. Ordersheet'!J1334=\"\",\"\",'1. Ordersheet'!J1334)","v":""},{"$f":"IF('1. Ordersheet'!K1334=\"\",\"\",'1. Ordersheet'!K1334)","v":""},{"$f":"IF('1. Ordersheet'!M1334=\"\",\"\",'1. Ordersheet'!M1334)","v":""},null,null,{"$f":"IF('1. Ordersheet'!AR1334=\"\",\"\",'1. Ordersheet'!AR1334)","v":""},{"$f":"IF('1. Ordersheet'!AE1334=\"\",\"\",'1. Ordersheet'!AE1334)","v":""}]
[{"$f":"IF('1. Ordersheet'!B1335=\"\",\"\",'1. Ordersheet'!B1335)","v":""},{"$f":"IF('1. Ordersheet'!I1335=\"\",\"\",'1. Ordersheet'!I1335)","v":""},{"$f":"IF('1. Ordersheet'!J1335=\"\",\"\",'1. Ordersheet'!J1335)","v":""},{"$f":"IF('1. Ordersheet'!K1335=\"\",\"\",'1. Ordersheet'!K1335)","v":""},{"$f":"IF('1. Ordersheet'!M1335=\"\",\"\",'1. Ordersheet'!M1335)","v":""},null,null,{"$f":"IF('1. Ordersheet'!AR1335=\"\",\"\",'1. Ordersheet'!AR1335)","v":""},{"$f":"IF('1. Ordersheet'!AE1335=\"\",\"\",'1. Ordersheet'!AE1335)","v":""}]
[{"$f":"IF('1. Ordersheet'!B1336=\"\",\"\",'1. Ordersheet'!B1336)","v":""},{"$f":"IF('1. Ordersheet'!I1336=\"\",\"\",'1. Ordersheet'!I1336)","v":""},{"$f":"IF('1. Ordersheet'!J1336=\"\",\"\",'1. Ordersheet'!J1336)","v":""},{"$f":"IF('1. Ordersheet'!K1336=\"\",\"\",'1. Ordersheet'!K1336)","v":""},{"$f":"IF('1. Ordersheet'!M1336=\"\",\"\",'1. Ordersheet'!M1336)","v":""},null,null,{"$f":"IF('1. Ordersheet'!AR1336=\"\",\"\",'1. Ordersheet'!AR1336)","v":""},{"$f":"IF('1. Ordersheet'!AE1336=\"\",\"\",'1. Ordersheet'!AE1336)","v":""}]
[{"$f":"IF('1. Ordersheet'!B1337=\"\",\"\",'1. Ordersheet'!B1337)","v":""},{"$f":"IF('1. Ordersheet'!I1337=\"\",\"\",'1. Ordersheet'!I1337)","v":""},{"$f":"IF('1. Ordersheet'!J1337=\"\",\"\",'1. Ordersheet'!J1337)","v":""},{"$f":"IF('1. Ordersheet'!K1337=\"\",\"\",'1. Ordersheet'!K1337)","v":""},{"$f":"IF('1. Ordersheet'!M1337=\"\",\"\",'1. Ordersheet'!M1337)","v":""},null,null,{"$f":"IF('1. Ordersheet'!AR1337=\"\",\"\",'1. Ordersheet'!AR1337)","v":""},{"$f":"IF('1. Ordersheet'!AE1337=\"\",\"\",'1. Ordersheet'!AE1337)","v":""}]
[{"$f":"IF('1. Ordersheet'!B1338=\"\",\"\",'1. Ordersheet'!B1338)","v":""},{"$f":"IF('1. Ordersheet'!I1338=\"\",\"\",'1. Ordersheet'!I1338)","v":""},{"$f":"IF('1. Ordersheet'!J1338=\"\",\"\",'1. Ordersheet'!J1338)","v":""},{"$f":"IF('1. Ordersheet'!K1338=\"\",\"\",'1. Ordersheet'!K1338)","v":""},{"$f":"IF('1. Ordersheet'!M1338=\"\",\"\",'1. Ordersheet'!M1338)","v":""},null,null,{"$f":"IF('1. Ordersheet'!AR1338=\"\",\"\",'1. Ordersheet'!AR1338)","v":""},{"$f":"IF('1. Ordersheet'!AE1338=\"\",\"\",'1. Ordersheet'!AE1338)","v":""}]
[{"$f":"IF('1. Ordersheet'!B1339=\"\",\"\",'1. Ordersheet'!B1339)","v":""},{"$f":"IF('1. Ordersheet'!I1339=\"\",\"\",'1. Ordersheet'!I1339)","v":""},{"$f":"IF('1. Ordersheet'!J1339=\"\",\"\",'1. Ordersheet'!J1339)","v":""},{"$f":"IF('1. Ordersheet'!K1339=\"\",\"\",'1. Ordersheet'!K1339)","v":""},{"$f":"IF('1. Ordersheet'!M1339=\"\",\"\",'1. Ordersheet'!M1339)","v":""},null,null,{"$f":"IF('1. Ordersheet'!AR1339=\"\",\"\",'1. Ordersheet'!AR1339)","v":""},{"$f":"IF('1. Ordersheet'!AE1339=\"\",\"\",'1. Ordersheet'!AE1339)","v":""}]
[{"$f":"IF('1. Ordersheet'!B1340=\"\",\"\",'1. Ordersheet'!B1340)","v":""},{"$f":"IF('1. Ordersheet'!I1340=\"\",\"\",'1. Ordersheet'!I1340)","v":""},{"$f":"IF('1. Ordersheet'!J1340=\"\",\"\",'1. Ordersheet'!J1340)","v":""},{"$f":"IF('1. Ordersheet'!K1340=\"\",\"\",'1. Ordersheet'!K1340)","v":""},{"$f":"IF('1. Ordersheet'!M1340=\"\",\"\",'1. Ordersheet'!M1340)","v":""},null,null,{"$f":"IF('1. Ordersheet'!AR1340=\"\",\"\",'1. Ordersheet'!AR1340)","v":""},{"$f":"IF('1. Ordersheet'!AE1340=\"\",\"\",'1. Ordersheet'!AE1340)","v":""}]
[{"$f":"IF('1. Ordersheet'!B1341=\"\",\"\",'1. Ordersheet'!B1341)","v":""},{"$f":"IF('1. Ordersheet'!I1341=\"\",\"\",'1. Ordersheet'!I1341)","v":""},{"$f":"IF('1. Ordersheet'!J1341=\"\",\"\",'1. Ordersheet'!J1341)","v":""},{"$f":"IF('1. Ordersheet'!K1341=\"\",\"\",'1. Ordersheet'!K1341)","v":""},{"$f":"IF('1. Ordersheet'!M1341=\"\",\"\",'1. Ordersheet'!M1341)","v":""},null,null,{"$f":"IF('1. Ordersheet'!AR1341=\"\",\"\",'1. Ordersheet'!AR1341)","v":""},{"$f":"IF('1. Ordersheet'!AE1341=\"\",\"\",'1. Ordersheet'!AE1341)","v":""}]
[{"$f":"IF('1. Ordersheet'!B1342=\"\",\"\",'1. Ordersheet'!B1342)","v":""},{"$f":"IF('1. Ordersheet'!I1342=\"\",\"\",'1. Ordersheet'!I1342)","v":""},{"$f":"IF('1. Ordersheet'!J1342=\"\",\"\",'1. Ordersheet'!J1342)","v":""},{"$f":"IF('1. Ordersheet'!K1342=\"\",\"\",'1. Ordersheet'!K1342)","v":""},{"$f":"IF('1. Ordersheet'!M1342=\"\",\"\",'1. Ordersheet'!M1342)","v":""},null,null,{"$f":"IF('1. Ordersheet'!AR1342=\"\",\"\",'1. Ordersheet'!AR1342)","v":""},{"$f":"IF('1. Ordersheet'!AE1342=\"\",\"\",'1. Ordersheet'!AE1342)","v":""}]
[{"$f":"IF('1. Ordersheet'!B1343=\"\",\"\",'1. Ordersheet'!B1343)","v":""},{"$f":"IF('1. Ordersheet'!I1343=\"\",\"\",'1. Ordersheet'!I1343)","v":""},{"$f":"IF('1. Ordersheet'!J1343=\"\",\"\",'1. Ordersheet'!J1343)","v":""},{"$f":"IF('1. Ordersheet'!K1343=\"\",\"\",'1. Ordersheet'!K1343)","v":""},{"$f":"IF('1. Ordersheet'!M1343=\"\",\"\",'1. Ordersheet'!M1343)","v":""},null,null,{"$f":"IF('1. Ordersheet'!AR1343=\"\",\"\",'1. Ordersheet'!AR1343)","v":""},{"$f":"IF('1. Ordersheet'!AE1343=\"\",\"\",'1. Ordersheet'!AE1343)","v":""}]
[{"$f":"IF('1. Ordersheet'!B1344=\"\",\"\",'1. Ordersheet'!B1344)","v":""},{"$f":"IF('1. Ordersheet'!I1344=\"\",\"\",'1. Ordersheet'!I1344)","v":""},{"$f":"IF('1. Ordersheet'!J1344=\"\",\"\",'1. Ordersheet'!J1344)","v":""},{"$f":"IF('1. Ordersheet'!K1344=\"\",\"\",'1. Ordersheet'!K1344)","v":""},{"$f":"IF('1. Ordersheet'!M1344=\"\",\"\",'1. Ordersheet'!M1344)","v":""},null,null,{"$f":"IF('1. Ordersheet'!AR1344=\"\",\"\",'1. Ordersheet'!AR1344)","v":""},{"$f":"IF('1. Ordersheet'!AE1344=\"\",\"\",'1. Ordersheet'!AE1344)","v":""}]
[{"$f":"IF('1. Ordersheet'!B1345=\"\",\"\",'1. Ordersheet'!B1345)","v":""},{"$f":"IF('1. Ordersheet'!I1345=\"\",\"\",'1. Ordersheet'!I1345)","v":""},{"$f":"IF('1. Ordersheet'!J1345=\"\",\"\",'1. Ordersheet'!J1345)","v":""},{"$f":"IF('1. Ordersheet'!K1345=\"\",\"\",'1. Ordersheet'!K1345)","v":""},{"$f":"IF('1. Ordersheet'!M1345=\"\",\"\",'1. Ordersheet'!M1345)","v":""},null,null,{"$f":"IF('1. Ordersheet'!AR1345=\"\",\"\",'1. Ordersheet'!AR1345)","v":""},{"$f":"IF('1. Ordersheet'!AE1345=\"\",\"\",'1. Ordersheet'!AE1345)","v":""}]
[{"$f":"IF('1. Ordersheet'!B1346=\"\",\"\",'1. Ordersheet'!B1346)","v":""},{"$f":"IF('1. Ordersheet'!I1346=\"\",\"\",'1. Ordersheet'!I1346)","v":""},{"$f":"IF('1. Ordersheet'!J1346=\"\",\"\",'1. Ordersheet'!J1346)","v":""},{"$f":"IF('1. Ordersheet'!K1346=\"\",\"\",'1. Ordersheet'!K1346)","v":""},{"$f":"IF('1. Ordersheet'!M1346=\"\",\"\",'1. Ordersheet'!M1346)","v":""},null,null,{"$f":"IF('1. Ordersheet'!AR1346=\"\",\"\",'1. Ordersheet'!AR1346)","v":""},{"$f":"IF('1. Ordersheet'!AE1346=\"\",\"\",'1. Ordersheet'!AE1346)","v":""}]
[{"$f":"IF('1. Ordersheet'!B1347=\"\",\"\",'1. Ordersheet'!B1347)","v":""},{"$f":"IF('1. Ordersheet'!I1347=\"\",\"\",'1. Ordersheet'!I1347)","v":""},{"$f":"IF('1. Ordersheet'!J1347=\"\",\"\",'1. Ordersheet'!J1347)","v":""},{"$f":"IF('1. Ordersheet'!K1347=\"\",\"\",'1. Ordersheet'!K1347)","v":""},{"$f":"IF('1. Ordersheet'!M1347=\"\",\"\",'1. Ordersheet'!M1347)","v":""},null,null,{"$f":"IF('1. Ordersheet'!AR1347=\"\",\"\",'1. Ordersheet'!AR1347)","v":""},{"$f":"IF('1. Ordersheet'!AE1347=\"\",\"\",'1. Ordersheet'!AE1347)","v":""}]
[{"$f":"IF('1. Ordersheet'!B1348=\"\",\"\",'1. Ordersheet'!B1348)","v":""},{"$f":"IF('1. Ordersheet'!I1348=\"\",\"\",'1. Ordersheet'!I1348)","v":""},{"$f":"IF('1. Ordersheet'!J1348=\"\",\"\",'1. Ordersheet'!J1348)","v":""},{"$f":"IF('1. Ordersheet'!K1348=\"\",\"\",'1. Ordersheet'!K1348)","v":""},{"$f":"IF('1. Ordersheet'!M1348=\"\",\"\",'1. Ordersheet'!M1348)","v":""},null,null,{"$f":"IF('1. Ordersheet'!AR1348=\"\",\"\",'1. Ordersheet'!AR1348)","v":""},{"$f":"IF('1. Ordersheet'!AE1348=\"\",\"\",'1. Ordersheet'!AE1348)","v":""}]
[{"$f":"IF('1. Ordersheet'!B1349=\"\",\"\",'1. Ordersheet'!B1349)","v":""},{"$f":"IF('1. Ordersheet'!I1349=\"\",\"\",'1. Ordersheet'!I1349)","v":""},{"$f":"IF('1. Ordersheet'!J1349=\"\",\"\",'1. Ordersheet'!J1349)","v":""},{"$f":"IF('1. Ordersheet'!K1349=\"\",\"\",'1. Ordersheet'!K1349)","v":""},{"$f":"IF('1. Ordersheet'!M1349=\"\",\"\",'1. Ordersheet'!M1349)","v":""},null,null,{"$f":"IF('1. Ordersheet'!AR1349=\"\",\"\",'1. Ordersheet'!AR1349)","v":""},{"$f":"IF('1. Ordersheet'!AE1349=\"\",\"\",'1. Ordersheet'!AE1349)","v":""}]
[{"$f":"IF('1. Ordersheet'!B1350=\"\",\"\",'1. Ordersheet'!B1350)","v":""},{"$f":"IF('1. Ordersheet'!I1350=\"\",\"\",'1. Ordersheet'!I1350)","v":""},{"$f":"IF('1. Ordersheet'!J1350=\"\",\"\",'1. Ordersheet'!J1350)","v":""},{"$f":"IF('1. Ordersheet'!K1350=\"\",\"\",'1. Ordersheet'!K1350)","v":""},{"$f":"IF('1. Ordersheet'!M1350=\"\",\"\",'1. Ordersheet'!M1350)","v":""},null,null,{"$f":"IF('1. Ordersheet'!AR1350=\"\",\"\",'1. Ordersheet'!AR1350)","v":""},{"$f":"IF('1. Ordersheet'!AE1350=\"\",\"\",'1. Ordersheet'!AE1350)","v":""}]
[{"$f":"IF('1. Ordersheet'!B1351=\"\",\"\",'1. Ordersheet'!B1351)","v":""},{"$f":"IF('1. Ordersheet'!I1351=\"\",\"\",'1. Ordersheet'!I1351)","v":""},{"$f":"IF('1. Ordersheet'!J1351=\"\",\"\",'1. Ordersheet'!J1351)","v":""},{"$f":"IF('1. Ordersheet'!K1351=\"\",\"\",'1. Ordersheet'!K1351)","v":""},{"$f":"IF('1. Ordersheet'!M1351=\"\",\"\",'1. Ordersheet'!M1351)","v":""},null,null,{"$f":"IF('1. Ordersheet'!AR1351=\"\",\"\",'1. Ordersheet'!AR1351)","v":""},{"$f":"IF('1. Ordersheet'!AE1351=\"\",\"\",'1. Ordersheet'!AE1351)","v":""}]
[{"$f":"IF('1. Ordersheet'!B1352=\"\",\"\",'1. Ordersheet'!B1352)","v":""},{"$f":"IF('1. Ordersheet'!I1352=\"\",\"\",'1. Ordersheet'!I1352)","v":""},{"$f":"IF('1. Ordersheet'!J1352=\"\",\"\",'1. Ordersheet'!J1352)","v":""},{"$f":"IF('1. Ordersheet'!K1352=\"\",\"\",'1. Ordersheet'!K1352)","v":""},{"$f":"IF('1. Ordersheet'!M1352=\"\",\"\",'1. Ordersheet'!M1352)","v":""},null,null,{"$f":"IF('1. Ordersheet'!AR1352=\"\",\"\",'1. Ordersheet'!AR1352)","v":""},{"$f":"IF('1. Ordersheet'!AE1352=\"\",\"\",'1. Ordersheet'!AE1352)","v":""}]
[{"$f":"IF('1. Ordersheet'!B1353=\"\",\"\",'1. Ordersheet'!B1353)","v":""},{"$f":"IF('1. Ordersheet'!I1353=\"\",\"\",'1. Ordersheet'!I1353)","v":""},{"$f":"IF('1. Ordersheet'!J1353=\"\",\"\",'1. Ordersheet'!J1353)","v":""},{"$f":"IF('1. Ordersheet'!K1353=\"\",\"\",'1. Ordersheet'!K1353)","v":""},{"$f":"IF('1. Ordersheet'!M1353=\"\",\"\",'1. Ordersheet'!M1353)","v":""},null,null,{"$f":"IF('1. Ordersheet'!AR1353=\"\",\"\",'1. Ordersheet'!AR1353)","v":""},{"$f":"IF('1. Ordersheet'!AE1353=\"\",\"\",'1. Ordersheet'!AE1353)","v":""}]
[{"$f":"IF('1. Ordersheet'!B1354=\"\",\"\",'1. Ordersheet'!B1354)","v":""},{"$f":"IF('1. Ordersheet'!I1354=\"\",\"\",'1. Ordersheet'!I1354)","v":""},{"$f":"IF('1. Ordersheet'!J1354=\"\",\"\",'1. Ordersheet'!J1354)","v":""},{"$f":"IF('1. Ordersheet'!K1354=\"\",\"\",'1. Ordersheet'!K1354)","v":""},{"$f":"IF('1. Ordersheet'!M1354=\"\",\"\",'1. Ordersheet'!M1354)","v":""},null,null,{"$f":"IF('1. Ordersheet'!AR1354=\"\",\"\",'1. Ordersheet'!AR1354)","v":""},{"$f":"IF('1. Ordersheet'!AE1354=\"\",\"\",'1. Ordersheet'!AE1354)","v":""}]
[{"$f":"IF('1. Ordersheet'!B1355=\"\",\"\",'1. Ordersheet'!B1355)","v":""},{"$f":"IF('1. Ordersheet'!I1355=\"\",\"\",'1. Ordersheet'!I1355)","v":""},{"$f":"IF('1. Ordersheet'!J1355=\"\",\"\",'1. Ordersheet'!J1355)","v":""},{"$f":"IF('1. Ordersheet'!K1355=\"\",\"\",'1. Ordersheet'!K1355)","v":""},{"$f":"IF('1. Ordersheet'!M1355=\"\",\"\",'1. Ordersheet'!M1355)","v":""},null,null,{"$f":"IF('1. Ordersheet'!AR1355=\"\",\"\",'1. Ordersheet'!AR1355)","v":""},{"$f":"IF('1. Ordersheet'!AE1355=\"\",\"\",'1. Ordersheet'!AE1355)","v":""}]
[{"$f":"IF('1. Ordersheet'!B1356=\"\",\"\",'1. Ordersheet'!B1356)","v":""},{"$f":"IF('1. Ordersheet'!I1356=\"\",\"\",'1. Ordersheet'!I1356)","v":""},{"$f":"IF('1. Ordersheet'!J1356=\"\",\"\",'1. Ordersheet'!J1356)","v":""},{"$f":"IF('1. Ordersheet'!K1356=\"\",\"\",'1. Ordersheet'!K1356)","v":""},{"$f":"IF('1. Ordersheet'!M1356=\"\",\"\",'1. Ordersheet'!M1356)","v":""},null,null,{"$f":"IF('1. Ordersheet'!AR1356=\"\",\"\",'1. Ordersheet'!AR1356)","v":""},{"$f":"IF('1. Ordersheet'!AE1356=\"\",\"\",'1. Ordersheet'!AE1356)","v":""}]
[{"$f":"IF('1. Ordersheet'!B1357=\"\",\"\",'1. Ordersheet'!B1357)","v":""},{"$f":"IF('1. Ordersheet'!I1357=\"\",\"\",'1. Ordersheet'!I1357)","v":""},{"$f":"IF('1. Ordersheet'!J1357=\"\",\"\",'1. Ordersheet'!J1357)","v":""},{"$f":"IF('1. Ordersheet'!K1357=\"\",\"\",'1. Ordersheet'!K1357)","v":""},{"$f":"IF('1. Ordersheet'!M1357=\"\",\"\",'1. Ordersheet'!M1357)","v":""},null,null,{"$f":"IF('1. Ordersheet'!AR1357=\"\",\"\",'1. Ordersheet'!AR1357)","v":""},{"$f":"IF('1. Ordersheet'!AE1357=\"\",\"\",'1. Ordersheet'!AE1357)","v":""}]
[{"$f":"IF('1. Ordersheet'!B1358=\"\",\"\",'1. Ordersheet'!B1358)","v":""},{"$f":"IF('1. Ordersheet'!I1358=\"\",\"\",'1. Ordersheet'!I1358)","v":""},{"$f":"IF('1. Ordersheet'!J1358=\"\",\"\",'1. Ordersheet'!J1358)","v":""},{"$f":"IF('1. Ordersheet'!K1358=\"\",\"\",'1. Ordersheet'!K1358)","v":""},{"$f":"IF('1. Ordersheet'!M1358=\"\",\"\",'1. Ordersheet'!M1358)","v":""},null,null,{"$f":"IF('1. Ordersheet'!AR1358=\"\",\"\",'1. Ordersheet'!AR1358)","v":""},{"$f":"IF('1. Ordersheet'!AE1358=\"\",\"\",'1. Ordersheet'!AE1358)","v":""}]
[{"$f":"IF('1. Ordersheet'!B1359=\"\",\"\",'1. Ordersheet'!B1359)","v":""},{"$f":"IF('1. Ordersheet'!I1359=\"\",\"\",'1. Ordersheet'!I1359)","v":""},{"$f":"IF('1. Ordersheet'!J1359=\"\",\"\",'1. Ordersheet'!J1359)","v":""},{"$f":"IF('1. Ordersheet'!K1359=\"\",\"\",'1. Ordersheet'!K1359)","v":""},{"$f":"IF('1. Ordersheet'!M1359=\"\",\"\",'1. Ordersheet'!M1359)","v":""},null,null,{"$f":"IF('1. Ordersheet'!AR1359=\"\",\"\",'1. Ordersheet'!AR1359)","v":""},{"$f":"IF('1. Ordersheet'!AE1359=\"\",\"\",'1. Ordersheet'!AE1359)","v":""}]
[{"$f":"IF('1. Ordersheet'!B1360=\"\",\"\",'1. Ordersheet'!B1360)","v":""},{"$f":"IF('1. Ordersheet'!I1360=\"\",\"\",'1. Ordersheet'!I1360)","v":""},{"$f":"IF('1. Ordersheet'!J1360=\"\",\"\",'1. Ordersheet'!J1360)","v":""},{"$f":"IF('1. Ordersheet'!K1360=\"\",\"\",'1. Ordersheet'!K1360)","v":""},{"$f":"IF('1. Ordersheet'!M1360=\"\",\"\",'1. Ordersheet'!M1360)","v":""},null,null,{"$f":"IF('1. Ordersheet'!AR1360=\"\",\"\",'1. Ordersheet'!AR1360)","v":""},{"$f":"IF('1. Ordersheet'!AE1360=\"\",\"\",'1. Ordersheet'!AE1360)","v":""}]
[{"$f":"IF('1. Ordersheet'!B1361=\"\",\"\",'1. Ordersheet'!B1361)","v":""},{"$f":"IF('1. Ordersheet'!I1361=\"\",\"\",'1. Ordersheet'!I1361)","v":""},{"$f":"IF('1. Ordersheet'!J1361=\"\",\"\",'1. Ordersheet'!J1361)","v":""},{"$f":"IF('1. Ordersheet'!K1361=\"\",\"\",'1. Ordersheet'!K1361)","v":""},{"$f":"IF('1. Ordersheet'!M1361=\"\",\"\",'1. Ordersheet'!M1361)","v":""},null,null,{"$f":"IF('1. Ordersheet'!AR1361=\"\",\"\",'1. Ordersheet'!AR1361)","v":""},{"$f":"IF('1. Ordersheet'!AE1361=\"\",\"\",'1. Ordersheet'!AE1361)","v":""}]
[{"$f":"IF('1. Ordersheet'!B1362=\"\",\"\",'1. Ordersheet'!B1362)","v":""},{"$f":"IF('1. Ordersheet'!I1362=\"\",\"\",'1. Ordersheet'!I1362)","v":""},{"$f":"IF('1. Ordersheet'!J1362=\"\",\"\",'1. Ordersheet'!J1362)","v":""},{"$f":"IF('1. Ordersheet'!K1362=\"\",\"\",'1. Ordersheet'!K1362)","v":""},{"$f":"IF('1. Ordersheet'!M1362=\"\",\"\",'1. Ordersheet'!M1362)","v":""},null,null,{"$f":"IF('1. Ordersheet'!AR1362=\"\",\"\",'1. Ordersheet'!AR1362)","v":""},{"$f":"IF('1. Ordersheet'!AE1362=\"\",\"\",'1. Ordersheet'!AE1362)","v":""}]
[{"$f":"IF('1. Ordersheet'!B1363=\"\",\"\",'1. Ordersheet'!B1363)","v":""},{"$f":"IF('1. Ordersheet'!I1363=\"\",\"\",'1. Ordersheet'!I1363)","v":""},{"$f":"IF('1. Ordersheet'!J1363=\"\",\"\",'1. Ordersheet'!J1363)","v":""},{"$f":"IF('1. Ordersheet'!K1363=\"\",\"\",'1. Ordersheet'!K1363)","v":""},{"$f":"IF('1. Ordersheet'!M1363=\"\",\"\",'1. Ordersheet'!M1363)","v":""},null,null,{"$f":"IF('1. Ordersheet'!AR1363=\"\",\"\",'1. Ordersheet'!AR1363)","v":""},{"$f":"IF('1. Ordersheet'!AE1363=\"\",\"\",'1. Ordersheet'!AE1363)","v":""}]
[{"$f":"IF('1. Ordersheet'!B1364=\"\",\"\",'1. Ordersheet'!B1364)","v":""},{"$f":"IF('1. Ordersheet'!I1364=\"\",\"\",'1. Ordersheet'!I1364)","v":""},{"$f":"IF('1. Ordersheet'!J1364=\"\",\"\",'1. Ordersheet'!J1364)","v":""},{"$f":"IF('1. Ordersheet'!K1364=\"\",\"\",'1. Ordersheet'!K1364)","v":""},{"$f":"IF('1. Ordersheet'!M1364=\"\",\"\",'1. Ordersheet'!M1364)","v":""},null,null,{"$f":"IF('1. Ordersheet'!AR1364=\"\",\"\",'1. Ordersheet'!AR1364)","v":""},{"$f":"IF('1. Ordersheet'!AE1364=\"\",\"\",'1. Ordersheet'!AE1364)","v":""}]
[{"$f":"IF('1. Ordersheet'!B1365=\"\",\"\",'1. Ordersheet'!B1365)","v":""},{"$f":"IF('1. Ordersheet'!I1365=\"\",\"\",'1. Ordersheet'!I1365)","v":""},{"$f":"IF('1. Ordersheet'!J1365=\"\",\"\",'1. Ordersheet'!J1365)","v":""},{"$f":"IF('1. Ordersheet'!K1365=\"\",\"\",'1. Ordersheet'!K1365)","v":""},{"$f":"IF('1. Ordersheet'!M1365=\"\",\"\",'1. Ordersheet'!M1365)","v":""},null,null,{"$f":"IF('1. Ordersheet'!AR1365=\"\",\"\",'1. Ordersheet'!AR1365)","v":""},{"$f":"IF('1. Ordersheet'!AE1365=\"\",\"\",'1. Ordersheet'!AE1365)","v":""}]
[{"$f":"IF('1. Ordersheet'!B1366=\"\",\"\",'1. Ordersheet'!B1366)","v":""},{"$f":"IF('1. Ordersheet'!I1366=\"\",\"\",'1. Ordersheet'!I1366)","v":""},{"$f":"IF('1. Ordersheet'!J1366=\"\",\"\",'1. Ordersheet'!J1366)","v":""},{"$f":"IF('1. Ordersheet'!K1366=\"\",\"\",'1. Ordersheet'!K1366)","v":""},{"$f":"IF('1. Ordersheet'!M1366=\"\",\"\",'1. Ordersheet'!M1366)","v":""},null,null,{"$f":"IF('1. Ordersheet'!AR1366=\"\",\"\",'1. Ordersheet'!AR1366)","v":""},{"$f":"IF('1. Ordersheet'!AE1366=\"\",\"\",'1. Ordersheet'!AE1366)","v":""}]
[{"$f":"IF('1. Ordersheet'!B1367=\"\",\"\",'1. Ordersheet'!B1367)","v":""},{"$f":"IF('1. Ordersheet'!I1367=\"\",\"\",'1. Ordersheet'!I1367)","v":""},{"$f":"IF('1. Ordersheet'!J1367=\"\",\"\",'1. Ordersheet'!J1367)","v":""},{"$f":"IF('1. Ordersheet'!K1367=\"\",\"\",'1. Ordersheet'!K1367)","v":""},{"$f":"IF('1. Ordersheet'!M1367=\"\",\"\",'1. Ordersheet'!M1367)","v":""},null,null,{"$f":"IF('1. Ordersheet'!AR1367=\"\",\"\",'1. Ordersheet'!AR1367)","v":""},{"$f":"IF('1. Ordersheet'!AE1367=\"\",\"\",'1. Ordersheet'!AE1367)","v":""}]
[{"$f":"IF('1. Ordersheet'!B1368=\"\",\"\",'1. Ordersheet'!B1368)","v":""},{"$f":"IF('1. Ordersheet'!I1368=\"\",\"\",'1. Ordersheet'!I1368)","v":""},{"$f":"IF('1. Ordersheet'!J1368=\"\",\"\",'1. Ordersheet'!J1368)","v":""},{"$f":"IF('1. Ordersheet'!K1368=\"\",\"\",'1. Ordersheet'!K1368)","v":""},{"$f":"IF('1. Ordersheet'!M1368=\"\",\"\",'1. Ordersheet'!M1368)","v":""},null,null,{"$f":"IF('1. Ordersheet'!AR1368=\"\",\"\",'1. Ordersheet'!AR1368)","v":""},{"$f":"IF('1. Ordersheet'!AE1368=\"\",\"\",'1. Ordersheet'!AE1368)","v":""}]
[{"$f":"IF('1. Ordersheet'!B1369=\"\",\"\",'1. Ordersheet'!B1369)","v":""},{"$f":"IF('1. Ordersheet'!I1369=\"\",\"\",'1. Ordersheet'!I1369)","v":""},{"$f":"IF('1. Ordersheet'!J1369=\"\",\"\",'1. Ordersheet'!J1369)","v":""},{"$f":"IF('1. Ordersheet'!K1369=\"\",\"\",'1. Ordersheet'!K1369)","v":""},{"$f":"IF('1. Ordersheet'!M1369=\"\",\"\",'1. Ordersheet'!M1369)","v":""},null,null,{"$f":"IF('1. Ordersheet'!AR1369=\"\",\"\",'1. Ordersheet'!AR1369)","v":""},{"$f":"IF('1. Ordersheet'!AE1369=\"\",\"\",'1. Ordersheet'!AE1369)","v":""}]
[{"$f":"IF('1. Ordersheet'!B1370=\"\",\"\",'1. Ordersheet'!B1370)","v":""},{"$f":"IF('1. Ordersheet'!I1370=\"\",\"\",'1. Ordersheet'!I1370)","v":""},{"$f":"IF('1. Ordersheet'!J1370=\"\",\"\",'1. Ordersheet'!J1370)","v":""},{"$f":"IF('1. Ordersheet'!K1370=\"\",\"\",'1. Ordersheet'!K1370)","v":""},{"$f":"IF('1. Ordersheet'!M1370=\"\",\"\",'1. Ordersheet'!M1370)","v":""},null,null,{"$f":"IF('1. Ordersheet'!AR1370=\"\",\"\",'1. Ordersheet'!AR1370)","v":""},{"$f":"IF('1. Ordersheet'!AE1370=\"\",\"\",'1. Ordersheet'!AE1370)","v":""}]
[{"$f":"IF('1. Ordersheet'!B1371=\"\",\"\",'1. Ordersheet'!B1371)","v":""},{"$f":"IF('1. Ordersheet'!I1371=\"\",\"\",'1. Ordersheet'!I1371)","v":""},{"$f":"IF('1. Ordersheet'!J1371=\"\",\"\",'1. Ordersheet'!J1371)","v":""},{"$f":"IF('1. Ordersheet'!K1371=\"\",\"\",'1. Ordersheet'!K1371)","v":""},{"$f":"IF('1. Ordersheet'!M1371=\"\",\"\",'1. Ordersheet'!M1371)","v":""},null,null,{"$f":"IF('1. Ordersheet'!AR1371=\"\",\"\",'1. Ordersheet'!AR1371)","v":""},{"$f":"IF('1. Ordersheet'!AE1371=\"\",\"\",'1. Ordersheet'!AE1371)","v":""}]
[{"$f":"IF('1. Ordersheet'!B1372=\"\",\"\",'1. Ordersheet'!B1372)","v":""},{"$f":"IF('1. Ordersheet'!I1372=\"\",\"\",'1. Ordersheet'!I1372)","v":""},{"$f":"IF('1. Ordersheet'!J1372=\"\",\"\",'1. Ordersheet'!J1372)","v":""},{"$f":"IF('1. Ordersheet'!K1372=\"\",\"\",'1. Ordersheet'!K1372)","v":""},{"$f":"IF('1. Ordersheet'!M1372=\"\",\"\",'1. Ordersheet'!M1372)","v":""},null,null,{"$f":"IF('1. Ordersheet'!AR1372=\"\",\"\",'1. Ordersheet'!AR1372)","v":""},{"$f":"IF('1. Ordersheet'!AE1372=\"\",\"\",'1. Ordersheet'!AE1372)","v":""}]
[{"$f":"IF('1. Ordersheet'!B1373=\"\",\"\",'1. Ordersheet'!B1373)","v":""},{"$f":"IF('1. Ordersheet'!I1373=\"\",\"\",'1. Ordersheet'!I1373)","v":""},{"$f":"IF('1. Ordersheet'!J1373=\"\",\"\",'1. Ordersheet'!J1373)","v":""},{"$f":"IF('1. Ordersheet'!K1373=\"\",\"\",'1. Ordersheet'!K1373)","v":""},{"$f":"IF('1. Ordersheet'!M1373=\"\",\"\",'1. Ordersheet'!M1373)","v":""},null,null,{"$f":"IF('1. Ordersheet'!AR1373=\"\",\"\",'1. Ordersheet'!AR1373)","v":""},{"$f":"IF('1. Ordersheet'!AE1373=\"\",\"\",'1. Ordersheet'!AE1373)","v":""}]
[{"$f":"IF('1. Ordersheet'!B1374=\"\",\"\",'1. Ordersheet'!B1374)","v":""},{"$f":"IF('1. Ordersheet'!I1374=\"\",\"\",'1. Ordersheet'!I1374)","v":""},{"$f":"IF('1. Ordersheet'!J1374=\"\",\"\",'1. Ordersheet'!J1374)","v":""},{"$f":"IF('1. Ordersheet'!K1374=\"\",\"\",'1. Ordersheet'!K1374)","v":""},{"$f":"IF('1. Ordersheet'!M1374=\"\",\"\",'1. Ordersheet'!M1374)","v":""},null,null,{"$f":"IF('1. Ordersheet'!AR1374=\"\",\"\",'1. Ordersheet'!AR1374)","v":""},{"$f":"IF('1. Ordersheet'!AE1374=\"\",\"\",'1. Ordersheet'!AE1374)","v":""}]
[{"$f":"IF('1. Ordersheet'!B1375=\"\",\"\",'1. Ordersheet'!B1375)","v":""},{"$f":"IF('1. Ordersheet'!I1375=\"\",\"\",'1. Ordersheet'!I1375)","v":""},{"$f":"IF('1. Ordersheet'!J1375=\"\",\"\",'1. Ordersheet'!J1375)","v":""},{"$f":"IF('1. Ordersheet'!K1375=\"\",\"\",'1. Ordersheet'!K1375)","v":""},{"$f":"IF('1. Ordersheet'!M1375=\"\",\"\",'1. Ordersheet'!M1375)","v":""},null,null,{"$f":"IF('1. Ordersheet'!AR1375=\"\",\"\",'1. Ordersheet'!AR1375)","v":""},{"$f":"IF('1. Ordersheet'!AE1375=\"\",\"\",'1. Ordersheet'!AE1375)","v":""}]
[{"$f":"IF('1. Ordersheet'!B1376=\"\",\"\",'1. Ordersheet'!B1376)","v":""},{"$f":"IF('1. Ordersheet'!I1376=\"\",\"\",'1. Ordersheet'!I1376)","v":""},{"$f":"IF('1. Ordersheet'!J1376=\"\",\"\",'1. Ordersheet'!J1376)","v":""},{"$f":"IF('1. Ordersheet'!K1376=\"\",\"\",'1. Ordersheet'!K1376)","v":""},{"$f":"IF('1. Ordersheet'!M1376=\"\",\"\",'1. Ordersheet'!M1376)","v":""},null,null,{"$f":"IF('1. Ordersheet'!AR1376=\"\",\"\",'1. Ordersheet'!AR1376)","v":""},{"$f":"IF('1. Ordersheet'!AE1376=\"\",\"\",'1. Ordersheet'!AE1376)","v":""}]
[{"$f":"IF('1. Ordersheet'!B1377=\"\",\"\",'1. Ordersheet'!B1377)","v":""},{"$f":"IF('1. Ordersheet'!I1377=\"\",\"\",'1. Ordersheet'!I1377)","v":""},{"$f":"IF('1. Ordersheet'!J1377=\"\",\"\",'1. Ordersheet'!J1377)","v":""},{"$f":"IF('1. Ordersheet'!K1377=\"\",\"\",'1. Ordersheet'!K1377)","v":""},{"$f":"IF('1. Ordersheet'!M1377=\"\",\"\",'1. Ordersheet'!M1377)","v":""},null,null,{"$f":"IF('1. Ordersheet'!AR1377=\"\",\"\",'1. Ordersheet'!AR1377)","v":""},{"$f":"IF('1. Ordersheet'!AE1377=\"\",\"\",'1. Ordersheet'!AE1377)","v":""}]
[{"$f":"IF('1. Ordersheet'!B1378=\"\",\"\",'1. Ordersheet'!B1378)","v":""},{"$f":"IF('1. Ordersheet'!I1378=\"\",\"\",'1. Ordersheet'!I1378)","v":""},{"$f":"IF('1. Ordersheet'!J1378=\"\",\"\",'1. Ordersheet'!J1378)","v":""},{"$f":"IF('1. Ordersheet'!K1378=\"\",\"\",'1. Ordersheet'!K1378)","v":""},{"$f":"IF('1. Ordersheet'!M1378=\"\",\"\",'1. Ordersheet'!M1378)","v":""},null,null,{"$f":"IF('1. Ordersheet'!AR1378=\"\",\"\",'1. Ordersheet'!AR1378)","v":""},{"$f":"IF('1. Ordersheet'!AE1378=\"\",\"\",'1. Ordersheet'!AE1378)","v":""}]
[{"$f":"IF('1. Ordersheet'!B1379=\"\",\"\",'1. Ordersheet'!B1379)","v":""},{"$f":"IF('1. Ordersheet'!I1379=\"\",\"\",'1. Ordersheet'!I1379)","v":""},{"$f":"IF('1. Ordersheet'!J1379=\"\",\"\",'1. Ordersheet'!J1379)","v":""},{"$f":"IF('1. Ordersheet'!K1379=\"\",\"\",'1. Ordersheet'!K1379)","v":""},{"$f":"IF('1. Ordersheet'!M1379=\"\",\"\",'1. Ordersheet'!M1379)","v":""},null,null,{"$f":"IF('1. Ordersheet'!AR1379=\"\",\"\",'1. Ordersheet'!AR1379)","v":""},{"$f":"IF('1. Ordersheet'!AE1379=\"\",\"\",'1. Ordersheet'!AE1379)","v":""}]
[{"$f":"IF('1. Ordersheet'!B1380=\"\",\"\",'1. Ordersheet'!B1380)","v":""},{"$f":"IF('1. Ordersheet'!I1380=\"\",\"\",'1. Ordersheet'!I1380)","v":""},{"$f":"IF('1. Ordersheet'!J1380=\"\",\"\",'1. Ordersheet'!J1380)","v":""},{"$f":"IF('1. Ordersheet'!K1380=\"\",\"\",'1. Ordersheet'!K1380)","v":""},{"$f":"IF('1. Ordersheet'!M1380=\"\",\"\",'1. Ordersheet'!M1380)","v":""},null,null,{"$f":"IF('1. Ordersheet'!AR1380=\"\",\"\",'1. Ordersheet'!AR1380)","v":""},{"$f":"IF('1. Ordersheet'!AE1380=\"\",\"\",'1. Ordersheet'!AE1380)","v":""}]
[{"$f":"IF('1. Ordersheet'!B1381=\"\",\"\",'1. Ordersheet'!B1381)","v":""},{"$f":"IF('1. Ordersheet'!I1381=\"\",\"\",'1. Ordersheet'!I1381)","v":""},{"$f":"IF('1. Ordersheet'!J1381=\"\",\"\",'1. Ordersheet'!J1381)","v":""},{"$f":"IF('1. Ordersheet'!K1381=\"\",\"\",'1. Ordersheet'!K1381)","v":""},{"$f":"IF('1. Ordersheet'!M1381=\"\",\"\",'1. Ordersheet'!M1381)","v":""},null,null,{"$f":"IF('1. Ordersheet'!AR1381=\"\",\"\",'1. Ordersheet'!AR1381)","v":""},{"$f":"IF('1. Ordersheet'!AE1381=\"\",\"\",'1. Ordersheet'!AE1381)","v":""}]
[{"$f":"IF('1. Ordersheet'!B1382=\"\",\"\",'1. Ordersheet'!B1382)","v":""},{"$f":"IF('1. Ordersheet'!I1382=\"\",\"\",'1. Ordersheet'!I1382)","v":""},{"$f":"IF('1. Ordersheet'!J1382=\"\",\"\",'1. Ordersheet'!J1382)","v":""},{"$f":"IF('1. Ordersheet'!K1382=\"\",\"\",'1. Ordersheet'!K1382)","v":""},{"$f":"IF('1. Ordersheet'!M1382=\"\",\"\",'1. Ordersheet'!M1382)","v":""},null,null,{"$f":"IF('1. Ordersheet'!AR1382=\"\",\"\",'1. Ordersheet'!AR1382)","v":""},{"$f":"IF('1. Ordersheet'!AE1382=\"\",\"\",'1. Ordersheet'!AE1382)","v":""}]
[{"$f":"IF('1. Ordersheet'!B1383=\"\",\"\",'1. Ordersheet'!B1383)","v":""},{"$f":"IF('1. Ordersheet'!I1383=\"\",\"\",'1. Ordersheet'!I1383)","v":""},{"$f":"IF('1. Ordersheet'!J1383=\"\",\"\",'1. Ordersheet'!J1383)","v":""},{"$f":"IF('1. Ordersheet'!K1383=\"\",\"\",'1. Ordersheet'!K1383)","v":""},{"$f":"IF('1. Ordersheet'!M1383=\"\",\"\",'1. Ordersheet'!M1383)","v":""},null,null,{"$f":"IF('1. Ordersheet'!AR1383=\"\",\"\",'1. Ordersheet'!AR1383)","v":""},{"$f":"IF('1. Ordersheet'!AE1383=\"\",\"\",'1. Ordersheet'!AE1383)","v":""}]
[{"$f":"IF('1. Ordersheet'!B1384=\"\",\"\",'1. Ordersheet'!B1384)","v":""},{"$f":"IF('1. Ordersheet'!I1384=\"\",\"\",'1. Ordersheet'!I1384)","v":""},{"$f":"IF('1. Ordersheet'!J1384=\"\",\"\",'1. Ordersheet'!J1384)","v":""},{"$f":"IF('1. Ordersheet'!K1384=\"\",\"\",'1. Ordersheet'!K1384)","v":""},{"$f":"IF('1. Ordersheet'!M1384=\"\",\"\",'1. Ordersheet'!M1384)","v":""},null,null,{"$f":"IF('1. Ordersheet'!AR1384=\"\",\"\",'1. Ordersheet'!AR1384)","v":""},{"$f":"IF('1. Ordersheet'!AE1384=\"\",\"\",'1. Ordersheet'!AE1384)","v":""}]
[{"$f":"IF('1. Ordersheet'!B1385=\"\",\"\",'1. Ordersheet'!B1385)","v":""},{"$f":"IF('1. Ordersheet'!I1385=\"\",\"\",'1. Ordersheet'!I1385)","v":""},{"$f":"IF('1. Ordersheet'!J1385=\"\",\"\",'1. Ordersheet'!J1385)","v":""},{"$f":"IF('1. Ordersheet'!K1385=\"\",\"\",'1. Ordersheet'!K1385)","v":""},{"$f":"IF('1. Ordersheet'!M1385=\"\",\"\",'1. Ordersheet'!M1385)","v":""},null,null,{"$f":"IF('1. Ordersheet'!AR1385=\"\",\"\",'1. Ordersheet'!AR1385)","v":""},{"$f":"IF('1. Ordersheet'!AE1385=\"\",\"\",'1. Ordersheet'!AE1385)","v":""}]
[{"$f":"IF('1. Ordersheet'!B1386=\"\",\"\",'1. Ordersheet'!B1386)","v":""},{"$f":"IF('1. Ordersheet'!I1386=\"\",\"\",'1. Ordersheet'!I1386)","v":""},{"$f":"IF('1. Ordersheet'!J1386=\"\",\"\",'1. Ordersheet'!J1386)","v":""},{"$f":"IF('1. Ordersheet'!K1386=\"\",\"\",'1. Ordersheet'!K1386)","v":""},{"$f":"IF('1. Ordersheet'!M1386=\"\",\"\",'1. Ordersheet'!M1386)","v":""},null,null,{"$f":"IF('1. Ordersheet'!AR1386=\"\",\"\",'1. Ordersheet'!AR1386)","v":""},{"$f":"IF('1. Ordersheet'!AE1386=\"\",\"\",'1. Ordersheet'!AE1386)","v":""}]
[{"$f":"IF('1. Ordersheet'!B1387=\"\",\"\",'1. Ordersheet'!B1387)","v":""},{"$f":"IF('1. Ordersheet'!I1387=\"\",\"\",'1. Ordersheet'!I1387)","v":""},{"$f":"IF('1. Ordersheet'!J1387=\"\",\"\",'1. Ordersheet'!J1387)","v":""},{"$f":"IF('1. Ordersheet'!K1387=\"\",\"\",'1. Ordersheet'!K1387)","v":""},{"$f":"IF('1. Ordersheet'!M1387=\"\",\"\",'1. Ordersheet'!M1387)","v":""},null,null,{"$f":"IF('1. Ordersheet'!AR1387=\"\",\"\",'1. Ordersheet'!AR1387)","v":""},{"$f":"IF('1. Ordersheet'!AE1387=\"\",\"\",'1. Ordersheet'!AE1387)","v":""}]
[{"$f":"IF('1. Ordersheet'!B1388=\"\",\"\",'1. Ordersheet'!B1388)","v":""},{"$f":"IF('1. Ordersheet'!I1388=\"\",\"\",'1. Ordersheet'!I1388)","v":""},{"$f":"IF('1. Ordersheet'!J1388=\"\",\"\",'1. Ordersheet'!J1388)","v":""},{"$f":"IF('1. Ordersheet'!K1388=\"\",\"\",'1. Ordersheet'!K1388)","v":""},{"$f":"IF('1. Ordersheet'!M1388=\"\",\"\",'1. Ordersheet'!M1388)","v":""},null,null,{"$f":"IF('1. Ordersheet'!AR1388=\"\",\"\",'1. Ordersheet'!AR1388)","v":""},{"$f":"IF('1. Ordersheet'!AE1388=\"\",\"\",'1. Ordersheet'!AE1388)","v":""}]
[{"$f":"IF('1. Ordersheet'!B1389=\"\",\"\",'1. Ordersheet'!B1389)","v":""},{"$f":"IF('1. Ordersheet'!I1389=\"\",\"\",'1. Ordersheet'!I1389)","v":""},{"$f":"IF('1. Ordersheet'!J1389=\"\",\"\",'1. Ordersheet'!J1389)","v":""},{"$f":"IF('1. Ordersheet'!K1389=\"\",\"\",'1. Ordersheet'!K1389)","v":""},{"$f":"IF('1. Ordersheet'!M1389=\"\",\"\",'1. Ordersheet'!M1389)","v":""},null,null,{"$f":"IF('1. Ordersheet'!AR1389=\"\",\"\",'1. Ordersheet'!AR1389)","v":""},{"$f":"IF('1. Ordersheet'!AE1389=\"\",\"\",'1. Ordersheet'!AE1389)","v":""}]
[{"$f":"IF('1. Ordersheet'!B1390=\"\",\"\",'1. Ordersheet'!B1390)","v":""},{"$f":"IF('1. Ordersheet'!I1390=\"\",\"\",'1. Ordersheet'!I1390)","v":""},{"$f":"IF('1. Ordersheet'!J1390=\"\",\"\",'1. Ordersheet'!J1390)","v":""},{"$f":"IF('1. Ordersheet'!K1390=\"\",\"\",'1. Ordersheet'!K1390)","v":""},{"$f":"IF('1. Ordersheet'!M1390=\"\",\"\",'1. Ordersheet'!M1390)","v":""},null,null,{"$f":"IF('1. Ordersheet'!AR1390=\"\",\"\",'1. Ordersheet'!AR1390)","v":""},{"$f":"IF('1. Ordersheet'!AE1390=\"\",\"\",'1. Ordersheet'!AE1390)","v":""}]
[{"$f":"IF('1. Ordersheet'!B1391=\"\",\"\",'1. Ordersheet'!B1391)","v":""},{"$f":"IF('1. Ordersheet'!I1391=\"\",\"\",'1. Ordersheet'!I1391)","v":""},{"$f":"IF('1. Ordersheet'!J1391=\"\",\"\",'1. Ordersheet'!J1391)","v":""},{"$f":"IF('1. Ordersheet'!K1391=\"\",\"\",'1. Ordersheet'!K1391)","v":""},{"$f":"IF('1. Ordersheet'!M1391=\"\",\"\",'1. Ordersheet'!M1391)","v":""},null,null,{"$f":"IF('1. Ordersheet'!AR1391=\"\",\"\",'1. Ordersheet'!AR1391)","v":""},{"$f":"IF('1. Ordersheet'!AE1391=\"\",\"\",'1. Ordersheet'!AE1391)","v":""}]
[{"$f":"IF('1. Ordersheet'!B1392=\"\",\"\",'1. Ordersheet'!B1392)","v":""},{"$f":"IF('1. Ordersheet'!I1392=\"\",\"\",'1. Ordersheet'!I1392)","v":""},{"$f":"IF('1. Ordersheet'!J1392=\"\",\"\",'1. Ordersheet'!J1392)","v":""},{"$f":"IF('1. Ordersheet'!K1392=\"\",\"\",'1. Ordersheet'!K1392)","v":""},{"$f":"IF('1. Ordersheet'!M1392=\"\",\"\",'1. Ordersheet'!M1392)","v":""},null,null,{"$f":"IF('1. Ordersheet'!AR1392=\"\",\"\",'1. Ordersheet'!AR1392)","v":""},{"$f":"IF('1. Ordersheet'!AE1392=\"\",\"\",'1. Ordersheet'!AE1392)","v":""}]
[{"$f":"IF('1. Ordersheet'!B1393=\"\",\"\",'1. Ordersheet'!B1393)","v":""},{"$f":"IF('1. Ordersheet'!I1393=\"\",\"\",'1. Ordersheet'!I1393)","v":""},{"$f":"IF('1. Ordersheet'!J1393=\"\",\"\",'1. Ordersheet'!J1393)","v":""},{"$f":"IF('1. Ordersheet'!K1393=\"\",\"\",'1. Ordersheet'!K1393)","v":""},{"$f":"IF('1. Ordersheet'!M1393=\"\",\"\",'1. Ordersheet'!M1393)","v":""},null,null,{"$f":"IF('1. Ordersheet'!AR1393=\"\",\"\",'1. Ordersheet'!AR1393)","v":""},{"$f":"IF('1. Ordersheet'!AE1393=\"\",\"\",'1. Ordersheet'!AE1393)","v":""}]
[{"$f":"IF('1. Ordersheet'!B1394=\"\",\"\",'1. Ordersheet'!B1394)","v":""},{"$f":"IF('1. Ordersheet'!I1394=\"\",\"\",'1. Ordersheet'!I1394)","v":""},{"$f":"IF('1. Ordersheet'!J1394=\"\",\"\",'1. Ordersheet'!J1394)","v":""},{"$f":"IF('1. Ordersheet'!K1394=\"\",\"\",'1. Ordersheet'!K1394)","v":""},{"$f":"IF('1. Ordersheet'!M1394=\"\",\"\",'1. Ordersheet'!M1394)","v":""},null,null,{"$f":"IF('1. Ordersheet'!AR1394=\"\",\"\",'1. Ordersheet'!AR1394)","v":""},{"$f":"IF('1. Ordersheet'!AE1394=\"\",\"\",'1. Ordersheet'!AE1394)","v":""}]
[{"$f":"IF('1. Ordersheet'!B1395=\"\",\"\",'1. Ordersheet'!B1395)","v":""},{"$f":"IF('1. Ordersheet'!I1395=\"\",\"\",'1. Ordersheet'!I1395)","v":""},{"$f":"IF('1. Ordersheet'!J1395=\"\",\"\",'1. Ordersheet'!J1395)","v":""},{"$f":"IF('1. Ordersheet'!K1395=\"\",\"\",'1. Ordersheet'!K1395)","v":""},{"$f":"IF('1. Ordersheet'!M1395=\"\",\"\",'1. Ordersheet'!M1395)","v":""},null,null,{"$f":"IF('1. Ordersheet'!AR1395=\"\",\"\",'1. Ordersheet'!AR1395)","v":""},{"$f":"IF('1. Ordersheet'!AE1395=\"\",\"\",'1. Ordersheet'!AE1395)","v":""}]
[{"$f":"IF('1. Ordersheet'!B1396=\"\",\"\",'1. Ordersheet'!B1396)","v":""},{"$f":"IF('1. Ordersheet'!I1396=\"\",\"\",'1. Ordersheet'!I1396)","v":""},{"$f":"IF('1. Ordersheet'!J1396=\"\",\"\",'1. Ordersheet'!J1396)","v":""},{"$f":"IF('1. Ordersheet'!K1396=\"\",\"\",'1. Ordersheet'!K1396)","v":""},{"$f":"IF('1. Ordersheet'!M1396=\"\",\"\",'1. Ordersheet'!M1396)","v":""},null,null,{"$f":"IF('1. Ordersheet'!AR1396=\"\",\"\",'1. Ordersheet'!AR1396)","v":""},{"$f":"IF('1. Ordersheet'!AE1396=\"\",\"\",'1. Ordersheet'!AE1396)","v":""}]
[{"$f":"IF('1. Ordersheet'!B1397=\"\",\"\",'1. Ordersheet'!B1397)","v":""},{"$f":"IF('1. Ordersheet'!I1397=\"\",\"\",'1. Ordersheet'!I1397)","v":""},{"$f":"IF('1. Ordersheet'!J1397=\"\",\"\",'1. Ordersheet'!J1397)","v":""},{"$f":"IF('1. Ordersheet'!K1397=\"\",\"\",'1. Ordersheet'!K1397)","v":""},{"$f":"IF('1. Ordersheet'!M1397=\"\",\"\",'1. Ordersheet'!M1397)","v":""},null,null,{"$f":"IF('1. Ordersheet'!AR1397=\"\",\"\",'1. Ordersheet'!AR1397)","v":""},{"$f":"IF('1. Ordersheet'!AE1397=\"\",\"\",'1. Ordersheet'!AE1397)","v":""}]
[{"$f":"IF('1. Ordersheet'!B1398=\"\",\"\",'1. Ordersheet'!B1398)","v":""},{"$f":"IF('1. Ordersheet'!I1398=\"\",\"\",'1. Ordersheet'!I1398)","v":""},{"$f":"IF('1. Ordersheet'!J1398=\"\",\"\",'1. Ordersheet'!J1398)","v":""},{"$f":"IF('1. Ordersheet'!K1398=\"\",\"\",'1. Ordersheet'!K1398)","v":""},{"$f":"IF('1. Ordersheet'!M1398=\"\",\"\",'1. Ordersheet'!M1398)","v":""},null,null,{"$f":"IF('1. Ordersheet'!AR1398=\"\",\"\",'1. Ordersheet'!AR1398)","v":""},{"$f":"IF('1. Ordersheet'!AE1398=\"\",\"\",'1. Ordersheet'!AE1398)","v":""}]
[{"$f":"IF('1. Ordersheet'!B1399=\"\",\"\",'1. Ordersheet'!B1399)","v":""},{"$f":"IF('1. Ordersheet'!I1399=\"\",\"\",'1. Ordersheet'!I1399)","v":""},{"$f":"IF('1. Ordersheet'!J1399=\"\",\"\",'1. Ordersheet'!J1399)","v":""},{"$f":"IF('1. Ordersheet'!K1399=\"\",\"\",'1. Ordersheet'!K1399)","v":""},{"$f":"IF('1. Ordersheet'!M1399=\"\",\"\",'1. Ordersheet'!M1399)","v":""},null,null,{"$f":"IF('1. Ordersheet'!AR1399=\"\",\"\",'1. Ordersheet'!AR1399)","v":""},{"$f":"IF('1. Ordersheet'!AE1399=\"\",\"\",'1. Ordersheet'!AE1399)","v":""}]
[{"$f":"IF('1. Ordersheet'!B1400=\"\",\"\",'1. Ordersheet'!B1400)","v":""},{"$f":"IF('1. Ordersheet'!I1400=\"\",\"\",'1. Ordersheet'!I1400)","v":""},{"$f":"IF('1. Ordersheet'!J1400=\"\",\"\",'1. Ordersheet'!J1400)","v":""},{"$f":"IF('1. Ordersheet'!K1400=\"\",\"\",'1. Ordersheet'!K1400)","v":""},{"$f":"IF('1. Ordersheet'!M1400=\"\",\"\",'1. Ordersheet'!M1400)","v":""},null,null,{"$f":"IF('1. Ordersheet'!AR1400=\"\",\"\",'1. Ordersheet'!AR1400)","v":""},{"$f":"IF('1. Ordersheet'!AE1400=\"\",\"\",'1. Ordersheet'!AE1400)","v":""}]
[{"$f":"IF('1. Ordersheet'!B1401=\"\",\"\",'1. Ordersheet'!B1401)","v":""},{"$f":"IF('1. Ordersheet'!I1401=\"\",\"\",'1. Ordersheet'!I1401)","v":""},{"$f":"IF('1. Ordersheet'!J1401=\"\",\"\",'1. Ordersheet'!J1401)","v":""},{"$f":"IF('1. Ordersheet'!K1401=\"\",\"\",'1. Ordersheet'!K1401)","v":""},{"$f":"IF('1. Ordersheet'!M1401=\"\",\"\",'1. Ordersheet'!M1401)","v":""},null,null,{"$f":"IF('1. Ordersheet'!AR1401=\"\",\"\",'1. Ordersheet'!AR1401)","v":""},{"$f":"IF('1. Ordersheet'!AE1401=\"\",\"\",'1. Ordersheet'!AE1401)","v":""}]
[{"$f":"IF('1. Ordersheet'!B1402=\"\",\"\",'1. Ordersheet'!B1402)","v":""},{"$f":"IF('1. Ordersheet'!I1402=\"\",\"\",'1. Ordersheet'!I1402)","v":""},{"$f":"IF('1. Ordersheet'!J1402=\"\",\"\",'1. Ordersheet'!J1402)","v":""},{"$f":"IF('1. Ordersheet'!K1402=\"\",\"\",'1. Ordersheet'!K1402)","v":""},{"$f":"IF('1. Ordersheet'!M1402=\"\",\"\",'1. Ordersheet'!M1402)","v":""},null,null,{"$f":"IF('1. Ordersheet'!AR1402=\"\",\"\",'1. Ordersheet'!AR1402)","v":""},{"$f":"IF('1. Ordersheet'!AE1402=\"\",\"\",'1. Ordersheet'!AE1402)","v":""}]
[{"$f":"IF('1. Ordersheet'!B1403=\"\",\"\",'1. Ordersheet'!B1403)","v":""},{"$f":"IF('1. Ordersheet'!I1403=\"\",\"\",'1. Ordersheet'!I1403)","v":""},{"$f":"IF('1. Ordersheet'!J1403=\"\",\"\",'1. Ordersheet'!J1403)","v":""},{"$f":"IF('1. Ordersheet'!K1403=\"\",\"\",'1. Ordersheet'!K1403)","v":""},{"$f":"IF('1. Ordersheet'!M1403=\"\",\"\",'1. Ordersheet'!M1403)","v":""},null,null,{"$f":"IF('1. Ordersheet'!AR1403=\"\",\"\",'1. Ordersheet'!AR1403)","v":""},{"$f":"IF('1. Ordersheet'!AE1403=\"\",\"\",'1. Ordersheet'!AE1403)","v":""}]
[{"$f":"IF('1. Ordersheet'!B1404=\"\",\"\",'1. Ordersheet'!B1404)","v":""},{"$f":"IF('1. Ordersheet'!I1404=\"\",\"\",'1. Ordersheet'!I1404)","v":""},{"$f":"IF('1. Ordersheet'!J1404=\"\",\"\",'1. Ordersheet'!J1404)","v":""},{"$f":"IF('1. Ordersheet'!K1404=\"\",\"\",'1. Ordersheet'!K1404)","v":""},{"$f":"IF('1. Ordersheet'!M1404=\"\",\"\",'1. Ordersheet'!M1404)","v":""},null,null,{"$f":"IF('1. Ordersheet'!AR1404=\"\",\"\",'1. Ordersheet'!AR1404)","v":""},{"$f":"IF('1. Ordersheet'!AE1404=\"\",\"\",'1. Ordersheet'!AE1404)","v":""}]
[{"$f":"IF('1. Ordersheet'!B1405=\"\",\"\",'1. Ordersheet'!B1405)","v":""},{"$f":"IF('1. Ordersheet'!I1405=\"\",\"\",'1. Ordersheet'!I1405)","v":""},{"$f":"IF('1. Ordersheet'!J1405=\"\",\"\",'1. Ordersheet'!J1405)","v":""},{"$f":"IF('1. Ordersheet'!K1405=\"\",\"\",'1. Ordersheet'!K1405)","v":""},{"$f":"IF('1. Ordersheet'!M1405=\"\",\"\",'1. Ordersheet'!M1405)","v":""},null,null,{"$f":"IF('1. Ordersheet'!AR1405=\"\",\"\",'1. Ordersheet'!AR1405)","v":""},{"$f":"IF('1. Ordersheet'!AE1405=\"\",\"\",'1. Ordersheet'!AE1405)","v":""}]
[{"$f":"IF('1. Ordersheet'!B1406=\"\",\"\",'1. Ordersheet'!B1406)","v":""},{"$f":"IF('1. Ordersheet'!I1406=\"\",\"\",'1. Ordersheet'!I1406)","v":""},{"$f":"IF('1. Ordersheet'!J1406=\"\",\"\",'1. Ordersheet'!J1406)","v":""},{"$f":"IF('1. Ordersheet'!K1406=\"\",\"\",'1. Ordersheet'!K1406)","v":""},{"$f":"IF('1. Ordersheet'!M1406=\"\",\"\",'1. Ordersheet'!M1406)","v":""},null,null,{"$f":"IF('1. Ordersheet'!AR1406=\"\",\"\",'1. Ordersheet'!AR1406)","v":""},{"$f":"IF('1. Ordersheet'!AE1406=\"\",\"\",'1. Ordersheet'!AE1406)","v":""}]
[{"$f":"IF('1. Ordersheet'!B1407=\"\",\"\",'1. Ordersheet'!B1407)","v":""},{"$f":"IF('1. Ordersheet'!I1407=\"\",\"\",'1. Ordersheet'!I1407)","v":""},{"$f":"IF('1. Ordersheet'!J1407=\"\",\"\",'1. Ordersheet'!J1407)","v":""},{"$f":"IF('1. Ordersheet'!K1407=\"\",\"\",'1. Ordersheet'!K1407)","v":""},{"$f":"IF('1. Ordersheet'!M1407=\"\",\"\",'1. Ordersheet'!M1407)","v":""},null,null,{"$f":"IF('1. Ordersheet'!AR1407=\"\",\"\",'1. Ordersheet'!AR1407)","v":""},{"$f":"IF('1. Ordersheet'!AE1407=\"\",\"\",'1. Ordersheet'!AE1407)","v":""}]
[{"$f":"IF('1. Ordersheet'!B1408=\"\",\"\",'1. Ordersheet'!B1408)","v":""},{"$f":"IF('1. Ordersheet'!I1408=\"\",\"\",'1. Ordersheet'!I1408)","v":""},{"$f":"IF('1. Ordersheet'!J1408=\"\",\"\",'1. Ordersheet'!J1408)","v":""},{"$f":"IF('1. Ordersheet'!K1408=\"\",\"\",'1. Ordersheet'!K1408)","v":""},{"$f":"IF('1. Ordersheet'!M1408=\"\",\"\",'1. Ordersheet'!M1408)","v":""},null,null,{"$f":"IF('1. Ordersheet'!AR1408=\"\",\"\",'1. Ordersheet'!AR1408)","v":""},{"$f":"IF('1. Ordersheet'!AE1408=\"\",\"\",'1. Ordersheet'!AE1408)","v":""}]
[{"$f":"IF('1. Ordersheet'!B1409=\"\",\"\",'1. Ordersheet'!B1409)","v":""},{"$f":"IF('1. Ordersheet'!I1409=\"\",\"\",'1. Ordersheet'!I1409)","v":""},{"$f":"IF('1. Ordersheet'!J1409=\"\",\"\",'1. Ordersheet'!J1409)","v":""},{"$f":"IF('1. Ordersheet'!K1409=\"\",\"\",'1. Ordersheet'!K1409)","v":""},{"$f":"IF('1. Ordersheet'!M1409=\"\",\"\",'1. Ordersheet'!M1409)","v":""},null,null,{"$f":"IF('1. Ordersheet'!AR1409=\"\",\"\",'1. Ordersheet'!AR1409)","v":""},{"$f":"IF('1. Ordersheet'!AE1409=\"\",\"\",'1. Ordersheet'!AE1409)","v":""}]
[{"$f":"IF('1. Ordersheet'!B1410=\"\",\"\",'1. Ordersheet'!B1410)","v":""},{"$f":"IF('1. Ordersheet'!I1410=\"\",\"\",'1. Ordersheet'!I1410)","v":""},{"$f":"IF('1. Ordersheet'!J1410=\"\",\"\",'1. Ordersheet'!J1410)","v":""},{"$f":"IF('1. Ordersheet'!K1410=\"\",\"\",'1. Ordersheet'!K1410)","v":""},{"$f":"IF('1. Ordersheet'!M1410=\"\",\"\",'1. Ordersheet'!M1410)","v":""},null,null,{"$f":"IF('1. Ordersheet'!AR1410=\"\",\"\",'1. Ordersheet'!AR1410)","v":""},{"$f":"IF('1. Ordersheet'!AE1410=\"\",\"\",'1. Ordersheet'!AE1410)","v":""}]
[{"$f":"IF('1. Ordersheet'!B1411=\"\",\"\",'1. Ordersheet'!B1411)","v":""},{"$f":"IF('1. Ordersheet'!I1411=\"\",\"\",'1. Ordersheet'!I1411)","v":""},{"$f":"IF('1. Ordersheet'!J1411=\"\",\"\",'1. Ordersheet'!J1411)","v":""},{"$f":"IF('1. Ordersheet'!K1411=\"\",\"\",'1. Ordersheet'!K1411)","v":""},{"$f":"IF('1. Ordersheet'!M1411=\"\",\"\",'1. Ordersheet'!M1411)","v":""},null,null,{"$f":"IF('1. Ordersheet'!AR1411=\"\",\"\",'1. Ordersheet'!AR1411)","v":""},{"$f":"IF('1. Ordersheet'!AE1411=\"\",\"\",'1. Ordersheet'!AE1411)","v":""}]
[{"$f":"IF('1. Ordersheet'!B1412=\"\",\"\",'1. Ordersheet'!B1412)","v":""},{"$f":"IF('1. Ordersheet'!I1412=\"\",\"\",'1. Ordersheet'!I1412)","v":""},{"$f":"IF('1. Ordersheet'!J1412=\"\",\"\",'1. Ordersheet'!J1412)","v":""},{"$f":"IF('1. Ordersheet'!K1412=\"\",\"\",'1. Ordersheet'!K1412)","v":""},{"$f":"IF('1. Ordersheet'!M1412=\"\",\"\",'1. Ordersheet'!M1412)","v":""},null,null,{"$f":"IF('1. Ordersheet'!AR1412=\"\",\"\",'1. Ordersheet'!AR1412)","v":""},{"$f":"IF('1. Ordersheet'!AE1412=\"\",\"\",'1. Ordersheet'!AE1412)","v":""}]
[{"$f":"IF('1. Ordersheet'!B1413=\"\",\"\",'1. Ordersheet'!B1413)","v":""},{"$f":"IF('1. Ordersheet'!I1413=\"\",\"\",'1. Ordersheet'!I1413)","v":""},{"$f":"IF('1. Ordersheet'!J1413=\"\",\"\",'1. Ordersheet'!J1413)","v":""},{"$f":"IF('1. Ordersheet'!K1413=\"\",\"\",'1. Ordersheet'!K1413)","v":""},{"$f":"IF('1. Ordersheet'!M1413=\"\",\"\",'1. Ordersheet'!M1413)","v":""},null,null,{"$f":"IF('1. Ordersheet'!AR1413=\"\",\"\",'1. Ordersheet'!AR1413)","v":""},{"$f":"IF('1. Ordersheet'!AE1413=\"\",\"\",'1. Ordersheet'!AE1413)","v":""}]
[{"$f":"IF('1. Ordersheet'!B1414=\"\",\"\",'1. Ordersheet'!B1414)","v":""},{"$f":"IF('1. Ordersheet'!I1414=\"\",\"\",'1. Ordersheet'!I1414)","v":""},{"$f":"IF('1. Ordersheet'!J1414=\"\",\"\",'1. Ordersheet'!J1414)","v":""},{"$f":"IF('1. Ordersheet'!K1414=\"\",\"\",'1. Ordersheet'!K1414)","v":""},{"$f":"IF('1. Ordersheet'!M1414=\"\",\"\",'1. Ordersheet'!M1414)","v":""},null,null,{"$f":"IF('1. Ordersheet'!AR1414=\"\",\"\",'1. Ordersheet'!AR1414)","v":""},{"$f":"IF('1. Ordersheet'!AE1414=\"\",\"\",'1. Ordersheet'!AE1414)","v":""}]
[{"$f":"IF('1. Ordersheet'!B1415=\"\",\"\",'1. Ordersheet'!B1415)","v":""},{"$f":"IF('1. Ordersheet'!I1415=\"\",\"\",'1. Ordersheet'!I1415)","v":""},{"$f":"IF('1. Ordersheet'!J1415=\"\",\"\",'1. Ordersheet'!J1415)","v":""},{"$f":"IF('1. Ordersheet'!K1415=\"\",\"\",'1. Ordersheet'!K1415)","v":""},{"$f":"IF('1. Ordersheet'!M1415=\"\",\"\",'1. Ordersheet'!M1415)","v":""},null,null,{"$f":"IF('1. Ordersheet'!AR1415=\"\",\"\",'1. Ordersheet'!AR1415)","v":""},{"$f":"IF('1. Ordersheet'!AE1415=\"\",\"\",'1. Ordersheet'!AE1415)","v":""}]
[{"$f":"IF('1. Ordersheet'!B1416=\"\",\"\",'1. Ordersheet'!B1416)","v":""},{"$f":"IF('1. Ordersheet'!I1416=\"\",\"\",'1. Ordersheet'!I1416)","v":""},{"$f":"IF('1. Ordersheet'!J1416=\"\",\"\",'1. Ordersheet'!J1416)","v":""},{"$f":"IF('1. Ordersheet'!K1416=\"\",\"\",'1. Ordersheet'!K1416)","v":""},{"$f":"IF('1. Ordersheet'!M1416=\"\",\"\",'1. Ordersheet'!M1416)","v":""},null,null,{"$f":"IF('1. Ordersheet'!AR1416=\"\",\"\",'1. Ordersheet'!AR1416)","v":""},{"$f":"IF('1. Ordersheet'!AE1416=\"\",\"\",'1. Ordersheet'!AE1416)","v":""}]
[{"$f":"IF('1. Ordersheet'!B1417=\"\",\"\",'1. Ordersheet'!B1417)","v":""},{"$f":"IF('1. Ordersheet'!I1417=\"\",\"\",'1. Ordersheet'!I1417)","v":""},{"$f":"IF('1. Ordersheet'!J1417=\"\",\"\",'1. Ordersheet'!J1417)","v":""},{"$f":"IF('1. Ordersheet'!K1417=\"\",\"\",'1. Ordersheet'!K1417)","v":""},{"$f":"IF('1. Ordersheet'!M1417=\"\",\"\",'1. Ordersheet'!M1417)","v":""},null,null,{"$f":"IF('1. Ordersheet'!AR1417=\"\",\"\",'1. Ordersheet'!AR1417)","v":""},{"$f":"IF('1. Ordersheet'!AE1417=\"\",\"\",'1. Ordersheet'!AE1417)","v":""}]
[{"$f":"IF('1. Ordersheet'!B1418=\"\",\"\",'1. Ordersheet'!B1418)","v":""},{"$f":"IF('1. Ordersheet'!I1418=\"\",\"\",'1. Ordersheet'!I1418)","v":""},{"$f":"IF('1. Ordersheet'!J1418=\"\",\"\",'1. Ordersheet'!J1418)","v":""},{"$f":"IF('1. Ordersheet'!K1418=\"\",\"\",'1. Ordersheet'!K1418)","v":""},{"$f":"IF('1. Ordersheet'!M1418=\"\",\"\",'1. Ordersheet'!M1418)","v":""},null,null,{"$f":"IF('1. Ordersheet'!AR1418=\"\",\"\",'1. Ordersheet'!AR1418)","v":""},{"$f":"IF('1. Ordersheet'!AE1418=\"\",\"\",'1. Ordersheet'!AE1418)","v":""}]
[{"$f":"IF('1. Ordersheet'!B1419=\"\",\"\",'1. Ordersheet'!B1419)","v":""},{"$f":"IF('1. Ordersheet'!I1419=\"\",\"\",'1. Ordersheet'!I1419)","v":""},{"$f":"IF('1. Ordersheet'!J1419=\"\",\"\",'1. Ordersheet'!J1419)","v":""},{"$f":"IF('1. Ordersheet'!K1419=\"\",\"\",'1. Ordersheet'!K1419)","v":""},{"$f":"IF('1. Ordersheet'!M1419=\"\",\"\",'1. Ordersheet'!M1419)","v":""},null,null,{"$f":"IF('1. Ordersheet'!AR1419=\"\",\"\",'1. Ordersheet'!AR1419)","v":""},{"$f":"IF('1. Ordersheet'!AE1419=\"\",\"\",'1. Ordersheet'!AE1419)","v":""}]
[{"$f":"IF('1. Ordersheet'!B1420=\"\",\"\",'1. Ordersheet'!B1420)","v":""},{"$f":"IF('1. Ordersheet'!I1420=\"\",\"\",'1. Ordersheet'!I1420)","v":""},{"$f":"IF('1. Ordersheet'!J1420=\"\",\"\",'1. Ordersheet'!J1420)","v":""},{"$f":"IF('1. Ordersheet'!K1420=\"\",\"\",'1. Ordersheet'!K1420)","v":""},{"$f":"IF('1. Ordersheet'!M1420=\"\",\"\",'1. Ordersheet'!M1420)","v":""},null,null,{"$f":"IF('1. Ordersheet'!AR1420=\"\",\"\",'1. Ordersheet'!AR1420)","v":""},{"$f":"IF('1. Ordersheet'!AE1420=\"\",\"\",'1. Ordersheet'!AE1420)","v":""}]
[{"$f":"IF('1. Ordersheet'!B1421=\"\",\"\",'1. Ordersheet'!B1421)","v":""},{"$f":"IF('1. Ordersheet'!I1421=\"\",\"\",'1. Ordersheet'!I1421)","v":""},{"$f":"IF('1. Ordersheet'!J1421=\"\",\"\",'1. Ordersheet'!J1421)","v":""},{"$f":"IF('1. Ordersheet'!K1421=\"\",\"\",'1. Ordersheet'!K1421)","v":""},{"$f":"IF('1. Ordersheet'!M1421=\"\",\"\",'1. Ordersheet'!M1421)","v":""},null,null,{"$f":"IF('1. Ordersheet'!AR1421=\"\",\"\",'1. Ordersheet'!AR1421)","v":""},{"$f":"IF('1. Ordersheet'!AE1421=\"\",\"\",'1. Ordersheet'!AE1421)","v":""}]
[{"$f":"IF('1. Ordersheet'!B1422=\"\",\"\",'1. Ordersheet'!B1422)","v":""},{"$f":"IF('1. Ordersheet'!I1422=\"\",\"\",'1. Ordersheet'!I1422)","v":""},{"$f":"IF('1. Ordersheet'!J1422=\"\",\"\",'1. Ordersheet'!J1422)","v":""},{"$f":"IF('1. Ordersheet'!K1422=\"\",\"\",'1. Ordersheet'!K1422)","v":""},{"$f":"IF('1. Ordersheet'!M1422=\"\",\"\",'1. Ordersheet'!M1422)","v":""},null,null,{"$f":"IF('1. Ordersheet'!AR1422=\"\",\"\",'1. Ordersheet'!AR1422)","v":""},{"$f":"IF('1. Ordersheet'!AE1422=\"\",\"\",'1. Ordersheet'!AE1422)","v":""}]
[{"$f":"IF('1. Ordersheet'!B1423=\"\",\"\",'1. Ordersheet'!B1423)","v":""},{"$f":"IF('1. Ordersheet'!I1423=\"\",\"\",'1. Ordersheet'!I1423)","v":""},{"$f":"IF('1. Ordersheet'!J1423=\"\",\"\",'1. Ordersheet'!J1423)","v":""},{"$f":"IF('1. Ordersheet'!K1423=\"\",\"\",'1. Ordersheet'!K1423)","v":""},{"$f":"IF('1. Ordersheet'!M1423=\"\",\"\",'1. Ordersheet'!M1423)","v":""},null,null,{"$f":"IF('1. Ordersheet'!AR1423=\"\",\"\",'1. Ordersheet'!AR1423)","v":""},{"$f":"IF('1. Ordersheet'!AE1423=\"\",\"\",'1. Ordersheet'!AE1423)","v":""}]
[{"$f":"IF('1. Ordersheet'!B1424=\"\",\"\",'1. Ordersheet'!B1424)","v":""},{"$f":"IF('1. Ordersheet'!I1424=\"\",\"\",'1. Ordersheet'!I1424)","v":""},{"$f":"IF('1. Ordersheet'!J1424=\"\",\"\",'1. Ordersheet'!J1424)","v":""},{"$f":"IF('1. Ordersheet'!K1424=\"\",\"\",'1. Ordersheet'!K1424)","v":""},{"$f":"IF('1. Ordersheet'!M1424=\"\",\"\",'1. Ordersheet'!M1424)","v":""},null,null,{"$f":"IF('1. Ordersheet'!AR1424=\"\",\"\",'1. Ordersheet'!AR1424)","v":""},{"$f":"IF('1. Ordersheet'!AE1424=\"\",\"\",'1. Ordersheet'!AE1424)","v":""}]
[{"$f":"IF('1. Ordersheet'!B1425=\"\",\"\",'1. Ordersheet'!B1425)","v":""},{"$f":"IF('1. Ordersheet'!I1425=\"\",\"\",'1. Ordersheet'!I1425)","v":""},{"$f":"IF('1. Ordersheet'!J1425=\"\",\"\",'1. Ordersheet'!J1425)","v":""},{"$f":"IF('1. Ordersheet'!K1425=\"\",\"\",'1. Ordersheet'!K1425)","v":""},{"$f":"IF('1. Ordersheet'!M1425=\"\",\"\",'1. Ordersheet'!M1425)","v":""},null,null,{"$f":"IF('1. Ordersheet'!AR1425=\"\",\"\",'1. Ordersheet'!AR1425)","v":""},{"$f":"IF('1. Ordersheet'!AE1425=\"\",\"\",'1. Ordersheet'!AE1425)","v":""}]
[{"$f":"IF('1. Ordersheet'!B1426=\"\",\"\",'1. Ordersheet'!B1426)","v":""},{"$f":"IF('1. Ordersheet'!I1426=\"\",\"\",'1. Ordersheet'!I1426)","v":""},{"$f":"IF('1. Ordersheet'!J1426=\"\",\"\",'1. Ordersheet'!J1426)","v":""},{"$f":"IF('1. Ordersheet'!K1426=\"\",\"\",'1. Ordersheet'!K1426)","v":""},{"$f":"IF('1. Ordersheet'!M1426=\"\",\"\",'1. Ordersheet'!M1426)","v":""},null,null,{"$f":"IF('1. Ordersheet'!AR1426=\"\",\"\",'1. Ordersheet'!AR1426)","v":""},{"$f":"IF('1. Ordersheet'!AE1426=\"\",\"\",'1. Ordersheet'!AE1426)","v":""}]
[{"$f":"IF('1. Ordersheet'!B1427=\"\",\"\",'1. Ordersheet'!B1427)","v":""},{"$f":"IF('1. Ordersheet'!I1427=\"\",\"\",'1. Ordersheet'!I1427)","v":""},{"$f":"IF('1. Ordersheet'!J1427=\"\",\"\",'1. Ordersheet'!J1427)","v":""},{"$f":"IF('1. Ordersheet'!K1427=\"\",\"\",'1. Ordersheet'!K1427)","v":""},{"$f":"IF('1. Ordersheet'!M1427=\"\",\"\",'1. Ordersheet'!M1427)","v":""},null,null,{"$f":"IF('1. Ordersheet'!AR1427=\"\",\"\",'1. Ordersheet'!AR1427)","v":""},{"$f":"IF('1. Ordersheet'!AE1427=\"\",\"\",'1. Ordersheet'!AE1427)","v":""}]
[{"$f":"IF('1. Ordersheet'!B1428=\"\",\"\",'1. Ordersheet'!B1428)","v":""},{"$f":"IF('1. Ordersheet'!I1428=\"\",\"\",'1. Ordersheet'!I1428)","v":""},{"$f":"IF('1. Ordersheet'!J1428=\"\",\"\",'1. Ordersheet'!J1428)","v":""},{"$f":"IF('1. Ordersheet'!K1428=\"\",\"\",'1. Ordersheet'!K1428)","v":""},{"$f":"IF('1. Ordersheet'!M1428=\"\",\"\",'1. Ordersheet'!M1428)","v":""},null,null,{"$f":"IF('1. Ordersheet'!AR1428=\"\",\"\",'1. Ordersheet'!AR1428)","v":""},{"$f":"IF('1. Ordersheet'!AE1428=\"\",\"\",'1. Ordersheet'!AE1428)","v":""}]
[{"$f":"IF('1. Ordersheet'!B1429=\"\",\"\",'1. Ordersheet'!B1429)","v":""},{"$f":"IF('1. Ordersheet'!I1429=\"\",\"\",'1. Ordersheet'!I1429)","v":""},{"$f":"IF('1. Ordersheet'!J1429=\"\",\"\",'1. Ordersheet'!J1429)","v":""},{"$f":"IF('1. Ordersheet'!K1429=\"\",\"\",'1. Ordersheet'!K1429)","v":""},{"$f":"IF('1. Ordersheet'!M1429=\"\",\"\",'1. Ordersheet'!M1429)","v":""},null,null,{"$f":"IF('1. Ordersheet'!AR1429=\"\",\"\",'1. Ordersheet'!AR1429)","v":""},{"$f":"IF('1. Ordersheet'!AE1429=\"\",\"\",'1. Ordersheet'!AE1429)","v":""}]
[{"$f":"IF('1. Ordersheet'!B1430=\"\",\"\",'1. Ordersheet'!B1430)","v":""},{"$f":"IF('1. Ordersheet'!I1430=\"\",\"\",'1. Ordersheet'!I1430)","v":""},{"$f":"IF('1. Ordersheet'!J1430=\"\",\"\",'1. Ordersheet'!J1430)","v":""},{"$f":"IF('1. Ordersheet'!K1430=\"\",\"\",'1. Ordersheet'!K1430)","v":""},{"$f":"IF('1. Ordersheet'!M1430=\"\",\"\",'1. Ordersheet'!M1430)","v":""},null,null,{"$f":"IF('1. Ordersheet'!AR1430=\"\",\"\",'1. Ordersheet'!AR1430)","v":""},{"$f":"IF('1. Ordersheet'!AE1430=\"\",\"\",'1. Ordersheet'!AE1430)","v":""}]
[{"$f":"IF('1. Ordersheet'!B1431=\"\",\"\",'1. Ordersheet'!B1431)","v":""},{"$f":"IF('1. Ordersheet'!I1431=\"\",\"\",'1. Ordersheet'!I1431)","v":""},{"$f":"IF('1. Ordersheet'!J1431=\"\",\"\",'1. Ordersheet'!J1431)","v":""},{"$f":"IF('1. Ordersheet'!K1431=\"\",\"\",'1. Ordersheet'!K1431)","v":""},{"$f":"IF('1. Ordersheet'!M1431=\"\",\"\",'1. Ordersheet'!M1431)","v":""},null,null,{"$f":"IF('1. Ordersheet'!AR1431=\"\",\"\",'1. Ordersheet'!AR1431)","v":""},{"$f":"IF('1. Ordersheet'!AE1431=\"\",\"\",'1. Ordersheet'!AE1431)","v":""}]
[{"$f":"IF('1. Ordersheet'!B1432=\"\",\"\",'1. Ordersheet'!B1432)","v":""},{"$f":"IF('1. Ordersheet'!I1432=\"\",\"\",'1. Ordersheet'!I1432)","v":""},{"$f":"IF('1. Ordersheet'!J1432=\"\",\"\",'1. Ordersheet'!J1432)","v":""},{"$f":"IF('1. Ordersheet'!K1432=\"\",\"\",'1. Ordersheet'!K1432)","v":""},{"$f":"IF('1. Ordersheet'!M1432=\"\",\"\",'1. Ordersheet'!M1432)","v":""},null,null,{"$f":"IF('1. Ordersheet'!AR1432=\"\",\"\",'1. Ordersheet'!AR1432)","v":""},{"$f":"IF('1. Ordersheet'!AE1432=\"\",\"\",'1. Ordersheet'!AE1432)","v":""}]
[{"$f":"IF('1. Ordersheet'!B1433=\"\",\"\",'1. Ordersheet'!B1433)","v":""},{"$f":"IF('1. Ordersheet'!I1433=\"\",\"\",'1. Ordersheet'!I1433)","v":""},{"$f":"IF('1. Ordersheet'!J1433=\"\",\"\",'1. Ordersheet'!J1433)","v":""},{"$f":"IF('1. Ordersheet'!K1433=\"\",\"\",'1. Ordersheet'!K1433)","v":""},{"$f":"IF('1. Ordersheet'!M1433=\"\",\"\",'1. Ordersheet'!M1433)","v":""},null,null,{"$f":"IF('1. Ordersheet'!AR1433=\"\",\"\",'1. Ordersheet'!AR1433)","v":""},{"$f":"IF('1. Ordersheet'!AE1433=\"\",\"\",'1. Ordersheet'!AE1433)","v":""}]
[{"$f":"IF('1. Ordersheet'!B1434=\"\",\"\",'1. Ordersheet'!B1434)","v":""},{"$f":"IF('1. Ordersheet'!I1434=\"\",\"\",'1. Ordersheet'!I1434)","v":""},{"$f":"IF('1. Ordersheet'!J1434=\"\",\"\",'1. Ordersheet'!J1434)","v":""},{"$f":"IF('1. Ordersheet'!K1434=\"\",\"\",'1. Ordersheet'!K1434)","v":""},{"$f":"IF('1. Ordersheet'!M1434=\"\",\"\",'1. Ordersheet'!M1434)","v":""},null,null,{"$f":"IF('1. Ordersheet'!AR1434=\"\",\"\",'1. Ordersheet'!AR1434)","v":""},{"$f":"IF('1. Ordersheet'!AE1434=\"\",\"\",'1. Ordersheet'!AE1434)","v":""}]
[{"$f":"IF('1. Ordersheet'!B1435=\"\",\"\",'1. Ordersheet'!B1435)","v":""},{"$f":"IF('1. Ordersheet'!I1435=\"\",\"\",'1. Ordersheet'!I1435)","v":""},{"$f":"IF('1. Ordersheet'!J1435=\"\",\"\",'1. Ordersheet'!J1435)","v":""},{"$f":"IF('1. Ordersheet'!K1435=\"\",\"\",'1. Ordersheet'!K1435)","v":""},{"$f":"IF('1. Ordersheet'!M1435=\"\",\"\",'1. Ordersheet'!M1435)","v":""},null,null,{"$f":"IF('1. Ordersheet'!AR1435=\"\",\"\",'1. Ordersheet'!AR1435)","v":""},{"$f":"IF('1. Ordersheet'!AE1435=\"\",\"\",'1. Ordersheet'!AE1435)","v":""}]
[{"$f":"IF('1. Ordersheet'!B1436=\"\",\"\",'1. Ordersheet'!B1436)","v":""},{"$f":"IF('1. Ordersheet'!I1436=\"\",\"\",'1. Ordersheet'!I1436)","v":""},{"$f":"IF('1. Ordersheet'!J1436=\"\",\"\",'1. Ordersheet'!J1436)","v":""},{"$f":"IF('1. Ordersheet'!K1436=\"\",\"\",'1. Ordersheet'!K1436)","v":""},{"$f":"IF('1. Ordersheet'!M1436=\"\",\"\",'1. Ordersheet'!M1436)","v":""},null,null,{"$f":"IF('1. Ordersheet'!AR1436=\"\",\"\",'1. Ordersheet'!AR1436)","v":""},{"$f":"IF('1. Ordersheet'!AE1436=\"\",\"\",'1. Ordersheet'!AE1436)","v":""}]
[{"$f":"IF('1. Ordersheet'!B1437=\"\",\"\",'1. Ordersheet'!B1437)","v":""},{"$f":"IF('1. Ordersheet'!I1437=\"\",\"\",'1. Ordersheet'!I1437)","v":""},{"$f":"IF('1. Ordersheet'!J1437=\"\",\"\",'1. Ordersheet'!J1437)","v":""},{"$f":"IF('1. Ordersheet'!K1437=\"\",\"\",'1. Ordersheet'!K1437)","v":""},{"$f":"IF('1. Ordersheet'!M1437=\"\",\"\",'1. Ordersheet'!M1437)","v":""},null,null,{"$f":"IF('1. Ordersheet'!AR1437=\"\",\"\",'1. Ordersheet'!AR1437)","v":""},{"$f":"IF('1. Ordersheet'!AE1437=\"\",\"\",'1. Ordersheet'!AE1437)","v":""}]
[{"$f":"IF('1. Ordersheet'!B1438=\"\",\"\",'1. Ordersheet'!B1438)","v":""},{"$f":"IF('1. Ordersheet'!I1438=\"\",\"\",'1. Ordersheet'!I1438)","v":""},{"$f":"IF('1. Ordersheet'!J1438=\"\",\"\",'1. Ordersheet'!J1438)","v":""},{"$f":"IF('1. Ordersheet'!K1438=\"\",\"\",'1. Ordersheet'!K1438)","v":""},{"$f":"IF('1. Ordersheet'!M1438=\"\",\"\",'1. Ordersheet'!M1438)","v":""},null,null,{"$f":"IF('1. Ordersheet'!AR1438=\"\",\"\",'1. Ordersheet'!AR1438)","v":""},{"$f":"IF('1. Ordersheet'!AE1438=\"\",\"\",'1. Ordersheet'!AE1438)","v":""}]
[{"$f":"IF('1. Ordersheet'!B1439=\"\",\"\",'1. Ordersheet'!B1439)","v":""},{"$f":"IF('1. Ordersheet'!I1439=\"\",\"\",'1. Ordersheet'!I1439)","v":""},{"$f":"IF('1. Ordersheet'!J1439=\"\",\"\",'1. Ordersheet'!J1439)","v":""},{"$f":"IF('1. Ordersheet'!K1439=\"\",\"\",'1. Ordersheet'!K1439)","v":""},{"$f":"IF('1. Ordersheet'!M1439=\"\",\"\",'1. Ordersheet'!M1439)","v":""},null,null,{"$f":"IF('1. Ordersheet'!AR1439=\"\",\"\",'1. Ordersheet'!AR1439)","v":""},{"$f":"IF('1. Ordersheet'!AE1439=\"\",\"\",'1. Ordersheet'!AE1439)","v":""}]
[{"$f":"IF('1. Ordersheet'!B1440=\"\",\"\",'1. Ordersheet'!B1440)","v":""},{"$f":"IF('1. Ordersheet'!I1440=\"\",\"\",'1. Ordersheet'!I1440)","v":""},{"$f":"IF('1. Ordersheet'!J1440=\"\",\"\",'1. Ordersheet'!J1440)","v":""},{"$f":"IF('1. Ordersheet'!K1440=\"\",\"\",'1. Ordersheet'!K1440)","v":""},{"$f":"IF('1. Ordersheet'!M1440=\"\",\"\",'1. Ordersheet'!M1440)","v":""},null,null,{"$f":"IF('1. Ordersheet'!AR1440=\"\",\"\",'1. Ordersheet'!AR1440)","v":""},{"$f":"IF('1. Ordersheet'!AE1440=\"\",\"\",'1. Ordersheet'!AE1440)","v":""}]
[{"$f":"IF('1. Ordersheet'!B1441=\"\",\"\",'1. Ordersheet'!B1441)","v":""},{"$f":"IF('1. Ordersheet'!I1441=\"\",\"\",'1. Ordersheet'!I1441)","v":""},{"$f":"IF('1. Ordersheet'!J1441=\"\",\"\",'1. Ordersheet'!J1441)","v":""},{"$f":"IF('1. Ordersheet'!K1441=\"\",\"\",'1. Ordersheet'!K1441)","v":""},{"$f":"IF('1. Ordersheet'!M1441=\"\",\"\",'1. Ordersheet'!M1441)","v":""},null,null,{"$f":"IF('1. Ordersheet'!AR1441=\"\",\"\",'1. Ordersheet'!AR1441)","v":""},{"$f":"IF('1. Ordersheet'!AE1441=\"\",\"\",'1. Ordersheet'!AE1441)","v":""}]
[{"$f":"IF('1. Ordersheet'!B1442=\"\",\"\",'1. Ordersheet'!B1442)","v":""},{"$f":"IF('1. Ordersheet'!I1442=\"\",\"\",'1. Ordersheet'!I1442)","v":""},{"$f":"IF('1. Ordersheet'!J1442=\"\",\"\",'1. Ordersheet'!J1442)","v":""},{"$f":"IF('1. Ordersheet'!K1442=\"\",\"\",'1. Ordersheet'!K1442)","v":""},{"$f":"IF('1. Ordersheet'!M1442=\"\",\"\",'1. Ordersheet'!M1442)","v":""},null,null,{"$f":"IF('1. Ordersheet'!AR1442=\"\",\"\",'1. Ordersheet'!AR1442)","v":""},{"$f":"IF('1. Ordersheet'!AE1442=\"\",\"\",'1. Ordersheet'!AE1442)","v":""}]
[{"$f":"IF('1. Ordersheet'!B1443=\"\",\"\",'1. Ordersheet'!B1443)","v":""},{"$f":"IF('1. Ordersheet'!I1443=\"\",\"\",'1. Ordersheet'!I1443)","v":""},{"$f":"IF('1. Ordersheet'!J1443=\"\",\"\",'1. Ordersheet'!J1443)","v":""},{"$f":"IF('1. Ordersheet'!K1443=\"\",\"\",'1. Ordersheet'!K1443)","v":""},{"$f":"IF('1. Ordersheet'!M1443=\"\",\"\",'1. Ordersheet'!M1443)","v":""},null,null,{"$f":"IF('1. Ordersheet'!AR1443=\"\",\"\",'1. Ordersheet'!AR1443)","v":""},{"$f":"IF('1. Ordersheet'!AE1443=\"\",\"\",'1. Ordersheet'!AE1443)","v":""}]
[{"$f":"IF('1. Ordersheet'!B1444=\"\",\"\",'1. Ordersheet'!B1444)","v":""},{"$f":"IF('1. Ordersheet'!I1444=\"\",\"\",'1. Ordersheet'!I1444)","v":""},{"$f":"IF('1. Ordersheet'!J1444=\"\",\"\",'1. Ordersheet'!J1444)","v":""},{"$f":"IF('1. Ordersheet'!K1444=\"\",\"\",'1. Ordersheet'!K1444)","v":""},{"$f":"IF('1. Ordersheet'!M1444=\"\",\"\",'1. Ordersheet'!M1444)","v":""},null,null,{"$f":"IF('1. Ordersheet'!AR1444=\"\",\"\",'1. Ordersheet'!AR1444)","v":""},{"$f":"IF('1. Ordersheet'!AE1444=\"\",\"\",'1. Ordersheet'!AE1444)","v":""}]
[{"$f":"IF('1. Ordersheet'!B1445=\"\",\"\",'1. Ordersheet'!B1445)","v":""},{"$f":"IF('1. Ordersheet'!I1445=\"\",\"\",'1. Ordersheet'!I1445)","v":""},{"$f":"IF('1. Ordersheet'!J1445=\"\",\"\",'1. Ordersheet'!J1445)","v":""},{"$f":"IF('1. Ordersheet'!K1445=\"\",\"\",'1. Ordersheet'!K1445)","v":""},{"$f":"IF('1. Ordersheet'!M1445=\"\",\"\",'1. Ordersheet'!M1445)","v":""},null,null,{"$f":"IF('1. Ordersheet'!AR1445=\"\",\"\",'1. Ordersheet'!AR1445)","v":""},{"$f":"IF('1. Ordersheet'!AE1445=\"\",\"\",'1. Ordersheet'!AE1445)","v":""}]
[{"$f":"IF('1. Ordersheet'!B1446=\"\",\"\",'1. Ordersheet'!B1446)","v":""},{"$f":"IF('1. Ordersheet'!I1446=\"\",\"\",'1. Ordersheet'!I1446)","v":""},{"$f":"IF('1. Ordersheet'!J1446=\"\",\"\",'1. Ordersheet'!J1446)","v":""},{"$f":"IF('1. Ordersheet'!K1446=\"\",\"\",'1. Ordersheet'!K1446)","v":""},{"$f":"IF('1. Ordersheet'!M1446=\"\",\"\",'1. Ordersheet'!M1446)","v":""},null,null,{"$f":"IF('1. Ordersheet'!AR1446=\"\",\"\",'1. Ordersheet'!AR1446)","v":""},{"$f":"IF('1. Ordersheet'!AE1446=\"\",\"\",'1. Ordersheet'!AE1446)","v":""}]
[{"$f":"IF('1. Ordersheet'!B1447=\"\",\"\",'1. Ordersheet'!B1447)","v":""},{"$f":"IF('1. Ordersheet'!I1447=\"\",\"\",'1. Ordersheet'!I1447)","v":""},{"$f":"IF('1. Ordersheet'!J1447=\"\",\"\",'1. Ordersheet'!J1447)","v":""},{"$f":"IF('1. Ordersheet'!K1447=\"\",\"\",'1. Ordersheet'!K1447)","v":""},{"$f":"IF('1. Ordersheet'!M1447=\"\",\"\",'1. Ordersheet'!M1447)","v":""},null,null,{"$f":"IF('1. Ordersheet'!AR1447=\"\",\"\",'1. Ordersheet'!AR1447)","v":""},{"$f":"IF('1. Ordersheet'!AE1447=\"\",\"\",'1. Ordersheet'!AE1447)","v":""}]
[{"$f":"IF('1. Ordersheet'!B1448=\"\",\"\",'1. Ordersheet'!B1448)","v":""},{"$f":"IF('1. Ordersheet'!I1448=\"\",\"\",'1. Ordersheet'!I1448)","v":""},{"$f":"IF('1. Ordersheet'!J1448=\"\",\"\",'1. Ordersheet'!J1448)","v":""},{"$f":"IF('1. Ordersheet'!K1448=\"\",\"\",'1. Ordersheet'!K1448)","v":""},{"$f":"IF('1. Ordersheet'!M1448=\"\",\"\",'1. Ordersheet'!M1448)","v":""},null,null,{"$f":"IF('1. Ordersheet'!AR1448=\"\",\"\",'1. Ordersheet'!AR1448)","v":""},{"$f":"IF('1. Ordersheet'!AE1448=\"\",\"\",'1. Ordersheet'!AE1448)","v":""}]
[{"$f":"IF('1. Ordersheet'!B1449=\"\",\"\",'1. Ordersheet'!B1449)","v":""},{"$f":"IF('1. Ordersheet'!I1449=\"\",\"\",'1. Ordersheet'!I1449)","v":""},{"$f":"IF('1. Ordersheet'!J1449=\"\",\"\",'1. Ordersheet'!J1449)","v":""},{"$f":"IF('1. Ordersheet'!K1449=\"\",\"\",'1. Ordersheet'!K1449)","v":""},{"$f":"IF('1. Ordersheet'!M1449=\"\",\"\",'1. Ordersheet'!M1449)","v":""},null,null,{"$f":"IF('1. Ordersheet'!AR1449=\"\",\"\",'1. Ordersheet'!AR1449)","v":""},{"$f":"IF('1. Ordersheet'!AE1449=\"\",\"\",'1. Ordersheet'!AE1449)","v":""}]
[{"$f":"IF('1. Ordersheet'!B1450=\"\",\"\",'1. Ordersheet'!B1450)","v":""},{"$f":"IF('1. Ordersheet'!I1450=\"\",\"\",'1. Ordersheet'!I1450)","v":""},{"$f":"IF('1. Ordersheet'!J1450=\"\",\"\",'1. Ordersheet'!J1450)","v":""},{"$f":"IF('1. Ordersheet'!K1450=\"\",\"\",'1. Ordersheet'!K1450)","v":""},{"$f":"IF('1. Ordersheet'!M1450=\"\",\"\",'1. Ordersheet'!M1450)","v":""},null,null,{"$f":"IF('1. Ordersheet'!AR1450=\"\",\"\",'1. Ordersheet'!AR1450)","v":""},{"$f":"IF('1. Ordersheet'!AE1450=\"\",\"\",'1. Ordersheet'!AE1450)","v":""}]
[{"$f":"IF('1. Ordersheet'!B1451=\"\",\"\",'1. Ordersheet'!B1451)","v":""},{"$f":"IF('1. Ordersheet'!I1451=\"\",\"\",'1. Ordersheet'!I1451)","v":""},{"$f":"IF('1. Ordersheet'!J1451=\"\",\"\",'1. Ordersheet'!J1451)","v":""},{"$f":"IF('1. Ordersheet'!K1451=\"\",\"\",'1. Ordersheet'!K1451)","v":""},{"$f":"IF('1. Ordersheet'!M1451=\"\",\"\",'1. Ordersheet'!M1451)","v":""},null,null,{"$f":"IF('1. Ordersheet'!AR1451=\"\",\"\",'1. Ordersheet'!AR1451)","v":""},{"$f":"IF('1. Ordersheet'!AE1451=\"\",\"\",'1. Ordersheet'!AE1451)","v":""}]
[{"$f":"IF('1. Ordersheet'!B1452=\"\",\"\",'1. Ordersheet'!B1452)","v":""},{"$f":"IF('1. Ordersheet'!I1452=\"\",\"\",'1. Ordersheet'!I1452)","v":""},{"$f":"IF('1. Ordersheet'!J1452=\"\",\"\",'1. Ordersheet'!J1452)","v":""},{"$f":"IF('1. Ordersheet'!K1452=\"\",\"\",'1. Ordersheet'!K1452)","v":""},{"$f":"IF('1. Ordersheet'!M1452=\"\",\"\",'1. Ordersheet'!M1452)","v":""},null,null,{"$f":"IF('1. Ordersheet'!AR1452=\"\",\"\",'1. Ordersheet'!AR1452)","v":""},{"$f":"IF('1. Ordersheet'!AE1452=\"\",\"\",'1. Ordersheet'!AE1452)","v":""}]
[{"$f":"IF('1. Ordersheet'!B1453=\"\",\"\",'1. Ordersheet'!B1453)","v":""},{"$f":"IF('1. Ordersheet'!I1453=\"\",\"\",'1. Ordersheet'!I1453)","v":""},{"$f":"IF('1. Ordersheet'!J1453=\"\",\"\",'1. Ordersheet'!J1453)","v":""},{"$f":"IF('1. Ordersheet'!K1453=\"\",\"\",'1. Ordersheet'!K1453)","v":""},{"$f":"IF('1. Ordersheet'!M1453=\"\",\"\",'1. Ordersheet'!M1453)","v":""},null,null,{"$f":"IF('1. Ordersheet'!AR1453=\"\",\"\",'1. Ordersheet'!AR1453)","v":""},{"$f":"IF('1. Ordersheet'!AE1453=\"\",\"\",'1. Ordersheet'!AE1453)","v":""}]
[{"$f":"IF('1. Ordersheet'!B1454=\"\",\"\",'1. Ordersheet'!B1454)","v":""},{"$f":"IF('1. Ordersheet'!I1454=\"\",\"\",'1. Ordersheet'!I1454)","v":""},{"$f":"IF('1. Ordersheet'!J1454=\"\",\"\",'1. Ordersheet'!J1454)","v":""},{"$f":"IF('1. Ordersheet'!K1454=\"\",\"\",'1. Ordersheet'!K1454)","v":""},{"$f":"IF('1. Ordersheet'!M1454=\"\",\"\",'1. Ordersheet'!M1454)","v":""},null,null,{"$f":"IF('1. Ordersheet'!AR1454=\"\",\"\",'1. Ordersheet'!AR1454)","v":""},{"$f":"IF('1. Ordersheet'!AE1454=\"\",\"\",'1. Ordersheet'!AE1454)","v":""}]
[{"$f":"IF('1. Ordersheet'!B1455=\"\",\"\",'1. Ordersheet'!B1455)","v":""},{"$f":"IF('1. Ordersheet'!I1455=\"\",\"\",'1. Ordersheet'!I1455)","v":""},{"$f":"IF('1. Ordersheet'!J1455=\"\",\"\",'1. Ordersheet'!J1455)","v":""},{"$f":"IF('1. Ordersheet'!K1455=\"\",\"\",'1. Ordersheet'!K1455)","v":""},{"$f":"IF('1. Ordersheet'!M1455=\"\",\"\",'1. Ordersheet'!M1455)","v":""},null,null,{"$f":"IF('1. Ordersheet'!AR1455=\"\",\"\",'1. Ordersheet'!AR1455)","v":""},{"$f":"IF('1. Ordersheet'!AE1455=\"\",\"\",'1. Ordersheet'!AE1455)","v":""}]
[{"$f":"IF('1. Ordersheet'!B1456=\"\",\"\",'1. Ordersheet'!B1456)","v":""},{"$f":"IF('1. Ordersheet'!I1456=\"\",\"\",'1. Ordersheet'!I1456)","v":""},{"$f":"IF('1. Ordersheet'!J1456=\"\",\"\",'1. Ordersheet'!J1456)","v":""},{"$f":"IF('1. Ordersheet'!K1456=\"\",\"\",'1. Ordersheet'!K1456)","v":""},{"$f":"IF('1. Ordersheet'!M1456=\"\",\"\",'1. Ordersheet'!M1456)","v":""},null,null,{"$f":"IF('1. Ordersheet'!AR1456=\"\",\"\",'1. Ordersheet'!AR1456)","v":""},{"$f":"IF('1. Ordersheet'!AE1456=\"\",\"\",'1. Ordersheet'!AE1456)","v":""}]
[{"$f":"IF('1. Ordersheet'!B1457=\"\",\"\",'1. Ordersheet'!B1457)","v":""},{"$f":"IF('1. Ordersheet'!I1457=\"\",\"\",'1. Ordersheet'!I1457)","v":""},{"$f":"IF('1. Ordersheet'!J1457=\"\",\"\",'1. Ordersheet'!J1457)","v":""},{"$f":"IF('1. Ordersheet'!K1457=\"\",\"\",'1. Ordersheet'!K1457)","v":""},{"$f":"IF('1. Ordersheet'!M1457=\"\",\"\",'1. Ordersheet'!M1457)","v":""},null,null,{"$f":"IF('1. Ordersheet'!AR1457=\"\",\"\",'1. Ordersheet'!AR1457)","v":""},{"$f":"IF('1. Ordersheet'!AE1457=\"\",\"\",'1. Ordersheet'!AE1457)","v":""}]
[{"$f":"IF('1. Ordersheet'!B1458=\"\",\"\",'1. Ordersheet'!B1458)","v":""},{"$f":"IF('1. Ordersheet'!I1458=\"\",\"\",'1. Ordersheet'!I1458)","v":""},{"$f":"IF('1. Ordersheet'!J1458=\"\",\"\",'1. Ordersheet'!J1458)","v":""},{"$f":"IF('1. Ordersheet'!K1458=\"\",\"\",'1. Ordersheet'!K1458)","v":""},{"$f":"IF('1. Ordersheet'!M1458=\"\",\"\",'1. Ordersheet'!M1458)","v":""},null,null,{"$f":"IF('1. Ordersheet'!AR1458=\"\",\"\",'1. Ordersheet'!AR1458)","v":""},{"$f":"IF('1. Ordersheet'!AE1458=\"\",\"\",'1. Ordersheet'!AE1458)","v":""}]
[{"$f":"IF('1. Ordersheet'!B1459=\"\",\"\",'1. Ordersheet'!B1459)","v":""},{"$f":"IF('1. Ordersheet'!I1459=\"\",\"\",'1. Ordersheet'!I1459)","v":""},{"$f":"IF('1. Ordersheet'!J1459=\"\",\"\",'1. Ordersheet'!J1459)","v":""},{"$f":"IF('1. Ordersheet'!K1459=\"\",\"\",'1. Ordersheet'!K1459)","v":""},{"$f":"IF('1. Ordersheet'!M1459=\"\",\"\",'1. Ordersheet'!M1459)","v":""},null,null,{"$f":"IF('1. Ordersheet'!AR1459=\"\",\"\",'1. Ordersheet'!AR1459)","v":""},{"$f":"IF('1. Ordersheet'!AE1459=\"\",\"\",'1. Ordersheet'!AE1459)","v":""}]
[{"$f":"IF('1. Ordersheet'!B1460=\"\",\"\",'1. Ordersheet'!B1460)","v":""},{"$f":"IF('1. Ordersheet'!I1460=\"\",\"\",'1. Ordersheet'!I1460)","v":""},{"$f":"IF('1. Ordersheet'!J1460=\"\",\"\",'1. Ordersheet'!J1460)","v":""},{"$f":"IF('1. Ordersheet'!K1460=\"\",\"\",'1. Ordersheet'!K1460)","v":""},{"$f":"IF('1. Ordersheet'!M1460=\"\",\"\",'1. Ordersheet'!M1460)","v":""},null,null,{"$f":"IF('1. Ordersheet'!AR1460=\"\",\"\",'1. Ordersheet'!AR1460)","v":""},{"$f":"IF('1. Ordersheet'!AE1460=\"\",\"\",'1. Ordersheet'!AE1460)","v":""}]
[{"$f":"IF('1. Ordersheet'!B1461=\"\",\"\",'1. Ordersheet'!B1461)","v":""},{"$f":"IF('1. Ordersheet'!I1461=\"\",\"\",'1. Ordersheet'!I1461)","v":""},{"$f":"IF('1. Ordersheet'!J1461=\"\",\"\",'1. Ordersheet'!J1461)","v":""},{"$f":"IF('1. Ordersheet'!K1461=\"\",\"\",'1. Ordersheet'!K1461)","v":""},{"$f":"IF('1. Ordersheet'!M1461=\"\",\"\",'1. Ordersheet'!M1461)","v":""},null,null,{"$f":"IF('1. Ordersheet'!AR1461=\"\",\"\",'1. Ordersheet'!AR1461)","v":""},{"$f":"IF('1. Ordersheet'!AE1461=\"\",\"\",'1. Ordersheet'!AE1461)","v":""}]
[{"$f":"IF('1. Ordersheet'!B1462=\"\",\"\",'1. Ordersheet'!B1462)","v":""},{"$f":"IF('1. Ordersheet'!I1462=\"\",\"\",'1. Ordersheet'!I1462)","v":""},{"$f":"IF('1. Ordersheet'!J1462=\"\",\"\",'1. Ordersheet'!J1462)","v":""},{"$f":"IF('1. Ordersheet'!K1462=\"\",\"\",'1. Ordersheet'!K1462)","v":""},{"$f":"IF('1. Ordersheet'!M1462=\"\",\"\",'1. Ordersheet'!M1462)","v":""},null,null,{"$f":"IF('1. Ordersheet'!AR1462=\"\",\"\",'1. Ordersheet'!AR1462)","v":""},{"$f":"IF('1. Ordersheet'!AE1462=\"\",\"\",'1. Ordersheet'!AE1462)","v":""}]
[{"$f":"IF('1. Ordersheet'!B1463=\"\",\"\",'1. Ordersheet'!B1463)","v":""},{"$f":"IF('1. Ordersheet'!I1463=\"\",\"\",'1. Ordersheet'!I1463)","v":""},{"$f":"IF('1. Ordersheet'!J1463=\"\",\"\",'1. Ordersheet'!J1463)","v":""},{"$f":"IF('1. Ordersheet'!K1463=\"\",\"\",'1. Ordersheet'!K1463)","v":""},{"$f":"IF('1. Ordersheet'!M1463=\"\",\"\",'1. Ordersheet'!M1463)","v":""},null,null,{"$f":"IF('1. Ordersheet'!AR1463=\"\",\"\",'1. Ordersheet'!AR1463)","v":""},{"$f":"IF('1. Ordersheet'!AE1463=\"\",\"\",'1. Ordersheet'!AE1463)","v":""}]
[{"$f":"IF('1. Ordersheet'!B1464=\"\",\"\",'1. Ordersheet'!B1464)","v":""},{"$f":"IF('1. Ordersheet'!I1464=\"\",\"\",'1. Ordersheet'!I1464)","v":""},{"$f":"IF('1. Ordersheet'!J1464=\"\",\"\",'1. Ordersheet'!J1464)","v":""},{"$f":"IF('1. Ordersheet'!K1464=\"\",\"\",'1. Ordersheet'!K1464)","v":""},{"$f":"IF('1. Ordersheet'!M1464=\"\",\"\",'1. Ordersheet'!M1464)","v":""},null,null,{"$f":"IF('1. Ordersheet'!AR1464=\"\",\"\",'1. Ordersheet'!AR1464)","v":""},{"$f":"IF('1. Ordersheet'!AE1464=\"\",\"\",'1. Ordersheet'!AE1464)","v":""}]
[{"$f":"IF('1. Ordersheet'!B1465=\"\",\"\",'1. Ordersheet'!B1465)","v":""},{"$f":"IF('1. Ordersheet'!I1465=\"\",\"\",'1. Ordersheet'!I1465)","v":""},{"$f":"IF('1. Ordersheet'!J1465=\"\",\"\",'1. Ordersheet'!J1465)","v":""},{"$f":"IF('1. Ordersheet'!K1465=\"\",\"\",'1. Ordersheet'!K1465)","v":""},{"$f":"IF('1. Ordersheet'!M1465=\"\",\"\",'1. Ordersheet'!M1465)","v":""},null,null,{"$f":"IF('1. Ordersheet'!AR1465=\"\",\"\",'1. Ordersheet'!AR1465)","v":""},{"$f":"IF('1. Ordersheet'!AE1465=\"\",\"\",'1. Ordersheet'!AE1465)","v":""}]
[{"$f":"IF('1. Ordersheet'!B1466=\"\",\"\",'1. Ordersheet'!B1466)","v":""},{"$f":"IF('1. Ordersheet'!I1466=\"\",\"\",'1. Ordersheet'!I1466)","v":""},{"$f":"IF('1. Ordersheet'!J1466=\"\",\"\",'1. Ordersheet'!J1466)","v":""},{"$f":"IF('1. Ordersheet'!K1466=\"\",\"\",'1. Ordersheet'!K1466)","v":""},{"$f":"IF('1. Ordersheet'!M1466=\"\",\"\",'1. Ordersheet'!M1466)","v":""},null,null,{"$f":"IF('1. Ordersheet'!AR1466=\"\",\"\",'1. Ordersheet'!AR1466)","v":""},{"$f":"IF('1. Ordersheet'!AE1466=\"\",\"\",'1. Ordersheet'!AE1466)","v":""}]
[{"$f":"IF('1. Ordersheet'!B1467=\"\",\"\",'1. Ordersheet'!B1467)","v":""},{"$f":"IF('1. Ordersheet'!I1467=\"\",\"\",'1. Ordersheet'!I1467)","v":""},{"$f":"IF('1. Ordersheet'!J1467=\"\",\"\",'1. Ordersheet'!J1467)","v":""},{"$f":"IF('1. Ordersheet'!K1467=\"\",\"\",'1. Ordersheet'!K1467)","v":""},{"$f":"IF('1. Ordersheet'!M1467=\"\",\"\",'1. Ordersheet'!M1467)","v":""},null,null,{"$f":"IF('1. Ordersheet'!AR1467=\"\",\"\",'1. Ordersheet'!AR1467)","v":""},{"$f":"IF('1. Ordersheet'!AE1467=\"\",\"\",'1. Ordersheet'!AE1467)","v":""}]
[{"$f":"IF('1. Ordersheet'!B1468=\"\",\"\",'1. Ordersheet'!B1468)","v":""},{"$f":"IF('1. Ordersheet'!I1468=\"\",\"\",'1. Ordersheet'!I1468)","v":""},{"$f":"IF('1. Ordersheet'!J1468=\"\",\"\",'1. Ordersheet'!J1468)","v":""},{"$f":"IF('1. Ordersheet'!K1468=\"\",\"\",'1. Ordersheet'!K1468)","v":""},{"$f":"IF('1. Ordersheet'!M1468=\"\",\"\",'1. Ordersheet'!M1468)","v":""},null,null,{"$f":"IF('1. Ordersheet'!AR1468=\"\",\"\",'1. Ordersheet'!AR1468)","v":""},{"$f":"IF('1. Ordersheet'!AE1468=\"\",\"\",'1. Ordersheet'!AE1468)","v":""}]
[{"$f":"IF('1. Ordersheet'!B1469=\"\",\"\",'1. Ordersheet'!B1469)","v":""},{"$f":"IF('1. Ordersheet'!I1469=\"\",\"\",'1. Ordersheet'!I1469)","v":""},{"$f":"IF('1. Ordersheet'!J1469=\"\",\"\",'1. Ordersheet'!J1469)","v":""},{"$f":"IF('1. Ordersheet'!K1469=\"\",\"\",'1. Ordersheet'!K1469)","v":""},{"$f":"IF('1. Ordersheet'!M1469=\"\",\"\",'1. Ordersheet'!M1469)","v":""},null,null,{"$f":"IF('1. Ordersheet'!AR1469=\"\",\"\",'1. Ordersheet'!AR1469)","v":""},{"$f":"IF('1. Ordersheet'!AE1469=\"\",\"\",'1. Ordersheet'!AE1469)","v":""}]
[{"$f":"IF('1. Ordersheet'!B1470=\"\",\"\",'1. Ordersheet'!B1470)","v":""},{"$f":"IF('1. Ordersheet'!I1470=\"\",\"\",'1. Ordersheet'!I1470)","v":""},{"$f":"IF('1. Ordersheet'!J1470=\"\",\"\",'1. Ordersheet'!J1470)","v":""},{"$f":"IF('1. Ordersheet'!K1470=\"\",\"\",'1. Ordersheet'!K1470)","v":""},{"$f":"IF('1. Ordersheet'!M1470=\"\",\"\",'1. Ordersheet'!M1470)","v":""},null,null,{"$f":"IF('1. Ordersheet'!AR1470=\"\",\"\",'1. Ordersheet'!AR1470)","v":""},{"$f":"IF('1. Ordersheet'!AE1470=\"\",\"\",'1. Ordersheet'!AE1470)","v":""}]
[{"$f":"IF('1. Ordersheet'!B1471=\"\",\"\",'1. Ordersheet'!B1471)","v":""},{"$f":"IF('1. Ordersheet'!I1471=\"\",\"\",'1. Ordersheet'!I1471)","v":""},{"$f":"IF('1. Ordersheet'!J1471=\"\",\"\",'1. Ordersheet'!J1471)","v":""},{"$f":"IF('1. Ordersheet'!K1471=\"\",\"\",'1. Ordersheet'!K1471)","v":""},{"$f":"IF('1. Ordersheet'!M1471=\"\",\"\",'1. Ordersheet'!M1471)","v":""},null,null,{"$f":"IF('1. Ordersheet'!AR1471=\"\",\"\",'1. Ordersheet'!AR1471)","v":""},{"$f":"IF('1. Ordersheet'!AE1471=\"\",\"\",'1. Ordersheet'!AE1471)","v":""}]
[{"$f":"IF('1. Ordersheet'!B1472=\"\",\"\",'1. Ordersheet'!B1472)","v":""},{"$f":"IF('1. Ordersheet'!I1472=\"\",\"\",'1. Ordersheet'!I1472)","v":""},{"$f":"IF('1. Ordersheet'!J1472=\"\",\"\",'1. Ordersheet'!J1472)","v":""},{"$f":"IF('1. Ordersheet'!K1472=\"\",\"\",'1. Ordersheet'!K1472)","v":""},{"$f":"IF('1. Ordersheet'!M1472=\"\",\"\",'1. Ordersheet'!M1472)","v":""},null,null,{"$f":"IF('1. Ordersheet'!AR1472=\"\",\"\",'1. Ordersheet'!AR1472)","v":""},{"$f":"IF('1. Ordersheet'!AE1472=\"\",\"\",'1. Ordersheet'!AE1472)","v":""}]
[{"$f":"IF('1. Ordersheet'!B1473=\"\",\"\",'1. Ordersheet'!B1473)","v":""},{"$f":"IF('1. Ordersheet'!I1473=\"\",\"\",'1. Ordersheet'!I1473)","v":""},{"$f":"IF('1. Ordersheet'!J1473=\"\",\"\",'1. Ordersheet'!J1473)","v":""},{"$f":"IF('1. Ordersheet'!K1473=\"\",\"\",'1. Ordersheet'!K1473)","v":""},{"$f":"IF('1. Ordersheet'!M1473=\"\",\"\",'1. Ordersheet'!M1473)","v":""},null,null,{"$f":"IF('1. Ordersheet'!AR1473=\"\",\"\",'1. Ordersheet'!AR1473)","v":""},{"$f":"IF('1. Ordersheet'!AE1473=\"\",\"\",'1. Ordersheet'!AE1473)","v":""}]
[{"$f":"IF('1. Ordersheet'!B1474=\"\",\"\",'1. Ordersheet'!B1474)","v":""},{"$f":"IF('1. Ordersheet'!I1474=\"\",\"\",'1. Ordersheet'!I1474)","v":""},{"$f":"IF('1. Ordersheet'!J1474=\"\",\"\",'1. Ordersheet'!J1474)","v":""},{"$f":"IF('1. Ordersheet'!K1474=\"\",\"\",'1. Ordersheet'!K1474)","v":""},{"$f":"IF('1. Ordersheet'!M1474=\"\",\"\",'1. Ordersheet'!M1474)","v":""},null,null,{"$f":"IF('1. Ordersheet'!AR1474=\"\",\"\",'1. Ordersheet'!AR1474)","v":""},{"$f":"IF('1. Ordersheet'!AE1474=\"\",\"\",'1. Ordersheet'!AE1474)","v":""}]
[{"$f":"IF('1. Ordersheet'!B1475=\"\",\"\",'1. Ordersheet'!B1475)","v":""},{"$f":"IF('1. Ordersheet'!I1475=\"\",\"\",'1. Ordersheet'!I1475)","v":""},{"$f":"IF('1. Ordersheet'!J1475=\"\",\"\",'1. Ordersheet'!J1475)","v":""},{"$f":"IF('1. Ordersheet'!K1475=\"\",\"\",'1. Ordersheet'!K1475)","v":""},{"$f":"IF('1. Ordersheet'!M1475=\"\",\"\",'1. Ordersheet'!M1475)","v":""},null,null,{"$f":"IF('1. Ordersheet'!AR1475=\"\",\"\",'1. Ordersheet'!AR1475)","v":""},{"$f":"IF('1. Ordersheet'!AE1475=\"\",\"\",'1. Ordersheet'!AE1475)","v":""}]
[{"$f":"IF('1. Ordersheet'!B1476=\"\",\"\",'1. Ordersheet'!B1476)","v":""},{"$f":"IF('1. Ordersheet'!I1476=\"\",\"\",'1. Ordersheet'!I1476)","v":""},{"$f":"IF('1. Ordersheet'!J1476=\"\",\"\",'1. Ordersheet'!J1476)","v":""},{"$f":"IF('1. Ordersheet'!K1476=\"\",\"\",'1. Ordersheet'!K1476)","v":""},{"$f":"IF('1. Ordersheet'!M1476=\"\",\"\",'1. Ordersheet'!M1476)","v":""},null,null,{"$f":"IF('1. Ordersheet'!AR1476=\"\",\"\",'1. Ordersheet'!AR1476)","v":""},{"$f":"IF('1. Ordersheet'!AE1476=\"\",\"\",'1. Ordersheet'!AE1476)","v":""}]
[{"$f":"IF('1. Ordersheet'!B1477=\"\",\"\",'1. Ordersheet'!B1477)","v":""},{"$f":"IF('1. Ordersheet'!I1477=\"\",\"\",'1. Ordersheet'!I1477)","v":""},{"$f":"IF('1. Ordersheet'!J1477=\"\",\"\",'1. Ordersheet'!J1477)","v":""},{"$f":"IF('1. Ordersheet'!K1477=\"\",\"\",'1. Ordersheet'!K1477)","v":""},{"$f":"IF('1. Ordersheet'!M1477=\"\",\"\",'1. Ordersheet'!M1477)","v":""},null,null,{"$f":"IF('1. Ordersheet'!AR1477=\"\",\"\",'1. Ordersheet'!AR1477)","v":""},{"$f":"IF('1. Ordersheet'!AE1477=\"\",\"\",'1. Ordersheet'!AE1477)","v":""}]
[{"$f":"IF('1. Ordersheet'!B1478=\"\",\"\",'1. Ordersheet'!B1478)","v":""},{"$f":"IF('1. Ordersheet'!I1478=\"\",\"\",'1. Ordersheet'!I1478)","v":""},{"$f":"IF('1. Ordersheet'!J1478=\"\",\"\",'1. Ordersheet'!J1478)","v":""},{"$f":"IF('1. Ordersheet'!K1478=\"\",\"\",'1. Ordersheet'!K1478)","v":""},{"$f":"IF('1. Ordersheet'!M1478=\"\",\"\",'1. Ordersheet'!M1478)","v":""},null,null,{"$f":"IF('1. Ordersheet'!AR1478=\"\",\"\",'1. Ordersheet'!AR1478)","v":""},{"$f":"IF('1. Ordersheet'!AE1478=\"\",\"\",'1. Ordersheet'!AE1478)","v":""}]
[{"$f":"IF('1. Ordersheet'!B1479=\"\",\"\",'1. Ordersheet'!B1479)","v":""},{"$f":"IF('1. Ordersheet'!I1479=\"\",\"\",'1. Ordersheet'!I1479)","v":""},{"$f":"IF('1. Ordersheet'!J1479=\"\",\"\",'1. Ordersheet'!J1479)","v":""},{"$f":"IF('1. Ordersheet'!K1479=\"\",\"\",'1. Ordersheet'!K1479)","v":""},{"$f":"IF('1. Ordersheet'!M1479=\"\",\"\",'1. Ordersheet'!M1479)","v":""},null,null,{"$f":"IF('1. Ordersheet'!AR1479=\"\",\"\",'1. Ordersheet'!AR1479)","v":""},{"$f":"IF('1. Ordersheet'!AE1479=\"\",\"\",'1. Ordersheet'!AE1479)","v":""}]
[{"$f":"IF('1. Ordersheet'!B1480=\"\",\"\",'1. Ordersheet'!B1480)","v":""},{"$f":"IF('1. Ordersheet'!I1480=\"\",\"\",'1. Ordersheet'!I1480)","v":""},{"$f":"IF('1. Ordersheet'!J1480=\"\",\"\",'1. Ordersheet'!J1480)","v":""},{"$f":"IF('1. Ordersheet'!K1480=\"\",\"\",'1. Ordersheet'!K1480)","v":""},{"$f":"IF('1. Ordersheet'!M1480=\"\",\"\",'1. Ordersheet'!M1480)","v":""},null,null,{"$f":"IF('1. Ordersheet'!AR1480=\"\",\"\",'1. Ordersheet'!AR1480)","v":""},{"$f":"IF('1. Ordersheet'!AE1480=\"\",\"\",'1. Ordersheet'!AE1480)","v":""}]
[{"$f":"IF('1. Ordersheet'!B1481=\"\",\"\",'1. Ordersheet'!B1481)","v":""},{"$f":"IF('1. Ordersheet'!I1481=\"\",\"\",'1. Ordersheet'!I1481)","v":""},{"$f":"IF('1. Ordersheet'!J1481=\"\",\"\",'1. Ordersheet'!J1481)","v":""},{"$f":"IF('1. Ordersheet'!K1481=\"\",\"\",'1. Ordersheet'!K1481)","v":""},{"$f":"IF('1. Ordersheet'!M1481=\"\",\"\",'1. Ordersheet'!M1481)","v":""},null,null,{"$f":"IF('1. Ordersheet'!AR1481=\"\",\"\",'1. Ordersheet'!AR1481)","v":""},{"$f":"IF('1. Ordersheet'!AE1481=\"\",\"\",'1. Ordersheet'!AE1481)","v":""}]
[{"$f":"IF('1. Ordersheet'!B1482=\"\",\"\",'1. Ordersheet'!B1482)","v":""},{"$f":"IF('1. Ordersheet'!I1482=\"\",\"\",'1. Ordersheet'!I1482)","v":""},{"$f":"IF('1. Ordersheet'!J1482=\"\",\"\",'1. Ordersheet'!J1482)","v":""},{"$f":"IF('1. Ordersheet'!K1482=\"\",\"\",'1. Ordersheet'!K1482)","v":""},{"$f":"IF('1. Ordersheet'!M1482=\"\",\"\",'1. Ordersheet'!M1482)","v":""},null,null,{"$f":"IF('1. Ordersheet'!AR1482=\"\",\"\",'1. Ordersheet'!AR1482)","v":""},{"$f":"IF('1. Ordersheet'!AE1482=\"\",\"\",'1. Ordersheet'!AE1482)","v":""}]
[{"$f":"IF('1. Ordersheet'!B1483=\"\",\"\",'1. Ordersheet'!B1483)","v":""},{"$f":"IF('1. Ordersheet'!I1483=\"\",\"\",'1. Ordersheet'!I1483)","v":""},{"$f":"IF('1. Ordersheet'!J1483=\"\",\"\",'1. Ordersheet'!J1483)","v":""},{"$f":"IF('1. Ordersheet'!K1483=\"\",\"\",'1. Ordersheet'!K1483)","v":""},{"$f":"IF('1. Ordersheet'!M1483=\"\",\"\",'1. Ordersheet'!M1483)","v":""},null,null,{"$f":"IF('1. Ordersheet'!AR1483=\"\",\"\",'1. Ordersheet'!AR1483)","v":""},{"$f":"IF('1. Ordersheet'!AE1483=\"\",\"\",'1. Ordersheet'!AE1483)","v":""}]
[{"$f":"IF('1. Ordersheet'!B1484=\"\",\"\",'1. Ordersheet'!B1484)","v":""},{"$f":"IF('1. Ordersheet'!I1484=\"\",\"\",'1. Ordersheet'!I1484)","v":""},{"$f":"IF('1. Ordersheet'!J1484=\"\",\"\",'1. Ordersheet'!J1484)","v":""},{"$f":"IF('1. Ordersheet'!K1484=\"\",\"\",'1. Ordersheet'!K1484)","v":""},{"$f":"IF('1. Ordersheet'!M1484=\"\",\"\",'1. Ordersheet'!M1484)","v":""},null,null,{"$f":"IF('1. Ordersheet'!AR1484=\"\",\"\",'1. Ordersheet'!AR1484)","v":""},{"$f":"IF('1. Ordersheet'!AE1484=\"\",\"\",'1. Ordersheet'!AE1484)","v":""}]
[{"$f":"IF('1. Ordersheet'!B1485=\"\",\"\",'1. Ordersheet'!B1485)","v":""},{"$f":"IF('1. Ordersheet'!I1485=\"\",\"\",'1. Ordersheet'!I1485)","v":""},{"$f":"IF('1. Ordersheet'!J1485=\"\",\"\",'1. Ordersheet'!J1485)","v":""},{"$f":"IF('1. Ordersheet'!K1485=\"\",\"\",'1. Ordersheet'!K1485)","v":""},{"$f":"IF('1. Ordersheet'!M1485=\"\",\"\",'1. Ordersheet'!M1485)","v":""},null,null,{"$f":"IF('1. Ordersheet'!AR1485=\"\",\"\",'1. Ordersheet'!AR1485)","v":""},{"$f":"IF('1. Ordersheet'!AE1485=\"\",\"\",'1. Ordersheet'!AE1485)","v":""}]
[{"$f":"IF('1. Ordersheet'!B1486=\"\",\"\",'1. Ordersheet'!B1486)","v":""},{"$f":"IF('1. Ordersheet'!I1486=\"\",\"\",'1. Ordersheet'!I1486)","v":""},{"$f":"IF('1. Ordersheet'!J1486=\"\",\"\",'1. Ordersheet'!J1486)","v":""},{"$f":"IF('1. Ordersheet'!K1486=\"\",\"\",'1. Ordersheet'!K1486)","v":""},{"$f":"IF('1. Ordersheet'!M1486=\"\",\"\",'1. Ordersheet'!M1486)","v":""},null,null,{"$f":"IF('1. Ordersheet'!AR1486=\"\",\"\",'1. Ordersheet'!AR1486)","v":""},{"$f":"IF('1. Ordersheet'!AE1486=\"\",\"\",'1. Ordersheet'!AE1486)","v":""}]
[{"$f":"IF('1. Ordersheet'!B1487=\"\",\"\",'1. Ordersheet'!B1487)","v":""},{"$f":"IF('1. Ordersheet'!I1487=\"\",\"\",'1. Ordersheet'!I1487)","v":""},{"$f":"IF('1. Ordersheet'!J1487=\"\",\"\",'1. Ordersheet'!J1487)","v":""},{"$f":"IF('1. Ordersheet'!K1487=\"\",\"\",'1. Ordersheet'!K1487)","v":""},{"$f":"IF('1. Ordersheet'!M1487=\"\",\"\",'1. Ordersheet'!M1487)","v":""},null,null,{"$f":"IF('1. Ordersheet'!AR1487=\"\",\"\",'1. Ordersheet'!AR1487)","v":""},{"$f":"IF('1. Ordersheet'!AE1487=\"\",\"\",'1. Ordersheet'!AE1487)","v":""}]
[{"$f":"IF('1. Ordersheet'!B1488=\"\",\"\",'1. Ordersheet'!B1488)","v":""},{"$f":"IF('1. Ordersheet'!I1488=\"\",\"\",'1. Ordersheet'!I1488)","v":""},{"$f":"IF('1. Ordersheet'!J1488=\"\",\"\",'1. Ordersheet'!J1488)","v":""},{"$f":"IF('1. Ordersheet'!K1488=\"\",\"\",'1. Ordersheet'!K1488)","v":""},{"$f":"IF('1. Ordersheet'!M1488=\"\",\"\",'1. Ordersheet'!M1488)","v":""},null,null,{"$f":"IF('1. Ordersheet'!AR1488=\"\",\"\",'1. Ordersheet'!AR1488)","v":""},{"$f":"IF('1. Ordersheet'!AE1488=\"\",\"\",'1. Ordersheet'!AE1488)","v":""}]
[{"$f":"IF('1. Ordersheet'!B1489=\"\",\"\",'1. Ordersheet'!B1489)","v":""},{"$f":"IF('1. Ordersheet'!I1489=\"\",\"\",'1. Ordersheet'!I1489)","v":""},{"$f":"IF('1. Ordersheet'!J1489=\"\",\"\",'1. Ordersheet'!J1489)","v":""},{"$f":"IF('1. Ordersheet'!K1489=\"\",\"\",'1. Ordersheet'!K1489)","v":""},{"$f":"IF('1. Ordersheet'!M1489=\"\",\"\",'1. Ordersheet'!M1489)","v":""},null,null,{"$f":"IF('1. Ordersheet'!AR1489=\"\",\"\",'1. Ordersheet'!AR1489)","v":""},{"$f":"IF('1. Ordersheet'!AE1489=\"\",\"\",'1. Ordersheet'!AE1489)","v":""}]
[{"$f":"IF('1. Ordersheet'!B1490=\"\",\"\",'1. Ordersheet'!B1490)","v":""},{"$f":"IF('1. Ordersheet'!I1490=\"\",\"\",'1. Ordersheet'!I1490)","v":""},{"$f":"IF('1. Ordersheet'!J1490=\"\",\"\",'1. Ordersheet'!J1490)","v":""},{"$f":"IF('1. Ordersheet'!K1490=\"\",\"\",'1. Ordersheet'!K1490)","v":""},{"$f":"IF('1. Ordersheet'!M1490=\"\",\"\",'1. Ordersheet'!M1490)","v":""},null,null,{"$f":"IF('1. Ordersheet'!AR1490=\"\",\"\",'1. Ordersheet'!AR1490)","v":""},{"$f":"IF('1. Ordersheet'!AE1490=\"\",\"\",'1. Ordersheet'!AE1490)","v":""}]
[{"$f":"IF('1. Ordersheet'!B1491=\"\",\"\",'1. Ordersheet'!B1491)","v":""},{"$f":"IF('1. Ordersheet'!I1491=\"\",\"\",'1. Ordersheet'!I1491)","v":""},{"$f":"IF('1. Ordersheet'!J1491=\"\",\"\",'1. Ordersheet'!J1491)","v":""},{"$f":"IF('1. Ordersheet'!K1491=\"\",\"\",'1. Ordersheet'!K1491)","v":""},{"$f":"IF('1. Ordersheet'!M1491=\"\",\"\",'1. Ordersheet'!M1491)","v":""},null,null,{"$f":"IF('1. Ordersheet'!AR1491=\"\",\"\",'1. Ordersheet'!AR1491)","v":""},{"$f":"IF('1. Ordersheet'!AE1491=\"\",\"\",'1. Ordersheet'!AE1491)","v":""}]
[{"$f":"IF('1. Ordersheet'!B1492=\"\",\"\",'1. Ordersheet'!B1492)","v":""},{"$f":"IF('1. Ordersheet'!I1492=\"\",\"\",'1. Ordersheet'!I1492)","v":""},{"$f":"IF('1. Ordersheet'!J1492=\"\",\"\",'1. Ordersheet'!J1492)","v":""},{"$f":"IF('1. Ordersheet'!K1492=\"\",\"\",'1. Ordersheet'!K1492)","v":""},{"$f":"IF('1. Ordersheet'!M1492=\"\",\"\",'1. Ordersheet'!M1492)","v":""},null,null,{"$f":"IF('1. Ordersheet'!AR1492=\"\",\"\",'1. Ordersheet'!AR1492)","v":""},{"$f":"IF('1. Ordersheet'!AE1492=\"\",\"\",'1. Ordersheet'!AE1492)","v":""}]
[{"$f":"IF('1. Ordersheet'!B1493=\"\",\"\",'1. Ordersheet'!B1493)","v":""},{"$f":"IF('1. Ordersheet'!I1493=\"\",\"\",'1. Ordersheet'!I1493)","v":""},{"$f":"IF('1. Ordersheet'!J1493=\"\",\"\",'1. Ordersheet'!J1493)","v":""},{"$f":"IF('1. Ordersheet'!K1493=\"\",\"\",'1. Ordersheet'!K1493)","v":""},{"$f":"IF('1. Ordersheet'!M1493=\"\",\"\",'1. Ordersheet'!M1493)","v":""},null,null,{"$f":"IF('1. Ordersheet'!AR1493=\"\",\"\",'1. Ordersheet'!AR1493)","v":""},{"$f":"IF('1. Ordersheet'!AE1493=\"\",\"\",'1. Ordersheet'!AE1493)","v":""}]
[{"$f":"IF('1. Ordersheet'!B1494=\"\",\"\",'1. Ordersheet'!B1494)","v":""},{"$f":"IF('1. Ordersheet'!I1494=\"\",\"\",'1. Ordersheet'!I1494)","v":""},{"$f":"IF('1. Ordersheet'!J1494=\"\",\"\",'1. Ordersheet'!J1494)","v":""},{"$f":"IF('1. Ordersheet'!K1494=\"\",\"\",'1. Ordersheet'!K1494)","v":""},{"$f":"IF('1. Ordersheet'!M1494=\"\",\"\",'1. Ordersheet'!M1494)","v":""},null,null,{"$f":"IF('1. Ordersheet'!AR1494=\"\",\"\",'1. Ordersheet'!AR1494)","v":""},{"$f":"IF('1. Ordersheet'!AE1494=\"\",\"\",'1. Ordersheet'!AE1494)","v":""}]
[{"$f":"IF('1. Ordersheet'!B1495=\"\",\"\",'1. Ordersheet'!B1495)","v":""},{"$f":"IF('1. Ordersheet'!I1495=\"\",\"\",'1. Ordersheet'!I1495)","v":""},{"$f":"IF('1. Ordersheet'!J1495=\"\",\"\",'1. Ordersheet'!J1495)","v":""},{"$f":"IF('1. Ordersheet'!K1495=\"\",\"\",'1. Ordersheet'!K1495)","v":""},{"$f":"IF('1. Ordersheet'!M1495=\"\",\"\",'1. Ordersheet'!M1495)","v":""},null,null,{"$f":"IF('1. Ordersheet'!AR1495=\"\",\"\",'1. Ordersheet'!AR1495)","v":""},{"$f":"IF('1. Ordersheet'!AE1495=\"\",\"\",'1. Ordersheet'!AE1495)","v":""}]
[{"$f":"IF('1. Ordersheet'!B1496=\"\",\"\",'1. Ordersheet'!B1496)","v":""},{"$f":"IF('1. Ordersheet'!I1496=\"\",\"\",'1. Ordersheet'!I1496)","v":""},{"$f":"IF('1. Ordersheet'!J1496=\"\",\"\",'1. Ordersheet'!J1496)","v":""},{"$f":"IF('1. Ordersheet'!K1496=\"\",\"\",'1. Ordersheet'!K1496)","v":""},{"$f":"IF('1. Ordersheet'!M1496=\"\",\"\",'1. Ordersheet'!M1496)","v":""},null,null,{"$f":"IF('1. Ordersheet'!AR1496=\"\",\"\",'1. Ordersheet'!AR1496)","v":""},{"$f":"IF('1. Ordersheet'!AE1496=\"\",\"\",'1. Ordersheet'!AE1496)","v":""}]
[{"$f":"IF('1. Ordersheet'!B1497=\"\",\"\",'1. Ordersheet'!B1497)","v":""},{"$f":"IF('1. Ordersheet'!I1497=\"\",\"\",'1. Ordersheet'!I1497)","v":""},{"$f":"IF('1. Ordersheet'!J1497=\"\",\"\",'1. Ordersheet'!J1497)","v":""},{"$f":"IF('1. Ordersheet'!K1497=\"\",\"\",'1. Ordersheet'!K1497)","v":""},{"$f":"IF('1. Ordersheet'!M1497=\"\",\"\",'1. Ordersheet'!M1497)","v":""},null,null,{"$f":"IF('1. Ordersheet'!AR1497=\"\",\"\",'1. Ordersheet'!AR1497)","v":""},{"$f":"IF('1. Ordersheet'!AE1497=\"\",\"\",'1. Ordersheet'!AE1497)","v":""}]
[{"$f":"IF('1. Ordersheet'!B1498=\"\",\"\",'1. Ordersheet'!B1498)","v":""},{"$f":"IF('1. Ordersheet'!I1498=\"\",\"\",'1. Ordersheet'!I1498)","v":""},{"$f":"IF('1. Ordersheet'!J1498=\"\",\"\",'1. Ordersheet'!J1498)","v":""},{"$f":"IF('1. Ordersheet'!K1498=\"\",\"\",'1. Ordersheet'!K1498)","v":""},{"$f":"IF('1. Ordersheet'!M1498=\"\",\"\",'1. Ordersheet'!M1498)","v":""},null,null,{"$f":"IF('1. Ordersheet'!AR1498=\"\",\"\",'1. Ordersheet'!AR1498)","v":""},{"$f":"IF('1. Ordersheet'!AE1498=\"\",\"\",'1. Ordersheet'!AE1498)","v":""}]
[{"$f":"IF('1. Ordersheet'!B1499=\"\",\"\",'1. Ordersheet'!B1499)","v":""},{"$f":"IF('1. Ordersheet'!I1499=\"\",\"\",'1. Ordersheet'!I1499)","v":""},{"$f":"IF('1. Ordersheet'!J1499=\"\",\"\",'1. Ordersheet'!J1499)","v":""},{"$f":"IF('1. Ordersheet'!K1499=\"\",\"\",'1. Ordersheet'!K1499)","v":""},{"$f":"IF('1. Ordersheet'!M1499=\"\",\"\",'1. Ordersheet'!M1499)","v":""},null,null,{"$f":"IF('1. Ordersheet'!AR1499=\"\",\"\",'1. Ordersheet'!AR1499)","v":""},{"$f":"IF('1. Ordersheet'!AE1499=\"\",\"\",'1. Ordersheet'!AE1499)","v":""}]
[{"$f":"IF('1. Ordersheet'!B1500=\"\",\"\",'1. Ordersheet'!B1500)","v":""},{"$f":"IF('1. Ordersheet'!I1500=\"\",\"\",'1. Ordersheet'!I1500)","v":""},{"$f":"IF('1. Ordersheet'!J1500=\"\",\"\",'1. Ordersheet'!J1500)","v":""},{"$f":"IF('1. Ordersheet'!K1500=\"\",\"\",'1. Ordersheet'!K1500)","v":""},{"$f":"IF('1. Ordersheet'!M1500=\"\",\"\",'1. Ordersheet'!M1500)","v":""},null,null,{"$f":"IF('1. Ordersheet'!AR1500=\"\",\"\",'1. Ordersheet'!AR1500)","v":""},{"$f":"IF('1. Ordersheet'!AE1500=\"\",\"\",'1. Ordersheet'!AE1500)","v":""}]
[{"$f":"IF('1. Ordersheet'!B1501=\"\",\"\",'1. Ordersheet'!B1501)","v":""},{"$f":"IF('1. Ordersheet'!I1501=\"\",\"\",'1. Ordersheet'!I1501)","v":""},{"$f":"IF('1. Ordersheet'!J1501=\"\",\"\",'1. Ordersheet'!J1501)","v":""},{"$f":"IF('1. Ordersheet'!K1501=\"\",\"\",'1. Ordersheet'!K1501)","v":""},{"$f":"IF('1. Ordersheet'!M1501=\"\",\"\",'1. Ordersheet'!M1501)","v":""},null,null,{"$f":"IF('1. Ordersheet'!AR1501=\"\",\"\",'1. Ordersheet'!AR1501)","v":""},{"$f":"IF('1. Ordersheet'!AE1501=\"\",\"\",'1. Ordersheet'!AE1501)","v":""}]
[{"$f":"IF('1. Ordersheet'!B1502=\"\",\"\",'1. Ordersheet'!B1502)","v":""},{"$f":"IF('1. Ordersheet'!I1502=\"\",\"\",'1. Ordersheet'!I1502)","v":""},{"$f":"IF('1. Ordersheet'!J1502=\"\",\"\",'1. Ordersheet'!J1502)","v":""},{"$f":"IF('1. Ordersheet'!K1502=\"\",\"\",'1. Ordersheet'!K1502)","v":""},{"$f":"IF('1. Ordersheet'!M1502=\"\",\"\",'1. Ordersheet'!M1502)","v":""},null,null,{"$f":"IF('1. Ordersheet'!AR1502=\"\",\"\",'1. Ordersheet'!AR1502)","v":""},{"$f":"IF('1. Ordersheet'!AE1502=\"\",\"\",'1. Ordersheet'!AE1502)","v":""}]
[{"$f":"IF('1. Ordersheet'!B1503=\"\",\"\",'1. Ordersheet'!B1503)","v":""},{"$f":"IF('1. Ordersheet'!I1503=\"\",\"\",'1. Ordersheet'!I1503)","v":""},{"$f":"IF('1. Ordersheet'!J1503=\"\",\"\",'1. Ordersheet'!J1503)","v":""},{"$f":"IF('1. Ordersheet'!K1503=\"\",\"\",'1. Ordersheet'!K1503)","v":""},{"$f":"IF('1. Ordersheet'!M1503=\"\",\"\",'1. Ordersheet'!M1503)","v":""},null,null,{"$f":"IF('1. Ordersheet'!AR1503=\"\",\"\",'1. Ordersheet'!AR1503)","v":""},{"$f":"IF('1. Ordersheet'!AE1503=\"\",\"\",'1. Ordersheet'!AE1503)","v":""}]
[{"$f":"IF('1. Ordersheet'!B1504=\"\",\"\",'1. Ordersheet'!B1504)","v":""},{"$f":"IF('1. Ordersheet'!I1504=\"\",\"\",'1. Ordersheet'!I1504)","v":""},{"$f":"IF('1. Ordersheet'!J1504=\"\",\"\",'1. Ordersheet'!J1504)","v":""},{"$f":"IF('1. Ordersheet'!K1504=\"\",\"\",'1. Ordersheet'!K1504)","v":""},{"$f":"IF('1. Ordersheet'!M1504=\"\",\"\",'1. Ordersheet'!M1504)","v":""},null,null,{"$f":"IF('1. Ordersheet'!AR1504=\"\",\"\",'1. Ordersheet'!AR1504)","v":""},{"$f":"IF('1. Ordersheet'!AE1504=\"\",\"\",'1. Ordersheet'!AE1504)","v":""}]
[{"$f":"IF('1. Ordersheet'!B1505=\"\",\"\",'1. Ordersheet'!B1505)","v":""},{"$f":"IF('1. Ordersheet'!I1505=\"\",\"\",'1. Ordersheet'!I1505)","v":""},{"$f":"IF('1. Ordersheet'!J1505=\"\",\"\",'1. Ordersheet'!J1505)","v":""},{"$f":"IF('1. Ordersheet'!K1505=\"\",\"\",'1. Ordersheet'!K1505)","v":""},{"$f":"IF('1. Ordersheet'!M1505=\"\",\"\",'1. Ordersheet'!M1505)","v":""},null,null,{"$f":"IF('1. Ordersheet'!AR1505=\"\",\"\",'1. Ordersheet'!AR1505)","v":""},{"$f":"IF('1. Ordersheet'!AE1505=\"\",\"\",'1. Ordersheet'!AE1505)","v":""}]
[{"$f":"IF('1. Ordersheet'!B1506=\"\",\"\",'1. Ordersheet'!B1506)","v":""},{"$f":"IF('1. Ordersheet'!I1506=\"\",\"\",'1. Ordersheet'!I1506)","v":""},{"$f":"IF('1. Ordersheet'!J1506=\"\",\"\",'1. Ordersheet'!J1506)","v":""},{"$f":"IF('1. Ordersheet'!K1506=\"\",\"\",'1. Ordersheet'!K1506)","v":""},{"$f":"IF('1. Ordersheet'!M1506=\"\",\"\",'1. Ordersheet'!M1506)","v":""},null,null,{"$f":"IF('1. Ordersheet'!AR1506=\"\",\"\",'1. Ordersheet'!AR1506)","v":""},{"$f":"IF('1. Ordersheet'!AE1506=\"\",\"\",'1. Ordersheet'!AE1506)","v":""}]
[{"$f":"IF('1. Ordersheet'!B1507=\"\",\"\",'1. Ordersheet'!B1507)","v":""},{"$f":"IF('1. Ordersheet'!I1507=\"\",\"\",'1. Ordersheet'!I1507)","v":""},{"$f":"IF('1. Ordersheet'!J1507=\"\",\"\",'1. Ordersheet'!J1507)","v":""},{"$f":"IF('1. Ordersheet'!K1507=\"\",\"\",'1. Ordersheet'!K1507)","v":""},{"$f":"IF('1. Ordersheet'!M1507=\"\",\"\",'1. Ordersheet'!M1507)","v":""},null,null,{"$f":"IF('1. Ordersheet'!AR1507=\"\",\"\",'1. Ordersheet'!AR1507)","v":""},{"$f":"IF('1. Ordersheet'!AE1507=\"\",\"\",'1. Ordersheet'!AE1507)","v":""}]
[{"$f":"IF('1. Ordersheet'!B1508=\"\",\"\",'1. Ordersheet'!B1508)","v":""},{"$f":"IF('1. Ordersheet'!I1508=\"\",\"\",'1. Ordersheet'!I1508)","v":""},{"$f":"IF('1. Ordersheet'!J1508=\"\",\"\",'1. Ordersheet'!J1508)","v":""},{"$f":"IF('1. Ordersheet'!K1508=\"\",\"\",'1. Ordersheet'!K1508)","v":""},{"$f":"IF('1. Ordersheet'!M1508=\"\",\"\",'1. Ordersheet'!M1508)","v":""},null,null,{"$f":"IF('1. Ordersheet'!AR1508=\"\",\"\",'1. Ordersheet'!AR1508)","v":""},{"$f":"IF('1. Ordersheet'!AE1508=\"\",\"\",'1. Ordersheet'!AE1508)","v":""}]

{"sheet":"2.1 Content (ENG)","index":3,"n_rows":1505,"n_cols":22,"rows_kept":1505,"cut":false,"hidden":false,"merged":[[0,20,0,21],[0,0,0,4],[0,5,0,12],[0,13,0,16],[0,17,0,18]]}
["PRODUCT INFORMATION",null,null,null,null,"GENERAL CONTENT",null,null,null,null,null,null,null,"BIKINI'S",null,null,null,"SWIMSUITS",null,"SWIMMING SHORTS","NIGHTWEAR"]
["Wehkamp article number","Style number","Style name","Purchase colour","EAN/UPC","Filter colour","Colour","Filtermaterial","Material","Print","Closure","Multi: Type of pocket","Softcups","Multi: Type of bikini bottom","Multi: Type of bikni top","Back panty","Waist height (cm)","Multi: Type of swimsuit","Correcting","Multi: Type of swimshorts","Neckline","Sleeve length"]
[{"$f":"IF('1. Ordersheet'!B6=\"\",\"\",'1. Ordersheet'!B6)","v":""},{"$f":"IF('1. Ordersheet'!I6=\"\",\"\",'1. Ordersheet'!I6)","v":""},{"$f":"IF('1. Ordersheet'!J6=\"\",\"\",'1. Ordersheet'!J6)","v":""},{"$f":"IF('1. Ordersheet'!K6=\"\",\"\",'1. Ordersheet'!K6)","v":""},{"$f":"IF('1. Ordersheet'!M6=\"\",\"\",'1. Ordersheet'!M6)","v":""},null,null,{"$f":"'1. Ordersheet'!AR6","v":0},{"$f":"IF('1. Ordersheet'!AE6=\"\",\"\",'1. Ordersheet'!AE6)","v":""}]
[{"$f":"IF('1. Ordersheet'!B7=\"\",\"\",'1. Ordersheet'!B7)","v":""},{"$f":"IF('1. Ordersheet'!I7=\"\",\"\",'1. Ordersheet'!I7)","v":""},{"$f":"IF('1. Ordersheet'!J7=\"\",\"\",'1. Ordersheet'!J7)","v":""},{"$f":"IF('1. Ordersheet'!K7=\"\",\"\",'1. Ordersheet'!K7)","v":""},{"$f":"IF('1. Ordersheet'!M7=\"\",\"\",'1. Ordersheet'!M7)","v":""},null,null,{"$f":"'1. Ordersheet'!AR7","v":0},{"$f":"IF('1. Ordersheet'!AE7=\"\",\"\",'1. Ordersheet'!AE7)","v":""}]
[{"$f":"IF('1. Ordersheet'!B8=\"\",\"\",'1. Ordersheet'!B8)","v":""},{"$f":"IF('1. Ordersheet'!I8=\"\",\"\",'1. Ordersheet'!I8)","v":""},{"$f":"IF('1. Ordersheet'!J8=\"\",\"\",'1. Ordersheet'!J8)","v":""},{"$f":"IF('1. Ordersheet'!K8=\"\",\"\",'1. Ordersheet'!K8)","v":""},{"$f":"IF('1. Ordersheet'!M8=\"\",\"\",'1. Ordersheet'!M8)","v":""},null,null,{"$f":"'1. Ordersheet'!AR8","v":0},{"$f":"IF('1. Ordersheet'!AE8=\"\",\"\",'1. Ordersheet'!AE8)","v":""}]
[{"$f":"IF('1. Ordersheet'!B9=\"\",\"\",'1. Ordersheet'!B9)","v":""},{"$f":"IF('1. Ordersheet'!I9=\"\",\"\",'1. Ordersheet'!I9)","v":""},{"$f":"IF('1. Ordersheet'!J9=\"\",\"\",'1. Ordersheet'!J9)","v":""},{"$f":"IF('1. Ordersheet'!K9=\"\",\"\",'1. Ordersheet'!K9)","v":""},{"$f":"IF('1. Ordersheet'!M9=\"\",\"\",'1. Ordersheet'!M9)","v":""},null,null,{"$f":"'1. Ordersheet'!AR9","v":0},{"$f":"IF('1. Ordersheet'!AE9=\"\",\"\",'1. Ordersheet'!AE9)","v":""}]
[{"$f":"IF('1. Ordersheet'!B10=\"\",\"\",'1. Ordersheet'!B10)","v":""},{"$f":"IF('1. Ordersheet'!I10=\"\",\"\",'1. Ordersheet'!I10)","v":""},{"$f":"IF('1. Ordersheet'!J10=\"\",\"\",'1. Ordersheet'!J10)","v":""},{"$f":"IF('1. Ordersheet'!K10=\"\",\"\",'1. Ordersheet'!K10)","v":""},{"$f":"IF('1. Ordersheet'!M10=\"\",\"\",'1. Ordersheet'!M10)","v":""},null,null,{"$f":"'1. Ordersheet'!AR10","v":0},{"$f":"IF('1. Ordersheet'!AE10=\"\",\"\",'1. Ordersheet'!AE10)","v":""}]
[{"$f":"IF('1. Ordersheet'!B11=\"\",\"\",'1. Ordersheet'!B11)","v":""},{"$f":"IF('1. Ordersheet'!I11=\"\",\"\",'1. Ordersheet'!I11)","v":""},{"$f":"IF('1. Ordersheet'!J11=\"\",\"\",'1. Ordersheet'!J11)","v":""},{"$f":"IF('1. Ordersheet'!K11=\"\",\"\",'1. Ordersheet'!K11)","v":""},{"$f":"IF('1. Ordersheet'!M11=\"\",\"\",'1. Ordersheet'!M11)","v":""},null,null,{"$f":"'1. Ordersheet'!AR11","v":0},{"$f":"IF('1. Ordersheet'!AE11=\"\",\"\",'1. Ordersheet'!AE11)","v":""}]
[{"$f":"IF('1. Ordersheet'!B12=\"\",\"\",'1. Ordersheet'!B12)","v":""},{"$f":"IF('1. Ordersheet'!I12=\"\",\"\",'1. Ordersheet'!I12)","v":""},{"$f":"IF('1. Ordersheet'!J12=\"\",\"\",'1. Ordersheet'!J12)","v":""},{"$f":"IF('1. Ordersheet'!K12=\"\",\"\",'1. Ordersheet'!K12)","v":""},{"$f":"IF('1. Ordersheet'!M12=\"\",\"\",'1. Ordersheet'!M12)","v":""},null,null,{"$f":"'1. Ordersheet'!AR12","v":0},{"$f":"IF('1. Ordersheet'!AE12=\"\",\"\",'1. Ordersheet'!AE12)","v":""}]
[{"$f":"IF('1. Ordersheet'!B13=\"\",\"\",'1. Ordersheet'!B13)","v":""},{"$f":"IF('1. Ordersheet'!I13=\"\",\"\",'1. Ordersheet'!I13)","v":""},{"$f":"IF('1. Ordersheet'!J13=\"\",\"\",'1. Ordersheet'!J13)","v":""},{"$f":"IF('1. Ordersheet'!K13=\"\",\"\",'1. Ordersheet'!K13)","v":""},{"$f":"IF('1. Ordersheet'!M13=\"\",\"\",'1. Ordersheet'!M13)","v":""},null,null,{"$f":"'1. Ordersheet'!AR13","v":0},{"$f":"IF('1. Ordersheet'!AE13=\"\",\"\",'1. Ordersheet'!AE13)","v":""}]
[{"$f":"IF('1. Ordersheet'!B14=\"\",\"\",'1. Ordersheet'!B14)","v":""},{"$f":"IF('1. Ordersheet'!I14=\"\",\"\",'1. Ordersheet'!I14)","v":""},{"$f":"IF('1. Ordersheet'!J14=\"\",\"\",'1. Ordersheet'!J14)","v":""},{"$f":"IF('1. Ordersheet'!K14=\"\",\"\",'1. Ordersheet'!K14)","v":""},{"$f":"IF('1. Ordersheet'!M14=\"\",\"\",'1. Ordersheet'!M14)","v":""},null,null,{"$f":"'1. Ordersheet'!AR14","v":0},{"$f":"IF('1. Ordersheet'!AE14=\"\",\"\",'1. Ordersheet'!AE14)","v":""}]
[{"$f":"IF('1. Ordersheet'!B15=\"\",\"\",'1. Ordersheet'!B15)","v":""},{"$f":"IF('1. Ordersheet'!I15=\"\",\"\",'1. Ordersheet'!I15)","v":""},{"$f":"IF('1. Ordersheet'!J15=\"\",\"\",'1. Ordersheet'!J15)","v":""},{"$f":"IF('1. Ordersheet'!K15=\"\",\"\",'1. Ordersheet'!K15)","v":""},{"$f":"IF('1. Ordersheet'!M15=\"\",\"\",'1. Ordersheet'!M15)","v":""},null,null,{"$f":"'1. Ordersheet'!AR15","v":0},{"$f":"IF('1. Ordersheet'!AE15=\"\",\"\",'1. Ordersheet'!AE15)","v":""}]
[{"$f":"IF('1. Ordersheet'!B16=\"\",\"\",'1. Ordersheet'!B16)","v":""},{"$f":"IF('1. Ordersheet'!I16=\"\",\"\",'1. Ordersheet'!I16)","v":""},{"$f":"IF('1. Ordersheet'!J16=\"\",\"\",'1. Ordersheet'!J16)","v":""},{"$f":"IF('1. Ordersheet'!K16=\"\",\"\",'1. Ordersheet'!K16)","v":""},{"$f":"IF('1. Ordersheet'!M16=\"\",\"\",'1. Ordersheet'!M16)","v":""},null,null,{"$f":"'1. Ordersheet'!AR16","v":0},{"$f":"IF('1. Ordersheet'!AE16=\"\",\"\",'1. Ordersheet'!AE16)","v":""}]
[{"$f":"IF('1. Ordersheet'!B17=\"\",\"\",'1. Ordersheet'!B17)","v":""},{"$f":"IF('1. Ordersheet'!I17=\"\",\"\",'1. Ordersheet'!I17)","v":""},{"$f":"IF('1. Ordersheet'!J17=\"\",\"\",'1. Ordersheet'!J17)","v":""},{"$f":"IF('1. Ordersheet'!K17=\"\",\"\",'1. Ordersheet'!K17)","v":""},{"$f":"IF('1. Ordersheet'!M17=\"\",\"\",'1. Ordersheet'!M17)","v":""},null,null,{"$f":"'1. Ordersheet'!AR17","v":0},{"$f":"IF('1. Ordersheet'!AE17=\"\",\"\",'1. Ordersheet'!AE17)","v":""}]
[{"$f":"IF('1. Ordersheet'!B18=\"\",\"\",'1. Ordersheet'!B18)","v":""},{"$f":"IF('1. Ordersheet'!I18=\"\",\"\",'1. Ordersheet'!I18)","v":""},{"$f":"IF('1. Ordersheet'!J18=\"\",\"\",'1. Ordersheet'!J18)","v":""},{"$f":"IF('1. Ordersheet'!K18=\"\",\"\",'1. Ordersheet'!K18)","v":""},{"$f":"IF('1. Ordersheet'!M18=\"\",\"\",'1. Ordersheet'!M18)","v":""},null,null,{"$f":"'1. Ordersheet'!AR18","v":0},{"$f":"IF('1. Ordersheet'!AE18=\"\",\"\",'1. Ordersheet'!AE18)","v":""}]
[{"$f":"IF('1. Ordersheet'!B19=\"\",\"\",'1. Ordersheet'!B19)","v":""},{"$f":"IF('1. Ordersheet'!I19=\"\",\"\",'1. Ordersheet'!I19)","v":""},{"$f":"IF('1. Ordersheet'!J19=\"\",\"\",'1. Ordersheet'!J19)","v":""},{"$f":"IF('1. Ordersheet'!K19=\"\",\"\",'1. Ordersheet'!K19)","v":""},{"$f":"IF('1. Ordersheet'!M19=\"\",\"\",'1. Ordersheet'!M19)","v":""},null,null,{"$f":"'1. Ordersheet'!AR19","v":0},{"$f":"IF('1. Ordersheet'!AE19=\"\",\"\",'1. Ordersheet'!AE19)","v":""}]
[{"$f":"IF('1. Ordersheet'!B20=\"\",\"\",'1. Ordersheet'!B20)","v":""},{"$f":"IF('1. Ordersheet'!I20=\"\",\"\",'1. Ordersheet'!I20)","v":""},{"$f":"IF('1. Ordersheet'!J20=\"\",\"\",'1. Ordersheet'!J20)","v":""},{"$f":"IF('1. Ordersheet'!K20=\"\",\"\",'1. Ordersheet'!K20)","v":""},{"$f":"IF('1. Ordersheet'!M20=\"\",\"\",'1. Ordersheet'!M20)","v":""},null,null,{"$f":"'1. Ordersheet'!AR20","v":0},{"$f":"IF('1. Ordersheet'!AE20=\"\",\"\",'1. Ordersheet'!AE20)","v":""}]
[{"$f":"IF('1. Ordersheet'!B21=\"\",\"\",'1. Ordersheet'!B21)","v":""},{"$f":"IF('1. Ordersheet'!I21=\"\",\"\",'1. Ordersheet'!I21)","v":""},{"$f":"IF('1. Ordersheet'!J21=\"\",\"\",'1. Ordersheet'!J21)","v":""},{"$f":"IF('1. Ordersheet'!K21=\"\",\"\",'1. Ordersheet'!K21)","v":""},{"$f":"IF('1. Ordersheet'!M21=\"\",\"\",'1. Ordersheet'!M21)","v":""},null,null,{"$f":"'1. Ordersheet'!AR21","v":0},{"$f":"IF('1. Ordersheet'!AE21=\"\",\"\",'1. Ordersheet'!AE21)","v":""}]
[{"$f":"IF('1. Ordersheet'!B22=\"\",\"\",'1. Ordersheet'!B22)","v":""},{"$f":"IF('1. Ordersheet'!I22=\"\",\"\",'1. Ordersheet'!I22)","v":""},{"$f":"IF('1. Ordersheet'!J22=\"\",\"\",'1. Ordersheet'!J22)","v":""},{"$f":"IF('1. Ordersheet'!K22=\"\",\"\",'1. Ordersheet'!K22)","v":""},{"$f":"IF('1. Ordersheet'!M22=\"\",\"\",'1. Ordersheet'!M22)","v":""},null,null,{"$f":"'1. Ordersheet'!AR22","v":0},{"$f":"IF('1. Ordersheet'!AE22=\"\",\"\",'1. Ordersheet'!AE22)","v":""}]
[{"$f":"IF('1. Ordersheet'!B23=\"\",\"\",'1. Ordersheet'!B23)","v":""},{"$f":"IF('1. Ordersheet'!I23=\"\",\"\",'1. Ordersheet'!I23)","v":""},{"$f":"IF('1. Ordersheet'!J23=\"\",\"\",'1. Ordersheet'!J23)","v":""},{"$f":"IF('1. Ordersheet'!K23=\"\",\"\",'1. Ordersheet'!K23)","v":""},{"$f":"IF('1. Ordersheet'!M23=\"\",\"\",'1. Ordersheet'!M23)","v":""},null,null,{"$f":"'1. Ordersheet'!AR23","v":0},{"$f":"IF('1. Ordersheet'!AE23=\"\",\"\",'1. Ordersheet'!AE23)","v":""}]
[{"$f":"IF('1. Ordersheet'!B24=\"\",\"\",'1. Ordersheet'!B24)","v":""},{"$f":"IF('1. Ordersheet'!I24=\"\",\"\",'1. Ordersheet'!I24)","v":""},{"$f":"IF('1. Ordersheet'!J24=\"\",\"\",'1. Ordersheet'!J24)","v":""},{"$f":"IF('1. Ordersheet'!K24=\"\",\"\",'1. Ordersheet'!K24)","v":""},{"$f":"IF('1. Ordersheet'!M24=\"\",\"\",'1. Ordersheet'!M24)","v":""},null,null,{"$f":"'1. Ordersheet'!AR24","v":0},{"$f":"IF('1. Ordersheet'!AE24=\"\",\"\",'1. Ordersheet'!AE24)","v":""}]
[{"$f":"IF('1. Ordersheet'!B25=\"\",\"\",'1. Ordersheet'!B25)","v":""},{"$f":"IF('1. Ordersheet'!I25=\"\",\"\",'1. Ordersheet'!I25)","v":""},{"$f":"IF('1. Ordersheet'!J25=\"\",\"\",'1. Ordersheet'!J25)","v":""},{"$f":"IF('1. Ordersheet'!K25=\"\",\"\",'1. Ordersheet'!K25)","v":""},{"$f":"IF('1. Ordersheet'!M25=\"\",\"\",'1. Ordersheet'!M25)","v":""},null,null,{"$f":"'1. Ordersheet'!AR25","v":0},{"$f":"IF('1. Ordersheet'!AE25=\"\",\"\",'1. Ordersheet'!AE25)","v":""}]
[{"$f":"IF('1. Ordersheet'!B26=\"\",\"\",'1. Ordersheet'!B26)","v":""},{"$f":"IF('1. Ordersheet'!I26=\"\",\"\",'1. Ordersheet'!I26)","v":""},{"$f":"IF('1. Ordersheet'!J26=\"\",\"\",'1. Ordersheet'!J26)","v":""},{"$f":"IF('1. Ordersheet'!K26=\"\",\"\",'1. Ordersheet'!K26)","v":""},{"$f":"IF('1. Ordersheet'!M26=\"\",\"\",'1. Ordersheet'!M26)","v":""},null,null,{"$f":"'1. Ordersheet'!AR26","v":0},{"$f":"IF('1. Ordersheet'!AE26=\"\",\"\",'1. Ordersheet'!AE26)","v":""}]
[{"$f":"IF('1. Ordersheet'!B27=\"\",\"\",'1. Ordersheet'!B27)","v":""},{"$f":"IF('1. Ordersheet'!I27=\"\",\"\",'1. Ordersheet'!I27)","v":""},{"$f":"IF('1. Ordersheet'!J27=\"\",\"\",'1. Ordersheet'!J27)","v":""},{"$f":"IF('1. Ordersheet'!K27=\"\",\"\",'1. Ordersheet'!K27)","v":""},{"$f":"IF('1. Ordersheet'!M27=\"\",\"\",'1. Ordersheet'!M27)","v":""},null,null,{"$f":"'1. Ordersheet'!AR27","v":0},{"$f":"IF('1. Ordersheet'!AE27=\"\",\"\",'1. Ordersheet'!AE27)","v":""}]
[{"$f":"IF('1. Ordersheet'!B28=\"\",\"\",'1. Ordersheet'!B28)","v":""},{"$f":"IF('1. Ordersheet'!I28=\"\",\"\",'1. Ordersheet'!I28)","v":""},{"$f":"IF('1. Ordersheet'!J28=\"\",\"\",'1. Ordersheet'!J28)","v":""},{"$f":"IF('1. Ordersheet'!K28=\"\",\"\",'1. Ordersheet'!K28)","v":""},{"$f":"IF('1. Ordersheet'!M28=\"\",\"\",'1. Ordersheet'!M28)","v":""},null,null,{"$f":"'1. Ordersheet'!AR28","v":0},{"$f":"IF('1. Ordersheet'!AE28=\"\",\"\",'1. Ordersheet'!AE28)","v":""}]
[{"$f":"IF('1. Ordersheet'!B29=\"\",\"\",'1. Ordersheet'!B29)","v":""},{"$f":"IF('1. Ordersheet'!I29=\"\",\"\",'1. Ordersheet'!I29)","v":""},{"$f":"IF('1. Ordersheet'!J29=\"\",\"\",'1. Ordersheet'!J29)","v":""},{"$f":"IF('1. Ordersheet'!K29=\"\",\"\",'1. Ordersheet'!K29)","v":""},{"$f":"IF('1. Ordersheet'!M29=\"\",\"\",'1. Ordersheet'!M29)","v":""},null,null,{"$f":"'1. Ordersheet'!AR29","v":0},{"$f":"IF('1. Ordersheet'!AE29=\"\",\"\",'1. Ordersheet'!AE29)","v":""}]
[{"$f":"IF('1. Ordersheet'!B30=\"\",\"\",'1. Ordersheet'!B30)","v":""},{"$f":"IF('1. Ordersheet'!I30=\"\",\"\",'1. Ordersheet'!I30)","v":""},{"$f":"IF('1. Ordersheet'!J30=\"\",\"\",'1. Ordersheet'!J30)","v":""},{"$f":"IF('1. Ordersheet'!K30=\"\",\"\",'1. Ordersheet'!K30)","v":""},{"$f":"IF('1. Ordersheet'!M30=\"\",\"\",'1. Ordersheet'!M30)","v":""},null,null,{"$f":"'1. Ordersheet'!AR30","v":0},{"$f":"IF('1. Ordersheet'!AE30=\"\",\"\",'1. Ordersheet'!AE30)","v":""}]
[{"$f":"IF('1. Ordersheet'!B31=\"\",\"\",'1. Ordersheet'!B31)","v":""},{"$f":"IF('1. Ordersheet'!I31=\"\",\"\",'1. Ordersheet'!I31)","v":""},{"$f":"IF('1. Ordersheet'!J31=\"\",\"\",'1. Ordersheet'!J31)","v":""},{"$f":"IF('1. Ordersheet'!K31=\"\",\"\",'1. Ordersheet'!K31)","v":""},{"$f":"IF('1. Ordersheet'!M31=\"\",\"\",'1. Ordersheet'!M31)","v":""},null,null,{"$f":"'1. Ordersheet'!AR31","v":0},{"$f":"IF('1. Ordersheet'!AE31=\"\",\"\",'1. Ordersheet'!AE31)","v":""}]
[{"$f":"IF('1. Ordersheet'!B32=\"\",\"\",'1. Ordersheet'!B32)","v":""},{"$f":"IF('1. Ordersheet'!I32=\"\",\"\",'1. Ordersheet'!I32)","v":""},{"$f":"IF('1. Ordersheet'!J32=\"\",\"\",'1. Ordersheet'!J32)","v":""},{"$f":"IF('1. Ordersheet'!K32=\"\",\"\",'1. Ordersheet'!K32)","v":""},{"$f":"IF('1. Ordersheet'!M32=\"\",\"\",'1. Ordersheet'!M32)","v":""},null,null,{"$f":"'1. Ordersheet'!AR32","v":0},{"$f":"IF('1. Ordersheet'!AE32=\"\",\"\",'1. Ordersheet'!AE32)","v":""}]
[{"$f":"IF('1. Ordersheet'!B33=\"\",\"\",'1. Ordersheet'!B33)","v":""},{"$f":"IF('1. Ordersheet'!I33=\"\",\"\",'1. Ordersheet'!I33)","v":""},{"$f":"IF('1. Ordersheet'!J33=\"\",\"\",'1. Ordersheet'!J33)","v":""},{"$f":"IF('1. Ordersheet'!K33=\"\",\"\",'1. Ordersheet'!K33)","v":""},{"$f":"IF('1. Ordersheet'!M33=\"\",\"\",'1. Ordersheet'!M33)","v":""},null,null,{"$f":"'1. Ordersheet'!AR33","v":0},{"$f":"IF('1. Ordersheet'!AE33=\"\",\"\",'1. Ordersheet'!AE33)","v":""}]
[{"$f":"IF('1. Ordersheet'!B34=\"\",\"\",'1. Ordersheet'!B34)","v":""},{"$f":"IF('1. Ordersheet'!I34=\"\",\"\",'1. Ordersheet'!I34)","v":""},{"$f":"IF('1. Ordersheet'!J34=\"\",\"\",'1. Ordersheet'!J34)","v":""},{"$f":"IF('1. Ordersheet'!K34=\"\",\"\",'1. Ordersheet'!K34)","v":""},{"$f":"IF('1. Ordersheet'!M34=\"\",\"\",'1. Ordersheet'!M34)","v":""},null,null,{"$f":"'1. Ordersheet'!AR34","v":0},{"$f":"IF('1. Ordersheet'!AE34=\"\",\"\",'1. Ordersheet'!AE34)","v":""}]
[{"$f":"IF('1. Ordersheet'!B35=\"\",\"\",'1. Ordersheet'!B35)","v":""},{"$f":"IF('1. Ordersheet'!I35=\"\",\"\",'1. Ordersheet'!I35)","v":""},{"$f":"IF('1. Ordersheet'!J35=\"\",\"\",'1. Ordersheet'!J35)","v":""},{"$f":"IF('1. Ordersheet'!K35=\"\",\"\",'1. Ordersheet'!K35)","v":""},{"$f":"IF('1. Ordersheet'!M35=\"\",\"\",'1. Ordersheet'!M35)","v":""},null,null,{"$f":"'1. Ordersheet'!AR35","v":0},{"$f":"IF('1. Ordersheet'!AE35=\"\",\"\",'1. Ordersheet'!AE35)","v":""}]
[{"$f":"IF('1. Ordersheet'!B36=\"\",\"\",'1. Ordersheet'!B36)","v":""},{"$f":"IF('1. Ordersheet'!I36=\"\",\"\",'1. Ordersheet'!I36)","v":""},{"$f":"IF('1. Ordersheet'!J36=\"\",\"\",'1. Ordersheet'!J36)","v":""},{"$f":"IF('1. Ordersheet'!K36=\"\",\"\",'1. Ordersheet'!K36)","v":""},{"$f":"IF('1. Ordersheet'!M36=\"\",\"\",'1. Ordersheet'!M36)","v":""},null,null,{"$f":"'1. Ordersheet'!AR36","v":0},{"$f":"IF('1. Ordersheet'!AE36=\"\",\"\",'1. Ordersheet'!AE36)","v":""}]
[{"$f":"IF('1. Ordersheet'!B37=\"\",\"\",'1. Ordersheet'!B37)","v":""},{"$f":"IF('1. Ordersheet'!I37=\"\",\"\",'1. Ordersheet'!I37)","v":""},{"$f":"IF('1. Ordersheet'!J37=\"\",\"\",'1. Ordersheet'!J37)","v":""},{"$f":"IF('1. Ordersheet'!K37=\"\",\"\",'1. Ordersheet'!K37)","v":""},{"$f":"IF('1. Ordersheet'!M37=\"\",\"\",'1. Ordersheet'!M37)","v":""},null,null,{"$f":"'1. Ordersheet'!AR37","v":0},{"$f":"IF('1. Ordersheet'!AE37=\"\",\"\",'1. Ordersheet'!AE37)","v":""}]
[{"$f":"IF('1. Ordersheet'!B38=\"\",\"\",'1. Ordersheet'!B38)","v":""},{"$f":"IF('1. Ordersheet'!I38=\"\",\"\",'1. Ordersheet'!I38)","v":""},{"$f":"IF('1. Ordersheet'!J38=\"\",\"\",'1. Ordersheet'!J38)","v":""},{"$f":"IF('1. Ordersheet'!K38=\"\",\"\",'1. Ordersheet'!K38)","v":""},{"$f":"IF('1. Ordersheet'!M38=\"\",\"\",'1. Ordersheet'!M38)","v":""},null,null,{"$f":"'1. Ordersheet'!AR38","v":0},{"$f":"IF('1. Ordersheet'!AE38=\"\",\"\",'1. Ordersheet'!AE38)","v":""}]
[{"$f":"IF('1. Ordersheet'!B39=\"\",\"\",'1. Ordersheet'!B39)","v":""},{"$f":"IF('1. Ordersheet'!I39=\"\",\"\",'1. Ordersheet'!I39)","v":""},{"$f":"IF('1. Ordersheet'!J39=\"\",\"\",'1. Ordersheet'!J39)","v":""},{"$f":"IF('1. Ordersheet'!K39=\"\",\"\",'1. Ordersheet'!K39)","v":""},{"$f":"IF('1. Ordersheet'!M39=\"\",\"\",'1. Ordersheet'!M39)","v":""},null,null,{"$f":"'1. Ordersheet'!AR39","v":0},{"$f":"IF('1. Ordersheet'!AE39=\"\",\"\",'1. Ordersheet'!AE39)","v":""}]
[{"$f":"IF('1. Ordersheet'!B40=\"\",\"\",'1. Ordersheet'!B40)","v":""},{"$f":"IF('1. Ordersheet'!I40=\"\",\"\",'1. Ordersheet'!I40)","v":""},{"$f":"IF('1. Ordersheet'!J40=\"\",\"\",'1. Ordersheet'!J40)","v":""},{"$f":"IF('1. Ordersheet'!K40=\"\",\"\",'1. Ordersheet'!K40)","v":""},{"$f":"IF('1. Ordersheet'!M40=\"\",\"\",'1. Ordersheet'!M40)","v":""},null,null,{"$f":"'1. Ordersheet'!AR40","v":0},{"$f":"IF('1. Ordersheet'!AE40=\"\",\"\",'1. Ordersheet'!AE40)","v":""}]
[{"$f":"IF('1. Ordersheet'!B41=\"\",\"\",'1. Ordersheet'!B41)","v":""},{"$f":"IF('1. Ordersheet'!I41=\"\",\"\",'1. Ordersheet'!I41)","v":""},{"$f":"IF('1. Ordersheet'!J41=\"\",\"\",'1. Ordersheet'!J41)","v":""},{"$f":"IF('1. Ordersheet'!K41=\"\",\"\",'1. Ordersheet'!K41)","v":""},{"$f":"IF('1. Ordersheet'!M41=\"\",\"\",'1. Ordersheet'!M41)","v":""},null,null,{"$f":"'1. Ordersheet'!AR41","v":0},{"$f":"IF('1. Ordersheet'!AE41=\"\",\"\",'1. Ordersheet'!AE41)","v":""}]
[{"$f":"IF('1. Ordersheet'!B42=\"\",\"\",'1. Ordersheet'!B42)","v":""},{"$f":"IF('1. Ordersheet'!I42=\"\",\"\",'1. Ordersheet'!I42)","v":""},{"$f":"IF('1. Ordersheet'!J42=\"\",\"\",'1. Ordersheet'!J42)","v":""},{"$f":"IF('1. Ordersheet'!K42=\"\",\"\",'1. Ordersheet'!K42)","v":""},{"$f":"IF('1. Ordersheet'!M42=\"\",\"\",'1. Ordersheet'!M42)","v":""},null,null,{"$f":"'1. Ordersheet'!AR42","v":0},{"$f":"IF('1. Ordersheet'!AE42=\"\",\"\",'1. Ordersheet'!AE42)","v":""}]
[{"$f":"IF('1. Ordersheet'!B43=\"\",\"\",'1. Ordersheet'!B43)","v":""},{"$f":"IF('1. Ordersheet'!I43=\"\",\"\",'1. Ordersheet'!I43)","v":""},{"$f":"IF('1. Ordersheet'!J43=\"\",\"\",'1. Ordersheet'!J43)","v":""},{"$f":"IF('1. Ordersheet'!K43=\"\",\"\",'1. Ordersheet'!K43)","v":""},{"$f":"IF('1. Ordersheet'!M43=\"\",\"\",'1. Ordersheet'!M43)","v":""},null,null,{"$f":"'1. Ordersheet'!AR43","v":0},{"$f":"IF('1. Ordersheet'!AE43=\"\",\"\",'1. Ordersheet'!AE43)","v":""}]
[{"$f":"IF('1. Ordersheet'!B44=\"\",\"\",'1. Ordersheet'!B44)","v":""},{"$f":"IF('1. Ordersheet'!I44=\"\",\"\",'1. Ordersheet'!I44)","v":""},{"$f":"IF('1. Ordersheet'!J44=\"\",\"\",'1. Ordersheet'!J44)","v":""},{"$f":"IF('1. Ordersheet'!K44=\"\",\"\",'1. Ordersheet'!K44)","v":""},{"$f":"IF('1. Ordersheet'!M44=\"\",\"\",'1. Ordersheet'!M44)","v":""},null,null,{"$f":"'1. Ordersheet'!AR44","v":0},{"$f":"IF('1. Ordersheet'!AE44=\"\",\"\",'1. Ordersheet'!AE44)","v":""}]
[{"$f":"IF('1. Ordersheet'!B45=\"\",\"\",'1. Ordersheet'!B45)","v":""},{"$f":"IF('1. Ordersheet'!I45=\"\",\"\",'1. Ordersheet'!I45)","v":""},{"$f":"IF('1. Ordersheet'!J45=\"\",\"\",'1. Ordersheet'!J45)","v":""},{"$f":"IF('1. Ordersheet'!K45=\"\",\"\",'1. Ordersheet'!K45)","v":""},{"$f":"IF('1. Ordersheet'!M45=\"\",\"\",'1. Ordersheet'!M45)","v":""},null,null,{"$f":"'1. Ordersheet'!AR45","v":0},{"$f":"IF('1. Ordersheet'!AE45=\"\",\"\",'1. Ordersheet'!AE45)","v":""}]
[{"$f":"IF('1. Ordersheet'!B46=\"\",\"\",'1. Ordersheet'!B46)","v":""},{"$f":"IF('1. Ordersheet'!I46=\"\",\"\",'1. Ordersheet'!I46)","v":""},{"$f":"IF('1. Ordersheet'!J46=\"\",\"\",'1. Ordersheet'!J46)","v":""},{"$f":"IF('1. Ordersheet'!K46=\"\",\"\",'1. Ordersheet'!K46)","v":""},{"$f":"IF('1. Ordersheet'!M46=\"\",\"\",'1. Ordersheet'!M46)","v":""},null,null,{"$f":"'1. Ordersheet'!AR46","v":0},{"$f":"IF('1. Ordersheet'!AE46=\"\",\"\",'1. Ordersheet'!AE46)","v":""}]
[{"$f":"IF('1. Ordersheet'!B47=\"\",\"\",'1. Ordersheet'!B47)","v":""},{"$f":"IF('1. Ordersheet'!I47=\"\",\"\",'1. Ordersheet'!I47)","v":""},{"$f":"IF('1. Ordersheet'!J47=\"\",\"\",'1. Ordersheet'!J47)","v":""},{"$f":"IF('1. Ordersheet'!K47=\"\",\"\",'1. Ordersheet'!K47)","v":""},{"$f":"IF('1. Ordersheet'!M47=\"\",\"\",'1. Ordersheet'!M47)","v":""},null,null,{"$f":"'1. Ordersheet'!AR47","v":0},{"$f":"IF('1. Ordersheet'!AE47=\"\",\"\",'1. Ordersheet'!AE47)","v":""}]
[{"$f":"IF('1. Ordersheet'!B48=\"\",\"\",'1. Ordersheet'!B48)","v":""},{"$f":"IF('1. Ordersheet'!I48=\"\",\"\",'1. Ordersheet'!I48)","v":""},{"$f":"IF('1. Ordersheet'!J48=\"\",\"\",'1. Ordersheet'!J48)","v":""},{"$f":"IF('1. Ordersheet'!K48=\"\",\"\",'1. Ordersheet'!K48)","v":""},{"$f":"IF('1. Ordersheet'!M48=\"\",\"\",'1. Ordersheet'!M48)","v":""},null,null,{"$f":"'1. Ordersheet'!AR48","v":0},{"$f":"IF('1. Ordersheet'!AE48=\"\",\"\",'1. Ordersheet'!AE48)","v":""}]
[{"$f":"IF('1. Ordersheet'!B49=\"\",\"\",'1. Ordersheet'!B49)","v":""},{"$f":"IF('1. Ordersheet'!I49=\"\",\"\",'1. Ordersheet'!I49)","v":""},{"$f":"IF('1. Ordersheet'!J49=\"\",\"\",'1. Ordersheet'!J49)","v":""},{"$f":"IF('1. Ordersheet'!K49=\"\",\"\",'1. Ordersheet'!K49)","v":""},{"$f":"IF('1. Ordersheet'!M49=\"\",\"\",'1. Ordersheet'!M49)","v":""},null,null,{"$f":"'1. Ordersheet'!AR49","v":0},{"$f":"IF('1. Ordersheet'!AE49=\"\",\"\",'1. Ordersheet'!AE49)","v":""}]
[{"$f":"IF('1. Ordersheet'!B50=\"\",\"\",'1. Ordersheet'!B50)","v":""},{"$f":"IF('1. Ordersheet'!I50=\"\",\"\",'1. Ordersheet'!I50)","v":""},{"$f":"IF('1. Ordersheet'!J50=\"\",\"\",'1. Ordersheet'!J50)","v":""},{"$f":"IF('1. Ordersheet'!K50=\"\",\"\",'1. Ordersheet'!K50)","v":""},{"$f":"IF('1. Ordersheet'!M50=\"\",\"\",'1. Ordersheet'!M50)","v":""},null,null,{"$f":"'1. Ordersheet'!AR50","v":0},{"$f":"IF('1. Ordersheet'!AE50=\"\",\"\",'1. Ordersheet'!AE50)","v":""}]
[{"$f":"IF('1. Ordersheet'!B51=\"\",\"\",'1. Ordersheet'!B51)","v":""},{"$f":"IF('1. Ordersheet'!I51=\"\",\"\",'1. Ordersheet'!I51)","v":""},{"$f":"IF('1. Ordersheet'!J51=\"\",\"\",'1. Ordersheet'!J51)","v":""},{"$f":"IF('1. Ordersheet'!K51=\"\",\"\",'1. Ordersheet'!K51)","v":""},{"$f":"IF('1. Ordersheet'!M51=\"\",\"\",'1. Ordersheet'!M51)","v":""},null,null,{"$f":"'1. Ordersheet'!AR51","v":0},{"$f":"IF('1. Ordersheet'!AE51=\"\",\"\",'1. Ordersheet'!AE51)","v":""}]
[{"$f":"IF('1. Ordersheet'!B52=\"\",\"\",'1. Ordersheet'!B52)","v":""},{"$f":"IF('1. Ordersheet'!I52=\"\",\"\",'1. Ordersheet'!I52)","v":""},{"$f":"IF('1. Ordersheet'!J52=\"\",\"\",'1. Ordersheet'!J52)","v":""},{"$f":"IF('1. Ordersheet'!K52=\"\",\"\",'1. Ordersheet'!K52)","v":""},{"$f":"IF('1. Ordersheet'!M52=\"\",\"\",'1. Ordersheet'!M52)","v":""},null,null,{"$f":"'1. Ordersheet'!AR52","v":0},{"$f":"IF('1. Ordersheet'!AE52=\"\",\"\",'1. Ordersheet'!AE52)","v":""}]
[{"$f":"IF('1. Ordersheet'!B53=\"\",\"\",'1. Ordersheet'!B53)","v":""},{"$f":"IF('1. Ordersheet'!I53=\"\",\"\",'1. Ordersheet'!I53)","v":""},{"$f":"IF('1. Ordersheet'!J53=\"\",\"\",'1. Ordersheet'!J53)","v":""},{"$f":"IF('1. Ordersheet'!K53=\"\",\"\",'1. Ordersheet'!K53)","v":""},{"$f":"IF('1. Ordersheet'!M53=\"\",\"\",'1. Ordersheet'!M53)","v":""},null,null,{"$f":"'1. Ordersheet'!AR53","v":0},{"$f":"IF('1. Ordersheet'!AE53=\"\",\"\",'1. Ordersheet'!AE53)","v":""}]
[{"$f":"IF('1. Ordersheet'!B54=\"\",\"\",'1. Ordersheet'!B54)","v":""},{"$f":"IF('1. Ordersheet'!I54=\"\",\"\",'1. Ordersheet'!I54)","v":""},{"$f":"IF('1. Ordersheet'!J54=\"\",\"\",'1. Ordersheet'!J54)","v":""},{"$f":"IF('1. Ordersheet'!K54=\"\",\"\",'1. Ordersheet'!K54)","v":""},{"$f":"IF('1. Ordersheet'!M54=\"\",\"\",'1. Ordersheet'!M54)","v":""},null,null,{"$f":"'1. Ordersheet'!AR54","v":0},{"$f":"IF('1. Ordersheet'!AE54=\"\",\"\",'1. Ordersheet'!AE54)","v":""}]
[{"$f":"IF('1. Ordersheet'!B55=\"\",\"\",'1. Ordersheet'!B55)","v":""},{"$f":"IF('1. Ordersheet'!I55=\"\",\"\",'1. Ordersheet'!I55)","v":""},{"$f":"IF('1. Ordersheet'!J55=\"\",\"\",'1. Ordersheet'!J55)","v":""},{"$f":"IF('1. Ordersheet'!K55=\"\",\"\",'1. Ordersheet'!K55)","v":""},{"$f":"IF('1. Ordersheet'!M55=\"\",\"\",'1. Ordersheet'!M55)","v":""},null,null,{"$f":"'1. Ordersheet'!AR55","v":0},{"$f":"IF('1. Ordersheet'!AE55=\"\",\"\",'1. Ordersheet'!AE55)","v":""}]
[{"$f":"IF('1. Ordersheet'!B56=\"\",\"\",'1. Ordersheet'!B56)","v":""},{"$f":"IF('1. Ordersheet'!I56=\"\",\"\",'1. Ordersheet'!I56)","v":""},{"$f":"IF('1. Ordersheet'!J56=\"\",\"\",'1. Ordersheet'!J56)","v":""},{"$f":"IF('1. Ordersheet'!K56=\"\",\"\",'1. Ordersheet'!K56)","v":""},{"$f":"IF('1. Ordersheet'!M56=\"\",\"\",'1. Ordersheet'!M56)","v":""},null,null,{"$f":"'1. Ordersheet'!AR56","v":0},{"$f":"IF('1. Ordersheet'!AE56=\"\",\"\",'1. Ordersheet'!AE56)","v":""}]
[{"$f":"IF('1. Ordersheet'!B57=\"\",\"\",'1. Ordersheet'!B57)","v":""},{"$f":"IF('1. Ordersheet'!I57=\"\",\"\",'1. Ordersheet'!I57)","v":""},{"$f":"IF('1. Ordersheet'!J57=\"\",\"\",'1. Ordersheet'!J57)","v":""},{"$f":"IF('1. Ordersheet'!K57=\"\",\"\",'1. Ordersheet'!K57)","v":""},{"$f":"IF('1. Ordersheet'!M57=\"\",\"\",'1. Ordersheet'!M57)","v":""},null,null,{"$f":"'1. Ordersheet'!AR57","v":0},{"$f":"IF('1. Ordersheet'!AE57=\"\",\"\",'1. Ordersheet'!AE57)","v":""}]
[{"$f":"IF('1. Ordersheet'!B58=\"\",\"\",'1. Ordersheet'!B58)","v":""},{"$f":"IF('1. Ordersheet'!I58=\"\",\"\",'1. Ordersheet'!I58)","v":""},{"$f":"IF('1. Ordersheet'!J58=\"\",\"\",'1. Ordersheet'!J58)","v":""},{"$f":"IF('1. Ordersheet'!K58=\"\",\"\",'1. Ordersheet'!K58)","v":""},{"$f":"IF('1. Ordersheet'!M58=\"\",\"\",'1. Ordersheet'!M58)","v":""},null,null,{"$f":"'1. Ordersheet'!AR58","v":0},{"$f":"IF('1. Ordersheet'!AE58=\"\",\"\",'1. Ordersheet'!AE58)","v":""}]
[{"$f":"IF('1. Ordersheet'!B59=\"\",\"\",'1. Ordersheet'!B59)","v":""},{"$f":"IF('1. Ordersheet'!I59=\"\",\"\",'1. Ordersheet'!I59)","v":""},{"$f":"IF('1. Ordersheet'!J59=\"\",\"\",'1. Ordersheet'!J59)","v":""},{"$f":"IF('1. Ordersheet'!K59=\"\",\"\",'1. Ordersheet'!K59)","v":""},{"$f":"IF('1. Ordersheet'!M59=\"\",\"\",'1. Ordersheet'!M59)","v":""},null,null,{"$f":"'1. Ordersheet'!AR59","v":0},{"$f":"IF('1. Ordersheet'!AE59=\"\",\"\",'1. Ordersheet'!AE59)","v":""}]
[{"$f":"IF('1. Ordersheet'!B60=\"\",\"\",'1. Ordersheet'!B60)","v":""},{"$f":"IF('1. Ordersheet'!I60=\"\",\"\",'1. Ordersheet'!I60)","v":""},{"$f":"IF('1. Ordersheet'!J60=\"\",\"\",'1. Ordersheet'!J60)","v":""},{"$f":"IF('1. Ordersheet'!K60=\"\",\"\",'1. Ordersheet'!K60)","v":""},{"$f":"IF('1. Ordersheet'!M60=\"\",\"\",'1. Ordersheet'!M60)","v":""},null,null,{"$f":"'1. Ordersheet'!AR60","v":0},{"$f":"IF('1. Ordersheet'!AE60=\"\",\"\",'1. Ordersheet'!AE60)","v":""}]
[{"$f":"IF('1. Ordersheet'!B61=\"\",\"\",'1. Ordersheet'!B61)","v":""},{"$f":"IF('1. Ordersheet'!I61=\"\",\"\",'1. Ordersheet'!I61)","v":""},{"$f":"IF('1. Ordersheet'!J61=\"\",\"\",'1. Ordersheet'!J61)","v":""},{"$f":"IF('1. Ordersheet'!K61=\"\",\"\",'1. Ordersheet'!K61)","v":""},{"$f":"IF('1. Ordersheet'!M61=\"\",\"\",'1. Ordersheet'!M61)","v":""},null,null,{"$f":"'1. Ordersheet'!AR61","v":0},{"$f":"IF('1. Ordersheet'!AE61=\"\",\"\",'1. Ordersheet'!AE61)","v":""}]
[{"$f":"IF('1. Ordersheet'!B62=\"\",\"\",'1. Ordersheet'!B62)","v":""},{"$f":"IF('1. Ordersheet'!I62=\"\",\"\",'1. Ordersheet'!I62)","v":""},{"$f":"IF('1. Ordersheet'!J62=\"\",\"\",'1. Ordersheet'!J62)","v":""},{"$f":"IF('1. Ordersheet'!K62=\"\",\"\",'1. Ordersheet'!K62)","v":""},{"$f":"IF('1. Ordersheet'!M62=\"\",\"\",'1. Ordersheet'!M62)","v":""},null,null,{"$f":"'1. Ordersheet'!AR62","v":0},{"$f":"IF('1. Ordersheet'!AE62=\"\",\"\",'1. Ordersheet'!AE62)","v":""}]
[{"$f":"IF('1. Ordersheet'!B63=\"\",\"\",'1. Ordersheet'!B63)","v":""},{"$f":"IF('1. Ordersheet'!I63=\"\",\"\",'1. Ordersheet'!I63)","v":""},{"$f":"IF('1. Ordersheet'!J63=\"\",\"\",'1. Ordersheet'!J63)","v":""},{"$f":"IF('1. Ordersheet'!K63=\"\",\"\",'1. Ordersheet'!K63)","v":""},{"$f":"IF('1. Ordersheet'!M63=\"\",\"\",'1. Ordersheet'!M63)","v":""},null,null,{"$f":"'1. Ordersheet'!AR63","v":0},{"$f":"IF('1. Ordersheet'!AE63=\"\",\"\",'1. Ordersheet'!AE63)","v":""}]
[{"$f":"IF('1. Ordersheet'!B64=\"\",\"\",'1. Ordersheet'!B64)","v":""},{"$f":"IF('1. Ordersheet'!I64=\"\",\"\",'1. Ordersheet'!I64)","v":""},{"$f":"IF('1. Ordersheet'!J64=\"\",\"\",'1. Ordersheet'!J64)","v":""},{"$f":"IF('1. Ordersheet'!K64=\"\",\"\",'1. Ordersheet'!K64)","v":""},{"$f":"IF('1. Ordersheet'!M64=\"\",\"\",'1. Ordersheet'!M64)","v":""},null,null,{"$f":"'1. Ordersheet'!AR64","v":0},{"$f":"IF('1. Ordersheet'!AE64=\"\",\"\",'1. Ordersheet'!AE64)","v":""}]
[{"$f":"IF('1. Ordersheet'!B65=\"\",\"\",'1. Ordersheet'!B65)","v":""},{"$f":"IF('1. Ordersheet'!I65=\"\",\"\",'1. Ordersheet'!I65)","v":""},{"$f":"IF('1. Ordersheet'!J65=\"\",\"\",'1. Ordersheet'!J65)","v":""},{"$f":"IF('1. Ordersheet'!K65=\"\",\"\",'1. Ordersheet'!K65)","v":""},{"$f":"IF('1. Ordersheet'!M65=\"\",\"\",'1. Ordersheet'!M65)","v":""},null,null,{"$f":"'1. Ordersheet'!AR65","v":0},{"$f":"IF('1. Ordersheet'!AE65=\"\",\"\",'1. Ordersheet'!AE65)","v":""}]
[{"$f":"IF('1. Ordersheet'!B66=\"\",\"\",'1. Ordersheet'!B66)","v":""},{"$f":"IF('1. Ordersheet'!I66=\"\",\"\",'1. Ordersheet'!I66)","v":""},{"$f":"IF('1. Ordersheet'!J66=\"\",\"\",'1. Ordersheet'!J66)","v":""},{"$f":"IF('1. Ordersheet'!K66=\"\",\"\",'1. Ordersheet'!K66)","v":""},{"$f":"IF('1. Ordersheet'!M66=\"\",\"\",'1. Ordersheet'!M66)","v":""},null,null,{"$f":"'1. Ordersheet'!AR66","v":0},{"$f":"IF('1. Ordersheet'!AE66=\"\",\"\",'1. Ordersheet'!AE66)","v":""}]
[{"$f":"IF('1. Ordersheet'!B67=\"\",\"\",'1. Ordersheet'!B67)","v":""},{"$f":"IF('1. Ordersheet'!I67=\"\",\"\",'1. Ordersheet'!I67)","v":""},{"$f":"IF('1. Ordersheet'!J67=\"\",\"\",'1. Ordersheet'!J67)","v":""},{"$f":"IF('1. Ordersheet'!K67=\"\",\"\",'1. Ordersheet'!K67)","v":""},{"$f":"IF('1. Ordersheet'!M67=\"\",\"\",'1. Ordersheet'!M67)","v":""},null,null,{"$f":"'1. Ordersheet'!AR67","v":0},{"$f":"IF('1. Ordersheet'!AE67=\"\",\"\",'1. Ordersheet'!AE67)","v":""}]
[{"$f":"IF('1. Ordersheet'!B68=\"\",\"\",'1. Ordersheet'!B68)","v":""},{"$f":"IF('1. Ordersheet'!I68=\"\",\"\",'1. Ordersheet'!I68)","v":""},{"$f":"IF('1. Ordersheet'!J68=\"\",\"\",'1. Ordersheet'!J68)","v":""},{"$f":"IF('1. Ordersheet'!K68=\"\",\"\",'1. Ordersheet'!K68)","v":""},{"$f":"IF('1. Ordersheet'!M68=\"\",\"\",'1. Ordersheet'!M68)","v":""},null,null,{"$f":"'1. Ordersheet'!AR68","v":0},{"$f":"IF('1. Ordersheet'!AE68=\"\",\"\",'1. Ordersheet'!AE68)","v":""}]
[{"$f":"IF('1. Ordersheet'!B69=\"\",\"\",'1. Ordersheet'!B69)","v":""},{"$f":"IF('1. Ordersheet'!I69=\"\",\"\",'1. Ordersheet'!I69)","v":""},{"$f":"IF('1. Ordersheet'!J69=\"\",\"\",'1. Ordersheet'!J69)","v":""},{"$f":"IF('1. Ordersheet'!K69=\"\",\"\",'1. Ordersheet'!K69)","v":""},{"$f":"IF('1. Ordersheet'!M69=\"\",\"\",'1. Ordersheet'!M69)","v":""},null,null,{"$f":"'1. Ordersheet'!AR69","v":0},{"$f":"IF('1. Ordersheet'!AE69=\"\",\"\",'1. Ordersheet'!AE69)","v":""}]
[{"$f":"IF('1. Ordersheet'!B70=\"\",\"\",'1. Ordersheet'!B70)","v":""},{"$f":"IF('1. Ordersheet'!I70=\"\",\"\",'1. Ordersheet'!I70)","v":""},{"$f":"IF('1. Ordersheet'!J70=\"\",\"\",'1. Ordersheet'!J70)","v":""},{"$f":"IF('1. Ordersheet'!K70=\"\",\"\",'1. Ordersheet'!K70)","v":""},{"$f":"IF('1. Ordersheet'!M70=\"\",\"\",'1. Ordersheet'!M70)","v":""},null,null,{"$f":"'1. Ordersheet'!AR70","v":0},{"$f":"IF('1. Ordersheet'!AE70=\"\",\"\",'1. Ordersheet'!AE70)","v":""}]
[{"$f":"IF('1. Ordersheet'!B71=\"\",\"\",'1. Ordersheet'!B71)","v":""},{"$f":"IF('1. Ordersheet'!I71=\"\",\"\",'1. Ordersheet'!I71)","v":""},{"$f":"IF('1. Ordersheet'!J71=\"\",\"\",'1. Ordersheet'!J71)","v":""},{"$f":"IF('1. Ordersheet'!K71=\"\",\"\",'1. Ordersheet'!K71)","v":""},{"$f":"IF('1. Ordersheet'!M71=\"\",\"\",'1. Ordersheet'!M71)","v":""},null,null,{"$f":"'1. Ordersheet'!AR71","v":0},{"$f":"IF('1. Ordersheet'!AE71=\"\",\"\",'1. Ordersheet'!AE71)","v":""}]
[{"$f":"IF('1. Ordersheet'!B72=\"\",\"\",'1. Ordersheet'!B72)","v":""},{"$f":"IF('1. Ordersheet'!I72=\"\",\"\",'1. Ordersheet'!I72)","v":""},{"$f":"IF('1. Ordersheet'!J72=\"\",\"\",'1. Ordersheet'!J72)","v":""},{"$f":"IF('1. Ordersheet'!K72=\"\",\"\",'1. Ordersheet'!K72)","v":""},{"$f":"IF('1. Ordersheet'!M72=\"\",\"\",'1. Ordersheet'!M72)","v":""},null,null,{"$f":"'1. Ordersheet'!AR72","v":0},{"$f":"IF('1. Ordersheet'!AE72=\"\",\"\",'1. Ordersheet'!AE72)","v":""}]
[{"$f":"IF('1. Ordersheet'!B73=\"\",\"\",'1. Ordersheet'!B73)","v":""},{"$f":"IF('1. Ordersheet'!I73=\"\",\"\",'1. Ordersheet'!I73)","v":""},{"$f":"IF('1. Ordersheet'!J73=\"\",\"\",'1. Ordersheet'!J73)","v":""},{"$f":"IF('1. Ordersheet'!K73=\"\",\"\",'1. Ordersheet'!K73)","v":""},{"$f":"IF('1. Ordersheet'!M73=\"\",\"\",'1. Ordersheet'!M73)","v":""},null,null,{"$f":"'1. Ordersheet'!AR73","v":0},{"$f":"IF('1. Ordersheet'!AE73=\"\",\"\",'1. Ordersheet'!AE73)","v":""}]
[{"$f":"IF('1. Ordersheet'!B74=\"\",\"\",'1. Ordersheet'!B74)","v":""},{"$f":"IF('1. Ordersheet'!I74=\"\",\"\",'1. Ordersheet'!I74)","v":""},{"$f":"IF('1. Ordersheet'!J74=\"\",\"\",'1. Ordersheet'!J74)","v":""},{"$f":"IF('1. Ordersheet'!K74=\"\",\"\",'1. Ordersheet'!K74)","v":""},{"$f":"IF('1. Ordersheet'!M74=\"\",\"\",'1. Ordersheet'!M74)","v":""},null,null,{"$f":"'1. Ordersheet'!AR74","v":0},{"$f":"IF('1. Ordersheet'!AE74=\"\",\"\",'1. Ordersheet'!AE74)","v":""}]
[{"$f":"IF('1. Ordersheet'!B75=\"\",\"\",'1. Ordersheet'!B75)","v":""},{"$f":"IF('1. Ordersheet'!I75=\"\",\"\",'1. Ordersheet'!I75)","v":""},{"$f":"IF('1. Ordersheet'!J75=\"\",\"\",'1. Ordersheet'!J75)","v":""},{"$f":"IF('1. Ordersheet'!K75=\"\",\"\",'1. Ordersheet'!K75)","v":""},{"$f":"IF('1. Ordersheet'!M75=\"\",\"\",'1. Ordersheet'!M75)","v":""},null,null,{"$f":"'1. Ordersheet'!AR75","v":0},{"$f":"IF('1. Ordersheet'!AE75=\"\",\"\",'1. Ordersheet'!AE75)","v":""}]
[{"$f":"IF('1. Ordersheet'!B76=\"\",\"\",'1. Ordersheet'!B76)","v":""},{"$f":"IF('1. Ordersheet'!I76=\"\",\"\",'1. Ordersheet'!I76)","v":""},{"$f":"IF('1. Ordersheet'!J76=\"\",\"\",'1. Ordersheet'!J76)","v":""},{"$f":"IF('1. Ordersheet'!K76=\"\",\"\",'1. Ordersheet'!K76)","v":""},{"$f":"IF('1. Ordersheet'!M76=\"\",\"\",'1. Ordersheet'!M76)","v":""},null,null,{"$f":"'1. Ordersheet'!AR76","v":0},{"$f":"IF('1. Ordersheet'!AE76=\"\",\"\",'1. Ordersheet'!AE76)","v":""}]
[{"$f":"IF('1. Ordersheet'!B77=\"\",\"\",'1. Ordersheet'!B77)","v":""},{"$f":"IF('1. Ordersheet'!I77=\"\",\"\",'1. Ordersheet'!I77)","v":""},{"$f":"IF('1. Ordersheet'!J77=\"\",\"\",'1. Ordersheet'!J77)","v":""},{"$f":"IF('1. Ordersheet'!K77=\"\",\"\",'1. Ordersheet'!K77)","v":""},{"$f":"IF('1. Ordersheet'!M77=\"\",\"\",'1. Ordersheet'!M77)","v":""},null,null,{"$f":"'1. Ordersheet'!AR77","v":0},{"$f":"IF('1. Ordersheet'!AE77=\"\",\"\",'1. Ordersheet'!AE77)","v":""}]
[{"$f":"IF('1. Ordersheet'!B78=\"\",\"\",'1. Ordersheet'!B78)","v":""},{"$f":"IF('1. Ordersheet'!I78=\"\",\"\",'1. Ordersheet'!I78)","v":""},{"$f":"IF('1. Ordersheet'!J78=\"\",\"\",'1. Ordersheet'!J78)","v":""},{"$f":"IF('1. Ordersheet'!K78=\"\",\"\",'1. Ordersheet'!K78)","v":""},{"$f":"IF('1. Ordersheet'!M78=\"\",\"\",'1. Ordersheet'!M78)","v":""},null,null,{"$f":"'1. Ordersheet'!AR78","v":0},{"$f":"IF('1. Ordersheet'!AE78=\"\",\"\",'1. Ordersheet'!AE78)","v":""}]
[{"$f":"IF('1. Ordersheet'!B79=\"\",\"\",'1. Ordersheet'!B79)","v":""},{"$f":"IF('1. Ordersheet'!I79=\"\",\"\",'1. Ordersheet'!I79)","v":""},{"$f":"IF('1. Ordersheet'!J79=\"\",\"\",'1. Ordersheet'!J79)","v":""},{"$f":"IF('1. Ordersheet'!K79=\"\",\"\",'1. Ordersheet'!K79)","v":""},{"$f":"IF('1. Ordersheet'!M79=\"\",\"\",'1. Ordersheet'!M79)","v":""},null,null,{"$f":"'1. Ordersheet'!AR79","v":0},{"$f":"IF('1. Ordersheet'!AE79=\"\",\"\",'1. Ordersheet'!AE79)","v":""}]
[{"$f":"IF('1. Ordersheet'!B80=\"\",\"\",'1. Ordersheet'!B80)","v":""},{"$f":"IF('1. Ordersheet'!I80=\"\",\"\",'1. Ordersheet'!I80)","v":""},{"$f":"IF('1. Ordersheet'!J80=\"\",\"\",'1. Ordersheet'!J80)","v":""},{"$f":"IF('1. Ordersheet'!K80=\"\",\"\",'1. Ordersheet'!K80)","v":""},{"$f":"IF('1. Ordersheet'!M80=\"\",\"\",'1. Ordersheet'!M80)","v":""},null,null,{"$f":"'1. Ordersheet'!AR80","v":0},{"$f":"IF('1. Ordersheet'!AE80=\"\",\"\",'1. Ordersheet'!AE80)","v":""}]
[{"$f":"IF('1. Ordersheet'!B81=\"\",\"\",'1. Ordersheet'!B81)","v":""},{"$f":"IF('1. Ordersheet'!I81=\"\",\"\",'1. Ordersheet'!I81)","v":""},{"$f":"IF('1. Ordersheet'!J81=\"\",\"\",'1. Ordersheet'!J81)","v":""},{"$f":"IF('1. Ordersheet'!K81=\"\",\"\",'1. Ordersheet'!K81)","v":""},{"$f":"IF('1. Ordersheet'!M81=\"\",\"\",'1. Ordersheet'!M81)","v":""},null,null,{"$f":"'1. Ordersheet'!AR81","v":0},{"$f":"IF('1. Ordersheet'!AE81=\"\",\"\",'1. Ordersheet'!AE81)","v":""}]
[{"$f":"IF('1. Ordersheet'!B82=\"\",\"\",'1. Ordersheet'!B82)","v":""},{"$f":"IF('1. Ordersheet'!I82=\"\",\"\",'1. Ordersheet'!I82)","v":""},{"$f":"IF('1. Ordersheet'!J82=\"\",\"\",'1. Ordersheet'!J82)","v":""},{"$f":"IF('1. Ordersheet'!K82=\"\",\"\",'1. Ordersheet'!K82)","v":""},{"$f":"IF('1. Ordersheet'!M82=\"\",\"\",'1. Ordersheet'!M82)","v":""},null,null,{"$f":"'1. Ordersheet'!AR82","v":0},{"$f":"IF('1. Ordersheet'!AE82=\"\",\"\",'1. Ordersheet'!AE82)","v":""}]
[{"$f":"IF('1. Ordersheet'!B83=\"\",\"\",'1. Ordersheet'!B83)","v":""},{"$f":"IF('1. Ordersheet'!I83=\"\",\"\",'1. Ordersheet'!I83)","v":""},{"$f":"IF('1. Ordersheet'!J83=\"\",\"\",'1. Ordersheet'!J83)","v":""},{"$f":"IF('1. Ordersheet'!K83=\"\",\"\",'1. Ordersheet'!K83)","v":""},{"$f":"IF('1. Ordersheet'!M83=\"\",\"\",'1. Ordersheet'!M83)","v":""},null,null,{"$f":"'1. Ordersheet'!AR83","v":0},{"$f":"IF('1. Ordersheet'!AE83=\"\",\"\",'1. Ordersheet'!AE83)","v":""}]
[{"$f":"IF('1. Ordersheet'!B84=\"\",\"\",'1. Ordersheet'!B84)","v":""},{"$f":"IF('1. Ordersheet'!I84=\"\",\"\",'1. Ordersheet'!I84)","v":""},{"$f":"IF('1. Ordersheet'!J84=\"\",\"\",'1. Ordersheet'!J84)","v":""},{"$f":"IF('1. Ordersheet'!K84=\"\",\"\",'1. Ordersheet'!K84)","v":""},{"$f":"IF('1. Ordersheet'!M84=\"\",\"\",'1. Ordersheet'!M84)","v":""},null,null,{"$f":"'1. Ordersheet'!AR84","v":0},{"$f":"IF('1. Ordersheet'!AE84=\"\",\"\",'1. Ordersheet'!AE84)","v":""}]
[{"$f":"IF('1. Ordersheet'!B85=\"\",\"\",'1. Ordersheet'!B85)","v":""},{"$f":"IF('1. Ordersheet'!I85=\"\",\"\",'1. Ordersheet'!I85)","v":""},{"$f":"IF('1. Ordersheet'!J85=\"\",\"\",'1. Ordersheet'!J85)","v":""},{"$f":"IF('1. Ordersheet'!K85=\"\",\"\",'1. Ordersheet'!K85)","v":""},{"$f":"IF('1. Ordersheet'!M85=\"\",\"\",'1. Ordersheet'!M85)","v":""},null,null,{"$f":"'1. Ordersheet'!AR85","v":0},{"$f":"IF('1. Ordersheet'!AE85=\"\",\"\",'1. Ordersheet'!AE85)","v":""}]
[{"$f":"IF('1. Ordersheet'!B86=\"\",\"\",'1. Ordersheet'!B86)","v":""},{"$f":"IF('1. Ordersheet'!I86=\"\",\"\",'1. Ordersheet'!I86)","v":""},{"$f":"IF('1. Ordersheet'!J86=\"\",\"\",'1. Ordersheet'!J86)","v":""},{"$f":"IF('1. Ordersheet'!K86=\"\",\"\",'1. Ordersheet'!K86)","v":""},{"$f":"IF('1. Ordersheet'!M86=\"\",\"\",'1. Ordersheet'!M86)","v":""},null,null,{"$f":"'1. Ordersheet'!AR86","v":0},{"$f":"IF('1. Ordersheet'!AE86=\"\",\"\",'1. Ordersheet'!AE86)","v":""}]
[{"$f":"IF('1. Ordersheet'!B87=\"\",\"\",'1. Ordersheet'!B87)","v":""},{"$f":"IF('1. Ordersheet'!I87=\"\",\"\",'1. Ordersheet'!I87)","v":""},{"$f":"IF('1. Ordersheet'!J87=\"\",\"\",'1. Ordersheet'!J87)","v":""},{"$f":"IF('1. Ordersheet'!K87=\"\",\"\",'1. Ordersheet'!K87)","v":""},{"$f":"IF('1. Ordersheet'!M87=\"\",\"\",'1. Ordersheet'!M87)","v":""},null,null,{"$f":"'1. Ordersheet'!AR87","v":0},{"$f":"IF('1. Ordersheet'!AE87=\"\",\"\",'1. Ordersheet'!AE87)","v":""}]
[{"$f":"IF('1. Ordersheet'!B88=\"\",\"\",'1. Ordersheet'!B88)","v":""},{"$f":"IF('1. Ordersheet'!I88=\"\",\"\",'1. Ordersheet'!I88)","v":""},{"$f":"IF('1. Ordersheet'!J88=\"\",\"\",'1. Ordersheet'!J88)","v":""},{"$f":"IF('1. Ordersheet'!K88=\"\",\"\",'1. Ordersheet'!K88)","v":""},{"$f":"IF('1. Ordersheet'!M88=\"\",\"\",'1. Ordersheet'!M88)","v":""},null,null,{"$f":"'1. Ordersheet'!AR88","v":0},{"$f":"IF('1. Ordersheet'!AE88=\"\",\"\",'1. Ordersheet'!AE88)","v":""}]
[{"$f":"IF('1. Ordersheet'!B89=\"\",\"\",'1. Ordersheet'!B89)","v":""},{"$f":"IF('1. Ordersheet'!I89=\"\",\"\",'1. Ordersheet'!I89)","v":""},{"$f":"IF('1. Ordersheet'!J89=\"\",\"\",'1. Ordersheet'!J89)","v":""},{"$f":"IF('1. Ordersheet'!K89=\"\",\"\",'1. Ordersheet'!K89)","v":""},{"$f":"IF('1. Ordersheet'!M89=\"\",\"\",'1. Ordersheet'!M89)","v":""},null,null,{"$f":"'1. Ordersheet'!AR89","v":0},{"$f":"IF('1. Ordersheet'!AE89=\"\",\"\",'1. Ordersheet'!AE89)","v":""}]
[{"$f":"IF('1. Ordersheet'!B90=\"\",\"\",'1. Ordersheet'!B90)","v":""},{"$f":"IF('1. Ordersheet'!I90=\"\",\"\",'1. Ordersheet'!I90)","v":""},{"$f":"IF('1. Ordersheet'!J90=\"\",\"\",'1. Ordersheet'!J90)","v":""},{"$f":"IF('1. Ordersheet'!K90=\"\",\"\",'1. Ordersheet'!K90)","v":""},{"$f":"IF('1. Ordersheet'!M90=\"\",\"\",'1. Ordersheet'!M90)","v":""},null,null,{"$f":"'1. Ordersheet'!AR90","v":0},{"$f":"IF('1. Ordersheet'!AE90=\"\",\"\",'1. Ordersheet'!AE90)","v":""}]
[{"$f":"IF('1. Ordersheet'!B91=\"\",\"\",'1. Ordersheet'!B91)","v":""},{"$f":"IF('1. Ordersheet'!I91=\"\",\"\",'1. Ordersheet'!I91)","v":""},{"$f":"IF('1. Ordersheet'!J91=\"\",\"\",'1. Ordersheet'!J91)","v":""},{"$f":"IF('1. Ordersheet'!K91=\"\",\"\",'1. Ordersheet'!K91)","v":""},{"$f":"IF('1. Ordersheet'!M91=\"\",\"\",'1. Ordersheet'!M91)","v":""},null,null,{"$f":"'1. Ordersheet'!AR91","v":0},{"$f":"IF('1. Ordersheet'!AE91=\"\",\"\",'1. Ordersheet'!AE91)","v":""}]
[{"$f":"IF('1. Ordersheet'!B92=\"\",\"\",'1. Ordersheet'!B92)","v":""},{"$f":"IF('1. Ordersheet'!I92=\"\",\"\",'1. Ordersheet'!I92)","v":""},{"$f":"IF('1. Ordersheet'!J92=\"\",\"\",'1. Ordersheet'!J92)","v":""},{"$f":"IF('1. Ordersheet'!K92=\"\",\"\",'1. Ordersheet'!K92)","v":""},{"$f":"IF('1. Ordersheet'!M92=\"\",\"\",'1. Ordersheet'!M92)","v":""},null,null,{"$f":"'1. Ordersheet'!AR92","v":0},{"$f":"IF('1. Ordersheet'!AE92=\"\",\"\",'1. Ordersheet'!AE92)","v":""}]
[{"$f":"IF('1. Ordersheet'!B93=\"\",\"\",'1. Ordersheet'!B93)","v":""},{"$f":"IF('1. Ordersheet'!I93=\"\",\"\",'1. Ordersheet'!I93)","v":""},{"$f":"IF('1. Ordersheet'!J93=\"\",\"\",'1. Ordersheet'!J93)","v":""},{"$f":"IF('1. Ordersheet'!K93=\"\",\"\",'1. Ordersheet'!K93)","v":""},{"$f":"IF('1. Ordersheet'!M93=\"\",\"\",'1. Ordersheet'!M93)","v":""},null,null,{"$f":"'1. Ordersheet'!AR93","v":0},{"$f":"IF('1. Ordersheet'!AE93=\"\",\"\",'1. Ordersheet'!AE93)","v":""}]
[{"$f":"IF('1. Ordersheet'!B94=\"\",\"\",'1. Ordersheet'!B94)","v":""},{"$f":"IF('1. Ordersheet'!I94=\"\",\"\",'1. Ordersheet'!I94)","v":""},{"$f":"IF('1. Ordersheet'!J94=\"\",\"\",'1. Ordersheet'!J94)","v":""},{"$f":"IF('1. Ordersheet'!K94=\"\",\"\",'1. Ordersheet'!K94)","v":""},{"$f":"IF('1. Ordersheet'!M94=\"\",\"\",'1. Ordersheet'!M94)","v":""},null,null,{"$f":"'1. Ordersheet'!AR94","v":0},{"$f":"IF('1. Ordersheet'!AE94=\"\",\"\",'1. Ordersheet'!AE94)","v":""}]
[{"$f":"IF('1. Ordersheet'!B95=\"\",\"\",'1. Ordersheet'!B95)","v":""},{"$f":"IF('1. Ordersheet'!I95=\"\",\"\",'1. Ordersheet'!I95)","v":""},{"$f":"IF('1. Ordersheet'!J95=\"\",\"\",'1. Ordersheet'!J95)","v":""},{"$f":"IF('1. Ordersheet'!K95=\"\",\"\",'1. Ordersheet'!K95)","v":""},{"$f":"IF('1. Ordersheet'!M95=\"\",\"\",'1. Ordersheet'!M95)","v":""},null,null,{"$f":"'1. Ordersheet'!AR95","v":0},{"$f":"IF('1. Ordersheet'!AE95=\"\",\"\",'1. Ordersheet'!AE95)","v":""}]
[{"$f":"IF('1. Ordersheet'!B96=\"\",\"\",'1. Ordersheet'!B96)","v":""},{"$f":"IF('1. Ordersheet'!I96=\"\",\"\",'1. Ordersheet'!I96)","v":""},{"$f":"IF('1. Ordersheet'!J96=\"\",\"\",'1. Ordersheet'!J96)","v":""},{"$f":"IF('1. Ordersheet'!K96=\"\",\"\",'1. Ordersheet'!K96)","v":""},{"$f":"IF('1. Ordersheet'!M96=\"\",\"\",'1. Ordersheet'!M96)","v":""},null,null,{"$f":"'1. Ordersheet'!AR96","v":0},{"$f":"IF('1. Ordersheet'!AE96=\"\",\"\",'1. Ordersheet'!AE96)","v":""}]
[{"$f":"IF('1. Ordersheet'!B97=\"\",\"\",'1. Ordersheet'!B97)","v":""},{"$f":"IF('1. Ordersheet'!I97=\"\",\"\",'1. Ordersheet'!I97)","v":""},{"$f":"IF('1. Ordersheet'!J97=\"\",\"\",'1. Ordersheet'!J97)","v":""},{"$f":"IF('1. Ordersheet'!K97=\"\",\"\",'1. Ordersheet'!K97)","v":""},{"$f":"IF('1. Ordersheet'!M97=\"\",\"\",'1. Ordersheet'!M97)","v":""},null,null,{"$f":"'1. Ordersheet'!AR97","v":0},{"$f":"IF('1. Ordersheet'!AE97=\"\",\"\",'1. Ordersheet'!AE97)","v":""}]
[{"$f":"IF('1. Ordersheet'!B98=\"\",\"\",'1. Ordersheet'!B98)","v":""},{"$f":"IF('1. Ordersheet'!I98=\"\",\"\",'1. Ordersheet'!I98)","v":""},{"$f":"IF('1. Ordersheet'!J98=\"\",\"\",'1. Ordersheet'!J98)","v":""},{"$f":"IF('1. Ordersheet'!K98=\"\",\"\",'1. Ordersheet'!K98)","v":""},{"$f":"IF('1. Ordersheet'!M98=\"\",\"\",'1. Ordersheet'!M98)","v":""},null,null,{"$f":"'1. Ordersheet'!AR98","v":0},{"$f":"IF('1. Ordersheet'!AE98=\"\",\"\",'1. Ordersheet'!AE98)","v":""}]
[{"$f":"IF('1. Ordersheet'!B99=\"\",\"\",'1. Ordersheet'!B99)","v":""},{"$f":"IF('1. Ordersheet'!I99=\"\",\"\",'1. Ordersheet'!I99)","v":""},{"$f":"IF('1. Ordersheet'!J99=\"\",\"\",'1. Ordersheet'!J99)","v":""},{"$f":"IF('1. Ordersheet'!K99=\"\",\"\",'1. Ordersheet'!K99)","v":""},{"$f":"IF('1. Ordersheet'!M99=\"\",\"\",'1. Ordersheet'!M99)","v":""},null,null,{"$f":"'1. Ordersheet'!AR99","v":0},{"$f":"IF('1. Ordersheet'!AE99=\"\",\"\",'1. Ordersheet'!AE99)","v":""}]
[{"$f":"IF('1. Ordersheet'!B100=\"\",\"\",'1. Ordersheet'!B100)","v":""},{"$f":"IF('1. Ordersheet'!I100=\"\",\"\",'1. Ordersheet'!I100)","v":""},{"$f":"IF('1. Ordersheet'!J100=\"\",\"\",'1. Ordersheet'!J100)","v":""},{"$f":"IF('1. Ordersheet'!K100=\"\",\"\",'1. Ordersheet'!K100)","v":""},{"$f":"IF('1. Ordersheet'!M100=\"\",\"\",'1. Ordersheet'!M100)","v":""},null,null,{"$f":"'1. Ordersheet'!AR100","v":0},{"$f":"IF('1. Ordersheet'!AE100=\"\",\"\",'1. Ordersheet'!AE100)","v":""}]
[{"$f":"IF('1. Ordersheet'!B101=\"\",\"\",'1. Ordersheet'!B101)","v":""},{"$f":"IF('1. Ordersheet'!I101=\"\",\"\",'1. Ordersheet'!I101)","v":""},{"$f":"IF('1. Ordersheet'!J101=\"\",\"\",'1. Ordersheet'!J101)","v":""},{"$f":"IF('1. Ordersheet'!K101=\"\",\"\",'1. Ordersheet'!K101)","v":""},{"$f":"IF('1. Ordersheet'!M101=\"\",\"\",'1. Ordersheet'!M101)","v":""},null,null,{"$f":"'1. Ordersheet'!AR101","v":0},{"$f":"IF('1. Ordersheet'!AE101=\"\",\"\",'1. Ordersheet'!AE101)","v":""}]
[{"$f":"IF('1. Ordersheet'!B102=\"\",\"\",'1. Ordersheet'!B102)","v":""},{"$f":"IF('1. Ordersheet'!I102=\"\",\"\",'1. Ordersheet'!I102)","v":""},{"$f":"IF('1. Ordersheet'!J102=\"\",\"\",'1. Ordersheet'!J102)","v":""},{"$f":"IF('1. Ordersheet'!K102=\"\",\"\",'1. Ordersheet'!K102)","v":""},{"$f":"IF('1. Ordersheet'!M102=\"\",\"\",'1. Ordersheet'!M102)","v":""},null,null,{"$f":"'1. Ordersheet'!AR102","v":0},{"$f":"IF('1. Ordersheet'!AE102=\"\",\"\",'1. Ordersheet'!AE102)","v":""}]
[{"$f":"IF('1. Ordersheet'!B103=\"\",\"\",'1. Ordersheet'!B103)","v":""},{"$f":"IF('1. Ordersheet'!I103=\"\",\"\",'1. Ordersheet'!I103)","v":""},{"$f":"IF('1. Ordersheet'!J103=\"\",\"\",'1. Ordersheet'!J103)","v":""},{"$f":"IF('1. Ordersheet'!K103=\"\",\"\",'1. Ordersheet'!K103)","v":""},{"$f":"IF('1. Ordersheet'!M103=\"\",\"\",'1. Ordersheet'!M103)","v":""},null,null,{"$f":"'1. Ordersheet'!AR103","v":0},{"$f":"IF('1. Ordersheet'!AE103=\"\",\"\",'1. Ordersheet'!AE103)","v":""}]
[{"$f":"IF('1. Ordersheet'!B104=\"\",\"\",'1. Ordersheet'!B104)","v":""},{"$f":"IF('1. Ordersheet'!I104=\"\",\"\",'1. Ordersheet'!I104)","v":""},{"$f":"IF('1. Ordersheet'!J104=\"\",\"\",'1. Ordersheet'!J104)","v":""},{"$f":"IF('1. Ordersheet'!K104=\"\",\"\",'1. Ordersheet'!K104)","v":""},{"$f":"IF('1. Ordersheet'!M104=\"\",\"\",'1. Ordersheet'!M104)","v":""},null,null,{"$f":"'1. Ordersheet'!AR104","v":0},{"$f":"IF('1. Ordersheet'!AE104=\"\",\"\",'1. Ordersheet'!AE104)","v":""}]
[{"$f":"IF('1. Ordersheet'!B105=\"\",\"\",'1. Ordersheet'!B105)","v":""},{"$f":"IF('1. Ordersheet'!I105=\"\",\"\",'1. Ordersheet'!I105)","v":""},{"$f":"IF('1. Ordersheet'!J105=\"\",\"\",'1. Ordersheet'!J105)","v":""},{"$f":"IF('1. Ordersheet'!K105=\"\",\"\",'1. Ordersheet'!K105)","v":""},{"$f":"IF('1. Ordersheet'!M105=\"\",\"\",'1. Ordersheet'!M105)","v":""},null,null,{"$f":"'1. Ordersheet'!AR105","v":0},{"$f":"IF('1. Ordersheet'!AE105=\"\",\"\",'1. Ordersheet'!AE105)","v":""}]
[{"$f":"IF('1. Ordersheet'!B106=\"\",\"\",'1. Ordersheet'!B106)","v":""},{"$f":"IF('1. Ordersheet'!I106=\"\",\"\",'1. Ordersheet'!I106)","v":""},{"$f":"IF('1. Ordersheet'!J106=\"\",\"\",'1. Ordersheet'!J106)","v":""},{"$f":"IF('1. Ordersheet'!K106=\"\",\"\",'1. Ordersheet'!K106)","v":""},{"$f":"IF('1. Ordersheet'!M106=\"\",\"\",'1. Ordersheet'!M106)","v":""},null,null,{"$f":"'1. Ordersheet'!AR106","v":0},{"$f":"IF('1. Ordersheet'!AE106=\"\",\"\",'1. Ordersheet'!AE106)","v":""}]
[{"$f":"IF('1. Ordersheet'!B107=\"\",\"\",'1. Ordersheet'!B107)","v":""},{"$f":"IF('1. Ordersheet'!I107=\"\",\"\",'1. Ordersheet'!I107)","v":""},{"$f":"IF('1. Ordersheet'!J107=\"\",\"\",'1. Ordersheet'!J107)","v":""},{"$f":"IF('1. Ordersheet'!K107=\"\",\"\",'1. Ordersheet'!K107)","v":""},{"$f":"IF('1. Ordersheet'!M107=\"\",\"\",'1. Ordersheet'!M107)","v":""},null,null,{"$f":"'1. Ordersheet'!AR107","v":0},{"$f":"IF('1. Ordersheet'!AE107=\"\",\"\",'1. Ordersheet'!AE107)","v":""}]
[{"$f":"IF('1. Ordersheet'!B108=\"\",\"\",'1. Ordersheet'!B108)","v":""},{"$f":"IF('1. Ordersheet'!I108=\"\",\"\",'1. Ordersheet'!I108)","v":""},{"$f":"IF('1. Ordersheet'!J108=\"\",\"\",'1. Ordersheet'!J108)","v":""},{"$f":"IF('1. Ordersheet'!K108=\"\",\"\",'1. Ordersheet'!K108)","v":""},{"$f":"IF('1. Ordersheet'!M108=\"\",\"\",'1. Ordersheet'!M108)","v":""},null,null,{"$f":"'1. Ordersheet'!AR108","v":0},{"$f":"IF('1. Ordersheet'!AE108=\"\",\"\",'1. Ordersheet'!AE108)","v":""}]
[{"$f":"IF('1. Ordersheet'!B109=\"\",\"\",'1. Ordersheet'!B109)","v":""},{"$f":"IF('1. Ordersheet'!I109=\"\",\"\",'1. Ordersheet'!I109)","v":""},{"$f":"IF('1. Ordersheet'!J109=\"\",\"\",'1. Ordersheet'!J109)","v":""},{"$f":"IF('1. Ordersheet'!K109=\"\",\"\",'1. Ordersheet'!K109)","v":""},{"$f":"IF('1. Ordersheet'!M109=\"\",\"\",'1. Ordersheet'!M109)","v":""},null,null,{"$f":"'1. Ordersheet'!AR109","v":0},{"$f":"IF('1. Ordersheet'!AE109=\"\",\"\",'1. Ordersheet'!AE109)","v":""}]
[{"$f":"IF('1. Ordersheet'!B110=\"\",\"\",'1. Ordersheet'!B110)","v":""},{"$f":"IF('1. Ordersheet'!I110=\"\",\"\",'1. Ordersheet'!I110)","v":""},{"$f":"IF('1. Ordersheet'!J110=\"\",\"\",'1. Ordersheet'!J110)","v":""},{"$f":"IF('1. Ordersheet'!K110=\"\",\"\",'1. Ordersheet'!K110)","v":""},{"$f":"IF('1. Ordersheet'!M110=\"\",\"\",'1. Ordersheet'!M110)","v":""},null,null,{"$f":"'1. Ordersheet'!AR110","v":0},{"$f":"IF('1. Ordersheet'!AE110=\"\",\"\",'1. Ordersheet'!AE110)","v":""}]
[{"$f":"IF('1. Ordersheet'!B111=\"\",\"\",'1. Ordersheet'!B111)","v":""},{"$f":"IF('1. Ordersheet'!I111=\"\",\"\",'1. Ordersheet'!I111)","v":""},{"$f":"IF('1. Ordersheet'!J111=\"\",\"\",'1. Ordersheet'!J111)","v":""},{"$f":"IF('1. Ordersheet'!K111=\"\",\"\",'1. Ordersheet'!K111)","v":""},{"$f":"IF('1. Ordersheet'!M111=\"\",\"\",'1. Ordersheet'!M111)","v":""},null,null,{"$f":"'1. Ordersheet'!AR111","v":0},{"$f":"IF('1. Ordersheet'!AE111=\"\",\"\",'1. Ordersheet'!AE111)","v":""}]
[{"$f":"IF('1. Ordersheet'!B112=\"\",\"\",'1. Ordersheet'!B112)","v":""},{"$f":"IF('1. Ordersheet'!I112=\"\",\"\",'1. Ordersheet'!I112)","v":""},{"$f":"IF('1. Ordersheet'!J112=\"\",\"\",'1. Ordersheet'!J112)","v":""},{"$f":"IF('1. Ordersheet'!K112=\"\",\"\",'1. Ordersheet'!K112)","v":""},{"$f":"IF('1. Ordersheet'!M112=\"\",\"\",'1. Ordersheet'!M112)","v":""},null,null,{"$f":"'1. Ordersheet'!AR112","v":0},{"$f":"IF('1. Ordersheet'!AE112=\"\",\"\",'1. Ordersheet'!AE112)","v":""}]
[{"$f":"IF('1. Ordersheet'!B113=\"\",\"\",'1. Ordersheet'!B113)","v":""},{"$f":"IF('1. Ordersheet'!I113=\"\",\"\",'1. Ordersheet'!I113)","v":""},{"$f":"IF('1. Ordersheet'!J113=\"\",\"\",'1. Ordersheet'!J113)","v":""},{"$f":"IF('1. Ordersheet'!K113=\"\",\"\",'1. Ordersheet'!K113)","v":""},{"$f":"IF('1. Ordersheet'!M113=\"\",\"\",'1. Ordersheet'!M113)","v":""},null,null,{"$f":"'1. Ordersheet'!AR113","v":0},{"$f":"IF('1. Ordersheet'!AE113=\"\",\"\",'1. Ordersheet'!AE113)","v":""}]
[{"$f":"IF('1. Ordersheet'!B114=\"\",\"\",'1. Ordersheet'!B114)","v":""},{"$f":"IF('1. Ordersheet'!I114=\"\",\"\",'1. Ordersheet'!I114)","v":""},{"$f":"IF('1. Ordersheet'!J114=\"\",\"\",'1. Ordersheet'!J114)","v":""},{"$f":"IF('1. Ordersheet'!K114=\"\",\"\",'1. Ordersheet'!K114)","v":""},{"$f":"IF('1. Ordersheet'!M114=\"\",\"\",'1. Ordersheet'!M114)","v":""},null,null,{"$f":"'1. Ordersheet'!AR114","v":0},{"$f":"IF('1. Ordersheet'!AE114=\"\",\"\",'1. Ordersheet'!AE114)","v":""}]
[{"$f":"IF('1. Ordersheet'!B115=\"\",\"\",'1. Ordersheet'!B115)","v":""},{"$f":"IF('1. Ordersheet'!I115=\"\",\"\",'1. Ordersheet'!I115)","v":""},{"$f":"IF('1. Ordersheet'!J115=\"\",\"\",'1. Ordersheet'!J115)","v":""},{"$f":"IF('1. Ordersheet'!K115=\"\",\"\",'1. Ordersheet'!K115)","v":""},{"$f":"IF('1. Ordersheet'!M115=\"\",\"\",'1. Ordersheet'!M115)","v":""},null,null,{"$f":"'1. Ordersheet'!AR115","v":0},{"$f":"IF('1. Ordersheet'!AE115=\"\",\"\",'1. Ordersheet'!AE115)","v":""}]
[{"$f":"IF('1. Ordersheet'!B116=\"\",\"\",'1. Ordersheet'!B116)","v":""},{"$f":"IF('1. Ordersheet'!I116=\"\",\"\",'1. Ordersheet'!I116)","v":""},{"$f":"IF('1. Ordersheet'!J116=\"\",\"\",'1. Ordersheet'!J116)","v":""},{"$f":"IF('1. Ordersheet'!K116=\"\",\"\",'1. Ordersheet'!K116)","v":""},{"$f":"IF('1. Ordersheet'!M116=\"\",\"\",'1. Ordersheet'!M116)","v":""},null,null,{"$f":"'1. Ordersheet'!AR116","v":0},{"$f":"IF('1. Ordersheet'!AE116=\"\",\"\",'1. Ordersheet'!AE116)","v":""}]
[{"$f":"IF('1. Ordersheet'!B117=\"\",\"\",'1. Ordersheet'!B117)","v":""},{"$f":"IF('1. Ordersheet'!I117=\"\",\"\",'1. Ordersheet'!I117)","v":""},{"$f":"IF('1. Ordersheet'!J117=\"\",\"\",'1. Ordersheet'!J117)","v":""},{"$f":"IF('1. Ordersheet'!K117=\"\",\"\",'1. Ordersheet'!K117)","v":""},{"$f":"IF('1. Ordersheet'!M117=\"\",\"\",'1. Ordersheet'!M117)","v":""},null,null,{"$f":"'1. Ordersheet'!AR117","v":0},{"$f":"IF('1. Ordersheet'!AE117=\"\",\"\",'1. Ordersheet'!AE117)","v":""}]
[{"$f":"IF('1. Ordersheet'!B118=\"\",\"\",'1. Ordersheet'!B118)","v":""},{"$f":"IF('1. Ordersheet'!I118=\"\",\"\",'1. Ordersheet'!I118)","v":""},{"$f":"IF('1. Ordersheet'!J118=\"\",\"\",'1. Ordersheet'!J118)","v":""},{"$f":"IF('1. Ordersheet'!K118=\"\",\"\",'1. Ordersheet'!K118)","v":""},{"$f":"IF('1. Ordersheet'!M118=\"\",\"\",'1. Ordersheet'!M118)","v":""},null,null,{"$f":"'1. Ordersheet'!AR118","v":0},{"$f":"IF('1. Ordersheet'!AE118=\"\",\"\",'1. Ordersheet'!AE118)","v":""}]
[{"$f":"IF('1. Ordersheet'!B119=\"\",\"\",'1. Ordersheet'!B119)","v":""},{"$f":"IF('1. Ordersheet'!I119=\"\",\"\",'1. Ordersheet'!I119)","v":""},{"$f":"IF('1. Ordersheet'!J119=\"\",\"\",'1. Ordersheet'!J119)","v":""},{"$f":"IF('1. Ordersheet'!K119=\"\",\"\",'1. Ordersheet'!K119)","v":""},{"$f":"IF('1. Ordersheet'!M119=\"\",\"\",'1. Ordersheet'!M119)","v":""},null,null,{"$f":"'1. Ordersheet'!AR119","v":0},{"$f":"IF('1. Ordersheet'!AE119=\"\",\"\",'1. Ordersheet'!AE119)","v":""}]
[{"$f":"IF('1. Ordersheet'!B120=\"\",\"\",'1. Ordersheet'!B120)","v":""},{"$f":"IF('1. Ordersheet'!I120=\"\",\"\",'1. Ordersheet'!I120)","v":""},{"$f":"IF('1. Ordersheet'!J120=\"\",\"\",'1. Ordersheet'!J120)","v":""},{"$f":"IF('1. Ordersheet'!K120=\"\",\"\",'1. Ordersheet'!K120)","v":""},{"$f":"IF('1. Ordersheet'!M120=\"\",\"\",'1. Ordersheet'!M120)","v":""},null,null,{"$f":"'1. Ordersheet'!AR120","v":0},{"$f":"IF('1. Ordersheet'!AE120=\"\",\"\",'1. Ordersheet'!AE120)","v":""}]
[{"$f":"IF('1. Ordersheet'!B121=\"\",\"\",'1. Ordersheet'!B121)","v":""},{"$f":"IF('1. Ordersheet'!I121=\"\",\"\",'1. Ordersheet'!I121)","v":""},{"$f":"IF('1. Ordersheet'!J121=\"\",\"\",'1. Ordersheet'!J121)","v":""},{"$f":"IF('1. Ordersheet'!K121=\"\",\"\",'1. Ordersheet'!K121)","v":""},{"$f":"IF('1. Ordersheet'!M121=\"\",\"\",'1. Ordersheet'!M121)","v":""},null,null,{"$f":"'1. Ordersheet'!AR121","v":0},{"$f":"IF('1. Ordersheet'!AE121=\"\",\"\",'1. Ordersheet'!AE121)","v":""}]
[{"$f":"IF('1. Ordersheet'!B122=\"\",\"\",'1. Ordersheet'!B122)","v":""},{"$f":"IF('1. Ordersheet'!I122=\"\",\"\",'1. Ordersheet'!I122)","v":""},{"$f":"IF('1. Ordersheet'!J122=\"\",\"\",'1. Ordersheet'!J122)","v":""},{"$f":"IF('1. Ordersheet'!K122=\"\",\"\",'1. Ordersheet'!K122)","v":""},{"$f":"IF('1. Ordersheet'!M122=\"\",\"\",'1. Ordersheet'!M122)","v":""},null,null,{"$f":"'1. Ordersheet'!AR122","v":0},{"$f":"IF('1. Ordersheet'!AE122=\"\",\"\",'1. Ordersheet'!AE122)","v":""}]
[{"$f":"IF('1. Ordersheet'!B123=\"\",\"\",'1. Ordersheet'!B123)","v":""},{"$f":"IF('1. Ordersheet'!I123=\"\",\"\",'1. Ordersheet'!I123)","v":""},{"$f":"IF('1. Ordersheet'!J123=\"\",\"\",'1. Ordersheet'!J123)","v":""},{"$f":"IF('1. Ordersheet'!K123=\"\",\"\",'1. Ordersheet'!K123)","v":""},{"$f":"IF('1. Ordersheet'!M123=\"\",\"\",'1. Ordersheet'!M123)","v":""},null,null,{"$f":"'1. Ordersheet'!AR123","v":0},{"$f":"IF('1. Ordersheet'!AE123=\"\",\"\",'1. Ordersheet'!AE123)","v":""}]
[{"$f":"IF('1. Ordersheet'!B124=\"\",\"\",'1. Ordersheet'!B124)","v":""},{"$f":"IF('1. Ordersheet'!I124=\"\",\"\",'1. Ordersheet'!I124)","v":""},{"$f":"IF('1. Ordersheet'!J124=\"\",\"\",'1. Ordersheet'!J124)","v":""},{"$f":"IF('1. Ordersheet'!K124=\"\",\"\",'1. Ordersheet'!K124)","v":""},{"$f":"IF('1. Ordersheet'!M124=\"\",\"\",'1. Ordersheet'!M124)","v":""},null,null,{"$f":"'1. Ordersheet'!AR124","v":0},{"$f":"IF('1. Ordersheet'!AE124=\"\",\"\",'1. Ordersheet'!AE124)","v":""}]
[{"$f":"IF('1. Ordersheet'!B125=\"\",\"\",'1. Ordersheet'!B125)","v":""},{"$f":"IF('1. Ordersheet'!I125=\"\",\"\",'1. Ordersheet'!I125)","v":""},{"$f":"IF('1. Ordersheet'!J125=\"\",\"\",'1. Ordersheet'!J125)","v":""},{"$f":"IF('1. Ordersheet'!K125=\"\",\"\",'1. Ordersheet'!K125)","v":""},{"$f":"IF('1. Ordersheet'!M125=\"\",\"\",'1. Ordersheet'!M125)","v":""},null,null,{"$f":"'1. Ordersheet'!AR125","v":0},{"$f":"IF('1. Ordersheet'!AE125=\"\",\"\",'1. Ordersheet'!AE125)","v":""}]
[{"$f":"IF('1. Ordersheet'!B126=\"\",\"\",'1. Ordersheet'!B126)","v":""},{"$f":"IF('1. Ordersheet'!I126=\"\",\"\",'1. Ordersheet'!I126)","v":""},{"$f":"IF('1. Ordersheet'!J126=\"\",\"\",'1. Ordersheet'!J126)","v":""},{"$f":"IF('1. Ordersheet'!K126=\"\",\"\",'1. Ordersheet'!K126)","v":""},{"$f":"IF('1. Ordersheet'!M126=\"\",\"\",'1. Ordersheet'!M126)","v":""},null,null,{"$f":"'1. Ordersheet'!AR126","v":0},{"$f":"IF('1. Ordersheet'!AE126=\"\",\"\",'1. Ordersheet'!AE126)","v":""}]
[{"$f":"IF('1. Ordersheet'!B127=\"\",\"\",'1. Ordersheet'!B127)","v":""},{"$f":"IF('1. Ordersheet'!I127=\"\",\"\",'1. Ordersheet'!I127)","v":""},{"$f":"IF('1. Ordersheet'!J127=\"\",\"\",'1. Ordersheet'!J127)","v":""},{"$f":"IF('1. Ordersheet'!K127=\"\",\"\",'1. Ordersheet'!K127)","v":""},{"$f":"IF('1. Ordersheet'!M127=\"\",\"\",'1. Ordersheet'!M127)","v":""},null,null,{"$f":"'1. Ordersheet'!AR127","v":0},{"$f":"IF('1. Ordersheet'!AE127=\"\",\"\",'1. Ordersheet'!AE127)","v":""}]
[{"$f":"IF('1. Ordersheet'!B128=\"\",\"\",'1. Ordersheet'!B128)","v":""},{"$f":"IF('1. Ordersheet'!I128=\"\",\"\",'1. Ordersheet'!I128)","v":""},{"$f":"IF('1. Ordersheet'!J128=\"\",\"\",'1. Ordersheet'!J128)","v":""},{"$f":"IF('1. Ordersheet'!K128=\"\",\"\",'1. Ordersheet'!K128)","v":""},{"$f":"IF('1. Ordersheet'!M128=\"\",\"\",'1. Ordersheet'!M128)","v":""},null,null,{"$f":"'1. Ordersheet'!AR128","v":0},{"$f":"IF('1. Ordersheet'!AE128=\"\",\"\",'1. Ordersheet'!AE128)","v":""}]
[{"$f":"IF('1. Ordersheet'!B129=\"\",\"\",'1. Ordersheet'!B129)","v":""},{"$f":"IF('1. Ordersheet'!I129=\"\",\"\",'1. Ordersheet'!I129)","v":""},{"$f":"IF('1. Ordersheet'!J129=\"\",\"\",'1. Ordersheet'!J129)","v":""},{"$f":"IF('1. Ordersheet'!K129=\"\",\"\",'1. Ordersheet'!K129)","v":""},{"$f":"IF('1. Ordersheet'!M129=\"\",\"\",'1. Ordersheet'!M129)","v":""},null,null,{"$f":"'1. Ordersheet'!AR129","v":0},{"$f":"IF('1. Ordersheet'!AE129=\"\",\"\",'1. Ordersheet'!AE129)","v":""}]
[{"$f":"IF('1. Ordersheet'!B130=\"\",\"\",'1. Ordersheet'!B130)","v":""},{"$f":"IF('1. Ordersheet'!I130=\"\",\"\",'1. Ordersheet'!I130)","v":""},{"$f":"IF('1. Ordersheet'!J130=\"\",\"\",'1. Ordersheet'!J130)","v":""},{"$f":"IF('1. Ordersheet'!K130=\"\",\"\",'1. Ordersheet'!K130)","v":""},{"$f":"IF('1. Ordersheet'!M130=\"\",\"\",'1. Ordersheet'!M130)","v":""},null,null,{"$f":"'1. Ordersheet'!AR130","v":0},{"$f":"IF('1. Ordersheet'!AE130=\"\",\"\",'1. Ordersheet'!AE130)","v":""}]
[{"$f":"IF('1. Ordersheet'!B131=\"\",\"\",'1. Ordersheet'!B131)","v":""},{"$f":"IF('1. Ordersheet'!I131=\"\",\"\",'1. Ordersheet'!I131)","v":""},{"$f":"IF('1. Ordersheet'!J131=\"\",\"\",'1. Ordersheet'!J131)","v":""},{"$f":"IF('1. Ordersheet'!K131=\"\",\"\",'1. Ordersheet'!K131)","v":""},{"$f":"IF('1. Ordersheet'!M131=\"\",\"\",'1. Ordersheet'!M131)","v":""},null,null,{"$f":"'1. Ordersheet'!AR131","v":0},{"$f":"IF('1. Ordersheet'!AE131=\"\",\"\",'1. Ordersheet'!AE131)","v":""}]
[{"$f":"IF('1. Ordersheet'!B132=\"\",\"\",'1. Ordersheet'!B132)","v":""},{"$f":"IF('1. Ordersheet'!I132=\"\",\"\",'1. Ordersheet'!I132)","v":""},{"$f":"IF('1. Ordersheet'!J132=\"\",\"\",'1. Ordersheet'!J132)","v":""},{"$f":"IF('1. Ordersheet'!K132=\"\",\"\",'1. Ordersheet'!K132)","v":""},{"$f":"IF('1. Ordersheet'!M132=\"\",\"\",'1. Ordersheet'!M132)","v":""},null,null,{"$f":"'1. Ordersheet'!AR132","v":0},{"$f":"IF('1. Ordersheet'!AE132=\"\",\"\",'1. Ordersheet'!AE132)","v":""}]
[{"$f":"IF('1. Ordersheet'!B133=\"\",\"\",'1. Ordersheet'!B133)","v":""},{"$f":"IF('1. Ordersheet'!I133=\"\",\"\",'1. Ordersheet'!I133)","v":""},{"$f":"IF('1. Ordersheet'!J133=\"\",\"\",'1. Ordersheet'!J133)","v":""},{"$f":"IF('1. Ordersheet'!K133=\"\",\"\",'1. Ordersheet'!K133)","v":""},{"$f":"IF('1. Ordersheet'!M133=\"\",\"\",'1. Ordersheet'!M133)","v":""},null,null,{"$f":"'1. Ordersheet'!AR133","v":0},{"$f":"IF('1. Ordersheet'!AE133=\"\",\"\",'1. Ordersheet'!AE133)","v":""}]
[{"$f":"IF('1. Ordersheet'!B134=\"\",\"\",'1. Ordersheet'!B134)","v":""},{"$f":"IF('1. Ordersheet'!I134=\"\",\"\",'1. Ordersheet'!I134)","v":""},{"$f":"IF('1. Ordersheet'!J134=\"\",\"\",'1. Ordersheet'!J134)","v":""},{"$f":"IF('1. Ordersheet'!K134=\"\",\"\",'1. Ordersheet'!K134)","v":""},{"$f":"IF('1. Ordersheet'!M134=\"\",\"\",'1. Ordersheet'!M134)","v":""},null,null,{"$f":"'1. Ordersheet'!AR134","v":0},{"$f":"IF('1. Ordersheet'!AE134=\"\",\"\",'1. Ordersheet'!AE134)","v":""}]
[{"$f":"IF('1. Ordersheet'!B135=\"\",\"\",'1. Ordersheet'!B135)","v":""},{"$f":"IF('1. Ordersheet'!I135=\"\",\"\",'1. Ordersheet'!I135)","v":""},{"$f":"IF('1. Ordersheet'!J135=\"\",\"\",'1. Ordersheet'!J135)","v":""},{"$f":"IF('1. Ordersheet'!K135=\"\",\"\",'1. Ordersheet'!K135)","v":""},{"$f":"IF('1. Ordersheet'!M135=\"\",\"\",'1. Ordersheet'!M135)","v":""},null,null,{"$f":"'1. Ordersheet'!AR135","v":0},{"$f":"IF('1. Ordersheet'!AE135=\"\",\"\",'1. Ordersheet'!AE135)","v":""}]
[{"$f":"IF('1. Ordersheet'!B136=\"\",\"\",'1. Ordersheet'!B136)","v":""},{"$f":"IF('1. Ordersheet'!I136=\"\",\"\",'1. Ordersheet'!I136)","v":""},{"$f":"IF('1. Ordersheet'!J136=\"\",\"\",'1. Ordersheet'!J136)","v":""},{"$f":"IF('1. Ordersheet'!K136=\"\",\"\",'1. Ordersheet'!K136)","v":""},{"$f":"IF('1. Ordersheet'!M136=\"\",\"\",'1. Ordersheet'!M136)","v":""},null,null,{"$f":"'1. Ordersheet'!AR136","v":0},{"$f":"IF('1. Ordersheet'!AE136=\"\",\"\",'1. Ordersheet'!AE136)","v":""}]
[{"$f":"IF('1. Ordersheet'!B137=\"\",\"\",'1. Ordersheet'!B137)","v":""},{"$f":"IF('1. Ordersheet'!I137=\"\",\"\",'1. Ordersheet'!I137)","v":""},{"$f":"IF('1. Ordersheet'!J137=\"\",\"\",'1. Ordersheet'!J137)","v":""},{"$f":"IF('1. Ordersheet'!K137=\"\",\"\",'1. Ordersheet'!K137)","v":""},{"$f":"IF('1. Ordersheet'!M137=\"\",\"\",'1. Ordersheet'!M137)","v":""},null,null,{"$f":"'1. Ordersheet'!AR137","v":0},{"$f":"IF('1. Ordersheet'!AE137=\"\",\"\",'1. Ordersheet'!AE137)","v":""}]
[{"$f":"IF('1. Ordersheet'!B138=\"\",\"\",'1. Ordersheet'!B138)","v":""},{"$f":"IF('1. Ordersheet'!I138=\"\",\"\",'1. Ordersheet'!I138)","v":""},{"$f":"IF('1. Ordersheet'!J138=\"\",\"\",'1. Ordersheet'!J138)","v":""},{"$f":"IF('1. Ordersheet'!K138=\"\",\"\",'1. Ordersheet'!K138)","v":""},{"$f":"IF('1. Ordersheet'!M138=\"\",\"\",'1. Ordersheet'!M138)","v":""},null,null,{"$f":"'1. Ordersheet'!AR138","v":0},{"$f":"IF('1. Ordersheet'!AE138=\"\",\"\",'1. Ordersheet'!AE138)","v":""}]
[{"$f":"IF('1. Ordersheet'!B139=\"\",\"\",'1. Ordersheet'!B139)","v":""},{"$f":"IF('1. Ordersheet'!I139=\"\",\"\",'1. Ordersheet'!I139)","v":""},{"$f":"IF('1. Ordersheet'!J139=\"\",\"\",'1. Ordersheet'!J139)","v":""},{"$f":"IF('1. Ordersheet'!K139=\"\",\"\",'1. Ordersheet'!K139)","v":""},{"$f":"IF('1. Ordersheet'!M139=\"\",\"\",'1. Ordersheet'!M139)","v":""},null,null,{"$f":"'1. Ordersheet'!AR139","v":0},{"$f":"IF('1. Ordersheet'!AE139=\"\",\"\",'1. Ordersheet'!AE139)","v":""}]
[{"$f":"IF('1. Ordersheet'!B140=\"\",\"\",'1. Ordersheet'!B140)","v":""},{"$f":"IF('1. Ordersheet'!I140=\"\",\"\",'1. Ordersheet'!I140)","v":""},{"$f":"IF('1. Ordersheet'!J140=\"\",\"\",'1. Ordersheet'!J140)","v":""},{"$f":"IF('1. Ordersheet'!K140=\"\",\"\",'1. Ordersheet'!K140)","v":""},{"$f":"IF('1. Ordersheet'!M140=\"\",\"\",'1. Ordersheet'!M140)","v":""},null,null,{"$f":"'1. Ordersheet'!AR140","v":0},{"$f":"IF('1. Ordersheet'!AE140=\"\",\"\",'1. Ordersheet'!AE140)","v":""}]
[{"$f":"IF('1. Ordersheet'!B141=\"\",\"\",'1. Ordersheet'!B141)","v":""},{"$f":"IF('1. Ordersheet'!I141=\"\",\"\",'1. Ordersheet'!I141)","v":""},{"$f":"IF('1. Ordersheet'!J141=\"\",\"\",'1. Ordersheet'!J141)","v":""},{"$f":"IF('1. Ordersheet'!K141=\"\",\"\",'1. Ordersheet'!K141)","v":""},{"$f":"IF('1. Ordersheet'!M141=\"\",\"\",'1. Ordersheet'!M141)","v":""},null,null,{"$f":"'1. Ordersheet'!AR141","v":0},{"$f":"IF('1. Ordersheet'!AE141=\"\",\"\",'1. Ordersheet'!AE141)","v":""}]
[{"$f":"IF('1. Ordersheet'!B142=\"\",\"\",'1. Ordersheet'!B142)","v":""},{"$f":"IF('1. Ordersheet'!I142=\"\",\"\",'1. Ordersheet'!I142)","v":""},{"$f":"IF('1. Ordersheet'!J142=\"\",\"\",'1. Ordersheet'!J142)","v":""},{"$f":"IF('1. Ordersheet'!K142=\"\",\"\",'1. Ordersheet'!K142)","v":""},{"$f":"IF('1. Ordersheet'!M142=\"\",\"\",'1. Ordersheet'!M142)","v":""},null,null,{"$f":"'1. Ordersheet'!AR142","v":0},{"$f":"IF('1. Ordersheet'!AE142=\"\",\"\",'1. Ordersheet'!AE142)","v":""}]
[{"$f":"IF('1. Ordersheet'!B143=\"\",\"\",'1. Ordersheet'!B143)","v":""},{"$f":"IF('1. Ordersheet'!I143=\"\",\"\",'1. Ordersheet'!I143)","v":""},{"$f":"IF('1. Ordersheet'!J143=\"\",\"\",'1. Ordersheet'!J143)","v":""},{"$f":"IF('1. Ordersheet'!K143=\"\",\"\",'1. Ordersheet'!K143)","v":""},{"$f":"IF('1. Ordersheet'!M143=\"\",\"\",'1. Ordersheet'!M143)","v":""},null,null,{"$f":"'1. Ordersheet'!AR143","v":0},{"$f":"IF('1. Ordersheet'!AE143=\"\",\"\",'1. Ordersheet'!AE143)","v":""}]
[{"$f":"IF('1. Ordersheet'!B144=\"\",\"\",'1. Ordersheet'!B144)","v":""},{"$f":"IF('1. Ordersheet'!I144=\"\",\"\",'1. Ordersheet'!I144)","v":""},{"$f":"IF('1. Ordersheet'!J144=\"\",\"\",'1. Ordersheet'!J144)","v":""},{"$f":"IF('1. Ordersheet'!K144=\"\",\"\",'1. Ordersheet'!K144)","v":""},{"$f":"IF('1. Ordersheet'!M144=\"\",\"\",'1. Ordersheet'!M144)","v":""},null,null,{"$f":"'1. Ordersheet'!AR144","v":0},{"$f":"IF('1. Ordersheet'!AE144=\"\",\"\",'1. Ordersheet'!AE144)","v":""}]
[{"$f":"IF('1. Ordersheet'!B145=\"\",\"\",'1. Ordersheet'!B145)","v":""},{"$f":"IF('1. Ordersheet'!I145=\"\",\"\",'1. Ordersheet'!I145)","v":""},{"$f":"IF('1. Ordersheet'!J145=\"\",\"\",'1. Ordersheet'!J145)","v":""},{"$f":"IF('1. Ordersheet'!K145=\"\",\"\",'1. Ordersheet'!K145)","v":""},{"$f":"IF('1. Ordersheet'!M145=\"\",\"\",'1. Ordersheet'!M145)","v":""},null,null,{"$f":"'1. Ordersheet'!AR145","v":0},{"$f":"IF('1. Ordersheet'!AE145=\"\",\"\",'1. Ordersheet'!AE145)","v":""}]
[{"$f":"IF('1. Ordersheet'!B146=\"\",\"\",'1. Ordersheet'!B146)","v":""},{"$f":"IF('1. Ordersheet'!I146=\"\",\"\",'1. Ordersheet'!I146)","v":""},{"$f":"IF('1. Ordersheet'!J146=\"\",\"\",'1. Ordersheet'!J146)","v":""},{"$f":"IF('1. Ordersheet'!K146=\"\",\"\",'1. Ordersheet'!K146)","v":""},{"$f":"IF('1. Ordersheet'!M146=\"\",\"\",'1. Ordersheet'!M146)","v":""},null,null,{"$f":"'1. Ordersheet'!AR146","v":0},{"$f":"IF('1. Ordersheet'!AE146=\"\",\"\",'1. Ordersheet'!AE146)","v":""}]
[{"$f":"IF('1. Ordersheet'!B147=\"\",\"\",'1. Ordersheet'!B147)","v":""},{"$f":"IF('1. Ordersheet'!I147=\"\",\"\",'1. Ordersheet'!I147)","v":""},{"$f":"IF('1. Ordersheet'!J147=\"\",\"\",'1. Ordersheet'!J147)","v":""},{"$f":"IF('1. Ordersheet'!K147=\"\",\"\",'1. Ordersheet'!K147)","v":""},{"$f":"IF('1. Ordersheet'!M147=\"\",\"\",'1. Ordersheet'!M147)","v":""},null,null,{"$f":"'1. Ordersheet'!AR147","v":0},{"$f":"IF('1. Ordersheet'!AE147=\"\",\"\",'1. Ordersheet'!AE147)","v":""}]
[{"$f":"IF('1. Ordersheet'!B148=\"\",\"\",'1. Ordersheet'!B148)","v":""},{"$f":"IF('1. Ordersheet'!I148=\"\",\"\",'1. Ordersheet'!I148)","v":""},{"$f":"IF('1. Ordersheet'!J148=\"\",\"\",'1. Ordersheet'!J148)","v":""},{"$f":"IF('1. Ordersheet'!K148=\"\",\"\",'1. Ordersheet'!K148)","v":""},{"$f":"IF('1. Ordersheet'!M148=\"\",\"\",'1. Ordersheet'!M148)","v":""},null,null,{"$f":"'1. Ordersheet'!AR148","v":0},{"$f":"IF('1. Ordersheet'!AE148=\"\",\"\",'1. Ordersheet'!AE148)","v":""}]
[{"$f":"IF('1. Ordersheet'!B149=\"\",\"\",'1. Ordersheet'!B149)","v":""},{"$f":"IF('1. Ordersheet'!I149=\"\",\"\",'1. Ordersheet'!I149)","v":""},{"$f":"IF('1. Ordersheet'!J149=\"\",\"\",'1. Ordersheet'!J149)","v":""},{"$f":"IF('1. Ordersheet'!K149=\"\",\"\",'1. Ordersheet'!K149)","v":""},{"$f":"IF('1. Ordersheet'!M149=\"\",\"\",'1. Ordersheet'!M149)","v":""},null,null,{"$f":"'1. Ordersheet'!AR149","v":0},{"$f":"IF('1. Ordersheet'!AE149=\"\",\"\",'1. Ordersheet'!AE149)","v":""}]
[{"$f":"IF('1. Ordersheet'!B150=\"\",\"\",'1. Ordersheet'!B150)","v":""},{"$f":"IF('1. Ordersheet'!I150=\"\",\"\",'1. Ordersheet'!I150)","v":""},{"$f":"IF('1. Ordersheet'!J150=\"\",\"\",'1. Ordersheet'!J150)","v":""},{"$f":"IF('1. Ordersheet'!K150=\"\",\"\",'1. Ordersheet'!K150)","v":""},{"$f":"IF('1. Ordersheet'!M150=\"\",\"\",'1. Ordersheet'!M150)","v":""},null,null,{"$f":"'1. Ordersheet'!AR150","v":0},{"$f":"IF('1. Ordersheet'!AE150=\"\",\"\",'1. Ordersheet'!AE150)","v":""}]
[{"$f":"IF('1. Ordersheet'!B151=\"\",\"\",'1. Ordersheet'!B151)","v":""},{"$f":"IF('1. Ordersheet'!I151=\"\",\"\",'1. Ordersheet'!I151)","v":""},{"$f":"IF('1. Ordersheet'!J151=\"\",\"\",'1. Ordersheet'!J151)","v":""},{"$f":"IF('1. Ordersheet'!K151=\"\",\"\",'1. Ordersheet'!K151)","v":""},{"$f":"IF('1. Ordersheet'!M151=\"\",\"\",'1. Ordersheet'!M151)","v":""},null,null,{"$f":"'1. Ordersheet'!AR151","v":0},{"$f":"IF('1. Ordersheet'!AE151=\"\",\"\",'1. Ordersheet'!AE151)","v":""}]
[{"$f":"IF('1. Ordersheet'!B152=\"\",\"\",'1. Ordersheet'!B152)","v":""},{"$f":"IF('1. Ordersheet'!I152=\"\",\"\",'1. Ordersheet'!I152)","v":""},{"$f":"IF('1. Ordersheet'!J152=\"\",\"\",'1. Ordersheet'!J152)","v":""},{"$f":"IF('1. Ordersheet'!K152=\"\",\"\",'1. Ordersheet'!K152)","v":""},{"$f":"IF('1. Ordersheet'!M152=\"\",\"\",'1. Ordersheet'!M152)","v":""},null,null,{"$f":"'1. Ordersheet'!AR152","v":0},{"$f":"IF('1. Ordersheet'!AE152=\"\",\"\",'1. Ordersheet'!AE152)","v":""}]
[{"$f":"IF('1. Ordersheet'!B153=\"\",\"\",'1. Ordersheet'!B153)","v":""},{"$f":"IF('1. Ordersheet'!I153=\"\",\"\",'1. Ordersheet'!I153)","v":""},{"$f":"IF('1. Ordersheet'!J153=\"\",\"\",'1. Ordersheet'!J153)","v":""},{"$f":"IF('1. Ordersheet'!K153=\"\",\"\",'1. Ordersheet'!K153)","v":""},{"$f":"IF('1. Ordersheet'!M153=\"\",\"\",'1. Ordersheet'!M153)","v":""},null,null,{"$f":"'1. Ordersheet'!AR153","v":0},{"$f":"IF('1. Ordersheet'!AE153=\"\",\"\",'1. Ordersheet'!AE153)","v":""}]
[{"$f":"IF('1. Ordersheet'!B154=\"\",\"\",'1. Ordersheet'!B154)","v":""},{"$f":"IF('1. Ordersheet'!I154=\"\",\"\",'1. Ordersheet'!I154)","v":""},{"$f":"IF('1. Ordersheet'!J154=\"\",\"\",'1. Ordersheet'!J154)","v":""},{"$f":"IF('1. Ordersheet'!K154=\"\",\"\",'1. Ordersheet'!K154)","v":""},{"$f":"IF('1. Ordersheet'!M154=\"\",\"\",'1. Ordersheet'!M154)","v":""},null,null,{"$f":"'1. Ordersheet'!AR154","v":0},{"$f":"IF('1. Ordersheet'!AE154=\"\",\"\",'1. Ordersheet'!AE154)","v":""}]
[{"$f":"IF('1. Ordersheet'!B155=\"\",\"\",'1. Ordersheet'!B155)","v":""},{"$f":"IF('1. Ordersheet'!I155=\"\",\"\",'1. Ordersheet'!I155)","v":""},{"$f":"IF('1. Ordersheet'!J155=\"\",\"\",'1. Ordersheet'!J155)","v":""},{"$f":"IF('1. Ordersheet'!K155=\"\",\"\",'1. Ordersheet'!K155)","v":""},{"$f":"IF('1. Ordersheet'!M155=\"\",\"\",'1. Ordersheet'!M155)","v":""},null,null,{"$f":"'1. Ordersheet'!AR155","v":0},{"$f":"IF('1. Ordersheet'!AE155=\"\",\"\",'1. Ordersheet'!AE155)","v":""}]
[{"$f":"IF('1. Ordersheet'!B156=\"\",\"\",'1. Ordersheet'!B156)","v":""},{"$f":"IF('1. Ordersheet'!I156=\"\",\"\",'1. Ordersheet'!I156)","v":""},{"$f":"IF('1. Ordersheet'!J156=\"\",\"\",'1. Ordersheet'!J156)","v":""},{"$f":"IF('1. Ordersheet'!K156=\"\",\"\",'1. Ordersheet'!K156)","v":""},{"$f":"IF('1. Ordersheet'!M156=\"\",\"\",'1. Ordersheet'!M156)","v":""},null,null,{"$f":"'1. Ordersheet'!AR156","v":0},{"$f":"IF('1. Ordersheet'!AE156=\"\",\"\",'1. Ordersheet'!AE156)","v":""}]
[{"$f":"IF('1. Ordersheet'!B157=\"\",\"\",'1. Ordersheet'!B157)","v":""},{"$f":"IF('1. Ordersheet'!I157=\"\",\"\",'1. Ordersheet'!I157)","v":""},{"$f":"IF('1. Ordersheet'!J157=\"\",\"\",'1. Ordersheet'!J157)","v":""},{"$f":"IF('1. Ordersheet'!K157=\"\",\"\",'1. Ordersheet'!K157)","v":""},{"$f":"IF('1. Ordersheet'!M157=\"\",\"\",'1. Ordersheet'!M157)","v":""},null,null,{"$f":"'1. Ordersheet'!AR157","v":0},{"$f":"IF('1. Ordersheet'!AE157=\"\",\"\",'1. Ordersheet'!AE157)","v":""}]
[{"$f":"IF('1. Ordersheet'!B158=\"\",\"\",'1. Ordersheet'!B158)","v":""},{"$f":"IF('1. Ordersheet'!I158=\"\",\"\",'1. Ordersheet'!I158)","v":""},{"$f":"IF('1. Ordersheet'!J158=\"\",\"\",'1. Ordersheet'!J158)","v":""},{"$f":"IF('1. Ordersheet'!K158=\"\",\"\",'1. Ordersheet'!K158)","v":""},{"$f":"IF('1. Ordersheet'!M158=\"\",\"\",'1. Ordersheet'!M158)","v":""},null,null,{"$f":"'1. Ordersheet'!AR158","v":0},{"$f":"IF('1. Ordersheet'!AE158=\"\",\"\",'1. Ordersheet'!AE158)","v":""}]
[{"$f":"IF('1. Ordersheet'!B159=\"\",\"\",'1. Ordersheet'!B159)","v":""},{"$f":"IF('1. Ordersheet'!I159=\"\",\"\",'1. Ordersheet'!I159)","v":""},{"$f":"IF('1. Ordersheet'!J159=\"\",\"\",'1. Ordersheet'!J159)","v":""},{"$f":"IF('1. Ordersheet'!K159=\"\",\"\",'1. Ordersheet'!K159)","v":""},{"$f":"IF('1. Ordersheet'!M159=\"\",\"\",'1. Ordersheet'!M159)","v":""},null,null,{"$f":"'1. Ordersheet'!AR159","v":0},{"$f":"IF('1. Ordersheet'!AE159=\"\",\"\",'1. Ordersheet'!AE159)","v":""}]
[{"$f":"IF('1. Ordersheet'!B160=\"\",\"\",'1. Ordersheet'!B160)","v":""},{"$f":"IF('1. Ordersheet'!I160=\"\",\"\",'1. Ordersheet'!I160)","v":""},{"$f":"IF('1. Ordersheet'!J160=\"\",\"\",'1. Ordersheet'!J160)","v":""},{"$f":"IF('1. Ordersheet'!K160=\"\",\"\",'1. Ordersheet'!K160)","v":""},{"$f":"IF('1. Ordersheet'!M160=\"\",\"\",'1. Ordersheet'!M160)","v":""},null,null,{"$f":"'1. Ordersheet'!AR160","v":0},{"$f":"IF('1. Ordersheet'!AE160=\"\",\"\",'1. Ordersheet'!AE160)","v":""}]
[{"$f":"IF('1. Ordersheet'!B161=\"\",\"\",'1. Ordersheet'!B161)","v":""},{"$f":"IF('1. Ordersheet'!I161=\"\",\"\",'1. Ordersheet'!I161)","v":""},{"$f":"IF('1. Ordersheet'!J161=\"\",\"\",'1. Ordersheet'!J161)","v":""},{"$f":"IF('1. Ordersheet'!K161=\"\",\"\",'1. Ordersheet'!K161)","v":""},{"$f":"IF('1. Ordersheet'!M161=\"\",\"\",'1. Ordersheet'!M161)","v":""},null,null,{"$f":"'1. Ordersheet'!AR161","v":0},{"$f":"IF('1. Ordersheet'!AE161=\"\",\"\",'1. Ordersheet'!AE161)","v":""}]
[{"$f":"IF('1. Ordersheet'!B162=\"\",\"\",'1. Ordersheet'!B162)","v":""},{"$f":"IF('1. Ordersheet'!I162=\"\",\"\",'1. Ordersheet'!I162)","v":""},{"$f":"IF('1. Ordersheet'!J162=\"\",\"\",'1. Ordersheet'!J162)","v":""},{"$f":"IF('1. Ordersheet'!K162=\"\",\"\",'1. Ordersheet'!K162)","v":""},{"$f":"IF('1. Ordersheet'!M162=\"\",\"\",'1. Ordersheet'!M162)","v":""},null,null,{"$f":"'1. Ordersheet'!AR162","v":0},{"$f":"IF('1. Ordersheet'!AE162=\"\",\"\",'1. Ordersheet'!AE162)","v":""}]
[{"$f":"IF('1. Ordersheet'!B163=\"\",\"\",'1. Ordersheet'!B163)","v":""},{"$f":"IF('1. Ordersheet'!I163=\"\",\"\",'1. Ordersheet'!I163)","v":""},{"$f":"IF('1. Ordersheet'!J163=\"\",\"\",'1. Ordersheet'!J163)","v":""},{"$f":"IF('1. Ordersheet'!K163=\"\",\"\",'1. Ordersheet'!K163)","v":""},{"$f":"IF('1. Ordersheet'!M163=\"\",\"\",'1. Ordersheet'!M163)","v":""},null,null,{"$f":"'1. Ordersheet'!AR163","v":0},{"$f":"IF('1. Ordersheet'!AE163=\"\",\"\",'1. Ordersheet'!AE163)","v":""}]
[{"$f":"IF('1. Ordersheet'!B164=\"\",\"\",'1. Ordersheet'!B164)","v":""},{"$f":"IF('1. Ordersheet'!I164=\"\",\"\",'1. Ordersheet'!I164)","v":""},{"$f":"IF('1. Ordersheet'!J164=\"\",\"\",'1. Ordersheet'!J164)","v":""},{"$f":"IF('1. Ordersheet'!K164=\"\",\"\",'1. Ordersheet'!K164)","v":""},{"$f":"IF('1. Ordersheet'!M164=\"\",\"\",'1. Ordersheet'!M164)","v":""},null,null,{"$f":"'1. Ordersheet'!AR164","v":0},{"$f":"IF('1. Ordersheet'!AE164=\"\",\"\",'1. Ordersheet'!AE164)","v":""}]
[{"$f":"IF('1. Ordersheet'!B165=\"\",\"\",'1. Ordersheet'!B165)","v":""},{"$f":"IF('1. Ordersheet'!I165=\"\",\"\",'1. Ordersheet'!I165)","v":""},{"$f":"IF('1. Ordersheet'!J165=\"\",\"\",'1. Ordersheet'!J165)","v":""},{"$f":"IF('1. Ordersheet'!K165=\"\",\"\",'1. Ordersheet'!K165)","v":""},{"$f":"IF('1. Ordersheet'!M165=\"\",\"\",'1. Ordersheet'!M165)","v":""},null,null,{"$f":"'1. Ordersheet'!AR165","v":0},{"$f":"IF('1. Ordersheet'!AE165=\"\",\"\",'1. Ordersheet'!AE165)","v":""}]
[{"$f":"IF('1. Ordersheet'!B166=\"\",\"\",'1. Ordersheet'!B166)","v":""},{"$f":"IF('1. Ordersheet'!I166=\"\",\"\",'1. Ordersheet'!I166)","v":""},{"$f":"IF('1. Ordersheet'!J166=\"\",\"\",'1. Ordersheet'!J166)","v":""},{"$f":"IF('1. Ordersheet'!K166=\"\",\"\",'1. Ordersheet'!K166)","v":""},{"$f":"IF('1. Ordersheet'!M166=\"\",\"\",'1. Ordersheet'!M166)","v":""},null,null,{"$f":"'1. Ordersheet'!AR166","v":0},{"$f":"IF('1. Ordersheet'!AE166=\"\",\"\",'1. Ordersheet'!AE166)","v":""}]
[{"$f":"IF('1. Ordersheet'!B167=\"\",\"\",'1. Ordersheet'!B167)","v":""},{"$f":"IF('1. Ordersheet'!I167=\"\",\"\",'1. Ordersheet'!I167)","v":""},{"$f":"IF('1. Ordersheet'!J167=\"\",\"\",'1. Ordersheet'!J167)","v":""},{"$f":"IF('1. Ordersheet'!K167=\"\",\"\",'1. Ordersheet'!K167)","v":""},{"$f":"IF('1. Ordersheet'!M167=\"\",\"\",'1. Ordersheet'!M167)","v":""},null,null,{"$f":"'1. Ordersheet'!AR167","v":0},{"$f":"IF('1. Ordersheet'!AE167=\"\",\"\",'1. Ordersheet'!AE167)","v":""}]
[{"$f":"IF('1. Ordersheet'!B168=\"\",\"\",'1. Ordersheet'!B168)","v":""},{"$f":"IF('1. Ordersheet'!I168=\"\",\"\",'1. Ordersheet'!I168)","v":""},{"$f":"IF('1. Ordersheet'!J168=\"\",\"\",'1. Ordersheet'!J168)","v":""},{"$f":"IF('1. Ordersheet'!K168=\"\",\"\",'1. Ordersheet'!K168)","v":""},{"$f":"IF('1. Ordersheet'!M168=\"\",\"\",'1. Ordersheet'!M168)","v":""},null,null,{"$f":"'1. Ordersheet'!AR168","v":0},{"$f":"IF('1. Ordersheet'!AE168=\"\",\"\",'1. Ordersheet'!AE168)","v":""}]
[{"$f":"IF('1. Ordersheet'!B169=\"\",\"\",'1. Ordersheet'!B169)","v":""},{"$f":"IF('1. Ordersheet'!I169=\"\",\"\",'1. Ordersheet'!I169)","v":""},{"$f":"IF('1. Ordersheet'!J169=\"\",\"\",'1. Ordersheet'!J169)","v":""},{"$f":"IF('1. Ordersheet'!K169=\"\",\"\",'1. Ordersheet'!K169)","v":""},{"$f":"IF('1. Ordersheet'!M169=\"\",\"\",'1. Ordersheet'!M169)","v":""},null,null,{"$f":"'1. Ordersheet'!AR169","v":0},{"$f":"IF('1. Ordersheet'!AE169=\"\",\"\",'1. Ordersheet'!AE169)","v":""}]
[{"$f":"IF('1. Ordersheet'!B170=\"\",\"\",'1. Ordersheet'!B170)","v":""},{"$f":"IF('1. Ordersheet'!I170=\"\",\"\",'1. Ordersheet'!I170)","v":""},{"$f":"IF('1. Ordersheet'!J170=\"\",\"\",'1. Ordersheet'!J170)","v":""},{"$f":"IF('1. Ordersheet'!K170=\"\",\"\",'1. Ordersheet'!K170)","v":""},{"$f":"IF('1. Ordersheet'!M170=\"\",\"\",'1. Ordersheet'!M170)","v":""},null,null,{"$f":"'1. Ordersheet'!AR170","v":0},{"$f":"IF('1. Ordersheet'!AE170=\"\",\"\",'1. Ordersheet'!AE170)","v":""}]
[{"$f":"IF('1. Ordersheet'!B171=\"\",\"\",'1. Ordersheet'!B171)","v":""},{"$f":"IF('1. Ordersheet'!I171=\"\",\"\",'1. Ordersheet'!I171)","v":""},{"$f":"IF('1. Ordersheet'!J171=\"\",\"\",'1. Ordersheet'!J171)","v":""},{"$f":"IF('1. Ordersheet'!K171=\"\",\"\",'1. Ordersheet'!K171)","v":""},{"$f":"IF('1. Ordersheet'!M171=\"\",\"\",'1. Ordersheet'!M171)","v":""},null,null,{"$f":"'1. Ordersheet'!AR171","v":0},{"$f":"IF('1. Ordersheet'!AE171=\"\",\"\",'1. Ordersheet'!AE171)","v":""}]
[{"$f":"IF('1. Ordersheet'!B172=\"\",\"\",'1. Ordersheet'!B172)","v":""},{"$f":"IF('1. Ordersheet'!I172=\"\",\"\",'1. Ordersheet'!I172)","v":""},{"$f":"IF('1. Ordersheet'!J172=\"\",\"\",'1. Ordersheet'!J172)","v":""},{"$f":"IF('1. Ordersheet'!K172=\"\",\"\",'1. Ordersheet'!K172)","v":""},{"$f":"IF('1. Ordersheet'!M172=\"\",\"\",'1. Ordersheet'!M172)","v":""},null,null,{"$f":"'1. Ordersheet'!AR172","v":0},{"$f":"IF('1. Ordersheet'!AE172=\"\",\"\",'1. Ordersheet'!AE172)","v":""}]
[{"$f":"IF('1. Ordersheet'!B173=\"\",\"\",'1. Ordersheet'!B173)","v":""},{"$f":"IF('1. Ordersheet'!I173=\"\",\"\",'1. Ordersheet'!I173)","v":""},{"$f":"IF('1. Ordersheet'!J173=\"\",\"\",'1. Ordersheet'!J173)","v":""},{"$f":"IF('1. Ordersheet'!K173=\"\",\"\",'1. Ordersheet'!K173)","v":""},{"$f":"IF('1. Ordersheet'!M173=\"\",\"\",'1. Ordersheet'!M173)","v":""},null,null,{"$f":"'1. Ordersheet'!AR173","v":0},{"$f":"IF('1. Ordersheet'!AE173=\"\",\"\",'1. Ordersheet'!AE173)","v":""}]
[{"$f":"IF('1. Ordersheet'!B174=\"\",\"\",'1. Ordersheet'!B174)","v":""},{"$f":"IF('1. Ordersheet'!I174=\"\",\"\",'1. Ordersheet'!I174)","v":""},{"$f":"IF('1. Ordersheet'!J174=\"\",\"\",'1. Ordersheet'!J174)","v":""},{"$f":"IF('1. Ordersheet'!K174=\"\",\"\",'1. Ordersheet'!K174)","v":""},{"$f":"IF('1. Ordersheet'!M174=\"\",\"\",'1. Ordersheet'!M174)","v":""},null,null,{"$f":"'1. Ordersheet'!AR174","v":0},{"$f":"IF('1. Ordersheet'!AE174=\"\",\"\",'1. Ordersheet'!AE174)","v":""}]
[{"$f":"IF('1. Ordersheet'!B175=\"\",\"\",'1. Ordersheet'!B175)","v":""},{"$f":"IF('1. Ordersheet'!I175=\"\",\"\",'1. Ordersheet'!I175)","v":""},{"$f":"IF('1. Ordersheet'!J175=\"\",\"\",'1. Ordersheet'!J175)","v":""},{"$f":"IF('1. Ordersheet'!K175=\"\",\"\",'1. Ordersheet'!K175)","v":""},{"$f":"IF('1. Ordersheet'!M175=\"\",\"\",'1. Ordersheet'!M175)","v":""},null,null,{"$f":"'1. Ordersheet'!AR175","v":0},{"$f":"IF('1. Ordersheet'!AE175=\"\",\"\",'1. Ordersheet'!AE175)","v":""}]
[{"$f":"IF('1. Ordersheet'!B176=\"\",\"\",'1. Ordersheet'!B176)","v":""},{"$f":"IF('1. Ordersheet'!I176=\"\",\"\",'1. Ordersheet'!I176)","v":""},{"$f":"IF('1. Ordersheet'!J176=\"\",\"\",'1. Ordersheet'!J176)","v":""},{"$f":"IF('1. Ordersheet'!K176=\"\",\"\",'1. Ordersheet'!K176)","v":""},{"$f":"IF('1. Ordersheet'!M176=\"\",\"\",'1. Ordersheet'!M176)","v":""},null,null,{"$f":"'1. Ordersheet'!AR176","v":0},{"$f":"IF('1. Ordersheet'!AE176=\"\",\"\",'1. Ordersheet'!AE176)","v":""}]
[{"$f":"IF('1. Ordersheet'!B177=\"\",\"\",'1. Ordersheet'!B177)","v":""},{"$f":"IF('1. Ordersheet'!I177=\"\",\"\",'1. Ordersheet'!I177)","v":""},{"$f":"IF('1. Ordersheet'!J177=\"\",\"\",'1. Ordersheet'!J177)","v":""},{"$f":"IF('1. Ordersheet'!K177=\"\",\"\",'1. Ordersheet'!K177)","v":""},{"$f":"IF('1. Ordersheet'!M177=\"\",\"\",'1. Ordersheet'!M177)","v":""},null,null,{"$f":"'1. Ordersheet'!AR177","v":0},{"$f":"IF('1. Ordersheet'!AE177=\"\",\"\",'1. Ordersheet'!AE177)","v":""}]
[{"$f":"IF('1. Ordersheet'!B178=\"\",\"\",'1. Ordersheet'!B178)","v":""},{"$f":"IF('1. Ordersheet'!I178=\"\",\"\",'1. Ordersheet'!I178)","v":""},{"$f":"IF('1. Ordersheet'!J178=\"\",\"\",'1. Ordersheet'!J178)","v":""},{"$f":"IF('1. Ordersheet'!K178=\"\",\"\",'1. Ordersheet'!K178)","v":""},{"$f":"IF('1. Ordersheet'!M178=\"\",\"\",'1. Ordersheet'!M178)","v":""},null,null,{"$f":"'1. Ordersheet'!AR178","v":0},{"$f":"IF('1. Ordersheet'!AE178=\"\",\"\",'1. Ordersheet'!AE178)","v":""}]
[{"$f":"IF('1. Ordersheet'!B179=\"\",\"\",'1. Ordersheet'!B179)","v":""},{"$f":"IF('1. Ordersheet'!I179=\"\",\"\",'1. Ordersheet'!I179)","v":""},{"$f":"IF('1. Ordersheet'!J179=\"\",\"\",'1. Ordersheet'!J179)","v":""},{"$f":"IF('1. Ordersheet'!K179=\"\",\"\",'1. Ordersheet'!K179)","v":""},{"$f":"IF('1. Ordersheet'!M179=\"\",\"\",'1. Ordersheet'!M179)","v":""},null,null,{"$f":"'1. Ordersheet'!AR179","v":0},{"$f":"IF('1. Ordersheet'!AE179=\"\",\"\",'1. Ordersheet'!AE179)","v":""}]
[{"$f":"IF('1. Ordersheet'!B180=\"\",\"\",'1. Ordersheet'!B180)","v":""},{"$f":"IF('1. Ordersheet'!I180=\"\",\"\",'1. Ordersheet'!I180)","v":""},{"$f":"IF('1. Ordersheet'!J180=\"\",\"\",'1. Ordersheet'!J180)","v":""},{"$f":"IF('1. Ordersheet'!K180=\"\",\"\",'1. Ordersheet'!K180)","v":""},{"$f":"IF('1. Ordersheet'!M180=\"\",\"\",'1. Ordersheet'!M180)","v":""},null,null,{"$f":"'1. Ordersheet'!AR180","v":0},{"$f":"IF('1. Ordersheet'!AE180=\"\",\"\",'1. Ordersheet'!AE180)","v":""}]
[{"$f":"IF('1. Ordersheet'!B181=\"\",\"\",'1. Ordersheet'!B181)","v":""},{"$f":"IF('1. Ordersheet'!I181=\"\",\"\",'1. Ordersheet'!I181)","v":""},{"$f":"IF('1. Ordersheet'!J181=\"\",\"\",'1. Ordersheet'!J181)","v":""},{"$f":"IF('1. Ordersheet'!K181=\"\",\"\",'1. Ordersheet'!K181)","v":""},{"$f":"IF('1. Ordersheet'!M181=\"\",\"\",'1. Ordersheet'!M181)","v":""},null,null,{"$f":"'1. Ordersheet'!AR181","v":0},{"$f":"IF('1. Ordersheet'!AE181=\"\",\"\",'1. Ordersheet'!AE181)","v":""}]
[{"$f":"IF('1. Ordersheet'!B182=\"\",\"\",'1. Ordersheet'!B182)","v":""},{"$f":"IF('1. Ordersheet'!I182=\"\",\"\",'1. Ordersheet'!I182)","v":""},{"$f":"IF('1. Ordersheet'!J182=\"\",\"\",'1. Ordersheet'!J182)","v":""},{"$f":"IF('1. Ordersheet'!K182=\"\",\"\",'1. Ordersheet'!K182)","v":""},{"$f":"IF('1. Ordersheet'!M182=\"\",\"\",'1. Ordersheet'!M182)","v":""},null,null,{"$f":"'1. Ordersheet'!AR182","v":0},{"$f":"IF('1. Ordersheet'!AE182=\"\",\"\",'1. Ordersheet'!AE182)","v":""}]
[{"$f":"IF('1. Ordersheet'!B183=\"\",\"\",'1. Ordersheet'!B183)","v":""},{"$f":"IF('1. Ordersheet'!I183=\"\",\"\",'1. Ordersheet'!I183)","v":""},{"$f":"IF('1. Ordersheet'!J183=\"\",\"\",'1. Ordersheet'!J183)","v":""},{"$f":"IF('1. Ordersheet'!K183=\"\",\"\",'1. Ordersheet'!K183)","v":""},{"$f":"IF('1. Ordersheet'!M183=\"\",\"\",'1. Ordersheet'!M183)","v":""},null,null,{"$f":"'1. Ordersheet'!AR183","v":0},{"$f":"IF('1. Ordersheet'!AE183=\"\",\"\",'1. Ordersheet'!AE183)","v":""}]
[{"$f":"IF('1. Ordersheet'!B184=\"\",\"\",'1. Ordersheet'!B184)","v":""},{"$f":"IF('1. Ordersheet'!I184=\"\",\"\",'1. Ordersheet'!I184)","v":""},{"$f":"IF('1. Ordersheet'!J184=\"\",\"\",'1. Ordersheet'!J184)","v":""},{"$f":"IF('1. Ordersheet'!K184=\"\",\"\",'1. Ordersheet'!K184)","v":""},{"$f":"IF('1. Ordersheet'!M184=\"\",\"\",'1. Ordersheet'!M184)","v":""},null,null,{"$f":"'1. Ordersheet'!AR184","v":0},{"$f":"IF('1. Ordersheet'!AE184=\"\",\"\",'1. Ordersheet'!AE184)","v":""}]
[{"$f":"IF('1. Ordersheet'!B185=\"\",\"\",'1. Ordersheet'!B185)","v":""},{"$f":"IF('1. Ordersheet'!I185=\"\",\"\",'1. Ordersheet'!I185)","v":""},{"$f":"IF('1. Ordersheet'!J185=\"\",\"\",'1. Ordersheet'!J185)","v":""},{"$f":"IF('1. Ordersheet'!K185=\"\",\"\",'1. Ordersheet'!K185)","v":""},{"$f":"IF('1. Ordersheet'!M185=\"\",\"\",'1. Ordersheet'!M185)","v":""},null,null,{"$f":"'1. Ordersheet'!AR185","v":0},{"$f":"IF('1. Ordersheet'!AE185=\"\",\"\",'1. Ordersheet'!AE185)","v":""}]
[{"$f":"IF('1. Ordersheet'!B186=\"\",\"\",'1. Ordersheet'!B186)","v":""},{"$f":"IF('1. Ordersheet'!I186=\"\",\"\",'1. Ordersheet'!I186)","v":""},{"$f":"IF('1. Ordersheet'!J186=\"\",\"\",'1. Ordersheet'!J186)","v":""},{"$f":"IF('1. Ordersheet'!K186=\"\",\"\",'1. Ordersheet'!K186)","v":""},{"$f":"IF('1. Ordersheet'!M186=\"\",\"\",'1. Ordersheet'!M186)","v":""},null,null,{"$f":"'1. Ordersheet'!AR186","v":0},{"$f":"IF('1. Ordersheet'!AE186=\"\",\"\",'1. Ordersheet'!AE186)","v":""}]
[{"$f":"IF('1. Ordersheet'!B187=\"\",\"\",'1. Ordersheet'!B187)","v":""},{"$f":"IF('1. Ordersheet'!I187=\"\",\"\",'1. Ordersheet'!I187)","v":""},{"$f":"IF('1. Ordersheet'!J187=\"\",\"\",'1. Ordersheet'!J187)","v":""},{"$f":"IF('1. Ordersheet'!K187=\"\",\"\",'1. Ordersheet'!K187)","v":""},{"$f":"IF('1. Ordersheet'!M187=\"\",\"\",'1. Ordersheet'!M187)","v":""},null,null,{"$f":"'1. Ordersheet'!AR187","v":0},{"$f":"IF('1. Ordersheet'!AE187=\"\",\"\",'1. Ordersheet'!AE187)","v":""}]
[{"$f":"IF('1. Ordersheet'!B188=\"\",\"\",'1. Ordersheet'!B188)","v":""},{"$f":"IF('1. Ordersheet'!I188=\"\",\"\",'1. Ordersheet'!I188)","v":""},{"$f":"IF('1. Ordersheet'!J188=\"\",\"\",'1. Ordersheet'!J188)","v":""},{"$f":"IF('1. Ordersheet'!K188=\"\",\"\",'1. Ordersheet'!K188)","v":""},{"$f":"IF('1. Ordersheet'!M188=\"\",\"\",'1. Ordersheet'!M188)","v":""},null,null,{"$f":"'1. Ordersheet'!AR188","v":0},{"$f":"IF('1. Ordersheet'!AE188=\"\",\"\",'1. Ordersheet'!AE188)","v":""}]
[{"$f":"IF('1. Ordersheet'!B189=\"\",\"\",'1. Ordersheet'!B189)","v":""},{"$f":"IF('1. Ordersheet'!I189=\"\",\"\",'1. Ordersheet'!I189)","v":""},{"$f":"IF('1. Ordersheet'!J189=\"\",\"\",'1. Ordersheet'!J189)","v":""},{"$f":"IF('1. Ordersheet'!K189=\"\",\"\",'1. Ordersheet'!K189)","v":""},{"$f":"IF('1. Ordersheet'!M189=\"\",\"\",'1. Ordersheet'!M189)","v":""},null,null,{"$f":"'1. Ordersheet'!AR189","v":0},{"$f":"IF('1. Ordersheet'!AE189=\"\",\"\",'1. Ordersheet'!AE189)","v":""}]
[{"$f":"IF('1. Ordersheet'!B190=\"\",\"\",'1. Ordersheet'!B190)","v":""},{"$f":"IF('1. Ordersheet'!I190=\"\",\"\",'1. Ordersheet'!I190)","v":""},{"$f":"IF('1. Ordersheet'!J190=\"\",\"\",'1. Ordersheet'!J190)","v":""},{"$f":"IF('1. Ordersheet'!K190=\"\",\"\",'1. Ordersheet'!K190)","v":""},{"$f":"IF('1. Ordersheet'!M190=\"\",\"\",'1. Ordersheet'!M190)","v":""},null,null,{"$f":"'1. Ordersheet'!AR190","v":0},{"$f":"IF('1. Ordersheet'!AE190=\"\",\"\",'1. Ordersheet'!AE190)","v":""}]
[{"$f":"IF('1. Ordersheet'!B191=\"\",\"\",'1. Ordersheet'!B191)","v":""},{"$f":"IF('1. Ordersheet'!I191=\"\",\"\",'1. Ordersheet'!I191)","v":""},{"$f":"IF('1. Ordersheet'!J191=\"\",\"\",'1. Ordersheet'!J191)","v":""},{"$f":"IF('1. Ordersheet'!K191=\"\",\"\",'1. Ordersheet'!K191)","v":""},{"$f":"IF('1. Ordersheet'!M191=\"\",\"\",'1. Ordersheet'!M191)","v":""},null,null,{"$f":"'1. Ordersheet'!AR191","v":0},{"$f":"IF('1. Ordersheet'!AE191=\"\",\"\",'1. Ordersheet'!AE191)","v":""}]
[{"$f":"IF('1. Ordersheet'!B192=\"\",\"\",'1. Ordersheet'!B192)","v":""},{"$f":"IF('1. Ordersheet'!I192=\"\",\"\",'1. Ordersheet'!I192)","v":""},{"$f":"IF('1. Ordersheet'!J192=\"\",\"\",'1. Ordersheet'!J192)","v":""},{"$f":"IF('1. Ordersheet'!K192=\"\",\"\",'1. Ordersheet'!K192)","v":""},{"$f":"IF('1. Ordersheet'!M192=\"\",\"\",'1. Ordersheet'!M192)","v":""},null,null,{"$f":"'1. Ordersheet'!AR192","v":0},{"$f":"IF('1. Ordersheet'!AE192=\"\",\"\",'1. Ordersheet'!AE192)","v":""}]
[{"$f":"IF('1. Ordersheet'!B193=\"\",\"\",'1. Ordersheet'!B193)","v":""},{"$f":"IF('1. Ordersheet'!I193=\"\",\"\",'1. Ordersheet'!I193)","v":""},{"$f":"IF('1. Ordersheet'!J193=\"\",\"\",'1. Ordersheet'!J193)","v":""},{"$f":"IF('1. Ordersheet'!K193=\"\",\"\",'1. Ordersheet'!K193)","v":""},{"$f":"IF('1. Ordersheet'!M193=\"\",\"\",'1. Ordersheet'!M193)","v":""},null,null,{"$f":"'1. Ordersheet'!AR193","v":0},{"$f":"IF('1. Ordersheet'!AE193=\"\",\"\",'1. Ordersheet'!AE193)","v":""}]
[{"$f":"IF('1. Ordersheet'!B194=\"\",\"\",'1. Ordersheet'!B194)","v":""},{"$f":"IF('1. Ordersheet'!I194=\"\",\"\",'1. Ordersheet'!I194)","v":""},{"$f":"IF('1. Ordersheet'!J194=\"\",\"\",'1. Ordersheet'!J194)","v":""},{"$f":"IF('1. Ordersheet'!K194=\"\",\"\",'1. Ordersheet'!K194)","v":""},{"$f":"IF('1. Ordersheet'!M194=\"\",\"\",'1. Ordersheet'!M194)","v":""},null,null,{"$f":"'1. Ordersheet'!AR194","v":0},{"$f":"IF('1. Ordersheet'!AE194=\"\",\"\",'1. Ordersheet'!AE194)","v":""}]
[{"$f":"IF('1. Ordersheet'!B195=\"\",\"\",'1. Ordersheet'!B195)","v":""},{"$f":"IF('1. Ordersheet'!I195=\"\",\"\",'1. Ordersheet'!I195)","v":""},{"$f":"IF('1. Ordersheet'!J195=\"\",\"\",'1. Ordersheet'!J195)","v":""},{"$f":"IF('1. Ordersheet'!K195=\"\",\"\",'1. Ordersheet'!K195)","v":""},{"$f":"IF('1. Ordersheet'!M195=\"\",\"\",'1. Ordersheet'!M195)","v":""},null,null,{"$f":"'1. Ordersheet'!AR195","v":0},{"$f":"IF('1. Ordersheet'!AE195=\"\",\"\",'1. Ordersheet'!AE195)","v":""}]
[{"$f":"IF('1. Ordersheet'!B196=\"\",\"\",'1. Ordersheet'!B196)","v":""},{"$f":"IF('1. Ordersheet'!I196=\"\",\"\",'1. Ordersheet'!I196)","v":""},{"$f":"IF('1. Ordersheet'!J196=\"\",\"\",'1. Ordersheet'!J196)","v":""},{"$f":"IF('1. Ordersheet'!K196=\"\",\"\",'1. Ordersheet'!K196)","v":""},{"$f":"IF('1. Ordersheet'!M196=\"\",\"\",'1. Ordersheet'!M196)","v":""},null,null,{"$f":"'1. Ordersheet'!AR196","v":0},{"$f":"IF('1. Ordersheet'!AE196=\"\",\"\",'1. Ordersheet'!AE196)","v":""}]
[{"$f":"IF('1. Ordersheet'!B197=\"\",\"\",'1. Ordersheet'!B197)","v":""},{"$f":"IF('1. Ordersheet'!I197=\"\",\"\",'1. Ordersheet'!I197)","v":""},{"$f":"IF('1. Ordersheet'!J197=\"\",\"\",'1. Ordersheet'!J197)","v":""},{"$f":"IF('1. Ordersheet'!K197=\"\",\"\",'1. Ordersheet'!K197)","v":""},{"$f":"IF('1. Ordersheet'!M197=\"\",\"\",'1. Ordersheet'!M197)","v":""},null,null,{"$f":"'1. Ordersheet'!AR197","v":0},{"$f":"IF('1. Ordersheet'!AE197=\"\",\"\",'1. Ordersheet'!AE197)","v":""}]
[{"$f":"IF('1. Ordersheet'!B198=\"\",\"\",'1. Ordersheet'!B198)","v":""},{"$f":"IF('1. Ordersheet'!I198=\"\",\"\",'1. Ordersheet'!I198)","v":""},{"$f":"IF('1. Ordersheet'!J198=\"\",\"\",'1. Ordersheet'!J198)","v":""},{"$f":"IF('1. Ordersheet'!K198=\"\",\"\",'1. Ordersheet'!K198)","v":""},{"$f":"IF('1. Ordersheet'!M198=\"\",\"\",'1. Ordersheet'!M198)","v":""},null,null,{"$f":"'1. Ordersheet'!AR198","v":0},{"$f":"IF('1. Ordersheet'!AE198=\"\",\"\",'1. Ordersheet'!AE198)","v":""}]
[{"$f":"IF('1. Ordersheet'!B199=\"\",\"\",'1. Ordersheet'!B199)","v":""},{"$f":"IF('1. Ordersheet'!I199=\"\",\"\",'1. Ordersheet'!I199)","v":""},{"$f":"IF('1. Ordersheet'!J199=\"\",\"\",'1. Ordersheet'!J199)","v":""},{"$f":"IF('1. Ordersheet'!K199=\"\",\"\",'1. Ordersheet'!K199)","v":""},{"$f":"IF('1. Ordersheet'!M199=\"\",\"\",'1. Ordersheet'!M199)","v":""},null,null,{"$f":"'1. Ordersheet'!AR199","v":0},{"$f":"IF('1. Ordersheet'!AE199=\"\",\"\",'1. Ordersheet'!AE199)","v":""}]
[{"$f":"IF('1. Ordersheet'!B200=\"\",\"\",'1. Ordersheet'!B200)","v":""},{"$f":"IF('1. Ordersheet'!I200=\"\",\"\",'1. Ordersheet'!I200)","v":""},{"$f":"IF('1. Ordersheet'!J200=\"\",\"\",'1. Ordersheet'!J200)","v":""},{"$f":"IF('1. Ordersheet'!K200=\"\",\"\",'1. Ordersheet'!K200)","v":""},{"$f":"IF('1. Ordersheet'!M200=\"\",\"\",'1. Ordersheet'!M200)","v":""},null,null,{"$f":"'1. Ordersheet'!AR200","v":0},{"$f":"IF('1. Ordersheet'!AE200=\"\",\"\",'1. Ordersheet'!AE200)","v":""}]
[{"$f":"IF('1. Ordersheet'!B201=\"\",\"\",'1. Ordersheet'!B201)","v":""},{"$f":"IF('1. Ordersheet'!I201=\"\",\"\",'1. Ordersheet'!I201)","v":""},{"$f":"IF('1. Ordersheet'!J201=\"\",\"\",'1. Ordersheet'!J201)","v":""},{"$f":"IF('1. Ordersheet'!K201=\"\",\"\",'1. Ordersheet'!K201)","v":""},{"$f":"IF('1. Ordersheet'!M201=\"\",\"\",'1. Ordersheet'!M201)","v":""},null,null,{"$f":"'1. Ordersheet'!AR201","v":0},{"$f":"IF('1. Ordersheet'!AE201=\"\",\"\",'1. Ordersheet'!AE201)","v":""}]
[{"$f":"IF('1. Ordersheet'!B202=\"\",\"\",'1. Ordersheet'!B202)","v":""},{"$f":"IF('1. Ordersheet'!I202=\"\",\"\",'1. Ordersheet'!I202)","v":""},{"$f":"IF('1. Ordersheet'!J202=\"\",\"\",'1. Ordersheet'!J202)","v":""},{"$f":"IF('1. Ordersheet'!K202=\"\",\"\",'1. Ordersheet'!K202)","v":""},{"$f":"IF('1. Ordersheet'!M202=\"\",\"\",'1. Ordersheet'!M202)","v":""},null,null,{"$f":"'1. Ordersheet'!AR202","v":0},{"$f":"IF('1. Ordersheet'!AE202=\"\",\"\",'1. Ordersheet'!AE202)","v":""}]
[{"$f":"IF('1. Ordersheet'!B203=\"\",\"\",'1. Ordersheet'!B203)","v":""},{"$f":"IF('1. Ordersheet'!I203=\"\",\"\",'1. Ordersheet'!I203)","v":""},{"$f":"IF('1. Ordersheet'!J203=\"\",\"\",'1. Ordersheet'!J203)","v":""},{"$f":"IF('1. Ordersheet'!K203=\"\",\"\",'1. Ordersheet'!K203)","v":""},{"$f":"IF('1. Ordersheet'!M203=\"\",\"\",'1. Ordersheet'!M203)","v":""},null,null,{"$f":"'1. Ordersheet'!AR203","v":0},{"$f":"IF('1. Ordersheet'!AE203=\"\",\"\",'1. Ordersheet'!AE203)","v":""}]
[{"$f":"IF('1. Ordersheet'!B204=\"\",\"\",'1. Ordersheet'!B204)","v":""},{"$f":"IF('1. Ordersheet'!I204=\"\",\"\",'1. Ordersheet'!I204)","v":""},{"$f":"IF('1. Ordersheet'!J204=\"\",\"\",'1. Ordersheet'!J204)","v":""},{"$f":"IF('1. Ordersheet'!K204=\"\",\"\",'1. Ordersheet'!K204)","v":""},{"$f":"IF('1. Ordersheet'!M204=\"\",\"\",'1. Ordersheet'!M204)","v":""},null,null,{"$f":"'1. Ordersheet'!AR204","v":0},{"$f":"IF('1. Ordersheet'!AE204=\"\",\"\",'1. Ordersheet'!AE204)","v":""}]
[{"$f":"IF('1. Ordersheet'!B205=\"\",\"\",'1. Ordersheet'!B205)","v":""},{"$f":"IF('1. Ordersheet'!I205=\"\",\"\",'1. Ordersheet'!I205)","v":""},{"$f":"IF('1. Ordersheet'!J205=\"\",\"\",'1. Ordersheet'!J205)","v":""},{"$f":"IF('1. Ordersheet'!K205=\"\",\"\",'1. Ordersheet'!K205)","v":""},{"$f":"IF('1. Ordersheet'!M205=\"\",\"\",'1. Ordersheet'!M205)","v":""},null,null,{"$f":"'1. Ordersheet'!AR205","v":0},{"$f":"IF('1. Ordersheet'!AE205=\"\",\"\",'1. Ordersheet'!AE205)","v":""}]
[{"$f":"IF('1. Ordersheet'!B206=\"\",\"\",'1. Ordersheet'!B206)","v":""},{"$f":"IF('1. Ordersheet'!I206=\"\",\"\",'1. Ordersheet'!I206)","v":""},{"$f":"IF('1. Ordersheet'!J206=\"\",\"\",'1. Ordersheet'!J206)","v":""},{"$f":"IF('1. Ordersheet'!K206=\"\",\"\",'1. Ordersheet'!K206)","v":""},{"$f":"IF('1. Ordersheet'!M206=\"\",\"\",'1. Ordersheet'!M206)","v":""},null,null,{"$f":"'1. Ordersheet'!AR206","v":0},{"$f":"IF('1. Ordersheet'!AE206=\"\",\"\",'1. Ordersheet'!AE206)","v":""}]
[{"$f":"IF('1. Ordersheet'!B207=\"\",\"\",'1. Ordersheet'!B207)","v":""},{"$f":"IF('1. Ordersheet'!I207=\"\",\"\",'1. Ordersheet'!I207)","v":""},{"$f":"IF('1. Ordersheet'!J207=\"\",\"\",'1. Ordersheet'!J207)","v":""},{"$f":"IF('1. Ordersheet'!K207=\"\",\"\",'1. Ordersheet'!K207)","v":""},{"$f":"IF('1. Ordersheet'!M207=\"\",\"\",'1. Ordersheet'!M207)","v":""},null,null,{"$f":"'1. Ordersheet'!AR207","v":0},{"$f":"IF('1. Ordersheet'!AE207=\"\",\"\",'1. Ordersheet'!AE207)","v":""}]
[{"$f":"IF('1. Ordersheet'!B208=\"\",\"\",'1. Ordersheet'!B208)","v":""},{"$f":"IF('1. Ordersheet'!I208=\"\",\"\",'1. Ordersheet'!I208)","v":""},{"$f":"IF('1. Ordersheet'!J208=\"\",\"\",'1. Ordersheet'!J208)","v":""},{"$f":"IF('1. Ordersheet'!K208=\"\",\"\",'1. Ordersheet'!K208)","v":""},{"$f":"IF('1. Ordersheet'!M208=\"\",\"\",'1. Ordersheet'!M208)","v":""},null,null,{"$f":"'1. Ordersheet'!AR208","v":0},{"$f":"IF('1. Ordersheet'!AE208=\"\",\"\",'1. Ordersheet'!AE208)","v":""}]
[{"$f":"IF('1. Ordersheet'!B209=\"\",\"\",'1. Ordersheet'!B209)","v":""},{"$f":"IF('1. Ordersheet'!I209=\"\",\"\",'1. Ordersheet'!I209)","v":""},{"$f":"IF('1. Ordersheet'!J209=\"\",\"\",'1. Ordersheet'!J209)","v":""},{"$f":"IF('1. Ordersheet'!K209=\"\",\"\",'1. Ordersheet'!K209)","v":""},{"$f":"IF('1. Ordersheet'!M209=\"\",\"\",'1. Ordersheet'!M209)","v":""},null,null,{"$f":"'1. Ordersheet'!AR209","v":0},{"$f":"IF('1. Ordersheet'!AE209=\"\",\"\",'1. Ordersheet'!AE209)","v":""}]
[{"$f":"IF('1. Ordersheet'!B210=\"\",\"\",'1. Ordersheet'!B210)","v":""},{"$f":"IF('1. Ordersheet'!I210=\"\",\"\",'1. Ordersheet'!I210)","v":""},{"$f":"IF('1. Ordersheet'!J210=\"\",\"\",'1. Ordersheet'!J210)","v":""},{"$f":"IF('1. Ordersheet'!K210=\"\",\"\",'1. Ordersheet'!K210)","v":""},{"$f":"IF('1. Ordersheet'!M210=\"\",\"\",'1. Ordersheet'!M210)","v":""},null,null,{"$f":"'1. Ordersheet'!AR210","v":0},{"$f":"IF('1. Ordersheet'!AE210=\"\",\"\",'1. Ordersheet'!AE210)","v":""}]
[{"$f":"IF('1. Ordersheet'!B211=\"\",\"\",'1. Ordersheet'!B211)","v":""},{"$f":"IF('1. Ordersheet'!I211=\"\",\"\",'1. Ordersheet'!I211)","v":""},{"$f":"IF('1. Ordersheet'!J211=\"\",\"\",'1. Ordersheet'!J211)","v":""},{"$f":"IF('1. Ordersheet'!K211=\"\",\"\",'1. Ordersheet'!K211)","v":""},{"$f":"IF('1. Ordersheet'!M211=\"\",\"\",'1. Ordersheet'!M211)","v":""},null,null,{"$f":"'1. Ordersheet'!AR211","v":0},{"$f":"IF('1. Ordersheet'!AE211=\"\",\"\",'1. Ordersheet'!AE211)","v":""}]
[{"$f":"IF('1. Ordersheet'!B212=\"\",\"\",'1. Ordersheet'!B212)","v":""},{"$f":"IF('1. Ordersheet'!I212=\"\",\"\",'1. Ordersheet'!I212)","v":""},{"$f":"IF('1. Ordersheet'!J212=\"\",\"\",'1. Ordersheet'!J212)","v":""},{"$f":"IF('1. Ordersheet'!K212=\"\",\"\",'1. Ordersheet'!K212)","v":""},{"$f":"IF('1. Ordersheet'!M212=\"\",\"\",'1. Ordersheet'!M212)","v":""},null,null,{"$f":"'1. Ordersheet'!AR212","v":0},{"$f":"IF('1. Ordersheet'!AE212=\"\",\"\",'1. Ordersheet'!AE212)","v":""}]
[{"$f":"IF('1. Ordersheet'!B213=\"\",\"\",'1. Ordersheet'!B213)","v":""},{"$f":"IF('1. Ordersheet'!I213=\"\",\"\",'1. Ordersheet'!I213)","v":""},{"$f":"IF('1. Ordersheet'!J213=\"\",\"\",'1. Ordersheet'!J213)","v":""},{"$f":"IF('1. Ordersheet'!K213=\"\",\"\",'1. Ordersheet'!K213)","v":""},{"$f":"IF('1. Ordersheet'!M213=\"\",\"\",'1. Ordersheet'!M213)","v":""},null,null,{"$f":"'1. Ordersheet'!AR213","v":0},{"$f":"IF('1. Ordersheet'!AE213=\"\",\"\",'1. Ordersheet'!AE213)","v":""}]
[{"$f":"IF('1. Ordersheet'!B214=\"\",\"\",'1. Ordersheet'!B214)","v":""},{"$f":"IF('1. Ordersheet'!I214=\"\",\"\",'1. Ordersheet'!I214)","v":""},{"$f":"IF('1. Ordersheet'!J214=\"\",\"\",'1. Ordersheet'!J214)","v":""},{"$f":"IF('1. Ordersheet'!K214=\"\",\"\",'1. Ordersheet'!K214)","v":""},{"$f":"IF('1. Ordersheet'!M214=\"\",\"\",'1. Ordersheet'!M214)","v":""},null,null,{"$f":"'1. Ordersheet'!AR214","v":0},{"$f":"IF('1. Ordersheet'!AE214=\"\",\"\",'1. Ordersheet'!AE214)","v":""}]
[{"$f":"IF('1. Ordersheet'!B215=\"\",\"\",'1. Ordersheet'!B215)","v":""},{"$f":"IF('1. Ordersheet'!I215=\"\",\"\",'1. Ordersheet'!I215)","v":""},{"$f":"IF('1. Ordersheet'!J215=\"\",\"\",'1. Ordersheet'!J215)","v":""},{"$f":"IF('1. Ordersheet'!K215=\"\",\"\",'1. Ordersheet'!K215)","v":""},{"$f":"IF('1. Ordersheet'!M215=\"\",\"\",'1. Ordersheet'!M215)","v":""},null,null,{"$f":"'1. Ordersheet'!AR215","v":0},{"$f":"IF('1. Ordersheet'!AE215=\"\",\"\",'1. Ordersheet'!AE215)","v":""}]
[{"$f":"IF('1. Ordersheet'!B216=\"\",\"\",'1. Ordersheet'!B216)","v":""},{"$f":"IF('1. Ordersheet'!I216=\"\",\"\",'1. Ordersheet'!I216)","v":""},{"$f":"IF('1. Ordersheet'!J216=\"\",\"\",'1. Ordersheet'!J216)","v":""},{"$f":"IF('1. Ordersheet'!K216=\"\",\"\",'1. Ordersheet'!K216)","v":""},{"$f":"IF('1. Ordersheet'!M216=\"\",\"\",'1. Ordersheet'!M216)","v":""},null,null,{"$f":"'1. Ordersheet'!AR216","v":0},{"$f":"IF('1. Ordersheet'!AE216=\"\",\"\",'1. Ordersheet'!AE216)","v":""}]
[{"$f":"IF('1. Ordersheet'!B217=\"\",\"\",'1. Ordersheet'!B217)","v":""},{"$f":"IF('1. Ordersheet'!I217=\"\",\"\",'1. Ordersheet'!I217)","v":""},{"$f":"IF('1. Ordersheet'!J217=\"\",\"\",'1. Ordersheet'!J217)","v":""},{"$f":"IF('1. Ordersheet'!K217=\"\",\"\",'1. Ordersheet'!K217)","v":""},{"$f":"IF('1. Ordersheet'!M217=\"\",\"\",'1. Ordersheet'!M217)","v":""},null,null,{"$f":"'1. Ordersheet'!AR217","v":0},{"$f":"IF('1. Ordersheet'!AE217=\"\",\"\",'1. Ordersheet'!AE217)","v":""}]
[{"$f":"IF('1. Ordersheet'!B218=\"\",\"\",'1. Ordersheet'!B218)","v":""},{"$f":"IF('1. Ordersheet'!I218=\"\",\"\",'1. Ordersheet'!I218)","v":""},{"$f":"IF('1. Ordersheet'!J218=\"\",\"\",'1. Ordersheet'!J218)","v":""},{"$f":"IF('1. Ordersheet'!K218=\"\",\"\",'1. Ordersheet'!K218)","v":""},{"$f":"IF('1. Ordersheet'!M218=\"\",\"\",'1. Ordersheet'!M218)","v":""},null,null,{"$f":"'1. Ordersheet'!AR218","v":0},{"$f":"IF('1. Ordersheet'!AE218=\"\",\"\",'1. Ordersheet'!AE218)","v":""}]
[{"$f":"IF('1. Ordersheet'!B219=\"\",\"\",'1. Ordersheet'!B219)","v":""},{"$f":"IF('1. Ordersheet'!I219=\"\",\"\",'1. Ordersheet'!I219)","v":""},{"$f":"IF('1. Ordersheet'!J219=\"\",\"\",'1. Ordersheet'!J219)","v":""},{"$f":"IF('1. Ordersheet'!K219=\"\",\"\",'1. Ordersheet'!K219)","v":""},{"$f":"IF('1. Ordersheet'!M219=\"\",\"\",'1. Ordersheet'!M219)","v":""},null,null,{"$f":"'1. Ordersheet'!AR219","v":0},{"$f":"IF('1. Ordersheet'!AE219=\"\",\"\",'1. Ordersheet'!AE219)","v":""}]
[{"$f":"IF('1. Ordersheet'!B220=\"\",\"\",'1. Ordersheet'!B220)","v":""},{"$f":"IF('1. Ordersheet'!I220=\"\",\"\",'1. Ordersheet'!I220)","v":""},{"$f":"IF('1. Ordersheet'!J220=\"\",\"\",'1. Ordersheet'!J220)","v":""},{"$f":"IF('1. Ordersheet'!K220=\"\",\"\",'1. Ordersheet'!K220)","v":""},{"$f":"IF('1. Ordersheet'!M220=\"\",\"\",'1. Ordersheet'!M220)","v":""},null,null,{"$f":"'1. Ordersheet'!AR220","v":0},{"$f":"IF('1. Ordersheet'!AE220=\"\",\"\",'1. Ordersheet'!AE220)","v":""}]
[{"$f":"IF('1. Ordersheet'!B221=\"\",\"\",'1. Ordersheet'!B221)","v":""},{"$f":"IF('1. Ordersheet'!I221=\"\",\"\",'1. Ordersheet'!I221)","v":""},{"$f":"IF('1. Ordersheet'!J221=\"\",\"\",'1. Ordersheet'!J221)","v":""},{"$f":"IF('1. Ordersheet'!K221=\"\",\"\",'1. Ordersheet'!K221)","v":""},{"$f":"IF('1. Ordersheet'!M221=\"\",\"\",'1. Ordersheet'!M221)","v":""},null,null,{"$f":"'1. Ordersheet'!AR221","v":0},{"$f":"IF('1. Ordersheet'!AE221=\"\",\"\",'1. Ordersheet'!AE221)","v":""}]
[{"$f":"IF('1. Ordersheet'!B222=\"\",\"\",'1. Ordersheet'!B222)","v":""},{"$f":"IF('1. Ordersheet'!I222=\"\",\"\",'1. Ordersheet'!I222)","v":""},{"$f":"IF('1. Ordersheet'!J222=\"\",\"\",'1. Ordersheet'!J222)","v":""},{"$f":"IF('1. Ordersheet'!K222=\"\",\"\",'1. Ordersheet'!K222)","v":""},{"$f":"IF('1. Ordersheet'!M222=\"\",\"\",'1. Ordersheet'!M222)","v":""},null,null,{"$f":"'1. Ordersheet'!AR222","v":0},{"$f":"IF('1. Ordersheet'!AE222=\"\",\"\",'1. Ordersheet'!AE222)","v":""}]
[{"$f":"IF('1. Ordersheet'!B223=\"\",\"\",'1. Ordersheet'!B223)","v":""},{"$f":"IF('1. Ordersheet'!I223=\"\",\"\",'1. Ordersheet'!I223)","v":""},{"$f":"IF('1. Ordersheet'!J223=\"\",\"\",'1. Ordersheet'!J223)","v":""},{"$f":"IF('1. Ordersheet'!K223=\"\",\"\",'1. Ordersheet'!K223)","v":""},{"$f":"IF('1. Ordersheet'!M223=\"\",\"\",'1. Ordersheet'!M223)","v":""},null,null,{"$f":"'1. Ordersheet'!AR223","v":0},{"$f":"IF('1. Ordersheet'!AE223=\"\",\"\",'1. Ordersheet'!AE223)","v":""}]
[{"$f":"IF('1. Ordersheet'!B224=\"\",\"\",'1. Ordersheet'!B224)","v":""},{"$f":"IF('1. Ordersheet'!I224=\"\",\"\",'1. Ordersheet'!I224)","v":""},{"$f":"IF('1. Ordersheet'!J224=\"\",\"\",'1. Ordersheet'!J224)","v":""},{"$f":"IF('1. Ordersheet'!K224=\"\",\"\",'1. Ordersheet'!K224)","v":""},{"$f":"IF('1. Ordersheet'!M224=\"\",\"\",'1. Ordersheet'!M224)","v":""},null,null,{"$f":"'1. Ordersheet'!AR224","v":0},{"$f":"IF('1. Ordersheet'!AE224=\"\",\"\",'1. Ordersheet'!AE224)","v":""}]
[{"$f":"IF('1. Ordersheet'!B225=\"\",\"\",'1. Ordersheet'!B225)","v":""},{"$f":"IF('1. Ordersheet'!I225=\"\",\"\",'1. Ordersheet'!I225)","v":""},{"$f":"IF('1. Ordersheet'!J225=\"\",\"\",'1. Ordersheet'!J225)","v":""},{"$f":"IF('1. Ordersheet'!K225=\"\",\"\",'1. Ordersheet'!K225)","v":""},{"$f":"IF('1. Ordersheet'!M225=\"\",\"\",'1. Ordersheet'!M225)","v":""},null,null,{"$f":"'1. Ordersheet'!AR225","v":0},{"$f":"IF('1. Ordersheet'!AE225=\"\",\"\",'1. Ordersheet'!AE225)","v":""}]
[{"$f":"IF('1. Ordersheet'!B226=\"\",\"\",'1. Ordersheet'!B226)","v":""},{"$f":"IF('1. Ordersheet'!I226=\"\",\"\",'1. Ordersheet'!I226)","v":""},{"$f":"IF('1. Ordersheet'!J226=\"\",\"\",'1. Ordersheet'!J226)","v":""},{"$f":"IF('1. Ordersheet'!K226=\"\",\"\",'1. Ordersheet'!K226)","v":""},{"$f":"IF('1. Ordersheet'!M226=\"\",\"\",'1. Ordersheet'!M226)","v":""},null,null,{"$f":"'1. Ordersheet'!AR226","v":0},{"$f":"IF('1. Ordersheet'!AE226=\"\",\"\",'1. Ordersheet'!AE226)","v":""}]
[{"$f":"IF('1. Ordersheet'!B227=\"\",\"\",'1. Ordersheet'!B227)","v":""},{"$f":"IF('1. Ordersheet'!I227=\"\",\"\",'1. Ordersheet'!I227)","v":""},{"$f":"IF('1. Ordersheet'!J227=\"\",\"\",'1. Ordersheet'!J227)","v":""},{"$f":"IF('1. Ordersheet'!K227=\"\",\"\",'1. Ordersheet'!K227)","v":""},{"$f":"IF('1. Ordersheet'!M227=\"\",\"\",'1. Ordersheet'!M227)","v":""},null,null,{"$f":"'1. Ordersheet'!AR227","v":0},{"$f":"IF('1. Ordersheet'!AE227=\"\",\"\",'1. Ordersheet'!AE227)","v":""}]
[{"$f":"IF('1. Ordersheet'!B228=\"\",\"\",'1. Ordersheet'!B228)","v":""},{"$f":"IF('1. Ordersheet'!I228=\"\",\"\",'1. Ordersheet'!I228)","v":""},{"$f":"IF('1. Ordersheet'!J228=\"\",\"\",'1. Ordersheet'!J228)","v":""},{"$f":"IF('1. Ordersheet'!K228=\"\",\"\",'1. Ordersheet'!K228)","v":""},{"$f":"IF('1. Ordersheet'!M228=\"\",\"\",'1. Ordersheet'!M228)","v":""},null,null,{"$f":"'1. Ordersheet'!AR228","v":0},{"$f":"IF('1. Ordersheet'!AE228=\"\",\"\",'1. Ordersheet'!AE228)","v":""}]
[{"$f":"IF('1. Ordersheet'!B229=\"\",\"\",'1. Ordersheet'!B229)","v":""},{"$f":"IF('1. Ordersheet'!I229=\"\",\"\",'1. Ordersheet'!I229)","v":""},{"$f":"IF('1. Ordersheet'!J229=\"\",\"\",'1. Ordersheet'!J229)","v":""},{"$f":"IF('1. Ordersheet'!K229=\"\",\"\",'1. Ordersheet'!K229)","v":""},{"$f":"IF('1. Ordersheet'!M229=\"\",\"\",'1. Ordersheet'!M229)","v":""},null,null,{"$f":"'1. Ordersheet'!AR229","v":0},{"$f":"IF('1. Ordersheet'!AE229=\"\",\"\",'1. Ordersheet'!AE229)","v":""}]
[{"$f":"IF('1. Ordersheet'!B230=\"\",\"\",'1. Ordersheet'!B230)","v":""},{"$f":"IF('1. Ordersheet'!I230=\"\",\"\",'1. Ordersheet'!I230)","v":""},{"$f":"IF('1. Ordersheet'!J230=\"\",\"\",'1. Ordersheet'!J230)","v":""},{"$f":"IF('1. Ordersheet'!K230=\"\",\"\",'1. Ordersheet'!K230)","v":""},{"$f":"IF('1. Ordersheet'!M230=\"\",\"\",'1. Ordersheet'!M230)","v":""},null,null,{"$f":"'1. Ordersheet'!AR230","v":0},{"$f":"IF('1. Ordersheet'!AE230=\"\",\"\",'1. Ordersheet'!AE230)","v":""}]
[{"$f":"IF('1. Ordersheet'!B231=\"\",\"\",'1. Ordersheet'!B231)","v":""},{"$f":"IF('1. Ordersheet'!I231=\"\",\"\",'1. Ordersheet'!I231)","v":""},{"$f":"IF('1. Ordersheet'!J231=\"\",\"\",'1. Ordersheet'!J231)","v":""},{"$f":"IF('1. Ordersheet'!K231=\"\",\"\",'1. Ordersheet'!K231)","v":""},{"$f":"IF('1. Ordersheet'!M231=\"\",\"\",'1. Ordersheet'!M231)","v":""},null,null,{"$f":"'1. Ordersheet'!AR231","v":0},{"$f":"IF('1. Ordersheet'!AE231=\"\",\"\",'1. Ordersheet'!AE231)","v":""}]
[{"$f":"IF('1. Ordersheet'!B232=\"\",\"\",'1. Ordersheet'!B232)","v":""},{"$f":"IF('1. Ordersheet'!I232=\"\",\"\",'1. Ordersheet'!I232)","v":""},{"$f":"IF('1. Ordersheet'!J232=\"\",\"\",'1. Ordersheet'!J232)","v":""},{"$f":"IF('1. Ordersheet'!K232=\"\",\"\",'1. Ordersheet'!K232)","v":""},{"$f":"IF('1. Ordersheet'!M232=\"\",\"\",'1. Ordersheet'!M232)","v":""},null,null,{"$f":"'1. Ordersheet'!AR232","v":0},{"$f":"IF('1. Ordersheet'!AE232=\"\",\"\",'1. Ordersheet'!AE232)","v":""}]
[{"$f":"IF('1. Ordersheet'!B233=\"\",\"\",'1. Ordersheet'!B233)","v":""},{"$f":"IF('1. Ordersheet'!I233=\"\",\"\",'1. Ordersheet'!I233)","v":""},{"$f":"IF('1. Ordersheet'!J233=\"\",\"\",'1. Ordersheet'!J233)","v":""},{"$f":"IF('1. Ordersheet'!K233=\"\",\"\",'1. Ordersheet'!K233)","v":""},{"$f":"IF('1. Ordersheet'!M233=\"\",\"\",'1. Ordersheet'!M233)","v":""},null,null,{"$f":"'1. Ordersheet'!AR233","v":0},{"$f":"IF('1. Ordersheet'!AE233=\"\",\"\",'1. Ordersheet'!AE233)","v":""}]
[{"$f":"IF('1. Ordersheet'!B234=\"\",\"\",'1. Ordersheet'!B234)","v":""},{"$f":"IF('1. Ordersheet'!I234=\"\",\"\",'1. Ordersheet'!I234)","v":""},{"$f":"IF('1. Ordersheet'!J234=\"\",\"\",'1. Ordersheet'!J234)","v":""},{"$f":"IF('1. Ordersheet'!K234=\"\",\"\",'1. Ordersheet'!K234)","v":""},{"$f":"IF('1. Ordersheet'!M234=\"\",\"\",'1. Ordersheet'!M234)","v":""},null,null,{"$f":"'1. Ordersheet'!AR234","v":0},{"$f":"IF('1. Ordersheet'!AE234=\"\",\"\",'1. Ordersheet'!AE234)","v":""}]
[{"$f":"IF('1. Ordersheet'!B235=\"\",\"\",'1. Ordersheet'!B235)","v":""},{"$f":"IF('1. Ordersheet'!I235=\"\",\"\",'1. Ordersheet'!I235)","v":""},{"$f":"IF('1. Ordersheet'!J235=\"\",\"\",'1. Ordersheet'!J235)","v":""},{"$f":"IF('1. Ordersheet'!K235=\"\",\"\",'1. Ordersheet'!K235)","v":""},{"$f":"IF('1. Ordersheet'!M235=\"\",\"\",'1. Ordersheet'!M235)","v":""},null,null,{"$f":"'1. Ordersheet'!AR235","v":0},{"$f":"IF('1. Ordersheet'!AE235=\"\",\"\",'1. Ordersheet'!AE235)","v":""}]
[{"$f":"IF('1. Ordersheet'!B236=\"\",\"\",'1. Ordersheet'!B236)","v":""},{"$f":"IF('1. Ordersheet'!I236=\"\",\"\",'1. Ordersheet'!I236)","v":""},{"$f":"IF('1. Ordersheet'!J236=\"\",\"\",'1. Ordersheet'!J236)","v":""},{"$f":"IF('1. Ordersheet'!K236=\"\",\"\",'1. Ordersheet'!K236)","v":""},{"$f":"IF('1. Ordersheet'!M236=\"\",\"\",'1. Ordersheet'!M236)","v":""},null,null,{"$f":"'1. Ordersheet'!AR236","v":0},{"$f":"IF('1. Ordersheet'!AE236=\"\",\"\",'1. Ordersheet'!AE236)","v":""}]
[{"$f":"IF('1. Ordersheet'!B237=\"\",\"\",'1. Ordersheet'!B237)","v":""},{"$f":"IF('1. Ordersheet'!I237=\"\",\"\",'1. Ordersheet'!I237)","v":""},{"$f":"IF('1. Ordersheet'!J237=\"\",\"\",'1. Ordersheet'!J237)","v":""},{"$f":"IF('1. Ordersheet'!K237=\"\",\"\",'1. Ordersheet'!K237)","v":""},{"$f":"IF('1. Ordersheet'!M237=\"\",\"\",'1. Ordersheet'!M237)","v":""},null,null,{"$f":"'1. Ordersheet'!AR237","v":0},{"$f":"IF('1. Ordersheet'!AE237=\"\",\"\",'1. Ordersheet'!AE237)","v":""}]
[{"$f":"IF('1. Ordersheet'!B238=\"\",\"\",'1. Ordersheet'!B238)","v":""},{"$f":"IF('1. Ordersheet'!I238=\"\",\"\",'1. Ordersheet'!I238)","v":""},{"$f":"IF('1. Ordersheet'!J238=\"\",\"\",'1. Ordersheet'!J238)","v":""},{"$f":"IF('1. Ordersheet'!K238=\"\",\"\",'1. Ordersheet'!K238)","v":""},{"$f":"IF('1. Ordersheet'!M238=\"\",\"\",'1. Ordersheet'!M238)","v":""},null,null,{"$f":"'1. Ordersheet'!AR238","v":0},{"$f":"IF('1. Ordersheet'!AE238=\"\",\"\",'1. Ordersheet'!AE238)","v":""}]
[{"$f":"IF('1. Ordersheet'!B239=\"\",\"\",'1. Ordersheet'!B239)","v":""},{"$f":"IF('1. Ordersheet'!I239=\"\",\"\",'1. Ordersheet'!I239)","v":""},{"$f":"IF('1. Ordersheet'!J239=\"\",\"\",'1. Ordersheet'!J239)","v":""},{"$f":"IF('1. Ordersheet'!K239=\"\",\"\",'1. Ordersheet'!K239)","v":""},{"$f":"IF('1. Ordersheet'!M239=\"\",\"\",'1. Ordersheet'!M239)","v":""},null,null,{"$f":"'1. Ordersheet'!AR239","v":0},{"$f":"IF('1. Ordersheet'!AE239=\"\",\"\",'1. Ordersheet'!AE239)","v":""}]
[{"$f":"IF('1. Ordersheet'!B240=\"\",\"\",'1. Ordersheet'!B240)","v":""},{"$f":"IF('1. Ordersheet'!I240=\"\",\"\",'1. Ordersheet'!I240)","v":""},{"$f":"IF('1. Ordersheet'!J240=\"\",\"\",'1. Ordersheet'!J240)","v":""},{"$f":"IF('1. Ordersheet'!K240=\"\",\"\",'1. Ordersheet'!K240)","v":""},{"$f":"IF('1. Ordersheet'!M240=\"\",\"\",'1. Ordersheet'!M240)","v":""},null,null,{"$f":"'1. Ordersheet'!AR240","v":0},{"$f":"IF('1. Ordersheet'!AE240=\"\",\"\",'1. Ordersheet'!AE240)","v":""}]
[{"$f":"IF('1. Ordersheet'!B241=\"\",\"\",'1. Ordersheet'!B241)","v":""},{"$f":"IF('1. Ordersheet'!I241=\"\",\"\",'1. Ordersheet'!I241)","v":""},{"$f":"IF('1. Ordersheet'!J241=\"\",\"\",'1. Ordersheet'!J241)","v":""},{"$f":"IF('1. Ordersheet'!K241=\"\",\"\",'1. Ordersheet'!K241)","v":""},{"$f":"IF('1. Ordersheet'!M241=\"\",\"\",'1. Ordersheet'!M241)","v":""},null,null,{"$f":"'1. Ordersheet'!AR241","v":0},{"$f":"IF('1. Ordersheet'!AE241=\"\",\"\",'1. Ordersheet'!AE241)","v":""}]
[{"$f":"IF('1. Ordersheet'!B242=\"\",\"\",'1. Ordersheet'!B242)","v":""},{"$f":"IF('1. Ordersheet'!I242=\"\",\"\",'1. Ordersheet'!I242)","v":""},{"$f":"IF('1. Ordersheet'!J242=\"\",\"\",'1. Ordersheet'!J242)","v":""},{"$f":"IF('1. Ordersheet'!K242=\"\",\"\",'1. Ordersheet'!K242)","v":""},{"$f":"IF('1. Ordersheet'!M242=\"\",\"\",'1. Ordersheet'!M242)","v":""},null,null,{"$f":"'1. Ordersheet'!AR242","v":0},{"$f":"IF('1. Ordersheet'!AE242=\"\",\"\",'1. Ordersheet'!AE242)","v":""}]
[{"$f":"IF('1. Ordersheet'!B243=\"\",\"\",'1. Ordersheet'!B243)","v":""},{"$f":"IF('1. Ordersheet'!I243=\"\",\"\",'1. Ordersheet'!I243)","v":""},{"$f":"IF('1. Ordersheet'!J243=\"\",\"\",'1. Ordersheet'!J243)","v":""},{"$f":"IF('1. Ordersheet'!K243=\"\",\"\",'1. Ordersheet'!K243)","v":""},{"$f":"IF('1. Ordersheet'!M243=\"\",\"\",'1. Ordersheet'!M243)","v":""},null,null,{"$f":"'1. Ordersheet'!AR243","v":0},{"$f":"IF('1. Ordersheet'!AE243=\"\",\"\",'1. Ordersheet'!AE243)","v":""}]
[{"$f":"IF('1. Ordersheet'!B244=\"\",\"\",'1. Ordersheet'!B244)","v":""},{"$f":"IF('1. Ordersheet'!I244=\"\",\"\",'1. Ordersheet'!I244)","v":""},{"$f":"IF('1. Ordersheet'!J244=\"\",\"\",'1. Ordersheet'!J244)","v":""},{"$f":"IF('1. Ordersheet'!K244=\"\",\"\",'1. Ordersheet'!K244)","v":""},{"$f":"IF('1. Ordersheet'!M244=\"\",\"\",'1. Ordersheet'!M244)","v":""},null,null,{"$f":"'1. Ordersheet'!AR244","v":0},{"$f":"IF('1. Ordersheet'!AE244=\"\",\"\",'1. Ordersheet'!AE244)","v":""}]
[{"$f":"IF('1. Ordersheet'!B245=\"\",\"\",'1. Ordersheet'!B245)","v":""},{"$f":"IF('1. Ordersheet'!I245=\"\",\"\",'1. Ordersheet'!I245)","v":""},{"$f":"IF('1. Ordersheet'!J245=\"\",\"\",'1. Ordersheet'!J245)","v":""},{"$f":"IF('1. Ordersheet'!K245=\"\",\"\",'1. Ordersheet'!K245)","v":""},{"$f":"IF('1. Ordersheet'!M245=\"\",\"\",'1. Ordersheet'!M245)","v":""},null,null,{"$f":"'1. Ordersheet'!AR245","v":0},{"$f":"IF('1. Ordersheet'!AE245=\"\",\"\",'1. Ordersheet'!AE245)","v":""}]
[{"$f":"IF('1. Ordersheet'!B246=\"\",\"\",'1. Ordersheet'!B246)","v":""},{"$f":"IF('1. Ordersheet'!I246=\"\",\"\",'1. Ordersheet'!I246)","v":""},{"$f":"IF('1. Ordersheet'!J246=\"\",\"\",'1. Ordersheet'!J246)","v":""},{"$f":"IF('1. Ordersheet'!K246=\"\",\"\",'1. Ordersheet'!K246)","v":""},{"$f":"IF('1. Ordersheet'!M246=\"\",\"\",'1. Ordersheet'!M246)","v":""},null,null,{"$f":"'1. Ordersheet'!AR246","v":0},{"$f":"IF('1. Ordersheet'!AE246=\"\",\"\",'1. Ordersheet'!AE246)","v":""}]
[{"$f":"IF('1. Ordersheet'!B247=\"\",\"\",'1. Ordersheet'!B247)","v":""},{"$f":"IF('1. Ordersheet'!I247=\"\",\"\",'1. Ordersheet'!I247)","v":""},{"$f":"IF('1. Ordersheet'!J247=\"\",\"\",'1. Ordersheet'!J247)","v":""},{"$f":"IF('1. Ordersheet'!K247=\"\",\"\",'1. Ordersheet'!K247)","v":""},{"$f":"IF('1. Ordersheet'!M247=\"\",\"\",'1. Ordersheet'!M247)","v":""},null,null,{"$f":"'1. Ordersheet'!AR247","v":0},{"$f":"IF('1. Ordersheet'!AE247=\"\",\"\",'1. Ordersheet'!AE247)","v":""}]
[{"$f":"IF('1. Ordersheet'!B248=\"\",\"\",'1. Ordersheet'!B248)","v":""},{"$f":"IF('1. Ordersheet'!I248=\"\",\"\",'1. Ordersheet'!I248)","v":""},{"$f":"IF('1. Ordersheet'!J248=\"\",\"\",'1. Ordersheet'!J248)","v":""},{"$f":"IF('1. Ordersheet'!K248=\"\",\"\",'1. Ordersheet'!K248)","v":""},{"$f":"IF('1. Ordersheet'!M248=\"\",\"\",'1. Ordersheet'!M248)","v":""},null,null,{"$f":"'1. Ordersheet'!AR248","v":0},{"$f":"IF('1. Ordersheet'!AE248=\"\",\"\",'1. Ordersheet'!AE248)","v":""}]
[{"$f":"IF('1. Ordersheet'!B249=\"\",\"\",'1. Ordersheet'!B249)","v":""},{"$f":"IF('1. Ordersheet'!I249=\"\",\"\",'1. Ordersheet'!I249)","v":""},{"$f":"IF('1. Ordersheet'!J249=\"\",\"\",'1. Ordersheet'!J249)","v":""},{"$f":"IF('1. Ordersheet'!K249=\"\",\"\",'1. Ordersheet'!K249)","v":""},{"$f":"IF('1. Ordersheet'!M249=\"\",\"\",'1. Ordersheet'!M249)","v":""},null,null,{"$f":"'1. Ordersheet'!AR249","v":0},{"$f":"IF('1. Ordersheet'!AE249=\"\",\"\",'1. Ordersheet'!AE249)","v":""}]
[{"$f":"IF('1. Ordersheet'!B250=\"\",\"\",'1. Ordersheet'!B250)","v":""},{"$f":"IF('1. Ordersheet'!I250=\"\",\"\",'1. Ordersheet'!I250)","v":""},{"$f":"IF('1. Ordersheet'!J250=\"\",\"\",'1. Ordersheet'!J250)","v":""},{"$f":"IF('1. Ordersheet'!K250=\"\",\"\",'1. Ordersheet'!K250)","v":""},{"$f":"IF('1. Ordersheet'!M250=\"\",\"\",'1. Ordersheet'!M250)","v":""},null,null,{"$f":"'1. Ordersheet'!AR250","v":0},{"$f":"IF('1. Ordersheet'!AE250=\"\",\"\",'1. Ordersheet'!AE250)","v":""}]
[{"$f":"IF('1. Ordersheet'!B251=\"\",\"\",'1. Ordersheet'!B251)","v":""},{"$f":"IF('1. Ordersheet'!I251=\"\",\"\",'1. Ordersheet'!I251)","v":""},{"$f":"IF('1. Ordersheet'!J251=\"\",\"\",'1. Ordersheet'!J251)","v":""},{"$f":"IF('1. Ordersheet'!K251=\"\",\"\",'1. Ordersheet'!K251)","v":""},{"$f":"IF('1. Ordersheet'!M251=\"\",\"\",'1. Ordersheet'!M251)","v":""},null,null,{"$f":"'1. Ordersheet'!AR251","v":0},{"$f":"IF('1. Ordersheet'!AE251=\"\",\"\",'1. Ordersheet'!AE251)","v":""}]
[{"$f":"IF('1. Ordersheet'!B252=\"\",\"\",'1. Ordersheet'!B252)","v":""},{"$f":"IF('1. Ordersheet'!I252=\"\",\"\",'1. Ordersheet'!I252)","v":""},{"$f":"IF('1. Ordersheet'!J252=\"\",\"\",'1. Ordersheet'!J252)","v":""},{"$f":"IF('1. Ordersheet'!K252=\"\",\"\",'1. Ordersheet'!K252)","v":""},{"$f":"IF('1. Ordersheet'!M252=\"\",\"\",'1. Ordersheet'!M252)","v":""},null,null,{"$f":"'1. Ordersheet'!AR252","v":0},{"$f":"IF('1. Ordersheet'!AE252=\"\",\"\",'1. Ordersheet'!AE252)","v":""}]
[{"$f":"IF('1. Ordersheet'!B253=\"\",\"\",'1. Ordersheet'!B253)","v":""},{"$f":"IF('1. Ordersheet'!I253=\"\",\"\",'1. Ordersheet'!I253)","v":""},{"$f":"IF('1. Ordersheet'!J253=\"\",\"\",'1. Ordersheet'!J253)","v":""},{"$f":"IF('1. Ordersheet'!K253=\"\",\"\",'1. Ordersheet'!K253)","v":""},{"$f":"IF('1. Ordersheet'!M253=\"\",\"\",'1. Ordersheet'!M253)","v":""},null,null,{"$f":"'1. Ordersheet'!AR253","v":0},{"$f":"IF('1. Ordersheet'!AE253=\"\",\"\",'1. Ordersheet'!AE253)","v":""}]
[{"$f":"IF('1. Ordersheet'!B254=\"\",\"\",'1. Ordersheet'!B254)","v":""},{"$f":"IF('1. Ordersheet'!I254=\"\",\"\",'1. Ordersheet'!I254)","v":""},{"$f":"IF('1. Ordersheet'!J254=\"\",\"\",'1. Ordersheet'!J254)","v":""},{"$f":"IF('1. Ordersheet'!K254=\"\",\"\",'1. Ordersheet'!K254)","v":""},{"$f":"IF('1. Ordersheet'!M254=\"\",\"\",'1. Ordersheet'!M254)","v":""},null,null,{"$f":"'1. Ordersheet'!AR254","v":0},{"$f":"IF('1. Ordersheet'!AE254=\"\",\"\",'1. Ordersheet'!AE254)","v":""}]
[{"$f":"IF('1. Ordersheet'!B255=\"\",\"\",'1. Ordersheet'!B255)","v":""},{"$f":"IF('1. Ordersheet'!I255=\"\",\"\",'1. Ordersheet'!I255)","v":""},{"$f":"IF('1. Ordersheet'!J255=\"\",\"\",'1. Ordersheet'!J255)","v":""},{"$f":"IF('1. Ordersheet'!K255=\"\",\"\",'1. Ordersheet'!K255)","v":""},{"$f":"IF('1. Ordersheet'!M255=\"\",\"\",'1. Ordersheet'!M255)","v":""},null,null,{"$f":"'1. Ordersheet'!AR255","v":0},{"$f":"IF('1. Ordersheet'!AE255=\"\",\"\",'1. Ordersheet'!AE255)","v":""}]
[{"$f":"IF('1. Ordersheet'!B256=\"\",\"\",'1. Ordersheet'!B256)","v":""},{"$f":"IF('1. Ordersheet'!I256=\"\",\"\",'1. Ordersheet'!I256)","v":""},{"$f":"IF('1. Ordersheet'!J256=\"\",\"\",'1. Ordersheet'!J256)","v":""},{"$f":"IF('1. Ordersheet'!K256=\"\",\"\",'1. Ordersheet'!K256)","v":""},{"$f":"IF('1. Ordersheet'!M256=\"\",\"\",'1. Ordersheet'!M256)","v":""},null,null,{"$f":"'1. Ordersheet'!AR256","v":0},{"$f":"IF('1. Ordersheet'!AE256=\"\",\"\",'1. Ordersheet'!AE256)","v":""}]
[{"$f":"IF('1. Ordersheet'!B257=\"\",\"\",'1. Ordersheet'!B257)","v":""},{"$f":"IF('1. Ordersheet'!I257=\"\",\"\",'1. Ordersheet'!I257)","v":""},{"$f":"IF('1. Ordersheet'!J257=\"\",\"\",'1. Ordersheet'!J257)","v":""},{"$f":"IF('1. Ordersheet'!K257=\"\",\"\",'1. Ordersheet'!K257)","v":""},{"$f":"IF('1. Ordersheet'!M257=\"\",\"\",'1. Ordersheet'!M257)","v":""},null,null,{"$f":"'1. Ordersheet'!AR257","v":0},{"$f":"IF('1. Ordersheet'!AE257=\"\",\"\",'1. Ordersheet'!AE257)","v":""}]
[{"$f":"IF('1. Ordersheet'!B258=\"\",\"\",'1. Ordersheet'!B258)","v":""},{"$f":"IF('1. Ordersheet'!I258=\"\",\"\",'1. Ordersheet'!I258)","v":""},{"$f":"IF('1. Ordersheet'!J258=\"\",\"\",'1. Ordersheet'!J258)","v":""},{"$f":"IF('1. Ordersheet'!K258=\"\",\"\",'1. Ordersheet'!K258)","v":""},{"$f":"IF('1. Ordersheet'!M258=\"\",\"\",'1. Ordersheet'!M258)","v":""},null,null,{"$f":"'1. Ordersheet'!AR258","v":0},{"$f":"IF('1. Ordersheet'!AE258=\"\",\"\",'1. Ordersheet'!AE258)","v":""}]
[{"$f":"IF('1. Ordersheet'!B259=\"\",\"\",'1. Ordersheet'!B259)","v":""},{"$f":"IF('1. Ordersheet'!I259=\"\",\"\",'1. Ordersheet'!I259)","v":""},{"$f":"IF('1. Ordersheet'!J259=\"\",\"\",'1. Ordersheet'!J259)","v":""},{"$f":"IF('1. Ordersheet'!K259=\"\",\"\",'1. Ordersheet'!K259)","v":""},{"$f":"IF('1. Ordersheet'!M259=\"\",\"\",'1. Ordersheet'!M259)","v":""},null,null,{"$f":"'1. Ordersheet'!AR259","v":0},{"$f":"IF('1. Ordersheet'!AE259=\"\",\"\",'1. Ordersheet'!AE259)","v":""}]
[{"$f":"IF('1. Ordersheet'!B260=\"\",\"\",'1. Ordersheet'!B260)","v":""},{"$f":"IF('1. Ordersheet'!I260=\"\",\"\",'1. Ordersheet'!I260)","v":""},{"$f":"IF('1. Ordersheet'!J260=\"\",\"\",'1. Ordersheet'!J260)","v":""},{"$f":"IF('1. Ordersheet'!K260=\"\",\"\",'1. Ordersheet'!K260)","v":""},{"$f":"IF('1. Ordersheet'!M260=\"\",\"\",'1. Ordersheet'!M260)","v":""},null,null,{"$f":"'1. Ordersheet'!AR260","v":0},{"$f":"IF('1. Ordersheet'!AE260=\"\",\"\",'1. Ordersheet'!AE260)","v":""}]
[{"$f":"IF('1. Ordersheet'!B261=\"\",\"\",'1. Ordersheet'!B261)","v":""},{"$f":"IF('1. Ordersheet'!I261=\"\",\"\",'1. Ordersheet'!I261)","v":""},{"$f":"IF('1. Ordersheet'!J261=\"\",\"\",'1. Ordersheet'!J261)","v":""},{"$f":"IF('1. Ordersheet'!K261=\"\",\"\",'1. Ordersheet'!K261)","v":""},{"$f":"IF('1. Ordersheet'!M261=\"\",\"\",'1. Ordersheet'!M261)","v":""},null,null,{"$f":"'1. Ordersheet'!AR261","v":0},{"$f":"IF('1. Ordersheet'!AE261=\"\",\"\",'1. Ordersheet'!AE261)","v":""}]
[{"$f":"IF('1. Ordersheet'!B262=\"\",\"\",'1. Ordersheet'!B262)","v":""},{"$f":"IF('1. Ordersheet'!I262=\"\",\"\",'1. Ordersheet'!I262)","v":""},{"$f":"IF('1. Ordersheet'!J262=\"\",\"\",'1. Ordersheet'!J262)","v":""},{"$f":"IF('1. Ordersheet'!K262=\"\",\"\",'1. Ordersheet'!K262)","v":""},{"$f":"IF('1. Ordersheet'!M262=\"\",\"\",'1. Ordersheet'!M262)","v":""},null,null,{"$f":"'1. Ordersheet'!AR262","v":0},{"$f":"IF('1. Ordersheet'!AE262=\"\",\"\",'1. Ordersheet'!AE262)","v":""}]
[{"$f":"IF('1. Ordersheet'!B263=\"\",\"\",'1. Ordersheet'!B263)","v":""},{"$f":"IF('1. Ordersheet'!I263=\"\",\"\",'1. Ordersheet'!I263)","v":""},{"$f":"IF('1. Ordersheet'!J263=\"\",\"\",'1. Ordersheet'!J263)","v":""},{"$f":"IF('1. Ordersheet'!K263=\"\",\"\",'1. Ordersheet'!K263)","v":""},{"$f":"IF('1. Ordersheet'!M263=\"\",\"\",'1. Ordersheet'!M263)","v":""},null,null,{"$f":"'1. Ordersheet'!AR263","v":0},{"$f":"IF('1. Ordersheet'!AE263=\"\",\"\",'1. Ordersheet'!AE263)","v":""}]
[{"$f":"IF('1. Ordersheet'!B264=\"\",\"\",'1. Ordersheet'!B264)","v":""},{"$f":"IF('1. Ordersheet'!I264=\"\",\"\",'1. Ordersheet'!I264)","v":""},{"$f":"IF('1. Ordersheet'!J264=\"\",\"\",'1. Ordersheet'!J264)","v":""},{"$f":"IF('1. Ordersheet'!K264=\"\",\"\",'1. Ordersheet'!K264)","v":""},{"$f":"IF('1. Ordersheet'!M264=\"\",\"\",'1. Ordersheet'!M264)","v":""},null,null,{"$f":"'1. Ordersheet'!AR264","v":0},{"$f":"IF('1. Ordersheet'!AE264=\"\",\"\",'1. Ordersheet'!AE264)","v":""}]
[{"$f":"IF('1. Ordersheet'!B265=\"\",\"\",'1. Ordersheet'!B265)","v":""},{"$f":"IF('1. Ordersheet'!I265=\"\",\"\",'1. Ordersheet'!I265)","v":""},{"$f":"IF('1. Ordersheet'!J265=\"\",\"\",'1. Ordersheet'!J265)","v":""},{"$f":"IF('1. Ordersheet'!K265=\"\",\"\",'1. Ordersheet'!K265)","v":""},{"$f":"IF('1. Ordersheet'!M265=\"\",\"\",'1. Ordersheet'!M265)","v":""},null,null,{"$f":"'1. Ordersheet'!AR265","v":0},{"$f":"IF('1. Ordersheet'!AE265=\"\",\"\",'1. Ordersheet'!AE265)","v":""}]
[{"$f":"IF('1. Ordersheet'!B266=\"\",\"\",'1. Ordersheet'!B266)","v":""},{"$f":"IF('1. Ordersheet'!I266=\"\",\"\",'1. Ordersheet'!I266)","v":""},{"$f":"IF('1. Ordersheet'!J266=\"\",\"\",'1. Ordersheet'!J266)","v":""},{"$f":"IF('1. Ordersheet'!K266=\"\",\"\",'1. Ordersheet'!K266)","v":""},{"$f":"IF('1. Ordersheet'!M266=\"\",\"\",'1. Ordersheet'!M266)","v":""},null,null,{"$f":"'1. Ordersheet'!AR266","v":0},{"$f":"IF('1. Ordersheet'!AE266=\"\",\"\",'1. Ordersheet'!AE266)","v":""}]
[{"$f":"IF('1. Ordersheet'!B267=\"\",\"\",'1. Ordersheet'!B267)","v":""},{"$f":"IF('1. Ordersheet'!I267=\"\",\"\",'1. Ordersheet'!I267)","v":""},{"$f":"IF('1. Ordersheet'!J267=\"\",\"\",'1. Ordersheet'!J267)","v":""},{"$f":"IF('1. Ordersheet'!K267=\"\",\"\",'1. Ordersheet'!K267)","v":""},{"$f":"IF('1. Ordersheet'!M267=\"\",\"\",'1. Ordersheet'!M267)","v":""},null,null,{"$f":"'1. Ordersheet'!AR267","v":0},{"$f":"IF('1. Ordersheet'!AE267=\"\",\"\",'1. Ordersheet'!AE267)","v":""}]
[{"$f":"IF('1. Ordersheet'!B268=\"\",\"\",'1. Ordersheet'!B268)","v":""},{"$f":"IF('1. Ordersheet'!I268=\"\",\"\",'1. Ordersheet'!I268)","v":""},{"$f":"IF('1. Ordersheet'!J268=\"\",\"\",'1. Ordersheet'!J268)","v":""},{"$f":"IF('1. Ordersheet'!K268=\"\",\"\",'1. Ordersheet'!K268)","v":""},{"$f":"IF('1. Ordersheet'!M268=\"\",\"\",'1. Ordersheet'!M268)","v":""},null,null,{"$f":"'1. Ordersheet'!AR268","v":0},{"$f":"IF('1. Ordersheet'!AE268=\"\",\"\",'1. Ordersheet'!AE268)","v":""}]
[{"$f":"IF('1. Ordersheet'!B269=\"\",\"\",'1. Ordersheet'!B269)","v":""},{"$f":"IF('1. Ordersheet'!I269=\"\",\"\",'1. Ordersheet'!I269)","v":""},{"$f":"IF('1. Ordersheet'!J269=\"\",\"\",'1. Ordersheet'!J269)","v":""},{"$f":"IF('1. Ordersheet'!K269=\"\",\"\",'1. Ordersheet'!K269)","v":""},{"$f":"IF('1. Ordersheet'!M269=\"\",\"\",'1. Ordersheet'!M269)","v":""},null,null,{"$f":"'1. Ordersheet'!AR269","v":0},{"$f":"IF('1. Ordersheet'!AE269=\"\",\"\",'1. Ordersheet'!AE269)","v":""}]
[{"$f":"IF('1. Ordersheet'!B270=\"\",\"\",'1. Ordersheet'!B270)","v":""},{"$f":"IF('1. Ordersheet'!I270=\"\",\"\",'1. Ordersheet'!I270)","v":""},{"$f":"IF('1. Ordersheet'!J270=\"\",\"\",'1. Ordersheet'!J270)","v":""},{"$f":"IF('1. Ordersheet'!K270=\"\",\"\",'1. Ordersheet'!K270)","v":""},{"$f":"IF('1. Ordersheet'!M270=\"\",\"\",'1. Ordersheet'!M270)","v":""},null,null,{"$f":"'1. Ordersheet'!AR270","v":0},{"$f":"IF('1. Ordersheet'!AE270=\"\",\"\",'1. Ordersheet'!AE270)","v":""}]
[{"$f":"IF('1. Ordersheet'!B271=\"\",\"\",'1. Ordersheet'!B271)","v":""},{"$f":"IF('1. Ordersheet'!I271=\"\",\"\",'1. Ordersheet'!I271)","v":""},{"$f":"IF('1. Ordersheet'!J271=\"\",\"\",'1. Ordersheet'!J271)","v":""},{"$f":"IF('1. Ordersheet'!K271=\"\",\"\",'1. Ordersheet'!K271)","v":""},{"$f":"IF('1. Ordersheet'!M271=\"\",\"\",'1. Ordersheet'!M271)","v":""},null,null,{"$f":"'1. Ordersheet'!AR271","v":0},{"$f":"IF('1. Ordersheet'!AE271=\"\",\"\",'1. Ordersheet'!AE271)","v":""}]
[{"$f":"IF('1. Ordersheet'!B272=\"\",\"\",'1. Ordersheet'!B272)","v":""},{"$f":"IF('1. Ordersheet'!I272=\"\",\"\",'1. Ordersheet'!I272)","v":""},{"$f":"IF('1. Ordersheet'!J272=\"\",\"\",'1. Ordersheet'!J272)","v":""},{"$f":"IF('1. Ordersheet'!K272=\"\",\"\",'1. Ordersheet'!K272)","v":""},{"$f":"IF('1. Ordersheet'!M272=\"\",\"\",'1. Ordersheet'!M272)","v":""},null,null,{"$f":"'1. Ordersheet'!AR272","v":0},{"$f":"IF('1. Ordersheet'!AE272=\"\",\"\",'1. Ordersheet'!AE272)","v":""}]
[{"$f":"IF('1. Ordersheet'!B273=\"\",\"\",'1. Ordersheet'!B273)","v":""},{"$f":"IF('1. Ordersheet'!I273=\"\",\"\",'1. Ordersheet'!I273)","v":""},{"$f":"IF('1. Ordersheet'!J273=\"\",\"\",'1. Ordersheet'!J273)","v":""},{"$f":"IF('1. Ordersheet'!K273=\"\",\"\",'1. Ordersheet'!K273)","v":""},{"$f":"IF('1. Ordersheet'!M273=\"\",\"\",'1. Ordersheet'!M273)","v":""},null,null,{"$f":"'1. Ordersheet'!AR273","v":0},{"$f":"IF('1. Ordersheet'!AE273=\"\",\"\",'1. Ordersheet'!AE273)","v":""}]
[{"$f":"IF('1. Ordersheet'!B274=\"\",\"\",'1. Ordersheet'!B274)","v":""},{"$f":"IF('1. Ordersheet'!I274=\"\",\"\",'1. Ordersheet'!I274)","v":""},{"$f":"IF('1. Ordersheet'!J274=\"\",\"\",'1. Ordersheet'!J274)","v":""},{"$f":"IF('1. Ordersheet'!K274=\"\",\"\",'1. Ordersheet'!K274)","v":""},{"$f":"IF('1. Ordersheet'!M274=\"\",\"\",'1. Ordersheet'!M274)","v":""},null,null,{"$f":"'1. Ordersheet'!AR274","v":0},{"$f":"IF('1. Ordersheet'!AE274=\"\",\"\",'1. Ordersheet'!AE274)","v":""}]
[{"$f":"IF('1. Ordersheet'!B275=\"\",\"\",'1. Ordersheet'!B275)","v":""},{"$f":"IF('1. Ordersheet'!I275=\"\",\"\",'1. Ordersheet'!I275)","v":""},{"$f":"IF('1. Ordersheet'!J275=\"\",\"\",'1. Ordersheet'!J275)","v":""},{"$f":"IF('1. Ordersheet'!K275=\"\",\"\",'1. Ordersheet'!K275)","v":""},{"$f":"IF('1. Ordersheet'!M275=\"\",\"\",'1. Ordersheet'!M275)","v":""},null,null,{"$f":"'1. Ordersheet'!AR275","v":0},{"$f":"IF('1. Ordersheet'!AE275=\"\",\"\",'1. Ordersheet'!AE275)","v":""}]
[{"$f":"IF('1. Ordersheet'!B276=\"\",\"\",'1. Ordersheet'!B276)","v":""},{"$f":"IF('1. Ordersheet'!I276=\"\",\"\",'1. Ordersheet'!I276)","v":""},{"$f":"IF('1. Ordersheet'!J276=\"\",\"\",'1. Ordersheet'!J276)","v":""},{"$f":"IF('1. Ordersheet'!K276=\"\",\"\",'1. Ordersheet'!K276)","v":""},{"$f":"IF('1. Ordersheet'!M276=\"\",\"\",'1. Ordersheet'!M276)","v":""},null,null,{"$f":"'1. Ordersheet'!AR276","v":0},{"$f":"IF('1. Ordersheet'!AE276=\"\",\"\",'1. Ordersheet'!AE276)","v":""}]
[{"$f":"IF('1. Ordersheet'!B277=\"\",\"\",'1. Ordersheet'!B277)","v":""},{"$f":"IF('1. Ordersheet'!I277=\"\",\"\",'1. Ordersheet'!I277)","v":""},{"$f":"IF('1. Ordersheet'!J277=\"\",\"\",'1. Ordersheet'!J277)","v":""},{"$f":"IF('1. Ordersheet'!K277=\"\",\"\",'1. Ordersheet'!K277)","v":""},{"$f":"IF('1. Ordersheet'!M277=\"\",\"\",'1. Ordersheet'!M277)","v":""},null,null,{"$f":"'1. Ordersheet'!AR277","v":0},{"$f":"IF('1. Ordersheet'!AE277=\"\",\"\",'1. Ordersheet'!AE277)","v":""}]
[{"$f":"IF('1. Ordersheet'!B278=\"\",\"\",'1. Ordersheet'!B278)","v":""},{"$f":"IF('1. Ordersheet'!I278=\"\",\"\",'1. Ordersheet'!I278)","v":""},{"$f":"IF('1. Ordersheet'!J278=\"\",\"\",'1. Ordersheet'!J278)","v":""},{"$f":"IF('1. Ordersheet'!K278=\"\",\"\",'1. Ordersheet'!K278)","v":""},{"$f":"IF('1. Ordersheet'!M278=\"\",\"\",'1. Ordersheet'!M278)","v":""},null,null,{"$f":"'1. Ordersheet'!AR278","v":0},{"$f":"IF('1. Ordersheet'!AE278=\"\",\"\",'1. Ordersheet'!AE278)","v":""}]
[{"$f":"IF('1. Ordersheet'!B279=\"\",\"\",'1. Ordersheet'!B279)","v":""},{"$f":"IF('1. Ordersheet'!I279=\"\",\"\",'1. Ordersheet'!I279)","v":""},{"$f":"IF('1. Ordersheet'!J279=\"\",\"\",'1. Ordersheet'!J279)","v":""},{"$f":"IF('1. Ordersheet'!K279=\"\",\"\",'1. Ordersheet'!K279)","v":""},{"$f":"IF('1. Ordersheet'!M279=\"\",\"\",'1. Ordersheet'!M279)","v":""},null,null,{"$f":"'1. Ordersheet'!AR279","v":0},{"$f":"IF('1. Ordersheet'!AE279=\"\",\"\",'1. Ordersheet'!AE279)","v":""}]
[{"$f":"IF('1. Ordersheet'!B280=\"\",\"\",'1. Ordersheet'!B280)","v":""},{"$f":"IF('1. Ordersheet'!I280=\"\",\"\",'1. Ordersheet'!I280)","v":""},{"$f":"IF('1. Ordersheet'!J280=\"\",\"\",'1. Ordersheet'!J280)","v":""},{"$f":"IF('1. Ordersheet'!K280=\"\",\"\",'1. Ordersheet'!K280)","v":""},{"$f":"IF('1. Ordersheet'!M280=\"\",\"\",'1. Ordersheet'!M280)","v":""},null,null,{"$f":"'1. Ordersheet'!AR280","v":0},{"$f":"IF('1. Ordersheet'!AE280=\"\",\"\",'1. Ordersheet'!AE280)","v":""}]
[{"$f":"IF('1. Ordersheet'!B281=\"\",\"\",'1. Ordersheet'!B281)","v":""},{"$f":"IF('1. Ordersheet'!I281=\"\",\"\",'1. Ordersheet'!I281)","v":""},{"$f":"IF('1. Ordersheet'!J281=\"\",\"\",'1. Ordersheet'!J281)","v":""},{"$f":"IF('1. Ordersheet'!K281=\"\",\"\",'1. Ordersheet'!K281)","v":""},{"$f":"IF('1. Ordersheet'!M281=\"\",\"\",'1. Ordersheet'!M281)","v":""},null,null,{"$f":"'1. Ordersheet'!AR281","v":0},{"$f":"IF('1. Ordersheet'!AE281=\"\",\"\",'1. Ordersheet'!AE281)","v":""}]
[{"$f":"IF('1. Ordersheet'!B282=\"\",\"\",'1. Ordersheet'!B282)","v":""},{"$f":"IF('1. Ordersheet'!I282=\"\",\"\",'1. Ordersheet'!I282)","v":""},{"$f":"IF('1. Ordersheet'!J282=\"\",\"\",'1. Ordersheet'!J282)","v":""},{"$f":"IF('1. Ordersheet'!K282=\"\",\"\",'1. Ordersheet'!K282)","v":""},{"$f":"IF('1. Ordersheet'!M282=\"\",\"\",'1. Ordersheet'!M282)","v":""},null,null,{"$f":"'1. Ordersheet'!AR282","v":0},{"$f":"IF('1. Ordersheet'!AE282=\"\",\"\",'1. Ordersheet'!AE282)","v":""}]
[{"$f":"IF('1. Ordersheet'!B283=\"\",\"\",'1. Ordersheet'!B283)","v":""},{"$f":"IF('1. Ordersheet'!I283=\"\",\"\",'1. Ordersheet'!I283)","v":""},{"$f":"IF('1. Ordersheet'!J283=\"\",\"\",'1. Ordersheet'!J283)","v":""},{"$f":"IF('1. Ordersheet'!K283=\"\",\"\",'1. Ordersheet'!K283)","v":""},{"$f":"IF('1. Ordersheet'!M283=\"\",\"\",'1. Ordersheet'!M283)","v":""},null,null,{"$f":"'1. Ordersheet'!AR283","v":0},{"$f":"IF('1. Ordersheet'!AE283=\"\",\"\",'1. Ordersheet'!AE283)","v":""}]
[{"$f":"IF('1. Ordersheet'!B284=\"\",\"\",'1. Ordersheet'!B284)","v":""},{"$f":"IF('1. Ordersheet'!I284=\"\",\"\",'1. Ordersheet'!I284)","v":""},{"$f":"IF('1. Ordersheet'!J284=\"\",\"\",'1. Ordersheet'!J284)","v":""},{"$f":"IF('1. Ordersheet'!K284=\"\",\"\",'1. Ordersheet'!K284)","v":""},{"$f":"IF('1. Ordersheet'!M284=\"\",\"\",'1. Ordersheet'!M284)","v":""},null,null,{"$f":"'1. Ordersheet'!AR284","v":0},{"$f":"IF('1. Ordersheet'!AE284=\"\",\"\",'1. Ordersheet'!AE284)","v":""}]
[{"$f":"IF('1. Ordersheet'!B285=\"\",\"\",'1. Ordersheet'!B285)","v":""},{"$f":"IF('1. Ordersheet'!I285=\"\",\"\",'1. Ordersheet'!I285)","v":""},{"$f":"IF('1. Ordersheet'!J285=\"\",\"\",'1. Ordersheet'!J285)","v":""},{"$f":"IF('1. Ordersheet'!K285=\"\",\"\",'1. Ordersheet'!K285)","v":""},{"$f":"IF('1. Ordersheet'!M285=\"\",\"\",'1. Ordersheet'!M285)","v":""},null,null,{"$f":"'1. Ordersheet'!AR285","v":0},{"$f":"IF('1. Ordersheet'!AE285=\"\",\"\",'1. Ordersheet'!AE285)","v":""}]
[{"$f":"IF('1. Ordersheet'!B286=\"\",\"\",'1. Ordersheet'!B286)","v":""},{"$f":"IF('1. Ordersheet'!I286=\"\",\"\",'1. Ordersheet'!I286)","v":""},{"$f":"IF('1. Ordersheet'!J286=\"\",\"\",'1. Ordersheet'!J286)","v":""},{"$f":"IF('1. Ordersheet'!K286=\"\",\"\",'1. Ordersheet'!K286)","v":""},{"$f":"IF('1. Ordersheet'!M286=\"\",\"\",'1. Ordersheet'!M286)","v":""},null,null,{"$f":"'1. Ordersheet'!AR286","v":0},{"$f":"IF('1. Ordersheet'!AE286=\"\",\"\",'1. Ordersheet'!AE286)","v":""}]
[{"$f":"IF('1. Ordersheet'!B287=\"\",\"\",'1. Ordersheet'!B287)","v":""},{"$f":"IF('1. Ordersheet'!I287=\"\",\"\",'1. Ordersheet'!I287)","v":""},{"$f":"IF('1. Ordersheet'!J287=\"\",\"\",'1. Ordersheet'!J287)","v":""},{"$f":"IF('1. Ordersheet'!K287=\"\",\"\",'1. Ordersheet'!K287)","v":""},{"$f":"IF('1. Ordersheet'!M287=\"\",\"\",'1. Ordersheet'!M287)","v":""},null,null,{"$f":"'1. Ordersheet'!AR287","v":0},{"$f":"IF('1. Ordersheet'!AE287=\"\",\"\",'1. Ordersheet'!AE287)","v":""}]
[{"$f":"IF('1. Ordersheet'!B288=\"\",\"\",'1. Ordersheet'!B288)","v":""},{"$f":"IF('1. Ordersheet'!I288=\"\",\"\",'1. Ordersheet'!I288)","v":""},{"$f":"IF('1. Ordersheet'!J288=\"\",\"\",'1. Ordersheet'!J288)","v":""},{"$f":"IF('1. Ordersheet'!K288=\"\",\"\",'1. Ordersheet'!K288)","v":""},{"$f":"IF('1. Ordersheet'!M288=\"\",\"\",'1. Ordersheet'!M288)","v":""},null,null,{"$f":"'1. Ordersheet'!AR288","v":0},{"$f":"IF('1. Ordersheet'!AE288=\"\",\"\",'1. Ordersheet'!AE288)","v":""}]
[{"$f":"IF('1. Ordersheet'!B289=\"\",\"\",'1. Ordersheet'!B289)","v":""},{"$f":"IF('1. Ordersheet'!I289=\"\",\"\",'1. Ordersheet'!I289)","v":""},{"$f":"IF('1. Ordersheet'!J289=\"\",\"\",'1. Ordersheet'!J289)","v":""},{"$f":"IF('1. Ordersheet'!K289=\"\",\"\",'1. Ordersheet'!K289)","v":""},{"$f":"IF('1. Ordersheet'!M289=\"\",\"\",'1. Ordersheet'!M289)","v":""},null,null,{"$f":"'1. Ordersheet'!AR289","v":0},{"$f":"IF('1. Ordersheet'!AE289=\"\",\"\",'1. Ordersheet'!AE289)","v":""}]
[{"$f":"IF('1. Ordersheet'!B290=\"\",\"\",'1. Ordersheet'!B290)","v":""},{"$f":"IF('1. Ordersheet'!I290=\"\",\"\",'1. Ordersheet'!I290)","v":""},{"$f":"IF('1. Ordersheet'!J290=\"\",\"\",'1. Ordersheet'!J290)","v":""},{"$f":"IF('1. Ordersheet'!K290=\"\",\"\",'1. Ordersheet'!K290)","v":""},{"$f":"IF('1. Ordersheet'!M290=\"\",\"\",'1. Ordersheet'!M290)","v":""},null,null,{"$f":"'1. Ordersheet'!AR290","v":0},{"$f":"IF('1. Ordersheet'!AE290=\"\",\"\",'1. Ordersheet'!AE290)","v":""}]
[{"$f":"IF('1. Ordersheet'!B291=\"\",\"\",'1. Ordersheet'!B291)","v":""},{"$f":"IF('1. Ordersheet'!I291=\"\",\"\",'1. Ordersheet'!I291)","v":""},{"$f":"IF('1. Ordersheet'!J291=\"\",\"\",'1. Ordersheet'!J291)","v":""},{"$f":"IF('1. Ordersheet'!K291=\"\",\"\",'1. Ordersheet'!K291)","v":""},{"$f":"IF('1. Ordersheet'!M291=\"\",\"\",'1. Ordersheet'!M291)","v":""},null,null,{"$f":"'1. Ordersheet'!AR291","v":0},{"$f":"IF('1. Ordersheet'!AE291=\"\",\"\",'1. Ordersheet'!AE291)","v":""}]
[{"$f":"IF('1. Ordersheet'!B292=\"\",\"\",'1. Ordersheet'!B292)","v":""},{"$f":"IF('1. Ordersheet'!I292=\"\",\"\",'1. Ordersheet'!I292)","v":""},{"$f":"IF('1. Ordersheet'!J292=\"\",\"\",'1. Ordersheet'!J292)","v":""},{"$f":"IF('1. Ordersheet'!K292=\"\",\"\",'1. Ordersheet'!K292)","v":""},{"$f":"IF('1. Ordersheet'!M292=\"\",\"\",'1. Ordersheet'!M292)","v":""},null,null,{"$f":"'1. Ordersheet'!AR292","v":0},{"$f":"IF('1. Ordersheet'!AE292=\"\",\"\",'1. Ordersheet'!AE292)","v":""}]
[{"$f":"IF('1. Ordersheet'!B293=\"\",\"\",'1. Ordersheet'!B293)","v":""},{"$f":"IF('1. Ordersheet'!I293=\"\",\"\",'1. Ordersheet'!I293)","v":""},{"$f":"IF('1. Ordersheet'!J293=\"\",\"\",'1. Ordersheet'!J293)","v":""},{"$f":"IF('1. Ordersheet'!K293=\"\",\"\",'1. Ordersheet'!K293)","v":""},{"$f":"IF('1. Ordersheet'!M293=\"\",\"\",'1. Ordersheet'!M293)","v":""},null,null,{"$f":"'1. Ordersheet'!AR293","v":0},{"$f":"IF('1. Ordersheet'!AE293=\"\",\"\",'1. Ordersheet'!AE293)","v":""}]
[{"$f":"IF('1. Ordersheet'!B294=\"\",\"\",'1. Ordersheet'!B294)","v":""},{"$f":"IF('1. Ordersheet'!I294=\"\",\"\",'1. Ordersheet'!I294)","v":""},{"$f":"IF('1. Ordersheet'!J294=\"\",\"\",'1. Ordersheet'!J294)","v":""},{"$f":"IF('1. Ordersheet'!K294=\"\",\"\",'1. Ordersheet'!K294)","v":""},{"$f":"IF('1. Ordersheet'!M294=\"\",\"\",'1. Ordersheet'!M294)","v":""},null,null,{"$f":"'1. Ordersheet'!AR294","v":0},{"$f":"IF('1. Ordersheet'!AE294=\"\",\"\",'1. Ordersheet'!AE294)","v":""}]
[{"$f":"IF('1. Ordersheet'!B295=\"\",\"\",'1. Ordersheet'!B295)","v":""},{"$f":"IF('1. Ordersheet'!I295=\"\",\"\",'1. Ordersheet'!I295)","v":""},{"$f":"IF('1. Ordersheet'!J295=\"\",\"\",'1. Ordersheet'!J295)","v":""},{"$f":"IF('1. Ordersheet'!K295=\"\",\"\",'1. Ordersheet'!K295)","v":""},{"$f":"IF('1. Ordersheet'!M295=\"\",\"\",'1. Ordersheet'!M295)","v":""},null,null,{"$f":"'1. Ordersheet'!AR295","v":0},{"$f":"IF('1. Ordersheet'!AE295=\"\",\"\",'1. Ordersheet'!AE295)","v":""}]
[{"$f":"IF('1. Ordersheet'!B296=\"\",\"\",'1. Ordersheet'!B296)","v":""},{"$f":"IF('1. Ordersheet'!I296=\"\",\"\",'1. Ordersheet'!I296)","v":""},{"$f":"IF('1. Ordersheet'!J296=\"\",\"\",'1. Ordersheet'!J296)","v":""},{"$f":"IF('1. Ordersheet'!K296=\"\",\"\",'1. Ordersheet'!K296)","v":""},{"$f":"IF('1. Ordersheet'!M296=\"\",\"\",'1. Ordersheet'!M296)","v":""},null,null,{"$f":"'1. Ordersheet'!AR296","v":0},{"$f":"IF('1. Ordersheet'!AE296=\"\",\"\",'1. Ordersheet'!AE296)","v":""}]
[{"$f":"IF('1. Ordersheet'!B297=\"\",\"\",'1. Ordersheet'!B297)","v":""},{"$f":"IF('1. Ordersheet'!I297=\"\",\"\",'1. Ordersheet'!I297)","v":""},{"$f":"IF('1. Ordersheet'!J297=\"\",\"\",'1. Ordersheet'!J297)","v":""},{"$f":"IF('1. Ordersheet'!K297=\"\",\"\",'1. Ordersheet'!K297)","v":""},{"$f":"IF('1. Ordersheet'!M297=\"\",\"\",'1. Ordersheet'!M297)","v":""},null,null,{"$f":"'1. Ordersheet'!AR297","v":0},{"$f":"IF('1. Ordersheet'!AE297=\"\",\"\",'1. Ordersheet'!AE297)","v":""}]
[{"$f":"IF('1. Ordersheet'!B298=\"\",\"\",'1. Ordersheet'!B298)","v":""},{"$f":"IF('1. Ordersheet'!I298=\"\",\"\",'1. Ordersheet'!I298)","v":""},{"$f":"IF('1. Ordersheet'!J298=\"\",\"\",'1. Ordersheet'!J298)","v":""},{"$f":"IF('1. Ordersheet'!K298=\"\",\"\",'1. Ordersheet'!K298)","v":""},{"$f":"IF('1. Ordersheet'!M298=\"\",\"\",'1. Ordersheet'!M298)","v":""},null,null,{"$f":"'1. Ordersheet'!AR298","v":0},{"$f":"IF('1. Ordersheet'!AE298=\"\",\"\",'1. Ordersheet'!AE298)","v":""}]
[{"$f":"IF('1. Ordersheet'!B299=\"\",\"\",'1. Ordersheet'!B299)","v":""},{"$f":"IF('1. Ordersheet'!I299=\"\",\"\",'1. Ordersheet'!I299)","v":""},{"$f":"IF('1. Ordersheet'!J299=\"\",\"\",'1. Ordersheet'!J299)","v":""},{"$f":"IF('1. Ordersheet'!K299=\"\",\"\",'1. Ordersheet'!K299)","v":""},{"$f":"IF('1. Ordersheet'!M299=\"\",\"\",'1. Ordersheet'!M299)","v":""},null,null,{"$f":"'1. Ordersheet'!AR299","v":0},{"$f":"IF('1. Ordersheet'!AE299=\"\",\"\",'1. Ordersheet'!AE299)","v":""}]
[{"$f":"IF('1. Ordersheet'!B300=\"\",\"\",'1. Ordersheet'!B300)","v":""},{"$f":"IF('1. Ordersheet'!I300=\"\",\"\",'1. Ordersheet'!I300)","v":""},{"$f":"IF('1. Ordersheet'!J300=\"\",\"\",'1. Ordersheet'!J300)","v":""},{"$f":"IF('1. Ordersheet'!K300=\"\",\"\",'1. Ordersheet'!K300)","v":""},{"$f":"IF('1. Ordersheet'!M300=\"\",\"\",'1. Ordersheet'!M300)","v":""},null,null,{"$f":"'1. Ordersheet'!AR300","v":0},{"$f":"IF('1. Ordersheet'!AE300=\"\",\"\",'1. Ordersheet'!AE300)","v":""}]
[{"$f":"IF('1. Ordersheet'!B301=\"\",\"\",'1. Ordersheet'!B301)","v":""},{"$f":"IF('1. Ordersheet'!I301=\"\",\"\",'1. Ordersheet'!I301)","v":""},{"$f":"IF('1. Ordersheet'!J301=\"\",\"\",'1. Ordersheet'!J301)","v":""},{"$f":"IF('1. Ordersheet'!K301=\"\",\"\",'1. Ordersheet'!K301)","v":""},{"$f":"IF('1. Ordersheet'!M301=\"\",\"\",'1. Ordersheet'!M301)","v":""},null,null,{"$f":"'1. Ordersheet'!AR301","v":0},{"$f":"IF('1. Ordersheet'!AE301=\"\",\"\",'1. Ordersheet'!AE301)","v":""}]
[{"$f":"IF('1. Ordersheet'!B302=\"\",\"\",'1. Ordersheet'!B302)","v":""},{"$f":"IF('1. Ordersheet'!I302=\"\",\"\",'1. Ordersheet'!I302)","v":""},{"$f":"IF('1. Ordersheet'!J302=\"\",\"\",'1. Ordersheet'!J302)","v":""},{"$f":"IF('1. Ordersheet'!K302=\"\",\"\",'1. Ordersheet'!K302)","v":""},{"$f":"IF('1. Ordersheet'!M302=\"\",\"\",'1. Ordersheet'!M302)","v":""},null,null,{"$f":"'1. Ordersheet'!AR302","v":0},{"$f":"IF('1. Ordersheet'!AE302=\"\",\"\",'1. Ordersheet'!AE302)","v":""}]
[{"$f":"IF('1. Ordersheet'!B303=\"\",\"\",'1. Ordersheet'!B303)","v":""},{"$f":"IF('1. Ordersheet'!I303=\"\",\"\",'1. Ordersheet'!I303)","v":""},{"$f":"IF('1. Ordersheet'!J303=\"\",\"\",'1. Ordersheet'!J303)","v":""},{"$f":"IF('1. Ordersheet'!K303=\"\",\"\",'1. Ordersheet'!K303)","v":""},{"$f":"IF('1. Ordersheet'!M303=\"\",\"\",'1. Ordersheet'!M303)","v":""},null,null,{"$f":"'1. Ordersheet'!AR303","v":0},{"$f":"IF('1. Ordersheet'!AE303=\"\",\"\",'1. Ordersheet'!AE303)","v":""}]
[{"$f":"IF('1. Ordersheet'!B304=\"\",\"\",'1. Ordersheet'!B304)","v":""},{"$f":"IF('1. Ordersheet'!I304=\"\",\"\",'1. Ordersheet'!I304)","v":""},{"$f":"IF('1. Ordersheet'!J304=\"\",\"\",'1. Ordersheet'!J304)","v":""},{"$f":"IF('1. Ordersheet'!K304=\"\",\"\",'1. Ordersheet'!K304)","v":""},{"$f":"IF('1. Ordersheet'!M304=\"\",\"\",'1. Ordersheet'!M304)","v":""},null,null,{"$f":"'1. Ordersheet'!AR304","v":0},{"$f":"IF('1. Ordersheet'!AE304=\"\",\"\",'1. Ordersheet'!AE304)","v":""}]
[{"$f":"IF('1. Ordersheet'!B305=\"\",\"\",'1. Ordersheet'!B305)","v":""},{"$f":"IF('1. Ordersheet'!I305=\"\",\"\",'1. Ordersheet'!I305)","v":""},{"$f":"IF('1. Ordersheet'!J305=\"\",\"\",'1. Ordersheet'!J305)","v":""},{"$f":"IF('1. Ordersheet'!K305=\"\",\"\",'1. Ordersheet'!K305)","v":""},{"$f":"IF('1. Ordersheet'!M305=\"\",\"\",'1. Ordersheet'!M305)","v":""},null,null,{"$f":"'1. Ordersheet'!AR305","v":0},{"$f":"IF('1. Ordersheet'!AE305=\"\",\"\",'1. Ordersheet'!AE305)","v":""}]
[{"$f":"IF('1. Ordersheet'!B306=\"\",\"\",'1. Ordersheet'!B306)","v":""},{"$f":"IF('1. Ordersheet'!I306=\"\",\"\",'1. Ordersheet'!I306)","v":""},{"$f":"IF('1. Ordersheet'!J306=\"\",\"\",'1. Ordersheet'!J306)","v":""},{"$f":"IF('1. Ordersheet'!K306=\"\",\"\",'1. Ordersheet'!K306)","v":""},{"$f":"IF('1. Ordersheet'!M306=\"\",\"\",'1. Ordersheet'!M306)","v":""},null,null,{"$f":"'1. Ordersheet'!AR306","v":0},{"$f":"IF('1. Ordersheet'!AE306=\"\",\"\",'1. Ordersheet'!AE306)","v":""}]
[{"$f":"IF('1. Ordersheet'!B307=\"\",\"\",'1. Ordersheet'!B307)","v":""},{"$f":"IF('1. Ordersheet'!I307=\"\",\"\",'1. Ordersheet'!I307)","v":""},{"$f":"IF('1. Ordersheet'!J307=\"\",\"\",'1. Ordersheet'!J307)","v":""},{"$f":"IF('1. Ordersheet'!K307=\"\",\"\",'1. Ordersheet'!K307)","v":""},{"$f":"IF('1. Ordersheet'!M307=\"\",\"\",'1. Ordersheet'!M307)","v":""},null,null,{"$f":"'1. Ordersheet'!AR307","v":0},{"$f":"IF('1. Ordersheet'!AE307=\"\",\"\",'1. Ordersheet'!AE307)","v":""}]
[{"$f":"IF('1. Ordersheet'!B308=\"\",\"\",'1. Ordersheet'!B308)","v":""},{"$f":"IF('1. Ordersheet'!I308=\"\",\"\",'1. Ordersheet'!I308)","v":""},{"$f":"IF('1. Ordersheet'!J308=\"\",\"\",'1. Ordersheet'!J308)","v":""},{"$f":"IF('1. Ordersheet'!K308=\"\",\"\",'1. Ordersheet'!K308)","v":""},{"$f":"IF('1. Ordersheet'!M308=\"\",\"\",'1. Ordersheet'!M308)","v":""},null,null,{"$f":"'1. Ordersheet'!AR308","v":0},{"$f":"IF('1. Ordersheet'!AE308=\"\",\"\",'1. Ordersheet'!AE308)","v":""}]
[{"$f":"IF('1. Ordersheet'!B309=\"\",\"\",'1. Ordersheet'!B309)","v":""},{"$f":"IF('1. Ordersheet'!I309=\"\",\"\",'1. Ordersheet'!I309)","v":""},{"$f":"IF('1. Ordersheet'!J309=\"\",\"\",'1. Ordersheet'!J309)","v":""},{"$f":"IF('1. Ordersheet'!K309=\"\",\"\",'1. Ordersheet'!K309)","v":""},{"$f":"IF('1. Ordersheet'!M309=\"\",\"\",'1. Ordersheet'!M309)","v":""},null,null,{"$f":"'1. Ordersheet'!AR309","v":0},{"$f":"IF('1. Ordersheet'!AE309=\"\",\"\",'1. Ordersheet'!AE309)","v":""}]
[{"$f":"IF('1. Ordersheet'!B310=\"\",\"\",'1. Ordersheet'!B310)","v":""},{"$f":"IF('1. Ordersheet'!I310=\"\",\"\",'1. Ordersheet'!I310)","v":""},{"$f":"IF('1. Ordersheet'!J310=\"\",\"\",'1. Ordersheet'!J310)","v":""},{"$f":"IF('1. Ordersheet'!K310=\"\",\"\",'1. Ordersheet'!K310)","v":""},{"$f":"IF('1. Ordersheet'!M310=\"\",\"\",'1. Ordersheet'!M310)","v":""},null,null,{"$f":"'1. Ordersheet'!AR310","v":0},{"$f":"IF('1. Ordersheet'!AE310=\"\",\"\",'1. Ordersheet'!AE310)","v":""}]
[{"$f":"IF('1. Ordersheet'!B311=\"\",\"\",'1. Ordersheet'!B311)","v":""},{"$f":"IF('1. Ordersheet'!I311=\"\",\"\",'1. Ordersheet'!I311)","v":""},{"$f":"IF('1. Ordersheet'!J311=\"\",\"\",'1. Ordersheet'!J311)","v":""},{"$f":"IF('1. Ordersheet'!K311=\"\",\"\",'1. Ordersheet'!K311)","v":""},{"$f":"IF('1. Ordersheet'!M311=\"\",\"\",'1. Ordersheet'!M311)","v":""},null,null,{"$f":"'1. Ordersheet'!AR311","v":0},{"$f":"IF('1. Ordersheet'!AE311=\"\",\"\",'1. Ordersheet'!AE311)","v":""}]
[{"$f":"IF('1. Ordersheet'!B312=\"\",\"\",'1. Ordersheet'!B312)","v":""},{"$f":"IF('1. Ordersheet'!I312=\"\",\"\",'1. Ordersheet'!I312)","v":""},{"$f":"IF('1. Ordersheet'!J312=\"\",\"\",'1. Ordersheet'!J312)","v":""},{"$f":"IF('1. Ordersheet'!K312=\"\",\"\",'1. Ordersheet'!K312)","v":""},{"$f":"IF('1. Ordersheet'!M312=\"\",\"\",'1. Ordersheet'!M312)","v":""},null,null,{"$f":"'1. Ordersheet'!AR312","v":0},{"$f":"IF('1. Ordersheet'!AE312=\"\",\"\",'1. Ordersheet'!AE312)","v":""}]
[{"$f":"IF('1. Ordersheet'!B313=\"\",\"\",'1. Ordersheet'!B313)","v":""},{"$f":"IF('1. Ordersheet'!I313=\"\",\"\",'1. Ordersheet'!I313)","v":""},{"$f":"IF('1. Ordersheet'!J313=\"\",\"\",'1. Ordersheet'!J313)","v":""},{"$f":"IF('1. Ordersheet'!K313=\"\",\"\",'1. Ordersheet'!K313)","v":""},{"$f":"IF('1. Ordersheet'!M313=\"\",\"\",'1. Ordersheet'!M313)","v":""},null,null,{"$f":"'1. Ordersheet'!AR313","v":0},{"$f":"IF('1. Ordersheet'!AE313=\"\",\"\",'1. Ordersheet'!AE313)","v":""}]
[{"$f":"IF('1. Ordersheet'!B314=\"\",\"\",'1. Ordersheet'!B314)","v":""},{"$f":"IF('1. Ordersheet'!I314=\"\",\"\",'1. Ordersheet'!I314)","v":""},{"$f":"IF('1. Ordersheet'!J314=\"\",\"\",'1. Ordersheet'!J314)","v":""},{"$f":"IF('1. Ordersheet'!K314=\"\",\"\",'1. Ordersheet'!K314)","v":""},{"$f":"IF('1. Ordersheet'!M314=\"\",\"\",'1. Ordersheet'!M314)","v":""},null,null,{"$f":"'1. Ordersheet'!AR314","v":0},{"$f":"IF('1. Ordersheet'!AE314=\"\",\"\",'1. Ordersheet'!AE314)","v":""}]
[{"$f":"IF('1. Ordersheet'!B315=\"\",\"\",'1. Ordersheet'!B315)","v":""},{"$f":"IF('1. Ordersheet'!I315=\"\",\"\",'1. Ordersheet'!I315)","v":""},{"$f":"IF('1. Ordersheet'!J315=\"\",\"\",'1. Ordersheet'!J315)","v":""},{"$f":"IF('1. Ordersheet'!K315=\"\",\"\",'1. Ordersheet'!K315)","v":""},{"$f":"IF('1. Ordersheet'!M315=\"\",\"\",'1. Ordersheet'!M315)","v":""},null,null,{"$f":"'1. Ordersheet'!AR315","v":0},{"$f":"IF('1. Ordersheet'!AE315=\"\",\"\",'1. Ordersheet'!AE315)","v":""}]
[{"$f":"IF('1. Ordersheet'!B316=\"\",\"\",'1. Ordersheet'!B316)","v":""},{"$f":"IF('1. Ordersheet'!I316=\"\",\"\",'1. Ordersheet'!I316)","v":""},{"$f":"IF('1. Ordersheet'!J316=\"\",\"\",'1. Ordersheet'!J316)","v":""},{"$f":"IF('1. Ordersheet'!K316=\"\",\"\",'1. Ordersheet'!K316)","v":""},{"$f":"IF('1. Ordersheet'!M316=\"\",\"\",'1. Ordersheet'!M316)","v":""},null,null,{"$f":"'1. Ordersheet'!AR316","v":0},{"$f":"IF('1. Ordersheet'!AE316=\"\",\"\",'1. Ordersheet'!AE316)","v":""}]
[{"$f":"IF('1. Ordersheet'!B317=\"\",\"\",'1. Ordersheet'!B317)","v":""},{"$f":"IF('1. Ordersheet'!I317=\"\",\"\",'1. Ordersheet'!I317)","v":""},{"$f":"IF('1. Ordersheet'!J317=\"\",\"\",'1. Ordersheet'!J317)","v":""},{"$f":"IF('1. Ordersheet'!K317=\"\",\"\",'1. Ordersheet'!K317)","v":""},{"$f":"IF('1. Ordersheet'!M317=\"\",\"\",'1. Ordersheet'!M317)","v":""},null,null,{"$f":"'1. Ordersheet'!AR317","v":0},{"$f":"IF('1. Ordersheet'!AE317=\"\",\"\",'1. Ordersheet'!AE317)","v":""}]
[{"$f":"IF('1. Ordersheet'!B318=\"\",\"\",'1. Ordersheet'!B318)","v":""},{"$f":"IF('1. Ordersheet'!I318=\"\",\"\",'1. Ordersheet'!I318)","v":""},{"$f":"IF('1. Ordersheet'!J318=\"\",\"\",'1. Ordersheet'!J318)","v":""},{"$f":"IF('1. Ordersheet'!K318=\"\",\"\",'1. Ordersheet'!K318)","v":""},{"$f":"IF('1. Ordersheet'!M318=\"\",\"\",'1. Ordersheet'!M318)","v":""},null,null,{"$f":"'1. Ordersheet'!AR318","v":0},{"$f":"IF('1. Ordersheet'!AE318=\"\",\"\",'1. Ordersheet'!AE318)","v":""}]
[{"$f":"IF('1. Ordersheet'!B319=\"\",\"\",'1. Ordersheet'!B319)","v":""},{"$f":"IF('1. Ordersheet'!I319=\"\",\"\",'1. Ordersheet'!I319)","v":""},{"$f":"IF('1. Ordersheet'!J319=\"\",\"\",'1. Ordersheet'!J319)","v":""},{"$f":"IF('1. Ordersheet'!K319=\"\",\"\",'1. Ordersheet'!K319)","v":""},{"$f":"IF('1. Ordersheet'!M319=\"\",\"\",'1. Ordersheet'!M319)","v":""},null,null,{"$f":"'1. Ordersheet'!AR319","v":0},{"$f":"IF('1. Ordersheet'!AE319=\"\",\"\",'1. Ordersheet'!AE319)","v":""}]
[{"$f":"IF('1. Ordersheet'!B320=\"\",\"\",'1. Ordersheet'!B320)","v":""},{"$f":"IF('1. Ordersheet'!I320=\"\",\"\",'1. Ordersheet'!I320)","v":""},{"$f":"IF('1. Ordersheet'!J320=\"\",\"\",'1. Ordersheet'!J320)","v":""},{"$f":"IF('1. Ordersheet'!K320=\"\",\"\",'1. Ordersheet'!K320)","v":""},{"$f":"IF('1. Ordersheet'!M320=\"\",\"\",'1. Ordersheet'!M320)","v":""},null,null,{"$f":"'1. Ordersheet'!AR320","v":0},{"$f":"IF('1. Ordersheet'!AE320=\"\",\"\",'1. Ordersheet'!AE320)","v":""}]
[{"$f":"IF('1. Ordersheet'!B321=\"\",\"\",'1. Ordersheet'!B321)","v":""},{"$f":"IF('1. Ordersheet'!I321=\"\",\"\",'1. Ordersheet'!I321)","v":""},{"$f":"IF('1. Ordersheet'!J321=\"\",\"\",'1. Ordersheet'!J321)","v":""},{"$f":"IF('1. Ordersheet'!K321=\"\",\"\",'1. Ordersheet'!K321)","v":""},{"$f":"IF('1. Ordersheet'!M321=\"\",\"\",'1. Ordersheet'!M321)","v":""},null,null,{"$f":"'1. Ordersheet'!AR321","v":0},{"$f":"IF('1. Ordersheet'!AE321=\"\",\"\",'1. Ordersheet'!AE321)","v":""}]
[{"$f":"IF('1. Ordersheet'!B322=\"\",\"\",'1. Ordersheet'!B322)","v":""},{"$f":"IF('1. Ordersheet'!I322=\"\",\"\",'1. Ordersheet'!I322)","v":""},{"$f":"IF('1. Ordersheet'!J322=\"\",\"\",'1. Ordersheet'!J322)","v":""},{"$f":"IF('1. Ordersheet'!K322=\"\",\"\",'1. Ordersheet'!K322)","v":""},{"$f":"IF('1. Ordersheet'!M322=\"\",\"\",'1. Ordersheet'!M322)","v":""},null,null,{"$f":"'1. Ordersheet'!AR322","v":0},{"$f":"IF('1. Ordersheet'!AE322=\"\",\"\",'1. Ordersheet'!AE322)","v":""}]
[{"$f":"IF('1. Ordersheet'!B323=\"\",\"\",'1. Ordersheet'!B323)","v":""},{"$f":"IF('1. Ordersheet'!I323=\"\",\"\",'1. Ordersheet'!I323)","v":""},{"$f":"IF('1. Ordersheet'!J323=\"\",\"\",'1. Ordersheet'!J323)","v":""},{"$f":"IF('1. Ordersheet'!K323=\"\",\"\",'1. Ordersheet'!K323)","v":""},{"$f":"IF('1. Ordersheet'!M323=\"\",\"\",'1. Ordersheet'!M323)","v":""},null,null,{"$f":"'1. Ordersheet'!AR323","v":0},{"$f":"IF('1. Ordersheet'!AE323=\"\",\"\",'1. Ordersheet'!AE323)","v":""}]
[{"$f":"IF('1. Ordersheet'!B324=\"\",\"\",'1. Ordersheet'!B324)","v":""},{"$f":"IF('1. Ordersheet'!I324=\"\",\"\",'1. Ordersheet'!I324)","v":""},{"$f":"IF('1. Ordersheet'!J324=\"\",\"\",'1. Ordersheet'!J324)","v":""},{"$f":"IF('1. Ordersheet'!K324=\"\",\"\",'1. Ordersheet'!K324)","v":""},{"$f":"IF('1. Ordersheet'!M324=\"\",\"\",'1. Ordersheet'!M324)","v":""},null,null,{"$f":"'1. Ordersheet'!AR324","v":0},{"$f":"IF('1. Ordersheet'!AE324=\"\",\"\",'1. Ordersheet'!AE324)","v":""}]
[{"$f":"IF('1. Ordersheet'!B325=\"\",\"\",'1. Ordersheet'!B325)","v":""},{"$f":"IF('1. Ordersheet'!I325=\"\",\"\",'1. Ordersheet'!I325)","v":""},{"$f":"IF('1. Ordersheet'!J325=\"\",\"\",'1. Ordersheet'!J325)","v":""},{"$f":"IF('1. Ordersheet'!K325=\"\",\"\",'1. Ordersheet'!K325)","v":""},{"$f":"IF('1. Ordersheet'!M325=\"\",\"\",'1. Ordersheet'!M325)","v":""},null,null,{"$f":"'1. Ordersheet'!AR325","v":0},{"$f":"IF('1. Ordersheet'!AE325=\"\",\"\",'1. Ordersheet'!AE325)","v":""}]
[{"$f":"IF('1. Ordersheet'!B326=\"\",\"\",'1. Ordersheet'!B326)","v":""},{"$f":"IF('1. Ordersheet'!I326=\"\",\"\",'1. Ordersheet'!I326)","v":""},{"$f":"IF('1. Ordersheet'!J326=\"\",\"\",'1. Ordersheet'!J326)","v":""},{"$f":"IF('1. Ordersheet'!K326=\"\",\"\",'1. Ordersheet'!K326)","v":""},{"$f":"IF('1. Ordersheet'!M326=\"\",\"\",'1. Ordersheet'!M326)","v":""},null,null,{"$f":"'1. Ordersheet'!AR326","v":0},{"$f":"IF('1. Ordersheet'!AE326=\"\",\"\",'1. Ordersheet'!AE326)","v":""}]
[{"$f":"IF('1. Ordersheet'!B327=\"\",\"\",'1. Ordersheet'!B327)","v":""},{"$f":"IF('1. Ordersheet'!I327=\"\",\"\",'1. Ordersheet'!I327)","v":""},{"$f":"IF('1. Ordersheet'!J327=\"\",\"\",'1. Ordersheet'!J327)","v":""},{"$f":"IF('1. Ordersheet'!K327=\"\",\"\",'1. Ordersheet'!K327)","v":""},{"$f":"IF('1. Ordersheet'!M327=\"\",\"\",'1. Ordersheet'!M327)","v":""},null,null,{"$f":"'1. Ordersheet'!AR327","v":0},{"$f":"IF('1. Ordersheet'!AE327=\"\",\"\",'1. Ordersheet'!AE327)","v":""}]
[{"$f":"IF('1. Ordersheet'!B328=\"\",\"\",'1. Ordersheet'!B328)","v":""},{"$f":"IF('1. Ordersheet'!I328=\"\",\"\",'1. Ordersheet'!I328)","v":""},{"$f":"IF('1. Ordersheet'!J328=\"\",\"\",'1. Ordersheet'!J328)","v":""},{"$f":"IF('1. Ordersheet'!K328=\"\",\"\",'1. Ordersheet'!K328)","v":""},{"$f":"IF('1. Ordersheet'!M328=\"\",\"\",'1. Ordersheet'!M328)","v":""},null,null,{"$f":"'1. Ordersheet'!AR328","v":0},{"$f":"IF('1. Ordersheet'!AE328=\"\",\"\",'1. Ordersheet'!AE328)","v":""}]
[{"$f":"IF('1. Ordersheet'!B329=\"\",\"\",'1. Ordersheet'!B329)","v":""},{"$f":"IF('1. Ordersheet'!I329=\"\",\"\",'1. Ordersheet'!I329)","v":""},{"$f":"IF('1. Ordersheet'!J329=\"\",\"\",'1. Ordersheet'!J329)","v":""},{"$f":"IF('1. Ordersheet'!K329=\"\",\"\",'1. Ordersheet'!K329)","v":""},{"$f":"IF('1. Ordersheet'!M329=\"\",\"\",'1. Ordersheet'!M329)","v":""},null,null,{"$f":"'1. Ordersheet'!AR329","v":0},{"$f":"IF('1. Ordersheet'!AE329=\"\",\"\",'1. Ordersheet'!AE329)","v":""}]
[{"$f":"IF('1. Ordersheet'!B330=\"\",\"\",'1. Ordersheet'!B330)","v":""},{"$f":"IF('1. Ordersheet'!I330=\"\",\"\",'1. Ordersheet'!I330)","v":""},{"$f":"IF('1. Ordersheet'!J330=\"\",\"\",'1. Ordersheet'!J330)","v":""},{"$f":"IF('1. Ordersheet'!K330=\"\",\"\",'1. Ordersheet'!K330)","v":""},{"$f":"IF('1. Ordersheet'!M330=\"\",\"\",'1. Ordersheet'!M330)","v":""},null,null,{"$f":"'1. Ordersheet'!AR330","v":0},{"$f":"IF('1. Ordersheet'!AE330=\"\",\"\",'1. Ordersheet'!AE330)","v":""}]
[{"$f":"IF('1. Ordersheet'!B331=\"\",\"\",'1. Ordersheet'!B331)","v":""},{"$f":"IF('1. Ordersheet'!I331=\"\",\"\",'1. Ordersheet'!I331)","v":""},{"$f":"IF('1. Ordersheet'!J331=\"\",\"\",'1. Ordersheet'!J331)","v":""},{"$f":"IF('1. Ordersheet'!K331=\"\",\"\",'1. Ordersheet'!K331)","v":""},{"$f":"IF('1. Ordersheet'!M331=\"\",\"\",'1. Ordersheet'!M331)","v":""},null,null,{"$f":"'1. Ordersheet'!AR331","v":0},{"$f":"IF('1. Ordersheet'!AE331=\"\",\"\",'1. Ordersheet'!AE331)","v":""}]
[{"$f":"IF('1. Ordersheet'!B332=\"\",\"\",'1. Ordersheet'!B332)","v":""},{"$f":"IF('1. Ordersheet'!I332=\"\",\"\",'1. Ordersheet'!I332)","v":""},{"$f":"IF('1. Ordersheet'!J332=\"\",\"\",'1. Ordersheet'!J332)","v":""},{"$f":"IF('1. Ordersheet'!K332=\"\",\"\",'1. Ordersheet'!K332)","v":""},{"$f":"IF('1. Ordersheet'!M332=\"\",\"\",'1. Ordersheet'!M332)","v":""},null,null,{"$f":"'1. Ordersheet'!AR332","v":0},{"$f":"IF('1. Ordersheet'!AE332=\"\",\"\",'1. Ordersheet'!AE332)","v":""}]
[{"$f":"IF('1. Ordersheet'!B333=\"\",\"\",'1. Ordersheet'!B333)","v":""},{"$f":"IF('1. Ordersheet'!I333=\"\",\"\",'1. Ordersheet'!I333)","v":""},{"$f":"IF('1. Ordersheet'!J333=\"\",\"\",'1. Ordersheet'!J333)","v":""},{"$f":"IF('1. Ordersheet'!K333=\"\",\"\",'1. Ordersheet'!K333)","v":""},{"$f":"IF('1. Ordersheet'!M333=\"\",\"\",'1. Ordersheet'!M333)","v":""},null,null,{"$f":"'1. Ordersheet'!AR333","v":0},{"$f":"IF('1. Ordersheet'!AE333=\"\",\"\",'1. Ordersheet'!AE333)","v":""}]
[{"$f":"IF('1. Ordersheet'!B334=\"\",\"\",'1. Ordersheet'!B334)","v":""},{"$f":"IF('1. Ordersheet'!I334=\"\",\"\",'1. Ordersheet'!I334)","v":""},{"$f":"IF('1. Ordersheet'!J334=\"\",\"\",'1. Ordersheet'!J334)","v":""},{"$f":"IF('1. Ordersheet'!K334=\"\",\"\",'1. Ordersheet'!K334)","v":""},{"$f":"IF('1. Ordersheet'!M334=\"\",\"\",'1. Ordersheet'!M334)","v":""},null,null,{"$f":"'1. Ordersheet'!AR334","v":0},{"$f":"IF('1. Ordersheet'!AE334=\"\",\"\",'1. Ordersheet'!AE334)","v":""}]
[{"$f":"IF('1. Ordersheet'!B335=\"\",\"\",'1. Ordersheet'!B335)","v":""},{"$f":"IF('1. Ordersheet'!I335=\"\",\"\",'1. Ordersheet'!I335)","v":""},{"$f":"IF('1. Ordersheet'!J335=\"\",\"\",'1. Ordersheet'!J335)","v":""},{"$f":"IF('1. Ordersheet'!K335=\"\",\"\",'1. Ordersheet'!K335)","v":""},{"$f":"IF('1. Ordersheet'!M335=\"\",\"\",'1. Ordersheet'!M335)","v":""},null,null,{"$f":"'1. Ordersheet'!AR335","v":0},{"$f":"IF('1. Ordersheet'!AE335=\"\",\"\",'1. Ordersheet'!AE335)","v":""}]
[{"$f":"IF('1. Ordersheet'!B336=\"\",\"\",'1. Ordersheet'!B336)","v":""},{"$f":"IF('1. Ordersheet'!I336=\"\",\"\",'1. Ordersheet'!I336)","v":""},{"$f":"IF('1. Ordersheet'!J336=\"\",\"\",'1. Ordersheet'!J336)","v":""},{"$f":"IF('1. Ordersheet'!K336=\"\",\"\",'1. Ordersheet'!K336)","v":""},{"$f":"IF('1. Ordersheet'!M336=\"\",\"\",'1. Ordersheet'!M336)","v":""},null,null,{"$f":"'1. Ordersheet'!AR336","v":0},{"$f":"IF('1. Ordersheet'!AE336=\"\",\"\",'1. Ordersheet'!AE336)","v":""}]
[{"$f":"IF('1. Ordersheet'!B337=\"\",\"\",'1. Ordersheet'!B337)","v":""},{"$f":"IF('1. Ordersheet'!I337=\"\",\"\",'1. Ordersheet'!I337)","v":""},{"$f":"IF('1. Ordersheet'!J337=\"\",\"\",'1. Ordersheet'!J337)","v":""},{"$f":"IF('1. Ordersheet'!K337=\"\",\"\",'1. Ordersheet'!K337)","v":""},{"$f":"IF('1. Ordersheet'!M337=\"\",\"\",'1. Ordersheet'!M337)","v":""},null,null,{"$f":"'1. Ordersheet'!AR337","v":0},{"$f":"IF('1. Ordersheet'!AE337=\"\",\"\",'1. Ordersheet'!AE337)","v":""}]
[{"$f":"IF('1. Ordersheet'!B338=\"\",\"\",'1. Ordersheet'!B338)","v":""},{"$f":"IF('1. Ordersheet'!I338=\"\",\"\",'1. Ordersheet'!I338)","v":""},{"$f":"IF('1. Ordersheet'!J338=\"\",\"\",'1. Ordersheet'!J338)","v":""},{"$f":"IF('1. Ordersheet'!K338=\"\",\"\",'1. Ordersheet'!K338)","v":""},{"$f":"IF('1. Ordersheet'!M338=\"\",\"\",'1. Ordersheet'!M338)","v":""},null,null,{"$f":"'1. Ordersheet'!AR338","v":0},{"$f":"IF('1. Ordersheet'!AE338=\"\",\"\",'1. Ordersheet'!AE338)","v":""}]
[{"$f":"IF('1. Ordersheet'!B339=\"\",\"\",'1. Ordersheet'!B339)","v":""},{"$f":"IF('1. Ordersheet'!I339=\"\",\"\",'1. Ordersheet'!I339)","v":""},{"$f":"IF('1. Ordersheet'!J339=\"\",\"\",'1. Ordersheet'!J339)","v":""},{"$f":"IF('1. Ordersheet'!K339=\"\",\"\",'1. Ordersheet'!K339)","v":""},{"$f":"IF('1. Ordersheet'!M339=\"\",\"\",'1. Ordersheet'!M339)","v":""},null,null,{"$f":"'1. Ordersheet'!AR339","v":0},{"$f":"IF('1. Ordersheet'!AE339=\"\",\"\",'1. Ordersheet'!AE339)","v":""}]
[{"$f":"IF('1. Ordersheet'!B340=\"\",\"\",'1. Ordersheet'!B340)","v":""},{"$f":"IF('1. Ordersheet'!I340=\"\",\"\",'1. Ordersheet'!I340)","v":""},{"$f":"IF('1. Ordersheet'!J340=\"\",\"\",'1. Ordersheet'!J340)","v":""},{"$f":"IF('1. Ordersheet'!K340=\"\",\"\",'1. Ordersheet'!K340)","v":""},{"$f":"IF('1. Ordersheet'!M340=\"\",\"\",'1. Ordersheet'!M340)","v":""},null,null,{"$f":"'1. Ordersheet'!AR340","v":0},{"$f":"IF('1. Ordersheet'!AE340=\"\",\"\",'1. Ordersheet'!AE340)","v":""}]
[{"$f":"IF('1. Ordersheet'!B341=\"\",\"\",'1. Ordersheet'!B341)","v":""},{"$f":"IF('1. Ordersheet'!I341=\"\",\"\",'1. Ordersheet'!I341)","v":""},{"$f":"IF('1. Ordersheet'!J341=\"\",\"\",'1. Ordersheet'!J341)","v":""},{"$f":"IF('1. Ordersheet'!K341=\"\",\"\",'1. Ordersheet'!K341)","v":""},{"$f":"IF('1. Ordersheet'!M341=\"\",\"\",'1. Ordersheet'!M341)","v":""},null,null,{"$f":"'1. Ordersheet'!AR341","v":0},{"$f":"IF('1. Ordersheet'!AE341=\"\",\"\",'1. Ordersheet'!AE341)","v":""}]
[{"$f":"IF('1. Ordersheet'!B342=\"\",\"\",'1. Ordersheet'!B342)","v":""},{"$f":"IF('1. Ordersheet'!I342=\"\",\"\",'1. Ordersheet'!I342)","v":""},{"$f":"IF('1. Ordersheet'!J342=\"\",\"\",'1. Ordersheet'!J342)","v":""},{"$f":"IF('1. Ordersheet'!K342=\"\",\"\",'1. Ordersheet'!K342)","v":""},{"$f":"IF('1. Ordersheet'!M342=\"\",\"\",'1. Ordersheet'!M342)","v":""},null,null,{"$f":"'1. Ordersheet'!AR342","v":0},{"$f":"IF('1. Ordersheet'!AE342=\"\",\"\",'1. Ordersheet'!AE342)","v":""}]
[{"$f":"IF('1. Ordersheet'!B343=\"\",\"\",'1. Ordersheet'!B343)","v":""},{"$f":"IF('1. Ordersheet'!I343=\"\",\"\",'1. Ordersheet'!I343)","v":""},{"$f":"IF('1. Ordersheet'!J343=\"\",\"\",'1. Ordersheet'!J343)","v":""},{"$f":"IF('1. Ordersheet'!K343=\"\",\"\",'1. Ordersheet'!K343)","v":""},{"$f":"IF('1. Ordersheet'!M343=\"\",\"\",'1. Ordersheet'!M343)","v":""},null,null,{"$f":"'1. Ordersheet'!AR343","v":0},{"$f":"IF('1. Ordersheet'!AE343=\"\",\"\",'1. Ordersheet'!AE343)","v":""}]
[{"$f":"IF('1. Ordersheet'!B344=\"\",\"\",'1. Ordersheet'!B344)","v":""},{"$f":"IF('1. Ordersheet'!I344=\"\",\"\",'1. Ordersheet'!I344)","v":""},{"$f":"IF('1. Ordersheet'!J344=\"\",\"\",'1. Ordersheet'!J344)","v":""},{"$f":"IF('1. Ordersheet'!K344=\"\",\"\",'1. Ordersheet'!K344)","v":""},{"$f":"IF('1. Ordersheet'!M344=\"\",\"\",'1. Ordersheet'!M344)","v":""},null,null,{"$f":"'1. Ordersheet'!AR344","v":0},{"$f":"IF('1. Ordersheet'!AE344=\"\",\"\",'1. Ordersheet'!AE344)","v":""}]
[{"$f":"IF('1. Ordersheet'!B345=\"\",\"\",'1. Ordersheet'!B345)","v":""},{"$f":"IF('1. Ordersheet'!I345=\"\",\"\",'1. Ordersheet'!I345)","v":""},{"$f":"IF('1. Ordersheet'!J345=\"\",\"\",'1. Ordersheet'!J345)","v":""},{"$f":"IF('1. Ordersheet'!K345=\"\",\"\",'1. Ordersheet'!K345)","v":""},{"$f":"IF('1. Ordersheet'!M345=\"\",\"\",'1. Ordersheet'!M345)","v":""},null,null,{"$f":"'1. Ordersheet'!AR345","v":0},{"$f":"IF('1. Ordersheet'!AE345=\"\",\"\",'1. Ordersheet'!AE345)","v":""}]
[{"$f":"IF('1. Ordersheet'!B346=\"\",\"\",'1. Ordersheet'!B346)","v":""},{"$f":"IF('1. Ordersheet'!I346=\"\",\"\",'1. Ordersheet'!I346)","v":""},{"$f":"IF('1. Ordersheet'!J346=\"\",\"\",'1. Ordersheet'!J346)","v":""},{"$f":"IF('1. Ordersheet'!K346=\"\",\"\",'1. Ordersheet'!K346)","v":""},{"$f":"IF('1. Ordersheet'!M346=\"\",\"\",'1. Ordersheet'!M346)","v":""},null,null,{"$f":"'1. Ordersheet'!AR346","v":0},{"$f":"IF('1. Ordersheet'!AE346=\"\",\"\",'1. Ordersheet'!AE346)","v":""}]
[{"$f":"IF('1. Ordersheet'!B347=\"\",\"\",'1. Ordersheet'!B347)","v":""},{"$f":"IF('1. Ordersheet'!I347=\"\",\"\",'1. Ordersheet'!I347)","v":""},{"$f":"IF('1. Ordersheet'!J347=\"\",\"\",'1. Ordersheet'!J347)","v":""},{"$f":"IF('1. Ordersheet'!K347=\"\",\"\",'1. Ordersheet'!K347)","v":""},{"$f":"IF('1. Ordersheet'!M347=\"\",\"\",'1. Ordersheet'!M347)","v":""},null,null,{"$f":"'1. Ordersheet'!AR347","v":0},{"$f":"IF('1. Ordersheet'!AE347=\"\",\"\",'1. Ordersheet'!AE347)","v":""}]
[{"$f":"IF('1. Ordersheet'!B348=\"\",\"\",'1. Ordersheet'!B348)","v":""},{"$f":"IF('1. Ordersheet'!I348=\"\",\"\",'1. Ordersheet'!I348)","v":""},{"$f":"IF('1. Ordersheet'!J348=\"\",\"\",'1. Ordersheet'!J348)","v":""},{"$f":"IF('1. Ordersheet'!K348=\"\",\"\",'1. Ordersheet'!K348)","v":""},{"$f":"IF('1. Ordersheet'!M348=\"\",\"\",'1. Ordersheet'!M348)","v":""},null,null,{"$f":"'1. Ordersheet'!AR348","v":0},{"$f":"IF('1. Ordersheet'!AE348=\"\",\"\",'1. Ordersheet'!AE348)","v":""}]
[{"$f":"IF('1. Ordersheet'!B349=\"\",\"\",'1. Ordersheet'!B349)","v":""},{"$f":"IF('1. Ordersheet'!I349=\"\",\"\",'1. Ordersheet'!I349)","v":""},{"$f":"IF('1. Ordersheet'!J349=\"\",\"\",'1. Ordersheet'!J349)","v":""},{"$f":"IF('1. Ordersheet'!K349=\"\",\"\",'1. Ordersheet'!K349)","v":""},{"$f":"IF('1. Ordersheet'!M349=\"\",\"\",'1. Ordersheet'!M349)","v":""},null,null,{"$f":"'1. Ordersheet'!AR349","v":0},{"$f":"IF('1. Ordersheet'!AE349=\"\",\"\",'1. Ordersheet'!AE349)","v":""}]
[{"$f":"IF('1. Ordersheet'!B350=\"\",\"\",'1. Ordersheet'!B350)","v":""},{"$f":"IF('1. Ordersheet'!I350=\"\",\"\",'1. Ordersheet'!I350)","v":""},{"$f":"IF('1. Ordersheet'!J350=\"\",\"\",'1. Ordersheet'!J350)","v":""},{"$f":"IF('1. Ordersheet'!K350=\"\",\"\",'1. Ordersheet'!K350)","v":""},{"$f":"IF('1. Ordersheet'!M350=\"\",\"\",'1. Ordersheet'!M350)","v":""},null,null,{"$f":"'1. Ordersheet'!AR350","v":0},{"$f":"IF('1. Ordersheet'!AE350=\"\",\"\",'1. Ordersheet'!AE350)","v":""}]
[{"$f":"IF('1. Ordersheet'!B351=\"\",\"\",'1. Ordersheet'!B351)","v":""},{"$f":"IF('1. Ordersheet'!I351=\"\",\"\",'1. Ordersheet'!I351)","v":""},{"$f":"IF('1. Ordersheet'!J351=\"\",\"\",'1. Ordersheet'!J351)","v":""},{"$f":"IF('1. Ordersheet'!K351=\"\",\"\",'1. Ordersheet'!K351)","v":""},{"$f":"IF('1. Ordersheet'!M351=\"\",\"\",'1. Ordersheet'!M351)","v":""},null,null,{"$f":"'1. Ordersheet'!AR351","v":0},{"$f":"IF('1. Ordersheet'!AE351=\"\",\"\",'1. Ordersheet'!AE351)","v":""}]
[{"$f":"IF('1. Ordersheet'!B352=\"\",\"\",'1. Ordersheet'!B352)","v":""},{"$f":"IF('1. Ordersheet'!I352=\"\",\"\",'1. Ordersheet'!I352)","v":""},{"$f":"IF('1. Ordersheet'!J352=\"\",\"\",'1. Ordersheet'!J352)","v":""},{"$f":"IF('1. Ordersheet'!K352=\"\",\"\",'1. Ordersheet'!K352)","v":""},{"$f":"IF('1. Ordersheet'!M352=\"\",\"\",'1. Ordersheet'!M352)","v":""},null,null,{"$f":"'1. Ordersheet'!AR352","v":0},{"$f":"IF('1. Ordersheet'!AE352=\"\",\"\",'1. Ordersheet'!AE352)","v":""}]
[{"$f":"IF('1. Ordersheet'!B353=\"\",\"\",'1. Ordersheet'!B353)","v":""},{"$f":"IF('1. Ordersheet'!I353=\"\",\"\",'1. Ordersheet'!I353)","v":""},{"$f":"IF('1. Ordersheet'!J353=\"\",\"\",'1. Ordersheet'!J353)","v":""},{"$f":"IF('1. Ordersheet'!K353=\"\",\"\",'1. Ordersheet'!K353)","v":""},{"$f":"IF('1. Ordersheet'!M353=\"\",\"\",'1. Ordersheet'!M353)","v":""},null,null,{"$f":"'1. Ordersheet'!AR353","v":0},{"$f":"IF('1. Ordersheet'!AE353=\"\",\"\",'1. Ordersheet'!AE353)","v":""}]
[{"$f":"IF('1. Ordersheet'!B354=\"\",\"\",'1. Ordersheet'!B354)","v":""},{"$f":"IF('1. Ordersheet'!I354=\"\",\"\",'1. Ordersheet'!I354)","v":""},{"$f":"IF('1. Ordersheet'!J354=\"\",\"\",'1. Ordersheet'!J354)","v":""},{"$f":"IF('1. Ordersheet'!K354=\"\",\"\",'1. Ordersheet'!K354)","v":""},{"$f":"IF('1. Ordersheet'!M354=\"\",\"\",'1. Ordersheet'!M354)","v":""},null,null,{"$f":"'1. Ordersheet'!AR354","v":0},{"$f":"IF('1. Ordersheet'!AE354=\"\",\"\",'1. Ordersheet'!AE354)","v":""}]
[{"$f":"IF('1. Ordersheet'!B355=\"\",\"\",'1. Ordersheet'!B355)","v":""},{"$f":"IF('1. Ordersheet'!I355=\"\",\"\",'1. Ordersheet'!I355)","v":""},{"$f":"IF('1. Ordersheet'!J355=\"\",\"\",'1. Ordersheet'!J355)","v":""},{"$f":"IF('1. Ordersheet'!K355=\"\",\"\",'1. Ordersheet'!K355)","v":""},{"$f":"IF('1. Ordersheet'!M355=\"\",\"\",'1. Ordersheet'!M355)","v":""},null,null,{"$f":"'1. Ordersheet'!AR355","v":0},{"$f":"IF('1. Ordersheet'!AE355=\"\",\"\",'1. Ordersheet'!AE355)","v":""}]
[{"$f":"IF('1. Ordersheet'!B356=\"\",\"\",'1. Ordersheet'!B356)","v":""},{"$f":"IF('1. Ordersheet'!I356=\"\",\"\",'1. Ordersheet'!I356)","v":""},{"$f":"IF('1. Ordersheet'!J356=\"\",\"\",'1. Ordersheet'!J356)","v":""},{"$f":"IF('1. Ordersheet'!K356=\"\",\"\",'1. Ordersheet'!K356)","v":""},{"$f":"IF('1. Ordersheet'!M356=\"\",\"\",'1. Ordersheet'!M356)","v":""},null,null,{"$f":"'1. Ordersheet'!AR356","v":0},{"$f":"IF('1. Ordersheet'!AE356=\"\",\"\",'1. Ordersheet'!AE356)","v":""}]
[{"$f":"IF('1. Ordersheet'!B357=\"\",\"\",'1. Ordersheet'!B357)","v":""},{"$f":"IF('1. Ordersheet'!I357=\"\",\"\",'1. Ordersheet'!I357)","v":""},{"$f":"IF('1. Ordersheet'!J357=\"\",\"\",'1. Ordersheet'!J357)","v":""},{"$f":"IF('1. Ordersheet'!K357=\"\",\"\",'1. Ordersheet'!K357)","v":""},{"$f":"IF('1. Ordersheet'!M357=\"\",\"\",'1. Ordersheet'!M357)","v":""},null,null,{"$f":"'1. Ordersheet'!AR357","v":0},{"$f":"IF('1. Ordersheet'!AE357=\"\",\"\",'1. Ordersheet'!AE357)","v":""}]
[{"$f":"IF('1. Ordersheet'!B358=\"\",\"\",'1. Ordersheet'!B358)","v":""},{"$f":"IF('1. Ordersheet'!I358=\"\",\"\",'1. Ordersheet'!I358)","v":""},{"$f":"IF('1. Ordersheet'!J358=\"\",\"\",'1. Ordersheet'!J358)","v":""},{"$f":"IF('1. Ordersheet'!K358=\"\",\"\",'1. Ordersheet'!K358)","v":""},{"$f":"IF('1. Ordersheet'!M358=\"\",\"\",'1. Ordersheet'!M358)","v":""},null,null,{"$f":"'1. Ordersheet'!AR358","v":0},{"$f":"IF('1. Ordersheet'!AE358=\"\",\"\",'1. Ordersheet'!AE358)","v":""}]
[{"$f":"IF('1. Ordersheet'!B359=\"\",\"\",'1. Ordersheet'!B359)","v":""},{"$f":"IF('1. Ordersheet'!I359=\"\",\"\",'1. Ordersheet'!I359)","v":""},{"$f":"IF('1. Ordersheet'!J359=\"\",\"\",'1. Ordersheet'!J359)","v":""},{"$f":"IF('1. Ordersheet'!K359=\"\",\"\",'1. Ordersheet'!K359)","v":""},{"$f":"IF('1. Ordersheet'!M359=\"\",\"\",'1. Ordersheet'!M359)","v":""},null,null,{"$f":"'1. Ordersheet'!AR359","v":0},{"$f":"IF('1. Ordersheet'!AE359=\"\",\"\",'1. Ordersheet'!AE359)","v":""}]
[{"$f":"IF('1. Ordersheet'!B360=\"\",\"\",'1. Ordersheet'!B360)","v":""},{"$f":"IF('1. Ordersheet'!I360=\"\",\"\",'1. Ordersheet'!I360)","v":""},{"$f":"IF('1. Ordersheet'!J360=\"\",\"\",'1. Ordersheet'!J360)","v":""},{"$f":"IF('1. Ordersheet'!K360=\"\",\"\",'1. Ordersheet'!K360)","v":""},{"$f":"IF('1. Ordersheet'!M360=\"\",\"\",'1. Ordersheet'!M360)","v":""},null,null,{"$f":"'1. Ordersheet'!AR360","v":0},{"$f":"IF('1. Ordersheet'!AE360=\"\",\"\",'1. Ordersheet'!AE360)","v":""}]
[{"$f":"IF('1. Ordersheet'!B361=\"\",\"\",'1. Ordersheet'!B361)","v":""},{"$f":"IF('1. Ordersheet'!I361=\"\",\"\",'1. Ordersheet'!I361)","v":""},{"$f":"IF('1. Ordersheet'!J361=\"\",\"\",'1. Ordersheet'!J361)","v":""},{"$f":"IF('1. Ordersheet'!K361=\"\",\"\",'1. Ordersheet'!K361)","v":""},{"$f":"IF('1. Ordersheet'!M361=\"\",\"\",'1. Ordersheet'!M361)","v":""},null,null,{"$f":"'1. Ordersheet'!AR361","v":0},{"$f":"IF('1. Ordersheet'!AE361=\"\",\"\",'1. Ordersheet'!AE361)","v":""}]
[{"$f":"IF('1. Ordersheet'!B362=\"\",\"\",'1. Ordersheet'!B362)","v":""},{"$f":"IF('1. Ordersheet'!I362=\"\",\"\",'1. Ordersheet'!I362)","v":""},{"$f":"IF('1. Ordersheet'!J362=\"\",\"\",'1. Ordersheet'!J362)","v":""},{"$f":"IF('1. Ordersheet'!K362=\"\",\"\",'1. Ordersheet'!K362)","v":""},{"$f":"IF('1. Ordersheet'!M362=\"\",\"\",'1. Ordersheet'!M362)","v":""},null,null,{"$f":"'1. Ordersheet'!AR362","v":0},{"$f":"IF('1. Ordersheet'!AE362=\"\",\"\",'1. Ordersheet'!AE362)","v":""}]
[{"$f":"IF('1. Ordersheet'!B363=\"\",\"\",'1. Ordersheet'!B363)","v":""},{"$f":"IF('1. Ordersheet'!I363=\"\",\"\",'1. Ordersheet'!I363)","v":""},{"$f":"IF('1. Ordersheet'!J363=\"\",\"\",'1. Ordersheet'!J363)","v":""},{"$f":"IF('1. Ordersheet'!K363=\"\",\"\",'1. Ordersheet'!K363)","v":""},{"$f":"IF('1. Ordersheet'!M363=\"\",\"\",'1. Ordersheet'!M363)","v":""},null,null,{"$f":"'1. Ordersheet'!AR363","v":0},{"$f":"IF('1. Ordersheet'!AE363=\"\",\"\",'1. Ordersheet'!AE363)","v":""}]
[{"$f":"IF('1. Ordersheet'!B364=\"\",\"\",'1. Ordersheet'!B364)","v":""},{"$f":"IF('1. Ordersheet'!I364=\"\",\"\",'1. Ordersheet'!I364)","v":""},{"$f":"IF('1. Ordersheet'!J364=\"\",\"\",'1. Ordersheet'!J364)","v":""},{"$f":"IF('1. Ordersheet'!K364=\"\",\"\",'1. Ordersheet'!K364)","v":""},{"$f":"IF('1. Ordersheet'!M364=\"\",\"\",'1. Ordersheet'!M364)","v":""},null,null,{"$f":"'1. Ordersheet'!AR364","v":0},{"$f":"IF('1. Ordersheet'!AE364=\"\",\"\",'1. Ordersheet'!AE364)","v":""}]
[{"$f":"IF('1. Ordersheet'!B365=\"\",\"\",'1. Ordersheet'!B365)","v":""},{"$f":"IF('1. Ordersheet'!I365=\"\",\"\",'1. Ordersheet'!I365)","v":""},{"$f":"IF('1. Ordersheet'!J365=\"\",\"\",'1. Ordersheet'!J365)","v":""},{"$f":"IF('1. Ordersheet'!K365=\"\",\"\",'1. Ordersheet'!K365)","v":""},{"$f":"IF('1. Ordersheet'!M365=\"\",\"\",'1. Ordersheet'!M365)","v":""},null,null,{"$f":"'1. Ordersheet'!AR365","v":0},{"$f":"IF('1. Ordersheet'!AE365=\"\",\"\",'1. Ordersheet'!AE365)","v":""}]
[{"$f":"IF('1. Ordersheet'!B366=\"\",\"\",'1. Ordersheet'!B366)","v":""},{"$f":"IF('1. Ordersheet'!I366=\"\",\"\",'1. Ordersheet'!I366)","v":""},{"$f":"IF('1. Ordersheet'!J366=\"\",\"\",'1. Ordersheet'!J366)","v":""},{"$f":"IF('1. Ordersheet'!K366=\"\",\"\",'1. Ordersheet'!K366)","v":""},{"$f":"IF('1. Ordersheet'!M366=\"\",\"\",'1. Ordersheet'!M366)","v":""},null,null,{"$f":"'1. Ordersheet'!AR366","v":0},{"$f":"IF('1. Ordersheet'!AE366=\"\",\"\",'1. Ordersheet'!AE366)","v":""}]
[{"$f":"IF('1. Ordersheet'!B367=\"\",\"\",'1. Ordersheet'!B367)","v":""},{"$f":"IF('1. Ordersheet'!I367=\"\",\"\",'1. Ordersheet'!I367)","v":""},{"$f":"IF('1. Ordersheet'!J367=\"\",\"\",'1. Ordersheet'!J367)","v":""},{"$f":"IF('1. Ordersheet'!K367=\"\",\"\",'1. Ordersheet'!K367)","v":""},{"$f":"IF('1. Ordersheet'!M367=\"\",\"\",'1. Ordersheet'!M367)","v":""},null,null,{"$f":"'1. Ordersheet'!AR367","v":0},{"$f":"IF('1. Ordersheet'!AE367=\"\",\"\",'1. Ordersheet'!AE367)","v":""}]
[{"$f":"IF('1. Ordersheet'!B368=\"\",\"\",'1. Ordersheet'!B368)","v":""},{"$f":"IF('1. Ordersheet'!I368=\"\",\"\",'1. Ordersheet'!I368)","v":""},{"$f":"IF('1. Ordersheet'!J368=\"\",\"\",'1. Ordersheet'!J368)","v":""},{"$f":"IF('1. Ordersheet'!K368=\"\",\"\",'1. Ordersheet'!K368)","v":""},{"$f":"IF('1. Ordersheet'!M368=\"\",\"\",'1. Ordersheet'!M368)","v":""},null,null,{"$f":"'1. Ordersheet'!AR368","v":0},{"$f":"IF('1. Ordersheet'!AE368=\"\",\"\",'1. Ordersheet'!AE368)","v":""}]
[{"$f":"IF('1. Ordersheet'!B369=\"\",\"\",'1. Ordersheet'!B369)","v":""},{"$f":"IF('1. Ordersheet'!I369=\"\",\"\",'1. Ordersheet'!I369)","v":""},{"$f":"IF('1. Ordersheet'!J369=\"\",\"\",'1. Ordersheet'!J369)","v":""},{"$f":"IF('1. Ordersheet'!K369=\"\",\"\",'1. Ordersheet'!K369)","v":""},{"$f":"IF('1. Ordersheet'!M369=\"\",\"\",'1. Ordersheet'!M369)","v":""},null,null,{"$f":"'1. Ordersheet'!AR369","v":0},{"$f":"IF('1. Ordersheet'!AE369=\"\",\"\",'1. Ordersheet'!AE369)","v":""}]
[{"$f":"IF('1. Ordersheet'!B370=\"\",\"\",'1. Ordersheet'!B370)","v":""},{"$f":"IF('1. Ordersheet'!I370=\"\",\"\",'1. Ordersheet'!I370)","v":""},{"$f":"IF('1. Ordersheet'!J370=\"\",\"\",'1. Ordersheet'!J370)","v":""},{"$f":"IF('1. Ordersheet'!K370=\"\",\"\",'1. Ordersheet'!K370)","v":""},{"$f":"IF('1. Ordersheet'!M370=\"\",\"\",'1. Ordersheet'!M370)","v":""},null,null,{"$f":"'1. Ordersheet'!AR370","v":0},{"$f":"IF('1. Ordersheet'!AE370=\"\",\"\",'1. Ordersheet'!AE370)","v":""}]
[{"$f":"IF('1. Ordersheet'!B371=\"\",\"\",'1. Ordersheet'!B371)","v":""},{"$f":"IF('1. Ordersheet'!I371=\"\",\"\",'1. Ordersheet'!I371)","v":""},{"$f":"IF('1. Ordersheet'!J371=\"\",\"\",'1. Ordersheet'!J371)","v":""},{"$f":"IF('1. Ordersheet'!K371=\"\",\"\",'1. Ordersheet'!K371)","v":""},{"$f":"IF('1. Ordersheet'!M371=\"\",\"\",'1. Ordersheet'!M371)","v":""},null,null,{"$f":"'1. Ordersheet'!AR371","v":0},{"$f":"IF('1. Ordersheet'!AE371=\"\",\"\",'1. Ordersheet'!AE371)","v":""}]
[{"$f":"IF('1. Ordersheet'!B372=\"\",\"\",'1. Ordersheet'!B372)","v":""},{"$f":"IF('1. Ordersheet'!I372=\"\",\"\",'1. Ordersheet'!I372)","v":""},{"$f":"IF('1. Ordersheet'!J372=\"\",\"\",'1. Ordersheet'!J372)","v":""},{"$f":"IF('1. Ordersheet'!K372=\"\",\"\",'1. Ordersheet'!K372)","v":""},{"$f":"IF('1. Ordersheet'!M372=\"\",\"\",'1. Ordersheet'!M372)","v":""},null,null,{"$f":"'1. Ordersheet'!AR372","v":0},{"$f":"IF('1. Ordersheet'!AE372=\"\",\"\",'1. Ordersheet'!AE372)","v":""}]
[{"$f":"IF('1. Ordersheet'!B373=\"\",\"\",'1. Ordersheet'!B373)","v":""},{"$f":"IF('1. Ordersheet'!I373=\"\",\"\",'1. Ordersheet'!I373)","v":""},{"$f":"IF('1. Ordersheet'!J373=\"\",\"\",'1. Ordersheet'!J373)","v":""},{"$f":"IF('1. Ordersheet'!K373=\"\",\"\",'1. Ordersheet'!K373)","v":""},{"$f":"IF('1. Ordersheet'!M373=\"\",\"\",'1. Ordersheet'!M373)","v":""},null,null,{"$f":"'1. Ordersheet'!AR373","v":0},{"$f":"IF('1. Ordersheet'!AE373=\"\",\"\",'1. Ordersheet'!AE373)","v":""}]
[{"$f":"IF('1. Ordersheet'!B374=\"\",\"\",'1. Ordersheet'!B374)","v":""},{"$f":"IF('1. Ordersheet'!I374=\"\",\"\",'1. Ordersheet'!I374)","v":""},{"$f":"IF('1. Ordersheet'!J374=\"\",\"\",'1. Ordersheet'!J374)","v":""},{"$f":"IF('1. Ordersheet'!K374=\"\",\"\",'1. Ordersheet'!K374)","v":""},{"$f":"IF('1. Ordersheet'!M374=\"\",\"\",'1. Ordersheet'!M374)","v":""},null,null,{"$f":"'1. Ordersheet'!AR374","v":0},{"$f":"IF('1. Ordersheet'!AE374=\"\",\"\",'1. Ordersheet'!AE374)","v":""}]
[{"$f":"IF('1. Ordersheet'!B375=\"\",\"\",'1. Ordersheet'!B375)","v":""},{"$f":"IF('1. Ordersheet'!I375=\"\",\"\",'1. Ordersheet'!I375)","v":""},{"$f":"IF('1. Ordersheet'!J375=\"\",\"\",'1. Ordersheet'!J375)","v":""},{"$f":"IF('1. Ordersheet'!K375=\"\",\"\",'1. Ordersheet'!K375)","v":""},{"$f":"IF('1. Ordersheet'!M375=\"\",\"\",'1. Ordersheet'!M375)","v":""},null,null,{"$f":"'1. Ordersheet'!AR375","v":0},{"$f":"IF('1. Ordersheet'!AE375=\"\",\"\",'1. Ordersheet'!AE375)","v":""}]
[{"$f":"IF('1. Ordersheet'!B376=\"\",\"\",'1. Ordersheet'!B376)","v":""},{"$f":"IF('1. Ordersheet'!I376=\"\",\"\",'1. Ordersheet'!I376)","v":""},{"$f":"IF('1. Ordersheet'!J376=\"\",\"\",'1. Ordersheet'!J376)","v":""},{"$f":"IF('1. Ordersheet'!K376=\"\",\"\",'1. Ordersheet'!K376)","v":""},{"$f":"IF('1. Ordersheet'!M376=\"\",\"\",'1. Ordersheet'!M376)","v":""},null,null,{"$f":"'1. Ordersheet'!AR376","v":0},{"$f":"IF('1. Ordersheet'!AE376=\"\",\"\",'1. Ordersheet'!AE376)","v":""}]
[{"$f":"IF('1. Ordersheet'!B377=\"\",\"\",'1. Ordersheet'!B377)","v":""},{"$f":"IF('1. Ordersheet'!I377=\"\",\"\",'1. Ordersheet'!I377)","v":""},{"$f":"IF('1. Ordersheet'!J377=\"\",\"\",'1. Ordersheet'!J377)","v":""},{"$f":"IF('1. Ordersheet'!K377=\"\",\"\",'1. Ordersheet'!K377)","v":""},{"$f":"IF('1. Ordersheet'!M377=\"\",\"\",'1. Ordersheet'!M377)","v":""},null,null,{"$f":"'1. Ordersheet'!AR377","v":0},{"$f":"IF('1. Ordersheet'!AE377=\"\",\"\",'1. Ordersheet'!AE377)","v":""}]
[{"$f":"IF('1. Ordersheet'!B378=\"\",\"\",'1. Ordersheet'!B378)","v":""},{"$f":"IF('1. Ordersheet'!I378=\"\",\"\",'1. Ordersheet'!I378)","v":""},{"$f":"IF('1. Ordersheet'!J378=\"\",\"\",'1. Ordersheet'!J378)","v":""},{"$f":"IF('1. Ordersheet'!K378=\"\",\"\",'1. Ordersheet'!K378)","v":""},{"$f":"IF('1. Ordersheet'!M378=\"\",\"\",'1. Ordersheet'!M378)","v":""},null,null,{"$f":"'1. Ordersheet'!AR378","v":0},{"$f":"IF('1. Ordersheet'!AE378=\"\",\"\",'1. Ordersheet'!AE378)","v":""}]
[{"$f":"IF('1. Ordersheet'!B379=\"\",\"\",'1. Ordersheet'!B379)","v":""},{"$f":"IF('1. Ordersheet'!I379=\"\",\"\",'1. Ordersheet'!I379)","v":""},{"$f":"IF('1. Ordersheet'!J379=\"\",\"\",'1. Ordersheet'!J379)","v":""},{"$f":"IF('1. Ordersheet'!K379=\"\",\"\",'1. Ordersheet'!K379)","v":""},{"$f":"IF('1. Ordersheet'!M379=\"\",\"\",'1. Ordersheet'!M379)","v":""},null,null,{"$f":"'1. Ordersheet'!AR379","v":0},{"$f":"IF('1. Ordersheet'!AE379=\"\",\"\",'1. Ordersheet'!AE379)","v":""}]
[{"$f":"IF('1. Ordersheet'!B380=\"\",\"\",'1. Ordersheet'!B380)","v":""},{"$f":"IF('1. Ordersheet'!I380=\"\",\"\",'1. Ordersheet'!I380)","v":""},{"$f":"IF('1. Ordersheet'!J380=\"\",\"\",'1. Ordersheet'!J380)","v":""},{"$f":"IF('1. Ordersheet'!K380=\"\",\"\",'1. Ordersheet'!K380)","v":""},{"$f":"IF('1. Ordersheet'!M380=\"\",\"\",'1. Ordersheet'!M380)","v":""},null,null,{"$f":"'1. Ordersheet'!AR380","v":0},{"$f":"IF('1. Ordersheet'!AE380=\"\",\"\",'1. Ordersheet'!AE380)","v":""}]
[{"$f":"IF('1. Ordersheet'!B381=\"\",\"\",'1. Ordersheet'!B381)","v":""},{"$f":"IF('1. Ordersheet'!I381=\"\",\"\",'1. Ordersheet'!I381)","v":""},{"$f":"IF('1. Ordersheet'!J381=\"\",\"\",'1. Ordersheet'!J381)","v":""},{"$f":"IF('1. Ordersheet'!K381=\"\",\"\",'1. Ordersheet'!K381)","v":""},{"$f":"IF('1. Ordersheet'!M381=\"\",\"\",'1. Ordersheet'!M381)","v":""},null,null,{"$f":"'1. Ordersheet'!AR381","v":0},{"$f":"IF('1. Ordersheet'!AE381=\"\",\"\",'1. Ordersheet'!AE381)","v":""}]
[{"$f":"IF('1. Ordersheet'!B382=\"\",\"\",'1. Ordersheet'!B382)","v":""},{"$f":"IF('1. Ordersheet'!I382=\"\",\"\",'1. Ordersheet'!I382)","v":""},{"$f":"IF('1. Ordersheet'!J382=\"\",\"\",'1. Ordersheet'!J382)","v":""},{"$f":"IF('1. Ordersheet'!K382=\"\",\"\",'1. Ordersheet'!K382)","v":""},{"$f":"IF('1. Ordersheet'!M382=\"\",\"\",'1. Ordersheet'!M382)","v":""},null,null,{"$f":"'1. Ordersheet'!AR382","v":0},{"$f":"IF('1. Ordersheet'!AE382=\"\",\"\",'1. Ordersheet'!AE382)","v":""}]
[{"$f":"IF('1. Ordersheet'!B383=\"\",\"\",'1. Ordersheet'!B383)","v":""},{"$f":"IF('1. Ordersheet'!I383=\"\",\"\",'1. Ordersheet'!I383)","v":""},{"$f":"IF('1. Ordersheet'!J383=\"\",\"\",'1. Ordersheet'!J383)","v":""},{"$f":"IF('1. Ordersheet'!K383=\"\",\"\",'1. Ordersheet'!K383)","v":""},{"$f":"IF('1. Ordersheet'!M383=\"\",\"\",'1. Ordersheet'!M383)","v":""},null,null,{"$f":"'1. Ordersheet'!AR383","v":0},{"$f":"IF('1. Ordersheet'!AE383=\"\",\"\",'1. Ordersheet'!AE383)","v":""}]
[{"$f":"IF('1. Ordersheet'!B384=\"\",\"\",'1. Ordersheet'!B384)","v":""},{"$f":"IF('1. Ordersheet'!I384=\"\",\"\",'1. Ordersheet'!I384)","v":""},{"$f":"IF('1. Ordersheet'!J384=\"\",\"\",'1. Ordersheet'!J384)","v":""},{"$f":"IF('1. Ordersheet'!K384=\"\",\"\",'1. Ordersheet'!K384)","v":""},{"$f":"IF('1. Ordersheet'!M384=\"\",\"\",'1. Ordersheet'!M384)","v":""},null,null,{"$f":"'1. Ordersheet'!AR384","v":0},{"$f":"IF('1. Ordersheet'!AE384=\"\",\"\",'1. Ordersheet'!AE384)","v":""}]
[{"$f":"IF('1. Ordersheet'!B385=\"\",\"\",'1. Ordersheet'!B385)","v":""},{"$f":"IF('1. Ordersheet'!I385=\"\",\"\",'1. Ordersheet'!I385)","v":""},{"$f":"IF('1. Ordersheet'!J385=\"\",\"\",'1. Ordersheet'!J385)","v":""},{"$f":"IF('1. Ordersheet'!K385=\"\",\"\",'1. Ordersheet'!K385)","v":""},{"$f":"IF('1. Ordersheet'!M385=\"\",\"\",'1. Ordersheet'!M385)","v":""},null,null,{"$f":"'1. Ordersheet'!AR385","v":0},{"$f":"IF('1. Ordersheet'!AE385=\"\",\"\",'1. Ordersheet'!AE385)","v":""}]
[{"$f":"IF('1. Ordersheet'!B386=\"\",\"\",'1. Ordersheet'!B386)","v":""},{"$f":"IF('1. Ordersheet'!I386=\"\",\"\",'1. Ordersheet'!I386)","v":""},{"$f":"IF('1. Ordersheet'!J386=\"\",\"\",'1. Ordersheet'!J386)","v":""},{"$f":"IF('1. Ordersheet'!K386=\"\",\"\",'1. Ordersheet'!K386)","v":""},{"$f":"IF('1. Ordersheet'!M386=\"\",\"\",'1. Ordersheet'!M386)","v":""},null,null,{"$f":"'1. Ordersheet'!AR386","v":0},{"$f":"IF('1. Ordersheet'!AE386=\"\",\"\",'1. Ordersheet'!AE386)","v":""}]
[{"$f":"IF('1. Ordersheet'!B387=\"\",\"\",'1. Ordersheet'!B387)","v":""},{"$f":"IF('1. Ordersheet'!I387=\"\",\"\",'1. Ordersheet'!I387)","v":""},{"$f":"IF('1. Ordersheet'!J387=\"\",\"\",'1. Ordersheet'!J387)","v":""},{"$f":"IF('1. Ordersheet'!K387=\"\",\"\",'1. Ordersheet'!K387)","v":""},{"$f":"IF('1. Ordersheet'!M387=\"\",\"\",'1. Ordersheet'!M387)","v":""},null,null,{"$f":"'1. Ordersheet'!AR387","v":0},{"$f":"IF('1. Ordersheet'!AE387=\"\",\"\",'1. Ordersheet'!AE387)","v":""}]
[{"$f":"IF('1. Ordersheet'!B388=\"\",\"\",'1. Ordersheet'!B388)","v":""},{"$f":"IF('1. Ordersheet'!I388=\"\",\"\",'1. Ordersheet'!I388)","v":""},{"$f":"IF('1. Ordersheet'!J388=\"\",\"\",'1. Ordersheet'!J388)","v":""},{"$f":"IF('1. Ordersheet'!K388=\"\",\"\",'1. Ordersheet'!K388)","v":""},{"$f":"IF('1. Ordersheet'!M388=\"\",\"\",'1. Ordersheet'!M388)","v":""},null,null,{"$f":"'1. Ordersheet'!AR388","v":0},{"$f":"IF('1. Ordersheet'!AE388=\"\",\"\",'1. Ordersheet'!AE388)","v":""}]
[{"$f":"IF('1. Ordersheet'!B389=\"\",\"\",'1. Ordersheet'!B389)","v":""},{"$f":"IF('1. Ordersheet'!I389=\"\",\"\",'1. Ordersheet'!I389)","v":""},{"$f":"IF('1. Ordersheet'!J389=\"\",\"\",'1. Ordersheet'!J389)","v":""},{"$f":"IF('1. Ordersheet'!K389=\"\",\"\",'1. Ordersheet'!K389)","v":""},{"$f":"IF('1. Ordersheet'!M389=\"\",\"\",'1. Ordersheet'!M389)","v":""},null,null,{"$f":"'1. Ordersheet'!AR389","v":0},{"$f":"IF('1. Ordersheet'!AE389=\"\",\"\",'1. Ordersheet'!AE389)","v":""}]
[{"$f":"IF('1. Ordersheet'!B390=\"\",\"\",'1. Ordersheet'!B390)","v":""},{"$f":"IF('1. Ordersheet'!I390=\"\",\"\",'1. Ordersheet'!I390)","v":""},{"$f":"IF('1. Ordersheet'!J390=\"\",\"\",'1. Ordersheet'!J390)","v":""},{"$f":"IF('1. Ordersheet'!K390=\"\",\"\",'1. Ordersheet'!K390)","v":""},{"$f":"IF('1. Ordersheet'!M390=\"\",\"\",'1. Ordersheet'!M390)","v":""},null,null,{"$f":"'1. Ordersheet'!AR390","v":0},{"$f":"IF('1. Ordersheet'!AE390=\"\",\"\",'1. Ordersheet'!AE390)","v":""}]
[{"$f":"IF('1. Ordersheet'!B391=\"\",\"\",'1. Ordersheet'!B391)","v":""},{"$f":"IF('1. Ordersheet'!I391=\"\",\"\",'1. Ordersheet'!I391)","v":""},{"$f":"IF('1. Ordersheet'!J391=\"\",\"\",'1. Ordersheet'!J391)","v":""},{"$f":"IF('1. Ordersheet'!K391=\"\",\"\",'1. Ordersheet'!K391)","v":""},{"$f":"IF('1. Ordersheet'!M391=\"\",\"\",'1. Ordersheet'!M391)","v":""},null,null,{"$f":"'1. Ordersheet'!AR391","v":0},{"$f":"IF('1. Ordersheet'!AE391=\"\",\"\",'1. Ordersheet'!AE391)","v":""}]
[{"$f":"IF('1. Ordersheet'!B392=\"\",\"\",'1. Ordersheet'!B392)","v":""},{"$f":"IF('1. Ordersheet'!I392=\"\",\"\",'1. Ordersheet'!I392)","v":""},{"$f":"IF('1. Ordersheet'!J392=\"\",\"\",'1. Ordersheet'!J392)","v":""},{"$f":"IF('1. Ordersheet'!K392=\"\",\"\",'1. Ordersheet'!K392)","v":""},{"$f":"IF('1. Ordersheet'!M392=\"\",\"\",'1. Ordersheet'!M392)","v":""},null,null,{"$f":"'1. Ordersheet'!AR392","v":0},{"$f":"IF('1. Ordersheet'!AE392=\"\",\"\",'1. Ordersheet'!AE392)","v":""}]
[{"$f":"IF('1. Ordersheet'!B393=\"\",\"\",'1. Ordersheet'!B393)","v":""},{"$f":"IF('1. Ordersheet'!I393=\"\",\"\",'1. Ordersheet'!I393)","v":""},{"$f":"IF('1. Ordersheet'!J393=\"\",\"\",'1. Ordersheet'!J393)","v":""},{"$f":"IF('1. Ordersheet'!K393=\"\",\"\",'1. Ordersheet'!K393)","v":""},{"$f":"IF('1. Ordersheet'!M393=\"\",\"\",'1. Ordersheet'!M393)","v":""},null,null,{"$f":"'1. Ordersheet'!AR393","v":0},{"$f":"IF('1. Ordersheet'!AE393=\"\",\"\",'1. Ordersheet'!AE393)","v":""}]
[{"$f":"IF('1. Ordersheet'!B394=\"\",\"\",'1. Ordersheet'!B394)","v":""},{"$f":"IF('1. Ordersheet'!I394=\"\",\"\",'1. Ordersheet'!I394)","v":""},{"$f":"IF('1. Ordersheet'!J394=\"\",\"\",'1. Ordersheet'!J394)","v":""},{"$f":"IF('1. Ordersheet'!K394=\"\",\"\",'1. Ordersheet'!K394)","v":""},{"$f":"IF('1. Ordersheet'!M394=\"\",\"\",'1. Ordersheet'!M394)","v":""},null,null,{"$f":"'1. Ordersheet'!AR394","v":0},{"$f":"IF('1. Ordersheet'!AE394=\"\",\"\",'1. Ordersheet'!AE394)","v":""}]
[{"$f":"IF('1. Ordersheet'!B395=\"\",\"\",'1. Ordersheet'!B395)","v":""},{"$f":"IF('1. Ordersheet'!I395=\"\",\"\",'1. Ordersheet'!I395)","v":""},{"$f":"IF('1. Ordersheet'!J395=\"\",\"\",'1. Ordersheet'!J395)","v":""},{"$f":"IF('1. Ordersheet'!K395=\"\",\"\",'1. Ordersheet'!K395)","v":""},{"$f":"IF('1. Ordersheet'!M395=\"\",\"\",'1. Ordersheet'!M395)","v":""},null,null,{"$f":"'1. Ordersheet'!AR395","v":0},{"$f":"IF('1. Ordersheet'!AE395=\"\",\"\",'1. Ordersheet'!AE395)","v":""}]
[{"$f":"IF('1. Ordersheet'!B396=\"\",\"\",'1. Ordersheet'!B396)","v":""},{"$f":"IF('1. Ordersheet'!I396=\"\",\"\",'1. Ordersheet'!I396)","v":""},{"$f":"IF('1. Ordersheet'!J396=\"\",\"\",'1. Ordersheet'!J396)","v":""},{"$f":"IF('1. Ordersheet'!K396=\"\",\"\",'1. Ordersheet'!K396)","v":""},{"$f":"IF('1. Ordersheet'!M396=\"\",\"\",'1. Ordersheet'!M396)","v":""},null,null,{"$f":"'1. Ordersheet'!AR396","v":0},{"$f":"IF('1. Ordersheet'!AE396=\"\",\"\",'1. Ordersheet'!AE396)","v":""}]
[{"$f":"IF('1. Ordersheet'!B397=\"\",\"\",'1. Ordersheet'!B397)","v":""},{"$f":"IF('1. Ordersheet'!I397=\"\",\"\",'1. Ordersheet'!I397)","v":""},{"$f":"IF('1. Ordersheet'!J397=\"\",\"\",'1. Ordersheet'!J397)","v":""},{"$f":"IF('1. Ordersheet'!K397=\"\",\"\",'1. Ordersheet'!K397)","v":""},{"$f":"IF('1. Ordersheet'!M397=\"\",\"\",'1. Ordersheet'!M397)","v":""},null,null,{"$f":"'1. Ordersheet'!AR397","v":0},{"$f":"IF('1. Ordersheet'!AE397=\"\",\"\",'1. Ordersheet'!AE397)","v":""}]
[{"$f":"IF('1. Ordersheet'!B398=\"\",\"\",'1. Ordersheet'!B398)","v":""},{"$f":"IF('1. Ordersheet'!I398=\"\",\"\",'1. Ordersheet'!I398)","v":""},{"$f":"IF('1. Ordersheet'!J398=\"\",\"\",'1. Ordersheet'!J398)","v":""},{"$f":"IF('1. Ordersheet'!K398=\"\",\"\",'1. Ordersheet'!K398)","v":""},{"$f":"IF('1. Ordersheet'!M398=\"\",\"\",'1. Ordersheet'!M398)","v":""},null,null,{"$f":"'1. Ordersheet'!AR398","v":0},{"$f":"IF('1. Ordersheet'!AE398=\"\",\"\",'1. Ordersheet'!AE398)","v":""}]
[{"$f":"IF('1. Ordersheet'!B399=\"\",\"\",'1. Ordersheet'!B399)","v":""},{"$f":"IF('1. Ordersheet'!I399=\"\",\"\",'1. Ordersheet'!I399)","v":""},{"$f":"IF('1. Ordersheet'!J399=\"\",\"\",'1. Ordersheet'!J399)","v":""},{"$f":"IF('1. Ordersheet'!K399=\"\",\"\",'1. Ordersheet'!K399)","v":""},{"$f":"IF('1. Ordersheet'!M399=\"\",\"\",'1. Ordersheet'!M399)","v":""},null,null,{"$f":"'1. Ordersheet'!AR399","v":0},{"$f":"IF('1. Ordersheet'!AE399=\"\",\"\",'1. Ordersheet'!AE399)","v":""}]
[{"$f":"IF('1. Ordersheet'!B400=\"\",\"\",'1. Ordersheet'!B400)","v":""},{"$f":"IF('1. Ordersheet'!I400=\"\",\"\",'1. Ordersheet'!I400)","v":""},{"$f":"IF('1. Ordersheet'!J400=\"\",\"\",'1. Ordersheet'!J400)","v":""},{"$f":"IF('1. Ordersheet'!K400=\"\",\"\",'1. Ordersheet'!K400)","v":""},{"$f":"IF('1. Ordersheet'!M400=\"\",\"\",'1. Ordersheet'!M400)","v":""},null,null,{"$f":"'1. Ordersheet'!AR400","v":0},{"$f":"IF('1. Ordersheet'!AE400=\"\",\"\",'1. Ordersheet'!AE400)","v":""}]
[{"$f":"IF('1. Ordersheet'!B401=\"\",\"\",'1. Ordersheet'!B401)","v":""},{"$f":"IF('1. Ordersheet'!I401=\"\",\"\",'1. Ordersheet'!I401)","v":""},{"$f":"IF('1. Ordersheet'!J401=\"\",\"\",'1. Ordersheet'!J401)","v":""},{"$f":"IF('1. Ordersheet'!K401=\"\",\"\",'1. Ordersheet'!K401)","v":""},{"$f":"IF('1. Ordersheet'!M401=\"\",\"\",'1. Ordersheet'!M401)","v":""},null,null,{"$f":"'1. Ordersheet'!AR401","v":0},{"$f":"IF('1. Ordersheet'!AE401=\"\",\"\",'1. Ordersheet'!AE401)","v":""}]
[{"$f":"IF('1. Ordersheet'!B402=\"\",\"\",'1. Ordersheet'!B402)","v":""},{"$f":"IF('1. Ordersheet'!I402=\"\",\"\",'1. Ordersheet'!I402)","v":""},{"$f":"IF('1. Ordersheet'!J402=\"\",\"\",'1. Ordersheet'!J402)","v":""},{"$f":"IF('1. Ordersheet'!K402=\"\",\"\",'1. Ordersheet'!K402)","v":""},{"$f":"IF('1. Ordersheet'!M402=\"\",\"\",'1. Ordersheet'!M402)","v":""},null,null,{"$f":"'1. Ordersheet'!AR402","v":0},{"$f":"IF('1. Ordersheet'!AE402=\"\",\"\",'1. Ordersheet'!AE402)","v":""}]
[{"$f":"IF('1. Ordersheet'!B403=\"\",\"\",'1. Ordersheet'!B403)","v":""},{"$f":"IF('1. Ordersheet'!I403=\"\",\"\",'1. Ordersheet'!I403)","v":""},{"$f":"IF('1. Ordersheet'!J403=\"\",\"\",'1. Ordersheet'!J403)","v":""},{"$f":"IF('1. Ordersheet'!K403=\"\",\"\",'1. Ordersheet'!K403)","v":""},{"$f":"IF('1. Ordersheet'!M403=\"\",\"\",'1. Ordersheet'!M403)","v":""},null,null,{"$f":"'1. Ordersheet'!AR403","v":0},{"$f":"IF('1. Ordersheet'!AE403=\"\",\"\",'1. Ordersheet'!AE403)","v":""}]
[{"$f":"IF('1. Ordersheet'!B404=\"\",\"\",'1. Ordersheet'!B404)","v":""},{"$f":"IF('1. Ordersheet'!I404=\"\",\"\",'1. Ordersheet'!I404)","v":""},{"$f":"IF('1. Ordersheet'!J404=\"\",\"\",'1. Ordersheet'!J404)","v":""},{"$f":"IF('1. Ordersheet'!K404=\"\",\"\",'1. Ordersheet'!K404)","v":""},{"$f":"IF('1. Ordersheet'!M404=\"\",\"\",'1. Ordersheet'!M404)","v":""},null,null,{"$f":"'1. Ordersheet'!AR404","v":0},{"$f":"IF('1. Ordersheet'!AE404=\"\",\"\",'1. Ordersheet'!AE404)","v":""}]
[{"$f":"IF('1. Ordersheet'!B405=\"\",\"\",'1. Ordersheet'!B405)","v":""},{"$f":"IF('1. Ordersheet'!I405=\"\",\"\",'1. Ordersheet'!I405)","v":""},{"$f":"IF('1. Ordersheet'!J405=\"\",\"\",'1. Ordersheet'!J405)","v":""},{"$f":"IF('1. Ordersheet'!K405=\"\",\"\",'1. Ordersheet'!K405)","v":""},{"$f":"IF('1. Ordersheet'!M405=\"\",\"\",'1. Ordersheet'!M405)","v":""},null,null,{"$f":"'1. Ordersheet'!AR405","v":0},{"$f":"IF('1. Ordersheet'!AE405=\"\",\"\",'1. Ordersheet'!AE405)","v":""}]
[{"$f":"IF('1. Ordersheet'!B406=\"\",\"\",'1. Ordersheet'!B406)","v":""},{"$f":"IF('1. Ordersheet'!I406=\"\",\"\",'1. Ordersheet'!I406)","v":""},{"$f":"IF('1. Ordersheet'!J406=\"\",\"\",'1. Ordersheet'!J406)","v":""},{"$f":"IF('1. Ordersheet'!K406=\"\",\"\",'1. Ordersheet'!K406)","v":""},{"$f":"IF('1. Ordersheet'!M406=\"\",\"\",'1. Ordersheet'!M406)","v":""},null,null,{"$f":"'1. Ordersheet'!AR406","v":0},{"$f":"IF('1. Ordersheet'!AE406=\"\",\"\",'1. Ordersheet'!AE406)","v":""}]
[{"$f":"IF('1. Ordersheet'!B407=\"\",\"\",'1. Ordersheet'!B407)","v":""},{"$f":"IF('1. Ordersheet'!I407=\"\",\"\",'1. Ordersheet'!I407)","v":""},{"$f":"IF('1. Ordersheet'!J407=\"\",\"\",'1. Ordersheet'!J407)","v":""},{"$f":"IF('1. Ordersheet'!K407=\"\",\"\",'1. Ordersheet'!K407)","v":""},{"$f":"IF('1. Ordersheet'!M407=\"\",\"\",'1. Ordersheet'!M407)","v":""},null,null,{"$f":"'1. Ordersheet'!AR407","v":0},{"$f":"IF('1. Ordersheet'!AE407=\"\",\"\",'1. Ordersheet'!AE407)","v":""}]
[{"$f":"IF('1. Ordersheet'!B408=\"\",\"\",'1. Ordersheet'!B408)","v":""},{"$f":"IF('1. Ordersheet'!I408=\"\",\"\",'1. Ordersheet'!I408)","v":""},{"$f":"IF('1. Ordersheet'!J408=\"\",\"\",'1. Ordersheet'!J408)","v":""},{"$f":"IF('1. Ordersheet'!K408=\"\",\"\",'1. Ordersheet'!K408)","v":""},{"$f":"IF('1. Ordersheet'!M408=\"\",\"\",'1. Ordersheet'!M408)","v":""},null,null,{"$f":"'1. Ordersheet'!AR408","v":0},{"$f":"IF('1. Ordersheet'!AE408=\"\",\"\",'1. Ordersheet'!AE408)","v":""}]
[{"$f":"IF('1. Ordersheet'!B409=\"\",\"\",'1. Ordersheet'!B409)","v":""},{"$f":"IF('1. Ordersheet'!I409=\"\",\"\",'1. Ordersheet'!I409)","v":""},{"$f":"IF('1. Ordersheet'!J409=\"\",\"\",'1. Ordersheet'!J409)","v":""},{"$f":"IF('1. Ordersheet'!K409=\"\",\"\",'1. Ordersheet'!K409)","v":""},{"$f":"IF('1. Ordersheet'!M409=\"\",\"\",'1. Ordersheet'!M409)","v":""},null,null,{"$f":"'1. Ordersheet'!AR409","v":0},{"$f":"IF('1. Ordersheet'!AE409=\"\",\"\",'1. Ordersheet'!AE409)","v":""}]
[{"$f":"IF('1. Ordersheet'!B410=\"\",\"\",'1. Ordersheet'!B410)","v":""},{"$f":"IF('1. Ordersheet'!I410=\"\",\"\",'1. Ordersheet'!I410)","v":""},{"$f":"IF('1. Ordersheet'!J410=\"\",\"\",'1. Ordersheet'!J410)","v":""},{"$f":"IF('1. Ordersheet'!K410=\"\",\"\",'1. Ordersheet'!K410)","v":""},{"$f":"IF('1. Ordersheet'!M410=\"\",\"\",'1. Ordersheet'!M410)","v":""},null,null,{"$f":"'1. Ordersheet'!AR410","v":0},{"$f":"IF('1. Ordersheet'!AE410=\"\",\"\",'1. Ordersheet'!AE410)","v":""}]
[{"$f":"IF('1. Ordersheet'!B411=\"\",\"\",'1. Ordersheet'!B411)","v":""},{"$f":"IF('1. Ordersheet'!I411=\"\",\"\",'1. Ordersheet'!I411)","v":""},{"$f":"IF('1. Ordersheet'!J411=\"\",\"\",'1. Ordersheet'!J411)","v":""},{"$f":"IF('1. Ordersheet'!K411=\"\",\"\",'1. Ordersheet'!K411)","v":""},{"$f":"IF('1. Ordersheet'!M411=\"\",\"\",'1. Ordersheet'!M411)","v":""},null,null,{"$f":"'1. Ordersheet'!AR411","v":0},{"$f":"IF('1. Ordersheet'!AE411=\"\",\"\",'1. Ordersheet'!AE411)","v":""}]
[{"$f":"IF('1. Ordersheet'!B412=\"\",\"\",'1. Ordersheet'!B412)","v":""},{"$f":"IF('1. Ordersheet'!I412=\"\",\"\",'1. Ordersheet'!I412)","v":""},{"$f":"IF('1. Ordersheet'!J412=\"\",\"\",'1. Ordersheet'!J412)","v":""},{"$f":"IF('1. Ordersheet'!K412=\"\",\"\",'1. Ordersheet'!K412)","v":""},{"$f":"IF('1. Ordersheet'!M412=\"\",\"\",'1. Ordersheet'!M412)","v":""},null,null,{"$f":"'1. Ordersheet'!AR412","v":0},{"$f":"IF('1. Ordersheet'!AE412=\"\",\"\",'1. Ordersheet'!AE412)","v":""}]
[{"$f":"IF('1. Ordersheet'!B413=\"\",\"\",'1. Ordersheet'!B413)","v":""},{"$f":"IF('1. Ordersheet'!I413=\"\",\"\",'1. Ordersheet'!I413)","v":""},{"$f":"IF('1. Ordersheet'!J413=\"\",\"\",'1. Ordersheet'!J413)","v":""},{"$f":"IF('1. Ordersheet'!K413=\"\",\"\",'1. Ordersheet'!K413)","v":""},{"$f":"IF('1. Ordersheet'!M413=\"\",\"\",'1. Ordersheet'!M413)","v":""},null,null,{"$f":"'1. Ordersheet'!AR413","v":0},{"$f":"IF('1. Ordersheet'!AE413=\"\",\"\",'1. Ordersheet'!AE413)","v":""}]
[{"$f":"IF('1. Ordersheet'!B414=\"\",\"\",'1. Ordersheet'!B414)","v":""},{"$f":"IF('1. Ordersheet'!I414=\"\",\"\",'1. Ordersheet'!I414)","v":""},{"$f":"IF('1. Ordersheet'!J414=\"\",\"\",'1. Ordersheet'!J414)","v":""},{"$f":"IF('1. Ordersheet'!K414=\"\",\"\",'1. Ordersheet'!K414)","v":""},{"$f":"IF('1. Ordersheet'!M414=\"\",\"\",'1. Ordersheet'!M414)","v":""},null,null,{"$f":"'1. Ordersheet'!AR414","v":0},{"$f":"IF('1. Ordersheet'!AE414=\"\",\"\",'1. Ordersheet'!AE414)","v":""}]
[{"$f":"IF('1. Ordersheet'!B415=\"\",\"\",'1. Ordersheet'!B415)","v":""},{"$f":"IF('1. Ordersheet'!I415=\"\",\"\",'1. Ordersheet'!I415)","v":""},{"$f":"IF('1. Ordersheet'!J415=\"\",\"\",'1. Ordersheet'!J415)","v":""},{"$f":"IF('1. Ordersheet'!K415=\"\",\"\",'1. Ordersheet'!K415)","v":""},{"$f":"IF('1. Ordersheet'!M415=\"\",\"\",'1. Ordersheet'!M415)","v":""},null,null,{"$f":"'1. Ordersheet'!AR415","v":0},{"$f":"IF('1. Ordersheet'!AE415=\"\",\"\",'1. Ordersheet'!AE415)","v":""}]
[{"$f":"IF('1. Ordersheet'!B416=\"\",\"\",'1. Ordersheet'!B416)","v":""},{"$f":"IF('1. Ordersheet'!I416=\"\",\"\",'1. Ordersheet'!I416)","v":""},{"$f":"IF('1. Ordersheet'!J416=\"\",\"\",'1. Ordersheet'!J416)","v":""},{"$f":"IF('1. Ordersheet'!K416=\"\",\"\",'1. Ordersheet'!K416)","v":""},{"$f":"IF('1. Ordersheet'!M416=\"\",\"\",'1. Ordersheet'!M416)","v":""},null,null,{"$f":"'1. Ordersheet'!AR416","v":0},{"$f":"IF('1. Ordersheet'!AE416=\"\",\"\",'1. Ordersheet'!AE416)","v":""}]
[{"$f":"IF('1. Ordersheet'!B417=\"\",\"\",'1. Ordersheet'!B417)","v":""},{"$f":"IF('1. Ordersheet'!I417=\"\",\"\",'1. Ordersheet'!I417)","v":""},{"$f":"IF('1. Ordersheet'!J417=\"\",\"\",'1. Ordersheet'!J417)","v":""},{"$f":"IF('1. Ordersheet'!K417=\"\",\"\",'1. Ordersheet'!K417)","v":""},{"$f":"IF('1. Ordersheet'!M417=\"\",\"\",'1. Ordersheet'!M417)","v":""},null,null,{"$f":"'1. Ordersheet'!AR417","v":0},{"$f":"IF('1. Ordersheet'!AE417=\"\",\"\",'1. Ordersheet'!AE417)","v":""}]
[{"$f":"IF('1. Ordersheet'!B418=\"\",\"\",'1. Ordersheet'!B418)","v":""},{"$f":"IF('1. Ordersheet'!I418=\"\",\"\",'1. Ordersheet'!I418)","v":""},{"$f":"IF('1. Ordersheet'!J418=\"\",\"\",'1. Ordersheet'!J418)","v":""},{"$f":"IF('1. Ordersheet'!K418=\"\",\"\",'1. Ordersheet'!K418)","v":""},{"$f":"IF('1. Ordersheet'!M418=\"\",\"\",'1. Ordersheet'!M418)","v":""},null,null,{"$f":"'1. Ordersheet'!AR418","v":0},{"$f":"IF('1. Ordersheet'!AE418=\"\",\"\",'1. Ordersheet'!AE418)","v":""}]
[{"$f":"IF('1. Ordersheet'!B419=\"\",\"\",'1. Ordersheet'!B419)","v":""},{"$f":"IF('1. Ordersheet'!I419=\"\",\"\",'1. Ordersheet'!I419)","v":""},{"$f":"IF('1. Ordersheet'!J419=\"\",\"\",'1. Ordersheet'!J419)","v":""},{"$f":"IF('1. Ordersheet'!K419=\"\",\"\",'1. Ordersheet'!K419)","v":""},{"$f":"IF('1. Ordersheet'!M419=\"\",\"\",'1. Ordersheet'!M419)","v":""},null,null,{"$f":"'1. Ordersheet'!AR419","v":0},{"$f":"IF('1. Ordersheet'!AE419=\"\",\"\",'1. Ordersheet'!AE419)","v":""}]
[{"$f":"IF('1. Ordersheet'!B420=\"\",\"\",'1. Ordersheet'!B420)","v":""},{"$f":"IF('1. Ordersheet'!I420=\"\",\"\",'1. Ordersheet'!I420)","v":""},{"$f":"IF('1. Ordersheet'!J420=\"\",\"\",'1. Ordersheet'!J420)","v":""},{"$f":"IF('1. Ordersheet'!K420=\"\",\"\",'1. Ordersheet'!K420)","v":""},{"$f":"IF('1. Ordersheet'!M420=\"\",\"\",'1. Ordersheet'!M420)","v":""},null,null,{"$f":"'1. Ordersheet'!AR420","v":0},{"$f":"IF('1. Ordersheet'!AE420=\"\",\"\",'1. Ordersheet'!AE420)","v":""}]
[{"$f":"IF('1. Ordersheet'!B421=\"\",\"\",'1. Ordersheet'!B421)","v":""},{"$f":"IF('1. Ordersheet'!I421=\"\",\"\",'1. Ordersheet'!I421)","v":""},{"$f":"IF('1. Ordersheet'!J421=\"\",\"\",'1. Ordersheet'!J421)","v":""},{"$f":"IF('1. Ordersheet'!K421=\"\",\"\",'1. Ordersheet'!K421)","v":""},{"$f":"IF('1. Ordersheet'!M421=\"\",\"\",'1. Ordersheet'!M421)","v":""},null,null,{"$f":"'1. Ordersheet'!AR421","v":0},{"$f":"IF('1. Ordersheet'!AE421=\"\",\"\",'1. Ordersheet'!AE421)","v":""}]
[{"$f":"IF('1. Ordersheet'!B422=\"\",\"\",'1. Ordersheet'!B422)","v":""},{"$f":"IF('1. Ordersheet'!I422=\"\",\"\",'1. Ordersheet'!I422)","v":""},{"$f":"IF('1. Ordersheet'!J422=\"\",\"\",'1. Ordersheet'!J422)","v":""},{"$f":"IF('1. Ordersheet'!K422=\"\",\"\",'1. Ordersheet'!K422)","v":""},{"$f":"IF('1. Ordersheet'!M422=\"\",\"\",'1. Ordersheet'!M422)","v":""},null,null,{"$f":"'1. Ordersheet'!AR422","v":0},{"$f":"IF('1. Ordersheet'!AE422=\"\",\"\",'1. Ordersheet'!AE422)","v":""}]
[{"$f":"IF('1. Ordersheet'!B423=\"\",\"\",'1. Ordersheet'!B423)","v":""},{"$f":"IF('1. Ordersheet'!I423=\"\",\"\",'1. Ordersheet'!I423)","v":""},{"$f":"IF('1. Ordersheet'!J423=\"\",\"\",'1. Ordersheet'!J423)","v":""},{"$f":"IF('1. Ordersheet'!K423=\"\",\"\",'1. Ordersheet'!K423)","v":""},{"$f":"IF('1. Ordersheet'!M423=\"\",\"\",'1. Ordersheet'!M423)","v":""},null,null,{"$f":"'1. Ordersheet'!AR423","v":0},{"$f":"IF('1. Ordersheet'!AE423=\"\",\"\",'1. Ordersheet'!AE423)","v":""}]
[{"$f":"IF('1. Ordersheet'!B424=\"\",\"\",'1. Ordersheet'!B424)","v":""},{"$f":"IF('1. Ordersheet'!I424=\"\",\"\",'1. Ordersheet'!I424)","v":""},{"$f":"IF('1. Ordersheet'!J424=\"\",\"\",'1. Ordersheet'!J424)","v":""},{"$f":"IF('1. Ordersheet'!K424=\"\",\"\",'1. Ordersheet'!K424)","v":""},{"$f":"IF('1. Ordersheet'!M424=\"\",\"\",'1. Ordersheet'!M424)","v":""},null,null,{"$f":"'1. Ordersheet'!AR424","v":0},{"$f":"IF('1. Ordersheet'!AE424=\"\",\"\",'1. Ordersheet'!AE424)","v":""}]
[{"$f":"IF('1. Ordersheet'!B425=\"\",\"\",'1. Ordersheet'!B425)","v":""},{"$f":"IF('1. Ordersheet'!I425=\"\",\"\",'1. Ordersheet'!I425)","v":""},{"$f":"IF('1. Ordersheet'!J425=\"\",\"\",'1. Ordersheet'!J425)","v":""},{"$f":"IF('1. Ordersheet'!K425=\"\",\"\",'1. Ordersheet'!K425)","v":""},{"$f":"IF('1. Ordersheet'!M425=\"\",\"\",'1. Ordersheet'!M425)","v":""},null,null,{"$f":"'1. Ordersheet'!AR425","v":0},{"$f":"IF('1. Ordersheet'!AE425=\"\",\"\",'1. Ordersheet'!AE425)","v":""}]
[{"$f":"IF('1. Ordersheet'!B426=\"\",\"\",'1. Ordersheet'!B426)","v":""},{"$f":"IF('1. Ordersheet'!I426=\"\",\"\",'1. Ordersheet'!I426)","v":""},{"$f":"IF('1. Ordersheet'!J426=\"\",\"\",'1. Ordersheet'!J426)","v":""},{"$f":"IF('1. Ordersheet'!K426=\"\",\"\",'1. Ordersheet'!K426)","v":""},{"$f":"IF('1. Ordersheet'!M426=\"\",\"\",'1. Ordersheet'!M426)","v":""},null,null,{"$f":"'1. Ordersheet'!AR426","v":0},{"$f":"IF('1. Ordersheet'!AE426=\"\",\"\",'1. Ordersheet'!AE426)","v":""}]
[{"$f":"IF('1. Ordersheet'!B427=\"\",\"\",'1. Ordersheet'!B427)","v":""},{"$f":"IF('1. Ordersheet'!I427=\"\",\"\",'1. Ordersheet'!I427)","v":""},{"$f":"IF('1. Ordersheet'!J427=\"\",\"\",'1. Ordersheet'!J427)","v":""},{"$f":"IF('1. Ordersheet'!K427=\"\",\"\",'1. Ordersheet'!K427)","v":""},{"$f":"IF('1. Ordersheet'!M427=\"\",\"\",'1. Ordersheet'!M427)","v":""},null,null,{"$f":"'1. Ordersheet'!AR427","v":0},{"$f":"IF('1. Ordersheet'!AE427=\"\",\"\",'1. Ordersheet'!AE427)","v":""}]
[{"$f":"IF('1. Ordersheet'!B428=\"\",\"\",'1. Ordersheet'!B428)","v":""},{"$f":"IF('1. Ordersheet'!I428=\"\",\"\",'1. Ordersheet'!I428)","v":""},{"$f":"IF('1. Ordersheet'!J428=\"\",\"\",'1. Ordersheet'!J428)","v":""},{"$f":"IF('1. Ordersheet'!K428=\"\",\"\",'1. Ordersheet'!K428)","v":""},{"$f":"IF('1. Ordersheet'!M428=\"\",\"\",'1. Ordersheet'!M428)","v":""},null,null,{"$f":"'1. Ordersheet'!AR428","v":0},{"$f":"IF('1. Ordersheet'!AE428=\"\",\"\",'1. Ordersheet'!AE428)","v":""}]
[{"$f":"IF('1. Ordersheet'!B429=\"\",\"\",'1. Ordersheet'!B429)","v":""},{"$f":"IF('1. Ordersheet'!I429=\"\",\"\",'1. Ordersheet'!I429)","v":""},{"$f":"IF('1. Ordersheet'!J429=\"\",\"\",'1. Ordersheet'!J429)","v":""},{"$f":"IF('1. Ordersheet'!K429=\"\",\"\",'1. Ordersheet'!K429)","v":""},{"$f":"IF('1. Ordersheet'!M429=\"\",\"\",'1. Ordersheet'!M429)","v":""},null,null,{"$f":"'1. Ordersheet'!AR429","v":0},{"$f":"IF('1. Ordersheet'!AE429=\"\",\"\",'1. Ordersheet'!AE429)","v":""}]
[{"$f":"IF('1. Ordersheet'!B430=\"\",\"\",'1. Ordersheet'!B430)","v":""},{"$f":"IF('1. Ordersheet'!I430=\"\",\"\",'1. Ordersheet'!I430)","v":""},{"$f":"IF('1. Ordersheet'!J430=\"\",\"\",'1. Ordersheet'!J430)","v":""},{"$f":"IF('1. Ordersheet'!K430=\"\",\"\",'1. Ordersheet'!K430)","v":""},{"$f":"IF('1. Ordersheet'!M430=\"\",\"\",'1. Ordersheet'!M430)","v":""},null,null,{"$f":"'1. Ordersheet'!AR430","v":0},{"$f":"IF('1. Ordersheet'!AE430=\"\",\"\",'1. Ordersheet'!AE430)","v":""}]
[{"$f":"IF('1. Ordersheet'!B431=\"\",\"\",'1. Ordersheet'!B431)","v":""},{"$f":"IF('1. Ordersheet'!I431=\"\",\"\",'1. Ordersheet'!I431)","v":""},{"$f":"IF('1. Ordersheet'!J431=\"\",\"\",'1. Ordersheet'!J431)","v":""},{"$f":"IF('1. Ordersheet'!K431=\"\",\"\",'1. Ordersheet'!K431)","v":""},{"$f":"IF('1. Ordersheet'!M431=\"\",\"\",'1. Ordersheet'!M431)","v":""},null,null,{"$f":"'1. Ordersheet'!AR431","v":0},{"$f":"IF('1. Ordersheet'!AE431=\"\",\"\",'1. Ordersheet'!AE431)","v":""}]
[{"$f":"IF('1. Ordersheet'!B432=\"\",\"\",'1. Ordersheet'!B432)","v":""},{"$f":"IF('1. Ordersheet'!I432=\"\",\"\",'1. Ordersheet'!I432)","v":""},{"$f":"IF('1. Ordersheet'!J432=\"\",\"\",'1. Ordersheet'!J432)","v":""},{"$f":"IF('1. Ordersheet'!K432=\"\",\"\",'1. Ordersheet'!K432)","v":""},{"$f":"IF('1. Ordersheet'!M432=\"\",\"\",'1. Ordersheet'!M432)","v":""},null,null,{"$f":"'1. Ordersheet'!AR432","v":0},{"$f":"IF('1. Ordersheet'!AE432=\"\",\"\",'1. Ordersheet'!AE432)","v":""}]
[{"$f":"IF('1. Ordersheet'!B433=\"\",\"\",'1. Ordersheet'!B433)","v":""},{"$f":"IF('1. Ordersheet'!I433=\"\",\"\",'1. Ordersheet'!I433)","v":""},{"$f":"IF('1. Ordersheet'!J433=\"\",\"\",'1. Ordersheet'!J433)","v":""},{"$f":"IF('1. Ordersheet'!K433=\"\",\"\",'1. Ordersheet'!K433)","v":""},{"$f":"IF('1. Ordersheet'!M433=\"\",\"\",'1. Ordersheet'!M433)","v":""},null,null,{"$f":"'1. Ordersheet'!AR433","v":0},{"$f":"IF('1. Ordersheet'!AE433=\"\",\"\",'1. Ordersheet'!AE433)","v":""}]
[{"$f":"IF('1. Ordersheet'!B434=\"\",\"\",'1. Ordersheet'!B434)","v":""},{"$f":"IF('1. Ordersheet'!I434=\"\",\"\",'1. Ordersheet'!I434)","v":""},{"$f":"IF('1. Ordersheet'!J434=\"\",\"\",'1. Ordersheet'!J434)","v":""},{"$f":"IF('1. Ordersheet'!K434=\"\",\"\",'1. Ordersheet'!K434)","v":""},{"$f":"IF('1. Ordersheet'!M434=\"\",\"\",'1. Ordersheet'!M434)","v":""},null,null,{"$f":"'1. Ordersheet'!AR434","v":0},{"$f":"IF('1. Ordersheet'!AE434=\"\",\"\",'1. Ordersheet'!AE434)","v":""}]
[{"$f":"IF('1. Ordersheet'!B435=\"\",\"\",'1. Ordersheet'!B435)","v":""},{"$f":"IF('1. Ordersheet'!I435=\"\",\"\",'1. Ordersheet'!I435)","v":""},{"$f":"IF('1. Ordersheet'!J435=\"\",\"\",'1. Ordersheet'!J435)","v":""},{"$f":"IF('1. Ordersheet'!K435=\"\",\"\",'1. Ordersheet'!K435)","v":""},{"$f":"IF('1. Ordersheet'!M435=\"\",\"\",'1. Ordersheet'!M435)","v":""},null,null,{"$f":"'1. Ordersheet'!AR435","v":0},{"$f":"IF('1. Ordersheet'!AE435=\"\",\"\",'1. Ordersheet'!AE435)","v":""}]
[{"$f":"IF('1. Ordersheet'!B436=\"\",\"\",'1. Ordersheet'!B436)","v":""},{"$f":"IF('1. Ordersheet'!I436=\"\",\"\",'1. Ordersheet'!I436)","v":""},{"$f":"IF('1. Ordersheet'!J436=\"\",\"\",'1. Ordersheet'!J436)","v":""},{"$f":"IF('1. Ordersheet'!K436=\"\",\"\",'1. Ordersheet'!K436)","v":""},{"$f":"IF('1. Ordersheet'!M436=\"\",\"\",'1. Ordersheet'!M436)","v":""},null,null,{"$f":"'1. Ordersheet'!AR436","v":0},{"$f":"IF('1. Ordersheet'!AE436=\"\",\"\",'1. Ordersheet'!AE436)","v":""}]
[{"$f":"IF('1. Ordersheet'!B437=\"\",\"\",'1. Ordersheet'!B437)","v":""},{"$f":"IF('1. Ordersheet'!I437=\"\",\"\",'1. Ordersheet'!I437)","v":""},{"$f":"IF('1. Ordersheet'!J437=\"\",\"\",'1. Ordersheet'!J437)","v":""},{"$f":"IF('1. Ordersheet'!K437=\"\",\"\",'1. Ordersheet'!K437)","v":""},{"$f":"IF('1. Ordersheet'!M437=\"\",\"\",'1. Ordersheet'!M437)","v":""},null,null,{"$f":"'1. Ordersheet'!AR437","v":0},{"$f":"IF('1. Ordersheet'!AE437=\"\",\"\",'1. Ordersheet'!AE437)","v":""}]
[{"$f":"IF('1. Ordersheet'!B438=\"\",\"\",'1. Ordersheet'!B438)","v":""},{"$f":"IF('1. Ordersheet'!I438=\"\",\"\",'1. Ordersheet'!I438)","v":""},{"$f":"IF('1. Ordersheet'!J438=\"\",\"\",'1. Ordersheet'!J438)","v":""},{"$f":"IF('1. Ordersheet'!K438=\"\",\"\",'1. Ordersheet'!K438)","v":""},{"$f":"IF('1. Ordersheet'!M438=\"\",\"\",'1. Ordersheet'!M438)","v":""},null,null,{"$f":"'1. Ordersheet'!AR438","v":0},{"$f":"IF('1. Ordersheet'!AE438=\"\",\"\",'1. Ordersheet'!AE438)","v":""}]
[{"$f":"IF('1. Ordersheet'!B439=\"\",\"\",'1. Ordersheet'!B439)","v":""},{"$f":"IF('1. Ordersheet'!I439=\"\",\"\",'1. Ordersheet'!I439)","v":""},{"$f":"IF('1. Ordersheet'!J439=\"\",\"\",'1. Ordersheet'!J439)","v":""},{"$f":"IF('1. Ordersheet'!K439=\"\",\"\",'1. Ordersheet'!K439)","v":""},{"$f":"IF('1. Ordersheet'!M439=\"\",\"\",'1. Ordersheet'!M439)","v":""},null,null,{"$f":"'1. Ordersheet'!AR439","v":0},{"$f":"IF('1. Ordersheet'!AE439=\"\",\"\",'1. Ordersheet'!AE439)","v":""}]
[{"$f":"IF('1. Ordersheet'!B440=\"\",\"\",'1. Ordersheet'!B440)","v":""},{"$f":"IF('1. Ordersheet'!I440=\"\",\"\",'1. Ordersheet'!I440)","v":""},{"$f":"IF('1. Ordersheet'!J440=\"\",\"\",'1. Ordersheet'!J440)","v":""},{"$f":"IF('1. Ordersheet'!K440=\"\",\"\",'1. Ordersheet'!K440)","v":""},{"$f":"IF('1. Ordersheet'!M440=\"\",\"\",'1. Ordersheet'!M440)","v":""},null,null,{"$f":"'1. Ordersheet'!AR440","v":0},{"$f":"IF('1. Ordersheet'!AE440=\"\",\"\",'1. Ordersheet'!AE440)","v":""}]
[{"$f":"IF('1. Ordersheet'!B441=\"\",\"\",'1. Ordersheet'!B441)","v":""},{"$f":"IF('1. Ordersheet'!I441=\"\",\"\",'1. Ordersheet'!I441)","v":""},{"$f":"IF('1. Ordersheet'!J441=\"\",\"\",'1. Ordersheet'!J441)","v":""},{"$f":"IF('1. Ordersheet'!K441=\"\",\"\",'1. Ordersheet'!K441)","v":""},{"$f":"IF('1. Ordersheet'!M441=\"\",\"\",'1. Ordersheet'!M441)","v":""},null,null,{"$f":"'1. Ordersheet'!AR441","v":0},{"$f":"IF('1. Ordersheet'!AE441=\"\",\"\",'1. Ordersheet'!AE441)","v":""}]
[{"$f":"IF('1. Ordersheet'!B442=\"\",\"\",'1. Ordersheet'!B442)","v":""},{"$f":"IF('1. Ordersheet'!I442=\"\",\"\",'1. Ordersheet'!I442)","v":""},{"$f":"IF('1. Ordersheet'!J442=\"\",\"\",'1. Ordersheet'!J442)","v":""},{"$f":"IF('1. Ordersheet'!K442=\"\",\"\",'1. Ordersheet'!K442)","v":""},{"$f":"IF('1. Ordersheet'!M442=\"\",\"\",'1. Ordersheet'!M442)","v":""},null,null,{"$f":"'1. Ordersheet'!AR442","v":0},{"$f":"IF('1. Ordersheet'!AE442=\"\",\"\",'1. Ordersheet'!AE442)","v":""}]
[{"$f":"IF('1. Ordersheet'!B443=\"\",\"\",'1. Ordersheet'!B443)","v":""},{"$f":"IF('1. Ordersheet'!I443=\"\",\"\",'1. Ordersheet'!I443)","v":""},{"$f":"IF('1. Ordersheet'!J443=\"\",\"\",'1. Ordersheet'!J443)","v":""},{"$f":"IF('1. Ordersheet'!K443=\"\",\"\",'1. Ordersheet'!K443)","v":""},{"$f":"IF('1. Ordersheet'!M443=\"\",\"\",'1. Ordersheet'!M443)","v":""},null,null,{"$f":"'1. Ordersheet'!AR443","v":0},{"$f":"IF('1. Ordersheet'!AE443=\"\",\"\",'1. Ordersheet'!AE443)","v":""}]
[{"$f":"IF('1. Ordersheet'!B444=\"\",\"\",'1. Ordersheet'!B444)","v":""},{"$f":"IF('1. Ordersheet'!I444=\"\",\"\",'1. Ordersheet'!I444)","v":""},{"$f":"IF('1. Ordersheet'!J444=\"\",\"\",'1. Ordersheet'!J444)","v":""},{"$f":"IF('1. Ordersheet'!K444=\"\",\"\",'1. Ordersheet'!K444)","v":""},{"$f":"IF('1. Ordersheet'!M444=\"\",\"\",'1. Ordersheet'!M444)","v":""},null,null,{"$f":"'1. Ordersheet'!AR444","v":0},{"$f":"IF('1. Ordersheet'!AE444=\"\",\"\",'1. Ordersheet'!AE444)","v":""}]
[{"$f":"IF('1. Ordersheet'!B445=\"\",\"\",'1. Ordersheet'!B445)","v":""},{"$f":"IF('1. Ordersheet'!I445=\"\",\"\",'1. Ordersheet'!I445)","v":""},{"$f":"IF('1. Ordersheet'!J445=\"\",\"\",'1. Ordersheet'!J445)","v":""},{"$f":"IF('1. Ordersheet'!K445=\"\",\"\",'1. Ordersheet'!K445)","v":""},{"$f":"IF('1. Ordersheet'!M445=\"\",\"\",'1. Ordersheet'!M445)","v":""},null,null,{"$f":"'1. Ordersheet'!AR445","v":0},{"$f":"IF('1. Ordersheet'!AE445=\"\",\"\",'1. Ordersheet'!AE445)","v":""}]
[{"$f":"IF('1. Ordersheet'!B446=\"\",\"\",'1. Ordersheet'!B446)","v":""},{"$f":"IF('1. Ordersheet'!I446=\"\",\"\",'1. Ordersheet'!I446)","v":""},{"$f":"IF('1. Ordersheet'!J446=\"\",\"\",'1. Ordersheet'!J446)","v":""},{"$f":"IF('1. Ordersheet'!K446=\"\",\"\",'1. Ordersheet'!K446)","v":""},{"$f":"IF('1. Ordersheet'!M446=\"\",\"\",'1. Ordersheet'!M446)","v":""},null,null,{"$f":"'1. Ordersheet'!AR446","v":0},{"$f":"IF('1. Ordersheet'!AE446=\"\",\"\",'1. Ordersheet'!AE446)","v":""}]
[{"$f":"IF('1. Ordersheet'!B447=\"\",\"\",'1. Ordersheet'!B447)","v":""},{"$f":"IF('1. Ordersheet'!I447=\"\",\"\",'1. Ordersheet'!I447)","v":""},{"$f":"IF('1. Ordersheet'!J447=\"\",\"\",'1. Ordersheet'!J447)","v":""},{"$f":"IF('1. Ordersheet'!K447=\"\",\"\",'1. Ordersheet'!K447)","v":""},{"$f":"IF('1. Ordersheet'!M447=\"\",\"\",'1. Ordersheet'!M447)","v":""},null,null,{"$f":"'1. Ordersheet'!AR447","v":0},{"$f":"IF('1. Ordersheet'!AE447=\"\",\"\",'1. Ordersheet'!AE447)","v":""}]
[{"$f":"IF('1. Ordersheet'!B448=\"\",\"\",'1. Ordersheet'!B448)","v":""},{"$f":"IF('1. Ordersheet'!I448=\"\",\"\",'1. Ordersheet'!I448)","v":""},{"$f":"IF('1. Ordersheet'!J448=\"\",\"\",'1. Ordersheet'!J448)","v":""},{"$f":"IF('1. Ordersheet'!K448=\"\",\"\",'1. Ordersheet'!K448)","v":""},{"$f":"IF('1. Ordersheet'!M448=\"\",\"\",'1. Ordersheet'!M448)","v":""},null,null,{"$f":"'1. Ordersheet'!AR448","v":0},{"$f":"IF('1. Ordersheet'!AE448=\"\",\"\",'1. Ordersheet'!AE448)","v":""}]
[{"$f":"IF('1. Ordersheet'!B449=\"\",\"\",'1. Ordersheet'!B449)","v":""},{"$f":"IF('1. Ordersheet'!I449=\"\",\"\",'1. Ordersheet'!I449)","v":""},{"$f":"IF('1. Ordersheet'!J449=\"\",\"\",'1. Ordersheet'!J449)","v":""},{"$f":"IF('1. Ordersheet'!K449=\"\",\"\",'1. Ordersheet'!K449)","v":""},{"$f":"IF('1. Ordersheet'!M449=\"\",\"\",'1. Ordersheet'!M449)","v":""},null,null,{"$f":"'1. Ordersheet'!AR449","v":0},{"$f":"IF('1. Ordersheet'!AE449=\"\",\"\",'1. Ordersheet'!AE449)","v":""}]
[{"$f":"IF('1. Ordersheet'!B450=\"\",\"\",'1. Ordersheet'!B450)","v":""},{"$f":"IF('1. Ordersheet'!I450=\"\",\"\",'1. Ordersheet'!I450)","v":""},{"$f":"IF('1. Ordersheet'!J450=\"\",\"\",'1. Ordersheet'!J450)","v":""},{"$f":"IF('1. Ordersheet'!K450=\"\",\"\",'1. Ordersheet'!K450)","v":""},{"$f":"IF('1. Ordersheet'!M450=\"\",\"\",'1. Ordersheet'!M450)","v":""},null,null,{"$f":"'1. Ordersheet'!AR450","v":0},{"$f":"IF('1. Ordersheet'!AE450=\"\",\"\",'1. Ordersheet'!AE450)","v":""}]
[{"$f":"IF('1. Ordersheet'!B451=\"\",\"\",'1. Ordersheet'!B451)","v":""},{"$f":"IF('1. Ordersheet'!I451=\"\",\"\",'1. Ordersheet'!I451)","v":""},{"$f":"IF('1. Ordersheet'!J451=\"\",\"\",'1. Ordersheet'!J451)","v":""},{"$f":"IF('1. Ordersheet'!K451=\"\",\"\",'1. Ordersheet'!K451)","v":""},{"$f":"IF('1. Ordersheet'!M451=\"\",\"\",'1. Ordersheet'!M451)","v":""},null,null,{"$f":"'1. Ordersheet'!AR451","v":0},{"$f":"IF('1. Ordersheet'!AE451=\"\",\"\",'1. Ordersheet'!AE451)","v":""}]
[{"$f":"IF('1. Ordersheet'!B452=\"\",\"\",'1. Ordersheet'!B452)","v":""},{"$f":"IF('1. Ordersheet'!I452=\"\",\"\",'1. Ordersheet'!I452)","v":""},{"$f":"IF('1. Ordersheet'!J452=\"\",\"\",'1. Ordersheet'!J452)","v":""},{"$f":"IF('1. Ordersheet'!K452=\"\",\"\",'1. Ordersheet'!K452)","v":""},{"$f":"IF('1. Ordersheet'!M452=\"\",\"\",'1. Ordersheet'!M452)","v":""},null,null,{"$f":"'1. Ordersheet'!AR452","v":0},{"$f":"IF('1. Ordersheet'!AE452=\"\",\"\",'1. Ordersheet'!AE452)","v":""}]
[{"$f":"IF('1. Ordersheet'!B453=\"\",\"\",'1. Ordersheet'!B453)","v":""},{"$f":"IF('1. Ordersheet'!I453=\"\",\"\",'1. Ordersheet'!I453)","v":""},{"$f":"IF('1. Ordersheet'!J453=\"\",\"\",'1. Ordersheet'!J453)","v":""},{"$f":"IF('1. Ordersheet'!K453=\"\",\"\",'1. Ordersheet'!K453)","v":""},{"$f":"IF('1. Ordersheet'!M453=\"\",\"\",'1. Ordersheet'!M453)","v":""},null,null,{"$f":"'1. Ordersheet'!AR453","v":0},{"$f":"IF('1. Ordersheet'!AE453=\"\",\"\",'1. Ordersheet'!AE453)","v":""}]
[{"$f":"IF('1. Ordersheet'!B454=\"\",\"\",'1. Ordersheet'!B454)","v":""},{"$f":"IF('1. Ordersheet'!I454=\"\",\"\",'1. Ordersheet'!I454)","v":""},{"$f":"IF('1. Ordersheet'!J454=\"\",\"\",'1. Ordersheet'!J454)","v":""},{"$f":"IF('1. Ordersheet'!K454=\"\",\"\",'1. Ordersheet'!K454)","v":""},{"$f":"IF('1. Ordersheet'!M454=\"\",\"\",'1. Ordersheet'!M454)","v":""},null,null,{"$f":"'1. Ordersheet'!AR454","v":0},{"$f":"IF('1. Ordersheet'!AE454=\"\",\"\",'1. Ordersheet'!AE454)","v":""}]
[{"$f":"IF('1. Ordersheet'!B455=\"\",\"\",'1. Ordersheet'!B455)","v":""},{"$f":"IF('1. Ordersheet'!I455=\"\",\"\",'1. Ordersheet'!I455)","v":""},{"$f":"IF('1. Ordersheet'!J455=\"\",\"\",'1. Ordersheet'!J455)","v":""},{"$f":"IF('1. Ordersheet'!K455=\"\",\"\",'1. Ordersheet'!K455)","v":""},{"$f":"IF('1. Ordersheet'!M455=\"\",\"\",'1. Ordersheet'!M455)","v":""},null,null,{"$f":"'1. Ordersheet'!AR455","v":0},{"$f":"IF('1. Ordersheet'!AE455=\"\",\"\",'1. Ordersheet'!AE455)","v":""}]
[{"$f":"IF('1. Ordersheet'!B456=\"\",\"\",'1. Ordersheet'!B456)","v":""},{"$f":"IF('1. Ordersheet'!I456=\"\",\"\",'1. Ordersheet'!I456)","v":""},{"$f":"IF('1. Ordersheet'!J456=\"\",\"\",'1. Ordersheet'!J456)","v":""},{"$f":"IF('1. Ordersheet'!K456=\"\",\"\",'1. Ordersheet'!K456)","v":""},{"$f":"IF('1. Ordersheet'!M456=\"\",\"\",'1. Ordersheet'!M456)","v":""},null,null,{"$f":"'1. Ordersheet'!AR456","v":0},{"$f":"IF('1. Ordersheet'!AE456=\"\",\"\",'1. Ordersheet'!AE456)","v":""}]
[{"$f":"IF('1. Ordersheet'!B457=\"\",\"\",'1. Ordersheet'!B457)","v":""},{"$f":"IF('1. Ordersheet'!I457=\"\",\"\",'1. Ordersheet'!I457)","v":""},{"$f":"IF('1. Ordersheet'!J457=\"\",\"\",'1. Ordersheet'!J457)","v":""},{"$f":"IF('1. Ordersheet'!K457=\"\",\"\",'1. Ordersheet'!K457)","v":""},{"$f":"IF('1. Ordersheet'!M457=\"\",\"\",'1. Ordersheet'!M457)","v":""},null,null,{"$f":"'1. Ordersheet'!AR457","v":0},{"$f":"IF('1. Ordersheet'!AE457=\"\",\"\",'1. Ordersheet'!AE457)","v":""}]
[{"$f":"IF('1. Ordersheet'!B458=\"\",\"\",'1. Ordersheet'!B458)","v":""},{"$f":"IF('1. Ordersheet'!I458=\"\",\"\",'1. Ordersheet'!I458)","v":""},{"$f":"IF('1. Ordersheet'!J458=\"\",\"\",'1. Ordersheet'!J458)","v":""},{"$f":"IF('1. Ordersheet'!K458=\"\",\"\",'1. Ordersheet'!K458)","v":""},{"$f":"IF('1. Ordersheet'!M458=\"\",\"\",'1. Ordersheet'!M458)","v":""},null,null,{"$f":"'1. Ordersheet'!AR458","v":0},{"$f":"IF('1. Ordersheet'!AE458=\"\",\"\",'1. Ordersheet'!AE458)","v":""}]
[{"$f":"IF('1. Ordersheet'!B459=\"\",\"\",'1. Ordersheet'!B459)","v":""},{"$f":"IF('1. Ordersheet'!I459=\"\",\"\",'1. Ordersheet'!I459)","v":""},{"$f":"IF('1. Ordersheet'!J459=\"\",\"\",'1. Ordersheet'!J459)","v":""},{"$f":"IF('1. Ordersheet'!K459=\"\",\"\",'1. Ordersheet'!K459)","v":""},{"$f":"IF('1. Ordersheet'!M459=\"\",\"\",'1. Ordersheet'!M459)","v":""},null,null,{"$f":"'1. Ordersheet'!AR459","v":0},{"$f":"IF('1. Ordersheet'!AE459=\"\",\"\",'1. Ordersheet'!AE459)","v":""}]
[{"$f":"IF('1. Ordersheet'!B460=\"\",\"\",'1. Ordersheet'!B460)","v":""},{"$f":"IF('1. Ordersheet'!I460=\"\",\"\",'1. Ordersheet'!I460)","v":""},{"$f":"IF('1. Ordersheet'!J460=\"\",\"\",'1. Ordersheet'!J460)","v":""},{"$f":"IF('1. Ordersheet'!K460=\"\",\"\",'1. Ordersheet'!K460)","v":""},{"$f":"IF('1. Ordersheet'!M460=\"\",\"\",'1. Ordersheet'!M460)","v":""},null,null,{"$f":"'1. Ordersheet'!AR460","v":0},{"$f":"IF('1. Ordersheet'!AE460=\"\",\"\",'1. Ordersheet'!AE460)","v":""}]
[{"$f":"IF('1. Ordersheet'!B461=\"\",\"\",'1. Ordersheet'!B461)","v":""},{"$f":"IF('1. Ordersheet'!I461=\"\",\"\",'1. Ordersheet'!I461)","v":""},{"$f":"IF('1. Ordersheet'!J461=\"\",\"\",'1. Ordersheet'!J461)","v":""},{"$f":"IF('1. Ordersheet'!K461=\"\",\"\",'1. Ordersheet'!K461)","v":""},{"$f":"IF('1. Ordersheet'!M461=\"\",\"\",'1. Ordersheet'!M461)","v":""},null,null,{"$f":"'1. Ordersheet'!AR461","v":0},{"$f":"IF('1. Ordersheet'!AE461=\"\",\"\",'1. Ordersheet'!AE461)","v":""}]
[{"$f":"IF('1. Ordersheet'!B462=\"\",\"\",'1. Ordersheet'!B462)","v":""},{"$f":"IF('1. Ordersheet'!I462=\"\",\"\",'1. Ordersheet'!I462)","v":""},{"$f":"IF('1. Ordersheet'!J462=\"\",\"\",'1. Ordersheet'!J462)","v":""},{"$f":"IF('1. Ordersheet'!K462=\"\",\"\",'1. Ordersheet'!K462)","v":""},{"$f":"IF('1. Ordersheet'!M462=\"\",\"\",'1. Ordersheet'!M462)","v":""},null,null,{"$f":"'1. Ordersheet'!AR462","v":0},{"$f":"IF('1. Ordersheet'!AE462=\"\",\"\",'1. Ordersheet'!AE462)","v":""}]
[{"$f":"IF('1. Ordersheet'!B463=\"\",\"\",'1. Ordersheet'!B463)","v":""},{"$f":"IF('1. Ordersheet'!I463=\"\",\"\",'1. Ordersheet'!I463)","v":""},{"$f":"IF('1. Ordersheet'!J463=\"\",\"\",'1. Ordersheet'!J463)","v":""},{"$f":"IF('1. Ordersheet'!K463=\"\",\"\",'1. Ordersheet'!K463)","v":""},{"$f":"IF('1. Ordersheet'!M463=\"\",\"\",'1. Ordersheet'!M463)","v":""},null,null,{"$f":"'1. Ordersheet'!AR463","v":0},{"$f":"IF('1. Ordersheet'!AE463=\"\",\"\",'1. Ordersheet'!AE463)","v":""}]
[{"$f":"IF('1. Ordersheet'!B464=\"\",\"\",'1. Ordersheet'!B464)","v":""},{"$f":"IF('1. Ordersheet'!I464=\"\",\"\",'1. Ordersheet'!I464)","v":""},{"$f":"IF('1. Ordersheet'!J464=\"\",\"\",'1. Ordersheet'!J464)","v":""},{"$f":"IF('1. Ordersheet'!K464=\"\",\"\",'1. Ordersheet'!K464)","v":""},{"$f":"IF('1. Ordersheet'!M464=\"\",\"\",'1. Ordersheet'!M464)","v":""},null,null,{"$f":"'1. Ordersheet'!AR464","v":0},{"$f":"IF('1. Ordersheet'!AE464=\"\",\"\",'1. Ordersheet'!AE464)","v":""}]
[{"$f":"IF('1. Ordersheet'!B465=\"\",\"\",'1. Ordersheet'!B465)","v":""},{"$f":"IF('1. Ordersheet'!I465=\"\",\"\",'1. Ordersheet'!I465)","v":""},{"$f":"IF('1. Ordersheet'!J465=\"\",\"\",'1. Ordersheet'!J465)","v":""},{"$f":"IF('1. Ordersheet'!K465=\"\",\"\",'1. Ordersheet'!K465)","v":""},{"$f":"IF('1. Ordersheet'!M465=\"\",\"\",'1. Ordersheet'!M465)","v":""},null,null,{"$f":"'1. Ordersheet'!AR465","v":0},{"$f":"IF('1. Ordersheet'!AE465=\"\",\"\",'1. Ordersheet'!AE465)","v":""}]
[{"$f":"IF('1. Ordersheet'!B466=\"\",\"\",'1. Ordersheet'!B466)","v":""},{"$f":"IF('1. Ordersheet'!I466=\"\",\"\",'1. Ordersheet'!I466)","v":""},{"$f":"IF('1. Ordersheet'!J466=\"\",\"\",'1. Ordersheet'!J466)","v":""},{"$f":"IF('1. Ordersheet'!K466=\"\",\"\",'1. Ordersheet'!K466)","v":""},{"$f":"IF('1. Ordersheet'!M466=\"\",\"\",'1. Ordersheet'!M466)","v":""},null,null,{"$f":"'1. Ordersheet'!AR466","v":0},{"$f":"IF('1. Ordersheet'!AE466=\"\",\"\",'1. Ordersheet'!AE466)","v":""}]
[{"$f":"IF('1. Ordersheet'!B467=\"\",\"\",'1. Ordersheet'!B467)","v":""},{"$f":"IF('1. Ordersheet'!I467=\"\",\"\",'1. Ordersheet'!I467)","v":""},{"$f":"IF('1. Ordersheet'!J467=\"\",\"\",'1. Ordersheet'!J467)","v":""},{"$f":"IF('1. Ordersheet'!K467=\"\",\"\",'1. Ordersheet'!K467)","v":""},{"$f":"IF('1. Ordersheet'!M467=\"\",\"\",'1. Ordersheet'!M467)","v":""},null,null,{"$f":"'1. Ordersheet'!AR467","v":0},{"$f":"IF('1. Ordersheet'!AE467=\"\",\"\",'1. Ordersheet'!AE467)","v":""}]
[{"$f":"IF('1. Ordersheet'!B468=\"\",\"\",'1. Ordersheet'!B468)","v":""},{"$f":"IF('1. Ordersheet'!I468=\"\",\"\",'1. Ordersheet'!I468)","v":""},{"$f":"IF('1. Ordersheet'!J468=\"\",\"\",'1. Ordersheet'!J468)","v":""},{"$f":"IF('1. Ordersheet'!K468=\"\",\"\",'1. Ordersheet'!K468)","v":""},{"$f":"IF('1. Ordersheet'!M468=\"\",\"\",'1. Ordersheet'!M468)","v":""},null,null,{"$f":"'1. Ordersheet'!AR468","v":0},{"$f":"IF('1. Ordersheet'!AE468=\"\",\"\",'1. Ordersheet'!AE468)","v":""}]
[{"$f":"IF('1. Ordersheet'!B469=\"\",\"\",'1. Ordersheet'!B469)","v":""},{"$f":"IF('1. Ordersheet'!I469=\"\",\"\",'1. Ordersheet'!I469)","v":""},{"$f":"IF('1. Ordersheet'!J469=\"\",\"\",'1. Ordersheet'!J469)","v":""},{"$f":"IF('1. Ordersheet'!K469=\"\",\"\",'1. Ordersheet'!K469)","v":""},{"$f":"IF('1. Ordersheet'!M469=\"\",\"\",'1. Ordersheet'!M469)","v":""},null,null,{"$f":"'1. Ordersheet'!AR469","v":0},{"$f":"IF('1. Ordersheet'!AE469=\"\",\"\",'1. Ordersheet'!AE469)","v":""}]
[{"$f":"IF('1. Ordersheet'!B470=\"\",\"\",'1. Ordersheet'!B470)","v":""},{"$f":"IF('1. Ordersheet'!I470=\"\",\"\",'1. Ordersheet'!I470)","v":""},{"$f":"IF('1. Ordersheet'!J470=\"\",\"\",'1. Ordersheet'!J470)","v":""},{"$f":"IF('1. Ordersheet'!K470=\"\",\"\",'1. Ordersheet'!K470)","v":""},{"$f":"IF('1. Ordersheet'!M470=\"\",\"\",'1. Ordersheet'!M470)","v":""},null,null,{"$f":"'1. Ordersheet'!AR470","v":0},{"$f":"IF('1. Ordersheet'!AE470=\"\",\"\",'1. Ordersheet'!AE470)","v":""}]
[{"$f":"IF('1. Ordersheet'!B471=\"\",\"\",'1. Ordersheet'!B471)","v":""},{"$f":"IF('1. Ordersheet'!I471=\"\",\"\",'1. Ordersheet'!I471)","v":""},{"$f":"IF('1. Ordersheet'!J471=\"\",\"\",'1. Ordersheet'!J471)","v":""},{"$f":"IF('1. Ordersheet'!K471=\"\",\"\",'1. Ordersheet'!K471)","v":""},{"$f":"IF('1. Ordersheet'!M471=\"\",\"\",'1. Ordersheet'!M471)","v":""},null,null,{"$f":"'1. Ordersheet'!AR471","v":0},{"$f":"IF('1. Ordersheet'!AE471=\"\",\"\",'1. Ordersheet'!AE471)","v":""}]
[{"$f":"IF('1. Ordersheet'!B472=\"\",\"\",'1. Ordersheet'!B472)","v":""},{"$f":"IF('1. Ordersheet'!I472=\"\",\"\",'1. Ordersheet'!I472)","v":""},{"$f":"IF('1. Ordersheet'!J472=\"\",\"\",'1. Ordersheet'!J472)","v":""},{"$f":"IF('1. Ordersheet'!K472=\"\",\"\",'1. Ordersheet'!K472)","v":""},{"$f":"IF('1. Ordersheet'!M472=\"\",\"\",'1. Ordersheet'!M472)","v":""},null,null,{"$f":"'1. Ordersheet'!AR472","v":0},{"$f":"IF('1. Ordersheet'!AE472=\"\",\"\",'1. Ordersheet'!AE472)","v":""}]
[{"$f":"IF('1. Ordersheet'!B473=\"\",\"\",'1. Ordersheet'!B473)","v":""},{"$f":"IF('1. Ordersheet'!I473=\"\",\"\",'1. Ordersheet'!I473)","v":""},{"$f":"IF('1. Ordersheet'!J473=\"\",\"\",'1. Ordersheet'!J473)","v":""},{"$f":"IF('1. Ordersheet'!K473=\"\",\"\",'1. Ordersheet'!K473)","v":""},{"$f":"IF('1. Ordersheet'!M473=\"\",\"\",'1. Ordersheet'!M473)","v":""},null,null,{"$f":"'1. Ordersheet'!AR473","v":0},{"$f":"IF('1. Ordersheet'!AE473=\"\",\"\",'1. Ordersheet'!AE473)","v":""}]
[{"$f":"IF('1. Ordersheet'!B474=\"\",\"\",'1. Ordersheet'!B474)","v":""},{"$f":"IF('1. Ordersheet'!I474=\"\",\"\",'1. Ordersheet'!I474)","v":""},{"$f":"IF('1. Ordersheet'!J474=\"\",\"\",'1. Ordersheet'!J474)","v":""},{"$f":"IF('1. Ordersheet'!K474=\"\",\"\",'1. Ordersheet'!K474)","v":""},{"$f":"IF('1. Ordersheet'!M474=\"\",\"\",'1. Ordersheet'!M474)","v":""},null,null,{"$f":"'1. Ordersheet'!AR474","v":0},{"$f":"IF('1. Ordersheet'!AE474=\"\",\"\",'1. Ordersheet'!AE474)","v":""}]
[{"$f":"IF('1. Ordersheet'!B475=\"\",\"\",'1. Ordersheet'!B475)","v":""},{"$f":"IF('1. Ordersheet'!I475=\"\",\"\",'1. Ordersheet'!I475)","v":""},{"$f":"IF('1. Ordersheet'!J475=\"\",\"\",'1. Ordersheet'!J475)","v":""},{"$f":"IF('1. Ordersheet'!K475=\"\",\"\",'1. Ordersheet'!K475)","v":""},{"$f":"IF('1. Ordersheet'!M475=\"\",\"\",'1. Ordersheet'!M475)","v":""},null,null,{"$f":"'1. Ordersheet'!AR475","v":0},{"$f":"IF('1. Ordersheet'!AE475=\"\",\"\",'1. Ordersheet'!AE475)","v":""}]
[{"$f":"IF('1. Ordersheet'!B476=\"\",\"\",'1. Ordersheet'!B476)","v":""},{"$f":"IF('1. Ordersheet'!I476=\"\",\"\",'1. Ordersheet'!I476)","v":""},{"$f":"IF('1. Ordersheet'!J476=\"\",\"\",'1. Ordersheet'!J476)","v":""},{"$f":"IF('1. Ordersheet'!K476=\"\",\"\",'1. Ordersheet'!K476)","v":""},{"$f":"IF('1. Ordersheet'!M476=\"\",\"\",'1. Ordersheet'!M476)","v":""},null,null,{"$f":"'1. Ordersheet'!AR476","v":0},{"$f":"IF('1. Ordersheet'!AE476=\"\",\"\",'1. Ordersheet'!AE476)","v":""}]
[{"$f":"IF('1. Ordersheet'!B477=\"\",\"\",'1. Ordersheet'!B477)","v":""},{"$f":"IF('1. Ordersheet'!I477=\"\",\"\",'1. Ordersheet'!I477)","v":""},{"$f":"IF('1. Ordersheet'!J477=\"\",\"\",'1. Ordersheet'!J477)","v":""},{"$f":"IF('1. Ordersheet'!K477=\"\",\"\",'1. Ordersheet'!K477)","v":""},{"$f":"IF('1. Ordersheet'!M477=\"\",\"\",'1. Ordersheet'!M477)","v":""},null,null,{"$f":"'1. Ordersheet'!AR477","v":0},{"$f":"IF('1. Ordersheet'!AE477=\"\",\"\",'1. Ordersheet'!AE477)","v":""}]
[{"$f":"IF('1. Ordersheet'!B478=\"\",\"\",'1. Ordersheet'!B478)","v":""},{"$f":"IF('1. Ordersheet'!I478=\"\",\"\",'1. Ordersheet'!I478)","v":""},{"$f":"IF('1. Ordersheet'!J478=\"\",\"\",'1. Ordersheet'!J478)","v":""},{"$f":"IF('1. Ordersheet'!K478=\"\",\"\",'1. Ordersheet'!K478)","v":""},{"$f":"IF('1. Ordersheet'!M478=\"\",\"\",'1. Ordersheet'!M478)","v":""},null,null,{"$f":"'1. Ordersheet'!AR478","v":0},{"$f":"IF('1. Ordersheet'!AE478=\"\",\"\",'1. Ordersheet'!AE478)","v":""}]
[{"$f":"IF('1. Ordersheet'!B479=\"\",\"\",'1. Ordersheet'!B479)","v":""},{"$f":"IF('1. Ordersheet'!I479=\"\",\"\",'1. Ordersheet'!I479)","v":""},{"$f":"IF('1. Ordersheet'!J479=\"\",\"\",'1. Ordersheet'!J479)","v":""},{"$f":"IF('1. Ordersheet'!K479=\"\",\"\",'1. Ordersheet'!K479)","v":""},{"$f":"IF('1. Ordersheet'!M479=\"\",\"\",'1. Ordersheet'!M479)","v":""},null,null,{"$f":"'1. Ordersheet'!AR479","v":0},{"$f":"IF('1. Ordersheet'!AE479=\"\",\"\",'1. Ordersheet'!AE479)","v":""}]
[{"$f":"IF('1. Ordersheet'!B480=\"\",\"\",'1. Ordersheet'!B480)","v":""},{"$f":"IF('1. Ordersheet'!I480=\"\",\"\",'1. Ordersheet'!I480)","v":""},{"$f":"IF('1. Ordersheet'!J480=\"\",\"\",'1. Ordersheet'!J480)","v":""},{"$f":"IF('1. Ordersheet'!K480=\"\",\"\",'1. Ordersheet'!K480)","v":""},{"$f":"IF('1. Ordersheet'!M480=\"\",\"\",'1. Ordersheet'!M480)","v":""},null,null,{"$f":"'1. Ordersheet'!AR480","v":0},{"$f":"IF('1. Ordersheet'!AE480=\"\",\"\",'1. Ordersheet'!AE480)","v":""}]
[{"$f":"IF('1. Ordersheet'!B481=\"\",\"\",'1. Ordersheet'!B481)","v":""},{"$f":"IF('1. Ordersheet'!I481=\"\",\"\",'1. Ordersheet'!I481)","v":""},{"$f":"IF('1. Ordersheet'!J481=\"\",\"\",'1. Ordersheet'!J481)","v":""},{"$f":"IF('1. Ordersheet'!K481=\"\",\"\",'1. Ordersheet'!K481)","v":""},{"$f":"IF('1. Ordersheet'!M481=\"\",\"\",'1. Ordersheet'!M481)","v":""},null,null,{"$f":"'1. Ordersheet'!AR481","v":0},{"$f":"IF('1. Ordersheet'!AE481=\"\",\"\",'1. Ordersheet'!AE481)","v":""}]
[{"$f":"IF('1. Ordersheet'!B482=\"\",\"\",'1. Ordersheet'!B482)","v":""},{"$f":"IF('1. Ordersheet'!I482=\"\",\"\",'1. Ordersheet'!I482)","v":""},{"$f":"IF('1. Ordersheet'!J482=\"\",\"\",'1. Ordersheet'!J482)","v":""},{"$f":"IF('1. Ordersheet'!K482=\"\",\"\",'1. Ordersheet'!K482)","v":""},{"$f":"IF('1. Ordersheet'!M482=\"\",\"\",'1. Ordersheet'!M482)","v":""},null,null,{"$f":"'1. Ordersheet'!AR482","v":0},{"$f":"IF('1. Ordersheet'!AE482=\"\",\"\",'1. Ordersheet'!AE482)","v":""}]
[{"$f":"IF('1. Ordersheet'!B483=\"\",\"\",'1. Ordersheet'!B483)","v":""},{"$f":"IF('1. Ordersheet'!I483=\"\",\"\",'1. Ordersheet'!I483)","v":""},{"$f":"IF('1. Ordersheet'!J483=\"\",\"\",'1. Ordersheet'!J483)","v":""},{"$f":"IF('1. Ordersheet'!K483=\"\",\"\",'1. Ordersheet'!K483)","v":""},{"$f":"IF('1. Ordersheet'!M483=\"\",\"\",'1. Ordersheet'!M483)","v":""},null,null,{"$f":"'1. Ordersheet'!AR483","v":0},{"$f":"IF('1. Ordersheet'!AE483=\"\",\"\",'1. Ordersheet'!AE483)","v":""}]
[{"$f":"IF('1. Ordersheet'!B484=\"\",\"\",'1. Ordersheet'!B484)","v":""},{"$f":"IF('1. Ordersheet'!I484=\"\",\"\",'1. Ordersheet'!I484)","v":""},{"$f":"IF('1. Ordersheet'!J484=\"\",\"\",'1. Ordersheet'!J484)","v":""},{"$f":"IF('1. Ordersheet'!K484=\"\",\"\",'1. Ordersheet'!K484)","v":""},{"$f":"IF('1. Ordersheet'!M484=\"\",\"\",'1. Ordersheet'!M484)","v":""},null,null,{"$f":"'1. Ordersheet'!AR484","v":0},{"$f":"IF('1. Ordersheet'!AE484=\"\",\"\",'1. Ordersheet'!AE484)","v":""}]
[{"$f":"IF('1. Ordersheet'!B485=\"\",\"\",'1. Ordersheet'!B485)","v":""},{"$f":"IF('1. Ordersheet'!I485=\"\",\"\",'1. Ordersheet'!I485)","v":""},{"$f":"IF('1. Ordersheet'!J485=\"\",\"\",'1. Ordersheet'!J485)","v":""},{"$f":"IF('1. Ordersheet'!K485=\"\",\"\",'1. Ordersheet'!K485)","v":""},{"$f":"IF('1. Ordersheet'!M485=\"\",\"\",'1. Ordersheet'!M485)","v":""},null,null,{"$f":"'1. Ordersheet'!AR485","v":0},{"$f":"IF('1. Ordersheet'!AE485=\"\",\"\",'1. Ordersheet'!AE485)","v":""}]
[{"$f":"IF('1. Ordersheet'!B486=\"\",\"\",'1. Ordersheet'!B486)","v":""},{"$f":"IF('1. Ordersheet'!I486=\"\",\"\",'1. Ordersheet'!I486)","v":""},{"$f":"IF('1. Ordersheet'!J486=\"\",\"\",'1. Ordersheet'!J486)","v":""},{"$f":"IF('1. Ordersheet'!K486=\"\",\"\",'1. Ordersheet'!K486)","v":""},{"$f":"IF('1. Ordersheet'!M486=\"\",\"\",'1. Ordersheet'!M486)","v":""},null,null,{"$f":"'1. Ordersheet'!AR486","v":0},{"$f":"IF('1. Ordersheet'!AE486=\"\",\"\",'1. Ordersheet'!AE486)","v":""}]
[{"$f":"IF('1. Ordersheet'!B487=\"\",\"\",'1. Ordersheet'!B487)","v":""},{"$f":"IF('1. Ordersheet'!I487=\"\",\"\",'1. Ordersheet'!I487)","v":""},{"$f":"IF('1. Ordersheet'!J487=\"\",\"\",'1. Ordersheet'!J487)","v":""},{"$f":"IF('1. Ordersheet'!K487=\"\",\"\",'1. Ordersheet'!K487)","v":""},{"$f":"IF('1. Ordersheet'!M487=\"\",\"\",'1. Ordersheet'!M487)","v":""},null,null,{"$f":"'1. Ordersheet'!AR487","v":0},{"$f":"IF('1. Ordersheet'!AE487=\"\",\"\",'1. Ordersheet'!AE487)","v":""}]
[{"$f":"IF('1. Ordersheet'!B488=\"\",\"\",'1. Ordersheet'!B488)","v":""},{"$f":"IF('1. Ordersheet'!I488=\"\",\"\",'1. Ordersheet'!I488)","v":""},{"$f":"IF('1. Ordersheet'!J488=\"\",\"\",'1. Ordersheet'!J488)","v":""},{"$f":"IF('1. Ordersheet'!K488=\"\",\"\",'1. Ordersheet'!K488)","v":""},{"$f":"IF('1. Ordersheet'!M488=\"\",\"\",'1. Ordersheet'!M488)","v":""},null,null,{"$f":"'1. Ordersheet'!AR488","v":0},{"$f":"IF('1. Ordersheet'!AE488=\"\",\"\",'1. Ordersheet'!AE488)","v":""}]
[{"$f":"IF('1. Ordersheet'!B489=\"\",\"\",'1. Ordersheet'!B489)","v":""},{"$f":"IF('1. Ordersheet'!I489=\"\",\"\",'1. Ordersheet'!I489)","v":""},{"$f":"IF('1. Ordersheet'!J489=\"\",\"\",'1. Ordersheet'!J489)","v":""},{"$f":"IF('1. Ordersheet'!K489=\"\",\"\",'1. Ordersheet'!K489)","v":""},{"$f":"IF('1. Ordersheet'!M489=\"\",\"\",'1. Ordersheet'!M489)","v":""},null,null,{"$f":"'1. Ordersheet'!AR489","v":0},{"$f":"IF('1. Ordersheet'!AE489=\"\",\"\",'1. Ordersheet'!AE489)","v":""}]
[{"$f":"IF('1. Ordersheet'!B490=\"\",\"\",'1. Ordersheet'!B490)","v":""},{"$f":"IF('1. Ordersheet'!I490=\"\",\"\",'1. Ordersheet'!I490)","v":""},{"$f":"IF('1. Ordersheet'!J490=\"\",\"\",'1. Ordersheet'!J490)","v":""},{"$f":"IF('1. Ordersheet'!K490=\"\",\"\",'1. Ordersheet'!K490)","v":""},{"$f":"IF('1. Ordersheet'!M490=\"\",\"\",'1. Ordersheet'!M490)","v":""},null,null,{"$f":"'1. Ordersheet'!AR490","v":0},{"$f":"IF('1. Ordersheet'!AE490=\"\",\"\",'1. Ordersheet'!AE490)","v":""}]
[{"$f":"IF('1. Ordersheet'!B491=\"\",\"\",'1. Ordersheet'!B491)","v":""},{"$f":"IF('1. Ordersheet'!I491=\"\",\"\",'1. Ordersheet'!I491)","v":""},{"$f":"IF('1. Ordersheet'!J491=\"\",\"\",'1. Ordersheet'!J491)","v":""},{"$f":"IF('1. Ordersheet'!K491=\"\",\"\",'1. Ordersheet'!K491)","v":""},{"$f":"IF('1. Ordersheet'!M491=\"\",\"\",'1. Ordersheet'!M491)","v":""},null,null,{"$f":"'1. Ordersheet'!AR491","v":0},{"$f":"IF('1. Ordersheet'!AE491=\"\",\"\",'1. Ordersheet'!AE491)","v":""}]
[{"$f":"IF('1. Ordersheet'!B492=\"\",\"\",'1. Ordersheet'!B492)","v":""},{"$f":"IF('1. Ordersheet'!I492=\"\",\"\",'1. Ordersheet'!I492)","v":""},{"$f":"IF('1. Ordersheet'!J492=\"\",\"\",'1. Ordersheet'!J492)","v":""},{"$f":"IF('1. Ordersheet'!K492=\"\",\"\",'1. Ordersheet'!K492)","v":""},{"$f":"IF('1. Ordersheet'!M492=\"\",\"\",'1. Ordersheet'!M492)","v":""},null,null,{"$f":"'1. Ordersheet'!AR492","v":0},{"$f":"IF('1. Ordersheet'!AE492=\"\",\"\",'1. Ordersheet'!AE492)","v":""}]
[{"$f":"IF('1. Ordersheet'!B493=\"\",\"\",'1. Ordersheet'!B493)","v":""},{"$f":"IF('1. Ordersheet'!I493=\"\",\"\",'1. Ordersheet'!I493)","v":""},{"$f":"IF('1. Ordersheet'!J493=\"\",\"\",'1. Ordersheet'!J493)","v":""},{"$f":"IF('1. Ordersheet'!K493=\"\",\"\",'1. Ordersheet'!K493)","v":""},{"$f":"IF('1. Ordersheet'!M493=\"\",\"\",'1. Ordersheet'!M493)","v":""},null,null,{"$f":"'1. Ordersheet'!AR493","v":0},{"$f":"IF('1. Ordersheet'!AE493=\"\",\"\",'1. Ordersheet'!AE493)","v":""}]
[{"$f":"IF('1. Ordersheet'!B494=\"\",\"\",'1. Ordersheet'!B494)","v":""},{"$f":"IF('1. Ordersheet'!I494=\"\",\"\",'1. Ordersheet'!I494)","v":""},{"$f":"IF('1. Ordersheet'!J494=\"\",\"\",'1. Ordersheet'!J494)","v":""},{"$f":"IF('1. Ordersheet'!K494=\"\",\"\",'1. Ordersheet'!K494)","v":""},{"$f":"IF('1. Ordersheet'!M494=\"\",\"\",'1. Ordersheet'!M494)","v":""},null,null,{"$f":"'1. Ordersheet'!AR494","v":0},{"$f":"IF('1. Ordersheet'!AE494=\"\",\"\",'1. Ordersheet'!AE494)","v":""}]
[{"$f":"IF('1. Ordersheet'!B495=\"\",\"\",'1. Ordersheet'!B495)","v":""},{"$f":"IF('1. Ordersheet'!I495=\"\",\"\",'1. Ordersheet'!I495)","v":""},{"$f":"IF('1. Ordersheet'!J495=\"\",\"\",'1. Ordersheet'!J495)","v":""},{"$f":"IF('1. Ordersheet'!K495=\"\",\"\",'1. Ordersheet'!K495)","v":""},{"$f":"IF('1. Ordersheet'!M495=\"\",\"\",'1. Ordersheet'!M495)","v":""},null,null,{"$f":"'1. Ordersheet'!AR495","v":0},{"$f":"IF('1. Ordersheet'!AE495=\"\",\"\",'1. Ordersheet'!AE495)","v":""}]
[{"$f":"IF('1. Ordersheet'!B496=\"\",\"\",'1. Ordersheet'!B496)","v":""},{"$f":"IF('1. Ordersheet'!I496=\"\",\"\",'1. Ordersheet'!I496)","v":""},{"$f":"IF('1. Ordersheet'!J496=\"\",\"\",'1. Ordersheet'!J496)","v":""},{"$f":"IF('1. Ordersheet'!K496=\"\",\"\",'1. Ordersheet'!K496)","v":""},{"$f":"IF('1. Ordersheet'!M496=\"\",\"\",'1. Ordersheet'!M496)","v":""},null,null,{"$f":"'1. Ordersheet'!AR496","v":0},{"$f":"IF('1. Ordersheet'!AE496=\"\",\"\",'1. Ordersheet'!AE496)","v":""}]
[{"$f":"IF('1. Ordersheet'!B497=\"\",\"\",'1. Ordersheet'!B497)","v":""},{"$f":"IF('1. Ordersheet'!I497=\"\",\"\",'1. Ordersheet'!I497)","v":""},{"$f":"IF('1. Ordersheet'!J497=\"\",\"\",'1. Ordersheet'!J497)","v":""},{"$f":"IF('1. Ordersheet'!K497=\"\",\"\",'1. Ordersheet'!K497)","v":""},{"$f":"IF('1. Ordersheet'!M497=\"\",\"\",'1. Ordersheet'!M497)","v":""},null,null,{"$f":"'1. Ordersheet'!AR497","v":0},{"$f":"IF('1. Ordersheet'!AE497=\"\",\"\",'1. Ordersheet'!AE497)","v":""}]
[{"$f":"IF('1. Ordersheet'!B498=\"\",\"\",'1. Ordersheet'!B498)","v":""},{"$f":"IF('1. Ordersheet'!I498=\"\",\"\",'1. Ordersheet'!I498)","v":""},{"$f":"IF('1. Ordersheet'!J498=\"\",\"\",'1. Ordersheet'!J498)","v":""},{"$f":"IF('1. Ordersheet'!K498=\"\",\"\",'1. Ordersheet'!K498)","v":""},{"$f":"IF('1. Ordersheet'!M498=\"\",\"\",'1. Ordersheet'!M498)","v":""},null,null,{"$f":"'1. Ordersheet'!AR498","v":0},{"$f":"IF('1. Ordersheet'!AE498=\"\",\"\",'1. Ordersheet'!AE498)","v":""}]
[{"$f":"IF('1. Ordersheet'!B499=\"\",\"\",'1. Ordersheet'!B499)","v":""},{"$f":"IF('1. Ordersheet'!I499=\"\",\"\",'1. Ordersheet'!I499)","v":""},{"$f":"IF('1. Ordersheet'!J499=\"\",\"\",'1. Ordersheet'!J499)","v":""},{"$f":"IF('1. Ordersheet'!K499=\"\",\"\",'1. Ordersheet'!K499)","v":""},{"$f":"IF('1. Ordersheet'!M499=\"\",\"\",'1. Ordersheet'!M499)","v":""},null,null,{"$f":"'1. Ordersheet'!AR499","v":0},{"$f":"IF('1. Ordersheet'!AE499=\"\",\"\",'1. Ordersheet'!AE499)","v":""}]
[{"$f":"IF('1. Ordersheet'!B500=\"\",\"\",'1. Ordersheet'!B500)","v":""},{"$f":"IF('1. Ordersheet'!I500=\"\",\"\",'1. Ordersheet'!I500)","v":""},{"$f":"IF('1. Ordersheet'!J500=\"\",\"\",'1. Ordersheet'!J500)","v":""},{"$f":"IF('1. Ordersheet'!K500=\"\",\"\",'1. Ordersheet'!K500)","v":""},{"$f":"IF('1. Ordersheet'!M500=\"\",\"\",'1. Ordersheet'!M500)","v":""},null,null,{"$f":"'1. Ordersheet'!AR500","v":0},{"$f":"IF('1. Ordersheet'!AE500=\"\",\"\",'1. Ordersheet'!AE500)","v":""}]
[{"$f":"IF('1. Ordersheet'!B501=\"\",\"\",'1. Ordersheet'!B501)","v":""},{"$f":"IF('1. Ordersheet'!I501=\"\",\"\",'1. Ordersheet'!I501)","v":""},{"$f":"IF('1. Ordersheet'!J501=\"\",\"\",'1. Ordersheet'!J501)","v":""},{"$f":"IF('1. Ordersheet'!K501=\"\",\"\",'1. Ordersheet'!K501)","v":""},{"$f":"IF('1. Ordersheet'!M501=\"\",\"\",'1. Ordersheet'!M501)","v":""},null,null,{"$f":"'1. Ordersheet'!AR501","v":0},{"$f":"IF('1. Ordersheet'!AE501=\"\",\"\",'1. Ordersheet'!AE501)","v":""}]
[{"$f":"IF('1. Ordersheet'!B502=\"\",\"\",'1. Ordersheet'!B502)","v":""},{"$f":"IF('1. Ordersheet'!I502=\"\",\"\",'1. Ordersheet'!I502)","v":""},{"$f":"IF('1. Ordersheet'!J502=\"\",\"\",'1. Ordersheet'!J502)","v":""},{"$f":"IF('1. Ordersheet'!K502=\"\",\"\",'1. Ordersheet'!K502)","v":""},{"$f":"IF('1. Ordersheet'!M502=\"\",\"\",'1. Ordersheet'!M502)","v":""},null,null,{"$f":"'1. Ordersheet'!AR502","v":0},{"$f":"IF('1. Ordersheet'!AE502=\"\",\"\",'1. Ordersheet'!AE502)","v":""}]
[{"$f":"IF('1. Ordersheet'!B503=\"\",\"\",'1. Ordersheet'!B503)","v":""},{"$f":"IF('1. Ordersheet'!I503=\"\",\"\",'1. Ordersheet'!I503)","v":""},{"$f":"IF('1. Ordersheet'!J503=\"\",\"\",'1. Ordersheet'!J503)","v":""},{"$f":"IF('1. Ordersheet'!K503=\"\",\"\",'1. Ordersheet'!K503)","v":""},{"$f":"IF('1. Ordersheet'!M503=\"\",\"\",'1. Ordersheet'!M503)","v":""},null,null,{"$f":"'1. Ordersheet'!AR503","v":0},{"$f":"IF('1. Ordersheet'!AE503=\"\",\"\",'1. Ordersheet'!AE503)","v":""}]
[{"$f":"IF('1. Ordersheet'!B504=\"\",\"\",'1. Ordersheet'!B504)","v":""},{"$f":"IF('1. Ordersheet'!I504=\"\",\"\",'1. Ordersheet'!I504)","v":""},{"$f":"IF('1. Ordersheet'!J504=\"\",\"\",'1. Ordersheet'!J504)","v":""},{"$f":"IF('1. Ordersheet'!K504=\"\",\"\",'1. Ordersheet'!K504)","v":""},{"$f":"IF('1. Ordersheet'!M504=\"\",\"\",'1. Ordersheet'!M504)","v":""},null,null,{"$f":"'1. Ordersheet'!AR504","v":0},{"$f":"IF('1. Ordersheet'!AE504=\"\",\"\",'1. Ordersheet'!AE504)","v":""}]
[{"$f":"IF('1. Ordersheet'!B505=\"\",\"\",'1. Ordersheet'!B505)","v":""},{"$f":"IF('1. Ordersheet'!I505=\"\",\"\",'1. Ordersheet'!I505)","v":""},{"$f":"IF('1. Ordersheet'!J505=\"\",\"\",'1. Ordersheet'!J505)","v":""},{"$f":"IF('1. Ordersheet'!K505=\"\",\"\",'1. Ordersheet'!K505)","v":""},{"$f":"IF('1. Ordersheet'!M505=\"\",\"\",'1. Ordersheet'!M505)","v":""},null,null,{"$f":"'1. Ordersheet'!AR505","v":0},{"$f":"IF('1. Ordersheet'!AE505=\"\",\"\",'1. Ordersheet'!AE505)","v":""}]
[{"$f":"IF('1. Ordersheet'!B506=\"\",\"\",'1. Ordersheet'!B506)","v":""},{"$f":"IF('1. Ordersheet'!I506=\"\",\"\",'1. Ordersheet'!I506)","v":""},{"$f":"IF('1. Ordersheet'!J506=\"\",\"\",'1. Ordersheet'!J506)","v":""},{"$f":"IF('1. Ordersheet'!K506=\"\",\"\",'1. Ordersheet'!K506)","v":""},{"$f":"IF('1. Ordersheet'!M506=\"\",\"\",'1. Ordersheet'!M506)","v":""},null,null,{"$f":"'1. Ordersheet'!AR506","v":0},{"$f":"IF('1. Ordersheet'!AE506=\"\",\"\",'1. Ordersheet'!AE506)","v":""}]
[{"$f":"IF('1. Ordersheet'!B507=\"\",\"\",'1. Ordersheet'!B507)","v":""},{"$f":"IF('1. Ordersheet'!I507=\"\",\"\",'1. Ordersheet'!I507)","v":""},{"$f":"IF('1. Ordersheet'!J507=\"\",\"\",'1. Ordersheet'!J507)","v":""},{"$f":"IF('1. Ordersheet'!K507=\"\",\"\",'1. Ordersheet'!K507)","v":""},{"$f":"IF('1. Ordersheet'!M507=\"\",\"\",'1. Ordersheet'!M507)","v":""},null,null,{"$f":"'1. Ordersheet'!AR507","v":0},{"$f":"IF('1. Ordersheet'!AE507=\"\",\"\",'1. Ordersheet'!AE507)","v":""}]
[{"$f":"IF('1. Ordersheet'!B508=\"\",\"\",'1. Ordersheet'!B508)","v":""},{"$f":"IF('1. Ordersheet'!I508=\"\",\"\",'1. Ordersheet'!I508)","v":""},{"$f":"IF('1. Ordersheet'!J508=\"\",\"\",'1. Ordersheet'!J508)","v":""},{"$f":"IF('1. Ordersheet'!K508=\"\",\"\",'1. Ordersheet'!K508)","v":""},{"$f":"IF('1. Ordersheet'!M508=\"\",\"\",'1. Ordersheet'!M508)","v":""},null,null,{"$f":"'1. Ordersheet'!AR508","v":0},{"$f":"IF('1. Ordersheet'!AE508=\"\",\"\",'1. Ordersheet'!AE508)","v":""}]
[{"$f":"IF('1. Ordersheet'!B509=\"\",\"\",'1. Ordersheet'!B509)","v":""},{"$f":"IF('1. Ordersheet'!I509=\"\",\"\",'1. Ordersheet'!I509)","v":""},{"$f":"IF('1. Ordersheet'!J509=\"\",\"\",'1. Ordersheet'!J509)","v":""},{"$f":"IF('1. Ordersheet'!K509=\"\",\"\",'1. Ordersheet'!K509)","v":""},{"$f":"IF('1. Ordersheet'!M509=\"\",\"\",'1. Ordersheet'!M509)","v":""},null,null,{"$f":"'1. Ordersheet'!AR509","v":0},{"$f":"IF('1. Ordersheet'!AE509=\"\",\"\",'1. Ordersheet'!AE509)","v":""}]
[{"$f":"IF('1. Ordersheet'!B510=\"\",\"\",'1. Ordersheet'!B510)","v":""},{"$f":"IF('1. Ordersheet'!I510=\"\",\"\",'1. Ordersheet'!I510)","v":""},{"$f":"IF('1. Ordersheet'!J510=\"\",\"\",'1. Ordersheet'!J510)","v":""},{"$f":"IF('1. Ordersheet'!K510=\"\",\"\",'1. Ordersheet'!K510)","v":""},{"$f":"IF('1. Ordersheet'!M510=\"\",\"\",'1. Ordersheet'!M510)","v":""},null,null,{"$f":"'1. Ordersheet'!AR510","v":0},{"$f":"IF('1. Ordersheet'!AE510=\"\",\"\",'1. Ordersheet'!AE510)","v":""}]
[{"$f":"IF('1. Ordersheet'!B511=\"\",\"\",'1. Ordersheet'!B511)","v":""},{"$f":"IF('1. Ordersheet'!I511=\"\",\"\",'1. Ordersheet'!I511)","v":""},{"$f":"IF('1. Ordersheet'!J511=\"\",\"\",'1. Ordersheet'!J511)","v":""},{"$f":"IF('1. Ordersheet'!K511=\"\",\"\",'1. Ordersheet'!K511)","v":""},{"$f":"IF('1. Ordersheet'!M511=\"\",\"\",'1. Ordersheet'!M511)","v":""},null,null,{"$f":"'1. Ordersheet'!AR511","v":0},{"$f":"IF('1. Ordersheet'!AE511=\"\",\"\",'1. Ordersheet'!AE511)","v":""}]
[{"$f":"IF('1. Ordersheet'!B512=\"\",\"\",'1. Ordersheet'!B512)","v":""},{"$f":"IF('1. Ordersheet'!I512=\"\",\"\",'1. Ordersheet'!I512)","v":""},{"$f":"IF('1. Ordersheet'!J512=\"\",\"\",'1. Ordersheet'!J512)","v":""},{"$f":"IF('1. Ordersheet'!K512=\"\",\"\",'1. Ordersheet'!K512)","v":""},{"$f":"IF('1. Ordersheet'!M512=\"\",\"\",'1. Ordersheet'!M512)","v":""},null,null,{"$f":"'1. Ordersheet'!AR512","v":0},{"$f":"IF('1. Ordersheet'!AE512=\"\",\"\",'1. Ordersheet'!AE512)","v":""}]
[{"$f":"IF('1. Ordersheet'!B513=\"\",\"\",'1. Ordersheet'!B513)","v":""},{"$f":"IF('1. Ordersheet'!I513=\"\",\"\",'1. Ordersheet'!I513)","v":""},{"$f":"IF('1. Ordersheet'!J513=\"\",\"\",'1. Ordersheet'!J513)","v":""},{"$f":"IF('1. Ordersheet'!K513=\"\",\"\",'1. Ordersheet'!K513)","v":""},{"$f":"IF('1. Ordersheet'!M513=\"\",\"\",'1. Ordersheet'!M513)","v":""},null,null,{"$f":"'1. Ordersheet'!AR513","v":0},{"$f":"IF('1. Ordersheet'!AE513=\"\",\"\",'1. Ordersheet'!AE513)","v":""}]
[{"$f":"IF('1. Ordersheet'!B514=\"\",\"\",'1. Ordersheet'!B514)","v":""},{"$f":"IF('1. Ordersheet'!I514=\"\",\"\",'1. Ordersheet'!I514)","v":""},{"$f":"IF('1. Ordersheet'!J514=\"\",\"\",'1. Ordersheet'!J514)","v":""},{"$f":"IF('1. Ordersheet'!K514=\"\",\"\",'1. Ordersheet'!K514)","v":""},{"$f":"IF('1. Ordersheet'!M514=\"\",\"\",'1. Ordersheet'!M514)","v":""},null,null,{"$f":"'1. Ordersheet'!AR514","v":0},{"$f":"IF('1. Ordersheet'!AE514=\"\",\"\",'1. Ordersheet'!AE514)","v":""}]
[{"$f":"IF('1. Ordersheet'!B515=\"\",\"\",'1. Ordersheet'!B515)","v":""},{"$f":"IF('1. Ordersheet'!I515=\"\",\"\",'1. Ordersheet'!I515)","v":""},{"$f":"IF('1. Ordersheet'!J515=\"\",\"\",'1. Ordersheet'!J515)","v":""},{"$f":"IF('1. Ordersheet'!K515=\"\",\"\",'1. Ordersheet'!K515)","v":""},{"$f":"IF('1. Ordersheet'!M515=\"\",\"\",'1. Ordersheet'!M515)","v":""},null,null,{"$f":"'1. Ordersheet'!AR515","v":0},{"$f":"IF('1. Ordersheet'!AE515=\"\",\"\",'1. Ordersheet'!AE515)","v":""}]
[{"$f":"IF('1. Ordersheet'!B516=\"\",\"\",'1. Ordersheet'!B516)","v":""},{"$f":"IF('1. Ordersheet'!I516=\"\",\"\",'1. Ordersheet'!I516)","v":""},{"$f":"IF('1. Ordersheet'!J516=\"\",\"\",'1. Ordersheet'!J516)","v":""},{"$f":"IF('1. Ordersheet'!K516=\"\",\"\",'1. Ordersheet'!K516)","v":""},{"$f":"IF('1. Ordersheet'!M516=\"\",\"\",'1. Ordersheet'!M516)","v":""},null,null,{"$f":"'1. Ordersheet'!AR516","v":0},{"$f":"IF('1. Ordersheet'!AE516=\"\",\"\",'1. Ordersheet'!AE516)","v":""}]
[{"$f":"IF('1. Ordersheet'!B517=\"\",\"\",'1. Ordersheet'!B517)","v":""},{"$f":"IF('1. Ordersheet'!I517=\"\",\"\",'1. Ordersheet'!I517)","v":""},{"$f":"IF('1. Ordersheet'!J517=\"\",\"\",'1. Ordersheet'!J517)","v":""},{"$f":"IF('1. Ordersheet'!K517=\"\",\"\",'1. Ordersheet'!K517)","v":""},{"$f":"IF('1. Ordersheet'!M517=\"\",\"\",'1. Ordersheet'!M517)","v":""},null,null,{"$f":"'1. Ordersheet'!AR517","v":0},{"$f":"IF('1. Ordersheet'!AE517=\"\",\"\",'1. Ordersheet'!AE517)","v":""}]
[{"$f":"IF('1. Ordersheet'!B518=\"\",\"\",'1. Ordersheet'!B518)","v":""},{"$f":"IF('1. Ordersheet'!I518=\"\",\"\",'1. Ordersheet'!I518)","v":""},{"$f":"IF('1. Ordersheet'!J518=\"\",\"\",'1. Ordersheet'!J518)","v":""},{"$f":"IF('1. Ordersheet'!K518=\"\",\"\",'1. Ordersheet'!K518)","v":""},{"$f":"IF('1. Ordersheet'!M518=\"\",\"\",'1. Ordersheet'!M518)","v":""},null,null,{"$f":"'1. Ordersheet'!AR518","v":0},{"$f":"IF('1. Ordersheet'!AE518=\"\",\"\",'1. Ordersheet'!AE518)","v":""}]
[{"$f":"IF('1. Ordersheet'!B519=\"\",\"\",'1. Ordersheet'!B519)","v":""},{"$f":"IF('1. Ordersheet'!I519=\"\",\"\",'1. Ordersheet'!I519)","v":""},{"$f":"IF('1. Ordersheet'!J519=\"\",\"\",'1. Ordersheet'!J519)","v":""},{"$f":"IF('1. Ordersheet'!K519=\"\",\"\",'1. Ordersheet'!K519)","v":""},{"$f":"IF('1. Ordersheet'!M519=\"\",\"\",'1. Ordersheet'!M519)","v":""},null,null,{"$f":"'1. Ordersheet'!AR519","v":0},{"$f":"IF('1. Ordersheet'!AE519=\"\",\"\",'1. Ordersheet'!AE519)","v":""}]
[{"$f":"IF('1. Ordersheet'!B520=\"\",\"\",'1. Ordersheet'!B520)","v":""},{"$f":"IF('1. Ordersheet'!I520=\"\",\"\",'1. Ordersheet'!I520)","v":""},{"$f":"IF('1. Ordersheet'!J520=\"\",\"\",'1. Ordersheet'!J520)","v":""},{"$f":"IF('1. Ordersheet'!K520=\"\",\"\",'1. Ordersheet'!K520)","v":""},{"$f":"IF('1. Ordersheet'!M520=\"\",\"\",'1. Ordersheet'!M520)","v":""},null,null,{"$f":"'1. Ordersheet'!AR520","v":0},{"$f":"IF('1. Ordersheet'!AE520=\"\",\"\",'1. Ordersheet'!AE520)","v":""}]
[{"$f":"IF('1. Ordersheet'!B521=\"\",\"\",'1. Ordersheet'!B521)","v":""},{"$f":"IF('1. Ordersheet'!I521=\"\",\"\",'1. Ordersheet'!I521)","v":""},{"$f":"IF('1. Ordersheet'!J521=\"\",\"\",'1. Ordersheet'!J521)","v":""},{"$f":"IF('1. Ordersheet'!K521=\"\",\"\",'1. Ordersheet'!K521)","v":""},{"$f":"IF('1. Ordersheet'!M521=\"\",\"\",'1. Ordersheet'!M521)","v":""},null,null,{"$f":"'1. Ordersheet'!AR521","v":0},{"$f":"IF('1. Ordersheet'!AE521=\"\",\"\",'1. Ordersheet'!AE521)","v":""}]
[{"$f":"IF('1. Ordersheet'!B522=\"\",\"\",'1. Ordersheet'!B522)","v":""},{"$f":"IF('1. Ordersheet'!I522=\"\",\"\",'1. Ordersheet'!I522)","v":""},{"$f":"IF('1. Ordersheet'!J522=\"\",\"\",'1. Ordersheet'!J522)","v":""},{"$f":"IF('1. Ordersheet'!K522=\"\",\"\",'1. Ordersheet'!K522)","v":""},{"$f":"IF('1. Ordersheet'!M522=\"\",\"\",'1. Ordersheet'!M522)","v":""},null,null,{"$f":"'1. Ordersheet'!AR522","v":0},{"$f":"IF('1. Ordersheet'!AE522=\"\",\"\",'1. Ordersheet'!AE522)","v":""}]
[{"$f":"IF('1. Ordersheet'!B523=\"\",\"\",'1. Ordersheet'!B523)","v":""},{"$f":"IF('1. Ordersheet'!I523=\"\",\"\",'1. Ordersheet'!I523)","v":""},{"$f":"IF('1. Ordersheet'!J523=\"\",\"\",'1. Ordersheet'!J523)","v":""},{"$f":"IF('1. Ordersheet'!K523=\"\",\"\",'1. Ordersheet'!K523)","v":""},{"$f":"IF('1. Ordersheet'!M523=\"\",\"\",'1. Ordersheet'!M523)","v":""},null,null,{"$f":"'1. Ordersheet'!AR523","v":0},{"$f":"IF('1. Ordersheet'!AE523=\"\",\"\",'1. Ordersheet'!AE523)","v":""}]
[{"$f":"IF('1. Ordersheet'!B524=\"\",\"\",'1. Ordersheet'!B524)","v":""},{"$f":"IF('1. Ordersheet'!I524=\"\",\"\",'1. Ordersheet'!I524)","v":""},{"$f":"IF('1. Ordersheet'!J524=\"\",\"\",'1. Ordersheet'!J524)","v":""},{"$f":"IF('1. Ordersheet'!K524=\"\",\"\",'1. Ordersheet'!K524)","v":""},{"$f":"IF('1. Ordersheet'!M524=\"\",\"\",'1. Ordersheet'!M524)","v":""},null,null,{"$f":"'1. Ordersheet'!AR524","v":0},{"$f":"IF('1. Ordersheet'!AE524=\"\",\"\",'1. Ordersheet'!AE524)","v":""}]
[{"$f":"IF('1. Ordersheet'!B525=\"\",\"\",'1. Ordersheet'!B525)","v":""},{"$f":"IF('1. Ordersheet'!I525=\"\",\"\",'1. Ordersheet'!I525)","v":""},{"$f":"IF('1. Ordersheet'!J525=\"\",\"\",'1. Ordersheet'!J525)","v":""},{"$f":"IF('1. Ordersheet'!K525=\"\",\"\",'1. Ordersheet'!K525)","v":""},{"$f":"IF('1. Ordersheet'!M525=\"\",\"\",'1. Ordersheet'!M525)","v":""},null,null,{"$f":"'1. Ordersheet'!AR525","v":0},{"$f":"IF('1. Ordersheet'!AE525=\"\",\"\",'1. Ordersheet'!AE525)","v":""}]
[{"$f":"IF('1. Ordersheet'!B526=\"\",\"\",'1. Ordersheet'!B526)","v":""},{"$f":"IF('1. Ordersheet'!I526=\"\",\"\",'1. Ordersheet'!I526)","v":""},{"$f":"IF('1. Ordersheet'!J526=\"\",\"\",'1. Ordersheet'!J526)","v":""},{"$f":"IF('1. Ordersheet'!K526=\"\",\"\",'1. Ordersheet'!K526)","v":""},{"$f":"IF('1. Ordersheet'!M526=\"\",\"\",'1. Ordersheet'!M526)","v":""},null,null,{"$f":"'1. Ordersheet'!AR526","v":0},{"$f":"IF('1. Ordersheet'!AE526=\"\",\"\",'1. Ordersheet'!AE526)","v":""}]
[{"$f":"IF('1. Ordersheet'!B527=\"\",\"\",'1. Ordersheet'!B527)","v":""},{"$f":"IF('1. Ordersheet'!I527=\"\",\"\",'1. Ordersheet'!I527)","v":""},{"$f":"IF('1. Ordersheet'!J527=\"\",\"\",'1. Ordersheet'!J527)","v":""},{"$f":"IF('1. Ordersheet'!K527=\"\",\"\",'1. Ordersheet'!K527)","v":""},{"$f":"IF('1. Ordersheet'!M527=\"\",\"\",'1. Ordersheet'!M527)","v":""},null,null,{"$f":"'1. Ordersheet'!AR527","v":0},{"$f":"IF('1. Ordersheet'!AE527=\"\",\"\",'1. Ordersheet'!AE527)","v":""}]
[{"$f":"IF('1. Ordersheet'!B528=\"\",\"\",'1. Ordersheet'!B528)","v":""},{"$f":"IF('1. Ordersheet'!I528=\"\",\"\",'1. Ordersheet'!I528)","v":""},{"$f":"IF('1. Ordersheet'!J528=\"\",\"\",'1. Ordersheet'!J528)","v":""},{"$f":"IF('1. Ordersheet'!K528=\"\",\"\",'1. Ordersheet'!K528)","v":""},{"$f":"IF('1. Ordersheet'!M528=\"\",\"\",'1. Ordersheet'!M528)","v":""},null,null,{"$f":"'1. Ordersheet'!AR528","v":0},{"$f":"IF('1. Ordersheet'!AE528=\"\",\"\",'1. Ordersheet'!AE528)","v":""}]
[{"$f":"IF('1. Ordersheet'!B529=\"\",\"\",'1. Ordersheet'!B529)","v":""},{"$f":"IF('1. Ordersheet'!I529=\"\",\"\",'1. Ordersheet'!I529)","v":""},{"$f":"IF('1. Ordersheet'!J529=\"\",\"\",'1. Ordersheet'!J529)","v":""},{"$f":"IF('1. Ordersheet'!K529=\"\",\"\",'1. Ordersheet'!K529)","v":""},{"$f":"IF('1. Ordersheet'!M529=\"\",\"\",'1. Ordersheet'!M529)","v":""},null,null,{"$f":"'1. Ordersheet'!AR529","v":0},{"$f":"IF('1. Ordersheet'!AE529=\"\",\"\",'1. Ordersheet'!AE529)","v":""}]
[{"$f":"IF('1. Ordersheet'!B530=\"\",\"\",'1. Ordersheet'!B530)","v":""},{"$f":"IF('1. Ordersheet'!I530=\"\",\"\",'1. Ordersheet'!I530)","v":""},{"$f":"IF('1. Ordersheet'!J530=\"\",\"\",'1. Ordersheet'!J530)","v":""},{"$f":"IF('1. Ordersheet'!K530=\"\",\"\",'1. Ordersheet'!K530)","v":""},{"$f":"IF('1. Ordersheet'!M530=\"\",\"\",'1. Ordersheet'!M530)","v":""},null,null,{"$f":"'1. Ordersheet'!AR530","v":0},{"$f":"IF('1. Ordersheet'!AE530=\"\",\"\",'1. Ordersheet'!AE530)","v":""}]
[{"$f":"IF('1. Ordersheet'!B531=\"\",\"\",'1. Ordersheet'!B531)","v":""},{"$f":"IF('1. Ordersheet'!I531=\"\",\"\",'1. Ordersheet'!I531)","v":""},{"$f":"IF('1. Ordersheet'!J531=\"\",\"\",'1. Ordersheet'!J531)","v":""},{"$f":"IF('1. Ordersheet'!K531=\"\",\"\",'1. Ordersheet'!K531)","v":""},{"$f":"IF('1. Ordersheet'!M531=\"\",\"\",'1. Ordersheet'!M531)","v":""},null,null,{"$f":"'1. Ordersheet'!AR531","v":0},{"$f":"IF('1. Ordersheet'!AE531=\"\",\"\",'1. Ordersheet'!AE531)","v":""}]
[{"$f":"IF('1. Ordersheet'!B532=\"\",\"\",'1. Ordersheet'!B532)","v":""},{"$f":"IF('1. Ordersheet'!I532=\"\",\"\",'1. Ordersheet'!I532)","v":""},{"$f":"IF('1. Ordersheet'!J532=\"\",\"\",'1. Ordersheet'!J532)","v":""},{"$f":"IF('1. Ordersheet'!K532=\"\",\"\",'1. Ordersheet'!K532)","v":""},{"$f":"IF('1. Ordersheet'!M532=\"\",\"\",'1. Ordersheet'!M532)","v":""},null,null,{"$f":"'1. Ordersheet'!AR532","v":0},{"$f":"IF('1. Ordersheet'!AE532=\"\",\"\",'1. Ordersheet'!AE532)","v":""}]
[{"$f":"IF('1. Ordersheet'!B533=\"\",\"\",'1. Ordersheet'!B533)","v":""},{"$f":"IF('1. Ordersheet'!I533=\"\",\"\",'1. Ordersheet'!I533)","v":""},{"$f":"IF('1. Ordersheet'!J533=\"\",\"\",'1. Ordersheet'!J533)","v":""},{"$f":"IF('1. Ordersheet'!K533=\"\",\"\",'1. Ordersheet'!K533)","v":""},{"$f":"IF('1. Ordersheet'!M533=\"\",\"\",'1. Ordersheet'!M533)","v":""},null,null,{"$f":"'1. Ordersheet'!AR533","v":0},{"$f":"IF('1. Ordersheet'!AE533=\"\",\"\",'1. Ordersheet'!AE533)","v":""}]
[{"$f":"IF('1. Ordersheet'!B534=\"\",\"\",'1. Ordersheet'!B534)","v":""},{"$f":"IF('1. Ordersheet'!I534=\"\",\"\",'1. Ordersheet'!I534)","v":""},{"$f":"IF('1. Ordersheet'!J534=\"\",\"\",'1. Ordersheet'!J534)","v":""},{"$f":"IF('1. Ordersheet'!K534=\"\",\"\",'1. Ordersheet'!K534)","v":""},{"$f":"IF('1. Ordersheet'!M534=\"\",\"\",'1. Ordersheet'!M534)","v":""},null,null,{"$f":"'1. Ordersheet'!AR534","v":0},{"$f":"IF('1. Ordersheet'!AE534=\"\",\"\",'1. Ordersheet'!AE534)","v":""}]
[{"$f":"IF('1. Ordersheet'!B535=\"\",\"\",'1. Ordersheet'!B535)","v":""},{"$f":"IF('1. Ordersheet'!I535=\"\",\"\",'1. Ordersheet'!I535)","v":""},{"$f":"IF('1. Ordersheet'!J535=\"\",\"\",'1. Ordersheet'!J535)","v":""},{"$f":"IF('1. Ordersheet'!K535=\"\",\"\",'1. Ordersheet'!K535)","v":""},{"$f":"IF('1. Ordersheet'!M535=\"\",\"\",'1. Ordersheet'!M535)","v":""},null,null,{"$f":"'1. Ordersheet'!AR535","v":0},{"$f":"IF('1. Ordersheet'!AE535=\"\",\"\",'1. Ordersheet'!AE535)","v":""}]
[{"$f":"IF('1. Ordersheet'!B536=\"\",\"\",'1. Ordersheet'!B536)","v":""},{"$f":"IF('1. Ordersheet'!I536=\"\",\"\",'1. Ordersheet'!I536)","v":""},{"$f":"IF('1. Ordersheet'!J536=\"\",\"\",'1. Ordersheet'!J536)","v":""},{"$f":"IF('1. Ordersheet'!K536=\"\",\"\",'1. Ordersheet'!K536)","v":""},{"$f":"IF('1. Ordersheet'!M536=\"\",\"\",'1. Ordersheet'!M536)","v":""},null,null,{"$f":"'1. Ordersheet'!AR536","v":0},{"$f":"IF('1. Ordersheet'!AE536=\"\",\"\",'1. Ordersheet'!AE536)","v":""}]
[{"$f":"IF('1. Ordersheet'!B537=\"\",\"\",'1. Ordersheet'!B537)","v":""},{"$f":"IF('1. Ordersheet'!I537=\"\",\"\",'1. Ordersheet'!I537)","v":""},{"$f":"IF('1. Ordersheet'!J537=\"\",\"\",'1. Ordersheet'!J537)","v":""},{"$f":"IF('1. Ordersheet'!K537=\"\",\"\",'1. Ordersheet'!K537)","v":""},{"$f":"IF('1. Ordersheet'!M537=\"\",\"\",'1. Ordersheet'!M537)","v":""},null,null,{"$f":"'1. Ordersheet'!AR537","v":0},{"$f":"IF('1. Ordersheet'!AE537=\"\",\"\",'1. Ordersheet'!AE537)","v":""}]
[{"$f":"IF('1. Ordersheet'!B538=\"\",\"\",'1. Ordersheet'!B538)","v":""},{"$f":"IF('1. Ordersheet'!I538=\"\",\"\",'1. Ordersheet'!I538)","v":""},{"$f":"IF('1. Ordersheet'!J538=\"\",\"\",'1. Ordersheet'!J538)","v":""},{"$f":"IF('1. Ordersheet'!K538=\"\",\"\",'1. Ordersheet'!K538)","v":""},{"$f":"IF('1. Ordersheet'!M538=\"\",\"\",'1. Ordersheet'!M538)","v":""},null,null,{"$f":"'1. Ordersheet'!AR538","v":0},{"$f":"IF('1. Ordersheet'!AE538=\"\",\"\",'1. Ordersheet'!AE538)","v":""}]
[{"$f":"IF('1. Ordersheet'!B539=\"\",\"\",'1. Ordersheet'!B539)","v":""},{"$f":"IF('1. Ordersheet'!I539=\"\",\"\",'1. Ordersheet'!I539)","v":""},{"$f":"IF('1. Ordersheet'!J539=\"\",\"\",'1. Ordersheet'!J539)","v":""},{"$f":"IF('1. Ordersheet'!K539=\"\",\"\",'1. Ordersheet'!K539)","v":""},{"$f":"IF('1. Ordersheet'!M539=\"\",\"\",'1. Ordersheet'!M539)","v":""},null,null,{"$f":"'1. Ordersheet'!AR539","v":0},{"$f":"IF('1. Ordersheet'!AE539=\"\",\"\",'1. Ordersheet'!AE539)","v":""}]
[{"$f":"IF('1. Ordersheet'!B540=\"\",\"\",'1. Ordersheet'!B540)","v":""},{"$f":"IF('1. Ordersheet'!I540=\"\",\"\",'1. Ordersheet'!I540)","v":""},{"$f":"IF('1. Ordersheet'!J540=\"\",\"\",'1. Ordersheet'!J540)","v":""},{"$f":"IF('1. Ordersheet'!K540=\"\",\"\",'1. Ordersheet'!K540)","v":""},{"$f":"IF('1. Ordersheet'!M540=\"\",\"\",'1. Ordersheet'!M540)","v":""},null,null,{"$f":"'1. Ordersheet'!AR540","v":0},{"$f":"IF('1. Ordersheet'!AE540=\"\",\"\",'1. Ordersheet'!AE540)","v":""}]
[{"$f":"IF('1. Ordersheet'!B541=\"\",\"\",'1. Ordersheet'!B541)","v":""},{"$f":"IF('1. Ordersheet'!I541=\"\",\"\",'1. Ordersheet'!I541)","v":""},{"$f":"IF('1. Ordersheet'!J541=\"\",\"\",'1. Ordersheet'!J541)","v":""},{"$f":"IF('1. Ordersheet'!K541=\"\",\"\",'1. Ordersheet'!K541)","v":""},{"$f":"IF('1. Ordersheet'!M541=\"\",\"\",'1. Ordersheet'!M541)","v":""},null,null,{"$f":"'1. Ordersheet'!AR541","v":0},{"$f":"IF('1. Ordersheet'!AE541=\"\",\"\",'1. Ordersheet'!AE541)","v":""}]
[{"$f":"IF('1. Ordersheet'!B542=\"\",\"\",'1. Ordersheet'!B542)","v":""},{"$f":"IF('1. Ordersheet'!I542=\"\",\"\",'1. Ordersheet'!I542)","v":""},{"$f":"IF('1. Ordersheet'!J542=\"\",\"\",'1. Ordersheet'!J542)","v":""},{"$f":"IF('1. Ordersheet'!K542=\"\",\"\",'1. Ordersheet'!K542)","v":""},{"$f":"IF('1. Ordersheet'!M542=\"\",\"\",'1. Ordersheet'!M542)","v":""},null,null,{"$f":"'1. Ordersheet'!AR542","v":0},{"$f":"IF('1. Ordersheet'!AE542=\"\",\"\",'1. Ordersheet'!AE542)","v":""}]
[{"$f":"IF('1. Ordersheet'!B543=\"\",\"\",'1. Ordersheet'!B543)","v":""},{"$f":"IF('1. Ordersheet'!I543=\"\",\"\",'1. Ordersheet'!I543)","v":""},{"$f":"IF('1. Ordersheet'!J543=\"\",\"\",'1. Ordersheet'!J543)","v":""},{"$f":"IF('1. Ordersheet'!K543=\"\",\"\",'1. Ordersheet'!K543)","v":""},{"$f":"IF('1. Ordersheet'!M543=\"\",\"\",'1. Ordersheet'!M543)","v":""},null,null,{"$f":"'1. Ordersheet'!AR543","v":0},{"$f":"IF('1. Ordersheet'!AE543=\"\",\"\",'1. Ordersheet'!AE543)","v":""}]
[{"$f":"IF('1. Ordersheet'!B544=\"\",\"\",'1. Ordersheet'!B544)","v":""},{"$f":"IF('1. Ordersheet'!I544=\"\",\"\",'1. Ordersheet'!I544)","v":""},{"$f":"IF('1. Ordersheet'!J544=\"\",\"\",'1. Ordersheet'!J544)","v":""},{"$f":"IF('1. Ordersheet'!K544=\"\",\"\",'1. Ordersheet'!K544)","v":""},{"$f":"IF('1. Ordersheet'!M544=\"\",\"\",'1. Ordersheet'!M544)","v":""},null,null,{"$f":"'1. Ordersheet'!AR544","v":0},{"$f":"IF('1. Ordersheet'!AE544=\"\",\"\",'1. Ordersheet'!AE544)","v":""}]
[{"$f":"IF('1. Ordersheet'!B545=\"\",\"\",'1. Ordersheet'!B545)","v":""},{"$f":"IF('1. Ordersheet'!I545=\"\",\"\",'1. Ordersheet'!I545)","v":""},{"$f":"IF('1. Ordersheet'!J545=\"\",\"\",'1. Ordersheet'!J545)","v":""},{"$f":"IF('1. Ordersheet'!K545=\"\",\"\",'1. Ordersheet'!K545)","v":""},{"$f":"IF('1. Ordersheet'!M545=\"\",\"\",'1. Ordersheet'!M545)","v":""},null,null,{"$f":"'1. Ordersheet'!AR545","v":0},{"$f":"IF('1. Ordersheet'!AE545=\"\",\"\",'1. Ordersheet'!AE545)","v":""}]
[{"$f":"IF('1. Ordersheet'!B546=\"\",\"\",'1. Ordersheet'!B546)","v":""},{"$f":"IF('1. Ordersheet'!I546=\"\",\"\",'1. Ordersheet'!I546)","v":""},{"$f":"IF('1. Ordersheet'!J546=\"\",\"\",'1. Ordersheet'!J546)","v":""},{"$f":"IF('1. Ordersheet'!K546=\"\",\"\",'1. Ordersheet'!K546)","v":""},{"$f":"IF('1. Ordersheet'!M546=\"\",\"\",'1. Ordersheet'!M546)","v":""},null,null,{"$f":"'1. Ordersheet'!AR546","v":0},{"$f":"IF('1. Ordersheet'!AE546=\"\",\"\",'1. Ordersheet'!AE546)","v":""}]
[{"$f":"IF('1. Ordersheet'!B547=\"\",\"\",'1. Ordersheet'!B547)","v":""},{"$f":"IF('1. Ordersheet'!I547=\"\",\"\",'1. Ordersheet'!I547)","v":""},{"$f":"IF('1. Ordersheet'!J547=\"\",\"\",'1. Ordersheet'!J547)","v":""},{"$f":"IF('1. Ordersheet'!K547=\"\",\"\",'1. Ordersheet'!K547)","v":""},{"$f":"IF('1. Ordersheet'!M547=\"\",\"\",'1. Ordersheet'!M547)","v":""},null,null,{"$f":"'1. Ordersheet'!AR547","v":0},{"$f":"IF('1. Ordersheet'!AE547=\"\",\"\",'1. Ordersheet'!AE547)","v":""}]
[{"$f":"IF('1. Ordersheet'!B548=\"\",\"\",'1. Ordersheet'!B548)","v":""},{"$f":"IF('1. Ordersheet'!I548=\"\",\"\",'1. Ordersheet'!I548)","v":""},{"$f":"IF('1. Ordersheet'!J548=\"\",\"\",'1. Ordersheet'!J548)","v":""},{"$f":"IF('1. Ordersheet'!K548=\"\",\"\",'1. Ordersheet'!K548)","v":""},{"$f":"IF('1. Ordersheet'!M548=\"\",\"\",'1. Ordersheet'!M548)","v":""},null,null,{"$f":"'1. Ordersheet'!AR548","v":0},{"$f":"IF('1. Ordersheet'!AE548=\"\",\"\",'1. Ordersheet'!AE548)","v":""}]
[{"$f":"IF('1. Ordersheet'!B549=\"\",\"\",'1. Ordersheet'!B549)","v":""},{"$f":"IF('1. Ordersheet'!I549=\"\",\"\",'1. Ordersheet'!I549)","v":""},{"$f":"IF('1. Ordersheet'!J549=\"\",\"\",'1. Ordersheet'!J549)","v":""},{"$f":"IF('1. Ordersheet'!K549=\"\",\"\",'1. Ordersheet'!K549)","v":""},{"$f":"IF('1. Ordersheet'!M549=\"\",\"\",'1. Ordersheet'!M549)","v":""},null,null,{"$f":"'1. Ordersheet'!AR549","v":0},{"$f":"IF('1. Ordersheet'!AE549=\"\",\"\",'1. Ordersheet'!AE549)","v":""}]
[{"$f":"IF('1. Ordersheet'!B550=\"\",\"\",'1. Ordersheet'!B550)","v":""},{"$f":"IF('1. Ordersheet'!I550=\"\",\"\",'1. Ordersheet'!I550)","v":""},{"$f":"IF('1. Ordersheet'!J550=\"\",\"\",'1. Ordersheet'!J550)","v":""},{"$f":"IF('1. Ordersheet'!K550=\"\",\"\",'1. Ordersheet'!K550)","v":""},{"$f":"IF('1. Ordersheet'!M550=\"\",\"\",'1. Ordersheet'!M550)","v":""},null,null,{"$f":"'1. Ordersheet'!AR550","v":0},{"$f":"IF('1. Ordersheet'!AE550=\"\",\"\",'1. Ordersheet'!AE550)","v":""}]
[{"$f":"IF('1. Ordersheet'!B551=\"\",\"\",'1. Ordersheet'!B551)","v":""},{"$f":"IF('1. Ordersheet'!I551=\"\",\"\",'1. Ordersheet'!I551)","v":""},{"$f":"IF('1. Ordersheet'!J551=\"\",\"\",'1. Ordersheet'!J551)","v":""},{"$f":"IF('1. Ordersheet'!K551=\"\",\"\",'1. Ordersheet'!K551)","v":""},{"$f":"IF('1. Ordersheet'!M551=\"\",\"\",'1. Ordersheet'!M551)","v":""},null,null,{"$f":"'1. Ordersheet'!AR551","v":0},{"$f":"IF('1. Ordersheet'!AE551=\"\",\"\",'1. Ordersheet'!AE551)","v":""}]
[{"$f":"IF('1. Ordersheet'!B552=\"\",\"\",'1. Ordersheet'!B552)","v":""},{"$f":"IF('1. Ordersheet'!I552=\"\",\"\",'1. Ordersheet'!I552)","v":""},{"$f":"IF('1. Ordersheet'!J552=\"\",\"\",'1. Ordersheet'!J552)","v":""},{"$f":"IF('1. Ordersheet'!K552=\"\",\"\",'1. Ordersheet'!K552)","v":""},{"$f":"IF('1. Ordersheet'!M552=\"\",\"\",'1. Ordersheet'!M552)","v":""},null,null,{"$f":"'1. Ordersheet'!AR552","v":0},{"$f":"IF('1. Ordersheet'!AE552=\"\",\"\",'1. Ordersheet'!AE552)","v":""}]
[{"$f":"IF('1. Ordersheet'!B553=\"\",\"\",'1. Ordersheet'!B553)","v":""},{"$f":"IF('1. Ordersheet'!I553=\"\",\"\",'1. Ordersheet'!I553)","v":""},{"$f":"IF('1. Ordersheet'!J553=\"\",\"\",'1. Ordersheet'!J553)","v":""},{"$f":"IF('1. Ordersheet'!K553=\"\",\"\",'1. Ordersheet'!K553)","v":""},{"$f":"IF('1. Ordersheet'!M553=\"\",\"\",'1. Ordersheet'!M553)","v":""},null,null,{"$f":"'1. Ordersheet'!AR553","v":0},{"$f":"IF('1. Ordersheet'!AE553=\"\",\"\",'1. Ordersheet'!AE553)","v":""}]
[{"$f":"IF('1. Ordersheet'!B554=\"\",\"\",'1. Ordersheet'!B554)","v":""},{"$f":"IF('1. Ordersheet'!I554=\"\",\"\",'1. Ordersheet'!I554)","v":""},{"$f":"IF('1. Ordersheet'!J554=\"\",\"\",'1. Ordersheet'!J554)","v":""},{"$f":"IF('1. Ordersheet'!K554=\"\",\"\",'1. Ordersheet'!K554)","v":""},{"$f":"IF('1. Ordersheet'!M554=\"\",\"\",'1. Ordersheet'!M554)","v":""},null,null,{"$f":"'1. Ordersheet'!AR554","v":0},{"$f":"IF('1. Ordersheet'!AE554=\"\",\"\",'1. Ordersheet'!AE554)","v":""}]
[{"$f":"IF('1. Ordersheet'!B555=\"\",\"\",'1. Ordersheet'!B555)","v":""},{"$f":"IF('1. Ordersheet'!I555=\"\",\"\",'1. Ordersheet'!I555)","v":""},{"$f":"IF('1. Ordersheet'!J555=\"\",\"\",'1. Ordersheet'!J555)","v":""},{"$f":"IF('1. Ordersheet'!K555=\"\",\"\",'1. Ordersheet'!K555)","v":""},{"$f":"IF('1. Ordersheet'!M555=\"\",\"\",'1. Ordersheet'!M555)","v":""},null,null,{"$f":"'1. Ordersheet'!AR555","v":0},{"$f":"IF('1. Ordersheet'!AE555=\"\",\"\",'1. Ordersheet'!AE555)","v":""}]
[{"$f":"IF('1. Ordersheet'!B556=\"\",\"\",'1. Ordersheet'!B556)","v":""},{"$f":"IF('1. Ordersheet'!I556=\"\",\"\",'1. Ordersheet'!I556)","v":""},{"$f":"IF('1. Ordersheet'!J556=\"\",\"\",'1. Ordersheet'!J556)","v":""},{"$f":"IF('1. Ordersheet'!K556=\"\",\"\",'1. Ordersheet'!K556)","v":""},{"$f":"IF('1. Ordersheet'!M556=\"\",\"\",'1. Ordersheet'!M556)","v":""},null,null,{"$f":"'1. Ordersheet'!AR556","v":0},{"$f":"IF('1. Ordersheet'!AE556=\"\",\"\",'1. Ordersheet'!AE556)","v":""}]
[{"$f":"IF('1. Ordersheet'!B557=\"\",\"\",'1. Ordersheet'!B557)","v":""},{"$f":"IF('1. Ordersheet'!I557=\"\",\"\",'1. Ordersheet'!I557)","v":""},{"$f":"IF('1. Ordersheet'!J557=\"\",\"\",'1. Ordersheet'!J557)","v":""},{"$f":"IF('1. Ordersheet'!K557=\"\",\"\",'1. Ordersheet'!K557)","v":""},{"$f":"IF('1. Ordersheet'!M557=\"\",\"\",'1. Ordersheet'!M557)","v":""},null,null,{"$f":"'1. Ordersheet'!AR557","v":0},{"$f":"IF('1. Ordersheet'!AE557=\"\",\"\",'1. Ordersheet'!AE557)","v":""}]
[{"$f":"IF('1. Ordersheet'!B558=\"\",\"\",'1. Ordersheet'!B558)","v":""},{"$f":"IF('1. Ordersheet'!I558=\"\",\"\",'1. Ordersheet'!I558)","v":""},{"$f":"IF('1. Ordersheet'!J558=\"\",\"\",'1. Ordersheet'!J558)","v":""},{"$f":"IF('1. Ordersheet'!K558=\"\",\"\",'1. Ordersheet'!K558)","v":""},{"$f":"IF('1. Ordersheet'!M558=\"\",\"\",'1. Ordersheet'!M558)","v":""},null,null,{"$f":"'1. Ordersheet'!AR558","v":0},{"$f":"IF('1. Ordersheet'!AE558=\"\",\"\",'1. Ordersheet'!AE558)","v":""}]
[{"$f":"IF('1. Ordersheet'!B559=\"\",\"\",'1. Ordersheet'!B559)","v":""},{"$f":"IF('1. Ordersheet'!I559=\"\",\"\",'1. Ordersheet'!I559)","v":""},{"$f":"IF('1. Ordersheet'!J559=\"\",\"\",'1. Ordersheet'!J559)","v":""},{"$f":"IF('1. Ordersheet'!K559=\"\",\"\",'1. Ordersheet'!K559)","v":""},{"$f":"IF('1. Ordersheet'!M559=\"\",\"\",'1. Ordersheet'!M559)","v":""},null,null,{"$f":"'1. Ordersheet'!AR559","v":0},{"$f":"IF('1. Ordersheet'!AE559=\"\",\"\",'1. Ordersheet'!AE559)","v":""}]
[{"$f":"IF('1. Ordersheet'!B560=\"\",\"\",'1. Ordersheet'!B560)","v":""},{"$f":"IF('1. Ordersheet'!I560=\"\",\"\",'1. Ordersheet'!I560)","v":""},{"$f":"IF('1. Ordersheet'!J560=\"\",\"\",'1. Ordersheet'!J560)","v":""},{"$f":"IF('1. Ordersheet'!K560=\"\",\"\",'1. Ordersheet'!K560)","v":""},{"$f":"IF('1. Ordersheet'!M560=\"\",\"\",'1. Ordersheet'!M560)","v":""},null,null,{"$f":"'1. Ordersheet'!AR560","v":0},{"$f":"IF('1. Ordersheet'!AE560=\"\",\"\",'1. Ordersheet'!AE560)","v":""}]
[{"$f":"IF('1. Ordersheet'!B561=\"\",\"\",'1. Ordersheet'!B561)","v":""},{"$f":"IF('1. Ordersheet'!I561=\"\",\"\",'1. Ordersheet'!I561)","v":""},{"$f":"IF('1. Ordersheet'!J561=\"\",\"\",'1. Ordersheet'!J561)","v":""},{"$f":"IF('1. Ordersheet'!K561=\"\",\"\",'1. Ordersheet'!K561)","v":""},{"$f":"IF('1. Ordersheet'!M561=\"\",\"\",'1. Ordersheet'!M561)","v":""},null,null,{"$f":"'1. Ordersheet'!AR561","v":0},{"$f":"IF('1. Ordersheet'!AE561=\"\",\"\",'1. Ordersheet'!AE561)","v":""}]
[{"$f":"IF('1. Ordersheet'!B562=\"\",\"\",'1. Ordersheet'!B562)","v":""},{"$f":"IF('1. Ordersheet'!I562=\"\",\"\",'1. Ordersheet'!I562)","v":""},{"$f":"IF('1. Ordersheet'!J562=\"\",\"\",'1. Ordersheet'!J562)","v":""},{"$f":"IF('1. Ordersheet'!K562=\"\",\"\",'1. Ordersheet'!K562)","v":""},{"$f":"IF('1. Ordersheet'!M562=\"\",\"\",'1. Ordersheet'!M562)","v":""},null,null,{"$f":"'1. Ordersheet'!AR562","v":0},{"$f":"IF('1. Ordersheet'!AE562=\"\",\"\",'1. Ordersheet'!AE562)","v":""}]
[{"$f":"IF('1. Ordersheet'!B563=\"\",\"\",'1. Ordersheet'!B563)","v":""},{"$f":"IF('1. Ordersheet'!I563=\"\",\"\",'1. Ordersheet'!I563)","v":""},{"$f":"IF('1. Ordersheet'!J563=\"\",\"\",'1. Ordersheet'!J563)","v":""},{"$f":"IF('1. Ordersheet'!K563=\"\",\"\",'1. Ordersheet'!K563)","v":""},{"$f":"IF('1. Ordersheet'!M563=\"\",\"\",'1. Ordersheet'!M563)","v":""},null,null,{"$f":"'1. Ordersheet'!AR563","v":0},{"$f":"IF('1. Ordersheet'!AE563=\"\",\"\",'1. Ordersheet'!AE563)","v":""}]
[{"$f":"IF('1. Ordersheet'!B564=\"\",\"\",'1. Ordersheet'!B564)","v":""},{"$f":"IF('1. Ordersheet'!I564=\"\",\"\",'1. Ordersheet'!I564)","v":""},{"$f":"IF('1. Ordersheet'!J564=\"\",\"\",'1. Ordersheet'!J564)","v":""},{"$f":"IF('1. Ordersheet'!K564=\"\",\"\",'1. Ordersheet'!K564)","v":""},{"$f":"IF('1. Ordersheet'!M564=\"\",\"\",'1. Ordersheet'!M564)","v":""},null,null,{"$f":"'1. Ordersheet'!AR564","v":0},{"$f":"IF('1. Ordersheet'!AE564=\"\",\"\",'1. Ordersheet'!AE564)","v":""}]
[{"$f":"IF('1. Ordersheet'!B565=\"\",\"\",'1. Ordersheet'!B565)","v":""},{"$f":"IF('1. Ordersheet'!I565=\"\",\"\",'1. Ordersheet'!I565)","v":""},{"$f":"IF('1. Ordersheet'!J565=\"\",\"\",'1. Ordersheet'!J565)","v":""},{"$f":"IF('1. Ordersheet'!K565=\"\",\"\",'1. Ordersheet'!K565)","v":""},{"$f":"IF('1. Ordersheet'!M565=\"\",\"\",'1. Ordersheet'!M565)","v":""},null,null,{"$f":"'1. Ordersheet'!AR565","v":0},{"$f":"IF('1. Ordersheet'!AE565=\"\",\"\",'1. Ordersheet'!AE565)","v":""}]
[{"$f":"IF('1. Ordersheet'!B566=\"\",\"\",'1. Ordersheet'!B566)","v":""},{"$f":"IF('1. Ordersheet'!I566=\"\",\"\",'1. Ordersheet'!I566)","v":""},{"$f":"IF('1. Ordersheet'!J566=\"\",\"\",'1. Ordersheet'!J566)","v":""},{"$f":"IF('1. Ordersheet'!K566=\"\",\"\",'1. Ordersheet'!K566)","v":""},{"$f":"IF('1. Ordersheet'!M566=\"\",\"\",'1. Ordersheet'!M566)","v":""},null,null,{"$f":"'1. Ordersheet'!AR566","v":0},{"$f":"IF('1. Ordersheet'!AE566=\"\",\"\",'1. Ordersheet'!AE566)","v":""}]
[{"$f":"IF('1. Ordersheet'!B567=\"\",\"\",'1. Ordersheet'!B567)","v":""},{"$f":"IF('1. Ordersheet'!I567=\"\",\"\",'1. Ordersheet'!I567)","v":""},{"$f":"IF('1. Ordersheet'!J567=\"\",\"\",'1. Ordersheet'!J567)","v":""},{"$f":"IF('1. Ordersheet'!K567=\"\",\"\",'1. Ordersheet'!K567)","v":""},{"$f":"IF('1. Ordersheet'!M567=\"\",\"\",'1. Ordersheet'!M567)","v":""},null,null,{"$f":"'1. Ordersheet'!AR567","v":0},{"$f":"IF('1. Ordersheet'!AE567=\"\",\"\",'1. Ordersheet'!AE567)","v":""}]
[{"$f":"IF('1. Ordersheet'!B568=\"\",\"\",'1. Ordersheet'!B568)","v":""},{"$f":"IF('1. Ordersheet'!I568=\"\",\"\",'1. Ordersheet'!I568)","v":""},{"$f":"IF('1. Ordersheet'!J568=\"\",\"\",'1. Ordersheet'!J568)","v":""},{"$f":"IF('1. Ordersheet'!K568=\"\",\"\",'1. Ordersheet'!K568)","v":""},{"$f":"IF('1. Ordersheet'!M568=\"\",\"\",'1. Ordersheet'!M568)","v":""},null,null,{"$f":"'1. Ordersheet'!AR568","v":0},{"$f":"IF('1. Ordersheet'!AE568=\"\",\"\",'1. Ordersheet'!AE568)","v":""}]
[{"$f":"IF('1. Ordersheet'!B569=\"\",\"\",'1. Ordersheet'!B569)","v":""},{"$f":"IF('1. Ordersheet'!I569=\"\",\"\",'1. Ordersheet'!I569)","v":""},{"$f":"IF('1. Ordersheet'!J569=\"\",\"\",'1. Ordersheet'!J569)","v":""},{"$f":"IF('1. Ordersheet'!K569=\"\",\"\",'1. Ordersheet'!K569)","v":""},{"$f":"IF('1. Ordersheet'!M569=\"\",\"\",'1. Ordersheet'!M569)","v":""},null,null,{"$f":"'1. Ordersheet'!AR569","v":0},{"$f":"IF('1. Ordersheet'!AE569=\"\",\"\",'1. Ordersheet'!AE569)","v":""}]
[{"$f":"IF('1. Ordersheet'!B570=\"\",\"\",'1. Ordersheet'!B570)","v":""},{"$f":"IF('1. Ordersheet'!I570=\"\",\"\",'1. Ordersheet'!I570)","v":""},{"$f":"IF('1. Ordersheet'!J570=\"\",\"\",'1. Ordersheet'!J570)","v":""},{"$f":"IF('1. Ordersheet'!K570=\"\",\"\",'1. Ordersheet'!K570)","v":""},{"$f":"IF('1. Ordersheet'!M570=\"\",\"\",'1. Ordersheet'!M570)","v":""},null,null,{"$f":"'1. Ordersheet'!AR570","v":0},{"$f":"IF('1. Ordersheet'!AE570=\"\",\"\",'1. Ordersheet'!AE570)","v":""}]
[{"$f":"IF('1. Ordersheet'!B571=\"\",\"\",'1. Ordersheet'!B571)","v":""},{"$f":"IF('1. Ordersheet'!I571=\"\",\"\",'1. Ordersheet'!I571)","v":""},{"$f":"IF('1. Ordersheet'!J571=\"\",\"\",'1. Ordersheet'!J571)","v":""},{"$f":"IF('1. Ordersheet'!K571=\"\",\"\",'1. Ordersheet'!K571)","v":""},{"$f":"IF('1. Ordersheet'!M571=\"\",\"\",'1. Ordersheet'!M571)","v":""},null,null,{"$f":"'1. Ordersheet'!AR571","v":0},{"$f":"IF('1. Ordersheet'!AE571=\"\",\"\",'1. Ordersheet'!AE571)","v":""}]
[{"$f":"IF('1. Ordersheet'!B572=\"\",\"\",'1. Ordersheet'!B572)","v":""},{"$f":"IF('1. Ordersheet'!I572=\"\",\"\",'1. Ordersheet'!I572)","v":""},{"$f":"IF('1. Ordersheet'!J572=\"\",\"\",'1. Ordersheet'!J572)","v":""},{"$f":"IF('1. Ordersheet'!K572=\"\",\"\",'1. Ordersheet'!K572)","v":""},{"$f":"IF('1. Ordersheet'!M572=\"\",\"\",'1. Ordersheet'!M572)","v":""},null,null,{"$f":"'1. Ordersheet'!AR572","v":0},{"$f":"IF('1. Ordersheet'!AE572=\"\",\"\",'1. Ordersheet'!AE572)","v":""}]
[{"$f":"IF('1. Ordersheet'!B573=\"\",\"\",'1. Ordersheet'!B573)","v":""},{"$f":"IF('1. Ordersheet'!I573=\"\",\"\",'1. Ordersheet'!I573)","v":""},{"$f":"IF('1. Ordersheet'!J573=\"\",\"\",'1. Ordersheet'!J573)","v":""},{"$f":"IF('1. Ordersheet'!K573=\"\",\"\",'1. Ordersheet'!K573)","v":""},{"$f":"IF('1. Ordersheet'!M573=\"\",\"\",'1. Ordersheet'!M573)","v":""},null,null,{"$f":"'1. Ordersheet'!AR573","v":0},{"$f":"IF('1. Ordersheet'!AE573=\"\",\"\",'1. Ordersheet'!AE573)","v":""}]
[{"$f":"IF('1. Ordersheet'!B574=\"\",\"\",'1. Ordersheet'!B574)","v":""},{"$f":"IF('1. Ordersheet'!I574=\"\",\"\",'1. Ordersheet'!I574)","v":""},{"$f":"IF('1. Ordersheet'!J574=\"\",\"\",'1. Ordersheet'!J574)","v":""},{"$f":"IF('1. Ordersheet'!K574=\"\",\"\",'1. Ordersheet'!K574)","v":""},{"$f":"IF('1. Ordersheet'!M574=\"\",\"\",'1. Ordersheet'!M574)","v":""},null,null,{"$f":"'1. Ordersheet'!AR574","v":0},{"$f":"IF('1. Ordersheet'!AE574=\"\",\"\",'1. Ordersheet'!AE574)","v":""}]
[{"$f":"IF('1. Ordersheet'!B575=\"\",\"\",'1. Ordersheet'!B575)","v":""},{"$f":"IF('1. Ordersheet'!I575=\"\",\"\",'1. Ordersheet'!I575)","v":""},{"$f":"IF('1. Ordersheet'!J575=\"\",\"\",'1. Ordersheet'!J575)","v":""},{"$f":"IF('1. Ordersheet'!K575=\"\",\"\",'1. Ordersheet'!K575)","v":""},{"$f":"IF('1. Ordersheet'!M575=\"\",\"\",'1. Ordersheet'!M575)","v":""},null,null,{"$f":"'1. Ordersheet'!AR575","v":0},{"$f":"IF('1. Ordersheet'!AE575=\"\",\"\",'1. Ordersheet'!AE575)","v":""}]
[{"$f":"IF('1. Ordersheet'!B576=\"\",\"\",'1. Ordersheet'!B576)","v":""},{"$f":"IF('1. Ordersheet'!I576=\"\",\"\",'1. Ordersheet'!I576)","v":""},{"$f":"IF('1. Ordersheet'!J576=\"\",\"\",'1. Ordersheet'!J576)","v":""},{"$f":"IF('1. Ordersheet'!K576=\"\",\"\",'1. Ordersheet'!K576)","v":""},{"$f":"IF('1. Ordersheet'!M576=\"\",\"\",'1. Ordersheet'!M576)","v":""},null,null,{"$f":"'1. Ordersheet'!AR576","v":0},{"$f":"IF('1. Ordersheet'!AE576=\"\",\"\",'1. Ordersheet'!AE576)","v":""}]
[{"$f":"IF('1. Ordersheet'!B577=\"\",\"\",'1. Ordersheet'!B577)","v":""},{"$f":"IF('1. Ordersheet'!I577=\"\",\"\",'1. Ordersheet'!I577)","v":""},{"$f":"IF('1. Ordersheet'!J577=\"\",\"\",'1. Ordersheet'!J577)","v":""},{"$f":"IF('1. Ordersheet'!K577=\"\",\"\",'1. Ordersheet'!K577)","v":""},{"$f":"IF('1. Ordersheet'!M577=\"\",\"\",'1. Ordersheet'!M577)","v":""},null,null,{"$f":"'1. Ordersheet'!AR577","v":0},{"$f":"IF('1. Ordersheet'!AE577=\"\",\"\",'1. Ordersheet'!AE577)","v":""}]
[{"$f":"IF('1. Ordersheet'!B578=\"\",\"\",'1. Ordersheet'!B578)","v":""},{"$f":"IF('1. Ordersheet'!I578=\"\",\"\",'1. Ordersheet'!I578)","v":""},{"$f":"IF('1. Ordersheet'!J578=\"\",\"\",'1. Ordersheet'!J578)","v":""},{"$f":"IF('1. Ordersheet'!K578=\"\",\"\",'1. Ordersheet'!K578)","v":""},{"$f":"IF('1. Ordersheet'!M578=\"\",\"\",'1. Ordersheet'!M578)","v":""},null,null,{"$f":"'1. Ordersheet'!AR578","v":0},{"$f":"IF('1. Ordersheet'!AE578=\"\",\"\",'1. Ordersheet'!AE578)","v":""}]
[{"$f":"IF('1. Ordersheet'!B579=\"\",\"\",'1. Ordersheet'!B579)","v":""},{"$f":"IF('1. Ordersheet'!I579=\"\",\"\",'1. Ordersheet'!I579)","v":""},{"$f":"IF('1. Ordersheet'!J579=\"\",\"\",'1. Ordersheet'!J579)","v":""},{"$f":"IF('1. Ordersheet'!K579=\"\",\"\",'1. Ordersheet'!K579)","v":""},{"$f":"IF('1. Ordersheet'!M579=\"\",\"\",'1. Ordersheet'!M579)","v":""},null,null,{"$f":"'1. Ordersheet'!AR579","v":0},{"$f":"IF('1. Ordersheet'!AE579=\"\",\"\",'1. Ordersheet'!AE579)","v":""}]
[{"$f":"IF('1. Ordersheet'!B580=\"\",\"\",'1. Ordersheet'!B580)","v":""},{"$f":"IF('1. Ordersheet'!I580=\"\",\"\",'1. Ordersheet'!I580)","v":""},{"$f":"IF('1. Ordersheet'!J580=\"\",\"\",'1. Ordersheet'!J580)","v":""},{"$f":"IF('1. Ordersheet'!K580=\"\",\"\",'1. Ordersheet'!K580)","v":""},{"$f":"IF('1. Ordersheet'!M580=\"\",\"\",'1. Ordersheet'!M580)","v":""},null,null,{"$f":"'1. Ordersheet'!AR580","v":0},{"$f":"IF('1. Ordersheet'!AE580=\"\",\"\",'1. Ordersheet'!AE580)","v":""}]
[{"$f":"IF('1. Ordersheet'!B581=\"\",\"\",'1. Ordersheet'!B581)","v":""},{"$f":"IF('1. Ordersheet'!I581=\"\",\"\",'1. Ordersheet'!I581)","v":""},{"$f":"IF('1. Ordersheet'!J581=\"\",\"\",'1. Ordersheet'!J581)","v":""},{"$f":"IF('1. Ordersheet'!K581=\"\",\"\",'1. Ordersheet'!K581)","v":""},{"$f":"IF('1. Ordersheet'!M581=\"\",\"\",'1. Ordersheet'!M581)","v":""},null,null,{"$f":"'1. Ordersheet'!AR581","v":0},{"$f":"IF('1. Ordersheet'!AE581=\"\",\"\",'1. Ordersheet'!AE581)","v":""}]
[{"$f":"IF('1. Ordersheet'!B582=\"\",\"\",'1. Ordersheet'!B582)","v":""},{"$f":"IF('1. Ordersheet'!I582=\"\",\"\",'1. Ordersheet'!I582)","v":""},{"$f":"IF('1. Ordersheet'!J582=\"\",\"\",'1. Ordersheet'!J582)","v":""},{"$f":"IF('1. Ordersheet'!K582=\"\",\"\",'1. Ordersheet'!K582)","v":""},{"$f":"IF('1. Ordersheet'!M582=\"\",\"\",'1. Ordersheet'!M582)","v":""},null,null,{"$f":"'1. Ordersheet'!AR582","v":0},{"$f":"IF('1. Ordersheet'!AE582=\"\",\"\",'1. Ordersheet'!AE582)","v":""}]
[{"$f":"IF('1. Ordersheet'!B583=\"\",\"\",'1. Ordersheet'!B583)","v":""},{"$f":"IF('1. Ordersheet'!I583=\"\",\"\",'1. Ordersheet'!I583)","v":""},{"$f":"IF('1. Ordersheet'!J583=\"\",\"\",'1. Ordersheet'!J583)","v":""},{"$f":"IF('1. Ordersheet'!K583=\"\",\"\",'1. Ordersheet'!K583)","v":""},{"$f":"IF('1. Ordersheet'!M583=\"\",\"\",'1. Ordersheet'!M583)","v":""},null,null,{"$f":"'1. Ordersheet'!AR583","v":0},{"$f":"IF('1. Ordersheet'!AE583=\"\",\"\",'1. Ordersheet'!AE583)","v":""}]
[{"$f":"IF('1. Ordersheet'!B584=\"\",\"\",'1. Ordersheet'!B584)","v":""},{"$f":"IF('1. Ordersheet'!I584=\"\",\"\",'1. Ordersheet'!I584)","v":""},{"$f":"IF('1. Ordersheet'!J584=\"\",\"\",'1. Ordersheet'!J584)","v":""},{"$f":"IF('1. Ordersheet'!K584=\"\",\"\",'1. Ordersheet'!K584)","v":""},{"$f":"IF('1. Ordersheet'!M584=\"\",\"\",'1. Ordersheet'!M584)","v":""},null,null,{"$f":"'1. Ordersheet'!AR584","v":0},{"$f":"IF('1. Ordersheet'!AE584=\"\",\"\",'1. Ordersheet'!AE584)","v":""}]
[{"$f":"IF('1. Ordersheet'!B585=\"\",\"\",'1. Ordersheet'!B585)","v":""},{"$f":"IF('1. Ordersheet'!I585=\"\",\"\",'1. Ordersheet'!I585)","v":""},{"$f":"IF('1. Ordersheet'!J585=\"\",\"\",'1. Ordersheet'!J585)","v":""},{"$f":"IF('1. Ordersheet'!K585=\"\",\"\",'1. Ordersheet'!K585)","v":""},{"$f":"IF('1. Ordersheet'!M585=\"\",\"\",'1. Ordersheet'!M585)","v":""},null,null,{"$f":"'1. Ordersheet'!AR585","v":0},{"$f":"IF('1. Ordersheet'!AE585=\"\",\"\",'1. Ordersheet'!AE585)","v":""}]
[{"$f":"IF('1. Ordersheet'!B586=\"\",\"\",'1. Ordersheet'!B586)","v":""},{"$f":"IF('1. Ordersheet'!I586=\"\",\"\",'1. Ordersheet'!I586)","v":""},{"$f":"IF('1. Ordersheet'!J586=\"\",\"\",'1. Ordersheet'!J586)","v":""},{"$f":"IF('1. Ordersheet'!K586=\"\",\"\",'1. Ordersheet'!K586)","v":""},{"$f":"IF('1. Ordersheet'!M586=\"\",\"\",'1. Ordersheet'!M586)","v":""},null,null,{"$f":"'1. Ordersheet'!AR586","v":0},{"$f":"IF('1. Ordersheet'!AE586=\"\",\"\",'1. Ordersheet'!AE586)","v":""}]
[{"$f":"IF('1. Ordersheet'!B587=\"\",\"\",'1. Ordersheet'!B587)","v":""},{"$f":"IF('1. Ordersheet'!I587=\"\",\"\",'1. Ordersheet'!I587)","v":""},{"$f":"IF('1. Ordersheet'!J587=\"\",\"\",'1. Ordersheet'!J587)","v":""},{"$f":"IF('1. Ordersheet'!K587=\"\",\"\",'1. Ordersheet'!K587)","v":""},{"$f":"IF('1. Ordersheet'!M587=\"\",\"\",'1. Ordersheet'!M587)","v":""},null,null,{"$f":"'1. Ordersheet'!AR587","v":0},{"$f":"IF('1. Ordersheet'!AE587=\"\",\"\",'1. Ordersheet'!AE587)","v":""}]
[{"$f":"IF('1. Ordersheet'!B588=\"\",\"\",'1. Ordersheet'!B588)","v":""},{"$f":"IF('1. Ordersheet'!I588=\"\",\"\",'1. Ordersheet'!I588)","v":""},{"$f":"IF('1. Ordersheet'!J588=\"\",\"\",'1. Ordersheet'!J588)","v":""},{"$f":"IF('1. Ordersheet'!K588=\"\",\"\",'1. Ordersheet'!K588)","v":""},{"$f":"IF('1. Ordersheet'!M588=\"\",\"\",'1. Ordersheet'!M588)","v":""},null,null,{"$f":"'1. Ordersheet'!AR588","v":0},{"$f":"IF('1. Ordersheet'!AE588=\"\",\"\",'1. Ordersheet'!AE588)","v":""}]
[{"$f":"IF('1. Ordersheet'!B589=\"\",\"\",'1. Ordersheet'!B589)","v":""},{"$f":"IF('1. Ordersheet'!I589=\"\",\"\",'1. Ordersheet'!I589)","v":""},{"$f":"IF('1. Ordersheet'!J589=\"\",\"\",'1. Ordersheet'!J589)","v":""},{"$f":"IF('1. Ordersheet'!K589=\"\",\"\",'1. Ordersheet'!K589)","v":""},{"$f":"IF('1. Ordersheet'!M589=\"\",\"\",'1. Ordersheet'!M589)","v":""},null,null,{"$f":"'1. Ordersheet'!AR589","v":0},{"$f":"IF('1. Ordersheet'!AE589=\"\",\"\",'1. Ordersheet'!AE589)","v":""}]
[{"$f":"IF('1. Ordersheet'!B590=\"\",\"\",'1. Ordersheet'!B590)","v":""},{"$f":"IF('1. Ordersheet'!I590=\"\",\"\",'1. Ordersheet'!I590)","v":""},{"$f":"IF('1. Ordersheet'!J590=\"\",\"\",'1. Ordersheet'!J590)","v":""},{"$f":"IF('1. Ordersheet'!K590=\"\",\"\",'1. Ordersheet'!K590)","v":""},{"$f":"IF('1. Ordersheet'!M590=\"\",\"\",'1. Ordersheet'!M590)","v":""},null,null,{"$f":"'1. Ordersheet'!AR590","v":0},{"$f":"IF('1. Ordersheet'!AE590=\"\",\"\",'1. Ordersheet'!AE590)","v":""}]
[{"$f":"IF('1. Ordersheet'!B591=\"\",\"\",'1. Ordersheet'!B591)","v":""},{"$f":"IF('1. Ordersheet'!I591=\"\",\"\",'1. Ordersheet'!I591)","v":""},{"$f":"IF('1. Ordersheet'!J591=\"\",\"\",'1. Ordersheet'!J591)","v":""},{"$f":"IF('1. Ordersheet'!K591=\"\",\"\",'1. Ordersheet'!K591)","v":""},{"$f":"IF('1. Ordersheet'!M591=\"\",\"\",'1. Ordersheet'!M591)","v":""},null,null,{"$f":"'1. Ordersheet'!AR591","v":0},{"$f":"IF('1. Ordersheet'!AE591=\"\",\"\",'1. Ordersheet'!AE591)","v":""}]
[{"$f":"IF('1. Ordersheet'!B592=\"\",\"\",'1. Ordersheet'!B592)","v":""},{"$f":"IF('1. Ordersheet'!I592=\"\",\"\",'1. Ordersheet'!I592)","v":""},{"$f":"IF('1. Ordersheet'!J592=\"\",\"\",'1. Ordersheet'!J592)","v":""},{"$f":"IF('1. Ordersheet'!K592=\"\",\"\",'1. Ordersheet'!K592)","v":""},{"$f":"IF('1. Ordersheet'!M592=\"\",\"\",'1. Ordersheet'!M592)","v":""},null,null,{"$f":"'1. Ordersheet'!AR592","v":0},{"$f":"IF('1. Ordersheet'!AE592=\"\",\"\",'1. Ordersheet'!AE592)","v":""}]
[{"$f":"IF('1. Ordersheet'!B593=\"\",\"\",'1. Ordersheet'!B593)","v":""},{"$f":"IF('1. Ordersheet'!I593=\"\",\"\",'1. Ordersheet'!I593)","v":""},{"$f":"IF('1. Ordersheet'!J593=\"\",\"\",'1. Ordersheet'!J593)","v":""},{"$f":"IF('1. Ordersheet'!K593=\"\",\"\",'1. Ordersheet'!K593)","v":""},{"$f":"IF('1. Ordersheet'!M593=\"\",\"\",'1. Ordersheet'!M593)","v":""},null,null,{"$f":"'1. Ordersheet'!AR593","v":0},{"$f":"IF('1. Ordersheet'!AE593=\"\",\"\",'1. Ordersheet'!AE593)","v":""}]
[{"$f":"IF('1. Ordersheet'!B594=\"\",\"\",'1. Ordersheet'!B594)","v":""},{"$f":"IF('1. Ordersheet'!I594=\"\",\"\",'1. Ordersheet'!I594)","v":""},{"$f":"IF('1. Ordersheet'!J594=\"\",\"\",'1. Ordersheet'!J594)","v":""},{"$f":"IF('1. Ordersheet'!K594=\"\",\"\",'1. Ordersheet'!K594)","v":""},{"$f":"IF('1. Ordersheet'!M594=\"\",\"\",'1. Ordersheet'!M594)","v":""},null,null,{"$f":"'1. Ordersheet'!AR594","v":0},{"$f":"IF('1. Ordersheet'!AE594=\"\",\"\",'1. Ordersheet'!AE594)","v":""}]
[{"$f":"IF('1. Ordersheet'!B595=\"\",\"\",'1. Ordersheet'!B595)","v":""},{"$f":"IF('1. Ordersheet'!I595=\"\",\"\",'1. Ordersheet'!I595)","v":""},{"$f":"IF('1. Ordersheet'!J595=\"\",\"\",'1. Ordersheet'!J595)","v":""},{"$f":"IF('1. Ordersheet'!K595=\"\",\"\",'1. Ordersheet'!K595)","v":""},{"$f":"IF('1. Ordersheet'!M595=\"\",\"\",'1. Ordersheet'!M595)","v":""},null,null,{"$f":"'1. Ordersheet'!AR595","v":0},{"$f":"IF('1. Ordersheet'!AE595=\"\",\"\",'1. Ordersheet'!AE595)","v":""}]
[{"$f":"IF('1. Ordersheet'!B596=\"\",\"\",'1. Ordersheet'!B596)","v":""},{"$f":"IF('1. Ordersheet'!I596=\"\",\"\",'1. Ordersheet'!I596)","v":""},{"$f":"IF('1. Ordersheet'!J596=\"\",\"\",'1. Ordersheet'!J596)","v":""},{"$f":"IF('1. Ordersheet'!K596=\"\",\"\",'1. Ordersheet'!K596)","v":""},{"$f":"IF('1. Ordersheet'!M596=\"\",\"\",'1. Ordersheet'!M596)","v":""},null,null,{"$f":"'1. Ordersheet'!AR596","v":0},{"$f":"IF('1. Ordersheet'!AE596=\"\",\"\",'1. Ordersheet'!AE596)","v":""}]
[{"$f":"IF('1. Ordersheet'!B597=\"\",\"\",'1. Ordersheet'!B597)","v":""},{"$f":"IF('1. Ordersheet'!I597=\"\",\"\",'1. Ordersheet'!I597)","v":""},{"$f":"IF('1. Ordersheet'!J597=\"\",\"\",'1. Ordersheet'!J597)","v":""},{"$f":"IF('1. Ordersheet'!K597=\"\",\"\",'1. Ordersheet'!K597)","v":""},{"$f":"IF('1. Ordersheet'!M597=\"\",\"\",'1. Ordersheet'!M597)","v":""},null,null,{"$f":"'1. Ordersheet'!AR597","v":0},{"$f":"IF('1. Ordersheet'!AE597=\"\",\"\",'1. Ordersheet'!AE597)","v":""}]
[{"$f":"IF('1. Ordersheet'!B598=\"\",\"\",'1. Ordersheet'!B598)","v":""},{"$f":"IF('1. Ordersheet'!I598=\"\",\"\",'1. Ordersheet'!I598)","v":""},{"$f":"IF('1. Ordersheet'!J598=\"\",\"\",'1. Ordersheet'!J598)","v":""},{"$f":"IF('1. Ordersheet'!K598=\"\",\"\",'1. Ordersheet'!K598)","v":""},{"$f":"IF('1. Ordersheet'!M598=\"\",\"\",'1. Ordersheet'!M598)","v":""},null,null,{"$f":"'1. Ordersheet'!AR598","v":0},{"$f":"IF('1. Ordersheet'!AE598=\"\",\"\",'1. Ordersheet'!AE598)","v":""}]
[{"$f":"IF('1. Ordersheet'!B599=\"\",\"\",'1. Ordersheet'!B599)","v":""},{"$f":"IF('1. Ordersheet'!I599=\"\",\"\",'1. Ordersheet'!I599)","v":""},{"$f":"IF('1. Ordersheet'!J599=\"\",\"\",'1. Ordersheet'!J599)","v":""},{"$f":"IF('1. Ordersheet'!K599=\"\",\"\",'1. Ordersheet'!K599)","v":""},{"$f":"IF('1. Ordersheet'!M599=\"\",\"\",'1. Ordersheet'!M599)","v":""},null,null,{"$f":"'1. Ordersheet'!AR599","v":0},{"$f":"IF('1. Ordersheet'!AE599=\"\",\"\",'1. Ordersheet'!AE599)","v":""}]
[{"$f":"IF('1. Ordersheet'!B600=\"\",\"\",'1. Ordersheet'!B600)","v":""},{"$f":"IF('1. Ordersheet'!I600=\"\",\"\",'1. Ordersheet'!I600)","v":""},{"$f":"IF('1. Ordersheet'!J600=\"\",\"\",'1. Ordersheet'!J600)","v":""},{"$f":"IF('1. Ordersheet'!K600=\"\",\"\",'1. Ordersheet'!K600)","v":""},{"$f":"IF('1. Ordersheet'!M600=\"\",\"\",'1. Ordersheet'!M600)","v":""},null,null,{"$f":"'1. Ordersheet'!AR600","v":0},{"$f":"IF('1. Ordersheet'!AE600=\"\",\"\",'1. Ordersheet'!AE600)","v":""}]
[{"$f":"IF('1. Ordersheet'!B601=\"\",\"\",'1. Ordersheet'!B601)","v":""},{"$f":"IF('1. Ordersheet'!I601=\"\",\"\",'1. Ordersheet'!I601)","v":""},{"$f":"IF('1. Ordersheet'!J601=\"\",\"\",'1. Ordersheet'!J601)","v":""},{"$f":"IF('1. Ordersheet'!K601=\"\",\"\",'1. Ordersheet'!K601)","v":""},{"$f":"IF('1. Ordersheet'!M601=\"\",\"\",'1. Ordersheet'!M601)","v":""},null,null,{"$f":"'1. Ordersheet'!AR601","v":0},{"$f":"IF('1. Ordersheet'!AE601=\"\",\"\",'1. Ordersheet'!AE601)","v":""}]
[{"$f":"IF('1. Ordersheet'!B602=\"\",\"\",'1. Ordersheet'!B602)","v":""},{"$f":"IF('1. Ordersheet'!I602=\"\",\"\",'1. Ordersheet'!I602)","v":""},{"$f":"IF('1. Ordersheet'!J602=\"\",\"\",'1. Ordersheet'!J602)","v":""},{"$f":"IF('1. Ordersheet'!K602=\"\",\"\",'1. Ordersheet'!K602)","v":""},{"$f":"IF('1. Ordersheet'!M602=\"\",\"\",'1. Ordersheet'!M602)","v":""},null,null,{"$f":"'1. Ordersheet'!AR602","v":0},{"$f":"IF('1. Ordersheet'!AE602=\"\",\"\",'1. Ordersheet'!AE602)","v":""}]
[{"$f":"IF('1. Ordersheet'!B603=\"\",\"\",'1. Ordersheet'!B603)","v":""},{"$f":"IF('1. Ordersheet'!I603=\"\",\"\",'1. Ordersheet'!I603)","v":""},{"$f":"IF('1. Ordersheet'!J603=\"\",\"\",'1. Ordersheet'!J603)","v":""},{"$f":"IF('1. Ordersheet'!K603=\"\",\"\",'1. Ordersheet'!K603)","v":""},{"$f":"IF('1. Ordersheet'!M603=\"\",\"\",'1. Ordersheet'!M603)","v":""},null,null,{"$f":"'1. Ordersheet'!AR603","v":0},{"$f":"IF('1. Ordersheet'!AE603=\"\",\"\",'1. Ordersheet'!AE603)","v":""}]
[{"$f":"IF('1. Ordersheet'!B604=\"\",\"\",'1. Ordersheet'!B604)","v":""},{"$f":"IF('1. Ordersheet'!I604=\"\",\"\",'1. Ordersheet'!I604)","v":""},{"$f":"IF('1. Ordersheet'!J604=\"\",\"\",'1. Ordersheet'!J604)","v":""},{"$f":"IF('1. Ordersheet'!K604=\"\",\"\",'1. Ordersheet'!K604)","v":""},{"$f":"IF('1. Ordersheet'!M604=\"\",\"\",'1. Ordersheet'!M604)","v":""},null,null,{"$f":"'1. Ordersheet'!AR604","v":0},{"$f":"IF('1. Ordersheet'!AE604=\"\",\"\",'1. Ordersheet'!AE604)","v":""}]
[{"$f":"IF('1. Ordersheet'!B605=\"\",\"\",'1. Ordersheet'!B605)","v":""},{"$f":"IF('1. Ordersheet'!I605=\"\",\"\",'1. Ordersheet'!I605)","v":""},{"$f":"IF('1. Ordersheet'!J605=\"\",\"\",'1. Ordersheet'!J605)","v":""},{"$f":"IF('1. Ordersheet'!K605=\"\",\"\",'1. Ordersheet'!K605)","v":""},{"$f":"IF('1. Ordersheet'!M605=\"\",\"\",'1. Ordersheet'!M605)","v":""},null,null,{"$f":"'1. Ordersheet'!AR605","v":0},{"$f":"IF('1. Ordersheet'!AE605=\"\",\"\",'1. Ordersheet'!AE605)","v":""}]
[{"$f":"IF('1. Ordersheet'!B606=\"\",\"\",'1. Ordersheet'!B606)","v":""},{"$f":"IF('1. Ordersheet'!I606=\"\",\"\",'1. Ordersheet'!I606)","v":""},{"$f":"IF('1. Ordersheet'!J606=\"\",\"\",'1. Ordersheet'!J606)","v":""},{"$f":"IF('1. Ordersheet'!K606=\"\",\"\",'1. Ordersheet'!K606)","v":""},{"$f":"IF('1. Ordersheet'!M606=\"\",\"\",'1. Ordersheet'!M606)","v":""},null,null,{"$f":"'1. Ordersheet'!AR606","v":0},{"$f":"IF('1. Ordersheet'!AE606=\"\",\"\",'1. Ordersheet'!AE606)","v":""}]
[{"$f":"IF('1. Ordersheet'!B607=\"\",\"\",'1. Ordersheet'!B607)","v":""},{"$f":"IF('1. Ordersheet'!I607=\"\",\"\",'1. Ordersheet'!I607)","v":""},{"$f":"IF('1. Ordersheet'!J607=\"\",\"\",'1. Ordersheet'!J607)","v":""},{"$f":"IF('1. Ordersheet'!K607=\"\",\"\",'1. Ordersheet'!K607)","v":""},{"$f":"IF('1. Ordersheet'!M607=\"\",\"\",'1. Ordersheet'!M607)","v":""},null,null,{"$f":"'1. Ordersheet'!AR607","v":0},{"$f":"IF('1. Ordersheet'!AE607=\"\",\"\",'1. Ordersheet'!AE607)","v":""}]
[{"$f":"IF('1. Ordersheet'!B608=\"\",\"\",'1. Ordersheet'!B608)","v":""},{"$f":"IF('1. Ordersheet'!I608=\"\",\"\",'1. Ordersheet'!I608)","v":""},{"$f":"IF('1. Ordersheet'!J608=\"\",\"\",'1. Ordersheet'!J608)","v":""},{"$f":"IF('1. Ordersheet'!K608=\"\",\"\",'1. Ordersheet'!K608)","v":""},{"$f":"IF('1. Ordersheet'!M608=\"\",\"\",'1. Ordersheet'!M608)","v":""},null,null,{"$f":"'1. Ordersheet'!AR608","v":0},{"$f":"IF('1. Ordersheet'!AE608=\"\",\"\",'1. Ordersheet'!AE608)","v":""}]
[{"$f":"IF('1. Ordersheet'!B609=\"\",\"\",'1. Ordersheet'!B609)","v":""},{"$f":"IF('1. Ordersheet'!I609=\"\",\"\",'1. Ordersheet'!I609)","v":""},{"$f":"IF('1. Ordersheet'!J609=\"\",\"\",'1. Ordersheet'!J609)","v":""},{"$f":"IF('1. Ordersheet'!K609=\"\",\"\",'1. Ordersheet'!K609)","v":""},{"$f":"IF('1. Ordersheet'!M609=\"\",\"\",'1. Ordersheet'!M609)","v":""},null,null,{"$f":"'1. Ordersheet'!AR609","v":0},{"$f":"IF('1. Ordersheet'!AE609=\"\",\"\",'1. Ordersheet'!AE609)","v":""}]
[{"$f":"IF('1. Ordersheet'!B610=\"\",\"\",'1. Ordersheet'!B610)","v":""},{"$f":"IF('1. Ordersheet'!I610=\"\",\"\",'1. Ordersheet'!I610)","v":""},{"$f":"IF('1. Ordersheet'!J610=\"\",\"\",'1. Ordersheet'!J610)","v":""},{"$f":"IF('1. Ordersheet'!K610=\"\",\"\",'1. Ordersheet'!K610)","v":""},{"$f":"IF('1. Ordersheet'!M610=\"\",\"\",'1. Ordersheet'!M610)","v":""},null,null,{"$f":"'1. Ordersheet'!AR610","v":0},{"$f":"IF('1. Ordersheet'!AE610=\"\",\"\",'1. Ordersheet'!AE610)","v":""}]
[{"$f":"IF('1. Ordersheet'!B611=\"\",\"\",'1. Ordersheet'!B611)","v":""},{"$f":"IF('1. Ordersheet'!I611=\"\",\"\",'1. Ordersheet'!I611)","v":""},{"$f":"IF('1. Ordersheet'!J611=\"\",\"\",'1. Ordersheet'!J611)","v":""},{"$f":"IF('1. Ordersheet'!K611=\"\",\"\",'1. Ordersheet'!K611)","v":""},{"$f":"IF('1. Ordersheet'!M611=\"\",\"\",'1. Ordersheet'!M611)","v":""},null,null,{"$f":"'1. Ordersheet'!AR611","v":0},{"$f":"IF('1. Ordersheet'!AE611=\"\",\"\",'1. Ordersheet'!AE611)","v":""}]
[{"$f":"IF('1. Ordersheet'!B612=\"\",\"\",'1. Ordersheet'!B612)","v":""},{"$f":"IF('1. Ordersheet'!I612=\"\",\"\",'1. Ordersheet'!I612)","v":""},{"$f":"IF('1. Ordersheet'!J612=\"\",\"\",'1. Ordersheet'!J612)","v":""},{"$f":"IF('1. Ordersheet'!K612=\"\",\"\",'1. Ordersheet'!K612)","v":""},{"$f":"IF('1. Ordersheet'!M612=\"\",\"\",'1. Ordersheet'!M612)","v":""},null,null,{"$f":"'1. Ordersheet'!AR612","v":0},{"$f":"IF('1. Ordersheet'!AE612=\"\",\"\",'1. Ordersheet'!AE612)","v":""}]
[{"$f":"IF('1. Ordersheet'!B613=\"\",\"\",'1. Ordersheet'!B613)","v":""},{"$f":"IF('1. Ordersheet'!I613=\"\",\"\",'1. Ordersheet'!I613)","v":""},{"$f":"IF('1. Ordersheet'!J613=\"\",\"\",'1. Ordersheet'!J613)","v":""},{"$f":"IF('1. Ordersheet'!K613=\"\",\"\",'1. Ordersheet'!K613)","v":""},{"$f":"IF('1. Ordersheet'!M613=\"\",\"\",'1. Ordersheet'!M613)","v":""},null,null,{"$f":"'1. Ordersheet'!AR613","v":0},{"$f":"IF('1. Ordersheet'!AE613=\"\",\"\",'1. Ordersheet'!AE613)","v":""}]
[{"$f":"IF('1. Ordersheet'!B614=\"\",\"\",'1. Ordersheet'!B614)","v":""},{"$f":"IF('1. Ordersheet'!I614=\"\",\"\",'1. Ordersheet'!I614)","v":""},{"$f":"IF('1. Ordersheet'!J614=\"\",\"\",'1. Ordersheet'!J614)","v":""},{"$f":"IF('1. Ordersheet'!K614=\"\",\"\",'1. Ordersheet'!K614)","v":""},{"$f":"IF('1. Ordersheet'!M614=\"\",\"\",'1. Ordersheet'!M614)","v":""},null,null,{"$f":"'1. Ordersheet'!AR614","v":0},{"$f":"IF('1. Ordersheet'!AE614=\"\",\"\",'1. Ordersheet'!AE614)","v":""}]
[{"$f":"IF('1. Ordersheet'!B615=\"\",\"\",'1. Ordersheet'!B615)","v":""},{"$f":"IF('1. Ordersheet'!I615=\"\",\"\",'1. Ordersheet'!I615)","v":""},{"$f":"IF('1. Ordersheet'!J615=\"\",\"\",'1. Ordersheet'!J615)","v":""},{"$f":"IF('1. Ordersheet'!K615=\"\",\"\",'1. Ordersheet'!K615)","v":""},{"$f":"IF('1. Ordersheet'!M615=\"\",\"\",'1. Ordersheet'!M615)","v":""},null,null,{"$f":"'1. Ordersheet'!AR615","v":0},{"$f":"IF('1. Ordersheet'!AE615=\"\",\"\",'1. Ordersheet'!AE615)","v":""}]
[{"$f":"IF('1. Ordersheet'!B616=\"\",\"\",'1. Ordersheet'!B616)","v":""},{"$f":"IF('1. Ordersheet'!I616=\"\",\"\",'1. Ordersheet'!I616)","v":""},{"$f":"IF('1. Ordersheet'!J616=\"\",\"\",'1. Ordersheet'!J616)","v":""},{"$f":"IF('1. Ordersheet'!K616=\"\",\"\",'1. Ordersheet'!K616)","v":""},{"$f":"IF('1. Ordersheet'!M616=\"\",\"\",'1. Ordersheet'!M616)","v":""},null,null,{"$f":"'1. Ordersheet'!AR616","v":0},{"$f":"IF('1. Ordersheet'!AE616=\"\",\"\",'1. Ordersheet'!AE616)","v":""}]
[{"$f":"IF('1. Ordersheet'!B617=\"\",\"\",'1. Ordersheet'!B617)","v":""},{"$f":"IF('1. Ordersheet'!I617=\"\",\"\",'1. Ordersheet'!I617)","v":""},{"$f":"IF('1. Ordersheet'!J617=\"\",\"\",'1. Ordersheet'!J617)","v":""},{"$f":"IF('1. Ordersheet'!K617=\"\",\"\",'1. Ordersheet'!K617)","v":""},{"$f":"IF('1. Ordersheet'!M617=\"\",\"\",'1. Ordersheet'!M617)","v":""},null,null,{"$f":"'1. Ordersheet'!AR617","v":0},{"$f":"IF('1. Ordersheet'!AE617=\"\",\"\",'1. Ordersheet'!AE617)","v":""}]
[{"$f":"IF('1. Ordersheet'!B618=\"\",\"\",'1. Ordersheet'!B618)","v":""},{"$f":"IF('1. Ordersheet'!I618=\"\",\"\",'1. Ordersheet'!I618)","v":""},{"$f":"IF('1. Ordersheet'!J618=\"\",\"\",'1. Ordersheet'!J618)","v":""},{"$f":"IF('1. Ordersheet'!K618=\"\",\"\",'1. Ordersheet'!K618)","v":""},{"$f":"IF('1. Ordersheet'!M618=\"\",\"\",'1. Ordersheet'!M618)","v":""},null,null,{"$f":"'1. Ordersheet'!AR618","v":0},{"$f":"IF('1. Ordersheet'!AE618=\"\",\"\",'1. Ordersheet'!AE618)","v":""}]
[{"$f":"IF('1. Ordersheet'!B619=\"\",\"\",'1. Ordersheet'!B619)","v":""},{"$f":"IF('1. Ordersheet'!I619=\"\",\"\",'1. Ordersheet'!I619)","v":""},{"$f":"IF('1. Ordersheet'!J619=\"\",\"\",'1. Ordersheet'!J619)","v":""},{"$f":"IF('1. Ordersheet'!K619=\"\",\"\",'1. Ordersheet'!K619)","v":""},{"$f":"IF('1. Ordersheet'!M619=\"\",\"\",'1. Ordersheet'!M619)","v":""},null,null,{"$f":"'1. Ordersheet'!AR619","v":0},{"$f":"IF('1. Ordersheet'!AE619=\"\",\"\",'1. Ordersheet'!AE619)","v":""}]
[{"$f":"IF('1. Ordersheet'!B620=\"\",\"\",'1. Ordersheet'!B620)","v":""},{"$f":"IF('1. Ordersheet'!I620=\"\",\"\",'1. Ordersheet'!I620)","v":""},{"$f":"IF('1. Ordersheet'!J620=\"\",\"\",'1. Ordersheet'!J620)","v":""},{"$f":"IF('1. Ordersheet'!K620=\"\",\"\",'1. Ordersheet'!K620)","v":""},{"$f":"IF('1. Ordersheet'!M620=\"\",\"\",'1. Ordersheet'!M620)","v":""},null,null,{"$f":"'1. Ordersheet'!AR620","v":0},{"$f":"IF('1. Ordersheet'!AE620=\"\",\"\",'1. Ordersheet'!AE620)","v":""}]
[{"$f":"IF('1. Ordersheet'!B621=\"\",\"\",'1. Ordersheet'!B621)","v":""},{"$f":"IF('1. Ordersheet'!I621=\"\",\"\",'1. Ordersheet'!I621)","v":""},{"$f":"IF('1. Ordersheet'!J621=\"\",\"\",'1. Ordersheet'!J621)","v":""},{"$f":"IF('1. Ordersheet'!K621=\"\",\"\",'1. Ordersheet'!K621)","v":""},{"$f":"IF('1. Ordersheet'!M621=\"\",\"\",'1. Ordersheet'!M621)","v":""},null,null,{"$f":"'1. Ordersheet'!AR621","v":0},{"$f":"IF('1. Ordersheet'!AE621=\"\",\"\",'1. Ordersheet'!AE621)","v":""}]
[{"$f":"IF('1. Ordersheet'!B622=\"\",\"\",'1. Ordersheet'!B622)","v":""},{"$f":"IF('1. Ordersheet'!I622=\"\",\"\",'1. Ordersheet'!I622)","v":""},{"$f":"IF('1. Ordersheet'!J622=\"\",\"\",'1. Ordersheet'!J622)","v":""},{"$f":"IF('1. Ordersheet'!K622=\"\",\"\",'1. Ordersheet'!K622)","v":""},{"$f":"IF('1. Ordersheet'!M622=\"\",\"\",'1. Ordersheet'!M622)","v":""},null,null,{"$f":"'1. Ordersheet'!AR622","v":0},{"$f":"IF('1. Ordersheet'!AE622=\"\",\"\",'1. Ordersheet'!AE622)","v":""}]
[{"$f":"IF('1. Ordersheet'!B623=\"\",\"\",'1. Ordersheet'!B623)","v":""},{"$f":"IF('1. Ordersheet'!I623=\"\",\"\",'1. Ordersheet'!I623)","v":""},{"$f":"IF('1. Ordersheet'!J623=\"\",\"\",'1. Ordersheet'!J623)","v":""},{"$f":"IF('1. Ordersheet'!K623=\"\",\"\",'1. Ordersheet'!K623)","v":""},{"$f":"IF('1. Ordersheet'!M623=\"\",\"\",'1. Ordersheet'!M623)","v":""},null,null,{"$f":"'1. Ordersheet'!AR623","v":0},{"$f":"IF('1. Ordersheet'!AE623=\"\",\"\",'1. Ordersheet'!AE623)","v":""}]
[{"$f":"IF('1. Ordersheet'!B624=\"\",\"\",'1. Ordersheet'!B624)","v":""},{"$f":"IF('1. Ordersheet'!I624=\"\",\"\",'1. Ordersheet'!I624)","v":""},{"$f":"IF('1. Ordersheet'!J624=\"\",\"\",'1. Ordersheet'!J624)","v":""},{"$f":"IF('1. Ordersheet'!K624=\"\",\"\",'1. Ordersheet'!K624)","v":""},{"$f":"IF('1. Ordersheet'!M624=\"\",\"\",'1. Ordersheet'!M624)","v":""},null,null,{"$f":"'1. Ordersheet'!AR624","v":0},{"$f":"IF('1. Ordersheet'!AE624=\"\",\"\",'1. Ordersheet'!AE624)","v":""}]
[{"$f":"IF('1. Ordersheet'!B625=\"\",\"\",'1. Ordersheet'!B625)","v":""},{"$f":"IF('1. Ordersheet'!I625=\"\",\"\",'1. Ordersheet'!I625)","v":""},{"$f":"IF('1. Ordersheet'!J625=\"\",\"\",'1. Ordersheet'!J625)","v":""},{"$f":"IF('1. Ordersheet'!K625=\"\",\"\",'1. Ordersheet'!K625)","v":""},{"$f":"IF('1. Ordersheet'!M625=\"\",\"\",'1. Ordersheet'!M625)","v":""},null,null,{"$f":"'1. Ordersheet'!AR625","v":0},{"$f":"IF('1. Ordersheet'!AE625=\"\",\"\",'1. Ordersheet'!AE625)","v":""}]
[{"$f":"IF('1. Ordersheet'!B626=\"\",\"\",'1. Ordersheet'!B626)","v":""},{"$f":"IF('1. Ordersheet'!I626=\"\",\"\",'1. Ordersheet'!I626)","v":""},{"$f":"IF('1. Ordersheet'!J626=\"\",\"\",'1. Ordersheet'!J626)","v":""},{"$f":"IF('1. Ordersheet'!K626=\"\",\"\",'1. Ordersheet'!K626)","v":""},{"$f":"IF('1. Ordersheet'!M626=\"\",\"\",'1. Ordersheet'!M626)","v":""},null,null,{"$f":"'1. Ordersheet'!AR626","v":0},{"$f":"IF('1. Ordersheet'!AE626=\"\",\"\",'1. Ordersheet'!AE626)","v":""}]
[{"$f":"IF('1. Ordersheet'!B627=\"\",\"\",'1. Ordersheet'!B627)","v":""},{"$f":"IF('1. Ordersheet'!I627=\"\",\"\",'1. Ordersheet'!I627)","v":""},{"$f":"IF('1. Ordersheet'!J627=\"\",\"\",'1. Ordersheet'!J627)","v":""},{"$f":"IF('1. Ordersheet'!K627=\"\",\"\",'1. Ordersheet'!K627)","v":""},{"$f":"IF('1. Ordersheet'!M627=\"\",\"\",'1. Ordersheet'!M627)","v":""},null,null,{"$f":"'1. Ordersheet'!AR627","v":0},{"$f":"IF('1. Ordersheet'!AE627=\"\",\"\",'1. Ordersheet'!AE627)","v":""}]
[{"$f":"IF('1. Ordersheet'!B628=\"\",\"\",'1. Ordersheet'!B628)","v":""},{"$f":"IF('1. Ordersheet'!I628=\"\",\"\",'1. Ordersheet'!I628)","v":""},{"$f":"IF('1. Ordersheet'!J628=\"\",\"\",'1. Ordersheet'!J628)","v":""},{"$f":"IF('1. Ordersheet'!K628=\"\",\"\",'1. Ordersheet'!K628)","v":""},{"$f":"IF('1. Ordersheet'!M628=\"\",\"\",'1. Ordersheet'!M628)","v":""},null,null,{"$f":"'1. Ordersheet'!AR628","v":0},{"$f":"IF('1. Ordersheet'!AE628=\"\",\"\",'1. Ordersheet'!AE628)","v":""}]
[{"$f":"IF('1. Ordersheet'!B629=\"\",\"\",'1. Ordersheet'!B629)","v":""},{"$f":"IF('1. Ordersheet'!I629=\"\",\"\",'1. Ordersheet'!I629)","v":""},{"$f":"IF('1. Ordersheet'!J629=\"\",\"\",'1. Ordersheet'!J629)","v":""},{"$f":"IF('1. Ordersheet'!K629=\"\",\"\",'1. Ordersheet'!K629)","v":""},{"$f":"IF('1. Ordersheet'!M629=\"\",\"\",'1. Ordersheet'!M629)","v":""},null,null,{"$f":"'1. Ordersheet'!AR629","v":0},{"$f":"IF('1. Ordersheet'!AE629=\"\",\"\",'1. Ordersheet'!AE629)","v":""}]
[{"$f":"IF('1. Ordersheet'!B630=\"\",\"\",'1. Ordersheet'!B630)","v":""},{"$f":"IF('1. Ordersheet'!I630=\"\",\"\",'1. Ordersheet'!I630)","v":""},{"$f":"IF('1. Ordersheet'!J630=\"\",\"\",'1. Ordersheet'!J630)","v":""},{"$f":"IF('1. Ordersheet'!K630=\"\",\"\",'1. Ordersheet'!K630)","v":""},{"$f":"IF('1. Ordersheet'!M630=\"\",\"\",'1. Ordersheet'!M630)","v":""},null,null,{"$f":"'1. Ordersheet'!AR630","v":0},{"$f":"IF('1. Ordersheet'!AE630=\"\",\"\",'1. Ordersheet'!AE630)","v":""}]
[{"$f":"IF('1. Ordersheet'!B631=\"\",\"\",'1. Ordersheet'!B631)","v":""},{"$f":"IF('1. Ordersheet'!I631=\"\",\"\",'1. Ordersheet'!I631)","v":""},{"$f":"IF('1. Ordersheet'!J631=\"\",\"\",'1. Ordersheet'!J631)","v":""},{"$f":"IF('1. Ordersheet'!K631=\"\",\"\",'1. Ordersheet'!K631)","v":""},{"$f":"IF('1. Ordersheet'!M631=\"\",\"\",'1. Ordersheet'!M631)","v":""},null,null,{"$f":"'1. Ordersheet'!AR631","v":0},{"$f":"IF('1. Ordersheet'!AE631=\"\",\"\",'1. Ordersheet'!AE631)","v":""}]
[{"$f":"IF('1. Ordersheet'!B632=\"\",\"\",'1. Ordersheet'!B632)","v":""},{"$f":"IF('1. Ordersheet'!I632=\"\",\"\",'1. Ordersheet'!I632)","v":""},{"$f":"IF('1. Ordersheet'!J632=\"\",\"\",'1. Ordersheet'!J632)","v":""},{"$f":"IF('1. Ordersheet'!K632=\"\",\"\",'1. Ordersheet'!K632)","v":""},{"$f":"IF('1. Ordersheet'!M632=\"\",\"\",'1. Ordersheet'!M632)","v":""},null,null,{"$f":"'1. Ordersheet'!AR632","v":0},{"$f":"IF('1. Ordersheet'!AE632=\"\",\"\",'1. Ordersheet'!AE632)","v":""}]
[{"$f":"IF('1. Ordersheet'!B633=\"\",\"\",'1. Ordersheet'!B633)","v":""},{"$f":"IF('1. Ordersheet'!I633=\"\",\"\",'1. Ordersheet'!I633)","v":""},{"$f":"IF('1. Ordersheet'!J633=\"\",\"\",'1. Ordersheet'!J633)","v":""},{"$f":"IF('1. Ordersheet'!K633=\"\",\"\",'1. Ordersheet'!K633)","v":""},{"$f":"IF('1. Ordersheet'!M633=\"\",\"\",'1. Ordersheet'!M633)","v":""},null,null,{"$f":"'1. Ordersheet'!AR633","v":0},{"$f":"IF('1. Ordersheet'!AE633=\"\",\"\",'1. Ordersheet'!AE633)","v":""}]
[{"$f":"IF('1. Ordersheet'!B634=\"\",\"\",'1. Ordersheet'!B634)","v":""},{"$f":"IF('1. Ordersheet'!I634=\"\",\"\",'1. Ordersheet'!I634)","v":""},{"$f":"IF('1. Ordersheet'!J634=\"\",\"\",'1. Ordersheet'!J634)","v":""},{"$f":"IF('1. Ordersheet'!K634=\"\",\"\",'1. Ordersheet'!K634)","v":""},{"$f":"IF('1. Ordersheet'!M634=\"\",\"\",'1. Ordersheet'!M634)","v":""},null,null,{"$f":"'1. Ordersheet'!AR634","v":0},{"$f":"IF('1. Ordersheet'!AE634=\"\",\"\",'1. Ordersheet'!AE634)","v":""}]
[{"$f":"IF('1. Ordersheet'!B635=\"\",\"\",'1. Ordersheet'!B635)","v":""},{"$f":"IF('1. Ordersheet'!I635=\"\",\"\",'1. Ordersheet'!I635)","v":""},{"$f":"IF('1. Ordersheet'!J635=\"\",\"\",'1. Ordersheet'!J635)","v":""},{"$f":"IF('1. Ordersheet'!K635=\"\",\"\",'1. Ordersheet'!K635)","v":""},{"$f":"IF('1. Ordersheet'!M635=\"\",\"\",'1. Ordersheet'!M635)","v":""},null,null,{"$f":"'1. Ordersheet'!AR635","v":0},{"$f":"IF('1. Ordersheet'!AE635=\"\",\"\",'1. Ordersheet'!AE635)","v":""}]
[{"$f":"IF('1. Ordersheet'!B636=\"\",\"\",'1. Ordersheet'!B636)","v":""},{"$f":"IF('1. Ordersheet'!I636=\"\",\"\",'1. Ordersheet'!I636)","v":""},{"$f":"IF('1. Ordersheet'!J636=\"\",\"\",'1. Ordersheet'!J636)","v":""},{"$f":"IF('1. Ordersheet'!K636=\"\",\"\",'1. Ordersheet'!K636)","v":""},{"$f":"IF('1. Ordersheet'!M636=\"\",\"\",'1. Ordersheet'!M636)","v":""},null,null,{"$f":"'1. Ordersheet'!AR636","v":0},{"$f":"IF('1. Ordersheet'!AE636=\"\",\"\",'1. Ordersheet'!AE636)","v":""}]
[{"$f":"IF('1. Ordersheet'!B637=\"\",\"\",'1. Ordersheet'!B637)","v":""},{"$f":"IF('1. Ordersheet'!I637=\"\",\"\",'1. Ordersheet'!I637)","v":""},{"$f":"IF('1. Ordersheet'!J637=\"\",\"\",'1. Ordersheet'!J637)","v":""},{"$f":"IF('1. Ordersheet'!K637=\"\",\"\",'1. Ordersheet'!K637)","v":""},{"$f":"IF('1. Ordersheet'!M637=\"\",\"\",'1. Ordersheet'!M637)","v":""},null,null,{"$f":"'1. Ordersheet'!AR637","v":0},{"$f":"IF('1. Ordersheet'!AE637=\"\",\"\",'1. Ordersheet'!AE637)","v":""}]
[{"$f":"IF('1. Ordersheet'!B638=\"\",\"\",'1. Ordersheet'!B638)","v":""},{"$f":"IF('1. Ordersheet'!I638=\"\",\"\",'1. Ordersheet'!I638)","v":""},{"$f":"IF('1. Ordersheet'!J638=\"\",\"\",'1. Ordersheet'!J638)","v":""},{"$f":"IF('1. Ordersheet'!K638=\"\",\"\",'1. Ordersheet'!K638)","v":""},{"$f":"IF('1. Ordersheet'!M638=\"\",\"\",'1. Ordersheet'!M638)","v":""},null,null,{"$f":"'1. Ordersheet'!AR638","v":0},{"$f":"IF('1. Ordersheet'!AE638=\"\",\"\",'1. Ordersheet'!AE638)","v":""}]
[{"$f":"IF('1. Ordersheet'!B639=\"\",\"\",'1. Ordersheet'!B639)","v":""},{"$f":"IF('1. Ordersheet'!I639=\"\",\"\",'1. Ordersheet'!I639)","v":""},{"$f":"IF('1. Ordersheet'!J639=\"\",\"\",'1. Ordersheet'!J639)","v":""},{"$f":"IF('1. Ordersheet'!K639=\"\",\"\",'1. Ordersheet'!K639)","v":""},{"$f":"IF('1. Ordersheet'!M639=\"\",\"\",'1. Ordersheet'!M639)","v":""},null,null,{"$f":"'1. Ordersheet'!AR639","v":0},{"$f":"IF('1. Ordersheet'!AE639=\"\",\"\",'1. Ordersheet'!AE639)","v":""}]
[{"$f":"IF('1. Ordersheet'!B640=\"\",\"\",'1. Ordersheet'!B640)","v":""},{"$f":"IF('1. Ordersheet'!I640=\"\",\"\",'1. Ordersheet'!I640)","v":""},{"$f":"IF('1. Ordersheet'!J640=\"\",\"\",'1. Ordersheet'!J640)","v":""},{"$f":"IF('1. Ordersheet'!K640=\"\",\"\",'1. Ordersheet'!K640)","v":""},{"$f":"IF('1. Ordersheet'!M640=\"\",\"\",'1. Ordersheet'!M640)","v":""},null,null,{"$f":"'1. Ordersheet'!AR640","v":0},{"$f":"IF('1. Ordersheet'!AE640=\"\",\"\",'1. Ordersheet'!AE640)","v":""}]
[{"$f":"IF('1. Ordersheet'!B641=\"\",\"\",'1. Ordersheet'!B641)","v":""},{"$f":"IF('1. Ordersheet'!I641=\"\",\"\",'1. Ordersheet'!I641)","v":""},{"$f":"IF('1. Ordersheet'!J641=\"\",\"\",'1. Ordersheet'!J641)","v":""},{"$f":"IF('1. Ordersheet'!K641=\"\",\"\",'1. Ordersheet'!K641)","v":""},{"$f":"IF('1. Ordersheet'!M641=\"\",\"\",'1. Ordersheet'!M641)","v":""},null,null,{"$f":"'1. Ordersheet'!AR641","v":0},{"$f":"IF('1. Ordersheet'!AE641=\"\",\"\",'1. Ordersheet'!AE641)","v":""}]
[{"$f":"IF('1. Ordersheet'!B642=\"\",\"\",'1. Ordersheet'!B642)","v":""},{"$f":"IF('1. Ordersheet'!I642=\"\",\"\",'1. Ordersheet'!I642)","v":""},{"$f":"IF('1. Ordersheet'!J642=\"\",\"\",'1. Ordersheet'!J642)","v":""},{"$f":"IF('1. Ordersheet'!K642=\"\",\"\",'1. Ordersheet'!K642)","v":""},{"$f":"IF('1. Ordersheet'!M642=\"\",\"\",'1. Ordersheet'!M642)","v":""},null,null,{"$f":"'1. Ordersheet'!AR642","v":0},{"$f":"IF('1. Ordersheet'!AE642=\"\",\"\",'1. Ordersheet'!AE642)","v":""}]
[{"$f":"IF('1. Ordersheet'!B643=\"\",\"\",'1. Ordersheet'!B643)","v":""},{"$f":"IF('1. Ordersheet'!I643=\"\",\"\",'1. Ordersheet'!I643)","v":""},{"$f":"IF('1. Ordersheet'!J643=\"\",\"\",'1. Ordersheet'!J643)","v":""},{"$f":"IF('1. Ordersheet'!K643=\"\",\"\",'1. Ordersheet'!K643)","v":""},{"$f":"IF('1. Ordersheet'!M643=\"\",\"\",'1. Ordersheet'!M643)","v":""},null,null,{"$f":"'1. Ordersheet'!AR643","v":0},{"$f":"IF('1. Ordersheet'!AE643=\"\",\"\",'1. Ordersheet'!AE643)","v":""}]
[{"$f":"IF('1. Ordersheet'!B644=\"\",\"\",'1. Ordersheet'!B644)","v":""},{"$f":"IF('1. Ordersheet'!I644=\"\",\"\",'1. Ordersheet'!I644)","v":""},{"$f":"IF('1. Ordersheet'!J644=\"\",\"\",'1. Ordersheet'!J644)","v":""},{"$f":"IF('1. Ordersheet'!K644=\"\",\"\",'1. Ordersheet'!K644)","v":""},{"$f":"IF('1. Ordersheet'!M644=\"\",\"\",'1. Ordersheet'!M644)","v":""},null,null,{"$f":"'1. Ordersheet'!AR644","v":0},{"$f":"IF('1. Ordersheet'!AE644=\"\",\"\",'1. Ordersheet'!AE644)","v":""}]
[{"$f":"IF('1. Ordersheet'!B645=\"\",\"\",'1. Ordersheet'!B645)","v":""},{"$f":"IF('1. Ordersheet'!I645=\"\",\"\",'1. Ordersheet'!I645)","v":""},{"$f":"IF('1. Ordersheet'!J645=\"\",\"\",'1. Ordersheet'!J645)","v":""},{"$f":"IF('1. Ordersheet'!K645=\"\",\"\",'1. Ordersheet'!K645)","v":""},{"$f":"IF('1. Ordersheet'!M645=\"\",\"\",'1. Ordersheet'!M645)","v":""},null,null,{"$f":"'1. Ordersheet'!AR645","v":0},{"$f":"IF('1. Ordersheet'!AE645=\"\",\"\",'1. Ordersheet'!AE645)","v":""}]
[{"$f":"IF('1. Ordersheet'!B646=\"\",\"\",'1. Ordersheet'!B646)","v":""},{"$f":"IF('1. Ordersheet'!I646=\"\",\"\",'1. Ordersheet'!I646)","v":""},{"$f":"IF('1. Ordersheet'!J646=\"\",\"\",'1. Ordersheet'!J646)","v":""},{"$f":"IF('1. Ordersheet'!K646=\"\",\"\",'1. Ordersheet'!K646)","v":""},{"$f":"IF('1. Ordersheet'!M646=\"\",\"\",'1. Ordersheet'!M646)","v":""},null,null,{"$f":"'1. Ordersheet'!AR646","v":0},{"$f":"IF('1. Ordersheet'!AE646=\"\",\"\",'1. Ordersheet'!AE646)","v":""}]
[{"$f":"IF('1. Ordersheet'!B647=\"\",\"\",'1. Ordersheet'!B647)","v":""},{"$f":"IF('1. Ordersheet'!I647=\"\",\"\",'1. Ordersheet'!I647)","v":""},{"$f":"IF('1. Ordersheet'!J647=\"\",\"\",'1. Ordersheet'!J647)","v":""},{"$f":"IF('1. Ordersheet'!K647=\"\",\"\",'1. Ordersheet'!K647)","v":""},{"$f":"IF('1. Ordersheet'!M647=\"\",\"\",'1. Ordersheet'!M647)","v":""},null,null,{"$f":"'1. Ordersheet'!AR647","v":0},{"$f":"IF('1. Ordersheet'!AE647=\"\",\"\",'1. Ordersheet'!AE647)","v":""}]
[{"$f":"IF('1. Ordersheet'!B648=\"\",\"\",'1. Ordersheet'!B648)","v":""},{"$f":"IF('1. Ordersheet'!I648=\"\",\"\",'1. Ordersheet'!I648)","v":""},{"$f":"IF('1. Ordersheet'!J648=\"\",\"\",'1. Ordersheet'!J648)","v":""},{"$f":"IF('1. Ordersheet'!K648=\"\",\"\",'1. Ordersheet'!K648)","v":""},{"$f":"IF('1. Ordersheet'!M648=\"\",\"\",'1. Ordersheet'!M648)","v":""},null,null,{"$f":"'1. Ordersheet'!AR648","v":0},{"$f":"IF('1. Ordersheet'!AE648=\"\",\"\",'1. Ordersheet'!AE648)","v":""}]
[{"$f":"IF('1. Ordersheet'!B649=\"\",\"\",'1. Ordersheet'!B649)","v":""},{"$f":"IF('1. Ordersheet'!I649=\"\",\"\",'1. Ordersheet'!I649)","v":""},{"$f":"IF('1. Ordersheet'!J649=\"\",\"\",'1. Ordersheet'!J649)","v":""},{"$f":"IF('1. Ordersheet'!K649=\"\",\"\",'1. Ordersheet'!K649)","v":""},{"$f":"IF('1. Ordersheet'!M649=\"\",\"\",'1. Ordersheet'!M649)","v":""},null,null,{"$f":"'1. Ordersheet'!AR649","v":0},{"$f":"IF('1. Ordersheet'!AE649=\"\",\"\",'1. Ordersheet'!AE649)","v":""}]
[{"$f":"IF('1. Ordersheet'!B650=\"\",\"\",'1. Ordersheet'!B650)","v":""},{"$f":"IF('1. Ordersheet'!I650=\"\",\"\",'1. Ordersheet'!I650)","v":""},{"$f":"IF('1. Ordersheet'!J650=\"\",\"\",'1. Ordersheet'!J650)","v":""},{"$f":"IF('1. Ordersheet'!K650=\"\",\"\",'1. Ordersheet'!K650)","v":""},{"$f":"IF('1. Ordersheet'!M650=\"\",\"\",'1. Ordersheet'!M650)","v":""},null,null,{"$f":"'1. Ordersheet'!AR650","v":0},{"$f":"IF('1. Ordersheet'!AE650=\"\",\"\",'1. Ordersheet'!AE650)","v":""}]
[{"$f":"IF('1. Ordersheet'!B651=\"\",\"\",'1. Ordersheet'!B651)","v":""},{"$f":"IF('1. Ordersheet'!I651=\"\",\"\",'1. Ordersheet'!I651)","v":""},{"$f":"IF('1. Ordersheet'!J651=\"\",\"\",'1. Ordersheet'!J651)","v":""},{"$f":"IF('1. Ordersheet'!K651=\"\",\"\",'1. Ordersheet'!K651)","v":""},{"$f":"IF('1. Ordersheet'!M651=\"\",\"\",'1. Ordersheet'!M651)","v":""},null,null,{"$f":"'1. Ordersheet'!AR651","v":0},{"$f":"IF('1. Ordersheet'!AE651=\"\",\"\",'1. Ordersheet'!AE651)","v":""}]
[{"$f":"IF('1. Ordersheet'!B652=\"\",\"\",'1. Ordersheet'!B652)","v":""},{"$f":"IF('1. Ordersheet'!I652=\"\",\"\",'1. Ordersheet'!I652)","v":""},{"$f":"IF('1. Ordersheet'!J652=\"\",\"\",'1. Ordersheet'!J652)","v":""},{"$f":"IF('1. Ordersheet'!K652=\"\",\"\",'1. Ordersheet'!K652)","v":""},{"$f":"IF('1. Ordersheet'!M652=\"\",\"\",'1. Ordersheet'!M652)","v":""},null,null,{"$f":"'1. Ordersheet'!AR652","v":0},{"$f":"IF('1. Ordersheet'!AE652=\"\",\"\",'1. Ordersheet'!AE652)","v":""}]
[{"$f":"IF('1. Ordersheet'!B653=\"\",\"\",'1. Ordersheet'!B653)","v":""},{"$f":"IF('1. Ordersheet'!I653=\"\",\"\",'1. Ordersheet'!I653)","v":""},{"$f":"IF('1. Ordersheet'!J653=\"\",\"\",'1. Ordersheet'!J653)","v":""},{"$f":"IF('1. Ordersheet'!K653=\"\",\"\",'1. Ordersheet'!K653)","v":""},{"$f":"IF('1. Ordersheet'!M653=\"\",\"\",'1. Ordersheet'!M653)","v":""},null,null,{"$f":"'1. Ordersheet'!AR653","v":0},{"$f":"IF('1. Ordersheet'!AE653=\"\",\"\",'1. Ordersheet'!AE653)","v":""}]
[{"$f":"IF('1. Ordersheet'!B654=\"\",\"\",'1. Ordersheet'!B654)","v":""},{"$f":"IF('1. Ordersheet'!I654=\"\",\"\",'1. Ordersheet'!I654)","v":""},{"$f":"IF('1. Ordersheet'!J654=\"\",\"\",'1. Ordersheet'!J654)","v":""},{"$f":"IF('1. Ordersheet'!K654=\"\",\"\",'1. Ordersheet'!K654)","v":""},{"$f":"IF('1. Ordersheet'!M654=\"\",\"\",'1. Ordersheet'!M654)","v":""},null,null,{"$f":"'1. Ordersheet'!AR654","v":0},{"$f":"IF('1. Ordersheet'!AE654=\"\",\"\",'1. Ordersheet'!AE654)","v":""}]
[{"$f":"IF('1. Ordersheet'!B655=\"\",\"\",'1. Ordersheet'!B655)","v":""},{"$f":"IF('1. Ordersheet'!I655=\"\",\"\",'1. Ordersheet'!I655)","v":""},{"$f":"IF('1. Ordersheet'!J655=\"\",\"\",'1. Ordersheet'!J655)","v":""},{"$f":"IF('1. Ordersheet'!K655=\"\",\"\",'1. Ordersheet'!K655)","v":""},{"$f":"IF('1. Ordersheet'!M655=\"\",\"\",'1. Ordersheet'!M655)","v":""},null,null,{"$f":"'1. Ordersheet'!AR655","v":0},{"$f":"IF('1. Ordersheet'!AE655=\"\",\"\",'1. Ordersheet'!AE655)","v":""}]
[{"$f":"IF('1. Ordersheet'!B656=\"\",\"\",'1. Ordersheet'!B656)","v":""},{"$f":"IF('1. Ordersheet'!I656=\"\",\"\",'1. Ordersheet'!I656)","v":""},{"$f":"IF('1. Ordersheet'!J656=\"\",\"\",'1. Ordersheet'!J656)","v":""},{"$f":"IF('1. Ordersheet'!K656=\"\",\"\",'1. Ordersheet'!K656)","v":""},{"$f":"IF('1. Ordersheet'!M656=\"\",\"\",'1. Ordersheet'!M656)","v":""},null,null,{"$f":"'1. Ordersheet'!AR656","v":0},{"$f":"IF('1. Ordersheet'!AE656=\"\",\"\",'1. Ordersheet'!AE656)","v":""}]
[{"$f":"IF('1. Ordersheet'!B657=\"\",\"\",'1. Ordersheet'!B657)","v":""},{"$f":"IF('1. Ordersheet'!I657=\"\",\"\",'1. Ordersheet'!I657)","v":""},{"$f":"IF('1. Ordersheet'!J657=\"\",\"\",'1. Ordersheet'!J657)","v":""},{"$f":"IF('1. Ordersheet'!K657=\"\",\"\",'1. Ordersheet'!K657)","v":""},{"$f":"IF('1. Ordersheet'!M657=\"\",\"\",'1. Ordersheet'!M657)","v":""},null,null,{"$f":"'1. Ordersheet'!AR657","v":0},{"$f":"IF('1. Ordersheet'!AE657=\"\",\"\",'1. Ordersheet'!AE657)","v":""}]
[{"$f":"IF('1. Ordersheet'!B658=\"\",\"\",'1. Ordersheet'!B658)","v":""},{"$f":"IF('1. Ordersheet'!I658=\"\",\"\",'1. Ordersheet'!I658)","v":""},{"$f":"IF('1. Ordersheet'!J658=\"\",\"\",'1. Ordersheet'!J658)","v":""},{"$f":"IF('1. Ordersheet'!K658=\"\",\"\",'1. Ordersheet'!K658)","v":""},{"$f":"IF('1. Ordersheet'!M658=\"\",\"\",'1. Ordersheet'!M658)","v":""},null,null,{"$f":"'1. Ordersheet'!AR658","v":0},{"$f":"IF('1. Ordersheet'!AE658=\"\",\"\",'1. Ordersheet'!AE658)","v":""}]
[{"$f":"IF('1. Ordersheet'!B659=\"\",\"\",'1. Ordersheet'!B659)","v":""},{"$f":"IF('1. Ordersheet'!I659=\"\",\"\",'1. Ordersheet'!I659)","v":""},{"$f":"IF('1. Ordersheet'!J659=\"\",\"\",'1. Ordersheet'!J659)","v":""},{"$f":"IF('1. Ordersheet'!K659=\"\",\"\",'1. Ordersheet'!K659)","v":""},{"$f":"IF('1. Ordersheet'!M659=\"\",\"\",'1. Ordersheet'!M659)","v":""},null,null,{"$f":"'1. Ordersheet'!AR659","v":0},{"$f":"IF('1. Ordersheet'!AE659=\"\",\"\",'1. Ordersheet'!AE659)","v":""}]
[{"$f":"IF('1. Ordersheet'!B660=\"\",\"\",'1. Ordersheet'!B660)","v":""},{"$f":"IF('1. Ordersheet'!I660=\"\",\"\",'1. Ordersheet'!I660)","v":""},{"$f":"IF('1. Ordersheet'!J660=\"\",\"\",'1. Ordersheet'!J660)","v":""},{"$f":"IF('1. Ordersheet'!K660=\"\",\"\",'1. Ordersheet'!K660)","v":""},{"$f":"IF('1. Ordersheet'!M660=\"\",\"\",'1. Ordersheet'!M660)","v":""},null,null,{"$f":"'1. Ordersheet'!AR660","v":0},{"$f":"IF('1. Ordersheet'!AE660=\"\",\"\",'1. Ordersheet'!AE660)","v":""}]
[{"$f":"IF('1. Ordersheet'!B661=\"\",\"\",'1. Ordersheet'!B661)","v":""},{"$f":"IF('1. Ordersheet'!I661=\"\",\"\",'1. Ordersheet'!I661)","v":""},{"$f":"IF('1. Ordersheet'!J661=\"\",\"\",'1. Ordersheet'!J661)","v":""},{"$f":"IF('1. Ordersheet'!K661=\"\",\"\",'1. Ordersheet'!K661)","v":""},{"$f":"IF('1. Ordersheet'!M661=\"\",\"\",'1. Ordersheet'!M661)","v":""},null,null,{"$f":"'1. Ordersheet'!AR661","v":0},{"$f":"IF('1. Ordersheet'!AE661=\"\",\"\",'1. Ordersheet'!AE661)","v":""}]
[{"$f":"IF('1. Ordersheet'!B662=\"\",\"\",'1. Ordersheet'!B662)","v":""},{"$f":"IF('1. Ordersheet'!I662=\"\",\"\",'1. Ordersheet'!I662)","v":""},{"$f":"IF('1. Ordersheet'!J662=\"\",\"\",'1. Ordersheet'!J662)","v":""},{"$f":"IF('1. Ordersheet'!K662=\"\",\"\",'1. Ordersheet'!K662)","v":""},{"$f":"IF('1. Ordersheet'!M662=\"\",\"\",'1. Ordersheet'!M662)","v":""},null,null,{"$f":"'1. Ordersheet'!AR662","v":0},{"$f":"IF('1. Ordersheet'!AE662=\"\",\"\",'1. Ordersheet'!AE662)","v":""}]
[{"$f":"IF('1. Ordersheet'!B663=\"\",\"\",'1. Ordersheet'!B663)","v":""},{"$f":"IF('1. Ordersheet'!I663=\"\",\"\",'1. Ordersheet'!I663)","v":""},{"$f":"IF('1. Ordersheet'!J663=\"\",\"\",'1. Ordersheet'!J663)","v":""},{"$f":"IF('1. Ordersheet'!K663=\"\",\"\",'1. Ordersheet'!K663)","v":""},{"$f":"IF('1. Ordersheet'!M663=\"\",\"\",'1. Ordersheet'!M663)","v":""},null,null,{"$f":"'1. Ordersheet'!AR663","v":0},{"$f":"IF('1. Ordersheet'!AE663=\"\",\"\",'1. Ordersheet'!AE663)","v":""}]
[{"$f":"IF('1. Ordersheet'!B664=\"\",\"\",'1. Ordersheet'!B664)","v":""},{"$f":"IF('1. Ordersheet'!I664=\"\",\"\",'1. Ordersheet'!I664)","v":""},{"$f":"IF('1. Ordersheet'!J664=\"\",\"\",'1. Ordersheet'!J664)","v":""},{"$f":"IF('1. Ordersheet'!K664=\"\",\"\",'1. Ordersheet'!K664)","v":""},{"$f":"IF('1. Ordersheet'!M664=\"\",\"\",'1. Ordersheet'!M664)","v":""},null,null,{"$f":"'1. Ordersheet'!AR664","v":0},{"$f":"IF('1. Ordersheet'!AE664=\"\",\"\",'1. Ordersheet'!AE664)","v":""}]
[{"$f":"IF('1. Ordersheet'!B665=\"\",\"\",'1. Ordersheet'!B665)","v":""},{"$f":"IF('1. Ordersheet'!I665=\"\",\"\",'1. Ordersheet'!I665)","v":""},{"$f":"IF('1. Ordersheet'!J665=\"\",\"\",'1. Ordersheet'!J665)","v":""},{"$f":"IF('1. Ordersheet'!K665=\"\",\"\",'1. Ordersheet'!K665)","v":""},{"$f":"IF('1. Ordersheet'!M665=\"\",\"\",'1. Ordersheet'!M665)","v":""},null,null,{"$f":"'1. Ordersheet'!AR665","v":0},{"$f":"IF('1. Ordersheet'!AE665=\"\",\"\",'1. Ordersheet'!AE665)","v":""}]
[{"$f":"IF('1. Ordersheet'!B666=\"\",\"\",'1. Ordersheet'!B666)","v":""},{"$f":"IF('1. Ordersheet'!I666=\"\",\"\",'1. Ordersheet'!I666)","v":""},{"$f":"IF('1. Ordersheet'!J666=\"\",\"\",'1. Ordersheet'!J666)","v":""},{"$f":"IF('1. Ordersheet'!K666=\"\",\"\",'1. Ordersheet'!K666)","v":""},{"$f":"IF('1. Ordersheet'!M666=\"\",\"\",'1. Ordersheet'!M666)","v":""},null,null,{"$f":"'1. Ordersheet'!AR666","v":0},{"$f":"IF('1. Ordersheet'!AE666=\"\",\"\",'1. Ordersheet'!AE666)","v":""}]
[{"$f":"IF('1. Ordersheet'!B667=\"\",\"\",'1. Ordersheet'!B667)","v":""},{"$f":"IF('1. Ordersheet'!I667=\"\",\"\",'1. Ordersheet'!I667)","v":""},{"$f":"IF('1. Ordersheet'!J667=\"\",\"\",'1. Ordersheet'!J667)","v":""},{"$f":"IF('1. Ordersheet'!K667=\"\",\"\",'1. Ordersheet'!K667)","v":""},{"$f":"IF('1. Ordersheet'!M667=\"\",\"\",'1. Ordersheet'!M667)","v":""},null,null,{"$f":"'1. Ordersheet'!AR667","v":0},{"$f":"IF('1. Ordersheet'!AE667=\"\",\"\",'1. Ordersheet'!AE667)","v":""}]
[{"$f":"IF('1. Ordersheet'!B668=\"\",\"\",'1. Ordersheet'!B668)","v":""},{"$f":"IF('1. Ordersheet'!I668=\"\",\"\",'1. Ordersheet'!I668)","v":""},{"$f":"IF('1. Ordersheet'!J668=\"\",\"\",'1. Ordersheet'!J668)","v":""},{"$f":"IF('1. Ordersheet'!K668=\"\",\"\",'1. Ordersheet'!K668)","v":""},{"$f":"IF('1. Ordersheet'!M668=\"\",\"\",'1. Ordersheet'!M668)","v":""},null,null,{"$f":"'1. Ordersheet'!AR668","v":0},{"$f":"IF('1. Ordersheet'!AE668=\"\",\"\",'1. Ordersheet'!AE668)","v":""}]
[{"$f":"IF('1. Ordersheet'!B669=\"\",\"\",'1. Ordersheet'!B669)","v":""},{"$f":"IF('1. Ordersheet'!I669=\"\",\"\",'1. Ordersheet'!I669)","v":""},{"$f":"IF('1. Ordersheet'!J669=\"\",\"\",'1. Ordersheet'!J669)","v":""},{"$f":"IF('1. Ordersheet'!K669=\"\",\"\",'1. Ordersheet'!K669)","v":""},{"$f":"IF('1. Ordersheet'!M669=\"\",\"\",'1. Ordersheet'!M669)","v":""},null,null,{"$f":"'1. Ordersheet'!AR669","v":0},{"$f":"IF('1. Ordersheet'!AE669=\"\",\"\",'1. Ordersheet'!AE669)","v":""}]
[{"$f":"IF('1. Ordersheet'!B670=\"\",\"\",'1. Ordersheet'!B670)","v":""},{"$f":"IF('1. Ordersheet'!I670=\"\",\"\",'1. Ordersheet'!I670)","v":""},{"$f":"IF('1. Ordersheet'!J670=\"\",\"\",'1. Ordersheet'!J670)","v":""},{"$f":"IF('1. Ordersheet'!K670=\"\",\"\",'1. Ordersheet'!K670)","v":""},{"$f":"IF('1. Ordersheet'!M670=\"\",\"\",'1. Ordersheet'!M670)","v":""},null,null,{"$f":"'1. Ordersheet'!AR670","v":0},{"$f":"IF('1. Ordersheet'!AE670=\"\",\"\",'1. Ordersheet'!AE670)","v":""}]
[{"$f":"IF('1. Ordersheet'!B671=\"\",\"\",'1. Ordersheet'!B671)","v":""},{"$f":"IF('1. Ordersheet'!I671=\"\",\"\",'1. Ordersheet'!I671)","v":""},{"$f":"IF('1. Ordersheet'!J671=\"\",\"\",'1. Ordersheet'!J671)","v":""},{"$f":"IF('1. Ordersheet'!K671=\"\",\"\",'1. Ordersheet'!K671)","v":""},{"$f":"IF('1. Ordersheet'!M671=\"\",\"\",'1. Ordersheet'!M671)","v":""},null,null,{"$f":"'1. Ordersheet'!AR671","v":0},{"$f":"IF('1. Ordersheet'!AE671=\"\",\"\",'1. Ordersheet'!AE671)","v":""}]
[{"$f":"IF('1. Ordersheet'!B672=\"\",\"\",'1. Ordersheet'!B672)","v":""},{"$f":"IF('1. Ordersheet'!I672=\"\",\"\",'1. Ordersheet'!I672)","v":""},{"$f":"IF('1. Ordersheet'!J672=\"\",\"\",'1. Ordersheet'!J672)","v":""},{"$f":"IF('1. Ordersheet'!K672=\"\",\"\",'1. Ordersheet'!K672)","v":""},{"$f":"IF('1. Ordersheet'!M672=\"\",\"\",'1. Ordersheet'!M672)","v":""},null,null,{"$f":"'1. Ordersheet'!AR672","v":0},{"$f":"IF('1. Ordersheet'!AE672=\"\",\"\",'1. Ordersheet'!AE672)","v":""}]
[{"$f":"IF('1. Ordersheet'!B673=\"\",\"\",'1. Ordersheet'!B673)","v":""},{"$f":"IF('1. Ordersheet'!I673=\"\",\"\",'1. Ordersheet'!I673)","v":""},{"$f":"IF('1. Ordersheet'!J673=\"\",\"\",'1. Ordersheet'!J673)","v":""},{"$f":"IF('1. Ordersheet'!K673=\"\",\"\",'1. Ordersheet'!K673)","v":""},{"$f":"IF('1. Ordersheet'!M673=\"\",\"\",'1. Ordersheet'!M673)","v":""},null,null,{"$f":"'1. Ordersheet'!AR673","v":0},{"$f":"IF('1. Ordersheet'!AE673=\"\",\"\",'1. Ordersheet'!AE673)","v":""}]
[{"$f":"IF('1. Ordersheet'!B674=\"\",\"\",'1. Ordersheet'!B674)","v":""},{"$f":"IF('1. Ordersheet'!I674=\"\",\"\",'1. Ordersheet'!I674)","v":""},{"$f":"IF('1. Ordersheet'!J674=\"\",\"\",'1. Ordersheet'!J674)","v":""},{"$f":"IF('1. Ordersheet'!K674=\"\",\"\",'1. Ordersheet'!K674)","v":""},{"$f":"IF('1. Ordersheet'!M674=\"\",\"\",'1. Ordersheet'!M674)","v":""},null,null,{"$f":"'1. Ordersheet'!AR674","v":0},{"$f":"IF('1. Ordersheet'!AE674=\"\",\"\",'1. Ordersheet'!AE674)","v":""}]
[{"$f":"IF('1. Ordersheet'!B675=\"\",\"\",'1. Ordersheet'!B675)","v":""},{"$f":"IF('1. Ordersheet'!I675=\"\",\"\",'1. Ordersheet'!I675)","v":""},{"$f":"IF('1. Ordersheet'!J675=\"\",\"\",'1. Ordersheet'!J675)","v":""},{"$f":"IF('1. Ordersheet'!K675=\"\",\"\",'1. Ordersheet'!K675)","v":""},{"$f":"IF('1. Ordersheet'!M675=\"\",\"\",'1. Ordersheet'!M675)","v":""},null,null,{"$f":"'1. Ordersheet'!AR675","v":0},{"$f":"IF('1. Ordersheet'!AE675=\"\",\"\",'1. Ordersheet'!AE675)","v":""}]
[{"$f":"IF('1. Ordersheet'!B676=\"\",\"\",'1. Ordersheet'!B676)","v":""},{"$f":"IF('1. Ordersheet'!I676=\"\",\"\",'1. Ordersheet'!I676)","v":""},{"$f":"IF('1. Ordersheet'!J676=\"\",\"\",'1. Ordersheet'!J676)","v":""},{"$f":"IF('1. Ordersheet'!K676=\"\",\"\",'1. Ordersheet'!K676)","v":""},{"$f":"IF('1. Ordersheet'!M676=\"\",\"\",'1. Ordersheet'!M676)","v":""},null,null,{"$f":"'1. Ordersheet'!AR676","v":0},{"$f":"IF('1. Ordersheet'!AE676=\"\",\"\",'1. Ordersheet'!AE676)","v":""}]
[{"$f":"IF('1. Ordersheet'!B677=\"\",\"\",'1. Ordersheet'!B677)","v":""},{"$f":"IF('1. Ordersheet'!I677=\"\",\"\",'1. Ordersheet'!I677)","v":""},{"$f":"IF('1. Ordersheet'!J677=\"\",\"\",'1. Ordersheet'!J677)","v":""},{"$f":"IF('1. Ordersheet'!K677=\"\",\"\",'1. Ordersheet'!K677)","v":""},{"$f":"IF('1. Ordersheet'!M677=\"\",\"\",'1. Ordersheet'!M677)","v":""},null,null,{"$f":"'1. Ordersheet'!AR677","v":0},{"$f":"IF('1. Ordersheet'!AE677=\"\",\"\",'1. Ordersheet'!AE677)","v":""}]
[{"$f":"IF('1. Ordersheet'!B678=\"\",\"\",'1. Ordersheet'!B678)","v":""},{"$f":"IF('1. Ordersheet'!I678=\"\",\"\",'1. Ordersheet'!I678)","v":""},{"$f":"IF('1. Ordersheet'!J678=\"\",\"\",'1. Ordersheet'!J678)","v":""},{"$f":"IF('1. Ordersheet'!K678=\"\",\"\",'1. Ordersheet'!K678)","v":""},{"$f":"IF('1. Ordersheet'!M678=\"\",\"\",'1. Ordersheet'!M678)","v":""},null,null,{"$f":"'1. Ordersheet'!AR678","v":0},{"$f":"IF('1. Ordersheet'!AE678=\"\",\"\",'1. Ordersheet'!AE678)","v":""}]
[{"$f":"IF('1. Ordersheet'!B679=\"\",\"\",'1. Ordersheet'!B679)","v":""},{"$f":"IF('1. Ordersheet'!I679=\"\",\"\",'1. Ordersheet'!I679)","v":""},{"$f":"IF('1. Ordersheet'!J679=\"\",\"\",'1. Ordersheet'!J679)","v":""},{"$f":"IF('1. Ordersheet'!K679=\"\",\"\",'1. Ordersheet'!K679)","v":""},{"$f":"IF('1. Ordersheet'!M679=\"\",\"\",'1. Ordersheet'!M679)","v":""},null,null,{"$f":"'1. Ordersheet'!AR679","v":0},{"$f":"IF('1. Ordersheet'!AE679=\"\",\"\",'1. Ordersheet'!AE679)","v":""}]
[{"$f":"IF('1. Ordersheet'!B680=\"\",\"\",'1. Ordersheet'!B680)","v":""},{"$f":"IF('1. Ordersheet'!I680=\"\",\"\",'1. Ordersheet'!I680)","v":""},{"$f":"IF('1. Ordersheet'!J680=\"\",\"\",'1. Ordersheet'!J680)","v":""},{"$f":"IF('1. Ordersheet'!K680=\"\",\"\",'1. Ordersheet'!K680)","v":""},{"$f":"IF('1. Ordersheet'!M680=\"\",\"\",'1. Ordersheet'!M680)","v":""},null,null,{"$f":"'1. Ordersheet'!AR680","v":0},{"$f":"IF('1. Ordersheet'!AE680=\"\",\"\",'1. Ordersheet'!AE680)","v":""}]
[{"$f":"IF('1. Ordersheet'!B681=\"\",\"\",'1. Ordersheet'!B681)","v":""},{"$f":"IF('1. Ordersheet'!I681=\"\",\"\",'1. Ordersheet'!I681)","v":""},{"$f":"IF('1. Ordersheet'!J681=\"\",\"\",'1. Ordersheet'!J681)","v":""},{"$f":"IF('1. Ordersheet'!K681=\"\",\"\",'1. Ordersheet'!K681)","v":""},{"$f":"IF('1. Ordersheet'!M681=\"\",\"\",'1. Ordersheet'!M681)","v":""},null,null,{"$f":"'1. Ordersheet'!AR681","v":0},{"$f":"IF('1. Ordersheet'!AE681=\"\",\"\",'1. Ordersheet'!AE681)","v":""}]
[{"$f":"IF('1. Ordersheet'!B682=\"\",\"\",'1. Ordersheet'!B682)","v":""},{"$f":"IF('1. Ordersheet'!I682=\"\",\"\",'1. Ordersheet'!I682)","v":""},{"$f":"IF('1. Ordersheet'!J682=\"\",\"\",'1. Ordersheet'!J682)","v":""},{"$f":"IF('1. Ordersheet'!K682=\"\",\"\",'1. Ordersheet'!K682)","v":""},{"$f":"IF('1. Ordersheet'!M682=\"\",\"\",'1. Ordersheet'!M682)","v":""},null,null,{"$f":"'1. Ordersheet'!AR682","v":0},{"$f":"IF('1. Ordersheet'!AE682=\"\",\"\",'1. Ordersheet'!AE682)","v":""}]
[{"$f":"IF('1. Ordersheet'!B683=\"\",\"\",'1. Ordersheet'!B683)","v":""},{"$f":"IF('1. Ordersheet'!I683=\"\",\"\",'1. Ordersheet'!I683)","v":""},{"$f":"IF('1. Ordersheet'!J683=\"\",\"\",'1. Ordersheet'!J683)","v":""},{"$f":"IF('1. Ordersheet'!K683=\"\",\"\",'1. Ordersheet'!K683)","v":""},{"$f":"IF('1. Ordersheet'!M683=\"\",\"\",'1. Ordersheet'!M683)","v":""},null,null,{"$f":"'1. Ordersheet'!AR683","v":0},{"$f":"IF('1. Ordersheet'!AE683=\"\",\"\",'1. Ordersheet'!AE683)","v":""}]
[{"$f":"IF('1. Ordersheet'!B684=\"\",\"\",'1. Ordersheet'!B684)","v":""},{"$f":"IF('1. Ordersheet'!I684=\"\",\"\",'1. Ordersheet'!I684)","v":""},{"$f":"IF('1. Ordersheet'!J684=\"\",\"\",'1. Ordersheet'!J684)","v":""},{"$f":"IF('1. Ordersheet'!K684=\"\",\"\",'1. Ordersheet'!K684)","v":""},{"$f":"IF('1. Ordersheet'!M684=\"\",\"\",'1. Ordersheet'!M684)","v":""},null,null,{"$f":"'1. Ordersheet'!AR684","v":0},{"$f":"IF('1. Ordersheet'!AE684=\"\",\"\",'1. Ordersheet'!AE684)","v":""}]
[{"$f":"IF('1. Ordersheet'!B685=\"\",\"\",'1. Ordersheet'!B685)","v":""},{"$f":"IF('1. Ordersheet'!I685=\"\",\"\",'1. Ordersheet'!I685)","v":""},{"$f":"IF('1. Ordersheet'!J685=\"\",\"\",'1. Ordersheet'!J685)","v":""},{"$f":"IF('1. Ordersheet'!K685=\"\",\"\",'1. Ordersheet'!K685)","v":""},{"$f":"IF('1. Ordersheet'!M685=\"\",\"\",'1. Ordersheet'!M685)","v":""},null,null,{"$f":"'1. Ordersheet'!AR685","v":0},{"$f":"IF('1. Ordersheet'!AE685=\"\",\"\",'1. Ordersheet'!AE685)","v":""}]
[{"$f":"IF('1. Ordersheet'!B686=\"\",\"\",'1. Ordersheet'!B686)","v":""},{"$f":"IF('1. Ordersheet'!I686=\"\",\"\",'1. Ordersheet'!I686)","v":""},{"$f":"IF('1. Ordersheet'!J686=\"\",\"\",'1. Ordersheet'!J686)","v":""},{"$f":"IF('1. Ordersheet'!K686=\"\",\"\",'1. Ordersheet'!K686)","v":""},{"$f":"IF('1. Ordersheet'!M686=\"\",\"\",'1. Ordersheet'!M686)","v":""},null,null,{"$f":"'1. Ordersheet'!AR686","v":0},{"$f":"IF('1. Ordersheet'!AE686=\"\",\"\",'1. Ordersheet'!AE686)","v":""}]
[{"$f":"IF('1. Ordersheet'!B687=\"\",\"\",'1. Ordersheet'!B687)","v":""},{"$f":"IF('1. Ordersheet'!I687=\"\",\"\",'1. Ordersheet'!I687)","v":""},{"$f":"IF('1. Ordersheet'!J687=\"\",\"\",'1. Ordersheet'!J687)","v":""},{"$f":"IF('1. Ordersheet'!K687=\"\",\"\",'1. Ordersheet'!K687)","v":""},{"$f":"IF('1. Ordersheet'!M687=\"\",\"\",'1. Ordersheet'!M687)","v":""},null,null,{"$f":"'1. Ordersheet'!AR687","v":0},{"$f":"IF('1. Ordersheet'!AE687=\"\",\"\",'1. Ordersheet'!AE687)","v":""}]
[{"$f":"IF('1. Ordersheet'!B688=\"\",\"\",'1. Ordersheet'!B688)","v":""},{"$f":"IF('1. Ordersheet'!I688=\"\",\"\",'1. Ordersheet'!I688)","v":""},{"$f":"IF('1. Ordersheet'!J688=\"\",\"\",'1. Ordersheet'!J688)","v":""},{"$f":"IF('1. Ordersheet'!K688=\"\",\"\",'1. Ordersheet'!K688)","v":""},{"$f":"IF('1. Ordersheet'!M688=\"\",\"\",'1. Ordersheet'!M688)","v":""},null,null,{"$f":"'1. Ordersheet'!AR688","v":0},{"$f":"IF('1. Ordersheet'!AE688=\"\",\"\",'1. Ordersheet'!AE688)","v":""}]
[{"$f":"IF('1. Ordersheet'!B689=\"\",\"\",'1. Ordersheet'!B689)","v":""},{"$f":"IF('1. Ordersheet'!I689=\"\",\"\",'1. Ordersheet'!I689)","v":""},{"$f":"IF('1. Ordersheet'!J689=\"\",\"\",'1. Ordersheet'!J689)","v":""},{"$f":"IF('1. Ordersheet'!K689=\"\",\"\",'1. Ordersheet'!K689)","v":""},{"$f":"IF('1. Ordersheet'!M689=\"\",\"\",'1. Ordersheet'!M689)","v":""},null,null,{"$f":"'1. Ordersheet'!AR689","v":0},{"$f":"IF('1. Ordersheet'!AE689=\"\",\"\",'1. Ordersheet'!AE689)","v":""}]
[{"$f":"IF('1. Ordersheet'!B690=\"\",\"\",'1. Ordersheet'!B690)","v":""},{"$f":"IF('1. Ordersheet'!I690=\"\",\"\",'1. Ordersheet'!I690)","v":""},{"$f":"IF('1. Ordersheet'!J690=\"\",\"\",'1. Ordersheet'!J690)","v":""},{"$f":"IF('1. Ordersheet'!K690=\"\",\"\",'1. Ordersheet'!K690)","v":""},{"$f":"IF('1. Ordersheet'!M690=\"\",\"\",'1. Ordersheet'!M690)","v":""},null,null,{"$f":"'1. Ordersheet'!AR690","v":0},{"$f":"IF('1. Ordersheet'!AE690=\"\",\"\",'1. Ordersheet'!AE690)","v":""}]
[{"$f":"IF('1. Ordersheet'!B691=\"\",\"\",'1. Ordersheet'!B691)","v":""},{"$f":"IF('1. Ordersheet'!I691=\"\",\"\",'1. Ordersheet'!I691)","v":""},{"$f":"IF('1. Ordersheet'!J691=\"\",\"\",'1. Ordersheet'!J691)","v":""},{"$f":"IF('1. Ordersheet'!K691=\"\",\"\",'1. Ordersheet'!K691)","v":""},{"$f":"IF('1. Ordersheet'!M691=\"\",\"\",'1. Ordersheet'!M691)","v":""},null,null,{"$f":"'1. Ordersheet'!AR691","v":0},{"$f":"IF('1. Ordersheet'!AE691=\"\",\"\",'1. Ordersheet'!AE691)","v":""}]
[{"$f":"IF('1. Ordersheet'!B692=\"\",\"\",'1. Ordersheet'!B692)","v":""},{"$f":"IF('1. Ordersheet'!I692=\"\",\"\",'1. Ordersheet'!I692)","v":""},{"$f":"IF('1. Ordersheet'!J692=\"\",\"\",'1. Ordersheet'!J692)","v":""},{"$f":"IF('1. Ordersheet'!K692=\"\",\"\",'1. Ordersheet'!K692)","v":""},{"$f":"IF('1. Ordersheet'!M692=\"\",\"\",'1. Ordersheet'!M692)","v":""},null,null,{"$f":"'1. Ordersheet'!AR692","v":0},{"$f":"IF('1. Ordersheet'!AE692=\"\",\"\",'1. Ordersheet'!AE692)","v":""}]
[{"$f":"IF('1. Ordersheet'!B693=\"\",\"\",'1. Ordersheet'!B693)","v":""},{"$f":"IF('1. Ordersheet'!I693=\"\",\"\",'1. Ordersheet'!I693)","v":""},{"$f":"IF('1. Ordersheet'!J693=\"\",\"\",'1. Ordersheet'!J693)","v":""},{"$f":"IF('1. Ordersheet'!K693=\"\",\"\",'1. Ordersheet'!K693)","v":""},{"$f":"IF('1. Ordersheet'!M693=\"\",\"\",'1. Ordersheet'!M693)","v":""},null,null,{"$f":"'1. Ordersheet'!AR693","v":0},{"$f":"IF('1. Ordersheet'!AE693=\"\",\"\",'1. Ordersheet'!AE693)","v":""}]
[{"$f":"IF('1. Ordersheet'!B694=\"\",\"\",'1. Ordersheet'!B694)","v":""},{"$f":"IF('1. Ordersheet'!I694=\"\",\"\",'1. Ordersheet'!I694)","v":""},{"$f":"IF('1. Ordersheet'!J694=\"\",\"\",'1. Ordersheet'!J694)","v":""},{"$f":"IF('1. Ordersheet'!K694=\"\",\"\",'1. Ordersheet'!K694)","v":""},{"$f":"IF('1. Ordersheet'!M694=\"\",\"\",'1. Ordersheet'!M694)","v":""},null,null,{"$f":"'1. Ordersheet'!AR694","v":0},{"$f":"IF('1. Ordersheet'!AE694=\"\",\"\",'1. Ordersheet'!AE694)","v":""}]
[{"$f":"IF('1. Ordersheet'!B695=\"\",\"\",'1. Ordersheet'!B695)","v":""},{"$f":"IF('1. Ordersheet'!I695=\"\",\"\",'1. Ordersheet'!I695)","v":""},{"$f":"IF('1. Ordersheet'!J695=\"\",\"\",'1. Ordersheet'!J695)","v":""},{"$f":"IF('1. Ordersheet'!K695=\"\",\"\",'1. Ordersheet'!K695)","v":""},{"$f":"IF('1. Ordersheet'!M695=\"\",\"\",'1. Ordersheet'!M695)","v":""},null,null,{"$f":"'1. Ordersheet'!AR695","v":0},{"$f":"IF('1. Ordersheet'!AE695=\"\",\"\",'1. Ordersheet'!AE695)","v":""}]
[{"$f":"IF('1. Ordersheet'!B696=\"\",\"\",'1. Ordersheet'!B696)","v":""},{"$f":"IF('1. Ordersheet'!I696=\"\",\"\",'1. Ordersheet'!I696)","v":""},{"$f":"IF('1. Ordersheet'!J696=\"\",\"\",'1. Ordersheet'!J696)","v":""},{"$f":"IF('1. Ordersheet'!K696=\"\",\"\",'1. Ordersheet'!K696)","v":""},{"$f":"IF('1. Ordersheet'!M696=\"\",\"\",'1. Ordersheet'!M696)","v":""},null,null,{"$f":"'1. Ordersheet'!AR696","v":0},{"$f":"IF('1. Ordersheet'!AE696=\"\",\"\",'1. Ordersheet'!AE696)","v":""}]
[{"$f":"IF('1. Ordersheet'!B697=\"\",\"\",'1. Ordersheet'!B697)","v":""},{"$f":"IF('1. Ordersheet'!I697=\"\",\"\",'1. Ordersheet'!I697)","v":""},{"$f":"IF('1. Ordersheet'!J697=\"\",\"\",'1. Ordersheet'!J697)","v":""},{"$f":"IF('1. Ordersheet'!K697=\"\",\"\",'1. Ordersheet'!K697)","v":""},{"$f":"IF('1. Ordersheet'!M697=\"\",\"\",'1. Ordersheet'!M697)","v":""},null,null,{"$f":"'1. Ordersheet'!AR697","v":0},{"$f":"IF('1. Ordersheet'!AE697=\"\",\"\",'1. Ordersheet'!AE697)","v":""}]
[{"$f":"IF('1. Ordersheet'!B698=\"\",\"\",'1. Ordersheet'!B698)","v":""},{"$f":"IF('1. Ordersheet'!I698=\"\",\"\",'1. Ordersheet'!I698)","v":""},{"$f":"IF('1. Ordersheet'!J698=\"\",\"\",'1. Ordersheet'!J698)","v":""},{"$f":"IF('1. Ordersheet'!K698=\"\",\"\",'1. Ordersheet'!K698)","v":""},{"$f":"IF('1. Ordersheet'!M698=\"\",\"\",'1. Ordersheet'!M698)","v":""},null,null,{"$f":"'1. Ordersheet'!AR698","v":0},{"$f":"IF('1. Ordersheet'!AE698=\"\",\"\",'1. Ordersheet'!AE698)","v":""}]
[{"$f":"IF('1. Ordersheet'!B699=\"\",\"\",'1. Ordersheet'!B699)","v":""},{"$f":"IF('1. Ordersheet'!I699=\"\",\"\",'1. Ordersheet'!I699)","v":""},{"$f":"IF('1. Ordersheet'!J699=\"\",\"\",'1. Ordersheet'!J699)","v":""},{"$f":"IF('1. Ordersheet'!K699=\"\",\"\",'1. Ordersheet'!K699)","v":""},{"$f":"IF('1. Ordersheet'!M699=\"\",\"\",'1. Ordersheet'!M699)","v":""},null,null,{"$f":"'1. Ordersheet'!AR699","v":0},{"$f":"IF('1. Ordersheet'!AE699=\"\",\"\",'1. Ordersheet'!AE699)","v":""}]
[{"$f":"IF('1. Ordersheet'!B700=\"\",\"\",'1. Ordersheet'!B700)","v":""},{"$f":"IF('1. Ordersheet'!I700=\"\",\"\",'1. Ordersheet'!I700)","v":""},{"$f":"IF('1. Ordersheet'!J700=\"\",\"\",'1. Ordersheet'!J700)","v":""},{"$f":"IF('1. Ordersheet'!K700=\"\",\"\",'1. Ordersheet'!K700)","v":""},{"$f":"IF('1. Ordersheet'!M700=\"\",\"\",'1. Ordersheet'!M700)","v":""},null,null,{"$f":"'1. Ordersheet'!AR700","v":0},{"$f":"IF('1. Ordersheet'!AE700=\"\",\"\",'1. Ordersheet'!AE700)","v":""}]
[{"$f":"IF('1. Ordersheet'!B701=\"\",\"\",'1. Ordersheet'!B701)","v":""},{"$f":"IF('1. Ordersheet'!I701=\"\",\"\",'1. Ordersheet'!I701)","v":""},{"$f":"IF('1. Ordersheet'!J701=\"\",\"\",'1. Ordersheet'!J701)","v":""},{"$f":"IF('1. Ordersheet'!K701=\"\",\"\",'1. Ordersheet'!K701)","v":""},{"$f":"IF('1. Ordersheet'!M701=\"\",\"\",'1. Ordersheet'!M701)","v":""},null,null,{"$f":"'1. Ordersheet'!AR701","v":0},{"$f":"IF('1. Ordersheet'!AE701=\"\",\"\",'1. Ordersheet'!AE701)","v":""}]
[{"$f":"IF('1. Ordersheet'!B702=\"\",\"\",'1. Ordersheet'!B702)","v":""},{"$f":"IF('1. Ordersheet'!I702=\"\",\"\",'1. Ordersheet'!I702)","v":""},{"$f":"IF('1. Ordersheet'!J702=\"\",\"\",'1. Ordersheet'!J702)","v":""},{"$f":"IF('1. Ordersheet'!K702=\"\",\"\",'1. Ordersheet'!K702)","v":""},{"$f":"IF('1. Ordersheet'!M702=\"\",\"\",'1. Ordersheet'!M702)","v":""},null,null,{"$f":"'1. Ordersheet'!AR702","v":0},{"$f":"IF('1. Ordersheet'!AE702=\"\",\"\",'1. Ordersheet'!AE702)","v":""}]
[{"$f":"IF('1. Ordersheet'!B703=\"\",\"\",'1. Ordersheet'!B703)","v":""},{"$f":"IF('1. Ordersheet'!I703=\"\",\"\",'1. Ordersheet'!I703)","v":""},{"$f":"IF('1. Ordersheet'!J703=\"\",\"\",'1. Ordersheet'!J703)","v":""},{"$f":"IF('1. Ordersheet'!K703=\"\",\"\",'1. Ordersheet'!K703)","v":""},{"$f":"IF('1. Ordersheet'!M703=\"\",\"\",'1. Ordersheet'!M703)","v":""},null,null,{"$f":"'1. Ordersheet'!AR703","v":0},{"$f":"IF('1. Ordersheet'!AE703=\"\",\"\",'1. Ordersheet'!AE703)","v":""}]
[{"$f":"IF('1. Ordersheet'!B704=\"\",\"\",'1. Ordersheet'!B704)","v":""},{"$f":"IF('1. Ordersheet'!I704=\"\",\"\",'1. Ordersheet'!I704)","v":""},{"$f":"IF('1. Ordersheet'!J704=\"\",\"\",'1. Ordersheet'!J704)","v":""},{"$f":"IF('1. Ordersheet'!K704=\"\",\"\",'1. Ordersheet'!K704)","v":""},{"$f":"IF('1. Ordersheet'!M704=\"\",\"\",'1. Ordersheet'!M704)","v":""},null,null,{"$f":"'1. Ordersheet'!AR704","v":0},{"$f":"IF('1. Ordersheet'!AE704=\"\",\"\",'1. Ordersheet'!AE704)","v":""}]
[{"$f":"IF('1. Ordersheet'!B705=\"\",\"\",'1. Ordersheet'!B705)","v":""},{"$f":"IF('1. Ordersheet'!I705=\"\",\"\",'1. Ordersheet'!I705)","v":""},{"$f":"IF('1. Ordersheet'!J705=\"\",\"\",'1. Ordersheet'!J705)","v":""},{"$f":"IF('1. Ordersheet'!K705=\"\",\"\",'1. Ordersheet'!K705)","v":""},{"$f":"IF('1. Ordersheet'!M705=\"\",\"\",'1. Ordersheet'!M705)","v":""},null,null,{"$f":"'1. Ordersheet'!AR705","v":0},{"$f":"IF('1. Ordersheet'!AE705=\"\",\"\",'1. Ordersheet'!AE705)","v":""}]
[{"$f":"IF('1. Ordersheet'!B706=\"\",\"\",'1. Ordersheet'!B706)","v":""},{"$f":"IF('1. Ordersheet'!I706=\"\",\"\",'1. Ordersheet'!I706)","v":""},{"$f":"IF('1. Ordersheet'!J706=\"\",\"\",'1. Ordersheet'!J706)","v":""},{"$f":"IF('1. Ordersheet'!K706=\"\",\"\",'1. Ordersheet'!K706)","v":""},{"$f":"IF('1. Ordersheet'!M706=\"\",\"\",'1. Ordersheet'!M706)","v":""},null,null,{"$f":"'1. Ordersheet'!AR706","v":0},{"$f":"IF('1. Ordersheet'!AE706=\"\",\"\",'1. Ordersheet'!AE706)","v":""}]
[{"$f":"IF('1. Ordersheet'!B707=\"\",\"\",'1. Ordersheet'!B707)","v":""},{"$f":"IF('1. Ordersheet'!I707=\"\",\"\",'1. Ordersheet'!I707)","v":""},{"$f":"IF('1. Ordersheet'!J707=\"\",\"\",'1. Ordersheet'!J707)","v":""},{"$f":"IF('1. Ordersheet'!K707=\"\",\"\",'1. Ordersheet'!K707)","v":""},{"$f":"IF('1. Ordersheet'!M707=\"\",\"\",'1. Ordersheet'!M707)","v":""},null,null,{"$f":"'1. Ordersheet'!AR707","v":0},{"$f":"IF('1. Ordersheet'!AE707=\"\",\"\",'1. Ordersheet'!AE707)","v":""}]
[{"$f":"IF('1. Ordersheet'!B708=\"\",\"\",'1. Ordersheet'!B708)","v":""},{"$f":"IF('1. Ordersheet'!I708=\"\",\"\",'1. Ordersheet'!I708)","v":""},{"$f":"IF('1. Ordersheet'!J708=\"\",\"\",'1. Ordersheet'!J708)","v":""},{"$f":"IF('1. Ordersheet'!K708=\"\",\"\",'1. Ordersheet'!K708)","v":""},{"$f":"IF('1. Ordersheet'!M708=\"\",\"\",'1. Ordersheet'!M708)","v":""},null,null,{"$f":"'1. Ordersheet'!AR708","v":0},{"$f":"IF('1. Ordersheet'!AE708=\"\",\"\",'1. Ordersheet'!AE708)","v":""}]
[{"$f":"IF('1. Ordersheet'!B709=\"\",\"\",'1. Ordersheet'!B709)","v":""},{"$f":"IF('1. Ordersheet'!I709=\"\",\"\",'1. Ordersheet'!I709)","v":""},{"$f":"IF('1. Ordersheet'!J709=\"\",\"\",'1. Ordersheet'!J709)","v":""},{"$f":"IF('1. Ordersheet'!K709=\"\",\"\",'1. Ordersheet'!K709)","v":""},{"$f":"IF('1. Ordersheet'!M709=\"\",\"\",'1. Ordersheet'!M709)","v":""},null,null,{"$f":"'1. Ordersheet'!AR709","v":0},{"$f":"IF('1. Ordersheet'!AE709=\"\",\"\",'1. Ordersheet'!AE709)","v":""}]
[{"$f":"IF('1. Ordersheet'!B710=\"\",\"\",'1. Ordersheet'!B710)","v":""},{"$f":"IF('1. Ordersheet'!I710=\"\",\"\",'1. Ordersheet'!I710)","v":""},{"$f":"IF('1. Ordersheet'!J710=\"\",\"\",'1. Ordersheet'!J710)","v":""},{"$f":"IF('1. Ordersheet'!K710=\"\",\"\",'1. Ordersheet'!K710)","v":""},{"$f":"IF('1. Ordersheet'!M710=\"\",\"\",'1. Ordersheet'!M710)","v":""},null,null,{"$f":"'1. Ordersheet'!AR710","v":0},{"$f":"IF('1. Ordersheet'!AE710=\"\",\"\",'1. Ordersheet'!AE710)","v":""}]
[{"$f":"IF('1. Ordersheet'!B711=\"\",\"\",'1. Ordersheet'!B711)","v":""},{"$f":"IF('1. Ordersheet'!I711=\"\",\"\",'1. Ordersheet'!I711)","v":""},{"$f":"IF('1. Ordersheet'!J711=\"\",\"\",'1. Ordersheet'!J711)","v":""},{"$f":"IF('1. Ordersheet'!K711=\"\",\"\",'1. Ordersheet'!K711)","v":""},{"$f":"IF('1. Ordersheet'!M711=\"\",\"\",'1. Ordersheet'!M711)","v":""},null,null,{"$f":"'1. Ordersheet'!AR711","v":0},{"$f":"IF('1. Ordersheet'!AE711=\"\",\"\",'1. Ordersheet'!AE711)","v":""}]
[{"$f":"IF('1. Ordersheet'!B712=\"\",\"\",'1. Ordersheet'!B712)","v":""},{"$f":"IF('1. Ordersheet'!I712=\"\",\"\",'1. Ordersheet'!I712)","v":""},{"$f":"IF('1. Ordersheet'!J712=\"\",\"\",'1. Ordersheet'!J712)","v":""},{"$f":"IF('1. Ordersheet'!K712=\"\",\"\",'1. Ordersheet'!K712)","v":""},{"$f":"IF('1. Ordersheet'!M712=\"\",\"\",'1. Ordersheet'!M712)","v":""},null,null,{"$f":"'1. Ordersheet'!AR712","v":0},{"$f":"IF('1. Ordersheet'!AE712=\"\",\"\",'1. Ordersheet'!AE712)","v":""}]
[{"$f":"IF('1. Ordersheet'!B713=\"\",\"\",'1. Ordersheet'!B713)","v":""},{"$f":"IF('1. Ordersheet'!I713=\"\",\"\",'1. Ordersheet'!I713)","v":""},{"$f":"IF('1. Ordersheet'!J713=\"\",\"\",'1. Ordersheet'!J713)","v":""},{"$f":"IF('1. Ordersheet'!K713=\"\",\"\",'1. Ordersheet'!K713)","v":""},{"$f":"IF('1. Ordersheet'!M713=\"\",\"\",'1. Ordersheet'!M713)","v":""},null,null,{"$f":"'1. Ordersheet'!AR713","v":0},{"$f":"IF('1. Ordersheet'!AE713=\"\",\"\",'1. Ordersheet'!AE713)","v":""}]
[{"$f":"IF('1. Ordersheet'!B714=\"\",\"\",'1. Ordersheet'!B714)","v":""},{"$f":"IF('1. Ordersheet'!I714=\"\",\"\",'1. Ordersheet'!I714)","v":""},{"$f":"IF('1. Ordersheet'!J714=\"\",\"\",'1. Ordersheet'!J714)","v":""},{"$f":"IF('1. Ordersheet'!K714=\"\",\"\",'1. Ordersheet'!K714)","v":""},{"$f":"IF('1. Ordersheet'!M714=\"\",\"\",'1. Ordersheet'!M714)","v":""},null,null,{"$f":"'1. Ordersheet'!AR714","v":0},{"$f":"IF('1. Ordersheet'!AE714=\"\",\"\",'1. Ordersheet'!AE714)","v":""}]
[{"$f":"IF('1. Ordersheet'!B715=\"\",\"\",'1. Ordersheet'!B715)","v":""},{"$f":"IF('1. Ordersheet'!I715=\"\",\"\",'1. Ordersheet'!I715)","v":""},{"$f":"IF('1. Ordersheet'!J715=\"\",\"\",'1. Ordersheet'!J715)","v":""},{"$f":"IF('1. Ordersheet'!K715=\"\",\"\",'1. Ordersheet'!K715)","v":""},{"$f":"IF('1. Ordersheet'!M715=\"\",\"\",'1. Ordersheet'!M715)","v":""},null,null,{"$f":"'1. Ordersheet'!AR715","v":0},{"$f":"IF('1. Ordersheet'!AE715=\"\",\"\",'1. Ordersheet'!AE715)","v":""}]
[{"$f":"IF('1. Ordersheet'!B716=\"\",\"\",'1. Ordersheet'!B716)","v":""},{"$f":"IF('1. Ordersheet'!I716=\"\",\"\",'1. Ordersheet'!I716)","v":""},{"$f":"IF('1. Ordersheet'!J716=\"\",\"\",'1. Ordersheet'!J716)","v":""},{"$f":"IF('1. Ordersheet'!K716=\"\",\"\",'1. Ordersheet'!K716)","v":""},{"$f":"IF('1. Ordersheet'!M716=\"\",\"\",'1. Ordersheet'!M716)","v":""},null,null,{"$f":"'1. Ordersheet'!AR716","v":0},{"$f":"IF('1. Ordersheet'!AE716=\"\",\"\",'1. Ordersheet'!AE716)","v":""}]
[{"$f":"IF('1. Ordersheet'!B717=\"\",\"\",'1. Ordersheet'!B717)","v":""},{"$f":"IF('1. Ordersheet'!I717=\"\",\"\",'1. Ordersheet'!I717)","v":""},{"$f":"IF('1. Ordersheet'!J717=\"\",\"\",'1. Ordersheet'!J717)","v":""},{"$f":"IF('1. Ordersheet'!K717=\"\",\"\",'1. Ordersheet'!K717)","v":""},{"$f":"IF('1. Ordersheet'!M717=\"\",\"\",'1. Ordersheet'!M717)","v":""},null,null,{"$f":"'1. Ordersheet'!AR717","v":0},{"$f":"IF('1. Ordersheet'!AE717=\"\",\"\",'1. Ordersheet'!AE717)","v":""}]
[{"$f":"IF('1. Ordersheet'!B718=\"\",\"\",'1. Ordersheet'!B718)","v":""},{"$f":"IF('1. Ordersheet'!I718=\"\",\"\",'1. Ordersheet'!I718)","v":""},{"$f":"IF('1. Ordersheet'!J718=\"\",\"\",'1. Ordersheet'!J718)","v":""},{"$f":"IF('1. Ordersheet'!K718=\"\",\"\",'1. Ordersheet'!K718)","v":""},{"$f":"IF('1. Ordersheet'!M718=\"\",\"\",'1. Ordersheet'!M718)","v":""},null,null,{"$f":"'1. Ordersheet'!AR718","v":0},{"$f":"IF('1. Ordersheet'!AE718=\"\",\"\",'1. Ordersheet'!AE718)","v":""}]
[{"$f":"IF('1. Ordersheet'!B719=\"\",\"\",'1. Ordersheet'!B719)","v":""},{"$f":"IF('1. Ordersheet'!I719=\"\",\"\",'1. Ordersheet'!I719)","v":""},{"$f":"IF('1. Ordersheet'!J719=\"\",\"\",'1. Ordersheet'!J719)","v":""},{"$f":"IF('1. Ordersheet'!K719=\"\",\"\",'1. Ordersheet'!K719)","v":""},{"$f":"IF('1. Ordersheet'!M719=\"\",\"\",'1. Ordersheet'!M719)","v":""},null,null,{"$f":"'1. Ordersheet'!AR719","v":0},{"$f":"IF('1. Ordersheet'!AE719=\"\",\"\",'1. Ordersheet'!AE719)","v":""}]
[{"$f":"IF('1. Ordersheet'!B720=\"\",\"\",'1. Ordersheet'!B720)","v":""},{"$f":"IF('1. Ordersheet'!I720=\"\",\"\",'1. Ordersheet'!I720)","v":""},{"$f":"IF('1. Ordersheet'!J720=\"\",\"\",'1. Ordersheet'!J720)","v":""},{"$f":"IF('1. Ordersheet'!K720=\"\",\"\",'1. Ordersheet'!K720)","v":""},{"$f":"IF('1. Ordersheet'!M720=\"\",\"\",'1. Ordersheet'!M720)","v":""},null,null,{"$f":"'1. Ordersheet'!AR720","v":0},{"$f":"IF('1. Ordersheet'!AE720=\"\",\"\",'1. Ordersheet'!AE720)","v":""}]
[{"$f":"IF('1. Ordersheet'!B721=\"\",\"\",'1. Ordersheet'!B721)","v":""},{"$f":"IF('1. Ordersheet'!I721=\"\",\"\",'1. Ordersheet'!I721)","v":""},{"$f":"IF('1. Ordersheet'!J721=\"\",\"\",'1. Ordersheet'!J721)","v":""},{"$f":"IF('1. Ordersheet'!K721=\"\",\"\",'1. Ordersheet'!K721)","v":""},{"$f":"IF('1. Ordersheet'!M721=\"\",\"\",'1. Ordersheet'!M721)","v":""},null,null,{"$f":"'1. Ordersheet'!AR721","v":0},{"$f":"IF('1. Ordersheet'!AE721=\"\",\"\",'1. Ordersheet'!AE721)","v":""}]
[{"$f":"IF('1. Ordersheet'!B722=\"\",\"\",'1. Ordersheet'!B722)","v":""},{"$f":"IF('1. Ordersheet'!I722=\"\",\"\",'1. Ordersheet'!I722)","v":""},{"$f":"IF('1. Ordersheet'!J722=\"\",\"\",'1. Ordersheet'!J722)","v":""},{"$f":"IF('1. Ordersheet'!K722=\"\",\"\",'1. Ordersheet'!K722)","v":""},{"$f":"IF('1. Ordersheet'!M722=\"\",\"\",'1. Ordersheet'!M722)","v":""},null,null,{"$f":"'1. Ordersheet'!AR722","v":0},{"$f":"IF('1. Ordersheet'!AE722=\"\",\"\",'1. Ordersheet'!AE722)","v":""}]
[{"$f":"IF('1. Ordersheet'!B723=\"\",\"\",'1. Ordersheet'!B723)","v":""},{"$f":"IF('1. Ordersheet'!I723=\"\",\"\",'1. Ordersheet'!I723)","v":""},{"$f":"IF('1. Ordersheet'!J723=\"\",\"\",'1. Ordersheet'!J723)","v":""},{"$f":"IF('1. Ordersheet'!K723=\"\",\"\",'1. Ordersheet'!K723)","v":""},{"$f":"IF('1. Ordersheet'!M723=\"\",\"\",'1. Ordersheet'!M723)","v":""},null,null,{"$f":"'1. Ordersheet'!AR723","v":0},{"$f":"IF('1. Ordersheet'!AE723=\"\",\"\",'1. Ordersheet'!AE723)","v":""}]
[{"$f":"IF('1. Ordersheet'!B724=\"\",\"\",'1. Ordersheet'!B724)","v":""},{"$f":"IF('1. Ordersheet'!I724=\"\",\"\",'1. Ordersheet'!I724)","v":""},{"$f":"IF('1. Ordersheet'!J724=\"\",\"\",'1. Ordersheet'!J724)","v":""},{"$f":"IF('1. Ordersheet'!K724=\"\",\"\",'1. Ordersheet'!K724)","v":""},{"$f":"IF('1. Ordersheet'!M724=\"\",\"\",'1. Ordersheet'!M724)","v":""},null,null,{"$f":"'1. Ordersheet'!AR724","v":0},{"$f":"IF('1. Ordersheet'!AE724=\"\",\"\",'1. Ordersheet'!AE724)","v":""}]
[{"$f":"IF('1. Ordersheet'!B725=\"\",\"\",'1. Ordersheet'!B725)","v":""},{"$f":"IF('1. Ordersheet'!I725=\"\",\"\",'1. Ordersheet'!I725)","v":""},{"$f":"IF('1. Ordersheet'!J725=\"\",\"\",'1. Ordersheet'!J725)","v":""},{"$f":"IF('1. Ordersheet'!K725=\"\",\"\",'1. Ordersheet'!K725)","v":""},{"$f":"IF('1. Ordersheet'!M725=\"\",\"\",'1. Ordersheet'!M725)","v":""},null,null,{"$f":"'1. Ordersheet'!AR725","v":0},{"$f":"IF('1. Ordersheet'!AE725=\"\",\"\",'1. Ordersheet'!AE725)","v":""}]
[{"$f":"IF('1. Ordersheet'!B726=\"\",\"\",'1. Ordersheet'!B726)","v":""},{"$f":"IF('1. Ordersheet'!I726=\"\",\"\",'1. Ordersheet'!I726)","v":""},{"$f":"IF('1. Ordersheet'!J726=\"\",\"\",'1. Ordersheet'!J726)","v":""},{"$f":"IF('1. Ordersheet'!K726=\"\",\"\",'1. Ordersheet'!K726)","v":""},{"$f":"IF('1. Ordersheet'!M726=\"\",\"\",'1. Ordersheet'!M726)","v":""},null,null,{"$f":"'1. Ordersheet'!AR726","v":0},{"$f":"IF('1. Ordersheet'!AE726=\"\",\"\",'1. Ordersheet'!AE726)","v":""}]
[{"$f":"IF('1. Ordersheet'!B727=\"\",\"\",'1. Ordersheet'!B727)","v":""},{"$f":"IF('1. Ordersheet'!I727=\"\",\"\",'1. Ordersheet'!I727)","v":""},{"$f":"IF('1. Ordersheet'!J727=\"\",\"\",'1. Ordersheet'!J727)","v":""},{"$f":"IF('1. Ordersheet'!K727=\"\",\"\",'1. Ordersheet'!K727)","v":""},{"$f":"IF('1. Ordersheet'!M727=\"\",\"\",'1. Ordersheet'!M727)","v":""},null,null,{"$f":"'1. Ordersheet'!AR727","v":0},{"$f":"IF('1. Ordersheet'!AE727=\"\",\"\",'1. Ordersheet'!AE727)","v":""}]
[{"$f":"IF('1. Ordersheet'!B728=\"\",\"\",'1. Ordersheet'!B728)","v":""},{"$f":"IF('1. Ordersheet'!I728=\"\",\"\",'1. Ordersheet'!I728)","v":""},{"$f":"IF('1. Ordersheet'!J728=\"\",\"\",'1. Ordersheet'!J728)","v":""},{"$f":"IF('1. Ordersheet'!K728=\"\",\"\",'1. Ordersheet'!K728)","v":""},{"$f":"IF('1. Ordersheet'!M728=\"\",\"\",'1. Ordersheet'!M728)","v":""},null,null,{"$f":"'1. Ordersheet'!AR728","v":0},{"$f":"IF('1. Ordersheet'!AE728=\"\",\"\",'1. Ordersheet'!AE728)","v":""}]
[{"$f":"IF('1. Ordersheet'!B729=\"\",\"\",'1. Ordersheet'!B729)","v":""},{"$f":"IF('1. Ordersheet'!I729=\"\",\"\",'1. Ordersheet'!I729)","v":""},{"$f":"IF('1. Ordersheet'!J729=\"\",\"\",'1. Ordersheet'!J729)","v":""},{"$f":"IF('1. Ordersheet'!K729=\"\",\"\",'1. Ordersheet'!K729)","v":""},{"$f":"IF('1. Ordersheet'!M729=\"\",\"\",'1. Ordersheet'!M729)","v":""},null,null,{"$f":"'1. Ordersheet'!AR729","v":0},{"$f":"IF('1. Ordersheet'!AE729=\"\",\"\",'1. Ordersheet'!AE729)","v":""}]
[{"$f":"IF('1. Ordersheet'!B730=\"\",\"\",'1. Ordersheet'!B730)","v":""},{"$f":"IF('1. Ordersheet'!I730=\"\",\"\",'1. Ordersheet'!I730)","v":""},{"$f":"IF('1. Ordersheet'!J730=\"\",\"\",'1. Ordersheet'!J730)","v":""},{"$f":"IF('1. Ordersheet'!K730=\"\",\"\",'1. Ordersheet'!K730)","v":""},{"$f":"IF('1. Ordersheet'!M730=\"\",\"\",'1. Ordersheet'!M730)","v":""},null,null,{"$f":"'1. Ordersheet'!AR730","v":0},{"$f":"IF('1. Ordersheet'!AE730=\"\",\"\",'1. Ordersheet'!AE730)","v":""}]
[{"$f":"IF('1. Ordersheet'!B731=\"\",\"\",'1. Ordersheet'!B731)","v":""},{"$f":"IF('1. Ordersheet'!I731=\"\",\"\",'1. Ordersheet'!I731)","v":""},{"$f":"IF('1. Ordersheet'!J731=\"\",\"\",'1. Ordersheet'!J731)","v":""},{"$f":"IF('1. Ordersheet'!K731=\"\",\"\",'1. Ordersheet'!K731)","v":""},{"$f":"IF('1. Ordersheet'!M731=\"\",\"\",'1. Ordersheet'!M731)","v":""},null,null,{"$f":"'1. Ordersheet'!AR731","v":0},{"$f":"IF('1. Ordersheet'!AE731=\"\",\"\",'1. Ordersheet'!AE731)","v":""}]
[{"$f":"IF('1. Ordersheet'!B732=\"\",\"\",'1. Ordersheet'!B732)","v":""},{"$f":"IF('1. Ordersheet'!I732=\"\",\"\",'1. Ordersheet'!I732)","v":""},{"$f":"IF('1. Ordersheet'!J732=\"\",\"\",'1. Ordersheet'!J732)","v":""},{"$f":"IF('1. Ordersheet'!K732=\"\",\"\",'1. Ordersheet'!K732)","v":""},{"$f":"IF('1. Ordersheet'!M732=\"\",\"\",'1. Ordersheet'!M732)","v":""},null,null,{"$f":"'1. Ordersheet'!AR732","v":0},{"$f":"IF('1. Ordersheet'!AE732=\"\",\"\",'1. Ordersheet'!AE732)","v":""}]
[{"$f":"IF('1. Ordersheet'!B733=\"\",\"\",'1. Ordersheet'!B733)","v":""},{"$f":"IF('1. Ordersheet'!I733=\"\",\"\",'1. Ordersheet'!I733)","v":""},{"$f":"IF('1. Ordersheet'!J733=\"\",\"\",'1. Ordersheet'!J733)","v":""},{"$f":"IF('1. Ordersheet'!K733=\"\",\"\",'1. Ordersheet'!K733)","v":""},{"$f":"IF('1. Ordersheet'!M733=\"\",\"\",'1. Ordersheet'!M733)","v":""},null,null,{"$f":"'1. Ordersheet'!AR733","v":0},{"$f":"IF('1. Ordersheet'!AE733=\"\",\"\",'1. Ordersheet'!AE733)","v":""}]
[{"$f":"IF('1. Ordersheet'!B734=\"\",\"\",'1. Ordersheet'!B734)","v":""},{"$f":"IF('1. Ordersheet'!I734=\"\",\"\",'1. Ordersheet'!I734)","v":""},{"$f":"IF('1. Ordersheet'!J734=\"\",\"\",'1. Ordersheet'!J734)","v":""},{"$f":"IF('1. Ordersheet'!K734=\"\",\"\",'1. Ordersheet'!K734)","v":""},{"$f":"IF('1. Ordersheet'!M734=\"\",\"\",'1. Ordersheet'!M734)","v":""},null,null,{"$f":"'1. Ordersheet'!AR734","v":0},{"$f":"IF('1. Ordersheet'!AE734=\"\",\"\",'1. Ordersheet'!AE734)","v":""}]
[{"$f":"IF('1. Ordersheet'!B735=\"\",\"\",'1. Ordersheet'!B735)","v":""},{"$f":"IF('1. Ordersheet'!I735=\"\",\"\",'1. Ordersheet'!I735)","v":""},{"$f":"IF('1. Ordersheet'!J735=\"\",\"\",'1. Ordersheet'!J735)","v":""},{"$f":"IF('1. Ordersheet'!K735=\"\",\"\",'1. Ordersheet'!K735)","v":""},{"$f":"IF('1. Ordersheet'!M735=\"\",\"\",'1. Ordersheet'!M735)","v":""},null,null,{"$f":"'1. Ordersheet'!AR735","v":0},{"$f":"IF('1. Ordersheet'!AE735=\"\",\"\",'1. Ordersheet'!AE735)","v":""}]
[{"$f":"IF('1. Ordersheet'!B736=\"\",\"\",'1. Ordersheet'!B736)","v":""},{"$f":"IF('1. Ordersheet'!I736=\"\",\"\",'1. Ordersheet'!I736)","v":""},{"$f":"IF('1. Ordersheet'!J736=\"\",\"\",'1. Ordersheet'!J736)","v":""},{"$f":"IF('1. Ordersheet'!K736=\"\",\"\",'1. Ordersheet'!K736)","v":""},{"$f":"IF('1. Ordersheet'!M736=\"\",\"\",'1. Ordersheet'!M736)","v":""},null,null,{"$f":"'1. Ordersheet'!AR736","v":0},{"$f":"IF('1. Ordersheet'!AE736=\"\",\"\",'1. Ordersheet'!AE736)","v":""}]
[{"$f":"IF('1. Ordersheet'!B737=\"\",\"\",'1. Ordersheet'!B737)","v":""},{"$f":"IF('1. Ordersheet'!I737=\"\",\"\",'1. Ordersheet'!I737)","v":""},{"$f":"IF('1. Ordersheet'!J737=\"\",\"\",'1. Ordersheet'!J737)","v":""},{"$f":"IF('1. Ordersheet'!K737=\"\",\"\",'1. Ordersheet'!K737)","v":""},{"$f":"IF('1. Ordersheet'!M737=\"\",\"\",'1. Ordersheet'!M737)","v":""},null,null,{"$f":"'1. Ordersheet'!AR737","v":0},{"$f":"IF('1. Ordersheet'!AE737=\"\",\"\",'1. Ordersheet'!AE737)","v":""}]
[{"$f":"IF('1. Ordersheet'!B738=\"\",\"\",'1. Ordersheet'!B738)","v":""},{"$f":"IF('1. Ordersheet'!I738=\"\",\"\",'1. Ordersheet'!I738)","v":""},{"$f":"IF('1. Ordersheet'!J738=\"\",\"\",'1. Ordersheet'!J738)","v":""},{"$f":"IF('1. Ordersheet'!K738=\"\",\"\",'1. Ordersheet'!K738)","v":""},{"$f":"IF('1. Ordersheet'!M738=\"\",\"\",'1. Ordersheet'!M738)","v":""},null,null,{"$f":"'1. Ordersheet'!AR738","v":0},{"$f":"IF('1. Ordersheet'!AE738=\"\",\"\",'1. Ordersheet'!AE738)","v":""}]
[{"$f":"IF('1. Ordersheet'!B739=\"\",\"\",'1. Ordersheet'!B739)","v":""},{"$f":"IF('1. Ordersheet'!I739=\"\",\"\",'1. Ordersheet'!I739)","v":""},{"$f":"IF('1. Ordersheet'!J739=\"\",\"\",'1. Ordersheet'!J739)","v":""},{"$f":"IF('1. Ordersheet'!K739=\"\",\"\",'1. Ordersheet'!K739)","v":""},{"$f":"IF('1. Ordersheet'!M739=\"\",\"\",'1. Ordersheet'!M739)","v":""},null,null,{"$f":"'1. Ordersheet'!AR739","v":0},{"$f":"IF('1. Ordersheet'!AE739=\"\",\"\",'1. Ordersheet'!AE739)","v":""}]
[{"$f":"IF('1. Ordersheet'!B740=\"\",\"\",'1. Ordersheet'!B740)","v":""},{"$f":"IF('1. Ordersheet'!I740=\"\",\"\",'1. Ordersheet'!I740)","v":""},{"$f":"IF('1. Ordersheet'!J740=\"\",\"\",'1. Ordersheet'!J740)","v":""},{"$f":"IF('1. Ordersheet'!K740=\"\",\"\",'1. Ordersheet'!K740)","v":""},{"$f":"IF('1. Ordersheet'!M740=\"\",\"\",'1. Ordersheet'!M740)","v":""},null,null,{"$f":"'1. Ordersheet'!AR740","v":0},{"$f":"IF('1. Ordersheet'!AE740=\"\",\"\",'1. Ordersheet'!AE740)","v":""}]
[{"$f":"IF('1. Ordersheet'!B741=\"\",\"\",'1. Ordersheet'!B741)","v":""},{"$f":"IF('1. Ordersheet'!I741=\"\",\"\",'1. Ordersheet'!I741)","v":""},{"$f":"IF('1. Ordersheet'!J741=\"\",\"\",'1. Ordersheet'!J741)","v":""},{"$f":"IF('1. Ordersheet'!K741=\"\",\"\",'1. Ordersheet'!K741)","v":""},{"$f":"IF('1. Ordersheet'!M741=\"\",\"\",'1. Ordersheet'!M741)","v":""},null,null,{"$f":"'1. Ordersheet'!AR741","v":0},{"$f":"IF('1. Ordersheet'!AE741=\"\",\"\",'1. Ordersheet'!AE741)","v":""}]
[{"$f":"IF('1. Ordersheet'!B742=\"\",\"\",'1. Ordersheet'!B742)","v":""},{"$f":"IF('1. Ordersheet'!I742=\"\",\"\",'1. Ordersheet'!I742)","v":""},{"$f":"IF('1. Ordersheet'!J742=\"\",\"\",'1. Ordersheet'!J742)","v":""},{"$f":"IF('1. Ordersheet'!K742=\"\",\"\",'1. Ordersheet'!K742)","v":""},{"$f":"IF('1. Ordersheet'!M742=\"\",\"\",'1. Ordersheet'!M742)","v":""},null,null,{"$f":"'1. Ordersheet'!AR742","v":0},{"$f":"IF('1. Ordersheet'!AE742=\"\",\"\",'1. Ordersheet'!AE742)","v":""}]
[{"$f":"IF('1. Ordersheet'!B743=\"\",\"\",'1. Ordersheet'!B743)","v":""},{"$f":"IF('1. Ordersheet'!I743=\"\",\"\",'1. Ordersheet'!I743)","v":""},{"$f":"IF('1. Ordersheet'!J743=\"\",\"\",'1. Ordersheet'!J743)","v":""},{"$f":"IF('1. Ordersheet'!K743=\"\",\"\",'1. Ordersheet'!K743)","v":""},{"$f":"IF('1. Ordersheet'!M743=\"\",\"\",'1. Ordersheet'!M743)","v":""},null,null,{"$f":"'1. Ordersheet'!AR743","v":0},{"$f":"IF('1. Ordersheet'!AE743=\"\",\"\",'1. Ordersheet'!AE743)","v":""}]
[{"$f":"IF('1. Ordersheet'!B744=\"\",\"\",'1. Ordersheet'!B744)","v":""},{"$f":"IF('1. Ordersheet'!I744=\"\",\"\",'1. Ordersheet'!I744)","v":""},{"$f":"IF('1. Ordersheet'!J744=\"\",\"\",'1. Ordersheet'!J744)","v":""},{"$f":"IF('1. Ordersheet'!K744=\"\",\"\",'1. Ordersheet'!K744)","v":""},{"$f":"IF('1. Ordersheet'!M744=\"\",\"\",'1. Ordersheet'!M744)","v":""},null,null,{"$f":"'1. Ordersheet'!AR744","v":0},{"$f":"IF('1. Ordersheet'!AE744=\"\",\"\",'1. Ordersheet'!AE744)","v":""}]
[{"$f":"IF('1. Ordersheet'!B745=\"\",\"\",'1. Ordersheet'!B745)","v":""},{"$f":"IF('1. Ordersheet'!I745=\"\",\"\",'1. Ordersheet'!I745)","v":""},{"$f":"IF('1. Ordersheet'!J745=\"\",\"\",'1. Ordersheet'!J745)","v":""},{"$f":"IF('1. Ordersheet'!K745=\"\",\"\",'1. Ordersheet'!K745)","v":""},{"$f":"IF('1. Ordersheet'!M745=\"\",\"\",'1. Ordersheet'!M745)","v":""},null,null,{"$f":"'1. Ordersheet'!AR745","v":0},{"$f":"IF('1. Ordersheet'!AE745=\"\",\"\",'1. Ordersheet'!AE745)","v":""}]
[{"$f":"IF('1. Ordersheet'!B746=\"\",\"\",'1. Ordersheet'!B746)","v":""},{"$f":"IF('1. Ordersheet'!I746=\"\",\"\",'1. Ordersheet'!I746)","v":""},{"$f":"IF('1. Ordersheet'!J746=\"\",\"\",'1. Ordersheet'!J746)","v":""},{"$f":"IF('1. Ordersheet'!K746=\"\",\"\",'1. Ordersheet'!K746)","v":""},{"$f":"IF('1. Ordersheet'!M746=\"\",\"\",'1. Ordersheet'!M746)","v":""},null,null,{"$f":"'1. Ordersheet'!AR746","v":0},{"$f":"IF('1. Ordersheet'!AE746=\"\",\"\",'1. Ordersheet'!AE746)","v":""}]
[{"$f":"IF('1. Ordersheet'!B747=\"\",\"\",'1. Ordersheet'!B747)","v":""},{"$f":"IF('1. Ordersheet'!I747=\"\",\"\",'1. Ordersheet'!I747)","v":""},{"$f":"IF('1. Ordersheet'!J747=\"\",\"\",'1. Ordersheet'!J747)","v":""},{"$f":"IF('1. Ordersheet'!K747=\"\",\"\",'1. Ordersheet'!K747)","v":""},{"$f":"IF('1. Ordersheet'!M747=\"\",\"\",'1. Ordersheet'!M747)","v":""},null,null,{"$f":"'1. Ordersheet'!AR747","v":0},{"$f":"IF('1. Ordersheet'!AE747=\"\",\"\",'1. Ordersheet'!AE747)","v":""}]
[{"$f":"IF('1. Ordersheet'!B748=\"\",\"\",'1. Ordersheet'!B748)","v":""},{"$f":"IF('1. Ordersheet'!I748=\"\",\"\",'1. Ordersheet'!I748)","v":""},{"$f":"IF('1. Ordersheet'!J748=\"\",\"\",'1. Ordersheet'!J748)","v":""},{"$f":"IF('1. Ordersheet'!K748=\"\",\"\",'1. Ordersheet'!K748)","v":""},{"$f":"IF('1. Ordersheet'!M748=\"\",\"\",'1. Ordersheet'!M748)","v":""},null,null,{"$f":"'1. Ordersheet'!AR748","v":0},{"$f":"IF('1. Ordersheet'!AE748=\"\",\"\",'1. Ordersheet'!AE748)","v":""}]
[{"$f":"IF('1. Ordersheet'!B749=\"\",\"\",'1. Ordersheet'!B749)","v":""},{"$f":"IF('1. Ordersheet'!I749=\"\",\"\",'1. Ordersheet'!I749)","v":""},{"$f":"IF('1. Ordersheet'!J749=\"\",\"\",'1. Ordersheet'!J749)","v":""},{"$f":"IF('1. Ordersheet'!K749=\"\",\"\",'1. Ordersheet'!K749)","v":""},{"$f":"IF('1. Ordersheet'!M749=\"\",\"\",'1. Ordersheet'!M749)","v":""},null,null,{"$f":"'1. Ordersheet'!AR749","v":0},{"$f":"IF('1. Ordersheet'!AE749=\"\",\"\",'1. Ordersheet'!AE749)","v":""}]
[{"$f":"IF('1. Ordersheet'!B750=\"\",\"\",'1. Ordersheet'!B750)","v":""},{"$f":"IF('1. Ordersheet'!I750=\"\",\"\",'1. Ordersheet'!I750)","v":""},{"$f":"IF('1. Ordersheet'!J750=\"\",\"\",'1. Ordersheet'!J750)","v":""},{"$f":"IF('1. Ordersheet'!K750=\"\",\"\",'1. Ordersheet'!K750)","v":""},{"$f":"IF('1. Ordersheet'!M750=\"\",\"\",'1. Ordersheet'!M750)","v":""},null,null,{"$f":"'1. Ordersheet'!AR750","v":0},{"$f":"IF('1. Ordersheet'!AE750=\"\",\"\",'1. Ordersheet'!AE750)","v":""}]
[{"$f":"IF('1. Ordersheet'!B751=\"\",\"\",'1. Ordersheet'!B751)","v":""},{"$f":"IF('1. Ordersheet'!I751=\"\",\"\",'1. Ordersheet'!I751)","v":""},{"$f":"IF('1. Ordersheet'!J751=\"\",\"\",'1. Ordersheet'!J751)","v":""},{"$f":"IF('1. Ordersheet'!K751=\"\",\"\",'1. Ordersheet'!K751)","v":""},{"$f":"IF('1. Ordersheet'!M751=\"\",\"\",'1. Ordersheet'!M751)","v":""},null,null,{"$f":"'1. Ordersheet'!AR751","v":0},{"$f":"IF('1. Ordersheet'!AE751=\"\",\"\",'1. Ordersheet'!AE751)","v":""}]
[{"$f":"IF('1. Ordersheet'!B752=\"\",\"\",'1. Ordersheet'!B752)","v":""},{"$f":"IF('1. Ordersheet'!I752=\"\",\"\",'1. Ordersheet'!I752)","v":""},{"$f":"IF('1. Ordersheet'!J752=\"\",\"\",'1. Ordersheet'!J752)","v":""},{"$f":"IF('1. Ordersheet'!K752=\"\",\"\",'1. Ordersheet'!K752)","v":""},{"$f":"IF('1. Ordersheet'!M752=\"\",\"\",'1. Ordersheet'!M752)","v":""},null,null,{"$f":"'1. Ordersheet'!AR752","v":0},{"$f":"IF('1. Ordersheet'!AE752=\"\",\"\",'1. Ordersheet'!AE752)","v":""}]
[{"$f":"IF('1. Ordersheet'!B753=\"\",\"\",'1. Ordersheet'!B753)","v":""},{"$f":"IF('1. Ordersheet'!I753=\"\",\"\",'1. Ordersheet'!I753)","v":""},{"$f":"IF('1. Ordersheet'!J753=\"\",\"\",'1. Ordersheet'!J753)","v":""},{"$f":"IF('1. Ordersheet'!K753=\"\",\"\",'1. Ordersheet'!K753)","v":""},{"$f":"IF('1. Ordersheet'!M753=\"\",\"\",'1. Ordersheet'!M753)","v":""},null,null,{"$f":"'1. Ordersheet'!AR753","v":0},{"$f":"IF('1. Ordersheet'!AE753=\"\",\"\",'1. Ordersheet'!AE753)","v":""}]
[{"$f":"IF('1. Ordersheet'!B754=\"\",\"\",'1. Ordersheet'!B754)","v":""},{"$f":"IF('1. Ordersheet'!I754=\"\",\"\",'1. Ordersheet'!I754)","v":""},{"$f":"IF('1. Ordersheet'!J754=\"\",\"\",'1. Ordersheet'!J754)","v":""},{"$f":"IF('1. Ordersheet'!K754=\"\",\"\",'1. Ordersheet'!K754)","v":""},{"$f":"IF('1. Ordersheet'!M754=\"\",\"\",'1. Ordersheet'!M754)","v":""},null,null,{"$f":"'1. Ordersheet'!AR754","v":0},{"$f":"IF('1. Ordersheet'!AE754=\"\",\"\",'1. Ordersheet'!AE754)","v":""}]
[{"$f":"IF('1. Ordersheet'!B755=\"\",\"\",'1. Ordersheet'!B755)","v":""},{"$f":"IF('1. Ordersheet'!I755=\"\",\"\",'1. Ordersheet'!I755)","v":""},{"$f":"IF('1. Ordersheet'!J755=\"\",\"\",'1. Ordersheet'!J755)","v":""},{"$f":"IF('1. Ordersheet'!K755=\"\",\"\",'1. Ordersheet'!K755)","v":""},{"$f":"IF('1. Ordersheet'!M755=\"\",\"\",'1. Ordersheet'!M755)","v":""},null,null,{"$f":"'1. Ordersheet'!AR755","v":0},{"$f":"IF('1. Ordersheet'!AE755=\"\",\"\",'1. Ordersheet'!AE755)","v":""}]
[{"$f":"IF('1. Ordersheet'!B756=\"\",\"\",'1. Ordersheet'!B756)","v":""},{"$f":"IF('1. Ordersheet'!I756=\"\",\"\",'1. Ordersheet'!I756)","v":""},{"$f":"IF('1. Ordersheet'!J756=\"\",\"\",'1. Ordersheet'!J756)","v":""},{"$f":"IF('1. Ordersheet'!K756=\"\",\"\",'1. Ordersheet'!K756)","v":""},{"$f":"IF('1. Ordersheet'!M756=\"\",\"\",'1. Ordersheet'!M756)","v":""},null,null,{"$f":"'1. Ordersheet'!AR756","v":0},{"$f":"IF('1. Ordersheet'!AE756=\"\",\"\",'1. Ordersheet'!AE756)","v":""}]
[{"$f":"IF('1. Ordersheet'!B757=\"\",\"\",'1. Ordersheet'!B757)","v":""},{"$f":"IF('1. Ordersheet'!I757=\"\",\"\",'1. Ordersheet'!I757)","v":""},{"$f":"IF('1. Ordersheet'!J757=\"\",\"\",'1. Ordersheet'!J757)","v":""},{"$f":"IF('1. Ordersheet'!K757=\"\",\"\",'1. Ordersheet'!K757)","v":""},{"$f":"IF('1. Ordersheet'!M757=\"\",\"\",'1. Ordersheet'!M757)","v":""},null,null,{"$f":"'1. Ordersheet'!AR757","v":0},{"$f":"IF('1. Ordersheet'!AE757=\"\",\"\",'1. Ordersheet'!AE757)","v":""}]
[{"$f":"IF('1. Ordersheet'!B758=\"\",\"\",'1. Ordersheet'!B758)","v":""},{"$f":"IF('1. Ordersheet'!I758=\"\",\"\",'1. Ordersheet'!I758)","v":""},{"$f":"IF('1. Ordersheet'!J758=\"\",\"\",'1. Ordersheet'!J758)","v":""},{"$f":"IF('1. Ordersheet'!K758=\"\",\"\",'1. Ordersheet'!K758)","v":""},{"$f":"IF('1. Ordersheet'!M758=\"\",\"\",'1. Ordersheet'!M758)","v":""},null,null,{"$f":"'1. Ordersheet'!AR758","v":0},{"$f":"IF('1. Ordersheet'!AE758=\"\",\"\",'1. Ordersheet'!AE758)","v":""}]
[{"$f":"IF('1. Ordersheet'!B759=\"\",\"\",'1. Ordersheet'!B759)","v":""},{"$f":"IF('1. Ordersheet'!I759=\"\",\"\",'1. Ordersheet'!I759)","v":""},{"$f":"IF('1. Ordersheet'!J759=\"\",\"\",'1. Ordersheet'!J759)","v":""},{"$f":"IF('1. Ordersheet'!K759=\"\",\"\",'1. Ordersheet'!K759)","v":""},{"$f":"IF('1. Ordersheet'!M759=\"\",\"\",'1. Ordersheet'!M759)","v":""},null,null,{"$f":"'1. Ordersheet'!AR759","v":0},{"$f":"IF('1. Ordersheet'!AE759=\"\",\"\",'1. Ordersheet'!AE759)","v":""}]
[{"$f":"IF('1. Ordersheet'!B760=\"\",\"\",'1. Ordersheet'!B760)","v":""},{"$f":"IF('1. Ordersheet'!I760=\"\",\"\",'1. Ordersheet'!I760)","v":""},{"$f":"IF('1. Ordersheet'!J760=\"\",\"\",'1. Ordersheet'!J760)","v":""},{"$f":"IF('1. Ordersheet'!K760=\"\",\"\",'1. Ordersheet'!K760)","v":""},{"$f":"IF('1. Ordersheet'!M760=\"\",\"\",'1. Ordersheet'!M760)","v":""},null,null,{"$f":"'1. Ordersheet'!AR760","v":0},{"$f":"IF('1. Ordersheet'!AE760=\"\",\"\",'1. Ordersheet'!AE760)","v":""}]
[{"$f":"IF('1. Ordersheet'!B761=\"\",\"\",'1. Ordersheet'!B761)","v":""},{"$f":"IF('1. Ordersheet'!I761=\"\",\"\",'1. Ordersheet'!I761)","v":""},{"$f":"IF('1. Ordersheet'!J761=\"\",\"\",'1. Ordersheet'!J761)","v":""},{"$f":"IF('1. Ordersheet'!K761=\"\",\"\",'1. Ordersheet'!K761)","v":""},{"$f":"IF('1. Ordersheet'!M761=\"\",\"\",'1. Ordersheet'!M761)","v":""},null,null,{"$f":"'1. Ordersheet'!AR761","v":0},{"$f":"IF('1. Ordersheet'!AE761=\"\",\"\",'1. Ordersheet'!AE761)","v":""}]
[{"$f":"IF('1. Ordersheet'!B762=\"\",\"\",'1. Ordersheet'!B762)","v":""},{"$f":"IF('1. Ordersheet'!I762=\"\",\"\",'1. Ordersheet'!I762)","v":""},{"$f":"IF('1. Ordersheet'!J762=\"\",\"\",'1. Ordersheet'!J762)","v":""},{"$f":"IF('1. Ordersheet'!K762=\"\",\"\",'1. Ordersheet'!K762)","v":""},{"$f":"IF('1. Ordersheet'!M762=\"\",\"\",'1. Ordersheet'!M762)","v":""},null,null,{"$f":"'1. Ordersheet'!AR762","v":0},{"$f":"IF('1. Ordersheet'!AE762=\"\",\"\",'1. Ordersheet'!AE762)","v":""}]
[{"$f":"IF('1. Ordersheet'!B763=\"\",\"\",'1. Ordersheet'!B763)","v":""},{"$f":"IF('1. Ordersheet'!I763=\"\",\"\",'1. Ordersheet'!I763)","v":""},{"$f":"IF('1. Ordersheet'!J763=\"\",\"\",'1. Ordersheet'!J763)","v":""},{"$f":"IF('1. Ordersheet'!K763=\"\",\"\",'1. Ordersheet'!K763)","v":""},{"$f":"IF('1. Ordersheet'!M763=\"\",\"\",'1. Ordersheet'!M763)","v":""},null,null,{"$f":"'1. Ordersheet'!AR763","v":0},{"$f":"IF('1. Ordersheet'!AE763=\"\",\"\",'1. Ordersheet'!AE763)","v":""}]
[{"$f":"IF('1. Ordersheet'!B764=\"\",\"\",'1. Ordersheet'!B764)","v":""},{"$f":"IF('1. Ordersheet'!I764=\"\",\"\",'1. Ordersheet'!I764)","v":""},{"$f":"IF('1. Ordersheet'!J764=\"\",\"\",'1. Ordersheet'!J764)","v":""},{"$f":"IF('1. Ordersheet'!K764=\"\",\"\",'1. Ordersheet'!K764)","v":""},{"$f":"IF('1. Ordersheet'!M764=\"\",\"\",'1. Ordersheet'!M764)","v":""},null,null,{"$f":"'1. Ordersheet'!AR764","v":0},{"$f":"IF('1. Ordersheet'!AE764=\"\",\"\",'1. Ordersheet'!AE764)","v":""}]
[{"$f":"IF('1. Ordersheet'!B765=\"\",\"\",'1. Ordersheet'!B765)","v":""},{"$f":"IF('1. Ordersheet'!I765=\"\",\"\",'1. Ordersheet'!I765)","v":""},{"$f":"IF('1. Ordersheet'!J765=\"\",\"\",'1. Ordersheet'!J765)","v":""},{"$f":"IF('1. Ordersheet'!K765=\"\",\"\",'1. Ordersheet'!K765)","v":""},{"$f":"IF('1. Ordersheet'!M765=\"\",\"\",'1. Ordersheet'!M765)","v":""},null,null,{"$f":"'1. Ordersheet'!AR765","v":0},{"$f":"IF('1. Ordersheet'!AE765=\"\",\"\",'1. Ordersheet'!AE765)","v":""}]
[{"$f":"IF('1. Ordersheet'!B766=\"\",\"\",'1. Ordersheet'!B766)","v":""},{"$f":"IF('1. Ordersheet'!I766=\"\",\"\",'1. Ordersheet'!I766)","v":""},{"$f":"IF('1. Ordersheet'!J766=\"\",\"\",'1. Ordersheet'!J766)","v":""},{"$f":"IF('1. Ordersheet'!K766=\"\",\"\",'1. Ordersheet'!K766)","v":""},{"$f":"IF('1. Ordersheet'!M766=\"\",\"\",'1. Ordersheet'!M766)","v":""},null,null,{"$f":"'1. Ordersheet'!AR766","v":0},{"$f":"IF('1. Ordersheet'!AE766=\"\",\"\",'1. Ordersheet'!AE766)","v":""}]
[{"$f":"IF('1. Ordersheet'!B767=\"\",\"\",'1. Ordersheet'!B767)","v":""},{"$f":"IF('1. Ordersheet'!I767=\"\",\"\",'1. Ordersheet'!I767)","v":""},{"$f":"IF('1. Ordersheet'!J767=\"\",\"\",'1. Ordersheet'!J767)","v":""},{"$f":"IF('1. Ordersheet'!K767=\"\",\"\",'1. Ordersheet'!K767)","v":""},{"$f":"IF('1. Ordersheet'!M767=\"\",\"\",'1. Ordersheet'!M767)","v":""},null,null,{"$f":"'1. Ordersheet'!AR767","v":0},{"$f":"IF('1. Ordersheet'!AE767=\"\",\"\",'1. Ordersheet'!AE767)","v":""}]
[{"$f":"IF('1. Ordersheet'!B768=\"\",\"\",'1. Ordersheet'!B768)","v":""},{"$f":"IF('1. Ordersheet'!I768=\"\",\"\",'1. Ordersheet'!I768)","v":""},{"$f":"IF('1. Ordersheet'!J768=\"\",\"\",'1. Ordersheet'!J768)","v":""},{"$f":"IF('1. Ordersheet'!K768=\"\",\"\",'1. Ordersheet'!K768)","v":""},{"$f":"IF('1. Ordersheet'!M768=\"\",\"\",'1. Ordersheet'!M768)","v":""},null,null,{"$f":"'1. Ordersheet'!AR768","v":0},{"$f":"IF('1. Ordersheet'!AE768=\"\",\"\",'1. Ordersheet'!AE768)","v":""}]
[{"$f":"IF('1. Ordersheet'!B769=\"\",\"\",'1. Ordersheet'!B769)","v":""},{"$f":"IF('1. Ordersheet'!I769=\"\",\"\",'1. Ordersheet'!I769)","v":""},{"$f":"IF('1. Ordersheet'!J769=\"\",\"\",'1. Ordersheet'!J769)","v":""},{"$f":"IF('1. Ordersheet'!K769=\"\",\"\",'1. Ordersheet'!K769)","v":""},{"$f":"IF('1. Ordersheet'!M769=\"\",\"\",'1. Ordersheet'!M769)","v":""},null,null,{"$f":"'1. Ordersheet'!AR769","v":0},{"$f":"IF('1. Ordersheet'!AE769=\"\",\"\",'1. Ordersheet'!AE769)","v":""}]
[{"$f":"IF('1. Ordersheet'!B770=\"\",\"\",'1. Ordersheet'!B770)","v":""},{"$f":"IF('1. Ordersheet'!I770=\"\",\"\",'1. Ordersheet'!I770)","v":""},{"$f":"IF('1. Ordersheet'!J770=\"\",\"\",'1. Ordersheet'!J770)","v":""},{"$f":"IF('1. Ordersheet'!K770=\"\",\"\",'1. Ordersheet'!K770)","v":""},{"$f":"IF('1. Ordersheet'!M770=\"\",\"\",'1. Ordersheet'!M770)","v":""},null,null,{"$f":"'1. Ordersheet'!AR770","v":0},{"$f":"IF('1. Ordersheet'!AE770=\"\",\"\",'1. Ordersheet'!AE770)","v":""}]
[{"$f":"IF('1. Ordersheet'!B771=\"\",\"\",'1. Ordersheet'!B771)","v":""},{"$f":"IF('1. Ordersheet'!I771=\"\",\"\",'1. Ordersheet'!I771)","v":""},{"$f":"IF('1. Ordersheet'!J771=\"\",\"\",'1. Ordersheet'!J771)","v":""},{"$f":"IF('1. Ordersheet'!K771=\"\",\"\",'1. Ordersheet'!K771)","v":""},{"$f":"IF('1. Ordersheet'!M771=\"\",\"\",'1. Ordersheet'!M771)","v":""},null,null,{"$f":"'1. Ordersheet'!AR771","v":0},{"$f":"IF('1. Ordersheet'!AE771=\"\",\"\",'1. Ordersheet'!AE771)","v":""}]
[{"$f":"IF('1. Ordersheet'!B772=\"\",\"\",'1. Ordersheet'!B772)","v":""},{"$f":"IF('1. Ordersheet'!I772=\"\",\"\",'1. Ordersheet'!I772)","v":""},{"$f":"IF('1. Ordersheet'!J772=\"\",\"\",'1. Ordersheet'!J772)","v":""},{"$f":"IF('1. Ordersheet'!K772=\"\",\"\",'1. Ordersheet'!K772)","v":""},{"$f":"IF('1. Ordersheet'!M772=\"\",\"\",'1. Ordersheet'!M772)","v":""},null,null,{"$f":"'1. Ordersheet'!AR772","v":0},{"$f":"IF('1. Ordersheet'!AE772=\"\",\"\",'1. Ordersheet'!AE772)","v":""}]
[{"$f":"IF('1. Ordersheet'!B773=\"\",\"\",'1. Ordersheet'!B773)","v":""},{"$f":"IF('1. Ordersheet'!I773=\"\",\"\",'1. Ordersheet'!I773)","v":""},{"$f":"IF('1. Ordersheet'!J773=\"\",\"\",'1. Ordersheet'!J773)","v":""},{"$f":"IF('1. Ordersheet'!K773=\"\",\"\",'1. Ordersheet'!K773)","v":""},{"$f":"IF('1. Ordersheet'!M773=\"\",\"\",'1. Ordersheet'!M773)","v":""},null,null,{"$f":"'1. Ordersheet'!AR773","v":0},{"$f":"IF('1. Ordersheet'!AE773=\"\",\"\",'1. Ordersheet'!AE773)","v":""}]
[{"$f":"IF('1. Ordersheet'!B774=\"\",\"\",'1. Ordersheet'!B774)","v":""},{"$f":"IF('1. Ordersheet'!I774=\"\",\"\",'1. Ordersheet'!I774)","v":""},{"$f":"IF('1. Ordersheet'!J774=\"\",\"\",'1. Ordersheet'!J774)","v":""},{"$f":"IF('1. Ordersheet'!K774=\"\",\"\",'1. Ordersheet'!K774)","v":""},{"$f":"IF('1. Ordersheet'!M774=\"\",\"\",'1. Ordersheet'!M774)","v":""},null,null,{"$f":"'1. Ordersheet'!AR774","v":0},{"$f":"IF('1. Ordersheet'!AE774=\"\",\"\",'1. Ordersheet'!AE774)","v":""}]
[{"$f":"IF('1. Ordersheet'!B775=\"\",\"\",'1. Ordersheet'!B775)","v":""},{"$f":"IF('1. Ordersheet'!I775=\"\",\"\",'1. Ordersheet'!I775)","v":""},{"$f":"IF('1. Ordersheet'!J775=\"\",\"\",'1. Ordersheet'!J775)","v":""},{"$f":"IF('1. Ordersheet'!K775=\"\",\"\",'1. Ordersheet'!K775)","v":""},{"$f":"IF('1. Ordersheet'!M775=\"\",\"\",'1. Ordersheet'!M775)","v":""},null,null,{"$f":"'1. Ordersheet'!AR775","v":0},{"$f":"IF('1. Ordersheet'!AE775=\"\",\"\",'1. Ordersheet'!AE775)","v":""}]
[{"$f":"IF('1. Ordersheet'!B776=\"\",\"\",'1. Ordersheet'!B776)","v":""},{"$f":"IF('1. Ordersheet'!I776=\"\",\"\",'1. Ordersheet'!I776)","v":""},{"$f":"IF('1. Ordersheet'!J776=\"\",\"\",'1. Ordersheet'!J776)","v":""},{"$f":"IF('1. Ordersheet'!K776=\"\",\"\",'1. Ordersheet'!K776)","v":""},{"$f":"IF('1. Ordersheet'!M776=\"\",\"\",'1. Ordersheet'!M776)","v":""},null,null,{"$f":"'1. Ordersheet'!AR776","v":0},{"$f":"IF('1. Ordersheet'!AE776=\"\",\"\",'1. Ordersheet'!AE776)","v":""}]
[{"$f":"IF('1. Ordersheet'!B777=\"\",\"\",'1. Ordersheet'!B777)","v":""},{"$f":"IF('1. Ordersheet'!I777=\"\",\"\",'1. Ordersheet'!I777)","v":""},{"$f":"IF('1. Ordersheet'!J777=\"\",\"\",'1. Ordersheet'!J777)","v":""},{"$f":"IF('1. Ordersheet'!K777=\"\",\"\",'1. Ordersheet'!K777)","v":""},{"$f":"IF('1. Ordersheet'!M777=\"\",\"\",'1. Ordersheet'!M777)","v":""},null,null,{"$f":"'1. Ordersheet'!AR777","v":0},{"$f":"IF('1. Ordersheet'!AE777=\"\",\"\",'1. Ordersheet'!AE777)","v":""}]
[{"$f":"IF('1. Ordersheet'!B778=\"\",\"\",'1. Ordersheet'!B778)","v":""},{"$f":"IF('1. Ordersheet'!I778=\"\",\"\",'1. Ordersheet'!I778)","v":""},{"$f":"IF('1. Ordersheet'!J778=\"\",\"\",'1. Ordersheet'!J778)","v":""},{"$f":"IF('1. Ordersheet'!K778=\"\",\"\",'1. Ordersheet'!K778)","v":""},{"$f":"IF('1. Ordersheet'!M778=\"\",\"\",'1. Ordersheet'!M778)","v":""},null,null,{"$f":"'1. Ordersheet'!AR778","v":0},{"$f":"IF('1. Ordersheet'!AE778=\"\",\"\",'1. Ordersheet'!AE778)","v":""}]
[{"$f":"IF('1. Ordersheet'!B779=\"\",\"\",'1. Ordersheet'!B779)","v":""},{"$f":"IF('1. Ordersheet'!I779=\"\",\"\",'1. Ordersheet'!I779)","v":""},{"$f":"IF('1. Ordersheet'!J779=\"\",\"\",'1. Ordersheet'!J779)","v":""},{"$f":"IF('1. Ordersheet'!K779=\"\",\"\",'1. Ordersheet'!K779)","v":""},{"$f":"IF('1. Ordersheet'!M779=\"\",\"\",'1. Ordersheet'!M779)","v":""},null,null,{"$f":"'1. Ordersheet'!AR779","v":0},{"$f":"IF('1. Ordersheet'!AE779=\"\",\"\",'1. Ordersheet'!AE779)","v":""}]
[{"$f":"IF('1. Ordersheet'!B780=\"\",\"\",'1. Ordersheet'!B780)","v":""},{"$f":"IF('1. Ordersheet'!I780=\"\",\"\",'1. Ordersheet'!I780)","v":""},{"$f":"IF('1. Ordersheet'!J780=\"\",\"\",'1. Ordersheet'!J780)","v":""},{"$f":"IF('1. Ordersheet'!K780=\"\",\"\",'1. Ordersheet'!K780)","v":""},{"$f":"IF('1. Ordersheet'!M780=\"\",\"\",'1. Ordersheet'!M780)","v":""},null,null,{"$f":"'1. Ordersheet'!AR780","v":0},{"$f":"IF('1. Ordersheet'!AE780=\"\",\"\",'1. Ordersheet'!AE780)","v":""}]
[{"$f":"IF('1. Ordersheet'!B781=\"\",\"\",'1. Ordersheet'!B781)","v":""},{"$f":"IF('1. Ordersheet'!I781=\"\",\"\",'1. Ordersheet'!I781)","v":""},{"$f":"IF('1. Ordersheet'!J781=\"\",\"\",'1. Ordersheet'!J781)","v":""},{"$f":"IF('1. Ordersheet'!K781=\"\",\"\",'1. Ordersheet'!K781)","v":""},{"$f":"IF('1. Ordersheet'!M781=\"\",\"\",'1. Ordersheet'!M781)","v":""},null,null,{"$f":"'1. Ordersheet'!AR781","v":0},{"$f":"IF('1. Ordersheet'!AE781=\"\",\"\",'1. Ordersheet'!AE781)","v":""}]
[{"$f":"IF('1. Ordersheet'!B782=\"\",\"\",'1. Ordersheet'!B782)","v":""},{"$f":"IF('1. Ordersheet'!I782=\"\",\"\",'1. Ordersheet'!I782)","v":""},{"$f":"IF('1. Ordersheet'!J782=\"\",\"\",'1. Ordersheet'!J782)","v":""},{"$f":"IF('1. Ordersheet'!K782=\"\",\"\",'1. Ordersheet'!K782)","v":""},{"$f":"IF('1. Ordersheet'!M782=\"\",\"\",'1. Ordersheet'!M782)","v":""},null,null,{"$f":"'1. Ordersheet'!AR782","v":0},{"$f":"IF('1. Ordersheet'!AE782=\"\",\"\",'1. Ordersheet'!AE782)","v":""}]
[{"$f":"IF('1. Ordersheet'!B783=\"\",\"\",'1. Ordersheet'!B783)","v":""},{"$f":"IF('1. Ordersheet'!I783=\"\",\"\",'1. Ordersheet'!I783)","v":""},{"$f":"IF('1. Ordersheet'!J783=\"\",\"\",'1. Ordersheet'!J783)","v":""},{"$f":"IF('1. Ordersheet'!K783=\"\",\"\",'1. Ordersheet'!K783)","v":""},{"$f":"IF('1. Ordersheet'!M783=\"\",\"\",'1. Ordersheet'!M783)","v":""},null,null,{"$f":"'1. Ordersheet'!AR783","v":0},{"$f":"IF('1. Ordersheet'!AE783=\"\",\"\",'1. Ordersheet'!AE783)","v":""}]
[{"$f":"IF('1. Ordersheet'!B784=\"\",\"\",'1. Ordersheet'!B784)","v":""},{"$f":"IF('1. Ordersheet'!I784=\"\",\"\",'1. Ordersheet'!I784)","v":""},{"$f":"IF('1. Ordersheet'!J784=\"\",\"\",'1. Ordersheet'!J784)","v":""},{"$f":"IF('1. Ordersheet'!K784=\"\",\"\",'1. Ordersheet'!K784)","v":""},{"$f":"IF('1. Ordersheet'!M784=\"\",\"\",'1. Ordersheet'!M784)","v":""},null,null,{"$f":"'1. Ordersheet'!AR784","v":0},{"$f":"IF('1. Ordersheet'!AE784=\"\",\"\",'1. Ordersheet'!AE784)","v":""}]
[{"$f":"IF('1. Ordersheet'!B785=\"\",\"\",'1. Ordersheet'!B785)","v":""},{"$f":"IF('1. Ordersheet'!I785=\"\",\"\",'1. Ordersheet'!I785)","v":""},{"$f":"IF('1. Ordersheet'!J785=\"\",\"\",'1. Ordersheet'!J785)","v":""},{"$f":"IF('1. Ordersheet'!K785=\"\",\"\",'1. Ordersheet'!K785)","v":""},{"$f":"IF('1. Ordersheet'!M785=\"\",\"\",'1. Ordersheet'!M785)","v":""},null,null,{"$f":"'1. Ordersheet'!AR785","v":0},{"$f":"IF('1. Ordersheet'!AE785=\"\",\"\",'1. Ordersheet'!AE785)","v":""}]
[{"$f":"IF('1. Ordersheet'!B786=\"\",\"\",'1. Ordersheet'!B786)","v":""},{"$f":"IF('1. Ordersheet'!I786=\"\",\"\",'1. Ordersheet'!I786)","v":""},{"$f":"IF('1. Ordersheet'!J786=\"\",\"\",'1. Ordersheet'!J786)","v":""},{"$f":"IF('1. Ordersheet'!K786=\"\",\"\",'1. Ordersheet'!K786)","v":""},{"$f":"IF('1. Ordersheet'!M786=\"\",\"\",'1. Ordersheet'!M786)","v":""},null,null,{"$f":"'1. Ordersheet'!AR786","v":0},{"$f":"IF('1. Ordersheet'!AE786=\"\",\"\",'1. Ordersheet'!AE786)","v":""}]
[{"$f":"IF('1. Ordersheet'!B787=\"\",\"\",'1. Ordersheet'!B787)","v":""},{"$f":"IF('1. Ordersheet'!I787=\"\",\"\",'1. Ordersheet'!I787)","v":""},{"$f":"IF('1. Ordersheet'!J787=\"\",\"\",'1. Ordersheet'!J787)","v":""},{"$f":"IF('1. Ordersheet'!K787=\"\",\"\",'1. Ordersheet'!K787)","v":""},{"$f":"IF('1. Ordersheet'!M787=\"\",\"\",'1. Ordersheet'!M787)","v":""},null,null,{"$f":"'1. Ordersheet'!AR787","v":0},{"$f":"IF('1. Ordersheet'!AE787=\"\",\"\",'1. Ordersheet'!AE787)","v":""}]
[{"$f":"IF('1. Ordersheet'!B788=\"\",\"\",'1. Ordersheet'!B788)","v":""},{"$f":"IF('1. Ordersheet'!I788=\"\",\"\",'1. Ordersheet'!I788)","v":""},{"$f":"IF('1. Ordersheet'!J788=\"\",\"\",'1. Ordersheet'!J788)","v":""},{"$f":"IF('1. Ordersheet'!K788=\"\",\"\",'1. Ordersheet'!K788)","v":""},{"$f":"IF('1. Ordersheet'!M788=\"\",\"\",'1. Ordersheet'!M788)","v":""},null,null,{"$f":"'1. Ordersheet'!AR788","v":0},{"$f":"IF('1. Ordersheet'!AE788=\"\",\"\",'1. Ordersheet'!AE788)","v":""}]
[{"$f":"IF('1. Ordersheet'!B789=\"\",\"\",'1. Ordersheet'!B789)","v":""},{"$f":"IF('1. Ordersheet'!I789=\"\",\"\",'1. Ordersheet'!I789)","v":""},{"$f":"IF('1. Ordersheet'!J789=\"\",\"\",'1. Ordersheet'!J789)","v":""},{"$f":"IF('1. Ordersheet'!K789=\"\",\"\",'1. Ordersheet'!K789)","v":""},{"$f":"IF('1. Ordersheet'!M789=\"\",\"\",'1. Ordersheet'!M789)","v":""},null,null,{"$f":"'1. Ordersheet'!AR789","v":0},{"$f":"IF('1. Ordersheet'!AE789=\"\",\"\",'1. Ordersheet'!AE789)","v":""}]
[{"$f":"IF('1. Ordersheet'!B790=\"\",\"\",'1. Ordersheet'!B790)","v":""},{"$f":"IF('1. Ordersheet'!I790=\"\",\"\",'1. Ordersheet'!I790)","v":""},{"$f":"IF('1. Ordersheet'!J790=\"\",\"\",'1. Ordersheet'!J790)","v":""},{"$f":"IF('1. Ordersheet'!K790=\"\",\"\",'1. Ordersheet'!K790)","v":""},{"$f":"IF('1. Ordersheet'!M790=\"\",\"\",'1. Ordersheet'!M790)","v":""},null,null,{"$f":"'1. Ordersheet'!AR790","v":0},{"$f":"IF('1. Ordersheet'!AE790=\"\",\"\",'1. Ordersheet'!AE790)","v":""}]
[{"$f":"IF('1. Ordersheet'!B791=\"\",\"\",'1. Ordersheet'!B791)","v":""},{"$f":"IF('1. Ordersheet'!I791=\"\",\"\",'1. Ordersheet'!I791)","v":""},{"$f":"IF('1. Ordersheet'!J791=\"\",\"\",'1. Ordersheet'!J791)","v":""},{"$f":"IF('1. Ordersheet'!K791=\"\",\"\",'1. Ordersheet'!K791)","v":""},{"$f":"IF('1. Ordersheet'!M791=\"\",\"\",'1. Ordersheet'!M791)","v":""},null,null,{"$f":"'1. Ordersheet'!AR791","v":0},{"$f":"IF('1. Ordersheet'!AE791=\"\",\"\",'1. Ordersheet'!AE791)","v":""}]
[{"$f":"IF('1. Ordersheet'!B792=\"\",\"\",'1. Ordersheet'!B792)","v":""},{"$f":"IF('1. Ordersheet'!I792=\"\",\"\",'1. Ordersheet'!I792)","v":""},{"$f":"IF('1. Ordersheet'!J792=\"\",\"\",'1. Ordersheet'!J792)","v":""},{"$f":"IF('1. Ordersheet'!K792=\"\",\"\",'1. Ordersheet'!K792)","v":""},{"$f":"IF('1. Ordersheet'!M792=\"\",\"\",'1. Ordersheet'!M792)","v":""},null,null,{"$f":"'1. Ordersheet'!AR792","v":0},{"$f":"IF('1. Ordersheet'!AE792=\"\",\"\",'1. Ordersheet'!AE792)","v":""}]
[{"$f":"IF('1. Ordersheet'!B793=\"\",\"\",'1. Ordersheet'!B793)","v":""},{"$f":"IF('1. Ordersheet'!I793=\"\",\"\",'1. Ordersheet'!I793)","v":""},{"$f":"IF('1. Ordersheet'!J793=\"\",\"\",'1. Ordersheet'!J793)","v":""},{"$f":"IF('1. Ordersheet'!K793=\"\",\"\",'1. Ordersheet'!K793)","v":""},{"$f":"IF('1. Ordersheet'!M793=\"\",\"\",'1. Ordersheet'!M793)","v":""},null,null,{"$f":"'1. Ordersheet'!AR793","v":0},{"$f":"IF('1. Ordersheet'!AE793=\"\",\"\",'1. Ordersheet'!AE793)","v":""}]
[{"$f":"IF('1. Ordersheet'!B794=\"\",\"\",'1. Ordersheet'!B794)","v":""},{"$f":"IF('1. Ordersheet'!I794=\"\",\"\",'1. Ordersheet'!I794)","v":""},{"$f":"IF('1. Ordersheet'!J794=\"\",\"\",'1. Ordersheet'!J794)","v":""},{"$f":"IF('1. Ordersheet'!K794=\"\",\"\",'1. Ordersheet'!K794)","v":""},{"$f":"IF('1. Ordersheet'!M794=\"\",\"\",'1. Ordersheet'!M794)","v":""},null,null,{"$f":"'1. Ordersheet'!AR794","v":0},{"$f":"IF('1. Ordersheet'!AE794=\"\",\"\",'1. Ordersheet'!AE794)","v":""}]
[{"$f":"IF('1. Ordersheet'!B795=\"\",\"\",'1. Ordersheet'!B795)","v":""},{"$f":"IF('1. Ordersheet'!I795=\"\",\"\",'1. Ordersheet'!I795)","v":""},{"$f":"IF('1. Ordersheet'!J795=\"\",\"\",'1. Ordersheet'!J795)","v":""},{"$f":"IF('1. Ordersheet'!K795=\"\",\"\",'1. Ordersheet'!K795)","v":""},{"$f":"IF('1. Ordersheet'!M795=\"\",\"\",'1. Ordersheet'!M795)","v":""},null,null,{"$f":"'1. Ordersheet'!AR795","v":0},{"$f":"IF('1. Ordersheet'!AE795=\"\",\"\",'1. Ordersheet'!AE795)","v":""}]
[{"$f":"IF('1. Ordersheet'!B796=\"\",\"\",'1. Ordersheet'!B796)","v":""},{"$f":"IF('1. Ordersheet'!I796=\"\",\"\",'1. Ordersheet'!I796)","v":""},{"$f":"IF('1. Ordersheet'!J796=\"\",\"\",'1. Ordersheet'!J796)","v":""},{"$f":"IF('1. Ordersheet'!K796=\"\",\"\",'1. Ordersheet'!K796)","v":""},{"$f":"IF('1. Ordersheet'!M796=\"\",\"\",'1. Ordersheet'!M796)","v":""},null,null,{"$f":"'1. Ordersheet'!AR796","v":0},{"$f":"IF('1. Ordersheet'!AE796=\"\",\"\",'1. Ordersheet'!AE796)","v":""}]
[{"$f":"IF('1. Ordersheet'!B797=\"\",\"\",'1. Ordersheet'!B797)","v":""},{"$f":"IF('1. Ordersheet'!I797=\"\",\"\",'1. Ordersheet'!I797)","v":""},{"$f":"IF('1. Ordersheet'!J797=\"\",\"\",'1. Ordersheet'!J797)","v":""},{"$f":"IF('1. Ordersheet'!K797=\"\",\"\",'1. Ordersheet'!K797)","v":""},{"$f":"IF('1. Ordersheet'!M797=\"\",\"\",'1. Ordersheet'!M797)","v":""},null,null,{"$f":"'1. Ordersheet'!AR797","v":0},{"$f":"IF('1. Ordersheet'!AE797=\"\",\"\",'1. Ordersheet'!AE797)","v":""}]
[{"$f":"IF('1. Ordersheet'!B798=\"\",\"\",'1. Ordersheet'!B798)","v":""},{"$f":"IF('1. Ordersheet'!I798=\"\",\"\",'1. Ordersheet'!I798)","v":""},{"$f":"IF('1. Ordersheet'!J798=\"\",\"\",'1. Ordersheet'!J798)","v":""},{"$f":"IF('1. Ordersheet'!K798=\"\",\"\",'1. Ordersheet'!K798)","v":""},{"$f":"IF('1. Ordersheet'!M798=\"\",\"\",'1. Ordersheet'!M798)","v":""},null,null,{"$f":"'1. Ordersheet'!AR798","v":0},{"$f":"IF('1. Ordersheet'!AE798=\"\",\"\",'1. Ordersheet'!AE798)","v":""}]
[{"$f":"IF('1. Ordersheet'!B799=\"\",\"\",'1. Ordersheet'!B799)","v":""},{"$f":"IF('1. Ordersheet'!I799=\"\",\"\",'1. Ordersheet'!I799)","v":""},{"$f":"IF('1. Ordersheet'!J799=\"\",\"\",'1. Ordersheet'!J799)","v":""},{"$f":"IF('1. Ordersheet'!K799=\"\",\"\",'1. Ordersheet'!K799)","v":""},{"$f":"IF('1. Ordersheet'!M799=\"\",\"\",'1. Ordersheet'!M799)","v":""},null,null,{"$f":"'1. Ordersheet'!AR799","v":0},{"$f":"IF('1. Ordersheet'!AE799=\"\",\"\",'1. Ordersheet'!AE799)","v":""}]
[{"$f":"IF('1. Ordersheet'!B800=\"\",\"\",'1. Ordersheet'!B800)","v":""},{"$f":"IF('1. Ordersheet'!I800=\"\",\"\",'1. Ordersheet'!I800)","v":""},{"$f":"IF('1. Ordersheet'!J800=\"\",\"\",'1. Ordersheet'!J800)","v":""},{"$f":"IF('1. Ordersheet'!K800=\"\",\"\",'1. Ordersheet'!K800)","v":""},{"$f":"IF('1. Ordersheet'!M800=\"\",\"\",'1. Ordersheet'!M800)","v":""},null,null,{"$f":"'1. Ordersheet'!AR800","v":0},{"$f":"IF('1. Ordersheet'!AE800=\"\",\"\",'1. Ordersheet'!AE800)","v":""}]
[{"$f":"IF('1. Ordersheet'!B801=\"\",\"\",'1. Ordersheet'!B801)","v":""},{"$f":"IF('1. Ordersheet'!I801=\"\",\"\",'1. Ordersheet'!I801)","v":""},{"$f":"IF('1. Ordersheet'!J801=\"\",\"\",'1. Ordersheet'!J801)","v":""},{"$f":"IF('1. Ordersheet'!K801=\"\",\"\",'1. Ordersheet'!K801)","v":""},{"$f":"IF('1. Ordersheet'!M801=\"\",\"\",'1. Ordersheet'!M801)","v":""},null,null,{"$f":"'1. Ordersheet'!AR801","v":0},{"$f":"IF('1. Ordersheet'!AE801=\"\",\"\",'1. Ordersheet'!AE801)","v":""}]
[{"$f":"IF('1. Ordersheet'!B802=\"\",\"\",'1. Ordersheet'!B802)","v":""},{"$f":"IF('1. Ordersheet'!I802=\"\",\"\",'1. Ordersheet'!I802)","v":""},{"$f":"IF('1. Ordersheet'!J802=\"\",\"\",'1. Ordersheet'!J802)","v":""},{"$f":"IF('1. Ordersheet'!K802=\"\",\"\",'1. Ordersheet'!K802)","v":""},{"$f":"IF('1. Ordersheet'!M802=\"\",\"\",'1. Ordersheet'!M802)","v":""},null,null,{"$f":"'1. Ordersheet'!AR802","v":0},{"$f":"IF('1. Ordersheet'!AE802=\"\",\"\",'1. Ordersheet'!AE802)","v":""}]
[{"$f":"IF('1. Ordersheet'!B803=\"\",\"\",'1. Ordersheet'!B803)","v":""},{"$f":"IF('1. Ordersheet'!I803=\"\",\"\",'1. Ordersheet'!I803)","v":""},{"$f":"IF('1. Ordersheet'!J803=\"\",\"\",'1. Ordersheet'!J803)","v":""},{"$f":"IF('1. Ordersheet'!K803=\"\",\"\",'1. Ordersheet'!K803)","v":""},{"$f":"IF('1. Ordersheet'!M803=\"\",\"\",'1. Ordersheet'!M803)","v":""},null,null,{"$f":"'1. Ordersheet'!AR803","v":0},{"$f":"IF('1. Ordersheet'!AE803=\"\",\"\",'1. Ordersheet'!AE803)","v":""}]
[{"$f":"IF('1. Ordersheet'!B804=\"\",\"\",'1. Ordersheet'!B804)","v":""},{"$f":"IF('1. Ordersheet'!I804=\"\",\"\",'1. Ordersheet'!I804)","v":""},{"$f":"IF('1. Ordersheet'!J804=\"\",\"\",'1. Ordersheet'!J804)","v":""},{"$f":"IF('1. Ordersheet'!K804=\"\",\"\",'1. Ordersheet'!K804)","v":""},{"$f":"IF('1. Ordersheet'!M804=\"\",\"\",'1. Ordersheet'!M804)","v":""},null,null,{"$f":"'1. Ordersheet'!AR804","v":0},{"$f":"IF('1. Ordersheet'!AE804=\"\",\"\",'1. Ordersheet'!AE804)","v":""}]
[{"$f":"IF('1. Ordersheet'!B805=\"\",\"\",'1. Ordersheet'!B805)","v":""},{"$f":"IF('1. Ordersheet'!I805=\"\",\"\",'1. Ordersheet'!I805)","v":""},{"$f":"IF('1. Ordersheet'!J805=\"\",\"\",'1. Ordersheet'!J805)","v":""},{"$f":"IF('1. Ordersheet'!K805=\"\",\"\",'1. Ordersheet'!K805)","v":""},{"$f":"IF('1. Ordersheet'!M805=\"\",\"\",'1. Ordersheet'!M805)","v":""},null,null,{"$f":"'1. Ordersheet'!AR805","v":0},{"$f":"IF('1. Ordersheet'!AE805=\"\",\"\",'1. Ordersheet'!AE805)","v":""}]
[{"$f":"IF('1. Ordersheet'!B806=\"\",\"\",'1. Ordersheet'!B806)","v":""},{"$f":"IF('1. Ordersheet'!I806=\"\",\"\",'1. Ordersheet'!I806)","v":""},{"$f":"IF('1. Ordersheet'!J806=\"\",\"\",'1. Ordersheet'!J806)","v":""},{"$f":"IF('1. Ordersheet'!K806=\"\",\"\",'1. Ordersheet'!K806)","v":""},{"$f":"IF('1. Ordersheet'!M806=\"\",\"\",'1. Ordersheet'!M806)","v":""},null,null,{"$f":"'1. Ordersheet'!AR806","v":0},{"$f":"IF('1. Ordersheet'!AE806=\"\",\"\",'1. Ordersheet'!AE806)","v":""}]
[{"$f":"IF('1. Ordersheet'!B807=\"\",\"\",'1. Ordersheet'!B807)","v":""},{"$f":"IF('1. Ordersheet'!I807=\"\",\"\",'1. Ordersheet'!I807)","v":""},{"$f":"IF('1. Ordersheet'!J807=\"\",\"\",'1. Ordersheet'!J807)","v":""},{"$f":"IF('1. Ordersheet'!K807=\"\",\"\",'1. Ordersheet'!K807)","v":""},{"$f":"IF('1. Ordersheet'!M807=\"\",\"\",'1. Ordersheet'!M807)","v":""},null,null,{"$f":"'1. Ordersheet'!AR807","v":0},{"$f":"IF('1. Ordersheet'!AE807=\"\",\"\",'1. Ordersheet'!AE807)","v":""}]
[{"$f":"IF('1. Ordersheet'!B808=\"\",\"\",'1. Ordersheet'!B808)","v":""},{"$f":"IF('1. Ordersheet'!I808=\"\",\"\",'1. Ordersheet'!I808)","v":""},{"$f":"IF('1. Ordersheet'!J808=\"\",\"\",'1. Ordersheet'!J808)","v":""},{"$f":"IF('1. Ordersheet'!K808=\"\",\"\",'1. Ordersheet'!K808)","v":""},{"$f":"IF('1. Ordersheet'!M808=\"\",\"\",'1. Ordersheet'!M808)","v":""},null,null,{"$f":"'1. Ordersheet'!AR808","v":0},{"$f":"IF('1. Ordersheet'!AE808=\"\",\"\",'1. Ordersheet'!AE808)","v":""}]
[{"$f":"IF('1. Ordersheet'!B809=\"\",\"\",'1. Ordersheet'!B809)","v":""},{"$f":"IF('1. Ordersheet'!I809=\"\",\"\",'1. Ordersheet'!I809)","v":""},{"$f":"IF('1. Ordersheet'!J809=\"\",\"\",'1. Ordersheet'!J809)","v":""},{"$f":"IF('1. Ordersheet'!K809=\"\",\"\",'1. Ordersheet'!K809)","v":""},{"$f":"IF('1. Ordersheet'!M809=\"\",\"\",'1. Ordersheet'!M809)","v":""},null,null,{"$f":"'1. Ordersheet'!AR809","v":0},{"$f":"IF('1. Ordersheet'!AE809=\"\",\"\",'1. Ordersheet'!AE809)","v":""}]
[{"$f":"IF('1. Ordersheet'!B810=\"\",\"\",'1. Ordersheet'!B810)","v":""},{"$f":"IF('1. Ordersheet'!I810=\"\",\"\",'1. Ordersheet'!I810)","v":""},{"$f":"IF('1. Ordersheet'!J810=\"\",\"\",'1. Ordersheet'!J810)","v":""},{"$f":"IF('1. Ordersheet'!K810=\"\",\"\",'1. Ordersheet'!K810)","v":""},{"$f":"IF('1. Ordersheet'!M810=\"\",\"\",'1. Ordersheet'!M810)","v":""},null,null,{"$f":"'1. Ordersheet'!AR810","v":0},{"$f":"IF('1. Ordersheet'!AE810=\"\",\"\",'1. Ordersheet'!AE810)","v":""}]
[{"$f":"IF('1. Ordersheet'!B811=\"\",\"\",'1. Ordersheet'!B811)","v":""},{"$f":"IF('1. Ordersheet'!I811=\"\",\"\",'1. Ordersheet'!I811)","v":""},{"$f":"IF('1. Ordersheet'!J811=\"\",\"\",'1. Ordersheet'!J811)","v":""},{"$f":"IF('1. Ordersheet'!K811=\"\",\"\",'1. Ordersheet'!K811)","v":""},{"$f":"IF('1. Ordersheet'!M811=\"\",\"\",'1. Ordersheet'!M811)","v":""},null,null,{"$f":"'1. Ordersheet'!AR811","v":0},{"$f":"IF('1. Ordersheet'!AE811=\"\",\"\",'1. Ordersheet'!AE811)","v":""}]
[{"$f":"IF('1. Ordersheet'!B812=\"\",\"\",'1. Ordersheet'!B812)","v":""},{"$f":"IF('1. Ordersheet'!I812=\"\",\"\",'1. Ordersheet'!I812)","v":""},{"$f":"IF('1. Ordersheet'!J812=\"\",\"\",'1. Ordersheet'!J812)","v":""},{"$f":"IF('1. Ordersheet'!K812=\"\",\"\",'1. Ordersheet'!K812)","v":""},{"$f":"IF('1. Ordersheet'!M812=\"\",\"\",'1. Ordersheet'!M812)","v":""},null,null,{"$f":"'1. Ordersheet'!AR812","v":0},{"$f":"IF('1. Ordersheet'!AE812=\"\",\"\",'1. Ordersheet'!AE812)","v":""}]
[{"$f":"IF('1. Ordersheet'!B813=\"\",\"\",'1. Ordersheet'!B813)","v":""},{"$f":"IF('1. Ordersheet'!I813=\"\",\"\",'1. Ordersheet'!I813)","v":""},{"$f":"IF('1. Ordersheet'!J813=\"\",\"\",'1. Ordersheet'!J813)","v":""},{"$f":"IF('1. Ordersheet'!K813=\"\",\"\",'1. Ordersheet'!K813)","v":""},{"$f":"IF('1. Ordersheet'!M813=\"\",\"\",'1. Ordersheet'!M813)","v":""},null,null,{"$f":"'1. Ordersheet'!AR813","v":0},{"$f":"IF('1. Ordersheet'!AE813=\"\",\"\",'1. Ordersheet'!AE813)","v":""}]
[{"$f":"IF('1. Ordersheet'!B814=\"\",\"\",'1. Ordersheet'!B814)","v":""},{"$f":"IF('1. Ordersheet'!I814=\"\",\"\",'1. Ordersheet'!I814)","v":""},{"$f":"IF('1. Ordersheet'!J814=\"\",\"\",'1. Ordersheet'!J814)","v":""},{"$f":"IF('1. Ordersheet'!K814=\"\",\"\",'1. Ordersheet'!K814)","v":""},{"$f":"IF('1. Ordersheet'!M814=\"\",\"\",'1. Ordersheet'!M814)","v":""},null,null,{"$f":"'1. Ordersheet'!AR814","v":0},{"$f":"IF('1. Ordersheet'!AE814=\"\",\"\",'1. Ordersheet'!AE814)","v":""}]
[{"$f":"IF('1. Ordersheet'!B815=\"\",\"\",'1. Ordersheet'!B815)","v":""},{"$f":"IF('1. Ordersheet'!I815=\"\",\"\",'1. Ordersheet'!I815)","v":""},{"$f":"IF('1. Ordersheet'!J815=\"\",\"\",'1. Ordersheet'!J815)","v":""},{"$f":"IF('1. Ordersheet'!K815=\"\",\"\",'1. Ordersheet'!K815)","v":""},{"$f":"IF('1. Ordersheet'!M815=\"\",\"\",'1. Ordersheet'!M815)","v":""},null,null,{"$f":"'1. Ordersheet'!AR815","v":0},{"$f":"IF('1. Ordersheet'!AE815=\"\",\"\",'1. Ordersheet'!AE815)","v":""}]
[{"$f":"IF('1. Ordersheet'!B816=\"\",\"\",'1. Ordersheet'!B816)","v":""},{"$f":"IF('1. Ordersheet'!I816=\"\",\"\",'1. Ordersheet'!I816)","v":""},{"$f":"IF('1. Ordersheet'!J816=\"\",\"\",'1. Ordersheet'!J816)","v":""},{"$f":"IF('1. Ordersheet'!K816=\"\",\"\",'1. Ordersheet'!K816)","v":""},{"$f":"IF('1. Ordersheet'!M816=\"\",\"\",'1. Ordersheet'!M816)","v":""},null,null,{"$f":"'1. Ordersheet'!AR816","v":0},{"$f":"IF('1. Ordersheet'!AE816=\"\",\"\",'1. Ordersheet'!AE816)","v":""}]
[{"$f":"IF('1. Ordersheet'!B817=\"\",\"\",'1. Ordersheet'!B817)","v":""},{"$f":"IF('1. Ordersheet'!I817=\"\",\"\",'1. Ordersheet'!I817)","v":""},{"$f":"IF('1. Ordersheet'!J817=\"\",\"\",'1. Ordersheet'!J817)","v":""},{"$f":"IF('1. Ordersheet'!K817=\"\",\"\",'1. Ordersheet'!K817)","v":""},{"$f":"IF('1. Ordersheet'!M817=\"\",\"\",'1. Ordersheet'!M817)","v":""},null,null,{"$f":"'1. Ordersheet'!AR817","v":0},{"$f":"IF('1. Ordersheet'!AE817=\"\",\"\",'1. Ordersheet'!AE817)","v":""}]
[{"$f":"IF('1. Ordersheet'!B818=\"\",\"\",'1. Ordersheet'!B818)","v":""},{"$f":"IF('1. Ordersheet'!I818=\"\",\"\",'1. Ordersheet'!I818)","v":""},{"$f":"IF('1. Ordersheet'!J818=\"\",\"\",'1. Ordersheet'!J818)","v":""},{"$f":"IF('1. Ordersheet'!K818=\"\",\"\",'1. Ordersheet'!K818)","v":""},{"$f":"IF('1. Ordersheet'!M818=\"\",\"\",'1. Ordersheet'!M818)","v":""},null,null,{"$f":"'1. Ordersheet'!AR818","v":0},{"$f":"IF('1. Ordersheet'!AE818=\"\",\"\",'1. Ordersheet'!AE818)","v":""}]
[{"$f":"IF('1. Ordersheet'!B819=\"\",\"\",'1. Ordersheet'!B819)","v":""},{"$f":"IF('1. Ordersheet'!I819=\"\",\"\",'1. Ordersheet'!I819)","v":""},{"$f":"IF('1. Ordersheet'!J819=\"\",\"\",'1. Ordersheet'!J819)","v":""},{"$f":"IF('1. Ordersheet'!K819=\"\",\"\",'1. Ordersheet'!K819)","v":""},{"$f":"IF('1. Ordersheet'!M819=\"\",\"\",'1. Ordersheet'!M819)","v":""},null,null,{"$f":"'1. Ordersheet'!AR819","v":0},{"$f":"IF('1. Ordersheet'!AE819=\"\",\"\",'1. Ordersheet'!AE819)","v":""}]
[{"$f":"IF('1. Ordersheet'!B820=\"\",\"\",'1. Ordersheet'!B820)","v":""},{"$f":"IF('1. Ordersheet'!I820=\"\",\"\",'1. Ordersheet'!I820)","v":""},{"$f":"IF('1. Ordersheet'!J820=\"\",\"\",'1. Ordersheet'!J820)","v":""},{"$f":"IF('1. Ordersheet'!K820=\"\",\"\",'1. Ordersheet'!K820)","v":""},{"$f":"IF('1. Ordersheet'!M820=\"\",\"\",'1. Ordersheet'!M820)","v":""},null,null,{"$f":"'1. Ordersheet'!AR820","v":0},{"$f":"IF('1. Ordersheet'!AE820=\"\",\"\",'1. Ordersheet'!AE820)","v":""}]
[{"$f":"IF('1. Ordersheet'!B821=\"\",\"\",'1. Ordersheet'!B821)","v":""},{"$f":"IF('1. Ordersheet'!I821=\"\",\"\",'1. Ordersheet'!I821)","v":""},{"$f":"IF('1. Ordersheet'!J821=\"\",\"\",'1. Ordersheet'!J821)","v":""},{"$f":"IF('1. Ordersheet'!K821=\"\",\"\",'1. Ordersheet'!K821)","v":""},{"$f":"IF('1. Ordersheet'!M821=\"\",\"\",'1. Ordersheet'!M821)","v":""},null,null,{"$f":"'1. Ordersheet'!AR821","v":0},{"$f":"IF('1. Ordersheet'!AE821=\"\",\"\",'1. Ordersheet'!AE821)","v":""}]
[{"$f":"IF('1. Ordersheet'!B822=\"\",\"\",'1. Ordersheet'!B822)","v":""},{"$f":"IF('1. Ordersheet'!I822=\"\",\"\",'1. Ordersheet'!I822)","v":""},{"$f":"IF('1. Ordersheet'!J822=\"\",\"\",'1. Ordersheet'!J822)","v":""},{"$f":"IF('1. Ordersheet'!K822=\"\",\"\",'1. Ordersheet'!K822)","v":""},{"$f":"IF('1. Ordersheet'!M822=\"\",\"\",'1. Ordersheet'!M822)","v":""},null,null,{"$f":"'1. Ordersheet'!AR822","v":0},{"$f":"IF('1. Ordersheet'!AE822=\"\",\"\",'1. Ordersheet'!AE822)","v":""}]
[{"$f":"IF('1. Ordersheet'!B823=\"\",\"\",'1. Ordersheet'!B823)","v":""},{"$f":"IF('1. Ordersheet'!I823=\"\",\"\",'1. Ordersheet'!I823)","v":""},{"$f":"IF('1. Ordersheet'!J823=\"\",\"\",'1. Ordersheet'!J823)","v":""},{"$f":"IF('1. Ordersheet'!K823=\"\",\"\",'1. Ordersheet'!K823)","v":""},{"$f":"IF('1. Ordersheet'!M823=\"\",\"\",'1. Ordersheet'!M823)","v":""},null,null,{"$f":"'1. Ordersheet'!AR823","v":0},{"$f":"IF('1. Ordersheet'!AE823=\"\",\"\",'1. Ordersheet'!AE823)","v":""}]
[{"$f":"IF('1. Ordersheet'!B824=\"\",\"\",'1. Ordersheet'!B824)","v":""},{"$f":"IF('1. Ordersheet'!I824=\"\",\"\",'1. Ordersheet'!I824)","v":""},{"$f":"IF('1. Ordersheet'!J824=\"\",\"\",'1. Ordersheet'!J824)","v":""},{"$f":"IF('1. Ordersheet'!K824=\"\",\"\",'1. Ordersheet'!K824)","v":""},{"$f":"IF('1. Ordersheet'!M824=\"\",\"\",'1. Ordersheet'!M824)","v":""},null,null,{"$f":"'1. Ordersheet'!AR824","v":0},{"$f":"IF('1. Ordersheet'!AE824=\"\",\"\",'1. Ordersheet'!AE824)","v":""}]
[{"$f":"IF('1. Ordersheet'!B825=\"\",\"\",'1. Ordersheet'!B825)","v":""},{"$f":"IF('1. Ordersheet'!I825=\"\",\"\",'1. Ordersheet'!I825)","v":""},{"$f":"IF('1. Ordersheet'!J825=\"\",\"\",'1. Ordersheet'!J825)","v":""},{"$f":"IF('1. Ordersheet'!K825=\"\",\"\",'1. Ordersheet'!K825)","v":""},{"$f":"IF('1. Ordersheet'!M825=\"\",\"\",'1. Ordersheet'!M825)","v":""},null,null,{"$f":"'1. Ordersheet'!AR825","v":0},{"$f":"IF('1. Ordersheet'!AE825=\"\",\"\",'1. Ordersheet'!AE825)","v":""}]
[{"$f":"IF('1. Ordersheet'!B826=\"\",\"\",'1. Ordersheet'!B826)","v":""},{"$f":"IF('1. Ordersheet'!I826=\"\",\"\",'1. Ordersheet'!I826)","v":""},{"$f":"IF('1. Ordersheet'!J826=\"\",\"\",'1. Ordersheet'!J826)","v":""},{"$f":"IF('1. Ordersheet'!K826=\"\",\"\",'1. Ordersheet'!K826)","v":""},{"$f":"IF('1. Ordersheet'!M826=\"\",\"\",'1. Ordersheet'!M826)","v":""},null,null,{"$f":"'1. Ordersheet'!AR826","v":0},{"$f":"IF('1. Ordersheet'!AE826=\"\",\"\",'1. Ordersheet'!AE826)","v":""}]
[{"$f":"IF('1. Ordersheet'!B827=\"\",\"\",'1. Ordersheet'!B827)","v":""},{"$f":"IF('1. Ordersheet'!I827=\"\",\"\",'1. Ordersheet'!I827)","v":""},{"$f":"IF('1. Ordersheet'!J827=\"\",\"\",'1. Ordersheet'!J827)","v":""},{"$f":"IF('1. Ordersheet'!K827=\"\",\"\",'1. Ordersheet'!K827)","v":""},{"$f":"IF('1. Ordersheet'!M827=\"\",\"\",'1. Ordersheet'!M827)","v":""},null,null,{"$f":"'1. Ordersheet'!AR827","v":0},{"$f":"IF('1. Ordersheet'!AE827=\"\",\"\",'1. Ordersheet'!AE827)","v":""}]
[{"$f":"IF('1. Ordersheet'!B828=\"\",\"\",'1. Ordersheet'!B828)","v":""},{"$f":"IF('1. Ordersheet'!I828=\"\",\"\",'1. Ordersheet'!I828)","v":""},{"$f":"IF('1. Ordersheet'!J828=\"\",\"\",'1. Ordersheet'!J828)","v":""},{"$f":"IF('1. Ordersheet'!K828=\"\",\"\",'1. Ordersheet'!K828)","v":""},{"$f":"IF('1. Ordersheet'!M828=\"\",\"\",'1. Ordersheet'!M828)","v":""},null,null,{"$f":"'1. Ordersheet'!AR828","v":0},{"$f":"IF('1. Ordersheet'!AE828=\"\",\"\",'1. Ordersheet'!AE828)","v":""}]
[{"$f":"IF('1. Ordersheet'!B829=\"\",\"\",'1. Ordersheet'!B829)","v":""},{"$f":"IF('1. Ordersheet'!I829=\"\",\"\",'1. Ordersheet'!I829)","v":""},{"$f":"IF('1. Ordersheet'!J829=\"\",\"\",'1. Ordersheet'!J829)","v":""},{"$f":"IF('1. Ordersheet'!K829=\"\",\"\",'1. Ordersheet'!K829)","v":""},{"$f":"IF('1. Ordersheet'!M829=\"\",\"\",'1. Ordersheet'!M829)","v":""},null,null,{"$f":"'1. Ordersheet'!AR829","v":0},{"$f":"IF('1. Ordersheet'!AE829=\"\",\"\",'1. Ordersheet'!AE829)","v":""}]
[{"$f":"IF('1. Ordersheet'!B830=\"\",\"\",'1. Ordersheet'!B830)","v":""},{"$f":"IF('1. Ordersheet'!I830=\"\",\"\",'1. Ordersheet'!I830)","v":""},{"$f":"IF('1. Ordersheet'!J830=\"\",\"\",'1. Ordersheet'!J830)","v":""},{"$f":"IF('1. Ordersheet'!K830=\"\",\"\",'1. Ordersheet'!K830)","v":""},{"$f":"IF('1. Ordersheet'!M830=\"\",\"\",'1. Ordersheet'!M830)","v":""},null,null,{"$f":"'1. Ordersheet'!AR830","v":0},{"$f":"IF('1. Ordersheet'!AE830=\"\",\"\",'1. Ordersheet'!AE830)","v":""}]
[{"$f":"IF('1. Ordersheet'!B831=\"\",\"\",'1. Ordersheet'!B831)","v":""},{"$f":"IF('1. Ordersheet'!I831=\"\",\"\",'1. Ordersheet'!I831)","v":""},{"$f":"IF('1. Ordersheet'!J831=\"\",\"\",'1. Ordersheet'!J831)","v":""},{"$f":"IF('1. Ordersheet'!K831=\"\",\"\",'1. Ordersheet'!K831)","v":""},{"$f":"IF('1. Ordersheet'!M831=\"\",\"\",'1. Ordersheet'!M831)","v":""},null,null,{"$f":"'1. Ordersheet'!AR831","v":0},{"$f":"IF('1. Ordersheet'!AE831=\"\",\"\",'1. Ordersheet'!AE831)","v":""}]
[{"$f":"IF('1. Ordersheet'!B832=\"\",\"\",'1. Ordersheet'!B832)","v":""},{"$f":"IF('1. Ordersheet'!I832=\"\",\"\",'1. Ordersheet'!I832)","v":""},{"$f":"IF('1. Ordersheet'!J832=\"\",\"\",'1. Ordersheet'!J832)","v":""},{"$f":"IF('1. Ordersheet'!K832=\"\",\"\",'1. Ordersheet'!K832)","v":""},{"$f":"IF('1. Ordersheet'!M832=\"\",\"\",'1. Ordersheet'!M832)","v":""},null,null,{"$f":"'1. Ordersheet'!AR832","v":0},{"$f":"IF('1. Ordersheet'!AE832=\"\",\"\",'1. Ordersheet'!AE832)","v":""}]
[{"$f":"IF('1. Ordersheet'!B833=\"\",\"\",'1. Ordersheet'!B833)","v":""},{"$f":"IF('1. Ordersheet'!I833=\"\",\"\",'1. Ordersheet'!I833)","v":""},{"$f":"IF('1. Ordersheet'!J833=\"\",\"\",'1. Ordersheet'!J833)","v":""},{"$f":"IF('1. Ordersheet'!K833=\"\",\"\",'1. Ordersheet'!K833)","v":""},{"$f":"IF('1. Ordersheet'!M833=\"\",\"\",'1. Ordersheet'!M833)","v":""},null,null,{"$f":"'1. Ordersheet'!AR833","v":0},{"$f":"IF('1. Ordersheet'!AE833=\"\",\"\",'1. Ordersheet'!AE833)","v":""}]
[{"$f":"IF('1. Ordersheet'!B834=\"\",\"\",'1. Ordersheet'!B834)","v":""},{"$f":"IF('1. Ordersheet'!I834=\"\",\"\",'1. Ordersheet'!I834)","v":""},{"$f":"IF('1. Ordersheet'!J834=\"\",\"\",'1. Ordersheet'!J834)","v":""},{"$f":"IF('1. Ordersheet'!K834=\"\",\"\",'1. Ordersheet'!K834)","v":""},{"$f":"IF('1. Ordersheet'!M834=\"\",\"\",'1. Ordersheet'!M834)","v":""},null,null,{"$f":"'1. Ordersheet'!AR834","v":0},{"$f":"IF('1. Ordersheet'!AE834=\"\",\"\",'1. Ordersheet'!AE834)","v":""}]
[{"$f":"IF('1. Ordersheet'!B835=\"\",\"\",'1. Ordersheet'!B835)","v":""},{"$f":"IF('1. Ordersheet'!I835=\"\",\"\",'1. Ordersheet'!I835)","v":""},{"$f":"IF('1. Ordersheet'!J835=\"\",\"\",'1. Ordersheet'!J835)","v":""},{"$f":"IF('1. Ordersheet'!K835=\"\",\"\",'1. Ordersheet'!K835)","v":""},{"$f":"IF('1. Ordersheet'!M835=\"\",\"\",'1. Ordersheet'!M835)","v":""},null,null,{"$f":"'1. Ordersheet'!AR835","v":0},{"$f":"IF('1. Ordersheet'!AE835=\"\",\"\",'1. Ordersheet'!AE835)","v":""}]
[{"$f":"IF('1. Ordersheet'!B836=\"\",\"\",'1. Ordersheet'!B836)","v":""},{"$f":"IF('1. Ordersheet'!I836=\"\",\"\",'1. Ordersheet'!I836)","v":""},{"$f":"IF('1. Ordersheet'!J836=\"\",\"\",'1. Ordersheet'!J836)","v":""},{"$f":"IF('1. Ordersheet'!K836=\"\",\"\",'1. Ordersheet'!K836)","v":""},{"$f":"IF('1. Ordersheet'!M836=\"\",\"\",'1. Ordersheet'!M836)","v":""},null,null,{"$f":"'1. Ordersheet'!AR836","v":0},{"$f":"IF('1. Ordersheet'!AE836=\"\",\"\",'1. Ordersheet'!AE836)","v":""}]
[{"$f":"IF('1. Ordersheet'!B837=\"\",\"\",'1. Ordersheet'!B837)","v":""},{"$f":"IF('1. Ordersheet'!I837=\"\",\"\",'1. Ordersheet'!I837)","v":""},{"$f":"IF('1. Ordersheet'!J837=\"\",\"\",'1. Ordersheet'!J837)","v":""},{"$f":"IF('1. Ordersheet'!K837=\"\",\"\",'1. Ordersheet'!K837)","v":""},{"$f":"IF('1. Ordersheet'!M837=\"\",\"\",'1. Ordersheet'!M837)","v":""},null,null,{"$f":"'1. Ordersheet'!AR837","v":0},{"$f":"IF('1. Ordersheet'!AE837=\"\",\"\",'1. Ordersheet'!AE837)","v":""}]
[{"$f":"IF('1. Ordersheet'!B838=\"\",\"\",'1. Ordersheet'!B838)","v":""},{"$f":"IF('1. Ordersheet'!I838=\"\",\"\",'1. Ordersheet'!I838)","v":""},{"$f":"IF('1. Ordersheet'!J838=\"\",\"\",'1. Ordersheet'!J838)","v":""},{"$f":"IF('1. Ordersheet'!K838=\"\",\"\",'1. Ordersheet'!K838)","v":""},{"$f":"IF('1. Ordersheet'!M838=\"\",\"\",'1. Ordersheet'!M838)","v":""},null,null,{"$f":"'1. Ordersheet'!AR838","v":0},{"$f":"IF('1. Ordersheet'!AE838=\"\",\"\",'1. Ordersheet'!AE838)","v":""}]
[{"$f":"IF('1. Ordersheet'!B839=\"\",\"\",'1. Ordersheet'!B839)","v":""},{"$f":"IF('1. Ordersheet'!I839=\"\",\"\",'1. Ordersheet'!I839)","v":""},{"$f":"IF('1. Ordersheet'!J839=\"\",\"\",'1. Ordersheet'!J839)","v":""},{"$f":"IF('1. Ordersheet'!K839=\"\",\"\",'1. Ordersheet'!K839)","v":""},{"$f":"IF('1. Ordersheet'!M839=\"\",\"\",'1. Ordersheet'!M839)","v":""},null,null,{"$f":"'1. Ordersheet'!AR839","v":0},{"$f":"IF('1. Ordersheet'!AE839=\"\",\"\",'1. Ordersheet'!AE839)","v":""}]
[{"$f":"IF('1. Ordersheet'!B840=\"\",\"\",'1. Ordersheet'!B840)","v":""},{"$f":"IF('1. Ordersheet'!I840=\"\",\"\",'1. Ordersheet'!I840)","v":""},{"$f":"IF('1. Ordersheet'!J840=\"\",\"\",'1. Ordersheet'!J840)","v":""},{"$f":"IF('1. Ordersheet'!K840=\"\",\"\",'1. Ordersheet'!K840)","v":""},{"$f":"IF('1. Ordersheet'!M840=\"\",\"\",'1. Ordersheet'!M840)","v":""},null,null,{"$f":"'1. Ordersheet'!AR840","v":0},{"$f":"IF('1. Ordersheet'!AE840=\"\",\"\",'1. Ordersheet'!AE840)","v":""}]
[{"$f":"IF('1. Ordersheet'!B841=\"\",\"\",'1. Ordersheet'!B841)","v":""},{"$f":"IF('1. Ordersheet'!I841=\"\",\"\",'1. Ordersheet'!I841)","v":""},{"$f":"IF('1. Ordersheet'!J841=\"\",\"\",'1. Ordersheet'!J841)","v":""},{"$f":"IF('1. Ordersheet'!K841=\"\",\"\",'1. Ordersheet'!K841)","v":""},{"$f":"IF('1. Ordersheet'!M841=\"\",\"\",'1. Ordersheet'!M841)","v":""},null,null,{"$f":"'1. Ordersheet'!AR841","v":0},{"$f":"IF('1. Ordersheet'!AE841=\"\",\"\",'1. Ordersheet'!AE841)","v":""}]
[{"$f":"IF('1. Ordersheet'!B842=\"\",\"\",'1. Ordersheet'!B842)","v":""},{"$f":"IF('1. Ordersheet'!I842=\"\",\"\",'1. Ordersheet'!I842)","v":""},{"$f":"IF('1. Ordersheet'!J842=\"\",\"\",'1. Ordersheet'!J842)","v":""},{"$f":"IF('1. Ordersheet'!K842=\"\",\"\",'1. Ordersheet'!K842)","v":""},{"$f":"IF('1. Ordersheet'!M842=\"\",\"\",'1. Ordersheet'!M842)","v":""},null,null,{"$f":"'1. Ordersheet'!AR842","v":0},{"$f":"IF('1. Ordersheet'!AE842=\"\",\"\",'1. Ordersheet'!AE842)","v":""}]
[{"$f":"IF('1. Ordersheet'!B843=\"\",\"\",'1. Ordersheet'!B843)","v":""},{"$f":"IF('1. Ordersheet'!I843=\"\",\"\",'1. Ordersheet'!I843)","v":""},{"$f":"IF('1. Ordersheet'!J843=\"\",\"\",'1. Ordersheet'!J843)","v":""},{"$f":"IF('1. Ordersheet'!K843=\"\",\"\",'1. Ordersheet'!K843)","v":""},{"$f":"IF('1. Ordersheet'!M843=\"\",\"\",'1. Ordersheet'!M843)","v":""},null,null,{"$f":"'1. Ordersheet'!AR843","v":0},{"$f":"IF('1. Ordersheet'!AE843=\"\",\"\",'1. Ordersheet'!AE843)","v":""}]
[{"$f":"IF('1. Ordersheet'!B844=\"\",\"\",'1. Ordersheet'!B844)","v":""},{"$f":"IF('1. Ordersheet'!I844=\"\",\"\",'1. Ordersheet'!I844)","v":""},{"$f":"IF('1. Ordersheet'!J844=\"\",\"\",'1. Ordersheet'!J844)","v":""},{"$f":"IF('1. Ordersheet'!K844=\"\",\"\",'1. Ordersheet'!K844)","v":""},{"$f":"IF('1. Ordersheet'!M844=\"\",\"\",'1. Ordersheet'!M844)","v":""},null,null,{"$f":"'1. Ordersheet'!AR844","v":0},{"$f":"IF('1. Ordersheet'!AE844=\"\",\"\",'1. Ordersheet'!AE844)","v":""}]
[{"$f":"IF('1. Ordersheet'!B845=\"\",\"\",'1. Ordersheet'!B845)","v":""},{"$f":"IF('1. Ordersheet'!I845=\"\",\"\",'1. Ordersheet'!I845)","v":""},{"$f":"IF('1. Ordersheet'!J845=\"\",\"\",'1. Ordersheet'!J845)","v":""},{"$f":"IF('1. Ordersheet'!K845=\"\",\"\",'1. Ordersheet'!K845)","v":""},{"$f":"IF('1. Ordersheet'!M845=\"\",\"\",'1. Ordersheet'!M845)","v":""},null,null,{"$f":"'1. Ordersheet'!AR845","v":0},{"$f":"IF('1. Ordersheet'!AE845=\"\",\"\",'1. Ordersheet'!AE845)","v":""}]
[{"$f":"IF('1. Ordersheet'!B846=\"\",\"\",'1. Ordersheet'!B846)","v":""},{"$f":"IF('1. Ordersheet'!I846=\"\",\"\",'1. Ordersheet'!I846)","v":""},{"$f":"IF('1. Ordersheet'!J846=\"\",\"\",'1. Ordersheet'!J846)","v":""},{"$f":"IF('1. Ordersheet'!K846=\"\",\"\",'1. Ordersheet'!K846)","v":""},{"$f":"IF('1. Ordersheet'!M846=\"\",\"\",'1. Ordersheet'!M846)","v":""},null,null,{"$f":"'1. Ordersheet'!AR846","v":0},{"$f":"IF('1. Ordersheet'!AE846=\"\",\"\",'1. Ordersheet'!AE846)","v":""}]
[{"$f":"IF('1. Ordersheet'!B847=\"\",\"\",'1. Ordersheet'!B847)","v":""},{"$f":"IF('1. Ordersheet'!I847=\"\",\"\",'1. Ordersheet'!I847)","v":""},{"$f":"IF('1. Ordersheet'!J847=\"\",\"\",'1. Ordersheet'!J847)","v":""},{"$f":"IF('1. Ordersheet'!K847=\"\",\"\",'1. Ordersheet'!K847)","v":""},{"$f":"IF('1. Ordersheet'!M847=\"\",\"\",'1. Ordersheet'!M847)","v":""},null,null,{"$f":"'1. Ordersheet'!AR847","v":0},{"$f":"IF('1. Ordersheet'!AE847=\"\",\"\",'1. Ordersheet'!AE847)","v":""}]
[{"$f":"IF('1. Ordersheet'!B848=\"\",\"\",'1. Ordersheet'!B848)","v":""},{"$f":"IF('1. Ordersheet'!I848=\"\",\"\",'1. Ordersheet'!I848)","v":""},{"$f":"IF('1. Ordersheet'!J848=\"\",\"\",'1. Ordersheet'!J848)","v":""},{"$f":"IF('1. Ordersheet'!K848=\"\",\"\",'1. Ordersheet'!K848)","v":""},{"$f":"IF('1. Ordersheet'!M848=\"\",\"\",'1. Ordersheet'!M848)","v":""},null,null,{"$f":"'1. Ordersheet'!AR848","v":0},{"$f":"IF('1. Ordersheet'!AE848=\"\",\"\",'1. Ordersheet'!AE848)","v":""}]
[{"$f":"IF('1. Ordersheet'!B849=\"\",\"\",'1. Ordersheet'!B849)","v":""},{"$f":"IF('1. Ordersheet'!I849=\"\",\"\",'1. Ordersheet'!I849)","v":""},{"$f":"IF('1. Ordersheet'!J849=\"\",\"\",'1. Ordersheet'!J849)","v":""},{"$f":"IF('1. Ordersheet'!K849=\"\",\"\",'1. Ordersheet'!K849)","v":""},{"$f":"IF('1. Ordersheet'!M849=\"\",\"\",'1. Ordersheet'!M849)","v":""},null,null,{"$f":"'1. Ordersheet'!AR849","v":0},{"$f":"IF('1. Ordersheet'!AE849=\"\",\"\",'1. Ordersheet'!AE849)","v":""}]
[{"$f":"IF('1. Ordersheet'!B850=\"\",\"\",'1. Ordersheet'!B850)","v":""},{"$f":"IF('1. Ordersheet'!I850=\"\",\"\",'1. Ordersheet'!I850)","v":""},{"$f":"IF('1. Ordersheet'!J850=\"\",\"\",'1. Ordersheet'!J850)","v":""},{"$f":"IF('1. Ordersheet'!K850=\"\",\"\",'1. Ordersheet'!K850)","v":""},{"$f":"IF('1. Ordersheet'!M850=\"\",\"\",'1. Ordersheet'!M850)","v":""},null,null,{"$f":"'1. Ordersheet'!AR850","v":0},{"$f":"IF('1. Ordersheet'!AE850=\"\",\"\",'1. Ordersheet'!AE850)","v":""}]
[{"$f":"IF('1. Ordersheet'!B851=\"\",\"\",'1. Ordersheet'!B851)","v":""},{"$f":"IF('1. Ordersheet'!I851=\"\",\"\",'1. Ordersheet'!I851)","v":""},{"$f":"IF('1. Ordersheet'!J851=\"\",\"\",'1. Ordersheet'!J851)","v":""},{"$f":"IF('1. Ordersheet'!K851=\"\",\"\",'1. Ordersheet'!K851)","v":""},{"$f":"IF('1. Ordersheet'!M851=\"\",\"\",'1. Ordersheet'!M851)","v":""},null,null,{"$f":"'1. Ordersheet'!AR851","v":0},{"$f":"IF('1. Ordersheet'!AE851=\"\",\"\",'1. Ordersheet'!AE851)","v":""}]
[{"$f":"IF('1. Ordersheet'!B852=\"\",\"\",'1. Ordersheet'!B852)","v":""},{"$f":"IF('1. Ordersheet'!I852=\"\",\"\",'1. Ordersheet'!I852)","v":""},{"$f":"IF('1. Ordersheet'!J852=\"\",\"\",'1. Ordersheet'!J852)","v":""},{"$f":"IF('1. Ordersheet'!K852=\"\",\"\",'1. Ordersheet'!K852)","v":""},{"$f":"IF('1. Ordersheet'!M852=\"\",\"\",'1. Ordersheet'!M852)","v":""},null,null,{"$f":"'1. Ordersheet'!AR852","v":0},{"$f":"IF('1. Ordersheet'!AE852=\"\",\"\",'1. Ordersheet'!AE852)","v":""}]
[{"$f":"IF('1. Ordersheet'!B853=\"\",\"\",'1. Ordersheet'!B853)","v":""},{"$f":"IF('1. Ordersheet'!I853=\"\",\"\",'1. Ordersheet'!I853)","v":""},{"$f":"IF('1. Ordersheet'!J853=\"\",\"\",'1. Ordersheet'!J853)","v":""},{"$f":"IF('1. Ordersheet'!K853=\"\",\"\",'1. Ordersheet'!K853)","v":""},{"$f":"IF('1. Ordersheet'!M853=\"\",\"\",'1. Ordersheet'!M853)","v":""},null,null,{"$f":"'1. Ordersheet'!AR853","v":0},{"$f":"IF('1. Ordersheet'!AE853=\"\",\"\",'1. Ordersheet'!AE853)","v":""}]
[{"$f":"IF('1. Ordersheet'!B854=\"\",\"\",'1. Ordersheet'!B854)","v":""},{"$f":"IF('1. Ordersheet'!I854=\"\",\"\",'1. Ordersheet'!I854)","v":""},{"$f":"IF('1. Ordersheet'!J854=\"\",\"\",'1. Ordersheet'!J854)","v":""},{"$f":"IF('1. Ordersheet'!K854=\"\",\"\",'1. Ordersheet'!K854)","v":""},{"$f":"IF('1. Ordersheet'!M854=\"\",\"\",'1. Ordersheet'!M854)","v":""},null,null,{"$f":"'1. Ordersheet'!AR854","v":0},{"$f":"IF('1. Ordersheet'!AE854=\"\",\"\",'1. Ordersheet'!AE854)","v":""}]
[{"$f":"IF('1. Ordersheet'!B855=\"\",\"\",'1. Ordersheet'!B855)","v":""},{"$f":"IF('1. Ordersheet'!I855=\"\",\"\",'1. Ordersheet'!I855)","v":""},{"$f":"IF('1. Ordersheet'!J855=\"\",\"\",'1. Ordersheet'!J855)","v":""},{"$f":"IF('1. Ordersheet'!K855=\"\",\"\",'1. Ordersheet'!K855)","v":""},{"$f":"IF('1. Ordersheet'!M855=\"\",\"\",'1. Ordersheet'!M855)","v":""},null,null,{"$f":"'1. Ordersheet'!AR855","v":0},{"$f":"IF('1. Ordersheet'!AE855=\"\",\"\",'1. Ordersheet'!AE855)","v":""}]
[{"$f":"IF('1. Ordersheet'!B856=\"\",\"\",'1. Ordersheet'!B856)","v":""},{"$f":"IF('1. Ordersheet'!I856=\"\",\"\",'1. Ordersheet'!I856)","v":""},{"$f":"IF('1. Ordersheet'!J856=\"\",\"\",'1. Ordersheet'!J856)","v":""},{"$f":"IF('1. Ordersheet'!K856=\"\",\"\",'1. Ordersheet'!K856)","v":""},{"$f":"IF('1. Ordersheet'!M856=\"\",\"\",'1. Ordersheet'!M856)","v":""},null,null,{"$f":"'1. Ordersheet'!AR856","v":0},{"$f":"IF('1. Ordersheet'!AE856=\"\",\"\",'1. Ordersheet'!AE856)","v":""}]
[{"$f":"IF('1. Ordersheet'!B857=\"\",\"\",'1. Ordersheet'!B857)","v":""},{"$f":"IF('1. Ordersheet'!I857=\"\",\"\",'1. Ordersheet'!I857)","v":""},{"$f":"IF('1. Ordersheet'!J857=\"\",\"\",'1. Ordersheet'!J857)","v":""},{"$f":"IF('1. Ordersheet'!K857=\"\",\"\",'1. Ordersheet'!K857)","v":""},{"$f":"IF('1. Ordersheet'!M857=\"\",\"\",'1. Ordersheet'!M857)","v":""},null,null,{"$f":"'1. Ordersheet'!AR857","v":0},{"$f":"IF('1. Ordersheet'!AE857=\"\",\"\",'1. Ordersheet'!AE857)","v":""}]
[{"$f":"IF('1. Ordersheet'!B858=\"\",\"\",'1. Ordersheet'!B858)","v":""},{"$f":"IF('1. Ordersheet'!I858=\"\",\"\",'1. Ordersheet'!I858)","v":""},{"$f":"IF('1. Ordersheet'!J858=\"\",\"\",'1. Ordersheet'!J858)","v":""},{"$f":"IF('1. Ordersheet'!K858=\"\",\"\",'1. Ordersheet'!K858)","v":""},{"$f":"IF('1. Ordersheet'!M858=\"\",\"\",'1. Ordersheet'!M858)","v":""},null,null,{"$f":"'1. Ordersheet'!AR858","v":0},{"$f":"IF('1. Ordersheet'!AE858=\"\",\"\",'1. Ordersheet'!AE858)","v":""}]
[{"$f":"IF('1. Ordersheet'!B859=\"\",\"\",'1. Ordersheet'!B859)","v":""},{"$f":"IF('1. Ordersheet'!I859=\"\",\"\",'1. Ordersheet'!I859)","v":""},{"$f":"IF('1. Ordersheet'!J859=\"\",\"\",'1. Ordersheet'!J859)","v":""},{"$f":"IF('1. Ordersheet'!K859=\"\",\"\",'1. Ordersheet'!K859)","v":""},{"$f":"IF('1. Ordersheet'!M859=\"\",\"\",'1. Ordersheet'!M859)","v":""},null,null,{"$f":"'1. Ordersheet'!AR859","v":0},{"$f":"IF('1. Ordersheet'!AE859=\"\",\"\",'1. Ordersheet'!AE859)","v":""}]
[{"$f":"IF('1. Ordersheet'!B860=\"\",\"\",'1. Ordersheet'!B860)","v":""},{"$f":"IF('1. Ordersheet'!I860=\"\",\"\",'1. Ordersheet'!I860)","v":""},{"$f":"IF('1. Ordersheet'!J860=\"\",\"\",'1. Ordersheet'!J860)","v":""},{"$f":"IF('1. Ordersheet'!K860=\"\",\"\",'1. Ordersheet'!K860)","v":""},{"$f":"IF('1. Ordersheet'!M860=\"\",\"\",'1. Ordersheet'!M860)","v":""},null,null,{"$f":"'1. Ordersheet'!AR860","v":0},{"$f":"IF('1. Ordersheet'!AE860=\"\",\"\",'1. Ordersheet'!AE860)","v":""}]
[{"$f":"IF('1. Ordersheet'!B861=\"\",\"\",'1. Ordersheet'!B861)","v":""},{"$f":"IF('1. Ordersheet'!I861=\"\",\"\",'1. Ordersheet'!I861)","v":""},{"$f":"IF('1. Ordersheet'!J861=\"\",\"\",'1. Ordersheet'!J861)","v":""},{"$f":"IF('1. Ordersheet'!K861=\"\",\"\",'1. Ordersheet'!K861)","v":""},{"$f":"IF('1. Ordersheet'!M861=\"\",\"\",'1. Ordersheet'!M861)","v":""},null,null,{"$f":"'1. Ordersheet'!AR861","v":0},{"$f":"IF('1. Ordersheet'!AE861=\"\",\"\",'1. Ordersheet'!AE861)","v":""}]
[{"$f":"IF('1. Ordersheet'!B862=\"\",\"\",'1. Ordersheet'!B862)","v":""},{"$f":"IF('1. Ordersheet'!I862=\"\",\"\",'1. Ordersheet'!I862)","v":""},{"$f":"IF('1. Ordersheet'!J862=\"\",\"\",'1. Ordersheet'!J862)","v":""},{"$f":"IF('1. Ordersheet'!K862=\"\",\"\",'1. Ordersheet'!K862)","v":""},{"$f":"IF('1. Ordersheet'!M862=\"\",\"\",'1. Ordersheet'!M862)","v":""},null,null,{"$f":"'1. Ordersheet'!AR862","v":0},{"$f":"IF('1. Ordersheet'!AE862=\"\",\"\",'1. Ordersheet'!AE862)","v":""}]
[{"$f":"IF('1. Ordersheet'!B863=\"\",\"\",'1. Ordersheet'!B863)","v":""},{"$f":"IF('1. Ordersheet'!I863=\"\",\"\",'1. Ordersheet'!I863)","v":""},{"$f":"IF('1. Ordersheet'!J863=\"\",\"\",'1. Ordersheet'!J863)","v":""},{"$f":"IF('1. Ordersheet'!K863=\"\",\"\",'1. Ordersheet'!K863)","v":""},{"$f":"IF('1. Ordersheet'!M863=\"\",\"\",'1. Ordersheet'!M863)","v":""},null,null,{"$f":"'1. Ordersheet'!AR863","v":0},{"$f":"IF('1. Ordersheet'!AE863=\"\",\"\",'1. Ordersheet'!AE863)","v":""}]
[{"$f":"IF('1. Ordersheet'!B864=\"\",\"\",'1. Ordersheet'!B864)","v":""},{"$f":"IF('1. Ordersheet'!I864=\"\",\"\",'1. Ordersheet'!I864)","v":""},{"$f":"IF('1. Ordersheet'!J864=\"\",\"\",'1. Ordersheet'!J864)","v":""},{"$f":"IF('1. Ordersheet'!K864=\"\",\"\",'1. Ordersheet'!K864)","v":""},{"$f":"IF('1. Ordersheet'!M864=\"\",\"\",'1. Ordersheet'!M864)","v":""},null,null,{"$f":"'1. Ordersheet'!AR864","v":0},{"$f":"IF('1. Ordersheet'!AE864=\"\",\"\",'1. Ordersheet'!AE864)","v":""}]
[{"$f":"IF('1. Ordersheet'!B865=\"\",\"\",'1. Ordersheet'!B865)","v":""},{"$f":"IF('1. Ordersheet'!I865=\"\",\"\",'1. Ordersheet'!I865)","v":""},{"$f":"IF('1. Ordersheet'!J865=\"\",\"\",'1. Ordersheet'!J865)","v":""},{"$f":"IF('1. Ordersheet'!K865=\"\",\"\",'1. Ordersheet'!K865)","v":""},{"$f":"IF('1. Ordersheet'!M865=\"\",\"\",'1. Ordersheet'!M865)","v":""},null,null,{"$f":"'1. Ordersheet'!AR865","v":0},{"$f":"IF('1. Ordersheet'!AE865=\"\",\"\",'1. Ordersheet'!AE865)","v":""}]
[{"$f":"IF('1. Ordersheet'!B866=\"\",\"\",'1. Ordersheet'!B866)","v":""},{"$f":"IF('1. Ordersheet'!I866=\"\",\"\",'1. Ordersheet'!I866)","v":""},{"$f":"IF('1. Ordersheet'!J866=\"\",\"\",'1. Ordersheet'!J866)","v":""},{"$f":"IF('1. Ordersheet'!K866=\"\",\"\",'1. Ordersheet'!K866)","v":""},{"$f":"IF('1. Ordersheet'!M866=\"\",\"\",'1. Ordersheet'!M866)","v":""},null,null,{"$f":"'1. Ordersheet'!AR866","v":0},{"$f":"IF('1. Ordersheet'!AE866=\"\",\"\",'1. Ordersheet'!AE866)","v":""}]
[{"$f":"IF('1. Ordersheet'!B867=\"\",\"\",'1. Ordersheet'!B867)","v":""},{"$f":"IF('1. Ordersheet'!I867=\"\",\"\",'1. Ordersheet'!I867)","v":""},{"$f":"IF('1. Ordersheet'!J867=\"\",\"\",'1. Ordersheet'!J867)","v":""},{"$f":"IF('1. Ordersheet'!K867=\"\",\"\",'1. Ordersheet'!K867)","v":""},{"$f":"IF('1. Ordersheet'!M867=\"\",\"\",'1. Ordersheet'!M867)","v":""},null,null,{"$f":"'1. Ordersheet'!AR867","v":0},{"$f":"IF('1. Ordersheet'!AE867=\"\",\"\",'1. Ordersheet'!AE867)","v":""}]
[{"$f":"IF('1. Ordersheet'!B868=\"\",\"\",'1. Ordersheet'!B868)","v":""},{"$f":"IF('1. Ordersheet'!I868=\"\",\"\",'1. Ordersheet'!I868)","v":""},{"$f":"IF('1. Ordersheet'!J868=\"\",\"\",'1. Ordersheet'!J868)","v":""},{"$f":"IF('1. Ordersheet'!K868=\"\",\"\",'1. Ordersheet'!K868)","v":""},{"$f":"IF('1. Ordersheet'!M868=\"\",\"\",'1. Ordersheet'!M868)","v":""},null,null,{"$f":"'1. Ordersheet'!AR868","v":0},{"$f":"IF('1. Ordersheet'!AE868=\"\",\"\",'1. Ordersheet'!AE868)","v":""}]
[{"$f":"IF('1. Ordersheet'!B869=\"\",\"\",'1. Ordersheet'!B869)","v":""},{"$f":"IF('1. Ordersheet'!I869=\"\",\"\",'1. Ordersheet'!I869)","v":""},{"$f":"IF('1. Ordersheet'!J869=\"\",\"\",'1. Ordersheet'!J869)","v":""},{"$f":"IF('1. Ordersheet'!K869=\"\",\"\",'1. Ordersheet'!K869)","v":""},{"$f":"IF('1. Ordersheet'!M869=\"\",\"\",'1. Ordersheet'!M869)","v":""},null,null,{"$f":"'1. Ordersheet'!AR869","v":0},{"$f":"IF('1. Ordersheet'!AE869=\"\",\"\",'1. Ordersheet'!AE869)","v":""}]
[{"$f":"IF('1. Ordersheet'!B870=\"\",\"\",'1. Ordersheet'!B870)","v":""},{"$f":"IF('1. Ordersheet'!I870=\"\",\"\",'1. Ordersheet'!I870)","v":""},{"$f":"IF('1. Ordersheet'!J870=\"\",\"\",'1. Ordersheet'!J870)","v":""},{"$f":"IF('1. Ordersheet'!K870=\"\",\"\",'1. Ordersheet'!K870)","v":""},{"$f":"IF('1. Ordersheet'!M870=\"\",\"\",'1. Ordersheet'!M870)","v":""},null,null,{"$f":"'1. Ordersheet'!AR870","v":0},{"$f":"IF('1. Ordersheet'!AE870=\"\",\"\",'1. Ordersheet'!AE870)","v":""}]
[{"$f":"IF('1. Ordersheet'!B871=\"\",\"\",'1. Ordersheet'!B871)","v":""},{"$f":"IF('1. Ordersheet'!I871=\"\",\"\",'1. Ordersheet'!I871)","v":""},{"$f":"IF('1. Ordersheet'!J871=\"\",\"\",'1. Ordersheet'!J871)","v":""},{"$f":"IF('1. Ordersheet'!K871=\"\",\"\",'1. Ordersheet'!K871)","v":""},{"$f":"IF('1. Ordersheet'!M871=\"\",\"\",'1. Ordersheet'!M871)","v":""},null,null,{"$f":"'1. Ordersheet'!AR871","v":0},{"$f":"IF('1. Ordersheet'!AE871=\"\",\"\",'1. Ordersheet'!AE871)","v":""}]
[{"$f":"IF('1. Ordersheet'!B872=\"\",\"\",'1. Ordersheet'!B872)","v":""},{"$f":"IF('1. Ordersheet'!I872=\"\",\"\",'1. Ordersheet'!I872)","v":""},{"$f":"IF('1. Ordersheet'!J872=\"\",\"\",'1. Ordersheet'!J872)","v":""},{"$f":"IF('1. Ordersheet'!K872=\"\",\"\",'1. Ordersheet'!K872)","v":""},{"$f":"IF('1. Ordersheet'!M872=\"\",\"\",'1. Ordersheet'!M872)","v":""},null,null,{"$f":"'1. Ordersheet'!AR872","v":0},{"$f":"IF('1. Ordersheet'!AE872=\"\",\"\",'1. Ordersheet'!AE872)","v":""}]
[{"$f":"IF('1. Ordersheet'!B873=\"\",\"\",'1. Ordersheet'!B873)","v":""},{"$f":"IF('1. Ordersheet'!I873=\"\",\"\",'1. Ordersheet'!I873)","v":""},{"$f":"IF('1. Ordersheet'!J873=\"\",\"\",'1. Ordersheet'!J873)","v":""},{"$f":"IF('1. Ordersheet'!K873=\"\",\"\",'1. Ordersheet'!K873)","v":""},{"$f":"IF('1. Ordersheet'!M873=\"\",\"\",'1. Ordersheet'!M873)","v":""},null,null,{"$f":"'1. Ordersheet'!AR873","v":0},{"$f":"IF('1. Ordersheet'!AE873=\"\",\"\",'1. Ordersheet'!AE873)","v":""}]
[{"$f":"IF('1. Ordersheet'!B874=\"\",\"\",'1. Ordersheet'!B874)","v":""},{"$f":"IF('1. Ordersheet'!I874=\"\",\"\",'1. Ordersheet'!I874)","v":""},{"$f":"IF('1. Ordersheet'!J874=\"\",\"\",'1. Ordersheet'!J874)","v":""},{"$f":"IF('1. Ordersheet'!K874=\"\",\"\",'1. Ordersheet'!K874)","v":""},{"$f":"IF('1. Ordersheet'!M874=\"\",\"\",'1. Ordersheet'!M874)","v":""},null,null,{"$f":"'1. Ordersheet'!AR874","v":0},{"$f":"IF('1. Ordersheet'!AE874=\"\",\"\",'1. Ordersheet'!AE874)","v":""}]
[{"$f":"IF('1. Ordersheet'!B875=\"\",\"\",'1. Ordersheet'!B875)","v":""},{"$f":"IF('1. Ordersheet'!I875=\"\",\"\",'1. Ordersheet'!I875)","v":""},{"$f":"IF('1. Ordersheet'!J875=\"\",\"\",'1. Ordersheet'!J875)","v":""},{"$f":"IF('1. Ordersheet'!K875=\"\",\"\",'1. Ordersheet'!K875)","v":""},{"$f":"IF('1. Ordersheet'!M875=\"\",\"\",'1. Ordersheet'!M875)","v":""},null,null,{"$f":"'1. Ordersheet'!AR875","v":0},{"$f":"IF('1. Ordersheet'!AE875=\"\",\"\",'1. Ordersheet'!AE875)","v":""}]
[{"$f":"IF('1. Ordersheet'!B876=\"\",\"\",'1. Ordersheet'!B876)","v":""},{"$f":"IF('1. Ordersheet'!I876=\"\",\"\",'1. Ordersheet'!I876)","v":""},{"$f":"IF('1. Ordersheet'!J876=\"\",\"\",'1. Ordersheet'!J876)","v":""},{"$f":"IF('1. Ordersheet'!K876=\"\",\"\",'1. Ordersheet'!K876)","v":""},{"$f":"IF('1. Ordersheet'!M876=\"\",\"\",'1. Ordersheet'!M876)","v":""},null,null,{"$f":"'1. Ordersheet'!AR876","v":0},{"$f":"IF('1. Ordersheet'!AE876=\"\",\"\",'1. Ordersheet'!AE876)","v":""}]
[{"$f":"IF('1. Ordersheet'!B877=\"\",\"\",'1. Ordersheet'!B877)","v":""},{"$f":"IF('1. Ordersheet'!I877=\"\",\"\",'1. Ordersheet'!I877)","v":""},{"$f":"IF('1. Ordersheet'!J877=\"\",\"\",'1. Ordersheet'!J877)","v":""},{"$f":"IF('1. Ordersheet'!K877=\"\",\"\",'1. Ordersheet'!K877)","v":""},{"$f":"IF('1. Ordersheet'!M877=\"\",\"\",'1. Ordersheet'!M877)","v":""},null,null,{"$f":"'1. Ordersheet'!AR877","v":0},{"$f":"IF('1. Ordersheet'!AE877=\"\",\"\",'1. Ordersheet'!AE877)","v":""}]
[{"$f":"IF('1. Ordersheet'!B878=\"\",\"\",'1. Ordersheet'!B878)","v":""},{"$f":"IF('1. Ordersheet'!I878=\"\",\"\",'1. Ordersheet'!I878)","v":""},{"$f":"IF('1. Ordersheet'!J878=\"\",\"\",'1. Ordersheet'!J878)","v":""},{"$f":"IF('1. Ordersheet'!K878=\"\",\"\",'1. Ordersheet'!K878)","v":""},{"$f":"IF('1. Ordersheet'!M878=\"\",\"\",'1. Ordersheet'!M878)","v":""},null,null,{"$f":"'1. Ordersheet'!AR878","v":0},{"$f":"IF('1. Ordersheet'!AE878=\"\",\"\",'1. Ordersheet'!AE878)","v":""}]
[{"$f":"IF('1. Ordersheet'!B879=\"\",\"\",'1. Ordersheet'!B879)","v":""},{"$f":"IF('1. Ordersheet'!I879=\"\",\"\",'1. Ordersheet'!I879)","v":""},{"$f":"IF('1. Ordersheet'!J879=\"\",\"\",'1. Ordersheet'!J879)","v":""},{"$f":"IF('1. Ordersheet'!K879=\"\",\"\",'1. Ordersheet'!K879)","v":""},{"$f":"IF('1. Ordersheet'!M879=\"\",\"\",'1. Ordersheet'!M879)","v":""},null,null,{"$f":"'1. Ordersheet'!AR879","v":0},{"$f":"IF('1. Ordersheet'!AE879=\"\",\"\",'1. Ordersheet'!AE879)","v":""}]
[{"$f":"IF('1. Ordersheet'!B880=\"\",\"\",'1. Ordersheet'!B880)","v":""},{"$f":"IF('1. Ordersheet'!I880=\"\",\"\",'1. Ordersheet'!I880)","v":""},{"$f":"IF('1. Ordersheet'!J880=\"\",\"\",'1. Ordersheet'!J880)","v":""},{"$f":"IF('1. Ordersheet'!K880=\"\",\"\",'1. Ordersheet'!K880)","v":""},{"$f":"IF('1. Ordersheet'!M880=\"\",\"\",'1. Ordersheet'!M880)","v":""},null,null,{"$f":"'1. Ordersheet'!AR880","v":0},{"$f":"IF('1. Ordersheet'!AE880=\"\",\"\",'1. Ordersheet'!AE880)","v":""}]
[{"$f":"IF('1. Ordersheet'!B881=\"\",\"\",'1. Ordersheet'!B881)","v":""},{"$f":"IF('1. Ordersheet'!I881=\"\",\"\",'1. Ordersheet'!I881)","v":""},{"$f":"IF('1. Ordersheet'!J881=\"\",\"\",'1. Ordersheet'!J881)","v":""},{"$f":"IF('1. Ordersheet'!K881=\"\",\"\",'1. Ordersheet'!K881)","v":""},{"$f":"IF('1. Ordersheet'!M881=\"\",\"\",'1. Ordersheet'!M881)","v":""},null,null,{"$f":"'1. Ordersheet'!AR881","v":0},{"$f":"IF('1. Ordersheet'!AE881=\"\",\"\",'1. Ordersheet'!AE881)","v":""}]
[{"$f":"IF('1. Ordersheet'!B882=\"\",\"\",'1. Ordersheet'!B882)","v":""},{"$f":"IF('1. Ordersheet'!I882=\"\",\"\",'1. Ordersheet'!I882)","v":""},{"$f":"IF('1. Ordersheet'!J882=\"\",\"\",'1. Ordersheet'!J882)","v":""},{"$f":"IF('1. Ordersheet'!K882=\"\",\"\",'1. Ordersheet'!K882)","v":""},{"$f":"IF('1. Ordersheet'!M882=\"\",\"\",'1. Ordersheet'!M882)","v":""},null,null,{"$f":"'1. Ordersheet'!AR882","v":0},{"$f":"IF('1. Ordersheet'!AE882=\"\",\"\",'1. Ordersheet'!AE882)","v":""}]
[{"$f":"IF('1. Ordersheet'!B883=\"\",\"\",'1. Ordersheet'!B883)","v":""},{"$f":"IF('1. Ordersheet'!I883=\"\",\"\",'1. Ordersheet'!I883)","v":""},{"$f":"IF('1. Ordersheet'!J883=\"\",\"\",'1. Ordersheet'!J883)","v":""},{"$f":"IF('1. Ordersheet'!K883=\"\",\"\",'1. Ordersheet'!K883)","v":""},{"$f":"IF('1. Ordersheet'!M883=\"\",\"\",'1. Ordersheet'!M883)","v":""},null,null,{"$f":"'1. Ordersheet'!AR883","v":0},{"$f":"IF('1. Ordersheet'!AE883=\"\",\"\",'1. Ordersheet'!AE883)","v":""}]
[{"$f":"IF('1. Ordersheet'!B884=\"\",\"\",'1. Ordersheet'!B884)","v":""},{"$f":"IF('1. Ordersheet'!I884=\"\",\"\",'1. Ordersheet'!I884)","v":""},{"$f":"IF('1. Ordersheet'!J884=\"\",\"\",'1. Ordersheet'!J884)","v":""},{"$f":"IF('1. Ordersheet'!K884=\"\",\"\",'1. Ordersheet'!K884)","v":""},{"$f":"IF('1. Ordersheet'!M884=\"\",\"\",'1. Ordersheet'!M884)","v":""},null,null,{"$f":"'1. Ordersheet'!AR884","v":0},{"$f":"IF('1. Ordersheet'!AE884=\"\",\"\",'1. Ordersheet'!AE884)","v":""}]
[{"$f":"IF('1. Ordersheet'!B885=\"\",\"\",'1. Ordersheet'!B885)","v":""},{"$f":"IF('1. Ordersheet'!I885=\"\",\"\",'1. Ordersheet'!I885)","v":""},{"$f":"IF('1. Ordersheet'!J885=\"\",\"\",'1. Ordersheet'!J885)","v":""},{"$f":"IF('1. Ordersheet'!K885=\"\",\"\",'1. Ordersheet'!K885)","v":""},{"$f":"IF('1. Ordersheet'!M885=\"\",\"\",'1. Ordersheet'!M885)","v":""},null,null,{"$f":"'1. Ordersheet'!AR885","v":0},{"$f":"IF('1. Ordersheet'!AE885=\"\",\"\",'1. Ordersheet'!AE885)","v":""}]
[{"$f":"IF('1. Ordersheet'!B886=\"\",\"\",'1. Ordersheet'!B886)","v":""},{"$f":"IF('1. Ordersheet'!I886=\"\",\"\",'1. Ordersheet'!I886)","v":""},{"$f":"IF('1. Ordersheet'!J886=\"\",\"\",'1. Ordersheet'!J886)","v":""},{"$f":"IF('1. Ordersheet'!K886=\"\",\"\",'1. Ordersheet'!K886)","v":""},{"$f":"IF('1. Ordersheet'!M886=\"\",\"\",'1. Ordersheet'!M886)","v":""},null,null,{"$f":"'1. Ordersheet'!AR886","v":0},{"$f":"IF('1. Ordersheet'!AE886=\"\",\"\",'1. Ordersheet'!AE886)","v":""}]
[{"$f":"IF('1. Ordersheet'!B887=\"\",\"\",'1. Ordersheet'!B887)","v":""},{"$f":"IF('1. Ordersheet'!I887=\"\",\"\",'1. Ordersheet'!I887)","v":""},{"$f":"IF('1. Ordersheet'!J887=\"\",\"\",'1. Ordersheet'!J887)","v":""},{"$f":"IF('1. Ordersheet'!K887=\"\",\"\",'1. Ordersheet'!K887)","v":""},{"$f":"IF('1. Ordersheet'!M887=\"\",\"\",'1. Ordersheet'!M887)","v":""},null,null,{"$f":"'1. Ordersheet'!AR887","v":0},{"$f":"IF('1. Ordersheet'!AE887=\"\",\"\",'1. Ordersheet'!AE887)","v":""}]
[{"$f":"IF('1. Ordersheet'!B888=\"\",\"\",'1. Ordersheet'!B888)","v":""},{"$f":"IF('1. Ordersheet'!I888=\"\",\"\",'1. Ordersheet'!I888)","v":""},{"$f":"IF('1. Ordersheet'!J888=\"\",\"\",'1. Ordersheet'!J888)","v":""},{"$f":"IF('1. Ordersheet'!K888=\"\",\"\",'1. Ordersheet'!K888)","v":""},{"$f":"IF('1. Ordersheet'!M888=\"\",\"\",'1. Ordersheet'!M888)","v":""},null,null,{"$f":"'1. Ordersheet'!AR888","v":0},{"$f":"IF('1. Ordersheet'!AE888=\"\",\"\",'1. Ordersheet'!AE888)","v":""}]
[{"$f":"IF('1. Ordersheet'!B889=\"\",\"\",'1. Ordersheet'!B889)","v":""},{"$f":"IF('1. Ordersheet'!I889=\"\",\"\",'1. Ordersheet'!I889)","v":""},{"$f":"IF('1. Ordersheet'!J889=\"\",\"\",'1. Ordersheet'!J889)","v":""},{"$f":"IF('1. Ordersheet'!K889=\"\",\"\",'1. Ordersheet'!K889)","v":""},{"$f":"IF('1. Ordersheet'!M889=\"\",\"\",'1. Ordersheet'!M889)","v":""},null,null,{"$f":"'1. Ordersheet'!AR889","v":0},{"$f":"IF('1. Ordersheet'!AE889=\"\",\"\",'1. Ordersheet'!AE889)","v":""}]
[{"$f":"IF('1. Ordersheet'!B890=\"\",\"\",'1. Ordersheet'!B890)","v":""},{"$f":"IF('1. Ordersheet'!I890=\"\",\"\",'1. Ordersheet'!I890)","v":""},{"$f":"IF('1. Ordersheet'!J890=\"\",\"\",'1. Ordersheet'!J890)","v":""},{"$f":"IF('1. Ordersheet'!K890=\"\",\"\",'1. Ordersheet'!K890)","v":""},{"$f":"IF('1. Ordersheet'!M890=\"\",\"\",'1. Ordersheet'!M890)","v":""},null,null,{"$f":"'1. Ordersheet'!AR890","v":0},{"$f":"IF('1. Ordersheet'!AE890=\"\",\"\",'1. Ordersheet'!AE890)","v":""}]
[{"$f":"IF('1. Ordersheet'!B891=\"\",\"\",'1. Ordersheet'!B891)","v":""},{"$f":"IF('1. Ordersheet'!I891=\"\",\"\",'1. Ordersheet'!I891)","v":""},{"$f":"IF('1. Ordersheet'!J891=\"\",\"\",'1. Ordersheet'!J891)","v":""},{"$f":"IF('1. Ordersheet'!K891=\"\",\"\",'1. Ordersheet'!K891)","v":""},{"$f":"IF('1. Ordersheet'!M891=\"\",\"\",'1. Ordersheet'!M891)","v":""},null,null,{"$f":"'1. Ordersheet'!AR891","v":0},{"$f":"IF('1. Ordersheet'!AE891=\"\",\"\",'1. Ordersheet'!AE891)","v":""}]
[{"$f":"IF('1. Ordersheet'!B892=\"\",\"\",'1. Ordersheet'!B892)","v":""},{"$f":"IF('1. Ordersheet'!I892=\"\",\"\",'1. Ordersheet'!I892)","v":""},{"$f":"IF('1. Ordersheet'!J892=\"\",\"\",'1. Ordersheet'!J892)","v":""},{"$f":"IF('1. Ordersheet'!K892=\"\",\"\",'1. Ordersheet'!K892)","v":""},{"$f":"IF('1. Ordersheet'!M892=\"\",\"\",'1. Ordersheet'!M892)","v":""},null,null,{"$f":"'1. Ordersheet'!AR892","v":0},{"$f":"IF('1. Ordersheet'!AE892=\"\",\"\",'1. Ordersheet'!AE892)","v":""}]
[{"$f":"IF('1. Ordersheet'!B893=\"\",\"\",'1. Ordersheet'!B893)","v":""},{"$f":"IF('1. Ordersheet'!I893=\"\",\"\",'1. Ordersheet'!I893)","v":""},{"$f":"IF('1. Ordersheet'!J893=\"\",\"\",'1. Ordersheet'!J893)","v":""},{"$f":"IF('1. Ordersheet'!K893=\"\",\"\",'1. Ordersheet'!K893)","v":""},{"$f":"IF('1. Ordersheet'!M893=\"\",\"\",'1. Ordersheet'!M893)","v":""},null,null,{"$f":"'1. Ordersheet'!AR893","v":0},{"$f":"IF('1. Ordersheet'!AE893=\"\",\"\",'1. Ordersheet'!AE893)","v":""}]
[{"$f":"IF('1. Ordersheet'!B894=\"\",\"\",'1. Ordersheet'!B894)","v":""},{"$f":"IF('1. Ordersheet'!I894=\"\",\"\",'1. Ordersheet'!I894)","v":""},{"$f":"IF('1. Ordersheet'!J894=\"\",\"\",'1. Ordersheet'!J894)","v":""},{"$f":"IF('1. Ordersheet'!K894=\"\",\"\",'1. Ordersheet'!K894)","v":""},{"$f":"IF('1. Ordersheet'!M894=\"\",\"\",'1. Ordersheet'!M894)","v":""},null,null,{"$f":"'1. Ordersheet'!AR894","v":0},{"$f":"IF('1. Ordersheet'!AE894=\"\",\"\",'1. Ordersheet'!AE894)","v":""}]
[{"$f":"IF('1. Ordersheet'!B895=\"\",\"\",'1. Ordersheet'!B895)","v":""},{"$f":"IF('1. Ordersheet'!I895=\"\",\"\",'1. Ordersheet'!I895)","v":""},{"$f":"IF('1. Ordersheet'!J895=\"\",\"\",'1. Ordersheet'!J895)","v":""},{"$f":"IF('1. Ordersheet'!K895=\"\",\"\",'1. Ordersheet'!K895)","v":""},{"$f":"IF('1. Ordersheet'!M895=\"\",\"\",'1. Ordersheet'!M895)","v":""},null,null,{"$f":"'1. Ordersheet'!AR895","v":0},{"$f":"IF('1. Ordersheet'!AE895=\"\",\"\",'1. Ordersheet'!AE895)","v":""}]
[{"$f":"IF('1. Ordersheet'!B896=\"\",\"\",'1. Ordersheet'!B896)","v":""},{"$f":"IF('1. Ordersheet'!I896=\"\",\"\",'1. Ordersheet'!I896)","v":""},{"$f":"IF('1. Ordersheet'!J896=\"\",\"\",'1. Ordersheet'!J896)","v":""},{"$f":"IF('1. Ordersheet'!K896=\"\",\"\",'1. Ordersheet'!K896)","v":""},{"$f":"IF('1. Ordersheet'!M896=\"\",\"\",'1. Ordersheet'!M896)","v":""},null,null,{"$f":"'1. Ordersheet'!AR896","v":0},{"$f":"IF('1. Ordersheet'!AE896=\"\",\"\",'1. Ordersheet'!AE896)","v":""}]
[{"$f":"IF('1. Ordersheet'!B897=\"\",\"\",'1. Ordersheet'!B897)","v":""},{"$f":"IF('1. Ordersheet'!I897=\"\",\"\",'1. Ordersheet'!I897)","v":""},{"$f":"IF('1. Ordersheet'!J897=\"\",\"\",'1. Ordersheet'!J897)","v":""},{"$f":"IF('1. Ordersheet'!K897=\"\",\"\",'1. Ordersheet'!K897)","v":""},{"$f":"IF('1. Ordersheet'!M897=\"\",\"\",'1. Ordersheet'!M897)","v":""},null,null,{"$f":"'1. Ordersheet'!AR897","v":0},{"$f":"IF('1. Ordersheet'!AE897=\"\",\"\",'1. Ordersheet'!AE897)","v":""}]
[{"$f":"IF('1. Ordersheet'!B898=\"\",\"\",'1. Ordersheet'!B898)","v":""},{"$f":"IF('1. Ordersheet'!I898=\"\",\"\",'1. Ordersheet'!I898)","v":""},{"$f":"IF('1. Ordersheet'!J898=\"\",\"\",'1. Ordersheet'!J898)","v":""},{"$f":"IF('1. Ordersheet'!K898=\"\",\"\",'1. Ordersheet'!K898)","v":""},{"$f":"IF('1. Ordersheet'!M898=\"\",\"\",'1. Ordersheet'!M898)","v":""},null,null,{"$f":"'1. Ordersheet'!AR898","v":0},{"$f":"IF('1. Ordersheet'!AE898=\"\",\"\",'1. Ordersheet'!AE898)","v":""}]
[{"$f":"IF('1. Ordersheet'!B899=\"\",\"\",'1. Ordersheet'!B899)","v":""},{"$f":"IF('1. Ordersheet'!I899=\"\",\"\",'1. Ordersheet'!I899)","v":""},{"$f":"IF('1. Ordersheet'!J899=\"\",\"\",'1. Ordersheet'!J899)","v":""},{"$f":"IF('1. Ordersheet'!K899=\"\",\"\",'1. Ordersheet'!K899)","v":""},{"$f":"IF('1. Ordersheet'!M899=\"\",\"\",'1. Ordersheet'!M899)","v":""},null,null,{"$f":"'1. Ordersheet'!AR899","v":0},{"$f":"IF('1. Ordersheet'!AE899=\"\",\"\",'1. Ordersheet'!AE899)","v":""}]
[{"$f":"IF('1. Ordersheet'!B900=\"\",\"\",'1. Ordersheet'!B900)","v":""},{"$f":"IF('1. Ordersheet'!I900=\"\",\"\",'1. Ordersheet'!I900)","v":""},{"$f":"IF('1. Ordersheet'!J900=\"\",\"\",'1. Ordersheet'!J900)","v":""},{"$f":"IF('1. Ordersheet'!K900=\"\",\"\",'1. Ordersheet'!K900)","v":""},{"$f":"IF('1. Ordersheet'!M900=\"\",\"\",'1. Ordersheet'!M900)","v":""},null,null,{"$f":"'1. Ordersheet'!AR900","v":0},{"$f":"IF('1. Ordersheet'!AE900=\"\",\"\",'1. Ordersheet'!AE900)","v":""}]
[{"$f":"IF('1. Ordersheet'!B901=\"\",\"\",'1. Ordersheet'!B901)","v":""},{"$f":"IF('1. Ordersheet'!I901=\"\",\"\",'1. Ordersheet'!I901)","v":""},{"$f":"IF('1. Ordersheet'!J901=\"\",\"\",'1. Ordersheet'!J901)","v":""},{"$f":"IF('1. Ordersheet'!K901=\"\",\"\",'1. Ordersheet'!K901)","v":""},{"$f":"IF('1. Ordersheet'!M901=\"\",\"\",'1. Ordersheet'!M901)","v":""},null,null,{"$f":"'1. Ordersheet'!AR901","v":0},{"$f":"IF('1. Ordersheet'!AE901=\"\",\"\",'1. Ordersheet'!AE901)","v":""}]
[{"$f":"IF('1. Ordersheet'!B902=\"\",\"\",'1. Ordersheet'!B902)","v":""},{"$f":"IF('1. Ordersheet'!I902=\"\",\"\",'1. Ordersheet'!I902)","v":""},{"$f":"IF('1. Ordersheet'!J902=\"\",\"\",'1. Ordersheet'!J902)","v":""},{"$f":"IF('1. Ordersheet'!K902=\"\",\"\",'1. Ordersheet'!K902)","v":""},{"$f":"IF('1. Ordersheet'!M902=\"\",\"\",'1. Ordersheet'!M902)","v":""},null,null,{"$f":"'1. Ordersheet'!AR902","v":0},{"$f":"IF('1. Ordersheet'!AE902=\"\",\"\",'1. Ordersheet'!AE902)","v":""}]
[{"$f":"IF('1. Ordersheet'!B903=\"\",\"\",'1. Ordersheet'!B903)","v":""},{"$f":"IF('1. Ordersheet'!I903=\"\",\"\",'1. Ordersheet'!I903)","v":""},{"$f":"IF('1. Ordersheet'!J903=\"\",\"\",'1. Ordersheet'!J903)","v":""},{"$f":"IF('1. Ordersheet'!K903=\"\",\"\",'1. Ordersheet'!K903)","v":""},{"$f":"IF('1. Ordersheet'!M903=\"\",\"\",'1. Ordersheet'!M903)","v":""},null,null,{"$f":"'1. Ordersheet'!AR903","v":0},{"$f":"IF('1. Ordersheet'!AE903=\"\",\"\",'1. Ordersheet'!AE903)","v":""}]
[{"$f":"IF('1. Ordersheet'!B904=\"\",\"\",'1. Ordersheet'!B904)","v":""},{"$f":"IF('1. Ordersheet'!I904=\"\",\"\",'1. Ordersheet'!I904)","v":""},{"$f":"IF('1. Ordersheet'!J904=\"\",\"\",'1. Ordersheet'!J904)","v":""},{"$f":"IF('1. Ordersheet'!K904=\"\",\"\",'1. Ordersheet'!K904)","v":""},{"$f":"IF('1. Ordersheet'!M904=\"\",\"\",'1. Ordersheet'!M904)","v":""},null,null,{"$f":"'1. Ordersheet'!AR904","v":0},{"$f":"IF('1. Ordersheet'!AE904=\"\",\"\",'1. Ordersheet'!AE904)","v":""}]
[{"$f":"IF('1. Ordersheet'!B905=\"\",\"\",'1. Ordersheet'!B905)","v":""},{"$f":"IF('1. Ordersheet'!I905=\"\",\"\",'1. Ordersheet'!I905)","v":""},{"$f":"IF('1. Ordersheet'!J905=\"\",\"\",'1. Ordersheet'!J905)","v":""},{"$f":"IF('1. Ordersheet'!K905=\"\",\"\",'1. Ordersheet'!K905)","v":""},{"$f":"IF('1. Ordersheet'!M905=\"\",\"\",'1. Ordersheet'!M905)","v":""},null,null,{"$f":"'1. Ordersheet'!AR905","v":0},{"$f":"IF('1. Ordersheet'!AE905=\"\",\"\",'1. Ordersheet'!AE905)","v":""}]
[{"$f":"IF('1. Ordersheet'!B906=\"\",\"\",'1. Ordersheet'!B906)","v":""},{"$f":"IF('1. Ordersheet'!I906=\"\",\"\",'1. Ordersheet'!I906)","v":""},{"$f":"IF('1. Ordersheet'!J906=\"\",\"\",'1. Ordersheet'!J906)","v":""},{"$f":"IF('1. Ordersheet'!K906=\"\",\"\",'1. Ordersheet'!K906)","v":""},{"$f":"IF('1. Ordersheet'!M906=\"\",\"\",'1. Ordersheet'!M906)","v":""},null,null,{"$f":"'1. Ordersheet'!AR906","v":0},{"$f":"IF('1. Ordersheet'!AE906=\"\",\"\",'1. Ordersheet'!AE906)","v":""}]
[{"$f":"IF('1. Ordersheet'!B907=\"\",\"\",'1. Ordersheet'!B907)","v":""},{"$f":"IF('1. Ordersheet'!I907=\"\",\"\",'1. Ordersheet'!I907)","v":""},{"$f":"IF('1. Ordersheet'!J907=\"\",\"\",'1. Ordersheet'!J907)","v":""},{"$f":"IF('1. Ordersheet'!K907=\"\",\"\",'1. Ordersheet'!K907)","v":""},{"$f":"IF('1. Ordersheet'!M907=\"\",\"\",'1. Ordersheet'!M907)","v":""},null,null,{"$f":"'1. Ordersheet'!AR907","v":0},{"$f":"IF('1. Ordersheet'!AE907=\"\",\"\",'1. Ordersheet'!AE907)","v":""}]
[{"$f":"IF('1. Ordersheet'!B908=\"\",\"\",'1. Ordersheet'!B908)","v":""},{"$f":"IF('1. Ordersheet'!I908=\"\",\"\",'1. Ordersheet'!I908)","v":""},{"$f":"IF('1. Ordersheet'!J908=\"\",\"\",'1. Ordersheet'!J908)","v":""},{"$f":"IF('1. Ordersheet'!K908=\"\",\"\",'1. Ordersheet'!K908)","v":""},{"$f":"IF('1. Ordersheet'!M908=\"\",\"\",'1. Ordersheet'!M908)","v":""},null,null,{"$f":"'1. Ordersheet'!AR908","v":0},{"$f":"IF('1. Ordersheet'!AE908=\"\",\"\",'1. Ordersheet'!AE908)","v":""}]
[{"$f":"IF('1. Ordersheet'!B909=\"\",\"\",'1. Ordersheet'!B909)","v":""},{"$f":"IF('1. Ordersheet'!I909=\"\",\"\",'1. Ordersheet'!I909)","v":""},{"$f":"IF('1. Ordersheet'!J909=\"\",\"\",'1. Ordersheet'!J909)","v":""},{"$f":"IF('1. Ordersheet'!K909=\"\",\"\",'1. Ordersheet'!K909)","v":""},{"$f":"IF('1. Ordersheet'!M909=\"\",\"\",'1. Ordersheet'!M909)","v":""},null,null,{"$f":"'1. Ordersheet'!AR909","v":0},{"$f":"IF('1. Ordersheet'!AE909=\"\",\"\",'1. Ordersheet'!AE909)","v":""}]
[{"$f":"IF('1. Ordersheet'!B910=\"\",\"\",'1. Ordersheet'!B910)","v":""},{"$f":"IF('1. Ordersheet'!I910=\"\",\"\",'1. Ordersheet'!I910)","v":""},{"$f":"IF('1. Ordersheet'!J910=\"\",\"\",'1. Ordersheet'!J910)","v":""},{"$f":"IF('1. Ordersheet'!K910=\"\",\"\",'1. Ordersheet'!K910)","v":""},{"$f":"IF('1. Ordersheet'!M910=\"\",\"\",'1. Ordersheet'!M910)","v":""},null,null,{"$f":"'1. Ordersheet'!AR910","v":0},{"$f":"IF('1. Ordersheet'!AE910=\"\",\"\",'1. Ordersheet'!AE910)","v":""}]
[{"$f":"IF('1. Ordersheet'!B911=\"\",\"\",'1. Ordersheet'!B911)","v":""},{"$f":"IF('1. Ordersheet'!I911=\"\",\"\",'1. Ordersheet'!I911)","v":""},{"$f":"IF('1. Ordersheet'!J911=\"\",\"\",'1. Ordersheet'!J911)","v":""},{"$f":"IF('1. Ordersheet'!K911=\"\",\"\",'1. Ordersheet'!K911)","v":""},{"$f":"IF('1. Ordersheet'!M911=\"\",\"\",'1. Ordersheet'!M911)","v":""},null,null,{"$f":"'1. Ordersheet'!AR911","v":0},{"$f":"IF('1. Ordersheet'!AE911=\"\",\"\",'1. Ordersheet'!AE911)","v":""}]
[{"$f":"IF('1. Ordersheet'!B912=\"\",\"\",'1. Ordersheet'!B912)","v":""},{"$f":"IF('1. Ordersheet'!I912=\"\",\"\",'1. Ordersheet'!I912)","v":""},{"$f":"IF('1. Ordersheet'!J912=\"\",\"\",'1. Ordersheet'!J912)","v":""},{"$f":"IF('1. Ordersheet'!K912=\"\",\"\",'1. Ordersheet'!K912)","v":""},{"$f":"IF('1. Ordersheet'!M912=\"\",\"\",'1. Ordersheet'!M912)","v":""},null,null,{"$f":"'1. Ordersheet'!AR912","v":0},{"$f":"IF('1. Ordersheet'!AE912=\"\",\"\",'1. Ordersheet'!AE912)","v":""}]
[{"$f":"IF('1. Ordersheet'!B913=\"\",\"\",'1. Ordersheet'!B913)","v":""},{"$f":"IF('1. Ordersheet'!I913=\"\",\"\",'1. Ordersheet'!I913)","v":""},{"$f":"IF('1. Ordersheet'!J913=\"\",\"\",'1. Ordersheet'!J913)","v":""},{"$f":"IF('1. Ordersheet'!K913=\"\",\"\",'1. Ordersheet'!K913)","v":""},{"$f":"IF('1. Ordersheet'!M913=\"\",\"\",'1. Ordersheet'!M913)","v":""},null,null,{"$f":"'1. Ordersheet'!AR913","v":0},{"$f":"IF('1. Ordersheet'!AE913=\"\",\"\",'1. Ordersheet'!AE913)","v":""}]
[{"$f":"IF('1. Ordersheet'!B914=\"\",\"\",'1. Ordersheet'!B914)","v":""},{"$f":"IF('1. Ordersheet'!I914=\"\",\"\",'1. Ordersheet'!I914)","v":""},{"$f":"IF('1. Ordersheet'!J914=\"\",\"\",'1. Ordersheet'!J914)","v":""},{"$f":"IF('1. Ordersheet'!K914=\"\",\"\",'1. Ordersheet'!K914)","v":""},{"$f":"IF('1. Ordersheet'!M914=\"\",\"\",'1. Ordersheet'!M914)","v":""},null,null,{"$f":"'1. Ordersheet'!AR914","v":0},{"$f":"IF('1. Ordersheet'!AE914=\"\",\"\",'1. Ordersheet'!AE914)","v":""}]
[{"$f":"IF('1. Ordersheet'!B915=\"\",\"\",'1. Ordersheet'!B915)","v":""},{"$f":"IF('1. Ordersheet'!I915=\"\",\"\",'1. Ordersheet'!I915)","v":""},{"$f":"IF('1. Ordersheet'!J915=\"\",\"\",'1. Ordersheet'!J915)","v":""},{"$f":"IF('1. Ordersheet'!K915=\"\",\"\",'1. Ordersheet'!K915)","v":""},{"$f":"IF('1. Ordersheet'!M915=\"\",\"\",'1. Ordersheet'!M915)","v":""},null,null,{"$f":"'1. Ordersheet'!AR915","v":0},{"$f":"IF('1. Ordersheet'!AE915=\"\",\"\",'1. Ordersheet'!AE915)","v":""}]
[{"$f":"IF('1. Ordersheet'!B916=\"\",\"\",'1. Ordersheet'!B916)","v":""},{"$f":"IF('1. Ordersheet'!I916=\"\",\"\",'1. Ordersheet'!I916)","v":""},{"$f":"IF('1. Ordersheet'!J916=\"\",\"\",'1. Ordersheet'!J916)","v":""},{"$f":"IF('1. Ordersheet'!K916=\"\",\"\",'1. Ordersheet'!K916)","v":""},{"$f":"IF('1. Ordersheet'!M916=\"\",\"\",'1. Ordersheet'!M916)","v":""},null,null,{"$f":"'1. Ordersheet'!AR916","v":0},{"$f":"IF('1. Ordersheet'!AE916=\"\",\"\",'1. Ordersheet'!AE916)","v":""}]
[{"$f":"IF('1. Ordersheet'!B917=\"\",\"\",'1. Ordersheet'!B917)","v":""},{"$f":"IF('1. Ordersheet'!I917=\"\",\"\",'1. Ordersheet'!I917)","v":""},{"$f":"IF('1. Ordersheet'!J917=\"\",\"\",'1. Ordersheet'!J917)","v":""},{"$f":"IF('1. Ordersheet'!K917=\"\",\"\",'1. Ordersheet'!K917)","v":""},{"$f":"IF('1. Ordersheet'!M917=\"\",\"\",'1. Ordersheet'!M917)","v":""},null,null,{"$f":"'1. Ordersheet'!AR917","v":0},{"$f":"IF('1. Ordersheet'!AE917=\"\",\"\",'1. Ordersheet'!AE917)","v":""}]
[{"$f":"IF('1. Ordersheet'!B918=\"\",\"\",'1. Ordersheet'!B918)","v":""},{"$f":"IF('1. Ordersheet'!I918=\"\",\"\",'1. Ordersheet'!I918)","v":""},{"$f":"IF('1. Ordersheet'!J918=\"\",\"\",'1. Ordersheet'!J918)","v":""},{"$f":"IF('1. Ordersheet'!K918=\"\",\"\",'1. Ordersheet'!K918)","v":""},{"$f":"IF('1. Ordersheet'!M918=\"\",\"\",'1. Ordersheet'!M918)","v":""},null,null,{"$f":"'1. Ordersheet'!AR918","v":0},{"$f":"IF('1. Ordersheet'!AE918=\"\",\"\",'1. Ordersheet'!AE918)","v":""}]
[{"$f":"IF('1. Ordersheet'!B919=\"\",\"\",'1. Ordersheet'!B919)","v":""},{"$f":"IF('1. Ordersheet'!I919=\"\",\"\",'1. Ordersheet'!I919)","v":""},{"$f":"IF('1. Ordersheet'!J919=\"\",\"\",'1. Ordersheet'!J919)","v":""},{"$f":"IF('1. Ordersheet'!K919=\"\",\"\",'1. Ordersheet'!K919)","v":""},{"$f":"IF('1. Ordersheet'!M919=\"\",\"\",'1. Ordersheet'!M919)","v":""},null,null,{"$f":"'1. Ordersheet'!AR919","v":0},{"$f":"IF('1. Ordersheet'!AE919=\"\",\"\",'1. Ordersheet'!AE919)","v":""}]
[{"$f":"IF('1. Ordersheet'!B920=\"\",\"\",'1. Ordersheet'!B920)","v":""},{"$f":"IF('1. Ordersheet'!I920=\"\",\"\",'1. Ordersheet'!I920)","v":""},{"$f":"IF('1. Ordersheet'!J920=\"\",\"\",'1. Ordersheet'!J920)","v":""},{"$f":"IF('1. Ordersheet'!K920=\"\",\"\",'1. Ordersheet'!K920)","v":""},{"$f":"IF('1. Ordersheet'!M920=\"\",\"\",'1. Ordersheet'!M920)","v":""},null,null,{"$f":"'1. Ordersheet'!AR920","v":0},{"$f":"IF('1. Ordersheet'!AE920=\"\",\"\",'1. Ordersheet'!AE920)","v":""}]
[{"$f":"IF('1. Ordersheet'!B921=\"\",\"\",'1. Ordersheet'!B921)","v":""},{"$f":"IF('1. Ordersheet'!I921=\"\",\"\",'1. Ordersheet'!I921)","v":""},{"$f":"IF('1. Ordersheet'!J921=\"\",\"\",'1. Ordersheet'!J921)","v":""},{"$f":"IF('1. Ordersheet'!K921=\"\",\"\",'1. Ordersheet'!K921)","v":""},{"$f":"IF('1. Ordersheet'!M921=\"\",\"\",'1. Ordersheet'!M921)","v":""},null,null,{"$f":"'1. Ordersheet'!AR921","v":0},{"$f":"IF('1. Ordersheet'!AE921=\"\",\"\",'1. Ordersheet'!AE921)","v":""}]
[{"$f":"IF('1. Ordersheet'!B922=\"\",\"\",'1. Ordersheet'!B922)","v":""},{"$f":"IF('1. Ordersheet'!I922=\"\",\"\",'1. Ordersheet'!I922)","v":""},{"$f":"IF('1. Ordersheet'!J922=\"\",\"\",'1. Ordersheet'!J922)","v":""},{"$f":"IF('1. Ordersheet'!K922=\"\",\"\",'1. Ordersheet'!K922)","v":""},{"$f":"IF('1. Ordersheet'!M922=\"\",\"\",'1. Ordersheet'!M922)","v":""},null,null,{"$f":"'1. Ordersheet'!AR922","v":0},{"$f":"IF('1. Ordersheet'!AE922=\"\",\"\",'1. Ordersheet'!AE922)","v":""}]
[{"$f":"IF('1. Ordersheet'!B923=\"\",\"\",'1. Ordersheet'!B923)","v":""},{"$f":"IF('1. Ordersheet'!I923=\"\",\"\",'1. Ordersheet'!I923)","v":""},{"$f":"IF('1. Ordersheet'!J923=\"\",\"\",'1. Ordersheet'!J923)","v":""},{"$f":"IF('1. Ordersheet'!K923=\"\",\"\",'1. Ordersheet'!K923)","v":""},{"$f":"IF('1. Ordersheet'!M923=\"\",\"\",'1. Ordersheet'!M923)","v":""},null,null,{"$f":"'1. Ordersheet'!AR923","v":0},{"$f":"IF('1. Ordersheet'!AE923=\"\",\"\",'1. Ordersheet'!AE923)","v":""}]
[{"$f":"IF('1. Ordersheet'!B924=\"\",\"\",'1. Ordersheet'!B924)","v":""},{"$f":"IF('1. Ordersheet'!I924=\"\",\"\",'1. Ordersheet'!I924)","v":""},{"$f":"IF('1. Ordersheet'!J924=\"\",\"\",'1. Ordersheet'!J924)","v":""},{"$f":"IF('1. Ordersheet'!K924=\"\",\"\",'1. Ordersheet'!K924)","v":""},{"$f":"IF('1. Ordersheet'!M924=\"\",\"\",'1. Ordersheet'!M924)","v":""},null,null,{"$f":"'1. Ordersheet'!AR924","v":0},{"$f":"IF('1. Ordersheet'!AE924=\"\",\"\",'1. Ordersheet'!AE924)","v":""}]
[{"$f":"IF('1. Ordersheet'!B925=\"\",\"\",'1. Ordersheet'!B925)","v":""},{"$f":"IF('1. Ordersheet'!I925=\"\",\"\",'1. Ordersheet'!I925)","v":""},{"$f":"IF('1. Ordersheet'!J925=\"\",\"\",'1. Ordersheet'!J925)","v":""},{"$f":"IF('1. Ordersheet'!K925=\"\",\"\",'1. Ordersheet'!K925)","v":""},{"$f":"IF('1. Ordersheet'!M925=\"\",\"\",'1. Ordersheet'!M925)","v":""},null,null,{"$f":"'1. Ordersheet'!AR925","v":0},{"$f":"IF('1. Ordersheet'!AE925=\"\",\"\",'1. Ordersheet'!AE925)","v":""}]
[{"$f":"IF('1. Ordersheet'!B926=\"\",\"\",'1. Ordersheet'!B926)","v":""},{"$f":"IF('1. Ordersheet'!I926=\"\",\"\",'1. Ordersheet'!I926)","v":""},{"$f":"IF('1. Ordersheet'!J926=\"\",\"\",'1. Ordersheet'!J926)","v":""},{"$f":"IF('1. Ordersheet'!K926=\"\",\"\",'1. Ordersheet'!K926)","v":""},{"$f":"IF('1. Ordersheet'!M926=\"\",\"\",'1. Ordersheet'!M926)","v":""},null,null,{"$f":"'1. Ordersheet'!AR926","v":0},{"$f":"IF('1. Ordersheet'!AE926=\"\",\"\",'1. Ordersheet'!AE926)","v":""}]
[{"$f":"IF('1. Ordersheet'!B927=\"\",\"\",'1. Ordersheet'!B927)","v":""},{"$f":"IF('1. Ordersheet'!I927=\"\",\"\",'1. Ordersheet'!I927)","v":""},{"$f":"IF('1. Ordersheet'!J927=\"\",\"\",'1. Ordersheet'!J927)","v":""},{"$f":"IF('1. Ordersheet'!K927=\"\",\"\",'1. Ordersheet'!K927)","v":""},{"$f":"IF('1. Ordersheet'!M927=\"\",\"\",'1. Ordersheet'!M927)","v":""},null,null,{"$f":"'1. Ordersheet'!AR927","v":0},{"$f":"IF('1. Ordersheet'!AE927=\"\",\"\",'1. Ordersheet'!AE927)","v":""}]
[{"$f":"IF('1. Ordersheet'!B928=\"\",\"\",'1. Ordersheet'!B928)","v":""},{"$f":"IF('1. Ordersheet'!I928=\"\",\"\",'1. Ordersheet'!I928)","v":""},{"$f":"IF('1. Ordersheet'!J928=\"\",\"\",'1. Ordersheet'!J928)","v":""},{"$f":"IF('1. Ordersheet'!K928=\"\",\"\",'1. Ordersheet'!K928)","v":""},{"$f":"IF('1. Ordersheet'!M928=\"\",\"\",'1. Ordersheet'!M928)","v":""},null,null,{"$f":"'1. Ordersheet'!AR928","v":0},{"$f":"IF('1. Ordersheet'!AE928=\"\",\"\",'1. Ordersheet'!AE928)","v":""}]
[{"$f":"IF('1. Ordersheet'!B929=\"\",\"\",'1. Ordersheet'!B929)","v":""},{"$f":"IF('1. Ordersheet'!I929=\"\",\"\",'1. Ordersheet'!I929)","v":""},{"$f":"IF('1. Ordersheet'!J929=\"\",\"\",'1. Ordersheet'!J929)","v":""},{"$f":"IF('1. Ordersheet'!K929=\"\",\"\",'1. Ordersheet'!K929)","v":""},{"$f":"IF('1. Ordersheet'!M929=\"\",\"\",'1. Ordersheet'!M929)","v":""},null,null,{"$f":"'1. Ordersheet'!AR929","v":0},{"$f":"IF('1. Ordersheet'!AE929=\"\",\"\",'1. Ordersheet'!AE929)","v":""}]
[{"$f":"IF('1. Ordersheet'!B930=\"\",\"\",'1. Ordersheet'!B930)","v":""},{"$f":"IF('1. Ordersheet'!I930=\"\",\"\",'1. Ordersheet'!I930)","v":""},{"$f":"IF('1. Ordersheet'!J930=\"\",\"\",'1. Ordersheet'!J930)","v":""},{"$f":"IF('1. Ordersheet'!K930=\"\",\"\",'1. Ordersheet'!K930)","v":""},{"$f":"IF('1. Ordersheet'!M930=\"\",\"\",'1. Ordersheet'!M930)","v":""},null,null,{"$f":"'1. Ordersheet'!AR930","v":0},{"$f":"IF('1. Ordersheet'!AE930=\"\",\"\",'1. Ordersheet'!AE930)","v":""}]
[{"$f":"IF('1. Ordersheet'!B931=\"\",\"\",'1. Ordersheet'!B931)","v":""},{"$f":"IF('1. Ordersheet'!I931=\"\",\"\",'1. Ordersheet'!I931)","v":""},{"$f":"IF('1. Ordersheet'!J931=\"\",\"\",'1. Ordersheet'!J931)","v":""},{"$f":"IF('1. Ordersheet'!K931=\"\",\"\",'1. Ordersheet'!K931)","v":""},{"$f":"IF('1. Ordersheet'!M931=\"\",\"\",'1. Ordersheet'!M931)","v":""},null,null,{"$f":"'1. Ordersheet'!AR931","v":0},{"$f":"IF('1. Ordersheet'!AE931=\"\",\"\",'1. Ordersheet'!AE931)","v":""}]
[{"$f":"IF('1. Ordersheet'!B932=\"\",\"\",'1. Ordersheet'!B932)","v":""},{"$f":"IF('1. Ordersheet'!I932=\"\",\"\",'1. Ordersheet'!I932)","v":""},{"$f":"IF('1. Ordersheet'!J932=\"\",\"\",'1. Ordersheet'!J932)","v":""},{"$f":"IF('1. Ordersheet'!K932=\"\",\"\",'1. Ordersheet'!K932)","v":""},{"$f":"IF('1. Ordersheet'!M932=\"\",\"\",'1. Ordersheet'!M932)","v":""},null,null,{"$f":"'1. Ordersheet'!AR932","v":0},{"$f":"IF('1. Ordersheet'!AE932=\"\",\"\",'1. Ordersheet'!AE932)","v":""}]
[{"$f":"IF('1. Ordersheet'!B933=\"\",\"\",'1. Ordersheet'!B933)","v":""},{"$f":"IF('1. Ordersheet'!I933=\"\",\"\",'1. Ordersheet'!I933)","v":""},{"$f":"IF('1. Ordersheet'!J933=\"\",\"\",'1. Ordersheet'!J933)","v":""},{"$f":"IF('1. Ordersheet'!K933=\"\",\"\",'1. Ordersheet'!K933)","v":""},{"$f":"IF('1. Ordersheet'!M933=\"\",\"\",'1. Ordersheet'!M933)","v":""},null,null,{"$f":"'1. Ordersheet'!AR933","v":0},{"$f":"IF('1. Ordersheet'!AE933=\"\",\"\",'1. Ordersheet'!AE933)","v":""}]
[{"$f":"IF('1. Ordersheet'!B934=\"\",\"\",'1. Ordersheet'!B934)","v":""},{"$f":"IF('1. Ordersheet'!I934=\"\",\"\",'1. Ordersheet'!I934)","v":""},{"$f":"IF('1. Ordersheet'!J934=\"\",\"\",'1. Ordersheet'!J934)","v":""},{"$f":"IF('1. Ordersheet'!K934=\"\",\"\",'1. Ordersheet'!K934)","v":""},{"$f":"IF('1. Ordersheet'!M934=\"\",\"\",'1. Ordersheet'!M934)","v":""},null,null,{"$f":"'1. Ordersheet'!AR934","v":0},{"$f":"IF('1. Ordersheet'!AE934=\"\",\"\",'1. Ordersheet'!AE934)","v":""}]
[{"$f":"IF('1. Ordersheet'!B935=\"\",\"\",'1. Ordersheet'!B935)","v":""},{"$f":"IF('1. Ordersheet'!I935=\"\",\"\",'1. Ordersheet'!I935)","v":""},{"$f":"IF('1. Ordersheet'!J935=\"\",\"\",'1. Ordersheet'!J935)","v":""},{"$f":"IF('1. Ordersheet'!K935=\"\",\"\",'1. Ordersheet'!K935)","v":""},{"$f":"IF('1. Ordersheet'!M935=\"\",\"\",'1. Ordersheet'!M935)","v":""},null,null,{"$f":"'1. Ordersheet'!AR935","v":0},{"$f":"IF('1. Ordersheet'!AE935=\"\",\"\",'1. Ordersheet'!AE935)","v":""}]
[{"$f":"IF('1. Ordersheet'!B936=\"\",\"\",'1. Ordersheet'!B936)","v":""},{"$f":"IF('1. Ordersheet'!I936=\"\",\"\",'1. Ordersheet'!I936)","v":""},{"$f":"IF('1. Ordersheet'!J936=\"\",\"\",'1. Ordersheet'!J936)","v":""},{"$f":"IF('1. Ordersheet'!K936=\"\",\"\",'1. Ordersheet'!K936)","v":""},{"$f":"IF('1. Ordersheet'!M936=\"\",\"\",'1. Ordersheet'!M936)","v":""},null,null,{"$f":"'1. Ordersheet'!AR936","v":0},{"$f":"IF('1. Ordersheet'!AE936=\"\",\"\",'1. Ordersheet'!AE936)","v":""}]
[{"$f":"IF('1. Ordersheet'!B937=\"\",\"\",'1. Ordersheet'!B937)","v":""},{"$f":"IF('1. Ordersheet'!I937=\"\",\"\",'1. Ordersheet'!I937)","v":""},{"$f":"IF('1. Ordersheet'!J937=\"\",\"\",'1. Ordersheet'!J937)","v":""},{"$f":"IF('1. Ordersheet'!K937=\"\",\"\",'1. Ordersheet'!K937)","v":""},{"$f":"IF('1. Ordersheet'!M937=\"\",\"\",'1. Ordersheet'!M937)","v":""},null,null,{"$f":"'1. Ordersheet'!AR937","v":0},{"$f":"IF('1. Ordersheet'!AE937=\"\",\"\",'1. Ordersheet'!AE937)","v":""}]
[{"$f":"IF('1. Ordersheet'!B938=\"\",\"\",'1. Ordersheet'!B938)","v":""},{"$f":"IF('1. Ordersheet'!I938=\"\",\"\",'1. Ordersheet'!I938)","v":""},{"$f":"IF('1. Ordersheet'!J938=\"\",\"\",'1. Ordersheet'!J938)","v":""},{"$f":"IF('1. Ordersheet'!K938=\"\",\"\",'1. Ordersheet'!K938)","v":""},{"$f":"IF('1. Ordersheet'!M938=\"\",\"\",'1. Ordersheet'!M938)","v":""},null,null,{"$f":"'1. Ordersheet'!AR938","v":0},{"$f":"IF('1. Ordersheet'!AE938=\"\",\"\",'1. Ordersheet'!AE938)","v":""}]
[{"$f":"IF('1. Ordersheet'!B939=\"\",\"\",'1. Ordersheet'!B939)","v":""},{"$f":"IF('1. Ordersheet'!I939=\"\",\"\",'1. Ordersheet'!I939)","v":""},{"$f":"IF('1. Ordersheet'!J939=\"\",\"\",'1. Ordersheet'!J939)","v":""},{"$f":"IF('1. Ordersheet'!K939=\"\",\"\",'1. Ordersheet'!K939)","v":""},{"$f":"IF('1. Ordersheet'!M939=\"\",\"\",'1. Ordersheet'!M939)","v":""},null,null,{"$f":"'1. Ordersheet'!AR939","v":0},{"$f":"IF('1. Ordersheet'!AE939=\"\",\"\",'1. Ordersheet'!AE939)","v":""}]
[{"$f":"IF('1. Ordersheet'!B940=\"\",\"\",'1. Ordersheet'!B940)","v":""},{"$f":"IF('1. Ordersheet'!I940=\"\",\"\",'1. Ordersheet'!I940)","v":""},{"$f":"IF('1. Ordersheet'!J940=\"\",\"\",'1. Ordersheet'!J940)","v":""},{"$f":"IF('1. Ordersheet'!K940=\"\",\"\",'1. Ordersheet'!K940)","v":""},{"$f":"IF('1. Ordersheet'!M940=\"\",\"\",'1. Ordersheet'!M940)","v":""},null,null,{"$f":"'1. Ordersheet'!AR940","v":0},{"$f":"IF('1. Ordersheet'!AE940=\"\",\"\",'1. Ordersheet'!AE940)","v":""}]
[{"$f":"IF('1. Ordersheet'!B941=\"\",\"\",'1. Ordersheet'!B941)","v":""},{"$f":"IF('1. Ordersheet'!I941=\"\",\"\",'1. Ordersheet'!I941)","v":""},{"$f":"IF('1. Ordersheet'!J941=\"\",\"\",'1. Ordersheet'!J941)","v":""},{"$f":"IF('1. Ordersheet'!K941=\"\",\"\",'1. Ordersheet'!K941)","v":""},{"$f":"IF('1. Ordersheet'!M941=\"\",\"\",'1. Ordersheet'!M941)","v":""},null,null,{"$f":"'1. Ordersheet'!AR941","v":0},{"$f":"IF('1. Ordersheet'!AE941=\"\",\"\",'1. Ordersheet'!AE941)","v":""}]
[{"$f":"IF('1. Ordersheet'!B942=\"\",\"\",'1. Ordersheet'!B942)","v":""},{"$f":"IF('1. Ordersheet'!I942=\"\",\"\",'1. Ordersheet'!I942)","v":""},{"$f":"IF('1. Ordersheet'!J942=\"\",\"\",'1. Ordersheet'!J942)","v":""},{"$f":"IF('1. Ordersheet'!K942=\"\",\"\",'1. Ordersheet'!K942)","v":""},{"$f":"IF('1. Ordersheet'!M942=\"\",\"\",'1. Ordersheet'!M942)","v":""},null,null,{"$f":"'1. Ordersheet'!AR942","v":0},{"$f":"IF('1. Ordersheet'!AE942=\"\",\"\",'1. Ordersheet'!AE942)","v":""}]
[{"$f":"IF('1. Ordersheet'!B943=\"\",\"\",'1. Ordersheet'!B943)","v":""},{"$f":"IF('1. Ordersheet'!I943=\"\",\"\",'1. Ordersheet'!I943)","v":""},{"$f":"IF('1. Ordersheet'!J943=\"\",\"\",'1. Ordersheet'!J943)","v":""},{"$f":"IF('1. Ordersheet'!K943=\"\",\"\",'1. Ordersheet'!K943)","v":""},{"$f":"IF('1. Ordersheet'!M943=\"\",\"\",'1. Ordersheet'!M943)","v":""},null,null,{"$f":"'1. Ordersheet'!AR943","v":0},{"$f":"IF('1. Ordersheet'!AE943=\"\",\"\",'1. Ordersheet'!AE943)","v":""}]
[{"$f":"IF('1. Ordersheet'!B944=\"\",\"\",'1. Ordersheet'!B944)","v":""},{"$f":"IF('1. Ordersheet'!I944=\"\",\"\",'1. Ordersheet'!I944)","v":""},{"$f":"IF('1. Ordersheet'!J944=\"\",\"\",'1. Ordersheet'!J944)","v":""},{"$f":"IF('1. Ordersheet'!K944=\"\",\"\",'1. Ordersheet'!K944)","v":""},{"$f":"IF('1. Ordersheet'!M944=\"\",\"\",'1. Ordersheet'!M944)","v":""},null,null,{"$f":"'1. Ordersheet'!AR944","v":0},{"$f":"IF('1. Ordersheet'!AE944=\"\",\"\",'1. Ordersheet'!AE944)","v":""}]
[{"$f":"IF('1. Ordersheet'!B945=\"\",\"\",'1. Ordersheet'!B945)","v":""},{"$f":"IF('1. Ordersheet'!I945=\"\",\"\",'1. Ordersheet'!I945)","v":""},{"$f":"IF('1. Ordersheet'!J945=\"\",\"\",'1. Ordersheet'!J945)","v":""},{"$f":"IF('1. Ordersheet'!K945=\"\",\"\",'1. Ordersheet'!K945)","v":""},{"$f":"IF('1. Ordersheet'!M945=\"\",\"\",'1. Ordersheet'!M945)","v":""},null,null,{"$f":"'1. Ordersheet'!AR945","v":0},{"$f":"IF('1. Ordersheet'!AE945=\"\",\"\",'1. Ordersheet'!AE945)","v":""}]
[{"$f":"IF('1. Ordersheet'!B946=\"\",\"\",'1. Ordersheet'!B946)","v":""},{"$f":"IF('1. Ordersheet'!I946=\"\",\"\",'1. Ordersheet'!I946)","v":""},{"$f":"IF('1. Ordersheet'!J946=\"\",\"\",'1. Ordersheet'!J946)","v":""},{"$f":"IF('1. Ordersheet'!K946=\"\",\"\",'1. Ordersheet'!K946)","v":""},{"$f":"IF('1. Ordersheet'!M946=\"\",\"\",'1. Ordersheet'!M946)","v":""},null,null,{"$f":"'1. Ordersheet'!AR946","v":0},{"$f":"IF('1. Ordersheet'!AE946=\"\",\"\",'1. Ordersheet'!AE946)","v":""}]
[{"$f":"IF('1. Ordersheet'!B947=\"\",\"\",'1. Ordersheet'!B947)","v":""},{"$f":"IF('1. Ordersheet'!I947=\"\",\"\",'1. Ordersheet'!I947)","v":""},{"$f":"IF('1. Ordersheet'!J947=\"\",\"\",'1. Ordersheet'!J947)","v":""},{"$f":"IF('1. Ordersheet'!K947=\"\",\"\",'1. Ordersheet'!K947)","v":""},{"$f":"IF('1. Ordersheet'!M947=\"\",\"\",'1. Ordersheet'!M947)","v":""},null,null,{"$f":"'1. Ordersheet'!AR947","v":0},{"$f":"IF('1. Ordersheet'!AE947=\"\",\"\",'1. Ordersheet'!AE947)","v":""}]
[{"$f":"IF('1. Ordersheet'!B948=\"\",\"\",'1. Ordersheet'!B948)","v":""},{"$f":"IF('1. Ordersheet'!I948=\"\",\"\",'1. Ordersheet'!I948)","v":""},{"$f":"IF('1. Ordersheet'!J948=\"\",\"\",'1. Ordersheet'!J948)","v":""},{"$f":"IF('1. Ordersheet'!K948=\"\",\"\",'1. Ordersheet'!K948)","v":""},{"$f":"IF('1. Ordersheet'!M948=\"\",\"\",'1. Ordersheet'!M948)","v":""},null,null,{"$f":"'1. Ordersheet'!AR948","v":0},{"$f":"IF('1. Ordersheet'!AE948=\"\",\"\",'1. Ordersheet'!AE948)","v":""}]
[{"$f":"IF('1. Ordersheet'!B949=\"\",\"\",'1. Ordersheet'!B949)","v":""},{"$f":"IF('1. Ordersheet'!I949=\"\",\"\",'1. Ordersheet'!I949)","v":""},{"$f":"IF('1. Ordersheet'!J949=\"\",\"\",'1. Ordersheet'!J949)","v":""},{"$f":"IF('1. Ordersheet'!K949=\"\",\"\",'1. Ordersheet'!K949)","v":""},{"$f":"IF('1. Ordersheet'!M949=\"\",\"\",'1. Ordersheet'!M949)","v":""},null,null,{"$f":"'1. Ordersheet'!AR949","v":0},{"$f":"IF('1. Ordersheet'!AE949=\"\",\"\",'1. Ordersheet'!AE949)","v":""}]
[{"$f":"IF('1. Ordersheet'!B950=\"\",\"\",'1. Ordersheet'!B950)","v":""},{"$f":"IF('1. Ordersheet'!I950=\"\",\"\",'1. Ordersheet'!I950)","v":""},{"$f":"IF('1. Ordersheet'!J950=\"\",\"\",'1. Ordersheet'!J950)","v":""},{"$f":"IF('1. Ordersheet'!K950=\"\",\"\",'1. Ordersheet'!K950)","v":""},{"$f":"IF('1. Ordersheet'!M950=\"\",\"\",'1. Ordersheet'!M950)","v":""},null,null,{"$f":"'1. Ordersheet'!AR950","v":0},{"$f":"IF('1. Ordersheet'!AE950=\"\",\"\",'1. Ordersheet'!AE950)","v":""}]
[{"$f":"IF('1. Ordersheet'!B951=\"\",\"\",'1. Ordersheet'!B951)","v":""},{"$f":"IF('1. Ordersheet'!I951=\"\",\"\",'1. Ordersheet'!I951)","v":""},{"$f":"IF('1. Ordersheet'!J951=\"\",\"\",'1. Ordersheet'!J951)","v":""},{"$f":"IF('1. Ordersheet'!K951=\"\",\"\",'1. Ordersheet'!K951)","v":""},{"$f":"IF('1. Ordersheet'!M951=\"\",\"\",'1. Ordersheet'!M951)","v":""},null,null,{"$f":"'1. Ordersheet'!AR951","v":0},{"$f":"IF('1. Ordersheet'!AE951=\"\",\"\",'1. Ordersheet'!AE951)","v":""}]
[{"$f":"IF('1. Ordersheet'!B952=\"\",\"\",'1. Ordersheet'!B952)","v":""},{"$f":"IF('1. Ordersheet'!I952=\"\",\"\",'1. Ordersheet'!I952)","v":""},{"$f":"IF('1. Ordersheet'!J952=\"\",\"\",'1. Ordersheet'!J952)","v":""},{"$f":"IF('1. Ordersheet'!K952=\"\",\"\",'1. Ordersheet'!K952)","v":""},{"$f":"IF('1. Ordersheet'!M952=\"\",\"\",'1. Ordersheet'!M952)","v":""},null,null,{"$f":"'1. Ordersheet'!AR952","v":0},{"$f":"IF('1. Ordersheet'!AE952=\"\",\"\",'1. Ordersheet'!AE952)","v":""}]
[{"$f":"IF('1. Ordersheet'!B953=\"\",\"\",'1. Ordersheet'!B953)","v":""},{"$f":"IF('1. Ordersheet'!I953=\"\",\"\",'1. Ordersheet'!I953)","v":""},{"$f":"IF('1. Ordersheet'!J953=\"\",\"\",'1. Ordersheet'!J953)","v":""},{"$f":"IF('1. Ordersheet'!K953=\"\",\"\",'1. Ordersheet'!K953)","v":""},{"$f":"IF('1. Ordersheet'!M953=\"\",\"\",'1. Ordersheet'!M953)","v":""},null,null,{"$f":"'1. Ordersheet'!AR953","v":0},{"$f":"IF('1. Ordersheet'!AE953=\"\",\"\",'1. Ordersheet'!AE953)","v":""}]
[{"$f":"IF('1. Ordersheet'!B954=\"\",\"\",'1. Ordersheet'!B954)","v":""},{"$f":"IF('1. Ordersheet'!I954=\"\",\"\",'1. Ordersheet'!I954)","v":""},{"$f":"IF('1. Ordersheet'!J954=\"\",\"\",'1. Ordersheet'!J954)","v":""},{"$f":"IF('1. Ordersheet'!K954=\"\",\"\",'1. Ordersheet'!K954)","v":""},{"$f":"IF('1. Ordersheet'!M954=\"\",\"\",'1. Ordersheet'!M954)","v":""},null,null,{"$f":"'1. Ordersheet'!AR954","v":0},{"$f":"IF('1. Ordersheet'!AE954=\"\",\"\",'1. Ordersheet'!AE954)","v":""}]
[{"$f":"IF('1. Ordersheet'!B955=\"\",\"\",'1. Ordersheet'!B955)","v":""},{"$f":"IF('1. Ordersheet'!I955=\"\",\"\",'1. Ordersheet'!I955)","v":""},{"$f":"IF('1. Ordersheet'!J955=\"\",\"\",'1. Ordersheet'!J955)","v":""},{"$f":"IF('1. Ordersheet'!K955=\"\",\"\",'1. Ordersheet'!K955)","v":""},{"$f":"IF('1. Ordersheet'!M955=\"\",\"\",'1. Ordersheet'!M955)","v":""},null,null,{"$f":"'1. Ordersheet'!AR955","v":0},{"$f":"IF('1. Ordersheet'!AE955=\"\",\"\",'1. Ordersheet'!AE955)","v":""}]
[{"$f":"IF('1. Ordersheet'!B956=\"\",\"\",'1. Ordersheet'!B956)","v":""},{"$f":"IF('1. Ordersheet'!I956=\"\",\"\",'1. Ordersheet'!I956)","v":""},{"$f":"IF('1. Ordersheet'!J956=\"\",\"\",'1. Ordersheet'!J956)","v":""},{"$f":"IF('1. Ordersheet'!K956=\"\",\"\",'1. Ordersheet'!K956)","v":""},{"$f":"IF('1. Ordersheet'!M956=\"\",\"\",'1. Ordersheet'!M956)","v":""},null,null,{"$f":"'1. Ordersheet'!AR956","v":0},{"$f":"IF('1. Ordersheet'!AE956=\"\",\"\",'1. Ordersheet'!AE956)","v":""}]
[{"$f":"IF('1. Ordersheet'!B957=\"\",\"\",'1. Ordersheet'!B957)","v":""},{"$f":"IF('1. Ordersheet'!I957=\"\",\"\",'1. Ordersheet'!I957)","v":""},{"$f":"IF('1. Ordersheet'!J957=\"\",\"\",'1. Ordersheet'!J957)","v":""},{"$f":"IF('1. Ordersheet'!K957=\"\",\"\",'1. Ordersheet'!K957)","v":""},{"$f":"IF('1. Ordersheet'!M957=\"\",\"\",'1. Ordersheet'!M957)","v":""},null,null,{"$f":"'1. Ordersheet'!AR957","v":0},{"$f":"IF('1. Ordersheet'!AE957=\"\",\"\",'1. Ordersheet'!AE957)","v":""}]
[{"$f":"IF('1. Ordersheet'!B958=\"\",\"\",'1. Ordersheet'!B958)","v":""},{"$f":"IF('1. Ordersheet'!I958=\"\",\"\",'1. Ordersheet'!I958)","v":""},{"$f":"IF('1. Ordersheet'!J958=\"\",\"\",'1. Ordersheet'!J958)","v":""},{"$f":"IF('1. Ordersheet'!K958=\"\",\"\",'1. Ordersheet'!K958)","v":""},{"$f":"IF('1. Ordersheet'!M958=\"\",\"\",'1. Ordersheet'!M958)","v":""},null,null,{"$f":"'1. Ordersheet'!AR958","v":0},{"$f":"IF('1. Ordersheet'!AE958=\"\",\"\",'1. Ordersheet'!AE958)","v":""}]
[{"$f":"IF('1. Ordersheet'!B959=\"\",\"\",'1. Ordersheet'!B959)","v":""},{"$f":"IF('1. Ordersheet'!I959=\"\",\"\",'1. Ordersheet'!I959)","v":""},{"$f":"IF('1. Ordersheet'!J959=\"\",\"\",'1. Ordersheet'!J959)","v":""},{"$f":"IF('1. Ordersheet'!K959=\"\",\"\",'1. Ordersheet'!K959)","v":""},{"$f":"IF('1. Ordersheet'!M959=\"\",\"\",'1. Ordersheet'!M959)","v":""},null,null,{"$f":"'1. Ordersheet'!AR959","v":0},{"$f":"IF('1. Ordersheet'!AE959=\"\",\"\",'1. Ordersheet'!AE959)","v":""}]
[{"$f":"IF('1. Ordersheet'!B960=\"\",\"\",'1. Ordersheet'!B960)","v":""},{"$f":"IF('1. Ordersheet'!I960=\"\",\"\",'1. Ordersheet'!I960)","v":""},{"$f":"IF('1. Ordersheet'!J960=\"\",\"\",'1. Ordersheet'!J960)","v":""},{"$f":"IF('1. Ordersheet'!K960=\"\",\"\",'1. Ordersheet'!K960)","v":""},{"$f":"IF('1. Ordersheet'!M960=\"\",\"\",'1. Ordersheet'!M960)","v":""},null,null,{"$f":"'1. Ordersheet'!AR960","v":0},{"$f":"IF('1. Ordersheet'!AE960=\"\",\"\",'1. Ordersheet'!AE960)","v":""}]
[{"$f":"IF('1. Ordersheet'!B961=\"\",\"\",'1. Ordersheet'!B961)","v":""},{"$f":"IF('1. Ordersheet'!I961=\"\",\"\",'1. Ordersheet'!I961)","v":""},{"$f":"IF('1. Ordersheet'!J961=\"\",\"\",'1. Ordersheet'!J961)","v":""},{"$f":"IF('1. Ordersheet'!K961=\"\",\"\",'1. Ordersheet'!K961)","v":""},{"$f":"IF('1. Ordersheet'!M961=\"\",\"\",'1. Ordersheet'!M961)","v":""},null,null,{"$f":"'1. Ordersheet'!AR961","v":0},{"$f":"IF('1. Ordersheet'!AE961=\"\",\"\",'1. Ordersheet'!AE961)","v":""}]
[{"$f":"IF('1. Ordersheet'!B962=\"\",\"\",'1. Ordersheet'!B962)","v":""},{"$f":"IF('1. Ordersheet'!I962=\"\",\"\",'1. Ordersheet'!I962)","v":""},{"$f":"IF('1. Ordersheet'!J962=\"\",\"\",'1. Ordersheet'!J962)","v":""},{"$f":"IF('1. Ordersheet'!K962=\"\",\"\",'1. Ordersheet'!K962)","v":""},{"$f":"IF('1. Ordersheet'!M962=\"\",\"\",'1. Ordersheet'!M962)","v":""},null,null,{"$f":"'1. Ordersheet'!AR962","v":0},{"$f":"IF('1. Ordersheet'!AE962=\"\",\"\",'1. Ordersheet'!AE962)","v":""}]
[{"$f":"IF('1. Ordersheet'!B963=\"\",\"\",'1. Ordersheet'!B963)","v":""},{"$f":"IF('1. Ordersheet'!I963=\"\",\"\",'1. Ordersheet'!I963)","v":""},{"$f":"IF('1. Ordersheet'!J963=\"\",\"\",'1. Ordersheet'!J963)","v":""},{"$f":"IF('1. Ordersheet'!K963=\"\",\"\",'1. Ordersheet'!K963)","v":""},{"$f":"IF('1. Ordersheet'!M963=\"\",\"\",'1. Ordersheet'!M963)","v":""},null,null,{"$f":"'1. Ordersheet'!AR963","v":0},{"$f":"IF('1. Ordersheet'!AE963=\"\",\"\",'1. Ordersheet'!AE963)","v":""}]
[{"$f":"IF('1. Ordersheet'!B964=\"\",\"\",'1. Ordersheet'!B964)","v":""},{"$f":"IF('1. Ordersheet'!I964=\"\",\"\",'1. Ordersheet'!I964)","v":""},{"$f":"IF('1. Ordersheet'!J964=\"\",\"\",'1. Ordersheet'!J964)","v":""},{"$f":"IF('1. Ordersheet'!K964=\"\",\"\",'1. Ordersheet'!K964)","v":""},{"$f":"IF('1. Ordersheet'!M964=\"\",\"\",'1. Ordersheet'!M964)","v":""},null,null,{"$f":"'1. Ordersheet'!AR964","v":0},{"$f":"IF('1. Ordersheet'!AE964=\"\",\"\",'1. Ordersheet'!AE964)","v":""}]
[{"$f":"IF('1. Ordersheet'!B965=\"\",\"\",'1. Ordersheet'!B965)","v":""},{"$f":"IF('1. Ordersheet'!I965=\"\",\"\",'1. Ordersheet'!I965)","v":""},{"$f":"IF('1. Ordersheet'!J965=\"\",\"\",'1. Ordersheet'!J965)","v":""},{"$f":"IF('1. Ordersheet'!K965=\"\",\"\",'1. Ordersheet'!K965)","v":""},{"$f":"IF('1. Ordersheet'!M965=\"\",\"\",'1. Ordersheet'!M965)","v":""},null,null,{"$f":"'1. Ordersheet'!AR965","v":0},{"$f":"IF('1. Ordersheet'!AE965=\"\",\"\",'1. Ordersheet'!AE965)","v":""}]
[{"$f":"IF('1. Ordersheet'!B966=\"\",\"\",'1. Ordersheet'!B966)","v":""},{"$f":"IF('1. Ordersheet'!I966=\"\",\"\",'1. Ordersheet'!I966)","v":""},{"$f":"IF('1. Ordersheet'!J966=\"\",\"\",'1. Ordersheet'!J966)","v":""},{"$f":"IF('1. Ordersheet'!K966=\"\",\"\",'1. Ordersheet'!K966)","v":""},{"$f":"IF('1. Ordersheet'!M966=\"\",\"\",'1. Ordersheet'!M966)","v":""},null,null,{"$f":"'1. Ordersheet'!AR966","v":0},{"$f":"IF('1. Ordersheet'!AE966=\"\",\"\",'1. Ordersheet'!AE966)","v":""}]
[{"$f":"IF('1. Ordersheet'!B967=\"\",\"\",'1. Ordersheet'!B967)","v":""},{"$f":"IF('1. Ordersheet'!I967=\"\",\"\",'1. Ordersheet'!I967)","v":""},{"$f":"IF('1. Ordersheet'!J967=\"\",\"\",'1. Ordersheet'!J967)","v":""},{"$f":"IF('1. Ordersheet'!K967=\"\",\"\",'1. Ordersheet'!K967)","v":""},{"$f":"IF('1. Ordersheet'!M967=\"\",\"\",'1. Ordersheet'!M967)","v":""},null,null,{"$f":"'1. Ordersheet'!AR967","v":0},{"$f":"IF('1. Ordersheet'!AE967=\"\",\"\",'1. Ordersheet'!AE967)","v":""}]
[{"$f":"IF('1. Ordersheet'!B968=\"\",\"\",'1. Ordersheet'!B968)","v":""},{"$f":"IF('1. Ordersheet'!I968=\"\",\"\",'1. Ordersheet'!I968)","v":""},{"$f":"IF('1. Ordersheet'!J968=\"\",\"\",'1. Ordersheet'!J968)","v":""},{"$f":"IF('1. Ordersheet'!K968=\"\",\"\",'1. Ordersheet'!K968)","v":""},{"$f":"IF('1. Ordersheet'!M968=\"\",\"\",'1. Ordersheet'!M968)","v":""},null,null,{"$f":"'1. Ordersheet'!AR968","v":0},{"$f":"IF('1. Ordersheet'!AE968=\"\",\"\",'1. Ordersheet'!AE968)","v":""}]
[{"$f":"IF('1. Ordersheet'!B969=\"\",\"\",'1. Ordersheet'!B969)","v":""},{"$f":"IF('1. Ordersheet'!I969=\"\",\"\",'1. Ordersheet'!I969)","v":""},{"$f":"IF('1. Ordersheet'!J969=\"\",\"\",'1. Ordersheet'!J969)","v":""},{"$f":"IF('1. Ordersheet'!K969=\"\",\"\",'1. Ordersheet'!K969)","v":""},{"$f":"IF('1. Ordersheet'!M969=\"\",\"\",'1. Ordersheet'!M969)","v":""},null,null,{"$f":"'1. Ordersheet'!AR969","v":0},{"$f":"IF('1. Ordersheet'!AE969=\"\",\"\",'1. Ordersheet'!AE969)","v":""}]
[{"$f":"IF('1. Ordersheet'!B970=\"\",\"\",'1. Ordersheet'!B970)","v":""},{"$f":"IF('1. Ordersheet'!I970=\"\",\"\",'1. Ordersheet'!I970)","v":""},{"$f":"IF('1. Ordersheet'!J970=\"\",\"\",'1. Ordersheet'!J970)","v":""},{"$f":"IF('1. Ordersheet'!K970=\"\",\"\",'1. Ordersheet'!K970)","v":""},{"$f":"IF('1. Ordersheet'!M970=\"\",\"\",'1. Ordersheet'!M970)","v":""},null,null,{"$f":"'1. Ordersheet'!AR970","v":0},{"$f":"IF('1. Ordersheet'!AE970=\"\",\"\",'1. Ordersheet'!AE970)","v":""}]
[{"$f":"IF('1. Ordersheet'!B971=\"\",\"\",'1. Ordersheet'!B971)","v":""},{"$f":"IF('1. Ordersheet'!I971=\"\",\"\",'1. Ordersheet'!I971)","v":""},{"$f":"IF('1. Ordersheet'!J971=\"\",\"\",'1. Ordersheet'!J971)","v":""},{"$f":"IF('1. Ordersheet'!K971=\"\",\"\",'1. Ordersheet'!K971)","v":""},{"$f":"IF('1. Ordersheet'!M971=\"\",\"\",'1. Ordersheet'!M971)","v":""},null,null,{"$f":"'1. Ordersheet'!AR971","v":0},{"$f":"IF('1. Ordersheet'!AE971=\"\",\"\",'1. Ordersheet'!AE971)","v":""}]
[{"$f":"IF('1. Ordersheet'!B972=\"\",\"\",'1. Ordersheet'!B972)","v":""},{"$f":"IF('1. Ordersheet'!I972=\"\",\"\",'1. Ordersheet'!I972)","v":""},{"$f":"IF('1. Ordersheet'!J972=\"\",\"\",'1. Ordersheet'!J972)","v":""},{"$f":"IF('1. Ordersheet'!K972=\"\",\"\",'1. Ordersheet'!K972)","v":""},{"$f":"IF('1. Ordersheet'!M972=\"\",\"\",'1. Ordersheet'!M972)","v":""},null,null,{"$f":"'1. Ordersheet'!AR972","v":0},{"$f":"IF('1. Ordersheet'!AE972=\"\",\"\",'1. Ordersheet'!AE972)","v":""}]
[{"$f":"IF('1. Ordersheet'!B973=\"\",\"\",'1. Ordersheet'!B973)","v":""},{"$f":"IF('1. Ordersheet'!I973=\"\",\"\",'1. Ordersheet'!I973)","v":""},{"$f":"IF('1. Ordersheet'!J973=\"\",\"\",'1. Ordersheet'!J973)","v":""},{"$f":"IF('1. Ordersheet'!K973=\"\",\"\",'1. Ordersheet'!K973)","v":""},{"$f":"IF('1. Ordersheet'!M973=\"\",\"\",'1. Ordersheet'!M973)","v":""},null,null,{"$f":"'1. Ordersheet'!AR973","v":0},{"$f":"IF('1. Ordersheet'!AE973=\"\",\"\",'1. Ordersheet'!AE973)","v":""}]
[{"$f":"IF('1. Ordersheet'!B974=\"\",\"\",'1. Ordersheet'!B974)","v":""},{"$f":"IF('1. Ordersheet'!I974=\"\",\"\",'1. Ordersheet'!I974)","v":""},{"$f":"IF('1. Ordersheet'!J974=\"\",\"\",'1. Ordersheet'!J974)","v":""},{"$f":"IF('1. Ordersheet'!K974=\"\",\"\",'1. Ordersheet'!K974)","v":""},{"$f":"IF('1. Ordersheet'!M974=\"\",\"\",'1. Ordersheet'!M974)","v":""},null,null,{"$f":"'1. Ordersheet'!AR974","v":0},{"$f":"IF('1. Ordersheet'!AE974=\"\",\"\",'1. Ordersheet'!AE974)","v":""}]
[{"$f":"IF('1. Ordersheet'!B975=\"\",\"\",'1. Ordersheet'!B975)","v":""},{"$f":"IF('1. Ordersheet'!I975=\"\",\"\",'1. Ordersheet'!I975)","v":""},{"$f":"IF('1. Ordersheet'!J975=\"\",\"\",'1. Ordersheet'!J975)","v":""},{"$f":"IF('1. Ordersheet'!K975=\"\",\"\",'1. Ordersheet'!K975)","v":""},{"$f":"IF('1. Ordersheet'!M975=\"\",\"\",'1. Ordersheet'!M975)","v":""},null,null,{"$f":"'1. Ordersheet'!AR975","v":0},{"$f":"IF('1. Ordersheet'!AE975=\"\",\"\",'1. Ordersheet'!AE975)","v":""}]
[{"$f":"IF('1. Ordersheet'!B976=\"\",\"\",'1. Ordersheet'!B976)","v":""},{"$f":"IF('1. Ordersheet'!I976=\"\",\"\",'1. Ordersheet'!I976)","v":""},{"$f":"IF('1. Ordersheet'!J976=\"\",\"\",'1. Ordersheet'!J976)","v":""},{"$f":"IF('1. Ordersheet'!K976=\"\",\"\",'1. Ordersheet'!K976)","v":""},{"$f":"IF('1. Ordersheet'!M976=\"\",\"\",'1. Ordersheet'!M976)","v":""},null,null,{"$f":"'1. Ordersheet'!AR976","v":0},{"$f":"IF('1. Ordersheet'!AE976=\"\",\"\",'1. Ordersheet'!AE976)","v":""}]
[{"$f":"IF('1. Ordersheet'!B977=\"\",\"\",'1. Ordersheet'!B977)","v":""},{"$f":"IF('1. Ordersheet'!I977=\"\",\"\",'1. Ordersheet'!I977)","v":""},{"$f":"IF('1. Ordersheet'!J977=\"\",\"\",'1. Ordersheet'!J977)","v":""},{"$f":"IF('1. Ordersheet'!K977=\"\",\"\",'1. Ordersheet'!K977)","v":""},{"$f":"IF('1. Ordersheet'!M977=\"\",\"\",'1. Ordersheet'!M977)","v":""},null,null,{"$f":"'1. Ordersheet'!AR977","v":0},{"$f":"IF('1. Ordersheet'!AE977=\"\",\"\",'1. Ordersheet'!AE977)","v":""}]
[{"$f":"IF('1. Ordersheet'!B978=\"\",\"\",'1. Ordersheet'!B978)","v":""},{"$f":"IF('1. Ordersheet'!I978=\"\",\"\",'1. Ordersheet'!I978)","v":""},{"$f":"IF('1. Ordersheet'!J978=\"\",\"\",'1. Ordersheet'!J978)","v":""},{"$f":"IF('1. Ordersheet'!K978=\"\",\"\",'1. Ordersheet'!K978)","v":""},{"$f":"IF('1. Ordersheet'!M978=\"\",\"\",'1. Ordersheet'!M978)","v":""},null,null,{"$f":"'1. Ordersheet'!AR978","v":0},{"$f":"IF('1. Ordersheet'!AE978=\"\",\"\",'1. Ordersheet'!AE978)","v":""}]
[{"$f":"IF('1. Ordersheet'!B979=\"\",\"\",'1. Ordersheet'!B979)","v":""},{"$f":"IF('1. Ordersheet'!I979=\"\",\"\",'1. Ordersheet'!I979)","v":""},{"$f":"IF('1. Ordersheet'!J979=\"\",\"\",'1. Ordersheet'!J979)","v":""},{"$f":"IF('1. Ordersheet'!K979=\"\",\"\",'1. Ordersheet'!K979)","v":""},{"$f":"IF('1. Ordersheet'!M979=\"\",\"\",'1. Ordersheet'!M979)","v":""},null,null,{"$f":"'1. Ordersheet'!AR979","v":0},{"$f":"IF('1. Ordersheet'!AE979=\"\",\"\",'1. Ordersheet'!AE979)","v":""}]
[{"$f":"IF('1. Ordersheet'!B980=\"\",\"\",'1. Ordersheet'!B980)","v":""},{"$f":"IF('1. Ordersheet'!I980=\"\",\"\",'1. Ordersheet'!I980)","v":""},{"$f":"IF('1. Ordersheet'!J980=\"\",\"\",'1. Ordersheet'!J980)","v":""},{"$f":"IF('1. Ordersheet'!K980=\"\",\"\",'1. Ordersheet'!K980)","v":""},{"$f":"IF('1. Ordersheet'!M980=\"\",\"\",'1. Ordersheet'!M980)","v":""},null,null,{"$f":"'1. Ordersheet'!AR980","v":0},{"$f":"IF('1. Ordersheet'!AE980=\"\",\"\",'1. Ordersheet'!AE980)","v":""}]
[{"$f":"IF('1. Ordersheet'!B981=\"\",\"\",'1. Ordersheet'!B981)","v":""},{"$f":"IF('1. Ordersheet'!I981=\"\",\"\",'1. Ordersheet'!I981)","v":""},{"$f":"IF('1. Ordersheet'!J981=\"\",\"\",'1. Ordersheet'!J981)","v":""},{"$f":"IF('1. Ordersheet'!K981=\"\",\"\",'1. Ordersheet'!K981)","v":""},{"$f":"IF('1. Ordersheet'!M981=\"\",\"\",'1. Ordersheet'!M981)","v":""},null,null,{"$f":"'1. Ordersheet'!AR981","v":0},{"$f":"IF('1. Ordersheet'!AE981=\"\",\"\",'1. Ordersheet'!AE981)","v":""}]
[{"$f":"IF('1. Ordersheet'!B982=\"\",\"\",'1. Ordersheet'!B982)","v":""},{"$f":"IF('1. Ordersheet'!I982=\"\",\"\",'1. Ordersheet'!I982)","v":""},{"$f":"IF('1. Ordersheet'!J982=\"\",\"\",'1. Ordersheet'!J982)","v":""},{"$f":"IF('1. Ordersheet'!K982=\"\",\"\",'1. Ordersheet'!K982)","v":""},{"$f":"IF('1. Ordersheet'!M982=\"\",\"\",'1. Ordersheet'!M982)","v":""},null,null,{"$f":"'1. Ordersheet'!AR982","v":0},{"$f":"IF('1. Ordersheet'!AE982=\"\",\"\",'1. Ordersheet'!AE982)","v":""}]
[{"$f":"IF('1. Ordersheet'!B983=\"\",\"\",'1. Ordersheet'!B983)","v":""},{"$f":"IF('1. Ordersheet'!I983=\"\",\"\",'1. Ordersheet'!I983)","v":""},{"$f":"IF('1. Ordersheet'!J983=\"\",\"\",'1. Ordersheet'!J983)","v":""},{"$f":"IF('1. Ordersheet'!K983=\"\",\"\",'1. Ordersheet'!K983)","v":""},{"$f":"IF('1. Ordersheet'!M983=\"\",\"\",'1. Ordersheet'!M983)","v":""},null,null,{"$f":"'1. Ordersheet'!AR983","v":0},{"$f":"IF('1. Ordersheet'!AE983=\"\",\"\",'1. Ordersheet'!AE983)","v":""}]
[{"$f":"IF('1. Ordersheet'!B984=\"\",\"\",'1. Ordersheet'!B984)","v":""},{"$f":"IF('1. Ordersheet'!I984=\"\",\"\",'1. Ordersheet'!I984)","v":""},{"$f":"IF('1. Ordersheet'!J984=\"\",\"\",'1. Ordersheet'!J984)","v":""},{"$f":"IF('1. Ordersheet'!K984=\"\",\"\",'1. Ordersheet'!K984)","v":""},{"$f":"IF('1. Ordersheet'!M984=\"\",\"\",'1. Ordersheet'!M984)","v":""},null,null,{"$f":"'1. Ordersheet'!AR984","v":0},{"$f":"IF('1. Ordersheet'!AE984=\"\",\"\",'1. Ordersheet'!AE984)","v":""}]
[{"$f":"IF('1. Ordersheet'!B985=\"\",\"\",'1. Ordersheet'!B985)","v":""},{"$f":"IF('1. Ordersheet'!I985=\"\",\"\",'1. Ordersheet'!I985)","v":""},{"$f":"IF('1. Ordersheet'!J985=\"\",\"\",'1. Ordersheet'!J985)","v":""},{"$f":"IF('1. Ordersheet'!K985=\"\",\"\",'1. Ordersheet'!K985)","v":""},{"$f":"IF('1. Ordersheet'!M985=\"\",\"\",'1. Ordersheet'!M985)","v":""},null,null,{"$f":"'1. Ordersheet'!AR985","v":0},{"$f":"IF('1. Ordersheet'!AE985=\"\",\"\",'1. Ordersheet'!AE985)","v":""}]
[{"$f":"IF('1. Ordersheet'!B986=\"\",\"\",'1. Ordersheet'!B986)","v":""},{"$f":"IF('1. Ordersheet'!I986=\"\",\"\",'1. Ordersheet'!I986)","v":""},{"$f":"IF('1. Ordersheet'!J986=\"\",\"\",'1. Ordersheet'!J986)","v":""},{"$f":"IF('1. Ordersheet'!K986=\"\",\"\",'1. Ordersheet'!K986)","v":""},{"$f":"IF('1. Ordersheet'!M986=\"\",\"\",'1. Ordersheet'!M986)","v":""},null,null,{"$f":"'1. Ordersheet'!AR986","v":0},{"$f":"IF('1. Ordersheet'!AE986=\"\",\"\",'1. Ordersheet'!AE986)","v":""}]
[{"$f":"IF('1. Ordersheet'!B987=\"\",\"\",'1. Ordersheet'!B987)","v":""},{"$f":"IF('1. Ordersheet'!I987=\"\",\"\",'1. Ordersheet'!I987)","v":""},{"$f":"IF('1. Ordersheet'!J987=\"\",\"\",'1. Ordersheet'!J987)","v":""},{"$f":"IF('1. Ordersheet'!K987=\"\",\"\",'1. Ordersheet'!K987)","v":""},{"$f":"IF('1. Ordersheet'!M987=\"\",\"\",'1. Ordersheet'!M987)","v":""},null,null,{"$f":"'1. Ordersheet'!AR987","v":0},{"$f":"IF('1. Ordersheet'!AE987=\"\",\"\",'1. Ordersheet'!AE987)","v":""}]
[{"$f":"IF('1. Ordersheet'!B988=\"\",\"\",'1. Ordersheet'!B988)","v":""},{"$f":"IF('1. Ordersheet'!I988=\"\",\"\",'1. Ordersheet'!I988)","v":""},{"$f":"IF('1. Ordersheet'!J988=\"\",\"\",'1. Ordersheet'!J988)","v":""},{"$f":"IF('1. Ordersheet'!K988=\"\",\"\",'1. Ordersheet'!K988)","v":""},{"$f":"IF('1. Ordersheet'!M988=\"\",\"\",'1. Ordersheet'!M988)","v":""},null,null,{"$f":"'1. Ordersheet'!AR988","v":0},{"$f":"IF('1. Ordersheet'!AE988=\"\",\"\",'1. Ordersheet'!AE988)","v":""}]
[{"$f":"IF('1. Ordersheet'!B989=\"\",\"\",'1. Ordersheet'!B989)","v":""},{"$f":"IF('1. Ordersheet'!I989=\"\",\"\",'1. Ordersheet'!I989)","v":""},{"$f":"IF('1. Ordersheet'!J989=\"\",\"\",'1. Ordersheet'!J989)","v":""},{"$f":"IF('1. Ordersheet'!K989=\"\",\"\",'1. Ordersheet'!K989)","v":""},{"$f":"IF('1. Ordersheet'!M989=\"\",\"\",'1. Ordersheet'!M989)","v":""},null,null,{"$f":"'1. Ordersheet'!AR989","v":0},{"$f":"IF('1. Ordersheet'!AE989=\"\",\"\",'1. Ordersheet'!AE989)","v":""}]
[{"$f":"IF('1. Ordersheet'!B990=\"\",\"\",'1. Ordersheet'!B990)","v":""},{"$f":"IF('1. Ordersheet'!I990=\"\",\"\",'1. Ordersheet'!I990)","v":""},{"$f":"IF('1. Ordersheet'!J990=\"\",\"\",'1. Ordersheet'!J990)","v":""},{"$f":"IF('1. Ordersheet'!K990=\"\",\"\",'1. Ordersheet'!K990)","v":""},{"$f":"IF('1. Ordersheet'!M990=\"\",\"\",'1. Ordersheet'!M990)","v":""},null,null,{"$f":"'1. Ordersheet'!AR990","v":0},{"$f":"IF('1. Ordersheet'!AE990=\"\",\"\",'1. Ordersheet'!AE990)","v":""}]
[{"$f":"IF('1. Ordersheet'!B991=\"\",\"\",'1. Ordersheet'!B991)","v":""},{"$f":"IF('1. Ordersheet'!I991=\"\",\"\",'1. Ordersheet'!I991)","v":""},{"$f":"IF('1. Ordersheet'!J991=\"\",\"\",'1. Ordersheet'!J991)","v":""},{"$f":"IF('1. Ordersheet'!K991=\"\",\"\",'1. Ordersheet'!K991)","v":""},{"$f":"IF('1. Ordersheet'!M991=\"\",\"\",'1. Ordersheet'!M991)","v":""},null,null,{"$f":"'1. Ordersheet'!AR991","v":0},{"$f":"IF('1. Ordersheet'!AE991=\"\",\"\",'1. Ordersheet'!AE991)","v":""}]
[{"$f":"IF('1. Ordersheet'!B992=\"\",\"\",'1. Ordersheet'!B992)","v":""},{"$f":"IF('1. Ordersheet'!I992=\"\",\"\",'1. Ordersheet'!I992)","v":""},{"$f":"IF('1. Ordersheet'!J992=\"\",\"\",'1. Ordersheet'!J992)","v":""},{"$f":"IF('1. Ordersheet'!K992=\"\",\"\",'1. Ordersheet'!K992)","v":""},{"$f":"IF('1. Ordersheet'!M992=\"\",\"\",'1. Ordersheet'!M992)","v":""},null,null,{"$f":"'1. Ordersheet'!AR992","v":0},{"$f":"IF('1. Ordersheet'!AE992=\"\",\"\",'1. Ordersheet'!AE992)","v":""}]
[{"$f":"IF('1. Ordersheet'!B993=\"\",\"\",'1. Ordersheet'!B993)","v":""},{"$f":"IF('1. Ordersheet'!I993=\"\",\"\",'1. Ordersheet'!I993)","v":""},{"$f":"IF('1. Ordersheet'!J993=\"\",\"\",'1. Ordersheet'!J993)","v":""},{"$f":"IF('1. Ordersheet'!K993=\"\",\"\",'1. Ordersheet'!K993)","v":""},{"$f":"IF('1. Ordersheet'!M993=\"\",\"\",'1. Ordersheet'!M993)","v":""},null,null,{"$f":"'1. Ordersheet'!AR993","v":0},{"$f":"IF('1. Ordersheet'!AE993=\"\",\"\",'1. Ordersheet'!AE993)","v":""}]
[{"$f":"IF('1. Ordersheet'!B994=\"\",\"\",'1. Ordersheet'!B994)","v":""},{"$f":"IF('1. Ordersheet'!I994=\"\",\"\",'1. Ordersheet'!I994)","v":""},{"$f":"IF('1. Ordersheet'!J994=\"\",\"\",'1. Ordersheet'!J994)","v":""},{"$f":"IF('1. Ordersheet'!K994=\"\",\"\",'1. Ordersheet'!K994)","v":""},{"$f":"IF('1. Ordersheet'!M994=\"\",\"\",'1. Ordersheet'!M994)","v":""},null,null,{"$f":"'1. Ordersheet'!AR994","v":0},{"$f":"IF('1. Ordersheet'!AE994=\"\",\"\",'1. Ordersheet'!AE994)","v":""}]
[{"$f":"IF('1. Ordersheet'!B995=\"\",\"\",'1. Ordersheet'!B995)","v":""},{"$f":"IF('1. Ordersheet'!I995=\"\",\"\",'1. Ordersheet'!I995)","v":""},{"$f":"IF('1. Ordersheet'!J995=\"\",\"\",'1. Ordersheet'!J995)","v":""},{"$f":"IF('1. Ordersheet'!K995=\"\",\"\",'1. Ordersheet'!K995)","v":""},{"$f":"IF('1. Ordersheet'!M995=\"\",\"\",'1. Ordersheet'!M995)","v":""},null,null,{"$f":"'1. Ordersheet'!AR995","v":0},{"$f":"IF('1. Ordersheet'!AE995=\"\",\"\",'1. Ordersheet'!AE995)","v":""}]
[{"$f":"IF('1. Ordersheet'!B996=\"\",\"\",'1. Ordersheet'!B996)","v":""},{"$f":"IF('1. Ordersheet'!I996=\"\",\"\",'1. Ordersheet'!I996)","v":""},{"$f":"IF('1. Ordersheet'!J996=\"\",\"\",'1. Ordersheet'!J996)","v":""},{"$f":"IF('1. Ordersheet'!K996=\"\",\"\",'1. Ordersheet'!K996)","v":""},{"$f":"IF('1. Ordersheet'!M996=\"\",\"\",'1. Ordersheet'!M996)","v":""},null,null,{"$f":"'1. Ordersheet'!AR996","v":0},{"$f":"IF('1. Ordersheet'!AE996=\"\",\"\",'1. Ordersheet'!AE996)","v":""}]
[{"$f":"IF('1. Ordersheet'!B997=\"\",\"\",'1. Ordersheet'!B997)","v":""},{"$f":"IF('1. Ordersheet'!I997=\"\",\"\",'1. Ordersheet'!I997)","v":""},{"$f":"IF('1. Ordersheet'!J997=\"\",\"\",'1. Ordersheet'!J997)","v":""},{"$f":"IF('1. Ordersheet'!K997=\"\",\"\",'1. Ordersheet'!K997)","v":""},{"$f":"IF('1. Ordersheet'!M997=\"\",\"\",'1. Ordersheet'!M997)","v":""},null,null,{"$f":"'1. Ordersheet'!AR997","v":0},{"$f":"IF('1. Ordersheet'!AE997=\"\",\"\",'1. Ordersheet'!AE997)","v":""}]
[{"$f":"IF('1. Ordersheet'!B998=\"\",\"\",'1. Ordersheet'!B998)","v":""},{"$f":"IF('1. Ordersheet'!I998=\"\",\"\",'1. Ordersheet'!I998)","v":""},{"$f":"IF('1. Ordersheet'!J998=\"\",\"\",'1. Ordersheet'!J998)","v":""},{"$f":"IF('1. Ordersheet'!K998=\"\",\"\",'1. Ordersheet'!K998)","v":""},{"$f":"IF('1. Ordersheet'!M998=\"\",\"\",'1. Ordersheet'!M998)","v":""},null,null,{"$f":"'1. Ordersheet'!AR998","v":0},{"$f":"IF('1. Ordersheet'!AE998=\"\",\"\",'1. Ordersheet'!AE998)","v":""}]
[{"$f":"IF('1. Ordersheet'!B999=\"\",\"\",'1. Ordersheet'!B999)","v":""},{"$f":"IF('1. Ordersheet'!I999=\"\",\"\",'1. Ordersheet'!I999)","v":""},{"$f":"IF('1. Ordersheet'!J999=\"\",\"\",'1. Ordersheet'!J999)","v":""},{"$f":"IF('1. Ordersheet'!K999=\"\",\"\",'1. Ordersheet'!K999)","v":""},{"$f":"IF('1. Ordersheet'!M999=\"\",\"\",'1. Ordersheet'!M999)","v":""},null,null,{"$f":"'1. Ordersheet'!AR999","v":0},{"$f":"IF('1. Ordersheet'!AE999=\"\",\"\",'1. Ordersheet'!AE999)","v":""}]
[{"$f":"IF('1. Ordersheet'!B1000=\"\",\"\",'1. Ordersheet'!B1000)","v":""},{"$f":"IF('1. Ordersheet'!I1000=\"\",\"\",'1. Ordersheet'!I1000)","v":""},{"$f":"IF('1. Ordersheet'!J1000=\"\",\"\",'1. Ordersheet'!J1000)","v":""},{"$f":"IF('1. Ordersheet'!K1000=\"\",\"\",'1. Ordersheet'!K1000)","v":""},{"$f":"IF('1. Ordersheet'!M1000=\"\",\"\",'1. Ordersheet'!M1000)","v":""},null,null,{"$f":"'1. Ordersheet'!AR1000","v":0},{"$f":"IF('1. Ordersheet'!AE1000=\"\",\"\",'1. Ordersheet'!AE1000)","v":""}]
[{"$f":"IF('1. Ordersheet'!B1001=\"\",\"\",'1. Ordersheet'!B1001)","v":""},{"$f":"IF('1. Ordersheet'!I1001=\"\",\"\",'1. Ordersheet'!I1001)","v":""},{"$f":"IF('1. Ordersheet'!J1001=\"\",\"\",'1. Ordersheet'!J1001)","v":""},{"$f":"IF('1. Ordersheet'!K1001=\"\",\"\",'1. Ordersheet'!K1001)","v":""},{"$f":"IF('1. Ordersheet'!M1001=\"\",\"\",'1. Ordersheet'!M1001)","v":""},null,null,{"$f":"'1. Ordersheet'!AR1001","v":0},{"$f":"IF('1. Ordersheet'!AE1001=\"\",\"\",'1. Ordersheet'!AE1001)","v":""}]
[{"$f":"IF('1. Ordersheet'!B1002=\"\",\"\",'1. Ordersheet'!B1002)","v":""},{"$f":"IF('1. Ordersheet'!I1002=\"\",\"\",'1. Ordersheet'!I1002)","v":""},{"$f":"IF('1. Ordersheet'!J1002=\"\",\"\",'1. Ordersheet'!J1002)","v":""},{"$f":"IF('1. Ordersheet'!K1002=\"\",\"\",'1. Ordersheet'!K1002)","v":""},{"$f":"IF('1. Ordersheet'!M1002=\"\",\"\",'1. Ordersheet'!M1002)","v":""},null,null,{"$f":"'1. Ordersheet'!AR1002","v":0},{"$f":"IF('1. Ordersheet'!AE1002=\"\",\"\",'1. Ordersheet'!AE1002)","v":""}]
[{"$f":"IF('1. Ordersheet'!B1003=\"\",\"\",'1. Ordersheet'!B1003)","v":""},{"$f":"IF('1. Ordersheet'!I1003=\"\",\"\",'1. Ordersheet'!I1003)","v":""},{"$f":"IF('1. Ordersheet'!J1003=\"\",\"\",'1. Ordersheet'!J1003)","v":""},{"$f":"IF('1. Ordersheet'!K1003=\"\",\"\",'1. Ordersheet'!K1003)","v":""},{"$f":"IF('1. Ordersheet'!M1003=\"\",\"\",'1. Ordersheet'!M1003)","v":""},null,null,{"$f":"'1. Ordersheet'!AR1003","v":0},{"$f":"IF('1. Ordersheet'!AE1003=\"\",\"\",'1. Ordersheet'!AE1003)","v":""}]
[{"$f":"IF('1. Ordersheet'!B1004=\"\",\"\",'1. Ordersheet'!B1004)","v":""},{"$f":"IF('1. Ordersheet'!I1004=\"\",\"\",'1. Ordersheet'!I1004)","v":""},{"$f":"IF('1. Ordersheet'!J1004=\"\",\"\",'1. Ordersheet'!J1004)","v":""},{"$f":"IF('1. Ordersheet'!K1004=\"\",\"\",'1. Ordersheet'!K1004)","v":""},{"$f":"IF('1. Ordersheet'!M1004=\"\",\"\",'1. Ordersheet'!M1004)","v":""},null,null,{"$f":"'1. Ordersheet'!AR1004","v":0},{"$f":"IF('1. Ordersheet'!AE1004=\"\",\"\",'1. Ordersheet'!AE1004)","v":""}]
[{"$f":"IF('1. Ordersheet'!B1005=\"\",\"\",'1. Ordersheet'!B1005)","v":""},{"$f":"IF('1. Ordersheet'!I1005=\"\",\"\",'1. Ordersheet'!I1005)","v":""},{"$f":"IF('1. Ordersheet'!J1005=\"\",\"\",'1. Ordersheet'!J1005)","v":""},{"$f":"IF('1. Ordersheet'!K1005=\"\",\"\",'1. Ordersheet'!K1005)","v":""},{"$f":"IF('1. Ordersheet'!M1005=\"\",\"\",'1. Ordersheet'!M1005)","v":""},null,null,{"$f":"'1. Ordersheet'!AR1005","v":0},{"$f":"IF('1. Ordersheet'!AE1005=\"\",\"\",'1. Ordersheet'!AE1005)","v":""}]
[{"$f":"IF('1. Ordersheet'!B1006=\"\",\"\",'1. Ordersheet'!B1006)","v":""},{"$f":"IF('1. Ordersheet'!I1006=\"\",\"\",'1. Ordersheet'!I1006)","v":""},{"$f":"IF('1. Ordersheet'!J1006=\"\",\"\",'1. Ordersheet'!J1006)","v":""},{"$f":"IF('1. Ordersheet'!K1006=\"\",\"\",'1. Ordersheet'!K1006)","v":""},{"$f":"IF('1. Ordersheet'!M1006=\"\",\"\",'1. Ordersheet'!M1006)","v":""},null,null,{"$f":"'1. Ordersheet'!AR1006","v":0},{"$f":"IF('1. Ordersheet'!AE1006=\"\",\"\",'1. Ordersheet'!AE1006)","v":""}]
[{"$f":"IF('1. Ordersheet'!B1007=\"\",\"\",'1. Ordersheet'!B1007)","v":""},{"$f":"IF('1. Ordersheet'!I1007=\"\",\"\",'1. Ordersheet'!I1007)","v":""},{"$f":"IF('1. Ordersheet'!J1007=\"\",\"\",'1. Ordersheet'!J1007)","v":""},{"$f":"IF('1. Ordersheet'!K1007=\"\",\"\",'1. Ordersheet'!K1007)","v":""},{"$f":"IF('1. Ordersheet'!M1007=\"\",\"\",'1. Ordersheet'!M1007)","v":""},null,null,{"$f":"'1. Ordersheet'!AR1007","v":0},{"$f":"IF('1. Ordersheet'!AE1007=\"\",\"\",'1. Ordersheet'!AE1007)","v":""}]
[{"$f":"IF('1. Ordersheet'!B1008=\"\",\"\",'1. Ordersheet'!B1008)","v":""},{"$f":"IF('1. Ordersheet'!I1008=\"\",\"\",'1. Ordersheet'!I1008)","v":""},{"$f":"IF('1. Ordersheet'!J1008=\"\",\"\",'1. Ordersheet'!J1008)","v":""},{"$f":"IF('1. Ordersheet'!K1008=\"\",\"\",'1. Ordersheet'!K1008)","v":""},{"$f":"IF('1. Ordersheet'!M1008=\"\",\"\",'1. Ordersheet'!M1008)","v":""},null,null,{"$f":"'1. Ordersheet'!AR1008","v":0},{"$f":"IF('1. Ordersheet'!AE1008=\"\",\"\",'1. Ordersheet'!AE1008)","v":""}]
[{"$f":"IF('1. Ordersheet'!B1009=\"\",\"\",'1. Ordersheet'!B1009)","v":""},{"$f":"IF('1. Ordersheet'!I1009=\"\",\"\",'1. Ordersheet'!I1009)","v":""},{"$f":"IF('1. Ordersheet'!J1009=\"\",\"\",'1. Ordersheet'!J1009)","v":""},{"$f":"IF('1. Ordersheet'!K1009=\"\",\"\",'1. Ordersheet'!K1009)","v":""},{"$f":"IF('1. Ordersheet'!M1009=\"\",\"\",'1. Ordersheet'!M1009)","v":""},null,null,{"$f":"'1. Ordersheet'!AR1009","v":0},{"$f":"IF('1. Ordersheet'!AE1009=\"\",\"\",'1. Ordersheet'!AE1009)","v":""}]
[{"$f":"IF('1. Ordersheet'!B1010=\"\",\"\",'1. Ordersheet'!B1010)","v":""},{"$f":"IF('1. Ordersheet'!I1010=\"\",\"\",'1. Ordersheet'!I1010)","v":""},{"$f":"IF('1. Ordersheet'!J1010=\"\",\"\",'1. Ordersheet'!J1010)","v":""},{"$f":"IF('1. Ordersheet'!K1010=\"\",\"\",'1. Ordersheet'!K1010)","v":""},{"$f":"IF('1. Ordersheet'!M1010=\"\",\"\",'1. Ordersheet'!M1010)","v":""},null,null,{"$f":"'1. Ordersheet'!AR1010","v":0},{"$f":"IF('1. Ordersheet'!AE1010=\"\",\"\",'1. Ordersheet'!AE1010)","v":""}]
[{"$f":"IF('1. Ordersheet'!B1011=\"\",\"\",'1. Ordersheet'!B1011)","v":""},{"$f":"IF('1. Ordersheet'!I1011=\"\",\"\",'1. Ordersheet'!I1011)","v":""},{"$f":"IF('1. Ordersheet'!J1011=\"\",\"\",'1. Ordersheet'!J1011)","v":""},{"$f":"IF('1. Ordersheet'!K1011=\"\",\"\",'1. Ordersheet'!K1011)","v":""},{"$f":"IF('1. Ordersheet'!M1011=\"\",\"\",'1. Ordersheet'!M1011)","v":""},null,null,{"$f":"'1. Ordersheet'!AR1011","v":0},{"$f":"IF('1. Ordersheet'!AE1011=\"\",\"\",'1. Ordersheet'!AE1011)","v":""}]
[{"$f":"IF('1. Ordersheet'!B1012=\"\",\"\",'1. Ordersheet'!B1012)","v":""},{"$f":"IF('1. Ordersheet'!I1012=\"\",\"\",'1. Ordersheet'!I1012)","v":""},{"$f":"IF('1. Ordersheet'!J1012=\"\",\"\",'1. Ordersheet'!J1012)","v":""},{"$f":"IF('1. Ordersheet'!K1012=\"\",\"\",'1. Ordersheet'!K1012)","v":""},{"$f":"IF('1. Ordersheet'!M1012=\"\",\"\",'1. Ordersheet'!M1012)","v":""},null,null,{"$f":"'1. Ordersheet'!AR1012","v":0},{"$f":"IF('1. Ordersheet'!AE1012=\"\",\"\",'1. Ordersheet'!AE1012)","v":""}]
[{"$f":"IF('1. Ordersheet'!B1013=\"\",\"\",'1. Ordersheet'!B1013)","v":""},{"$f":"IF('1. Ordersheet'!I1013=\"\",\"\",'1. Ordersheet'!I1013)","v":""},{"$f":"IF('1. Ordersheet'!J1013=\"\",\"\",'1. Ordersheet'!J1013)","v":""},{"$f":"IF('1. Ordersheet'!K1013=\"\",\"\",'1. Ordersheet'!K1013)","v":""},{"$f":"IF('1. Ordersheet'!M1013=\"\",\"\",'1. Ordersheet'!M1013)","v":""},null,null,{"$f":"'1. Ordersheet'!AR1013","v":0},{"$f":"IF('1. Ordersheet'!AE1013=\"\",\"\",'1. Ordersheet'!AE1013)","v":""}]
[{"$f":"IF('1. Ordersheet'!B1014=\"\",\"\",'1. Ordersheet'!B1014)","v":""},{"$f":"IF('1. Ordersheet'!I1014=\"\",\"\",'1. Ordersheet'!I1014)","v":""},{"$f":"IF('1. Ordersheet'!J1014=\"\",\"\",'1. Ordersheet'!J1014)","v":""},{"$f":"IF('1. Ordersheet'!K1014=\"\",\"\",'1. Ordersheet'!K1014)","v":""},{"$f":"IF('1. Ordersheet'!M1014=\"\",\"\",'1. Ordersheet'!M1014)","v":""},null,null,{"$f":"'1. Ordersheet'!AR1014","v":0},{"$f":"IF('1. Ordersheet'!AE1014=\"\",\"\",'1. Ordersheet'!AE1014)","v":""}]
[{"$f":"IF('1. Ordersheet'!B1015=\"\",\"\",'1. Ordersheet'!B1015)","v":""},{"$f":"IF('1. Ordersheet'!I1015=\"\",\"\",'1. Ordersheet'!I1015)","v":""},{"$f":"IF('1. Ordersheet'!J1015=\"\",\"\",'1. Ordersheet'!J1015)","v":""},{"$f":"IF('1. Ordersheet'!K1015=\"\",\"\",'1. Ordersheet'!K1015)","v":""},{"$f":"IF('1. Ordersheet'!M1015=\"\",\"\",'1. Ordersheet'!M1015)","v":""},null,null,{"$f":"'1. Ordersheet'!AR1015","v":0},{"$f":"IF('1. Ordersheet'!AE1015=\"\",\"\",'1. Ordersheet'!AE1015)","v":""}]
[{"$f":"IF('1. Ordersheet'!B1016=\"\",\"\",'1. Ordersheet'!B1016)","v":""},{"$f":"IF('1. Ordersheet'!I1016=\"\",\"\",'1. Ordersheet'!I1016)","v":""},{"$f":"IF('1. Ordersheet'!J1016=\"\",\"\",'1. Ordersheet'!J1016)","v":""},{"$f":"IF('1. Ordersheet'!K1016=\"\",\"\",'1. Ordersheet'!K1016)","v":""},{"$f":"IF('1. Ordersheet'!M1016=\"\",\"\",'1. Ordersheet'!M1016)","v":""},null,null,{"$f":"'1. Ordersheet'!AR1016","v":0},{"$f":"IF('1. Ordersheet'!AE1016=\"\",\"\",'1. Ordersheet'!AE1016)","v":""}]
[{"$f":"IF('1. Ordersheet'!B1017=\"\",\"\",'1. Ordersheet'!B1017)","v":""},{"$f":"IF('1. Ordersheet'!I1017=\"\",\"\",'1. Ordersheet'!I1017)","v":""},{"$f":"IF('1. Ordersheet'!J1017=\"\",\"\",'1. Ordersheet'!J1017)","v":""},{"$f":"IF('1. Ordersheet'!K1017=\"\",\"\",'1. Ordersheet'!K1017)","v":""},{"$f":"IF('1. Ordersheet'!M1017=\"\",\"\",'1. Ordersheet'!M1017)","v":""},null,null,{"$f":"'1. Ordersheet'!AR1017","v":0},{"$f":"IF('1. Ordersheet'!AE1017=\"\",\"\",'1. Ordersheet'!AE1017)","v":""}]
[{"$f":"IF('1. Ordersheet'!B1018=\"\",\"\",'1. Ordersheet'!B1018)","v":""},{"$f":"IF('1. Ordersheet'!I1018=\"\",\"\",'1. Ordersheet'!I1018)","v":""},{"$f":"IF('1. Ordersheet'!J1018=\"\",\"\",'1. Ordersheet'!J1018)","v":""},{"$f":"IF('1. Ordersheet'!K1018=\"\",\"\",'1. Ordersheet'!K1018)","v":""},{"$f":"IF('1. Ordersheet'!M1018=\"\",\"\",'1. Ordersheet'!M1018)","v":""},null,null,{"$f":"'1. Ordersheet'!AR1018","v":0},{"$f":"IF('1. Ordersheet'!AE1018=\"\",\"\",'1. Ordersheet'!AE1018)","v":""}]
[{"$f":"IF('1. Ordersheet'!B1019=\"\",\"\",'1. Ordersheet'!B1019)","v":""},{"$f":"IF('1. Ordersheet'!I1019=\"\",\"\",'1. Ordersheet'!I1019)","v":""},{"$f":"IF('1. Ordersheet'!J1019=\"\",\"\",'1. Ordersheet'!J1019)","v":""},{"$f":"IF('1. Ordersheet'!K1019=\"\",\"\",'1. Ordersheet'!K1019)","v":""},{"$f":"IF('1. Ordersheet'!M1019=\"\",\"\",'1. Ordersheet'!M1019)","v":""},null,null,{"$f":"'1. Ordersheet'!AR1019","v":0},{"$f":"IF('1. Ordersheet'!AE1019=\"\",\"\",'1. Ordersheet'!AE1019)","v":""}]
[{"$f":"IF('1. Ordersheet'!B1020=\"\",\"\",'1. Ordersheet'!B1020)","v":""},{"$f":"IF('1. Ordersheet'!I1020=\"\",\"\",'1. Ordersheet'!I1020)","v":""},{"$f":"IF('1. Ordersheet'!J1020=\"\",\"\",'1. Ordersheet'!J1020)","v":""},{"$f":"IF('1. Ordersheet'!K1020=\"\",\"\",'1. Ordersheet'!K1020)","v":""},{"$f":"IF('1. Ordersheet'!M1020=\"\",\"\",'1. Ordersheet'!M1020)","v":""},null,null,{"$f":"'1. Ordersheet'!AR1020","v":0},{"$f":"IF('1. Ordersheet'!AE1020=\"\",\"\",'1. Ordersheet'!AE1020)","v":""}]
[{"$f":"IF('1. Ordersheet'!B1021=\"\",\"\",'1. Ordersheet'!B1021)","v":""},{"$f":"IF('1. Ordersheet'!I1021=\"\",\"\",'1. Ordersheet'!I1021)","v":""},{"$f":"IF('1. Ordersheet'!J1021=\"\",\"\",'1. Ordersheet'!J1021)","v":""},{"$f":"IF('1. Ordersheet'!K1021=\"\",\"\",'1. Ordersheet'!K1021)","v":""},{"$f":"IF('1. Ordersheet'!M1021=\"\",\"\",'1. Ordersheet'!M1021)","v":""},null,null,{"$f":"'1. Ordersheet'!AR1021","v":0},{"$f":"IF('1. Ordersheet'!AE1021=\"\",\"\",'1. Ordersheet'!AE1021)","v":""}]
[{"$f":"IF('1. Ordersheet'!B1022=\"\",\"\",'1. Ordersheet'!B1022)","v":""},{"$f":"IF('1. Ordersheet'!I1022=\"\",\"\",'1. Ordersheet'!I1022)","v":""},{"$f":"IF('1. Ordersheet'!J1022=\"\",\"\",'1. Ordersheet'!J1022)","v":""},{"$f":"IF('1. Ordersheet'!K1022=\"\",\"\",'1. Ordersheet'!K1022)","v":""},{"$f":"IF('1. Ordersheet'!M1022=\"\",\"\",'1. Ordersheet'!M1022)","v":""},null,null,{"$f":"'1. Ordersheet'!AR1022","v":0},{"$f":"IF('1. Ordersheet'!AE1022=\"\",\"\",'1. Ordersheet'!AE1022)","v":""}]
[{"$f":"IF('1. Ordersheet'!B1023=\"\",\"\",'1. Ordersheet'!B1023)","v":""},{"$f":"IF('1. Ordersheet'!I1023=\"\",\"\",'1. Ordersheet'!I1023)","v":""},{"$f":"IF('1. Ordersheet'!J1023=\"\",\"\",'1. Ordersheet'!J1023)","v":""},{"$f":"IF('1. Ordersheet'!K1023=\"\",\"\",'1. Ordersheet'!K1023)","v":""},{"$f":"IF('1. Ordersheet'!M1023=\"\",\"\",'1. Ordersheet'!M1023)","v":""},null,null,{"$f":"'1. Ordersheet'!AR1023","v":0},{"$f":"IF('1. Ordersheet'!AE1023=\"\",\"\",'1. Ordersheet'!AE1023)","v":""}]
[{"$f":"IF('1. Ordersheet'!B1024=\"\",\"\",'1. Ordersheet'!B1024)","v":""},{"$f":"IF('1. Ordersheet'!I1024=\"\",\"\",'1. Ordersheet'!I1024)","v":""},{"$f":"IF('1. Ordersheet'!J1024=\"\",\"\",'1. Ordersheet'!J1024)","v":""},{"$f":"IF('1. Ordersheet'!K1024=\"\",\"\",'1. Ordersheet'!K1024)","v":""},{"$f":"IF('1. Ordersheet'!M1024=\"\",\"\",'1. Ordersheet'!M1024)","v":""},null,null,{"$f":"'1. Ordersheet'!AR1024","v":0},{"$f":"IF('1. Ordersheet'!AE1024=\"\",\"\",'1. Ordersheet'!AE1024)","v":""}]
[{"$f":"IF('1. Ordersheet'!B1025=\"\",\"\",'1. Ordersheet'!B1025)","v":""},{"$f":"IF('1. Ordersheet'!I1025=\"\",\"\",'1. Ordersheet'!I1025)","v":""},{"$f":"IF('1. Ordersheet'!J1025=\"\",\"\",'1. Ordersheet'!J1025)","v":""},{"$f":"IF('1. Ordersheet'!K1025=\"\",\"\",'1. Ordersheet'!K1025)","v":""},{"$f":"IF('1. Ordersheet'!M1025=\"\",\"\",'1. Ordersheet'!M1025)","v":""},null,null,{"$f":"'1. Ordersheet'!AR1025","v":0},{"$f":"IF('1. Ordersheet'!AE1025=\"\",\"\",'1. Ordersheet'!AE1025)","v":""}]
[{"$f":"IF('1. Ordersheet'!B1026=\"\",\"\",'1. Ordersheet'!B1026)","v":""},{"$f":"IF('1. Ordersheet'!I1026=\"\",\"\",'1. Ordersheet'!I1026)","v":""},{"$f":"IF('1. Ordersheet'!J1026=\"\",\"\",'1. Ordersheet'!J1026)","v":""},{"$f":"IF('1. Ordersheet'!K1026=\"\",\"\",'1. Ordersheet'!K1026)","v":""},{"$f":"IF('1. Ordersheet'!M1026=\"\",\"\",'1. Ordersheet'!M1026)","v":""},null,null,{"$f":"'1. Ordersheet'!AR1026","v":0},{"$f":"IF('1. Ordersheet'!AE1026=\"\",\"\",'1. Ordersheet'!AE1026)","v":""}]
[{"$f":"IF('1. Ordersheet'!B1027=\"\",\"\",'1. Ordersheet'!B1027)","v":""},{"$f":"IF('1. Ordersheet'!I1027=\"\",\"\",'1. Ordersheet'!I1027)","v":""},{"$f":"IF('1. Ordersheet'!J1027=\"\",\"\",'1. Ordersheet'!J1027)","v":""},{"$f":"IF('1. Ordersheet'!K1027=\"\",\"\",'1. Ordersheet'!K1027)","v":""},{"$f":"IF('1. Ordersheet'!M1027=\"\",\"\",'1. Ordersheet'!M1027)","v":""},null,null,{"$f":"'1. Ordersheet'!AR1027","v":0},{"$f":"IF('1. Ordersheet'!AE1027=\"\",\"\",'1. Ordersheet'!AE1027)","v":""}]
[{"$f":"IF('1. Ordersheet'!B1028=\"\",\"\",'1. Ordersheet'!B1028)","v":""},{"$f":"IF('1. Ordersheet'!I1028=\"\",\"\",'1. Ordersheet'!I1028)","v":""},{"$f":"IF('1. Ordersheet'!J1028=\"\",\"\",'1. Ordersheet'!J1028)","v":""},{"$f":"IF('1. Ordersheet'!K1028=\"\",\"\",'1. Ordersheet'!K1028)","v":""},{"$f":"IF('1. Ordersheet'!M1028=\"\",\"\",'1. Ordersheet'!M1028)","v":""},null,null,{"$f":"'1. Ordersheet'!AR1028","v":0},{"$f":"IF('1. Ordersheet'!AE1028=\"\",\"\",'1. Ordersheet'!AE1028)","v":""}]
[{"$f":"IF('1. Ordersheet'!B1029=\"\",\"\",'1. Ordersheet'!B1029)","v":""},{"$f":"IF('1. Ordersheet'!I1029=\"\",\"\",'1. Ordersheet'!I1029)","v":""},{"$f":"IF('1. Ordersheet'!J1029=\"\",\"\",'1. Ordersheet'!J1029)","v":""},{"$f":"IF('1. Ordersheet'!K1029=\"\",\"\",'1. Ordersheet'!K1029)","v":""},{"$f":"IF('1. Ordersheet'!M1029=\"\",\"\",'1. Ordersheet'!M1029)","v":""},null,null,{"$f":"'1. Ordersheet'!AR1029","v":0},{"$f":"IF('1. Ordersheet'!AE1029=\"\",\"\",'1. Ordersheet'!AE1029)","v":""}]
[{"$f":"IF('1. Ordersheet'!B1030=\"\",\"\",'1. Ordersheet'!B1030)","v":""},{"$f":"IF('1. Ordersheet'!I1030=\"\",\"\",'1. Ordersheet'!I1030)","v":""},{"$f":"IF('1. Ordersheet'!J1030=\"\",\"\",'1. Ordersheet'!J1030)","v":""},{"$f":"IF('1. Ordersheet'!K1030=\"\",\"\",'1. Ordersheet'!K1030)","v":""},{"$f":"IF('1. Ordersheet'!M1030=\"\",\"\",'1. Ordersheet'!M1030)","v":""},null,null,{"$f":"'1. Ordersheet'!AR1030","v":0},{"$f":"IF('1. Ordersheet'!AE1030=\"\",\"\",'1. Ordersheet'!AE1030)","v":""}]
[{"$f":"IF('1. Ordersheet'!B1031=\"\",\"\",'1. Ordersheet'!B1031)","v":""},{"$f":"IF('1. Ordersheet'!I1031=\"\",\"\",'1. Ordersheet'!I1031)","v":""},{"$f":"IF('1. Ordersheet'!J1031=\"\",\"\",'1. Ordersheet'!J1031)","v":""},{"$f":"IF('1. Ordersheet'!K1031=\"\",\"\",'1. Ordersheet'!K1031)","v":""},{"$f":"IF('1. Ordersheet'!M1031=\"\",\"\",'1. Ordersheet'!M1031)","v":""},null,null,{"$f":"'1. Ordersheet'!AR1031","v":0},{"$f":"IF('1. Ordersheet'!AE1031=\"\",\"\",'1. Ordersheet'!AE1031)","v":""}]
[{"$f":"IF('1. Ordersheet'!B1032=\"\",\"\",'1. Ordersheet'!B1032)","v":""},{"$f":"IF('1. Ordersheet'!I1032=\"\",\"\",'1. Ordersheet'!I1032)","v":""},{"$f":"IF('1. Ordersheet'!J1032=\"\",\"\",'1. Ordersheet'!J1032)","v":""},{"$f":"IF('1. Ordersheet'!K1032=\"\",\"\",'1. Ordersheet'!K1032)","v":""},{"$f":"IF('1. Ordersheet'!M1032=\"\",\"\",'1. Ordersheet'!M1032)","v":""},null,null,{"$f":"'1. Ordersheet'!AR1032","v":0},{"$f":"IF('1. Ordersheet'!AE1032=\"\",\"\",'1. Ordersheet'!AE1032)","v":""}]
[{"$f":"IF('1. Ordersheet'!B1033=\"\",\"\",'1. Ordersheet'!B1033)","v":""},{"$f":"IF('1. Ordersheet'!I1033=\"\",\"\",'1. Ordersheet'!I1033)","v":""},{"$f":"IF('1. Ordersheet'!J1033=\"\",\"\",'1. Ordersheet'!J1033)","v":""},{"$f":"IF('1. Ordersheet'!K1033=\"\",\"\",'1. Ordersheet'!K1033)","v":""},{"$f":"IF('1. Ordersheet'!M1033=\"\",\"\",'1. Ordersheet'!M1033)","v":""},null,null,{"$f":"'1. Ordersheet'!AR1033","v":0},{"$f":"IF('1. Ordersheet'!AE1033=\"\",\"\",'1. Ordersheet'!AE1033)","v":""}]
[{"$f":"IF('1. Ordersheet'!B1034=\"\",\"\",'1. Ordersheet'!B1034)","v":""},{"$f":"IF('1. Ordersheet'!I1034=\"\",\"\",'1. Ordersheet'!I1034)","v":""},{"$f":"IF('1. Ordersheet'!J1034=\"\",\"\",'1. Ordersheet'!J1034)","v":""},{"$f":"IF('1. Ordersheet'!K1034=\"\",\"\",'1. Ordersheet'!K1034)","v":""},{"$f":"IF('1. Ordersheet'!M1034=\"\",\"\",'1. Ordersheet'!M1034)","v":""},null,null,{"$f":"'1. Ordersheet'!AR1034","v":0},{"$f":"IF('1. Ordersheet'!AE1034=\"\",\"\",'1. Ordersheet'!AE1034)","v":""}]
[{"$f":"IF('1. Ordersheet'!B1035=\"\",\"\",'1. Ordersheet'!B1035)","v":""},{"$f":"IF('1. Ordersheet'!I1035=\"\",\"\",'1. Ordersheet'!I1035)","v":""},{"$f":"IF('1. Ordersheet'!J1035=\"\",\"\",'1. Ordersheet'!J1035)","v":""},{"$f":"IF('1. Ordersheet'!K1035=\"\",\"\",'1. Ordersheet'!K1035)","v":""},{"$f":"IF('1. Ordersheet'!M1035=\"\",\"\",'1. Ordersheet'!M1035)","v":""},null,null,{"$f":"'1. Ordersheet'!AR1035","v":0},{"$f":"IF('1. Ordersheet'!AE1035=\"\",\"\",'1. Ordersheet'!AE1035)","v":""}]
[{"$f":"IF('1. Ordersheet'!B1036=\"\",\"\",'1. Ordersheet'!B1036)","v":""},{"$f":"IF('1. Ordersheet'!I1036=\"\",\"\",'1. Ordersheet'!I1036)","v":""},{"$f":"IF('1. Ordersheet'!J1036=\"\",\"\",'1. Ordersheet'!J1036)","v":""},{"$f":"IF('1. Ordersheet'!K1036=\"\",\"\",'1. Ordersheet'!K1036)","v":""},{"$f":"IF('1. Ordersheet'!M1036=\"\",\"\",'1. Ordersheet'!M1036)","v":""},null,null,{"$f":"'1. Ordersheet'!AR1036","v":0},{"$f":"IF('1. Ordersheet'!AE1036=\"\",\"\",'1. Ordersheet'!AE1036)","v":""}]
[{"$f":"IF('1. Ordersheet'!B1037=\"\",\"\",'1. Ordersheet'!B1037)","v":""},{"$f":"IF('1. Ordersheet'!I1037=\"\",\"\",'1. Ordersheet'!I1037)","v":""},{"$f":"IF('1. Ordersheet'!J1037=\"\",\"\",'1. Ordersheet'!J1037)","v":""},{"$f":"IF('1. Ordersheet'!K1037=\"\",\"\",'1. Ordersheet'!K1037)","v":""},{"$f":"IF('1. Ordersheet'!M1037=\"\",\"\",'1. Ordersheet'!M1037)","v":""},null,null,{"$f":"'1. Ordersheet'!AR1037","v":0},{"$f":"IF('1. Ordersheet'!AE1037=\"\",\"\",'1. Ordersheet'!AE1037)","v":""}]
[{"$f":"IF('1. Ordersheet'!B1038=\"\",\"\",'1. Ordersheet'!B1038)","v":""},{"$f":"IF('1. Ordersheet'!I1038=\"\",\"\",'1. Ordersheet'!I1038)","v":""},{"$f":"IF('1. Ordersheet'!J1038=\"\",\"\",'1. Ordersheet'!J1038)","v":""},{"$f":"IF('1. Ordersheet'!K1038=\"\",\"\",'1. Ordersheet'!K1038)","v":""},{"$f":"IF('1. Ordersheet'!M1038=\"\",\"\",'1. Ordersheet'!M1038)","v":""},null,null,{"$f":"'1. Ordersheet'!AR1038","v":0},{"$f":"IF('1. Ordersheet'!AE1038=\"\",\"\",'1. Ordersheet'!AE1038)","v":""}]
[{"$f":"IF('1. Ordersheet'!B1039=\"\",\"\",'1. Ordersheet'!B1039)","v":""},{"$f":"IF('1. Ordersheet'!I1039=\"\",\"\",'1. Ordersheet'!I1039)","v":""},{"$f":"IF('1. Ordersheet'!J1039=\"\",\"\",'1. Ordersheet'!J1039)","v":""},{"$f":"IF('1. Ordersheet'!K1039=\"\",\"\",'1. Ordersheet'!K1039)","v":""},{"$f":"IF('1. Ordersheet'!M1039=\"\",\"\",'1. Ordersheet'!M1039)","v":""},null,null,{"$f":"'1. Ordersheet'!AR1039","v":0},{"$f":"IF('1. Ordersheet'!AE1039=\"\",\"\",'1. Ordersheet'!AE1039)","v":""}]
[{"$f":"IF('1. Ordersheet'!B1040=\"\",\"\",'1. Ordersheet'!B1040)","v":""},{"$f":"IF('1. Ordersheet'!I1040=\"\",\"\",'1. Ordersheet'!I1040)","v":""},{"$f":"IF('1. Ordersheet'!J1040=\"\",\"\",'1. Ordersheet'!J1040)","v":""},{"$f":"IF('1. Ordersheet'!K1040=\"\",\"\",'1. Ordersheet'!K1040)","v":""},{"$f":"IF('1. Ordersheet'!M1040=\"\",\"\",'1. Ordersheet'!M1040)","v":""},null,null,{"$f":"'1. Ordersheet'!AR1040","v":0},{"$f":"IF('1. Ordersheet'!AE1040=\"\",\"\",'1. Ordersheet'!AE1040)","v":""}]
[{"$f":"IF('1. Ordersheet'!B1041=\"\",\"\",'1. Ordersheet'!B1041)","v":""},{"$f":"IF('1. Ordersheet'!I1041=\"\",\"\",'1. Ordersheet'!I1041)","v":""},{"$f":"IF('1. Ordersheet'!J1041=\"\",\"\",'1. Ordersheet'!J1041)","v":""},{"$f":"IF('1. Ordersheet'!K1041=\"\",\"\",'1. Ordersheet'!K1041)","v":""},{"$f":"IF('1. Ordersheet'!M1041=\"\",\"\",'1. Ordersheet'!M1041)","v":""},null,null,{"$f":"'1. Ordersheet'!AR1041","v":0},{"$f":"IF('1. Ordersheet'!AE1041=\"\",\"\",'1. Ordersheet'!AE1041)","v":""}]
[{"$f":"IF('1. Ordersheet'!B1042=\"\",\"\",'1. Ordersheet'!B1042)","v":""},{"$f":"IF('1. Ordersheet'!I1042=\"\",\"\",'1. Ordersheet'!I1042)","v":""},{"$f":"IF('1. Ordersheet'!J1042=\"\",\"\",'1. Ordersheet'!J1042)","v":""},{"$f":"IF('1. Ordersheet'!K1042=\"\",\"\",'1. Ordersheet'!K1042)","v":""},{"$f":"IF('1. Ordersheet'!M1042=\"\",\"\",'1. Ordersheet'!M1042)","v":""},null,null,{"$f":"'1. Ordersheet'!AR1042","v":0},{"$f":"IF('1. Ordersheet'!AE1042=\"\",\"\",'1. Ordersheet'!AE1042)","v":""}]
[{"$f":"IF('1. Ordersheet'!B1043=\"\",\"\",'1. Ordersheet'!B1043)","v":""},{"$f":"IF('1. Ordersheet'!I1043=\"\",\"\",'1. Ordersheet'!I1043)","v":""},{"$f":"IF('1. Ordersheet'!J1043=\"\",\"\",'1. Ordersheet'!J1043)","v":""},{"$f":"IF('1. Ordersheet'!K1043=\"\",\"\",'1. Ordersheet'!K1043)","v":""},{"$f":"IF('1. Ordersheet'!M1043=\"\",\"\",'1. Ordersheet'!M1043)","v":""},null,null,{"$f":"'1. Ordersheet'!AR1043","v":0},{"$f":"IF('1. Ordersheet'!AE1043=\"\",\"\",'1. Ordersheet'!AE1043)","v":""}]
[{"$f":"IF('1. Ordersheet'!B1044=\"\",\"\",'1. Ordersheet'!B1044)","v":""},{"$f":"IF('1. Ordersheet'!I1044=\"\",\"\",'1. Ordersheet'!I1044)","v":""},{"$f":"IF('1. Ordersheet'!J1044=\"\",\"\",'1. Ordersheet'!J1044)","v":""},{"$f":"IF('1. Ordersheet'!K1044=\"\",\"\",'1. Ordersheet'!K1044)","v":""},{"$f":"IF('1. Ordersheet'!M1044=\"\",\"\",'1. Ordersheet'!M1044)","v":""},null,null,{"$f":"'1. Ordersheet'!AR1044","v":0},{"$f":"IF('1. Ordersheet'!AE1044=\"\",\"\",'1. Ordersheet'!AE1044)","v":""}]
[{"$f":"IF('1. Ordersheet'!B1045=\"\",\"\",'1. Ordersheet'!B1045)","v":""},{"$f":"IF('1. Ordersheet'!I1045=\"\",\"\",'1. Ordersheet'!I1045)","v":""},{"$f":"IF('1. Ordersheet'!J1045=\"\",\"\",'1. Ordersheet'!J1045)","v":""},{"$f":"IF('1. Ordersheet'!K1045=\"\",\"\",'1. Ordersheet'!K1045)","v":""},{"$f":"IF('1. Ordersheet'!M1045=\"\",\"\",'1. Ordersheet'!M1045)","v":""},null,null,{"$f":"'1. Ordersheet'!AR1045","v":0},{"$f":"IF('1. Ordersheet'!AE1045=\"\",\"\",'1. Ordersheet'!AE1045)","v":""}]
[{"$f":"IF('1. Ordersheet'!B1046=\"\",\"\",'1. Ordersheet'!B1046)","v":""},{"$f":"IF('1. Ordersheet'!I1046=\"\",\"\",'1. Ordersheet'!I1046)","v":""},{"$f":"IF('1. Ordersheet'!J1046=\"\",\"\",'1. Ordersheet'!J1046)","v":""},{"$f":"IF('1. Ordersheet'!K1046=\"\",\"\",'1. Ordersheet'!K1046)","v":""},{"$f":"IF('1. Ordersheet'!M1046=\"\",\"\",'1. Ordersheet'!M1046)","v":""},null,null,{"$f":"'1. Ordersheet'!AR1046","v":0},{"$f":"IF('1. Ordersheet'!AE1046=\"\",\"\",'1. Ordersheet'!AE1046)","v":""}]
[{"$f":"IF('1. Ordersheet'!B1047=\"\",\"\",'1. Ordersheet'!B1047)","v":""},{"$f":"IF('1. Ordersheet'!I1047=\"\",\"\",'1. Ordersheet'!I1047)","v":""},{"$f":"IF('1. Ordersheet'!J1047=\"\",\"\",'1. Ordersheet'!J1047)","v":""},{"$f":"IF('1. Ordersheet'!K1047=\"\",\"\",'1. Ordersheet'!K1047)","v":""},{"$f":"IF('1. Ordersheet'!M1047=\"\",\"\",'1. Ordersheet'!M1047)","v":""},null,null,{"$f":"'1. Ordersheet'!AR1047","v":0},{"$f":"IF('1. Ordersheet'!AE1047=\"\",\"\",'1. Ordersheet'!AE1047)","v":""}]
[{"$f":"IF('1. Ordersheet'!B1048=\"\",\"\",'1. Ordersheet'!B1048)","v":""},{"$f":"IF('1. Ordersheet'!I1048=\"\",\"\",'1. Ordersheet'!I1048)","v":""},{"$f":"IF('1. Ordersheet'!J1048=\"\",\"\",'1. Ordersheet'!J1048)","v":""},{"$f":"IF('1. Ordersheet'!K1048=\"\",\"\",'1. Ordersheet'!K1048)","v":""},{"$f":"IF('1. Ordersheet'!M1048=\"\",\"\",'1. Ordersheet'!M1048)","v":""},null,null,{"$f":"'1. Ordersheet'!AR1048","v":0},{"$f":"IF('1. Ordersheet'!AE1048=\"\",\"\",'1. Ordersheet'!AE1048)","v":""}]
[{"$f":"IF('1. Ordersheet'!B1049=\"\",\"\",'1. Ordersheet'!B1049)","v":""},{"$f":"IF('1. Ordersheet'!I1049=\"\",\"\",'1. Ordersheet'!I1049)","v":""},{"$f":"IF('1. Ordersheet'!J1049=\"\",\"\",'1. Ordersheet'!J1049)","v":""},{"$f":"IF('1. Ordersheet'!K1049=\"\",\"\",'1. Ordersheet'!K1049)","v":""},{"$f":"IF('1. Ordersheet'!M1049=\"\",\"\",'1. Ordersheet'!M1049)","v":""},null,null,{"$f":"'1. Ordersheet'!AR1049","v":0},{"$f":"IF('1. Ordersheet'!AE1049=\"\",\"\",'1. Ordersheet'!AE1049)","v":""}]
[{"$f":"IF('1. Ordersheet'!B1050=\"\",\"\",'1. Ordersheet'!B1050)","v":""},{"$f":"IF('1. Ordersheet'!I1050=\"\",\"\",'1. Ordersheet'!I1050)","v":""},{"$f":"IF('1. Ordersheet'!J1050=\"\",\"\",'1. Ordersheet'!J1050)","v":""},{"$f":"IF('1. Ordersheet'!K1050=\"\",\"\",'1. Ordersheet'!K1050)","v":""},{"$f":"IF('1. Ordersheet'!M1050=\"\",\"\",'1. Ordersheet'!M1050)","v":""},null,null,{"$f":"'1. Ordersheet'!AR1050","v":0},{"$f":"IF('1. Ordersheet'!AE1050=\"\",\"\",'1. Ordersheet'!AE1050)","v":""}]
[{"$f":"IF('1. Ordersheet'!B1051=\"\",\"\",'1. Ordersheet'!B1051)","v":""},{"$f":"IF('1. Ordersheet'!I1051=\"\",\"\",'1. Ordersheet'!I1051)","v":""},{"$f":"IF('1. Ordersheet'!J1051=\"\",\"\",'1. Ordersheet'!J1051)","v":""},{"$f":"IF('1. Ordersheet'!K1051=\"\",\"\",'1. Ordersheet'!K1051)","v":""},{"$f":"IF('1. Ordersheet'!M1051=\"\",\"\",'1. Ordersheet'!M1051)","v":""},null,null,{"$f":"'1. Ordersheet'!AR1051","v":0},{"$f":"IF('1. Ordersheet'!AE1051=\"\",\"\",'1. Ordersheet'!AE1051)","v":""}]
[{"$f":"IF('1. Ordersheet'!B1052=\"\",\"\",'1. Ordersheet'!B1052)","v":""},{"$f":"IF('1. Ordersheet'!I1052=\"\",\"\",'1. Ordersheet'!I1052)","v":""},{"$f":"IF('1. Ordersheet'!J1052=\"\",\"\",'1. Ordersheet'!J1052)","v":""},{"$f":"IF('1. Ordersheet'!K1052=\"\",\"\",'1. Ordersheet'!K1052)","v":""},{"$f":"IF('1. Ordersheet'!M1052=\"\",\"\",'1. Ordersheet'!M1052)","v":""},null,null,{"$f":"'1. Ordersheet'!AR1052","v":0},{"$f":"IF('1. Ordersheet'!AE1052=\"\",\"\",'1. Ordersheet'!AE1052)","v":""}]
[{"$f":"IF('1. Ordersheet'!B1053=\"\",\"\",'1. Ordersheet'!B1053)","v":""},{"$f":"IF('1. Ordersheet'!I1053=\"\",\"\",'1. Ordersheet'!I1053)","v":""},{"$f":"IF('1. Ordersheet'!J1053=\"\",\"\",'1. Ordersheet'!J1053)","v":""},{"$f":"IF('1. Ordersheet'!K1053=\"\",\"\",'1. Ordersheet'!K1053)","v":""},{"$f":"IF('1. Ordersheet'!M1053=\"\",\"\",'1. Ordersheet'!M1053)","v":""},null,null,{"$f":"'1. Ordersheet'!AR1053","v":0},{"$f":"IF('1. Ordersheet'!AE1053=\"\",\"\",'1. Ordersheet'!AE1053)","v":""}]
[{"$f":"IF('1. Ordersheet'!B1054=\"\",\"\",'1. Ordersheet'!B1054)","v":""},{"$f":"IF('1. Ordersheet'!I1054=\"\",\"\",'1. Ordersheet'!I1054)","v":""},{"$f":"IF('1. Ordersheet'!J1054=\"\",\"\",'1. Ordersheet'!J1054)","v":""},{"$f":"IF('1. Ordersheet'!K1054=\"\",\"\",'1. Ordersheet'!K1054)","v":""},{"$f":"IF('1. Ordersheet'!M1054=\"\",\"\",'1. Ordersheet'!M1054)","v":""},null,null,{"$f":"'1. Ordersheet'!AR1054","v":0},{"$f":"IF('1. Ordersheet'!AE1054=\"\",\"\",'1. Ordersheet'!AE1054)","v":""}]
[{"$f":"IF('1. Ordersheet'!B1055=\"\",\"\",'1. Ordersheet'!B1055)","v":""},{"$f":"IF('1. Ordersheet'!I1055=\"\",\"\",'1. Ordersheet'!I1055)","v":""},{"$f":"IF('1. Ordersheet'!J1055=\"\",\"\",'1. Ordersheet'!J1055)","v":""},{"$f":"IF('1. Ordersheet'!K1055=\"\",\"\",'1. Ordersheet'!K1055)","v":""},{"$f":"IF('1. Ordersheet'!M1055=\"\",\"\",'1. Ordersheet'!M1055)","v":""},null,null,{"$f":"'1. Ordersheet'!AR1055","v":0},{"$f":"IF('1. Ordersheet'!AE1055=\"\",\"\",'1. Ordersheet'!AE1055)","v":""}]
[{"$f":"IF('1. Ordersheet'!B1056=\"\",\"\",'1. Ordersheet'!B1056)","v":""},{"$f":"IF('1. Ordersheet'!I1056=\"\",\"\",'1. Ordersheet'!I1056)","v":""},{"$f":"IF('1. Ordersheet'!J1056=\"\",\"\",'1. Ordersheet'!J1056)","v":""},{"$f":"IF('1. Ordersheet'!K1056=\"\",\"\",'1. Ordersheet'!K1056)","v":""},{"$f":"IF('1. Ordersheet'!M1056=\"\",\"\",'1. Ordersheet'!M1056)","v":""},null,null,{"$f":"'1. Ordersheet'!AR1056","v":0},{"$f":"IF('1. Ordersheet'!AE1056=\"\",\"\",'1. Ordersheet'!AE1056)","v":""}]
[{"$f":"IF('1. Ordersheet'!B1057=\"\",\"\",'1. Ordersheet'!B1057)","v":""},{"$f":"IF('1. Ordersheet'!I1057=\"\",\"\",'1. Ordersheet'!I1057)","v":""},{"$f":"IF('1. Ordersheet'!J1057=\"\",\"\",'1. Ordersheet'!J1057)","v":""},{"$f":"IF('1. Ordersheet'!K1057=\"\",\"\",'1. Ordersheet'!K1057)","v":""},{"$f":"IF('1. Ordersheet'!M1057=\"\",\"\",'1. Ordersheet'!M1057)","v":""},null,null,{"$f":"'1. Ordersheet'!AR1057","v":0},{"$f":"IF('1. Ordersheet'!AE1057=\"\",\"\",'1. Ordersheet'!AE1057)","v":""}]
[{"$f":"IF('1. Ordersheet'!B1058=\"\",\"\",'1. Ordersheet'!B1058)","v":""},{"$f":"IF('1. Ordersheet'!I1058=\"\",\"\",'1. Ordersheet'!I1058)","v":""},{"$f":"IF('1. Ordersheet'!J1058=\"\",\"\",'1. Ordersheet'!J1058)","v":""},{"$f":"IF('1. Ordersheet'!K1058=\"\",\"\",'1. Ordersheet'!K1058)","v":""},{"$f":"IF('1. Ordersheet'!M1058=\"\",\"\",'1. Ordersheet'!M1058)","v":""},null,null,{"$f":"'1. Ordersheet'!AR1058","v":0},{"$f":"IF('1. Ordersheet'!AE1058=\"\",\"\",'1. Ordersheet'!AE1058)","v":""}]
[{"$f":"IF('1. Ordersheet'!B1059=\"\",\"\",'1. Ordersheet'!B1059)","v":""},{"$f":"IF('1. Ordersheet'!I1059=\"\",\"\",'1. Ordersheet'!I1059)","v":""},{"$f":"IF('1. Ordersheet'!J1059=\"\",\"\",'1. Ordersheet'!J1059)","v":""},{"$f":"IF('1. Ordersheet'!K1059=\"\",\"\",'1. Ordersheet'!K1059)","v":""},{"$f":"IF('1. Ordersheet'!M1059=\"\",\"\",'1. Ordersheet'!M1059)","v":""},null,null,{"$f":"'1. Ordersheet'!AR1059","v":0},{"$f":"IF('1. Ordersheet'!AE1059=\"\",\"\",'1. Ordersheet'!AE1059)","v":""}]
[{"$f":"IF('1. Ordersheet'!B1060=\"\",\"\",'1. Ordersheet'!B1060)","v":""},{"$f":"IF('1. Ordersheet'!I1060=\"\",\"\",'1. Ordersheet'!I1060)","v":""},{"$f":"IF('1. Ordersheet'!J1060=\"\",\"\",'1. Ordersheet'!J1060)","v":""},{"$f":"IF('1. Ordersheet'!K1060=\"\",\"\",'1. Ordersheet'!K1060)","v":""},{"$f":"IF('1. Ordersheet'!M1060=\"\",\"\",'1. Ordersheet'!M1060)","v":""},null,null,{"$f":"'1. Ordersheet'!AR1060","v":0},{"$f":"IF('1. Ordersheet'!AE1060=\"\",\"\",'1. Ordersheet'!AE1060)","v":""}]
[{"$f":"IF('1. Ordersheet'!B1061=\"\",\"\",'1. Ordersheet'!B1061)","v":""},{"$f":"IF('1. Ordersheet'!I1061=\"\",\"\",'1. Ordersheet'!I1061)","v":""},{"$f":"IF('1. Ordersheet'!J1061=\"\",\"\",'1. Ordersheet'!J1061)","v":""},{"$f":"IF('1. Ordersheet'!K1061=\"\",\"\",'1. Ordersheet'!K1061)","v":""},{"$f":"IF('1. Ordersheet'!M1061=\"\",\"\",'1. Ordersheet'!M1061)","v":""},null,null,{"$f":"'1. Ordersheet'!AR1061","v":0},{"$f":"IF('1. Ordersheet'!AE1061=\"\",\"\",'1. Ordersheet'!AE1061)","v":""}]
[{"$f":"IF('1. Ordersheet'!B1062=\"\",\"\",'1. Ordersheet'!B1062)","v":""},{"$f":"IF('1. Ordersheet'!I1062=\"\",\"\",'1. Ordersheet'!I1062)","v":""},{"$f":"IF('1. Ordersheet'!J1062=\"\",\"\",'1. Ordersheet'!J1062)","v":""},{"$f":"IF('1. Ordersheet'!K1062=\"\",\"\",'1. Ordersheet'!K1062)","v":""},{"$f":"IF('1. Ordersheet'!M1062=\"\",\"\",'1. Ordersheet'!M1062)","v":""},null,null,{"$f":"'1. Ordersheet'!AR1062","v":0},{"$f":"IF('1. Ordersheet'!AE1062=\"\",\"\",'1. Ordersheet'!AE1062)","v":""}]
[{"$f":"IF('1. Ordersheet'!B1063=\"\",\"\",'1. Ordersheet'!B1063)","v":""},{"$f":"IF('1. Ordersheet'!I1063=\"\",\"\",'1. Ordersheet'!I1063)","v":""},{"$f":"IF('1. Ordersheet'!J1063=\"\",\"\",'1. Ordersheet'!J1063)","v":""},{"$f":"IF('1. Ordersheet'!K1063=\"\",\"\",'1. Ordersheet'!K1063)","v":""},{"$f":"IF('1. Ordersheet'!M1063=\"\",\"\",'1. Ordersheet'!M1063)","v":""},null,null,{"$f":"'1. Ordersheet'!AR1063","v":0},{"$f":"IF('1. Ordersheet'!AE1063=\"\",\"\",'1. Ordersheet'!AE1063)","v":""}]
[{"$f":"IF('1. Ordersheet'!B1064=\"\",\"\",'1. Ordersheet'!B1064)","v":""},{"$f":"IF('1. Ordersheet'!I1064=\"\",\"\",'1. Ordersheet'!I1064)","v":""},{"$f":"IF('1. Ordersheet'!J1064=\"\",\"\",'1. Ordersheet'!J1064)","v":""},{"$f":"IF('1. Ordersheet'!K1064=\"\",\"\",'1. Ordersheet'!K1064)","v":""},{"$f":"IF('1. Ordersheet'!M1064=\"\",\"\",'1. Ordersheet'!M1064)","v":""},null,null,{"$f":"'1. Ordersheet'!AR1064","v":0},{"$f":"IF('1. Ordersheet'!AE1064=\"\",\"\",'1. Ordersheet'!AE1064)","v":""}]
[{"$f":"IF('1. Ordersheet'!B1065=\"\",\"\",'1. Ordersheet'!B1065)","v":""},{"$f":"IF('1. Ordersheet'!I1065=\"\",\"\",'1. Ordersheet'!I1065)","v":""},{"$f":"IF('1. Ordersheet'!J1065=\"\",\"\",'1. Ordersheet'!J1065)","v":""},{"$f":"IF('1. Ordersheet'!K1065=\"\",\"\",'1. Ordersheet'!K1065)","v":""},{"$f":"IF('1. Ordersheet'!M1065=\"\",\"\",'1. Ordersheet'!M1065)","v":""},null,null,{"$f":"'1. Ordersheet'!AR1065","v":0},{"$f":"IF('1. Ordersheet'!AE1065=\"\",\"\",'1. Ordersheet'!AE1065)","v":""}]
[{"$f":"IF('1. Ordersheet'!B1066=\"\",\"\",'1. Ordersheet'!B1066)","v":""},{"$f":"IF('1. Ordersheet'!I1066=\"\",\"\",'1. Ordersheet'!I1066)","v":""},{"$f":"IF('1. Ordersheet'!J1066=\"\",\"\",'1. Ordersheet'!J1066)","v":""},{"$f":"IF('1. Ordersheet'!K1066=\"\",\"\",'1. Ordersheet'!K1066)","v":""},{"$f":"IF('1. Ordersheet'!M1066=\"\",\"\",'1. Ordersheet'!M1066)","v":""},null,null,{"$f":"'1. Ordersheet'!AR1066","v":0},{"$f":"IF('1. Ordersheet'!AE1066=\"\",\"\",'1. Ordersheet'!AE1066)","v":""}]
[{"$f":"IF('1. Ordersheet'!B1067=\"\",\"\",'1. Ordersheet'!B1067)","v":""},{"$f":"IF('1. Ordersheet'!I1067=\"\",\"\",'1. Ordersheet'!I1067)","v":""},{"$f":"IF('1. Ordersheet'!J1067=\"\",\"\",'1. Ordersheet'!J1067)","v":""},{"$f":"IF('1. Ordersheet'!K1067=\"\",\"\",'1. Ordersheet'!K1067)","v":""},{"$f":"IF('1. Ordersheet'!M1067=\"\",\"\",'1. Ordersheet'!M1067)","v":""},null,null,{"$f":"'1. Ordersheet'!AR1067","v":0},{"$f":"IF('1. Ordersheet'!AE1067=\"\",\"\",'1. Ordersheet'!AE1067)","v":""}]
[{"$f":"IF('1. Ordersheet'!B1068=\"\",\"\",'1. Ordersheet'!B1068)","v":""},{"$f":"IF('1. Ordersheet'!I1068=\"\",\"\",'1. Ordersheet'!I1068)","v":""},{"$f":"IF('1. Ordersheet'!J1068=\"\",\"\",'1. Ordersheet'!J1068)","v":""},{"$f":"IF('1. Ordersheet'!K1068=\"\",\"\",'1. Ordersheet'!K1068)","v":""},{"$f":"IF('1. Ordersheet'!M1068=\"\",\"\",'1. Ordersheet'!M1068)","v":""},null,null,{"$f":"'1. Ordersheet'!AR1068","v":0},{"$f":"IF('1. Ordersheet'!AE1068=\"\",\"\",'1. Ordersheet'!AE1068)","v":""}]
[{"$f":"IF('1. Ordersheet'!B1069=\"\",\"\",'1. Ordersheet'!B1069)","v":""},{"$f":"IF('1. Ordersheet'!I1069=\"\",\"\",'1. Ordersheet'!I1069)","v":""},{"$f":"IF('1. Ordersheet'!J1069=\"\",\"\",'1. Ordersheet'!J1069)","v":""},{"$f":"IF('1. Ordersheet'!K1069=\"\",\"\",'1. Ordersheet'!K1069)","v":""},{"$f":"IF('1. Ordersheet'!M1069=\"\",\"\",'1. Ordersheet'!M1069)","v":""},null,null,{"$f":"'1. Ordersheet'!AR1069","v":0},{"$f":"IF('1. Ordersheet'!AE1069=\"\",\"\",'1. Ordersheet'!AE1069)","v":""}]
[{"$f":"IF('1. Ordersheet'!B1070=\"\",\"\",'1. Ordersheet'!B1070)","v":""},{"$f":"IF('1. Ordersheet'!I1070=\"\",\"\",'1. Ordersheet'!I1070)","v":""},{"$f":"IF('1. Ordersheet'!J1070=\"\",\"\",'1. Ordersheet'!J1070)","v":""},{"$f":"IF('1. Ordersheet'!K1070=\"\",\"\",'1. Ordersheet'!K1070)","v":""},{"$f":"IF('1. Ordersheet'!M1070=\"\",\"\",'1. Ordersheet'!M1070)","v":""},null,null,{"$f":"'1. Ordersheet'!AR1070","v":0},{"$f":"IF('1. Ordersheet'!AE1070=\"\",\"\",'1. Ordersheet'!AE1070)","v":""}]
[{"$f":"IF('1. Ordersheet'!B1071=\"\",\"\",'1. Ordersheet'!B1071)","v":""},{"$f":"IF('1. Ordersheet'!I1071=\"\",\"\",'1. Ordersheet'!I1071)","v":""},{"$f":"IF('1. Ordersheet'!J1071=\"\",\"\",'1. Ordersheet'!J1071)","v":""},{"$f":"IF('1. Ordersheet'!K1071=\"\",\"\",'1. Ordersheet'!K1071)","v":""},{"$f":"IF('1. Ordersheet'!M1071=\"\",\"\",'1. Ordersheet'!M1071)","v":""},null,null,{"$f":"'1. Ordersheet'!AR1071","v":0},{"$f":"IF('1. Ordersheet'!AE1071=\"\",\"\",'1. Ordersheet'!AE1071)","v":""}]
[{"$f":"IF('1. Ordersheet'!B1072=\"\",\"\",'1. Ordersheet'!B1072)","v":""},{"$f":"IF('1. Ordersheet'!I1072=\"\",\"\",'1. Ordersheet'!I1072)","v":""},{"$f":"IF('1. Ordersheet'!J1072=\"\",\"\",'1. Ordersheet'!J1072)","v":""},{"$f":"IF('1. Ordersheet'!K1072=\"\",\"\",'1. Ordersheet'!K1072)","v":""},{"$f":"IF('1. Ordersheet'!M1072=\"\",\"\",'1. Ordersheet'!M1072)","v":""},null,null,{"$f":"'1. Ordersheet'!AR1072","v":0},{"$f":"IF('1. Ordersheet'!AE1072=\"\",\"\",'1. Ordersheet'!AE1072)","v":""}]
[{"$f":"IF('1. Ordersheet'!B1073=\"\",\"\",'1. Ordersheet'!B1073)","v":""},{"$f":"IF('1. Ordersheet'!I1073=\"\",\"\",'1. Ordersheet'!I1073)","v":""},{"$f":"IF('1. Ordersheet'!J1073=\"\",\"\",'1. Ordersheet'!J1073)","v":""},{"$f":"IF('1. Ordersheet'!K1073=\"\",\"\",'1. Ordersheet'!K1073)","v":""},{"$f":"IF('1. Ordersheet'!M1073=\"\",\"\",'1. Ordersheet'!M1073)","v":""},null,null,{"$f":"'1. Ordersheet'!AR1073","v":0},{"$f":"IF('1. Ordersheet'!AE1073=\"\",\"\",'1. Ordersheet'!AE1073)","v":""}]
[{"$f":"IF('1. Ordersheet'!B1074=\"\",\"\",'1. Ordersheet'!B1074)","v":""},{"$f":"IF('1. Ordersheet'!I1074=\"\",\"\",'1. Ordersheet'!I1074)","v":""},{"$f":"IF('1. Ordersheet'!J1074=\"\",\"\",'1. Ordersheet'!J1074)","v":""},{"$f":"IF('1. Ordersheet'!K1074=\"\",\"\",'1. Ordersheet'!K1074)","v":""},{"$f":"IF('1. Ordersheet'!M1074=\"\",\"\",'1. Ordersheet'!M1074)","v":""},null,null,{"$f":"'1. Ordersheet'!AR1074","v":0},{"$f":"IF('1. Ordersheet'!AE1074=\"\",\"\",'1. Ordersheet'!AE1074)","v":""}]
[{"$f":"IF('1. Ordersheet'!B1075=\"\",\"\",'1. Ordersheet'!B1075)","v":""},{"$f":"IF('1. Ordersheet'!I1075=\"\",\"\",'1. Ordersheet'!I1075)","v":""},{"$f":"IF('1. Ordersheet'!J1075=\"\",\"\",'1. Ordersheet'!J1075)","v":""},{"$f":"IF('1. Ordersheet'!K1075=\"\",\"\",'1. Ordersheet'!K1075)","v":""},{"$f":"IF('1. Ordersheet'!M1075=\"\",\"\",'1. Ordersheet'!M1075)","v":""},null,null,{"$f":"'1. Ordersheet'!AR1075","v":0},{"$f":"IF('1. Ordersheet'!AE1075=\"\",\"\",'1. Ordersheet'!AE1075)","v":""}]
[{"$f":"IF('1. Ordersheet'!B1076=\"\",\"\",'1. Ordersheet'!B1076)","v":""},{"$f":"IF('1. Ordersheet'!I1076=\"\",\"\",'1. Ordersheet'!I1076)","v":""},{"$f":"IF('1. Ordersheet'!J1076=\"\",\"\",'1. Ordersheet'!J1076)","v":""},{"$f":"IF('1. Ordersheet'!K1076=\"\",\"\",'1. Ordersheet'!K1076)","v":""},{"$f":"IF('1. Ordersheet'!M1076=\"\",\"\",'1. Ordersheet'!M1076)","v":""},null,null,{"$f":"'1. Ordersheet'!AR1076","v":0},{"$f":"IF('1. Ordersheet'!AE1076=\"\",\"\",'1. Ordersheet'!AE1076)","v":""}]
[{"$f":"IF('1. Ordersheet'!B1077=\"\",\"\",'1. Ordersheet'!B1077)","v":""},{"$f":"IF('1. Ordersheet'!I1077=\"\",\"\",'1. Ordersheet'!I1077)","v":""},{"$f":"IF('1. Ordersheet'!J1077=\"\",\"\",'1. Ordersheet'!J1077)","v":""},{"$f":"IF('1. Ordersheet'!K1077=\"\",\"\",'1. Ordersheet'!K1077)","v":""},{"$f":"IF('1. Ordersheet'!M1077=\"\",\"\",'1. Ordersheet'!M1077)","v":""},null,null,{"$f":"'1. Ordersheet'!AR1077","v":0},{"$f":"IF('1. Ordersheet'!AE1077=\"\",\"\",'1. Ordersheet'!AE1077)","v":""}]
[{"$f":"IF('1. Ordersheet'!B1078=\"\",\"\",'1. Ordersheet'!B1078)","v":""},{"$f":"IF('1. Ordersheet'!I1078=\"\",\"\",'1. Ordersheet'!I1078)","v":""},{"$f":"IF('1. Ordersheet'!J1078=\"\",\"\",'1. Ordersheet'!J1078)","v":""},{"$f":"IF('1. Ordersheet'!K1078=\"\",\"\",'1. Ordersheet'!K1078)","v":""},{"$f":"IF('1. Ordersheet'!M1078=\"\",\"\",'1. Ordersheet'!M1078)","v":""},null,null,{"$f":"'1. Ordersheet'!AR1078","v":0},{"$f":"IF('1. Ordersheet'!AE1078=\"\",\"\",'1. Ordersheet'!AE1078)","v":""}]
[{"$f":"IF('1. Ordersheet'!B1079=\"\",\"\",'1. Ordersheet'!B1079)","v":""},{"$f":"IF('1. Ordersheet'!I1079=\"\",\"\",'1. Ordersheet'!I1079)","v":""},{"$f":"IF('1. Ordersheet'!J1079=\"\",\"\",'1. Ordersheet'!J1079)","v":""},{"$f":"IF('1. Ordersheet'!K1079=\"\",\"\",'1. Ordersheet'!K1079)","v":""},{"$f":"IF('1. Ordersheet'!M1079=\"\",\"\",'1. Ordersheet'!M1079)","v":""},null,null,{"$f":"'1. Ordersheet'!AR1079","v":0},{"$f":"IF('1. Ordersheet'!AE1079=\"\",\"\",'1. Ordersheet'!AE1079)","v":""}]
[{"$f":"IF('1. Ordersheet'!B1080=\"\",\"\",'1. Ordersheet'!B1080)","v":""},{"$f":"IF('1. Ordersheet'!I1080=\"\",\"\",'1. Ordersheet'!I1080)","v":""},{"$f":"IF('1. Ordersheet'!J1080=\"\",\"\",'1. Ordersheet'!J1080)","v":""},{"$f":"IF('1. Ordersheet'!K1080=\"\",\"\",'1. Ordersheet'!K1080)","v":""},{"$f":"IF('1. Ordersheet'!M1080=\"\",\"\",'1. Ordersheet'!M1080)","v":""},null,null,{"$f":"'1. Ordersheet'!AR1080","v":0},{"$f":"IF('1. Ordersheet'!AE1080=\"\",\"\",'1. Ordersheet'!AE1080)","v":""}]
[{"$f":"IF('1. Ordersheet'!B1081=\"\",\"\",'1. Ordersheet'!B1081)","v":""},{"$f":"IF('1. Ordersheet'!I1081=\"\",\"\",'1. Ordersheet'!I1081)","v":""},{"$f":"IF('1. Ordersheet'!J1081=\"\",\"\",'1. Ordersheet'!J1081)","v":""},{"$f":"IF('1. Ordersheet'!K1081=\"\",\"\",'1. Ordersheet'!K1081)","v":""},{"$f":"IF('1. Ordersheet'!M1081=\"\",\"\",'1. Ordersheet'!M1081)","v":""},null,null,{"$f":"'1. Ordersheet'!AR1081","v":0},{"$f":"IF('1. Ordersheet'!AE1081=\"\",\"\",'1. Ordersheet'!AE1081)","v":""}]
[{"$f":"IF('1. Ordersheet'!B1082=\"\",\"\",'1. Ordersheet'!B1082)","v":""},{"$f":"IF('1. Ordersheet'!I1082=\"\",\"\",'1. Ordersheet'!I1082)","v":""},{"$f":"IF('1. Ordersheet'!J1082=\"\",\"\",'1. Ordersheet'!J1082)","v":""},{"$f":"IF('1. Ordersheet'!K1082=\"\",\"\",'1. Ordersheet'!K1082)","v":""},{"$f":"IF('1. Ordersheet'!M1082=\"\",\"\",'1. Ordersheet'!M1082)","v":""},null,null,{"$f":"'1. Ordersheet'!AR1082","v":0},{"$f":"IF('1. Ordersheet'!AE1082=\"\",\"\",'1. Ordersheet'!AE1082)","v":""}]
[{"$f":"IF('1. Ordersheet'!B1083=\"\",\"\",'1. Ordersheet'!B1083)","v":""},{"$f":"IF('1. Ordersheet'!I1083=\"\",\"\",'1. Ordersheet'!I1083)","v":""},{"$f":"IF('1. Ordersheet'!J1083=\"\",\"\",'1. Ordersheet'!J1083)","v":""},{"$f":"IF('1. Ordersheet'!K1083=\"\",\"\",'1. Ordersheet'!K1083)","v":""},{"$f":"IF('1. Ordersheet'!M1083=\"\",\"\",'1. Ordersheet'!M1083)","v":""},null,null,{"$f":"'1. Ordersheet'!AR1083","v":0},{"$f":"IF('1. Ordersheet'!AE1083=\"\",\"\",'1. Ordersheet'!AE1083)","v":""}]
[{"$f":"IF('1. Ordersheet'!B1084=\"\",\"\",'1. Ordersheet'!B1084)","v":""},{"$f":"IF('1. Ordersheet'!I1084=\"\",\"\",'1. Ordersheet'!I1084)","v":""},{"$f":"IF('1. Ordersheet'!J1084=\"\",\"\",'1. Ordersheet'!J1084)","v":""},{"$f":"IF('1. Ordersheet'!K1084=\"\",\"\",'1. Ordersheet'!K1084)","v":""},{"$f":"IF('1. Ordersheet'!M1084=\"\",\"\",'1. Ordersheet'!M1084)","v":""},null,null,{"$f":"'1. Ordersheet'!AR1084","v":0},{"$f":"IF('1. Ordersheet'!AE1084=\"\",\"\",'1. Ordersheet'!AE1084)","v":""}]
[{"$f":"IF('1. Ordersheet'!B1085=\"\",\"\",'1. Ordersheet'!B1085)","v":""},{"$f":"IF('1. Ordersheet'!I1085=\"\",\"\",'1. Ordersheet'!I1085)","v":""},{"$f":"IF('1. Ordersheet'!J1085=\"\",\"\",'1. Ordersheet'!J1085)","v":""},{"$f":"IF('1. Ordersheet'!K1085=\"\",\"\",'1. Ordersheet'!K1085)","v":""},{"$f":"IF('1. Ordersheet'!M1085=\"\",\"\",'1. Ordersheet'!M1085)","v":""},null,null,{"$f":"'1. Ordersheet'!AR1085","v":0},{"$f":"IF('1. Ordersheet'!AE1085=\"\",\"\",'1. Ordersheet'!AE1085)","v":""}]
[{"$f":"IF('1. Ordersheet'!B1086=\"\",\"\",'1. Ordersheet'!B1086)","v":""},{"$f":"IF('1. Ordersheet'!I1086=\"\",\"\",'1. Ordersheet'!I1086)","v":""},{"$f":"IF('1. Ordersheet'!J1086=\"\",\"\",'1. Ordersheet'!J1086)","v":""},{"$f":"IF('1. Ordersheet'!K1086=\"\",\"\",'1. Ordersheet'!K1086)","v":""},{"$f":"IF('1. Ordersheet'!M1086=\"\",\"\",'1. Ordersheet'!M1086)","v":""},null,null,{"$f":"'1. Ordersheet'!AR1086","v":0},{"$f":"IF('1. Ordersheet'!AE1086=\"\",\"\",'1. Ordersheet'!AE1086)","v":""}]
[{"$f":"IF('1. Ordersheet'!B1087=\"\",\"\",'1. Ordersheet'!B1087)","v":""},{"$f":"IF('1. Ordersheet'!I1087=\"\",\"\",'1. Ordersheet'!I1087)","v":""},{"$f":"IF('1. Ordersheet'!J1087=\"\",\"\",'1. Ordersheet'!J1087)","v":""},{"$f":"IF('1. Ordersheet'!K1087=\"\",\"\",'1. Ordersheet'!K1087)","v":""},{"$f":"IF('1. Ordersheet'!M1087=\"\",\"\",'1. Ordersheet'!M1087)","v":""},null,null,{"$f":"'1. Ordersheet'!AR1087","v":0},{"$f":"IF('1. Ordersheet'!AE1087=\"\",\"\",'1. Ordersheet'!AE1087)","v":""}]
[{"$f":"IF('1. Ordersheet'!B1088=\"\",\"\",'1. Ordersheet'!B1088)","v":""},{"$f":"IF('1. Ordersheet'!I1088=\"\",\"\",'1. Ordersheet'!I1088)","v":""},{"$f":"IF('1. Ordersheet'!J1088=\"\",\"\",'1. Ordersheet'!J1088)","v":""},{"$f":"IF('1. Ordersheet'!K1088=\"\",\"\",'1. Ordersheet'!K1088)","v":""},{"$f":"IF('1. Ordersheet'!M1088=\"\",\"\",'1. Ordersheet'!M1088)","v":""},null,null,{"$f":"'1. Ordersheet'!AR1088","v":0},{"$f":"IF('1. Ordersheet'!AE1088=\"\",\"\",'1. Ordersheet'!AE1088)","v":""}]
[{"$f":"IF('1. Ordersheet'!B1089=\"\",\"\",'1. Ordersheet'!B1089)","v":""},{"$f":"IF('1. Ordersheet'!I1089=\"\",\"\",'1. Ordersheet'!I1089)","v":""},{"$f":"IF('1. Ordersheet'!J1089=\"\",\"\",'1. Ordersheet'!J1089)","v":""},{"$f":"IF('1. Ordersheet'!K1089=\"\",\"\",'1. Ordersheet'!K1089)","v":""},{"$f":"IF('1. Ordersheet'!M1089=\"\",\"\",'1. Ordersheet'!M1089)","v":""},null,null,{"$f":"'1. Ordersheet'!AR1089","v":0},{"$f":"IF('1. Ordersheet'!AE1089=\"\",\"\",'1. Ordersheet'!AE1089)","v":""}]
[{"$f":"IF('1. Ordersheet'!B1090=\"\",\"\",'1. Ordersheet'!B1090)","v":""},{"$f":"IF('1. Ordersheet'!I1090=\"\",\"\",'1. Ordersheet'!I1090)","v":""},{"$f":"IF('1. Ordersheet'!J1090=\"\",\"\",'1. Ordersheet'!J1090)","v":""},{"$f":"IF('1. Ordersheet'!K1090=\"\",\"\",'1. Ordersheet'!K1090)","v":""},{"$f":"IF('1. Ordersheet'!M1090=\"\",\"\",'1. Ordersheet'!M1090)","v":""},null,null,{"$f":"'1. Ordersheet'!AR1090","v":0},{"$f":"IF('1. Ordersheet'!AE1090=\"\",\"\",'1. Ordersheet'!AE1090)","v":""}]
[{"$f":"IF('1. Ordersheet'!B1091=\"\",\"\",'1. Ordersheet'!B1091)","v":""},{"$f":"IF('1. Ordersheet'!I1091=\"\",\"\",'1. Ordersheet'!I1091)","v":""},{"$f":"IF('1. Ordersheet'!J1091=\"\",\"\",'1. Ordersheet'!J1091)","v":""},{"$f":"IF('1. Ordersheet'!K1091=\"\",\"\",'1. Ordersheet'!K1091)","v":""},{"$f":"IF('1. Ordersheet'!M1091=\"\",\"\",'1. Ordersheet'!M1091)","v":""},null,null,{"$f":"'1. Ordersheet'!AR1091","v":0},{"$f":"IF('1. Ordersheet'!AE1091=\"\",\"\",'1. Ordersheet'!AE1091)","v":""}]
[{"$f":"IF('1. Ordersheet'!B1092=\"\",\"\",'1. Ordersheet'!B1092)","v":""},{"$f":"IF('1. Ordersheet'!I1092=\"\",\"\",'1. Ordersheet'!I1092)","v":""},{"$f":"IF('1. Ordersheet'!J1092=\"\",\"\",'1. Ordersheet'!J1092)","v":""},{"$f":"IF('1. Ordersheet'!K1092=\"\",\"\",'1. Ordersheet'!K1092)","v":""},{"$f":"IF('1. Ordersheet'!M1092=\"\",\"\",'1. Ordersheet'!M1092)","v":""},null,null,{"$f":"'1. Ordersheet'!AR1092","v":0},{"$f":"IF('1. Ordersheet'!AE1092=\"\",\"\",'1. Ordersheet'!AE1092)","v":""}]
[{"$f":"IF('1. Ordersheet'!B1093=\"\",\"\",'1. Ordersheet'!B1093)","v":""},{"$f":"IF('1. Ordersheet'!I1093=\"\",\"\",'1. Ordersheet'!I1093)","v":""},{"$f":"IF('1. Ordersheet'!J1093=\"\",\"\",'1. Ordersheet'!J1093)","v":""},{"$f":"IF('1. Ordersheet'!K1093=\"\",\"\",'1. Ordersheet'!K1093)","v":""},{"$f":"IF('1. Ordersheet'!M1093=\"\",\"\",'1. Ordersheet'!M1093)","v":""},null,null,{"$f":"'1. Ordersheet'!AR1093","v":0},{"$f":"IF('1. Ordersheet'!AE1093=\"\",\"\",'1. Ordersheet'!AE1093)","v":""}]
[{"$f":"IF('1. Ordersheet'!B1094=\"\",\"\",'1. Ordersheet'!B1094)","v":""},{"$f":"IF('1. Ordersheet'!I1094=\"\",\"\",'1. Ordersheet'!I1094)","v":""},{"$f":"IF('1. Ordersheet'!J1094=\"\",\"\",'1. Ordersheet'!J1094)","v":""},{"$f":"IF('1. Ordersheet'!K1094=\"\",\"\",'1. Ordersheet'!K1094)","v":""},{"$f":"IF('1. Ordersheet'!M1094=\"\",\"\",'1. Ordersheet'!M1094)","v":""},null,null,{"$f":"'1. Ordersheet'!AR1094","v":0},{"$f":"IF('1. Ordersheet'!AE1094=\"\",\"\",'1. Ordersheet'!AE1094)","v":""}]
[{"$f":"IF('1. Ordersheet'!B1095=\"\",\"\",'1. Ordersheet'!B1095)","v":""},{"$f":"IF('1. Ordersheet'!I1095=\"\",\"\",'1. Ordersheet'!I1095)","v":""},{"$f":"IF('1. Ordersheet'!J1095=\"\",\"\",'1. Ordersheet'!J1095)","v":""},{"$f":"IF('1. Ordersheet'!K1095=\"\",\"\",'1. Ordersheet'!K1095)","v":""},{"$f":"IF('1. Ordersheet'!M1095=\"\",\"\",'1. Ordersheet'!M1095)","v":""},null,null,{"$f":"'1. Ordersheet'!AR1095","v":0},{"$f":"IF('1. Ordersheet'!AE1095=\"\",\"\",'1. Ordersheet'!AE1095)","v":""}]
[{"$f":"IF('1. Ordersheet'!B1096=\"\",\"\",'1. Ordersheet'!B1096)","v":""},{"$f":"IF('1. Ordersheet'!I1096=\"\",\"\",'1. Ordersheet'!I1096)","v":""},{"$f":"IF('1. Ordersheet'!J1096=\"\",\"\",'1. Ordersheet'!J1096)","v":""},{"$f":"IF('1. Ordersheet'!K1096=\"\",\"\",'1. Ordersheet'!K1096)","v":""},{"$f":"IF('1. Ordersheet'!M1096=\"\",\"\",'1. Ordersheet'!M1096)","v":""},null,null,{"$f":"'1. Ordersheet'!AR1096","v":0},{"$f":"IF('1. Ordersheet'!AE1096=\"\",\"\",'1. Ordersheet'!AE1096)","v":""}]
[{"$f":"IF('1. Ordersheet'!B1097=\"\",\"\",'1. Ordersheet'!B1097)","v":""},{"$f":"IF('1. Ordersheet'!I1097=\"\",\"\",'1. Ordersheet'!I1097)","v":""},{"$f":"IF('1. Ordersheet'!J1097=\"\",\"\",'1. Ordersheet'!J1097)","v":""},{"$f":"IF('1. Ordersheet'!K1097=\"\",\"\",'1. Ordersheet'!K1097)","v":""},{"$f":"IF('1. Ordersheet'!M1097=\"\",\"\",'1. Ordersheet'!M1097)","v":""},null,null,{"$f":"'1. Ordersheet'!AR1097","v":0},{"$f":"IF('1. Ordersheet'!AE1097=\"\",\"\",'1. Ordersheet'!AE1097)","v":""}]
[{"$f":"IF('1. Ordersheet'!B1098=\"\",\"\",'1. Ordersheet'!B1098)","v":""},{"$f":"IF('1. Ordersheet'!I1098=\"\",\"\",'1. Ordersheet'!I1098)","v":""},{"$f":"IF('1. Ordersheet'!J1098=\"\",\"\",'1. Ordersheet'!J1098)","v":""},{"$f":"IF('1. Ordersheet'!K1098=\"\",\"\",'1. Ordersheet'!K1098)","v":""},{"$f":"IF('1. Ordersheet'!M1098=\"\",\"\",'1. Ordersheet'!M1098)","v":""},null,null,{"$f":"'1. Ordersheet'!AR1098","v":0},{"$f":"IF('1. Ordersheet'!AE1098=\"\",\"\",'1. Ordersheet'!AE1098)","v":""}]
[{"$f":"IF('1. Ordersheet'!B1099=\"\",\"\",'1. Ordersheet'!B1099)","v":""},{"$f":"IF('1. Ordersheet'!I1099=\"\",\"\",'1. Ordersheet'!I1099)","v":""},{"$f":"IF('1. Ordersheet'!J1099=\"\",\"\",'1. Ordersheet'!J1099)","v":""},{"$f":"IF('1. Ordersheet'!K1099=\"\",\"\",'1. Ordersheet'!K1099)","v":""},{"$f":"IF('1. Ordersheet'!M1099=\"\",\"\",'1. Ordersheet'!M1099)","v":""},null,null,{"$f":"'1. Ordersheet'!AR1099","v":0},{"$f":"IF('1. Ordersheet'!AE1099=\"\",\"\",'1. Ordersheet'!AE1099)","v":""}]
[{"$f":"IF('1. Ordersheet'!B1100=\"\",\"\",'1. Ordersheet'!B1100)","v":""},{"$f":"IF('1. Ordersheet'!I1100=\"\",\"\",'1. Ordersheet'!I1100)","v":""},{"$f":"IF('1. Ordersheet'!J1100=\"\",\"\",'1. Ordersheet'!J1100)","v":""},{"$f":"IF('1. Ordersheet'!K1100=\"\",\"\",'1. Ordersheet'!K1100)","v":""},{"$f":"IF('1. Ordersheet'!M1100=\"\",\"\",'1. Ordersheet'!M1100)","v":""},null,null,{"$f":"'1. Ordersheet'!AR1100","v":0},{"$f":"IF('1. Ordersheet'!AE1100=\"\",\"\",'1. Ordersheet'!AE1100)","v":""}]
[{"$f":"IF('1. Ordersheet'!B1101=\"\",\"\",'1. Ordersheet'!B1101)","v":""},{"$f":"IF('1. Ordersheet'!I1101=\"\",\"\",'1. Ordersheet'!I1101)","v":""},{"$f":"IF('1. Ordersheet'!J1101=\"\",\"\",'1. Ordersheet'!J1101)","v":""},{"$f":"IF('1. Ordersheet'!K1101=\"\",\"\",'1. Ordersheet'!K1101)","v":""},{"$f":"IF('1. Ordersheet'!M1101=\"\",\"\",'1. Ordersheet'!M1101)","v":""},null,null,{"$f":"'1. Ordersheet'!AR1101","v":0},{"$f":"IF('1. Ordersheet'!AE1101=\"\",\"\",'1. Ordersheet'!AE1101)","v":""}]
[{"$f":"IF('1. Ordersheet'!B1102=\"\",\"\",'1. Ordersheet'!B1102)","v":""},{"$f":"IF('1. Ordersheet'!I1102=\"\",\"\",'1. Ordersheet'!I1102)","v":""},{"$f":"IF('1. Ordersheet'!J1102=\"\",\"\",'1. Ordersheet'!J1102)","v":""},{"$f":"IF('1. Ordersheet'!K1102=\"\",\"\",'1. Ordersheet'!K1102)","v":""},{"$f":"IF('1. Ordersheet'!M1102=\"\",\"\",'1. Ordersheet'!M1102)","v":""},null,null,{"$f":"'1. Ordersheet'!AR1102","v":0},{"$f":"IF('1. Ordersheet'!AE1102=\"\",\"\",'1. Ordersheet'!AE1102)","v":""}]
[{"$f":"IF('1. Ordersheet'!B1103=\"\",\"\",'1. Ordersheet'!B1103)","v":""},{"$f":"IF('1. Ordersheet'!I1103=\"\",\"\",'1. Ordersheet'!I1103)","v":""},{"$f":"IF('1. Ordersheet'!J1103=\"\",\"\",'1. Ordersheet'!J1103)","v":""},{"$f":"IF('1. Ordersheet'!K1103=\"\",\"\",'1. Ordersheet'!K1103)","v":""},{"$f":"IF('1. Ordersheet'!M1103=\"\",\"\",'1. Ordersheet'!M1103)","v":""},null,null,{"$f":"'1. Ordersheet'!AR1103","v":0},{"$f":"IF('1. Ordersheet'!AE1103=\"\",\"\",'1. Ordersheet'!AE1103)","v":""}]
[{"$f":"IF('1. Ordersheet'!B1104=\"\",\"\",'1. Ordersheet'!B1104)","v":""},{"$f":"IF('1. Ordersheet'!I1104=\"\",\"\",'1. Ordersheet'!I1104)","v":""},{"$f":"IF('1. Ordersheet'!J1104=\"\",\"\",'1. Ordersheet'!J1104)","v":""},{"$f":"IF('1. Ordersheet'!K1104=\"\",\"\",'1. Ordersheet'!K1104)","v":""},{"$f":"IF('1. Ordersheet'!M1104=\"\",\"\",'1. Ordersheet'!M1104)","v":""},null,null,{"$f":"'1. Ordersheet'!AR1104","v":0},{"$f":"IF('1. Ordersheet'!AE1104=\"\",\"\",'1. Ordersheet'!AE1104)","v":""}]
[{"$f":"IF('1. Ordersheet'!B1105=\"\",\"\",'1. Ordersheet'!B1105)","v":""},{"$f":"IF('1. Ordersheet'!I1105=\"\",\"\",'1. Ordersheet'!I1105)","v":""},{"$f":"IF('1. Ordersheet'!J1105=\"\",\"\",'1. Ordersheet'!J1105)","v":""},{"$f":"IF('1. Ordersheet'!K1105=\"\",\"\",'1. Ordersheet'!K1105)","v":""},{"$f":"IF('1. Ordersheet'!M1105=\"\",\"\",'1. Ordersheet'!M1105)","v":""},null,null,{"$f":"'1. Ordersheet'!AR1105","v":0},{"$f":"IF('1. Ordersheet'!AE1105=\"\",\"\",'1. Ordersheet'!AE1105)","v":""}]
[{"$f":"IF('1. Ordersheet'!B1106=\"\",\"\",'1. Ordersheet'!B1106)","v":""},{"$f":"IF('1. Ordersheet'!I1106=\"\",\"\",'1. Ordersheet'!I1106)","v":""},{"$f":"IF('1. Ordersheet'!J1106=\"\",\"\",'1. Ordersheet'!J1106)","v":""},{"$f":"IF('1. Ordersheet'!K1106=\"\",\"\",'1. Ordersheet'!K1106)","v":""},{"$f":"IF('1. Ordersheet'!M1106=\"\",\"\",'1. Ordersheet'!M1106)","v":""},null,null,{"$f":"'1. Ordersheet'!AR1106","v":0},{"$f":"IF('1. Ordersheet'!AE1106=\"\",\"\",'1. Ordersheet'!AE1106)","v":""}]
[{"$f":"IF('1. Ordersheet'!B1107=\"\",\"\",'1. Ordersheet'!B1107)","v":""},{"$f":"IF('1. Ordersheet'!I1107=\"\",\"\",'1. Ordersheet'!I1107)","v":""},{"$f":"IF('1. Ordersheet'!J1107=\"\",\"\",'1. Ordersheet'!J1107)","v":""},{"$f":"IF('1. Ordersheet'!K1107=\"\",\"\",'1. Ordersheet'!K1107)","v":""},{"$f":"IF('1. Ordersheet'!M1107=\"\",\"\",'1. Ordersheet'!M1107)","v":""},null,null,{"$f":"'1. Ordersheet'!AR1107","v":0},{"$f":"IF('1. Ordersheet'!AE1107=\"\",\"\",'1. Ordersheet'!AE1107)","v":""}]
[{"$f":"IF('1. Ordersheet'!B1108=\"\",\"\",'1. Ordersheet'!B1108)","v":""},{"$f":"IF('1. Ordersheet'!I1108=\"\",\"\",'1. Ordersheet'!I1108)","v":""},{"$f":"IF('1. Ordersheet'!J1108=\"\",\"\",'1. Ordersheet'!J1108)","v":""},{"$f":"IF('1. Ordersheet'!K1108=\"\",\"\",'1. Ordersheet'!K1108)","v":""},{"$f":"IF('1. Ordersheet'!M1108=\"\",\"\",'1. Ordersheet'!M1108)","v":""},null,null,{"$f":"'1. Ordersheet'!AR1108","v":0},{"$f":"IF('1. Ordersheet'!AE1108=\"\",\"\",'1. Ordersheet'!AE1108)","v":""}]
[{"$f":"IF('1. Ordersheet'!B1109=\"\",\"\",'1. Ordersheet'!B1109)","v":""},{"$f":"IF('1. Ordersheet'!I1109=\"\",\"\",'1. Ordersheet'!I1109)","v":""},{"$f":"IF('1. Ordersheet'!J1109=\"\",\"\",'1. Ordersheet'!J1109)","v":""},{"$f":"IF('1. Ordersheet'!K1109=\"\",\"\",'1. Ordersheet'!K1109)","v":""},{"$f":"IF('1. Ordersheet'!M1109=\"\",\"\",'1. Ordersheet'!M1109)","v":""},null,null,{"$f":"'1. Ordersheet'!AR1109","v":0},{"$f":"IF('1. Ordersheet'!AE1109=\"\",\"\",'1. Ordersheet'!AE1109)","v":""}]
[{"$f":"IF('1. Ordersheet'!B1110=\"\",\"\",'1. Ordersheet'!B1110)","v":""},{"$f":"IF('1. Ordersheet'!I1110=\"\",\"\",'1. Ordersheet'!I1110)","v":""},{"$f":"IF('1. Ordersheet'!J1110=\"\",\"\",'1. Ordersheet'!J1110)","v":""},{"$f":"IF('1. Ordersheet'!K1110=\"\",\"\",'1. Ordersheet'!K1110)","v":""},{"$f":"IF('1. Ordersheet'!M1110=\"\",\"\",'1. Ordersheet'!M1110)","v":""},null,null,{"$f":"'1. Ordersheet'!AR1110","v":0},{"$f":"IF('1. Ordersheet'!AE1110=\"\",\"\",'1. Ordersheet'!AE1110)","v":""}]
[{"$f":"IF('1. Ordersheet'!B1111=\"\",\"\",'1. Ordersheet'!B1111)","v":""},{"$f":"IF('1. Ordersheet'!I1111=\"\",\"\",'1. Ordersheet'!I1111)","v":""},{"$f":"IF('1. Ordersheet'!J1111=\"\",\"\",'1. Ordersheet'!J1111)","v":""},{"$f":"IF('1. Ordersheet'!K1111=\"\",\"\",'1. Ordersheet'!K1111)","v":""},{"$f":"IF('1. Ordersheet'!M1111=\"\",\"\",'1. Ordersheet'!M1111)","v":""},null,null,{"$f":"'1. Ordersheet'!AR1111","v":0},{"$f":"IF('1. Ordersheet'!AE1111=\"\",\"\",'1. Ordersheet'!AE1111)","v":""}]
[{"$f":"IF('1. Ordersheet'!B1112=\"\",\"\",'1. Ordersheet'!B1112)","v":""},{"$f":"IF('1. Ordersheet'!I1112=\"\",\"\",'1. Ordersheet'!I1112)","v":""},{"$f":"IF('1. Ordersheet'!J1112=\"\",\"\",'1. Ordersheet'!J1112)","v":""},{"$f":"IF('1. Ordersheet'!K1112=\"\",\"\",'1. Ordersheet'!K1112)","v":""},{"$f":"IF('1. Ordersheet'!M1112=\"\",\"\",'1. Ordersheet'!M1112)","v":""},null,null,{"$f":"'1. Ordersheet'!AR1112","v":0},{"$f":"IF('1. Ordersheet'!AE1112=\"\",\"\",'1. Ordersheet'!AE1112)","v":""}]
[{"$f":"IF('1. Ordersheet'!B1113=\"\",\"\",'1. Ordersheet'!B1113)","v":""},{"$f":"IF('1. Ordersheet'!I1113=\"\",\"\",'1. Ordersheet'!I1113)","v":""},{"$f":"IF('1. Ordersheet'!J1113=\"\",\"\",'1. Ordersheet'!J1113)","v":""},{"$f":"IF('1. Ordersheet'!K1113=\"\",\"\",'1. Ordersheet'!K1113)","v":""},{"$f":"IF('1. Ordersheet'!M1113=\"\",\"\",'1. Ordersheet'!M1113)","v":""},null,null,{"$f":"'1. Ordersheet'!AR1113","v":0},{"$f":"IF('1. Ordersheet'!AE1113=\"\",\"\",'1. Ordersheet'!AE1113)","v":""}]
[{"$f":"IF('1. Ordersheet'!B1114=\"\",\"\",'1. Ordersheet'!B1114)","v":""},{"$f":"IF('1. Ordersheet'!I1114=\"\",\"\",'1. Ordersheet'!I1114)","v":""},{"$f":"IF('1. Ordersheet'!J1114=\"\",\"\",'1. Ordersheet'!J1114)","v":""},{"$f":"IF('1. Ordersheet'!K1114=\"\",\"\",'1. Ordersheet'!K1114)","v":""},{"$f":"IF('1. Ordersheet'!M1114=\"\",\"\",'1. Ordersheet'!M1114)","v":""},null,null,{"$f":"'1. Ordersheet'!AR1114","v":0},{"$f":"IF('1. Ordersheet'!AE1114=\"\",\"\",'1. Ordersheet'!AE1114)","v":""}]
[{"$f":"IF('1. Ordersheet'!B1115=\"\",\"\",'1. Ordersheet'!B1115)","v":""},{"$f":"IF('1. Ordersheet'!I1115=\"\",\"\",'1. Ordersheet'!I1115)","v":""},{"$f":"IF('1. Ordersheet'!J1115=\"\",\"\",'1. Ordersheet'!J1115)","v":""},{"$f":"IF('1. Ordersheet'!K1115=\"\",\"\",'1. Ordersheet'!K1115)","v":""},{"$f":"IF('1. Ordersheet'!M1115=\"\",\"\",'1. Ordersheet'!M1115)","v":""},null,null,{"$f":"'1. Ordersheet'!AR1115","v":0},{"$f":"IF('1. Ordersheet'!AE1115=\"\",\"\",'1. Ordersheet'!AE1115)","v":""}]
[{"$f":"IF('1. Ordersheet'!B1116=\"\",\"\",'1. Ordersheet'!B1116)","v":""},{"$f":"IF('1. Ordersheet'!I1116=\"\",\"\",'1. Ordersheet'!I1116)","v":""},{"$f":"IF('1. Ordersheet'!J1116=\"\",\"\",'1. Ordersheet'!J1116)","v":""},{"$f":"IF('1. Ordersheet'!K1116=\"\",\"\",'1. Ordersheet'!K1116)","v":""},{"$f":"IF('1. Ordersheet'!M1116=\"\",\"\",'1. Ordersheet'!M1116)","v":""},null,null,{"$f":"'1. Ordersheet'!AR1116","v":0},{"$f":"IF('1. Ordersheet'!AE1116=\"\",\"\",'1. Ordersheet'!AE1116)","v":""}]
[{"$f":"IF('1. Ordersheet'!B1117=\"\",\"\",'1. Ordersheet'!B1117)","v":""},{"$f":"IF('1. Ordersheet'!I1117=\"\",\"\",'1. Ordersheet'!I1117)","v":""},{"$f":"IF('1. Ordersheet'!J1117=\"\",\"\",'1. Ordersheet'!J1117)","v":""},{"$f":"IF('1. Ordersheet'!K1117=\"\",\"\",'1. Ordersheet'!K1117)","v":""},{"$f":"IF('1. Ordersheet'!M1117=\"\",\"\",'1. Ordersheet'!M1117)","v":""},null,null,{"$f":"'1. Ordersheet'!AR1117","v":0},{"$f":"IF('1. Ordersheet'!AE1117=\"\",\"\",'1. Ordersheet'!AE1117)","v":""}]
[{"$f":"IF('1. Ordersheet'!B1118=\"\",\"\",'1. Ordersheet'!B1118)","v":""},{"$f":"IF('1. Ordersheet'!I1118=\"\",\"\",'1. Ordersheet'!I1118)","v":""},{"$f":"IF('1. Ordersheet'!J1118=\"\",\"\",'1. Ordersheet'!J1118)","v":""},{"$f":"IF('1. Ordersheet'!K1118=\"\",\"\",'1. Ordersheet'!K1118)","v":""},{"$f":"IF('1. Ordersheet'!M1118=\"\",\"\",'1. Ordersheet'!M1118)","v":""},null,null,{"$f":"'1. Ordersheet'!AR1118","v":0},{"$f":"IF('1. Ordersheet'!AE1118=\"\",\"\",'1. Ordersheet'!AE1118)","v":""}]
[{"$f":"IF('1. Ordersheet'!B1119=\"\",\"\",'1. Ordersheet'!B1119)","v":""},{"$f":"IF('1. Ordersheet'!I1119=\"\",\"\",'1. Ordersheet'!I1119)","v":""},{"$f":"IF('1. Ordersheet'!J1119=\"\",\"\",'1. Ordersheet'!J1119)","v":""},{"$f":"IF('1. Ordersheet'!K1119=\"\",\"\",'1. Ordersheet'!K1119)","v":""},{"$f":"IF('1. Ordersheet'!M1119=\"\",\"\",'1. Ordersheet'!M1119)","v":""},null,null,{"$f":"'1. Ordersheet'!AR1119","v":0},{"$f":"IF('1. Ordersheet'!AE1119=\"\",\"\",'1. Ordersheet'!AE1119)","v":""}]
[{"$f":"IF('1. Ordersheet'!B1120=\"\",\"\",'1. Ordersheet'!B1120)","v":""},{"$f":"IF('1. Ordersheet'!I1120=\"\",\"\",'1. Ordersheet'!I1120)","v":""},{"$f":"IF('1. Ordersheet'!J1120=\"\",\"\",'1. Ordersheet'!J1120)","v":""},{"$f":"IF('1. Ordersheet'!K1120=\"\",\"\",'1. Ordersheet'!K1120)","v":""},{"$f":"IF('1. Ordersheet'!M1120=\"\",\"\",'1. Ordersheet'!M1120)","v":""},null,null,{"$f":"'1. Ordersheet'!AR1120","v":0},{"$f":"IF('1. Ordersheet'!AE1120=\"\",\"\",'1. Ordersheet'!AE1120)","v":""}]
[{"$f":"IF('1. Ordersheet'!B1121=\"\",\"\",'1. Ordersheet'!B1121)","v":""},{"$f":"IF('1. Ordersheet'!I1121=\"\",\"\",'1. Ordersheet'!I1121)","v":""},{"$f":"IF('1. Ordersheet'!J1121=\"\",\"\",'1. Ordersheet'!J1121)","v":""},{"$f":"IF('1. Ordersheet'!K1121=\"\",\"\",'1. Ordersheet'!K1121)","v":""},{"$f":"IF('1. Ordersheet'!M1121=\"\",\"\",'1. Ordersheet'!M1121)","v":""},null,null,{"$f":"'1. Ordersheet'!AR1121","v":0},{"$f":"IF('1. Ordersheet'!AE1121=\"\",\"\",'1. Ordersheet'!AE1121)","v":""}]
[{"$f":"IF('1. Ordersheet'!B1122=\"\",\"\",'1. Ordersheet'!B1122)","v":""},{"$f":"IF('1. Ordersheet'!I1122=\"\",\"\",'1. Ordersheet'!I1122)","v":""},{"$f":"IF('1. Ordersheet'!J1122=\"\",\"\",'1. Ordersheet'!J1122)","v":""},{"$f":"IF('1. Ordersheet'!K1122=\"\",\"\",'1. Ordersheet'!K1122)","v":""},{"$f":"IF('1. Ordersheet'!M1122=\"\",\"\",'1. Ordersheet'!M1122)","v":""},null,null,{"$f":"'1. Ordersheet'!AR1122","v":0},{"$f":"IF('1. Ordersheet'!AE1122=\"\",\"\",'1. Ordersheet'!AE1122)","v":""}]
[{"$f":"IF('1. Ordersheet'!B1123=\"\",\"\",'1. Ordersheet'!B1123)","v":""},{"$f":"IF('1. Ordersheet'!I1123=\"\",\"\",'1. Ordersheet'!I1123)","v":""},{"$f":"IF('1. Ordersheet'!J1123=\"\",\"\",'1. Ordersheet'!J1123)","v":""},{"$f":"IF('1. Ordersheet'!K1123=\"\",\"\",'1. Ordersheet'!K1123)","v":""},{"$f":"IF('1. Ordersheet'!M1123=\"\",\"\",'1. Ordersheet'!M1123)","v":""},null,null,{"$f":"'1. Ordersheet'!AR1123","v":0},{"$f":"IF('1. Ordersheet'!AE1123=\"\",\"\",'1. Ordersheet'!AE1123)","v":""}]
[{"$f":"IF('1. Ordersheet'!B1124=\"\",\"\",'1. Ordersheet'!B1124)","v":""},{"$f":"IF('1. Ordersheet'!I1124=\"\",\"\",'1. Ordersheet'!I1124)","v":""},{"$f":"IF('1. Ordersheet'!J1124=\"\",\"\",'1. Ordersheet'!J1124)","v":""},{"$f":"IF('1. Ordersheet'!K1124=\"\",\"\",'1. Ordersheet'!K1124)","v":""},{"$f":"IF('1. Ordersheet'!M1124=\"\",\"\",'1. Ordersheet'!M1124)","v":""},null,null,{"$f":"'1. Ordersheet'!AR1124","v":0},{"$f":"IF('1. Ordersheet'!AE1124=\"\",\"\",'1. Ordersheet'!AE1124)","v":""}]
[{"$f":"IF('1. Ordersheet'!B1125=\"\",\"\",'1. Ordersheet'!B1125)","v":""},{"$f":"IF('1. Ordersheet'!I1125=\"\",\"\",'1. Ordersheet'!I1125)","v":""},{"$f":"IF('1. Ordersheet'!J1125=\"\",\"\",'1. Ordersheet'!J1125)","v":""},{"$f":"IF('1. Ordersheet'!K1125=\"\",\"\",'1. Ordersheet'!K1125)","v":""},{"$f":"IF('1. Ordersheet'!M1125=\"\",\"\",'1. Ordersheet'!M1125)","v":""},null,null,{"$f":"'1. Ordersheet'!AR1125","v":0},{"$f":"IF('1. Ordersheet'!AE1125=\"\",\"\",'1. Ordersheet'!AE1125)","v":""}]
[{"$f":"IF('1. Ordersheet'!B1126=\"\",\"\",'1. Ordersheet'!B1126)","v":""},{"$f":"IF('1. Ordersheet'!I1126=\"\",\"\",'1. Ordersheet'!I1126)","v":""},{"$f":"IF('1. Ordersheet'!J1126=\"\",\"\",'1. Ordersheet'!J1126)","v":""},{"$f":"IF('1. Ordersheet'!K1126=\"\",\"\",'1. Ordersheet'!K1126)","v":""},{"$f":"IF('1. Ordersheet'!M1126=\"\",\"\",'1. Ordersheet'!M1126)","v":""},null,null,{"$f":"'1. Ordersheet'!AR1126","v":0},{"$f":"IF('1. Ordersheet'!AE1126=\"\",\"\",'1. Ordersheet'!AE1126)","v":""}]
[{"$f":"IF('1. Ordersheet'!B1127=\"\",\"\",'1. Ordersheet'!B1127)","v":""},{"$f":"IF('1. Ordersheet'!I1127=\"\",\"\",'1. Ordersheet'!I1127)","v":""},{"$f":"IF('1. Ordersheet'!J1127=\"\",\"\",'1. Ordersheet'!J1127)","v":""},{"$f":"IF('1. Ordersheet'!K1127=\"\",\"\",'1. Ordersheet'!K1127)","v":""},{"$f":"IF('1. Ordersheet'!M1127=\"\",\"\",'1. Ordersheet'!M1127)","v":""},null,null,{"$f":"'1. Ordersheet'!AR1127","v":0},{"$f":"IF('1. Ordersheet'!AE1127=\"\",\"\",'1. Ordersheet'!AE1127)","v":""}]
[{"$f":"IF('1. Ordersheet'!B1128=\"\",\"\",'1. Ordersheet'!B1128)","v":""},{"$f":"IF('1. Ordersheet'!I1128=\"\",\"\",'1. Ordersheet'!I1128)","v":""},{"$f":"IF('1. Ordersheet'!J1128=\"\",\"\",'1. Ordersheet'!J1128)","v":""},{"$f":"IF('1. Ordersheet'!K1128=\"\",\"\",'1. Ordersheet'!K1128)","v":""},{"$f":"IF('1. Ordersheet'!M1128=\"\",\"\",'1. Ordersheet'!M1128)","v":""},null,null,{"$f":"'1. Ordersheet'!AR1128","v":0},{"$f":"IF('1. Ordersheet'!AE1128=\"\",\"\",'1. Ordersheet'!AE1128)","v":""}]
[{"$f":"IF('1. Ordersheet'!B1129=\"\",\"\",'1. Ordersheet'!B1129)","v":""},{"$f":"IF('1. Ordersheet'!I1129=\"\",\"\",'1. Ordersheet'!I1129)","v":""},{"$f":"IF('1. Ordersheet'!J1129=\"\",\"\",'1. Ordersheet'!J1129)","v":""},{"$f":"IF('1. Ordersheet'!K1129=\"\",\"\",'1. Ordersheet'!K1129)","v":""},{"$f":"IF('1. Ordersheet'!M1129=\"\",\"\",'1. Ordersheet'!M1129)","v":""},null,null,{"$f":"'1. Ordersheet'!AR1129","v":0},{"$f":"IF('1. Ordersheet'!AE1129=\"\",\"\",'1. Ordersheet'!AE1129)","v":""}]
[{"$f":"IF('1. Ordersheet'!B1130=\"\",\"\",'1. Ordersheet'!B1130)","v":""},{"$f":"IF('1. Ordersheet'!I1130=\"\",\"\",'1. Ordersheet'!I1130)","v":""},{"$f":"IF('1. Ordersheet'!J1130=\"\",\"\",'1. Ordersheet'!J1130)","v":""},{"$f":"IF('1. Ordersheet'!K1130=\"\",\"\",'1. Ordersheet'!K1130)","v":""},{"$f":"IF('1. Ordersheet'!M1130=\"\",\"\",'1. Ordersheet'!M1130)","v":""},null,null,{"$f":"'1. Ordersheet'!AR1130","v":0},{"$f":"IF('1. Ordersheet'!AE1130=\"\",\"\",'1. Ordersheet'!AE1130)","v":""}]
[{"$f":"IF('1. Ordersheet'!B1131=\"\",\"\",'1. Ordersheet'!B1131)","v":""},{"$f":"IF('1. Ordersheet'!I1131=\"\",\"\",'1. Ordersheet'!I1131)","v":""},{"$f":"IF('1. Ordersheet'!J1131=\"\",\"\",'1. Ordersheet'!J1131)","v":""},{"$f":"IF('1. Ordersheet'!K1131=\"\",\"\",'1. Ordersheet'!K1131)","v":""},{"$f":"IF('1. Ordersheet'!M1131=\"\",\"\",'1. Ordersheet'!M1131)","v":""},null,null,{"$f":"'1. Ordersheet'!AR1131","v":0},{"$f":"IF('1. Ordersheet'!AE1131=\"\",\"\",'1. Ordersheet'!AE1131)","v":""}]
[{"$f":"IF('1. Ordersheet'!B1132=\"\",\"\",'1. Ordersheet'!B1132)","v":""},{"$f":"IF('1. Ordersheet'!I1132=\"\",\"\",'1. Ordersheet'!I1132)","v":""},{"$f":"IF('1. Ordersheet'!J1132=\"\",\"\",'1. Ordersheet'!J1132)","v":""},{"$f":"IF('1. Ordersheet'!K1132=\"\",\"\",'1. Ordersheet'!K1132)","v":""},{"$f":"IF('1. Ordersheet'!M1132=\"\",\"\",'1. Ordersheet'!M1132)","v":""},null,null,{"$f":"'1. Ordersheet'!AR1132","v":0},{"$f":"IF('1. Ordersheet'!AE1132=\"\",\"\",'1. Ordersheet'!AE1132)","v":""}]
[{"$f":"IF('1. Ordersheet'!B1133=\"\",\"\",'1. Ordersheet'!B1133)","v":""},{"$f":"IF('1. Ordersheet'!I1133=\"\",\"\",'1. Ordersheet'!I1133)","v":""},{"$f":"IF('1. Ordersheet'!J1133=\"\",\"\",'1. Ordersheet'!J1133)","v":""},{"$f":"IF('1. Ordersheet'!K1133=\"\",\"\",'1. Ordersheet'!K1133)","v":""},{"$f":"IF('1. Ordersheet'!M1133=\"\",\"\",'1. Ordersheet'!M1133)","v":""},null,null,{"$f":"'1. Ordersheet'!AR1133","v":0},{"$f":"IF('1. Ordersheet'!AE1133=\"\",\"\",'1. Ordersheet'!AE1133)","v":""}]
[{"$f":"IF('1. Ordersheet'!B1134=\"\",\"\",'1. Ordersheet'!B1134)","v":""},{"$f":"IF('1. Ordersheet'!I1134=\"\",\"\",'1. Ordersheet'!I1134)","v":""},{"$f":"IF('1. Ordersheet'!J1134=\"\",\"\",'1. Ordersheet'!J1134)","v":""},{"$f":"IF('1. Ordersheet'!K1134=\"\",\"\",'1. Ordersheet'!K1134)","v":""},{"$f":"IF('1. Ordersheet'!M1134=\"\",\"\",'1. Ordersheet'!M1134)","v":""},null,null,{"$f":"'1. Ordersheet'!AR1134","v":0},{"$f":"IF('1. Ordersheet'!AE1134=\"\",\"\",'1. Ordersheet'!AE1134)","v":""}]
[{"$f":"IF('1. Ordersheet'!B1135=\"\",\"\",'1. Ordersheet'!B1135)","v":""},{"$f":"IF('1. Ordersheet'!I1135=\"\",\"\",'1. Ordersheet'!I1135)","v":""},{"$f":"IF('1. Ordersheet'!J1135=\"\",\"\",'1. Ordersheet'!J1135)","v":""},{"$f":"IF('1. Ordersheet'!K1135=\"\",\"\",'1. Ordersheet'!K1135)","v":""},{"$f":"IF('1. Ordersheet'!M1135=\"\",\"\",'1. Ordersheet'!M1135)","v":""},null,null,{"$f":"'1. Ordersheet'!AR1135","v":0},{"$f":"IF('1. Ordersheet'!AE1135=\"\",\"\",'1. Ordersheet'!AE1135)","v":""}]
[{"$f":"IF('1. Ordersheet'!B1136=\"\",\"\",'1. Ordersheet'!B1136)","v":""},{"$f":"IF('1. Ordersheet'!I1136=\"\",\"\",'1. Ordersheet'!I1136)","v":""},{"$f":"IF('1. Ordersheet'!J1136=\"\",\"\",'1. Ordersheet'!J1136)","v":""},{"$f":"IF('1. Ordersheet'!K1136=\"\",\"\",'1. Ordersheet'!K1136)","v":""},{"$f":"IF('1. Ordersheet'!M1136=\"\",\"\",'1. Ordersheet'!M1136)","v":""},null,null,{"$f":"'1. Ordersheet'!AR1136","v":0},{"$f":"IF('1. Ordersheet'!AE1136=\"\",\"\",'1. Ordersheet'!AE1136)","v":""}]
[{"$f":"IF('1. Ordersheet'!B1137=\"\",\"\",'1. Ordersheet'!B1137)","v":""},{"$f":"IF('1. Ordersheet'!I1137=\"\",\"\",'1. Ordersheet'!I1137)","v":""},{"$f":"IF('1. Ordersheet'!J1137=\"\",\"\",'1. Ordersheet'!J1137)","v":""},{"$f":"IF('1. Ordersheet'!K1137=\"\",\"\",'1. Ordersheet'!K1137)","v":""},{"$f":"IF('1. Ordersheet'!M1137=\"\",\"\",'1. Ordersheet'!M1137)","v":""},null,null,{"$f":"'1. Ordersheet'!AR1137","v":0},{"$f":"IF('1. Ordersheet'!AE1137=\"\",\"\",'1. Ordersheet'!AE1137)","v":""}]
[{"$f":"IF('1. Ordersheet'!B1138=\"\",\"\",'1. Ordersheet'!B1138)","v":""},{"$f":"IF('1. Ordersheet'!I1138=\"\",\"\",'1. Ordersheet'!I1138)","v":""},{"$f":"IF('1. Ordersheet'!J1138=\"\",\"\",'1. Ordersheet'!J1138)","v":""},{"$f":"IF('1. Ordersheet'!K1138=\"\",\"\",'1. Ordersheet'!K1138)","v":""},{"$f":"IF('1. Ordersheet'!M1138=\"\",\"\",'1. Ordersheet'!M1138)","v":""},null,null,{"$f":"'1. Ordersheet'!AR1138","v":0},{"$f":"IF('1. Ordersheet'!AE1138=\"\",\"\",'1. Ordersheet'!AE1138)","v":""}]
[{"$f":"IF('1. Ordersheet'!B1139=\"\",\"\",'1. Ordersheet'!B1139)","v":""},{"$f":"IF('1. Ordersheet'!I1139=\"\",\"\",'1. Ordersheet'!I1139)","v":""},{"$f":"IF('1. Ordersheet'!J1139=\"\",\"\",'1. Ordersheet'!J1139)","v":""},{"$f":"IF('1. Ordersheet'!K1139=\"\",\"\",'1. Ordersheet'!K1139)","v":""},{"$f":"IF('1. Ordersheet'!M1139=\"\",\"\",'1. Ordersheet'!M1139)","v":""},null,null,{"$f":"'1. Ordersheet'!AR1139","v":0},{"$f":"IF('1. Ordersheet'!AE1139=\"\",\"\",'1. Ordersheet'!AE1139)","v":""}]
[{"$f":"IF('1. Ordersheet'!B1140=\"\",\"\",'1. Ordersheet'!B1140)","v":""},{"$f":"IF('1. Ordersheet'!I1140=\"\",\"\",'1. Ordersheet'!I1140)","v":""},{"$f":"IF('1. Ordersheet'!J1140=\"\",\"\",'1. Ordersheet'!J1140)","v":""},{"$f":"IF('1. Ordersheet'!K1140=\"\",\"\",'1. Ordersheet'!K1140)","v":""},{"$f":"IF('1. Ordersheet'!M1140=\"\",\"\",'1. Ordersheet'!M1140)","v":""},null,null,{"$f":"'1. Ordersheet'!AR1140","v":0},{"$f":"IF('1. Ordersheet'!AE1140=\"\",\"\",'1. Ordersheet'!AE1140)","v":""}]
[{"$f":"IF('1. Ordersheet'!B1141=\"\",\"\",'1. Ordersheet'!B1141)","v":""},{"$f":"IF('1. Ordersheet'!I1141=\"\",\"\",'1. Ordersheet'!I1141)","v":""},{"$f":"IF('1. Ordersheet'!J1141=\"\",\"\",'1. Ordersheet'!J1141)","v":""},{"$f":"IF('1. Ordersheet'!K1141=\"\",\"\",'1. Ordersheet'!K1141)","v":""},{"$f":"IF('1. Ordersheet'!M1141=\"\",\"\",'1. Ordersheet'!M1141)","v":""},null,null,{"$f":"'1. Ordersheet'!AR1141","v":0},{"$f":"IF('1. Ordersheet'!AE1141=\"\",\"\",'1. Ordersheet'!AE1141)","v":""}]
[{"$f":"IF('1. Ordersheet'!B1142=\"\",\"\",'1. Ordersheet'!B1142)","v":""},{"$f":"IF('1. Ordersheet'!I1142=\"\",\"\",'1. Ordersheet'!I1142)","v":""},{"$f":"IF('1. Ordersheet'!J1142=\"\",\"\",'1. Ordersheet'!J1142)","v":""},{"$f":"IF('1. Ordersheet'!K1142=\"\",\"\",'1. Ordersheet'!K1142)","v":""},{"$f":"IF('1. Ordersheet'!M1142=\"\",\"\",'1. Ordersheet'!M1142)","v":""},null,null,{"$f":"'1. Ordersheet'!AR1142","v":0},{"$f":"IF('1. Ordersheet'!AE1142=\"\",\"\",'1. Ordersheet'!AE1142)","v":""}]
[{"$f":"IF('1. Ordersheet'!B1143=\"\",\"\",'1. Ordersheet'!B1143)","v":""},{"$f":"IF('1. Ordersheet'!I1143=\"\",\"\",'1. Ordersheet'!I1143)","v":""},{"$f":"IF('1. Ordersheet'!J1143=\"\",\"\",'1. Ordersheet'!J1143)","v":""},{"$f":"IF('1. Ordersheet'!K1143=\"\",\"\",'1. Ordersheet'!K1143)","v":""},{"$f":"IF('1. Ordersheet'!M1143=\"\",\"\",'1. Ordersheet'!M1143)","v":""},null,null,{"$f":"'1. Ordersheet'!AR1143","v":0},{"$f":"IF('1. Ordersheet'!AE1143=\"\",\"\",'1. Ordersheet'!AE1143)","v":""}]
[{"$f":"IF('1. Ordersheet'!B1144=\"\",\"\",'1. Ordersheet'!B1144)","v":""},{"$f":"IF('1. Ordersheet'!I1144=\"\",\"\",'1. Ordersheet'!I1144)","v":""},{"$f":"IF('1. Ordersheet'!J1144=\"\",\"\",'1. Ordersheet'!J1144)","v":""},{"$f":"IF('1. Ordersheet'!K1144=\"\",\"\",'1. Ordersheet'!K1144)","v":""},{"$f":"IF('1. Ordersheet'!M1144=\"\",\"\",'1. Ordersheet'!M1144)","v":""},null,null,{"$f":"'1. Ordersheet'!AR1144","v":0},{"$f":"IF('1. Ordersheet'!AE1144=\"\",\"\",'1. Ordersheet'!AE1144)","v":""}]
[{"$f":"IF('1. Ordersheet'!B1145=\"\",\"\",'1. Ordersheet'!B1145)","v":""},{"$f":"IF('1. Ordersheet'!I1145=\"\",\"\",'1. Ordersheet'!I1145)","v":""},{"$f":"IF('1. Ordersheet'!J1145=\"\",\"\",'1. Ordersheet'!J1145)","v":""},{"$f":"IF('1. Ordersheet'!K1145=\"\",\"\",'1. Ordersheet'!K1145)","v":""},{"$f":"IF('1. Ordersheet'!M1145=\"\",\"\",'1. Ordersheet'!M1145)","v":""},null,null,{"$f":"'1. Ordersheet'!AR1145","v":0},{"$f":"IF('1. Ordersheet'!AE1145=\"\",\"\",'1. Ordersheet'!AE1145)","v":""}]
[{"$f":"IF('1. Ordersheet'!B1146=\"\",\"\",'1. Ordersheet'!B1146)","v":""},{"$f":"IF('1. Ordersheet'!I1146=\"\",\"\",'1. Ordersheet'!I1146)","v":""},{"$f":"IF('1. Ordersheet'!J1146=\"\",\"\",'1. Ordersheet'!J1146)","v":""},{"$f":"IF('1. Ordersheet'!K1146=\"\",\"\",'1. Ordersheet'!K1146)","v":""},{"$f":"IF('1. Ordersheet'!M1146=\"\",\"\",'1. Ordersheet'!M1146)","v":""},null,null,{"$f":"'1. Ordersheet'!AR1146","v":0},{"$f":"IF('1. Ordersheet'!AE1146=\"\",\"\",'1. Ordersheet'!AE1146)","v":""}]
[{"$f":"IF('1. Ordersheet'!B1147=\"\",\"\",'1. Ordersheet'!B1147)","v":""},{"$f":"IF('1. Ordersheet'!I1147=\"\",\"\",'1. Ordersheet'!I1147)","v":""},{"$f":"IF('1. Ordersheet'!J1147=\"\",\"\",'1. Ordersheet'!J1147)","v":""},{"$f":"IF('1. Ordersheet'!K1147=\"\",\"\",'1. Ordersheet'!K1147)","v":""},{"$f":"IF('1. Ordersheet'!M1147=\"\",\"\",'1. Ordersheet'!M1147)","v":""},null,null,{"$f":"'1. Ordersheet'!AR1147","v":0},{"$f":"IF('1. Ordersheet'!AE1147=\"\",\"\",'1. Ordersheet'!AE1147)","v":""}]
[{"$f":"IF('1. Ordersheet'!B1148=\"\",\"\",'1. Ordersheet'!B1148)","v":""},{"$f":"IF('1. Ordersheet'!I1148=\"\",\"\",'1. Ordersheet'!I1148)","v":""},{"$f":"IF('1. Ordersheet'!J1148=\"\",\"\",'1. Ordersheet'!J1148)","v":""},{"$f":"IF('1. Ordersheet'!K1148=\"\",\"\",'1. Ordersheet'!K1148)","v":""},{"$f":"IF('1. Ordersheet'!M1148=\"\",\"\",'1. Ordersheet'!M1148)","v":""},null,null,{"$f":"'1. Ordersheet'!AR1148","v":0},{"$f":"IF('1. Ordersheet'!AE1148=\"\",\"\",'1. Ordersheet'!AE1148)","v":""}]
[{"$f":"IF('1. Ordersheet'!B1149=\"\",\"\",'1. Ordersheet'!B1149)","v":""},{"$f":"IF('1. Ordersheet'!I1149=\"\",\"\",'1. Ordersheet'!I1149)","v":""},{"$f":"IF('1. Ordersheet'!J1149=\"\",\"\",'1. Ordersheet'!J1149)","v":""},{"$f":"IF('1. Ordersheet'!K1149=\"\",\"\",'1. Ordersheet'!K1149)","v":""},{"$f":"IF('1. Ordersheet'!M1149=\"\",\"\",'1. Ordersheet'!M1149)","v":""},null,null,{"$f":"'1. Ordersheet'!AR1149","v":0},{"$f":"IF('1. Ordersheet'!AE1149=\"\",\"\",'1. Ordersheet'!AE1149)","v":""}]
[{"$f":"IF('1. Ordersheet'!B1150=\"\",\"\",'1. Ordersheet'!B1150)","v":""},{"$f":"IF('1. Ordersheet'!I1150=\"\",\"\",'1. Ordersheet'!I1150)","v":""},{"$f":"IF('1. Ordersheet'!J1150=\"\",\"\",'1. Ordersheet'!J1150)","v":""},{"$f":"IF('1. Ordersheet'!K1150=\"\",\"\",'1. Ordersheet'!K1150)","v":""},{"$f":"IF('1. Ordersheet'!M1150=\"\",\"\",'1. Ordersheet'!M1150)","v":""},null,null,{"$f":"'1. Ordersheet'!AR1150","v":0},{"$f":"IF('1. Ordersheet'!AE1150=\"\",\"\",'1. Ordersheet'!AE1150)","v":""}]
[{"$f":"IF('1. Ordersheet'!B1151=\"\",\"\",'1. Ordersheet'!B1151)","v":""},{"$f":"IF('1. Ordersheet'!I1151=\"\",\"\",'1. Ordersheet'!I1151)","v":""},{"$f":"IF('1. Ordersheet'!J1151=\"\",\"\",'1. Ordersheet'!J1151)","v":""},{"$f":"IF('1. Ordersheet'!K1151=\"\",\"\",'1. Ordersheet'!K1151)","v":""},{"$f":"IF('1. Ordersheet'!M1151=\"\",\"\",'1. Ordersheet'!M1151)","v":""},null,null,{"$f":"'1. Ordersheet'!AR1151","v":0},{"$f":"IF('1. Ordersheet'!AE1151=\"\",\"\",'1. Ordersheet'!AE1151)","v":""}]
[{"$f":"IF('1. Ordersheet'!B1152=\"\",\"\",'1. Ordersheet'!B1152)","v":""},{"$f":"IF('1. Ordersheet'!I1152=\"\",\"\",'1. Ordersheet'!I1152)","v":""},{"$f":"IF('1. Ordersheet'!J1152=\"\",\"\",'1. Ordersheet'!J1152)","v":""},{"$f":"IF('1. Ordersheet'!K1152=\"\",\"\",'1. Ordersheet'!K1152)","v":""},{"$f":"IF('1. Ordersheet'!M1152=\"\",\"\",'1. Ordersheet'!M1152)","v":""},null,null,{"$f":"'1. Ordersheet'!AR1152","v":0},{"$f":"IF('1. Ordersheet'!AE1152=\"\",\"\",'1. Ordersheet'!AE1152)","v":""}]
[{"$f":"IF('1. Ordersheet'!B1153=\"\",\"\",'1. Ordersheet'!B1153)","v":""},{"$f":"IF('1. Ordersheet'!I1153=\"\",\"\",'1. Ordersheet'!I1153)","v":""},{"$f":"IF('1. Ordersheet'!J1153=\"\",\"\",'1. Ordersheet'!J1153)","v":""},{"$f":"IF('1. Ordersheet'!K1153=\"\",\"\",'1. Ordersheet'!K1153)","v":""},{"$f":"IF('1. Ordersheet'!M1153=\"\",\"\",'1. Ordersheet'!M1153)","v":""},null,null,{"$f":"'1. Ordersheet'!AR1153","v":0},{"$f":"IF('1. Ordersheet'!AE1153=\"\",\"\",'1. Ordersheet'!AE1153)","v":""}]
[{"$f":"IF('1. Ordersheet'!B1154=\"\",\"\",'1. Ordersheet'!B1154)","v":""},{"$f":"IF('1. Ordersheet'!I1154=\"\",\"\",'1. Ordersheet'!I1154)","v":""},{"$f":"IF('1. Ordersheet'!J1154=\"\",\"\",'1. Ordersheet'!J1154)","v":""},{"$f":"IF('1. Ordersheet'!K1154=\"\",\"\",'1. Ordersheet'!K1154)","v":""},{"$f":"IF('1. Ordersheet'!M1154=\"\",\"\",'1. Ordersheet'!M1154)","v":""},null,null,{"$f":"'1. Ordersheet'!AR1154","v":0},{"$f":"IF('1. Ordersheet'!AE1154=\"\",\"\",'1. Ordersheet'!AE1154)","v":""}]
[{"$f":"IF('1. Ordersheet'!B1155=\"\",\"\",'1. Ordersheet'!B1155)","v":""},{"$f":"IF('1. Ordersheet'!I1155=\"\",\"\",'1. Ordersheet'!I1155)","v":""},{"$f":"IF('1. Ordersheet'!J1155=\"\",\"\",'1. Ordersheet'!J1155)","v":""},{"$f":"IF('1. Ordersheet'!K1155=\"\",\"\",'1. Ordersheet'!K1155)","v":""},{"$f":"IF('1. Ordersheet'!M1155=\"\",\"\",'1. Ordersheet'!M1155)","v":""},null,null,{"$f":"'1. Ordersheet'!AR1155","v":0},{"$f":"IF('1. Ordersheet'!AE1155=\"\",\"\",'1. Ordersheet'!AE1155)","v":""}]
[{"$f":"IF('1. Ordersheet'!B1156=\"\",\"\",'1. Ordersheet'!B1156)","v":""},{"$f":"IF('1. Ordersheet'!I1156=\"\",\"\",'1. Ordersheet'!I1156)","v":""},{"$f":"IF('1. Ordersheet'!J1156=\"\",\"\",'1. Ordersheet'!J1156)","v":""},{"$f":"IF('1. Ordersheet'!K1156=\"\",\"\",'1. Ordersheet'!K1156)","v":""},{"$f":"IF('1. Ordersheet'!M1156=\"\",\"\",'1. Ordersheet'!M1156)","v":""},null,null,{"$f":"'1. Ordersheet'!AR1156","v":0},{"$f":"IF('1. Ordersheet'!AE1156=\"\",\"\",'1. Ordersheet'!AE1156)","v":""}]
[{"$f":"IF('1. Ordersheet'!B1157=\"\",\"\",'1. Ordersheet'!B1157)","v":""},{"$f":"IF('1. Ordersheet'!I1157=\"\",\"\",'1. Ordersheet'!I1157)","v":""},{"$f":"IF('1. Ordersheet'!J1157=\"\",\"\",'1. Ordersheet'!J1157)","v":""},{"$f":"IF('1. Ordersheet'!K1157=\"\",\"\",'1. Ordersheet'!K1157)","v":""},{"$f":"IF('1. Ordersheet'!M1157=\"\",\"\",'1. Ordersheet'!M1157)","v":""},null,null,{"$f":"'1. Ordersheet'!AR1157","v":0},{"$f":"IF('1. Ordersheet'!AE1157=\"\",\"\",'1. Ordersheet'!AE1157)","v":""}]
[{"$f":"IF('1. Ordersheet'!B1158=\"\",\"\",'1. Ordersheet'!B1158)","v":""},{"$f":"IF('1. Ordersheet'!I1158=\"\",\"\",'1. Ordersheet'!I1158)","v":""},{"$f":"IF('1. Ordersheet'!J1158=\"\",\"\",'1. Ordersheet'!J1158)","v":""},{"$f":"IF('1. Ordersheet'!K1158=\"\",\"\",'1. Ordersheet'!K1158)","v":""},{"$f":"IF('1. Ordersheet'!M1158=\"\",\"\",'1. Ordersheet'!M1158)","v":""},null,null,{"$f":"'1. Ordersheet'!AR1158","v":0},{"$f":"IF('1. Ordersheet'!AE1158=\"\",\"\",'1. Ordersheet'!AE1158)","v":""}]
[{"$f":"IF('1. Ordersheet'!B1159=\"\",\"\",'1. Ordersheet'!B1159)","v":""},{"$f":"IF('1. Ordersheet'!I1159=\"\",\"\",'1. Ordersheet'!I1159)","v":""},{"$f":"IF('1. Ordersheet'!J1159=\"\",\"\",'1. Ordersheet'!J1159)","v":""},{"$f":"IF('1. Ordersheet'!K1159=\"\",\"\",'1. Ordersheet'!K1159)","v":""},{"$f":"IF('1. Ordersheet'!M1159=\"\",\"\",'1. Ordersheet'!M1159)","v":""},null,null,{"$f":"'1. Ordersheet'!AR1159","v":0},{"$f":"IF('1. Ordersheet'!AE1159=\"\",\"\",'1. Ordersheet'!AE1159)","v":""}]
[{"$f":"IF('1. Ordersheet'!B1160=\"\",\"\",'1. Ordersheet'!B1160)","v":""},{"$f":"IF('1. Ordersheet'!I1160=\"\",\"\",'1. Ordersheet'!I1160)","v":""},{"$f":"IF('1. Ordersheet'!J1160=\"\",\"\",'1. Ordersheet'!J1160)","v":""},{"$f":"IF('1. Ordersheet'!K1160=\"\",\"\",'1. Ordersheet'!K1160)","v":""},{"$f":"IF('1. Ordersheet'!M1160=\"\",\"\",'1. Ordersheet'!M1160)","v":""},null,null,{"$f":"'1. Ordersheet'!AR1160","v":0},{"$f":"IF('1. Ordersheet'!AE1160=\"\",\"\",'1. Ordersheet'!AE1160)","v":""}]
[{"$f":"IF('1. Ordersheet'!B1161=\"\",\"\",'1. Ordersheet'!B1161)","v":""},{"$f":"IF('1. Ordersheet'!I1161=\"\",\"\",'1. Ordersheet'!I1161)","v":""},{"$f":"IF('1. Ordersheet'!J1161=\"\",\"\",'1. Ordersheet'!J1161)","v":""},{"$f":"IF('1. Ordersheet'!K1161=\"\",\"\",'1. Ordersheet'!K1161)","v":""},{"$f":"IF('1. Ordersheet'!M1161=\"\",\"\",'1. Ordersheet'!M1161)","v":""},null,null,{"$f":"'1. Ordersheet'!AR1161","v":0},{"$f":"IF('1. Ordersheet'!AE1161=\"\",\"\",'1. Ordersheet'!AE1161)","v":""}]
[{"$f":"IF('1. Ordersheet'!B1162=\"\",\"\",'1. Ordersheet'!B1162)","v":""},{"$f":"IF('1. Ordersheet'!I1162=\"\",\"\",'1. Ordersheet'!I1162)","v":""},{"$f":"IF('1. Ordersheet'!J1162=\"\",\"\",'1. Ordersheet'!J1162)","v":""},{"$f":"IF('1. Ordersheet'!K1162=\"\",\"\",'1. Ordersheet'!K1162)","v":""},{"$f":"IF('1. Ordersheet'!M1162=\"\",\"\",'1. Ordersheet'!M1162)","v":""},null,null,{"$f":"'1. Ordersheet'!AR1162","v":0},{"$f":"IF('1. Ordersheet'!AE1162=\"\",\"\",'1. Ordersheet'!AE1162)","v":""}]
[{"$f":"IF('1. Ordersheet'!B1163=\"\",\"\",'1. Ordersheet'!B1163)","v":""},{"$f":"IF('1. Ordersheet'!I1163=\"\",\"\",'1. Ordersheet'!I1163)","v":""},{"$f":"IF('1. Ordersheet'!J1163=\"\",\"\",'1. Ordersheet'!J1163)","v":""},{"$f":"IF('1. Ordersheet'!K1163=\"\",\"\",'1. Ordersheet'!K1163)","v":""},{"$f":"IF('1. Ordersheet'!M1163=\"\",\"\",'1. Ordersheet'!M1163)","v":""},null,null,{"$f":"'1. Ordersheet'!AR1163","v":0},{"$f":"IF('1. Ordersheet'!AE1163=\"\",\"\",'1. Ordersheet'!AE1163)","v":""}]
[{"$f":"IF('1. Ordersheet'!B1164=\"\",\"\",'1. Ordersheet'!B1164)","v":""},{"$f":"IF('1. Ordersheet'!I1164=\"\",\"\",'1. Ordersheet'!I1164)","v":""},{"$f":"IF('1. Ordersheet'!J1164=\"\",\"\",'1. Ordersheet'!J1164)","v":""},{"$f":"IF('1. Ordersheet'!K1164=\"\",\"\",'1. Ordersheet'!K1164)","v":""},{"$f":"IF('1. Ordersheet'!M1164=\"\",\"\",'1. Ordersheet'!M1164)","v":""},null,null,{"$f":"'1. Ordersheet'!AR1164","v":0},{"$f":"IF('1. Ordersheet'!AE1164=\"\",\"\",'1. Ordersheet'!AE1164)","v":""}]
[{"$f":"IF('1. Ordersheet'!B1165=\"\",\"\",'1. Ordersheet'!B1165)","v":""},{"$f":"IF('1. Ordersheet'!I1165=\"\",\"\",'1. Ordersheet'!I1165)","v":""},{"$f":"IF('1. Ordersheet'!J1165=\"\",\"\",'1. Ordersheet'!J1165)","v":""},{"$f":"IF('1. Ordersheet'!K1165=\"\",\"\",'1. Ordersheet'!K1165)","v":""},{"$f":"IF('1. Ordersheet'!M1165=\"\",\"\",'1. Ordersheet'!M1165)","v":""},null,null,{"$f":"'1. Ordersheet'!AR1165","v":0},{"$f":"IF('1. Ordersheet'!AE1165=\"\",\"\",'1. Ordersheet'!AE1165)","v":""}]
[{"$f":"IF('1. Ordersheet'!B1166=\"\",\"\",'1. Ordersheet'!B1166)","v":""},{"$f":"IF('1. Ordersheet'!I1166=\"\",\"\",'1. Ordersheet'!I1166)","v":""},{"$f":"IF('1. Ordersheet'!J1166=\"\",\"\",'1. Ordersheet'!J1166)","v":""},{"$f":"IF('1. Ordersheet'!K1166=\"\",\"\",'1. Ordersheet'!K1166)","v":""},{"$f":"IF('1. Ordersheet'!M1166=\"\",\"\",'1. Ordersheet'!M1166)","v":""},null,null,{"$f":"'1. Ordersheet'!AR1166","v":0},{"$f":"IF('1. Ordersheet'!AE1166=\"\",\"\",'1. Ordersheet'!AE1166)","v":""}]
[{"$f":"IF('1. Ordersheet'!B1167=\"\",\"\",'1. Ordersheet'!B1167)","v":""},{"$f":"IF('1. Ordersheet'!I1167=\"\",\"\",'1. Ordersheet'!I1167)","v":""},{"$f":"IF('1. Ordersheet'!J1167=\"\",\"\",'1. Ordersheet'!J1167)","v":""},{"$f":"IF('1. Ordersheet'!K1167=\"\",\"\",'1. Ordersheet'!K1167)","v":""},{"$f":"IF('1. Ordersheet'!M1167=\"\",\"\",'1. Ordersheet'!M1167)","v":""},null,null,{"$f":"'1. Ordersheet'!AR1167","v":0},{"$f":"IF('1. Ordersheet'!AE1167=\"\",\"\",'1. Ordersheet'!AE1167)","v":""}]
[{"$f":"IF('1. Ordersheet'!B1168=\"\",\"\",'1. Ordersheet'!B1168)","v":""},{"$f":"IF('1. Ordersheet'!I1168=\"\",\"\",'1. Ordersheet'!I1168)","v":""},{"$f":"IF('1. Ordersheet'!J1168=\"\",\"\",'1. Ordersheet'!J1168)","v":""},{"$f":"IF('1. Ordersheet'!K1168=\"\",\"\",'1. Ordersheet'!K1168)","v":""},{"$f":"IF('1. Ordersheet'!M1168=\"\",\"\",'1. Ordersheet'!M1168)","v":""},null,null,{"$f":"'1. Ordersheet'!AR1168","v":0},{"$f":"IF('1. Ordersheet'!AE1168=\"\",\"\",'1. Ordersheet'!AE1168)","v":""}]
[{"$f":"IF('1. Ordersheet'!B1169=\"\",\"\",'1. Ordersheet'!B1169)","v":""},{"$f":"IF('1. Ordersheet'!I1169=\"\",\"\",'1. Ordersheet'!I1169)","v":""},{"$f":"IF('1. Ordersheet'!J1169=\"\",\"\",'1. Ordersheet'!J1169)","v":""},{"$f":"IF('1. Ordersheet'!K1169=\"\",\"\",'1. Ordersheet'!K1169)","v":""},{"$f":"IF('1. Ordersheet'!M1169=\"\",\"\",'1. Ordersheet'!M1169)","v":""},null,null,{"$f":"'1. Ordersheet'!AR1169","v":0},{"$f":"IF('1. Ordersheet'!AE1169=\"\",\"\",'1. Ordersheet'!AE1169)","v":""}]
[{"$f":"IF('1. Ordersheet'!B1170=\"\",\"\",'1. Ordersheet'!B1170)","v":""},{"$f":"IF('1. Ordersheet'!I1170=\"\",\"\",'1. Ordersheet'!I1170)","v":""},{"$f":"IF('1. Ordersheet'!J1170=\"\",\"\",'1. Ordersheet'!J1170)","v":""},{"$f":"IF('1. Ordersheet'!K1170=\"\",\"\",'1. Ordersheet'!K1170)","v":""},{"$f":"IF('1. Ordersheet'!M1170=\"\",\"\",'1. Ordersheet'!M1170)","v":""},null,null,{"$f":"'1. Ordersheet'!AR1170","v":0},{"$f":"IF('1. Ordersheet'!AE1170=\"\",\"\",'1. Ordersheet'!AE1170)","v":""}]
[{"$f":"IF('1. Ordersheet'!B1171=\"\",\"\",'1. Ordersheet'!B1171)","v":""},{"$f":"IF('1. Ordersheet'!I1171=\"\",\"\",'1. Ordersheet'!I1171)","v":""},{"$f":"IF('1. Ordersheet'!J1171=\"\",\"\",'1. Ordersheet'!J1171)","v":""},{"$f":"IF('1. Ordersheet'!K1171=\"\",\"\",'1. Ordersheet'!K1171)","v":""},{"$f":"IF('1. Ordersheet'!M1171=\"\",\"\",'1. Ordersheet'!M1171)","v":""},null,null,{"$f":"'1. Ordersheet'!AR1171","v":0},{"$f":"IF('1. Ordersheet'!AE1171=\"\",\"\",'1. Ordersheet'!AE1171)","v":""}]
[{"$f":"IF('1. Ordersheet'!B1172=\"\",\"\",'1. Ordersheet'!B1172)","v":""},{"$f":"IF('1. Ordersheet'!I1172=\"\",\"\",'1. Ordersheet'!I1172)","v":""},{"$f":"IF('1. Ordersheet'!J1172=\"\",\"\",'1. Ordersheet'!J1172)","v":""},{"$f":"IF('1. Ordersheet'!K1172=\"\",\"\",'1. Ordersheet'!K1172)","v":""},{"$f":"IF('1. Ordersheet'!M1172=\"\",\"\",'1. Ordersheet'!M1172)","v":""},null,null,{"$f":"'1. Ordersheet'!AR1172","v":0},{"$f":"IF('1. Ordersheet'!AE1172=\"\",\"\",'1. Ordersheet'!AE1172)","v":""}]
[{"$f":"IF('1. Ordersheet'!B1173=\"\",\"\",'1. Ordersheet'!B1173)","v":""},{"$f":"IF('1. Ordersheet'!I1173=\"\",\"\",'1. Ordersheet'!I1173)","v":""},{"$f":"IF('1. Ordersheet'!J1173=\"\",\"\",'1. Ordersheet'!J1173)","v":""},{"$f":"IF('1. Ordersheet'!K1173=\"\",\"\",'1. Ordersheet'!K1173)","v":""},{"$f":"IF('1. Ordersheet'!M1173=\"\",\"\",'1. Ordersheet'!M1173)","v":""},null,null,{"$f":"'1. Ordersheet'!AR1173","v":0},{"$f":"IF('1. Ordersheet'!AE1173=\"\",\"\",'1. Ordersheet'!AE1173)","v":""}]
[{"$f":"IF('1. Ordersheet'!B1174=\"\",\"\",'1. Ordersheet'!B1174)","v":""},{"$f":"IF('1. Ordersheet'!I1174=\"\",\"\",'1. Ordersheet'!I1174)","v":""},{"$f":"IF('1. Ordersheet'!J1174=\"\",\"\",'1. Ordersheet'!J1174)","v":""},{"$f":"IF('1. Ordersheet'!K1174=\"\",\"\",'1. Ordersheet'!K1174)","v":""},{"$f":"IF('1. Ordersheet'!M1174=\"\",\"\",'1. Ordersheet'!M1174)","v":""},null,null,{"$f":"'1. Ordersheet'!AR1174","v":0},{"$f":"IF('1. Ordersheet'!AE1174=\"\",\"\",'1. Ordersheet'!AE1174)","v":""}]
[{"$f":"IF('1. Ordersheet'!B1175=\"\",\"\",'1. Ordersheet'!B1175)","v":""},{"$f":"IF('1. Ordersheet'!I1175=\"\",\"\",'1. Ordersheet'!I1175)","v":""},{"$f":"IF('1. Ordersheet'!J1175=\"\",\"\",'1. Ordersheet'!J1175)","v":""},{"$f":"IF('1. Ordersheet'!K1175=\"\",\"\",'1. Ordersheet'!K1175)","v":""},{"$f":"IF('1. Ordersheet'!M1175=\"\",\"\",'1. Ordersheet'!M1175)","v":""},null,null,{"$f":"'1. Ordersheet'!AR1175","v":0},{"$f":"IF('1. Ordersheet'!AE1175=\"\",\"\",'1. Ordersheet'!AE1175)","v":""}]
[{"$f":"IF('1. Ordersheet'!B1176=\"\",\"\",'1. Ordersheet'!B1176)","v":""},{"$f":"IF('1. Ordersheet'!I1176=\"\",\"\",'1. Ordersheet'!I1176)","v":""},{"$f":"IF('1. Ordersheet'!J1176=\"\",\"\",'1. Ordersheet'!J1176)","v":""},{"$f":"IF('1. Ordersheet'!K1176=\"\",\"\",'1. Ordersheet'!K1176)","v":""},{"$f":"IF('1. Ordersheet'!M1176=\"\",\"\",'1. Ordersheet'!M1176)","v":""},null,null,{"$f":"'1. Ordersheet'!AR1176","v":0},{"$f":"IF('1. Ordersheet'!AE1176=\"\",\"\",'1. Ordersheet'!AE1176)","v":""}]
[{"$f":"IF('1. Ordersheet'!B1177=\"\",\"\",'1. Ordersheet'!B1177)","v":""},{"$f":"IF('1. Ordersheet'!I1177=\"\",\"\",'1. Ordersheet'!I1177)","v":""},{"$f":"IF('1. Ordersheet'!J1177=\"\",\"\",'1. Ordersheet'!J1177)","v":""},{"$f":"IF('1. Ordersheet'!K1177=\"\",\"\",'1. Ordersheet'!K1177)","v":""},{"$f":"IF('1. Ordersheet'!M1177=\"\",\"\",'1. Ordersheet'!M1177)","v":""},null,null,{"$f":"'1. Ordersheet'!AR1177","v":0},{"$f":"IF('1. Ordersheet'!AE1177=\"\",\"\",'1. Ordersheet'!AE1177)","v":""}]
[{"$f":"IF('1. Ordersheet'!B1178=\"\",\"\",'1. Ordersheet'!B1178)","v":""},{"$f":"IF('1. Ordersheet'!I1178=\"\",\"\",'1. Ordersheet'!I1178)","v":""},{"$f":"IF('1. Ordersheet'!J1178=\"\",\"\",'1. Ordersheet'!J1178)","v":""},{"$f":"IF('1. Ordersheet'!K1178=\"\",\"\",'1. Ordersheet'!K1178)","v":""},{"$f":"IF('1. Ordersheet'!M1178=\"\",\"\",'1. Ordersheet'!M1178)","v":""},null,null,{"$f":"'1. Ordersheet'!AR1178","v":0},{"$f":"IF('1. Ordersheet'!AE1178=\"\",\"\",'1. Ordersheet'!AE1178)","v":""}]
[{"$f":"IF('1. Ordersheet'!B1179=\"\",\"\",'1. Ordersheet'!B1179)","v":""},{"$f":"IF('1. Ordersheet'!I1179=\"\",\"\",'1. Ordersheet'!I1179)","v":""},{"$f":"IF('1. Ordersheet'!J1179=\"\",\"\",'1. Ordersheet'!J1179)","v":""},{"$f":"IF('1. Ordersheet'!K1179=\"\",\"\",'1. Ordersheet'!K1179)","v":""},{"$f":"IF('1. Ordersheet'!M1179=\"\",\"\",'1. Ordersheet'!M1179)","v":""},null,null,{"$f":"'1. Ordersheet'!AR1179","v":0},{"$f":"IF('1. Ordersheet'!AE1179=\"\",\"\",'1. Ordersheet'!AE1179)","v":""}]
[{"$f":"IF('1. Ordersheet'!B1180=\"\",\"\",'1. Ordersheet'!B1180)","v":""},{"$f":"IF('1. Ordersheet'!I1180=\"\",\"\",'1. Ordersheet'!I1180)","v":""},{"$f":"IF('1. Ordersheet'!J1180=\"\",\"\",'1. Ordersheet'!J1180)","v":""},{"$f":"IF('1. Ordersheet'!K1180=\"\",\"\",'1. Ordersheet'!K1180)","v":""},{"$f":"IF('1. Ordersheet'!M1180=\"\",\"\",'1. Ordersheet'!M1180)","v":""},null,null,{"$f":"'1. Ordersheet'!AR1180","v":0},{"$f":"IF('1. Ordersheet'!AE1180=\"\",\"\",'1. Ordersheet'!AE1180)","v":""}]
[{"$f":"IF('1. Ordersheet'!B1181=\"\",\"\",'1. Ordersheet'!B1181)","v":""},{"$f":"IF('1. Ordersheet'!I1181=\"\",\"\",'1. Ordersheet'!I1181)","v":""},{"$f":"IF('1. Ordersheet'!J1181=\"\",\"\",'1. Ordersheet'!J1181)","v":""},{"$f":"IF('1. Ordersheet'!K1181=\"\",\"\",'1. Ordersheet'!K1181)","v":""},{"$f":"IF('1. Ordersheet'!M1181=\"\",\"\",'1. Ordersheet'!M1181)","v":""},null,null,{"$f":"'1. Ordersheet'!AR1181","v":0},{"$f":"IF('1. Ordersheet'!AE1181=\"\",\"\",'1. Ordersheet'!AE1181)","v":""}]
[{"$f":"IF('1. Ordersheet'!B1182=\"\",\"\",'1. Ordersheet'!B1182)","v":""},{"$f":"IF('1. Ordersheet'!I1182=\"\",\"\",'1. Ordersheet'!I1182)","v":""},{"$f":"IF('1. Ordersheet'!J1182=\"\",\"\",'1. Ordersheet'!J1182)","v":""},{"$f":"IF('1. Ordersheet'!K1182=\"\",\"\",'1. Ordersheet'!K1182)","v":""},{"$f":"IF('1. Ordersheet'!M1182=\"\",\"\",'1. Ordersheet'!M1182)","v":""},null,null,{"$f":"'1. Ordersheet'!AR1182","v":0},{"$f":"IF('1. Ordersheet'!AE1182=\"\",\"\",'1. Ordersheet'!AE1182)","v":""}]
[{"$f":"IF('1. Ordersheet'!B1183=\"\",\"\",'1. Ordersheet'!B1183)","v":""},{"$f":"IF('1. Ordersheet'!I1183=\"\",\"\",'1. Ordersheet'!I1183)","v":""},{"$f":"IF('1. Ordersheet'!J1183=\"\",\"\",'1. Ordersheet'!J1183)","v":""},{"$f":"IF('1. Ordersheet'!K1183=\"\",\"\",'1. Ordersheet'!K1183)","v":""},{"$f":"IF('1. Ordersheet'!M1183=\"\",\"\",'1. Ordersheet'!M1183)","v":""},null,null,{"$f":"'1. Ordersheet'!AR1183","v":0},{"$f":"IF('1. Ordersheet'!AE1183=\"\",\"\",'1. Ordersheet'!AE1183)","v":""}]
[{"$f":"IF('1. Ordersheet'!B1184=\"\",\"\",'1. Ordersheet'!B1184)","v":""},{"$f":"IF('1. Ordersheet'!I1184=\"\",\"\",'1. Ordersheet'!I1184)","v":""},{"$f":"IF('1. Ordersheet'!J1184=\"\",\"\",'1. Ordersheet'!J1184)","v":""},{"$f":"IF('1. Ordersheet'!K1184=\"\",\"\",'1. Ordersheet'!K1184)","v":""},{"$f":"IF('1. Ordersheet'!M1184=\"\",\"\",'1. Ordersheet'!M1184)","v":""},null,null,{"$f":"'1. Ordersheet'!AR1184","v":0},{"$f":"IF('1. Ordersheet'!AE1184=\"\",\"\",'1. Ordersheet'!AE1184)","v":""}]
[{"$f":"IF('1. Ordersheet'!B1185=\"\",\"\",'1. Ordersheet'!B1185)","v":""},{"$f":"IF('1. Ordersheet'!I1185=\"\",\"\",'1. Ordersheet'!I1185)","v":""},{"$f":"IF('1. Ordersheet'!J1185=\"\",\"\",'1. Ordersheet'!J1185)","v":""},{"$f":"IF('1. Ordersheet'!K1185=\"\",\"\",'1. Ordersheet'!K1185)","v":""},{"$f":"IF('1. Ordersheet'!M1185=\"\",\"\",'1. Ordersheet'!M1185)","v":""},null,null,{"$f":"'1. Ordersheet'!AR1185","v":0},{"$f":"IF('1. Ordersheet'!AE1185=\"\",\"\",'1. Ordersheet'!AE1185)","v":""}]
[{"$f":"IF('1. Ordersheet'!B1186=\"\",\"\",'1. Ordersheet'!B1186)","v":""},{"$f":"IF('1. Ordersheet'!I1186=\"\",\"\",'1. Ordersheet'!I1186)","v":""},{"$f":"IF('1. Ordersheet'!J1186=\"\",\"\",'1. Ordersheet'!J1186)","v":""},{"$f":"IF('1. Ordersheet'!K1186=\"\",\"\",'1. Ordersheet'!K1186)","v":""},{"$f":"IF('1. Ordersheet'!M1186=\"\",\"\",'1. Ordersheet'!M1186)","v":""},null,null,{"$f":"'1. Ordersheet'!AR1186","v":0},{"$f":"IF('1. Ordersheet'!AE1186=\"\",\"\",'1. Ordersheet'!AE1186)","v":""}]
[{"$f":"IF('1. Ordersheet'!B1187=\"\",\"\",'1. Ordersheet'!B1187)","v":""},{"$f":"IF('1. Ordersheet'!I1187=\"\",\"\",'1. Ordersheet'!I1187)","v":""},{"$f":"IF('1. Ordersheet'!J1187=\"\",\"\",'1. Ordersheet'!J1187)","v":""},{"$f":"IF('1. Ordersheet'!K1187=\"\",\"\",'1. Ordersheet'!K1187)","v":""},{"$f":"IF('1. Ordersheet'!M1187=\"\",\"\",'1. Ordersheet'!M1187)","v":""},null,null,{"$f":"'1. Ordersheet'!AR1187","v":0},{"$f":"IF('1. Ordersheet'!AE1187=\"\",\"\",'1. Ordersheet'!AE1187)","v":""}]
[{"$f":"IF('1. Ordersheet'!B1188=\"\",\"\",'1. Ordersheet'!B1188)","v":""},{"$f":"IF('1. Ordersheet'!I1188=\"\",\"\",'1. Ordersheet'!I1188)","v":""},{"$f":"IF('1. Ordersheet'!J1188=\"\",\"\",'1. Ordersheet'!J1188)","v":""},{"$f":"IF('1. Ordersheet'!K1188=\"\",\"\",'1. Ordersheet'!K1188)","v":""},{"$f":"IF('1. Ordersheet'!M1188=\"\",\"\",'1. Ordersheet'!M1188)","v":""},null,null,{"$f":"'1. Ordersheet'!AR1188","v":0},{"$f":"IF('1. Ordersheet'!AE1188=\"\",\"\",'1. Ordersheet'!AE1188)","v":""}]
[{"$f":"IF('1. Ordersheet'!B1189=\"\",\"\",'1. Ordersheet'!B1189)","v":""},{"$f":"IF('1. Ordersheet'!I1189=\"\",\"\",'1. Ordersheet'!I1189)","v":""},{"$f":"IF('1. Ordersheet'!J1189=\"\",\"\",'1. Ordersheet'!J1189)","v":""},{"$f":"IF('1. Ordersheet'!K1189=\"\",\"\",'1. Ordersheet'!K1189)","v":""},{"$f":"IF('1. Ordersheet'!M1189=\"\",\"\",'1. Ordersheet'!M1189)","v":""},null,null,{"$f":"'1. Ordersheet'!AR1189","v":0},{"$f":"IF('1. Ordersheet'!AE1189=\"\",\"\",'1. Ordersheet'!AE1189)","v":""}]
[{"$f":"IF('1. Ordersheet'!B1190=\"\",\"\",'1. Ordersheet'!B1190)","v":""},{"$f":"IF('1. Ordersheet'!I1190=\"\",\"\",'1. Ordersheet'!I1190)","v":""},{"$f":"IF('1. Ordersheet'!J1190=\"\",\"\",'1. Ordersheet'!J1190)","v":""},{"$f":"IF('1. Ordersheet'!K1190=\"\",\"\",'1. Ordersheet'!K1190)","v":""},{"$f":"IF('1. Ordersheet'!M1190=\"\",\"\",'1. Ordersheet'!M1190)","v":""},null,null,{"$f":"'1. Ordersheet'!AR1190","v":0},{"$f":"IF('1. Ordersheet'!AE1190=\"\",\"\",'1. Ordersheet'!AE1190)","v":""}]
[{"$f":"IF('1. Ordersheet'!B1191=\"\",\"\",'1. Ordersheet'!B1191)","v":""},{"$f":"IF('1. Ordersheet'!I1191=\"\",\"\",'1. Ordersheet'!I1191)","v":""},{"$f":"IF('1. Ordersheet'!J1191=\"\",\"\",'1. Ordersheet'!J1191)","v":""},{"$f":"IF('1. Ordersheet'!K1191=\"\",\"\",'1. Ordersheet'!K1191)","v":""},{"$f":"IF('1. Ordersheet'!M1191=\"\",\"\",'1. Ordersheet'!M1191)","v":""},null,null,{"$f":"'1. Ordersheet'!AR1191","v":0},{"$f":"IF('1. Ordersheet'!AE1191=\"\",\"\",'1. Ordersheet'!AE1191)","v":""}]
[{"$f":"IF('1. Ordersheet'!B1192=\"\",\"\",'1. Ordersheet'!B1192)","v":""},{"$f":"IF('1. Ordersheet'!I1192=\"\",\"\",'1. Ordersheet'!I1192)","v":""},{"$f":"IF('1. Ordersheet'!J1192=\"\",\"\",'1. Ordersheet'!J1192)","v":""},{"$f":"IF('1. Ordersheet'!K1192=\"\",\"\",'1. Ordersheet'!K1192)","v":""},{"$f":"IF('1. Ordersheet'!M1192=\"\",\"\",'1. Ordersheet'!M1192)","v":""},null,null,{"$f":"'1. Ordersheet'!AR1192","v":0},{"$f":"IF('1. Ordersheet'!AE1192=\"\",\"\",'1. Ordersheet'!AE1192)","v":""}]
[{"$f":"IF('1. Ordersheet'!B1193=\"\",\"\",'1. Ordersheet'!B1193)","v":""},{"$f":"IF('1. Ordersheet'!I1193=\"\",\"\",'1. Ordersheet'!I1193)","v":""},{"$f":"IF('1. Ordersheet'!J1193=\"\",\"\",'1. Ordersheet'!J1193)","v":""},{"$f":"IF('1. Ordersheet'!K1193=\"\",\"\",'1. Ordersheet'!K1193)","v":""},{"$f":"IF('1. Ordersheet'!M1193=\"\",\"\",'1. Ordersheet'!M1193)","v":""},null,null,{"$f":"'1. Ordersheet'!AR1193","v":0},{"$f":"IF('1. Ordersheet'!AE1193=\"\",\"\",'1. Ordersheet'!AE1193)","v":""}]
[{"$f":"IF('1. Ordersheet'!B1194=\"\",\"\",'1. Ordersheet'!B1194)","v":""},{"$f":"IF('1. Ordersheet'!I1194=\"\",\"\",'1. Ordersheet'!I1194)","v":""},{"$f":"IF('1. Ordersheet'!J1194=\"\",\"\",'1. Ordersheet'!J1194)","v":""},{"$f":"IF('1. Ordersheet'!K1194=\"\",\"\",'1. Ordersheet'!K1194)","v":""},{"$f":"IF('1. Ordersheet'!M1194=\"\",\"\",'1. Ordersheet'!M1194)","v":""},null,null,{"$f":"'1. Ordersheet'!AR1194","v":0},{"$f":"IF('1. Ordersheet'!AE1194=\"\",\"\",'1. Ordersheet'!AE1194)","v":""}]
[{"$f":"IF('1. Ordersheet'!B1195=\"\",\"\",'1. Ordersheet'!B1195)","v":""},{"$f":"IF('1. Ordersheet'!I1195=\"\",\"\",'1. Ordersheet'!I1195)","v":""},{"$f":"IF('1. Ordersheet'!J1195=\"\",\"\",'1. Ordersheet'!J1195)","v":""},{"$f":"IF('1. Ordersheet'!K1195=\"\",\"\",'1. Ordersheet'!K1195)","v":""},{"$f":"IF('1. Ordersheet'!M1195=\"\",\"\",'1. Ordersheet'!M1195)","v":""},null,null,{"$f":"'1. Ordersheet'!AR1195","v":0},{"$f":"IF('1. Ordersheet'!AE1195=\"\",\"\",'1. Ordersheet'!AE1195)","v":""}]
[{"$f":"IF('1. Ordersheet'!B1196=\"\",\"\",'1. Ordersheet'!B1196)","v":""},{"$f":"IF('1. Ordersheet'!I1196=\"\",\"\",'1. Ordersheet'!I1196)","v":""},{"$f":"IF('1. Ordersheet'!J1196=\"\",\"\",'1. Ordersheet'!J1196)","v":""},{"$f":"IF('1. Ordersheet'!K1196=\"\",\"\",'1. Ordersheet'!K1196)","v":""},{"$f":"IF('1. Ordersheet'!M1196=\"\",\"\",'1. Ordersheet'!M1196)","v":""},null,null,{"$f":"'1. Ordersheet'!AR1196","v":0},{"$f":"IF('1. Ordersheet'!AE1196=\"\",\"\",'1. Ordersheet'!AE1196)","v":""}]
[{"$f":"IF('1. Ordersheet'!B1197=\"\",\"\",'1. Ordersheet'!B1197)","v":""},{"$f":"IF('1. Ordersheet'!I1197=\"\",\"\",'1. Ordersheet'!I1197)","v":""},{"$f":"IF('1. Ordersheet'!J1197=\"\",\"\",'1. Ordersheet'!J1197)","v":""},{"$f":"IF('1. Ordersheet'!K1197=\"\",\"\",'1. Ordersheet'!K1197)","v":""},{"$f":"IF('1. Ordersheet'!M1197=\"\",\"\",'1. Ordersheet'!M1197)","v":""},null,null,{"$f":"'1. Ordersheet'!AR1197","v":0},{"$f":"IF('1. Ordersheet'!AE1197=\"\",\"\",'1. Ordersheet'!AE1197)","v":""}]
[{"$f":"IF('1. Ordersheet'!B1198=\"\",\"\",'1. Ordersheet'!B1198)","v":""},{"$f":"IF('1. Ordersheet'!I1198=\"\",\"\",'1. Ordersheet'!I1198)","v":""},{"$f":"IF('1. Ordersheet'!J1198=\"\",\"\",'1. Ordersheet'!J1198)","v":""},{"$f":"IF('1. Ordersheet'!K1198=\"\",\"\",'1. Ordersheet'!K1198)","v":""},{"$f":"IF('1. Ordersheet'!M1198=\"\",\"\",'1. Ordersheet'!M1198)","v":""},null,null,{"$f":"'1. Ordersheet'!AR1198","v":0},{"$f":"IF('1. Ordersheet'!AE1198=\"\",\"\",'1. Ordersheet'!AE1198)","v":""}]
[{"$f":"IF('1. Ordersheet'!B1199=\"\",\"\",'1. Ordersheet'!B1199)","v":""},{"$f":"IF('1. Ordersheet'!I1199=\"\",\"\",'1. Ordersheet'!I1199)","v":""},{"$f":"IF('1. Ordersheet'!J1199=\"\",\"\",'1. Ordersheet'!J1199)","v":""},{"$f":"IF('1. Ordersheet'!K1199=\"\",\"\",'1. Ordersheet'!K1199)","v":""},{"$f":"IF('1. Ordersheet'!M1199=\"\",\"\",'1. Ordersheet'!M1199)","v":""},null,null,{"$f":"'1. Ordersheet'!AR1199","v":0},{"$f":"IF('1. Ordersheet'!AE1199=\"\",\"\",'1. Ordersheet'!AE1199)","v":""}]
[{"$f":"IF('1. Ordersheet'!B1200=\"\",\"\",'1. Ordersheet'!B1200)","v":""},{"$f":"IF('1. Ordersheet'!I1200=\"\",\"\",'1. Ordersheet'!I1200)","v":""},{"$f":"IF('1. Ordersheet'!J1200=\"\",\"\",'1. Ordersheet'!J1200)","v":""},{"$f":"IF('1. Ordersheet'!K1200=\"\",\"\",'1. Ordersheet'!K1200)","v":""},{"$f":"IF('1. Ordersheet'!M1200=\"\",\"\",'1. Ordersheet'!M1200)","v":""},null,null,{"$f":"'1. Ordersheet'!AR1200","v":0},{"$f":"IF('1. Ordersheet'!AE1200=\"\",\"\",'1. Ordersheet'!AE1200)","v":""}]
[{"$f":"IF('1. Ordersheet'!B1201=\"\",\"\",'1. Ordersheet'!B1201)","v":""},{"$f":"IF('1. Ordersheet'!I1201=\"\",\"\",'1. Ordersheet'!I1201)","v":""},{"$f":"IF('1. Ordersheet'!J1201=\"\",\"\",'1. Ordersheet'!J1201)","v":""},{"$f":"IF('1. Ordersheet'!K1201=\"\",\"\",'1. Ordersheet'!K1201)","v":""},{"$f":"IF('1. Ordersheet'!M1201=\"\",\"\",'1. Ordersheet'!M1201)","v":""},null,null,{"$f":"'1. Ordersheet'!AR1201","v":0},{"$f":"IF('1. Ordersheet'!AE1201=\"\",\"\",'1. Ordersheet'!AE1201)","v":""}]
[{"$f":"IF('1. Ordersheet'!B1202=\"\",\"\",'1. Ordersheet'!B1202)","v":""},{"$f":"IF('1. Ordersheet'!I1202=\"\",\"\",'1. Ordersheet'!I1202)","v":""},{"$f":"IF('1. Ordersheet'!J1202=\"\",\"\",'1. Ordersheet'!J1202)","v":""},{"$f":"IF('1. Ordersheet'!K1202=\"\",\"\",'1. Ordersheet'!K1202)","v":""},{"$f":"IF('1. Ordersheet'!M1202=\"\",\"\",'1. Ordersheet'!M1202)","v":""},null,null,{"$f":"'1. Ordersheet'!AR1202","v":0},{"$f":"IF('1. Ordersheet'!AE1202=\"\",\"\",'1. Ordersheet'!AE1202)","v":""}]
[{"$f":"IF('1. Ordersheet'!B1203=\"\",\"\",'1. Ordersheet'!B1203)","v":""},{"$f":"IF('1. Ordersheet'!I1203=\"\",\"\",'1. Ordersheet'!I1203)","v":""},{"$f":"IF('1. Ordersheet'!J1203=\"\",\"\",'1. Ordersheet'!J1203)","v":""},{"$f":"IF('1. Ordersheet'!K1203=\"\",\"\",'1. Ordersheet'!K1203)","v":""},{"$f":"IF('1. Ordersheet'!M1203=\"\",\"\",'1. Ordersheet'!M1203)","v":""},null,null,{"$f":"'1. Ordersheet'!AR1203","v":0},{"$f":"IF('1. Ordersheet'!AE1203=\"\",\"\",'1. Ordersheet'!AE1203)","v":""}]
[{"$f":"IF('1. Ordersheet'!B1204=\"\",\"\",'1. Ordersheet'!B1204)","v":""},{"$f":"IF('1. Ordersheet'!I1204=\"\",\"\",'1. Ordersheet'!I1204)","v":""},{"$f":"IF('1. Ordersheet'!J1204=\"\",\"\",'1. Ordersheet'!J1204)","v":""},{"$f":"IF('1. Ordersheet'!K1204=\"\",\"\",'1. Ordersheet'!K1204)","v":""},{"$f":"IF('1. Ordersheet'!M1204=\"\",\"\",'1. Ordersheet'!M1204)","v":""},null,null,{"$f":"'1. Ordersheet'!AR1204","v":0},{"$f":"IF('1. Ordersheet'!AE1204=\"\",\"\",'1. Ordersheet'!AE1204)","v":""}]
[{"$f":"IF('1. Ordersheet'!B1205=\"\",\"\",'1. Ordersheet'!B1205)","v":""},{"$f":"IF('1. Ordersheet'!I1205=\"\",\"\",'1. Ordersheet'!I1205)","v":""},{"$f":"IF('1. Ordersheet'!J1205=\"\",\"\",'1. Ordersheet'!J1205)","v":""},{"$f":"IF('1. Ordersheet'!K1205=\"\",\"\",'1. Ordersheet'!K1205)","v":""},{"$f":"IF('1. Ordersheet'!M1205=\"\",\"\",'1. Ordersheet'!M1205)","v":""},null,null,{"$f":"'1. Ordersheet'!AR1205","v":0},{"$f":"IF('1. Ordersheet'!AE1205=\"\",\"\",'1. Ordersheet'!AE1205)","v":""}]
[{"$f":"IF('1. Ordersheet'!B1206=\"\",\"\",'1. Ordersheet'!B1206)","v":""},{"$f":"IF('1. Ordersheet'!I1206=\"\",\"\",'1. Ordersheet'!I1206)","v":""},{"$f":"IF('1. Ordersheet'!J1206=\"\",\"\",'1. Ordersheet'!J1206)","v":""},{"$f":"IF('1. Ordersheet'!K1206=\"\",\"\",'1. Ordersheet'!K1206)","v":""},{"$f":"IF('1. Ordersheet'!M1206=\"\",\"\",'1. Ordersheet'!M1206)","v":""},null,null,{"$f":"'1. Ordersheet'!AR1206","v":0},{"$f":"IF('1. Ordersheet'!AE1206=\"\",\"\",'1. Ordersheet'!AE1206)","v":""}]
[{"$f":"IF('1. Ordersheet'!B1207=\"\",\"\",'1. Ordersheet'!B1207)","v":""},{"$f":"IF('1. Ordersheet'!I1207=\"\",\"\",'1. Ordersheet'!I1207)","v":""},{"$f":"IF('1. Ordersheet'!J1207=\"\",\"\",'1. Ordersheet'!J1207)","v":""},{"$f":"IF('1. Ordersheet'!K1207=\"\",\"\",'1. Ordersheet'!K1207)","v":""},{"$f":"IF('1. Ordersheet'!M1207=\"\",\"\",'1. Ordersheet'!M1207)","v":""},null,null,{"$f":"'1. Ordersheet'!AR1207","v":0},{"$f":"IF('1. Ordersheet'!AE1207=\"\",\"\",'1. Ordersheet'!AE1207)","v":""}]
[{"$f":"IF('1. Ordersheet'!B1208=\"\",\"\",'1. Ordersheet'!B1208)","v":""},{"$f":"IF('1. Ordersheet'!I1208=\"\",\"\",'1. Ordersheet'!I1208)","v":""},{"$f":"IF('1. Ordersheet'!J1208=\"\",\"\",'1. Ordersheet'!J1208)","v":""},{"$f":"IF('1. Ordersheet'!K1208=\"\",\"\",'1. Ordersheet'!K1208)","v":""},{"$f":"IF('1. Ordersheet'!M1208=\"\",\"\",'1. Ordersheet'!M1208)","v":""},null,null,{"$f":"'1. Ordersheet'!AR1208","v":0},{"$f":"IF('1. Ordersheet'!AE1208=\"\",\"\",'1. Ordersheet'!AE1208)","v":""}]
[{"$f":"IF('1. Ordersheet'!B1209=\"\",\"\",'1. Ordersheet'!B1209)","v":""},{"$f":"IF('1. Ordersheet'!I1209=\"\",\"\",'1. Ordersheet'!I1209)","v":""},{"$f":"IF('1. Ordersheet'!J1209=\"\",\"\",'1. Ordersheet'!J1209)","v":""},{"$f":"IF('1. Ordersheet'!K1209=\"\",\"\",'1. Ordersheet'!K1209)","v":""},{"$f":"IF('1. Ordersheet'!M1209=\"\",\"\",'1. Ordersheet'!M1209)","v":""},null,null,{"$f":"'1. Ordersheet'!AR1209","v":0},{"$f":"IF('1. Ordersheet'!AE1209=\"\",\"\",'1. Ordersheet'!AE1209)","v":""}]
[{"$f":"IF('1. Ordersheet'!B1210=\"\",\"\",'1. Ordersheet'!B1210)","v":""},{"$f":"IF('1. Ordersheet'!I1210=\"\",\"\",'1. Ordersheet'!I1210)","v":""},{"$f":"IF('1. Ordersheet'!J1210=\"\",\"\",'1. Ordersheet'!J1210)","v":""},{"$f":"IF('1. Ordersheet'!K1210=\"\",\"\",'1. Ordersheet'!K1210)","v":""},{"$f":"IF('1. Ordersheet'!M1210=\"\",\"\",'1. Ordersheet'!M1210)","v":""},null,null,{"$f":"'1. Ordersheet'!AR1210","v":0},{"$f":"IF('1. Ordersheet'!AE1210=\"\",\"\",'1. Ordersheet'!AE1210)","v":""}]
[{"$f":"IF('1. Ordersheet'!B1211=\"\",\"\",'1. Ordersheet'!B1211)","v":""},{"$f":"IF('1. Ordersheet'!I1211=\"\",\"\",'1. Ordersheet'!I1211)","v":""},{"$f":"IF('1. Ordersheet'!J1211=\"\",\"\",'1. Ordersheet'!J1211)","v":""},{"$f":"IF('1. Ordersheet'!K1211=\"\",\"\",'1. Ordersheet'!K1211)","v":""},{"$f":"IF('1. Ordersheet'!M1211=\"\",\"\",'1. Ordersheet'!M1211)","v":""},null,null,{"$f":"'1. Ordersheet'!AR1211","v":0},{"$f":"IF('1. Ordersheet'!AE1211=\"\",\"\",'1. Ordersheet'!AE1211)","v":""}]
[{"$f":"IF('1. Ordersheet'!B1212=\"\",\"\",'1. Ordersheet'!B1212)","v":""},{"$f":"IF('1. Ordersheet'!I1212=\"\",\"\",'1. Ordersheet'!I1212)","v":""},{"$f":"IF('1. Ordersheet'!J1212=\"\",\"\",'1. Ordersheet'!J1212)","v":""},{"$f":"IF('1. Ordersheet'!K1212=\"\",\"\",'1. Ordersheet'!K1212)","v":""},{"$f":"IF('1. Ordersheet'!M1212=\"\",\"\",'1. Ordersheet'!M1212)","v":""},null,null,{"$f":"'1. Ordersheet'!AR1212","v":0},{"$f":"IF('1. Ordersheet'!AE1212=\"\",\"\",'1. Ordersheet'!AE1212)","v":""}]
[{"$f":"IF('1. Ordersheet'!B1213=\"\",\"\",'1. Ordersheet'!B1213)","v":""},{"$f":"IF('1. Ordersheet'!I1213=\"\",\"\",'1. Ordersheet'!I1213)","v":""},{"$f":"IF('1. Ordersheet'!J1213=\"\",\"\",'1. Ordersheet'!J1213)","v":""},{"$f":"IF('1. Ordersheet'!K1213=\"\",\"\",'1. Ordersheet'!K1213)","v":""},{"$f":"IF('1. Ordersheet'!M1213=\"\",\"\",'1. Ordersheet'!M1213)","v":""},null,null,{"$f":"'1. Ordersheet'!AR1213","v":0},{"$f":"IF('1. Ordersheet'!AE1213=\"\",\"\",'1. Ordersheet'!AE1213)","v":""}]
[{"$f":"IF('1. Ordersheet'!B1214=\"\",\"\",'1. Ordersheet'!B1214)","v":""},{"$f":"IF('1. Ordersheet'!I1214=\"\",\"\",'1. Ordersheet'!I1214)","v":""},{"$f":"IF('1. Ordersheet'!J1214=\"\",\"\",'1. Ordersheet'!J1214)","v":""},{"$f":"IF('1. Ordersheet'!K1214=\"\",\"\",'1. Ordersheet'!K1214)","v":""},{"$f":"IF('1. Ordersheet'!M1214=\"\",\"\",'1. Ordersheet'!M1214)","v":""},null,null,{"$f":"'1. Ordersheet'!AR1214","v":0},{"$f":"IF('1. Ordersheet'!AE1214=\"\",\"\",'1. Ordersheet'!AE1214)","v":""}]
[{"$f":"IF('1. Ordersheet'!B1215=\"\",\"\",'1. Ordersheet'!B1215)","v":""},{"$f":"IF('1. Ordersheet'!I1215=\"\",\"\",'1. Ordersheet'!I1215)","v":""},{"$f":"IF('1. Ordersheet'!J1215=\"\",\"\",'1. Ordersheet'!J1215)","v":""},{"$f":"IF('1. Ordersheet'!K1215=\"\",\"\",'1. Ordersheet'!K1215)","v":""},{"$f":"IF('1. Ordersheet'!M1215=\"\",\"\",'1. Ordersheet'!M1215)","v":""},null,null,{"$f":"'1. Ordersheet'!AR1215","v":0},{"$f":"IF('1. Ordersheet'!AE1215=\"\",\"\",'1. Ordersheet'!AE1215)","v":""}]
[{"$f":"IF('1. Ordersheet'!B1216=\"\",\"\",'1. Ordersheet'!B1216)","v":""},{"$f":"IF('1. Ordersheet'!I1216=\"\",\"\",'1. Ordersheet'!I1216)","v":""},{"$f":"IF('1. Ordersheet'!J1216=\"\",\"\",'1. Ordersheet'!J1216)","v":""},{"$f":"IF('1. Ordersheet'!K1216=\"\",\"\",'1. Ordersheet'!K1216)","v":""},{"$f":"IF('1. Ordersheet'!M1216=\"\",\"\",'1. Ordersheet'!M1216)","v":""},null,null,{"$f":"'1. Ordersheet'!AR1216","v":0},{"$f":"IF('1. Ordersheet'!AE1216=\"\",\"\",'1. Ordersheet'!AE1216)","v":""}]
[{"$f":"IF('1. Ordersheet'!B1217=\"\",\"\",'1. Ordersheet'!B1217)","v":""},{"$f":"IF('1. Ordersheet'!I1217=\"\",\"\",'1. Ordersheet'!I1217)","v":""},{"$f":"IF('1. Ordersheet'!J1217=\"\",\"\",'1. Ordersheet'!J1217)","v":""},{"$f":"IF('1. Ordersheet'!K1217=\"\",\"\",'1. Ordersheet'!K1217)","v":""},{"$f":"IF('1. Ordersheet'!M1217=\"\",\"\",'1. Ordersheet'!M1217)","v":""},null,null,{"$f":"'1. Ordersheet'!AR1217","v":0},{"$f":"IF('1. Ordersheet'!AE1217=\"\",\"\",'1. Ordersheet'!AE1217)","v":""}]
[{"$f":"IF('1. Ordersheet'!B1218=\"\",\"\",'1. Ordersheet'!B1218)","v":""},{"$f":"IF('1. Ordersheet'!I1218=\"\",\"\",'1. Ordersheet'!I1218)","v":""},{"$f":"IF('1. Ordersheet'!J1218=\"\",\"\",'1. Ordersheet'!J1218)","v":""},{"$f":"IF('1. Ordersheet'!K1218=\"\",\"\",'1. Ordersheet'!K1218)","v":""},{"$f":"IF('1. Ordersheet'!M1218=\"\",\"\",'1. Ordersheet'!M1218)","v":""},null,null,{"$f":"'1. Ordersheet'!AR1218","v":0},{"$f":"IF('1. Ordersheet'!AE1218=\"\",\"\",'1. Ordersheet'!AE1218)","v":""}]
[{"$f":"IF('1. Ordersheet'!B1219=\"\",\"\",'1. Ordersheet'!B1219)","v":""},{"$f":"IF('1. Ordersheet'!I1219=\"\",\"\",'1. Ordersheet'!I1219)","v":""},{"$f":"IF('1. Ordersheet'!J1219=\"\",\"\",'1. Ordersheet'!J1219)","v":""},{"$f":"IF('1. Ordersheet'!K1219=\"\",\"\",'1. Ordersheet'!K1219)","v":""},{"$f":"IF('1. Ordersheet'!M1219=\"\",\"\",'1. Ordersheet'!M1219)","v":""},null,null,{"$f":"'1. Ordersheet'!AR1219","v":0},{"$f":"IF('1. Ordersheet'!AE1219=\"\",\"\",'1. Ordersheet'!AE1219)","v":""}]
[{"$f":"IF('1. Ordersheet'!B1220=\"\",\"\",'1. Ordersheet'!B1220)","v":""},{"$f":"IF('1. Ordersheet'!I1220=\"\",\"\",'1. Ordersheet'!I1220)","v":""},{"$f":"IF('1. Ordersheet'!J1220=\"\",\"\",'1. Ordersheet'!J1220)","v":""},{"$f":"IF('1. Ordersheet'!K1220=\"\",\"\",'1. Ordersheet'!K1220)","v":""},{"$f":"IF('1. Ordersheet'!M1220=\"\",\"\",'1. Ordersheet'!M1220)","v":""},null,null,{"$f":"'1. Ordersheet'!AR1220","v":0},{"$f":"IF('1. Ordersheet'!AE1220=\"\",\"\",'1. Ordersheet'!AE1220)","v":""}]
[{"$f":"IF('1. Ordersheet'!B1221=\"\",\"\",'1. Ordersheet'!B1221)","v":""},{"$f":"IF('1. Ordersheet'!I1221=\"\",\"\",'1. Ordersheet'!I1221)","v":""},{"$f":"IF('1. Ordersheet'!J1221=\"\",\"\",'1. Ordersheet'!J1221)","v":""},{"$f":"IF('1. Ordersheet'!K1221=\"\",\"\",'1. Ordersheet'!K1221)","v":""},{"$f":"IF('1. Ordersheet'!M1221=\"\",\"\",'1. Ordersheet'!M1221)","v":""},null,null,{"$f":"'1. Ordersheet'!AR1221","v":0},{"$f":"IF('1. Ordersheet'!AE1221=\"\",\"\",'1. Ordersheet'!AE1221)","v":""}]
[{"$f":"IF('1. Ordersheet'!B1222=\"\",\"\",'1. Ordersheet'!B1222)","v":""},{"$f":"IF('1. Ordersheet'!I1222=\"\",\"\",'1. Ordersheet'!I1222)","v":""},{"$f":"IF('1. Ordersheet'!J1222=\"\",\"\",'1. Ordersheet'!J1222)","v":""},{"$f":"IF('1. Ordersheet'!K1222=\"\",\"\",'1. Ordersheet'!K1222)","v":""},{"$f":"IF('1. Ordersheet'!M1222=\"\",\"\",'1. Ordersheet'!M1222)","v":""},null,null,{"$f":"'1. Ordersheet'!AR1222","v":0},{"$f":"IF('1. Ordersheet'!AE1222=\"\",\"\",'1. Ordersheet'!AE1222)","v":""}]
[{"$f":"IF('1. Ordersheet'!B1223=\"\",\"\",'1. Ordersheet'!B1223)","v":""},{"$f":"IF('1. Ordersheet'!I1223=\"\",\"\",'1. Ordersheet'!I1223)","v":""},{"$f":"IF('1. Ordersheet'!J1223=\"\",\"\",'1. Ordersheet'!J1223)","v":""},{"$f":"IF('1. Ordersheet'!K1223=\"\",\"\",'1. Ordersheet'!K1223)","v":""},{"$f":"IF('1. Ordersheet'!M1223=\"\",\"\",'1. Ordersheet'!M1223)","v":""},null,null,{"$f":"'1. Ordersheet'!AR1223","v":0},{"$f":"IF('1. Ordersheet'!AE1223=\"\",\"\",'1. Ordersheet'!AE1223)","v":""}]
[{"$f":"IF('1. Ordersheet'!B1224=\"\",\"\",'1. Ordersheet'!B1224)","v":""},{"$f":"IF('1. Ordersheet'!I1224=\"\",\"\",'1. Ordersheet'!I1224)","v":""},{"$f":"IF('1. Ordersheet'!J1224=\"\",\"\",'1. Ordersheet'!J1224)","v":""},{"$f":"IF('1. Ordersheet'!K1224=\"\",\"\",'1. Ordersheet'!K1224)","v":""},{"$f":"IF('1. Ordersheet'!M1224=\"\",\"\",'1. Ordersheet'!M1224)","v":""},null,null,{"$f":"'1. Ordersheet'!AR1224","v":0},{"$f":"IF('1. Ordersheet'!AE1224=\"\",\"\",'1. Ordersheet'!AE1224)","v":""}]
[{"$f":"IF('1. Ordersheet'!B1225=\"\",\"\",'1. Ordersheet'!B1225)","v":""},{"$f":"IF('1. Ordersheet'!I1225=\"\",\"\",'1. Ordersheet'!I1225)","v":""},{"$f":"IF('1. Ordersheet'!J1225=\"\",\"\",'1. Ordersheet'!J1225)","v":""},{"$f":"IF('1. Ordersheet'!K1225=\"\",\"\",'1. Ordersheet'!K1225)","v":""},{"$f":"IF('1. Ordersheet'!M1225=\"\",\"\",'1. Ordersheet'!M1225)","v":""},null,null,{"$f":"'1. Ordersheet'!AR1225","v":0},{"$f":"IF('1. Ordersheet'!AE1225=\"\",\"\",'1. Ordersheet'!AE1225)","v":""}]
[{"$f":"IF('1. Ordersheet'!B1226=\"\",\"\",'1. Ordersheet'!B1226)","v":""},{"$f":"IF('1. Ordersheet'!I1226=\"\",\"\",'1. Ordersheet'!I1226)","v":""},{"$f":"IF('1. Ordersheet'!J1226=\"\",\"\",'1. Ordersheet'!J1226)","v":""},{"$f":"IF('1. Ordersheet'!K1226=\"\",\"\",'1. Ordersheet'!K1226)","v":""},{"$f":"IF('1. Ordersheet'!M1226=\"\",\"\",'1. Ordersheet'!M1226)","v":""},null,null,{"$f":"'1. Ordersheet'!AR1226","v":0},{"$f":"IF('1. Ordersheet'!AE1226=\"\",\"\",'1. Ordersheet'!AE1226)","v":""}]
[{"$f":"IF('1. Ordersheet'!B1227=\"\",\"\",'1. Ordersheet'!B1227)","v":""},{"$f":"IF('1. Ordersheet'!I1227=\"\",\"\",'1. Ordersheet'!I1227)","v":""},{"$f":"IF('1. Ordersheet'!J1227=\"\",\"\",'1. Ordersheet'!J1227)","v":""},{"$f":"IF('1. Ordersheet'!K1227=\"\",\"\",'1. Ordersheet'!K1227)","v":""},{"$f":"IF('1. Ordersheet'!M1227=\"\",\"\",'1. Ordersheet'!M1227)","v":""},null,null,{"$f":"'1. Ordersheet'!AR1227","v":0},{"$f":"IF('1. Ordersheet'!AE1227=\"\",\"\",'1. Ordersheet'!AE1227)","v":""}]
[{"$f":"IF('1. Ordersheet'!B1228=\"\",\"\",'1. Ordersheet'!B1228)","v":""},{"$f":"IF('1. Ordersheet'!I1228=\"\",\"\",'1. Ordersheet'!I1228)","v":""},{"$f":"IF('1. Ordersheet'!J1228=\"\",\"\",'1. Ordersheet'!J1228)","v":""},{"$f":"IF('1. Ordersheet'!K1228=\"\",\"\",'1. Ordersheet'!K1228)","v":""},{"$f":"IF('1. Ordersheet'!M1228=\"\",\"\",'1. Ordersheet'!M1228)","v":""},null,null,{"$f":"'1. Ordersheet'!AR1228","v":0},{"$f":"IF('1. Ordersheet'!AE1228=\"\",\"\",'1. Ordersheet'!AE1228)","v":""}]
[{"$f":"IF('1. Ordersheet'!B1229=\"\",\"\",'1. Ordersheet'!B1229)","v":""},{"$f":"IF('1. Ordersheet'!I1229=\"\",\"\",'1. Ordersheet'!I1229)","v":""},{"$f":"IF('1. Ordersheet'!J1229=\"\",\"\",'1. Ordersheet'!J1229)","v":""},{"$f":"IF('1. Ordersheet'!K1229=\"\",\"\",'1. Ordersheet'!K1229)","v":""},{"$f":"IF('1. Ordersheet'!M1229=\"\",\"\",'1. Ordersheet'!M1229)","v":""},null,null,{"$f":"'1. Ordersheet'!AR1229","v":0},{"$f":"IF('1. Ordersheet'!AE1229=\"\",\"\",'1. Ordersheet'!AE1229)","v":""}]
[{"$f":"IF('1. Ordersheet'!B1230=\"\",\"\",'1. Ordersheet'!B1230)","v":""},{"$f":"IF('1. Ordersheet'!I1230=\"\",\"\",'1. Ordersheet'!I1230)","v":""},{"$f":"IF('1. Ordersheet'!J1230=\"\",\"\",'1. Ordersheet'!J1230)","v":""},{"$f":"IF('1. Ordersheet'!K1230=\"\",\"\",'1. Ordersheet'!K1230)","v":""},{"$f":"IF('1. Ordersheet'!M1230=\"\",\"\",'1. Ordersheet'!M1230)","v":""},null,null,{"$f":"'1. Ordersheet'!AR1230","v":0},{"$f":"IF('1. Ordersheet'!AE1230=\"\",\"\",'1. Ordersheet'!AE1230)","v":""}]
[{"$f":"IF('1. Ordersheet'!B1231=\"\",\"\",'1. Ordersheet'!B1231)","v":""},{"$f":"IF('1. Ordersheet'!I1231=\"\",\"\",'1. Ordersheet'!I1231)","v":""},{"$f":"IF('1. Ordersheet'!J1231=\"\",\"\",'1. Ordersheet'!J1231)","v":""},{"$f":"IF('1. Ordersheet'!K1231=\"\",\"\",'1. Ordersheet'!K1231)","v":""},{"$f":"IF('1. Ordersheet'!M1231=\"\",\"\",'1. Ordersheet'!M1231)","v":""},null,null,{"$f":"'1. Ordersheet'!AR1231","v":0},{"$f":"IF('1. Ordersheet'!AE1231=\"\",\"\",'1. Ordersheet'!AE1231)","v":""}]
[{"$f":"IF('1. Ordersheet'!B1232=\"\",\"\",'1. Ordersheet'!B1232)","v":""},{"$f":"IF('1. Ordersheet'!I1232=\"\",\"\",'1. Ordersheet'!I1232)","v":""},{"$f":"IF('1. Ordersheet'!J1232=\"\",\"\",'1. Ordersheet'!J1232)","v":""},{"$f":"IF('1. Ordersheet'!K1232=\"\",\"\",'1. Ordersheet'!K1232)","v":""},{"$f":"IF('1. Ordersheet'!M1232=\"\",\"\",'1. Ordersheet'!M1232)","v":""},null,null,{"$f":"'1. Ordersheet'!AR1232","v":0},{"$f":"IF('1. Ordersheet'!AE1232=\"\",\"\",'1. Ordersheet'!AE1232)","v":""}]
[{"$f":"IF('1. Ordersheet'!B1233=\"\",\"\",'1. Ordersheet'!B1233)","v":""},{"$f":"IF('1. Ordersheet'!I1233=\"\",\"\",'1. Ordersheet'!I1233)","v":""},{"$f":"IF('1. Ordersheet'!J1233=\"\",\"\",'1. Ordersheet'!J1233)","v":""},{"$f":"IF('1. Ordersheet'!K1233=\"\",\"\",'1. Ordersheet'!K1233)","v":""},{"$f":"IF('1. Ordersheet'!M1233=\"\",\"\",'1. Ordersheet'!M1233)","v":""},null,null,{"$f":"'1. Ordersheet'!AR1233","v":0},{"$f":"IF('1. Ordersheet'!AE1233=\"\",\"\",'1. Ordersheet'!AE1233)","v":""}]
[{"$f":"IF('1. Ordersheet'!B1234=\"\",\"\",'1. Ordersheet'!B1234)","v":""},{"$f":"IF('1. Ordersheet'!I1234=\"\",\"\",'1. Ordersheet'!I1234)","v":""},{"$f":"IF('1. Ordersheet'!J1234=\"\",\"\",'1. Ordersheet'!J1234)","v":""},{"$f":"IF('1. Ordersheet'!K1234=\"\",\"\",'1. Ordersheet'!K1234)","v":""},{"$f":"IF('1. Ordersheet'!M1234=\"\",\"\",'1. Ordersheet'!M1234)","v":""},null,null,{"$f":"'1. Ordersheet'!AR1234","v":0},{"$f":"IF('1. Ordersheet'!AE1234=\"\",\"\",'1. Ordersheet'!AE1234)","v":""}]
[{"$f":"IF('1. Ordersheet'!B1235=\"\",\"\",'1. Ordersheet'!B1235)","v":""},{"$f":"IF('1. Ordersheet'!I1235=\"\",\"\",'1. Ordersheet'!I1235)","v":""},{"$f":"IF('1. Ordersheet'!J1235=\"\",\"\",'1. Ordersheet'!J1235)","v":""},{"$f":"IF('1. Ordersheet'!K1235=\"\",\"\",'1. Ordersheet'!K1235)","v":""},{"$f":"IF('1. Ordersheet'!M1235=\"\",\"\",'1. Ordersheet'!M1235)","v":""},null,null,{"$f":"'1. Ordersheet'!AR1235","v":0},{"$f":"IF('1. Ordersheet'!AE1235=\"\",\"\",'1. Ordersheet'!AE1235)","v":""}]
[{"$f":"IF('1. Ordersheet'!B1236=\"\",\"\",'1. Ordersheet'!B1236)","v":""},{"$f":"IF('1. Ordersheet'!I1236=\"\",\"\",'1. Ordersheet'!I1236)","v":""},{"$f":"IF('1. Ordersheet'!J1236=\"\",\"\",'1. Ordersheet'!J1236)","v":""},{"$f":"IF('1. Ordersheet'!K1236=\"\",\"\",'1. Ordersheet'!K1236)","v":""},{"$f":"IF('1. Ordersheet'!M1236=\"\",\"\",'1. Ordersheet'!M1236)","v":""},null,null,{"$f":"'1. Ordersheet'!AR1236","v":0},{"$f":"IF('1. Ordersheet'!AE1236=\"\",\"\",'1. Ordersheet'!AE1236)","v":""}]
[{"$f":"IF('1. Ordersheet'!B1237=\"\",\"\",'1. Ordersheet'!B1237)","v":""},{"$f":"IF('1. Ordersheet'!I1237=\"\",\"\",'1. Ordersheet'!I1237)","v":""},{"$f":"IF('1. Ordersheet'!J1237=\"\",\"\",'1. Ordersheet'!J1237)","v":""},{"$f":"IF('1. Ordersheet'!K1237=\"\",\"\",'1. Ordersheet'!K1237)","v":""},{"$f":"IF('1. Ordersheet'!M1237=\"\",\"\",'1. Ordersheet'!M1237)","v":""},null,null,{"$f":"'1. Ordersheet'!AR1237","v":0},{"$f":"IF('1. Ordersheet'!AE1237=\"\",\"\",'1. Ordersheet'!AE1237)","v":""}]
[{"$f":"IF('1. Ordersheet'!B1238=\"\",\"\",'1. Ordersheet'!B1238)","v":""},{"$f":"IF('1. Ordersheet'!I1238=\"\",\"\",'1. Ordersheet'!I1238)","v":""},{"$f":"IF('1. Ordersheet'!J1238=\"\",\"\",'1. Ordersheet'!J1238)","v":""},{"$f":"IF('1. Ordersheet'!K1238=\"\",\"\",'1. Ordersheet'!K1238)","v":""},{"$f":"IF('1. Ordersheet'!M1238=\"\",\"\",'1. Ordersheet'!M1238)","v":""},null,null,{"$f":"'1. Ordersheet'!AR1238","v":0},{"$f":"IF('1. Ordersheet'!AE1238=\"\",\"\",'1. Ordersheet'!AE1238)","v":""}]
[{"$f":"IF('1. Ordersheet'!B1239=\"\",\"\",'1. Ordersheet'!B1239)","v":""},{"$f":"IF('1. Ordersheet'!I1239=\"\",\"\",'1. Ordersheet'!I1239)","v":""},{"$f":"IF('1. Ordersheet'!J1239=\"\",\"\",'1. Ordersheet'!J1239)","v":""},{"$f":"IF('1. Ordersheet'!K1239=\"\",\"\",'1. Ordersheet'!K1239)","v":""},{"$f":"IF('1. Ordersheet'!M1239=\"\",\"\",'1. Ordersheet'!M1239)","v":""},null,null,{"$f":"'1. Ordersheet'!AR1239","v":0},{"$f":"IF('1. Ordersheet'!AE1239=\"\",\"\",'1. Ordersheet'!AE1239)","v":""}]
[{"$f":"IF('1. Ordersheet'!B1240=\"\",\"\",'1. Ordersheet'!B1240)","v":""},{"$f":"IF('1. Ordersheet'!I1240=\"\",\"\",'1. Ordersheet'!I1240)","v":""},{"$f":"IF('1. Ordersheet'!J1240=\"\",\"\",'1. Ordersheet'!J1240)","v":""},{"$f":"IF('1. Ordersheet'!K1240=\"\",\"\",'1. Ordersheet'!K1240)","v":""},{"$f":"IF('1. Ordersheet'!M1240=\"\",\"\",'1. Ordersheet'!M1240)","v":""},null,null,{"$f":"'1. Ordersheet'!AR1240","v":0},{"$f":"IF('1. Ordersheet'!AE1240=\"\",\"\",'1. Ordersheet'!AE1240)","v":""}]
[{"$f":"IF('1. Ordersheet'!B1241=\"\",\"\",'1. Ordersheet'!B1241)","v":""},{"$f":"IF('1. Ordersheet'!I1241=\"\",\"\",'1. Ordersheet'!I1241)","v":""},{"$f":"IF('1. Ordersheet'!J1241=\"\",\"\",'1. Ordersheet'!J1241)","v":""},{"$f":"IF('1. Ordersheet'!K1241=\"\",\"\",'1. Ordersheet'!K1241)","v":""},{"$f":"IF('1. Ordersheet'!M1241=\"\",\"\",'1. Ordersheet'!M1241)","v":""},null,null,{"$f":"'1. Ordersheet'!AR1241","v":0},{"$f":"IF('1. Ordersheet'!AE1241=\"\",\"\",'1. Ordersheet'!AE1241)","v":""}]
[{"$f":"IF('1. Ordersheet'!B1242=\"\",\"\",'1. Ordersheet'!B1242)","v":""},{"$f":"IF('1. Ordersheet'!I1242=\"\",\"\",'1. Ordersheet'!I1242)","v":""},{"$f":"IF('1. Ordersheet'!J1242=\"\",\"\",'1. Ordersheet'!J1242)","v":""},{"$f":"IF('1. Ordersheet'!K1242=\"\",\"\",'1. Ordersheet'!K1242)","v":""},{"$f":"IF('1. Ordersheet'!M1242=\"\",\"\",'1. Ordersheet'!M1242)","v":""},null,null,{"$f":"'1. Ordersheet'!AR1242","v":0},{"$f":"IF('1. Ordersheet'!AE1242=\"\",\"\",'1. Ordersheet'!AE1242)","v":""}]
[{"$f":"IF('1. Ordersheet'!B1243=\"\",\"\",'1. Ordersheet'!B1243)","v":""},{"$f":"IF('1. Ordersheet'!I1243=\"\",\"\",'1. Ordersheet'!I1243)","v":""},{"$f":"IF('1. Ordersheet'!J1243=\"\",\"\",'1. Ordersheet'!J1243)","v":""},{"$f":"IF('1. Ordersheet'!K1243=\"\",\"\",'1. Ordersheet'!K1243)","v":""},{"$f":"IF('1. Ordersheet'!M1243=\"\",\"\",'1. Ordersheet'!M1243)","v":""},null,null,{"$f":"'1. Ordersheet'!AR1243","v":0},{"$f":"IF('1. Ordersheet'!AE1243=\"\",\"\",'1. Ordersheet'!AE1243)","v":""}]
[{"$f":"IF('1. Ordersheet'!B1244=\"\",\"\",'1. Ordersheet'!B1244)","v":""},{"$f":"IF('1. Ordersheet'!I1244=\"\",\"\",'1. Ordersheet'!I1244)","v":""},{"$f":"IF('1. Ordersheet'!J1244=\"\",\"\",'1. Ordersheet'!J1244)","v":""},{"$f":"IF('1. Ordersheet'!K1244=\"\",\"\",'1. Ordersheet'!K1244)","v":""},{"$f":"IF('1. Ordersheet'!M1244=\"\",\"\",'1. Ordersheet'!M1244)","v":""},null,null,{"$f":"'1. Ordersheet'!AR1244","v":0},{"$f":"IF('1. Ordersheet'!AE1244=\"\",\"\",'1. Ordersheet'!AE1244)","v":""}]
[{"$f":"IF('1. Ordersheet'!B1245=\"\",\"\",'1. Ordersheet'!B1245)","v":""},{"$f":"IF('1. Ordersheet'!I1245=\"\",\"\",'1. Ordersheet'!I1245)","v":""},{"$f":"IF('1. Ordersheet'!J1245=\"\",\"\",'1. Ordersheet'!J1245)","v":""},{"$f":"IF('1. Ordersheet'!K1245=\"\",\"\",'1. Ordersheet'!K1245)","v":""},{"$f":"IF('1. Ordersheet'!M1245=\"\",\"\",'1. Ordersheet'!M1245)","v":""},null,null,{"$f":"'1. Ordersheet'!AR1245","v":0},{"$f":"IF('1. Ordersheet'!AE1245=\"\",\"\",'1. Ordersheet'!AE1245)","v":""}]
[{"$f":"IF('1. Ordersheet'!B1246=\"\",\"\",'1. Ordersheet'!B1246)","v":""},{"$f":"IF('1. Ordersheet'!I1246=\"\",\"\",'1. Ordersheet'!I1246)","v":""},{"$f":"IF('1. Ordersheet'!J1246=\"\",\"\",'1. Ordersheet'!J1246)","v":""},{"$f":"IF('1. Ordersheet'!K1246=\"\",\"\",'1. Ordersheet'!K1246)","v":""},{"$f":"IF('1. Ordersheet'!M1246=\"\",\"\",'1. Ordersheet'!M1246)","v":""},null,null,{"$f":"'1. Ordersheet'!AR1246","v":0},{"$f":"IF('1. Ordersheet'!AE1246=\"\",\"\",'1. Ordersheet'!AE1246)","v":""}]
[{"$f":"IF('1. Ordersheet'!B1247=\"\",\"\",'1. Ordersheet'!B1247)","v":""},{"$f":"IF('1. Ordersheet'!I1247=\"\",\"\",'1. Ordersheet'!I1247)","v":""},{"$f":"IF('1. Ordersheet'!J1247=\"\",\"\",'1. Ordersheet'!J1247)","v":""},{"$f":"IF('1. Ordersheet'!K1247=\"\",\"\",'1. Ordersheet'!K1247)","v":""},{"$f":"IF('1. Ordersheet'!M1247=\"\",\"\",'1. Ordersheet'!M1247)","v":""},null,null,{"$f":"'1. Ordersheet'!AR1247","v":0},{"$f":"IF('1. Ordersheet'!AE1247=\"\",\"\",'1. Ordersheet'!AE1247)","v":""}]
[{"$f":"IF('1. Ordersheet'!B1248=\"\",\"\",'1. Ordersheet'!B1248)","v":""},{"$f":"IF('1. Ordersheet'!I1248=\"\",\"\",'1. Ordersheet'!I1248)","v":""},{"$f":"IF('1. Ordersheet'!J1248=\"\",\"\",'1. Ordersheet'!J1248)","v":""},{"$f":"IF('1. Ordersheet'!K1248=\"\",\"\",'1. Ordersheet'!K1248)","v":""},{"$f":"IF('1. Ordersheet'!M1248=\"\",\"\",'1. Ordersheet'!M1248)","v":""},null,null,{"$f":"'1. Ordersheet'!AR1248","v":0},{"$f":"IF('1. Ordersheet'!AE1248=\"\",\"\",'1. Ordersheet'!AE1248)","v":""}]
[{"$f":"IF('1. Ordersheet'!B1249=\"\",\"\",'1. Ordersheet'!B1249)","v":""},{"$f":"IF('1. Ordersheet'!I1249=\"\",\"\",'1. Ordersheet'!I1249)","v":""},{"$f":"IF('1. Ordersheet'!J1249=\"\",\"\",'1. Ordersheet'!J1249)","v":""},{"$f":"IF('1. Ordersheet'!K1249=\"\",\"\",'1. Ordersheet'!K1249)","v":""},{"$f":"IF('1. Ordersheet'!M1249=\"\",\"\",'1. Ordersheet'!M1249)","v":""},null,null,{"$f":"'1. Ordersheet'!AR1249","v":0},{"$f":"IF('1. Ordersheet'!AE1249=\"\",\"\",'1. Ordersheet'!AE1249)","v":""}]
[{"$f":"IF('1. Ordersheet'!B1250=\"\",\"\",'1. Ordersheet'!B1250)","v":""},{"$f":"IF('1. Ordersheet'!I1250=\"\",\"\",'1. Ordersheet'!I1250)","v":""},{"$f":"IF('1. Ordersheet'!J1250=\"\",\"\",'1. Ordersheet'!J1250)","v":""},{"$f":"IF('1. Ordersheet'!K1250=\"\",\"\",'1. Ordersheet'!K1250)","v":""},{"$f":"IF('1. Ordersheet'!M1250=\"\",\"\",'1. Ordersheet'!M1250)","v":""},null,null,{"$f":"'1. Ordersheet'!AR1250","v":0},{"$f":"IF('1. Ordersheet'!AE1250=\"\",\"\",'1. Ordersheet'!AE1250)","v":""}]
[{"$f":"IF('1. Ordersheet'!B1251=\"\",\"\",'1. Ordersheet'!B1251)","v":""},{"$f":"IF('1. Ordersheet'!I1251=\"\",\"\",'1. Ordersheet'!I1251)","v":""},{"$f":"IF('1. Ordersheet'!J1251=\"\",\"\",'1. Ordersheet'!J1251)","v":""},{"$f":"IF('1. Ordersheet'!K1251=\"\",\"\",'1. Ordersheet'!K1251)","v":""},{"$f":"IF('1. Ordersheet'!M1251=\"\",\"\",'1. Ordersheet'!M1251)","v":""},null,null,{"$f":"'1. Ordersheet'!AR1251","v":0},{"$f":"IF('1. Ordersheet'!AE1251=\"\",\"\",'1. Ordersheet'!AE1251)","v":""}]
[{"$f":"IF('1. Ordersheet'!B1252=\"\",\"\",'1. Ordersheet'!B1252)","v":""},{"$f":"IF('1. Ordersheet'!I1252=\"\",\"\",'1. Ordersheet'!I1252)","v":""},{"$f":"IF('1. Ordersheet'!J1252=\"\",\"\",'1. Ordersheet'!J1252)","v":""},{"$f":"IF('1. Ordersheet'!K1252=\"\",\"\",'1. Ordersheet'!K1252)","v":""},{"$f":"IF('1. Ordersheet'!M1252=\"\",\"\",'1. Ordersheet'!M1252)","v":""},null,null,{"$f":"'1. Ordersheet'!AR1252","v":0},{"$f":"IF('1. Ordersheet'!AE1252=\"\",\"\",'1. Ordersheet'!AE1252)","v":""}]
[{"$f":"IF('1. Ordersheet'!B1253=\"\",\"\",'1. Ordersheet'!B1253)","v":""},{"$f":"IF('1. Ordersheet'!I1253=\"\",\"\",'1. Ordersheet'!I1253)","v":""},{"$f":"IF('1. Ordersheet'!J1253=\"\",\"\",'1. Ordersheet'!J1253)","v":""},{"$f":"IF('1. Ordersheet'!K1253=\"\",\"\",'1. Ordersheet'!K1253)","v":""},{"$f":"IF('1. Ordersheet'!M1253=\"\",\"\",'1. Ordersheet'!M1253)","v":""},null,null,{"$f":"'1. Ordersheet'!AR1253","v":0},{"$f":"IF('1. Ordersheet'!AE1253=\"\",\"\",'1. Ordersheet'!AE1253)","v":""}]
[{"$f":"IF('1. Ordersheet'!B1254=\"\",\"\",'1. Ordersheet'!B1254)","v":""},{"$f":"IF('1. Ordersheet'!I1254=\"\",\"\",'1. Ordersheet'!I1254)","v":""},{"$f":"IF('1. Ordersheet'!J1254=\"\",\"\",'1. Ordersheet'!J1254)","v":""},{"$f":"IF('1. Ordersheet'!K1254=\"\",\"\",'1. Ordersheet'!K1254)","v":""},{"$f":"IF('1. Ordersheet'!M1254=\"\",\"\",'1. Ordersheet'!M1254)","v":""},null,null,{"$f":"'1. Ordersheet'!AR1254","v":0},{"$f":"IF('1. Ordersheet'!AE1254=\"\",\"\",'1. Ordersheet'!AE1254)","v":""}]
[{"$f":"IF('1. Ordersheet'!B1255=\"\",\"\",'1. Ordersheet'!B1255)","v":""},{"$f":"IF('1. Ordersheet'!I1255=\"\",\"\",'1. Ordersheet'!I1255)","v":""},{"$f":"IF('1. Ordersheet'!J1255=\"\",\"\",'1. Ordersheet'!J1255)","v":""},{"$f":"IF('1. Ordersheet'!K1255=\"\",\"\",'1. Ordersheet'!K1255)","v":""},{"$f":"IF('1. Ordersheet'!M1255=\"\",\"\",'1. Ordersheet'!M1255)","v":""},null,null,{"$f":"'1. Ordersheet'!AR1255","v":0},{"$f":"IF('1. Ordersheet'!AE1255=\"\",\"\",'1. Ordersheet'!AE1255)","v":""}]
[{"$f":"IF('1. Ordersheet'!B1256=\"\",\"\",'1. Ordersheet'!B1256)","v":""},{"$f":"IF('1. Ordersheet'!I1256=\"\",\"\",'1. Ordersheet'!I1256)","v":""},{"$f":"IF('1. Ordersheet'!J1256=\"\",\"\",'1. Ordersheet'!J1256)","v":""},{"$f":"IF('1. Ordersheet'!K1256=\"\",\"\",'1. Ordersheet'!K1256)","v":""},{"$f":"IF('1. Ordersheet'!M1256=\"\",\"\",'1. Ordersheet'!M1256)","v":""},null,null,{"$f":"'1. Ordersheet'!AR1256","v":0},{"$f":"IF('1. Ordersheet'!AE1256=\"\",\"\",'1. Ordersheet'!AE1256)","v":""}]
[{"$f":"IF('1. Ordersheet'!B1257=\"\",\"\",'1. Ordersheet'!B1257)","v":""},{"$f":"IF('1. Ordersheet'!I1257=\"\",\"\",'1. Ordersheet'!I1257)","v":""},{"$f":"IF('1. Ordersheet'!J1257=\"\",\"\",'1. Ordersheet'!J1257)","v":""},{"$f":"IF('1. Ordersheet'!K1257=\"\",\"\",'1. Ordersheet'!K1257)","v":""},{"$f":"IF('1. Ordersheet'!M1257=\"\",\"\",'1. Ordersheet'!M1257)","v":""},null,null,{"$f":"'1. Ordersheet'!AR1257","v":0},{"$f":"IF('1. Ordersheet'!AE1257=\"\",\"\",'1. Ordersheet'!AE1257)","v":""}]
[{"$f":"IF('1. Ordersheet'!B1258=\"\",\"\",'1. Ordersheet'!B1258)","v":""},{"$f":"IF('1. Ordersheet'!I1258=\"\",\"\",'1. Ordersheet'!I1258)","v":""},{"$f":"IF('1. Ordersheet'!J1258=\"\",\"\",'1. Ordersheet'!J1258)","v":""},{"$f":"IF('1. Ordersheet'!K1258=\"\",\"\",'1. Ordersheet'!K1258)","v":""},{"$f":"IF('1. Ordersheet'!M1258=\"\",\"\",'1. Ordersheet'!M1258)","v":""},null,null,{"$f":"'1. Ordersheet'!AR1258","v":0},{"$f":"IF('1. Ordersheet'!AE1258=\"\",\"\",'1. Ordersheet'!AE1258)","v":""}]
[{"$f":"IF('1. Ordersheet'!B1259=\"\",\"\",'1. Ordersheet'!B1259)","v":""},{"$f":"IF('1. Ordersheet'!I1259=\"\",\"\",'1. Ordersheet'!I1259)","v":""},{"$f":"IF('1. Ordersheet'!J1259=\"\",\"\",'1. Ordersheet'!J1259)","v":""},{"$f":"IF('1. Ordersheet'!K1259=\"\",\"\",'1. Ordersheet'!K1259)","v":""},{"$f":"IF('1. Ordersheet'!M1259=\"\",\"\",'1. Ordersheet'!M1259)","v":""},null,null,{"$f":"'1. Ordersheet'!AR1259","v":0},{"$f":"IF('1. Ordersheet'!AE1259=\"\",\"\",'1. Ordersheet'!AE1259)","v":""}]
[{"$f":"IF('1. Ordersheet'!B1260=\"\",\"\",'1. Ordersheet'!B1260)","v":""},{"$f":"IF('1. Ordersheet'!I1260=\"\",\"\",'1. Ordersheet'!I1260)","v":""},{"$f":"IF('1. Ordersheet'!J1260=\"\",\"\",'1. Ordersheet'!J1260)","v":""},{"$f":"IF('1. Ordersheet'!K1260=\"\",\"\",'1. Ordersheet'!K1260)","v":""},{"$f":"IF('1. Ordersheet'!M1260=\"\",\"\",'1. Ordersheet'!M1260)","v":""},null,null,{"$f":"'1. Ordersheet'!AR1260","v":0},{"$f":"IF('1. Ordersheet'!AE1260=\"\",\"\",'1. Ordersheet'!AE1260)","v":""}]
[{"$f":"IF('1. Ordersheet'!B1261=\"\",\"\",'1. Ordersheet'!B1261)","v":""},{"$f":"IF('1. Ordersheet'!I1261=\"\",\"\",'1. Ordersheet'!I1261)","v":""},{"$f":"IF('1. Ordersheet'!J1261=\"\",\"\",'1. Ordersheet'!J1261)","v":""},{"$f":"IF('1. Ordersheet'!K1261=\"\",\"\",'1. Ordersheet'!K1261)","v":""},{"$f":"IF('1. Ordersheet'!M1261=\"\",\"\",'1. Ordersheet'!M1261)","v":""},null,null,{"$f":"'1. Ordersheet'!AR1261","v":0},{"$f":"IF('1. Ordersheet'!AE1261=\"\",\"\",'1. Ordersheet'!AE1261)","v":""}]
[{"$f":"IF('1. Ordersheet'!B1262=\"\",\"\",'1. Ordersheet'!B1262)","v":""},{"$f":"IF('1. Ordersheet'!I1262=\"\",\"\",'1. Ordersheet'!I1262)","v":""},{"$f":"IF('1. Ordersheet'!J1262=\"\",\"\",'1. Ordersheet'!J1262)","v":""},{"$f":"IF('1. Ordersheet'!K1262=\"\",\"\",'1. Ordersheet'!K1262)","v":""},{"$f":"IF('1. Ordersheet'!M1262=\"\",\"\",'1. Ordersheet'!M1262)","v":""},null,null,{"$f":"'1. Ordersheet'!AR1262","v":0},{"$f":"IF('1. Ordersheet'!AE1262=\"\",\"\",'1. Ordersheet'!AE1262)","v":""}]
[{"$f":"IF('1. Ordersheet'!B1263=\"\",\"\",'1. Ordersheet'!B1263)","v":""},{"$f":"IF('1. Ordersheet'!I1263=\"\",\"\",'1. Ordersheet'!I1263)","v":""},{"$f":"IF('1. Ordersheet'!J1263=\"\",\"\",'1. Ordersheet'!J1263)","v":""},{"$f":"IF('1. Ordersheet'!K1263=\"\",\"\",'1. Ordersheet'!K1263)","v":""},{"$f":"IF('1. Ordersheet'!M1263=\"\",\"\",'1. Ordersheet'!M1263)","v":""},null,null,{"$f":"'1. Ordersheet'!AR1263","v":0},{"$f":"IF('1. Ordersheet'!AE1263=\"\",\"\",'1. Ordersheet'!AE1263)","v":""}]
[{"$f":"IF('1. Ordersheet'!B1264=\"\",\"\",'1. Ordersheet'!B1264)","v":""},{"$f":"IF('1. Ordersheet'!I1264=\"\",\"\",'1. Ordersheet'!I1264)","v":""},{"$f":"IF('1. Ordersheet'!J1264=\"\",\"\",'1. Ordersheet'!J1264)","v":""},{"$f":"IF('1. Ordersheet'!K1264=\"\",\"\",'1. Ordersheet'!K1264)","v":""},{"$f":"IF('1. Ordersheet'!M1264=\"\",\"\",'1. Ordersheet'!M1264)","v":""},null,null,{"$f":"'1. Ordersheet'!AR1264","v":0},{"$f":"IF('1. Ordersheet'!AE1264=\"\",\"\",'1. Ordersheet'!AE1264)","v":""}]
[{"$f":"IF('1. Ordersheet'!B1265=\"\",\"\",'1. Ordersheet'!B1265)","v":""},{"$f":"IF('1. Ordersheet'!I1265=\"\",\"\",'1. Ordersheet'!I1265)","v":""},{"$f":"IF('1. Ordersheet'!J1265=\"\",\"\",'1. Ordersheet'!J1265)","v":""},{"$f":"IF('1. Ordersheet'!K1265=\"\",\"\",'1. Ordersheet'!K1265)","v":""},{"$f":"IF('1. Ordersheet'!M1265=\"\",\"\",'1. Ordersheet'!M1265)","v":""},null,null,{"$f":"'1. Ordersheet'!AR1265","v":0},{"$f":"IF('1. Ordersheet'!AE1265=\"\",\"\",'1. Ordersheet'!AE1265)","v":""}]
[{"$f":"IF('1. Ordersheet'!B1266=\"\",\"\",'1. Ordersheet'!B1266)","v":""},{"$f":"IF('1. Ordersheet'!I1266=\"\",\"\",'1. Ordersheet'!I1266)","v":""},{"$f":"IF('1. Ordersheet'!J1266=\"\",\"\",'1. Ordersheet'!J1266)","v":""},{"$f":"IF('1. Ordersheet'!K1266=\"\",\"\",'1. Ordersheet'!K1266)","v":""},{"$f":"IF('1. Ordersheet'!M1266=\"\",\"\",'1. Ordersheet'!M1266)","v":""},null,null,{"$f":"'1. Ordersheet'!AR1266","v":0},{"$f":"IF('1. Ordersheet'!AE1266=\"\",\"\",'1. Ordersheet'!AE1266)","v":""}]
[{"$f":"IF('1. Ordersheet'!B1267=\"\",\"\",'1. Ordersheet'!B1267)","v":""},{"$f":"IF('1. Ordersheet'!I1267=\"\",\"\",'1. Ordersheet'!I1267)","v":""},{"$f":"IF('1. Ordersheet'!J1267=\"\",\"\",'1. Ordersheet'!J1267)","v":""},{"$f":"IF('1. Ordersheet'!K1267=\"\",\"\",'1. Ordersheet'!K1267)","v":""},{"$f":"IF('1. Ordersheet'!M1267=\"\",\"\",'1. Ordersheet'!M1267)","v":""},null,null,{"$f":"'1. Ordersheet'!AR1267","v":0},{"$f":"IF('1. Ordersheet'!AE1267=\"\",\"\",'1. Ordersheet'!AE1267)","v":""}]
[{"$f":"IF('1. Ordersheet'!B1268=\"\",\"\",'1. Ordersheet'!B1268)","v":""},{"$f":"IF('1. Ordersheet'!I1268=\"\",\"\",'1. Ordersheet'!I1268)","v":""},{"$f":"IF('1. Ordersheet'!J1268=\"\",\"\",'1. Ordersheet'!J1268)","v":""},{"$f":"IF('1. Ordersheet'!K1268=\"\",\"\",'1. Ordersheet'!K1268)","v":""},{"$f":"IF('1. Ordersheet'!M1268=\"\",\"\",'1. Ordersheet'!M1268)","v":""},null,null,{"$f":"'1. Ordersheet'!AR1268","v":0},{"$f":"IF('1. Ordersheet'!AE1268=\"\",\"\",'1. Ordersheet'!AE1268)","v":""}]
[{"$f":"IF('1. Ordersheet'!B1269=\"\",\"\",'1. Ordersheet'!B1269)","v":""},{"$f":"IF('1. Ordersheet'!I1269=\"\",\"\",'1. Ordersheet'!I1269)","v":""},{"$f":"IF('1. Ordersheet'!J1269=\"\",\"\",'1. Ordersheet'!J1269)","v":""},{"$f":"IF('1. Ordersheet'!K1269=\"\",\"\",'1. Ordersheet'!K1269)","v":""},{"$f":"IF('1. Ordersheet'!M1269=\"\",\"\",'1. Ordersheet'!M1269)","v":""},null,null,{"$f":"'1. Ordersheet'!AR1269","v":0},{"$f":"IF('1. Ordersheet'!AE1269=\"\",\"\",'1. Ordersheet'!AE1269)","v":""}]
[{"$f":"IF('1. Ordersheet'!B1270=\"\",\"\",'1. Ordersheet'!B1270)","v":""},{"$f":"IF('1. Ordersheet'!I1270=\"\",\"\",'1. Ordersheet'!I1270)","v":""},{"$f":"IF('1. Ordersheet'!J1270=\"\",\"\",'1. Ordersheet'!J1270)","v":""},{"$f":"IF('1. Ordersheet'!K1270=\"\",\"\",'1. Ordersheet'!K1270)","v":""},{"$f":"IF('1. Ordersheet'!M1270=\"\",\"\",'1. Ordersheet'!M1270)","v":""},null,null,{"$f":"'1. Ordersheet'!AR1270","v":0},{"$f":"IF('1. Ordersheet'!AE1270=\"\",\"\",'1. Ordersheet'!AE1270)","v":""}]
[{"$f":"IF('1. Ordersheet'!B1271=\"\",\"\",'1. Ordersheet'!B1271)","v":""},{"$f":"IF('1. Ordersheet'!I1271=\"\",\"\",'1. Ordersheet'!I1271)","v":""},{"$f":"IF('1. Ordersheet'!J1271=\"\",\"\",'1. Ordersheet'!J1271)","v":""},{"$f":"IF('1. Ordersheet'!K1271=\"\",\"\",'1. Ordersheet'!K1271)","v":""},{"$f":"IF('1. Ordersheet'!M1271=\"\",\"\",'1. Ordersheet'!M1271)","v":""},null,null,{"$f":"'1. Ordersheet'!AR1271","v":0},{"$f":"IF('1. Ordersheet'!AE1271=\"\",\"\",'1. Ordersheet'!AE1271)","v":""}]
[{"$f":"IF('1. Ordersheet'!B1272=\"\",\"\",'1. Ordersheet'!B1272)","v":""},{"$f":"IF('1. Ordersheet'!I1272=\"\",\"\",'1. Ordersheet'!I1272)","v":""},{"$f":"IF('1. Ordersheet'!J1272=\"\",\"\",'1. Ordersheet'!J1272)","v":""},{"$f":"IF('1. Ordersheet'!K1272=\"\",\"\",'1. Ordersheet'!K1272)","v":""},{"$f":"IF('1. Ordersheet'!M1272=\"\",\"\",'1. Ordersheet'!M1272)","v":""},null,null,{"$f":"'1. Ordersheet'!AR1272","v":0},{"$f":"IF('1. Ordersheet'!AE1272=\"\",\"\",'1. Ordersheet'!AE1272)","v":""}]
[{"$f":"IF('1. Ordersheet'!B1273=\"\",\"\",'1. Ordersheet'!B1273)","v":""},{"$f":"IF('1. Ordersheet'!I1273=\"\",\"\",'1. Ordersheet'!I1273)","v":""},{"$f":"IF('1. Ordersheet'!J1273=\"\",\"\",'1. Ordersheet'!J1273)","v":""},{"$f":"IF('1. Ordersheet'!K1273=\"\",\"\",'1. Ordersheet'!K1273)","v":""},{"$f":"IF('1. Ordersheet'!M1273=\"\",\"\",'1. Ordersheet'!M1273)","v":""},null,null,{"$f":"'1. Ordersheet'!AR1273","v":0},{"$f":"IF('1. Ordersheet'!AE1273=\"\",\"\",'1. Ordersheet'!AE1273)","v":""}]
[{"$f":"IF('1. Ordersheet'!B1274=\"\",\"\",'1. Ordersheet'!B1274)","v":""},{"$f":"IF('1. Ordersheet'!I1274=\"\",\"\",'1. Ordersheet'!I1274)","v":""},{"$f":"IF('1. Ordersheet'!J1274=\"\",\"\",'1. Ordersheet'!J1274)","v":""},{"$f":"IF('1. Ordersheet'!K1274=\"\",\"\",'1. Ordersheet'!K1274)","v":""},{"$f":"IF('1. Ordersheet'!M1274=\"\",\"\",'1. Ordersheet'!M1274)","v":""},null,null,{"$f":"'1. Ordersheet'!AR1274","v":0},{"$f":"IF('1. Ordersheet'!AE1274=\"\",\"\",'1. Ordersheet'!AE1274)","v":""}]
[{"$f":"IF('1. Ordersheet'!B1275=\"\",\"\",'1. Ordersheet'!B1275)","v":""},{"$f":"IF('1. Ordersheet'!I1275=\"\",\"\",'1. Ordersheet'!I1275)","v":""},{"$f":"IF('1. Ordersheet'!J1275=\"\",\"\",'1. Ordersheet'!J1275)","v":""},{"$f":"IF('1. Ordersheet'!K1275=\"\",\"\",'1. Ordersheet'!K1275)","v":""},{"$f":"IF('1. Ordersheet'!M1275=\"\",\"\",'1. Ordersheet'!M1275)","v":""},null,null,{"$f":"'1. Ordersheet'!AR1275","v":0},{"$f":"IF('1. Ordersheet'!AE1275=\"\",\"\",'1. Ordersheet'!AE1275)","v":""}]
[{"$f":"IF('1. Ordersheet'!B1276=\"\",\"\",'1. Ordersheet'!B1276)","v":""},{"$f":"IF('1. Ordersheet'!I1276=\"\",\"\",'1. Ordersheet'!I1276)","v":""},{"$f":"IF('1. Ordersheet'!J1276=\"\",\"\",'1. Ordersheet'!J1276)","v":""},{"$f":"IF('1. Ordersheet'!K1276=\"\",\"\",'1. Ordersheet'!K1276)","v":""},{"$f":"IF('1. Ordersheet'!M1276=\"\",\"\",'1. Ordersheet'!M1276)","v":""},null,null,{"$f":"'1. Ordersheet'!AR1276","v":0},{"$f":"IF('1. Ordersheet'!AE1276=\"\",\"\",'1. Ordersheet'!AE1276)","v":""}]
[{"$f":"IF('1. Ordersheet'!B1277=\"\",\"\",'1. Ordersheet'!B1277)","v":""},{"$f":"IF('1. Ordersheet'!I1277=\"\",\"\",'1. Ordersheet'!I1277)","v":""},{"$f":"IF('1. Ordersheet'!J1277=\"\",\"\",'1. Ordersheet'!J1277)","v":""},{"$f":"IF('1. Ordersheet'!K1277=\"\",\"\",'1. Ordersheet'!K1277)","v":""},{"$f":"IF('1. Ordersheet'!M1277=\"\",\"\",'1. Ordersheet'!M1277)","v":""},null,null,{"$f":"'1. Ordersheet'!AR1277","v":0},{"$f":"IF('1. Ordersheet'!AE1277=\"\",\"\",'1. Ordersheet'!AE1277)","v":""}]
[{"$f":"IF('1. Ordersheet'!B1278=\"\",\"\",'1. Ordersheet'!B1278)","v":""},{"$f":"IF('1. Ordersheet'!I1278=\"\",\"\",'1. Ordersheet'!I1278)","v":""},{"$f":"IF('1. Ordersheet'!J1278=\"\",\"\",'1. Ordersheet'!J1278)","v":""},{"$f":"IF('1. Ordersheet'!K1278=\"\",\"\",'1. Ordersheet'!K1278)","v":""},{"$f":"IF('1. Ordersheet'!M1278=\"\",\"\",'1. Ordersheet'!M1278)","v":""},null,null,{"$f":"'1. Ordersheet'!AR1278","v":0},{"$f":"IF('1. Ordersheet'!AE1278=\"\",\"\",'1. Ordersheet'!AE1278)","v":""}]
[{"$f":"IF('1. Ordersheet'!B1279=\"\",\"\",'1. Ordersheet'!B1279)","v":""},{"$f":"IF('1. Ordersheet'!I1279=\"\",\"\",'1. Ordersheet'!I1279)","v":""},{"$f":"IF('1. Ordersheet'!J1279=\"\",\"\",'1. Ordersheet'!J1279)","v":""},{"$f":"IF('1. Ordersheet'!K1279=\"\",\"\",'1. Ordersheet'!K1279)","v":""},{"$f":"IF('1. Ordersheet'!M1279=\"\",\"\",'1. Ordersheet'!M1279)","v":""},null,null,{"$f":"'1. Ordersheet'!AR1279","v":0},{"$f":"IF('1. Ordersheet'!AE1279=\"\",\"\",'1. Ordersheet'!AE1279)","v":""}]
[{"$f":"IF('1. Ordersheet'!B1280=\"\",\"\",'1. Ordersheet'!B1280)","v":""},{"$f":"IF('1. Ordersheet'!I1280=\"\",\"\",'1. Ordersheet'!I1280)","v":""},{"$f":"IF('1. Ordersheet'!J1280=\"\",\"\",'1. Ordersheet'!J1280)","v":""},{"$f":"IF('1. Ordersheet'!K1280=\"\",\"\",'1. Ordersheet'!K1280)","v":""},{"$f":"IF('1. Ordersheet'!M1280=\"\",\"\",'1. Ordersheet'!M1280)","v":""},null,null,{"$f":"'1. Ordersheet'!AR1280","v":0},{"$f":"IF('1. Ordersheet'!AE1280=\"\",\"\",'1. Ordersheet'!AE1280)","v":""}]
[{"$f":"IF('1. Ordersheet'!B1281=\"\",\"\",'1. Ordersheet'!B1281)","v":""},{"$f":"IF('1. Ordersheet'!I1281=\"\",\"\",'1. Ordersheet'!I1281)","v":""},{"$f":"IF('1. Ordersheet'!J1281=\"\",\"\",'1. Ordersheet'!J1281)","v":""},{"$f":"IF('1. Ordersheet'!K1281=\"\",\"\",'1. Ordersheet'!K1281)","v":""},{"$f":"IF('1. Ordersheet'!M1281=\"\",\"\",'1. Ordersheet'!M1281)","v":""},null,null,{"$f":"'1. Ordersheet'!AR1281","v":0},{"$f":"IF('1. Ordersheet'!AE1281=\"\",\"\",'1. Ordersheet'!AE1281)","v":""}]
[{"$f":"IF('1. Ordersheet'!B1282=\"\",\"\",'1. Ordersheet'!B1282)","v":""},{"$f":"IF('1. Ordersheet'!I1282=\"\",\"\",'1. Ordersheet'!I1282)","v":""},{"$f":"IF('1. Ordersheet'!J1282=\"\",\"\",'1. Ordersheet'!J1282)","v":""},{"$f":"IF('1. Ordersheet'!K1282=\"\",\"\",'1. Ordersheet'!K1282)","v":""},{"$f":"IF('1. Ordersheet'!M1282=\"\",\"\",'1. Ordersheet'!M1282)","v":""},null,null,{"$f":"'1. Ordersheet'!AR1282","v":0},{"$f":"IF('1. Ordersheet'!AE1282=\"\",\"\",'1. Ordersheet'!AE1282)","v":""}]
[{"$f":"IF('1. Ordersheet'!B1283=\"\",\"\",'1. Ordersheet'!B1283)","v":""},{"$f":"IF('1. Ordersheet'!I1283=\"\",\"\",'1. Ordersheet'!I1283)","v":""},{"$f":"IF('1. Ordersheet'!J1283=\"\",\"\",'1. Ordersheet'!J1283)","v":""},{"$f":"IF('1. Ordersheet'!K1283=\"\",\"\",'1. Ordersheet'!K1283)","v":""},{"$f":"IF('1. Ordersheet'!M1283=\"\",\"\",'1. Ordersheet'!M1283)","v":""},null,null,{"$f":"'1. Ordersheet'!AR1283","v":0},{"$f":"IF('1. Ordersheet'!AE1283=\"\",\"\",'1. Ordersheet'!AE1283)","v":""}]
[{"$f":"IF('1. Ordersheet'!B1284=\"\",\"\",'1. Ordersheet'!B1284)","v":""},{"$f":"IF('1. Ordersheet'!I1284=\"\",\"\",'1. Ordersheet'!I1284)","v":""},{"$f":"IF('1. Ordersheet'!J1284=\"\",\"\",'1. Ordersheet'!J1284)","v":""},{"$f":"IF('1. Ordersheet'!K1284=\"\",\"\",'1. Ordersheet'!K1284)","v":""},{"$f":"IF('1. Ordersheet'!M1284=\"\",\"\",'1. Ordersheet'!M1284)","v":""},null,null,{"$f":"'1. Ordersheet'!AR1284","v":0},{"$f":"IF('1. Ordersheet'!AE1284=\"\",\"\",'1. Ordersheet'!AE1284)","v":""}]
[{"$f":"IF('1. Ordersheet'!B1285=\"\",\"\",'1. Ordersheet'!B1285)","v":""},{"$f":"IF('1. Ordersheet'!I1285=\"\",\"\",'1. Ordersheet'!I1285)","v":""},{"$f":"IF('1. Ordersheet'!J1285=\"\",\"\",'1. Ordersheet'!J1285)","v":""},{"$f":"IF('1. Ordersheet'!K1285=\"\",\"\",'1. Ordersheet'!K1285)","v":""},{"$f":"IF('1. Ordersheet'!M1285=\"\",\"\",'1. Ordersheet'!M1285)","v":""},null,null,{"$f":"'1. Ordersheet'!AR1285","v":0},{"$f":"IF('1. Ordersheet'!AE1285=\"\",\"\",'1. Ordersheet'!AE1285)","v":""}]
[{"$f":"IF('1. Ordersheet'!B1286=\"\",\"\",'1. Ordersheet'!B1286)","v":""},{"$f":"IF('1. Ordersheet'!I1286=\"\",\"\",'1. Ordersheet'!I1286)","v":""},{"$f":"IF('1. Ordersheet'!J1286=\"\",\"\",'1. Ordersheet'!J1286)","v":""},{"$f":"IF('1. Ordersheet'!K1286=\"\",\"\",'1. Ordersheet'!K1286)","v":""},{"$f":"IF('1. Ordersheet'!M1286=\"\",\"\",'1. Ordersheet'!M1286)","v":""},null,null,{"$f":"'1. Ordersheet'!AR1286","v":0},{"$f":"IF('1. Ordersheet'!AE1286=\"\",\"\",'1. Ordersheet'!AE1286)","v":""}]
[{"$f":"IF('1. Ordersheet'!B1287=\"\",\"\",'1. Ordersheet'!B1287)","v":""},{"$f":"IF('1. Ordersheet'!I1287=\"\",\"\",'1. Ordersheet'!I1287)","v":""},{"$f":"IF('1. Ordersheet'!J1287=\"\",\"\",'1. Ordersheet'!J1287)","v":""},{"$f":"IF('1. Ordersheet'!K1287=\"\",\"\",'1. Ordersheet'!K1287)","v":""},{"$f":"IF('1. Ordersheet'!M1287=\"\",\"\",'1. Ordersheet'!M1287)","v":""},null,null,{"$f":"'1. Ordersheet'!AR1287","v":0},{"$f":"IF('1. Ordersheet'!AE1287=\"\",\"\",'1. Ordersheet'!AE1287)","v":""}]
[{"$f":"IF('1. Ordersheet'!B1288=\"\",\"\",'1. Ordersheet'!B1288)","v":""},{"$f":"IF('1. Ordersheet'!I1288=\"\",\"\",'1. Ordersheet'!I1288)","v":""},{"$f":"IF('1. Ordersheet'!J1288=\"\",\"\",'1. Ordersheet'!J1288)","v":""},{"$f":"IF('1. Ordersheet'!K1288=\"\",\"\",'1. Ordersheet'!K1288)","v":""},{"$f":"IF('1. Ordersheet'!M1288=\"\",\"\",'1. Ordersheet'!M1288)","v":""},null,null,{"$f":"'1. Ordersheet'!AR1288","v":0},{"$f":"IF('1. Ordersheet'!AE1288=\"\",\"\",'1. Ordersheet'!AE1288)","v":""}]
[{"$f":"IF('1. Ordersheet'!B1289=\"\",\"\",'1. Ordersheet'!B1289)","v":""},{"$f":"IF('1. Ordersheet'!I1289=\"\",\"\",'1. Ordersheet'!I1289)","v":""},{"$f":"IF('1. Ordersheet'!J1289=\"\",\"\",'1. Ordersheet'!J1289)","v":""},{"$f":"IF('1. Ordersheet'!K1289=\"\",\"\",'1. Ordersheet'!K1289)","v":""},{"$f":"IF('1. Ordersheet'!M1289=\"\",\"\",'1. Ordersheet'!M1289)","v":""},null,null,{"$f":"'1. Ordersheet'!AR1289","v":0},{"$f":"IF('1. Ordersheet'!AE1289=\"\",\"\",'1. Ordersheet'!AE1289)","v":""}]
[{"$f":"IF('1. Ordersheet'!B1290=\"\",\"\",'1. Ordersheet'!B1290)","v":""},{"$f":"IF('1. Ordersheet'!I1290=\"\",\"\",'1. Ordersheet'!I1290)","v":""},{"$f":"IF('1. Ordersheet'!J1290=\"\",\"\",'1. Ordersheet'!J1290)","v":""},{"$f":"IF('1. Ordersheet'!K1290=\"\",\"\",'1. Ordersheet'!K1290)","v":""},{"$f":"IF('1. Ordersheet'!M1290=\"\",\"\",'1. Ordersheet'!M1290)","v":""},null,null,{"$f":"'1. Ordersheet'!AR1290","v":0},{"$f":"IF('1. Ordersheet'!AE1290=\"\",\"\",'1. Ordersheet'!AE1290)","v":""}]
[{"$f":"IF('1. Ordersheet'!B1291=\"\",\"\",'1. Ordersheet'!B1291)","v":""},{"$f":"IF('1. Ordersheet'!I1291=\"\",\"\",'1. Ordersheet'!I1291)","v":""},{"$f":"IF('1. Ordersheet'!J1291=\"\",\"\",'1. Ordersheet'!J1291)","v":""},{"$f":"IF('1. Ordersheet'!K1291=\"\",\"\",'1. Ordersheet'!K1291)","v":""},{"$f":"IF('1. Ordersheet'!M1291=\"\",\"\",'1. Ordersheet'!M1291)","v":""},null,null,{"$f":"'1. Ordersheet'!AR1291","v":0},{"$f":"IF('1. Ordersheet'!AE1291=\"\",\"\",'1. Ordersheet'!AE1291)","v":""}]
[{"$f":"IF('1. Ordersheet'!B1292=\"\",\"\",'1. Ordersheet'!B1292)","v":""},{"$f":"IF('1. Ordersheet'!I1292=\"\",\"\",'1. Ordersheet'!I1292)","v":""},{"$f":"IF('1. Ordersheet'!J1292=\"\",\"\",'1. Ordersheet'!J1292)","v":""},{"$f":"IF('1. Ordersheet'!K1292=\"\",\"\",'1. Ordersheet'!K1292)","v":""},{"$f":"IF('1. Ordersheet'!M1292=\"\",\"\",'1. Ordersheet'!M1292)","v":""},null,null,{"$f":"'1. Ordersheet'!AR1292","v":0},{"$f":"IF('1. Ordersheet'!AE1292=\"\",\"\",'1. Ordersheet'!AE1292)","v":""}]
[{"$f":"IF('1. Ordersheet'!B1293=\"\",\"\",'1. Ordersheet'!B1293)","v":""},{"$f":"IF('1. Ordersheet'!I1293=\"\",\"\",'1. Ordersheet'!I1293)","v":""},{"$f":"IF('1. Ordersheet'!J1293=\"\",\"\",'1. Ordersheet'!J1293)","v":""},{"$f":"IF('1. Ordersheet'!K1293=\"\",\"\",'1. Ordersheet'!K1293)","v":""},{"$f":"IF('1. Ordersheet'!M1293=\"\",\"\",'1. Ordersheet'!M1293)","v":""},null,null,{"$f":"'1. Ordersheet'!AR1293","v":0},{"$f":"IF('1. Ordersheet'!AE1293=\"\",\"\",'1. Ordersheet'!AE1293)","v":""}]
[{"$f":"IF('1. Ordersheet'!B1294=\"\",\"\",'1. Ordersheet'!B1294)","v":""},{"$f":"IF('1. Ordersheet'!I1294=\"\",\"\",'1. Ordersheet'!I1294)","v":""},{"$f":"IF('1. Ordersheet'!J1294=\"\",\"\",'1. Ordersheet'!J1294)","v":""},{"$f":"IF('1. Ordersheet'!K1294=\"\",\"\",'1. Ordersheet'!K1294)","v":""},{"$f":"IF('1. Ordersheet'!M1294=\"\",\"\",'1. Ordersheet'!M1294)","v":""},null,null,{"$f":"'1. Ordersheet'!AR1294","v":0},{"$f":"IF('1. Ordersheet'!AE1294=\"\",\"\",'1. Ordersheet'!AE1294)","v":""}]
[{"$f":"IF('1. Ordersheet'!B1295=\"\",\"\",'1. Ordersheet'!B1295)","v":""},{"$f":"IF('1. Ordersheet'!I1295=\"\",\"\",'1. Ordersheet'!I1295)","v":""},{"$f":"IF('1. Ordersheet'!J1295=\"\",\"\",'1. Ordersheet'!J1295)","v":""},{"$f":"IF('1. Ordersheet'!K1295=\"\",\"\",'1. Ordersheet'!K1295)","v":""},{"$f":"IF('1. Ordersheet'!M1295=\"\",\"\",'1. Ordersheet'!M1295)","v":""},null,null,{"$f":"'1. Ordersheet'!AR1295","v":0},{"$f":"IF('1. Ordersheet'!AE1295=\"\",\"\",'1. Ordersheet'!AE1295)","v":""}]
[{"$f":"IF('1. Ordersheet'!B1296=\"\",\"\",'1. Ordersheet'!B1296)","v":""},{"$f":"IF('1. Ordersheet'!I1296=\"\",\"\",'1. Ordersheet'!I1296)","v":""},{"$f":"IF('1. Ordersheet'!J1296=\"\",\"\",'1. Ordersheet'!J1296)","v":""},{"$f":"IF('1. Ordersheet'!K1296=\"\",\"\",'1. Ordersheet'!K1296)","v":""},{"$f":"IF('1. Ordersheet'!M1296=\"\",\"\",'1. Ordersheet'!M1296)","v":""},null,null,{"$f":"'1. Ordersheet'!AR1296","v":0},{"$f":"IF('1. Ordersheet'!AE1296=\"\",\"\",'1. Ordersheet'!AE1296)","v":""}]
[{"$f":"IF('1. Ordersheet'!B1297=\"\",\"\",'1. Ordersheet'!B1297)","v":""},{"$f":"IF('1. Ordersheet'!I1297=\"\",\"\",'1. Ordersheet'!I1297)","v":""},{"$f":"IF('1. Ordersheet'!J1297=\"\",\"\",'1. Ordersheet'!J1297)","v":""},{"$f":"IF('1. Ordersheet'!K1297=\"\",\"\",'1. Ordersheet'!K1297)","v":""},{"$f":"IF('1. Ordersheet'!M1297=\"\",\"\",'1. Ordersheet'!M1297)","v":""},null,null,{"$f":"'1. Ordersheet'!AR1297","v":0},{"$f":"IF('1. Ordersheet'!AE1297=\"\",\"\",'1. Ordersheet'!AE1297)","v":""}]
[{"$f":"IF('1. Ordersheet'!B1298=\"\",\"\",'1. Ordersheet'!B1298)","v":""},{"$f":"IF('1. Ordersheet'!I1298=\"\",\"\",'1. Ordersheet'!I1298)","v":""},{"$f":"IF('1. Ordersheet'!J1298=\"\",\"\",'1. Ordersheet'!J1298)","v":""},{"$f":"IF('1. Ordersheet'!K1298=\"\",\"\",'1. Ordersheet'!K1298)","v":""},{"$f":"IF('1. Ordersheet'!M1298=\"\",\"\",'1. Ordersheet'!M1298)","v":""},null,null,{"$f":"'1. Ordersheet'!AR1298","v":0},{"$f":"IF('1. Ordersheet'!AE1298=\"\",\"\",'1. Ordersheet'!AE1298)","v":""}]
[{"$f":"IF('1. Ordersheet'!B1299=\"\",\"\",'1. Ordersheet'!B1299)","v":""},{"$f":"IF('1. Ordersheet'!I1299=\"\",\"\",'1. Ordersheet'!I1299)","v":""},{"$f":"IF('1. Ordersheet'!J1299=\"\",\"\",'1. Ordersheet'!J1299)","v":""},{"$f":"IF('1. Ordersheet'!K1299=\"\",\"\",'1. Ordersheet'!K1299)","v":""},{"$f":"IF('1. Ordersheet'!M1299=\"\",\"\",'1. Ordersheet'!M1299)","v":""},null,null,{"$f":"'1. Ordersheet'!AR1299","v":0},{"$f":"IF('1. Ordersheet'!AE1299=\"\",\"\",'1. Ordersheet'!AE1299)","v":""}]
[{"$f":"IF('1. Ordersheet'!B1300=\"\",\"\",'1. Ordersheet'!B1300)","v":""},{"$f":"IF('1. Ordersheet'!I1300=\"\",\"\",'1. Ordersheet'!I1300)","v":""},{"$f":"IF('1. Ordersheet'!J1300=\"\",\"\",'1. Ordersheet'!J1300)","v":""},{"$f":"IF('1. Ordersheet'!K1300=\"\",\"\",'1. Ordersheet'!K1300)","v":""},{"$f":"IF('1. Ordersheet'!M1300=\"\",\"\",'1. Ordersheet'!M1300)","v":""},null,null,{"$f":"'1. Ordersheet'!AR1300","v":0},{"$f":"IF('1. Ordersheet'!AE1300=\"\",\"\",'1. Ordersheet'!AE1300)","v":""}]
[{"$f":"IF('1. Ordersheet'!B1301=\"\",\"\",'1. Ordersheet'!B1301)","v":""},{"$f":"IF('1. Ordersheet'!I1301=\"\",\"\",'1. Ordersheet'!I1301)","v":""},{"$f":"IF('1. Ordersheet'!J1301=\"\",\"\",'1. Ordersheet'!J1301)","v":""},{"$f":"IF('1. Ordersheet'!K1301=\"\",\"\",'1. Ordersheet'!K1301)","v":""},{"$f":"IF('1. Ordersheet'!M1301=\"\",\"\",'1. Ordersheet'!M1301)","v":""},null,null,{"$f":"'1. Ordersheet'!AR1301","v":0},{"$f":"IF('1. Ordersheet'!AE1301=\"\",\"\",'1. Ordersheet'!AE1301)","v":""}]
[{"$f":"IF('1. Ordersheet'!B1302=\"\",\"\",'1. Ordersheet'!B1302)","v":""},{"$f":"IF('1. Ordersheet'!I1302=\"\",\"\",'1. Ordersheet'!I1302)","v":""},{"$f":"IF('1. Ordersheet'!J1302=\"\",\"\",'1. Ordersheet'!J1302)","v":""},{"$f":"IF('1. Ordersheet'!K1302=\"\",\"\",'1. Ordersheet'!K1302)","v":""},{"$f":"IF('1. Ordersheet'!M1302=\"\",\"\",'1. Ordersheet'!M1302)","v":""},null,null,{"$f":"'1. Ordersheet'!AR1302","v":0},{"$f":"IF('1. Ordersheet'!AE1302=\"\",\"\",'1. Ordersheet'!AE1302)","v":""}]
[{"$f":"IF('1. Ordersheet'!B1303=\"\",\"\",'1. Ordersheet'!B1303)","v":""},{"$f":"IF('1. Ordersheet'!I1303=\"\",\"\",'1. Ordersheet'!I1303)","v":""},{"$f":"IF('1. Ordersheet'!J1303=\"\",\"\",'1. Ordersheet'!J1303)","v":""},{"$f":"IF('1. Ordersheet'!K1303=\"\",\"\",'1. Ordersheet'!K1303)","v":""},{"$f":"IF('1. Ordersheet'!M1303=\"\",\"\",'1. Ordersheet'!M1303)","v":""},null,null,{"$f":"'1. Ordersheet'!AR1303","v":0},{"$f":"IF('1. Ordersheet'!AE1303=\"\",\"\",'1. Ordersheet'!AE1303)","v":""}]
[{"$f":"IF('1. Ordersheet'!B1304=\"\",\"\",'1. Ordersheet'!B1304)","v":""},{"$f":"IF('1. Ordersheet'!I1304=\"\",\"\",'1. Ordersheet'!I1304)","v":""},{"$f":"IF('1. Ordersheet'!J1304=\"\",\"\",'1. Ordersheet'!J1304)","v":""},{"$f":"IF('1. Ordersheet'!K1304=\"\",\"\",'1. Ordersheet'!K1304)","v":""},{"$f":"IF('1. Ordersheet'!M1304=\"\",\"\",'1. Ordersheet'!M1304)","v":""},null,null,{"$f":"'1. Ordersheet'!AR1304","v":0},{"$f":"IF('1. Ordersheet'!AE1304=\"\",\"\",'1. Ordersheet'!AE1304)","v":""}]
[{"$f":"IF('1. Ordersheet'!B1305=\"\",\"\",'1. Ordersheet'!B1305)","v":""},{"$f":"IF('1. Ordersheet'!I1305=\"\",\"\",'1. Ordersheet'!I1305)","v":""},{"$f":"IF('1. Ordersheet'!J1305=\"\",\"\",'1. Ordersheet'!J1305)","v":""},{"$f":"IF('1. Ordersheet'!K1305=\"\",\"\",'1. Ordersheet'!K1305)","v":""},{"$f":"IF('1. Ordersheet'!M1305=\"\",\"\",'1. Ordersheet'!M1305)","v":""},null,null,{"$f":"'1. Ordersheet'!AR1305","v":0},{"$f":"IF('1. Ordersheet'!AE1305=\"\",\"\",'1. Ordersheet'!AE1305)","v":""}]
[{"$f":"IF('1. Ordersheet'!B1306=\"\",\"\",'1. Ordersheet'!B1306)","v":""},{"$f":"IF('1. Ordersheet'!I1306=\"\",\"\",'1. Ordersheet'!I1306)","v":""},{"$f":"IF('1. Ordersheet'!J1306=\"\",\"\",'1. Ordersheet'!J1306)","v":""},{"$f":"IF('1. Ordersheet'!K1306=\"\",\"\",'1. Ordersheet'!K1306)","v":""},{"$f":"IF('1. Ordersheet'!M1306=\"\",\"\",'1. Ordersheet'!M1306)","v":""},null,null,{"$f":"'1. Ordersheet'!AR1306","v":0},{"$f":"IF('1. Ordersheet'!AE1306=\"\",\"\",'1. Ordersheet'!AE1306)","v":""}]
[{"$f":"IF('1. Ordersheet'!B1307=\"\",\"\",'1. Ordersheet'!B1307)","v":""},{"$f":"IF('1. Ordersheet'!I1307=\"\",\"\",'1. Ordersheet'!I1307)","v":""},{"$f":"IF('1. Ordersheet'!J1307=\"\",\"\",'1. Ordersheet'!J1307)","v":""},{"$f":"IF('1. Ordersheet'!K1307=\"\",\"\",'1. Ordersheet'!K1307)","v":""},{"$f":"IF('1. Ordersheet'!M1307=\"\",\"\",'1. Ordersheet'!M1307)","v":""},null,null,{"$f":"'1. Ordersheet'!AR1307","v":0},{"$f":"IF('1. Ordersheet'!AE1307=\"\",\"\",'1. Ordersheet'!AE1307)","v":""}]
[{"$f":"IF('1. Ordersheet'!B1308=\"\",\"\",'1. Ordersheet'!B1308)","v":""},{"$f":"IF('1. Ordersheet'!I1308=\"\",\"\",'1. Ordersheet'!I1308)","v":""},{"$f":"IF('1. Ordersheet'!J1308=\"\",\"\",'1. Ordersheet'!J1308)","v":""},{"$f":"IF('1. Ordersheet'!K1308=\"\",\"\",'1. Ordersheet'!K1308)","v":""},{"$f":"IF('1. Ordersheet'!M1308=\"\",\"\",'1. Ordersheet'!M1308)","v":""},null,null,{"$f":"'1. Ordersheet'!AR1308","v":0},{"$f":"IF('1. Ordersheet'!AE1308=\"\",\"\",'1. Ordersheet'!AE1308)","v":""}]
[{"$f":"IF('1. Ordersheet'!B1309=\"\",\"\",'1. Ordersheet'!B1309)","v":""},{"$f":"IF('1. Ordersheet'!I1309=\"\",\"\",'1. Ordersheet'!I1309)","v":""},{"$f":"IF('1. Ordersheet'!J1309=\"\",\"\",'1. Ordersheet'!J1309)","v":""},{"$f":"IF('1. Ordersheet'!K1309=\"\",\"\",'1. Ordersheet'!K1309)","v":""},{"$f":"IF('1. Ordersheet'!M1309=\"\",\"\",'1. Ordersheet'!M1309)","v":""},null,null,{"$f":"'1. Ordersheet'!AR1309","v":0},{"$f":"IF('1. Ordersheet'!AE1309=\"\",\"\",'1. Ordersheet'!AE1309)","v":""}]
[{"$f":"IF('1. Ordersheet'!B1310=\"\",\"\",'1. Ordersheet'!B1310)","v":""},{"$f":"IF('1. Ordersheet'!I1310=\"\",\"\",'1. Ordersheet'!I1310)","v":""},{"$f":"IF('1. Ordersheet'!J1310=\"\",\"\",'1. Ordersheet'!J1310)","v":""},{"$f":"IF('1. Ordersheet'!K1310=\"\",\"\",'1. Ordersheet'!K1310)","v":""},{"$f":"IF('1. Ordersheet'!M1310=\"\",\"\",'1. Ordersheet'!M1310)","v":""},null,null,{"$f":"'1. Ordersheet'!AR1310","v":0},{"$f":"IF('1. Ordersheet'!AE1310=\"\",\"\",'1. Ordersheet'!AE1310)","v":""}]
[{"$f":"IF('1. Ordersheet'!B1311=\"\",\"\",'1. Ordersheet'!B1311)","v":""},{"$f":"IF('1. Ordersheet'!I1311=\"\",\"\",'1. Ordersheet'!I1311)","v":""},{"$f":"IF('1. Ordersheet'!J1311=\"\",\"\",'1. Ordersheet'!J1311)","v":""},{"$f":"IF('1. Ordersheet'!K1311=\"\",\"\",'1. Ordersheet'!K1311)","v":""},{"$f":"IF('1. Ordersheet'!M1311=\"\",\"\",'1. Ordersheet'!M1311)","v":""},null,null,{"$f":"'1. Ordersheet'!AR1311","v":0},{"$f":"IF('1. Ordersheet'!AE1311=\"\",\"\",'1. Ordersheet'!AE1311)","v":""}]
[{"$f":"IF('1. Ordersheet'!B1312=\"\",\"\",'1. Ordersheet'!B1312)","v":""},{"$f":"IF('1. Ordersheet'!I1312=\"\",\"\",'1. Ordersheet'!I1312)","v":""},{"$f":"IF('1. Ordersheet'!J1312=\"\",\"\",'1. Ordersheet'!J1312)","v":""},{"$f":"IF('1. Ordersheet'!K1312=\"\",\"\",'1. Ordersheet'!K1312)","v":""},{"$f":"IF('1. Ordersheet'!M1312=\"\",\"\",'1. Ordersheet'!M1312)","v":""},null,null,{"$f":"'1. Ordersheet'!AR1312","v":0},{"$f":"IF('1. Ordersheet'!AE1312=\"\",\"\",'1. Ordersheet'!AE1312)","v":""}]
[{"$f":"IF('1. Ordersheet'!B1313=\"\",\"\",'1. Ordersheet'!B1313)","v":""},{"$f":"IF('1. Ordersheet'!I1313=\"\",\"\",'1. Ordersheet'!I1313)","v":""},{"$f":"IF('1. Ordersheet'!J1313=\"\",\"\",'1. Ordersheet'!J1313)","v":""},{"$f":"IF('1. Ordersheet'!K1313=\"\",\"\",'1. Ordersheet'!K1313)","v":""},{"$f":"IF('1. Ordersheet'!M1313=\"\",\"\",'1. Ordersheet'!M1313)","v":""},null,null,{"$f":"'1. Ordersheet'!AR1313","v":0},{"$f":"IF('1. Ordersheet'!AE1313=\"\",\"\",'1. Ordersheet'!AE1313)","v":""}]
[{"$f":"IF('1. Ordersheet'!B1314=\"\",\"\",'1. Ordersheet'!B1314)","v":""},{"$f":"IF('1. Ordersheet'!I1314=\"\",\"\",'1. Ordersheet'!I1314)","v":""},{"$f":"IF('1. Ordersheet'!J1314=\"\",\"\",'1. Ordersheet'!J1314)","v":""},{"$f":"IF('1. Ordersheet'!K1314=\"\",\"\",'1. Ordersheet'!K1314)","v":""},{"$f":"IF('1. Ordersheet'!M1314=\"\",\"\",'1. Ordersheet'!M1314)","v":""},null,null,{"$f":"'1. Ordersheet'!AR1314","v":0},{"$f":"IF('1. Ordersheet'!AE1314=\"\",\"\",'1. Ordersheet'!AE1314)","v":""}]
[{"$f":"IF('1. Ordersheet'!B1315=\"\",\"\",'1. Ordersheet'!B1315)","v":""},{"$f":"IF('1. Ordersheet'!I1315=\"\",\"\",'1. Ordersheet'!I1315)","v":""},{"$f":"IF('1. Ordersheet'!J1315=\"\",\"\",'1. Ordersheet'!J1315)","v":""},{"$f":"IF('1. Ordersheet'!K1315=\"\",\"\",'1. Ordersheet'!K1315)","v":""},{"$f":"IF('1. Ordersheet'!M1315=\"\",\"\",'1. Ordersheet'!M1315)","v":""},null,null,{"$f":"'1. Ordersheet'!AR1315","v":0},{"$f":"IF('1. Ordersheet'!AE1315=\"\",\"\",'1. Ordersheet'!AE1315)","v":""}]
[{"$f":"IF('1. Ordersheet'!B1316=\"\",\"\",'1. Ordersheet'!B1316)","v":""},{"$f":"IF('1. Ordersheet'!I1316=\"\",\"\",'1. Ordersheet'!I1316)","v":""},{"$f":"IF('1. Ordersheet'!J1316=\"\",\"\",'1. Ordersheet'!J1316)","v":""},{"$f":"IF('1. Ordersheet'!K1316=\"\",\"\",'1. Ordersheet'!K1316)","v":""},{"$f":"IF('1. Ordersheet'!M1316=\"\",\"\",'1. Ordersheet'!M1316)","v":""},null,null,{"$f":"'1. Ordersheet'!AR1316","v":0},{"$f":"IF('1. Ordersheet'!AE1316=\"\",\"\",'1. Ordersheet'!AE1316)","v":""}]
[{"$f":"IF('1. Ordersheet'!B1317=\"\",\"\",'1. Ordersheet'!B1317)","v":""},{"$f":"IF('1. Ordersheet'!I1317=\"\",\"\",'1. Ordersheet'!I1317)","v":""},{"$f":"IF('1. Ordersheet'!J1317=\"\",\"\",'1. Ordersheet'!J1317)","v":""},{"$f":"IF('1. Ordersheet'!K1317=\"\",\"\",'1. Ordersheet'!K1317)","v":""},{"$f":"IF('1. Ordersheet'!M1317=\"\",\"\",'1. Ordersheet'!M1317)","v":""},null,null,{"$f":"'1. Ordersheet'!AR1317","v":0},{"$f":"IF('1. Ordersheet'!AE1317=\"\",\"\",'1. Ordersheet'!AE1317)","v":""}]
[{"$f":"IF('1. Ordersheet'!B1318=\"\",\"\",'1. Ordersheet'!B1318)","v":""},{"$f":"IF('1. Ordersheet'!I1318=\"\",\"\",'1. Ordersheet'!I1318)","v":""},{"$f":"IF('1. Ordersheet'!J1318=\"\",\"\",'1. Ordersheet'!J1318)","v":""},{"$f":"IF('1. Ordersheet'!K1318=\"\",\"\",'1. Ordersheet'!K1318)","v":""},{"$f":"IF('1. Ordersheet'!M1318=\"\",\"\",'1. Ordersheet'!M1318)","v":""},null,null,{"$f":"'1. Ordersheet'!AR1318","v":0},{"$f":"IF('1. Ordersheet'!AE1318=\"\",\"\",'1. Ordersheet'!AE1318)","v":""}]
[{"$f":"IF('1. Ordersheet'!B1319=\"\",\"\",'1. Ordersheet'!B1319)","v":""},{"$f":"IF('1. Ordersheet'!I1319=\"\",\"\",'1. Ordersheet'!I1319)","v":""},{"$f":"IF('1. Ordersheet'!J1319=\"\",\"\",'1. Ordersheet'!J1319)","v":""},{"$f":"IF('1. Ordersheet'!K1319=\"\",\"\",'1. Ordersheet'!K1319)","v":""},{"$f":"IF('1. Ordersheet'!M1319=\"\",\"\",'1. Ordersheet'!M1319)","v":""},null,null,{"$f":"'1. Ordersheet'!AR1319","v":0},{"$f":"IF('1. Ordersheet'!AE1319=\"\",\"\",'1. Ordersheet'!AE1319)","v":""}]
[{"$f":"IF('1. Ordersheet'!B1320=\"\",\"\",'1. Ordersheet'!B1320)","v":""},{"$f":"IF('1. Ordersheet'!I1320=\"\",\"\",'1. Ordersheet'!I1320)","v":""},{"$f":"IF('1. Ordersheet'!J1320=\"\",\"\",'1. Ordersheet'!J1320)","v":""},{"$f":"IF('1. Ordersheet'!K1320=\"\",\"\",'1. Ordersheet'!K1320)","v":""},{"$f":"IF('1. Ordersheet'!M1320=\"\",\"\",'1. Ordersheet'!M1320)","v":""},null,null,{"$f":"'1. Ordersheet'!AR1320","v":0},{"$f":"IF('1. Ordersheet'!AE1320=\"\",\"\",'1. Ordersheet'!AE1320)","v":""}]
[{"$f":"IF('1. Ordersheet'!B1321=\"\",\"\",'1. Ordersheet'!B1321)","v":""},{"$f":"IF('1. Ordersheet'!I1321=\"\",\"\",'1. Ordersheet'!I1321)","v":""},{"$f":"IF('1. Ordersheet'!J1321=\"\",\"\",'1. Ordersheet'!J1321)","v":""},{"$f":"IF('1. Ordersheet'!K1321=\"\",\"\",'1. Ordersheet'!K1321)","v":""},{"$f":"IF('1. Ordersheet'!M1321=\"\",\"\",'1. Ordersheet'!M1321)","v":""},null,null,{"$f":"'1. Ordersheet'!AR1321","v":0},{"$f":"IF('1. Ordersheet'!AE1321=\"\",\"\",'1. Ordersheet'!AE1321)","v":""}]
[{"$f":"IF('1. Ordersheet'!B1322=\"\",\"\",'1. Ordersheet'!B1322)","v":""},{"$f":"IF('1. Ordersheet'!I1322=\"\",\"\",'1. Ordersheet'!I1322)","v":""},{"$f":"IF('1. Ordersheet'!J1322=\"\",\"\",'1. Ordersheet'!J1322)","v":""},{"$f":"IF('1. Ordersheet'!K1322=\"\",\"\",'1. Ordersheet'!K1322)","v":""},{"$f":"IF('1. Ordersheet'!M1322=\"\",\"\",'1. Ordersheet'!M1322)","v":""},null,null,{"$f":"'1. Ordersheet'!AR1322","v":0},{"$f":"IF('1. Ordersheet'!AE1322=\"\",\"\",'1. Ordersheet'!AE1322)","v":""}]
[{"$f":"IF('1. Ordersheet'!B1323=\"\",\"\",'1. Ordersheet'!B1323)","v":""},{"$f":"IF('1. Ordersheet'!I1323=\"\",\"\",'1. Ordersheet'!I1323)","v":""},{"$f":"IF('1. Ordersheet'!J1323=\"\",\"\",'1. Ordersheet'!J1323)","v":""},{"$f":"IF('1. Ordersheet'!K1323=\"\",\"\",'1. Ordersheet'!K1323)","v":""},{"$f":"IF('1. Ordersheet'!M1323=\"\",\"\",'1. Ordersheet'!M1323)","v":""},null,null,{"$f":"'1. Ordersheet'!AR1323","v":0},{"$f":"IF('1. Ordersheet'!AE1323=\"\",\"\",'1. Ordersheet'!AE1323)","v":""}]
[{"$f":"IF('1. Ordersheet'!B1324=\"\",\"\",'1. Ordersheet'!B1324)","v":""},{"$f":"IF('1. Ordersheet'!I1324=\"\",\"\",'1. Ordersheet'!I1324)","v":""},{"$f":"IF('1. Ordersheet'!J1324=\"\",\"\",'1. Ordersheet'!J1324)","v":""},{"$f":"IF('1. Ordersheet'!K1324=\"\",\"\",'1. Ordersheet'!K1324)","v":""},{"$f":"IF('1. Ordersheet'!M1324=\"\",\"\",'1. Ordersheet'!M1324)","v":""},null,null,{"$f":"'1. Ordersheet'!AR1324","v":0},{"$f":"IF('1. Ordersheet'!AE1324=\"\",\"\",'1. Ordersheet'!AE1324)","v":""}]
[{"$f":"IF('1. Ordersheet'!B1325=\"\",\"\",'1. Ordersheet'!B1325)","v":""},{"$f":"IF('1. Ordersheet'!I1325=\"\",\"\",'1. Ordersheet'!I1325)","v":""},{"$f":"IF('1. Ordersheet'!J1325=\"\",\"\",'1. Ordersheet'!J1325)","v":""},{"$f":"IF('1. Ordersheet'!K1325=\"\",\"\",'1. Ordersheet'!K1325)","v":""},{"$f":"IF('1. Ordersheet'!M1325=\"\",\"\",'1. Ordersheet'!M1325)","v":""},null,null,{"$f":"'1. Ordersheet'!AR1325","v":0},{"$f":"IF('1. Ordersheet'!AE1325=\"\",\"\",'1. Ordersheet'!AE1325)","v":""}]
[{"$f":"IF('1. Ordersheet'!B1326=\"\",\"\",'1. Ordersheet'!B1326)","v":""},{"$f":"IF('1. Ordersheet'!I1326=\"\",\"\",'1. Ordersheet'!I1326)","v":""},{"$f":"IF('1. Ordersheet'!J1326=\"\",\"\",'1. Ordersheet'!J1326)","v":""},{"$f":"IF('1. Ordersheet'!K1326=\"\",\"\",'1. Ordersheet'!K1326)","v":""},{"$f":"IF('1. Ordersheet'!M1326=\"\",\"\",'1. Ordersheet'!M1326)","v":""},null,null,{"$f":"'1. Ordersheet'!AR1326","v":0},{"$f":"IF('1. Ordersheet'!AE1326=\"\",\"\",'1. Ordersheet'!AE1326)","v":""}]
[{"$f":"IF('1. Ordersheet'!B1327=\"\",\"\",'1. Ordersheet'!B1327)","v":""},{"$f":"IF('1. Ordersheet'!I1327=\"\",\"\",'1. Ordersheet'!I1327)","v":""},{"$f":"IF('1. Ordersheet'!J1327=\"\",\"\",'1. Ordersheet'!J1327)","v":""},{"$f":"IF('1. Ordersheet'!K1327=\"\",\"\",'1. Ordersheet'!K1327)","v":""},{"$f":"IF('1. Ordersheet'!M1327=\"\",\"\",'1. Ordersheet'!M1327)","v":""},null,null,{"$f":"'1. Ordersheet'!AR1327","v":0},{"$f":"IF('1. Ordersheet'!AE1327=\"\",\"\",'1. Ordersheet'!AE1327)","v":""}]
[{"$f":"IF('1. Ordersheet'!B1328=\"\",\"\",'1. Ordersheet'!B1328)","v":""},{"$f":"IF('1. Ordersheet'!I1328=\"\",\"\",'1. Ordersheet'!I1328)","v":""},{"$f":"IF('1. Ordersheet'!J1328=\"\",\"\",'1. Ordersheet'!J1328)","v":""},{"$f":"IF('1. Ordersheet'!K1328=\"\",\"\",'1. Ordersheet'!K1328)","v":""},{"$f":"IF('1. Ordersheet'!M1328=\"\",\"\",'1. Ordersheet'!M1328)","v":""},null,null,{"$f":"'1. Ordersheet'!AR1328","v":0},{"$f":"IF('1. Ordersheet'!AE1328=\"\",\"\",'1. Ordersheet'!AE1328)","v":""}]
[{"$f":"IF('1. Ordersheet'!B1329=\"\",\"\",'1. Ordersheet'!B1329)","v":""},{"$f":"IF('1. Ordersheet'!I1329=\"\",\"\",'1. Ordersheet'!I1329)","v":""},{"$f":"IF('1. Ordersheet'!J1329=\"\",\"\",'1. Ordersheet'!J1329)","v":""},{"$f":"IF('1. Ordersheet'!K1329=\"\",\"\",'1. Ordersheet'!K1329)","v":""},{"$f":"IF('1. Ordersheet'!M1329=\"\",\"\",'1. Ordersheet'!M1329)","v":""},null,null,{"$f":"'1. Ordersheet'!AR1329","v":0},{"$f":"IF('1. Ordersheet'!AE1329=\"\",\"\",'1. Ordersheet'!AE1329)","v":""}]
[{"$f":"IF('1. Ordersheet'!B1330=\"\",\"\",'1. Ordersheet'!B1330)","v":""},{"$f":"IF('1. Ordersheet'!I1330=\"\",\"\",'1. Ordersheet'!I1330)","v":""},{"$f":"IF('1. Ordersheet'!J1330=\"\",\"\",'1. Ordersheet'!J1330)","v":""},{"$f":"IF('1. Ordersheet'!K1330=\"\",\"\",'1. Ordersheet'!K1330)","v":""},{"$f":"IF('1. Ordersheet'!M1330=\"\",\"\",'1. Ordersheet'!M1330)","v":""},null,null,{"$f":"'1. Ordersheet'!AR1330","v":0},{"$f":"IF('1. Ordersheet'!AE1330=\"\",\"\",'1. Ordersheet'!AE1330)","v":""}]
[{"$f":"IF('1. Ordersheet'!B1331=\"\",\"\",'1. Ordersheet'!B1331)","v":""},{"$f":"IF('1. Ordersheet'!I1331=\"\",\"\",'1. Ordersheet'!I1331)","v":""},{"$f":"IF('1. Ordersheet'!J1331=\"\",\"\",'1. Ordersheet'!J1331)","v":""},{"$f":"IF('1. Ordersheet'!K1331=\"\",\"\",'1. Ordersheet'!K1331)","v":""},{"$f":"IF('1. Ordersheet'!M1331=\"\",\"\",'1. Ordersheet'!M1331)","v":""},null,null,{"$f":"'1. Ordersheet'!AR1331","v":0},{"$f":"IF('1. Ordersheet'!AE1331=\"\",\"\",'1. Ordersheet'!AE1331)","v":""}]
[{"$f":"IF('1. Ordersheet'!B1332=\"\",\"\",'1. Ordersheet'!B1332)","v":""},{"$f":"IF('1. Ordersheet'!I1332=\"\",\"\",'1. Ordersheet'!I1332)","v":""},{"$f":"IF('1. Ordersheet'!J1332=\"\",\"\",'1. Ordersheet'!J1332)","v":""},{"$f":"IF('1. Ordersheet'!K1332=\"\",\"\",'1. Ordersheet'!K1332)","v":""},{"$f":"IF('1. Ordersheet'!M1332=\"\",\"\",'1. Ordersheet'!M1332)","v":""},null,null,{"$f":"'1. Ordersheet'!AR1332","v":0},{"$f":"IF('1. Ordersheet'!AE1332=\"\",\"\",'1. Ordersheet'!AE1332)","v":""}]
[{"$f":"IF('1. Ordersheet'!B1333=\"\",\"\",'1. Ordersheet'!B1333)","v":""},{"$f":"IF('1. Ordersheet'!I1333=\"\",\"\",'1. Ordersheet'!I1333)","v":""},{"$f":"IF('1. Ordersheet'!J1333=\"\",\"\",'1. Ordersheet'!J1333)","v":""},{"$f":"IF('1. Ordersheet'!K1333=\"\",\"\",'1. Ordersheet'!K1333)","v":""},{"$f":"IF('1. Ordersheet'!M1333=\"\",\"\",'1. Ordersheet'!M1333)","v":""},null,null,{"$f":"'1. Ordersheet'!AR1333","v":0},{"$f":"IF('1. Ordersheet'!AE1333=\"\",\"\",'1. Ordersheet'!AE1333)","v":""}]
[{"$f":"IF('1. Ordersheet'!B1334=\"\",\"\",'1. Ordersheet'!B1334)","v":""},{"$f":"IF('1. Ordersheet'!I1334=\"\",\"\",'1. Ordersheet'!I1334)","v":""},{"$f":"IF('1. Ordersheet'!J1334=\"\",\"\",'1. Ordersheet'!J1334)","v":""},{"$f":"IF('1. Ordersheet'!K1334=\"\",\"\",'1. Ordersheet'!K1334)","v":""},{"$f":"IF('1. Ordersheet'!M1334=\"\",\"\",'1. Ordersheet'!M1334)","v":""},null,null,{"$f":"'1. Ordersheet'!AR1334","v":0},{"$f":"IF('1. Ordersheet'!AE1334=\"\",\"\",'1. Ordersheet'!AE1334)","v":""}]
[{"$f":"IF('1. Ordersheet'!B1335=\"\",\"\",'1. Ordersheet'!B1335)","v":""},{"$f":"IF('1. Ordersheet'!I1335=\"\",\"\",'1. Ordersheet'!I1335)","v":""},{"$f":"IF('1. Ordersheet'!J1335=\"\",\"\",'1. Ordersheet'!J1335)","v":""},{"$f":"IF('1. Ordersheet'!K1335=\"\",\"\",'1. Ordersheet'!K1335)","v":""},{"$f":"IF('1. Ordersheet'!M1335=\"\",\"\",'1. Ordersheet'!M1335)","v":""},null,null,{"$f":"'1. Ordersheet'!AR1335","v":0},{"$f":"IF('1. Ordersheet'!AE1335=\"\",\"\",'1. Ordersheet'!AE1335)","v":""}]
[{"$f":"IF('1. Ordersheet'!B1336=\"\",\"\",'1. Ordersheet'!B1336)","v":""},{"$f":"IF('1. Ordersheet'!I1336=\"\",\"\",'1. Ordersheet'!I1336)","v":""},{"$f":"IF('1. Ordersheet'!J1336=\"\",\"\",'1. Ordersheet'!J1336)","v":""},{"$f":"IF('1. Ordersheet'!K1336=\"\",\"\",'1. Ordersheet'!K1336)","v":""},{"$f":"IF('1. Ordersheet'!M1336=\"\",\"\",'1. Ordersheet'!M1336)","v":""},null,null,{"$f":"'1. Ordersheet'!AR1336","v":0},{"$f":"IF('1. Ordersheet'!AE1336=\"\",\"\",'1. Ordersheet'!AE1336)","v":""}]
[{"$f":"IF('1. Ordersheet'!B1337=\"\",\"\",'1. Ordersheet'!B1337)","v":""},{"$f":"IF('1. Ordersheet'!I1337=\"\",\"\",'1. Ordersheet'!I1337)","v":""},{"$f":"IF('1. Ordersheet'!J1337=\"\",\"\",'1. Ordersheet'!J1337)","v":""},{"$f":"IF('1. Ordersheet'!K1337=\"\",\"\",'1. Ordersheet'!K1337)","v":""},{"$f":"IF('1. Ordersheet'!M1337=\"\",\"\",'1. Ordersheet'!M1337)","v":""},null,null,{"$f":"'1. Ordersheet'!AR1337","v":0},{"$f":"IF('1. Ordersheet'!AE1337=\"\",\"\",'1. Ordersheet'!AE1337)","v":""}]
[{"$f":"IF('1. Ordersheet'!B1338=\"\",\"\",'1. Ordersheet'!B1338)","v":""},{"$f":"IF('1. Ordersheet'!I1338=\"\",\"\",'1. Ordersheet'!I1338)","v":""},{"$f":"IF('1. Ordersheet'!J1338=\"\",\"\",'1. Ordersheet'!J1338)","v":""},{"$f":"IF('1. Ordersheet'!K1338=\"\",\"\",'1. Ordersheet'!K1338)","v":""},{"$f":"IF('1. Ordersheet'!M1338=\"\",\"\",'1. Ordersheet'!M1338)","v":""},null,null,{"$f":"'1. Ordersheet'!AR1338","v":0},{"$f":"IF('1. Ordersheet'!AE1338=\"\",\"\",'1. Ordersheet'!AE1338)","v":""}]
[{"$f":"IF('1. Ordersheet'!B1339=\"\",\"\",'1. Ordersheet'!B1339)","v":""},{"$f":"IF('1. Ordersheet'!I1339=\"\",\"\",'1. Ordersheet'!I1339)","v":""},{"$f":"IF('1. Ordersheet'!J1339=\"\",\"\",'1. Ordersheet'!J1339)","v":""},{"$f":"IF('1. Ordersheet'!K1339=\"\",\"\",'1. Ordersheet'!K1339)","v":""},{"$f":"IF('1. Ordersheet'!M1339=\"\",\"\",'1. Ordersheet'!M1339)","v":""},null,null,{"$f":"'1. Ordersheet'!AR1339","v":0},{"$f":"IF('1. Ordersheet'!AE1339=\"\",\"\",'1. Ordersheet'!AE1339)","v":""}]
[{"$f":"IF('1. Ordersheet'!B1340=\"\",\"\",'1. Ordersheet'!B1340)","v":""},{"$f":"IF('1. Ordersheet'!I1340=\"\",\"\",'1. Ordersheet'!I1340)","v":""},{"$f":"IF('1. Ordersheet'!J1340=\"\",\"\",'1. Ordersheet'!J1340)","v":""},{"$f":"IF('1. Ordersheet'!K1340=\"\",\"\",'1. Ordersheet'!K1340)","v":""},{"$f":"IF('1. Ordersheet'!M1340=\"\",\"\",'1. Ordersheet'!M1340)","v":""},null,null,{"$f":"'1. Ordersheet'!AR1340","v":0},{"$f":"IF('1. Ordersheet'!AE1340=\"\",\"\",'1. Ordersheet'!AE1340)","v":""}]
[{"$f":"IF('1. Ordersheet'!B1341=\"\",\"\",'1. Ordersheet'!B1341)","v":""},{"$f":"IF('1. Ordersheet'!I1341=\"\",\"\",'1. Ordersheet'!I1341)","v":""},{"$f":"IF('1. Ordersheet'!J1341=\"\",\"\",'1. Ordersheet'!J1341)","v":""},{"$f":"IF('1. Ordersheet'!K1341=\"\",\"\",'1. Ordersheet'!K1341)","v":""},{"$f":"IF('1. Ordersheet'!M1341=\"\",\"\",'1. Ordersheet'!M1341)","v":""},null,null,{"$f":"'1. Ordersheet'!AR1341","v":0},{"$f":"IF('1. Ordersheet'!AE1341=\"\",\"\",'1. Ordersheet'!AE1341)","v":""}]
[{"$f":"IF('1. Ordersheet'!B1342=\"\",\"\",'1. Ordersheet'!B1342)","v":""},{"$f":"IF('1. Ordersheet'!I1342=\"\",\"\",'1. Ordersheet'!I1342)","v":""},{"$f":"IF('1. Ordersheet'!J1342=\"\",\"\",'1. Ordersheet'!J1342)","v":""},{"$f":"IF('1. Ordersheet'!K1342=\"\",\"\",'1. Ordersheet'!K1342)","v":""},{"$f":"IF('1. Ordersheet'!M1342=\"\",\"\",'1. Ordersheet'!M1342)","v":""},null,null,{"$f":"'1. Ordersheet'!AR1342","v":0},{"$f":"IF('1. Ordersheet'!AE1342=\"\",\"\",'1. Ordersheet'!AE1342)","v":""}]
[{"$f":"IF('1. Ordersheet'!B1343=\"\",\"\",'1. Ordersheet'!B1343)","v":""},{"$f":"IF('1. Ordersheet'!I1343=\"\",\"\",'1. Ordersheet'!I1343)","v":""},{"$f":"IF('1. Ordersheet'!J1343=\"\",\"\",'1. Ordersheet'!J1343)","v":""},{"$f":"IF('1. Ordersheet'!K1343=\"\",\"\",'1. Ordersheet'!K1343)","v":""},{"$f":"IF('1. Ordersheet'!M1343=\"\",\"\",'1. Ordersheet'!M1343)","v":""},null,null,{"$f":"'1. Ordersheet'!AR1343","v":0},{"$f":"IF('1. Ordersheet'!AE1343=\"\",\"\",'1. Ordersheet'!AE1343)","v":""}]
[{"$f":"IF('1. Ordersheet'!B1344=\"\",\"\",'1. Ordersheet'!B1344)","v":""},{"$f":"IF('1. Ordersheet'!I1344=\"\",\"\",'1. Ordersheet'!I1344)","v":""},{"$f":"IF('1. Ordersheet'!J1344=\"\",\"\",'1. Ordersheet'!J1344)","v":""},{"$f":"IF('1. Ordersheet'!K1344=\"\",\"\",'1. Ordersheet'!K1344)","v":""},{"$f":"IF('1. Ordersheet'!M1344=\"\",\"\",'1. Ordersheet'!M1344)","v":""},null,null,{"$f":"'1. Ordersheet'!AR1344","v":0},{"$f":"IF('1. Ordersheet'!AE1344=\"\",\"\",'1. Ordersheet'!AE1344)","v":""}]
[{"$f":"IF('1. Ordersheet'!B1345=\"\",\"\",'1. Ordersheet'!B1345)","v":""},{"$f":"IF('1. Ordersheet'!I1345=\"\",\"\",'1. Ordersheet'!I1345)","v":""},{"$f":"IF('1. Ordersheet'!J1345=\"\",\"\",'1. Ordersheet'!J1345)","v":""},{"$f":"IF('1. Ordersheet'!K1345=\"\",\"\",'1. Ordersheet'!K1345)","v":""},{"$f":"IF('1. Ordersheet'!M1345=\"\",\"\",'1. Ordersheet'!M1345)","v":""},null,null,{"$f":"'1. Ordersheet'!AR1345","v":0},{"$f":"IF('1. Ordersheet'!AE1345=\"\",\"\",'1. Ordersheet'!AE1345)","v":""}]
[{"$f":"IF('1. Ordersheet'!B1346=\"\",\"\",'1. Ordersheet'!B1346)","v":""},{"$f":"IF('1. Ordersheet'!I1346=\"\",\"\",'1. Ordersheet'!I1346)","v":""},{"$f":"IF('1. Ordersheet'!J1346=\"\",\"\",'1. Ordersheet'!J1346)","v":""},{"$f":"IF('1. Ordersheet'!K1346=\"\",\"\",'1. Ordersheet'!K1346)","v":""},{"$f":"IF('1. Ordersheet'!M1346=\"\",\"\",'1. Ordersheet'!M1346)","v":""},null,null,{"$f":"'1. Ordersheet'!AR1346","v":0},{"$f":"IF('1. Ordersheet'!AE1346=\"\",\"\",'1. Ordersheet'!AE1346)","v":""}]
[{"$f":"IF('1. Ordersheet'!B1347=\"\",\"\",'1. Ordersheet'!B1347)","v":""},{"$f":"IF('1. Ordersheet'!I1347=\"\",\"\",'1. Ordersheet'!I1347)","v":""},{"$f":"IF('1. Ordersheet'!J1347=\"\",\"\",'1. Ordersheet'!J1347)","v":""},{"$f":"IF('1. Ordersheet'!K1347=\"\",\"\",'1. Ordersheet'!K1347)","v":""},{"$f":"IF('1. Ordersheet'!M1347=\"\",\"\",'1. Ordersheet'!M1347)","v":""},null,null,{"$f":"'1. Ordersheet'!AR1347","v":0},{"$f":"IF('1. Ordersheet'!AE1347=\"\",\"\",'1. Ordersheet'!AE1347)","v":""}]
[{"$f":"IF('1. Ordersheet'!B1348=\"\",\"\",'1. Ordersheet'!B1348)","v":""},{"$f":"IF('1. Ordersheet'!I1348=\"\",\"\",'1. Ordersheet'!I1348)","v":""},{"$f":"IF('1. Ordersheet'!J1348=\"\",\"\",'1. Ordersheet'!J1348)","v":""},{"$f":"IF('1. Ordersheet'!K1348=\"\",\"\",'1. Ordersheet'!K1348)","v":""},{"$f":"IF('1. Ordersheet'!M1348=\"\",\"\",'1. Ordersheet'!M1348)","v":""},null,null,{"$f":"'1. Ordersheet'!AR1348","v":0},{"$f":"IF('1. Ordersheet'!AE1348=\"\",\"\",'1. Ordersheet'!AE1348)","v":""}]
[{"$f":"IF('1. Ordersheet'!B1349=\"\",\"\",'1. Ordersheet'!B1349)","v":""},{"$f":"IF('1. Ordersheet'!I1349=\"\",\"\",'1. Ordersheet'!I1349)","v":""},{"$f":"IF('1. Ordersheet'!J1349=\"\",\"\",'1. Ordersheet'!J1349)","v":""},{"$f":"IF('1. Ordersheet'!K1349=\"\",\"\",'1. Ordersheet'!K1349)","v":""},{"$f":"IF('1. Ordersheet'!M1349=\"\",\"\",'1. Ordersheet'!M1349)","v":""},null,null,{"$f":"'1. Ordersheet'!AR1349","v":0},{"$f":"IF('1. Ordersheet'!AE1349=\"\",\"\",'1. Ordersheet'!AE1349)","v":""}]
[{"$f":"IF('1. Ordersheet'!B1350=\"\",\"\",'1. Ordersheet'!B1350)","v":""},{"$f":"IF('1. Ordersheet'!I1350=\"\",\"\",'1. Ordersheet'!I1350)","v":""},{"$f":"IF('1. Ordersheet'!J1350=\"\",\"\",'1. Ordersheet'!J1350)","v":""},{"$f":"IF('1. Ordersheet'!K1350=\"\",\"\",'1. Ordersheet'!K1350)","v":""},{"$f":"IF('1. Ordersheet'!M1350=\"\",\"\",'1. Ordersheet'!M1350)","v":""},null,null,{"$f":"'1. Ordersheet'!AR1350","v":0},{"$f":"IF('1. Ordersheet'!AE1350=\"\",\"\",'1. Ordersheet'!AE1350)","v":""}]
[{"$f":"IF('1. Ordersheet'!B1351=\"\",\"\",'1. Ordersheet'!B1351)","v":""},{"$f":"IF('1. Ordersheet'!I1351=\"\",\"\",'1. Ordersheet'!I1351)","v":""},{"$f":"IF('1. Ordersheet'!J1351=\"\",\"\",'1. Ordersheet'!J1351)","v":""},{"$f":"IF('1. Ordersheet'!K1351=\"\",\"\",'1. Ordersheet'!K1351)","v":""},{"$f":"IF('1. Ordersheet'!M1351=\"\",\"\",'1. Ordersheet'!M1351)","v":""},null,null,{"$f":"'1. Ordersheet'!AR1351","v":0},{"$f":"IF('1. Ordersheet'!AE1351=\"\",\"\",'1. Ordersheet'!AE1351)","v":""}]
[{"$f":"IF('1. Ordersheet'!B1352=\"\",\"\",'1. Ordersheet'!B1352)","v":""},{"$f":"IF('1. Ordersheet'!I1352=\"\",\"\",'1. Ordersheet'!I1352)","v":""},{"$f":"IF('1. Ordersheet'!J1352=\"\",\"\",'1. Ordersheet'!J1352)","v":""},{"$f":"IF('1. Ordersheet'!K1352=\"\",\"\",'1. Ordersheet'!K1352)","v":""},{"$f":"IF('1. Ordersheet'!M1352=\"\",\"\",'1. Ordersheet'!M1352)","v":""},null,null,{"$f":"'1. Ordersheet'!AR1352","v":0},{"$f":"IF('1. Ordersheet'!AE1352=\"\",\"\",'1. Ordersheet'!AE1352)","v":""}]
[{"$f":"IF('1. Ordersheet'!B1353=\"\",\"\",'1. Ordersheet'!B1353)","v":""},{"$f":"IF('1. Ordersheet'!I1353=\"\",\"\",'1. Ordersheet'!I1353)","v":""},{"$f":"IF('1. Ordersheet'!J1353=\"\",\"\",'1. Ordersheet'!J1353)","v":""},{"$f":"IF('1. Ordersheet'!K1353=\"\",\"\",'1. Ordersheet'!K1353)","v":""},{"$f":"IF('1. Ordersheet'!M1353=\"\",\"\",'1. Ordersheet'!M1353)","v":""},null,null,{"$f":"'1. Ordersheet'!AR1353","v":0},{"$f":"IF('1. Ordersheet'!AE1353=\"\",\"\",'1. Ordersheet'!AE1353)","v":""}]
[{"$f":"IF('1. Ordersheet'!B1354=\"\",\"\",'1. Ordersheet'!B1354)","v":""},{"$f":"IF('1. Ordersheet'!I1354=\"\",\"\",'1. Ordersheet'!I1354)","v":""},{"$f":"IF('1. Ordersheet'!J1354=\"\",\"\",'1. Ordersheet'!J1354)","v":""},{"$f":"IF('1. Ordersheet'!K1354=\"\",\"\",'1. Ordersheet'!K1354)","v":""},{"$f":"IF('1. Ordersheet'!M1354=\"\",\"\",'1. Ordersheet'!M1354)","v":""},null,null,{"$f":"'1. Ordersheet'!AR1354","v":0},{"$f":"IF('1. Ordersheet'!AE1354=\"\",\"\",'1. Ordersheet'!AE1354)","v":""}]
[{"$f":"IF('1. Ordersheet'!B1355=\"\",\"\",'1. Ordersheet'!B1355)","v":""},{"$f":"IF('1. Ordersheet'!I1355=\"\",\"\",'1. Ordersheet'!I1355)","v":""},{"$f":"IF('1. Ordersheet'!J1355=\"\",\"\",'1. Ordersheet'!J1355)","v":""},{"$f":"IF('1. Ordersheet'!K1355=\"\",\"\",'1. Ordersheet'!K1355)","v":""},{"$f":"IF('1. Ordersheet'!M1355=\"\",\"\",'1. Ordersheet'!M1355)","v":""},null,null,{"$f":"'1. Ordersheet'!AR1355","v":0},{"$f":"IF('1. Ordersheet'!AE1355=\"\",\"\",'1. Ordersheet'!AE1355)","v":""}]
[{"$f":"IF('1. Ordersheet'!B1356=\"\",\"\",'1. Ordersheet'!B1356)","v":""},{"$f":"IF('1. Ordersheet'!I1356=\"\",\"\",'1. Ordersheet'!I1356)","v":""},{"$f":"IF('1. Ordersheet'!J1356=\"\",\"\",'1. Ordersheet'!J1356)","v":""},{"$f":"IF('1. Ordersheet'!K1356=\"\",\"\",'1. Ordersheet'!K1356)","v":""},{"$f":"IF('1. Ordersheet'!M1356=\"\",\"\",'1. Ordersheet'!M1356)","v":""},null,null,{"$f":"'1. Ordersheet'!AR1356","v":0},{"$f":"IF('1. Ordersheet'!AE1356=\"\",\"\",'1. Ordersheet'!AE1356)","v":""}]
[{"$f":"IF('1. Ordersheet'!B1357=\"\",\"\",'1. Ordersheet'!B1357)","v":""},{"$f":"IF('1. Ordersheet'!I1357=\"\",\"\",'1. Ordersheet'!I1357)","v":""},{"$f":"IF('1. Ordersheet'!J1357=\"\",\"\",'1. Ordersheet'!J1357)","v":""},{"$f":"IF('1. Ordersheet'!K1357=\"\",\"\",'1. Ordersheet'!K1357)","v":""},{"$f":"IF('1. Ordersheet'!M1357=\"\",\"\",'1. Ordersheet'!M1357)","v":""},null,null,{"$f":"'1. Ordersheet'!AR1357","v":0},{"$f":"IF('1. Ordersheet'!AE1357=\"\",\"\",'1. Ordersheet'!AE1357)","v":""}]
[{"$f":"IF('1. Ordersheet'!B1358=\"\",\"\",'1. Ordersheet'!B1358)","v":""},{"$f":"IF('1. Ordersheet'!I1358=\"\",\"\",'1. Ordersheet'!I1358)","v":""},{"$f":"IF('1. Ordersheet'!J1358=\"\",\"\",'1. Ordersheet'!J1358)","v":""},{"$f":"IF('1. Ordersheet'!K1358=\"\",\"\",'1. Ordersheet'!K1358)","v":""},{"$f":"IF('1. Ordersheet'!M1358=\"\",\"\",'1. Ordersheet'!M1358)","v":""},null,null,{"$f":"'1. Ordersheet'!AR1358","v":0},{"$f":"IF('1. Ordersheet'!AE1358=\"\",\"\",'1. Ordersheet'!AE1358)","v":""}]
[{"$f":"IF('1. Ordersheet'!B1359=\"\",\"\",'1. Ordersheet'!B1359)","v":""},{"$f":"IF('1. Ordersheet'!I1359=\"\",\"\",'1. Ordersheet'!I1359)","v":""},{"$f":"IF('1. Ordersheet'!J1359=\"\",\"\",'1. Ordersheet'!J1359)","v":""},{"$f":"IF('1. Ordersheet'!K1359=\"\",\"\",'1. Ordersheet'!K1359)","v":""},{"$f":"IF('1. Ordersheet'!M1359=\"\",\"\",'1. Ordersheet'!M1359)","v":""},null,null,{"$f":"'1. Ordersheet'!AR1359","v":0},{"$f":"IF('1. Ordersheet'!AE1359=\"\",\"\",'1. Ordersheet'!AE1359)","v":""}]
[{"$f":"IF('1. Ordersheet'!B1360=\"\",\"\",'1. Ordersheet'!B1360)","v":""},{"$f":"IF('1. Ordersheet'!I1360=\"\",\"\",'1. Ordersheet'!I1360)","v":""},{"$f":"IF('1. Ordersheet'!J1360=\"\",\"\",'1. Ordersheet'!J1360)","v":""},{"$f":"IF('1. Ordersheet'!K1360=\"\",\"\",'1. Ordersheet'!K1360)","v":""},{"$f":"IF('1. Ordersheet'!M1360=\"\",\"\",'1. Ordersheet'!M1360)","v":""},null,null,{"$f":"'1. Ordersheet'!AR1360","v":0},{"$f":"IF('1. Ordersheet'!AE1360=\"\",\"\",'1. Ordersheet'!AE1360)","v":""}]
[{"$f":"IF('1. Ordersheet'!B1361=\"\",\"\",'1. Ordersheet'!B1361)","v":""},{"$f":"IF('1. Ordersheet'!I1361=\"\",\"\",'1. Ordersheet'!I1361)","v":""},{"$f":"IF('1. Ordersheet'!J1361=\"\",\"\",'1. Ordersheet'!J1361)","v":""},{"$f":"IF('1. Ordersheet'!K1361=\"\",\"\",'1. Ordersheet'!K1361)","v":""},{"$f":"IF('1. Ordersheet'!M1361=\"\",\"\",'1. Ordersheet'!M1361)","v":""},null,null,{"$f":"'1. Ordersheet'!AR1361","v":0},{"$f":"IF('1. Ordersheet'!AE1361=\"\",\"\",'1. Ordersheet'!AE1361)","v":""}]
[{"$f":"IF('1. Ordersheet'!B1362=\"\",\"\",'1. Ordersheet'!B1362)","v":""},{"$f":"IF('1. Ordersheet'!I1362=\"\",\"\",'1. Ordersheet'!I1362)","v":""},{"$f":"IF('1. Ordersheet'!J1362=\"\",\"\",'1. Ordersheet'!J1362)","v":""},{"$f":"IF('1. Ordersheet'!K1362=\"\",\"\",'1. Ordersheet'!K1362)","v":""},{"$f":"IF('1. Ordersheet'!M1362=\"\",\"\",'1. Ordersheet'!M1362)","v":""},null,null,{"$f":"'1. Ordersheet'!AR1362","v":0},{"$f":"IF('1. Ordersheet'!AE1362=\"\",\"\",'1. Ordersheet'!AE1362)","v":""}]
[{"$f":"IF('1. Ordersheet'!B1363=\"\",\"\",'1. Ordersheet'!B1363)","v":""},{"$f":"IF('1. Ordersheet'!I1363=\"\",\"\",'1. Ordersheet'!I1363)","v":""},{"$f":"IF('1. Ordersheet'!J1363=\"\",\"\",'1. Ordersheet'!J1363)","v":""},{"$f":"IF('1. Ordersheet'!K1363=\"\",\"\",'1. Ordersheet'!K1363)","v":""},{"$f":"IF('1. Ordersheet'!M1363=\"\",\"\",'1. Ordersheet'!M1363)","v":""},null,null,{"$f":"'1. Ordersheet'!AR1363","v":0},{"$f":"IF('1. Ordersheet'!AE1363=\"\",\"\",'1. Ordersheet'!AE1363)","v":""}]
[{"$f":"IF('1. Ordersheet'!B1364=\"\",\"\",'1. Ordersheet'!B1364)","v":""},{"$f":"IF('1. Ordersheet'!I1364=\"\",\"\",'1. Ordersheet'!I1364)","v":""},{"$f":"IF('1. Ordersheet'!J1364=\"\",\"\",'1. Ordersheet'!J1364)","v":""},{"$f":"IF('1. Ordersheet'!K1364=\"\",\"\",'1. Ordersheet'!K1364)","v":""},{"$f":"IF('1. Ordersheet'!M1364=\"\",\"\",'1. Ordersheet'!M1364)","v":""},null,null,{"$f":"'1. Ordersheet'!AR1364","v":0},{"$f":"IF('1. Ordersheet'!AE1364=\"\",\"\",'1. Ordersheet'!AE1364)","v":""}]
[{"$f":"IF('1. Ordersheet'!B1365=\"\",\"\",'1. Ordersheet'!B1365)","v":""},{"$f":"IF('1. Ordersheet'!I1365=\"\",\"\",'1. Ordersheet'!I1365)","v":""},{"$f":"IF('1. Ordersheet'!J1365=\"\",\"\",'1. Ordersheet'!J1365)","v":""},{"$f":"IF('1. Ordersheet'!K1365=\"\",\"\",'1. Ordersheet'!K1365)","v":""},{"$f":"IF('1. Ordersheet'!M1365=\"\",\"\",'1. Ordersheet'!M1365)","v":""},null,null,{"$f":"'1. Ordersheet'!AR1365","v":0},{"$f":"IF('1. Ordersheet'!AE1365=\"\",\"\",'1. Ordersheet'!AE1365)","v":""}]
[{"$f":"IF('1. Ordersheet'!B1366=\"\",\"\",'1. Ordersheet'!B1366)","v":""},{"$f":"IF('1. Ordersheet'!I1366=\"\",\"\",'1. Ordersheet'!I1366)","v":""},{"$f":"IF('1. Ordersheet'!J1366=\"\",\"\",'1. Ordersheet'!J1366)","v":""},{"$f":"IF('1. Ordersheet'!K1366=\"\",\"\",'1. Ordersheet'!K1366)","v":""},{"$f":"IF('1. Ordersheet'!M1366=\"\",\"\",'1. Ordersheet'!M1366)","v":""},null,null,{"$f":"'1. Ordersheet'!AR1366","v":0},{"$f":"IF('1. Ordersheet'!AE1366=\"\",\"\",'1. Ordersheet'!AE1366)","v":""}]
[{"$f":"IF('1. Ordersheet'!B1367=\"\",\"\",'1. Ordersheet'!B1367)","v":""},{"$f":"IF('1. Ordersheet'!I1367=\"\",\"\",'1. Ordersheet'!I1367)","v":""},{"$f":"IF('1. Ordersheet'!J1367=\"\",\"\",'1. Ordersheet'!J1367)","v":""},{"$f":"IF('1. Ordersheet'!K1367=\"\",\"\",'1. Ordersheet'!K1367)","v":""},{"$f":"IF('1. Ordersheet'!M1367=\"\",\"\",'1. Ordersheet'!M1367)","v":""},null,null,{"$f":"'1. Ordersheet'!AR1367","v":0},{"$f":"IF('1. Ordersheet'!AE1367=\"\",\"\",'1. Ordersheet'!AE1367)","v":""}]
[{"$f":"IF('1. Ordersheet'!B1368=\"\",\"\",'1. Ordersheet'!B1368)","v":""},{"$f":"IF('1. Ordersheet'!I1368=\"\",\"\",'1. Ordersheet'!I1368)","v":""},{"$f":"IF('1. Ordersheet'!J1368=\"\",\"\",'1. Ordersheet'!J1368)","v":""},{"$f":"IF('1. Ordersheet'!K1368=\"\",\"\",'1. Ordersheet'!K1368)","v":""},{"$f":"IF('1. Ordersheet'!M1368=\"\",\"\",'1. Ordersheet'!M1368)","v":""},null,null,{"$f":"'1. Ordersheet'!AR1368","v":0},{"$f":"IF('1. Ordersheet'!AE1368=\"\",\"\",'1. Ordersheet'!AE1368)","v":""}]
[{"$f":"IF('1. Ordersheet'!B1369=\"\",\"\",'1. Ordersheet'!B1369)","v":""},{"$f":"IF('1. Ordersheet'!I1369=\"\",\"\",'1. Ordersheet'!I1369)","v":""},{"$f":"IF('1. Ordersheet'!J1369=\"\",\"\",'1. Ordersheet'!J1369)","v":""},{"$f":"IF('1. Ordersheet'!K1369=\"\",\"\",'1. Ordersheet'!K1369)","v":""},{"$f":"IF('1. Ordersheet'!M1369=\"\",\"\",'1. Ordersheet'!M1369)","v":""},null,null,{"$f":"'1. Ordersheet'!AR1369","v":0},{"$f":"IF('1. Ordersheet'!AE1369=\"\",\"\",'1. Ordersheet'!AE1369)","v":""}]
[{"$f":"IF('1. Ordersheet'!B1370=\"\",\"\",'1. Ordersheet'!B1370)","v":""},{"$f":"IF('1. Ordersheet'!I1370=\"\",\"\",'1. Ordersheet'!I1370)","v":""},{"$f":"IF('1. Ordersheet'!J1370=\"\",\"\",'1. Ordersheet'!J1370)","v":""},{"$f":"IF('1. Ordersheet'!K1370=\"\",\"\",'1. Ordersheet'!K1370)","v":""},{"$f":"IF('1. Ordersheet'!M1370=\"\",\"\",'1. Ordersheet'!M1370)","v":""},null,null,{"$f":"'1. Ordersheet'!AR1370","v":0},{"$f":"IF('1. Ordersheet'!AE1370=\"\",\"\",'1. Ordersheet'!AE1370)","v":""}]
[{"$f":"IF('1. Ordersheet'!B1371=\"\",\"\",'1. Ordersheet'!B1371)","v":""},{"$f":"IF('1. Ordersheet'!I1371=\"\",\"\",'1. Ordersheet'!I1371)","v":""},{"$f":"IF('1. Ordersheet'!J1371=\"\",\"\",'1. Ordersheet'!J1371)","v":""},{"$f":"IF('1. Ordersheet'!K1371=\"\",\"\",'1. Ordersheet'!K1371)","v":""},{"$f":"IF('1. Ordersheet'!M1371=\"\",\"\",'1. Ordersheet'!M1371)","v":""},null,null,{"$f":"'1. Ordersheet'!AR1371","v":0},{"$f":"IF('1. Ordersheet'!AE1371=\"\",\"\",'1. Ordersheet'!AE1371)","v":""}]
[{"$f":"IF('1. Ordersheet'!B1372=\"\",\"\",'1. Ordersheet'!B1372)","v":""},{"$f":"IF('1. Ordersheet'!I1372=\"\",\"\",'1. Ordersheet'!I1372)","v":""},{"$f":"IF('1. Ordersheet'!J1372=\"\",\"\",'1. Ordersheet'!J1372)","v":""},{"$f":"IF('1. Ordersheet'!K1372=\"\",\"\",'1. Ordersheet'!K1372)","v":""},{"$f":"IF('1. Ordersheet'!M1372=\"\",\"\",'1. Ordersheet'!M1372)","v":""},null,null,{"$f":"'1. Ordersheet'!AR1372","v":0},{"$f":"IF('1. Ordersheet'!AE1372=\"\",\"\",'1. Ordersheet'!AE1372)","v":""}]
[{"$f":"IF('1. Ordersheet'!B1373=\"\",\"\",'1. Ordersheet'!B1373)","v":""},{"$f":"IF('1. Ordersheet'!I1373=\"\",\"\",'1. Ordersheet'!I1373)","v":""},{"$f":"IF('1. Ordersheet'!J1373=\"\",\"\",'1. Ordersheet'!J1373)","v":""},{"$f":"IF('1. Ordersheet'!K1373=\"\",\"\",'1. Ordersheet'!K1373)","v":""},{"$f":"IF('1. Ordersheet'!M1373=\"\",\"\",'1. Ordersheet'!M1373)","v":""},null,null,{"$f":"'1. Ordersheet'!AR1373","v":0},{"$f":"IF('1. Ordersheet'!AE1373=\"\",\"\",'1. Ordersheet'!AE1373)","v":""}]
[{"$f":"IF('1. Ordersheet'!B1374=\"\",\"\",'1. Ordersheet'!B1374)","v":""},{"$f":"IF('1. Ordersheet'!I1374=\"\",\"\",'1. Ordersheet'!I1374)","v":""},{"$f":"IF('1. Ordersheet'!J1374=\"\",\"\",'1. Ordersheet'!J1374)","v":""},{"$f":"IF('1. Ordersheet'!K1374=\"\",\"\",'1. Ordersheet'!K1374)","v":""},{"$f":"IF('1. Ordersheet'!M1374=\"\",\"\",'1. Ordersheet'!M1374)","v":""},null,null,{"$f":"'1. Ordersheet'!AR1374","v":0},{"$f":"IF('1. Ordersheet'!AE1374=\"\",\"\",'1. Ordersheet'!AE1374)","v":""}]
[{"$f":"IF('1. Ordersheet'!B1375=\"\",\"\",'1. Ordersheet'!B1375)","v":""},{"$f":"IF('1. Ordersheet'!I1375=\"\",\"\",'1. Ordersheet'!I1375)","v":""},{"$f":"IF('1. Ordersheet'!J1375=\"\",\"\",'1. Ordersheet'!J1375)","v":""},{"$f":"IF('1. Ordersheet'!K1375=\"\",\"\",'1. Ordersheet'!K1375)","v":""},{"$f":"IF('1. Ordersheet'!M1375=\"\",\"\",'1. Ordersheet'!M1375)","v":""},null,null,{"$f":"'1. Ordersheet'!AR1375","v":0},{"$f":"IF('1. Ordersheet'!AE1375=\"\",\"\",'1. Ordersheet'!AE1375)","v":""}]
[{"$f":"IF('1. Ordersheet'!B1376=\"\",\"\",'1. Ordersheet'!B1376)","v":""},{"$f":"IF('1. Ordersheet'!I1376=\"\",\"\",'1. Ordersheet'!I1376)","v":""},{"$f":"IF('1. Ordersheet'!J1376=\"\",\"\",'1. Ordersheet'!J1376)","v":""},{"$f":"IF('1. Ordersheet'!K1376=\"\",\"\",'1. Ordersheet'!K1376)","v":""},{"$f":"IF('1. Ordersheet'!M1376=\"\",\"\",'1. Ordersheet'!M1376)","v":""},null,null,{"$f":"'1. Ordersheet'!AR1376","v":0},{"$f":"IF('1. Ordersheet'!AE1376=\"\",\"\",'1. Ordersheet'!AE1376)","v":""}]
[{"$f":"IF('1. Ordersheet'!B1377=\"\",\"\",'1. Ordersheet'!B1377)","v":""},{"$f":"IF('1. Ordersheet'!I1377=\"\",\"\",'1. Ordersheet'!I1377)","v":""},{"$f":"IF('1. Ordersheet'!J1377=\"\",\"\",'1. Ordersheet'!J1377)","v":""},{"$f":"IF('1. Ordersheet'!K1377=\"\",\"\",'1. Ordersheet'!K1377)","v":""},{"$f":"IF('1. Ordersheet'!M1377=\"\",\"\",'1. Ordersheet'!M1377)","v":""},null,null,{"$f":"'1. Ordersheet'!AR1377","v":0},{"$f":"IF('1. Ordersheet'!AE1377=\"\",\"\",'1. Ordersheet'!AE1377)","v":""}]
[{"$f":"IF('1. Ordersheet'!B1378=\"\",\"\",'1. Ordersheet'!B1378)","v":""},{"$f":"IF('1. Ordersheet'!I1378=\"\",\"\",'1. Ordersheet'!I1378)","v":""},{"$f":"IF('1. Ordersheet'!J1378=\"\",\"\",'1. Ordersheet'!J1378)","v":""},{"$f":"IF('1. Ordersheet'!K1378=\"\",\"\",'1. Ordersheet'!K1378)","v":""},{"$f":"IF('1. Ordersheet'!M1378=\"\",\"\",'1. Ordersheet'!M1378)","v":""},null,null,{"$f":"'1. Ordersheet'!AR1378","v":0},{"$f":"IF('1. Ordersheet'!AE1378=\"\",\"\",'1. Ordersheet'!AE1378)","v":""}]
[{"$f":"IF('1. Ordersheet'!B1379=\"\",\"\",'1. Ordersheet'!B1379)","v":""},{"$f":"IF('1. Ordersheet'!I1379=\"\",\"\",'1. Ordersheet'!I1379)","v":""},{"$f":"IF('1. Ordersheet'!J1379=\"\",\"\",'1. Ordersheet'!J1379)","v":""},{"$f":"IF('1. Ordersheet'!K1379=\"\",\"\",'1. Ordersheet'!K1379)","v":""},{"$f":"IF('1. Ordersheet'!M1379=\"\",\"\",'1. Ordersheet'!M1379)","v":""},null,null,{"$f":"'1. Ordersheet'!AR1379","v":0},{"$f":"IF('1. Ordersheet'!AE1379=\"\",\"\",'1. Ordersheet'!AE1379)","v":""}]
[{"$f":"IF('1. Ordersheet'!B1380=\"\",\"\",'1. Ordersheet'!B1380)","v":""},{"$f":"IF('1. Ordersheet'!I1380=\"\",\"\",'1. Ordersheet'!I1380)","v":""},{"$f":"IF('1. Ordersheet'!J1380=\"\",\"\",'1. Ordersheet'!J1380)","v":""},{"$f":"IF('1. Ordersheet'!K1380=\"\",\"\",'1. Ordersheet'!K1380)","v":""},{"$f":"IF('1. Ordersheet'!M1380=\"\",\"\",'1. Ordersheet'!M1380)","v":""},null,null,{"$f":"'1. Ordersheet'!AR1380","v":0},{"$f":"IF('1. Ordersheet'!AE1380=\"\",\"\",'1. Ordersheet'!AE1380)","v":""}]
[{"$f":"IF('1. Ordersheet'!B1381=\"\",\"\",'1. Ordersheet'!B1381)","v":""},{"$f":"IF('1. Ordersheet'!I1381=\"\",\"\",'1. Ordersheet'!I1381)","v":""},{"$f":"IF('1. Ordersheet'!J1381=\"\",\"\",'1. Ordersheet'!J1381)","v":""},{"$f":"IF('1. Ordersheet'!K1381=\"\",\"\",'1. Ordersheet'!K1381)","v":""},{"$f":"IF('1. Ordersheet'!M1381=\"\",\"\",'1. Ordersheet'!M1381)","v":""},null,null,{"$f":"'1. Ordersheet'!AR1381","v":0},{"$f":"IF('1. Ordersheet'!AE1381=\"\",\"\",'1. Ordersheet'!AE1381)","v":""}]
[{"$f":"IF('1. Ordersheet'!B1382=\"\",\"\",'1. Ordersheet'!B1382)","v":""},{"$f":"IF('1. Ordersheet'!I1382=\"\",\"\",'1. Ordersheet'!I1382)","v":""},{"$f":"IF('1. Ordersheet'!J1382=\"\",\"\",'1. Ordersheet'!J1382)","v":""},{"$f":"IF('1. Ordersheet'!K1382=\"\",\"\",'1. Ordersheet'!K1382)","v":""},{"$f":"IF('1. Ordersheet'!M1382=\"\",\"\",'1. Ordersheet'!M1382)","v":""},null,null,{"$f":"'1. Ordersheet'!AR1382","v":0},{"$f":"IF('1. Ordersheet'!AE1382=\"\",\"\",'1. Ordersheet'!AE1382)","v":""}]
[{"$f":"IF('1. Ordersheet'!B1383=\"\",\"\",'1. Ordersheet'!B1383)","v":""},{"$f":"IF('1. Ordersheet'!I1383=\"\",\"\",'1. Ordersheet'!I1383)","v":""},{"$f":"IF('1. Ordersheet'!J1383=\"\",\"\",'1. Ordersheet'!J1383)","v":""},{"$f":"IF('1. Ordersheet'!K1383=\"\",\"\",'1. Ordersheet'!K1383)","v":""},{"$f":"IF('1. Ordersheet'!M1383=\"\",\"\",'1. Ordersheet'!M1383)","v":""},null,null,{"$f":"'1. Ordersheet'!AR1383","v":0},{"$f":"IF('1. Ordersheet'!AE1383=\"\",\"\",'1. Ordersheet'!AE1383)","v":""}]
[{"$f":"IF('1. Ordersheet'!B1384=\"\",\"\",'1. Ordersheet'!B1384)","v":""},{"$f":"IF('1. Ordersheet'!I1384=\"\",\"\",'1. Ordersheet'!I1384)","v":""},{"$f":"IF('1. Ordersheet'!J1384=\"\",\"\",'1. Ordersheet'!J1384)","v":""},{"$f":"IF('1. Ordersheet'!K1384=\"\",\"\",'1. Ordersheet'!K1384)","v":""},{"$f":"IF('1. Ordersheet'!M1384=\"\",\"\",'1. Ordersheet'!M1384)","v":""},null,null,{"$f":"'1. Ordersheet'!AR1384","v":0},{"$f":"IF('1. Ordersheet'!AE1384=\"\",\"\",'1. Ordersheet'!AE1384)","v":""}]
[{"$f":"IF('1. Ordersheet'!B1385=\"\",\"\",'1. Ordersheet'!B1385)","v":""},{"$f":"IF('1. Ordersheet'!I1385=\"\",\"\",'1. Ordersheet'!I1385)","v":""},{"$f":"IF('1. Ordersheet'!J1385=\"\",\"\",'1. Ordersheet'!J1385)","v":""},{"$f":"IF('1. Ordersheet'!K1385=\"\",\"\",'1. Ordersheet'!K1385)","v":""},{"$f":"IF('1. Ordersheet'!M1385=\"\",\"\",'1. Ordersheet'!M1385)","v":""},null,null,{"$f":"'1. Ordersheet'!AR1385","v":0},{"$f":"IF('1. Ordersheet'!AE1385=\"\",\"\",'1. Ordersheet'!AE1385)","v":""}]
[{"$f":"IF('1. Ordersheet'!B1386=\"\",\"\",'1. Ordersheet'!B1386)","v":""},{"$f":"IF('1. Ordersheet'!I1386=\"\",\"\",'1. Ordersheet'!I1386)","v":""},{"$f":"IF('1. Ordersheet'!J1386=\"\",\"\",'1. Ordersheet'!J1386)","v":""},{"$f":"IF('1. Ordersheet'!K1386=\"\",\"\",'1. Ordersheet'!K1386)","v":""},{"$f":"IF('1. Ordersheet'!M1386=\"\",\"\",'1. Ordersheet'!M1386)","v":""},null,null,{"$f":"'1. Ordersheet'!AR1386","v":0},{"$f":"IF('1. Ordersheet'!AE1386=\"\",\"\",'1. Ordersheet'!AE1386)","v":""}]
[{"$f":"IF('1. Ordersheet'!B1387=\"\",\"\",'1. Ordersheet'!B1387)","v":""},{"$f":"IF('1. Ordersheet'!I1387=\"\",\"\",'1. Ordersheet'!I1387)","v":""},{"$f":"IF('1. Ordersheet'!J1387=\"\",\"\",'1. Ordersheet'!J1387)","v":""},{"$f":"IF('1. Ordersheet'!K1387=\"\",\"\",'1. Ordersheet'!K1387)","v":""},{"$f":"IF('1. Ordersheet'!M1387=\"\",\"\",'1. Ordersheet'!M1387)","v":""},null,null,{"$f":"'1. Ordersheet'!AR1387","v":0},{"$f":"IF('1. Ordersheet'!AE1387=\"\",\"\",'1. Ordersheet'!AE1387)","v":""}]
[{"$f":"IF('1. Ordersheet'!B1388=\"\",\"\",'1. Ordersheet'!B1388)","v":""},{"$f":"IF('1. Ordersheet'!I1388=\"\",\"\",'1. Ordersheet'!I1388)","v":""},{"$f":"IF('1. Ordersheet'!J1388=\"\",\"\",'1. Ordersheet'!J1388)","v":""},{"$f":"IF('1. Ordersheet'!K1388=\"\",\"\",'1. Ordersheet'!K1388)","v":""},{"$f":"IF('1. Ordersheet'!M1388=\"\",\"\",'1. Ordersheet'!M1388)","v":""},null,null,{"$f":"'1. Ordersheet'!AR1388","v":0},{"$f":"IF('1. Ordersheet'!AE1388=\"\",\"\",'1. Ordersheet'!AE1388)","v":""}]
[{"$f":"IF('1. Ordersheet'!B1389=\"\",\"\",'1. Ordersheet'!B1389)","v":""},{"$f":"IF('1. Ordersheet'!I1389=\"\",\"\",'1. Ordersheet'!I1389)","v":""},{"$f":"IF('1. Ordersheet'!J1389=\"\",\"\",'1. Ordersheet'!J1389)","v":""},{"$f":"IF('1. Ordersheet'!K1389=\"\",\"\",'1. Ordersheet'!K1389)","v":""},{"$f":"IF('1. Ordersheet'!M1389=\"\",\"\",'1. Ordersheet'!M1389)","v":""},null,null,{"$f":"'1. Ordersheet'!AR1389","v":0},{"$f":"IF('1. Ordersheet'!AE1389=\"\",\"\",'1. Ordersheet'!AE1389)","v":""}]
[{"$f":"IF('1. Ordersheet'!B1390=\"\",\"\",'1. Ordersheet'!B1390)","v":""},{"$f":"IF('1. Ordersheet'!I1390=\"\",\"\",'1. Ordersheet'!I1390)","v":""},{"$f":"IF('1. Ordersheet'!J1390=\"\",\"\",'1. Ordersheet'!J1390)","v":""},{"$f":"IF('1. Ordersheet'!K1390=\"\",\"\",'1. Ordersheet'!K1390)","v":""},{"$f":"IF('1. Ordersheet'!M1390=\"\",\"\",'1. Ordersheet'!M1390)","v":""},null,null,{"$f":"'1. Ordersheet'!AR1390","v":0},{"$f":"IF('1. Ordersheet'!AE1390=\"\",\"\",'1. Ordersheet'!AE1390)","v":""}]
[{"$f":"IF('1. Ordersheet'!B1391=\"\",\"\",'1. Ordersheet'!B1391)","v":""},{"$f":"IF('1. Ordersheet'!I1391=\"\",\"\",'1. Ordersheet'!I1391)","v":""},{"$f":"IF('1. Ordersheet'!J1391=\"\",\"\",'1. Ordersheet'!J1391)","v":""},{"$f":"IF('1. Ordersheet'!K1391=\"\",\"\",'1. Ordersheet'!K1391)","v":""},{"$f":"IF('1. Ordersheet'!M1391=\"\",\"\",'1. Ordersheet'!M1391)","v":""},null,null,{"$f":"'1. Ordersheet'!AR1391","v":0},{"$f":"IF('1. Ordersheet'!AE1391=\"\",\"\",'1. Ordersheet'!AE1391)","v":""}]
[{"$f":"IF('1. Ordersheet'!B1392=\"\",\"\",'1. Ordersheet'!B1392)","v":""},{"$f":"IF('1. Ordersheet'!I1392=\"\",\"\",'1. Ordersheet'!I1392)","v":""},{"$f":"IF('1. Ordersheet'!J1392=\"\",\"\",'1. Ordersheet'!J1392)","v":""},{"$f":"IF('1. Ordersheet'!K1392=\"\",\"\",'1. Ordersheet'!K1392)","v":""},{"$f":"IF('1. Ordersheet'!M1392=\"\",\"\",'1. Ordersheet'!M1392)","v":""},null,null,{"$f":"'1. Ordersheet'!AR1392","v":0},{"$f":"IF('1. Ordersheet'!AE1392=\"\",\"\",'1. Ordersheet'!AE1392)","v":""}]
[{"$f":"IF('1. Ordersheet'!B1393=\"\",\"\",'1. Ordersheet'!B1393)","v":""},{"$f":"IF('1. Ordersheet'!I1393=\"\",\"\",'1. Ordersheet'!I1393)","v":""},{"$f":"IF('1. Ordersheet'!J1393=\"\",\"\",'1. Ordersheet'!J1393)","v":""},{"$f":"IF('1. Ordersheet'!K1393=\"\",\"\",'1. Ordersheet'!K1393)","v":""},{"$f":"IF('1. Ordersheet'!M1393=\"\",\"\",'1. Ordersheet'!M1393)","v":""},null,null,{"$f":"'1. Ordersheet'!AR1393","v":0},{"$f":"IF('1. Ordersheet'!AE1393=\"\",\"\",'1. Ordersheet'!AE1393)","v":""}]
[{"$f":"IF('1. Ordersheet'!B1394=\"\",\"\",'1. Ordersheet'!B1394)","v":""},{"$f":"IF('1. Ordersheet'!I1394=\"\",\"\",'1. Ordersheet'!I1394)","v":""},{"$f":"IF('1. Ordersheet'!J1394=\"\",\"\",'1. Ordersheet'!J1394)","v":""},{"$f":"IF('1. Ordersheet'!K1394=\"\",\"\",'1. Ordersheet'!K1394)","v":""},{"$f":"IF('1. Ordersheet'!M1394=\"\",\"\",'1. Ordersheet'!M1394)","v":""},null,null,{"$f":"'1. Ordersheet'!AR1394","v":0},{"$f":"IF('1. Ordersheet'!AE1394=\"\",\"\",'1. Ordersheet'!AE1394)","v":""}]
[{"$f":"IF('1. Ordersheet'!B1395=\"\",\"\",'1. Ordersheet'!B1395)","v":""},{"$f":"IF('1. Ordersheet'!I1395=\"\",\"\",'1. Ordersheet'!I1395)","v":""},{"$f":"IF('1. Ordersheet'!J1395=\"\",\"\",'1. Ordersheet'!J1395)","v":""},{"$f":"IF('1. Ordersheet'!K1395=\"\",\"\",'1. Ordersheet'!K1395)","v":""},{"$f":"IF('1. Ordersheet'!M1395=\"\",\"\",'1. Ordersheet'!M1395)","v":""},null,null,{"$f":"'1. Ordersheet'!AR1395","v":0},{"$f":"IF('1. Ordersheet'!AE1395=\"\",\"\",'1. Ordersheet'!AE1395)","v":""}]
[{"$f":"IF('1. Ordersheet'!B1396=\"\",\"\",'1. Ordersheet'!B1396)","v":""},{"$f":"IF('1. Ordersheet'!I1396=\"\",\"\",'1. Ordersheet'!I1396)","v":""},{"$f":"IF('1. Ordersheet'!J1396=\"\",\"\",'1. Ordersheet'!J1396)","v":""},{"$f":"IF('1. Ordersheet'!K1396=\"\",\"\",'1. Ordersheet'!K1396)","v":""},{"$f":"IF('1. Ordersheet'!M1396=\"\",\"\",'1. Ordersheet'!M1396)","v":""},null,null,{"$f":"'1. Ordersheet'!AR1396","v":0},{"$f":"IF('1. Ordersheet'!AE1396=\"\",\"\",'1. Ordersheet'!AE1396)","v":""}]
[{"$f":"IF('1. Ordersheet'!B1397=\"\",\"\",'1. Ordersheet'!B1397)","v":""},{"$f":"IF('1. Ordersheet'!I1397=\"\",\"\",'1. Ordersheet'!I1397)","v":""},{"$f":"IF('1. Ordersheet'!J1397=\"\",\"\",'1. Ordersheet'!J1397)","v":""},{"$f":"IF('1. Ordersheet'!K1397=\"\",\"\",'1. Ordersheet'!K1397)","v":""},{"$f":"IF('1. Ordersheet'!M1397=\"\",\"\",'1. Ordersheet'!M1397)","v":""},null,null,{"$f":"'1. Ordersheet'!AR1397","v":0},{"$f":"IF('1. Ordersheet'!AE1397=\"\",\"\",'1. Ordersheet'!AE1397)","v":""}]
[{"$f":"IF('1. Ordersheet'!B1398=\"\",\"\",'1. Ordersheet'!B1398)","v":""},{"$f":"IF('1. Ordersheet'!I1398=\"\",\"\",'1. Ordersheet'!I1398)","v":""},{"$f":"IF('1. Ordersheet'!J1398=\"\",\"\",'1. Ordersheet'!J1398)","v":""},{"$f":"IF('1. Ordersheet'!K1398=\"\",\"\",'1. Ordersheet'!K1398)","v":""},{"$f":"IF('1. Ordersheet'!M1398=\"\",\"\",'1. Ordersheet'!M1398)","v":""},null,null,{"$f":"'1. Ordersheet'!AR1398","v":0},{"$f":"IF('1. Ordersheet'!AE1398=\"\",\"\",'1. Ordersheet'!AE1398)","v":""}]
[{"$f":"IF('1. Ordersheet'!B1399=\"\",\"\",'1. Ordersheet'!B1399)","v":""},{"$f":"IF('1. Ordersheet'!I1399=\"\",\"\",'1. Ordersheet'!I1399)","v":""},{"$f":"IF('1. Ordersheet'!J1399=\"\",\"\",'1. Ordersheet'!J1399)","v":""},{"$f":"IF('1. Ordersheet'!K1399=\"\",\"\",'1. Ordersheet'!K1399)","v":""},{"$f":"IF('1. Ordersheet'!M1399=\"\",\"\",'1. Ordersheet'!M1399)","v":""},null,null,{"$f":"'1. Ordersheet'!AR1399","v":0},{"$f":"IF('1. Ordersheet'!AE1399=\"\",\"\",'1. Ordersheet'!AE1399)","v":""}]
[{"$f":"IF('1. Ordersheet'!B1400=\"\",\"\",'1. Ordersheet'!B1400)","v":""},{"$f":"IF('1. Ordersheet'!I1400=\"\",\"\",'1. Ordersheet'!I1400)","v":""},{"$f":"IF('1. Ordersheet'!J1400=\"\",\"\",'1. Ordersheet'!J1400)","v":""},{"$f":"IF('1. Ordersheet'!K1400=\"\",\"\",'1. Ordersheet'!K1400)","v":""},{"$f":"IF('1. Ordersheet'!M1400=\"\",\"\",'1. Ordersheet'!M1400)","v":""},null,null,{"$f":"'1. Ordersheet'!AR1400","v":0},{"$f":"IF('1. Ordersheet'!AE1400=\"\",\"\",'1. Ordersheet'!AE1400)","v":""}]
[{"$f":"IF('1. Ordersheet'!B1401=\"\",\"\",'1. Ordersheet'!B1401)","v":""},{"$f":"IF('1. Ordersheet'!I1401=\"\",\"\",'1. Ordersheet'!I1401)","v":""},{"$f":"IF('1. Ordersheet'!J1401=\"\",\"\",'1. Ordersheet'!J1401)","v":""},{"$f":"IF('1. Ordersheet'!K1401=\"\",\"\",'1. Ordersheet'!K1401)","v":""},{"$f":"IF('1. Ordersheet'!M1401=\"\",\"\",'1. Ordersheet'!M1401)","v":""},null,null,{"$f":"'1. Ordersheet'!AR1401","v":0},{"$f":"IF('1. Ordersheet'!AE1401=\"\",\"\",'1. Ordersheet'!AE1401)","v":""}]
[{"$f":"IF('1. Ordersheet'!B1402=\"\",\"\",'1. Ordersheet'!B1402)","v":""},{"$f":"IF('1. Ordersheet'!I1402=\"\",\"\",'1. Ordersheet'!I1402)","v":""},{"$f":"IF('1. Ordersheet'!J1402=\"\",\"\",'1. Ordersheet'!J1402)","v":""},{"$f":"IF('1. Ordersheet'!K1402=\"\",\"\",'1. Ordersheet'!K1402)","v":""},{"$f":"IF('1. Ordersheet'!M1402=\"\",\"\",'1. Ordersheet'!M1402)","v":""},null,null,{"$f":"'1. Ordersheet'!AR1402","v":0},{"$f":"IF('1. Ordersheet'!AE1402=\"\",\"\",'1. Ordersheet'!AE1402)","v":""}]
[{"$f":"IF('1. Ordersheet'!B1403=\"\",\"\",'1. Ordersheet'!B1403)","v":""},{"$f":"IF('1. Ordersheet'!I1403=\"\",\"\",'1. Ordersheet'!I1403)","v":""},{"$f":"IF('1. Ordersheet'!J1403=\"\",\"\",'1. Ordersheet'!J1403)","v":""},{"$f":"IF('1. Ordersheet'!K1403=\"\",\"\",'1. Ordersheet'!K1403)","v":""},{"$f":"IF('1. Ordersheet'!M1403=\"\",\"\",'1. Ordersheet'!M1403)","v":""},null,null,{"$f":"'1. Ordersheet'!AR1403","v":0},{"$f":"IF('1. Ordersheet'!AE1403=\"\",\"\",'1. Ordersheet'!AE1403)","v":""}]
[{"$f":"IF('1. Ordersheet'!B1404=\"\",\"\",'1. Ordersheet'!B1404)","v":""},{"$f":"IF('1. Ordersheet'!I1404=\"\",\"\",'1. Ordersheet'!I1404)","v":""},{"$f":"IF('1. Ordersheet'!J1404=\"\",\"\",'1. Ordersheet'!J1404)","v":""},{"$f":"IF('1. Ordersheet'!K1404=\"\",\"\",'1. Ordersheet'!K1404)","v":""},{"$f":"IF('1. Ordersheet'!M1404=\"\",\"\",'1. Ordersheet'!M1404)","v":""},null,null,{"$f":"'1. Ordersheet'!AR1404","v":0},{"$f":"IF('1. Ordersheet'!AE1404=\"\",\"\",'1. Ordersheet'!AE1404)","v":""}]
[{"$f":"IF('1. Ordersheet'!B1405=\"\",\"\",'1. Ordersheet'!B1405)","v":""},{"$f":"IF('1. Ordersheet'!I1405=\"\",\"\",'1. Ordersheet'!I1405)","v":""},{"$f":"IF('1. Ordersheet'!J1405=\"\",\"\",'1. Ordersheet'!J1405)","v":""},{"$f":"IF('1. Ordersheet'!K1405=\"\",\"\",'1. Ordersheet'!K1405)","v":""},{"$f":"IF('1. Ordersheet'!M1405=\"\",\"\",'1. Ordersheet'!M1405)","v":""},null,null,{"$f":"'1. Ordersheet'!AR1405","v":0},{"$f":"IF('1. Ordersheet'!AE1405=\"\",\"\",'1. Ordersheet'!AE1405)","v":""}]
[{"$f":"IF('1. Ordersheet'!B1406=\"\",\"\",'1. Ordersheet'!B1406)","v":""},{"$f":"IF('1. Ordersheet'!I1406=\"\",\"\",'1. Ordersheet'!I1406)","v":""},{"$f":"IF('1. Ordersheet'!J1406=\"\",\"\",'1. Ordersheet'!J1406)","v":""},{"$f":"IF('1. Ordersheet'!K1406=\"\",\"\",'1. Ordersheet'!K1406)","v":""},{"$f":"IF('1. Ordersheet'!M1406=\"\",\"\",'1. Ordersheet'!M1406)","v":""},null,null,{"$f":"'1. Ordersheet'!AR1406","v":0},{"$f":"IF('1. Ordersheet'!AE1406=\"\",\"\",'1. Ordersheet'!AE1406)","v":""}]
[{"$f":"IF('1. Ordersheet'!B1407=\"\",\"\",'1. Ordersheet'!B1407)","v":""},{"$f":"IF('1. Ordersheet'!I1407=\"\",\"\",'1. Ordersheet'!I1407)","v":""},{"$f":"IF('1. Ordersheet'!J1407=\"\",\"\",'1. Ordersheet'!J1407)","v":""},{"$f":"IF('1. Ordersheet'!K1407=\"\",\"\",'1. Ordersheet'!K1407)","v":""},{"$f":"IF('1. Ordersheet'!M1407=\"\",\"\",'1. Ordersheet'!M1407)","v":""},null,null,{"$f":"'1. Ordersheet'!AR1407","v":0},{"$f":"IF('1. Ordersheet'!AE1407=\"\",\"\",'1. Ordersheet'!AE1407)","v":""}]
[{"$f":"IF('1. Ordersheet'!B1408=\"\",\"\",'1. Ordersheet'!B1408)","v":""},{"$f":"IF('1. Ordersheet'!I1408=\"\",\"\",'1. Ordersheet'!I1408)","v":""},{"$f":"IF('1. Ordersheet'!J1408=\"\",\"\",'1. Ordersheet'!J1408)","v":""},{"$f":"IF('1. Ordersheet'!K1408=\"\",\"\",'1. Ordersheet'!K1408)","v":""},{"$f":"IF('1. Ordersheet'!M1408=\"\",\"\",'1. Ordersheet'!M1408)","v":""},null,null,{"$f":"'1. Ordersheet'!AR1408","v":0},{"$f":"IF('1. Ordersheet'!AE1408=\"\",\"\",'1. Ordersheet'!AE1408)","v":""}]
[{"$f":"IF('1. Ordersheet'!B1409=\"\",\"\",'1. Ordersheet'!B1409)","v":""},{"$f":"IF('1. Ordersheet'!I1409=\"\",\"\",'1. Ordersheet'!I1409)","v":""},{"$f":"IF('1. Ordersheet'!J1409=\"\",\"\",'1. Ordersheet'!J1409)","v":""},{"$f":"IF('1. Ordersheet'!K1409=\"\",\"\",'1. Ordersheet'!K1409)","v":""},{"$f":"IF('1. Ordersheet'!M1409=\"\",\"\",'1. Ordersheet'!M1409)","v":""},null,null,{"$f":"'1. Ordersheet'!AR1409","v":0},{"$f":"IF('1. Ordersheet'!AE1409=\"\",\"\",'1. Ordersheet'!AE1409)","v":""}]
[{"$f":"IF('1. Ordersheet'!B1410=\"\",\"\",'1. Ordersheet'!B1410)","v":""},{"$f":"IF('1. Ordersheet'!I1410=\"\",\"\",'1. Ordersheet'!I1410)","v":""},{"$f":"IF('1. Ordersheet'!J1410=\"\",\"\",'1. Ordersheet'!J1410)","v":""},{"$f":"IF('1. Ordersheet'!K1410=\"\",\"\",'1. Ordersheet'!K1410)","v":""},{"$f":"IF('1. Ordersheet'!M1410=\"\",\"\",'1. Ordersheet'!M1410)","v":""},null,null,{"$f":"'1. Ordersheet'!AR1410","v":0},{"$f":"IF('1. Ordersheet'!AE1410=\"\",\"\",'1. Ordersheet'!AE1410)","v":""}]
[{"$f":"IF('1. Ordersheet'!B1411=\"\",\"\",'1. Ordersheet'!B1411)","v":""},{"$f":"IF('1. Ordersheet'!I1411=\"\",\"\",'1. Ordersheet'!I1411)","v":""},{"$f":"IF('1. Ordersheet'!J1411=\"\",\"\",'1. Ordersheet'!J1411)","v":""},{"$f":"IF('1. Ordersheet'!K1411=\"\",\"\",'1. Ordersheet'!K1411)","v":""},{"$f":"IF('1. Ordersheet'!M1411=\"\",\"\",'1. Ordersheet'!M1411)","v":""},null,null,{"$f":"'1. Ordersheet'!AR1411","v":0},{"$f":"IF('1. Ordersheet'!AE1411=\"\",\"\",'1. Ordersheet'!AE1411)","v":""}]
[{"$f":"IF('1. Ordersheet'!B1412=\"\",\"\",'1. Ordersheet'!B1412)","v":""},{"$f":"IF('1. Ordersheet'!I1412=\"\",\"\",'1. Ordersheet'!I1412)","v":""},{"$f":"IF('1. Ordersheet'!J1412=\"\",\"\",'1. Ordersheet'!J1412)","v":""},{"$f":"IF('1. Ordersheet'!K1412=\"\",\"\",'1. Ordersheet'!K1412)","v":""},{"$f":"IF('1. Ordersheet'!M1412=\"\",\"\",'1. Ordersheet'!M1412)","v":""},null,null,{"$f":"'1. Ordersheet'!AR1412","v":0},{"$f":"IF('1. Ordersheet'!AE1412=\"\",\"\",'1. Ordersheet'!AE1412)","v":""}]
[{"$f":"IF('1. Ordersheet'!B1413=\"\",\"\",'1. Ordersheet'!B1413)","v":""},{"$f":"IF('1. Ordersheet'!I1413=\"\",\"\",'1. Ordersheet'!I1413)","v":""},{"$f":"IF('1. Ordersheet'!J1413=\"\",\"\",'1. Ordersheet'!J1413)","v":""},{"$f":"IF('1. Ordersheet'!K1413=\"\",\"\",'1. Ordersheet'!K1413)","v":""},{"$f":"IF('1. Ordersheet'!M1413=\"\",\"\",'1. Ordersheet'!M1413)","v":""},null,null,{"$f":"'1. Ordersheet'!AR1413","v":0},{"$f":"IF('1. Ordersheet'!AE1413=\"\",\"\",'1. Ordersheet'!AE1413)","v":""}]
[{"$f":"IF('1. Ordersheet'!B1414=\"\",\"\",'1. Ordersheet'!B1414)","v":""},{"$f":"IF('1. Ordersheet'!I1414=\"\",\"\",'1. Ordersheet'!I1414)","v":""},{"$f":"IF('1. Ordersheet'!J1414=\"\",\"\",'1. Ordersheet'!J1414)","v":""},{"$f":"IF('1. Ordersheet'!K1414=\"\",\"\",'1. Ordersheet'!K1414)","v":""},{"$f":"IF('1. Ordersheet'!M1414=\"\",\"\",'1. Ordersheet'!M1414)","v":""},null,null,{"$f":"'1. Ordersheet'!AR1414","v":0},{"$f":"IF('1. Ordersheet'!AE1414=\"\",\"\",'1. Ordersheet'!AE1414)","v":""}]
[{"$f":"IF('1. Ordersheet'!B1415=\"\",\"\",'1. Ordersheet'!B1415)","v":""},{"$f":"IF('1. Ordersheet'!I1415=\"\",\"\",'1. Ordersheet'!I1415)","v":""},{"$f":"IF('1. Ordersheet'!J1415=\"\",\"\",'1. Ordersheet'!J1415)","v":""},{"$f":"IF('1. Ordersheet'!K1415=\"\",\"\",'1. Ordersheet'!K1415)","v":""},{"$f":"IF('1. Ordersheet'!M1415=\"\",\"\",'1. Ordersheet'!M1415)","v":""},null,null,{"$f":"'1. Ordersheet'!AR1415","v":0},{"$f":"IF('1. Ordersheet'!AE1415=\"\",\"\",'1. Ordersheet'!AE1415)","v":""}]
[{"$f":"IF('1. Ordersheet'!B1416=\"\",\"\",'1. Ordersheet'!B1416)","v":""},{"$f":"IF('1. Ordersheet'!I1416=\"\",\"\",'1. Ordersheet'!I1416)","v":""},{"$f":"IF('1. Ordersheet'!J1416=\"\",\"\",'1. Ordersheet'!J1416)","v":""},{"$f":"IF('1. Ordersheet'!K1416=\"\",\"\",'1. Ordersheet'!K1416)","v":""},{"$f":"IF('1. Ordersheet'!M1416=\"\",\"\",'1. Ordersheet'!M1416)","v":""},null,null,{"$f":"'1. Ordersheet'!AR1416","v":0},{"$f":"IF('1. Ordersheet'!AE1416=\"\",\"\",'1. Ordersheet'!AE1416)","v":""}]
[{"$f":"IF('1. Ordersheet'!B1417=\"\",\"\",'1. Ordersheet'!B1417)","v":""},{"$f":"IF('1. Ordersheet'!I1417=\"\",\"\",'1. Ordersheet'!I1417)","v":""},{"$f":"IF('1. Ordersheet'!J1417=\"\",\"\",'1. Ordersheet'!J1417)","v":""},{"$f":"IF('1. Ordersheet'!K1417=\"\",\"\",'1. Ordersheet'!K1417)","v":""},{"$f":"IF('1. Ordersheet'!M1417=\"\",\"\",'1. Ordersheet'!M1417)","v":""},null,null,{"$f":"'1. Ordersheet'!AR1417","v":0},{"$f":"IF('1. Ordersheet'!AE1417=\"\",\"\",'1. Ordersheet'!AE1417)","v":""}]
[{"$f":"IF('1. Ordersheet'!B1418=\"\",\"\",'1. Ordersheet'!B1418)","v":""},{"$f":"IF('1. Ordersheet'!I1418=\"\",\"\",'1. Ordersheet'!I1418)","v":""},{"$f":"IF('1. Ordersheet'!J1418=\"\",\"\",'1. Ordersheet'!J1418)","v":""},{"$f":"IF('1. Ordersheet'!K1418=\"\",\"\",'1. Ordersheet'!K1418)","v":""},{"$f":"IF('1. Ordersheet'!M1418=\"\",\"\",'1. Ordersheet'!M1418)","v":""},null,null,{"$f":"'1. Ordersheet'!AR1418","v":0},{"$f":"IF('1. Ordersheet'!AE1418=\"\",\"\",'1. Ordersheet'!AE1418)","v":""}]
[{"$f":"IF('1. Ordersheet'!B1419=\"\",\"\",'1. Ordersheet'!B1419)","v":""},{"$f":"IF('1. Ordersheet'!I1419=\"\",\"\",'1. Ordersheet'!I1419)","v":""},{"$f":"IF('1. Ordersheet'!J1419=\"\",\"\",'1. Ordersheet'!J1419)","v":""},{"$f":"IF('1. Ordersheet'!K1419=\"\",\"\",'1. Ordersheet'!K1419)","v":""},{"$f":"IF('1. Ordersheet'!M1419=\"\",\"\",'1. Ordersheet'!M1419)","v":""},null,null,{"$f":"'1. Ordersheet'!AR1419","v":0},{"$f":"IF('1. Ordersheet'!AE1419=\"\",\"\",'1. Ordersheet'!AE1419)","v":""}]
[{"$f":"IF('1. Ordersheet'!B1420=\"\",\"\",'1. Ordersheet'!B1420)","v":""},{"$f":"IF('1. Ordersheet'!I1420=\"\",\"\",'1. Ordersheet'!I1420)","v":""},{"$f":"IF('1. Ordersheet'!J1420=\"\",\"\",'1. Ordersheet'!J1420)","v":""},{"$f":"IF('1. Ordersheet'!K1420=\"\",\"\",'1. Ordersheet'!K1420)","v":""},{"$f":"IF('1. Ordersheet'!M1420=\"\",\"\",'1. Ordersheet'!M1420)","v":""},null,null,{"$f":"'1. Ordersheet'!AR1420","v":0},{"$f":"IF('1. Ordersheet'!AE1420=\"\",\"\",'1. Ordersheet'!AE1420)","v":""}]
[{"$f":"IF('1. Ordersheet'!B1421=\"\",\"\",'1. Ordersheet'!B1421)","v":""},{"$f":"IF('1. Ordersheet'!I1421=\"\",\"\",'1. Ordersheet'!I1421)","v":""},{"$f":"IF('1. Ordersheet'!J1421=\"\",\"\",'1. Ordersheet'!J1421)","v":""},{"$f":"IF('1. Ordersheet'!K1421=\"\",\"\",'1. Ordersheet'!K1421)","v":""},{"$f":"IF('1. Ordersheet'!M1421=\"\",\"\",'1. Ordersheet'!M1421)","v":""},null,null,{"$f":"'1. Ordersheet'!AR1421","v":0},{"$f":"IF('1. Ordersheet'!AE1421=\"\",\"\",'1. Ordersheet'!AE1421)","v":""}]
[{"$f":"IF('1. Ordersheet'!B1422=\"\",\"\",'1. Ordersheet'!B1422)","v":""},{"$f":"IF('1. Ordersheet'!I1422=\"\",\"\",'1. Ordersheet'!I1422)","v":""},{"$f":"IF('1. Ordersheet'!J1422=\"\",\"\",'1. Ordersheet'!J1422)","v":""},{"$f":"IF('1. Ordersheet'!K1422=\"\",\"\",'1. Ordersheet'!K1422)","v":""},{"$f":"IF('1. Ordersheet'!M1422=\"\",\"\",'1. Ordersheet'!M1422)","v":""},null,null,{"$f":"'1. Ordersheet'!AR1422","v":0},{"$f":"IF('1. Ordersheet'!AE1422=\"\",\"\",'1. Ordersheet'!AE1422)","v":""}]
[{"$f":"IF('1. Ordersheet'!B1423=\"\",\"\",'1. Ordersheet'!B1423)","v":""},{"$f":"IF('1. Ordersheet'!I1423=\"\",\"\",'1. Ordersheet'!I1423)","v":""},{"$f":"IF('1. Ordersheet'!J1423=\"\",\"\",'1. Ordersheet'!J1423)","v":""},{"$f":"IF('1. Ordersheet'!K1423=\"\",\"\",'1. Ordersheet'!K1423)","v":""},{"$f":"IF('1. Ordersheet'!M1423=\"\",\"\",'1. Ordersheet'!M1423)","v":""},null,null,{"$f":"'1. Ordersheet'!AR1423","v":0},{"$f":"IF('1. Ordersheet'!AE1423=\"\",\"\",'1. Ordersheet'!AE1423)","v":""}]
[{"$f":"IF('1. Ordersheet'!B1424=\"\",\"\",'1. Ordersheet'!B1424)","v":""},{"$f":"IF('1. Ordersheet'!I1424=\"\",\"\",'1. Ordersheet'!I1424)","v":""},{"$f":"IF('1. Ordersheet'!J1424=\"\",\"\",'1. Ordersheet'!J1424)","v":""},{"$f":"IF('1. Ordersheet'!K1424=\"\",\"\",'1. Ordersheet'!K1424)","v":""},{"$f":"IF('1. Ordersheet'!M1424=\"\",\"\",'1. Ordersheet'!M1424)","v":""},null,null,{"$f":"'1. Ordersheet'!AR1424","v":0},{"$f":"IF('1. Ordersheet'!AE1424=\"\",\"\",'1. Ordersheet'!AE1424)","v":""}]
[{"$f":"IF('1. Ordersheet'!B1425=\"\",\"\",'1. Ordersheet'!B1425)","v":""},{"$f":"IF('1. Ordersheet'!I1425=\"\",\"\",'1. Ordersheet'!I1425)","v":""},{"$f":"IF('1. Ordersheet'!J1425=\"\",\"\",'1. Ordersheet'!J1425)","v":""},{"$f":"IF('1. Ordersheet'!K1425=\"\",\"\",'1. Ordersheet'!K1425)","v":""},{"$f":"IF('1. Ordersheet'!M1425=\"\",\"\",'1. Ordersheet'!M1425)","v":""},null,null,{"$f":"'1. Ordersheet'!AR1425","v":0},{"$f":"IF('1. Ordersheet'!AE1425=\"\",\"\",'1. Ordersheet'!AE1425)","v":""}]
[{"$f":"IF('1. Ordersheet'!B1426=\"\",\"\",'1. Ordersheet'!B1426)","v":""},{"$f":"IF('1. Ordersheet'!I1426=\"\",\"\",'1. Ordersheet'!I1426)","v":""},{"$f":"IF('1. Ordersheet'!J1426=\"\",\"\",'1. Ordersheet'!J1426)","v":""},{"$f":"IF('1. Ordersheet'!K1426=\"\",\"\",'1. Ordersheet'!K1426)","v":""},{"$f":"IF('1. Ordersheet'!M1426=\"\",\"\",'1. Ordersheet'!M1426)","v":""},null,null,{"$f":"'1. Ordersheet'!AR1426","v":0},{"$f":"IF('1. Ordersheet'!AE1426=\"\",\"\",'1. Ordersheet'!AE1426)","v":""}]
[{"$f":"IF('1. Ordersheet'!B1427=\"\",\"\",'1. Ordersheet'!B1427)","v":""},{"$f":"IF('1. Ordersheet'!I1427=\"\",\"\",'1. Ordersheet'!I1427)","v":""},{"$f":"IF('1. Ordersheet'!J1427=\"\",\"\",'1. Ordersheet'!J1427)","v":""},{"$f":"IF('1. Ordersheet'!K1427=\"\",\"\",'1. Ordersheet'!K1427)","v":""},{"$f":"IF('1. Ordersheet'!M1427=\"\",\"\",'1. Ordersheet'!M1427)","v":""},null,null,{"$f":"'1. Ordersheet'!AR1427","v":0},{"$f":"IF('1. Ordersheet'!AE1427=\"\",\"\",'1. Ordersheet'!AE1427)","v":""}]
[{"$f":"IF('1. Ordersheet'!B1428=\"\",\"\",'1. Ordersheet'!B1428)","v":""},{"$f":"IF('1. Ordersheet'!I1428=\"\",\"\",'1. Ordersheet'!I1428)","v":""},{"$f":"IF('1. Ordersheet'!J1428=\"\",\"\",'1. Ordersheet'!J1428)","v":""},{"$f":"IF('1. Ordersheet'!K1428=\"\",\"\",'1. Ordersheet'!K1428)","v":""},{"$f":"IF('1. Ordersheet'!M1428=\"\",\"\",'1. Ordersheet'!M1428)","v":""},null,null,{"$f":"'1. Ordersheet'!AR1428","v":0},{"$f":"IF('1. Ordersheet'!AE1428=\"\",\"\",'1. Ordersheet'!AE1428)","v":""}]
[{"$f":"IF('1. Ordersheet'!B1429=\"\",\"\",'1. Ordersheet'!B1429)","v":""},{"$f":"IF('1. Ordersheet'!I1429=\"\",\"\",'1. Ordersheet'!I1429)","v":""},{"$f":"IF('1. Ordersheet'!J1429=\"\",\"\",'1. Ordersheet'!J1429)","v":""},{"$f":"IF('1. Ordersheet'!K1429=\"\",\"\",'1. Ordersheet'!K1429)","v":""},{"$f":"IF('1. Ordersheet'!M1429=\"\",\"\",'1. Ordersheet'!M1429)","v":""},null,null,{"$f":"'1. Ordersheet'!AR1429","v":0},{"$f":"IF('1. Ordersheet'!AE1429=\"\",\"\",'1. Ordersheet'!AE1429)","v":""}]
[{"$f":"IF('1. Ordersheet'!B1430=\"\",\"\",'1. Ordersheet'!B1430)","v":""},{"$f":"IF('1. Ordersheet'!I1430=\"\",\"\",'1. Ordersheet'!I1430)","v":""},{"$f":"IF('1. Ordersheet'!J1430=\"\",\"\",'1. Ordersheet'!J1430)","v":""},{"$f":"IF('1. Ordersheet'!K1430=\"\",\"\",'1. Ordersheet'!K1430)","v":""},{"$f":"IF('1. Ordersheet'!M1430=\"\",\"\",'1. Ordersheet'!M1430)","v":""},null,null,{"$f":"'1. Ordersheet'!AR1430","v":0},{"$f":"IF('1. Ordersheet'!AE1430=\"\",\"\",'1. Ordersheet'!AE1430)","v":""}]
[{"$f":"IF('1. Ordersheet'!B1431=\"\",\"\",'1. Ordersheet'!B1431)","v":""},{"$f":"IF('1. Ordersheet'!I1431=\"\",\"\",'1. Ordersheet'!I1431)","v":""},{"$f":"IF('1. Ordersheet'!J1431=\"\",\"\",'1. Ordersheet'!J1431)","v":""},{"$f":"IF('1. Ordersheet'!K1431=\"\",\"\",'1. Ordersheet'!K1431)","v":""},{"$f":"IF('1. Ordersheet'!M1431=\"\",\"\",'1. Ordersheet'!M1431)","v":""},null,null,{"$f":"'1. Ordersheet'!AR1431","v":0},{"$f":"IF('1. Ordersheet'!AE1431=\"\",\"\",'1. Ordersheet'!AE1431)","v":""}]
[{"$f":"IF('1. Ordersheet'!B1432=\"\",\"\",'1. Ordersheet'!B1432)","v":""},{"$f":"IF('1. Ordersheet'!I1432=\"\",\"\",'1. Ordersheet'!I1432)","v":""},{"$f":"IF('1. Ordersheet'!J1432=\"\",\"\",'1. Ordersheet'!J1432)","v":""},{"$f":"IF('1. Ordersheet'!K1432=\"\",\"\",'1. Ordersheet'!K1432)","v":""},{"$f":"IF('1. Ordersheet'!M1432=\"\",\"\",'1. Ordersheet'!M1432)","v":""},null,null,{"$f":"'1. Ordersheet'!AR1432","v":0},{"$f":"IF('1. Ordersheet'!AE1432=\"\",\"\",'1. Ordersheet'!AE1432)","v":""}]
[{"$f":"IF('1. Ordersheet'!B1433=\"\",\"\",'1. Ordersheet'!B1433)","v":""},{"$f":"IF('1. Ordersheet'!I1433=\"\",\"\",'1. Ordersheet'!I1433)","v":""},{"$f":"IF('1. Ordersheet'!J1433=\"\",\"\",'1. Ordersheet'!J1433)","v":""},{"$f":"IF('1. Ordersheet'!K1433=\"\",\"\",'1. Ordersheet'!K1433)","v":""},{"$f":"IF('1. Ordersheet'!M1433=\"\",\"\",'1. Ordersheet'!M1433)","v":""},null,null,{"$f":"'1. Ordersheet'!AR1433","v":0},{"$f":"IF('1. Ordersheet'!AE1433=\"\",\"\",'1. Ordersheet'!AE1433)","v":""}]
[{"$f":"IF('1. Ordersheet'!B1434=\"\",\"\",'1. Ordersheet'!B1434)","v":""},{"$f":"IF('1. Ordersheet'!I1434=\"\",\"\",'1. Ordersheet'!I1434)","v":""},{"$f":"IF('1. Ordersheet'!J1434=\"\",\"\",'1. Ordersheet'!J1434)","v":""},{"$f":"IF('1. Ordersheet'!K1434=\"\",\"\",'1. Ordersheet'!K1434)","v":""},{"$f":"IF('1. Ordersheet'!M1434=\"\",\"\",'1. Ordersheet'!M1434)","v":""},null,null,{"$f":"'1. Ordersheet'!AR1434","v":0},{"$f":"IF('1. Ordersheet'!AE1434=\"\",\"\",'1. Ordersheet'!AE1434)","v":""}]
[{"$f":"IF('1. Ordersheet'!B1435=\"\",\"\",'1. Ordersheet'!B1435)","v":""},{"$f":"IF('1. Ordersheet'!I1435=\"\",\"\",'1. Ordersheet'!I1435)","v":""},{"$f":"IF('1. Ordersheet'!J1435=\"\",\"\",'1. Ordersheet'!J1435)","v":""},{"$f":"IF('1. Ordersheet'!K1435=\"\",\"\",'1. Ordersheet'!K1435)","v":""},{"$f":"IF('1. Ordersheet'!M1435=\"\",\"\",'1. Ordersheet'!M1435)","v":""},null,null,{"$f":"'1. Ordersheet'!AR1435","v":0},{"$f":"IF('1. Ordersheet'!AE1435=\"\",\"\",'1. Ordersheet'!AE1435)","v":""}]
[{"$f":"IF('1. Ordersheet'!B1436=\"\",\"\",'1. Ordersheet'!B1436)","v":""},{"$f":"IF('1. Ordersheet'!I1436=\"\",\"\",'1. Ordersheet'!I1436)","v":""},{"$f":"IF('1. Ordersheet'!J1436=\"\",\"\",'1. Ordersheet'!J1436)","v":""},{"$f":"IF('1. Ordersheet'!K1436=\"\",\"\",'1. Ordersheet'!K1436)","v":""},{"$f":"IF('1. Ordersheet'!M1436=\"\",\"\",'1. Ordersheet'!M1436)","v":""},null,null,{"$f":"'1. Ordersheet'!AR1436","v":0},{"$f":"IF('1. Ordersheet'!AE1436=\"\",\"\",'1. Ordersheet'!AE1436)","v":""}]
[{"$f":"IF('1. Ordersheet'!B1437=\"\",\"\",'1. Ordersheet'!B1437)","v":""},{"$f":"IF('1. Ordersheet'!I1437=\"\",\"\",'1. Ordersheet'!I1437)","v":""},{"$f":"IF('1. Ordersheet'!J1437=\"\",\"\",'1. Ordersheet'!J1437)","v":""},{"$f":"IF('1. Ordersheet'!K1437=\"\",\"\",'1. Ordersheet'!K1437)","v":""},{"$f":"IF('1. Ordersheet'!M1437=\"\",\"\",'1. Ordersheet'!M1437)","v":""},null,null,{"$f":"'1. Ordersheet'!AR1437","v":0},{"$f":"IF('1. Ordersheet'!AE1437=\"\",\"\",'1. Ordersheet'!AE1437)","v":""}]
[{"$f":"IF('1. Ordersheet'!B1438=\"\",\"\",'1. Ordersheet'!B1438)","v":""},{"$f":"IF('1. Ordersheet'!I1438=\"\",\"\",'1. Ordersheet'!I1438)","v":""},{"$f":"IF('1. Ordersheet'!J1438=\"\",\"\",'1. Ordersheet'!J1438)","v":""},{"$f":"IF('1. Ordersheet'!K1438=\"\",\"\",'1. Ordersheet'!K1438)","v":""},{"$f":"IF('1. Ordersheet'!M1438=\"\",\"\",'1. Ordersheet'!M1438)","v":""},null,null,{"$f":"'1. Ordersheet'!AR1438","v":0},{"$f":"IF('1. Ordersheet'!AE1438=\"\",\"\",'1. Ordersheet'!AE1438)","v":""}]
[{"$f":"IF('1. Ordersheet'!B1439=\"\",\"\",'1. Ordersheet'!B1439)","v":""},{"$f":"IF('1. Ordersheet'!I1439=\"\",\"\",'1. Ordersheet'!I1439)","v":""},{"$f":"IF('1. Ordersheet'!J1439=\"\",\"\",'1. Ordersheet'!J1439)","v":""},{"$f":"IF('1. Ordersheet'!K1439=\"\",\"\",'1. Ordersheet'!K1439)","v":""},{"$f":"IF('1. Ordersheet'!M1439=\"\",\"\",'1. Ordersheet'!M1439)","v":""},null,null,{"$f":"'1. Ordersheet'!AR1439","v":0},{"$f":"IF('1. Ordersheet'!AE1439=\"\",\"\",'1. Ordersheet'!AE1439)","v":""}]
[{"$f":"IF('1. Ordersheet'!B1440=\"\",\"\",'1. Ordersheet'!B1440)","v":""},{"$f":"IF('1. Ordersheet'!I1440=\"\",\"\",'1. Ordersheet'!I1440)","v":""},{"$f":"IF('1. Ordersheet'!J1440=\"\",\"\",'1. Ordersheet'!J1440)","v":""},{"$f":"IF('1. Ordersheet'!K1440=\"\",\"\",'1. Ordersheet'!K1440)","v":""},{"$f":"IF('1. Ordersheet'!M1440=\"\",\"\",'1. Ordersheet'!M1440)","v":""},null,null,{"$f":"'1. Ordersheet'!AR1440","v":0},{"$f":"IF('1. Ordersheet'!AE1440=\"\",\"\",'1. Ordersheet'!AE1440)","v":""}]
[{"$f":"IF('1. Ordersheet'!B1441=\"\",\"\",'1. Ordersheet'!B1441)","v":""},{"$f":"IF('1. Ordersheet'!I1441=\"\",\"\",'1. Ordersheet'!I1441)","v":""},{"$f":"IF('1. Ordersheet'!J1441=\"\",\"\",'1. Ordersheet'!J1441)","v":""},{"$f":"IF('1. Ordersheet'!K1441=\"\",\"\",'1. Ordersheet'!K1441)","v":""},{"$f":"IF('1. Ordersheet'!M1441=\"\",\"\",'1. Ordersheet'!M1441)","v":""},null,null,{"$f":"'1. Ordersheet'!AR1441","v":0},{"$f":"IF('1. Ordersheet'!AE1441=\"\",\"\",'1. Ordersheet'!AE1441)","v":""}]
[{"$f":"IF('1. Ordersheet'!B1442=\"\",\"\",'1. Ordersheet'!B1442)","v":""},{"$f":"IF('1. Ordersheet'!I1442=\"\",\"\",'1. Ordersheet'!I1442)","v":""},{"$f":"IF('1. Ordersheet'!J1442=\"\",\"\",'1. Ordersheet'!J1442)","v":""},{"$f":"IF('1. Ordersheet'!K1442=\"\",\"\",'1. Ordersheet'!K1442)","v":""},{"$f":"IF('1. Ordersheet'!M1442=\"\",\"\",'1. Ordersheet'!M1442)","v":""},null,null,{"$f":"'1. Ordersheet'!AR1442","v":0},{"$f":"IF('1. Ordersheet'!AE1442=\"\",\"\",'1. Ordersheet'!AE1442)","v":""}]
[{"$f":"IF('1. Ordersheet'!B1443=\"\",\"\",'1. Ordersheet'!B1443)","v":""},{"$f":"IF('1. Ordersheet'!I1443=\"\",\"\",'1. Ordersheet'!I1443)","v":""},{"$f":"IF('1. Ordersheet'!J1443=\"\",\"\",'1. Ordersheet'!J1443)","v":""},{"$f":"IF('1. Ordersheet'!K1443=\"\",\"\",'1. Ordersheet'!K1443)","v":""},{"$f":"IF('1. Ordersheet'!M1443=\"\",\"\",'1. Ordersheet'!M1443)","v":""},null,null,{"$f":"'1. Ordersheet'!AR1443","v":0},{"$f":"IF('1. Ordersheet'!AE1443=\"\",\"\",'1. Ordersheet'!AE1443)","v":""}]
[{"$f":"IF('1. Ordersheet'!B1444=\"\",\"\",'1. Ordersheet'!B1444)","v":""},{"$f":"IF('1. Ordersheet'!I1444=\"\",\"\",'1. Ordersheet'!I1444)","v":""},{"$f":"IF('1. Ordersheet'!J1444=\"\",\"\",'1. Ordersheet'!J1444)","v":""},{"$f":"IF('1. Ordersheet'!K1444=\"\",\"\",'1. Ordersheet'!K1444)","v":""},{"$f":"IF('1. Ordersheet'!M1444=\"\",\"\",'1. Ordersheet'!M1444)","v":""},null,null,{"$f":"'1. Ordersheet'!AR1444","v":0},{"$f":"IF('1. Ordersheet'!AE1444=\"\",\"\",'1. Ordersheet'!AE1444)","v":""}]
[{"$f":"IF('1. Ordersheet'!B1445=\"\",\"\",'1. Ordersheet'!B1445)","v":""},{"$f":"IF('1. Ordersheet'!I1445=\"\",\"\",'1. Ordersheet'!I1445)","v":""},{"$f":"IF('1. Ordersheet'!J1445=\"\",\"\",'1. Ordersheet'!J1445)","v":""},{"$f":"IF('1. Ordersheet'!K1445=\"\",\"\",'1. Ordersheet'!K1445)","v":""},{"$f":"IF('1. Ordersheet'!M1445=\"\",\"\",'1. Ordersheet'!M1445)","v":""},null,null,{"$f":"'1. Ordersheet'!AR1445","v":0},{"$f":"IF('1. Ordersheet'!AE1445=\"\",\"\",'1. Ordersheet'!AE1445)","v":""}]
[{"$f":"IF('1. Ordersheet'!B1446=\"\",\"\",'1. Ordersheet'!B1446)","v":""},{"$f":"IF('1. Ordersheet'!I1446=\"\",\"\",'1. Ordersheet'!I1446)","v":""},{"$f":"IF('1. Ordersheet'!J1446=\"\",\"\",'1. Ordersheet'!J1446)","v":""},{"$f":"IF('1. Ordersheet'!K1446=\"\",\"\",'1. Ordersheet'!K1446)","v":""},{"$f":"IF('1. Ordersheet'!M1446=\"\",\"\",'1. Ordersheet'!M1446)","v":""},null,null,{"$f":"'1. Ordersheet'!AR1446","v":0},{"$f":"IF('1. Ordersheet'!AE1446=\"\",\"\",'1. Ordersheet'!AE1446)","v":""}]
[{"$f":"IF('1. Ordersheet'!B1447=\"\",\"\",'1. Ordersheet'!B1447)","v":""},{"$f":"IF('1. Ordersheet'!I1447=\"\",\"\",'1. Ordersheet'!I1447)","v":""},{"$f":"IF('1. Ordersheet'!J1447=\"\",\"\",'1. Ordersheet'!J1447)","v":""},{"$f":"IF('1. Ordersheet'!K1447=\"\",\"\",'1. Ordersheet'!K1447)","v":""},{"$f":"IF('1. Ordersheet'!M1447=\"\",\"\",'1. Ordersheet'!M1447)","v":""},null,null,{"$f":"'1. Ordersheet'!AR1447","v":0},{"$f":"IF('1. Ordersheet'!AE1447=\"\",\"\",'1. Ordersheet'!AE1447)","v":""}]
[{"$f":"IF('1. Ordersheet'!B1448=\"\",\"\",'1. Ordersheet'!B1448)","v":""},{"$f":"IF('1. Ordersheet'!I1448=\"\",\"\",'1. Ordersheet'!I1448)","v":""},{"$f":"IF('1. Ordersheet'!J1448=\"\",\"\",'1. Ordersheet'!J1448)","v":""},{"$f":"IF('1. Ordersheet'!K1448=\"\",\"\",'1. Ordersheet'!K1448)","v":""},{"$f":"IF('1. Ordersheet'!M1448=\"\",\"\",'1. Ordersheet'!M1448)","v":""},null,null,{"$f":"'1. Ordersheet'!AR1448","v":0},{"$f":"IF('1. Ordersheet'!AE1448=\"\",\"\",'1. Ordersheet'!AE1448)","v":""}]
[{"$f":"IF('1. Ordersheet'!B1449=\"\",\"\",'1. Ordersheet'!B1449)","v":""},{"$f":"IF('1. Ordersheet'!I1449=\"\",\"\",'1. Ordersheet'!I1449)","v":""},{"$f":"IF('1. Ordersheet'!J1449=\"\",\"\",'1. Ordersheet'!J1449)","v":""},{"$f":"IF('1. Ordersheet'!K1449=\"\",\"\",'1. Ordersheet'!K1449)","v":""},{"$f":"IF('1. Ordersheet'!M1449=\"\",\"\",'1. Ordersheet'!M1449)","v":""},null,null,{"$f":"'1. Ordersheet'!AR1449","v":0},{"$f":"IF('1. Ordersheet'!AE1449=\"\",\"\",'1. Ordersheet'!AE1449)","v":""}]
[{"$f":"IF('1. Ordersheet'!B1450=\"\",\"\",'1. Ordersheet'!B1450)","v":""},{"$f":"IF('1. Ordersheet'!I1450=\"\",\"\",'1. Ordersheet'!I1450)","v":""},{"$f":"IF('1. Ordersheet'!J1450=\"\",\"\",'1. Ordersheet'!J1450)","v":""},{"$f":"IF('1. Ordersheet'!K1450=\"\",\"\",'1. Ordersheet'!K1450)","v":""},{"$f":"IF('1. Ordersheet'!M1450=\"\",\"\",'1. Ordersheet'!M1450)","v":""},null,null,{"$f":"'1. Ordersheet'!AR1450","v":0},{"$f":"IF('1. Ordersheet'!AE1450=\"\",\"\",'1. Ordersheet'!AE1450)","v":""}]
[{"$f":"IF('1. Ordersheet'!B1451=\"\",\"\",'1. Ordersheet'!B1451)","v":""},{"$f":"IF('1. Ordersheet'!I1451=\"\",\"\",'1. Ordersheet'!I1451)","v":""},{"$f":"IF('1. Ordersheet'!J1451=\"\",\"\",'1. Ordersheet'!J1451)","v":""},{"$f":"IF('1. Ordersheet'!K1451=\"\",\"\",'1. Ordersheet'!K1451)","v":""},{"$f":"IF('1. Ordersheet'!M1451=\"\",\"\",'1. Ordersheet'!M1451)","v":""},null,null,{"$f":"'1. Ordersheet'!AR1451","v":0},{"$f":"IF('1. Ordersheet'!AE1451=\"\",\"\",'1. Ordersheet'!AE1451)","v":""}]
[{"$f":"IF('1. Ordersheet'!B1452=\"\",\"\",'1. Ordersheet'!B1452)","v":""},{"$f":"IF('1. Ordersheet'!I1452=\"\",\"\",'1. Ordersheet'!I1452)","v":""},{"$f":"IF('1. Ordersheet'!J1452=\"\",\"\",'1. Ordersheet'!J1452)","v":""},{"$f":"IF('1. Ordersheet'!K1452=\"\",\"\",'1. Ordersheet'!K1452)","v":""},{"$f":"IF('1. Ordersheet'!M1452=\"\",\"\",'1. Ordersheet'!M1452)","v":""},null,null,{"$f":"'1. Ordersheet'!AR1452","v":0},{"$f":"IF('1. Ordersheet'!AE1452=\"\",\"\",'1. Ordersheet'!AE1452)","v":""}]
[{"$f":"IF('1. Ordersheet'!B1453=\"\",\"\",'1. Ordersheet'!B1453)","v":""},{"$f":"IF('1. Ordersheet'!I1453=\"\",\"\",'1. Ordersheet'!I1453)","v":""},{"$f":"IF('1. Ordersheet'!J1453=\"\",\"\",'1. Ordersheet'!J1453)","v":""},{"$f":"IF('1. Ordersheet'!K1453=\"\",\"\",'1. Ordersheet'!K1453)","v":""},{"$f":"IF('1. Ordersheet'!M1453=\"\",\"\",'1. Ordersheet'!M1453)","v":""},null,null,{"$f":"'1. Ordersheet'!AR1453","v":0},{"$f":"IF('1. Ordersheet'!AE1453=\"\",\"\",'1. Ordersheet'!AE1453)","v":""}]
[{"$f":"IF('1. Ordersheet'!B1454=\"\",\"\",'1. Ordersheet'!B1454)","v":""},{"$f":"IF('1. Ordersheet'!I1454=\"\",\"\",'1. Ordersheet'!I1454)","v":""},{"$f":"IF('1. Ordersheet'!J1454=\"\",\"\",'1. Ordersheet'!J1454)","v":""},{"$f":"IF('1. Ordersheet'!K1454=\"\",\"\",'1. Ordersheet'!K1454)","v":""},{"$f":"IF('1. Ordersheet'!M1454=\"\",\"\",'1. Ordersheet'!M1454)","v":""},null,null,{"$f":"'1. Ordersheet'!AR1454","v":0},{"$f":"IF('1. Ordersheet'!AE1454=\"\",\"\",'1. Ordersheet'!AE1454)","v":""}]
[{"$f":"IF('1. Ordersheet'!B1455=\"\",\"\",'1. Ordersheet'!B1455)","v":""},{"$f":"IF('1. Ordersheet'!I1455=\"\",\"\",'1. Ordersheet'!I1455)","v":""},{"$f":"IF('1. Ordersheet'!J1455=\"\",\"\",'1. Ordersheet'!J1455)","v":""},{"$f":"IF('1. Ordersheet'!K1455=\"\",\"\",'1. Ordersheet'!K1455)","v":""},{"$f":"IF('1. Ordersheet'!M1455=\"\",\"\",'1. Ordersheet'!M1455)","v":""},null,null,{"$f":"'1. Ordersheet'!AR1455","v":0},{"$f":"IF('1. Ordersheet'!AE1455=\"\",\"\",'1. Ordersheet'!AE1455)","v":""}]
[{"$f":"IF('1. Ordersheet'!B1456=\"\",\"\",'1. Ordersheet'!B1456)","v":""},{"$f":"IF('1. Ordersheet'!I1456=\"\",\"\",'1. Ordersheet'!I1456)","v":""},{"$f":"IF('1. Ordersheet'!J1456=\"\",\"\",'1. Ordersheet'!J1456)","v":""},{"$f":"IF('1. Ordersheet'!K1456=\"\",\"\",'1. Ordersheet'!K1456)","v":""},{"$f":"IF('1. Ordersheet'!M1456=\"\",\"\",'1. Ordersheet'!M1456)","v":""},null,null,{"$f":"'1. Ordersheet'!AR1456","v":0},{"$f":"IF('1. Ordersheet'!AE1456=\"\",\"\",'1. Ordersheet'!AE1456)","v":""}]
[{"$f":"IF('1. Ordersheet'!B1457=\"\",\"\",'1. Ordersheet'!B1457)","v":""},{"$f":"IF('1. Ordersheet'!I1457=\"\",\"\",'1. Ordersheet'!I1457)","v":""},{"$f":"IF('1. Ordersheet'!J1457=\"\",\"\",'1. Ordersheet'!J1457)","v":""},{"$f":"IF('1. Ordersheet'!K1457=\"\",\"\",'1. Ordersheet'!K1457)","v":""},{"$f":"IF('1. Ordersheet'!M1457=\"\",\"\",'1. Ordersheet'!M1457)","v":""},null,null,{"$f":"'1. Ordersheet'!AR1457","v":0},{"$f":"IF('1. Ordersheet'!AE1457=\"\",\"\",'1. Ordersheet'!AE1457)","v":""}]
[{"$f":"IF('1. Ordersheet'!B1458=\"\",\"\",'1. Ordersheet'!B1458)","v":""},{"$f":"IF('1. Ordersheet'!I1458=\"\",\"\",'1. Ordersheet'!I1458)","v":""},{"$f":"IF('1. Ordersheet'!J1458=\"\",\"\",'1. Ordersheet'!J1458)","v":""},{"$f":"IF('1. Ordersheet'!K1458=\"\",\"\",'1. Ordersheet'!K1458)","v":""},{"$f":"IF('1. Ordersheet'!M1458=\"\",\"\",'1. Ordersheet'!M1458)","v":""},null,null,{"$f":"'1. Ordersheet'!AR1458","v":0},{"$f":"IF('1. Ordersheet'!AE1458=\"\",\"\",'1. Ordersheet'!AE1458)","v":""}]
[{"$f":"IF('1. Ordersheet'!B1459=\"\",\"\",'1. Ordersheet'!B1459)","v":""},{"$f":"IF('1. Ordersheet'!I1459=\"\",\"\",'1. Ordersheet'!I1459)","v":""},{"$f":"IF('1. Ordersheet'!J1459=\"\",\"\",'1. Ordersheet'!J1459)","v":""},{"$f":"IF('1. Ordersheet'!K1459=\"\",\"\",'1. Ordersheet'!K1459)","v":""},{"$f":"IF('1. Ordersheet'!M1459=\"\",\"\",'1. Ordersheet'!M1459)","v":""},null,null,{"$f":"'1. Ordersheet'!AR1459","v":0},{"$f":"IF('1. Ordersheet'!AE1459=\"\",\"\",'1. Ordersheet'!AE1459)","v":""}]
[{"$f":"IF('1. Ordersheet'!B1460=\"\",\"\",'1. Ordersheet'!B1460)","v":""},{"$f":"IF('1. Ordersheet'!I1460=\"\",\"\",'1. Ordersheet'!I1460)","v":""},{"$f":"IF('1. Ordersheet'!J1460=\"\",\"\",'1. Ordersheet'!J1460)","v":""},{"$f":"IF('1. Ordersheet'!K1460=\"\",\"\",'1. Ordersheet'!K1460)","v":""},{"$f":"IF('1. Ordersheet'!M1460=\"\",\"\",'1. Ordersheet'!M1460)","v":""},null,null,{"$f":"'1. Ordersheet'!AR1460","v":0},{"$f":"IF('1. Ordersheet'!AE1460=\"\",\"\",'1. Ordersheet'!AE1460)","v":""}]
[{"$f":"IF('1. Ordersheet'!B1461=\"\",\"\",'1. Ordersheet'!B1461)","v":""},{"$f":"IF('1. Ordersheet'!I1461=\"\",\"\",'1. Ordersheet'!I1461)","v":""},{"$f":"IF('1. Ordersheet'!J1461=\"\",\"\",'1. Ordersheet'!J1461)","v":""},{"$f":"IF('1. Ordersheet'!K1461=\"\",\"\",'1. Ordersheet'!K1461)","v":""},{"$f":"IF('1. Ordersheet'!M1461=\"\",\"\",'1. Ordersheet'!M1461)","v":""},null,null,{"$f":"'1. Ordersheet'!AR1461","v":0},{"$f":"IF('1. Ordersheet'!AE1461=\"\",\"\",'1. Ordersheet'!AE1461)","v":""}]
[{"$f":"IF('1. Ordersheet'!B1462=\"\",\"\",'1. Ordersheet'!B1462)","v":""},{"$f":"IF('1. Ordersheet'!I1462=\"\",\"\",'1. Ordersheet'!I1462)","v":""},{"$f":"IF('1. Ordersheet'!J1462=\"\",\"\",'1. Ordersheet'!J1462)","v":""},{"$f":"IF('1. Ordersheet'!K1462=\"\",\"\",'1. Ordersheet'!K1462)","v":""},{"$f":"IF('1. Ordersheet'!M1462=\"\",\"\",'1. Ordersheet'!M1462)","v":""},null,null,{"$f":"'1. Ordersheet'!AR1462","v":0},{"$f":"IF('1. Ordersheet'!AE1462=\"\",\"\",'1. Ordersheet'!AE1462)","v":""}]
[{"$f":"IF('1. Ordersheet'!B1463=\"\",\"\",'1. Ordersheet'!B1463)","v":""},{"$f":"IF('1. Ordersheet'!I1463=\"\",\"\",'1. Ordersheet'!I1463)","v":""},{"$f":"IF('1. Ordersheet'!J1463=\"\",\"\",'1. Ordersheet'!J1463)","v":""},{"$f":"IF('1. Ordersheet'!K1463=\"\",\"\",'1. Ordersheet'!K1463)","v":""},{"$f":"IF('1. Ordersheet'!M1463=\"\",\"\",'1. Ordersheet'!M1463)","v":""},null,null,{"$f":"'1. Ordersheet'!AR1463","v":0},{"$f":"IF('1. Ordersheet'!AE1463=\"\",\"\",'1. Ordersheet'!AE1463)","v":""}]
[{"$f":"IF('1. Ordersheet'!B1464=\"\",\"\",'1. Ordersheet'!B1464)","v":""},{"$f":"IF('1. Ordersheet'!I1464=\"\",\"\",'1. Ordersheet'!I1464)","v":""},{"$f":"IF('1. Ordersheet'!J1464=\"\",\"\",'1. Ordersheet'!J1464)","v":""},{"$f":"IF('1. Ordersheet'!K1464=\"\",\"\",'1. Ordersheet'!K1464)","v":""},{"$f":"IF('1. Ordersheet'!M1464=\"\",\"\",'1. Ordersheet'!M1464)","v":""},null,null,{"$f":"'1. Ordersheet'!AR1464","v":0},{"$f":"IF('1. Ordersheet'!AE1464=\"\",\"\",'1. Ordersheet'!AE1464)","v":""}]
[{"$f":"IF('1. Ordersheet'!B1465=\"\",\"\",'1. Ordersheet'!B1465)","v":""},{"$f":"IF('1. Ordersheet'!I1465=\"\",\"\",'1. Ordersheet'!I1465)","v":""},{"$f":"IF('1. Ordersheet'!J1465=\"\",\"\",'1. Ordersheet'!J1465)","v":""},{"$f":"IF('1. Ordersheet'!K1465=\"\",\"\",'1. Ordersheet'!K1465)","v":""},{"$f":"IF('1. Ordersheet'!M1465=\"\",\"\",'1. Ordersheet'!M1465)","v":""},null,null,{"$f":"'1. Ordersheet'!AR1465","v":0},{"$f":"IF('1. Ordersheet'!AE1465=\"\",\"\",'1. Ordersheet'!AE1465)","v":""}]
[{"$f":"IF('1. Ordersheet'!B1466=\"\",\"\",'1. Ordersheet'!B1466)","v":""},{"$f":"IF('1. Ordersheet'!I1466=\"\",\"\",'1. Ordersheet'!I1466)","v":""},{"$f":"IF('1. Ordersheet'!J1466=\"\",\"\",'1. Ordersheet'!J1466)","v":""},{"$f":"IF('1. Ordersheet'!K1466=\"\",\"\",'1. Ordersheet'!K1466)","v":""},{"$f":"IF('1. Ordersheet'!M1466=\"\",\"\",'1. Ordersheet'!M1466)","v":""},null,null,{"$f":"'1. Ordersheet'!AR1466","v":0},{"$f":"IF('1. Ordersheet'!AE1466=\"\",\"\",'1. Ordersheet'!AE1466)","v":""}]
[{"$f":"IF('1. Ordersheet'!B1467=\"\",\"\",'1. Ordersheet'!B1467)","v":""},{"$f":"IF('1. Ordersheet'!I1467=\"\",\"\",'1. Ordersheet'!I1467)","v":""},{"$f":"IF('1. Ordersheet'!J1467=\"\",\"\",'1. Ordersheet'!J1467)","v":""},{"$f":"IF('1. Ordersheet'!K1467=\"\",\"\",'1. Ordersheet'!K1467)","v":""},{"$f":"IF('1. Ordersheet'!M1467=\"\",\"\",'1. Ordersheet'!M1467)","v":""},null,null,{"$f":"'1. Ordersheet'!AR1467","v":0},{"$f":"IF('1. Ordersheet'!AE1467=\"\",\"\",'1. Ordersheet'!AE1467)","v":""}]
[{"$f":"IF('1. Ordersheet'!B1468=\"\",\"\",'1. Ordersheet'!B1468)","v":""},{"$f":"IF('1. Ordersheet'!I1468=\"\",\"\",'1. Ordersheet'!I1468)","v":""},{"$f":"IF('1. Ordersheet'!J1468=\"\",\"\",'1. Ordersheet'!J1468)","v":""},{"$f":"IF('1. Ordersheet'!K1468=\"\",\"\",'1. Ordersheet'!K1468)","v":""},{"$f":"IF('1. Ordersheet'!M1468=\"\",\"\",'1. Ordersheet'!M1468)","v":""},null,null,{"$f":"'1. Ordersheet'!AR1468","v":0},{"$f":"IF('1. Ordersheet'!AE1468=\"\",\"\",'1. Ordersheet'!AE1468)","v":""}]
[{"$f":"IF('1. Ordersheet'!B1469=\"\",\"\",'1. Ordersheet'!B1469)","v":""},{"$f":"IF('1. Ordersheet'!I1469=\"\",\"\",'1. Ordersheet'!I1469)","v":""},{"$f":"IF('1. Ordersheet'!J1469=\"\",\"\",'1. Ordersheet'!J1469)","v":""},{"$f":"IF('1. Ordersheet'!K1469=\"\",\"\",'1. Ordersheet'!K1469)","v":""},{"$f":"IF('1. Ordersheet'!M1469=\"\",\"\",'1. Ordersheet'!M1469)","v":""},null,null,{"$f":"'1. Ordersheet'!AR1469","v":0},{"$f":"IF('1. Ordersheet'!AE1469=\"\",\"\",'1. Ordersheet'!AE1469)","v":""}]
[{"$f":"IF('1. Ordersheet'!B1470=\"\",\"\",'1. Ordersheet'!B1470)","v":""},{"$f":"IF('1. Ordersheet'!I1470=\"\",\"\",'1. Ordersheet'!I1470)","v":""},{"$f":"IF('1. Ordersheet'!J1470=\"\",\"\",'1. Ordersheet'!J1470)","v":""},{"$f":"IF('1. Ordersheet'!K1470=\"\",\"\",'1. Ordersheet'!K1470)","v":""},{"$f":"IF('1. Ordersheet'!M1470=\"\",\"\",'1. Ordersheet'!M1470)","v":""},null,null,{"$f":"'1. Ordersheet'!AR1470","v":0},{"$f":"IF('1. Ordersheet'!AE1470=\"\",\"\",'1. Ordersheet'!AE1470)","v":""}]
[{"$f":"IF('1. Ordersheet'!B1471=\"\",\"\",'1. Ordersheet'!B1471)","v":""},{"$f":"IF('1. Ordersheet'!I1471=\"\",\"\",'1. Ordersheet'!I1471)","v":""},{"$f":"IF('1. Ordersheet'!J1471=\"\",\"\",'1. Ordersheet'!J1471)","v":""},{"$f":"IF('1. Ordersheet'!K1471=\"\",\"\",'1. Ordersheet'!K1471)","v":""},{"$f":"IF('1. Ordersheet'!M1471=\"\",\"\",'1. Ordersheet'!M1471)","v":""},null,null,{"$f":"'1. Ordersheet'!AR1471","v":0},{"$f":"IF('1. Ordersheet'!AE1471=\"\",\"\",'1. Ordersheet'!AE1471)","v":""}]
[{"$f":"IF('1. Ordersheet'!B1472=\"\",\"\",'1. Ordersheet'!B1472)","v":""},{"$f":"IF('1. Ordersheet'!I1472=\"\",\"\",'1. Ordersheet'!I1472)","v":""},{"$f":"IF('1. Ordersheet'!J1472=\"\",\"\",'1. Ordersheet'!J1472)","v":""},{"$f":"IF('1. Ordersheet'!K1472=\"\",\"\",'1. Ordersheet'!K1472)","v":""},{"$f":"IF('1. Ordersheet'!M1472=\"\",\"\",'1. Ordersheet'!M1472)","v":""},null,null,{"$f":"'1. Ordersheet'!AR1472","v":0},{"$f":"IF('1. Ordersheet'!AE1472=\"\",\"\",'1. Ordersheet'!AE1472)","v":""}]
[{"$f":"IF('1. Ordersheet'!B1473=\"\",\"\",'1. Ordersheet'!B1473)","v":""},{"$f":"IF('1. Ordersheet'!I1473=\"\",\"\",'1. Ordersheet'!I1473)","v":""},{"$f":"IF('1. Ordersheet'!J1473=\"\",\"\",'1. Ordersheet'!J1473)","v":""},{"$f":"IF('1. Ordersheet'!K1473=\"\",\"\",'1. Ordersheet'!K1473)","v":""},{"$f":"IF('1. Ordersheet'!M1473=\"\",\"\",'1. Ordersheet'!M1473)","v":""},null,null,{"$f":"'1. Ordersheet'!AR1473","v":0},{"$f":"IF('1. Ordersheet'!AE1473=\"\",\"\",'1. Ordersheet'!AE1473)","v":""}]
[{"$f":"IF('1. Ordersheet'!B1474=\"\",\"\",'1. Ordersheet'!B1474)","v":""},{"$f":"IF('1. Ordersheet'!I1474=\"\",\"\",'1. Ordersheet'!I1474)","v":""},{"$f":"IF('1. Ordersheet'!J1474=\"\",\"\",'1. Ordersheet'!J1474)","v":""},{"$f":"IF('1. Ordersheet'!K1474=\"\",\"\",'1. Ordersheet'!K1474)","v":""},{"$f":"IF('1. Ordersheet'!M1474=\"\",\"\",'1. Ordersheet'!M1474)","v":""},null,null,{"$f":"'1. Ordersheet'!AR1474","v":0},{"$f":"IF('1. Ordersheet'!AE1474=\"\",\"\",'1. Ordersheet'!AE1474)","v":""}]
[{"$f":"IF('1. Ordersheet'!B1475=\"\",\"\",'1. Ordersheet'!B1475)","v":""},{"$f":"IF('1. Ordersheet'!I1475=\"\",\"\",'1. Ordersheet'!I1475)","v":""},{"$f":"IF('1. Ordersheet'!J1475=\"\",\"\",'1. Ordersheet'!J1475)","v":""},{"$f":"IF('1. Ordersheet'!K1475=\"\",\"\",'1. Ordersheet'!K1475)","v":""},{"$f":"IF('1. Ordersheet'!M1475=\"\",\"\",'1. Ordersheet'!M1475)","v":""},null,null,{"$f":"'1. Ordersheet'!AR1475","v":0},{"$f":"IF('1. Ordersheet'!AE1475=\"\",\"\",'1. Ordersheet'!AE1475)","v":""}]
[{"$f":"IF('1. Ordersheet'!B1476=\"\",\"\",'1. Ordersheet'!B1476)","v":""},{"$f":"IF('1. Ordersheet'!I1476=\"\",\"\",'1. Ordersheet'!I1476)","v":""},{"$f":"IF('1. Ordersheet'!J1476=\"\",\"\",'1. Ordersheet'!J1476)","v":""},{"$f":"IF('1. Ordersheet'!K1476=\"\",\"\",'1. Ordersheet'!K1476)","v":""},{"$f":"IF('1. Ordersheet'!M1476=\"\",\"\",'1. Ordersheet'!M1476)","v":""},null,null,{"$f":"'1. Ordersheet'!AR1476","v":0},{"$f":"IF('1. Ordersheet'!AE1476=\"\",\"\",'1. Ordersheet'!AE1476)","v":""}]
[{"$f":"IF('1. Ordersheet'!B1477=\"\",\"\",'1. Ordersheet'!B1477)","v":""},{"$f":"IF('1. Ordersheet'!I1477=\"\",\"\",'1. Ordersheet'!I1477)","v":""},{"$f":"IF('1. Ordersheet'!J1477=\"\",\"\",'1. Ordersheet'!J1477)","v":""},{"$f":"IF('1. Ordersheet'!K1477=\"\",\"\",'1. Ordersheet'!K1477)","v":""},{"$f":"IF('1. Ordersheet'!M1477=\"\",\"\",'1. Ordersheet'!M1477)","v":""},null,null,{"$f":"'1. Ordersheet'!AR1477","v":0},{"$f":"IF('1. Ordersheet'!AE1477=\"\",\"\",'1. Ordersheet'!AE1477)","v":""}]
[{"$f":"IF('1. Ordersheet'!B1478=\"\",\"\",'1. Ordersheet'!B1478)","v":""},{"$f":"IF('1. Ordersheet'!I1478=\"\",\"\",'1. Ordersheet'!I1478)","v":""},{"$f":"IF('1. Ordersheet'!J1478=\"\",\"\",'1. Ordersheet'!J1478)","v":""},{"$f":"IF('1. Ordersheet'!K1478=\"\",\"\",'1. Ordersheet'!K1478)","v":""},{"$f":"IF('1. Ordersheet'!M1478=\"\",\"\",'1. Ordersheet'!M1478)","v":""},null,null,{"$f":"'1. Ordersheet'!AR1478","v":0},{"$f":"IF('1. Ordersheet'!AE1478=\"\",\"\",'1. Ordersheet'!AE1478)","v":""}]
[{"$f":"IF('1. Ordersheet'!B1479=\"\",\"\",'1. Ordersheet'!B1479)","v":""},{"$f":"IF('1. Ordersheet'!I1479=\"\",\"\",'1. Ordersheet'!I1479)","v":""},{"$f":"IF('1. Ordersheet'!J1479=\"\",\"\",'1. Ordersheet'!J1479)","v":""},{"$f":"IF('1. Ordersheet'!K1479=\"\",\"\",'1. Ordersheet'!K1479)","v":""},{"$f":"IF('1. Ordersheet'!M1479=\"\",\"\",'1. Ordersheet'!M1479)","v":""},null,null,{"$f":"'1. Ordersheet'!AR1479","v":0},{"$f":"IF('1. Ordersheet'!AE1479=\"\",\"\",'1. Ordersheet'!AE1479)","v":""}]
[{"$f":"IF('1. Ordersheet'!B1480=\"\",\"\",'1. Ordersheet'!B1480)","v":""},{"$f":"IF('1. Ordersheet'!I1480=\"\",\"\",'1. Ordersheet'!I1480)","v":""},{"$f":"IF('1. Ordersheet'!J1480=\"\",\"\",'1. Ordersheet'!J1480)","v":""},{"$f":"IF('1. Ordersheet'!K1480=\"\",\"\",'1. Ordersheet'!K1480)","v":""},{"$f":"IF('1. Ordersheet'!M1480=\"\",\"\",'1. Ordersheet'!M1480)","v":""},null,null,{"$f":"'1. Ordersheet'!AR1480","v":0},{"$f":"IF('1. Ordersheet'!AE1480=\"\",\"\",'1. Ordersheet'!AE1480)","v":""}]
[{"$f":"IF('1. Ordersheet'!B1481=\"\",\"\",'1. Ordersheet'!B1481)","v":""},{"$f":"IF('1. Ordersheet'!I1481=\"\",\"\",'1. Ordersheet'!I1481)","v":""},{"$f":"IF('1. Ordersheet'!J1481=\"\",\"\",'1. Ordersheet'!J1481)","v":""},{"$f":"IF('1. Ordersheet'!K1481=\"\",\"\",'1. Ordersheet'!K1481)","v":""},{"$f":"IF('1. Ordersheet'!M1481=\"\",\"\",'1. Ordersheet'!M1481)","v":""},null,null,{"$f":"'1. Ordersheet'!AR1481","v":0},{"$f":"IF('1. Ordersheet'!AE1481=\"\",\"\",'1. Ordersheet'!AE1481)","v":""}]
[{"$f":"IF('1. Ordersheet'!B1482=\"\",\"\",'1. Ordersheet'!B1482)","v":""},{"$f":"IF('1. Ordersheet'!I1482=\"\",\"\",'1. Ordersheet'!I1482)","v":""},{"$f":"IF('1. Ordersheet'!J1482=\"\",\"\",'1. Ordersheet'!J1482)","v":""},{"$f":"IF('1. Ordersheet'!K1482=\"\",\"\",'1. Ordersheet'!K1482)","v":""},{"$f":"IF('1. Ordersheet'!M1482=\"\",\"\",'1. Ordersheet'!M1482)","v":""},null,null,{"$f":"'1. Ordersheet'!AR1482","v":0},{"$f":"IF('1. Ordersheet'!AE1482=\"\",\"\",'1. Ordersheet'!AE1482)","v":""}]
[{"$f":"IF('1. Ordersheet'!B1483=\"\",\"\",'1. Ordersheet'!B1483)","v":""},{"$f":"IF('1. Ordersheet'!I1483=\"\",\"\",'1. Ordersheet'!I1483)","v":""},{"$f":"IF('1. Ordersheet'!J1483=\"\",\"\",'1. Ordersheet'!J1483)","v":""},{"$f":"IF('1. Ordersheet'!K1483=\"\",\"\",'1. Ordersheet'!K1483)","v":""},{"$f":"IF('1. Ordersheet'!M1483=\"\",\"\",'1. Ordersheet'!M1483)","v":""},null,null,{"$f":"'1. Ordersheet'!AR1483","v":0},{"$f":"IF('1. Ordersheet'!AE1483=\"\",\"\",'1. Ordersheet'!AE1483)","v":""}]
[{"$f":"IF('1. Ordersheet'!B1484=\"\",\"\",'1. Ordersheet'!B1484)","v":""},{"$f":"IF('1. Ordersheet'!I1484=\"\",\"\",'1. Ordersheet'!I1484)","v":""},{"$f":"IF('1. Ordersheet'!J1484=\"\",\"\",'1. Ordersheet'!J1484)","v":""},{"$f":"IF('1. Ordersheet'!K1484=\"\",\"\",'1. Ordersheet'!K1484)","v":""},{"$f":"IF('1. Ordersheet'!M1484=\"\",\"\",'1. Ordersheet'!M1484)","v":""},null,null,{"$f":"'1. Ordersheet'!AR1484","v":0},{"$f":"IF('1. Ordersheet'!AE1484=\"\",\"\",'1. Ordersheet'!AE1484)","v":""}]
[{"$f":"IF('1. Ordersheet'!B1485=\"\",\"\",'1. Ordersheet'!B1485)","v":""},{"$f":"IF('1. Ordersheet'!I1485=\"\",\"\",'1. Ordersheet'!I1485)","v":""},{"$f":"IF('1. Ordersheet'!J1485=\"\",\"\",'1. Ordersheet'!J1485)","v":""},{"$f":"IF('1. Ordersheet'!K1485=\"\",\"\",'1. Ordersheet'!K1485)","v":""},{"$f":"IF('1. Ordersheet'!M1485=\"\",\"\",'1. Ordersheet'!M1485)","v":""},null,null,{"$f":"'1. Ordersheet'!AR1485","v":0},{"$f":"IF('1. Ordersheet'!AE1485=\"\",\"\",'1. Ordersheet'!AE1485)","v":""}]
[{"$f":"IF('1. Ordersheet'!B1486=\"\",\"\",'1. Ordersheet'!B1486)","v":""},{"$f":"IF('1. Ordersheet'!I1486=\"\",\"\",'1. Ordersheet'!I1486)","v":""},{"$f":"IF('1. Ordersheet'!J1486=\"\",\"\",'1. Ordersheet'!J1486)","v":""},{"$f":"IF('1. Ordersheet'!K1486=\"\",\"\",'1. Ordersheet'!K1486)","v":""},{"$f":"IF('1. Ordersheet'!M1486=\"\",\"\",'1. Ordersheet'!M1486)","v":""},null,null,{"$f":"'1. Ordersheet'!AR1486","v":0},{"$f":"IF('1. Ordersheet'!AE1486=\"\",\"\",'1. Ordersheet'!AE1486)","v":""}]
[{"$f":"IF('1. Ordersheet'!B1487=\"\",\"\",'1. Ordersheet'!B1487)","v":""},{"$f":"IF('1. Ordersheet'!I1487=\"\",\"\",'1. Ordersheet'!I1487)","v":""},{"$f":"IF('1. Ordersheet'!J1487=\"\",\"\",'1. Ordersheet'!J1487)","v":""},{"$f":"IF('1. Ordersheet'!K1487=\"\",\"\",'1. Ordersheet'!K1487)","v":""},{"$f":"IF('1. Ordersheet'!M1487=\"\",\"\",'1. Ordersheet'!M1487)","v":""},null,null,{"$f":"'1. Ordersheet'!AR1487","v":0},{"$f":"IF('1. Ordersheet'!AE1487=\"\",\"\",'1. Ordersheet'!AE1487)","v":""}]
[{"$f":"IF('1. Ordersheet'!B1488=\"\",\"\",'1. Ordersheet'!B1488)","v":""},{"$f":"IF('1. Ordersheet'!I1488=\"\",\"\",'1. Ordersheet'!I1488)","v":""},{"$f":"IF('1. Ordersheet'!J1488=\"\",\"\",'1. Ordersheet'!J1488)","v":""},{"$f":"IF('1. Ordersheet'!K1488=\"\",\"\",'1. Ordersheet'!K1488)","v":""},{"$f":"IF('1. Ordersheet'!M1488=\"\",\"\",'1. Ordersheet'!M1488)","v":""},null,null,{"$f":"'1. Ordersheet'!AR1488","v":0},{"$f":"IF('1. Ordersheet'!AE1488=\"\",\"\",'1. Ordersheet'!AE1488)","v":""}]
[{"$f":"IF('1. Ordersheet'!B1489=\"\",\"\",'1. Ordersheet'!B1489)","v":""},{"$f":"IF('1. Ordersheet'!I1489=\"\",\"\",'1. Ordersheet'!I1489)","v":""},{"$f":"IF('1. Ordersheet'!J1489=\"\",\"\",'1. Ordersheet'!J1489)","v":""},{"$f":"IF('1. Ordersheet'!K1489=\"\",\"\",'1. Ordersheet'!K1489)","v":""},{"$f":"IF('1. Ordersheet'!M1489=\"\",\"\",'1. Ordersheet'!M1489)","v":""},null,null,{"$f":"'1. Ordersheet'!AR1489","v":0},{"$f":"IF('1. Ordersheet'!AE1489=\"\",\"\",'1. Ordersheet'!AE1489)","v":""}]
[{"$f":"IF('1. Ordersheet'!B1490=\"\",\"\",'1. Ordersheet'!B1490)","v":""},{"$f":"IF('1. Ordersheet'!I1490=\"\",\"\",'1. Ordersheet'!I1490)","v":""},{"$f":"IF('1. Ordersheet'!J1490=\"\",\"\",'1. Ordersheet'!J1490)","v":""},{"$f":"IF('1. Ordersheet'!K1490=\"\",\"\",'1. Ordersheet'!K1490)","v":""},{"$f":"IF('1. Ordersheet'!M1490=\"\",\"\",'1. Ordersheet'!M1490)","v":""},null,null,{"$f":"'1. Ordersheet'!AR1490","v":0},{"$f":"IF('1. Ordersheet'!AE1490=\"\",\"\",'1. Ordersheet'!AE1490)","v":""}]
[{"$f":"IF('1. Ordersheet'!B1491=\"\",\"\",'1. Ordersheet'!B1491)","v":""},{"$f":"IF('1. Ordersheet'!I1491=\"\",\"\",'1. Ordersheet'!I1491)","v":""},{"$f":"IF('1. Ordersheet'!J1491=\"\",\"\",'1. Ordersheet'!J1491)","v":""},{"$f":"IF('1. Ordersheet'!K1491=\"\",\"\",'1. Ordersheet'!K1491)","v":""},{"$f":"IF('1. Ordersheet'!M1491=\"\",\"\",'1. Ordersheet'!M1491)","v":""},null,null,{"$f":"'1. Ordersheet'!AR1491","v":0},{"$f":"IF('1. Ordersheet'!AE1491=\"\",\"\",'1. Ordersheet'!AE1491)","v":""}]
[{"$f":"IF('1. Ordersheet'!B1492=\"\",\"\",'1. Ordersheet'!B1492)","v":""},{"$f":"IF('1. Ordersheet'!I1492=\"\",\"\",'1. Ordersheet'!I1492)","v":""},{"$f":"IF('1. Ordersheet'!J1492=\"\",\"\",'1. Ordersheet'!J1492)","v":""},{"$f":"IF('1. Ordersheet'!K1492=\"\",\"\",'1. Ordersheet'!K1492)","v":""},{"$f":"IF('1. Ordersheet'!M1492=\"\",\"\",'1. Ordersheet'!M1492)","v":""},null,null,{"$f":"'1. Ordersheet'!AR1492","v":0},{"$f":"IF('1. Ordersheet'!AE1492=\"\",\"\",'1. Ordersheet'!AE1492)","v":""}]
[{"$f":"IF('1. Ordersheet'!B1493=\"\",\"\",'1. Ordersheet'!B1493)","v":""},{"$f":"IF('1. Ordersheet'!I1493=\"\",\"\",'1. Ordersheet'!I1493)","v":""},{"$f":"IF('1. Ordersheet'!J1493=\"\",\"\",'1. Ordersheet'!J1493)","v":""},{"$f":"IF('1. Ordersheet'!K1493=\"\",\"\",'1. Ordersheet'!K1493)","v":""},{"$f":"IF('1. Ordersheet'!M1493=\"\",\"\",'1. Ordersheet'!M1493)","v":""},null,null,{"$f":"'1. Ordersheet'!AR1493","v":0},{"$f":"IF('1. Ordersheet'!AE1493=\"\",\"\",'1. Ordersheet'!AE1493)","v":""}]
[{"$f":"IF('1. Ordersheet'!B1494=\"\",\"\",'1. Ordersheet'!B1494)","v":""},{"$f":"IF('1. Ordersheet'!I1494=\"\",\"\",'1. Ordersheet'!I1494)","v":""},{"$f":"IF('1. Ordersheet'!J1494=\"\",\"\",'1. Ordersheet'!J1494)","v":""},{"$f":"IF('1. Ordersheet'!K1494=\"\",\"\",'1. Ordersheet'!K1494)","v":""},{"$f":"IF('1. Ordersheet'!M1494=\"\",\"\",'1. Ordersheet'!M1494)","v":""},null,null,{"$f":"'1. Ordersheet'!AR1494","v":0},{"$f":"IF('1. Ordersheet'!AE1494=\"\",\"\",'1. Ordersheet'!AE1494)","v":""}]
[{"$f":"IF('1. Ordersheet'!B1495=\"\",\"\",'1. Ordersheet'!B1495)","v":""},{"$f":"IF('1. Ordersheet'!I1495=\"\",\"\",'1. Ordersheet'!I1495)","v":""},{"$f":"IF('1. Ordersheet'!J1495=\"\",\"\",'1. Ordersheet'!J1495)","v":""},{"$f":"IF('1. Ordersheet'!K1495=\"\",\"\",'1. Ordersheet'!K1495)","v":""},{"$f":"IF('1. Ordersheet'!M1495=\"\",\"\",'1. Ordersheet'!M1495)","v":""},null,null,{"$f":"'1. Ordersheet'!AR1495","v":0},{"$f":"IF('1. Ordersheet'!AE1495=\"\",\"\",'1. Ordersheet'!AE1495)","v":""}]
[{"$f":"IF('1. Ordersheet'!B1496=\"\",\"\",'1. Ordersheet'!B1496)","v":""},{"$f":"IF('1. Ordersheet'!I1496=\"\",\"\",'1. Ordersheet'!I1496)","v":""},{"$f":"IF('1. Ordersheet'!J1496=\"\",\"\",'1. Ordersheet'!J1496)","v":""},{"$f":"IF('1. Ordersheet'!K1496=\"\",\"\",'1. Ordersheet'!K1496)","v":""},{"$f":"IF('1. Ordersheet'!M1496=\"\",\"\",'1. Ordersheet'!M1496)","v":""},null,null,{"$f":"'1. Ordersheet'!AR1496","v":0},{"$f":"IF('1. Ordersheet'!AE1496=\"\",\"\",'1. Ordersheet'!AE1496)","v":""}]
[{"$f":"IF('1. Ordersheet'!B1497=\"\",\"\",'1. Ordersheet'!B1497)","v":""},{"$f":"IF('1. Ordersheet'!I1497=\"\",\"\",'1. Ordersheet'!I1497)","v":""},{"$f":"IF('1. Ordersheet'!J1497=\"\",\"\",'1. Ordersheet'!J1497)","v":""},{"$f":"IF('1. Ordersheet'!K1497=\"\",\"\",'1. Ordersheet'!K1497)","v":""},{"$f":"IF('1. Ordersheet'!M1497=\"\",\"\",'1. Ordersheet'!M1497)","v":""},null,null,{"$f":"'1. Ordersheet'!AR1497","v":0},{"$f":"IF('1. Ordersheet'!AE1497=\"\",\"\",'1. Ordersheet'!AE1497)","v":""}]
[{"$f":"IF('1. Ordersheet'!B1498=\"\",\"\",'1. Ordersheet'!B1498)","v":""},{"$f":"IF('1. Ordersheet'!I1498=\"\",\"\",'1. Ordersheet'!I1498)","v":""},{"$f":"IF('1. Ordersheet'!J1498=\"\",\"\",'1. Ordersheet'!J1498)","v":""},{"$f":"IF('1. Ordersheet'!K1498=\"\",\"\",'1. Ordersheet'!K1498)","v":""},{"$f":"IF('1. Ordersheet'!M1498=\"\",\"\",'1. Ordersheet'!M1498)","v":""},null,null,{"$f":"'1. Ordersheet'!AR1498","v":0},{"$f":"IF('1. Ordersheet'!AE1498=\"\",\"\",'1. Ordersheet'!AE1498)","v":""}]
[{"$f":"IF('1. Ordersheet'!B1499=\"\",\"\",'1. Ordersheet'!B1499)","v":""},{"$f":"IF('1. Ordersheet'!I1499=\"\",\"\",'1. Ordersheet'!I1499)","v":""},{"$f":"IF('1. Ordersheet'!J1499=\"\",\"\",'1. Ordersheet'!J1499)","v":""},{"$f":"IF('1. Ordersheet'!K1499=\"\",\"\",'1. Ordersheet'!K1499)","v":""},{"$f":"IF('1. Ordersheet'!M1499=\"\",\"\",'1. Ordersheet'!M1499)","v":""},null,null,{"$f":"'1. Ordersheet'!AR1499","v":0},{"$f":"IF('1. Ordersheet'!AE1499=\"\",\"\",'1. Ordersheet'!AE1499)","v":""}]
[{"$f":"IF('1. Ordersheet'!B1500=\"\",\"\",'1. Ordersheet'!B1500)","v":""},{"$f":"IF('1. Ordersheet'!I1500=\"\",\"\",'1. Ordersheet'!I1500)","v":""},{"$f":"IF('1. Ordersheet'!J1500=\"\",\"\",'1. Ordersheet'!J1500)","v":""},{"$f":"IF('1. Ordersheet'!K1500=\"\",\"\",'1. Ordersheet'!K1500)","v":""},{"$f":"IF('1. Ordersheet'!M1500=\"\",\"\",'1. Ordersheet'!M1500)","v":""},null,null,{"$f":"'1. Ordersheet'!AR1500","v":0},{"$f":"IF('1. Ordersheet'!AE1500=\"\",\"\",'1. Ordersheet'!AE1500)","v":""}]
[{"$f":"IF('1. Ordersheet'!B1501=\"\",\"\",'1. Ordersheet'!B1501)","v":""},{"$f":"IF('1. Ordersheet'!I1501=\"\",\"\",'1. Ordersheet'!I1501)","v":""},{"$f":"IF('1. Ordersheet'!J1501=\"\",\"\",'1. Ordersheet'!J1501)","v":""},{"$f":"IF('1. Ordersheet'!K1501=\"\",\"\",'1. Ordersheet'!K1501)","v":""},{"$f":"IF('1. Ordersheet'!M1501=\"\",\"\",'1. Ordersheet'!M1501)","v":""},null,null,{"$f":"'1. Ordersheet'!AR1501","v":0},{"$f":"IF('1. Ordersheet'!AE1501=\"\",\"\",'1. Ordersheet'!AE1501)","v":""}]
[{"$f":"IF('1. Ordersheet'!B1502=\"\",\"\",'1. Ordersheet'!B1502)","v":""},{"$f":"IF('1. Ordersheet'!I1502=\"\",\"\",'1. Ordersheet'!I1502)","v":""},{"$f":"IF('1. Ordersheet'!J1502=\"\",\"\",'1. Ordersheet'!J1502)","v":""},{"$f":"IF('1. Ordersheet'!K1502=\"\",\"\",'1. Ordersheet'!K1502)","v":""},{"$f":"IF('1. Ordersheet'!M1502=\"\",\"\",'1. Ordersheet'!M1502)","v":""},null,null,{"$f":"'1. Ordersheet'!AR1502","v":0},{"$f":"IF('1. Ordersheet'!AE1502=\"\",\"\",'1. Ordersheet'!AE1502)","v":""}]
[{"$f":"IF('1. Ordersheet'!B1503=\"\",\"\",'1. Ordersheet'!B1503)","v":""},{"$f":"IF('1. Ordersheet'!I1503=\"\",\"\",'1. Ordersheet'!I1503)","v":""},{"$f":"IF('1. Ordersheet'!J1503=\"\",\"\",'1. Ordersheet'!J1503)","v":""},{"$f":"IF('1. Ordersheet'!K1503=\"\",\"\",'1. Ordersheet'!K1503)","v":""},{"$f":"IF('1. Ordersheet'!M1503=\"\",\"\",'1. Ordersheet'!M1503)","v":""},null,null,{"$f":"'1. Ordersheet'!AR1503","v":0},{"$f":"IF('1. Ordersheet'!AE1503=\"\",\"\",'1. Ordersheet'!AE1503)","v":""}]
[{"$f":"IF('1. Ordersheet'!B1504=\"\",\"\",'1. Ordersheet'!B1504)","v":""},{"$f":"IF('1. Ordersheet'!I1504=\"\",\"\",'1. Ordersheet'!I1504)","v":""},{"$f":"IF('1. Ordersheet'!J1504=\"\",\"\",'1. Ordersheet'!J1504)","v":""},{"$f":"IF('1. Ordersheet'!K1504=\"\",\"\",'1. Ordersheet'!K1504)","v":""},{"$f":"IF('1. Ordersheet'!M1504=\"\",\"\",'1. Ordersheet'!M1504)","v":""},null,null,{"$f":"'1. Ordersheet'!AR1504","v":0},{"$f":"IF('1. Ordersheet'!AE1504=\"\",\"\",'1. Ordersheet'!AE1504)","v":""}]
[{"$f":"IF('1. Ordersheet'!B1505=\"\",\"\",'1. Ordersheet'!B1505)","v":""},{"$f":"IF('1. Ordersheet'!I1505=\"\",\"\",'1. Ordersheet'!I1505)","v":""},{"$f":"IF('1. Ordersheet'!J1505=\"\",\"\",'1. Ordersheet'!J1505)","v":""},{"$f":"IF('1. Ordersheet'!K1505=\"\",\"\",'1. Ordersheet'!K1505)","v":""},{"$f":"IF('1. Ordersheet'!M1505=\"\",\"\",'1. Ordersheet'!M1505)","v":""},null,null,{"$f":"'1. Ordersheet'!AR1505","v":0},{"$f":"IF('1. Ordersheet'!AE1505=\"\",\"\",'1. Ordersheet'!AE1505)","v":""}]
[{"$f":"IF('1. Ordersheet'!B1506=\"\",\"\",'1. Ordersheet'!B1506)","v":""},{"$f":"IF('1. Ordersheet'!I1506=\"\",\"\",'1. Ordersheet'!I1506)","v":""},{"$f":"IF('1. Ordersheet'!J1506=\"\",\"\",'1. Ordersheet'!J1506)","v":""},{"$f":"IF('1. Ordersheet'!K1506=\"\",\"\",'1. Ordersheet'!K1506)","v":""},{"$f":"IF('1. Ordersheet'!M1506=\"\",\"\",'1. Ordersheet'!M1506)","v":""},null,null,{"$f":"'1. Ordersheet'!AR1506","v":0},{"$f":"IF('1. Ordersheet'!AE1506=\"\",\"\",'1. Ordersheet'!AE1506)","v":""}]
[{"$f":"IF('1. Ordersheet'!B1507=\"\",\"\",'1. Ordersheet'!B1507)","v":""},{"$f":"IF('1. Ordersheet'!I1507=\"\",\"\",'1. Ordersheet'!I1507)","v":""},{"$f":"IF('1. Ordersheet'!J1507=\"\",\"\",'1. Ordersheet'!J1507)","v":""},{"$f":"IF('1. Ordersheet'!K1507=\"\",\"\",'1. Ordersheet'!K1507)","v":""},{"$f":"IF('1. Ordersheet'!M1507=\"\",\"\",'1. Ordersheet'!M1507)","v":""},null,null,{"$f":"'1. Ordersheet'!AR1507","v":0},{"$f":"IF('1. Ordersheet'!AE1507=\"\",\"\",'1. Ordersheet'!AE1507)","v":""}]
[{"$f":"IF('1. Ordersheet'!B1508=\"\",\"\",'1. Ordersheet'!B1508)","v":""},{"$f":"IF('1. Ordersheet'!I1508=\"\",\"\",'1. Ordersheet'!I1508)","v":""},{"$f":"IF('1. Ordersheet'!J1508=\"\",\"\",'1. Ordersheet'!J1508)","v":""},{"$f":"IF('1. Ordersheet'!K1508=\"\",\"\",'1. Ordersheet'!K1508)","v":""},{"$f":"IF('1. Ordersheet'!M1508=\"\",\"\",'1. Ordersheet'!M1508)","v":""},null,null,{"$f":"'1. Ordersheet'!AR1508","v":0},{"$f":"IF('1. Ordersheet'!AE1508=\"\",\"\",'1. Ordersheet'!AE1508)","v":""}]

{"sheet":"Article Onboarding","index":4,"n_rows":1502,"n_cols":44,"rows_kept":1502,"cut":false,"hidden":true,"merged":[]}
["Leverancier","Merk (volgens PIM)","Merklijn (volgens PIM)","Stijl nr","Inkooptekst","Leverancierskleur (max. 50 posities)","Darwin mover class (volgens PIM)","?","Omschrijving","Categorie","Taxon","Bestelmaat leverancier","Presentatiemaat ","Magazijnmaat (3 cijferig)","Veelvoud","MOQ","Valuta inkoopprijs","Inkoopprijs","Consumenten verkoopprijs","Oorspronkelijke verkoopprijs",null,"CustomCode","ProductWeightSize","Battery","BatteryType","BatteryWeight","BatteryButtonCell","PlugAvailable","Gewicht gram","Inkoopdoorlooptijd","Inkopersgroep","Supplychain planner",null,"OMID code","Opslagzone","LIG-code","Verzendkosten","Verzendmethode",null,"Inkoopdoorlooptijd","Toeslagcode","Toeslagtype","Toeslagwaarde","Groepering artikeltypeomschrijving"]
["AX leveranciersnummer","Merk","Merklijn","Leveranciers artikelnummer","AX Inkooptekst","Inkoopkleur","DarwinMoverClass","EAN","AX Naam","Artikelgroep code","Taxon","SizeSupplier","SizeDescription","SizeWehkamp","QtyLowest","QtyMultiples","CurrencyCodePurchasePrice","PriceCAP","CVP","OVP","Scratchprice","CustomCode","ProductWeightSize","Battery","BatteryType","BatteryWeight","BatteryButtonCell","PlugAvailable","NetWeight","PurchaseLeadTime","BuyerGroup","SupplyChainPlanner","SalesSegment","OMID","StoreZone","LogisticItemGroup","ShippingCosts","WKShippingMethod","PreferredWarehouseIdentificationCode","PurchaseLeadTime","MarkupCode","MarkupCategory","MarkupValue","AticleType"]
[{"$f":"IF('1. Ordersheet'!F6=\"\",\"\",'1. Ordersheet'!F6)","v":""},{"$f":"IF('1. Ordersheet'!G6=\"\",\"\",'1. Ordersheet'!G6)","v":""},{"$f":"IF('1. Ordersheet'!H6=\"\",\"\",'1. Ordersheet'!H6)","v":""},{"$f":"IF('1. Ordersheet'!I6=\"\",\"\",'1. Ordersheet'!I6)","v":""},{"$f":"IF('1. Ordersheet'!J6=\"\",\"\",'1. Ordersheet'!J6)","v":""},{"$f":"IF('1. Ordersheet'!K6=\"\",\"\",'1. Ordersheet'!K6)","v":""},{"$f":"IF('1. Ordersheet'!L6=\"\",\"\",'1. Ordersheet'!L6)","v":""},{"$f":"IF('1. Ordersheet'!M6=\"\",\"\",'1. Ordersheet'!M6)","v":""},{"$f":"IF('1. Ordersheet'!N6=\"\",\"\",'1. Ordersheet'!N6)","v":""},{"$f":"IF('1. Ordersheet'!O6=\"\",\"\",'1. Ordersheet'!O6)","v":{"$error":"#N/A"}},{"$f":"IF('1. Ordersheet'!P6=\"\",\"\",'1. Ordersheet'!P6)","v":{"$error":"#N/A"}},{"$f":"IF('1. Ordersheet'!Q6=\"\",\"\",'1. Ordersheet'!Q6)","v":""},{"$f":"IF('1. Ordersheet'!R6=\"\",\"\",'1. Ordersheet'!R6)","v":""},{"$f":"IF('1. Ordersheet'!S6=\"\",\"\",'1. Ordersheet'!S6)","v":""},{"$f":"IF('1. Ordersheet'!V6=\"\",\"\",'1. Ordersheet'!V6)","v":""},{"$f":"IF('1. Ordersheet'!W6=\"\",\"\",'1. Ordersheet'!W6)","v":""},{"$f":"IF('1. Ordersheet'!X6=\"\",\"\",'1. Ordersheet'!X6)","v":""},{"$f":"IF('1. Ordersheet'!Y6=\"\",\"\",'1. Ordersheet'!Y6)","v":""},{"$f":"IF('1. Ordersheet'!Z6=\"\",\"\",'1. Ordersheet'!Z6)","v":""},{"$f":"IF('1. Ordersheet'!AA6=\"\",\"\",'1. Ordersheet'!AA6)","v":""},null,{"$f":"IF('1. Ordersheet'!AS6=\"\",\"\",'1. Ordersheet'!AS6)","v":""},{"$f":"IF('1. Ordersheet'!AT6=\"\",\"\",'1. Ordersheet'!AT6)","v":""},null,null,null,null,null,null,null,{"$f":"IF('1. Ordersheet'!AX6=\"\",\"\",'1. Ordersheet'!AX6)","v":""},{"$f":"IF('1. Ordersheet'!AY6=\"\",\"\",'1. Ordersheet'!AY6)","v":""},{"$f":"IF('1. Ordersheet'!AZ6=\"\",\"\",'1. Ordersheet'!AZ6)","v":""},{"$f":"IF('1. Ordersheet'!BA6=\"\",\"\",'1. Ordersheet'!BA6)","v":""},{"$f":"IF('1. Ordersheet'!BC6=\"\",\"\",'1. Ordersheet'!BC6)","v":""},{"$f":"IF('1. Ordersheet'!BD6=\"\",\"\",'1. Ordersheet'!BD6)","v":""},{"$f":"IF('1. Ordersheet'!BE6=\"\",\"\",'1. Ordersheet'!BE6)","v":""},{"$f":"IF('1. Ordersheet'!BF6=\"\",\"\",'1. Ordersheet'!BF6)","v":""},{"$f":"IF('1. Ordersheet'!BG6=\"\",\"\",'1. Ordersheet'!BG6)","v":"ZWO"},{"$f":"IF('1. Ordersheet'!BH6=\"\",\"\",'1. Ordersheet'!BH6)","v":""},{"$f":"IF('1. Ordersheet'!BI6=\"\",\"\",'1. Ordersheet'!BI6)","v":""},{"$f":"IF('1. Ordersheet'!BJ6=\"\",\"\",'1. Ordersheet'!BJ6)","v":""},{"$f":"IF('1. Ordersheet'!BK6=\"\",\"\",'1. Ordersheet'!BK6)","v":""},{"$f":"IF('1. Ordersheet'!BL6=\"\",\"\",'1. Ordersheet'!BL6)","v":""}]
[{"$f":"IF('1. Ordersheet'!F7=\"\",\"\",'1. Ordersheet'!F7)","v":""},{"$f":"IF('1. Ordersheet'!G7=\"\",\"\",'1. Ordersheet'!G7)","v":""},{"$f":"IF('1. Ordersheet'!H7=\"\",\"\",'1. Ordersheet'!H7)","v":""},{"$f":"IF('1. Ordersheet'!I7=\"\",\"\",'1. Ordersheet'!I7)","v":""},{"$f":"IF('1. Ordersheet'!J7=\"\",\"\",'1. Ordersheet'!J7)","v":""},{"$f":"IF('1. Ordersheet'!K7=\"\",\"\",'1. Ordersheet'!K7)","v":""},{"$f":"IF('1. Ordersheet'!L7=\"\",\"\",'1. Ordersheet'!L7)","v":""},{"$f":"IF('1. Ordersheet'!M7=\"\",\"\",'1. Ordersheet'!M7)","v":""},{"$f":"IF('1. Ordersheet'!N7=\"\",\"\",'1. Ordersheet'!N7)","v":""},{"$f":"IF('1. Ordersheet'!O7=\"\",\"\",'1. Ordersheet'!O7)","v":{"$error":"#N/A"}},{"$f":"IF('1. Ordersheet'!P7=\"\",\"\",'1. Ordersheet'!P7)","v":{"$error":"#N/A"}},{"$f":"IF('1. Ordersheet'!Q7=\"\",\"\",'1. Ordersheet'!Q7)","v":""},{"$f":"IF('1. Ordersheet'!R7=\"\",\"\",'1. Ordersheet'!R7)","v":""},{"$f":"IF('1. Ordersheet'!S7=\"\",\"\",'1. Ordersheet'!S7)","v":""},{"$f":"IF('1. Ordersheet'!V7=\"\",\"\",'1. Ordersheet'!V7)","v":""},{"$f":"IF('1. Ordersheet'!W7=\"\",\"\",'1. Ordersheet'!W7)","v":""},{"$f":"IF('1. Ordersheet'!X7=\"\",\"\",'1. Ordersheet'!X7)","v":""},{"$f":"IF('1. Ordersheet'!Y7=\"\",\"\",'1. Ordersheet'!Y7)","v":""},{"$f":"IF('1. Ordersheet'!Z7=\"\",\"\",'1. Ordersheet'!Z7)","v":""},{"$f":"IF('1. Ordersheet'!AA7=\"\",\"\",'1. Ordersheet'!AA7)","v":""},null,{"$f":"IF('1. Ordersheet'!AS7=\"\",\"\",'1. Ordersheet'!AS7)","v":""},{"$f":"IF('1. Ordersheet'!AT7=\"\",\"\",'1. Ordersheet'!AT7)","v":""},null,null,null,null,null,null,null,{"$f":"IF('1. Ordersheet'!AX7=\"\",\"\",'1. Ordersheet'!AX7)","v":""},{"$f":"IF('1. Ordersheet'!AY7=\"\",\"\",'1. Ordersheet'!AY7)","v":""},{"$f":"IF('1. Ordersheet'!AZ7=\"\",\"\",'1. Ordersheet'!AZ7)","v":""},{"$f":"IF('1. Ordersheet'!BA7=\"\",\"\",'1. Ordersheet'!BA7)","v":""},{"$f":"IF('1. Ordersheet'!BC7=\"\",\"\",'1. Ordersheet'!BC7)","v":""},{"$f":"IF('1. Ordersheet'!BD7=\"\",\"\",'1. Ordersheet'!BD7)","v":""},{"$f":"IF('1. Ordersheet'!BE7=\"\",\"\",'1. Ordersheet'!BE7)","v":""},{"$f":"IF('1. Ordersheet'!BF7=\"\",\"\",'1. Ordersheet'!BF7)","v":""},{"$f":"IF('1. Ordersheet'!BG7=\"\",\"\",'1. Ordersheet'!BG7)","v":"ZWO"},{"$f":"IF('1. Ordersheet'!BH7=\"\",\"\",'1. Ordersheet'!BH7)","v":""},{"$f":"IF('1. Ordersheet'!BI7=\"\",\"\",'1. Ordersheet'!BI7)","v":""},{"$f":"IF('1. Ordersheet'!BJ7=\"\",\"\",'1. Ordersheet'!BJ7)","v":""},{"$f":"IF('1. Ordersheet'!BK7=\"\",\"\",'1. Ordersheet'!BK7)","v":""},{"$f":"IF('1. Ordersheet'!BL7=\"\",\"\",'1. Ordersheet'!BL7)","v":""}]
[{"$f":"IF('1. Ordersheet'!F8=\"\",\"\",'1. Ordersheet'!F8)","v":""},{"$f":"IF('1. Ordersheet'!G8=\"\",\"\",'1. Ordersheet'!G8)","v":""},{"$f":"IF('1. Ordersheet'!H8=\"\",\"\",'1. Ordersheet'!H8)","v":""},{"$f":"IF('1. Ordersheet'!I8=\"\",\"\",'1. Ordersheet'!I8)","v":""},{"$f":"IF('1. Ordersheet'!J8=\"\",\"\",'1. Ordersheet'!J8)","v":""},{"$f":"IF('1. Ordersheet'!K8=\"\",\"\",'1. Ordersheet'!K8)","v":""},{"$f":"IF('1. Ordersheet'!L8=\"\",\"\",'1. Ordersheet'!L8)","v":""},{"$f":"IF('1. Ordersheet'!M8=\"\",\"\",'1. Ordersheet'!M8)","v":""},{"$f":"IF('1. Ordersheet'!N8=\"\",\"\",'1. Ordersheet'!N8)","v":""},{"$f":"IF('1. Ordersheet'!O8=\"\",\"\",'1. Ordersheet'!O8)","v":{"$error":"#N/A"}},{"$f":"IF('1. Ordersheet'!P8=\"\",\"\",'1. Ordersheet'!P8)","v":{"$error":"#N/A"}},{"$f":"IF('1. Ordersheet'!Q8=\"\",\"\",'1. Ordersheet'!Q8)","v":""},{"$f":"IF('1. Ordersheet'!R8=\"\",\"\",'1. Ordersheet'!R8)","v":""},{"$f":"IF('1. Ordersheet'!S8=\"\",\"\",'1. Ordersheet'!S8)","v":""},{"$f":"IF('1. Ordersheet'!V8=\"\",\"\",'1. Ordersheet'!V8)","v":""},{"$f":"IF('1. Ordersheet'!W8=\"\",\"\",'1. Ordersheet'!W8)","v":""},{"$f":"IF('1. Ordersheet'!X8=\"\",\"\",'1. Ordersheet'!X8)","v":""},{"$f":"IF('1. Ordersheet'!Y8=\"\",\"\",'1. Ordersheet'!Y8)","v":""},{"$f":"IF('1. Ordersheet'!Z8=\"\",\"\",'1. Ordersheet'!Z8)","v":""},{"$f":"IF('1. Ordersheet'!AA8=\"\",\"\",'1. Ordersheet'!AA8)","v":""},null,{"$f":"IF('1. Ordersheet'!AS8=\"\",\"\",'1. Ordersheet'!AS8)","v":""},{"$f":"IF('1. Ordersheet'!AT8=\"\",\"\",'1. Ordersheet'!AT8)","v":""},null,null,null,null,null,null,null,{"$f":"IF('1. Ordersheet'!AX8=\"\",\"\",'1. Ordersheet'!AX8)","v":""},{"$f":"IF('1. Ordersheet'!AY8=\"\",\"\",'1. Ordersheet'!AY8)","v":""},{"$f":"IF('1. Ordersheet'!AZ8=\"\",\"\",'1. Ordersheet'!AZ8)","v":""},{"$f":"IF('1. Ordersheet'!BA8=\"\",\"\",'1. Ordersheet'!BA8)","v":""},{"$f":"IF('1. Ordersheet'!BC8=\"\",\"\",'1. Ordersheet'!BC8)","v":""},{"$f":"IF('1. Ordersheet'!BD8=\"\",\"\",'1. Ordersheet'!BD8)","v":""},{"$f":"IF('1. Ordersheet'!BE8=\"\",\"\",'1. Ordersheet'!BE8)","v":""},{"$f":"IF('1. Ordersheet'!BF8=\"\",\"\",'1. Ordersheet'!BF8)","v":""},{"$f":"IF('1. Ordersheet'!BG8=\"\",\"\",'1. Ordersheet'!BG8)","v":"ZWO"},{"$f":"IF('1. Ordersheet'!BH8=\"\",\"\",'1. Ordersheet'!BH8)","v":""},{"$f":"IF('1. Ordersheet'!BI8=\"\",\"\",'1. Ordersheet'!BI8)","v":""},{"$f":"IF('1. Ordersheet'!BJ8=\"\",\"\",'1. Ordersheet'!BJ8)","v":""},{"$f":"IF('1. Ordersheet'!BK8=\"\",\"\",'1. Ordersheet'!BK8)","v":""},{"$f":"IF('1. Ordersheet'!BL8=\"\",\"\",'1. Ordersheet'!BL8)","v":""}]
[{"$f":"IF('1. Ordersheet'!F9=\"\",\"\",'1. Ordersheet'!F9)","v":""},{"$f":"IF('1. Ordersheet'!G9=\"\",\"\",'1. Ordersheet'!G9)","v":""},{"$f":"IF('1. Ordersheet'!H9=\"\",\"\",'1. Ordersheet'!H9)","v":""},{"$f":"IF('1. Ordersheet'!I9=\"\",\"\",'1. Ordersheet'!I9)","v":""},{"$f":"IF('1. Ordersheet'!J9=\"\",\"\",'1. Ordersheet'!J9)","v":""},{"$f":"IF('1. Ordersheet'!K9=\"\",\"\",'1. Ordersheet'!K9)","v":""},{"$f":"IF('1. Ordersheet'!L9=\"\",\"\",'1. Ordersheet'!L9)","v":""},{"$f":"IF('1. Ordersheet'!M9=\"\",\"\",'1. Ordersheet'!M9)","v":""},{"$f":"IF('1. Ordersheet'!N9=\"\",\"\",'1. Ordersheet'!N9)","v":""},{"$f":"IF('1. Ordersheet'!O9=\"\",\"\",'1. Ordersheet'!O9)","v":{"$error":"#N/A"}},{"$f":"IF('1. Ordersheet'!P9=\"\",\"\",'1. Ordersheet'!P9)","v":{"$error":"#N/A"}},{"$f":"IF('1. Ordersheet'!Q9=\"\",\"\",'1. Ordersheet'!Q9)","v":""},{"$f":"IF('1. Ordersheet'!R9=\"\",\"\",'1. Ordersheet'!R9)","v":""},{"$f":"IF('1. Ordersheet'!S9=\"\",\"\",'1. Ordersheet'!S9)","v":""},{"$f":"IF('1. Ordersheet'!V9=\"\",\"\",'1. Ordersheet'!V9)","v":""},{"$f":"IF('1. Ordersheet'!W9=\"\",\"\",'1. Ordersheet'!W9)","v":""},{"$f":"IF('1. Ordersheet'!X9=\"\",\"\",'1. Ordersheet'!X9)","v":""},{"$f":"IF('1. Ordersheet'!Y9=\"\",\"\",'1. Ordersheet'!Y9)","v":""},{"$f":"IF('1. Ordersheet'!Z9=\"\",\"\",'1. Ordersheet'!Z9)","v":""},{"$f":"IF('1. Ordersheet'!AA9=\"\",\"\",'1. Ordersheet'!AA9)","v":""},null,{"$f":"IF('1. Ordersheet'!AS9=\"\",\"\",'1. Ordersheet'!AS9)","v":""},{"$f":"IF('1. Ordersheet'!AT9=\"\",\"\",'1. Ordersheet'!AT9)","v":""},null,null,null,null,null,null,null,{"$f":"IF('1. Ordersheet'!AX9=\"\",\"\",'1. Ordersheet'!AX9)","v":""},{"$f":"IF('1. Ordersheet'!AY9=\"\",\"\",'1. Ordersheet'!AY9)","v":""},{"$f":"IF('1. Ordersheet'!AZ9=\"\",\"\",'1. Ordersheet'!AZ9)","v":""},{"$f":"IF('1. Ordersheet'!BA9=\"\",\"\",'1. Ordersheet'!BA9)","v":""},{"$f":"IF('1. Ordersheet'!BC9=\"\",\"\",'1. Ordersheet'!BC9)","v":""},{"$f":"IF('1. Ordersheet'!BD9=\"\",\"\",'1. Ordersheet'!BD9)","v":""},{"$f":"IF('1. Ordersheet'!BE9=\"\",\"\",'1. Ordersheet'!BE9)","v":""},{"$f":"IF('1. Ordersheet'!BF9=\"\",\"\",'1. Ordersheet'!BF9)","v":""},{"$f":"IF('1. Ordersheet'!BG9=\"\",\"\",'1. Ordersheet'!BG9)","v":"ZWO"},{"$f":"IF('1. Ordersheet'!BH9=\"\",\"\",'1. Ordersheet'!BH9)","v":""},{"$f":"IF('1. Ordersheet'!BI9=\"\",\"\",'1. Ordersheet'!BI9)","v":""},{"$f":"IF('1. Ordersheet'!BJ9=\"\",\"\",'1. Ordersheet'!BJ9)","v":""},{"$f":"IF('1. Ordersheet'!BK9=\"\",\"\",'1. Ordersheet'!BK9)","v":""},{"$f":"IF('1. Ordersheet'!BL9=\"\",\"\",'1. Ordersheet'!BL9)","v":""}]
[{"$f":"IF('1. Ordersheet'!F10=\"\",\"\",'1. Ordersheet'!F10)","v":""},{"$f":"IF('1. Ordersheet'!G10=\"\",\"\",'1. Ordersheet'!G10)","v":""},{"$f":"IF('1. Ordersheet'!H10=\"\",\"\",'1. Ordersheet'!H10)","v":""},{"$f":"IF('1. Ordersheet'!I10=\"\",\"\",'1. Ordersheet'!I10)","v":""},{"$f":"IF('1. Ordersheet'!J10=\"\",\"\",'1. Ordersheet'!J10)","v":""},{"$f":"IF('1. Ordersheet'!K10=\"\",\"\",'1. Ordersheet'!K10)","v":""},{"$f":"IF('1. Ordersheet'!L10=\"\",\"\",'1. Ordersheet'!L10)","v":""},{"$f":"IF('1. Ordersheet'!M10=\"\",\"\",'1. Ordersheet'!M10)","v":""},{"$f":"IF('1. Ordersheet'!N10=\"\",\"\",'1. Ordersheet'!N10)","v":""},{"$f":"IF('1. Ordersheet'!O10=\"\",\"\",'1. Ordersheet'!O10)","v":{"$error":"#N/A"}},{"$f":"IF('1. Ordersheet'!P10=\"\",\"\",'1. Ordersheet'!P10)","v":{"$error":"#N/A"}},{"$f":"IF('1. Ordersheet'!Q10=\"\",\"\",'1. Ordersheet'!Q10)","v":""},{"$f":"IF('1. Ordersheet'!R10=\"\",\"\",'1. Ordersheet'!R10)","v":""},{"$f":"IF('1. Ordersheet'!S10=\"\",\"\",'1. Ordersheet'!S10)","v":""},{"$f":"IF('1. Ordersheet'!V10=\"\",\"\",'1. Ordersheet'!V10)","v":""},{"$f":"IF('1. Ordersheet'!W10=\"\",\"\",'1. Ordersheet'!W10)","v":""},{"$f":"IF('1. Ordersheet'!X10=\"\",\"\",'1. Ordersheet'!X10)","v":""},{"$f":"IF('1. Ordersheet'!Y10=\"\",\"\",'1. Ordersheet'!Y10)","v":""},{"$f":"IF('1. Ordersheet'!Z10=\"\",\"\",'1. Ordersheet'!Z10)","v":""},{"$f":"IF('1. Ordersheet'!AA10=\"\",\"\",'1. Ordersheet'!AA10)","v":""},null,{"$f":"IF('1. Ordersheet'!AS10=\"\",\"\",'1. Ordersheet'!AS10)","v":""},{"$f":"IF('1. Ordersheet'!AT10=\"\",\"\",'1. Ordersheet'!AT10)","v":""},null,null,null,null,null,null,null,{"$f":"IF('1. Ordersheet'!AX10=\"\",\"\",'1. Ordersheet'!AX10)","v":""},{"$f":"IF('1. Ordersheet'!AY10=\"\",\"\",'1. Ordersheet'!AY10)","v":""},{"$f":"IF('1. Ordersheet'!AZ10=\"\",\"\",'1. Ordersheet'!AZ10)","v":""},{"$f":"IF('1. Ordersheet'!BA10=\"\",\"\",'1. Ordersheet'!BA10)","v":""},{"$f":"IF('1. Ordersheet'!BC10=\"\",\"\",'1. Ordersheet'!BC10)","v":""},{"$f":"IF('1. Ordersheet'!BD10=\"\",\"\",'1. Ordersheet'!BD10)","v":""},{"$f":"IF('1. Ordersheet'!BE10=\"\",\"\",'1. Ordersheet'!BE10)","v":""},{"$f":"IF('1. Ordersheet'!BF10=\"\",\"\",'1. Ordersheet'!BF10)","v":""},{"$f":"IF('1. Ordersheet'!BG10=\"\",\"\",'1. Ordersheet'!BG10)","v":"ZWO"},{"$f":"IF('1. Ordersheet'!BH10=\"\",\"\",'1. Ordersheet'!BH10)","v":""},{"$f":"IF('1. Ordersheet'!BI10=\"\",\"\",'1. Ordersheet'!BI10)","v":""},{"$f":"IF('1. Ordersheet'!BJ10=\"\",\"\",'1. Ordersheet'!BJ10)","v":""},{"$f":"IF('1. Ordersheet'!BK10=\"\",\"\",'1. Ordersheet'!BK10)","v":""},{"$f":"IF('1. Ordersheet'!BL10=\"\",\"\",'1. Ordersheet'!BL10)","v":""}]
[{"$f":"IF('1. Ordersheet'!F11=\"\",\"\",'1. Ordersheet'!F11)","v":""},{"$f":"IF('1. Ordersheet'!G11=\"\",\"\",'1. Ordersheet'!G11)","v":""},{"$f":"IF('1. Ordersheet'!H11=\"\",\"\",'1. Ordersheet'!H11)","v":""},{"$f":"IF('1. Ordersheet'!I11=\"\",\"\",'1. Ordersheet'!I11)","v":""},{"$f":"IF('1. Ordersheet'!J11=\"\",\"\",'1. Ordersheet'!J11)","v":""},{"$f":"IF('1. Ordersheet'!K11=\"\",\"\",'1. Ordersheet'!K11)","v":""},{"$f":"IF('1. Ordersheet'!L11=\"\",\"\",'1. Ordersheet'!L11)","v":""},{"$f":"IF('1. Ordersheet'!M11=\"\",\"\",'1. Ordersheet'!M11)","v":""},{"$f":"IF('1. Ordersheet'!N11=\"\",\"\",'1. Ordersheet'!N11)","v":""},{"$f":"IF('1. Ordersheet'!O11=\"\",\"\",'1. Ordersheet'!O11)","v":{"$error":"#N/A"}},{"$f":"IF('1. Ordersheet'!P11=\"\",\"\",'1. Ordersheet'!P11)","v":{"$error":"#N/A"}},{"$f":"IF('1. Ordersheet'!Q11=\"\",\"\",'1. Ordersheet'!Q11)","v":""},{"$f":"IF('1. Ordersheet'!R11=\"\",\"\",'1. Ordersheet'!R11)","v":""},{"$f":"IF('1. Ordersheet'!S11=\"\",\"\",'1. Ordersheet'!S11)","v":""},{"$f":"IF('1. Ordersheet'!V11=\"\",\"\",'1. Ordersheet'!V11)","v":""},{"$f":"IF('1. Ordersheet'!W11=\"\",\"\",'1. Ordersheet'!W11)","v":""},{"$f":"IF('1. Ordersheet'!X11=\"\",\"\",'1. Ordersheet'!X11)","v":""},{"$f":"IF('1. Ordersheet'!Y11=\"\",\"\",'1. Ordersheet'!Y11)","v":""},{"$f":"IF('1. Ordersheet'!Z11=\"\",\"\",'1. Ordersheet'!Z11)","v":""},{"$f":"IF('1. Ordersheet'!AA11=\"\",\"\",'1. Ordersheet'!AA11)","v":""},null,{"$f":"IF('1. Ordersheet'!AS11=\"\",\"\",'1. Ordersheet'!AS11)","v":""},{"$f":"IF('1. Ordersheet'!AT11=\"\",\"\",'1. Ordersheet'!AT11)","v":""},null,null,null,null,null,null,null,{"$f":"IF('1. Ordersheet'!AX11=\"\",\"\",'1. Ordersheet'!AX11)","v":""},{"$f":"IF('1. Ordersheet'!AY11=\"\",\"\",'1. Ordersheet'!AY11)","v":""},{"$f":"IF('1. Ordersheet'!AZ11=\"\",\"\",'1. Ordersheet'!AZ11)","v":""},{"$f":"IF('1. Ordersheet'!BA11=\"\",\"\",'1. Ordersheet'!BA11)","v":""},{"$f":"IF('1. Ordersheet'!BC11=\"\",\"\",'1. Ordersheet'!BC11)","v":""},{"$f":"IF('1. Ordersheet'!BD11=\"\",\"\",'1. Ordersheet'!BD11)","v":""},{"$f":"IF('1. Ordersheet'!BE11=\"\",\"\",'1. Ordersheet'!BE11)","v":""},{"$f":"IF('1. Ordersheet'!BF11=\"\",\"\",'1. Ordersheet'!BF11)","v":""},{"$f":"IF('1. Ordersheet'!BG11=\"\",\"\",'1. Ordersheet'!BG11)","v":"ZWO"},{"$f":"IF('1. Ordersheet'!BH11=\"\",\"\",'1. Ordersheet'!BH11)","v":""},{"$f":"IF('1. Ordersheet'!BI11=\"\",\"\",'1. Ordersheet'!BI11)","v":""},{"$f":"IF('1. Ordersheet'!BJ11=\"\",\"\",'1. Ordersheet'!BJ11)","v":""},{"$f":"IF('1. Ordersheet'!BK11=\"\",\"\",'1. Ordersheet'!BK11)","v":""},{"$f":"IF('1. Ordersheet'!BL11=\"\",\"\",'1. Ordersheet'!BL11)","v":""}]
[{"$f":"IF('1. Ordersheet'!F12=\"\",\"\",'1. Ordersheet'!F12)","v":""},{"$f":"IF('1. Ordersheet'!G12=\"\",\"\",'1. Ordersheet'!G12)","v":""},{"$f":"IF('1. Ordersheet'!H12=\"\",\"\",'1. Ordersheet'!H12)","v":""},{"$f":"IF('1. Ordersheet'!I12=\"\",\"\",'1. Ordersheet'!I12)","v":""},{"$f":"IF('1. Ordersheet'!J12=\"\",\"\",'1. Ordersheet'!J12)","v":""},{"$f":"IF('1. Ordersheet'!K12=\"\",\"\",'1. Ordersheet'!K12)","v":""},{"$f":"IF('1. Ordersheet'!L12=\"\",\"\",'1. Ordersheet'!L12)","v":""},{"$f":"IF('1. Ordersheet'!M12=\"\",\"\",'1. Ordersheet'!M12)","v":""},{"$f":"IF('1. Ordersheet'!N12=\"\",\"\",'1. Ordersheet'!N12)","v":""},{"$f":"IF('1. Ordersheet'!O12=\"\",\"\",'1. Ordersheet'!O12)","v":{"$error":"#N/A"}},{"$f":"IF('1. Ordersheet'!P12=\"\",\"\",'1. Ordersheet'!P12)","v":{"$error":"#N/A"}},{"$f":"IF('1. Ordersheet'!Q12=\"\",\"\",'1. Ordersheet'!Q12)","v":""},{"$f":"IF('1. Ordersheet'!R12=\"\",\"\",'1. Ordersheet'!R12)","v":""},{"$f":"IF('1. Ordersheet'!S12=\"\",\"\",'1. Ordersheet'!S12)","v":""},{"$f":"IF('1. Ordersheet'!V12=\"\",\"\",'1. Ordersheet'!V12)","v":""},{"$f":"IF('1. Ordersheet'!W12=\"\",\"\",'1. Ordersheet'!W12)","v":""},{"$f":"IF('1. Ordersheet'!X12=\"\",\"\",'1. Ordersheet'!X12)","v":""},{"$f":"IF('1. Ordersheet'!Y12=\"\",\"\",'1. Ordersheet'!Y12)","v":""},{"$f":"IF('1. Ordersheet'!Z12=\"\",\"\",'1. Ordersheet'!Z12)","v":""},{"$f":"IF('1. Ordersheet'!AA12=\"\",\"\",'1. Ordersheet'!AA12)","v":""},null,{"$f":"IF('1. Ordersheet'!AS12=\"\",\"\",'1. Ordersheet'!AS12)","v":""},{"$f":"IF('1. Ordersheet'!AT12=\"\",\"\",'1. Ordersheet'!AT12)","v":""},null,null,null,null,null,null,null,{"$f":"IF('1. Ordersheet'!AX12=\"\",\"\",'1. Ordersheet'!AX12)","v":""},{"$f":"IF('1. Ordersheet'!AY12=\"\",\"\",'1. Ordersheet'!AY12)","v":""},{"$f":"IF('1. Ordersheet'!AZ12=\"\",\"\",'1. Ordersheet'!AZ12)","v":""},{"$f":"IF('1. Ordersheet'!BA12=\"\",\"\",'1. Ordersheet'!BA12)","v":""},{"$f":"IF('1. Ordersheet'!BC12=\"\",\"\",'1. Ordersheet'!BC12)","v":""},{"$f":"IF('1. Ordersheet'!BD12=\"\",\"\",'1. Ordersheet'!BD12)","v":""},{"$f":"IF('1. Ordersheet'!BE12=\"\",\"\",'1. Ordersheet'!BE12)","v":""},{"$f":"IF('1. Ordersheet'!BF12=\"\",\"\",'1. Ordersheet'!BF12)","v":""},{"$f":"IF('1. Ordersheet'!BG12=\"\",\"\",'1. Ordersheet'!BG12)","v":"ZWO"},{"$f":"IF('1. Ordersheet'!BH12=\"\",\"\",'1. Ordersheet'!BH12)","v":""},{"$f":"IF('1. Ordersheet'!BI12=\"\",\"\",'1. Ordersheet'!BI12)","v":""},{"$f":"IF('1. Ordersheet'!BJ12=\"\",\"\",'1. Ordersheet'!BJ12)","v":""},{"$f":"IF('1. Ordersheet'!BK12=\"\",\"\",'1. Ordersheet'!BK12)","v":""},{"$f":"IF('1. Ordersheet'!BL12=\"\",\"\",'1. Ordersheet'!BL12)","v":""}]
[{"$f":"IF('1. Ordersheet'!F13=\"\",\"\",'1. Ordersheet'!F13)","v":""},{"$f":"IF('1. Ordersheet'!G13=\"\",\"\",'1. Ordersheet'!G13)","v":""},{"$f":"IF('1. Ordersheet'!H13=\"\",\"\",'1. Ordersheet'!H13)","v":""},{"$f":"IF('1. Ordersheet'!I13=\"\",\"\",'1. Ordersheet'!I13)","v":""},{"$f":"IF('1. Ordersheet'!J13=\"\",\"\",'1. Ordersheet'!J13)","v":""},{"$f":"IF('1. Ordersheet'!K13=\"\",\"\",'1. Ordersheet'!K13)","v":""},{"$f":"IF('1. Ordersheet'!L13=\"\",\"\",'1. Ordersheet'!L13)","v":""},{"$f":"IF('1. Ordersheet'!M13=\"\",\"\",'1. Ordersheet'!M13)","v":""},{"$f":"IF('1. Ordersheet'!N13=\"\",\"\",'1. Ordersheet'!N13)","v":""},{"$f":"IF('1. Ordersheet'!O13=\"\",\"\",'1. Ordersheet'!O13)","v":{"$error":"#N/A"}},{"$f":"IF('1. Ordersheet'!P13=\"\",\"\",'1. Ordersheet'!P13)","v":{"$error":"#N/A"}},{"$f":"IF('1. Ordersheet'!Q13=\"\",\"\",'1. Ordersheet'!Q13)","v":""},{"$f":"IF('1. Ordersheet'!R13=\"\",\"\",'1. Ordersheet'!R13)","v":""},{"$f":"IF('1. Ordersheet'!S13=\"\",\"\",'1. Ordersheet'!S13)","v":""},{"$f":"IF('1. Ordersheet'!V13=\"\",\"\",'1. Ordersheet'!V13)","v":""},{"$f":"IF('1. Ordersheet'!W13=\"\",\"\",'1. Ordersheet'!W13)","v":""},{"$f":"IF('1. Ordersheet'!X13=\"\",\"\",'1. Ordersheet'!X13)","v":""},{"$f":"IF('1. Ordersheet'!Y13=\"\",\"\",'1. Ordersheet'!Y13)","v":""},{"$f":"IF('1. Ordersheet'!Z13=\"\",\"\",'1. Ordersheet'!Z13)","v":""},{"$f":"IF('1. Ordersheet'!AA13=\"\",\"\",'1. Ordersheet'!AA13)","v":""},null,{"$f":"IF('1. Ordersheet'!AS13=\"\",\"\",'1. Ordersheet'!AS13)","v":""},{"$f":"IF('1. Ordersheet'!AT13=\"\",\"\",'1. Ordersheet'!AT13)","v":""},null,null,null,null,null,null,null,{"$f":"IF('1. Ordersheet'!AX13=\"\",\"\",'1. Ordersheet'!AX13)","v":""},{"$f":"IF('1. Ordersheet'!AY13=\"\",\"\",'1. Ordersheet'!AY13)","v":""},{"$f":"IF('1. Ordersheet'!AZ13=\"\",\"\",'1. Ordersheet'!AZ13)","v":""},{"$f":"IF('1. Ordersheet'!BA13=\"\",\"\",'1. Ordersheet'!BA13)","v":""},{"$f":"IF('1. Ordersheet'!BC13=\"\",\"\",'1. Ordersheet'!BC13)","v":""},{"$f":"IF('1. Ordersheet'!BD13=\"\",\"\",'1. Ordersheet'!BD13)","v":""},{"$f":"IF('1. Ordersheet'!BE13=\"\",\"\",'1. Ordersheet'!BE13)","v":""},{"$f":"IF('1. Ordersheet'!BF13=\"\",\"\",'1. Ordersheet'!BF13)","v":""},{"$f":"IF('1. Ordersheet'!BG13=\"\",\"\",'1. Ordersheet'!BG13)","v":"ZWO"},{"$f":"IF('1. Ordersheet'!BH13=\"\",\"\",'1. Ordersheet'!BH13)","v":""},{"$f":"IF('1. Ordersheet'!BI13=\"\",\"\",'1. Ordersheet'!BI13)","v":""},{"$f":"IF('1. Ordersheet'!BJ13=\"\",\"\",'1. Ordersheet'!BJ13)","v":""},{"$f":"IF('1. Ordersheet'!BK13=\"\",\"\",'1. Ordersheet'!BK13)","v":""},{"$f":"IF('1. Ordersheet'!BL13=\"\",\"\",'1. Ordersheet'!BL13)","v":""}]
[{"$f":"IF('1. Ordersheet'!F14=\"\",\"\",'1. Ordersheet'!F14)","v":""},{"$f":"IF('1. Ordersheet'!G14=\"\",\"\",'1. Ordersheet'!G14)","v":""},{"$f":"IF('1. Ordersheet'!H14=\"\",\"\",'1. Ordersheet'!H14)","v":""},{"$f":"IF('1. Ordersheet'!I14=\"\",\"\",'1. Ordersheet'!I14)","v":""},{"$f":"IF('1. Ordersheet'!J14=\"\",\"\",'1. Ordersheet'!J14)","v":""},{"$f":"IF('1. Ordersheet'!K14=\"\",\"\",'1. Ordersheet'!K14)","v":""},{"$f":"IF('1. Ordersheet'!L14=\"\",\"\",'1. Ordersheet'!L14)","v":""},{"$f":"IF('1. Ordersheet'!M14=\"\",\"\",'1. Ordersheet'!M14)","v":""},{"$f":"IF('1. Ordersheet'!N14=\"\",\"\",'1. Ordersheet'!N14)","v":""},{"$f":"IF('1. Ordersheet'!O14=\"\",\"\",'1. Ordersheet'!O14)","v":{"$error":"#N/A"}},{"$f":"IF('1. Ordersheet'!P14=\"\",\"\",'1. Ordersheet'!P14)","v":{"$error":"#N/A"}},{"$f":"IF('1. Ordersheet'!Q14=\"\",\"\",'1. Ordersheet'!Q14)","v":""},{"$f":"IF('1. Ordersheet'!R14=\"\",\"\",'1. Ordersheet'!R14)","v":""},{"$f":"IF('1. Ordersheet'!S14=\"\",\"\",'1. Ordersheet'!S14)","v":""},{"$f":"IF('1. Ordersheet'!V14=\"\",\"\",'1. Ordersheet'!V14)","v":""},{"$f":"IF('1. Ordersheet'!W14=\"\",\"\",'1. Ordersheet'!W14)","v":""},{"$f":"IF('1. Ordersheet'!X14=\"\",\"\",'1. Ordersheet'!X14)","v":""},{"$f":"IF('1. Ordersheet'!Y14=\"\",\"\",'1. Ordersheet'!Y14)","v":""},{"$f":"IF('1. Ordersheet'!Z14=\"\",\"\",'1. Ordersheet'!Z14)","v":""},{"$f":"IF('1. Ordersheet'!AA14=\"\",\"\",'1. Ordersheet'!AA14)","v":""},null,{"$f":"IF('1. Ordersheet'!AS14=\"\",\"\",'1. Ordersheet'!AS14)","v":""},{"$f":"IF('1. Ordersheet'!AT14=\"\",\"\",'1. Ordersheet'!AT14)","v":""},null,null,null,null,null,null,null,{"$f":"IF('1. Ordersheet'!AX14=\"\",\"\",'1. Ordersheet'!AX14)","v":""},{"$f":"IF('1. Ordersheet'!AY14=\"\",\"\",'1. Ordersheet'!AY14)","v":""},{"$f":"IF('1. Ordersheet'!AZ14=\"\",\"\",'1. Ordersheet'!AZ14)","v":""},{"$f":"IF('1. Ordersheet'!BA14=\"\",\"\",'1. Ordersheet'!BA14)","v":""},{"$f":"IF('1. Ordersheet'!BC14=\"\",\"\",'1. Ordersheet'!BC14)","v":""},{"$f":"IF('1. Ordersheet'!BD14=\"\",\"\",'1. Ordersheet'!BD14)","v":""},{"$f":"IF('1. Ordersheet'!BE14=\"\",\"\",'1. Ordersheet'!BE14)","v":""},{"$f":"IF('1. Ordersheet'!BF14=\"\",\"\",'1. Ordersheet'!BF14)","v":""},{"$f":"IF('1. Ordersheet'!BG14=\"\",\"\",'1. Ordersheet'!BG14)","v":"ZWO"},{"$f":"IF('1. Ordersheet'!BH14=\"\",\"\",'1. Ordersheet'!BH14)","v":""},{"$f":"IF('1. Ordersheet'!BI14=\"\",\"\",'1. Ordersheet'!BI14)","v":""},{"$f":"IF('1. Ordersheet'!BJ14=\"\",\"\",'1. Ordersheet'!BJ14)","v":""},{"$f":"IF('1. Ordersheet'!BK14=\"\",\"\",'1. Ordersheet'!BK14)","v":""},{"$f":"IF('1. Ordersheet'!BL14=\"\",\"\",'1. Ordersheet'!BL14)","v":""}]
[{"$f":"IF('1. Ordersheet'!F15=\"\",\"\",'1. Ordersheet'!F15)","v":""},{"$f":"IF('1. Ordersheet'!G15=\"\",\"\",'1. Ordersheet'!G15)","v":""},{"$f":"IF('1. Ordersheet'!H15=\"\",\"\",'1. Ordersheet'!H15)","v":""},{"$f":"IF('1. Ordersheet'!I15=\"\",\"\",'1. Ordersheet'!I15)","v":""},{"$f":"IF('1. Ordersheet'!J15=\"\",\"\",'1. Ordersheet'!J15)","v":""},{"$f":"IF('1. Ordersheet'!K15=\"\",\"\",'1. Ordersheet'!K15)","v":""},{"$f":"IF('1. Ordersheet'!L15=\"\",\"\",'1. Ordersheet'!L15)","v":""},{"$f":"IF('1. Ordersheet'!M15=\"\",\"\",'1. Ordersheet'!M15)","v":""},{"$f":"IF('1. Ordersheet'!N15=\"\",\"\",'1. Ordersheet'!N15)","v":""},{"$f":"IF('1. Ordersheet'!O15=\"\",\"\",'1. Ordersheet'!O15)","v":{"$error":"#N/A"}},{"$f":"IF('1. Ordersheet'!P15=\"\",\"\",'1. Ordersheet'!P15)","v":{"$error":"#N/A"}},{"$f":"IF('1. Ordersheet'!Q15=\"\",\"\",'1. Ordersheet'!Q15)","v":""},{"$f":"IF('1. Ordersheet'!R15=\"\",\"\",'1. Ordersheet'!R15)","v":""},{"$f":"IF('1. Ordersheet'!S15=\"\",\"\",'1. Ordersheet'!S15)","v":""},{"$f":"IF('1. Ordersheet'!V15=\"\",\"\",'1. Ordersheet'!V15)","v":""},{"$f":"IF('1. Ordersheet'!W15=\"\",\"\",'1. Ordersheet'!W15)","v":""},{"$f":"IF('1. Ordersheet'!X15=\"\",\"\",'1. Ordersheet'!X15)","v":""},{"$f":"IF('1. Ordersheet'!Y15=\"\",\"\",'1. Ordersheet'!Y15)","v":""},{"$f":"IF('1. Ordersheet'!Z15=\"\",\"\",'1. Ordersheet'!Z15)","v":""},{"$f":"IF('1. Ordersheet'!AA15=\"\",\"\",'1. Ordersheet'!AA15)","v":""},null,{"$f":"IF('1. Ordersheet'!AS15=\"\",\"\",'1. Ordersheet'!AS15)","v":""},{"$f":"IF('1. Ordersheet'!AT15=\"\",\"\",'1. Ordersheet'!AT15)","v":""},null,null,null,null,null,null,null,{"$f":"IF('1. Ordersheet'!AX15=\"\",\"\",'1. Ordersheet'!AX15)","v":""},{"$f":"IF('1. Ordersheet'!AY15=\"\",\"\",'1. Ordersheet'!AY15)","v":""},{"$f":"IF('1. Ordersheet'!AZ15=\"\",\"\",'1. Ordersheet'!AZ15)","v":""},{"$f":"IF('1. Ordersheet'!BA15=\"\",\"\",'1. Ordersheet'!BA15)","v":""},{"$f":"IF('1. Ordersheet'!BC15=\"\",\"\",'1. Ordersheet'!BC15)","v":""},{"$f":"IF('1. Ordersheet'!BD15=\"\",\"\",'1. Ordersheet'!BD15)","v":""},{"$f":"IF('1. Ordersheet'!BE15=\"\",\"\",'1. Ordersheet'!BE15)","v":""},{"$f":"IF('1. Ordersheet'!BF15=\"\",\"\",'1. Ordersheet'!BF15)","v":""},{"$f":"IF('1. Ordersheet'!BG15=\"\",\"\",'1. Ordersheet'!BG15)","v":"ZWO"},{"$f":"IF('1. Ordersheet'!BH15=\"\",\"\",'1. Ordersheet'!BH15)","v":""},{"$f":"IF('1. Ordersheet'!BI15=\"\",\"\",'1. Ordersheet'!BI15)","v":""},{"$f":"IF('1. Ordersheet'!BJ15=\"\",\"\",'1. Ordersheet'!BJ15)","v":""},{"$f":"IF('1. Ordersheet'!BK15=\"\",\"\",'1. Ordersheet'!BK15)","v":""},{"$f":"IF('1. Ordersheet'!BL15=\"\",\"\",'1. Ordersheet'!BL15)","v":""}]
[{"$f":"IF('1. Ordersheet'!F16=\"\",\"\",'1. Ordersheet'!F16)","v":""},{"$f":"IF('1. Ordersheet'!G16=\"\",\"\",'1. Ordersheet'!G16)","v":""},{"$f":"IF('1. Ordersheet'!H16=\"\",\"\",'1. Ordersheet'!H16)","v":""},{"$f":"IF('1. Ordersheet'!I16=\"\",\"\",'1. Ordersheet'!I16)","v":""},{"$f":"IF('1. Ordersheet'!J16=\"\",\"\",'1. Ordersheet'!J16)","v":""},{"$f":"IF('1. Ordersheet'!K16=\"\",\"\",'1. Ordersheet'!K16)","v":""},{"$f":"IF('1. Ordersheet'!L16=\"\",\"\",'1. Ordersheet'!L16)","v":""},{"$f":"IF('1. Ordersheet'!M16=\"\",\"\",'1. Ordersheet'!M16)","v":""},{"$f":"IF('1. Ordersheet'!N16=\"\",\"\",'1. Ordersheet'!N16)","v":""},{"$f":"IF('1. Ordersheet'!O16=\"\",\"\",'1. Ordersheet'!O16)","v":{"$error":"#N/A"}},{"$f":"IF('1. Ordersheet'!P16=\"\",\"\",'1. Ordersheet'!P16)","v":{"$error":"#N/A"}},{"$f":"IF('1. Ordersheet'!Q16=\"\",\"\",'1. Ordersheet'!Q16)","v":""},{"$f":"IF('1. Ordersheet'!R16=\"\",\"\",'1. Ordersheet'!R16)","v":""},{"$f":"IF('1. Ordersheet'!S16=\"\",\"\",'1. Ordersheet'!S16)","v":""},{"$f":"IF('1. Ordersheet'!V16=\"\",\"\",'1. Ordersheet'!V16)","v":""},{"$f":"IF('1. Ordersheet'!W16=\"\",\"\",'1. Ordersheet'!W16)","v":""},{"$f":"IF('1. Ordersheet'!X16=\"\",\"\",'1. Ordersheet'!X16)","v":""},{"$f":"IF('1. Ordersheet'!Y16=\"\",\"\",'1. Ordersheet'!Y16)","v":""},{"$f":"IF('1. Ordersheet'!Z16=\"\",\"\",'1. Ordersheet'!Z16)","v":""},{"$f":"IF('1. Ordersheet'!AA16=\"\",\"\",'1. Ordersheet'!AA16)","v":""},null,{"$f":"IF('1. Ordersheet'!AS16=\"\",\"\",'1. Ordersheet'!AS16)","v":""},{"$f":"IF('1. Ordersheet'!AT16=\"\",\"\",'1. Ordersheet'!AT16)","v":""},null,null,null,null,null,null,null,{"$f":"IF('1. Ordersheet'!AX16=\"\",\"\",'1. Ordersheet'!AX16)","v":""},{"$f":"IF('1. Ordersheet'!AY16=\"\",\"\",'1. Ordersheet'!AY16)","v":""},{"$f":"IF('1. Ordersheet'!AZ16=\"\",\"\",'1. Ordersheet'!AZ16)","v":""},{"$f":"IF('1. Ordersheet'!BA16=\"\",\"\",'1. Ordersheet'!BA16)","v":""},{"$f":"IF('1. Ordersheet'!BC16=\"\",\"\",'1. Ordersheet'!BC16)","v":""},{"$f":"IF('1. Ordersheet'!BD16=\"\",\"\",'1. Ordersheet'!BD16)","v":""},{"$f":"IF('1. Ordersheet'!BE16=\"\",\"\",'1. Ordersheet'!BE16)","v":""},{"$f":"IF('1. Ordersheet'!BF16=\"\",\"\",'1. Ordersheet'!BF16)","v":""},{"$f":"IF('1. Ordersheet'!BG16=\"\",\"\",'1. Ordersheet'!BG16)","v":"ZWO"},{"$f":"IF('1. Ordersheet'!BH16=\"\",\"\",'1. Ordersheet'!BH16)","v":""},{"$f":"IF('1. Ordersheet'!BI16=\"\",\"\",'1. Ordersheet'!BI16)","v":""},{"$f":"IF('1. Ordersheet'!BJ16=\"\",\"\",'1. Ordersheet'!BJ16)","v":""},{"$f":"IF('1. Ordersheet'!BK16=\"\",\"\",'1. Ordersheet'!BK16)","v":""},{"$f":"IF('1. Ordersheet'!BL16=\"\",\"\",'1. Ordersheet'!BL16)","v":""}]
[{"$f":"IF('1. Ordersheet'!F17=\"\",\"\",'1. Ordersheet'!F17)","v":""},{"$f":"IF('1. Ordersheet'!G17=\"\",\"\",'1. Ordersheet'!G17)","v":""},{"$f":"IF('1. Ordersheet'!H17=\"\",\"\",'1. Ordersheet'!H17)","v":""},{"$f":"IF('1. Ordersheet'!I17=\"\",\"\",'1. Ordersheet'!I17)","v":""},{"$f":"IF('1. Ordersheet'!J17=\"\",\"\",'1. Ordersheet'!J17)","v":""},{"$f":"IF('1. Ordersheet'!K17=\"\",\"\",'1. Ordersheet'!K17)","v":""},{"$f":"IF('1. Ordersheet'!L17=\"\",\"\",'1. Ordersheet'!L17)","v":""},{"$f":"IF('1. Ordersheet'!M17=\"\",\"\",'1. Ordersheet'!M17)","v":""},{"$f":"IF('1. Ordersheet'!N17=\"\",\"\",'1. Ordersheet'!N17)","v":""},{"$f":"IF('1. Ordersheet'!O17=\"\",\"\",'1. Ordersheet'!O17)","v":{"$error":"#N/A"}},{"$f":"IF('1. Ordersheet'!P17=\"\",\"\",'1. Ordersheet'!P17)","v":{"$error":"#N/A"}},{"$f":"IF('1. Ordersheet'!Q17=\"\",\"\",'1. Ordersheet'!Q17)","v":""},{"$f":"IF('1. Ordersheet'!R17=\"\",\"\",'1. Ordersheet'!R17)","v":""},{"$f":"IF('1. Ordersheet'!S17=\"\",\"\",'1. Ordersheet'!S17)","v":""},{"$f":"IF('1. Ordersheet'!V17=\"\",\"\",'1. Ordersheet'!V17)","v":""},{"$f":"IF('1. Ordersheet'!W17=\"\",\"\",'1. Ordersheet'!W17)","v":""},{"$f":"IF('1. Ordersheet'!X17=\"\",\"\",'1. Ordersheet'!X17)","v":""},{"$f":"IF('1. Ordersheet'!Y17=\"\",\"\",'1. Ordersheet'!Y17)","v":""},{"$f":"IF('1. Ordersheet'!Z17=\"\",\"\",'1. Ordersheet'!Z17)","v":""},{"$f":"IF('1. Ordersheet'!AA17=\"\",\"\",'1. Ordersheet'!AA17)","v":""},null,{"$f":"IF('1. Ordersheet'!AS17=\"\",\"\",'1. Ordersheet'!AS17)","v":""},{"$f":"IF('1. Ordersheet'!AT17=\"\",\"\",'1. Ordersheet'!AT17)","v":""},null,null,null,null,null,null,null,{"$f":"IF('1. Ordersheet'!AX17=\"\",\"\",'1. Ordersheet'!AX17)","v":""},{"$f":"IF('1. Ordersheet'!AY17=\"\",\"\",'1. Ordersheet'!AY17)","v":""},{"$f":"IF('1. Ordersheet'!AZ17=\"\",\"\",'1. Ordersheet'!AZ17)","v":""},{"$f":"IF('1. Ordersheet'!BA17=\"\",\"\",'1. Ordersheet'!BA17)","v":""},{"$f":"IF('1. Ordersheet'!BC17=\"\",\"\",'1. Ordersheet'!BC17)","v":""},{"$f":"IF('1. Ordersheet'!BD17=\"\",\"\",'1. Ordersheet'!BD17)","v":""},{"$f":"IF('1. Ordersheet'!BE17=\"\",\"\",'1. Ordersheet'!BE17)","v":""},{"$f":"IF('1. Ordersheet'!BF17=\"\",\"\",'1. Ordersheet'!BF17)","v":""},{"$f":"IF('1. Ordersheet'!BG17=\"\",\"\",'1. Ordersheet'!BG17)","v":"ZWO"},{"$f":"IF('1. Ordersheet'!BH17=\"\",\"\",'1. Ordersheet'!BH17)","v":""},{"$f":"IF('1. Ordersheet'!BI17=\"\",\"\",'1. Ordersheet'!BI17)","v":""},{"$f":"IF('1. Ordersheet'!BJ17=\"\",\"\",'1. Ordersheet'!BJ17)","v":""},{"$f":"IF('1. Ordersheet'!BK17=\"\",\"\",'1. Ordersheet'!BK17)","v":""},{"$f":"IF('1. Ordersheet'!BL17=\"\",\"\",'1. Ordersheet'!BL17)","v":""}]
[{"$f":"IF('1. Ordersheet'!F18=\"\",\"\",'1. Ordersheet'!F18)","v":""},{"$f":"IF('1. Ordersheet'!G18=\"\",\"\",'1. Ordersheet'!G18)","v":""},{"$f":"IF('1. Ordersheet'!H18=\"\",\"\",'1. Ordersheet'!H18)","v":""},{"$f":"IF('1. Ordersheet'!I18=\"\",\"\",'1. Ordersheet'!I18)","v":""},{"$f":"IF('1. Ordersheet'!J18=\"\",\"\",'1. Ordersheet'!J18)","v":""},{"$f":"IF('1. Ordersheet'!K18=\"\",\"\",'1. Ordersheet'!K18)","v":""},{"$f":"IF('1. Ordersheet'!L18=\"\",\"\",'1. Ordersheet'!L18)","v":""},{"$f":"IF('1. Ordersheet'!M18=\"\",\"\",'1. Ordersheet'!M18)","v":""},{"$f":"IF('1. Ordersheet'!N18=\"\",\"\",'1. Ordersheet'!N18)","v":""},{"$f":"IF('1. Ordersheet'!O18=\"\",\"\",'1. Ordersheet'!O18)","v":{"$error":"#N/A"}},{"$f":"IF('1. Ordersheet'!P18=\"\",\"\",'1. Ordersheet'!P18)","v":{"$error":"#N/A"}},{"$f":"IF('1. Ordersheet'!Q18=\"\",\"\",'1. Ordersheet'!Q18)","v":""},{"$f":"IF('1. Ordersheet'!R18=\"\",\"\",'1. Ordersheet'!R18)","v":""},{"$f":"IF('1. Ordersheet'!S18=\"\",\"\",'1. Ordersheet'!S18)","v":""},{"$f":"IF('1. Ordersheet'!V18=\"\",\"\",'1. Ordersheet'!V18)","v":""},{"$f":"IF('1. Ordersheet'!W18=\"\",\"\",'1. Ordersheet'!W18)","v":""},{"$f":"IF('1. Ordersheet'!X18=\"\",\"\",'1. Ordersheet'!X18)","v":""},{"$f":"IF('1. Ordersheet'!Y18=\"\",\"\",'1. Ordersheet'!Y18)","v":""},{"$f":"IF('1. Ordersheet'!Z18=\"\",\"\",'1. Ordersheet'!Z18)","v":""},{"$f":"IF('1. Ordersheet'!AA18=\"\",\"\",'1. Ordersheet'!AA18)","v":""},null,{"$f":"IF('1. Ordersheet'!AS18=\"\",\"\",'1. Ordersheet'!AS18)","v":""},{"$f":"IF('1. Ordersheet'!AT18=\"\",\"\",'1. Ordersheet'!AT18)","v":""},null,null,null,null,null,null,null,{"$f":"IF('1. Ordersheet'!AX18=\"\",\"\",'1. Ordersheet'!AX18)","v":""},{"$f":"IF('1. Ordersheet'!AY18=\"\",\"\",'1. Ordersheet'!AY18)","v":""},{"$f":"IF('1. Ordersheet'!AZ18=\"\",\"\",'1. Ordersheet'!AZ18)","v":""},{"$f":"IF('1. Ordersheet'!BA18=\"\",\"\",'1. Ordersheet'!BA18)","v":""},{"$f":"IF('1. Ordersheet'!BC18=\"\",\"\",'1. Ordersheet'!BC18)","v":""},{"$f":"IF('1. Ordersheet'!BD18=\"\",\"\",'1. Ordersheet'!BD18)","v":""},{"$f":"IF('1. Ordersheet'!BE18=\"\",\"\",'1. Ordersheet'!BE18)","v":""},{"$f":"IF('1. Ordersheet'!BF18=\"\",\"\",'1. Ordersheet'!BF18)","v":""},{"$f":"IF('1. Ordersheet'!BG18=\"\",\"\",'1. Ordersheet'!BG18)","v":"ZWO"},{"$f":"IF('1. Ordersheet'!BH18=\"\",\"\",'1. Ordersheet'!BH18)","v":""},{"$f":"IF('1. Ordersheet'!BI18=\"\",\"\",'1. Ordersheet'!BI18)","v":""},{"$f":"IF('1. Ordersheet'!BJ18=\"\",\"\",'1. Ordersheet'!BJ18)","v":""},{"$f":"IF('1. Ordersheet'!BK18=\"\",\"\",'1. Ordersheet'!BK18)","v":""},{"$f":"IF('1. Ordersheet'!BL18=\"\",\"\",'1. Ordersheet'!BL18)","v":""}]
[{"$f":"IF('1. Ordersheet'!F19=\"\",\"\",'1. Ordersheet'!F19)","v":""},{"$f":"IF('1. Ordersheet'!G19=\"\",\"\",'1. Ordersheet'!G19)","v":""},{"$f":"IF('1. Ordersheet'!H19=\"\",\"\",'1. Ordersheet'!H19)","v":""},{"$f":"IF('1. Ordersheet'!I19=\"\",\"\",'1. Ordersheet'!I19)","v":""},{"$f":"IF('1. Ordersheet'!J19=\"\",\"\",'1. Ordersheet'!J19)","v":""},{"$f":"IF('1. Ordersheet'!K19=\"\",\"\",'1. Ordersheet'!K19)","v":""},{"$f":"IF('1. Ordersheet'!L19=\"\",\"\",'1. Ordersheet'!L19)","v":""},{"$f":"IF('1. Ordersheet'!M19=\"\",\"\",'1. Ordersheet'!M19)","v":""},{"$f":"IF('1. Ordersheet'!N19=\"\",\"\",'1. Ordersheet'!N19)","v":""},{"$f":"IF('1. Ordersheet'!O19=\"\",\"\",'1. Ordersheet'!O19)","v":{"$error":"#N/A"}},{"$f":"IF('1. Ordersheet'!P19=\"\",\"\",'1. Ordersheet'!P19)","v":{"$error":"#N/A"}},{"$f":"IF('1. Ordersheet'!Q19=\"\",\"\",'1. Ordersheet'!Q19)","v":""},{"$f":"IF('1. Ordersheet'!R19=\"\",\"\",'1. Ordersheet'!R19)","v":""},{"$f":"IF('1. Ordersheet'!S19=\"\",\"\",'1. Ordersheet'!S19)","v":""},{"$f":"IF('1. Ordersheet'!V19=\"\",\"\",'1. Ordersheet'!V19)","v":""},{"$f":"IF('1. Ordersheet'!W19=\"\",\"\",'1. Ordersheet'!W19)","v":""},{"$f":"IF('1. Ordersheet'!X19=\"\",\"\",'1. Ordersheet'!X19)","v":""},{"$f":"IF('1. Ordersheet'!Y19=\"\",\"\",'1. Ordersheet'!Y19)","v":""},{"$f":"IF('1. Ordersheet'!Z19=\"\",\"\",'1. Ordersheet'!Z19)","v":""},{"$f":"IF('1. Ordersheet'!AA19=\"\",\"\",'1. Ordersheet'!AA19)","v":""},null,{"$f":"IF('1. Ordersheet'!AS19=\"\",\"\",'1. Ordersheet'!AS19)","v":""},{"$f":"IF('1. Ordersheet'!AT19=\"\",\"\",'1. Ordersheet'!AT19)","v":""},null,null,null,null,null,null,null,{"$f":"IF('1. Ordersheet'!AX19=\"\",\"\",'1. Ordersheet'!AX19)","v":""},{"$f":"IF('1. Ordersheet'!AY19=\"\",\"\",'1. Ordersheet'!AY19)","v":""},{"$f":"IF('1. Ordersheet'!AZ19=\"\",\"\",'1. Ordersheet'!AZ19)","v":""},{"$f":"IF('1. Ordersheet'!BA19=\"\",\"\",'1. Ordersheet'!BA19)","v":""},{"$f":"IF('1. Ordersheet'!BC19=\"\",\"\",'1. Ordersheet'!BC19)","v":""},{"$f":"IF('1. Ordersheet'!BD19=\"\",\"\",'1. Ordersheet'!BD19)","v":""},{"$f":"IF('1. Ordersheet'!BE19=\"\",\"\",'1. Ordersheet'!BE19)","v":""},{"$f":"IF('1. Ordersheet'!BF19=\"\",\"\",'1. Ordersheet'!BF19)","v":""},{"$f":"IF('1. Ordersheet'!BG19=\"\",\"\",'1. Ordersheet'!BG19)","v":"ZWO"},{"$f":"IF('1. Ordersheet'!BH19=\"\",\"\",'1. Ordersheet'!BH19)","v":""},{"$f":"IF('1. Ordersheet'!BI19=\"\",\"\",'1. Ordersheet'!BI19)","v":""},{"$f":"IF('1. Ordersheet'!BJ19=\"\",\"\",'1. Ordersheet'!BJ19)","v":""},{"$f":"IF('1. Ordersheet'!BK19=\"\",\"\",'1. Ordersheet'!BK19)","v":""},{"$f":"IF('1. Ordersheet'!BL19=\"\",\"\",'1. Ordersheet'!BL19)","v":""}]
[{"$f":"IF('1. Ordersheet'!F20=\"\",\"\",'1. Ordersheet'!F20)","v":""},{"$f":"IF('1. Ordersheet'!G20=\"\",\"\",'1. Ordersheet'!G20)","v":""},{"$f":"IF('1. Ordersheet'!H20=\"\",\"\",'1. Ordersheet'!H20)","v":""},{"$f":"IF('1. Ordersheet'!I20=\"\",\"\",'1. Ordersheet'!I20)","v":""},{"$f":"IF('1. Ordersheet'!J20=\"\",\"\",'1. Ordersheet'!J20)","v":""},{"$f":"IF('1. Ordersheet'!K20=\"\",\"\",'1. Ordersheet'!K20)","v":""},{"$f":"IF('1. Ordersheet'!L20=\"\",\"\",'1. Ordersheet'!L20)","v":""},{"$f":"IF('1. Ordersheet'!M20=\"\",\"\",'1. Ordersheet'!M20)","v":""},{"$f":"IF('1. Ordersheet'!N20=\"\",\"\",'1. Ordersheet'!N20)","v":""},{"$f":"IF('1. Ordersheet'!O20=\"\",\"\",'1. Ordersheet'!O20)","v":{"$error":"#N/A"}},{"$f":"IF('1. Ordersheet'!P20=\"\",\"\",'1. Ordersheet'!P20)","v":{"$error":"#N/A"}},{"$f":"IF('1. Ordersheet'!Q20=\"\",\"\",'1. Ordersheet'!Q20)","v":""},{"$f":"IF('1. Ordersheet'!R20=\"\",\"\",'1. Ordersheet'!R20)","v":""},{"$f":"IF('1. Ordersheet'!S20=\"\",\"\",'1. Ordersheet'!S20)","v":""},{"$f":"IF('1. Ordersheet'!V20=\"\",\"\",'1. Ordersheet'!V20)","v":""},{"$f":"IF('1. Ordersheet'!W20=\"\",\"\",'1. Ordersheet'!W20)","v":""},{"$f":"IF('1. Ordersheet'!X20=\"\",\"\",'1. Ordersheet'!X20)","v":""},{"$f":"IF('1. Ordersheet'!Y20=\"\",\"\",'1. Ordersheet'!Y20)","v":""},{"$f":"IF('1. Ordersheet'!Z20=\"\",\"\",'1. Ordersheet'!Z20)","v":""},{"$f":"IF('1. Ordersheet'!AA20=\"\",\"\",'1. Ordersheet'!AA20)","v":""},null,{"$f":"IF('1. Ordersheet'!AS20=\"\",\"\",'1. Ordersheet'!AS20)","v":""},{"$f":"IF('1. Ordersheet'!AT20=\"\",\"\",'1. Ordersheet'!AT20)","v":""},null,null,null,null,null,null,null,{"$f":"IF('1. Ordersheet'!AX20=\"\",\"\",'1. Ordersheet'!AX20)","v":""},{"$f":"IF('1. Ordersheet'!AY20=\"\",\"\",'1. Ordersheet'!AY20)","v":""},{"$f":"IF('1. Ordersheet'!AZ20=\"\",\"\",'1. Ordersheet'!AZ20)","v":""},{"$f":"IF('1. Ordersheet'!BA20=\"\",\"\",'1. Ordersheet'!BA20)","v":""},{"$f":"IF('1. Ordersheet'!BC20=\"\",\"\",'1. Ordersheet'!BC20)","v":""},{"$f":"IF('1. Ordersheet'!BD20=\"\",\"\",'1. Ordersheet'!BD20)","v":""},{"$f":"IF('1. Ordersheet'!BE20=\"\",\"\",'1. Ordersheet'!BE20)","v":""},{"$f":"IF('1. Ordersheet'!BF20=\"\",\"\",'1. Ordersheet'!BF20)","v":""},{"$f":"IF('1. Ordersheet'!BG20=\"\",\"\",'1. Ordersheet'!BG20)","v":"ZWO"},{"$f":"IF('1. Ordersheet'!BH20=\"\",\"\",'1. Ordersheet'!BH20)","v":""},{"$f":"IF('1. Ordersheet'!BI20=\"\",\"\",'1. Ordersheet'!BI20)","v":""},{"$f":"IF('1. Ordersheet'!BJ20=\"\",\"\",'1. Ordersheet'!BJ20)","v":""},{"$f":"IF('1. Ordersheet'!BK20=\"\",\"\",'1. Ordersheet'!BK20)","v":""},{"$f":"IF('1. Ordersheet'!BL20=\"\",\"\",'1. Ordersheet'!BL20)","v":""}]
[{"$f":"IF('1. Ordersheet'!F21=\"\",\"\",'1. Ordersheet'!F21)","v":""},{"$f":"IF('1. Ordersheet'!G21=\"\",\"\",'1. Ordersheet'!G21)","v":""},{"$f":"IF('1. Ordersheet'!H21=\"\",\"\",'1. Ordersheet'!H21)","v":""},{"$f":"IF('1. Ordersheet'!I21=\"\",\"\",'1. Ordersheet'!I21)","v":""},{"$f":"IF('1. Ordersheet'!J21=\"\",\"\",'1. Ordersheet'!J21)","v":""},{"$f":"IF('1. Ordersheet'!K21=\"\",\"\",'1. Ordersheet'!K21)","v":""},{"$f":"IF('1. Ordersheet'!L21=\"\",\"\",'1. Ordersheet'!L21)","v":""},{"$f":"IF('1. Ordersheet'!M21=\"\",\"\",'1. Ordersheet'!M21)","v":""},{"$f":"IF('1. Ordersheet'!N21=\"\",\"\",'1. Ordersheet'!N21)","v":""},{"$f":"IF('1. Ordersheet'!O21=\"\",\"\",'1. Ordersheet'!O21)","v":{"$error":"#N/A"}},{"$f":"IF('1. Ordersheet'!P21=\"\",\"\",'1. Ordersheet'!P21)","v":{"$error":"#N/A"}},{"$f":"IF('1. Ordersheet'!Q21=\"\",\"\",'1. Ordersheet'!Q21)","v":""},{"$f":"IF('1. Ordersheet'!R21=\"\",\"\",'1. Ordersheet'!R21)","v":""},{"$f":"IF('1. Ordersheet'!S21=\"\",\"\",'1. Ordersheet'!S21)","v":""},{"$f":"IF('1. Ordersheet'!V21=\"\",\"\",'1. Ordersheet'!V21)","v":""},{"$f":"IF('1. Ordersheet'!W21=\"\",\"\",'1. Ordersheet'!W21)","v":""},{"$f":"IF('1. Ordersheet'!X21=\"\",\"\",'1. Ordersheet'!X21)","v":""},{"$f":"IF('1. Ordersheet'!Y21=\"\",\"\",'1. Ordersheet'!Y21)","v":""},{"$f":"IF('1. Ordersheet'!Z21=\"\",\"\",'1. Ordersheet'!Z21)","v":""},{"$f":"IF('1. Ordersheet'!AA21=\"\",\"\",'1. Ordersheet'!AA21)","v":""},null,{"$f":"IF('1. Ordersheet'!AS21=\"\",\"\",'1. Ordersheet'!AS21)","v":""},{"$f":"IF('1. Ordersheet'!AT21=\"\",\"\",'1. Ordersheet'!AT21)","v":""},null,null,null,null,null,null,null,{"$f":"IF('1. Ordersheet'!AX21=\"\",\"\",'1. Ordersheet'!AX21)","v":""},{"$f":"IF('1. Ordersheet'!AY21=\"\",\"\",'1. Ordersheet'!AY21)","v":""},{"$f":"IF('1. Ordersheet'!AZ21=\"\",\"\",'1. Ordersheet'!AZ21)","v":""},{"$f":"IF('1. Ordersheet'!BA21=\"\",\"\",'1. Ordersheet'!BA21)","v":""},{"$f":"IF('1. Ordersheet'!BC21=\"\",\"\",'1. Ordersheet'!BC21)","v":""},{"$f":"IF('1. Ordersheet'!BD21=\"\",\"\",'1. Ordersheet'!BD21)","v":""},{"$f":"IF('1. Ordersheet'!BE21=\"\",\"\",'1. Ordersheet'!BE21)","v":""},{"$f":"IF('1. Ordersheet'!BF21=\"\",\"\",'1. Ordersheet'!BF21)","v":""},{"$f":"IF('1. Ordersheet'!BG21=\"\",\"\",'1. Ordersheet'!BG21)","v":"ZWO"},{"$f":"IF('1. Ordersheet'!BH21=\"\",\"\",'1. Ordersheet'!BH21)","v":""},{"$f":"IF('1. Ordersheet'!BI21=\"\",\"\",'1. Ordersheet'!BI21)","v":""},{"$f":"IF('1. Ordersheet'!BJ21=\"\",\"\",'1. Ordersheet'!BJ21)","v":""},{"$f":"IF('1. Ordersheet'!BK21=\"\",\"\",'1. Ordersheet'!BK21)","v":""},{"$f":"IF('1. Ordersheet'!BL21=\"\",\"\",'1. Ordersheet'!BL21)","v":""}]
[{"$f":"IF('1. Ordersheet'!F22=\"\",\"\",'1. Ordersheet'!F22)","v":""},{"$f":"IF('1. Ordersheet'!G22=\"\",\"\",'1. Ordersheet'!G22)","v":""},{"$f":"IF('1. Ordersheet'!H22=\"\",\"\",'1. Ordersheet'!H22)","v":""},{"$f":"IF('1. Ordersheet'!I22=\"\",\"\",'1. Ordersheet'!I22)","v":""},{"$f":"IF('1. Ordersheet'!J22=\"\",\"\",'1. Ordersheet'!J22)","v":""},{"$f":"IF('1. Ordersheet'!K22=\"\",\"\",'1. Ordersheet'!K22)","v":""},{"$f":"IF('1. Ordersheet'!L22=\"\",\"\",'1. Ordersheet'!L22)","v":""},{"$f":"IF('1. Ordersheet'!M22=\"\",\"\",'1. Ordersheet'!M22)","v":""},{"$f":"IF('1. Ordersheet'!N22=\"\",\"\",'1. Ordersheet'!N22)","v":""},{"$f":"IF('1. Ordersheet'!O22=\"\",\"\",'1. Ordersheet'!O22)","v":{"$error":"#N/A"}},{"$f":"IF('1. Ordersheet'!P22=\"\",\"\",'1. Ordersheet'!P22)","v":{"$error":"#N/A"}},{"$f":"IF('1. Ordersheet'!Q22=\"\",\"\",'1. Ordersheet'!Q22)","v":""},{"$f":"IF('1. Ordersheet'!R22=\"\",\"\",'1. Ordersheet'!R22)","v":""},{"$f":"IF('1. Ordersheet'!S22=\"\",\"\",'1. Ordersheet'!S22)","v":""},{"$f":"IF('1. Ordersheet'!V22=\"\",\"\",'1. Ordersheet'!V22)","v":""},{"$f":"IF('1. Ordersheet'!W22=\"\",\"\",'1. Ordersheet'!W22)","v":""},{"$f":"IF('1. Ordersheet'!X22=\"\",\"\",'1. Ordersheet'!X22)","v":""},{"$f":"IF('1. Ordersheet'!Y22=\"\",\"\",'1. Ordersheet'!Y22)","v":""},{"$f":"IF('1. Ordersheet'!Z22=\"\",\"\",'1. Ordersheet'!Z22)","v":""},{"$f":"IF('1. Ordersheet'!AA22=\"\",\"\",'1. Ordersheet'!AA22)","v":""},null,{"$f":"IF('1. Ordersheet'!AS22=\"\",\"\",'1. Ordersheet'!AS22)","v":""},{"$f":"IF('1. Ordersheet'!AT22=\"\",\"\",'1. Ordersheet'!AT22)","v":""},null,null,null,null,null,null,null,{"$f":"IF('1. Ordersheet'!AX22=\"\",\"\",'1. Ordersheet'!AX22)","v":""},{"$f":"IF('1. Ordersheet'!AY22=\"\",\"\",'1. Ordersheet'!AY22)","v":""},{"$f":"IF('1. Ordersheet'!AZ22=\"\",\"\",'1. Ordersheet'!AZ22)","v":""},{"$f":"IF('1. Ordersheet'!BA22=\"\",\"\",'1. Ordersheet'!BA22)","v":""},{"$f":"IF('1. Ordersheet'!BC22=\"\",\"\",'1. Ordersheet'!BC22)","v":""},{"$f":"IF('1. Ordersheet'!BD22=\"\",\"\",'1. Ordersheet'!BD22)","v":""},{"$f":"IF('1. Ordersheet'!BE22=\"\",\"\",'1. Ordersheet'!BE22)","v":""},{"$f":"IF('1. Ordersheet'!BF22=\"\",\"\",'1. Ordersheet'!BF22)","v":""},{"$f":"IF('1. Ordersheet'!BG22=\"\",\"\",'1. Ordersheet'!BG22)","v":"ZWO"},{"$f":"IF('1. Ordersheet'!BH22=\"\",\"\",'1. Ordersheet'!BH22)","v":""},{"$f":"IF('1. Ordersheet'!BI22=\"\",\"\",'1. Ordersheet'!BI22)","v":""},{"$f":"IF('1. Ordersheet'!BJ22=\"\",\"\",'1. Ordersheet'!BJ22)","v":""},{"$f":"IF('1. Ordersheet'!BK22=\"\",\"\",'1. Ordersheet'!BK22)","v":""},{"$f":"IF('1. Ordersheet'!BL22=\"\",\"\",'1. Ordersheet'!BL22)","v":""}]
[{"$f":"IF('1. Ordersheet'!F23=\"\",\"\",'1. Ordersheet'!F23)","v":""},{"$f":"IF('1. Ordersheet'!G23=\"\",\"\",'1. Ordersheet'!G23)","v":""},{"$f":"IF('1. Ordersheet'!H23=\"\",\"\",'1. Ordersheet'!H23)","v":""},{"$f":"IF('1. Ordersheet'!I23=\"\",\"\",'1. Ordersheet'!I23)","v":""},{"$f":"IF('1. Ordersheet'!J23=\"\",\"\",'1. Ordersheet'!J23)","v":""},{"$f":"IF('1. Ordersheet'!K23=\"\",\"\",'1. Ordersheet'!K23)","v":""},{"$f":"IF('1. Ordersheet'!L23=\"\",\"\",'1. Ordersheet'!L23)","v":""},{"$f":"IF('1. Ordersheet'!M23=\"\",\"\",'1. Ordersheet'!M23)","v":""},{"$f":"IF('1. Ordersheet'!N23=\"\",\"\",'1. Ordersheet'!N23)","v":""},{"$f":"IF('1. Ordersheet'!O23=\"\",\"\",'1. Ordersheet'!O23)","v":{"$error":"#N/A"}},{"$f":"IF('1. Ordersheet'!P23=\"\",\"\",'1. Ordersheet'!P23)","v":{"$error":"#N/A"}},{"$f":"IF('1. Ordersheet'!Q23=\"\",\"\",'1. Ordersheet'!Q23)","v":""},{"$f":"IF('1. Ordersheet'!R23=\"\",\"\",'1. Ordersheet'!R23)","v":""},{"$f":"IF('1. Ordersheet'!S23=\"\",\"\",'1. Ordersheet'!S23)","v":""},{"$f":"IF('1. Ordersheet'!V23=\"\",\"\",'1. Ordersheet'!V23)","v":""},{"$f":"IF('1. Ordersheet'!W23=\"\",\"\",'1. Ordersheet'!W23)","v":""},{"$f":"IF('1. Ordersheet'!X23=\"\",\"\",'1. Ordersheet'!X23)","v":""},{"$f":"IF('1. Ordersheet'!Y23=\"\",\"\",'1. Ordersheet'!Y23)","v":""},{"$f":"IF('1. Ordersheet'!Z23=\"\",\"\",'1. Ordersheet'!Z23)","v":""},{"$f":"IF('1. Ordersheet'!AA23=\"\",\"\",'1. Ordersheet'!AA23)","v":""},null,{"$f":"IF('1. Ordersheet'!AS23=\"\",\"\",'1. Ordersheet'!AS23)","v":""},{"$f":"IF('1. Ordersheet'!AT23=\"\",\"\",'1. Ordersheet'!AT23)","v":""},null,null,null,null,null,null,null,{"$f":"IF('1. Ordersheet'!AX23=\"\",\"\",'1. Ordersheet'!AX23)","v":""},{"$f":"IF('1. Ordersheet'!AY23=\"\",\"\",'1. Ordersheet'!AY23)","v":""},{"$f":"IF('1. Ordersheet'!AZ23=\"\",\"\",'1. Ordersheet'!AZ23)","v":""},{"$f":"IF('1. Ordersheet'!BA23=\"\",\"\",'1. Ordersheet'!BA23)","v":""},{"$f":"IF('1. Ordersheet'!BC23=\"\",\"\",'1. Ordersheet'!BC23)","v":""},{"$f":"IF('1. Ordersheet'!BD23=\"\",\"\",'1. Ordersheet'!BD23)","v":""},{"$f":"IF('1. Ordersheet'!BE23=\"\",\"\",'1. Ordersheet'!BE23)","v":""},{"$f":"IF('1. Ordersheet'!BF23=\"\",\"\",'1. Ordersheet'!BF23)","v":""},{"$f":"IF('1. Ordersheet'!BG23=\"\",\"\",'1. Ordersheet'!BG23)","v":"ZWO"},{"$f":"IF('1. Ordersheet'!BH23=\"\",\"\",'1. Ordersheet'!BH23)","v":""},{"$f":"IF('1. Ordersheet'!BI23=\"\",\"\",'1. Ordersheet'!BI23)","v":""},{"$f":"IF('1. Ordersheet'!BJ23=\"\",\"\",'1. Ordersheet'!BJ23)","v":""},{"$f":"IF('1. Ordersheet'!BK23=\"\",\"\",'1. Ordersheet'!BK23)","v":""},{"$f":"IF('1. Ordersheet'!BL23=\"\",\"\",'1. Ordersheet'!BL23)","v":""}]
[{"$f":"IF('1. Ordersheet'!F24=\"\",\"\",'1. Ordersheet'!F24)","v":""},{"$f":"IF('1. Ordersheet'!G24=\"\",\"\",'1. Ordersheet'!G24)","v":""},{"$f":"IF('1. Ordersheet'!H24=\"\",\"\",'1. Ordersheet'!H24)","v":""},{"$f":"IF('1. Ordersheet'!I24=\"\",\"\",'1. Ordersheet'!I24)","v":""},{"$f":"IF('1. Ordersheet'!J24=\"\",\"\",'1. Ordersheet'!J24)","v":""},{"$f":"IF('1. Ordersheet'!K24=\"\",\"\",'1. Ordersheet'!K24)","v":""},{"$f":"IF('1. Ordersheet'!L24=\"\",\"\",'1. Ordersheet'!L24)","v":""},{"$f":"IF('1. Ordersheet'!M24=\"\",\"\",'1. Ordersheet'!M24)","v":""},{"$f":"IF('1. Ordersheet'!N24=\"\",\"\",'1. Ordersheet'!N24)","v":""},{"$f":"IF('1. Ordersheet'!O24=\"\",\"\",'1. Ordersheet'!O24)","v":{"$error":"#N/A"}},{"$f":"IF('1. Ordersheet'!P24=\"\",\"\",'1. Ordersheet'!P24)","v":{"$error":"#N/A"}},{"$f":"IF('1. Ordersheet'!Q24=\"\",\"\",'1. Ordersheet'!Q24)","v":""},{"$f":"IF('1. Ordersheet'!R24=\"\",\"\",'1. Ordersheet'!R24)","v":""},{"$f":"IF('1. Ordersheet'!S24=\"\",\"\",'1. Ordersheet'!S24)","v":""},{"$f":"IF('1. Ordersheet'!V24=\"\",\"\",'1. Ordersheet'!V24)","v":""},{"$f":"IF('1. Ordersheet'!W24=\"\",\"\",'1. Ordersheet'!W24)","v":""},{"$f":"IF('1. Ordersheet'!X24=\"\",\"\",'1. Ordersheet'!X24)","v":""},{"$f":"IF('1. Ordersheet'!Y24=\"\",\"\",'1. Ordersheet'!Y24)","v":""},{"$f":"IF('1. Ordersheet'!Z24=\"\",\"\",'1. Ordersheet'!Z24)","v":""},{"$f":"IF('1. Ordersheet'!AA24=\"\",\"\",'1. Ordersheet'!AA24)","v":""},null,{"$f":"IF('1. Ordersheet'!AS24=\"\",\"\",'1. Ordersheet'!AS24)","v":""},{"$f":"IF('1. Ordersheet'!AT24=\"\",\"\",'1. Ordersheet'!AT24)","v":""},null,null,null,null,null,null,null,{"$f":"IF('1. Ordersheet'!AX24=\"\",\"\",'1. Ordersheet'!AX24)","v":""},{"$f":"IF('1. Ordersheet'!AY24=\"\",\"\",'1. Ordersheet'!AY24)","v":""},{"$f":"IF('1. Ordersheet'!AZ24=\"\",\"\",'1. Ordersheet'!AZ24)","v":""},{"$f":"IF('1. Ordersheet'!BA24=\"\",\"\",'1. Ordersheet'!BA24)","v":""},{"$f":"IF('1. Ordersheet'!BC24=\"\",\"\",'1. Ordersheet'!BC24)","v":""},{"$f":"IF('1. Ordersheet'!BD24=\"\",\"\",'1. Ordersheet'!BD24)","v":""},{"$f":"IF('1. Ordersheet'!BE24=\"\",\"\",'1. Ordersheet'!BE24)","v":""},{"$f":"IF('1. Ordersheet'!BF24=\"\",\"\",'1. Ordersheet'!BF24)","v":""},{"$f":"IF('1. Ordersheet'!BG24=\"\",\"\",'1. Ordersheet'!BG24)","v":"ZWO"},{"$f":"IF('1. Ordersheet'!BH24=\"\",\"\",'1. Ordersheet'!BH24)","v":""},{"$f":"IF('1. Ordersheet'!BI24=\"\",\"\",'1. Ordersheet'!BI24)","v":""},{"$f":"IF('1. Ordersheet'!BJ24=\"\",\"\",'1. Ordersheet'!BJ24)","v":""},{"$f":"IF('1. Ordersheet'!BK24=\"\",\"\",'1. Ordersheet'!BK24)","v":""},{"$f":"IF('1. Ordersheet'!BL24=\"\",\"\",'1. Ordersheet'!BL24)","v":""}]
[{"$f":"IF('1. Ordersheet'!F25=\"\",\"\",'1. Ordersheet'!F25)","v":""},{"$f":"IF('1. Ordersheet'!G25=\"\",\"\",'1. Ordersheet'!G25)","v":""},{"$f":"IF('1. Ordersheet'!H25=\"\",\"\",'1. Ordersheet'!H25)","v":""},{"$f":"IF('1. Ordersheet'!I25=\"\",\"\",'1. Ordersheet'!I25)","v":""},{"$f":"IF('1. Ordersheet'!J25=\"\",\"\",'1. Ordersheet'!J25)","v":""},{"$f":"IF('1. Ordersheet'!K25=\"\",\"\",'1. Ordersheet'!K25)","v":""},{"$f":"IF('1. Ordersheet'!L25=\"\",\"\",'1. Ordersheet'!L25)","v":""},{"$f":"IF('1. Ordersheet'!M25=\"\",\"\",'1. Ordersheet'!M25)","v":""},{"$f":"IF('1. Ordersheet'!N25=\"\",\"\",'1. Ordersheet'!N25)","v":""},{"$f":"IF('1. Ordersheet'!O25=\"\",\"\",'1. Ordersheet'!O25)","v":{"$error":"#N/A"}},{"$f":"IF('1. Ordersheet'!P25=\"\",\"\",'1. Ordersheet'!P25)","v":{"$error":"#N/A"}},{"$f":"IF('1. Ordersheet'!Q25=\"\",\"\",'1. Ordersheet'!Q25)","v":""},{"$f":"IF('1. Ordersheet'!R25=\"\",\"\",'1. Ordersheet'!R25)","v":""},{"$f":"IF('1. Ordersheet'!S25=\"\",\"\",'1. Ordersheet'!S25)","v":""},{"$f":"IF('1. Ordersheet'!V25=\"\",\"\",'1. Ordersheet'!V25)","v":""},{"$f":"IF('1. Ordersheet'!W25=\"\",\"\",'1. Ordersheet'!W25)","v":""},{"$f":"IF('1. Ordersheet'!X25=\"\",\"\",'1. Ordersheet'!X25)","v":""},{"$f":"IF('1. Ordersheet'!Y25=\"\",\"\",'1. Ordersheet'!Y25)","v":""},{"$f":"IF('1. Ordersheet'!Z25=\"\",\"\",'1. Ordersheet'!Z25)","v":""},{"$f":"IF('1. Ordersheet'!AA25=\"\",\"\",'1. Ordersheet'!AA25)","v":""},null,{"$f":"IF('1. Ordersheet'!AS25=\"\",\"\",'1. Ordersheet'!AS25)","v":""},{"$f":"IF('1. Ordersheet'!AT25=\"\",\"\",'1. Ordersheet'!AT25)","v":""},null,null,null,null,null,null,null,{"$f":"IF('1. Ordersheet'!AX25=\"\",\"\",'1. Ordersheet'!AX25)","v":""},{"$f":"IF('1. Ordersheet'!AY25=\"\",\"\",'1. Ordersheet'!AY25)","v":""},{"$f":"IF('1. Ordersheet'!AZ25=\"\",\"\",'1. Ordersheet'!AZ25)","v":""},{"$f":"IF('1. Ordersheet'!BA25=\"\",\"\",'1. Ordersheet'!BA25)","v":""},{"$f":"IF('1. Ordersheet'!BC25=\"\",\"\",'1. Ordersheet'!BC25)","v":""},{"$f":"IF('1. Ordersheet'!BD25=\"\",\"\",'1. Ordersheet'!BD25)","v":""},{"$f":"IF('1. Ordersheet'!BE25=\"\",\"\",'1. Ordersheet'!BE25)","v":""},{"$f":"IF('1. Ordersheet'!BF25=\"\",\"\",'1. Ordersheet'!BF25)","v":""},{"$f":"IF('1. Ordersheet'!BG25=\"\",\"\",'1. Ordersheet'!BG25)","v":"ZWO"},{"$f":"IF('1. Ordersheet'!BH25=\"\",\"\",'1. Ordersheet'!BH25)","v":""},{"$f":"IF('1. Ordersheet'!BI25=\"\",\"\",'1. Ordersheet'!BI25)","v":""},{"$f":"IF('1. Ordersheet'!BJ25=\"\",\"\",'1. Ordersheet'!BJ25)","v":""},{"$f":"IF('1. Ordersheet'!BK25=\"\",\"\",'1. Ordersheet'!BK25)","v":""},{"$f":"IF('1. Ordersheet'!BL25=\"\",\"\",'1. Ordersheet'!BL25)","v":""}]
[{"$f":"IF('1. Ordersheet'!F26=\"\",\"\",'1. Ordersheet'!F26)","v":""},{"$f":"IF('1. Ordersheet'!G26=\"\",\"\",'1. Ordersheet'!G26)","v":""},{"$f":"IF('1. Ordersheet'!H26=\"\",\"\",'1. Ordersheet'!H26)","v":""},{"$f":"IF('1. Ordersheet'!I26=\"\",\"\",'1. Ordersheet'!I26)","v":""},{"$f":"IF('1. Ordersheet'!J26=\"\",\"\",'1. Ordersheet'!J26)","v":""},{"$f":"IF('1. Ordersheet'!K26=\"\",\"\",'1. Ordersheet'!K26)","v":""},{"$f":"IF('1. Ordersheet'!L26=\"\",\"\",'1. Ordersheet'!L26)","v":""},{"$f":"IF('1. Ordersheet'!M26=\"\",\"\",'1. Ordersheet'!M26)","v":""},{"$f":"IF('1. Ordersheet'!N26=\"\",\"\",'1. Ordersheet'!N26)","v":""},{"$f":"IF('1. Ordersheet'!O26=\"\",\"\",'1. Ordersheet'!O26)","v":{"$error":"#N/A"}},{"$f":"IF('1. Ordersheet'!P26=\"\",\"\",'1. Ordersheet'!P26)","v":{"$error":"#N/A"}},{"$f":"IF('1. Ordersheet'!Q26=\"\",\"\",'1. Ordersheet'!Q26)","v":""},{"$f":"IF('1. Ordersheet'!R26=\"\",\"\",'1. Ordersheet'!R26)","v":""},{"$f":"IF('1. Ordersheet'!S26=\"\",\"\",'1. Ordersheet'!S26)","v":""},{"$f":"IF('1. Ordersheet'!V26=\"\",\"\",'1. Ordersheet'!V26)","v":""},{"$f":"IF('1. Ordersheet'!W26=\"\",\"\",'1. Ordersheet'!W26)","v":""},{"$f":"IF('1. Ordersheet'!X26=\"\",\"\",'1. Ordersheet'!X26)","v":""},{"$f":"IF('1. Ordersheet'!Y26=\"\",\"\",'1. Ordersheet'!Y26)","v":""},{"$f":"IF('1. Ordersheet'!Z26=\"\",\"\",'1. Ordersheet'!Z26)","v":""},{"$f":"IF('1. Ordersheet'!AA26=\"\",\"\",'1. Ordersheet'!AA26)","v":""},null,{"$f":"IF('1. Ordersheet'!AS26=\"\",\"\",'1. Ordersheet'!AS26)","v":""},{"$f":"IF('1. Ordersheet'!AT26=\"\",\"\",'1. Ordersheet'!AT26)","v":""},null,null,null,null,null,null,null,{"$f":"IF('1. Ordersheet'!AX26=\"\",\"\",'1. Ordersheet'!AX26)","v":""},{"$f":"IF('1. Ordersheet'!AY26=\"\",\"\",'1. Ordersheet'!AY26)","v":""},{"$f":"IF('1. Ordersheet'!AZ26=\"\",\"\",'1. Ordersheet'!AZ26)","v":""},{"$f":"IF('1. Ordersheet'!BA26=\"\",\"\",'1. Ordersheet'!BA26)","v":""},{"$f":"IF('1. Ordersheet'!BC26=\"\",\"\",'1. Ordersheet'!BC26)","v":""},{"$f":"IF('1. Ordersheet'!BD26=\"\",\"\",'1. Ordersheet'!BD26)","v":""},{"$f":"IF('1. Ordersheet'!BE26=\"\",\"\",'1. Ordersheet'!BE26)","v":""},{"$f":"IF('1. Ordersheet'!BF26=\"\",\"\",'1. Ordersheet'!BF26)","v":""},{"$f":"IF('1. Ordersheet'!BG26=\"\",\"\",'1. Ordersheet'!BG26)","v":"ZWO"},{"$f":"IF('1. Ordersheet'!BH26=\"\",\"\",'1. Ordersheet'!BH26)","v":""},{"$f":"IF('1. Ordersheet'!BI26=\"\",\"\",'1. Ordersheet'!BI26)","v":""},{"$f":"IF('1. Ordersheet'!BJ26=\"\",\"\",'1. Ordersheet'!BJ26)","v":""},{"$f":"IF('1. Ordersheet'!BK26=\"\",\"\",'1. Ordersheet'!BK26)","v":""},{"$f":"IF('1. Ordersheet'!BL26=\"\",\"\",'1. Ordersheet'!BL26)","v":""}]
[{"$f":"IF('1. Ordersheet'!F27=\"\",\"\",'1. Ordersheet'!F27)","v":""},{"$f":"IF('1. Ordersheet'!G27=\"\",\"\",'1. Ordersheet'!G27)","v":""},{"$f":"IF('1. Ordersheet'!H27=\"\",\"\",'1. Ordersheet'!H27)","v":""},{"$f":"IF('1. Ordersheet'!I27=\"\",\"\",'1. Ordersheet'!I27)","v":""},{"$f":"IF('1. Ordersheet'!J27=\"\",\"\",'1. Ordersheet'!J27)","v":""},{"$f":"IF('1. Ordersheet'!K27=\"\",\"\",'1. Ordersheet'!K27)","v":""},{"$f":"IF('1. Ordersheet'!L27=\"\",\"\",'1. Ordersheet'!L27)","v":""},{"$f":"IF('1. Ordersheet'!M27=\"\",\"\",'1. Ordersheet'!M27)","v":""},{"$f":"IF('1. Ordersheet'!N27=\"\",\"\",'1. Ordersheet'!N27)","v":""},{"$f":"IF('1. Ordersheet'!O27=\"\",\"\",'1. Ordersheet'!O27)","v":{"$error":"#N/A"}},{"$f":"IF('1. Ordersheet'!P27=\"\",\"\",'1. Ordersheet'!P27)","v":{"$error":"#N/A"}},{"$f":"IF('1. Ordersheet'!Q27=\"\",\"\",'1. Ordersheet'!Q27)","v":""},{"$f":"IF('1. Ordersheet'!R27=\"\",\"\",'1. Ordersheet'!R27)","v":""},{"$f":"IF('1. Ordersheet'!S27=\"\",\"\",'1. Ordersheet'!S27)","v":""},{"$f":"IF('1. Ordersheet'!V27=\"\",\"\",'1. Ordersheet'!V27)","v":""},{"$f":"IF('1. Ordersheet'!W27=\"\",\"\",'1. Ordersheet'!W27)","v":""},{"$f":"IF('1. Ordersheet'!X27=\"\",\"\",'1. Ordersheet'!X27)","v":""},{"$f":"IF('1. Ordersheet'!Y27=\"\",\"\",'1. Ordersheet'!Y27)","v":""},{"$f":"IF('1. Ordersheet'!Z27=\"\",\"\",'1. Ordersheet'!Z27)","v":""},{"$f":"IF('1. Ordersheet'!AA27=\"\",\"\",'1. Ordersheet'!AA27)","v":""},null,{"$f":"IF('1. Ordersheet'!AS27=\"\",\"\",'1. Ordersheet'!AS27)","v":""},{"$f":"IF('1. Ordersheet'!AT27=\"\",\"\",'1. Ordersheet'!AT27)","v":""},null,null,null,null,null,null,null,{"$f":"IF('1. Ordersheet'!AX27=\"\",\"\",'1. Ordersheet'!AX27)","v":""},{"$f":"IF('1. Ordersheet'!AY27=\"\",\"\",'1. Ordersheet'!AY27)","v":""},{"$f":"IF('1. Ordersheet'!AZ27=\"\",\"\",'1. Ordersheet'!AZ27)","v":""},{"$f":"IF('1. Ordersheet'!BA27=\"\",\"\",'1. Ordersheet'!BA27)","v":""},{"$f":"IF('1. Ordersheet'!BC27=\"\",\"\",'1. Ordersheet'!BC27)","v":""},{"$f":"IF('1. Ordersheet'!BD27=\"\",\"\",'1. Ordersheet'!BD27)","v":""},{"$f":"IF('1. Ordersheet'!BE27=\"\",\"\",'1. Ordersheet'!BE27)","v":""},{"$f":"IF('1. Ordersheet'!BF27=\"\",\"\",'1. Ordersheet'!BF27)","v":""},{"$f":"IF('1. Ordersheet'!BG27=\"\",\"\",'1. Ordersheet'!BG27)","v":"ZWO"},{"$f":"IF('1. Ordersheet'!BH27=\"\",\"\",'1. Ordersheet'!BH27)","v":""},{"$f":"IF('1. Ordersheet'!BI27=\"\",\"\",'1. Ordersheet'!BI27)","v":""},{"$f":"IF('1. Ordersheet'!BJ27=\"\",\"\",'1. Ordersheet'!BJ27)","v":""},{"$f":"IF('1. Ordersheet'!BK27=\"\",\"\",'1. Ordersheet'!BK27)","v":""},{"$f":"IF('1. Ordersheet'!BL27=\"\",\"\",'1. Ordersheet'!BL27)","v":""}]
[{"$f":"IF('1. Ordersheet'!F28=\"\",\"\",'1. Ordersheet'!F28)","v":""},{"$f":"IF('1. Ordersheet'!G28=\"\",\"\",'1. Ordersheet'!G28)","v":""},{"$f":"IF('1. Ordersheet'!H28=\"\",\"\",'1. Ordersheet'!H28)","v":""},{"$f":"IF('1. Ordersheet'!I28=\"\",\"\",'1. Ordersheet'!I28)","v":""},{"$f":"IF('1. Ordersheet'!J28=\"\",\"\",'1. Ordersheet'!J28)","v":""},{"$f":"IF('1. Ordersheet'!K28=\"\",\"\",'1. Ordersheet'!K28)","v":""},{"$f":"IF('1. Ordersheet'!L28=\"\",\"\",'1. Ordersheet'!L28)","v":""},{"$f":"IF('1. Ordersheet'!M28=\"\",\"\",'1. Ordersheet'!M28)","v":""},{"$f":"IF('1. Ordersheet'!N28=\"\",\"\",'1. Ordersheet'!N28)","v":""},{"$f":"IF('1. Ordersheet'!O28=\"\",\"\",'1. Ordersheet'!O28)","v":{"$error":"#N/A"}},{"$f":"IF('1. Ordersheet'!P28=\"\",\"\",'1. Ordersheet'!P28)","v":{"$error":"#N/A"}},{"$f":"IF('1. Ordersheet'!Q28=\"\",\"\",'1. Ordersheet'!Q28)","v":""},{"$f":"IF('1. Ordersheet'!R28=\"\",\"\",'1. Ordersheet'!R28)","v":""},{"$f":"IF('1. Ordersheet'!S28=\"\",\"\",'1. Ordersheet'!S28)","v":""},{"$f":"IF('1. Ordersheet'!V28=\"\",\"\",'1. Ordersheet'!V28)","v":""},{"$f":"IF('1. Ordersheet'!W28=\"\",\"\",'1. Ordersheet'!W28)","v":""},{"$f":"IF('1. Ordersheet'!X28=\"\",\"\",'1. Ordersheet'!X28)","v":""},{"$f":"IF('1. Ordersheet'!Y28=\"\",\"\",'1. Ordersheet'!Y28)","v":""},{"$f":"IF('1. Ordersheet'!Z28=\"\",\"\",'1. Ordersheet'!Z28)","v":""},{"$f":"IF('1. Ordersheet'!AA28=\"\",\"\",'1. Ordersheet'!AA28)","v":""},null,{"$f":"IF('1. Ordersheet'!AS28=\"\",\"\",'1. Ordersheet'!AS28)","v":""},{"$f":"IF('1. Ordersheet'!AT28=\"\",\"\",'1. Ordersheet'!AT28)","v":""},null,null,null,null,null,null,null,{"$f":"IF('1. Ordersheet'!AX28=\"\",\"\",'1. Ordersheet'!AX28)","v":""},{"$f":"IF('1. Ordersheet'!AY28=\"\",\"\",'1. Ordersheet'!AY28)","v":""},{"$f":"IF('1. Ordersheet'!AZ28=\"\",\"\",'1. Ordersheet'!AZ28)","v":""},{"$f":"IF('1. Ordersheet'!BA28=\"\",\"\",'1. Ordersheet'!BA28)","v":""},{"$f":"IF('1. Ordersheet'!BC28=\"\",\"\",'1. Ordersheet'!BC28)","v":""},{"$f":"IF('1. Ordersheet'!BD28=\"\",\"\",'1. Ordersheet'!BD28)","v":""},{"$f":"IF('1. Ordersheet'!BE28=\"\",\"\",'1. Ordersheet'!BE28)","v":""},{"$f":"IF('1. Ordersheet'!BF28=\"\",\"\",'1. Ordersheet'!BF28)","v":""},{"$f":"IF('1. Ordersheet'!BG28=\"\",\"\",'1. Ordersheet'!BG28)","v":"ZWO"},{"$f":"IF('1. Ordersheet'!BH28=\"\",\"\",'1. Ordersheet'!BH28)","v":""},{"$f":"IF('1. Ordersheet'!BI28=\"\",\"\",'1. Ordersheet'!BI28)","v":""},{"$f":"IF('1. Ordersheet'!BJ28=\"\",\"\",'1. Ordersheet'!BJ28)","v":""},{"$f":"IF('1. Ordersheet'!BK28=\"\",\"\",'1. Ordersheet'!BK28)","v":""},{"$f":"IF('1. Ordersheet'!BL28=\"\",\"\",'1. Ordersheet'!BL28)","v":""}]
[{"$f":"IF('1. Ordersheet'!F29=\"\",\"\",'1. Ordersheet'!F29)","v":""},{"$f":"IF('1. Ordersheet'!G29=\"\",\"\",'1. Ordersheet'!G29)","v":""},{"$f":"IF('1. Ordersheet'!H29=\"\",\"\",'1. Ordersheet'!H29)","v":""},{"$f":"IF('1. Ordersheet'!I29=\"\",\"\",'1. Ordersheet'!I29)","v":""},{"$f":"IF('1. Ordersheet'!J29=\"\",\"\",'1. Ordersheet'!J29)","v":""},{"$f":"IF('1. Ordersheet'!K29=\"\",\"\",'1. Ordersheet'!K29)","v":""},{"$f":"IF('1. Ordersheet'!L29=\"\",\"\",'1. Ordersheet'!L29)","v":""},{"$f":"IF('1. Ordersheet'!M29=\"\",\"\",'1. Ordersheet'!M29)","v":""},{"$f":"IF('1. Ordersheet'!N29=\"\",\"\",'1. Ordersheet'!N29)","v":""},{"$f":"IF('1. Ordersheet'!O29=\"\",\"\",'1. Ordersheet'!O29)","v":{"$error":"#N/A"}},{"$f":"IF('1. Ordersheet'!P29=\"\",\"\",'1. Ordersheet'!P29)","v":{"$error":"#N/A"}},{"$f":"IF('1. Ordersheet'!Q29=\"\",\"\",'1. Ordersheet'!Q29)","v":""},{"$f":"IF('1. Ordersheet'!R29=\"\",\"\",'1. Ordersheet'!R29)","v":""},{"$f":"IF('1. Ordersheet'!S29=\"\",\"\",'1. Ordersheet'!S29)","v":""},{"$f":"IF('1. Ordersheet'!V29=\"\",\"\",'1. Ordersheet'!V29)","v":""},{"$f":"IF('1. Ordersheet'!W29=\"\",\"\",'1. Ordersheet'!W29)","v":""},{"$f":"IF('1. Ordersheet'!X29=\"\",\"\",'1. Ordersheet'!X29)","v":""},{"$f":"IF('1. Ordersheet'!Y29=\"\",\"\",'1. Ordersheet'!Y29)","v":""},{"$f":"IF('1. Ordersheet'!Z29=\"\",\"\",'1. Ordersheet'!Z29)","v":""},{"$f":"IF('1. Ordersheet'!AA29=\"\",\"\",'1. Ordersheet'!AA29)","v":""},null,{"$f":"IF('1. Ordersheet'!AS29=\"\",\"\",'1. Ordersheet'!AS29)","v":""},{"$f":"IF('1. Ordersheet'!AT29=\"\",\"\",'1. Ordersheet'!AT29)","v":""},null,null,null,null,null,null,null,{"$f":"IF('1. Ordersheet'!AX29=\"\",\"\",'1. Ordersheet'!AX29)","v":""},{"$f":"IF('1. Ordersheet'!AY29=\"\",\"\",'1. Ordersheet'!AY29)","v":""},{"$f":"IF('1. Ordersheet'!AZ29=\"\",\"\",'1. Ordersheet'!AZ29)","v":""},{"$f":"IF('1. Ordersheet'!BA29=\"\",\"\",'1. Ordersheet'!BA29)","v":""},{"$f":"IF('1. Ordersheet'!BC29=\"\",\"\",'1. Ordersheet'!BC29)","v":""},{"$f":"IF('1. Ordersheet'!BD29=\"\",\"\",'1. Ordersheet'!BD29)","v":""},{"$f":"IF('1. Ordersheet'!BE29=\"\",\"\",'1. Ordersheet'!BE29)","v":""},{"$f":"IF('1. Ordersheet'!BF29=\"\",\"\",'1. Ordersheet'!BF29)","v":""},{"$f":"IF('1. Ordersheet'!BG29=\"\",\"\",'1. Ordersheet'!BG29)","v":"ZWO"},{"$f":"IF('1. Ordersheet'!BH29=\"\",\"\",'1. Ordersheet'!BH29)","v":""},{"$f":"IF('1. Ordersheet'!BI29=\"\",\"\",'1. Ordersheet'!BI29)","v":""},{"$f":"IF('1. Ordersheet'!BJ29=\"\",\"\",'1. Ordersheet'!BJ29)","v":""},{"$f":"IF('1. Ordersheet'!BK29=\"\",\"\",'1. Ordersheet'!BK29)","v":""},{"$f":"IF('1. Ordersheet'!BL29=\"\",\"\",'1. Ordersheet'!BL29)","v":""}]
[{"$f":"IF('1. Ordersheet'!F30=\"\",\"\",'1. Ordersheet'!F30)","v":""},{"$f":"IF('1. Ordersheet'!G30=\"\",\"\",'1. Ordersheet'!G30)","v":""},{"$f":"IF('1. Ordersheet'!H30=\"\",\"\",'1. Ordersheet'!H30)","v":""},{"$f":"IF('1. Ordersheet'!I30=\"\",\"\",'1. Ordersheet'!I30)","v":""},{"$f":"IF('1. Ordersheet'!J30=\"\",\"\",'1. Ordersheet'!J30)","v":""},{"$f":"IF('1. Ordersheet'!K30=\"\",\"\",'1. Ordersheet'!K30)","v":""},{"$f":"IF('1. Ordersheet'!L30=\"\",\"\",'1. Ordersheet'!L30)","v":""},{"$f":"IF('1. Ordersheet'!M30=\"\",\"\",'1. Ordersheet'!M30)","v":""},{"$f":"IF('1. Ordersheet'!N30=\"\",\"\",'1. Ordersheet'!N30)","v":""},{"$f":"IF('1. Ordersheet'!O30=\"\",\"\",'1. Ordersheet'!O30)","v":{"$error":"#N/A"}},{"$f":"IF('1. Ordersheet'!P30=\"\",\"\",'1. Ordersheet'!P30)","v":{"$error":"#N/A"}},{"$f":"IF('1. Ordersheet'!Q30=\"\",\"\",'1. Ordersheet'!Q30)","v":""},{"$f":"IF('1. Ordersheet'!R30=\"\",\"\",'1. Ordersheet'!R30)","v":""},{"$f":"IF('1. Ordersheet'!S30=\"\",\"\",'1. Ordersheet'!S30)","v":""},{"$f":"IF('1. Ordersheet'!V30=\"\",\"\",'1. Ordersheet'!V30)","v":""},{"$f":"IF('1. Ordersheet'!W30=\"\",\"\",'1. Ordersheet'!W30)","v":""},{"$f":"IF('1. Ordersheet'!X30=\"\",\"\",'1. Ordersheet'!X30)","v":""},{"$f":"IF('1. Ordersheet'!Y30=\"\",\"\",'1. Ordersheet'!Y30)","v":""},{"$f":"IF('1. Ordersheet'!Z30=\"\",\"\",'1. Ordersheet'!Z30)","v":""},{"$f":"IF('1. Ordersheet'!AA30=\"\",\"\",'1. Ordersheet'!AA30)","v":""},null,{"$f":"IF('1. Ordersheet'!AS30=\"\",\"\",'1. Ordersheet'!AS30)","v":""},{"$f":"IF('1. Ordersheet'!AT30=\"\",\"\",'1. Ordersheet'!AT30)","v":""},null,null,null,null,null,null,null,{"$f":"IF('1. Ordersheet'!AX30=\"\",\"\",'1. Ordersheet'!AX30)","v":""},{"$f":"IF('1. Ordersheet'!AY30=\"\",\"\",'1. Ordersheet'!AY30)","v":""},{"$f":"IF('1. Ordersheet'!AZ30=\"\",\"\",'1. Ordersheet'!AZ30)","v":""},{"$f":"IF('1. Ordersheet'!BA30=\"\",\"\",'1. Ordersheet'!BA30)","v":""},{"$f":"IF('1. Ordersheet'!BC30=\"\",\"\",'1. Ordersheet'!BC30)","v":""},{"$f":"IF('1. Ordersheet'!BD30=\"\",\"\",'1. Ordersheet'!BD30)","v":""},{"$f":"IF('1. Ordersheet'!BE30=\"\",\"\",'1. Ordersheet'!BE30)","v":""},{"$f":"IF('1. Ordersheet'!BF30=\"\",\"\",'1. Ordersheet'!BF30)","v":""},{"$f":"IF('1. Ordersheet'!BG30=\"\",\"\",'1. Ordersheet'!BG30)","v":"ZWO"},{"$f":"IF('1. Ordersheet'!BH30=\"\",\"\",'1. Ordersheet'!BH30)","v":""},{"$f":"IF('1. Ordersheet'!BI30=\"\",\"\",'1. Ordersheet'!BI30)","v":""},{"$f":"IF('1. Ordersheet'!BJ30=\"\",\"\",'1. Ordersheet'!BJ30)","v":""},{"$f":"IF('1. Ordersheet'!BK30=\"\",\"\",'1. Ordersheet'!BK30)","v":""},{"$f":"IF('1. Ordersheet'!BL30=\"\",\"\",'1. Ordersheet'!BL30)","v":""}]
[{"$f":"IF('1. Ordersheet'!F31=\"\",\"\",'1. Ordersheet'!F31)","v":""},{"$f":"IF('1. Ordersheet'!G31=\"\",\"\",'1. Ordersheet'!G31)","v":""},{"$f":"IF('1. Ordersheet'!H31=\"\",\"\",'1. Ordersheet'!H31)","v":""},{"$f":"IF('1. Ordersheet'!I31=\"\",\"\",'1. Ordersheet'!I31)","v":""},{"$f":"IF('1. Ordersheet'!J31=\"\",\"\",'1. Ordersheet'!J31)","v":""},{"$f":"IF('1. Ordersheet'!K31=\"\",\"\",'1. Ordersheet'!K31)","v":""},{"$f":"IF('1. Ordersheet'!L31=\"\",\"\",'1. Ordersheet'!L31)","v":""},{"$f":"IF('1. Ordersheet'!M31=\"\",\"\",'1. Ordersheet'!M31)","v":""},{"$f":"IF('1. Ordersheet'!N31=\"\",\"\",'1. Ordersheet'!N31)","v":""},{"$f":"IF('1. Ordersheet'!O31=\"\",\"\",'1. Ordersheet'!O31)","v":{"$error":"#N/A"}},{"$f":"IF('1. Ordersheet'!P31=\"\",\"\",'1. Ordersheet'!P31)","v":{"$error":"#N/A"}},{"$f":"IF('1. Ordersheet'!Q31=\"\",\"\",'1. Ordersheet'!Q31)","v":""},{"$f":"IF('1. Ordersheet'!R31=\"\",\"\",'1. Ordersheet'!R31)","v":""},{"$f":"IF('1. Ordersheet'!S31=\"\",\"\",'1. Ordersheet'!S31)","v":""},{"$f":"IF('1. Ordersheet'!V31=\"\",\"\",'1. Ordersheet'!V31)","v":""},{"$f":"IF('1. Ordersheet'!W31=\"\",\"\",'1. Ordersheet'!W31)","v":""},{"$f":"IF('1. Ordersheet'!X31=\"\",\"\",'1. Ordersheet'!X31)","v":""},{"$f":"IF('1. Ordersheet'!Y31=\"\",\"\",'1. Ordersheet'!Y31)","v":""},{"$f":"IF('1. Ordersheet'!Z31=\"\",\"\",'1. Ordersheet'!Z31)","v":""},{"$f":"IF('1. Ordersheet'!AA31=\"\",\"\",'1. Ordersheet'!AA31)","v":""},null,{"$f":"IF('1. Ordersheet'!AS31=\"\",\"\",'1. Ordersheet'!AS31)","v":""},{"$f":"IF('1. Ordersheet'!AT31=\"\",\"\",'1. Ordersheet'!AT31)","v":""},null,null,null,null,null,null,null,{"$f":"IF('1. Ordersheet'!AX31=\"\",\"\",'1. Ordersheet'!AX31)","v":""},{"$f":"IF('1. Ordersheet'!AY31=\"\",\"\",'1. Ordersheet'!AY31)","v":""},{"$f":"IF('1. Ordersheet'!AZ31=\"\",\"\",'1. Ordersheet'!AZ31)","v":""},{"$f":"IF('1. Ordersheet'!BA31=\"\",\"\",'1. Ordersheet'!BA31)","v":""},{"$f":"IF('1. Ordersheet'!BC31=\"\",\"\",'1. Ordersheet'!BC31)","v":""},{"$f":"IF('1. Ordersheet'!BD31=\"\",\"\",'1. Ordersheet'!BD31)","v":""},{"$f":"IF('1. Ordersheet'!BE31=\"\",\"\",'1. Ordersheet'!BE31)","v":""},{"$f":"IF('1. Ordersheet'!BF31=\"\",\"\",'1. Ordersheet'!BF31)","v":""},{"$f":"IF('1. Ordersheet'!BG31=\"\",\"\",'1. Ordersheet'!BG31)","v":"ZWO"},{"$f":"IF('1. Ordersheet'!BH31=\"\",\"\",'1. Ordersheet'!BH31)","v":""},{"$f":"IF('1. Ordersheet'!BI31=\"\",\"\",'1. Ordersheet'!BI31)","v":""},{"$f":"IF('1. Ordersheet'!BJ31=\"\",\"\",'1. Ordersheet'!BJ31)","v":""},{"$f":"IF('1. Ordersheet'!BK31=\"\",\"\",'1. Ordersheet'!BK31)","v":""},{"$f":"IF('1. Ordersheet'!BL31=\"\",\"\",'1. Ordersheet'!BL31)","v":""}]
[{"$f":"IF('1. Ordersheet'!F32=\"\",\"\",'1. Ordersheet'!F32)","v":""},{"$f":"IF('1. Ordersheet'!G32=\"\",\"\",'1. Ordersheet'!G32)","v":""},{"$f":"IF('1. Ordersheet'!H32=\"\",\"\",'1. Ordersheet'!H32)","v":""},{"$f":"IF('1. Ordersheet'!I32=\"\",\"\",'1. Ordersheet'!I32)","v":""},{"$f":"IF('1. Ordersheet'!J32=\"\",\"\",'1. Ordersheet'!J32)","v":""},{"$f":"IF('1. Ordersheet'!K32=\"\",\"\",'1. Ordersheet'!K32)","v":""},{"$f":"IF('1. Ordersheet'!L32=\"\",\"\",'1. Ordersheet'!L32)","v":""},{"$f":"IF('1. Ordersheet'!M32=\"\",\"\",'1. Ordersheet'!M32)","v":""},{"$f":"IF('1. Ordersheet'!N32=\"\",\"\",'1. Ordersheet'!N32)","v":""},{"$f":"IF('1. Ordersheet'!O32=\"\",\"\",'1. Ordersheet'!O32)","v":{"$error":"#N/A"}},{"$f":"IF('1. Ordersheet'!P32=\"\",\"\",'1. Ordersheet'!P32)","v":{"$error":"#N/A"}},{"$f":"IF('1. Ordersheet'!Q32=\"\",\"\",'1. Ordersheet'!Q32)","v":""},{"$f":"IF('1. Ordersheet'!R32=\"\",\"\",'1. Ordersheet'!R32)","v":""},{"$f":"IF('1. Ordersheet'!S32=\"\",\"\",'1. Ordersheet'!S32)","v":""},{"$f":"IF('1. Ordersheet'!V32=\"\",\"\",'1. Ordersheet'!V32)","v":""},{"$f":"IF('1. Ordersheet'!W32=\"\",\"\",'1. Ordersheet'!W32)","v":""},{"$f":"IF('1. Ordersheet'!X32=\"\",\"\",'1. Ordersheet'!X32)","v":""},{"$f":"IF('1. Ordersheet'!Y32=\"\",\"\",'1. Ordersheet'!Y32)","v":""},{"$f":"IF('1. Ordersheet'!Z32=\"\",\"\",'1. Ordersheet'!Z32)","v":""},{"$f":"IF('1. Ordersheet'!AA32=\"\",\"\",'1. Ordersheet'!AA32)","v":""},null,{"$f":"IF('1. Ordersheet'!AS32=\"\",\"\",'1. Ordersheet'!AS32)","v":""},{"$f":"IF('1. Ordersheet'!AT32=\"\",\"\",'1. Ordersheet'!AT32)","v":""},null,null,null,null,null,null,null,{"$f":"IF('1. Ordersheet'!AX32=\"\",\"\",'1. Ordersheet'!AX32)","v":""},{"$f":"IF('1. Ordersheet'!AY32=\"\",\"\",'1. Ordersheet'!AY32)","v":""},{"$f":"IF('1. Ordersheet'!AZ32=\"\",\"\",'1. Ordersheet'!AZ32)","v":""},{"$f":"IF('1. Ordersheet'!BA32=\"\",\"\",'1. Ordersheet'!BA32)","v":""},{"$f":"IF('1. Ordersheet'!BC32=\"\",\"\",'1. Ordersheet'!BC32)","v":""},{"$f":"IF('1. Ordersheet'!BD32=\"\",\"\",'1. Ordersheet'!BD32)","v":""},{"$f":"IF('1. Ordersheet'!BE32=\"\",\"\",'1. Ordersheet'!BE32)","v":""},{"$f":"IF('1. Ordersheet'!BF32=\"\",\"\",'1. Ordersheet'!BF32)","v":""},{"$f":"IF('1. Ordersheet'!BG32=\"\",\"\",'1. Ordersheet'!BG32)","v":"ZWO"},{"$f":"IF('1. Ordersheet'!BH32=\"\",\"\",'1. Ordersheet'!BH32)","v":""},{"$f":"IF('1. Ordersheet'!BI32=\"\",\"\",'1. Ordersheet'!BI32)","v":""},{"$f":"IF('1. Ordersheet'!BJ32=\"\",\"\",'1. Ordersheet'!BJ32)","v":""},{"$f":"IF('1. Ordersheet'!BK32=\"\",\"\",'1. Ordersheet'!BK32)","v":""},{"$f":"IF('1. Ordersheet'!BL32=\"\",\"\",'1. Ordersheet'!BL32)","v":""}]
[{"$f":"IF('1. Ordersheet'!F33=\"\",\"\",'1. Ordersheet'!F33)","v":""},{"$f":"IF('1. Ordersheet'!G33=\"\",\"\",'1. Ordersheet'!G33)","v":""},{"$f":"IF('1. Ordersheet'!H33=\"\",\"\",'1. Ordersheet'!H33)","v":""},{"$f":"IF('1. Ordersheet'!I33=\"\",\"\",'1. Ordersheet'!I33)","v":""},{"$f":"IF('1. Ordersheet'!J33=\"\",\"\",'1. Ordersheet'!J33)","v":""},{"$f":"IF('1. Ordersheet'!K33=\"\",\"\",'1. Ordersheet'!K33)","v":""},{"$f":"IF('1. Ordersheet'!L33=\"\",\"\",'1. Ordersheet'!L33)","v":""},{"$f":"IF('1. Ordersheet'!M33=\"\",\"\",'1. Ordersheet'!M33)","v":""},{"$f":"IF('1. Ordersheet'!N33=\"\",\"\",'1. Ordersheet'!N33)","v":""},{"$f":"IF('1. Ordersheet'!O33=\"\",\"\",'1. Ordersheet'!O33)","v":{"$error":"#N/A"}},{"$f":"IF('1. Ordersheet'!P33=\"\",\"\",'1. Ordersheet'!P33)","v":{"$error":"#N/A"}},{"$f":"IF('1. Ordersheet'!Q33=\"\",\"\",'1. Ordersheet'!Q33)","v":""},{"$f":"IF('1. Ordersheet'!R33=\"\",\"\",'1. Ordersheet'!R33)","v":""},{"$f":"IF('1. Ordersheet'!S33=\"\",\"\",'1. Ordersheet'!S33)","v":""},{"$f":"IF('1. Ordersheet'!V33=\"\",\"\",'1. Ordersheet'!V33)","v":""},{"$f":"IF('1. Ordersheet'!W33=\"\",\"\",'1. Ordersheet'!W33)","v":""},{"$f":"IF('1. Ordersheet'!X33=\"\",\"\",'1. Ordersheet'!X33)","v":""},{"$f":"IF('1. Ordersheet'!Y33=\"\",\"\",'1. Ordersheet'!Y33)","v":""},{"$f":"IF('1. Ordersheet'!Z33=\"\",\"\",'1. Ordersheet'!Z33)","v":""},{"$f":"IF('1. Ordersheet'!AA33=\"\",\"\",'1. Ordersheet'!AA33)","v":""},null,{"$f":"IF('1. Ordersheet'!AS33=\"\",\"\",'1. Ordersheet'!AS33)","v":""},{"$f":"IF('1. Ordersheet'!AT33=\"\",\"\",'1. Ordersheet'!AT33)","v":""},null,null,null,null,null,null,null,{"$f":"IF('1. Ordersheet'!AX33=\"\",\"\",'1. Ordersheet'!AX33)","v":""},{"$f":"IF('1. Ordersheet'!AY33=\"\",\"\",'1. Ordersheet'!AY33)","v":""},{"$f":"IF('1. Ordersheet'!AZ33=\"\",\"\",'1. Ordersheet'!AZ33)","v":""},{"$f":"IF('1. Ordersheet'!BA33=\"\",\"\",'1. Ordersheet'!BA33)","v":""},{"$f":"IF('1. Ordersheet'!BC33=\"\",\"\",'1. Ordersheet'!BC33)","v":""},{"$f":"IF('1. Ordersheet'!BD33=\"\",\"\",'1. Ordersheet'!BD33)","v":""},{"$f":"IF('1. Ordersheet'!BE33=\"\",\"\",'1. Ordersheet'!BE33)","v":""},{"$f":"IF('1. Ordersheet'!BF33=\"\",\"\",'1. Ordersheet'!BF33)","v":""},{"$f":"IF('1. Ordersheet'!BG33=\"\",\"\",'1. Ordersheet'!BG33)","v":"ZWO"},{"$f":"IF('1. Ordersheet'!BH33=\"\",\"\",'1. Ordersheet'!BH33)","v":""},{"$f":"IF('1. Ordersheet'!BI33=\"\",\"\",'1. Ordersheet'!BI33)","v":""},{"$f":"IF('1. Ordersheet'!BJ33=\"\",\"\",'1. Ordersheet'!BJ33)","v":""},{"$f":"IF('1. Ordersheet'!BK33=\"\",\"\",'1. Ordersheet'!BK33)","v":""},{"$f":"IF('1. Ordersheet'!BL33=\"\",\"\",'1. Ordersheet'!BL33)","v":""}]
[{"$f":"IF('1. Ordersheet'!F34=\"\",\"\",'1. Ordersheet'!F34)","v":""},{"$f":"IF('1. Ordersheet'!G34=\"\",\"\",'1. Ordersheet'!G34)","v":""},{"$f":"IF('1. Ordersheet'!H34=\"\",\"\",'1. Ordersheet'!H34)","v":""},{"$f":"IF('1. Ordersheet'!I34=\"\",\"\",'1. Ordersheet'!I34)","v":""},{"$f":"IF('1. Ordersheet'!J34=\"\",\"\",'1. Ordersheet'!J34)","v":""},{"$f":"IF('1. Ordersheet'!K34=\"\",\"\",'1. Ordersheet'!K34)","v":""},{"$f":"IF('1. Ordersheet'!L34=\"\",\"\",'1. Ordersheet'!L34)","v":""},{"$f":"IF('1. Ordersheet'!M34=\"\",\"\",'1. Ordersheet'!M34)","v":""},{"$f":"IF('1. Ordersheet'!N34=\"\",\"\",'1. Ordersheet'!N34)","v":""},{"$f":"IF('1. Ordersheet'!O34=\"\",\"\",'1. Ordersheet'!O34)","v":{"$error":"#N/A"}},{"$f":"IF('1. Ordersheet'!P34=\"\",\"\",'1. Ordersheet'!P34)","v":{"$error":"#N/A"}},{"$f":"IF('1. Ordersheet'!Q34=\"\",\"\",'1. Ordersheet'!Q34)","v":""},{"$f":"IF('1. Ordersheet'!R34=\"\",\"\",'1. Ordersheet'!R34)","v":""},{"$f":"IF('1. Ordersheet'!S34=\"\",\"\",'1. Ordersheet'!S34)","v":""},{"$f":"IF('1. Ordersheet'!V34=\"\",\"\",'1. Ordersheet'!V34)","v":""},{"$f":"IF('1. Ordersheet'!W34=\"\",\"\",'1. Ordersheet'!W34)","v":""},{"$f":"IF('1. Ordersheet'!X34=\"\",\"\",'1. Ordersheet'!X34)","v":""},{"$f":"IF('1. Ordersheet'!Y34=\"\",\"\",'1. Ordersheet'!Y34)","v":""},{"$f":"IF('1. Ordersheet'!Z34=\"\",\"\",'1. Ordersheet'!Z34)","v":""},{"$f":"IF('1. Ordersheet'!AA34=\"\",\"\",'1. Ordersheet'!AA34)","v":""},null,{"$f":"IF('1. Ordersheet'!AS34=\"\",\"\",'1. Ordersheet'!AS34)","v":""},{"$f":"IF('1. Ordersheet'!AT34=\"\",\"\",'1. Ordersheet'!AT34)","v":""},null,null,null,null,null,null,null,{"$f":"IF('1. Ordersheet'!AX34=\"\",\"\",'1. Ordersheet'!AX34)","v":""},{"$f":"IF('1. Ordersheet'!AY34=\"\",\"\",'1. Ordersheet'!AY34)","v":""},{"$f":"IF('1. Ordersheet'!AZ34=\"\",\"\",'1. Ordersheet'!AZ34)","v":""},{"$f":"IF('1. Ordersheet'!BA34=\"\",\"\",'1. Ordersheet'!BA34)","v":""},{"$f":"IF('1. Ordersheet'!BC34=\"\",\"\",'1. Ordersheet'!BC34)","v":""},{"$f":"IF('1. Ordersheet'!BD34=\"\",\"\",'1. Ordersheet'!BD34)","v":""},{"$f":"IF('1. Ordersheet'!BE34=\"\",\"\",'1. Ordersheet'!BE34)","v":""},{"$f":"IF('1. Ordersheet'!BF34=\"\",\"\",'1. Ordersheet'!BF34)","v":""},{"$f":"IF('1. Ordersheet'!BG34=\"\",\"\",'1. Ordersheet'!BG34)","v":"ZWO"},{"$f":"IF('1. Ordersheet'!BH34=\"\",\"\",'1. Ordersheet'!BH34)","v":""},{"$f":"IF('1. Ordersheet'!BI34=\"\",\"\",'1. Ordersheet'!BI34)","v":""},{"$f":"IF('1. Ordersheet'!BJ34=\"\",\"\",'1. Ordersheet'!BJ34)","v":""},{"$f":"IF('1. Ordersheet'!BK34=\"\",\"\",'1. Ordersheet'!BK34)","v":""},{"$f":"IF('1. Ordersheet'!BL34=\"\",\"\",'1. Ordersheet'!BL34)","v":""}]
[{"$f":"IF('1. Ordersheet'!F35=\"\",\"\",'1. Ordersheet'!F35)","v":""},{"$f":"IF('1. Ordersheet'!G35=\"\",\"\",'1. Ordersheet'!G35)","v":""},{"$f":"IF('1. Ordersheet'!H35=\"\",\"\",'1. Ordersheet'!H35)","v":""},{"$f":"IF('1. Ordersheet'!I35=\"\",\"\",'1. Ordersheet'!I35)","v":""},{"$f":"IF('1. Ordersheet'!J35=\"\",\"\",'1. Ordersheet'!J35)","v":""},{"$f":"IF('1. Ordersheet'!K35=\"\",\"\",'1. Ordersheet'!K35)","v":""},{"$f":"IF('1. Ordersheet'!L35=\"\",\"\",'1. Ordersheet'!L35)","v":""},{"$f":"IF('1. Ordersheet'!M35=\"\",\"\",'1. Ordersheet'!M35)","v":""},{"$f":"IF('1. Ordersheet'!N35=\"\",\"\",'1. Ordersheet'!N35)","v":""},{"$f":"IF('1. Ordersheet'!O35=\"\",\"\",'1. Ordersheet'!O35)","v":{"$error":"#N/A"}},{"$f":"IF('1. Ordersheet'!P35=\"\",\"\",'1. Ordersheet'!P35)","v":{"$error":"#N/A"}},{"$f":"IF('1. Ordersheet'!Q35=\"\",\"\",'1. Ordersheet'!Q35)","v":""},{"$f":"IF('1. Ordersheet'!R35=\"\",\"\",'1. Ordersheet'!R35)","v":""},{"$f":"IF('1. Ordersheet'!S35=\"\",\"\",'1. Ordersheet'!S35)","v":""},{"$f":"IF('1. Ordersheet'!V35=\"\",\"\",'1. Ordersheet'!V35)","v":""},{"$f":"IF('1. Ordersheet'!W35=\"\",\"\",'1. Ordersheet'!W35)","v":""},{"$f":"IF('1. Ordersheet'!X35=\"\",\"\",'1. Ordersheet'!X35)","v":""},{"$f":"IF('1. Ordersheet'!Y35=\"\",\"\",'1. Ordersheet'!Y35)","v":""},{"$f":"IF('1. Ordersheet'!Z35=\"\",\"\",'1. Ordersheet'!Z35)","v":""},{"$f":"IF('1. Ordersheet'!AA35=\"\",\"\",'1. Ordersheet'!AA35)","v":""},null,{"$f":"IF('1. Ordersheet'!AS35=\"\",\"\",'1. Ordersheet'!AS35)","v":""},{"$f":"IF('1. Ordersheet'!AT35=\"\",\"\",'1. Ordersheet'!AT35)","v":""},null,null,null,null,null,null,null,{"$f":"IF('1. Ordersheet'!AX35=\"\",\"\",'1. Ordersheet'!AX35)","v":""},{"$f":"IF('1. Ordersheet'!AY35=\"\",\"\",'1. Ordersheet'!AY35)","v":""},{"$f":"IF('1. Ordersheet'!AZ35=\"\",\"\",'1. Ordersheet'!AZ35)","v":""},{"$f":"IF('1. Ordersheet'!BA35=\"\",\"\",'1. Ordersheet'!BA35)","v":""},{"$f":"IF('1. Ordersheet'!BC35=\"\",\"\",'1. Ordersheet'!BC35)","v":""},{"$f":"IF('1. Ordersheet'!BD35=\"\",\"\",'1. Ordersheet'!BD35)","v":""},{"$f":"IF('1. Ordersheet'!BE35=\"\",\"\",'1. Ordersheet'!BE35)","v":""},{"$f":"IF('1. Ordersheet'!BF35=\"\",\"\",'1. Ordersheet'!BF35)","v":""},{"$f":"IF('1. Ordersheet'!BG35=\"\",\"\",'1. Ordersheet'!BG35)","v":"ZWO"},{"$f":"IF('1. Ordersheet'!BH35=\"\",\"\",'1. Ordersheet'!BH35)","v":""},{"$f":"IF('1. Ordersheet'!BI35=\"\",\"\",'1. Ordersheet'!BI35)","v":""},{"$f":"IF('1. Ordersheet'!BJ35=\"\",\"\",'1. Ordersheet'!BJ35)","v":""},{"$f":"IF('1. Ordersheet'!BK35=\"\",\"\",'1. Ordersheet'!BK35)","v":""},{"$f":"IF('1. Ordersheet'!BL35=\"\",\"\",'1. Ordersheet'!BL35)","v":""}]
[{"$f":"IF('1. Ordersheet'!F36=\"\",\"\",'1. Ordersheet'!F36)","v":""},{"$f":"IF('1. Ordersheet'!G36=\"\",\"\",'1. Ordersheet'!G36)","v":""},{"$f":"IF('1. Ordersheet'!H36=\"\",\"\",'1. Ordersheet'!H36)","v":""},{"$f":"IF('1. Ordersheet'!I36=\"\",\"\",'1. Ordersheet'!I36)","v":""},{"$f":"IF('1. Ordersheet'!J36=\"\",\"\",'1. Ordersheet'!J36)","v":""},{"$f":"IF('1. Ordersheet'!K36=\"\",\"\",'1. Ordersheet'!K36)","v":""},{"$f":"IF('1. Ordersheet'!L36=\"\",\"\",'1. Ordersheet'!L36)","v":""},{"$f":"IF('1. Ordersheet'!M36=\"\",\"\",'1. Ordersheet'!M36)","v":""},{"$f":"IF('1. Ordersheet'!N36=\"\",\"\",'1. Ordersheet'!N36)","v":""},{"$f":"IF('1. Ordersheet'!O36=\"\",\"\",'1. Ordersheet'!O36)","v":{"$error":"#N/A"}},{"$f":"IF('1. Ordersheet'!P36=\"\",\"\",'1. Ordersheet'!P36)","v":{"$error":"#N/A"}},{"$f":"IF('1. Ordersheet'!Q36=\"\",\"\",'1. Ordersheet'!Q36)","v":""},{"$f":"IF('1. Ordersheet'!R36=\"\",\"\",'1. Ordersheet'!R36)","v":""},{"$f":"IF('1. Ordersheet'!S36=\"\",\"\",'1. Ordersheet'!S36)","v":""},{"$f":"IF('1. Ordersheet'!V36=\"\",\"\",'1. Ordersheet'!V36)","v":""},{"$f":"IF('1. Ordersheet'!W36=\"\",\"\",'1. Ordersheet'!W36)","v":""},{"$f":"IF('1. Ordersheet'!X36=\"\",\"\",'1. Ordersheet'!X36)","v":""},{"$f":"IF('1. Ordersheet'!Y36=\"\",\"\",'1. Ordersheet'!Y36)","v":""},{"$f":"IF('1. Ordersheet'!Z36=\"\",\"\",'1. Ordersheet'!Z36)","v":""},{"$f":"IF('1. Ordersheet'!AA36=\"\",\"\",'1. Ordersheet'!AA36)","v":""},null,{"$f":"IF('1. Ordersheet'!AS36=\"\",\"\",'1. Ordersheet'!AS36)","v":""},{"$f":"IF('1. Ordersheet'!AT36=\"\",\"\",'1. Ordersheet'!AT36)","v":""},null,null,null,null,null,null,null,{"$f":"IF('1. Ordersheet'!AX36=\"\",\"\",'1. Ordersheet'!AX36)","v":""},{"$f":"IF('1. Ordersheet'!AY36=\"\",\"\",'1. Ordersheet'!AY36)","v":""},{"$f":"IF('1. Ordersheet'!AZ36=\"\",\"\",'1. Ordersheet'!AZ36)","v":""},{"$f":"IF('1. Ordersheet'!BA36=\"\",\"\",'1. Ordersheet'!BA36)","v":""},{"$f":"IF('1. Ordersheet'!BC36=\"\",\"\",'1. Ordersheet'!BC36)","v":""},{"$f":"IF('1. Ordersheet'!BD36=\"\",\"\",'1. Ordersheet'!BD36)","v":""},{"$f":"IF('1. Ordersheet'!BE36=\"\",\"\",'1. Ordersheet'!BE36)","v":""},{"$f":"IF('1. Ordersheet'!BF36=\"\",\"\",'1. Ordersheet'!BF36)","v":""},{"$f":"IF('1. Ordersheet'!BG36=\"\",\"\",'1. Ordersheet'!BG36)","v":"ZWO"},{"$f":"IF('1. Ordersheet'!BH36=\"\",\"\",'1. Ordersheet'!BH36)","v":""},{"$f":"IF('1. Ordersheet'!BI36=\"\",\"\",'1. Ordersheet'!BI36)","v":""},{"$f":"IF('1. Ordersheet'!BJ36=\"\",\"\",'1. Ordersheet'!BJ36)","v":""},{"$f":"IF('1. Ordersheet'!BK36=\"\",\"\",'1. Ordersheet'!BK36)","v":""},{"$f":"IF('1. Ordersheet'!BL36=\"\",\"\",'1. Ordersheet'!BL36)","v":""}]
[{"$f":"IF('1. Ordersheet'!F37=\"\",\"\",'1. Ordersheet'!F37)","v":""},{"$f":"IF('1. Ordersheet'!G37=\"\",\"\",'1. Ordersheet'!G37)","v":""},{"$f":"IF('1. Ordersheet'!H37=\"\",\"\",'1. Ordersheet'!H37)","v":""},{"$f":"IF('1. Ordersheet'!I37=\"\",\"\",'1. Ordersheet'!I37)","v":""},{"$f":"IF('1. Ordersheet'!J37=\"\",\"\",'1. Ordersheet'!J37)","v":""},{"$f":"IF('1. Ordersheet'!K37=\"\",\"\",'1. Ordersheet'!K37)","v":""},{"$f":"IF('1. Ordersheet'!L37=\"\",\"\",'1. Ordersheet'!L37)","v":""},{"$f":"IF('1. Ordersheet'!M37=\"\",\"\",'1. Ordersheet'!M37)","v":""},{"$f":"IF('1. Ordersheet'!N37=\"\",\"\",'1. Ordersheet'!N37)","v":""},{"$f":"IF('1. Ordersheet'!O37=\"\",\"\",'1. Ordersheet'!O37)","v":{"$error":"#N/A"}},{"$f":"IF('1. Ordersheet'!P37=\"\",\"\",'1. Ordersheet'!P37)","v":{"$error":"#N/A"}},{"$f":"IF('1. Ordersheet'!Q37=\"\",\"\",'1. Ordersheet'!Q37)","v":""},{"$f":"IF('1. Ordersheet'!R37=\"\",\"\",'1. Ordersheet'!R37)","v":""},{"$f":"IF('1. Ordersheet'!S37=\"\",\"\",'1. Ordersheet'!S37)","v":""},{"$f":"IF('1. Ordersheet'!V37=\"\",\"\",'1. Ordersheet'!V37)","v":""},{"$f":"IF('1. Ordersheet'!W37=\"\",\"\",'1. Ordersheet'!W37)","v":""},{"$f":"IF('1. Ordersheet'!X37=\"\",\"\",'1. Ordersheet'!X37)","v":""},{"$f":"IF('1. Ordersheet'!Y37=\"\",\"\",'1. Ordersheet'!Y37)","v":""},{"$f":"IF('1. Ordersheet'!Z37=\"\",\"\",'1. Ordersheet'!Z37)","v":""},{"$f":"IF('1. Ordersheet'!AA37=\"\",\"\",'1. Ordersheet'!AA37)","v":""},null,{"$f":"IF('1. Ordersheet'!AS37=\"\",\"\",'1. Ordersheet'!AS37)","v":""},{"$f":"IF('1. Ordersheet'!AT37=\"\",\"\",'1. Ordersheet'!AT37)","v":""},null,null,null,null,null,null,null,{"$f":"IF('1. Ordersheet'!AX37=\"\",\"\",'1. Ordersheet'!AX37)","v":""},{"$f":"IF('1. Ordersheet'!AY37=\"\",\"\",'1. Ordersheet'!AY37)","v":""},{"$f":"IF('1. Ordersheet'!AZ37=\"\",\"\",'1. Ordersheet'!AZ37)","v":""},{"$f":"IF('1. Ordersheet'!BA37=\"\",\"\",'1. Ordersheet'!BA37)","v":""},{"$f":"IF('1. Ordersheet'!BC37=\"\",\"\",'1. Ordersheet'!BC37)","v":""},{"$f":"IF('1. Ordersheet'!BD37=\"\",\"\",'1. Ordersheet'!BD37)","v":""},{"$f":"IF('1. Ordersheet'!BE37=\"\",\"\",'1. Ordersheet'!BE37)","v":""},{"$f":"IF('1. Ordersheet'!BF37=\"\",\"\",'1. Ordersheet'!BF37)","v":""},{"$f":"IF('1. Ordersheet'!BG37=\"\",\"\",'1. Ordersheet'!BG37)","v":"ZWO"},{"$f":"IF('1. Ordersheet'!BH37=\"\",\"\",'1. Ordersheet'!BH37)","v":""},{"$f":"IF('1. Ordersheet'!BI37=\"\",\"\",'1. Ordersheet'!BI37)","v":""},{"$f":"IF('1. Ordersheet'!BJ37=\"\",\"\",'1. Ordersheet'!BJ37)","v":""},{"$f":"IF('1. Ordersheet'!BK37=\"\",\"\",'1. Ordersheet'!BK37)","v":""},{"$f":"IF('1. Ordersheet'!BL37=\"\",\"\",'1. Ordersheet'!BL37)","v":""}]
[{"$f":"IF('1. Ordersheet'!F38=\"\",\"\",'1. Ordersheet'!F38)","v":""},{"$f":"IF('1. Ordersheet'!G38=\"\",\"\",'1. Ordersheet'!G38)","v":""},{"$f":"IF('1. Ordersheet'!H38=\"\",\"\",'1. Ordersheet'!H38)","v":""},{"$f":"IF('1. Ordersheet'!I38=\"\",\"\",'1. Ordersheet'!I38)","v":""},{"$f":"IF('1. Ordersheet'!J38=\"\",\"\",'1. Ordersheet'!J38)","v":""},{"$f":"IF('1. Ordersheet'!K38=\"\",\"\",'1. Ordersheet'!K38)","v":""},{"$f":"IF('1. Ordersheet'!L38=\"\",\"\",'1. Ordersheet'!L38)","v":""},{"$f":"IF('1. Ordersheet'!M38=\"\",\"\",'1. Ordersheet'!M38)","v":""},{"$f":"IF('1. Ordersheet'!N38=\"\",\"\",'1. Ordersheet'!N38)","v":""},{"$f":"IF('1. Ordersheet'!O38=\"\",\"\",'1. Ordersheet'!O38)","v":{"$error":"#N/A"}},{"$f":"IF('1. Ordersheet'!P38=\"\",\"\",'1. Ordersheet'!P38)","v":{"$error":"#N/A"}},{"$f":"IF('1. Ordersheet'!Q38=\"\",\"\",'1. Ordersheet'!Q38)","v":""},{"$f":"IF('1. Ordersheet'!R38=\"\",\"\",'1. Ordersheet'!R38)","v":""},{"$f":"IF('1. Ordersheet'!S38=\"\",\"\",'1. Ordersheet'!S38)","v":""},{"$f":"IF('1. Ordersheet'!V38=\"\",\"\",'1. Ordersheet'!V38)","v":""},{"$f":"IF('1. Ordersheet'!W38=\"\",\"\",'1. Ordersheet'!W38)","v":""},{"$f":"IF('1. Ordersheet'!X38=\"\",\"\",'1. Ordersheet'!X38)","v":""},{"$f":"IF('1. Ordersheet'!Y38=\"\",\"\",'1. Ordersheet'!Y38)","v":""},{"$f":"IF('1. Ordersheet'!Z38=\"\",\"\",'1. Ordersheet'!Z38)","v":""},{"$f":"IF('1. Ordersheet'!AA38=\"\",\"\",'1. Ordersheet'!AA38)","v":""},null,{"$f":"IF('1. Ordersheet'!AS38=\"\",\"\",'1. Ordersheet'!AS38)","v":""},{"$f":"IF('1. Ordersheet'!AT38=\"\",\"\",'1. Ordersheet'!AT38)","v":""},null,null,null,null,null,null,null,{"$f":"IF('1. Ordersheet'!AX38=\"\",\"\",'1. Ordersheet'!AX38)","v":""},{"$f":"IF('1. Ordersheet'!AY38=\"\",\"\",'1. Ordersheet'!AY38)","v":""},{"$f":"IF('1. Ordersheet'!AZ38=\"\",\"\",'1. Ordersheet'!AZ38)","v":""},{"$f":"IF('1. Ordersheet'!BA38=\"\",\"\",'1. Ordersheet'!BA38)","v":""},{"$f":"IF('1. Ordersheet'!BC38=\"\",\"\",'1. Ordersheet'!BC38)","v":""},{"$f":"IF('1. Ordersheet'!BD38=\"\",\"\",'1. Ordersheet'!BD38)","v":""},{"$f":"IF('1. Ordersheet'!BE38=\"\",\"\",'1. Ordersheet'!BE38)","v":""},{"$f":"IF('1. Ordersheet'!BF38=\"\",\"\",'1. Ordersheet'!BF38)","v":""},{"$f":"IF('1. Ordersheet'!BG38=\"\",\"\",'1. Ordersheet'!BG38)","v":"ZWO"},{"$f":"IF('1. Ordersheet'!BH38=\"\",\"\",'1. Ordersheet'!BH38)","v":""},{"$f":"IF('1. Ordersheet'!BI38=\"\",\"\",'1. Ordersheet'!BI38)","v":""},{"$f":"IF('1. Ordersheet'!BJ38=\"\",\"\",'1. Ordersheet'!BJ38)","v":""},{"$f":"IF('1. Ordersheet'!BK38=\"\",\"\",'1. Ordersheet'!BK38)","v":""},{"$f":"IF('1. Ordersheet'!BL38=\"\",\"\",'1. Ordersheet'!BL38)","v":""}]
[{"$f":"IF('1. Ordersheet'!F39=\"\",\"\",'1. Ordersheet'!F39)","v":""},{"$f":"IF('1. Ordersheet'!G39=\"\",\"\",'1. Ordersheet'!G39)","v":""},{"$f":"IF('1. Ordersheet'!H39=\"\",\"\",'1. Ordersheet'!H39)","v":""},{"$f":"IF('1. Ordersheet'!I39=\"\",\"\",'1. Ordersheet'!I39)","v":""},{"$f":"IF('1. Ordersheet'!J39=\"\",\"\",'1. Ordersheet'!J39)","v":""},{"$f":"IF('1. Ordersheet'!K39=\"\",\"\",'1. Ordersheet'!K39)","v":""},{"$f":"IF('1. Ordersheet'!L39=\"\",\"\",'1. Ordersheet'!L39)","v":""},{"$f":"IF('1. Ordersheet'!M39=\"\",\"\",'1. Ordersheet'!M39)","v":""},{"$f":"IF('1. Ordersheet'!N39=\"\",\"\",'1. Ordersheet'!N39)","v":""},{"$f":"IF('1. Ordersheet'!O39=\"\",\"\",'1. Ordersheet'!O39)","v":{"$error":"#N/A"}},{"$f":"IF('1. Ordersheet'!P39=\"\",\"\",'1. Ordersheet'!P39)","v":{"$error":"#N/A"}},{"$f":"IF('1. Ordersheet'!Q39=\"\",\"\",'1. Ordersheet'!Q39)","v":""},{"$f":"IF('1. Ordersheet'!R39=\"\",\"\",'1. Ordersheet'!R39)","v":""},{"$f":"IF('1. Ordersheet'!S39=\"\",\"\",'1. Ordersheet'!S39)","v":""},{"$f":"IF('1. Ordersheet'!V39=\"\",\"\",'1. Ordersheet'!V39)","v":""},{"$f":"IF('1. Ordersheet'!W39=\"\",\"\",'1. Ordersheet'!W39)","v":""},{"$f":"IF('1. Ordersheet'!X39=\"\",\"\",'1. Ordersheet'!X39)","v":""},{"$f":"IF('1. Ordersheet'!Y39=\"\",\"\",'1. Ordersheet'!Y39)","v":""},{"$f":"IF('1. Ordersheet'!Z39=\"\",\"\",'1. Ordersheet'!Z39)","v":""},{"$f":"IF('1. Ordersheet'!AA39=\"\",\"\",'1. Ordersheet'!AA39)","v":""},null,{"$f":"IF('1. Ordersheet'!AS39=\"\",\"\",'1. Ordersheet'!AS39)","v":""},{"$f":"IF('1. Ordersheet'!AT39=\"\",\"\",'1. Ordersheet'!AT39)","v":""},null,null,null,null,null,null,null,{"$f":"IF('1. Ordersheet'!AX39=\"\",\"\",'1. Ordersheet'!AX39)","v":""},{"$f":"IF('1. Ordersheet'!AY39=\"\",\"\",'1. Ordersheet'!AY39)","v":""},{"$f":"IF('1. Ordersheet'!AZ39=\"\",\"\",'1. Ordersheet'!AZ39)","v":""},{"$f":"IF('1. Ordersheet'!BA39=\"\",\"\",'1. Ordersheet'!BA39)","v":""},{"$f":"IF('1. Ordersheet'!BC39=\"\",\"\",'1. Ordersheet'!BC39)","v":""},{"$f":"IF('1. Ordersheet'!BD39=\"\",\"\",'1. Ordersheet'!BD39)","v":""},{"$f":"IF('1. Ordersheet'!BE39=\"\",\"\",'1. Ordersheet'!BE39)","v":""},{"$f":"IF('1. Ordersheet'!BF39=\"\",\"\",'1. Ordersheet'!BF39)","v":""},{"$f":"IF('1. Ordersheet'!BG39=\"\",\"\",'1. Ordersheet'!BG39)","v":"ZWO"},{"$f":"IF('1. Ordersheet'!BH39=\"\",\"\",'1. Ordersheet'!BH39)","v":""},{"$f":"IF('1. Ordersheet'!BI39=\"\",\"\",'1. Ordersheet'!BI39)","v":""},{"$f":"IF('1. Ordersheet'!BJ39=\"\",\"\",'1. Ordersheet'!BJ39)","v":""},{"$f":"IF('1. Ordersheet'!BK39=\"\",\"\",'1. Ordersheet'!BK39)","v":""},{"$f":"IF('1. Ordersheet'!BL39=\"\",\"\",'1. Ordersheet'!BL39)","v":""}]
[{"$f":"IF('1. Ordersheet'!F40=\"\",\"\",'1. Ordersheet'!F40)","v":""},{"$f":"IF('1. Ordersheet'!G40=\"\",\"\",'1. Ordersheet'!G40)","v":""},{"$f":"IF('1. Ordersheet'!H40=\"\",\"\",'1. Ordersheet'!H40)","v":""},{"$f":"IF('1. Ordersheet'!I40=\"\",\"\",'1. Ordersheet'!I40)","v":""},{"$f":"IF('1. Ordersheet'!J40=\"\",\"\",'1. Ordersheet'!J40)","v":""},{"$f":"IF('1. Ordersheet'!K40=\"\",\"\",'1. Ordersheet'!K40)","v":""},{"$f":"IF('1. Ordersheet'!L40=\"\",\"\",'1. Ordersheet'!L40)","v":""},{"$f":"IF('1. Ordersheet'!M40=\"\",\"\",'1. Ordersheet'!M40)","v":""},{"$f":"IF('1. Ordersheet'!N40=\"\",\"\",'1. Ordersheet'!N40)","v":""},{"$f":"IF('1. Ordersheet'!O40=\"\",\"\",'1. Ordersheet'!O40)","v":{"$error":"#N/A"}},{"$f":"IF('1. Ordersheet'!P40=\"\",\"\",'1. Ordersheet'!P40)","v":{"$error":"#N/A"}},{"$f":"IF('1. Ordersheet'!Q40=\"\",\"\",'1. Ordersheet'!Q40)","v":""},{"$f":"IF('1. Ordersheet'!R40=\"\",\"\",'1. Ordersheet'!R40)","v":""},{"$f":"IF('1. Ordersheet'!S40=\"\",\"\",'1. Ordersheet'!S40)","v":""},{"$f":"IF('1. Ordersheet'!V40=\"\",\"\",'1. Ordersheet'!V40)","v":""},{"$f":"IF('1. Ordersheet'!W40=\"\",\"\",'1. Ordersheet'!W40)","v":""},{"$f":"IF('1. Ordersheet'!X40=\"\",\"\",'1. Ordersheet'!X40)","v":""},{"$f":"IF('1. Ordersheet'!Y40=\"\",\"\",'1. Ordersheet'!Y40)","v":""},{"$f":"IF('1. Ordersheet'!Z40=\"\",\"\",'1. Ordersheet'!Z40)","v":""},{"$f":"IF('1. Ordersheet'!AA40=\"\",\"\",'1. Ordersheet'!AA40)","v":""},null,{"$f":"IF('1. Ordersheet'!AS40=\"\",\"\",'1. Ordersheet'!AS40)","v":""},{"$f":"IF('1. Ordersheet'!AT40=\"\",\"\",'1. Ordersheet'!AT40)","v":""},null,null,null,null,null,null,null,{"$f":"IF('1. Ordersheet'!AX40=\"\",\"\",'1. Ordersheet'!AX40)","v":""},{"$f":"IF('1. Ordersheet'!AY40=\"\",\"\",'1. Ordersheet'!AY40)","v":""},{"$f":"IF('1. Ordersheet'!AZ40=\"\",\"\",'1. Ordersheet'!AZ40)","v":""},{"$f":"IF('1. Ordersheet'!BA40=\"\",\"\",'1. Ordersheet'!BA40)","v":""},{"$f":"IF('1. Ordersheet'!BC40=\"\",\"\",'1. Ordersheet'!BC40)","v":""},{"$f":"IF('1. Ordersheet'!BD40=\"\",\"\",'1. Ordersheet'!BD40)","v":""},{"$f":"IF('1. Ordersheet'!BE40=\"\",\"\",'1. Ordersheet'!BE40)","v":""},{"$f":"IF('1. Ordersheet'!BF40=\"\",\"\",'1. Ordersheet'!BF40)","v":""},{"$f":"IF('1. Ordersheet'!BG40=\"\",\"\",'1. Ordersheet'!BG40)","v":"ZWO"},{"$f":"IF('1. Ordersheet'!BH40=\"\",\"\",'1. Ordersheet'!BH40)","v":""},{"$f":"IF('1. Ordersheet'!BI40=\"\",\"\",'1. Ordersheet'!BI40)","v":""},{"$f":"IF('1. Ordersheet'!BJ40=\"\",\"\",'1. Ordersheet'!BJ40)","v":""},{"$f":"IF('1. Ordersheet'!BK40=\"\",\"\",'1. Ordersheet'!BK40)","v":""},{"$f":"IF('1. Ordersheet'!BL40=\"\",\"\",'1. Ordersheet'!BL40)","v":""}]
[{"$f":"IF('1. Ordersheet'!F41=\"\",\"\",'1. Ordersheet'!F41)","v":""},{"$f":"IF('1. Ordersheet'!G41=\"\",\"\",'1. Ordersheet'!G41)","v":""},{"$f":"IF('1. Ordersheet'!H41=\"\",\"\",'1. Ordersheet'!H41)","v":""},{"$f":"IF('1. Ordersheet'!I41=\"\",\"\",'1. Ordersheet'!I41)","v":""},{"$f":"IF('1. Ordersheet'!J41=\"\",\"\",'1. Ordersheet'!J41)","v":""},{"$f":"IF('1. Ordersheet'!K41=\"\",\"\",'1. Ordersheet'!K41)","v":""},{"$f":"IF('1. Ordersheet'!L41=\"\",\"\",'1. Ordersheet'!L41)","v":""},{"$f":"IF('1. Ordersheet'!M41=\"\",\"\",'1. Ordersheet'!M41)","v":""},{"$f":"IF('1. Ordersheet'!N41=\"\",\"\",'1. Ordersheet'!N41)","v":""},{"$f":"IF('1. Ordersheet'!O41=\"\",\"\",'1. Ordersheet'!O41)","v":{"$error":"#N/A"}},{"$f":"IF('1. Ordersheet'!P41=\"\",\"\",'1. Ordersheet'!P41)","v":{"$error":"#N/A"}},{"$f":"IF('1. Ordersheet'!Q41=\"\",\"\",'1. Ordersheet'!Q41)","v":""},{"$f":"IF('1. Ordersheet'!R41=\"\",\"\",'1. Ordersheet'!R41)","v":""},{"$f":"IF('1. Ordersheet'!S41=\"\",\"\",'1. Ordersheet'!S41)","v":""},{"$f":"IF('1. Ordersheet'!V41=\"\",\"\",'1. Ordersheet'!V41)","v":""},{"$f":"IF('1. Ordersheet'!W41=\"\",\"\",'1. Ordersheet'!W41)","v":""},{"$f":"IF('1. Ordersheet'!X41=\"\",\"\",'1. Ordersheet'!X41)","v":""},{"$f":"IF('1. Ordersheet'!Y41=\"\",\"\",'1. Ordersheet'!Y41)","v":""},{"$f":"IF('1. Ordersheet'!Z41=\"\",\"\",'1. Ordersheet'!Z41)","v":""},{"$f":"IF('1. Ordersheet'!AA41=\"\",\"\",'1. Ordersheet'!AA41)","v":""},null,{"$f":"IF('1. Ordersheet'!AS41=\"\",\"\",'1. Ordersheet'!AS41)","v":""},{"$f":"IF('1. Ordersheet'!AT41=\"\",\"\",'1. Ordersheet'!AT41)","v":""},null,null,null,null,null,null,null,{"$f":"IF('1. Ordersheet'!AX41=\"\",\"\",'1. Ordersheet'!AX41)","v":""},{"$f":"IF('1. Ordersheet'!AY41=\"\",\"\",'1. Ordersheet'!AY41)","v":""},{"$f":"IF('1. Ordersheet'!AZ41=\"\",\"\",'1. Ordersheet'!AZ41)","v":""},{"$f":"IF('1. Ordersheet'!BA41=\"\",\"\",'1. Ordersheet'!BA41)","v":""},{"$f":"IF('1. Ordersheet'!BC41=\"\",\"\",'1. Ordersheet'!BC41)","v":""},{"$f":"IF('1. Ordersheet'!BD41=\"\",\"\",'1. Ordersheet'!BD41)","v":""},{"$f":"IF('1. Ordersheet'!BE41=\"\",\"\",'1. Ordersheet'!BE41)","v":""},{"$f":"IF('1. Ordersheet'!BF41=\"\",\"\",'1. Ordersheet'!BF41)","v":""},{"$f":"IF('1. Ordersheet'!BG41=\"\",\"\",'1. Ordersheet'!BG41)","v":"ZWO"},{"$f":"IF('1. Ordersheet'!BH41=\"\",\"\",'1. Ordersheet'!BH41)","v":""},{"$f":"IF('1. Ordersheet'!BI41=\"\",\"\",'1. Ordersheet'!BI41)","v":""},{"$f":"IF('1. Ordersheet'!BJ41=\"\",\"\",'1. Ordersheet'!BJ41)","v":""},{"$f":"IF('1. Ordersheet'!BK41=\"\",\"\",'1. Ordersheet'!BK41)","v":""},{"$f":"IF('1. Ordersheet'!BL41=\"\",\"\",'1. Ordersheet'!BL41)","v":""}]
[{"$f":"IF('1. Ordersheet'!F42=\"\",\"\",'1. Ordersheet'!F42)","v":""},{"$f":"IF('1. Ordersheet'!G42=\"\",\"\",'1. Ordersheet'!G42)","v":""},{"$f":"IF('1. Ordersheet'!H42=\"\",\"\",'1. Ordersheet'!H42)","v":""},{"$f":"IF('1. Ordersheet'!I42=\"\",\"\",'1. Ordersheet'!I42)","v":""},{"$f":"IF('1. Ordersheet'!J42=\"\",\"\",'1. Ordersheet'!J42)","v":""},{"$f":"IF('1. Ordersheet'!K42=\"\",\"\",'1. Ordersheet'!K42)","v":""},{"$f":"IF('1. Ordersheet'!L42=\"\",\"\",'1. Ordersheet'!L42)","v":""},{"$f":"IF('1. Ordersheet'!M42=\"\",\"\",'1. Ordersheet'!M42)","v":""},{"$f":"IF('1. Ordersheet'!N42=\"\",\"\",'1. Ordersheet'!N42)","v":""},{"$f":"IF('1. Ordersheet'!O42=\"\",\"\",'1. Ordersheet'!O42)","v":{"$error":"#N/A"}},{"$f":"IF('1. Ordersheet'!P42=\"\",\"\",'1. Ordersheet'!P42)","v":{"$error":"#N/A"}},{"$f":"IF('1. Ordersheet'!Q42=\"\",\"\",'1. Ordersheet'!Q42)","v":""},{"$f":"IF('1. Ordersheet'!R42=\"\",\"\",'1. Ordersheet'!R42)","v":""},{"$f":"IF('1. Ordersheet'!S42=\"\",\"\",'1. Ordersheet'!S42)","v":""},{"$f":"IF('1. Ordersheet'!V42=\"\",\"\",'1. Ordersheet'!V42)","v":""},{"$f":"IF('1. Ordersheet'!W42=\"\",\"\",'1. Ordersheet'!W42)","v":""},{"$f":"IF('1. Ordersheet'!X42=\"\",\"\",'1. Ordersheet'!X42)","v":""},{"$f":"IF('1. Ordersheet'!Y42=\"\",\"\",'1. Ordersheet'!Y42)","v":""},{"$f":"IF('1. Ordersheet'!Z42=\"\",\"\",'1. Ordersheet'!Z42)","v":""},{"$f":"IF('1. Ordersheet'!AA42=\"\",\"\",'1. Ordersheet'!AA42)","v":""},null,{"$f":"IF('1. Ordersheet'!AS42=\"\",\"\",'1. Ordersheet'!AS42)","v":""},{"$f":"IF('1. Ordersheet'!AT42=\"\",\"\",'1. Ordersheet'!AT42)","v":""},null,null,null,null,null,null,null,{"$f":"IF('1. Ordersheet'!AX42=\"\",\"\",'1. Ordersheet'!AX42)","v":""},{"$f":"IF('1. Ordersheet'!AY42=\"\",\"\",'1. Ordersheet'!AY42)","v":""},{"$f":"IF('1. Ordersheet'!AZ42=\"\",\"\",'1. Ordersheet'!AZ42)","v":""},{"$f":"IF('1. Ordersheet'!BA42=\"\",\"\",'1. Ordersheet'!BA42)","v":""},{"$f":"IF('1. Ordersheet'!BC42=\"\",\"\",'1. Ordersheet'!BC42)","v":""},{"$f":"IF('1. Ordersheet'!BD42=\"\",\"\",'1. Ordersheet'!BD42)","v":""},{"$f":"IF('1. Ordersheet'!BE42=\"\",\"\",'1. Ordersheet'!BE42)","v":""},{"$f":"IF('1. Ordersheet'!BF42=\"\",\"\",'1. Ordersheet'!BF42)","v":""},{"$f":"IF('1. Ordersheet'!BG42=\"\",\"\",'1. Ordersheet'!BG42)","v":"ZWO"},{"$f":"IF('1. Ordersheet'!BH42=\"\",\"\",'1. Ordersheet'!BH42)","v":""},{"$f":"IF('1. Ordersheet'!BI42=\"\",\"\",'1. Ordersheet'!BI42)","v":""},{"$f":"IF('1. Ordersheet'!BJ42=\"\",\"\",'1. Ordersheet'!BJ42)","v":""},{"$f":"IF('1. Ordersheet'!BK42=\"\",\"\",'1. Ordersheet'!BK42)","v":""},{"$f":"IF('1. Ordersheet'!BL42=\"\",\"\",'1. Ordersheet'!BL42)","v":""}]
[{"$f":"IF('1. Ordersheet'!F43=\"\",\"\",'1. Ordersheet'!F43)","v":""},{"$f":"IF('1. Ordersheet'!G43=\"\",\"\",'1. Ordersheet'!G43)","v":""},{"$f":"IF('1. Ordersheet'!H43=\"\",\"\",'1. Ordersheet'!H43)","v":""},{"$f":"IF('1. Ordersheet'!I43=\"\",\"\",'1. Ordersheet'!I43)","v":""},{"$f":"IF('1. Ordersheet'!J43=\"\",\"\",'1. Ordersheet'!J43)","v":""},{"$f":"IF('1. Ordersheet'!K43=\"\",\"\",'1. Ordersheet'!K43)","v":""},{"$f":"IF('1. Ordersheet'!L43=\"\",\"\",'1. Ordersheet'!L43)","v":""},{"$f":"IF('1. Ordersheet'!M43=\"\",\"\",'1. Ordersheet'!M43)","v":""},{"$f":"IF('1. Ordersheet'!N43=\"\",\"\",'1. Ordersheet'!N43)","v":""},{"$f":"IF('1. Ordersheet'!O43=\"\",\"\",'1. Ordersheet'!O43)","v":{"$error":"#N/A"}},{"$f":"IF('1. Ordersheet'!P43=\"\",\"\",'1. Ordersheet'!P43)","v":{"$error":"#N/A"}},{"$f":"IF('1. Ordersheet'!Q43=\"\",\"\",'1. Ordersheet'!Q43)","v":""},{"$f":"IF('1. Ordersheet'!R43=\"\",\"\",'1. Ordersheet'!R43)","v":""},{"$f":"IF('1. Ordersheet'!S43=\"\",\"\",'1. Ordersheet'!S43)","v":""},{"$f":"IF('1. Ordersheet'!V43=\"\",\"\",'1. Ordersheet'!V43)","v":""},{"$f":"IF('1. Ordersheet'!W43=\"\",\"\",'1. Ordersheet'!W43)","v":""},{"$f":"IF('1. Ordersheet'!X43=\"\",\"\",'1. Ordersheet'!X43)","v":""},{"$f":"IF('1. Ordersheet'!Y43=\"\",\"\",'1. Ordersheet'!Y43)","v":""},{"$f":"IF('1. Ordersheet'!Z43=\"\",\"\",'1. Ordersheet'!Z43)","v":""},{"$f":"IF('1. Ordersheet'!AA43=\"\",\"\",'1. Ordersheet'!AA43)","v":""},null,{"$f":"IF('1. Ordersheet'!AS43=\"\",\"\",'1. Ordersheet'!AS43)","v":""},{"$f":"IF('1. Ordersheet'!AT43=\"\",\"\",'1. Ordersheet'!AT43)","v":""},null,null,null,null,null,null,null,{"$f":"IF('1. Ordersheet'!AX43=\"\",\"\",'1. Ordersheet'!AX43)","v":""},{"$f":"IF('1. Ordersheet'!AY43=\"\",\"\",'1. Ordersheet'!AY43)","v":""},{"$f":"IF('1. Ordersheet'!AZ43=\"\",\"\",'1. Ordersheet'!AZ43)","v":""},{"$f":"IF('1. Ordersheet'!BA43=\"\",\"\",'1. Ordersheet'!BA43)","v":""},{"$f":"IF('1. Ordersheet'!BC43=\"\",\"\",'1. Ordersheet'!BC43)","v":""},{"$f":"IF('1. Ordersheet'!BD43=\"\",\"\",'1. Ordersheet'!BD43)","v":""},{"$f":"IF('1. Ordersheet'!BE43=\"\",\"\",'1. Ordersheet'!BE43)","v":""},{"$f":"IF('1. Ordersheet'!BF43=\"\",\"\",'1. Ordersheet'!BF43)","v":""},{"$f":"IF('1. Ordersheet'!BG43=\"\",\"\",'1. Ordersheet'!BG43)","v":"ZWO"},{"$f":"IF('1. Ordersheet'!BH43=\"\",\"\",'1. Ordersheet'!BH43)","v":""},{"$f":"IF('1. Ordersheet'!BI43=\"\",\"\",'1. Ordersheet'!BI43)","v":""},{"$f":"IF('1. Ordersheet'!BJ43=\"\",\"\",'1. Ordersheet'!BJ43)","v":""},{"$f":"IF('1. Ordersheet'!BK43=\"\",\"\",'1. Ordersheet'!BK43)","v":""},{"$f":"IF('1. Ordersheet'!BL43=\"\",\"\",'1. Ordersheet'!BL43)","v":""}]
[{"$f":"IF('1. Ordersheet'!F44=\"\",\"\",'1. Ordersheet'!F44)","v":""},{"$f":"IF('1. Ordersheet'!G44=\"\",\"\",'1. Ordersheet'!G44)","v":""},{"$f":"IF('1. Ordersheet'!H44=\"\",\"\",'1. Ordersheet'!H44)","v":""},{"$f":"IF('1. Ordersheet'!I44=\"\",\"\",'1. Ordersheet'!I44)","v":""},{"$f":"IF('1. Ordersheet'!J44=\"\",\"\",'1. Ordersheet'!J44)","v":""},{"$f":"IF('1. Ordersheet'!K44=\"\",\"\",'1. Ordersheet'!K44)","v":""},{"$f":"IF('1. Ordersheet'!L44=\"\",\"\",'1. Ordersheet'!L44)","v":""},{"$f":"IF('1. Ordersheet'!M44=\"\",\"\",'1. Ordersheet'!M44)","v":""},{"$f":"IF('1. Ordersheet'!N44=\"\",\"\",'1. Ordersheet'!N44)","v":""},{"$f":"IF('1. Ordersheet'!O44=\"\",\"\",'1. Ordersheet'!O44)","v":{"$error":"#N/A"}},{"$f":"IF('1. Ordersheet'!P44=\"\",\"\",'1. Ordersheet'!P44)","v":{"$error":"#N/A"}},{"$f":"IF('1. Ordersheet'!Q44=\"\",\"\",'1. Ordersheet'!Q44)","v":""},{"$f":"IF('1. Ordersheet'!R44=\"\",\"\",'1. Ordersheet'!R44)","v":""},{"$f":"IF('1. Ordersheet'!S44=\"\",\"\",'1. Ordersheet'!S44)","v":""},{"$f":"IF('1. Ordersheet'!V44=\"\",\"\",'1. Ordersheet'!V44)","v":""},{"$f":"IF('1. Ordersheet'!W44=\"\",\"\",'1. Ordersheet'!W44)","v":""},{"$f":"IF('1. Ordersheet'!X44=\"\",\"\",'1. Ordersheet'!X44)","v":""},{"$f":"IF('1. Ordersheet'!Y44=\"\",\"\",'1. Ordersheet'!Y44)","v":""},{"$f":"IF('1. Ordersheet'!Z44=\"\",\"\",'1. Ordersheet'!Z44)","v":""},{"$f":"IF('1. Ordersheet'!AA44=\"\",\"\",'1. Ordersheet'!AA44)","v":""},null,{"$f":"IF('1. Ordersheet'!AS44=\"\",\"\",'1. Ordersheet'!AS44)","v":""},{"$f":"IF('1. Ordersheet'!AT44=\"\",\"\",'1. Ordersheet'!AT44)","v":""},null,null,null,null,null,null,null,{"$f":"IF('1. Ordersheet'!AX44=\"\",\"\",'1. Ordersheet'!AX44)","v":""},{"$f":"IF('1. Ordersheet'!AY44=\"\",\"\",'1. Ordersheet'!AY44)","v":""},{"$f":"IF('1. Ordersheet'!AZ44=\"\",\"\",'1. Ordersheet'!AZ44)","v":""},{"$f":"IF('1. Ordersheet'!BA44=\"\",\"\",'1. Ordersheet'!BA44)","v":""},{"$f":"IF('1. Ordersheet'!BC44=\"\",\"\",'1. Ordersheet'!BC44)","v":""},{"$f":"IF('1. Ordersheet'!BD44=\"\",\"\",'1. Ordersheet'!BD44)","v":""},{"$f":"IF('1. Ordersheet'!BE44=\"\",\"\",'1. Ordersheet'!BE44)","v":""},{"$f":"IF('1. Ordersheet'!BF44=\"\",\"\",'1. Ordersheet'!BF44)","v":""},{"$f":"IF('1. Ordersheet'!BG44=\"\",\"\",'1. Ordersheet'!BG44)","v":"ZWO"},{"$f":"IF('1. Ordersheet'!BH44=\"\",\"\",'1. Ordersheet'!BH44)","v":""},{"$f":"IF('1. Ordersheet'!BI44=\"\",\"\",'1. Ordersheet'!BI44)","v":""},{"$f":"IF('1. Ordersheet'!BJ44=\"\",\"\",'1. Ordersheet'!BJ44)","v":""},{"$f":"IF('1. Ordersheet'!BK44=\"\",\"\",'1. Ordersheet'!BK44)","v":""},{"$f":"IF('1. Ordersheet'!BL44=\"\",\"\",'1. Ordersheet'!BL44)","v":""}]
[{"$f":"IF('1. Ordersheet'!F45=\"\",\"\",'1. Ordersheet'!F45)","v":""},{"$f":"IF('1. Ordersheet'!G45=\"\",\"\",'1. Ordersheet'!G45)","v":""},{"$f":"IF('1. Ordersheet'!H45=\"\",\"\",'1. Ordersheet'!H45)","v":""},{"$f":"IF('1. Ordersheet'!I45=\"\",\"\",'1. Ordersheet'!I45)","v":""},{"$f":"IF('1. Ordersheet'!J45=\"\",\"\",'1. Ordersheet'!J45)","v":""},{"$f":"IF('1. Ordersheet'!K45=\"\",\"\",'1. Ordersheet'!K45)","v":""},{"$f":"IF('1. Ordersheet'!L45=\"\",\"\",'1. Ordersheet'!L45)","v":""},{"$f":"IF('1. Ordersheet'!M45=\"\",\"\",'1. Ordersheet'!M45)","v":""},{"$f":"IF('1. Ordersheet'!N45=\"\",\"\",'1. Ordersheet'!N45)","v":""},{"$f":"IF('1. Ordersheet'!O45=\"\",\"\",'1. Ordersheet'!O45)","v":{"$error":"#N/A"}},{"$f":"IF('1. Ordersheet'!P45=\"\",\"\",'1. Ordersheet'!P45)","v":{"$error":"#N/A"}},{"$f":"IF('1. Ordersheet'!Q45=\"\",\"\",'1. Ordersheet'!Q45)","v":""},{"$f":"IF('1. Ordersheet'!R45=\"\",\"\",'1. Ordersheet'!R45)","v":""},{"$f":"IF('1. Ordersheet'!S45=\"\",\"\",'1. Ordersheet'!S45)","v":""},{"$f":"IF('1. Ordersheet'!V45=\"\",\"\",'1. Ordersheet'!V45)","v":""},{"$f":"IF('1. Ordersheet'!W45=\"\",\"\",'1. Ordersheet'!W45)","v":""},{"$f":"IF('1. Ordersheet'!X45=\"\",\"\",'1. Ordersheet'!X45)","v":""},{"$f":"IF('1. Ordersheet'!Y45=\"\",\"\",'1. Ordersheet'!Y45)","v":""},{"$f":"IF('1. Ordersheet'!Z45=\"\",\"\",'1. Ordersheet'!Z45)","v":""},{"$f":"IF('1. Ordersheet'!AA45=\"\",\"\",'1. Ordersheet'!AA45)","v":""},null,{"$f":"IF('1. Ordersheet'!AS45=\"\",\"\",'1. Ordersheet'!AS45)","v":""},{"$f":"IF('1. Ordersheet'!AT45=\"\",\"\",'1. Ordersheet'!AT45)","v":""},null,null,null,null,null,null,null,{"$f":"IF('1. Ordersheet'!AX45=\"\",\"\",'1. Ordersheet'!AX45)","v":""},{"$f":"IF('1. Ordersheet'!AY45=\"\",\"\",'1. Ordersheet'!AY45)","v":""},{"$f":"IF('1. Ordersheet'!AZ45=\"\",\"\",'1. Ordersheet'!AZ45)","v":""},{"$f":"IF('1. Ordersheet'!BA45=\"\",\"\",'1. Ordersheet'!BA45)","v":""},{"$f":"IF('1. Ordersheet'!BC45=\"\",\"\",'1. Ordersheet'!BC45)","v":""},{"$f":"IF('1. Ordersheet'!BD45=\"\",\"\",'1. Ordersheet'!BD45)","v":""},{"$f":"IF('1. Ordersheet'!BE45=\"\",\"\",'1. Ordersheet'!BE45)","v":""},{"$f":"IF('1. Ordersheet'!BF45=\"\",\"\",'1. Ordersheet'!BF45)","v":""},{"$f":"IF('1. Ordersheet'!BG45=\"\",\"\",'1. Ordersheet'!BG45)","v":"ZWO"},{"$f":"IF('1. Ordersheet'!BH45=\"\",\"\",'1. Ordersheet'!BH45)","v":""},{"$f":"IF('1. Ordersheet'!BI45=\"\",\"\",'1. Ordersheet'!BI45)","v":""},{"$f":"IF('1. Ordersheet'!BJ45=\"\",\"\",'1. Ordersheet'!BJ45)","v":""},{"$f":"IF('1. Ordersheet'!BK45=\"\",\"\",'1. Ordersheet'!BK45)","v":""},{"$f":"IF('1. Ordersheet'!BL45=\"\",\"\",'1. Ordersheet'!BL45)","v":""}]
[{"$f":"IF('1. Ordersheet'!F46=\"\",\"\",'1. Ordersheet'!F46)","v":""},{"$f":"IF('1. Ordersheet'!G46=\"\",\"\",'1. Ordersheet'!G46)","v":""},{"$f":"IF('1. Ordersheet'!H46=\"\",\"\",'1. Ordersheet'!H46)","v":""},{"$f":"IF('1. Ordersheet'!I46=\"\",\"\",'1. Ordersheet'!I46)","v":""},{"$f":"IF('1. Ordersheet'!J46=\"\",\"\",'1. Ordersheet'!J46)","v":""},{"$f":"IF('1. Ordersheet'!K46=\"\",\"\",'1. Ordersheet'!K46)","v":""},{"$f":"IF('1. Ordersheet'!L46=\"\",\"\",'1. Ordersheet'!L46)","v":""},{"$f":"IF('1. Ordersheet'!M46=\"\",\"\",'1. Ordersheet'!M46)","v":""},{"$f":"IF('1. Ordersheet'!N46=\"\",\"\",'1. Ordersheet'!N46)","v":""},{"$f":"IF('1. Ordersheet'!O46=\"\",\"\",'1. Ordersheet'!O46)","v":{"$error":"#N/A"}},{"$f":"IF('1. Ordersheet'!P46=\"\",\"\",'1. Ordersheet'!P46)","v":{"$error":"#N/A"}},{"$f":"IF('1. Ordersheet'!Q46=\"\",\"\",'1. Ordersheet'!Q46)","v":""},{"$f":"IF('1. Ordersheet'!R46=\"\",\"\",'1. Ordersheet'!R46)","v":""},{"$f":"IF('1. Ordersheet'!S46=\"\",\"\",'1. Ordersheet'!S46)","v":""},{"$f":"IF('1. Ordersheet'!V46=\"\",\"\",'1. Ordersheet'!V46)","v":""},{"$f":"IF('1. Ordersheet'!W46=\"\",\"\",'1. Ordersheet'!W46)","v":""},{"$f":"IF('1. Ordersheet'!X46=\"\",\"\",'1. Ordersheet'!X46)","v":""},{"$f":"IF('1. Ordersheet'!Y46=\"\",\"\",'1. Ordersheet'!Y46)","v":""},{"$f":"IF('1. Ordersheet'!Z46=\"\",\"\",'1. Ordersheet'!Z46)","v":""},{"$f":"IF('1. Ordersheet'!AA46=\"\",\"\",'1. Ordersheet'!AA46)","v":""},null,{"$f":"IF('1. Ordersheet'!AS46=\"\",\"\",'1. Ordersheet'!AS46)","v":""},{"$f":"IF('1. Ordersheet'!AT46=\"\",\"\",'1. Ordersheet'!AT46)","v":""},null,null,null,null,null,null,null,{"$f":"IF('1. Ordersheet'!AX46=\"\",\"\",'1. Ordersheet'!AX46)","v":""},{"$f":"IF('1. Ordersheet'!AY46=\"\",\"\",'1. Ordersheet'!AY46)","v":""},{"$f":"IF('1. Ordersheet'!AZ46=\"\",\"\",'1. Ordersheet'!AZ46)","v":""},{"$f":"IF('1. Ordersheet'!BA46=\"\",\"\",'1. Ordersheet'!BA46)","v":""},{"$f":"IF('1. Ordersheet'!BC46=\"\",\"\",'1. Ordersheet'!BC46)","v":""},{"$f":"IF('1. Ordersheet'!BD46=\"\",\"\",'1. Ordersheet'!BD46)","v":""},{"$f":"IF('1. Ordersheet'!BE46=\"\",\"\",'1. Ordersheet'!BE46)","v":""},{"$f":"IF('1. Ordersheet'!BF46=\"\",\"\",'1. Ordersheet'!BF46)","v":""},{"$f":"IF('1. Ordersheet'!BG46=\"\",\"\",'1. Ordersheet'!BG46)","v":"ZWO"},{"$f":"IF('1. Ordersheet'!BH46=\"\",\"\",'1. Ordersheet'!BH46)","v":""},{"$f":"IF('1. Ordersheet'!BI46=\"\",\"\",'1. Ordersheet'!BI46)","v":""},{"$f":"IF('1. Ordersheet'!BJ46=\"\",\"\",'1. Ordersheet'!BJ46)","v":""},{"$f":"IF('1. Ordersheet'!BK46=\"\",\"\",'1. Ordersheet'!BK46)","v":""},{"$f":"IF('1. Ordersheet'!BL46=\"\",\"\",'1. Ordersheet'!BL46)","v":""}]
[{"$f":"IF('1. Ordersheet'!F47=\"\",\"\",'1. Ordersheet'!F47)","v":""},{"$f":"IF('1. Ordersheet'!G47=\"\",\"\",'1. Ordersheet'!G47)","v":""},{"$f":"IF('1. Ordersheet'!H47=\"\",\"\",'1. Ordersheet'!H47)","v":""},{"$f":"IF('1. Ordersheet'!I47=\"\",\"\",'1. Ordersheet'!I47)","v":""},{"$f":"IF('1. Ordersheet'!J47=\"\",\"\",'1. Ordersheet'!J47)","v":""},{"$f":"IF('1. Ordersheet'!K47=\"\",\"\",'1. Ordersheet'!K47)","v":""},{"$f":"IF('1. Ordersheet'!L47=\"\",\"\",'1. Ordersheet'!L47)","v":""},{"$f":"IF('1. Ordersheet'!M47=\"\",\"\",'1. Ordersheet'!M47)","v":""},{"$f":"IF('1. Ordersheet'!N47=\"\",\"\",'1. Ordersheet'!N47)","v":""},{"$f":"IF('1. Ordersheet'!O47=\"\",\"\",'1. Ordersheet'!O47)","v":{"$error":"#N/A"}},{"$f":"IF('1. Ordersheet'!P47=\"\",\"\",'1. Ordersheet'!P47)","v":{"$error":"#N/A"}},{"$f":"IF('1. Ordersheet'!Q47=\"\",\"\",'1. Ordersheet'!Q47)","v":""},{"$f":"IF('1. Ordersheet'!R47=\"\",\"\",'1. Ordersheet'!R47)","v":""},{"$f":"IF('1. Ordersheet'!S47=\"\",\"\",'1. Ordersheet'!S47)","v":""},{"$f":"IF('1. Ordersheet'!V47=\"\",\"\",'1. Ordersheet'!V47)","v":""},{"$f":"IF('1. Ordersheet'!W47=\"\",\"\",'1. Ordersheet'!W47)","v":""},{"$f":"IF('1. Ordersheet'!X47=\"\",\"\",'1. Ordersheet'!X47)","v":""},{"$f":"IF('1. Ordersheet'!Y47=\"\",\"\",'1. Ordersheet'!Y47)","v":""},{"$f":"IF('1. Ordersheet'!Z47=\"\",\"\",'1. Ordersheet'!Z47)","v":""},{"$f":"IF('1. Ordersheet'!AA47=\"\",\"\",'1. Ordersheet'!AA47)","v":""},null,{"$f":"IF('1. Ordersheet'!AS47=\"\",\"\",'1. Ordersheet'!AS47)","v":""},{"$f":"IF('1. Ordersheet'!AT47=\"\",\"\",'1. Ordersheet'!AT47)","v":""},null,null,null,null,null,null,null,{"$f":"IF('1. Ordersheet'!AX47=\"\",\"\",'1. Ordersheet'!AX47)","v":""},{"$f":"IF('1. Ordersheet'!AY47=\"\",\"\",'1. Ordersheet'!AY47)","v":""},{"$f":"IF('1. Ordersheet'!AZ47=\"\",\"\",'1. Ordersheet'!AZ47)","v":""},{"$f":"IF('1. Ordersheet'!BA47=\"\",\"\",'1. Ordersheet'!BA47)","v":""},{"$f":"IF('1. Ordersheet'!BC47=\"\",\"\",'1. Ordersheet'!BC47)","v":""},{"$f":"IF('1. Ordersheet'!BD47=\"\",\"\",'1. Ordersheet'!BD47)","v":""},{"$f":"IF('1. Ordersheet'!BE47=\"\",\"\",'1. Ordersheet'!BE47)","v":""},{"$f":"IF('1. Ordersheet'!BF47=\"\",\"\",'1. Ordersheet'!BF47)","v":""},{"$f":"IF('1. Ordersheet'!BG47=\"\",\"\",'1. Ordersheet'!BG47)","v":"ZWO"},{"$f":"IF('1. Ordersheet'!BH47=\"\",\"\",'1. Ordersheet'!BH47)","v":""},{"$f":"IF('1. Ordersheet'!BI47=\"\",\"\",'1. Ordersheet'!BI47)","v":""},{"$f":"IF('1. Ordersheet'!BJ47=\"\",\"\",'1. Ordersheet'!BJ47)","v":""},{"$f":"IF('1. Ordersheet'!BK47=\"\",\"\",'1. Ordersheet'!BK47)","v":""},{"$f":"IF('1. Ordersheet'!BL47=\"\",\"\",'1. Ordersheet'!BL47)","v":""}]
[{"$f":"IF('1. Ordersheet'!F48=\"\",\"\",'1. Ordersheet'!F48)","v":""},{"$f":"IF('1. Ordersheet'!G48=\"\",\"\",'1. Ordersheet'!G48)","v":""},{"$f":"IF('1. Ordersheet'!H48=\"\",\"\",'1. Ordersheet'!H48)","v":""},{"$f":"IF('1. Ordersheet'!I48=\"\",\"\",'1. Ordersheet'!I48)","v":""},{"$f":"IF('1. Ordersheet'!J48=\"\",\"\",'1. Ordersheet'!J48)","v":""},{"$f":"IF('1. Ordersheet'!K48=\"\",\"\",'1. Ordersheet'!K48)","v":""},{"$f":"IF('1. Ordersheet'!L48=\"\",\"\",'1. Ordersheet'!L48)","v":""},{"$f":"IF('1. Ordersheet'!M48=\"\",\"\",'1. Ordersheet'!M48)","v":""},{"$f":"IF('1. Ordersheet'!N48=\"\",\"\",'1. Ordersheet'!N48)","v":""},{"$f":"IF('1. Ordersheet'!O48=\"\",\"\",'1. Ordersheet'!O48)","v":{"$error":"#N/A"}},{"$f":"IF('1. Ordersheet'!P48=\"\",\"\",'1. Ordersheet'!P48)","v":{"$error":"#N/A"}},{"$f":"IF('1. Ordersheet'!Q48=\"\",\"\",'1. Ordersheet'!Q48)","v":""},{"$f":"IF('1. Ordersheet'!R48=\"\",\"\",'1. Ordersheet'!R48)","v":""},{"$f":"IF('1. Ordersheet'!S48=\"\",\"\",'1. Ordersheet'!S48)","v":""},{"$f":"IF('1. Ordersheet'!V48=\"\",\"\",'1. Ordersheet'!V48)","v":""},{"$f":"IF('1. Ordersheet'!W48=\"\",\"\",'1. Ordersheet'!W48)","v":""},{"$f":"IF('1. Ordersheet'!X48=\"\",\"\",'1. Ordersheet'!X48)","v":""},{"$f":"IF('1. Ordersheet'!Y48=\"\",\"\",'1. Ordersheet'!Y48)","v":""},{"$f":"IF('1. Ordersheet'!Z48=\"\",\"\",'1. Ordersheet'!Z48)","v":""},{"$f":"IF('1. Ordersheet'!AA48=\"\",\"\",'1. Ordersheet'!AA48)","v":""},null,{"$f":"IF('1. Ordersheet'!AS48=\"\",\"\",'1. Ordersheet'!AS48)","v":""},{"$f":"IF('1. Ordersheet'!AT48=\"\",\"\",'1. Ordersheet'!AT48)","v":""},null,null,null,null,null,null,null,{"$f":"IF('1. Ordersheet'!AX48=\"\",\"\",'1. Ordersheet'!AX48)","v":""},{"$f":"IF('1. Ordersheet'!AY48=\"\",\"\",'1. Ordersheet'!AY48)","v":""},{"$f":"IF('1. Ordersheet'!AZ48=\"\",\"\",'1. Ordersheet'!AZ48)","v":""},{"$f":"IF('1. Ordersheet'!BA48=\"\",\"\",'1. Ordersheet'!BA48)","v":""},{"$f":"IF('1. Ordersheet'!BC48=\"\",\"\",'1. Ordersheet'!BC48)","v":""},{"$f":"IF('1. Ordersheet'!BD48=\"\",\"\",'1. Ordersheet'!BD48)","v":""},{"$f":"IF('1. Ordersheet'!BE48=\"\",\"\",'1. Ordersheet'!BE48)","v":""},{"$f":"IF('1. Ordersheet'!BF48=\"\",\"\",'1. Ordersheet'!BF48)","v":""},{"$f":"IF('1. Ordersheet'!BG48=\"\",\"\",'1. Ordersheet'!BG48)","v":"ZWO"},{"$f":"IF('1. Ordersheet'!BH48=\"\",\"\",'1. Ordersheet'!BH48)","v":""},{"$f":"IF('1. Ordersheet'!BI48=\"\",\"\",'1. Ordersheet'!BI48)","v":""},{"$f":"IF('1. Ordersheet'!BJ48=\"\",\"\",'1. Ordersheet'!BJ48)","v":""},{"$f":"IF('1. Ordersheet'!BK48=\"\",\"\",'1. Ordersheet'!BK48)","v":""},{"$f":"IF('1. Ordersheet'!BL48=\"\",\"\",'1. Ordersheet'!BL48)","v":""}]
[{"$f":"IF('1. Ordersheet'!F49=\"\",\"\",'1. Ordersheet'!F49)","v":""},{"$f":"IF('1. Ordersheet'!G49=\"\",\"\",'1. Ordersheet'!G49)","v":""},{"$f":"IF('1. Ordersheet'!H49=\"\",\"\",'1. Ordersheet'!H49)","v":""},{"$f":"IF('1. Ordersheet'!I49=\"\",\"\",'1. Ordersheet'!I49)","v":""},{"$f":"IF('1. Ordersheet'!J49=\"\",\"\",'1. Ordersheet'!J49)","v":""},{"$f":"IF('1. Ordersheet'!K49=\"\",\"\",'1. Ordersheet'!K49)","v":""},{"$f":"IF('1. Ordersheet'!L49=\"\",\"\",'1. Ordersheet'!L49)","v":""},{"$f":"IF('1. Ordersheet'!M49=\"\",\"\",'1. Ordersheet'!M49)","v":""},{"$f":"IF('1. Ordersheet'!N49=\"\",\"\",'1. Ordersheet'!N49)","v":""},{"$f":"IF('1. Ordersheet'!O49=\"\",\"\",'1. Ordersheet'!O49)","v":{"$error":"#N/A"}},{"$f":"IF('1. Ordersheet'!P49=\"\",\"\",'1. Ordersheet'!P49)","v":{"$error":"#N/A"}},{"$f":"IF('1. Ordersheet'!Q49=\"\",\"\",'1. Ordersheet'!Q49)","v":""},{"$f":"IF('1. Ordersheet'!R49=\"\",\"\",'1. Ordersheet'!R49)","v":""},{"$f":"IF('1. Ordersheet'!S49=\"\",\"\",'1. Ordersheet'!S49)","v":""},{"$f":"IF('1. Ordersheet'!V49=\"\",\"\",'1. Ordersheet'!V49)","v":""},{"$f":"IF('1. Ordersheet'!W49=\"\",\"\",'1. Ordersheet'!W49)","v":""},{"$f":"IF('1. Ordersheet'!X49=\"\",\"\",'1. Ordersheet'!X49)","v":""},{"$f":"IF('1. Ordersheet'!Y49=\"\",\"\",'1. Ordersheet'!Y49)","v":""},{"$f":"IF('1. Ordersheet'!Z49=\"\",\"\",'1. Ordersheet'!Z49)","v":""},{"$f":"IF('1. Ordersheet'!AA49=\"\",\"\",'1. Ordersheet'!AA49)","v":""},null,{"$f":"IF('1. Ordersheet'!AS49=\"\",\"\",'1. Ordersheet'!AS49)","v":""},{"$f":"IF('1. Ordersheet'!AT49=\"\",\"\",'1. Ordersheet'!AT49)","v":""},null,null,null,null,null,null,null,{"$f":"IF('1. Ordersheet'!AX49=\"\",\"\",'1. Ordersheet'!AX49)","v":""},{"$f":"IF('1. Ordersheet'!AY49=\"\",\"\",'1. Ordersheet'!AY49)","v":""},{"$f":"IF('1. Ordersheet'!AZ49=\"\",\"\",'1. Ordersheet'!AZ49)","v":""},{"$f":"IF('1. Ordersheet'!BA49=\"\",\"\",'1. Ordersheet'!BA49)","v":""},{"$f":"IF('1. Ordersheet'!BC49=\"\",\"\",'1. Ordersheet'!BC49)","v":""},{"$f":"IF('1. Ordersheet'!BD49=\"\",\"\",'1. Ordersheet'!BD49)","v":""},{"$f":"IF('1. Ordersheet'!BE49=\"\",\"\",'1. Ordersheet'!BE49)","v":""},{"$f":"IF('1. Ordersheet'!BF49=\"\",\"\",'1. Ordersheet'!BF49)","v":""},{"$f":"IF('1. Ordersheet'!BG49=\"\",\"\",'1. Ordersheet'!BG49)","v":"ZWO"},{"$f":"IF('1. Ordersheet'!BH49=\"\",\"\",'1. Ordersheet'!BH49)","v":""},{"$f":"IF('1. Ordersheet'!BI49=\"\",\"\",'1. Ordersheet'!BI49)","v":""},{"$f":"IF('1. Ordersheet'!BJ49=\"\",\"\",'1. Ordersheet'!BJ49)","v":""},{"$f":"IF('1. Ordersheet'!BK49=\"\",\"\",'1. Ordersheet'!BK49)","v":""},{"$f":"IF('1. Ordersheet'!BL49=\"\",\"\",'1. Ordersheet'!BL49)","v":""}]
[{"$f":"IF('1. Ordersheet'!F50=\"\",\"\",'1. Ordersheet'!F50)","v":""},{"$f":"IF('1. Ordersheet'!G50=\"\",\"\",'1. Ordersheet'!G50)","v":""},{"$f":"IF('1. Ordersheet'!H50=\"\",\"\",'1. Ordersheet'!H50)","v":""},{"$f":"IF('1. Ordersheet'!I50=\"\",\"\",'1. Ordersheet'!I50)","v":""},{"$f":"IF('1. Ordersheet'!J50=\"\",\"\",'1. Ordersheet'!J50)","v":""},{"$f":"IF('1. Ordersheet'!K50=\"\",\"\",'1. Ordersheet'!K50)","v":""},{"$f":"IF('1. Ordersheet'!L50=\"\",\"\",'1. Ordersheet'!L50)","v":""},{"$f":"IF('1. Ordersheet'!M50=\"\",\"\",'1. Ordersheet'!M50)","v":""},{"$f":"IF('1. Ordersheet'!N50=\"\",\"\",'1. Ordersheet'!N50)","v":""},{"$f":"IF('1. Ordersheet'!O50=\"\",\"\",'1. Ordersheet'!O50)","v":{"$error":"#N/A"}},{"$f":"IF('1. Ordersheet'!P50=\"\",\"\",'1. Ordersheet'!P50)","v":{"$error":"#N/A"}},{"$f":"IF('1. Ordersheet'!Q50=\"\",\"\",'1. Ordersheet'!Q50)","v":""},{"$f":"IF('1. Ordersheet'!R50=\"\",\"\",'1. Ordersheet'!R50)","v":""},{"$f":"IF('1. Ordersheet'!S50=\"\",\"\",'1. Ordersheet'!S50)","v":""},{"$f":"IF('1. Ordersheet'!V50=\"\",\"\",'1. Ordersheet'!V50)","v":""},{"$f":"IF('1. Ordersheet'!W50=\"\",\"\",'1. Ordersheet'!W50)","v":""},{"$f":"IF('1. Ordersheet'!X50=\"\",\"\",'1. Ordersheet'!X50)","v":""},{"$f":"IF('1. Ordersheet'!Y50=\"\",\"\",'1. Ordersheet'!Y50)","v":""},{"$f":"IF('1. Ordersheet'!Z50=\"\",\"\",'1. Ordersheet'!Z50)","v":""},{"$f":"IF('1. Ordersheet'!AA50=\"\",\"\",'1. Ordersheet'!AA50)","v":""},null,{"$f":"IF('1. Ordersheet'!AS50=\"\",\"\",'1. Ordersheet'!AS50)","v":""},{"$f":"IF('1. Ordersheet'!AT50=\"\",\"\",'1. Ordersheet'!AT50)","v":""},null,null,null,null,null,null,null,{"$f":"IF('1. Ordersheet'!AX50=\"\",\"\",'1. Ordersheet'!AX50)","v":""},{"$f":"IF('1. Ordersheet'!AY50=\"\",\"\",'1. Ordersheet'!AY50)","v":""},{"$f":"IF('1. Ordersheet'!AZ50=\"\",\"\",'1. Ordersheet'!AZ50)","v":""},{"$f":"IF('1. Ordersheet'!BA50=\"\",\"\",'1. Ordersheet'!BA50)","v":""},{"$f":"IF('1. Ordersheet'!BC50=\"\",\"\",'1. Ordersheet'!BC50)","v":""},{"$f":"IF('1. Ordersheet'!BD50=\"\",\"\",'1. Ordersheet'!BD50)","v":""},{"$f":"IF('1. Ordersheet'!BE50=\"\",\"\",'1. Ordersheet'!BE50)","v":""},{"$f":"IF('1. Ordersheet'!BF50=\"\",\"\",'1. Ordersheet'!BF50)","v":""},{"$f":"IF('1. Ordersheet'!BG50=\"\",\"\",'1. Ordersheet'!BG50)","v":"ZWO"},{"$f":"IF('1. Ordersheet'!BH50=\"\",\"\",'1. Ordersheet'!BH50)","v":""},{"$f":"IF('1. Ordersheet'!BI50=\"\",\"\",'1. Ordersheet'!BI50)","v":""},{"$f":"IF('1. Ordersheet'!BJ50=\"\",\"\",'1. Ordersheet'!BJ50)","v":""},{"$f":"IF('1. Ordersheet'!BK50=\"\",\"\",'1. Ordersheet'!BK50)","v":""},{"$f":"IF('1. Ordersheet'!BL50=\"\",\"\",'1. Ordersheet'!BL50)","v":""}]
[{"$f":"IF('1. Ordersheet'!F51=\"\",\"\",'1. Ordersheet'!F51)","v":""},{"$f":"IF('1. Ordersheet'!G51=\"\",\"\",'1. Ordersheet'!G51)","v":""},{"$f":"IF('1. Ordersheet'!H51=\"\",\"\",'1. Ordersheet'!H51)","v":""},{"$f":"IF('1. Ordersheet'!I51=\"\",\"\",'1. Ordersheet'!I51)","v":""},{"$f":"IF('1. Ordersheet'!J51=\"\",\"\",'1. Ordersheet'!J51)","v":""},{"$f":"IF('1. Ordersheet'!K51=\"\",\"\",'1. Ordersheet'!K51)","v":""},{"$f":"IF('1. Ordersheet'!L51=\"\",\"\",'1. Ordersheet'!L51)","v":""},{"$f":"IF('1. Ordersheet'!M51=\"\",\"\",'1. Ordersheet'!M51)","v":""},{"$f":"IF('1. Ordersheet'!N51=\"\",\"\",'1. Ordersheet'!N51)","v":""},{"$f":"IF('1. Ordersheet'!O51=\"\",\"\",'1. Ordersheet'!O51)","v":{"$error":"#N/A"}},{"$f":"IF('1. Ordersheet'!P51=\"\",\"\",'1. Ordersheet'!P51)","v":{"$error":"#N/A"}},{"$f":"IF('1. Ordersheet'!Q51=\"\",\"\",'1. Ordersheet'!Q51)","v":""},{"$f":"IF('1. Ordersheet'!R51=\"\",\"\",'1. Ordersheet'!R51)","v":""},{"$f":"IF('1. Ordersheet'!S51=\"\",\"\",'1. Ordersheet'!S51)","v":""},{"$f":"IF('1. Ordersheet'!V51=\"\",\"\",'1. Ordersheet'!V51)","v":""},{"$f":"IF('1. Ordersheet'!W51=\"\",\"\",'1. Ordersheet'!W51)","v":""},{"$f":"IF('1. Ordersheet'!X51=\"\",\"\",'1. Ordersheet'!X51)","v":""},{"$f":"IF('1. Ordersheet'!Y51=\"\",\"\",'1. Ordersheet'!Y51)","v":""},{"$f":"IF('1. Ordersheet'!Z51=\"\",\"\",'1. Ordersheet'!Z51)","v":""},{"$f":"IF('1. Ordersheet'!AA51=\"\",\"\",'1. Ordersheet'!AA51)","v":""},null,{"$f":"IF('1. Ordersheet'!AS51=\"\",\"\",'1. Ordersheet'!AS51)","v":""},{"$f":"IF('1. Ordersheet'!AT51=\"\",\"\",'1. Ordersheet'!AT51)","v":""},null,null,null,null,null,null,null,{"$f":"IF('1. Ordersheet'!AX51=\"\",\"\",'1. Ordersheet'!AX51)","v":""},{"$f":"IF('1. Ordersheet'!AY51=\"\",\"\",'1. Ordersheet'!AY51)","v":""},{"$f":"IF('1. Ordersheet'!AZ51=\"\",\"\",'1. Ordersheet'!AZ51)","v":""},{"$f":"IF('1. Ordersheet'!BA51=\"\",\"\",'1. Ordersheet'!BA51)","v":""},{"$f":"IF('1. Ordersheet'!BC51=\"\",\"\",'1. Ordersheet'!BC51)","v":""},{"$f":"IF('1. Ordersheet'!BD51=\"\",\"\",'1. Ordersheet'!BD51)","v":""},{"$f":"IF('1. Ordersheet'!BE51=\"\",\"\",'1. Ordersheet'!BE51)","v":""},{"$f":"IF('1. Ordersheet'!BF51=\"\",\"\",'1. Ordersheet'!BF51)","v":""},{"$f":"IF('1. Ordersheet'!BG51=\"\",\"\",'1. Ordersheet'!BG51)","v":"ZWO"},{"$f":"IF('1. Ordersheet'!BH51=\"\",\"\",'1. Ordersheet'!BH51)","v":""},{"$f":"IF('1. Ordersheet'!BI51=\"\",\"\",'1. Ordersheet'!BI51)","v":""},{"$f":"IF('1. Ordersheet'!BJ51=\"\",\"\",'1. Ordersheet'!BJ51)","v":""},{"$f":"IF('1. Ordersheet'!BK51=\"\",\"\",'1. Ordersheet'!BK51)","v":""},{"$f":"IF('1. Ordersheet'!BL51=\"\",\"\",'1. Ordersheet'!BL51)","v":""}]
[{"$f":"IF('1. Ordersheet'!F52=\"\",\"\",'1. Ordersheet'!F52)","v":""},{"$f":"IF('1. Ordersheet'!G52=\"\",\"\",'1. Ordersheet'!G52)","v":""},{"$f":"IF('1. Ordersheet'!H52=\"\",\"\",'1. Ordersheet'!H52)","v":""},{"$f":"IF('1. Ordersheet'!I52=\"\",\"\",'1. Ordersheet'!I52)","v":""},{"$f":"IF('1. Ordersheet'!J52=\"\",\"\",'1. Ordersheet'!J52)","v":""},{"$f":"IF('1. Ordersheet'!K52=\"\",\"\",'1. Ordersheet'!K52)","v":""},{"$f":"IF('1. Ordersheet'!L52=\"\",\"\",'1. Ordersheet'!L52)","v":""},{"$f":"IF('1. Ordersheet'!M52=\"\",\"\",'1. Ordersheet'!M52)","v":""},{"$f":"IF('1. Ordersheet'!N52=\"\",\"\",'1. Ordersheet'!N52)","v":""},{"$f":"IF('1. Ordersheet'!O52=\"\",\"\",'1. Ordersheet'!O52)","v":{"$error":"#N/A"}},{"$f":"IF('1. Ordersheet'!P52=\"\",\"\",'1. Ordersheet'!P52)","v":{"$error":"#N/A"}},{"$f":"IF('1. Ordersheet'!Q52=\"\",\"\",'1. Ordersheet'!Q52)","v":""},{"$f":"IF('1. Ordersheet'!R52=\"\",\"\",'1. Ordersheet'!R52)","v":""},{"$f":"IF('1. Ordersheet'!S52=\"\",\"\",'1. Ordersheet'!S52)","v":""},{"$f":"IF('1. Ordersheet'!V52=\"\",\"\",'1. Ordersheet'!V52)","v":""},{"$f":"IF('1. Ordersheet'!W52=\"\",\"\",'1. Ordersheet'!W52)","v":""},{"$f":"IF('1. Ordersheet'!X52=\"\",\"\",'1. Ordersheet'!X52)","v":""},{"$f":"IF('1. Ordersheet'!Y52=\"\",\"\",'1. Ordersheet'!Y52)","v":""},{"$f":"IF('1. Ordersheet'!Z52=\"\",\"\",'1. Ordersheet'!Z52)","v":""},{"$f":"IF('1. Ordersheet'!AA52=\"\",\"\",'1. Ordersheet'!AA52)","v":""},null,{"$f":"IF('1. Ordersheet'!AS52=\"\",\"\",'1. Ordersheet'!AS52)","v":""},{"$f":"IF('1. Ordersheet'!AT52=\"\",\"\",'1. Ordersheet'!AT52)","v":""},null,null,null,null,null,null,null,{"$f":"IF('1. Ordersheet'!AX52=\"\",\"\",'1. Ordersheet'!AX52)","v":""},{"$f":"IF('1. Ordersheet'!AY52=\"\",\"\",'1. Ordersheet'!AY52)","v":""},{"$f":"IF('1. Ordersheet'!AZ52=\"\",\"\",'1. Ordersheet'!AZ52)","v":""},{"$f":"IF('1. Ordersheet'!BA52=\"\",\"\",'1. Ordersheet'!BA52)","v":""},{"$f":"IF('1. Ordersheet'!BC52=\"\",\"\",'1. Ordersheet'!BC52)","v":""},{"$f":"IF('1. Ordersheet'!BD52=\"\",\"\",'1. Ordersheet'!BD52)","v":""},{"$f":"IF('1. Ordersheet'!BE52=\"\",\"\",'1. Ordersheet'!BE52)","v":""},{"$f":"IF('1. Ordersheet'!BF52=\"\",\"\",'1. Ordersheet'!BF52)","v":""},{"$f":"IF('1. Ordersheet'!BG52=\"\",\"\",'1. Ordersheet'!BG52)","v":"ZWO"},{"$f":"IF('1. Ordersheet'!BH52=\"\",\"\",'1. Ordersheet'!BH52)","v":""},{"$f":"IF('1. Ordersheet'!BI52=\"\",\"\",'1. Ordersheet'!BI52)","v":""},{"$f":"IF('1. Ordersheet'!BJ52=\"\",\"\",'1. Ordersheet'!BJ52)","v":""},{"$f":"IF('1. Ordersheet'!BK52=\"\",\"\",'1. Ordersheet'!BK52)","v":""},{"$f":"IF('1. Ordersheet'!BL52=\"\",\"\",'1. Ordersheet'!BL52)","v":""}]
[{"$f":"IF('1. Ordersheet'!F53=\"\",\"\",'1. Ordersheet'!F53)","v":""},{"$f":"IF('1. Ordersheet'!G53=\"\",\"\",'1. Ordersheet'!G53)","v":""},{"$f":"IF('1. Ordersheet'!H53=\"\",\"\",'1. Ordersheet'!H53)","v":""},{"$f":"IF('1. Ordersheet'!I53=\"\",\"\",'1. Ordersheet'!I53)","v":""},{"$f":"IF('1. Ordersheet'!J53=\"\",\"\",'1. Ordersheet'!J53)","v":""},{"$f":"IF('1. Ordersheet'!K53=\"\",\"\",'1. Ordersheet'!K53)","v":""},{"$f":"IF('1. Ordersheet'!L53=\"\",\"\",'1. Ordersheet'!L53)","v":""},{"$f":"IF('1. Ordersheet'!M53=\"\",\"\",'1. Ordersheet'!M53)","v":""},{"$f":"IF('1. Ordersheet'!N53=\"\",\"\",'1. Ordersheet'!N53)","v":""},{"$f":"IF('1. Ordersheet'!O53=\"\",\"\",'1. Ordersheet'!O53)","v":{"$error":"#N/A"}},{"$f":"IF('1. Ordersheet'!P53=\"\",\"\",'1. Ordersheet'!P53)","v":{"$error":"#N/A"}},{"$f":"IF('1. Ordersheet'!Q53=\"\",\"\",'1. Ordersheet'!Q53)","v":""},{"$f":"IF('1. Ordersheet'!R53=\"\",\"\",'1. Ordersheet'!R53)","v":""},{"$f":"IF('1. Ordersheet'!S53=\"\",\"\",'1. Ordersheet'!S53)","v":""},{"$f":"IF('1. Ordersheet'!V53=\"\",\"\",'1. Ordersheet'!V53)","v":""},{"$f":"IF('1. Ordersheet'!W53=\"\",\"\",'1. Ordersheet'!W53)","v":""},{"$f":"IF('1. Ordersheet'!X53=\"\",\"\",'1. Ordersheet'!X53)","v":""},{"$f":"IF('1. Ordersheet'!Y53=\"\",\"\",'1. Ordersheet'!Y53)","v":""},{"$f":"IF('1. Ordersheet'!Z53=\"\",\"\",'1. Ordersheet'!Z53)","v":""},{"$f":"IF('1. Ordersheet'!AA53=\"\",\"\",'1. Ordersheet'!AA53)","v":""},null,{"$f":"IF('1. Ordersheet'!AS53=\"\",\"\",'1. Ordersheet'!AS53)","v":""},{"$f":"IF('1. Ordersheet'!AT53=\"\",\"\",'1. Ordersheet'!AT53)","v":""},null,null,null,null,null,null,null,{"$f":"IF('1. Ordersheet'!AX53=\"\",\"\",'1. Ordersheet'!AX53)","v":""},{"$f":"IF('1. Ordersheet'!AY53=\"\",\"\",'1. Ordersheet'!AY53)","v":""},{"$f":"IF('1. Ordersheet'!AZ53=\"\",\"\",'1. Ordersheet'!AZ53)","v":""},{"$f":"IF('1. Ordersheet'!BA53=\"\",\"\",'1. Ordersheet'!BA53)","v":""},{"$f":"IF('1. Ordersheet'!BC53=\"\",\"\",'1. Ordersheet'!BC53)","v":""},{"$f":"IF('1. Ordersheet'!BD53=\"\",\"\",'1. Ordersheet'!BD53)","v":""},{"$f":"IF('1. Ordersheet'!BE53=\"\",\"\",'1. Ordersheet'!BE53)","v":""},{"$f":"IF('1. Ordersheet'!BF53=\"\",\"\",'1. Ordersheet'!BF53)","v":""},{"$f":"IF('1. Ordersheet'!BG53=\"\",\"\",'1. Ordersheet'!BG53)","v":"ZWO"},{"$f":"IF('1. Ordersheet'!BH53=\"\",\"\",'1. Ordersheet'!BH53)","v":""},{"$f":"IF('1. Ordersheet'!BI53=\"\",\"\",'1. Ordersheet'!BI53)","v":""},{"$f":"IF('1. Ordersheet'!BJ53=\"\",\"\",'1. Ordersheet'!BJ53)","v":""},{"$f":"IF('1. Ordersheet'!BK53=\"\",\"\",'1. Ordersheet'!BK53)","v":""},{"$f":"IF('1. Ordersheet'!BL53=\"\",\"\",'1. Ordersheet'!BL53)","v":""}]
[{"$f":"IF('1. Ordersheet'!F54=\"\",\"\",'1. Ordersheet'!F54)","v":""},{"$f":"IF('1. Ordersheet'!G54=\"\",\"\",'1. Ordersheet'!G54)","v":""},{"$f":"IF('1. Ordersheet'!H54=\"\",\"\",'1. Ordersheet'!H54)","v":""},{"$f":"IF('1. Ordersheet'!I54=\"\",\"\",'1. Ordersheet'!I54)","v":""},{"$f":"IF('1. Ordersheet'!J54=\"\",\"\",'1. Ordersheet'!J54)","v":""},{"$f":"IF('1. Ordersheet'!K54=\"\",\"\",'1. Ordersheet'!K54)","v":""},{"$f":"IF('1. Ordersheet'!L54=\"\",\"\",'1. Ordersheet'!L54)","v":""},{"$f":"IF('1. Ordersheet'!M54=\"\",\"\",'1. Ordersheet'!M54)","v":""},{"$f":"IF('1. Ordersheet'!N54=\"\",\"\",'1. Ordersheet'!N54)","v":""},{"$f":"IF('1. Ordersheet'!O54=\"\",\"\",'1. Ordersheet'!O54)","v":{"$error":"#N/A"}},{"$f":"IF('1. Ordersheet'!P54=\"\",\"\",'1. Ordersheet'!P54)","v":{"$error":"#N/A"}},{"$f":"IF('1. Ordersheet'!Q54=\"\",\"\",'1. Ordersheet'!Q54)","v":""},{"$f":"IF('1. Ordersheet'!R54=\"\",\"\",'1. Ordersheet'!R54)","v":""},{"$f":"IF('1. Ordersheet'!S54=\"\",\"\",'1. Ordersheet'!S54)","v":""},{"$f":"IF('1. Ordersheet'!V54=\"\",\"\",'1. Ordersheet'!V54)","v":""},{"$f":"IF('1. Ordersheet'!W54=\"\",\"\",'1. Ordersheet'!W54)","v":""},{"$f":"IF('1. Ordersheet'!X54=\"\",\"\",'1. Ordersheet'!X54)","v":""},{"$f":"IF('1. Ordersheet'!Y54=\"\",\"\",'1. Ordersheet'!Y54)","v":""},{"$f":"IF('1. Ordersheet'!Z54=\"\",\"\",'1. Ordersheet'!Z54)","v":""},{"$f":"IF('1. Ordersheet'!AA54=\"\",\"\",'1. Ordersheet'!AA54)","v":""},null,{"$f":"IF('1. Ordersheet'!AS54=\"\",\"\",'1. Ordersheet'!AS54)","v":""},{"$f":"IF('1. Ordersheet'!AT54=\"\",\"\",'1. Ordersheet'!AT54)","v":""},null,null,null,null,null,null,null,{"$f":"IF('1. Ordersheet'!AX54=\"\",\"\",'1. Ordersheet'!AX54)","v":""},{"$f":"IF('1. Ordersheet'!AY54=\"\",\"\",'1. Ordersheet'!AY54)","v":""},{"$f":"IF('1. Ordersheet'!AZ54=\"\",\"\",'1. Ordersheet'!AZ54)","v":""},{"$f":"IF('1. Ordersheet'!BA54=\"\",\"\",'1. Ordersheet'!BA54)","v":""},{"$f":"IF('1. Ordersheet'!BC54=\"\",\"\",'1. Ordersheet'!BC54)","v":""},{"$f":"IF('1. Ordersheet'!BD54=\"\",\"\",'1. Ordersheet'!BD54)","v":""},{"$f":"IF('1. Ordersheet'!BE54=\"\",\"\",'1. Ordersheet'!BE54)","v":""},{"$f":"IF('1. Ordersheet'!BF54=\"\",\"\",'1. Ordersheet'!BF54)","v":""},{"$f":"IF('1. Ordersheet'!BG54=\"\",\"\",'1. Ordersheet'!BG54)","v":"ZWO"},{"$f":"IF('1. Ordersheet'!BH54=\"\",\"\",'1. Ordersheet'!BH54)","v":""},{"$f":"IF('1. Ordersheet'!BI54=\"\",\"\",'1. Ordersheet'!BI54)","v":""},{"$f":"IF('1. Ordersheet'!BJ54=\"\",\"\",'1. Ordersheet'!BJ54)","v":""},{"$f":"IF('1. Ordersheet'!BK54=\"\",\"\",'1. Ordersheet'!BK54)","v":""},{"$f":"IF('1. Ordersheet'!BL54=\"\",\"\",'1. Ordersheet'!BL54)","v":""}]
[{"$f":"IF('1. Ordersheet'!F55=\"\",\"\",'1. Ordersheet'!F55)","v":""},{"$f":"IF('1. Ordersheet'!G55=\"\",\"\",'1. Ordersheet'!G55)","v":""},{"$f":"IF('1. Ordersheet'!H55=\"\",\"\",'1. Ordersheet'!H55)","v":""},{"$f":"IF('1. Ordersheet'!I55=\"\",\"\",'1. Ordersheet'!I55)","v":""},{"$f":"IF('1. Ordersheet'!J55=\"\",\"\",'1. Ordersheet'!J55)","v":""},{"$f":"IF('1. Ordersheet'!K55=\"\",\"\",'1. Ordersheet'!K55)","v":""},{"$f":"IF('1. Ordersheet'!L55=\"\",\"\",'1. Ordersheet'!L55)","v":""},{"$f":"IF('1. Ordersheet'!M55=\"\",\"\",'1. Ordersheet'!M55)","v":""},{"$f":"IF('1. Ordersheet'!N55=\"\",\"\",'1. Ordersheet'!N55)","v":""},{"$f":"IF('1. Ordersheet'!O55=\"\",\"\",'1. Ordersheet'!O55)","v":{"$error":"#N/A"}},{"$f":"IF('1. Ordersheet'!P55=\"\",\"\",'1. Ordersheet'!P55)","v":{"$error":"#N/A"}},{"$f":"IF('1. Ordersheet'!Q55=\"\",\"\",'1. Ordersheet'!Q55)","v":""},{"$f":"IF('1. Ordersheet'!R55=\"\",\"\",'1. Ordersheet'!R55)","v":""},{"$f":"IF('1. Ordersheet'!S55=\"\",\"\",'1. Ordersheet'!S55)","v":""},{"$f":"IF('1. Ordersheet'!V55=\"\",\"\",'1. Ordersheet'!V55)","v":""},{"$f":"IF('1. Ordersheet'!W55=\"\",\"\",'1. Ordersheet'!W55)","v":""},{"$f":"IF('1. Ordersheet'!X55=\"\",\"\",'1. Ordersheet'!X55)","v":""},{"$f":"IF('1. Ordersheet'!Y55=\"\",\"\",'1. Ordersheet'!Y55)","v":""},{"$f":"IF('1. Ordersheet'!Z55=\"\",\"\",'1. Ordersheet'!Z55)","v":""},{"$f":"IF('1. Ordersheet'!AA55=\"\",\"\",'1. Ordersheet'!AA55)","v":""},null,{"$f":"IF('1. Ordersheet'!AS55=\"\",\"\",'1. Ordersheet'!AS55)","v":""},{"$f":"IF('1. Ordersheet'!AT55=\"\",\"\",'1. Ordersheet'!AT55)","v":""},null,null,null,null,null,null,null,{"$f":"IF('1. Ordersheet'!AX55=\"\",\"\",'1. Ordersheet'!AX55)","v":""},{"$f":"IF('1. Ordersheet'!AY55=\"\",\"\",'1. Ordersheet'!AY55)","v":""},{"$f":"IF('1. Ordersheet'!AZ55=\"\",\"\",'1. Ordersheet'!AZ55)","v":""},{"$f":"IF('1. Ordersheet'!BA55=\"\",\"\",'1. Ordersheet'!BA55)","v":""},{"$f":"IF('1. Ordersheet'!BC55=\"\",\"\",'1. Ordersheet'!BC55)","v":""},{"$f":"IF('1. Ordersheet'!BD55=\"\",\"\",'1. Ordersheet'!BD55)","v":""},{"$f":"IF('1. Ordersheet'!BE55=\"\",\"\",'1. Ordersheet'!BE55)","v":""},{"$f":"IF('1. Ordersheet'!BF55=\"\",\"\",'1. Ordersheet'!BF55)","v":""},{"$f":"IF('1. Ordersheet'!BG55=\"\",\"\",'1. Ordersheet'!BG55)","v":"ZWO"},{"$f":"IF('1. Ordersheet'!BH55=\"\",\"\",'1. Ordersheet'!BH55)","v":""},{"$f":"IF('1. Ordersheet'!BI55=\"\",\"\",'1. Ordersheet'!BI55)","v":""},{"$f":"IF('1. Ordersheet'!BJ55=\"\",\"\",'1. Ordersheet'!BJ55)","v":""},{"$f":"IF('1. Ordersheet'!BK55=\"\",\"\",'1. Ordersheet'!BK55)","v":""},{"$f":"IF('1. Ordersheet'!BL55=\"\",\"\",'1. Ordersheet'!BL55)","v":""}]
[{"$f":"IF('1. Ordersheet'!F56=\"\",\"\",'1. Ordersheet'!F56)","v":""},{"$f":"IF('1. Ordersheet'!G56=\"\",\"\",'1. Ordersheet'!G56)","v":""},{"$f":"IF('1. Ordersheet'!H56=\"\",\"\",'1. Ordersheet'!H56)","v":""},{"$f":"IF('1. Ordersheet'!I56=\"\",\"\",'1. Ordersheet'!I56)","v":""},{"$f":"IF('1. Ordersheet'!J56=\"\",\"\",'1. Ordersheet'!J56)","v":""},{"$f":"IF('1. Ordersheet'!K56=\"\",\"\",'1. Ordersheet'!K56)","v":""},{"$f":"IF('1. Ordersheet'!L56=\"\",\"\",'1. Ordersheet'!L56)","v":""},{"$f":"IF('1. Ordersheet'!M56=\"\",\"\",'1. Ordersheet'!M56)","v":""},{"$f":"IF('1. Ordersheet'!N56=\"\",\"\",'1. Ordersheet'!N56)","v":""},{"$f":"IF('1. Ordersheet'!O56=\"\",\"\",'1. Ordersheet'!O56)","v":{"$error":"#N/A"}},{"$f":"IF('1. Ordersheet'!P56=\"\",\"\",'1. Ordersheet'!P56)","v":{"$error":"#N/A"}},{"$f":"IF('1. Ordersheet'!Q56=\"\",\"\",'1. Ordersheet'!Q56)","v":""},{"$f":"IF('1. Ordersheet'!R56=\"\",\"\",'1. Ordersheet'!R56)","v":""},{"$f":"IF('1. Ordersheet'!S56=\"\",\"\",'1. Ordersheet'!S56)","v":""},{"$f":"IF('1. Ordersheet'!V56=\"\",\"\",'1. Ordersheet'!V56)","v":""},{"$f":"IF('1. Ordersheet'!W56=\"\",\"\",'1. Ordersheet'!W56)","v":""},{"$f":"IF('1. Ordersheet'!X56=\"\",\"\",'1. Ordersheet'!X56)","v":""},{"$f":"IF('1. Ordersheet'!Y56=\"\",\"\",'1. Ordersheet'!Y56)","v":""},{"$f":"IF('1. Ordersheet'!Z56=\"\",\"\",'1. Ordersheet'!Z56)","v":""},{"$f":"IF('1. Ordersheet'!AA56=\"\",\"\",'1. Ordersheet'!AA56)","v":""},null,{"$f":"IF('1. Ordersheet'!AS56=\"\",\"\",'1. Ordersheet'!AS56)","v":""},{"$f":"IF('1. Ordersheet'!AT56=\"\",\"\",'1. Ordersheet'!AT56)","v":""},null,null,null,null,null,null,null,{"$f":"IF('1. Ordersheet'!AX56=\"\",\"\",'1. Ordersheet'!AX56)","v":""},{"$f":"IF('1. Ordersheet'!AY56=\"\",\"\",'1. Ordersheet'!AY56)","v":""},{"$f":"IF('1. Ordersheet'!AZ56=\"\",\"\",'1. Ordersheet'!AZ56)","v":""},{"$f":"IF('1. Ordersheet'!BA56=\"\",\"\",'1. Ordersheet'!BA56)","v":""},{"$f":"IF('1. Ordersheet'!BC56=\"\",\"\",'1. Ordersheet'!BC56)","v":""},{"$f":"IF('1. Ordersheet'!BD56=\"\",\"\",'1. Ordersheet'!BD56)","v":""},{"$f":"IF('1. Ordersheet'!BE56=\"\",\"\",'1. Ordersheet'!BE56)","v":""},{"$f":"IF('1. Ordersheet'!BF56=\"\",\"\",'1. Ordersheet'!BF56)","v":""},{"$f":"IF('1. Ordersheet'!BG56=\"\",\"\",'1. Ordersheet'!BG56)","v":"ZWO"},{"$f":"IF('1. Ordersheet'!BH56=\"\",\"\",'1. Ordersheet'!BH56)","v":""},{"$f":"IF('1. Ordersheet'!BI56=\"\",\"\",'1. Ordersheet'!BI56)","v":""},{"$f":"IF('1. Ordersheet'!BJ56=\"\",\"\",'1. Ordersheet'!BJ56)","v":""},{"$f":"IF('1. Ordersheet'!BK56=\"\",\"\",'1. Ordersheet'!BK56)","v":""},{"$f":"IF('1. Ordersheet'!BL56=\"\",\"\",'1. Ordersheet'!BL56)","v":""}]
[{"$f":"IF('1. Ordersheet'!F57=\"\",\"\",'1. Ordersheet'!F57)","v":""},{"$f":"IF('1. Ordersheet'!G57=\"\",\"\",'1. Ordersheet'!G57)","v":""},{"$f":"IF('1. Ordersheet'!H57=\"\",\"\",'1. Ordersheet'!H57)","v":""},{"$f":"IF('1. Ordersheet'!I57=\"\",\"\",'1. Ordersheet'!I57)","v":""},{"$f":"IF('1. Ordersheet'!J57=\"\",\"\",'1. Ordersheet'!J57)","v":""},{"$f":"IF('1. Ordersheet'!K57=\"\",\"\",'1. Ordersheet'!K57)","v":""},{"$f":"IF('1. Ordersheet'!L57=\"\",\"\",'1. Ordersheet'!L57)","v":""},{"$f":"IF('1. Ordersheet'!M57=\"\",\"\",'1. Ordersheet'!M57)","v":""},{"$f":"IF('1. Ordersheet'!N57=\"\",\"\",'1. Ordersheet'!N57)","v":""},{"$f":"IF('1. Ordersheet'!O57=\"\",\"\",'1. Ordersheet'!O57)","v":{"$error":"#N/A"}},{"$f":"IF('1. Ordersheet'!P57=\"\",\"\",'1. Ordersheet'!P57)","v":{"$error":"#N/A"}},{"$f":"IF('1. Ordersheet'!Q57=\"\",\"\",'1. Ordersheet'!Q57)","v":""},{"$f":"IF('1. Ordersheet'!R57=\"\",\"\",'1. Ordersheet'!R57)","v":""},{"$f":"IF('1. Ordersheet'!S57=\"\",\"\",'1. Ordersheet'!S57)","v":""},{"$f":"IF('1. Ordersheet'!V57=\"\",\"\",'1. Ordersheet'!V57)","v":""},{"$f":"IF('1. Ordersheet'!W57=\"\",\"\",'1. Ordersheet'!W57)","v":""},{"$f":"IF('1. Ordersheet'!X57=\"\",\"\",'1. Ordersheet'!X57)","v":""},{"$f":"IF('1. Ordersheet'!Y57=\"\",\"\",'1. Ordersheet'!Y57)","v":""},{"$f":"IF('1. Ordersheet'!Z57=\"\",\"\",'1. Ordersheet'!Z57)","v":""},{"$f":"IF('1. Ordersheet'!AA57=\"\",\"\",'1. Ordersheet'!AA57)","v":""},null,{"$f":"IF('1. Ordersheet'!AS57=\"\",\"\",'1. Ordersheet'!AS57)","v":""},{"$f":"IF('1. Ordersheet'!AT57=\"\",\"\",'1. Ordersheet'!AT57)","v":""},null,null,null,null,null,null,null,{"$f":"IF('1. Ordersheet'!AX57=\"\",\"\",'1. Ordersheet'!AX57)","v":""},{"$f":"IF('1. Ordersheet'!AY57=\"\",\"\",'1. Ordersheet'!AY57)","v":""},{"$f":"IF('1. Ordersheet'!AZ57=\"\",\"\",'1. Ordersheet'!AZ57)","v":""},{"$f":"IF('1. Ordersheet'!BA57=\"\",\"\",'1. Ordersheet'!BA57)","v":""},{"$f":"IF('1. Ordersheet'!BC57=\"\",\"\",'1. Ordersheet'!BC57)","v":""},{"$f":"IF('1. Ordersheet'!BD57=\"\",\"\",'1. Ordersheet'!BD57)","v":""},{"$f":"IF('1. Ordersheet'!BE57=\"\",\"\",'1. Ordersheet'!BE57)","v":""},{"$f":"IF('1. Ordersheet'!BF57=\"\",\"\",'1. Ordersheet'!BF57)","v":""},{"$f":"IF('1. Ordersheet'!BG57=\"\",\"\",'1. Ordersheet'!BG57)","v":"ZWO"},{"$f":"IF('1. Ordersheet'!BH57=\"\",\"\",'1. Ordersheet'!BH57)","v":""},{"$f":"IF('1. Ordersheet'!BI57=\"\",\"\",'1. Ordersheet'!BI57)","v":""},{"$f":"IF('1. Ordersheet'!BJ57=\"\",\"\",'1. Ordersheet'!BJ57)","v":""},{"$f":"IF('1. Ordersheet'!BK57=\"\",\"\",'1. Ordersheet'!BK57)","v":""},{"$f":"IF('1. Ordersheet'!BL57=\"\",\"\",'1. Ordersheet'!BL57)","v":""}]
[{"$f":"IF('1. Ordersheet'!F58=\"\",\"\",'1. Ordersheet'!F58)","v":""},{"$f":"IF('1. Ordersheet'!G58=\"\",\"\",'1. Ordersheet'!G58)","v":""},{"$f":"IF('1. Ordersheet'!H58=\"\",\"\",'1. Ordersheet'!H58)","v":""},{"$f":"IF('1. Ordersheet'!I58=\"\",\"\",'1. Ordersheet'!I58)","v":""},{"$f":"IF('1. Ordersheet'!J58=\"\",\"\",'1. Ordersheet'!J58)","v":""},{"$f":"IF('1. Ordersheet'!K58=\"\",\"\",'1. Ordersheet'!K58)","v":""},{"$f":"IF('1. Ordersheet'!L58=\"\",\"\",'1. Ordersheet'!L58)","v":""},{"$f":"IF('1. Ordersheet'!M58=\"\",\"\",'1. Ordersheet'!M58)","v":""},{"$f":"IF('1. Ordersheet'!N58=\"\",\"\",'1. Ordersheet'!N58)","v":""},{"$f":"IF('1. Ordersheet'!O58=\"\",\"\",'1. Ordersheet'!O58)","v":{"$error":"#N/A"}},{"$f":"IF('1. Ordersheet'!P58=\"\",\"\",'1. Ordersheet'!P58)","v":{"$error":"#N/A"}},{"$f":"IF('1. Ordersheet'!Q58=\"\",\"\",'1. Ordersheet'!Q58)","v":""},{"$f":"IF('1. Ordersheet'!R58=\"\",\"\",'1. Ordersheet'!R58)","v":""},{"$f":"IF('1. Ordersheet'!S58=\"\",\"\",'1. Ordersheet'!S58)","v":""},{"$f":"IF('1. Ordersheet'!V58=\"\",\"\",'1. Ordersheet'!V58)","v":""},{"$f":"IF('1. Ordersheet'!W58=\"\",\"\",'1. Ordersheet'!W58)","v":""},{"$f":"IF('1. Ordersheet'!X58=\"\",\"\",'1. Ordersheet'!X58)","v":""},{"$f":"IF('1. Ordersheet'!Y58=\"\",\"\",'1. Ordersheet'!Y58)","v":""},{"$f":"IF('1. Ordersheet'!Z58=\"\",\"\",'1. Ordersheet'!Z58)","v":""},{"$f":"IF('1. Ordersheet'!AA58=\"\",\"\",'1. Ordersheet'!AA58)","v":""},null,{"$f":"IF('1. Ordersheet'!AS58=\"\",\"\",'1. Ordersheet'!AS58)","v":""},{"$f":"IF('1. Ordersheet'!AT58=\"\",\"\",'1. Ordersheet'!AT58)","v":""},null,null,null,null,null,null,null,{"$f":"IF('1. Ordersheet'!AX58=\"\",\"\",'1. Ordersheet'!AX58)","v":""},{"$f":"IF('1. Ordersheet'!AY58=\"\",\"\",'1. Ordersheet'!AY58)","v":""},{"$f":"IF('1. Ordersheet'!AZ58=\"\",\"\",'1. Ordersheet'!AZ58)","v":""},{"$f":"IF('1. Ordersheet'!BA58=\"\",\"\",'1. Ordersheet'!BA58)","v":""},{"$f":"IF('1. Ordersheet'!BC58=\"\",\"\",'1. Ordersheet'!BC58)","v":""},{"$f":"IF('1. Ordersheet'!BD58=\"\",\"\",'1. Ordersheet'!BD58)","v":""},{"$f":"IF('1. Ordersheet'!BE58=\"\",\"\",'1. Ordersheet'!BE58)","v":""},{"$f":"IF('1. Ordersheet'!BF58=\"\",\"\",'1. Ordersheet'!BF58)","v":""},{"$f":"IF('1. Ordersheet'!BG58=\"\",\"\",'1. Ordersheet'!BG58)","v":"ZWO"},{"$f":"IF('1. Ordersheet'!BH58=\"\",\"\",'1. Ordersheet'!BH58)","v":""},{"$f":"IF('1. Ordersheet'!BI58=\"\",\"\",'1. Ordersheet'!BI58)","v":""},{"$f":"IF('1. Ordersheet'!BJ58=\"\",\"\",'1. Ordersheet'!BJ58)","v":""},{"$f":"IF('1. Ordersheet'!BK58=\"\",\"\",'1. Ordersheet'!BK58)","v":""},{"$f":"IF('1. Ordersheet'!BL58=\"\",\"\",'1. Ordersheet'!BL58)","v":""}]
[{"$f":"IF('1. Ordersheet'!F59=\"\",\"\",'1. Ordersheet'!F59)","v":""},{"$f":"IF('1. Ordersheet'!G59=\"\",\"\",'1. Ordersheet'!G59)","v":""},{"$f":"IF('1. Ordersheet'!H59=\"\",\"\",'1. Ordersheet'!H59)","v":""},{"$f":"IF('1. Ordersheet'!I59=\"\",\"\",'1. Ordersheet'!I59)","v":""},{"$f":"IF('1. Ordersheet'!J59=\"\",\"\",'1. Ordersheet'!J59)","v":""},{"$f":"IF('1. Ordersheet'!K59=\"\",\"\",'1. Ordersheet'!K59)","v":""},{"$f":"IF('1. Ordersheet'!L59=\"\",\"\",'1. Ordersheet'!L59)","v":""},{"$f":"IF('1. Ordersheet'!M59=\"\",\"\",'1. Ordersheet'!M59)","v":""},{"$f":"IF('1. Ordersheet'!N59=\"\",\"\",'1. Ordersheet'!N59)","v":""},{"$f":"IF('1. Ordersheet'!O59=\"\",\"\",'1. Ordersheet'!O59)","v":{"$error":"#N/A"}},{"$f":"IF('1. Ordersheet'!P59=\"\",\"\",'1. Ordersheet'!P59)","v":{"$error":"#N/A"}},{"$f":"IF('1. Ordersheet'!Q59=\"\",\"\",'1. Ordersheet'!Q59)","v":""},{"$f":"IF('1. Ordersheet'!R59=\"\",\"\",'1. Ordersheet'!R59)","v":""},{"$f":"IF('1. Ordersheet'!S59=\"\",\"\",'1. Ordersheet'!S59)","v":""},{"$f":"IF('1. Ordersheet'!V59=\"\",\"\",'1. Ordersheet'!V59)","v":""},{"$f":"IF('1. Ordersheet'!W59=\"\",\"\",'1. Ordersheet'!W59)","v":""},{"$f":"IF('1. Ordersheet'!X59=\"\",\"\",'1. Ordersheet'!X59)","v":""},{"$f":"IF('1. Ordersheet'!Y59=\"\",\"\",'1. Ordersheet'!Y59)","v":""},{"$f":"IF('1. Ordersheet'!Z59=\"\",\"\",'1. Ordersheet'!Z59)","v":""},{"$f":"IF('1. Ordersheet'!AA59=\"\",\"\",'1. Ordersheet'!AA59)","v":""},null,{"$f":"IF('1. Ordersheet'!AS59=\"\",\"\",'1. Ordersheet'!AS59)","v":""},{"$f":"IF('1. Ordersheet'!AT59=\"\",\"\",'1. Ordersheet'!AT59)","v":""},null,null,null,null,null,null,null,{"$f":"IF('1. Ordersheet'!AX59=\"\",\"\",'1. Ordersheet'!AX59)","v":""},{"$f":"IF('1. Ordersheet'!AY59=\"\",\"\",'1. Ordersheet'!AY59)","v":""},{"$f":"IF('1. Ordersheet'!AZ59=\"\",\"\",'1. Ordersheet'!AZ59)","v":""},{"$f":"IF('1. Ordersheet'!BA59=\"\",\"\",'1. Ordersheet'!BA59)","v":""},{"$f":"IF('1. Ordersheet'!BC59=\"\",\"\",'1. Ordersheet'!BC59)","v":""},{"$f":"IF('1. Ordersheet'!BD59=\"\",\"\",'1. Ordersheet'!BD59)","v":""},{"$f":"IF('1. Ordersheet'!BE59=\"\",\"\",'1. Ordersheet'!BE59)","v":""},{"$f":"IF('1. Ordersheet'!BF59=\"\",\"\",'1. Ordersheet'!BF59)","v":""},{"$f":"IF('1. Ordersheet'!BG59=\"\",\"\",'1. Ordersheet'!BG59)","v":"ZWO"},{"$f":"IF('1. Ordersheet'!BH59=\"\",\"\",'1. Ordersheet'!BH59)","v":""},{"$f":"IF('1. Ordersheet'!BI59=\"\",\"\",'1. Ordersheet'!BI59)","v":""},{"$f":"IF('1. Ordersheet'!BJ59=\"\",\"\",'1. Ordersheet'!BJ59)","v":""},{"$f":"IF('1. Ordersheet'!BK59=\"\",\"\",'1. Ordersheet'!BK59)","v":""},{"$f":"IF('1. Ordersheet'!BL59=\"\",\"\",'1. Ordersheet'!BL59)","v":""}]
[{"$f":"IF('1. Ordersheet'!F60=\"\",\"\",'1. Ordersheet'!F60)","v":""},{"$f":"IF('1. Ordersheet'!G60=\"\",\"\",'1. Ordersheet'!G60)","v":""},{"$f":"IF('1. Ordersheet'!H60=\"\",\"\",'1. Ordersheet'!H60)","v":""},{"$f":"IF('1. Ordersheet'!I60=\"\",\"\",'1. Ordersheet'!I60)","v":""},{"$f":"IF('1. Ordersheet'!J60=\"\",\"\",'1. Ordersheet'!J60)","v":""},{"$f":"IF('1. Ordersheet'!K60=\"\",\"\",'1. Ordersheet'!K60)","v":""},{"$f":"IF('1. Ordersheet'!L60=\"\",\"\",'1. Ordersheet'!L60)","v":""},{"$f":"IF('1. Ordersheet'!M60=\"\",\"\",'1. Ordersheet'!M60)","v":""},{"$f":"IF('1. Ordersheet'!N60=\"\",\"\",'1. Ordersheet'!N60)","v":""},{"$f":"IF('1. Ordersheet'!O60=\"\",\"\",'1. Ordersheet'!O60)","v":{"$error":"#N/A"}},{"$f":"IF('1. Ordersheet'!P60=\"\",\"\",'1. Ordersheet'!P60)","v":{"$error":"#N/A"}},{"$f":"IF('1. Ordersheet'!Q60=\"\",\"\",'1. Ordersheet'!Q60)","v":""},{"$f":"IF('1. Ordersheet'!R60=\"\",\"\",'1. Ordersheet'!R60)","v":""},{"$f":"IF('1. Ordersheet'!S60=\"\",\"\",'1. Ordersheet'!S60)","v":""},{"$f":"IF('1. Ordersheet'!V60=\"\",\"\",'1. Ordersheet'!V60)","v":""},{"$f":"IF('1. Ordersheet'!W60=\"\",\"\",'1. Ordersheet'!W60)","v":""},{"$f":"IF('1. Ordersheet'!X60=\"\",\"\",'1. Ordersheet'!X60)","v":""},{"$f":"IF('1. Ordersheet'!Y60=\"\",\"\",'1. Ordersheet'!Y60)","v":""},{"$f":"IF('1. Ordersheet'!Z60=\"\",\"\",'1. Ordersheet'!Z60)","v":""},{"$f":"IF('1. Ordersheet'!AA60=\"\",\"\",'1. Ordersheet'!AA60)","v":""},null,{"$f":"IF('1. Ordersheet'!AS60=\"\",\"\",'1. Ordersheet'!AS60)","v":""},{"$f":"IF('1. Ordersheet'!AT60=\"\",\"\",'1. Ordersheet'!AT60)","v":""},null,null,null,null,null,null,null,{"$f":"IF('1. Ordersheet'!AX60=\"\",\"\",'1. Ordersheet'!AX60)","v":""},{"$f":"IF('1. Ordersheet'!AY60=\"\",\"\",'1. Ordersheet'!AY60)","v":""},{"$f":"IF('1. Ordersheet'!AZ60=\"\",\"\",'1. Ordersheet'!AZ60)","v":""},{"$f":"IF('1. Ordersheet'!BA60=\"\",\"\",'1. Ordersheet'!BA60)","v":""},{"$f":"IF('1. Ordersheet'!BC60=\"\",\"\",'1. Ordersheet'!BC60)","v":""},{"$f":"IF('1. Ordersheet'!BD60=\"\",\"\",'1. Ordersheet'!BD60)","v":""},{"$f":"IF('1. Ordersheet'!BE60=\"\",\"\",'1. Ordersheet'!BE60)","v":""},{"$f":"IF('1. Ordersheet'!BF60=\"\",\"\",'1. Ordersheet'!BF60)","v":""},{"$f":"IF('1. Ordersheet'!BG60=\"\",\"\",'1. Ordersheet'!BG60)","v":"ZWO"},{"$f":"IF('1. Ordersheet'!BH60=\"\",\"\",'1. Ordersheet'!BH60)","v":""},{"$f":"IF('1. Ordersheet'!BI60=\"\",\"\",'1. Ordersheet'!BI60)","v":""},{"$f":"IF('1. Ordersheet'!BJ60=\"\",\"\",'1. Ordersheet'!BJ60)","v":""},{"$f":"IF('1. Ordersheet'!BK60=\"\",\"\",'1. Ordersheet'!BK60)","v":""},{"$f":"IF('1. Ordersheet'!BL60=\"\",\"\",'1. Ordersheet'!BL60)","v":""}]
[{"$f":"IF('1. Ordersheet'!F61=\"\",\"\",'1. Ordersheet'!F61)","v":""},{"$f":"IF('1. Ordersheet'!G61=\"\",\"\",'1. Ordersheet'!G61)","v":""},{"$f":"IF('1. Ordersheet'!H61=\"\",\"\",'1. Ordersheet'!H61)","v":""},{"$f":"IF('1. Ordersheet'!I61=\"\",\"\",'1. Ordersheet'!I61)","v":""},{"$f":"IF('1. Ordersheet'!J61=\"\",\"\",'1. Ordersheet'!J61)","v":""},{"$f":"IF('1. Ordersheet'!K61=\"\",\"\",'1. Ordersheet'!K61)","v":""},{"$f":"IF('1. Ordersheet'!L61=\"\",\"\",'1. Ordersheet'!L61)","v":""},{"$f":"IF('1. Ordersheet'!M61=\"\",\"\",'1. Ordersheet'!M61)","v":""},{"$f":"IF('1. Ordersheet'!N61=\"\",\"\",'1. Ordersheet'!N61)","v":""},{"$f":"IF('1. Ordersheet'!O61=\"\",\"\",'1. Ordersheet'!O61)","v":{"$error":"#N/A"}},{"$f":"IF('1. Ordersheet'!P61=\"\",\"\",'1. Ordersheet'!P61)","v":{"$error":"#N/A"}},{"$f":"IF('1. Ordersheet'!Q61=\"\",\"\",'1. Ordersheet'!Q61)","v":""},{"$f":"IF('1. Ordersheet'!R61=\"\",\"\",'1. Ordersheet'!R61)","v":""},{"$f":"IF('1. Ordersheet'!S61=\"\",\"\",'1. Ordersheet'!S61)","v":""},{"$f":"IF('1. Ordersheet'!V61=\"\",\"\",'1. Ordersheet'!V61)","v":""},{"$f":"IF('1. Ordersheet'!W61=\"\",\"\",'1. Ordersheet'!W61)","v":""},{"$f":"IF('1. Ordersheet'!X61=\"\",\"\",'1. Ordersheet'!X61)","v":""},{"$f":"IF('1. Ordersheet'!Y61=\"\",\"\",'1. Ordersheet'!Y61)","v":""},{"$f":"IF('1. Ordersheet'!Z61=\"\",\"\",'1. Ordersheet'!Z61)","v":""},{"$f":"IF('1. Ordersheet'!AA61=\"\",\"\",'1. Ordersheet'!AA61)","v":""},null,{"$f":"IF('1. Ordersheet'!AS61=\"\",\"\",'1. Ordersheet'!AS61)","v":""},{"$f":"IF('1. Ordersheet'!AT61=\"\",\"\",'1. Ordersheet'!AT61)","v":""},null,null,null,null,null,null,null,{"$f":"IF('1. Ordersheet'!AX61=\"\",\"\",'1. Ordersheet'!AX61)","v":""},{"$f":"IF('1. Ordersheet'!AY61=\"\",\"\",'1. Ordersheet'!AY61)","v":""},{"$f":"IF('1. Ordersheet'!AZ61=\"\",\"\",'1. Ordersheet'!AZ61)","v":""},{"$f":"IF('1. Ordersheet'!BA61=\"\",\"\",'1. Ordersheet'!BA61)","v":""},{"$f":"IF('1. Ordersheet'!BC61=\"\",\"\",'1. Ordersheet'!BC61)","v":""},{"$f":"IF('1. Ordersheet'!BD61=\"\",\"\",'1. Ordersheet'!BD61)","v":""},{"$f":"IF('1. Ordersheet'!BE61=\"\",\"\",'1. Ordersheet'!BE61)","v":""},{"$f":"IF('1. Ordersheet'!BF61=\"\",\"\",'1. Ordersheet'!BF61)","v":""},{"$f":"IF('1. Ordersheet'!BG61=\"\",\"\",'1. Ordersheet'!BG61)","v":"ZWO"},{"$f":"IF('1. Ordersheet'!BH61=\"\",\"\",'1. Ordersheet'!BH61)","v":""},{"$f":"IF('1. Ordersheet'!BI61=\"\",\"\",'1. Ordersheet'!BI61)","v":""},{"$f":"IF('1. Ordersheet'!BJ61=\"\",\"\",'1. Ordersheet'!BJ61)","v":""},{"$f":"IF('1. Ordersheet'!BK61=\"\",\"\",'1. Ordersheet'!BK61)","v":""},{"$f":"IF('1. Ordersheet'!BL61=\"\",\"\",'1. Ordersheet'!BL61)","v":""}]
[{"$f":"IF('1. Ordersheet'!F62=\"\",\"\",'1. Ordersheet'!F62)","v":""},{"$f":"IF('1. Ordersheet'!G62=\"\",\"\",'1. Ordersheet'!G62)","v":""},{"$f":"IF('1. Ordersheet'!H62=\"\",\"\",'1. Ordersheet'!H62)","v":""},{"$f":"IF('1. Ordersheet'!I62=\"\",\"\",'1. Ordersheet'!I62)","v":""},{"$f":"IF('1. Ordersheet'!J62=\"\",\"\",'1. Ordersheet'!J62)","v":""},{"$f":"IF('1. Ordersheet'!K62=\"\",\"\",'1. Ordersheet'!K62)","v":""},{"$f":"IF('1. Ordersheet'!L62=\"\",\"\",'1. Ordersheet'!L62)","v":""},{"$f":"IF('1. Ordersheet'!M62=\"\",\"\",'1. Ordersheet'!M62)","v":""},{"$f":"IF('1. Ordersheet'!N62=\"\",\"\",'1. Ordersheet'!N62)","v":""},{"$f":"IF('1. Ordersheet'!O62=\"\",\"\",'1. Ordersheet'!O62)","v":{"$error":"#N/A"}},{"$f":"IF('1. Ordersheet'!P62=\"\",\"\",'1. Ordersheet'!P62)","v":{"$error":"#N/A"}},{"$f":"IF('1. Ordersheet'!Q62=\"\",\"\",'1. Ordersheet'!Q62)","v":""},{"$f":"IF('1. Ordersheet'!R62=\"\",\"\",'1. Ordersheet'!R62)","v":""},{"$f":"IF('1. Ordersheet'!S62=\"\",\"\",'1. Ordersheet'!S62)","v":""},{"$f":"IF('1. Ordersheet'!V62=\"\",\"\",'1. Ordersheet'!V62)","v":""},{"$f":"IF('1. Ordersheet'!W62=\"\",\"\",'1. Ordersheet'!W62)","v":""},{"$f":"IF('1. Ordersheet'!X62=\"\",\"\",'1. Ordersheet'!X62)","v":""},{"$f":"IF('1. Ordersheet'!Y62=\"\",\"\",'1. Ordersheet'!Y62)","v":""},{"$f":"IF('1. Ordersheet'!Z62=\"\",\"\",'1. Ordersheet'!Z62)","v":""},{"$f":"IF('1. Ordersheet'!AA62=\"\",\"\",'1. Ordersheet'!AA62)","v":""},null,{"$f":"IF('1. Ordersheet'!AS62=\"\",\"\",'1. Ordersheet'!AS62)","v":""},{"$f":"IF('1. Ordersheet'!AT62=\"\",\"\",'1. Ordersheet'!AT62)","v":""},null,null,null,null,null,null,null,{"$f":"IF('1. Ordersheet'!AX62=\"\",\"\",'1. Ordersheet'!AX62)","v":""},{"$f":"IF('1. Ordersheet'!AY62=\"\",\"\",'1. Ordersheet'!AY62)","v":""},{"$f":"IF('1. Ordersheet'!AZ62=\"\",\"\",'1. Ordersheet'!AZ62)","v":""},{"$f":"IF('1. Ordersheet'!BA62=\"\",\"\",'1. Ordersheet'!BA62)","v":""},{"$f":"IF('1. Ordersheet'!BC62=\"\",\"\",'1. Ordersheet'!BC62)","v":""},{"$f":"IF('1. Ordersheet'!BD62=\"\",\"\",'1. Ordersheet'!BD62)","v":""},{"$f":"IF('1. Ordersheet'!BE62=\"\",\"\",'1. Ordersheet'!BE62)","v":""},{"$f":"IF('1. Ordersheet'!BF62=\"\",\"\",'1. Ordersheet'!BF62)","v":""},{"$f":"IF('1. Ordersheet'!BG62=\"\",\"\",'1. Ordersheet'!BG62)","v":"ZWO"},{"$f":"IF('1. Ordersheet'!BH62=\"\",\"\",'1. Ordersheet'!BH62)","v":""},{"$f":"IF('1. Ordersheet'!BI62=\"\",\"\",'1. Ordersheet'!BI62)","v":""},{"$f":"IF('1. Ordersheet'!BJ62=\"\",\"\",'1. Ordersheet'!BJ62)","v":""},{"$f":"IF('1. Ordersheet'!BK62=\"\",\"\",'1. Ordersheet'!BK62)","v":""},{"$f":"IF('1. Ordersheet'!BL62=\"\",\"\",'1. Ordersheet'!BL62)","v":""}]
[{"$f":"IF('1. Ordersheet'!F63=\"\",\"\",'1. Ordersheet'!F63)","v":""},{"$f":"IF('1. Ordersheet'!G63=\"\",\"\",'1. Ordersheet'!G63)","v":""},{"$f":"IF('1. Ordersheet'!H63=\"\",\"\",'1. Ordersheet'!H63)","v":""},{"$f":"IF('1. Ordersheet'!I63=\"\",\"\",'1. Ordersheet'!I63)","v":""},{"$f":"IF('1. Ordersheet'!J63=\"\",\"\",'1. Ordersheet'!J63)","v":""},{"$f":"IF('1. Ordersheet'!K63=\"\",\"\",'1. Ordersheet'!K63)","v":""},{"$f":"IF('1. Ordersheet'!L63=\"\",\"\",'1. Ordersheet'!L63)","v":""},{"$f":"IF('1. Ordersheet'!M63=\"\",\"\",'1. Ordersheet'!M63)","v":""},{"$f":"IF('1. Ordersheet'!N63=\"\",\"\",'1. Ordersheet'!N63)","v":""},{"$f":"IF('1. Ordersheet'!O63=\"\",\"\",'1. Ordersheet'!O63)","v":{"$error":"#N/A"}},{"$f":"IF('1. Ordersheet'!P63=\"\",\"\",'1. Ordersheet'!P63)","v":{"$error":"#N/A"}},{"$f":"IF('1. Ordersheet'!Q63=\"\",\"\",'1. Ordersheet'!Q63)","v":""},{"$f":"IF('1. Ordersheet'!R63=\"\",\"\",'1. Ordersheet'!R63)","v":""},{"$f":"IF('1. Ordersheet'!S63=\"\",\"\",'1. Ordersheet'!S63)","v":""},{"$f":"IF('1. Ordersheet'!V63=\"\",\"\",'1. Ordersheet'!V63)","v":""},{"$f":"IF('1. Ordersheet'!W63=\"\",\"\",'1. Ordersheet'!W63)","v":""},{"$f":"IF('1. Ordersheet'!X63=\"\",\"\",'1. Ordersheet'!X63)","v":""},{"$f":"IF('1. Ordersheet'!Y63=\"\",\"\",'1. Ordersheet'!Y63)","v":""},{"$f":"IF('1. Ordersheet'!Z63=\"\",\"\",'1. Ordersheet'!Z63)","v":""},{"$f":"IF('1. Ordersheet'!AA63=\"\",\"\",'1. Ordersheet'!AA63)","v":""},null,{"$f":"IF('1. Ordersheet'!AS63=\"\",\"\",'1. Ordersheet'!AS63)","v":""},{"$f":"IF('1. Ordersheet'!AT63=\"\",\"\",'1. Ordersheet'!AT63)","v":""},null,null,null,null,null,null,null,{"$f":"IF('1. Ordersheet'!AX63=\"\",\"\",'1. Ordersheet'!AX63)","v":""},{"$f":"IF('1. Ordersheet'!AY63=\"\",\"\",'1. Ordersheet'!AY63)","v":""},{"$f":"IF('1. Ordersheet'!AZ63=\"\",\"\",'1. Ordersheet'!AZ63)","v":""},{"$f":"IF('1. Ordersheet'!BA63=\"\",\"\",'1. Ordersheet'!BA63)","v":""},{"$f":"IF('1. Ordersheet'!BC63=\"\",\"\",'1. Ordersheet'!BC63)","v":""},{"$f":"IF('1. Ordersheet'!BD63=\"\",\"\",'1. Ordersheet'!BD63)","v":""},{"$f":"IF('1. Ordersheet'!BE63=\"\",\"\",'1. Ordersheet'!BE63)","v":""},{"$f":"IF('1. Ordersheet'!BF63=\"\",\"\",'1. Ordersheet'!BF63)","v":""},{"$f":"IF('1. Ordersheet'!BG63=\"\",\"\",'1. Ordersheet'!BG63)","v":"ZWO"},{"$f":"IF('1. Ordersheet'!BH63=\"\",\"\",'1. Ordersheet'!BH63)","v":""},{"$f":"IF('1. Ordersheet'!BI63=\"\",\"\",'1. Ordersheet'!BI63)","v":""},{"$f":"IF('1. Ordersheet'!BJ63=\"\",\"\",'1. Ordersheet'!BJ63)","v":""},{"$f":"IF('1. Ordersheet'!BK63=\"\",\"\",'1. Ordersheet'!BK63)","v":""},{"$f":"IF('1. Ordersheet'!BL63=\"\",\"\",'1. Ordersheet'!BL63)","v":""}]
[{"$f":"IF('1. Ordersheet'!F64=\"\",\"\",'1. Ordersheet'!F64)","v":""},{"$f":"IF('1. Ordersheet'!G64=\"\",\"\",'1. Ordersheet'!G64)","v":""},{"$f":"IF('1. Ordersheet'!H64=\"\",\"\",'1. Ordersheet'!H64)","v":""},{"$f":"IF('1. Ordersheet'!I64=\"\",\"\",'1. Ordersheet'!I64)","v":""},{"$f":"IF('1. Ordersheet'!J64=\"\",\"\",'1. Ordersheet'!J64)","v":""},{"$f":"IF('1. Ordersheet'!K64=\"\",\"\",'1. Ordersheet'!K64)","v":""},{"$f":"IF('1. Ordersheet'!L64=\"\",\"\",'1. Ordersheet'!L64)","v":""},{"$f":"IF('1. Ordersheet'!M64=\"\",\"\",'1. Ordersheet'!M64)","v":""},{"$f":"IF('1. Ordersheet'!N64=\"\",\"\",'1. Ordersheet'!N64)","v":""},{"$f":"IF('1. Ordersheet'!O64=\"\",\"\",'1. Ordersheet'!O64)","v":{"$error":"#N/A"}},{"$f":"IF('1. Ordersheet'!P64=\"\",\"\",'1. Ordersheet'!P64)","v":{"$error":"#N/A"}},{"$f":"IF('1. Ordersheet'!Q64=\"\",\"\",'1. Ordersheet'!Q64)","v":""},{"$f":"IF('1. Ordersheet'!R64=\"\",\"\",'1. Ordersheet'!R64)","v":""},{"$f":"IF('1. Ordersheet'!S64=\"\",\"\",'1. Ordersheet'!S64)","v":""},{"$f":"IF('1. Ordersheet'!V64=\"\",\"\",'1. Ordersheet'!V64)","v":""},{"$f":"IF('1. Ordersheet'!W64=\"\",\"\",'1. Ordersheet'!W64)","v":""},{"$f":"IF('1. Ordersheet'!X64=\"\",\"\",'1. Ordersheet'!X64)","v":""},{"$f":"IF('1. Ordersheet'!Y64=\"\",\"\",'1. Ordersheet'!Y64)","v":""},{"$f":"IF('1. Ordersheet'!Z64=\"\",\"\",'1. Ordersheet'!Z64)","v":""},{"$f":"IF('1. Ordersheet'!AA64=\"\",\"\",'1. Ordersheet'!AA64)","v":""},null,{"$f":"IF('1. Ordersheet'!AS64=\"\",\"\",'1. Ordersheet'!AS64)","v":""},{"$f":"IF('1. Ordersheet'!AT64=\"\",\"\",'1. Ordersheet'!AT64)","v":""},null,null,null,null,null,null,null,{"$f":"IF('1. Ordersheet'!AX64=\"\",\"\",'1. Ordersheet'!AX64)","v":""},{"$f":"IF('1. Ordersheet'!AY64=\"\",\"\",'1. Ordersheet'!AY64)","v":""},{"$f":"IF('1. Ordersheet'!AZ64=\"\",\"\",'1. Ordersheet'!AZ64)","v":""},{"$f":"IF('1. Ordersheet'!BA64=\"\",\"\",'1. Ordersheet'!BA64)","v":""},{"$f":"IF('1. Ordersheet'!BC64=\"\",\"\",'1. Ordersheet'!BC64)","v":""},{"$f":"IF('1. Ordersheet'!BD64=\"\",\"\",'1. Ordersheet'!BD64)","v":""},{"$f":"IF('1. Ordersheet'!BE64=\"\",\"\",'1. Ordersheet'!BE64)","v":""},{"$f":"IF('1. Ordersheet'!BF64=\"\",\"\",'1. Ordersheet'!BF64)","v":""},{"$f":"IF('1. Ordersheet'!BG64=\"\",\"\",'1. Ordersheet'!BG64)","v":"ZWO"},{"$f":"IF('1. Ordersheet'!BH64=\"\",\"\",'1. Ordersheet'!BH64)","v":""},{"$f":"IF('1. Ordersheet'!BI64=\"\",\"\",'1. Ordersheet'!BI64)","v":""},{"$f":"IF('1. Ordersheet'!BJ64=\"\",\"\",'1. Ordersheet'!BJ64)","v":""},{"$f":"IF('1. Ordersheet'!BK64=\"\",\"\",'1. Ordersheet'!BK64)","v":""},{"$f":"IF('1. Ordersheet'!BL64=\"\",\"\",'1. Ordersheet'!BL64)","v":""}]
[{"$f":"IF('1. Ordersheet'!F65=\"\",\"\",'1. Ordersheet'!F65)","v":""},{"$f":"IF('1. Ordersheet'!G65=\"\",\"\",'1. Ordersheet'!G65)","v":""},{"$f":"IF('1. Ordersheet'!H65=\"\",\"\",'1. Ordersheet'!H65)","v":""},{"$f":"IF('1. Ordersheet'!I65=\"\",\"\",'1. Ordersheet'!I65)","v":""},{"$f":"IF('1. Ordersheet'!J65=\"\",\"\",'1. Ordersheet'!J65)","v":""},{"$f":"IF('1. Ordersheet'!K65=\"\",\"\",'1. Ordersheet'!K65)","v":""},{"$f":"IF('1. Ordersheet'!L65=\"\",\"\",'1. Ordersheet'!L65)","v":""},{"$f":"IF('1. Ordersheet'!M65=\"\",\"\",'1. Ordersheet'!M65)","v":""},{"$f":"IF('1. Ordersheet'!N65=\"\",\"\",'1. Ordersheet'!N65)","v":""},{"$f":"IF('1. Ordersheet'!O65=\"\",\"\",'1. Ordersheet'!O65)","v":{"$error":"#N/A"}},{"$f":"IF('1. Ordersheet'!P65=\"\",\"\",'1. Ordersheet'!P65)","v":{"$error":"#N/A"}},{"$f":"IF('1. Ordersheet'!Q65=\"\",\"\",'1. Ordersheet'!Q65)","v":""},{"$f":"IF('1. Ordersheet'!R65=\"\",\"\",'1. Ordersheet'!R65)","v":""},{"$f":"IF('1. Ordersheet'!S65=\"\",\"\",'1. Ordersheet'!S65)","v":""},{"$f":"IF('1. Ordersheet'!V65=\"\",\"\",'1. Ordersheet'!V65)","v":""},{"$f":"IF('1. Ordersheet'!W65=\"\",\"\",'1. Ordersheet'!W65)","v":""},{"$f":"IF('1. Ordersheet'!X65=\"\",\"\",'1. Ordersheet'!X65)","v":""},{"$f":"IF('1. Ordersheet'!Y65=\"\",\"\",'1. Ordersheet'!Y65)","v":""},{"$f":"IF('1. Ordersheet'!Z65=\"\",\"\",'1. Ordersheet'!Z65)","v":""},{"$f":"IF('1. Ordersheet'!AA65=\"\",\"\",'1. Ordersheet'!AA65)","v":""},null,{"$f":"IF('1. Ordersheet'!AS65=\"\",\"\",'1. Ordersheet'!AS65)","v":""},{"$f":"IF('1. Ordersheet'!AT65=\"\",\"\",'1. Ordersheet'!AT65)","v":""},null,null,null,null,null,null,null,{"$f":"IF('1. Ordersheet'!AX65=\"\",\"\",'1. Ordersheet'!AX65)","v":""},{"$f":"IF('1. Ordersheet'!AY65=\"\",\"\",'1. Ordersheet'!AY65)","v":""},{"$f":"IF('1. Ordersheet'!AZ65=\"\",\"\",'1. Ordersheet'!AZ65)","v":""},{"$f":"IF('1. Ordersheet'!BA65=\"\",\"\",'1. Ordersheet'!BA65)","v":""},{"$f":"IF('1. Ordersheet'!BC65=\"\",\"\",'1. Ordersheet'!BC65)","v":""},{"$f":"IF('1. Ordersheet'!BD65=\"\",\"\",'1. Ordersheet'!BD65)","v":""},{"$f":"IF('1. Ordersheet'!BE65=\"\",\"\",'1. Ordersheet'!BE65)","v":""},{"$f":"IF('1. Ordersheet'!BF65=\"\",\"\",'1. Ordersheet'!BF65)","v":""},{"$f":"IF('1. Ordersheet'!BG65=\"\",\"\",'1. Ordersheet'!BG65)","v":"ZWO"},{"$f":"IF('1. Ordersheet'!BH65=\"\",\"\",'1. Ordersheet'!BH65)","v":""},{"$f":"IF('1. Ordersheet'!BI65=\"\",\"\",'1. Ordersheet'!BI65)","v":""},{"$f":"IF('1. Ordersheet'!BJ65=\"\",\"\",'1. Ordersheet'!BJ65)","v":""},{"$f":"IF('1. Ordersheet'!BK65=\"\",\"\",'1. Ordersheet'!BK65)","v":""},{"$f":"IF('1. Ordersheet'!BL65=\"\",\"\",'1. Ordersheet'!BL65)","v":""}]
[{"$f":"IF('1. Ordersheet'!F66=\"\",\"\",'1. Ordersheet'!F66)","v":""},{"$f":"IF('1. Ordersheet'!G66=\"\",\"\",'1. Ordersheet'!G66)","v":""},{"$f":"IF('1. Ordersheet'!H66=\"\",\"\",'1. Ordersheet'!H66)","v":""},{"$f":"IF('1. Ordersheet'!I66=\"\",\"\",'1. Ordersheet'!I66)","v":""},{"$f":"IF('1. Ordersheet'!J66=\"\",\"\",'1. Ordersheet'!J66)","v":""},{"$f":"IF('1. Ordersheet'!K66=\"\",\"\",'1. Ordersheet'!K66)","v":""},{"$f":"IF('1. Ordersheet'!L66=\"\",\"\",'1. Ordersheet'!L66)","v":""},{"$f":"IF('1. Ordersheet'!M66=\"\",\"\",'1. Ordersheet'!M66)","v":""},{"$f":"IF('1. Ordersheet'!N66=\"\",\"\",'1. Ordersheet'!N66)","v":""},{"$f":"IF('1. Ordersheet'!O66=\"\",\"\",'1. Ordersheet'!O66)","v":{"$error":"#N/A"}},{"$f":"IF('1. Ordersheet'!P66=\"\",\"\",'1. Ordersheet'!P66)","v":{"$error":"#N/A"}},{"$f":"IF('1. Ordersheet'!Q66=\"\",\"\",'1. Ordersheet'!Q66)","v":""},{"$f":"IF('1. Ordersheet'!R66=\"\",\"\",'1. Ordersheet'!R66)","v":""},{"$f":"IF('1. Ordersheet'!S66=\"\",\"\",'1. Ordersheet'!S66)","v":""},{"$f":"IF('1. Ordersheet'!V66=\"\",\"\",'1. Ordersheet'!V66)","v":""},{"$f":"IF('1. Ordersheet'!W66=\"\",\"\",'1. Ordersheet'!W66)","v":""},{"$f":"IF('1. Ordersheet'!X66=\"\",\"\",'1. Ordersheet'!X66)","v":""},{"$f":"IF('1. Ordersheet'!Y66=\"\",\"\",'1. Ordersheet'!Y66)","v":""},{"$f":"IF('1. Ordersheet'!Z66=\"\",\"\",'1. Ordersheet'!Z66)","v":""},{"$f":"IF('1. Ordersheet'!AA66=\"\",\"\",'1. Ordersheet'!AA66)","v":""},null,{"$f":"IF('1. Ordersheet'!AS66=\"\",\"\",'1. Ordersheet'!AS66)","v":""},{"$f":"IF('1. Ordersheet'!AT66=\"\",\"\",'1. Ordersheet'!AT66)","v":""},null,null,null,null,null,null,null,{"$f":"IF('1. Ordersheet'!AX66=\"\",\"\",'1. Ordersheet'!AX66)","v":""},{"$f":"IF('1. Ordersheet'!AY66=\"\",\"\",'1. Ordersheet'!AY66)","v":""},{"$f":"IF('1. Ordersheet'!AZ66=\"\",\"\",'1. Ordersheet'!AZ66)","v":""},{"$f":"IF('1. Ordersheet'!BA66=\"\",\"\",'1. Ordersheet'!BA66)","v":""},{"$f":"IF('1. Ordersheet'!BC66=\"\",\"\",'1. Ordersheet'!BC66)","v":""},{"$f":"IF('1. Ordersheet'!BD66=\"\",\"\",'1. Ordersheet'!BD66)","v":""},{"$f":"IF('1. Ordersheet'!BE66=\"\",\"\",'1. Ordersheet'!BE66)","v":""},{"$f":"IF('1. Ordersheet'!BF66=\"\",\"\",'1. Ordersheet'!BF66)","v":""},{"$f":"IF('1. Ordersheet'!BG66=\"\",\"\",'1. Ordersheet'!BG66)","v":"ZWO"},{"$f":"IF('1. Ordersheet'!BH66=\"\",\"\",'1. Ordersheet'!BH66)","v":""},{"$f":"IF('1. Ordersheet'!BI66=\"\",\"\",'1. Ordersheet'!BI66)","v":""},{"$f":"IF('1. Ordersheet'!BJ66=\"\",\"\",'1. Ordersheet'!BJ66)","v":""},{"$f":"IF('1. Ordersheet'!BK66=\"\",\"\",'1. Ordersheet'!BK66)","v":""},{"$f":"IF('1. Ordersheet'!BL66=\"\",\"\",'1. Ordersheet'!BL66)","v":""}]
[{"$f":"IF('1. Ordersheet'!F67=\"\",\"\",'1. Ordersheet'!F67)","v":""},{"$f":"IF('1. Ordersheet'!G67=\"\",\"\",'1. Ordersheet'!G67)","v":""},{"$f":"IF('1. Ordersheet'!H67=\"\",\"\",'1. Ordersheet'!H67)","v":""},{"$f":"IF('1. Ordersheet'!I67=\"\",\"\",'1. Ordersheet'!I67)","v":""},{"$f":"IF('1. Ordersheet'!J67=\"\",\"\",'1. Ordersheet'!J67)","v":""},{"$f":"IF('1. Ordersheet'!K67=\"\",\"\",'1. Ordersheet'!K67)","v":""},{"$f":"IF('1. Ordersheet'!L67=\"\",\"\",'1. Ordersheet'!L67)","v":""},{"$f":"IF('1. Ordersheet'!M67=\"\",\"\",'1. Ordersheet'!M67)","v":""},{"$f":"IF('1. Ordersheet'!N67=\"\",\"\",'1. Ordersheet'!N67)","v":""},{"$f":"IF('1. Ordersheet'!O67=\"\",\"\",'1. Ordersheet'!O67)","v":{"$error":"#N/A"}},{"$f":"IF('1. Ordersheet'!P67=\"\",\"\",'1. Ordersheet'!P67)","v":{"$error":"#N/A"}},{"$f":"IF('1. Ordersheet'!Q67=\"\",\"\",'1. Ordersheet'!Q67)","v":""},{"$f":"IF('1. Ordersheet'!R67=\"\",\"\",'1. Ordersheet'!R67)","v":""},{"$f":"IF('1. Ordersheet'!S67=\"\",\"\",'1. Ordersheet'!S67)","v":""},{"$f":"IF('1. Ordersheet'!V67=\"\",\"\",'1. Ordersheet'!V67)","v":""},{"$f":"IF('1. Ordersheet'!W67=\"\",\"\",'1. Ordersheet'!W67)","v":""},{"$f":"IF('1. Ordersheet'!X67=\"\",\"\",'1. Ordersheet'!X67)","v":""},{"$f":"IF('1. Ordersheet'!Y67=\"\",\"\",'1. Ordersheet'!Y67)","v":""},{"$f":"IF('1. Ordersheet'!Z67=\"\",\"\",'1. Ordersheet'!Z67)","v":""},{"$f":"IF('1. Ordersheet'!AA67=\"\",\"\",'1. Ordersheet'!AA67)","v":""},null,{"$f":"IF('1. Ordersheet'!AS67=\"\",\"\",'1. Ordersheet'!AS67)","v":""},{"$f":"IF('1. Ordersheet'!AT67=\"\",\"\",'1. Ordersheet'!AT67)","v":""},null,null,null,null,null,null,null,{"$f":"IF('1. Ordersheet'!AX67=\"\",\"\",'1. Ordersheet'!AX67)","v":""},{"$f":"IF('1. Ordersheet'!AY67=\"\",\"\",'1. Ordersheet'!AY67)","v":""},{"$f":"IF('1. Ordersheet'!AZ67=\"\",\"\",'1. Ordersheet'!AZ67)","v":""},{"$f":"IF('1. Ordersheet'!BA67=\"\",\"\",'1. Ordersheet'!BA67)","v":""},{"$f":"IF('1. Ordersheet'!BC67=\"\",\"\",'1. Ordersheet'!BC67)","v":""},{"$f":"IF('1. Ordersheet'!BD67=\"\",\"\",'1. Ordersheet'!BD67)","v":""},{"$f":"IF('1. Ordersheet'!BE67=\"\",\"\",'1. Ordersheet'!BE67)","v":""},{"$f":"IF('1. Ordersheet'!BF67=\"\",\"\",'1. Ordersheet'!BF67)","v":""},{"$f":"IF('1. Ordersheet'!BG67=\"\",\"\",'1. Ordersheet'!BG67)","v":"ZWO"},{"$f":"IF('1. Ordersheet'!BH67=\"\",\"\",'1. Ordersheet'!BH67)","v":""},{"$f":"IF('1. Ordersheet'!BI67=\"\",\"\",'1. Ordersheet'!BI67)","v":""},{"$f":"IF('1. Ordersheet'!BJ67=\"\",\"\",'1. Ordersheet'!BJ67)","v":""},{"$f":"IF('1. Ordersheet'!BK67=\"\",\"\",'1. Ordersheet'!BK67)","v":""},{"$f":"IF('1. Ordersheet'!BL67=\"\",\"\",'1. Ordersheet'!BL67)","v":""}]
[{"$f":"IF('1. Ordersheet'!F68=\"\",\"\",'1. Ordersheet'!F68)","v":""},{"$f":"IF('1. Ordersheet'!G68=\"\",\"\",'1. Ordersheet'!G68)","v":""},{"$f":"IF('1. Ordersheet'!H68=\"\",\"\",'1. Ordersheet'!H68)","v":""},{"$f":"IF('1. Ordersheet'!I68=\"\",\"\",'1. Ordersheet'!I68)","v":""},{"$f":"IF('1. Ordersheet'!J68=\"\",\"\",'1. Ordersheet'!J68)","v":""},{"$f":"IF('1. Ordersheet'!K68=\"\",\"\",'1. Ordersheet'!K68)","v":""},{"$f":"IF('1. Ordersheet'!L68=\"\",\"\",'1. Ordersheet'!L68)","v":""},{"$f":"IF('1. Ordersheet'!M68=\"\",\"\",'1. Ordersheet'!M68)","v":""},{"$f":"IF('1. Ordersheet'!N68=\"\",\"\",'1. Ordersheet'!N68)","v":""},{"$f":"IF('1. Ordersheet'!O68=\"\",\"\",'1. Ordersheet'!O68)","v":{"$error":"#N/A"}},{"$f":"IF('1. Ordersheet'!P68=\"\",\"\",'1. Ordersheet'!P68)","v":{"$error":"#N/A"}},{"$f":"IF('1. Ordersheet'!Q68=\"\",\"\",'1. Ordersheet'!Q68)","v":""},{"$f":"IF('1. Ordersheet'!R68=\"\",\"\",'1. Ordersheet'!R68)","v":""},{"$f":"IF('1. Ordersheet'!S68=\"\",\"\",'1. Ordersheet'!S68)","v":""},{"$f":"IF('1. Ordersheet'!V68=\"\",\"\",'1. Ordersheet'!V68)","v":""},{"$f":"IF('1. Ordersheet'!W68=\"\",\"\",'1. Ordersheet'!W68)","v":""},{"$f":"IF('1. Ordersheet'!X68=\"\",\"\",'1. Ordersheet'!X68)","v":""},{"$f":"IF('1. Ordersheet'!Y68=\"\",\"\",'1. Ordersheet'!Y68)","v":""},{"$f":"IF('1. Ordersheet'!Z68=\"\",\"\",'1. Ordersheet'!Z68)","v":""},{"$f":"IF('1. Ordersheet'!AA68=\"\",\"\",'1. Ordersheet'!AA68)","v":""},null,{"$f":"IF('1. Ordersheet'!AS68=\"\",\"\",'1. Ordersheet'!AS68)","v":""},{"$f":"IF('1. Ordersheet'!AT68=\"\",\"\",'1. Ordersheet'!AT68)","v":""},null,null,null,null,null,null,null,{"$f":"IF('1. Ordersheet'!AX68=\"\",\"\",'1. Ordersheet'!AX68)","v":""},{"$f":"IF('1. Ordersheet'!AY68=\"\",\"\",'1. Ordersheet'!AY68)","v":""},{"$f":"IF('1. Ordersheet'!AZ68=\"\",\"\",'1. Ordersheet'!AZ68)","v":""},{"$f":"IF('1. Ordersheet'!BA68=\"\",\"\",'1. Ordersheet'!BA68)","v":""},{"$f":"IF('1. Ordersheet'!BC68=\"\",\"\",'1. Ordersheet'!BC68)","v":""},{"$f":"IF('1. Ordersheet'!BD68=\"\",\"\",'1. Ordersheet'!BD68)","v":""},{"$f":"IF('1. Ordersheet'!BE68=\"\",\"\",'1. Ordersheet'!BE68)","v":""},{"$f":"IF('1. Ordersheet'!BF68=\"\",\"\",'1. Ordersheet'!BF68)","v":""},{"$f":"IF('1. Ordersheet'!BG68=\"\",\"\",'1. Ordersheet'!BG68)","v":"ZWO"},{"$f":"IF('1. Ordersheet'!BH68=\"\",\"\",'1. Ordersheet'!BH68)","v":""},{"$f":"IF('1. Ordersheet'!BI68=\"\",\"\",'1. Ordersheet'!BI68)","v":""},{"$f":"IF('1. Ordersheet'!BJ68=\"\",\"\",'1. Ordersheet'!BJ68)","v":""},{"$f":"IF('1. Ordersheet'!BK68=\"\",\"\",'1. Ordersheet'!BK68)","v":""},{"$f":"IF('1. Ordersheet'!BL68=\"\",\"\",'1. Ordersheet'!BL68)","v":""}]
[{"$f":"IF('1. Ordersheet'!F69=\"\",\"\",'1. Ordersheet'!F69)","v":""},{"$f":"IF('1. Ordersheet'!G69=\"\",\"\",'1. Ordersheet'!G69)","v":""},{"$f":"IF('1. Ordersheet'!H69=\"\",\"\",'1. Ordersheet'!H69)","v":""},{"$f":"IF('1. Ordersheet'!I69=\"\",\"\",'1. Ordersheet'!I69)","v":""},{"$f":"IF('1. Ordersheet'!J69=\"\",\"\",'1. Ordersheet'!J69)","v":""},{"$f":"IF('1. Ordersheet'!K69=\"\",\"\",'1. Ordersheet'!K69)","v":""},{"$f":"IF('1. Ordersheet'!L69=\"\",\"\",'1. Ordersheet'!L69)","v":""},{"$f":"IF('1. Ordersheet'!M69=\"\",\"\",'1. Ordersheet'!M69)","v":""},{"$f":"IF('1. Ordersheet'!N69=\"\",\"\",'1. Ordersheet'!N69)","v":""},{"$f":"IF('1. Ordersheet'!O69=\"\",\"\",'1. Ordersheet'!O69)","v":{"$error":"#N/A"}},{"$f":"IF('1. Ordersheet'!P69=\"\",\"\",'1. Ordersheet'!P69)","v":{"$error":"#N/A"}},{"$f":"IF('1. Ordersheet'!Q69=\"\",\"\",'1. Ordersheet'!Q69)","v":""},{"$f":"IF('1. Ordersheet'!R69=\"\",\"\",'1. Ordersheet'!R69)","v":""},{"$f":"IF('1. Ordersheet'!S69=\"\",\"\",'1. Ordersheet'!S69)","v":""},{"$f":"IF('1. Ordersheet'!V69=\"\",\"\",'1. Ordersheet'!V69)","v":""},{"$f":"IF('1. Ordersheet'!W69=\"\",\"\",'1. Ordersheet'!W69)","v":""},{"$f":"IF('1. Ordersheet'!X69=\"\",\"\",'1. Ordersheet'!X69)","v":""},{"$f":"IF('1. Ordersheet'!Y69=\"\",\"\",'1. Ordersheet'!Y69)","v":""},{"$f":"IF('1. Ordersheet'!Z69=\"\",\"\",'1. Ordersheet'!Z69)","v":""},{"$f":"IF('1. Ordersheet'!AA69=\"\",\"\",'1. Ordersheet'!AA69)","v":""},null,{"$f":"IF('1. Ordersheet'!AS69=\"\",\"\",'1. Ordersheet'!AS69)","v":""},{"$f":"IF('1. Ordersheet'!AT69=\"\",\"\",'1. Ordersheet'!AT69)","v":""},null,null,null,null,null,null,null,{"$f":"IF('1. Ordersheet'!AX69=\"\",\"\",'1. Ordersheet'!AX69)","v":""},{"$f":"IF('1. Ordersheet'!AY69=\"\",\"\",'1. Ordersheet'!AY69)","v":""},{"$f":"IF('1. Ordersheet'!AZ69=\"\",\"\",'1. Ordersheet'!AZ69)","v":""},{"$f":"IF('1. Ordersheet'!BA69=\"\",\"\",'1. Ordersheet'!BA69)","v":""},{"$f":"IF('1. Ordersheet'!BC69=\"\",\"\",'1. Ordersheet'!BC69)","v":""},{"$f":"IF('1. Ordersheet'!BD69=\"\",\"\",'1. Ordersheet'!BD69)","v":""},{"$f":"IF('1. Ordersheet'!BE69=\"\",\"\",'1. Ordersheet'!BE69)","v":""},{"$f":"IF('1. Ordersheet'!BF69=\"\",\"\",'1. Ordersheet'!BF69)","v":""},{"$f":"IF('1. Ordersheet'!BG69=\"\",\"\",'1. Ordersheet'!BG69)","v":"ZWO"},{"$f":"IF('1. Ordersheet'!BH69=\"\",\"\",'1. Ordersheet'!BH69)","v":""},{"$f":"IF('1. Ordersheet'!BI69=\"\",\"\",'1. Ordersheet'!BI69)","v":""},{"$f":"IF('1. Ordersheet'!BJ69=\"\",\"\",'1. Ordersheet'!BJ69)","v":""},{"$f":"IF('1. Ordersheet'!BK69=\"\",\"\",'1. Ordersheet'!BK69)","v":""},{"$f":"IF('1. Ordersheet'!BL69=\"\",\"\",'1. Ordersheet'!BL69)","v":""}]
[{"$f":"IF('1. Ordersheet'!F70=\"\",\"\",'1. Ordersheet'!F70)","v":""},{"$f":"IF('1. Ordersheet'!G70=\"\",\"\",'1. Ordersheet'!G70)","v":""},{"$f":"IF('1. Ordersheet'!H70=\"\",\"\",'1. Ordersheet'!H70)","v":""},{"$f":"IF('1. Ordersheet'!I70=\"\",\"\",'1. Ordersheet'!I70)","v":""},{"$f":"IF('1. Ordersheet'!J70=\"\",\"\",'1. Ordersheet'!J70)","v":""},{"$f":"IF('1. Ordersheet'!K70=\"\",\"\",'1. Ordersheet'!K70)","v":""},{"$f":"IF('1. Ordersheet'!L70=\"\",\"\",'1. Ordersheet'!L70)","v":""},{"$f":"IF('1. Ordersheet'!M70=\"\",\"\",'1. Ordersheet'!M70)","v":""},{"$f":"IF('1. Ordersheet'!N70=\"\",\"\",'1. Ordersheet'!N70)","v":""},{"$f":"IF('1. Ordersheet'!O70=\"\",\"\",'1. Ordersheet'!O70)","v":{"$error":"#N/A"}},{"$f":"IF('1. Ordersheet'!P70=\"\",\"\",'1. Ordersheet'!P70)","v":{"$error":"#N/A"}},{"$f":"IF('1. Ordersheet'!Q70=\"\",\"\",'1. Ordersheet'!Q70)","v":""},{"$f":"IF('1. Ordersheet'!R70=\"\",\"\",'1. Ordersheet'!R70)","v":""},{"$f":"IF('1. Ordersheet'!S70=\"\",\"\",'1. Ordersheet'!S70)","v":""},{"$f":"IF('1. Ordersheet'!V70=\"\",\"\",'1. Ordersheet'!V70)","v":""},{"$f":"IF('1. Ordersheet'!W70=\"\",\"\",'1. Ordersheet'!W70)","v":""},{"$f":"IF('1. Ordersheet'!X70=\"\",\"\",'1. Ordersheet'!X70)","v":""},{"$f":"IF('1. Ordersheet'!Y70=\"\",\"\",'1. Ordersheet'!Y70)","v":""},{"$f":"IF('1. Ordersheet'!Z70=\"\",\"\",'1. Ordersheet'!Z70)","v":""},{"$f":"IF('1. Ordersheet'!AA70=\"\",\"\",'1. Ordersheet'!AA70)","v":""},null,{"$f":"IF('1. Ordersheet'!AS70=\"\",\"\",'1. Ordersheet'!AS70)","v":""},{"$f":"IF('1. Ordersheet'!AT70=\"\",\"\",'1. Ordersheet'!AT70)","v":""},null,null,null,null,null,null,null,{"$f":"IF('1. Ordersheet'!AX70=\"\",\"\",'1. Ordersheet'!AX70)","v":""},{"$f":"IF('1. Ordersheet'!AY70=\"\",\"\",'1. Ordersheet'!AY70)","v":""},{"$f":"IF('1. Ordersheet'!AZ70=\"\",\"\",'1. Ordersheet'!AZ70)","v":""},{"$f":"IF('1. Ordersheet'!BA70=\"\",\"\",'1. Ordersheet'!BA70)","v":""},{"$f":"IF('1. Ordersheet'!BC70=\"\",\"\",'1. Ordersheet'!BC70)","v":""},{"$f":"IF('1. Ordersheet'!BD70=\"\",\"\",'1. Ordersheet'!BD70)","v":""},{"$f":"IF('1. Ordersheet'!BE70=\"\",\"\",'1. Ordersheet'!BE70)","v":""},{"$f":"IF('1. Ordersheet'!BF70=\"\",\"\",'1. Ordersheet'!BF70)","v":""},{"$f":"IF('1. Ordersheet'!BG70=\"\",\"\",'1. Ordersheet'!BG70)","v":"ZWO"},{"$f":"IF('1. Ordersheet'!BH70=\"\",\"\",'1. Ordersheet'!BH70)","v":""},{"$f":"IF('1. Ordersheet'!BI70=\"\",\"\",'1. Ordersheet'!BI70)","v":""},{"$f":"IF('1. Ordersheet'!BJ70=\"\",\"\",'1. Ordersheet'!BJ70)","v":""},{"$f":"IF('1. Ordersheet'!BK70=\"\",\"\",'1. Ordersheet'!BK70)","v":""},{"$f":"IF('1. Ordersheet'!BL70=\"\",\"\",'1. Ordersheet'!BL70)","v":""}]
[{"$f":"IF('1. Ordersheet'!F71=\"\",\"\",'1. Ordersheet'!F71)","v":""},{"$f":"IF('1. Ordersheet'!G71=\"\",\"\",'1. Ordersheet'!G71)","v":""},{"$f":"IF('1. Ordersheet'!H71=\"\",\"\",'1. Ordersheet'!H71)","v":""},{"$f":"IF('1. Ordersheet'!I71=\"\",\"\",'1. Ordersheet'!I71)","v":""},{"$f":"IF('1. Ordersheet'!J71=\"\",\"\",'1. Ordersheet'!J71)","v":""},{"$f":"IF('1. Ordersheet'!K71=\"\",\"\",'1. Ordersheet'!K71)","v":""},{"$f":"IF('1. Ordersheet'!L71=\"\",\"\",'1. Ordersheet'!L71)","v":""},{"$f":"IF('1. Ordersheet'!M71=\"\",\"\",'1. Ordersheet'!M71)","v":""},{"$f":"IF('1. Ordersheet'!N71=\"\",\"\",'1. Ordersheet'!N71)","v":""},{"$f":"IF('1. Ordersheet'!O71=\"\",\"\",'1. Ordersheet'!O71)","v":{"$error":"#N/A"}},{"$f":"IF('1. Ordersheet'!P71=\"\",\"\",'1. Ordersheet'!P71)","v":{"$error":"#N/A"}},{"$f":"IF('1. Ordersheet'!Q71=\"\",\"\",'1. Ordersheet'!Q71)","v":""},{"$f":"IF('1. Ordersheet'!R71=\"\",\"\",'1. Ordersheet'!R71)","v":""},{"$f":"IF('1. Ordersheet'!S71=\"\",\"\",'1. Ordersheet'!S71)","v":""},{"$f":"IF('1. Ordersheet'!V71=\"\",\"\",'1. Ordersheet'!V71)","v":""},{"$f":"IF('1. Ordersheet'!W71=\"\",\"\",'1. Ordersheet'!W71)","v":""},{"$f":"IF('1. Ordersheet'!X71=\"\",\"\",'1. Ordersheet'!X71)","v":""},{"$f":"IF('1. Ordersheet'!Y71=\"\",\"\",'1. Ordersheet'!Y71)","v":""},{"$f":"IF('1. Ordersheet'!Z71=\"\",\"\",'1. Ordersheet'!Z71)","v":""},{"$f":"IF('1. Ordersheet'!AA71=\"\",\"\",'1. Ordersheet'!AA71)","v":""},null,{"$f":"IF('1. Ordersheet'!AS71=\"\",\"\",'1. Ordersheet'!AS71)","v":""},{"$f":"IF('1. Ordersheet'!AT71=\"\",\"\",'1. Ordersheet'!AT71)","v":""},null,null,null,null,null,null,null,{"$f":"IF('1. Ordersheet'!AX71=\"\",\"\",'1. Ordersheet'!AX71)","v":""},{"$f":"IF('1. Ordersheet'!AY71=\"\",\"\",'1. Ordersheet'!AY71)","v":""},{"$f":"IF('1. Ordersheet'!AZ71=\"\",\"\",'1. Ordersheet'!AZ71)","v":""},{"$f":"IF('1. Ordersheet'!BA71=\"\",\"\",'1. Ordersheet'!BA71)","v":""},{"$f":"IF('1. Ordersheet'!BC71=\"\",\"\",'1. Ordersheet'!BC71)","v":""},{"$f":"IF('1. Ordersheet'!BD71=\"\",\"\",'1. Ordersheet'!BD71)","v":""},{"$f":"IF('1. Ordersheet'!BE71=\"\",\"\",'1. Ordersheet'!BE71)","v":""},{"$f":"IF('1. Ordersheet'!BF71=\"\",\"\",'1. Ordersheet'!BF71)","v":""},{"$f":"IF('1. Ordersheet'!BG71=\"\",\"\",'1. Ordersheet'!BG71)","v":"ZWO"},{"$f":"IF('1. Ordersheet'!BH71=\"\",\"\",'1. Ordersheet'!BH71)","v":""},{"$f":"IF('1. Ordersheet'!BI71=\"\",\"\",'1. Ordersheet'!BI71)","v":""},{"$f":"IF('1. Ordersheet'!BJ71=\"\",\"\",'1. Ordersheet'!BJ71)","v":""},{"$f":"IF('1. Ordersheet'!BK71=\"\",\"\",'1. Ordersheet'!BK71)","v":""},{"$f":"IF('1. Ordersheet'!BL71=\"\",\"\",'1. Ordersheet'!BL71)","v":""}]
[{"$f":"IF('1. Ordersheet'!F72=\"\",\"\",'1. Ordersheet'!F72)","v":""},{"$f":"IF('1. Ordersheet'!G72=\"\",\"\",'1. Ordersheet'!G72)","v":""},{"$f":"IF('1. Ordersheet'!H72=\"\",\"\",'1. Ordersheet'!H72)","v":""},{"$f":"IF('1. Ordersheet'!I72=\"\",\"\",'1. Ordersheet'!I72)","v":""},{"$f":"IF('1. Ordersheet'!J72=\"\",\"\",'1. Ordersheet'!J72)","v":""},{"$f":"IF('1. Ordersheet'!K72=\"\",\"\",'1. Ordersheet'!K72)","v":""},{"$f":"IF('1. Ordersheet'!L72=\"\",\"\",'1. Ordersheet'!L72)","v":""},{"$f":"IF('1. Ordersheet'!M72=\"\",\"\",'1. Ordersheet'!M72)","v":""},{"$f":"IF('1. Ordersheet'!N72=\"\",\"\",'1. Ordersheet'!N72)","v":""},{"$f":"IF('1. Ordersheet'!O72=\"\",\"\",'1. Ordersheet'!O72)","v":{"$error":"#N/A"}},{"$f":"IF('1. Ordersheet'!P72=\"\",\"\",'1. Ordersheet'!P72)","v":{"$error":"#N/A"}},{"$f":"IF('1. Ordersheet'!Q72=\"\",\"\",'1. Ordersheet'!Q72)","v":""},{"$f":"IF('1. Ordersheet'!R72=\"\",\"\",'1. Ordersheet'!R72)","v":""},{"$f":"IF('1. Ordersheet'!S72=\"\",\"\",'1. Ordersheet'!S72)","v":""},{"$f":"IF('1. Ordersheet'!V72=\"\",\"\",'1. Ordersheet'!V72)","v":""},{"$f":"IF('1. Ordersheet'!W72=\"\",\"\",'1. Ordersheet'!W72)","v":""},{"$f":"IF('1. Ordersheet'!X72=\"\",\"\",'1. Ordersheet'!X72)","v":""},{"$f":"IF('1. Ordersheet'!Y72=\"\",\"\",'1. Ordersheet'!Y72)","v":""},{"$f":"IF('1. Ordersheet'!Z72=\"\",\"\",'1. Ordersheet'!Z72)","v":""},{"$f":"IF('1. Ordersheet'!AA72=\"\",\"\",'1. Ordersheet'!AA72)","v":""},null,{"$f":"IF('1. Ordersheet'!AS72=\"\",\"\",'1. Ordersheet'!AS72)","v":""},{"$f":"IF('1. Ordersheet'!AT72=\"\",\"\",'1. Ordersheet'!AT72)","v":""},null,null,null,null,null,null,null,{"$f":"IF('1. Ordersheet'!AX72=\"\",\"\",'1. Ordersheet'!AX72)","v":""},{"$f":"IF('1. Ordersheet'!AY72=\"\",\"\",'1. Ordersheet'!AY72)","v":""},{"$f":"IF('1. Ordersheet'!AZ72=\"\",\"\",'1. Ordersheet'!AZ72)","v":""},{"$f":"IF('1. Ordersheet'!BA72=\"\",\"\",'1. Ordersheet'!BA72)","v":""},{"$f":"IF('1. Ordersheet'!BC72=\"\",\"\",'1. Ordersheet'!BC72)","v":""},{"$f":"IF('1. Ordersheet'!BD72=\"\",\"\",'1. Ordersheet'!BD72)","v":""},{"$f":"IF('1. Ordersheet'!BE72=\"\",\"\",'1. Ordersheet'!BE72)","v":""},{"$f":"IF('1. Ordersheet'!BF72=\"\",\"\",'1. Ordersheet'!BF72)","v":""},{"$f":"IF('1. Ordersheet'!BG72=\"\",\"\",'1. Ordersheet'!BG72)","v":"ZWO"},{"$f":"IF('1. Ordersheet'!BH72=\"\",\"\",'1. Ordersheet'!BH72)","v":""},{"$f":"IF('1. Ordersheet'!BI72=\"\",\"\",'1. Ordersheet'!BI72)","v":""},{"$f":"IF('1. Ordersheet'!BJ72=\"\",\"\",'1. Ordersheet'!BJ72)","v":""},{"$f":"IF('1. Ordersheet'!BK72=\"\",\"\",'1. Ordersheet'!BK72)","v":""},{"$f":"IF('1. Ordersheet'!BL72=\"\",\"\",'1. Ordersheet'!BL72)","v":""}]
[{"$f":"IF('1. Ordersheet'!F73=\"\",\"\",'1. Ordersheet'!F73)","v":""},{"$f":"IF('1. Ordersheet'!G73=\"\",\"\",'1. Ordersheet'!G73)","v":""},{"$f":"IF('1. Ordersheet'!H73=\"\",\"\",'1. Ordersheet'!H73)","v":""},{"$f":"IF('1. Ordersheet'!I73=\"\",\"\",'1. Ordersheet'!I73)","v":""},{"$f":"IF('1. Ordersheet'!J73=\"\",\"\",'1. Ordersheet'!J73)","v":""},{"$f":"IF('1. Ordersheet'!K73=\"\",\"\",'1. Ordersheet'!K73)","v":""},{"$f":"IF('1. Ordersheet'!L73=\"\",\"\",'1. Ordersheet'!L73)","v":""},{"$f":"IF('1. Ordersheet'!M73=\"\",\"\",'1. Ordersheet'!M73)","v":""},{"$f":"IF('1. Ordersheet'!N73=\"\",\"\",'1. Ordersheet'!N73)","v":""},{"$f":"IF('1. Ordersheet'!O73=\"\",\"\",'1. Ordersheet'!O73)","v":{"$error":"#N/A"}},{"$f":"IF('1. Ordersheet'!P73=\"\",\"\",'1. Ordersheet'!P73)","v":{"$error":"#N/A"}},{"$f":"IF('1. Ordersheet'!Q73=\"\",\"\",'1. Ordersheet'!Q73)","v":""},{"$f":"IF('1. Ordersheet'!R73=\"\",\"\",'1. Ordersheet'!R73)","v":""},{"$f":"IF('1. Ordersheet'!S73=\"\",\"\",'1. Ordersheet'!S73)","v":""},{"$f":"IF('1. Ordersheet'!V73=\"\",\"\",'1. Ordersheet'!V73)","v":""},{"$f":"IF('1. Ordersheet'!W73=\"\",\"\",'1. Ordersheet'!W73)","v":""},{"$f":"IF('1. Ordersheet'!X73=\"\",\"\",'1. Ordersheet'!X73)","v":""},{"$f":"IF('1. Ordersheet'!Y73=\"\",\"\",'1. Ordersheet'!Y73)","v":""},{"$f":"IF('1. Ordersheet'!Z73=\"\",\"\",'1. Ordersheet'!Z73)","v":""},{"$f":"IF('1. Ordersheet'!AA73=\"\",\"\",'1. Ordersheet'!AA73)","v":""},null,{"$f":"IF('1. Ordersheet'!AS73=\"\",\"\",'1. Ordersheet'!AS73)","v":""},{"$f":"IF('1. Ordersheet'!AT73=\"\",\"\",'1. Ordersheet'!AT73)","v":""},null,null,null,null,null,null,null,{"$f":"IF('1. Ordersheet'!AX73=\"\",\"\",'1. Ordersheet'!AX73)","v":""},{"$f":"IF('1. Ordersheet'!AY73=\"\",\"\",'1. Ordersheet'!AY73)","v":""},{"$f":"IF('1. Ordersheet'!AZ73=\"\",\"\",'1. Ordersheet'!AZ73)","v":""},{"$f":"IF('1. Ordersheet'!BA73=\"\",\"\",'1. Ordersheet'!BA73)","v":""},{"$f":"IF('1. Ordersheet'!BC73=\"\",\"\",'1. Ordersheet'!BC73)","v":""},{"$f":"IF('1. Ordersheet'!BD73=\"\",\"\",'1. Ordersheet'!BD73)","v":""},{"$f":"IF('1. Ordersheet'!BE73=\"\",\"\",'1. Ordersheet'!BE73)","v":""},{"$f":"IF('1. Ordersheet'!BF73=\"\",\"\",'1. Ordersheet'!BF73)","v":""},{"$f":"IF('1. Ordersheet'!BG73=\"\",\"\",'1. Ordersheet'!BG73)","v":"ZWO"},{"$f":"IF('1. Ordersheet'!BH73=\"\",\"\",'1. Ordersheet'!BH73)","v":""},{"$f":"IF('1. Ordersheet'!BI73=\"\",\"\",'1. Ordersheet'!BI73)","v":""},{"$f":"IF('1. Ordersheet'!BJ73=\"\",\"\",'1. Ordersheet'!BJ73)","v":""},{"$f":"IF('1. Ordersheet'!BK73=\"\",\"\",'1. Ordersheet'!BK73)","v":""},{"$f":"IF('1. Ordersheet'!BL73=\"\",\"\",'1. Ordersheet'!BL73)","v":""}]
[{"$f":"IF('1. Ordersheet'!F74=\"\",\"\",'1. Ordersheet'!F74)","v":""},{"$f":"IF('1. Ordersheet'!G74=\"\",\"\",'1. Ordersheet'!G74)","v":""},{"$f":"IF('1. Ordersheet'!H74=\"\",\"\",'1. Ordersheet'!H74)","v":""},{"$f":"IF('1. Ordersheet'!I74=\"\",\"\",'1. Ordersheet'!I74)","v":""},{"$f":"IF('1. Ordersheet'!J74=\"\",\"\",'1. Ordersheet'!J74)","v":""},{"$f":"IF('1. Ordersheet'!K74=\"\",\"\",'1. Ordersheet'!K74)","v":""},{"$f":"IF('1. Ordersheet'!L74=\"\",\"\",'1. Ordersheet'!L74)","v":""},{"$f":"IF('1. Ordersheet'!M74=\"\",\"\",'1. Ordersheet'!M74)","v":""},{"$f":"IF('1. Ordersheet'!N74=\"\",\"\",'1. Ordersheet'!N74)","v":""},{"$f":"IF('1. Ordersheet'!O74=\"\",\"\",'1. Ordersheet'!O74)","v":{"$error":"#N/A"}},{"$f":"IF('1. Ordersheet'!P74=\"\",\"\",'1. Ordersheet'!P74)","v":{"$error":"#N/A"}},{"$f":"IF('1. Ordersheet'!Q74=\"\",\"\",'1. Ordersheet'!Q74)","v":""},{"$f":"IF('1. Ordersheet'!R74=\"\",\"\",'1. Ordersheet'!R74)","v":""},{"$f":"IF('1. Ordersheet'!S74=\"\",\"\",'1. Ordersheet'!S74)","v":""},{"$f":"IF('1. Ordersheet'!V74=\"\",\"\",'1. Ordersheet'!V74)","v":""},{"$f":"IF('1. Ordersheet'!W74=\"\",\"\",'1. Ordersheet'!W74)","v":""},{"$f":"IF('1. Ordersheet'!X74=\"\",\"\",'1. Ordersheet'!X74)","v":""},{"$f":"IF('1. Ordersheet'!Y74=\"\",\"\",'1. Ordersheet'!Y74)","v":""},{"$f":"IF('1. Ordersheet'!Z74=\"\",\"\",'1. Ordersheet'!Z74)","v":""},{"$f":"IF('1. Ordersheet'!AA74=\"\",\"\",'1. Ordersheet'!AA74)","v":""},null,{"$f":"IF('1. Ordersheet'!AS74=\"\",\"\",'1. Ordersheet'!AS74)","v":""},{"$f":"IF('1. Ordersheet'!AT74=\"\",\"\",'1. Ordersheet'!AT74)","v":""},null,null,null,null,null,null,null,{"$f":"IF('1. Ordersheet'!AX74=\"\",\"\",'1. Ordersheet'!AX74)","v":""},{"$f":"IF('1. Ordersheet'!AY74=\"\",\"\",'1. Ordersheet'!AY74)","v":""},{"$f":"IF('1. Ordersheet'!AZ74=\"\",\"\",'1. Ordersheet'!AZ74)","v":""},{"$f":"IF('1. Ordersheet'!BA74=\"\",\"\",'1. Ordersheet'!BA74)","v":""},{"$f":"IF('1. Ordersheet'!BC74=\"\",\"\",'1. Ordersheet'!BC74)","v":""},{"$f":"IF('1. Ordersheet'!BD74=\"\",\"\",'1. Ordersheet'!BD74)","v":""},{"$f":"IF('1. Ordersheet'!BE74=\"\",\"\",'1. Ordersheet'!BE74)","v":""},{"$f":"IF('1. Ordersheet'!BF74=\"\",\"\",'1. Ordersheet'!BF74)","v":""},{"$f":"IF('1. Ordersheet'!BG74=\"\",\"\",'1. Ordersheet'!BG74)","v":"ZWO"},{"$f":"IF('1. Ordersheet'!BH74=\"\",\"\",'1. Ordersheet'!BH74)","v":""},{"$f":"IF('1. Ordersheet'!BI74=\"\",\"\",'1. Ordersheet'!BI74)","v":""},{"$f":"IF('1. Ordersheet'!BJ74=\"\",\"\",'1. Ordersheet'!BJ74)","v":""},{"$f":"IF('1. Ordersheet'!BK74=\"\",\"\",'1. Ordersheet'!BK74)","v":""},{"$f":"IF('1. Ordersheet'!BL74=\"\",\"\",'1. Ordersheet'!BL74)","v":""}]
[{"$f":"IF('1. Ordersheet'!F75=\"\",\"\",'1. Ordersheet'!F75)","v":""},{"$f":"IF('1. Ordersheet'!G75=\"\",\"\",'1. Ordersheet'!G75)","v":""},{"$f":"IF('1. Ordersheet'!H75=\"\",\"\",'1. Ordersheet'!H75)","v":""},{"$f":"IF('1. Ordersheet'!I75=\"\",\"\",'1. Ordersheet'!I75)","v":""},{"$f":"IF('1. Ordersheet'!J75=\"\",\"\",'1. Ordersheet'!J75)","v":""},{"$f":"IF('1. Ordersheet'!K75=\"\",\"\",'1. Ordersheet'!K75)","v":""},{"$f":"IF('1. Ordersheet'!L75=\"\",\"\",'1. Ordersheet'!L75)","v":""},{"$f":"IF('1. Ordersheet'!M75=\"\",\"\",'1. Ordersheet'!M75)","v":""},{"$f":"IF('1. Ordersheet'!N75=\"\",\"\",'1. Ordersheet'!N75)","v":""},{"$f":"IF('1. Ordersheet'!O75=\"\",\"\",'1. Ordersheet'!O75)","v":{"$error":"#N/A"}},{"$f":"IF('1. Ordersheet'!P75=\"\",\"\",'1. Ordersheet'!P75)","v":{"$error":"#N/A"}},{"$f":"IF('1. Ordersheet'!Q75=\"\",\"\",'1. Ordersheet'!Q75)","v":""},{"$f":"IF('1. Ordersheet'!R75=\"\",\"\",'1. Ordersheet'!R75)","v":""},{"$f":"IF('1. Ordersheet'!S75=\"\",\"\",'1. Ordersheet'!S75)","v":""},{"$f":"IF('1. Ordersheet'!V75=\"\",\"\",'1. Ordersheet'!V75)","v":""},{"$f":"IF('1. Ordersheet'!W75=\"\",\"\",'1. Ordersheet'!W75)","v":""},{"$f":"IF('1. Ordersheet'!X75=\"\",\"\",'1. Ordersheet'!X75)","v":""},{"$f":"IF('1. Ordersheet'!Y75=\"\",\"\",'1. Ordersheet'!Y75)","v":""},{"$f":"IF('1. Ordersheet'!Z75=\"\",\"\",'1. Ordersheet'!Z75)","v":""},{"$f":"IF('1. Ordersheet'!AA75=\"\",\"\",'1. Ordersheet'!AA75)","v":""},null,{"$f":"IF('1. Ordersheet'!AS75=\"\",\"\",'1. Ordersheet'!AS75)","v":""},{"$f":"IF('1. Ordersheet'!AT75=\"\",\"\",'1. Ordersheet'!AT75)","v":""},null,null,null,null,null,null,null,{"$f":"IF('1. Ordersheet'!AX75=\"\",\"\",'1. Ordersheet'!AX75)","v":""},{"$f":"IF('1. Ordersheet'!AY75=\"\",\"\",'1. Ordersheet'!AY75)","v":""},{"$f":"IF('1. Ordersheet'!AZ75=\"\",\"\",'1. Ordersheet'!AZ75)","v":""},{"$f":"IF('1. Ordersheet'!BA75=\"\",\"\",'1. Ordersheet'!BA75)","v":""},{"$f":"IF('1. Ordersheet'!BC75=\"\",\"\",'1. Ordersheet'!BC75)","v":""},{"$f":"IF('1. Ordersheet'!BD75=\"\",\"\",'1. Ordersheet'!BD75)","v":""},{"$f":"IF('1. Ordersheet'!BE75=\"\",\"\",'1. Ordersheet'!BE75)","v":""},{"$f":"IF('1. Ordersheet'!BF75=\"\",\"\",'1. Ordersheet'!BF75)","v":""},{"$f":"IF('1. Ordersheet'!BG75=\"\",\"\",'1. Ordersheet'!BG75)","v":"ZWO"},{"$f":"IF('1. Ordersheet'!BH75=\"\",\"\",'1. Ordersheet'!BH75)","v":""},{"$f":"IF('1. Ordersheet'!BI75=\"\",\"\",'1. Ordersheet'!BI75)","v":""},{"$f":"IF('1. Ordersheet'!BJ75=\"\",\"\",'1. Ordersheet'!BJ75)","v":""},{"$f":"IF('1. Ordersheet'!BK75=\"\",\"\",'1. Ordersheet'!BK75)","v":""},{"$f":"IF('1. Ordersheet'!BL75=\"\",\"\",'1. Ordersheet'!BL75)","v":""}]
[{"$f":"IF('1. Ordersheet'!F76=\"\",\"\",'1. Ordersheet'!F76)","v":""},{"$f":"IF('1. Ordersheet'!G76=\"\",\"\",'1. Ordersheet'!G76)","v":""},{"$f":"IF('1. Ordersheet'!H76=\"\",\"\",'1. Ordersheet'!H76)","v":""},{"$f":"IF('1. Ordersheet'!I76=\"\",\"\",'1. Ordersheet'!I76)","v":""},{"$f":"IF('1. Ordersheet'!J76=\"\",\"\",'1. Ordersheet'!J76)","v":""},{"$f":"IF('1. Ordersheet'!K76=\"\",\"\",'1. Ordersheet'!K76)","v":""},{"$f":"IF('1. Ordersheet'!L76=\"\",\"\",'1. Ordersheet'!L76)","v":""},{"$f":"IF('1. Ordersheet'!M76=\"\",\"\",'1. Ordersheet'!M76)","v":""},{"$f":"IF('1. Ordersheet'!N76=\"\",\"\",'1. Ordersheet'!N76)","v":""},{"$f":"IF('1. Ordersheet'!O76=\"\",\"\",'1. Ordersheet'!O76)","v":{"$error":"#N/A"}},{"$f":"IF('1. Ordersheet'!P76=\"\",\"\",'1. Ordersheet'!P76)","v":{"$error":"#N/A"}},{"$f":"IF('1. Ordersheet'!Q76=\"\",\"\",'1. Ordersheet'!Q76)","v":""},{"$f":"IF('1. Ordersheet'!R76=\"\",\"\",'1. Ordersheet'!R76)","v":""},{"$f":"IF('1. Ordersheet'!S76=\"\",\"\",'1. Ordersheet'!S76)","v":""},{"$f":"IF('1. Ordersheet'!V76=\"\",\"\",'1. Ordersheet'!V76)","v":""},{"$f":"IF('1. Ordersheet'!W76=\"\",\"\",'1. Ordersheet'!W76)","v":""},{"$f":"IF('1. Ordersheet'!X76=\"\",\"\",'1. Ordersheet'!X76)","v":""},{"$f":"IF('1. Ordersheet'!Y76=\"\",\"\",'1. Ordersheet'!Y76)","v":""},{"$f":"IF('1. Ordersheet'!Z76=\"\",\"\",'1. Ordersheet'!Z76)","v":""},{"$f":"IF('1. Ordersheet'!AA76=\"\",\"\",'1. Ordersheet'!AA76)","v":""},null,{"$f":"IF('1. Ordersheet'!AS76=\"\",\"\",'1. Ordersheet'!AS76)","v":""},{"$f":"IF('1. Ordersheet'!AT76=\"\",\"\",'1. Ordersheet'!AT76)","v":""},null,null,null,null,null,null,null,{"$f":"IF('1. Ordersheet'!AX76=\"\",\"\",'1. Ordersheet'!AX76)","v":""},{"$f":"IF('1. Ordersheet'!AY76=\"\",\"\",'1. Ordersheet'!AY76)","v":""},{"$f":"IF('1. Ordersheet'!AZ76=\"\",\"\",'1. Ordersheet'!AZ76)","v":""},{"$f":"IF('1. Ordersheet'!BA76=\"\",\"\",'1. Ordersheet'!BA76)","v":""},{"$f":"IF('1. Ordersheet'!BC76=\"\",\"\",'1. Ordersheet'!BC76)","v":""},{"$f":"IF('1. Ordersheet'!BD76=\"\",\"\",'1. Ordersheet'!BD76)","v":""},{"$f":"IF('1. Ordersheet'!BE76=\"\",\"\",'1. Ordersheet'!BE76)","v":""},{"$f":"IF('1. Ordersheet'!BF76=\"\",\"\",'1. Ordersheet'!BF76)","v":""},{"$f":"IF('1. Ordersheet'!BG76=\"\",\"\",'1. Ordersheet'!BG76)","v":"ZWO"},{"$f":"IF('1. Ordersheet'!BH76=\"\",\"\",'1. Ordersheet'!BH76)","v":""},{"$f":"IF('1. Ordersheet'!BI76=\"\",\"\",'1. Ordersheet'!BI76)","v":""},{"$f":"IF('1. Ordersheet'!BJ76=\"\",\"\",'1. Ordersheet'!BJ76)","v":""},{"$f":"IF('1. Ordersheet'!BK76=\"\",\"\",'1. Ordersheet'!BK76)","v":""},{"$f":"IF('1. Ordersheet'!BL76=\"\",\"\",'1. Ordersheet'!BL76)","v":""}]
[{"$f":"IF('1. Ordersheet'!F77=\"\",\"\",'1. Ordersheet'!F77)","v":""},{"$f":"IF('1. Ordersheet'!G77=\"\",\"\",'1. Ordersheet'!G77)","v":""},{"$f":"IF('1. Ordersheet'!H77=\"\",\"\",'1. Ordersheet'!H77)","v":""},{"$f":"IF('1. Ordersheet'!I77=\"\",\"\",'1. Ordersheet'!I77)","v":""},{"$f":"IF('1. Ordersheet'!J77=\"\",\"\",'1. Ordersheet'!J77)","v":""},{"$f":"IF('1. Ordersheet'!K77=\"\",\"\",'1. Ordersheet'!K77)","v":""},{"$f":"IF('1. Ordersheet'!L77=\"\",\"\",'1. Ordersheet'!L77)","v":""},{"$f":"IF('1. Ordersheet'!M77=\"\",\"\",'1. Ordersheet'!M77)","v":""},{"$f":"IF('1. Ordersheet'!N77=\"\",\"\",'1. Ordersheet'!N77)","v":""},{"$f":"IF('1. Ordersheet'!O77=\"\",\"\",'1. Ordersheet'!O77)","v":{"$error":"#N/A"}},{"$f":"IF('1. Ordersheet'!P77=\"\",\"\",'1. Ordersheet'!P77)","v":{"$error":"#N/A"}},{"$f":"IF('1. Ordersheet'!Q77=\"\",\"\",'1. Ordersheet'!Q77)","v":""},{"$f":"IF('1. Ordersheet'!R77=\"\",\"\",'1. Ordersheet'!R77)","v":""},{"$f":"IF('1. Ordersheet'!S77=\"\",\"\",'1. Ordersheet'!S77)","v":""},{"$f":"IF('1. Ordersheet'!V77=\"\",\"\",'1. Ordersheet'!V77)","v":""},{"$f":"IF('1. Ordersheet'!W77=\"\",\"\",'1. Ordersheet'!W77)","v":""},{"$f":"IF('1. Ordersheet'!X77=\"\",\"\",'1. Ordersheet'!X77)","v":""},{"$f":"IF('1. Ordersheet'!Y77=\"\",\"\",'1. Ordersheet'!Y77)","v":""},{"$f":"IF('1. Ordersheet'!Z77=\"\",\"\",'1. Ordersheet'!Z77)","v":""},{"$f":"IF('1. Ordersheet'!AA77=\"\",\"\",'1. Ordersheet'!AA77)","v":""},null,{"$f":"IF('1. Ordersheet'!AS77=\"\",\"\",'1. Ordersheet'!AS77)","v":""},{"$f":"IF('1. Ordersheet'!AT77=\"\",\"\",'1. Ordersheet'!AT77)","v":""},null,null,null,null,null,null,null,{"$f":"IF('1. Ordersheet'!AX77=\"\",\"\",'1. Ordersheet'!AX77)","v":""},{"$f":"IF('1. Ordersheet'!AY77=\"\",\"\",'1. Ordersheet'!AY77)","v":""},{"$f":"IF('1. Ordersheet'!AZ77=\"\",\"\",'1. Ordersheet'!AZ77)","v":""},{"$f":"IF('1. Ordersheet'!BA77=\"\",\"\",'1. Ordersheet'!BA77)","v":""},{"$f":"IF('1. Ordersheet'!BC77=\"\",\"\",'1. Ordersheet'!BC77)","v":""},{"$f":"IF('1. Ordersheet'!BD77=\"\",\"\",'1. Ordersheet'!BD77)","v":""},{"$f":"IF('1. Ordersheet'!BE77=\"\",\"\",'1. Ordersheet'!BE77)","v":""},{"$f":"IF('1. Ordersheet'!BF77=\"\",\"\",'1. Ordersheet'!BF77)","v":""},{"$f":"IF('1. Ordersheet'!BG77=\"\",\"\",'1. Ordersheet'!BG77)","v":"ZWO"},{"$f":"IF('1. Ordersheet'!BH77=\"\",\"\",'1. Ordersheet'!BH77)","v":""},{"$f":"IF('1. Ordersheet'!BI77=\"\",\"\",'1. Ordersheet'!BI77)","v":""},{"$f":"IF('1. Ordersheet'!BJ77=\"\",\"\",'1. Ordersheet'!BJ77)","v":""},{"$f":"IF('1. Ordersheet'!BK77=\"\",\"\",'1. Ordersheet'!BK77)","v":""},{"$f":"IF('1. Ordersheet'!BL77=\"\",\"\",'1. Ordersheet'!BL77)","v":""}]
[{"$f":"IF('1. Ordersheet'!F78=\"\",\"\",'1. Ordersheet'!F78)","v":""},{"$f":"IF('1. Ordersheet'!G78=\"\",\"\",'1. Ordersheet'!G78)","v":""},{"$f":"IF('1. Ordersheet'!H78=\"\",\"\",'1. Ordersheet'!H78)","v":""},{"$f":"IF('1. Ordersheet'!I78=\"\",\"\",'1. Ordersheet'!I78)","v":""},{"$f":"IF('1. Ordersheet'!J78=\"\",\"\",'1. Ordersheet'!J78)","v":""},{"$f":"IF('1. Ordersheet'!K78=\"\",\"\",'1. Ordersheet'!K78)","v":""},{"$f":"IF('1. Ordersheet'!L78=\"\",\"\",'1. Ordersheet'!L78)","v":""},{"$f":"IF('1. Ordersheet'!M78=\"\",\"\",'1. Ordersheet'!M78)","v":""},{"$f":"IF('1. Ordersheet'!N78=\"\",\"\",'1. Ordersheet'!N78)","v":""},{"$f":"IF('1. Ordersheet'!O78=\"\",\"\",'1. Ordersheet'!O78)","v":{"$error":"#N/A"}},{"$f":"IF('1. Ordersheet'!P78=\"\",\"\",'1. Ordersheet'!P78)","v":{"$error":"#N/A"}},{"$f":"IF('1. Ordersheet'!Q78=\"\",\"\",'1. Ordersheet'!Q78)","v":""},{"$f":"IF('1. Ordersheet'!R78=\"\",\"\",'1. Ordersheet'!R78)","v":""},{"$f":"IF('1. Ordersheet'!S78=\"\",\"\",'1. Ordersheet'!S78)","v":""},{"$f":"IF('1. Ordersheet'!V78=\"\",\"\",'1. Ordersheet'!V78)","v":""},{"$f":"IF('1. Ordersheet'!W78=\"\",\"\",'1. Ordersheet'!W78)","v":""},{"$f":"IF('1. Ordersheet'!X78=\"\",\"\",'1. Ordersheet'!X78)","v":""},{"$f":"IF('1. Ordersheet'!Y78=\"\",\"\",'1. Ordersheet'!Y78)","v":""},{"$f":"IF('1. Ordersheet'!Z78=\"\",\"\",'1. Ordersheet'!Z78)","v":""},{"$f":"IF('1. Ordersheet'!AA78=\"\",\"\",'1. Ordersheet'!AA78)","v":""},null,{"$f":"IF('1. Ordersheet'!AS78=\"\",\"\",'1. Ordersheet'!AS78)","v":""},{"$f":"IF('1. Ordersheet'!AT78=\"\",\"\",'1. Ordersheet'!AT78)","v":""},null,null,null,null,null,null,null,{"$f":"IF('1. Ordersheet'!AX78=\"\",\"\",'1. Ordersheet'!AX78)","v":""},{"$f":"IF('1. Ordersheet'!AY78=\"\",\"\",'1. Ordersheet'!AY78)","v":""},{"$f":"IF('1. Ordersheet'!AZ78=\"\",\"\",'1. Ordersheet'!AZ78)","v":""},{"$f":"IF('1. Ordersheet'!BA78=\"\",\"\",'1. Ordersheet'!BA78)","v":""},{"$f":"IF('1. Ordersheet'!BC78=\"\",\"\",'1. Ordersheet'!BC78)","v":""},{"$f":"IF('1. Ordersheet'!BD78=\"\",\"\",'1. Ordersheet'!BD78)","v":""},{"$f":"IF('1. Ordersheet'!BE78=\"\",\"\",'1. Ordersheet'!BE78)","v":""},{"$f":"IF('1. Ordersheet'!BF78=\"\",\"\",'1. Ordersheet'!BF78)","v":""},{"$f":"IF('1. Ordersheet'!BG78=\"\",\"\",'1. Ordersheet'!BG78)","v":"ZWO"},{"$f":"IF('1. Ordersheet'!BH78=\"\",\"\",'1. Ordersheet'!BH78)","v":""},{"$f":"IF('1. Ordersheet'!BI78=\"\",\"\",'1. Ordersheet'!BI78)","v":""},{"$f":"IF('1. Ordersheet'!BJ78=\"\",\"\",'1. Ordersheet'!BJ78)","v":""},{"$f":"IF('1. Ordersheet'!BK78=\"\",\"\",'1. Ordersheet'!BK78)","v":""},{"$f":"IF('1. Ordersheet'!BL78=\"\",\"\",'1. Ordersheet'!BL78)","v":""}]
[{"$f":"IF('1. Ordersheet'!F79=\"\",\"\",'1. Ordersheet'!F79)","v":""},{"$f":"IF('1. Ordersheet'!G79=\"\",\"\",'1. Ordersheet'!G79)","v":""},{"$f":"IF('1. Ordersheet'!H79=\"\",\"\",'1. Ordersheet'!H79)","v":""},{"$f":"IF('1. Ordersheet'!I79=\"\",\"\",'1. Ordersheet'!I79)","v":""},{"$f":"IF('1. Ordersheet'!J79=\"\",\"\",'1. Ordersheet'!J79)","v":""},{"$f":"IF('1. Ordersheet'!K79=\"\",\"\",'1. Ordersheet'!K79)","v":""},{"$f":"IF('1. Ordersheet'!L79=\"\",\"\",'1. Ordersheet'!L79)","v":""},{"$f":"IF('1. Ordersheet'!M79=\"\",\"\",'1. Ordersheet'!M79)","v":""},{"$f":"IF('1. Ordersheet'!N79=\"\",\"\",'1. Ordersheet'!N79)","v":""},{"$f":"IF('1. Ordersheet'!O79=\"\",\"\",'1. Ordersheet'!O79)","v":{"$error":"#N/A"}},{"$f":"IF('1. Ordersheet'!P79=\"\",\"\",'1. Ordersheet'!P79)","v":{"$error":"#N/A"}},{"$f":"IF('1. Ordersheet'!Q79=\"\",\"\",'1. Ordersheet'!Q79)","v":""},{"$f":"IF('1. Ordersheet'!R79=\"\",\"\",'1. Ordersheet'!R79)","v":""},{"$f":"IF('1. Ordersheet'!S79=\"\",\"\",'1. Ordersheet'!S79)","v":""},{"$f":"IF('1. Ordersheet'!V79=\"\",\"\",'1. Ordersheet'!V79)","v":""},{"$f":"IF('1. Ordersheet'!W79=\"\",\"\",'1. Ordersheet'!W79)","v":""},{"$f":"IF('1. Ordersheet'!X79=\"\",\"\",'1. Ordersheet'!X79)","v":""},{"$f":"IF('1. Ordersheet'!Y79=\"\",\"\",'1. Ordersheet'!Y79)","v":""},{"$f":"IF('1. Ordersheet'!Z79=\"\",\"\",'1. Ordersheet'!Z79)","v":""},{"$f":"IF('1. Ordersheet'!AA79=\"\",\"\",'1. Ordersheet'!AA79)","v":""},null,{"$f":"IF('1. Ordersheet'!AS79=\"\",\"\",'1. Ordersheet'!AS79)","v":""},{"$f":"IF('1. Ordersheet'!AT79=\"\",\"\",'1. Ordersheet'!AT79)","v":""},null,null,null,null,null,null,null,{"$f":"IF('1. Ordersheet'!AX79=\"\",\"\",'1. Ordersheet'!AX79)","v":""},{"$f":"IF('1. Ordersheet'!AY79=\"\",\"\",'1. Ordersheet'!AY79)","v":""},{"$f":"IF('1. Ordersheet'!AZ79=\"\",\"\",'1. Ordersheet'!AZ79)","v":""},{"$f":"IF('1. Ordersheet'!BA79=\"\",\"\",'1. Ordersheet'!BA79)","v":""},{"$f":"IF('1. Ordersheet'!BC79=\"\",\"\",'1. Ordersheet'!BC79)","v":""},{"$f":"IF('1. Ordersheet'!BD79=\"\",\"\",'1. Ordersheet'!BD79)","v":""},{"$f":"IF('1. Ordersheet'!BE79=\"\",\"\",'1. Ordersheet'!BE79)","v":""},{"$f":"IF('1. Ordersheet'!BF79=\"\",\"\",'1. Ordersheet'!BF79)","v":""},{"$f":"IF('1. Ordersheet'!BG79=\"\",\"\",'1. Ordersheet'!BG79)","v":"ZWO"},{"$f":"IF('1. Ordersheet'!BH79=\"\",\"\",'1. Ordersheet'!BH79)","v":""},{"$f":"IF('1. Ordersheet'!BI79=\"\",\"\",'1. Ordersheet'!BI79)","v":""},{"$f":"IF('1. Ordersheet'!BJ79=\"\",\"\",'1. Ordersheet'!BJ79)","v":""},{"$f":"IF('1. Ordersheet'!BK79=\"\",\"\",'1. Ordersheet'!BK79)","v":""},{"$f":"IF('1. Ordersheet'!BL79=\"\",\"\",'1. Ordersheet'!BL79)","v":""}]
[{"$f":"IF('1. Ordersheet'!F80=\"\",\"\",'1. Ordersheet'!F80)","v":""},{"$f":"IF('1. Ordersheet'!G80=\"\",\"\",'1. Ordersheet'!G80)","v":""},{"$f":"IF('1. Ordersheet'!H80=\"\",\"\",'1. Ordersheet'!H80)","v":""},{"$f":"IF('1. Ordersheet'!I80=\"\",\"\",'1. Ordersheet'!I80)","v":""},{"$f":"IF('1. Ordersheet'!J80=\"\",\"\",'1. Ordersheet'!J80)","v":""},{"$f":"IF('1. Ordersheet'!K80=\"\",\"\",'1. Ordersheet'!K80)","v":""},{"$f":"IF('1. Ordersheet'!L80=\"\",\"\",'1. Ordersheet'!L80)","v":""},{"$f":"IF('1. Ordersheet'!M80=\"\",\"\",'1. Ordersheet'!M80)","v":""},{"$f":"IF('1. Ordersheet'!N80=\"\",\"\",'1. Ordersheet'!N80)","v":""},{"$f":"IF('1. Ordersheet'!O80=\"\",\"\",'1. Ordersheet'!O80)","v":{"$error":"#N/A"}},{"$f":"IF('1. Ordersheet'!P80=\"\",\"\",'1. Ordersheet'!P80)","v":{"$error":"#N/A"}},{"$f":"IF('1. Ordersheet'!Q80=\"\",\"\",'1. Ordersheet'!Q80)","v":""},{"$f":"IF('1. Ordersheet'!R80=\"\",\"\",'1. Ordersheet'!R80)","v":""},{"$f":"IF('1. Ordersheet'!S80=\"\",\"\",'1. Ordersheet'!S80)","v":""},{"$f":"IF('1. Ordersheet'!V80=\"\",\"\",'1. Ordersheet'!V80)","v":""},{"$f":"IF('1. Ordersheet'!W80=\"\",\"\",'1. Ordersheet'!W80)","v":""},{"$f":"IF('1. Ordersheet'!X80=\"\",\"\",'1. Ordersheet'!X80)","v":""},{"$f":"IF('1. Ordersheet'!Y80=\"\",\"\",'1. Ordersheet'!Y80)","v":""},{"$f":"IF('1. Ordersheet'!Z80=\"\",\"\",'1. Ordersheet'!Z80)","v":""},{"$f":"IF('1. Ordersheet'!AA80=\"\",\"\",'1. Ordersheet'!AA80)","v":""},null,{"$f":"IF('1. Ordersheet'!AS80=\"\",\"\",'1. Ordersheet'!AS80)","v":""},{"$f":"IF('1. Ordersheet'!AT80=\"\",\"\",'1. Ordersheet'!AT80)","v":""},null,null,null,null,null,null,null,{"$f":"IF('1. Ordersheet'!AX80=\"\",\"\",'1. Ordersheet'!AX80)","v":""},{"$f":"IF('1. Ordersheet'!AY80=\"\",\"\",'1. Ordersheet'!AY80)","v":""},{"$f":"IF('1. Ordersheet'!AZ80=\"\",\"\",'1. Ordersheet'!AZ80)","v":""},{"$f":"IF('1. Ordersheet'!BA80=\"\",\"\",'1. Ordersheet'!BA80)","v":""},{"$f":"IF('1. Ordersheet'!BC80=\"\",\"\",'1. Ordersheet'!BC80)","v":""},{"$f":"IF('1. Ordersheet'!BD80=\"\",\"\",'1. Ordersheet'!BD80)","v":""},{"$f":"IF('1. Ordersheet'!BE80=\"\",\"\",'1. Ordersheet'!BE80)","v":""},{"$f":"IF('1. Ordersheet'!BF80=\"\",\"\",'1. Ordersheet'!BF80)","v":""},{"$f":"IF('1. Ordersheet'!BG80=\"\",\"\",'1. Ordersheet'!BG80)","v":"ZWO"},{"$f":"IF('1. Ordersheet'!BH80=\"\",\"\",'1. Ordersheet'!BH80)","v":""},{"$f":"IF('1. Ordersheet'!BI80=\"\",\"\",'1. Ordersheet'!BI80)","v":""},{"$f":"IF('1. Ordersheet'!BJ80=\"\",\"\",'1. Ordersheet'!BJ80)","v":""},{"$f":"IF('1. Ordersheet'!BK80=\"\",\"\",'1. Ordersheet'!BK80)","v":""},{"$f":"IF('1. Ordersheet'!BL80=\"\",\"\",'1. Ordersheet'!BL80)","v":""}]
[{"$f":"IF('1. Ordersheet'!F81=\"\",\"\",'1. Ordersheet'!F81)","v":""},{"$f":"IF('1. Ordersheet'!G81=\"\",\"\",'1. Ordersheet'!G81)","v":""},{"$f":"IF('1. Ordersheet'!H81=\"\",\"\",'1. Ordersheet'!H81)","v":""},{"$f":"IF('1. Ordersheet'!I81=\"\",\"\",'1. Ordersheet'!I81)","v":""},{"$f":"IF('1. Ordersheet'!J81=\"\",\"\",'1. Ordersheet'!J81)","v":""},{"$f":"IF('1. Ordersheet'!K81=\"\",\"\",'1. Ordersheet'!K81)","v":""},{"$f":"IF('1. Ordersheet'!L81=\"\",\"\",'1. Ordersheet'!L81)","v":""},{"$f":"IF('1. Ordersheet'!M81=\"\",\"\",'1. Ordersheet'!M81)","v":""},{"$f":"IF('1. Ordersheet'!N81=\"\",\"\",'1. Ordersheet'!N81)","v":""},{"$f":"IF('1. Ordersheet'!O81=\"\",\"\",'1. Ordersheet'!O81)","v":{"$error":"#N/A"}},{"$f":"IF('1. Ordersheet'!P81=\"\",\"\",'1. Ordersheet'!P81)","v":{"$error":"#N/A"}},{"$f":"IF('1. Ordersheet'!Q81=\"\",\"\",'1. Ordersheet'!Q81)","v":""},{"$f":"IF('1. Ordersheet'!R81=\"\",\"\",'1. Ordersheet'!R81)","v":""},{"$f":"IF('1. Ordersheet'!S81=\"\",\"\",'1. Ordersheet'!S81)","v":""},{"$f":"IF('1. Ordersheet'!V81=\"\",\"\",'1. Ordersheet'!V81)","v":""},{"$f":"IF('1. Ordersheet'!W81=\"\",\"\",'1. Ordersheet'!W81)","v":""},{"$f":"IF('1. Ordersheet'!X81=\"\",\"\",'1. Ordersheet'!X81)","v":""},{"$f":"IF('1. Ordersheet'!Y81=\"\",\"\",'1. Ordersheet'!Y81)","v":""},{"$f":"IF('1. Ordersheet'!Z81=\"\",\"\",'1. Ordersheet'!Z81)","v":""},{"$f":"IF('1. Ordersheet'!AA81=\"\",\"\",'1. Ordersheet'!AA81)","v":""},null,{"$f":"IF('1. Ordersheet'!AS81=\"\",\"\",'1. Ordersheet'!AS81)","v":""},{"$f":"IF('1. Ordersheet'!AT81=\"\",\"\",'1. Ordersheet'!AT81)","v":""},null,null,null,null,null,null,null,{"$f":"IF('1. Ordersheet'!AX81=\"\",\"\",'1. Ordersheet'!AX81)","v":""},{"$f":"IF('1. Ordersheet'!AY81=\"\",\"\",'1. Ordersheet'!AY81)","v":""},{"$f":"IF('1. Ordersheet'!AZ81=\"\",\"\",'1. Ordersheet'!AZ81)","v":""},{"$f":"IF('1. Ordersheet'!BA81=\"\",\"\",'1. Ordersheet'!BA81)","v":""},{"$f":"IF('1. Ordersheet'!BC81=\"\",\"\",'1. Ordersheet'!BC81)","v":""},{"$f":"IF('1. Ordersheet'!BD81=\"\",\"\",'1. Ordersheet'!BD81)","v":""},{"$f":"IF('1. Ordersheet'!BE81=\"\",\"\",'1. Ordersheet'!BE81)","v":""},{"$f":"IF('1. Ordersheet'!BF81=\"\",\"\",'1. Ordersheet'!BF81)","v":""},{"$f":"IF('1. Ordersheet'!BG81=\"\",\"\",'1. Ordersheet'!BG81)","v":"ZWO"},{"$f":"IF('1. Ordersheet'!BH81=\"\",\"\",'1. Ordersheet'!BH81)","v":""},{"$f":"IF('1. Ordersheet'!BI81=\"\",\"\",'1. Ordersheet'!BI81)","v":""},{"$f":"IF('1. Ordersheet'!BJ81=\"\",\"\",'1. Ordersheet'!BJ81)","v":""},{"$f":"IF('1. Ordersheet'!BK81=\"\",\"\",'1. Ordersheet'!BK81)","v":""},{"$f":"IF('1. Ordersheet'!BL81=\"\",\"\",'1. Ordersheet'!BL81)","v":""}]
[{"$f":"IF('1. Ordersheet'!F82=\"\",\"\",'1. Ordersheet'!F82)","v":""},{"$f":"IF('1. Ordersheet'!G82=\"\",\"\",'1. Ordersheet'!G82)","v":""},{"$f":"IF('1. Ordersheet'!H82=\"\",\"\",'1. Ordersheet'!H82)","v":""},{"$f":"IF('1. Ordersheet'!I82=\"\",\"\",'1. Ordersheet'!I82)","v":""},{"$f":"IF('1. Ordersheet'!J82=\"\",\"\",'1. Ordersheet'!J82)","v":""},{"$f":"IF('1. Ordersheet'!K82=\"\",\"\",'1. Ordersheet'!K82)","v":""},{"$f":"IF('1. Ordersheet'!L82=\"\",\"\",'1. Ordersheet'!L82)","v":""},{"$f":"IF('1. Ordersheet'!M82=\"\",\"\",'1. Ordersheet'!M82)","v":""},{"$f":"IF('1. Ordersheet'!N82=\"\",\"\",'1. Ordersheet'!N82)","v":""},{"$f":"IF('1. Ordersheet'!O82=\"\",\"\",'1. Ordersheet'!O82)","v":{"$error":"#N/A"}},{"$f":"IF('1. Ordersheet'!P82=\"\",\"\",'1. Ordersheet'!P82)","v":{"$error":"#N/A"}},{"$f":"IF('1. Ordersheet'!Q82=\"\",\"\",'1. Ordersheet'!Q82)","v":""},{"$f":"IF('1. Ordersheet'!R82=\"\",\"\",'1. Ordersheet'!R82)","v":""},{"$f":"IF('1. Ordersheet'!S82=\"\",\"\",'1. Ordersheet'!S82)","v":""},{"$f":"IF('1. Ordersheet'!V82=\"\",\"\",'1. Ordersheet'!V82)","v":""},{"$f":"IF('1. Ordersheet'!W82=\"\",\"\",'1. Ordersheet'!W82)","v":""},{"$f":"IF('1. Ordersheet'!X82=\"\",\"\",'1. Ordersheet'!X82)","v":""},{"$f":"IF('1. Ordersheet'!Y82=\"\",\"\",'1. Ordersheet'!Y82)","v":""},{"$f":"IF('1. Ordersheet'!Z82=\"\",\"\",'1. Ordersheet'!Z82)","v":""},{"$f":"IF('1. Ordersheet'!AA82=\"\",\"\",'1. Ordersheet'!AA82)","v":""},null,{"$f":"IF('1. Ordersheet'!AS82=\"\",\"\",'1. Ordersheet'!AS82)","v":""},{"$f":"IF('1. Ordersheet'!AT82=\"\",\"\",'1. Ordersheet'!AT82)","v":""},null,null,null,null,null,null,null,{"$f":"IF('1. Ordersheet'!AX82=\"\",\"\",'1. Ordersheet'!AX82)","v":""},{"$f":"IF('1. Ordersheet'!AY82=\"\",\"\",'1. Ordersheet'!AY82)","v":""},{"$f":"IF('1. Ordersheet'!AZ82=\"\",\"\",'1. Ordersheet'!AZ82)","v":""},{"$f":"IF('1. Ordersheet'!BA82=\"\",\"\",'1. Ordersheet'!BA82)","v":""},{"$f":"IF('1. Ordersheet'!BC82=\"\",\"\",'1. Ordersheet'!BC82)","v":""},{"$f":"IF('1. Ordersheet'!BD82=\"\",\"\",'1. Ordersheet'!BD82)","v":""},{"$f":"IF('1. Ordersheet'!BE82=\"\",\"\",'1. Ordersheet'!BE82)","v":""},{"$f":"IF('1. Ordersheet'!BF82=\"\",\"\",'1. Ordersheet'!BF82)","v":""},{"$f":"IF('1. Ordersheet'!BG82=\"\",\"\",'1. Ordersheet'!BG82)","v":"ZWO"},{"$f":"IF('1. Ordersheet'!BH82=\"\",\"\",'1. Ordersheet'!BH82)","v":""},{"$f":"IF('1. Ordersheet'!BI82=\"\",\"\",'1. Ordersheet'!BI82)","v":""},{"$f":"IF('1. Ordersheet'!BJ82=\"\",\"\",'1. Ordersheet'!BJ82)","v":""},{"$f":"IF('1. Ordersheet'!BK82=\"\",\"\",'1. Ordersheet'!BK82)","v":""},{"$f":"IF('1. Ordersheet'!BL82=\"\",\"\",'1. Ordersheet'!BL82)","v":""}]
[{"$f":"IF('1. Ordersheet'!F83=\"\",\"\",'1. Ordersheet'!F83)","v":""},{"$f":"IF('1. Ordersheet'!G83=\"\",\"\",'1. Ordersheet'!G83)","v":""},{"$f":"IF('1. Ordersheet'!H83=\"\",\"\",'1. Ordersheet'!H83)","v":""},{"$f":"IF('1. Ordersheet'!I83=\"\",\"\",'1. Ordersheet'!I83)","v":""},{"$f":"IF('1. Ordersheet'!J83=\"\",\"\",'1. Ordersheet'!J83)","v":""},{"$f":"IF('1. Ordersheet'!K83=\"\",\"\",'1. Ordersheet'!K83)","v":""},{"$f":"IF('1. Ordersheet'!L83=\"\",\"\",'1. Ordersheet'!L83)","v":""},{"$f":"IF('1. Ordersheet'!M83=\"\",\"\",'1. Ordersheet'!M83)","v":""},{"$f":"IF('1. Ordersheet'!N83=\"\",\"\",'1. Ordersheet'!N83)","v":""},{"$f":"IF('1. Ordersheet'!O83=\"\",\"\",'1. Ordersheet'!O83)","v":{"$error":"#N/A"}},{"$f":"IF('1. Ordersheet'!P83=\"\",\"\",'1. Ordersheet'!P83)","v":{"$error":"#N/A"}},{"$f":"IF('1. Ordersheet'!Q83=\"\",\"\",'1. Ordersheet'!Q83)","v":""},{"$f":"IF('1. Ordersheet'!R83=\"\",\"\",'1. Ordersheet'!R83)","v":""},{"$f":"IF('1. Ordersheet'!S83=\"\",\"\",'1. Ordersheet'!S83)","v":""},{"$f":"IF('1. Ordersheet'!V83=\"\",\"\",'1. Ordersheet'!V83)","v":""},{"$f":"IF('1. Ordersheet'!W83=\"\",\"\",'1. Ordersheet'!W83)","v":""},{"$f":"IF('1. Ordersheet'!X83=\"\",\"\",'1. Ordersheet'!X83)","v":""},{"$f":"IF('1. Ordersheet'!Y83=\"\",\"\",'1. Ordersheet'!Y83)","v":""},{"$f":"IF('1. Ordersheet'!Z83=\"\",\"\",'1. Ordersheet'!Z83)","v":""},{"$f":"IF('1. Ordersheet'!AA83=\"\",\"\",'1. Ordersheet'!AA83)","v":""},null,{"$f":"IF('1. Ordersheet'!AS83=\"\",\"\",'1. Ordersheet'!AS83)","v":""},{"$f":"IF('1. Ordersheet'!AT83=\"\",\"\",'1. Ordersheet'!AT83)","v":""},null,null,null,null,null,null,null,{"$f":"IF('1. Ordersheet'!AX83=\"\",\"\",'1. Ordersheet'!AX83)","v":""},{"$f":"IF('1. Ordersheet'!AY83=\"\",\"\",'1. Ordersheet'!AY83)","v":""},{"$f":"IF('1. Ordersheet'!AZ83=\"\",\"\",'1. Ordersheet'!AZ83)","v":""},{"$f":"IF('1. Ordersheet'!BA83=\"\",\"\",'1. Ordersheet'!BA83)","v":""},{"$f":"IF('1. Ordersheet'!BC83=\"\",\"\",'1. Ordersheet'!BC83)","v":""},{"$f":"IF('1. Ordersheet'!BD83=\"\",\"\",'1. Ordersheet'!BD83)","v":""},{"$f":"IF('1. Ordersheet'!BE83=\"\",\"\",'1. Ordersheet'!BE83)","v":""},{"$f":"IF('1. Ordersheet'!BF83=\"\",\"\",'1. Ordersheet'!BF83)","v":""},{"$f":"IF('1. Ordersheet'!BG83=\"\",\"\",'1. Ordersheet'!BG83)","v":"ZWO"},{"$f":"IF('1. Ordersheet'!BH83=\"\",\"\",'1. Ordersheet'!BH83)","v":""},{"$f":"IF('1. Ordersheet'!BI83=\"\",\"\",'1. Ordersheet'!BI83)","v":""},{"$f":"IF('1. Ordersheet'!BJ83=\"\",\"\",'1. Ordersheet'!BJ83)","v":""},{"$f":"IF('1. Ordersheet'!BK83=\"\",\"\",'1. Ordersheet'!BK83)","v":""},{"$f":"IF('1. Ordersheet'!BL83=\"\",\"\",'1. Ordersheet'!BL83)","v":""}]
[{"$f":"IF('1. Ordersheet'!F84=\"\",\"\",'1. Ordersheet'!F84)","v":""},{"$f":"IF('1. Ordersheet'!G84=\"\",\"\",'1. Ordersheet'!G84)","v":""},{"$f":"IF('1. Ordersheet'!H84=\"\",\"\",'1. Ordersheet'!H84)","v":""},{"$f":"IF('1. Ordersheet'!I84=\"\",\"\",'1. Ordersheet'!I84)","v":""},{"$f":"IF('1. Ordersheet'!J84=\"\",\"\",'1. Ordersheet'!J84)","v":""},{"$f":"IF('1. Ordersheet'!K84=\"\",\"\",'1. Ordersheet'!K84)","v":""},{"$f":"IF('1. Ordersheet'!L84=\"\",\"\",'1. Ordersheet'!L84)","v":""},{"$f":"IF('1. Ordersheet'!M84=\"\",\"\",'1. Ordersheet'!M84)","v":""},{"$f":"IF('1. Ordersheet'!N84=\"\",\"\",'1. Ordersheet'!N84)","v":""},{"$f":"IF('1. Ordersheet'!O84=\"\",\"\",'1. Ordersheet'!O84)","v":{"$error":"#N/A"}},{"$f":"IF('1. Ordersheet'!P84=\"\",\"\",'1. Ordersheet'!P84)","v":{"$error":"#N/A"}},{"$f":"IF('1. Ordersheet'!Q84=\"\",\"\",'1. Ordersheet'!Q84)","v":""},{"$f":"IF('1. Ordersheet'!R84=\"\",\"\",'1. Ordersheet'!R84)","v":""},{"$f":"IF('1. Ordersheet'!S84=\"\",\"\",'1. Ordersheet'!S84)","v":""},{"$f":"IF('1. Ordersheet'!V84=\"\",\"\",'1. Ordersheet'!V84)","v":""},{"$f":"IF('1. Ordersheet'!W84=\"\",\"\",'1. Ordersheet'!W84)","v":""},{"$f":"IF('1. Ordersheet'!X84=\"\",\"\",'1. Ordersheet'!X84)","v":""},{"$f":"IF('1. Ordersheet'!Y84=\"\",\"\",'1. Ordersheet'!Y84)","v":""},{"$f":"IF('1. Ordersheet'!Z84=\"\",\"\",'1. Ordersheet'!Z84)","v":""},{"$f":"IF('1. Ordersheet'!AA84=\"\",\"\",'1. Ordersheet'!AA84)","v":""},null,{"$f":"IF('1. Ordersheet'!AS84=\"\",\"\",'1. Ordersheet'!AS84)","v":""},{"$f":"IF('1. Ordersheet'!AT84=\"\",\"\",'1. Ordersheet'!AT84)","v":""},null,null,null,null,null,null,null,{"$f":"IF('1. Ordersheet'!AX84=\"\",\"\",'1. Ordersheet'!AX84)","v":""},{"$f":"IF('1. Ordersheet'!AY84=\"\",\"\",'1. Ordersheet'!AY84)","v":""},{"$f":"IF('1. Ordersheet'!AZ84=\"\",\"\",'1. Ordersheet'!AZ84)","v":""},{"$f":"IF('1. Ordersheet'!BA84=\"\",\"\",'1. Ordersheet'!BA84)","v":""},{"$f":"IF('1. Ordersheet'!BC84=\"\",\"\",'1. Ordersheet'!BC84)","v":""},{"$f":"IF('1. Ordersheet'!BD84=\"\",\"\",'1. Ordersheet'!BD84)","v":""},{"$f":"IF('1. Ordersheet'!BE84=\"\",\"\",'1. Ordersheet'!BE84)","v":""},{"$f":"IF('1. Ordersheet'!BF84=\"\",\"\",'1. Ordersheet'!BF84)","v":""},{"$f":"IF('1. Ordersheet'!BG84=\"\",\"\",'1. Ordersheet'!BG84)","v":"ZWO"},{"$f":"IF('1. Ordersheet'!BH84=\"\",\"\",'1. Ordersheet'!BH84)","v":""},{"$f":"IF('1. Ordersheet'!BI84=\"\",\"\",'1. Ordersheet'!BI84)","v":""},{"$f":"IF('1. Ordersheet'!BJ84=\"\",\"\",'1. Ordersheet'!BJ84)","v":""},{"$f":"IF('1. Ordersheet'!BK84=\"\",\"\",'1. Ordersheet'!BK84)","v":""},{"$f":"IF('1. Ordersheet'!BL84=\"\",\"\",'1. Ordersheet'!BL84)","v":""}]
[{"$f":"IF('1. Ordersheet'!F85=\"\",\"\",'1. Ordersheet'!F85)","v":""},{"$f":"IF('1. Ordersheet'!G85=\"\",\"\",'1. Ordersheet'!G85)","v":""},{"$f":"IF('1. Ordersheet'!H85=\"\",\"\",'1. Ordersheet'!H85)","v":""},{"$f":"IF('1. Ordersheet'!I85=\"\",\"\",'1. Ordersheet'!I85)","v":""},{"$f":"IF('1. Ordersheet'!J85=\"\",\"\",'1. Ordersheet'!J85)","v":""},{"$f":"IF('1. Ordersheet'!K85=\"\",\"\",'1. Ordersheet'!K85)","v":""},{"$f":"IF('1. Ordersheet'!L85=\"\",\"\",'1. Ordersheet'!L85)","v":""},{"$f":"IF('1. Ordersheet'!M85=\"\",\"\",'1. Ordersheet'!M85)","v":""},{"$f":"IF('1. Ordersheet'!N85=\"\",\"\",'1. Ordersheet'!N85)","v":""},{"$f":"IF('1. Ordersheet'!O85=\"\",\"\",'1. Ordersheet'!O85)","v":{"$error":"#N/A"}},{"$f":"IF('1. Ordersheet'!P85=\"\",\"\",'1. Ordersheet'!P85)","v":{"$error":"#N/A"}},{"$f":"IF('1. Ordersheet'!Q85=\"\",\"\",'1. Ordersheet'!Q85)","v":""},{"$f":"IF('1. Ordersheet'!R85=\"\",\"\",'1. Ordersheet'!R85)","v":""},{"$f":"IF('1. Ordersheet'!S85=\"\",\"\",'1. Ordersheet'!S85)","v":""},{"$f":"IF('1. Ordersheet'!V85=\"\",\"\",'1. Ordersheet'!V85)","v":""},{"$f":"IF('1. Ordersheet'!W85=\"\",\"\",'1. Ordersheet'!W85)","v":""},{"$f":"IF('1. Ordersheet'!X85=\"\",\"\",'1. Ordersheet'!X85)","v":""},{"$f":"IF('1. Ordersheet'!Y85=\"\",\"\",'1. Ordersheet'!Y85)","v":""},{"$f":"IF('1. Ordersheet'!Z85=\"\",\"\",'1. Ordersheet'!Z85)","v":""},{"$f":"IF('1. Ordersheet'!AA85=\"\",\"\",'1. Ordersheet'!AA85)","v":""},null,{"$f":"IF('1. Ordersheet'!AS85=\"\",\"\",'1. Ordersheet'!AS85)","v":""},{"$f":"IF('1. Ordersheet'!AT85=\"\",\"\",'1. Ordersheet'!AT85)","v":""},null,null,null,null,null,null,null,{"$f":"IF('1. Ordersheet'!AX85=\"\",\"\",'1. Ordersheet'!AX85)","v":""},{"$f":"IF('1. Ordersheet'!AY85=\"\",\"\",'1. Ordersheet'!AY85)","v":""},{"$f":"IF('1. Ordersheet'!AZ85=\"\",\"\",'1. Ordersheet'!AZ85)","v":""},{"$f":"IF('1. Ordersheet'!BA85=\"\",\"\",'1. Ordersheet'!BA85)","v":""},{"$f":"IF('1. Ordersheet'!BC85=\"\",\"\",'1. Ordersheet'!BC85)","v":""},{"$f":"IF('1. Ordersheet'!BD85=\"\",\"\",'1. Ordersheet'!BD85)","v":""},{"$f":"IF('1. Ordersheet'!BE85=\"\",\"\",'1. Ordersheet'!BE85)","v":""},{"$f":"IF('1. Ordersheet'!BF85=\"\",\"\",'1. Ordersheet'!BF85)","v":""},{"$f":"IF('1. Ordersheet'!BG85=\"\",\"\",'1. Ordersheet'!BG85)","v":"ZWO"},{"$f":"IF('1. Ordersheet'!BH85=\"\",\"\",'1. Ordersheet'!BH85)","v":""},{"$f":"IF('1. Ordersheet'!BI85=\"\",\"\",'1. Ordersheet'!BI85)","v":""},{"$f":"IF('1. Ordersheet'!BJ85=\"\",\"\",'1. Ordersheet'!BJ85)","v":""},{"$f":"IF('1. Ordersheet'!BK85=\"\",\"\",'1. Ordersheet'!BK85)","v":""},{"$f":"IF('1. Ordersheet'!BL85=\"\",\"\",'1. Ordersheet'!BL85)","v":""}]
[{"$f":"IF('1. Ordersheet'!F86=\"\",\"\",'1. Ordersheet'!F86)","v":""},{"$f":"IF('1. Ordersheet'!G86=\"\",\"\",'1. Ordersheet'!G86)","v":""},{"$f":"IF('1. Ordersheet'!H86=\"\",\"\",'1. Ordersheet'!H86)","v":""},{"$f":"IF('1. Ordersheet'!I86=\"\",\"\",'1. Ordersheet'!I86)","v":""},{"$f":"IF('1. Ordersheet'!J86=\"\",\"\",'1. Ordersheet'!J86)","v":""},{"$f":"IF('1. Ordersheet'!K86=\"\",\"\",'1. Ordersheet'!K86)","v":""},{"$f":"IF('1. Ordersheet'!L86=\"\",\"\",'1. Ordersheet'!L86)","v":""},{"$f":"IF('1. Ordersheet'!M86=\"\",\"\",'1. Ordersheet'!M86)","v":""},{"$f":"IF('1. Ordersheet'!N86=\"\",\"\",'1. Ordersheet'!N86)","v":""},{"$f":"IF('1. Ordersheet'!O86=\"\",\"\",'1. Ordersheet'!O86)","v":{"$error":"#N/A"}},{"$f":"IF('1. Ordersheet'!P86=\"\",\"\",'1. Ordersheet'!P86)","v":{"$error":"#N/A"}},{"$f":"IF('1. Ordersheet'!Q86=\"\",\"\",'1. Ordersheet'!Q86)","v":""},{"$f":"IF('1. Ordersheet'!R86=\"\",\"\",'1. Ordersheet'!R86)","v":""},{"$f":"IF('1. Ordersheet'!S86=\"\",\"\",'1. Ordersheet'!S86)","v":""},{"$f":"IF('1. Ordersheet'!V86=\"\",\"\",'1. Ordersheet'!V86)","v":""},{"$f":"IF('1. Ordersheet'!W86=\"\",\"\",'1. Ordersheet'!W86)","v":""},{"$f":"IF('1. Ordersheet'!X86=\"\",\"\",'1. Ordersheet'!X86)","v":""},{"$f":"IF('1. Ordersheet'!Y86=\"\",\"\",'1. Ordersheet'!Y86)","v":""},{"$f":"IF('1. Ordersheet'!Z86=\"\",\"\",'1. Ordersheet'!Z86)","v":""},{"$f":"IF('1. Ordersheet'!AA86=\"\",\"\",'1. Ordersheet'!AA86)","v":""},null,{"$f":"IF('1. Ordersheet'!AS86=\"\",\"\",'1. Ordersheet'!AS86)","v":""},{"$f":"IF('1. Ordersheet'!AT86=\"\",\"\",'1. Ordersheet'!AT86)","v":""},null,null,null,null,null,null,null,{"$f":"IF('1. Ordersheet'!AX86=\"\",\"\",'1. Ordersheet'!AX86)","v":""},{"$f":"IF('1. Ordersheet'!AY86=\"\",\"\",'1. Ordersheet'!AY86)","v":""},{"$f":"IF('1. Ordersheet'!AZ86=\"\",\"\",'1. Ordersheet'!AZ86)","v":""},{"$f":"IF('1. Ordersheet'!BA86=\"\",\"\",'1. Ordersheet'!BA86)","v":""},{"$f":"IF('1. Ordersheet'!BC86=\"\",\"\",'1. Ordersheet'!BC86)","v":""},{"$f":"IF('1. Ordersheet'!BD86=\"\",\"\",'1. Ordersheet'!BD86)","v":""},{"$f":"IF('1. Ordersheet'!BE86=\"\",\"\",'1. Ordersheet'!BE86)","v":""},{"$f":"IF('1. Ordersheet'!BF86=\"\",\"\",'1. Ordersheet'!BF86)","v":""},{"$f":"IF('1. Ordersheet'!BG86=\"\",\"\",'1. Ordersheet'!BG86)","v":"ZWO"},{"$f":"IF('1. Ordersheet'!BH86=\"\",\"\",'1. Ordersheet'!BH86)","v":""},{"$f":"IF('1. Ordersheet'!BI86=\"\",\"\",'1. Ordersheet'!BI86)","v":""},{"$f":"IF('1. Ordersheet'!BJ86=\"\",\"\",'1. Ordersheet'!BJ86)","v":""},{"$f":"IF('1. Ordersheet'!BK86=\"\",\"\",'1. Ordersheet'!BK86)","v":""},{"$f":"IF('1. Ordersheet'!BL86=\"\",\"\",'1. Ordersheet'!BL86)","v":""}]
[{"$f":"IF('1. Ordersheet'!F87=\"\",\"\",'1. Ordersheet'!F87)","v":""},{"$f":"IF('1. Ordersheet'!G87=\"\",\"\",'1. Ordersheet'!G87)","v":""},{"$f":"IF('1. Ordersheet'!H87=\"\",\"\",'1. Ordersheet'!H87)","v":""},{"$f":"IF('1. Ordersheet'!I87=\"\",\"\",'1. Ordersheet'!I87)","v":""},{"$f":"IF('1. Ordersheet'!J87=\"\",\"\",'1. Ordersheet'!J87)","v":""},{"$f":"IF('1. Ordersheet'!K87=\"\",\"\",'1. Ordersheet'!K87)","v":""},{"$f":"IF('1. Ordersheet'!L87=\"\",\"\",'1. Ordersheet'!L87)","v":""},{"$f":"IF('1. Ordersheet'!M87=\"\",\"\",'1. Ordersheet'!M87)","v":""},{"$f":"IF('1. Ordersheet'!N87=\"\",\"\",'1. Ordersheet'!N87)","v":""},{"$f":"IF('1. Ordersheet'!O87=\"\",\"\",'1. Ordersheet'!O87)","v":{"$error":"#N/A"}},{"$f":"IF('1. Ordersheet'!P87=\"\",\"\",'1. Ordersheet'!P87)","v":{"$error":"#N/A"}},{"$f":"IF('1. Ordersheet'!Q87=\"\",\"\",'1. Ordersheet'!Q87)","v":""},{"$f":"IF('1. Ordersheet'!R87=\"\",\"\",'1. Ordersheet'!R87)","v":""},{"$f":"IF('1. Ordersheet'!S87=\"\",\"\",'1. Ordersheet'!S87)","v":""},{"$f":"IF('1. Ordersheet'!V87=\"\",\"\",'1. Ordersheet'!V87)","v":""},{"$f":"IF('1. Ordersheet'!W87=\"\",\"\",'1. Ordersheet'!W87)","v":""},{"$f":"IF('1. Ordersheet'!X87=\"\",\"\",'1. Ordersheet'!X87)","v":""},{"$f":"IF('1. Ordersheet'!Y87=\"\",\"\",'1. Ordersheet'!Y87)","v":""},{"$f":"IF('1. Ordersheet'!Z87=\"\",\"\",'1. Ordersheet'!Z87)","v":""},{"$f":"IF('1. Ordersheet'!AA87=\"\",\"\",'1. Ordersheet'!AA87)","v":""},null,{"$f":"IF('1. Ordersheet'!AS87=\"\",\"\",'1. Ordersheet'!AS87)","v":""},{"$f":"IF('1. Ordersheet'!AT87=\"\",\"\",'1. Ordersheet'!AT87)","v":""},null,null,null,null,null,null,null,{"$f":"IF('1. Ordersheet'!AX87=\"\",\"\",'1. Ordersheet'!AX87)","v":""},{"$f":"IF('1. Ordersheet'!AY87=\"\",\"\",'1. Ordersheet'!AY87)","v":""},{"$f":"IF('1. Ordersheet'!AZ87=\"\",\"\",'1. Ordersheet'!AZ87)","v":""},{"$f":"IF('1. Ordersheet'!BA87=\"\",\"\",'1. Ordersheet'!BA87)","v":""},{"$f":"IF('1. Ordersheet'!BC87=\"\",\"\",'1. Ordersheet'!BC87)","v":""},{"$f":"IF('1. Ordersheet'!BD87=\"\",\"\",'1. Ordersheet'!BD87)","v":""},{"$f":"IF('1. Ordersheet'!BE87=\"\",\"\",'1. Ordersheet'!BE87)","v":""},{"$f":"IF('1. Ordersheet'!BF87=\"\",\"\",'1. Ordersheet'!BF87)","v":""},{"$f":"IF('1. Ordersheet'!BG87=\"\",\"\",'1. Ordersheet'!BG87)","v":"ZWO"},{"$f":"IF('1. Ordersheet'!BH87=\"\",\"\",'1. Ordersheet'!BH87)","v":""},{"$f":"IF('1. Ordersheet'!BI87=\"\",\"\",'1. Ordersheet'!BI87)","v":""},{"$f":"IF('1. Ordersheet'!BJ87=\"\",\"\",'1. Ordersheet'!BJ87)","v":""},{"$f":"IF('1. Ordersheet'!BK87=\"\",\"\",'1. Ordersheet'!BK87)","v":""},{"$f":"IF('1. Ordersheet'!BL87=\"\",\"\",'1. Ordersheet'!BL87)","v":""}]
[{"$f":"IF('1. Ordersheet'!F88=\"\",\"\",'1. Ordersheet'!F88)","v":""},{"$f":"IF('1. Ordersheet'!G88=\"\",\"\",'1. Ordersheet'!G88)","v":""},{"$f":"IF('1. Ordersheet'!H88=\"\",\"\",'1. Ordersheet'!H88)","v":""},{"$f":"IF('1. Ordersheet'!I88=\"\",\"\",'1. Ordersheet'!I88)","v":""},{"$f":"IF('1. Ordersheet'!J88=\"\",\"\",'1. Ordersheet'!J88)","v":""},{"$f":"IF('1. Ordersheet'!K88=\"\",\"\",'1. Ordersheet'!K88)","v":""},{"$f":"IF('1. Ordersheet'!L88=\"\",\"\",'1. Ordersheet'!L88)","v":""},{"$f":"IF('1. Ordersheet'!M88=\"\",\"\",'1. Ordersheet'!M88)","v":""},{"$f":"IF('1. Ordersheet'!N88=\"\",\"\",'1. Ordersheet'!N88)","v":""},{"$f":"IF('1. Ordersheet'!O88=\"\",\"\",'1. Ordersheet'!O88)","v":{"$error":"#N/A"}},{"$f":"IF('1. Ordersheet'!P88=\"\",\"\",'1. Ordersheet'!P88)","v":{"$error":"#N/A"}},{"$f":"IF('1. Ordersheet'!Q88=\"\",\"\",'1. Ordersheet'!Q88)","v":""},{"$f":"IF('1. Ordersheet'!R88=\"\",\"\",'1. Ordersheet'!R88)","v":""},{"$f":"IF('1. Ordersheet'!S88=\"\",\"\",'1. Ordersheet'!S88)","v":""},{"$f":"IF('1. Ordersheet'!V88=\"\",\"\",'1. Ordersheet'!V88)","v":""},{"$f":"IF('1. Ordersheet'!W88=\"\",\"\",'1. Ordersheet'!W88)","v":""},{"$f":"IF('1. Ordersheet'!X88=\"\",\"\",'1. Ordersheet'!X88)","v":""},{"$f":"IF('1. Ordersheet'!Y88=\"\",\"\",'1. Ordersheet'!Y88)","v":""},{"$f":"IF('1. Ordersheet'!Z88=\"\",\"\",'1. Ordersheet'!Z88)","v":""},{"$f":"IF('1. Ordersheet'!AA88=\"\",\"\",'1. Ordersheet'!AA88)","v":""},null,{"$f":"IF('1. Ordersheet'!AS88=\"\",\"\",'1. Ordersheet'!AS88)","v":""},{"$f":"IF('1. Ordersheet'!AT88=\"\",\"\",'1. Ordersheet'!AT88)","v":""},null,null,null,null,null,null,null,{"$f":"IF('1. Ordersheet'!AX88=\"\",\"\",'1. Ordersheet'!AX88)","v":""},{"$f":"IF('1. Ordersheet'!AY88=\"\",\"\",'1. Ordersheet'!AY88)","v":""},{"$f":"IF('1. Ordersheet'!AZ88=\"\",\"\",'1. Ordersheet'!AZ88)","v":""},{"$f":"IF('1. Ordersheet'!BA88=\"\",\"\",'1. Ordersheet'!BA88)","v":""},{"$f":"IF('1. Ordersheet'!BC88=\"\",\"\",'1. Ordersheet'!BC88)","v":""},{"$f":"IF('1. Ordersheet'!BD88=\"\",\"\",'1. Ordersheet'!BD88)","v":""},{"$f":"IF('1. Ordersheet'!BE88=\"\",\"\",'1. Ordersheet'!BE88)","v":""},{"$f":"IF('1. Ordersheet'!BF88=\"\",\"\",'1. Ordersheet'!BF88)","v":""},{"$f":"IF('1. Ordersheet'!BG88=\"\",\"\",'1. Ordersheet'!BG88)","v":"ZWO"},{"$f":"IF('1. Ordersheet'!BH88=\"\",\"\",'1. Ordersheet'!BH88)","v":""},{"$f":"IF('1. Ordersheet'!BI88=\"\",\"\",'1. Ordersheet'!BI88)","v":""},{"$f":"IF('1. Ordersheet'!BJ88=\"\",\"\",'1. Ordersheet'!BJ88)","v":""},{"$f":"IF('1. Ordersheet'!BK88=\"\",\"\",'1. Ordersheet'!BK88)","v":""},{"$f":"IF('1. Ordersheet'!BL88=\"\",\"\",'1. Ordersheet'!BL88)","v":""}]
[{"$f":"IF('1. Ordersheet'!F89=\"\",\"\",'1. Ordersheet'!F89)","v":""},{"$f":"IF('1. Ordersheet'!G89=\"\",\"\",'1. Ordersheet'!G89)","v":""},{"$f":"IF('1. Ordersheet'!H89=\"\",\"\",'1. Ordersheet'!H89)","v":""},{"$f":"IF('1. Ordersheet'!I89=\"\",\"\",'1. Ordersheet'!I89)","v":""},{"$f":"IF('1. Ordersheet'!J89=\"\",\"\",'1. Ordersheet'!J89)","v":""},{"$f":"IF('1. Ordersheet'!K89=\"\",\"\",'1. Ordersheet'!K89)","v":""},{"$f":"IF('1. Ordersheet'!L89=\"\",\"\",'1. Ordersheet'!L89)","v":""},{"$f":"IF('1. Ordersheet'!M89=\"\",\"\",'1. Ordersheet'!M89)","v":""},{"$f":"IF('1. Ordersheet'!N89=\"\",\"\",'1. Ordersheet'!N89)","v":""},{"$f":"IF('1. Ordersheet'!O89=\"\",\"\",'1. Ordersheet'!O89)","v":{"$error":"#N/A"}},{"$f":"IF('1. Ordersheet'!P89=\"\",\"\",'1. Ordersheet'!P89)","v":{"$error":"#N/A"}},{"$f":"IF('1. Ordersheet'!Q89=\"\",\"\",'1. Ordersheet'!Q89)","v":""},{"$f":"IF('1. Ordersheet'!R89=\"\",\"\",'1. Ordersheet'!R89)","v":""},{"$f":"IF('1. Ordersheet'!S89=\"\",\"\",'1. Ordersheet'!S89)","v":""},{"$f":"IF('1. Ordersheet'!V89=\"\",\"\",'1. Ordersheet'!V89)","v":""},{"$f":"IF('1. Ordersheet'!W89=\"\",\"\",'1. Ordersheet'!W89)","v":""},{"$f":"IF('1. Ordersheet'!X89=\"\",\"\",'1. Ordersheet'!X89)","v":""},{"$f":"IF('1. Ordersheet'!Y89=\"\",\"\",'1. Ordersheet'!Y89)","v":""},{"$f":"IF('1. Ordersheet'!Z89=\"\",\"\",'1. Ordersheet'!Z89)","v":""},{"$f":"IF('1. Ordersheet'!AA89=\"\",\"\",'1. Ordersheet'!AA89)","v":""},null,{"$f":"IF('1. Ordersheet'!AS89=\"\",\"\",'1. Ordersheet'!AS89)","v":""},{"$f":"IF('1. Ordersheet'!AT89=\"\",\"\",'1. Ordersheet'!AT89)","v":""},null,null,null,null,null,null,null,{"$f":"IF('1. Ordersheet'!AX89=\"\",\"\",'1. Ordersheet'!AX89)","v":""},{"$f":"IF('1. Ordersheet'!AY89=\"\",\"\",'1. Ordersheet'!AY89)","v":""},{"$f":"IF('1. Ordersheet'!AZ89=\"\",\"\",'1. Ordersheet'!AZ89)","v":""},{"$f":"IF('1. Ordersheet'!BA89=\"\",\"\",'1. Ordersheet'!BA89)","v":""},{"$f":"IF('1. Ordersheet'!BC89=\"\",\"\",'1. Ordersheet'!BC89)","v":""},{"$f":"IF('1. Ordersheet'!BD89=\"\",\"\",'1. Ordersheet'!BD89)","v":""},{"$f":"IF('1. Ordersheet'!BE89=\"\",\"\",'1. Ordersheet'!BE89)","v":""},{"$f":"IF('1. Ordersheet'!BF89=\"\",\"\",'1. Ordersheet'!BF89)","v":""},{"$f":"IF('1. Ordersheet'!BG89=\"\",\"\",'1. Ordersheet'!BG89)","v":"ZWO"},{"$f":"IF('1. Ordersheet'!BH89=\"\",\"\",'1. Ordersheet'!BH89)","v":""},{"$f":"IF('1. Ordersheet'!BI89=\"\",\"\",'1. Ordersheet'!BI89)","v":""},{"$f":"IF('1. Ordersheet'!BJ89=\"\",\"\",'1. Ordersheet'!BJ89)","v":""},{"$f":"IF('1. Ordersheet'!BK89=\"\",\"\",'1. Ordersheet'!BK89)","v":""},{"$f":"IF('1. Ordersheet'!BL89=\"\",\"\",'1. Ordersheet'!BL89)","v":""}]
[{"$f":"IF('1. Ordersheet'!F90=\"\",\"\",'1. Ordersheet'!F90)","v":""},{"$f":"IF('1. Ordersheet'!G90=\"\",\"\",'1. Ordersheet'!G90)","v":""},{"$f":"IF('1. Ordersheet'!H90=\"\",\"\",'1. Ordersheet'!H90)","v":""},{"$f":"IF('1. Ordersheet'!I90=\"\",\"\",'1. Ordersheet'!I90)","v":""},{"$f":"IF('1. Ordersheet'!J90=\"\",\"\",'1. Ordersheet'!J90)","v":""},{"$f":"IF('1. Ordersheet'!K90=\"\",\"\",'1. Ordersheet'!K90)","v":""},{"$f":"IF('1. Ordersheet'!L90=\"\",\"\",'1. Ordersheet'!L90)","v":""},{"$f":"IF('1. Ordersheet'!M90=\"\",\"\",'1. Ordersheet'!M90)","v":""},{"$f":"IF('1. Ordersheet'!N90=\"\",\"\",'1. Ordersheet'!N90)","v":""},{"$f":"IF('1. Ordersheet'!O90=\"\",\"\",'1. Ordersheet'!O90)","v":{"$error":"#N/A"}},{"$f":"IF('1. Ordersheet'!P90=\"\",\"\",'1. Ordersheet'!P90)","v":{"$error":"#N/A"}},{"$f":"IF('1. Ordersheet'!Q90=\"\",\"\",'1. Ordersheet'!Q90)","v":""},{"$f":"IF('1. Ordersheet'!R90=\"\",\"\",'1. Ordersheet'!R90)","v":""},{"$f":"IF('1. Ordersheet'!S90=\"\",\"\",'1. Ordersheet'!S90)","v":""},{"$f":"IF('1. Ordersheet'!V90=\"\",\"\",'1. Ordersheet'!V90)","v":""},{"$f":"IF('1. Ordersheet'!W90=\"\",\"\",'1. Ordersheet'!W90)","v":""},{"$f":"IF('1. Ordersheet'!X90=\"\",\"\",'1. Ordersheet'!X90)","v":""},{"$f":"IF('1. Ordersheet'!Y90=\"\",\"\",'1. Ordersheet'!Y90)","v":""},{"$f":"IF('1. Ordersheet'!Z90=\"\",\"\",'1. Ordersheet'!Z90)","v":""},{"$f":"IF('1. Ordersheet'!AA90=\"\",\"\",'1. Ordersheet'!AA90)","v":""},null,{"$f":"IF('1. Ordersheet'!AS90=\"\",\"\",'1. Ordersheet'!AS90)","v":""},{"$f":"IF('1. Ordersheet'!AT90=\"\",\"\",'1. Ordersheet'!AT90)","v":""},null,null,null,null,null,null,null,{"$f":"IF('1. Ordersheet'!AX90=\"\",\"\",'1. Ordersheet'!AX90)","v":""},{"$f":"IF('1. Ordersheet'!AY90=\"\",\"\",'1. Ordersheet'!AY90)","v":""},{"$f":"IF('1. Ordersheet'!AZ90=\"\",\"\",'1. Ordersheet'!AZ90)","v":""},{"$f":"IF('1. Ordersheet'!BA90=\"\",\"\",'1. Ordersheet'!BA90)","v":""},{"$f":"IF('1. Ordersheet'!BC90=\"\",\"\",'1. Ordersheet'!BC90)","v":""},{"$f":"IF('1. Ordersheet'!BD90=\"\",\"\",'1. Ordersheet'!BD90)","v":""},{"$f":"IF('1. Ordersheet'!BE90=\"\",\"\",'1. Ordersheet'!BE90)","v":""},{"$f":"IF('1. Ordersheet'!BF90=\"\",\"\",'1. Ordersheet'!BF90)","v":""},{"$f":"IF('1. Ordersheet'!BG90=\"\",\"\",'1. Ordersheet'!BG90)","v":"ZWO"},{"$f":"IF('1. Ordersheet'!BH90=\"\",\"\",'1. Ordersheet'!BH90)","v":""},{"$f":"IF('1. Ordersheet'!BI90=\"\",\"\",'1. Ordersheet'!BI90)","v":""},{"$f":"IF('1. Ordersheet'!BJ90=\"\",\"\",'1. Ordersheet'!BJ90)","v":""},{"$f":"IF('1. Ordersheet'!BK90=\"\",\"\",'1. Ordersheet'!BK90)","v":""},{"$f":"IF('1. Ordersheet'!BL90=\"\",\"\",'1. Ordersheet'!BL90)","v":""}]
[{"$f":"IF('1. Ordersheet'!F91=\"\",\"\",'1. Ordersheet'!F91)","v":""},{"$f":"IF('1. Ordersheet'!G91=\"\",\"\",'1. Ordersheet'!G91)","v":""},{"$f":"IF('1. Ordersheet'!H91=\"\",\"\",'1. Ordersheet'!H91)","v":""},{"$f":"IF('1. Ordersheet'!I91=\"\",\"\",'1. Ordersheet'!I91)","v":""},{"$f":"IF('1. Ordersheet'!J91=\"\",\"\",'1. Ordersheet'!J91)","v":""},{"$f":"IF('1. Ordersheet'!K91=\"\",\"\",'1. Ordersheet'!K91)","v":""},{"$f":"IF('1. Ordersheet'!L91=\"\",\"\",'1. Ordersheet'!L91)","v":""},{"$f":"IF('1. Ordersheet'!M91=\"\",\"\",'1. Ordersheet'!M91)","v":""},{"$f":"IF('1. Ordersheet'!N91=\"\",\"\",'1. Ordersheet'!N91)","v":""},{"$f":"IF('1. Ordersheet'!O91=\"\",\"\",'1. Ordersheet'!O91)","v":{"$error":"#N/A"}},{"$f":"IF('1. Ordersheet'!P91=\"\",\"\",'1. Ordersheet'!P91)","v":{"$error":"#N/A"}},{"$f":"IF('1. Ordersheet'!Q91=\"\",\"\",'1. Ordersheet'!Q91)","v":""},{"$f":"IF('1. Ordersheet'!R91=\"\",\"\",'1. Ordersheet'!R91)","v":""},{"$f":"IF('1. Ordersheet'!S91=\"\",\"\",'1. Ordersheet'!S91)","v":""},{"$f":"IF('1. Ordersheet'!V91=\"\",\"\",'1. Ordersheet'!V91)","v":""},{"$f":"IF('1. Ordersheet'!W91=\"\",\"\",'1. Ordersheet'!W91)","v":""},{"$f":"IF('1. Ordersheet'!X91=\"\",\"\",'1. Ordersheet'!X91)","v":""},{"$f":"IF('1. Ordersheet'!Y91=\"\",\"\",'1. Ordersheet'!Y91)","v":""},{"$f":"IF('1. Ordersheet'!Z91=\"\",\"\",'1. Ordersheet'!Z91)","v":""},{"$f":"IF('1. Ordersheet'!AA91=\"\",\"\",'1. Ordersheet'!AA91)","v":""},null,{"$f":"IF('1. Ordersheet'!AS91=\"\",\"\",'1. Ordersheet'!AS91)","v":""},{"$f":"IF('1. Ordersheet'!AT91=\"\",\"\",'1. Ordersheet'!AT91)","v":""},null,null,null,null,null,null,null,{"$f":"IF('1. Ordersheet'!AX91=\"\",\"\",'1. Ordersheet'!AX91)","v":""},{"$f":"IF('1. Ordersheet'!AY91=\"\",\"\",'1. Ordersheet'!AY91)","v":""},{"$f":"IF('1. Ordersheet'!AZ91=\"\",\"\",'1. Ordersheet'!AZ91)","v":""},{"$f":"IF('1. Ordersheet'!BA91=\"\",\"\",'1. Ordersheet'!BA91)","v":""},{"$f":"IF('1. Ordersheet'!BC91=\"\",\"\",'1. Ordersheet'!BC91)","v":""},{"$f":"IF('1. Ordersheet'!BD91=\"\",\"\",'1. Ordersheet'!BD91)","v":""},{"$f":"IF('1. Ordersheet'!BE91=\"\",\"\",'1. Ordersheet'!BE91)","v":""},{"$f":"IF('1. Ordersheet'!BF91=\"\",\"\",'1. Ordersheet'!BF91)","v":""},{"$f":"IF('1. Ordersheet'!BG91=\"\",\"\",'1. Ordersheet'!BG91)","v":"ZWO"},{"$f":"IF('1. Ordersheet'!BH91=\"\",\"\",'1. Ordersheet'!BH91)","v":""},{"$f":"IF('1. Ordersheet'!BI91=\"\",\"\",'1. Ordersheet'!BI91)","v":""},{"$f":"IF('1. Ordersheet'!BJ91=\"\",\"\",'1. Ordersheet'!BJ91)","v":""},{"$f":"IF('1. Ordersheet'!BK91=\"\",\"\",'1. Ordersheet'!BK91)","v":""},{"$f":"IF('1. Ordersheet'!BL91=\"\",\"\",'1. Ordersheet'!BL91)","v":""}]
[{"$f":"IF('1. Ordersheet'!F92=\"\",\"\",'1. Ordersheet'!F92)","v":""},{"$f":"IF('1. Ordersheet'!G92=\"\",\"\",'1. Ordersheet'!G92)","v":""},{"$f":"IF('1. Ordersheet'!H92=\"\",\"\",'1. Ordersheet'!H92)","v":""},{"$f":"IF('1. Ordersheet'!I92=\"\",\"\",'1. Ordersheet'!I92)","v":""},{"$f":"IF('1. Ordersheet'!J92=\"\",\"\",'1. Ordersheet'!J92)","v":""},{"$f":"IF('1. Ordersheet'!K92=\"\",\"\",'1. Ordersheet'!K92)","v":""},{"$f":"IF('1. Ordersheet'!L92=\"\",\"\",'1. Ordersheet'!L92)","v":""},{"$f":"IF('1. Ordersheet'!M92=\"\",\"\",'1. Ordersheet'!M92)","v":""},{"$f":"IF('1. Ordersheet'!N92=\"\",\"\",'1. Ordersheet'!N92)","v":""},{"$f":"IF('1. Ordersheet'!O92=\"\",\"\",'1. Ordersheet'!O92)","v":{"$error":"#N/A"}},{"$f":"IF('1. Ordersheet'!P92=\"\",\"\",'1. Ordersheet'!P92)","v":{"$error":"#N/A"}},{"$f":"IF('1. Ordersheet'!Q92=\"\",\"\",'1. Ordersheet'!Q92)","v":""},{"$f":"IF('1. Ordersheet'!R92=\"\",\"\",'1. Ordersheet'!R92)","v":""},{"$f":"IF('1. Ordersheet'!S92=\"\",\"\",'1. Ordersheet'!S92)","v":""},{"$f":"IF('1. Ordersheet'!V92=\"\",\"\",'1. Ordersheet'!V92)","v":""},{"$f":"IF('1. Ordersheet'!W92=\"\",\"\",'1. Ordersheet'!W92)","v":""},{"$f":"IF('1. Ordersheet'!X92=\"\",\"\",'1. Ordersheet'!X92)","v":""},{"$f":"IF('1. Ordersheet'!Y92=\"\",\"\",'1. Ordersheet'!Y92)","v":""},{"$f":"IF('1. Ordersheet'!Z92=\"\",\"\",'1. Ordersheet'!Z92)","v":""},{"$f":"IF('1. Ordersheet'!AA92=\"\",\"\",'1. Ordersheet'!AA92)","v":""},null,{"$f":"IF('1. Ordersheet'!AS92=\"\",\"\",'1. Ordersheet'!AS92)","v":""},{"$f":"IF('1. Ordersheet'!AT92=\"\",\"\",'1. Ordersheet'!AT92)","v":""},null,null,null,null,null,null,null,{"$f":"IF('1. Ordersheet'!AX92=\"\",\"\",'1. Ordersheet'!AX92)","v":""},{"$f":"IF('1. Ordersheet'!AY92=\"\",\"\",'1. Ordersheet'!AY92)","v":""},{"$f":"IF('1. Ordersheet'!AZ92=\"\",\"\",'1. Ordersheet'!AZ92)","v":""},{"$f":"IF('1. Ordersheet'!BA92=\"\",\"\",'1. Ordersheet'!BA92)","v":""},{"$f":"IF('1. Ordersheet'!BC92=\"\",\"\",'1. Ordersheet'!BC92)","v":""},{"$f":"IF('1. Ordersheet'!BD92=\"\",\"\",'1. Ordersheet'!BD92)","v":""},{"$f":"IF('1. Ordersheet'!BE92=\"\",\"\",'1. Ordersheet'!BE92)","v":""},{"$f":"IF('1. Ordersheet'!BF92=\"\",\"\",'1. Ordersheet'!BF92)","v":""},{"$f":"IF('1. Ordersheet'!BG92=\"\",\"\",'1. Ordersheet'!BG92)","v":"ZWO"},{"$f":"IF('1. Ordersheet'!BH92=\"\",\"\",'1. Ordersheet'!BH92)","v":""},{"$f":"IF('1. Ordersheet'!BI92=\"\",\"\",'1. Ordersheet'!BI92)","v":""},{"$f":"IF('1. Ordersheet'!BJ92=\"\",\"\",'1. Ordersheet'!BJ92)","v":""},{"$f":"IF('1. Ordersheet'!BK92=\"\",\"\",'1. Ordersheet'!BK92)","v":""},{"$f":"IF('1. Ordersheet'!BL92=\"\",\"\",'1. Ordersheet'!BL92)","v":""}]
[{"$f":"IF('1. Ordersheet'!F93=\"\",\"\",'1. Ordersheet'!F93)","v":""},{"$f":"IF('1. Ordersheet'!G93=\"\",\"\",'1. Ordersheet'!G93)","v":""},{"$f":"IF('1. Ordersheet'!H93=\"\",\"\",'1. Ordersheet'!H93)","v":""},{"$f":"IF('1. Ordersheet'!I93=\"\",\"\",'1. Ordersheet'!I93)","v":""},{"$f":"IF('1. Ordersheet'!J93=\"\",\"\",'1. Ordersheet'!J93)","v":""},{"$f":"IF('1. Ordersheet'!K93=\"\",\"\",'1. Ordersheet'!K93)","v":""},{"$f":"IF('1. Ordersheet'!L93=\"\",\"\",'1. Ordersheet'!L93)","v":""},{"$f":"IF('1. Ordersheet'!M93=\"\",\"\",'1. Ordersheet'!M93)","v":""},{"$f":"IF('1. Ordersheet'!N93=\"\",\"\",'1. Ordersheet'!N93)","v":""},{"$f":"IF('1. Ordersheet'!O93=\"\",\"\",'1. Ordersheet'!O93)","v":{"$error":"#N/A"}},{"$f":"IF('1. Ordersheet'!P93=\"\",\"\",'1. Ordersheet'!P93)","v":{"$error":"#N/A"}},{"$f":"IF('1. Ordersheet'!Q93=\"\",\"\",'1. Ordersheet'!Q93)","v":""},{"$f":"IF('1. Ordersheet'!R93=\"\",\"\",'1. Ordersheet'!R93)","v":""},{"$f":"IF('1. Ordersheet'!S93=\"\",\"\",'1. Ordersheet'!S93)","v":""},{"$f":"IF('1. Ordersheet'!V93=\"\",\"\",'1. Ordersheet'!V93)","v":""},{"$f":"IF('1. Ordersheet'!W93=\"\",\"\",'1. Ordersheet'!W93)","v":""},{"$f":"IF('1. Ordersheet'!X93=\"\",\"\",'1. Ordersheet'!X93)","v":""},{"$f":"IF('1. Ordersheet'!Y93=\"\",\"\",'1. Ordersheet'!Y93)","v":""},{"$f":"IF('1. Ordersheet'!Z93=\"\",\"\",'1. Ordersheet'!Z93)","v":""},{"$f":"IF('1. Ordersheet'!AA93=\"\",\"\",'1. Ordersheet'!AA93)","v":""},null,{"$f":"IF('1. Ordersheet'!AS93=\"\",\"\",'1. Ordersheet'!AS93)","v":""},{"$f":"IF('1. Ordersheet'!AT93=\"\",\"\",'1. Ordersheet'!AT93)","v":""},null,null,null,null,null,null,null,{"$f":"IF('1. Ordersheet'!AX93=\"\",\"\",'1. Ordersheet'!AX93)","v":""},{"$f":"IF('1. Ordersheet'!AY93=\"\",\"\",'1. Ordersheet'!AY93)","v":""},{"$f":"IF('1. Ordersheet'!AZ93=\"\",\"\",'1. Ordersheet'!AZ93)","v":""},{"$f":"IF('1. Ordersheet'!BA93=\"\",\"\",'1. Ordersheet'!BA93)","v":""},{"$f":"IF('1. Ordersheet'!BC93=\"\",\"\",'1. Ordersheet'!BC93)","v":""},{"$f":"IF('1. Ordersheet'!BD93=\"\",\"\",'1. Ordersheet'!BD93)","v":""},{"$f":"IF('1. Ordersheet'!BE93=\"\",\"\",'1. Ordersheet'!BE93)","v":""},{"$f":"IF('1. Ordersheet'!BF93=\"\",\"\",'1. Ordersheet'!BF93)","v":""},{"$f":"IF('1. Ordersheet'!BG93=\"\",\"\",'1. Ordersheet'!BG93)","v":"ZWO"},{"$f":"IF('1. Ordersheet'!BH93=\"\",\"\",'1. Ordersheet'!BH93)","v":""},{"$f":"IF('1. Ordersheet'!BI93=\"\",\"\",'1. Ordersheet'!BI93)","v":""},{"$f":"IF('1. Ordersheet'!BJ93=\"\",\"\",'1. Ordersheet'!BJ93)","v":""},{"$f":"IF('1. Ordersheet'!BK93=\"\",\"\",'1. Ordersheet'!BK93)","v":""},{"$f":"IF('1. Ordersheet'!BL93=\"\",\"\",'1. Ordersheet'!BL93)","v":""}]
[{"$f":"IF('1. Ordersheet'!F94=\"\",\"\",'1. Ordersheet'!F94)","v":""},{"$f":"IF('1. Ordersheet'!G94=\"\",\"\",'1. Ordersheet'!G94)","v":""},{"$f":"IF('1. Ordersheet'!H94=\"\",\"\",'1. Ordersheet'!H94)","v":""},{"$f":"IF('1. Ordersheet'!I94=\"\",\"\",'1. Ordersheet'!I94)","v":""},{"$f":"IF('1. Ordersheet'!J94=\"\",\"\",'1. Ordersheet'!J94)","v":""},{"$f":"IF('1. Ordersheet'!K94=\"\",\"\",'1. Ordersheet'!K94)","v":""},{"$f":"IF('1. Ordersheet'!L94=\"\",\"\",'1. Ordersheet'!L94)","v":""},{"$f":"IF('1. Ordersheet'!M94=\"\",\"\",'1. Ordersheet'!M94)","v":""},{"$f":"IF('1. Ordersheet'!N94=\"\",\"\",'1. Ordersheet'!N94)","v":""},{"$f":"IF('1. Ordersheet'!O94=\"\",\"\",'1. Ordersheet'!O94)","v":{"$error":"#N/A"}},{"$f":"IF('1. Ordersheet'!P94=\"\",\"\",'1. Ordersheet'!P94)","v":{"$error":"#N/A"}},{"$f":"IF('1. Ordersheet'!Q94=\"\",\"\",'1. Ordersheet'!Q94)","v":""},{"$f":"IF('1. Ordersheet'!R94=\"\",\"\",'1. Ordersheet'!R94)","v":""},{"$f":"IF('1. Ordersheet'!S94=\"\",\"\",'1. Ordersheet'!S94)","v":""},{"$f":"IF('1. Ordersheet'!V94=\"\",\"\",'1. Ordersheet'!V94)","v":""},{"$f":"IF('1. Ordersheet'!W94=\"\",\"\",'1. Ordersheet'!W94)","v":""},{"$f":"IF('1. Ordersheet'!X94=\"\",\"\",'1. Ordersheet'!X94)","v":""},{"$f":"IF('1. Ordersheet'!Y94=\"\",\"\",'1. Ordersheet'!Y94)","v":""},{"$f":"IF('1. Ordersheet'!Z94=\"\",\"\",'1. Ordersheet'!Z94)","v":""},{"$f":"IF('1. Ordersheet'!AA94=\"\",\"\",'1. Ordersheet'!AA94)","v":""},null,{"$f":"IF('1. Ordersheet'!AS94=\"\",\"\",'1. Ordersheet'!AS94)","v":""},{"$f":"IF('1. Ordersheet'!AT94=\"\",\"\",'1. Ordersheet'!AT94)","v":""},null,null,null,null,null,null,null,{"$f":"IF('1. Ordersheet'!AX94=\"\",\"\",'1. Ordersheet'!AX94)","v":""},{"$f":"IF('1. Ordersheet'!AY94=\"\",\"\",'1. Ordersheet'!AY94)","v":""},{"$f":"IF('1. Ordersheet'!AZ94=\"\",\"\",'1. Ordersheet'!AZ94)","v":""},{"$f":"IF('1. Ordersheet'!BA94=\"\",\"\",'1. Ordersheet'!BA94)","v":""},{"$f":"IF('1. Ordersheet'!BC94=\"\",\"\",'1. Ordersheet'!BC94)","v":""},{"$f":"IF('1. Ordersheet'!BD94=\"\",\"\",'1. Ordersheet'!BD94)","v":""},{"$f":"IF('1. Ordersheet'!BE94=\"\",\"\",'1. Ordersheet'!BE94)","v":""},{"$f":"IF('1. Ordersheet'!BF94=\"\",\"\",'1. Ordersheet'!BF94)","v":""},{"$f":"IF('1. Ordersheet'!BG94=\"\",\"\",'1. Ordersheet'!BG94)","v":"ZWO"},{"$f":"IF('1. Ordersheet'!BH94=\"\",\"\",'1. Ordersheet'!BH94)","v":""},{"$f":"IF('1. Ordersheet'!BI94=\"\",\"\",'1. Ordersheet'!BI94)","v":""},{"$f":"IF('1. Ordersheet'!BJ94=\"\",\"\",'1. Ordersheet'!BJ94)","v":""},{"$f":"IF('1. Ordersheet'!BK94=\"\",\"\",'1. Ordersheet'!BK94)","v":""},{"$f":"IF('1. Ordersheet'!BL94=\"\",\"\",'1. Ordersheet'!BL94)","v":""}]
[{"$f":"IF('1. Ordersheet'!F95=\"\",\"\",'1. Ordersheet'!F95)","v":""},{"$f":"IF('1. Ordersheet'!G95=\"\",\"\",'1. Ordersheet'!G95)","v":""},{"$f":"IF('1. Ordersheet'!H95=\"\",\"\",'1. Ordersheet'!H95)","v":""},{"$f":"IF('1. Ordersheet'!I95=\"\",\"\",'1. Ordersheet'!I95)","v":""},{"$f":"IF('1. Ordersheet'!J95=\"\",\"\",'1. Ordersheet'!J95)","v":""},{"$f":"IF('1. Ordersheet'!K95=\"\",\"\",'1. Ordersheet'!K95)","v":""},{"$f":"IF('1. Ordersheet'!L95=\"\",\"\",'1. Ordersheet'!L95)","v":""},{"$f":"IF('1. Ordersheet'!M95=\"\",\"\",'1. Ordersheet'!M95)","v":""},{"$f":"IF('1. Ordersheet'!N95=\"\",\"\",'1. Ordersheet'!N95)","v":""},{"$f":"IF('1. Ordersheet'!O95=\"\",\"\",'1. Ordersheet'!O95)","v":{"$error":"#N/A"}},{"$f":"IF('1. Ordersheet'!P95=\"\",\"\",'1. Ordersheet'!P95)","v":{"$error":"#N/A"}},{"$f":"IF('1. Ordersheet'!Q95=\"\",\"\",'1. Ordersheet'!Q95)","v":""},{"$f":"IF('1. Ordersheet'!R95=\"\",\"\",'1. Ordersheet'!R95)","v":""},{"$f":"IF('1. Ordersheet'!S95=\"\",\"\",'1. Ordersheet'!S95)","v":""},{"$f":"IF('1. Ordersheet'!V95=\"\",\"\",'1. Ordersheet'!V95)","v":""},{"$f":"IF('1. Ordersheet'!W95=\"\",\"\",'1. Ordersheet'!W95)","v":""},{"$f":"IF('1. Ordersheet'!X95=\"\",\"\",'1. Ordersheet'!X95)","v":""},{"$f":"IF('1. Ordersheet'!Y95=\"\",\"\",'1. Ordersheet'!Y95)","v":""},{"$f":"IF('1. Ordersheet'!Z95=\"\",\"\",'1. Ordersheet'!Z95)","v":""},{"$f":"IF('1. Ordersheet'!AA95=\"\",\"\",'1. Ordersheet'!AA95)","v":""},null,{"$f":"IF('1. Ordersheet'!AS95=\"\",\"\",'1. Ordersheet'!AS95)","v":""},{"$f":"IF('1. Ordersheet'!AT95=\"\",\"\",'1. Ordersheet'!AT95)","v":""},null,null,null,null,null,null,null,{"$f":"IF('1. Ordersheet'!AX95=\"\",\"\",'1. Ordersheet'!AX95)","v":""},{"$f":"IF('1. Ordersheet'!AY95=\"\",\"\",'1. Ordersheet'!AY95)","v":""},{"$f":"IF('1. Ordersheet'!AZ95=\"\",\"\",'1. Ordersheet'!AZ95)","v":""},{"$f":"IF('1. Ordersheet'!BA95=\"\",\"\",'1. Ordersheet'!BA95)","v":""},{"$f":"IF('1. Ordersheet'!BC95=\"\",\"\",'1. Ordersheet'!BC95)","v":""},{"$f":"IF('1. Ordersheet'!BD95=\"\",\"\",'1. Ordersheet'!BD95)","v":""},{"$f":"IF('1. Ordersheet'!BE95=\"\",\"\",'1. Ordersheet'!BE95)","v":""},{"$f":"IF('1. Ordersheet'!BF95=\"\",\"\",'1. Ordersheet'!BF95)","v":""},{"$f":"IF('1. Ordersheet'!BG95=\"\",\"\",'1. Ordersheet'!BG95)","v":"ZWO"},{"$f":"IF('1. Ordersheet'!BH95=\"\",\"\",'1. Ordersheet'!BH95)","v":""},{"$f":"IF('1. Ordersheet'!BI95=\"\",\"\",'1. Ordersheet'!BI95)","v":""},{"$f":"IF('1. Ordersheet'!BJ95=\"\",\"\",'1. Ordersheet'!BJ95)","v":""},{"$f":"IF('1. Ordersheet'!BK95=\"\",\"\",'1. Ordersheet'!BK95)","v":""},{"$f":"IF('1. Ordersheet'!BL95=\"\",\"\",'1. Ordersheet'!BL95)","v":""}]
[{"$f":"IF('1. Ordersheet'!F96=\"\",\"\",'1. Ordersheet'!F96)","v":""},{"$f":"IF('1. Ordersheet'!G96=\"\",\"\",'1. Ordersheet'!G96)","v":""},{"$f":"IF('1. Ordersheet'!H96=\"\",\"\",'1. Ordersheet'!H96)","v":""},{"$f":"IF('1. Ordersheet'!I96=\"\",\"\",'1. Ordersheet'!I96)","v":""},{"$f":"IF('1. Ordersheet'!J96=\"\",\"\",'1. Ordersheet'!J96)","v":""},{"$f":"IF('1. Ordersheet'!K96=\"\",\"\",'1. Ordersheet'!K96)","v":""},{"$f":"IF('1. Ordersheet'!L96=\"\",\"\",'1. Ordersheet'!L96)","v":""},{"$f":"IF('1. Ordersheet'!M96=\"\",\"\",'1. Ordersheet'!M96)","v":""},{"$f":"IF('1. Ordersheet'!N96=\"\",\"\",'1. Ordersheet'!N96)","v":""},{"$f":"IF('1. Ordersheet'!O96=\"\",\"\",'1. Ordersheet'!O96)","v":{"$error":"#N/A"}},{"$f":"IF('1. Ordersheet'!P96=\"\",\"\",'1. Ordersheet'!P96)","v":{"$error":"#N/A"}},{"$f":"IF('1. Ordersheet'!Q96=\"\",\"\",'1. Ordersheet'!Q96)","v":""},{"$f":"IF('1. Ordersheet'!R96=\"\",\"\",'1. Ordersheet'!R96)","v":""},{"$f":"IF('1. Ordersheet'!S96=\"\",\"\",'1. Ordersheet'!S96)","v":""},{"$f":"IF('1. Ordersheet'!V96=\"\",\"\",'1. Ordersheet'!V96)","v":""},{"$f":"IF('1. Ordersheet'!W96=\"\",\"\",'1. Ordersheet'!W96)","v":""},{"$f":"IF('1. Ordersheet'!X96=\"\",\"\",'1. Ordersheet'!X96)","v":""},{"$f":"IF('1. Ordersheet'!Y96=\"\",\"\",'1. Ordersheet'!Y96)","v":""},{"$f":"IF('1. Ordersheet'!Z96=\"\",\"\",'1. Ordersheet'!Z96)","v":""},{"$f":"IF('1. Ordersheet'!AA96=\"\",\"\",'1. Ordersheet'!AA96)","v":""},null,{"$f":"IF('1. Ordersheet'!AS96=\"\",\"\",'1. Ordersheet'!AS96)","v":""},{"$f":"IF('1. Ordersheet'!AT96=\"\",\"\",'1. Ordersheet'!AT96)","v":""},null,null,null,null,null,null,null,{"$f":"IF('1. Ordersheet'!AX96=\"\",\"\",'1. Ordersheet'!AX96)","v":""},{"$f":"IF('1. Ordersheet'!AY96=\"\",\"\",'1. Ordersheet'!AY96)","v":""},{"$f":"IF('1. Ordersheet'!AZ96=\"\",\"\",'1. Ordersheet'!AZ96)","v":""},{"$f":"IF('1. Ordersheet'!BA96=\"\",\"\",'1. Ordersheet'!BA96)","v":""},{"$f":"IF('1. Ordersheet'!BC96=\"\",\"\",'1. Ordersheet'!BC96)","v":""},{"$f":"IF('1. Ordersheet'!BD96=\"\",\"\",'1. Ordersheet'!BD96)","v":""},{"$f":"IF('1. Ordersheet'!BE96=\"\",\"\",'1. Ordersheet'!BE96)","v":""},{"$f":"IF('1. Ordersheet'!BF96=\"\",\"\",'1. Ordersheet'!BF96)","v":""},{"$f":"IF('1. Ordersheet'!BG96=\"\",\"\",'1. Ordersheet'!BG96)","v":"ZWO"},{"$f":"IF('1. Ordersheet'!BH96=\"\",\"\",'1. Ordersheet'!BH96)","v":""},{"$f":"IF('1. Ordersheet'!BI96=\"\",\"\",'1. Ordersheet'!BI96)","v":""},{"$f":"IF('1. Ordersheet'!BJ96=\"\",\"\",'1. Ordersheet'!BJ96)","v":""},{"$f":"IF('1. Ordersheet'!BK96=\"\",\"\",'1. Ordersheet'!BK96)","v":""},{"$f":"IF('1. Ordersheet'!BL96=\"\",\"\",'1. Ordersheet'!BL96)","v":""}]
[{"$f":"IF('1. Ordersheet'!F97=\"\",\"\",'1. Ordersheet'!F97)","v":""},{"$f":"IF('1. Ordersheet'!G97=\"\",\"\",'1. Ordersheet'!G97)","v":""},{"$f":"IF('1. Ordersheet'!H97=\"\",\"\",'1. Ordersheet'!H97)","v":""},{"$f":"IF('1. Ordersheet'!I97=\"\",\"\",'1. Ordersheet'!I97)","v":""},{"$f":"IF('1. Ordersheet'!J97=\"\",\"\",'1. Ordersheet'!J97)","v":""},{"$f":"IF('1. Ordersheet'!K97=\"\",\"\",'1. Ordersheet'!K97)","v":""},{"$f":"IF('1. Ordersheet'!L97=\"\",\"\",'1. Ordersheet'!L97)","v":""},{"$f":"IF('1. Ordersheet'!M97=\"\",\"\",'1. Ordersheet'!M97)","v":""},{"$f":"IF('1. Ordersheet'!N97=\"\",\"\",'1. Ordersheet'!N97)","v":""},{"$f":"IF('1. Ordersheet'!O97=\"\",\"\",'1. Ordersheet'!O97)","v":{"$error":"#N/A"}},{"$f":"IF('1. Ordersheet'!P97=\"\",\"\",'1. Ordersheet'!P97)","v":{"$error":"#N/A"}},{"$f":"IF('1. Ordersheet'!Q97=\"\",\"\",'1. Ordersheet'!Q97)","v":""},{"$f":"IF('1. Ordersheet'!R97=\"\",\"\",'1. Ordersheet'!R97)","v":""},{"$f":"IF('1. Ordersheet'!S97=\"\",\"\",'1. Ordersheet'!S97)","v":""},{"$f":"IF('1. Ordersheet'!V97=\"\",\"\",'1. Ordersheet'!V97)","v":""},{"$f":"IF('1. Ordersheet'!W97=\"\",\"\",'1. Ordersheet'!W97)","v":""},{"$f":"IF('1. Ordersheet'!X97=\"\",\"\",'1. Ordersheet'!X97)","v":""},{"$f":"IF('1. Ordersheet'!Y97=\"\",\"\",'1. Ordersheet'!Y97)","v":""},{"$f":"IF('1. Ordersheet'!Z97=\"\",\"\",'1. Ordersheet'!Z97)","v":""},{"$f":"IF('1. Ordersheet'!AA97=\"\",\"\",'1. Ordersheet'!AA97)","v":""},null,{"$f":"IF('1. Ordersheet'!AS97=\"\",\"\",'1. Ordersheet'!AS97)","v":""},{"$f":"IF('1. Ordersheet'!AT97=\"\",\"\",'1. Ordersheet'!AT97)","v":""},null,null,null,null,null,null,null,{"$f":"IF('1. Ordersheet'!AX97=\"\",\"\",'1. Ordersheet'!AX97)","v":""},{"$f":"IF('1. Ordersheet'!AY97=\"\",\"\",'1. Ordersheet'!AY97)","v":""},{"$f":"IF('1. Ordersheet'!AZ97=\"\",\"\",'1. Ordersheet'!AZ97)","v":""},{"$f":"IF('1. Ordersheet'!BA97=\"\",\"\",'1. Ordersheet'!BA97)","v":""},{"$f":"IF('1. Ordersheet'!BC97=\"\",\"\",'1. Ordersheet'!BC97)","v":""},{"$f":"IF('1. Ordersheet'!BD97=\"\",\"\",'1. Ordersheet'!BD97)","v":""},{"$f":"IF('1. Ordersheet'!BE97=\"\",\"\",'1. Ordersheet'!BE97)","v":""},{"$f":"IF('1. Ordersheet'!BF97=\"\",\"\",'1. Ordersheet'!BF97)","v":""},{"$f":"IF('1. Ordersheet'!BG97=\"\",\"\",'1. Ordersheet'!BG97)","v":"ZWO"},{"$f":"IF('1. Ordersheet'!BH97=\"\",\"\",'1. Ordersheet'!BH97)","v":""},{"$f":"IF('1. Ordersheet'!BI97=\"\",\"\",'1. Ordersheet'!BI97)","v":""},{"$f":"IF('1. Ordersheet'!BJ97=\"\",\"\",'1. Ordersheet'!BJ97)","v":""},{"$f":"IF('1. Ordersheet'!BK97=\"\",\"\",'1. Ordersheet'!BK97)","v":""},{"$f":"IF('1. Ordersheet'!BL97=\"\",\"\",'1. Ordersheet'!BL97)","v":""}]
[{"$f":"IF('1. Ordersheet'!F98=\"\",\"\",'1. Ordersheet'!F98)","v":""},{"$f":"IF('1. Ordersheet'!G98=\"\",\"\",'1. Ordersheet'!G98)","v":""},{"$f":"IF('1. Ordersheet'!H98=\"\",\"\",'1. Ordersheet'!H98)","v":""},{"$f":"IF('1. Ordersheet'!I98=\"\",\"\",'1. Ordersheet'!I98)","v":""},{"$f":"IF('1. Ordersheet'!J98=\"\",\"\",'1. Ordersheet'!J98)","v":""},{"$f":"IF('1. Ordersheet'!K98=\"\",\"\",'1. Ordersheet'!K98)","v":""},{"$f":"IF('1. Ordersheet'!L98=\"\",\"\",'1. Ordersheet'!L98)","v":""},{"$f":"IF('1. Ordersheet'!M98=\"\",\"\",'1. Ordersheet'!M98)","v":""},{"$f":"IF('1. Ordersheet'!N98=\"\",\"\",'1. Ordersheet'!N98)","v":""},{"$f":"IF('1. Ordersheet'!O98=\"\",\"\",'1. Ordersheet'!O98)","v":{"$error":"#N/A"}},{"$f":"IF('1. Ordersheet'!P98=\"\",\"\",'1. Ordersheet'!P98)","v":{"$error":"#N/A"}},{"$f":"IF('1. Ordersheet'!Q98=\"\",\"\",'1. Ordersheet'!Q98)","v":""},{"$f":"IF('1. Ordersheet'!R98=\"\",\"\",'1. Ordersheet'!R98)","v":""},{"$f":"IF('1. Ordersheet'!S98=\"\",\"\",'1. Ordersheet'!S98)","v":""},{"$f":"IF('1. Ordersheet'!V98=\"\",\"\",'1. Ordersheet'!V98)","v":""},{"$f":"IF('1. Ordersheet'!W98=\"\",\"\",'1. Ordersheet'!W98)","v":""},{"$f":"IF('1. Ordersheet'!X98=\"\",\"\",'1. Ordersheet'!X98)","v":""},{"$f":"IF('1. Ordersheet'!Y98=\"\",\"\",'1. Ordersheet'!Y98)","v":""},{"$f":"IF('1. Ordersheet'!Z98=\"\",\"\",'1. Ordersheet'!Z98)","v":""},{"$f":"IF('1. Ordersheet'!AA98=\"\",\"\",'1. Ordersheet'!AA98)","v":""},null,{"$f":"IF('1. Ordersheet'!AS98=\"\",\"\",'1. Ordersheet'!AS98)","v":""},{"$f":"IF('1. Ordersheet'!AT98=\"\",\"\",'1. Ordersheet'!AT98)","v":""},null,null,null,null,null,null,null,{"$f":"IF('1. Ordersheet'!AX98=\"\",\"\",'1. Ordersheet'!AX98)","v":""},{"$f":"IF('1. Ordersheet'!AY98=\"\",\"\",'1. Ordersheet'!AY98)","v":""},{"$f":"IF('1. Ordersheet'!AZ98=\"\",\"\",'1. Ordersheet'!AZ98)","v":""},{"$f":"IF('1. Ordersheet'!BA98=\"\",\"\",'1. Ordersheet'!BA98)","v":""},{"$f":"IF('1. Ordersheet'!BC98=\"\",\"\",'1. Ordersheet'!BC98)","v":""},{"$f":"IF('1. Ordersheet'!BD98=\"\",\"\",'1. Ordersheet'!BD98)","v":""},{"$f":"IF('1. Ordersheet'!BE98=\"\",\"\",'1. Ordersheet'!BE98)","v":""},{"$f":"IF('1. Ordersheet'!BF98=\"\",\"\",'1. Ordersheet'!BF98)","v":""},{"$f":"IF('1. Ordersheet'!BG98=\"\",\"\",'1. Ordersheet'!BG98)","v":"ZWO"},{"$f":"IF('1. Ordersheet'!BH98=\"\",\"\",'1. Ordersheet'!BH98)","v":""},{"$f":"IF('1. Ordersheet'!BI98=\"\",\"\",'1. Ordersheet'!BI98)","v":""},{"$f":"IF('1. Ordersheet'!BJ98=\"\",\"\",'1. Ordersheet'!BJ98)","v":""},{"$f":"IF('1. Ordersheet'!BK98=\"\",\"\",'1. Ordersheet'!BK98)","v":""},{"$f":"IF('1. Ordersheet'!BL98=\"\",\"\",'1. Ordersheet'!BL98)","v":""}]
[{"$f":"IF('1. Ordersheet'!F99=\"\",\"\",'1. Ordersheet'!F99)","v":""},{"$f":"IF('1. Ordersheet'!G99=\"\",\"\",'1. Ordersheet'!G99)","v":""},{"$f":"IF('1. Ordersheet'!H99=\"\",\"\",'1. Ordersheet'!H99)","v":""},{"$f":"IF('1. Ordersheet'!I99=\"\",\"\",'1. Ordersheet'!I99)","v":""},{"$f":"IF('1. Ordersheet'!J99=\"\",\"\",'1. Ordersheet'!J99)","v":""},{"$f":"IF('1. Ordersheet'!K99=\"\",\"\",'1. Ordersheet'!K99)","v":""},{"$f":"IF('1. Ordersheet'!L99=\"\",\"\",'1. Ordersheet'!L99)","v":""},{"$f":"IF('1. Ordersheet'!M99=\"\",\"\",'1. Ordersheet'!M99)","v":""},{"$f":"IF('1. Ordersheet'!N99=\"\",\"\",'1. Ordersheet'!N99)","v":""},{"$f":"IF('1. Ordersheet'!O99=\"\",\"\",'1. Ordersheet'!O99)","v":{"$error":"#N/A"}},{"$f":"IF('1. Ordersheet'!P99=\"\",\"\",'1. Ordersheet'!P99)","v":{"$error":"#N/A"}},{"$f":"IF('1. Ordersheet'!Q99=\"\",\"\",'1. Ordersheet'!Q99)","v":""},{"$f":"IF('1. Ordersheet'!R99=\"\",\"\",'1. Ordersheet'!R99)","v":""},{"$f":"IF('1. Ordersheet'!S99=\"\",\"\",'1. Ordersheet'!S99)","v":""},{"$f":"IF('1. Ordersheet'!V99=\"\",\"\",'1. Ordersheet'!V99)","v":""},{"$f":"IF('1. Ordersheet'!W99=\"\",\"\",'1. Ordersheet'!W99)","v":""},{"$f":"IF('1. Ordersheet'!X99=\"\",\"\",'1. Ordersheet'!X99)","v":""},{"$f":"IF('1. Ordersheet'!Y99=\"\",\"\",'1. Ordersheet'!Y99)","v":""},{"$f":"IF('1. Ordersheet'!Z99=\"\",\"\",'1. Ordersheet'!Z99)","v":""},{"$f":"IF('1. Ordersheet'!AA99=\"\",\"\",'1. Ordersheet'!AA99)","v":""},null,{"$f":"IF('1. Ordersheet'!AS99=\"\",\"\",'1. Ordersheet'!AS99)","v":""},{"$f":"IF('1. Ordersheet'!AT99=\"\",\"\",'1. Ordersheet'!AT99)","v":""},null,null,null,null,null,null,null,{"$f":"IF('1. Ordersheet'!AX99=\"\",\"\",'1. Ordersheet'!AX99)","v":""},{"$f":"IF('1. Ordersheet'!AY99=\"\",\"\",'1. Ordersheet'!AY99)","v":""},{"$f":"IF('1. Ordersheet'!AZ99=\"\",\"\",'1. Ordersheet'!AZ99)","v":""},{"$f":"IF('1. Ordersheet'!BA99=\"\",\"\",'1. Ordersheet'!BA99)","v":""},{"$f":"IF('1. Ordersheet'!BC99=\"\",\"\",'1. Ordersheet'!BC99)","v":""},{"$f":"IF('1. Ordersheet'!BD99=\"\",\"\",'1. Ordersheet'!BD99)","v":""},{"$f":"IF('1. Ordersheet'!BE99=\"\",\"\",'1. Ordersheet'!BE99)","v":""},{"$f":"IF('1. Ordersheet'!BF99=\"\",\"\",'1. Ordersheet'!BF99)","v":""},{"$f":"IF('1. Ordersheet'!BG99=\"\",\"\",'1. Ordersheet'!BG99)","v":"ZWO"},{"$f":"IF('1. Ordersheet'!BH99=\"\",\"\",'1. Ordersheet'!BH99)","v":""},{"$f":"IF('1. Ordersheet'!BI99=\"\",\"\",'1. Ordersheet'!BI99)","v":""},{"$f":"IF('1. Ordersheet'!BJ99=\"\",\"\",'1. Ordersheet'!BJ99)","v":""},{"$f":"IF('1. Ordersheet'!BK99=\"\",\"\",'1. Ordersheet'!BK99)","v":""},{"$f":"IF('1. Ordersheet'!BL99=\"\",\"\",'1. Ordersheet'!BL99)","v":""}]
[{"$f":"IF('1. Ordersheet'!F100=\"\",\"\",'1. Ordersheet'!F100)","v":""},{"$f":"IF('1. Ordersheet'!G100=\"\",\"\",'1. Ordersheet'!G100)","v":""},{"$f":"IF('1. Ordersheet'!H100=\"\",\"\",'1. Ordersheet'!H100)","v":""},{"$f":"IF('1. Ordersheet'!I100=\"\",\"\",'1. Ordersheet'!I100)","v":""},{"$f":"IF('1. Ordersheet'!J100=\"\",\"\",'1. Ordersheet'!J100)","v":""},{"$f":"IF('1. Ordersheet'!K100=\"\",\"\",'1. Ordersheet'!K100)","v":""},{"$f":"IF('1. Ordersheet'!L100=\"\",\"\",'1. Ordersheet'!L100)","v":""},{"$f":"IF('1. Ordersheet'!M100=\"\",\"\",'1. Ordersheet'!M100)","v":""},{"$f":"IF('1. Ordersheet'!N100=\"\",\"\",'1. Ordersheet'!N100)","v":""},{"$f":"IF('1. Ordersheet'!O100=\"\",\"\",'1. Ordersheet'!O100)","v":{"$error":"#N/A"}},{"$f":"IF('1. Ordersheet'!P100=\"\",\"\",'1. Ordersheet'!P100)","v":{"$error":"#N/A"}},{"$f":"IF('1. Ordersheet'!Q100=\"\",\"\",'1. Ordersheet'!Q100)","v":""},{"$f":"IF('1. Ordersheet'!R100=\"\",\"\",'1. Ordersheet'!R100)","v":""},{"$f":"IF('1. Ordersheet'!S100=\"\",\"\",'1. Ordersheet'!S100)","v":""},{"$f":"IF('1. Ordersheet'!V100=\"\",\"\",'1. Ordersheet'!V100)","v":""},{"$f":"IF('1. Ordersheet'!W100=\"\",\"\",'1. Ordersheet'!W100)","v":""},{"$f":"IF('1. Ordersheet'!X100=\"\",\"\",'1. Ordersheet'!X100)","v":""},{"$f":"IF('1. Ordersheet'!Y100=\"\",\"\",'1. Ordersheet'!Y100)","v":""},{"$f":"IF('1. Ordersheet'!Z100=\"\",\"\",'1. Ordersheet'!Z100)","v":""},{"$f":"IF('1. Ordersheet'!AA100=\"\",\"\",'1. Ordersheet'!AA100)","v":""},null,{"$f":"IF('1. Ordersheet'!AS100=\"\",\"\",'1. Ordersheet'!AS100)","v":""},{"$f":"IF('1. Ordersheet'!AT100=\"\",\"\",'1. Ordersheet'!AT100)","v":""},null,null,null,null,null,null,null,{"$f":"IF('1. Ordersheet'!AX100=\"\",\"\",'1. Ordersheet'!AX100)","v":""},{"$f":"IF('1. Ordersheet'!AY100=\"\",\"\",'1. Ordersheet'!AY100)","v":""},{"$f":"IF('1. Ordersheet'!AZ100=\"\",\"\",'1. Ordersheet'!AZ100)","v":""},{"$f":"IF('1. Ordersheet'!BA100=\"\",\"\",'1. Ordersheet'!BA100)","v":""},{"$f":"IF('1. Ordersheet'!BC100=\"\",\"\",'1. Ordersheet'!BC100)","v":""},{"$f":"IF('1. Ordersheet'!BD100=\"\",\"\",'1. Ordersheet'!BD100)","v":""},{"$f":"IF('1. Ordersheet'!BE100=\"\",\"\",'1. Ordersheet'!BE100)","v":""},{"$f":"IF('1. Ordersheet'!BF100=\"\",\"\",'1. Ordersheet'!BF100)","v":""},{"$f":"IF('1. Ordersheet'!BG100=\"\",\"\",'1. Ordersheet'!BG100)","v":"ZWO"},{"$f":"IF('1. Ordersheet'!BH100=\"\",\"\",'1. Ordersheet'!BH100)","v":""},{"$f":"IF('1. Ordersheet'!BI100=\"\",\"\",'1. Ordersheet'!BI100)","v":""},{"$f":"IF('1. Ordersheet'!BJ100=\"\",\"\",'1. Ordersheet'!BJ100)","v":""},{"$f":"IF('1. Ordersheet'!BK100=\"\",\"\",'1. Ordersheet'!BK100)","v":""},{"$f":"IF('1. Ordersheet'!BL100=\"\",\"\",'1. Ordersheet'!BL100)","v":""}]
[{"$f":"IF('1. Ordersheet'!F101=\"\",\"\",'1. Ordersheet'!F101)","v":""},{"$f":"IF('1. Ordersheet'!G101=\"\",\"\",'1. Ordersheet'!G101)","v":""},{"$f":"IF('1. Ordersheet'!H101=\"\",\"\",'1. Ordersheet'!H101)","v":""},{"$f":"IF('1. Ordersheet'!I101=\"\",\"\",'1. Ordersheet'!I101)","v":""},{"$f":"IF('1. Ordersheet'!J101=\"\",\"\",'1. Ordersheet'!J101)","v":""},{"$f":"IF('1. Ordersheet'!K101=\"\",\"\",'1. Ordersheet'!K101)","v":""},{"$f":"IF('1. Ordersheet'!L101=\"\",\"\",'1. Ordersheet'!L101)","v":""},{"$f":"IF('1. Ordersheet'!M101=\"\",\"\",'1. Ordersheet'!M101)","v":""},{"$f":"IF('1. Ordersheet'!N101=\"\",\"\",'1. Ordersheet'!N101)","v":""},{"$f":"IF('1. Ordersheet'!O101=\"\",\"\",'1. Ordersheet'!O101)","v":{"$error":"#N/A"}},{"$f":"IF('1. Ordersheet'!P101=\"\",\"\",'1. Ordersheet'!P101)","v":{"$error":"#N/A"}},{"$f":"IF('1. Ordersheet'!Q101=\"\",\"\",'1. Ordersheet'!Q101)","v":""},{"$f":"IF('1. Ordersheet'!R101=\"\",\"\",'1. Ordersheet'!R101)","v":""},{"$f":"IF('1. Ordersheet'!S101=\"\",\"\",'1. Ordersheet'!S101)","v":""},{"$f":"IF('1. Ordersheet'!V101=\"\",\"\",'1. Ordersheet'!V101)","v":""},{"$f":"IF('1. Ordersheet'!W101=\"\",\"\",'1. Ordersheet'!W101)","v":""},{"$f":"IF('1. Ordersheet'!X101=\"\",\"\",'1. Ordersheet'!X101)","v":""},{"$f":"IF('1. Ordersheet'!Y101=\"\",\"\",'1. Ordersheet'!Y101)","v":""},{"$f":"IF('1. Ordersheet'!Z101=\"\",\"\",'1. Ordersheet'!Z101)","v":""},{"$f":"IF('1. Ordersheet'!AA101=\"\",\"\",'1. Ordersheet'!AA101)","v":""},null,{"$f":"IF('1. Ordersheet'!AS101=\"\",\"\",'1. Ordersheet'!AS101)","v":""},{"$f":"IF('1. Ordersheet'!AT101=\"\",\"\",'1. Ordersheet'!AT101)","v":""},null,null,null,null,null,null,null,{"$f":"IF('1. Ordersheet'!AX101=\"\",\"\",'1. Ordersheet'!AX101)","v":""},{"$f":"IF('1. Ordersheet'!AY101=\"\",\"\",'1. Ordersheet'!AY101)","v":""},{"$f":"IF('1. Ordersheet'!AZ101=\"\",\"\",'1. Ordersheet'!AZ101)","v":""},{"$f":"IF('1. Ordersheet'!BA101=\"\",\"\",'1. Ordersheet'!BA101)","v":""},{"$f":"IF('1. Ordersheet'!BC101=\"\",\"\",'1. Ordersheet'!BC101)","v":""},{"$f":"IF('1. Ordersheet'!BD101=\"\",\"\",'1. Ordersheet'!BD101)","v":""},{"$f":"IF('1. Ordersheet'!BE101=\"\",\"\",'1. Ordersheet'!BE101)","v":""},{"$f":"IF('1. Ordersheet'!BF101=\"\",\"\",'1. Ordersheet'!BF101)","v":""},{"$f":"IF('1. Ordersheet'!BG101=\"\",\"\",'1. Ordersheet'!BG101)","v":"ZWO"},{"$f":"IF('1. Ordersheet'!BH101=\"\",\"\",'1. Ordersheet'!BH101)","v":""},{"$f":"IF('1. Ordersheet'!BI101=\"\",\"\",'1. Ordersheet'!BI101)","v":""},{"$f":"IF('1. Ordersheet'!BJ101=\"\",\"\",'1. Ordersheet'!BJ101)","v":""},{"$f":"IF('1. Ordersheet'!BK101=\"\",\"\",'1. Ordersheet'!BK101)","v":""},{"$f":"IF('1. Ordersheet'!BL101=\"\",\"\",'1. Ordersheet'!BL101)","v":""}]
[{"$f":"IF('1. Ordersheet'!F102=\"\",\"\",'1. Ordersheet'!F102)","v":""},{"$f":"IF('1. Ordersheet'!G102=\"\",\"\",'1. Ordersheet'!G102)","v":""},{"$f":"IF('1. Ordersheet'!H102=\"\",\"\",'1. Ordersheet'!H102)","v":""},{"$f":"IF('1. Ordersheet'!I102=\"\",\"\",'1. Ordersheet'!I102)","v":""},{"$f":"IF('1. Ordersheet'!J102=\"\",\"\",'1. Ordersheet'!J102)","v":""},{"$f":"IF('1. Ordersheet'!K102=\"\",\"\",'1. Ordersheet'!K102)","v":""},{"$f":"IF('1. Ordersheet'!L102=\"\",\"\",'1. Ordersheet'!L102)","v":""},{"$f":"IF('1. Ordersheet'!M102=\"\",\"\",'1. Ordersheet'!M102)","v":""},{"$f":"IF('1. Ordersheet'!N102=\"\",\"\",'1. Ordersheet'!N102)","v":""},{"$f":"IF('1. Ordersheet'!O102=\"\",\"\",'1. Ordersheet'!O102)","v":{"$error":"#N/A"}},{"$f":"IF('1. Ordersheet'!P102=\"\",\"\",'1. Ordersheet'!P102)","v":{"$error":"#N/A"}},{"$f":"IF('1. Ordersheet'!Q102=\"\",\"\",'1. Ordersheet'!Q102)","v":""},{"$f":"IF('1. Ordersheet'!R102=\"\",\"\",'1. Ordersheet'!R102)","v":""},{"$f":"IF('1. Ordersheet'!S102=\"\",\"\",'1. Ordersheet'!S102)","v":""},{"$f":"IF('1. Ordersheet'!V102=\"\",\"\",'1. Ordersheet'!V102)","v":""},{"$f":"IF('1. Ordersheet'!W102=\"\",\"\",'1. Ordersheet'!W102)","v":""},{"$f":"IF('1. Ordersheet'!X102=\"\",\"\",'1. Ordersheet'!X102)","v":""},{"$f":"IF('1. Ordersheet'!Y102=\"\",\"\",'1. Ordersheet'!Y102)","v":""},{"$f":"IF('1. Ordersheet'!Z102=\"\",\"\",'1. Ordersheet'!Z102)","v":""},{"$f":"IF('1. Ordersheet'!AA102=\"\",\"\",'1. Ordersheet'!AA102)","v":""},null,{"$f":"IF('1. Ordersheet'!AS102=\"\",\"\",'1. Ordersheet'!AS102)","v":""},{"$f":"IF('1. Ordersheet'!AT102=\"\",\"\",'1. Ordersheet'!AT102)","v":""},null,null,null,null,null,null,null,{"$f":"IF('1. Ordersheet'!AX102=\"\",\"\",'1. Ordersheet'!AX102)","v":""},{"$f":"IF('1. Ordersheet'!AY102=\"\",\"\",'1. Ordersheet'!AY102)","v":""},{"$f":"IF('1. Ordersheet'!AZ102=\"\",\"\",'1. Ordersheet'!AZ102)","v":""},{"$f":"IF('1. Ordersheet'!BA102=\"\",\"\",'1. Ordersheet'!BA102)","v":""},{"$f":"IF('1. Ordersheet'!BC102=\"\",\"\",'1. Ordersheet'!BC102)","v":""},{"$f":"IF('1. Ordersheet'!BD102=\"\",\"\",'1. Ordersheet'!BD102)","v":""},{"$f":"IF('1. Ordersheet'!BE102=\"\",\"\",'1. Ordersheet'!BE102)","v":""},{"$f":"IF('1. Ordersheet'!BF102=\"\",\"\",'1. Ordersheet'!BF102)","v":""},{"$f":"IF('1. Ordersheet'!BG102=\"\",\"\",'1. Ordersheet'!BG102)","v":"ZWO"},{"$f":"IF('1. Ordersheet'!BH102=\"\",\"\",'1. Ordersheet'!BH102)","v":""},{"$f":"IF('1. Ordersheet'!BI102=\"\",\"\",'1. Ordersheet'!BI102)","v":""},{"$f":"IF('1. Ordersheet'!BJ102=\"\",\"\",'1. Ordersheet'!BJ102)","v":""},{"$f":"IF('1. Ordersheet'!BK102=\"\",\"\",'1. Ordersheet'!BK102)","v":""},{"$f":"IF('1. Ordersheet'!BL102=\"\",\"\",'1. Ordersheet'!BL102)","v":""}]
[{"$f":"IF('1. Ordersheet'!F103=\"\",\"\",'1. Ordersheet'!F103)","v":""},{"$f":"IF('1. Ordersheet'!G103=\"\",\"\",'1. Ordersheet'!G103)","v":""},{"$f":"IF('1. Ordersheet'!H103=\"\",\"\",'1. Ordersheet'!H103)","v":""},{"$f":"IF('1. Ordersheet'!I103=\"\",\"\",'1. Ordersheet'!I103)","v":""},{"$f":"IF('1. Ordersheet'!J103=\"\",\"\",'1. Ordersheet'!J103)","v":""},{"$f":"IF('1. Ordersheet'!K103=\"\",\"\",'1. Ordersheet'!K103)","v":""},{"$f":"IF('1. Ordersheet'!L103=\"\",\"\",'1. Ordersheet'!L103)","v":""},{"$f":"IF('1. Ordersheet'!M103=\"\",\"\",'1. Ordersheet'!M103)","v":""},{"$f":"IF('1. Ordersheet'!N103=\"\",\"\",'1. Ordersheet'!N103)","v":""},{"$f":"IF('1. Ordersheet'!O103=\"\",\"\",'1. Ordersheet'!O103)","v":{"$error":"#N/A"}},{"$f":"IF('1. Ordersheet'!P103=\"\",\"\",'1. Ordersheet'!P103)","v":{"$error":"#N/A"}},{"$f":"IF('1. Ordersheet'!Q103=\"\",\"\",'1. Ordersheet'!Q103)","v":""},{"$f":"IF('1. Ordersheet'!R103=\"\",\"\",'1. Ordersheet'!R103)","v":""},{"$f":"IF('1. Ordersheet'!S103=\"\",\"\",'1. Ordersheet'!S103)","v":""},{"$f":"IF('1. Ordersheet'!V103=\"\",\"\",'1. Ordersheet'!V103)","v":""},{"$f":"IF('1. Ordersheet'!W103=\"\",\"\",'1. Ordersheet'!W103)","v":""},{"$f":"IF('1. Ordersheet'!X103=\"\",\"\",'1. Ordersheet'!X103)","v":""},{"$f":"IF('1. Ordersheet'!Y103=\"\",\"\",'1. Ordersheet'!Y103)","v":""},{"$f":"IF('1. Ordersheet'!Z103=\"\",\"\",'1. Ordersheet'!Z103)","v":""},{"$f":"IF('1. Ordersheet'!AA103=\"\",\"\",'1. Ordersheet'!AA103)","v":""},null,{"$f":"IF('1. Ordersheet'!AS103=\"\",\"\",'1. Ordersheet'!AS103)","v":""},{"$f":"IF('1. Ordersheet'!AT103=\"\",\"\",'1. Ordersheet'!AT103)","v":""},null,null,null,null,null,null,null,{"$f":"IF('1. Ordersheet'!AX103=\"\",\"\",'1. Ordersheet'!AX103)","v":""},{"$f":"IF('1. Ordersheet'!AY103=\"\",\"\",'1. Ordersheet'!AY103)","v":""},{"$f":"IF('1. Ordersheet'!AZ103=\"\",\"\",'1. Ordersheet'!AZ103)","v":""},{"$f":"IF('1. Ordersheet'!BA103=\"\",\"\",'1. Ordersheet'!BA103)","v":""},{"$f":"IF('1. Ordersheet'!BC103=\"\",\"\",'1. Ordersheet'!BC103)","v":""},{"$f":"IF('1. Ordersheet'!BD103=\"\",\"\",'1. Ordersheet'!BD103)","v":""},{"$f":"IF('1. Ordersheet'!BE103=\"\",\"\",'1. Ordersheet'!BE103)","v":""},{"$f":"IF('1. Ordersheet'!BF103=\"\",\"\",'1. Ordersheet'!BF103)","v":""},{"$f":"IF('1. Ordersheet'!BG103=\"\",\"\",'1. Ordersheet'!BG103)","v":"ZWO"},{"$f":"IF('1. Ordersheet'!BH103=\"\",\"\",'1. Ordersheet'!BH103)","v":""},{"$f":"IF('1. Ordersheet'!BI103=\"\",\"\",'1. Ordersheet'!BI103)","v":""},{"$f":"IF('1. Ordersheet'!BJ103=\"\",\"\",'1. Ordersheet'!BJ103)","v":""},{"$f":"IF('1. Ordersheet'!BK103=\"\",\"\",'1. Ordersheet'!BK103)","v":""},{"$f":"IF('1. Ordersheet'!BL103=\"\",\"\",'1. Ordersheet'!BL103)","v":""}]
[{"$f":"IF('1. Ordersheet'!F104=\"\",\"\",'1. Ordersheet'!F104)","v":""},{"$f":"IF('1. Ordersheet'!G104=\"\",\"\",'1. Ordersheet'!G104)","v":""},{"$f":"IF('1. Ordersheet'!H104=\"\",\"\",'1. Ordersheet'!H104)","v":""},{"$f":"IF('1. Ordersheet'!I104=\"\",\"\",'1. Ordersheet'!I104)","v":""},{"$f":"IF('1. Ordersheet'!J104=\"\",\"\",'1. Ordersheet'!J104)","v":""},{"$f":"IF('1. Ordersheet'!K104=\"\",\"\",'1. Ordersheet'!K104)","v":""},{"$f":"IF('1. Ordersheet'!L104=\"\",\"\",'1. Ordersheet'!L104)","v":""},{"$f":"IF('1. Ordersheet'!M104=\"\",\"\",'1. Ordersheet'!M104)","v":""},{"$f":"IF('1. Ordersheet'!N104=\"\",\"\",'1. Ordersheet'!N104)","v":""},{"$f":"IF('1. Ordersheet'!O104=\"\",\"\",'1. Ordersheet'!O104)","v":{"$error":"#N/A"}},{"$f":"IF('1. Ordersheet'!P104=\"\",\"\",'1. Ordersheet'!P104)","v":{"$error":"#N/A"}},{"$f":"IF('1. Ordersheet'!Q104=\"\",\"\",'1. Ordersheet'!Q104)","v":""},{"$f":"IF('1. Ordersheet'!R104=\"\",\"\",'1. Ordersheet'!R104)","v":""},{"$f":"IF('1. Ordersheet'!S104=\"\",\"\",'1. Ordersheet'!S104)","v":""},{"$f":"IF('1. Ordersheet'!V104=\"\",\"\",'1. Ordersheet'!V104)","v":""},{"$f":"IF('1. Ordersheet'!W104=\"\",\"\",'1. Ordersheet'!W104)","v":""},{"$f":"IF('1. Ordersheet'!X104=\"\",\"\",'1. Ordersheet'!X104)","v":""},{"$f":"IF('1. Ordersheet'!Y104=\"\",\"\",'1. Ordersheet'!Y104)","v":""},{"$f":"IF('1. Ordersheet'!Z104=\"\",\"\",'1. Ordersheet'!Z104)","v":""},{"$f":"IF('1. Ordersheet'!AA104=\"\",\"\",'1. Ordersheet'!AA104)","v":""},null,{"$f":"IF('1. Ordersheet'!AS104=\"\",\"\",'1. Ordersheet'!AS104)","v":""},{"$f":"IF('1. Ordersheet'!AT104=\"\",\"\",'1. Ordersheet'!AT104)","v":""},null,null,null,null,null,null,null,{"$f":"IF('1. Ordersheet'!AX104=\"\",\"\",'1. Ordersheet'!AX104)","v":""},{"$f":"IF('1. Ordersheet'!AY104=\"\",\"\",'1. Ordersheet'!AY104)","v":""},{"$f":"IF('1. Ordersheet'!AZ104=\"\",\"\",'1. Ordersheet'!AZ104)","v":""},{"$f":"IF('1. Ordersheet'!BA104=\"\",\"\",'1. Ordersheet'!BA104)","v":""},{"$f":"IF('1. Ordersheet'!BC104=\"\",\"\",'1. Ordersheet'!BC104)","v":""},{"$f":"IF('1. Ordersheet'!BD104=\"\",\"\",'1. Ordersheet'!BD104)","v":""},{"$f":"IF('1. Ordersheet'!BE104=\"\",\"\",'1. Ordersheet'!BE104)","v":""},{"$f":"IF('1. Ordersheet'!BF104=\"\",\"\",'1. Ordersheet'!BF104)","v":""},{"$f":"IF('1. Ordersheet'!BG104=\"\",\"\",'1. Ordersheet'!BG104)","v":"ZWO"},{"$f":"IF('1. Ordersheet'!BH104=\"\",\"\",'1. Ordersheet'!BH104)","v":""},{"$f":"IF('1. Ordersheet'!BI104=\"\",\"\",'1. Ordersheet'!BI104)","v":""},{"$f":"IF('1. Ordersheet'!BJ104=\"\",\"\",'1. Ordersheet'!BJ104)","v":""},{"$f":"IF('1. Ordersheet'!BK104=\"\",\"\",'1. Ordersheet'!BK104)","v":""},{"$f":"IF('1. Ordersheet'!BL104=\"\",\"\",'1. Ordersheet'!BL104)","v":""}]
[{"$f":"IF('1. Ordersheet'!F105=\"\",\"\",'1. Ordersheet'!F105)","v":""},{"$f":"IF('1. Ordersheet'!G105=\"\",\"\",'1. Ordersheet'!G105)","v":""},{"$f":"IF('1. Ordersheet'!H105=\"\",\"\",'1. Ordersheet'!H105)","v":""},{"$f":"IF('1. Ordersheet'!I105=\"\",\"\",'1. Ordersheet'!I105)","v":""},{"$f":"IF('1. Ordersheet'!J105=\"\",\"\",'1. Ordersheet'!J105)","v":""},{"$f":"IF('1. Ordersheet'!K105=\"\",\"\",'1. Ordersheet'!K105)","v":""},{"$f":"IF('1. Ordersheet'!L105=\"\",\"\",'1. Ordersheet'!L105)","v":""},{"$f":"IF('1. Ordersheet'!M105=\"\",\"\",'1. Ordersheet'!M105)","v":""},{"$f":"IF('1. Ordersheet'!N105=\"\",\"\",'1. Ordersheet'!N105)","v":""},{"$f":"IF('1. Ordersheet'!O105=\"\",\"\",'1. Ordersheet'!O105)","v":{"$error":"#N/A"}},{"$f":"IF('1. Ordersheet'!P105=\"\",\"\",'1. Ordersheet'!P105)","v":{"$error":"#N/A"}},{"$f":"IF('1. Ordersheet'!Q105=\"\",\"\",'1. Ordersheet'!Q105)","v":""},{"$f":"IF('1. Ordersheet'!R105=\"\",\"\",'1. Ordersheet'!R105)","v":""},{"$f":"IF('1. Ordersheet'!S105=\"\",\"\",'1. Ordersheet'!S105)","v":""},{"$f":"IF('1. Ordersheet'!V105=\"\",\"\",'1. Ordersheet'!V105)","v":""},{"$f":"IF('1. Ordersheet'!W105=\"\",\"\",'1. Ordersheet'!W105)","v":""},{"$f":"IF('1. Ordersheet'!X105=\"\",\"\",'1. Ordersheet'!X105)","v":""},{"$f":"IF('1. Ordersheet'!Y105=\"\",\"\",'1. Ordersheet'!Y105)","v":""},{"$f":"IF('1. Ordersheet'!Z105=\"\",\"\",'1. Ordersheet'!Z105)","v":""},{"$f":"IF('1. Ordersheet'!AA105=\"\",\"\",'1. Ordersheet'!AA105)","v":""},null,{"$f":"IF('1. Ordersheet'!AS105=\"\",\"\",'1. Ordersheet'!AS105)","v":""},{"$f":"IF('1. Ordersheet'!AT105=\"\",\"\",'1. Ordersheet'!AT105)","v":""},null,null,null,null,null,null,null,{"$f":"IF('1. Ordersheet'!AX105=\"\",\"\",'1. Ordersheet'!AX105)","v":""},{"$f":"IF('1. Ordersheet'!AY105=\"\",\"\",'1. Ordersheet'!AY105)","v":""},{"$f":"IF('1. Ordersheet'!AZ105=\"\",\"\",'1. Ordersheet'!AZ105)","v":""},{"$f":"IF('1. Ordersheet'!BA105=\"\",\"\",'1. Ordersheet'!BA105)","v":""},{"$f":"IF('1. Ordersheet'!BC105=\"\",\"\",'1. Ordersheet'!BC105)","v":""},{"$f":"IF('1. Ordersheet'!BD105=\"\",\"\",'1. Ordersheet'!BD105)","v":""},{"$f":"IF('1. Ordersheet'!BE105=\"\",\"\",'1. Ordersheet'!BE105)","v":""},{"$f":"IF('1. Ordersheet'!BF105=\"\",\"\",'1. Ordersheet'!BF105)","v":""},{"$f":"IF('1. Ordersheet'!BG105=\"\",\"\",'1. Ordersheet'!BG105)","v":"ZWO"},{"$f":"IF('1. Ordersheet'!BH105=\"\",\"\",'1. Ordersheet'!BH105)","v":""},{"$f":"IF('1. Ordersheet'!BI105=\"\",\"\",'1. Ordersheet'!BI105)","v":""},{"$f":"IF('1. Ordersheet'!BJ105=\"\",\"\",'1. Ordersheet'!BJ105)","v":""},{"$f":"IF('1. Ordersheet'!BK105=\"\",\"\",'1. Ordersheet'!BK105)","v":""},{"$f":"IF('1. Ordersheet'!BL105=\"\",\"\",'1. Ordersheet'!BL105)","v":""}]
[{"$f":"IF('1. Ordersheet'!F106=\"\",\"\",'1. Ordersheet'!F106)","v":""},{"$f":"IF('1. Ordersheet'!G106=\"\",\"\",'1. Ordersheet'!G106)","v":""},{"$f":"IF('1. Ordersheet'!H106=\"\",\"\",'1. Ordersheet'!H106)","v":""},{"$f":"IF('1. Ordersheet'!I106=\"\",\"\",'1. Ordersheet'!I106)","v":""},{"$f":"IF('1. Ordersheet'!J106=\"\",\"\",'1. Ordersheet'!J106)","v":""},{"$f":"IF('1. Ordersheet'!K106=\"\",\"\",'1. Ordersheet'!K106)","v":""},{"$f":"IF('1. Ordersheet'!L106=\"\",\"\",'1. Ordersheet'!L106)","v":""},{"$f":"IF('1. Ordersheet'!M106=\"\",\"\",'1. Ordersheet'!M106)","v":""},{"$f":"IF('1. Ordersheet'!N106=\"\",\"\",'1. Ordersheet'!N106)","v":""},{"$f":"IF('1. Ordersheet'!O106=\"\",\"\",'1. Ordersheet'!O106)","v":{"$error":"#N/A"}},{"$f":"IF('1. Ordersheet'!P106=\"\",\"\",'1. Ordersheet'!P106)","v":{"$error":"#N/A"}},{"$f":"IF('1. Ordersheet'!Q106=\"\",\"\",'1. Ordersheet'!Q106)","v":""},{"$f":"IF('1. Ordersheet'!R106=\"\",\"\",'1. Ordersheet'!R106)","v":""},{"$f":"IF('1. Ordersheet'!S106=\"\",\"\",'1. Ordersheet'!S106)","v":""},{"$f":"IF('1. Ordersheet'!V106=\"\",\"\",'1. Ordersheet'!V106)","v":""},{"$f":"IF('1. Ordersheet'!W106=\"\",\"\",'1. Ordersheet'!W106)","v":""},{"$f":"IF('1. Ordersheet'!X106=\"\",\"\",'1. Ordersheet'!X106)","v":""},{"$f":"IF('1. Ordersheet'!Y106=\"\",\"\",'1. Ordersheet'!Y106)","v":""},{"$f":"IF('1. Ordersheet'!Z106=\"\",\"\",'1. Ordersheet'!Z106)","v":""},{"$f":"IF('1. Ordersheet'!AA106=\"\",\"\",'1. Ordersheet'!AA106)","v":""},null,{"$f":"IF('1. Ordersheet'!AS106=\"\",\"\",'1. Ordersheet'!AS106)","v":""},{"$f":"IF('1. Ordersheet'!AT106=\"\",\"\",'1. Ordersheet'!AT106)","v":""},null,null,null,null,null,null,null,{"$f":"IF('1. Ordersheet'!AX106=\"\",\"\",'1. Ordersheet'!AX106)","v":""},{"$f":"IF('1. Ordersheet'!AY106=\"\",\"\",'1. Ordersheet'!AY106)","v":""},{"$f":"IF('1. Ordersheet'!AZ106=\"\",\"\",'1. Ordersheet'!AZ106)","v":""},{"$f":"IF('1. Ordersheet'!BA106=\"\",\"\",'1. Ordersheet'!BA106)","v":""},{"$f":"IF('1. Ordersheet'!BC106=\"\",\"\",'1. Ordersheet'!BC106)","v":""},{"$f":"IF('1. Ordersheet'!BD106=\"\",\"\",'1. Ordersheet'!BD106)","v":""},{"$f":"IF('1. Ordersheet'!BE106=\"\",\"\",'1. Ordersheet'!BE106)","v":""},{"$f":"IF('1. Ordersheet'!BF106=\"\",\"\",'1. Ordersheet'!BF106)","v":""},{"$f":"IF('1. Ordersheet'!BG106=\"\",\"\",'1. Ordersheet'!BG106)","v":"ZWO"},{"$f":"IF('1. Ordersheet'!BH106=\"\",\"\",'1. Ordersheet'!BH106)","v":""},{"$f":"IF('1. Ordersheet'!BI106=\"\",\"\",'1. Ordersheet'!BI106)","v":""},{"$f":"IF('1. Ordersheet'!BJ106=\"\",\"\",'1. Ordersheet'!BJ106)","v":""},{"$f":"IF('1. Ordersheet'!BK106=\"\",\"\",'1. Ordersheet'!BK106)","v":""},{"$f":"IF('1. Ordersheet'!BL106=\"\",\"\",'1. Ordersheet'!BL106)","v":""}]
[{"$f":"IF('1. Ordersheet'!F107=\"\",\"\",'1. Ordersheet'!F107)","v":""},{"$f":"IF('1. Ordersheet'!G107=\"\",\"\",'1. Ordersheet'!G107)","v":""},{"$f":"IF('1. Ordersheet'!H107=\"\",\"\",'1. Ordersheet'!H107)","v":""},{"$f":"IF('1. Ordersheet'!I107=\"\",\"\",'1. Ordersheet'!I107)","v":""},{"$f":"IF('1. Ordersheet'!J107=\"\",\"\",'1. Ordersheet'!J107)","v":""},{"$f":"IF('1. Ordersheet'!K107=\"\",\"\",'1. Ordersheet'!K107)","v":""},{"$f":"IF('1. Ordersheet'!L107=\"\",\"\",'1. Ordersheet'!L107)","v":""},{"$f":"IF('1. Ordersheet'!M107=\"\",\"\",'1. Ordersheet'!M107)","v":""},{"$f":"IF('1. Ordersheet'!N107=\"\",\"\",'1. Ordersheet'!N107)","v":""},{"$f":"IF('1. Ordersheet'!O107=\"\",\"\",'1. Ordersheet'!O107)","v":{"$error":"#N/A"}},{"$f":"IF('1. Ordersheet'!P107=\"\",\"\",'1. Ordersheet'!P107)","v":{"$error":"#N/A"}},{"$f":"IF('1. Ordersheet'!Q107=\"\",\"\",'1. Ordersheet'!Q107)","v":""},{"$f":"IF('1. Ordersheet'!R107=\"\",\"\",'1. Ordersheet'!R107)","v":""},{"$f":"IF('1. Ordersheet'!S107=\"\",\"\",'1. Ordersheet'!S107)","v":""},{"$f":"IF('1. Ordersheet'!V107=\"\",\"\",'1. Ordersheet'!V107)","v":""},{"$f":"IF('1. Ordersheet'!W107=\"\",\"\",'1. Ordersheet'!W107)","v":""},{"$f":"IF('1. Ordersheet'!X107=\"\",\"\",'1. Ordersheet'!X107)","v":""},{"$f":"IF('1. Ordersheet'!Y107=\"\",\"\",'1. Ordersheet'!Y107)","v":""},{"$f":"IF('1. Ordersheet'!Z107=\"\",\"\",'1. Ordersheet'!Z107)","v":""},{"$f":"IF('1. Ordersheet'!AA107=\"\",\"\",'1. Ordersheet'!AA107)","v":""},null,{"$f":"IF('1. Ordersheet'!AS107=\"\",\"\",'1. Ordersheet'!AS107)","v":""},{"$f":"IF('1. Ordersheet'!AT107=\"\",\"\",'1. Ordersheet'!AT107)","v":""},null,null,null,null,null,null,null,{"$f":"IF('1. Ordersheet'!AX107=\"\",\"\",'1. Ordersheet'!AX107)","v":""},{"$f":"IF('1. Ordersheet'!AY107=\"\",\"\",'1. Ordersheet'!AY107)","v":""},{"$f":"IF('1. Ordersheet'!AZ107=\"\",\"\",'1. Ordersheet'!AZ107)","v":""},{"$f":"IF('1. Ordersheet'!BA107=\"\",\"\",'1. Ordersheet'!BA107)","v":""},{"$f":"IF('1. Ordersheet'!BC107=\"\",\"\",'1. Ordersheet'!BC107)","v":""},{"$f":"IF('1. Ordersheet'!BD107=\"\",\"\",'1. Ordersheet'!BD107)","v":""},{"$f":"IF('1. Ordersheet'!BE107=\"\",\"\",'1. Ordersheet'!BE107)","v":""},{"$f":"IF('1. Ordersheet'!BF107=\"\",\"\",'1. Ordersheet'!BF107)","v":""},{"$f":"IF('1. Ordersheet'!BG107=\"\",\"\",'1. Ordersheet'!BG107)","v":"ZWO"},{"$f":"IF('1. Ordersheet'!BH107=\"\",\"\",'1. Ordersheet'!BH107)","v":""},{"$f":"IF('1. Ordersheet'!BI107=\"\",\"\",'1. Ordersheet'!BI107)","v":""},{"$f":"IF('1. Ordersheet'!BJ107=\"\",\"\",'1. Ordersheet'!BJ107)","v":""},{"$f":"IF('1. Ordersheet'!BK107=\"\",\"\",'1. Ordersheet'!BK107)","v":""},{"$f":"IF('1. Ordersheet'!BL107=\"\",\"\",'1. Ordersheet'!BL107)","v":""}]
[{"$f":"IF('1. Ordersheet'!F108=\"\",\"\",'1. Ordersheet'!F108)","v":""},{"$f":"IF('1. Ordersheet'!G108=\"\",\"\",'1. Ordersheet'!G108)","v":""},{"$f":"IF('1. Ordersheet'!H108=\"\",\"\",'1. Ordersheet'!H108)","v":""},{"$f":"IF('1. Ordersheet'!I108=\"\",\"\",'1. Ordersheet'!I108)","v":""},{"$f":"IF('1. Ordersheet'!J108=\"\",\"\",'1. Ordersheet'!J108)","v":""},{"$f":"IF('1. Ordersheet'!K108=\"\",\"\",'1. Ordersheet'!K108)","v":""},{"$f":"IF('1. Ordersheet'!L108=\"\",\"\",'1. Ordersheet'!L108)","v":""},{"$f":"IF('1. Ordersheet'!M108=\"\",\"\",'1. Ordersheet'!M108)","v":""},{"$f":"IF('1. Ordersheet'!N108=\"\",\"\",'1. Ordersheet'!N108)","v":""},{"$f":"IF('1. Ordersheet'!O108=\"\",\"\",'1. Ordersheet'!O108)","v":{"$error":"#N/A"}},{"$f":"IF('1. Ordersheet'!P108=\"\",\"\",'1. Ordersheet'!P108)","v":{"$error":"#N/A"}},{"$f":"IF('1. Ordersheet'!Q108=\"\",\"\",'1. Ordersheet'!Q108)","v":""},{"$f":"IF('1. Ordersheet'!R108=\"\",\"\",'1. Ordersheet'!R108)","v":""},{"$f":"IF('1. Ordersheet'!S108=\"\",\"\",'1. Ordersheet'!S108)","v":""},{"$f":"IF('1. Ordersheet'!V108=\"\",\"\",'1. Ordersheet'!V108)","v":""},{"$f":"IF('1. Ordersheet'!W108=\"\",\"\",'1. Ordersheet'!W108)","v":""},{"$f":"IF('1. Ordersheet'!X108=\"\",\"\",'1. Ordersheet'!X108)","v":""},{"$f":"IF('1. Ordersheet'!Y108=\"\",\"\",'1. Ordersheet'!Y108)","v":""},{"$f":"IF('1. Ordersheet'!Z108=\"\",\"\",'1. Ordersheet'!Z108)","v":""},{"$f":"IF('1. Ordersheet'!AA108=\"\",\"\",'1. Ordersheet'!AA108)","v":""},null,{"$f":"IF('1. Ordersheet'!AS108=\"\",\"\",'1. Ordersheet'!AS108)","v":""},{"$f":"IF('1. Ordersheet'!AT108=\"\",\"\",'1. Ordersheet'!AT108)","v":""},null,null,null,null,null,null,null,{"$f":"IF('1. Ordersheet'!AX108=\"\",\"\",'1. Ordersheet'!AX108)","v":""},{"$f":"IF('1. Ordersheet'!AY108=\"\",\"\",'1. Ordersheet'!AY108)","v":""},{"$f":"IF('1. Ordersheet'!AZ108=\"\",\"\",'1. Ordersheet'!AZ108)","v":""},{"$f":"IF('1. Ordersheet'!BA108=\"\",\"\",'1. Ordersheet'!BA108)","v":""},{"$f":"IF('1. Ordersheet'!BC108=\"\",\"\",'1. Ordersheet'!BC108)","v":""},{"$f":"IF('1. Ordersheet'!BD108=\"\",\"\",'1. Ordersheet'!BD108)","v":""},{"$f":"IF('1. Ordersheet'!BE108=\"\",\"\",'1. Ordersheet'!BE108)","v":""},{"$f":"IF('1. Ordersheet'!BF108=\"\",\"\",'1. Ordersheet'!BF108)","v":""},{"$f":"IF('1. Ordersheet'!BG108=\"\",\"\",'1. Ordersheet'!BG108)","v":"ZWO"},{"$f":"IF('1. Ordersheet'!BH108=\"\",\"\",'1. Ordersheet'!BH108)","v":""},{"$f":"IF('1. Ordersheet'!BI108=\"\",\"\",'1. Ordersheet'!BI108)","v":""},{"$f":"IF('1. Ordersheet'!BJ108=\"\",\"\",'1. Ordersheet'!BJ108)","v":""},{"$f":"IF('1. Ordersheet'!BK108=\"\",\"\",'1. Ordersheet'!BK108)","v":""},{"$f":"IF('1. Ordersheet'!BL108=\"\",\"\",'1. Ordersheet'!BL108)","v":""}]
[{"$f":"IF('1. Ordersheet'!F109=\"\",\"\",'1. Ordersheet'!F109)","v":""},{"$f":"IF('1. Ordersheet'!G109=\"\",\"\",'1. Ordersheet'!G109)","v":""},{"$f":"IF('1. Ordersheet'!H109=\"\",\"\",'1. Ordersheet'!H109)","v":""},{"$f":"IF('1. Ordersheet'!I109=\"\",\"\",'1. Ordersheet'!I109)","v":""},{"$f":"IF('1. Ordersheet'!J109=\"\",\"\",'1. Ordersheet'!J109)","v":""},{"$f":"IF('1. Ordersheet'!K109=\"\",\"\",'1. Ordersheet'!K109)","v":""},{"$f":"IF('1. Ordersheet'!L109=\"\",\"\",'1. Ordersheet'!L109)","v":""},{"$f":"IF('1. Ordersheet'!M109=\"\",\"\",'1. Ordersheet'!M109)","v":""},{"$f":"IF('1. Ordersheet'!N109=\"\",\"\",'1. Ordersheet'!N109)","v":""},{"$f":"IF('1. Ordersheet'!O109=\"\",\"\",'1. Ordersheet'!O109)","v":{"$error":"#N/A"}},{"$f":"IF('1. Ordersheet'!P109=\"\",\"\",'1. Ordersheet'!P109)","v":{"$error":"#N/A"}},{"$f":"IF('1. Ordersheet'!Q109=\"\",\"\",'1. Ordersheet'!Q109)","v":""},{"$f":"IF('1. Ordersheet'!R109=\"\",\"\",'1. Ordersheet'!R109)","v":""},{"$f":"IF('1. Ordersheet'!S109=\"\",\"\",'1. Ordersheet'!S109)","v":""},{"$f":"IF('1. Ordersheet'!V109=\"\",\"\",'1. Ordersheet'!V109)","v":""},{"$f":"IF('1. Ordersheet'!W109=\"\",\"\",'1. Ordersheet'!W109)","v":""},{"$f":"IF('1. Ordersheet'!X109=\"\",\"\",'1. Ordersheet'!X109)","v":""},{"$f":"IF('1. Ordersheet'!Y109=\"\",\"\",'1. Ordersheet'!Y109)","v":""},{"$f":"IF('1. Ordersheet'!Z109=\"\",\"\",'1. Ordersheet'!Z109)","v":""},{"$f":"IF('1. Ordersheet'!AA109=\"\",\"\",'1. Ordersheet'!AA109)","v":""},null,{"$f":"IF('1. Ordersheet'!AS109=\"\",\"\",'1. Ordersheet'!AS109)","v":""},{"$f":"IF('1. Ordersheet'!AT109=\"\",\"\",'1. Ordersheet'!AT109)","v":""},null,null,null,null,null,null,null,{"$f":"IF('1. Ordersheet'!AX109=\"\",\"\",'1. Ordersheet'!AX109)","v":""},{"$f":"IF('1. Ordersheet'!AY109=\"\",\"\",'1. Ordersheet'!AY109)","v":""},{"$f":"IF('1. Ordersheet'!AZ109=\"\",\"\",'1. Ordersheet'!AZ109)","v":""},{"$f":"IF('1. Ordersheet'!BA109=\"\",\"\",'1. Ordersheet'!BA109)","v":""},{"$f":"IF('1. Ordersheet'!BC109=\"\",\"\",'1. Ordersheet'!BC109)","v":""},{"$f":"IF('1. Ordersheet'!BD109=\"\",\"\",'1. Ordersheet'!BD109)","v":""},{"$f":"IF('1. Ordersheet'!BE109=\"\",\"\",'1. Ordersheet'!BE109)","v":""},{"$f":"IF('1. Ordersheet'!BF109=\"\",\"\",'1. Ordersheet'!BF109)","v":""},{"$f":"IF('1. Ordersheet'!BG109=\"\",\"\",'1. Ordersheet'!BG109)","v":"ZWO"},{"$f":"IF('1. Ordersheet'!BH109=\"\",\"\",'1. Ordersheet'!BH109)","v":""},{"$f":"IF('1. Ordersheet'!BI109=\"\",\"\",'1. Ordersheet'!BI109)","v":""},{"$f":"IF('1. Ordersheet'!BJ109=\"\",\"\",'1. Ordersheet'!BJ109)","v":""},{"$f":"IF('1. Ordersheet'!BK109=\"\",\"\",'1. Ordersheet'!BK109)","v":""},{"$f":"IF('1. Ordersheet'!BL109=\"\",\"\",'1. Ordersheet'!BL109)","v":""}]
[{"$f":"IF('1. Ordersheet'!F110=\"\",\"\",'1. Ordersheet'!F110)","v":""},{"$f":"IF('1. Ordersheet'!G110=\"\",\"\",'1. Ordersheet'!G110)","v":""},{"$f":"IF('1. Ordersheet'!H110=\"\",\"\",'1. Ordersheet'!H110)","v":""},{"$f":"IF('1. Ordersheet'!I110=\"\",\"\",'1. Ordersheet'!I110)","v":""},{"$f":"IF('1. Ordersheet'!J110=\"\",\"\",'1. Ordersheet'!J110)","v":""},{"$f":"IF('1. Ordersheet'!K110=\"\",\"\",'1. Ordersheet'!K110)","v":""},{"$f":"IF('1. Ordersheet'!L110=\"\",\"\",'1. Ordersheet'!L110)","v":""},{"$f":"IF('1. Ordersheet'!M110=\"\",\"\",'1. Ordersheet'!M110)","v":""},{"$f":"IF('1. Ordersheet'!N110=\"\",\"\",'1. Ordersheet'!N110)","v":""},{"$f":"IF('1. Ordersheet'!O110=\"\",\"\",'1. Ordersheet'!O110)","v":{"$error":"#N/A"}},{"$f":"IF('1. Ordersheet'!P110=\"\",\"\",'1. Ordersheet'!P110)","v":{"$error":"#N/A"}},{"$f":"IF('1. Ordersheet'!Q110=\"\",\"\",'1. Ordersheet'!Q110)","v":""},{"$f":"IF('1. Ordersheet'!R110=\"\",\"\",'1. Ordersheet'!R110)","v":""},{"$f":"IF('1. Ordersheet'!S110=\"\",\"\",'1. Ordersheet'!S110)","v":""},{"$f":"IF('1. Ordersheet'!V110=\"\",\"\",'1. Ordersheet'!V110)","v":""},{"$f":"IF('1. Ordersheet'!W110=\"\",\"\",'1. Ordersheet'!W110)","v":""},{"$f":"IF('1. Ordersheet'!X110=\"\",\"\",'1. Ordersheet'!X110)","v":""},{"$f":"IF('1. Ordersheet'!Y110=\"\",\"\",'1. Ordersheet'!Y110)","v":""},{"$f":"IF('1. Ordersheet'!Z110=\"\",\"\",'1. Ordersheet'!Z110)","v":""},{"$f":"IF('1. Ordersheet'!AA110=\"\",\"\",'1. Ordersheet'!AA110)","v":""},null,{"$f":"IF('1. Ordersheet'!AS110=\"\",\"\",'1. Ordersheet'!AS110)","v":""},{"$f":"IF('1. Ordersheet'!AT110=\"\",\"\",'1. Ordersheet'!AT110)","v":""},null,null,null,null,null,null,null,{"$f":"IF('1. Ordersheet'!AX110=\"\",\"\",'1. Ordersheet'!AX110)","v":""},{"$f":"IF('1. Ordersheet'!AY110=\"\",\"\",'1. Ordersheet'!AY110)","v":""},{"$f":"IF('1. Ordersheet'!AZ110=\"\",\"\",'1. Ordersheet'!AZ110)","v":""},{"$f":"IF('1. Ordersheet'!BA110=\"\",\"\",'1. Ordersheet'!BA110)","v":""},{"$f":"IF('1. Ordersheet'!BC110=\"\",\"\",'1. Ordersheet'!BC110)","v":""},{"$f":"IF('1. Ordersheet'!BD110=\"\",\"\",'1. Ordersheet'!BD110)","v":""},{"$f":"IF('1. Ordersheet'!BE110=\"\",\"\",'1. Ordersheet'!BE110)","v":""},{"$f":"IF('1. Ordersheet'!BF110=\"\",\"\",'1. Ordersheet'!BF110)","v":""},{"$f":"IF('1. Ordersheet'!BG110=\"\",\"\",'1. Ordersheet'!BG110)","v":"ZWO"},{"$f":"IF('1. Ordersheet'!BH110=\"\",\"\",'1. Ordersheet'!BH110)","v":""},{"$f":"IF('1. Ordersheet'!BI110=\"\",\"\",'1. Ordersheet'!BI110)","v":""},{"$f":"IF('1. Ordersheet'!BJ110=\"\",\"\",'1. Ordersheet'!BJ110)","v":""},{"$f":"IF('1. Ordersheet'!BK110=\"\",\"\",'1. Ordersheet'!BK110)","v":""},{"$f":"IF('1. Ordersheet'!BL110=\"\",\"\",'1. Ordersheet'!BL110)","v":""}]
[{"$f":"IF('1. Ordersheet'!F111=\"\",\"\",'1. Ordersheet'!F111)","v":""},{"$f":"IF('1. Ordersheet'!G111=\"\",\"\",'1. Ordersheet'!G111)","v":""},{"$f":"IF('1. Ordersheet'!H111=\"\",\"\",'1. Ordersheet'!H111)","v":""},{"$f":"IF('1. Ordersheet'!I111=\"\",\"\",'1. Ordersheet'!I111)","v":""},{"$f":"IF('1. Ordersheet'!J111=\"\",\"\",'1. Ordersheet'!J111)","v":""},{"$f":"IF('1. Ordersheet'!K111=\"\",\"\",'1. Ordersheet'!K111)","v":""},{"$f":"IF('1. Ordersheet'!L111=\"\",\"\",'1. Ordersheet'!L111)","v":""},{"$f":"IF('1. Ordersheet'!M111=\"\",\"\",'1. Ordersheet'!M111)","v":""},{"$f":"IF('1. Ordersheet'!N111=\"\",\"\",'1. Ordersheet'!N111)","v":""},{"$f":"IF('1. Ordersheet'!O111=\"\",\"\",'1. Ordersheet'!O111)","v":{"$error":"#N/A"}},{"$f":"IF('1. Ordersheet'!P111=\"\",\"\",'1. Ordersheet'!P111)","v":{"$error":"#N/A"}},{"$f":"IF('1. Ordersheet'!Q111=\"\",\"\",'1. Ordersheet'!Q111)","v":""},{"$f":"IF('1. Ordersheet'!R111=\"\",\"\",'1. Ordersheet'!R111)","v":""},{"$f":"IF('1. Ordersheet'!S111=\"\",\"\",'1. Ordersheet'!S111)","v":""},{"$f":"IF('1. Ordersheet'!V111=\"\",\"\",'1. Ordersheet'!V111)","v":""},{"$f":"IF('1. Ordersheet'!W111=\"\",\"\",'1. Ordersheet'!W111)","v":""},{"$f":"IF('1. Ordersheet'!X111=\"\",\"\",'1. Ordersheet'!X111)","v":""},{"$f":"IF('1. Ordersheet'!Y111=\"\",\"\",'1. Ordersheet'!Y111)","v":""},{"$f":"IF('1. Ordersheet'!Z111=\"\",\"\",'1. Ordersheet'!Z111)","v":""},{"$f":"IF('1. Ordersheet'!AA111=\"\",\"\",'1. Ordersheet'!AA111)","v":""},null,{"$f":"IF('1. Ordersheet'!AS111=\"\",\"\",'1. Ordersheet'!AS111)","v":""},{"$f":"IF('1. Ordersheet'!AT111=\"\",\"\",'1. Ordersheet'!AT111)","v":""},null,null,null,null,null,null,null,{"$f":"IF('1. Ordersheet'!AX111=\"\",\"\",'1. Ordersheet'!AX111)","v":""},{"$f":"IF('1. Ordersheet'!AY111=\"\",\"\",'1. Ordersheet'!AY111)","v":""},{"$f":"IF('1. Ordersheet'!AZ111=\"\",\"\",'1. Ordersheet'!AZ111)","v":""},{"$f":"IF('1. Ordersheet'!BA111=\"\",\"\",'1. Ordersheet'!BA111)","v":""},{"$f":"IF('1. Ordersheet'!BC111=\"\",\"\",'1. Ordersheet'!BC111)","v":""},{"$f":"IF('1. Ordersheet'!BD111=\"\",\"\",'1. Ordersheet'!BD111)","v":""},{"$f":"IF('1. Ordersheet'!BE111=\"\",\"\",'1. Ordersheet'!BE111)","v":""},{"$f":"IF('1. Ordersheet'!BF111=\"\",\"\",'1. Ordersheet'!BF111)","v":""},{"$f":"IF('1. Ordersheet'!BG111=\"\",\"\",'1. Ordersheet'!BG111)","v":"ZWO"},{"$f":"IF('1. Ordersheet'!BH111=\"\",\"\",'1. Ordersheet'!BH111)","v":""},{"$f":"IF('1. Ordersheet'!BI111=\"\",\"\",'1. Ordersheet'!BI111)","v":""},{"$f":"IF('1. Ordersheet'!BJ111=\"\",\"\",'1. Ordersheet'!BJ111)","v":""},{"$f":"IF('1. Ordersheet'!BK111=\"\",\"\",'1. Ordersheet'!BK111)","v":""},{"$f":"IF('1. Ordersheet'!BL111=\"\",\"\",'1. Ordersheet'!BL111)","v":""}]
[{"$f":"IF('1. Ordersheet'!F112=\"\",\"\",'1. Ordersheet'!F112)","v":""},{"$f":"IF('1. Ordersheet'!G112=\"\",\"\",'1. Ordersheet'!G112)","v":""},{"$f":"IF('1. Ordersheet'!H112=\"\",\"\",'1. Ordersheet'!H112)","v":""},{"$f":"IF('1. Ordersheet'!I112=\"\",\"\",'1. Ordersheet'!I112)","v":""},{"$f":"IF('1. Ordersheet'!J112=\"\",\"\",'1. Ordersheet'!J112)","v":""},{"$f":"IF('1. Ordersheet'!K112=\"\",\"\",'1. Ordersheet'!K112)","v":""},{"$f":"IF('1. Ordersheet'!L112=\"\",\"\",'1. Ordersheet'!L112)","v":""},{"$f":"IF('1. Ordersheet'!M112=\"\",\"\",'1. Ordersheet'!M112)","v":""},{"$f":"IF('1. Ordersheet'!N112=\"\",\"\",'1. Ordersheet'!N112)","v":""},{"$f":"IF('1. Ordersheet'!O112=\"\",\"\",'1. Ordersheet'!O112)","v":{"$error":"#N/A"}},{"$f":"IF('1. Ordersheet'!P112=\"\",\"\",'1. Ordersheet'!P112)","v":{"$error":"#N/A"}},{"$f":"IF('1. Ordersheet'!Q112=\"\",\"\",'1. Ordersheet'!Q112)","v":""},{"$f":"IF('1. Ordersheet'!R112=\"\",\"\",'1. Ordersheet'!R112)","v":""},{"$f":"IF('1. Ordersheet'!S112=\"\",\"\",'1. Ordersheet'!S112)","v":""},{"$f":"IF('1. Ordersheet'!V112=\"\",\"\",'1. Ordersheet'!V112)","v":""},{"$f":"IF('1. Ordersheet'!W112=\"\",\"\",'1. Ordersheet'!W112)","v":""},{"$f":"IF('1. Ordersheet'!X112=\"\",\"\",'1. Ordersheet'!X112)","v":""},{"$f":"IF('1. Ordersheet'!Y112=\"\",\"\",'1. Ordersheet'!Y112)","v":""},{"$f":"IF('1. Ordersheet'!Z112=\"\",\"\",'1. Ordersheet'!Z112)","v":""},{"$f":"IF('1. Ordersheet'!AA112=\"\",\"\",'1. Ordersheet'!AA112)","v":""},null,{"$f":"IF('1. Ordersheet'!AS112=\"\",\"\",'1. Ordersheet'!AS112)","v":""},{"$f":"IF('1. Ordersheet'!AT112=\"\",\"\",'1. Ordersheet'!AT112)","v":""},null,null,null,null,null,null,null,{"$f":"IF('1. Ordersheet'!AX112=\"\",\"\",'1. Ordersheet'!AX112)","v":""},{"$f":"IF('1. Ordersheet'!AY112=\"\",\"\",'1. Ordersheet'!AY112)","v":""},{"$f":"IF('1. Ordersheet'!AZ112=\"\",\"\",'1. Ordersheet'!AZ112)","v":""},{"$f":"IF('1. Ordersheet'!BA112=\"\",\"\",'1. Ordersheet'!BA112)","v":""},{"$f":"IF('1. Ordersheet'!BC112=\"\",\"\",'1. Ordersheet'!BC112)","v":""},{"$f":"IF('1. Ordersheet'!BD112=\"\",\"\",'1. Ordersheet'!BD112)","v":""},{"$f":"IF('1. Ordersheet'!BE112=\"\",\"\",'1. Ordersheet'!BE112)","v":""},{"$f":"IF('1. Ordersheet'!BF112=\"\",\"\",'1. Ordersheet'!BF112)","v":""},{"$f":"IF('1. Ordersheet'!BG112=\"\",\"\",'1. Ordersheet'!BG112)","v":"ZWO"},{"$f":"IF('1. Ordersheet'!BH112=\"\",\"\",'1. Ordersheet'!BH112)","v":""},{"$f":"IF('1. Ordersheet'!BI112=\"\",\"\",'1. Ordersheet'!BI112)","v":""},{"$f":"IF('1. Ordersheet'!BJ112=\"\",\"\",'1. Ordersheet'!BJ112)","v":""},{"$f":"IF('1. Ordersheet'!BK112=\"\",\"\",'1. Ordersheet'!BK112)","v":""},{"$f":"IF('1. Ordersheet'!BL112=\"\",\"\",'1. Ordersheet'!BL112)","v":""}]
[{"$f":"IF('1. Ordersheet'!F113=\"\",\"\",'1. Ordersheet'!F113)","v":""},{"$f":"IF('1. Ordersheet'!G113=\"\",\"\",'1. Ordersheet'!G113)","v":""},{"$f":"IF('1. Ordersheet'!H113=\"\",\"\",'1. Ordersheet'!H113)","v":""},{"$f":"IF('1. Ordersheet'!I113=\"\",\"\",'1. Ordersheet'!I113)","v":""},{"$f":"IF('1. Ordersheet'!J113=\"\",\"\",'1. Ordersheet'!J113)","v":""},{"$f":"IF('1. Ordersheet'!K113=\"\",\"\",'1. Ordersheet'!K113)","v":""},{"$f":"IF('1. Ordersheet'!L113=\"\",\"\",'1. Ordersheet'!L113)","v":""},{"$f":"IF('1. Ordersheet'!M113=\"\",\"\",'1. Ordersheet'!M113)","v":""},{"$f":"IF('1. Ordersheet'!N113=\"\",\"\",'1. Ordersheet'!N113)","v":""},{"$f":"IF('1. Ordersheet'!O113=\"\",\"\",'1. Ordersheet'!O113)","v":{"$error":"#N/A"}},{"$f":"IF('1. Ordersheet'!P113=\"\",\"\",'1. Ordersheet'!P113)","v":{"$error":"#N/A"}},{"$f":"IF('1. Ordersheet'!Q113=\"\",\"\",'1. Ordersheet'!Q113)","v":""},{"$f":"IF('1. Ordersheet'!R113=\"\",\"\",'1. Ordersheet'!R113)","v":""},{"$f":"IF('1. Ordersheet'!S113=\"\",\"\",'1. Ordersheet'!S113)","v":""},{"$f":"IF('1. Ordersheet'!V113=\"\",\"\",'1. Ordersheet'!V113)","v":""},{"$f":"IF('1. Ordersheet'!W113=\"\",\"\",'1. Ordersheet'!W113)","v":""},{"$f":"IF('1. Ordersheet'!X113=\"\",\"\",'1. Ordersheet'!X113)","v":""},{"$f":"IF('1. Ordersheet'!Y113=\"\",\"\",'1. Ordersheet'!Y113)","v":""},{"$f":"IF('1. Ordersheet'!Z113=\"\",\"\",'1. Ordersheet'!Z113)","v":""},{"$f":"IF('1. Ordersheet'!AA113=\"\",\"\",'1. Ordersheet'!AA113)","v":""},null,{"$f":"IF('1. Ordersheet'!AS113=\"\",\"\",'1. Ordersheet'!AS113)","v":""},{"$f":"IF('1. Ordersheet'!AT113=\"\",\"\",'1. Ordersheet'!AT113)","v":""},null,null,null,null,null,null,null,{"$f":"IF('1. Ordersheet'!AX113=\"\",\"\",'1. Ordersheet'!AX113)","v":""},{"$f":"IF('1. Ordersheet'!AY113=\"\",\"\",'1. Ordersheet'!AY113)","v":""},{"$f":"IF('1. Ordersheet'!AZ113=\"\",\"\",'1. Ordersheet'!AZ113)","v":""},{"$f":"IF('1. Ordersheet'!BA113=\"\",\"\",'1. Ordersheet'!BA113)","v":""},{"$f":"IF('1. Ordersheet'!BC113=\"\",\"\",'1. Ordersheet'!BC113)","v":""},{"$f":"IF('1. Ordersheet'!BD113=\"\",\"\",'1. Ordersheet'!BD113)","v":""},{"$f":"IF('1. Ordersheet'!BE113=\"\",\"\",'1. Ordersheet'!BE113)","v":""},{"$f":"IF('1. Ordersheet'!BF113=\"\",\"\",'1. Ordersheet'!BF113)","v":""},{"$f":"IF('1. Ordersheet'!BG113=\"\",\"\",'1. Ordersheet'!BG113)","v":"ZWO"},{"$f":"IF('1. Ordersheet'!BH113=\"\",\"\",'1. Ordersheet'!BH113)","v":""},{"$f":"IF('1. Ordersheet'!BI113=\"\",\"\",'1. Ordersheet'!BI113)","v":""},{"$f":"IF('1. Ordersheet'!BJ113=\"\",\"\",'1. Ordersheet'!BJ113)","v":""},{"$f":"IF('1. Ordersheet'!BK113=\"\",\"\",'1. Ordersheet'!BK113)","v":""},{"$f":"IF('1. Ordersheet'!BL113=\"\",\"\",'1. Ordersheet'!BL113)","v":""}]
[{"$f":"IF('1. Ordersheet'!F114=\"\",\"\",'1. Ordersheet'!F114)","v":""},{"$f":"IF('1. Ordersheet'!G114=\"\",\"\",'1. Ordersheet'!G114)","v":""},{"$f":"IF('1. Ordersheet'!H114=\"\",\"\",'1. Ordersheet'!H114)","v":""},{"$f":"IF('1. Ordersheet'!I114=\"\",\"\",'1. Ordersheet'!I114)","v":""},{"$f":"IF('1. Ordersheet'!J114=\"\",\"\",'1. Ordersheet'!J114)","v":""},{"$f":"IF('1. Ordersheet'!K114=\"\",\"\",'1. Ordersheet'!K114)","v":""},{"$f":"IF('1. Ordersheet'!L114=\"\",\"\",'1. Ordersheet'!L114)","v":""},{"$f":"IF('1. Ordersheet'!M114=\"\",\"\",'1. Ordersheet'!M114)","v":""},{"$f":"IF('1. Ordersheet'!N114=\"\",\"\",'1. Ordersheet'!N114)","v":""},{"$f":"IF('1. Ordersheet'!O114=\"\",\"\",'1. Ordersheet'!O114)","v":{"$error":"#N/A"}},{"$f":"IF('1. Ordersheet'!P114=\"\",\"\",'1. Ordersheet'!P114)","v":{"$error":"#N/A"}},{"$f":"IF('1. Ordersheet'!Q114=\"\",\"\",'1. Ordersheet'!Q114)","v":""},{"$f":"IF('1. Ordersheet'!R114=\"\",\"\",'1. Ordersheet'!R114)","v":""},{"$f":"IF('1. Ordersheet'!S114=\"\",\"\",'1. Ordersheet'!S114)","v":""},{"$f":"IF('1. Ordersheet'!V114=\"\",\"\",'1. Ordersheet'!V114)","v":""},{"$f":"IF('1. Ordersheet'!W114=\"\",\"\",'1. Ordersheet'!W114)","v":""},{"$f":"IF('1. Ordersheet'!X114=\"\",\"\",'1. Ordersheet'!X114)","v":""},{"$f":"IF('1. Ordersheet'!Y114=\"\",\"\",'1. Ordersheet'!Y114)","v":""},{"$f":"IF('1. Ordersheet'!Z114=\"\",\"\",'1. Ordersheet'!Z114)","v":""},{"$f":"IF('1. Ordersheet'!AA114=\"\",\"\",'1. Ordersheet'!AA114)","v":""},null,{"$f":"IF('1. Ordersheet'!AS114=\"\",\"\",'1. Ordersheet'!AS114)","v":""},{"$f":"IF('1. Ordersheet'!AT114=\"\",\"\",'1. Ordersheet'!AT114)","v":""},null,null,null,null,null,null,null,{"$f":"IF('1. Ordersheet'!AX114=\"\",\"\",'1. Ordersheet'!AX114)","v":""},{"$f":"IF('1. Ordersheet'!AY114=\"\",\"\",'1. Ordersheet'!AY114)","v":""},{"$f":"IF('1. Ordersheet'!AZ114=\"\",\"\",'1. Ordersheet'!AZ114)","v":""},{"$f":"IF('1. Ordersheet'!BA114=\"\",\"\",'1. Ordersheet'!BA114)","v":""},{"$f":"IF('1. Ordersheet'!BC114=\"\",\"\",'1. Ordersheet'!BC114)","v":""},{"$f":"IF('1. Ordersheet'!BD114=\"\",\"\",'1. Ordersheet'!BD114)","v":""},{"$f":"IF('1. Ordersheet'!BE114=\"\",\"\",'1. Ordersheet'!BE114)","v":""},{"$f":"IF('1. Ordersheet'!BF114=\"\",\"\",'1. Ordersheet'!BF114)","v":""},{"$f":"IF('1. Ordersheet'!BG114=\"\",\"\",'1. Ordersheet'!BG114)","v":"ZWO"},{"$f":"IF('1. Ordersheet'!BH114=\"\",\"\",'1. Ordersheet'!BH114)","v":""},{"$f":"IF('1. Ordersheet'!BI114=\"\",\"\",'1. Ordersheet'!BI114)","v":""},{"$f":"IF('1. Ordersheet'!BJ114=\"\",\"\",'1. Ordersheet'!BJ114)","v":""},{"$f":"IF('1. Ordersheet'!BK114=\"\",\"\",'1. Ordersheet'!BK114)","v":""},{"$f":"IF('1. Ordersheet'!BL114=\"\",\"\",'1. Ordersheet'!BL114)","v":""}]
[{"$f":"IF('1. Ordersheet'!F115=\"\",\"\",'1. Ordersheet'!F115)","v":""},{"$f":"IF('1. Ordersheet'!G115=\"\",\"\",'1. Ordersheet'!G115)","v":""},{"$f":"IF('1. Ordersheet'!H115=\"\",\"\",'1. Ordersheet'!H115)","v":""},{"$f":"IF('1. Ordersheet'!I115=\"\",\"\",'1. Ordersheet'!I115)","v":""},{"$f":"IF('1. Ordersheet'!J115=\"\",\"\",'1. Ordersheet'!J115)","v":""},{"$f":"IF('1. Ordersheet'!K115=\"\",\"\",'1. Ordersheet'!K115)","v":""},{"$f":"IF('1. Ordersheet'!L115=\"\",\"\",'1. Ordersheet'!L115)","v":""},{"$f":"IF('1. Ordersheet'!M115=\"\",\"\",'1. Ordersheet'!M115)","v":""},{"$f":"IF('1. Ordersheet'!N115=\"\",\"\",'1. Ordersheet'!N115)","v":""},{"$f":"IF('1. Ordersheet'!O115=\"\",\"\",'1. Ordersheet'!O115)","v":{"$error":"#N/A"}},{"$f":"IF('1. Ordersheet'!P115=\"\",\"\",'1. Ordersheet'!P115)","v":{"$error":"#N/A"}},{"$f":"IF('1. Ordersheet'!Q115=\"\",\"\",'1. Ordersheet'!Q115)","v":""},{"$f":"IF('1. Ordersheet'!R115=\"\",\"\",'1. Ordersheet'!R115)","v":""},{"$f":"IF('1. Ordersheet'!S115=\"\",\"\",'1. Ordersheet'!S115)","v":""},{"$f":"IF('1. Ordersheet'!V115=\"\",\"\",'1. Ordersheet'!V115)","v":""},{"$f":"IF('1. Ordersheet'!W115=\"\",\"\",'1. Ordersheet'!W115)","v":""},{"$f":"IF('1. Ordersheet'!X115=\"\",\"\",'1. Ordersheet'!X115)","v":""},{"$f":"IF('1. Ordersheet'!Y115=\"\",\"\",'1. Ordersheet'!Y115)","v":""},{"$f":"IF('1. Ordersheet'!Z115=\"\",\"\",'1. Ordersheet'!Z115)","v":""},{"$f":"IF('1. Ordersheet'!AA115=\"\",\"\",'1. Ordersheet'!AA115)","v":""},null,{"$f":"IF('1. Ordersheet'!AS115=\"\",\"\",'1. Ordersheet'!AS115)","v":""},{"$f":"IF('1. Ordersheet'!AT115=\"\",\"\",'1. Ordersheet'!AT115)","v":""},null,null,null,null,null,null,null,{"$f":"IF('1. Ordersheet'!AX115=\"\",\"\",'1. Ordersheet'!AX115)","v":""},{"$f":"IF('1. Ordersheet'!AY115=\"\",\"\",'1. Ordersheet'!AY115)","v":""},{"$f":"IF('1. Ordersheet'!AZ115=\"\",\"\",'1. Ordersheet'!AZ115)","v":""},{"$f":"IF('1. Ordersheet'!BA115=\"\",\"\",'1. Ordersheet'!BA115)","v":""},{"$f":"IF('1. Ordersheet'!BC115=\"\",\"\",'1. Ordersheet'!BC115)","v":""},{"$f":"IF('1. Ordersheet'!BD115=\"\",\"\",'1. Ordersheet'!BD115)","v":""},{"$f":"IF('1. Ordersheet'!BE115=\"\",\"\",'1. Ordersheet'!BE115)","v":""},{"$f":"IF('1. Ordersheet'!BF115=\"\",\"\",'1. Ordersheet'!BF115)","v":""},{"$f":"IF('1. Ordersheet'!BG115=\"\",\"\",'1. Ordersheet'!BG115)","v":"ZWO"},{"$f":"IF('1. Ordersheet'!BH115=\"\",\"\",'1. Ordersheet'!BH115)","v":""},{"$f":"IF('1. Ordersheet'!BI115=\"\",\"\",'1. Ordersheet'!BI115)","v":""},{"$f":"IF('1. Ordersheet'!BJ115=\"\",\"\",'1. Ordersheet'!BJ115)","v":""},{"$f":"IF('1. Ordersheet'!BK115=\"\",\"\",'1. Ordersheet'!BK115)","v":""},{"$f":"IF('1. Ordersheet'!BL115=\"\",\"\",'1. Ordersheet'!BL115)","v":""}]
[{"$f":"IF('1. Ordersheet'!F116=\"\",\"\",'1. Ordersheet'!F116)","v":""},{"$f":"IF('1. Ordersheet'!G116=\"\",\"\",'1. Ordersheet'!G116)","v":""},{"$f":"IF('1. Ordersheet'!H116=\"\",\"\",'1. Ordersheet'!H116)","v":""},{"$f":"IF('1. Ordersheet'!I116=\"\",\"\",'1. Ordersheet'!I116)","v":""},{"$f":"IF('1. Ordersheet'!J116=\"\",\"\",'1. Ordersheet'!J116)","v":""},{"$f":"IF('1. Ordersheet'!K116=\"\",\"\",'1. Ordersheet'!K116)","v":""},{"$f":"IF('1. Ordersheet'!L116=\"\",\"\",'1. Ordersheet'!L116)","v":""},{"$f":"IF('1. Ordersheet'!M116=\"\",\"\",'1. Ordersheet'!M116)","v":""},{"$f":"IF('1. Ordersheet'!N116=\"\",\"\",'1. Ordersheet'!N116)","v":""},{"$f":"IF('1. Ordersheet'!O116=\"\",\"\",'1. Ordersheet'!O116)","v":{"$error":"#N/A"}},{"$f":"IF('1. Ordersheet'!P116=\"\",\"\",'1. Ordersheet'!P116)","v":{"$error":"#N/A"}},{"$f":"IF('1. Ordersheet'!Q116=\"\",\"\",'1. Ordersheet'!Q116)","v":""},{"$f":"IF('1. Ordersheet'!R116=\"\",\"\",'1. Ordersheet'!R116)","v":""},{"$f":"IF('1. Ordersheet'!S116=\"\",\"\",'1. Ordersheet'!S116)","v":""},{"$f":"IF('1. Ordersheet'!V116=\"\",\"\",'1. Ordersheet'!V116)","v":""},{"$f":"IF('1. Ordersheet'!W116=\"\",\"\",'1. Ordersheet'!W116)","v":""},{"$f":"IF('1. Ordersheet'!X116=\"\",\"\",'1. Ordersheet'!X116)","v":""},{"$f":"IF('1. Ordersheet'!Y116=\"\",\"\",'1. Ordersheet'!Y116)","v":""},{"$f":"IF('1. Ordersheet'!Z116=\"\",\"\",'1. Ordersheet'!Z116)","v":""},{"$f":"IF('1. Ordersheet'!AA116=\"\",\"\",'1. Ordersheet'!AA116)","v":""},null,{"$f":"IF('1. Ordersheet'!AS116=\"\",\"\",'1. Ordersheet'!AS116)","v":""},{"$f":"IF('1. Ordersheet'!AT116=\"\",\"\",'1. Ordersheet'!AT116)","v":""},null,null,null,null,null,null,null,{"$f":"IF('1. Ordersheet'!AX116=\"\",\"\",'1. Ordersheet'!AX116)","v":""},{"$f":"IF('1. Ordersheet'!AY116=\"\",\"\",'1. Ordersheet'!AY116)","v":""},{"$f":"IF('1. Ordersheet'!AZ116=\"\",\"\",'1. Ordersheet'!AZ116)","v":""},{"$f":"IF('1. Ordersheet'!BA116=\"\",\"\",'1. Ordersheet'!BA116)","v":""},{"$f":"IF('1. Ordersheet'!BC116=\"\",\"\",'1. Ordersheet'!BC116)","v":""},{"$f":"IF('1. Ordersheet'!BD116=\"\",\"\",'1. Ordersheet'!BD116)","v":""},{"$f":"IF('1. Ordersheet'!BE116=\"\",\"\",'1. Ordersheet'!BE116)","v":""},{"$f":"IF('1. Ordersheet'!BF116=\"\",\"\",'1. Ordersheet'!BF116)","v":""},{"$f":"IF('1. Ordersheet'!BG116=\"\",\"\",'1. Ordersheet'!BG116)","v":"ZWO"},{"$f":"IF('1. Ordersheet'!BH116=\"\",\"\",'1. Ordersheet'!BH116)","v":""},{"$f":"IF('1. Ordersheet'!BI116=\"\",\"\",'1. Ordersheet'!BI116)","v":""},{"$f":"IF('1. Ordersheet'!BJ116=\"\",\"\",'1. Ordersheet'!BJ116)","v":""},{"$f":"IF('1. Ordersheet'!BK116=\"\",\"\",'1. Ordersheet'!BK116)","v":""},{"$f":"IF('1. Ordersheet'!BL116=\"\",\"\",'1. Ordersheet'!BL116)","v":""}]
[{"$f":"IF('1. Ordersheet'!F117=\"\",\"\",'1. Ordersheet'!F117)","v":""},{"$f":"IF('1. Ordersheet'!G117=\"\",\"\",'1. Ordersheet'!G117)","v":""},{"$f":"IF('1. Ordersheet'!H117=\"\",\"\",'1. Ordersheet'!H117)","v":""},{"$f":"IF('1. Ordersheet'!I117=\"\",\"\",'1. Ordersheet'!I117)","v":""},{"$f":"IF('1. Ordersheet'!J117=\"\",\"\",'1. Ordersheet'!J117)","v":""},{"$f":"IF('1. Ordersheet'!K117=\"\",\"\",'1. Ordersheet'!K117)","v":""},{"$f":"IF('1. Ordersheet'!L117=\"\",\"\",'1. Ordersheet'!L117)","v":""},{"$f":"IF('1. Ordersheet'!M117=\"\",\"\",'1. Ordersheet'!M117)","v":""},{"$f":"IF('1. Ordersheet'!N117=\"\",\"\",'1. Ordersheet'!N117)","v":""},{"$f":"IF('1. Ordersheet'!O117=\"\",\"\",'1. Ordersheet'!O117)","v":{"$error":"#N/A"}},{"$f":"IF('1. Ordersheet'!P117=\"\",\"\",'1. Ordersheet'!P117)","v":{"$error":"#N/A"}},{"$f":"IF('1. Ordersheet'!Q117=\"\",\"\",'1. Ordersheet'!Q117)","v":""},{"$f":"IF('1. Ordersheet'!R117=\"\",\"\",'1. Ordersheet'!R117)","v":""},{"$f":"IF('1. Ordersheet'!S117=\"\",\"\",'1. Ordersheet'!S117)","v":""},{"$f":"IF('1. Ordersheet'!V117=\"\",\"\",'1. Ordersheet'!V117)","v":""},{"$f":"IF('1. Ordersheet'!W117=\"\",\"\",'1. Ordersheet'!W117)","v":""},{"$f":"IF('1. Ordersheet'!X117=\"\",\"\",'1. Ordersheet'!X117)","v":""},{"$f":"IF('1. Ordersheet'!Y117=\"\",\"\",'1. Ordersheet'!Y117)","v":""},{"$f":"IF('1. Ordersheet'!Z117=\"\",\"\",'1. Ordersheet'!Z117)","v":""},{"$f":"IF('1. Ordersheet'!AA117=\"\",\"\",'1. Ordersheet'!AA117)","v":""},null,{"$f":"IF('1. Ordersheet'!AS117=\"\",\"\",'1. Ordersheet'!AS117)","v":""},{"$f":"IF('1. Ordersheet'!AT117=\"\",\"\",'1. Ordersheet'!AT117)","v":""},null,null,null,null,null,null,null,{"$f":"IF('1. Ordersheet'!AX117=\"\",\"\",'1. Ordersheet'!AX117)","v":""},{"$f":"IF('1. Ordersheet'!AY117=\"\",\"\",'1. Ordersheet'!AY117)","v":""},{"$f":"IF('1. Ordersheet'!AZ117=\"\",\"\",'1. Ordersheet'!AZ117)","v":""},{"$f":"IF('1. Ordersheet'!BA117=\"\",\"\",'1. Ordersheet'!BA117)","v":""},{"$f":"IF('1. Ordersheet'!BC117=\"\",\"\",'1. Ordersheet'!BC117)","v":""},{"$f":"IF('1. Ordersheet'!BD117=\"\",\"\",'1. Ordersheet'!BD117)","v":""},{"$f":"IF('1. Ordersheet'!BE117=\"\",\"\",'1. Ordersheet'!BE117)","v":""},{"$f":"IF('1. Ordersheet'!BF117=\"\",\"\",'1. Ordersheet'!BF117)","v":""},{"$f":"IF('1. Ordersheet'!BG117=\"\",\"\",'1. Ordersheet'!BG117)","v":"ZWO"},{"$f":"IF('1. Ordersheet'!BH117=\"\",\"\",'1. Ordersheet'!BH117)","v":""},{"$f":"IF('1. Ordersheet'!BI117=\"\",\"\",'1. Ordersheet'!BI117)","v":""},{"$f":"IF('1. Ordersheet'!BJ117=\"\",\"\",'1. Ordersheet'!BJ117)","v":""},{"$f":"IF('1. Ordersheet'!BK117=\"\",\"\",'1. Ordersheet'!BK117)","v":""},{"$f":"IF('1. Ordersheet'!BL117=\"\",\"\",'1. Ordersheet'!BL117)","v":""}]
[{"$f":"IF('1. Ordersheet'!F118=\"\",\"\",'1. Ordersheet'!F118)","v":""},{"$f":"IF('1. Ordersheet'!G118=\"\",\"\",'1. Ordersheet'!G118)","v":""},{"$f":"IF('1. Ordersheet'!H118=\"\",\"\",'1. Ordersheet'!H118)","v":""},{"$f":"IF('1. Ordersheet'!I118=\"\",\"\",'1. Ordersheet'!I118)","v":""},{"$f":"IF('1. Ordersheet'!J118=\"\",\"\",'1. Ordersheet'!J118)","v":""},{"$f":"IF('1. Ordersheet'!K118=\"\",\"\",'1. Ordersheet'!K118)","v":""},{"$f":"IF('1. Ordersheet'!L118=\"\",\"\",'1. Ordersheet'!L118)","v":""},{"$f":"IF('1. Ordersheet'!M118=\"\",\"\",'1. Ordersheet'!M118)","v":""},{"$f":"IF('1. Ordersheet'!N118=\"\",\"\",'1. Ordersheet'!N118)","v":""},{"$f":"IF('1. Ordersheet'!O118=\"\",\"\",'1. Ordersheet'!O118)","v":{"$error":"#N/A"}},{"$f":"IF('1. Ordersheet'!P118=\"\",\"\",'1. Ordersheet'!P118)","v":{"$error":"#N/A"}},{"$f":"IF('1. Ordersheet'!Q118=\"\",\"\",'1. Ordersheet'!Q118)","v":""},{"$f":"IF('1. Ordersheet'!R118=\"\",\"\",'1. Ordersheet'!R118)","v":""},{"$f":"IF('1. Ordersheet'!S118=\"\",\"\",'1. Ordersheet'!S118)","v":""},{"$f":"IF('1. Ordersheet'!V118=\"\",\"\",'1. Ordersheet'!V118)","v":""},{"$f":"IF('1. Ordersheet'!W118=\"\",\"\",'1. Ordersheet'!W118)","v":""},{"$f":"IF('1. Ordersheet'!X118=\"\",\"\",'1. Ordersheet'!X118)","v":""},{"$f":"IF('1. Ordersheet'!Y118=\"\",\"\",'1. Ordersheet'!Y118)","v":""},{"$f":"IF('1. Ordersheet'!Z118=\"\",\"\",'1. Ordersheet'!Z118)","v":""},{"$f":"IF('1. Ordersheet'!AA118=\"\",\"\",'1. Ordersheet'!AA118)","v":""},null,{"$f":"IF('1. Ordersheet'!AS118=\"\",\"\",'1. Ordersheet'!AS118)","v":""},{"$f":"IF('1. Ordersheet'!AT118=\"\",\"\",'1. Ordersheet'!AT118)","v":""},null,null,null,null,null,null,null,{"$f":"IF('1. Ordersheet'!AX118=\"\",\"\",'1. Ordersheet'!AX118)","v":""},{"$f":"IF('1. Ordersheet'!AY118=\"\",\"\",'1. Ordersheet'!AY118)","v":""},{"$f":"IF('1. Ordersheet'!AZ118=\"\",\"\",'1. Ordersheet'!AZ118)","v":""},{"$f":"IF('1. Ordersheet'!BA118=\"\",\"\",'1. Ordersheet'!BA118)","v":""},{"$f":"IF('1. Ordersheet'!BC118=\"\",\"\",'1. Ordersheet'!BC118)","v":""},{"$f":"IF('1. Ordersheet'!BD118=\"\",\"\",'1. Ordersheet'!BD118)","v":""},{"$f":"IF('1. Ordersheet'!BE118=\"\",\"\",'1. Ordersheet'!BE118)","v":""},{"$f":"IF('1. Ordersheet'!BF118=\"\",\"\",'1. Ordersheet'!BF118)","v":""},{"$f":"IF('1. Ordersheet'!BG118=\"\",\"\",'1. Ordersheet'!BG118)","v":"ZWO"},{"$f":"IF('1. Ordersheet'!BH118=\"\",\"\",'1. Ordersheet'!BH118)","v":""},{"$f":"IF('1. Ordersheet'!BI118=\"\",\"\",'1. Ordersheet'!BI118)","v":""},{"$f":"IF('1. Ordersheet'!BJ118=\"\",\"\",'1. Ordersheet'!BJ118)","v":""},{"$f":"IF('1. Ordersheet'!BK118=\"\",\"\",'1. Ordersheet'!BK118)","v":""},{"$f":"IF('1. Ordersheet'!BL118=\"\",\"\",'1. Ordersheet'!BL118)","v":""}]
[{"$f":"IF('1. Ordersheet'!F119=\"\",\"\",'1. Ordersheet'!F119)","v":""},{"$f":"IF('1. Ordersheet'!G119=\"\",\"\",'1. Ordersheet'!G119)","v":""},{"$f":"IF('1. Ordersheet'!H119=\"\",\"\",'1. Ordersheet'!H119)","v":""},{"$f":"IF('1. Ordersheet'!I119=\"\",\"\",'1. Ordersheet'!I119)","v":""},{"$f":"IF('1. Ordersheet'!J119=\"\",\"\",'1. Ordersheet'!J119)","v":""},{"$f":"IF('1. Ordersheet'!K119=\"\",\"\",'1. Ordersheet'!K119)","v":""},{"$f":"IF('1. Ordersheet'!L119=\"\",\"\",'1. Ordersheet'!L119)","v":""},{"$f":"IF('1. Ordersheet'!M119=\"\",\"\",'1. Ordersheet'!M119)","v":""},{"$f":"IF('1. Ordersheet'!N119=\"\",\"\",'1. Ordersheet'!N119)","v":""},{"$f":"IF('1. Ordersheet'!O119=\"\",\"\",'1. Ordersheet'!O119)","v":{"$error":"#N/A"}},{"$f":"IF('1. Ordersheet'!P119=\"\",\"\",'1. Ordersheet'!P119)","v":{"$error":"#N/A"}},{"$f":"IF('1. Ordersheet'!Q119=\"\",\"\",'1. Ordersheet'!Q119)","v":""},{"$f":"IF('1. Ordersheet'!R119=\"\",\"\",'1. Ordersheet'!R119)","v":""},{"$f":"IF('1. Ordersheet'!S119=\"\",\"\",'1. Ordersheet'!S119)","v":""},{"$f":"IF('1. Ordersheet'!V119=\"\",\"\",'1. Ordersheet'!V119)","v":""},{"$f":"IF('1. Ordersheet'!W119=\"\",\"\",'1. Ordersheet'!W119)","v":""},{"$f":"IF('1. Ordersheet'!X119=\"\",\"\",'1. Ordersheet'!X119)","v":""},{"$f":"IF('1. Ordersheet'!Y119=\"\",\"\",'1. Ordersheet'!Y119)","v":""},{"$f":"IF('1. Ordersheet'!Z119=\"\",\"\",'1. Ordersheet'!Z119)","v":""},{"$f":"IF('1. Ordersheet'!AA119=\"\",\"\",'1. Ordersheet'!AA119)","v":""},null,{"$f":"IF('1. Ordersheet'!AS119=\"\",\"\",'1. Ordersheet'!AS119)","v":""},{"$f":"IF('1. Ordersheet'!AT119=\"\",\"\",'1. Ordersheet'!AT119)","v":""},null,null,null,null,null,null,null,{"$f":"IF('1. Ordersheet'!AX119=\"\",\"\",'1. Ordersheet'!AX119)","v":""},{"$f":"IF('1. Ordersheet'!AY119=\"\",\"\",'1. Ordersheet'!AY119)","v":""},{"$f":"IF('1. Ordersheet'!AZ119=\"\",\"\",'1. Ordersheet'!AZ119)","v":""},{"$f":"IF('1. Ordersheet'!BA119=\"\",\"\",'1. Ordersheet'!BA119)","v":""},{"$f":"IF('1. Ordersheet'!BC119=\"\",\"\",'1. Ordersheet'!BC119)","v":""},{"$f":"IF('1. Ordersheet'!BD119=\"\",\"\",'1. Ordersheet'!BD119)","v":""},{"$f":"IF('1. Ordersheet'!BE119=\"\",\"\",'1. Ordersheet'!BE119)","v":""},{"$f":"IF('1. Ordersheet'!BF119=\"\",\"\",'1. Ordersheet'!BF119)","v":""},{"$f":"IF('1. Ordersheet'!BG119=\"\",\"\",'1. Ordersheet'!BG119)","v":"ZWO"},{"$f":"IF('1. Ordersheet'!BH119=\"\",\"\",'1. Ordersheet'!BH119)","v":""},{"$f":"IF('1. Ordersheet'!BI119=\"\",\"\",'1. Ordersheet'!BI119)","v":""},{"$f":"IF('1. Ordersheet'!BJ119=\"\",\"\",'1. Ordersheet'!BJ119)","v":""},{"$f":"IF('1. Ordersheet'!BK119=\"\",\"\",'1. Ordersheet'!BK119)","v":""},{"$f":"IF('1. Ordersheet'!BL119=\"\",\"\",'1. Ordersheet'!BL119)","v":""}]
[{"$f":"IF('1. Ordersheet'!F120=\"\",\"\",'1. Ordersheet'!F120)","v":""},{"$f":"IF('1. Ordersheet'!G120=\"\",\"\",'1. Ordersheet'!G120)","v":""},{"$f":"IF('1. Ordersheet'!H120=\"\",\"\",'1. Ordersheet'!H120)","v":""},{"$f":"IF('1. Ordersheet'!I120=\"\",\"\",'1. Ordersheet'!I120)","v":""},{"$f":"IF('1. Ordersheet'!J120=\"\",\"\",'1. Ordersheet'!J120)","v":""},{"$f":"IF('1. Ordersheet'!K120=\"\",\"\",'1. Ordersheet'!K120)","v":""},{"$f":"IF('1. Ordersheet'!L120=\"\",\"\",'1. Ordersheet'!L120)","v":""},{"$f":"IF('1. Ordersheet'!M120=\"\",\"\",'1. Ordersheet'!M120)","v":""},{"$f":"IF('1. Ordersheet'!N120=\"\",\"\",'1. Ordersheet'!N120)","v":""},{"$f":"IF('1. Ordersheet'!O120=\"\",\"\",'1. Ordersheet'!O120)","v":{"$error":"#N/A"}},{"$f":"IF('1. Ordersheet'!P120=\"\",\"\",'1. Ordersheet'!P120)","v":{"$error":"#N/A"}},{"$f":"IF('1. Ordersheet'!Q120=\"\",\"\",'1. Ordersheet'!Q120)","v":""},{"$f":"IF('1. Ordersheet'!R120=\"\",\"\",'1. Ordersheet'!R120)","v":""},{"$f":"IF('1. Ordersheet'!S120=\"\",\"\",'1. Ordersheet'!S120)","v":""},{"$f":"IF('1. Ordersheet'!V120=\"\",\"\",'1. Ordersheet'!V120)","v":""},{"$f":"IF('1. Ordersheet'!W120=\"\",\"\",'1. Ordersheet'!W120)","v":""},{"$f":"IF('1. Ordersheet'!X120=\"\",\"\",'1. Ordersheet'!X120)","v":""},{"$f":"IF('1. Ordersheet'!Y120=\"\",\"\",'1. Ordersheet'!Y120)","v":""},{"$f":"IF('1. Ordersheet'!Z120=\"\",\"\",'1. Ordersheet'!Z120)","v":""},{"$f":"IF('1. Ordersheet'!AA120=\"\",\"\",'1. Ordersheet'!AA120)","v":""},null,{"$f":"IF('1. Ordersheet'!AS120=\"\",\"\",'1. Ordersheet'!AS120)","v":""},{"$f":"IF('1. Ordersheet'!AT120=\"\",\"\",'1. Ordersheet'!AT120)","v":""},null,null,null,null,null,null,null,{"$f":"IF('1. Ordersheet'!AX120=\"\",\"\",'1. Ordersheet'!AX120)","v":""},{"$f":"IF('1. Ordersheet'!AY120=\"\",\"\",'1. Ordersheet'!AY120)","v":""},{"$f":"IF('1. Ordersheet'!AZ120=\"\",\"\",'1. Ordersheet'!AZ120)","v":""},{"$f":"IF('1. Ordersheet'!BA120=\"\",\"\",'1. Ordersheet'!BA120)","v":""},{"$f":"IF('1. Ordersheet'!BC120=\"\",\"\",'1. Ordersheet'!BC120)","v":""},{"$f":"IF('1. Ordersheet'!BD120=\"\",\"\",'1. Ordersheet'!BD120)","v":""},{"$f":"IF('1. Ordersheet'!BE120=\"\",\"\",'1. Ordersheet'!BE120)","v":""},{"$f":"IF('1. Ordersheet'!BF120=\"\",\"\",'1. Ordersheet'!BF120)","v":""},{"$f":"IF('1. Ordersheet'!BG120=\"\",\"\",'1. Ordersheet'!BG120)","v":"ZWO"},{"$f":"IF('1. Ordersheet'!BH120=\"\",\"\",'1. Ordersheet'!BH120)","v":""},{"$f":"IF('1. Ordersheet'!BI120=\"\",\"\",'1. Ordersheet'!BI120)","v":""},{"$f":"IF('1. Ordersheet'!BJ120=\"\",\"\",'1. Ordersheet'!BJ120)","v":""},{"$f":"IF('1. Ordersheet'!BK120=\"\",\"\",'1. Ordersheet'!BK120)","v":""},{"$f":"IF('1. Ordersheet'!BL120=\"\",\"\",'1. Ordersheet'!BL120)","v":""}]
[{"$f":"IF('1. Ordersheet'!F121=\"\",\"\",'1. Ordersheet'!F121)","v":""},{"$f":"IF('1. Ordersheet'!G121=\"\",\"\",'1. Ordersheet'!G121)","v":""},{"$f":"IF('1. Ordersheet'!H121=\"\",\"\",'1. Ordersheet'!H121)","v":""},{"$f":"IF('1. Ordersheet'!I121=\"\",\"\",'1. Ordersheet'!I121)","v":""},{"$f":"IF('1. Ordersheet'!J121=\"\",\"\",'1. Ordersheet'!J121)","v":""},{"$f":"IF('1. Ordersheet'!K121=\"\",\"\",'1. Ordersheet'!K121)","v":""},{"$f":"IF('1. Ordersheet'!L121=\"\",\"\",'1. Ordersheet'!L121)","v":""},{"$f":"IF('1. Ordersheet'!M121=\"\",\"\",'1. Ordersheet'!M121)","v":""},{"$f":"IF('1. Ordersheet'!N121=\"\",\"\",'1. Ordersheet'!N121)","v":""},{"$f":"IF('1. Ordersheet'!O121=\"\",\"\",'1. Ordersheet'!O121)","v":{"$error":"#N/A"}},{"$f":"IF('1. Ordersheet'!P121=\"\",\"\",'1. Ordersheet'!P121)","v":{"$error":"#N/A"}},{"$f":"IF('1. Ordersheet'!Q121=\"\",\"\",'1. Ordersheet'!Q121)","v":""},{"$f":"IF('1. Ordersheet'!R121=\"\",\"\",'1. Ordersheet'!R121)","v":""},{"$f":"IF('1. Ordersheet'!S121=\"\",\"\",'1. Ordersheet'!S121)","v":""},{"$f":"IF('1. Ordersheet'!V121=\"\",\"\",'1. Ordersheet'!V121)","v":""},{"$f":"IF('1. Ordersheet'!W121=\"\",\"\",'1. Ordersheet'!W121)","v":""},{"$f":"IF('1. Ordersheet'!X121=\"\",\"\",'1. Ordersheet'!X121)","v":""},{"$f":"IF('1. Ordersheet'!Y121=\"\",\"\",'1. Ordersheet'!Y121)","v":""},{"$f":"IF('1. Ordersheet'!Z121=\"\",\"\",'1. Ordersheet'!Z121)","v":""},{"$f":"IF('1. Ordersheet'!AA121=\"\",\"\",'1. Ordersheet'!AA121)","v":""},null,{"$f":"IF('1. Ordersheet'!AS121=\"\",\"\",'1. Ordersheet'!AS121)","v":""},{"$f":"IF('1. Ordersheet'!AT121=\"\",\"\",'1. Ordersheet'!AT121)","v":""},null,null,null,null,null,null,null,{"$f":"IF('1. Ordersheet'!AX121=\"\",\"\",'1. Ordersheet'!AX121)","v":""},{"$f":"IF('1. Ordersheet'!AY121=\"\",\"\",'1. Ordersheet'!AY121)","v":""},{"$f":"IF('1. Ordersheet'!AZ121=\"\",\"\",'1. Ordersheet'!AZ121)","v":""},{"$f":"IF('1. Ordersheet'!BA121=\"\",\"\",'1. Ordersheet'!BA121)","v":""},{"$f":"IF('1. Ordersheet'!BC121=\"\",\"\",'1. Ordersheet'!BC121)","v":""},{"$f":"IF('1. Ordersheet'!BD121=\"\",\"\",'1. Ordersheet'!BD121)","v":""},{"$f":"IF('1. Ordersheet'!BE121=\"\",\"\",'1. Ordersheet'!BE121)","v":""},{"$f":"IF('1. Ordersheet'!BF121=\"\",\"\",'1. Ordersheet'!BF121)","v":""},{"$f":"IF('1. Ordersheet'!BG121=\"\",\"\",'1. Ordersheet'!BG121)","v":"ZWO"},{"$f":"IF('1. Ordersheet'!BH121=\"\",\"\",'1. Ordersheet'!BH121)","v":""},{"$f":"IF('1. Ordersheet'!BI121=\"\",\"\",'1. Ordersheet'!BI121)","v":""},{"$f":"IF('1. Ordersheet'!BJ121=\"\",\"\",'1. Ordersheet'!BJ121)","v":""},{"$f":"IF('1. Ordersheet'!BK121=\"\",\"\",'1. Ordersheet'!BK121)","v":""},{"$f":"IF('1. Ordersheet'!BL121=\"\",\"\",'1. Ordersheet'!BL121)","v":""}]
[{"$f":"IF('1. Ordersheet'!F122=\"\",\"\",'1. Ordersheet'!F122)","v":""},{"$f":"IF('1. Ordersheet'!G122=\"\",\"\",'1. Ordersheet'!G122)","v":""},{"$f":"IF('1. Ordersheet'!H122=\"\",\"\",'1. Ordersheet'!H122)","v":""},{"$f":"IF('1. Ordersheet'!I122=\"\",\"\",'1. Ordersheet'!I122)","v":""},{"$f":"IF('1. Ordersheet'!J122=\"\",\"\",'1. Ordersheet'!J122)","v":""},{"$f":"IF('1. Ordersheet'!K122=\"\",\"\",'1. Ordersheet'!K122)","v":""},{"$f":"IF('1. Ordersheet'!L122=\"\",\"\",'1. Ordersheet'!L122)","v":""},{"$f":"IF('1. Ordersheet'!M122=\"\",\"\",'1. Ordersheet'!M122)","v":""},{"$f":"IF('1. Ordersheet'!N122=\"\",\"\",'1. Ordersheet'!N122)","v":""},{"$f":"IF('1. Ordersheet'!O122=\"\",\"\",'1. Ordersheet'!O122)","v":{"$error":"#N/A"}},{"$f":"IF('1. Ordersheet'!P122=\"\",\"\",'1. Ordersheet'!P122)","v":{"$error":"#N/A"}},{"$f":"IF('1. Ordersheet'!Q122=\"\",\"\",'1. Ordersheet'!Q122)","v":""},{"$f":"IF('1. Ordersheet'!R122=\"\",\"\",'1. Ordersheet'!R122)","v":""},{"$f":"IF('1. Ordersheet'!S122=\"\",\"\",'1. Ordersheet'!S122)","v":""},{"$f":"IF('1. Ordersheet'!V122=\"\",\"\",'1. Ordersheet'!V122)","v":""},{"$f":"IF('1. Ordersheet'!W122=\"\",\"\",'1. Ordersheet'!W122)","v":""},{"$f":"IF('1. Ordersheet'!X122=\"\",\"\",'1. Ordersheet'!X122)","v":""},{"$f":"IF('1. Ordersheet'!Y122=\"\",\"\",'1. Ordersheet'!Y122)","v":""},{"$f":"IF('1. Ordersheet'!Z122=\"\",\"\",'1. Ordersheet'!Z122)","v":""},{"$f":"IF('1. Ordersheet'!AA122=\"\",\"\",'1. Ordersheet'!AA122)","v":""},null,{"$f":"IF('1. Ordersheet'!AS122=\"\",\"\",'1. Ordersheet'!AS122)","v":""},{"$f":"IF('1. Ordersheet'!AT122=\"\",\"\",'1. Ordersheet'!AT122)","v":""},null,null,null,null,null,null,null,{"$f":"IF('1. Ordersheet'!AX122=\"\",\"\",'1. Ordersheet'!AX122)","v":""},{"$f":"IF('1. Ordersheet'!AY122=\"\",\"\",'1. Ordersheet'!AY122)","v":""},{"$f":"IF('1. Ordersheet'!AZ122=\"\",\"\",'1. Ordersheet'!AZ122)","v":""},{"$f":"IF('1. Ordersheet'!BA122=\"\",\"\",'1. Ordersheet'!BA122)","v":""},{"$f":"IF('1. Ordersheet'!BC122=\"\",\"\",'1. Ordersheet'!BC122)","v":""},{"$f":"IF('1. Ordersheet'!BD122=\"\",\"\",'1. Ordersheet'!BD122)","v":""},{"$f":"IF('1. Ordersheet'!BE122=\"\",\"\",'1. Ordersheet'!BE122)","v":""},{"$f":"IF('1. Ordersheet'!BF122=\"\",\"\",'1. Ordersheet'!BF122)","v":""},{"$f":"IF('1. Ordersheet'!BG122=\"\",\"\",'1. Ordersheet'!BG122)","v":"ZWO"},{"$f":"IF('1. Ordersheet'!BH122=\"\",\"\",'1. Ordersheet'!BH122)","v":""},{"$f":"IF('1. Ordersheet'!BI122=\"\",\"\",'1. Ordersheet'!BI122)","v":""},{"$f":"IF('1. Ordersheet'!BJ122=\"\",\"\",'1. Ordersheet'!BJ122)","v":""},{"$f":"IF('1. Ordersheet'!BK122=\"\",\"\",'1. Ordersheet'!BK122)","v":""},{"$f":"IF('1. Ordersheet'!BL122=\"\",\"\",'1. Ordersheet'!BL122)","v":""}]
[{"$f":"IF('1. Ordersheet'!F123=\"\",\"\",'1. Ordersheet'!F123)","v":""},{"$f":"IF('1. Ordersheet'!G123=\"\",\"\",'1. Ordersheet'!G123)","v":""},{"$f":"IF('1. Ordersheet'!H123=\"\",\"\",'1. Ordersheet'!H123)","v":""},{"$f":"IF('1. Ordersheet'!I123=\"\",\"\",'1. Ordersheet'!I123)","v":""},{"$f":"IF('1. Ordersheet'!J123=\"\",\"\",'1. Ordersheet'!J123)","v":""},{"$f":"IF('1. Ordersheet'!K123=\"\",\"\",'1. Ordersheet'!K123)","v":""},{"$f":"IF('1. Ordersheet'!L123=\"\",\"\",'1. Ordersheet'!L123)","v":""},{"$f":"IF('1. Ordersheet'!M123=\"\",\"\",'1. Ordersheet'!M123)","v":""},{"$f":"IF('1. Ordersheet'!N123=\"\",\"\",'1. Ordersheet'!N123)","v":""},{"$f":"IF('1. Ordersheet'!O123=\"\",\"\",'1. Ordersheet'!O123)","v":{"$error":"#N/A"}},{"$f":"IF('1. Ordersheet'!P123=\"\",\"\",'1. Ordersheet'!P123)","v":{"$error":"#N/A"}},{"$f":"IF('1. Ordersheet'!Q123=\"\",\"\",'1. Ordersheet'!Q123)","v":""},{"$f":"IF('1. Ordersheet'!R123=\"\",\"\",'1. Ordersheet'!R123)","v":""},{"$f":"IF('1. Ordersheet'!S123=\"\",\"\",'1. Ordersheet'!S123)","v":""},{"$f":"IF('1. Ordersheet'!V123=\"\",\"\",'1. Ordersheet'!V123)","v":""},{"$f":"IF('1. Ordersheet'!W123=\"\",\"\",'1. Ordersheet'!W123)","v":""},{"$f":"IF('1. Ordersheet'!X123=\"\",\"\",'1. Ordersheet'!X123)","v":""},{"$f":"IF('1. Ordersheet'!Y123=\"\",\"\",'1. Ordersheet'!Y123)","v":""},{"$f":"IF('1. Ordersheet'!Z123=\"\",\"\",'1. Ordersheet'!Z123)","v":""},{"$f":"IF('1. Ordersheet'!AA123=\"\",\"\",'1. Ordersheet'!AA123)","v":""},null,{"$f":"IF('1. Ordersheet'!AS123=\"\",\"\",'1. Ordersheet'!AS123)","v":""},{"$f":"IF('1. Ordersheet'!AT123=\"\",\"\",'1. Ordersheet'!AT123)","v":""},null,null,null,null,null,null,null,{"$f":"IF('1. Ordersheet'!AX123=\"\",\"\",'1. Ordersheet'!AX123)","v":""},{"$f":"IF('1. Ordersheet'!AY123=\"\",\"\",'1. Ordersheet'!AY123)","v":""},{"$f":"IF('1. Ordersheet'!AZ123=\"\",\"\",'1. Ordersheet'!AZ123)","v":""},{"$f":"IF('1. Ordersheet'!BA123=\"\",\"\",'1. Ordersheet'!BA123)","v":""},{"$f":"IF('1. Ordersheet'!BC123=\"\",\"\",'1. Ordersheet'!BC123)","v":""},{"$f":"IF('1. Ordersheet'!BD123=\"\",\"\",'1. Ordersheet'!BD123)","v":""},{"$f":"IF('1. Ordersheet'!BE123=\"\",\"\",'1. Ordersheet'!BE123)","v":""},{"$f":"IF('1. Ordersheet'!BF123=\"\",\"\",'1. Ordersheet'!BF123)","v":""},{"$f":"IF('1. Ordersheet'!BG123=\"\",\"\",'1. Ordersheet'!BG123)","v":"ZWO"},{"$f":"IF('1. Ordersheet'!BH123=\"\",\"\",'1. Ordersheet'!BH123)","v":""},{"$f":"IF('1. Ordersheet'!BI123=\"\",\"\",'1. Ordersheet'!BI123)","v":""},{"$f":"IF('1. Ordersheet'!BJ123=\"\",\"\",'1. Ordersheet'!BJ123)","v":""},{"$f":"IF('1. Ordersheet'!BK123=\"\",\"\",'1. Ordersheet'!BK123)","v":""},{"$f":"IF('1. Ordersheet'!BL123=\"\",\"\",'1. Ordersheet'!BL123)","v":""}]
[{"$f":"IF('1. Ordersheet'!F124=\"\",\"\",'1. Ordersheet'!F124)","v":""},{"$f":"IF('1. Ordersheet'!G124=\"\",\"\",'1. Ordersheet'!G124)","v":""},{"$f":"IF('1. Ordersheet'!H124=\"\",\"\",'1. Ordersheet'!H124)","v":""},{"$f":"IF('1. Ordersheet'!I124=\"\",\"\",'1. Ordersheet'!I124)","v":""},{"$f":"IF('1. Ordersheet'!J124=\"\",\"\",'1. Ordersheet'!J124)","v":""},{"$f":"IF('1. Ordersheet'!K124=\"\",\"\",'1. Ordersheet'!K124)","v":""},{"$f":"IF('1. Ordersheet'!L124=\"\",\"\",'1. Ordersheet'!L124)","v":""},{"$f":"IF('1. Ordersheet'!M124=\"\",\"\",'1. Ordersheet'!M124)","v":""},{"$f":"IF('1. Ordersheet'!N124=\"\",\"\",'1. Ordersheet'!N124)","v":""},{"$f":"IF('1. Ordersheet'!O124=\"\",\"\",'1. Ordersheet'!O124)","v":{"$error":"#N/A"}},{"$f":"IF('1. Ordersheet'!P124=\"\",\"\",'1. Ordersheet'!P124)","v":{"$error":"#N/A"}},{"$f":"IF('1. Ordersheet'!Q124=\"\",\"\",'1. Ordersheet'!Q124)","v":""},{"$f":"IF('1. Ordersheet'!R124=\"\",\"\",'1. Ordersheet'!R124)","v":""},{"$f":"IF('1. Ordersheet'!S124=\"\",\"\",'1. Ordersheet'!S124)","v":""},{"$f":"IF('1. Ordersheet'!V124=\"\",\"\",'1. Ordersheet'!V124)","v":""},{"$f":"IF('1. Ordersheet'!W124=\"\",\"\",'1. Ordersheet'!W124)","v":""},{"$f":"IF('1. Ordersheet'!X124=\"\",\"\",'1. Ordersheet'!X124)","v":""},{"$f":"IF('1. Ordersheet'!Y124=\"\",\"\",'1. Ordersheet'!Y124)","v":""},{"$f":"IF('1. Ordersheet'!Z124=\"\",\"\",'1. Ordersheet'!Z124)","v":""},{"$f":"IF('1. Ordersheet'!AA124=\"\",\"\",'1. Ordersheet'!AA124)","v":""},null,{"$f":"IF('1. Ordersheet'!AS124=\"\",\"\",'1. Ordersheet'!AS124)","v":""},{"$f":"IF('1. Ordersheet'!AT124=\"\",\"\",'1. Ordersheet'!AT124)","v":""},null,null,null,null,null,null,null,{"$f":"IF('1. Ordersheet'!AX124=\"\",\"\",'1. Ordersheet'!AX124)","v":""},{"$f":"IF('1. Ordersheet'!AY124=\"\",\"\",'1. Ordersheet'!AY124)","v":""},{"$f":"IF('1. Ordersheet'!AZ124=\"\",\"\",'1. Ordersheet'!AZ124)","v":""},{"$f":"IF('1. Ordersheet'!BA124=\"\",\"\",'1. Ordersheet'!BA124)","v":""},{"$f":"IF('1. Ordersheet'!BC124=\"\",\"\",'1. Ordersheet'!BC124)","v":""},{"$f":"IF('1. Ordersheet'!BD124=\"\",\"\",'1. Ordersheet'!BD124)","v":""},{"$f":"IF('1. Ordersheet'!BE124=\"\",\"\",'1. Ordersheet'!BE124)","v":""},{"$f":"IF('1. Ordersheet'!BF124=\"\",\"\",'1. Ordersheet'!BF124)","v":""},{"$f":"IF('1. Ordersheet'!BG124=\"\",\"\",'1. Ordersheet'!BG124)","v":"ZWO"},{"$f":"IF('1. Ordersheet'!BH124=\"\",\"\",'1. Ordersheet'!BH124)","v":""},{"$f":"IF('1. Ordersheet'!BI124=\"\",\"\",'1. Ordersheet'!BI124)","v":""},{"$f":"IF('1. Ordersheet'!BJ124=\"\",\"\",'1. Ordersheet'!BJ124)","v":""},{"$f":"IF('1. Ordersheet'!BK124=\"\",\"\",'1. Ordersheet'!BK124)","v":""},{"$f":"IF('1. Ordersheet'!BL124=\"\",\"\",'1. Ordersheet'!BL124)","v":""}]
[{"$f":"IF('1. Ordersheet'!F125=\"\",\"\",'1. Ordersheet'!F125)","v":""},{"$f":"IF('1. Ordersheet'!G125=\"\",\"\",'1. Ordersheet'!G125)","v":""},{"$f":"IF('1. Ordersheet'!H125=\"\",\"\",'1. Ordersheet'!H125)","v":""},{"$f":"IF('1. Ordersheet'!I125=\"\",\"\",'1. Ordersheet'!I125)","v":""},{"$f":"IF('1. Ordersheet'!J125=\"\",\"\",'1. Ordersheet'!J125)","v":""},{"$f":"IF('1. Ordersheet'!K125=\"\",\"\",'1. Ordersheet'!K125)","v":""},{"$f":"IF('1. Ordersheet'!L125=\"\",\"\",'1. Ordersheet'!L125)","v":""},{"$f":"IF('1. Ordersheet'!M125=\"\",\"\",'1. Ordersheet'!M125)","v":""},{"$f":"IF('1. Ordersheet'!N125=\"\",\"\",'1. Ordersheet'!N125)","v":""},{"$f":"IF('1. Ordersheet'!O125=\"\",\"\",'1. Ordersheet'!O125)","v":{"$error":"#N/A"}},{"$f":"IF('1. Ordersheet'!P125=\"\",\"\",'1. Ordersheet'!P125)","v":{"$error":"#N/A"}},{"$f":"IF('1. Ordersheet'!Q125=\"\",\"\",'1. Ordersheet'!Q125)","v":""},{"$f":"IF('1. Ordersheet'!R125=\"\",\"\",'1. Ordersheet'!R125)","v":""},{"$f":"IF('1. Ordersheet'!S125=\"\",\"\",'1. Ordersheet'!S125)","v":""},{"$f":"IF('1. Ordersheet'!V125=\"\",\"\",'1. Ordersheet'!V125)","v":""},{"$f":"IF('1. Ordersheet'!W125=\"\",\"\",'1. Ordersheet'!W125)","v":""},{"$f":"IF('1. Ordersheet'!X125=\"\",\"\",'1. Ordersheet'!X125)","v":""},{"$f":"IF('1. Ordersheet'!Y125=\"\",\"\",'1. Ordersheet'!Y125)","v":""},{"$f":"IF('1. Ordersheet'!Z125=\"\",\"\",'1. Ordersheet'!Z125)","v":""},{"$f":"IF('1. Ordersheet'!AA125=\"\",\"\",'1. Ordersheet'!AA125)","v":""},null,{"$f":"IF('1. Ordersheet'!AS125=\"\",\"\",'1. Ordersheet'!AS125)","v":""},{"$f":"IF('1. Ordersheet'!AT125=\"\",\"\",'1. Ordersheet'!AT125)","v":""},null,null,null,null,null,null,null,{"$f":"IF('1. Ordersheet'!AX125=\"\",\"\",'1. Ordersheet'!AX125)","v":""},{"$f":"IF('1. Ordersheet'!AY125=\"\",\"\",'1. Ordersheet'!AY125)","v":""},{"$f":"IF('1. Ordersheet'!AZ125=\"\",\"\",'1. Ordersheet'!AZ125)","v":""},{"$f":"IF('1. Ordersheet'!BA125=\"\",\"\",'1. Ordersheet'!BA125)","v":""},{"$f":"IF('1. Ordersheet'!BC125=\"\",\"\",'1. Ordersheet'!BC125)","v":""},{"$f":"IF('1. Ordersheet'!BD125=\"\",\"\",'1. Ordersheet'!BD125)","v":""},{"$f":"IF('1. Ordersheet'!BE125=\"\",\"\",'1. Ordersheet'!BE125)","v":""},{"$f":"IF('1. Ordersheet'!BF125=\"\",\"\",'1. Ordersheet'!BF125)","v":""},{"$f":"IF('1. Ordersheet'!BG125=\"\",\"\",'1. Ordersheet'!BG125)","v":"ZWO"},{"$f":"IF('1. Ordersheet'!BH125=\"\",\"\",'1. Ordersheet'!BH125)","v":""},{"$f":"IF('1. Ordersheet'!BI125=\"\",\"\",'1. Ordersheet'!BI125)","v":""},{"$f":"IF('1. Ordersheet'!BJ125=\"\",\"\",'1. Ordersheet'!BJ125)","v":""},{"$f":"IF('1. Ordersheet'!BK125=\"\",\"\",'1. Ordersheet'!BK125)","v":""},{"$f":"IF('1. Ordersheet'!BL125=\"\",\"\",'1. Ordersheet'!BL125)","v":""}]
[{"$f":"IF('1. Ordersheet'!F126=\"\",\"\",'1. Ordersheet'!F126)","v":""},{"$f":"IF('1. Ordersheet'!G126=\"\",\"\",'1. Ordersheet'!G126)","v":""},{"$f":"IF('1. Ordersheet'!H126=\"\",\"\",'1. Ordersheet'!H126)","v":""},{"$f":"IF('1. Ordersheet'!I126=\"\",\"\",'1. Ordersheet'!I126)","v":""},{"$f":"IF('1. Ordersheet'!J126=\"\",\"\",'1. Ordersheet'!J126)","v":""},{"$f":"IF('1. Ordersheet'!K126=\"\",\"\",'1. Ordersheet'!K126)","v":""},{"$f":"IF('1. Ordersheet'!L126=\"\",\"\",'1. Ordersheet'!L126)","v":""},{"$f":"IF('1. Ordersheet'!M126=\"\",\"\",'1. Ordersheet'!M126)","v":""},{"$f":"IF('1. Ordersheet'!N126=\"\",\"\",'1. Ordersheet'!N126)","v":""},{"$f":"IF('1. Ordersheet'!O126=\"\",\"\",'1. Ordersheet'!O126)","v":{"$error":"#N/A"}},{"$f":"IF('1. Ordersheet'!P126=\"\",\"\",'1. Ordersheet'!P126)","v":{"$error":"#N/A"}},{"$f":"IF('1. Ordersheet'!Q126=\"\",\"\",'1. Ordersheet'!Q126)","v":""},{"$f":"IF('1. Ordersheet'!R126=\"\",\"\",'1. Ordersheet'!R126)","v":""},{"$f":"IF('1. Ordersheet'!S126=\"\",\"\",'1. Ordersheet'!S126)","v":""},{"$f":"IF('1. Ordersheet'!V126=\"\",\"\",'1. Ordersheet'!V126)","v":""},{"$f":"IF('1. Ordersheet'!W126=\"\",\"\",'1. Ordersheet'!W126)","v":""},{"$f":"IF('1. Ordersheet'!X126=\"\",\"\",'1. Ordersheet'!X126)","v":""},{"$f":"IF('1. Ordersheet'!Y126=\"\",\"\",'1. Ordersheet'!Y126)","v":""},{"$f":"IF('1. Ordersheet'!Z126=\"\",\"\",'1. Ordersheet'!Z126)","v":""},{"$f":"IF('1. Ordersheet'!AA126=\"\",\"\",'1. Ordersheet'!AA126)","v":""},null,{"$f":"IF('1. Ordersheet'!AS126=\"\",\"\",'1. Ordersheet'!AS126)","v":""},{"$f":"IF('1. Ordersheet'!AT126=\"\",\"\",'1. Ordersheet'!AT126)","v":""},null,null,null,null,null,null,null,{"$f":"IF('1. Ordersheet'!AX126=\"\",\"\",'1. Ordersheet'!AX126)","v":""},{"$f":"IF('1. Ordersheet'!AY126=\"\",\"\",'1. Ordersheet'!AY126)","v":""},{"$f":"IF('1. Ordersheet'!AZ126=\"\",\"\",'1. Ordersheet'!AZ126)","v":""},{"$f":"IF('1. Ordersheet'!BA126=\"\",\"\",'1. Ordersheet'!BA126)","v":""},{"$f":"IF('1. Ordersheet'!BC126=\"\",\"\",'1. Ordersheet'!BC126)","v":""},{"$f":"IF('1. Ordersheet'!BD126=\"\",\"\",'1. Ordersheet'!BD126)","v":""},{"$f":"IF('1. Ordersheet'!BE126=\"\",\"\",'1. Ordersheet'!BE126)","v":""},{"$f":"IF('1. Ordersheet'!BF126=\"\",\"\",'1. Ordersheet'!BF126)","v":""},{"$f":"IF('1. Ordersheet'!BG126=\"\",\"\",'1. Ordersheet'!BG126)","v":"ZWO"},{"$f":"IF('1. Ordersheet'!BH126=\"\",\"\",'1. Ordersheet'!BH126)","v":""},{"$f":"IF('1. Ordersheet'!BI126=\"\",\"\",'1. Ordersheet'!BI126)","v":""},{"$f":"IF('1. Ordersheet'!BJ126=\"\",\"\",'1. Ordersheet'!BJ126)","v":""},{"$f":"IF('1. Ordersheet'!BK126=\"\",\"\",'1. Ordersheet'!BK126)","v":""},{"$f":"IF('1. Ordersheet'!BL126=\"\",\"\",'1. Ordersheet'!BL126)","v":""}]
[{"$f":"IF('1. Ordersheet'!F127=\"\",\"\",'1. Ordersheet'!F127)","v":""},{"$f":"IF('1. Ordersheet'!G127=\"\",\"\",'1. Ordersheet'!G127)","v":""},{"$f":"IF('1. Ordersheet'!H127=\"\",\"\",'1. Ordersheet'!H127)","v":""},{"$f":"IF('1. Ordersheet'!I127=\"\",\"\",'1. Ordersheet'!I127)","v":""},{"$f":"IF('1. Ordersheet'!J127=\"\",\"\",'1. Ordersheet'!J127)","v":""},{"$f":"IF('1. Ordersheet'!K127=\"\",\"\",'1. Ordersheet'!K127)","v":""},{"$f":"IF('1. Ordersheet'!L127=\"\",\"\",'1. Ordersheet'!L127)","v":""},{"$f":"IF('1. Ordersheet'!M127=\"\",\"\",'1. Ordersheet'!M127)","v":""},{"$f":"IF('1. Ordersheet'!N127=\"\",\"\",'1. Ordersheet'!N127)","v":""},{"$f":"IF('1. Ordersheet'!O127=\"\",\"\",'1. Ordersheet'!O127)","v":{"$error":"#N/A"}},{"$f":"IF('1. Ordersheet'!P127=\"\",\"\",'1. Ordersheet'!P127)","v":{"$error":"#N/A"}},{"$f":"IF('1. Ordersheet'!Q127=\"\",\"\",'1. Ordersheet'!Q127)","v":""},{"$f":"IF('1. Ordersheet'!R127=\"\",\"\",'1. Ordersheet'!R127)","v":""},{"$f":"IF('1. Ordersheet'!S127=\"\",\"\",'1. Ordersheet'!S127)","v":""},{"$f":"IF('1. Ordersheet'!V127=\"\",\"\",'1. Ordersheet'!V127)","v":""},{"$f":"IF('1. Ordersheet'!W127=\"\",\"\",'1. Ordersheet'!W127)","v":""},{"$f":"IF('1. Ordersheet'!X127=\"\",\"\",'1. Ordersheet'!X127)","v":""},{"$f":"IF('1. Ordersheet'!Y127=\"\",\"\",'1. Ordersheet'!Y127)","v":""},{"$f":"IF('1. Ordersheet'!Z127=\"\",\"\",'1. Ordersheet'!Z127)","v":""},{"$f":"IF('1. Ordersheet'!AA127=\"\",\"\",'1. Ordersheet'!AA127)","v":""},null,{"$f":"IF('1. Ordersheet'!AS127=\"\",\"\",'1. Ordersheet'!AS127)","v":""},{"$f":"IF('1. Ordersheet'!AT127=\"\",\"\",'1. Ordersheet'!AT127)","v":""},null,null,null,null,null,null,null,{"$f":"IF('1. Ordersheet'!AX127=\"\",\"\",'1. Ordersheet'!AX127)","v":""},{"$f":"IF('1. Ordersheet'!AY127=\"\",\"\",'1. Ordersheet'!AY127)","v":""},{"$f":"IF('1. Ordersheet'!AZ127=\"\",\"\",'1. Ordersheet'!AZ127)","v":""},{"$f":"IF('1. Ordersheet'!BA127=\"\",\"\",'1. Ordersheet'!BA127)","v":""},{"$f":"IF('1. Ordersheet'!BC127=\"\",\"\",'1. Ordersheet'!BC127)","v":""},{"$f":"IF('1. Ordersheet'!BD127=\"\",\"\",'1. Ordersheet'!BD127)","v":""},{"$f":"IF('1. Ordersheet'!BE127=\"\",\"\",'1. Ordersheet'!BE127)","v":""},{"$f":"IF('1. Ordersheet'!BF127=\"\",\"\",'1. Ordersheet'!BF127)","v":""},{"$f":"IF('1. Ordersheet'!BG127=\"\",\"\",'1. Ordersheet'!BG127)","v":"ZWO"},{"$f":"IF('1. Ordersheet'!BH127=\"\",\"\",'1. Ordersheet'!BH127)","v":""},{"$f":"IF('1. Ordersheet'!BI127=\"\",\"\",'1. Ordersheet'!BI127)","v":""},{"$f":"IF('1. Ordersheet'!BJ127=\"\",\"\",'1. Ordersheet'!BJ127)","v":""},{"$f":"IF('1. Ordersheet'!BK127=\"\",\"\",'1. Ordersheet'!BK127)","v":""},{"$f":"IF('1. Ordersheet'!BL127=\"\",\"\",'1. Ordersheet'!BL127)","v":""}]
[{"$f":"IF('1. Ordersheet'!F128=\"\",\"\",'1. Ordersheet'!F128)","v":""},{"$f":"IF('1. Ordersheet'!G128=\"\",\"\",'1. Ordersheet'!G128)","v":""},{"$f":"IF('1. Ordersheet'!H128=\"\",\"\",'1. Ordersheet'!H128)","v":""},{"$f":"IF('1. Ordersheet'!I128=\"\",\"\",'1. Ordersheet'!I128)","v":""},{"$f":"IF('1. Ordersheet'!J128=\"\",\"\",'1. Ordersheet'!J128)","v":""},{"$f":"IF('1. Ordersheet'!K128=\"\",\"\",'1. Ordersheet'!K128)","v":""},{"$f":"IF('1. Ordersheet'!L128=\"\",\"\",'1. Ordersheet'!L128)","v":""},{"$f":"IF('1. Ordersheet'!M128=\"\",\"\",'1. Ordersheet'!M128)","v":""},{"$f":"IF('1. Ordersheet'!N128=\"\",\"\",'1. Ordersheet'!N128)","v":""},{"$f":"IF('1. Ordersheet'!O128=\"\",\"\",'1. Ordersheet'!O128)","v":{"$error":"#N/A"}},{"$f":"IF('1. Ordersheet'!P128=\"\",\"\",'1. Ordersheet'!P128)","v":{"$error":"#N/A"}},{"$f":"IF('1. Ordersheet'!Q128=\"\",\"\",'1. Ordersheet'!Q128)","v":""},{"$f":"IF('1. Ordersheet'!R128=\"\",\"\",'1. Ordersheet'!R128)","v":""},{"$f":"IF('1. Ordersheet'!S128=\"\",\"\",'1. Ordersheet'!S128)","v":""},{"$f":"IF('1. Ordersheet'!V128=\"\",\"\",'1. Ordersheet'!V128)","v":""},{"$f":"IF('1. Ordersheet'!W128=\"\",\"\",'1. Ordersheet'!W128)","v":""},{"$f":"IF('1. Ordersheet'!X128=\"\",\"\",'1. Ordersheet'!X128)","v":""},{"$f":"IF('1. Ordersheet'!Y128=\"\",\"\",'1. Ordersheet'!Y128)","v":""},{"$f":"IF('1. Ordersheet'!Z128=\"\",\"\",'1. Ordersheet'!Z128)","v":""},{"$f":"IF('1. Ordersheet'!AA128=\"\",\"\",'1. Ordersheet'!AA128)","v":""},null,{"$f":"IF('1. Ordersheet'!AS128=\"\",\"\",'1. Ordersheet'!AS128)","v":""},{"$f":"IF('1. Ordersheet'!AT128=\"\",\"\",'1. Ordersheet'!AT128)","v":""},null,null,null,null,null,null,null,{"$f":"IF('1. Ordersheet'!AX128=\"\",\"\",'1. Ordersheet'!AX128)","v":""},{"$f":"IF('1. Ordersheet'!AY128=\"\",\"\",'1. Ordersheet'!AY128)","v":""},{"$f":"IF('1. Ordersheet'!AZ128=\"\",\"\",'1. Ordersheet'!AZ128)","v":""},{"$f":"IF('1. Ordersheet'!BA128=\"\",\"\",'1. Ordersheet'!BA128)","v":""},{"$f":"IF('1. Ordersheet'!BC128=\"\",\"\",'1. Ordersheet'!BC128)","v":""},{"$f":"IF('1. Ordersheet'!BD128=\"\",\"\",'1. Ordersheet'!BD128)","v":""},{"$f":"IF('1. Ordersheet'!BE128=\"\",\"\",'1. Ordersheet'!BE128)","v":""},{"$f":"IF('1. Ordersheet'!BF128=\"\",\"\",'1. Ordersheet'!BF128)","v":""},{"$f":"IF('1. Ordersheet'!BG128=\"\",\"\",'1. Ordersheet'!BG128)","v":"ZWO"},{"$f":"IF('1. Ordersheet'!BH128=\"\",\"\",'1. Ordersheet'!BH128)","v":""},{"$f":"IF('1. Ordersheet'!BI128=\"\",\"\",'1. Ordersheet'!BI128)","v":""},{"$f":"IF('1. Ordersheet'!BJ128=\"\",\"\",'1. Ordersheet'!BJ128)","v":""},{"$f":"IF('1. Ordersheet'!BK128=\"\",\"\",'1. Ordersheet'!BK128)","v":""},{"$f":"IF('1. Ordersheet'!BL128=\"\",\"\",'1. Ordersheet'!BL128)","v":""}]
[{"$f":"IF('1. Ordersheet'!F129=\"\",\"\",'1. Ordersheet'!F129)","v":""},{"$f":"IF('1. Ordersheet'!G129=\"\",\"\",'1. Ordersheet'!G129)","v":""},{"$f":"IF('1. Ordersheet'!H129=\"\",\"\",'1. Ordersheet'!H129)","v":""},{"$f":"IF('1. Ordersheet'!I129=\"\",\"\",'1. Ordersheet'!I129)","v":""},{"$f":"IF('1. Ordersheet'!J129=\"\",\"\",'1. Ordersheet'!J129)","v":""},{"$f":"IF('1. Ordersheet'!K129=\"\",\"\",'1. Ordersheet'!K129)","v":""},{"$f":"IF('1. Ordersheet'!L129=\"\",\"\",'1. Ordersheet'!L129)","v":""},{"$f":"IF('1. Ordersheet'!M129=\"\",\"\",'1. Ordersheet'!M129)","v":""},{"$f":"IF('1. Ordersheet'!N129=\"\",\"\",'1. Ordersheet'!N129)","v":""},{"$f":"IF('1. Ordersheet'!O129=\"\",\"\",'1. Ordersheet'!O129)","v":{"$error":"#N/A"}},{"$f":"IF('1. Ordersheet'!P129=\"\",\"\",'1. Ordersheet'!P129)","v":{"$error":"#N/A"}},{"$f":"IF('1. Ordersheet'!Q129=\"\",\"\",'1. Ordersheet'!Q129)","v":""},{"$f":"IF('1. Ordersheet'!R129=\"\",\"\",'1. Ordersheet'!R129)","v":""},{"$f":"IF('1. Ordersheet'!S129=\"\",\"\",'1. Ordersheet'!S129)","v":""},{"$f":"IF('1. Ordersheet'!V129=\"\",\"\",'1. Ordersheet'!V129)","v":""},{"$f":"IF('1. Ordersheet'!W129=\"\",\"\",'1. Ordersheet'!W129)","v":""},{"$f":"IF('1. Ordersheet'!X129=\"\",\"\",'1. Ordersheet'!X129)","v":""},{"$f":"IF('1. Ordersheet'!Y129=\"\",\"\",'1. Ordersheet'!Y129)","v":""},{"$f":"IF('1. Ordersheet'!Z129=\"\",\"\",'1. Ordersheet'!Z129)","v":""},{"$f":"IF('1. Ordersheet'!AA129=\"\",\"\",'1. Ordersheet'!AA129)","v":""},null,{"$f":"IF('1. Ordersheet'!AS129=\"\",\"\",'1. Ordersheet'!AS129)","v":""},{"$f":"IF('1. Ordersheet'!AT129=\"\",\"\",'1. Ordersheet'!AT129)","v":""},null,null,null,null,null,null,null,{"$f":"IF('1. Ordersheet'!AX129=\"\",\"\",'1. Ordersheet'!AX129)","v":""},{"$f":"IF('1. Ordersheet'!AY129=\"\",\"\",'1. Ordersheet'!AY129)","v":""},{"$f":"IF('1. Ordersheet'!AZ129=\"\",\"\",'1. Ordersheet'!AZ129)","v":""},{"$f":"IF('1. Ordersheet'!BA129=\"\",\"\",'1. Ordersheet'!BA129)","v":""},{"$f":"IF('1. Ordersheet'!BC129=\"\",\"\",'1. Ordersheet'!BC129)","v":""},{"$f":"IF('1. Ordersheet'!BD129=\"\",\"\",'1. Ordersheet'!BD129)","v":""},{"$f":"IF('1. Ordersheet'!BE129=\"\",\"\",'1. Ordersheet'!BE129)","v":""},{"$f":"IF('1. Ordersheet'!BF129=\"\",\"\",'1. Ordersheet'!BF129)","v":""},{"$f":"IF('1. Ordersheet'!BG129=\"\",\"\",'1. Ordersheet'!BG129)","v":"ZWO"},{"$f":"IF('1. Ordersheet'!BH129=\"\",\"\",'1. Ordersheet'!BH129)","v":""},{"$f":"IF('1. Ordersheet'!BI129=\"\",\"\",'1. Ordersheet'!BI129)","v":""},{"$f":"IF('1. Ordersheet'!BJ129=\"\",\"\",'1. Ordersheet'!BJ129)","v":""},{"$f":"IF('1. Ordersheet'!BK129=\"\",\"\",'1. Ordersheet'!BK129)","v":""},{"$f":"IF('1. Ordersheet'!BL129=\"\",\"\",'1. Ordersheet'!BL129)","v":""}]
[{"$f":"IF('1. Ordersheet'!F130=\"\",\"\",'1. Ordersheet'!F130)","v":""},{"$f":"IF('1. Ordersheet'!G130=\"\",\"\",'1. Ordersheet'!G130)","v":""},{"$f":"IF('1. Ordersheet'!H130=\"\",\"\",'1. Ordersheet'!H130)","v":""},{"$f":"IF('1. Ordersheet'!I130=\"\",\"\",'1. Ordersheet'!I130)","v":""},{"$f":"IF('1. Ordersheet'!J130=\"\",\"\",'1. Ordersheet'!J130)","v":""},{"$f":"IF('1. Ordersheet'!K130=\"\",\"\",'1. Ordersheet'!K130)","v":""},{"$f":"IF('1. Ordersheet'!L130=\"\",\"\",'1. Ordersheet'!L130)","v":""},{"$f":"IF('1. Ordersheet'!M130=\"\",\"\",'1. Ordersheet'!M130)","v":""},{"$f":"IF('1. Ordersheet'!N130=\"\",\"\",'1. Ordersheet'!N130)","v":""},{"$f":"IF('1. Ordersheet'!O130=\"\",\"\",'1. Ordersheet'!O130)","v":{"$error":"#N/A"}},{"$f":"IF('1. Ordersheet'!P130=\"\",\"\",'1. Ordersheet'!P130)","v":{"$error":"#N/A"}},{"$f":"IF('1. Ordersheet'!Q130=\"\",\"\",'1. Ordersheet'!Q130)","v":""},{"$f":"IF('1. Ordersheet'!R130=\"\",\"\",'1. Ordersheet'!R130)","v":""},{"$f":"IF('1. Ordersheet'!S130=\"\",\"\",'1. Ordersheet'!S130)","v":""},{"$f":"IF('1. Ordersheet'!V130=\"\",\"\",'1. Ordersheet'!V130)","v":""},{"$f":"IF('1. Ordersheet'!W130=\"\",\"\",'1. Ordersheet'!W130)","v":""},{"$f":"IF('1. Ordersheet'!X130=\"\",\"\",'1. Ordersheet'!X130)","v":""},{"$f":"IF('1. Ordersheet'!Y130=\"\",\"\",'1. Ordersheet'!Y130)","v":""},{"$f":"IF('1. Ordersheet'!Z130=\"\",\"\",'1. Ordersheet'!Z130)","v":""},{"$f":"IF('1. Ordersheet'!AA130=\"\",\"\",'1. Ordersheet'!AA130)","v":""},null,{"$f":"IF('1. Ordersheet'!AS130=\"\",\"\",'1. Ordersheet'!AS130)","v":""},{"$f":"IF('1. Ordersheet'!AT130=\"\",\"\",'1. Ordersheet'!AT130)","v":""},null,null,null,null,null,null,null,{"$f":"IF('1. Ordersheet'!AX130=\"\",\"\",'1. Ordersheet'!AX130)","v":""},{"$f":"IF('1. Ordersheet'!AY130=\"\",\"\",'1. Ordersheet'!AY130)","v":""},{"$f":"IF('1. Ordersheet'!AZ130=\"\",\"\",'1. Ordersheet'!AZ130)","v":""},{"$f":"IF('1. Ordersheet'!BA130=\"\",\"\",'1. Ordersheet'!BA130)","v":""},{"$f":"IF('1. Ordersheet'!BC130=\"\",\"\",'1. Ordersheet'!BC130)","v":""},{"$f":"IF('1. Ordersheet'!BD130=\"\",\"\",'1. Ordersheet'!BD130)","v":""},{"$f":"IF('1. Ordersheet'!BE130=\"\",\"\",'1. Ordersheet'!BE130)","v":""},{"$f":"IF('1. Ordersheet'!BF130=\"\",\"\",'1. Ordersheet'!BF130)","v":""},{"$f":"IF('1. Ordersheet'!BG130=\"\",\"\",'1. Ordersheet'!BG130)","v":"ZWO"},{"$f":"IF('1. Ordersheet'!BH130=\"\",\"\",'1. Ordersheet'!BH130)","v":""},{"$f":"IF('1. Ordersheet'!BI130=\"\",\"\",'1. Ordersheet'!BI130)","v":""},{"$f":"IF('1. Ordersheet'!BJ130=\"\",\"\",'1. Ordersheet'!BJ130)","v":""},{"$f":"IF('1. Ordersheet'!BK130=\"\",\"\",'1. Ordersheet'!BK130)","v":""},{"$f":"IF('1. Ordersheet'!BL130=\"\",\"\",'1. Ordersheet'!BL130)","v":""}]
[{"$f":"IF('1. Ordersheet'!F131=\"\",\"\",'1. Ordersheet'!F131)","v":""},{"$f":"IF('1. Ordersheet'!G131=\"\",\"\",'1. Ordersheet'!G131)","v":""},{"$f":"IF('1. Ordersheet'!H131=\"\",\"\",'1. Ordersheet'!H131)","v":""},{"$f":"IF('1. Ordersheet'!I131=\"\",\"\",'1. Ordersheet'!I131)","v":""},{"$f":"IF('1. Ordersheet'!J131=\"\",\"\",'1. Ordersheet'!J131)","v":""},{"$f":"IF('1. Ordersheet'!K131=\"\",\"\",'1. Ordersheet'!K131)","v":""},{"$f":"IF('1. Ordersheet'!L131=\"\",\"\",'1. Ordersheet'!L131)","v":""},{"$f":"IF('1. Ordersheet'!M131=\"\",\"\",'1. Ordersheet'!M131)","v":""},{"$f":"IF('1. Ordersheet'!N131=\"\",\"\",'1. Ordersheet'!N131)","v":""},{"$f":"IF('1. Ordersheet'!O131=\"\",\"\",'1. Ordersheet'!O131)","v":{"$error":"#N/A"}},{"$f":"IF('1. Ordersheet'!P131=\"\",\"\",'1. Ordersheet'!P131)","v":{"$error":"#N/A"}},{"$f":"IF('1. Ordersheet'!Q131=\"\",\"\",'1. Ordersheet'!Q131)","v":""},{"$f":"IF('1. Ordersheet'!R131=\"\",\"\",'1. Ordersheet'!R131)","v":""},{"$f":"IF('1. Ordersheet'!S131=\"\",\"\",'1. Ordersheet'!S131)","v":""},{"$f":"IF('1. Ordersheet'!V131=\"\",\"\",'1. Ordersheet'!V131)","v":""},{"$f":"IF('1. Ordersheet'!W131=\"\",\"\",'1. Ordersheet'!W131)","v":""},{"$f":"IF('1. Ordersheet'!X131=\"\",\"\",'1. Ordersheet'!X131)","v":""},{"$f":"IF('1. Ordersheet'!Y131=\"\",\"\",'1. Ordersheet'!Y131)","v":""},{"$f":"IF('1. Ordersheet'!Z131=\"\",\"\",'1. Ordersheet'!Z131)","v":""},{"$f":"IF('1. Ordersheet'!AA131=\"\",\"\",'1. Ordersheet'!AA131)","v":""},null,{"$f":"IF('1. Ordersheet'!AS131=\"\",\"\",'1. Ordersheet'!AS131)","v":""},{"$f":"IF('1. Ordersheet'!AT131=\"\",\"\",'1. Ordersheet'!AT131)","v":""},null,null,null,null,null,null,null,{"$f":"IF('1. Ordersheet'!AX131=\"\",\"\",'1. Ordersheet'!AX131)","v":""},{"$f":"IF('1. Ordersheet'!AY131=\"\",\"\",'1. Ordersheet'!AY131)","v":""},{"$f":"IF('1. Ordersheet'!AZ131=\"\",\"\",'1. Ordersheet'!AZ131)","v":""},{"$f":"IF('1. Ordersheet'!BA131=\"\",\"\",'1. Ordersheet'!BA131)","v":""},{"$f":"IF('1. Ordersheet'!BC131=\"\",\"\",'1. Ordersheet'!BC131)","v":""},{"$f":"IF('1. Ordersheet'!BD131=\"\",\"\",'1. Ordersheet'!BD131)","v":""},{"$f":"IF('1. Ordersheet'!BE131=\"\",\"\",'1. Ordersheet'!BE131)","v":""},{"$f":"IF('1. Ordersheet'!BF131=\"\",\"\",'1. Ordersheet'!BF131)","v":""},{"$f":"IF('1. Ordersheet'!BG131=\"\",\"\",'1. Ordersheet'!BG131)","v":"ZWO"},{"$f":"IF('1. Ordersheet'!BH131=\"\",\"\",'1. Ordersheet'!BH131)","v":""},{"$f":"IF('1. Ordersheet'!BI131=\"\",\"\",'1. Ordersheet'!BI131)","v":""},{"$f":"IF('1. Ordersheet'!BJ131=\"\",\"\",'1. Ordersheet'!BJ131)","v":""},{"$f":"IF('1. Ordersheet'!BK131=\"\",\"\",'1. Ordersheet'!BK131)","v":""},{"$f":"IF('1. Ordersheet'!BL131=\"\",\"\",'1. Ordersheet'!BL131)","v":""}]
[{"$f":"IF('1. Ordersheet'!F132=\"\",\"\",'1. Ordersheet'!F132)","v":""},{"$f":"IF('1. Ordersheet'!G132=\"\",\"\",'1. Ordersheet'!G132)","v":""},{"$f":"IF('1. Ordersheet'!H132=\"\",\"\",'1. Ordersheet'!H132)","v":""},{"$f":"IF('1. Ordersheet'!I132=\"\",\"\",'1. Ordersheet'!I132)","v":""},{"$f":"IF('1. Ordersheet'!J132=\"\",\"\",'1. Ordersheet'!J132)","v":""},{"$f":"IF('1. Ordersheet'!K132=\"\",\"\",'1. Ordersheet'!K132)","v":""},{"$f":"IF('1. Ordersheet'!L132=\"\",\"\",'1. Ordersheet'!L132)","v":""},{"$f":"IF('1. Ordersheet'!M132=\"\",\"\",'1. Ordersheet'!M132)","v":""},{"$f":"IF('1. Ordersheet'!N132=\"\",\"\",'1. Ordersheet'!N132)","v":""},{"$f":"IF('1. Ordersheet'!O132=\"\",\"\",'1. Ordersheet'!O132)","v":{"$error":"#N/A"}},{"$f":"IF('1. Ordersheet'!P132=\"\",\"\",'1. Ordersheet'!P132)","v":{"$error":"#N/A"}},{"$f":"IF('1. Ordersheet'!Q132=\"\",\"\",'1. Ordersheet'!Q132)","v":""},{"$f":"IF('1. Ordersheet'!R132=\"\",\"\",'1. Ordersheet'!R132)","v":""},{"$f":"IF('1. Ordersheet'!S132=\"\",\"\",'1. Ordersheet'!S132)","v":""},{"$f":"IF('1. Ordersheet'!V132=\"\",\"\",'1. Ordersheet'!V132)","v":""},{"$f":"IF('1. Ordersheet'!W132=\"\",\"\",'1. Ordersheet'!W132)","v":""},{"$f":"IF('1. Ordersheet'!X132=\"\",\"\",'1. Ordersheet'!X132)","v":""},{"$f":"IF('1. Ordersheet'!Y132=\"\",\"\",'1. Ordersheet'!Y132)","v":""},{"$f":"IF('1. Ordersheet'!Z132=\"\",\"\",'1. Ordersheet'!Z132)","v":""},{"$f":"IF('1. Ordersheet'!AA132=\"\",\"\",'1. Ordersheet'!AA132)","v":""},null,{"$f":"IF('1. Ordersheet'!AS132=\"\",\"\",'1. Ordersheet'!AS132)","v":""},{"$f":"IF('1. Ordersheet'!AT132=\"\",\"\",'1. Ordersheet'!AT132)","v":""},null,null,null,null,null,null,null,{"$f":"IF('1. Ordersheet'!AX132=\"\",\"\",'1. Ordersheet'!AX132)","v":""},{"$f":"IF('1. Ordersheet'!AY132=\"\",\"\",'1. Ordersheet'!AY132)","v":""},{"$f":"IF('1. Ordersheet'!AZ132=\"\",\"\",'1. Ordersheet'!AZ132)","v":""},{"$f":"IF('1. Ordersheet'!BA132=\"\",\"\",'1. Ordersheet'!BA132)","v":""},{"$f":"IF('1. Ordersheet'!BC132=\"\",\"\",'1. Ordersheet'!BC132)","v":""},{"$f":"IF('1. Ordersheet'!BD132=\"\",\"\",'1. Ordersheet'!BD132)","v":""},{"$f":"IF('1. Ordersheet'!BE132=\"\",\"\",'1. Ordersheet'!BE132)","v":""},{"$f":"IF('1. Ordersheet'!BF132=\"\",\"\",'1. Ordersheet'!BF132)","v":""},{"$f":"IF('1. Ordersheet'!BG132=\"\",\"\",'1. Ordersheet'!BG132)","v":"ZWO"},{"$f":"IF('1. Ordersheet'!BH132=\"\",\"\",'1. Ordersheet'!BH132)","v":""},{"$f":"IF('1. Ordersheet'!BI132=\"\",\"\",'1. Ordersheet'!BI132)","v":""},{"$f":"IF('1. Ordersheet'!BJ132=\"\",\"\",'1. Ordersheet'!BJ132)","v":""},{"$f":"IF('1. Ordersheet'!BK132=\"\",\"\",'1. Ordersheet'!BK132)","v":""},{"$f":"IF('1. Ordersheet'!BL132=\"\",\"\",'1. Ordersheet'!BL132)","v":""}]
[{"$f":"IF('1. Ordersheet'!F133=\"\",\"\",'1. Ordersheet'!F133)","v":""},{"$f":"IF('1. Ordersheet'!G133=\"\",\"\",'1. Ordersheet'!G133)","v":""},{"$f":"IF('1. Ordersheet'!H133=\"\",\"\",'1. Ordersheet'!H133)","v":""},{"$f":"IF('1. Ordersheet'!I133=\"\",\"\",'1. Ordersheet'!I133)","v":""},{"$f":"IF('1. Ordersheet'!J133=\"\",\"\",'1. Ordersheet'!J133)","v":""},{"$f":"IF('1. Ordersheet'!K133=\"\",\"\",'1. Ordersheet'!K133)","v":""},{"$f":"IF('1. Ordersheet'!L133=\"\",\"\",'1. Ordersheet'!L133)","v":""},{"$f":"IF('1. Ordersheet'!M133=\"\",\"\",'1. Ordersheet'!M133)","v":""},{"$f":"IF('1. Ordersheet'!N133=\"\",\"\",'1. Ordersheet'!N133)","v":""},{"$f":"IF('1. Ordersheet'!O133=\"\",\"\",'1. Ordersheet'!O133)","v":{"$error":"#N/A"}},{"$f":"IF('1. Ordersheet'!P133=\"\",\"\",'1. Ordersheet'!P133)","v":{"$error":"#N/A"}},{"$f":"IF('1. Ordersheet'!Q133=\"\",\"\",'1. Ordersheet'!Q133)","v":""},{"$f":"IF('1. Ordersheet'!R133=\"\",\"\",'1. Ordersheet'!R133)","v":""},{"$f":"IF('1. Ordersheet'!S133=\"\",\"\",'1. Ordersheet'!S133)","v":""},{"$f":"IF('1. Ordersheet'!V133=\"\",\"\",'1. Ordersheet'!V133)","v":""},{"$f":"IF('1. Ordersheet'!W133=\"\",\"\",'1. Ordersheet'!W133)","v":""},{"$f":"IF('1. Ordersheet'!X133=\"\",\"\",'1. Ordersheet'!X133)","v":""},{"$f":"IF('1. Ordersheet'!Y133=\"\",\"\",'1. Ordersheet'!Y133)","v":""},{"$f":"IF('1. Ordersheet'!Z133=\"\",\"\",'1. Ordersheet'!Z133)","v":""},{"$f":"IF('1. Ordersheet'!AA133=\"\",\"\",'1. Ordersheet'!AA133)","v":""},null,{"$f":"IF('1. Ordersheet'!AS133=\"\",\"\",'1. Ordersheet'!AS133)","v":""},{"$f":"IF('1. Ordersheet'!AT133=\"\",\"\",'1. Ordersheet'!AT133)","v":""},null,null,null,null,null,null,null,{"$f":"IF('1. Ordersheet'!AX133=\"\",\"\",'1. Ordersheet'!AX133)","v":""},{"$f":"IF('1. Ordersheet'!AY133=\"\",\"\",'1. Ordersheet'!AY133)","v":""},{"$f":"IF('1. Ordersheet'!AZ133=\"\",\"\",'1. Ordersheet'!AZ133)","v":""},{"$f":"IF('1. Ordersheet'!BA133=\"\",\"\",'1. Ordersheet'!BA133)","v":""},{"$f":"IF('1. Ordersheet'!BC133=\"\",\"\",'1. Ordersheet'!BC133)","v":""},{"$f":"IF('1. Ordersheet'!BD133=\"\",\"\",'1. Ordersheet'!BD133)","v":""},{"$f":"IF('1. Ordersheet'!BE133=\"\",\"\",'1. Ordersheet'!BE133)","v":""},{"$f":"IF('1. Ordersheet'!BF133=\"\",\"\",'1. Ordersheet'!BF133)","v":""},{"$f":"IF('1. Ordersheet'!BG133=\"\",\"\",'1. Ordersheet'!BG133)","v":"ZWO"},{"$f":"IF('1. Ordersheet'!BH133=\"\",\"\",'1. Ordersheet'!BH133)","v":""},{"$f":"IF('1. Ordersheet'!BI133=\"\",\"\",'1. Ordersheet'!BI133)","v":""},{"$f":"IF('1. Ordersheet'!BJ133=\"\",\"\",'1. Ordersheet'!BJ133)","v":""},{"$f":"IF('1. Ordersheet'!BK133=\"\",\"\",'1. Ordersheet'!BK133)","v":""},{"$f":"IF('1. Ordersheet'!BL133=\"\",\"\",'1. Ordersheet'!BL133)","v":""}]
[{"$f":"IF('1. Ordersheet'!F134=\"\",\"\",'1. Ordersheet'!F134)","v":""},{"$f":"IF('1. Ordersheet'!G134=\"\",\"\",'1. Ordersheet'!G134)","v":""},{"$f":"IF('1. Ordersheet'!H134=\"\",\"\",'1. Ordersheet'!H134)","v":""},{"$f":"IF('1. Ordersheet'!I134=\"\",\"\",'1. Ordersheet'!I134)","v":""},{"$f":"IF('1. Ordersheet'!J134=\"\",\"\",'1. Ordersheet'!J134)","v":""},{"$f":"IF('1. Ordersheet'!K134=\"\",\"\",'1. Ordersheet'!K134)","v":""},{"$f":"IF('1. Ordersheet'!L134=\"\",\"\",'1. Ordersheet'!L134)","v":""},{"$f":"IF('1. Ordersheet'!M134=\"\",\"\",'1. Ordersheet'!M134)","v":""},{"$f":"IF('1. Ordersheet'!N134=\"\",\"\",'1. Ordersheet'!N134)","v":""},{"$f":"IF('1. Ordersheet'!O134=\"\",\"\",'1. Ordersheet'!O134)","v":{"$error":"#N/A"}},{"$f":"IF('1. Ordersheet'!P134=\"\",\"\",'1. Ordersheet'!P134)","v":{"$error":"#N/A"}},{"$f":"IF('1. Ordersheet'!Q134=\"\",\"\",'1. Ordersheet'!Q134)","v":""},{"$f":"IF('1. Ordersheet'!R134=\"\",\"\",'1. Ordersheet'!R134)","v":""},{"$f":"IF('1. Ordersheet'!S134=\"\",\"\",'1. Ordersheet'!S134)","v":""},{"$f":"IF('1. Ordersheet'!V134=\"\",\"\",'1. Ordersheet'!V134)","v":""},{"$f":"IF('1. Ordersheet'!W134=\"\",\"\",'1. Ordersheet'!W134)","v":""},{"$f":"IF('1. Ordersheet'!X134=\"\",\"\",'1. Ordersheet'!X134)","v":""},{"$f":"IF('1. Ordersheet'!Y134=\"\",\"\",'1. Ordersheet'!Y134)","v":""},{"$f":"IF('1. Ordersheet'!Z134=\"\",\"\",'1. Ordersheet'!Z134)","v":""},{"$f":"IF('1. Ordersheet'!AA134=\"\",\"\",'1. Ordersheet'!AA134)","v":""},null,{"$f":"IF('1. Ordersheet'!AS134=\"\",\"\",'1. Ordersheet'!AS134)","v":""},{"$f":"IF('1. Ordersheet'!AT134=\"\",\"\",'1. Ordersheet'!AT134)","v":""},null,null,null,null,null,null,null,{"$f":"IF('1. Ordersheet'!AX134=\"\",\"\",'1. Ordersheet'!AX134)","v":""},{"$f":"IF('1. Ordersheet'!AY134=\"\",\"\",'1. Ordersheet'!AY134)","v":""},{"$f":"IF('1. Ordersheet'!AZ134=\"\",\"\",'1. Ordersheet'!AZ134)","v":""},{"$f":"IF('1. Ordersheet'!BA134=\"\",\"\",'1. Ordersheet'!BA134)","v":""},{"$f":"IF('1. Ordersheet'!BC134=\"\",\"\",'1. Ordersheet'!BC134)","v":""},{"$f":"IF('1. Ordersheet'!BD134=\"\",\"\",'1. Ordersheet'!BD134)","v":""},{"$f":"IF('1. Ordersheet'!BE134=\"\",\"\",'1. Ordersheet'!BE134)","v":""},{"$f":"IF('1. Ordersheet'!BF134=\"\",\"\",'1. Ordersheet'!BF134)","v":""},{"$f":"IF('1. Ordersheet'!BG134=\"\",\"\",'1. Ordersheet'!BG134)","v":"ZWO"},{"$f":"IF('1. Ordersheet'!BH134=\"\",\"\",'1. Ordersheet'!BH134)","v":""},{"$f":"IF('1. Ordersheet'!BI134=\"\",\"\",'1. Ordersheet'!BI134)","v":""},{"$f":"IF('1. Ordersheet'!BJ134=\"\",\"\",'1. Ordersheet'!BJ134)","v":""},{"$f":"IF('1. Ordersheet'!BK134=\"\",\"\",'1. Ordersheet'!BK134)","v":""},{"$f":"IF('1. Ordersheet'!BL134=\"\",\"\",'1. Ordersheet'!BL134)","v":""}]
[{"$f":"IF('1. Ordersheet'!F135=\"\",\"\",'1. Ordersheet'!F135)","v":""},{"$f":"IF('1. Ordersheet'!G135=\"\",\"\",'1. Ordersheet'!G135)","v":""},{"$f":"IF('1. Ordersheet'!H135=\"\",\"\",'1. Ordersheet'!H135)","v":""},{"$f":"IF('1. Ordersheet'!I135=\"\",\"\",'1. Ordersheet'!I135)","v":""},{"$f":"IF('1. Ordersheet'!J135=\"\",\"\",'1. Ordersheet'!J135)","v":""},{"$f":"IF('1. Ordersheet'!K135=\"\",\"\",'1. Ordersheet'!K135)","v":""},{"$f":"IF('1. Ordersheet'!L135=\"\",\"\",'1. Ordersheet'!L135)","v":""},{"$f":"IF('1. Ordersheet'!M135=\"\",\"\",'1. Ordersheet'!M135)","v":""},{"$f":"IF('1. Ordersheet'!N135=\"\",\"\",'1. Ordersheet'!N135)","v":""},{"$f":"IF('1. Ordersheet'!O135=\"\",\"\",'1. Ordersheet'!O135)","v":{"$error":"#N/A"}},{"$f":"IF('1. Ordersheet'!P135=\"\",\"\",'1. Ordersheet'!P135)","v":{"$error":"#N/A"}},{"$f":"IF('1. Ordersheet'!Q135=\"\",\"\",'1. Ordersheet'!Q135)","v":""},{"$f":"IF('1. Ordersheet'!R135=\"\",\"\",'1. Ordersheet'!R135)","v":""},{"$f":"IF('1. Ordersheet'!S135=\"\",\"\",'1. Ordersheet'!S135)","v":""},{"$f":"IF('1. Ordersheet'!V135=\"\",\"\",'1. Ordersheet'!V135)","v":""},{"$f":"IF('1. Ordersheet'!W135=\"\",\"\",'1. Ordersheet'!W135)","v":""},{"$f":"IF('1. Ordersheet'!X135=\"\",\"\",'1. Ordersheet'!X135)","v":""},{"$f":"IF('1. Ordersheet'!Y135=\"\",\"\",'1. Ordersheet'!Y135)","v":""},{"$f":"IF('1. Ordersheet'!Z135=\"\",\"\",'1. Ordersheet'!Z135)","v":""},{"$f":"IF('1. Ordersheet'!AA135=\"\",\"\",'1. Ordersheet'!AA135)","v":""},null,{"$f":"IF('1. Ordersheet'!AS135=\"\",\"\",'1. Ordersheet'!AS135)","v":""},{"$f":"IF('1. Ordersheet'!AT135=\"\",\"\",'1. Ordersheet'!AT135)","v":""},null,null,null,null,null,null,null,{"$f":"IF('1. Ordersheet'!AX135=\"\",\"\",'1. Ordersheet'!AX135)","v":""},{"$f":"IF('1. Ordersheet'!AY135=\"\",\"\",'1. Ordersheet'!AY135)","v":""},{"$f":"IF('1. Ordersheet'!AZ135=\"\",\"\",'1. Ordersheet'!AZ135)","v":""},{"$f":"IF('1. Ordersheet'!BA135=\"\",\"\",'1. Ordersheet'!BA135)","v":""},{"$f":"IF('1. Ordersheet'!BC135=\"\",\"\",'1. Ordersheet'!BC135)","v":""},{"$f":"IF('1. Ordersheet'!BD135=\"\",\"\",'1. Ordersheet'!BD135)","v":""},{"$f":"IF('1. Ordersheet'!BE135=\"\",\"\",'1. Ordersheet'!BE135)","v":""},{"$f":"IF('1. Ordersheet'!BF135=\"\",\"\",'1. Ordersheet'!BF135)","v":""},{"$f":"IF('1. Ordersheet'!BG135=\"\",\"\",'1. Ordersheet'!BG135)","v":"ZWO"},{"$f":"IF('1. Ordersheet'!BH135=\"\",\"\",'1. Ordersheet'!BH135)","v":""},{"$f":"IF('1. Ordersheet'!BI135=\"\",\"\",'1. Ordersheet'!BI135)","v":""},{"$f":"IF('1. Ordersheet'!BJ135=\"\",\"\",'1. Ordersheet'!BJ135)","v":""},{"$f":"IF('1. Ordersheet'!BK135=\"\",\"\",'1. Ordersheet'!BK135)","v":""},{"$f":"IF('1. Ordersheet'!BL135=\"\",\"\",'1. Ordersheet'!BL135)","v":""}]
[{"$f":"IF('1. Ordersheet'!F136=\"\",\"\",'1. Ordersheet'!F136)","v":""},{"$f":"IF('1. Ordersheet'!G136=\"\",\"\",'1. Ordersheet'!G136)","v":""},{"$f":"IF('1. Ordersheet'!H136=\"\",\"\",'1. Ordersheet'!H136)","v":""},{"$f":"IF('1. Ordersheet'!I136=\"\",\"\",'1. Ordersheet'!I136)","v":""},{"$f":"IF('1. Ordersheet'!J136=\"\",\"\",'1. Ordersheet'!J136)","v":""},{"$f":"IF('1. Ordersheet'!K136=\"\",\"\",'1. Ordersheet'!K136)","v":""},{"$f":"IF('1. Ordersheet'!L136=\"\",\"\",'1. Ordersheet'!L136)","v":""},{"$f":"IF('1. Ordersheet'!M136=\"\",\"\",'1. Ordersheet'!M136)","v":""},{"$f":"IF('1. Ordersheet'!N136=\"\",\"\",'1. Ordersheet'!N136)","v":""},{"$f":"IF('1. Ordersheet'!O136=\"\",\"\",'1. Ordersheet'!O136)","v":{"$error":"#N/A"}},{"$f":"IF('1. Ordersheet'!P136=\"\",\"\",'1. Ordersheet'!P136)","v":{"$error":"#N/A"}},{"$f":"IF('1. Ordersheet'!Q136=\"\",\"\",'1. Ordersheet'!Q136)","v":""},{"$f":"IF('1. Ordersheet'!R136=\"\",\"\",'1. Ordersheet'!R136)","v":""},{"$f":"IF('1. Ordersheet'!S136=\"\",\"\",'1. Ordersheet'!S136)","v":""},{"$f":"IF('1. Ordersheet'!V136=\"\",\"\",'1. Ordersheet'!V136)","v":""},{"$f":"IF('1. Ordersheet'!W136=\"\",\"\",'1. Ordersheet'!W136)","v":""},{"$f":"IF('1. Ordersheet'!X136=\"\",\"\",'1. Ordersheet'!X136)","v":""},{"$f":"IF('1. Ordersheet'!Y136=\"\",\"\",'1. Ordersheet'!Y136)","v":""},{"$f":"IF('1. Ordersheet'!Z136=\"\",\"\",'1. Ordersheet'!Z136)","v":""},{"$f":"IF('1. Ordersheet'!AA136=\"\",\"\",'1. Ordersheet'!AA136)","v":""},null,{"$f":"IF('1. Ordersheet'!AS136=\"\",\"\",'1. Ordersheet'!AS136)","v":""},{"$f":"IF('1. Ordersheet'!AT136=\"\",\"\",'1. Ordersheet'!AT136)","v":""},null,null,null,null,null,null,null,{"$f":"IF('1. Ordersheet'!AX136=\"\",\"\",'1. Ordersheet'!AX136)","v":""},{"$f":"IF('1. Ordersheet'!AY136=\"\",\"\",'1. Ordersheet'!AY136)","v":""},{"$f":"IF('1. Ordersheet'!AZ136=\"\",\"\",'1. Ordersheet'!AZ136)","v":""},{"$f":"IF('1. Ordersheet'!BA136=\"\",\"\",'1. Ordersheet'!BA136)","v":""},{"$f":"IF('1. Ordersheet'!BC136=\"\",\"\",'1. Ordersheet'!BC136)","v":""},{"$f":"IF('1. Ordersheet'!BD136=\"\",\"\",'1. Ordersheet'!BD136)","v":""},{"$f":"IF('1. Ordersheet'!BE136=\"\",\"\",'1. Ordersheet'!BE136)","v":""},{"$f":"IF('1. Ordersheet'!BF136=\"\",\"\",'1. Ordersheet'!BF136)","v":""},{"$f":"IF('1. Ordersheet'!BG136=\"\",\"\",'1. Ordersheet'!BG136)","v":"ZWO"},{"$f":"IF('1. Ordersheet'!BH136=\"\",\"\",'1. Ordersheet'!BH136)","v":""},{"$f":"IF('1. Ordersheet'!BI136=\"\",\"\",'1. Ordersheet'!BI136)","v":""},{"$f":"IF('1. Ordersheet'!BJ136=\"\",\"\",'1. Ordersheet'!BJ136)","v":""},{"$f":"IF('1. Ordersheet'!BK136=\"\",\"\",'1. Ordersheet'!BK136)","v":""},{"$f":"IF('1. Ordersheet'!BL136=\"\",\"\",'1. Ordersheet'!BL136)","v":""}]
[{"$f":"IF('1. Ordersheet'!F137=\"\",\"\",'1. Ordersheet'!F137)","v":""},{"$f":"IF('1. Ordersheet'!G137=\"\",\"\",'1. Ordersheet'!G137)","v":""},{"$f":"IF('1. Ordersheet'!H137=\"\",\"\",'1. Ordersheet'!H137)","v":""},{"$f":"IF('1. Ordersheet'!I137=\"\",\"\",'1. Ordersheet'!I137)","v":""},{"$f":"IF('1. Ordersheet'!J137=\"\",\"\",'1. Ordersheet'!J137)","v":""},{"$f":"IF('1. Ordersheet'!K137=\"\",\"\",'1. Ordersheet'!K137)","v":""},{"$f":"IF('1. Ordersheet'!L137=\"\",\"\",'1. Ordersheet'!L137)","v":""},{"$f":"IF('1. Ordersheet'!M137=\"\",\"\",'1. Ordersheet'!M137)","v":""},{"$f":"IF('1. Ordersheet'!N137=\"\",\"\",'1. Ordersheet'!N137)","v":""},{"$f":"IF('1. Ordersheet'!O137=\"\",\"\",'1. Ordersheet'!O137)","v":{"$error":"#N/A"}},{"$f":"IF('1. Ordersheet'!P137=\"\",\"\",'1. Ordersheet'!P137)","v":{"$error":"#N/A"}},{"$f":"IF('1. Ordersheet'!Q137=\"\",\"\",'1. Ordersheet'!Q137)","v":""},{"$f":"IF('1. Ordersheet'!R137=\"\",\"\",'1. Ordersheet'!R137)","v":""},{"$f":"IF('1. Ordersheet'!S137=\"\",\"\",'1. Ordersheet'!S137)","v":""},{"$f":"IF('1. Ordersheet'!V137=\"\",\"\",'1. Ordersheet'!V137)","v":""},{"$f":"IF('1. Ordersheet'!W137=\"\",\"\",'1. Ordersheet'!W137)","v":""},{"$f":"IF('1. Ordersheet'!X137=\"\",\"\",'1. Ordersheet'!X137)","v":""},{"$f":"IF('1. Ordersheet'!Y137=\"\",\"\",'1. Ordersheet'!Y137)","v":""},{"$f":"IF('1. Ordersheet'!Z137=\"\",\"\",'1. Ordersheet'!Z137)","v":""},{"$f":"IF('1. Ordersheet'!AA137=\"\",\"\",'1. Ordersheet'!AA137)","v":""},null,{"$f":"IF('1. Ordersheet'!AS137=\"\",\"\",'1. Ordersheet'!AS137)","v":""},{"$f":"IF('1. Ordersheet'!AT137=\"\",\"\",'1. Ordersheet'!AT137)","v":""},null,null,null,null,null,null,null,{"$f":"IF('1. Ordersheet'!AX137=\"\",\"\",'1. Ordersheet'!AX137)","v":""},{"$f":"IF('1. Ordersheet'!AY137=\"\",\"\",'1. Ordersheet'!AY137)","v":""},{"$f":"IF('1. Ordersheet'!AZ137=\"\",\"\",'1. Ordersheet'!AZ137)","v":""},{"$f":"IF('1. Ordersheet'!BA137=\"\",\"\",'1. Ordersheet'!BA137)","v":""},{"$f":"IF('1. Ordersheet'!BC137=\"\",\"\",'1. Ordersheet'!BC137)","v":""},{"$f":"IF('1. Ordersheet'!BD137=\"\",\"\",'1. Ordersheet'!BD137)","v":""},{"$f":"IF('1. Ordersheet'!BE137=\"\",\"\",'1. Ordersheet'!BE137)","v":""},{"$f":"IF('1. Ordersheet'!BF137=\"\",\"\",'1. Ordersheet'!BF137)","v":""},{"$f":"IF('1. Ordersheet'!BG137=\"\",\"\",'1. Ordersheet'!BG137)","v":"ZWO"},{"$f":"IF('1. Ordersheet'!BH137=\"\",\"\",'1. Ordersheet'!BH137)","v":""},{"$f":"IF('1. Ordersheet'!BI137=\"\",\"\",'1. Ordersheet'!BI137)","v":""},{"$f":"IF('1. Ordersheet'!BJ137=\"\",\"\",'1. Ordersheet'!BJ137)","v":""},{"$f":"IF('1. Ordersheet'!BK137=\"\",\"\",'1. Ordersheet'!BK137)","v":""},{"$f":"IF('1. Ordersheet'!BL137=\"\",\"\",'1. Ordersheet'!BL137)","v":""}]
[{"$f":"IF('1. Ordersheet'!F138=\"\",\"\",'1. Ordersheet'!F138)","v":""},{"$f":"IF('1. Ordersheet'!G138=\"\",\"\",'1. Ordersheet'!G138)","v":""},{"$f":"IF('1. Ordersheet'!H138=\"\",\"\",'1. Ordersheet'!H138)","v":""},{"$f":"IF('1. Ordersheet'!I138=\"\",\"\",'1. Ordersheet'!I138)","v":""},{"$f":"IF('1. Ordersheet'!J138=\"\",\"\",'1. Ordersheet'!J138)","v":""},{"$f":"IF('1. Ordersheet'!K138=\"\",\"\",'1. Ordersheet'!K138)","v":""},{"$f":"IF('1. Ordersheet'!L138=\"\",\"\",'1. Ordersheet'!L138)","v":""},{"$f":"IF('1. Ordersheet'!M138=\"\",\"\",'1. Ordersheet'!M138)","v":""},{"$f":"IF('1. Ordersheet'!N138=\"\",\"\",'1. Ordersheet'!N138)","v":""},{"$f":"IF('1. Ordersheet'!O138=\"\",\"\",'1. Ordersheet'!O138)","v":{"$error":"#N/A"}},{"$f":"IF('1. Ordersheet'!P138=\"\",\"\",'1. Ordersheet'!P138)","v":{"$error":"#N/A"}},{"$f":"IF('1. Ordersheet'!Q138=\"\",\"\",'1. Ordersheet'!Q138)","v":""},{"$f":"IF('1. Ordersheet'!R138=\"\",\"\",'1. Ordersheet'!R138)","v":""},{"$f":"IF('1. Ordersheet'!S138=\"\",\"\",'1. Ordersheet'!S138)","v":""},{"$f":"IF('1. Ordersheet'!V138=\"\",\"\",'1. Ordersheet'!V138)","v":""},{"$f":"IF('1. Ordersheet'!W138=\"\",\"\",'1. Ordersheet'!W138)","v":""},{"$f":"IF('1. Ordersheet'!X138=\"\",\"\",'1. Ordersheet'!X138)","v":""},{"$f":"IF('1. Ordersheet'!Y138=\"\",\"\",'1. Ordersheet'!Y138)","v":""},{"$f":"IF('1. Ordersheet'!Z138=\"\",\"\",'1. Ordersheet'!Z138)","v":""},{"$f":"IF('1. Ordersheet'!AA138=\"\",\"\",'1. Ordersheet'!AA138)","v":""},null,{"$f":"IF('1. Ordersheet'!AS138=\"\",\"\",'1. Ordersheet'!AS138)","v":""},{"$f":"IF('1. Ordersheet'!AT138=\"\",\"\",'1. Ordersheet'!AT138)","v":""},null,null,null,null,null,null,null,{"$f":"IF('1. Ordersheet'!AX138=\"\",\"\",'1. Ordersheet'!AX138)","v":""},{"$f":"IF('1. Ordersheet'!AY138=\"\",\"\",'1. Ordersheet'!AY138)","v":""},{"$f":"IF('1. Ordersheet'!AZ138=\"\",\"\",'1. Ordersheet'!AZ138)","v":""},{"$f":"IF('1. Ordersheet'!BA138=\"\",\"\",'1. Ordersheet'!BA138)","v":""},{"$f":"IF('1. Ordersheet'!BC138=\"\",\"\",'1. Ordersheet'!BC138)","v":""},{"$f":"IF('1. Ordersheet'!BD138=\"\",\"\",'1. Ordersheet'!BD138)","v":""},{"$f":"IF('1. Ordersheet'!BE138=\"\",\"\",'1. Ordersheet'!BE138)","v":""},{"$f":"IF('1. Ordersheet'!BF138=\"\",\"\",'1. Ordersheet'!BF138)","v":""},{"$f":"IF('1. Ordersheet'!BG138=\"\",\"\",'1. Ordersheet'!BG138)","v":"ZWO"},{"$f":"IF('1. Ordersheet'!BH138=\"\",\"\",'1. Ordersheet'!BH138)","v":""},{"$f":"IF('1. Ordersheet'!BI138=\"\",\"\",'1. Ordersheet'!BI138)","v":""},{"$f":"IF('1. Ordersheet'!BJ138=\"\",\"\",'1. Ordersheet'!BJ138)","v":""},{"$f":"IF('1. Ordersheet'!BK138=\"\",\"\",'1. Ordersheet'!BK138)","v":""},{"$f":"IF('1. Ordersheet'!BL138=\"\",\"\",'1. Ordersheet'!BL138)","v":""}]
[{"$f":"IF('1. Ordersheet'!F139=\"\",\"\",'1. Ordersheet'!F139)","v":""},{"$f":"IF('1. Ordersheet'!G139=\"\",\"\",'1. Ordersheet'!G139)","v":""},{"$f":"IF('1. Ordersheet'!H139=\"\",\"\",'1. Ordersheet'!H139)","v":""},{"$f":"IF('1. Ordersheet'!I139=\"\",\"\",'1. Ordersheet'!I139)","v":""},{"$f":"IF('1. Ordersheet'!J139=\"\",\"\",'1. Ordersheet'!J139)","v":""},{"$f":"IF('1. Ordersheet'!K139=\"\",\"\",'1. Ordersheet'!K139)","v":""},{"$f":"IF('1. Ordersheet'!L139=\"\",\"\",'1. Ordersheet'!L139)","v":""},{"$f":"IF('1. Ordersheet'!M139=\"\",\"\",'1. Ordersheet'!M139)","v":""},{"$f":"IF('1. Ordersheet'!N139=\"\",\"\",'1. Ordersheet'!N139)","v":""},{"$f":"IF('1. Ordersheet'!O139=\"\",\"\",'1. Ordersheet'!O139)","v":{"$error":"#N/A"}},{"$f":"IF('1. Ordersheet'!P139=\"\",\"\",'1. Ordersheet'!P139)","v":{"$error":"#N/A"}},{"$f":"IF('1. Ordersheet'!Q139=\"\",\"\",'1. Ordersheet'!Q139)","v":""},{"$f":"IF('1. Ordersheet'!R139=\"\",\"\",'1. Ordersheet'!R139)","v":""},{"$f":"IF('1. Ordersheet'!S139=\"\",\"\",'1. Ordersheet'!S139)","v":""},{"$f":"IF('1. Ordersheet'!V139=\"\",\"\",'1. Ordersheet'!V139)","v":""},{"$f":"IF('1. Ordersheet'!W139=\"\",\"\",'1. Ordersheet'!W139)","v":""},{"$f":"IF('1. Ordersheet'!X139=\"\",\"\",'1. Ordersheet'!X139)","v":""},{"$f":"IF('1. Ordersheet'!Y139=\"\",\"\",'1. Ordersheet'!Y139)","v":""},{"$f":"IF('1. Ordersheet'!Z139=\"\",\"\",'1. Ordersheet'!Z139)","v":""},{"$f":"IF('1. Ordersheet'!AA139=\"\",\"\",'1. Ordersheet'!AA139)","v":""},null,{"$f":"IF('1. Ordersheet'!AS139=\"\",\"\",'1. Ordersheet'!AS139)","v":""},{"$f":"IF('1. Ordersheet'!AT139=\"\",\"\",'1. Ordersheet'!AT139)","v":""},null,null,null,null,null,null,null,{"$f":"IF('1. Ordersheet'!AX139=\"\",\"\",'1. Ordersheet'!AX139)","v":""},{"$f":"IF('1. Ordersheet'!AY139=\"\",\"\",'1. Ordersheet'!AY139)","v":""},{"$f":"IF('1. Ordersheet'!AZ139=\"\",\"\",'1. Ordersheet'!AZ139)","v":""},{"$f":"IF('1. Ordersheet'!BA139=\"\",\"\",'1. Ordersheet'!BA139)","v":""},{"$f":"IF('1. Ordersheet'!BC139=\"\",\"\",'1. Ordersheet'!BC139)","v":""},{"$f":"IF('1. Ordersheet'!BD139=\"\",\"\",'1. Ordersheet'!BD139)","v":""},{"$f":"IF('1. Ordersheet'!BE139=\"\",\"\",'1. Ordersheet'!BE139)","v":""},{"$f":"IF('1. Ordersheet'!BF139=\"\",\"\",'1. Ordersheet'!BF139)","v":""},{"$f":"IF('1. Ordersheet'!BG139=\"\",\"\",'1. Ordersheet'!BG139)","v":"ZWO"},{"$f":"IF('1. Ordersheet'!BH139=\"\",\"\",'1. Ordersheet'!BH139)","v":""},{"$f":"IF('1. Ordersheet'!BI139=\"\",\"\",'1. Ordersheet'!BI139)","v":""},{"$f":"IF('1. Ordersheet'!BJ139=\"\",\"\",'1. Ordersheet'!BJ139)","v":""},{"$f":"IF('1. Ordersheet'!BK139=\"\",\"\",'1. Ordersheet'!BK139)","v":""},{"$f":"IF('1. Ordersheet'!BL139=\"\",\"\",'1. Ordersheet'!BL139)","v":""}]
[{"$f":"IF('1. Ordersheet'!F140=\"\",\"\",'1. Ordersheet'!F140)","v":""},{"$f":"IF('1. Ordersheet'!G140=\"\",\"\",'1. Ordersheet'!G140)","v":""},{"$f":"IF('1. Ordersheet'!H140=\"\",\"\",'1. Ordersheet'!H140)","v":""},{"$f":"IF('1. Ordersheet'!I140=\"\",\"\",'1. Ordersheet'!I140)","v":""},{"$f":"IF('1. Ordersheet'!J140=\"\",\"\",'1. Ordersheet'!J140)","v":""},{"$f":"IF('1. Ordersheet'!K140=\"\",\"\",'1. Ordersheet'!K140)","v":""},{"$f":"IF('1. Ordersheet'!L140=\"\",\"\",'1. Ordersheet'!L140)","v":""},{"$f":"IF('1. Ordersheet'!M140=\"\",\"\",'1. Ordersheet'!M140)","v":""},{"$f":"IF('1. Ordersheet'!N140=\"\",\"\",'1. Ordersheet'!N140)","v":""},{"$f":"IF('1. Ordersheet'!O140=\"\",\"\",'1. Ordersheet'!O140)","v":{"$error":"#N/A"}},{"$f":"IF('1. Ordersheet'!P140=\"\",\"\",'1. Ordersheet'!P140)","v":{"$error":"#N/A"}},{"$f":"IF('1. Ordersheet'!Q140=\"\",\"\",'1. Ordersheet'!Q140)","v":""},{"$f":"IF('1. Ordersheet'!R140=\"\",\"\",'1. Ordersheet'!R140)","v":""},{"$f":"IF('1. Ordersheet'!S140=\"\",\"\",'1. Ordersheet'!S140)","v":""},{"$f":"IF('1. Ordersheet'!V140=\"\",\"\",'1. Ordersheet'!V140)","v":""},{"$f":"IF('1. Ordersheet'!W140=\"\",\"\",'1. Ordersheet'!W140)","v":""},{"$f":"IF('1. Ordersheet'!X140=\"\",\"\",'1. Ordersheet'!X140)","v":""},{"$f":"IF('1. Ordersheet'!Y140=\"\",\"\",'1. Ordersheet'!Y140)","v":""},{"$f":"IF('1. Ordersheet'!Z140=\"\",\"\",'1. Ordersheet'!Z140)","v":""},{"$f":"IF('1. Ordersheet'!AA140=\"\",\"\",'1. Ordersheet'!AA140)","v":""},null,{"$f":"IF('1. Ordersheet'!AS140=\"\",\"\",'1. Ordersheet'!AS140)","v":""},{"$f":"IF('1. Ordersheet'!AT140=\"\",\"\",'1. Ordersheet'!AT140)","v":""},null,null,null,null,null,null,null,{"$f":"IF('1. Ordersheet'!AX140=\"\",\"\",'1. Ordersheet'!AX140)","v":""},{"$f":"IF('1. Ordersheet'!AY140=\"\",\"\",'1. Ordersheet'!AY140)","v":""},{"$f":"IF('1. Ordersheet'!AZ140=\"\",\"\",'1. Ordersheet'!AZ140)","v":""},{"$f":"IF('1. Ordersheet'!BA140=\"\",\"\",'1. Ordersheet'!BA140)","v":""},{"$f":"IF('1. Ordersheet'!BC140=\"\",\"\",'1. Ordersheet'!BC140)","v":""},{"$f":"IF('1. Ordersheet'!BD140=\"\",\"\",'1. Ordersheet'!BD140)","v":""},{"$f":"IF('1. Ordersheet'!BE140=\"\",\"\",'1. Ordersheet'!BE140)","v":""},{"$f":"IF('1. Ordersheet'!BF140=\"\",\"\",'1. Ordersheet'!BF140)","v":""},{"$f":"IF('1. Ordersheet'!BG140=\"\",\"\",'1. Ordersheet'!BG140)","v":"ZWO"},{"$f":"IF('1. Ordersheet'!BH140=\"\",\"\",'1. Ordersheet'!BH140)","v":""},{"$f":"IF('1. Ordersheet'!BI140=\"\",\"\",'1. Ordersheet'!BI140)","v":""},{"$f":"IF('1. Ordersheet'!BJ140=\"\",\"\",'1. Ordersheet'!BJ140)","v":""},{"$f":"IF('1. Ordersheet'!BK140=\"\",\"\",'1. Ordersheet'!BK140)","v":""},{"$f":"IF('1. Ordersheet'!BL140=\"\",\"\",'1. Ordersheet'!BL140)","v":""}]
[{"$f":"IF('1. Ordersheet'!F141=\"\",\"\",'1. Ordersheet'!F141)","v":""},{"$f":"IF('1. Ordersheet'!G141=\"\",\"\",'1. Ordersheet'!G141)","v":""},{"$f":"IF('1. Ordersheet'!H141=\"\",\"\",'1. Ordersheet'!H141)","v":""},{"$f":"IF('1. Ordersheet'!I141=\"\",\"\",'1. Ordersheet'!I141)","v":""},{"$f":"IF('1. Ordersheet'!J141=\"\",\"\",'1. Ordersheet'!J141)","v":""},{"$f":"IF('1. Ordersheet'!K141=\"\",\"\",'1. Ordersheet'!K141)","v":""},{"$f":"IF('1. Ordersheet'!L141=\"\",\"\",'1. Ordersheet'!L141)","v":""},{"$f":"IF('1. Ordersheet'!M141=\"\",\"\",'1. Ordersheet'!M141)","v":""},{"$f":"IF('1. Ordersheet'!N141=\"\",\"\",'1. Ordersheet'!N141)","v":""},{"$f":"IF('1. Ordersheet'!O141=\"\",\"\",'1. Ordersheet'!O141)","v":{"$error":"#N/A"}},{"$f":"IF('1. Ordersheet'!P141=\"\",\"\",'1. Ordersheet'!P141)","v":{"$error":"#N/A"}},{"$f":"IF('1. Ordersheet'!Q141=\"\",\"\",'1. Ordersheet'!Q141)","v":""},{"$f":"IF('1. Ordersheet'!R141=\"\",\"\",'1. Ordersheet'!R141)","v":""},{"$f":"IF('1. Ordersheet'!S141=\"\",\"\",'1. Ordersheet'!S141)","v":""},{"$f":"IF('1. Ordersheet'!V141=\"\",\"\",'1. Ordersheet'!V141)","v":""},{"$f":"IF('1. Ordersheet'!W141=\"\",\"\",'1. Ordersheet'!W141)","v":""},{"$f":"IF('1. Ordersheet'!X141=\"\",\"\",'1. Ordersheet'!X141)","v":""},{"$f":"IF('1. Ordersheet'!Y141=\"\",\"\",'1. Ordersheet'!Y141)","v":""},{"$f":"IF('1. Ordersheet'!Z141=\"\",\"\",'1. Ordersheet'!Z141)","v":""},{"$f":"IF('1. Ordersheet'!AA141=\"\",\"\",'1. Ordersheet'!AA141)","v":""},null,{"$f":"IF('1. Ordersheet'!AS141=\"\",\"\",'1. Ordersheet'!AS141)","v":""},{"$f":"IF('1. Ordersheet'!AT141=\"\",\"\",'1. Ordersheet'!AT141)","v":""},null,null,null,null,null,null,null,{"$f":"IF('1. Ordersheet'!AX141=\"\",\"\",'1. Ordersheet'!AX141)","v":""},{"$f":"IF('1. Ordersheet'!AY141=\"\",\"\",'1. Ordersheet'!AY141)","v":""},{"$f":"IF('1. Ordersheet'!AZ141=\"\",\"\",'1. Ordersheet'!AZ141)","v":""},{"$f":"IF('1. Ordersheet'!BA141=\"\",\"\",'1. Ordersheet'!BA141)","v":""},{"$f":"IF('1. Ordersheet'!BC141=\"\",\"\",'1. Ordersheet'!BC141)","v":""},{"$f":"IF('1. Ordersheet'!BD141=\"\",\"\",'1. Ordersheet'!BD141)","v":""},{"$f":"IF('1. Ordersheet'!BE141=\"\",\"\",'1. Ordersheet'!BE141)","v":""},{"$f":"IF('1. Ordersheet'!BF141=\"\",\"\",'1. Ordersheet'!BF141)","v":""},{"$f":"IF('1. Ordersheet'!BG141=\"\",\"\",'1. Ordersheet'!BG141)","v":"ZWO"},{"$f":"IF('1. Ordersheet'!BH141=\"\",\"\",'1. Ordersheet'!BH141)","v":""},{"$f":"IF('1. Ordersheet'!BI141=\"\",\"\",'1. Ordersheet'!BI141)","v":""},{"$f":"IF('1. Ordersheet'!BJ141=\"\",\"\",'1. Ordersheet'!BJ141)","v":""},{"$f":"IF('1. Ordersheet'!BK141=\"\",\"\",'1. Ordersheet'!BK141)","v":""},{"$f":"IF('1. Ordersheet'!BL141=\"\",\"\",'1. Ordersheet'!BL141)","v":""}]
[{"$f":"IF('1. Ordersheet'!F142=\"\",\"\",'1. Ordersheet'!F142)","v":""},{"$f":"IF('1. Ordersheet'!G142=\"\",\"\",'1. Ordersheet'!G142)","v":""},{"$f":"IF('1. Ordersheet'!H142=\"\",\"\",'1. Ordersheet'!H142)","v":""},{"$f":"IF('1. Ordersheet'!I142=\"\",\"\",'1. Ordersheet'!I142)","v":""},{"$f":"IF('1. Ordersheet'!J142=\"\",\"\",'1. Ordersheet'!J142)","v":""},{"$f":"IF('1. Ordersheet'!K142=\"\",\"\",'1. Ordersheet'!K142)","v":""},{"$f":"IF('1. Ordersheet'!L142=\"\",\"\",'1. Ordersheet'!L142)","v":""},{"$f":"IF('1. Ordersheet'!M142=\"\",\"\",'1. Ordersheet'!M142)","v":""},{"$f":"IF('1. Ordersheet'!N142=\"\",\"\",'1. Ordersheet'!N142)","v":""},{"$f":"IF('1. Ordersheet'!O142=\"\",\"\",'1. Ordersheet'!O142)","v":{"$error":"#N/A"}},{"$f":"IF('1. Ordersheet'!P142=\"\",\"\",'1. Ordersheet'!P142)","v":{"$error":"#N/A"}},{"$f":"IF('1. Ordersheet'!Q142=\"\",\"\",'1. Ordersheet'!Q142)","v":""},{"$f":"IF('1. Ordersheet'!R142=\"\",\"\",'1. Ordersheet'!R142)","v":""},{"$f":"IF('1. Ordersheet'!S142=\"\",\"\",'1. Ordersheet'!S142)","v":""},{"$f":"IF('1. Ordersheet'!V142=\"\",\"\",'1. Ordersheet'!V142)","v":""},{"$f":"IF('1. Ordersheet'!W142=\"\",\"\",'1. Ordersheet'!W142)","v":""},{"$f":"IF('1. Ordersheet'!X142=\"\",\"\",'1. Ordersheet'!X142)","v":""},{"$f":"IF('1. Ordersheet'!Y142=\"\",\"\",'1. Ordersheet'!Y142)","v":""},{"$f":"IF('1. Ordersheet'!Z142=\"\",\"\",'1. Ordersheet'!Z142)","v":""},{"$f":"IF('1. Ordersheet'!AA142=\"\",\"\",'1. Ordersheet'!AA142)","v":""},null,{"$f":"IF('1. Ordersheet'!AS142=\"\",\"\",'1. Ordersheet'!AS142)","v":""},{"$f":"IF('1. Ordersheet'!AT142=\"\",\"\",'1. Ordersheet'!AT142)","v":""},null,null,null,null,null,null,null,{"$f":"IF('1. Ordersheet'!AX142=\"\",\"\",'1. Ordersheet'!AX142)","v":""},{"$f":"IF('1. Ordersheet'!AY142=\"\",\"\",'1. Ordersheet'!AY142)","v":""},{"$f":"IF('1. Ordersheet'!AZ142=\"\",\"\",'1. Ordersheet'!AZ142)","v":""},{"$f":"IF('1. Ordersheet'!BA142=\"\",\"\",'1. Ordersheet'!BA142)","v":""},{"$f":"IF('1. Ordersheet'!BC142=\"\",\"\",'1. Ordersheet'!BC142)","v":""},{"$f":"IF('1. Ordersheet'!BD142=\"\",\"\",'1. Ordersheet'!BD142)","v":""},{"$f":"IF('1. Ordersheet'!BE142=\"\",\"\",'1. Ordersheet'!BE142)","v":""},{"$f":"IF('1. Ordersheet'!BF142=\"\",\"\",'1. Ordersheet'!BF142)","v":""},{"$f":"IF('1. Ordersheet'!BG142=\"\",\"\",'1. Ordersheet'!BG142)","v":"ZWO"},{"$f":"IF('1. Ordersheet'!BH142=\"\",\"\",'1. Ordersheet'!BH142)","v":""},{"$f":"IF('1. Ordersheet'!BI142=\"\",\"\",'1. Ordersheet'!BI142)","v":""},{"$f":"IF('1. Ordersheet'!BJ142=\"\",\"\",'1. Ordersheet'!BJ142)","v":""},{"$f":"IF('1. Ordersheet'!BK142=\"\",\"\",'1. Ordersheet'!BK142)","v":""},{"$f":"IF('1. Ordersheet'!BL142=\"\",\"\",'1. Ordersheet'!BL142)","v":""}]
[{"$f":"IF('1. Ordersheet'!F143=\"\",\"\",'1. Ordersheet'!F143)","v":""},{"$f":"IF('1. Ordersheet'!G143=\"\",\"\",'1. Ordersheet'!G143)","v":""},{"$f":"IF('1. Ordersheet'!H143=\"\",\"\",'1. Ordersheet'!H143)","v":""},{"$f":"IF('1. Ordersheet'!I143=\"\",\"\",'1. Ordersheet'!I143)","v":""},{"$f":"IF('1. Ordersheet'!J143=\"\",\"\",'1. Ordersheet'!J143)","v":""},{"$f":"IF('1. Ordersheet'!K143=\"\",\"\",'1. Ordersheet'!K143)","v":""},{"$f":"IF('1. Ordersheet'!L143=\"\",\"\",'1. Ordersheet'!L143)","v":""},{"$f":"IF('1. Ordersheet'!M143=\"\",\"\",'1. Ordersheet'!M143)","v":""},{"$f":"IF('1. Ordersheet'!N143=\"\",\"\",'1. Ordersheet'!N143)","v":""},{"$f":"IF('1. Ordersheet'!O143=\"\",\"\",'1. Ordersheet'!O143)","v":{"$error":"#N/A"}},{"$f":"IF('1. Ordersheet'!P143=\"\",\"\",'1. Ordersheet'!P143)","v":{"$error":"#N/A"}},{"$f":"IF('1. Ordersheet'!Q143=\"\",\"\",'1. Ordersheet'!Q143)","v":""},{"$f":"IF('1. Ordersheet'!R143=\"\",\"\",'1. Ordersheet'!R143)","v":""},{"$f":"IF('1. Ordersheet'!S143=\"\",\"\",'1. Ordersheet'!S143)","v":""},{"$f":"IF('1. Ordersheet'!V143=\"\",\"\",'1. Ordersheet'!V143)","v":""},{"$f":"IF('1. Ordersheet'!W143=\"\",\"\",'1. Ordersheet'!W143)","v":""},{"$f":"IF('1. Ordersheet'!X143=\"\",\"\",'1. Ordersheet'!X143)","v":""},{"$f":"IF('1. Ordersheet'!Y143=\"\",\"\",'1. Ordersheet'!Y143)","v":""},{"$f":"IF('1. Ordersheet'!Z143=\"\",\"\",'1. Ordersheet'!Z143)","v":""},{"$f":"IF('1. Ordersheet'!AA143=\"\",\"\",'1. Ordersheet'!AA143)","v":""},null,{"$f":"IF('1. Ordersheet'!AS143=\"\",\"\",'1. Ordersheet'!AS143)","v":""},{"$f":"IF('1. Ordersheet'!AT143=\"\",\"\",'1. Ordersheet'!AT143)","v":""},null,null,null,null,null,null,null,{"$f":"IF('1. Ordersheet'!AX143=\"\",\"\",'1. Ordersheet'!AX143)","v":""},{"$f":"IF('1. Ordersheet'!AY143=\"\",\"\",'1. Ordersheet'!AY143)","v":""},{"$f":"IF('1. Ordersheet'!AZ143=\"\",\"\",'1. Ordersheet'!AZ143)","v":""},{"$f":"IF('1. Ordersheet'!BA143=\"\",\"\",'1. Ordersheet'!BA143)","v":""},{"$f":"IF('1. Ordersheet'!BC143=\"\",\"\",'1. Ordersheet'!BC143)","v":""},{"$f":"IF('1. Ordersheet'!BD143=\"\",\"\",'1. Ordersheet'!BD143)","v":""},{"$f":"IF('1. Ordersheet'!BE143=\"\",\"\",'1. Ordersheet'!BE143)","v":""},{"$f":"IF('1. Ordersheet'!BF143=\"\",\"\",'1. Ordersheet'!BF143)","v":""},{"$f":"IF('1. Ordersheet'!BG143=\"\",\"\",'1. Ordersheet'!BG143)","v":"ZWO"},{"$f":"IF('1. Ordersheet'!BH143=\"\",\"\",'1. Ordersheet'!BH143)","v":""},{"$f":"IF('1. Ordersheet'!BI143=\"\",\"\",'1. Ordersheet'!BI143)","v":""},{"$f":"IF('1. Ordersheet'!BJ143=\"\",\"\",'1. Ordersheet'!BJ143)","v":""},{"$f":"IF('1. Ordersheet'!BK143=\"\",\"\",'1. Ordersheet'!BK143)","v":""},{"$f":"IF('1. Ordersheet'!BL143=\"\",\"\",'1. Ordersheet'!BL143)","v":""}]
[{"$f":"IF('1. Ordersheet'!F144=\"\",\"\",'1. Ordersheet'!F144)","v":""},{"$f":"IF('1. Ordersheet'!G144=\"\",\"\",'1. Ordersheet'!G144)","v":""},{"$f":"IF('1. Ordersheet'!H144=\"\",\"\",'1. Ordersheet'!H144)","v":""},{"$f":"IF('1. Ordersheet'!I144=\"\",\"\",'1. Ordersheet'!I144)","v":""},{"$f":"IF('1. Ordersheet'!J144=\"\",\"\",'1. Ordersheet'!J144)","v":""},{"$f":"IF('1. Ordersheet'!K144=\"\",\"\",'1. Ordersheet'!K144)","v":""},{"$f":"IF('1. Ordersheet'!L144=\"\",\"\",'1. Ordersheet'!L144)","v":""},{"$f":"IF('1. Ordersheet'!M144=\"\",\"\",'1. Ordersheet'!M144)","v":""},{"$f":"IF('1. Ordersheet'!N144=\"\",\"\",'1. Ordersheet'!N144)","v":""},{"$f":"IF('1. Ordersheet'!O144=\"\",\"\",'1. Ordersheet'!O144)","v":{"$error":"#N/A"}},{"$f":"IF('1. Ordersheet'!P144=\"\",\"\",'1. Ordersheet'!P144)","v":{"$error":"#N/A"}},{"$f":"IF('1. Ordersheet'!Q144=\"\",\"\",'1. Ordersheet'!Q144)","v":""},{"$f":"IF('1. Ordersheet'!R144=\"\",\"\",'1. Ordersheet'!R144)","v":""},{"$f":"IF('1. Ordersheet'!S144=\"\",\"\",'1. Ordersheet'!S144)","v":""},{"$f":"IF('1. Ordersheet'!V144=\"\",\"\",'1. Ordersheet'!V144)","v":""},{"$f":"IF('1. Ordersheet'!W144=\"\",\"\",'1. Ordersheet'!W144)","v":""},{"$f":"IF('1. Ordersheet'!X144=\"\",\"\",'1. Ordersheet'!X144)","v":""},{"$f":"IF('1. Ordersheet'!Y144=\"\",\"\",'1. Ordersheet'!Y144)","v":""},{"$f":"IF('1. Ordersheet'!Z144=\"\",\"\",'1. Ordersheet'!Z144)","v":""},{"$f":"IF('1. Ordersheet'!AA144=\"\",\"\",'1. Ordersheet'!AA144)","v":""},null,{"$f":"IF('1. Ordersheet'!AS144=\"\",\"\",'1. Ordersheet'!AS144)","v":""},{"$f":"IF('1. Ordersheet'!AT144=\"\",\"\",'1. Ordersheet'!AT144)","v":""},null,null,null,null,null,null,null,{"$f":"IF('1. Ordersheet'!AX144=\"\",\"\",'1. Ordersheet'!AX144)","v":""},{"$f":"IF('1. Ordersheet'!AY144=\"\",\"\",'1. Ordersheet'!AY144)","v":""},{"$f":"IF('1. Ordersheet'!AZ144=\"\",\"\",'1. Ordersheet'!AZ144)","v":""},{"$f":"IF('1. Ordersheet'!BA144=\"\",\"\",'1. Ordersheet'!BA144)","v":""},{"$f":"IF('1. Ordersheet'!BC144=\"\",\"\",'1. Ordersheet'!BC144)","v":""},{"$f":"IF('1. Ordersheet'!BD144=\"\",\"\",'1. Ordersheet'!BD144)","v":""},{"$f":"IF('1. Ordersheet'!BE144=\"\",\"\",'1. Ordersheet'!BE144)","v":""},{"$f":"IF('1. Ordersheet'!BF144=\"\",\"\",'1. Ordersheet'!BF144)","v":""},{"$f":"IF('1. Ordersheet'!BG144=\"\",\"\",'1. Ordersheet'!BG144)","v":"ZWO"},{"$f":"IF('1. Ordersheet'!BH144=\"\",\"\",'1. Ordersheet'!BH144)","v":""},{"$f":"IF('1. Ordersheet'!BI144=\"\",\"\",'1. Ordersheet'!BI144)","v":""},{"$f":"IF('1. Ordersheet'!BJ144=\"\",\"\",'1. Ordersheet'!BJ144)","v":""},{"$f":"IF('1. Ordersheet'!BK144=\"\",\"\",'1. Ordersheet'!BK144)","v":""},{"$f":"IF('1. Ordersheet'!BL144=\"\",\"\",'1. Ordersheet'!BL144)","v":""}]
[{"$f":"IF('1. Ordersheet'!F145=\"\",\"\",'1. Ordersheet'!F145)","v":""},{"$f":"IF('1. Ordersheet'!G145=\"\",\"\",'1. Ordersheet'!G145)","v":""},{"$f":"IF('1. Ordersheet'!H145=\"\",\"\",'1. Ordersheet'!H145)","v":""},{"$f":"IF('1. Ordersheet'!I145=\"\",\"\",'1. Ordersheet'!I145)","v":""},{"$f":"IF('1. Ordersheet'!J145=\"\",\"\",'1. Ordersheet'!J145)","v":""},{"$f":"IF('1. Ordersheet'!K145=\"\",\"\",'1. Ordersheet'!K145)","v":""},{"$f":"IF('1. Ordersheet'!L145=\"\",\"\",'1. Ordersheet'!L145)","v":""},{"$f":"IF('1. Ordersheet'!M145=\"\",\"\",'1. Ordersheet'!M145)","v":""},{"$f":"IF('1. Ordersheet'!N145=\"\",\"\",'1. Ordersheet'!N145)","v":""},{"$f":"IF('1. Ordersheet'!O145=\"\",\"\",'1. Ordersheet'!O145)","v":{"$error":"#N/A"}},{"$f":"IF('1. Ordersheet'!P145=\"\",\"\",'1. Ordersheet'!P145)","v":{"$error":"#N/A"}},{"$f":"IF('1. Ordersheet'!Q145=\"\",\"\",'1. Ordersheet'!Q145)","v":""},{"$f":"IF('1. Ordersheet'!R145=\"\",\"\",'1. Ordersheet'!R145)","v":""},{"$f":"IF('1. Ordersheet'!S145=\"\",\"\",'1. Ordersheet'!S145)","v":""},{"$f":"IF('1. Ordersheet'!V145=\"\",\"\",'1. Ordersheet'!V145)","v":""},{"$f":"IF('1. Ordersheet'!W145=\"\",\"\",'1. Ordersheet'!W145)","v":""},{"$f":"IF('1. Ordersheet'!X145=\"\",\"\",'1. Ordersheet'!X145)","v":""},{"$f":"IF('1. Ordersheet'!Y145=\"\",\"\",'1. Ordersheet'!Y145)","v":""},{"$f":"IF('1. Ordersheet'!Z145=\"\",\"\",'1. Ordersheet'!Z145)","v":""},{"$f":"IF('1. Ordersheet'!AA145=\"\",\"\",'1. Ordersheet'!AA145)","v":""},null,{"$f":"IF('1. Ordersheet'!AS145=\"\",\"\",'1. Ordersheet'!AS145)","v":""},{"$f":"IF('1. Ordersheet'!AT145=\"\",\"\",'1. Ordersheet'!AT145)","v":""},null,null,null,null,null,null,null,{"$f":"IF('1. Ordersheet'!AX145=\"\",\"\",'1. Ordersheet'!AX145)","v":""},{"$f":"IF('1. Ordersheet'!AY145=\"\",\"\",'1. Ordersheet'!AY145)","v":""},{"$f":"IF('1. Ordersheet'!AZ145=\"\",\"\",'1. Ordersheet'!AZ145)","v":""},{"$f":"IF('1. Ordersheet'!BA145=\"\",\"\",'1. Ordersheet'!BA145)","v":""},{"$f":"IF('1. Ordersheet'!BC145=\"\",\"\",'1. Ordersheet'!BC145)","v":""},{"$f":"IF('1. Ordersheet'!BD145=\"\",\"\",'1. Ordersheet'!BD145)","v":""},{"$f":"IF('1. Ordersheet'!BE145=\"\",\"\",'1. Ordersheet'!BE145)","v":""},{"$f":"IF('1. Ordersheet'!BF145=\"\",\"\",'1. Ordersheet'!BF145)","v":""},{"$f":"IF('1. Ordersheet'!BG145=\"\",\"\",'1. Ordersheet'!BG145)","v":"ZWO"},{"$f":"IF('1. Ordersheet'!BH145=\"\",\"\",'1. Ordersheet'!BH145)","v":""},{"$f":"IF('1. Ordersheet'!BI145=\"\",\"\",'1. Ordersheet'!BI145)","v":""},{"$f":"IF('1. Ordersheet'!BJ145=\"\",\"\",'1. Ordersheet'!BJ145)","v":""},{"$f":"IF('1. Ordersheet'!BK145=\"\",\"\",'1. Ordersheet'!BK145)","v":""},{"$f":"IF('1. Ordersheet'!BL145=\"\",\"\",'1. Ordersheet'!BL145)","v":""}]
[{"$f":"IF('1. Ordersheet'!F146=\"\",\"\",'1. Ordersheet'!F146)","v":""},{"$f":"IF('1. Ordersheet'!G146=\"\",\"\",'1. Ordersheet'!G146)","v":""},{"$f":"IF('1. Ordersheet'!H146=\"\",\"\",'1. Ordersheet'!H146)","v":""},{"$f":"IF('1. Ordersheet'!I146=\"\",\"\",'1. Ordersheet'!I146)","v":""},{"$f":"IF('1. Ordersheet'!J146=\"\",\"\",'1. Ordersheet'!J146)","v":""},{"$f":"IF('1. Ordersheet'!K146=\"\",\"\",'1. Ordersheet'!K146)","v":""},{"$f":"IF('1. Ordersheet'!L146=\"\",\"\",'1. Ordersheet'!L146)","v":""},{"$f":"IF('1. Ordersheet'!M146=\"\",\"\",'1. Ordersheet'!M146)","v":""},{"$f":"IF('1. Ordersheet'!N146=\"\",\"\",'1. Ordersheet'!N146)","v":""},{"$f":"IF('1. Ordersheet'!O146=\"\",\"\",'1. Ordersheet'!O146)","v":{"$error":"#N/A"}},{"$f":"IF('1. Ordersheet'!P146=\"\",\"\",'1. Ordersheet'!P146)","v":{"$error":"#N/A"}},{"$f":"IF('1. Ordersheet'!Q146=\"\",\"\",'1. Ordersheet'!Q146)","v":""},{"$f":"IF('1. Ordersheet'!R146=\"\",\"\",'1. Ordersheet'!R146)","v":""},{"$f":"IF('1. Ordersheet'!S146=\"\",\"\",'1. Ordersheet'!S146)","v":""},{"$f":"IF('1. Ordersheet'!V146=\"\",\"\",'1. Ordersheet'!V146)","v":""},{"$f":"IF('1. Ordersheet'!W146=\"\",\"\",'1. Ordersheet'!W146)","v":""},{"$f":"IF('1. Ordersheet'!X146=\"\",\"\",'1. Ordersheet'!X146)","v":""},{"$f":"IF('1. Ordersheet'!Y146=\"\",\"\",'1. Ordersheet'!Y146)","v":""},{"$f":"IF('1. Ordersheet'!Z146=\"\",\"\",'1. Ordersheet'!Z146)","v":""},{"$f":"IF('1. Ordersheet'!AA146=\"\",\"\",'1. Ordersheet'!AA146)","v":""},null,{"$f":"IF('1. Ordersheet'!AS146=\"\",\"\",'1. Ordersheet'!AS146)","v":""},{"$f":"IF('1. Ordersheet'!AT146=\"\",\"\",'1. Ordersheet'!AT146)","v":""},null,null,null,null,null,null,null,{"$f":"IF('1. Ordersheet'!AX146=\"\",\"\",'1. Ordersheet'!AX146)","v":""},{"$f":"IF('1. Ordersheet'!AY146=\"\",\"\",'1. Ordersheet'!AY146)","v":""},{"$f":"IF('1. Ordersheet'!AZ146=\"\",\"\",'1. Ordersheet'!AZ146)","v":""},{"$f":"IF('1. Ordersheet'!BA146=\"\",\"\",'1. Ordersheet'!BA146)","v":""},{"$f":"IF('1. Ordersheet'!BC146=\"\",\"\",'1. Ordersheet'!BC146)","v":""},{"$f":"IF('1. Ordersheet'!BD146=\"\",\"\",'1. Ordersheet'!BD146)","v":""},{"$f":"IF('1. Ordersheet'!BE146=\"\",\"\",'1. Ordersheet'!BE146)","v":""},{"$f":"IF('1. Ordersheet'!BF146=\"\",\"\",'1. Ordersheet'!BF146)","v":""},{"$f":"IF('1. Ordersheet'!BG146=\"\",\"\",'1. Ordersheet'!BG146)","v":"ZWO"},{"$f":"IF('1. Ordersheet'!BH146=\"\",\"\",'1. Ordersheet'!BH146)","v":""},{"$f":"IF('1. Ordersheet'!BI146=\"\",\"\",'1. Ordersheet'!BI146)","v":""},{"$f":"IF('1. Ordersheet'!BJ146=\"\",\"\",'1. Ordersheet'!BJ146)","v":""},{"$f":"IF('1. Ordersheet'!BK146=\"\",\"\",'1. Ordersheet'!BK146)","v":""},{"$f":"IF('1. Ordersheet'!BL146=\"\",\"\",'1. Ordersheet'!BL146)","v":""}]
[{"$f":"IF('1. Ordersheet'!F147=\"\",\"\",'1. Ordersheet'!F147)","v":""},{"$f":"IF('1. Ordersheet'!G147=\"\",\"\",'1. Ordersheet'!G147)","v":""},{"$f":"IF('1. Ordersheet'!H147=\"\",\"\",'1. Ordersheet'!H147)","v":""},{"$f":"IF('1. Ordersheet'!I147=\"\",\"\",'1. Ordersheet'!I147)","v":""},{"$f":"IF('1. Ordersheet'!J147=\"\",\"\",'1. Ordersheet'!J147)","v":""},{"$f":"IF('1. Ordersheet'!K147=\"\",\"\",'1. Ordersheet'!K147)","v":""},{"$f":"IF('1. Ordersheet'!L147=\"\",\"\",'1. Ordersheet'!L147)","v":""},{"$f":"IF('1. Ordersheet'!M147=\"\",\"\",'1. Ordersheet'!M147)","v":""},{"$f":"IF('1. Ordersheet'!N147=\"\",\"\",'1. Ordersheet'!N147)","v":""},{"$f":"IF('1. Ordersheet'!O147=\"\",\"\",'1. Ordersheet'!O147)","v":{"$error":"#N/A"}},{"$f":"IF('1. Ordersheet'!P147=\"\",\"\",'1. Ordersheet'!P147)","v":{"$error":"#N/A"}},{"$f":"IF('1. Ordersheet'!Q147=\"\",\"\",'1. Ordersheet'!Q147)","v":""},{"$f":"IF('1. Ordersheet'!R147=\"\",\"\",'1. Ordersheet'!R147)","v":""},{"$f":"IF('1. Ordersheet'!S147=\"\",\"\",'1. Ordersheet'!S147)","v":""},{"$f":"IF('1. Ordersheet'!V147=\"\",\"\",'1. Ordersheet'!V147)","v":""},{"$f":"IF('1. Ordersheet'!W147=\"\",\"\",'1. Ordersheet'!W147)","v":""},{"$f":"IF('1. Ordersheet'!X147=\"\",\"\",'1. Ordersheet'!X147)","v":""},{"$f":"IF('1. Ordersheet'!Y147=\"\",\"\",'1. Ordersheet'!Y147)","v":""},{"$f":"IF('1. Ordersheet'!Z147=\"\",\"\",'1. Ordersheet'!Z147)","v":""},{"$f":"IF('1. Ordersheet'!AA147=\"\",\"\",'1. Ordersheet'!AA147)","v":""},null,{"$f":"IF('1. Ordersheet'!AS147=\"\",\"\",'1. Ordersheet'!AS147)","v":""},{"$f":"IF('1. Ordersheet'!AT147=\"\",\"\",'1. Ordersheet'!AT147)","v":""},null,null,null,null,null,null,null,{"$f":"IF('1. Ordersheet'!AX147=\"\",\"\",'1. Ordersheet'!AX147)","v":""},{"$f":"IF('1. Ordersheet'!AY147=\"\",\"\",'1. Ordersheet'!AY147)","v":""},{"$f":"IF('1. Ordersheet'!AZ147=\"\",\"\",'1. Ordersheet'!AZ147)","v":""},{"$f":"IF('1. Ordersheet'!BA147=\"\",\"\",'1. Ordersheet'!BA147)","v":""},{"$f":"IF('1. Ordersheet'!BC147=\"\",\"\",'1. Ordersheet'!BC147)","v":""},{"$f":"IF('1. Ordersheet'!BD147=\"\",\"\",'1. Ordersheet'!BD147)","v":""},{"$f":"IF('1. Ordersheet'!BE147=\"\",\"\",'1. Ordersheet'!BE147)","v":""},{"$f":"IF('1. Ordersheet'!BF147=\"\",\"\",'1. Ordersheet'!BF147)","v":""},{"$f":"IF('1. Ordersheet'!BG147=\"\",\"\",'1. Ordersheet'!BG147)","v":"ZWO"},{"$f":"IF('1. Ordersheet'!BH147=\"\",\"\",'1. Ordersheet'!BH147)","v":""},{"$f":"IF('1. Ordersheet'!BI147=\"\",\"\",'1. Ordersheet'!BI147)","v":""},{"$f":"IF('1. Ordersheet'!BJ147=\"\",\"\",'1. Ordersheet'!BJ147)","v":""},{"$f":"IF('1. Ordersheet'!BK147=\"\",\"\",'1. Ordersheet'!BK147)","v":""},{"$f":"IF('1. Ordersheet'!BL147=\"\",\"\",'1. Ordersheet'!BL147)","v":""}]
[{"$f":"IF('1. Ordersheet'!F148=\"\",\"\",'1. Ordersheet'!F148)","v":""},{"$f":"IF('1. Ordersheet'!G148=\"\",\"\",'1. Ordersheet'!G148)","v":""},{"$f":"IF('1. Ordersheet'!H148=\"\",\"\",'1. Ordersheet'!H148)","v":""},{"$f":"IF('1. Ordersheet'!I148=\"\",\"\",'1. Ordersheet'!I148)","v":""},{"$f":"IF('1. Ordersheet'!J148=\"\",\"\",'1. Ordersheet'!J148)","v":""},{"$f":"IF('1. Ordersheet'!K148=\"\",\"\",'1. Ordersheet'!K148)","v":""},{"$f":"IF('1. Ordersheet'!L148=\"\",\"\",'1. Ordersheet'!L148)","v":""},{"$f":"IF('1. Ordersheet'!M148=\"\",\"\",'1. Ordersheet'!M148)","v":""},{"$f":"IF('1. Ordersheet'!N148=\"\",\"\",'1. Ordersheet'!N148)","v":""},{"$f":"IF('1. Ordersheet'!O148=\"\",\"\",'1. Ordersheet'!O148)","v":{"$error":"#N/A"}},{"$f":"IF('1. Ordersheet'!P148=\"\",\"\",'1. Ordersheet'!P148)","v":{"$error":"#N/A"}},{"$f":"IF('1. Ordersheet'!Q148=\"\",\"\",'1. Ordersheet'!Q148)","v":""},{"$f":"IF('1. Ordersheet'!R148=\"\",\"\",'1. Ordersheet'!R148)","v":""},{"$f":"IF('1. Ordersheet'!S148=\"\",\"\",'1. Ordersheet'!S148)","v":""},{"$f":"IF('1. Ordersheet'!V148=\"\",\"\",'1. Ordersheet'!V148)","v":""},{"$f":"IF('1. Ordersheet'!W148=\"\",\"\",'1. Ordersheet'!W148)","v":""},{"$f":"IF('1. Ordersheet'!X148=\"\",\"\",'1. Ordersheet'!X148)","v":""},{"$f":"IF('1. Ordersheet'!Y148=\"\",\"\",'1. Ordersheet'!Y148)","v":""},{"$f":"IF('1. Ordersheet'!Z148=\"\",\"\",'1. Ordersheet'!Z148)","v":""},{"$f":"IF('1. Ordersheet'!AA148=\"\",\"\",'1. Ordersheet'!AA148)","v":""},null,{"$f":"IF('1. Ordersheet'!AS148=\"\",\"\",'1. Ordersheet'!AS148)","v":""},{"$f":"IF('1. Ordersheet'!AT148=\"\",\"\",'1. Ordersheet'!AT148)","v":""},null,null,null,null,null,null,null,{"$f":"IF('1. Ordersheet'!AX148=\"\",\"\",'1. Ordersheet'!AX148)","v":""},{"$f":"IF('1. Ordersheet'!AY148=\"\",\"\",'1. Ordersheet'!AY148)","v":""},{"$f":"IF('1. Ordersheet'!AZ148=\"\",\"\",'1. Ordersheet'!AZ148)","v":""},{"$f":"IF('1. Ordersheet'!BA148=\"\",\"\",'1. Ordersheet'!BA148)","v":""},{"$f":"IF('1. Ordersheet'!BC148=\"\",\"\",'1. Ordersheet'!BC148)","v":""},{"$f":"IF('1. Ordersheet'!BD148=\"\",\"\",'1. Ordersheet'!BD148)","v":""},{"$f":"IF('1. Ordersheet'!BE148=\"\",\"\",'1. Ordersheet'!BE148)","v":""},{"$f":"IF('1. Ordersheet'!BF148=\"\",\"\",'1. Ordersheet'!BF148)","v":""},{"$f":"IF('1. Ordersheet'!BG148=\"\",\"\",'1. Ordersheet'!BG148)","v":"ZWO"},{"$f":"IF('1. Ordersheet'!BH148=\"\",\"\",'1. Ordersheet'!BH148)","v":""},{"$f":"IF('1. Ordersheet'!BI148=\"\",\"\",'1. Ordersheet'!BI148)","v":""},{"$f":"IF('1. Ordersheet'!BJ148=\"\",\"\",'1. Ordersheet'!BJ148)","v":""},{"$f":"IF('1. Ordersheet'!BK148=\"\",\"\",'1. Ordersheet'!BK148)","v":""},{"$f":"IF('1. Ordersheet'!BL148=\"\",\"\",'1. Ordersheet'!BL148)","v":""}]
[{"$f":"IF('1. Ordersheet'!F149=\"\",\"\",'1. Ordersheet'!F149)","v":""},{"$f":"IF('1. Ordersheet'!G149=\"\",\"\",'1. Ordersheet'!G149)","v":""},{"$f":"IF('1. Ordersheet'!H149=\"\",\"\",'1. Ordersheet'!H149)","v":""},{"$f":"IF('1. Ordersheet'!I149=\"\",\"\",'1. Ordersheet'!I149)","v":""},{"$f":"IF('1. Ordersheet'!J149=\"\",\"\",'1. Ordersheet'!J149)","v":""},{"$f":"IF('1. Ordersheet'!K149=\"\",\"\",'1. Ordersheet'!K149)","v":""},{"$f":"IF('1. Ordersheet'!L149=\"\",\"\",'1. Ordersheet'!L149)","v":""},{"$f":"IF('1. Ordersheet'!M149=\"\",\"\",'1. Ordersheet'!M149)","v":""},{"$f":"IF('1. Ordersheet'!N149=\"\",\"\",'1. Ordersheet'!N149)","v":""},{"$f":"IF('1. Ordersheet'!O149=\"\",\"\",'1. Ordersheet'!O149)","v":{"$error":"#N/A"}},{"$f":"IF('1. Ordersheet'!P149=\"\",\"\",'1. Ordersheet'!P149)","v":{"$error":"#N/A"}},{"$f":"IF('1. Ordersheet'!Q149=\"\",\"\",'1. Ordersheet'!Q149)","v":""},{"$f":"IF('1. Ordersheet'!R149=\"\",\"\",'1. Ordersheet'!R149)","v":""},{"$f":"IF('1. Ordersheet'!S149=\"\",\"\",'1. Ordersheet'!S149)","v":""},{"$f":"IF('1. Ordersheet'!V149=\"\",\"\",'1. Ordersheet'!V149)","v":""},{"$f":"IF('1. Ordersheet'!W149=\"\",\"\",'1. Ordersheet'!W149)","v":""},{"$f":"IF('1. Ordersheet'!X149=\"\",\"\",'1. Ordersheet'!X149)","v":""},{"$f":"IF('1. Ordersheet'!Y149=\"\",\"\",'1. Ordersheet'!Y149)","v":""},{"$f":"IF('1. Ordersheet'!Z149=\"\",\"\",'1. Ordersheet'!Z149)","v":""},{"$f":"IF('1. Ordersheet'!AA149=\"\",\"\",'1. Ordersheet'!AA149)","v":""},null,{"$f":"IF('1. Ordersheet'!AS149=\"\",\"\",'1. Ordersheet'!AS149)","v":""},{"$f":"IF('1. Ordersheet'!AT149=\"\",\"\",'1. Ordersheet'!AT149)","v":""},null,null,null,null,null,null,null,{"$f":"IF('1. Ordersheet'!AX149=\"\",\"\",'1. Ordersheet'!AX149)","v":""},{"$f":"IF('1. Ordersheet'!AY149=\"\",\"\",'1. Ordersheet'!AY149)","v":""},{"$f":"IF('1. Ordersheet'!AZ149=\"\",\"\",'1. Ordersheet'!AZ149)","v":""},{"$f":"IF('1. Ordersheet'!BA149=\"\",\"\",'1. Ordersheet'!BA149)","v":""},{"$f":"IF('1. Ordersheet'!BC149=\"\",\"\",'1. Ordersheet'!BC149)","v":""},{"$f":"IF('1. Ordersheet'!BD149=\"\",\"\",'1. Ordersheet'!BD149)","v":""},{"$f":"IF('1. Ordersheet'!BE149=\"\",\"\",'1. Ordersheet'!BE149)","v":""},{"$f":"IF('1. Ordersheet'!BF149=\"\",\"\",'1. Ordersheet'!BF149)","v":""},{"$f":"IF('1. Ordersheet'!BG149=\"\",\"\",'1. Ordersheet'!BG149)","v":"ZWO"},{"$f":"IF('1. Ordersheet'!BH149=\"\",\"\",'1. Ordersheet'!BH149)","v":""},{"$f":"IF('1. Ordersheet'!BI149=\"\",\"\",'1. Ordersheet'!BI149)","v":""},{"$f":"IF('1. Ordersheet'!BJ149=\"\",\"\",'1. Ordersheet'!BJ149)","v":""},{"$f":"IF('1. Ordersheet'!BK149=\"\",\"\",'1. Ordersheet'!BK149)","v":""},{"$f":"IF('1. Ordersheet'!BL149=\"\",\"\",'1. Ordersheet'!BL149)","v":""}]
[{"$f":"IF('1. Ordersheet'!F150=\"\",\"\",'1. Ordersheet'!F150)","v":""},{"$f":"IF('1. Ordersheet'!G150=\"\",\"\",'1. Ordersheet'!G150)","v":""},{"$f":"IF('1. Ordersheet'!H150=\"\",\"\",'1. Ordersheet'!H150)","v":""},{"$f":"IF('1. Ordersheet'!I150=\"\",\"\",'1. Ordersheet'!I150)","v":""},{"$f":"IF('1. Ordersheet'!J150=\"\",\"\",'1. Ordersheet'!J150)","v":""},{"$f":"IF('1. Ordersheet'!K150=\"\",\"\",'1. Ordersheet'!K150)","v":""},{"$f":"IF('1. Ordersheet'!L150=\"\",\"\",'1. Ordersheet'!L150)","v":""},{"$f":"IF('1. Ordersheet'!M150=\"\",\"\",'1. Ordersheet'!M150)","v":""},{"$f":"IF('1. Ordersheet'!N150=\"\",\"\",'1. Ordersheet'!N150)","v":""},{"$f":"IF('1. Ordersheet'!O150=\"\",\"\",'1. Ordersheet'!O150)","v":{"$error":"#N/A"}},{"$f":"IF('1. Ordersheet'!P150=\"\",\"\",'1. Ordersheet'!P150)","v":{"$error":"#N/A"}},{"$f":"IF('1. Ordersheet'!Q150=\"\",\"\",'1. Ordersheet'!Q150)","v":""},{"$f":"IF('1. Ordersheet'!R150=\"\",\"\",'1. Ordersheet'!R150)","v":""},{"$f":"IF('1. Ordersheet'!S150=\"\",\"\",'1. Ordersheet'!S150)","v":""},{"$f":"IF('1. Ordersheet'!V150=\"\",\"\",'1. Ordersheet'!V150)","v":""},{"$f":"IF('1. Ordersheet'!W150=\"\",\"\",'1. Ordersheet'!W150)","v":""},{"$f":"IF('1. Ordersheet'!X150=\"\",\"\",'1. Ordersheet'!X150)","v":""},{"$f":"IF('1. Ordersheet'!Y150=\"\",\"\",'1. Ordersheet'!Y150)","v":""},{"$f":"IF('1. Ordersheet'!Z150=\"\",\"\",'1. Ordersheet'!Z150)","v":""},{"$f":"IF('1. Ordersheet'!AA150=\"\",\"\",'1. Ordersheet'!AA150)","v":""},null,{"$f":"IF('1. Ordersheet'!AS150=\"\",\"\",'1. Ordersheet'!AS150)","v":""},{"$f":"IF('1. Ordersheet'!AT150=\"\",\"\",'1. Ordersheet'!AT150)","v":""},null,null,null,null,null,null,null,{"$f":"IF('1. Ordersheet'!AX150=\"\",\"\",'1. Ordersheet'!AX150)","v":""},{"$f":"IF('1. Ordersheet'!AY150=\"\",\"\",'1. Ordersheet'!AY150)","v":""},{"$f":"IF('1. Ordersheet'!AZ150=\"\",\"\",'1. Ordersheet'!AZ150)","v":""},{"$f":"IF('1. Ordersheet'!BA150=\"\",\"\",'1. Ordersheet'!BA150)","v":""},{"$f":"IF('1. Ordersheet'!BC150=\"\",\"\",'1. Ordersheet'!BC150)","v":""},{"$f":"IF('1. Ordersheet'!BD150=\"\",\"\",'1. Ordersheet'!BD150)","v":""},{"$f":"IF('1. Ordersheet'!BE150=\"\",\"\",'1. Ordersheet'!BE150)","v":""},{"$f":"IF('1. Ordersheet'!BF150=\"\",\"\",'1. Ordersheet'!BF150)","v":""},{"$f":"IF('1. Ordersheet'!BG150=\"\",\"\",'1. Ordersheet'!BG150)","v":"ZWO"},{"$f":"IF('1. Ordersheet'!BH150=\"\",\"\",'1. Ordersheet'!BH150)","v":""},{"$f":"IF('1. Ordersheet'!BI150=\"\",\"\",'1. Ordersheet'!BI150)","v":""},{"$f":"IF('1. Ordersheet'!BJ150=\"\",\"\",'1. Ordersheet'!BJ150)","v":""},{"$f":"IF('1. Ordersheet'!BK150=\"\",\"\",'1. Ordersheet'!BK150)","v":""},{"$f":"IF('1. Ordersheet'!BL150=\"\",\"\",'1. Ordersheet'!BL150)","v":""}]
[{"$f":"IF('1. Ordersheet'!F151=\"\",\"\",'1. Ordersheet'!F151)","v":""},{"$f":"IF('1. Ordersheet'!G151=\"\",\"\",'1. Ordersheet'!G151)","v":""},{"$f":"IF('1. Ordersheet'!H151=\"\",\"\",'1. Ordersheet'!H151)","v":""},{"$f":"IF('1. Ordersheet'!I151=\"\",\"\",'1. Ordersheet'!I151)","v":""},{"$f":"IF('1. Ordersheet'!J151=\"\",\"\",'1. Ordersheet'!J151)","v":""},{"$f":"IF('1. Ordersheet'!K151=\"\",\"\",'1. Ordersheet'!K151)","v":""},{"$f":"IF('1. Ordersheet'!L151=\"\",\"\",'1. Ordersheet'!L151)","v":""},{"$f":"IF('1. Ordersheet'!M151=\"\",\"\",'1. Ordersheet'!M151)","v":""},{"$f":"IF('1. Ordersheet'!N151=\"\",\"\",'1. Ordersheet'!N151)","v":""},{"$f":"IF('1. Ordersheet'!O151=\"\",\"\",'1. Ordersheet'!O151)","v":{"$error":"#N/A"}},{"$f":"IF('1. Ordersheet'!P151=\"\",\"\",'1. Ordersheet'!P151)","v":{"$error":"#N/A"}},{"$f":"IF('1. Ordersheet'!Q151=\"\",\"\",'1. Ordersheet'!Q151)","v":""},{"$f":"IF('1. Ordersheet'!R151=\"\",\"\",'1. Ordersheet'!R151)","v":""},{"$f":"IF('1. Ordersheet'!S151=\"\",\"\",'1. Ordersheet'!S151)","v":""},{"$f":"IF('1. Ordersheet'!V151=\"\",\"\",'1. Ordersheet'!V151)","v":""},{"$f":"IF('1. Ordersheet'!W151=\"\",\"\",'1. Ordersheet'!W151)","v":""},{"$f":"IF('1. Ordersheet'!X151=\"\",\"\",'1. Ordersheet'!X151)","v":""},{"$f":"IF('1. Ordersheet'!Y151=\"\",\"\",'1. Ordersheet'!Y151)","v":""},{"$f":"IF('1. Ordersheet'!Z151=\"\",\"\",'1. Ordersheet'!Z151)","v":""},{"$f":"IF('1. Ordersheet'!AA151=\"\",\"\",'1. Ordersheet'!AA151)","v":""},null,{"$f":"IF('1. Ordersheet'!AS151=\"\",\"\",'1. Ordersheet'!AS151)","v":""},{"$f":"IF('1. Ordersheet'!AT151=\"\",\"\",'1. Ordersheet'!AT151)","v":""},null,null,null,null,null,null,null,{"$f":"IF('1. Ordersheet'!AX151=\"\",\"\",'1. Ordersheet'!AX151)","v":""},{"$f":"IF('1. Ordersheet'!AY151=\"\",\"\",'1. Ordersheet'!AY151)","v":""},{"$f":"IF('1. Ordersheet'!AZ151=\"\",\"\",'1. Ordersheet'!AZ151)","v":""},{"$f":"IF('1. Ordersheet'!BA151=\"\",\"\",'1. Ordersheet'!BA151)","v":""},{"$f":"IF('1. Ordersheet'!BC151=\"\",\"\",'1. Ordersheet'!BC151)","v":""},{"$f":"IF('1. Ordersheet'!BD151=\"\",\"\",'1. Ordersheet'!BD151)","v":""},{"$f":"IF('1. Ordersheet'!BE151=\"\",\"\",'1. Ordersheet'!BE151)","v":""},{"$f":"IF('1. Ordersheet'!BF151=\"\",\"\",'1. Ordersheet'!BF151)","v":""},{"$f":"IF('1. Ordersheet'!BG151=\"\",\"\",'1. Ordersheet'!BG151)","v":"ZWO"},{"$f":"IF('1. Ordersheet'!BH151=\"\",\"\",'1. Ordersheet'!BH151)","v":""},{"$f":"IF('1. Ordersheet'!BI151=\"\",\"\",'1. Ordersheet'!BI151)","v":""},{"$f":"IF('1. Ordersheet'!BJ151=\"\",\"\",'1. Ordersheet'!BJ151)","v":""},{"$f":"IF('1. Ordersheet'!BK151=\"\",\"\",'1. Ordersheet'!BK151)","v":""},{"$f":"IF('1. Ordersheet'!BL151=\"\",\"\",'1. Ordersheet'!BL151)","v":""}]
[{"$f":"IF('1. Ordersheet'!F152=\"\",\"\",'1. Ordersheet'!F152)","v":""},{"$f":"IF('1. Ordersheet'!G152=\"\",\"\",'1. Ordersheet'!G152)","v":""},{"$f":"IF('1. Ordersheet'!H152=\"\",\"\",'1. Ordersheet'!H152)","v":""},{"$f":"IF('1. Ordersheet'!I152=\"\",\"\",'1. Ordersheet'!I152)","v":""},{"$f":"IF('1. Ordersheet'!J152=\"\",\"\",'1. Ordersheet'!J152)","v":""},{"$f":"IF('1. Ordersheet'!K152=\"\",\"\",'1. Ordersheet'!K152)","v":""},{"$f":"IF('1. Ordersheet'!L152=\"\",\"\",'1. Ordersheet'!L152)","v":""},{"$f":"IF('1. Ordersheet'!M152=\"\",\"\",'1. Ordersheet'!M152)","v":""},{"$f":"IF('1. Ordersheet'!N152=\"\",\"\",'1. Ordersheet'!N152)","v":""},{"$f":"IF('1. Ordersheet'!O152=\"\",\"\",'1. Ordersheet'!O152)","v":{"$error":"#N/A"}},{"$f":"IF('1. Ordersheet'!P152=\"\",\"\",'1. Ordersheet'!P152)","v":{"$error":"#N/A"}},{"$f":"IF('1. Ordersheet'!Q152=\"\",\"\",'1. Ordersheet'!Q152)","v":""},{"$f":"IF('1. Ordersheet'!R152=\"\",\"\",'1. Ordersheet'!R152)","v":""},{"$f":"IF('1. Ordersheet'!S152=\"\",\"\",'1. Ordersheet'!S152)","v":""},{"$f":"IF('1. Ordersheet'!V152=\"\",\"\",'1. Ordersheet'!V152)","v":""},{"$f":"IF('1. Ordersheet'!W152=\"\",\"\",'1. Ordersheet'!W152)","v":""},{"$f":"IF('1. Ordersheet'!X152=\"\",\"\",'1. Ordersheet'!X152)","v":""},{"$f":"IF('1. Ordersheet'!Y152=\"\",\"\",'1. Ordersheet'!Y152)","v":""},{"$f":"IF('1. Ordersheet'!Z152=\"\",\"\",'1. Ordersheet'!Z152)","v":""},{"$f":"IF('1. Ordersheet'!AA152=\"\",\"\",'1. Ordersheet'!AA152)","v":""},null,{"$f":"IF('1. Ordersheet'!AS152=\"\",\"\",'1. Ordersheet'!AS152)","v":""},{"$f":"IF('1. Ordersheet'!AT152=\"\",\"\",'1. Ordersheet'!AT152)","v":""},null,null,null,null,null,null,null,{"$f":"IF('1. Ordersheet'!AX152=\"\",\"\",'1. Ordersheet'!AX152)","v":""},{"$f":"IF('1. Ordersheet'!AY152=\"\",\"\",'1. Ordersheet'!AY152)","v":""},{"$f":"IF('1. Ordersheet'!AZ152=\"\",\"\",'1. Ordersheet'!AZ152)","v":""},{"$f":"IF('1. Ordersheet'!BA152=\"\",\"\",'1. Ordersheet'!BA152)","v":""},{"$f":"IF('1. Ordersheet'!BC152=\"\",\"\",'1. Ordersheet'!BC152)","v":""},{"$f":"IF('1. Ordersheet'!BD152=\"\",\"\",'1. Ordersheet'!BD152)","v":""},{"$f":"IF('1. Ordersheet'!BE152=\"\",\"\",'1. Ordersheet'!BE152)","v":""},{"$f":"IF('1. Ordersheet'!BF152=\"\",\"\",'1. Ordersheet'!BF152)","v":""},{"$f":"IF('1. Ordersheet'!BG152=\"\",\"\",'1. Ordersheet'!BG152)","v":"ZWO"},{"$f":"IF('1. Ordersheet'!BH152=\"\",\"\",'1. Ordersheet'!BH152)","v":""},{"$f":"IF('1. Ordersheet'!BI152=\"\",\"\",'1. Ordersheet'!BI152)","v":""},{"$f":"IF('1. Ordersheet'!BJ152=\"\",\"\",'1. Ordersheet'!BJ152)","v":""},{"$f":"IF('1. Ordersheet'!BK152=\"\",\"\",'1. Ordersheet'!BK152)","v":""},{"$f":"IF('1. Ordersheet'!BL152=\"\",\"\",'1. Ordersheet'!BL152)","v":""}]
[{"$f":"IF('1. Ordersheet'!F153=\"\",\"\",'1. Ordersheet'!F153)","v":""},{"$f":"IF('1. Ordersheet'!G153=\"\",\"\",'1. Ordersheet'!G153)","v":""},{"$f":"IF('1. Ordersheet'!H153=\"\",\"\",'1. Ordersheet'!H153)","v":""},{"$f":"IF('1. Ordersheet'!I153=\"\",\"\",'1. Ordersheet'!I153)","v":""},{"$f":"IF('1. Ordersheet'!J153=\"\",\"\",'1. Ordersheet'!J153)","v":""},{"$f":"IF('1. Ordersheet'!K153=\"\",\"\",'1. Ordersheet'!K153)","v":""},{"$f":"IF('1. Ordersheet'!L153=\"\",\"\",'1. Ordersheet'!L153)","v":""},{"$f":"IF('1. Ordersheet'!M153=\"\",\"\",'1. Ordersheet'!M153)","v":""},{"$f":"IF('1. Ordersheet'!N153=\"\",\"\",'1. Ordersheet'!N153)","v":""},{"$f":"IF('1. Ordersheet'!O153=\"\",\"\",'1. Ordersheet'!O153)","v":{"$error":"#N/A"}},{"$f":"IF('1. Ordersheet'!P153=\"\",\"\",'1. Ordersheet'!P153)","v":{"$error":"#N/A"}},{"$f":"IF('1. Ordersheet'!Q153=\"\",\"\",'1. Ordersheet'!Q153)","v":""},{"$f":"IF('1. Ordersheet'!R153=\"\",\"\",'1. Ordersheet'!R153)","v":""},{"$f":"IF('1. Ordersheet'!S153=\"\",\"\",'1. Ordersheet'!S153)","v":""},{"$f":"IF('1. Ordersheet'!V153=\"\",\"\",'1. Ordersheet'!V153)","v":""},{"$f":"IF('1. Ordersheet'!W153=\"\",\"\",'1. Ordersheet'!W153)","v":""},{"$f":"IF('1. Ordersheet'!X153=\"\",\"\",'1. Ordersheet'!X153)","v":""},{"$f":"IF('1. Ordersheet'!Y153=\"\",\"\",'1. Ordersheet'!Y153)","v":""},{"$f":"IF('1. Ordersheet'!Z153=\"\",\"\",'1. Ordersheet'!Z153)","v":""},{"$f":"IF('1. Ordersheet'!AA153=\"\",\"\",'1. Ordersheet'!AA153)","v":""},null,{"$f":"IF('1. Ordersheet'!AS153=\"\",\"\",'1. Ordersheet'!AS153)","v":""},{"$f":"IF('1. Ordersheet'!AT153=\"\",\"\",'1. Ordersheet'!AT153)","v":""},null,null,null,null,null,null,null,{"$f":"IF('1. Ordersheet'!AX153=\"\",\"\",'1. Ordersheet'!AX153)","v":""},{"$f":"IF('1. Ordersheet'!AY153=\"\",\"\",'1. Ordersheet'!AY153)","v":""},{"$f":"IF('1. Ordersheet'!AZ153=\"\",\"\",'1. Ordersheet'!AZ153)","v":""},{"$f":"IF('1. Ordersheet'!BA153=\"\",\"\",'1. Ordersheet'!BA153)","v":""},{"$f":"IF('1. Ordersheet'!BC153=\"\",\"\",'1. Ordersheet'!BC153)","v":""},{"$f":"IF('1. Ordersheet'!BD153=\"\",\"\",'1. Ordersheet'!BD153)","v":""},{"$f":"IF('1. Ordersheet'!BE153=\"\",\"\",'1. Ordersheet'!BE153)","v":""},{"$f":"IF('1. Ordersheet'!BF153=\"\",\"\",'1. Ordersheet'!BF153)","v":""},{"$f":"IF('1. Ordersheet'!BG153=\"\",\"\",'1. Ordersheet'!BG153)","v":"ZWO"},{"$f":"IF('1. Ordersheet'!BH153=\"\",\"\",'1. Ordersheet'!BH153)","v":""},{"$f":"IF('1. Ordersheet'!BI153=\"\",\"\",'1. Ordersheet'!BI153)","v":""},{"$f":"IF('1. Ordersheet'!BJ153=\"\",\"\",'1. Ordersheet'!BJ153)","v":""},{"$f":"IF('1. Ordersheet'!BK153=\"\",\"\",'1. Ordersheet'!BK153)","v":""},{"$f":"IF('1. Ordersheet'!BL153=\"\",\"\",'1. Ordersheet'!BL153)","v":""}]
[{"$f":"IF('1. Ordersheet'!F154=\"\",\"\",'1. Ordersheet'!F154)","v":""},{"$f":"IF('1. Ordersheet'!G154=\"\",\"\",'1. Ordersheet'!G154)","v":""},{"$f":"IF('1. Ordersheet'!H154=\"\",\"\",'1. Ordersheet'!H154)","v":""},{"$f":"IF('1. Ordersheet'!I154=\"\",\"\",'1. Ordersheet'!I154)","v":""},{"$f":"IF('1. Ordersheet'!J154=\"\",\"\",'1. Ordersheet'!J154)","v":""},{"$f":"IF('1. Ordersheet'!K154=\"\",\"\",'1. Ordersheet'!K154)","v":""},{"$f":"IF('1. Ordersheet'!L154=\"\",\"\",'1. Ordersheet'!L154)","v":""},{"$f":"IF('1. Ordersheet'!M154=\"\",\"\",'1. Ordersheet'!M154)","v":""},{"$f":"IF('1. Ordersheet'!N154=\"\",\"\",'1. Ordersheet'!N154)","v":""},{"$f":"IF('1. Ordersheet'!O154=\"\",\"\",'1. Ordersheet'!O154)","v":{"$error":"#N/A"}},{"$f":"IF('1. Ordersheet'!P154=\"\",\"\",'1. Ordersheet'!P154)","v":{"$error":"#N/A"}},{"$f":"IF('1. Ordersheet'!Q154=\"\",\"\",'1. Ordersheet'!Q154)","v":""},{"$f":"IF('1. Ordersheet'!R154=\"\",\"\",'1. Ordersheet'!R154)","v":""},{"$f":"IF('1. Ordersheet'!S154=\"\",\"\",'1. Ordersheet'!S154)","v":""},{"$f":"IF('1. Ordersheet'!V154=\"\",\"\",'1. Ordersheet'!V154)","v":""},{"$f":"IF('1. Ordersheet'!W154=\"\",\"\",'1. Ordersheet'!W154)","v":""},{"$f":"IF('1. Ordersheet'!X154=\"\",\"\",'1. Ordersheet'!X154)","v":""},{"$f":"IF('1. Ordersheet'!Y154=\"\",\"\",'1. Ordersheet'!Y154)","v":""},{"$f":"IF('1. Ordersheet'!Z154=\"\",\"\",'1. Ordersheet'!Z154)","v":""},{"$f":"IF('1. Ordersheet'!AA154=\"\",\"\",'1. Ordersheet'!AA154)","v":""},null,{"$f":"IF('1. Ordersheet'!AS154=\"\",\"\",'1. Ordersheet'!AS154)","v":""},{"$f":"IF('1. Ordersheet'!AT154=\"\",\"\",'1. Ordersheet'!AT154)","v":""},null,null,null,null,null,null,null,{"$f":"IF('1. Ordersheet'!AX154=\"\",\"\",'1. Ordersheet'!AX154)","v":""},{"$f":"IF('1. Ordersheet'!AY154=\"\",\"\",'1. Ordersheet'!AY154)","v":""},{"$f":"IF('1. Ordersheet'!AZ154=\"\",\"\",'1. Ordersheet'!AZ154)","v":""},{"$f":"IF('1. Ordersheet'!BA154=\"\",\"\",'1. Ordersheet'!BA154)","v":""},{"$f":"IF('1. Ordersheet'!BC154=\"\",\"\",'1. Ordersheet'!BC154)","v":""},{"$f":"IF('1. Ordersheet'!BD154=\"\",\"\",'1. Ordersheet'!BD154)","v":""},{"$f":"IF('1. Ordersheet'!BE154=\"\",\"\",'1. Ordersheet'!BE154)","v":""},{"$f":"IF('1. Ordersheet'!BF154=\"\",\"\",'1. Ordersheet'!BF154)","v":""},{"$f":"IF('1. Ordersheet'!BG154=\"\",\"\",'1. Ordersheet'!BG154)","v":"ZWO"},{"$f":"IF('1. Ordersheet'!BH154=\"\",\"\",'1. Ordersheet'!BH154)","v":""},{"$f":"IF('1. Ordersheet'!BI154=\"\",\"\",'1. Ordersheet'!BI154)","v":""},{"$f":"IF('1. Ordersheet'!BJ154=\"\",\"\",'1. Ordersheet'!BJ154)","v":""},{"$f":"IF('1. Ordersheet'!BK154=\"\",\"\",'1. Ordersheet'!BK154)","v":""},{"$f":"IF('1. Ordersheet'!BL154=\"\",\"\",'1. Ordersheet'!BL154)","v":""}]
[{"$f":"IF('1. Ordersheet'!F155=\"\",\"\",'1. Ordersheet'!F155)","v":""},{"$f":"IF('1. Ordersheet'!G155=\"\",\"\",'1. Ordersheet'!G155)","v":""},{"$f":"IF('1. Ordersheet'!H155=\"\",\"\",'1. Ordersheet'!H155)","v":""},{"$f":"IF('1. Ordersheet'!I155=\"\",\"\",'1. Ordersheet'!I155)","v":""},{"$f":"IF('1. Ordersheet'!J155=\"\",\"\",'1. Ordersheet'!J155)","v":""},{"$f":"IF('1. Ordersheet'!K155=\"\",\"\",'1. Ordersheet'!K155)","v":""},{"$f":"IF('1. Ordersheet'!L155=\"\",\"\",'1. Ordersheet'!L155)","v":""},{"$f":"IF('1. Ordersheet'!M155=\"\",\"\",'1. Ordersheet'!M155)","v":""},{"$f":"IF('1. Ordersheet'!N155=\"\",\"\",'1. Ordersheet'!N155)","v":""},{"$f":"IF('1. Ordersheet'!O155=\"\",\"\",'1. Ordersheet'!O155)","v":{"$error":"#N/A"}},{"$f":"IF('1. Ordersheet'!P155=\"\",\"\",'1. Ordersheet'!P155)","v":{"$error":"#N/A"}},{"$f":"IF('1. Ordersheet'!Q155=\"\",\"\",'1. Ordersheet'!Q155)","v":""},{"$f":"IF('1. Ordersheet'!R155=\"\",\"\",'1. Ordersheet'!R155)","v":""},{"$f":"IF('1. Ordersheet'!S155=\"\",\"\",'1. Ordersheet'!S155)","v":""},{"$f":"IF('1. Ordersheet'!V155=\"\",\"\",'1. Ordersheet'!V155)","v":""},{"$f":"IF('1. Ordersheet'!W155=\"\",\"\",'1. Ordersheet'!W155)","v":""},{"$f":"IF('1. Ordersheet'!X155=\"\",\"\",'1. Ordersheet'!X155)","v":""},{"$f":"IF('1. Ordersheet'!Y155=\"\",\"\",'1. Ordersheet'!Y155)","v":""},{"$f":"IF('1. Ordersheet'!Z155=\"\",\"\",'1. Ordersheet'!Z155)","v":""},{"$f":"IF('1. Ordersheet'!AA155=\"\",\"\",'1. Ordersheet'!AA155)","v":""},null,{"$f":"IF('1. Ordersheet'!AS155=\"\",\"\",'1. Ordersheet'!AS155)","v":""},{"$f":"IF('1. Ordersheet'!AT155=\"\",\"\",'1. Ordersheet'!AT155)","v":""},null,null,null,null,null,null,null,{"$f":"IF('1. Ordersheet'!AX155=\"\",\"\",'1. Ordersheet'!AX155)","v":""},{"$f":"IF('1. Ordersheet'!AY155=\"\",\"\",'1. Ordersheet'!AY155)","v":""},{"$f":"IF('1. Ordersheet'!AZ155=\"\",\"\",'1. Ordersheet'!AZ155)","v":""},{"$f":"IF('1. Ordersheet'!BA155=\"\",\"\",'1. Ordersheet'!BA155)","v":""},{"$f":"IF('1. Ordersheet'!BC155=\"\",\"\",'1. Ordersheet'!BC155)","v":""},{"$f":"IF('1. Ordersheet'!BD155=\"\",\"\",'1. Ordersheet'!BD155)","v":""},{"$f":"IF('1. Ordersheet'!BE155=\"\",\"\",'1. Ordersheet'!BE155)","v":""},{"$f":"IF('1. Ordersheet'!BF155=\"\",\"\",'1. Ordersheet'!BF155)","v":""},{"$f":"IF('1. Ordersheet'!BG155=\"\",\"\",'1. Ordersheet'!BG155)","v":"ZWO"},{"$f":"IF('1. Ordersheet'!BH155=\"\",\"\",'1. Ordersheet'!BH155)","v":""},{"$f":"IF('1. Ordersheet'!BI155=\"\",\"\",'1. Ordersheet'!BI155)","v":""},{"$f":"IF('1. Ordersheet'!BJ155=\"\",\"\",'1. Ordersheet'!BJ155)","v":""},{"$f":"IF('1. Ordersheet'!BK155=\"\",\"\",'1. Ordersheet'!BK155)","v":""},{"$f":"IF('1. Ordersheet'!BL155=\"\",\"\",'1. Ordersheet'!BL155)","v":""}]
[{"$f":"IF('1. Ordersheet'!F156=\"\",\"\",'1. Ordersheet'!F156)","v":""},{"$f":"IF('1. Ordersheet'!G156=\"\",\"\",'1. Ordersheet'!G156)","v":""},{"$f":"IF('1. Ordersheet'!H156=\"\",\"\",'1. Ordersheet'!H156)","v":""},{"$f":"IF('1. Ordersheet'!I156=\"\",\"\",'1. Ordersheet'!I156)","v":""},{"$f":"IF('1. Ordersheet'!J156=\"\",\"\",'1. Ordersheet'!J156)","v":""},{"$f":"IF('1. Ordersheet'!K156=\"\",\"\",'1. Ordersheet'!K156)","v":""},{"$f":"IF('1. Ordersheet'!L156=\"\",\"\",'1. Ordersheet'!L156)","v":""},{"$f":"IF('1. Ordersheet'!M156=\"\",\"\",'1. Ordersheet'!M156)","v":""},{"$f":"IF('1. Ordersheet'!N156=\"\",\"\",'1. Ordersheet'!N156)","v":""},{"$f":"IF('1. Ordersheet'!O156=\"\",\"\",'1. Ordersheet'!O156)","v":{"$error":"#N/A"}},{"$f":"IF('1. Ordersheet'!P156=\"\",\"\",'1. Ordersheet'!P156)","v":{"$error":"#N/A"}},{"$f":"IF('1. Ordersheet'!Q156=\"\",\"\",'1. Ordersheet'!Q156)","v":""},{"$f":"IF('1. Ordersheet'!R156=\"\",\"\",'1. Ordersheet'!R156)","v":""},{"$f":"IF('1. Ordersheet'!S156=\"\",\"\",'1. Ordersheet'!S156)","v":""},{"$f":"IF('1. Ordersheet'!V156=\"\",\"\",'1. Ordersheet'!V156)","v":""},{"$f":"IF('1. Ordersheet'!W156=\"\",\"\",'1. Ordersheet'!W156)","v":""},{"$f":"IF('1. Ordersheet'!X156=\"\",\"\",'1. Ordersheet'!X156)","v":""},{"$f":"IF('1. Ordersheet'!Y156=\"\",\"\",'1. Ordersheet'!Y156)","v":""},{"$f":"IF('1. Ordersheet'!Z156=\"\",\"\",'1. Ordersheet'!Z156)","v":""},{"$f":"IF('1. Ordersheet'!AA156=\"\",\"\",'1. Ordersheet'!AA156)","v":""},null,{"$f":"IF('1. Ordersheet'!AS156=\"\",\"\",'1. Ordersheet'!AS156)","v":""},{"$f":"IF('1. Ordersheet'!AT156=\"\",\"\",'1. Ordersheet'!AT156)","v":""},null,null,null,null,null,null,null,{"$f":"IF('1. Ordersheet'!AX156=\"\",\"\",'1. Ordersheet'!AX156)","v":""},{"$f":"IF('1. Ordersheet'!AY156=\"\",\"\",'1. Ordersheet'!AY156)","v":""},{"$f":"IF('1. Ordersheet'!AZ156=\"\",\"\",'1. Ordersheet'!AZ156)","v":""},{"$f":"IF('1. Ordersheet'!BA156=\"\",\"\",'1. Ordersheet'!BA156)","v":""},{"$f":"IF('1. Ordersheet'!BC156=\"\",\"\",'1. Ordersheet'!BC156)","v":""},{"$f":"IF('1. Ordersheet'!BD156=\"\",\"\",'1. Ordersheet'!BD156)","v":""},{"$f":"IF('1. Ordersheet'!BE156=\"\",\"\",'1. Ordersheet'!BE156)","v":""},{"$f":"IF('1. Ordersheet'!BF156=\"\",\"\",'1. Ordersheet'!BF156)","v":""},{"$f":"IF('1. Ordersheet'!BG156=\"\",\"\",'1. Ordersheet'!BG156)","v":"ZWO"},{"$f":"IF('1. Ordersheet'!BH156=\"\",\"\",'1. Ordersheet'!BH156)","v":""},{"$f":"IF('1. Ordersheet'!BI156=\"\",\"\",'1. Ordersheet'!BI156)","v":""},{"$f":"IF('1. Ordersheet'!BJ156=\"\",\"\",'1. Ordersheet'!BJ156)","v":""},{"$f":"IF('1. Ordersheet'!BK156=\"\",\"\",'1. Ordersheet'!BK156)","v":""},{"$f":"IF('1. Ordersheet'!BL156=\"\",\"\",'1. Ordersheet'!BL156)","v":""}]
[{"$f":"IF('1. Ordersheet'!F157=\"\",\"\",'1. Ordersheet'!F157)","v":""},{"$f":"IF('1. Ordersheet'!G157=\"\",\"\",'1. Ordersheet'!G157)","v":""},{"$f":"IF('1. Ordersheet'!H157=\"\",\"\",'1. Ordersheet'!H157)","v":""},{"$f":"IF('1. Ordersheet'!I157=\"\",\"\",'1. Ordersheet'!I157)","v":""},{"$f":"IF('1. Ordersheet'!J157=\"\",\"\",'1. Ordersheet'!J157)","v":""},{"$f":"IF('1. Ordersheet'!K157=\"\",\"\",'1. Ordersheet'!K157)","v":""},{"$f":"IF('1. Ordersheet'!L157=\"\",\"\",'1. Ordersheet'!L157)","v":""},{"$f":"IF('1. Ordersheet'!M157=\"\",\"\",'1. Ordersheet'!M157)","v":""},{"$f":"IF('1. Ordersheet'!N157=\"\",\"\",'1. Ordersheet'!N157)","v":""},{"$f":"IF('1. Ordersheet'!O157=\"\",\"\",'1. Ordersheet'!O157)","v":{"$error":"#N/A"}},{"$f":"IF('1. Ordersheet'!P157=\"\",\"\",'1. Ordersheet'!P157)","v":{"$error":"#N/A"}},{"$f":"IF('1. Ordersheet'!Q157=\"\",\"\",'1. Ordersheet'!Q157)","v":""},{"$f":"IF('1. Ordersheet'!R157=\"\",\"\",'1. Ordersheet'!R157)","v":""},{"$f":"IF('1. Ordersheet'!S157=\"\",\"\",'1. Ordersheet'!S157)","v":""},{"$f":"IF('1. Ordersheet'!V157=\"\",\"\",'1. Ordersheet'!V157)","v":""},{"$f":"IF('1. Ordersheet'!W157=\"\",\"\",'1. Ordersheet'!W157)","v":""},{"$f":"IF('1. Ordersheet'!X157=\"\",\"\",'1. Ordersheet'!X157)","v":""},{"$f":"IF('1. Ordersheet'!Y157=\"\",\"\",'1. Ordersheet'!Y157)","v":""},{"$f":"IF('1. Ordersheet'!Z157=\"\",\"\",'1. Ordersheet'!Z157)","v":""},{"$f":"IF('1. Ordersheet'!AA157=\"\",\"\",'1. Ordersheet'!AA157)","v":""},null,{"$f":"IF('1. Ordersheet'!AS157=\"\",\"\",'1. Ordersheet'!AS157)","v":""},{"$f":"IF('1. Ordersheet'!AT157=\"\",\"\",'1. Ordersheet'!AT157)","v":""},null,null,null,null,null,null,null,{"$f":"IF('1. Ordersheet'!AX157=\"\",\"\",'1. Ordersheet'!AX157)","v":""},{"$f":"IF('1. Ordersheet'!AY157=\"\",\"\",'1. Ordersheet'!AY157)","v":""},{"$f":"IF('1. Ordersheet'!AZ157=\"\",\"\",'1. Ordersheet'!AZ157)","v":""},{"$f":"IF('1. Ordersheet'!BA157=\"\",\"\",'1. Ordersheet'!BA157)","v":""},{"$f":"IF('1. Ordersheet'!BC157=\"\",\"\",'1. Ordersheet'!BC157)","v":""},{"$f":"IF('1. Ordersheet'!BD157=\"\",\"\",'1. Ordersheet'!BD157)","v":""},{"$f":"IF('1. Ordersheet'!BE157=\"\",\"\",'1. Ordersheet'!BE157)","v":""},{"$f":"IF('1. Ordersheet'!BF157=\"\",\"\",'1. Ordersheet'!BF157)","v":""},{"$f":"IF('1. Ordersheet'!BG157=\"\",\"\",'1. Ordersheet'!BG157)","v":"ZWO"},{"$f":"IF('1. Ordersheet'!BH157=\"\",\"\",'1. Ordersheet'!BH157)","v":""},{"$f":"IF('1. Ordersheet'!BI157=\"\",\"\",'1. Ordersheet'!BI157)","v":""},{"$f":"IF('1. Ordersheet'!BJ157=\"\",\"\",'1. Ordersheet'!BJ157)","v":""},{"$f":"IF('1. Ordersheet'!BK157=\"\",\"\",'1. Ordersheet'!BK157)","v":""},{"$f":"IF('1. Ordersheet'!BL157=\"\",\"\",'1. Ordersheet'!BL157)","v":""}]
[{"$f":"IF('1. Ordersheet'!F158=\"\",\"\",'1. Ordersheet'!F158)","v":""},{"$f":"IF('1. Ordersheet'!G158=\"\",\"\",'1. Ordersheet'!G158)","v":""},{"$f":"IF('1. Ordersheet'!H158=\"\",\"\",'1. Ordersheet'!H158)","v":""},{"$f":"IF('1. Ordersheet'!I158=\"\",\"\",'1. Ordersheet'!I158)","v":""},{"$f":"IF('1. Ordersheet'!J158=\"\",\"\",'1. Ordersheet'!J158)","v":""},{"$f":"IF('1. Ordersheet'!K158=\"\",\"\",'1. Ordersheet'!K158)","v":""},{"$f":"IF('1. Ordersheet'!L158=\"\",\"\",'1. Ordersheet'!L158)","v":""},{"$f":"IF('1. Ordersheet'!M158=\"\",\"\",'1. Ordersheet'!M158)","v":""},{"$f":"IF('1. Ordersheet'!N158=\"\",\"\",'1. Ordersheet'!N158)","v":""},{"$f":"IF('1. Ordersheet'!O158=\"\",\"\",'1. Ordersheet'!O158)","v":{"$error":"#N/A"}},{"$f":"IF('1. Ordersheet'!P158=\"\",\"\",'1. Ordersheet'!P158)","v":{"$error":"#N/A"}},{"$f":"IF('1. Ordersheet'!Q158=\"\",\"\",'1. Ordersheet'!Q158)","v":""},{"$f":"IF('1. Ordersheet'!R158=\"\",\"\",'1. Ordersheet'!R158)","v":""},{"$f":"IF('1. Ordersheet'!S158=\"\",\"\",'1. Ordersheet'!S158)","v":""},{"$f":"IF('1. Ordersheet'!V158=\"\",\"\",'1. Ordersheet'!V158)","v":""},{"$f":"IF('1. Ordersheet'!W158=\"\",\"\",'1. Ordersheet'!W158)","v":""},{"$f":"IF('1. Ordersheet'!X158=\"\",\"\",'1. Ordersheet'!X158)","v":""},{"$f":"IF('1. Ordersheet'!Y158=\"\",\"\",'1. Ordersheet'!Y158)","v":""},{"$f":"IF('1. Ordersheet'!Z158=\"\",\"\",'1. Ordersheet'!Z158)","v":""},{"$f":"IF('1. Ordersheet'!AA158=\"\",\"\",'1. Ordersheet'!AA158)","v":""},null,{"$f":"IF('1. Ordersheet'!AS158=\"\",\"\",'1. Ordersheet'!AS158)","v":""},{"$f":"IF('1. Ordersheet'!AT158=\"\",\"\",'1. Ordersheet'!AT158)","v":""},null,null,null,null,null,null,null,{"$f":"IF('1. Ordersheet'!AX158=\"\",\"\",'1. Ordersheet'!AX158)","v":""},{"$f":"IF('1. Ordersheet'!AY158=\"\",\"\",'1. Ordersheet'!AY158)","v":""},{"$f":"IF('1. Ordersheet'!AZ158=\"\",\"\",'1. Ordersheet'!AZ158)","v":""},{"$f":"IF('1. Ordersheet'!BA158=\"\",\"\",'1. Ordersheet'!BA158)","v":""},{"$f":"IF('1. Ordersheet'!BC158=\"\",\"\",'1. Ordersheet'!BC158)","v":""},{"$f":"IF('1. Ordersheet'!BD158=\"\",\"\",'1. Ordersheet'!BD158)","v":""},{"$f":"IF('1. Ordersheet'!BE158=\"\",\"\",'1. Ordersheet'!BE158)","v":""},{"$f":"IF('1. Ordersheet'!BF158=\"\",\"\",'1. Ordersheet'!BF158)","v":""},{"$f":"IF('1. Ordersheet'!BG158=\"\",\"\",'1. Ordersheet'!BG158)","v":"ZWO"},{"$f":"IF('1. Ordersheet'!BH158=\"\",\"\",'1. Ordersheet'!BH158)","v":""},{"$f":"IF('1. Ordersheet'!BI158=\"\",\"\",'1. Ordersheet'!BI158)","v":""},{"$f":"IF('1. Ordersheet'!BJ158=\"\",\"\",'1. Ordersheet'!BJ158)","v":""},{"$f":"IF('1. Ordersheet'!BK158=\"\",\"\",'1. Ordersheet'!BK158)","v":""},{"$f":"IF('1. Ordersheet'!BL158=\"\",\"\",'1. Ordersheet'!BL158)","v":""}]
[{"$f":"IF('1. Ordersheet'!F159=\"\",\"\",'1. Ordersheet'!F159)","v":""},{"$f":"IF('1. Ordersheet'!G159=\"\",\"\",'1. Ordersheet'!G159)","v":""},{"$f":"IF('1. Ordersheet'!H159=\"\",\"\",'1. Ordersheet'!H159)","v":""},{"$f":"IF('1. Ordersheet'!I159=\"\",\"\",'1. Ordersheet'!I159)","v":""},{"$f":"IF('1. Ordersheet'!J159=\"\",\"\",'1. Ordersheet'!J159)","v":""},{"$f":"IF('1. Ordersheet'!K159=\"\",\"\",'1. Ordersheet'!K159)","v":""},{"$f":"IF('1. Ordersheet'!L159=\"\",\"\",'1. Ordersheet'!L159)","v":""},{"$f":"IF('1. Ordersheet'!M159=\"\",\"\",'1. Ordersheet'!M159)","v":""},{"$f":"IF('1. Ordersheet'!N159=\"\",\"\",'1. Ordersheet'!N159)","v":""},{"$f":"IF('1. Ordersheet'!O159=\"\",\"\",'1. Ordersheet'!O159)","v":{"$error":"#N/A"}},{"$f":"IF('1. Ordersheet'!P159=\"\",\"\",'1. Ordersheet'!P159)","v":{"$error":"#N/A"}},{"$f":"IF('1. Ordersheet'!Q159=\"\",\"\",'1. Ordersheet'!Q159)","v":""},{"$f":"IF('1. Ordersheet'!R159=\"\",\"\",'1. Ordersheet'!R159)","v":""},{"$f":"IF('1. Ordersheet'!S159=\"\",\"\",'1. Ordersheet'!S159)","v":""},{"$f":"IF('1. Ordersheet'!V159=\"\",\"\",'1. Ordersheet'!V159)","v":""},{"$f":"IF('1. Ordersheet'!W159=\"\",\"\",'1. Ordersheet'!W159)","v":""},{"$f":"IF('1. Ordersheet'!X159=\"\",\"\",'1. Ordersheet'!X159)","v":""},{"$f":"IF('1. Ordersheet'!Y159=\"\",\"\",'1. Ordersheet'!Y159)","v":""},{"$f":"IF('1. Ordersheet'!Z159=\"\",\"\",'1. Ordersheet'!Z159)","v":""},{"$f":"IF('1. Ordersheet'!AA159=\"\",\"\",'1. Ordersheet'!AA159)","v":""},null,{"$f":"IF('1. Ordersheet'!AS159=\"\",\"\",'1. Ordersheet'!AS159)","v":""},{"$f":"IF('1. Ordersheet'!AT159=\"\",\"\",'1. Ordersheet'!AT159)","v":""},null,null,null,null,null,null,null,{"$f":"IF('1. Ordersheet'!AX159=\"\",\"\",'1. Ordersheet'!AX159)","v":""},{"$f":"IF('1. Ordersheet'!AY159=\"\",\"\",'1. Ordersheet'!AY159)","v":""},{"$f":"IF('1. Ordersheet'!AZ159=\"\",\"\",'1. Ordersheet'!AZ159)","v":""},{"$f":"IF('1. Ordersheet'!BA159=\"\",\"\",'1. Ordersheet'!BA159)","v":""},{"$f":"IF('1. Ordersheet'!BC159=\"\",\"\",'1. Ordersheet'!BC159)","v":""},{"$f":"IF('1. Ordersheet'!BD159=\"\",\"\",'1. Ordersheet'!BD159)","v":""},{"$f":"IF('1. Ordersheet'!BE159=\"\",\"\",'1. Ordersheet'!BE159)","v":""},{"$f":"IF('1. Ordersheet'!BF159=\"\",\"\",'1. Ordersheet'!BF159)","v":""},{"$f":"IF('1. Ordersheet'!BG159=\"\",\"\",'1. Ordersheet'!BG159)","v":"ZWO"},{"$f":"IF('1. Ordersheet'!BH159=\"\",\"\",'1. Ordersheet'!BH159)","v":""},{"$f":"IF('1. Ordersheet'!BI159=\"\",\"\",'1. Ordersheet'!BI159)","v":""},{"$f":"IF('1. Ordersheet'!BJ159=\"\",\"\",'1. Ordersheet'!BJ159)","v":""},{"$f":"IF('1. Ordersheet'!BK159=\"\",\"\",'1. Ordersheet'!BK159)","v":""},{"$f":"IF('1. Ordersheet'!BL159=\"\",\"\",'1. Ordersheet'!BL159)","v":""}]
[{"$f":"IF('1. Ordersheet'!F160=\"\",\"\",'1. Ordersheet'!F160)","v":""},{"$f":"IF('1. Ordersheet'!G160=\"\",\"\",'1. Ordersheet'!G160)","v":""},{"$f":"IF('1. Ordersheet'!H160=\"\",\"\",'1. Ordersheet'!H160)","v":""},{"$f":"IF('1. Ordersheet'!I160=\"\",\"\",'1. Ordersheet'!I160)","v":""},{"$f":"IF('1. Ordersheet'!J160=\"\",\"\",'1. Ordersheet'!J160)","v":""},{"$f":"IF('1. Ordersheet'!K160=\"\",\"\",'1. Ordersheet'!K160)","v":""},{"$f":"IF('1. Ordersheet'!L160=\"\",\"\",'1. Ordersheet'!L160)","v":""},{"$f":"IF('1. Ordersheet'!M160=\"\",\"\",'1. Ordersheet'!M160)","v":""},{"$f":"IF('1. Ordersheet'!N160=\"\",\"\",'1. Ordersheet'!N160)","v":""},{"$f":"IF('1. Ordersheet'!O160=\"\",\"\",'1. Ordersheet'!O160)","v":{"$error":"#N/A"}},{"$f":"IF('1. Ordersheet'!P160=\"\",\"\",'1. Ordersheet'!P160)","v":{"$error":"#N/A"}},{"$f":"IF('1. Ordersheet'!Q160=\"\",\"\",'1. Ordersheet'!Q160)","v":""},{"$f":"IF('1. Ordersheet'!R160=\"\",\"\",'1. Ordersheet'!R160)","v":""},{"$f":"IF('1. Ordersheet'!S160=\"\",\"\",'1. Ordersheet'!S160)","v":""},{"$f":"IF('1. Ordersheet'!V160=\"\",\"\",'1. Ordersheet'!V160)","v":""},{"$f":"IF('1. Ordersheet'!W160=\"\",\"\",'1. Ordersheet'!W160)","v":""},{"$f":"IF('1. Ordersheet'!X160=\"\",\"\",'1. Ordersheet'!X160)","v":""},{"$f":"IF('1. Ordersheet'!Y160=\"\",\"\",'1. Ordersheet'!Y160)","v":""},{"$f":"IF('1. Ordersheet'!Z160=\"\",\"\",'1. Ordersheet'!Z160)","v":""},{"$f":"IF('1. Ordersheet'!AA160=\"\",\"\",'1. Ordersheet'!AA160)","v":""},null,{"$f":"IF('1. Ordersheet'!AS160=\"\",\"\",'1. Ordersheet'!AS160)","v":""},{"$f":"IF('1. Ordersheet'!AT160=\"\",\"\",'1. Ordersheet'!AT160)","v":""},null,null,null,null,null,null,null,{"$f":"IF('1. Ordersheet'!AX160=\"\",\"\",'1. Ordersheet'!AX160)","v":""},{"$f":"IF('1. Ordersheet'!AY160=\"\",\"\",'1. Ordersheet'!AY160)","v":""},{"$f":"IF('1. Ordersheet'!AZ160=\"\",\"\",'1. Ordersheet'!AZ160)","v":""},{"$f":"IF('1. Ordersheet'!BA160=\"\",\"\",'1. Ordersheet'!BA160)","v":""},{"$f":"IF('1. Ordersheet'!BC160=\"\",\"\",'1. Ordersheet'!BC160)","v":""},{"$f":"IF('1. Ordersheet'!BD160=\"\",\"\",'1. Ordersheet'!BD160)","v":""},{"$f":"IF('1. Ordersheet'!BE160=\"\",\"\",'1. Ordersheet'!BE160)","v":""},{"$f":"IF('1. Ordersheet'!BF160=\"\",\"\",'1. Ordersheet'!BF160)","v":""},{"$f":"IF('1. Ordersheet'!BG160=\"\",\"\",'1. Ordersheet'!BG160)","v":"ZWO"},{"$f":"IF('1. Ordersheet'!BH160=\"\",\"\",'1. Ordersheet'!BH160)","v":""},{"$f":"IF('1. Ordersheet'!BI160=\"\",\"\",'1. Ordersheet'!BI160)","v":""},{"$f":"IF('1. Ordersheet'!BJ160=\"\",\"\",'1. Ordersheet'!BJ160)","v":""},{"$f":"IF('1. Ordersheet'!BK160=\"\",\"\",'1. Ordersheet'!BK160)","v":""},{"$f":"IF('1. Ordersheet'!BL160=\"\",\"\",'1. Ordersheet'!BL160)","v":""}]
[{"$f":"IF('1. Ordersheet'!F161=\"\",\"\",'1. Ordersheet'!F161)","v":""},{"$f":"IF('1. Ordersheet'!G161=\"\",\"\",'1. Ordersheet'!G161)","v":""},{"$f":"IF('1. Ordersheet'!H161=\"\",\"\",'1. Ordersheet'!H161)","v":""},{"$f":"IF('1. Ordersheet'!I161=\"\",\"\",'1. Ordersheet'!I161)","v":""},{"$f":"IF('1. Ordersheet'!J161=\"\",\"\",'1. Ordersheet'!J161)","v":""},{"$f":"IF('1. Ordersheet'!K161=\"\",\"\",'1. Ordersheet'!K161)","v":""},{"$f":"IF('1. Ordersheet'!L161=\"\",\"\",'1. Ordersheet'!L161)","v":""},{"$f":"IF('1. Ordersheet'!M161=\"\",\"\",'1. Ordersheet'!M161)","v":""},{"$f":"IF('1. Ordersheet'!N161=\"\",\"\",'1. Ordersheet'!N161)","v":""},{"$f":"IF('1. Ordersheet'!O161=\"\",\"\",'1. Ordersheet'!O161)","v":{"$error":"#N/A"}},{"$f":"IF('1. Ordersheet'!P161=\"\",\"\",'1. Ordersheet'!P161)","v":{"$error":"#N/A"}},{"$f":"IF('1. Ordersheet'!Q161=\"\",\"\",'1. Ordersheet'!Q161)","v":""},{"$f":"IF('1. Ordersheet'!R161=\"\",\"\",'1. Ordersheet'!R161)","v":""},{"$f":"IF('1. Ordersheet'!S161=\"\",\"\",'1. Ordersheet'!S161)","v":""},{"$f":"IF('1. Ordersheet'!V161=\"\",\"\",'1. Ordersheet'!V161)","v":""},{"$f":"IF('1. Ordersheet'!W161=\"\",\"\",'1. Ordersheet'!W161)","v":""},{"$f":"IF('1. Ordersheet'!X161=\"\",\"\",'1. Ordersheet'!X161)","v":""},{"$f":"IF('1. Ordersheet'!Y161=\"\",\"\",'1. Ordersheet'!Y161)","v":""},{"$f":"IF('1. Ordersheet'!Z161=\"\",\"\",'1. Ordersheet'!Z161)","v":""},{"$f":"IF('1. Ordersheet'!AA161=\"\",\"\",'1. Ordersheet'!AA161)","v":""},null,{"$f":"IF('1. Ordersheet'!AS161=\"\",\"\",'1. Ordersheet'!AS161)","v":""},{"$f":"IF('1. Ordersheet'!AT161=\"\",\"\",'1. Ordersheet'!AT161)","v":""},null,null,null,null,null,null,null,{"$f":"IF('1. Ordersheet'!AX161=\"\",\"\",'1. Ordersheet'!AX161)","v":""},{"$f":"IF('1. Ordersheet'!AY161=\"\",\"\",'1. Ordersheet'!AY161)","v":""},{"$f":"IF('1. Ordersheet'!AZ161=\"\",\"\",'1. Ordersheet'!AZ161)","v":""},{"$f":"IF('1. Ordersheet'!BA161=\"\",\"\",'1. Ordersheet'!BA161)","v":""},{"$f":"IF('1. Ordersheet'!BC161=\"\",\"\",'1. Ordersheet'!BC161)","v":""},{"$f":"IF('1. Ordersheet'!BD161=\"\",\"\",'1. Ordersheet'!BD161)","v":""},{"$f":"IF('1. Ordersheet'!BE161=\"\",\"\",'1. Ordersheet'!BE161)","v":""},{"$f":"IF('1. Ordersheet'!BF161=\"\",\"\",'1. Ordersheet'!BF161)","v":""},{"$f":"IF('1. Ordersheet'!BG161=\"\",\"\",'1. Ordersheet'!BG161)","v":"ZWO"},{"$f":"IF('1. Ordersheet'!BH161=\"\",\"\",'1. Ordersheet'!BH161)","v":""},{"$f":"IF('1. Ordersheet'!BI161=\"\",\"\",'1. Ordersheet'!BI161)","v":""},{"$f":"IF('1. Ordersheet'!BJ161=\"\",\"\",'1. Ordersheet'!BJ161)","v":""},{"$f":"IF('1. Ordersheet'!BK161=\"\",\"\",'1. Ordersheet'!BK161)","v":""},{"$f":"IF('1. Ordersheet'!BL161=\"\",\"\",'1. Ordersheet'!BL161)","v":""}]
[{"$f":"IF('1. Ordersheet'!F162=\"\",\"\",'1. Ordersheet'!F162)","v":""},{"$f":"IF('1. Ordersheet'!G162=\"\",\"\",'1. Ordersheet'!G162)","v":""},{"$f":"IF('1. Ordersheet'!H162=\"\",\"\",'1. Ordersheet'!H162)","v":""},{"$f":"IF('1. Ordersheet'!I162=\"\",\"\",'1. Ordersheet'!I162)","v":""},{"$f":"IF('1. Ordersheet'!J162=\"\",\"\",'1. Ordersheet'!J162)","v":""},{"$f":"IF('1. Ordersheet'!K162=\"\",\"\",'1. Ordersheet'!K162)","v":""},{"$f":"IF('1. Ordersheet'!L162=\"\",\"\",'1. Ordersheet'!L162)","v":""},{"$f":"IF('1. Ordersheet'!M162=\"\",\"\",'1. Ordersheet'!M162)","v":""},{"$f":"IF('1. Ordersheet'!N162=\"\",\"\",'1. Ordersheet'!N162)","v":""},{"$f":"IF('1. Ordersheet'!O162=\"\",\"\",'1. Ordersheet'!O162)","v":{"$error":"#N/A"}},{"$f":"IF('1. Ordersheet'!P162=\"\",\"\",'1. Ordersheet'!P162)","v":{"$error":"#N/A"}},{"$f":"IF('1. Ordersheet'!Q162=\"\",\"\",'1. Ordersheet'!Q162)","v":""},{"$f":"IF('1. Ordersheet'!R162=\"\",\"\",'1. Ordersheet'!R162)","v":""},{"$f":"IF('1. Ordersheet'!S162=\"\",\"\",'1. Ordersheet'!S162)","v":""},{"$f":"IF('1. Ordersheet'!V162=\"\",\"\",'1. Ordersheet'!V162)","v":""},{"$f":"IF('1. Ordersheet'!W162=\"\",\"\",'1. Ordersheet'!W162)","v":""},{"$f":"IF('1. Ordersheet'!X162=\"\",\"\",'1. Ordersheet'!X162)","v":""},{"$f":"IF('1. Ordersheet'!Y162=\"\",\"\",'1. Ordersheet'!Y162)","v":""},{"$f":"IF('1. Ordersheet'!Z162=\"\",\"\",'1. Ordersheet'!Z162)","v":""},{"$f":"IF('1. Ordersheet'!AA162=\"\",\"\",'1. Ordersheet'!AA162)","v":""},null,{"$f":"IF('1. Ordersheet'!AS162=\"\",\"\",'1. Ordersheet'!AS162)","v":""},{"$f":"IF('1. Ordersheet'!AT162=\"\",\"\",'1. Ordersheet'!AT162)","v":""},null,null,null,null,null,null,null,{"$f":"IF('1. Ordersheet'!AX162=\"\",\"\",'1. Ordersheet'!AX162)","v":""},{"$f":"IF('1. Ordersheet'!AY162=\"\",\"\",'1. Ordersheet'!AY162)","v":""},{"$f":"IF('1. Ordersheet'!AZ162=\"\",\"\",'1. Ordersheet'!AZ162)","v":""},{"$f":"IF('1. Ordersheet'!BA162=\"\",\"\",'1. Ordersheet'!BA162)","v":""},{"$f":"IF('1. Ordersheet'!BC162=\"\",\"\",'1. Ordersheet'!BC162)","v":""},{"$f":"IF('1. Ordersheet'!BD162=\"\",\"\",'1. Ordersheet'!BD162)","v":""},{"$f":"IF('1. Ordersheet'!BE162=\"\",\"\",'1. Ordersheet'!BE162)","v":""},{"$f":"IF('1. Ordersheet'!BF162=\"\",\"\",'1. Ordersheet'!BF162)","v":""},{"$f":"IF('1. Ordersheet'!BG162=\"\",\"\",'1. Ordersheet'!BG162)","v":"ZWO"},{"$f":"IF('1. Ordersheet'!BH162=\"\",\"\",'1. Ordersheet'!BH162)","v":""},{"$f":"IF('1. Ordersheet'!BI162=\"\",\"\",'1. Ordersheet'!BI162)","v":""},{"$f":"IF('1. Ordersheet'!BJ162=\"\",\"\",'1. Ordersheet'!BJ162)","v":""},{"$f":"IF('1. Ordersheet'!BK162=\"\",\"\",'1. Ordersheet'!BK162)","v":""},{"$f":"IF('1. Ordersheet'!BL162=\"\",\"\",'1. Ordersheet'!BL162)","v":""}]
[{"$f":"IF('1. Ordersheet'!F163=\"\",\"\",'1. Ordersheet'!F163)","v":""},{"$f":"IF('1. Ordersheet'!G163=\"\",\"\",'1. Ordersheet'!G163)","v":""},{"$f":"IF('1. Ordersheet'!H163=\"\",\"\",'1. Ordersheet'!H163)","v":""},{"$f":"IF('1. Ordersheet'!I163=\"\",\"\",'1. Ordersheet'!I163)","v":""},{"$f":"IF('1. Ordersheet'!J163=\"\",\"\",'1. Ordersheet'!J163)","v":""},{"$f":"IF('1. Ordersheet'!K163=\"\",\"\",'1. Ordersheet'!K163)","v":""},{"$f":"IF('1. Ordersheet'!L163=\"\",\"\",'1. Ordersheet'!L163)","v":""},{"$f":"IF('1. Ordersheet'!M163=\"\",\"\",'1. Ordersheet'!M163)","v":""},{"$f":"IF('1. Ordersheet'!N163=\"\",\"\",'1. Ordersheet'!N163)","v":""},{"$f":"IF('1. Ordersheet'!O163=\"\",\"\",'1. Ordersheet'!O163)","v":{"$error":"#N/A"}},{"$f":"IF('1. Ordersheet'!P163=\"\",\"\",'1. Ordersheet'!P163)","v":{"$error":"#N/A"}},{"$f":"IF('1. Ordersheet'!Q163=\"\",\"\",'1. Ordersheet'!Q163)","v":""},{"$f":"IF('1. Ordersheet'!R163=\"\",\"\",'1. Ordersheet'!R163)","v":""},{"$f":"IF('1. Ordersheet'!S163=\"\",\"\",'1. Ordersheet'!S163)","v":""},{"$f":"IF('1. Ordersheet'!V163=\"\",\"\",'1. Ordersheet'!V163)","v":""},{"$f":"IF('1. Ordersheet'!W163=\"\",\"\",'1. Ordersheet'!W163)","v":""},{"$f":"IF('1. Ordersheet'!X163=\"\",\"\",'1. Ordersheet'!X163)","v":""},{"$f":"IF('1. Ordersheet'!Y163=\"\",\"\",'1. Ordersheet'!Y163)","v":""},{"$f":"IF('1. Ordersheet'!Z163=\"\",\"\",'1. Ordersheet'!Z163)","v":""},{"$f":"IF('1. Ordersheet'!AA163=\"\",\"\",'1. Ordersheet'!AA163)","v":""},null,{"$f":"IF('1. Ordersheet'!AS163=\"\",\"\",'1. Ordersheet'!AS163)","v":""},{"$f":"IF('1. Ordersheet'!AT163=\"\",\"\",'1. Ordersheet'!AT163)","v":""},null,null,null,null,null,null,null,{"$f":"IF('1. Ordersheet'!AX163=\"\",\"\",'1. Ordersheet'!AX163)","v":""},{"$f":"IF('1. Ordersheet'!AY163=\"\",\"\",'1. Ordersheet'!AY163)","v":""},{"$f":"IF('1. Ordersheet'!AZ163=\"\",\"\",'1. Ordersheet'!AZ163)","v":""},{"$f":"IF('1. Ordersheet'!BA163=\"\",\"\",'1. Ordersheet'!BA163)","v":""},{"$f":"IF('1. Ordersheet'!BC163=\"\",\"\",'1. Ordersheet'!BC163)","v":""},{"$f":"IF('1. Ordersheet'!BD163=\"\",\"\",'1. Ordersheet'!BD163)","v":""},{"$f":"IF('1. Ordersheet'!BE163=\"\",\"\",'1. Ordersheet'!BE163)","v":""},{"$f":"IF('1. Ordersheet'!BF163=\"\",\"\",'1. Ordersheet'!BF163)","v":""},{"$f":"IF('1. Ordersheet'!BG163=\"\",\"\",'1. Ordersheet'!BG163)","v":"ZWO"},{"$f":"IF('1. Ordersheet'!BH163=\"\",\"\",'1. Ordersheet'!BH163)","v":""},{"$f":"IF('1. Ordersheet'!BI163=\"\",\"\",'1. Ordersheet'!BI163)","v":""},{"$f":"IF('1. Ordersheet'!BJ163=\"\",\"\",'1. Ordersheet'!BJ163)","v":""},{"$f":"IF('1. Ordersheet'!BK163=\"\",\"\",'1. Ordersheet'!BK163)","v":""},{"$f":"IF('1. Ordersheet'!BL163=\"\",\"\",'1. Ordersheet'!BL163)","v":""}]
[{"$f":"IF('1. Ordersheet'!F164=\"\",\"\",'1. Ordersheet'!F164)","v":""},{"$f":"IF('1. Ordersheet'!G164=\"\",\"\",'1. Ordersheet'!G164)","v":""},{"$f":"IF('1. Ordersheet'!H164=\"\",\"\",'1. Ordersheet'!H164)","v":""},{"$f":"IF('1. Ordersheet'!I164=\"\",\"\",'1. Ordersheet'!I164)","v":""},{"$f":"IF('1. Ordersheet'!J164=\"\",\"\",'1. Ordersheet'!J164)","v":""},{"$f":"IF('1. Ordersheet'!K164=\"\",\"\",'1. Ordersheet'!K164)","v":""},{"$f":"IF('1. Ordersheet'!L164=\"\",\"\",'1. Ordersheet'!L164)","v":""},{"$f":"IF('1. Ordersheet'!M164=\"\",\"\",'1. Ordersheet'!M164)","v":""},{"$f":"IF('1. Ordersheet'!N164=\"\",\"\",'1. Ordersheet'!N164)","v":""},{"$f":"IF('1. Ordersheet'!O164=\"\",\"\",'1. Ordersheet'!O164)","v":{"$error":"#N/A"}},{"$f":"IF('1. Ordersheet'!P164=\"\",\"\",'1. Ordersheet'!P164)","v":{"$error":"#N/A"}},{"$f":"IF('1. Ordersheet'!Q164=\"\",\"\",'1. Ordersheet'!Q164)","v":""},{"$f":"IF('1. Ordersheet'!R164=\"\",\"\",'1. Ordersheet'!R164)","v":""},{"$f":"IF('1. Ordersheet'!S164=\"\",\"\",'1. Ordersheet'!S164)","v":""},{"$f":"IF('1. Ordersheet'!V164=\"\",\"\",'1. Ordersheet'!V164)","v":""},{"$f":"IF('1. Ordersheet'!W164=\"\",\"\",'1. Ordersheet'!W164)","v":""},{"$f":"IF('1. Ordersheet'!X164=\"\",\"\",'1. Ordersheet'!X164)","v":""},{"$f":"IF('1. Ordersheet'!Y164=\"\",\"\",'1. Ordersheet'!Y164)","v":""},{"$f":"IF('1. Ordersheet'!Z164=\"\",\"\",'1. Ordersheet'!Z164)","v":""},{"$f":"IF('1. Ordersheet'!AA164=\"\",\"\",'1. Ordersheet'!AA164)","v":""},null,{"$f":"IF('1. Ordersheet'!AS164=\"\",\"\",'1. Ordersheet'!AS164)","v":""},{"$f":"IF('1. Ordersheet'!AT164=\"\",\"\",'1. Ordersheet'!AT164)","v":""},null,null,null,null,null,null,null,{"$f":"IF('1. Ordersheet'!AX164=\"\",\"\",'1. Ordersheet'!AX164)","v":""},{"$f":"IF('1. Ordersheet'!AY164=\"\",\"\",'1. Ordersheet'!AY164)","v":""},{"$f":"IF('1. Ordersheet'!AZ164=\"\",\"\",'1. Ordersheet'!AZ164)","v":""},{"$f":"IF('1. Ordersheet'!BA164=\"\",\"\",'1. Ordersheet'!BA164)","v":""},{"$f":"IF('1. Ordersheet'!BC164=\"\",\"\",'1. Ordersheet'!BC164)","v":""},{"$f":"IF('1. Ordersheet'!BD164=\"\",\"\",'1. Ordersheet'!BD164)","v":""},{"$f":"IF('1. Ordersheet'!BE164=\"\",\"\",'1. Ordersheet'!BE164)","v":""},{"$f":"IF('1. Ordersheet'!BF164=\"\",\"\",'1. Ordersheet'!BF164)","v":""},{"$f":"IF('1. Ordersheet'!BG164=\"\",\"\",'1. Ordersheet'!BG164)","v":"ZWO"},{"$f":"IF('1. Ordersheet'!BH164=\"\",\"\",'1. Ordersheet'!BH164)","v":""},{"$f":"IF('1. Ordersheet'!BI164=\"\",\"\",'1. Ordersheet'!BI164)","v":""},{"$f":"IF('1. Ordersheet'!BJ164=\"\",\"\",'1. Ordersheet'!BJ164)","v":""},{"$f":"IF('1. Ordersheet'!BK164=\"\",\"\",'1. Ordersheet'!BK164)","v":""},{"$f":"IF('1. Ordersheet'!BL164=\"\",\"\",'1. Ordersheet'!BL164)","v":""}]
[{"$f":"IF('1. Ordersheet'!F165=\"\",\"\",'1. Ordersheet'!F165)","v":""},{"$f":"IF('1. Ordersheet'!G165=\"\",\"\",'1. Ordersheet'!G165)","v":""},{"$f":"IF('1. Ordersheet'!H165=\"\",\"\",'1. Ordersheet'!H165)","v":""},{"$f":"IF('1. Ordersheet'!I165=\"\",\"\",'1. Ordersheet'!I165)","v":""},{"$f":"IF('1. Ordersheet'!J165=\"\",\"\",'1. Ordersheet'!J165)","v":""},{"$f":"IF('1. Ordersheet'!K165=\"\",\"\",'1. Ordersheet'!K165)","v":""},{"$f":"IF('1. Ordersheet'!L165=\"\",\"\",'1. Ordersheet'!L165)","v":""},{"$f":"IF('1. Ordersheet'!M165=\"\",\"\",'1. Ordersheet'!M165)","v":""},{"$f":"IF('1. Ordersheet'!N165=\"\",\"\",'1. Ordersheet'!N165)","v":""},{"$f":"IF('1. Ordersheet'!O165=\"\",\"\",'1. Ordersheet'!O165)","v":{"$error":"#N/A"}},{"$f":"IF('1. Ordersheet'!P165=\"\",\"\",'1. Ordersheet'!P165)","v":{"$error":"#N/A"}},{"$f":"IF('1. Ordersheet'!Q165=\"\",\"\",'1. Ordersheet'!Q165)","v":""},{"$f":"IF('1. Ordersheet'!R165=\"\",\"\",'1. Ordersheet'!R165)","v":""},{"$f":"IF('1. Ordersheet'!S165=\"\",\"\",'1. Ordersheet'!S165)","v":""},{"$f":"IF('1. Ordersheet'!V165=\"\",\"\",'1. Ordersheet'!V165)","v":""},{"$f":"IF('1. Ordersheet'!W165=\"\",\"\",'1. Ordersheet'!W165)","v":""},{"$f":"IF('1. Ordersheet'!X165=\"\",\"\",'1. Ordersheet'!X165)","v":""},{"$f":"IF('1. Ordersheet'!Y165=\"\",\"\",'1. Ordersheet'!Y165)","v":""},{"$f":"IF('1. Ordersheet'!Z165=\"\",\"\",'1. Ordersheet'!Z165)","v":""},{"$f":"IF('1. Ordersheet'!AA165=\"\",\"\",'1. Ordersheet'!AA165)","v":""},null,{"$f":"IF('1. Ordersheet'!AS165=\"\",\"\",'1. Ordersheet'!AS165)","v":""},{"$f":"IF('1. Ordersheet'!AT165=\"\",\"\",'1. Ordersheet'!AT165)","v":""},null,null,null,null,null,null,null,{"$f":"IF('1. Ordersheet'!AX165=\"\",\"\",'1. Ordersheet'!AX165)","v":""},{"$f":"IF('1. Ordersheet'!AY165=\"\",\"\",'1. Ordersheet'!AY165)","v":""},{"$f":"IF('1. Ordersheet'!AZ165=\"\",\"\",'1. Ordersheet'!AZ165)","v":""},{"$f":"IF('1. Ordersheet'!BA165=\"\",\"\",'1. Ordersheet'!BA165)","v":""},{"$f":"IF('1. Ordersheet'!BC165=\"\",\"\",'1. Ordersheet'!BC165)","v":""},{"$f":"IF('1. Ordersheet'!BD165=\"\",\"\",'1. Ordersheet'!BD165)","v":""},{"$f":"IF('1. Ordersheet'!BE165=\"\",\"\",'1. Ordersheet'!BE165)","v":""},{"$f":"IF('1. Ordersheet'!BF165=\"\",\"\",'1. Ordersheet'!BF165)","v":""},{"$f":"IF('1. Ordersheet'!BG165=\"\",\"\",'1. Ordersheet'!BG165)","v":"ZWO"},{"$f":"IF('1. Ordersheet'!BH165=\"\",\"\",'1. Ordersheet'!BH165)","v":""},{"$f":"IF('1. Ordersheet'!BI165=\"\",\"\",'1. Ordersheet'!BI165)","v":""},{"$f":"IF('1. Ordersheet'!BJ165=\"\",\"\",'1. Ordersheet'!BJ165)","v":""},{"$f":"IF('1. Ordersheet'!BK165=\"\",\"\",'1. Ordersheet'!BK165)","v":""},{"$f":"IF('1. Ordersheet'!BL165=\"\",\"\",'1. Ordersheet'!BL165)","v":""}]
[{"$f":"IF('1. Ordersheet'!F166=\"\",\"\",'1. Ordersheet'!F166)","v":""},{"$f":"IF('1. Ordersheet'!G166=\"\",\"\",'1. Ordersheet'!G166)","v":""},{"$f":"IF('1. Ordersheet'!H166=\"\",\"\",'1. Ordersheet'!H166)","v":""},{"$f":"IF('1. Ordersheet'!I166=\"\",\"\",'1. Ordersheet'!I166)","v":""},{"$f":"IF('1. Ordersheet'!J166=\"\",\"\",'1. Ordersheet'!J166)","v":""},{"$f":"IF('1. Ordersheet'!K166=\"\",\"\",'1. Ordersheet'!K166)","v":""},{"$f":"IF('1. Ordersheet'!L166=\"\",\"\",'1. Ordersheet'!L166)","v":""},{"$f":"IF('1. Ordersheet'!M166=\"\",\"\",'1. Ordersheet'!M166)","v":""},{"$f":"IF('1. Ordersheet'!N166=\"\",\"\",'1. Ordersheet'!N166)","v":""},{"$f":"IF('1. Ordersheet'!O166=\"\",\"\",'1. Ordersheet'!O166)","v":{"$error":"#N/A"}},{"$f":"IF('1. Ordersheet'!P166=\"\",\"\",'1. Ordersheet'!P166)","v":{"$error":"#N/A"}},{"$f":"IF('1. Ordersheet'!Q166=\"\",\"\",'1. Ordersheet'!Q166)","v":""},{"$f":"IF('1. Ordersheet'!R166=\"\",\"\",'1. Ordersheet'!R166)","v":""},{"$f":"IF('1. Ordersheet'!S166=\"\",\"\",'1. Ordersheet'!S166)","v":""},{"$f":"IF('1. Ordersheet'!V166=\"\",\"\",'1. Ordersheet'!V166)","v":""},{"$f":"IF('1. Ordersheet'!W166=\"\",\"\",'1. Ordersheet'!W166)","v":""},{"$f":"IF('1. Ordersheet'!X166=\"\",\"\",'1. Ordersheet'!X166)","v":""},{"$f":"IF('1. Ordersheet'!Y166=\"\",\"\",'1. Ordersheet'!Y166)","v":""},{"$f":"IF('1. Ordersheet'!Z166=\"\",\"\",'1. Ordersheet'!Z166)","v":""},{"$f":"IF('1. Ordersheet'!AA166=\"\",\"\",'1. Ordersheet'!AA166)","v":""},null,{"$f":"IF('1. Ordersheet'!AS166=\"\",\"\",'1. Ordersheet'!AS166)","v":""},{"$f":"IF('1. Ordersheet'!AT166=\"\",\"\",'1. Ordersheet'!AT166)","v":""},null,null,null,null,null,null,null,{"$f":"IF('1. Ordersheet'!AX166=\"\",\"\",'1. Ordersheet'!AX166)","v":""},{"$f":"IF('1. Ordersheet'!AY166=\"\",\"\",'1. Ordersheet'!AY166)","v":""},{"$f":"IF('1. Ordersheet'!AZ166=\"\",\"\",'1. Ordersheet'!AZ166)","v":""},{"$f":"IF('1. Ordersheet'!BA166=\"\",\"\",'1. Ordersheet'!BA166)","v":""},{"$f":"IF('1. Ordersheet'!BC166=\"\",\"\",'1. Ordersheet'!BC166)","v":""},{"$f":"IF('1. Ordersheet'!BD166=\"\",\"\",'1. Ordersheet'!BD166)","v":""},{"$f":"IF('1. Ordersheet'!BE166=\"\",\"\",'1. Ordersheet'!BE166)","v":""},{"$f":"IF('1. Ordersheet'!BF166=\"\",\"\",'1. Ordersheet'!BF166)","v":""},{"$f":"IF('1. Ordersheet'!BG166=\"\",\"\",'1. Ordersheet'!BG166)","v":"ZWO"},{"$f":"IF('1. Ordersheet'!BH166=\"\",\"\",'1. Ordersheet'!BH166)","v":""},{"$f":"IF('1. Ordersheet'!BI166=\"\",\"\",'1. Ordersheet'!BI166)","v":""},{"$f":"IF('1. Ordersheet'!BJ166=\"\",\"\",'1. Ordersheet'!BJ166)","v":""},{"$f":"IF('1. Ordersheet'!BK166=\"\",\"\",'1. Ordersheet'!BK166)","v":""},{"$f":"IF('1. Ordersheet'!BL166=\"\",\"\",'1. Ordersheet'!BL166)","v":""}]
[{"$f":"IF('1. Ordersheet'!F167=\"\",\"\",'1. Ordersheet'!F167)","v":""},{"$f":"IF('1. Ordersheet'!G167=\"\",\"\",'1. Ordersheet'!G167)","v":""},{"$f":"IF('1. Ordersheet'!H167=\"\",\"\",'1. Ordersheet'!H167)","v":""},{"$f":"IF('1. Ordersheet'!I167=\"\",\"\",'1. Ordersheet'!I167)","v":""},{"$f":"IF('1. Ordersheet'!J167=\"\",\"\",'1. Ordersheet'!J167)","v":""},{"$f":"IF('1. Ordersheet'!K167=\"\",\"\",'1. Ordersheet'!K167)","v":""},{"$f":"IF('1. Ordersheet'!L167=\"\",\"\",'1. Ordersheet'!L167)","v":""},{"$f":"IF('1. Ordersheet'!M167=\"\",\"\",'1. Ordersheet'!M167)","v":""},{"$f":"IF('1. Ordersheet'!N167=\"\",\"\",'1. Ordersheet'!N167)","v":""},{"$f":"IF('1. Ordersheet'!O167=\"\",\"\",'1. Ordersheet'!O167)","v":{"$error":"#N/A"}},{"$f":"IF('1. Ordersheet'!P167=\"\",\"\",'1. Ordersheet'!P167)","v":{"$error":"#N/A"}},{"$f":"IF('1. Ordersheet'!Q167=\"\",\"\",'1. Ordersheet'!Q167)","v":""},{"$f":"IF('1. Ordersheet'!R167=\"\",\"\",'1. Ordersheet'!R167)","v":""},{"$f":"IF('1. Ordersheet'!S167=\"\",\"\",'1. Ordersheet'!S167)","v":""},{"$f":"IF('1. Ordersheet'!V167=\"\",\"\",'1. Ordersheet'!V167)","v":""},{"$f":"IF('1. Ordersheet'!W167=\"\",\"\",'1. Ordersheet'!W167)","v":""},{"$f":"IF('1. Ordersheet'!X167=\"\",\"\",'1. Ordersheet'!X167)","v":""},{"$f":"IF('1. Ordersheet'!Y167=\"\",\"\",'1. Ordersheet'!Y167)","v":""},{"$f":"IF('1. Ordersheet'!Z167=\"\",\"\",'1. Ordersheet'!Z167)","v":""},{"$f":"IF('1. Ordersheet'!AA167=\"\",\"\",'1. Ordersheet'!AA167)","v":""},null,{"$f":"IF('1. Ordersheet'!AS167=\"\",\"\",'1. Ordersheet'!AS167)","v":""},{"$f":"IF('1. Ordersheet'!AT167=\"\",\"\",'1. Ordersheet'!AT167)","v":""},null,null,null,null,null,null,null,{"$f":"IF('1. Ordersheet'!AX167=\"\",\"\",'1. Ordersheet'!AX167)","v":""},{"$f":"IF('1. Ordersheet'!AY167=\"\",\"\",'1. Ordersheet'!AY167)","v":""},{"$f":"IF('1. Ordersheet'!AZ167=\"\",\"\",'1. Ordersheet'!AZ167)","v":""},{"$f":"IF('1. Ordersheet'!BA167=\"\",\"\",'1. Ordersheet'!BA167)","v":""},{"$f":"IF('1. Ordersheet'!BC167=\"\",\"\",'1. Ordersheet'!BC167)","v":""},{"$f":"IF('1. Ordersheet'!BD167=\"\",\"\",'1. Ordersheet'!BD167)","v":""},{"$f":"IF('1. Ordersheet'!BE167=\"\",\"\",'1. Ordersheet'!BE167)","v":""},{"$f":"IF('1. Ordersheet'!BF167=\"\",\"\",'1. Ordersheet'!BF167)","v":""},{"$f":"IF('1. Ordersheet'!BG167=\"\",\"\",'1. Ordersheet'!BG167)","v":"ZWO"},{"$f":"IF('1. Ordersheet'!BH167=\"\",\"\",'1. Ordersheet'!BH167)","v":""},{"$f":"IF('1. Ordersheet'!BI167=\"\",\"\",'1. Ordersheet'!BI167)","v":""},{"$f":"IF('1. Ordersheet'!BJ167=\"\",\"\",'1. Ordersheet'!BJ167)","v":""},{"$f":"IF('1. Ordersheet'!BK167=\"\",\"\",'1. Ordersheet'!BK167)","v":""},{"$f":"IF('1. Ordersheet'!BL167=\"\",\"\",'1. Ordersheet'!BL167)","v":""}]
[{"$f":"IF('1. Ordersheet'!F168=\"\",\"\",'1. Ordersheet'!F168)","v":""},{"$f":"IF('1. Ordersheet'!G168=\"\",\"\",'1. Ordersheet'!G168)","v":""},{"$f":"IF('1. Ordersheet'!H168=\"\",\"\",'1. Ordersheet'!H168)","v":""},{"$f":"IF('1. Ordersheet'!I168=\"\",\"\",'1. Ordersheet'!I168)","v":""},{"$f":"IF('1. Ordersheet'!J168=\"\",\"\",'1. Ordersheet'!J168)","v":""},{"$f":"IF('1. Ordersheet'!K168=\"\",\"\",'1. Ordersheet'!K168)","v":""},{"$f":"IF('1. Ordersheet'!L168=\"\",\"\",'1. Ordersheet'!L168)","v":""},{"$f":"IF('1. Ordersheet'!M168=\"\",\"\",'1. Ordersheet'!M168)","v":""},{"$f":"IF('1. Ordersheet'!N168=\"\",\"\",'1. Ordersheet'!N168)","v":""},{"$f":"IF('1. Ordersheet'!O168=\"\",\"\",'1. Ordersheet'!O168)","v":{"$error":"#N/A"}},{"$f":"IF('1. Ordersheet'!P168=\"\",\"\",'1. Ordersheet'!P168)","v":{"$error":"#N/A"}},{"$f":"IF('1. Ordersheet'!Q168=\"\",\"\",'1. Ordersheet'!Q168)","v":""},{"$f":"IF('1. Ordersheet'!R168=\"\",\"\",'1. Ordersheet'!R168)","v":""},{"$f":"IF('1. Ordersheet'!S168=\"\",\"\",'1. Ordersheet'!S168)","v":""},{"$f":"IF('1. Ordersheet'!V168=\"\",\"\",'1. Ordersheet'!V168)","v":""},{"$f":"IF('1. Ordersheet'!W168=\"\",\"\",'1. Ordersheet'!W168)","v":""},{"$f":"IF('1. Ordersheet'!X168=\"\",\"\",'1. Ordersheet'!X168)","v":""},{"$f":"IF('1. Ordersheet'!Y168=\"\",\"\",'1. Ordersheet'!Y168)","v":""},{"$f":"IF('1. Ordersheet'!Z168=\"\",\"\",'1. Ordersheet'!Z168)","v":""},{"$f":"IF('1. Ordersheet'!AA168=\"\",\"\",'1. Ordersheet'!AA168)","v":""},null,{"$f":"IF('1. Ordersheet'!AS168=\"\",\"\",'1. Ordersheet'!AS168)","v":""},{"$f":"IF('1. Ordersheet'!AT168=\"\",\"\",'1. Ordersheet'!AT168)","v":""},null,null,null,null,null,null,null,{"$f":"IF('1. Ordersheet'!AX168=\"\",\"\",'1. Ordersheet'!AX168)","v":""},{"$f":"IF('1. Ordersheet'!AY168=\"\",\"\",'1. Ordersheet'!AY168)","v":""},{"$f":"IF('1. Ordersheet'!AZ168=\"\",\"\",'1. Ordersheet'!AZ168)","v":""},{"$f":"IF('1. Ordersheet'!BA168=\"\",\"\",'1. Ordersheet'!BA168)","v":""},{"$f":"IF('1. Ordersheet'!BC168=\"\",\"\",'1. Ordersheet'!BC168)","v":""},{"$f":"IF('1. Ordersheet'!BD168=\"\",\"\",'1. Ordersheet'!BD168)","v":""},{"$f":"IF('1. Ordersheet'!BE168=\"\",\"\",'1. Ordersheet'!BE168)","v":""},{"$f":"IF('1. Ordersheet'!BF168=\"\",\"\",'1. Ordersheet'!BF168)","v":""},{"$f":"IF('1. Ordersheet'!BG168=\"\",\"\",'1. Ordersheet'!BG168)","v":"ZWO"},{"$f":"IF('1. Ordersheet'!BH168=\"\",\"\",'1. Ordersheet'!BH168)","v":""},{"$f":"IF('1. Ordersheet'!BI168=\"\",\"\",'1. Ordersheet'!BI168)","v":""},{"$f":"IF('1. Ordersheet'!BJ168=\"\",\"\",'1. Ordersheet'!BJ168)","v":""},{"$f":"IF('1. Ordersheet'!BK168=\"\",\"\",'1. Ordersheet'!BK168)","v":""},{"$f":"IF('1. Ordersheet'!BL168=\"\",\"\",'1. Ordersheet'!BL168)","v":""}]
[{"$f":"IF('1. Ordersheet'!F169=\"\",\"\",'1. Ordersheet'!F169)","v":""},{"$f":"IF('1. Ordersheet'!G169=\"\",\"\",'1. Ordersheet'!G169)","v":""},{"$f":"IF('1. Ordersheet'!H169=\"\",\"\",'1. Ordersheet'!H169)","v":""},{"$f":"IF('1. Ordersheet'!I169=\"\",\"\",'1. Ordersheet'!I169)","v":""},{"$f":"IF('1. Ordersheet'!J169=\"\",\"\",'1. Ordersheet'!J169)","v":""},{"$f":"IF('1. Ordersheet'!K169=\"\",\"\",'1. Ordersheet'!K169)","v":""},{"$f":"IF('1. Ordersheet'!L169=\"\",\"\",'1. Ordersheet'!L169)","v":""},{"$f":"IF('1. Ordersheet'!M169=\"\",\"\",'1. Ordersheet'!M169)","v":""},{"$f":"IF('1. Ordersheet'!N169=\"\",\"\",'1. Ordersheet'!N169)","v":""},{"$f":"IF('1. Ordersheet'!O169=\"\",\"\",'1. Ordersheet'!O169)","v":{"$error":"#N/A"}},{"$f":"IF('1. Ordersheet'!P169=\"\",\"\",'1. Ordersheet'!P169)","v":{"$error":"#N/A"}},{"$f":"IF('1. Ordersheet'!Q169=\"\",\"\",'1. Ordersheet'!Q169)","v":""},{"$f":"IF('1. Ordersheet'!R169=\"\",\"\",'1. Ordersheet'!R169)","v":""},{"$f":"IF('1. Ordersheet'!S169=\"\",\"\",'1. Ordersheet'!S169)","v":""},{"$f":"IF('1. Ordersheet'!V169=\"\",\"\",'1. Ordersheet'!V169)","v":""},{"$f":"IF('1. Ordersheet'!W169=\"\",\"\",'1. Ordersheet'!W169)","v":""},{"$f":"IF('1. Ordersheet'!X169=\"\",\"\",'1. Ordersheet'!X169)","v":""},{"$f":"IF('1. Ordersheet'!Y169=\"\",\"\",'1. Ordersheet'!Y169)","v":""},{"$f":"IF('1. Ordersheet'!Z169=\"\",\"\",'1. Ordersheet'!Z169)","v":""},{"$f":"IF('1. Ordersheet'!AA169=\"\",\"\",'1. Ordersheet'!AA169)","v":""},null,{"$f":"IF('1. Ordersheet'!AS169=\"\",\"\",'1. Ordersheet'!AS169)","v":""},{"$f":"IF('1. Ordersheet'!AT169=\"\",\"\",'1. Ordersheet'!AT169)","v":""},null,null,null,null,null,null,null,{"$f":"IF('1. Ordersheet'!AX169=\"\",\"\",'1. Ordersheet'!AX169)","v":""},{"$f":"IF('1. Ordersheet'!AY169=\"\",\"\",'1. Ordersheet'!AY169)","v":""},{"$f":"IF('1. Ordersheet'!AZ169=\"\",\"\",'1. Ordersheet'!AZ169)","v":""},{"$f":"IF('1. Ordersheet'!BA169=\"\",\"\",'1. Ordersheet'!BA169)","v":""},{"$f":"IF('1. Ordersheet'!BC169=\"\",\"\",'1. Ordersheet'!BC169)","v":""},{"$f":"IF('1. Ordersheet'!BD169=\"\",\"\",'1. Ordersheet'!BD169)","v":""},{"$f":"IF('1. Ordersheet'!BE169=\"\",\"\",'1. Ordersheet'!BE169)","v":""},{"$f":"IF('1. Ordersheet'!BF169=\"\",\"\",'1. Ordersheet'!BF169)","v":""},{"$f":"IF('1. Ordersheet'!BG169=\"\",\"\",'1. Ordersheet'!BG169)","v":"ZWO"},{"$f":"IF('1. Ordersheet'!BH169=\"\",\"\",'1. Ordersheet'!BH169)","v":""},{"$f":"IF('1. Ordersheet'!BI169=\"\",\"\",'1. Ordersheet'!BI169)","v":""},{"$f":"IF('1. Ordersheet'!BJ169=\"\",\"\",'1. Ordersheet'!BJ169)","v":""},{"$f":"IF('1. Ordersheet'!BK169=\"\",\"\",'1. Ordersheet'!BK169)","v":""},{"$f":"IF('1. Ordersheet'!BL169=\"\",\"\",'1. Ordersheet'!BL169)","v":""}]
[{"$f":"IF('1. Ordersheet'!F170=\"\",\"\",'1. Ordersheet'!F170)","v":""},{"$f":"IF('1. Ordersheet'!G170=\"\",\"\",'1. Ordersheet'!G170)","v":""},{"$f":"IF('1. Ordersheet'!H170=\"\",\"\",'1. Ordersheet'!H170)","v":""},{"$f":"IF('1. Ordersheet'!I170=\"\",\"\",'1. Ordersheet'!I170)","v":""},{"$f":"IF('1. Ordersheet'!J170=\"\",\"\",'1. Ordersheet'!J170)","v":""},{"$f":"IF('1. Ordersheet'!K170=\"\",\"\",'1. Ordersheet'!K170)","v":""},{"$f":"IF('1. Ordersheet'!L170=\"\",\"\",'1. Ordersheet'!L170)","v":""},{"$f":"IF('1. Ordersheet'!M170=\"\",\"\",'1. Ordersheet'!M170)","v":""},{"$f":"IF('1. Ordersheet'!N170=\"\",\"\",'1. Ordersheet'!N170)","v":""},{"$f":"IF('1. Ordersheet'!O170=\"\",\"\",'1. Ordersheet'!O170)","v":{"$error":"#N/A"}},{"$f":"IF('1. Ordersheet'!P170=\"\",\"\",'1. Ordersheet'!P170)","v":{"$error":"#N/A"}},{"$f":"IF('1. Ordersheet'!Q170=\"\",\"\",'1. Ordersheet'!Q170)","v":""},{"$f":"IF('1. Ordersheet'!R170=\"\",\"\",'1. Ordersheet'!R170)","v":""},{"$f":"IF('1. Ordersheet'!S170=\"\",\"\",'1. Ordersheet'!S170)","v":""},{"$f":"IF('1. Ordersheet'!V170=\"\",\"\",'1. Ordersheet'!V170)","v":""},{"$f":"IF('1. Ordersheet'!W170=\"\",\"\",'1. Ordersheet'!W170)","v":""},{"$f":"IF('1. Ordersheet'!X170=\"\",\"\",'1. Ordersheet'!X170)","v":""},{"$f":"IF('1. Ordersheet'!Y170=\"\",\"\",'1. Ordersheet'!Y170)","v":""},{"$f":"IF('1. Ordersheet'!Z170=\"\",\"\",'1. Ordersheet'!Z170)","v":""},{"$f":"IF('1. Ordersheet'!AA170=\"\",\"\",'1. Ordersheet'!AA170)","v":""},null,{"$f":"IF('1. Ordersheet'!AS170=\"\",\"\",'1. Ordersheet'!AS170)","v":""},{"$f":"IF('1. Ordersheet'!AT170=\"\",\"\",'1. Ordersheet'!AT170)","v":""},null,null,null,null,null,null,null,{"$f":"IF('1. Ordersheet'!AX170=\"\",\"\",'1. Ordersheet'!AX170)","v":""},{"$f":"IF('1. Ordersheet'!AY170=\"\",\"\",'1. Ordersheet'!AY170)","v":""},{"$f":"IF('1. Ordersheet'!AZ170=\"\",\"\",'1. Ordersheet'!AZ170)","v":""},{"$f":"IF('1. Ordersheet'!BA170=\"\",\"\",'1. Ordersheet'!BA170)","v":""},{"$f":"IF('1. Ordersheet'!BC170=\"\",\"\",'1. Ordersheet'!BC170)","v":""},{"$f":"IF('1. Ordersheet'!BD170=\"\",\"\",'1. Ordersheet'!BD170)","v":""},{"$f":"IF('1. Ordersheet'!BE170=\"\",\"\",'1. Ordersheet'!BE170)","v":""},{"$f":"IF('1. Ordersheet'!BF170=\"\",\"\",'1. Ordersheet'!BF170)","v":""},{"$f":"IF('1. Ordersheet'!BG170=\"\",\"\",'1. Ordersheet'!BG170)","v":"ZWO"},{"$f":"IF('1. Ordersheet'!BH170=\"\",\"\",'1. Ordersheet'!BH170)","v":""},{"$f":"IF('1. Ordersheet'!BI170=\"\",\"\",'1. Ordersheet'!BI170)","v":""},{"$f":"IF('1. Ordersheet'!BJ170=\"\",\"\",'1. Ordersheet'!BJ170)","v":""},{"$f":"IF('1. Ordersheet'!BK170=\"\",\"\",'1. Ordersheet'!BK170)","v":""},{"$f":"IF('1. Ordersheet'!BL170=\"\",\"\",'1. Ordersheet'!BL170)","v":""}]
[{"$f":"IF('1. Ordersheet'!F171=\"\",\"\",'1. Ordersheet'!F171)","v":""},{"$f":"IF('1. Ordersheet'!G171=\"\",\"\",'1. Ordersheet'!G171)","v":""},{"$f":"IF('1. Ordersheet'!H171=\"\",\"\",'1. Ordersheet'!H171)","v":""},{"$f":"IF('1. Ordersheet'!I171=\"\",\"\",'1. Ordersheet'!I171)","v":""},{"$f":"IF('1. Ordersheet'!J171=\"\",\"\",'1. Ordersheet'!J171)","v":""},{"$f":"IF('1. Ordersheet'!K171=\"\",\"\",'1. Ordersheet'!K171)","v":""},{"$f":"IF('1. Ordersheet'!L171=\"\",\"\",'1. Ordersheet'!L171)","v":""},{"$f":"IF('1. Ordersheet'!M171=\"\",\"\",'1. Ordersheet'!M171)","v":""},{"$f":"IF('1. Ordersheet'!N171=\"\",\"\",'1. Ordersheet'!N171)","v":""},{"$f":"IF('1. Ordersheet'!O171=\"\",\"\",'1. Ordersheet'!O171)","v":{"$error":"#N/A"}},{"$f":"IF('1. Ordersheet'!P171=\"\",\"\",'1. Ordersheet'!P171)","v":{"$error":"#N/A"}},{"$f":"IF('1. Ordersheet'!Q171=\"\",\"\",'1. Ordersheet'!Q171)","v":""},{"$f":"IF('1. Ordersheet'!R171=\"\",\"\",'1. Ordersheet'!R171)","v":""},{"$f":"IF('1. Ordersheet'!S171=\"\",\"\",'1. Ordersheet'!S171)","v":""},{"$f":"IF('1. Ordersheet'!V171=\"\",\"\",'1. Ordersheet'!V171)","v":""},{"$f":"IF('1. Ordersheet'!W171=\"\",\"\",'1. Ordersheet'!W171)","v":""},{"$f":"IF('1. Ordersheet'!X171=\"\",\"\",'1. Ordersheet'!X171)","v":""},{"$f":"IF('1. Ordersheet'!Y171=\"\",\"\",'1. Ordersheet'!Y171)","v":""},{"$f":"IF('1. Ordersheet'!Z171=\"\",\"\",'1. Ordersheet'!Z171)","v":""},{"$f":"IF('1. Ordersheet'!AA171=\"\",\"\",'1. Ordersheet'!AA171)","v":""},null,{"$f":"IF('1. Ordersheet'!AS171=\"\",\"\",'1. Ordersheet'!AS171)","v":""},{"$f":"IF('1. Ordersheet'!AT171=\"\",\"\",'1. Ordersheet'!AT171)","v":""},null,null,null,null,null,null,null,{"$f":"IF('1. Ordersheet'!AX171=\"\",\"\",'1. Ordersheet'!AX171)","v":""},{"$f":"IF('1. Ordersheet'!AY171=\"\",\"\",'1. Ordersheet'!AY171)","v":""},{"$f":"IF('1. Ordersheet'!AZ171=\"\",\"\",'1. Ordersheet'!AZ171)","v":""},{"$f":"IF('1. Ordersheet'!BA171=\"\",\"\",'1. Ordersheet'!BA171)","v":""},{"$f":"IF('1. Ordersheet'!BC171=\"\",\"\",'1. Ordersheet'!BC171)","v":""},{"$f":"IF('1. Ordersheet'!BD171=\"\",\"\",'1. Ordersheet'!BD171)","v":""},{"$f":"IF('1. Ordersheet'!BE171=\"\",\"\",'1. Ordersheet'!BE171)","v":""},{"$f":"IF('1. Ordersheet'!BF171=\"\",\"\",'1. Ordersheet'!BF171)","v":""},{"$f":"IF('1. Ordersheet'!BG171=\"\",\"\",'1. Ordersheet'!BG171)","v":"ZWO"},{"$f":"IF('1. Ordersheet'!BH171=\"\",\"\",'1. Ordersheet'!BH171)","v":""},{"$f":"IF('1. Ordersheet'!BI171=\"\",\"\",'1. Ordersheet'!BI171)","v":""},{"$f":"IF('1. Ordersheet'!BJ171=\"\",\"\",'1. Ordersheet'!BJ171)","v":""},{"$f":"IF('1. Ordersheet'!BK171=\"\",\"\",'1. Ordersheet'!BK171)","v":""},{"$f":"IF('1. Ordersheet'!BL171=\"\",\"\",'1. Ordersheet'!BL171)","v":""}]
[{"$f":"IF('1. Ordersheet'!F172=\"\",\"\",'1. Ordersheet'!F172)","v":""},{"$f":"IF('1. Ordersheet'!G172=\"\",\"\",'1. Ordersheet'!G172)","v":""},{"$f":"IF('1. Ordersheet'!H172=\"\",\"\",'1. Ordersheet'!H172)","v":""},{"$f":"IF('1. Ordersheet'!I172=\"\",\"\",'1. Ordersheet'!I172)","v":""},{"$f":"IF('1. Ordersheet'!J172=\"\",\"\",'1. Ordersheet'!J172)","v":""},{"$f":"IF('1. Ordersheet'!K172=\"\",\"\",'1. Ordersheet'!K172)","v":""},{"$f":"IF('1. Ordersheet'!L172=\"\",\"\",'1. Ordersheet'!L172)","v":""},{"$f":"IF('1. Ordersheet'!M172=\"\",\"\",'1. Ordersheet'!M172)","v":""},{"$f":"IF('1. Ordersheet'!N172=\"\",\"\",'1. Ordersheet'!N172)","v":""},{"$f":"IF('1. Ordersheet'!O172=\"\",\"\",'1. Ordersheet'!O172)","v":{"$error":"#N/A"}},{"$f":"IF('1. Ordersheet'!P172=\"\",\"\",'1. Ordersheet'!P172)","v":{"$error":"#N/A"}},{"$f":"IF('1. Ordersheet'!Q172=\"\",\"\",'1. Ordersheet'!Q172)","v":""},{"$f":"IF('1. Ordersheet'!R172=\"\",\"\",'1. Ordersheet'!R172)","v":""},{"$f":"IF('1. Ordersheet'!S172=\"\",\"\",'1. Ordersheet'!S172)","v":""},{"$f":"IF('1. Ordersheet'!V172=\"\",\"\",'1. Ordersheet'!V172)","v":""},{"$f":"IF('1. Ordersheet'!W172=\"\",\"\",'1. Ordersheet'!W172)","v":""},{"$f":"IF('1. Ordersheet'!X172=\"\",\"\",'1. Ordersheet'!X172)","v":""},{"$f":"IF('1. Ordersheet'!Y172=\"\",\"\",'1. Ordersheet'!Y172)","v":""},{"$f":"IF('1. Ordersheet'!Z172=\"\",\"\",'1. Ordersheet'!Z172)","v":""},{"$f":"IF('1. Ordersheet'!AA172=\"\",\"\",'1. Ordersheet'!AA172)","v":""},null,{"$f":"IF('1. Ordersheet'!AS172=\"\",\"\",'1. Ordersheet'!AS172)","v":""},{"$f":"IF('1. Ordersheet'!AT172=\"\",\"\",'1. Ordersheet'!AT172)","v":""},null,null,null,null,null,null,null,{"$f":"IF('1. Ordersheet'!AX172=\"\",\"\",'1. Ordersheet'!AX172)","v":""},{"$f":"IF('1. Ordersheet'!AY172=\"\",\"\",'1. Ordersheet'!AY172)","v":""},{"$f":"IF('1. Ordersheet'!AZ172=\"\",\"\",'1. Ordersheet'!AZ172)","v":""},{"$f":"IF('1. Ordersheet'!BA172=\"\",\"\",'1. Ordersheet'!BA172)","v":""},{"$f":"IF('1. Ordersheet'!BC172=\"\",\"\",'1. Ordersheet'!BC172)","v":""},{"$f":"IF('1. Ordersheet'!BD172=\"\",\"\",'1. Ordersheet'!BD172)","v":""},{"$f":"IF('1. Ordersheet'!BE172=\"\",\"\",'1. Ordersheet'!BE172)","v":""},{"$f":"IF('1. Ordersheet'!BF172=\"\",\"\",'1. Ordersheet'!BF172)","v":""},{"$f":"IF('1. Ordersheet'!BG172=\"\",\"\",'1. Ordersheet'!BG172)","v":"ZWO"},{"$f":"IF('1. Ordersheet'!BH172=\"\",\"\",'1. Ordersheet'!BH172)","v":""},{"$f":"IF('1. Ordersheet'!BI172=\"\",\"\",'1. Ordersheet'!BI172)","v":""},{"$f":"IF('1. Ordersheet'!BJ172=\"\",\"\",'1. Ordersheet'!BJ172)","v":""},{"$f":"IF('1. Ordersheet'!BK172=\"\",\"\",'1. Ordersheet'!BK172)","v":""},{"$f":"IF('1. Ordersheet'!BL172=\"\",\"\",'1. Ordersheet'!BL172)","v":""}]
[{"$f":"IF('1. Ordersheet'!F173=\"\",\"\",'1. Ordersheet'!F173)","v":""},{"$f":"IF('1. Ordersheet'!G173=\"\",\"\",'1. Ordersheet'!G173)","v":""},{"$f":"IF('1. Ordersheet'!H173=\"\",\"\",'1. Ordersheet'!H173)","v":""},{"$f":"IF('1. Ordersheet'!I173=\"\",\"\",'1. Ordersheet'!I173)","v":""},{"$f":"IF('1. Ordersheet'!J173=\"\",\"\",'1. Ordersheet'!J173)","v":""},{"$f":"IF('1. Ordersheet'!K173=\"\",\"\",'1. Ordersheet'!K173)","v":""},{"$f":"IF('1. Ordersheet'!L173=\"\",\"\",'1. Ordersheet'!L173)","v":""},{"$f":"IF('1. Ordersheet'!M173=\"\",\"\",'1. Ordersheet'!M173)","v":""},{"$f":"IF('1. Ordersheet'!N173=\"\",\"\",'1. Ordersheet'!N173)","v":""},{"$f":"IF('1. Ordersheet'!O173=\"\",\"\",'1. Ordersheet'!O173)","v":{"$error":"#N/A"}},{"$f":"IF('1. Ordersheet'!P173=\"\",\"\",'1. Ordersheet'!P173)","v":{"$error":"#N/A"}},{"$f":"IF('1. Ordersheet'!Q173=\"\",\"\",'1. Ordersheet'!Q173)","v":""},{"$f":"IF('1. Ordersheet'!R173=\"\",\"\",'1. Ordersheet'!R173)","v":""},{"$f":"IF('1. Ordersheet'!S173=\"\",\"\",'1. Ordersheet'!S173)","v":""},{"$f":"IF('1. Ordersheet'!V173=\"\",\"\",'1. Ordersheet'!V173)","v":""},{"$f":"IF('1. Ordersheet'!W173=\"\",\"\",'1. Ordersheet'!W173)","v":""},{"$f":"IF('1. Ordersheet'!X173=\"\",\"\",'1. Ordersheet'!X173)","v":""},{"$f":"IF('1. Ordersheet'!Y173=\"\",\"\",'1. Ordersheet'!Y173)","v":""},{"$f":"IF('1. Ordersheet'!Z173=\"\",\"\",'1. Ordersheet'!Z173)","v":""},{"$f":"IF('1. Ordersheet'!AA173=\"\",\"\",'1. Ordersheet'!AA173)","v":""},null,{"$f":"IF('1. Ordersheet'!AS173=\"\",\"\",'1. Ordersheet'!AS173)","v":""},{"$f":"IF('1. Ordersheet'!AT173=\"\",\"\",'1. Ordersheet'!AT173)","v":""},null,null,null,null,null,null,null,{"$f":"IF('1. Ordersheet'!AX173=\"\",\"\",'1. Ordersheet'!AX173)","v":""},{"$f":"IF('1. Ordersheet'!AY173=\"\",\"\",'1. Ordersheet'!AY173)","v":""},{"$f":"IF('1. Ordersheet'!AZ173=\"\",\"\",'1. Ordersheet'!AZ173)","v":""},{"$f":"IF('1. Ordersheet'!BA173=\"\",\"\",'1. Ordersheet'!BA173)","v":""},{"$f":"IF('1. Ordersheet'!BC173=\"\",\"\",'1. Ordersheet'!BC173)","v":""},{"$f":"IF('1. Ordersheet'!BD173=\"\",\"\",'1. Ordersheet'!BD173)","v":""},{"$f":"IF('1. Ordersheet'!BE173=\"\",\"\",'1. Ordersheet'!BE173)","v":""},{"$f":"IF('1. Ordersheet'!BF173=\"\",\"\",'1. Ordersheet'!BF173)","v":""},{"$f":"IF('1. Ordersheet'!BG173=\"\",\"\",'1. Ordersheet'!BG173)","v":"ZWO"},{"$f":"IF('1. Ordersheet'!BH173=\"\",\"\",'1. Ordersheet'!BH173)","v":""},{"$f":"IF('1. Ordersheet'!BI173=\"\",\"\",'1. Ordersheet'!BI173)","v":""},{"$f":"IF('1. Ordersheet'!BJ173=\"\",\"\",'1. Ordersheet'!BJ173)","v":""},{"$f":"IF('1. Ordersheet'!BK173=\"\",\"\",'1. Ordersheet'!BK173)","v":""},{"$f":"IF('1. Ordersheet'!BL173=\"\",\"\",'1. Ordersheet'!BL173)","v":""}]
[{"$f":"IF('1. Ordersheet'!F174=\"\",\"\",'1. Ordersheet'!F174)","v":""},{"$f":"IF('1. Ordersheet'!G174=\"\",\"\",'1. Ordersheet'!G174)","v":""},{"$f":"IF('1. Ordersheet'!H174=\"\",\"\",'1. Ordersheet'!H174)","v":""},{"$f":"IF('1. Ordersheet'!I174=\"\",\"\",'1. Ordersheet'!I174)","v":""},{"$f":"IF('1. Ordersheet'!J174=\"\",\"\",'1. Ordersheet'!J174)","v":""},{"$f":"IF('1. Ordersheet'!K174=\"\",\"\",'1. Ordersheet'!K174)","v":""},{"$f":"IF('1. Ordersheet'!L174=\"\",\"\",'1. Ordersheet'!L174)","v":""},{"$f":"IF('1. Ordersheet'!M174=\"\",\"\",'1. Ordersheet'!M174)","v":""},{"$f":"IF('1. Ordersheet'!N174=\"\",\"\",'1. Ordersheet'!N174)","v":""},{"$f":"IF('1. Ordersheet'!O174=\"\",\"\",'1. Ordersheet'!O174)","v":{"$error":"#N/A"}},{"$f":"IF('1. Ordersheet'!P174=\"\",\"\",'1. Ordersheet'!P174)","v":{"$error":"#N/A"}},{"$f":"IF('1. Ordersheet'!Q174=\"\",\"\",'1. Ordersheet'!Q174)","v":""},{"$f":"IF('1. Ordersheet'!R174=\"\",\"\",'1. Ordersheet'!R174)","v":""},{"$f":"IF('1. Ordersheet'!S174=\"\",\"\",'1. Ordersheet'!S174)","v":""},{"$f":"IF('1. Ordersheet'!V174=\"\",\"\",'1. Ordersheet'!V174)","v":""},{"$f":"IF('1. Ordersheet'!W174=\"\",\"\",'1. Ordersheet'!W174)","v":""},{"$f":"IF('1. Ordersheet'!X174=\"\",\"\",'1. Ordersheet'!X174)","v":""},{"$f":"IF('1. Ordersheet'!Y174=\"\",\"\",'1. Ordersheet'!Y174)","v":""},{"$f":"IF('1. Ordersheet'!Z174=\"\",\"\",'1. Ordersheet'!Z174)","v":""},{"$f":"IF('1. Ordersheet'!AA174=\"\",\"\",'1. Ordersheet'!AA174)","v":""},null,{"$f":"IF('1. Ordersheet'!AS174=\"\",\"\",'1. Ordersheet'!AS174)","v":""},{"$f":"IF('1. Ordersheet'!AT174=\"\",\"\",'1. Ordersheet'!AT174)","v":""},null,null,null,null,null,null,null,{"$f":"IF('1. Ordersheet'!AX174=\"\",\"\",'1. Ordersheet'!AX174)","v":""},{"$f":"IF('1. Ordersheet'!AY174=\"\",\"\",'1. Ordersheet'!AY174)","v":""},{"$f":"IF('1. Ordersheet'!AZ174=\"\",\"\",'1. Ordersheet'!AZ174)","v":""},{"$f":"IF('1. Ordersheet'!BA174=\"\",\"\",'1. Ordersheet'!BA174)","v":""},{"$f":"IF('1. Ordersheet'!BC174=\"\",\"\",'1. Ordersheet'!BC174)","v":""},{"$f":"IF('1. Ordersheet'!BD174=\"\",\"\",'1. Ordersheet'!BD174)","v":""},{"$f":"IF('1. Ordersheet'!BE174=\"\",\"\",'1. Ordersheet'!BE174)","v":""},{"$f":"IF('1. Ordersheet'!BF174=\"\",\"\",'1. Ordersheet'!BF174)","v":""},{"$f":"IF('1. Ordersheet'!BG174=\"\",\"\",'1. Ordersheet'!BG174)","v":"ZWO"},{"$f":"IF('1. Ordersheet'!BH174=\"\",\"\",'1. Ordersheet'!BH174)","v":""},{"$f":"IF('1. Ordersheet'!BI174=\"\",\"\",'1. Ordersheet'!BI174)","v":""},{"$f":"IF('1. Ordersheet'!BJ174=\"\",\"\",'1. Ordersheet'!BJ174)","v":""},{"$f":"IF('1. Ordersheet'!BK174=\"\",\"\",'1. Ordersheet'!BK174)","v":""},{"$f":"IF('1. Ordersheet'!BL174=\"\",\"\",'1. Ordersheet'!BL174)","v":""}]
[{"$f":"IF('1. Ordersheet'!F175=\"\",\"\",'1. Ordersheet'!F175)","v":""},{"$f":"IF('1. Ordersheet'!G175=\"\",\"\",'1. Ordersheet'!G175)","v":""},{"$f":"IF('1. Ordersheet'!H175=\"\",\"\",'1. Ordersheet'!H175)","v":""},{"$f":"IF('1. Ordersheet'!I175=\"\",\"\",'1. Ordersheet'!I175)","v":""},{"$f":"IF('1. Ordersheet'!J175=\"\",\"\",'1. Ordersheet'!J175)","v":""},{"$f":"IF('1. Ordersheet'!K175=\"\",\"\",'1. Ordersheet'!K175)","v":""},{"$f":"IF('1. Ordersheet'!L175=\"\",\"\",'1. Ordersheet'!L175)","v":""},{"$f":"IF('1. Ordersheet'!M175=\"\",\"\",'1. Ordersheet'!M175)","v":""},{"$f":"IF('1. Ordersheet'!N175=\"\",\"\",'1. Ordersheet'!N175)","v":""},{"$f":"IF('1. Ordersheet'!O175=\"\",\"\",'1. Ordersheet'!O175)","v":{"$error":"#N/A"}},{"$f":"IF('1. Ordersheet'!P175=\"\",\"\",'1. Ordersheet'!P175)","v":{"$error":"#N/A"}},{"$f":"IF('1. Ordersheet'!Q175=\"\",\"\",'1. Ordersheet'!Q175)","v":""},{"$f":"IF('1. Ordersheet'!R175=\"\",\"\",'1. Ordersheet'!R175)","v":""},{"$f":"IF('1. Ordersheet'!S175=\"\",\"\",'1. Ordersheet'!S175)","v":""},{"$f":"IF('1. Ordersheet'!V175=\"\",\"\",'1. Ordersheet'!V175)","v":""},{"$f":"IF('1. Ordersheet'!W175=\"\",\"\",'1. Ordersheet'!W175)","v":""},{"$f":"IF('1. Ordersheet'!X175=\"\",\"\",'1. Ordersheet'!X175)","v":""},{"$f":"IF('1. Ordersheet'!Y175=\"\",\"\",'1. Ordersheet'!Y175)","v":""},{"$f":"IF('1. Ordersheet'!Z175=\"\",\"\",'1. Ordersheet'!Z175)","v":""},{"$f":"IF('1. Ordersheet'!AA175=\"\",\"\",'1. Ordersheet'!AA175)","v":""},null,{"$f":"IF('1. Ordersheet'!AS175=\"\",\"\",'1. Ordersheet'!AS175)","v":""},{"$f":"IF('1. Ordersheet'!AT175=\"\",\"\",'1. Ordersheet'!AT175)","v":""},null,null,null,null,null,null,null,{"$f":"IF('1. Ordersheet'!AX175=\"\",\"\",'1. Ordersheet'!AX175)","v":""},{"$f":"IF('1. Ordersheet'!AY175=\"\",\"\",'1. Ordersheet'!AY175)","v":""},{"$f":"IF('1. Ordersheet'!AZ175=\"\",\"\",'1. Ordersheet'!AZ175)","v":""},{"$f":"IF('1. Ordersheet'!BA175=\"\",\"\",'1. Ordersheet'!BA175)","v":""},{"$f":"IF('1. Ordersheet'!BC175=\"\",\"\",'1. Ordersheet'!BC175)","v":""},{"$f":"IF('1. Ordersheet'!BD175=\"\",\"\",'1. Ordersheet'!BD175)","v":""},{"$f":"IF('1. Ordersheet'!BE175=\"\",\"\",'1. Ordersheet'!BE175)","v":""},{"$f":"IF('1. Ordersheet'!BF175=\"\",\"\",'1. Ordersheet'!BF175)","v":""},{"$f":"IF('1. Ordersheet'!BG175=\"\",\"\",'1. Ordersheet'!BG175)","v":"ZWO"},{"$f":"IF('1. Ordersheet'!BH175=\"\",\"\",'1. Ordersheet'!BH175)","v":""},{"$f":"IF('1. Ordersheet'!BI175=\"\",\"\",'1. Ordersheet'!BI175)","v":""},{"$f":"IF('1. Ordersheet'!BJ175=\"\",\"\",'1. Ordersheet'!BJ175)","v":""},{"$f":"IF('1. Ordersheet'!BK175=\"\",\"\",'1. Ordersheet'!BK175)","v":""},{"$f":"IF('1. Ordersheet'!BL175=\"\",\"\",'1. Ordersheet'!BL175)","v":""}]
[{"$f":"IF('1. Ordersheet'!F176=\"\",\"\",'1. Ordersheet'!F176)","v":""},{"$f":"IF('1. Ordersheet'!G176=\"\",\"\",'1. Ordersheet'!G176)","v":""},{"$f":"IF('1. Ordersheet'!H176=\"\",\"\",'1. Ordersheet'!H176)","v":""},{"$f":"IF('1. Ordersheet'!I176=\"\",\"\",'1. Ordersheet'!I176)","v":""},{"$f":"IF('1. Ordersheet'!J176=\"\",\"\",'1. Ordersheet'!J176)","v":""},{"$f":"IF('1. Ordersheet'!K176=\"\",\"\",'1. Ordersheet'!K176)","v":""},{"$f":"IF('1. Ordersheet'!L176=\"\",\"\",'1. Ordersheet'!L176)","v":""},{"$f":"IF('1. Ordersheet'!M176=\"\",\"\",'1. Ordersheet'!M176)","v":""},{"$f":"IF('1. Ordersheet'!N176=\"\",\"\",'1. Ordersheet'!N176)","v":""},{"$f":"IF('1. Ordersheet'!O176=\"\",\"\",'1. Ordersheet'!O176)","v":{"$error":"#N/A"}},{"$f":"IF('1. Ordersheet'!P176=\"\",\"\",'1. Ordersheet'!P176)","v":{"$error":"#N/A"}},{"$f":"IF('1. Ordersheet'!Q176=\"\",\"\",'1. Ordersheet'!Q176)","v":""},{"$f":"IF('1. Ordersheet'!R176=\"\",\"\",'1. Ordersheet'!R176)","v":""},{"$f":"IF('1. Ordersheet'!S176=\"\",\"\",'1. Ordersheet'!S176)","v":""},{"$f":"IF('1. Ordersheet'!V176=\"\",\"\",'1. Ordersheet'!V176)","v":""},{"$f":"IF('1. Ordersheet'!W176=\"\",\"\",'1. Ordersheet'!W176)","v":""},{"$f":"IF('1. Ordersheet'!X176=\"\",\"\",'1. Ordersheet'!X176)","v":""},{"$f":"IF('1. Ordersheet'!Y176=\"\",\"\",'1. Ordersheet'!Y176)","v":""},{"$f":"IF('1. Ordersheet'!Z176=\"\",\"\",'1. Ordersheet'!Z176)","v":""},{"$f":"IF('1. Ordersheet'!AA176=\"\",\"\",'1. Ordersheet'!AA176)","v":""},null,{"$f":"IF('1. Ordersheet'!AS176=\"\",\"\",'1. Ordersheet'!AS176)","v":""},{"$f":"IF('1. Ordersheet'!AT176=\"\",\"\",'1. Ordersheet'!AT176)","v":""},null,null,null,null,null,null,null,{"$f":"IF('1. Ordersheet'!AX176=\"\",\"\",'1. Ordersheet'!AX176)","v":""},{"$f":"IF('1. Ordersheet'!AY176=\"\",\"\",'1. Ordersheet'!AY176)","v":""},{"$f":"IF('1. Ordersheet'!AZ176=\"\",\"\",'1. Ordersheet'!AZ176)","v":""},{"$f":"IF('1. Ordersheet'!BA176=\"\",\"\",'1. Ordersheet'!BA176)","v":""},{"$f":"IF('1. Ordersheet'!BC176=\"\",\"\",'1. Ordersheet'!BC176)","v":""},{"$f":"IF('1. Ordersheet'!BD176=\"\",\"\",'1. Ordersheet'!BD176)","v":""},{"$f":"IF('1. Ordersheet'!BE176=\"\",\"\",'1. Ordersheet'!BE176)","v":""},{"$f":"IF('1. Ordersheet'!BF176=\"\",\"\",'1. Ordersheet'!BF176)","v":""},{"$f":"IF('1. Ordersheet'!BG176=\"\",\"\",'1. Ordersheet'!BG176)","v":"ZWO"},{"$f":"IF('1. Ordersheet'!BH176=\"\",\"\",'1. Ordersheet'!BH176)","v":""},{"$f":"IF('1. Ordersheet'!BI176=\"\",\"\",'1. Ordersheet'!BI176)","v":""},{"$f":"IF('1. Ordersheet'!BJ176=\"\",\"\",'1. Ordersheet'!BJ176)","v":""},{"$f":"IF('1. Ordersheet'!BK176=\"\",\"\",'1. Ordersheet'!BK176)","v":""},{"$f":"IF('1. Ordersheet'!BL176=\"\",\"\",'1. Ordersheet'!BL176)","v":""}]
[{"$f":"IF('1. Ordersheet'!F177=\"\",\"\",'1. Ordersheet'!F177)","v":""},{"$f":"IF('1. Ordersheet'!G177=\"\",\"\",'1. Ordersheet'!G177)","v":""},{"$f":"IF('1. Ordersheet'!H177=\"\",\"\",'1. Ordersheet'!H177)","v":""},{"$f":"IF('1. Ordersheet'!I177=\"\",\"\",'1. Ordersheet'!I177)","v":""},{"$f":"IF('1. Ordersheet'!J177=\"\",\"\",'1. Ordersheet'!J177)","v":""},{"$f":"IF('1. Ordersheet'!K177=\"\",\"\",'1. Ordersheet'!K177)","v":""},{"$f":"IF('1. Ordersheet'!L177=\"\",\"\",'1. Ordersheet'!L177)","v":""},{"$f":"IF('1. Ordersheet'!M177=\"\",\"\",'1. Ordersheet'!M177)","v":""},{"$f":"IF('1. Ordersheet'!N177=\"\",\"\",'1. Ordersheet'!N177)","v":""},{"$f":"IF('1. Ordersheet'!O177=\"\",\"\",'1. Ordersheet'!O177)","v":{"$error":"#N/A"}},{"$f":"IF('1. Ordersheet'!P177=\"\",\"\",'1. Ordersheet'!P177)","v":{"$error":"#N/A"}},{"$f":"IF('1. Ordersheet'!Q177=\"\",\"\",'1. Ordersheet'!Q177)","v":""},{"$f":"IF('1. Ordersheet'!R177=\"\",\"\",'1. Ordersheet'!R177)","v":""},{"$f":"IF('1. Ordersheet'!S177=\"\",\"\",'1. Ordersheet'!S177)","v":""},{"$f":"IF('1. Ordersheet'!V177=\"\",\"\",'1. Ordersheet'!V177)","v":""},{"$f":"IF('1. Ordersheet'!W177=\"\",\"\",'1. Ordersheet'!W177)","v":""},{"$f":"IF('1. Ordersheet'!X177=\"\",\"\",'1. Ordersheet'!X177)","v":""},{"$f":"IF('1. Ordersheet'!Y177=\"\",\"\",'1. Ordersheet'!Y177)","v":""},{"$f":"IF('1. Ordersheet'!Z177=\"\",\"\",'1. Ordersheet'!Z177)","v":""},{"$f":"IF('1. Ordersheet'!AA177=\"\",\"\",'1. Ordersheet'!AA177)","v":""},null,{"$f":"IF('1. Ordersheet'!AS177=\"\",\"\",'1. Ordersheet'!AS177)","v":""},{"$f":"IF('1. Ordersheet'!AT177=\"\",\"\",'1. Ordersheet'!AT177)","v":""},null,null,null,null,null,null,null,{"$f":"IF('1. Ordersheet'!AX177=\"\",\"\",'1. Ordersheet'!AX177)","v":""},{"$f":"IF('1. Ordersheet'!AY177=\"\",\"\",'1. Ordersheet'!AY177)","v":""},{"$f":"IF('1. Ordersheet'!AZ177=\"\",\"\",'1. Ordersheet'!AZ177)","v":""},{"$f":"IF('1. Ordersheet'!BA177=\"\",\"\",'1. Ordersheet'!BA177)","v":""},{"$f":"IF('1. Ordersheet'!BC177=\"\",\"\",'1. Ordersheet'!BC177)","v":""},{"$f":"IF('1. Ordersheet'!BD177=\"\",\"\",'1. Ordersheet'!BD177)","v":""},{"$f":"IF('1. Ordersheet'!BE177=\"\",\"\",'1. Ordersheet'!BE177)","v":""},{"$f":"IF('1. Ordersheet'!BF177=\"\",\"\",'1. Ordersheet'!BF177)","v":""},{"$f":"IF('1. Ordersheet'!BG177=\"\",\"\",'1. Ordersheet'!BG177)","v":"ZWO"},{"$f":"IF('1. Ordersheet'!BH177=\"\",\"\",'1. Ordersheet'!BH177)","v":""},{"$f":"IF('1. Ordersheet'!BI177=\"\",\"\",'1. Ordersheet'!BI177)","v":""},{"$f":"IF('1. Ordersheet'!BJ177=\"\",\"\",'1. Ordersheet'!BJ177)","v":""},{"$f":"IF('1. Ordersheet'!BK177=\"\",\"\",'1. Ordersheet'!BK177)","v":""},{"$f":"IF('1. Ordersheet'!BL177=\"\",\"\",'1. Ordersheet'!BL177)","v":""}]
[{"$f":"IF('1. Ordersheet'!F178=\"\",\"\",'1. Ordersheet'!F178)","v":""},{"$f":"IF('1. Ordersheet'!G178=\"\",\"\",'1. Ordersheet'!G178)","v":""},{"$f":"IF('1. Ordersheet'!H178=\"\",\"\",'1. Ordersheet'!H178)","v":""},{"$f":"IF('1. Ordersheet'!I178=\"\",\"\",'1. Ordersheet'!I178)","v":""},{"$f":"IF('1. Ordersheet'!J178=\"\",\"\",'1. Ordersheet'!J178)","v":""},{"$f":"IF('1. Ordersheet'!K178=\"\",\"\",'1. Ordersheet'!K178)","v":""},{"$f":"IF('1. Ordersheet'!L178=\"\",\"\",'1. Ordersheet'!L178)","v":""},{"$f":"IF('1. Ordersheet'!M178=\"\",\"\",'1. Ordersheet'!M178)","v":""},{"$f":"IF('1. Ordersheet'!N178=\"\",\"\",'1. Ordersheet'!N178)","v":""},{"$f":"IF('1. Ordersheet'!O178=\"\",\"\",'1. Ordersheet'!O178)","v":{"$error":"#N/A"}},{"$f":"IF('1. Ordersheet'!P178=\"\",\"\",'1. Ordersheet'!P178)","v":{"$error":"#N/A"}},{"$f":"IF('1. Ordersheet'!Q178=\"\",\"\",'1. Ordersheet'!Q178)","v":""},{"$f":"IF('1. Ordersheet'!R178=\"\",\"\",'1. Ordersheet'!R178)","v":""},{"$f":"IF('1. Ordersheet'!S178=\"\",\"\",'1. Ordersheet'!S178)","v":""},{"$f":"IF('1. Ordersheet'!V178=\"\",\"\",'1. Ordersheet'!V178)","v":""},{"$f":"IF('1. Ordersheet'!W178=\"\",\"\",'1. Ordersheet'!W178)","v":""},{"$f":"IF('1. Ordersheet'!X178=\"\",\"\",'1. Ordersheet'!X178)","v":""},{"$f":"IF('1. Ordersheet'!Y178=\"\",\"\",'1. Ordersheet'!Y178)","v":""},{"$f":"IF('1. Ordersheet'!Z178=\"\",\"\",'1. Ordersheet'!Z178)","v":""},{"$f":"IF('1. Ordersheet'!AA178=\"\",\"\",'1. Ordersheet'!AA178)","v":""},null,{"$f":"IF('1. Ordersheet'!AS178=\"\",\"\",'1. Ordersheet'!AS178)","v":""},{"$f":"IF('1. Ordersheet'!AT178=\"\",\"\",'1. Ordersheet'!AT178)","v":""},null,null,null,null,null,null,null,{"$f":"IF('1. Ordersheet'!AX178=\"\",\"\",'1. Ordersheet'!AX178)","v":""},{"$f":"IF('1. Ordersheet'!AY178=\"\",\"\",'1. Ordersheet'!AY178)","v":""},{"$f":"IF('1. Ordersheet'!AZ178=\"\",\"\",'1. Ordersheet'!AZ178)","v":""},{"$f":"IF('1. Ordersheet'!BA178=\"\",\"\",'1. Ordersheet'!BA178)","v":""},{"$f":"IF('1. Ordersheet'!BC178=\"\",\"\",'1. Ordersheet'!BC178)","v":""},{"$f":"IF('1. Ordersheet'!BD178=\"\",\"\",'1. Ordersheet'!BD178)","v":""},{"$f":"IF('1. Ordersheet'!BE178=\"\",\"\",'1. Ordersheet'!BE178)","v":""},{"$f":"IF('1. Ordersheet'!BF178=\"\",\"\",'1. Ordersheet'!BF178)","v":""},{"$f":"IF('1. Ordersheet'!BG178=\"\",\"\",'1. Ordersheet'!BG178)","v":"ZWO"},{"$f":"IF('1. Ordersheet'!BH178=\"\",\"\",'1. Ordersheet'!BH178)","v":""},{"$f":"IF('1. Ordersheet'!BI178=\"\",\"\",'1. Ordersheet'!BI178)","v":""},{"$f":"IF('1. Ordersheet'!BJ178=\"\",\"\",'1. Ordersheet'!BJ178)","v":""},{"$f":"IF('1. Ordersheet'!BK178=\"\",\"\",'1. Ordersheet'!BK178)","v":""},{"$f":"IF('1. Ordersheet'!BL178=\"\",\"\",'1. Ordersheet'!BL178)","v":""}]
[{"$f":"IF('1. Ordersheet'!F179=\"\",\"\",'1. Ordersheet'!F179)","v":""},{"$f":"IF('1. Ordersheet'!G179=\"\",\"\",'1. Ordersheet'!G179)","v":""},{"$f":"IF('1. Ordersheet'!H179=\"\",\"\",'1. Ordersheet'!H179)","v":""},{"$f":"IF('1. Ordersheet'!I179=\"\",\"\",'1. Ordersheet'!I179)","v":""},{"$f":"IF('1. Ordersheet'!J179=\"\",\"\",'1. Ordersheet'!J179)","v":""},{"$f":"IF('1. Ordersheet'!K179=\"\",\"\",'1. Ordersheet'!K179)","v":""},{"$f":"IF('1. Ordersheet'!L179=\"\",\"\",'1. Ordersheet'!L179)","v":""},{"$f":"IF('1. Ordersheet'!M179=\"\",\"\",'1. Ordersheet'!M179)","v":""},{"$f":"IF('1. Ordersheet'!N179=\"\",\"\",'1. Ordersheet'!N179)","v":""},{"$f":"IF('1. Ordersheet'!O179=\"\",\"\",'1. Ordersheet'!O179)","v":{"$error":"#N/A"}},{"$f":"IF('1. Ordersheet'!P179=\"\",\"\",'1. Ordersheet'!P179)","v":{"$error":"#N/A"}},{"$f":"IF('1. Ordersheet'!Q179=\"\",\"\",'1. Ordersheet'!Q179)","v":""},{"$f":"IF('1. Ordersheet'!R179=\"\",\"\",'1. Ordersheet'!R179)","v":""},{"$f":"IF('1. Ordersheet'!S179=\"\",\"\",'1. Ordersheet'!S179)","v":""},{"$f":"IF('1. Ordersheet'!V179=\"\",\"\",'1. Ordersheet'!V179)","v":""},{"$f":"IF('1. Ordersheet'!W179=\"\",\"\",'1. Ordersheet'!W179)","v":""},{"$f":"IF('1. Ordersheet'!X179=\"\",\"\",'1. Ordersheet'!X179)","v":""},{"$f":"IF('1. Ordersheet'!Y179=\"\",\"\",'1. Ordersheet'!Y179)","v":""},{"$f":"IF('1. Ordersheet'!Z179=\"\",\"\",'1. Ordersheet'!Z179)","v":""},{"$f":"IF('1. Ordersheet'!AA179=\"\",\"\",'1. Ordersheet'!AA179)","v":""},null,{"$f":"IF('1. Ordersheet'!AS179=\"\",\"\",'1. Ordersheet'!AS179)","v":""},{"$f":"IF('1. Ordersheet'!AT179=\"\",\"\",'1. Ordersheet'!AT179)","v":""},null,null,null,null,null,null,null,{"$f":"IF('1. Ordersheet'!AX179=\"\",\"\",'1. Ordersheet'!AX179)","v":""},{"$f":"IF('1. Ordersheet'!AY179=\"\",\"\",'1. Ordersheet'!AY179)","v":""},{"$f":"IF('1. Ordersheet'!AZ179=\"\",\"\",'1. Ordersheet'!AZ179)","v":""},{"$f":"IF('1. Ordersheet'!BA179=\"\",\"\",'1. Ordersheet'!BA179)","v":""},{"$f":"IF('1. Ordersheet'!BC179=\"\",\"\",'1. Ordersheet'!BC179)","v":""},{"$f":"IF('1. Ordersheet'!BD179=\"\",\"\",'1. Ordersheet'!BD179)","v":""},{"$f":"IF('1. Ordersheet'!BE179=\"\",\"\",'1. Ordersheet'!BE179)","v":""},{"$f":"IF('1. Ordersheet'!BF179=\"\",\"\",'1. Ordersheet'!BF179)","v":""},{"$f":"IF('1. Ordersheet'!BG179=\"\",\"\",'1. Ordersheet'!BG179)","v":"ZWO"},{"$f":"IF('1. Ordersheet'!BH179=\"\",\"\",'1. Ordersheet'!BH179)","v":""},{"$f":"IF('1. Ordersheet'!BI179=\"\",\"\",'1. Ordersheet'!BI179)","v":""},{"$f":"IF('1. Ordersheet'!BJ179=\"\",\"\",'1. Ordersheet'!BJ179)","v":""},{"$f":"IF('1. Ordersheet'!BK179=\"\",\"\",'1. Ordersheet'!BK179)","v":""},{"$f":"IF('1. Ordersheet'!BL179=\"\",\"\",'1. Ordersheet'!BL179)","v":""}]
[{"$f":"IF('1. Ordersheet'!F180=\"\",\"\",'1. Ordersheet'!F180)","v":""},{"$f":"IF('1. Ordersheet'!G180=\"\",\"\",'1. Ordersheet'!G180)","v":""},{"$f":"IF('1. Ordersheet'!H180=\"\",\"\",'1. Ordersheet'!H180)","v":""},{"$f":"IF('1. Ordersheet'!I180=\"\",\"\",'1. Ordersheet'!I180)","v":""},{"$f":"IF('1. Ordersheet'!J180=\"\",\"\",'1. Ordersheet'!J180)","v":""},{"$f":"IF('1. Ordersheet'!K180=\"\",\"\",'1. Ordersheet'!K180)","v":""},{"$f":"IF('1. Ordersheet'!L180=\"\",\"\",'1. Ordersheet'!L180)","v":""},{"$f":"IF('1. Ordersheet'!M180=\"\",\"\",'1. Ordersheet'!M180)","v":""},{"$f":"IF('1. Ordersheet'!N180=\"\",\"\",'1. Ordersheet'!N180)","v":""},{"$f":"IF('1. Ordersheet'!O180=\"\",\"\",'1. Ordersheet'!O180)","v":{"$error":"#N/A"}},{"$f":"IF('1. Ordersheet'!P180=\"\",\"\",'1. Ordersheet'!P180)","v":{"$error":"#N/A"}},{"$f":"IF('1. Ordersheet'!Q180=\"\",\"\",'1. Ordersheet'!Q180)","v":""},{"$f":"IF('1. Ordersheet'!R180=\"\",\"\",'1. Ordersheet'!R180)","v":""},{"$f":"IF('1. Ordersheet'!S180=\"\",\"\",'1. Ordersheet'!S180)","v":""},{"$f":"IF('1. Ordersheet'!V180=\"\",\"\",'1. Ordersheet'!V180)","v":""},{"$f":"IF('1. Ordersheet'!W180=\"\",\"\",'1. Ordersheet'!W180)","v":""},{"$f":"IF('1. Ordersheet'!X180=\"\",\"\",'1. Ordersheet'!X180)","v":""},{"$f":"IF('1. Ordersheet'!Y180=\"\",\"\",'1. Ordersheet'!Y180)","v":""},{"$f":"IF('1. Ordersheet'!Z180=\"\",\"\",'1. Ordersheet'!Z180)","v":""},{"$f":"IF('1. Ordersheet'!AA180=\"\",\"\",'1. Ordersheet'!AA180)","v":""},null,{"$f":"IF('1. Ordersheet'!AS180=\"\",\"\",'1. Ordersheet'!AS180)","v":""},{"$f":"IF('1. Ordersheet'!AT180=\"\",\"\",'1. Ordersheet'!AT180)","v":""},null,null,null,null,null,null,null,{"$f":"IF('1. Ordersheet'!AX180=\"\",\"\",'1. Ordersheet'!AX180)","v":""},{"$f":"IF('1. Ordersheet'!AY180=\"\",\"\",'1. Ordersheet'!AY180)","v":""},{"$f":"IF('1. Ordersheet'!AZ180=\"\",\"\",'1. Ordersheet'!AZ180)","v":""},{"$f":"IF('1. Ordersheet'!BA180=\"\",\"\",'1. Ordersheet'!BA180)","v":""},{"$f":"IF('1. Ordersheet'!BC180=\"\",\"\",'1. Ordersheet'!BC180)","v":""},{"$f":"IF('1. Ordersheet'!BD180=\"\",\"\",'1. Ordersheet'!BD180)","v":""},{"$f":"IF('1. Ordersheet'!BE180=\"\",\"\",'1. Ordersheet'!BE180)","v":""},{"$f":"IF('1. Ordersheet'!BF180=\"\",\"\",'1. Ordersheet'!BF180)","v":""},{"$f":"IF('1. Ordersheet'!BG180=\"\",\"\",'1. Ordersheet'!BG180)","v":"ZWO"},{"$f":"IF('1. Ordersheet'!BH180=\"\",\"\",'1. Ordersheet'!BH180)","v":""},{"$f":"IF('1. Ordersheet'!BI180=\"\",\"\",'1. Ordersheet'!BI180)","v":""},{"$f":"IF('1. Ordersheet'!BJ180=\"\",\"\",'1. Ordersheet'!BJ180)","v":""},{"$f":"IF('1. Ordersheet'!BK180=\"\",\"\",'1. Ordersheet'!BK180)","v":""},{"$f":"IF('1. Ordersheet'!BL180=\"\",\"\",'1. Ordersheet'!BL180)","v":""}]
[{"$f":"IF('1. Ordersheet'!F181=\"\",\"\",'1. Ordersheet'!F181)","v":""},{"$f":"IF('1. Ordersheet'!G181=\"\",\"\",'1. Ordersheet'!G181)","v":""},{"$f":"IF('1. Ordersheet'!H181=\"\",\"\",'1. Ordersheet'!H181)","v":""},{"$f":"IF('1. Ordersheet'!I181=\"\",\"\",'1. Ordersheet'!I181)","v":""},{"$f":"IF('1. Ordersheet'!J181=\"\",\"\",'1. Ordersheet'!J181)","v":""},{"$f":"IF('1. Ordersheet'!K181=\"\",\"\",'1. Ordersheet'!K181)","v":""},{"$f":"IF('1. Ordersheet'!L181=\"\",\"\",'1. Ordersheet'!L181)","v":""},{"$f":"IF('1. Ordersheet'!M181=\"\",\"\",'1. Ordersheet'!M181)","v":""},{"$f":"IF('1. Ordersheet'!N181=\"\",\"\",'1. Ordersheet'!N181)","v":""},{"$f":"IF('1. Ordersheet'!O181=\"\",\"\",'1. Ordersheet'!O181)","v":{"$error":"#N/A"}},{"$f":"IF('1. Ordersheet'!P181=\"\",\"\",'1. Ordersheet'!P181)","v":{"$error":"#N/A"}},{"$f":"IF('1. Ordersheet'!Q181=\"\",\"\",'1. Ordersheet'!Q181)","v":""},{"$f":"IF('1. Ordersheet'!R181=\"\",\"\",'1. Ordersheet'!R181)","v":""},{"$f":"IF('1. Ordersheet'!S181=\"\",\"\",'1. Ordersheet'!S181)","v":""},{"$f":"IF('1. Ordersheet'!V181=\"\",\"\",'1. Ordersheet'!V181)","v":""},{"$f":"IF('1. Ordersheet'!W181=\"\",\"\",'1. Ordersheet'!W181)","v":""},{"$f":"IF('1. Ordersheet'!X181=\"\",\"\",'1. Ordersheet'!X181)","v":""},{"$f":"IF('1. Ordersheet'!Y181=\"\",\"\",'1. Ordersheet'!Y181)","v":""},{"$f":"IF('1. Ordersheet'!Z181=\"\",\"\",'1. Ordersheet'!Z181)","v":""},{"$f":"IF('1. Ordersheet'!AA181=\"\",\"\",'1. Ordersheet'!AA181)","v":""},null,{"$f":"IF('1. Ordersheet'!AS181=\"\",\"\",'1. Ordersheet'!AS181)","v":""},{"$f":"IF('1. Ordersheet'!AT181=\"\",\"\",'1. Ordersheet'!AT181)","v":""},null,null,null,null,null,null,null,{"$f":"IF('1. Ordersheet'!AX181=\"\",\"\",'1. Ordersheet'!AX181)","v":""},{"$f":"IF('1. Ordersheet'!AY181=\"\",\"\",'1. Ordersheet'!AY181)","v":""},{"$f":"IF('1. Ordersheet'!AZ181=\"\",\"\",'1. Ordersheet'!AZ181)","v":""},{"$f":"IF('1. Ordersheet'!BA181=\"\",\"\",'1. Ordersheet'!BA181)","v":""},{"$f":"IF('1. Ordersheet'!BC181=\"\",\"\",'1. Ordersheet'!BC181)","v":""},{"$f":"IF('1. Ordersheet'!BD181=\"\",\"\",'1. Ordersheet'!BD181)","v":""},{"$f":"IF('1. Ordersheet'!BE181=\"\",\"\",'1. Ordersheet'!BE181)","v":""},{"$f":"IF('1. Ordersheet'!BF181=\"\",\"\",'1. Ordersheet'!BF181)","v":""},{"$f":"IF('1. Ordersheet'!BG181=\"\",\"\",'1. Ordersheet'!BG181)","v":"ZWO"},{"$f":"IF('1. Ordersheet'!BH181=\"\",\"\",'1. Ordersheet'!BH181)","v":""},{"$f":"IF('1. Ordersheet'!BI181=\"\",\"\",'1. Ordersheet'!BI181)","v":""},{"$f":"IF('1. Ordersheet'!BJ181=\"\",\"\",'1. Ordersheet'!BJ181)","v":""},{"$f":"IF('1. Ordersheet'!BK181=\"\",\"\",'1. Ordersheet'!BK181)","v":""},{"$f":"IF('1. Ordersheet'!BL181=\"\",\"\",'1. Ordersheet'!BL181)","v":""}]
[{"$f":"IF('1. Ordersheet'!F182=\"\",\"\",'1. Ordersheet'!F182)","v":""},{"$f":"IF('1. Ordersheet'!G182=\"\",\"\",'1. Ordersheet'!G182)","v":""},{"$f":"IF('1. Ordersheet'!H182=\"\",\"\",'1. Ordersheet'!H182)","v":""},{"$f":"IF('1. Ordersheet'!I182=\"\",\"\",'1. Ordersheet'!I182)","v":""},{"$f":"IF('1. Ordersheet'!J182=\"\",\"\",'1. Ordersheet'!J182)","v":""},{"$f":"IF('1. Ordersheet'!K182=\"\",\"\",'1. Ordersheet'!K182)","v":""},{"$f":"IF('1. Ordersheet'!L182=\"\",\"\",'1. Ordersheet'!L182)","v":""},{"$f":"IF('1. Ordersheet'!M182=\"\",\"\",'1. Ordersheet'!M182)","v":""},{"$f":"IF('1. Ordersheet'!N182=\"\",\"\",'1. Ordersheet'!N182)","v":""},{"$f":"IF('1. Ordersheet'!O182=\"\",\"\",'1. Ordersheet'!O182)","v":{"$error":"#N/A"}},{"$f":"IF('1. Ordersheet'!P182=\"\",\"\",'1. Ordersheet'!P182)","v":{"$error":"#N/A"}},{"$f":"IF('1. Ordersheet'!Q182=\"\",\"\",'1. Ordersheet'!Q182)","v":""},{"$f":"IF('1. Ordersheet'!R182=\"\",\"\",'1. Ordersheet'!R182)","v":""},{"$f":"IF('1. Ordersheet'!S182=\"\",\"\",'1. Ordersheet'!S182)","v":""},{"$f":"IF('1. Ordersheet'!V182=\"\",\"\",'1. Ordersheet'!V182)","v":""},{"$f":"IF('1. Ordersheet'!W182=\"\",\"\",'1. Ordersheet'!W182)","v":""},{"$f":"IF('1. Ordersheet'!X182=\"\",\"\",'1. Ordersheet'!X182)","v":""},{"$f":"IF('1. Ordersheet'!Y182=\"\",\"\",'1. Ordersheet'!Y182)","v":""},{"$f":"IF('1. Ordersheet'!Z182=\"\",\"\",'1. Ordersheet'!Z182)","v":""},{"$f":"IF('1. Ordersheet'!AA182=\"\",\"\",'1. Ordersheet'!AA182)","v":""},null,{"$f":"IF('1. Ordersheet'!AS182=\"\",\"\",'1. Ordersheet'!AS182)","v":""},{"$f":"IF('1. Ordersheet'!AT182=\"\",\"\",'1. Ordersheet'!AT182)","v":""},null,null,null,null,null,null,null,{"$f":"IF('1. Ordersheet'!AX182=\"\",\"\",'1. Ordersheet'!AX182)","v":""},{"$f":"IF('1. Ordersheet'!AY182=\"\",\"\",'1. Ordersheet'!AY182)","v":""},{"$f":"IF('1. Ordersheet'!AZ182=\"\",\"\",'1. Ordersheet'!AZ182)","v":""},{"$f":"IF('1. Ordersheet'!BA182=\"\",\"\",'1. Ordersheet'!BA182)","v":""},{"$f":"IF('1. Ordersheet'!BC182=\"\",\"\",'1. Ordersheet'!BC182)","v":""},{"$f":"IF('1. Ordersheet'!BD182=\"\",\"\",'1. Ordersheet'!BD182)","v":""},{"$f":"IF('1. Ordersheet'!BE182=\"\",\"\",'1. Ordersheet'!BE182)","v":""},{"$f":"IF('1. Ordersheet'!BF182=\"\",\"\",'1. Ordersheet'!BF182)","v":""},{"$f":"IF('1. Ordersheet'!BG182=\"\",\"\",'1. Ordersheet'!BG182)","v":"ZWO"},{"$f":"IF('1. Ordersheet'!BH182=\"\",\"\",'1. Ordersheet'!BH182)","v":""},{"$f":"IF('1. Ordersheet'!BI182=\"\",\"\",'1. Ordersheet'!BI182)","v":""},{"$f":"IF('1. Ordersheet'!BJ182=\"\",\"\",'1. Ordersheet'!BJ182)","v":""},{"$f":"IF('1. Ordersheet'!BK182=\"\",\"\",'1. Ordersheet'!BK182)","v":""},{"$f":"IF('1. Ordersheet'!BL182=\"\",\"\",'1. Ordersheet'!BL182)","v":""}]
[{"$f":"IF('1. Ordersheet'!F183=\"\",\"\",'1. Ordersheet'!F183)","v":""},{"$f":"IF('1. Ordersheet'!G183=\"\",\"\",'1. Ordersheet'!G183)","v":""},{"$f":"IF('1. Ordersheet'!H183=\"\",\"\",'1. Ordersheet'!H183)","v":""},{"$f":"IF('1. Ordersheet'!I183=\"\",\"\",'1. Ordersheet'!I183)","v":""},{"$f":"IF('1. Ordersheet'!J183=\"\",\"\",'1. Ordersheet'!J183)","v":""},{"$f":"IF('1. Ordersheet'!K183=\"\",\"\",'1. Ordersheet'!K183)","v":""},{"$f":"IF('1. Ordersheet'!L183=\"\",\"\",'1. Ordersheet'!L183)","v":""},{"$f":"IF('1. Ordersheet'!M183=\"\",\"\",'1. Ordersheet'!M183)","v":""},{"$f":"IF('1. Ordersheet'!N183=\"\",\"\",'1. Ordersheet'!N183)","v":""},{"$f":"IF('1. Ordersheet'!O183=\"\",\"\",'1. Ordersheet'!O183)","v":{"$error":"#N/A"}},{"$f":"IF('1. Ordersheet'!P183=\"\",\"\",'1. Ordersheet'!P183)","v":{"$error":"#N/A"}},{"$f":"IF('1. Ordersheet'!Q183=\"\",\"\",'1. Ordersheet'!Q183)","v":""},{"$f":"IF('1. Ordersheet'!R183=\"\",\"\",'1. Ordersheet'!R183)","v":""},{"$f":"IF('1. Ordersheet'!S183=\"\",\"\",'1. Ordersheet'!S183)","v":""},{"$f":"IF('1. Ordersheet'!V183=\"\",\"\",'1. Ordersheet'!V183)","v":""},{"$f":"IF('1. Ordersheet'!W183=\"\",\"\",'1. Ordersheet'!W183)","v":""},{"$f":"IF('1. Ordersheet'!X183=\"\",\"\",'1. Ordersheet'!X183)","v":""},{"$f":"IF('1. Ordersheet'!Y183=\"\",\"\",'1. Ordersheet'!Y183)","v":""},{"$f":"IF('1. Ordersheet'!Z183=\"\",\"\",'1. Ordersheet'!Z183)","v":""},{"$f":"IF('1. Ordersheet'!AA183=\"\",\"\",'1. Ordersheet'!AA183)","v":""},null,{"$f":"IF('1. Ordersheet'!AS183=\"\",\"\",'1. Ordersheet'!AS183)","v":""},{"$f":"IF('1. Ordersheet'!AT183=\"\",\"\",'1. Ordersheet'!AT183)","v":""},null,null,null,null,null,null,null,{"$f":"IF('1. Ordersheet'!AX183=\"\",\"\",'1. Ordersheet'!AX183)","v":""},{"$f":"IF('1. Ordersheet'!AY183=\"\",\"\",'1. Ordersheet'!AY183)","v":""},{"$f":"IF('1. Ordersheet'!AZ183=\"\",\"\",'1. Ordersheet'!AZ183)","v":""},{"$f":"IF('1. Ordersheet'!BA183=\"\",\"\",'1. Ordersheet'!BA183)","v":""},{"$f":"IF('1. Ordersheet'!BC183=\"\",\"\",'1. Ordersheet'!BC183)","v":""},{"$f":"IF('1. Ordersheet'!BD183=\"\",\"\",'1. Ordersheet'!BD183)","v":""},{"$f":"IF('1. Ordersheet'!BE183=\"\",\"\",'1. Ordersheet'!BE183)","v":""},{"$f":"IF('1. Ordersheet'!BF183=\"\",\"\",'1. Ordersheet'!BF183)","v":""},{"$f":"IF('1. Ordersheet'!BG183=\"\",\"\",'1. Ordersheet'!BG183)","v":"ZWO"},{"$f":"IF('1. Ordersheet'!BH183=\"\",\"\",'1. Ordersheet'!BH183)","v":""},{"$f":"IF('1. Ordersheet'!BI183=\"\",\"\",'1. Ordersheet'!BI183)","v":""},{"$f":"IF('1. Ordersheet'!BJ183=\"\",\"\",'1. Ordersheet'!BJ183)","v":""},{"$f":"IF('1. Ordersheet'!BK183=\"\",\"\",'1. Ordersheet'!BK183)","v":""},{"$f":"IF('1. Ordersheet'!BL183=\"\",\"\",'1. Ordersheet'!BL183)","v":""}]
[{"$f":"IF('1. Ordersheet'!F184=\"\",\"\",'1. Ordersheet'!F184)","v":""},{"$f":"IF('1. Ordersheet'!G184=\"\",\"\",'1. Ordersheet'!G184)","v":""},{"$f":"IF('1. Ordersheet'!H184=\"\",\"\",'1. Ordersheet'!H184)","v":""},{"$f":"IF('1. Ordersheet'!I184=\"\",\"\",'1. Ordersheet'!I184)","v":""},{"$f":"IF('1. Ordersheet'!J184=\"\",\"\",'1. Ordersheet'!J184)","v":""},{"$f":"IF('1. Ordersheet'!K184=\"\",\"\",'1. Ordersheet'!K184)","v":""},{"$f":"IF('1. Ordersheet'!L184=\"\",\"\",'1. Ordersheet'!L184)","v":""},{"$f":"IF('1. Ordersheet'!M184=\"\",\"\",'1. Ordersheet'!M184)","v":""},{"$f":"IF('1. Ordersheet'!N184=\"\",\"\",'1. Ordersheet'!N184)","v":""},{"$f":"IF('1. Ordersheet'!O184=\"\",\"\",'1. Ordersheet'!O184)","v":{"$error":"#N/A"}},{"$f":"IF('1. Ordersheet'!P184=\"\",\"\",'1. Ordersheet'!P184)","v":{"$error":"#N/A"}},{"$f":"IF('1. Ordersheet'!Q184=\"\",\"\",'1. Ordersheet'!Q184)","v":""},{"$f":"IF('1. Ordersheet'!R184=\"\",\"\",'1. Ordersheet'!R184)","v":""},{"$f":"IF('1. Ordersheet'!S184=\"\",\"\",'1. Ordersheet'!S184)","v":""},{"$f":"IF('1. Ordersheet'!V184=\"\",\"\",'1. Ordersheet'!V184)","v":""},{"$f":"IF('1. Ordersheet'!W184=\"\",\"\",'1. Ordersheet'!W184)","v":""},{"$f":"IF('1. Ordersheet'!X184=\"\",\"\",'1. Ordersheet'!X184)","v":""},{"$f":"IF('1. Ordersheet'!Y184=\"\",\"\",'1. Ordersheet'!Y184)","v":""},{"$f":"IF('1. Ordersheet'!Z184=\"\",\"\",'1. Ordersheet'!Z184)","v":""},{"$f":"IF('1. Ordersheet'!AA184=\"\",\"\",'1. Ordersheet'!AA184)","v":""},null,{"$f":"IF('1. Ordersheet'!AS184=\"\",\"\",'1. Ordersheet'!AS184)","v":""},{"$f":"IF('1. Ordersheet'!AT184=\"\",\"\",'1. Ordersheet'!AT184)","v":""},null,null,null,null,null,null,null,{"$f":"IF('1. Ordersheet'!AX184=\"\",\"\",'1. Ordersheet'!AX184)","v":""},{"$f":"IF('1. Ordersheet'!AY184=\"\",\"\",'1. Ordersheet'!AY184)","v":""},{"$f":"IF('1. Ordersheet'!AZ184=\"\",\"\",'1. Ordersheet'!AZ184)","v":""},{"$f":"IF('1. Ordersheet'!BA184=\"\",\"\",'1. Ordersheet'!BA184)","v":""},{"$f":"IF('1. Ordersheet'!BC184=\"\",\"\",'1. Ordersheet'!BC184)","v":""},{"$f":"IF('1. Ordersheet'!BD184=\"\",\"\",'1. Ordersheet'!BD184)","v":""},{"$f":"IF('1. Ordersheet'!BE184=\"\",\"\",'1. Ordersheet'!BE184)","v":""},{"$f":"IF('1. Ordersheet'!BF184=\"\",\"\",'1. Ordersheet'!BF184)","v":""},{"$f":"IF('1. Ordersheet'!BG184=\"\",\"\",'1. Ordersheet'!BG184)","v":"ZWO"},{"$f":"IF('1. Ordersheet'!BH184=\"\",\"\",'1. Ordersheet'!BH184)","v":""},{"$f":"IF('1. Ordersheet'!BI184=\"\",\"\",'1. Ordersheet'!BI184)","v":""},{"$f":"IF('1. Ordersheet'!BJ184=\"\",\"\",'1. Ordersheet'!BJ184)","v":""},{"$f":"IF('1. Ordersheet'!BK184=\"\",\"\",'1. Ordersheet'!BK184)","v":""},{"$f":"IF('1. Ordersheet'!BL184=\"\",\"\",'1. Ordersheet'!BL184)","v":""}]
[{"$f":"IF('1. Ordersheet'!F185=\"\",\"\",'1. Ordersheet'!F185)","v":""},{"$f":"IF('1. Ordersheet'!G185=\"\",\"\",'1. Ordersheet'!G185)","v":""},{"$f":"IF('1. Ordersheet'!H185=\"\",\"\",'1. Ordersheet'!H185)","v":""},{"$f":"IF('1. Ordersheet'!I185=\"\",\"\",'1. Ordersheet'!I185)","v":""},{"$f":"IF('1. Ordersheet'!J185=\"\",\"\",'1. Ordersheet'!J185)","v":""},{"$f":"IF('1. Ordersheet'!K185=\"\",\"\",'1. Ordersheet'!K185)","v":""},{"$f":"IF('1. Ordersheet'!L185=\"\",\"\",'1. Ordersheet'!L185)","v":""},{"$f":"IF('1. Ordersheet'!M185=\"\",\"\",'1. Ordersheet'!M185)","v":""},{"$f":"IF('1. Ordersheet'!N185=\"\",\"\",'1. Ordersheet'!N185)","v":""},{"$f":"IF('1. Ordersheet'!O185=\"\",\"\",'1. Ordersheet'!O185)","v":{"$error":"#N/A"}},{"$f":"IF('1. Ordersheet'!P185=\"\",\"\",'1. Ordersheet'!P185)","v":{"$error":"#N/A"}},{"$f":"IF('1. Ordersheet'!Q185=\"\",\"\",'1. Ordersheet'!Q185)","v":""},{"$f":"IF('1. Ordersheet'!R185=\"\",\"\",'1. Ordersheet'!R185)","v":""},{"$f":"IF('1. Ordersheet'!S185=\"\",\"\",'1. Ordersheet'!S185)","v":""},{"$f":"IF('1. Ordersheet'!V185=\"\",\"\",'1. Ordersheet'!V185)","v":""},{"$f":"IF('1. Ordersheet'!W185=\"\",\"\",'1. Ordersheet'!W185)","v":""},{"$f":"IF('1. Ordersheet'!X185=\"\",\"\",'1. Ordersheet'!X185)","v":""},{"$f":"IF('1. Ordersheet'!Y185=\"\",\"\",'1. Ordersheet'!Y185)","v":""},{"$f":"IF('1. Ordersheet'!Z185=\"\",\"\",'1. Ordersheet'!Z185)","v":""},{"$f":"IF('1. Ordersheet'!AA185=\"\",\"\",'1. Ordersheet'!AA185)","v":""},null,{"$f":"IF('1. Ordersheet'!AS185=\"\",\"\",'1. Ordersheet'!AS185)","v":""},{"$f":"IF('1. Ordersheet'!AT185=\"\",\"\",'1. Ordersheet'!AT185)","v":""},null,null,null,null,null,null,null,{"$f":"IF('1. Ordersheet'!AX185=\"\",\"\",'1. Ordersheet'!AX185)","v":""},{"$f":"IF('1. Ordersheet'!AY185=\"\",\"\",'1. Ordersheet'!AY185)","v":""},{"$f":"IF('1. Ordersheet'!AZ185=\"\",\"\",'1. Ordersheet'!AZ185)","v":""},{"$f":"IF('1. Ordersheet'!BA185=\"\",\"\",'1. Ordersheet'!BA185)","v":""},{"$f":"IF('1. Ordersheet'!BC185=\"\",\"\",'1. Ordersheet'!BC185)","v":""},{"$f":"IF('1. Ordersheet'!BD185=\"\",\"\",'1. Ordersheet'!BD185)","v":""},{"$f":"IF('1. Ordersheet'!BE185=\"\",\"\",'1. Ordersheet'!BE185)","v":""},{"$f":"IF('1. Ordersheet'!BF185=\"\",\"\",'1. Ordersheet'!BF185)","v":""},{"$f":"IF('1. Ordersheet'!BG185=\"\",\"\",'1. Ordersheet'!BG185)","v":"ZWO"},{"$f":"IF('1. Ordersheet'!BH185=\"\",\"\",'1. Ordersheet'!BH185)","v":""},{"$f":"IF('1. Ordersheet'!BI185=\"\",\"\",'1. Ordersheet'!BI185)","v":""},{"$f":"IF('1. Ordersheet'!BJ185=\"\",\"\",'1. Ordersheet'!BJ185)","v":""},{"$f":"IF('1. Ordersheet'!BK185=\"\",\"\",'1. Ordersheet'!BK185)","v":""},{"$f":"IF('1. Ordersheet'!BL185=\"\",\"\",'1. Ordersheet'!BL185)","v":""}]
[{"$f":"IF('1. Ordersheet'!F186=\"\",\"\",'1. Ordersheet'!F186)","v":""},{"$f":"IF('1. Ordersheet'!G186=\"\",\"\",'1. Ordersheet'!G186)","v":""},{"$f":"IF('1. Ordersheet'!H186=\"\",\"\",'1. Ordersheet'!H186)","v":""},{"$f":"IF('1. Ordersheet'!I186=\"\",\"\",'1. Ordersheet'!I186)","v":""},{"$f":"IF('1. Ordersheet'!J186=\"\",\"\",'1. Ordersheet'!J186)","v":""},{"$f":"IF('1. Ordersheet'!K186=\"\",\"\",'1. Ordersheet'!K186)","v":""},{"$f":"IF('1. Ordersheet'!L186=\"\",\"\",'1. Ordersheet'!L186)","v":""},{"$f":"IF('1. Ordersheet'!M186=\"\",\"\",'1. Ordersheet'!M186)","v":""},{"$f":"IF('1. Ordersheet'!N186=\"\",\"\",'1. Ordersheet'!N186)","v":""},{"$f":"IF('1. Ordersheet'!O186=\"\",\"\",'1. Ordersheet'!O186)","v":{"$error":"#N/A"}},{"$f":"IF('1. Ordersheet'!P186=\"\",\"\",'1. Ordersheet'!P186)","v":{"$error":"#N/A"}},{"$f":"IF('1. Ordersheet'!Q186=\"\",\"\",'1. Ordersheet'!Q186)","v":""},{"$f":"IF('1. Ordersheet'!R186=\"\",\"\",'1. Ordersheet'!R186)","v":""},{"$f":"IF('1. Ordersheet'!S186=\"\",\"\",'1. Ordersheet'!S186)","v":""},{"$f":"IF('1. Ordersheet'!V186=\"\",\"\",'1. Ordersheet'!V186)","v":""},{"$f":"IF('1. Ordersheet'!W186=\"\",\"\",'1. Ordersheet'!W186)","v":""},{"$f":"IF('1. Ordersheet'!X186=\"\",\"\",'1. Ordersheet'!X186)","v":""},{"$f":"IF('1. Ordersheet'!Y186=\"\",\"\",'1. Ordersheet'!Y186)","v":""},{"$f":"IF('1. Ordersheet'!Z186=\"\",\"\",'1. Ordersheet'!Z186)","v":""},{"$f":"IF('1. Ordersheet'!AA186=\"\",\"\",'1. Ordersheet'!AA186)","v":""},null,{"$f":"IF('1. Ordersheet'!AS186=\"\",\"\",'1. Ordersheet'!AS186)","v":""},{"$f":"IF('1. Ordersheet'!AT186=\"\",\"\",'1. Ordersheet'!AT186)","v":""},null,null,null,null,null,null,null,{"$f":"IF('1. Ordersheet'!AX186=\"\",\"\",'1. Ordersheet'!AX186)","v":""},{"$f":"IF('1. Ordersheet'!AY186=\"\",\"\",'1. Ordersheet'!AY186)","v":""},{"$f":"IF('1. Ordersheet'!AZ186=\"\",\"\",'1. Ordersheet'!AZ186)","v":""},{"$f":"IF('1. Ordersheet'!BA186=\"\",\"\",'1. Ordersheet'!BA186)","v":""},{"$f":"IF('1. Ordersheet'!BC186=\"\",\"\",'1. Ordersheet'!BC186)","v":""},{"$f":"IF('1. Ordersheet'!BD186=\"\",\"\",'1. Ordersheet'!BD186)","v":""},{"$f":"IF('1. Ordersheet'!BE186=\"\",\"\",'1. Ordersheet'!BE186)","v":""},{"$f":"IF('1. Ordersheet'!BF186=\"\",\"\",'1. Ordersheet'!BF186)","v":""},{"$f":"IF('1. Ordersheet'!BG186=\"\",\"\",'1. Ordersheet'!BG186)","v":"ZWO"},{"$f":"IF('1. Ordersheet'!BH186=\"\",\"\",'1. Ordersheet'!BH186)","v":""},{"$f":"IF('1. Ordersheet'!BI186=\"\",\"\",'1. Ordersheet'!BI186)","v":""},{"$f":"IF('1. Ordersheet'!BJ186=\"\",\"\",'1. Ordersheet'!BJ186)","v":""},{"$f":"IF('1. Ordersheet'!BK186=\"\",\"\",'1. Ordersheet'!BK186)","v":""},{"$f":"IF('1. Ordersheet'!BL186=\"\",\"\",'1. Ordersheet'!BL186)","v":""}]
[{"$f":"IF('1. Ordersheet'!F187=\"\",\"\",'1. Ordersheet'!F187)","v":""},{"$f":"IF('1. Ordersheet'!G187=\"\",\"\",'1. Ordersheet'!G187)","v":""},{"$f":"IF('1. Ordersheet'!H187=\"\",\"\",'1. Ordersheet'!H187)","v":""},{"$f":"IF('1. Ordersheet'!I187=\"\",\"\",'1. Ordersheet'!I187)","v":""},{"$f":"IF('1. Ordersheet'!J187=\"\",\"\",'1. Ordersheet'!J187)","v":""},{"$f":"IF('1. Ordersheet'!K187=\"\",\"\",'1. Ordersheet'!K187)","v":""},{"$f":"IF('1. Ordersheet'!L187=\"\",\"\",'1. Ordersheet'!L187)","v":""},{"$f":"IF('1. Ordersheet'!M187=\"\",\"\",'1. Ordersheet'!M187)","v":""},{"$f":"IF('1. Ordersheet'!N187=\"\",\"\",'1. Ordersheet'!N187)","v":""},{"$f":"IF('1. Ordersheet'!O187=\"\",\"\",'1. Ordersheet'!O187)","v":{"$error":"#N/A"}},{"$f":"IF('1. Ordersheet'!P187=\"\",\"\",'1. Ordersheet'!P187)","v":{"$error":"#N/A"}},{"$f":"IF('1. Ordersheet'!Q187=\"\",\"\",'1. Ordersheet'!Q187)","v":""},{"$f":"IF('1. Ordersheet'!R187=\"\",\"\",'1. Ordersheet'!R187)","v":""},{"$f":"IF('1. Ordersheet'!S187=\"\",\"\",'1. Ordersheet'!S187)","v":""},{"$f":"IF('1. Ordersheet'!V187=\"\",\"\",'1. Ordersheet'!V187)","v":""},{"$f":"IF('1. Ordersheet'!W187=\"\",\"\",'1. Ordersheet'!W187)","v":""},{"$f":"IF('1. Ordersheet'!X187=\"\",\"\",'1. Ordersheet'!X187)","v":""},{"$f":"IF('1. Ordersheet'!Y187=\"\",\"\",'1. Ordersheet'!Y187)","v":""},{"$f":"IF('1. Ordersheet'!Z187=\"\",\"\",'1. Ordersheet'!Z187)","v":""},{"$f":"IF('1. Ordersheet'!AA187=\"\",\"\",'1. Ordersheet'!AA187)","v":""},null,{"$f":"IF('1. Ordersheet'!AS187=\"\",\"\",'1. Ordersheet'!AS187)","v":""},{"$f":"IF('1. Ordersheet'!AT187=\"\",\"\",'1. Ordersheet'!AT187)","v":""},null,null,null,null,null,null,null,{"$f":"IF('1. Ordersheet'!AX187=\"\",\"\",'1. Ordersheet'!AX187)","v":""},{"$f":"IF('1. Ordersheet'!AY187=\"\",\"\",'1. Ordersheet'!AY187)","v":""},{"$f":"IF('1. Ordersheet'!AZ187=\"\",\"\",'1. Ordersheet'!AZ187)","v":""},{"$f":"IF('1. Ordersheet'!BA187=\"\",\"\",'1. Ordersheet'!BA187)","v":""},{"$f":"IF('1. Ordersheet'!BC187=\"\",\"\",'1. Ordersheet'!BC187)","v":""},{"$f":"IF('1. Ordersheet'!BD187=\"\",\"\",'1. Ordersheet'!BD187)","v":""},{"$f":"IF('1. Ordersheet'!BE187=\"\",\"\",'1. Ordersheet'!BE187)","v":""},{"$f":"IF('1. Ordersheet'!BF187=\"\",\"\",'1. Ordersheet'!BF187)","v":""},{"$f":"IF('1. Ordersheet'!BG187=\"\",\"\",'1. Ordersheet'!BG187)","v":"ZWO"},{"$f":"IF('1. Ordersheet'!BH187=\"\",\"\",'1. Ordersheet'!BH187)","v":""},{"$f":"IF('1. Ordersheet'!BI187=\"\",\"\",'1. Ordersheet'!BI187)","v":""},{"$f":"IF('1. Ordersheet'!BJ187=\"\",\"\",'1. Ordersheet'!BJ187)","v":""},{"$f":"IF('1. Ordersheet'!BK187=\"\",\"\",'1. Ordersheet'!BK187)","v":""},{"$f":"IF('1. Ordersheet'!BL187=\"\",\"\",'1. Ordersheet'!BL187)","v":""}]
[{"$f":"IF('1. Ordersheet'!F188=\"\",\"\",'1. Ordersheet'!F188)","v":""},{"$f":"IF('1. Ordersheet'!G188=\"\",\"\",'1. Ordersheet'!G188)","v":""},{"$f":"IF('1. Ordersheet'!H188=\"\",\"\",'1. Ordersheet'!H188)","v":""},{"$f":"IF('1. Ordersheet'!I188=\"\",\"\",'1. Ordersheet'!I188)","v":""},{"$f":"IF('1. Ordersheet'!J188=\"\",\"\",'1. Ordersheet'!J188)","v":""},{"$f":"IF('1. Ordersheet'!K188=\"\",\"\",'1. Ordersheet'!K188)","v":""},{"$f":"IF('1. Ordersheet'!L188=\"\",\"\",'1. Ordersheet'!L188)","v":""},{"$f":"IF('1. Ordersheet'!M188=\"\",\"\",'1. Ordersheet'!M188)","v":""},{"$f":"IF('1. Ordersheet'!N188=\"\",\"\",'1. Ordersheet'!N188)","v":""},{"$f":"IF('1. Ordersheet'!O188=\"\",\"\",'1. Ordersheet'!O188)","v":{"$error":"#N/A"}},{"$f":"IF('1. Ordersheet'!P188=\"\",\"\",'1. Ordersheet'!P188)","v":{"$error":"#N/A"}},{"$f":"IF('1. Ordersheet'!Q188=\"\",\"\",'1. Ordersheet'!Q188)","v":""},{"$f":"IF('1. Ordersheet'!R188=\"\",\"\",'1. Ordersheet'!R188)","v":""},{"$f":"IF('1. Ordersheet'!S188=\"\",\"\",'1. Ordersheet'!S188)","v":""},{"$f":"IF('1. Ordersheet'!V188=\"\",\"\",'1. Ordersheet'!V188)","v":""},{"$f":"IF('1. Ordersheet'!W188=\"\",\"\",'1. Ordersheet'!W188)","v":""},{"$f":"IF('1. Ordersheet'!X188=\"\",\"\",'1. Ordersheet'!X188)","v":""},{"$f":"IF('1. Ordersheet'!Y188=\"\",\"\",'1. Ordersheet'!Y188)","v":""},{"$f":"IF('1. Ordersheet'!Z188=\"\",\"\",'1. Ordersheet'!Z188)","v":""},{"$f":"IF('1. Ordersheet'!AA188=\"\",\"\",'1. Ordersheet'!AA188)","v":""},null,{"$f":"IF('1. Ordersheet'!AS188=\"\",\"\",'1. Ordersheet'!AS188)","v":""},{"$f":"IF('1. Ordersheet'!AT188=\"\",\"\",'1. Ordersheet'!AT188)","v":""},null,null,null,null,null,null,null,{"$f":"IF('1. Ordersheet'!AX188=\"\",\"\",'1. Ordersheet'!AX188)","v":""},{"$f":"IF('1. Ordersheet'!AY188=\"\",\"\",'1. Ordersheet'!AY188)","v":""},{"$f":"IF('1. Ordersheet'!AZ188=\"\",\"\",'1. Ordersheet'!AZ188)","v":""},{"$f":"IF('1. Ordersheet'!BA188=\"\",\"\",'1. Ordersheet'!BA188)","v":""},{"$f":"IF('1. Ordersheet'!BC188=\"\",\"\",'1. Ordersheet'!BC188)","v":""},{"$f":"IF('1. Ordersheet'!BD188=\"\",\"\",'1. Ordersheet'!BD188)","v":""},{"$f":"IF('1. Ordersheet'!BE188=\"\",\"\",'1. Ordersheet'!BE188)","v":""},{"$f":"IF('1. Ordersheet'!BF188=\"\",\"\",'1. Ordersheet'!BF188)","v":""},{"$f":"IF('1. Ordersheet'!BG188=\"\",\"\",'1. Ordersheet'!BG188)","v":"ZWO"},{"$f":"IF('1. Ordersheet'!BH188=\"\",\"\",'1. Ordersheet'!BH188)","v":""},{"$f":"IF('1. Ordersheet'!BI188=\"\",\"\",'1. Ordersheet'!BI188)","v":""},{"$f":"IF('1. Ordersheet'!BJ188=\"\",\"\",'1. Ordersheet'!BJ188)","v":""},{"$f":"IF('1. Ordersheet'!BK188=\"\",\"\",'1. Ordersheet'!BK188)","v":""},{"$f":"IF('1. Ordersheet'!BL188=\"\",\"\",'1. Ordersheet'!BL188)","v":""}]
[{"$f":"IF('1. Ordersheet'!F189=\"\",\"\",'1. Ordersheet'!F189)","v":""},{"$f":"IF('1. Ordersheet'!G189=\"\",\"\",'1. Ordersheet'!G189)","v":""},{"$f":"IF('1. Ordersheet'!H189=\"\",\"\",'1. Ordersheet'!H189)","v":""},{"$f":"IF('1. Ordersheet'!I189=\"\",\"\",'1. Ordersheet'!I189)","v":""},{"$f":"IF('1. Ordersheet'!J189=\"\",\"\",'1. Ordersheet'!J189)","v":""},{"$f":"IF('1. Ordersheet'!K189=\"\",\"\",'1. Ordersheet'!K189)","v":""},{"$f":"IF('1. Ordersheet'!L189=\"\",\"\",'1. Ordersheet'!L189)","v":""},{"$f":"IF('1. Ordersheet'!M189=\"\",\"\",'1. Ordersheet'!M189)","v":""},{"$f":"IF('1. Ordersheet'!N189=\"\",\"\",'1. Ordersheet'!N189)","v":""},{"$f":"IF('1. Ordersheet'!O189=\"\",\"\",'1. Ordersheet'!O189)","v":{"$error":"#N/A"}},{"$f":"IF('1. Ordersheet'!P189=\"\",\"\",'1. Ordersheet'!P189)","v":{"$error":"#N/A"}},{"$f":"IF('1. Ordersheet'!Q189=\"\",\"\",'1. Ordersheet'!Q189)","v":""},{"$f":"IF('1. Ordersheet'!R189=\"\",\"\",'1. Ordersheet'!R189)","v":""},{"$f":"IF('1. Ordersheet'!S189=\"\",\"\",'1. Ordersheet'!S189)","v":""},{"$f":"IF('1. Ordersheet'!V189=\"\",\"\",'1. Ordersheet'!V189)","v":""},{"$f":"IF('1. Ordersheet'!W189=\"\",\"\",'1. Ordersheet'!W189)","v":""},{"$f":"IF('1. Ordersheet'!X189=\"\",\"\",'1. Ordersheet'!X189)","v":""},{"$f":"IF('1. Ordersheet'!Y189=\"\",\"\",'1. Ordersheet'!Y189)","v":""},{"$f":"IF('1. Ordersheet'!Z189=\"\",\"\",'1. Ordersheet'!Z189)","v":""},{"$f":"IF('1. Ordersheet'!AA189=\"\",\"\",'1. Ordersheet'!AA189)","v":""},null,{"$f":"IF('1. Ordersheet'!AS189=\"\",\"\",'1. Ordersheet'!AS189)","v":""},{"$f":"IF('1. Ordersheet'!AT189=\"\",\"\",'1. Ordersheet'!AT189)","v":""},null,null,null,null,null,null,null,{"$f":"IF('1. Ordersheet'!AX189=\"\",\"\",'1. Ordersheet'!AX189)","v":""},{"$f":"IF('1. Ordersheet'!AY189=\"\",\"\",'1. Ordersheet'!AY189)","v":""},{"$f":"IF('1. Ordersheet'!AZ189=\"\",\"\",'1. Ordersheet'!AZ189)","v":""},{"$f":"IF('1. Ordersheet'!BA189=\"\",\"\",'1. Ordersheet'!BA189)","v":""},{"$f":"IF('1. Ordersheet'!BC189=\"\",\"\",'1. Ordersheet'!BC189)","v":""},{"$f":"IF('1. Ordersheet'!BD189=\"\",\"\",'1. Ordersheet'!BD189)","v":""},{"$f":"IF('1. Ordersheet'!BE189=\"\",\"\",'1. Ordersheet'!BE189)","v":""},{"$f":"IF('1. Ordersheet'!BF189=\"\",\"\",'1. Ordersheet'!BF189)","v":""},{"$f":"IF('1. Ordersheet'!BG189=\"\",\"\",'1. Ordersheet'!BG189)","v":"ZWO"},{"$f":"IF('1. Ordersheet'!BH189=\"\",\"\",'1. Ordersheet'!BH189)","v":""},{"$f":"IF('1. Ordersheet'!BI189=\"\",\"\",'1. Ordersheet'!BI189)","v":""},{"$f":"IF('1. Ordersheet'!BJ189=\"\",\"\",'1. Ordersheet'!BJ189)","v":""},{"$f":"IF('1. Ordersheet'!BK189=\"\",\"\",'1. Ordersheet'!BK189)","v":""},{"$f":"IF('1. Ordersheet'!BL189=\"\",\"\",'1. Ordersheet'!BL189)","v":""}]
[{"$f":"IF('1. Ordersheet'!F190=\"\",\"\",'1. Ordersheet'!F190)","v":""},{"$f":"IF('1. Ordersheet'!G190=\"\",\"\",'1. Ordersheet'!G190)","v":""},{"$f":"IF('1. Ordersheet'!H190=\"\",\"\",'1. Ordersheet'!H190)","v":""},{"$f":"IF('1. Ordersheet'!I190=\"\",\"\",'1. Ordersheet'!I190)","v":""},{"$f":"IF('1. Ordersheet'!J190=\"\",\"\",'1. Ordersheet'!J190)","v":""},{"$f":"IF('1. Ordersheet'!K190=\"\",\"\",'1. Ordersheet'!K190)","v":""},{"$f":"IF('1. Ordersheet'!L190=\"\",\"\",'1. Ordersheet'!L190)","v":""},{"$f":"IF('1. Ordersheet'!M190=\"\",\"\",'1. Ordersheet'!M190)","v":""},{"$f":"IF('1. Ordersheet'!N190=\"\",\"\",'1. Ordersheet'!N190)","v":""},{"$f":"IF('1. Ordersheet'!O190=\"\",\"\",'1. Ordersheet'!O190)","v":{"$error":"#N/A"}},{"$f":"IF('1. Ordersheet'!P190=\"\",\"\",'1. Ordersheet'!P190)","v":{"$error":"#N/A"}},{"$f":"IF('1. Ordersheet'!Q190=\"\",\"\",'1. Ordersheet'!Q190)","v":""},{"$f":"IF('1. Ordersheet'!R190=\"\",\"\",'1. Ordersheet'!R190)","v":""},{"$f":"IF('1. Ordersheet'!S190=\"\",\"\",'1. Ordersheet'!S190)","v":""},{"$f":"IF('1. Ordersheet'!V190=\"\",\"\",'1. Ordersheet'!V190)","v":""},{"$f":"IF('1. Ordersheet'!W190=\"\",\"\",'1. Ordersheet'!W190)","v":""},{"$f":"IF('1. Ordersheet'!X190=\"\",\"\",'1. Ordersheet'!X190)","v":""},{"$f":"IF('1. Ordersheet'!Y190=\"\",\"\",'1. Ordersheet'!Y190)","v":""},{"$f":"IF('1. Ordersheet'!Z190=\"\",\"\",'1. Ordersheet'!Z190)","v":""},{"$f":"IF('1. Ordersheet'!AA190=\"\",\"\",'1. Ordersheet'!AA190)","v":""},null,{"$f":"IF('1. Ordersheet'!AS190=\"\",\"\",'1. Ordersheet'!AS190)","v":""},{"$f":"IF('1. Ordersheet'!AT190=\"\",\"\",'1. Ordersheet'!AT190)","v":""},null,null,null,null,null,null,null,{"$f":"IF('1. Ordersheet'!AX190=\"\",\"\",'1. Ordersheet'!AX190)","v":""},{"$f":"IF('1. Ordersheet'!AY190=\"\",\"\",'1. Ordersheet'!AY190)","v":""},{"$f":"IF('1. Ordersheet'!AZ190=\"\",\"\",'1. Ordersheet'!AZ190)","v":""},{"$f":"IF('1. Ordersheet'!BA190=\"\",\"\",'1. Ordersheet'!BA190)","v":""},{"$f":"IF('1. Ordersheet'!BC190=\"\",\"\",'1. Ordersheet'!BC190)","v":""},{"$f":"IF('1. Ordersheet'!BD190=\"\",\"\",'1. Ordersheet'!BD190)","v":""},{"$f":"IF('1. Ordersheet'!BE190=\"\",\"\",'1. Ordersheet'!BE190)","v":""},{"$f":"IF('1. Ordersheet'!BF190=\"\",\"\",'1. Ordersheet'!BF190)","v":""},{"$f":"IF('1. Ordersheet'!BG190=\"\",\"\",'1. Ordersheet'!BG190)","v":"ZWO"},{"$f":"IF('1. Ordersheet'!BH190=\"\",\"\",'1. Ordersheet'!BH190)","v":""},{"$f":"IF('1. Ordersheet'!BI190=\"\",\"\",'1. Ordersheet'!BI190)","v":""},{"$f":"IF('1. Ordersheet'!BJ190=\"\",\"\",'1. Ordersheet'!BJ190)","v":""},{"$f":"IF('1. Ordersheet'!BK190=\"\",\"\",'1. Ordersheet'!BK190)","v":""},{"$f":"IF('1. Ordersheet'!BL190=\"\",\"\",'1. Ordersheet'!BL190)","v":""}]
[{"$f":"IF('1. Ordersheet'!F191=\"\",\"\",'1. Ordersheet'!F191)","v":""},{"$f":"IF('1. Ordersheet'!G191=\"\",\"\",'1. Ordersheet'!G191)","v":""},{"$f":"IF('1. Ordersheet'!H191=\"\",\"\",'1. Ordersheet'!H191)","v":""},{"$f":"IF('1. Ordersheet'!I191=\"\",\"\",'1. Ordersheet'!I191)","v":""},{"$f":"IF('1. Ordersheet'!J191=\"\",\"\",'1. Ordersheet'!J191)","v":""},{"$f":"IF('1. Ordersheet'!K191=\"\",\"\",'1. Ordersheet'!K191)","v":""},{"$f":"IF('1. Ordersheet'!L191=\"\",\"\",'1. Ordersheet'!L191)","v":""},{"$f":"IF('1. Ordersheet'!M191=\"\",\"\",'1. Ordersheet'!M191)","v":""},{"$f":"IF('1. Ordersheet'!N191=\"\",\"\",'1. Ordersheet'!N191)","v":""},{"$f":"IF('1. Ordersheet'!O191=\"\",\"\",'1. Ordersheet'!O191)","v":{"$error":"#N/A"}},{"$f":"IF('1. Ordersheet'!P191=\"\",\"\",'1. Ordersheet'!P191)","v":{"$error":"#N/A"}},{"$f":"IF('1. Ordersheet'!Q191=\"\",\"\",'1. Ordersheet'!Q191)","v":""},{"$f":"IF('1. Ordersheet'!R191=\"\",\"\",'1. Ordersheet'!R191)","v":""},{"$f":"IF('1. Ordersheet'!S191=\"\",\"\",'1. Ordersheet'!S191)","v":""},{"$f":"IF('1. Ordersheet'!V191=\"\",\"\",'1. Ordersheet'!V191)","v":""},{"$f":"IF('1. Ordersheet'!W191=\"\",\"\",'1. Ordersheet'!W191)","v":""},{"$f":"IF('1. Ordersheet'!X191=\"\",\"\",'1. Ordersheet'!X191)","v":""},{"$f":"IF('1. Ordersheet'!Y191=\"\",\"\",'1. Ordersheet'!Y191)","v":""},{"$f":"IF('1. Ordersheet'!Z191=\"\",\"\",'1. Ordersheet'!Z191)","v":""},{"$f":"IF('1. Ordersheet'!AA191=\"\",\"\",'1. Ordersheet'!AA191)","v":""},null,{"$f":"IF('1. Ordersheet'!AS191=\"\",\"\",'1. Ordersheet'!AS191)","v":""},{"$f":"IF('1. Ordersheet'!AT191=\"\",\"\",'1. Ordersheet'!AT191)","v":""},null,null,null,null,null,null,null,{"$f":"IF('1. Ordersheet'!AX191=\"\",\"\",'1. Ordersheet'!AX191)","v":""},{"$f":"IF('1. Ordersheet'!AY191=\"\",\"\",'1. Ordersheet'!AY191)","v":""},{"$f":"IF('1. Ordersheet'!AZ191=\"\",\"\",'1. Ordersheet'!AZ191)","v":""},{"$f":"IF('1. Ordersheet'!BA191=\"\",\"\",'1. Ordersheet'!BA191)","v":""},{"$f":"IF('1. Ordersheet'!BC191=\"\",\"\",'1. Ordersheet'!BC191)","v":""},{"$f":"IF('1. Ordersheet'!BD191=\"\",\"\",'1. Ordersheet'!BD191)","v":""},{"$f":"IF('1. Ordersheet'!BE191=\"\",\"\",'1. Ordersheet'!BE191)","v":""},{"$f":"IF('1. Ordersheet'!BF191=\"\",\"\",'1. Ordersheet'!BF191)","v":""},{"$f":"IF('1. Ordersheet'!BG191=\"\",\"\",'1. Ordersheet'!BG191)","v":"ZWO"},{"$f":"IF('1. Ordersheet'!BH191=\"\",\"\",'1. Ordersheet'!BH191)","v":""},{"$f":"IF('1. Ordersheet'!BI191=\"\",\"\",'1. Ordersheet'!BI191)","v":""},{"$f":"IF('1. Ordersheet'!BJ191=\"\",\"\",'1. Ordersheet'!BJ191)","v":""},{"$f":"IF('1. Ordersheet'!BK191=\"\",\"\",'1. Ordersheet'!BK191)","v":""},{"$f":"IF('1. Ordersheet'!BL191=\"\",\"\",'1. Ordersheet'!BL191)","v":""}]
[{"$f":"IF('1. Ordersheet'!F192=\"\",\"\",'1. Ordersheet'!F192)","v":""},{"$f":"IF('1. Ordersheet'!G192=\"\",\"\",'1. Ordersheet'!G192)","v":""},{"$f":"IF('1. Ordersheet'!H192=\"\",\"\",'1. Ordersheet'!H192)","v":""},{"$f":"IF('1. Ordersheet'!I192=\"\",\"\",'1. Ordersheet'!I192)","v":""},{"$f":"IF('1. Ordersheet'!J192=\"\",\"\",'1. Ordersheet'!J192)","v":""},{"$f":"IF('1. Ordersheet'!K192=\"\",\"\",'1. Ordersheet'!K192)","v":""},{"$f":"IF('1. Ordersheet'!L192=\"\",\"\",'1. Ordersheet'!L192)","v":""},{"$f":"IF('1. Ordersheet'!M192=\"\",\"\",'1. Ordersheet'!M192)","v":""},{"$f":"IF('1. Ordersheet'!N192=\"\",\"\",'1. Ordersheet'!N192)","v":""},{"$f":"IF('1. Ordersheet'!O192=\"\",\"\",'1. Ordersheet'!O192)","v":{"$error":"#N/A"}},{"$f":"IF('1. Ordersheet'!P192=\"\",\"\",'1. Ordersheet'!P192)","v":{"$error":"#N/A"}},{"$f":"IF('1. Ordersheet'!Q192=\"\",\"\",'1. Ordersheet'!Q192)","v":""},{"$f":"IF('1. Ordersheet'!R192=\"\",\"\",'1. Ordersheet'!R192)","v":""},{"$f":"IF('1. Ordersheet'!S192=\"\",\"\",'1. Ordersheet'!S192)","v":""},{"$f":"IF('1. Ordersheet'!V192=\"\",\"\",'1. Ordersheet'!V192)","v":""},{"$f":"IF('1. Ordersheet'!W192=\"\",\"\",'1. Ordersheet'!W192)","v":""},{"$f":"IF('1. Ordersheet'!X192=\"\",\"\",'1. Ordersheet'!X192)","v":""},{"$f":"IF('1. Ordersheet'!Y192=\"\",\"\",'1. Ordersheet'!Y192)","v":""},{"$f":"IF('1. Ordersheet'!Z192=\"\",\"\",'1. Ordersheet'!Z192)","v":""},{"$f":"IF('1. Ordersheet'!AA192=\"\",\"\",'1. Ordersheet'!AA192)","v":""},null,{"$f":"IF('1. Ordersheet'!AS192=\"\",\"\",'1. Ordersheet'!AS192)","v":""},{"$f":"IF('1. Ordersheet'!AT192=\"\",\"\",'1. Ordersheet'!AT192)","v":""},null,null,null,null,null,null,null,{"$f":"IF('1. Ordersheet'!AX192=\"\",\"\",'1. Ordersheet'!AX192)","v":""},{"$f":"IF('1. Ordersheet'!AY192=\"\",\"\",'1. Ordersheet'!AY192)","v":""},{"$f":"IF('1. Ordersheet'!AZ192=\"\",\"\",'1. Ordersheet'!AZ192)","v":""},{"$f":"IF('1. Ordersheet'!BA192=\"\",\"\",'1. Ordersheet'!BA192)","v":""},{"$f":"IF('1. Ordersheet'!BC192=\"\",\"\",'1. Ordersheet'!BC192)","v":""},{"$f":"IF('1. Ordersheet'!BD192=\"\",\"\",'1. Ordersheet'!BD192)","v":""},{"$f":"IF('1. Ordersheet'!BE192=\"\",\"\",'1. Ordersheet'!BE192)","v":""},{"$f":"IF('1. Ordersheet'!BF192=\"\",\"\",'1. Ordersheet'!BF192)","v":""},{"$f":"IF('1. Ordersheet'!BG192=\"\",\"\",'1. Ordersheet'!BG192)","v":"ZWO"},{"$f":"IF('1. Ordersheet'!BH192=\"\",\"\",'1. Ordersheet'!BH192)","v":""},{"$f":"IF('1. Ordersheet'!BI192=\"\",\"\",'1. Ordersheet'!BI192)","v":""},{"$f":"IF('1. Ordersheet'!BJ192=\"\",\"\",'1. Ordersheet'!BJ192)","v":""},{"$f":"IF('1. Ordersheet'!BK192=\"\",\"\",'1. Ordersheet'!BK192)","v":""},{"$f":"IF('1. Ordersheet'!BL192=\"\",\"\",'1. Ordersheet'!BL192)","v":""}]
[{"$f":"IF('1. Ordersheet'!F193=\"\",\"\",'1. Ordersheet'!F193)","v":""},{"$f":"IF('1. Ordersheet'!G193=\"\",\"\",'1. Ordersheet'!G193)","v":""},{"$f":"IF('1. Ordersheet'!H193=\"\",\"\",'1. Ordersheet'!H193)","v":""},{"$f":"IF('1. Ordersheet'!I193=\"\",\"\",'1. Ordersheet'!I193)","v":""},{"$f":"IF('1. Ordersheet'!J193=\"\",\"\",'1. Ordersheet'!J193)","v":""},{"$f":"IF('1. Ordersheet'!K193=\"\",\"\",'1. Ordersheet'!K193)","v":""},{"$f":"IF('1. Ordersheet'!L193=\"\",\"\",'1. Ordersheet'!L193)","v":""},{"$f":"IF('1. Ordersheet'!M193=\"\",\"\",'1. Ordersheet'!M193)","v":""},{"$f":"IF('1. Ordersheet'!N193=\"\",\"\",'1. Ordersheet'!N193)","v":""},{"$f":"IF('1. Ordersheet'!O193=\"\",\"\",'1. Ordersheet'!O193)","v":{"$error":"#N/A"}},{"$f":"IF('1. Ordersheet'!P193=\"\",\"\",'1. Ordersheet'!P193)","v":{"$error":"#N/A"}},{"$f":"IF('1. Ordersheet'!Q193=\"\",\"\",'1. Ordersheet'!Q193)","v":""},{"$f":"IF('1. Ordersheet'!R193=\"\",\"\",'1. Ordersheet'!R193)","v":""},{"$f":"IF('1. Ordersheet'!S193=\"\",\"\",'1. Ordersheet'!S193)","v":""},{"$f":"IF('1. Ordersheet'!V193=\"\",\"\",'1. Ordersheet'!V193)","v":""},{"$f":"IF('1. Ordersheet'!W193=\"\",\"\",'1. Ordersheet'!W193)","v":""},{"$f":"IF('1. Ordersheet'!X193=\"\",\"\",'1. Ordersheet'!X193)","v":""},{"$f":"IF('1. Ordersheet'!Y193=\"\",\"\",'1. Ordersheet'!Y193)","v":""},{"$f":"IF('1. Ordersheet'!Z193=\"\",\"\",'1. Ordersheet'!Z193)","v":""},{"$f":"IF('1. Ordersheet'!AA193=\"\",\"\",'1. Ordersheet'!AA193)","v":""},null,{"$f":"IF('1. Ordersheet'!AS193=\"\",\"\",'1. Ordersheet'!AS193)","v":""},{"$f":"IF('1. Ordersheet'!AT193=\"\",\"\",'1. Ordersheet'!AT193)","v":""},null,null,null,null,null,null,null,{"$f":"IF('1. Ordersheet'!AX193=\"\",\"\",'1. Ordersheet'!AX193)","v":""},{"$f":"IF('1. Ordersheet'!AY193=\"\",\"\",'1. Ordersheet'!AY193)","v":""},{"$f":"IF('1. Ordersheet'!AZ193=\"\",\"\",'1. Ordersheet'!AZ193)","v":""},{"$f":"IF('1. Ordersheet'!BA193=\"\",\"\",'1. Ordersheet'!BA193)","v":""},{"$f":"IF('1. Ordersheet'!BC193=\"\",\"\",'1. Ordersheet'!BC193)","v":""},{"$f":"IF('1. Ordersheet'!BD193=\"\",\"\",'1. Ordersheet'!BD193)","v":""},{"$f":"IF('1. Ordersheet'!BE193=\"\",\"\",'1. Ordersheet'!BE193)","v":""},{"$f":"IF('1. Ordersheet'!BF193=\"\",\"\",'1. Ordersheet'!BF193)","v":""},{"$f":"IF('1. Ordersheet'!BG193=\"\",\"\",'1. Ordersheet'!BG193)","v":"ZWO"},{"$f":"IF('1. Ordersheet'!BH193=\"\",\"\",'1. Ordersheet'!BH193)","v":""},{"$f":"IF('1. Ordersheet'!BI193=\"\",\"\",'1. Ordersheet'!BI193)","v":""},{"$f":"IF('1. Ordersheet'!BJ193=\"\",\"\",'1. Ordersheet'!BJ193)","v":""},{"$f":"IF('1. Ordersheet'!BK193=\"\",\"\",'1. Ordersheet'!BK193)","v":""},{"$f":"IF('1. Ordersheet'!BL193=\"\",\"\",'1. Ordersheet'!BL193)","v":""}]
[{"$f":"IF('1. Ordersheet'!F194=\"\",\"\",'1. Ordersheet'!F194)","v":""},{"$f":"IF('1. Ordersheet'!G194=\"\",\"\",'1. Ordersheet'!G194)","v":""},{"$f":"IF('1. Ordersheet'!H194=\"\",\"\",'1. Ordersheet'!H194)","v":""},{"$f":"IF('1. Ordersheet'!I194=\"\",\"\",'1. Ordersheet'!I194)","v":""},{"$f":"IF('1. Ordersheet'!J194=\"\",\"\",'1. Ordersheet'!J194)","v":""},{"$f":"IF('1. Ordersheet'!K194=\"\",\"\",'1. Ordersheet'!K194)","v":""},{"$f":"IF('1. Ordersheet'!L194=\"\",\"\",'1. Ordersheet'!L194)","v":""},{"$f":"IF('1. Ordersheet'!M194=\"\",\"\",'1. Ordersheet'!M194)","v":""},{"$f":"IF('1. Ordersheet'!N194=\"\",\"\",'1. Ordersheet'!N194)","v":""},{"$f":"IF('1. Ordersheet'!O194=\"\",\"\",'1. Ordersheet'!O194)","v":{"$error":"#N/A"}},{"$f":"IF('1. Ordersheet'!P194=\"\",\"\",'1. Ordersheet'!P194)","v":{"$error":"#N/A"}},{"$f":"IF('1. Ordersheet'!Q194=\"\",\"\",'1. Ordersheet'!Q194)","v":""},{"$f":"IF('1. Ordersheet'!R194=\"\",\"\",'1. Ordersheet'!R194)","v":""},{"$f":"IF('1. Ordersheet'!S194=\"\",\"\",'1. Ordersheet'!S194)","v":""},{"$f":"IF('1. Ordersheet'!V194=\"\",\"\",'1. Ordersheet'!V194)","v":""},{"$f":"IF('1. Ordersheet'!W194=\"\",\"\",'1. Ordersheet'!W194)","v":""},{"$f":"IF('1. Ordersheet'!X194=\"\",\"\",'1. Ordersheet'!X194)","v":""},{"$f":"IF('1. Ordersheet'!Y194=\"\",\"\",'1. Ordersheet'!Y194)","v":""},{"$f":"IF('1. Ordersheet'!Z194=\"\",\"\",'1. Ordersheet'!Z194)","v":""},{"$f":"IF('1. Ordersheet'!AA194=\"\",\"\",'1. Ordersheet'!AA194)","v":""},null,{"$f":"IF('1. Ordersheet'!AS194=\"\",\"\",'1. Ordersheet'!AS194)","v":""},{"$f":"IF('1. Ordersheet'!AT194=\"\",\"\",'1. Ordersheet'!AT194)","v":""},null,null,null,null,null,null,null,{"$f":"IF('1. Ordersheet'!AX194=\"\",\"\",'1. Ordersheet'!AX194)","v":""},{"$f":"IF('1. Ordersheet'!AY194=\"\",\"\",'1. Ordersheet'!AY194)","v":""},{"$f":"IF('1. Ordersheet'!AZ194=\"\",\"\",'1. Ordersheet'!AZ194)","v":""},{"$f":"IF('1. Ordersheet'!BA194=\"\",\"\",'1. Ordersheet'!BA194)","v":""},{"$f":"IF('1. Ordersheet'!BC194=\"\",\"\",'1. Ordersheet'!BC194)","v":""},{"$f":"IF('1. Ordersheet'!BD194=\"\",\"\",'1. Ordersheet'!BD194)","v":""},{"$f":"IF('1. Ordersheet'!BE194=\"\",\"\",'1. Ordersheet'!BE194)","v":""},{"$f":"IF('1. Ordersheet'!BF194=\"\",\"\",'1. Ordersheet'!BF194)","v":""},{"$f":"IF('1. Ordersheet'!BG194=\"\",\"\",'1. Ordersheet'!BG194)","v":"ZWO"},{"$f":"IF('1. Ordersheet'!BH194=\"\",\"\",'1. Ordersheet'!BH194)","v":""},{"$f":"IF('1. Ordersheet'!BI194=\"\",\"\",'1. Ordersheet'!BI194)","v":""},{"$f":"IF('1. Ordersheet'!BJ194=\"\",\"\",'1. Ordersheet'!BJ194)","v":""},{"$f":"IF('1. Ordersheet'!BK194=\"\",\"\",'1. Ordersheet'!BK194)","v":""},{"$f":"IF('1. Ordersheet'!BL194=\"\",\"\",'1. Ordersheet'!BL194)","v":""}]
[{"$f":"IF('1. Ordersheet'!F195=\"\",\"\",'1. Ordersheet'!F195)","v":""},{"$f":"IF('1. Ordersheet'!G195=\"\",\"\",'1. Ordersheet'!G195)","v":""},{"$f":"IF('1. Ordersheet'!H195=\"\",\"\",'1. Ordersheet'!H195)","v":""},{"$f":"IF('1. Ordersheet'!I195=\"\",\"\",'1. Ordersheet'!I195)","v":""},{"$f":"IF('1. Ordersheet'!J195=\"\",\"\",'1. Ordersheet'!J195)","v":""},{"$f":"IF('1. Ordersheet'!K195=\"\",\"\",'1. Ordersheet'!K195)","v":""},{"$f":"IF('1. Ordersheet'!L195=\"\",\"\",'1. Ordersheet'!L195)","v":""},{"$f":"IF('1. Ordersheet'!M195=\"\",\"\",'1. Ordersheet'!M195)","v":""},{"$f":"IF('1. Ordersheet'!N195=\"\",\"\",'1. Ordersheet'!N195)","v":""},{"$f":"IF('1. Ordersheet'!O195=\"\",\"\",'1. Ordersheet'!O195)","v":{"$error":"#N/A"}},{"$f":"IF('1. Ordersheet'!P195=\"\",\"\",'1. Ordersheet'!P195)","v":{"$error":"#N/A"}},{"$f":"IF('1. Ordersheet'!Q195=\"\",\"\",'1. Ordersheet'!Q195)","v":""},{"$f":"IF('1. Ordersheet'!R195=\"\",\"\",'1. Ordersheet'!R195)","v":""},{"$f":"IF('1. Ordersheet'!S195=\"\",\"\",'1. Ordersheet'!S195)","v":""},{"$f":"IF('1. Ordersheet'!V195=\"\",\"\",'1. Ordersheet'!V195)","v":""},{"$f":"IF('1. Ordersheet'!W195=\"\",\"\",'1. Ordersheet'!W195)","v":""},{"$f":"IF('1. Ordersheet'!X195=\"\",\"\",'1. Ordersheet'!X195)","v":""},{"$f":"IF('1. Ordersheet'!Y195=\"\",\"\",'1. Ordersheet'!Y195)","v":""},{"$f":"IF('1. Ordersheet'!Z195=\"\",\"\",'1. Ordersheet'!Z195)","v":""},{"$f":"IF('1. Ordersheet'!AA195=\"\",\"\",'1. Ordersheet'!AA195)","v":""},null,{"$f":"IF('1. Ordersheet'!AS195=\"\",\"\",'1. Ordersheet'!AS195)","v":""},{"$f":"IF('1. Ordersheet'!AT195=\"\",\"\",'1. Ordersheet'!AT195)","v":""},null,null,null,null,null,null,null,{"$f":"IF('1. Ordersheet'!AX195=\"\",\"\",'1. Ordersheet'!AX195)","v":""},{"$f":"IF('1. Ordersheet'!AY195=\"\",\"\",'1. Ordersheet'!AY195)","v":""},{"$f":"IF('1. Ordersheet'!AZ195=\"\",\"\",'1. Ordersheet'!AZ195)","v":""},{"$f":"IF('1. Ordersheet'!BA195=\"\",\"\",'1. Ordersheet'!BA195)","v":""},{"$f":"IF('1. Ordersheet'!BC195=\"\",\"\",'1. Ordersheet'!BC195)","v":""},{"$f":"IF('1. Ordersheet'!BD195=\"\",\"\",'1. Ordersheet'!BD195)","v":""},{"$f":"IF('1. Ordersheet'!BE195=\"\",\"\",'1. Ordersheet'!BE195)","v":""},{"$f":"IF('1. Ordersheet'!BF195=\"\",\"\",'1. Ordersheet'!BF195)","v":""},{"$f":"IF('1. Ordersheet'!BG195=\"\",\"\",'1. Ordersheet'!BG195)","v":"ZWO"},{"$f":"IF('1. Ordersheet'!BH195=\"\",\"\",'1. Ordersheet'!BH195)","v":""},{"$f":"IF('1. Ordersheet'!BI195=\"\",\"\",'1. Ordersheet'!BI195)","v":""},{"$f":"IF('1. Ordersheet'!BJ195=\"\",\"\",'1. Ordersheet'!BJ195)","v":""},{"$f":"IF('1. Ordersheet'!BK195=\"\",\"\",'1. Ordersheet'!BK195)","v":""},{"$f":"IF('1. Ordersheet'!BL195=\"\",\"\",'1. Ordersheet'!BL195)","v":""}]
[{"$f":"IF('1. Ordersheet'!F196=\"\",\"\",'1. Ordersheet'!F196)","v":""},{"$f":"IF('1. Ordersheet'!G196=\"\",\"\",'1. Ordersheet'!G196)","v":""},{"$f":"IF('1. Ordersheet'!H196=\"\",\"\",'1. Ordersheet'!H196)","v":""},{"$f":"IF('1. Ordersheet'!I196=\"\",\"\",'1. Ordersheet'!I196)","v":""},{"$f":"IF('1. Ordersheet'!J196=\"\",\"\",'1. Ordersheet'!J196)","v":""},{"$f":"IF('1. Ordersheet'!K196=\"\",\"\",'1. Ordersheet'!K196)","v":""},{"$f":"IF('1. Ordersheet'!L196=\"\",\"\",'1. Ordersheet'!L196)","v":""},{"$f":"IF('1. Ordersheet'!M196=\"\",\"\",'1. Ordersheet'!M196)","v":""},{"$f":"IF('1. Ordersheet'!N196=\"\",\"\",'1. Ordersheet'!N196)","v":""},{"$f":"IF('1. Ordersheet'!O196=\"\",\"\",'1. Ordersheet'!O196)","v":{"$error":"#N/A"}},{"$f":"IF('1. Ordersheet'!P196=\"\",\"\",'1. Ordersheet'!P196)","v":{"$error":"#N/A"}},{"$f":"IF('1. Ordersheet'!Q196=\"\",\"\",'1. Ordersheet'!Q196)","v":""},{"$f":"IF('1. Ordersheet'!R196=\"\",\"\",'1. Ordersheet'!R196)","v":""},{"$f":"IF('1. Ordersheet'!S196=\"\",\"\",'1. Ordersheet'!S196)","v":""},{"$f":"IF('1. Ordersheet'!V196=\"\",\"\",'1. Ordersheet'!V196)","v":""},{"$f":"IF('1. Ordersheet'!W196=\"\",\"\",'1. Ordersheet'!W196)","v":""},{"$f":"IF('1. Ordersheet'!X196=\"\",\"\",'1. Ordersheet'!X196)","v":""},{"$f":"IF('1. Ordersheet'!Y196=\"\",\"\",'1. Ordersheet'!Y196)","v":""},{"$f":"IF('1. Ordersheet'!Z196=\"\",\"\",'1. Ordersheet'!Z196)","v":""},{"$f":"IF('1. Ordersheet'!AA196=\"\",\"\",'1. Ordersheet'!AA196)","v":""},null,{"$f":"IF('1. Ordersheet'!AS196=\"\",\"\",'1. Ordersheet'!AS196)","v":""},{"$f":"IF('1. Ordersheet'!AT196=\"\",\"\",'1. Ordersheet'!AT196)","v":""},null,null,null,null,null,null,null,{"$f":"IF('1. Ordersheet'!AX196=\"\",\"\",'1. Ordersheet'!AX196)","v":""},{"$f":"IF('1. Ordersheet'!AY196=\"\",\"\",'1. Ordersheet'!AY196)","v":""},{"$f":"IF('1. Ordersheet'!AZ196=\"\",\"\",'1. Ordersheet'!AZ196)","v":""},{"$f":"IF('1. Ordersheet'!BA196=\"\",\"\",'1. Ordersheet'!BA196)","v":""},{"$f":"IF('1. Ordersheet'!BC196=\"\",\"\",'1. Ordersheet'!BC196)","v":""},{"$f":"IF('1. Ordersheet'!BD196=\"\",\"\",'1. Ordersheet'!BD196)","v":""},{"$f":"IF('1. Ordersheet'!BE196=\"\",\"\",'1. Ordersheet'!BE196)","v":""},{"$f":"IF('1. Ordersheet'!BF196=\"\",\"\",'1. Ordersheet'!BF196)","v":""},{"$f":"IF('1. Ordersheet'!BG196=\"\",\"\",'1. Ordersheet'!BG196)","v":"ZWO"},{"$f":"IF('1. Ordersheet'!BH196=\"\",\"\",'1. Ordersheet'!BH196)","v":""},{"$f":"IF('1. Ordersheet'!BI196=\"\",\"\",'1. Ordersheet'!BI196)","v":""},{"$f":"IF('1. Ordersheet'!BJ196=\"\",\"\",'1. Ordersheet'!BJ196)","v":""},{"$f":"IF('1. Ordersheet'!BK196=\"\",\"\",'1. Ordersheet'!BK196)","v":""},{"$f":"IF('1. Ordersheet'!BL196=\"\",\"\",'1. Ordersheet'!BL196)","v":""}]
[{"$f":"IF('1. Ordersheet'!F197=\"\",\"\",'1. Ordersheet'!F197)","v":""},{"$f":"IF('1. Ordersheet'!G197=\"\",\"\",'1. Ordersheet'!G197)","v":""},{"$f":"IF('1. Ordersheet'!H197=\"\",\"\",'1. Ordersheet'!H197)","v":""},{"$f":"IF('1. Ordersheet'!I197=\"\",\"\",'1. Ordersheet'!I197)","v":""},{"$f":"IF('1. Ordersheet'!J197=\"\",\"\",'1. Ordersheet'!J197)","v":""},{"$f":"IF('1. Ordersheet'!K197=\"\",\"\",'1. Ordersheet'!K197)","v":""},{"$f":"IF('1. Ordersheet'!L197=\"\",\"\",'1. Ordersheet'!L197)","v":""},{"$f":"IF('1. Ordersheet'!M197=\"\",\"\",'1. Ordersheet'!M197)","v":""},{"$f":"IF('1. Ordersheet'!N197=\"\",\"\",'1. Ordersheet'!N197)","v":""},{"$f":"IF('1. Ordersheet'!O197=\"\",\"\",'1. Ordersheet'!O197)","v":{"$error":"#N/A"}},{"$f":"IF('1. Ordersheet'!P197=\"\",\"\",'1. Ordersheet'!P197)","v":{"$error":"#N/A"}},{"$f":"IF('1. Ordersheet'!Q197=\"\",\"\",'1. Ordersheet'!Q197)","v":""},{"$f":"IF('1. Ordersheet'!R197=\"\",\"\",'1. Ordersheet'!R197)","v":""},{"$f":"IF('1. Ordersheet'!S197=\"\",\"\",'1. Ordersheet'!S197)","v":""},{"$f":"IF('1. Ordersheet'!V197=\"\",\"\",'1. Ordersheet'!V197)","v":""},{"$f":"IF('1. Ordersheet'!W197=\"\",\"\",'1. Ordersheet'!W197)","v":""},{"$f":"IF('1. Ordersheet'!X197=\"\",\"\",'1. Ordersheet'!X197)","v":""},{"$f":"IF('1. Ordersheet'!Y197=\"\",\"\",'1. Ordersheet'!Y197)","v":""},{"$f":"IF('1. Ordersheet'!Z197=\"\",\"\",'1. Ordersheet'!Z197)","v":""},{"$f":"IF('1. Ordersheet'!AA197=\"\",\"\",'1. Ordersheet'!AA197)","v":""},null,{"$f":"IF('1. Ordersheet'!AS197=\"\",\"\",'1. Ordersheet'!AS197)","v":""},{"$f":"IF('1. Ordersheet'!AT197=\"\",\"\",'1. Ordersheet'!AT197)","v":""},null,null,null,null,null,null,null,{"$f":"IF('1. Ordersheet'!AX197=\"\",\"\",'1. Ordersheet'!AX197)","v":""},{"$f":"IF('1. Ordersheet'!AY197=\"\",\"\",'1. Ordersheet'!AY197)","v":""},{"$f":"IF('1. Ordersheet'!AZ197=\"\",\"\",'1. Ordersheet'!AZ197)","v":""},{"$f":"IF('1. Ordersheet'!BA197=\"\",\"\",'1. Ordersheet'!BA197)","v":""},{"$f":"IF('1. Ordersheet'!BC197=\"\",\"\",'1. Ordersheet'!BC197)","v":""},{"$f":"IF('1. Ordersheet'!BD197=\"\",\"\",'1. Ordersheet'!BD197)","v":""},{"$f":"IF('1. Ordersheet'!BE197=\"\",\"\",'1. Ordersheet'!BE197)","v":""},{"$f":"IF('1. Ordersheet'!BF197=\"\",\"\",'1. Ordersheet'!BF197)","v":""},{"$f":"IF('1. Ordersheet'!BG197=\"\",\"\",'1. Ordersheet'!BG197)","v":"ZWO"},{"$f":"IF('1. Ordersheet'!BH197=\"\",\"\",'1. Ordersheet'!BH197)","v":""},{"$f":"IF('1. Ordersheet'!BI197=\"\",\"\",'1. Ordersheet'!BI197)","v":""},{"$f":"IF('1. Ordersheet'!BJ197=\"\",\"\",'1. Ordersheet'!BJ197)","v":""},{"$f":"IF('1. Ordersheet'!BK197=\"\",\"\",'1. Ordersheet'!BK197)","v":""},{"$f":"IF('1. Ordersheet'!BL197=\"\",\"\",'1. Ordersheet'!BL197)","v":""}]
[{"$f":"IF('1. Ordersheet'!F198=\"\",\"\",'1. Ordersheet'!F198)","v":""},{"$f":"IF('1. Ordersheet'!G198=\"\",\"\",'1. Ordersheet'!G198)","v":""},{"$f":"IF('1. Ordersheet'!H198=\"\",\"\",'1. Ordersheet'!H198)","v":""},{"$f":"IF('1. Ordersheet'!I198=\"\",\"\",'1. Ordersheet'!I198)","v":""},{"$f":"IF('1. Ordersheet'!J198=\"\",\"\",'1. Ordersheet'!J198)","v":""},{"$f":"IF('1. Ordersheet'!K198=\"\",\"\",'1. Ordersheet'!K198)","v":""},{"$f":"IF('1. Ordersheet'!L198=\"\",\"\",'1. Ordersheet'!L198)","v":""},{"$f":"IF('1. Ordersheet'!M198=\"\",\"\",'1. Ordersheet'!M198)","v":""},{"$f":"IF('1. Ordersheet'!N198=\"\",\"\",'1. Ordersheet'!N198)","v":""},{"$f":"IF('1. Ordersheet'!O198=\"\",\"\",'1. Ordersheet'!O198)","v":{"$error":"#N/A"}},{"$f":"IF('1. Ordersheet'!P198=\"\",\"\",'1. Ordersheet'!P198)","v":{"$error":"#N/A"}},{"$f":"IF('1. Ordersheet'!Q198=\"\",\"\",'1. Ordersheet'!Q198)","v":""},{"$f":"IF('1. Ordersheet'!R198=\"\",\"\",'1. Ordersheet'!R198)","v":""},{"$f":"IF('1. Ordersheet'!S198=\"\",\"\",'1. Ordersheet'!S198)","v":""},{"$f":"IF('1. Ordersheet'!V198=\"\",\"\",'1. Ordersheet'!V198)","v":""},{"$f":"IF('1. Ordersheet'!W198=\"\",\"\",'1. Ordersheet'!W198)","v":""},{"$f":"IF('1. Ordersheet'!X198=\"\",\"\",'1. Ordersheet'!X198)","v":""},{"$f":"IF('1. Ordersheet'!Y198=\"\",\"\",'1. Ordersheet'!Y198)","v":""},{"$f":"IF('1. Ordersheet'!Z198=\"\",\"\",'1. Ordersheet'!Z198)","v":""},{"$f":"IF('1. Ordersheet'!AA198=\"\",\"\",'1. Ordersheet'!AA198)","v":""},null,{"$f":"IF('1. Ordersheet'!AS198=\"\",\"\",'1. Ordersheet'!AS198)","v":""},{"$f":"IF('1. Ordersheet'!AT198=\"\",\"\",'1. Ordersheet'!AT198)","v":""},null,null,null,null,null,null,null,{"$f":"IF('1. Ordersheet'!AX198=\"\",\"\",'1. Ordersheet'!AX198)","v":""},{"$f":"IF('1. Ordersheet'!AY198=\"\",\"\",'1. Ordersheet'!AY198)","v":""},{"$f":"IF('1. Ordersheet'!AZ198=\"\",\"\",'1. Ordersheet'!AZ198)","v":""},{"$f":"IF('1. Ordersheet'!BA198=\"\",\"\",'1. Ordersheet'!BA198)","v":""},{"$f":"IF('1. Ordersheet'!BC198=\"\",\"\",'1. Ordersheet'!BC198)","v":""},{"$f":"IF('1. Ordersheet'!BD198=\"\",\"\",'1. Ordersheet'!BD198)","v":""},{"$f":"IF('1. Ordersheet'!BE198=\"\",\"\",'1. Ordersheet'!BE198)","v":""},{"$f":"IF('1. Ordersheet'!BF198=\"\",\"\",'1. Ordersheet'!BF198)","v":""},{"$f":"IF('1. Ordersheet'!BG198=\"\",\"\",'1. Ordersheet'!BG198)","v":"ZWO"},{"$f":"IF('1. Ordersheet'!BH198=\"\",\"\",'1. Ordersheet'!BH198)","v":""},{"$f":"IF('1. Ordersheet'!BI198=\"\",\"\",'1. Ordersheet'!BI198)","v":""},{"$f":"IF('1. Ordersheet'!BJ198=\"\",\"\",'1. Ordersheet'!BJ198)","v":""},{"$f":"IF('1. Ordersheet'!BK198=\"\",\"\",'1. Ordersheet'!BK198)","v":""},{"$f":"IF('1. Ordersheet'!BL198=\"\",\"\",'1. Ordersheet'!BL198)","v":""}]
[{"$f":"IF('1. Ordersheet'!F199=\"\",\"\",'1. Ordersheet'!F199)","v":""},{"$f":"IF('1. Ordersheet'!G199=\"\",\"\",'1. Ordersheet'!G199)","v":""},{"$f":"IF('1. Ordersheet'!H199=\"\",\"\",'1. Ordersheet'!H199)","v":""},{"$f":"IF('1. Ordersheet'!I199=\"\",\"\",'1. Ordersheet'!I199)","v":""},{"$f":"IF('1. Ordersheet'!J199=\"\",\"\",'1. Ordersheet'!J199)","v":""},{"$f":"IF('1. Ordersheet'!K199=\"\",\"\",'1. Ordersheet'!K199)","v":""},{"$f":"IF('1. Ordersheet'!L199=\"\",\"\",'1. Ordersheet'!L199)","v":""},{"$f":"IF('1. Ordersheet'!M199=\"\",\"\",'1. Ordersheet'!M199)","v":""},{"$f":"IF('1. Ordersheet'!N199=\"\",\"\",'1. Ordersheet'!N199)","v":""},{"$f":"IF('1. Ordersheet'!O199=\"\",\"\",'1. Ordersheet'!O199)","v":{"$error":"#N/A"}},{"$f":"IF('1. Ordersheet'!P199=\"\",\"\",'1. Ordersheet'!P199)","v":{"$error":"#N/A"}},{"$f":"IF('1. Ordersheet'!Q199=\"\",\"\",'1. Ordersheet'!Q199)","v":""},{"$f":"IF('1. Ordersheet'!R199=\"\",\"\",'1. Ordersheet'!R199)","v":""},{"$f":"IF('1. Ordersheet'!S199=\"\",\"\",'1. Ordersheet'!S199)","v":""},{"$f":"IF('1. Ordersheet'!V199=\"\",\"\",'1. Ordersheet'!V199)","v":""},{"$f":"IF('1. Ordersheet'!W199=\"\",\"\",'1. Ordersheet'!W199)","v":""},{"$f":"IF('1. Ordersheet'!X199=\"\",\"\",'1. Ordersheet'!X199)","v":""},{"$f":"IF('1. Ordersheet'!Y199=\"\",\"\",'1. Ordersheet'!Y199)","v":""},{"$f":"IF('1. Ordersheet'!Z199=\"\",\"\",'1. Ordersheet'!Z199)","v":""},{"$f":"IF('1. Ordersheet'!AA199=\"\",\"\",'1. Ordersheet'!AA199)","v":""},null,{"$f":"IF('1. Ordersheet'!AS199=\"\",\"\",'1. Ordersheet'!AS199)","v":""},{"$f":"IF('1. Ordersheet'!AT199=\"\",\"\",'1. Ordersheet'!AT199)","v":""},null,null,null,null,null,null,null,{"$f":"IF('1. Ordersheet'!AX199=\"\",\"\",'1. Ordersheet'!AX199)","v":""},{"$f":"IF('1. Ordersheet'!AY199=\"\",\"\",'1. Ordersheet'!AY199)","v":""},{"$f":"IF('1. Ordersheet'!AZ199=\"\",\"\",'1. Ordersheet'!AZ199)","v":""},{"$f":"IF('1. Ordersheet'!BA199=\"\",\"\",'1. Ordersheet'!BA199)","v":""},{"$f":"IF('1. Ordersheet'!BC199=\"\",\"\",'1. Ordersheet'!BC199)","v":""},{"$f":"IF('1. Ordersheet'!BD199=\"\",\"\",'1. Ordersheet'!BD199)","v":""},{"$f":"IF('1. Ordersheet'!BE199=\"\",\"\",'1. Ordersheet'!BE199)","v":""},{"$f":"IF('1. Ordersheet'!BF199=\"\",\"\",'1. Ordersheet'!BF199)","v":""},{"$f":"IF('1. Ordersheet'!BG199=\"\",\"\",'1. Ordersheet'!BG199)","v":"ZWO"},{"$f":"IF('1. Ordersheet'!BH199=\"\",\"\",'1. Ordersheet'!BH199)","v":""},{"$f":"IF('1. Ordersheet'!BI199=\"\",\"\",'1. Ordersheet'!BI199)","v":""},{"$f":"IF('1. Ordersheet'!BJ199=\"\",\"\",'1. Ordersheet'!BJ199)","v":""},{"$f":"IF('1. Ordersheet'!BK199=\"\",\"\",'1. Ordersheet'!BK199)","v":""},{"$f":"IF('1. Ordersheet'!BL199=\"\",\"\",'1. Ordersheet'!BL199)","v":""}]
[{"$f":"IF('1. Ordersheet'!F200=\"\",\"\",'1. Ordersheet'!F200)","v":""},{"$f":"IF('1. Ordersheet'!G200=\"\",\"\",'1. Ordersheet'!G200)","v":""},{"$f":"IF('1. Ordersheet'!H200=\"\",\"\",'1. Ordersheet'!H200)","v":""},{"$f":"IF('1. Ordersheet'!I200=\"\",\"\",'1. Ordersheet'!I200)","v":""},{"$f":"IF('1. Ordersheet'!J200=\"\",\"\",'1. Ordersheet'!J200)","v":""},{"$f":"IF('1. Ordersheet'!K200=\"\",\"\",'1. Ordersheet'!K200)","v":""},{"$f":"IF('1. Ordersheet'!L200=\"\",\"\",'1. Ordersheet'!L200)","v":""},{"$f":"IF('1. Ordersheet'!M200=\"\",\"\",'1. Ordersheet'!M200)","v":""},{"$f":"IF('1. Ordersheet'!N200=\"\",\"\",'1. Ordersheet'!N200)","v":""},{"$f":"IF('1. Ordersheet'!O200=\"\",\"\",'1. Ordersheet'!O200)","v":{"$error":"#N/A"}},{"$f":"IF('1. Ordersheet'!P200=\"\",\"\",'1. Ordersheet'!P200)","v":{"$error":"#N/A"}},{"$f":"IF('1. Ordersheet'!Q200=\"\",\"\",'1. Ordersheet'!Q200)","v":""},{"$f":"IF('1. Ordersheet'!R200=\"\",\"\",'1. Ordersheet'!R200)","v":""},{"$f":"IF('1. Ordersheet'!S200=\"\",\"\",'1. Ordersheet'!S200)","v":""},{"$f":"IF('1. Ordersheet'!V200=\"\",\"\",'1. Ordersheet'!V200)","v":""},{"$f":"IF('1. Ordersheet'!W200=\"\",\"\",'1. Ordersheet'!W200)","v":""},{"$f":"IF('1. Ordersheet'!X200=\"\",\"\",'1. Ordersheet'!X200)","v":""},{"$f":"IF('1. Ordersheet'!Y200=\"\",\"\",'1. Ordersheet'!Y200)","v":""},{"$f":"IF('1. Ordersheet'!Z200=\"\",\"\",'1. Ordersheet'!Z200)","v":""},{"$f":"IF('1. Ordersheet'!AA200=\"\",\"\",'1. Ordersheet'!AA200)","v":""},null,{"$f":"IF('1. Ordersheet'!AS200=\"\",\"\",'1. Ordersheet'!AS200)","v":""},{"$f":"IF('1. Ordersheet'!AT200=\"\",\"\",'1. Ordersheet'!AT200)","v":""},null,null,null,null,null,null,null,{"$f":"IF('1. Ordersheet'!AX200=\"\",\"\",'1. Ordersheet'!AX200)","v":""},{"$f":"IF('1. Ordersheet'!AY200=\"\",\"\",'1. Ordersheet'!AY200)","v":""},{"$f":"IF('1. Ordersheet'!AZ200=\"\",\"\",'1. Ordersheet'!AZ200)","v":""},{"$f":"IF('1. Ordersheet'!BA200=\"\",\"\",'1. Ordersheet'!BA200)","v":""},{"$f":"IF('1. Ordersheet'!BC200=\"\",\"\",'1. Ordersheet'!BC200)","v":""},{"$f":"IF('1. Ordersheet'!BD200=\"\",\"\",'1. Ordersheet'!BD200)","v":""},{"$f":"IF('1. Ordersheet'!BE200=\"\",\"\",'1. Ordersheet'!BE200)","v":""},{"$f":"IF('1. Ordersheet'!BF200=\"\",\"\",'1. Ordersheet'!BF200)","v":""},{"$f":"IF('1. Ordersheet'!BG200=\"\",\"\",'1. Ordersheet'!BG200)","v":"ZWO"},{"$f":"IF('1. Ordersheet'!BH200=\"\",\"\",'1. Ordersheet'!BH200)","v":""},{"$f":"IF('1. Ordersheet'!BI200=\"\",\"\",'1. Ordersheet'!BI200)","v":""},{"$f":"IF('1. Ordersheet'!BJ200=\"\",\"\",'1. Ordersheet'!BJ200)","v":""},{"$f":"IF('1. Ordersheet'!BK200=\"\",\"\",'1. Ordersheet'!BK200)","v":""},{"$f":"IF('1. Ordersheet'!BL200=\"\",\"\",'1. Ordersheet'!BL200)","v":""}]
[{"$f":"IF('1. Ordersheet'!F201=\"\",\"\",'1. Ordersheet'!F201)","v":""},{"$f":"IF('1. Ordersheet'!G201=\"\",\"\",'1. Ordersheet'!G201)","v":""},{"$f":"IF('1. Ordersheet'!H201=\"\",\"\",'1. Ordersheet'!H201)","v":""},{"$f":"IF('1. Ordersheet'!I201=\"\",\"\",'1. Ordersheet'!I201)","v":""},{"$f":"IF('1. Ordersheet'!J201=\"\",\"\",'1. Ordersheet'!J201)","v":""},{"$f":"IF('1. Ordersheet'!K201=\"\",\"\",'1. Ordersheet'!K201)","v":""},{"$f":"IF('1. Ordersheet'!L201=\"\",\"\",'1. Ordersheet'!L201)","v":""},{"$f":"IF('1. Ordersheet'!M201=\"\",\"\",'1. Ordersheet'!M201)","v":""},{"$f":"IF('1. Ordersheet'!N201=\"\",\"\",'1. Ordersheet'!N201)","v":""},{"$f":"IF('1. Ordersheet'!O201=\"\",\"\",'1. Ordersheet'!O201)","v":{"$error":"#N/A"}},{"$f":"IF('1. Ordersheet'!P201=\"\",\"\",'1. Ordersheet'!P201)","v":{"$error":"#N/A"}},{"$f":"IF('1. Ordersheet'!Q201=\"\",\"\",'1. Ordersheet'!Q201)","v":""},{"$f":"IF('1. Ordersheet'!R201=\"\",\"\",'1. Ordersheet'!R201)","v":""},{"$f":"IF('1. Ordersheet'!S201=\"\",\"\",'1. Ordersheet'!S201)","v":""},{"$f":"IF('1. Ordersheet'!V201=\"\",\"\",'1. Ordersheet'!V201)","v":""},{"$f":"IF('1. Ordersheet'!W201=\"\",\"\",'1. Ordersheet'!W201)","v":""},{"$f":"IF('1. Ordersheet'!X201=\"\",\"\",'1. Ordersheet'!X201)","v":""},{"$f":"IF('1. Ordersheet'!Y201=\"\",\"\",'1. Ordersheet'!Y201)","v":""},{"$f":"IF('1. Ordersheet'!Z201=\"\",\"\",'1. Ordersheet'!Z201)","v":""},{"$f":"IF('1. Ordersheet'!AA201=\"\",\"\",'1. Ordersheet'!AA201)","v":""},null,{"$f":"IF('1. Ordersheet'!AS201=\"\",\"\",'1. Ordersheet'!AS201)","v":""},{"$f":"IF('1. Ordersheet'!AT201=\"\",\"\",'1. Ordersheet'!AT201)","v":""},null,null,null,null,null,null,null,{"$f":"IF('1. Ordersheet'!AX201=\"\",\"\",'1. Ordersheet'!AX201)","v":""},{"$f":"IF('1. Ordersheet'!AY201=\"\",\"\",'1. Ordersheet'!AY201)","v":""},{"$f":"IF('1. Ordersheet'!AZ201=\"\",\"\",'1. Ordersheet'!AZ201)","v":""},{"$f":"IF('1. Ordersheet'!BA201=\"\",\"\",'1. Ordersheet'!BA201)","v":""},{"$f":"IF('1. Ordersheet'!BC201=\"\",\"\",'1. Ordersheet'!BC201)","v":""},{"$f":"IF('1. Ordersheet'!BD201=\"\",\"\",'1. Ordersheet'!BD201)","v":""},{"$f":"IF('1. Ordersheet'!BE201=\"\",\"\",'1. Ordersheet'!BE201)","v":""},{"$f":"IF('1. Ordersheet'!BF201=\"\",\"\",'1. Ordersheet'!BF201)","v":""},{"$f":"IF('1. Ordersheet'!BG201=\"\",\"\",'1. Ordersheet'!BG201)","v":"ZWO"},{"$f":"IF('1. Ordersheet'!BH201=\"\",\"\",'1. Ordersheet'!BH201)","v":""},{"$f":"IF('1. Ordersheet'!BI201=\"\",\"\",'1. Ordersheet'!BI201)","v":""},{"$f":"IF('1. Ordersheet'!BJ201=\"\",\"\",'1. Ordersheet'!BJ201)","v":""},{"$f":"IF('1. Ordersheet'!BK201=\"\",\"\",'1. Ordersheet'!BK201)","v":""},{"$f":"IF('1. Ordersheet'!BL201=\"\",\"\",'1. Ordersheet'!BL201)","v":""}]
[{"$f":"IF('1. Ordersheet'!F202=\"\",\"\",'1. Ordersheet'!F202)","v":""},{"$f":"IF('1. Ordersheet'!G202=\"\",\"\",'1. Ordersheet'!G202)","v":""},{"$f":"IF('1. Ordersheet'!H202=\"\",\"\",'1. Ordersheet'!H202)","v":""},{"$f":"IF('1. Ordersheet'!I202=\"\",\"\",'1. Ordersheet'!I202)","v":""},{"$f":"IF('1. Ordersheet'!J202=\"\",\"\",'1. Ordersheet'!J202)","v":""},{"$f":"IF('1. Ordersheet'!K202=\"\",\"\",'1. Ordersheet'!K202)","v":""},{"$f":"IF('1. Ordersheet'!L202=\"\",\"\",'1. Ordersheet'!L202)","v":""},{"$f":"IF('1. Ordersheet'!M202=\"\",\"\",'1. Ordersheet'!M202)","v":""},{"$f":"IF('1. Ordersheet'!N202=\"\",\"\",'1. Ordersheet'!N202)","v":""},{"$f":"IF('1. Ordersheet'!O202=\"\",\"\",'1. Ordersheet'!O202)","v":{"$error":"#N/A"}},{"$f":"IF('1. Ordersheet'!P202=\"\",\"\",'1. Ordersheet'!P202)","v":{"$error":"#N/A"}},{"$f":"IF('1. Ordersheet'!Q202=\"\",\"\",'1. Ordersheet'!Q202)","v":""},{"$f":"IF('1. Ordersheet'!R202=\"\",\"\",'1. Ordersheet'!R202)","v":""},{"$f":"IF('1. Ordersheet'!S202=\"\",\"\",'1. Ordersheet'!S202)","v":""},{"$f":"IF('1. Ordersheet'!V202=\"\",\"\",'1. Ordersheet'!V202)","v":""},{"$f":"IF('1. Ordersheet'!W202=\"\",\"\",'1. Ordersheet'!W202)","v":""},{"$f":"IF('1. Ordersheet'!X202=\"\",\"\",'1. Ordersheet'!X202)","v":""},{"$f":"IF('1. Ordersheet'!Y202=\"\",\"\",'1. Ordersheet'!Y202)","v":""},{"$f":"IF('1. Ordersheet'!Z202=\"\",\"\",'1. Ordersheet'!Z202)","v":""},{"$f":"IF('1. Ordersheet'!AA202=\"\",\"\",'1. Ordersheet'!AA202)","v":""},null,{"$f":"IF('1. Ordersheet'!AS202=\"\",\"\",'1. Ordersheet'!AS202)","v":""},{"$f":"IF('1. Ordersheet'!AT202=\"\",\"\",'1. Ordersheet'!AT202)","v":""},null,null,null,null,null,null,null,{"$f":"IF('1. Ordersheet'!AX202=\"\",\"\",'1. Ordersheet'!AX202)","v":""},{"$f":"IF('1. Ordersheet'!AY202=\"\",\"\",'1. Ordersheet'!AY202)","v":""},{"$f":"IF('1. Ordersheet'!AZ202=\"\",\"\",'1. Ordersheet'!AZ202)","v":""},{"$f":"IF('1. Ordersheet'!BA202=\"\",\"\",'1. Ordersheet'!BA202)","v":""},{"$f":"IF('1. Ordersheet'!BC202=\"\",\"\",'1. Ordersheet'!BC202)","v":""},{"$f":"IF('1. Ordersheet'!BD202=\"\",\"\",'1. Ordersheet'!BD202)","v":""},{"$f":"IF('1. Ordersheet'!BE202=\"\",\"\",'1. Ordersheet'!BE202)","v":""},{"$f":"IF('1. Ordersheet'!BF202=\"\",\"\",'1. Ordersheet'!BF202)","v":""},{"$f":"IF('1. Ordersheet'!BG202=\"\",\"\",'1. Ordersheet'!BG202)","v":"ZWO"},{"$f":"IF('1. Ordersheet'!BH202=\"\",\"\",'1. Ordersheet'!BH202)","v":""},{"$f":"IF('1. Ordersheet'!BI202=\"\",\"\",'1. Ordersheet'!BI202)","v":""},{"$f":"IF('1. Ordersheet'!BJ202=\"\",\"\",'1. Ordersheet'!BJ202)","v":""},{"$f":"IF('1. Ordersheet'!BK202=\"\",\"\",'1. Ordersheet'!BK202)","v":""},{"$f":"IF('1. Ordersheet'!BL202=\"\",\"\",'1. Ordersheet'!BL202)","v":""}]
[{"$f":"IF('1. Ordersheet'!F203=\"\",\"\",'1. Ordersheet'!F203)","v":""},{"$f":"IF('1. Ordersheet'!G203=\"\",\"\",'1. Ordersheet'!G203)","v":""},{"$f":"IF('1. Ordersheet'!H203=\"\",\"\",'1. Ordersheet'!H203)","v":""},{"$f":"IF('1. Ordersheet'!I203=\"\",\"\",'1. Ordersheet'!I203)","v":""},{"$f":"IF('1. Ordersheet'!J203=\"\",\"\",'1. Ordersheet'!J203)","v":""},{"$f":"IF('1. Ordersheet'!K203=\"\",\"\",'1. Ordersheet'!K203)","v":""},{"$f":"IF('1. Ordersheet'!L203=\"\",\"\",'1. Ordersheet'!L203)","v":""},{"$f":"IF('1. Ordersheet'!M203=\"\",\"\",'1. Ordersheet'!M203)","v":""},{"$f":"IF('1. Ordersheet'!N203=\"\",\"\",'1. Ordersheet'!N203)","v":""},{"$f":"IF('1. Ordersheet'!O203=\"\",\"\",'1. Ordersheet'!O203)","v":{"$error":"#N/A"}},{"$f":"IF('1. Ordersheet'!P203=\"\",\"\",'1. Ordersheet'!P203)","v":{"$error":"#N/A"}},{"$f":"IF('1. Ordersheet'!Q203=\"\",\"\",'1. Ordersheet'!Q203)","v":""},{"$f":"IF('1. Ordersheet'!R203=\"\",\"\",'1. Ordersheet'!R203)","v":""},{"$f":"IF('1. Ordersheet'!S203=\"\",\"\",'1. Ordersheet'!S203)","v":""},{"$f":"IF('1. Ordersheet'!V203=\"\",\"\",'1. Ordersheet'!V203)","v":""},{"$f":"IF('1. Ordersheet'!W203=\"\",\"\",'1. Ordersheet'!W203)","v":""},{"$f":"IF('1. Ordersheet'!X203=\"\",\"\",'1. Ordersheet'!X203)","v":""},{"$f":"IF('1. Ordersheet'!Y203=\"\",\"\",'1. Ordersheet'!Y203)","v":""},{"$f":"IF('1. Ordersheet'!Z203=\"\",\"\",'1. Ordersheet'!Z203)","v":""},{"$f":"IF('1. Ordersheet'!AA203=\"\",\"\",'1. Ordersheet'!AA203)","v":""},null,{"$f":"IF('1. Ordersheet'!AS203=\"\",\"\",'1. Ordersheet'!AS203)","v":""},{"$f":"IF('1. Ordersheet'!AT203=\"\",\"\",'1. Ordersheet'!AT203)","v":""},null,null,null,null,null,null,null,{"$f":"IF('1. Ordersheet'!AX203=\"\",\"\",'1. Ordersheet'!AX203)","v":""},{"$f":"IF('1. Ordersheet'!AY203=\"\",\"\",'1. Ordersheet'!AY203)","v":""},{"$f":"IF('1. Ordersheet'!AZ203=\"\",\"\",'1. Ordersheet'!AZ203)","v":""},{"$f":"IF('1. Ordersheet'!BA203=\"\",\"\",'1. Ordersheet'!BA203)","v":""},{"$f":"IF('1. Ordersheet'!BC203=\"\",\"\",'1. Ordersheet'!BC203)","v":""},{"$f":"IF('1. Ordersheet'!BD203=\"\",\"\",'1. Ordersheet'!BD203)","v":""},{"$f":"IF('1. Ordersheet'!BE203=\"\",\"\",'1. Ordersheet'!BE203)","v":""},{"$f":"IF('1. Ordersheet'!BF203=\"\",\"\",'1. Ordersheet'!BF203)","v":""},{"$f":"IF('1. Ordersheet'!BG203=\"\",\"\",'1. Ordersheet'!BG203)","v":"ZWO"},{"$f":"IF('1. Ordersheet'!BH203=\"\",\"\",'1. Ordersheet'!BH203)","v":""},{"$f":"IF('1. Ordersheet'!BI203=\"\",\"\",'1. Ordersheet'!BI203)","v":""},{"$f":"IF('1. Ordersheet'!BJ203=\"\",\"\",'1. Ordersheet'!BJ203)","v":""},{"$f":"IF('1. Ordersheet'!BK203=\"\",\"\",'1. Ordersheet'!BK203)","v":""},{"$f":"IF('1. Ordersheet'!BL203=\"\",\"\",'1. Ordersheet'!BL203)","v":""}]
[{"$f":"IF('1. Ordersheet'!F204=\"\",\"\",'1. Ordersheet'!F204)","v":""},{"$f":"IF('1. Ordersheet'!G204=\"\",\"\",'1. Ordersheet'!G204)","v":""},{"$f":"IF('1. Ordersheet'!H204=\"\",\"\",'1. Ordersheet'!H204)","v":""},{"$f":"IF('1. Ordersheet'!I204=\"\",\"\",'1. Ordersheet'!I204)","v":""},{"$f":"IF('1. Ordersheet'!J204=\"\",\"\",'1. Ordersheet'!J204)","v":""},{"$f":"IF('1. Ordersheet'!K204=\"\",\"\",'1. Ordersheet'!K204)","v":""},{"$f":"IF('1. Ordersheet'!L204=\"\",\"\",'1. Ordersheet'!L204)","v":""},{"$f":"IF('1. Ordersheet'!M204=\"\",\"\",'1. Ordersheet'!M204)","v":""},{"$f":"IF('1. Ordersheet'!N204=\"\",\"\",'1. Ordersheet'!N204)","v":""},{"$f":"IF('1. Ordersheet'!O204=\"\",\"\",'1. Ordersheet'!O204)","v":{"$error":"#N/A"}},{"$f":"IF('1. Ordersheet'!P204=\"\",\"\",'1. Ordersheet'!P204)","v":{"$error":"#N/A"}},{"$f":"IF('1. Ordersheet'!Q204=\"\",\"\",'1. Ordersheet'!Q204)","v":""},{"$f":"IF('1. Ordersheet'!R204=\"\",\"\",'1. Ordersheet'!R204)","v":""},{"$f":"IF('1. Ordersheet'!S204=\"\",\"\",'1. Ordersheet'!S204)","v":""},{"$f":"IF('1. Ordersheet'!V204=\"\",\"\",'1. Ordersheet'!V204)","v":""},{"$f":"IF('1. Ordersheet'!W204=\"\",\"\",'1. Ordersheet'!W204)","v":""},{"$f":"IF('1. Ordersheet'!X204=\"\",\"\",'1. Ordersheet'!X204)","v":""},{"$f":"IF('1. Ordersheet'!Y204=\"\",\"\",'1. Ordersheet'!Y204)","v":""},{"$f":"IF('1. Ordersheet'!Z204=\"\",\"\",'1. Ordersheet'!Z204)","v":""},{"$f":"IF('1. Ordersheet'!AA204=\"\",\"\",'1. Ordersheet'!AA204)","v":""},null,{"$f":"IF('1. Ordersheet'!AS204=\"\",\"\",'1. Ordersheet'!AS204)","v":""},{"$f":"IF('1. Ordersheet'!AT204=\"\",\"\",'1. Ordersheet'!AT204)","v":""},null,null,null,null,null,null,null,{"$f":"IF('1. Ordersheet'!AX204=\"\",\"\",'1. Ordersheet'!AX204)","v":""},{"$f":"IF('1. Ordersheet'!AY204=\"\",\"\",'1. Ordersheet'!AY204)","v":""},{"$f":"IF('1. Ordersheet'!AZ204=\"\",\"\",'1. Ordersheet'!AZ204)","v":""},{"$f":"IF('1. Ordersheet'!BA204=\"\",\"\",'1. Ordersheet'!BA204)","v":""},{"$f":"IF('1. Ordersheet'!BC204=\"\",\"\",'1. Ordersheet'!BC204)","v":""},{"$f":"IF('1. Ordersheet'!BD204=\"\",\"\",'1. Ordersheet'!BD204)","v":""},{"$f":"IF('1. Ordersheet'!BE204=\"\",\"\",'1. Ordersheet'!BE204)","v":""},{"$f":"IF('1. Ordersheet'!BF204=\"\",\"\",'1. Ordersheet'!BF204)","v":""},{"$f":"IF('1. Ordersheet'!BG204=\"\",\"\",'1. Ordersheet'!BG204)","v":"ZWO"},{"$f":"IF('1. Ordersheet'!BH204=\"\",\"\",'1. Ordersheet'!BH204)","v":""},{"$f":"IF('1. Ordersheet'!BI204=\"\",\"\",'1. Ordersheet'!BI204)","v":""},{"$f":"IF('1. Ordersheet'!BJ204=\"\",\"\",'1. Ordersheet'!BJ204)","v":""},{"$f":"IF('1. Ordersheet'!BK204=\"\",\"\",'1. Ordersheet'!BK204)","v":""},{"$f":"IF('1. Ordersheet'!BL204=\"\",\"\",'1. Ordersheet'!BL204)","v":""}]
[{"$f":"IF('1. Ordersheet'!F205=\"\",\"\",'1. Ordersheet'!F205)","v":""},{"$f":"IF('1. Ordersheet'!G205=\"\",\"\",'1. Ordersheet'!G205)","v":""},{"$f":"IF('1. Ordersheet'!H205=\"\",\"\",'1. Ordersheet'!H205)","v":""},{"$f":"IF('1. Ordersheet'!I205=\"\",\"\",'1. Ordersheet'!I205)","v":""},{"$f":"IF('1. Ordersheet'!J205=\"\",\"\",'1. Ordersheet'!J205)","v":""},{"$f":"IF('1. Ordersheet'!K205=\"\",\"\",'1. Ordersheet'!K205)","v":""},{"$f":"IF('1. Ordersheet'!L205=\"\",\"\",'1. Ordersheet'!L205)","v":""},{"$f":"IF('1. Ordersheet'!M205=\"\",\"\",'1. Ordersheet'!M205)","v":""},{"$f":"IF('1. Ordersheet'!N205=\"\",\"\",'1. Ordersheet'!N205)","v":""},{"$f":"IF('1. Ordersheet'!O205=\"\",\"\",'1. Ordersheet'!O205)","v":{"$error":"#N/A"}},{"$f":"IF('1. Ordersheet'!P205=\"\",\"\",'1. Ordersheet'!P205)","v":{"$error":"#N/A"}},{"$f":"IF('1. Ordersheet'!Q205=\"\",\"\",'1. Ordersheet'!Q205)","v":""},{"$f":"IF('1. Ordersheet'!R205=\"\",\"\",'1. Ordersheet'!R205)","v":""},{"$f":"IF('1. Ordersheet'!S205=\"\",\"\",'1. Ordersheet'!S205)","v":""},{"$f":"IF('1. Ordersheet'!V205=\"\",\"\",'1. Ordersheet'!V205)","v":""},{"$f":"IF('1. Ordersheet'!W205=\"\",\"\",'1. Ordersheet'!W205)","v":""},{"$f":"IF('1. Ordersheet'!X205=\"\",\"\",'1. Ordersheet'!X205)","v":""},{"$f":"IF('1. Ordersheet'!Y205=\"\",\"\",'1. Ordersheet'!Y205)","v":""},{"$f":"IF('1. Ordersheet'!Z205=\"\",\"\",'1. Ordersheet'!Z205)","v":""},{"$f":"IF('1. Ordersheet'!AA205=\"\",\"\",'1. Ordersheet'!AA205)","v":""},null,{"$f":"IF('1. Ordersheet'!AS205=\"\",\"\",'1. Ordersheet'!AS205)","v":""},{"$f":"IF('1. Ordersheet'!AT205=\"\",\"\",'1. Ordersheet'!AT205)","v":""},null,null,null,null,null,null,null,{"$f":"IF('1. Ordersheet'!AX205=\"\",\"\",'1. Ordersheet'!AX205)","v":""},{"$f":"IF('1. Ordersheet'!AY205=\"\",\"\",'1. Ordersheet'!AY205)","v":""},{"$f":"IF('1. Ordersheet'!AZ205=\"\",\"\",'1. Ordersheet'!AZ205)","v":""},{"$f":"IF('1. Ordersheet'!BA205=\"\",\"\",'1. Ordersheet'!BA205)","v":""},{"$f":"IF('1. Ordersheet'!BC205=\"\",\"\",'1. Ordersheet'!BC205)","v":""},{"$f":"IF('1. Ordersheet'!BD205=\"\",\"\",'1. Ordersheet'!BD205)","v":""},{"$f":"IF('1. Ordersheet'!BE205=\"\",\"\",'1. Ordersheet'!BE205)","v":""},{"$f":"IF('1. Ordersheet'!BF205=\"\",\"\",'1. Ordersheet'!BF205)","v":""},{"$f":"IF('1. Ordersheet'!BG205=\"\",\"\",'1. Ordersheet'!BG205)","v":"ZWO"},{"$f":"IF('1. Ordersheet'!BH205=\"\",\"\",'1. Ordersheet'!BH205)","v":""},{"$f":"IF('1. Ordersheet'!BI205=\"\",\"\",'1. Ordersheet'!BI205)","v":""},{"$f":"IF('1. Ordersheet'!BJ205=\"\",\"\",'1. Ordersheet'!BJ205)","v":""},{"$f":"IF('1. Ordersheet'!BK205=\"\",\"\",'1. Ordersheet'!BK205)","v":""},{"$f":"IF('1. Ordersheet'!BL205=\"\",\"\",'1. Ordersheet'!BL205)","v":""}]
[{"$f":"IF('1. Ordersheet'!F206=\"\",\"\",'1. Ordersheet'!F206)","v":""},{"$f":"IF('1. Ordersheet'!G206=\"\",\"\",'1. Ordersheet'!G206)","v":""},{"$f":"IF('1. Ordersheet'!H206=\"\",\"\",'1. Ordersheet'!H206)","v":""},{"$f":"IF('1. Ordersheet'!I206=\"\",\"\",'1. Ordersheet'!I206)","v":""},{"$f":"IF('1. Ordersheet'!J206=\"\",\"\",'1. Ordersheet'!J206)","v":""},{"$f":"IF('1. Ordersheet'!K206=\"\",\"\",'1. Ordersheet'!K206)","v":""},{"$f":"IF('1. Ordersheet'!L206=\"\",\"\",'1. Ordersheet'!L206)","v":""},{"$f":"IF('1. Ordersheet'!M206=\"\",\"\",'1. Ordersheet'!M206)","v":""},{"$f":"IF('1. Ordersheet'!N206=\"\",\"\",'1. Ordersheet'!N206)","v":""},{"$f":"IF('1. Ordersheet'!O206=\"\",\"\",'1. Ordersheet'!O206)","v":{"$error":"#N/A"}},{"$f":"IF('1. Ordersheet'!P206=\"\",\"\",'1. Ordersheet'!P206)","v":{"$error":"#N/A"}},{"$f":"IF('1. Ordersheet'!Q206=\"\",\"\",'1. Ordersheet'!Q206)","v":""},{"$f":"IF('1. Ordersheet'!R206=\"\",\"\",'1. Ordersheet'!R206)","v":""},{"$f":"IF('1. Ordersheet'!S206=\"\",\"\",'1. Ordersheet'!S206)","v":""},{"$f":"IF('1. Ordersheet'!V206=\"\",\"\",'1. Ordersheet'!V206)","v":""},{"$f":"IF('1. Ordersheet'!W206=\"\",\"\",'1. Ordersheet'!W206)","v":""},{"$f":"IF('1. Ordersheet'!X206=\"\",\"\",'1. Ordersheet'!X206)","v":""},{"$f":"IF('1. Ordersheet'!Y206=\"\",\"\",'1. Ordersheet'!Y206)","v":""},{"$f":"IF('1. Ordersheet'!Z206=\"\",\"\",'1. Ordersheet'!Z206)","v":""},{"$f":"IF('1. Ordersheet'!AA206=\"\",\"\",'1. Ordersheet'!AA206)","v":""},null,{"$f":"IF('1. Ordersheet'!AS206=\"\",\"\",'1. Ordersheet'!AS206)","v":""},{"$f":"IF('1. Ordersheet'!AT206=\"\",\"\",'1. Ordersheet'!AT206)","v":""},null,null,null,null,null,null,null,{"$f":"IF('1. Ordersheet'!AX206=\"\",\"\",'1. Ordersheet'!AX206)","v":""},{"$f":"IF('1. Ordersheet'!AY206=\"\",\"\",'1. Ordersheet'!AY206)","v":""},{"$f":"IF('1. Ordersheet'!AZ206=\"\",\"\",'1. Ordersheet'!AZ206)","v":""},{"$f":"IF('1. Ordersheet'!BA206=\"\",\"\",'1. Ordersheet'!BA206)","v":""},{"$f":"IF('1. Ordersheet'!BC206=\"\",\"\",'1. Ordersheet'!BC206)","v":""},{"$f":"IF('1. Ordersheet'!BD206=\"\",\"\",'1. Ordersheet'!BD206)","v":""},{"$f":"IF('1. Ordersheet'!BE206=\"\",\"\",'1. Ordersheet'!BE206)","v":""},{"$f":"IF('1. Ordersheet'!BF206=\"\",\"\",'1. Ordersheet'!BF206)","v":""},{"$f":"IF('1. Ordersheet'!BG206=\"\",\"\",'1. Ordersheet'!BG206)","v":"ZWO"},{"$f":"IF('1. Ordersheet'!BH206=\"\",\"\",'1. Ordersheet'!BH206)","v":""},{"$f":"IF('1. Ordersheet'!BI206=\"\",\"\",'1. Ordersheet'!BI206)","v":""},{"$f":"IF('1. Ordersheet'!BJ206=\"\",\"\",'1. Ordersheet'!BJ206)","v":""},{"$f":"IF('1. Ordersheet'!BK206=\"\",\"\",'1. Ordersheet'!BK206)","v":""},{"$f":"IF('1. Ordersheet'!BL206=\"\",\"\",'1. Ordersheet'!BL206)","v":""}]
[{"$f":"IF('1. Ordersheet'!F207=\"\",\"\",'1. Ordersheet'!F207)","v":""},{"$f":"IF('1. Ordersheet'!G207=\"\",\"\",'1. Ordersheet'!G207)","v":""},{"$f":"IF('1. Ordersheet'!H207=\"\",\"\",'1. Ordersheet'!H207)","v":""},{"$f":"IF('1. Ordersheet'!I207=\"\",\"\",'1. Ordersheet'!I207)","v":""},{"$f":"IF('1. Ordersheet'!J207=\"\",\"\",'1. Ordersheet'!J207)","v":""},{"$f":"IF('1. Ordersheet'!K207=\"\",\"\",'1. Ordersheet'!K207)","v":""},{"$f":"IF('1. Ordersheet'!L207=\"\",\"\",'1. Ordersheet'!L207)","v":""},{"$f":"IF('1. Ordersheet'!M207=\"\",\"\",'1. Ordersheet'!M207)","v":""},{"$f":"IF('1. Ordersheet'!N207=\"\",\"\",'1. Ordersheet'!N207)","v":""},{"$f":"IF('1. Ordersheet'!O207=\"\",\"\",'1. Ordersheet'!O207)","v":{"$error":"#N/A"}},{"$f":"IF('1. Ordersheet'!P207=\"\",\"\",'1. Ordersheet'!P207)","v":{"$error":"#N/A"}},{"$f":"IF('1. Ordersheet'!Q207=\"\",\"\",'1. Ordersheet'!Q207)","v":""},{"$f":"IF('1. Ordersheet'!R207=\"\",\"\",'1. Ordersheet'!R207)","v":""},{"$f":"IF('1. Ordersheet'!S207=\"\",\"\",'1. Ordersheet'!S207)","v":""},{"$f":"IF('1. Ordersheet'!V207=\"\",\"\",'1. Ordersheet'!V207)","v":""},{"$f":"IF('1. Ordersheet'!W207=\"\",\"\",'1. Ordersheet'!W207)","v":""},{"$f":"IF('1. Ordersheet'!X207=\"\",\"\",'1. Ordersheet'!X207)","v":""},{"$f":"IF('1. Ordersheet'!Y207=\"\",\"\",'1. Ordersheet'!Y207)","v":""},{"$f":"IF('1. Ordersheet'!Z207=\"\",\"\",'1. Ordersheet'!Z207)","v":""},{"$f":"IF('1. Ordersheet'!AA207=\"\",\"\",'1. Ordersheet'!AA207)","v":""},null,{"$f":"IF('1. Ordersheet'!AS207=\"\",\"\",'1. Ordersheet'!AS207)","v":""},{"$f":"IF('1. Ordersheet'!AT207=\"\",\"\",'1. Ordersheet'!AT207)","v":""},null,null,null,null,null,null,null,{"$f":"IF('1. Ordersheet'!AX207=\"\",\"\",'1. Ordersheet'!AX207)","v":""},{"$f":"IF('1. Ordersheet'!AY207=\"\",\"\",'1. Ordersheet'!AY207)","v":""},{"$f":"IF('1. Ordersheet'!AZ207=\"\",\"\",'1. Ordersheet'!AZ207)","v":""},{"$f":"IF('1. Ordersheet'!BA207=\"\",\"\",'1. Ordersheet'!BA207)","v":""},{"$f":"IF('1. Ordersheet'!BC207=\"\",\"\",'1. Ordersheet'!BC207)","v":""},{"$f":"IF('1. Ordersheet'!BD207=\"\",\"\",'1. Ordersheet'!BD207)","v":""},{"$f":"IF('1. Ordersheet'!BE207=\"\",\"\",'1. Ordersheet'!BE207)","v":""},{"$f":"IF('1. Ordersheet'!BF207=\"\",\"\",'1. Ordersheet'!BF207)","v":""},{"$f":"IF('1. Ordersheet'!BG207=\"\",\"\",'1. Ordersheet'!BG207)","v":"ZWO"},{"$f":"IF('1. Ordersheet'!BH207=\"\",\"\",'1. Ordersheet'!BH207)","v":""},{"$f":"IF('1. Ordersheet'!BI207=\"\",\"\",'1. Ordersheet'!BI207)","v":""},{"$f":"IF('1. Ordersheet'!BJ207=\"\",\"\",'1. Ordersheet'!BJ207)","v":""},{"$f":"IF('1. Ordersheet'!BK207=\"\",\"\",'1. Ordersheet'!BK207)","v":""},{"$f":"IF('1. Ordersheet'!BL207=\"\",\"\",'1. Ordersheet'!BL207)","v":""}]
[{"$f":"IF('1. Ordersheet'!F208=\"\",\"\",'1. Ordersheet'!F208)","v":""},{"$f":"IF('1. Ordersheet'!G208=\"\",\"\",'1. Ordersheet'!G208)","v":""},{"$f":"IF('1. Ordersheet'!H208=\"\",\"\",'1. Ordersheet'!H208)","v":""},{"$f":"IF('1. Ordersheet'!I208=\"\",\"\",'1. Ordersheet'!I208)","v":""},{"$f":"IF('1. Ordersheet'!J208=\"\",\"\",'1. Ordersheet'!J208)","v":""},{"$f":"IF('1. Ordersheet'!K208=\"\",\"\",'1. Ordersheet'!K208)","v":""},{"$f":"IF('1. Ordersheet'!L208=\"\",\"\",'1. Ordersheet'!L208)","v":""},{"$f":"IF('1. Ordersheet'!M208=\"\",\"\",'1. Ordersheet'!M208)","v":""},{"$f":"IF('1. Ordersheet'!N208=\"\",\"\",'1. Ordersheet'!N208)","v":""},{"$f":"IF('1. Ordersheet'!O208=\"\",\"\",'1. Ordersheet'!O208)","v":{"$error":"#N/A"}},{"$f":"IF('1. Ordersheet'!P208=\"\",\"\",'1. Ordersheet'!P208)","v":{"$error":"#N/A"}},{"$f":"IF('1. Ordersheet'!Q208=\"\",\"\",'1. Ordersheet'!Q208)","v":""},{"$f":"IF('1. Ordersheet'!R208=\"\",\"\",'1. Ordersheet'!R208)","v":""},{"$f":"IF('1. Ordersheet'!S208=\"\",\"\",'1. Ordersheet'!S208)","v":""},{"$f":"IF('1. Ordersheet'!V208=\"\",\"\",'1. Ordersheet'!V208)","v":""},{"$f":"IF('1. Ordersheet'!W208=\"\",\"\",'1. Ordersheet'!W208)","v":""},{"$f":"IF('1. Ordersheet'!X208=\"\",\"\",'1. Ordersheet'!X208)","v":""},{"$f":"IF('1. Ordersheet'!Y208=\"\",\"\",'1. Ordersheet'!Y208)","v":""},{"$f":"IF('1. Ordersheet'!Z208=\"\",\"\",'1. Ordersheet'!Z208)","v":""},{"$f":"IF('1. Ordersheet'!AA208=\"\",\"\",'1. Ordersheet'!AA208)","v":""},null,{"$f":"IF('1. Ordersheet'!AS208=\"\",\"\",'1. Ordersheet'!AS208)","v":""},{"$f":"IF('1. Ordersheet'!AT208=\"\",\"\",'1. Ordersheet'!AT208)","v":""},null,null,null,null,null,null,null,{"$f":"IF('1. Ordersheet'!AX208=\"\",\"\",'1. Ordersheet'!AX208)","v":""},{"$f":"IF('1. Ordersheet'!AY208=\"\",\"\",'1. Ordersheet'!AY208)","v":""},{"$f":"IF('1. Ordersheet'!AZ208=\"\",\"\",'1. Ordersheet'!AZ208)","v":""},{"$f":"IF('1. Ordersheet'!BA208=\"\",\"\",'1. Ordersheet'!BA208)","v":""},{"$f":"IF('1. Ordersheet'!BC208=\"\",\"\",'1. Ordersheet'!BC208)","v":""},{"$f":"IF('1. Ordersheet'!BD208=\"\",\"\",'1. Ordersheet'!BD208)","v":""},{"$f":"IF('1. Ordersheet'!BE208=\"\",\"\",'1. Ordersheet'!BE208)","v":""},{"$f":"IF('1. Ordersheet'!BF208=\"\",\"\",'1. Ordersheet'!BF208)","v":""},{"$f":"IF('1. Ordersheet'!BG208=\"\",\"\",'1. Ordersheet'!BG208)","v":"ZWO"},{"$f":"IF('1. Ordersheet'!BH208=\"\",\"\",'1. Ordersheet'!BH208)","v":""},{"$f":"IF('1. Ordersheet'!BI208=\"\",\"\",'1. Ordersheet'!BI208)","v":""},{"$f":"IF('1. Ordersheet'!BJ208=\"\",\"\",'1. Ordersheet'!BJ208)","v":""},{"$f":"IF('1. Ordersheet'!BK208=\"\",\"\",'1. Ordersheet'!BK208)","v":""},{"$f":"IF('1. Ordersheet'!BL208=\"\",\"\",'1. Ordersheet'!BL208)","v":""}]
[{"$f":"IF('1. Ordersheet'!F209=\"\",\"\",'1. Ordersheet'!F209)","v":""},{"$f":"IF('1. Ordersheet'!G209=\"\",\"\",'1. Ordersheet'!G209)","v":""},{"$f":"IF('1. Ordersheet'!H209=\"\",\"\",'1. Ordersheet'!H209)","v":""},{"$f":"IF('1. Ordersheet'!I209=\"\",\"\",'1. Ordersheet'!I209)","v":""},{"$f":"IF('1. Ordersheet'!J209=\"\",\"\",'1. Ordersheet'!J209)","v":""},{"$f":"IF('1. Ordersheet'!K209=\"\",\"\",'1. Ordersheet'!K209)","v":""},{"$f":"IF('1. Ordersheet'!L209=\"\",\"\",'1. Ordersheet'!L209)","v":""},{"$f":"IF('1. Ordersheet'!M209=\"\",\"\",'1. Ordersheet'!M209)","v":""},{"$f":"IF('1. Ordersheet'!N209=\"\",\"\",'1. Ordersheet'!N209)","v":""},{"$f":"IF('1. Ordersheet'!O209=\"\",\"\",'1. Ordersheet'!O209)","v":{"$error":"#N/A"}},{"$f":"IF('1. Ordersheet'!P209=\"\",\"\",'1. Ordersheet'!P209)","v":{"$error":"#N/A"}},{"$f":"IF('1. Ordersheet'!Q209=\"\",\"\",'1. Ordersheet'!Q209)","v":""},{"$f":"IF('1. Ordersheet'!R209=\"\",\"\",'1. Ordersheet'!R209)","v":""},{"$f":"IF('1. Ordersheet'!S209=\"\",\"\",'1. Ordersheet'!S209)","v":""},{"$f":"IF('1. Ordersheet'!V209=\"\",\"\",'1. Ordersheet'!V209)","v":""},{"$f":"IF('1. Ordersheet'!W209=\"\",\"\",'1. Ordersheet'!W209)","v":""},{"$f":"IF('1. Ordersheet'!X209=\"\",\"\",'1. Ordersheet'!X209)","v":""},{"$f":"IF('1. Ordersheet'!Y209=\"\",\"\",'1. Ordersheet'!Y209)","v":""},{"$f":"IF('1. Ordersheet'!Z209=\"\",\"\",'1. Ordersheet'!Z209)","v":""},{"$f":"IF('1. Ordersheet'!AA209=\"\",\"\",'1. Ordersheet'!AA209)","v":""},null,{"$f":"IF('1. Ordersheet'!AS209=\"\",\"\",'1. Ordersheet'!AS209)","v":""},{"$f":"IF('1. Ordersheet'!AT209=\"\",\"\",'1. Ordersheet'!AT209)","v":""},null,null,null,null,null,null,null,{"$f":"IF('1. Ordersheet'!AX209=\"\",\"\",'1. Ordersheet'!AX209)","v":""},{"$f":"IF('1. Ordersheet'!AY209=\"\",\"\",'1. Ordersheet'!AY209)","v":""},{"$f":"IF('1. Ordersheet'!AZ209=\"\",\"\",'1. Ordersheet'!AZ209)","v":""},{"$f":"IF('1. Ordersheet'!BA209=\"\",\"\",'1. Ordersheet'!BA209)","v":""},{"$f":"IF('1. Ordersheet'!BC209=\"\",\"\",'1. Ordersheet'!BC209)","v":""},{"$f":"IF('1. Ordersheet'!BD209=\"\",\"\",'1. Ordersheet'!BD209)","v":""},{"$f":"IF('1. Ordersheet'!BE209=\"\",\"\",'1. Ordersheet'!BE209)","v":""},{"$f":"IF('1. Ordersheet'!BF209=\"\",\"\",'1. Ordersheet'!BF209)","v":""},{"$f":"IF('1. Ordersheet'!BG209=\"\",\"\",'1. Ordersheet'!BG209)","v":"ZWO"},{"$f":"IF('1. Ordersheet'!BH209=\"\",\"\",'1. Ordersheet'!BH209)","v":""},{"$f":"IF('1. Ordersheet'!BI209=\"\",\"\",'1. Ordersheet'!BI209)","v":""},{"$f":"IF('1. Ordersheet'!BJ209=\"\",\"\",'1. Ordersheet'!BJ209)","v":""},{"$f":"IF('1. Ordersheet'!BK209=\"\",\"\",'1. Ordersheet'!BK209)","v":""},{"$f":"IF('1. Ordersheet'!BL209=\"\",\"\",'1. Ordersheet'!BL209)","v":""}]
[{"$f":"IF('1. Ordersheet'!F210=\"\",\"\",'1. Ordersheet'!F210)","v":""},{"$f":"IF('1. Ordersheet'!G210=\"\",\"\",'1. Ordersheet'!G210)","v":""},{"$f":"IF('1. Ordersheet'!H210=\"\",\"\",'1. Ordersheet'!H210)","v":""},{"$f":"IF('1. Ordersheet'!I210=\"\",\"\",'1. Ordersheet'!I210)","v":""},{"$f":"IF('1. Ordersheet'!J210=\"\",\"\",'1. Ordersheet'!J210)","v":""},{"$f":"IF('1. Ordersheet'!K210=\"\",\"\",'1. Ordersheet'!K210)","v":""},{"$f":"IF('1. Ordersheet'!L210=\"\",\"\",'1. Ordersheet'!L210)","v":""},{"$f":"IF('1. Ordersheet'!M210=\"\",\"\",'1. Ordersheet'!M210)","v":""},{"$f":"IF('1. Ordersheet'!N210=\"\",\"\",'1. Ordersheet'!N210)","v":""},{"$f":"IF('1. Ordersheet'!O210=\"\",\"\",'1. Ordersheet'!O210)","v":{"$error":"#N/A"}},{"$f":"IF('1. Ordersheet'!P210=\"\",\"\",'1. Ordersheet'!P210)","v":{"$error":"#N/A"}},{"$f":"IF('1. Ordersheet'!Q210=\"\",\"\",'1. Ordersheet'!Q210)","v":""},{"$f":"IF('1. Ordersheet'!R210=\"\",\"\",'1. Ordersheet'!R210)","v":""},{"$f":"IF('1. Ordersheet'!S210=\"\",\"\",'1. Ordersheet'!S210)","v":""},{"$f":"IF('1. Ordersheet'!V210=\"\",\"\",'1. Ordersheet'!V210)","v":""},{"$f":"IF('1. Ordersheet'!W210=\"\",\"\",'1. Ordersheet'!W210)","v":""},{"$f":"IF('1. Ordersheet'!X210=\"\",\"\",'1. Ordersheet'!X210)","v":""},{"$f":"IF('1. Ordersheet'!Y210=\"\",\"\",'1. Ordersheet'!Y210)","v":""},{"$f":"IF('1. Ordersheet'!Z210=\"\",\"\",'1. Ordersheet'!Z210)","v":""},{"$f":"IF('1. Ordersheet'!AA210=\"\",\"\",'1. Ordersheet'!AA210)","v":""},null,{"$f":"IF('1. Ordersheet'!AS210=\"\",\"\",'1. Ordersheet'!AS210)","v":""},{"$f":"IF('1. Ordersheet'!AT210=\"\",\"\",'1. Ordersheet'!AT210)","v":""},null,null,null,null,null,null,null,{"$f":"IF('1. Ordersheet'!AX210=\"\",\"\",'1. Ordersheet'!AX210)","v":""},{"$f":"IF('1. Ordersheet'!AY210=\"\",\"\",'1. Ordersheet'!AY210)","v":""},{"$f":"IF('1. Ordersheet'!AZ210=\"\",\"\",'1. Ordersheet'!AZ210)","v":""},{"$f":"IF('1. Ordersheet'!BA210=\"\",\"\",'1. Ordersheet'!BA210)","v":""},{"$f":"IF('1. Ordersheet'!BC210=\"\",\"\",'1. Ordersheet'!BC210)","v":""},{"$f":"IF('1. Ordersheet'!BD210=\"\",\"\",'1. Ordersheet'!BD210)","v":""},{"$f":"IF('1. Ordersheet'!BE210=\"\",\"\",'1. Ordersheet'!BE210)","v":""},{"$f":"IF('1. Ordersheet'!BF210=\"\",\"\",'1. Ordersheet'!BF210)","v":""},{"$f":"IF('1. Ordersheet'!BG210=\"\",\"\",'1. Ordersheet'!BG210)","v":"ZWO"},{"$f":"IF('1. Ordersheet'!BH210=\"\",\"\",'1. Ordersheet'!BH210)","v":""},{"$f":"IF('1. Ordersheet'!BI210=\"\",\"\",'1. Ordersheet'!BI210)","v":""},{"$f":"IF('1. Ordersheet'!BJ210=\"\",\"\",'1. Ordersheet'!BJ210)","v":""},{"$f":"IF('1. Ordersheet'!BK210=\"\",\"\",'1. Ordersheet'!BK210)","v":""},{"$f":"IF('1. Ordersheet'!BL210=\"\",\"\",'1. Ordersheet'!BL210)","v":""}]
[{"$f":"IF('1. Ordersheet'!F211=\"\",\"\",'1. Ordersheet'!F211)","v":""},{"$f":"IF('1. Ordersheet'!G211=\"\",\"\",'1. Ordersheet'!G211)","v":""},{"$f":"IF('1. Ordersheet'!H211=\"\",\"\",'1. Ordersheet'!H211)","v":""},{"$f":"IF('1. Ordersheet'!I211=\"\",\"\",'1. Ordersheet'!I211)","v":""},{"$f":"IF('1. Ordersheet'!J211=\"\",\"\",'1. Ordersheet'!J211)","v":""},{"$f":"IF('1. Ordersheet'!K211=\"\",\"\",'1. Ordersheet'!K211)","v":""},{"$f":"IF('1. Ordersheet'!L211=\"\",\"\",'1. Ordersheet'!L211)","v":""},{"$f":"IF('1. Ordersheet'!M211=\"\",\"\",'1. Ordersheet'!M211)","v":""},{"$f":"IF('1. Ordersheet'!N211=\"\",\"\",'1. Ordersheet'!N211)","v":""},{"$f":"IF('1. Ordersheet'!O211=\"\",\"\",'1. Ordersheet'!O211)","v":{"$error":"#N/A"}},{"$f":"IF('1. Ordersheet'!P211=\"\",\"\",'1. Ordersheet'!P211)","v":{"$error":"#N/A"}},{"$f":"IF('1. Ordersheet'!Q211=\"\",\"\",'1. Ordersheet'!Q211)","v":""},{"$f":"IF('1. Ordersheet'!R211=\"\",\"\",'1. Ordersheet'!R211)","v":""},{"$f":"IF('1. Ordersheet'!S211=\"\",\"\",'1. Ordersheet'!S211)","v":""},{"$f":"IF('1. Ordersheet'!V211=\"\",\"\",'1. Ordersheet'!V211)","v":""},{"$f":"IF('1. Ordersheet'!W211=\"\",\"\",'1. Ordersheet'!W211)","v":""},{"$f":"IF('1. Ordersheet'!X211=\"\",\"\",'1. Ordersheet'!X211)","v":""},{"$f":"IF('1. Ordersheet'!Y211=\"\",\"\",'1. Ordersheet'!Y211)","v":""},{"$f":"IF('1. Ordersheet'!Z211=\"\",\"\",'1. Ordersheet'!Z211)","v":""},{"$f":"IF('1. Ordersheet'!AA211=\"\",\"\",'1. Ordersheet'!AA211)","v":""},null,{"$f":"IF('1. Ordersheet'!AS211=\"\",\"\",'1. Ordersheet'!AS211)","v":""},{"$f":"IF('1. Ordersheet'!AT211=\"\",\"\",'1. Ordersheet'!AT211)","v":""},null,null,null,null,null,null,null,{"$f":"IF('1. Ordersheet'!AX211=\"\",\"\",'1. Ordersheet'!AX211)","v":""},{"$f":"IF('1. Ordersheet'!AY211=\"\",\"\",'1. Ordersheet'!AY211)","v":""},{"$f":"IF('1. Ordersheet'!AZ211=\"\",\"\",'1. Ordersheet'!AZ211)","v":""},{"$f":"IF('1. Ordersheet'!BA211=\"\",\"\",'1. Ordersheet'!BA211)","v":""},{"$f":"IF('1. Ordersheet'!BC211=\"\",\"\",'1. Ordersheet'!BC211)","v":""},{"$f":"IF('1. Ordersheet'!BD211=\"\",\"\",'1. Ordersheet'!BD211)","v":""},{"$f":"IF('1. Ordersheet'!BE211=\"\",\"\",'1. Ordersheet'!BE211)","v":""},{"$f":"IF('1. Ordersheet'!BF211=\"\",\"\",'1. Ordersheet'!BF211)","v":""},{"$f":"IF('1. Ordersheet'!BG211=\"\",\"\",'1. Ordersheet'!BG211)","v":"ZWO"},{"$f":"IF('1. Ordersheet'!BH211=\"\",\"\",'1. Ordersheet'!BH211)","v":""},{"$f":"IF('1. Ordersheet'!BI211=\"\",\"\",'1. Ordersheet'!BI211)","v":""},{"$f":"IF('1. Ordersheet'!BJ211=\"\",\"\",'1. Ordersheet'!BJ211)","v":""},{"$f":"IF('1. Ordersheet'!BK211=\"\",\"\",'1. Ordersheet'!BK211)","v":""},{"$f":"IF('1. Ordersheet'!BL211=\"\",\"\",'1. Ordersheet'!BL211)","v":""}]
[{"$f":"IF('1. Ordersheet'!F212=\"\",\"\",'1. Ordersheet'!F212)","v":""},{"$f":"IF('1. Ordersheet'!G212=\"\",\"\",'1. Ordersheet'!G212)","v":""},{"$f":"IF('1. Ordersheet'!H212=\"\",\"\",'1. Ordersheet'!H212)","v":""},{"$f":"IF('1. Ordersheet'!I212=\"\",\"\",'1. Ordersheet'!I212)","v":""},{"$f":"IF('1. Ordersheet'!J212=\"\",\"\",'1. Ordersheet'!J212)","v":""},{"$f":"IF('1. Ordersheet'!K212=\"\",\"\",'1. Ordersheet'!K212)","v":""},{"$f":"IF('1. Ordersheet'!L212=\"\",\"\",'1. Ordersheet'!L212)","v":""},{"$f":"IF('1. Ordersheet'!M212=\"\",\"\",'1. Ordersheet'!M212)","v":""},{"$f":"IF('1. Ordersheet'!N212=\"\",\"\",'1. Ordersheet'!N212)","v":""},{"$f":"IF('1. Ordersheet'!O212=\"\",\"\",'1. Ordersheet'!O212)","v":{"$error":"#N/A"}},{"$f":"IF('1. Ordersheet'!P212=\"\",\"\",'1. Ordersheet'!P212)","v":{"$error":"#N/A"}},{"$f":"IF('1. Ordersheet'!Q212=\"\",\"\",'1. Ordersheet'!Q212)","v":""},{"$f":"IF('1. Ordersheet'!R212=\"\",\"\",'1. Ordersheet'!R212)","v":""},{"$f":"IF('1. Ordersheet'!S212=\"\",\"\",'1. Ordersheet'!S212)","v":""},{"$f":"IF('1. Ordersheet'!V212=\"\",\"\",'1. Ordersheet'!V212)","v":""},{"$f":"IF('1. Ordersheet'!W212=\"\",\"\",'1. Ordersheet'!W212)","v":""},{"$f":"IF('1. Ordersheet'!X212=\"\",\"\",'1. Ordersheet'!X212)","v":""},{"$f":"IF('1. Ordersheet'!Y212=\"\",\"\",'1. Ordersheet'!Y212)","v":""},{"$f":"IF('1. Ordersheet'!Z212=\"\",\"\",'1. Ordersheet'!Z212)","v":""},{"$f":"IF('1. Ordersheet'!AA212=\"\",\"\",'1. Ordersheet'!AA212)","v":""},null,{"$f":"IF('1. Ordersheet'!AS212=\"\",\"\",'1. Ordersheet'!AS212)","v":""},{"$f":"IF('1. Ordersheet'!AT212=\"\",\"\",'1. Ordersheet'!AT212)","v":""},null,null,null,null,null,null,null,{"$f":"IF('1. Ordersheet'!AX212=\"\",\"\",'1. Ordersheet'!AX212)","v":""},{"$f":"IF('1. Ordersheet'!AY212=\"\",\"\",'1. Ordersheet'!AY212)","v":""},{"$f":"IF('1. Ordersheet'!AZ212=\"\",\"\",'1. Ordersheet'!AZ212)","v":""},{"$f":"IF('1. Ordersheet'!BA212=\"\",\"\",'1. Ordersheet'!BA212)","v":""},{"$f":"IF('1. Ordersheet'!BC212=\"\",\"\",'1. Ordersheet'!BC212)","v":""},{"$f":"IF('1. Ordersheet'!BD212=\"\",\"\",'1. Ordersheet'!BD212)","v":""},{"$f":"IF('1. Ordersheet'!BE212=\"\",\"\",'1. Ordersheet'!BE212)","v":""},{"$f":"IF('1. Ordersheet'!BF212=\"\",\"\",'1. Ordersheet'!BF212)","v":""},{"$f":"IF('1. Ordersheet'!BG212=\"\",\"\",'1. Ordersheet'!BG212)","v":"ZWO"},{"$f":"IF('1. Ordersheet'!BH212=\"\",\"\",'1. Ordersheet'!BH212)","v":""},{"$f":"IF('1. Ordersheet'!BI212=\"\",\"\",'1. Ordersheet'!BI212)","v":""},{"$f":"IF('1. Ordersheet'!BJ212=\"\",\"\",'1. Ordersheet'!BJ212)","v":""},{"$f":"IF('1. Ordersheet'!BK212=\"\",\"\",'1. Ordersheet'!BK212)","v":""},{"$f":"IF('1. Ordersheet'!BL212=\"\",\"\",'1. Ordersheet'!BL212)","v":""}]
[{"$f":"IF('1. Ordersheet'!F213=\"\",\"\",'1. Ordersheet'!F213)","v":""},{"$f":"IF('1. Ordersheet'!G213=\"\",\"\",'1. Ordersheet'!G213)","v":""},{"$f":"IF('1. Ordersheet'!H213=\"\",\"\",'1. Ordersheet'!H213)","v":""},{"$f":"IF('1. Ordersheet'!I213=\"\",\"\",'1. Ordersheet'!I213)","v":""},{"$f":"IF('1. Ordersheet'!J213=\"\",\"\",'1. Ordersheet'!J213)","v":""},{"$f":"IF('1. Ordersheet'!K213=\"\",\"\",'1. Ordersheet'!K213)","v":""},{"$f":"IF('1. Ordersheet'!L213=\"\",\"\",'1. Ordersheet'!L213)","v":""},{"$f":"IF('1. Ordersheet'!M213=\"\",\"\",'1. Ordersheet'!M213)","v":""},{"$f":"IF('1. Ordersheet'!N213=\"\",\"\",'1. Ordersheet'!N213)","v":""},{"$f":"IF('1. Ordersheet'!O213=\"\",\"\",'1. Ordersheet'!O213)","v":{"$error":"#N/A"}},{"$f":"IF('1. Ordersheet'!P213=\"\",\"\",'1. Ordersheet'!P213)","v":{"$error":"#N/A"}},{"$f":"IF('1. Ordersheet'!Q213=\"\",\"\",'1. Ordersheet'!Q213)","v":""},{"$f":"IF('1. Ordersheet'!R213=\"\",\"\",'1. Ordersheet'!R213)","v":""},{"$f":"IF('1. Ordersheet'!S213=\"\",\"\",'1. Ordersheet'!S213)","v":""},{"$f":"IF('1. Ordersheet'!V213=\"\",\"\",'1. Ordersheet'!V213)","v":""},{"$f":"IF('1. Ordersheet'!W213=\"\",\"\",'1. Ordersheet'!W213)","v":""},{"$f":"IF('1. Ordersheet'!X213=\"\",\"\",'1. Ordersheet'!X213)","v":""},{"$f":"IF('1. Ordersheet'!Y213=\"\",\"\",'1. Ordersheet'!Y213)","v":""},{"$f":"IF('1. Ordersheet'!Z213=\"\",\"\",'1. Ordersheet'!Z213)","v":""},{"$f":"IF('1. Ordersheet'!AA213=\"\",\"\",'1. Ordersheet'!AA213)","v":""},null,{"$f":"IF('1. Ordersheet'!AS213=\"\",\"\",'1. Ordersheet'!AS213)","v":""},{"$f":"IF('1. Ordersheet'!AT213=\"\",\"\",'1. Ordersheet'!AT213)","v":""},null,null,null,null,null,null,null,{"$f":"IF('1. Ordersheet'!AX213=\"\",\"\",'1. Ordersheet'!AX213)","v":""},{"$f":"IF('1. Ordersheet'!AY213=\"\",\"\",'1. Ordersheet'!AY213)","v":""},{"$f":"IF('1. Ordersheet'!AZ213=\"\",\"\",'1. Ordersheet'!AZ213)","v":""},{"$f":"IF('1. Ordersheet'!BA213=\"\",\"\",'1. Ordersheet'!BA213)","v":""},{"$f":"IF('1. Ordersheet'!BC213=\"\",\"\",'1. Ordersheet'!BC213)","v":""},{"$f":"IF('1. Ordersheet'!BD213=\"\",\"\",'1. Ordersheet'!BD213)","v":""},{"$f":"IF('1. Ordersheet'!BE213=\"\",\"\",'1. Ordersheet'!BE213)","v":""},{"$f":"IF('1. Ordersheet'!BF213=\"\",\"\",'1. Ordersheet'!BF213)","v":""},{"$f":"IF('1. Ordersheet'!BG213=\"\",\"\",'1. Ordersheet'!BG213)","v":"ZWO"},{"$f":"IF('1. Ordersheet'!BH213=\"\",\"\",'1. Ordersheet'!BH213)","v":""},{"$f":"IF('1. Ordersheet'!BI213=\"\",\"\",'1. Ordersheet'!BI213)","v":""},{"$f":"IF('1. Ordersheet'!BJ213=\"\",\"\",'1. Ordersheet'!BJ213)","v":""},{"$f":"IF('1. Ordersheet'!BK213=\"\",\"\",'1. Ordersheet'!BK213)","v":""},{"$f":"IF('1. Ordersheet'!BL213=\"\",\"\",'1. Ordersheet'!BL213)","v":""}]
[{"$f":"IF('1. Ordersheet'!F214=\"\",\"\",'1. Ordersheet'!F214)","v":""},{"$f":"IF('1. Ordersheet'!G214=\"\",\"\",'1. Ordersheet'!G214)","v":""},{"$f":"IF('1. Ordersheet'!H214=\"\",\"\",'1. Ordersheet'!H214)","v":""},{"$f":"IF('1. Ordersheet'!I214=\"\",\"\",'1. Ordersheet'!I214)","v":""},{"$f":"IF('1. Ordersheet'!J214=\"\",\"\",'1. Ordersheet'!J214)","v":""},{"$f":"IF('1. Ordersheet'!K214=\"\",\"\",'1. Ordersheet'!K214)","v":""},{"$f":"IF('1. Ordersheet'!L214=\"\",\"\",'1. Ordersheet'!L214)","v":""},{"$f":"IF('1. Ordersheet'!M214=\"\",\"\",'1. Ordersheet'!M214)","v":""},{"$f":"IF('1. Ordersheet'!N214=\"\",\"\",'1. Ordersheet'!N214)","v":""},{"$f":"IF('1. Ordersheet'!O214=\"\",\"\",'1. Ordersheet'!O214)","v":{"$error":"#N/A"}},{"$f":"IF('1. Ordersheet'!P214=\"\",\"\",'1. Ordersheet'!P214)","v":{"$error":"#N/A"}},{"$f":"IF('1. Ordersheet'!Q214=\"\",\"\",'1. Ordersheet'!Q214)","v":""},{"$f":"IF('1. Ordersheet'!R214=\"\",\"\",'1. Ordersheet'!R214)","v":""},{"$f":"IF('1. Ordersheet'!S214=\"\",\"\",'1. Ordersheet'!S214)","v":""},{"$f":"IF('1. Ordersheet'!V214=\"\",\"\",'1. Ordersheet'!V214)","v":""},{"$f":"IF('1. Ordersheet'!W214=\"\",\"\",'1. Ordersheet'!W214)","v":""},{"$f":"IF('1. Ordersheet'!X214=\"\",\"\",'1. Ordersheet'!X214)","v":""},{"$f":"IF('1. Ordersheet'!Y214=\"\",\"\",'1. Ordersheet'!Y214)","v":""},{"$f":"IF('1. Ordersheet'!Z214=\"\",\"\",'1. Ordersheet'!Z214)","v":""},{"$f":"IF('1. Ordersheet'!AA214=\"\",\"\",'1. Ordersheet'!AA214)","v":""},null,{"$f":"IF('1. Ordersheet'!AS214=\"\",\"\",'1. Ordersheet'!AS214)","v":""},{"$f":"IF('1. Ordersheet'!AT214=\"\",\"\",'1. Ordersheet'!AT214)","v":""},null,null,null,null,null,null,null,{"$f":"IF('1. Ordersheet'!AX214=\"\",\"\",'1. Ordersheet'!AX214)","v":""},{"$f":"IF('1. Ordersheet'!AY214=\"\",\"\",'1. Ordersheet'!AY214)","v":""},{"$f":"IF('1. Ordersheet'!AZ214=\"\",\"\",'1. Ordersheet'!AZ214)","v":""},{"$f":"IF('1. Ordersheet'!BA214=\"\",\"\",'1. Ordersheet'!BA214)","v":""},{"$f":"IF('1. Ordersheet'!BC214=\"\",\"\",'1. Ordersheet'!BC214)","v":""},{"$f":"IF('1. Ordersheet'!BD214=\"\",\"\",'1. Ordersheet'!BD214)","v":""},{"$f":"IF('1. Ordersheet'!BE214=\"\",\"\",'1. Ordersheet'!BE214)","v":""},{"$f":"IF('1. Ordersheet'!BF214=\"\",\"\",'1. Ordersheet'!BF214)","v":""},{"$f":"IF('1. Ordersheet'!BG214=\"\",\"\",'1. Ordersheet'!BG214)","v":"ZWO"},{"$f":"IF('1. Ordersheet'!BH214=\"\",\"\",'1. Ordersheet'!BH214)","v":""},{"$f":"IF('1. Ordersheet'!BI214=\"\",\"\",'1. Ordersheet'!BI214)","v":""},{"$f":"IF('1. Ordersheet'!BJ214=\"\",\"\",'1. Ordersheet'!BJ214)","v":""},{"$f":"IF('1. Ordersheet'!BK214=\"\",\"\",'1. Ordersheet'!BK214)","v":""},{"$f":"IF('1. Ordersheet'!BL214=\"\",\"\",'1. Ordersheet'!BL214)","v":""}]
[{"$f":"IF('1. Ordersheet'!F215=\"\",\"\",'1. Ordersheet'!F215)","v":""},{"$f":"IF('1. Ordersheet'!G215=\"\",\"\",'1. Ordersheet'!G215)","v":""},{"$f":"IF('1. Ordersheet'!H215=\"\",\"\",'1. Ordersheet'!H215)","v":""},{"$f":"IF('1. Ordersheet'!I215=\"\",\"\",'1. Ordersheet'!I215)","v":""},{"$f":"IF('1. Ordersheet'!J215=\"\",\"\",'1. Ordersheet'!J215)","v":""},{"$f":"IF('1. Ordersheet'!K215=\"\",\"\",'1. Ordersheet'!K215)","v":""},{"$f":"IF('1. Ordersheet'!L215=\"\",\"\",'1. Ordersheet'!L215)","v":""},{"$f":"IF('1. Ordersheet'!M215=\"\",\"\",'1. Ordersheet'!M215)","v":""},{"$f":"IF('1. Ordersheet'!N215=\"\",\"\",'1. Ordersheet'!N215)","v":""},{"$f":"IF('1. Ordersheet'!O215=\"\",\"\",'1. Ordersheet'!O215)","v":{"$error":"#N/A"}},{"$f":"IF('1. Ordersheet'!P215=\"\",\"\",'1. Ordersheet'!P215)","v":{"$error":"#N/A"}},{"$f":"IF('1. Ordersheet'!Q215=\"\",\"\",'1. Ordersheet'!Q215)","v":""},{"$f":"IF('1. Ordersheet'!R215=\"\",\"\",'1. Ordersheet'!R215)","v":""},{"$f":"IF('1. Ordersheet'!S215=\"\",\"\",'1. Ordersheet'!S215)","v":""},{"$f":"IF('1. Ordersheet'!V215=\"\",\"\",'1. Ordersheet'!V215)","v":""},{"$f":"IF('1. Ordersheet'!W215=\"\",\"\",'1. Ordersheet'!W215)","v":""},{"$f":"IF('1. Ordersheet'!X215=\"\",\"\",'1. Ordersheet'!X215)","v":""},{"$f":"IF('1. Ordersheet'!Y215=\"\",\"\",'1. Ordersheet'!Y215)","v":""},{"$f":"IF('1. Ordersheet'!Z215=\"\",\"\",'1. Ordersheet'!Z215)","v":""},{"$f":"IF('1. Ordersheet'!AA215=\"\",\"\",'1. Ordersheet'!AA215)","v":""},null,{"$f":"IF('1. Ordersheet'!AS215=\"\",\"\",'1. Ordersheet'!AS215)","v":""},{"$f":"IF('1. Ordersheet'!AT215=\"\",\"\",'1. Ordersheet'!AT215)","v":""},null,null,null,null,null,null,null,{"$f":"IF('1. Ordersheet'!AX215=\"\",\"\",'1. Ordersheet'!AX215)","v":""},{"$f":"IF('1. Ordersheet'!AY215=\"\",\"\",'1. Ordersheet'!AY215)","v":""},{"$f":"IF('1. Ordersheet'!AZ215=\"\",\"\",'1. Ordersheet'!AZ215)","v":""},{"$f":"IF('1. Ordersheet'!BA215=\"\",\"\",'1. Ordersheet'!BA215)","v":""},{"$f":"IF('1. Ordersheet'!BC215=\"\",\"\",'1. Ordersheet'!BC215)","v":""},{"$f":"IF('1. Ordersheet'!BD215=\"\",\"\",'1. Ordersheet'!BD215)","v":""},{"$f":"IF('1. Ordersheet'!BE215=\"\",\"\",'1. Ordersheet'!BE215)","v":""},{"$f":"IF('1. Ordersheet'!BF215=\"\",\"\",'1. Ordersheet'!BF215)","v":""},{"$f":"IF('1. Ordersheet'!BG215=\"\",\"\",'1. Ordersheet'!BG215)","v":"ZWO"},{"$f":"IF('1. Ordersheet'!BH215=\"\",\"\",'1. Ordersheet'!BH215)","v":""},{"$f":"IF('1. Ordersheet'!BI215=\"\",\"\",'1. Ordersheet'!BI215)","v":""},{"$f":"IF('1. Ordersheet'!BJ215=\"\",\"\",'1. Ordersheet'!BJ215)","v":""},{"$f":"IF('1. Ordersheet'!BK215=\"\",\"\",'1. Ordersheet'!BK215)","v":""},{"$f":"IF('1. Ordersheet'!BL215=\"\",\"\",'1. Ordersheet'!BL215)","v":""}]
[{"$f":"IF('1. Ordersheet'!F216=\"\",\"\",'1. Ordersheet'!F216)","v":""},{"$f":"IF('1. Ordersheet'!G216=\"\",\"\",'1. Ordersheet'!G216)","v":""},{"$f":"IF('1. Ordersheet'!H216=\"\",\"\",'1. Ordersheet'!H216)","v":""},{"$f":"IF('1. Ordersheet'!I216=\"\",\"\",'1. Ordersheet'!I216)","v":""},{"$f":"IF('1. Ordersheet'!J216=\"\",\"\",'1. Ordersheet'!J216)","v":""},{"$f":"IF('1. Ordersheet'!K216=\"\",\"\",'1. Ordersheet'!K216)","v":""},{"$f":"IF('1. Ordersheet'!L216=\"\",\"\",'1. Ordersheet'!L216)","v":""},{"$f":"IF('1. Ordersheet'!M216=\"\",\"\",'1. Ordersheet'!M216)","v":""},{"$f":"IF('1. Ordersheet'!N216=\"\",\"\",'1. Ordersheet'!N216)","v":""},{"$f":"IF('1. Ordersheet'!O216=\"\",\"\",'1. Ordersheet'!O216)","v":{"$error":"#N/A"}},{"$f":"IF('1. Ordersheet'!P216=\"\",\"\",'1. Ordersheet'!P216)","v":{"$error":"#N/A"}},{"$f":"IF('1. Ordersheet'!Q216=\"\",\"\",'1. Ordersheet'!Q216)","v":""},{"$f":"IF('1. Ordersheet'!R216=\"\",\"\",'1. Ordersheet'!R216)","v":""},{"$f":"IF('1. Ordersheet'!S216=\"\",\"\",'1. Ordersheet'!S216)","v":""},{"$f":"IF('1. Ordersheet'!V216=\"\",\"\",'1. Ordersheet'!V216)","v":""},{"$f":"IF('1. Ordersheet'!W216=\"\",\"\",'1. Ordersheet'!W216)","v":""},{"$f":"IF('1. Ordersheet'!X216=\"\",\"\",'1. Ordersheet'!X216)","v":""},{"$f":"IF('1. Ordersheet'!Y216=\"\",\"\",'1. Ordersheet'!Y216)","v":""},{"$f":"IF('1. Ordersheet'!Z216=\"\",\"\",'1. Ordersheet'!Z216)","v":""},{"$f":"IF('1. Ordersheet'!AA216=\"\",\"\",'1. Ordersheet'!AA216)","v":""},null,{"$f":"IF('1. Ordersheet'!AS216=\"\",\"\",'1. Ordersheet'!AS216)","v":""},{"$f":"IF('1. Ordersheet'!AT216=\"\",\"\",'1. Ordersheet'!AT216)","v":""},null,null,null,null,null,null,null,{"$f":"IF('1. Ordersheet'!AX216=\"\",\"\",'1. Ordersheet'!AX216)","v":""},{"$f":"IF('1. Ordersheet'!AY216=\"\",\"\",'1. Ordersheet'!AY216)","v":""},{"$f":"IF('1. Ordersheet'!AZ216=\"\",\"\",'1. Ordersheet'!AZ216)","v":""},{"$f":"IF('1. Ordersheet'!BA216=\"\",\"\",'1. Ordersheet'!BA216)","v":""},{"$f":"IF('1. Ordersheet'!BC216=\"\",\"\",'1. Ordersheet'!BC216)","v":""},{"$f":"IF('1. Ordersheet'!BD216=\"\",\"\",'1. Ordersheet'!BD216)","v":""},{"$f":"IF('1. Ordersheet'!BE216=\"\",\"\",'1. Ordersheet'!BE216)","v":""},{"$f":"IF('1. Ordersheet'!BF216=\"\",\"\",'1. Ordersheet'!BF216)","v":""},{"$f":"IF('1. Ordersheet'!BG216=\"\",\"\",'1. Ordersheet'!BG216)","v":"ZWO"},{"$f":"IF('1. Ordersheet'!BH216=\"\",\"\",'1. Ordersheet'!BH216)","v":""},{"$f":"IF('1. Ordersheet'!BI216=\"\",\"\",'1. Ordersheet'!BI216)","v":""},{"$f":"IF('1. Ordersheet'!BJ216=\"\",\"\",'1. Ordersheet'!BJ216)","v":""},{"$f":"IF('1. Ordersheet'!BK216=\"\",\"\",'1. Ordersheet'!BK216)","v":""},{"$f":"IF('1. Ordersheet'!BL216=\"\",\"\",'1. Ordersheet'!BL216)","v":""}]
[{"$f":"IF('1. Ordersheet'!F217=\"\",\"\",'1. Ordersheet'!F217)","v":""},{"$f":"IF('1. Ordersheet'!G217=\"\",\"\",'1. Ordersheet'!G217)","v":""},{"$f":"IF('1. Ordersheet'!H217=\"\",\"\",'1. Ordersheet'!H217)","v":""},{"$f":"IF('1. Ordersheet'!I217=\"\",\"\",'1. Ordersheet'!I217)","v":""},{"$f":"IF('1. Ordersheet'!J217=\"\",\"\",'1. Ordersheet'!J217)","v":""},{"$f":"IF('1. Ordersheet'!K217=\"\",\"\",'1. Ordersheet'!K217)","v":""},{"$f":"IF('1. Ordersheet'!L217=\"\",\"\",'1. Ordersheet'!L217)","v":""},{"$f":"IF('1. Ordersheet'!M217=\"\",\"\",'1. Ordersheet'!M217)","v":""},{"$f":"IF('1. Ordersheet'!N217=\"\",\"\",'1. Ordersheet'!N217)","v":""},{"$f":"IF('1. Ordersheet'!O217=\"\",\"\",'1. Ordersheet'!O217)","v":{"$error":"#N/A"}},{"$f":"IF('1. Ordersheet'!P217=\"\",\"\",'1. Ordersheet'!P217)","v":{"$error":"#N/A"}},{"$f":"IF('1. Ordersheet'!Q217=\"\",\"\",'1. Ordersheet'!Q217)","v":""},{"$f":"IF('1. Ordersheet'!R217=\"\",\"\",'1. Ordersheet'!R217)","v":""},{"$f":"IF('1. Ordersheet'!S217=\"\",\"\",'1. Ordersheet'!S217)","v":""},{"$f":"IF('1. Ordersheet'!V217=\"\",\"\",'1. Ordersheet'!V217)","v":""},{"$f":"IF('1. Ordersheet'!W217=\"\",\"\",'1. Ordersheet'!W217)","v":""},{"$f":"IF('1. Ordersheet'!X217=\"\",\"\",'1. Ordersheet'!X217)","v":""},{"$f":"IF('1. Ordersheet'!Y217=\"\",\"\",'1. Ordersheet'!Y217)","v":""},{"$f":"IF('1. Ordersheet'!Z217=\"\",\"\",'1. Ordersheet'!Z217)","v":""},{"$f":"IF('1. Ordersheet'!AA217=\"\",\"\",'1. Ordersheet'!AA217)","v":""},null,{"$f":"IF('1. Ordersheet'!AS217=\"\",\"\",'1. Ordersheet'!AS217)","v":""},{"$f":"IF('1. Ordersheet'!AT217=\"\",\"\",'1. Ordersheet'!AT217)","v":""},null,null,null,null,null,null,null,{"$f":"IF('1. Ordersheet'!AX217=\"\",\"\",'1. Ordersheet'!AX217)","v":""},{"$f":"IF('1. Ordersheet'!AY217=\"\",\"\",'1. Ordersheet'!AY217)","v":""},{"$f":"IF('1. Ordersheet'!AZ217=\"\",\"\",'1. Ordersheet'!AZ217)","v":""},{"$f":"IF('1. Ordersheet'!BA217=\"\",\"\",'1. Ordersheet'!BA217)","v":""},{"$f":"IF('1. Ordersheet'!BC217=\"\",\"\",'1. Ordersheet'!BC217)","v":""},{"$f":"IF('1. Ordersheet'!BD217=\"\",\"\",'1. Ordersheet'!BD217)","v":""},{"$f":"IF('1. Ordersheet'!BE217=\"\",\"\",'1. Ordersheet'!BE217)","v":""},{"$f":"IF('1. Ordersheet'!BF217=\"\",\"\",'1. Ordersheet'!BF217)","v":""},{"$f":"IF('1. Ordersheet'!BG217=\"\",\"\",'1. Ordersheet'!BG217)","v":"ZWO"},{"$f":"IF('1. Ordersheet'!BH217=\"\",\"\",'1. Ordersheet'!BH217)","v":""},{"$f":"IF('1. Ordersheet'!BI217=\"\",\"\",'1. Ordersheet'!BI217)","v":""},{"$f":"IF('1. Ordersheet'!BJ217=\"\",\"\",'1. Ordersheet'!BJ217)","v":""},{"$f":"IF('1. Ordersheet'!BK217=\"\",\"\",'1. Ordersheet'!BK217)","v":""},{"$f":"IF('1. Ordersheet'!BL217=\"\",\"\",'1. Ordersheet'!BL217)","v":""}]
[{"$f":"IF('1. Ordersheet'!F218=\"\",\"\",'1. Ordersheet'!F218)","v":""},{"$f":"IF('1. Ordersheet'!G218=\"\",\"\",'1. Ordersheet'!G218)","v":""},{"$f":"IF('1. Ordersheet'!H218=\"\",\"\",'1. Ordersheet'!H218)","v":""},{"$f":"IF('1. Ordersheet'!I218=\"\",\"\",'1. Ordersheet'!I218)","v":""},{"$f":"IF('1. Ordersheet'!J218=\"\",\"\",'1. Ordersheet'!J218)","v":""},{"$f":"IF('1. Ordersheet'!K218=\"\",\"\",'1. Ordersheet'!K218)","v":""},{"$f":"IF('1. Ordersheet'!L218=\"\",\"\",'1. Ordersheet'!L218)","v":""},{"$f":"IF('1. Ordersheet'!M218=\"\",\"\",'1. Ordersheet'!M218)","v":""},{"$f":"IF('1. Ordersheet'!N218=\"\",\"\",'1. Ordersheet'!N218)","v":""},{"$f":"IF('1. Ordersheet'!O218=\"\",\"\",'1. Ordersheet'!O218)","v":{"$error":"#N/A"}},{"$f":"IF('1. Ordersheet'!P218=\"\",\"\",'1. Ordersheet'!P218)","v":{"$error":"#N/A"}},{"$f":"IF('1. Ordersheet'!Q218=\"\",\"\",'1. Ordersheet'!Q218)","v":""},{"$f":"IF('1. Ordersheet'!R218=\"\",\"\",'1. Ordersheet'!R218)","v":""},{"$f":"IF('1. Ordersheet'!S218=\"\",\"\",'1. Ordersheet'!S218)","v":""},{"$f":"IF('1. Ordersheet'!V218=\"\",\"\",'1. Ordersheet'!V218)","v":""},{"$f":"IF('1. Ordersheet'!W218=\"\",\"\",'1. Ordersheet'!W218)","v":""},{"$f":"IF('1. Ordersheet'!X218=\"\",\"\",'1. Ordersheet'!X218)","v":""},{"$f":"IF('1. Ordersheet'!Y218=\"\",\"\",'1. Ordersheet'!Y218)","v":""},{"$f":"IF('1. Ordersheet'!Z218=\"\",\"\",'1. Ordersheet'!Z218)","v":""},{"$f":"IF('1. Ordersheet'!AA218=\"\",\"\",'1. Ordersheet'!AA218)","v":""},null,{"$f":"IF('1. Ordersheet'!AS218=\"\",\"\",'1. Ordersheet'!AS218)","v":""},{"$f":"IF('1. Ordersheet'!AT218=\"\",\"\",'1. Ordersheet'!AT218)","v":""},null,null,null,null,null,null,null,{"$f":"IF('1. Ordersheet'!AX218=\"\",\"\",'1. Ordersheet'!AX218)","v":""},{"$f":"IF('1. Ordersheet'!AY218=\"\",\"\",'1. Ordersheet'!AY218)","v":""},{"$f":"IF('1. Ordersheet'!AZ218=\"\",\"\",'1. Ordersheet'!AZ218)","v":""},{"$f":"IF('1. Ordersheet'!BA218=\"\",\"\",'1. Ordersheet'!BA218)","v":""},{"$f":"IF('1. Ordersheet'!BC218=\"\",\"\",'1. Ordersheet'!BC218)","v":""},{"$f":"IF('1. Ordersheet'!BD218=\"\",\"\",'1. Ordersheet'!BD218)","v":""},{"$f":"IF('1. Ordersheet'!BE218=\"\",\"\",'1. Ordersheet'!BE218)","v":""},{"$f":"IF('1. Ordersheet'!BF218=\"\",\"\",'1. Ordersheet'!BF218)","v":""},{"$f":"IF('1. Ordersheet'!BG218=\"\",\"\",'1. Ordersheet'!BG218)","v":"ZWO"},{"$f":"IF('1. Ordersheet'!BH218=\"\",\"\",'1. Ordersheet'!BH218)","v":""},{"$f":"IF('1. Ordersheet'!BI218=\"\",\"\",'1. Ordersheet'!BI218)","v":""},{"$f":"IF('1. Ordersheet'!BJ218=\"\",\"\",'1. Ordersheet'!BJ218)","v":""},{"$f":"IF('1. Ordersheet'!BK218=\"\",\"\",'1. Ordersheet'!BK218)","v":""},{"$f":"IF('1. Ordersheet'!BL218=\"\",\"\",'1. Ordersheet'!BL218)","v":""}]
[{"$f":"IF('1. Ordersheet'!F219=\"\",\"\",'1. Ordersheet'!F219)","v":""},{"$f":"IF('1. Ordersheet'!G219=\"\",\"\",'1. Ordersheet'!G219)","v":""},{"$f":"IF('1. Ordersheet'!H219=\"\",\"\",'1. Ordersheet'!H219)","v":""},{"$f":"IF('1. Ordersheet'!I219=\"\",\"\",'1. Ordersheet'!I219)","v":""},{"$f":"IF('1. Ordersheet'!J219=\"\",\"\",'1. Ordersheet'!J219)","v":""},{"$f":"IF('1. Ordersheet'!K219=\"\",\"\",'1. Ordersheet'!K219)","v":""},{"$f":"IF('1. Ordersheet'!L219=\"\",\"\",'1. Ordersheet'!L219)","v":""},{"$f":"IF('1. Ordersheet'!M219=\"\",\"\",'1. Ordersheet'!M219)","v":""},{"$f":"IF('1. Ordersheet'!N219=\"\",\"\",'1. Ordersheet'!N219)","v":""},{"$f":"IF('1. Ordersheet'!O219=\"\",\"\",'1. Ordersheet'!O219)","v":{"$error":"#N/A"}},{"$f":"IF('1. Ordersheet'!P219=\"\",\"\",'1. Ordersheet'!P219)","v":{"$error":"#N/A"}},{"$f":"IF('1. Ordersheet'!Q219=\"\",\"\",'1. Ordersheet'!Q219)","v":""},{"$f":"IF('1. Ordersheet'!R219=\"\",\"\",'1. Ordersheet'!R219)","v":""},{"$f":"IF('1. Ordersheet'!S219=\"\",\"\",'1. Ordersheet'!S219)","v":""},{"$f":"IF('1. Ordersheet'!V219=\"\",\"\",'1. Ordersheet'!V219)","v":""},{"$f":"IF('1. Ordersheet'!W219=\"\",\"\",'1. Ordersheet'!W219)","v":""},{"$f":"IF('1. Ordersheet'!X219=\"\",\"\",'1. Ordersheet'!X219)","v":""},{"$f":"IF('1. Ordersheet'!Y219=\"\",\"\",'1. Ordersheet'!Y219)","v":""},{"$f":"IF('1. Ordersheet'!Z219=\"\",\"\",'1. Ordersheet'!Z219)","v":""},{"$f":"IF('1. Ordersheet'!AA219=\"\",\"\",'1. Ordersheet'!AA219)","v":""},null,{"$f":"IF('1. Ordersheet'!AS219=\"\",\"\",'1. Ordersheet'!AS219)","v":""},{"$f":"IF('1. Ordersheet'!AT219=\"\",\"\",'1. Ordersheet'!AT219)","v":""},null,null,null,null,null,null,null,{"$f":"IF('1. Ordersheet'!AX219=\"\",\"\",'1. Ordersheet'!AX219)","v":""},{"$f":"IF('1. Ordersheet'!AY219=\"\",\"\",'1. Ordersheet'!AY219)","v":""},{"$f":"IF('1. Ordersheet'!AZ219=\"\",\"\",'1. Ordersheet'!AZ219)","v":""},{"$f":"IF('1. Ordersheet'!BA219=\"\",\"\",'1. Ordersheet'!BA219)","v":""},{"$f":"IF('1. Ordersheet'!BC219=\"\",\"\",'1. Ordersheet'!BC219)","v":""},{"$f":"IF('1. Ordersheet'!BD219=\"\",\"\",'1. Ordersheet'!BD219)","v":""},{"$f":"IF('1. Ordersheet'!BE219=\"\",\"\",'1. Ordersheet'!BE219)","v":""},{"$f":"IF('1. Ordersheet'!BF219=\"\",\"\",'1. Ordersheet'!BF219)","v":""},{"$f":"IF('1. Ordersheet'!BG219=\"\",\"\",'1. Ordersheet'!BG219)","v":"ZWO"},{"$f":"IF('1. Ordersheet'!BH219=\"\",\"\",'1. Ordersheet'!BH219)","v":""},{"$f":"IF('1. Ordersheet'!BI219=\"\",\"\",'1. Ordersheet'!BI219)","v":""},{"$f":"IF('1. Ordersheet'!BJ219=\"\",\"\",'1. Ordersheet'!BJ219)","v":""},{"$f":"IF('1. Ordersheet'!BK219=\"\",\"\",'1. Ordersheet'!BK219)","v":""},{"$f":"IF('1. Ordersheet'!BL219=\"\",\"\",'1. Ordersheet'!BL219)","v":""}]
[{"$f":"IF('1. Ordersheet'!F220=\"\",\"\",'1. Ordersheet'!F220)","v":""},{"$f":"IF('1. Ordersheet'!G220=\"\",\"\",'1. Ordersheet'!G220)","v":""},{"$f":"IF('1. Ordersheet'!H220=\"\",\"\",'1. Ordersheet'!H220)","v":""},{"$f":"IF('1. Ordersheet'!I220=\"\",\"\",'1. Ordersheet'!I220)","v":""},{"$f":"IF('1. Ordersheet'!J220=\"\",\"\",'1. Ordersheet'!J220)","v":""},{"$f":"IF('1. Ordersheet'!K220=\"\",\"\",'1. Ordersheet'!K220)","v":""},{"$f":"IF('1. Ordersheet'!L220=\"\",\"\",'1. Ordersheet'!L220)","v":""},{"$f":"IF('1. Ordersheet'!M220=\"\",\"\",'1. Ordersheet'!M220)","v":""},{"$f":"IF('1. Ordersheet'!N220=\"\",\"\",'1. Ordersheet'!N220)","v":""},{"$f":"IF('1. Ordersheet'!O220=\"\",\"\",'1. Ordersheet'!O220)","v":{"$error":"#N/A"}},{"$f":"IF('1. Ordersheet'!P220=\"\",\"\",'1. Ordersheet'!P220)","v":{"$error":"#N/A"}},{"$f":"IF('1. Ordersheet'!Q220=\"\",\"\",'1. Ordersheet'!Q220)","v":""},{"$f":"IF('1. Ordersheet'!R220=\"\",\"\",'1. Ordersheet'!R220)","v":""},{"$f":"IF('1. Ordersheet'!S220=\"\",\"\",'1. Ordersheet'!S220)","v":""},{"$f":"IF('1. Ordersheet'!V220=\"\",\"\",'1. Ordersheet'!V220)","v":""},{"$f":"IF('1. Ordersheet'!W220=\"\",\"\",'1. Ordersheet'!W220)","v":""},{"$f":"IF('1. Ordersheet'!X220=\"\",\"\",'1. Ordersheet'!X220)","v":""},{"$f":"IF('1. Ordersheet'!Y220=\"\",\"\",'1. Ordersheet'!Y220)","v":""},{"$f":"IF('1. Ordersheet'!Z220=\"\",\"\",'1. Ordersheet'!Z220)","v":""},{"$f":"IF('1. Ordersheet'!AA220=\"\",\"\",'1. Ordersheet'!AA220)","v":""},null,{"$f":"IF('1. Ordersheet'!AS220=\"\",\"\",'1. Ordersheet'!AS220)","v":""},{"$f":"IF('1. Ordersheet'!AT220=\"\",\"\",'1. Ordersheet'!AT220)","v":""},null,null,null,null,null,null,null,{"$f":"IF('1. Ordersheet'!AX220=\"\",\"\",'1. Ordersheet'!AX220)","v":""},{"$f":"IF('1. Ordersheet'!AY220=\"\",\"\",'1. Ordersheet'!AY220)","v":""},{"$f":"IF('1. Ordersheet'!AZ220=\"\",\"\",'1. Ordersheet'!AZ220)","v":""},{"$f":"IF('1. Ordersheet'!BA220=\"\",\"\",'1. Ordersheet'!BA220)","v":""},{"$f":"IF('1. Ordersheet'!BC220=\"\",\"\",'1. Ordersheet'!BC220)","v":""},{"$f":"IF('1. Ordersheet'!BD220=\"\",\"\",'1. Ordersheet'!BD220)","v":""},{"$f":"IF('1. Ordersheet'!BE220=\"\",\"\",'1. Ordersheet'!BE220)","v":""},{"$f":"IF('1. Ordersheet'!BF220=\"\",\"\",'1. Ordersheet'!BF220)","v":""},{"$f":"IF('1. Ordersheet'!BG220=\"\",\"\",'1. Ordersheet'!BG220)","v":"ZWO"},{"$f":"IF('1. Ordersheet'!BH220=\"\",\"\",'1. Ordersheet'!BH220)","v":""},{"$f":"IF('1. Ordersheet'!BI220=\"\",\"\",'1. Ordersheet'!BI220)","v":""},{"$f":"IF('1. Ordersheet'!BJ220=\"\",\"\",'1. Ordersheet'!BJ220)","v":""},{"$f":"IF('1. Ordersheet'!BK220=\"\",\"\",'1. Ordersheet'!BK220)","v":""},{"$f":"IF('1. Ordersheet'!BL220=\"\",\"\",'1. Ordersheet'!BL220)","v":""}]
[{"$f":"IF('1. Ordersheet'!F221=\"\",\"\",'1. Ordersheet'!F221)","v":""},{"$f":"IF('1. Ordersheet'!G221=\"\",\"\",'1. Ordersheet'!G221)","v":""},{"$f":"IF('1. Ordersheet'!H221=\"\",\"\",'1. Ordersheet'!H221)","v":""},{"$f":"IF('1. Ordersheet'!I221=\"\",\"\",'1. Ordersheet'!I221)","v":""},{"$f":"IF('1. Ordersheet'!J221=\"\",\"\",'1. Ordersheet'!J221)","v":""},{"$f":"IF('1. Ordersheet'!K221=\"\",\"\",'1. Ordersheet'!K221)","v":""},{"$f":"IF('1. Ordersheet'!L221=\"\",\"\",'1. Ordersheet'!L221)","v":""},{"$f":"IF('1. Ordersheet'!M221=\"\",\"\",'1. Ordersheet'!M221)","v":""},{"$f":"IF('1. Ordersheet'!N221=\"\",\"\",'1. Ordersheet'!N221)","v":""},{"$f":"IF('1. Ordersheet'!O221=\"\",\"\",'1. Ordersheet'!O221)","v":{"$error":"#N/A"}},{"$f":"IF('1. Ordersheet'!P221=\"\",\"\",'1. Ordersheet'!P221)","v":{"$error":"#N/A"}},{"$f":"IF('1. Ordersheet'!Q221=\"\",\"\",'1. Ordersheet'!Q221)","v":""},{"$f":"IF('1. Ordersheet'!R221=\"\",\"\",'1. Ordersheet'!R221)","v":""},{"$f":"IF('1. Ordersheet'!S221=\"\",\"\",'1. Ordersheet'!S221)","v":""},{"$f":"IF('1. Ordersheet'!V221=\"\",\"\",'1. Ordersheet'!V221)","v":""},{"$f":"IF('1. Ordersheet'!W221=\"\",\"\",'1. Ordersheet'!W221)","v":""},{"$f":"IF('1. Ordersheet'!X221=\"\",\"\",'1. Ordersheet'!X221)","v":""},{"$f":"IF('1. Ordersheet'!Y221=\"\",\"\",'1. Ordersheet'!Y221)","v":""},{"$f":"IF('1. Ordersheet'!Z221=\"\",\"\",'1. Ordersheet'!Z221)","v":""},{"$f":"IF('1. Ordersheet'!AA221=\"\",\"\",'1. Ordersheet'!AA221)","v":""},null,{"$f":"IF('1. Ordersheet'!AS221=\"\",\"\",'1. Ordersheet'!AS221)","v":""},{"$f":"IF('1. Ordersheet'!AT221=\"\",\"\",'1. Ordersheet'!AT221)","v":""},null,null,null,null,null,null,null,{"$f":"IF('1. Ordersheet'!AX221=\"\",\"\",'1. Ordersheet'!AX221)","v":""},{"$f":"IF('1. Ordersheet'!AY221=\"\",\"\",'1. Ordersheet'!AY221)","v":""},{"$f":"IF('1. Ordersheet'!AZ221=\"\",\"\",'1. Ordersheet'!AZ221)","v":""},{"$f":"IF('1. Ordersheet'!BA221=\"\",\"\",'1. Ordersheet'!BA221)","v":""},{"$f":"IF('1. Ordersheet'!BC221=\"\",\"\",'1. Ordersheet'!BC221)","v":""},{"$f":"IF('1. Ordersheet'!BD221=\"\",\"\",'1. Ordersheet'!BD221)","v":""},{"$f":"IF('1. Ordersheet'!BE221=\"\",\"\",'1. Ordersheet'!BE221)","v":""},{"$f":"IF('1. Ordersheet'!BF221=\"\",\"\",'1. Ordersheet'!BF221)","v":""},{"$f":"IF('1. Ordersheet'!BG221=\"\",\"\",'1. Ordersheet'!BG221)","v":"ZWO"},{"$f":"IF('1. Ordersheet'!BH221=\"\",\"\",'1. Ordersheet'!BH221)","v":""},{"$f":"IF('1. Ordersheet'!BI221=\"\",\"\",'1. Ordersheet'!BI221)","v":""},{"$f":"IF('1. Ordersheet'!BJ221=\"\",\"\",'1. Ordersheet'!BJ221)","v":""},{"$f":"IF('1. Ordersheet'!BK221=\"\",\"\",'1. Ordersheet'!BK221)","v":""},{"$f":"IF('1. Ordersheet'!BL221=\"\",\"\",'1. Ordersheet'!BL221)","v":""}]
[{"$f":"IF('1. Ordersheet'!F222=\"\",\"\",'1. Ordersheet'!F222)","v":""},{"$f":"IF('1. Ordersheet'!G222=\"\",\"\",'1. Ordersheet'!G222)","v":""},{"$f":"IF('1. Ordersheet'!H222=\"\",\"\",'1. Ordersheet'!H222)","v":""},{"$f":"IF('1. Ordersheet'!I222=\"\",\"\",'1. Ordersheet'!I222)","v":""},{"$f":"IF('1. Ordersheet'!J222=\"\",\"\",'1. Ordersheet'!J222)","v":""},{"$f":"IF('1. Ordersheet'!K222=\"\",\"\",'1. Ordersheet'!K222)","v":""},{"$f":"IF('1. Ordersheet'!L222=\"\",\"\",'1. Ordersheet'!L222)","v":""},{"$f":"IF('1. Ordersheet'!M222=\"\",\"\",'1. Ordersheet'!M222)","v":""},{"$f":"IF('1. Ordersheet'!N222=\"\",\"\",'1. Ordersheet'!N222)","v":""},{"$f":"IF('1. Ordersheet'!O222=\"\",\"\",'1. Ordersheet'!O222)","v":{"$error":"#N/A"}},{"$f":"IF('1. Ordersheet'!P222=\"\",\"\",'1. Ordersheet'!P222)","v":{"$error":"#N/A"}},{"$f":"IF('1. Ordersheet'!Q222=\"\",\"\",'1. Ordersheet'!Q222)","v":""},{"$f":"IF('1. Ordersheet'!R222=\"\",\"\",'1. Ordersheet'!R222)","v":""},{"$f":"IF('1. Ordersheet'!S222=\"\",\"\",'1. Ordersheet'!S222)","v":""},{"$f":"IF('1. Ordersheet'!V222=\"\",\"\",'1. Ordersheet'!V222)","v":""},{"$f":"IF('1. Ordersheet'!W222=\"\",\"\",'1. Ordersheet'!W222)","v":""},{"$f":"IF('1. Ordersheet'!X222=\"\",\"\",'1. Ordersheet'!X222)","v":""},{"$f":"IF('1. Ordersheet'!Y222=\"\",\"\",'1. Ordersheet'!Y222)","v":""},{"$f":"IF('1. Ordersheet'!Z222=\"\",\"\",'1. Ordersheet'!Z222)","v":""},{"$f":"IF('1. Ordersheet'!AA222=\"\",\"\",'1. Ordersheet'!AA222)","v":""},null,{"$f":"IF('1. Ordersheet'!AS222=\"\",\"\",'1. Ordersheet'!AS222)","v":""},{"$f":"IF('1. Ordersheet'!AT222=\"\",\"\",'1. Ordersheet'!AT222)","v":""},null,null,null,null,null,null,null,{"$f":"IF('1. Ordersheet'!AX222=\"\",\"\",'1. Ordersheet'!AX222)","v":""},{"$f":"IF('1. Ordersheet'!AY222=\"\",\"\",'1. Ordersheet'!AY222)","v":""},{"$f":"IF('1. Ordersheet'!AZ222=\"\",\"\",'1. Ordersheet'!AZ222)","v":""},{"$f":"IF('1. Ordersheet'!BA222=\"\",\"\",'1. Ordersheet'!BA222)","v":""},{"$f":"IF('1. Ordersheet'!BC222=\"\",\"\",'1. Ordersheet'!BC222)","v":""},{"$f":"IF('1. Ordersheet'!BD222=\"\",\"\",'1. Ordersheet'!BD222)","v":""},{"$f":"IF('1. Ordersheet'!BE222=\"\",\"\",'1. Ordersheet'!BE222)","v":""},{"$f":"IF('1. Ordersheet'!BF222=\"\",\"\",'1. Ordersheet'!BF222)","v":""},{"$f":"IF('1. Ordersheet'!BG222=\"\",\"\",'1. Ordersheet'!BG222)","v":"ZWO"},{"$f":"IF('1. Ordersheet'!BH222=\"\",\"\",'1. Ordersheet'!BH222)","v":""},{"$f":"IF('1. Ordersheet'!BI222=\"\",\"\",'1. Ordersheet'!BI222)","v":""},{"$f":"IF('1. Ordersheet'!BJ222=\"\",\"\",'1. Ordersheet'!BJ222)","v":""},{"$f":"IF('1. Ordersheet'!BK222=\"\",\"\",'1. Ordersheet'!BK222)","v":""},{"$f":"IF('1. Ordersheet'!BL222=\"\",\"\",'1. Ordersheet'!BL222)","v":""}]
[{"$f":"IF('1. Ordersheet'!F223=\"\",\"\",'1. Ordersheet'!F223)","v":""},{"$f":"IF('1. Ordersheet'!G223=\"\",\"\",'1. Ordersheet'!G223)","v":""},{"$f":"IF('1. Ordersheet'!H223=\"\",\"\",'1. Ordersheet'!H223)","v":""},{"$f":"IF('1. Ordersheet'!I223=\"\",\"\",'1. Ordersheet'!I223)","v":""},{"$f":"IF('1. Ordersheet'!J223=\"\",\"\",'1. Ordersheet'!J223)","v":""},{"$f":"IF('1. Ordersheet'!K223=\"\",\"\",'1. Ordersheet'!K223)","v":""},{"$f":"IF('1. Ordersheet'!L223=\"\",\"\",'1. Ordersheet'!L223)","v":""},{"$f":"IF('1. Ordersheet'!M223=\"\",\"\",'1. Ordersheet'!M223)","v":""},{"$f":"IF('1. Ordersheet'!N223=\"\",\"\",'1. Ordersheet'!N223)","v":""},{"$f":"IF('1. Ordersheet'!O223=\"\",\"\",'1. Ordersheet'!O223)","v":{"$error":"#N/A"}},{"$f":"IF('1. Ordersheet'!P223=\"\",\"\",'1. Ordersheet'!P223)","v":{"$error":"#N/A"}},{"$f":"IF('1. Ordersheet'!Q223=\"\",\"\",'1. Ordersheet'!Q223)","v":""},{"$f":"IF('1. Ordersheet'!R223=\"\",\"\",'1. Ordersheet'!R223)","v":""},{"$f":"IF('1. Ordersheet'!S223=\"\",\"\",'1. Ordersheet'!S223)","v":""},{"$f":"IF('1. Ordersheet'!V223=\"\",\"\",'1. Ordersheet'!V223)","v":""},{"$f":"IF('1. Ordersheet'!W223=\"\",\"\",'1. Ordersheet'!W223)","v":""},{"$f":"IF('1. Ordersheet'!X223=\"\",\"\",'1. Ordersheet'!X223)","v":""},{"$f":"IF('1. Ordersheet'!Y223=\"\",\"\",'1. Ordersheet'!Y223)","v":""},{"$f":"IF('1. Ordersheet'!Z223=\"\",\"\",'1. Ordersheet'!Z223)","v":""},{"$f":"IF('1. Ordersheet'!AA223=\"\",\"\",'1. Ordersheet'!AA223)","v":""},null,{"$f":"IF('1. Ordersheet'!AS223=\"\",\"\",'1. Ordersheet'!AS223)","v":""},{"$f":"IF('1. Ordersheet'!AT223=\"\",\"\",'1. Ordersheet'!AT223)","v":""},null,null,null,null,null,null,null,{"$f":"IF('1. Ordersheet'!AX223=\"\",\"\",'1. Ordersheet'!AX223)","v":""},{"$f":"IF('1. Ordersheet'!AY223=\"\",\"\",'1. Ordersheet'!AY223)","v":""},{"$f":"IF('1. Ordersheet'!AZ223=\"\",\"\",'1. Ordersheet'!AZ223)","v":""},{"$f":"IF('1. Ordersheet'!BA223=\"\",\"\",'1. Ordersheet'!BA223)","v":""},{"$f":"IF('1. Ordersheet'!BC223=\"\",\"\",'1. Ordersheet'!BC223)","v":""},{"$f":"IF('1. Ordersheet'!BD223=\"\",\"\",'1. Ordersheet'!BD223)","v":""},{"$f":"IF('1. Ordersheet'!BE223=\"\",\"\",'1. Ordersheet'!BE223)","v":""},{"$f":"IF('1. Ordersheet'!BF223=\"\",\"\",'1. Ordersheet'!BF223)","v":""},{"$f":"IF('1. Ordersheet'!BG223=\"\",\"\",'1. Ordersheet'!BG223)","v":"ZWO"},{"$f":"IF('1. Ordersheet'!BH223=\"\",\"\",'1. Ordersheet'!BH223)","v":""},{"$f":"IF('1. Ordersheet'!BI223=\"\",\"\",'1. Ordersheet'!BI223)","v":""},{"$f":"IF('1. Ordersheet'!BJ223=\"\",\"\",'1. Ordersheet'!BJ223)","v":""},{"$f":"IF('1. Ordersheet'!BK223=\"\",\"\",'1. Ordersheet'!BK223)","v":""},{"$f":"IF('1. Ordersheet'!BL223=\"\",\"\",'1. Ordersheet'!BL223)","v":""}]
[{"$f":"IF('1. Ordersheet'!F224=\"\",\"\",'1. Ordersheet'!F224)","v":""},{"$f":"IF('1. Ordersheet'!G224=\"\",\"\",'1. Ordersheet'!G224)","v":""},{"$f":"IF('1. Ordersheet'!H224=\"\",\"\",'1. Ordersheet'!H224)","v":""},{"$f":"IF('1. Ordersheet'!I224=\"\",\"\",'1. Ordersheet'!I224)","v":""},{"$f":"IF('1. Ordersheet'!J224=\"\",\"\",'1. Ordersheet'!J224)","v":""},{"$f":"IF('1. Ordersheet'!K224=\"\",\"\",'1. Ordersheet'!K224)","v":""},{"$f":"IF('1. Ordersheet'!L224=\"\",\"\",'1. Ordersheet'!L224)","v":""},{"$f":"IF('1. Ordersheet'!M224=\"\",\"\",'1. Ordersheet'!M224)","v":""},{"$f":"IF('1. Ordersheet'!N224=\"\",\"\",'1. Ordersheet'!N224)","v":""},{"$f":"IF('1. Ordersheet'!O224=\"\",\"\",'1. Ordersheet'!O224)","v":{"$error":"#N/A"}},{"$f":"IF('1. Ordersheet'!P224=\"\",\"\",'1. Ordersheet'!P224)","v":{"$error":"#N/A"}},{"$f":"IF('1. Ordersheet'!Q224=\"\",\"\",'1. Ordersheet'!Q224)","v":""},{"$f":"IF('1. Ordersheet'!R224=\"\",\"\",'1. Ordersheet'!R224)","v":""},{"$f":"IF('1. Ordersheet'!S224=\"\",\"\",'1. Ordersheet'!S224)","v":""},{"$f":"IF('1. Ordersheet'!V224=\"\",\"\",'1. Ordersheet'!V224)","v":""},{"$f":"IF('1. Ordersheet'!W224=\"\",\"\",'1. Ordersheet'!W224)","v":""},{"$f":"IF('1. Ordersheet'!X224=\"\",\"\",'1. Ordersheet'!X224)","v":""},{"$f":"IF('1. Ordersheet'!Y224=\"\",\"\",'1. Ordersheet'!Y224)","v":""},{"$f":"IF('1. Ordersheet'!Z224=\"\",\"\",'1. Ordersheet'!Z224)","v":""},{"$f":"IF('1. Ordersheet'!AA224=\"\",\"\",'1. Ordersheet'!AA224)","v":""},null,{"$f":"IF('1. Ordersheet'!AS224=\"\",\"\",'1. Ordersheet'!AS224)","v":""},{"$f":"IF('1. Ordersheet'!AT224=\"\",\"\",'1. Ordersheet'!AT224)","v":""},null,null,null,null,null,null,null,{"$f":"IF('1. Ordersheet'!AX224=\"\",\"\",'1. Ordersheet'!AX224)","v":""},{"$f":"IF('1. Ordersheet'!AY224=\"\",\"\",'1. Ordersheet'!AY224)","v":""},{"$f":"IF('1. Ordersheet'!AZ224=\"\",\"\",'1. Ordersheet'!AZ224)","v":""},{"$f":"IF('1. Ordersheet'!BA224=\"\",\"\",'1. Ordersheet'!BA224)","v":""},{"$f":"IF('1. Ordersheet'!BC224=\"\",\"\",'1. Ordersheet'!BC224)","v":""},{"$f":"IF('1. Ordersheet'!BD224=\"\",\"\",'1. Ordersheet'!BD224)","v":""},{"$f":"IF('1. Ordersheet'!BE224=\"\",\"\",'1. Ordersheet'!BE224)","v":""},{"$f":"IF('1. Ordersheet'!BF224=\"\",\"\",'1. Ordersheet'!BF224)","v":""},{"$f":"IF('1. Ordersheet'!BG224=\"\",\"\",'1. Ordersheet'!BG224)","v":"ZWO"},{"$f":"IF('1. Ordersheet'!BH224=\"\",\"\",'1. Ordersheet'!BH224)","v":""},{"$f":"IF('1. Ordersheet'!BI224=\"\",\"\",'1. Ordersheet'!BI224)","v":""},{"$f":"IF('1. Ordersheet'!BJ224=\"\",\"\",'1. Ordersheet'!BJ224)","v":""},{"$f":"IF('1. Ordersheet'!BK224=\"\",\"\",'1. Ordersheet'!BK224)","v":""},{"$f":"IF('1. Ordersheet'!BL224=\"\",\"\",'1. Ordersheet'!BL224)","v":""}]
[{"$f":"IF('1. Ordersheet'!F225=\"\",\"\",'1. Ordersheet'!F225)","v":""},{"$f":"IF('1. Ordersheet'!G225=\"\",\"\",'1. Ordersheet'!G225)","v":""},{"$f":"IF('1. Ordersheet'!H225=\"\",\"\",'1. Ordersheet'!H225)","v":""},{"$f":"IF('1. Ordersheet'!I225=\"\",\"\",'1. Ordersheet'!I225)","v":""},{"$f":"IF('1. Ordersheet'!J225=\"\",\"\",'1. Ordersheet'!J225)","v":""},{"$f":"IF('1. Ordersheet'!K225=\"\",\"\",'1. Ordersheet'!K225)","v":""},{"$f":"IF('1. Ordersheet'!L225=\"\",\"\",'1. Ordersheet'!L225)","v":""},{"$f":"IF('1. Ordersheet'!M225=\"\",\"\",'1. Ordersheet'!M225)","v":""},{"$f":"IF('1. Ordersheet'!N225=\"\",\"\",'1. Ordersheet'!N225)","v":""},{"$f":"IF('1. Ordersheet'!O225=\"\",\"\",'1. Ordersheet'!O225)","v":{"$error":"#N/A"}},{"$f":"IF('1. Ordersheet'!P225=\"\",\"\",'1. Ordersheet'!P225)","v":{"$error":"#N/A"}},{"$f":"IF('1. Ordersheet'!Q225=\"\",\"\",'1. Ordersheet'!Q225)","v":""},{"$f":"IF('1. Ordersheet'!R225=\"\",\"\",'1. Ordersheet'!R225)","v":""},{"$f":"IF('1. Ordersheet'!S225=\"\",\"\",'1. Ordersheet'!S225)","v":""},{"$f":"IF('1. Ordersheet'!V225=\"\",\"\",'1. Ordersheet'!V225)","v":""},{"$f":"IF('1. Ordersheet'!W225=\"\",\"\",'1. Ordersheet'!W225)","v":""},{"$f":"IF('1. Ordersheet'!X225=\"\",\"\",'1. Ordersheet'!X225)","v":""},{"$f":"IF('1. Ordersheet'!Y225=\"\",\"\",'1. Ordersheet'!Y225)","v":""},{"$f":"IF('1. Ordersheet'!Z225=\"\",\"\",'1. Ordersheet'!Z225)","v":""},{"$f":"IF('1. Ordersheet'!AA225=\"\",\"\",'1. Ordersheet'!AA225)","v":""},null,{"$f":"IF('1. Ordersheet'!AS225=\"\",\"\",'1. Ordersheet'!AS225)","v":""},{"$f":"IF('1. Ordersheet'!AT225=\"\",\"\",'1. Ordersheet'!AT225)","v":""},null,null,null,null,null,null,null,{"$f":"IF('1. Ordersheet'!AX225=\"\",\"\",'1. Ordersheet'!AX225)","v":""},{"$f":"IF('1. Ordersheet'!AY225=\"\",\"\",'1. Ordersheet'!AY225)","v":""},{"$f":"IF('1. Ordersheet'!AZ225=\"\",\"\",'1. Ordersheet'!AZ225)","v":""},{"$f":"IF('1. Ordersheet'!BA225=\"\",\"\",'1. Ordersheet'!BA225)","v":""},{"$f":"IF('1. Ordersheet'!BC225=\"\",\"\",'1. Ordersheet'!BC225)","v":""},{"$f":"IF('1. Ordersheet'!BD225=\"\",\"\",'1. Ordersheet'!BD225)","v":""},{"$f":"IF('1. Ordersheet'!BE225=\"\",\"\",'1. Ordersheet'!BE225)","v":""},{"$f":"IF('1. Ordersheet'!BF225=\"\",\"\",'1. Ordersheet'!BF225)","v":""},{"$f":"IF('1. Ordersheet'!BG225=\"\",\"\",'1. Ordersheet'!BG225)","v":"ZWO"},{"$f":"IF('1. Ordersheet'!BH225=\"\",\"\",'1. Ordersheet'!BH225)","v":""},{"$f":"IF('1. Ordersheet'!BI225=\"\",\"\",'1. Ordersheet'!BI225)","v":""},{"$f":"IF('1. Ordersheet'!BJ225=\"\",\"\",'1. Ordersheet'!BJ225)","v":""},{"$f":"IF('1. Ordersheet'!BK225=\"\",\"\",'1. Ordersheet'!BK225)","v":""},{"$f":"IF('1. Ordersheet'!BL225=\"\",\"\",'1. Ordersheet'!BL225)","v":""}]
[{"$f":"IF('1. Ordersheet'!F226=\"\",\"\",'1. Ordersheet'!F226)","v":""},{"$f":"IF('1. Ordersheet'!G226=\"\",\"\",'1. Ordersheet'!G226)","v":""},{"$f":"IF('1. Ordersheet'!H226=\"\",\"\",'1. Ordersheet'!H226)","v":""},{"$f":"IF('1. Ordersheet'!I226=\"\",\"\",'1. Ordersheet'!I226)","v":""},{"$f":"IF('1. Ordersheet'!J226=\"\",\"\",'1. Ordersheet'!J226)","v":""},{"$f":"IF('1. Ordersheet'!K226=\"\",\"\",'1. Ordersheet'!K226)","v":""},{"$f":"IF('1. Ordersheet'!L226=\"\",\"\",'1. Ordersheet'!L226)","v":""},{"$f":"IF('1. Ordersheet'!M226=\"\",\"\",'1. Ordersheet'!M226)","v":""},{"$f":"IF('1. Ordersheet'!N226=\"\",\"\",'1. Ordersheet'!N226)","v":""},{"$f":"IF('1. Ordersheet'!O226=\"\",\"\",'1. Ordersheet'!O226)","v":{"$error":"#N/A"}},{"$f":"IF('1. Ordersheet'!P226=\"\",\"\",'1. Ordersheet'!P226)","v":{"$error":"#N/A"}},{"$f":"IF('1. Ordersheet'!Q226=\"\",\"\",'1. Ordersheet'!Q226)","v":""},{"$f":"IF('1. Ordersheet'!R226=\"\",\"\",'1. Ordersheet'!R226)","v":""},{"$f":"IF('1. Ordersheet'!S226=\"\",\"\",'1. Ordersheet'!S226)","v":""},{"$f":"IF('1. Ordersheet'!V226=\"\",\"\",'1. Ordersheet'!V226)","v":""},{"$f":"IF('1. Ordersheet'!W226=\"\",\"\",'1. Ordersheet'!W226)","v":""},{"$f":"IF('1. Ordersheet'!X226=\"\",\"\",'1. Ordersheet'!X226)","v":""},{"$f":"IF('1. Ordersheet'!Y226=\"\",\"\",'1. Ordersheet'!Y226)","v":""},{"$f":"IF('1. Ordersheet'!Z226=\"\",\"\",'1. Ordersheet'!Z226)","v":""},{"$f":"IF('1. Ordersheet'!AA226=\"\",\"\",'1. Ordersheet'!AA226)","v":""},null,{"$f":"IF('1. Ordersheet'!AS226=\"\",\"\",'1. Ordersheet'!AS226)","v":""},{"$f":"IF('1. Ordersheet'!AT226=\"\",\"\",'1. Ordersheet'!AT226)","v":""},null,null,null,null,null,null,null,{"$f":"IF('1. Ordersheet'!AX226=\"\",\"\",'1. Ordersheet'!AX226)","v":""},{"$f":"IF('1. Ordersheet'!AY226=\"\",\"\",'1. Ordersheet'!AY226)","v":""},{"$f":"IF('1. Ordersheet'!AZ226=\"\",\"\",'1. Ordersheet'!AZ226)","v":""},{"$f":"IF('1. Ordersheet'!BA226=\"\",\"\",'1. Ordersheet'!BA226)","v":""},{"$f":"IF('1. Ordersheet'!BC226=\"\",\"\",'1. Ordersheet'!BC226)","v":""},{"$f":"IF('1. Ordersheet'!BD226=\"\",\"\",'1. Ordersheet'!BD226)","v":""},{"$f":"IF('1. Ordersheet'!BE226=\"\",\"\",'1. Ordersheet'!BE226)","v":""},{"$f":"IF('1. Ordersheet'!BF226=\"\",\"\",'1. Ordersheet'!BF226)","v":""},{"$f":"IF('1. Ordersheet'!BG226=\"\",\"\",'1. Ordersheet'!BG226)","v":"ZWO"},{"$f":"IF('1. Ordersheet'!BH226=\"\",\"\",'1. Ordersheet'!BH226)","v":""},{"$f":"IF('1. Ordersheet'!BI226=\"\",\"\",'1. Ordersheet'!BI226)","v":""},{"$f":"IF('1. Ordersheet'!BJ226=\"\",\"\",'1. Ordersheet'!BJ226)","v":""},{"$f":"IF('1. Ordersheet'!BK226=\"\",\"\",'1. Ordersheet'!BK226)","v":""},{"$f":"IF('1. Ordersheet'!BL226=\"\",\"\",'1. Ordersheet'!BL226)","v":""}]
[{"$f":"IF('1. Ordersheet'!F227=\"\",\"\",'1. Ordersheet'!F227)","v":""},{"$f":"IF('1. Ordersheet'!G227=\"\",\"\",'1. Ordersheet'!G227)","v":""},{"$f":"IF('1. Ordersheet'!H227=\"\",\"\",'1. Ordersheet'!H227)","v":""},{"$f":"IF('1. Ordersheet'!I227=\"\",\"\",'1. Ordersheet'!I227)","v":""},{"$f":"IF('1. Ordersheet'!J227=\"\",\"\",'1. Ordersheet'!J227)","v":""},{"$f":"IF('1. Ordersheet'!K227=\"\",\"\",'1. Ordersheet'!K227)","v":""},{"$f":"IF('1. Ordersheet'!L227=\"\",\"\",'1. Ordersheet'!L227)","v":""},{"$f":"IF('1. Ordersheet'!M227=\"\",\"\",'1. Ordersheet'!M227)","v":""},{"$f":"IF('1. Ordersheet'!N227=\"\",\"\",'1. Ordersheet'!N227)","v":""},{"$f":"IF('1. Ordersheet'!O227=\"\",\"\",'1. Ordersheet'!O227)","v":{"$error":"#N/A"}},{"$f":"IF('1. Ordersheet'!P227=\"\",\"\",'1. Ordersheet'!P227)","v":{"$error":"#N/A"}},{"$f":"IF('1. Ordersheet'!Q227=\"\",\"\",'1. Ordersheet'!Q227)","v":""},{"$f":"IF('1. Ordersheet'!R227=\"\",\"\",'1. Ordersheet'!R227)","v":""},{"$f":"IF('1. Ordersheet'!S227=\"\",\"\",'1. Ordersheet'!S227)","v":""},{"$f":"IF('1. Ordersheet'!V227=\"\",\"\",'1. Ordersheet'!V227)","v":""},{"$f":"IF('1. Ordersheet'!W227=\"\",\"\",'1. Ordersheet'!W227)","v":""},{"$f":"IF('1. Ordersheet'!X227=\"\",\"\",'1. Ordersheet'!X227)","v":""},{"$f":"IF('1. Ordersheet'!Y227=\"\",\"\",'1. Ordersheet'!Y227)","v":""},{"$f":"IF('1. Ordersheet'!Z227=\"\",\"\",'1. Ordersheet'!Z227)","v":""},{"$f":"IF('1. Ordersheet'!AA227=\"\",\"\",'1. Ordersheet'!AA227)","v":""},null,{"$f":"IF('1. Ordersheet'!AS227=\"\",\"\",'1. Ordersheet'!AS227)","v":""},{"$f":"IF('1. Ordersheet'!AT227=\"\",\"\",'1. Ordersheet'!AT227)","v":""},null,null,null,null,null,null,null,{"$f":"IF('1. Ordersheet'!AX227=\"\",\"\",'1. Ordersheet'!AX227)","v":""},{"$f":"IF('1. Ordersheet'!AY227=\"\",\"\",'1. Ordersheet'!AY227)","v":""},{"$f":"IF('1. Ordersheet'!AZ227=\"\",\"\",'1. Ordersheet'!AZ227)","v":""},{"$f":"IF('1. Ordersheet'!BA227=\"\",\"\",'1. Ordersheet'!BA227)","v":""},{"$f":"IF('1. Ordersheet'!BC227=\"\",\"\",'1. Ordersheet'!BC227)","v":""},{"$f":"IF('1. Ordersheet'!BD227=\"\",\"\",'1. Ordersheet'!BD227)","v":""},{"$f":"IF('1. Ordersheet'!BE227=\"\",\"\",'1. Ordersheet'!BE227)","v":""},{"$f":"IF('1. Ordersheet'!BF227=\"\",\"\",'1. Ordersheet'!BF227)","v":""},{"$f":"IF('1. Ordersheet'!BG227=\"\",\"\",'1. Ordersheet'!BG227)","v":"ZWO"},{"$f":"IF('1. Ordersheet'!BH227=\"\",\"\",'1. Ordersheet'!BH227)","v":""},{"$f":"IF('1. Ordersheet'!BI227=\"\",\"\",'1. Ordersheet'!BI227)","v":""},{"$f":"IF('1. Ordersheet'!BJ227=\"\",\"\",'1. Ordersheet'!BJ227)","v":""},{"$f":"IF('1. Ordersheet'!BK227=\"\",\"\",'1. Ordersheet'!BK227)","v":""},{"$f":"IF('1. Ordersheet'!BL227=\"\",\"\",'1. Ordersheet'!BL227)","v":""}]
[{"$f":"IF('1. Ordersheet'!F228=\"\",\"\",'1. Ordersheet'!F228)","v":""},{"$f":"IF('1. Ordersheet'!G228=\"\",\"\",'1. Ordersheet'!G228)","v":""},{"$f":"IF('1. Ordersheet'!H228=\"\",\"\",'1. Ordersheet'!H228)","v":""},{"$f":"IF('1. Ordersheet'!I228=\"\",\"\",'1. Ordersheet'!I228)","v":""},{"$f":"IF('1. Ordersheet'!J228=\"\",\"\",'1. Ordersheet'!J228)","v":""},{"$f":"IF('1. Ordersheet'!K228=\"\",\"\",'1. Ordersheet'!K228)","v":""},{"$f":"IF('1. Ordersheet'!L228=\"\",\"\",'1. Ordersheet'!L228)","v":""},{"$f":"IF('1. Ordersheet'!M228=\"\",\"\",'1. Ordersheet'!M228)","v":""},{"$f":"IF('1. Ordersheet'!N228=\"\",\"\",'1. Ordersheet'!N228)","v":""},{"$f":"IF('1. Ordersheet'!O228=\"\",\"\",'1. Ordersheet'!O228)","v":{"$error":"#N/A"}},{"$f":"IF('1. Ordersheet'!P228=\"\",\"\",'1. Ordersheet'!P228)","v":{"$error":"#N/A"}},{"$f":"IF('1. Ordersheet'!Q228=\"\",\"\",'1. Ordersheet'!Q228)","v":""},{"$f":"IF('1. Ordersheet'!R228=\"\",\"\",'1. Ordersheet'!R228)","v":""},{"$f":"IF('1. Ordersheet'!S228=\"\",\"\",'1. Ordersheet'!S228)","v":""},{"$f":"IF('1. Ordersheet'!V228=\"\",\"\",'1. Ordersheet'!V228)","v":""},{"$f":"IF('1. Ordersheet'!W228=\"\",\"\",'1. Ordersheet'!W228)","v":""},{"$f":"IF('1. Ordersheet'!X228=\"\",\"\",'1. Ordersheet'!X228)","v":""},{"$f":"IF('1. Ordersheet'!Y228=\"\",\"\",'1. Ordersheet'!Y228)","v":""},{"$f":"IF('1. Ordersheet'!Z228=\"\",\"\",'1. Ordersheet'!Z228)","v":""},{"$f":"IF('1. Ordersheet'!AA228=\"\",\"\",'1. Ordersheet'!AA228)","v":""},null,{"$f":"IF('1. Ordersheet'!AS228=\"\",\"\",'1. Ordersheet'!AS228)","v":""},{"$f":"IF('1. Ordersheet'!AT228=\"\",\"\",'1. Ordersheet'!AT228)","v":""},null,null,null,null,null,null,null,{"$f":"IF('1. Ordersheet'!AX228=\"\",\"\",'1. Ordersheet'!AX228)","v":""},{"$f":"IF('1. Ordersheet'!AY228=\"\",\"\",'1. Ordersheet'!AY228)","v":""},{"$f":"IF('1. Ordersheet'!AZ228=\"\",\"\",'1. Ordersheet'!AZ228)","v":""},{"$f":"IF('1. Ordersheet'!BA228=\"\",\"\",'1. Ordersheet'!BA228)","v":""},{"$f":"IF('1. Ordersheet'!BC228=\"\",\"\",'1. Ordersheet'!BC228)","v":""},{"$f":"IF('1. Ordersheet'!BD228=\"\",\"\",'1. Ordersheet'!BD228)","v":""},{"$f":"IF('1. Ordersheet'!BE228=\"\",\"\",'1. Ordersheet'!BE228)","v":""},{"$f":"IF('1. Ordersheet'!BF228=\"\",\"\",'1. Ordersheet'!BF228)","v":""},{"$f":"IF('1. Ordersheet'!BG228=\"\",\"\",'1. Ordersheet'!BG228)","v":"ZWO"},{"$f":"IF('1. Ordersheet'!BH228=\"\",\"\",'1. Ordersheet'!BH228)","v":""},{"$f":"IF('1. Ordersheet'!BI228=\"\",\"\",'1. Ordersheet'!BI228)","v":""},{"$f":"IF('1. Ordersheet'!BJ228=\"\",\"\",'1. Ordersheet'!BJ228)","v":""},{"$f":"IF('1. Ordersheet'!BK228=\"\",\"\",'1. Ordersheet'!BK228)","v":""},{"$f":"IF('1. Ordersheet'!BL228=\"\",\"\",'1. Ordersheet'!BL228)","v":""}]
[{"$f":"IF('1. Ordersheet'!F229=\"\",\"\",'1. Ordersheet'!F229)","v":""},{"$f":"IF('1. Ordersheet'!G229=\"\",\"\",'1. Ordersheet'!G229)","v":""},{"$f":"IF('1. Ordersheet'!H229=\"\",\"\",'1. Ordersheet'!H229)","v":""},{"$f":"IF('1. Ordersheet'!I229=\"\",\"\",'1. Ordersheet'!I229)","v":""},{"$f":"IF('1. Ordersheet'!J229=\"\",\"\",'1. Ordersheet'!J229)","v":""},{"$f":"IF('1. Ordersheet'!K229=\"\",\"\",'1. Ordersheet'!K229)","v":""},{"$f":"IF('1. Ordersheet'!L229=\"\",\"\",'1. Ordersheet'!L229)","v":""},{"$f":"IF('1. Ordersheet'!M229=\"\",\"\",'1. Ordersheet'!M229)","v":""},{"$f":"IF('1. Ordersheet'!N229=\"\",\"\",'1. Ordersheet'!N229)","v":""},{"$f":"IF('1. Ordersheet'!O229=\"\",\"\",'1. Ordersheet'!O229)","v":{"$error":"#N/A"}},{"$f":"IF('1. Ordersheet'!P229=\"\",\"\",'1. Ordersheet'!P229)","v":{"$error":"#N/A"}},{"$f":"IF('1. Ordersheet'!Q229=\"\",\"\",'1. Ordersheet'!Q229)","v":""},{"$f":"IF('1. Ordersheet'!R229=\"\",\"\",'1. Ordersheet'!R229)","v":""},{"$f":"IF('1. Ordersheet'!S229=\"\",\"\",'1. Ordersheet'!S229)","v":""},{"$f":"IF('1. Ordersheet'!V229=\"\",\"\",'1. Ordersheet'!V229)","v":""},{"$f":"IF('1. Ordersheet'!W229=\"\",\"\",'1. Ordersheet'!W229)","v":""},{"$f":"IF('1. Ordersheet'!X229=\"\",\"\",'1. Ordersheet'!X229)","v":""},{"$f":"IF('1. Ordersheet'!Y229=\"\",\"\",'1. Ordersheet'!Y229)","v":""},{"$f":"IF('1. Ordersheet'!Z229=\"\",\"\",'1. Ordersheet'!Z229)","v":""},{"$f":"IF('1. Ordersheet'!AA229=\"\",\"\",'1. Ordersheet'!AA229)","v":""},null,{"$f":"IF('1. Ordersheet'!AS229=\"\",\"\",'1. Ordersheet'!AS229)","v":""},{"$f":"IF('1. Ordersheet'!AT229=\"\",\"\",'1. Ordersheet'!AT229)","v":""},null,null,null,null,null,null,null,{"$f":"IF('1. Ordersheet'!AX229=\"\",\"\",'1. Ordersheet'!AX229)","v":""},{"$f":"IF('1. Ordersheet'!AY229=\"\",\"\",'1. Ordersheet'!AY229)","v":""},{"$f":"IF('1. Ordersheet'!AZ229=\"\",\"\",'1. Ordersheet'!AZ229)","v":""},{"$f":"IF('1. Ordersheet'!BA229=\"\",\"\",'1. Ordersheet'!BA229)","v":""},{"$f":"IF('1. Ordersheet'!BC229=\"\",\"\",'1. Ordersheet'!BC229)","v":""},{"$f":"IF('1. Ordersheet'!BD229=\"\",\"\",'1. Ordersheet'!BD229)","v":""},{"$f":"IF('1. Ordersheet'!BE229=\"\",\"\",'1. Ordersheet'!BE229)","v":""},{"$f":"IF('1. Ordersheet'!BF229=\"\",\"\",'1. Ordersheet'!BF229)","v":""},{"$f":"IF('1. Ordersheet'!BG229=\"\",\"\",'1. Ordersheet'!BG229)","v":"ZWO"},{"$f":"IF('1. Ordersheet'!BH229=\"\",\"\",'1. Ordersheet'!BH229)","v":""},{"$f":"IF('1. Ordersheet'!BI229=\"\",\"\",'1. Ordersheet'!BI229)","v":""},{"$f":"IF('1. Ordersheet'!BJ229=\"\",\"\",'1. Ordersheet'!BJ229)","v":""},{"$f":"IF('1. Ordersheet'!BK229=\"\",\"\",'1. Ordersheet'!BK229)","v":""},{"$f":"IF('1. Ordersheet'!BL229=\"\",\"\",'1. Ordersheet'!BL229)","v":""}]
[{"$f":"IF('1. Ordersheet'!F230=\"\",\"\",'1. Ordersheet'!F230)","v":""},{"$f":"IF('1. Ordersheet'!G230=\"\",\"\",'1. Ordersheet'!G230)","v":""},{"$f":"IF('1. Ordersheet'!H230=\"\",\"\",'1. Ordersheet'!H230)","v":""},{"$f":"IF('1. Ordersheet'!I230=\"\",\"\",'1. Ordersheet'!I230)","v":""},{"$f":"IF('1. Ordersheet'!J230=\"\",\"\",'1. Ordersheet'!J230)","v":""},{"$f":"IF('1. Ordersheet'!K230=\"\",\"\",'1. Ordersheet'!K230)","v":""},{"$f":"IF('1. Ordersheet'!L230=\"\",\"\",'1. Ordersheet'!L230)","v":""},{"$f":"IF('1. Ordersheet'!M230=\"\",\"\",'1. Ordersheet'!M230)","v":""},{"$f":"IF('1. Ordersheet'!N230=\"\",\"\",'1. Ordersheet'!N230)","v":""},{"$f":"IF('1. Ordersheet'!O230=\"\",\"\",'1. Ordersheet'!O230)","v":{"$error":"#N/A"}},{"$f":"IF('1. Ordersheet'!P230=\"\",\"\",'1. Ordersheet'!P230)","v":{"$error":"#N/A"}},{"$f":"IF('1. Ordersheet'!Q230=\"\",\"\",'1. Ordersheet'!Q230)","v":""},{"$f":"IF('1. Ordersheet'!R230=\"\",\"\",'1. Ordersheet'!R230)","v":""},{"$f":"IF('1. Ordersheet'!S230=\"\",\"\",'1. Ordersheet'!S230)","v":""},{"$f":"IF('1. Ordersheet'!V230=\"\",\"\",'1. Ordersheet'!V230)","v":""},{"$f":"IF('1. Ordersheet'!W230=\"\",\"\",'1. Ordersheet'!W230)","v":""},{"$f":"IF('1. Ordersheet'!X230=\"\",\"\",'1. Ordersheet'!X230)","v":""},{"$f":"IF('1. Ordersheet'!Y230=\"\",\"\",'1. Ordersheet'!Y230)","v":""},{"$f":"IF('1. Ordersheet'!Z230=\"\",\"\",'1. Ordersheet'!Z230)","v":""},{"$f":"IF('1. Ordersheet'!AA230=\"\",\"\",'1. Ordersheet'!AA230)","v":""},null,{"$f":"IF('1. Ordersheet'!AS230=\"\",\"\",'1. Ordersheet'!AS230)","v":""},{"$f":"IF('1. Ordersheet'!AT230=\"\",\"\",'1. Ordersheet'!AT230)","v":""},null,null,null,null,null,null,null,{"$f":"IF('1. Ordersheet'!AX230=\"\",\"\",'1. Ordersheet'!AX230)","v":""},{"$f":"IF('1. Ordersheet'!AY230=\"\",\"\",'1. Ordersheet'!AY230)","v":""},{"$f":"IF('1. Ordersheet'!AZ230=\"\",\"\",'1. Ordersheet'!AZ230)","v":""},{"$f":"IF('1. Ordersheet'!BA230=\"\",\"\",'1. Ordersheet'!BA230)","v":""},{"$f":"IF('1. Ordersheet'!BC230=\"\",\"\",'1. Ordersheet'!BC230)","v":""},{"$f":"IF('1. Ordersheet'!BD230=\"\",\"\",'1. Ordersheet'!BD230)","v":""},{"$f":"IF('1. Ordersheet'!BE230=\"\",\"\",'1. Ordersheet'!BE230)","v":""},{"$f":"IF('1. Ordersheet'!BF230=\"\",\"\",'1. Ordersheet'!BF230)","v":""},{"$f":"IF('1. Ordersheet'!BG230=\"\",\"\",'1. Ordersheet'!BG230)","v":"ZWO"},{"$f":"IF('1. Ordersheet'!BH230=\"\",\"\",'1. Ordersheet'!BH230)","v":""},{"$f":"IF('1. Ordersheet'!BI230=\"\",\"\",'1. Ordersheet'!BI230)","v":""},{"$f":"IF('1. Ordersheet'!BJ230=\"\",\"\",'1. Ordersheet'!BJ230)","v":""},{"$f":"IF('1. Ordersheet'!BK230=\"\",\"\",'1. Ordersheet'!BK230)","v":""},{"$f":"IF('1. Ordersheet'!BL230=\"\",\"\",'1. Ordersheet'!BL230)","v":""}]
[{"$f":"IF('1. Ordersheet'!F231=\"\",\"\",'1. Ordersheet'!F231)","v":""},{"$f":"IF('1. Ordersheet'!G231=\"\",\"\",'1. Ordersheet'!G231)","v":""},{"$f":"IF('1. Ordersheet'!H231=\"\",\"\",'1. Ordersheet'!H231)","v":""},{"$f":"IF('1. Ordersheet'!I231=\"\",\"\",'1. Ordersheet'!I231)","v":""},{"$f":"IF('1. Ordersheet'!J231=\"\",\"\",'1. Ordersheet'!J231)","v":""},{"$f":"IF('1. Ordersheet'!K231=\"\",\"\",'1. Ordersheet'!K231)","v":""},{"$f":"IF('1. Ordersheet'!L231=\"\",\"\",'1. Ordersheet'!L231)","v":""},{"$f":"IF('1. Ordersheet'!M231=\"\",\"\",'1. Ordersheet'!M231)","v":""},{"$f":"IF('1. Ordersheet'!N231=\"\",\"\",'1. Ordersheet'!N231)","v":""},{"$f":"IF('1. Ordersheet'!O231=\"\",\"\",'1. Ordersheet'!O231)","v":{"$error":"#N/A"}},{"$f":"IF('1. Ordersheet'!P231=\"\",\"\",'1. Ordersheet'!P231)","v":{"$error":"#N/A"}},{"$f":"IF('1. Ordersheet'!Q231=\"\",\"\",'1. Ordersheet'!Q231)","v":""},{"$f":"IF('1. Ordersheet'!R231=\"\",\"\",'1. Ordersheet'!R231)","v":""},{"$f":"IF('1. Ordersheet'!S231=\"\",\"\",'1. Ordersheet'!S231)","v":""},{"$f":"IF('1. Ordersheet'!V231=\"\",\"\",'1. Ordersheet'!V231)","v":""},{"$f":"IF('1. Ordersheet'!W231=\"\",\"\",'1. Ordersheet'!W231)","v":""},{"$f":"IF('1. Ordersheet'!X231=\"\",\"\",'1. Ordersheet'!X231)","v":""},{"$f":"IF('1. Ordersheet'!Y231=\"\",\"\",'1. Ordersheet'!Y231)","v":""},{"$f":"IF('1. Ordersheet'!Z231=\"\",\"\",'1. Ordersheet'!Z231)","v":""},{"$f":"IF('1. Ordersheet'!AA231=\"\",\"\",'1. Ordersheet'!AA231)","v":""},null,{"$f":"IF('1. Ordersheet'!AS231=\"\",\"\",'1. Ordersheet'!AS231)","v":""},{"$f":"IF('1. Ordersheet'!AT231=\"\",\"\",'1. Ordersheet'!AT231)","v":""},null,null,null,null,null,null,null,{"$f":"IF('1. Ordersheet'!AX231=\"\",\"\",'1. Ordersheet'!AX231)","v":""},{"$f":"IF('1. Ordersheet'!AY231=\"\",\"\",'1. Ordersheet'!AY231)","v":""},{"$f":"IF('1. Ordersheet'!AZ231=\"\",\"\",'1. Ordersheet'!AZ231)","v":""},{"$f":"IF('1. Ordersheet'!BA231=\"\",\"\",'1. Ordersheet'!BA231)","v":""},{"$f":"IF('1. Ordersheet'!BC231=\"\",\"\",'1. Ordersheet'!BC231)","v":""},{"$f":"IF('1. Ordersheet'!BD231=\"\",\"\",'1. Ordersheet'!BD231)","v":""},{"$f":"IF('1. Ordersheet'!BE231=\"\",\"\",'1. Ordersheet'!BE231)","v":""},{"$f":"IF('1. Ordersheet'!BF231=\"\",\"\",'1. Ordersheet'!BF231)","v":""},{"$f":"IF('1. Ordersheet'!BG231=\"\",\"\",'1. Ordersheet'!BG231)","v":"ZWO"},{"$f":"IF('1. Ordersheet'!BH231=\"\",\"\",'1. Ordersheet'!BH231)","v":""},{"$f":"IF('1. Ordersheet'!BI231=\"\",\"\",'1. Ordersheet'!BI231)","v":""},{"$f":"IF('1. Ordersheet'!BJ231=\"\",\"\",'1. Ordersheet'!BJ231)","v":""},{"$f":"IF('1. Ordersheet'!BK231=\"\",\"\",'1. Ordersheet'!BK231)","v":""},{"$f":"IF('1. Ordersheet'!BL231=\"\",\"\",'1. Ordersheet'!BL231)","v":""}]
[{"$f":"IF('1. Ordersheet'!F232=\"\",\"\",'1. Ordersheet'!F232)","v":""},{"$f":"IF('1. Ordersheet'!G232=\"\",\"\",'1. Ordersheet'!G232)","v":""},{"$f":"IF('1. Ordersheet'!H232=\"\",\"\",'1. Ordersheet'!H232)","v":""},{"$f":"IF('1. Ordersheet'!I232=\"\",\"\",'1. Ordersheet'!I232)","v":""},{"$f":"IF('1. Ordersheet'!J232=\"\",\"\",'1. Ordersheet'!J232)","v":""},{"$f":"IF('1. Ordersheet'!K232=\"\",\"\",'1. Ordersheet'!K232)","v":""},{"$f":"IF('1. Ordersheet'!L232=\"\",\"\",'1. Ordersheet'!L232)","v":""},{"$f":"IF('1. Ordersheet'!M232=\"\",\"\",'1. Ordersheet'!M232)","v":""},{"$f":"IF('1. Ordersheet'!N232=\"\",\"\",'1. Ordersheet'!N232)","v":""},{"$f":"IF('1. Ordersheet'!O232=\"\",\"\",'1. Ordersheet'!O232)","v":{"$error":"#N/A"}},{"$f":"IF('1. Ordersheet'!P232=\"\",\"\",'1. Ordersheet'!P232)","v":{"$error":"#N/A"}},{"$f":"IF('1. Ordersheet'!Q232=\"\",\"\",'1. Ordersheet'!Q232)","v":""},{"$f":"IF('1. Ordersheet'!R232=\"\",\"\",'1. Ordersheet'!R232)","v":""},{"$f":"IF('1. Ordersheet'!S232=\"\",\"\",'1. Ordersheet'!S232)","v":""},{"$f":"IF('1. Ordersheet'!V232=\"\",\"\",'1. Ordersheet'!V232)","v":""},{"$f":"IF('1. Ordersheet'!W232=\"\",\"\",'1. Ordersheet'!W232)","v":""},{"$f":"IF('1. Ordersheet'!X232=\"\",\"\",'1. Ordersheet'!X232)","v":""},{"$f":"IF('1. Ordersheet'!Y232=\"\",\"\",'1. Ordersheet'!Y232)","v":""},{"$f":"IF('1. Ordersheet'!Z232=\"\",\"\",'1. Ordersheet'!Z232)","v":""},{"$f":"IF('1. Ordersheet'!AA232=\"\",\"\",'1. Ordersheet'!AA232)","v":""},null,{"$f":"IF('1. Ordersheet'!AS232=\"\",\"\",'1. Ordersheet'!AS232)","v":""},{"$f":"IF('1. Ordersheet'!AT232=\"\",\"\",'1. Ordersheet'!AT232)","v":""},null,null,null,null,null,null,null,{"$f":"IF('1. Ordersheet'!AX232=\"\",\"\",'1. Ordersheet'!AX232)","v":""},{"$f":"IF('1. Ordersheet'!AY232=\"\",\"\",'1. Ordersheet'!AY232)","v":""},{"$f":"IF('1. Ordersheet'!AZ232=\"\",\"\",'1. Ordersheet'!AZ232)","v":""},{"$f":"IF('1. Ordersheet'!BA232=\"\",\"\",'1. Ordersheet'!BA232)","v":""},{"$f":"IF('1. Ordersheet'!BC232=\"\",\"\",'1. Ordersheet'!BC232)","v":""},{"$f":"IF('1. Ordersheet'!BD232=\"\",\"\",'1. Ordersheet'!BD232)","v":""},{"$f":"IF('1. Ordersheet'!BE232=\"\",\"\",'1. Ordersheet'!BE232)","v":""},{"$f":"IF('1. Ordersheet'!BF232=\"\",\"\",'1. Ordersheet'!BF232)","v":""},{"$f":"IF('1. Ordersheet'!BG232=\"\",\"\",'1. Ordersheet'!BG232)","v":"ZWO"},{"$f":"IF('1. Ordersheet'!BH232=\"\",\"\",'1. Ordersheet'!BH232)","v":""},{"$f":"IF('1. Ordersheet'!BI232=\"\",\"\",'1. Ordersheet'!BI232)","v":""},{"$f":"IF('1. Ordersheet'!BJ232=\"\",\"\",'1. Ordersheet'!BJ232)","v":""},{"$f":"IF('1. Ordersheet'!BK232=\"\",\"\",'1. Ordersheet'!BK232)","v":""},{"$f":"IF('1. Ordersheet'!BL232=\"\",\"\",'1. Ordersheet'!BL232)","v":""}]
[{"$f":"IF('1. Ordersheet'!F233=\"\",\"\",'1. Ordersheet'!F233)","v":""},{"$f":"IF('1. Ordersheet'!G233=\"\",\"\",'1. Ordersheet'!G233)","v":""},{"$f":"IF('1. Ordersheet'!H233=\"\",\"\",'1. Ordersheet'!H233)","v":""},{"$f":"IF('1. Ordersheet'!I233=\"\",\"\",'1. Ordersheet'!I233)","v":""},{"$f":"IF('1. Ordersheet'!J233=\"\",\"\",'1. Ordersheet'!J233)","v":""},{"$f":"IF('1. Ordersheet'!K233=\"\",\"\",'1. Ordersheet'!K233)","v":""},{"$f":"IF('1. Ordersheet'!L233=\"\",\"\",'1. Ordersheet'!L233)","v":""},{"$f":"IF('1. Ordersheet'!M233=\"\",\"\",'1. Ordersheet'!M233)","v":""},{"$f":"IF('1. Ordersheet'!N233=\"\",\"\",'1. Ordersheet'!N233)","v":""},{"$f":"IF('1. Ordersheet'!O233=\"\",\"\",'1. Ordersheet'!O233)","v":{"$error":"#N/A"}},{"$f":"IF('1. Ordersheet'!P233=\"\",\"\",'1. Ordersheet'!P233)","v":{"$error":"#N/A"}},{"$f":"IF('1. Ordersheet'!Q233=\"\",\"\",'1. Ordersheet'!Q233)","v":""},{"$f":"IF('1. Ordersheet'!R233=\"\",\"\",'1. Ordersheet'!R233)","v":""},{"$f":"IF('1. Ordersheet'!S233=\"\",\"\",'1. Ordersheet'!S233)","v":""},{"$f":"IF('1. Ordersheet'!V233=\"\",\"\",'1. Ordersheet'!V233)","v":""},{"$f":"IF('1. Ordersheet'!W233=\"\",\"\",'1. Ordersheet'!W233)","v":""},{"$f":"IF('1. Ordersheet'!X233=\"\",\"\",'1. Ordersheet'!X233)","v":""},{"$f":"IF('1. Ordersheet'!Y233=\"\",\"\",'1. Ordersheet'!Y233)","v":""},{"$f":"IF('1. Ordersheet'!Z233=\"\",\"\",'1. Ordersheet'!Z233)","v":""},{"$f":"IF('1. Ordersheet'!AA233=\"\",\"\",'1. Ordersheet'!AA233)","v":""},null,{"$f":"IF('1. Ordersheet'!AS233=\"\",\"\",'1. Ordersheet'!AS233)","v":""},{"$f":"IF('1. Ordersheet'!AT233=\"\",\"\",'1. Ordersheet'!AT233)","v":""},null,null,null,null,null,null,null,{"$f":"IF('1. Ordersheet'!AX233=\"\",\"\",'1. Ordersheet'!AX233)","v":""},{"$f":"IF('1. Ordersheet'!AY233=\"\",\"\",'1. Ordersheet'!AY233)","v":""},{"$f":"IF('1. Ordersheet'!AZ233=\"\",\"\",'1. Ordersheet'!AZ233)","v":""},{"$f":"IF('1. Ordersheet'!BA233=\"\",\"\",'1. Ordersheet'!BA233)","v":""},{"$f":"IF('1. Ordersheet'!BC233=\"\",\"\",'1. Ordersheet'!BC233)","v":""},{"$f":"IF('1. Ordersheet'!BD233=\"\",\"\",'1. Ordersheet'!BD233)","v":""},{"$f":"IF('1. Ordersheet'!BE233=\"\",\"\",'1. Ordersheet'!BE233)","v":""},{"$f":"IF('1. Ordersheet'!BF233=\"\",\"\",'1. Ordersheet'!BF233)","v":""},{"$f":"IF('1. Ordersheet'!BG233=\"\",\"\",'1. Ordersheet'!BG233)","v":"ZWO"},{"$f":"IF('1. Ordersheet'!BH233=\"\",\"\",'1. Ordersheet'!BH233)","v":""},{"$f":"IF('1. Ordersheet'!BI233=\"\",\"\",'1. Ordersheet'!BI233)","v":""},{"$f":"IF('1. Ordersheet'!BJ233=\"\",\"\",'1. Ordersheet'!BJ233)","v":""},{"$f":"IF('1. Ordersheet'!BK233=\"\",\"\",'1. Ordersheet'!BK233)","v":""},{"$f":"IF('1. Ordersheet'!BL233=\"\",\"\",'1. Ordersheet'!BL233)","v":""}]
[{"$f":"IF('1. Ordersheet'!F234=\"\",\"\",'1. Ordersheet'!F234)","v":""},{"$f":"IF('1. Ordersheet'!G234=\"\",\"\",'1. Ordersheet'!G234)","v":""},{"$f":"IF('1. Ordersheet'!H234=\"\",\"\",'1. Ordersheet'!H234)","v":""},{"$f":"IF('1. Ordersheet'!I234=\"\",\"\",'1. Ordersheet'!I234)","v":""},{"$f":"IF('1. Ordersheet'!J234=\"\",\"\",'1. Ordersheet'!J234)","v":""},{"$f":"IF('1. Ordersheet'!K234=\"\",\"\",'1. Ordersheet'!K234)","v":""},{"$f":"IF('1. Ordersheet'!L234=\"\",\"\",'1. Ordersheet'!L234)","v":""},{"$f":"IF('1. Ordersheet'!M234=\"\",\"\",'1. Ordersheet'!M234)","v":""},{"$f":"IF('1. Ordersheet'!N234=\"\",\"\",'1. Ordersheet'!N234)","v":""},{"$f":"IF('1. Ordersheet'!O234=\"\",\"\",'1. Ordersheet'!O234)","v":{"$error":"#N/A"}},{"$f":"IF('1. Ordersheet'!P234=\"\",\"\",'1. Ordersheet'!P234)","v":{"$error":"#N/A"}},{"$f":"IF('1. Ordersheet'!Q234=\"\",\"\",'1. Ordersheet'!Q234)","v":""},{"$f":"IF('1. Ordersheet'!R234=\"\",\"\",'1. Ordersheet'!R234)","v":""},{"$f":"IF('1. Ordersheet'!S234=\"\",\"\",'1. Ordersheet'!S234)","v":""},{"$f":"IF('1. Ordersheet'!V234=\"\",\"\",'1. Ordersheet'!V234)","v":""},{"$f":"IF('1. Ordersheet'!W234=\"\",\"\",'1. Ordersheet'!W234)","v":""},{"$f":"IF('1. Ordersheet'!X234=\"\",\"\",'1. Ordersheet'!X234)","v":""},{"$f":"IF('1. Ordersheet'!Y234=\"\",\"\",'1. Ordersheet'!Y234)","v":""},{"$f":"IF('1. Ordersheet'!Z234=\"\",\"\",'1. Ordersheet'!Z234)","v":""},{"$f":"IF('1. Ordersheet'!AA234=\"\",\"\",'1. Ordersheet'!AA234)","v":""},null,{"$f":"IF('1. Ordersheet'!AS234=\"\",\"\",'1. Ordersheet'!AS234)","v":""},{"$f":"IF('1. Ordersheet'!AT234=\"\",\"\",'1. Ordersheet'!AT234)","v":""},null,null,null,null,null,null,null,{"$f":"IF('1. Ordersheet'!AX234=\"\",\"\",'1. Ordersheet'!AX234)","v":""},{"$f":"IF('1. Ordersheet'!AY234=\"\",\"\",'1. Ordersheet'!AY234)","v":""},{"$f":"IF('1. Ordersheet'!AZ234=\"\",\"\",'1. Ordersheet'!AZ234)","v":""},{"$f":"IF('1. Ordersheet'!BA234=\"\",\"\",'1. Ordersheet'!BA234)","v":""},{"$f":"IF('1. Ordersheet'!BC234=\"\",\"\",'1. Ordersheet'!BC234)","v":""},{"$f":"IF('1. Ordersheet'!BD234=\"\",\"\",'1. Ordersheet'!BD234)","v":""},{"$f":"IF('1. Ordersheet'!BE234=\"\",\"\",'1. Ordersheet'!BE234)","v":""},{"$f":"IF('1. Ordersheet'!BF234=\"\",\"\",'1. Ordersheet'!BF234)","v":""},{"$f":"IF('1. Ordersheet'!BG234=\"\",\"\",'1. Ordersheet'!BG234)","v":"ZWO"},{"$f":"IF('1. Ordersheet'!BH234=\"\",\"\",'1. Ordersheet'!BH234)","v":""},{"$f":"IF('1. Ordersheet'!BI234=\"\",\"\",'1. Ordersheet'!BI234)","v":""},{"$f":"IF('1. Ordersheet'!BJ234=\"\",\"\",'1. Ordersheet'!BJ234)","v":""},{"$f":"IF('1. Ordersheet'!BK234=\"\",\"\",'1. Ordersheet'!BK234)","v":""},{"$f":"IF('1. Ordersheet'!BL234=\"\",\"\",'1. Ordersheet'!BL234)","v":""}]
[{"$f":"IF('1. Ordersheet'!F235=\"\",\"\",'1. Ordersheet'!F235)","v":""},{"$f":"IF('1. Ordersheet'!G235=\"\",\"\",'1. Ordersheet'!G235)","v":""},{"$f":"IF('1. Ordersheet'!H235=\"\",\"\",'1. Ordersheet'!H235)","v":""},{"$f":"IF('1. Ordersheet'!I235=\"\",\"\",'1. Ordersheet'!I235)","v":""},{"$f":"IF('1. Ordersheet'!J235=\"\",\"\",'1. Ordersheet'!J235)","v":""},{"$f":"IF('1. Ordersheet'!K235=\"\",\"\",'1. Ordersheet'!K235)","v":""},{"$f":"IF('1. Ordersheet'!L235=\"\",\"\",'1. Ordersheet'!L235)","v":""},{"$f":"IF('1. Ordersheet'!M235=\"\",\"\",'1. Ordersheet'!M235)","v":""},{"$f":"IF('1. Ordersheet'!N235=\"\",\"\",'1. Ordersheet'!N235)","v":""},{"$f":"IF('1. Ordersheet'!O235=\"\",\"\",'1. Ordersheet'!O235)","v":{"$error":"#N/A"}},{"$f":"IF('1. Ordersheet'!P235=\"\",\"\",'1. Ordersheet'!P235)","v":{"$error":"#N/A"}},{"$f":"IF('1. Ordersheet'!Q235=\"\",\"\",'1. Ordersheet'!Q235)","v":""},{"$f":"IF('1. Ordersheet'!R235=\"\",\"\",'1. Ordersheet'!R235)","v":""},{"$f":"IF('1. Ordersheet'!S235=\"\",\"\",'1. Ordersheet'!S235)","v":""},{"$f":"IF('1. Ordersheet'!V235=\"\",\"\",'1. Ordersheet'!V235)","v":""},{"$f":"IF('1. Ordersheet'!W235=\"\",\"\",'1. Ordersheet'!W235)","v":""},{"$f":"IF('1. Ordersheet'!X235=\"\",\"\",'1. Ordersheet'!X235)","v":""},{"$f":"IF('1. Ordersheet'!Y235=\"\",\"\",'1. Ordersheet'!Y235)","v":""},{"$f":"IF('1. Ordersheet'!Z235=\"\",\"\",'1. Ordersheet'!Z235)","v":""},{"$f":"IF('1. Ordersheet'!AA235=\"\",\"\",'1. Ordersheet'!AA235)","v":""},null,{"$f":"IF('1. Ordersheet'!AS235=\"\",\"\",'1. Ordersheet'!AS235)","v":""},{"$f":"IF('1. Ordersheet'!AT235=\"\",\"\",'1. Ordersheet'!AT235)","v":""},null,null,null,null,null,null,null,{"$f":"IF('1. Ordersheet'!AX235=\"\",\"\",'1. Ordersheet'!AX235)","v":""},{"$f":"IF('1. Ordersheet'!AY235=\"\",\"\",'1. Ordersheet'!AY235)","v":""},{"$f":"IF('1. Ordersheet'!AZ235=\"\",\"\",'1. Ordersheet'!AZ235)","v":""},{"$f":"IF('1. Ordersheet'!BA235=\"\",\"\",'1. Ordersheet'!BA235)","v":""},{"$f":"IF('1. Ordersheet'!BC235=\"\",\"\",'1. Ordersheet'!BC235)","v":""},{"$f":"IF('1. Ordersheet'!BD235=\"\",\"\",'1. Ordersheet'!BD235)","v":""},{"$f":"IF('1. Ordersheet'!BE235=\"\",\"\",'1. Ordersheet'!BE235)","v":""},{"$f":"IF('1. Ordersheet'!BF235=\"\",\"\",'1. Ordersheet'!BF235)","v":""},{"$f":"IF('1. Ordersheet'!BG235=\"\",\"\",'1. Ordersheet'!BG235)","v":"ZWO"},{"$f":"IF('1. Ordersheet'!BH235=\"\",\"\",'1. Ordersheet'!BH235)","v":""},{"$f":"IF('1. Ordersheet'!BI235=\"\",\"\",'1. Ordersheet'!BI235)","v":""},{"$f":"IF('1. Ordersheet'!BJ235=\"\",\"\",'1. Ordersheet'!BJ235)","v":""},{"$f":"IF('1. Ordersheet'!BK235=\"\",\"\",'1. Ordersheet'!BK235)","v":""},{"$f":"IF('1. Ordersheet'!BL235=\"\",\"\",'1. Ordersheet'!BL235)","v":""}]
[{"$f":"IF('1. Ordersheet'!F236=\"\",\"\",'1. Ordersheet'!F236)","v":""},{"$f":"IF('1. Ordersheet'!G236=\"\",\"\",'1. Ordersheet'!G236)","v":""},{"$f":"IF('1. Ordersheet'!H236=\"\",\"\",'1. Ordersheet'!H236)","v":""},{"$f":"IF('1. Ordersheet'!I236=\"\",\"\",'1. Ordersheet'!I236)","v":""},{"$f":"IF('1. Ordersheet'!J236=\"\",\"\",'1. Ordersheet'!J236)","v":""},{"$f":"IF('1. Ordersheet'!K236=\"\",\"\",'1. Ordersheet'!K236)","v":""},{"$f":"IF('1. Ordersheet'!L236=\"\",\"\",'1. Ordersheet'!L236)","v":""},{"$f":"IF('1. Ordersheet'!M236=\"\",\"\",'1. Ordersheet'!M236)","v":""},{"$f":"IF('1. Ordersheet'!N236=\"\",\"\",'1. Ordersheet'!N236)","v":""},{"$f":"IF('1. Ordersheet'!O236=\"\",\"\",'1. Ordersheet'!O236)","v":{"$error":"#N/A"}},{"$f":"IF('1. Ordersheet'!P236=\"\",\"\",'1. Ordersheet'!P236)","v":{"$error":"#N/A"}},{"$f":"IF('1. Ordersheet'!Q236=\"\",\"\",'1. Ordersheet'!Q236)","v":""},{"$f":"IF('1. Ordersheet'!R236=\"\",\"\",'1. Ordersheet'!R236)","v":""},{"$f":"IF('1. Ordersheet'!S236=\"\",\"\",'1. Ordersheet'!S236)","v":""},{"$f":"IF('1. Ordersheet'!V236=\"\",\"\",'1. Ordersheet'!V236)","v":""},{"$f":"IF('1. Ordersheet'!W236=\"\",\"\",'1. Ordersheet'!W236)","v":""},{"$f":"IF('1. Ordersheet'!X236=\"\",\"\",'1. Ordersheet'!X236)","v":""},{"$f":"IF('1. Ordersheet'!Y236=\"\",\"\",'1. Ordersheet'!Y236)","v":""},{"$f":"IF('1. Ordersheet'!Z236=\"\",\"\",'1. Ordersheet'!Z236)","v":""},{"$f":"IF('1. Ordersheet'!AA236=\"\",\"\",'1. Ordersheet'!AA236)","v":""},null,{"$f":"IF('1. Ordersheet'!AS236=\"\",\"\",'1. Ordersheet'!AS236)","v":""},{"$f":"IF('1. Ordersheet'!AT236=\"\",\"\",'1. Ordersheet'!AT236)","v":""},null,null,null,null,null,null,null,{"$f":"IF('1. Ordersheet'!AX236=\"\",\"\",'1. Ordersheet'!AX236)","v":""},{"$f":"IF('1. Ordersheet'!AY236=\"\",\"\",'1. Ordersheet'!AY236)","v":""},{"$f":"IF('1. Ordersheet'!AZ236=\"\",\"\",'1. Ordersheet'!AZ236)","v":""},{"$f":"IF('1. Ordersheet'!BA236=\"\",\"\",'1. Ordersheet'!BA236)","v":""},{"$f":"IF('1. Ordersheet'!BC236=\"\",\"\",'1. Ordersheet'!BC236)","v":""},{"$f":"IF('1. Ordersheet'!BD236=\"\",\"\",'1. Ordersheet'!BD236)","v":""},{"$f":"IF('1. Ordersheet'!BE236=\"\",\"\",'1. Ordersheet'!BE236)","v":""},{"$f":"IF('1. Ordersheet'!BF236=\"\",\"\",'1. Ordersheet'!BF236)","v":""},{"$f":"IF('1. Ordersheet'!BG236=\"\",\"\",'1. Ordersheet'!BG236)","v":"ZWO"},{"$f":"IF('1. Ordersheet'!BH236=\"\",\"\",'1. Ordersheet'!BH236)","v":""},{"$f":"IF('1. Ordersheet'!BI236=\"\",\"\",'1. Ordersheet'!BI236)","v":""},{"$f":"IF('1. Ordersheet'!BJ236=\"\",\"\",'1. Ordersheet'!BJ236)","v":""},{"$f":"IF('1. Ordersheet'!BK236=\"\",\"\",'1. Ordersheet'!BK236)","v":""},{"$f":"IF('1. Ordersheet'!BL236=\"\",\"\",'1. Ordersheet'!BL236)","v":""}]
[{"$f":"IF('1. Ordersheet'!F237=\"\",\"\",'1. Ordersheet'!F237)","v":""},{"$f":"IF('1. Ordersheet'!G237=\"\",\"\",'1. Ordersheet'!G237)","v":""},{"$f":"IF('1. Ordersheet'!H237=\"\",\"\",'1. Ordersheet'!H237)","v":""},{"$f":"IF('1. Ordersheet'!I237=\"\",\"\",'1. Ordersheet'!I237)","v":""},{"$f":"IF('1. Ordersheet'!J237=\"\",\"\",'1. Ordersheet'!J237)","v":""},{"$f":"IF('1. Ordersheet'!K237=\"\",\"\",'1. Ordersheet'!K237)","v":""},{"$f":"IF('1. Ordersheet'!L237=\"\",\"\",'1. Ordersheet'!L237)","v":""},{"$f":"IF('1. Ordersheet'!M237=\"\",\"\",'1. Ordersheet'!M237)","v":""},{"$f":"IF('1. Ordersheet'!N237=\"\",\"\",'1. Ordersheet'!N237)","v":""},{"$f":"IF('1. Ordersheet'!O237=\"\",\"\",'1. Ordersheet'!O237)","v":{"$error":"#N/A"}},{"$f":"IF('1. Ordersheet'!P237=\"\",\"\",'1. Ordersheet'!P237)","v":{"$error":"#N/A"}},{"$f":"IF('1. Ordersheet'!Q237=\"\",\"\",'1. Ordersheet'!Q237)","v":""},{"$f":"IF('1. Ordersheet'!R237=\"\",\"\",'1. Ordersheet'!R237)","v":""},{"$f":"IF('1. Ordersheet'!S237=\"\",\"\",'1. Ordersheet'!S237)","v":""},{"$f":"IF('1. Ordersheet'!V237=\"\",\"\",'1. Ordersheet'!V237)","v":""},{"$f":"IF('1. Ordersheet'!W237=\"\",\"\",'1. Ordersheet'!W237)","v":""},{"$f":"IF('1. Ordersheet'!X237=\"\",\"\",'1. Ordersheet'!X237)","v":""},{"$f":"IF('1. Ordersheet'!Y237=\"\",\"\",'1. Ordersheet'!Y237)","v":""},{"$f":"IF('1. Ordersheet'!Z237=\"\",\"\",'1. Ordersheet'!Z237)","v":""},{"$f":"IF('1. Ordersheet'!AA237=\"\",\"\",'1. Ordersheet'!AA237)","v":""},null,{"$f":"IF('1. Ordersheet'!AS237=\"\",\"\",'1. Ordersheet'!AS237)","v":""},{"$f":"IF('1. Ordersheet'!AT237=\"\",\"\",'1. Ordersheet'!AT237)","v":""},null,null,null,null,null,null,null,{"$f":"IF('1. Ordersheet'!AX237=\"\",\"\",'1. Ordersheet'!AX237)","v":""},{"$f":"IF('1. Ordersheet'!AY237=\"\",\"\",'1. Ordersheet'!AY237)","v":""},{"$f":"IF('1. Ordersheet'!AZ237=\"\",\"\",'1. Ordersheet'!AZ237)","v":""},{"$f":"IF('1. Ordersheet'!BA237=\"\",\"\",'1. Ordersheet'!BA237)","v":""},{"$f":"IF('1. Ordersheet'!BC237=\"\",\"\",'1. Ordersheet'!BC237)","v":""},{"$f":"IF('1. Ordersheet'!BD237=\"\",\"\",'1. Ordersheet'!BD237)","v":""},{"$f":"IF('1. Ordersheet'!BE237=\"\",\"\",'1. Ordersheet'!BE237)","v":""},{"$f":"IF('1. Ordersheet'!BF237=\"\",\"\",'1. Ordersheet'!BF237)","v":""},{"$f":"IF('1. Ordersheet'!BG237=\"\",\"\",'1. Ordersheet'!BG237)","v":"ZWO"},{"$f":"IF('1. Ordersheet'!BH237=\"\",\"\",'1. Ordersheet'!BH237)","v":""},{"$f":"IF('1. Ordersheet'!BI237=\"\",\"\",'1. Ordersheet'!BI237)","v":""},{"$f":"IF('1. Ordersheet'!BJ237=\"\",\"\",'1. Ordersheet'!BJ237)","v":""},{"$f":"IF('1. Ordersheet'!BK237=\"\",\"\",'1. Ordersheet'!BK237)","v":""},{"$f":"IF('1. Ordersheet'!BL237=\"\",\"\",'1. Ordersheet'!BL237)","v":""}]
[{"$f":"IF('1. Ordersheet'!F238=\"\",\"\",'1. Ordersheet'!F238)","v":""},{"$f":"IF('1. Ordersheet'!G238=\"\",\"\",'1. Ordersheet'!G238)","v":""},{"$f":"IF('1. Ordersheet'!H238=\"\",\"\",'1. Ordersheet'!H238)","v":""},{"$f":"IF('1. Ordersheet'!I238=\"\",\"\",'1. Ordersheet'!I238)","v":""},{"$f":"IF('1. Ordersheet'!J238=\"\",\"\",'1. Ordersheet'!J238)","v":""},{"$f":"IF('1. Ordersheet'!K238=\"\",\"\",'1. Ordersheet'!K238)","v":""},{"$f":"IF('1. Ordersheet'!L238=\"\",\"\",'1. Ordersheet'!L238)","v":""},{"$f":"IF('1. Ordersheet'!M238=\"\",\"\",'1. Ordersheet'!M238)","v":""},{"$f":"IF('1. Ordersheet'!N238=\"\",\"\",'1. Ordersheet'!N238)","v":""},{"$f":"IF('1. Ordersheet'!O238=\"\",\"\",'1. Ordersheet'!O238)","v":{"$error":"#N/A"}},{"$f":"IF('1. Ordersheet'!P238=\"\",\"\",'1. Ordersheet'!P238)","v":{"$error":"#N/A"}},{"$f":"IF('1. Ordersheet'!Q238=\"\",\"\",'1. Ordersheet'!Q238)","v":""},{"$f":"IF('1. Ordersheet'!R238=\"\",\"\",'1. Ordersheet'!R238)","v":""},{"$f":"IF('1. Ordersheet'!S238=\"\",\"\",'1. Ordersheet'!S238)","v":""},{"$f":"IF('1. Ordersheet'!V238=\"\",\"\",'1. Ordersheet'!V238)","v":""},{"$f":"IF('1. Ordersheet'!W238=\"\",\"\",'1. Ordersheet'!W238)","v":""},{"$f":"IF('1. Ordersheet'!X238=\"\",\"\",'1. Ordersheet'!X238)","v":""},{"$f":"IF('1. Ordersheet'!Y238=\"\",\"\",'1. Ordersheet'!Y238)","v":""},{"$f":"IF('1. Ordersheet'!Z238=\"\",\"\",'1. Ordersheet'!Z238)","v":""},{"$f":"IF('1. Ordersheet'!AA238=\"\",\"\",'1. Ordersheet'!AA238)","v":""},null,{"$f":"IF('1. Ordersheet'!AS238=\"\",\"\",'1. Ordersheet'!AS238)","v":""},{"$f":"IF('1. Ordersheet'!AT238=\"\",\"\",'1. Ordersheet'!AT238)","v":""},null,null,null,null,null,null,null,{"$f":"IF('1. Ordersheet'!AX238=\"\",\"\",'1. Ordersheet'!AX238)","v":""},{"$f":"IF('1. Ordersheet'!AY238=\"\",\"\",'1. Ordersheet'!AY238)","v":""},{"$f":"IF('1. Ordersheet'!AZ238=\"\",\"\",'1. Ordersheet'!AZ238)","v":""},{"$f":"IF('1. Ordersheet'!BA238=\"\",\"\",'1. Ordersheet'!BA238)","v":""},{"$f":"IF('1. Ordersheet'!BC238=\"\",\"\",'1. Ordersheet'!BC238)","v":""},{"$f":"IF('1. Ordersheet'!BD238=\"\",\"\",'1. Ordersheet'!BD238)","v":""},{"$f":"IF('1. Ordersheet'!BE238=\"\",\"\",'1. Ordersheet'!BE238)","v":""},{"$f":"IF('1. Ordersheet'!BF238=\"\",\"\",'1. Ordersheet'!BF238)","v":""},{"$f":"IF('1. Ordersheet'!BG238=\"\",\"\",'1. Ordersheet'!BG238)","v":"ZWO"},{"$f":"IF('1. Ordersheet'!BH238=\"\",\"\",'1. Ordersheet'!BH238)","v":""},{"$f":"IF('1. Ordersheet'!BI238=\"\",\"\",'1. Ordersheet'!BI238)","v":""},{"$f":"IF('1. Ordersheet'!BJ238=\"\",\"\",'1. Ordersheet'!BJ238)","v":""},{"$f":"IF('1. Ordersheet'!BK238=\"\",\"\",'1. Ordersheet'!BK238)","v":""},{"$f":"IF('1. Ordersheet'!BL238=\"\",\"\",'1. Ordersheet'!BL238)","v":""}]
[{"$f":"IF('1. Ordersheet'!F239=\"\",\"\",'1. Ordersheet'!F239)","v":""},{"$f":"IF('1. Ordersheet'!G239=\"\",\"\",'1. Ordersheet'!G239)","v":""},{"$f":"IF('1. Ordersheet'!H239=\"\",\"\",'1. Ordersheet'!H239)","v":""},{"$f":"IF('1. Ordersheet'!I239=\"\",\"\",'1. Ordersheet'!I239)","v":""},{"$f":"IF('1. Ordersheet'!J239=\"\",\"\",'1. Ordersheet'!J239)","v":""},{"$f":"IF('1. Ordersheet'!K239=\"\",\"\",'1. Ordersheet'!K239)","v":""},{"$f":"IF('1. Ordersheet'!L239=\"\",\"\",'1. Ordersheet'!L239)","v":""},{"$f":"IF('1. Ordersheet'!M239=\"\",\"\",'1. Ordersheet'!M239)","v":""},{"$f":"IF('1. Ordersheet'!N239=\"\",\"\",'1. Ordersheet'!N239)","v":""},{"$f":"IF('1. Ordersheet'!O239=\"\",\"\",'1. Ordersheet'!O239)","v":{"$error":"#N/A"}},{"$f":"IF('1. Ordersheet'!P239=\"\",\"\",'1. Ordersheet'!P239)","v":{"$error":"#N/A"}},{"$f":"IF('1. Ordersheet'!Q239=\"\",\"\",'1. Ordersheet'!Q239)","v":""},{"$f":"IF('1. Ordersheet'!R239=\"\",\"\",'1. Ordersheet'!R239)","v":""},{"$f":"IF('1. Ordersheet'!S239=\"\",\"\",'1. Ordersheet'!S239)","v":""},{"$f":"IF('1. Ordersheet'!V239=\"\",\"\",'1. Ordersheet'!V239)","v":""},{"$f":"IF('1. Ordersheet'!W239=\"\",\"\",'1. Ordersheet'!W239)","v":""},{"$f":"IF('1. Ordersheet'!X239=\"\",\"\",'1. Ordersheet'!X239)","v":""},{"$f":"IF('1. Ordersheet'!Y239=\"\",\"\",'1. Ordersheet'!Y239)","v":""},{"$f":"IF('1. Ordersheet'!Z239=\"\",\"\",'1. Ordersheet'!Z239)","v":""},{"$f":"IF('1. Ordersheet'!AA239=\"\",\"\",'1. Ordersheet'!AA239)","v":""},null,{"$f":"IF('1. Ordersheet'!AS239=\"\",\"\",'1. Ordersheet'!AS239)","v":""},{"$f":"IF('1. Ordersheet'!AT239=\"\",\"\",'1. Ordersheet'!AT239)","v":""},null,null,null,null,null,null,null,{"$f":"IF('1. Ordersheet'!AX239=\"\",\"\",'1. Ordersheet'!AX239)","v":""},{"$f":"IF('1. Ordersheet'!AY239=\"\",\"\",'1. Ordersheet'!AY239)","v":""},{"$f":"IF('1. Ordersheet'!AZ239=\"\",\"\",'1. Ordersheet'!AZ239)","v":""},{"$f":"IF('1. Ordersheet'!BA239=\"\",\"\",'1. Ordersheet'!BA239)","v":""},{"$f":"IF('1. Ordersheet'!BC239=\"\",\"\",'1. Ordersheet'!BC239)","v":""},{"$f":"IF('1. Ordersheet'!BD239=\"\",\"\",'1. Ordersheet'!BD239)","v":""},{"$f":"IF('1. Ordersheet'!BE239=\"\",\"\",'1. Ordersheet'!BE239)","v":""},{"$f":"IF('1. Ordersheet'!BF239=\"\",\"\",'1. Ordersheet'!BF239)","v":""},{"$f":"IF('1. Ordersheet'!BG239=\"\",\"\",'1. Ordersheet'!BG239)","v":"ZWO"},{"$f":"IF('1. Ordersheet'!BH239=\"\",\"\",'1. Ordersheet'!BH239)","v":""},{"$f":"IF('1. Ordersheet'!BI239=\"\",\"\",'1. Ordersheet'!BI239)","v":""},{"$f":"IF('1. Ordersheet'!BJ239=\"\",\"\",'1. Ordersheet'!BJ239)","v":""},{"$f":"IF('1. Ordersheet'!BK239=\"\",\"\",'1. Ordersheet'!BK239)","v":""},{"$f":"IF('1. Ordersheet'!BL239=\"\",\"\",'1. Ordersheet'!BL239)","v":""}]
[{"$f":"IF('1. Ordersheet'!F240=\"\",\"\",'1. Ordersheet'!F240)","v":""},{"$f":"IF('1. Ordersheet'!G240=\"\",\"\",'1. Ordersheet'!G240)","v":""},{"$f":"IF('1. Ordersheet'!H240=\"\",\"\",'1. Ordersheet'!H240)","v":""},{"$f":"IF('1. Ordersheet'!I240=\"\",\"\",'1. Ordersheet'!I240)","v":""},{"$f":"IF('1. Ordersheet'!J240=\"\",\"\",'1. Ordersheet'!J240)","v":""},{"$f":"IF('1. Ordersheet'!K240=\"\",\"\",'1. Ordersheet'!K240)","v":""},{"$f":"IF('1. Ordersheet'!L240=\"\",\"\",'1. Ordersheet'!L240)","v":""},{"$f":"IF('1. Ordersheet'!M240=\"\",\"\",'1. Ordersheet'!M240)","v":""},{"$f":"IF('1. Ordersheet'!N240=\"\",\"\",'1. Ordersheet'!N240)","v":""},{"$f":"IF('1. Ordersheet'!O240=\"\",\"\",'1. Ordersheet'!O240)","v":{"$error":"#N/A"}},{"$f":"IF('1. Ordersheet'!P240=\"\",\"\",'1. Ordersheet'!P240)","v":{"$error":"#N/A"}},{"$f":"IF('1. Ordersheet'!Q240=\"\",\"\",'1. Ordersheet'!Q240)","v":""},{"$f":"IF('1. Ordersheet'!R240=\"\",\"\",'1. Ordersheet'!R240)","v":""},{"$f":"IF('1. Ordersheet'!S240=\"\",\"\",'1. Ordersheet'!S240)","v":""},{"$f":"IF('1. Ordersheet'!V240=\"\",\"\",'1. Ordersheet'!V240)","v":""},{"$f":"IF('1. Ordersheet'!W240=\"\",\"\",'1. Ordersheet'!W240)","v":""},{"$f":"IF('1. Ordersheet'!X240=\"\",\"\",'1. Ordersheet'!X240)","v":""},{"$f":"IF('1. Ordersheet'!Y240=\"\",\"\",'1. Ordersheet'!Y240)","v":""},{"$f":"IF('1. Ordersheet'!Z240=\"\",\"\",'1. Ordersheet'!Z240)","v":""},{"$f":"IF('1. Ordersheet'!AA240=\"\",\"\",'1. Ordersheet'!AA240)","v":""},null,{"$f":"IF('1. Ordersheet'!AS240=\"\",\"\",'1. Ordersheet'!AS240)","v":""},{"$f":"IF('1. Ordersheet'!AT240=\"\",\"\",'1. Ordersheet'!AT240)","v":""},null,null,null,null,null,null,null,{"$f":"IF('1. Ordersheet'!AX240=\"\",\"\",'1. Ordersheet'!AX240)","v":""},{"$f":"IF('1. Ordersheet'!AY240=\"\",\"\",'1. Ordersheet'!AY240)","v":""},{"$f":"IF('1. Ordersheet'!AZ240=\"\",\"\",'1. Ordersheet'!AZ240)","v":""},{"$f":"IF('1. Ordersheet'!BA240=\"\",\"\",'1. Ordersheet'!BA240)","v":""},{"$f":"IF('1. Ordersheet'!BC240=\"\",\"\",'1. Ordersheet'!BC240)","v":""},{"$f":"IF('1. Ordersheet'!BD240=\"\",\"\",'1. Ordersheet'!BD240)","v":""},{"$f":"IF('1. Ordersheet'!BE240=\"\",\"\",'1. Ordersheet'!BE240)","v":""},{"$f":"IF('1. Ordersheet'!BF240=\"\",\"\",'1. Ordersheet'!BF240)","v":""},{"$f":"IF('1. Ordersheet'!BG240=\"\",\"\",'1. Ordersheet'!BG240)","v":"ZWO"},{"$f":"IF('1. Ordersheet'!BH240=\"\",\"\",'1. Ordersheet'!BH240)","v":""},{"$f":"IF('1. Ordersheet'!BI240=\"\",\"\",'1. Ordersheet'!BI240)","v":""},{"$f":"IF('1. Ordersheet'!BJ240=\"\",\"\",'1. Ordersheet'!BJ240)","v":""},{"$f":"IF('1. Ordersheet'!BK240=\"\",\"\",'1. Ordersheet'!BK240)","v":""},{"$f":"IF('1. Ordersheet'!BL240=\"\",\"\",'1. Ordersheet'!BL240)","v":""}]
[{"$f":"IF('1. Ordersheet'!F241=\"\",\"\",'1. Ordersheet'!F241)","v":""},{"$f":"IF('1. Ordersheet'!G241=\"\",\"\",'1. Ordersheet'!G241)","v":""},{"$f":"IF('1. Ordersheet'!H241=\"\",\"\",'1. Ordersheet'!H241)","v":""},{"$f":"IF('1. Ordersheet'!I241=\"\",\"\",'1. Ordersheet'!I241)","v":""},{"$f":"IF('1. Ordersheet'!J241=\"\",\"\",'1. Ordersheet'!J241)","v":""},{"$f":"IF('1. Ordersheet'!K241=\"\",\"\",'1. Ordersheet'!K241)","v":""},{"$f":"IF('1. Ordersheet'!L241=\"\",\"\",'1. Ordersheet'!L241)","v":""},{"$f":"IF('1. Ordersheet'!M241=\"\",\"\",'1. Ordersheet'!M241)","v":""},{"$f":"IF('1. Ordersheet'!N241=\"\",\"\",'1. Ordersheet'!N241)","v":""},{"$f":"IF('1. Ordersheet'!O241=\"\",\"\",'1. Ordersheet'!O241)","v":{"$error":"#N/A"}},{"$f":"IF('1. Ordersheet'!P241=\"\",\"\",'1. Ordersheet'!P241)","v":{"$error":"#N/A"}},{"$f":"IF('1. Ordersheet'!Q241=\"\",\"\",'1. Ordersheet'!Q241)","v":""},{"$f":"IF('1. Ordersheet'!R241=\"\",\"\",'1. Ordersheet'!R241)","v":""},{"$f":"IF('1. Ordersheet'!S241=\"\",\"\",'1. Ordersheet'!S241)","v":""},{"$f":"IF('1. Ordersheet'!V241=\"\",\"\",'1. Ordersheet'!V241)","v":""},{"$f":"IF('1. Ordersheet'!W241=\"\",\"\",'1. Ordersheet'!W241)","v":""},{"$f":"IF('1. Ordersheet'!X241=\"\",\"\",'1. Ordersheet'!X241)","v":""},{"$f":"IF('1. Ordersheet'!Y241=\"\",\"\",'1. Ordersheet'!Y241)","v":""},{"$f":"IF('1. Ordersheet'!Z241=\"\",\"\",'1. Ordersheet'!Z241)","v":""},{"$f":"IF('1. Ordersheet'!AA241=\"\",\"\",'1. Ordersheet'!AA241)","v":""},null,{"$f":"IF('1. Ordersheet'!AS241=\"\",\"\",'1. Ordersheet'!AS241)","v":""},{"$f":"IF('1. Ordersheet'!AT241=\"\",\"\",'1. Ordersheet'!AT241)","v":""},null,null,null,null,null,null,null,{"$f":"IF('1. Ordersheet'!AX241=\"\",\"\",'1. Ordersheet'!AX241)","v":""},{"$f":"IF('1. Ordersheet'!AY241=\"\",\"\",'1. Ordersheet'!AY241)","v":""},{"$f":"IF('1. Ordersheet'!AZ241=\"\",\"\",'1. Ordersheet'!AZ241)","v":""},{"$f":"IF('1. Ordersheet'!BA241=\"\",\"\",'1. Ordersheet'!BA241)","v":""},{"$f":"IF('1. Ordersheet'!BC241=\"\",\"\",'1. Ordersheet'!BC241)","v":""},{"$f":"IF('1. Ordersheet'!BD241=\"\",\"\",'1. Ordersheet'!BD241)","v":""},{"$f":"IF('1. Ordersheet'!BE241=\"\",\"\",'1. Ordersheet'!BE241)","v":""},{"$f":"IF('1. Ordersheet'!BF241=\"\",\"\",'1. Ordersheet'!BF241)","v":""},{"$f":"IF('1. Ordersheet'!BG241=\"\",\"\",'1. Ordersheet'!BG241)","v":"ZWO"},{"$f":"IF('1. Ordersheet'!BH241=\"\",\"\",'1. Ordersheet'!BH241)","v":""},{"$f":"IF('1. Ordersheet'!BI241=\"\",\"\",'1. Ordersheet'!BI241)","v":""},{"$f":"IF('1. Ordersheet'!BJ241=\"\",\"\",'1. Ordersheet'!BJ241)","v":""},{"$f":"IF('1. Ordersheet'!BK241=\"\",\"\",'1. Ordersheet'!BK241)","v":""},{"$f":"IF('1. Ordersheet'!BL241=\"\",\"\",'1. Ordersheet'!BL241)","v":""}]
[{"$f":"IF('1. Ordersheet'!F242=\"\",\"\",'1. Ordersheet'!F242)","v":""},{"$f":"IF('1. Ordersheet'!G242=\"\",\"\",'1. Ordersheet'!G242)","v":""},{"$f":"IF('1. Ordersheet'!H242=\"\",\"\",'1. Ordersheet'!H242)","v":""},{"$f":"IF('1. Ordersheet'!I242=\"\",\"\",'1. Ordersheet'!I242)","v":""},{"$f":"IF('1. Ordersheet'!J242=\"\",\"\",'1. Ordersheet'!J242)","v":""},{"$f":"IF('1. Ordersheet'!K242=\"\",\"\",'1. Ordersheet'!K242)","v":""},{"$f":"IF('1. Ordersheet'!L242=\"\",\"\",'1. Ordersheet'!L242)","v":""},{"$f":"IF('1. Ordersheet'!M242=\"\",\"\",'1. Ordersheet'!M242)","v":""},{"$f":"IF('1. Ordersheet'!N242=\"\",\"\",'1. Ordersheet'!N242)","v":""},{"$f":"IF('1. Ordersheet'!O242=\"\",\"\",'1. Ordersheet'!O242)","v":{"$error":"#N/A"}},{"$f":"IF('1. Ordersheet'!P242=\"\",\"\",'1. Ordersheet'!P242)","v":{"$error":"#N/A"}},{"$f":"IF('1. Ordersheet'!Q242=\"\",\"\",'1. Ordersheet'!Q242)","v":""},{"$f":"IF('1. Ordersheet'!R242=\"\",\"\",'1. Ordersheet'!R242)","v":""},{"$f":"IF('1. Ordersheet'!S242=\"\",\"\",'1. Ordersheet'!S242)","v":""},{"$f":"IF('1. Ordersheet'!V242=\"\",\"\",'1. Ordersheet'!V242)","v":""},{"$f":"IF('1. Ordersheet'!W242=\"\",\"\",'1. Ordersheet'!W242)","v":""},{"$f":"IF('1. Ordersheet'!X242=\"\",\"\",'1. Ordersheet'!X242)","v":""},{"$f":"IF('1. Ordersheet'!Y242=\"\",\"\",'1. Ordersheet'!Y242)","v":""},{"$f":"IF('1. Ordersheet'!Z242=\"\",\"\",'1. Ordersheet'!Z242)","v":""},{"$f":"IF('1. Ordersheet'!AA242=\"\",\"\",'1. Ordersheet'!AA242)","v":""},null,{"$f":"IF('1. Ordersheet'!AS242=\"\",\"\",'1. Ordersheet'!AS242)","v":""},{"$f":"IF('1. Ordersheet'!AT242=\"\",\"\",'1. Ordersheet'!AT242)","v":""},null,null,null,null,null,null,null,{"$f":"IF('1. Ordersheet'!AX242=\"\",\"\",'1. Ordersheet'!AX242)","v":""},{"$f":"IF('1. Ordersheet'!AY242=\"\",\"\",'1. Ordersheet'!AY242)","v":""},{"$f":"IF('1. Ordersheet'!AZ242=\"\",\"\",'1. Ordersheet'!AZ242)","v":""},{"$f":"IF('1. Ordersheet'!BA242=\"\",\"\",'1. Ordersheet'!BA242)","v":""},{"$f":"IF('1. Ordersheet'!BC242=\"\",\"\",'1. Ordersheet'!BC242)","v":""},{"$f":"IF('1. Ordersheet'!BD242=\"\",\"\",'1. Ordersheet'!BD242)","v":""},{"$f":"IF('1. Ordersheet'!BE242=\"\",\"\",'1. Ordersheet'!BE242)","v":""},{"$f":"IF('1. Ordersheet'!BF242=\"\",\"\",'1. Ordersheet'!BF242)","v":""},{"$f":"IF('1. Ordersheet'!BG242=\"\",\"\",'1. Ordersheet'!BG242)","v":"ZWO"},{"$f":"IF('1. Ordersheet'!BH242=\"\",\"\",'1. Ordersheet'!BH242)","v":""},{"$f":"IF('1. Ordersheet'!BI242=\"\",\"\",'1. Ordersheet'!BI242)","v":""},{"$f":"IF('1. Ordersheet'!BJ242=\"\",\"\",'1. Ordersheet'!BJ242)","v":""},{"$f":"IF('1. Ordersheet'!BK242=\"\",\"\",'1. Ordersheet'!BK242)","v":""},{"$f":"IF('1. Ordersheet'!BL242=\"\",\"\",'1. Ordersheet'!BL242)","v":""}]
[{"$f":"IF('1. Ordersheet'!F243=\"\",\"\",'1. Ordersheet'!F243)","v":""},{"$f":"IF('1. Ordersheet'!G243=\"\",\"\",'1. Ordersheet'!G243)","v":""},{"$f":"IF('1. Ordersheet'!H243=\"\",\"\",'1. Ordersheet'!H243)","v":""},{"$f":"IF('1. Ordersheet'!I243=\"\",\"\",'1. Ordersheet'!I243)","v":""},{"$f":"IF('1. Ordersheet'!J243=\"\",\"\",'1. Ordersheet'!J243)","v":""},{"$f":"IF('1. Ordersheet'!K243=\"\",\"\",'1. Ordersheet'!K243)","v":""},{"$f":"IF('1. Ordersheet'!L243=\"\",\"\",'1. Ordersheet'!L243)","v":""},{"$f":"IF('1. Ordersheet'!M243=\"\",\"\",'1. Ordersheet'!M243)","v":""},{"$f":"IF('1. Ordersheet'!N243=\"\",\"\",'1. Ordersheet'!N243)","v":""},{"$f":"IF('1. Ordersheet'!O243=\"\",\"\",'1. Ordersheet'!O243)","v":{"$error":"#N/A"}},{"$f":"IF('1. Ordersheet'!P243=\"\",\"\",'1. Ordersheet'!P243)","v":{"$error":"#N/A"}},{"$f":"IF('1. Ordersheet'!Q243=\"\",\"\",'1. Ordersheet'!Q243)","v":""},{"$f":"IF('1. Ordersheet'!R243=\"\",\"\",'1. Ordersheet'!R243)","v":""},{"$f":"IF('1. Ordersheet'!S243=\"\",\"\",'1. Ordersheet'!S243)","v":""},{"$f":"IF('1. Ordersheet'!V243=\"\",\"\",'1. Ordersheet'!V243)","v":""},{"$f":"IF('1. Ordersheet'!W243=\"\",\"\",'1. Ordersheet'!W243)","v":""},{"$f":"IF('1. Ordersheet'!X243=\"\",\"\",'1. Ordersheet'!X243)","v":""},{"$f":"IF('1. Ordersheet'!Y243=\"\",\"\",'1. Ordersheet'!Y243)","v":""},{"$f":"IF('1. Ordersheet'!Z243=\"\",\"\",'1. Ordersheet'!Z243)","v":""},{"$f":"IF('1. Ordersheet'!AA243=\"\",\"\",'1. Ordersheet'!AA243)","v":""},null,{"$f":"IF('1. Ordersheet'!AS243=\"\",\"\",'1. Ordersheet'!AS243)","v":""},{"$f":"IF('1. Ordersheet'!AT243=\"\",\"\",'1. Ordersheet'!AT243)","v":""},null,null,null,null,null,null,null,{"$f":"IF('1. Ordersheet'!AX243=\"\",\"\",'1. Ordersheet'!AX243)","v":""},{"$f":"IF('1. Ordersheet'!AY243=\"\",\"\",'1. Ordersheet'!AY243)","v":""},{"$f":"IF('1. Ordersheet'!AZ243=\"\",\"\",'1. Ordersheet'!AZ243)","v":""},{"$f":"IF('1. Ordersheet'!BA243=\"\",\"\",'1. Ordersheet'!BA243)","v":""},{"$f":"IF('1. Ordersheet'!BC243=\"\",\"\",'1. Ordersheet'!BC243)","v":""},{"$f":"IF('1. Ordersheet'!BD243=\"\",\"\",'1. Ordersheet'!BD243)","v":""},{"$f":"IF('1. Ordersheet'!BE243=\"\",\"\",'1. Ordersheet'!BE243)","v":""},{"$f":"IF('1. Ordersheet'!BF243=\"\",\"\",'1. Ordersheet'!BF243)","v":""},{"$f":"IF('1. Ordersheet'!BG243=\"\",\"\",'1. Ordersheet'!BG243)","v":"ZWO"},{"$f":"IF('1. Ordersheet'!BH243=\"\",\"\",'1. Ordersheet'!BH243)","v":""},{"$f":"IF('1. Ordersheet'!BI243=\"\",\"\",'1. Ordersheet'!BI243)","v":""},{"$f":"IF('1. Ordersheet'!BJ243=\"\",\"\",'1. Ordersheet'!BJ243)","v":""},{"$f":"IF('1. Ordersheet'!BK243=\"\",\"\",'1. Ordersheet'!BK243)","v":""},{"$f":"IF('1. Ordersheet'!BL243=\"\",\"\",'1. Ordersheet'!BL243)","v":""}]
[{"$f":"IF('1. Ordersheet'!F244=\"\",\"\",'1. Ordersheet'!F244)","v":""},{"$f":"IF('1. Ordersheet'!G244=\"\",\"\",'1. Ordersheet'!G244)","v":""},{"$f":"IF('1. Ordersheet'!H244=\"\",\"\",'1. Ordersheet'!H244)","v":""},{"$f":"IF('1. Ordersheet'!I244=\"\",\"\",'1. Ordersheet'!I244)","v":""},{"$f":"IF('1. Ordersheet'!J244=\"\",\"\",'1. Ordersheet'!J244)","v":""},{"$f":"IF('1. Ordersheet'!K244=\"\",\"\",'1. Ordersheet'!K244)","v":""},{"$f":"IF('1. Ordersheet'!L244=\"\",\"\",'1. Ordersheet'!L244)","v":""},{"$f":"IF('1. Ordersheet'!M244=\"\",\"\",'1. Ordersheet'!M244)","v":""},{"$f":"IF('1. Ordersheet'!N244=\"\",\"\",'1. Ordersheet'!N244)","v":""},{"$f":"IF('1. Ordersheet'!O244=\"\",\"\",'1. Ordersheet'!O244)","v":{"$error":"#N/A"}},{"$f":"IF('1. Ordersheet'!P244=\"\",\"\",'1. Ordersheet'!P244)","v":{"$error":"#N/A"}},{"$f":"IF('1. Ordersheet'!Q244=\"\",\"\",'1. Ordersheet'!Q244)","v":""},{"$f":"IF('1. Ordersheet'!R244=\"\",\"\",'1. Ordersheet'!R244)","v":""},{"$f":"IF('1. Ordersheet'!S244=\"\",\"\",'1. Ordersheet'!S244)","v":""},{"$f":"IF('1. Ordersheet'!V244=\"\",\"\",'1. Ordersheet'!V244)","v":""},{"$f":"IF('1. Ordersheet'!W244=\"\",\"\",'1. Ordersheet'!W244)","v":""},{"$f":"IF('1. Ordersheet'!X244=\"\",\"\",'1. Ordersheet'!X244)","v":""},{"$f":"IF('1. Ordersheet'!Y244=\"\",\"\",'1. Ordersheet'!Y244)","v":""},{"$f":"IF('1. Ordersheet'!Z244=\"\",\"\",'1. Ordersheet'!Z244)","v":""},{"$f":"IF('1. Ordersheet'!AA244=\"\",\"\",'1. Ordersheet'!AA244)","v":""},null,{"$f":"IF('1. Ordersheet'!AS244=\"\",\"\",'1. Ordersheet'!AS244)","v":""},{"$f":"IF('1. Ordersheet'!AT244=\"\",\"\",'1. Ordersheet'!AT244)","v":""},null,null,null,null,null,null,null,{"$f":"IF('1. Ordersheet'!AX244=\"\",\"\",'1. Ordersheet'!AX244)","v":""},{"$f":"IF('1. Ordersheet'!AY244=\"\",\"\",'1. Ordersheet'!AY244)","v":""},{"$f":"IF('1. Ordersheet'!AZ244=\"\",\"\",'1. Ordersheet'!AZ244)","v":""},{"$f":"IF('1. Ordersheet'!BA244=\"\",\"\",'1. Ordersheet'!BA244)","v":""},{"$f":"IF('1. Ordersheet'!BC244=\"\",\"\",'1. Ordersheet'!BC244)","v":""},{"$f":"IF('1. Ordersheet'!BD244=\"\",\"\",'1. Ordersheet'!BD244)","v":""},{"$f":"IF('1. Ordersheet'!BE244=\"\",\"\",'1. Ordersheet'!BE244)","v":""},{"$f":"IF('1. Ordersheet'!BF244=\"\",\"\",'1. Ordersheet'!BF244)","v":""},{"$f":"IF('1. Ordersheet'!BG244=\"\",\"\",'1. Ordersheet'!BG244)","v":"ZWO"},{"$f":"IF('1. Ordersheet'!BH244=\"\",\"\",'1. Ordersheet'!BH244)","v":""},{"$f":"IF('1. Ordersheet'!BI244=\"\",\"\",'1. Ordersheet'!BI244)","v":""},{"$f":"IF('1. Ordersheet'!BJ244=\"\",\"\",'1. Ordersheet'!BJ244)","v":""},{"$f":"IF('1. Ordersheet'!BK244=\"\",\"\",'1. Ordersheet'!BK244)","v":""},{"$f":"IF('1. Ordersheet'!BL244=\"\",\"\",'1. Ordersheet'!BL244)","v":""}]
[{"$f":"IF('1. Ordersheet'!F245=\"\",\"\",'1. Ordersheet'!F245)","v":""},{"$f":"IF('1. Ordersheet'!G245=\"\",\"\",'1. Ordersheet'!G245)","v":""},{"$f":"IF('1. Ordersheet'!H245=\"\",\"\",'1. Ordersheet'!H245)","v":""},{"$f":"IF('1. Ordersheet'!I245=\"\",\"\",'1. Ordersheet'!I245)","v":""},{"$f":"IF('1. Ordersheet'!J245=\"\",\"\",'1. Ordersheet'!J245)","v":""},{"$f":"IF('1. Ordersheet'!K245=\"\",\"\",'1. Ordersheet'!K245)","v":""},{"$f":"IF('1. Ordersheet'!L245=\"\",\"\",'1. Ordersheet'!L245)","v":""},{"$f":"IF('1. Ordersheet'!M245=\"\",\"\",'1. Ordersheet'!M245)","v":""},{"$f":"IF('1. Ordersheet'!N245=\"\",\"\",'1. Ordersheet'!N245)","v":""},{"$f":"IF('1. Ordersheet'!O245=\"\",\"\",'1. Ordersheet'!O245)","v":{"$error":"#N/A"}},{"$f":"IF('1. Ordersheet'!P245=\"\",\"\",'1. Ordersheet'!P245)","v":{"$error":"#N/A"}},{"$f":"IF('1. Ordersheet'!Q245=\"\",\"\",'1. Ordersheet'!Q245)","v":""},{"$f":"IF('1. Ordersheet'!R245=\"\",\"\",'1. Ordersheet'!R245)","v":""},{"$f":"IF('1. Ordersheet'!S245=\"\",\"\",'1. Ordersheet'!S245)","v":""},{"$f":"IF('1. Ordersheet'!V245=\"\",\"\",'1. Ordersheet'!V245)","v":""},{"$f":"IF('1. Ordersheet'!W245=\"\",\"\",'1. Ordersheet'!W245)","v":""},{"$f":"IF('1. Ordersheet'!X245=\"\",\"\",'1. Ordersheet'!X245)","v":""},{"$f":"IF('1. Ordersheet'!Y245=\"\",\"\",'1. Ordersheet'!Y245)","v":""},{"$f":"IF('1. Ordersheet'!Z245=\"\",\"\",'1. Ordersheet'!Z245)","v":""},{"$f":"IF('1. Ordersheet'!AA245=\"\",\"\",'1. Ordersheet'!AA245)","v":""},null,{"$f":"IF('1. Ordersheet'!AS245=\"\",\"\",'1. Ordersheet'!AS245)","v":""},{"$f":"IF('1. Ordersheet'!AT245=\"\",\"\",'1. Ordersheet'!AT245)","v":""},null,null,null,null,null,null,null,{"$f":"IF('1. Ordersheet'!AX245=\"\",\"\",'1. Ordersheet'!AX245)","v":""},{"$f":"IF('1. Ordersheet'!AY245=\"\",\"\",'1. Ordersheet'!AY245)","v":""},{"$f":"IF('1. Ordersheet'!AZ245=\"\",\"\",'1. Ordersheet'!AZ245)","v":""},{"$f":"IF('1. Ordersheet'!BA245=\"\",\"\",'1. Ordersheet'!BA245)","v":""},{"$f":"IF('1. Ordersheet'!BC245=\"\",\"\",'1. Ordersheet'!BC245)","v":""},{"$f":"IF('1. Ordersheet'!BD245=\"\",\"\",'1. Ordersheet'!BD245)","v":""},{"$f":"IF('1. Ordersheet'!BE245=\"\",\"\",'1. Ordersheet'!BE245)","v":""},{"$f":"IF('1. Ordersheet'!BF245=\"\",\"\",'1. Ordersheet'!BF245)","v":""},{"$f":"IF('1. Ordersheet'!BG245=\"\",\"\",'1. Ordersheet'!BG245)","v":"ZWO"},{"$f":"IF('1. Ordersheet'!BH245=\"\",\"\",'1. Ordersheet'!BH245)","v":""},{"$f":"IF('1. Ordersheet'!BI245=\"\",\"\",'1. Ordersheet'!BI245)","v":""},{"$f":"IF('1. Ordersheet'!BJ245=\"\",\"\",'1. Ordersheet'!BJ245)","v":""},{"$f":"IF('1. Ordersheet'!BK245=\"\",\"\",'1. Ordersheet'!BK245)","v":""},{"$f":"IF('1. Ordersheet'!BL245=\"\",\"\",'1. Ordersheet'!BL245)","v":""}]
[{"$f":"IF('1. Ordersheet'!F246=\"\",\"\",'1. Ordersheet'!F246)","v":""},{"$f":"IF('1. Ordersheet'!G246=\"\",\"\",'1. Ordersheet'!G246)","v":""},{"$f":"IF('1. Ordersheet'!H246=\"\",\"\",'1. Ordersheet'!H246)","v":""},{"$f":"IF('1. Ordersheet'!I246=\"\",\"\",'1. Ordersheet'!I246)","v":""},{"$f":"IF('1. Ordersheet'!J246=\"\",\"\",'1. Ordersheet'!J246)","v":""},{"$f":"IF('1. Ordersheet'!K246=\"\",\"\",'1. Ordersheet'!K246)","v":""},{"$f":"IF('1. Ordersheet'!L246=\"\",\"\",'1. Ordersheet'!L246)","v":""},{"$f":"IF('1. Ordersheet'!M246=\"\",\"\",'1. Ordersheet'!M246)","v":""},{"$f":"IF('1. Ordersheet'!N246=\"\",\"\",'1. Ordersheet'!N246)","v":""},{"$f":"IF('1. Ordersheet'!O246=\"\",\"\",'1. Ordersheet'!O246)","v":{"$error":"#N/A"}},{"$f":"IF('1. Ordersheet'!P246=\"\",\"\",'1. Ordersheet'!P246)","v":{"$error":"#N/A"}},{"$f":"IF('1. Ordersheet'!Q246=\"\",\"\",'1. Ordersheet'!Q246)","v":""},{"$f":"IF('1. Ordersheet'!R246=\"\",\"\",'1. Ordersheet'!R246)","v":""},{"$f":"IF('1. Ordersheet'!S246=\"\",\"\",'1. Ordersheet'!S246)","v":""},{"$f":"IF('1. Ordersheet'!V246=\"\",\"\",'1. Ordersheet'!V246)","v":""},{"$f":"IF('1. Ordersheet'!W246=\"\",\"\",'1. Ordersheet'!W246)","v":""},{"$f":"IF('1. Ordersheet'!X246=\"\",\"\",'1. Ordersheet'!X246)","v":""},{"$f":"IF('1. Ordersheet'!Y246=\"\",\"\",'1. Ordersheet'!Y246)","v":""},{"$f":"IF('1. Ordersheet'!Z246=\"\",\"\",'1. Ordersheet'!Z246)","v":""},{"$f":"IF('1. Ordersheet'!AA246=\"\",\"\",'1. Ordersheet'!AA246)","v":""},null,{"$f":"IF('1. Ordersheet'!AS246=\"\",\"\",'1. Ordersheet'!AS246)","v":""},{"$f":"IF('1. Ordersheet'!AT246=\"\",\"\",'1. Ordersheet'!AT246)","v":""},null,null,null,null,null,null,null,{"$f":"IF('1. Ordersheet'!AX246=\"\",\"\",'1. Ordersheet'!AX246)","v":""},{"$f":"IF('1. Ordersheet'!AY246=\"\",\"\",'1. Ordersheet'!AY246)","v":""},{"$f":"IF('1. Ordersheet'!AZ246=\"\",\"\",'1. Ordersheet'!AZ246)","v":""},{"$f":"IF('1. Ordersheet'!BA246=\"\",\"\",'1. Ordersheet'!BA246)","v":""},{"$f":"IF('1. Ordersheet'!BC246=\"\",\"\",'1. Ordersheet'!BC246)","v":""},{"$f":"IF('1. Ordersheet'!BD246=\"\",\"\",'1. Ordersheet'!BD246)","v":""},{"$f":"IF('1. Ordersheet'!BE246=\"\",\"\",'1. Ordersheet'!BE246)","v":""},{"$f":"IF('1. Ordersheet'!BF246=\"\",\"\",'1. Ordersheet'!BF246)","v":""},{"$f":"IF('1. Ordersheet'!BG246=\"\",\"\",'1. Ordersheet'!BG246)","v":"ZWO"},{"$f":"IF('1. Ordersheet'!BH246=\"\",\"\",'1. Ordersheet'!BH246)","v":""},{"$f":"IF('1. Ordersheet'!BI246=\"\",\"\",'1. Ordersheet'!BI246)","v":""},{"$f":"IF('1. Ordersheet'!BJ246=\"\",\"\",'1. Ordersheet'!BJ246)","v":""},{"$f":"IF('1. Ordersheet'!BK246=\"\",\"\",'1. Ordersheet'!BK246)","v":""},{"$f":"IF('1. Ordersheet'!BL246=\"\",\"\",'1. Ordersheet'!BL246)","v":""}]
[{"$f":"IF('1. Ordersheet'!F247=\"\",\"\",'1. Ordersheet'!F247)","v":""},{"$f":"IF('1. Ordersheet'!G247=\"\",\"\",'1. Ordersheet'!G247)","v":""},{"$f":"IF('1. Ordersheet'!H247=\"\",\"\",'1. Ordersheet'!H247)","v":""},{"$f":"IF('1. Ordersheet'!I247=\"\",\"\",'1. Ordersheet'!I247)","v":""},{"$f":"IF('1. Ordersheet'!J247=\"\",\"\",'1. Ordersheet'!J247)","v":""},{"$f":"IF('1. Ordersheet'!K247=\"\",\"\",'1. Ordersheet'!K247)","v":""},{"$f":"IF('1. Ordersheet'!L247=\"\",\"\",'1. Ordersheet'!L247)","v":""},{"$f":"IF('1. Ordersheet'!M247=\"\",\"\",'1. Ordersheet'!M247)","v":""},{"$f":"IF('1. Ordersheet'!N247=\"\",\"\",'1. Ordersheet'!N247)","v":""},{"$f":"IF('1. Ordersheet'!O247=\"\",\"\",'1. Ordersheet'!O247)","v":{"$error":"#N/A"}},{"$f":"IF('1. Ordersheet'!P247=\"\",\"\",'1. Ordersheet'!P247)","v":{"$error":"#N/A"}},{"$f":"IF('1. Ordersheet'!Q247=\"\",\"\",'1. Ordersheet'!Q247)","v":""},{"$f":"IF('1. Ordersheet'!R247=\"\",\"\",'1. Ordersheet'!R247)","v":""},{"$f":"IF('1. Ordersheet'!S247=\"\",\"\",'1. Ordersheet'!S247)","v":""},{"$f":"IF('1. Ordersheet'!V247=\"\",\"\",'1. Ordersheet'!V247)","v":""},{"$f":"IF('1. Ordersheet'!W247=\"\",\"\",'1. Ordersheet'!W247)","v":""},{"$f":"IF('1. Ordersheet'!X247=\"\",\"\",'1. Ordersheet'!X247)","v":""},{"$f":"IF('1. Ordersheet'!Y247=\"\",\"\",'1. Ordersheet'!Y247)","v":""},{"$f":"IF('1. Ordersheet'!Z247=\"\",\"\",'1. Ordersheet'!Z247)","v":""},{"$f":"IF('1. Ordersheet'!AA247=\"\",\"\",'1. Ordersheet'!AA247)","v":""},null,{"$f":"IF('1. Ordersheet'!AS247=\"\",\"\",'1. Ordersheet'!AS247)","v":""},{"$f":"IF('1. Ordersheet'!AT247=\"\",\"\",'1. Ordersheet'!AT247)","v":""},null,null,null,null,null,null,null,{"$f":"IF('1. Ordersheet'!AX247=\"\",\"\",'1. Ordersheet'!AX247)","v":""},{"$f":"IF('1. Ordersheet'!AY247=\"\",\"\",'1. Ordersheet'!AY247)","v":""},{"$f":"IF('1. Ordersheet'!AZ247=\"\",\"\",'1. Ordersheet'!AZ247)","v":""},{"$f":"IF('1. Ordersheet'!BA247=\"\",\"\",'1. Ordersheet'!BA247)","v":""},{"$f":"IF('1. Ordersheet'!BC247=\"\",\"\",'1. Ordersheet'!BC247)","v":""},{"$f":"IF('1. Ordersheet'!BD247=\"\",\"\",'1. Ordersheet'!BD247)","v":""},{"$f":"IF('1. Ordersheet'!BE247=\"\",\"\",'1. Ordersheet'!BE247)","v":""},{"$f":"IF('1. Ordersheet'!BF247=\"\",\"\",'1. Ordersheet'!BF247)","v":""},{"$f":"IF('1. Ordersheet'!BG247=\"\",\"\",'1. Ordersheet'!BG247)","v":"ZWO"},{"$f":"IF('1. Ordersheet'!BH247=\"\",\"\",'1. Ordersheet'!BH247)","v":""},{"$f":"IF('1. Ordersheet'!BI247=\"\",\"\",'1. Ordersheet'!BI247)","v":""},{"$f":"IF('1. Ordersheet'!BJ247=\"\",\"\",'1. Ordersheet'!BJ247)","v":""},{"$f":"IF('1. Ordersheet'!BK247=\"\",\"\",'1. Ordersheet'!BK247)","v":""},{"$f":"IF('1. Ordersheet'!BL247=\"\",\"\",'1. Ordersheet'!BL247)","v":""}]
[{"$f":"IF('1. Ordersheet'!F248=\"\",\"\",'1. Ordersheet'!F248)","v":""},{"$f":"IF('1. Ordersheet'!G248=\"\",\"\",'1. Ordersheet'!G248)","v":""},{"$f":"IF('1. Ordersheet'!H248=\"\",\"\",'1. Ordersheet'!H248)","v":""},{"$f":"IF('1. Ordersheet'!I248=\"\",\"\",'1. Ordersheet'!I248)","v":""},{"$f":"IF('1. Ordersheet'!J248=\"\",\"\",'1. Ordersheet'!J248)","v":""},{"$f":"IF('1. Ordersheet'!K248=\"\",\"\",'1. Ordersheet'!K248)","v":""},{"$f":"IF('1. Ordersheet'!L248=\"\",\"\",'1. Ordersheet'!L248)","v":""},{"$f":"IF('1. Ordersheet'!M248=\"\",\"\",'1. Ordersheet'!M248)","v":""},{"$f":"IF('1. Ordersheet'!N248=\"\",\"\",'1. Ordersheet'!N248)","v":""},{"$f":"IF('1. Ordersheet'!O248=\"\",\"\",'1. Ordersheet'!O248)","v":{"$error":"#N/A"}},{"$f":"IF('1. Ordersheet'!P248=\"\",\"\",'1. Ordersheet'!P248)","v":{"$error":"#N/A"}},{"$f":"IF('1. Ordersheet'!Q248=\"\",\"\",'1. Ordersheet'!Q248)","v":""},{"$f":"IF('1. Ordersheet'!R248=\"\",\"\",'1. Ordersheet'!R248)","v":""},{"$f":"IF('1. Ordersheet'!S248=\"\",\"\",'1. Ordersheet'!S248)","v":""},{"$f":"IF('1. Ordersheet'!V248=\"\",\"\",'1. Ordersheet'!V248)","v":""},{"$f":"IF('1. Ordersheet'!W248=\"\",\"\",'1. Ordersheet'!W248)","v":""},{"$f":"IF('1. Ordersheet'!X248=\"\",\"\",'1. Ordersheet'!X248)","v":""},{"$f":"IF('1. Ordersheet'!Y248=\"\",\"\",'1. Ordersheet'!Y248)","v":""},{"$f":"IF('1. Ordersheet'!Z248=\"\",\"\",'1. Ordersheet'!Z248)","v":""},{"$f":"IF('1. Ordersheet'!AA248=\"\",\"\",'1. Ordersheet'!AA248)","v":""},null,{"$f":"IF('1. Ordersheet'!AS248=\"\",\"\",'1. Ordersheet'!AS248)","v":""},{"$f":"IF('1. Ordersheet'!AT248=\"\",\"\",'1. Ordersheet'!AT248)","v":""},null,null,null,null,null,null,null,{"$f":"IF('1. Ordersheet'!AX248=\"\",\"\",'1. Ordersheet'!AX248)","v":""},{"$f":"IF('1. Ordersheet'!AY248=\"\",\"\",'1. Ordersheet'!AY248)","v":""},{"$f":"IF('1. Ordersheet'!AZ248=\"\",\"\",'1. Ordersheet'!AZ248)","v":""},{"$f":"IF('1. Ordersheet'!BA248=\"\",\"\",'1. Ordersheet'!BA248)","v":""},{"$f":"IF('1. Ordersheet'!BC248=\"\",\"\",'1. Ordersheet'!BC248)","v":""},{"$f":"IF('1. Ordersheet'!BD248=\"\",\"\",'1. Ordersheet'!BD248)","v":""},{"$f":"IF('1. Ordersheet'!BE248=\"\",\"\",'1. Ordersheet'!BE248)","v":""},{"$f":"IF('1. Ordersheet'!BF248=\"\",\"\",'1. Ordersheet'!BF248)","v":""},{"$f":"IF('1. Ordersheet'!BG248=\"\",\"\",'1. Ordersheet'!BG248)","v":"ZWO"},{"$f":"IF('1. Ordersheet'!BH248=\"\",\"\",'1. Ordersheet'!BH248)","v":""},{"$f":"IF('1. Ordersheet'!BI248=\"\",\"\",'1. Ordersheet'!BI248)","v":""},{"$f":"IF('1. Ordersheet'!BJ248=\"\",\"\",'1. Ordersheet'!BJ248)","v":""},{"$f":"IF('1. Ordersheet'!BK248=\"\",\"\",'1. Ordersheet'!BK248)","v":""},{"$f":"IF('1. Ordersheet'!BL248=\"\",\"\",'1. Ordersheet'!BL248)","v":""}]
[{"$f":"IF('1. Ordersheet'!F249=\"\",\"\",'1. Ordersheet'!F249)","v":""},{"$f":"IF('1. Ordersheet'!G249=\"\",\"\",'1. Ordersheet'!G249)","v":""},{"$f":"IF('1. Ordersheet'!H249=\"\",\"\",'1. Ordersheet'!H249)","v":""},{"$f":"IF('1. Ordersheet'!I249=\"\",\"\",'1. Ordersheet'!I249)","v":""},{"$f":"IF('1. Ordersheet'!J249=\"\",\"\",'1. Ordersheet'!J249)","v":""},{"$f":"IF('1. Ordersheet'!K249=\"\",\"\",'1. Ordersheet'!K249)","v":""},{"$f":"IF('1. Ordersheet'!L249=\"\",\"\",'1. Ordersheet'!L249)","v":""},{"$f":"IF('1. Ordersheet'!M249=\"\",\"\",'1. Ordersheet'!M249)","v":""},{"$f":"IF('1. Ordersheet'!N249=\"\",\"\",'1. Ordersheet'!N249)","v":""},{"$f":"IF('1. Ordersheet'!O249=\"\",\"\",'1. Ordersheet'!O249)","v":{"$error":"#N/A"}},{"$f":"IF('1. Ordersheet'!P249=\"\",\"\",'1. Ordersheet'!P249)","v":{"$error":"#N/A"}},{"$f":"IF('1. Ordersheet'!Q249=\"\",\"\",'1. Ordersheet'!Q249)","v":""},{"$f":"IF('1. Ordersheet'!R249=\"\",\"\",'1. Ordersheet'!R249)","v":""},{"$f":"IF('1. Ordersheet'!S249=\"\",\"\",'1. Ordersheet'!S249)","v":""},{"$f":"IF('1. Ordersheet'!V249=\"\",\"\",'1. Ordersheet'!V249)","v":""},{"$f":"IF('1. Ordersheet'!W249=\"\",\"\",'1. Ordersheet'!W249)","v":""},{"$f":"IF('1. Ordersheet'!X249=\"\",\"\",'1. Ordersheet'!X249)","v":""},{"$f":"IF('1. Ordersheet'!Y249=\"\",\"\",'1. Ordersheet'!Y249)","v":""},{"$f":"IF('1. Ordersheet'!Z249=\"\",\"\",'1. Ordersheet'!Z249)","v":""},{"$f":"IF('1. Ordersheet'!AA249=\"\",\"\",'1. Ordersheet'!AA249)","v":""},null,{"$f":"IF('1. Ordersheet'!AS249=\"\",\"\",'1. Ordersheet'!AS249)","v":""},{"$f":"IF('1. Ordersheet'!AT249=\"\",\"\",'1. Ordersheet'!AT249)","v":""},null,null,null,null,null,null,null,{"$f":"IF('1. Ordersheet'!AX249=\"\",\"\",'1. Ordersheet'!AX249)","v":""},{"$f":"IF('1. Ordersheet'!AY249=\"\",\"\",'1. Ordersheet'!AY249)","v":""},{"$f":"IF('1. Ordersheet'!AZ249=\"\",\"\",'1. Ordersheet'!AZ249)","v":""},{"$f":"IF('1. Ordersheet'!BA249=\"\",\"\",'1. Ordersheet'!BA249)","v":""},{"$f":"IF('1. Ordersheet'!BC249=\"\",\"\",'1. Ordersheet'!BC249)","v":""},{"$f":"IF('1. Ordersheet'!BD249=\"\",\"\",'1. Ordersheet'!BD249)","v":""},{"$f":"IF('1. Ordersheet'!BE249=\"\",\"\",'1. Ordersheet'!BE249)","v":""},{"$f":"IF('1. Ordersheet'!BF249=\"\",\"\",'1. Ordersheet'!BF249)","v":""},{"$f":"IF('1. Ordersheet'!BG249=\"\",\"\",'1. Ordersheet'!BG249)","v":"ZWO"},{"$f":"IF('1. Ordersheet'!BH249=\"\",\"\",'1. Ordersheet'!BH249)","v":""},{"$f":"IF('1. Ordersheet'!BI249=\"\",\"\",'1. Ordersheet'!BI249)","v":""},{"$f":"IF('1. Ordersheet'!BJ249=\"\",\"\",'1. Ordersheet'!BJ249)","v":""},{"$f":"IF('1. Ordersheet'!BK249=\"\",\"\",'1. Ordersheet'!BK249)","v":""},{"$f":"IF('1. Ordersheet'!BL249=\"\",\"\",'1. Ordersheet'!BL249)","v":""}]
[{"$f":"IF('1. Ordersheet'!F250=\"\",\"\",'1. Ordersheet'!F250)","v":""},{"$f":"IF('1. Ordersheet'!G250=\"\",\"\",'1. Ordersheet'!G250)","v":""},{"$f":"IF('1. Ordersheet'!H250=\"\",\"\",'1. Ordersheet'!H250)","v":""},{"$f":"IF('1. Ordersheet'!I250=\"\",\"\",'1. Ordersheet'!I250)","v":""},{"$f":"IF('1. Ordersheet'!J250=\"\",\"\",'1. Ordersheet'!J250)","v":""},{"$f":"IF('1. Ordersheet'!K250=\"\",\"\",'1. Ordersheet'!K250)","v":""},{"$f":"IF('1. Ordersheet'!L250=\"\",\"\",'1. Ordersheet'!L250)","v":""},{"$f":"IF('1. Ordersheet'!M250=\"\",\"\",'1. Ordersheet'!M250)","v":""},{"$f":"IF('1. Ordersheet'!N250=\"\",\"\",'1. Ordersheet'!N250)","v":""},{"$f":"IF('1. Ordersheet'!O250=\"\",\"\",'1. Ordersheet'!O250)","v":{"$error":"#N/A"}},{"$f":"IF('1. Ordersheet'!P250=\"\",\"\",'1. Ordersheet'!P250)","v":{"$error":"#N/A"}},{"$f":"IF('1. Ordersheet'!Q250=\"\",\"\",'1. Ordersheet'!Q250)","v":""},{"$f":"IF('1. Ordersheet'!R250=\"\",\"\",'1. Ordersheet'!R250)","v":""},{"$f":"IF('1. Ordersheet'!S250=\"\",\"\",'1. Ordersheet'!S250)","v":""},{"$f":"IF('1. Ordersheet'!V250=\"\",\"\",'1. Ordersheet'!V250)","v":""},{"$f":"IF('1. Ordersheet'!W250=\"\",\"\",'1. Ordersheet'!W250)","v":""},{"$f":"IF('1. Ordersheet'!X250=\"\",\"\",'1. Ordersheet'!X250)","v":""},{"$f":"IF('1. Ordersheet'!Y250=\"\",\"\",'1. Ordersheet'!Y250)","v":""},{"$f":"IF('1. Ordersheet'!Z250=\"\",\"\",'1. Ordersheet'!Z250)","v":""},{"$f":"IF('1. Ordersheet'!AA250=\"\",\"\",'1. Ordersheet'!AA250)","v":""},null,{"$f":"IF('1. Ordersheet'!AS250=\"\",\"\",'1. Ordersheet'!AS250)","v":""},{"$f":"IF('1. Ordersheet'!AT250=\"\",\"\",'1. Ordersheet'!AT250)","v":""},null,null,null,null,null,null,null,{"$f":"IF('1. Ordersheet'!AX250=\"\",\"\",'1. Ordersheet'!AX250)","v":""},{"$f":"IF('1. Ordersheet'!AY250=\"\",\"\",'1. Ordersheet'!AY250)","v":""},{"$f":"IF('1. Ordersheet'!AZ250=\"\",\"\",'1. Ordersheet'!AZ250)","v":""},{"$f":"IF('1. Ordersheet'!BA250=\"\",\"\",'1. Ordersheet'!BA250)","v":""},{"$f":"IF('1. Ordersheet'!BC250=\"\",\"\",'1. Ordersheet'!BC250)","v":""},{"$f":"IF('1. Ordersheet'!BD250=\"\",\"\",'1. Ordersheet'!BD250)","v":""},{"$f":"IF('1. Ordersheet'!BE250=\"\",\"\",'1. Ordersheet'!BE250)","v":""},{"$f":"IF('1. Ordersheet'!BF250=\"\",\"\",'1. Ordersheet'!BF250)","v":""},{"$f":"IF('1. Ordersheet'!BG250=\"\",\"\",'1. Ordersheet'!BG250)","v":"ZWO"},{"$f":"IF('1. Ordersheet'!BH250=\"\",\"\",'1. Ordersheet'!BH250)","v":""},{"$f":"IF('1. Ordersheet'!BI250=\"\",\"\",'1. Ordersheet'!BI250)","v":""},{"$f":"IF('1. Ordersheet'!BJ250=\"\",\"\",'1. Ordersheet'!BJ250)","v":""},{"$f":"IF('1. Ordersheet'!BK250=\"\",\"\",'1. Ordersheet'!BK250)","v":""},{"$f":"IF('1. Ordersheet'!BL250=\"\",\"\",'1. Ordersheet'!BL250)","v":""}]
[{"$f":"IF('1. Ordersheet'!F251=\"\",\"\",'1. Ordersheet'!F251)","v":""},{"$f":"IF('1. Ordersheet'!G251=\"\",\"\",'1. Ordersheet'!G251)","v":""},{"$f":"IF('1. Ordersheet'!H251=\"\",\"\",'1. Ordersheet'!H251)","v":""},{"$f":"IF('1. Ordersheet'!I251=\"\",\"\",'1. Ordersheet'!I251)","v":""},{"$f":"IF('1. Ordersheet'!J251=\"\",\"\",'1. Ordersheet'!J251)","v":""},{"$f":"IF('1. Ordersheet'!K251=\"\",\"\",'1. Ordersheet'!K251)","v":""},{"$f":"IF('1. Ordersheet'!L251=\"\",\"\",'1. Ordersheet'!L251)","v":""},{"$f":"IF('1. Ordersheet'!M251=\"\",\"\",'1. Ordersheet'!M251)","v":""},{"$f":"IF('1. Ordersheet'!N251=\"\",\"\",'1. Ordersheet'!N251)","v":""},{"$f":"IF('1. Ordersheet'!O251=\"\",\"\",'1. Ordersheet'!O251)","v":{"$error":"#N/A"}},{"$f":"IF('1. Ordersheet'!P251=\"\",\"\",'1. Ordersheet'!P251)","v":{"$error":"#N/A"}},{"$f":"IF('1. Ordersheet'!Q251=\"\",\"\",'1. Ordersheet'!Q251)","v":""},{"$f":"IF('1. Ordersheet'!R251=\"\",\"\",'1. Ordersheet'!R251)","v":""},{"$f":"IF('1. Ordersheet'!S251=\"\",\"\",'1. Ordersheet'!S251)","v":""},{"$f":"IF('1. Ordersheet'!V251=\"\",\"\",'1. Ordersheet'!V251)","v":""},{"$f":"IF('1. Ordersheet'!W251=\"\",\"\",'1. Ordersheet'!W251)","v":""},{"$f":"IF('1. Ordersheet'!X251=\"\",\"\",'1. Ordersheet'!X251)","v":""},{"$f":"IF('1. Ordersheet'!Y251=\"\",\"\",'1. Ordersheet'!Y251)","v":""},{"$f":"IF('1. Ordersheet'!Z251=\"\",\"\",'1. Ordersheet'!Z251)","v":""},{"$f":"IF('1. Ordersheet'!AA251=\"\",\"\",'1. Ordersheet'!AA251)","v":""},null,{"$f":"IF('1. Ordersheet'!AS251=\"\",\"\",'1. Ordersheet'!AS251)","v":""},{"$f":"IF('1. Ordersheet'!AT251=\"\",\"\",'1. Ordersheet'!AT251)","v":""},null,null,null,null,null,null,null,{"$f":"IF('1. Ordersheet'!AX251=\"\",\"\",'1. Ordersheet'!AX251)","v":""},{"$f":"IF('1. Ordersheet'!AY251=\"\",\"\",'1. Ordersheet'!AY251)","v":""},{"$f":"IF('1. Ordersheet'!AZ251=\"\",\"\",'1. Ordersheet'!AZ251)","v":""},{"$f":"IF('1. Ordersheet'!BA251=\"\",\"\",'1. Ordersheet'!BA251)","v":""},{"$f":"IF('1. Ordersheet'!BC251=\"\",\"\",'1. Ordersheet'!BC251)","v":""},{"$f":"IF('1. Ordersheet'!BD251=\"\",\"\",'1. Ordersheet'!BD251)","v":""},{"$f":"IF('1. Ordersheet'!BE251=\"\",\"\",'1. Ordersheet'!BE251)","v":""},{"$f":"IF('1. Ordersheet'!BF251=\"\",\"\",'1. Ordersheet'!BF251)","v":""},{"$f":"IF('1. Ordersheet'!BG251=\"\",\"\",'1. Ordersheet'!BG251)","v":"ZWO"},{"$f":"IF('1. Ordersheet'!BH251=\"\",\"\",'1. Ordersheet'!BH251)","v":""},{"$f":"IF('1. Ordersheet'!BI251=\"\",\"\",'1. Ordersheet'!BI251)","v":""},{"$f":"IF('1. Ordersheet'!BJ251=\"\",\"\",'1. Ordersheet'!BJ251)","v":""},{"$f":"IF('1. Ordersheet'!BK251=\"\",\"\",'1. Ordersheet'!BK251)","v":""},{"$f":"IF('1. Ordersheet'!BL251=\"\",\"\",'1. Ordersheet'!BL251)","v":""}]
[{"$f":"IF('1. Ordersheet'!F252=\"\",\"\",'1. Ordersheet'!F252)","v":""},{"$f":"IF('1. Ordersheet'!G252=\"\",\"\",'1. Ordersheet'!G252)","v":""},{"$f":"IF('1. Ordersheet'!H252=\"\",\"\",'1. Ordersheet'!H252)","v":""},{"$f":"IF('1. Ordersheet'!I252=\"\",\"\",'1. Ordersheet'!I252)","v":""},{"$f":"IF('1. Ordersheet'!J252=\"\",\"\",'1. Ordersheet'!J252)","v":""},{"$f":"IF('1. Ordersheet'!K252=\"\",\"\",'1. Ordersheet'!K252)","v":""},{"$f":"IF('1. Ordersheet'!L252=\"\",\"\",'1. Ordersheet'!L252)","v":""},{"$f":"IF('1. Ordersheet'!M252=\"\",\"\",'1. Ordersheet'!M252)","v":""},{"$f":"IF('1. Ordersheet'!N252=\"\",\"\",'1. Ordersheet'!N252)","v":""},{"$f":"IF('1. Ordersheet'!O252=\"\",\"\",'1. Ordersheet'!O252)","v":{"$error":"#N/A"}},{"$f":"IF('1. Ordersheet'!P252=\"\",\"\",'1. Ordersheet'!P252)","v":{"$error":"#N/A"}},{"$f":"IF('1. Ordersheet'!Q252=\"\",\"\",'1. Ordersheet'!Q252)","v":""},{"$f":"IF('1. Ordersheet'!R252=\"\",\"\",'1. Ordersheet'!R252)","v":""},{"$f":"IF('1. Ordersheet'!S252=\"\",\"\",'1. Ordersheet'!S252)","v":""},{"$f":"IF('1. Ordersheet'!V252=\"\",\"\",'1. Ordersheet'!V252)","v":""},{"$f":"IF('1. Ordersheet'!W252=\"\",\"\",'1. Ordersheet'!W252)","v":""},{"$f":"IF('1. Ordersheet'!X252=\"\",\"\",'1. Ordersheet'!X252)","v":""},{"$f":"IF('1. Ordersheet'!Y252=\"\",\"\",'1. Ordersheet'!Y252)","v":""},{"$f":"IF('1. Ordersheet'!Z252=\"\",\"\",'1. Ordersheet'!Z252)","v":""},{"$f":"IF('1. Ordersheet'!AA252=\"\",\"\",'1. Ordersheet'!AA252)","v":""},null,{"$f":"IF('1. Ordersheet'!AS252=\"\",\"\",'1. Ordersheet'!AS252)","v":""},{"$f":"IF('1. Ordersheet'!AT252=\"\",\"\",'1. Ordersheet'!AT252)","v":""},null,null,null,null,null,null,null,{"$f":"IF('1. Ordersheet'!AX252=\"\",\"\",'1. Ordersheet'!AX252)","v":""},{"$f":"IF('1. Ordersheet'!AY252=\"\",\"\",'1. Ordersheet'!AY252)","v":""},{"$f":"IF('1. Ordersheet'!AZ252=\"\",\"\",'1. Ordersheet'!AZ252)","v":""},{"$f":"IF('1. Ordersheet'!BA252=\"\",\"\",'1. Ordersheet'!BA252)","v":""},{"$f":"IF('1. Ordersheet'!BC252=\"\",\"\",'1. Ordersheet'!BC252)","v":""},{"$f":"IF('1. Ordersheet'!BD252=\"\",\"\",'1. Ordersheet'!BD252)","v":""},{"$f":"IF('1. Ordersheet'!BE252=\"\",\"\",'1. Ordersheet'!BE252)","v":""},{"$f":"IF('1. Ordersheet'!BF252=\"\",\"\",'1. Ordersheet'!BF252)","v":""},{"$f":"IF('1. Ordersheet'!BG252=\"\",\"\",'1. Ordersheet'!BG252)","v":"ZWO"},{"$f":"IF('1. Ordersheet'!BH252=\"\",\"\",'1. Ordersheet'!BH252)","v":""},{"$f":"IF('1. Ordersheet'!BI252=\"\",\"\",'1. Ordersheet'!BI252)","v":""},{"$f":"IF('1. Ordersheet'!BJ252=\"\",\"\",'1. Ordersheet'!BJ252)","v":""},{"$f":"IF('1. Ordersheet'!BK252=\"\",\"\",'1. Ordersheet'!BK252)","v":""},{"$f":"IF('1. Ordersheet'!BL252=\"\",\"\",'1. Ordersheet'!BL252)","v":""}]
[{"$f":"IF('1. Ordersheet'!F253=\"\",\"\",'1. Ordersheet'!F253)","v":""},{"$f":"IF('1. Ordersheet'!G253=\"\",\"\",'1. Ordersheet'!G253)","v":""},{"$f":"IF('1. Ordersheet'!H253=\"\",\"\",'1. Ordersheet'!H253)","v":""},{"$f":"IF('1. Ordersheet'!I253=\"\",\"\",'1. Ordersheet'!I253)","v":""},{"$f":"IF('1. Ordersheet'!J253=\"\",\"\",'1. Ordersheet'!J253)","v":""},{"$f":"IF('1. Ordersheet'!K253=\"\",\"\",'1. Ordersheet'!K253)","v":""},{"$f":"IF('1. Ordersheet'!L253=\"\",\"\",'1. Ordersheet'!L253)","v":""},{"$f":"IF('1. Ordersheet'!M253=\"\",\"\",'1. Ordersheet'!M253)","v":""},{"$f":"IF('1. Ordersheet'!N253=\"\",\"\",'1. Ordersheet'!N253)","v":""},{"$f":"IF('1. Ordersheet'!O253=\"\",\"\",'1. Ordersheet'!O253)","v":{"$error":"#N/A"}},{"$f":"IF('1. Ordersheet'!P253=\"\",\"\",'1. Ordersheet'!P253)","v":{"$error":"#N/A"}},{"$f":"IF('1. Ordersheet'!Q253=\"\",\"\",'1. Ordersheet'!Q253)","v":""},{"$f":"IF('1. Ordersheet'!R253=\"\",\"\",'1. Ordersheet'!R253)","v":""},{"$f":"IF('1. Ordersheet'!S253=\"\",\"\",'1. Ordersheet'!S253)","v":""},{"$f":"IF('1. Ordersheet'!V253=\"\",\"\",'1. Ordersheet'!V253)","v":""},{"$f":"IF('1. Ordersheet'!W253=\"\",\"\",'1. Ordersheet'!W253)","v":""},{"$f":"IF('1. Ordersheet'!X253=\"\",\"\",'1. Ordersheet'!X253)","v":""},{"$f":"IF('1. Ordersheet'!Y253=\"\",\"\",'1. Ordersheet'!Y253)","v":""},{"$f":"IF('1. Ordersheet'!Z253=\"\",\"\",'1. Ordersheet'!Z253)","v":""},{"$f":"IF('1. Ordersheet'!AA253=\"\",\"\",'1. Ordersheet'!AA253)","v":""},null,{"$f":"IF('1. Ordersheet'!AS253=\"\",\"\",'1. Ordersheet'!AS253)","v":""},{"$f":"IF('1. Ordersheet'!AT253=\"\",\"\",'1. Ordersheet'!AT253)","v":""},null,null,null,null,null,null,null,{"$f":"IF('1. Ordersheet'!AX253=\"\",\"\",'1. Ordersheet'!AX253)","v":""},{"$f":"IF('1. Ordersheet'!AY253=\"\",\"\",'1. Ordersheet'!AY253)","v":""},{"$f":"IF('1. Ordersheet'!AZ253=\"\",\"\",'1. Ordersheet'!AZ253)","v":""},{"$f":"IF('1. Ordersheet'!BA253=\"\",\"\",'1. Ordersheet'!BA253)","v":""},{"$f":"IF('1. Ordersheet'!BC253=\"\",\"\",'1. Ordersheet'!BC253)","v":""},{"$f":"IF('1. Ordersheet'!BD253=\"\",\"\",'1. Ordersheet'!BD253)","v":""},{"$f":"IF('1. Ordersheet'!BE253=\"\",\"\",'1. Ordersheet'!BE253)","v":""},{"$f":"IF('1. Ordersheet'!BF253=\"\",\"\",'1. Ordersheet'!BF253)","v":""},{"$f":"IF('1. Ordersheet'!BG253=\"\",\"\",'1. Ordersheet'!BG253)","v":"ZWO"},{"$f":"IF('1. Ordersheet'!BH253=\"\",\"\",'1. Ordersheet'!BH253)","v":""},{"$f":"IF('1. Ordersheet'!BI253=\"\",\"\",'1. Ordersheet'!BI253)","v":""},{"$f":"IF('1. Ordersheet'!BJ253=\"\",\"\",'1. Ordersheet'!BJ253)","v":""},{"$f":"IF('1. Ordersheet'!BK253=\"\",\"\",'1. Ordersheet'!BK253)","v":""},{"$f":"IF('1. Ordersheet'!BL253=\"\",\"\",'1. Ordersheet'!BL253)","v":""}]
[{"$f":"IF('1. Ordersheet'!F254=\"\",\"\",'1. Ordersheet'!F254)","v":""},{"$f":"IF('1. Ordersheet'!G254=\"\",\"\",'1. Ordersheet'!G254)","v":""},{"$f":"IF('1. Ordersheet'!H254=\"\",\"\",'1. Ordersheet'!H254)","v":""},{"$f":"IF('1. Ordersheet'!I254=\"\",\"\",'1. Ordersheet'!I254)","v":""},{"$f":"IF('1. Ordersheet'!J254=\"\",\"\",'1. Ordersheet'!J254)","v":""},{"$f":"IF('1. Ordersheet'!K254=\"\",\"\",'1. Ordersheet'!K254)","v":""},{"$f":"IF('1. Ordersheet'!L254=\"\",\"\",'1. Ordersheet'!L254)","v":""},{"$f":"IF('1. Ordersheet'!M254=\"\",\"\",'1. Ordersheet'!M254)","v":""},{"$f":"IF('1. Ordersheet'!N254=\"\",\"\",'1. Ordersheet'!N254)","v":""},{"$f":"IF('1. Ordersheet'!O254=\"\",\"\",'1. Ordersheet'!O254)","v":{"$error":"#N/A"}},{"$f":"IF('1. Ordersheet'!P254=\"\",\"\",'1. Ordersheet'!P254)","v":{"$error":"#N/A"}},{"$f":"IF('1. Ordersheet'!Q254=\"\",\"\",'1. Ordersheet'!Q254)","v":""},{"$f":"IF('1. Ordersheet'!R254=\"\",\"\",'1. Ordersheet'!R254)","v":""},{"$f":"IF('1. Ordersheet'!S254=\"\",\"\",'1. Ordersheet'!S254)","v":""},{"$f":"IF('1. Ordersheet'!V254=\"\",\"\",'1. Ordersheet'!V254)","v":""},{"$f":"IF('1. Ordersheet'!W254=\"\",\"\",'1. Ordersheet'!W254)","v":""},{"$f":"IF('1. Ordersheet'!X254=\"\",\"\",'1. Ordersheet'!X254)","v":""},{"$f":"IF('1. Ordersheet'!Y254=\"\",\"\",'1. Ordersheet'!Y254)","v":""},{"$f":"IF('1. Ordersheet'!Z254=\"\",\"\",'1. Ordersheet'!Z254)","v":""},{"$f":"IF('1. Ordersheet'!AA254=\"\",\"\",'1. Ordersheet'!AA254)","v":""},null,{"$f":"IF('1. Ordersheet'!AS254=\"\",\"\",'1. Ordersheet'!AS254)","v":""},{"$f":"IF('1. Ordersheet'!AT254=\"\",\"\",'1. Ordersheet'!AT254)","v":""},null,null,null,null,null,null,null,{"$f":"IF('1. Ordersheet'!AX254=\"\",\"\",'1. Ordersheet'!AX254)","v":""},{"$f":"IF('1. Ordersheet'!AY254=\"\",\"\",'1. Ordersheet'!AY254)","v":""},{"$f":"IF('1. Ordersheet'!AZ254=\"\",\"\",'1. Ordersheet'!AZ254)","v":""},{"$f":"IF('1. Ordersheet'!BA254=\"\",\"\",'1. Ordersheet'!BA254)","v":""},{"$f":"IF('1. Ordersheet'!BC254=\"\",\"\",'1. Ordersheet'!BC254)","v":""},{"$f":"IF('1. Ordersheet'!BD254=\"\",\"\",'1. Ordersheet'!BD254)","v":""},{"$f":"IF('1. Ordersheet'!BE254=\"\",\"\",'1. Ordersheet'!BE254)","v":""},{"$f":"IF('1. Ordersheet'!BF254=\"\",\"\",'1. Ordersheet'!BF254)","v":""},{"$f":"IF('1. Ordersheet'!BG254=\"\",\"\",'1. Ordersheet'!BG254)","v":"ZWO"},{"$f":"IF('1. Ordersheet'!BH254=\"\",\"\",'1. Ordersheet'!BH254)","v":""},{"$f":"IF('1. Ordersheet'!BI254=\"\",\"\",'1. Ordersheet'!BI254)","v":""},{"$f":"IF('1. Ordersheet'!BJ254=\"\",\"\",'1. Ordersheet'!BJ254)","v":""},{"$f":"IF('1. Ordersheet'!BK254=\"\",\"\",'1. Ordersheet'!BK254)","v":""},{"$f":"IF('1. Ordersheet'!BL254=\"\",\"\",'1. Ordersheet'!BL254)","v":""}]
[{"$f":"IF('1. Ordersheet'!F255=\"\",\"\",'1. Ordersheet'!F255)","v":""},{"$f":"IF('1. Ordersheet'!G255=\"\",\"\",'1. Ordersheet'!G255)","v":""},{"$f":"IF('1. Ordersheet'!H255=\"\",\"\",'1. Ordersheet'!H255)","v":""},{"$f":"IF('1. Ordersheet'!I255=\"\",\"\",'1. Ordersheet'!I255)","v":""},{"$f":"IF('1. Ordersheet'!J255=\"\",\"\",'1. Ordersheet'!J255)","v":""},{"$f":"IF('1. Ordersheet'!K255=\"\",\"\",'1. Ordersheet'!K255)","v":""},{"$f":"IF('1. Ordersheet'!L255=\"\",\"\",'1. Ordersheet'!L255)","v":""},{"$f":"IF('1. Ordersheet'!M255=\"\",\"\",'1. Ordersheet'!M255)","v":""},{"$f":"IF('1. Ordersheet'!N255=\"\",\"\",'1. Ordersheet'!N255)","v":""},{"$f":"IF('1. Ordersheet'!O255=\"\",\"\",'1. Ordersheet'!O255)","v":{"$error":"#N/A"}},{"$f":"IF('1. Ordersheet'!P255=\"\",\"\",'1. Ordersheet'!P255)","v":{"$error":"#N/A"}},{"$f":"IF('1. Ordersheet'!Q255=\"\",\"\",'1. Ordersheet'!Q255)","v":""},{"$f":"IF('1. Ordersheet'!R255=\"\",\"\",'1. Ordersheet'!R255)","v":""},{"$f":"IF('1. Ordersheet'!S255=\"\",\"\",'1. Ordersheet'!S255)","v":""},{"$f":"IF('1. Ordersheet'!V255=\"\",\"\",'1. Ordersheet'!V255)","v":""},{"$f":"IF('1. Ordersheet'!W255=\"\",\"\",'1. Ordersheet'!W255)","v":""},{"$f":"IF('1. Ordersheet'!X255=\"\",\"\",'1. Ordersheet'!X255)","v":""},{"$f":"IF('1. Ordersheet'!Y255=\"\",\"\",'1. Ordersheet'!Y255)","v":""},{"$f":"IF('1. Ordersheet'!Z255=\"\",\"\",'1. Ordersheet'!Z255)","v":""},{"$f":"IF('1. Ordersheet'!AA255=\"\",\"\",'1. Ordersheet'!AA255)","v":""},null,{"$f":"IF('1. Ordersheet'!AS255=\"\",\"\",'1. Ordersheet'!AS255)","v":""},{"$f":"IF('1. Ordersheet'!AT255=\"\",\"\",'1. Ordersheet'!AT255)","v":""},null,null,null,null,null,null,null,{"$f":"IF('1. Ordersheet'!AX255=\"\",\"\",'1. Ordersheet'!AX255)","v":""},{"$f":"IF('1. Ordersheet'!AY255=\"\",\"\",'1. Ordersheet'!AY255)","v":""},{"$f":"IF('1. Ordersheet'!AZ255=\"\",\"\",'1. Ordersheet'!AZ255)","v":""},{"$f":"IF('1. Ordersheet'!BA255=\"\",\"\",'1. Ordersheet'!BA255)","v":""},{"$f":"IF('1. Ordersheet'!BC255=\"\",\"\",'1. Ordersheet'!BC255)","v":""},{"$f":"IF('1. Ordersheet'!BD255=\"\",\"\",'1. Ordersheet'!BD255)","v":""},{"$f":"IF('1. Ordersheet'!BE255=\"\",\"\",'1. Ordersheet'!BE255)","v":""},{"$f":"IF('1. Ordersheet'!BF255=\"\",\"\",'1. Ordersheet'!BF255)","v":""},{"$f":"IF('1. Ordersheet'!BG255=\"\",\"\",'1. Ordersheet'!BG255)","v":"ZWO"},{"$f":"IF('1. Ordersheet'!BH255=\"\",\"\",'1. Ordersheet'!BH255)","v":""},{"$f":"IF('1. Ordersheet'!BI255=\"\",\"\",'1. Ordersheet'!BI255)","v":""},{"$f":"IF('1. Ordersheet'!BJ255=\"\",\"\",'1. Ordersheet'!BJ255)","v":""},{"$f":"IF('1. Ordersheet'!BK255=\"\",\"\",'1. Ordersheet'!BK255)","v":""},{"$f":"IF('1. Ordersheet'!BL255=\"\",\"\",'1. Ordersheet'!BL255)","v":""}]
[{"$f":"IF('1. Ordersheet'!F256=\"\",\"\",'1. Ordersheet'!F256)","v":""},{"$f":"IF('1. Ordersheet'!G256=\"\",\"\",'1. Ordersheet'!G256)","v":""},{"$f":"IF('1. Ordersheet'!H256=\"\",\"\",'1. Ordersheet'!H256)","v":""},{"$f":"IF('1. Ordersheet'!I256=\"\",\"\",'1. Ordersheet'!I256)","v":""},{"$f":"IF('1. Ordersheet'!J256=\"\",\"\",'1. Ordersheet'!J256)","v":""},{"$f":"IF('1. Ordersheet'!K256=\"\",\"\",'1. Ordersheet'!K256)","v":""},{"$f":"IF('1. Ordersheet'!L256=\"\",\"\",'1. Ordersheet'!L256)","v":""},{"$f":"IF('1. Ordersheet'!M256=\"\",\"\",'1. Ordersheet'!M256)","v":""},{"$f":"IF('1. Ordersheet'!N256=\"\",\"\",'1. Ordersheet'!N256)","v":""},{"$f":"IF('1. Ordersheet'!O256=\"\",\"\",'1. Ordersheet'!O256)","v":{"$error":"#N/A"}},{"$f":"IF('1. Ordersheet'!P256=\"\",\"\",'1. Ordersheet'!P256)","v":{"$error":"#N/A"}},{"$f":"IF('1. Ordersheet'!Q256=\"\",\"\",'1. Ordersheet'!Q256)","v":""},{"$f":"IF('1. Ordersheet'!R256=\"\",\"\",'1. Ordersheet'!R256)","v":""},{"$f":"IF('1. Ordersheet'!S256=\"\",\"\",'1. Ordersheet'!S256)","v":""},{"$f":"IF('1. Ordersheet'!V256=\"\",\"\",'1. Ordersheet'!V256)","v":""},{"$f":"IF('1. Ordersheet'!W256=\"\",\"\",'1. Ordersheet'!W256)","v":""},{"$f":"IF('1. Ordersheet'!X256=\"\",\"\",'1. Ordersheet'!X256)","v":""},{"$f":"IF('1. Ordersheet'!Y256=\"\",\"\",'1. Ordersheet'!Y256)","v":""},{"$f":"IF('1. Ordersheet'!Z256=\"\",\"\",'1. Ordersheet'!Z256)","v":""},{"$f":"IF('1. Ordersheet'!AA256=\"\",\"\",'1. Ordersheet'!AA256)","v":""},null,{"$f":"IF('1. Ordersheet'!AS256=\"\",\"\",'1. Ordersheet'!AS256)","v":""},{"$f":"IF('1. Ordersheet'!AT256=\"\",\"\",'1. Ordersheet'!AT256)","v":""},null,null,null,null,null,null,null,{"$f":"IF('1. Ordersheet'!AX256=\"\",\"\",'1. Ordersheet'!AX256)","v":""},{"$f":"IF('1. Ordersheet'!AY256=\"\",\"\",'1. Ordersheet'!AY256)","v":""},{"$f":"IF('1. Ordersheet'!AZ256=\"\",\"\",'1. Ordersheet'!AZ256)","v":""},{"$f":"IF('1. Ordersheet'!BA256=\"\",\"\",'1. Ordersheet'!BA256)","v":""},{"$f":"IF('1. Ordersheet'!BC256=\"\",\"\",'1. Ordersheet'!BC256)","v":""},{"$f":"IF('1. Ordersheet'!BD256=\"\",\"\",'1. Ordersheet'!BD256)","v":""},{"$f":"IF('1. Ordersheet'!BE256=\"\",\"\",'1. Ordersheet'!BE256)","v":""},{"$f":"IF('1. Ordersheet'!BF256=\"\",\"\",'1. Ordersheet'!BF256)","v":""},{"$f":"IF('1. Ordersheet'!BG256=\"\",\"\",'1. Ordersheet'!BG256)","v":"ZWO"},{"$f":"IF('1. Ordersheet'!BH256=\"\",\"\",'1. Ordersheet'!BH256)","v":""},{"$f":"IF('1. Ordersheet'!BI256=\"\",\"\",'1. Ordersheet'!BI256)","v":""},{"$f":"IF('1. Ordersheet'!BJ256=\"\",\"\",'1. Ordersheet'!BJ256)","v":""},{"$f":"IF('1. Ordersheet'!BK256=\"\",\"\",'1. Ordersheet'!BK256)","v":""},{"$f":"IF('1. Ordersheet'!BL256=\"\",\"\",'1. Ordersheet'!BL256)","v":""}]
[{"$f":"IF('1. Ordersheet'!F257=\"\",\"\",'1. Ordersheet'!F257)","v":""},{"$f":"IF('1. Ordersheet'!G257=\"\",\"\",'1. Ordersheet'!G257)","v":""},{"$f":"IF('1. Ordersheet'!H257=\"\",\"\",'1. Ordersheet'!H257)","v":""},{"$f":"IF('1. Ordersheet'!I257=\"\",\"\",'1. Ordersheet'!I257)","v":""},{"$f":"IF('1. Ordersheet'!J257=\"\",\"\",'1. Ordersheet'!J257)","v":""},{"$f":"IF('1. Ordersheet'!K257=\"\",\"\",'1. Ordersheet'!K257)","v":""},{"$f":"IF('1. Ordersheet'!L257=\"\",\"\",'1. Ordersheet'!L257)","v":""},{"$f":"IF('1. Ordersheet'!M257=\"\",\"\",'1. Ordersheet'!M257)","v":""},{"$f":"IF('1. Ordersheet'!N257=\"\",\"\",'1. Ordersheet'!N257)","v":""},{"$f":"IF('1. Ordersheet'!O257=\"\",\"\",'1. Ordersheet'!O257)","v":{"$error":"#N/A"}},{"$f":"IF('1. Ordersheet'!P257=\"\",\"\",'1. Ordersheet'!P257)","v":{"$error":"#N/A"}},{"$f":"IF('1. Ordersheet'!Q257=\"\",\"\",'1. Ordersheet'!Q257)","v":""},{"$f":"IF('1. Ordersheet'!R257=\"\",\"\",'1. Ordersheet'!R257)","v":""},{"$f":"IF('1. Ordersheet'!S257=\"\",\"\",'1. Ordersheet'!S257)","v":""},{"$f":"IF('1. Ordersheet'!V257=\"\",\"\",'1. Ordersheet'!V257)","v":""},{"$f":"IF('1. Ordersheet'!W257=\"\",\"\",'1. Ordersheet'!W257)","v":""},{"$f":"IF('1. Ordersheet'!X257=\"\",\"\",'1. Ordersheet'!X257)","v":""},{"$f":"IF('1. Ordersheet'!Y257=\"\",\"\",'1. Ordersheet'!Y257)","v":""},{"$f":"IF('1. Ordersheet'!Z257=\"\",\"\",'1. Ordersheet'!Z257)","v":""},{"$f":"IF('1. Ordersheet'!AA257=\"\",\"\",'1. Ordersheet'!AA257)","v":""},null,{"$f":"IF('1. Ordersheet'!AS257=\"\",\"\",'1. Ordersheet'!AS257)","v":""},{"$f":"IF('1. Ordersheet'!AT257=\"\",\"\",'1. Ordersheet'!AT257)","v":""},null,null,null,null,null,null,null,{"$f":"IF('1. Ordersheet'!AX257=\"\",\"\",'1. Ordersheet'!AX257)","v":""},{"$f":"IF('1. Ordersheet'!AY257=\"\",\"\",'1. Ordersheet'!AY257)","v":""},{"$f":"IF('1. Ordersheet'!AZ257=\"\",\"\",'1. Ordersheet'!AZ257)","v":""},{"$f":"IF('1. Ordersheet'!BA257=\"\",\"\",'1. Ordersheet'!BA257)","v":""},{"$f":"IF('1. Ordersheet'!BC257=\"\",\"\",'1. Ordersheet'!BC257)","v":""},{"$f":"IF('1. Ordersheet'!BD257=\"\",\"\",'1. Ordersheet'!BD257)","v":""},{"$f":"IF('1. Ordersheet'!BE257=\"\",\"\",'1. Ordersheet'!BE257)","v":""},{"$f":"IF('1. Ordersheet'!BF257=\"\",\"\",'1. Ordersheet'!BF257)","v":""},{"$f":"IF('1. Ordersheet'!BG257=\"\",\"\",'1. Ordersheet'!BG257)","v":"ZWO"},{"$f":"IF('1. Ordersheet'!BH257=\"\",\"\",'1. Ordersheet'!BH257)","v":""},{"$f":"IF('1. Ordersheet'!BI257=\"\",\"\",'1. Ordersheet'!BI257)","v":""},{"$f":"IF('1. Ordersheet'!BJ257=\"\",\"\",'1. Ordersheet'!BJ257)","v":""},{"$f":"IF('1. Ordersheet'!BK257=\"\",\"\",'1. Ordersheet'!BK257)","v":""},{"$f":"IF('1. Ordersheet'!BL257=\"\",\"\",'1. Ordersheet'!BL257)","v":""}]
[{"$f":"IF('1. Ordersheet'!F258=\"\",\"\",'1. Ordersheet'!F258)","v":""},{"$f":"IF('1. Ordersheet'!G258=\"\",\"\",'1. Ordersheet'!G258)","v":""},{"$f":"IF('1. Ordersheet'!H258=\"\",\"\",'1. Ordersheet'!H258)","v":""},{"$f":"IF('1. Ordersheet'!I258=\"\",\"\",'1. Ordersheet'!I258)","v":""},{"$f":"IF('1. Ordersheet'!J258=\"\",\"\",'1. Ordersheet'!J258)","v":""},{"$f":"IF('1. Ordersheet'!K258=\"\",\"\",'1. Ordersheet'!K258)","v":""},{"$f":"IF('1. Ordersheet'!L258=\"\",\"\",'1. Ordersheet'!L258)","v":""},{"$f":"IF('1. Ordersheet'!M258=\"\",\"\",'1. Ordersheet'!M258)","v":""},{"$f":"IF('1. Ordersheet'!N258=\"\",\"\",'1. Ordersheet'!N258)","v":""},{"$f":"IF('1. Ordersheet'!O258=\"\",\"\",'1. Ordersheet'!O258)","v":{"$error":"#N/A"}},{"$f":"IF('1. Ordersheet'!P258=\"\",\"\",'1. Ordersheet'!P258)","v":{"$error":"#N/A"}},{"$f":"IF('1. Ordersheet'!Q258=\"\",\"\",'1. Ordersheet'!Q258)","v":""},{"$f":"IF('1. Ordersheet'!R258=\"\",\"\",'1. Ordersheet'!R258)","v":""},{"$f":"IF('1. Ordersheet'!S258=\"\",\"\",'1. Ordersheet'!S258)","v":""},{"$f":"IF('1. Ordersheet'!V258=\"\",\"\",'1. Ordersheet'!V258)","v":""},{"$f":"IF('1. Ordersheet'!W258=\"\",\"\",'1. Ordersheet'!W258)","v":""},{"$f":"IF('1. Ordersheet'!X258=\"\",\"\",'1. Ordersheet'!X258)","v":""},{"$f":"IF('1. Ordersheet'!Y258=\"\",\"\",'1. Ordersheet'!Y258)","v":""},{"$f":"IF('1. Ordersheet'!Z258=\"\",\"\",'1. Ordersheet'!Z258)","v":""},{"$f":"IF('1. Ordersheet'!AA258=\"\",\"\",'1. Ordersheet'!AA258)","v":""},null,{"$f":"IF('1. Ordersheet'!AS258=\"\",\"\",'1. Ordersheet'!AS258)","v":""},{"$f":"IF('1. Ordersheet'!AT258=\"\",\"\",'1. Ordersheet'!AT258)","v":""},null,null,null,null,null,null,null,{"$f":"IF('1. Ordersheet'!AX258=\"\",\"\",'1. Ordersheet'!AX258)","v":""},{"$f":"IF('1. Ordersheet'!AY258=\"\",\"\",'1. Ordersheet'!AY258)","v":""},{"$f":"IF('1. Ordersheet'!AZ258=\"\",\"\",'1. Ordersheet'!AZ258)","v":""},{"$f":"IF('1. Ordersheet'!BA258=\"\",\"\",'1. Ordersheet'!BA258)","v":""},{"$f":"IF('1. Ordersheet'!BC258=\"\",\"\",'1. Ordersheet'!BC258)","v":""},{"$f":"IF('1. Ordersheet'!BD258=\"\",\"\",'1. Ordersheet'!BD258)","v":""},{"$f":"IF('1. Ordersheet'!BE258=\"\",\"\",'1. Ordersheet'!BE258)","v":""},{"$f":"IF('1. Ordersheet'!BF258=\"\",\"\",'1. Ordersheet'!BF258)","v":""},{"$f":"IF('1. Ordersheet'!BG258=\"\",\"\",'1. Ordersheet'!BG258)","v":"ZWO"},{"$f":"IF('1. Ordersheet'!BH258=\"\",\"\",'1. Ordersheet'!BH258)","v":""},{"$f":"IF('1. Ordersheet'!BI258=\"\",\"\",'1. Ordersheet'!BI258)","v":""},{"$f":"IF('1. Ordersheet'!BJ258=\"\",\"\",'1. Ordersheet'!BJ258)","v":""},{"$f":"IF('1. Ordersheet'!BK258=\"\",\"\",'1. Ordersheet'!BK258)","v":""},{"$f":"IF('1. Ordersheet'!BL258=\"\",\"\",'1. Ordersheet'!BL258)","v":""}]
[{"$f":"IF('1. Ordersheet'!F259=\"\",\"\",'1. Ordersheet'!F259)","v":""},{"$f":"IF('1. Ordersheet'!G259=\"\",\"\",'1. Ordersheet'!G259)","v":""},{"$f":"IF('1. Ordersheet'!H259=\"\",\"\",'1. Ordersheet'!H259)","v":""},{"$f":"IF('1. Ordersheet'!I259=\"\",\"\",'1. Ordersheet'!I259)","v":""},{"$f":"IF('1. Ordersheet'!J259=\"\",\"\",'1. Ordersheet'!J259)","v":""},{"$f":"IF('1. Ordersheet'!K259=\"\",\"\",'1. Ordersheet'!K259)","v":""},{"$f":"IF('1. Ordersheet'!L259=\"\",\"\",'1. Ordersheet'!L259)","v":""},{"$f":"IF('1. Ordersheet'!M259=\"\",\"\",'1. Ordersheet'!M259)","v":""},{"$f":"IF('1. Ordersheet'!N259=\"\",\"\",'1. Ordersheet'!N259)","v":""},{"$f":"IF('1. Ordersheet'!O259=\"\",\"\",'1. Ordersheet'!O259)","v":{"$error":"#N/A"}},{"$f":"IF('1. Ordersheet'!P259=\"\",\"\",'1. Ordersheet'!P259)","v":{"$error":"#N/A"}},{"$f":"IF('1. Ordersheet'!Q259=\"\",\"\",'1. Ordersheet'!Q259)","v":""},{"$f":"IF('1. Ordersheet'!R259=\"\",\"\",'1. Ordersheet'!R259)","v":""},{"$f":"IF('1. Ordersheet'!S259=\"\",\"\",'1. Ordersheet'!S259)","v":""},{"$f":"IF('1. Ordersheet'!V259=\"\",\"\",'1. Ordersheet'!V259)","v":""},{"$f":"IF('1. Ordersheet'!W259=\"\",\"\",'1. Ordersheet'!W259)","v":""},{"$f":"IF('1. Ordersheet'!X259=\"\",\"\",'1. Ordersheet'!X259)","v":""},{"$f":"IF('1. Ordersheet'!Y259=\"\",\"\",'1. Ordersheet'!Y259)","v":""},{"$f":"IF('1. Ordersheet'!Z259=\"\",\"\",'1. Ordersheet'!Z259)","v":""},{"$f":"IF('1. Ordersheet'!AA259=\"\",\"\",'1. Ordersheet'!AA259)","v":""},null,{"$f":"IF('1. Ordersheet'!AS259=\"\",\"\",'1. Ordersheet'!AS259)","v":""},{"$f":"IF('1. Ordersheet'!AT259=\"\",\"\",'1. Ordersheet'!AT259)","v":""},null,null,null,null,null,null,null,{"$f":"IF('1. Ordersheet'!AX259=\"\",\"\",'1. Ordersheet'!AX259)","v":""},{"$f":"IF('1. Ordersheet'!AY259=\"\",\"\",'1. Ordersheet'!AY259)","v":""},{"$f":"IF('1. Ordersheet'!AZ259=\"\",\"\",'1. Ordersheet'!AZ259)","v":""},{"$f":"IF('1. Ordersheet'!BA259=\"\",\"\",'1. Ordersheet'!BA259)","v":""},{"$f":"IF('1. Ordersheet'!BC259=\"\",\"\",'1. Ordersheet'!BC259)","v":""},{"$f":"IF('1. Ordersheet'!BD259=\"\",\"\",'1. Ordersheet'!BD259)","v":""},{"$f":"IF('1. Ordersheet'!BE259=\"\",\"\",'1. Ordersheet'!BE259)","v":""},{"$f":"IF('1. Ordersheet'!BF259=\"\",\"\",'1. Ordersheet'!BF259)","v":""},{"$f":"IF('1. Ordersheet'!BG259=\"\",\"\",'1. Ordersheet'!BG259)","v":"ZWO"},{"$f":"IF('1. Ordersheet'!BH259=\"\",\"\",'1. Ordersheet'!BH259)","v":""},{"$f":"IF('1. Ordersheet'!BI259=\"\",\"\",'1. Ordersheet'!BI259)","v":""},{"$f":"IF('1. Ordersheet'!BJ259=\"\",\"\",'1. Ordersheet'!BJ259)","v":""},{"$f":"IF('1. Ordersheet'!BK259=\"\",\"\",'1. Ordersheet'!BK259)","v":""},{"$f":"IF('1. Ordersheet'!BL259=\"\",\"\",'1. Ordersheet'!BL259)","v":""}]
[{"$f":"IF('1. Ordersheet'!F260=\"\",\"\",'1. Ordersheet'!F260)","v":""},{"$f":"IF('1. Ordersheet'!G260=\"\",\"\",'1. Ordersheet'!G260)","v":""},{"$f":"IF('1. Ordersheet'!H260=\"\",\"\",'1. Ordersheet'!H260)","v":""},{"$f":"IF('1. Ordersheet'!I260=\"\",\"\",'1. Ordersheet'!I260)","v":""},{"$f":"IF('1. Ordersheet'!J260=\"\",\"\",'1. Ordersheet'!J260)","v":""},{"$f":"IF('1. Ordersheet'!K260=\"\",\"\",'1. Ordersheet'!K260)","v":""},{"$f":"IF('1. Ordersheet'!L260=\"\",\"\",'1. Ordersheet'!L260)","v":""},{"$f":"IF('1. Ordersheet'!M260=\"\",\"\",'1. Ordersheet'!M260)","v":""},{"$f":"IF('1. Ordersheet'!N260=\"\",\"\",'1. Ordersheet'!N260)","v":""},{"$f":"IF('1. Ordersheet'!O260=\"\",\"\",'1. Ordersheet'!O260)","v":{"$error":"#N/A"}},{"$f":"IF('1. Ordersheet'!P260=\"\",\"\",'1. Ordersheet'!P260)","v":{"$error":"#N/A"}},{"$f":"IF('1. Ordersheet'!Q260=\"\",\"\",'1. Ordersheet'!Q260)","v":""},{"$f":"IF('1. Ordersheet'!R260=\"\",\"\",'1. Ordersheet'!R260)","v":""},{"$f":"IF('1. Ordersheet'!S260=\"\",\"\",'1. Ordersheet'!S260)","v":""},{"$f":"IF('1. Ordersheet'!V260=\"\",\"\",'1. Ordersheet'!V260)","v":""},{"$f":"IF('1. Ordersheet'!W260=\"\",\"\",'1. Ordersheet'!W260)","v":""},{"$f":"IF('1. Ordersheet'!X260=\"\",\"\",'1. Ordersheet'!X260)","v":""},{"$f":"IF('1. Ordersheet'!Y260=\"\",\"\",'1. Ordersheet'!Y260)","v":""},{"$f":"IF('1. Ordersheet'!Z260=\"\",\"\",'1. Ordersheet'!Z260)","v":""},{"$f":"IF('1. Ordersheet'!AA260=\"\",\"\",'1. Ordersheet'!AA260)","v":""},null,{"$f":"IF('1. Ordersheet'!AS260=\"\",\"\",'1. Ordersheet'!AS260)","v":""},{"$f":"IF('1. Ordersheet'!AT260=\"\",\"\",'1. Ordersheet'!AT260)","v":""},null,null,null,null,null,null,null,{"$f":"IF('1. Ordersheet'!AX260=\"\",\"\",'1. Ordersheet'!AX260)","v":""},{"$f":"IF('1. Ordersheet'!AY260=\"\",\"\",'1. Ordersheet'!AY260)","v":""},{"$f":"IF('1. Ordersheet'!AZ260=\"\",\"\",'1. Ordersheet'!AZ260)","v":""},{"$f":"IF('1. Ordersheet'!BA260=\"\",\"\",'1. Ordersheet'!BA260)","v":""},{"$f":"IF('1. Ordersheet'!BC260=\"\",\"\",'1. Ordersheet'!BC260)","v":""},{"$f":"IF('1. Ordersheet'!BD260=\"\",\"\",'1. Ordersheet'!BD260)","v":""},{"$f":"IF('1. Ordersheet'!BE260=\"\",\"\",'1. Ordersheet'!BE260)","v":""},{"$f":"IF('1. Ordersheet'!BF260=\"\",\"\",'1. Ordersheet'!BF260)","v":""},{"$f":"IF('1. Ordersheet'!BG260=\"\",\"\",'1. Ordersheet'!BG260)","v":"ZWO"},{"$f":"IF('1. Ordersheet'!BH260=\"\",\"\",'1. Ordersheet'!BH260)","v":""},{"$f":"IF('1. Ordersheet'!BI260=\"\",\"\",'1. Ordersheet'!BI260)","v":""},{"$f":"IF('1. Ordersheet'!BJ260=\"\",\"\",'1. Ordersheet'!BJ260)","v":""},{"$f":"IF('1. Ordersheet'!BK260=\"\",\"\",'1. Ordersheet'!BK260)","v":""},{"$f":"IF('1. Ordersheet'!BL260=\"\",\"\",'1. Ordersheet'!BL260)","v":""}]
[{"$f":"IF('1. Ordersheet'!F261=\"\",\"\",'1. Ordersheet'!F261)","v":""},{"$f":"IF('1. Ordersheet'!G261=\"\",\"\",'1. Ordersheet'!G261)","v":""},{"$f":"IF('1. Ordersheet'!H261=\"\",\"\",'1. Ordersheet'!H261)","v":""},{"$f":"IF('1. Ordersheet'!I261=\"\",\"\",'1. Ordersheet'!I261)","v":""},{"$f":"IF('1. Ordersheet'!J261=\"\",\"\",'1. Ordersheet'!J261)","v":""},{"$f":"IF('1. Ordersheet'!K261=\"\",\"\",'1. Ordersheet'!K261)","v":""},{"$f":"IF('1. Ordersheet'!L261=\"\",\"\",'1. Ordersheet'!L261)","v":""},{"$f":"IF('1. Ordersheet'!M261=\"\",\"\",'1. Ordersheet'!M261)","v":""},{"$f":"IF('1. Ordersheet'!N261=\"\",\"\",'1. Ordersheet'!N261)","v":""},{"$f":"IF('1. Ordersheet'!O261=\"\",\"\",'1. Ordersheet'!O261)","v":{"$error":"#N/A"}},{"$f":"IF('1. Ordersheet'!P261=\"\",\"\",'1. Ordersheet'!P261)","v":{"$error":"#N/A"}},{"$f":"IF('1. Ordersheet'!Q261=\"\",\"\",'1. Ordersheet'!Q261)","v":""},{"$f":"IF('1. Ordersheet'!R261=\"\",\"\",'1. Ordersheet'!R261)","v":""},{"$f":"IF('1. Ordersheet'!S261=\"\",\"\",'1. Ordersheet'!S261)","v":""},{"$f":"IF('1. Ordersheet'!V261=\"\",\"\",'1. Ordersheet'!V261)","v":""},{"$f":"IF('1. Ordersheet'!W261=\"\",\"\",'1. Ordersheet'!W261)","v":""},{"$f":"IF('1. Ordersheet'!X261=\"\",\"\",'1. Ordersheet'!X261)","v":""},{"$f":"IF('1. Ordersheet'!Y261=\"\",\"\",'1. Ordersheet'!Y261)","v":""},{"$f":"IF('1. Ordersheet'!Z261=\"\",\"\",'1. Ordersheet'!Z261)","v":""},{"$f":"IF('1. Ordersheet'!AA261=\"\",\"\",'1. Ordersheet'!AA261)","v":""},null,{"$f":"IF('1. Ordersheet'!AS261=\"\",\"\",'1. Ordersheet'!AS261)","v":""},{"$f":"IF('1. Ordersheet'!AT261=\"\",\"\",'1. Ordersheet'!AT261)","v":""},null,null,null,null,null,null,null,{"$f":"IF('1. Ordersheet'!AX261=\"\",\"\",'1. Ordersheet'!AX261)","v":""},{"$f":"IF('1. Ordersheet'!AY261=\"\",\"\",'1. Ordersheet'!AY261)","v":""},{"$f":"IF('1. Ordersheet'!AZ261=\"\",\"\",'1. Ordersheet'!AZ261)","v":""},{"$f":"IF('1. Ordersheet'!BA261=\"\",\"\",'1. Ordersheet'!BA261)","v":""},{"$f":"IF('1. Ordersheet'!BC261=\"\",\"\",'1. Ordersheet'!BC261)","v":""},{"$f":"IF('1. Ordersheet'!BD261=\"\",\"\",'1. Ordersheet'!BD261)","v":""},{"$f":"IF('1. Ordersheet'!BE261=\"\",\"\",'1. Ordersheet'!BE261)","v":""},{"$f":"IF('1. Ordersheet'!BF261=\"\",\"\",'1. Ordersheet'!BF261)","v":""},{"$f":"IF('1. Ordersheet'!BG261=\"\",\"\",'1. Ordersheet'!BG261)","v":"ZWO"},{"$f":"IF('1. Ordersheet'!BH261=\"\",\"\",'1. Ordersheet'!BH261)","v":""},{"$f":"IF('1. Ordersheet'!BI261=\"\",\"\",'1. Ordersheet'!BI261)","v":""},{"$f":"IF('1. Ordersheet'!BJ261=\"\",\"\",'1. Ordersheet'!BJ261)","v":""},{"$f":"IF('1. Ordersheet'!BK261=\"\",\"\",'1. Ordersheet'!BK261)","v":""},{"$f":"IF('1. Ordersheet'!BL261=\"\",\"\",'1. Ordersheet'!BL261)","v":""}]
[{"$f":"IF('1. Ordersheet'!F262=\"\",\"\",'1. Ordersheet'!F262)","v":""},{"$f":"IF('1. Ordersheet'!G262=\"\",\"\",'1. Ordersheet'!G262)","v":""},{"$f":"IF('1. Ordersheet'!H262=\"\",\"\",'1. Ordersheet'!H262)","v":""},{"$f":"IF('1. Ordersheet'!I262=\"\",\"\",'1. Ordersheet'!I262)","v":""},{"$f":"IF('1. Ordersheet'!J262=\"\",\"\",'1. Ordersheet'!J262)","v":""},{"$f":"IF('1. Ordersheet'!K262=\"\",\"\",'1. Ordersheet'!K262)","v":""},{"$f":"IF('1. Ordersheet'!L262=\"\",\"\",'1. Ordersheet'!L262)","v":""},{"$f":"IF('1. Ordersheet'!M262=\"\",\"\",'1. Ordersheet'!M262)","v":""},{"$f":"IF('1. Ordersheet'!N262=\"\",\"\",'1. Ordersheet'!N262)","v":""},{"$f":"IF('1. Ordersheet'!O262=\"\",\"\",'1. Ordersheet'!O262)","v":{"$error":"#N/A"}},{"$f":"IF('1. Ordersheet'!P262=\"\",\"\",'1. Ordersheet'!P262)","v":{"$error":"#N/A"}},{"$f":"IF('1. Ordersheet'!Q262=\"\",\"\",'1. Ordersheet'!Q262)","v":""},{"$f":"IF('1. Ordersheet'!R262=\"\",\"\",'1. Ordersheet'!R262)","v":""},{"$f":"IF('1. Ordersheet'!S262=\"\",\"\",'1. Ordersheet'!S262)","v":""},{"$f":"IF('1. Ordersheet'!V262=\"\",\"\",'1. Ordersheet'!V262)","v":""},{"$f":"IF('1. Ordersheet'!W262=\"\",\"\",'1. Ordersheet'!W262)","v":""},{"$f":"IF('1. Ordersheet'!X262=\"\",\"\",'1. Ordersheet'!X262)","v":""},{"$f":"IF('1. Ordersheet'!Y262=\"\",\"\",'1. Ordersheet'!Y262)","v":""},{"$f":"IF('1. Ordersheet'!Z262=\"\",\"\",'1. Ordersheet'!Z262)","v":""},{"$f":"IF('1. Ordersheet'!AA262=\"\",\"\",'1. Ordersheet'!AA262)","v":""},null,{"$f":"IF('1. Ordersheet'!AS262=\"\",\"\",'1. Ordersheet'!AS262)","v":""},{"$f":"IF('1. Ordersheet'!AT262=\"\",\"\",'1. Ordersheet'!AT262)","v":""},null,null,null,null,null,null,null,{"$f":"IF('1. Ordersheet'!AX262=\"\",\"\",'1. Ordersheet'!AX262)","v":""},{"$f":"IF('1. Ordersheet'!AY262=\"\",\"\",'1. Ordersheet'!AY262)","v":""},{"$f":"IF('1. Ordersheet'!AZ262=\"\",\"\",'1. Ordersheet'!AZ262)","v":""},{"$f":"IF('1. Ordersheet'!BA262=\"\",\"\",'1. Ordersheet'!BA262)","v":""},{"$f":"IF('1. Ordersheet'!BC262=\"\",\"\",'1. Ordersheet'!BC262)","v":""},{"$f":"IF('1. Ordersheet'!BD262=\"\",\"\",'1. Ordersheet'!BD262)","v":""},{"$f":"IF('1. Ordersheet'!BE262=\"\",\"\",'1. Ordersheet'!BE262)","v":""},{"$f":"IF('1. Ordersheet'!BF262=\"\",\"\",'1. Ordersheet'!BF262)","v":""},{"$f":"IF('1. Ordersheet'!BG262=\"\",\"\",'1. Ordersheet'!BG262)","v":"ZWO"},{"$f":"IF('1. Ordersheet'!BH262=\"\",\"\",'1. Ordersheet'!BH262)","v":""},{"$f":"IF('1. Ordersheet'!BI262=\"\",\"\",'1. Ordersheet'!BI262)","v":""},{"$f":"IF('1. Ordersheet'!BJ262=\"\",\"\",'1. Ordersheet'!BJ262)","v":""},{"$f":"IF('1. Ordersheet'!BK262=\"\",\"\",'1. Ordersheet'!BK262)","v":""},{"$f":"IF('1. Ordersheet'!BL262=\"\",\"\",'1. Ordersheet'!BL262)","v":""}]
[{"$f":"IF('1. Ordersheet'!F263=\"\",\"\",'1. Ordersheet'!F263)","v":""},{"$f":"IF('1. Ordersheet'!G263=\"\",\"\",'1. Ordersheet'!G263)","v":""},{"$f":"IF('1. Ordersheet'!H263=\"\",\"\",'1. Ordersheet'!H263)","v":""},{"$f":"IF('1. Ordersheet'!I263=\"\",\"\",'1. Ordersheet'!I263)","v":""},{"$f":"IF('1. Ordersheet'!J263=\"\",\"\",'1. Ordersheet'!J263)","v":""},{"$f":"IF('1. Ordersheet'!K263=\"\",\"\",'1. Ordersheet'!K263)","v":""},{"$f":"IF('1. Ordersheet'!L263=\"\",\"\",'1. Ordersheet'!L263)","v":""},{"$f":"IF('1. Ordersheet'!M263=\"\",\"\",'1. Ordersheet'!M263)","v":""},{"$f":"IF('1. Ordersheet'!N263=\"\",\"\",'1. Ordersheet'!N263)","v":""},{"$f":"IF('1. Ordersheet'!O263=\"\",\"\",'1. Ordersheet'!O263)","v":{"$error":"#N/A"}},{"$f":"IF('1. Ordersheet'!P263=\"\",\"\",'1. Ordersheet'!P263)","v":{"$error":"#N/A"}},{"$f":"IF('1. Ordersheet'!Q263=\"\",\"\",'1. Ordersheet'!Q263)","v":""},{"$f":"IF('1. Ordersheet'!R263=\"\",\"\",'1. Ordersheet'!R263)","v":""},{"$f":"IF('1. Ordersheet'!S263=\"\",\"\",'1. Ordersheet'!S263)","v":""},{"$f":"IF('1. Ordersheet'!V263=\"\",\"\",'1. Ordersheet'!V263)","v":""},{"$f":"IF('1. Ordersheet'!W263=\"\",\"\",'1. Ordersheet'!W263)","v":""},{"$f":"IF('1. Ordersheet'!X263=\"\",\"\",'1. Ordersheet'!X263)","v":""},{"$f":"IF('1. Ordersheet'!Y263=\"\",\"\",'1. Ordersheet'!Y263)","v":""},{"$f":"IF('1. Ordersheet'!Z263=\"\",\"\",'1. Ordersheet'!Z263)","v":""},{"$f":"IF('1. Ordersheet'!AA263=\"\",\"\",'1. Ordersheet'!AA263)","v":""},null,{"$f":"IF('1. Ordersheet'!AS263=\"\",\"\",'1. Ordersheet'!AS263)","v":""},{"$f":"IF('1. Ordersheet'!AT263=\"\",\"\",'1. Ordersheet'!AT263)","v":""},null,null,null,null,null,null,null,{"$f":"IF('1. Ordersheet'!AX263=\"\",\"\",'1. Ordersheet'!AX263)","v":""},{"$f":"IF('1. Ordersheet'!AY263=\"\",\"\",'1. Ordersheet'!AY263)","v":""},{"$f":"IF('1. Ordersheet'!AZ263=\"\",\"\",'1. Ordersheet'!AZ263)","v":""},{"$f":"IF('1. Ordersheet'!BA263=\"\",\"\",'1. Ordersheet'!BA263)","v":""},{"$f":"IF('1. Ordersheet'!BC263=\"\",\"\",'1. Ordersheet'!BC263)","v":""},{"$f":"IF('1. Ordersheet'!BD263=\"\",\"\",'1. Ordersheet'!BD263)","v":""},{"$f":"IF('1. Ordersheet'!BE263=\"\",\"\",'1. Ordersheet'!BE263)","v":""},{"$f":"IF('1. Ordersheet'!BF263=\"\",\"\",'1. Ordersheet'!BF263)","v":""},{"$f":"IF('1. Ordersheet'!BG263=\"\",\"\",'1. Ordersheet'!BG263)","v":"ZWO"},{"$f":"IF('1. Ordersheet'!BH263=\"\",\"\",'1. Ordersheet'!BH263)","v":""},{"$f":"IF('1. Ordersheet'!BI263=\"\",\"\",'1. Ordersheet'!BI263)","v":""},{"$f":"IF('1. Ordersheet'!BJ263=\"\",\"\",'1. Ordersheet'!BJ263)","v":""},{"$f":"IF('1. Ordersheet'!BK263=\"\",\"\",'1. Ordersheet'!BK263)","v":""},{"$f":"IF('1. Ordersheet'!BL263=\"\",\"\",'1. Ordersheet'!BL263)","v":""}]
[{"$f":"IF('1. Ordersheet'!F264=\"\",\"\",'1. Ordersheet'!F264)","v":""},{"$f":"IF('1. Ordersheet'!G264=\"\",\"\",'1. Ordersheet'!G264)","v":""},{"$f":"IF('1. Ordersheet'!H264=\"\",\"\",'1. Ordersheet'!H264)","v":""},{"$f":"IF('1. Ordersheet'!I264=\"\",\"\",'1. Ordersheet'!I264)","v":""},{"$f":"IF('1. Ordersheet'!J264=\"\",\"\",'1. Ordersheet'!J264)","v":""},{"$f":"IF('1. Ordersheet'!K264=\"\",\"\",'1. Ordersheet'!K264)","v":""},{"$f":"IF('1. Ordersheet'!L264=\"\",\"\",'1. Ordersheet'!L264)","v":""},{"$f":"IF('1. Ordersheet'!M264=\"\",\"\",'1. Ordersheet'!M264)","v":""},{"$f":"IF('1. Ordersheet'!N264=\"\",\"\",'1. Ordersheet'!N264)","v":""},{"$f":"IF('1. Ordersheet'!O264=\"\",\"\",'1. Ordersheet'!O264)","v":{"$error":"#N/A"}},{"$f":"IF('1. Ordersheet'!P264=\"\",\"\",'1. Ordersheet'!P264)","v":{"$error":"#N/A"}},{"$f":"IF('1. Ordersheet'!Q264=\"\",\"\",'1. Ordersheet'!Q264)","v":""},{"$f":"IF('1. Ordersheet'!R264=\"\",\"\",'1. Ordersheet'!R264)","v":""},{"$f":"IF('1. Ordersheet'!S264=\"\",\"\",'1. Ordersheet'!S264)","v":""},{"$f":"IF('1. Ordersheet'!V264=\"\",\"\",'1. Ordersheet'!V264)","v":""},{"$f":"IF('1. Ordersheet'!W264=\"\",\"\",'1. Ordersheet'!W264)","v":""},{"$f":"IF('1. Ordersheet'!X264=\"\",\"\",'1. Ordersheet'!X264)","v":""},{"$f":"IF('1. Ordersheet'!Y264=\"\",\"\",'1. Ordersheet'!Y264)","v":""},{"$f":"IF('1. Ordersheet'!Z264=\"\",\"\",'1. Ordersheet'!Z264)","v":""},{"$f":"IF('1. Ordersheet'!AA264=\"\",\"\",'1. Ordersheet'!AA264)","v":""},null,{"$f":"IF('1. Ordersheet'!AS264=\"\",\"\",'1. Ordersheet'!AS264)","v":""},{"$f":"IF('1. Ordersheet'!AT264=\"\",\"\",'1. Ordersheet'!AT264)","v":""},null,null,null,null,null,null,null,{"$f":"IF('1. Ordersheet'!AX264=\"\",\"\",'1. Ordersheet'!AX264)","v":""},{"$f":"IF('1. Ordersheet'!AY264=\"\",\"\",'1. Ordersheet'!AY264)","v":""},{"$f":"IF('1. Ordersheet'!AZ264=\"\",\"\",'1. Ordersheet'!AZ264)","v":""},{"$f":"IF('1. Ordersheet'!BA264=\"\",\"\",'1. Ordersheet'!BA264)","v":""},{"$f":"IF('1. Ordersheet'!BC264=\"\",\"\",'1. Ordersheet'!BC264)","v":""},{"$f":"IF('1. Ordersheet'!BD264=\"\",\"\",'1. Ordersheet'!BD264)","v":""},{"$f":"IF('1. Ordersheet'!BE264=\"\",\"\",'1. Ordersheet'!BE264)","v":""},{"$f":"IF('1. Ordersheet'!BF264=\"\",\"\",'1. Ordersheet'!BF264)","v":""},{"$f":"IF('1. Ordersheet'!BG264=\"\",\"\",'1. Ordersheet'!BG264)","v":"ZWO"},{"$f":"IF('1. Ordersheet'!BH264=\"\",\"\",'1. Ordersheet'!BH264)","v":""},{"$f":"IF('1. Ordersheet'!BI264=\"\",\"\",'1. Ordersheet'!BI264)","v":""},{"$f":"IF('1. Ordersheet'!BJ264=\"\",\"\",'1. Ordersheet'!BJ264)","v":""},{"$f":"IF('1. Ordersheet'!BK264=\"\",\"\",'1. Ordersheet'!BK264)","v":""},{"$f":"IF('1. Ordersheet'!BL264=\"\",\"\",'1. Ordersheet'!BL264)","v":""}]
[{"$f":"IF('1. Ordersheet'!F265=\"\",\"\",'1. Ordersheet'!F265)","v":""},{"$f":"IF('1. Ordersheet'!G265=\"\",\"\",'1. Ordersheet'!G265)","v":""},{"$f":"IF('1. Ordersheet'!H265=\"\",\"\",'1. Ordersheet'!H265)","v":""},{"$f":"IF('1. Ordersheet'!I265=\"\",\"\",'1. Ordersheet'!I265)","v":""},{"$f":"IF('1. Ordersheet'!J265=\"\",\"\",'1. Ordersheet'!J265)","v":""},{"$f":"IF('1. Ordersheet'!K265=\"\",\"\",'1. Ordersheet'!K265)","v":""},{"$f":"IF('1. Ordersheet'!L265=\"\",\"\",'1. Ordersheet'!L265)","v":""},{"$f":"IF('1. Ordersheet'!M265=\"\",\"\",'1. Ordersheet'!M265)","v":""},{"$f":"IF('1. Ordersheet'!N265=\"\",\"\",'1. Ordersheet'!N265)","v":""},{"$f":"IF('1. Ordersheet'!O265=\"\",\"\",'1. Ordersheet'!O265)","v":{"$error":"#N/A"}},{"$f":"IF('1. Ordersheet'!P265=\"\",\"\",'1. Ordersheet'!P265)","v":{"$error":"#N/A"}},{"$f":"IF('1. Ordersheet'!Q265=\"\",\"\",'1. Ordersheet'!Q265)","v":""},{"$f":"IF('1. Ordersheet'!R265=\"\",\"\",'1. Ordersheet'!R265)","v":""},{"$f":"IF('1. Ordersheet'!S265=\"\",\"\",'1. Ordersheet'!S265)","v":""},{"$f":"IF('1. Ordersheet'!V265=\"\",\"\",'1. Ordersheet'!V265)","v":""},{"$f":"IF('1. Ordersheet'!W265=\"\",\"\",'1. Ordersheet'!W265)","v":""},{"$f":"IF('1. Ordersheet'!X265=\"\",\"\",'1. Ordersheet'!X265)","v":""},{"$f":"IF('1. Ordersheet'!Y265=\"\",\"\",'1. Ordersheet'!Y265)","v":""},{"$f":"IF('1. Ordersheet'!Z265=\"\",\"\",'1. Ordersheet'!Z265)","v":""},{"$f":"IF('1. Ordersheet'!AA265=\"\",\"\",'1. Ordersheet'!AA265)","v":""},null,{"$f":"IF('1. Ordersheet'!AS265=\"\",\"\",'1. Ordersheet'!AS265)","v":""},{"$f":"IF('1. Ordersheet'!AT265=\"\",\"\",'1. Ordersheet'!AT265)","v":""},null,null,null,null,null,null,null,{"$f":"IF('1. Ordersheet'!AX265=\"\",\"\",'1. Ordersheet'!AX265)","v":""},{"$f":"IF('1. Ordersheet'!AY265=\"\",\"\",'1. Ordersheet'!AY265)","v":""},{"$f":"IF('1. Ordersheet'!AZ265=\"\",\"\",'1. Ordersheet'!AZ265)","v":""},{"$f":"IF('1. Ordersheet'!BA265=\"\",\"\",'1. Ordersheet'!BA265)","v":""},{"$f":"IF('1. Ordersheet'!BC265=\"\",\"\",'1. Ordersheet'!BC265)","v":""},{"$f":"IF('1. Ordersheet'!BD265=\"\",\"\",'1. Ordersheet'!BD265)","v":""},{"$f":"IF('1. Ordersheet'!BE265=\"\",\"\",'1. Ordersheet'!BE265)","v":""},{"$f":"IF('1. Ordersheet'!BF265=\"\",\"\",'1. Ordersheet'!BF265)","v":""},{"$f":"IF('1. Ordersheet'!BG265=\"\",\"\",'1. Ordersheet'!BG265)","v":"ZWO"},{"$f":"IF('1. Ordersheet'!BH265=\"\",\"\",'1. Ordersheet'!BH265)","v":""},{"$f":"IF('1. Ordersheet'!BI265=\"\",\"\",'1. Ordersheet'!BI265)","v":""},{"$f":"IF('1. Ordersheet'!BJ265=\"\",\"\",'1. Ordersheet'!BJ265)","v":""},{"$f":"IF('1. Ordersheet'!BK265=\"\",\"\",'1. Ordersheet'!BK265)","v":""},{"$f":"IF('1. Ordersheet'!BL265=\"\",\"\",'1. Ordersheet'!BL265)","v":""}]
[{"$f":"IF('1. Ordersheet'!F266=\"\",\"\",'1. Ordersheet'!F266)","v":""},{"$f":"IF('1. Ordersheet'!G266=\"\",\"\",'1. Ordersheet'!G266)","v":""},{"$f":"IF('1. Ordersheet'!H266=\"\",\"\",'1. Ordersheet'!H266)","v":""},{"$f":"IF('1. Ordersheet'!I266=\"\",\"\",'1. Ordersheet'!I266)","v":""},{"$f":"IF('1. Ordersheet'!J266=\"\",\"\",'1. Ordersheet'!J266)","v":""},{"$f":"IF('1. Ordersheet'!K266=\"\",\"\",'1. Ordersheet'!K266)","v":""},{"$f":"IF('1. Ordersheet'!L266=\"\",\"\",'1. Ordersheet'!L266)","v":""},{"$f":"IF('1. Ordersheet'!M266=\"\",\"\",'1. Ordersheet'!M266)","v":""},{"$f":"IF('1. Ordersheet'!N266=\"\",\"\",'1. Ordersheet'!N266)","v":""},{"$f":"IF('1. Ordersheet'!O266=\"\",\"\",'1. Ordersheet'!O266)","v":{"$error":"#N/A"}},{"$f":"IF('1. Ordersheet'!P266=\"\",\"\",'1. Ordersheet'!P266)","v":{"$error":"#N/A"}},{"$f":"IF('1. Ordersheet'!Q266=\"\",\"\",'1. Ordersheet'!Q266)","v":""},{"$f":"IF('1. Ordersheet'!R266=\"\",\"\",'1. Ordersheet'!R266)","v":""},{"$f":"IF('1. Ordersheet'!S266=\"\",\"\",'1. Ordersheet'!S266)","v":""},{"$f":"IF('1. Ordersheet'!V266=\"\",\"\",'1. Ordersheet'!V266)","v":""},{"$f":"IF('1. Ordersheet'!W266=\"\",\"\",'1. Ordersheet'!W266)","v":""},{"$f":"IF('1. Ordersheet'!X266=\"\",\"\",'1. Ordersheet'!X266)","v":""},{"$f":"IF('1. Ordersheet'!Y266=\"\",\"\",'1. Ordersheet'!Y266)","v":""},{"$f":"IF('1. Ordersheet'!Z266=\"\",\"\",'1. Ordersheet'!Z266)","v":""},{"$f":"IF('1. Ordersheet'!AA266=\"\",\"\",'1. Ordersheet'!AA266)","v":""},null,{"$f":"IF('1. Ordersheet'!AS266=\"\",\"\",'1. Ordersheet'!AS266)","v":""},{"$f":"IF('1. Ordersheet'!AT266=\"\",\"\",'1. Ordersheet'!AT266)","v":""},null,null,null,null,null,null,null,{"$f":"IF('1. Ordersheet'!AX266=\"\",\"\",'1. Ordersheet'!AX266)","v":""},{"$f":"IF('1. Ordersheet'!AY266=\"\",\"\",'1. Ordersheet'!AY266)","v":""},{"$f":"IF('1. Ordersheet'!AZ266=\"\",\"\",'1. Ordersheet'!AZ266)","v":""},{"$f":"IF('1. Ordersheet'!BA266=\"\",\"\",'1. Ordersheet'!BA266)","v":""},{"$f":"IF('1. Ordersheet'!BC266=\"\",\"\",'1. Ordersheet'!BC266)","v":""},{"$f":"IF('1. Ordersheet'!BD266=\"\",\"\",'1. Ordersheet'!BD266)","v":""},{"$f":"IF('1. Ordersheet'!BE266=\"\",\"\",'1. Ordersheet'!BE266)","v":""},{"$f":"IF('1. Ordersheet'!BF266=\"\",\"\",'1. Ordersheet'!BF266)","v":""},{"$f":"IF('1. Ordersheet'!BG266=\"\",\"\",'1. Ordersheet'!BG266)","v":"ZWO"},{"$f":"IF('1. Ordersheet'!BH266=\"\",\"\",'1. Ordersheet'!BH266)","v":""},{"$f":"IF('1. Ordersheet'!BI266=\"\",\"\",'1. Ordersheet'!BI266)","v":""},{"$f":"IF('1. Ordersheet'!BJ266=\"\",\"\",'1. Ordersheet'!BJ266)","v":""},{"$f":"IF('1. Ordersheet'!BK266=\"\",\"\",'1. Ordersheet'!BK266)","v":""},{"$f":"IF('1. Ordersheet'!BL266=\"\",\"\",'1. Ordersheet'!BL266)","v":""}]
[{"$f":"IF('1. Ordersheet'!F267=\"\",\"\",'1. Ordersheet'!F267)","v":""},{"$f":"IF('1. Ordersheet'!G267=\"\",\"\",'1. Ordersheet'!G267)","v":""},{"$f":"IF('1. Ordersheet'!H267=\"\",\"\",'1. Ordersheet'!H267)","v":""},{"$f":"IF('1. Ordersheet'!I267=\"\",\"\",'1. Ordersheet'!I267)","v":""},{"$f":"IF('1. Ordersheet'!J267=\"\",\"\",'1. Ordersheet'!J267)","v":""},{"$f":"IF('1. Ordersheet'!K267=\"\",\"\",'1. Ordersheet'!K267)","v":""},{"$f":"IF('1. Ordersheet'!L267=\"\",\"\",'1. Ordersheet'!L267)","v":""},{"$f":"IF('1. Ordersheet'!M267=\"\",\"\",'1. Ordersheet'!M267)","v":""},{"$f":"IF('1. Ordersheet'!N267=\"\",\"\",'1. Ordersheet'!N267)","v":""},{"$f":"IF('1. Ordersheet'!O267=\"\",\"\",'1. Ordersheet'!O267)","v":{"$error":"#N/A"}},{"$f":"IF('1. Ordersheet'!P267=\"\",\"\",'1. Ordersheet'!P267)","v":{"$error":"#N/A"}},{"$f":"IF('1. Ordersheet'!Q267=\"\",\"\",'1. Ordersheet'!Q267)","v":""},{"$f":"IF('1. Ordersheet'!R267=\"\",\"\",'1. Ordersheet'!R267)","v":""},{"$f":"IF('1. Ordersheet'!S267=\"\",\"\",'1. Ordersheet'!S267)","v":""},{"$f":"IF('1. Ordersheet'!V267=\"\",\"\",'1. Ordersheet'!V267)","v":""},{"$f":"IF('1. Ordersheet'!W267=\"\",\"\",'1. Ordersheet'!W267)","v":""},{"$f":"IF('1. Ordersheet'!X267=\"\",\"\",'1. Ordersheet'!X267)","v":""},{"$f":"IF('1. Ordersheet'!Y267=\"\",\"\",'1. Ordersheet'!Y267)","v":""},{"$f":"IF('1. Ordersheet'!Z267=\"\",\"\",'1. Ordersheet'!Z267)","v":""},{"$f":"IF('1. Ordersheet'!AA267=\"\",\"\",'1. Ordersheet'!AA267)","v":""},null,{"$f":"IF('1. Ordersheet'!AS267=\"\",\"\",'1. Ordersheet'!AS267)","v":""},{"$f":"IF('1. Ordersheet'!AT267=\"\",\"\",'1. Ordersheet'!AT267)","v":""},null,null,null,null,null,null,null,{"$f":"IF('1. Ordersheet'!AX267=\"\",\"\",'1. Ordersheet'!AX267)","v":""},{"$f":"IF('1. Ordersheet'!AY267=\"\",\"\",'1. Ordersheet'!AY267)","v":""},{"$f":"IF('1. Ordersheet'!AZ267=\"\",\"\",'1. Ordersheet'!AZ267)","v":""},{"$f":"IF('1. Ordersheet'!BA267=\"\",\"\",'1. Ordersheet'!BA267)","v":""},{"$f":"IF('1. Ordersheet'!BC267=\"\",\"\",'1. Ordersheet'!BC267)","v":""},{"$f":"IF('1. Ordersheet'!BD267=\"\",\"\",'1. Ordersheet'!BD267)","v":""},{"$f":"IF('1. Ordersheet'!BE267=\"\",\"\",'1. Ordersheet'!BE267)","v":""},{"$f":"IF('1. Ordersheet'!BF267=\"\",\"\",'1. Ordersheet'!BF267)","v":""},{"$f":"IF('1. Ordersheet'!BG267=\"\",\"\",'1. Ordersheet'!BG267)","v":"ZWO"},{"$f":"IF('1. Ordersheet'!BH267=\"\",\"\",'1. Ordersheet'!BH267)","v":""},{"$f":"IF('1. Ordersheet'!BI267=\"\",\"\",'1. Ordersheet'!BI267)","v":""},{"$f":"IF('1. Ordersheet'!BJ267=\"\",\"\",'1. Ordersheet'!BJ267)","v":""},{"$f":"IF('1. Ordersheet'!BK267=\"\",\"\",'1. Ordersheet'!BK267)","v":""},{"$f":"IF('1. Ordersheet'!BL267=\"\",\"\",'1. Ordersheet'!BL267)","v":""}]
[{"$f":"IF('1. Ordersheet'!F268=\"\",\"\",'1. Ordersheet'!F268)","v":""},{"$f":"IF('1. Ordersheet'!G268=\"\",\"\",'1. Ordersheet'!G268)","v":""},{"$f":"IF('1. Ordersheet'!H268=\"\",\"\",'1. Ordersheet'!H268)","v":""},{"$f":"IF('1. Ordersheet'!I268=\"\",\"\",'1. Ordersheet'!I268)","v":""},{"$f":"IF('1. Ordersheet'!J268=\"\",\"\",'1. Ordersheet'!J268)","v":""},{"$f":"IF('1. Ordersheet'!K268=\"\",\"\",'1. Ordersheet'!K268)","v":""},{"$f":"IF('1. Ordersheet'!L268=\"\",\"\",'1. Ordersheet'!L268)","v":""},{"$f":"IF('1. Ordersheet'!M268=\"\",\"\",'1. Ordersheet'!M268)","v":""},{"$f":"IF('1. Ordersheet'!N268=\"\",\"\",'1. Ordersheet'!N268)","v":""},{"$f":"IF('1. Ordersheet'!O268=\"\",\"\",'1. Ordersheet'!O268)","v":{"$error":"#N/A"}},{"$f":"IF('1. Ordersheet'!P268=\"\",\"\",'1. Ordersheet'!P268)","v":{"$error":"#N/A"}},{"$f":"IF('1. Ordersheet'!Q268=\"\",\"\",'1. Ordersheet'!Q268)","v":""},{"$f":"IF('1. Ordersheet'!R268=\"\",\"\",'1. Ordersheet'!R268)","v":""},{"$f":"IF('1. Ordersheet'!S268=\"\",\"\",'1. Ordersheet'!S268)","v":""},{"$f":"IF('1. Ordersheet'!V268=\"\",\"\",'1. Ordersheet'!V268)","v":""},{"$f":"IF('1. Ordersheet'!W268=\"\",\"\",'1. Ordersheet'!W268)","v":""},{"$f":"IF('1. Ordersheet'!X268=\"\",\"\",'1. Ordersheet'!X268)","v":""},{"$f":"IF('1. Ordersheet'!Y268=\"\",\"\",'1. Ordersheet'!Y268)","v":""},{"$f":"IF('1. Ordersheet'!Z268=\"\",\"\",'1. Ordersheet'!Z268)","v":""},{"$f":"IF('1. Ordersheet'!AA268=\"\",\"\",'1. Ordersheet'!AA268)","v":""},null,{"$f":"IF('1. Ordersheet'!AS268=\"\",\"\",'1. Ordersheet'!AS268)","v":""},{"$f":"IF('1. Ordersheet'!AT268=\"\",\"\",'1. Ordersheet'!AT268)","v":""},null,null,null,null,null,null,null,{"$f":"IF('1. Ordersheet'!AX268=\"\",\"\",'1. Ordersheet'!AX268)","v":""},{"$f":"IF('1. Ordersheet'!AY268=\"\",\"\",'1. Ordersheet'!AY268)","v":""},{"$f":"IF('1. Ordersheet'!AZ268=\"\",\"\",'1. Ordersheet'!AZ268)","v":""},{"$f":"IF('1. Ordersheet'!BA268=\"\",\"\",'1. Ordersheet'!BA268)","v":""},{"$f":"IF('1. Ordersheet'!BC268=\"\",\"\",'1. Ordersheet'!BC268)","v":""},{"$f":"IF('1. Ordersheet'!BD268=\"\",\"\",'1. Ordersheet'!BD268)","v":""},{"$f":"IF('1. Ordersheet'!BE268=\"\",\"\",'1. Ordersheet'!BE268)","v":""},{"$f":"IF('1. Ordersheet'!BF268=\"\",\"\",'1. Ordersheet'!BF268)","v":""},{"$f":"IF('1. Ordersheet'!BG268=\"\",\"\",'1. Ordersheet'!BG268)","v":"ZWO"},{"$f":"IF('1. Ordersheet'!BH268=\"\",\"\",'1. Ordersheet'!BH268)","v":""},{"$f":"IF('1. Ordersheet'!BI268=\"\",\"\",'1. Ordersheet'!BI268)","v":""},{"$f":"IF('1. Ordersheet'!BJ268=\"\",\"\",'1. Ordersheet'!BJ268)","v":""},{"$f":"IF('1. Ordersheet'!BK268=\"\",\"\",'1. Ordersheet'!BK268)","v":""},{"$f":"IF('1. Ordersheet'!BL268=\"\",\"\",'1. Ordersheet'!BL268)","v":""}]
[{"$f":"IF('1. Ordersheet'!F269=\"\",\"\",'1. Ordersheet'!F269)","v":""},{"$f":"IF('1. Ordersheet'!G269=\"\",\"\",'1. Ordersheet'!G269)","v":""},{"$f":"IF('1. Ordersheet'!H269=\"\",\"\",'1. Ordersheet'!H269)","v":""},{"$f":"IF('1. Ordersheet'!I269=\"\",\"\",'1. Ordersheet'!I269)","v":""},{"$f":"IF('1. Ordersheet'!J269=\"\",\"\",'1. Ordersheet'!J269)","v":""},{"$f":"IF('1. Ordersheet'!K269=\"\",\"\",'1. Ordersheet'!K269)","v":""},{"$f":"IF('1. Ordersheet'!L269=\"\",\"\",'1. Ordersheet'!L269)","v":""},{"$f":"IF('1. Ordersheet'!M269=\"\",\"\",'1. Ordersheet'!M269)","v":""},{"$f":"IF('1. Ordersheet'!N269=\"\",\"\",'1. Ordersheet'!N269)","v":""},{"$f":"IF('1. Ordersheet'!O269=\"\",\"\",'1. Ordersheet'!O269)","v":{"$error":"#N/A"}},{"$f":"IF('1. Ordersheet'!P269=\"\",\"\",'1. Ordersheet'!P269)","v":{"$error":"#N/A"}},{"$f":"IF('1. Ordersheet'!Q269=\"\",\"\",'1. Ordersheet'!Q269)","v":""},{"$f":"IF('1. Ordersheet'!R269=\"\",\"\",'1. Ordersheet'!R269)","v":""},{"$f":"IF('1. Ordersheet'!S269=\"\",\"\",'1. Ordersheet'!S269)","v":""},{"$f":"IF('1. Ordersheet'!V269=\"\",\"\",'1. Ordersheet'!V269)","v":""},{"$f":"IF('1. Ordersheet'!W269=\"\",\"\",'1. Ordersheet'!W269)","v":""},{"$f":"IF('1. Ordersheet'!X269=\"\",\"\",'1. Ordersheet'!X269)","v":""},{"$f":"IF('1. Ordersheet'!Y269=\"\",\"\",'1. Ordersheet'!Y269)","v":""},{"$f":"IF('1. Ordersheet'!Z269=\"\",\"\",'1. Ordersheet'!Z269)","v":""},{"$f":"IF('1. Ordersheet'!AA269=\"\",\"\",'1. Ordersheet'!AA269)","v":""},null,{"$f":"IF('1. Ordersheet'!AS269=\"\",\"\",'1. Ordersheet'!AS269)","v":""},{"$f":"IF('1. Ordersheet'!AT269=\"\",\"\",'1. Ordersheet'!AT269)","v":""},null,null,null,null,null,null,null,{"$f":"IF('1. Ordersheet'!AX269=\"\",\"\",'1. Ordersheet'!AX269)","v":""},{"$f":"IF('1. Ordersheet'!AY269=\"\",\"\",'1. Ordersheet'!AY269)","v":""},{"$f":"IF('1. Ordersheet'!AZ269=\"\",\"\",'1. Ordersheet'!AZ269)","v":""},{"$f":"IF('1. Ordersheet'!BA269=\"\",\"\",'1. Ordersheet'!BA269)","v":""},{"$f":"IF('1. Ordersheet'!BC269=\"\",\"\",'1. Ordersheet'!BC269)","v":""},{"$f":"IF('1. Ordersheet'!BD269=\"\",\"\",'1. Ordersheet'!BD269)","v":""},{"$f":"IF('1. Ordersheet'!BE269=\"\",\"\",'1. Ordersheet'!BE269)","v":""},{"$f":"IF('1. Ordersheet'!BF269=\"\",\"\",'1. Ordersheet'!BF269)","v":""},{"$f":"IF('1. Ordersheet'!BG269=\"\",\"\",'1. Ordersheet'!BG269)","v":"ZWO"},{"$f":"IF('1. Ordersheet'!BH269=\"\",\"\",'1. Ordersheet'!BH269)","v":""},{"$f":"IF('1. Ordersheet'!BI269=\"\",\"\",'1. Ordersheet'!BI269)","v":""},{"$f":"IF('1. Ordersheet'!BJ269=\"\",\"\",'1. Ordersheet'!BJ269)","v":""},{"$f":"IF('1. Ordersheet'!BK269=\"\",\"\",'1. Ordersheet'!BK269)","v":""},{"$f":"IF('1. Ordersheet'!BL269=\"\",\"\",'1. Ordersheet'!BL269)","v":""}]
[{"$f":"IF('1. Ordersheet'!F270=\"\",\"\",'1. Ordersheet'!F270)","v":""},{"$f":"IF('1. Ordersheet'!G270=\"\",\"\",'1. Ordersheet'!G270)","v":""},{"$f":"IF('1. Ordersheet'!H270=\"\",\"\",'1. Ordersheet'!H270)","v":""},{"$f":"IF('1. Ordersheet'!I270=\"\",\"\",'1. Ordersheet'!I270)","v":""},{"$f":"IF('1. Ordersheet'!J270=\"\",\"\",'1. Ordersheet'!J270)","v":""},{"$f":"IF('1. Ordersheet'!K270=\"\",\"\",'1. Ordersheet'!K270)","v":""},{"$f":"IF('1. Ordersheet'!L270=\"\",\"\",'1. Ordersheet'!L270)","v":""},{"$f":"IF('1. Ordersheet'!M270=\"\",\"\",'1. Ordersheet'!M270)","v":""},{"$f":"IF('1. Ordersheet'!N270=\"\",\"\",'1. Ordersheet'!N270)","v":""},{"$f":"IF('1. Ordersheet'!O270=\"\",\"\",'1. Ordersheet'!O270)","v":{"$error":"#N/A"}},{"$f":"IF('1. Ordersheet'!P270=\"\",\"\",'1. Ordersheet'!P270)","v":{"$error":"#N/A"}},{"$f":"IF('1. Ordersheet'!Q270=\"\",\"\",'1. Ordersheet'!Q270)","v":""},{"$f":"IF('1. Ordersheet'!R270=\"\",\"\",'1. Ordersheet'!R270)","v":""},{"$f":"IF('1. Ordersheet'!S270=\"\",\"\",'1. Ordersheet'!S270)","v":""},{"$f":"IF('1. Ordersheet'!V270=\"\",\"\",'1. Ordersheet'!V270)","v":""},{"$f":"IF('1. Ordersheet'!W270=\"\",\"\",'1. Ordersheet'!W270)","v":""},{"$f":"IF('1. Ordersheet'!X270=\"\",\"\",'1. Ordersheet'!X270)","v":""},{"$f":"IF('1. Ordersheet'!Y270=\"\",\"\",'1. Ordersheet'!Y270)","v":""},{"$f":"IF('1. Ordersheet'!Z270=\"\",\"\",'1. Ordersheet'!Z270)","v":""},{"$f":"IF('1. Ordersheet'!AA270=\"\",\"\",'1. Ordersheet'!AA270)","v":""},null,{"$f":"IF('1. Ordersheet'!AS270=\"\",\"\",'1. Ordersheet'!AS270)","v":""},{"$f":"IF('1. Ordersheet'!AT270=\"\",\"\",'1. Ordersheet'!AT270)","v":""},null,null,null,null,null,null,null,{"$f":"IF('1. Ordersheet'!AX270=\"\",\"\",'1. Ordersheet'!AX270)","v":""},{"$f":"IF('1. Ordersheet'!AY270=\"\",\"\",'1. Ordersheet'!AY270)","v":""},{"$f":"IF('1. Ordersheet'!AZ270=\"\",\"\",'1. Ordersheet'!AZ270)","v":""},{"$f":"IF('1. Ordersheet'!BA270=\"\",\"\",'1. Ordersheet'!BA270)","v":""},{"$f":"IF('1. Ordersheet'!BC270=\"\",\"\",'1. Ordersheet'!BC270)","v":""},{"$f":"IF('1. Ordersheet'!BD270=\"\",\"\",'1. Ordersheet'!BD270)","v":""},{"$f":"IF('1. Ordersheet'!BE270=\"\",\"\",'1. Ordersheet'!BE270)","v":""},{"$f":"IF('1. Ordersheet'!BF270=\"\",\"\",'1. Ordersheet'!BF270)","v":""},{"$f":"IF('1. Ordersheet'!BG270=\"\",\"\",'1. Ordersheet'!BG270)","v":"ZWO"},{"$f":"IF('1. Ordersheet'!BH270=\"\",\"\",'1. Ordersheet'!BH270)","v":""},{"$f":"IF('1. Ordersheet'!BI270=\"\",\"\",'1. Ordersheet'!BI270)","v":""},{"$f":"IF('1. Ordersheet'!BJ270=\"\",\"\",'1. Ordersheet'!BJ270)","v":""},{"$f":"IF('1. Ordersheet'!BK270=\"\",\"\",'1. Ordersheet'!BK270)","v":""},{"$f":"IF('1. Ordersheet'!BL270=\"\",\"\",'1. Ordersheet'!BL270)","v":""}]
[{"$f":"IF('1. Ordersheet'!F271=\"\",\"\",'1. Ordersheet'!F271)","v":""},{"$f":"IF('1. Ordersheet'!G271=\"\",\"\",'1. Ordersheet'!G271)","v":""},{"$f":"IF('1. Ordersheet'!H271=\"\",\"\",'1. Ordersheet'!H271)","v":""},{"$f":"IF('1. Ordersheet'!I271=\"\",\"\",'1. Ordersheet'!I271)","v":""},{"$f":"IF('1. Ordersheet'!J271=\"\",\"\",'1. Ordersheet'!J271)","v":""},{"$f":"IF('1. Ordersheet'!K271=\"\",\"\",'1. Ordersheet'!K271)","v":""},{"$f":"IF('1. Ordersheet'!L271=\"\",\"\",'1. Ordersheet'!L271)","v":""},{"$f":"IF('1. Ordersheet'!M271=\"\",\"\",'1. Ordersheet'!M271)","v":""},{"$f":"IF('1. Ordersheet'!N271=\"\",\"\",'1. Ordersheet'!N271)","v":""},{"$f":"IF('1. Ordersheet'!O271=\"\",\"\",'1. Ordersheet'!O271)","v":{"$error":"#N/A"}},{"$f":"IF('1. Ordersheet'!P271=\"\",\"\",'1. Ordersheet'!P271)","v":{"$error":"#N/A"}},{"$f":"IF('1. Ordersheet'!Q271=\"\",\"\",'1. Ordersheet'!Q271)","v":""},{"$f":"IF('1. Ordersheet'!R271=\"\",\"\",'1. Ordersheet'!R271)","v":""},{"$f":"IF('1. Ordersheet'!S271=\"\",\"\",'1. Ordersheet'!S271)","v":""},{"$f":"IF('1. Ordersheet'!V271=\"\",\"\",'1. Ordersheet'!V271)","v":""},{"$f":"IF('1. Ordersheet'!W271=\"\",\"\",'1. Ordersheet'!W271)","v":""},{"$f":"IF('1. Ordersheet'!X271=\"\",\"\",'1. Ordersheet'!X271)","v":""},{"$f":"IF('1. Ordersheet'!Y271=\"\",\"\",'1. Ordersheet'!Y271)","v":""},{"$f":"IF('1. Ordersheet'!Z271=\"\",\"\",'1. Ordersheet'!Z271)","v":""},{"$f":"IF('1. Ordersheet'!AA271=\"\",\"\",'1. Ordersheet'!AA271)","v":""},null,{"$f":"IF('1. Ordersheet'!AS271=\"\",\"\",'1. Ordersheet'!AS271)","v":""},{"$f":"IF('1. Ordersheet'!AT271=\"\",\"\",'1. Ordersheet'!AT271)","v":""},null,null,null,null,null,null,null,{"$f":"IF('1. Ordersheet'!AX271=\"\",\"\",'1. Ordersheet'!AX271)","v":""},{"$f":"IF('1. Ordersheet'!AY271=\"\",\"\",'1. Ordersheet'!AY271)","v":""},{"$f":"IF('1. Ordersheet'!AZ271=\"\",\"\",'1. Ordersheet'!AZ271)","v":""},{"$f":"IF('1. Ordersheet'!BA271=\"\",\"\",'1. Ordersheet'!BA271)","v":""},{"$f":"IF('1. Ordersheet'!BC271=\"\",\"\",'1. Ordersheet'!BC271)","v":""},{"$f":"IF('1. Ordersheet'!BD271=\"\",\"\",'1. Ordersheet'!BD271)","v":""},{"$f":"IF('1. Ordersheet'!BE271=\"\",\"\",'1. Ordersheet'!BE271)","v":""},{"$f":"IF('1. Ordersheet'!BF271=\"\",\"\",'1. Ordersheet'!BF271)","v":""},{"$f":"IF('1. Ordersheet'!BG271=\"\",\"\",'1. Ordersheet'!BG271)","v":"ZWO"},{"$f":"IF('1. Ordersheet'!BH271=\"\",\"\",'1. Ordersheet'!BH271)","v":""},{"$f":"IF('1. Ordersheet'!BI271=\"\",\"\",'1. Ordersheet'!BI271)","v":""},{"$f":"IF('1. Ordersheet'!BJ271=\"\",\"\",'1. Ordersheet'!BJ271)","v":""},{"$f":"IF('1. Ordersheet'!BK271=\"\",\"\",'1. Ordersheet'!BK271)","v":""},{"$f":"IF('1. Ordersheet'!BL271=\"\",\"\",'1. Ordersheet'!BL271)","v":""}]
[{"$f":"IF('1. Ordersheet'!F272=\"\",\"\",'1. Ordersheet'!F272)","v":""},{"$f":"IF('1. Ordersheet'!G272=\"\",\"\",'1. Ordersheet'!G272)","v":""},{"$f":"IF('1. Ordersheet'!H272=\"\",\"\",'1. Ordersheet'!H272)","v":""},{"$f":"IF('1. Ordersheet'!I272=\"\",\"\",'1. Ordersheet'!I272)","v":""},{"$f":"IF('1. Ordersheet'!J272=\"\",\"\",'1. Ordersheet'!J272)","v":""},{"$f":"IF('1. Ordersheet'!K272=\"\",\"\",'1. Ordersheet'!K272)","v":""},{"$f":"IF('1. Ordersheet'!L272=\"\",\"\",'1. Ordersheet'!L272)","v":""},{"$f":"IF('1. Ordersheet'!M272=\"\",\"\",'1. Ordersheet'!M272)","v":""},{"$f":"IF('1. Ordersheet'!N272=\"\",\"\",'1. Ordersheet'!N272)","v":""},{"$f":"IF('1. Ordersheet'!O272=\"\",\"\",'1. Ordersheet'!O272)","v":{"$error":"#N/A"}},{"$f":"IF('1. Ordersheet'!P272=\"\",\"\",'1. Ordersheet'!P272)","v":{"$error":"#N/A"}},{"$f":"IF('1. Ordersheet'!Q272=\"\",\"\",'1. Ordersheet'!Q272)","v":""},{"$f":"IF('1. Ordersheet'!R272=\"\",\"\",'1. Ordersheet'!R272)","v":""},{"$f":"IF('1. Ordersheet'!S272=\"\",\"\",'1. Ordersheet'!S272)","v":""},{"$f":"IF('1. Ordersheet'!V272=\"\",\"\",'1. Ordersheet'!V272)","v":""},{"$f":"IF('1. Ordersheet'!W272=\"\",\"\",'1. Ordersheet'!W272)","v":""},{"$f":"IF('1. Ordersheet'!X272=\"\",\"\",'1. Ordersheet'!X272)","v":""},{"$f":"IF('1. Ordersheet'!Y272=\"\",\"\",'1. Ordersheet'!Y272)","v":""},{"$f":"IF('1. Ordersheet'!Z272=\"\",\"\",'1. Ordersheet'!Z272)","v":""},{"$f":"IF('1. Ordersheet'!AA272=\"\",\"\",'1. Ordersheet'!AA272)","v":""},null,{"$f":"IF('1. Ordersheet'!AS272=\"\",\"\",'1. Ordersheet'!AS272)","v":""},{"$f":"IF('1. Ordersheet'!AT272=\"\",\"\",'1. Ordersheet'!AT272)","v":""},null,null,null,null,null,null,null,{"$f":"IF('1. Ordersheet'!AX272=\"\",\"\",'1. Ordersheet'!AX272)","v":""},{"$f":"IF('1. Ordersheet'!AY272=\"\",\"\",'1. Ordersheet'!AY272)","v":""},{"$f":"IF('1. Ordersheet'!AZ272=\"\",\"\",'1. Ordersheet'!AZ272)","v":""},{"$f":"IF('1. Ordersheet'!BA272=\"\",\"\",'1. Ordersheet'!BA272)","v":""},{"$f":"IF('1. Ordersheet'!BC272=\"\",\"\",'1. Ordersheet'!BC272)","v":""},{"$f":"IF('1. Ordersheet'!BD272=\"\",\"\",'1. Ordersheet'!BD272)","v":""},{"$f":"IF('1. Ordersheet'!BE272=\"\",\"\",'1. Ordersheet'!BE272)","v":""},{"$f":"IF('1. Ordersheet'!BF272=\"\",\"\",'1. Ordersheet'!BF272)","v":""},{"$f":"IF('1. Ordersheet'!BG272=\"\",\"\",'1. Ordersheet'!BG272)","v":"ZWO"},{"$f":"IF('1. Ordersheet'!BH272=\"\",\"\",'1. Ordersheet'!BH272)","v":""},{"$f":"IF('1. Ordersheet'!BI272=\"\",\"\",'1. Ordersheet'!BI272)","v":""},{"$f":"IF('1. Ordersheet'!BJ272=\"\",\"\",'1. Ordersheet'!BJ272)","v":""},{"$f":"IF('1. Ordersheet'!BK272=\"\",\"\",'1. Ordersheet'!BK272)","v":""},{"$f":"IF('1. Ordersheet'!BL272=\"\",\"\",'1. Ordersheet'!BL272)","v":""}]
[{"$f":"IF('1. Ordersheet'!F273=\"\",\"\",'1. Ordersheet'!F273)","v":""},{"$f":"IF('1. Ordersheet'!G273=\"\",\"\",'1. Ordersheet'!G273)","v":""},{"$f":"IF('1. Ordersheet'!H273=\"\",\"\",'1. Ordersheet'!H273)","v":""},{"$f":"IF('1. Ordersheet'!I273=\"\",\"\",'1. Ordersheet'!I273)","v":""},{"$f":"IF('1. Ordersheet'!J273=\"\",\"\",'1. Ordersheet'!J273)","v":""},{"$f":"IF('1. Ordersheet'!K273=\"\",\"\",'1. Ordersheet'!K273)","v":""},{"$f":"IF('1. Ordersheet'!L273=\"\",\"\",'1. Ordersheet'!L273)","v":""},{"$f":"IF('1. Ordersheet'!M273=\"\",\"\",'1. Ordersheet'!M273)","v":""},{"$f":"IF('1. Ordersheet'!N273=\"\",\"\",'1. Ordersheet'!N273)","v":""},{"$f":"IF('1. Ordersheet'!O273=\"\",\"\",'1. Ordersheet'!O273)","v":{"$error":"#N/A"}},{"$f":"IF('1. Ordersheet'!P273=\"\",\"\",'1. Ordersheet'!P273)","v":{"$error":"#N/A"}},{"$f":"IF('1. Ordersheet'!Q273=\"\",\"\",'1. Ordersheet'!Q273)","v":""},{"$f":"IF('1. Ordersheet'!R273=\"\",\"\",'1. Ordersheet'!R273)","v":""},{"$f":"IF('1. Ordersheet'!S273=\"\",\"\",'1. Ordersheet'!S273)","v":""},{"$f":"IF('1. Ordersheet'!V273=\"\",\"\",'1. Ordersheet'!V273)","v":""},{"$f":"IF('1. Ordersheet'!W273=\"\",\"\",'1. Ordersheet'!W273)","v":""},{"$f":"IF('1. Ordersheet'!X273=\"\",\"\",'1. Ordersheet'!X273)","v":""},{"$f":"IF('1. Ordersheet'!Y273=\"\",\"\",'1. Ordersheet'!Y273)","v":""},{"$f":"IF('1. Ordersheet'!Z273=\"\",\"\",'1. Ordersheet'!Z273)","v":""},{"$f":"IF('1. Ordersheet'!AA273=\"\",\"\",'1. Ordersheet'!AA273)","v":""},null,{"$f":"IF('1. Ordersheet'!AS273=\"\",\"\",'1. Ordersheet'!AS273)","v":""},{"$f":"IF('1. Ordersheet'!AT273=\"\",\"\",'1. Ordersheet'!AT273)","v":""},null,null,null,null,null,null,null,{"$f":"IF('1. Ordersheet'!AX273=\"\",\"\",'1. Ordersheet'!AX273)","v":""},{"$f":"IF('1. Ordersheet'!AY273=\"\",\"\",'1. Ordersheet'!AY273)","v":""},{"$f":"IF('1. Ordersheet'!AZ273=\"\",\"\",'1. Ordersheet'!AZ273)","v":""},{"$f":"IF('1. Ordersheet'!BA273=\"\",\"\",'1. Ordersheet'!BA273)","v":""},{"$f":"IF('1. Ordersheet'!BC273=\"\",\"\",'1. Ordersheet'!BC273)","v":""},{"$f":"IF('1. Ordersheet'!BD273=\"\",\"\",'1. Ordersheet'!BD273)","v":""},{"$f":"IF('1. Ordersheet'!BE273=\"\",\"\",'1. Ordersheet'!BE273)","v":""},{"$f":"IF('1. Ordersheet'!BF273=\"\",\"\",'1. Ordersheet'!BF273)","v":""},{"$f":"IF('1. Ordersheet'!BG273=\"\",\"\",'1. Ordersheet'!BG273)","v":"ZWO"},{"$f":"IF('1. Ordersheet'!BH273=\"\",\"\",'1. Ordersheet'!BH273)","v":""},{"$f":"IF('1. Ordersheet'!BI273=\"\",\"\",'1. Ordersheet'!BI273)","v":""},{"$f":"IF('1. Ordersheet'!BJ273=\"\",\"\",'1. Ordersheet'!BJ273)","v":""},{"$f":"IF('1. Ordersheet'!BK273=\"\",\"\",'1. Ordersheet'!BK273)","v":""},{"$f":"IF('1. Ordersheet'!BL273=\"\",\"\",'1. Ordersheet'!BL273)","v":""}]
[{"$f":"IF('1. Ordersheet'!F274=\"\",\"\",'1. Ordersheet'!F274)","v":""},{"$f":"IF('1. Ordersheet'!G274=\"\",\"\",'1. Ordersheet'!G274)","v":""},{"$f":"IF('1. Ordersheet'!H274=\"\",\"\",'1. Ordersheet'!H274)","v":""},{"$f":"IF('1. Ordersheet'!I274=\"\",\"\",'1. Ordersheet'!I274)","v":""},{"$f":"IF('1. Ordersheet'!J274=\"\",\"\",'1. Ordersheet'!J274)","v":""},{"$f":"IF('1. Ordersheet'!K274=\"\",\"\",'1. Ordersheet'!K274)","v":""},{"$f":"IF('1. Ordersheet'!L274=\"\",\"\",'1. Ordersheet'!L274)","v":""},{"$f":"IF('1. Ordersheet'!M274=\"\",\"\",'1. Ordersheet'!M274)","v":""},{"$f":"IF('1. Ordersheet'!N274=\"\",\"\",'1. Ordersheet'!N274)","v":""},{"$f":"IF('1. Ordersheet'!O274=\"\",\"\",'1. Ordersheet'!O274)","v":{"$error":"#N/A"}},{"$f":"IF('1. Ordersheet'!P274=\"\",\"\",'1. Ordersheet'!P274)","v":{"$error":"#N/A"}},{"$f":"IF('1. Ordersheet'!Q274=\"\",\"\",'1. Ordersheet'!Q274)","v":""},{"$f":"IF('1. Ordersheet'!R274=\"\",\"\",'1. Ordersheet'!R274)","v":""},{"$f":"IF('1. Ordersheet'!S274=\"\",\"\",'1. Ordersheet'!S274)","v":""},{"$f":"IF('1. Ordersheet'!V274=\"\",\"\",'1. Ordersheet'!V274)","v":""},{"$f":"IF('1. Ordersheet'!W274=\"\",\"\",'1. Ordersheet'!W274)","v":""},{"$f":"IF('1. Ordersheet'!X274=\"\",\"\",'1. Ordersheet'!X274)","v":""},{"$f":"IF('1. Ordersheet'!Y274=\"\",\"\",'1. Ordersheet'!Y274)","v":""},{"$f":"IF('1. Ordersheet'!Z274=\"\",\"\",'1. Ordersheet'!Z274)","v":""},{"$f":"IF('1. Ordersheet'!AA274=\"\",\"\",'1. Ordersheet'!AA274)","v":""},null,{"$f":"IF('1. Ordersheet'!AS274=\"\",\"\",'1. Ordersheet'!AS274)","v":""},{"$f":"IF('1. Ordersheet'!AT274=\"\",\"\",'1. Ordersheet'!AT274)","v":""},null,null,null,null,null,null,null,{"$f":"IF('1. Ordersheet'!AX274=\"\",\"\",'1. Ordersheet'!AX274)","v":""},{"$f":"IF('1. Ordersheet'!AY274=\"\",\"\",'1. Ordersheet'!AY274)","v":""},{"$f":"IF('1. Ordersheet'!AZ274=\"\",\"\",'1. Ordersheet'!AZ274)","v":""},{"$f":"IF('1. Ordersheet'!BA274=\"\",\"\",'1. Ordersheet'!BA274)","v":""},{"$f":"IF('1. Ordersheet'!BC274=\"\",\"\",'1. Ordersheet'!BC274)","v":""},{"$f":"IF('1. Ordersheet'!BD274=\"\",\"\",'1. Ordersheet'!BD274)","v":""},{"$f":"IF('1. Ordersheet'!BE274=\"\",\"\",'1. Ordersheet'!BE274)","v":""},{"$f":"IF('1. Ordersheet'!BF274=\"\",\"\",'1. Ordersheet'!BF274)","v":""},{"$f":"IF('1. Ordersheet'!BG274=\"\",\"\",'1. Ordersheet'!BG274)","v":"ZWO"},{"$f":"IF('1. Ordersheet'!BH274=\"\",\"\",'1. Ordersheet'!BH274)","v":""},{"$f":"IF('1. Ordersheet'!BI274=\"\",\"\",'1. Ordersheet'!BI274)","v":""},{"$f":"IF('1. Ordersheet'!BJ274=\"\",\"\",'1. Ordersheet'!BJ274)","v":""},{"$f":"IF('1. Ordersheet'!BK274=\"\",\"\",'1. Ordersheet'!BK274)","v":""},{"$f":"IF('1. Ordersheet'!BL274=\"\",\"\",'1. Ordersheet'!BL274)","v":""}]
[{"$f":"IF('1. Ordersheet'!F275=\"\",\"\",'1. Ordersheet'!F275)","v":""},{"$f":"IF('1. Ordersheet'!G275=\"\",\"\",'1. Ordersheet'!G275)","v":""},{"$f":"IF('1. Ordersheet'!H275=\"\",\"\",'1. Ordersheet'!H275)","v":""},{"$f":"IF('1. Ordersheet'!I275=\"\",\"\",'1. Ordersheet'!I275)","v":""},{"$f":"IF('1. Ordersheet'!J275=\"\",\"\",'1. Ordersheet'!J275)","v":""},{"$f":"IF('1. Ordersheet'!K275=\"\",\"\",'1. Ordersheet'!K275)","v":""},{"$f":"IF('1. Ordersheet'!L275=\"\",\"\",'1. Ordersheet'!L275)","v":""},{"$f":"IF('1. Ordersheet'!M275=\"\",\"\",'1. Ordersheet'!M275)","v":""},{"$f":"IF('1. Ordersheet'!N275=\"\",\"\",'1. Ordersheet'!N275)","v":""},{"$f":"IF('1. Ordersheet'!O275=\"\",\"\",'1. Ordersheet'!O275)","v":{"$error":"#N/A"}},{"$f":"IF('1. Ordersheet'!P275=\"\",\"\",'1. Ordersheet'!P275)","v":{"$error":"#N/A"}},{"$f":"IF('1. Ordersheet'!Q275=\"\",\"\",'1. Ordersheet'!Q275)","v":""},{"$f":"IF('1. Ordersheet'!R275=\"\",\"\",'1. Ordersheet'!R275)","v":""},{"$f":"IF('1. Ordersheet'!S275=\"\",\"\",'1. Ordersheet'!S275)","v":""},{"$f":"IF('1. Ordersheet'!V275=\"\",\"\",'1. Ordersheet'!V275)","v":""},{"$f":"IF('1. Ordersheet'!W275=\"\",\"\",'1. Ordersheet'!W275)","v":""},{"$f":"IF('1. Ordersheet'!X275=\"\",\"\",'1. Ordersheet'!X275)","v":""},{"$f":"IF('1. Ordersheet'!Y275=\"\",\"\",'1. Ordersheet'!Y275)","v":""},{"$f":"IF('1. Ordersheet'!Z275=\"\",\"\",'1. Ordersheet'!Z275)","v":""},{"$f":"IF('1. Ordersheet'!AA275=\"\",\"\",'1. Ordersheet'!AA275)","v":""},null,{"$f":"IF('1. Ordersheet'!AS275=\"\",\"\",'1. Ordersheet'!AS275)","v":""},{"$f":"IF('1. Ordersheet'!AT275=\"\",\"\",'1. Ordersheet'!AT275)","v":""},null,null,null,null,null,null,null,{"$f":"IF('1. Ordersheet'!AX275=\"\",\"\",'1. Ordersheet'!AX275)","v":""},{"$f":"IF('1. Ordersheet'!AY275=\"\",\"\",'1. Ordersheet'!AY275)","v":""},{"$f":"IF('1. Ordersheet'!AZ275=\"\",\"\",'1. Ordersheet'!AZ275)","v":""},{"$f":"IF('1. Ordersheet'!BA275=\"\",\"\",'1. Ordersheet'!BA275)","v":""},{"$f":"IF('1. Ordersheet'!BC275=\"\",\"\",'1. Ordersheet'!BC275)","v":""},{"$f":"IF('1. Ordersheet'!BD275=\"\",\"\",'1. Ordersheet'!BD275)","v":""},{"$f":"IF('1. Ordersheet'!BE275=\"\",\"\",'1. Ordersheet'!BE275)","v":""},{"$f":"IF('1. Ordersheet'!BF275=\"\",\"\",'1. Ordersheet'!BF275)","v":""},{"$f":"IF('1. Ordersheet'!BG275=\"\",\"\",'1. Ordersheet'!BG275)","v":"ZWO"},{"$f":"IF('1. Ordersheet'!BH275=\"\",\"\",'1. Ordersheet'!BH275)","v":""},{"$f":"IF('1. Ordersheet'!BI275=\"\",\"\",'1. Ordersheet'!BI275)","v":""},{"$f":"IF('1. Ordersheet'!BJ275=\"\",\"\",'1. Ordersheet'!BJ275)","v":""},{"$f":"IF('1. Ordersheet'!BK275=\"\",\"\",'1. Ordersheet'!BK275)","v":""},{"$f":"IF('1. Ordersheet'!BL275=\"\",\"\",'1. Ordersheet'!BL275)","v":""}]
[{"$f":"IF('1. Ordersheet'!F276=\"\",\"\",'1. Ordersheet'!F276)","v":""},{"$f":"IF('1. Ordersheet'!G276=\"\",\"\",'1. Ordersheet'!G276)","v":""},{"$f":"IF('1. Ordersheet'!H276=\"\",\"\",'1. Ordersheet'!H276)","v":""},{"$f":"IF('1. Ordersheet'!I276=\"\",\"\",'1. Ordersheet'!I276)","v":""},{"$f":"IF('1. Ordersheet'!J276=\"\",\"\",'1. Ordersheet'!J276)","v":""},{"$f":"IF('1. Ordersheet'!K276=\"\",\"\",'1. Ordersheet'!K276)","v":""},{"$f":"IF('1. Ordersheet'!L276=\"\",\"\",'1. Ordersheet'!L276)","v":""},{"$f":"IF('1. Ordersheet'!M276=\"\",\"\",'1. Ordersheet'!M276)","v":""},{"$f":"IF('1. Ordersheet'!N276=\"\",\"\",'1. Ordersheet'!N276)","v":""},{"$f":"IF('1. Ordersheet'!O276=\"\",\"\",'1. Ordersheet'!O276)","v":{"$error":"#N/A"}},{"$f":"IF('1. Ordersheet'!P276=\"\",\"\",'1. Ordersheet'!P276)","v":{"$error":"#N/A"}},{"$f":"IF('1. Ordersheet'!Q276=\"\",\"\",'1. Ordersheet'!Q276)","v":""},{"$f":"IF('1. Ordersheet'!R276=\"\",\"\",'1. Ordersheet'!R276)","v":""},{"$f":"IF('1. Ordersheet'!S276=\"\",\"\",'1. Ordersheet'!S276)","v":""},{"$f":"IF('1. Ordersheet'!V276=\"\",\"\",'1. Ordersheet'!V276)","v":""},{"$f":"IF('1. Ordersheet'!W276=\"\",\"\",'1. Ordersheet'!W276)","v":""},{"$f":"IF('1. Ordersheet'!X276=\"\",\"\",'1. Ordersheet'!X276)","v":""},{"$f":"IF('1. Ordersheet'!Y276=\"\",\"\",'1. Ordersheet'!Y276)","v":""},{"$f":"IF('1. Ordersheet'!Z276=\"\",\"\",'1. Ordersheet'!Z276)","v":""},{"$f":"IF('1. Ordersheet'!AA276=\"\",\"\",'1. Ordersheet'!AA276)","v":""},null,{"$f":"IF('1. Ordersheet'!AS276=\"\",\"\",'1. Ordersheet'!AS276)","v":""},{"$f":"IF('1. Ordersheet'!AT276=\"\",\"\",'1. Ordersheet'!AT276)","v":""},null,null,null,null,null,null,null,{"$f":"IF('1. Ordersheet'!AX276=\"\",\"\",'1. Ordersheet'!AX276)","v":""},{"$f":"IF('1. Ordersheet'!AY276=\"\",\"\",'1. Ordersheet'!AY276)","v":""},{"$f":"IF('1. Ordersheet'!AZ276=\"\",\"\",'1. Ordersheet'!AZ276)","v":""},{"$f":"IF('1. Ordersheet'!BA276=\"\",\"\",'1. Ordersheet'!BA276)","v":""},{"$f":"IF('1. Ordersheet'!BC276=\"\",\"\",'1. Ordersheet'!BC276)","v":""},{"$f":"IF('1. Ordersheet'!BD276=\"\",\"\",'1. Ordersheet'!BD276)","v":""},{"$f":"IF('1. Ordersheet'!BE276=\"\",\"\",'1. Ordersheet'!BE276)","v":""},{"$f":"IF('1. Ordersheet'!BF276=\"\",\"\",'1. Ordersheet'!BF276)","v":""},{"$f":"IF('1. Ordersheet'!BG276=\"\",\"\",'1. Ordersheet'!BG276)","v":"ZWO"},{"$f":"IF('1. Ordersheet'!BH276=\"\",\"\",'1. Ordersheet'!BH276)","v":""},{"$f":"IF('1. Ordersheet'!BI276=\"\",\"\",'1. Ordersheet'!BI276)","v":""},{"$f":"IF('1. Ordersheet'!BJ276=\"\",\"\",'1. Ordersheet'!BJ276)","v":""},{"$f":"IF('1. Ordersheet'!BK276=\"\",\"\",'1. Ordersheet'!BK276)","v":""},{"$f":"IF('1. Ordersheet'!BL276=\"\",\"\",'1. Ordersheet'!BL276)","v":""}]
[{"$f":"IF('1. Ordersheet'!F277=\"\",\"\",'1. Ordersheet'!F277)","v":""},{"$f":"IF('1. Ordersheet'!G277=\"\",\"\",'1. Ordersheet'!G277)","v":""},{"$f":"IF('1. Ordersheet'!H277=\"\",\"\",'1. Ordersheet'!H277)","v":""},{"$f":"IF('1. Ordersheet'!I277=\"\",\"\",'1. Ordersheet'!I277)","v":""},{"$f":"IF('1. Ordersheet'!J277=\"\",\"\",'1. Ordersheet'!J277)","v":""},{"$f":"IF('1. Ordersheet'!K277=\"\",\"\",'1. Ordersheet'!K277)","v":""},{"$f":"IF('1. Ordersheet'!L277=\"\",\"\",'1. Ordersheet'!L277)","v":""},{"$f":"IF('1. Ordersheet'!M277=\"\",\"\",'1. Ordersheet'!M277)","v":""},{"$f":"IF('1. Ordersheet'!N277=\"\",\"\",'1. Ordersheet'!N277)","v":""},{"$f":"IF('1. Ordersheet'!O277=\"\",\"\",'1. Ordersheet'!O277)","v":{"$error":"#N/A"}},{"$f":"IF('1. Ordersheet'!P277=\"\",\"\",'1. Ordersheet'!P277)","v":{"$error":"#N/A"}},{"$f":"IF('1. Ordersheet'!Q277=\"\",\"\",'1. Ordersheet'!Q277)","v":""},{"$f":"IF('1. Ordersheet'!R277=\"\",\"\",'1. Ordersheet'!R277)","v":""},{"$f":"IF('1. Ordersheet'!S277=\"\",\"\",'1. Ordersheet'!S277)","v":""},{"$f":"IF('1. Ordersheet'!V277=\"\",\"\",'1. Ordersheet'!V277)","v":""},{"$f":"IF('1. Ordersheet'!W277=\"\",\"\",'1. Ordersheet'!W277)","v":""},{"$f":"IF('1. Ordersheet'!X277=\"\",\"\",'1. Ordersheet'!X277)","v":""},{"$f":"IF('1. Ordersheet'!Y277=\"\",\"\",'1. Ordersheet'!Y277)","v":""},{"$f":"IF('1. Ordersheet'!Z277=\"\",\"\",'1. Ordersheet'!Z277)","v":""},{"$f":"IF('1. Ordersheet'!AA277=\"\",\"\",'1. Ordersheet'!AA277)","v":""},null,{"$f":"IF('1. Ordersheet'!AS277=\"\",\"\",'1. Ordersheet'!AS277)","v":""},{"$f":"IF('1. Ordersheet'!AT277=\"\",\"\",'1. Ordersheet'!AT277)","v":""},null,null,null,null,null,null,null,{"$f":"IF('1. Ordersheet'!AX277=\"\",\"\",'1. Ordersheet'!AX277)","v":""},{"$f":"IF('1. Ordersheet'!AY277=\"\",\"\",'1. Ordersheet'!AY277)","v":""},{"$f":"IF('1. Ordersheet'!AZ277=\"\",\"\",'1. Ordersheet'!AZ277)","v":""},{"$f":"IF('1. Ordersheet'!BA277=\"\",\"\",'1. Ordersheet'!BA277)","v":""},{"$f":"IF('1. Ordersheet'!BC277=\"\",\"\",'1. Ordersheet'!BC277)","v":""},{"$f":"IF('1. Ordersheet'!BD277=\"\",\"\",'1. Ordersheet'!BD277)","v":""},{"$f":"IF('1. Ordersheet'!BE277=\"\",\"\",'1. Ordersheet'!BE277)","v":""},{"$f":"IF('1. Ordersheet'!BF277=\"\",\"\",'1. Ordersheet'!BF277)","v":""},{"$f":"IF('1. Ordersheet'!BG277=\"\",\"\",'1. Ordersheet'!BG277)","v":"ZWO"},{"$f":"IF('1. Ordersheet'!BH277=\"\",\"\",'1. Ordersheet'!BH277)","v":""},{"$f":"IF('1. Ordersheet'!BI277=\"\",\"\",'1. Ordersheet'!BI277)","v":""},{"$f":"IF('1. Ordersheet'!BJ277=\"\",\"\",'1. Ordersheet'!BJ277)","v":""},{"$f":"IF('1. Ordersheet'!BK277=\"\",\"\",'1. Ordersheet'!BK277)","v":""},{"$f":"IF('1. Ordersheet'!BL277=\"\",\"\",'1. Ordersheet'!BL277)","v":""}]
[{"$f":"IF('1. Ordersheet'!F278=\"\",\"\",'1. Ordersheet'!F278)","v":""},{"$f":"IF('1. Ordersheet'!G278=\"\",\"\",'1. Ordersheet'!G278)","v":""},{"$f":"IF('1. Ordersheet'!H278=\"\",\"\",'1. Ordersheet'!H278)","v":""},{"$f":"IF('1. Ordersheet'!I278=\"\",\"\",'1. Ordersheet'!I278)","v":""},{"$f":"IF('1. Ordersheet'!J278=\"\",\"\",'1. Ordersheet'!J278)","v":""},{"$f":"IF('1. Ordersheet'!K278=\"\",\"\",'1. Ordersheet'!K278)","v":""},{"$f":"IF('1. Ordersheet'!L278=\"\",\"\",'1. Ordersheet'!L278)","v":""},{"$f":"IF('1. Ordersheet'!M278=\"\",\"\",'1. Ordersheet'!M278)","v":""},{"$f":"IF('1. Ordersheet'!N278=\"\",\"\",'1. Ordersheet'!N278)","v":""},{"$f":"IF('1. Ordersheet'!O278=\"\",\"\",'1. Ordersheet'!O278)","v":{"$error":"#N/A"}},{"$f":"IF('1. Ordersheet'!P278=\"\",\"\",'1. Ordersheet'!P278)","v":{"$error":"#N/A"}},{"$f":"IF('1. Ordersheet'!Q278=\"\",\"\",'1. Ordersheet'!Q278)","v":""},{"$f":"IF('1. Ordersheet'!R278=\"\",\"\",'1. Ordersheet'!R278)","v":""},{"$f":"IF('1. Ordersheet'!S278=\"\",\"\",'1. Ordersheet'!S278)","v":""},{"$f":"IF('1. Ordersheet'!V278=\"\",\"\",'1. Ordersheet'!V278)","v":""},{"$f":"IF('1. Ordersheet'!W278=\"\",\"\",'1. Ordersheet'!W278)","v":""},{"$f":"IF('1. Ordersheet'!X278=\"\",\"\",'1. Ordersheet'!X278)","v":""},{"$f":"IF('1. Ordersheet'!Y278=\"\",\"\",'1. Ordersheet'!Y278)","v":""},{"$f":"IF('1. Ordersheet'!Z278=\"\",\"\",'1. Ordersheet'!Z278)","v":""},{"$f":"IF('1. Ordersheet'!AA278=\"\",\"\",'1. Ordersheet'!AA278)","v":""},null,{"$f":"IF('1. Ordersheet'!AS278=\"\",\"\",'1. Ordersheet'!AS278)","v":""},{"$f":"IF('1. Ordersheet'!AT278=\"\",\"\",'1. Ordersheet'!AT278)","v":""},null,null,null,null,null,null,null,{"$f":"IF('1. Ordersheet'!AX278=\"\",\"\",'1. Ordersheet'!AX278)","v":""},{"$f":"IF('1. Ordersheet'!AY278=\"\",\"\",'1. Ordersheet'!AY278)","v":""},{"$f":"IF('1. Ordersheet'!AZ278=\"\",\"\",'1. Ordersheet'!AZ278)","v":""},{"$f":"IF('1. Ordersheet'!BA278=\"\",\"\",'1. Ordersheet'!BA278)","v":""},{"$f":"IF('1. Ordersheet'!BC278=\"\",\"\",'1. Ordersheet'!BC278)","v":""},{"$f":"IF('1. Ordersheet'!BD278=\"\",\"\",'1. Ordersheet'!BD278)","v":""},{"$f":"IF('1. Ordersheet'!BE278=\"\",\"\",'1. Ordersheet'!BE278)","v":""},{"$f":"IF('1. Ordersheet'!BF278=\"\",\"\",'1. Ordersheet'!BF278)","v":""},{"$f":"IF('1. Ordersheet'!BG278=\"\",\"\",'1. Ordersheet'!BG278)","v":"ZWO"},{"$f":"IF('1. Ordersheet'!BH278=\"\",\"\",'1. Ordersheet'!BH278)","v":""},{"$f":"IF('1. Ordersheet'!BI278=\"\",\"\",'1. Ordersheet'!BI278)","v":""},{"$f":"IF('1. Ordersheet'!BJ278=\"\",\"\",'1. Ordersheet'!BJ278)","v":""},{"$f":"IF('1. Ordersheet'!BK278=\"\",\"\",'1. Ordersheet'!BK278)","v":""},{"$f":"IF('1. Ordersheet'!BL278=\"\",\"\",'1. Ordersheet'!BL278)","v":""}]
[{"$f":"IF('1. Ordersheet'!F279=\"\",\"\",'1. Ordersheet'!F279)","v":""},{"$f":"IF('1. Ordersheet'!G279=\"\",\"\",'1. Ordersheet'!G279)","v":""},{"$f":"IF('1. Ordersheet'!H279=\"\",\"\",'1. Ordersheet'!H279)","v":""},{"$f":"IF('1. Ordersheet'!I279=\"\",\"\",'1. Ordersheet'!I279)","v":""},{"$f":"IF('1. Ordersheet'!J279=\"\",\"\",'1. Ordersheet'!J279)","v":""},{"$f":"IF('1. Ordersheet'!K279=\"\",\"\",'1. Ordersheet'!K279)","v":""},{"$f":"IF('1. Ordersheet'!L279=\"\",\"\",'1. Ordersheet'!L279)","v":""},{"$f":"IF('1. Ordersheet'!M279=\"\",\"\",'1. Ordersheet'!M279)","v":""},{"$f":"IF('1. Ordersheet'!N279=\"\",\"\",'1. Ordersheet'!N279)","v":""},{"$f":"IF('1. Ordersheet'!O279=\"\",\"\",'1. Ordersheet'!O279)","v":{"$error":"#N/A"}},{"$f":"IF('1. Ordersheet'!P279=\"\",\"\",'1. Ordersheet'!P279)","v":{"$error":"#N/A"}},{"$f":"IF('1. Ordersheet'!Q279=\"\",\"\",'1. Ordersheet'!Q279)","v":""},{"$f":"IF('1. Ordersheet'!R279=\"\",\"\",'1. Ordersheet'!R279)","v":""},{"$f":"IF('1. Ordersheet'!S279=\"\",\"\",'1. Ordersheet'!S279)","v":""},{"$f":"IF('1. Ordersheet'!V279=\"\",\"\",'1. Ordersheet'!V279)","v":""},{"$f":"IF('1. Ordersheet'!W279=\"\",\"\",'1. Ordersheet'!W279)","v":""},{"$f":"IF('1. Ordersheet'!X279=\"\",\"\",'1. Ordersheet'!X279)","v":""},{"$f":"IF('1. Ordersheet'!Y279=\"\",\"\",'1. Ordersheet'!Y279)","v":""},{"$f":"IF('1. Ordersheet'!Z279=\"\",\"\",'1. Ordersheet'!Z279)","v":""},{"$f":"IF('1. Ordersheet'!AA279=\"\",\"\",'1. Ordersheet'!AA279)","v":""},null,{"$f":"IF('1. Ordersheet'!AS279=\"\",\"\",'1. Ordersheet'!AS279)","v":""},{"$f":"IF('1. Ordersheet'!AT279=\"\",\"\",'1. Ordersheet'!AT279)","v":""},null,null,null,null,null,null,null,{"$f":"IF('1. Ordersheet'!AX279=\"\",\"\",'1. Ordersheet'!AX279)","v":""},{"$f":"IF('1. Ordersheet'!AY279=\"\",\"\",'1. Ordersheet'!AY279)","v":""},{"$f":"IF('1. Ordersheet'!AZ279=\"\",\"\",'1. Ordersheet'!AZ279)","v":""},{"$f":"IF('1. Ordersheet'!BA279=\"\",\"\",'1. Ordersheet'!BA279)","v":""},{"$f":"IF('1. Ordersheet'!BC279=\"\",\"\",'1. Ordersheet'!BC279)","v":""},{"$f":"IF('1. Ordersheet'!BD279=\"\",\"\",'1. Ordersheet'!BD279)","v":""},{"$f":"IF('1. Ordersheet'!BE279=\"\",\"\",'1. Ordersheet'!BE279)","v":""},{"$f":"IF('1. Ordersheet'!BF279=\"\",\"\",'1. Ordersheet'!BF279)","v":""},{"$f":"IF('1. Ordersheet'!BG279=\"\",\"\",'1. Ordersheet'!BG279)","v":"ZWO"},{"$f":"IF('1. Ordersheet'!BH279=\"\",\"\",'1. Ordersheet'!BH279)","v":""},{"$f":"IF('1. Ordersheet'!BI279=\"\",\"\",'1. Ordersheet'!BI279)","v":""},{"$f":"IF('1. Ordersheet'!BJ279=\"\",\"\",'1. Ordersheet'!BJ279)","v":""},{"$f":"IF('1. Ordersheet'!BK279=\"\",\"\",'1. Ordersheet'!BK279)","v":""},{"$f":"IF('1. Ordersheet'!BL279=\"\",\"\",'1. Ordersheet'!BL279)","v":""}]
[{"$f":"IF('1. Ordersheet'!F280=\"\",\"\",'1. Ordersheet'!F280)","v":""},{"$f":"IF('1. Ordersheet'!G280=\"\",\"\",'1. Ordersheet'!G280)","v":""},{"$f":"IF('1. Ordersheet'!H280=\"\",\"\",'1. Ordersheet'!H280)","v":""},{"$f":"IF('1. Ordersheet'!I280=\"\",\"\",'1. Ordersheet'!I280)","v":""},{"$f":"IF('1. Ordersheet'!J280=\"\",\"\",'1. Ordersheet'!J280)","v":""},{"$f":"IF('1. Ordersheet'!K280=\"\",\"\",'1. Ordersheet'!K280)","v":""},{"$f":"IF('1. Ordersheet'!L280=\"\",\"\",'1. Ordersheet'!L280)","v":""},{"$f":"IF('1. Ordersheet'!M280=\"\",\"\",'1. Ordersheet'!M280)","v":""},{"$f":"IF('1. Ordersheet'!N280=\"\",\"\",'1. Ordersheet'!N280)","v":""},{"$f":"IF('1. Ordersheet'!O280=\"\",\"\",'1. Ordersheet'!O280)","v":{"$error":"#N/A"}},{"$f":"IF('1. Ordersheet'!P280=\"\",\"\",'1. Ordersheet'!P280)","v":{"$error":"#N/A"}},{"$f":"IF('1. Ordersheet'!Q280=\"\",\"\",'1. Ordersheet'!Q280)","v":""},{"$f":"IF('1. Ordersheet'!R280=\"\",\"\",'1. Ordersheet'!R280)","v":""},{"$f":"IF('1. Ordersheet'!S280=\"\",\"\",'1. Ordersheet'!S280)","v":""},{"$f":"IF('1. Ordersheet'!V280=\"\",\"\",'1. Ordersheet'!V280)","v":""},{"$f":"IF('1. Ordersheet'!W280=\"\",\"\",'1. Ordersheet'!W280)","v":""},{"$f":"IF('1. Ordersheet'!X280=\"\",\"\",'1. Ordersheet'!X280)","v":""},{"$f":"IF('1. Ordersheet'!Y280=\"\",\"\",'1. Ordersheet'!Y280)","v":""},{"$f":"IF('1. Ordersheet'!Z280=\"\",\"\",'1. Ordersheet'!Z280)","v":""},{"$f":"IF('1. Ordersheet'!AA280=\"\",\"\",'1. Ordersheet'!AA280)","v":""},null,{"$f":"IF('1. Ordersheet'!AS280=\"\",\"\",'1. Ordersheet'!AS280)","v":""},{"$f":"IF('1. Ordersheet'!AT280=\"\",\"\",'1. Ordersheet'!AT280)","v":""},null,null,null,null,null,null,null,{"$f":"IF('1. Ordersheet'!AX280=\"\",\"\",'1. Ordersheet'!AX280)","v":""},{"$f":"IF('1. Ordersheet'!AY280=\"\",\"\",'1. Ordersheet'!AY280)","v":""},{"$f":"IF('1. Ordersheet'!AZ280=\"\",\"\",'1. Ordersheet'!AZ280)","v":""},{"$f":"IF('1. Ordersheet'!BA280=\"\",\"\",'1. Ordersheet'!BA280)","v":""},{"$f":"IF('1. Ordersheet'!BC280=\"\",\"\",'1. Ordersheet'!BC280)","v":""},{"$f":"IF('1. Ordersheet'!BD280=\"\",\"\",'1. Ordersheet'!BD280)","v":""},{"$f":"IF('1. Ordersheet'!BE280=\"\",\"\",'1. Ordersheet'!BE280)","v":""},{"$f":"IF('1. Ordersheet'!BF280=\"\",\"\",'1. Ordersheet'!BF280)","v":""},{"$f":"IF('1. Ordersheet'!BG280=\"\",\"\",'1. Ordersheet'!BG280)","v":"ZWO"},{"$f":"IF('1. Ordersheet'!BH280=\"\",\"\",'1. Ordersheet'!BH280)","v":""},{"$f":"IF('1. Ordersheet'!BI280=\"\",\"\",'1. Ordersheet'!BI280)","v":""},{"$f":"IF('1. Ordersheet'!BJ280=\"\",\"\",'1. Ordersheet'!BJ280)","v":""},{"$f":"IF('1. Ordersheet'!BK280=\"\",\"\",'1. Ordersheet'!BK280)","v":""},{"$f":"IF('1. Ordersheet'!BL280=\"\",\"\",'1. Ordersheet'!BL280)","v":""}]
[{"$f":"IF('1. Ordersheet'!F281=\"\",\"\",'1. Ordersheet'!F281)","v":""},{"$f":"IF('1. Ordersheet'!G281=\"\",\"\",'1. Ordersheet'!G281)","v":""},{"$f":"IF('1. Ordersheet'!H281=\"\",\"\",'1. Ordersheet'!H281)","v":""},{"$f":"IF('1. Ordersheet'!I281=\"\",\"\",'1. Ordersheet'!I281)","v":""},{"$f":"IF('1. Ordersheet'!J281=\"\",\"\",'1. Ordersheet'!J281)","v":""},{"$f":"IF('1. Ordersheet'!K281=\"\",\"\",'1. Ordersheet'!K281)","v":""},{"$f":"IF('1. Ordersheet'!L281=\"\",\"\",'1. Ordersheet'!L281)","v":""},{"$f":"IF('1. Ordersheet'!M281=\"\",\"\",'1. Ordersheet'!M281)","v":""},{"$f":"IF('1. Ordersheet'!N281=\"\",\"\",'1. Ordersheet'!N281)","v":""},{"$f":"IF('1. Ordersheet'!O281=\"\",\"\",'1. Ordersheet'!O281)","v":{"$error":"#N/A"}},{"$f":"IF('1. Ordersheet'!P281=\"\",\"\",'1. Ordersheet'!P281)","v":{"$error":"#N/A"}},{"$f":"IF('1. Ordersheet'!Q281=\"\",\"\",'1. Ordersheet'!Q281)","v":""},{"$f":"IF('1. Ordersheet'!R281=\"\",\"\",'1. Ordersheet'!R281)","v":""},{"$f":"IF('1. Ordersheet'!S281=\"\",\"\",'1. Ordersheet'!S281)","v":""},{"$f":"IF('1. Ordersheet'!V281=\"\",\"\",'1. Ordersheet'!V281)","v":""},{"$f":"IF('1. Ordersheet'!W281=\"\",\"\",'1. Ordersheet'!W281)","v":""},{"$f":"IF('1. Ordersheet'!X281=\"\",\"\",'1. Ordersheet'!X281)","v":""},{"$f":"IF('1. Ordersheet'!Y281=\"\",\"\",'1. Ordersheet'!Y281)","v":""},{"$f":"IF('1. Ordersheet'!Z281=\"\",\"\",'1. Ordersheet'!Z281)","v":""},{"$f":"IF('1. Ordersheet'!AA281=\"\",\"\",'1. Ordersheet'!AA281)","v":""},null,{"$f":"IF('1. Ordersheet'!AS281=\"\",\"\",'1. Ordersheet'!AS281)","v":""},{"$f":"IF('1. Ordersheet'!AT281=\"\",\"\",'1. Ordersheet'!AT281)","v":""},null,null,null,null,null,null,null,{"$f":"IF('1. Ordersheet'!AX281=\"\",\"\",'1. Ordersheet'!AX281)","v":""},{"$f":"IF('1. Ordersheet'!AY281=\"\",\"\",'1. Ordersheet'!AY281)","v":""},{"$f":"IF('1. Ordersheet'!AZ281=\"\",\"\",'1. Ordersheet'!AZ281)","v":""},{"$f":"IF('1. Ordersheet'!BA281=\"\",\"\",'1. Ordersheet'!BA281)","v":""},{"$f":"IF('1. Ordersheet'!BC281=\"\",\"\",'1. Ordersheet'!BC281)","v":""},{"$f":"IF('1. Ordersheet'!BD281=\"\",\"\",'1. Ordersheet'!BD281)","v":""},{"$f":"IF('1. Ordersheet'!BE281=\"\",\"\",'1. Ordersheet'!BE281)","v":""},{"$f":"IF('1. Ordersheet'!BF281=\"\",\"\",'1. Ordersheet'!BF281)","v":""},{"$f":"IF('1. Ordersheet'!BG281=\"\",\"\",'1. Ordersheet'!BG281)","v":"ZWO"},{"$f":"IF('1. Ordersheet'!BH281=\"\",\"\",'1. Ordersheet'!BH281)","v":""},{"$f":"IF('1. Ordersheet'!BI281=\"\",\"\",'1. Ordersheet'!BI281)","v":""},{"$f":"IF('1. Ordersheet'!BJ281=\"\",\"\",'1. Ordersheet'!BJ281)","v":""},{"$f":"IF('1. Ordersheet'!BK281=\"\",\"\",'1. Ordersheet'!BK281)","v":""},{"$f":"IF('1. Ordersheet'!BL281=\"\",\"\",'1. Ordersheet'!BL281)","v":""}]
[{"$f":"IF('1. Ordersheet'!F282=\"\",\"\",'1. Ordersheet'!F282)","v":""},{"$f":"IF('1. Ordersheet'!G282=\"\",\"\",'1. Ordersheet'!G282)","v":""},{"$f":"IF('1. Ordersheet'!H282=\"\",\"\",'1. Ordersheet'!H282)","v":""},{"$f":"IF('1. Ordersheet'!I282=\"\",\"\",'1. Ordersheet'!I282)","v":""},{"$f":"IF('1. Ordersheet'!J282=\"\",\"\",'1. Ordersheet'!J282)","v":""},{"$f":"IF('1. Ordersheet'!K282=\"\",\"\",'1. Ordersheet'!K282)","v":""},{"$f":"IF('1. Ordersheet'!L282=\"\",\"\",'1. Ordersheet'!L282)","v":""},{"$f":"IF('1. Ordersheet'!M282=\"\",\"\",'1. Ordersheet'!M282)","v":""},{"$f":"IF('1. Ordersheet'!N282=\"\",\"\",'1. Ordersheet'!N282)","v":""},{"$f":"IF('1. Ordersheet'!O282=\"\",\"\",'1. Ordersheet'!O282)","v":{"$error":"#N/A"}},{"$f":"IF('1. Ordersheet'!P282=\"\",\"\",'1. Ordersheet'!P282)","v":{"$error":"#N/A"}},{"$f":"IF('1. Ordersheet'!Q282=\"\",\"\",'1. Ordersheet'!Q282)","v":""},{"$f":"IF('1. Ordersheet'!R282=\"\",\"\",'1. Ordersheet'!R282)","v":""},{"$f":"IF('1. Ordersheet'!S282=\"\",\"\",'1. Ordersheet'!S282)","v":""},{"$f":"IF('1. Ordersheet'!V282=\"\",\"\",'1. Ordersheet'!V282)","v":""},{"$f":"IF('1. Ordersheet'!W282=\"\",\"\",'1. Ordersheet'!W282)","v":""},{"$f":"IF('1. Ordersheet'!X282=\"\",\"\",'1. Ordersheet'!X282)","v":""},{"$f":"IF('1. Ordersheet'!Y282=\"\",\"\",'1. Ordersheet'!Y282)","v":""},{"$f":"IF('1. Ordersheet'!Z282=\"\",\"\",'1. Ordersheet'!Z282)","v":""},{"$f":"IF('1. Ordersheet'!AA282=\"\",\"\",'1. Ordersheet'!AA282)","v":""},null,{"$f":"IF('1. Ordersheet'!AS282=\"\",\"\",'1. Ordersheet'!AS282)","v":""},{"$f":"IF('1. Ordersheet'!AT282=\"\",\"\",'1. Ordersheet'!AT282)","v":""},null,null,null,null,null,null,null,{"$f":"IF('1. Ordersheet'!AX282=\"\",\"\",'1. Ordersheet'!AX282)","v":""},{"$f":"IF('1. Ordersheet'!AY282=\"\",\"\",'1. Ordersheet'!AY282)","v":""},{"$f":"IF('1. Ordersheet'!AZ282=\"\",\"\",'1. Ordersheet'!AZ282)","v":""},{"$f":"IF('1. Ordersheet'!BA282=\"\",\"\",'1. Ordersheet'!BA282)","v":""},{"$f":"IF('1. Ordersheet'!BC282=\"\",\"\",'1. Ordersheet'!BC282)","v":""},{"$f":"IF('1. Ordersheet'!BD282=\"\",\"\",'1. Ordersheet'!BD282)","v":""},{"$f":"IF('1. Ordersheet'!BE282=\"\",\"\",'1. Ordersheet'!BE282)","v":""},{"$f":"IF('1. Ordersheet'!BF282=\"\",\"\",'1. Ordersheet'!BF282)","v":""},{"$f":"IF('1. Ordersheet'!BG282=\"\",\"\",'1. Ordersheet'!BG282)","v":"ZWO"},{"$f":"IF('1. Ordersheet'!BH282=\"\",\"\",'1. Ordersheet'!BH282)","v":""},{"$f":"IF('1. Ordersheet'!BI282=\"\",\"\",'1. Ordersheet'!BI282)","v":""},{"$f":"IF('1. Ordersheet'!BJ282=\"\",\"\",'1. Ordersheet'!BJ282)","v":""},{"$f":"IF('1. Ordersheet'!BK282=\"\",\"\",'1. Ordersheet'!BK282)","v":""},{"$f":"IF('1. Ordersheet'!BL282=\"\",\"\",'1. Ordersheet'!BL282)","v":""}]
[{"$f":"IF('1. Ordersheet'!F283=\"\",\"\",'1. Ordersheet'!F283)","v":""},{"$f":"IF('1. Ordersheet'!G283=\"\",\"\",'1. Ordersheet'!G283)","v":""},{"$f":"IF('1. Ordersheet'!H283=\"\",\"\",'1. Ordersheet'!H283)","v":""},{"$f":"IF('1. Ordersheet'!I283=\"\",\"\",'1. Ordersheet'!I283)","v":""},{"$f":"IF('1. Ordersheet'!J283=\"\",\"\",'1. Ordersheet'!J283)","v":""},{"$f":"IF('1. Ordersheet'!K283=\"\",\"\",'1. Ordersheet'!K283)","v":""},{"$f":"IF('1. Ordersheet'!L283=\"\",\"\",'1. Ordersheet'!L283)","v":""},{"$f":"IF('1. Ordersheet'!M283=\"\",\"\",'1. Ordersheet'!M283)","v":""},{"$f":"IF('1. Ordersheet'!N283=\"\",\"\",'1. Ordersheet'!N283)","v":""},{"$f":"IF('1. Ordersheet'!O283=\"\",\"\",'1. Ordersheet'!O283)","v":{"$error":"#N/A"}},{"$f":"IF('1. Ordersheet'!P283=\"\",\"\",'1. Ordersheet'!P283)","v":{"$error":"#N/A"}},{"$f":"IF('1. Ordersheet'!Q283=\"\",\"\",'1. Ordersheet'!Q283)","v":""},{"$f":"IF('1. Ordersheet'!R283=\"\",\"\",'1. Ordersheet'!R283)","v":""},{"$f":"IF('1. Ordersheet'!S283=\"\",\"\",'1. Ordersheet'!S283)","v":""},{"$f":"IF('1. Ordersheet'!V283=\"\",\"\",'1. Ordersheet'!V283)","v":""},{"$f":"IF('1. Ordersheet'!W283=\"\",\"\",'1. Ordersheet'!W283)","v":""},{"$f":"IF('1. Ordersheet'!X283=\"\",\"\",'1. Ordersheet'!X283)","v":""},{"$f":"IF('1. Ordersheet'!Y283=\"\",\"\",'1. Ordersheet'!Y283)","v":""},{"$f":"IF('1. Ordersheet'!Z283=\"\",\"\",'1. Ordersheet'!Z283)","v":""},{"$f":"IF('1. Ordersheet'!AA283=\"\",\"\",'1. Ordersheet'!AA283)","v":""},null,{"$f":"IF('1. Ordersheet'!AS283=\"\",\"\",'1. Ordersheet'!AS283)","v":""},{"$f":"IF('1. Ordersheet'!AT283=\"\",\"\",'1. Ordersheet'!AT283)","v":""},null,null,null,null,null,null,null,{"$f":"IF('1. Ordersheet'!AX283=\"\",\"\",'1. Ordersheet'!AX283)","v":""},{"$f":"IF('1. Ordersheet'!AY283=\"\",\"\",'1. Ordersheet'!AY283)","v":""},{"$f":"IF('1. Ordersheet'!AZ283=\"\",\"\",'1. Ordersheet'!AZ283)","v":""},{"$f":"IF('1. Ordersheet'!BA283=\"\",\"\",'1. Ordersheet'!BA283)","v":""},{"$f":"IF('1. Ordersheet'!BC283=\"\",\"\",'1. Ordersheet'!BC283)","v":""},{"$f":"IF('1. Ordersheet'!BD283=\"\",\"\",'1. Ordersheet'!BD283)","v":""},{"$f":"IF('1. Ordersheet'!BE283=\"\",\"\",'1. Ordersheet'!BE283)","v":""},{"$f":"IF('1. Ordersheet'!BF283=\"\",\"\",'1. Ordersheet'!BF283)","v":""},{"$f":"IF('1. Ordersheet'!BG283=\"\",\"\",'1. Ordersheet'!BG283)","v":"ZWO"},{"$f":"IF('1. Ordersheet'!BH283=\"\",\"\",'1. Ordersheet'!BH283)","v":""},{"$f":"IF('1. Ordersheet'!BI283=\"\",\"\",'1. Ordersheet'!BI283)","v":""},{"$f":"IF('1. Ordersheet'!BJ283=\"\",\"\",'1. Ordersheet'!BJ283)","v":""},{"$f":"IF('1. Ordersheet'!BK283=\"\",\"\",'1. Ordersheet'!BK283)","v":""},{"$f":"IF('1. Ordersheet'!BL283=\"\",\"\",'1. Ordersheet'!BL283)","v":""}]
[{"$f":"IF('1. Ordersheet'!F284=\"\",\"\",'1. Ordersheet'!F284)","v":""},{"$f":"IF('1. Ordersheet'!G284=\"\",\"\",'1. Ordersheet'!G284)","v":""},{"$f":"IF('1. Ordersheet'!H284=\"\",\"\",'1. Ordersheet'!H284)","v":""},{"$f":"IF('1. Ordersheet'!I284=\"\",\"\",'1. Ordersheet'!I284)","v":""},{"$f":"IF('1. Ordersheet'!J284=\"\",\"\",'1. Ordersheet'!J284)","v":""},{"$f":"IF('1. Ordersheet'!K284=\"\",\"\",'1. Ordersheet'!K284)","v":""},{"$f":"IF('1. Ordersheet'!L284=\"\",\"\",'1. Ordersheet'!L284)","v":""},{"$f":"IF('1. Ordersheet'!M284=\"\",\"\",'1. Ordersheet'!M284)","v":""},{"$f":"IF('1. Ordersheet'!N284=\"\",\"\",'1. Ordersheet'!N284)","v":""},{"$f":"IF('1. Ordersheet'!O284=\"\",\"\",'1. Ordersheet'!O284)","v":{"$error":"#N/A"}},{"$f":"IF('1. Ordersheet'!P284=\"\",\"\",'1. Ordersheet'!P284)","v":{"$error":"#N/A"}},{"$f":"IF('1. Ordersheet'!Q284=\"\",\"\",'1. Ordersheet'!Q284)","v":""},{"$f":"IF('1. Ordersheet'!R284=\"\",\"\",'1. Ordersheet'!R284)","v":""},{"$f":"IF('1. Ordersheet'!S284=\"\",\"\",'1. Ordersheet'!S284)","v":""},{"$f":"IF('1. Ordersheet'!V284=\"\",\"\",'1. Ordersheet'!V284)","v":""},{"$f":"IF('1. Ordersheet'!W284=\"\",\"\",'1. Ordersheet'!W284)","v":""},{"$f":"IF('1. Ordersheet'!X284=\"\",\"\",'1. Ordersheet'!X284)","v":""},{"$f":"IF('1. Ordersheet'!Y284=\"\",\"\",'1. Ordersheet'!Y284)","v":""},{"$f":"IF('1. Ordersheet'!Z284=\"\",\"\",'1. Ordersheet'!Z284)","v":""},{"$f":"IF('1. Ordersheet'!AA284=\"\",\"\",'1. Ordersheet'!AA284)","v":""},null,{"$f":"IF('1. Ordersheet'!AS284=\"\",\"\",'1. Ordersheet'!AS284)","v":""},{"$f":"IF('1. Ordersheet'!AT284=\"\",\"\",'1. Ordersheet'!AT284)","v":""},null,null,null,null,null,null,null,{"$f":"IF('1. Ordersheet'!AX284=\"\",\"\",'1. Ordersheet'!AX284)","v":""},{"$f":"IF('1. Ordersheet'!AY284=\"\",\"\",'1. Ordersheet'!AY284)","v":""},{"$f":"IF('1. Ordersheet'!AZ284=\"\",\"\",'1. Ordersheet'!AZ284)","v":""},{"$f":"IF('1. Ordersheet'!BA284=\"\",\"\",'1. Ordersheet'!BA284)","v":""},{"$f":"IF('1. Ordersheet'!BC284=\"\",\"\",'1. Ordersheet'!BC284)","v":""},{"$f":"IF('1. Ordersheet'!BD284=\"\",\"\",'1. Ordersheet'!BD284)","v":""},{"$f":"IF('1. Ordersheet'!BE284=\"\",\"\",'1. Ordersheet'!BE284)","v":""},{"$f":"IF('1. Ordersheet'!BF284=\"\",\"\",'1. Ordersheet'!BF284)","v":""},{"$f":"IF('1. Ordersheet'!BG284=\"\",\"\",'1. Ordersheet'!BG284)","v":"ZWO"},{"$f":"IF('1. Ordersheet'!BH284=\"\",\"\",'1. Ordersheet'!BH284)","v":""},{"$f":"IF('1. Ordersheet'!BI284=\"\",\"\",'1. Ordersheet'!BI284)","v":""},{"$f":"IF('1. Ordersheet'!BJ284=\"\",\"\",'1. Ordersheet'!BJ284)","v":""},{"$f":"IF('1. Ordersheet'!BK284=\"\",\"\",'1. Ordersheet'!BK284)","v":""},{"$f":"IF('1. Ordersheet'!BL284=\"\",\"\",'1. Ordersheet'!BL284)","v":""}]
[{"$f":"IF('1. Ordersheet'!F285=\"\",\"\",'1. Ordersheet'!F285)","v":""},{"$f":"IF('1. Ordersheet'!G285=\"\",\"\",'1. Ordersheet'!G285)","v":""},{"$f":"IF('1. Ordersheet'!H285=\"\",\"\",'1. Ordersheet'!H285)","v":""},{"$f":"IF('1. Ordersheet'!I285=\"\",\"\",'1. Ordersheet'!I285)","v":""},{"$f":"IF('1. Ordersheet'!J285=\"\",\"\",'1. Ordersheet'!J285)","v":""},{"$f":"IF('1. Ordersheet'!K285=\"\",\"\",'1. Ordersheet'!K285)","v":""},{"$f":"IF('1. Ordersheet'!L285=\"\",\"\",'1. Ordersheet'!L285)","v":""},{"$f":"IF('1. Ordersheet'!M285=\"\",\"\",'1. Ordersheet'!M285)","v":""},{"$f":"IF('1. Ordersheet'!N285=\"\",\"\",'1. Ordersheet'!N285)","v":""},{"$f":"IF('1. Ordersheet'!O285=\"\",\"\",'1. Ordersheet'!O285)","v":{"$error":"#N/A"}},{"$f":"IF('1. Ordersheet'!P285=\"\",\"\",'1. Ordersheet'!P285)","v":{"$error":"#N/A"}},{"$f":"IF('1. Ordersheet'!Q285=\"\",\"\",'1. Ordersheet'!Q285)","v":""},{"$f":"IF('1. Ordersheet'!R285=\"\",\"\",'1. Ordersheet'!R285)","v":""},{"$f":"IF('1. Ordersheet'!S285=\"\",\"\",'1. Ordersheet'!S285)","v":""},{"$f":"IF('1. Ordersheet'!V285=\"\",\"\",'1. Ordersheet'!V285)","v":""},{"$f":"IF('1. Ordersheet'!W285=\"\",\"\",'1. Ordersheet'!W285)","v":""},{"$f":"IF('1. Ordersheet'!X285=\"\",\"\",'1. Ordersheet'!X285)","v":""},{"$f":"IF('1. Ordersheet'!Y285=\"\",\"\",'1. Ordersheet'!Y285)","v":""},{"$f":"IF('1. Ordersheet'!Z285=\"\",\"\",'1. Ordersheet'!Z285)","v":""},{"$f":"IF('1. Ordersheet'!AA285=\"\",\"\",'1. Ordersheet'!AA285)","v":""},null,{"$f":"IF('1. Ordersheet'!AS285=\"\",\"\",'1. Ordersheet'!AS285)","v":""},{"$f":"IF('1. Ordersheet'!AT285=\"\",\"\",'1. Ordersheet'!AT285)","v":""},null,null,null,null,null,null,null,{"$f":"IF('1. Ordersheet'!AX285=\"\",\"\",'1. Ordersheet'!AX285)","v":""},{"$f":"IF('1. Ordersheet'!AY285=\"\",\"\",'1. Ordersheet'!AY285)","v":""},{"$f":"IF('1. Ordersheet'!AZ285=\"\",\"\",'1. Ordersheet'!AZ285)","v":""},{"$f":"IF('1. Ordersheet'!BA285=\"\",\"\",'1. Ordersheet'!BA285)","v":""},{"$f":"IF('1. Ordersheet'!BC285=\"\",\"\",'1. Ordersheet'!BC285)","v":""},{"$f":"IF('1. Ordersheet'!BD285=\"\",\"\",'1. Ordersheet'!BD285)","v":""},{"$f":"IF('1. Ordersheet'!BE285=\"\",\"\",'1. Ordersheet'!BE285)","v":""},{"$f":"IF('1. Ordersheet'!BF285=\"\",\"\",'1. Ordersheet'!BF285)","v":""},{"$f":"IF('1. Ordersheet'!BG285=\"\",\"\",'1. Ordersheet'!BG285)","v":"ZWO"},{"$f":"IF('1. Ordersheet'!BH285=\"\",\"\",'1. Ordersheet'!BH285)","v":""},{"$f":"IF('1. Ordersheet'!BI285=\"\",\"\",'1. Ordersheet'!BI285)","v":""},{"$f":"IF('1. Ordersheet'!BJ285=\"\",\"\",'1. Ordersheet'!BJ285)","v":""},{"$f":"IF('1. Ordersheet'!BK285=\"\",\"\",'1. Ordersheet'!BK285)","v":""},{"$f":"IF('1. Ordersheet'!BL285=\"\",\"\",'1. Ordersheet'!BL285)","v":""}]
[{"$f":"IF('1. Ordersheet'!F286=\"\",\"\",'1. Ordersheet'!F286)","v":""},{"$f":"IF('1. Ordersheet'!G286=\"\",\"\",'1. Ordersheet'!G286)","v":""},{"$f":"IF('1. Ordersheet'!H286=\"\",\"\",'1. Ordersheet'!H286)","v":""},{"$f":"IF('1. Ordersheet'!I286=\"\",\"\",'1. Ordersheet'!I286)","v":""},{"$f":"IF('1. Ordersheet'!J286=\"\",\"\",'1. Ordersheet'!J286)","v":""},{"$f":"IF('1. Ordersheet'!K286=\"\",\"\",'1. Ordersheet'!K286)","v":""},{"$f":"IF('1. Ordersheet'!L286=\"\",\"\",'1. Ordersheet'!L286)","v":""},{"$f":"IF('1. Ordersheet'!M286=\"\",\"\",'1. Ordersheet'!M286)","v":""},{"$f":"IF('1. Ordersheet'!N286=\"\",\"\",'1. Ordersheet'!N286)","v":""},{"$f":"IF('1. Ordersheet'!O286=\"\",\"\",'1. Ordersheet'!O286)","v":{"$error":"#N/A"}},{"$f":"IF('1. Ordersheet'!P286=\"\",\"\",'1. Ordersheet'!P286)","v":{"$error":"#N/A"}},{"$f":"IF('1. Ordersheet'!Q286=\"\",\"\",'1. Ordersheet'!Q286)","v":""},{"$f":"IF('1. Ordersheet'!R286=\"\",\"\",'1. Ordersheet'!R286)","v":""},{"$f":"IF('1. Ordersheet'!S286=\"\",\"\",'1. Ordersheet'!S286)","v":""},{"$f":"IF('1. Ordersheet'!V286=\"\",\"\",'1. Ordersheet'!V286)","v":""},{"$f":"IF('1. Ordersheet'!W286=\"\",\"\",'1. Ordersheet'!W286)","v":""},{"$f":"IF('1. Ordersheet'!X286=\"\",\"\",'1. Ordersheet'!X286)","v":""},{"$f":"IF('1. Ordersheet'!Y286=\"\",\"\",'1. Ordersheet'!Y286)","v":""},{"$f":"IF('1. Ordersheet'!Z286=\"\",\"\",'1. Ordersheet'!Z286)","v":""},{"$f":"IF('1. Ordersheet'!AA286=\"\",\"\",'1. Ordersheet'!AA286)","v":""},null,{"$f":"IF('1. Ordersheet'!AS286=\"\",\"\",'1. Ordersheet'!AS286)","v":""},{"$f":"IF('1. Ordersheet'!AT286=\"\",\"\",'1. Ordersheet'!AT286)","v":""},null,null,null,null,null,null,null,{"$f":"IF('1. Ordersheet'!AX286=\"\",\"\",'1. Ordersheet'!AX286)","v":""},{"$f":"IF('1. Ordersheet'!AY286=\"\",\"\",'1. Ordersheet'!AY286)","v":""},{"$f":"IF('1. Ordersheet'!AZ286=\"\",\"\",'1. Ordersheet'!AZ286)","v":""},{"$f":"IF('1. Ordersheet'!BA286=\"\",\"\",'1. Ordersheet'!BA286)","v":""},{"$f":"IF('1. Ordersheet'!BC286=\"\",\"\",'1. Ordersheet'!BC286)","v":""},{"$f":"IF('1. Ordersheet'!BD286=\"\",\"\",'1. Ordersheet'!BD286)","v":""},{"$f":"IF('1. Ordersheet'!BE286=\"\",\"\",'1. Ordersheet'!BE286)","v":""},{"$f":"IF('1. Ordersheet'!BF286=\"\",\"\",'1. Ordersheet'!BF286)","v":""},{"$f":"IF('1. Ordersheet'!BG286=\"\",\"\",'1. Ordersheet'!BG286)","v":"ZWO"},{"$f":"IF('1. Ordersheet'!BH286=\"\",\"\",'1. Ordersheet'!BH286)","v":""},{"$f":"IF('1. Ordersheet'!BI286=\"\",\"\",'1. Ordersheet'!BI286)","v":""},{"$f":"IF('1. Ordersheet'!BJ286=\"\",\"\",'1. Ordersheet'!BJ286)","v":""},{"$f":"IF('1. Ordersheet'!BK286=\"\",\"\",'1. Ordersheet'!BK286)","v":""},{"$f":"IF('1. Ordersheet'!BL286=\"\",\"\",'1. Ordersheet'!BL286)","v":""}]
[{"$f":"IF('1. Ordersheet'!F287=\"\",\"\",'1. Ordersheet'!F287)","v":""},{"$f":"IF('1. Ordersheet'!G287=\"\",\"\",'1. Ordersheet'!G287)","v":""},{"$f":"IF('1. Ordersheet'!H287=\"\",\"\",'1. Ordersheet'!H287)","v":""},{"$f":"IF('1. Ordersheet'!I287=\"\",\"\",'1. Ordersheet'!I287)","v":""},{"$f":"IF('1. Ordersheet'!J287=\"\",\"\",'1. Ordersheet'!J287)","v":""},{"$f":"IF('1. Ordersheet'!K287=\"\",\"\",'1. Ordersheet'!K287)","v":""},{"$f":"IF('1. Ordersheet'!L287=\"\",\"\",'1. Ordersheet'!L287)","v":""},{"$f":"IF('1. Ordersheet'!M287=\"\",\"\",'1. Ordersheet'!M287)","v":""},{"$f":"IF('1. Ordersheet'!N287=\"\",\"\",'1. Ordersheet'!N287)","v":""},{"$f":"IF('1. Ordersheet'!O287=\"\",\"\",'1. Ordersheet'!O287)","v":{"$error":"#N/A"}},{"$f":"IF('1. Ordersheet'!P287=\"\",\"\",'1. Ordersheet'!P287)","v":{"$error":"#N/A"}},{"$f":"IF('1. Ordersheet'!Q287=\"\",\"\",'1. Ordersheet'!Q287)","v":""},{"$f":"IF('1. Ordersheet'!R287=\"\",\"\",'1. Ordersheet'!R287)","v":""},{"$f":"IF('1. Ordersheet'!S287=\"\",\"\",'1. Ordersheet'!S287)","v":""},{"$f":"IF('1. Ordersheet'!V287=\"\",\"\",'1. Ordersheet'!V287)","v":""},{"$f":"IF('1. Ordersheet'!W287=\"\",\"\",'1. Ordersheet'!W287)","v":""},{"$f":"IF('1. Ordersheet'!X287=\"\",\"\",'1. Ordersheet'!X287)","v":""},{"$f":"IF('1. Ordersheet'!Y287=\"\",\"\",'1. Ordersheet'!Y287)","v":""},{"$f":"IF('1. Ordersheet'!Z287=\"\",\"\",'1. Ordersheet'!Z287)","v":""},{"$f":"IF('1. Ordersheet'!AA287=\"\",\"\",'1. Ordersheet'!AA287)","v":""},null,{"$f":"IF('1. Ordersheet'!AS287=\"\",\"\",'1. Ordersheet'!AS287)","v":""},{"$f":"IF('1. Ordersheet'!AT287=\"\",\"\",'1. Ordersheet'!AT287)","v":""},null,null,null,null,null,null,null,{"$f":"IF('1. Ordersheet'!AX287=\"\",\"\",'1. Ordersheet'!AX287)","v":""},{"$f":"IF('1. Ordersheet'!AY287=\"\",\"\",'1. Ordersheet'!AY287)","v":""},{"$f":"IF('1. Ordersheet'!AZ287=\"\",\"\",'1. Ordersheet'!AZ287)","v":""},{"$f":"IF('1. Ordersheet'!BA287=\"\",\"\",'1. Ordersheet'!BA287)","v":""},{"$f":"IF('1. Ordersheet'!BC287=\"\",\"\",'1. Ordersheet'!BC287)","v":""},{"$f":"IF('1. Ordersheet'!BD287=\"\",\"\",'1. Ordersheet'!BD287)","v":""},{"$f":"IF('1. Ordersheet'!BE287=\"\",\"\",'1. Ordersheet'!BE287)","v":""},{"$f":"IF('1. Ordersheet'!BF287=\"\",\"\",'1. Ordersheet'!BF287)","v":""},{"$f":"IF('1. Ordersheet'!BG287=\"\",\"\",'1. Ordersheet'!BG287)","v":"ZWO"},{"$f":"IF('1. Ordersheet'!BH287=\"\",\"\",'1. Ordersheet'!BH287)","v":""},{"$f":"IF('1. Ordersheet'!BI287=\"\",\"\",'1. Ordersheet'!BI287)","v":""},{"$f":"IF('1. Ordersheet'!BJ287=\"\",\"\",'1. Ordersheet'!BJ287)","v":""},{"$f":"IF('1. Ordersheet'!BK287=\"\",\"\",'1. Ordersheet'!BK287)","v":""},{"$f":"IF('1. Ordersheet'!BL287=\"\",\"\",'1. Ordersheet'!BL287)","v":""}]
[{"$f":"IF('1. Ordersheet'!F288=\"\",\"\",'1. Ordersheet'!F288)","v":""},{"$f":"IF('1. Ordersheet'!G288=\"\",\"\",'1. Ordersheet'!G288)","v":""},{"$f":"IF('1. Ordersheet'!H288=\"\",\"\",'1. Ordersheet'!H288)","v":""},{"$f":"IF('1. Ordersheet'!I288=\"\",\"\",'1. Ordersheet'!I288)","v":""},{"$f":"IF('1. Ordersheet'!J288=\"\",\"\",'1. Ordersheet'!J288)","v":""},{"$f":"IF('1. Ordersheet'!K288=\"\",\"\",'1. Ordersheet'!K288)","v":""},{"$f":"IF('1. Ordersheet'!L288=\"\",\"\",'1. Ordersheet'!L288)","v":""},{"$f":"IF('1. Ordersheet'!M288=\"\",\"\",'1. Ordersheet'!M288)","v":""},{"$f":"IF('1. Ordersheet'!N288=\"\",\"\",'1. Ordersheet'!N288)","v":""},{"$f":"IF('1. Ordersheet'!O288=\"\",\"\",'1. Ordersheet'!O288)","v":{"$error":"#N/A"}},{"$f":"IF('1. Ordersheet'!P288=\"\",\"\",'1. Ordersheet'!P288)","v":{"$error":"#N/A"}},{"$f":"IF('1. Ordersheet'!Q288=\"\",\"\",'1. Ordersheet'!Q288)","v":""},{"$f":"IF('1. Ordersheet'!R288=\"\",\"\",'1. Ordersheet'!R288)","v":""},{"$f":"IF('1. Ordersheet'!S288=\"\",\"\",'1. Ordersheet'!S288)","v":""},{"$f":"IF('1. Ordersheet'!V288=\"\",\"\",'1. Ordersheet'!V288)","v":""},{"$f":"IF('1. Ordersheet'!W288=\"\",\"\",'1. Ordersheet'!W288)","v":""},{"$f":"IF('1. Ordersheet'!X288=\"\",\"\",'1. Ordersheet'!X288)","v":""},{"$f":"IF('1. Ordersheet'!Y288=\"\",\"\",'1. Ordersheet'!Y288)","v":""},{"$f":"IF('1. Ordersheet'!Z288=\"\",\"\",'1. Ordersheet'!Z288)","v":""},{"$f":"IF('1. Ordersheet'!AA288=\"\",\"\",'1. Ordersheet'!AA288)","v":""},null,{"$f":"IF('1. Ordersheet'!AS288=\"\",\"\",'1. Ordersheet'!AS288)","v":""},{"$f":"IF('1. Ordersheet'!AT288=\"\",\"\",'1. Ordersheet'!AT288)","v":""},null,null,null,null,null,null,null,{"$f":"IF('1. Ordersheet'!AX288=\"\",\"\",'1. Ordersheet'!AX288)","v":""},{"$f":"IF('1. Ordersheet'!AY288=\"\",\"\",'1. Ordersheet'!AY288)","v":""},{"$f":"IF('1. Ordersheet'!AZ288=\"\",\"\",'1. Ordersheet'!AZ288)","v":""},{"$f":"IF('1. Ordersheet'!BA288=\"\",\"\",'1. Ordersheet'!BA288)","v":""},{"$f":"IF('1. Ordersheet'!BC288=\"\",\"\",'1. Ordersheet'!BC288)","v":""},{"$f":"IF('1. Ordersheet'!BD288=\"\",\"\",'1. Ordersheet'!BD288)","v":""},{"$f":"IF('1. Ordersheet'!BE288=\"\",\"\",'1. Ordersheet'!BE288)","v":""},{"$f":"IF('1. Ordersheet'!BF288=\"\",\"\",'1. Ordersheet'!BF288)","v":""},{"$f":"IF('1. Ordersheet'!BG288=\"\",\"\",'1. Ordersheet'!BG288)","v":"ZWO"},{"$f":"IF('1. Ordersheet'!BH288=\"\",\"\",'1. Ordersheet'!BH288)","v":""},{"$f":"IF('1. Ordersheet'!BI288=\"\",\"\",'1. Ordersheet'!BI288)","v":""},{"$f":"IF('1. Ordersheet'!BJ288=\"\",\"\",'1. Ordersheet'!BJ288)","v":""},{"$f":"IF('1. Ordersheet'!BK288=\"\",\"\",'1. Ordersheet'!BK288)","v":""},{"$f":"IF('1. Ordersheet'!BL288=\"\",\"\",'1. Ordersheet'!BL288)","v":""}]
[{"$f":"IF('1. Ordersheet'!F289=\"\",\"\",'1. Ordersheet'!F289)","v":""},{"$f":"IF('1. Ordersheet'!G289=\"\",\"\",'1. Ordersheet'!G289)","v":""},{"$f":"IF('1. Ordersheet'!H289=\"\",\"\",'1. Ordersheet'!H289)","v":""},{"$f":"IF('1. Ordersheet'!I289=\"\",\"\",'1. Ordersheet'!I289)","v":""},{"$f":"IF('1. Ordersheet'!J289=\"\",\"\",'1. Ordersheet'!J289)","v":""},{"$f":"IF('1. Ordersheet'!K289=\"\",\"\",'1. Ordersheet'!K289)","v":""},{"$f":"IF('1. Ordersheet'!L289=\"\",\"\",'1. Ordersheet'!L289)","v":""},{"$f":"IF('1. Ordersheet'!M289=\"\",\"\",'1. Ordersheet'!M289)","v":""},{"$f":"IF('1. Ordersheet'!N289=\"\",\"\",'1. Ordersheet'!N289)","v":""},{"$f":"IF('1. Ordersheet'!O289=\"\",\"\",'1. Ordersheet'!O289)","v":{"$error":"#N/A"}},{"$f":"IF('1. Ordersheet'!P289=\"\",\"\",'1. Ordersheet'!P289)","v":{"$error":"#N/A"}},{"$f":"IF('1. Ordersheet'!Q289=\"\",\"\",'1. Ordersheet'!Q289)","v":""},{"$f":"IF('1. Ordersheet'!R289=\"\",\"\",'1. Ordersheet'!R289)","v":""},{"$f":"IF('1. Ordersheet'!S289=\"\",\"\",'1. Ordersheet'!S289)","v":""},{"$f":"IF('1. Ordersheet'!V289=\"\",\"\",'1. Ordersheet'!V289)","v":""},{"$f":"IF('1. Ordersheet'!W289=\"\",\"\",'1. Ordersheet'!W289)","v":""},{"$f":"IF('1. Ordersheet'!X289=\"\",\"\",'1. Ordersheet'!X289)","v":""},{"$f":"IF('1. Ordersheet'!Y289=\"\",\"\",'1. Ordersheet'!Y289)","v":""},{"$f":"IF('1. Ordersheet'!Z289=\"\",\"\",'1. Ordersheet'!Z289)","v":""},{"$f":"IF('1. Ordersheet'!AA289=\"\",\"\",'1. Ordersheet'!AA289)","v":""},null,{"$f":"IF('1. Ordersheet'!AS289=\"\",\"\",'1. Ordersheet'!AS289)","v":""},{"$f":"IF('1. Ordersheet'!AT289=\"\",\"\",'1. Ordersheet'!AT289)","v":""},null,null,null,null,null,null,null,{"$f":"IF('1. Ordersheet'!AX289=\"\",\"\",'1. Ordersheet'!AX289)","v":""},{"$f":"IF('1. Ordersheet'!AY289=\"\",\"\",'1. Ordersheet'!AY289)","v":""},{"$f":"IF('1. Ordersheet'!AZ289=\"\",\"\",'1. Ordersheet'!AZ289)","v":""},{"$f":"IF('1. Ordersheet'!BA289=\"\",\"\",'1. Ordersheet'!BA289)","v":""},{"$f":"IF('1. Ordersheet'!BC289=\"\",\"\",'1. Ordersheet'!BC289)","v":""},{"$f":"IF('1. Ordersheet'!BD289=\"\",\"\",'1. Ordersheet'!BD289)","v":""},{"$f":"IF('1. Ordersheet'!BE289=\"\",\"\",'1. Ordersheet'!BE289)","v":""},{"$f":"IF('1. Ordersheet'!BF289=\"\",\"\",'1. Ordersheet'!BF289)","v":""},{"$f":"IF('1. Ordersheet'!BG289=\"\",\"\",'1. Ordersheet'!BG289)","v":"ZWO"},{"$f":"IF('1. Ordersheet'!BH289=\"\",\"\",'1. Ordersheet'!BH289)","v":""},{"$f":"IF('1. Ordersheet'!BI289=\"\",\"\",'1. Ordersheet'!BI289)","v":""},{"$f":"IF('1. Ordersheet'!BJ289=\"\",\"\",'1. Ordersheet'!BJ289)","v":""},{"$f":"IF('1. Ordersheet'!BK289=\"\",\"\",'1. Ordersheet'!BK289)","v":""},{"$f":"IF('1. Ordersheet'!BL289=\"\",\"\",'1. Ordersheet'!BL289)","v":""}]
[{"$f":"IF('1. Ordersheet'!F290=\"\",\"\",'1. Ordersheet'!F290)","v":""},{"$f":"IF('1. Ordersheet'!G290=\"\",\"\",'1. Ordersheet'!G290)","v":""},{"$f":"IF('1. Ordersheet'!H290=\"\",\"\",'1. Ordersheet'!H290)","v":""},{"$f":"IF('1. Ordersheet'!I290=\"\",\"\",'1. Ordersheet'!I290)","v":""},{"$f":"IF('1. Ordersheet'!J290=\"\",\"\",'1. Ordersheet'!J290)","v":""},{"$f":"IF('1. Ordersheet'!K290=\"\",\"\",'1. Ordersheet'!K290)","v":""},{"$f":"IF('1. Ordersheet'!L290=\"\",\"\",'1. Ordersheet'!L290)","v":""},{"$f":"IF('1. Ordersheet'!M290=\"\",\"\",'1. Ordersheet'!M290)","v":""},{"$f":"IF('1. Ordersheet'!N290=\"\",\"\",'1. Ordersheet'!N290)","v":""},{"$f":"IF('1. Ordersheet'!O290=\"\",\"\",'1. Ordersheet'!O290)","v":{"$error":"#N/A"}},{"$f":"IF('1. Ordersheet'!P290=\"\",\"\",'1. Ordersheet'!P290)","v":{"$error":"#N/A"}},{"$f":"IF('1. Ordersheet'!Q290=\"\",\"\",'1. Ordersheet'!Q290)","v":""},{"$f":"IF('1. Ordersheet'!R290=\"\",\"\",'1. Ordersheet'!R290)","v":""},{"$f":"IF('1. Ordersheet'!S290=\"\",\"\",'1. Ordersheet'!S290)","v":""},{"$f":"IF('1. Ordersheet'!V290=\"\",\"\",'1. Ordersheet'!V290)","v":""},{"$f":"IF('1. Ordersheet'!W290=\"\",\"\",'1. Ordersheet'!W290)","v":""},{"$f":"IF('1. Ordersheet'!X290=\"\",\"\",'1. Ordersheet'!X290)","v":""},{"$f":"IF('1. Ordersheet'!Y290=\"\",\"\",'1. Ordersheet'!Y290)","v":""},{"$f":"IF('1. Ordersheet'!Z290=\"\",\"\",'1. Ordersheet'!Z290)","v":""},{"$f":"IF('1. Ordersheet'!AA290=\"\",\"\",'1. Ordersheet'!AA290)","v":""},null,{"$f":"IF('1. Ordersheet'!AS290=\"\",\"\",'1. Ordersheet'!AS290)","v":""},{"$f":"IF('1. Ordersheet'!AT290=\"\",\"\",'1. Ordersheet'!AT290)","v":""},null,null,null,null,null,null,null,{"$f":"IF('1. Ordersheet'!AX290=\"\",\"\",'1. Ordersheet'!AX290)","v":""},{"$f":"IF('1. Ordersheet'!AY290=\"\",\"\",'1. Ordersheet'!AY290)","v":""},{"$f":"IF('1. Ordersheet'!AZ290=\"\",\"\",'1. Ordersheet'!AZ290)","v":""},{"$f":"IF('1. Ordersheet'!BA290=\"\",\"\",'1. Ordersheet'!BA290)","v":""},{"$f":"IF('1. Ordersheet'!BC290=\"\",\"\",'1. Ordersheet'!BC290)","v":""},{"$f":"IF('1. Ordersheet'!BD290=\"\",\"\",'1. Ordersheet'!BD290)","v":""},{"$f":"IF('1. Ordersheet'!BE290=\"\",\"\",'1. Ordersheet'!BE290)","v":""},{"$f":"IF('1. Ordersheet'!BF290=\"\",\"\",'1. Ordersheet'!BF290)","v":""},{"$f":"IF('1. Ordersheet'!BG290=\"\",\"\",'1. Ordersheet'!BG290)","v":"ZWO"},{"$f":"IF('1. Ordersheet'!BH290=\"\",\"\",'1. Ordersheet'!BH290)","v":""},{"$f":"IF('1. Ordersheet'!BI290=\"\",\"\",'1. Ordersheet'!BI290)","v":""},{"$f":"IF('1. Ordersheet'!BJ290=\"\",\"\",'1. Ordersheet'!BJ290)","v":""},{"$f":"IF('1. Ordersheet'!BK290=\"\",\"\",'1. Ordersheet'!BK290)","v":""},{"$f":"IF('1. Ordersheet'!BL290=\"\",\"\",'1. Ordersheet'!BL290)","v":""}]
[{"$f":"IF('1. Ordersheet'!F291=\"\",\"\",'1. Ordersheet'!F291)","v":""},{"$f":"IF('1. Ordersheet'!G291=\"\",\"\",'1. Ordersheet'!G291)","v":""},{"$f":"IF('1. Ordersheet'!H291=\"\",\"\",'1. Ordersheet'!H291)","v":""},{"$f":"IF('1. Ordersheet'!I291=\"\",\"\",'1. Ordersheet'!I291)","v":""},{"$f":"IF('1. Ordersheet'!J291=\"\",\"\",'1. Ordersheet'!J291)","v":""},{"$f":"IF('1. Ordersheet'!K291=\"\",\"\",'1. Ordersheet'!K291)","v":""},{"$f":"IF('1. Ordersheet'!L291=\"\",\"\",'1. Ordersheet'!L291)","v":""},{"$f":"IF('1. Ordersheet'!M291=\"\",\"\",'1. Ordersheet'!M291)","v":""},{"$f":"IF('1. Ordersheet'!N291=\"\",\"\",'1. Ordersheet'!N291)","v":""},{"$f":"IF('1. Ordersheet'!O291=\"\",\"\",'1. Ordersheet'!O291)","v":{"$error":"#N/A"}},{"$f":"IF('1. Ordersheet'!P291=\"\",\"\",'1. Ordersheet'!P291)","v":{"$error":"#N/A"}},{"$f":"IF('1. Ordersheet'!Q291=\"\",\"\",'1. Ordersheet'!Q291)","v":""},{"$f":"IF('1. Ordersheet'!R291=\"\",\"\",'1. Ordersheet'!R291)","v":""},{"$f":"IF('1. Ordersheet'!S291=\"\",\"\",'1. Ordersheet'!S291)","v":""},{"$f":"IF('1. Ordersheet'!V291=\"\",\"\",'1. Ordersheet'!V291)","v":""},{"$f":"IF('1. Ordersheet'!W291=\"\",\"\",'1. Ordersheet'!W291)","v":""},{"$f":"IF('1. Ordersheet'!X291=\"\",\"\",'1. Ordersheet'!X291)","v":""},{"$f":"IF('1. Ordersheet'!Y291=\"\",\"\",'1. Ordersheet'!Y291)","v":""},{"$f":"IF('1. Ordersheet'!Z291=\"\",\"\",'1. Ordersheet'!Z291)","v":""},{"$f":"IF('1. Ordersheet'!AA291=\"\",\"\",'1. Ordersheet'!AA291)","v":""},null,{"$f":"IF('1. Ordersheet'!AS291=\"\",\"\",'1. Ordersheet'!AS291)","v":""},{"$f":"IF('1. Ordersheet'!AT291=\"\",\"\",'1. Ordersheet'!AT291)","v":""},null,null,null,null,null,null,null,{"$f":"IF('1. Ordersheet'!AX291=\"\",\"\",'1. Ordersheet'!AX291)","v":""},{"$f":"IF('1. Ordersheet'!AY291=\"\",\"\",'1. Ordersheet'!AY291)","v":""},{"$f":"IF('1. Ordersheet'!AZ291=\"\",\"\",'1. Ordersheet'!AZ291)","v":""},{"$f":"IF('1. Ordersheet'!BA291=\"\",\"\",'1. Ordersheet'!BA291)","v":""},{"$f":"IF('1. Ordersheet'!BC291=\"\",\"\",'1. Ordersheet'!BC291)","v":""},{"$f":"IF('1. Ordersheet'!BD291=\"\",\"\",'1. Ordersheet'!BD291)","v":""},{"$f":"IF('1. Ordersheet'!BE291=\"\",\"\",'1. Ordersheet'!BE291)","v":""},{"$f":"IF('1. Ordersheet'!BF291=\"\",\"\",'1. Ordersheet'!BF291)","v":""},{"$f":"IF('1. Ordersheet'!BG291=\"\",\"\",'1. Ordersheet'!BG291)","v":"ZWO"},{"$f":"IF('1. Ordersheet'!BH291=\"\",\"\",'1. Ordersheet'!BH291)","v":""},{"$f":"IF('1. Ordersheet'!BI291=\"\",\"\",'1. Ordersheet'!BI291)","v":""},{"$f":"IF('1. Ordersheet'!BJ291=\"\",\"\",'1. Ordersheet'!BJ291)","v":""},{"$f":"IF('1. Ordersheet'!BK291=\"\",\"\",'1. Ordersheet'!BK291)","v":""},{"$f":"IF('1. Ordersheet'!BL291=\"\",\"\",'1. Ordersheet'!BL291)","v":""}]
[{"$f":"IF('1. Ordersheet'!F292=\"\",\"\",'1. Ordersheet'!F292)","v":""},{"$f":"IF('1. Ordersheet'!G292=\"\",\"\",'1. Ordersheet'!G292)","v":""},{"$f":"IF('1. Ordersheet'!H292=\"\",\"\",'1. Ordersheet'!H292)","v":""},{"$f":"IF('1. Ordersheet'!I292=\"\",\"\",'1. Ordersheet'!I292)","v":""},{"$f":"IF('1. Ordersheet'!J292=\"\",\"\",'1. Ordersheet'!J292)","v":""},{"$f":"IF('1. Ordersheet'!K292=\"\",\"\",'1. Ordersheet'!K292)","v":""},{"$f":"IF('1. Ordersheet'!L292=\"\",\"\",'1. Ordersheet'!L292)","v":""},{"$f":"IF('1. Ordersheet'!M292=\"\",\"\",'1. Ordersheet'!M292)","v":""},{"$f":"IF('1. Ordersheet'!N292=\"\",\"\",'1. Ordersheet'!N292)","v":""},{"$f":"IF('1. Ordersheet'!O292=\"\",\"\",'1. Ordersheet'!O292)","v":{"$error":"#N/A"}},{"$f":"IF('1. Ordersheet'!P292=\"\",\"\",'1. Ordersheet'!P292)","v":{"$error":"#N/A"}},{"$f":"IF('1. Ordersheet'!Q292=\"\",\"\",'1. Ordersheet'!Q292)","v":""},{"$f":"IF('1. Ordersheet'!R292=\"\",\"\",'1. Ordersheet'!R292)","v":""},{"$f":"IF('1. Ordersheet'!S292=\"\",\"\",'1. Ordersheet'!S292)","v":""},{"$f":"IF('1. Ordersheet'!V292=\"\",\"\",'1. Ordersheet'!V292)","v":""},{"$f":"IF('1. Ordersheet'!W292=\"\",\"\",'1. Ordersheet'!W292)","v":""},{"$f":"IF('1. Ordersheet'!X292=\"\",\"\",'1. Ordersheet'!X292)","v":""},{"$f":"IF('1. Ordersheet'!Y292=\"\",\"\",'1. Ordersheet'!Y292)","v":""},{"$f":"IF('1. Ordersheet'!Z292=\"\",\"\",'1. Ordersheet'!Z292)","v":""},{"$f":"IF('1. Ordersheet'!AA292=\"\",\"\",'1. Ordersheet'!AA292)","v":""},null,{"$f":"IF('1. Ordersheet'!AS292=\"\",\"\",'1. Ordersheet'!AS292)","v":""},{"$f":"IF('1. Ordersheet'!AT292=\"\",\"\",'1. Ordersheet'!AT292)","v":""},null,null,null,null,null,null,null,{"$f":"IF('1. Ordersheet'!AX292=\"\",\"\",'1. Ordersheet'!AX292)","v":""},{"$f":"IF('1. Ordersheet'!AY292=\"\",\"\",'1. Ordersheet'!AY292)","v":""},{"$f":"IF('1. Ordersheet'!AZ292=\"\",\"\",'1. Ordersheet'!AZ292)","v":""},{"$f":"IF('1. Ordersheet'!BA292=\"\",\"\",'1. Ordersheet'!BA292)","v":""},{"$f":"IF('1. Ordersheet'!BC292=\"\",\"\",'1. Ordersheet'!BC292)","v":""},{"$f":"IF('1. Ordersheet'!BD292=\"\",\"\",'1. Ordersheet'!BD292)","v":""},{"$f":"IF('1. Ordersheet'!BE292=\"\",\"\",'1. Ordersheet'!BE292)","v":""},{"$f":"IF('1. Ordersheet'!BF292=\"\",\"\",'1. Ordersheet'!BF292)","v":""},{"$f":"IF('1. Ordersheet'!BG292=\"\",\"\",'1. Ordersheet'!BG292)","v":"ZWO"},{"$f":"IF('1. Ordersheet'!BH292=\"\",\"\",'1. Ordersheet'!BH292)","v":""},{"$f":"IF('1. Ordersheet'!BI292=\"\",\"\",'1. Ordersheet'!BI292)","v":""},{"$f":"IF('1. Ordersheet'!BJ292=\"\",\"\",'1. Ordersheet'!BJ292)","v":""},{"$f":"IF('1. Ordersheet'!BK292=\"\",\"\",'1. Ordersheet'!BK292)","v":""},{"$f":"IF('1. Ordersheet'!BL292=\"\",\"\",'1. Ordersheet'!BL292)","v":""}]
[{"$f":"IF('1. Ordersheet'!F293=\"\",\"\",'1. Ordersheet'!F293)","v":""},{"$f":"IF('1. Ordersheet'!G293=\"\",\"\",'1. Ordersheet'!G293)","v":""},{"$f":"IF('1. Ordersheet'!H293=\"\",\"\",'1. Ordersheet'!H293)","v":""},{"$f":"IF('1. Ordersheet'!I293=\"\",\"\",'1. Ordersheet'!I293)","v":""},{"$f":"IF('1. Ordersheet'!J293=\"\",\"\",'1. Ordersheet'!J293)","v":""},{"$f":"IF('1. Ordersheet'!K293=\"\",\"\",'1. Ordersheet'!K293)","v":""},{"$f":"IF('1. Ordersheet'!L293=\"\",\"\",'1. Ordersheet'!L293)","v":""},{"$f":"IF('1. Ordersheet'!M293=\"\",\"\",'1. Ordersheet'!M293)","v":""},{"$f":"IF('1. Ordersheet'!N293=\"\",\"\",'1. Ordersheet'!N293)","v":""},{"$f":"IF('1. Ordersheet'!O293=\"\",\"\",'1. Ordersheet'!O293)","v":{"$error":"#N/A"}},{"$f":"IF('1. Ordersheet'!P293=\"\",\"\",'1. Ordersheet'!P293)","v":{"$error":"#N/A"}},{"$f":"IF('1. Ordersheet'!Q293=\"\",\"\",'1. Ordersheet'!Q293)","v":""},{"$f":"IF('1. Ordersheet'!R293=\"\",\"\",'1. Ordersheet'!R293)","v":""},{"$f":"IF('1. Ordersheet'!S293=\"\",\"\",'1. Ordersheet'!S293)","v":""},{"$f":"IF('1. Ordersheet'!V293=\"\",\"\",'1. Ordersheet'!V293)","v":""},{"$f":"IF('1. Ordersheet'!W293=\"\",\"\",'1. Ordersheet'!W293)","v":""},{"$f":"IF('1. Ordersheet'!X293=\"\",\"\",'1. Ordersheet'!X293)","v":""},{"$f":"IF('1. Ordersheet'!Y293=\"\",\"\",'1. Ordersheet'!Y293)","v":""},{"$f":"IF('1. Ordersheet'!Z293=\"\",\"\",'1. Ordersheet'!Z293)","v":""},{"$f":"IF('1. Ordersheet'!AA293=\"\",\"\",'1. Ordersheet'!AA293)","v":""},null,{"$f":"IF('1. Ordersheet'!AS293=\"\",\"\",'1. Ordersheet'!AS293)","v":""},{"$f":"IF('1. Ordersheet'!AT293=\"\",\"\",'1. Ordersheet'!AT293)","v":""},null,null,null,null,null,null,null,{"$f":"IF('1. Ordersheet'!AX293=\"\",\"\",'1. Ordersheet'!AX293)","v":""},{"$f":"IF('1. Ordersheet'!AY293=\"\",\"\",'1. Ordersheet'!AY293)","v":""},{"$f":"IF('1. Ordersheet'!AZ293=\"\",\"\",'1. Ordersheet'!AZ293)","v":""},{"$f":"IF('1. Ordersheet'!BA293=\"\",\"\",'1. Ordersheet'!BA293)","v":""},{"$f":"IF('1. Ordersheet'!BC293=\"\",\"\",'1. Ordersheet'!BC293)","v":""},{"$f":"IF('1. Ordersheet'!BD293=\"\",\"\",'1. Ordersheet'!BD293)","v":""},{"$f":"IF('1. Ordersheet'!BE293=\"\",\"\",'1. Ordersheet'!BE293)","v":""},{"$f":"IF('1. Ordersheet'!BF293=\"\",\"\",'1. Ordersheet'!BF293)","v":""},{"$f":"IF('1. Ordersheet'!BG293=\"\",\"\",'1. Ordersheet'!BG293)","v":"ZWO"},{"$f":"IF('1. Ordersheet'!BH293=\"\",\"\",'1. Ordersheet'!BH293)","v":""},{"$f":"IF('1. Ordersheet'!BI293=\"\",\"\",'1. Ordersheet'!BI293)","v":""},{"$f":"IF('1. Ordersheet'!BJ293=\"\",\"\",'1. Ordersheet'!BJ293)","v":""},{"$f":"IF('1. Ordersheet'!BK293=\"\",\"\",'1. Ordersheet'!BK293)","v":""},{"$f":"IF('1. Ordersheet'!BL293=\"\",\"\",'1. Ordersheet'!BL293)","v":""}]
[{"$f":"IF('1. Ordersheet'!F294=\"\",\"\",'1. Ordersheet'!F294)","v":""},{"$f":"IF('1. Ordersheet'!G294=\"\",\"\",'1. Ordersheet'!G294)","v":""},{"$f":"IF('1. Ordersheet'!H294=\"\",\"\",'1. Ordersheet'!H294)","v":""},{"$f":"IF('1. Ordersheet'!I294=\"\",\"\",'1. Ordersheet'!I294)","v":""},{"$f":"IF('1. Ordersheet'!J294=\"\",\"\",'1. Ordersheet'!J294)","v":""},{"$f":"IF('1. Ordersheet'!K294=\"\",\"\",'1. Ordersheet'!K294)","v":""},{"$f":"IF('1. Ordersheet'!L294=\"\",\"\",'1. Ordersheet'!L294)","v":""},{"$f":"IF('1. Ordersheet'!M294=\"\",\"\",'1. Ordersheet'!M294)","v":""},{"$f":"IF('1. Ordersheet'!N294=\"\",\"\",'1. Ordersheet'!N294)","v":""},{"$f":"IF('1. Ordersheet'!O294=\"\",\"\",'1. Ordersheet'!O294)","v":{"$error":"#N/A"}},{"$f":"IF('1. Ordersheet'!P294=\"\",\"\",'1. Ordersheet'!P294)","v":{"$error":"#N/A"}},{"$f":"IF('1. Ordersheet'!Q294=\"\",\"\",'1. Ordersheet'!Q294)","v":""},{"$f":"IF('1. Ordersheet'!R294=\"\",\"\",'1. Ordersheet'!R294)","v":""},{"$f":"IF('1. Ordersheet'!S294=\"\",\"\",'1. Ordersheet'!S294)","v":""},{"$f":"IF('1. Ordersheet'!V294=\"\",\"\",'1. Ordersheet'!V294)","v":""},{"$f":"IF('1. Ordersheet'!W294=\"\",\"\",'1. Ordersheet'!W294)","v":""},{"$f":"IF('1. Ordersheet'!X294=\"\",\"\",'1. Ordersheet'!X294)","v":""},{"$f":"IF('1. Ordersheet'!Y294=\"\",\"\",'1. Ordersheet'!Y294)","v":""},{"$f":"IF('1. Ordersheet'!Z294=\"\",\"\",'1. Ordersheet'!Z294)","v":""},{"$f":"IF('1. Ordersheet'!AA294=\"\",\"\",'1. Ordersheet'!AA294)","v":""},null,{"$f":"IF('1. Ordersheet'!AS294=\"\",\"\",'1. Ordersheet'!AS294)","v":""},{"$f":"IF('1. Ordersheet'!AT294=\"\",\"\",'1. Ordersheet'!AT294)","v":""},null,null,null,null,null,null,null,{"$f":"IF('1. Ordersheet'!AX294=\"\",\"\",'1. Ordersheet'!AX294)","v":""},{"$f":"IF('1. Ordersheet'!AY294=\"\",\"\",'1. Ordersheet'!AY294)","v":""},{"$f":"IF('1. Ordersheet'!AZ294=\"\",\"\",'1. Ordersheet'!AZ294)","v":""},{"$f":"IF('1. Ordersheet'!BA294=\"\",\"\",'1. Ordersheet'!BA294)","v":""},{"$f":"IF('1. Ordersheet'!BC294=\"\",\"\",'1. Ordersheet'!BC294)","v":""},{"$f":"IF('1. Ordersheet'!BD294=\"\",\"\",'1. Ordersheet'!BD294)","v":""},{"$f":"IF('1. Ordersheet'!BE294=\"\",\"\",'1. Ordersheet'!BE294)","v":""},{"$f":"IF('1. Ordersheet'!BF294=\"\",\"\",'1. Ordersheet'!BF294)","v":""},{"$f":"IF('1. Ordersheet'!BG294=\"\",\"\",'1. Ordersheet'!BG294)","v":"ZWO"},{"$f":"IF('1. Ordersheet'!BH294=\"\",\"\",'1. Ordersheet'!BH294)","v":""},{"$f":"IF('1. Ordersheet'!BI294=\"\",\"\",'1. Ordersheet'!BI294)","v":""},{"$f":"IF('1. Ordersheet'!BJ294=\"\",\"\",'1. Ordersheet'!BJ294)","v":""},{"$f":"IF('1. Ordersheet'!BK294=\"\",\"\",'1. Ordersheet'!BK294)","v":""},{"$f":"IF('1. Ordersheet'!BL294=\"\",\"\",'1. Ordersheet'!BL294)","v":""}]
[{"$f":"IF('1. Ordersheet'!F295=\"\",\"\",'1. Ordersheet'!F295)","v":""},{"$f":"IF('1. Ordersheet'!G295=\"\",\"\",'1. Ordersheet'!G295)","v":""},{"$f":"IF('1. Ordersheet'!H295=\"\",\"\",'1. Ordersheet'!H295)","v":""},{"$f":"IF('1. Ordersheet'!I295=\"\",\"\",'1. Ordersheet'!I295)","v":""},{"$f":"IF('1. Ordersheet'!J295=\"\",\"\",'1. Ordersheet'!J295)","v":""},{"$f":"IF('1. Ordersheet'!K295=\"\",\"\",'1. Ordersheet'!K295)","v":""},{"$f":"IF('1. Ordersheet'!L295=\"\",\"\",'1. Ordersheet'!L295)","v":""},{"$f":"IF('1. Ordersheet'!M295=\"\",\"\",'1. Ordersheet'!M295)","v":""},{"$f":"IF('1. Ordersheet'!N295=\"\",\"\",'1. Ordersheet'!N295)","v":""},{"$f":"IF('1. Ordersheet'!O295=\"\",\"\",'1. Ordersheet'!O295)","v":{"$error":"#N/A"}},{"$f":"IF('1. Ordersheet'!P295=\"\",\"\",'1. Ordersheet'!P295)","v":{"$error":"#N/A"}},{"$f":"IF('1. Ordersheet'!Q295=\"\",\"\",'1. Ordersheet'!Q295)","v":""},{"$f":"IF('1. Ordersheet'!R295=\"\",\"\",'1. Ordersheet'!R295)","v":""},{"$f":"IF('1. Ordersheet'!S295=\"\",\"\",'1. Ordersheet'!S295)","v":""},{"$f":"IF('1. Ordersheet'!V295=\"\",\"\",'1. Ordersheet'!V295)","v":""},{"$f":"IF('1. Ordersheet'!W295=\"\",\"\",'1. Ordersheet'!W295)","v":""},{"$f":"IF('1. Ordersheet'!X295=\"\",\"\",'1. Ordersheet'!X295)","v":""},{"$f":"IF('1. Ordersheet'!Y295=\"\",\"\",'1. Ordersheet'!Y295)","v":""},{"$f":"IF('1. Ordersheet'!Z295=\"\",\"\",'1. Ordersheet'!Z295)","v":""},{"$f":"IF('1. Ordersheet'!AA295=\"\",\"\",'1. Ordersheet'!AA295)","v":""},null,{"$f":"IF('1. Ordersheet'!AS295=\"\",\"\",'1. Ordersheet'!AS295)","v":""},{"$f":"IF('1. Ordersheet'!AT295=\"\",\"\",'1. Ordersheet'!AT295)","v":""},null,null,null,null,null,null,null,{"$f":"IF('1. Ordersheet'!AX295=\"\",\"\",'1. Ordersheet'!AX295)","v":""},{"$f":"IF('1. Ordersheet'!AY295=\"\",\"\",'1. Ordersheet'!AY295)","v":""},{"$f":"IF('1. Ordersheet'!AZ295=\"\",\"\",'1. Ordersheet'!AZ295)","v":""},{"$f":"IF('1. Ordersheet'!BA295=\"\",\"\",'1. Ordersheet'!BA295)","v":""},{"$f":"IF('1. Ordersheet'!BC295=\"\",\"\",'1. Ordersheet'!BC295)","v":""},{"$f":"IF('1. Ordersheet'!BD295=\"\",\"\",'1. Ordersheet'!BD295)","v":""},{"$f":"IF('1. Ordersheet'!BE295=\"\",\"\",'1. Ordersheet'!BE295)","v":""},{"$f":"IF('1. Ordersheet'!BF295=\"\",\"\",'1. Ordersheet'!BF295)","v":""},{"$f":"IF('1. Ordersheet'!BG295=\"\",\"\",'1. Ordersheet'!BG295)","v":"ZWO"},{"$f":"IF('1. Ordersheet'!BH295=\"\",\"\",'1. Ordersheet'!BH295)","v":""},{"$f":"IF('1. Ordersheet'!BI295=\"\",\"\",'1. Ordersheet'!BI295)","v":""},{"$f":"IF('1. Ordersheet'!BJ295=\"\",\"\",'1. Ordersheet'!BJ295)","v":""},{"$f":"IF('1. Ordersheet'!BK295=\"\",\"\",'1. Ordersheet'!BK295)","v":""},{"$f":"IF('1. Ordersheet'!BL295=\"\",\"\",'1. Ordersheet'!BL295)","v":""}]
[{"$f":"IF('1. Ordersheet'!F296=\"\",\"\",'1. Ordersheet'!F296)","v":""},{"$f":"IF('1. Ordersheet'!G296=\"\",\"\",'1. Ordersheet'!G296)","v":""},{"$f":"IF('1. Ordersheet'!H296=\"\",\"\",'1. Ordersheet'!H296)","v":""},{"$f":"IF('1. Ordersheet'!I296=\"\",\"\",'1. Ordersheet'!I296)","v":""},{"$f":"IF('1. Ordersheet'!J296=\"\",\"\",'1. Ordersheet'!J296)","v":""},{"$f":"IF('1. Ordersheet'!K296=\"\",\"\",'1. Ordersheet'!K296)","v":""},{"$f":"IF('1. Ordersheet'!L296=\"\",\"\",'1. Ordersheet'!L296)","v":""},{"$f":"IF('1. Ordersheet'!M296=\"\",\"\",'1. Ordersheet'!M296)","v":""},{"$f":"IF('1. Ordersheet'!N296=\"\",\"\",'1. Ordersheet'!N296)","v":""},{"$f":"IF('1. Ordersheet'!O296=\"\",\"\",'1. Ordersheet'!O296)","v":{"$error":"#N/A"}},{"$f":"IF('1. Ordersheet'!P296=\"\",\"\",'1. Ordersheet'!P296)","v":{"$error":"#N/A"}},{"$f":"IF('1. Ordersheet'!Q296=\"\",\"\",'1. Ordersheet'!Q296)","v":""},{"$f":"IF('1. Ordersheet'!R296=\"\",\"\",'1. Ordersheet'!R296)","v":""},{"$f":"IF('1. Ordersheet'!S296=\"\",\"\",'1. Ordersheet'!S296)","v":""},{"$f":"IF('1. Ordersheet'!V296=\"\",\"\",'1. Ordersheet'!V296)","v":""},{"$f":"IF('1. Ordersheet'!W296=\"\",\"\",'1. Ordersheet'!W296)","v":""},{"$f":"IF('1. Ordersheet'!X296=\"\",\"\",'1. Ordersheet'!X296)","v":""},{"$f":"IF('1. Ordersheet'!Y296=\"\",\"\",'1. Ordersheet'!Y296)","v":""},{"$f":"IF('1. Ordersheet'!Z296=\"\",\"\",'1. Ordersheet'!Z296)","v":""},{"$f":"IF('1. Ordersheet'!AA296=\"\",\"\",'1. Ordersheet'!AA296)","v":""},null,{"$f":"IF('1. Ordersheet'!AS296=\"\",\"\",'1. Ordersheet'!AS296)","v":""},{"$f":"IF('1. Ordersheet'!AT296=\"\",\"\",'1. Ordersheet'!AT296)","v":""},null,null,null,null,null,null,null,{"$f":"IF('1. Ordersheet'!AX296=\"\",\"\",'1. Ordersheet'!AX296)","v":""},{"$f":"IF('1. Ordersheet'!AY296=\"\",\"\",'1. Ordersheet'!AY296)","v":""},{"$f":"IF('1. Ordersheet'!AZ296=\"\",\"\",'1. Ordersheet'!AZ296)","v":""},{"$f":"IF('1. Ordersheet'!BA296=\"\",\"\",'1. Ordersheet'!BA296)","v":""},{"$f":"IF('1. Ordersheet'!BC296=\"\",\"\",'1. Ordersheet'!BC296)","v":""},{"$f":"IF('1. Ordersheet'!BD296=\"\",\"\",'1. Ordersheet'!BD296)","v":""},{"$f":"IF('1. Ordersheet'!BE296=\"\",\"\",'1. Ordersheet'!BE296)","v":""},{"$f":"IF('1. Ordersheet'!BF296=\"\",\"\",'1. Ordersheet'!BF296)","v":""},{"$f":"IF('1. Ordersheet'!BG296=\"\",\"\",'1. Ordersheet'!BG296)","v":"ZWO"},{"$f":"IF('1. Ordersheet'!BH296=\"\",\"\",'1. Ordersheet'!BH296)","v":""},{"$f":"IF('1. Ordersheet'!BI296=\"\",\"\",'1. Ordersheet'!BI296)","v":""},{"$f":"IF('1. Ordersheet'!BJ296=\"\",\"\",'1. Ordersheet'!BJ296)","v":""},{"$f":"IF('1. Ordersheet'!BK296=\"\",\"\",'1. Ordersheet'!BK296)","v":""},{"$f":"IF('1. Ordersheet'!BL296=\"\",\"\",'1. Ordersheet'!BL296)","v":""}]
[{"$f":"IF('1. Ordersheet'!F297=\"\",\"\",'1. Ordersheet'!F297)","v":""},{"$f":"IF('1. Ordersheet'!G297=\"\",\"\",'1. Ordersheet'!G297)","v":""},{"$f":"IF('1. Ordersheet'!H297=\"\",\"\",'1. Ordersheet'!H297)","v":""},{"$f":"IF('1. Ordersheet'!I297=\"\",\"\",'1. Ordersheet'!I297)","v":""},{"$f":"IF('1. Ordersheet'!J297=\"\",\"\",'1. Ordersheet'!J297)","v":""},{"$f":"IF('1. Ordersheet'!K297=\"\",\"\",'1. Ordersheet'!K297)","v":""},{"$f":"IF('1. Ordersheet'!L297=\"\",\"\",'1. Ordersheet'!L297)","v":""},{"$f":"IF('1. Ordersheet'!M297=\"\",\"\",'1. Ordersheet'!M297)","v":""},{"$f":"IF('1. Ordersheet'!N297=\"\",\"\",'1. Ordersheet'!N297)","v":""},{"$f":"IF('1. Ordersheet'!O297=\"\",\"\",'1. Ordersheet'!O297)","v":{"$error":"#N/A"}},{"$f":"IF('1. Ordersheet'!P297=\"\",\"\",'1. Ordersheet'!P297)","v":{"$error":"#N/A"}},{"$f":"IF('1. Ordersheet'!Q297=\"\",\"\",'1. Ordersheet'!Q297)","v":""},{"$f":"IF('1. Ordersheet'!R297=\"\",\"\",'1. Ordersheet'!R297)","v":""},{"$f":"IF('1. Ordersheet'!S297=\"\",\"\",'1. Ordersheet'!S297)","v":""},{"$f":"IF('1. Ordersheet'!V297=\"\",\"\",'1. Ordersheet'!V297)","v":""},{"$f":"IF('1. Ordersheet'!W297=\"\",\"\",'1. Ordersheet'!W297)","v":""},{"$f":"IF('1. Ordersheet'!X297=\"\",\"\",'1. Ordersheet'!X297)","v":""},{"$f":"IF('1. Ordersheet'!Y297=\"\",\"\",'1. Ordersheet'!Y297)","v":""},{"$f":"IF('1. Ordersheet'!Z297=\"\",\"\",'1. Ordersheet'!Z297)","v":""},{"$f":"IF('1. Ordersheet'!AA297=\"\",\"\",'1. Ordersheet'!AA297)","v":""},null,{"$f":"IF('1. Ordersheet'!AS297=\"\",\"\",'1. Ordersheet'!AS297)","v":""},{"$f":"IF('1. Ordersheet'!AT297=\"\",\"\",'1. Ordersheet'!AT297)","v":""},null,null,null,null,null,null,null,{"$f":"IF('1. Ordersheet'!AX297=\"\",\"\",'1. Ordersheet'!AX297)","v":""},{"$f":"IF('1. Ordersheet'!AY297=\"\",\"\",'1. Ordersheet'!AY297)","v":""},{"$f":"IF('1. Ordersheet'!AZ297=\"\",\"\",'1. Ordersheet'!AZ297)","v":""},{"$f":"IF('1. Ordersheet'!BA297=\"\",\"\",'1. Ordersheet'!BA297)","v":""},{"$f":"IF('1. Ordersheet'!BC297=\"\",\"\",'1. Ordersheet'!BC297)","v":""},{"$f":"IF('1. Ordersheet'!BD297=\"\",\"\",'1. Ordersheet'!BD297)","v":""},{"$f":"IF('1. Ordersheet'!BE297=\"\",\"\",'1. Ordersheet'!BE297)","v":""},{"$f":"IF('1. Ordersheet'!BF297=\"\",\"\",'1. Ordersheet'!BF297)","v":""},{"$f":"IF('1. Ordersheet'!BG297=\"\",\"\",'1. Ordersheet'!BG297)","v":"ZWO"},{"$f":"IF('1. Ordersheet'!BH297=\"\",\"\",'1. Ordersheet'!BH297)","v":""},{"$f":"IF('1. Ordersheet'!BI297=\"\",\"\",'1. Ordersheet'!BI297)","v":""},{"$f":"IF('1. Ordersheet'!BJ297=\"\",\"\",'1. Ordersheet'!BJ297)","v":""},{"$f":"IF('1. Ordersheet'!BK297=\"\",\"\",'1. Ordersheet'!BK297)","v":""},{"$f":"IF('1. Ordersheet'!BL297=\"\",\"\",'1. Ordersheet'!BL297)","v":""}]
[{"$f":"IF('1. Ordersheet'!F298=\"\",\"\",'1. Ordersheet'!F298)","v":""},{"$f":"IF('1. Ordersheet'!G298=\"\",\"\",'1. Ordersheet'!G298)","v":""},{"$f":"IF('1. Ordersheet'!H298=\"\",\"\",'1. Ordersheet'!H298)","v":""},{"$f":"IF('1. Ordersheet'!I298=\"\",\"\",'1. Ordersheet'!I298)","v":""},{"$f":"IF('1. Ordersheet'!J298=\"\",\"\",'1. Ordersheet'!J298)","v":""},{"$f":"IF('1. Ordersheet'!K298=\"\",\"\",'1. Ordersheet'!K298)","v":""},{"$f":"IF('1. Ordersheet'!L298=\"\",\"\",'1. Ordersheet'!L298)","v":""},{"$f":"IF('1. Ordersheet'!M298=\"\",\"\",'1. Ordersheet'!M298)","v":""},{"$f":"IF('1. Ordersheet'!N298=\"\",\"\",'1. Ordersheet'!N298)","v":""},{"$f":"IF('1. Ordersheet'!O298=\"\",\"\",'1. Ordersheet'!O298)","v":{"$error":"#N/A"}},{"$f":"IF('1. Ordersheet'!P298=\"\",\"\",'1. Ordersheet'!P298)","v":{"$error":"#N/A"}},{"$f":"IF('1. Ordersheet'!Q298=\"\",\"\",'1. Ordersheet'!Q298)","v":""},{"$f":"IF('1. Ordersheet'!R298=\"\",\"\",'1. Ordersheet'!R298)","v":""},{"$f":"IF('1. Ordersheet'!S298=\"\",\"\",'1. Ordersheet'!S298)","v":""},{"$f":"IF('1. Ordersheet'!V298=\"\",\"\",'1. Ordersheet'!V298)","v":""},{"$f":"IF('1. Ordersheet'!W298=\"\",\"\",'1. Ordersheet'!W298)","v":""},{"$f":"IF('1. Ordersheet'!X298=\"\",\"\",'1. Ordersheet'!X298)","v":""},{"$f":"IF('1. Ordersheet'!Y298=\"\",\"\",'1. Ordersheet'!Y298)","v":""},{"$f":"IF('1. Ordersheet'!Z298=\"\",\"\",'1. Ordersheet'!Z298)","v":""},{"$f":"IF('1. Ordersheet'!AA298=\"\",\"\",'1. Ordersheet'!AA298)","v":""},null,{"$f":"IF('1. Ordersheet'!AS298=\"\",\"\",'1. Ordersheet'!AS298)","v":""},{"$f":"IF('1. Ordersheet'!AT298=\"\",\"\",'1. Ordersheet'!AT298)","v":""},null,null,null,null,null,null,null,{"$f":"IF('1. Ordersheet'!AX298=\"\",\"\",'1. Ordersheet'!AX298)","v":""},{"$f":"IF('1. Ordersheet'!AY298=\"\",\"\",'1. Ordersheet'!AY298)","v":""},{"$f":"IF('1. Ordersheet'!AZ298=\"\",\"\",'1. Ordersheet'!AZ298)","v":""},{"$f":"IF('1. Ordersheet'!BA298=\"\",\"\",'1. Ordersheet'!BA298)","v":""},{"$f":"IF('1. Ordersheet'!BC298=\"\",\"\",'1. Ordersheet'!BC298)","v":""},{"$f":"IF('1. Ordersheet'!BD298=\"\",\"\",'1. Ordersheet'!BD298)","v":""},{"$f":"IF('1. Ordersheet'!BE298=\"\",\"\",'1. Ordersheet'!BE298)","v":""},{"$f":"IF('1. Ordersheet'!BF298=\"\",\"\",'1. Ordersheet'!BF298)","v":""},{"$f":"IF('1. Ordersheet'!BG298=\"\",\"\",'1. Ordersheet'!BG298)","v":"ZWO"},{"$f":"IF('1. Ordersheet'!BH298=\"\",\"\",'1. Ordersheet'!BH298)","v":""},{"$f":"IF('1. Ordersheet'!BI298=\"\",\"\",'1. Ordersheet'!BI298)","v":""},{"$f":"IF('1. Ordersheet'!BJ298=\"\",\"\",'1. Ordersheet'!BJ298)","v":""},{"$f":"IF('1. Ordersheet'!BK298=\"\",\"\",'1. Ordersheet'!BK298)","v":""},{"$f":"IF('1. Ordersheet'!BL298=\"\",\"\",'1. Ordersheet'!BL298)","v":""}]
[{"$f":"IF('1. Ordersheet'!F299=\"\",\"\",'1. Ordersheet'!F299)","v":""},{"$f":"IF('1. Ordersheet'!G299=\"\",\"\",'1. Ordersheet'!G299)","v":""},{"$f":"IF('1. Ordersheet'!H299=\"\",\"\",'1. Ordersheet'!H299)","v":""},{"$f":"IF('1. Ordersheet'!I299=\"\",\"\",'1. Ordersheet'!I299)","v":""},{"$f":"IF('1. Ordersheet'!J299=\"\",\"\",'1. Ordersheet'!J299)","v":""},{"$f":"IF('1. Ordersheet'!K299=\"\",\"\",'1. Ordersheet'!K299)","v":""},{"$f":"IF('1. Ordersheet'!L299=\"\",\"\",'1. Ordersheet'!L299)","v":""},{"$f":"IF('1. Ordersheet'!M299=\"\",\"\",'1. Ordersheet'!M299)","v":""},{"$f":"IF('1. Ordersheet'!N299=\"\",\"\",'1. Ordersheet'!N299)","v":""},{"$f":"IF('1. Ordersheet'!O299=\"\",\"\",'1. Ordersheet'!O299)","v":{"$error":"#N/A"}},{"$f":"IF('1. Ordersheet'!P299=\"\",\"\",'1. Ordersheet'!P299)","v":{"$error":"#N/A"}},{"$f":"IF('1. Ordersheet'!Q299=\"\",\"\",'1. Ordersheet'!Q299)","v":""},{"$f":"IF('1. Ordersheet'!R299=\"\",\"\",'1. Ordersheet'!R299)","v":""},{"$f":"IF('1. Ordersheet'!S299=\"\",\"\",'1. Ordersheet'!S299)","v":""},{"$f":"IF('1. Ordersheet'!V299=\"\",\"\",'1. Ordersheet'!V299)","v":""},{"$f":"IF('1. Ordersheet'!W299=\"\",\"\",'1. Ordersheet'!W299)","v":""},{"$f":"IF('1. Ordersheet'!X299=\"\",\"\",'1. Ordersheet'!X299)","v":""},{"$f":"IF('1. Ordersheet'!Y299=\"\",\"\",'1. Ordersheet'!Y299)","v":""},{"$f":"IF('1. Ordersheet'!Z299=\"\",\"\",'1. Ordersheet'!Z299)","v":""},{"$f":"IF('1. Ordersheet'!AA299=\"\",\"\",'1. Ordersheet'!AA299)","v":""},null,{"$f":"IF('1. Ordersheet'!AS299=\"\",\"\",'1. Ordersheet'!AS299)","v":""},{"$f":"IF('1. Ordersheet'!AT299=\"\",\"\",'1. Ordersheet'!AT299)","v":""},null,null,null,null,null,null,null,{"$f":"IF('1. Ordersheet'!AX299=\"\",\"\",'1. Ordersheet'!AX299)","v":""},{"$f":"IF('1. Ordersheet'!AY299=\"\",\"\",'1. Ordersheet'!AY299)","v":""},{"$f":"IF('1. Ordersheet'!AZ299=\"\",\"\",'1. Ordersheet'!AZ299)","v":""},{"$f":"IF('1. Ordersheet'!BA299=\"\",\"\",'1. Ordersheet'!BA299)","v":""},{"$f":"IF('1. Ordersheet'!BC299=\"\",\"\",'1. Ordersheet'!BC299)","v":""},{"$f":"IF('1. Ordersheet'!BD299=\"\",\"\",'1. Ordersheet'!BD299)","v":""},{"$f":"IF('1. Ordersheet'!BE299=\"\",\"\",'1. Ordersheet'!BE299)","v":""},{"$f":"IF('1. Ordersheet'!BF299=\"\",\"\",'1. Ordersheet'!BF299)","v":""},{"$f":"IF('1. Ordersheet'!BG299=\"\",\"\",'1. Ordersheet'!BG299)","v":"ZWO"},{"$f":"IF('1. Ordersheet'!BH299=\"\",\"\",'1. Ordersheet'!BH299)","v":""},{"$f":"IF('1. Ordersheet'!BI299=\"\",\"\",'1. Ordersheet'!BI299)","v":""},{"$f":"IF('1. Ordersheet'!BJ299=\"\",\"\",'1. Ordersheet'!BJ299)","v":""},{"$f":"IF('1. Ordersheet'!BK299=\"\",\"\",'1. Ordersheet'!BK299)","v":""},{"$f":"IF('1. Ordersheet'!BL299=\"\",\"\",'1. Ordersheet'!BL299)","v":""}]
[{"$f":"IF('1. Ordersheet'!F300=\"\",\"\",'1. Ordersheet'!F300)","v":""},{"$f":"IF('1. Ordersheet'!G300=\"\",\"\",'1. Ordersheet'!G300)","v":""},{"$f":"IF('1. Ordersheet'!H300=\"\",\"\",'1. Ordersheet'!H300)","v":""},{"$f":"IF('1. Ordersheet'!I300=\"\",\"\",'1. Ordersheet'!I300)","v":""},{"$f":"IF('1. Ordersheet'!J300=\"\",\"\",'1. Ordersheet'!J300)","v":""},{"$f":"IF('1. Ordersheet'!K300=\"\",\"\",'1. Ordersheet'!K300)","v":""},{"$f":"IF('1. Ordersheet'!L300=\"\",\"\",'1. Ordersheet'!L300)","v":""},{"$f":"IF('1. Ordersheet'!M300=\"\",\"\",'1. Ordersheet'!M300)","v":""},{"$f":"IF('1. Ordersheet'!N300=\"\",\"\",'1. Ordersheet'!N300)","v":""},{"$f":"IF('1. Ordersheet'!O300=\"\",\"\",'1. Ordersheet'!O300)","v":{"$error":"#N/A"}},{"$f":"IF('1. Ordersheet'!P300=\"\",\"\",'1. Ordersheet'!P300)","v":{"$error":"#N/A"}},{"$f":"IF('1. Ordersheet'!Q300=\"\",\"\",'1. Ordersheet'!Q300)","v":""},{"$f":"IF('1. Ordersheet'!R300=\"\",\"\",'1. Ordersheet'!R300)","v":""},{"$f":"IF('1. Ordersheet'!S300=\"\",\"\",'1. Ordersheet'!S300)","v":""},{"$f":"IF('1. Ordersheet'!V300=\"\",\"\",'1. Ordersheet'!V300)","v":""},{"$f":"IF('1. Ordersheet'!W300=\"\",\"\",'1. Ordersheet'!W300)","v":""},{"$f":"IF('1. Ordersheet'!X300=\"\",\"\",'1. Ordersheet'!X300)","v":""},{"$f":"IF('1. Ordersheet'!Y300=\"\",\"\",'1. Ordersheet'!Y300)","v":""},{"$f":"IF('1. Ordersheet'!Z300=\"\",\"\",'1. Ordersheet'!Z300)","v":""},{"$f":"IF('1. Ordersheet'!AA300=\"\",\"\",'1. Ordersheet'!AA300)","v":""},null,{"$f":"IF('1. Ordersheet'!AS300=\"\",\"\",'1. Ordersheet'!AS300)","v":""},{"$f":"IF('1. Ordersheet'!AT300=\"\",\"\",'1. Ordersheet'!AT300)","v":""},null,null,null,null,null,null,null,{"$f":"IF('1. Ordersheet'!AX300=\"\",\"\",'1. Ordersheet'!AX300)","v":""},{"$f":"IF('1. Ordersheet'!AY300=\"\",\"\",'1. Ordersheet'!AY300)","v":""},{"$f":"IF('1. Ordersheet'!AZ300=\"\",\"\",'1. Ordersheet'!AZ300)","v":""},{"$f":"IF('1. Ordersheet'!BA300=\"\",\"\",'1. Ordersheet'!BA300)","v":""},{"$f":"IF('1. Ordersheet'!BC300=\"\",\"\",'1. Ordersheet'!BC300)","v":""},{"$f":"IF('1. Ordersheet'!BD300=\"\",\"\",'1. Ordersheet'!BD300)","v":""},{"$f":"IF('1. Ordersheet'!BE300=\"\",\"\",'1. Ordersheet'!BE300)","v":""},{"$f":"IF('1. Ordersheet'!BF300=\"\",\"\",'1. Ordersheet'!BF300)","v":""},{"$f":"IF('1. Ordersheet'!BG300=\"\",\"\",'1. Ordersheet'!BG300)","v":"ZWO"},{"$f":"IF('1. Ordersheet'!BH300=\"\",\"\",'1. Ordersheet'!BH300)","v":""},{"$f":"IF('1. Ordersheet'!BI300=\"\",\"\",'1. Ordersheet'!BI300)","v":""},{"$f":"IF('1. Ordersheet'!BJ300=\"\",\"\",'1. Ordersheet'!BJ300)","v":""},{"$f":"IF('1. Ordersheet'!BK300=\"\",\"\",'1. Ordersheet'!BK300)","v":""},{"$f":"IF('1. Ordersheet'!BL300=\"\",\"\",'1. Ordersheet'!BL300)","v":""}]
[{"$f":"IF('1. Ordersheet'!F301=\"\",\"\",'1. Ordersheet'!F301)","v":""},{"$f":"IF('1. Ordersheet'!G301=\"\",\"\",'1. Ordersheet'!G301)","v":""},{"$f":"IF('1. Ordersheet'!H301=\"\",\"\",'1. Ordersheet'!H301)","v":""},{"$f":"IF('1. Ordersheet'!I301=\"\",\"\",'1. Ordersheet'!I301)","v":""},{"$f":"IF('1. Ordersheet'!J301=\"\",\"\",'1. Ordersheet'!J301)","v":""},{"$f":"IF('1. Ordersheet'!K301=\"\",\"\",'1. Ordersheet'!K301)","v":""},{"$f":"IF('1. Ordersheet'!L301=\"\",\"\",'1. Ordersheet'!L301)","v":""},{"$f":"IF('1. Ordersheet'!M301=\"\",\"\",'1. Ordersheet'!M301)","v":""},{"$f":"IF('1. Ordersheet'!N301=\"\",\"\",'1. Ordersheet'!N301)","v":""},{"$f":"IF('1. Ordersheet'!O301=\"\",\"\",'1. Ordersheet'!O301)","v":{"$error":"#N/A"}},{"$f":"IF('1. Ordersheet'!P301=\"\",\"\",'1. Ordersheet'!P301)","v":{"$error":"#N/A"}},{"$f":"IF('1. Ordersheet'!Q301=\"\",\"\",'1. Ordersheet'!Q301)","v":""},{"$f":"IF('1. Ordersheet'!R301=\"\",\"\",'1. Ordersheet'!R301)","v":""},{"$f":"IF('1. Ordersheet'!S301=\"\",\"\",'1. Ordersheet'!S301)","v":""},{"$f":"IF('1. Ordersheet'!V301=\"\",\"\",'1. Ordersheet'!V301)","v":""},{"$f":"IF('1. Ordersheet'!W301=\"\",\"\",'1. Ordersheet'!W301)","v":""},{"$f":"IF('1. Ordersheet'!X301=\"\",\"\",'1. Ordersheet'!X301)","v":""},{"$f":"IF('1. Ordersheet'!Y301=\"\",\"\",'1. Ordersheet'!Y301)","v":""},{"$f":"IF('1. Ordersheet'!Z301=\"\",\"\",'1. Ordersheet'!Z301)","v":""},{"$f":"IF('1. Ordersheet'!AA301=\"\",\"\",'1. Ordersheet'!AA301)","v":""},null,{"$f":"IF('1. Ordersheet'!AS301=\"\",\"\",'1. Ordersheet'!AS301)","v":""},{"$f":"IF('1. Ordersheet'!AT301=\"\",\"\",'1. Ordersheet'!AT301)","v":""},null,null,null,null,null,null,null,{"$f":"IF('1. Ordersheet'!AX301=\"\",\"\",'1. Ordersheet'!AX301)","v":""},{"$f":"IF('1. Ordersheet'!AY301=\"\",\"\",'1. Ordersheet'!AY301)","v":""},{"$f":"IF('1. Ordersheet'!AZ301=\"\",\"\",'1. Ordersheet'!AZ301)","v":""},{"$f":"IF('1. Ordersheet'!BA301=\"\",\"\",'1. Ordersheet'!BA301)","v":""},{"$f":"IF('1. Ordersheet'!BC301=\"\",\"\",'1. Ordersheet'!BC301)","v":""},{"$f":"IF('1. Ordersheet'!BD301=\"\",\"\",'1. Ordersheet'!BD301)","v":""},{"$f":"IF('1. Ordersheet'!BE301=\"\",\"\",'1. Ordersheet'!BE301)","v":""},{"$f":"IF('1. Ordersheet'!BF301=\"\",\"\",'1. Ordersheet'!BF301)","v":""},{"$f":"IF('1. Ordersheet'!BG301=\"\",\"\",'1. Ordersheet'!BG301)","v":"ZWO"},{"$f":"IF('1. Ordersheet'!BH301=\"\",\"\",'1. Ordersheet'!BH301)","v":""},{"$f":"IF('1. Ordersheet'!BI301=\"\",\"\",'1. Ordersheet'!BI301)","v":""},{"$f":"IF('1. Ordersheet'!BJ301=\"\",\"\",'1. Ordersheet'!BJ301)","v":""},{"$f":"IF('1. Ordersheet'!BK301=\"\",\"\",'1. Ordersheet'!BK301)","v":""},{"$f":"IF('1. Ordersheet'!BL301=\"\",\"\",'1. Ordersheet'!BL301)","v":""}]
[{"$f":"IF('1. Ordersheet'!F302=\"\",\"\",'1. Ordersheet'!F302)","v":""},{"$f":"IF('1. Ordersheet'!G302=\"\",\"\",'1. Ordersheet'!G302)","v":""},{"$f":"IF('1. Ordersheet'!H302=\"\",\"\",'1. Ordersheet'!H302)","v":""},{"$f":"IF('1. Ordersheet'!I302=\"\",\"\",'1. Ordersheet'!I302)","v":""},{"$f":"IF('1. Ordersheet'!J302=\"\",\"\",'1. Ordersheet'!J302)","v":""},{"$f":"IF('1. Ordersheet'!K302=\"\",\"\",'1. Ordersheet'!K302)","v":""},{"$f":"IF('1. Ordersheet'!L302=\"\",\"\",'1. Ordersheet'!L302)","v":""},{"$f":"IF('1. Ordersheet'!M302=\"\",\"\",'1. Ordersheet'!M302)","v":""},{"$f":"IF('1. Ordersheet'!N302=\"\",\"\",'1. Ordersheet'!N302)","v":""},{"$f":"IF('1. Ordersheet'!O302=\"\",\"\",'1. Ordersheet'!O302)","v":{"$error":"#N/A"}},{"$f":"IF('1. Ordersheet'!P302=\"\",\"\",'1. Ordersheet'!P302)","v":{"$error":"#N/A"}},{"$f":"IF('1. Ordersheet'!Q302=\"\",\"\",'1. Ordersheet'!Q302)","v":""},{"$f":"IF('1. Ordersheet'!R302=\"\",\"\",'1. Ordersheet'!R302)","v":""},{"$f":"IF('1. Ordersheet'!S302=\"\",\"\",'1. Ordersheet'!S302)","v":""},{"$f":"IF('1. Ordersheet'!V302=\"\",\"\",'1. Ordersheet'!V302)","v":""},{"$f":"IF('1. Ordersheet'!W302=\"\",\"\",'1. Ordersheet'!W302)","v":""},{"$f":"IF('1. Ordersheet'!X302=\"\",\"\",'1. Ordersheet'!X302)","v":""},{"$f":"IF('1. Ordersheet'!Y302=\"\",\"\",'1. Ordersheet'!Y302)","v":""},{"$f":"IF('1. Ordersheet'!Z302=\"\",\"\",'1. Ordersheet'!Z302)","v":""},{"$f":"IF('1. Ordersheet'!AA302=\"\",\"\",'1. Ordersheet'!AA302)","v":""},null,{"$f":"IF('1. Ordersheet'!AS302=\"\",\"\",'1. Ordersheet'!AS302)","v":""},{"$f":"IF('1. Ordersheet'!AT302=\"\",\"\",'1. Ordersheet'!AT302)","v":""},null,null,null,null,null,null,null,{"$f":"IF('1. Ordersheet'!AX302=\"\",\"\",'1. Ordersheet'!AX302)","v":""},{"$f":"IF('1. Ordersheet'!AY302=\"\",\"\",'1. Ordersheet'!AY302)","v":""},{"$f":"IF('1. Ordersheet'!AZ302=\"\",\"\",'1. Ordersheet'!AZ302)","v":""},{"$f":"IF('1. Ordersheet'!BA302=\"\",\"\",'1. Ordersheet'!BA302)","v":""},{"$f":"IF('1. Ordersheet'!BC302=\"\",\"\",'1. Ordersheet'!BC302)","v":""},{"$f":"IF('1. Ordersheet'!BD302=\"\",\"\",'1. Ordersheet'!BD302)","v":""},{"$f":"IF('1. Ordersheet'!BE302=\"\",\"\",'1. Ordersheet'!BE302)","v":""},{"$f":"IF('1. Ordersheet'!BF302=\"\",\"\",'1. Ordersheet'!BF302)","v":""},{"$f":"IF('1. Ordersheet'!BG302=\"\",\"\",'1. Ordersheet'!BG302)","v":"ZWO"},{"$f":"IF('1. Ordersheet'!BH302=\"\",\"\",'1. Ordersheet'!BH302)","v":""},{"$f":"IF('1. Ordersheet'!BI302=\"\",\"\",'1. Ordersheet'!BI302)","v":""},{"$f":"IF('1. Ordersheet'!BJ302=\"\",\"\",'1. Ordersheet'!BJ302)","v":""},{"$f":"IF('1. Ordersheet'!BK302=\"\",\"\",'1. Ordersheet'!BK302)","v":""},{"$f":"IF('1. Ordersheet'!BL302=\"\",\"\",'1. Ordersheet'!BL302)","v":""}]
[{"$f":"IF('1. Ordersheet'!F303=\"\",\"\",'1. Ordersheet'!F303)","v":""},{"$f":"IF('1. Ordersheet'!G303=\"\",\"\",'1. Ordersheet'!G303)","v":""},{"$f":"IF('1. Ordersheet'!H303=\"\",\"\",'1. Ordersheet'!H303)","v":""},{"$f":"IF('1. Ordersheet'!I303=\"\",\"\",'1. Ordersheet'!I303)","v":""},{"$f":"IF('1. Ordersheet'!J303=\"\",\"\",'1. Ordersheet'!J303)","v":""},{"$f":"IF('1. Ordersheet'!K303=\"\",\"\",'1. Ordersheet'!K303)","v":""},{"$f":"IF('1. Ordersheet'!L303=\"\",\"\",'1. Ordersheet'!L303)","v":""},{"$f":"IF('1. Ordersheet'!M303=\"\",\"\",'1. Ordersheet'!M303)","v":""},{"$f":"IF('1. Ordersheet'!N303=\"\",\"\",'1. Ordersheet'!N303)","v":""},{"$f":"IF('1. Ordersheet'!O303=\"\",\"\",'1. Ordersheet'!O303)","v":{"$error":"#N/A"}},{"$f":"IF('1. Ordersheet'!P303=\"\",\"\",'1. Ordersheet'!P303)","v":{"$error":"#N/A"}},{"$f":"IF('1. Ordersheet'!Q303=\"\",\"\",'1. Ordersheet'!Q303)","v":""},{"$f":"IF('1. Ordersheet'!R303=\"\",\"\",'1. Ordersheet'!R303)","v":""},{"$f":"IF('1. Ordersheet'!S303=\"\",\"\",'1. Ordersheet'!S303)","v":""},{"$f":"IF('1. Ordersheet'!V303=\"\",\"\",'1. Ordersheet'!V303)","v":""},{"$f":"IF('1. Ordersheet'!W303=\"\",\"\",'1. Ordersheet'!W303)","v":""},{"$f":"IF('1. Ordersheet'!X303=\"\",\"\",'1. Ordersheet'!X303)","v":""},{"$f":"IF('1. Ordersheet'!Y303=\"\",\"\",'1. Ordersheet'!Y303)","v":""},{"$f":"IF('1. Ordersheet'!Z303=\"\",\"\",'1. Ordersheet'!Z303)","v":""},{"$f":"IF('1. Ordersheet'!AA303=\"\",\"\",'1. Ordersheet'!AA303)","v":""},null,{"$f":"IF('1. Ordersheet'!AS303=\"\",\"\",'1. Ordersheet'!AS303)","v":""},{"$f":"IF('1. Ordersheet'!AT303=\"\",\"\",'1. Ordersheet'!AT303)","v":""},null,null,null,null,null,null,null,{"$f":"IF('1. Ordersheet'!AX303=\"\",\"\",'1. Ordersheet'!AX303)","v":""},{"$f":"IF('1. Ordersheet'!AY303=\"\",\"\",'1. Ordersheet'!AY303)","v":""},{"$f":"IF('1. Ordersheet'!AZ303=\"\",\"\",'1. Ordersheet'!AZ303)","v":""},{"$f":"IF('1. Ordersheet'!BA303=\"\",\"\",'1. Ordersheet'!BA303)","v":""},{"$f":"IF('1. Ordersheet'!BC303=\"\",\"\",'1. Ordersheet'!BC303)","v":""},{"$f":"IF('1. Ordersheet'!BD303=\"\",\"\",'1. Ordersheet'!BD303)","v":""},{"$f":"IF('1. Ordersheet'!BE303=\"\",\"\",'1. Ordersheet'!BE303)","v":""},{"$f":"IF('1. Ordersheet'!BF303=\"\",\"\",'1. Ordersheet'!BF303)","v":""},{"$f":"IF('1. Ordersheet'!BG303=\"\",\"\",'1. Ordersheet'!BG303)","v":"ZWO"},{"$f":"IF('1. Ordersheet'!BH303=\"\",\"\",'1. Ordersheet'!BH303)","v":""},{"$f":"IF('1. Ordersheet'!BI303=\"\",\"\",'1. Ordersheet'!BI303)","v":""},{"$f":"IF('1. Ordersheet'!BJ303=\"\",\"\",'1. Ordersheet'!BJ303)","v":""},{"$f":"IF('1. Ordersheet'!BK303=\"\",\"\",'1. Ordersheet'!BK303)","v":""},{"$f":"IF('1. Ordersheet'!BL303=\"\",\"\",'1. Ordersheet'!BL303)","v":""}]
[{"$f":"IF('1. Ordersheet'!F304=\"\",\"\",'1. Ordersheet'!F304)","v":""},{"$f":"IF('1. Ordersheet'!G304=\"\",\"\",'1. Ordersheet'!G304)","v":""},{"$f":"IF('1. Ordersheet'!H304=\"\",\"\",'1. Ordersheet'!H304)","v":""},{"$f":"IF('1. Ordersheet'!I304=\"\",\"\",'1. Ordersheet'!I304)","v":""},{"$f":"IF('1. Ordersheet'!J304=\"\",\"\",'1. Ordersheet'!J304)","v":""},{"$f":"IF('1. Ordersheet'!K304=\"\",\"\",'1. Ordersheet'!K304)","v":""},{"$f":"IF('1. Ordersheet'!L304=\"\",\"\",'1. Ordersheet'!L304)","v":""},{"$f":"IF('1. Ordersheet'!M304=\"\",\"\",'1. Ordersheet'!M304)","v":""},{"$f":"IF('1. Ordersheet'!N304=\"\",\"\",'1. Ordersheet'!N304)","v":""},{"$f":"IF('1. Ordersheet'!O304=\"\",\"\",'1. Ordersheet'!O304)","v":{"$error":"#N/A"}},{"$f":"IF('1. Ordersheet'!P304=\"\",\"\",'1. Ordersheet'!P304)","v":{"$error":"#N/A"}},{"$f":"IF('1. Ordersheet'!Q304=\"\",\"\",'1. Ordersheet'!Q304)","v":""},{"$f":"IF('1. Ordersheet'!R304=\"\",\"\",'1. Ordersheet'!R304)","v":""},{"$f":"IF('1. Ordersheet'!S304=\"\",\"\",'1. Ordersheet'!S304)","v":""},{"$f":"IF('1. Ordersheet'!V304=\"\",\"\",'1. Ordersheet'!V304)","v":""},{"$f":"IF('1. Ordersheet'!W304=\"\",\"\",'1. Ordersheet'!W304)","v":""},{"$f":"IF('1. Ordersheet'!X304=\"\",\"\",'1. Ordersheet'!X304)","v":""},{"$f":"IF('1. Ordersheet'!Y304=\"\",\"\",'1. Ordersheet'!Y304)","v":""},{"$f":"IF('1. Ordersheet'!Z304=\"\",\"\",'1. Ordersheet'!Z304)","v":""},{"$f":"IF('1. Ordersheet'!AA304=\"\",\"\",'1. Ordersheet'!AA304)","v":""},null,{"$f":"IF('1. Ordersheet'!AS304=\"\",\"\",'1. Ordersheet'!AS304)","v":""},{"$f":"IF('1. Ordersheet'!AT304=\"\",\"\",'1. Ordersheet'!AT304)","v":""},null,null,null,null,null,null,null,{"$f":"IF('1. Ordersheet'!AX304=\"\",\"\",'1. Ordersheet'!AX304)","v":""},{"$f":"IF('1. Ordersheet'!AY304=\"\",\"\",'1. Ordersheet'!AY304)","v":""},{"$f":"IF('1. Ordersheet'!AZ304=\"\",\"\",'1. Ordersheet'!AZ304)","v":""},{"$f":"IF('1. Ordersheet'!BA304=\"\",\"\",'1. Ordersheet'!BA304)","v":""},{"$f":"IF('1. Ordersheet'!BC304=\"\",\"\",'1. Ordersheet'!BC304)","v":""},{"$f":"IF('1. Ordersheet'!BD304=\"\",\"\",'1. Ordersheet'!BD304)","v":""},{"$f":"IF('1. Ordersheet'!BE304=\"\",\"\",'1. Ordersheet'!BE304)","v":""},{"$f":"IF('1. Ordersheet'!BF304=\"\",\"\",'1. Ordersheet'!BF304)","v":""},{"$f":"IF('1. Ordersheet'!BG304=\"\",\"\",'1. Ordersheet'!BG304)","v":"ZWO"},{"$f":"IF('1. Ordersheet'!BH304=\"\",\"\",'1. Ordersheet'!BH304)","v":""},{"$f":"IF('1. Ordersheet'!BI304=\"\",\"\",'1. Ordersheet'!BI304)","v":""},{"$f":"IF('1. Ordersheet'!BJ304=\"\",\"\",'1. Ordersheet'!BJ304)","v":""},{"$f":"IF('1. Ordersheet'!BK304=\"\",\"\",'1. Ordersheet'!BK304)","v":""},{"$f":"IF('1. Ordersheet'!BL304=\"\",\"\",'1. Ordersheet'!BL304)","v":""}]
[{"$f":"IF('1. Ordersheet'!F305=\"\",\"\",'1. Ordersheet'!F305)","v":""},{"$f":"IF('1. Ordersheet'!G305=\"\",\"\",'1. Ordersheet'!G305)","v":""},{"$f":"IF('1. Ordersheet'!H305=\"\",\"\",'1. Ordersheet'!H305)","v":""},{"$f":"IF('1. Ordersheet'!I305=\"\",\"\",'1. Ordersheet'!I305)","v":""},{"$f":"IF('1. Ordersheet'!J305=\"\",\"\",'1. Ordersheet'!J305)","v":""},{"$f":"IF('1. Ordersheet'!K305=\"\",\"\",'1. Ordersheet'!K305)","v":""},{"$f":"IF('1. Ordersheet'!L305=\"\",\"\",'1. Ordersheet'!L305)","v":""},{"$f":"IF('1. Ordersheet'!M305=\"\",\"\",'1. Ordersheet'!M305)","v":""},{"$f":"IF('1. Ordersheet'!N305=\"\",\"\",'1. Ordersheet'!N305)","v":""},{"$f":"IF('1. Ordersheet'!O305=\"\",\"\",'1. Ordersheet'!O305)","v":{"$error":"#N/A"}},{"$f":"IF('1. Ordersheet'!P305=\"\",\"\",'1. Ordersheet'!P305)","v":{"$error":"#N/A"}},{"$f":"IF('1. Ordersheet'!Q305=\"\",\"\",'1. Ordersheet'!Q305)","v":""},{"$f":"IF('1. Ordersheet'!R305=\"\",\"\",'1. Ordersheet'!R305)","v":""},{"$f":"IF('1. Ordersheet'!S305=\"\",\"\",'1. Ordersheet'!S305)","v":""},{"$f":"IF('1. Ordersheet'!V305=\"\",\"\",'1. Ordersheet'!V305)","v":""},{"$f":"IF('1. Ordersheet'!W305=\"\",\"\",'1. Ordersheet'!W305)","v":""},{"$f":"IF('1. Ordersheet'!X305=\"\",\"\",'1. Ordersheet'!X305)","v":""},{"$f":"IF('1. Ordersheet'!Y305=\"\",\"\",'1. Ordersheet'!Y305)","v":""},{"$f":"IF('1. Ordersheet'!Z305=\"\",\"\",'1. Ordersheet'!Z305)","v":""},{"$f":"IF('1. Ordersheet'!AA305=\"\",\"\",'1. Ordersheet'!AA305)","v":""},null,{"$f":"IF('1. Ordersheet'!AS305=\"\",\"\",'1. Ordersheet'!AS305)","v":""},{"$f":"IF('1. Ordersheet'!AT305=\"\",\"\",'1. Ordersheet'!AT305)","v":""},null,null,null,null,null,null,null,{"$f":"IF('1. Ordersheet'!AX305=\"\",\"\",'1. Ordersheet'!AX305)","v":""},{"$f":"IF('1. Ordersheet'!AY305=\"\",\"\",'1. Ordersheet'!AY305)","v":""},{"$f":"IF('1. Ordersheet'!AZ305=\"\",\"\",'1. Ordersheet'!AZ305)","v":""},{"$f":"IF('1. Ordersheet'!BA305=\"\",\"\",'1. Ordersheet'!BA305)","v":""},{"$f":"IF('1. Ordersheet'!BC305=\"\",\"\",'1. Ordersheet'!BC305)","v":""},{"$f":"IF('1. Ordersheet'!BD305=\"\",\"\",'1. Ordersheet'!BD305)","v":""},{"$f":"IF('1. Ordersheet'!BE305=\"\",\"\",'1. Ordersheet'!BE305)","v":""},{"$f":"IF('1. Ordersheet'!BF305=\"\",\"\",'1. Ordersheet'!BF305)","v":""},{"$f":"IF('1. Ordersheet'!BG305=\"\",\"\",'1. Ordersheet'!BG305)","v":"ZWO"},{"$f":"IF('1. Ordersheet'!BH305=\"\",\"\",'1. Ordersheet'!BH305)","v":""},{"$f":"IF('1. Ordersheet'!BI305=\"\",\"\",'1. Ordersheet'!BI305)","v":""},{"$f":"IF('1. Ordersheet'!BJ305=\"\",\"\",'1. Ordersheet'!BJ305)","v":""},{"$f":"IF('1. Ordersheet'!BK305=\"\",\"\",'1. Ordersheet'!BK305)","v":""},{"$f":"IF('1. Ordersheet'!BL305=\"\",\"\",'1. Ordersheet'!BL305)","v":""}]
[{"$f":"IF('1. Ordersheet'!F306=\"\",\"\",'1. Ordersheet'!F306)","v":""},{"$f":"IF('1. Ordersheet'!G306=\"\",\"\",'1. Ordersheet'!G306)","v":""},{"$f":"IF('1. Ordersheet'!H306=\"\",\"\",'1. Ordersheet'!H306)","v":""},{"$f":"IF('1. Ordersheet'!I306=\"\",\"\",'1. Ordersheet'!I306)","v":""},{"$f":"IF('1. Ordersheet'!J306=\"\",\"\",'1. Ordersheet'!J306)","v":""},{"$f":"IF('1. Ordersheet'!K306=\"\",\"\",'1. Ordersheet'!K306)","v":""},{"$f":"IF('1. Ordersheet'!L306=\"\",\"\",'1. Ordersheet'!L306)","v":""},{"$f":"IF('1. Ordersheet'!M306=\"\",\"\",'1. Ordersheet'!M306)","v":""},{"$f":"IF('1. Ordersheet'!N306=\"\",\"\",'1. Ordersheet'!N306)","v":""},{"$f":"IF('1. Ordersheet'!O306=\"\",\"\",'1. Ordersheet'!O306)","v":{"$error":"#N/A"}},{"$f":"IF('1. Ordersheet'!P306=\"\",\"\",'1. Ordersheet'!P306)","v":{"$error":"#N/A"}},{"$f":"IF('1. Ordersheet'!Q306=\"\",\"\",'1. Ordersheet'!Q306)","v":""},{"$f":"IF('1. Ordersheet'!R306=\"\",\"\",'1. Ordersheet'!R306)","v":""},{"$f":"IF('1. Ordersheet'!S306=\"\",\"\",'1. Ordersheet'!S306)","v":""},{"$f":"IF('1. Ordersheet'!V306=\"\",\"\",'1. Ordersheet'!V306)","v":""},{"$f":"IF('1. Ordersheet'!W306=\"\",\"\",'1. Ordersheet'!W306)","v":""},{"$f":"IF('1. Ordersheet'!X306=\"\",\"\",'1. Ordersheet'!X306)","v":""},{"$f":"IF('1. Ordersheet'!Y306=\"\",\"\",'1. Ordersheet'!Y306)","v":""},{"$f":"IF('1. Ordersheet'!Z306=\"\",\"\",'1. Ordersheet'!Z306)","v":""},{"$f":"IF('1. Ordersheet'!AA306=\"\",\"\",'1. Ordersheet'!AA306)","v":""},null,{"$f":"IF('1. Ordersheet'!AS306=\"\",\"\",'1. Ordersheet'!AS306)","v":""},{"$f":"IF('1. Ordersheet'!AT306=\"\",\"\",'1. Ordersheet'!AT306)","v":""},null,null,null,null,null,null,null,{"$f":"IF('1. Ordersheet'!AX306=\"\",\"\",'1. Ordersheet'!AX306)","v":""},{"$f":"IF('1. Ordersheet'!AY306=\"\",\"\",'1. Ordersheet'!AY306)","v":""},{"$f":"IF('1. Ordersheet'!AZ306=\"\",\"\",'1. Ordersheet'!AZ306)","v":""},{"$f":"IF('1. Ordersheet'!BA306=\"\",\"\",'1. Ordersheet'!BA306)","v":""},{"$f":"IF('1. Ordersheet'!BC306=\"\",\"\",'1. Ordersheet'!BC306)","v":""},{"$f":"IF('1. Ordersheet'!BD306=\"\",\"\",'1. Ordersheet'!BD306)","v":""},{"$f":"IF('1. Ordersheet'!BE306=\"\",\"\",'1. Ordersheet'!BE306)","v":""},{"$f":"IF('1. Ordersheet'!BF306=\"\",\"\",'1. Ordersheet'!BF306)","v":""},{"$f":"IF('1. Ordersheet'!BG306=\"\",\"\",'1. Ordersheet'!BG306)","v":"ZWO"},{"$f":"IF('1. Ordersheet'!BH306=\"\",\"\",'1. Ordersheet'!BH306)","v":""},{"$f":"IF('1. Ordersheet'!BI306=\"\",\"\",'1. Ordersheet'!BI306)","v":""},{"$f":"IF('1. Ordersheet'!BJ306=\"\",\"\",'1. Ordersheet'!BJ306)","v":""},{"$f":"IF('1. Ordersheet'!BK306=\"\",\"\",'1. Ordersheet'!BK306)","v":""},{"$f":"IF('1. Ordersheet'!BL306=\"\",\"\",'1. Ordersheet'!BL306)","v":""}]
[{"$f":"IF('1. Ordersheet'!F307=\"\",\"\",'1. Ordersheet'!F307)","v":""},{"$f":"IF('1. Ordersheet'!G307=\"\",\"\",'1. Ordersheet'!G307)","v":""},{"$f":"IF('1. Ordersheet'!H307=\"\",\"\",'1. Ordersheet'!H307)","v":""},{"$f":"IF('1. Ordersheet'!I307=\"\",\"\",'1. Ordersheet'!I307)","v":""},{"$f":"IF('1. Ordersheet'!J307=\"\",\"\",'1. Ordersheet'!J307)","v":""},{"$f":"IF('1. Ordersheet'!K307=\"\",\"\",'1. Ordersheet'!K307)","v":""},{"$f":"IF('1. Ordersheet'!L307=\"\",\"\",'1. Ordersheet'!L307)","v":""},{"$f":"IF('1. Ordersheet'!M307=\"\",\"\",'1. Ordersheet'!M307)","v":""},{"$f":"IF('1. Ordersheet'!N307=\"\",\"\",'1. Ordersheet'!N307)","v":""},{"$f":"IF('1. Ordersheet'!O307=\"\",\"\",'1. Ordersheet'!O307)","v":{"$error":"#N/A"}},{"$f":"IF('1. Ordersheet'!P307=\"\",\"\",'1. Ordersheet'!P307)","v":{"$error":"#N/A"}},{"$f":"IF('1. Ordersheet'!Q307=\"\",\"\",'1. Ordersheet'!Q307)","v":""},{"$f":"IF('1. Ordersheet'!R307=\"\",\"\",'1. Ordersheet'!R307)","v":""},{"$f":"IF('1. Ordersheet'!S307=\"\",\"\",'1. Ordersheet'!S307)","v":""},{"$f":"IF('1. Ordersheet'!V307=\"\",\"\",'1. Ordersheet'!V307)","v":""},{"$f":"IF('1. Ordersheet'!W307=\"\",\"\",'1. Ordersheet'!W307)","v":""},{"$f":"IF('1. Ordersheet'!X307=\"\",\"\",'1. Ordersheet'!X307)","v":""},{"$f":"IF('1. Ordersheet'!Y307=\"\",\"\",'1. Ordersheet'!Y307)","v":""},{"$f":"IF('1. Ordersheet'!Z307=\"\",\"\",'1. Ordersheet'!Z307)","v":""},{"$f":"IF('1. Ordersheet'!AA307=\"\",\"\",'1. Ordersheet'!AA307)","v":""},null,{"$f":"IF('1. Ordersheet'!AS307=\"\",\"\",'1. Ordersheet'!AS307)","v":""},{"$f":"IF('1. Ordersheet'!AT307=\"\",\"\",'1. Ordersheet'!AT307)","v":""},null,null,null,null,null,null,null,{"$f":"IF('1. Ordersheet'!AX307=\"\",\"\",'1. Ordersheet'!AX307)","v":""},{"$f":"IF('1. Ordersheet'!AY307=\"\",\"\",'1. Ordersheet'!AY307)","v":""},{"$f":"IF('1. Ordersheet'!AZ307=\"\",\"\",'1. Ordersheet'!AZ307)","v":""},{"$f":"IF('1. Ordersheet'!BA307=\"\",\"\",'1. Ordersheet'!BA307)","v":""},{"$f":"IF('1. Ordersheet'!BC307=\"\",\"\",'1. Ordersheet'!BC307)","v":""},{"$f":"IF('1. Ordersheet'!BD307=\"\",\"\",'1. Ordersheet'!BD307)","v":""},{"$f":"IF('1. Ordersheet'!BE307=\"\",\"\",'1. Ordersheet'!BE307)","v":""},{"$f":"IF('1. Ordersheet'!BF307=\"\",\"\",'1. Ordersheet'!BF307)","v":""},{"$f":"IF('1. Ordersheet'!BG307=\"\",\"\",'1. Ordersheet'!BG307)","v":"ZWO"},{"$f":"IF('1. Ordersheet'!BH307=\"\",\"\",'1. Ordersheet'!BH307)","v":""},{"$f":"IF('1. Ordersheet'!BI307=\"\",\"\",'1. Ordersheet'!BI307)","v":""},{"$f":"IF('1. Ordersheet'!BJ307=\"\",\"\",'1. Ordersheet'!BJ307)","v":""},{"$f":"IF('1. Ordersheet'!BK307=\"\",\"\",'1. Ordersheet'!BK307)","v":""},{"$f":"IF('1. Ordersheet'!BL307=\"\",\"\",'1. Ordersheet'!BL307)","v":""}]
[{"$f":"IF('1. Ordersheet'!F308=\"\",\"\",'1. Ordersheet'!F308)","v":""},{"$f":"IF('1. Ordersheet'!G308=\"\",\"\",'1. Ordersheet'!G308)","v":""},{"$f":"IF('1. Ordersheet'!H308=\"\",\"\",'1. Ordersheet'!H308)","v":""},{"$f":"IF('1. Ordersheet'!I308=\"\",\"\",'1. Ordersheet'!I308)","v":""},{"$f":"IF('1. Ordersheet'!J308=\"\",\"\",'1. Ordersheet'!J308)","v":""},{"$f":"IF('1. Ordersheet'!K308=\"\",\"\",'1. Ordersheet'!K308)","v":""},{"$f":"IF('1. Ordersheet'!L308=\"\",\"\",'1. Ordersheet'!L308)","v":""},{"$f":"IF('1. Ordersheet'!M308=\"\",\"\",'1. Ordersheet'!M308)","v":""},{"$f":"IF('1. Ordersheet'!N308=\"\",\"\",'1. Ordersheet'!N308)","v":""},{"$f":"IF('1. Ordersheet'!O308=\"\",\"\",'1. Ordersheet'!O308)","v":{"$error":"#N/A"}},{"$f":"IF('1. Ordersheet'!P308=\"\",\"\",'1. Ordersheet'!P308)","v":{"$error":"#N/A"}},{"$f":"IF('1. Ordersheet'!Q308=\"\",\"\",'1. Ordersheet'!Q308)","v":""},{"$f":"IF('1. Ordersheet'!R308=\"\",\"\",'1. Ordersheet'!R308)","v":""},{"$f":"IF('1. Ordersheet'!S308=\"\",\"\",'1. Ordersheet'!S308)","v":""},{"$f":"IF('1. Ordersheet'!V308=\"\",\"\",'1. Ordersheet'!V308)","v":""},{"$f":"IF('1. Ordersheet'!W308=\"\",\"\",'1. Ordersheet'!W308)","v":""},{"$f":"IF('1. Ordersheet'!X308=\"\",\"\",'1. Ordersheet'!X308)","v":""},{"$f":"IF('1. Ordersheet'!Y308=\"\",\"\",'1. Ordersheet'!Y308)","v":""},{"$f":"IF('1. Ordersheet'!Z308=\"\",\"\",'1. Ordersheet'!Z308)","v":""},{"$f":"IF('1. Ordersheet'!AA308=\"\",\"\",'1. Ordersheet'!AA308)","v":""},null,{"$f":"IF('1. Ordersheet'!AS308=\"\",\"\",'1. Ordersheet'!AS308)","v":""},{"$f":"IF('1. Ordersheet'!AT308=\"\",\"\",'1. Ordersheet'!AT308)","v":""},null,null,null,null,null,null,null,{"$f":"IF('1. Ordersheet'!AX308=\"\",\"\",'1. Ordersheet'!AX308)","v":""},{"$f":"IF('1. Ordersheet'!AY308=\"\",\"\",'1. Ordersheet'!AY308)","v":""},{"$f":"IF('1. Ordersheet'!AZ308=\"\",\"\",'1. Ordersheet'!AZ308)","v":""},{"$f":"IF('1. Ordersheet'!BA308=\"\",\"\",'1. Ordersheet'!BA308)","v":""},{"$f":"IF('1. Ordersheet'!BC308=\"\",\"\",'1. Ordersheet'!BC308)","v":""},{"$f":"IF('1. Ordersheet'!BD308=\"\",\"\",'1. Ordersheet'!BD308)","v":""},{"$f":"IF('1. Ordersheet'!BE308=\"\",\"\",'1. Ordersheet'!BE308)","v":""},{"$f":"IF('1. Ordersheet'!BF308=\"\",\"\",'1. Ordersheet'!BF308)","v":""},{"$f":"IF('1. Ordersheet'!BG308=\"\",\"\",'1. Ordersheet'!BG308)","v":"ZWO"},{"$f":"IF('1. Ordersheet'!BH308=\"\",\"\",'1. Ordersheet'!BH308)","v":""},{"$f":"IF('1. Ordersheet'!BI308=\"\",\"\",'1. Ordersheet'!BI308)","v":""},{"$f":"IF('1. Ordersheet'!BJ308=\"\",\"\",'1. Ordersheet'!BJ308)","v":""},{"$f":"IF('1. Ordersheet'!BK308=\"\",\"\",'1. Ordersheet'!BK308)","v":""},{"$f":"IF('1. Ordersheet'!BL308=\"\",\"\",'1. Ordersheet'!BL308)","v":""}]
[{"$f":"IF('1. Ordersheet'!F309=\"\",\"\",'1. Ordersheet'!F309)","v":""},{"$f":"IF('1. Ordersheet'!G309=\"\",\"\",'1. Ordersheet'!G309)","v":""},{"$f":"IF('1. Ordersheet'!H309=\"\",\"\",'1. Ordersheet'!H309)","v":""},{"$f":"IF('1. Ordersheet'!I309=\"\",\"\",'1. Ordersheet'!I309)","v":""},{"$f":"IF('1. Ordersheet'!J309=\"\",\"\",'1. Ordersheet'!J309)","v":""},{"$f":"IF('1. Ordersheet'!K309=\"\",\"\",'1. Ordersheet'!K309)","v":""},{"$f":"IF('1. Ordersheet'!L309=\"\",\"\",'1. Ordersheet'!L309)","v":""},{"$f":"IF('1. Ordersheet'!M309=\"\",\"\",'1. Ordersheet'!M309)","v":""},{"$f":"IF('1. Ordersheet'!N309=\"\",\"\",'1. Ordersheet'!N309)","v":""},{"$f":"IF('1. Ordersheet'!O309=\"\",\"\",'1. Ordersheet'!O309)","v":{"$error":"#N/A"}},{"$f":"IF('1. Ordersheet'!P309=\"\",\"\",'1. Ordersheet'!P309)","v":{"$error":"#N/A"}},{"$f":"IF('1. Ordersheet'!Q309=\"\",\"\",'1. Ordersheet'!Q309)","v":""},{"$f":"IF('1. Ordersheet'!R309=\"\",\"\",'1. Ordersheet'!R309)","v":""},{"$f":"IF('1. Ordersheet'!S309=\"\",\"\",'1. Ordersheet'!S309)","v":""},{"$f":"IF('1. Ordersheet'!V309=\"\",\"\",'1. Ordersheet'!V309)","v":""},{"$f":"IF('1. Ordersheet'!W309=\"\",\"\",'1. Ordersheet'!W309)","v":""},{"$f":"IF('1. Ordersheet'!X309=\"\",\"\",'1. Ordersheet'!X309)","v":""},{"$f":"IF('1. Ordersheet'!Y309=\"\",\"\",'1. Ordersheet'!Y309)","v":""},{"$f":"IF('1. Ordersheet'!Z309=\"\",\"\",'1. Ordersheet'!Z309)","v":""},{"$f":"IF('1. Ordersheet'!AA309=\"\",\"\",'1. Ordersheet'!AA309)","v":""},null,{"$f":"IF('1. Ordersheet'!AS309=\"\",\"\",'1. Ordersheet'!AS309)","v":""},{"$f":"IF('1. Ordersheet'!AT309=\"\",\"\",'1. Ordersheet'!AT309)","v":""},null,null,null,null,null,null,null,{"$f":"IF('1. Ordersheet'!AX309=\"\",\"\",'1. Ordersheet'!AX309)","v":""},{"$f":"IF('1. Ordersheet'!AY309=\"\",\"\",'1. Ordersheet'!AY309)","v":""},{"$f":"IF('1. Ordersheet'!AZ309=\"\",\"\",'1. Ordersheet'!AZ309)","v":""},{"$f":"IF('1. Ordersheet'!BA309=\"\",\"\",'1. Ordersheet'!BA309)","v":""},{"$f":"IF('1. Ordersheet'!BC309=\"\",\"\",'1. Ordersheet'!BC309)","v":""},{"$f":"IF('1. Ordersheet'!BD309=\"\",\"\",'1. Ordersheet'!BD309)","v":""},{"$f":"IF('1. Ordersheet'!BE309=\"\",\"\",'1. Ordersheet'!BE309)","v":""},{"$f":"IF('1. Ordersheet'!BF309=\"\",\"\",'1. Ordersheet'!BF309)","v":""},{"$f":"IF('1. Ordersheet'!BG309=\"\",\"\",'1. Ordersheet'!BG309)","v":"ZWO"},{"$f":"IF('1. Ordersheet'!BH309=\"\",\"\",'1. Ordersheet'!BH309)","v":""},{"$f":"IF('1. Ordersheet'!BI309=\"\",\"\",'1. Ordersheet'!BI309)","v":""},{"$f":"IF('1. Ordersheet'!BJ309=\"\",\"\",'1. Ordersheet'!BJ309)","v":""},{"$f":"IF('1. Ordersheet'!BK309=\"\",\"\",'1. Ordersheet'!BK309)","v":""},{"$f":"IF('1. Ordersheet'!BL309=\"\",\"\",'1. Ordersheet'!BL309)","v":""}]
[{"$f":"IF('1. Ordersheet'!F310=\"\",\"\",'1. Ordersheet'!F310)","v":""},{"$f":"IF('1. Ordersheet'!G310=\"\",\"\",'1. Ordersheet'!G310)","v":""},{"$f":"IF('1. Ordersheet'!H310=\"\",\"\",'1. Ordersheet'!H310)","v":""},{"$f":"IF('1. Ordersheet'!I310=\"\",\"\",'1. Ordersheet'!I310)","v":""},{"$f":"IF('1. Ordersheet'!J310=\"\",\"\",'1. Ordersheet'!J310)","v":""},{"$f":"IF('1. Ordersheet'!K310=\"\",\"\",'1. Ordersheet'!K310)","v":""},{"$f":"IF('1. Ordersheet'!L310=\"\",\"\",'1. Ordersheet'!L310)","v":""},{"$f":"IF('1. Ordersheet'!M310=\"\",\"\",'1. Ordersheet'!M310)","v":""},{"$f":"IF('1. Ordersheet'!N310=\"\",\"\",'1. Ordersheet'!N310)","v":""},{"$f":"IF('1. Ordersheet'!O310=\"\",\"\",'1. Ordersheet'!O310)","v":{"$error":"#N/A"}},{"$f":"IF('1. Ordersheet'!P310=\"\",\"\",'1. Ordersheet'!P310)","v":{"$error":"#N/A"}},{"$f":"IF('1. Ordersheet'!Q310=\"\",\"\",'1. Ordersheet'!Q310)","v":""},{"$f":"IF('1. Ordersheet'!R310=\"\",\"\",'1. Ordersheet'!R310)","v":""},{"$f":"IF('1. Ordersheet'!S310=\"\",\"\",'1. Ordersheet'!S310)","v":""},{"$f":"IF('1. Ordersheet'!V310=\"\",\"\",'1. Ordersheet'!V310)","v":""},{"$f":"IF('1. Ordersheet'!W310=\"\",\"\",'1. Ordersheet'!W310)","v":""},{"$f":"IF('1. Ordersheet'!X310=\"\",\"\",'1. Ordersheet'!X310)","v":""},{"$f":"IF('1. Ordersheet'!Y310=\"\",\"\",'1. Ordersheet'!Y310)","v":""},{"$f":"IF('1. Ordersheet'!Z310=\"\",\"\",'1. Ordersheet'!Z310)","v":""},{"$f":"IF('1. Ordersheet'!AA310=\"\",\"\",'1. Ordersheet'!AA310)","v":""},null,{"$f":"IF('1. Ordersheet'!AS310=\"\",\"\",'1. Ordersheet'!AS310)","v":""},{"$f":"IF('1. Ordersheet'!AT310=\"\",\"\",'1. Ordersheet'!AT310)","v":""},null,null,null,null,null,null,null,{"$f":"IF('1. Ordersheet'!AX310=\"\",\"\",'1. Ordersheet'!AX310)","v":""},{"$f":"IF('1. Ordersheet'!AY310=\"\",\"\",'1. Ordersheet'!AY310)","v":""},{"$f":"IF('1. Ordersheet'!AZ310=\"\",\"\",'1. Ordersheet'!AZ310)","v":""},{"$f":"IF('1. Ordersheet'!BA310=\"\",\"\",'1. Ordersheet'!BA310)","v":""},{"$f":"IF('1. Ordersheet'!BC310=\"\",\"\",'1. Ordersheet'!BC310)","v":""},{"$f":"IF('1. Ordersheet'!BD310=\"\",\"\",'1. Ordersheet'!BD310)","v":""},{"$f":"IF('1. Ordersheet'!BE310=\"\",\"\",'1. Ordersheet'!BE310)","v":""},{"$f":"IF('1. Ordersheet'!BF310=\"\",\"\",'1. Ordersheet'!BF310)","v":""},{"$f":"IF('1. Ordersheet'!BG310=\"\",\"\",'1. Ordersheet'!BG310)","v":"ZWO"},{"$f":"IF('1. Ordersheet'!BH310=\"\",\"\",'1. Ordersheet'!BH310)","v":""},{"$f":"IF('1. Ordersheet'!BI310=\"\",\"\",'1. Ordersheet'!BI310)","v":""},{"$f":"IF('1. Ordersheet'!BJ310=\"\",\"\",'1. Ordersheet'!BJ310)","v":""},{"$f":"IF('1. Ordersheet'!BK310=\"\",\"\",'1. Ordersheet'!BK310)","v":""},{"$f":"IF('1. Ordersheet'!BL310=\"\",\"\",'1. Ordersheet'!BL310)","v":""}]
[{"$f":"IF('1. Ordersheet'!F311=\"\",\"\",'1. Ordersheet'!F311)","v":""},{"$f":"IF('1. Ordersheet'!G311=\"\",\"\",'1. Ordersheet'!G311)","v":""},{"$f":"IF('1. Ordersheet'!H311=\"\",\"\",'1. Ordersheet'!H311)","v":""},{"$f":"IF('1. Ordersheet'!I311=\"\",\"\",'1. Ordersheet'!I311)","v":""},{"$f":"IF('1. Ordersheet'!J311=\"\",\"\",'1. Ordersheet'!J311)","v":""},{"$f":"IF('1. Ordersheet'!K311=\"\",\"\",'1. Ordersheet'!K311)","v":""},{"$f":"IF('1. Ordersheet'!L311=\"\",\"\",'1. Ordersheet'!L311)","v":""},{"$f":"IF('1. Ordersheet'!M311=\"\",\"\",'1. Ordersheet'!M311)","v":""},{"$f":"IF('1. Ordersheet'!N311=\"\",\"\",'1. Ordersheet'!N311)","v":""},{"$f":"IF('1. Ordersheet'!O311=\"\",\"\",'1. Ordersheet'!O311)","v":{"$error":"#N/A"}},{"$f":"IF('1. Ordersheet'!P311=\"\",\"\",'1. Ordersheet'!P311)","v":{"$error":"#N/A"}},{"$f":"IF('1. Ordersheet'!Q311=\"\",\"\",'1. Ordersheet'!Q311)","v":""},{"$f":"IF('1. Ordersheet'!R311=\"\",\"\",'1. Ordersheet'!R311)","v":""},{"$f":"IF('1. Ordersheet'!S311=\"\",\"\",'1. Ordersheet'!S311)","v":""},{"$f":"IF('1. Ordersheet'!V311=\"\",\"\",'1. Ordersheet'!V311)","v":""},{"$f":"IF('1. Ordersheet'!W311=\"\",\"\",'1. Ordersheet'!W311)","v":""},{"$f":"IF('1. Ordersheet'!X311=\"\",\"\",'1. Ordersheet'!X311)","v":""},{"$f":"IF('1. Ordersheet'!Y311=\"\",\"\",'1. Ordersheet'!Y311)","v":""},{"$f":"IF('1. Ordersheet'!Z311=\"\",\"\",'1. Ordersheet'!Z311)","v":""},{"$f":"IF('1. Ordersheet'!AA311=\"\",\"\",'1. Ordersheet'!AA311)","v":""},null,{"$f":"IF('1. Ordersheet'!AS311=\"\",\"\",'1. Ordersheet'!AS311)","v":""},{"$f":"IF('1. Ordersheet'!AT311=\"\",\"\",'1. Ordersheet'!AT311)","v":""},null,null,null,null,null,null,null,{"$f":"IF('1. Ordersheet'!AX311=\"\",\"\",'1. Ordersheet'!AX311)","v":""},{"$f":"IF('1. Ordersheet'!AY311=\"\",\"\",'1. Ordersheet'!AY311)","v":""},{"$f":"IF('1. Ordersheet'!AZ311=\"\",\"\",'1. Ordersheet'!AZ311)","v":""},{"$f":"IF('1. Ordersheet'!BA311=\"\",\"\",'1. Ordersheet'!BA311)","v":""},{"$f":"IF('1. Ordersheet'!BC311=\"\",\"\",'1. Ordersheet'!BC311)","v":""},{"$f":"IF('1. Ordersheet'!BD311=\"\",\"\",'1. Ordersheet'!BD311)","v":""},{"$f":"IF('1. Ordersheet'!BE311=\"\",\"\",'1. Ordersheet'!BE311)","v":""},{"$f":"IF('1. Ordersheet'!BF311=\"\",\"\",'1. Ordersheet'!BF311)","v":""},{"$f":"IF('1. Ordersheet'!BG311=\"\",\"\",'1. Ordersheet'!BG311)","v":"ZWO"},{"$f":"IF('1. Ordersheet'!BH311=\"\",\"\",'1. Ordersheet'!BH311)","v":""},{"$f":"IF('1. Ordersheet'!BI311=\"\",\"\",'1. Ordersheet'!BI311)","v":""},{"$f":"IF('1. Ordersheet'!BJ311=\"\",\"\",'1. Ordersheet'!BJ311)","v":""},{"$f":"IF('1. Ordersheet'!BK311=\"\",\"\",'1. Ordersheet'!BK311)","v":""},{"$f":"IF('1. Ordersheet'!BL311=\"\",\"\",'1. Ordersheet'!BL311)","v":""}]
[{"$f":"IF('1. Ordersheet'!F312=\"\",\"\",'1. Ordersheet'!F312)","v":""},{"$f":"IF('1. Ordersheet'!G312=\"\",\"\",'1. Ordersheet'!G312)","v":""},{"$f":"IF('1. Ordersheet'!H312=\"\",\"\",'1. Ordersheet'!H312)","v":""},{"$f":"IF('1. Ordersheet'!I312=\"\",\"\",'1. Ordersheet'!I312)","v":""},{"$f":"IF('1. Ordersheet'!J312=\"\",\"\",'1. Ordersheet'!J312)","v":""},{"$f":"IF('1. Ordersheet'!K312=\"\",\"\",'1. Ordersheet'!K312)","v":""},{"$f":"IF('1. Ordersheet'!L312=\"\",\"\",'1. Ordersheet'!L312)","v":""},{"$f":"IF('1. Ordersheet'!M312=\"\",\"\",'1. Ordersheet'!M312)","v":""},{"$f":"IF('1. Ordersheet'!N312=\"\",\"\",'1. Ordersheet'!N312)","v":""},{"$f":"IF('1. Ordersheet'!O312=\"\",\"\",'1. Ordersheet'!O312)","v":{"$error":"#N/A"}},{"$f":"IF('1. Ordersheet'!P312=\"\",\"\",'1. Ordersheet'!P312)","v":{"$error":"#N/A"}},{"$f":"IF('1. Ordersheet'!Q312=\"\",\"\",'1. Ordersheet'!Q312)","v":""},{"$f":"IF('1. Ordersheet'!R312=\"\",\"\",'1. Ordersheet'!R312)","v":""},{"$f":"IF('1. Ordersheet'!S312=\"\",\"\",'1. Ordersheet'!S312)","v":""},{"$f":"IF('1. Ordersheet'!V312=\"\",\"\",'1. Ordersheet'!V312)","v":""},{"$f":"IF('1. Ordersheet'!W312=\"\",\"\",'1. Ordersheet'!W312)","v":""},{"$f":"IF('1. Ordersheet'!X312=\"\",\"\",'1. Ordersheet'!X312)","v":""},{"$f":"IF('1. Ordersheet'!Y312=\"\",\"\",'1. Ordersheet'!Y312)","v":""},{"$f":"IF('1. Ordersheet'!Z312=\"\",\"\",'1. Ordersheet'!Z312)","v":""},{"$f":"IF('1. Ordersheet'!AA312=\"\",\"\",'1. Ordersheet'!AA312)","v":""},null,{"$f":"IF('1. Ordersheet'!AS312=\"\",\"\",'1. Ordersheet'!AS312)","v":""},{"$f":"IF('1. Ordersheet'!AT312=\"\",\"\",'1. Ordersheet'!AT312)","v":""},null,null,null,null,null,null,null,{"$f":"IF('1. Ordersheet'!AX312=\"\",\"\",'1. Ordersheet'!AX312)","v":""},{"$f":"IF('1. Ordersheet'!AY312=\"\",\"\",'1. Ordersheet'!AY312)","v":""},{"$f":"IF('1. Ordersheet'!AZ312=\"\",\"\",'1. Ordersheet'!AZ312)","v":""},{"$f":"IF('1. Ordersheet'!BA312=\"\",\"\",'1. Ordersheet'!BA312)","v":""},{"$f":"IF('1. Ordersheet'!BC312=\"\",\"\",'1. Ordersheet'!BC312)","v":""},{"$f":"IF('1. Ordersheet'!BD312=\"\",\"\",'1. Ordersheet'!BD312)","v":""},{"$f":"IF('1. Ordersheet'!BE312=\"\",\"\",'1. Ordersheet'!BE312)","v":""},{"$f":"IF('1. Ordersheet'!BF312=\"\",\"\",'1. Ordersheet'!BF312)","v":""},{"$f":"IF('1. Ordersheet'!BG312=\"\",\"\",'1. Ordersheet'!BG312)","v":"ZWO"},{"$f":"IF('1. Ordersheet'!BH312=\"\",\"\",'1. Ordersheet'!BH312)","v":""},{"$f":"IF('1. Ordersheet'!BI312=\"\",\"\",'1. Ordersheet'!BI312)","v":""},{"$f":"IF('1. Ordersheet'!BJ312=\"\",\"\",'1. Ordersheet'!BJ312)","v":""},{"$f":"IF('1. Ordersheet'!BK312=\"\",\"\",'1. Ordersheet'!BK312)","v":""},{"$f":"IF('1. Ordersheet'!BL312=\"\",\"\",'1. Ordersheet'!BL312)","v":""}]
[{"$f":"IF('1. Ordersheet'!F313=\"\",\"\",'1. Ordersheet'!F313)","v":""},{"$f":"IF('1. Ordersheet'!G313=\"\",\"\",'1. Ordersheet'!G313)","v":""},{"$f":"IF('1. Ordersheet'!H313=\"\",\"\",'1. Ordersheet'!H313)","v":""},{"$f":"IF('1. Ordersheet'!I313=\"\",\"\",'1. Ordersheet'!I313)","v":""},{"$f":"IF('1. Ordersheet'!J313=\"\",\"\",'1. Ordersheet'!J313)","v":""},{"$f":"IF('1. Ordersheet'!K313=\"\",\"\",'1. Ordersheet'!K313)","v":""},{"$f":"IF('1. Ordersheet'!L313=\"\",\"\",'1. Ordersheet'!L313)","v":""},{"$f":"IF('1. Ordersheet'!M313=\"\",\"\",'1. Ordersheet'!M313)","v":""},{"$f":"IF('1. Ordersheet'!N313=\"\",\"\",'1. Ordersheet'!N313)","v":""},{"$f":"IF('1. Ordersheet'!O313=\"\",\"\",'1. Ordersheet'!O313)","v":{"$error":"#N/A"}},{"$f":"IF('1. Ordersheet'!P313=\"\",\"\",'1. Ordersheet'!P313)","v":{"$error":"#N/A"}},{"$f":"IF('1. Ordersheet'!Q313=\"\",\"\",'1. Ordersheet'!Q313)","v":""},{"$f":"IF('1. Ordersheet'!R313=\"\",\"\",'1. Ordersheet'!R313)","v":""},{"$f":"IF('1. Ordersheet'!S313=\"\",\"\",'1. Ordersheet'!S313)","v":""},{"$f":"IF('1. Ordersheet'!V313=\"\",\"\",'1. Ordersheet'!V313)","v":""},{"$f":"IF('1. Ordersheet'!W313=\"\",\"\",'1. Ordersheet'!W313)","v":""},{"$f":"IF('1. Ordersheet'!X313=\"\",\"\",'1. Ordersheet'!X313)","v":""},{"$f":"IF('1. Ordersheet'!Y313=\"\",\"\",'1. Ordersheet'!Y313)","v":""},{"$f":"IF('1. Ordersheet'!Z313=\"\",\"\",'1. Ordersheet'!Z313)","v":""},{"$f":"IF('1. Ordersheet'!AA313=\"\",\"\",'1. Ordersheet'!AA313)","v":""},null,{"$f":"IF('1. Ordersheet'!AS313=\"\",\"\",'1. Ordersheet'!AS313)","v":""},{"$f":"IF('1. Ordersheet'!AT313=\"\",\"\",'1. Ordersheet'!AT313)","v":""},null,null,null,null,null,null,null,{"$f":"IF('1. Ordersheet'!AX313=\"\",\"\",'1. Ordersheet'!AX313)","v":""},{"$f":"IF('1. Ordersheet'!AY313=\"\",\"\",'1. Ordersheet'!AY313)","v":""},{"$f":"IF('1. Ordersheet'!AZ313=\"\",\"\",'1. Ordersheet'!AZ313)","v":""},{"$f":"IF('1. Ordersheet'!BA313=\"\",\"\",'1. Ordersheet'!BA313)","v":""},{"$f":"IF('1. Ordersheet'!BC313=\"\",\"\",'1. Ordersheet'!BC313)","v":""},{"$f":"IF('1. Ordersheet'!BD313=\"\",\"\",'1. Ordersheet'!BD313)","v":""},{"$f":"IF('1. Ordersheet'!BE313=\"\",\"\",'1. Ordersheet'!BE313)","v":""},{"$f":"IF('1. Ordersheet'!BF313=\"\",\"\",'1. Ordersheet'!BF313)","v":""},{"$f":"IF('1. Ordersheet'!BG313=\"\",\"\",'1. Ordersheet'!BG313)","v":"ZWO"},{"$f":"IF('1. Ordersheet'!BH313=\"\",\"\",'1. Ordersheet'!BH313)","v":""},{"$f":"IF('1. Ordersheet'!BI313=\"\",\"\",'1. Ordersheet'!BI313)","v":""},{"$f":"IF('1. Ordersheet'!BJ313=\"\",\"\",'1. Ordersheet'!BJ313)","v":""},{"$f":"IF('1. Ordersheet'!BK313=\"\",\"\",'1. Ordersheet'!BK313)","v":""},{"$f":"IF('1. Ordersheet'!BL313=\"\",\"\",'1. Ordersheet'!BL313)","v":""}]
[{"$f":"IF('1. Ordersheet'!F314=\"\",\"\",'1. Ordersheet'!F314)","v":""},{"$f":"IF('1. Ordersheet'!G314=\"\",\"\",'1. Ordersheet'!G314)","v":""},{"$f":"IF('1. Ordersheet'!H314=\"\",\"\",'1. Ordersheet'!H314)","v":""},{"$f":"IF('1. Ordersheet'!I314=\"\",\"\",'1. Ordersheet'!I314)","v":""},{"$f":"IF('1. Ordersheet'!J314=\"\",\"\",'1. Ordersheet'!J314)","v":""},{"$f":"IF('1. Ordersheet'!K314=\"\",\"\",'1. Ordersheet'!K314)","v":""},{"$f":"IF('1. Ordersheet'!L314=\"\",\"\",'1. Ordersheet'!L314)","v":""},{"$f":"IF('1. Ordersheet'!M314=\"\",\"\",'1. Ordersheet'!M314)","v":""},{"$f":"IF('1. Ordersheet'!N314=\"\",\"\",'1. Ordersheet'!N314)","v":""},{"$f":"IF('1. Ordersheet'!O314=\"\",\"\",'1. Ordersheet'!O314)","v":{"$error":"#N/A"}},{"$f":"IF('1. Ordersheet'!P314=\"\",\"\",'1. Ordersheet'!P314)","v":{"$error":"#N/A"}},{"$f":"IF('1. Ordersheet'!Q314=\"\",\"\",'1. Ordersheet'!Q314)","v":""},{"$f":"IF('1. Ordersheet'!R314=\"\",\"\",'1. Ordersheet'!R314)","v":""},{"$f":"IF('1. Ordersheet'!S314=\"\",\"\",'1. Ordersheet'!S314)","v":""},{"$f":"IF('1. Ordersheet'!V314=\"\",\"\",'1. Ordersheet'!V314)","v":""},{"$f":"IF('1. Ordersheet'!W314=\"\",\"\",'1. Ordersheet'!W314)","v":""},{"$f":"IF('1. Ordersheet'!X314=\"\",\"\",'1. Ordersheet'!X314)","v":""},{"$f":"IF('1. Ordersheet'!Y314=\"\",\"\",'1. Ordersheet'!Y314)","v":""},{"$f":"IF('1. Ordersheet'!Z314=\"\",\"\",'1. Ordersheet'!Z314)","v":""},{"$f":"IF('1. Ordersheet'!AA314=\"\",\"\",'1. Ordersheet'!AA314)","v":""},null,{"$f":"IF('1. Ordersheet'!AS314=\"\",\"\",'1. Ordersheet'!AS314)","v":""},{"$f":"IF('1. Ordersheet'!AT314=\"\",\"\",'1. Ordersheet'!AT314)","v":""},null,null,null,null,null,null,null,{"$f":"IF('1. Ordersheet'!AX314=\"\",\"\",'1. Ordersheet'!AX314)","v":""},{"$f":"IF('1. Ordersheet'!AY314=\"\",\"\",'1. Ordersheet'!AY314)","v":""},{"$f":"IF('1. Ordersheet'!AZ314=\"\",\"\",'1. Ordersheet'!AZ314)","v":""},{"$f":"IF('1. Ordersheet'!BA314=\"\",\"\",'1. Ordersheet'!BA314)","v":""},{"$f":"IF('1. Ordersheet'!BC314=\"\",\"\",'1. Ordersheet'!BC314)","v":""},{"$f":"IF('1. Ordersheet'!BD314=\"\",\"\",'1. Ordersheet'!BD314)","v":""},{"$f":"IF('1. Ordersheet'!BE314=\"\",\"\",'1. Ordersheet'!BE314)","v":""},{"$f":"IF('1. Ordersheet'!BF314=\"\",\"\",'1. Ordersheet'!BF314)","v":""},{"$f":"IF('1. Ordersheet'!BG314=\"\",\"\",'1. Ordersheet'!BG314)","v":"ZWO"},{"$f":"IF('1. Ordersheet'!BH314=\"\",\"\",'1. Ordersheet'!BH314)","v":""},{"$f":"IF('1. Ordersheet'!BI314=\"\",\"\",'1. Ordersheet'!BI314)","v":""},{"$f":"IF('1. Ordersheet'!BJ314=\"\",\"\",'1. Ordersheet'!BJ314)","v":""},{"$f":"IF('1. Ordersheet'!BK314=\"\",\"\",'1. Ordersheet'!BK314)","v":""},{"$f":"IF('1. Ordersheet'!BL314=\"\",\"\",'1. Ordersheet'!BL314)","v":""}]
[{"$f":"IF('1. Ordersheet'!F315=\"\",\"\",'1. Ordersheet'!F315)","v":""},{"$f":"IF('1. Ordersheet'!G315=\"\",\"\",'1. Ordersheet'!G315)","v":""},{"$f":"IF('1. Ordersheet'!H315=\"\",\"\",'1. Ordersheet'!H315)","v":""},{"$f":"IF('1. Ordersheet'!I315=\"\",\"\",'1. Ordersheet'!I315)","v":""},{"$f":"IF('1. Ordersheet'!J315=\"\",\"\",'1. Ordersheet'!J315)","v":""},{"$f":"IF('1. Ordersheet'!K315=\"\",\"\",'1. Ordersheet'!K315)","v":""},{"$f":"IF('1. Ordersheet'!L315=\"\",\"\",'1. Ordersheet'!L315)","v":""},{"$f":"IF('1. Ordersheet'!M315=\"\",\"\",'1. Ordersheet'!M315)","v":""},{"$f":"IF('1. Ordersheet'!N315=\"\",\"\",'1. Ordersheet'!N315)","v":""},{"$f":"IF('1. Ordersheet'!O315=\"\",\"\",'1. Ordersheet'!O315)","v":{"$error":"#N/A"}},{"$f":"IF('1. Ordersheet'!P315=\"\",\"\",'1. Ordersheet'!P315)","v":{"$error":"#N/A"}},{"$f":"IF('1. Ordersheet'!Q315=\"\",\"\",'1. Ordersheet'!Q315)","v":""},{"$f":"IF('1. Ordersheet'!R315=\"\",\"\",'1. Ordersheet'!R315)","v":""},{"$f":"IF('1. Ordersheet'!S315=\"\",\"\",'1. Ordersheet'!S315)","v":""},{"$f":"IF('1. Ordersheet'!V315=\"\",\"\",'1. Ordersheet'!V315)","v":""},{"$f":"IF('1. Ordersheet'!W315=\"\",\"\",'1. Ordersheet'!W315)","v":""},{"$f":"IF('1. Ordersheet'!X315=\"\",\"\",'1. Ordersheet'!X315)","v":""},{"$f":"IF('1. Ordersheet'!Y315=\"\",\"\",'1. Ordersheet'!Y315)","v":""},{"$f":"IF('1. Ordersheet'!Z315=\"\",\"\",'1. Ordersheet'!Z315)","v":""},{"$f":"IF('1. Ordersheet'!AA315=\"\",\"\",'1. Ordersheet'!AA315)","v":""},null,{"$f":"IF('1. Ordersheet'!AS315=\"\",\"\",'1. Ordersheet'!AS315)","v":""},{"$f":"IF('1. Ordersheet'!AT315=\"\",\"\",'1. Ordersheet'!AT315)","v":""},null,null,null,null,null,null,null,{"$f":"IF('1. Ordersheet'!AX315=\"\",\"\",'1. Ordersheet'!AX315)","v":""},{"$f":"IF('1. Ordersheet'!AY315=\"\",\"\",'1. Ordersheet'!AY315)","v":""},{"$f":"IF('1. Ordersheet'!AZ315=\"\",\"\",'1. Ordersheet'!AZ315)","v":""},{"$f":"IF('1. Ordersheet'!BA315=\"\",\"\",'1. Ordersheet'!BA315)","v":""},{"$f":"IF('1. Ordersheet'!BC315=\"\",\"\",'1. Ordersheet'!BC315)","v":""},{"$f":"IF('1. Ordersheet'!BD315=\"\",\"\",'1. Ordersheet'!BD315)","v":""},{"$f":"IF('1. Ordersheet'!BE315=\"\",\"\",'1. Ordersheet'!BE315)","v":""},{"$f":"IF('1. Ordersheet'!BF315=\"\",\"\",'1. Ordersheet'!BF315)","v":""},{"$f":"IF('1. Ordersheet'!BG315=\"\",\"\",'1. Ordersheet'!BG315)","v":"ZWO"},{"$f":"IF('1. Ordersheet'!BH315=\"\",\"\",'1. Ordersheet'!BH315)","v":""},{"$f":"IF('1. Ordersheet'!BI315=\"\",\"\",'1. Ordersheet'!BI315)","v":""},{"$f":"IF('1. Ordersheet'!BJ315=\"\",\"\",'1. Ordersheet'!BJ315)","v":""},{"$f":"IF('1. Ordersheet'!BK315=\"\",\"\",'1. Ordersheet'!BK315)","v":""},{"$f":"IF('1. Ordersheet'!BL315=\"\",\"\",'1. Ordersheet'!BL315)","v":""}]
[{"$f":"IF('1. Ordersheet'!F316=\"\",\"\",'1. Ordersheet'!F316)","v":""},{"$f":"IF('1. Ordersheet'!G316=\"\",\"\",'1. Ordersheet'!G316)","v":""},{"$f":"IF('1. Ordersheet'!H316=\"\",\"\",'1. Ordersheet'!H316)","v":""},{"$f":"IF('1. Ordersheet'!I316=\"\",\"\",'1. Ordersheet'!I316)","v":""},{"$f":"IF('1. Ordersheet'!J316=\"\",\"\",'1. Ordersheet'!J316)","v":""},{"$f":"IF('1. Ordersheet'!K316=\"\",\"\",'1. Ordersheet'!K316)","v":""},{"$f":"IF('1. Ordersheet'!L316=\"\",\"\",'1. Ordersheet'!L316)","v":""},{"$f":"IF('1. Ordersheet'!M316=\"\",\"\",'1. Ordersheet'!M316)","v":""},{"$f":"IF('1. Ordersheet'!N316=\"\",\"\",'1. Ordersheet'!N316)","v":""},{"$f":"IF('1. Ordersheet'!O316=\"\",\"\",'1. Ordersheet'!O316)","v":{"$error":"#N/A"}},{"$f":"IF('1. Ordersheet'!P316=\"\",\"\",'1. Ordersheet'!P316)","v":{"$error":"#N/A"}},{"$f":"IF('1. Ordersheet'!Q316=\"\",\"\",'1. Ordersheet'!Q316)","v":""},{"$f":"IF('1. Ordersheet'!R316=\"\",\"\",'1. Ordersheet'!R316)","v":""},{"$f":"IF('1. Ordersheet'!S316=\"\",\"\",'1. Ordersheet'!S316)","v":""},{"$f":"IF('1. Ordersheet'!V316=\"\",\"\",'1. Ordersheet'!V316)","v":""},{"$f":"IF('1. Ordersheet'!W316=\"\",\"\",'1. Ordersheet'!W316)","v":""},{"$f":"IF('1. Ordersheet'!X316=\"\",\"\",'1. Ordersheet'!X316)","v":""},{"$f":"IF('1. Ordersheet'!Y316=\"\",\"\",'1. Ordersheet'!Y316)","v":""},{"$f":"IF('1. Ordersheet'!Z316=\"\",\"\",'1. Ordersheet'!Z316)","v":""},{"$f":"IF('1. Ordersheet'!AA316=\"\",\"\",'1. Ordersheet'!AA316)","v":""},null,{"$f":"IF('1. Ordersheet'!AS316=\"\",\"\",'1. Ordersheet'!AS316)","v":""},{"$f":"IF('1. Ordersheet'!AT316=\"\",\"\",'1. Ordersheet'!AT316)","v":""},null,null,null,null,null,null,null,{"$f":"IF('1. Ordersheet'!AX316=\"\",\"\",'1. Ordersheet'!AX316)","v":""},{"$f":"IF('1. Ordersheet'!AY316=\"\",\"\",'1. Ordersheet'!AY316)","v":""},{"$f":"IF('1. Ordersheet'!AZ316=\"\",\"\",'1. Ordersheet'!AZ316)","v":""},{"$f":"IF('1. Ordersheet'!BA316=\"\",\"\",'1. Ordersheet'!BA316)","v":""},{"$f":"IF('1. Ordersheet'!BC316=\"\",\"\",'1. Ordersheet'!BC316)","v":""},{"$f":"IF('1. Ordersheet'!BD316=\"\",\"\",'1. Ordersheet'!BD316)","v":""},{"$f":"IF('1. Ordersheet'!BE316=\"\",\"\",'1. Ordersheet'!BE316)","v":""},{"$f":"IF('1. Ordersheet'!BF316=\"\",\"\",'1. Ordersheet'!BF316)","v":""},{"$f":"IF('1. Ordersheet'!BG316=\"\",\"\",'1. Ordersheet'!BG316)","v":"ZWO"},{"$f":"IF('1. Ordersheet'!BH316=\"\",\"\",'1. Ordersheet'!BH316)","v":""},{"$f":"IF('1. Ordersheet'!BI316=\"\",\"\",'1. Ordersheet'!BI316)","v":""},{"$f":"IF('1. Ordersheet'!BJ316=\"\",\"\",'1. Ordersheet'!BJ316)","v":""},{"$f":"IF('1. Ordersheet'!BK316=\"\",\"\",'1. Ordersheet'!BK316)","v":""},{"$f":"IF('1. Ordersheet'!BL316=\"\",\"\",'1. Ordersheet'!BL316)","v":""}]
[{"$f":"IF('1. Ordersheet'!F317=\"\",\"\",'1. Ordersheet'!F317)","v":""},{"$f":"IF('1. Ordersheet'!G317=\"\",\"\",'1. Ordersheet'!G317)","v":""},{"$f":"IF('1. Ordersheet'!H317=\"\",\"\",'1. Ordersheet'!H317)","v":""},{"$f":"IF('1. Ordersheet'!I317=\"\",\"\",'1. Ordersheet'!I317)","v":""},{"$f":"IF('1. Ordersheet'!J317=\"\",\"\",'1. Ordersheet'!J317)","v":""},{"$f":"IF('1. Ordersheet'!K317=\"\",\"\",'1. Ordersheet'!K317)","v":""},{"$f":"IF('1. Ordersheet'!L317=\"\",\"\",'1. Ordersheet'!L317)","v":""},{"$f":"IF('1. Ordersheet'!M317=\"\",\"\",'1. Ordersheet'!M317)","v":""},{"$f":"IF('1. Ordersheet'!N317=\"\",\"\",'1. Ordersheet'!N317)","v":""},{"$f":"IF('1. Ordersheet'!O317=\"\",\"\",'1. Ordersheet'!O317)","v":{"$error":"#N/A"}},{"$f":"IF('1. Ordersheet'!P317=\"\",\"\",'1. Ordersheet'!P317)","v":{"$error":"#N/A"}},{"$f":"IF('1. Ordersheet'!Q317=\"\",\"\",'1. Ordersheet'!Q317)","v":""},{"$f":"IF('1. Ordersheet'!R317=\"\",\"\",'1. Ordersheet'!R317)","v":""},{"$f":"IF('1. Ordersheet'!S317=\"\",\"\",'1. Ordersheet'!S317)","v":""},{"$f":"IF('1. Ordersheet'!V317=\"\",\"\",'1. Ordersheet'!V317)","v":""},{"$f":"IF('1. Ordersheet'!W317=\"\",\"\",'1. Ordersheet'!W317)","v":""},{"$f":"IF('1. Ordersheet'!X317=\"\",\"\",'1. Ordersheet'!X317)","v":""},{"$f":"IF('1. Ordersheet'!Y317=\"\",\"\",'1. Ordersheet'!Y317)","v":""},{"$f":"IF('1. Ordersheet'!Z317=\"\",\"\",'1. Ordersheet'!Z317)","v":""},{"$f":"IF('1. Ordersheet'!AA317=\"\",\"\",'1. Ordersheet'!AA317)","v":""},null,{"$f":"IF('1. Ordersheet'!AS317=\"\",\"\",'1. Ordersheet'!AS317)","v":""},{"$f":"IF('1. Ordersheet'!AT317=\"\",\"\",'1. Ordersheet'!AT317)","v":""},null,null,null,null,null,null,null,{"$f":"IF('1. Ordersheet'!AX317=\"\",\"\",'1. Ordersheet'!AX317)","v":""},{"$f":"IF('1. Ordersheet'!AY317=\"\",\"\",'1. Ordersheet'!AY317)","v":""},{"$f":"IF('1. Ordersheet'!AZ317=\"\",\"\",'1. Ordersheet'!AZ317)","v":""},{"$f":"IF('1. Ordersheet'!BA317=\"\",\"\",'1. Ordersheet'!BA317)","v":""},{"$f":"IF('1. Ordersheet'!BC317=\"\",\"\",'1. Ordersheet'!BC317)","v":""},{"$f":"IF('1. Ordersheet'!BD317=\"\",\"\",'1. Ordersheet'!BD317)","v":""},{"$f":"IF('1. Ordersheet'!BE317=\"\",\"\",'1. Ordersheet'!BE317)","v":""},{"$f":"IF('1. Ordersheet'!BF317=\"\",\"\",'1. Ordersheet'!BF317)","v":""},{"$f":"IF('1. Ordersheet'!BG317=\"\",\"\",'1. Ordersheet'!BG317)","v":"ZWO"},{"$f":"IF('1. Ordersheet'!BH317=\"\",\"\",'1. Ordersheet'!BH317)","v":""},{"$f":"IF('1. Ordersheet'!BI317=\"\",\"\",'1. Ordersheet'!BI317)","v":""},{"$f":"IF('1. Ordersheet'!BJ317=\"\",\"\",'1. Ordersheet'!BJ317)","v":""},{"$f":"IF('1. Ordersheet'!BK317=\"\",\"\",'1. Ordersheet'!BK317)","v":""},{"$f":"IF('1. Ordersheet'!BL317=\"\",\"\",'1. Ordersheet'!BL317)","v":""}]
[{"$f":"IF('1. Ordersheet'!F318=\"\",\"\",'1. Ordersheet'!F318)","v":""},{"$f":"IF('1. Ordersheet'!G318=\"\",\"\",'1. Ordersheet'!G318)","v":""},{"$f":"IF('1. Ordersheet'!H318=\"\",\"\",'1. Ordersheet'!H318)","v":""},{"$f":"IF('1. Ordersheet'!I318=\"\",\"\",'1. Ordersheet'!I318)","v":""},{"$f":"IF('1. Ordersheet'!J318=\"\",\"\",'1. Ordersheet'!J318)","v":""},{"$f":"IF('1. Ordersheet'!K318=\"\",\"\",'1. Ordersheet'!K318)","v":""},{"$f":"IF('1. Ordersheet'!L318=\"\",\"\",'1. Ordersheet'!L318)","v":""},{"$f":"IF('1. Ordersheet'!M318=\"\",\"\",'1. Ordersheet'!M318)","v":""},{"$f":"IF('1. Ordersheet'!N318=\"\",\"\",'1. Ordersheet'!N318)","v":""},{"$f":"IF('1. Ordersheet'!O318=\"\",\"\",'1. Ordersheet'!O318)","v":{"$error":"#N/A"}},{"$f":"IF('1. Ordersheet'!P318=\"\",\"\",'1. Ordersheet'!P318)","v":{"$error":"#N/A"}},{"$f":"IF('1. Ordersheet'!Q318=\"\",\"\",'1. Ordersheet'!Q318)","v":""},{"$f":"IF('1. Ordersheet'!R318=\"\",\"\",'1. Ordersheet'!R318)","v":""},{"$f":"IF('1. Ordersheet'!S318=\"\",\"\",'1. Ordersheet'!S318)","v":""},{"$f":"IF('1. Ordersheet'!V318=\"\",\"\",'1. Ordersheet'!V318)","v":""},{"$f":"IF('1. Ordersheet'!W318=\"\",\"\",'1. Ordersheet'!W318)","v":""},{"$f":"IF('1. Ordersheet'!X318=\"\",\"\",'1. Ordersheet'!X318)","v":""},{"$f":"IF('1. Ordersheet'!Y318=\"\",\"\",'1. Ordersheet'!Y318)","v":""},{"$f":"IF('1. Ordersheet'!Z318=\"\",\"\",'1. Ordersheet'!Z318)","v":""},{"$f":"IF('1. Ordersheet'!AA318=\"\",\"\",'1. Ordersheet'!AA318)","v":""},null,{"$f":"IF('1. Ordersheet'!AS318=\"\",\"\",'1. Ordersheet'!AS318)","v":""},{"$f":"IF('1. Ordersheet'!AT318=\"\",\"\",'1. Ordersheet'!AT318)","v":""},null,null,null,null,null,null,null,{"$f":"IF('1. Ordersheet'!AX318=\"\",\"\",'1. Ordersheet'!AX318)","v":""},{"$f":"IF('1. Ordersheet'!AY318=\"\",\"\",'1. Ordersheet'!AY318)","v":""},{"$f":"IF('1. Ordersheet'!AZ318=\"\",\"\",'1. Ordersheet'!AZ318)","v":""},{"$f":"IF('1. Ordersheet'!BA318=\"\",\"\",'1. Ordersheet'!BA318)","v":""},{"$f":"IF('1. Ordersheet'!BC318=\"\",\"\",'1. Ordersheet'!BC318)","v":""},{"$f":"IF('1. Ordersheet'!BD318=\"\",\"\",'1. Ordersheet'!BD318)","v":""},{"$f":"IF('1. Ordersheet'!BE318=\"\",\"\",'1. Ordersheet'!BE318)","v":""},{"$f":"IF('1. Ordersheet'!BF318=\"\",\"\",'1. Ordersheet'!BF318)","v":""},{"$f":"IF('1. Ordersheet'!BG318=\"\",\"\",'1. Ordersheet'!BG318)","v":"ZWO"},{"$f":"IF('1. Ordersheet'!BH318=\"\",\"\",'1. Ordersheet'!BH318)","v":""},{"$f":"IF('1. Ordersheet'!BI318=\"\",\"\",'1. Ordersheet'!BI318)","v":""},{"$f":"IF('1. Ordersheet'!BJ318=\"\",\"\",'1. Ordersheet'!BJ318)","v":""},{"$f":"IF('1. Ordersheet'!BK318=\"\",\"\",'1. Ordersheet'!BK318)","v":""},{"$f":"IF('1. Ordersheet'!BL318=\"\",\"\",'1. Ordersheet'!BL318)","v":""}]
[{"$f":"IF('1. Ordersheet'!F319=\"\",\"\",'1. Ordersheet'!F319)","v":""},{"$f":"IF('1. Ordersheet'!G319=\"\",\"\",'1. Ordersheet'!G319)","v":""},{"$f":"IF('1. Ordersheet'!H319=\"\",\"\",'1. Ordersheet'!H319)","v":""},{"$f":"IF('1. Ordersheet'!I319=\"\",\"\",'1. Ordersheet'!I319)","v":""},{"$f":"IF('1. Ordersheet'!J319=\"\",\"\",'1. Ordersheet'!J319)","v":""},{"$f":"IF('1. Ordersheet'!K319=\"\",\"\",'1. Ordersheet'!K319)","v":""},{"$f":"IF('1. Ordersheet'!L319=\"\",\"\",'1. Ordersheet'!L319)","v":""},{"$f":"IF('1. Ordersheet'!M319=\"\",\"\",'1. Ordersheet'!M319)","v":""},{"$f":"IF('1. Ordersheet'!N319=\"\",\"\",'1. Ordersheet'!N319)","v":""},{"$f":"IF('1. Ordersheet'!O319=\"\",\"\",'1. Ordersheet'!O319)","v":{"$error":"#N/A"}},{"$f":"IF('1. Ordersheet'!P319=\"\",\"\",'1. Ordersheet'!P319)","v":{"$error":"#N/A"}},{"$f":"IF('1. Ordersheet'!Q319=\"\",\"\",'1. Ordersheet'!Q319)","v":""},{"$f":"IF('1. Ordersheet'!R319=\"\",\"\",'1. Ordersheet'!R319)","v":""},{"$f":"IF('1. Ordersheet'!S319=\"\",\"\",'1. Ordersheet'!S319)","v":""},{"$f":"IF('1. Ordersheet'!V319=\"\",\"\",'1. Ordersheet'!V319)","v":""},{"$f":"IF('1. Ordersheet'!W319=\"\",\"\",'1. Ordersheet'!W319)","v":""},{"$f":"IF('1. Ordersheet'!X319=\"\",\"\",'1. Ordersheet'!X319)","v":""},{"$f":"IF('1. Ordersheet'!Y319=\"\",\"\",'1. Ordersheet'!Y319)","v":""},{"$f":"IF('1. Ordersheet'!Z319=\"\",\"\",'1. Ordersheet'!Z319)","v":""},{"$f":"IF('1. Ordersheet'!AA319=\"\",\"\",'1. Ordersheet'!AA319)","v":""},null,{"$f":"IF('1. Ordersheet'!AS319=\"\",\"\",'1. Ordersheet'!AS319)","v":""},{"$f":"IF('1. Ordersheet'!AT319=\"\",\"\",'1. Ordersheet'!AT319)","v":""},null,null,null,null,null,null,null,{"$f":"IF('1. Ordersheet'!AX319=\"\",\"\",'1. Ordersheet'!AX319)","v":""},{"$f":"IF('1. Ordersheet'!AY319=\"\",\"\",'1. Ordersheet'!AY319)","v":""},{"$f":"IF('1. Ordersheet'!AZ319=\"\",\"\",'1. Ordersheet'!AZ319)","v":""},{"$f":"IF('1. Ordersheet'!BA319=\"\",\"\",'1. Ordersheet'!BA319)","v":""},{"$f":"IF('1. Ordersheet'!BC319=\"\",\"\",'1. Ordersheet'!BC319)","v":""},{"$f":"IF('1. Ordersheet'!BD319=\"\",\"\",'1. Ordersheet'!BD319)","v":""},{"$f":"IF('1. Ordersheet'!BE319=\"\",\"\",'1. Ordersheet'!BE319)","v":""},{"$f":"IF('1. Ordersheet'!BF319=\"\",\"\",'1. Ordersheet'!BF319)","v":""},{"$f":"IF('1. Ordersheet'!BG319=\"\",\"\",'1. Ordersheet'!BG319)","v":"ZWO"},{"$f":"IF('1. Ordersheet'!BH319=\"\",\"\",'1. Ordersheet'!BH319)","v":""},{"$f":"IF('1. Ordersheet'!BI319=\"\",\"\",'1. Ordersheet'!BI319)","v":""},{"$f":"IF('1. Ordersheet'!BJ319=\"\",\"\",'1. Ordersheet'!BJ319)","v":""},{"$f":"IF('1. Ordersheet'!BK319=\"\",\"\",'1. Ordersheet'!BK319)","v":""},{"$f":"IF('1. Ordersheet'!BL319=\"\",\"\",'1. Ordersheet'!BL319)","v":""}]
[{"$f":"IF('1. Ordersheet'!F320=\"\",\"\",'1. Ordersheet'!F320)","v":""},{"$f":"IF('1. Ordersheet'!G320=\"\",\"\",'1. Ordersheet'!G320)","v":""},{"$f":"IF('1. Ordersheet'!H320=\"\",\"\",'1. Ordersheet'!H320)","v":""},{"$f":"IF('1. Ordersheet'!I320=\"\",\"\",'1. Ordersheet'!I320)","v":""},{"$f":"IF('1. Ordersheet'!J320=\"\",\"\",'1. Ordersheet'!J320)","v":""},{"$f":"IF('1. Ordersheet'!K320=\"\",\"\",'1. Ordersheet'!K320)","v":""},{"$f":"IF('1. Ordersheet'!L320=\"\",\"\",'1. Ordersheet'!L320)","v":""},{"$f":"IF('1. Ordersheet'!M320=\"\",\"\",'1. Ordersheet'!M320)","v":""},{"$f":"IF('1. Ordersheet'!N320=\"\",\"\",'1. Ordersheet'!N320)","v":""},{"$f":"IF('1. Ordersheet'!O320=\"\",\"\",'1. Ordersheet'!O320)","v":{"$error":"#N/A"}},{"$f":"IF('1. Ordersheet'!P320=\"\",\"\",'1. Ordersheet'!P320)","v":{"$error":"#N/A"}},{"$f":"IF('1. Ordersheet'!Q320=\"\",\"\",'1. Ordersheet'!Q320)","v":""},{"$f":"IF('1. Ordersheet'!R320=\"\",\"\",'1. Ordersheet'!R320)","v":""},{"$f":"IF('1. Ordersheet'!S320=\"\",\"\",'1. Ordersheet'!S320)","v":""},{"$f":"IF('1. Ordersheet'!V320=\"\",\"\",'1. Ordersheet'!V320)","v":""},{"$f":"IF('1. Ordersheet'!W320=\"\",\"\",'1. Ordersheet'!W320)","v":""},{"$f":"IF('1. Ordersheet'!X320=\"\",\"\",'1. Ordersheet'!X320)","v":""},{"$f":"IF('1. Ordersheet'!Y320=\"\",\"\",'1. Ordersheet'!Y320)","v":""},{"$f":"IF('1. Ordersheet'!Z320=\"\",\"\",'1. Ordersheet'!Z320)","v":""},{"$f":"IF('1. Ordersheet'!AA320=\"\",\"\",'1. Ordersheet'!AA320)","v":""},null,{"$f":"IF('1. Ordersheet'!AS320=\"\",\"\",'1. Ordersheet'!AS320)","v":""},{"$f":"IF('1. Ordersheet'!AT320=\"\",\"\",'1. Ordersheet'!AT320)","v":""},null,null,null,null,null,null,null,{"$f":"IF('1. Ordersheet'!AX320=\"\",\"\",'1. Ordersheet'!AX320)","v":""},{"$f":"IF('1. Ordersheet'!AY320=\"\",\"\",'1. Ordersheet'!AY320)","v":""},{"$f":"IF('1. Ordersheet'!AZ320=\"\",\"\",'1. Ordersheet'!AZ320)","v":""},{"$f":"IF('1. Ordersheet'!BA320=\"\",\"\",'1. Ordersheet'!BA320)","v":""},{"$f":"IF('1. Ordersheet'!BC320=\"\",\"\",'1. Ordersheet'!BC320)","v":""},{"$f":"IF('1. Ordersheet'!BD320=\"\",\"\",'1. Ordersheet'!BD320)","v":""},{"$f":"IF('1. Ordersheet'!BE320=\"\",\"\",'1. Ordersheet'!BE320)","v":""},{"$f":"IF('1. Ordersheet'!BF320=\"\",\"\",'1. Ordersheet'!BF320)","v":""},{"$f":"IF('1. Ordersheet'!BG320=\"\",\"\",'1. Ordersheet'!BG320)","v":"ZWO"},{"$f":"IF('1. Ordersheet'!BH320=\"\",\"\",'1. Ordersheet'!BH320)","v":""},{"$f":"IF('1. Ordersheet'!BI320=\"\",\"\",'1. Ordersheet'!BI320)","v":""},{"$f":"IF('1. Ordersheet'!BJ320=\"\",\"\",'1. Ordersheet'!BJ320)","v":""},{"$f":"IF('1. Ordersheet'!BK320=\"\",\"\",'1. Ordersheet'!BK320)","v":""},{"$f":"IF('1. Ordersheet'!BL320=\"\",\"\",'1. Ordersheet'!BL320)","v":""}]
[{"$f":"IF('1. Ordersheet'!F321=\"\",\"\",'1. Ordersheet'!F321)","v":""},{"$f":"IF('1. Ordersheet'!G321=\"\",\"\",'1. Ordersheet'!G321)","v":""},{"$f":"IF('1. Ordersheet'!H321=\"\",\"\",'1. Ordersheet'!H321)","v":""},{"$f":"IF('1. Ordersheet'!I321=\"\",\"\",'1. Ordersheet'!I321)","v":""},{"$f":"IF('1. Ordersheet'!J321=\"\",\"\",'1. Ordersheet'!J321)","v":""},{"$f":"IF('1. Ordersheet'!K321=\"\",\"\",'1. Ordersheet'!K321)","v":""},{"$f":"IF('1. Ordersheet'!L321=\"\",\"\",'1. Ordersheet'!L321)","v":""},{"$f":"IF('1. Ordersheet'!M321=\"\",\"\",'1. Ordersheet'!M321)","v":""},{"$f":"IF('1. Ordersheet'!N321=\"\",\"\",'1. Ordersheet'!N321)","v":""},{"$f":"IF('1. Ordersheet'!O321=\"\",\"\",'1. Ordersheet'!O321)","v":{"$error":"#N/A"}},{"$f":"IF('1. Ordersheet'!P321=\"\",\"\",'1. Ordersheet'!P321)","v":{"$error":"#N/A"}},{"$f":"IF('1. Ordersheet'!Q321=\"\",\"\",'1. Ordersheet'!Q321)","v":""},{"$f":"IF('1. Ordersheet'!R321=\"\",\"\",'1. Ordersheet'!R321)","v":""},{"$f":"IF('1. Ordersheet'!S321=\"\",\"\",'1. Ordersheet'!S321)","v":""},{"$f":"IF('1. Ordersheet'!V321=\"\",\"\",'1. Ordersheet'!V321)","v":""},{"$f":"IF('1. Ordersheet'!W321=\"\",\"\",'1. Ordersheet'!W321)","v":""},{"$f":"IF('1. Ordersheet'!X321=\"\",\"\",'1. Ordersheet'!X321)","v":""},{"$f":"IF('1. Ordersheet'!Y321=\"\",\"\",'1. Ordersheet'!Y321)","v":""},{"$f":"IF('1. Ordersheet'!Z321=\"\",\"\",'1. Ordersheet'!Z321)","v":""},{"$f":"IF('1. Ordersheet'!AA321=\"\",\"\",'1. Ordersheet'!AA321)","v":""},null,{"$f":"IF('1. Ordersheet'!AS321=\"\",\"\",'1. Ordersheet'!AS321)","v":""},{"$f":"IF('1. Ordersheet'!AT321=\"\",\"\",'1. Ordersheet'!AT321)","v":""},null,null,null,null,null,null,null,{"$f":"IF('1. Ordersheet'!AX321=\"\",\"\",'1. Ordersheet'!AX321)","v":""},{"$f":"IF('1. Ordersheet'!AY321=\"\",\"\",'1. Ordersheet'!AY321)","v":""},{"$f":"IF('1. Ordersheet'!AZ321=\"\",\"\",'1. Ordersheet'!AZ321)","v":""},{"$f":"IF('1. Ordersheet'!BA321=\"\",\"\",'1. Ordersheet'!BA321)","v":""},{"$f":"IF('1. Ordersheet'!BC321=\"\",\"\",'1. Ordersheet'!BC321)","v":""},{"$f":"IF('1. Ordersheet'!BD321=\"\",\"\",'1. Ordersheet'!BD321)","v":""},{"$f":"IF('1. Ordersheet'!BE321=\"\",\"\",'1. Ordersheet'!BE321)","v":""},{"$f":"IF('1. Ordersheet'!BF321=\"\",\"\",'1. Ordersheet'!BF321)","v":""},{"$f":"IF('1. Ordersheet'!BG321=\"\",\"\",'1. Ordersheet'!BG321)","v":"ZWO"},{"$f":"IF('1. Ordersheet'!BH321=\"\",\"\",'1. Ordersheet'!BH321)","v":""},{"$f":"IF('1. Ordersheet'!BI321=\"\",\"\",'1. Ordersheet'!BI321)","v":""},{"$f":"IF('1. Ordersheet'!BJ321=\"\",\"\",'1. Ordersheet'!BJ321)","v":""},{"$f":"IF('1. Ordersheet'!BK321=\"\",\"\",'1. Ordersheet'!BK321)","v":""},{"$f":"IF('1. Ordersheet'!BL321=\"\",\"\",'1. Ordersheet'!BL321)","v":""}]
[{"$f":"IF('1. Ordersheet'!F322=\"\",\"\",'1. Ordersheet'!F322)","v":""},{"$f":"IF('1. Ordersheet'!G322=\"\",\"\",'1. Ordersheet'!G322)","v":""},{"$f":"IF('1. Ordersheet'!H322=\"\",\"\",'1. Ordersheet'!H322)","v":""},{"$f":"IF('1. Ordersheet'!I322=\"\",\"\",'1. Ordersheet'!I322)","v":""},{"$f":"IF('1. Ordersheet'!J322=\"\",\"\",'1. Ordersheet'!J322)","v":""},{"$f":"IF('1. Ordersheet'!K322=\"\",\"\",'1. Ordersheet'!K322)","v":""},{"$f":"IF('1. Ordersheet'!L322=\"\",\"\",'1. Ordersheet'!L322)","v":""},{"$f":"IF('1. Ordersheet'!M322=\"\",\"\",'1. Ordersheet'!M322)","v":""},{"$f":"IF('1. Ordersheet'!N322=\"\",\"\",'1. Ordersheet'!N322)","v":""},{"$f":"IF('1. Ordersheet'!O322=\"\",\"\",'1. Ordersheet'!O322)","v":{"$error":"#N/A"}},{"$f":"IF('1. Ordersheet'!P322=\"\",\"\",'1. Ordersheet'!P322)","v":{"$error":"#N/A"}},{"$f":"IF('1. Ordersheet'!Q322=\"\",\"\",'1. Ordersheet'!Q322)","v":""},{"$f":"IF('1. Ordersheet'!R322=\"\",\"\",'1. Ordersheet'!R322)","v":""},{"$f":"IF('1. Ordersheet'!S322=\"\",\"\",'1. Ordersheet'!S322)","v":""},{"$f":"IF('1. Ordersheet'!V322=\"\",\"\",'1. Ordersheet'!V322)","v":""},{"$f":"IF('1. Ordersheet'!W322=\"\",\"\",'1. Ordersheet'!W322)","v":""},{"$f":"IF('1. Ordersheet'!X322=\"\",\"\",'1. Ordersheet'!X322)","v":""},{"$f":"IF('1. Ordersheet'!Y322=\"\",\"\",'1. Ordersheet'!Y322)","v":""},{"$f":"IF('1. Ordersheet'!Z322=\"\",\"\",'1. Ordersheet'!Z322)","v":""},{"$f":"IF('1. Ordersheet'!AA322=\"\",\"\",'1. Ordersheet'!AA322)","v":""},null,{"$f":"IF('1. Ordersheet'!AS322=\"\",\"\",'1. Ordersheet'!AS322)","v":""},{"$f":"IF('1. Ordersheet'!AT322=\"\",\"\",'1. Ordersheet'!AT322)","v":""},null,null,null,null,null,null,null,{"$f":"IF('1. Ordersheet'!AX322=\"\",\"\",'1. Ordersheet'!AX322)","v":""},{"$f":"IF('1. Ordersheet'!AY322=\"\",\"\",'1. Ordersheet'!AY322)","v":""},{"$f":"IF('1. Ordersheet'!AZ322=\"\",\"\",'1. Ordersheet'!AZ322)","v":""},{"$f":"IF('1. Ordersheet'!BA322=\"\",\"\",'1. Ordersheet'!BA322)","v":""},{"$f":"IF('1. Ordersheet'!BC322=\"\",\"\",'1. Ordersheet'!BC322)","v":""},{"$f":"IF('1. Ordersheet'!BD322=\"\",\"\",'1. Ordersheet'!BD322)","v":""},{"$f":"IF('1. Ordersheet'!BE322=\"\",\"\",'1. Ordersheet'!BE322)","v":""},{"$f":"IF('1. Ordersheet'!BF322=\"\",\"\",'1. Ordersheet'!BF322)","v":""},{"$f":"IF('1. Ordersheet'!BG322=\"\",\"\",'1. Ordersheet'!BG322)","v":"ZWO"},{"$f":"IF('1. Ordersheet'!BH322=\"\",\"\",'1. Ordersheet'!BH322)","v":""},{"$f":"IF('1. Ordersheet'!BI322=\"\",\"\",'1. Ordersheet'!BI322)","v":""},{"$f":"IF('1. Ordersheet'!BJ322=\"\",\"\",'1. Ordersheet'!BJ322)","v":""},{"$f":"IF('1. Ordersheet'!BK322=\"\",\"\",'1. Ordersheet'!BK322)","v":""},{"$f":"IF('1. Ordersheet'!BL322=\"\",\"\",'1. Ordersheet'!BL322)","v":""}]
[{"$f":"IF('1. Ordersheet'!F323=\"\",\"\",'1. Ordersheet'!F323)","v":""},{"$f":"IF('1. Ordersheet'!G323=\"\",\"\",'1. Ordersheet'!G323)","v":""},{"$f":"IF('1. Ordersheet'!H323=\"\",\"\",'1. Ordersheet'!H323)","v":""},{"$f":"IF('1. Ordersheet'!I323=\"\",\"\",'1. Ordersheet'!I323)","v":""},{"$f":"IF('1. Ordersheet'!J323=\"\",\"\",'1. Ordersheet'!J323)","v":""},{"$f":"IF('1. Ordersheet'!K323=\"\",\"\",'1. Ordersheet'!K323)","v":""},{"$f":"IF('1. Ordersheet'!L323=\"\",\"\",'1. Ordersheet'!L323)","v":""},{"$f":"IF('1. Ordersheet'!M323=\"\",\"\",'1. Ordersheet'!M323)","v":""},{"$f":"IF('1. Ordersheet'!N323=\"\",\"\",'1. Ordersheet'!N323)","v":""},{"$f":"IF('1. Ordersheet'!O323=\"\",\"\",'1. Ordersheet'!O323)","v":{"$error":"#N/A"}},{"$f":"IF('1. Ordersheet'!P323=\"\",\"\",'1. Ordersheet'!P323)","v":{"$error":"#N/A"}},{"$f":"IF('1. Ordersheet'!Q323=\"\",\"\",'1. Ordersheet'!Q323)","v":""},{"$f":"IF('1. Ordersheet'!R323=\"\",\"\",'1. Ordersheet'!R323)","v":""},{"$f":"IF('1. Ordersheet'!S323=\"\",\"\",'1. Ordersheet'!S323)","v":""},{"$f":"IF('1. Ordersheet'!V323=\"\",\"\",'1. Ordersheet'!V323)","v":""},{"$f":"IF('1. Ordersheet'!W323=\"\",\"\",'1. Ordersheet'!W323)","v":""},{"$f":"IF('1. Ordersheet'!X323=\"\",\"\",'1. Ordersheet'!X323)","v":""},{"$f":"IF('1. Ordersheet'!Y323=\"\",\"\",'1. Ordersheet'!Y323)","v":""},{"$f":"IF('1. Ordersheet'!Z323=\"\",\"\",'1. Ordersheet'!Z323)","v":""},{"$f":"IF('1. Ordersheet'!AA323=\"\",\"\",'1. Ordersheet'!AA323)","v":""},null,{"$f":"IF('1. Ordersheet'!AS323=\"\",\"\",'1. Ordersheet'!AS323)","v":""},{"$f":"IF('1. Ordersheet'!AT323=\"\",\"\",'1. Ordersheet'!AT323)","v":""},null,null,null,null,null,null,null,{"$f":"IF('1. Ordersheet'!AX323=\"\",\"\",'1. Ordersheet'!AX323)","v":""},{"$f":"IF('1. Ordersheet'!AY323=\"\",\"\",'1. Ordersheet'!AY323)","v":""},{"$f":"IF('1. Ordersheet'!AZ323=\"\",\"\",'1. Ordersheet'!AZ323)","v":""},{"$f":"IF('1. Ordersheet'!BA323=\"\",\"\",'1. Ordersheet'!BA323)","v":""},{"$f":"IF('1. Ordersheet'!BC323=\"\",\"\",'1. Ordersheet'!BC323)","v":""},{"$f":"IF('1. Ordersheet'!BD323=\"\",\"\",'1. Ordersheet'!BD323)","v":""},{"$f":"IF('1. Ordersheet'!BE323=\"\",\"\",'1. Ordersheet'!BE323)","v":""},{"$f":"IF('1. Ordersheet'!BF323=\"\",\"\",'1. Ordersheet'!BF323)","v":""},{"$f":"IF('1. Ordersheet'!BG323=\"\",\"\",'1. Ordersheet'!BG323)","v":"ZWO"},{"$f":"IF('1. Ordersheet'!BH323=\"\",\"\",'1. Ordersheet'!BH323)","v":""},{"$f":"IF('1. Ordersheet'!BI323=\"\",\"\",'1. Ordersheet'!BI323)","v":""},{"$f":"IF('1. Ordersheet'!BJ323=\"\",\"\",'1. Ordersheet'!BJ323)","v":""},{"$f":"IF('1. Ordersheet'!BK323=\"\",\"\",'1. Ordersheet'!BK323)","v":""},{"$f":"IF('1. Ordersheet'!BL323=\"\",\"\",'1. Ordersheet'!BL323)","v":""}]
[{"$f":"IF('1. Ordersheet'!F324=\"\",\"\",'1. Ordersheet'!F324)","v":""},{"$f":"IF('1. Ordersheet'!G324=\"\",\"\",'1. Ordersheet'!G324)","v":""},{"$f":"IF('1. Ordersheet'!H324=\"\",\"\",'1. Ordersheet'!H324)","v":""},{"$f":"IF('1. Ordersheet'!I324=\"\",\"\",'1. Ordersheet'!I324)","v":""},{"$f":"IF('1. Ordersheet'!J324=\"\",\"\",'1. Ordersheet'!J324)","v":""},{"$f":"IF('1. Ordersheet'!K324=\"\",\"\",'1. Ordersheet'!K324)","v":""},{"$f":"IF('1. Ordersheet'!L324=\"\",\"\",'1. Ordersheet'!L324)","v":""},{"$f":"IF('1. Ordersheet'!M324=\"\",\"\",'1. Ordersheet'!M324)","v":""},{"$f":"IF('1. Ordersheet'!N324=\"\",\"\",'1. Ordersheet'!N324)","v":""},{"$f":"IF('1. Ordersheet'!O324=\"\",\"\",'1. Ordersheet'!O324)","v":{"$error":"#N/A"}},{"$f":"IF('1. Ordersheet'!P324=\"\",\"\",'1. Ordersheet'!P324)","v":{"$error":"#N/A"}},{"$f":"IF('1. Ordersheet'!Q324=\"\",\"\",'1. Ordersheet'!Q324)","v":""},{"$f":"IF('1. Ordersheet'!R324=\"\",\"\",'1. Ordersheet'!R324)","v":""},{"$f":"IF('1. Ordersheet'!S324=\"\",\"\",'1. Ordersheet'!S324)","v":""},{"$f":"IF('1. Ordersheet'!V324=\"\",\"\",'1. Ordersheet'!V324)","v":""},{"$f":"IF('1. Ordersheet'!W324=\"\",\"\",'1. Ordersheet'!W324)","v":""},{"$f":"IF('1. Ordersheet'!X324=\"\",\"\",'1. Ordersheet'!X324)","v":""},{"$f":"IF('1. Ordersheet'!Y324=\"\",\"\",'1. Ordersheet'!Y324)","v":""},{"$f":"IF('1. Ordersheet'!Z324=\"\",\"\",'1. Ordersheet'!Z324)","v":""},{"$f":"IF('1. Ordersheet'!AA324=\"\",\"\",'1. Ordersheet'!AA324)","v":""},null,{"$f":"IF('1. Ordersheet'!AS324=\"\",\"\",'1. Ordersheet'!AS324)","v":""},{"$f":"IF('1. Ordersheet'!AT324=\"\",\"\",'1. Ordersheet'!AT324)","v":""},null,null,null,null,null,null,null,{"$f":"IF('1. Ordersheet'!AX324=\"\",\"\",'1. Ordersheet'!AX324)","v":""},{"$f":"IF('1. Ordersheet'!AY324=\"\",\"\",'1. Ordersheet'!AY324)","v":""},{"$f":"IF('1. Ordersheet'!AZ324=\"\",\"\",'1. Ordersheet'!AZ324)","v":""},{"$f":"IF('1. Ordersheet'!BA324=\"\",\"\",'1. Ordersheet'!BA324)","v":""},{"$f":"IF('1. Ordersheet'!BC324=\"\",\"\",'1. Ordersheet'!BC324)","v":""},{"$f":"IF('1. Ordersheet'!BD324=\"\",\"\",'1. Ordersheet'!BD324)","v":""},{"$f":"IF('1. Ordersheet'!BE324=\"\",\"\",'1. Ordersheet'!BE324)","v":""},{"$f":"IF('1. Ordersheet'!BF324=\"\",\"\",'1. Ordersheet'!BF324)","v":""},{"$f":"IF('1. Ordersheet'!BG324=\"\",\"\",'1. Ordersheet'!BG324)","v":"ZWO"},{"$f":"IF('1. Ordersheet'!BH324=\"\",\"\",'1. Ordersheet'!BH324)","v":""},{"$f":"IF('1. Ordersheet'!BI324=\"\",\"\",'1. Ordersheet'!BI324)","v":""},{"$f":"IF('1. Ordersheet'!BJ324=\"\",\"\",'1. Ordersheet'!BJ324)","v":""},{"$f":"IF('1. Ordersheet'!BK324=\"\",\"\",'1. Ordersheet'!BK324)","v":""},{"$f":"IF('1. Ordersheet'!BL324=\"\",\"\",'1. Ordersheet'!BL324)","v":""}]
[{"$f":"IF('1. Ordersheet'!F325=\"\",\"\",'1. Ordersheet'!F325)","v":""},{"$f":"IF('1. Ordersheet'!G325=\"\",\"\",'1. Ordersheet'!G325)","v":""},{"$f":"IF('1. Ordersheet'!H325=\"\",\"\",'1. Ordersheet'!H325)","v":""},{"$f":"IF('1. Ordersheet'!I325=\"\",\"\",'1. Ordersheet'!I325)","v":""},{"$f":"IF('1. Ordersheet'!J325=\"\",\"\",'1. Ordersheet'!J325)","v":""},{"$f":"IF('1. Ordersheet'!K325=\"\",\"\",'1. Ordersheet'!K325)","v":""},{"$f":"IF('1. Ordersheet'!L325=\"\",\"\",'1. Ordersheet'!L325)","v":""},{"$f":"IF('1. Ordersheet'!M325=\"\",\"\",'1. Ordersheet'!M325)","v":""},{"$f":"IF('1. Ordersheet'!N325=\"\",\"\",'1. Ordersheet'!N325)","v":""},{"$f":"IF('1. Ordersheet'!O325=\"\",\"\",'1. Ordersheet'!O325)","v":{"$error":"#N/A"}},{"$f":"IF('1. Ordersheet'!P325=\"\",\"\",'1. Ordersheet'!P325)","v":{"$error":"#N/A"}},{"$f":"IF('1. Ordersheet'!Q325=\"\",\"\",'1. Ordersheet'!Q325)","v":""},{"$f":"IF('1. Ordersheet'!R325=\"\",\"\",'1. Ordersheet'!R325)","v":""},{"$f":"IF('1. Ordersheet'!S325=\"\",\"\",'1. Ordersheet'!S325)","v":""},{"$f":"IF('1. Ordersheet'!V325=\"\",\"\",'1. Ordersheet'!V325)","v":""},{"$f":"IF('1. Ordersheet'!W325=\"\",\"\",'1. Ordersheet'!W325)","v":""},{"$f":"IF('1. Ordersheet'!X325=\"\",\"\",'1. Ordersheet'!X325)","v":""},{"$f":"IF('1. Ordersheet'!Y325=\"\",\"\",'1. Ordersheet'!Y325)","v":""},{"$f":"IF('1. Ordersheet'!Z325=\"\",\"\",'1. Ordersheet'!Z325)","v":""},{"$f":"IF('1. Ordersheet'!AA325=\"\",\"\",'1. Ordersheet'!AA325)","v":""},null,{"$f":"IF('1. Ordersheet'!AS325=\"\",\"\",'1. Ordersheet'!AS325)","v":""},{"$f":"IF('1. Ordersheet'!AT325=\"\",\"\",'1. Ordersheet'!AT325)","v":""},null,null,null,null,null,null,null,{"$f":"IF('1. Ordersheet'!AX325=\"\",\"\",'1. Ordersheet'!AX325)","v":""},{"$f":"IF('1. Ordersheet'!AY325=\"\",\"\",'1. Ordersheet'!AY325)","v":""},{"$f":"IF('1. Ordersheet'!AZ325=\"\",\"\",'1. Ordersheet'!AZ325)","v":""},{"$f":"IF('1. Ordersheet'!BA325=\"\",\"\",'1. Ordersheet'!BA325)","v":""},{"$f":"IF('1. Ordersheet'!BC325=\"\",\"\",'1. Ordersheet'!BC325)","v":""},{"$f":"IF('1. Ordersheet'!BD325=\"\",\"\",'1. Ordersheet'!BD325)","v":""},{"$f":"IF('1. Ordersheet'!BE325=\"\",\"\",'1. Ordersheet'!BE325)","v":""},{"$f":"IF('1. Ordersheet'!BF325=\"\",\"\",'1. Ordersheet'!BF325)","v":""},{"$f":"IF('1. Ordersheet'!BG325=\"\",\"\",'1. Ordersheet'!BG325)","v":"ZWO"},{"$f":"IF('1. Ordersheet'!BH325=\"\",\"\",'1. Ordersheet'!BH325)","v":""},{"$f":"IF('1. Ordersheet'!BI325=\"\",\"\",'1. Ordersheet'!BI325)","v":""},{"$f":"IF('1. Ordersheet'!BJ325=\"\",\"\",'1. Ordersheet'!BJ325)","v":""},{"$f":"IF('1. Ordersheet'!BK325=\"\",\"\",'1. Ordersheet'!BK325)","v":""},{"$f":"IF('1. Ordersheet'!BL325=\"\",\"\",'1. Ordersheet'!BL325)","v":""}]
[{"$f":"IF('1. Ordersheet'!F326=\"\",\"\",'1. Ordersheet'!F326)","v":""},{"$f":"IF('1. Ordersheet'!G326=\"\",\"\",'1. Ordersheet'!G326)","v":""},{"$f":"IF('1. Ordersheet'!H326=\"\",\"\",'1. Ordersheet'!H326)","v":""},{"$f":"IF('1. Ordersheet'!I326=\"\",\"\",'1. Ordersheet'!I326)","v":""},{"$f":"IF('1. Ordersheet'!J326=\"\",\"\",'1. Ordersheet'!J326)","v":""},{"$f":"IF('1. Ordersheet'!K326=\"\",\"\",'1. Ordersheet'!K326)","v":""},{"$f":"IF('1. Ordersheet'!L326=\"\",\"\",'1. Ordersheet'!L326)","v":""},{"$f":"IF('1. Ordersheet'!M326=\"\",\"\",'1. Ordersheet'!M326)","v":""},{"$f":"IF('1. Ordersheet'!N326=\"\",\"\",'1. Ordersheet'!N326)","v":""},{"$f":"IF('1. Ordersheet'!O326=\"\",\"\",'1. Ordersheet'!O326)","v":{"$error":"#N/A"}},{"$f":"IF('1. Ordersheet'!P326=\"\",\"\",'1. Ordersheet'!P326)","v":{"$error":"#N/A"}},{"$f":"IF('1. Ordersheet'!Q326=\"\",\"\",'1. Ordersheet'!Q326)","v":""},{"$f":"IF('1. Ordersheet'!R326=\"\",\"\",'1. Ordersheet'!R326)","v":""},{"$f":"IF('1. Ordersheet'!S326=\"\",\"\",'1. Ordersheet'!S326)","v":""},{"$f":"IF('1. Ordersheet'!V326=\"\",\"\",'1. Ordersheet'!V326)","v":""},{"$f":"IF('1. Ordersheet'!W326=\"\",\"\",'1. Ordersheet'!W326)","v":""},{"$f":"IF('1. Ordersheet'!X326=\"\",\"\",'1. Ordersheet'!X326)","v":""},{"$f":"IF('1. Ordersheet'!Y326=\"\",\"\",'1. Ordersheet'!Y326)","v":""},{"$f":"IF('1. Ordersheet'!Z326=\"\",\"\",'1. Ordersheet'!Z326)","v":""},{"$f":"IF('1. Ordersheet'!AA326=\"\",\"\",'1. Ordersheet'!AA326)","v":""},null,{"$f":"IF('1. Ordersheet'!AS326=\"\",\"\",'1. Ordersheet'!AS326)","v":""},{"$f":"IF('1. Ordersheet'!AT326=\"\",\"\",'1. Ordersheet'!AT326)","v":""},null,null,null,null,null,null,null,{"$f":"IF('1. Ordersheet'!AX326=\"\",\"\",'1. Ordersheet'!AX326)","v":""},{"$f":"IF('1. Ordersheet'!AY326=\"\",\"\",'1. Ordersheet'!AY326)","v":""},{"$f":"IF('1. Ordersheet'!AZ326=\"\",\"\",'1. Ordersheet'!AZ326)","v":""},{"$f":"IF('1. Ordersheet'!BA326=\"\",\"\",'1. Ordersheet'!BA326)","v":""},{"$f":"IF('1. Ordersheet'!BC326=\"\",\"\",'1. Ordersheet'!BC326)","v":""},{"$f":"IF('1. Ordersheet'!BD326=\"\",\"\",'1. Ordersheet'!BD326)","v":""},{"$f":"IF('1. Ordersheet'!BE326=\"\",\"\",'1. Ordersheet'!BE326)","v":""},{"$f":"IF('1. Ordersheet'!BF326=\"\",\"\",'1. Ordersheet'!BF326)","v":""},{"$f":"IF('1. Ordersheet'!BG326=\"\",\"\",'1. Ordersheet'!BG326)","v":"ZWO"},{"$f":"IF('1. Ordersheet'!BH326=\"\",\"\",'1. Ordersheet'!BH326)","v":""},{"$f":"IF('1. Ordersheet'!BI326=\"\",\"\",'1. Ordersheet'!BI326)","v":""},{"$f":"IF('1. Ordersheet'!BJ326=\"\",\"\",'1. Ordersheet'!BJ326)","v":""},{"$f":"IF('1. Ordersheet'!BK326=\"\",\"\",'1. Ordersheet'!BK326)","v":""},{"$f":"IF('1. Ordersheet'!BL326=\"\",\"\",'1. Ordersheet'!BL326)","v":""}]
[{"$f":"IF('1. Ordersheet'!F327=\"\",\"\",'1. Ordersheet'!F327)","v":""},{"$f":"IF('1. Ordersheet'!G327=\"\",\"\",'1. Ordersheet'!G327)","v":""},{"$f":"IF('1. Ordersheet'!H327=\"\",\"\",'1. Ordersheet'!H327)","v":""},{"$f":"IF('1. Ordersheet'!I327=\"\",\"\",'1. Ordersheet'!I327)","v":""},{"$f":"IF('1. Ordersheet'!J327=\"\",\"\",'1. Ordersheet'!J327)","v":""},{"$f":"IF('1. Ordersheet'!K327=\"\",\"\",'1. Ordersheet'!K327)","v":""},{"$f":"IF('1. Ordersheet'!L327=\"\",\"\",'1. Ordersheet'!L327)","v":""},{"$f":"IF('1. Ordersheet'!M327=\"\",\"\",'1. Ordersheet'!M327)","v":""},{"$f":"IF('1. Ordersheet'!N327=\"\",\"\",'1. Ordersheet'!N327)","v":""},{"$f":"IF('1. Ordersheet'!O327=\"\",\"\",'1. Ordersheet'!O327)","v":{"$error":"#N/A"}},{"$f":"IF('1. Ordersheet'!P327=\"\",\"\",'1. Ordersheet'!P327)","v":{"$error":"#N/A"}},{"$f":"IF('1. Ordersheet'!Q327=\"\",\"\",'1. Ordersheet'!Q327)","v":""},{"$f":"IF('1. Ordersheet'!R327=\"\",\"\",'1. Ordersheet'!R327)","v":""},{"$f":"IF('1. Ordersheet'!S327=\"\",\"\",'1. Ordersheet'!S327)","v":""},{"$f":"IF('1. Ordersheet'!V327=\"\",\"\",'1. Ordersheet'!V327)","v":""},{"$f":"IF('1. Ordersheet'!W327=\"\",\"\",'1. Ordersheet'!W327)","v":""},{"$f":"IF('1. Ordersheet'!X327=\"\",\"\",'1. Ordersheet'!X327)","v":""},{"$f":"IF('1. Ordersheet'!Y327=\"\",\"\",'1. Ordersheet'!Y327)","v":""},{"$f":"IF('1. Ordersheet'!Z327=\"\",\"\",'1. Ordersheet'!Z327)","v":""},{"$f":"IF('1. Ordersheet'!AA327=\"\",\"\",'1. Ordersheet'!AA327)","v":""},null,{"$f":"IF('1. Ordersheet'!AS327=\"\",\"\",'1. Ordersheet'!AS327)","v":""},{"$f":"IF('1. Ordersheet'!AT327=\"\",\"\",'1. Ordersheet'!AT327)","v":""},null,null,null,null,null,null,null,{"$f":"IF('1. Ordersheet'!AX327=\"\",\"\",'1. Ordersheet'!AX327)","v":""},{"$f":"IF('1. Ordersheet'!AY327=\"\",\"\",'1. Ordersheet'!AY327)","v":""},{"$f":"IF('1. Ordersheet'!AZ327=\"\",\"\",'1. Ordersheet'!AZ327)","v":""},{"$f":"IF('1. Ordersheet'!BA327=\"\",\"\",'1. Ordersheet'!BA327)","v":""},{"$f":"IF('1. Ordersheet'!BC327=\"\",\"\",'1. Ordersheet'!BC327)","v":""},{"$f":"IF('1. Ordersheet'!BD327=\"\",\"\",'1. Ordersheet'!BD327)","v":""},{"$f":"IF('1. Ordersheet'!BE327=\"\",\"\",'1. Ordersheet'!BE327)","v":""},{"$f":"IF('1. Ordersheet'!BF327=\"\",\"\",'1. Ordersheet'!BF327)","v":""},{"$f":"IF('1. Ordersheet'!BG327=\"\",\"\",'1. Ordersheet'!BG327)","v":"ZWO"},{"$f":"IF('1. Ordersheet'!BH327=\"\",\"\",'1. Ordersheet'!BH327)","v":""},{"$f":"IF('1. Ordersheet'!BI327=\"\",\"\",'1. Ordersheet'!BI327)","v":""},{"$f":"IF('1. Ordersheet'!BJ327=\"\",\"\",'1. Ordersheet'!BJ327)","v":""},{"$f":"IF('1. Ordersheet'!BK327=\"\",\"\",'1. Ordersheet'!BK327)","v":""},{"$f":"IF('1. Ordersheet'!BL327=\"\",\"\",'1. Ordersheet'!BL327)","v":""}]
[{"$f":"IF('1. Ordersheet'!F328=\"\",\"\",'1. Ordersheet'!F328)","v":""},{"$f":"IF('1. Ordersheet'!G328=\"\",\"\",'1. Ordersheet'!G328)","v":""},{"$f":"IF('1. Ordersheet'!H328=\"\",\"\",'1. Ordersheet'!H328)","v":""},{"$f":"IF('1. Ordersheet'!I328=\"\",\"\",'1. Ordersheet'!I328)","v":""},{"$f":"IF('1. Ordersheet'!J328=\"\",\"\",'1. Ordersheet'!J328)","v":""},{"$f":"IF('1. Ordersheet'!K328=\"\",\"\",'1. Ordersheet'!K328)","v":""},{"$f":"IF('1. Ordersheet'!L328=\"\",\"\",'1. Ordersheet'!L328)","v":""},{"$f":"IF('1. Ordersheet'!M328=\"\",\"\",'1. Ordersheet'!M328)","v":""},{"$f":"IF('1. Ordersheet'!N328=\"\",\"\",'1. Ordersheet'!N328)","v":""},{"$f":"IF('1. Ordersheet'!O328=\"\",\"\",'1. Ordersheet'!O328)","v":{"$error":"#N/A"}},{"$f":"IF('1. Ordersheet'!P328=\"\",\"\",'1. Ordersheet'!P328)","v":{"$error":"#N/A"}},{"$f":"IF('1. Ordersheet'!Q328=\"\",\"\",'1. Ordersheet'!Q328)","v":""},{"$f":"IF('1. Ordersheet'!R328=\"\",\"\",'1. Ordersheet'!R328)","v":""},{"$f":"IF('1. Ordersheet'!S328=\"\",\"\",'1. Ordersheet'!S328)","v":""},{"$f":"IF('1. Ordersheet'!V328=\"\",\"\",'1. Ordersheet'!V328)","v":""},{"$f":"IF('1. Ordersheet'!W328=\"\",\"\",'1. Ordersheet'!W328)","v":""},{"$f":"IF('1. Ordersheet'!X328=\"\",\"\",'1. Ordersheet'!X328)","v":""},{"$f":"IF('1. Ordersheet'!Y328=\"\",\"\",'1. Ordersheet'!Y328)","v":""},{"$f":"IF('1. Ordersheet'!Z328=\"\",\"\",'1. Ordersheet'!Z328)","v":""},{"$f":"IF('1. Ordersheet'!AA328=\"\",\"\",'1. Ordersheet'!AA328)","v":""},null,{"$f":"IF('1. Ordersheet'!AS328=\"\",\"\",'1. Ordersheet'!AS328)","v":""},{"$f":"IF('1. Ordersheet'!AT328=\"\",\"\",'1. Ordersheet'!AT328)","v":""},null,null,null,null,null,null,null,{"$f":"IF('1. Ordersheet'!AX328=\"\",\"\",'1. Ordersheet'!AX328)","v":""},{"$f":"IF('1. Ordersheet'!AY328=\"\",\"\",'1. Ordersheet'!AY328)","v":""},{"$f":"IF('1. Ordersheet'!AZ328=\"\",\"\",'1. Ordersheet'!AZ328)","v":""},{"$f":"IF('1. Ordersheet'!BA328=\"\",\"\",'1. Ordersheet'!BA328)","v":""},{"$f":"IF('1. Ordersheet'!BC328=\"\",\"\",'1. Ordersheet'!BC328)","v":""},{"$f":"IF('1. Ordersheet'!BD328=\"\",\"\",'1. Ordersheet'!BD328)","v":""},{"$f":"IF('1. Ordersheet'!BE328=\"\",\"\",'1. Ordersheet'!BE328)","v":""},{"$f":"IF('1. Ordersheet'!BF328=\"\",\"\",'1. Ordersheet'!BF328)","v":""},{"$f":"IF('1. Ordersheet'!BG328=\"\",\"\",'1. Ordersheet'!BG328)","v":"ZWO"},{"$f":"IF('1. Ordersheet'!BH328=\"\",\"\",'1. Ordersheet'!BH328)","v":""},{"$f":"IF('1. Ordersheet'!BI328=\"\",\"\",'1. Ordersheet'!BI328)","v":""},{"$f":"IF('1. Ordersheet'!BJ328=\"\",\"\",'1. Ordersheet'!BJ328)","v":""},{"$f":"IF('1. Ordersheet'!BK328=\"\",\"\",'1. Ordersheet'!BK328)","v":""},{"$f":"IF('1. Ordersheet'!BL328=\"\",\"\",'1. Ordersheet'!BL328)","v":""}]
[{"$f":"IF('1. Ordersheet'!F329=\"\",\"\",'1. Ordersheet'!F329)","v":""},{"$f":"IF('1. Ordersheet'!G329=\"\",\"\",'1. Ordersheet'!G329)","v":""},{"$f":"IF('1. Ordersheet'!H329=\"\",\"\",'1. Ordersheet'!H329)","v":""},{"$f":"IF('1. Ordersheet'!I329=\"\",\"\",'1. Ordersheet'!I329)","v":""},{"$f":"IF('1. Ordersheet'!J329=\"\",\"\",'1. Ordersheet'!J329)","v":""},{"$f":"IF('1. Ordersheet'!K329=\"\",\"\",'1. Ordersheet'!K329)","v":""},{"$f":"IF('1. Ordersheet'!L329=\"\",\"\",'1. Ordersheet'!L329)","v":""},{"$f":"IF('1. Ordersheet'!M329=\"\",\"\",'1. Ordersheet'!M329)","v":""},{"$f":"IF('1. Ordersheet'!N329=\"\",\"\",'1. Ordersheet'!N329)","v":""},{"$f":"IF('1. Ordersheet'!O329=\"\",\"\",'1. Ordersheet'!O329)","v":{"$error":"#N/A"}},{"$f":"IF('1. Ordersheet'!P329=\"\",\"\",'1. Ordersheet'!P329)","v":{"$error":"#N/A"}},{"$f":"IF('1. Ordersheet'!Q329=\"\",\"\",'1. Ordersheet'!Q329)","v":""},{"$f":"IF('1. Ordersheet'!R329=\"\",\"\",'1. Ordersheet'!R329)","v":""},{"$f":"IF('1. Ordersheet'!S329=\"\",\"\",'1. Ordersheet'!S329)","v":""},{"$f":"IF('1. Ordersheet'!V329=\"\",\"\",'1. Ordersheet'!V329)","v":""},{"$f":"IF('1. Ordersheet'!W329=\"\",\"\",'1. Ordersheet'!W329)","v":""},{"$f":"IF('1. Ordersheet'!X329=\"\",\"\",'1. Ordersheet'!X329)","v":""},{"$f":"IF('1. Ordersheet'!Y329=\"\",\"\",'1. Ordersheet'!Y329)","v":""},{"$f":"IF('1. Ordersheet'!Z329=\"\",\"\",'1. Ordersheet'!Z329)","v":""},{"$f":"IF('1. Ordersheet'!AA329=\"\",\"\",'1. Ordersheet'!AA329)","v":""},null,{"$f":"IF('1. Ordersheet'!AS329=\"\",\"\",'1. Ordersheet'!AS329)","v":""},{"$f":"IF('1. Ordersheet'!AT329=\"\",\"\",'1. Ordersheet'!AT329)","v":""},null,null,null,null,null,null,null,{"$f":"IF('1. Ordersheet'!AX329=\"\",\"\",'1. Ordersheet'!AX329)","v":""},{"$f":"IF('1. Ordersheet'!AY329=\"\",\"\",'1. Ordersheet'!AY329)","v":""},{"$f":"IF('1. Ordersheet'!AZ329=\"\",\"\",'1. Ordersheet'!AZ329)","v":""},{"$f":"IF('1. Ordersheet'!BA329=\"\",\"\",'1. Ordersheet'!BA329)","v":""},{"$f":"IF('1. Ordersheet'!BC329=\"\",\"\",'1. Ordersheet'!BC329)","v":""},{"$f":"IF('1. Ordersheet'!BD329=\"\",\"\",'1. Ordersheet'!BD329)","v":""},{"$f":"IF('1. Ordersheet'!BE329=\"\",\"\",'1. Ordersheet'!BE329)","v":""},{"$f":"IF('1. Ordersheet'!BF329=\"\",\"\",'1. Ordersheet'!BF329)","v":""},{"$f":"IF('1. Ordersheet'!BG329=\"\",\"\",'1. Ordersheet'!BG329)","v":"ZWO"},{"$f":"IF('1. Ordersheet'!BH329=\"\",\"\",'1. Ordersheet'!BH329)","v":""},{"$f":"IF('1. Ordersheet'!BI329=\"\",\"\",'1. Ordersheet'!BI329)","v":""},{"$f":"IF('1. Ordersheet'!BJ329=\"\",\"\",'1. Ordersheet'!BJ329)","v":""},{"$f":"IF('1. Ordersheet'!BK329=\"\",\"\",'1. Ordersheet'!BK329)","v":""},{"$f":"IF('1. Ordersheet'!BL329=\"\",\"\",'1. Ordersheet'!BL329)","v":""}]
[{"$f":"IF('1. Ordersheet'!F330=\"\",\"\",'1. Ordersheet'!F330)","v":""},{"$f":"IF('1. Ordersheet'!G330=\"\",\"\",'1. Ordersheet'!G330)","v":""},{"$f":"IF('1. Ordersheet'!H330=\"\",\"\",'1. Ordersheet'!H330)","v":""},{"$f":"IF('1. Ordersheet'!I330=\"\",\"\",'1. Ordersheet'!I330)","v":""},{"$f":"IF('1. Ordersheet'!J330=\"\",\"\",'1. Ordersheet'!J330)","v":""},{"$f":"IF('1. Ordersheet'!K330=\"\",\"\",'1. Ordersheet'!K330)","v":""},{"$f":"IF('1. Ordersheet'!L330=\"\",\"\",'1. Ordersheet'!L330)","v":""},{"$f":"IF('1. Ordersheet'!M330=\"\",\"\",'1. Ordersheet'!M330)","v":""},{"$f":"IF('1. Ordersheet'!N330=\"\",\"\",'1. Ordersheet'!N330)","v":""},{"$f":"IF('1. Ordersheet'!O330=\"\",\"\",'1. Ordersheet'!O330)","v":{"$error":"#N/A"}},{"$f":"IF('1. Ordersheet'!P330=\"\",\"\",'1. Ordersheet'!P330)","v":{"$error":"#N/A"}},{"$f":"IF('1. Ordersheet'!Q330=\"\",\"\",'1. Ordersheet'!Q330)","v":""},{"$f":"IF('1. Ordersheet'!R330=\"\",\"\",'1. Ordersheet'!R330)","v":""},{"$f":"IF('1. Ordersheet'!S330=\"\",\"\",'1. Ordersheet'!S330)","v":""},{"$f":"IF('1. Ordersheet'!V330=\"\",\"\",'1. Ordersheet'!V330)","v":""},{"$f":"IF('1. Ordersheet'!W330=\"\",\"\",'1. Ordersheet'!W330)","v":""},{"$f":"IF('1. Ordersheet'!X330=\"\",\"\",'1. Ordersheet'!X330)","v":""},{"$f":"IF('1. Ordersheet'!Y330=\"\",\"\",'1. Ordersheet'!Y330)","v":""},{"$f":"IF('1. Ordersheet'!Z330=\"\",\"\",'1. Ordersheet'!Z330)","v":""},{"$f":"IF('1. Ordersheet'!AA330=\"\",\"\",'1. Ordersheet'!AA330)","v":""},null,{"$f":"IF('1. Ordersheet'!AS330=\"\",\"\",'1. Ordersheet'!AS330)","v":""},{"$f":"IF('1. Ordersheet'!AT330=\"\",\"\",'1. Ordersheet'!AT330)","v":""},null,null,null,null,null,null,null,{"$f":"IF('1. Ordersheet'!AX330=\"\",\"\",'1. Ordersheet'!AX330)","v":""},{"$f":"IF('1. Ordersheet'!AY330=\"\",\"\",'1. Ordersheet'!AY330)","v":""},{"$f":"IF('1. Ordersheet'!AZ330=\"\",\"\",'1. Ordersheet'!AZ330)","v":""},{"$f":"IF('1. Ordersheet'!BA330=\"\",\"\",'1. Ordersheet'!BA330)","v":""},{"$f":"IF('1. Ordersheet'!BC330=\"\",\"\",'1. Ordersheet'!BC330)","v":""},{"$f":"IF('1. Ordersheet'!BD330=\"\",\"\",'1. Ordersheet'!BD330)","v":""},{"$f":"IF('1. Ordersheet'!BE330=\"\",\"\",'1. Ordersheet'!BE330)","v":""},{"$f":"IF('1. Ordersheet'!BF330=\"\",\"\",'1. Ordersheet'!BF330)","v":""},{"$f":"IF('1. Ordersheet'!BG330=\"\",\"\",'1. Ordersheet'!BG330)","v":"ZWO"},{"$f":"IF('1. Ordersheet'!BH330=\"\",\"\",'1. Ordersheet'!BH330)","v":""},{"$f":"IF('1. Ordersheet'!BI330=\"\",\"\",'1. Ordersheet'!BI330)","v":""},{"$f":"IF('1. Ordersheet'!BJ330=\"\",\"\",'1. Ordersheet'!BJ330)","v":""},{"$f":"IF('1. Ordersheet'!BK330=\"\",\"\",'1. Ordersheet'!BK330)","v":""},{"$f":"IF('1. Ordersheet'!BL330=\"\",\"\",'1. Ordersheet'!BL330)","v":""}]
[{"$f":"IF('1. Ordersheet'!F331=\"\",\"\",'1. Ordersheet'!F331)","v":""},{"$f":"IF('1. Ordersheet'!G331=\"\",\"\",'1. Ordersheet'!G331)","v":""},{"$f":"IF('1. Ordersheet'!H331=\"\",\"\",'1. Ordersheet'!H331)","v":""},{"$f":"IF('1. Ordersheet'!I331=\"\",\"\",'1. Ordersheet'!I331)","v":""},{"$f":"IF('1. Ordersheet'!J331=\"\",\"\",'1. Ordersheet'!J331)","v":""},{"$f":"IF('1. Ordersheet'!K331=\"\",\"\",'1. Ordersheet'!K331)","v":""},{"$f":"IF('1. Ordersheet'!L331=\"\",\"\",'1. Ordersheet'!L331)","v":""},{"$f":"IF('1. Ordersheet'!M331=\"\",\"\",'1. Ordersheet'!M331)","v":""},{"$f":"IF('1. Ordersheet'!N331=\"\",\"\",'1. Ordersheet'!N331)","v":""},{"$f":"IF('1. Ordersheet'!O331=\"\",\"\",'1. Ordersheet'!O331)","v":{"$error":"#N/A"}},{"$f":"IF('1. Ordersheet'!P331=\"\",\"\",'1. Ordersheet'!P331)","v":{"$error":"#N/A"}},{"$f":"IF('1. Ordersheet'!Q331=\"\",\"\",'1. Ordersheet'!Q331)","v":""},{"$f":"IF('1. Ordersheet'!R331=\"\",\"\",'1. Ordersheet'!R331)","v":""},{"$f":"IF('1. Ordersheet'!S331=\"\",\"\",'1. Ordersheet'!S331)","v":""},{"$f":"IF('1. Ordersheet'!V331=\"\",\"\",'1. Ordersheet'!V331)","v":""},{"$f":"IF('1. Ordersheet'!W331=\"\",\"\",'1. Ordersheet'!W331)","v":""},{"$f":"IF('1. Ordersheet'!X331=\"\",\"\",'1. Ordersheet'!X331)","v":""},{"$f":"IF('1. Ordersheet'!Y331=\"\",\"\",'1. Ordersheet'!Y331)","v":""},{"$f":"IF('1. Ordersheet'!Z331=\"\",\"\",'1. Ordersheet'!Z331)","v":""},{"$f":"IF('1. Ordersheet'!AA331=\"\",\"\",'1. Ordersheet'!AA331)","v":""},null,{"$f":"IF('1. Ordersheet'!AS331=\"\",\"\",'1. Ordersheet'!AS331)","v":""},{"$f":"IF('1. Ordersheet'!AT331=\"\",\"\",'1. Ordersheet'!AT331)","v":""},null,null,null,null,null,null,null,{"$f":"IF('1. Ordersheet'!AX331=\"\",\"\",'1. Ordersheet'!AX331)","v":""},{"$f":"IF('1. Ordersheet'!AY331=\"\",\"\",'1. Ordersheet'!AY331)","v":""},{"$f":"IF('1. Ordersheet'!AZ331=\"\",\"\",'1. Ordersheet'!AZ331)","v":""},{"$f":"IF('1. Ordersheet'!BA331=\"\",\"\",'1. Ordersheet'!BA331)","v":""},{"$f":"IF('1. Ordersheet'!BC331=\"\",\"\",'1. Ordersheet'!BC331)","v":""},{"$f":"IF('1. Ordersheet'!BD331=\"\",\"\",'1. Ordersheet'!BD331)","v":""},{"$f":"IF('1. Ordersheet'!BE331=\"\",\"\",'1. Ordersheet'!BE331)","v":""},{"$f":"IF('1. Ordersheet'!BF331=\"\",\"\",'1. Ordersheet'!BF331)","v":""},{"$f":"IF('1. Ordersheet'!BG331=\"\",\"\",'1. Ordersheet'!BG331)","v":"ZWO"},{"$f":"IF('1. Ordersheet'!BH331=\"\",\"\",'1. Ordersheet'!BH331)","v":""},{"$f":"IF('1. Ordersheet'!BI331=\"\",\"\",'1. Ordersheet'!BI331)","v":""},{"$f":"IF('1. Ordersheet'!BJ331=\"\",\"\",'1. Ordersheet'!BJ331)","v":""},{"$f":"IF('1. Ordersheet'!BK331=\"\",\"\",'1. Ordersheet'!BK331)","v":""},{"$f":"IF('1. Ordersheet'!BL331=\"\",\"\",'1. Ordersheet'!BL331)","v":""}]
[{"$f":"IF('1. Ordersheet'!F332=\"\",\"\",'1. Ordersheet'!F332)","v":""},{"$f":"IF('1. Ordersheet'!G332=\"\",\"\",'1. Ordersheet'!G332)","v":""},{"$f":"IF('1. Ordersheet'!H332=\"\",\"\",'1. Ordersheet'!H332)","v":""},{"$f":"IF('1. Ordersheet'!I332=\"\",\"\",'1. Ordersheet'!I332)","v":""},{"$f":"IF('1. Ordersheet'!J332=\"\",\"\",'1. Ordersheet'!J332)","v":""},{"$f":"IF('1. Ordersheet'!K332=\"\",\"\",'1. Ordersheet'!K332)","v":""},{"$f":"IF('1. Ordersheet'!L332=\"\",\"\",'1. Ordersheet'!L332)","v":""},{"$f":"IF('1. Ordersheet'!M332=\"\",\"\",'1. Ordersheet'!M332)","v":""},{"$f":"IF('1. Ordersheet'!N332=\"\",\"\",'1. Ordersheet'!N332)","v":""},{"$f":"IF('1. Ordersheet'!O332=\"\",\"\",'1. Ordersheet'!O332)","v":{"$error":"#N/A"}},{"$f":"IF('1. Ordersheet'!P332=\"\",\"\",'1. Ordersheet'!P332)","v":{"$error":"#N/A"}},{"$f":"IF('1. Ordersheet'!Q332=\"\",\"\",'1. Ordersheet'!Q332)","v":""},{"$f":"IF('1. Ordersheet'!R332=\"\",\"\",'1. Ordersheet'!R332)","v":""},{"$f":"IF('1. Ordersheet'!S332=\"\",\"\",'1. Ordersheet'!S332)","v":""},{"$f":"IF('1. Ordersheet'!V332=\"\",\"\",'1. Ordersheet'!V332)","v":""},{"$f":"IF('1. Ordersheet'!W332=\"\",\"\",'1. Ordersheet'!W332)","v":""},{"$f":"IF('1. Ordersheet'!X332=\"\",\"\",'1. Ordersheet'!X332)","v":""},{"$f":"IF('1. Ordersheet'!Y332=\"\",\"\",'1. Ordersheet'!Y332)","v":""},{"$f":"IF('1. Ordersheet'!Z332=\"\",\"\",'1. Ordersheet'!Z332)","v":""},{"$f":"IF('1. Ordersheet'!AA332=\"\",\"\",'1. Ordersheet'!AA332)","v":""},null,{"$f":"IF('1. Ordersheet'!AS332=\"\",\"\",'1. Ordersheet'!AS332)","v":""},{"$f":"IF('1. Ordersheet'!AT332=\"\",\"\",'1. Ordersheet'!AT332)","v":""},null,null,null,null,null,null,null,{"$f":"IF('1. Ordersheet'!AX332=\"\",\"\",'1. Ordersheet'!AX332)","v":""},{"$f":"IF('1. Ordersheet'!AY332=\"\",\"\",'1. Ordersheet'!AY332)","v":""},{"$f":"IF('1. Ordersheet'!AZ332=\"\",\"\",'1. Ordersheet'!AZ332)","v":""},{"$f":"IF('1. Ordersheet'!BA332=\"\",\"\",'1. Ordersheet'!BA332)","v":""},{"$f":"IF('1. Ordersheet'!BC332=\"\",\"\",'1. Ordersheet'!BC332)","v":""},{"$f":"IF('1. Ordersheet'!BD332=\"\",\"\",'1. Ordersheet'!BD332)","v":""},{"$f":"IF('1. Ordersheet'!BE332=\"\",\"\",'1. Ordersheet'!BE332)","v":""},{"$f":"IF('1. Ordersheet'!BF332=\"\",\"\",'1. Ordersheet'!BF332)","v":""},{"$f":"IF('1. Ordersheet'!BG332=\"\",\"\",'1. Ordersheet'!BG332)","v":"ZWO"},{"$f":"IF('1. Ordersheet'!BH332=\"\",\"\",'1. Ordersheet'!BH332)","v":""},{"$f":"IF('1. Ordersheet'!BI332=\"\",\"\",'1. Ordersheet'!BI332)","v":""},{"$f":"IF('1. Ordersheet'!BJ332=\"\",\"\",'1. Ordersheet'!BJ332)","v":""},{"$f":"IF('1. Ordersheet'!BK332=\"\",\"\",'1. Ordersheet'!BK332)","v":""},{"$f":"IF('1. Ordersheet'!BL332=\"\",\"\",'1. Ordersheet'!BL332)","v":""}]
[{"$f":"IF('1. Ordersheet'!F333=\"\",\"\",'1. Ordersheet'!F333)","v":""},{"$f":"IF('1. Ordersheet'!G333=\"\",\"\",'1. Ordersheet'!G333)","v":""},{"$f":"IF('1. Ordersheet'!H333=\"\",\"\",'1. Ordersheet'!H333)","v":""},{"$f":"IF('1. Ordersheet'!I333=\"\",\"\",'1. Ordersheet'!I333)","v":""},{"$f":"IF('1. Ordersheet'!J333=\"\",\"\",'1. Ordersheet'!J333)","v":""},{"$f":"IF('1. Ordersheet'!K333=\"\",\"\",'1. Ordersheet'!K333)","v":""},{"$f":"IF('1. Ordersheet'!L333=\"\",\"\",'1. Ordersheet'!L333)","v":""},{"$f":"IF('1. Ordersheet'!M333=\"\",\"\",'1. Ordersheet'!M333)","v":""},{"$f":"IF('1. Ordersheet'!N333=\"\",\"\",'1. Ordersheet'!N333)","v":""},{"$f":"IF('1. Ordersheet'!O333=\"\",\"\",'1. Ordersheet'!O333)","v":{"$error":"#N/A"}},{"$f":"IF('1. Ordersheet'!P333=\"\",\"\",'1. Ordersheet'!P333)","v":{"$error":"#N/A"}},{"$f":"IF('1. Ordersheet'!Q333=\"\",\"\",'1. Ordersheet'!Q333)","v":""},{"$f":"IF('1. Ordersheet'!R333=\"\",\"\",'1. Ordersheet'!R333)","v":""},{"$f":"IF('1. Ordersheet'!S333=\"\",\"\",'1. Ordersheet'!S333)","v":""},{"$f":"IF('1. Ordersheet'!V333=\"\",\"\",'1. Ordersheet'!V333)","v":""},{"$f":"IF('1. Ordersheet'!W333=\"\",\"\",'1. Ordersheet'!W333)","v":""},{"$f":"IF('1. Ordersheet'!X333=\"\",\"\",'1. Ordersheet'!X333)","v":""},{"$f":"IF('1. Ordersheet'!Y333=\"\",\"\",'1. Ordersheet'!Y333)","v":""},{"$f":"IF('1. Ordersheet'!Z333=\"\",\"\",'1. Ordersheet'!Z333)","v":""},{"$f":"IF('1. Ordersheet'!AA333=\"\",\"\",'1. Ordersheet'!AA333)","v":""},null,{"$f":"IF('1. Ordersheet'!AS333=\"\",\"\",'1. Ordersheet'!AS333)","v":""},{"$f":"IF('1. Ordersheet'!AT333=\"\",\"\",'1. Ordersheet'!AT333)","v":""},null,null,null,null,null,null,null,{"$f":"IF('1. Ordersheet'!AX333=\"\",\"\",'1. Ordersheet'!AX333)","v":""},{"$f":"IF('1. Ordersheet'!AY333=\"\",\"\",'1. Ordersheet'!AY333)","v":""},{"$f":"IF('1. Ordersheet'!AZ333=\"\",\"\",'1. Ordersheet'!AZ333)","v":""},{"$f":"IF('1. Ordersheet'!BA333=\"\",\"\",'1. Ordersheet'!BA333)","v":""},{"$f":"IF('1. Ordersheet'!BC333=\"\",\"\",'1. Ordersheet'!BC333)","v":""},{"$f":"IF('1. Ordersheet'!BD333=\"\",\"\",'1. Ordersheet'!BD333)","v":""},{"$f":"IF('1. Ordersheet'!BE333=\"\",\"\",'1. Ordersheet'!BE333)","v":""},{"$f":"IF('1. Ordersheet'!BF333=\"\",\"\",'1. Ordersheet'!BF333)","v":""},{"$f":"IF('1. Ordersheet'!BG333=\"\",\"\",'1. Ordersheet'!BG333)","v":"ZWO"},{"$f":"IF('1. Ordersheet'!BH333=\"\",\"\",'1. Ordersheet'!BH333)","v":""},{"$f":"IF('1. Ordersheet'!BI333=\"\",\"\",'1. Ordersheet'!BI333)","v":""},{"$f":"IF('1. Ordersheet'!BJ333=\"\",\"\",'1. Ordersheet'!BJ333)","v":""},{"$f":"IF('1. Ordersheet'!BK333=\"\",\"\",'1. Ordersheet'!BK333)","v":""},{"$f":"IF('1. Ordersheet'!BL333=\"\",\"\",'1. Ordersheet'!BL333)","v":""}]
[{"$f":"IF('1. Ordersheet'!F334=\"\",\"\",'1. Ordersheet'!F334)","v":""},{"$f":"IF('1. Ordersheet'!G334=\"\",\"\",'1. Ordersheet'!G334)","v":""},{"$f":"IF('1. Ordersheet'!H334=\"\",\"\",'1. Ordersheet'!H334)","v":""},{"$f":"IF('1. Ordersheet'!I334=\"\",\"\",'1. Ordersheet'!I334)","v":""},{"$f":"IF('1. Ordersheet'!J334=\"\",\"\",'1. Ordersheet'!J334)","v":""},{"$f":"IF('1. Ordersheet'!K334=\"\",\"\",'1. Ordersheet'!K334)","v":""},{"$f":"IF('1. Ordersheet'!L334=\"\",\"\",'1. Ordersheet'!L334)","v":""},{"$f":"IF('1. Ordersheet'!M334=\"\",\"\",'1. Ordersheet'!M334)","v":""},{"$f":"IF('1. Ordersheet'!N334=\"\",\"\",'1. Ordersheet'!N334)","v":""},{"$f":"IF('1. Ordersheet'!O334=\"\",\"\",'1. Ordersheet'!O334)","v":{"$error":"#N/A"}},{"$f":"IF('1. Ordersheet'!P334=\"\",\"\",'1. Ordersheet'!P334)","v":{"$error":"#N/A"}},{"$f":"IF('1. Ordersheet'!Q334=\"\",\"\",'1. Ordersheet'!Q334)","v":""},{"$f":"IF('1. Ordersheet'!R334=\"\",\"\",'1. Ordersheet'!R334)","v":""},{"$f":"IF('1. Ordersheet'!S334=\"\",\"\",'1. Ordersheet'!S334)","v":""},{"$f":"IF('1. Ordersheet'!V334=\"\",\"\",'1. Ordersheet'!V334)","v":""},{"$f":"IF('1. Ordersheet'!W334=\"\",\"\",'1. Ordersheet'!W334)","v":""},{"$f":"IF('1. Ordersheet'!X334=\"\",\"\",'1. Ordersheet'!X334)","v":""},{"$f":"IF('1. Ordersheet'!Y334=\"\",\"\",'1. Ordersheet'!Y334)","v":""},{"$f":"IF('1. Ordersheet'!Z334=\"\",\"\",'1. Ordersheet'!Z334)","v":""},{"$f":"IF('1. Ordersheet'!AA334=\"\",\"\",'1. Ordersheet'!AA334)","v":""},null,{"$f":"IF('1. Ordersheet'!AS334=\"\",\"\",'1. Ordersheet'!AS334)","v":""},{"$f":"IF('1. Ordersheet'!AT334=\"\",\"\",'1. Ordersheet'!AT334)","v":""},null,null,null,null,null,null,null,{"$f":"IF('1. Ordersheet'!AX334=\"\",\"\",'1. Ordersheet'!AX334)","v":""},{"$f":"IF('1. Ordersheet'!AY334=\"\",\"\",'1. Ordersheet'!AY334)","v":""},{"$f":"IF('1. Ordersheet'!AZ334=\"\",\"\",'1. Ordersheet'!AZ334)","v":""},{"$f":"IF('1. Ordersheet'!BA334=\"\",\"\",'1. Ordersheet'!BA334)","v":""},{"$f":"IF('1. Ordersheet'!BC334=\"\",\"\",'1. Ordersheet'!BC334)","v":""},{"$f":"IF('1. Ordersheet'!BD334=\"\",\"\",'1. Ordersheet'!BD334)","v":""},{"$f":"IF('1. Ordersheet'!BE334=\"\",\"\",'1. Ordersheet'!BE334)","v":""},{"$f":"IF('1. Ordersheet'!BF334=\"\",\"\",'1. Ordersheet'!BF334)","v":""},{"$f":"IF('1. Ordersheet'!BG334=\"\",\"\",'1. Ordersheet'!BG334)","v":"ZWO"},{"$f":"IF('1. Ordersheet'!BH334=\"\",\"\",'1. Ordersheet'!BH334)","v":""},{"$f":"IF('1. Ordersheet'!BI334=\"\",\"\",'1. Ordersheet'!BI334)","v":""},{"$f":"IF('1. Ordersheet'!BJ334=\"\",\"\",'1. Ordersheet'!BJ334)","v":""},{"$f":"IF('1. Ordersheet'!BK334=\"\",\"\",'1. Ordersheet'!BK334)","v":""},{"$f":"IF('1. Ordersheet'!BL334=\"\",\"\",'1. Ordersheet'!BL334)","v":""}]
[{"$f":"IF('1. Ordersheet'!F335=\"\",\"\",'1. Ordersheet'!F335)","v":""},{"$f":"IF('1. Ordersheet'!G335=\"\",\"\",'1. Ordersheet'!G335)","v":""},{"$f":"IF('1. Ordersheet'!H335=\"\",\"\",'1. Ordersheet'!H335)","v":""},{"$f":"IF('1. Ordersheet'!I335=\"\",\"\",'1. Ordersheet'!I335)","v":""},{"$f":"IF('1. Ordersheet'!J335=\"\",\"\",'1. Ordersheet'!J335)","v":""},{"$f":"IF('1. Ordersheet'!K335=\"\",\"\",'1. Ordersheet'!K335)","v":""},{"$f":"IF('1. Ordersheet'!L335=\"\",\"\",'1. Ordersheet'!L335)","v":""},{"$f":"IF('1. Ordersheet'!M335=\"\",\"\",'1. Ordersheet'!M335)","v":""},{"$f":"IF('1. Ordersheet'!N335=\"\",\"\",'1. Ordersheet'!N335)","v":""},{"$f":"IF('1. Ordersheet'!O335=\"\",\"\",'1. Ordersheet'!O335)","v":{"$error":"#N/A"}},{"$f":"IF('1. Ordersheet'!P335=\"\",\"\",'1. Ordersheet'!P335)","v":{"$error":"#N/A"}},{"$f":"IF('1. Ordersheet'!Q335=\"\",\"\",'1. Ordersheet'!Q335)","v":""},{"$f":"IF('1. Ordersheet'!R335=\"\",\"\",'1. Ordersheet'!R335)","v":""},{"$f":"IF('1. Ordersheet'!S335=\"\",\"\",'1. Ordersheet'!S335)","v":""},{"$f":"IF('1. Ordersheet'!V335=\"\",\"\",'1. Ordersheet'!V335)","v":""},{"$f":"IF('1. Ordersheet'!W335=\"\",\"\",'1. Ordersheet'!W335)","v":""},{"$f":"IF('1. Ordersheet'!X335=\"\",\"\",'1. Ordersheet'!X335)","v":""},{"$f":"IF('1. Ordersheet'!Y335=\"\",\"\",'1. Ordersheet'!Y335)","v":""},{"$f":"IF('1. Ordersheet'!Z335=\"\",\"\",'1. Ordersheet'!Z335)","v":""},{"$f":"IF('1. Ordersheet'!AA335=\"\",\"\",'1. Ordersheet'!AA335)","v":""},null,{"$f":"IF('1. Ordersheet'!AS335=\"\",\"\",'1. Ordersheet'!AS335)","v":""},{"$f":"IF('1. Ordersheet'!AT335=\"\",\"\",'1. Ordersheet'!AT335)","v":""},null,null,null,null,null,null,null,{"$f":"IF('1. Ordersheet'!AX335=\"\",\"\",'1. Ordersheet'!AX335)","v":""},{"$f":"IF('1. Ordersheet'!AY335=\"\",\"\",'1. Ordersheet'!AY335)","v":""},{"$f":"IF('1. Ordersheet'!AZ335=\"\",\"\",'1. Ordersheet'!AZ335)","v":""},{"$f":"IF('1. Ordersheet'!BA335=\"\",\"\",'1. Ordersheet'!BA335)","v":""},{"$f":"IF('1. Ordersheet'!BC335=\"\",\"\",'1. Ordersheet'!BC335)","v":""},{"$f":"IF('1. Ordersheet'!BD335=\"\",\"\",'1. Ordersheet'!BD335)","v":""},{"$f":"IF('1. Ordersheet'!BE335=\"\",\"\",'1. Ordersheet'!BE335)","v":""},{"$f":"IF('1. Ordersheet'!BF335=\"\",\"\",'1. Ordersheet'!BF335)","v":""},{"$f":"IF('1. Ordersheet'!BG335=\"\",\"\",'1. Ordersheet'!BG335)","v":"ZWO"},{"$f":"IF('1. Ordersheet'!BH335=\"\",\"\",'1. Ordersheet'!BH335)","v":""},{"$f":"IF('1. Ordersheet'!BI335=\"\",\"\",'1. Ordersheet'!BI335)","v":""},{"$f":"IF('1. Ordersheet'!BJ335=\"\",\"\",'1. Ordersheet'!BJ335)","v":""},{"$f":"IF('1. Ordersheet'!BK335=\"\",\"\",'1. Ordersheet'!BK335)","v":""},{"$f":"IF('1. Ordersheet'!BL335=\"\",\"\",'1. Ordersheet'!BL335)","v":""}]
[{"$f":"IF('1. Ordersheet'!F336=\"\",\"\",'1. Ordersheet'!F336)","v":""},{"$f":"IF('1. Ordersheet'!G336=\"\",\"\",'1. Ordersheet'!G336)","v":""},{"$f":"IF('1. Ordersheet'!H336=\"\",\"\",'1. Ordersheet'!H336)","v":""},{"$f":"IF('1. Ordersheet'!I336=\"\",\"\",'1. Ordersheet'!I336)","v":""},{"$f":"IF('1. Ordersheet'!J336=\"\",\"\",'1. Ordersheet'!J336)","v":""},{"$f":"IF('1. Ordersheet'!K336=\"\",\"\",'1. Ordersheet'!K336)","v":""},{"$f":"IF('1. Ordersheet'!L336=\"\",\"\",'1. Ordersheet'!L336)","v":""},{"$f":"IF('1. Ordersheet'!M336=\"\",\"\",'1. Ordersheet'!M336)","v":""},{"$f":"IF('1. Ordersheet'!N336=\"\",\"\",'1. Ordersheet'!N336)","v":""},{"$f":"IF('1. Ordersheet'!O336=\"\",\"\",'1. Ordersheet'!O336)","v":{"$error":"#N/A"}},{"$f":"IF('1. Ordersheet'!P336=\"\",\"\",'1. Ordersheet'!P336)","v":{"$error":"#N/A"}},{"$f":"IF('1. Ordersheet'!Q336=\"\",\"\",'1. Ordersheet'!Q336)","v":""},{"$f":"IF('1. Ordersheet'!R336=\"\",\"\",'1. Ordersheet'!R336)","v":""},{"$f":"IF('1. Ordersheet'!S336=\"\",\"\",'1. Ordersheet'!S336)","v":""},{"$f":"IF('1. Ordersheet'!V336=\"\",\"\",'1. Ordersheet'!V336)","v":""},{"$f":"IF('1. Ordersheet'!W336=\"\",\"\",'1. Ordersheet'!W336)","v":""},{"$f":"IF('1. Ordersheet'!X336=\"\",\"\",'1. Ordersheet'!X336)","v":""},{"$f":"IF('1. Ordersheet'!Y336=\"\",\"\",'1. Ordersheet'!Y336)","v":""},{"$f":"IF('1. Ordersheet'!Z336=\"\",\"\",'1. Ordersheet'!Z336)","v":""},{"$f":"IF('1. Ordersheet'!AA336=\"\",\"\",'1. Ordersheet'!AA336)","v":""},null,{"$f":"IF('1. Ordersheet'!AS336=\"\",\"\",'1. Ordersheet'!AS336)","v":""},{"$f":"IF('1. Ordersheet'!AT336=\"\",\"\",'1. Ordersheet'!AT336)","v":""},null,null,null,null,null,null,null,{"$f":"IF('1. Ordersheet'!AX336=\"\",\"\",'1. Ordersheet'!AX336)","v":""},{"$f":"IF('1. Ordersheet'!AY336=\"\",\"\",'1. Ordersheet'!AY336)","v":""},{"$f":"IF('1. Ordersheet'!AZ336=\"\",\"\",'1. Ordersheet'!AZ336)","v":""},{"$f":"IF('1. Ordersheet'!BA336=\"\",\"\",'1. Ordersheet'!BA336)","v":""},{"$f":"IF('1. Ordersheet'!BC336=\"\",\"\",'1. Ordersheet'!BC336)","v":""},{"$f":"IF('1. Ordersheet'!BD336=\"\",\"\",'1. Ordersheet'!BD336)","v":""},{"$f":"IF('1. Ordersheet'!BE336=\"\",\"\",'1. Ordersheet'!BE336)","v":""},{"$f":"IF('1. Ordersheet'!BF336=\"\",\"\",'1. Ordersheet'!BF336)","v":""},{"$f":"IF('1. Ordersheet'!BG336=\"\",\"\",'1. Ordersheet'!BG336)","v":"ZWO"},{"$f":"IF('1. Ordersheet'!BH336=\"\",\"\",'1. Ordersheet'!BH336)","v":""},{"$f":"IF('1. Ordersheet'!BI336=\"\",\"\",'1. Ordersheet'!BI336)","v":""},{"$f":"IF('1. Ordersheet'!BJ336=\"\",\"\",'1. Ordersheet'!BJ336)","v":""},{"$f":"IF('1. Ordersheet'!BK336=\"\",\"\",'1. Ordersheet'!BK336)","v":""},{"$f":"IF('1. Ordersheet'!BL336=\"\",\"\",'1. Ordersheet'!BL336)","v":""}]
[{"$f":"IF('1. Ordersheet'!F337=\"\",\"\",'1. Ordersheet'!F337)","v":""},{"$f":"IF('1. Ordersheet'!G337=\"\",\"\",'1. Ordersheet'!G337)","v":""},{"$f":"IF('1. Ordersheet'!H337=\"\",\"\",'1. Ordersheet'!H337)","v":""},{"$f":"IF('1. Ordersheet'!I337=\"\",\"\",'1. Ordersheet'!I337)","v":""},{"$f":"IF('1. Ordersheet'!J337=\"\",\"\",'1. Ordersheet'!J337)","v":""},{"$f":"IF('1. Ordersheet'!K337=\"\",\"\",'1. Ordersheet'!K337)","v":""},{"$f":"IF('1. Ordersheet'!L337=\"\",\"\",'1. Ordersheet'!L337)","v":""},{"$f":"IF('1. Ordersheet'!M337=\"\",\"\",'1. Ordersheet'!M337)","v":""},{"$f":"IF('1. Ordersheet'!N337=\"\",\"\",'1. Ordersheet'!N337)","v":""},{"$f":"IF('1. Ordersheet'!O337=\"\",\"\",'1. Ordersheet'!O337)","v":{"$error":"#N/A"}},{"$f":"IF('1. Ordersheet'!P337=\"\",\"\",'1. Ordersheet'!P337)","v":{"$error":"#N/A"}},{"$f":"IF('1. Ordersheet'!Q337=\"\",\"\",'1. Ordersheet'!Q337)","v":""},{"$f":"IF('1. Ordersheet'!R337=\"\",\"\",'1. Ordersheet'!R337)","v":""},{"$f":"IF('1. Ordersheet'!S337=\"\",\"\",'1. Ordersheet'!S337)","v":""},{"$f":"IF('1. Ordersheet'!V337=\"\",\"\",'1. Ordersheet'!V337)","v":""},{"$f":"IF('1. Ordersheet'!W337=\"\",\"\",'1. Ordersheet'!W337)","v":""},{"$f":"IF('1. Ordersheet'!X337=\"\",\"\",'1. Ordersheet'!X337)","v":""},{"$f":"IF('1. Ordersheet'!Y337=\"\",\"\",'1. Ordersheet'!Y337)","v":""},{"$f":"IF('1. Ordersheet'!Z337=\"\",\"\",'1. Ordersheet'!Z337)","v":""},{"$f":"IF('1. Ordersheet'!AA337=\"\",\"\",'1. Ordersheet'!AA337)","v":""},null,{"$f":"IF('1. Ordersheet'!AS337=\"\",\"\",'1. Ordersheet'!AS337)","v":""},{"$f":"IF('1. Ordersheet'!AT337=\"\",\"\",'1. Ordersheet'!AT337)","v":""},null,null,null,null,null,null,null,{"$f":"IF('1. Ordersheet'!AX337=\"\",\"\",'1. Ordersheet'!AX337)","v":""},{"$f":"IF('1. Ordersheet'!AY337=\"\",\"\",'1. Ordersheet'!AY337)","v":""},{"$f":"IF('1. Ordersheet'!AZ337=\"\",\"\",'1. Ordersheet'!AZ337)","v":""},{"$f":"IF('1. Ordersheet'!BA337=\"\",\"\",'1. Ordersheet'!BA337)","v":""},{"$f":"IF('1. Ordersheet'!BC337=\"\",\"\",'1. Ordersheet'!BC337)","v":""},{"$f":"IF('1. Ordersheet'!BD337=\"\",\"\",'1. Ordersheet'!BD337)","v":""},{"$f":"IF('1. Ordersheet'!BE337=\"\",\"\",'1. Ordersheet'!BE337)","v":""},{"$f":"IF('1. Ordersheet'!BF337=\"\",\"\",'1. Ordersheet'!BF337)","v":""},{"$f":"IF('1. Ordersheet'!BG337=\"\",\"\",'1. Ordersheet'!BG337)","v":"ZWO"},{"$f":"IF('1. Ordersheet'!BH337=\"\",\"\",'1. Ordersheet'!BH337)","v":""},{"$f":"IF('1. Ordersheet'!BI337=\"\",\"\",'1. Ordersheet'!BI337)","v":""},{"$f":"IF('1. Ordersheet'!BJ337=\"\",\"\",'1. Ordersheet'!BJ337)","v":""},{"$f":"IF('1. Ordersheet'!BK337=\"\",\"\",'1. Ordersheet'!BK337)","v":""},{"$f":"IF('1. Ordersheet'!BL337=\"\",\"\",'1. Ordersheet'!BL337)","v":""}]
[{"$f":"IF('1. Ordersheet'!F338=\"\",\"\",'1. Ordersheet'!F338)","v":""},{"$f":"IF('1. Ordersheet'!G338=\"\",\"\",'1. Ordersheet'!G338)","v":""},{"$f":"IF('1. Ordersheet'!H338=\"\",\"\",'1. Ordersheet'!H338)","v":""},{"$f":"IF('1. Ordersheet'!I338=\"\",\"\",'1. Ordersheet'!I338)","v":""},{"$f":"IF('1. Ordersheet'!J338=\"\",\"\",'1. Ordersheet'!J338)","v":""},{"$f":"IF('1. Ordersheet'!K338=\"\",\"\",'1. Ordersheet'!K338)","v":""},{"$f":"IF('1. Ordersheet'!L338=\"\",\"\",'1. Ordersheet'!L338)","v":""},{"$f":"IF('1. Ordersheet'!M338=\"\",\"\",'1. Ordersheet'!M338)","v":""},{"$f":"IF('1. Ordersheet'!N338=\"\",\"\",'1. Ordersheet'!N338)","v":""},{"$f":"IF('1. Ordersheet'!O338=\"\",\"\",'1. Ordersheet'!O338)","v":{"$error":"#N/A"}},{"$f":"IF('1. Ordersheet'!P338=\"\",\"\",'1. Ordersheet'!P338)","v":{"$error":"#N/A"}},{"$f":"IF('1. Ordersheet'!Q338=\"\",\"\",'1. Ordersheet'!Q338)","v":""},{"$f":"IF('1. Ordersheet'!R338=\"\",\"\",'1. Ordersheet'!R338)","v":""},{"$f":"IF('1. Ordersheet'!S338=\"\",\"\",'1. Ordersheet'!S338)","v":""},{"$f":"IF('1. Ordersheet'!V338=\"\",\"\",'1. Ordersheet'!V338)","v":""},{"$f":"IF('1. Ordersheet'!W338=\"\",\"\",'1. Ordersheet'!W338)","v":""},{"$f":"IF('1. Ordersheet'!X338=\"\",\"\",'1. Ordersheet'!X338)","v":""},{"$f":"IF('1. Ordersheet'!Y338=\"\",\"\",'1. Ordersheet'!Y338)","v":""},{"$f":"IF('1. Ordersheet'!Z338=\"\",\"\",'1. Ordersheet'!Z338)","v":""},{"$f":"IF('1. Ordersheet'!AA338=\"\",\"\",'1. Ordersheet'!AA338)","v":""},null,{"$f":"IF('1. Ordersheet'!AS338=\"\",\"\",'1. Ordersheet'!AS338)","v":""},{"$f":"IF('1. Ordersheet'!AT338=\"\",\"\",'1. Ordersheet'!AT338)","v":""},null,null,null,null,null,null,null,{"$f":"IF('1. Ordersheet'!AX338=\"\",\"\",'1. Ordersheet'!AX338)","v":""},{"$f":"IF('1. Ordersheet'!AY338=\"\",\"\",'1. Ordersheet'!AY338)","v":""},{"$f":"IF('1. Ordersheet'!AZ338=\"\",\"\",'1. Ordersheet'!AZ338)","v":""},{"$f":"IF('1. Ordersheet'!BA338=\"\",\"\",'1. Ordersheet'!BA338)","v":""},{"$f":"IF('1. Ordersheet'!BC338=\"\",\"\",'1. Ordersheet'!BC338)","v":""},{"$f":"IF('1. Ordersheet'!BD338=\"\",\"\",'1. Ordersheet'!BD338)","v":""},{"$f":"IF('1. Ordersheet'!BE338=\"\",\"\",'1. Ordersheet'!BE338)","v":""},{"$f":"IF('1. Ordersheet'!BF338=\"\",\"\",'1. Ordersheet'!BF338)","v":""},{"$f":"IF('1. Ordersheet'!BG338=\"\",\"\",'1. Ordersheet'!BG338)","v":"ZWO"},{"$f":"IF('1. Ordersheet'!BH338=\"\",\"\",'1. Ordersheet'!BH338)","v":""},{"$f":"IF('1. Ordersheet'!BI338=\"\",\"\",'1. Ordersheet'!BI338)","v":""},{"$f":"IF('1. Ordersheet'!BJ338=\"\",\"\",'1. Ordersheet'!BJ338)","v":""},{"$f":"IF('1. Ordersheet'!BK338=\"\",\"\",'1. Ordersheet'!BK338)","v":""},{"$f":"IF('1. Ordersheet'!BL338=\"\",\"\",'1. Ordersheet'!BL338)","v":""}]
[{"$f":"IF('1. Ordersheet'!F339=\"\",\"\",'1. Ordersheet'!F339)","v":""},{"$f":"IF('1. Ordersheet'!G339=\"\",\"\",'1. Ordersheet'!G339)","v":""},{"$f":"IF('1. Ordersheet'!H339=\"\",\"\",'1. Ordersheet'!H339)","v":""},{"$f":"IF('1. Ordersheet'!I339=\"\",\"\",'1. Ordersheet'!I339)","v":""},{"$f":"IF('1. Ordersheet'!J339=\"\",\"\",'1. Ordersheet'!J339)","v":""},{"$f":"IF('1. Ordersheet'!K339=\"\",\"\",'1. Ordersheet'!K339)","v":""},{"$f":"IF('1. Ordersheet'!L339=\"\",\"\",'1. Ordersheet'!L339)","v":""},{"$f":"IF('1. Ordersheet'!M339=\"\",\"\",'1. Ordersheet'!M339)","v":""},{"$f":"IF('1. Ordersheet'!N339=\"\",\"\",'1. Ordersheet'!N339)","v":""},{"$f":"IF('1. Ordersheet'!O339=\"\",\"\",'1. Ordersheet'!O339)","v":{"$error":"#N/A"}},{"$f":"IF('1. Ordersheet'!P339=\"\",\"\",'1. Ordersheet'!P339)","v":{"$error":"#N/A"}},{"$f":"IF('1. Ordersheet'!Q339=\"\",\"\",'1. Ordersheet'!Q339)","v":""},{"$f":"IF('1. Ordersheet'!R339=\"\",\"\",'1. Ordersheet'!R339)","v":""},{"$f":"IF('1. Ordersheet'!S339=\"\",\"\",'1. Ordersheet'!S339)","v":""},{"$f":"IF('1. Ordersheet'!V339=\"\",\"\",'1. Ordersheet'!V339)","v":""},{"$f":"IF('1. Ordersheet'!W339=\"\",\"\",'1. Ordersheet'!W339)","v":""},{"$f":"IF('1. Ordersheet'!X339=\"\",\"\",'1. Ordersheet'!X339)","v":""},{"$f":"IF('1. Ordersheet'!Y339=\"\",\"\",'1. Ordersheet'!Y339)","v":""},{"$f":"IF('1. Ordersheet'!Z339=\"\",\"\",'1. Ordersheet'!Z339)","v":""},{"$f":"IF('1. Ordersheet'!AA339=\"\",\"\",'1. Ordersheet'!AA339)","v":""},null,{"$f":"IF('1. Ordersheet'!AS339=\"\",\"\",'1. Ordersheet'!AS339)","v":""},{"$f":"IF('1. Ordersheet'!AT339=\"\",\"\",'1. Ordersheet'!AT339)","v":""},null,null,null,null,null,null,null,{"$f":"IF('1. Ordersheet'!AX339=\"\",\"\",'1. Ordersheet'!AX339)","v":""},{"$f":"IF('1. Ordersheet'!AY339=\"\",\"\",'1. Ordersheet'!AY339)","v":""},{"$f":"IF('1. Ordersheet'!AZ339=\"\",\"\",'1. Ordersheet'!AZ339)","v":""},{"$f":"IF('1. Ordersheet'!BA339=\"\",\"\",'1. Ordersheet'!BA339)","v":""},{"$f":"IF('1. Ordersheet'!BC339=\"\",\"\",'1. Ordersheet'!BC339)","v":""},{"$f":"IF('1. Ordersheet'!BD339=\"\",\"\",'1. Ordersheet'!BD339)","v":""},{"$f":"IF('1. Ordersheet'!BE339=\"\",\"\",'1. Ordersheet'!BE339)","v":""},{"$f":"IF('1. Ordersheet'!BF339=\"\",\"\",'1. Ordersheet'!BF339)","v":""},{"$f":"IF('1. Ordersheet'!BG339=\"\",\"\",'1. Ordersheet'!BG339)","v":"ZWO"},{"$f":"IF('1. Ordersheet'!BH339=\"\",\"\",'1. Ordersheet'!BH339)","v":""},{"$f":"IF('1. Ordersheet'!BI339=\"\",\"\",'1. Ordersheet'!BI339)","v":""},{"$f":"IF('1. Ordersheet'!BJ339=\"\",\"\",'1. Ordersheet'!BJ339)","v":""},{"$f":"IF('1. Ordersheet'!BK339=\"\",\"\",'1. Ordersheet'!BK339)","v":""},{"$f":"IF('1. Ordersheet'!BL339=\"\",\"\",'1. Ordersheet'!BL339)","v":""}]
[{"$f":"IF('1. Ordersheet'!F340=\"\",\"\",'1. Ordersheet'!F340)","v":""},{"$f":"IF('1. Ordersheet'!G340=\"\",\"\",'1. Ordersheet'!G340)","v":""},{"$f":"IF('1. Ordersheet'!H340=\"\",\"\",'1. Ordersheet'!H340)","v":""},{"$f":"IF('1. Ordersheet'!I340=\"\",\"\",'1. Ordersheet'!I340)","v":""},{"$f":"IF('1. Ordersheet'!J340=\"\",\"\",'1. Ordersheet'!J340)","v":""},{"$f":"IF('1. Ordersheet'!K340=\"\",\"\",'1. Ordersheet'!K340)","v":""},{"$f":"IF('1. Ordersheet'!L340=\"\",\"\",'1. Ordersheet'!L340)","v":""},{"$f":"IF('1. Ordersheet'!M340=\"\",\"\",'1. Ordersheet'!M340)","v":""},{"$f":"IF('1. Ordersheet'!N340=\"\",\"\",'1. Ordersheet'!N340)","v":""},{"$f":"IF('1. Ordersheet'!O340=\"\",\"\",'1. Ordersheet'!O340)","v":{"$error":"#N/A"}},{"$f":"IF('1. Ordersheet'!P340=\"\",\"\",'1. Ordersheet'!P340)","v":{"$error":"#N/A"}},{"$f":"IF('1. Ordersheet'!Q340=\"\",\"\",'1. Ordersheet'!Q340)","v":""},{"$f":"IF('1. Ordersheet'!R340=\"\",\"\",'1. Ordersheet'!R340)","v":""},{"$f":"IF('1. Ordersheet'!S340=\"\",\"\",'1. Ordersheet'!S340)","v":""},{"$f":"IF('1. Ordersheet'!V340=\"\",\"\",'1. Ordersheet'!V340)","v":""},{"$f":"IF('1. Ordersheet'!W340=\"\",\"\",'1. Ordersheet'!W340)","v":""},{"$f":"IF('1. Ordersheet'!X340=\"\",\"\",'1. Ordersheet'!X340)","v":""},{"$f":"IF('1. Ordersheet'!Y340=\"\",\"\",'1. Ordersheet'!Y340)","v":""},{"$f":"IF('1. Ordersheet'!Z340=\"\",\"\",'1. Ordersheet'!Z340)","v":""},{"$f":"IF('1. Ordersheet'!AA340=\"\",\"\",'1. Ordersheet'!AA340)","v":""},null,{"$f":"IF('1. Ordersheet'!AS340=\"\",\"\",'1. Ordersheet'!AS340)","v":""},{"$f":"IF('1. Ordersheet'!AT340=\"\",\"\",'1. Ordersheet'!AT340)","v":""},null,null,null,null,null,null,null,{"$f":"IF('1. Ordersheet'!AX340=\"\",\"\",'1. Ordersheet'!AX340)","v":""},{"$f":"IF('1. Ordersheet'!AY340=\"\",\"\",'1. Ordersheet'!AY340)","v":""},{"$f":"IF('1. Ordersheet'!AZ340=\"\",\"\",'1. Ordersheet'!AZ340)","v":""},{"$f":"IF('1. Ordersheet'!BA340=\"\",\"\",'1. Ordersheet'!BA340)","v":""},{"$f":"IF('1. Ordersheet'!BC340=\"\",\"\",'1. Ordersheet'!BC340)","v":""},{"$f":"IF('1. Ordersheet'!BD340=\"\",\"\",'1. Ordersheet'!BD340)","v":""},{"$f":"IF('1. Ordersheet'!BE340=\"\",\"\",'1. Ordersheet'!BE340)","v":""},{"$f":"IF('1. Ordersheet'!BF340=\"\",\"\",'1. Ordersheet'!BF340)","v":""},{"$f":"IF('1. Ordersheet'!BG340=\"\",\"\",'1. Ordersheet'!BG340)","v":"ZWO"},{"$f":"IF('1. Ordersheet'!BH340=\"\",\"\",'1. Ordersheet'!BH340)","v":""},{"$f":"IF('1. Ordersheet'!BI340=\"\",\"\",'1. Ordersheet'!BI340)","v":""},{"$f":"IF('1. Ordersheet'!BJ340=\"\",\"\",'1. Ordersheet'!BJ340)","v":""},{"$f":"IF('1. Ordersheet'!BK340=\"\",\"\",'1. Ordersheet'!BK340)","v":""},{"$f":"IF('1. Ordersheet'!BL340=\"\",\"\",'1. Ordersheet'!BL340)","v":""}]
[{"$f":"IF('1. Ordersheet'!F341=\"\",\"\",'1. Ordersheet'!F341)","v":""},{"$f":"IF('1. Ordersheet'!G341=\"\",\"\",'1. Ordersheet'!G341)","v":""},{"$f":"IF('1. Ordersheet'!H341=\"\",\"\",'1. Ordersheet'!H341)","v":""},{"$f":"IF('1. Ordersheet'!I341=\"\",\"\",'1. Ordersheet'!I341)","v":""},{"$f":"IF('1. Ordersheet'!J341=\"\",\"\",'1. Ordersheet'!J341)","v":""},{"$f":"IF('1. Ordersheet'!K341=\"\",\"\",'1. Ordersheet'!K341)","v":""},{"$f":"IF('1. Ordersheet'!L341=\"\",\"\",'1. Ordersheet'!L341)","v":""},{"$f":"IF('1. Ordersheet'!M341=\"\",\"\",'1. Ordersheet'!M341)","v":""},{"$f":"IF('1. Ordersheet'!N341=\"\",\"\",'1. Ordersheet'!N341)","v":""},{"$f":"IF('1. Ordersheet'!O341=\"\",\"\",'1. Ordersheet'!O341)","v":{"$error":"#N/A"}},{"$f":"IF('1. Ordersheet'!P341=\"\",\"\",'1. Ordersheet'!P341)","v":{"$error":"#N/A"}},{"$f":"IF('1. Ordersheet'!Q341=\"\",\"\",'1. Ordersheet'!Q341)","v":""},{"$f":"IF('1. Ordersheet'!R341=\"\",\"\",'1. Ordersheet'!R341)","v":""},{"$f":"IF('1. Ordersheet'!S341=\"\",\"\",'1. Ordersheet'!S341)","v":""},{"$f":"IF('1. Ordersheet'!V341=\"\",\"\",'1. Ordersheet'!V341)","v":""},{"$f":"IF('1. Ordersheet'!W341=\"\",\"\",'1. Ordersheet'!W341)","v":""},{"$f":"IF('1. Ordersheet'!X341=\"\",\"\",'1. Ordersheet'!X341)","v":""},{"$f":"IF('1. Ordersheet'!Y341=\"\",\"\",'1. Ordersheet'!Y341)","v":""},{"$f":"IF('1. Ordersheet'!Z341=\"\",\"\",'1. Ordersheet'!Z341)","v":""},{"$f":"IF('1. Ordersheet'!AA341=\"\",\"\",'1. Ordersheet'!AA341)","v":""},null,{"$f":"IF('1. Ordersheet'!AS341=\"\",\"\",'1. Ordersheet'!AS341)","v":""},{"$f":"IF('1. Ordersheet'!AT341=\"\",\"\",'1. Ordersheet'!AT341)","v":""},null,null,null,null,null,null,null,{"$f":"IF('1. Ordersheet'!AX341=\"\",\"\",'1. Ordersheet'!AX341)","v":""},{"$f":"IF('1. Ordersheet'!AY341=\"\",\"\",'1. Ordersheet'!AY341)","v":""},{"$f":"IF('1. Ordersheet'!AZ341=\"\",\"\",'1. Ordersheet'!AZ341)","v":""},{"$f":"IF('1. Ordersheet'!BA341=\"\",\"\",'1. Ordersheet'!BA341)","v":""},{"$f":"IF('1. Ordersheet'!BC341=\"\",\"\",'1. Ordersheet'!BC341)","v":""},{"$f":"IF('1. Ordersheet'!BD341=\"\",\"\",'1. Ordersheet'!BD341)","v":""},{"$f":"IF('1. Ordersheet'!BE341=\"\",\"\",'1. Ordersheet'!BE341)","v":""},{"$f":"IF('1. Ordersheet'!BF341=\"\",\"\",'1. Ordersheet'!BF341)","v":""},{"$f":"IF('1. Ordersheet'!BG341=\"\",\"\",'1. Ordersheet'!BG341)","v":"ZWO"},{"$f":"IF('1. Ordersheet'!BH341=\"\",\"\",'1. Ordersheet'!BH341)","v":""},{"$f":"IF('1. Ordersheet'!BI341=\"\",\"\",'1. Ordersheet'!BI341)","v":""},{"$f":"IF('1. Ordersheet'!BJ341=\"\",\"\",'1. Ordersheet'!BJ341)","v":""},{"$f":"IF('1. Ordersheet'!BK341=\"\",\"\",'1. Ordersheet'!BK341)","v":""},{"$f":"IF('1. Ordersheet'!BL341=\"\",\"\",'1. Ordersheet'!BL341)","v":""}]
[{"$f":"IF('1. Ordersheet'!F342=\"\",\"\",'1. Ordersheet'!F342)","v":""},{"$f":"IF('1. Ordersheet'!G342=\"\",\"\",'1. Ordersheet'!G342)","v":""},{"$f":"IF('1. Ordersheet'!H342=\"\",\"\",'1. Ordersheet'!H342)","v":""},{"$f":"IF('1. Ordersheet'!I342=\"\",\"\",'1. Ordersheet'!I342)","v":""},{"$f":"IF('1. Ordersheet'!J342=\"\",\"\",'1. Ordersheet'!J342)","v":""},{"$f":"IF('1. Ordersheet'!K342=\"\",\"\",'1. Ordersheet'!K342)","v":""},{"$f":"IF('1. Ordersheet'!L342=\"\",\"\",'1. Ordersheet'!L342)","v":""},{"$f":"IF('1. Ordersheet'!M342=\"\",\"\",'1. Ordersheet'!M342)","v":""},{"$f":"IF('1. Ordersheet'!N342=\"\",\"\",'1. Ordersheet'!N342)","v":""},{"$f":"IF('1. Ordersheet'!O342=\"\",\"\",'1. Ordersheet'!O342)","v":{"$error":"#N/A"}},{"$f":"IF('1. Ordersheet'!P342=\"\",\"\",'1. Ordersheet'!P342)","v":{"$error":"#N/A"}},{"$f":"IF('1. Ordersheet'!Q342=\"\",\"\",'1. Ordersheet'!Q342)","v":""},{"$f":"IF('1. Ordersheet'!R342=\"\",\"\",'1. Ordersheet'!R342)","v":""},{"$f":"IF('1. Ordersheet'!S342=\"\",\"\",'1. Ordersheet'!S342)","v":""},{"$f":"IF('1. Ordersheet'!V342=\"\",\"\",'1. Ordersheet'!V342)","v":""},{"$f":"IF('1. Ordersheet'!W342=\"\",\"\",'1. Ordersheet'!W342)","v":""},{"$f":"IF('1. Ordersheet'!X342=\"\",\"\",'1. Ordersheet'!X342)","v":""},{"$f":"IF('1. Ordersheet'!Y342=\"\",\"\",'1. Ordersheet'!Y342)","v":""},{"$f":"IF('1. Ordersheet'!Z342=\"\",\"\",'1. Ordersheet'!Z342)","v":""},{"$f":"IF('1. Ordersheet'!AA342=\"\",\"\",'1. Ordersheet'!AA342)","v":""},null,{"$f":"IF('1. Ordersheet'!AS342=\"\",\"\",'1. Ordersheet'!AS342)","v":""},{"$f":"IF('1. Ordersheet'!AT342=\"\",\"\",'1. Ordersheet'!AT342)","v":""},null,null,null,null,null,null,null,{"$f":"IF('1. Ordersheet'!AX342=\"\",\"\",'1. Ordersheet'!AX342)","v":""},{"$f":"IF('1. Ordersheet'!AY342=\"\",\"\",'1. Ordersheet'!AY342)","v":""},{"$f":"IF('1. Ordersheet'!AZ342=\"\",\"\",'1. Ordersheet'!AZ342)","v":""},{"$f":"IF('1. Ordersheet'!BA342=\"\",\"\",'1. Ordersheet'!BA342)","v":""},{"$f":"IF('1. Ordersheet'!BC342=\"\",\"\",'1. Ordersheet'!BC342)","v":""},{"$f":"IF('1. Ordersheet'!BD342=\"\",\"\",'1. Ordersheet'!BD342)","v":""},{"$f":"IF('1. Ordersheet'!BE342=\"\",\"\",'1. Ordersheet'!BE342)","v":""},{"$f":"IF('1. Ordersheet'!BF342=\"\",\"\",'1. Ordersheet'!BF342)","v":""},{"$f":"IF('1. Ordersheet'!BG342=\"\",\"\",'1. Ordersheet'!BG342)","v":"ZWO"},{"$f":"IF('1. Ordersheet'!BH342=\"\",\"\",'1. Ordersheet'!BH342)","v":""},{"$f":"IF('1. Ordersheet'!BI342=\"\",\"\",'1. Ordersheet'!BI342)","v":""},{"$f":"IF('1. Ordersheet'!BJ342=\"\",\"\",'1. Ordersheet'!BJ342)","v":""},{"$f":"IF('1. Ordersheet'!BK342=\"\",\"\",'1. Ordersheet'!BK342)","v":""},{"$f":"IF('1. Ordersheet'!BL342=\"\",\"\",'1. Ordersheet'!BL342)","v":""}]
[{"$f":"IF('1. Ordersheet'!F343=\"\",\"\",'1. Ordersheet'!F343)","v":""},{"$f":"IF('1. Ordersheet'!G343=\"\",\"\",'1. Ordersheet'!G343)","v":""},{"$f":"IF('1. Ordersheet'!H343=\"\",\"\",'1. Ordersheet'!H343)","v":""},{"$f":"IF('1. Ordersheet'!I343=\"\",\"\",'1. Ordersheet'!I343)","v":""},{"$f":"IF('1. Ordersheet'!J343=\"\",\"\",'1. Ordersheet'!J343)","v":""},{"$f":"IF('1. Ordersheet'!K343=\"\",\"\",'1. Ordersheet'!K343)","v":""},{"$f":"IF('1. Ordersheet'!L343=\"\",\"\",'1. Ordersheet'!L343)","v":""},{"$f":"IF('1. Ordersheet'!M343=\"\",\"\",'1. Ordersheet'!M343)","v":""},{"$f":"IF('1. Ordersheet'!N343=\"\",\"\",'1. Ordersheet'!N343)","v":""},{"$f":"IF('1. Ordersheet'!O343=\"\",\"\",'1. Ordersheet'!O343)","v":{"$error":"#N/A"}},{"$f":"IF('1. Ordersheet'!P343=\"\",\"\",'1. Ordersheet'!P343)","v":{"$error":"#N/A"}},{"$f":"IF('1. Ordersheet'!Q343=\"\",\"\",'1. Ordersheet'!Q343)","v":""},{"$f":"IF('1. Ordersheet'!R343=\"\",\"\",'1. Ordersheet'!R343)","v":""},{"$f":"IF('1. Ordersheet'!S343=\"\",\"\",'1. Ordersheet'!S343)","v":""},{"$f":"IF('1. Ordersheet'!V343=\"\",\"\",'1. Ordersheet'!V343)","v":""},{"$f":"IF('1. Ordersheet'!W343=\"\",\"\",'1. Ordersheet'!W343)","v":""},{"$f":"IF('1. Ordersheet'!X343=\"\",\"\",'1. Ordersheet'!X343)","v":""},{"$f":"IF('1. Ordersheet'!Y343=\"\",\"\",'1. Ordersheet'!Y343)","v":""},{"$f":"IF('1. Ordersheet'!Z343=\"\",\"\",'1. Ordersheet'!Z343)","v":""},{"$f":"IF('1. Ordersheet'!AA343=\"\",\"\",'1. Ordersheet'!AA343)","v":""},null,{"$f":"IF('1. Ordersheet'!AS343=\"\",\"\",'1. Ordersheet'!AS343)","v":""},{"$f":"IF('1. Ordersheet'!AT343=\"\",\"\",'1. Ordersheet'!AT343)","v":""},null,null,null,null,null,null,null,{"$f":"IF('1. Ordersheet'!AX343=\"\",\"\",'1. Ordersheet'!AX343)","v":""},{"$f":"IF('1. Ordersheet'!AY343=\"\",\"\",'1. Ordersheet'!AY343)","v":""},{"$f":"IF('1. Ordersheet'!AZ343=\"\",\"\",'1. Ordersheet'!AZ343)","v":""},{"$f":"IF('1. Ordersheet'!BA343=\"\",\"\",'1. Ordersheet'!BA343)","v":""},{"$f":"IF('1. Ordersheet'!BC343=\"\",\"\",'1. Ordersheet'!BC343)","v":""},{"$f":"IF('1. Ordersheet'!BD343=\"\",\"\",'1. Ordersheet'!BD343)","v":""},{"$f":"IF('1. Ordersheet'!BE343=\"\",\"\",'1. Ordersheet'!BE343)","v":""},{"$f":"IF('1. Ordersheet'!BF343=\"\",\"\",'1. Ordersheet'!BF343)","v":""},{"$f":"IF('1. Ordersheet'!BG343=\"\",\"\",'1. Ordersheet'!BG343)","v":"ZWO"},{"$f":"IF('1. Ordersheet'!BH343=\"\",\"\",'1. Ordersheet'!BH343)","v":""},{"$f":"IF('1. Ordersheet'!BI343=\"\",\"\",'1. Ordersheet'!BI343)","v":""},{"$f":"IF('1. Ordersheet'!BJ343=\"\",\"\",'1. Ordersheet'!BJ343)","v":""},{"$f":"IF('1. Ordersheet'!BK343=\"\",\"\",'1. Ordersheet'!BK343)","v":""},{"$f":"IF('1. Ordersheet'!BL343=\"\",\"\",'1. Ordersheet'!BL343)","v":""}]
[{"$f":"IF('1. Ordersheet'!F344=\"\",\"\",'1. Ordersheet'!F344)","v":""},{"$f":"IF('1. Ordersheet'!G344=\"\",\"\",'1. Ordersheet'!G344)","v":""},{"$f":"IF('1. Ordersheet'!H344=\"\",\"\",'1. Ordersheet'!H344)","v":""},{"$f":"IF('1. Ordersheet'!I344=\"\",\"\",'1. Ordersheet'!I344)","v":""},{"$f":"IF('1. Ordersheet'!J344=\"\",\"\",'1. Ordersheet'!J344)","v":""},{"$f":"IF('1. Ordersheet'!K344=\"\",\"\",'1. Ordersheet'!K344)","v":""},{"$f":"IF('1. Ordersheet'!L344=\"\",\"\",'1. Ordersheet'!L344)","v":""},{"$f":"IF('1. Ordersheet'!M344=\"\",\"\",'1. Ordersheet'!M344)","v":""},{"$f":"IF('1. Ordersheet'!N344=\"\",\"\",'1. Ordersheet'!N344)","v":""},{"$f":"IF('1. Ordersheet'!O344=\"\",\"\",'1. Ordersheet'!O344)","v":{"$error":"#N/A"}},{"$f":"IF('1. Ordersheet'!P344=\"\",\"\",'1. Ordersheet'!P344)","v":{"$error":"#N/A"}},{"$f":"IF('1. Ordersheet'!Q344=\"\",\"\",'1. Ordersheet'!Q344)","v":""},{"$f":"IF('1. Ordersheet'!R344=\"\",\"\",'1. Ordersheet'!R344)","v":""},{"$f":"IF('1. Ordersheet'!S344=\"\",\"\",'1. Ordersheet'!S344)","v":""},{"$f":"IF('1. Ordersheet'!V344=\"\",\"\",'1. Ordersheet'!V344)","v":""},{"$f":"IF('1. Ordersheet'!W344=\"\",\"\",'1. Ordersheet'!W344)","v":""},{"$f":"IF('1. Ordersheet'!X344=\"\",\"\",'1. Ordersheet'!X344)","v":""},{"$f":"IF('1. Ordersheet'!Y344=\"\",\"\",'1. Ordersheet'!Y344)","v":""},{"$f":"IF('1. Ordersheet'!Z344=\"\",\"\",'1. Ordersheet'!Z344)","v":""},{"$f":"IF('1. Ordersheet'!AA344=\"\",\"\",'1. Ordersheet'!AA344)","v":""},null,{"$f":"IF('1. Ordersheet'!AS344=\"\",\"\",'1. Ordersheet'!AS344)","v":""},{"$f":"IF('1. Ordersheet'!AT344=\"\",\"\",'1. Ordersheet'!AT344)","v":""},null,null,null,null,null,null,null,{"$f":"IF('1. Ordersheet'!AX344=\"\",\"\",'1. Ordersheet'!AX344)","v":""},{"$f":"IF('1. Ordersheet'!AY344=\"\",\"\",'1. Ordersheet'!AY344)","v":""},{"$f":"IF('1. Ordersheet'!AZ344=\"\",\"\",'1. Ordersheet'!AZ344)","v":""},{"$f":"IF('1. Ordersheet'!BA344=\"\",\"\",'1. Ordersheet'!BA344)","v":""},{"$f":"IF('1. Ordersheet'!BC344=\"\",\"\",'1. Ordersheet'!BC344)","v":""},{"$f":"IF('1. Ordersheet'!BD344=\"\",\"\",'1. Ordersheet'!BD344)","v":""},{"$f":"IF('1. Ordersheet'!BE344=\"\",\"\",'1. Ordersheet'!BE344)","v":""},{"$f":"IF('1. Ordersheet'!BF344=\"\",\"\",'1. Ordersheet'!BF344)","v":""},{"$f":"IF('1. Ordersheet'!BG344=\"\",\"\",'1. Ordersheet'!BG344)","v":"ZWO"},{"$f":"IF('1. Ordersheet'!BH344=\"\",\"\",'1. Ordersheet'!BH344)","v":""},{"$f":"IF('1. Ordersheet'!BI344=\"\",\"\",'1. Ordersheet'!BI344)","v":""},{"$f":"IF('1. Ordersheet'!BJ344=\"\",\"\",'1. Ordersheet'!BJ344)","v":""},{"$f":"IF('1. Ordersheet'!BK344=\"\",\"\",'1. Ordersheet'!BK344)","v":""},{"$f":"IF('1. Ordersheet'!BL344=\"\",\"\",'1. Ordersheet'!BL344)","v":""}]
[{"$f":"IF('1. Ordersheet'!F345=\"\",\"\",'1. Ordersheet'!F345)","v":""},{"$f":"IF('1. Ordersheet'!G345=\"\",\"\",'1. Ordersheet'!G345)","v":""},{"$f":"IF('1. Ordersheet'!H345=\"\",\"\",'1. Ordersheet'!H345)","v":""},{"$f":"IF('1. Ordersheet'!I345=\"\",\"\",'1. Ordersheet'!I345)","v":""},{"$f":"IF('1. Ordersheet'!J345=\"\",\"\",'1. Ordersheet'!J345)","v":""},{"$f":"IF('1. Ordersheet'!K345=\"\",\"\",'1. Ordersheet'!K345)","v":""},{"$f":"IF('1. Ordersheet'!L345=\"\",\"\",'1. Ordersheet'!L345)","v":""},{"$f":"IF('1. Ordersheet'!M345=\"\",\"\",'1. Ordersheet'!M345)","v":""},{"$f":"IF('1. Ordersheet'!N345=\"\",\"\",'1. Ordersheet'!N345)","v":""},{"$f":"IF('1. Ordersheet'!O345=\"\",\"\",'1. Ordersheet'!O345)","v":{"$error":"#N/A"}},{"$f":"IF('1. Ordersheet'!P345=\"\",\"\",'1. Ordersheet'!P345)","v":{"$error":"#N/A"}},{"$f":"IF('1. Ordersheet'!Q345=\"\",\"\",'1. Ordersheet'!Q345)","v":""},{"$f":"IF('1. Ordersheet'!R345=\"\",\"\",'1. Ordersheet'!R345)","v":""},{"$f":"IF('1. Ordersheet'!S345=\"\",\"\",'1. Ordersheet'!S345)","v":""},{"$f":"IF('1. Ordersheet'!V345=\"\",\"\",'1. Ordersheet'!V345)","v":""},{"$f":"IF('1. Ordersheet'!W345=\"\",\"\",'1. Ordersheet'!W345)","v":""},{"$f":"IF('1. Ordersheet'!X345=\"\",\"\",'1. Ordersheet'!X345)","v":""},{"$f":"IF('1. Ordersheet'!Y345=\"\",\"\",'1. Ordersheet'!Y345)","v":""},{"$f":"IF('1. Ordersheet'!Z345=\"\",\"\",'1. Ordersheet'!Z345)","v":""},{"$f":"IF('1. Ordersheet'!AA345=\"\",\"\",'1. Ordersheet'!AA345)","v":""},null,{"$f":"IF('1. Ordersheet'!AS345=\"\",\"\",'1. Ordersheet'!AS345)","v":""},{"$f":"IF('1. Ordersheet'!AT345=\"\",\"\",'1. Ordersheet'!AT345)","v":""},null,null,null,null,null,null,null,{"$f":"IF('1. Ordersheet'!AX345=\"\",\"\",'1. Ordersheet'!AX345)","v":""},{"$f":"IF('1. Ordersheet'!AY345=\"\",\"\",'1. Ordersheet'!AY345)","v":""},{"$f":"IF('1. Ordersheet'!AZ345=\"\",\"\",'1. Ordersheet'!AZ345)","v":""},{"$f":"IF('1. Ordersheet'!BA345=\"\",\"\",'1. Ordersheet'!BA345)","v":""},{"$f":"IF('1. Ordersheet'!BC345=\"\",\"\",'1. Ordersheet'!BC345)","v":""},{"$f":"IF('1. Ordersheet'!BD345=\"\",\"\",'1. Ordersheet'!BD345)","v":""},{"$f":"IF('1. Ordersheet'!BE345=\"\",\"\",'1. Ordersheet'!BE345)","v":""},{"$f":"IF('1. Ordersheet'!BF345=\"\",\"\",'1. Ordersheet'!BF345)","v":""},{"$f":"IF('1. Ordersheet'!BG345=\"\",\"\",'1. Ordersheet'!BG345)","v":"ZWO"},{"$f":"IF('1. Ordersheet'!BH345=\"\",\"\",'1. Ordersheet'!BH345)","v":""},{"$f":"IF('1. Ordersheet'!BI345=\"\",\"\",'1. Ordersheet'!BI345)","v":""},{"$f":"IF('1. Ordersheet'!BJ345=\"\",\"\",'1. Ordersheet'!BJ345)","v":""},{"$f":"IF('1. Ordersheet'!BK345=\"\",\"\",'1. Ordersheet'!BK345)","v":""},{"$f":"IF('1. Ordersheet'!BL345=\"\",\"\",'1. Ordersheet'!BL345)","v":""}]
[{"$f":"IF('1. Ordersheet'!F346=\"\",\"\",'1. Ordersheet'!F346)","v":""},{"$f":"IF('1. Ordersheet'!G346=\"\",\"\",'1. Ordersheet'!G346)","v":""},{"$f":"IF('1. Ordersheet'!H346=\"\",\"\",'1. Ordersheet'!H346)","v":""},{"$f":"IF('1. Ordersheet'!I346=\"\",\"\",'1. Ordersheet'!I346)","v":""},{"$f":"IF('1. Ordersheet'!J346=\"\",\"\",'1. Ordersheet'!J346)","v":""},{"$f":"IF('1. Ordersheet'!K346=\"\",\"\",'1. Ordersheet'!K346)","v":""},{"$f":"IF('1. Ordersheet'!L346=\"\",\"\",'1. Ordersheet'!L346)","v":""},{"$f":"IF('1. Ordersheet'!M346=\"\",\"\",'1. Ordersheet'!M346)","v":""},{"$f":"IF('1. Ordersheet'!N346=\"\",\"\",'1. Ordersheet'!N346)","v":""},{"$f":"IF('1. Ordersheet'!O346=\"\",\"\",'1. Ordersheet'!O346)","v":{"$error":"#N/A"}},{"$f":"IF('1. Ordersheet'!P346=\"\",\"\",'1. Ordersheet'!P346)","v":{"$error":"#N/A"}},{"$f":"IF('1. Ordersheet'!Q346=\"\",\"\",'1. Ordersheet'!Q346)","v":""},{"$f":"IF('1. Ordersheet'!R346=\"\",\"\",'1. Ordersheet'!R346)","v":""},{"$f":"IF('1. Ordersheet'!S346=\"\",\"\",'1. Ordersheet'!S346)","v":""},{"$f":"IF('1. Ordersheet'!V346=\"\",\"\",'1. Ordersheet'!V346)","v":""},{"$f":"IF('1. Ordersheet'!W346=\"\",\"\",'1. Ordersheet'!W346)","v":""},{"$f":"IF('1. Ordersheet'!X346=\"\",\"\",'1. Ordersheet'!X346)","v":""},{"$f":"IF('1. Ordersheet'!Y346=\"\",\"\",'1. Ordersheet'!Y346)","v":""},{"$f":"IF('1. Ordersheet'!Z346=\"\",\"\",'1. Ordersheet'!Z346)","v":""},{"$f":"IF('1. Ordersheet'!AA346=\"\",\"\",'1. Ordersheet'!AA346)","v":""},null,{"$f":"IF('1. Ordersheet'!AS346=\"\",\"\",'1. Ordersheet'!AS346)","v":""},{"$f":"IF('1. Ordersheet'!AT346=\"\",\"\",'1. Ordersheet'!AT346)","v":""},null,null,null,null,null,null,null,{"$f":"IF('1. Ordersheet'!AX346=\"\",\"\",'1. Ordersheet'!AX346)","v":""},{"$f":"IF('1. Ordersheet'!AY346=\"\",\"\",'1. Ordersheet'!AY346)","v":""},{"$f":"IF('1. Ordersheet'!AZ346=\"\",\"\",'1. Ordersheet'!AZ346)","v":""},{"$f":"IF('1. Ordersheet'!BA346=\"\",\"\",'1. Ordersheet'!BA346)","v":""},{"$f":"IF('1. Ordersheet'!BC346=\"\",\"\",'1. Ordersheet'!BC346)","v":""},{"$f":"IF('1. Ordersheet'!BD346=\"\",\"\",'1. Ordersheet'!BD346)","v":""},{"$f":"IF('1. Ordersheet'!BE346=\"\",\"\",'1. Ordersheet'!BE346)","v":""},{"$f":"IF('1. Ordersheet'!BF346=\"\",\"\",'1. Ordersheet'!BF346)","v":""},{"$f":"IF('1. Ordersheet'!BG346=\"\",\"\",'1. Ordersheet'!BG346)","v":"ZWO"},{"$f":"IF('1. Ordersheet'!BH346=\"\",\"\",'1. Ordersheet'!BH346)","v":""},{"$f":"IF('1. Ordersheet'!BI346=\"\",\"\",'1. Ordersheet'!BI346)","v":""},{"$f":"IF('1. Ordersheet'!BJ346=\"\",\"\",'1. Ordersheet'!BJ346)","v":""},{"$f":"IF('1. Ordersheet'!BK346=\"\",\"\",'1. Ordersheet'!BK346)","v":""},{"$f":"IF('1. Ordersheet'!BL346=\"\",\"\",'1. Ordersheet'!BL346)","v":""}]
[{"$f":"IF('1. Ordersheet'!F347=\"\",\"\",'1. Ordersheet'!F347)","v":""},{"$f":"IF('1. Ordersheet'!G347=\"\",\"\",'1. Ordersheet'!G347)","v":""},{"$f":"IF('1. Ordersheet'!H347=\"\",\"\",'1. Ordersheet'!H347)","v":""},{"$f":"IF('1. Ordersheet'!I347=\"\",\"\",'1. Ordersheet'!I347)","v":""},{"$f":"IF('1. Ordersheet'!J347=\"\",\"\",'1. Ordersheet'!J347)","v":""},{"$f":"IF('1. Ordersheet'!K347=\"\",\"\",'1. Ordersheet'!K347)","v":""},{"$f":"IF('1. Ordersheet'!L347=\"\",\"\",'1. Ordersheet'!L347)","v":""},{"$f":"IF('1. Ordersheet'!M347=\"\",\"\",'1. Ordersheet'!M347)","v":""},{"$f":"IF('1. Ordersheet'!N347=\"\",\"\",'1. Ordersheet'!N347)","v":""},{"$f":"IF('1. Ordersheet'!O347=\"\",\"\",'1. Ordersheet'!O347)","v":{"$error":"#N/A"}},{"$f":"IF('1. Ordersheet'!P347=\"\",\"\",'1. Ordersheet'!P347)","v":{"$error":"#N/A"}},{"$f":"IF('1. Ordersheet'!Q347=\"\",\"\",'1. Ordersheet'!Q347)","v":""},{"$f":"IF('1. Ordersheet'!R347=\"\",\"\",'1. Ordersheet'!R347)","v":""},{"$f":"IF('1. Ordersheet'!S347=\"\",\"\",'1. Ordersheet'!S347)","v":""},{"$f":"IF('1. Ordersheet'!V347=\"\",\"\",'1. Ordersheet'!V347)","v":""},{"$f":"IF('1. Ordersheet'!W347=\"\",\"\",'1. Ordersheet'!W347)","v":""},{"$f":"IF('1. Ordersheet'!X347=\"\",\"\",'1. Ordersheet'!X347)","v":""},{"$f":"IF('1. Ordersheet'!Y347=\"\",\"\",'1. Ordersheet'!Y347)","v":""},{"$f":"IF('1. Ordersheet'!Z347=\"\",\"\",'1. Ordersheet'!Z347)","v":""},{"$f":"IF('1. Ordersheet'!AA347=\"\",\"\",'1. Ordersheet'!AA347)","v":""},null,{"$f":"IF('1. Ordersheet'!AS347=\"\",\"\",'1. Ordersheet'!AS347)","v":""},{"$f":"IF('1. Ordersheet'!AT347=\"\",\"\",'1. Ordersheet'!AT347)","v":""},null,null,null,null,null,null,null,{"$f":"IF('1. Ordersheet'!AX347=\"\",\"\",'1. Ordersheet'!AX347)","v":""},{"$f":"IF('1. Ordersheet'!AY347=\"\",\"\",'1. Ordersheet'!AY347)","v":""},{"$f":"IF('1. Ordersheet'!AZ347=\"\",\"\",'1. Ordersheet'!AZ347)","v":""},{"$f":"IF('1. Ordersheet'!BA347=\"\",\"\",'1. Ordersheet'!BA347)","v":""},{"$f":"IF('1. Ordersheet'!BC347=\"\",\"\",'1. Ordersheet'!BC347)","v":""},{"$f":"IF('1. Ordersheet'!BD347=\"\",\"\",'1. Ordersheet'!BD347)","v":""},{"$f":"IF('1. Ordersheet'!BE347=\"\",\"\",'1. Ordersheet'!BE347)","v":""},{"$f":"IF('1. Ordersheet'!BF347=\"\",\"\",'1. Ordersheet'!BF347)","v":""},{"$f":"IF('1. Ordersheet'!BG347=\"\",\"\",'1. Ordersheet'!BG347)","v":"ZWO"},{"$f":"IF('1. Ordersheet'!BH347=\"\",\"\",'1. Ordersheet'!BH347)","v":""},{"$f":"IF('1. Ordersheet'!BI347=\"\",\"\",'1. Ordersheet'!BI347)","v":""},{"$f":"IF('1. Ordersheet'!BJ347=\"\",\"\",'1. Ordersheet'!BJ347)","v":""},{"$f":"IF('1. Ordersheet'!BK347=\"\",\"\",'1. Ordersheet'!BK347)","v":""},{"$f":"IF('1. Ordersheet'!BL347=\"\",\"\",'1. Ordersheet'!BL347)","v":""}]
[{"$f":"IF('1. Ordersheet'!F348=\"\",\"\",'1. Ordersheet'!F348)","v":""},{"$f":"IF('1. Ordersheet'!G348=\"\",\"\",'1. Ordersheet'!G348)","v":""},{"$f":"IF('1. Ordersheet'!H348=\"\",\"\",'1. Ordersheet'!H348)","v":""},{"$f":"IF('1. Ordersheet'!I348=\"\",\"\",'1. Ordersheet'!I348)","v":""},{"$f":"IF('1. Ordersheet'!J348=\"\",\"\",'1. Ordersheet'!J348)","v":""},{"$f":"IF('1. Ordersheet'!K348=\"\",\"\",'1. Ordersheet'!K348)","v":""},{"$f":"IF('1. Ordersheet'!L348=\"\",\"\",'1. Ordersheet'!L348)","v":""},{"$f":"IF('1. Ordersheet'!M348=\"\",\"\",'1. Ordersheet'!M348)","v":""},{"$f":"IF('1. Ordersheet'!N348=\"\",\"\",'1. Ordersheet'!N348)","v":""},{"$f":"IF('1. Ordersheet'!O348=\"\",\"\",'1. Ordersheet'!O348)","v":{"$error":"#N/A"}},{"$f":"IF('1. Ordersheet'!P348=\"\",\"\",'1. Ordersheet'!P348)","v":{"$error":"#N/A"}},{"$f":"IF('1. Ordersheet'!Q348=\"\",\"\",'1. Ordersheet'!Q348)","v":""},{"$f":"IF('1. Ordersheet'!R348=\"\",\"\",'1. Ordersheet'!R348)","v":""},{"$f":"IF('1. Ordersheet'!S348=\"\",\"\",'1. Ordersheet'!S348)","v":""},{"$f":"IF('1. Ordersheet'!V348=\"\",\"\",'1. Ordersheet'!V348)","v":""},{"$f":"IF('1. Ordersheet'!W348=\"\",\"\",'1. Ordersheet'!W348)","v":""},{"$f":"IF('1. Ordersheet'!X348=\"\",\"\",'1. Ordersheet'!X348)","v":""},{"$f":"IF('1. Ordersheet'!Y348=\"\",\"\",'1. Ordersheet'!Y348)","v":""},{"$f":"IF('1. Ordersheet'!Z348=\"\",\"\",'1. Ordersheet'!Z348)","v":""},{"$f":"IF('1. Ordersheet'!AA348=\"\",\"\",'1. Ordersheet'!AA348)","v":""},null,{"$f":"IF('1. Ordersheet'!AS348=\"\",\"\",'1. Ordersheet'!AS348)","v":""},{"$f":"IF('1. Ordersheet'!AT348=\"\",\"\",'1. Ordersheet'!AT348)","v":""},null,null,null,null,null,null,null,{"$f":"IF('1. Ordersheet'!AX348=\"\",\"\",'1. Ordersheet'!AX348)","v":""},{"$f":"IF('1. Ordersheet'!AY348=\"\",\"\",'1. Ordersheet'!AY348)","v":""},{"$f":"IF('1. Ordersheet'!AZ348=\"\",\"\",'1. Ordersheet'!AZ348)","v":""},{"$f":"IF('1. Ordersheet'!BA348=\"\",\"\",'1. Ordersheet'!BA348)","v":""},{"$f":"IF('1. Ordersheet'!BC348=\"\",\"\",'1. Ordersheet'!BC348)","v":""},{"$f":"IF('1. Ordersheet'!BD348=\"\",\"\",'1. Ordersheet'!BD348)","v":""},{"$f":"IF('1. Ordersheet'!BE348=\"\",\"\",'1. Ordersheet'!BE348)","v":""},{"$f":"IF('1. Ordersheet'!BF348=\"\",\"\",'1. Ordersheet'!BF348)","v":""},{"$f":"IF('1. Ordersheet'!BG348=\"\",\"\",'1. Ordersheet'!BG348)","v":"ZWO"},{"$f":"IF('1. Ordersheet'!BH348=\"\",\"\",'1. Ordersheet'!BH348)","v":""},{"$f":"IF('1. Ordersheet'!BI348=\"\",\"\",'1. Ordersheet'!BI348)","v":""},{"$f":"IF('1. Ordersheet'!BJ348=\"\",\"\",'1. Ordersheet'!BJ348)","v":""},{"$f":"IF('1. Ordersheet'!BK348=\"\",\"\",'1. Ordersheet'!BK348)","v":""},{"$f":"IF('1. Ordersheet'!BL348=\"\",\"\",'1. Ordersheet'!BL348)","v":""}]
[{"$f":"IF('1. Ordersheet'!F349=\"\",\"\",'1. Ordersheet'!F349)","v":""},{"$f":"IF('1. Ordersheet'!G349=\"\",\"\",'1. Ordersheet'!G349)","v":""},{"$f":"IF('1. Ordersheet'!H349=\"\",\"\",'1. Ordersheet'!H349)","v":""},{"$f":"IF('1. Ordersheet'!I349=\"\",\"\",'1. Ordersheet'!I349)","v":""},{"$f":"IF('1. Ordersheet'!J349=\"\",\"\",'1. Ordersheet'!J349)","v":""},{"$f":"IF('1. Ordersheet'!K349=\"\",\"\",'1. Ordersheet'!K349)","v":""},{"$f":"IF('1. Ordersheet'!L349=\"\",\"\",'1. Ordersheet'!L349)","v":""},{"$f":"IF('1. Ordersheet'!M349=\"\",\"\",'1. Ordersheet'!M349)","v":""},{"$f":"IF('1. Ordersheet'!N349=\"\",\"\",'1. Ordersheet'!N349)","v":""},{"$f":"IF('1. Ordersheet'!O349=\"\",\"\",'1. Ordersheet'!O349)","v":{"$error":"#N/A"}},{"$f":"IF('1. Ordersheet'!P349=\"\",\"\",'1. Ordersheet'!P349)","v":{"$error":"#N/A"}},{"$f":"IF('1. Ordersheet'!Q349=\"\",\"\",'1. Ordersheet'!Q349)","v":""},{"$f":"IF('1. Ordersheet'!R349=\"\",\"\",'1. Ordersheet'!R349)","v":""},{"$f":"IF('1. Ordersheet'!S349=\"\",\"\",'1. Ordersheet'!S349)","v":""},{"$f":"IF('1. Ordersheet'!V349=\"\",\"\",'1. Ordersheet'!V349)","v":""},{"$f":"IF('1. Ordersheet'!W349=\"\",\"\",'1. Ordersheet'!W349)","v":""},{"$f":"IF('1. Ordersheet'!X349=\"\",\"\",'1. Ordersheet'!X349)","v":""},{"$f":"IF('1. Ordersheet'!Y349=\"\",\"\",'1. Ordersheet'!Y349)","v":""},{"$f":"IF('1. Ordersheet'!Z349=\"\",\"\",'1. Ordersheet'!Z349)","v":""},{"$f":"IF('1. Ordersheet'!AA349=\"\",\"\",'1. Ordersheet'!AA349)","v":""},null,{"$f":"IF('1. Ordersheet'!AS349=\"\",\"\",'1. Ordersheet'!AS349)","v":""},{"$f":"IF('1. Ordersheet'!AT349=\"\",\"\",'1. Ordersheet'!AT349)","v":""},null,null,null,null,null,null,null,{"$f":"IF('1. Ordersheet'!AX349=\"\",\"\",'1. Ordersheet'!AX349)","v":""},{"$f":"IF('1. Ordersheet'!AY349=\"\",\"\",'1. Ordersheet'!AY349)","v":""},{"$f":"IF('1. Ordersheet'!AZ349=\"\",\"\",'1. Ordersheet'!AZ349)","v":""},{"$f":"IF('1. Ordersheet'!BA349=\"\",\"\",'1. Ordersheet'!BA349)","v":""},{"$f":"IF('1. Ordersheet'!BC349=\"\",\"\",'1. Ordersheet'!BC349)","v":""},{"$f":"IF('1. Ordersheet'!BD349=\"\",\"\",'1. Ordersheet'!BD349)","v":""},{"$f":"IF('1. Ordersheet'!BE349=\"\",\"\",'1. Ordersheet'!BE349)","v":""},{"$f":"IF('1. Ordersheet'!BF349=\"\",\"\",'1. Ordersheet'!BF349)","v":""},{"$f":"IF('1. Ordersheet'!BG349=\"\",\"\",'1. Ordersheet'!BG349)","v":"ZWO"},{"$f":"IF('1. Ordersheet'!BH349=\"\",\"\",'1. Ordersheet'!BH349)","v":""},{"$f":"IF('1. Ordersheet'!BI349=\"\",\"\",'1. Ordersheet'!BI349)","v":""},{"$f":"IF('1. Ordersheet'!BJ349=\"\",\"\",'1. Ordersheet'!BJ349)","v":""},{"$f":"IF('1. Ordersheet'!BK349=\"\",\"\",'1. Ordersheet'!BK349)","v":""},{"$f":"IF('1. Ordersheet'!BL349=\"\",\"\",'1. Ordersheet'!BL349)","v":""}]
[{"$f":"IF('1. Ordersheet'!F350=\"\",\"\",'1. Ordersheet'!F350)","v":""},{"$f":"IF('1. Ordersheet'!G350=\"\",\"\",'1. Ordersheet'!G350)","v":""},{"$f":"IF('1. Ordersheet'!H350=\"\",\"\",'1. Ordersheet'!H350)","v":""},{"$f":"IF('1. Ordersheet'!I350=\"\",\"\",'1. Ordersheet'!I350)","v":""},{"$f":"IF('1. Ordersheet'!J350=\"\",\"\",'1. Ordersheet'!J350)","v":""},{"$f":"IF('1. Ordersheet'!K350=\"\",\"\",'1. Ordersheet'!K350)","v":""},{"$f":"IF('1. Ordersheet'!L350=\"\",\"\",'1. Ordersheet'!L350)","v":""},{"$f":"IF('1. Ordersheet'!M350=\"\",\"\",'1. Ordersheet'!M350)","v":""},{"$f":"IF('1. Ordersheet'!N350=\"\",\"\",'1. Ordersheet'!N350)","v":""},{"$f":"IF('1. Ordersheet'!O350=\"\",\"\",'1. Ordersheet'!O350)","v":{"$error":"#N/A"}},{"$f":"IF('1. Ordersheet'!P350=\"\",\"\",'1. Ordersheet'!P350)","v":{"$error":"#N/A"}},{"$f":"IF('1. Ordersheet'!Q350=\"\",\"\",'1. Ordersheet'!Q350)","v":""},{"$f":"IF('1. Ordersheet'!R350=\"\",\"\",'1. Ordersheet'!R350)","v":""},{"$f":"IF('1. Ordersheet'!S350=\"\",\"\",'1. Ordersheet'!S350)","v":""},{"$f":"IF('1. Ordersheet'!V350=\"\",\"\",'1. Ordersheet'!V350)","v":""},{"$f":"IF('1. Ordersheet'!W350=\"\",\"\",'1. Ordersheet'!W350)","v":""},{"$f":"IF('1. Ordersheet'!X350=\"\",\"\",'1. Ordersheet'!X350)","v":""},{"$f":"IF('1. Ordersheet'!Y350=\"\",\"\",'1. Ordersheet'!Y350)","v":""},{"$f":"IF('1. Ordersheet'!Z350=\"\",\"\",'1. Ordersheet'!Z350)","v":""},{"$f":"IF('1. Ordersheet'!AA350=\"\",\"\",'1. Ordersheet'!AA350)","v":""},null,{"$f":"IF('1. Ordersheet'!AS350=\"\",\"\",'1. Ordersheet'!AS350)","v":""},{"$f":"IF('1. Ordersheet'!AT350=\"\",\"\",'1. Ordersheet'!AT350)","v":""},null,null,null,null,null,null,null,{"$f":"IF('1. Ordersheet'!AX350=\"\",\"\",'1. Ordersheet'!AX350)","v":""},{"$f":"IF('1. Ordersheet'!AY350=\"\",\"\",'1. Ordersheet'!AY350)","v":""},{"$f":"IF('1. Ordersheet'!AZ350=\"\",\"\",'1. Ordersheet'!AZ350)","v":""},{"$f":"IF('1. Ordersheet'!BA350=\"\",\"\",'1. Ordersheet'!BA350)","v":""},{"$f":"IF('1. Ordersheet'!BC350=\"\",\"\",'1. Ordersheet'!BC350)","v":""},{"$f":"IF('1. Ordersheet'!BD350=\"\",\"\",'1. Ordersheet'!BD350)","v":""},{"$f":"IF('1. Ordersheet'!BE350=\"\",\"\",'1. Ordersheet'!BE350)","v":""},{"$f":"IF('1. Ordersheet'!BF350=\"\",\"\",'1. Ordersheet'!BF350)","v":""},{"$f":"IF('1. Ordersheet'!BG350=\"\",\"\",'1. Ordersheet'!BG350)","v":"ZWO"},{"$f":"IF('1. Ordersheet'!BH350=\"\",\"\",'1. Ordersheet'!BH350)","v":""},{"$f":"IF('1. Ordersheet'!BI350=\"\",\"\",'1. Ordersheet'!BI350)","v":""},{"$f":"IF('1. Ordersheet'!BJ350=\"\",\"\",'1. Ordersheet'!BJ350)","v":""},{"$f":"IF('1. Ordersheet'!BK350=\"\",\"\",'1. Ordersheet'!BK350)","v":""},{"$f":"IF('1. Ordersheet'!BL350=\"\",\"\",'1. Ordersheet'!BL350)","v":""}]
[{"$f":"IF('1. Ordersheet'!F351=\"\",\"\",'1. Ordersheet'!F351)","v":""},{"$f":"IF('1. Ordersheet'!G351=\"\",\"\",'1. Ordersheet'!G351)","v":""},{"$f":"IF('1. Ordersheet'!H351=\"\",\"\",'1. Ordersheet'!H351)","v":""},{"$f":"IF('1. Ordersheet'!I351=\"\",\"\",'1. Ordersheet'!I351)","v":""},{"$f":"IF('1. Ordersheet'!J351=\"\",\"\",'1. Ordersheet'!J351)","v":""},{"$f":"IF('1. Ordersheet'!K351=\"\",\"\",'1. Ordersheet'!K351)","v":""},{"$f":"IF('1. Ordersheet'!L351=\"\",\"\",'1. Ordersheet'!L351)","v":""},{"$f":"IF('1. Ordersheet'!M351=\"\",\"\",'1. Ordersheet'!M351)","v":""},{"$f":"IF('1. Ordersheet'!N351=\"\",\"\",'1. Ordersheet'!N351)","v":""},{"$f":"IF('1. Ordersheet'!O351=\"\",\"\",'1. Ordersheet'!O351)","v":{"$error":"#N/A"}},{"$f":"IF('1. Ordersheet'!P351=\"\",\"\",'1. Ordersheet'!P351)","v":{"$error":"#N/A"}},{"$f":"IF('1. Ordersheet'!Q351=\"\",\"\",'1. Ordersheet'!Q351)","v":""},{"$f":"IF('1. Ordersheet'!R351=\"\",\"\",'1. Ordersheet'!R351)","v":""},{"$f":"IF('1. Ordersheet'!S351=\"\",\"\",'1. Ordersheet'!S351)","v":""},{"$f":"IF('1. Ordersheet'!V351=\"\",\"\",'1. Ordersheet'!V351)","v":""},{"$f":"IF('1. Ordersheet'!W351=\"\",\"\",'1. Ordersheet'!W351)","v":""},{"$f":"IF('1. Ordersheet'!X351=\"\",\"\",'1. Ordersheet'!X351)","v":""},{"$f":"IF('1. Ordersheet'!Y351=\"\",\"\",'1. Ordersheet'!Y351)","v":""},{"$f":"IF('1. Ordersheet'!Z351=\"\",\"\",'1. Ordersheet'!Z351)","v":""},{"$f":"IF('1. Ordersheet'!AA351=\"\",\"\",'1. Ordersheet'!AA351)","v":""},null,{"$f":"IF('1. Ordersheet'!AS351=\"\",\"\",'1. Ordersheet'!AS351)","v":""},{"$f":"IF('1. Ordersheet'!AT351=\"\",\"\",'1. Ordersheet'!AT351)","v":""},null,null,null,null,null,null,null,{"$f":"IF('1. Ordersheet'!AX351=\"\",\"\",'1. Ordersheet'!AX351)","v":""},{"$f":"IF('1. Ordersheet'!AY351=\"\",\"\",'1. Ordersheet'!AY351)","v":""},{"$f":"IF('1. Ordersheet'!AZ351=\"\",\"\",'1. Ordersheet'!AZ351)","v":""},{"$f":"IF('1. Ordersheet'!BA351=\"\",\"\",'1. Ordersheet'!BA351)","v":""},{"$f":"IF('1. Ordersheet'!BC351=\"\",\"\",'1. Ordersheet'!BC351)","v":""},{"$f":"IF('1. Ordersheet'!BD351=\"\",\"\",'1. Ordersheet'!BD351)","v":""},{"$f":"IF('1. Ordersheet'!BE351=\"\",\"\",'1. Ordersheet'!BE351)","v":""},{"$f":"IF('1. Ordersheet'!BF351=\"\",\"\",'1. Ordersheet'!BF351)","v":""},{"$f":"IF('1. Ordersheet'!BG351=\"\",\"\",'1. Ordersheet'!BG351)","v":"ZWO"},{"$f":"IF('1. Ordersheet'!BH351=\"\",\"\",'1. Ordersheet'!BH351)","v":""},{"$f":"IF('1. Ordersheet'!BI351=\"\",\"\",'1. Ordersheet'!BI351)","v":""},{"$f":"IF('1. Ordersheet'!BJ351=\"\",\"\",'1. Ordersheet'!BJ351)","v":""},{"$f":"IF('1. Ordersheet'!BK351=\"\",\"\",'1. Ordersheet'!BK351)","v":""},{"$f":"IF('1. Ordersheet'!BL351=\"\",\"\",'1. Ordersheet'!BL351)","v":""}]
[{"$f":"IF('1. Ordersheet'!F352=\"\",\"\",'1. Ordersheet'!F352)","v":""},{"$f":"IF('1. Ordersheet'!G352=\"\",\"\",'1. Ordersheet'!G352)","v":""},{"$f":"IF('1. Ordersheet'!H352=\"\",\"\",'1. Ordersheet'!H352)","v":""},{"$f":"IF('1. Ordersheet'!I352=\"\",\"\",'1. Ordersheet'!I352)","v":""},{"$f":"IF('1. Ordersheet'!J352=\"\",\"\",'1. Ordersheet'!J352)","v":""},{"$f":"IF('1. Ordersheet'!K352=\"\",\"\",'1. Ordersheet'!K352)","v":""},{"$f":"IF('1. Ordersheet'!L352=\"\",\"\",'1. Ordersheet'!L352)","v":""},{"$f":"IF('1. Ordersheet'!M352=\"\",\"\",'1. Ordersheet'!M352)","v":""},{"$f":"IF('1. Ordersheet'!N352=\"\",\"\",'1. Ordersheet'!N352)","v":""},{"$f":"IF('1. Ordersheet'!O352=\"\",\"\",'1. Ordersheet'!O352)","v":{"$error":"#N/A"}},{"$f":"IF('1. Ordersheet'!P352=\"\",\"\",'1. Ordersheet'!P352)","v":{"$error":"#N/A"}},{"$f":"IF('1. Ordersheet'!Q352=\"\",\"\",'1. Ordersheet'!Q352)","v":""},{"$f":"IF('1. Ordersheet'!R352=\"\",\"\",'1. Ordersheet'!R352)","v":""},{"$f":"IF('1. Ordersheet'!S352=\"\",\"\",'1. Ordersheet'!S352)","v":""},{"$f":"IF('1. Ordersheet'!V352=\"\",\"\",'1. Ordersheet'!V352)","v":""},{"$f":"IF('1. Ordersheet'!W352=\"\",\"\",'1. Ordersheet'!W352)","v":""},{"$f":"IF('1. Ordersheet'!X352=\"\",\"\",'1. Ordersheet'!X352)","v":""},{"$f":"IF('1. Ordersheet'!Y352=\"\",\"\",'1. Ordersheet'!Y352)","v":""},{"$f":"IF('1. Ordersheet'!Z352=\"\",\"\",'1. Ordersheet'!Z352)","v":""},{"$f":"IF('1. Ordersheet'!AA352=\"\",\"\",'1. Ordersheet'!AA352)","v":""},null,{"$f":"IF('1. Ordersheet'!AS352=\"\",\"\",'1. Ordersheet'!AS352)","v":""},{"$f":"IF('1. Ordersheet'!AT352=\"\",\"\",'1. Ordersheet'!AT352)","v":""},null,null,null,null,null,null,null,{"$f":"IF('1. Ordersheet'!AX352=\"\",\"\",'1. Ordersheet'!AX352)","v":""},{"$f":"IF('1. Ordersheet'!AY352=\"\",\"\",'1. Ordersheet'!AY352)","v":""},{"$f":"IF('1. Ordersheet'!AZ352=\"\",\"\",'1. Ordersheet'!AZ352)","v":""},{"$f":"IF('1. Ordersheet'!BA352=\"\",\"\",'1. Ordersheet'!BA352)","v":""},{"$f":"IF('1. Ordersheet'!BC352=\"\",\"\",'1. Ordersheet'!BC352)","v":""},{"$f":"IF('1. Ordersheet'!BD352=\"\",\"\",'1. Ordersheet'!BD352)","v":""},{"$f":"IF('1. Ordersheet'!BE352=\"\",\"\",'1. Ordersheet'!BE352)","v":""},{"$f":"IF('1. Ordersheet'!BF352=\"\",\"\",'1. Ordersheet'!BF352)","v":""},{"$f":"IF('1. Ordersheet'!BG352=\"\",\"\",'1. Ordersheet'!BG352)","v":"ZWO"},{"$f":"IF('1. Ordersheet'!BH352=\"\",\"\",'1. Ordersheet'!BH352)","v":""},{"$f":"IF('1. Ordersheet'!BI352=\"\",\"\",'1. Ordersheet'!BI352)","v":""},{"$f":"IF('1. Ordersheet'!BJ352=\"\",\"\",'1. Ordersheet'!BJ352)","v":""},{"$f":"IF('1. Ordersheet'!BK352=\"\",\"\",'1. Ordersheet'!BK352)","v":""},{"$f":"IF('1. Ordersheet'!BL352=\"\",\"\",'1. Ordersheet'!BL352)","v":""}]
[{"$f":"IF('1. Ordersheet'!F353=\"\",\"\",'1. Ordersheet'!F353)","v":""},{"$f":"IF('1. Ordersheet'!G353=\"\",\"\",'1. Ordersheet'!G353)","v":""},{"$f":"IF('1. Ordersheet'!H353=\"\",\"\",'1. Ordersheet'!H353)","v":""},{"$f":"IF('1. Ordersheet'!I353=\"\",\"\",'1. Ordersheet'!I353)","v":""},{"$f":"IF('1. Ordersheet'!J353=\"\",\"\",'1. Ordersheet'!J353)","v":""},{"$f":"IF('1. Ordersheet'!K353=\"\",\"\",'1. Ordersheet'!K353)","v":""},{"$f":"IF('1. Ordersheet'!L353=\"\",\"\",'1. Ordersheet'!L353)","v":""},{"$f":"IF('1. Ordersheet'!M353=\"\",\"\",'1. Ordersheet'!M353)","v":""},{"$f":"IF('1. Ordersheet'!N353=\"\",\"\",'1. Ordersheet'!N353)","v":""},{"$f":"IF('1. Ordersheet'!O353=\"\",\"\",'1. Ordersheet'!O353)","v":{"$error":"#N/A"}},{"$f":"IF('1. Ordersheet'!P353=\"\",\"\",'1. Ordersheet'!P353)","v":{"$error":"#N/A"}},{"$f":"IF('1. Ordersheet'!Q353=\"\",\"\",'1. Ordersheet'!Q353)","v":""},{"$f":"IF('1. Ordersheet'!R353=\"\",\"\",'1. Ordersheet'!R353)","v":""},{"$f":"IF('1. Ordersheet'!S353=\"\",\"\",'1. Ordersheet'!S353)","v":""},{"$f":"IF('1. Ordersheet'!V353=\"\",\"\",'1. Ordersheet'!V353)","v":""},{"$f":"IF('1. Ordersheet'!W353=\"\",\"\",'1. Ordersheet'!W353)","v":""},{"$f":"IF('1. Ordersheet'!X353=\"\",\"\",'1. Ordersheet'!X353)","v":""},{"$f":"IF('1. Ordersheet'!Y353=\"\",\"\",'1. Ordersheet'!Y353)","v":""},{"$f":"IF('1. Ordersheet'!Z353=\"\",\"\",'1. Ordersheet'!Z353)","v":""},{"$f":"IF('1. Ordersheet'!AA353=\"\",\"\",'1. Ordersheet'!AA353)","v":""},null,{"$f":"IF('1. Ordersheet'!AS353=\"\",\"\",'1. Ordersheet'!AS353)","v":""},{"$f":"IF('1. Ordersheet'!AT353=\"\",\"\",'1. Ordersheet'!AT353)","v":""},null,null,null,null,null,null,null,{"$f":"IF('1. Ordersheet'!AX353=\"\",\"\",'1. Ordersheet'!AX353)","v":""},{"$f":"IF('1. Ordersheet'!AY353=\"\",\"\",'1. Ordersheet'!AY353)","v":""},{"$f":"IF('1. Ordersheet'!AZ353=\"\",\"\",'1. Ordersheet'!AZ353)","v":""},{"$f":"IF('1. Ordersheet'!BA353=\"\",\"\",'1. Ordersheet'!BA353)","v":""},{"$f":"IF('1. Ordersheet'!BC353=\"\",\"\",'1. Ordersheet'!BC353)","v":""},{"$f":"IF('1. Ordersheet'!BD353=\"\",\"\",'1. Ordersheet'!BD353)","v":""},{"$f":"IF('1. Ordersheet'!BE353=\"\",\"\",'1. Ordersheet'!BE353)","v":""},{"$f":"IF('1. Ordersheet'!BF353=\"\",\"\",'1. Ordersheet'!BF353)","v":""},{"$f":"IF('1. Ordersheet'!BG353=\"\",\"\",'1. Ordersheet'!BG353)","v":"ZWO"},{"$f":"IF('1. Ordersheet'!BH353=\"\",\"\",'1. Ordersheet'!BH353)","v":""},{"$f":"IF('1. Ordersheet'!BI353=\"\",\"\",'1. Ordersheet'!BI353)","v":""},{"$f":"IF('1. Ordersheet'!BJ353=\"\",\"\",'1. Ordersheet'!BJ353)","v":""},{"$f":"IF('1. Ordersheet'!BK353=\"\",\"\",'1. Ordersheet'!BK353)","v":""},{"$f":"IF('1. Ordersheet'!BL353=\"\",\"\",'1. Ordersheet'!BL353)","v":""}]
[{"$f":"IF('1. Ordersheet'!F354=\"\",\"\",'1. Ordersheet'!F354)","v":""},{"$f":"IF('1. Ordersheet'!G354=\"\",\"\",'1. Ordersheet'!G354)","v":""},{"$f":"IF('1. Ordersheet'!H354=\"\",\"\",'1. Ordersheet'!H354)","v":""},{"$f":"IF('1. Ordersheet'!I354=\"\",\"\",'1. Ordersheet'!I354)","v":""},{"$f":"IF('1. Ordersheet'!J354=\"\",\"\",'1. Ordersheet'!J354)","v":""},{"$f":"IF('1. Ordersheet'!K354=\"\",\"\",'1. Ordersheet'!K354)","v":""},{"$f":"IF('1. Ordersheet'!L354=\"\",\"\",'1. Ordersheet'!L354)","v":""},{"$f":"IF('1. Ordersheet'!M354=\"\",\"\",'1. Ordersheet'!M354)","v":""},{"$f":"IF('1. Ordersheet'!N354=\"\",\"\",'1. Ordersheet'!N354)","v":""},{"$f":"IF('1. Ordersheet'!O354=\"\",\"\",'1. Ordersheet'!O354)","v":{"$error":"#N/A"}},{"$f":"IF('1. Ordersheet'!P354=\"\",\"\",'1. Ordersheet'!P354)","v":{"$error":"#N/A"}},{"$f":"IF('1. Ordersheet'!Q354=\"\",\"\",'1. Ordersheet'!Q354)","v":""},{"$f":"IF('1. Ordersheet'!R354=\"\",\"\",'1. Ordersheet'!R354)","v":""},{"$f":"IF('1. Ordersheet'!S354=\"\",\"\",'1. Ordersheet'!S354)","v":""},{"$f":"IF('1. Ordersheet'!V354=\"\",\"\",'1. Ordersheet'!V354)","v":""},{"$f":"IF('1. Ordersheet'!W354=\"\",\"\",'1. Ordersheet'!W354)","v":""},{"$f":"IF('1. Ordersheet'!X354=\"\",\"\",'1. Ordersheet'!X354)","v":""},{"$f":"IF('1. Ordersheet'!Y354=\"\",\"\",'1. Ordersheet'!Y354)","v":""},{"$f":"IF('1. Ordersheet'!Z354=\"\",\"\",'1. Ordersheet'!Z354)","v":""},{"$f":"IF('1. Ordersheet'!AA354=\"\",\"\",'1. Ordersheet'!AA354)","v":""},null,{"$f":"IF('1. Ordersheet'!AS354=\"\",\"\",'1. Ordersheet'!AS354)","v":""},{"$f":"IF('1. Ordersheet'!AT354=\"\",\"\",'1. Ordersheet'!AT354)","v":""},null,null,null,null,null,null,null,{"$f":"IF('1. Ordersheet'!AX354=\"\",\"\",'1. Ordersheet'!AX354)","v":""},{"$f":"IF('1. Ordersheet'!AY354=\"\",\"\",'1. Ordersheet'!AY354)","v":""},{"$f":"IF('1. Ordersheet'!AZ354=\"\",\"\",'1. Ordersheet'!AZ354)","v":""},{"$f":"IF('1. Ordersheet'!BA354=\"\",\"\",'1. Ordersheet'!BA354)","v":""},{"$f":"IF('1. Ordersheet'!BC354=\"\",\"\",'1. Ordersheet'!BC354)","v":""},{"$f":"IF('1. Ordersheet'!BD354=\"\",\"\",'1. Ordersheet'!BD354)","v":""},{"$f":"IF('1. Ordersheet'!BE354=\"\",\"\",'1. Ordersheet'!BE354)","v":""},{"$f":"IF('1. Ordersheet'!BF354=\"\",\"\",'1. Ordersheet'!BF354)","v":""},{"$f":"IF('1. Ordersheet'!BG354=\"\",\"\",'1. Ordersheet'!BG354)","v":"ZWO"},{"$f":"IF('1. Ordersheet'!BH354=\"\",\"\",'1. Ordersheet'!BH354)","v":""},{"$f":"IF('1. Ordersheet'!BI354=\"\",\"\",'1. Ordersheet'!BI354)","v":""},{"$f":"IF('1. Ordersheet'!BJ354=\"\",\"\",'1. Ordersheet'!BJ354)","v":""},{"$f":"IF('1. Ordersheet'!BK354=\"\",\"\",'1. Ordersheet'!BK354)","v":""},{"$f":"IF('1. Ordersheet'!BL354=\"\",\"\",'1. Ordersheet'!BL354)","v":""}]
[{"$f":"IF('1. Ordersheet'!F355=\"\",\"\",'1. Ordersheet'!F355)","v":""},{"$f":"IF('1. Ordersheet'!G355=\"\",\"\",'1. Ordersheet'!G355)","v":""},{"$f":"IF('1. Ordersheet'!H355=\"\",\"\",'1. Ordersheet'!H355)","v":""},{"$f":"IF('1. Ordersheet'!I355=\"\",\"\",'1. Ordersheet'!I355)","v":""},{"$f":"IF('1. Ordersheet'!J355=\"\",\"\",'1. Ordersheet'!J355)","v":""},{"$f":"IF('1. Ordersheet'!K355=\"\",\"\",'1. Ordersheet'!K355)","v":""},{"$f":"IF('1. Ordersheet'!L355=\"\",\"\",'1. Ordersheet'!L355)","v":""},{"$f":"IF('1. Ordersheet'!M355=\"\",\"\",'1. Ordersheet'!M355)","v":""},{"$f":"IF('1. Ordersheet'!N355=\"\",\"\",'1. Ordersheet'!N355)","v":""},{"$f":"IF('1. Ordersheet'!O355=\"\",\"\",'1. Ordersheet'!O355)","v":{"$error":"#N/A"}},{"$f":"IF('1. Ordersheet'!P355=\"\",\"\",'1. Ordersheet'!P355)","v":{"$error":"#N/A"}},{"$f":"IF('1. Ordersheet'!Q355=\"\",\"\",'1. Ordersheet'!Q355)","v":""},{"$f":"IF('1. Ordersheet'!R355=\"\",\"\",'1. Ordersheet'!R355)","v":""},{"$f":"IF('1. Ordersheet'!S355=\"\",\"\",'1. Ordersheet'!S355)","v":""},{"$f":"IF('1. Ordersheet'!V355=\"\",\"\",'1. Ordersheet'!V355)","v":""},{"$f":"IF('1. Ordersheet'!W355=\"\",\"\",'1. Ordersheet'!W355)","v":""},{"$f":"IF('1. Ordersheet'!X355=\"\",\"\",'1. Ordersheet'!X355)","v":""},{"$f":"IF('1. Ordersheet'!Y355=\"\",\"\",'1. Ordersheet'!Y355)","v":""},{"$f":"IF('1. Ordersheet'!Z355=\"\",\"\",'1. Ordersheet'!Z355)","v":""},{"$f":"IF('1. Ordersheet'!AA355=\"\",\"\",'1. Ordersheet'!AA355)","v":""},null,{"$f":"IF('1. Ordersheet'!AS355=\"\",\"\",'1. Ordersheet'!AS355)","v":""},{"$f":"IF('1. Ordersheet'!AT355=\"\",\"\",'1. Ordersheet'!AT355)","v":""},null,null,null,null,null,null,null,{"$f":"IF('1. Ordersheet'!AX355=\"\",\"\",'1. Ordersheet'!AX355)","v":""},{"$f":"IF('1. Ordersheet'!AY355=\"\",\"\",'1. Ordersheet'!AY355)","v":""},{"$f":"IF('1. Ordersheet'!AZ355=\"\",\"\",'1. Ordersheet'!AZ355)","v":""},{"$f":"IF('1. Ordersheet'!BA355=\"\",\"\",'1. Ordersheet'!BA355)","v":""},{"$f":"IF('1. Ordersheet'!BC355=\"\",\"\",'1. Ordersheet'!BC355)","v":""},{"$f":"IF('1. Ordersheet'!BD355=\"\",\"\",'1. Ordersheet'!BD355)","v":""},{"$f":"IF('1. Ordersheet'!BE355=\"\",\"\",'1. Ordersheet'!BE355)","v":""},{"$f":"IF('1. Ordersheet'!BF355=\"\",\"\",'1. Ordersheet'!BF355)","v":""},{"$f":"IF('1. Ordersheet'!BG355=\"\",\"\",'1. Ordersheet'!BG355)","v":"ZWO"},{"$f":"IF('1. Ordersheet'!BH355=\"\",\"\",'1. Ordersheet'!BH355)","v":""},{"$f":"IF('1. Ordersheet'!BI355=\"\",\"\",'1. Ordersheet'!BI355)","v":""},{"$f":"IF('1. Ordersheet'!BJ355=\"\",\"\",'1. Ordersheet'!BJ355)","v":""},{"$f":"IF('1. Ordersheet'!BK355=\"\",\"\",'1. Ordersheet'!BK355)","v":""},{"$f":"IF('1. Ordersheet'!BL355=\"\",\"\",'1. Ordersheet'!BL355)","v":""}]
[{"$f":"IF('1. Ordersheet'!F356=\"\",\"\",'1. Ordersheet'!F356)","v":""},{"$f":"IF('1. Ordersheet'!G356=\"\",\"\",'1. Ordersheet'!G356)","v":""},{"$f":"IF('1. Ordersheet'!H356=\"\",\"\",'1. Ordersheet'!H356)","v":""},{"$f":"IF('1. Ordersheet'!I356=\"\",\"\",'1. Ordersheet'!I356)","v":""},{"$f":"IF('1. Ordersheet'!J356=\"\",\"\",'1. Ordersheet'!J356)","v":""},{"$f":"IF('1. Ordersheet'!K356=\"\",\"\",'1. Ordersheet'!K356)","v":""},{"$f":"IF('1. Ordersheet'!L356=\"\",\"\",'1. Ordersheet'!L356)","v":""},{"$f":"IF('1. Ordersheet'!M356=\"\",\"\",'1. Ordersheet'!M356)","v":""},{"$f":"IF('1. Ordersheet'!N356=\"\",\"\",'1. Ordersheet'!N356)","v":""},{"$f":"IF('1. Ordersheet'!O356=\"\",\"\",'1. Ordersheet'!O356)","v":{"$error":"#N/A"}},{"$f":"IF('1. Ordersheet'!P356=\"\",\"\",'1. Ordersheet'!P356)","v":{"$error":"#N/A"}},{"$f":"IF('1. Ordersheet'!Q356=\"\",\"\",'1. Ordersheet'!Q356)","v":""},{"$f":"IF('1. Ordersheet'!R356=\"\",\"\",'1. Ordersheet'!R356)","v":""},{"$f":"IF('1. Ordersheet'!S356=\"\",\"\",'1. Ordersheet'!S356)","v":""},{"$f":"IF('1. Ordersheet'!V356=\"\",\"\",'1. Ordersheet'!V356)","v":""},{"$f":"IF('1. Ordersheet'!W356=\"\",\"\",'1. Ordersheet'!W356)","v":""},{"$f":"IF('1. Ordersheet'!X356=\"\",\"\",'1. Ordersheet'!X356)","v":""},{"$f":"IF('1. Ordersheet'!Y356=\"\",\"\",'1. Ordersheet'!Y356)","v":""},{"$f":"IF('1. Ordersheet'!Z356=\"\",\"\",'1. Ordersheet'!Z356)","v":""},{"$f":"IF('1. Ordersheet'!AA356=\"\",\"\",'1. Ordersheet'!AA356)","v":""},null,{"$f":"IF('1. Ordersheet'!AS356=\"\",\"\",'1. Ordersheet'!AS356)","v":""},{"$f":"IF('1. Ordersheet'!AT356=\"\",\"\",'1. Ordersheet'!AT356)","v":""},null,null,null,null,null,null,null,{"$f":"IF('1. Ordersheet'!AX356=\"\",\"\",'1. Ordersheet'!AX356)","v":""},{"$f":"IF('1. Ordersheet'!AY356=\"\",\"\",'1. Ordersheet'!AY356)","v":""},{"$f":"IF('1. Ordersheet'!AZ356=\"\",\"\",'1. Ordersheet'!AZ356)","v":""},{"$f":"IF('1. Ordersheet'!BA356=\"\",\"\",'1. Ordersheet'!BA356)","v":""},{"$f":"IF('1. Ordersheet'!BC356=\"\",\"\",'1. Ordersheet'!BC356)","v":""},{"$f":"IF('1. Ordersheet'!BD356=\"\",\"\",'1. Ordersheet'!BD356)","v":""},{"$f":"IF('1. Ordersheet'!BE356=\"\",\"\",'1. Ordersheet'!BE356)","v":""},{"$f":"IF('1. Ordersheet'!BF356=\"\",\"\",'1. Ordersheet'!BF356)","v":""},{"$f":"IF('1. Ordersheet'!BG356=\"\",\"\",'1. Ordersheet'!BG356)","v":"ZWO"},{"$f":"IF('1. Ordersheet'!BH356=\"\",\"\",'1. Ordersheet'!BH356)","v":""},{"$f":"IF('1. Ordersheet'!BI356=\"\",\"\",'1. Ordersheet'!BI356)","v":""},{"$f":"IF('1. Ordersheet'!BJ356=\"\",\"\",'1. Ordersheet'!BJ356)","v":""},{"$f":"IF('1. Ordersheet'!BK356=\"\",\"\",'1. Ordersheet'!BK356)","v":""},{"$f":"IF('1. Ordersheet'!BL356=\"\",\"\",'1. Ordersheet'!BL356)","v":""}]
[{"$f":"IF('1. Ordersheet'!F357=\"\",\"\",'1. Ordersheet'!F357)","v":""},{"$f":"IF('1. Ordersheet'!G357=\"\",\"\",'1. Ordersheet'!G357)","v":""},{"$f":"IF('1. Ordersheet'!H357=\"\",\"\",'1. Ordersheet'!H357)","v":""},{"$f":"IF('1. Ordersheet'!I357=\"\",\"\",'1. Ordersheet'!I357)","v":""},{"$f":"IF('1. Ordersheet'!J357=\"\",\"\",'1. Ordersheet'!J357)","v":""},{"$f":"IF('1. Ordersheet'!K357=\"\",\"\",'1. Ordersheet'!K357)","v":""},{"$f":"IF('1. Ordersheet'!L357=\"\",\"\",'1. Ordersheet'!L357)","v":""},{"$f":"IF('1. Ordersheet'!M357=\"\",\"\",'1. Ordersheet'!M357)","v":""},{"$f":"IF('1. Ordersheet'!N357=\"\",\"\",'1. Ordersheet'!N357)","v":""},{"$f":"IF('1. Ordersheet'!O357=\"\",\"\",'1. Ordersheet'!O357)","v":{"$error":"#N/A"}},{"$f":"IF('1. Ordersheet'!P357=\"\",\"\",'1. Ordersheet'!P357)","v":{"$error":"#N/A"}},{"$f":"IF('1. Ordersheet'!Q357=\"\",\"\",'1. Ordersheet'!Q357)","v":""},{"$f":"IF('1. Ordersheet'!R357=\"\",\"\",'1. Ordersheet'!R357)","v":""},{"$f":"IF('1. Ordersheet'!S357=\"\",\"\",'1. Ordersheet'!S357)","v":""},{"$f":"IF('1. Ordersheet'!V357=\"\",\"\",'1. Ordersheet'!V357)","v":""},{"$f":"IF('1. Ordersheet'!W357=\"\",\"\",'1. Ordersheet'!W357)","v":""},{"$f":"IF('1. Ordersheet'!X357=\"\",\"\",'1. Ordersheet'!X357)","v":""},{"$f":"IF('1. Ordersheet'!Y357=\"\",\"\",'1. Ordersheet'!Y357)","v":""},{"$f":"IF('1. Ordersheet'!Z357=\"\",\"\",'1. Ordersheet'!Z357)","v":""},{"$f":"IF('1. Ordersheet'!AA357=\"\",\"\",'1. Ordersheet'!AA357)","v":""},null,{"$f":"IF('1. Ordersheet'!AS357=\"\",\"\",'1. Ordersheet'!AS357)","v":""},{"$f":"IF('1. Ordersheet'!AT357=\"\",\"\",'1. Ordersheet'!AT357)","v":""},null,null,null,null,null,null,null,{"$f":"IF('1. Ordersheet'!AX357=\"\",\"\",'1. Ordersheet'!AX357)","v":""},{"$f":"IF('1. Ordersheet'!AY357=\"\",\"\",'1. Ordersheet'!AY357)","v":""},{"$f":"IF('1. Ordersheet'!AZ357=\"\",\"\",'1. Ordersheet'!AZ357)","v":""},{"$f":"IF('1. Ordersheet'!BA357=\"\",\"\",'1. Ordersheet'!BA357)","v":""},{"$f":"IF('1. Ordersheet'!BC357=\"\",\"\",'1. Ordersheet'!BC357)","v":""},{"$f":"IF('1. Ordersheet'!BD357=\"\",\"\",'1. Ordersheet'!BD357)","v":""},{"$f":"IF('1. Ordersheet'!BE357=\"\",\"\",'1. Ordersheet'!BE357)","v":""},{"$f":"IF('1. Ordersheet'!BF357=\"\",\"\",'1. Ordersheet'!BF357)","v":""},{"$f":"IF('1. Ordersheet'!BG357=\"\",\"\",'1. Ordersheet'!BG357)","v":"ZWO"},{"$f":"IF('1. Ordersheet'!BH357=\"\",\"\",'1. Ordersheet'!BH357)","v":""},{"$f":"IF('1. Ordersheet'!BI357=\"\",\"\",'1. Ordersheet'!BI357)","v":""},{"$f":"IF('1. Ordersheet'!BJ357=\"\",\"\",'1. Ordersheet'!BJ357)","v":""},{"$f":"IF('1. Ordersheet'!BK357=\"\",\"\",'1. Ordersheet'!BK357)","v":""},{"$f":"IF('1. Ordersheet'!BL357=\"\",\"\",'1. Ordersheet'!BL357)","v":""}]
[{"$f":"IF('1. Ordersheet'!F358=\"\",\"\",'1. Ordersheet'!F358)","v":""},{"$f":"IF('1. Ordersheet'!G358=\"\",\"\",'1. Ordersheet'!G358)","v":""},{"$f":"IF('1. Ordersheet'!H358=\"\",\"\",'1. Ordersheet'!H358)","v":""},{"$f":"IF('1. Ordersheet'!I358=\"\",\"\",'1. Ordersheet'!I358)","v":""},{"$f":"IF('1. Ordersheet'!J358=\"\",\"\",'1. Ordersheet'!J358)","v":""},{"$f":"IF('1. Ordersheet'!K358=\"\",\"\",'1. Ordersheet'!K358)","v":""},{"$f":"IF('1. Ordersheet'!L358=\"\",\"\",'1. Ordersheet'!L358)","v":""},{"$f":"IF('1. Ordersheet'!M358=\"\",\"\",'1. Ordersheet'!M358)","v":""},{"$f":"IF('1. Ordersheet'!N358=\"\",\"\",'1. Ordersheet'!N358)","v":""},{"$f":"IF('1. Ordersheet'!O358=\"\",\"\",'1. Ordersheet'!O358)","v":{"$error":"#N/A"}},{"$f":"IF('1. Ordersheet'!P358=\"\",\"\",'1. Ordersheet'!P358)","v":{"$error":"#N/A"}},{"$f":"IF('1. Ordersheet'!Q358=\"\",\"\",'1. Ordersheet'!Q358)","v":""},{"$f":"IF('1. Ordersheet'!R358=\"\",\"\",'1. Ordersheet'!R358)","v":""},{"$f":"IF('1. Ordersheet'!S358=\"\",\"\",'1. Ordersheet'!S358)","v":""},{"$f":"IF('1. Ordersheet'!V358=\"\",\"\",'1. Ordersheet'!V358)","v":""},{"$f":"IF('1. Ordersheet'!W358=\"\",\"\",'1. Ordersheet'!W358)","v":""},{"$f":"IF('1. Ordersheet'!X358=\"\",\"\",'1. Ordersheet'!X358)","v":""},{"$f":"IF('1. Ordersheet'!Y358=\"\",\"\",'1. Ordersheet'!Y358)","v":""},{"$f":"IF('1. Ordersheet'!Z358=\"\",\"\",'1. Ordersheet'!Z358)","v":""},{"$f":"IF('1. Ordersheet'!AA358=\"\",\"\",'1. Ordersheet'!AA358)","v":""},null,{"$f":"IF('1. Ordersheet'!AS358=\"\",\"\",'1. Ordersheet'!AS358)","v":""},{"$f":"IF('1. Ordersheet'!AT358=\"\",\"\",'1. Ordersheet'!AT358)","v":""},null,null,null,null,null,null,null,{"$f":"IF('1. Ordersheet'!AX358=\"\",\"\",'1. Ordersheet'!AX358)","v":""},{"$f":"IF('1. Ordersheet'!AY358=\"\",\"\",'1. Ordersheet'!AY358)","v":""},{"$f":"IF('1. Ordersheet'!AZ358=\"\",\"\",'1. Ordersheet'!AZ358)","v":""},{"$f":"IF('1. Ordersheet'!BA358=\"\",\"\",'1. Ordersheet'!BA358)","v":""},{"$f":"IF('1. Ordersheet'!BC358=\"\",\"\",'1. Ordersheet'!BC358)","v":""},{"$f":"IF('1. Ordersheet'!BD358=\"\",\"\",'1. Ordersheet'!BD358)","v":""},{"$f":"IF('1. Ordersheet'!BE358=\"\",\"\",'1. Ordersheet'!BE358)","v":""},{"$f":"IF('1. Ordersheet'!BF358=\"\",\"\",'1. Ordersheet'!BF358)","v":""},{"$f":"IF('1. Ordersheet'!BG358=\"\",\"\",'1. Ordersheet'!BG358)","v":"ZWO"},{"$f":"IF('1. Ordersheet'!BH358=\"\",\"\",'1. Ordersheet'!BH358)","v":""},{"$f":"IF('1. Ordersheet'!BI358=\"\",\"\",'1. Ordersheet'!BI358)","v":""},{"$f":"IF('1. Ordersheet'!BJ358=\"\",\"\",'1. Ordersheet'!BJ358)","v":""},{"$f":"IF('1. Ordersheet'!BK358=\"\",\"\",'1. Ordersheet'!BK358)","v":""},{"$f":"IF('1. Ordersheet'!BL358=\"\",\"\",'1. Ordersheet'!BL358)","v":""}]
[{"$f":"IF('1. Ordersheet'!F359=\"\",\"\",'1. Ordersheet'!F359)","v":""},{"$f":"IF('1. Ordersheet'!G359=\"\",\"\",'1. Ordersheet'!G359)","v":""},{"$f":"IF('1. Ordersheet'!H359=\"\",\"\",'1. Ordersheet'!H359)","v":""},{"$f":"IF('1. Ordersheet'!I359=\"\",\"\",'1. Ordersheet'!I359)","v":""},{"$f":"IF('1. Ordersheet'!J359=\"\",\"\",'1. Ordersheet'!J359)","v":""},{"$f":"IF('1. Ordersheet'!K359=\"\",\"\",'1. Ordersheet'!K359)","v":""},{"$f":"IF('1. Ordersheet'!L359=\"\",\"\",'1. Ordersheet'!L359)","v":""},{"$f":"IF('1. Ordersheet'!M359=\"\",\"\",'1. Ordersheet'!M359)","v":""},{"$f":"IF('1. Ordersheet'!N359=\"\",\"\",'1. Ordersheet'!N359)","v":""},{"$f":"IF('1. Ordersheet'!O359=\"\",\"\",'1. Ordersheet'!O359)","v":{"$error":"#N/A"}},{"$f":"IF('1. Ordersheet'!P359=\"\",\"\",'1. Ordersheet'!P359)","v":{"$error":"#N/A"}},{"$f":"IF('1. Ordersheet'!Q359=\"\",\"\",'1. Ordersheet'!Q359)","v":""},{"$f":"IF('1. Ordersheet'!R359=\"\",\"\",'1. Ordersheet'!R359)","v":""},{"$f":"IF('1. Ordersheet'!S359=\"\",\"\",'1. Ordersheet'!S359)","v":""},{"$f":"IF('1. Ordersheet'!V359=\"\",\"\",'1. Ordersheet'!V359)","v":""},{"$f":"IF('1. Ordersheet'!W359=\"\",\"\",'1. Ordersheet'!W359)","v":""},{"$f":"IF('1. Ordersheet'!X359=\"\",\"\",'1. Ordersheet'!X359)","v":""},{"$f":"IF('1. Ordersheet'!Y359=\"\",\"\",'1. Ordersheet'!Y359)","v":""},{"$f":"IF('1. Ordersheet'!Z359=\"\",\"\",'1. Ordersheet'!Z359)","v":""},{"$f":"IF('1. Ordersheet'!AA359=\"\",\"\",'1. Ordersheet'!AA359)","v":""},null,{"$f":"IF('1. Ordersheet'!AS359=\"\",\"\",'1. Ordersheet'!AS359)","v":""},{"$f":"IF('1. Ordersheet'!AT359=\"\",\"\",'1. Ordersheet'!AT359)","v":""},null,null,null,null,null,null,null,{"$f":"IF('1. Ordersheet'!AX359=\"\",\"\",'1. Ordersheet'!AX359)","v":""},{"$f":"IF('1. Ordersheet'!AY359=\"\",\"\",'1. Ordersheet'!AY359)","v":""},{"$f":"IF('1. Ordersheet'!AZ359=\"\",\"\",'1. Ordersheet'!AZ359)","v":""},{"$f":"IF('1. Ordersheet'!BA359=\"\",\"\",'1. Ordersheet'!BA359)","v":""},{"$f":"IF('1. Ordersheet'!BC359=\"\",\"\",'1. Ordersheet'!BC359)","v":""},{"$f":"IF('1. Ordersheet'!BD359=\"\",\"\",'1. Ordersheet'!BD359)","v":""},{"$f":"IF('1. Ordersheet'!BE359=\"\",\"\",'1. Ordersheet'!BE359)","v":""},{"$f":"IF('1. Ordersheet'!BF359=\"\",\"\",'1. Ordersheet'!BF359)","v":""},{"$f":"IF('1. Ordersheet'!BG359=\"\",\"\",'1. Ordersheet'!BG359)","v":"ZWO"},{"$f":"IF('1. Ordersheet'!BH359=\"\",\"\",'1. Ordersheet'!BH359)","v":""},{"$f":"IF('1. Ordersheet'!BI359=\"\",\"\",'1. Ordersheet'!BI359)","v":""},{"$f":"IF('1. Ordersheet'!BJ359=\"\",\"\",'1. Ordersheet'!BJ359)","v":""},{"$f":"IF('1. Ordersheet'!BK359=\"\",\"\",'1. Ordersheet'!BK359)","v":""},{"$f":"IF('1. Ordersheet'!BL359=\"\",\"\",'1. Ordersheet'!BL359)","v":""}]
[{"$f":"IF('1. Ordersheet'!F360=\"\",\"\",'1. Ordersheet'!F360)","v":""},{"$f":"IF('1. Ordersheet'!G360=\"\",\"\",'1. Ordersheet'!G360)","v":""},{"$f":"IF('1. Ordersheet'!H360=\"\",\"\",'1. Ordersheet'!H360)","v":""},{"$f":"IF('1. Ordersheet'!I360=\"\",\"\",'1. Ordersheet'!I360)","v":""},{"$f":"IF('1. Ordersheet'!J360=\"\",\"\",'1. Ordersheet'!J360)","v":""},{"$f":"IF('1. Ordersheet'!K360=\"\",\"\",'1. Ordersheet'!K360)","v":""},{"$f":"IF('1. Ordersheet'!L360=\"\",\"\",'1. Ordersheet'!L360)","v":""},{"$f":"IF('1. Ordersheet'!M360=\"\",\"\",'1. Ordersheet'!M360)","v":""},{"$f":"IF('1. Ordersheet'!N360=\"\",\"\",'1. Ordersheet'!N360)","v":""},{"$f":"IF('1. Ordersheet'!O360=\"\",\"\",'1. Ordersheet'!O360)","v":{"$error":"#N/A"}},{"$f":"IF('1. Ordersheet'!P360=\"\",\"\",'1. Ordersheet'!P360)","v":{"$error":"#N/A"}},{"$f":"IF('1. Ordersheet'!Q360=\"\",\"\",'1. Ordersheet'!Q360)","v":""},{"$f":"IF('1. Ordersheet'!R360=\"\",\"\",'1. Ordersheet'!R360)","v":""},{"$f":"IF('1. Ordersheet'!S360=\"\",\"\",'1. Ordersheet'!S360)","v":""},{"$f":"IF('1. Ordersheet'!V360=\"\",\"\",'1. Ordersheet'!V360)","v":""},{"$f":"IF('1. Ordersheet'!W360=\"\",\"\",'1. Ordersheet'!W360)","v":""},{"$f":"IF('1. Ordersheet'!X360=\"\",\"\",'1. Ordersheet'!X360)","v":""},{"$f":"IF('1. Ordersheet'!Y360=\"\",\"\",'1. Ordersheet'!Y360)","v":""},{"$f":"IF('1. Ordersheet'!Z360=\"\",\"\",'1. Ordersheet'!Z360)","v":""},{"$f":"IF('1. Ordersheet'!AA360=\"\",\"\",'1. Ordersheet'!AA360)","v":""},null,{"$f":"IF('1. Ordersheet'!AS360=\"\",\"\",'1. Ordersheet'!AS360)","v":""},{"$f":"IF('1. Ordersheet'!AT360=\"\",\"\",'1. Ordersheet'!AT360)","v":""},null,null,null,null,null,null,null,{"$f":"IF('1. Ordersheet'!AX360=\"\",\"\",'1. Ordersheet'!AX360)","v":""},{"$f":"IF('1. Ordersheet'!AY360=\"\",\"\",'1. Ordersheet'!AY360)","v":""},{"$f":"IF('1. Ordersheet'!AZ360=\"\",\"\",'1. Ordersheet'!AZ360)","v":""},{"$f":"IF('1. Ordersheet'!BA360=\"\",\"\",'1. Ordersheet'!BA360)","v":""},{"$f":"IF('1. Ordersheet'!BC360=\"\",\"\",'1. Ordersheet'!BC360)","v":""},{"$f":"IF('1. Ordersheet'!BD360=\"\",\"\",'1. Ordersheet'!BD360)","v":""},{"$f":"IF('1. Ordersheet'!BE360=\"\",\"\",'1. Ordersheet'!BE360)","v":""},{"$f":"IF('1. Ordersheet'!BF360=\"\",\"\",'1. Ordersheet'!BF360)","v":""},{"$f":"IF('1. Ordersheet'!BG360=\"\",\"\",'1. Ordersheet'!BG360)","v":"ZWO"},{"$f":"IF('1. Ordersheet'!BH360=\"\",\"\",'1. Ordersheet'!BH360)","v":""},{"$f":"IF('1. Ordersheet'!BI360=\"\",\"\",'1. Ordersheet'!BI360)","v":""},{"$f":"IF('1. Ordersheet'!BJ360=\"\",\"\",'1. Ordersheet'!BJ360)","v":""},{"$f":"IF('1. Ordersheet'!BK360=\"\",\"\",'1. Ordersheet'!BK360)","v":""},{"$f":"IF('1. Ordersheet'!BL360=\"\",\"\",'1. Ordersheet'!BL360)","v":""}]
[{"$f":"IF('1. Ordersheet'!F361=\"\",\"\",'1. Ordersheet'!F361)","v":""},{"$f":"IF('1. Ordersheet'!G361=\"\",\"\",'1. Ordersheet'!G361)","v":""},{"$f":"IF('1. Ordersheet'!H361=\"\",\"\",'1. Ordersheet'!H361)","v":""},{"$f":"IF('1. Ordersheet'!I361=\"\",\"\",'1. Ordersheet'!I361)","v":""},{"$f":"IF('1. Ordersheet'!J361=\"\",\"\",'1. Ordersheet'!J361)","v":""},{"$f":"IF('1. Ordersheet'!K361=\"\",\"\",'1. Ordersheet'!K361)","v":""},{"$f":"IF('1. Ordersheet'!L361=\"\",\"\",'1. Ordersheet'!L361)","v":""},{"$f":"IF('1. Ordersheet'!M361=\"\",\"\",'1. Ordersheet'!M361)","v":""},{"$f":"IF('1. Ordersheet'!N361=\"\",\"\",'1. Ordersheet'!N361)","v":""},{"$f":"IF('1. Ordersheet'!O361=\"\",\"\",'1. Ordersheet'!O361)","v":{"$error":"#N/A"}},{"$f":"IF('1. Ordersheet'!P361=\"\",\"\",'1. Ordersheet'!P361)","v":{"$error":"#N/A"}},{"$f":"IF('1. Ordersheet'!Q361=\"\",\"\",'1. Ordersheet'!Q361)","v":""},{"$f":"IF('1. Ordersheet'!R361=\"\",\"\",'1. Ordersheet'!R361)","v":""},{"$f":"IF('1. Ordersheet'!S361=\"\",\"\",'1. Ordersheet'!S361)","v":""},{"$f":"IF('1. Ordersheet'!V361=\"\",\"\",'1. Ordersheet'!V361)","v":""},{"$f":"IF('1. Ordersheet'!W361=\"\",\"\",'1. Ordersheet'!W361)","v":""},{"$f":"IF('1. Ordersheet'!X361=\"\",\"\",'1. Ordersheet'!X361)","v":""},{"$f":"IF('1. Ordersheet'!Y361=\"\",\"\",'1. Ordersheet'!Y361)","v":""},{"$f":"IF('1. Ordersheet'!Z361=\"\",\"\",'1. Ordersheet'!Z361)","v":""},{"$f":"IF('1. Ordersheet'!AA361=\"\",\"\",'1. Ordersheet'!AA361)","v":""},null,{"$f":"IF('1. Ordersheet'!AS361=\"\",\"\",'1. Ordersheet'!AS361)","v":""},{"$f":"IF('1. Ordersheet'!AT361=\"\",\"\",'1. Ordersheet'!AT361)","v":""},null,null,null,null,null,null,null,{"$f":"IF('1. Ordersheet'!AX361=\"\",\"\",'1. Ordersheet'!AX361)","v":""},{"$f":"IF('1. Ordersheet'!AY361=\"\",\"\",'1. Ordersheet'!AY361)","v":""},{"$f":"IF('1. Ordersheet'!AZ361=\"\",\"\",'1. Ordersheet'!AZ361)","v":""},{"$f":"IF('1. Ordersheet'!BA361=\"\",\"\",'1. Ordersheet'!BA361)","v":""},{"$f":"IF('1. Ordersheet'!BC361=\"\",\"\",'1. Ordersheet'!BC361)","v":""},{"$f":"IF('1. Ordersheet'!BD361=\"\",\"\",'1. Ordersheet'!BD361)","v":""},{"$f":"IF('1. Ordersheet'!BE361=\"\",\"\",'1. Ordersheet'!BE361)","v":""},{"$f":"IF('1. Ordersheet'!BF361=\"\",\"\",'1. Ordersheet'!BF361)","v":""},{"$f":"IF('1. Ordersheet'!BG361=\"\",\"\",'1. Ordersheet'!BG361)","v":"ZWO"},{"$f":"IF('1. Ordersheet'!BH361=\"\",\"\",'1. Ordersheet'!BH361)","v":""},{"$f":"IF('1. Ordersheet'!BI361=\"\",\"\",'1. Ordersheet'!BI361)","v":""},{"$f":"IF('1. Ordersheet'!BJ361=\"\",\"\",'1. Ordersheet'!BJ361)","v":""},{"$f":"IF('1. Ordersheet'!BK361=\"\",\"\",'1. Ordersheet'!BK361)","v":""},{"$f":"IF('1. Ordersheet'!BL361=\"\",\"\",'1. Ordersheet'!BL361)","v":""}]
[{"$f":"IF('1. Ordersheet'!F362=\"\",\"\",'1. Ordersheet'!F362)","v":""},{"$f":"IF('1. Ordersheet'!G362=\"\",\"\",'1. Ordersheet'!G362)","v":""},{"$f":"IF('1. Ordersheet'!H362=\"\",\"\",'1. Ordersheet'!H362)","v":""},{"$f":"IF('1. Ordersheet'!I362=\"\",\"\",'1. Ordersheet'!I362)","v":""},{"$f":"IF('1. Ordersheet'!J362=\"\",\"\",'1. Ordersheet'!J362)","v":""},{"$f":"IF('1. Ordersheet'!K362=\"\",\"\",'1. Ordersheet'!K362)","v":""},{"$f":"IF('1. Ordersheet'!L362=\"\",\"\",'1. Ordersheet'!L362)","v":""},{"$f":"IF('1. Ordersheet'!M362=\"\",\"\",'1. Ordersheet'!M362)","v":""},{"$f":"IF('1. Ordersheet'!N362=\"\",\"\",'1. Ordersheet'!N362)","v":""},{"$f":"IF('1. Ordersheet'!O362=\"\",\"\",'1. Ordersheet'!O362)","v":{"$error":"#N/A"}},{"$f":"IF('1. Ordersheet'!P362=\"\",\"\",'1. Ordersheet'!P362)","v":{"$error":"#N/A"}},{"$f":"IF('1. Ordersheet'!Q362=\"\",\"\",'1. Ordersheet'!Q362)","v":""},{"$f":"IF('1. Ordersheet'!R362=\"\",\"\",'1. Ordersheet'!R362)","v":""},{"$f":"IF('1. Ordersheet'!S362=\"\",\"\",'1. Ordersheet'!S362)","v":""},{"$f":"IF('1. Ordersheet'!V362=\"\",\"\",'1. Ordersheet'!V362)","v":""},{"$f":"IF('1. Ordersheet'!W362=\"\",\"\",'1. Ordersheet'!W362)","v":""},{"$f":"IF('1. Ordersheet'!X362=\"\",\"\",'1. Ordersheet'!X362)","v":""},{"$f":"IF('1. Ordersheet'!Y362=\"\",\"\",'1. Ordersheet'!Y362)","v":""},{"$f":"IF('1. Ordersheet'!Z362=\"\",\"\",'1. Ordersheet'!Z362)","v":""},{"$f":"IF('1. Ordersheet'!AA362=\"\",\"\",'1. Ordersheet'!AA362)","v":""},null,{"$f":"IF('1. Ordersheet'!AS362=\"\",\"\",'1. Ordersheet'!AS362)","v":""},{"$f":"IF('1. Ordersheet'!AT362=\"\",\"\",'1. Ordersheet'!AT362)","v":""},null,null,null,null,null,null,null,{"$f":"IF('1. Ordersheet'!AX362=\"\",\"\",'1. Ordersheet'!AX362)","v":""},{"$f":"IF('1. Ordersheet'!AY362=\"\",\"\",'1. Ordersheet'!AY362)","v":""},{"$f":"IF('1. Ordersheet'!AZ362=\"\",\"\",'1. Ordersheet'!AZ362)","v":""},{"$f":"IF('1. Ordersheet'!BA362=\"\",\"\",'1. Ordersheet'!BA362)","v":""},{"$f":"IF('1. Ordersheet'!BC362=\"\",\"\",'1. Ordersheet'!BC362)","v":""},{"$f":"IF('1. Ordersheet'!BD362=\"\",\"\",'1. Ordersheet'!BD362)","v":""},{"$f":"IF('1. Ordersheet'!BE362=\"\",\"\",'1. Ordersheet'!BE362)","v":""},{"$f":"IF('1. Ordersheet'!BF362=\"\",\"\",'1. Ordersheet'!BF362)","v":""},{"$f":"IF('1. Ordersheet'!BG362=\"\",\"\",'1. Ordersheet'!BG362)","v":"ZWO"},{"$f":"IF('1. Ordersheet'!BH362=\"\",\"\",'1. Ordersheet'!BH362)","v":""},{"$f":"IF('1. Ordersheet'!BI362=\"\",\"\",'1. Ordersheet'!BI362)","v":""},{"$f":"IF('1. Ordersheet'!BJ362=\"\",\"\",'1. Ordersheet'!BJ362)","v":""},{"$f":"IF('1. Ordersheet'!BK362=\"\",\"\",'1. Ordersheet'!BK362)","v":""},{"$f":"IF('1. Ordersheet'!BL362=\"\",\"\",'1. Ordersheet'!BL362)","v":""}]
[{"$f":"IF('1. Ordersheet'!F363=\"\",\"\",'1. Ordersheet'!F363)","v":""},{"$f":"IF('1. Ordersheet'!G363=\"\",\"\",'1. Ordersheet'!G363)","v":""},{"$f":"IF('1. Ordersheet'!H363=\"\",\"\",'1. Ordersheet'!H363)","v":""},{"$f":"IF('1. Ordersheet'!I363=\"\",\"\",'1. Ordersheet'!I363)","v":""},{"$f":"IF('1. Ordersheet'!J363=\"\",\"\",'1. Ordersheet'!J363)","v":""},{"$f":"IF('1. Ordersheet'!K363=\"\",\"\",'1. Ordersheet'!K363)","v":""},{"$f":"IF('1. Ordersheet'!L363=\"\",\"\",'1. Ordersheet'!L363)","v":""},{"$f":"IF('1. Ordersheet'!M363=\"\",\"\",'1. Ordersheet'!M363)","v":""},{"$f":"IF('1. Ordersheet'!N363=\"\",\"\",'1. Ordersheet'!N363)","v":""},{"$f":"IF('1. Ordersheet'!O363=\"\",\"\",'1. Ordersheet'!O363)","v":{"$error":"#N/A"}},{"$f":"IF('1. Ordersheet'!P363=\"\",\"\",'1. Ordersheet'!P363)","v":{"$error":"#N/A"}},{"$f":"IF('1. Ordersheet'!Q363=\"\",\"\",'1. Ordersheet'!Q363)","v":""},{"$f":"IF('1. Ordersheet'!R363=\"\",\"\",'1. Ordersheet'!R363)","v":""},{"$f":"IF('1. Ordersheet'!S363=\"\",\"\",'1. Ordersheet'!S363)","v":""},{"$f":"IF('1. Ordersheet'!V363=\"\",\"\",'1. Ordersheet'!V363)","v":""},{"$f":"IF('1. Ordersheet'!W363=\"\",\"\",'1. Ordersheet'!W363)","v":""},{"$f":"IF('1. Ordersheet'!X363=\"\",\"\",'1. Ordersheet'!X363)","v":""},{"$f":"IF('1. Ordersheet'!Y363=\"\",\"\",'1. Ordersheet'!Y363)","v":""},{"$f":"IF('1. Ordersheet'!Z363=\"\",\"\",'1. Ordersheet'!Z363)","v":""},{"$f":"IF('1. Ordersheet'!AA363=\"\",\"\",'1. Ordersheet'!AA363)","v":""},null,{"$f":"IF('1. Ordersheet'!AS363=\"\",\"\",'1. Ordersheet'!AS363)","v":""},{"$f":"IF('1. Ordersheet'!AT363=\"\",\"\",'1. Ordersheet'!AT363)","v":""},null,null,null,null,null,null,null,{"$f":"IF('1. Ordersheet'!AX363=\"\",\"\",'1. Ordersheet'!AX363)","v":""},{"$f":"IF('1. Ordersheet'!AY363=\"\",\"\",'1. Ordersheet'!AY363)","v":""},{"$f":"IF('1. Ordersheet'!AZ363=\"\",\"\",'1. Ordersheet'!AZ363)","v":""},{"$f":"IF('1. Ordersheet'!BA363=\"\",\"\",'1. Ordersheet'!BA363)","v":""},{"$f":"IF('1. Ordersheet'!BC363=\"\",\"\",'1. Ordersheet'!BC363)","v":""},{"$f":"IF('1. Ordersheet'!BD363=\"\",\"\",'1. Ordersheet'!BD363)","v":""},{"$f":"IF('1. Ordersheet'!BE363=\"\",\"\",'1. Ordersheet'!BE363)","v":""},{"$f":"IF('1. Ordersheet'!BF363=\"\",\"\",'1. Ordersheet'!BF363)","v":""},{"$f":"IF('1. Ordersheet'!BG363=\"\",\"\",'1. Ordersheet'!BG363)","v":"ZWO"},{"$f":"IF('1. Ordersheet'!BH363=\"\",\"\",'1. Ordersheet'!BH363)","v":""},{"$f":"IF('1. Ordersheet'!BI363=\"\",\"\",'1. Ordersheet'!BI363)","v":""},{"$f":"IF('1. Ordersheet'!BJ363=\"\",\"\",'1. Ordersheet'!BJ363)","v":""},{"$f":"IF('1. Ordersheet'!BK363=\"\",\"\",'1. Ordersheet'!BK363)","v":""},{"$f":"IF('1. Ordersheet'!BL363=\"\",\"\",'1. Ordersheet'!BL363)","v":""}]
[{"$f":"IF('1. Ordersheet'!F364=\"\",\"\",'1. Ordersheet'!F364)","v":""},{"$f":"IF('1. Ordersheet'!G364=\"\",\"\",'1. Ordersheet'!G364)","v":""},{"$f":"IF('1. Ordersheet'!H364=\"\",\"\",'1. Ordersheet'!H364)","v":""},{"$f":"IF('1. Ordersheet'!I364=\"\",\"\",'1. Ordersheet'!I364)","v":""},{"$f":"IF('1. Ordersheet'!J364=\"\",\"\",'1. Ordersheet'!J364)","v":""},{"$f":"IF('1. Ordersheet'!K364=\"\",\"\",'1. Ordersheet'!K364)","v":""},{"$f":"IF('1. Ordersheet'!L364=\"\",\"\",'1. Ordersheet'!L364)","v":""},{"$f":"IF('1. Ordersheet'!M364=\"\",\"\",'1. Ordersheet'!M364)","v":""},{"$f":"IF('1. Ordersheet'!N364=\"\",\"\",'1. Ordersheet'!N364)","v":""},{"$f":"IF('1. Ordersheet'!O364=\"\",\"\",'1. Ordersheet'!O364)","v":{"$error":"#N/A"}},{"$f":"IF('1. Ordersheet'!P364=\"\",\"\",'1. Ordersheet'!P364)","v":{"$error":"#N/A"}},{"$f":"IF('1. Ordersheet'!Q364=\"\",\"\",'1. Ordersheet'!Q364)","v":""},{"$f":"IF('1. Ordersheet'!R364=\"\",\"\",'1. Ordersheet'!R364)","v":""},{"$f":"IF('1. Ordersheet'!S364=\"\",\"\",'1. Ordersheet'!S364)","v":""},{"$f":"IF('1. Ordersheet'!V364=\"\",\"\",'1. Ordersheet'!V364)","v":""},{"$f":"IF('1. Ordersheet'!W364=\"\",\"\",'1. Ordersheet'!W364)","v":""},{"$f":"IF('1. Ordersheet'!X364=\"\",\"\",'1. Ordersheet'!X364)","v":""},{"$f":"IF('1. Ordersheet'!Y364=\"\",\"\",'1. Ordersheet'!Y364)","v":""},{"$f":"IF('1. Ordersheet'!Z364=\"\",\"\",'1. Ordersheet'!Z364)","v":""},{"$f":"IF('1. Ordersheet'!AA364=\"\",\"\",'1. Ordersheet'!AA364)","v":""},null,{"$f":"IF('1. Ordersheet'!AS364=\"\",\"\",'1. Ordersheet'!AS364)","v":""},{"$f":"IF('1. Ordersheet'!AT364=\"\",\"\",'1. Ordersheet'!AT364)","v":""},null,null,null,null,null,null,null,{"$f":"IF('1. Ordersheet'!AX364=\"\",\"\",'1. Ordersheet'!AX364)","v":""},{"$f":"IF('1. Ordersheet'!AY364=\"\",\"\",'1. Ordersheet'!AY364)","v":""},{"$f":"IF('1. Ordersheet'!AZ364=\"\",\"\",'1. Ordersheet'!AZ364)","v":""},{"$f":"IF('1. Ordersheet'!BA364=\"\",\"\",'1. Ordersheet'!BA364)","v":""},{"$f":"IF('1. Ordersheet'!BC364=\"\",\"\",'1. Ordersheet'!BC364)","v":""},{"$f":"IF('1. Ordersheet'!BD364=\"\",\"\",'1. Ordersheet'!BD364)","v":""},{"$f":"IF('1. Ordersheet'!BE364=\"\",\"\",'1. Ordersheet'!BE364)","v":""},{"$f":"IF('1. Ordersheet'!BF364=\"\",\"\",'1. Ordersheet'!BF364)","v":""},{"$f":"IF('1. Ordersheet'!BG364=\"\",\"\",'1. Ordersheet'!BG364)","v":"ZWO"},{"$f":"IF('1. Ordersheet'!BH364=\"\",\"\",'1. Ordersheet'!BH364)","v":""},{"$f":"IF('1. Ordersheet'!BI364=\"\",\"\",'1. Ordersheet'!BI364)","v":""},{"$f":"IF('1. Ordersheet'!BJ364=\"\",\"\",'1. Ordersheet'!BJ364)","v":""},{"$f":"IF('1. Ordersheet'!BK364=\"\",\"\",'1. Ordersheet'!BK364)","v":""},{"$f":"IF('1. Ordersheet'!BL364=\"\",\"\",'1. Ordersheet'!BL364)","v":""}]
[{"$f":"IF('1. Ordersheet'!F365=\"\",\"\",'1. Ordersheet'!F365)","v":""},{"$f":"IF('1. Ordersheet'!G365=\"\",\"\",'1. Ordersheet'!G365)","v":""},{"$f":"IF('1. Ordersheet'!H365=\"\",\"\",'1. Ordersheet'!H365)","v":""},{"$f":"IF('1. Ordersheet'!I365=\"\",\"\",'1. Ordersheet'!I365)","v":""},{"$f":"IF('1. Ordersheet'!J365=\"\",\"\",'1. Ordersheet'!J365)","v":""},{"$f":"IF('1. Ordersheet'!K365=\"\",\"\",'1. Ordersheet'!K365)","v":""},{"$f":"IF('1. Ordersheet'!L365=\"\",\"\",'1. Ordersheet'!L365)","v":""},{"$f":"IF('1. Ordersheet'!M365=\"\",\"\",'1. Ordersheet'!M365)","v":""},{"$f":"IF('1. Ordersheet'!N365=\"\",\"\",'1. Ordersheet'!N365)","v":""},{"$f":"IF('1. Ordersheet'!O365=\"\",\"\",'1. Ordersheet'!O365)","v":{"$error":"#N/A"}},{"$f":"IF('1. Ordersheet'!P365=\"\",\"\",'1. Ordersheet'!P365)","v":{"$error":"#N/A"}},{"$f":"IF('1. Ordersheet'!Q365=\"\",\"\",'1. Ordersheet'!Q365)","v":""},{"$f":"IF('1. Ordersheet'!R365=\"\",\"\",'1. Ordersheet'!R365)","v":""},{"$f":"IF('1. Ordersheet'!S365=\"\",\"\",'1. Ordersheet'!S365)","v":""},{"$f":"IF('1. Ordersheet'!V365=\"\",\"\",'1. Ordersheet'!V365)","v":""},{"$f":"IF('1. Ordersheet'!W365=\"\",\"\",'1. Ordersheet'!W365)","v":""},{"$f":"IF('1. Ordersheet'!X365=\"\",\"\",'1. Ordersheet'!X365)","v":""},{"$f":"IF('1. Ordersheet'!Y365=\"\",\"\",'1. Ordersheet'!Y365)","v":""},{"$f":"IF('1. Ordersheet'!Z365=\"\",\"\",'1. Ordersheet'!Z365)","v":""},{"$f":"IF('1. Ordersheet'!AA365=\"\",\"\",'1. Ordersheet'!AA365)","v":""},null,{"$f":"IF('1. Ordersheet'!AS365=\"\",\"\",'1. Ordersheet'!AS365)","v":""},{"$f":"IF('1. Ordersheet'!AT365=\"\",\"\",'1. Ordersheet'!AT365)","v":""},null,null,null,null,null,null,null,{"$f":"IF('1. Ordersheet'!AX365=\"\",\"\",'1. Ordersheet'!AX365)","v":""},{"$f":"IF('1. Ordersheet'!AY365=\"\",\"\",'1. Ordersheet'!AY365)","v":""},{"$f":"IF('1. Ordersheet'!AZ365=\"\",\"\",'1. Ordersheet'!AZ365)","v":""},{"$f":"IF('1. Ordersheet'!BA365=\"\",\"\",'1. Ordersheet'!BA365)","v":""},{"$f":"IF('1. Ordersheet'!BC365=\"\",\"\",'1. Ordersheet'!BC365)","v":""},{"$f":"IF('1. Ordersheet'!BD365=\"\",\"\",'1. Ordersheet'!BD365)","v":""},{"$f":"IF('1. Ordersheet'!BE365=\"\",\"\",'1. Ordersheet'!BE365)","v":""},{"$f":"IF('1. Ordersheet'!BF365=\"\",\"\",'1. Ordersheet'!BF365)","v":""},{"$f":"IF('1. Ordersheet'!BG365=\"\",\"\",'1. Ordersheet'!BG365)","v":"ZWO"},{"$f":"IF('1. Ordersheet'!BH365=\"\",\"\",'1. Ordersheet'!BH365)","v":""},{"$f":"IF('1. Ordersheet'!BI365=\"\",\"\",'1. Ordersheet'!BI365)","v":""},{"$f":"IF('1. Ordersheet'!BJ365=\"\",\"\",'1. Ordersheet'!BJ365)","v":""},{"$f":"IF('1. Ordersheet'!BK365=\"\",\"\",'1. Ordersheet'!BK365)","v":""},{"$f":"IF('1. Ordersheet'!BL365=\"\",\"\",'1. Ordersheet'!BL365)","v":""}]
[{"$f":"IF('1. Ordersheet'!F366=\"\",\"\",'1. Ordersheet'!F366)","v":""},{"$f":"IF('1. Ordersheet'!G366=\"\",\"\",'1. Ordersheet'!G366)","v":""},{"$f":"IF('1. Ordersheet'!H366=\"\",\"\",'1. Ordersheet'!H366)","v":""},{"$f":"IF('1. Ordersheet'!I366=\"\",\"\",'1. Ordersheet'!I366)","v":""},{"$f":"IF('1. Ordersheet'!J366=\"\",\"\",'1. Ordersheet'!J366)","v":""},{"$f":"IF('1. Ordersheet'!K366=\"\",\"\",'1. Ordersheet'!K366)","v":""},{"$f":"IF('1. Ordersheet'!L366=\"\",\"\",'1. Ordersheet'!L366)","v":""},{"$f":"IF('1. Ordersheet'!M366=\"\",\"\",'1. Ordersheet'!M366)","v":""},{"$f":"IF('1. Ordersheet'!N366=\"\",\"\",'1. Ordersheet'!N366)","v":""},{"$f":"IF('1. Ordersheet'!O366=\"\",\"\",'1. Ordersheet'!O366)","v":{"$error":"#N/A"}},{"$f":"IF('1. Ordersheet'!P366=\"\",\"\",'1. Ordersheet'!P366)","v":{"$error":"#N/A"}},{"$f":"IF('1. Ordersheet'!Q366=\"\",\"\",'1. Ordersheet'!Q366)","v":""},{"$f":"IF('1. Ordersheet'!R366=\"\",\"\",'1. Ordersheet'!R366)","v":""},{"$f":"IF('1. Ordersheet'!S366=\"\",\"\",'1. Ordersheet'!S366)","v":""},{"$f":"IF('1. Ordersheet'!V366=\"\",\"\",'1. Ordersheet'!V366)","v":""},{"$f":"IF('1. Ordersheet'!W366=\"\",\"\",'1. Ordersheet'!W366)","v":""},{"$f":"IF('1. Ordersheet'!X366=\"\",\"\",'1. Ordersheet'!X366)","v":""},{"$f":"IF('1. Ordersheet'!Y366=\"\",\"\",'1. Ordersheet'!Y366)","v":""},{"$f":"IF('1. Ordersheet'!Z366=\"\",\"\",'1. Ordersheet'!Z366)","v":""},{"$f":"IF('1. Ordersheet'!AA366=\"\",\"\",'1. Ordersheet'!AA366)","v":""},null,{"$f":"IF('1. Ordersheet'!AS366=\"\",\"\",'1. Ordersheet'!AS366)","v":""},{"$f":"IF('1. Ordersheet'!AT366=\"\",\"\",'1. Ordersheet'!AT366)","v":""},null,null,null,null,null,null,null,{"$f":"IF('1. Ordersheet'!AX366=\"\",\"\",'1. Ordersheet'!AX366)","v":""},{"$f":"IF('1. Ordersheet'!AY366=\"\",\"\",'1. Ordersheet'!AY366)","v":""},{"$f":"IF('1. Ordersheet'!AZ366=\"\",\"\",'1. Ordersheet'!AZ366)","v":""},{"$f":"IF('1. Ordersheet'!BA366=\"\",\"\",'1. Ordersheet'!BA366)","v":""},{"$f":"IF('1. Ordersheet'!BC366=\"\",\"\",'1. Ordersheet'!BC366)","v":""},{"$f":"IF('1. Ordersheet'!BD366=\"\",\"\",'1. Ordersheet'!BD366)","v":""},{"$f":"IF('1. Ordersheet'!BE366=\"\",\"\",'1. Ordersheet'!BE366)","v":""},{"$f":"IF('1. Ordersheet'!BF366=\"\",\"\",'1. Ordersheet'!BF366)","v":""},{"$f":"IF('1. Ordersheet'!BG366=\"\",\"\",'1. Ordersheet'!BG366)","v":"ZWO"},{"$f":"IF('1. Ordersheet'!BH366=\"\",\"\",'1. Ordersheet'!BH366)","v":""},{"$f":"IF('1. Ordersheet'!BI366=\"\",\"\",'1. Ordersheet'!BI366)","v":""},{"$f":"IF('1. Ordersheet'!BJ366=\"\",\"\",'1. Ordersheet'!BJ366)","v":""},{"$f":"IF('1. Ordersheet'!BK366=\"\",\"\",'1. Ordersheet'!BK366)","v":""},{"$f":"IF('1. Ordersheet'!BL366=\"\",\"\",'1. Ordersheet'!BL366)","v":""}]
[{"$f":"IF('1. Ordersheet'!F367=\"\",\"\",'1. Ordersheet'!F367)","v":""},{"$f":"IF('1. Ordersheet'!G367=\"\",\"\",'1. Ordersheet'!G367)","v":""},{"$f":"IF('1. Ordersheet'!H367=\"\",\"\",'1. Ordersheet'!H367)","v":""},{"$f":"IF('1. Ordersheet'!I367=\"\",\"\",'1. Ordersheet'!I367)","v":""},{"$f":"IF('1. Ordersheet'!J367=\"\",\"\",'1. Ordersheet'!J367)","v":""},{"$f":"IF('1. Ordersheet'!K367=\"\",\"\",'1. Ordersheet'!K367)","v":""},{"$f":"IF('1. Ordersheet'!L367=\"\",\"\",'1. Ordersheet'!L367)","v":""},{"$f":"IF('1. Ordersheet'!M367=\"\",\"\",'1. Ordersheet'!M367)","v":""},{"$f":"IF('1. Ordersheet'!N367=\"\",\"\",'1. Ordersheet'!N367)","v":""},{"$f":"IF('1. Ordersheet'!O367=\"\",\"\",'1. Ordersheet'!O367)","v":{"$error":"#N/A"}},{"$f":"IF('1. Ordersheet'!P367=\"\",\"\",'1. Ordersheet'!P367)","v":{"$error":"#N/A"}},{"$f":"IF('1. Ordersheet'!Q367=\"\",\"\",'1. Ordersheet'!Q367)","v":""},{"$f":"IF('1. Ordersheet'!R367=\"\",\"\",'1. Ordersheet'!R367)","v":""},{"$f":"IF('1. Ordersheet'!S367=\"\",\"\",'1. Ordersheet'!S367)","v":""},{"$f":"IF('1. Ordersheet'!V367=\"\",\"\",'1. Ordersheet'!V367)","v":""},{"$f":"IF('1. Ordersheet'!W367=\"\",\"\",'1. Ordersheet'!W367)","v":""},{"$f":"IF('1. Ordersheet'!X367=\"\",\"\",'1. Ordersheet'!X367)","v":""},{"$f":"IF('1. Ordersheet'!Y367=\"\",\"\",'1. Ordersheet'!Y367)","v":""},{"$f":"IF('1. Ordersheet'!Z367=\"\",\"\",'1. Ordersheet'!Z367)","v":""},{"$f":"IF('1. Ordersheet'!AA367=\"\",\"\",'1. Ordersheet'!AA367)","v":""},null,{"$f":"IF('1. Ordersheet'!AS367=\"\",\"\",'1. Ordersheet'!AS367)","v":""},{"$f":"IF('1. Ordersheet'!AT367=\"\",\"\",'1. Ordersheet'!AT367)","v":""},null,null,null,null,null,null,null,{"$f":"IF('1. Ordersheet'!AX367=\"\",\"\",'1. Ordersheet'!AX367)","v":""},{"$f":"IF('1. Ordersheet'!AY367=\"\",\"\",'1. Ordersheet'!AY367)","v":""},{"$f":"IF('1. Ordersheet'!AZ367=\"\",\"\",'1. Ordersheet'!AZ367)","v":""},{"$f":"IF('1. Ordersheet'!BA367=\"\",\"\",'1. Ordersheet'!BA367)","v":""},{"$f":"IF('1. Ordersheet'!BC367=\"\",\"\",'1. Ordersheet'!BC367)","v":""},{"$f":"IF('1. Ordersheet'!BD367=\"\",\"\",'1. Ordersheet'!BD367)","v":""},{"$f":"IF('1. Ordersheet'!BE367=\"\",\"\",'1. Ordersheet'!BE367)","v":""},{"$f":"IF('1. Ordersheet'!BF367=\"\",\"\",'1. Ordersheet'!BF367)","v":""},{"$f":"IF('1. Ordersheet'!BG367=\"\",\"\",'1. Ordersheet'!BG367)","v":"ZWO"},{"$f":"IF('1. Ordersheet'!BH367=\"\",\"\",'1. Ordersheet'!BH367)","v":""},{"$f":"IF('1. Ordersheet'!BI367=\"\",\"\",'1. Ordersheet'!BI367)","v":""},{"$f":"IF('1. Ordersheet'!BJ367=\"\",\"\",'1. Ordersheet'!BJ367)","v":""},{"$f":"IF('1. Ordersheet'!BK367=\"\",\"\",'1. Ordersheet'!BK367)","v":""},{"$f":"IF('1. Ordersheet'!BL367=\"\",\"\",'1. Ordersheet'!BL367)","v":""}]
[{"$f":"IF('1. Ordersheet'!F368=\"\",\"\",'1. Ordersheet'!F368)","v":""},{"$f":"IF('1. Ordersheet'!G368=\"\",\"\",'1. Ordersheet'!G368)","v":""},{"$f":"IF('1. Ordersheet'!H368=\"\",\"\",'1. Ordersheet'!H368)","v":""},{"$f":"IF('1. Ordersheet'!I368=\"\",\"\",'1. Ordersheet'!I368)","v":""},{"$f":"IF('1. Ordersheet'!J368=\"\",\"\",'1. Ordersheet'!J368)","v":""},{"$f":"IF('1. Ordersheet'!K368=\"\",\"\",'1. Ordersheet'!K368)","v":""},{"$f":"IF('1. Ordersheet'!L368=\"\",\"\",'1. Ordersheet'!L368)","v":""},{"$f":"IF('1. Ordersheet'!M368=\"\",\"\",'1. Ordersheet'!M368)","v":""},{"$f":"IF('1. Ordersheet'!N368=\"\",\"\",'1. Ordersheet'!N368)","v":""},{"$f":"IF('1. Ordersheet'!O368=\"\",\"\",'1. Ordersheet'!O368)","v":{"$error":"#N/A"}},{"$f":"IF('1. Ordersheet'!P368=\"\",\"\",'1. Ordersheet'!P368)","v":{"$error":"#N/A"}},{"$f":"IF('1. Ordersheet'!Q368=\"\",\"\",'1. Ordersheet'!Q368)","v":""},{"$f":"IF('1. Ordersheet'!R368=\"\",\"\",'1. Ordersheet'!R368)","v":""},{"$f":"IF('1. Ordersheet'!S368=\"\",\"\",'1. Ordersheet'!S368)","v":""},{"$f":"IF('1. Ordersheet'!V368=\"\",\"\",'1. Ordersheet'!V368)","v":""},{"$f":"IF('1. Ordersheet'!W368=\"\",\"\",'1. Ordersheet'!W368)","v":""},{"$f":"IF('1. Ordersheet'!X368=\"\",\"\",'1. Ordersheet'!X368)","v":""},{"$f":"IF('1. Ordersheet'!Y368=\"\",\"\",'1. Ordersheet'!Y368)","v":""},{"$f":"IF('1. Ordersheet'!Z368=\"\",\"\",'1. Ordersheet'!Z368)","v":""},{"$f":"IF('1. Ordersheet'!AA368=\"\",\"\",'1. Ordersheet'!AA368)","v":""},null,{"$f":"IF('1. Ordersheet'!AS368=\"\",\"\",'1. Ordersheet'!AS368)","v":""},{"$f":"IF('1. Ordersheet'!AT368=\"\",\"\",'1. Ordersheet'!AT368)","v":""},null,null,null,null,null,null,null,{"$f":"IF('1. Ordersheet'!AX368=\"\",\"\",'1. Ordersheet'!AX368)","v":""},{"$f":"IF('1. Ordersheet'!AY368=\"\",\"\",'1. Ordersheet'!AY368)","v":""},{"$f":"IF('1. Ordersheet'!AZ368=\"\",\"\",'1. Ordersheet'!AZ368)","v":""},{"$f":"IF('1. Ordersheet'!BA368=\"\",\"\",'1. Ordersheet'!BA368)","v":""},{"$f":"IF('1. Ordersheet'!BC368=\"\",\"\",'1. Ordersheet'!BC368)","v":""},{"$f":"IF('1. Ordersheet'!BD368=\"\",\"\",'1. Ordersheet'!BD368)","v":""},{"$f":"IF('1. Ordersheet'!BE368=\"\",\"\",'1. Ordersheet'!BE368)","v":""},{"$f":"IF('1. Ordersheet'!BF368=\"\",\"\",'1. Ordersheet'!BF368)","v":""},{"$f":"IF('1. Ordersheet'!BG368=\"\",\"\",'1. Ordersheet'!BG368)","v":"ZWO"},{"$f":"IF('1. Ordersheet'!BH368=\"\",\"\",'1. Ordersheet'!BH368)","v":""},{"$f":"IF('1. Ordersheet'!BI368=\"\",\"\",'1. Ordersheet'!BI368)","v":""},{"$f":"IF('1. Ordersheet'!BJ368=\"\",\"\",'1. Ordersheet'!BJ368)","v":""},{"$f":"IF('1. Ordersheet'!BK368=\"\",\"\",'1. Ordersheet'!BK368)","v":""},{"$f":"IF('1. Ordersheet'!BL368=\"\",\"\",'1. Ordersheet'!BL368)","v":""}]
[{"$f":"IF('1. Ordersheet'!F369=\"\",\"\",'1. Ordersheet'!F369)","v":""},{"$f":"IF('1. Ordersheet'!G369=\"\",\"\",'1. Ordersheet'!G369)","v":""},{"$f":"IF('1. Ordersheet'!H369=\"\",\"\",'1. Ordersheet'!H369)","v":""},{"$f":"IF('1. Ordersheet'!I369=\"\",\"\",'1. Ordersheet'!I369)","v":""},{"$f":"IF('1. Ordersheet'!J369=\"\",\"\",'1. Ordersheet'!J369)","v":""},{"$f":"IF('1. Ordersheet'!K369=\"\",\"\",'1. Ordersheet'!K369)","v":""},{"$f":"IF('1. Ordersheet'!L369=\"\",\"\",'1. Ordersheet'!L369)","v":""},{"$f":"IF('1. Ordersheet'!M369=\"\",\"\",'1. Ordersheet'!M369)","v":""},{"$f":"IF('1. Ordersheet'!N369=\"\",\"\",'1. Ordersheet'!N369)","v":""},{"$f":"IF('1. Ordersheet'!O369=\"\",\"\",'1. Ordersheet'!O369)","v":{"$error":"#N/A"}},{"$f":"IF('1. Ordersheet'!P369=\"\",\"\",'1. Ordersheet'!P369)","v":{"$error":"#N/A"}},{"$f":"IF('1. Ordersheet'!Q369=\"\",\"\",'1. Ordersheet'!Q369)","v":""},{"$f":"IF('1. Ordersheet'!R369=\"\",\"\",'1. Ordersheet'!R369)","v":""},{"$f":"IF('1. Ordersheet'!S369=\"\",\"\",'1. Ordersheet'!S369)","v":""},{"$f":"IF('1. Ordersheet'!V369=\"\",\"\",'1. Ordersheet'!V369)","v":""},{"$f":"IF('1. Ordersheet'!W369=\"\",\"\",'1. Ordersheet'!W369)","v":""},{"$f":"IF('1. Ordersheet'!X369=\"\",\"\",'1. Ordersheet'!X369)","v":""},{"$f":"IF('1. Ordersheet'!Y369=\"\",\"\",'1. Ordersheet'!Y369)","v":""},{"$f":"IF('1. Ordersheet'!Z369=\"\",\"\",'1. Ordersheet'!Z369)","v":""},{"$f":"IF('1. Ordersheet'!AA369=\"\",\"\",'1. Ordersheet'!AA369)","v":""},null,{"$f":"IF('1. Ordersheet'!AS369=\"\",\"\",'1. Ordersheet'!AS369)","v":""},{"$f":"IF('1. Ordersheet'!AT369=\"\",\"\",'1. Ordersheet'!AT369)","v":""},null,null,null,null,null,null,null,{"$f":"IF('1. Ordersheet'!AX369=\"\",\"\",'1. Ordersheet'!AX369)","v":""},{"$f":"IF('1. Ordersheet'!AY369=\"\",\"\",'1. Ordersheet'!AY369)","v":""},{"$f":"IF('1. Ordersheet'!AZ369=\"\",\"\",'1. Ordersheet'!AZ369)","v":""},{"$f":"IF('1. Ordersheet'!BA369=\"\",\"\",'1. Ordersheet'!BA369)","v":""},{"$f":"IF('1. Ordersheet'!BC369=\"\",\"\",'1. Ordersheet'!BC369)","v":""},{"$f":"IF('1. Ordersheet'!BD369=\"\",\"\",'1. Ordersheet'!BD369)","v":""},{"$f":"IF('1. Ordersheet'!BE369=\"\",\"\",'1. Ordersheet'!BE369)","v":""},{"$f":"IF('1. Ordersheet'!BF369=\"\",\"\",'1. Ordersheet'!BF369)","v":""},{"$f":"IF('1. Ordersheet'!BG369=\"\",\"\",'1. Ordersheet'!BG369)","v":"ZWO"},{"$f":"IF('1. Ordersheet'!BH369=\"\",\"\",'1. Ordersheet'!BH369)","v":""},{"$f":"IF('1. Ordersheet'!BI369=\"\",\"\",'1. Ordersheet'!BI369)","v":""},{"$f":"IF('1. Ordersheet'!BJ369=\"\",\"\",'1. Ordersheet'!BJ369)","v":""},{"$f":"IF('1. Ordersheet'!BK369=\"\",\"\",'1. Ordersheet'!BK369)","v":""},{"$f":"IF('1. Ordersheet'!BL369=\"\",\"\",'1. Ordersheet'!BL369)","v":""}]
[{"$f":"IF('1. Ordersheet'!F370=\"\",\"\",'1. Ordersheet'!F370)","v":""},{"$f":"IF('1. Ordersheet'!G370=\"\",\"\",'1. Ordersheet'!G370)","v":""},{"$f":"IF('1. Ordersheet'!H370=\"\",\"\",'1. Ordersheet'!H370)","v":""},{"$f":"IF('1. Ordersheet'!I370=\"\",\"\",'1. Ordersheet'!I370)","v":""},{"$f":"IF('1. Ordersheet'!J370=\"\",\"\",'1. Ordersheet'!J370)","v":""},{"$f":"IF('1. Ordersheet'!K370=\"\",\"\",'1. Ordersheet'!K370)","v":""},{"$f":"IF('1. Ordersheet'!L370=\"\",\"\",'1. Ordersheet'!L370)","v":""},{"$f":"IF('1. Ordersheet'!M370=\"\",\"\",'1. Ordersheet'!M370)","v":""},{"$f":"IF('1. Ordersheet'!N370=\"\",\"\",'1. Ordersheet'!N370)","v":""},{"$f":"IF('1. Ordersheet'!O370=\"\",\"\",'1. Ordersheet'!O370)","v":{"$error":"#N/A"}},{"$f":"IF('1. Ordersheet'!P370=\"\",\"\",'1. Ordersheet'!P370)","v":{"$error":"#N/A"}},{"$f":"IF('1. Ordersheet'!Q370=\"\",\"\",'1. Ordersheet'!Q370)","v":""},{"$f":"IF('1. Ordersheet'!R370=\"\",\"\",'1. Ordersheet'!R370)","v":""},{"$f":"IF('1. Ordersheet'!S370=\"\",\"\",'1. Ordersheet'!S370)","v":""},{"$f":"IF('1. Ordersheet'!V370=\"\",\"\",'1. Ordersheet'!V370)","v":""},{"$f":"IF('1. Ordersheet'!W370=\"\",\"\",'1. Ordersheet'!W370)","v":""},{"$f":"IF('1. Ordersheet'!X370=\"\",\"\",'1. Ordersheet'!X370)","v":""},{"$f":"IF('1. Ordersheet'!Y370=\"\",\"\",'1. Ordersheet'!Y370)","v":""},{"$f":"IF('1. Ordersheet'!Z370=\"\",\"\",'1. Ordersheet'!Z370)","v":""},{"$f":"IF('1. Ordersheet'!AA370=\"\",\"\",'1. Ordersheet'!AA370)","v":""},null,{"$f":"IF('1. Ordersheet'!AS370=\"\",\"\",'1. Ordersheet'!AS370)","v":""},{"$f":"IF('1. Ordersheet'!AT370=\"\",\"\",'1. Ordersheet'!AT370)","v":""},null,null,null,null,null,null,null,{"$f":"IF('1. Ordersheet'!AX370=\"\",\"\",'1. Ordersheet'!AX370)","v":""},{"$f":"IF('1. Ordersheet'!AY370=\"\",\"\",'1. Ordersheet'!AY370)","v":""},{"$f":"IF('1. Ordersheet'!AZ370=\"\",\"\",'1. Ordersheet'!AZ370)","v":""},{"$f":"IF('1. Ordersheet'!BA370=\"\",\"\",'1. Ordersheet'!BA370)","v":""},{"$f":"IF('1. Ordersheet'!BC370=\"\",\"\",'1. Ordersheet'!BC370)","v":""},{"$f":"IF('1. Ordersheet'!BD370=\"\",\"\",'1. Ordersheet'!BD370)","v":""},{"$f":"IF('1. Ordersheet'!BE370=\"\",\"\",'1. Ordersheet'!BE370)","v":""},{"$f":"IF('1. Ordersheet'!BF370=\"\",\"\",'1. Ordersheet'!BF370)","v":""},{"$f":"IF('1. Ordersheet'!BG370=\"\",\"\",'1. Ordersheet'!BG370)","v":"ZWO"},{"$f":"IF('1. Ordersheet'!BH370=\"\",\"\",'1. Ordersheet'!BH370)","v":""},{"$f":"IF('1. Ordersheet'!BI370=\"\",\"\",'1. Ordersheet'!BI370)","v":""},{"$f":"IF('1. Ordersheet'!BJ370=\"\",\"\",'1. Ordersheet'!BJ370)","v":""},{"$f":"IF('1. Ordersheet'!BK370=\"\",\"\",'1. Ordersheet'!BK370)","v":""},{"$f":"IF('1. Ordersheet'!BL370=\"\",\"\",'1. Ordersheet'!BL370)","v":""}]
[{"$f":"IF('1. Ordersheet'!F371=\"\",\"\",'1. Ordersheet'!F371)","v":""},{"$f":"IF('1. Ordersheet'!G371=\"\",\"\",'1. Ordersheet'!G371)","v":""},{"$f":"IF('1. Ordersheet'!H371=\"\",\"\",'1. Ordersheet'!H371)","v":""},{"$f":"IF('1. Ordersheet'!I371=\"\",\"\",'1. Ordersheet'!I371)","v":""},{"$f":"IF('1. Ordersheet'!J371=\"\",\"\",'1. Ordersheet'!J371)","v":""},{"$f":"IF('1. Ordersheet'!K371=\"\",\"\",'1. Ordersheet'!K371)","v":""},{"$f":"IF('1. Ordersheet'!L371=\"\",\"\",'1. Ordersheet'!L371)","v":""},{"$f":"IF('1. Ordersheet'!M371=\"\",\"\",'1. Ordersheet'!M371)","v":""},{"$f":"IF('1. Ordersheet'!N371=\"\",\"\",'1. Ordersheet'!N371)","v":""},{"$f":"IF('1. Ordersheet'!O371=\"\",\"\",'1. Ordersheet'!O371)","v":{"$error":"#N/A"}},{"$f":"IF('1. Ordersheet'!P371=\"\",\"\",'1. Ordersheet'!P371)","v":{"$error":"#N/A"}},{"$f":"IF('1. Ordersheet'!Q371=\"\",\"\",'1. Ordersheet'!Q371)","v":""},{"$f":"IF('1. Ordersheet'!R371=\"\",\"\",'1. Ordersheet'!R371)","v":""},{"$f":"IF('1. Ordersheet'!S371=\"\",\"\",'1. Ordersheet'!S371)","v":""},{"$f":"IF('1. Ordersheet'!V371=\"\",\"\",'1. Ordersheet'!V371)","v":""},{"$f":"IF('1. Ordersheet'!W371=\"\",\"\",'1. Ordersheet'!W371)","v":""},{"$f":"IF('1. Ordersheet'!X371=\"\",\"\",'1. Ordersheet'!X371)","v":""},{"$f":"IF('1. Ordersheet'!Y371=\"\",\"\",'1. Ordersheet'!Y371)","v":""},{"$f":"IF('1. Ordersheet'!Z371=\"\",\"\",'1. Ordersheet'!Z371)","v":""},{"$f":"IF('1. Ordersheet'!AA371=\"\",\"\",'1. Ordersheet'!AA371)","v":""},null,{"$f":"IF('1. Ordersheet'!AS371=\"\",\"\",'1. Ordersheet'!AS371)","v":""},{"$f":"IF('1. Ordersheet'!AT371=\"\",\"\",'1. Ordersheet'!AT371)","v":""},null,null,null,null,null,null,null,{"$f":"IF('1. Ordersheet'!AX371=\"\",\"\",'1. Ordersheet'!AX371)","v":""},{"$f":"IF('1. Ordersheet'!AY371=\"\",\"\",'1. Ordersheet'!AY371)","v":""},{"$f":"IF('1. Ordersheet'!AZ371=\"\",\"\",'1. Ordersheet'!AZ371)","v":""},{"$f":"IF('1. Ordersheet'!BA371=\"\",\"\",'1. Ordersheet'!BA371)","v":""},{"$f":"IF('1. Ordersheet'!BC371=\"\",\"\",'1. Ordersheet'!BC371)","v":""},{"$f":"IF('1. Ordersheet'!BD371=\"\",\"\",'1. Ordersheet'!BD371)","v":""},{"$f":"IF('1. Ordersheet'!BE371=\"\",\"\",'1. Ordersheet'!BE371)","v":""},{"$f":"IF('1. Ordersheet'!BF371=\"\",\"\",'1. Ordersheet'!BF371)","v":""},{"$f":"IF('1. Ordersheet'!BG371=\"\",\"\",'1. Ordersheet'!BG371)","v":"ZWO"},{"$f":"IF('1. Ordersheet'!BH371=\"\",\"\",'1. Ordersheet'!BH371)","v":""},{"$f":"IF('1. Ordersheet'!BI371=\"\",\"\",'1. Ordersheet'!BI371)","v":""},{"$f":"IF('1. Ordersheet'!BJ371=\"\",\"\",'1. Ordersheet'!BJ371)","v":""},{"$f":"IF('1. Ordersheet'!BK371=\"\",\"\",'1. Ordersheet'!BK371)","v":""},{"$f":"IF('1. Ordersheet'!BL371=\"\",\"\",'1. Ordersheet'!BL371)","v":""}]
[{"$f":"IF('1. Ordersheet'!F372=\"\",\"\",'1. Ordersheet'!F372)","v":""},{"$f":"IF('1. Ordersheet'!G372=\"\",\"\",'1. Ordersheet'!G372)","v":""},{"$f":"IF('1. Ordersheet'!H372=\"\",\"\",'1. Ordersheet'!H372)","v":""},{"$f":"IF('1. Ordersheet'!I372=\"\",\"\",'1. Ordersheet'!I372)","v":""},{"$f":"IF('1. Ordersheet'!J372=\"\",\"\",'1. Ordersheet'!J372)","v":""},{"$f":"IF('1. Ordersheet'!K372=\"\",\"\",'1. Ordersheet'!K372)","v":""},{"$f":"IF('1. Ordersheet'!L372=\"\",\"\",'1. Ordersheet'!L372)","v":""},{"$f":"IF('1. Ordersheet'!M372=\"\",\"\",'1. Ordersheet'!M372)","v":""},{"$f":"IF('1. Ordersheet'!N372=\"\",\"\",'1. Ordersheet'!N372)","v":""},{"$f":"IF('1. Ordersheet'!O372=\"\",\"\",'1. Ordersheet'!O372)","v":{"$error":"#N/A"}},{"$f":"IF('1. Ordersheet'!P372=\"\",\"\",'1. Ordersheet'!P372)","v":{"$error":"#N/A"}},{"$f":"IF('1. Ordersheet'!Q372=\"\",\"\",'1. Ordersheet'!Q372)","v":""},{"$f":"IF('1. Ordersheet'!R372=\"\",\"\",'1. Ordersheet'!R372)","v":""},{"$f":"IF('1. Ordersheet'!S372=\"\",\"\",'1. Ordersheet'!S372)","v":""},{"$f":"IF('1. Ordersheet'!V372=\"\",\"\",'1. Ordersheet'!V372)","v":""},{"$f":"IF('1. Ordersheet'!W372=\"\",\"\",'1. Ordersheet'!W372)","v":""},{"$f":"IF('1. Ordersheet'!X372=\"\",\"\",'1. Ordersheet'!X372)","v":""},{"$f":"IF('1. Ordersheet'!Y372=\"\",\"\",'1. Ordersheet'!Y372)","v":""},{"$f":"IF('1. Ordersheet'!Z372=\"\",\"\",'1. Ordersheet'!Z372)","v":""},{"$f":"IF('1. Ordersheet'!AA372=\"\",\"\",'1. Ordersheet'!AA372)","v":""},null,{"$f":"IF('1. Ordersheet'!AS372=\"\",\"\",'1. Ordersheet'!AS372)","v":""},{"$f":"IF('1. Ordersheet'!AT372=\"\",\"\",'1. Ordersheet'!AT372)","v":""},null,null,null,null,null,null,null,{"$f":"IF('1. Ordersheet'!AX372=\"\",\"\",'1. Ordersheet'!AX372)","v":""},{"$f":"IF('1. Ordersheet'!AY372=\"\",\"\",'1. Ordersheet'!AY372)","v":""},{"$f":"IF('1. Ordersheet'!AZ372=\"\",\"\",'1. Ordersheet'!AZ372)","v":""},{"$f":"IF('1. Ordersheet'!BA372=\"\",\"\",'1. Ordersheet'!BA372)","v":""},{"$f":"IF('1. Ordersheet'!BC372=\"\",\"\",'1. Ordersheet'!BC372)","v":""},{"$f":"IF('1. Ordersheet'!BD372=\"\",\"\",'1. Ordersheet'!BD372)","v":""},{"$f":"IF('1. Ordersheet'!BE372=\"\",\"\",'1. Ordersheet'!BE372)","v":""},{"$f":"IF('1. Ordersheet'!BF372=\"\",\"\",'1. Ordersheet'!BF372)","v":""},{"$f":"IF('1. Ordersheet'!BG372=\"\",\"\",'1. Ordersheet'!BG372)","v":"ZWO"},{"$f":"IF('1. Ordersheet'!BH372=\"\",\"\",'1. Ordersheet'!BH372)","v":""},{"$f":"IF('1. Ordersheet'!BI372=\"\",\"\",'1. Ordersheet'!BI372)","v":""},{"$f":"IF('1. Ordersheet'!BJ372=\"\",\"\",'1. Ordersheet'!BJ372)","v":""},{"$f":"IF('1. Ordersheet'!BK372=\"\",\"\",'1. Ordersheet'!BK372)","v":""},{"$f":"IF('1. Ordersheet'!BL372=\"\",\"\",'1. Ordersheet'!BL372)","v":""}]
[{"$f":"IF('1. Ordersheet'!F373=\"\",\"\",'1. Ordersheet'!F373)","v":""},{"$f":"IF('1. Ordersheet'!G373=\"\",\"\",'1. Ordersheet'!G373)","v":""},{"$f":"IF('1. Ordersheet'!H373=\"\",\"\",'1. Ordersheet'!H373)","v":""},{"$f":"IF('1. Ordersheet'!I373=\"\",\"\",'1. Ordersheet'!I373)","v":""},{"$f":"IF('1. Ordersheet'!J373=\"\",\"\",'1. Ordersheet'!J373)","v":""},{"$f":"IF('1. Ordersheet'!K373=\"\",\"\",'1. Ordersheet'!K373)","v":""},{"$f":"IF('1. Ordersheet'!L373=\"\",\"\",'1. Ordersheet'!L373)","v":""},{"$f":"IF('1. Ordersheet'!M373=\"\",\"\",'1. Ordersheet'!M373)","v":""},{"$f":"IF('1. Ordersheet'!N373=\"\",\"\",'1. Ordersheet'!N373)","v":""},{"$f":"IF('1. Ordersheet'!O373=\"\",\"\",'1. Ordersheet'!O373)","v":{"$error":"#N/A"}},{"$f":"IF('1. Ordersheet'!P373=\"\",\"\",'1. Ordersheet'!P373)","v":{"$error":"#N/A"}},{"$f":"IF('1. Ordersheet'!Q373=\"\",\"\",'1. Ordersheet'!Q373)","v":""},{"$f":"IF('1. Ordersheet'!R373=\"\",\"\",'1. Ordersheet'!R373)","v":""},{"$f":"IF('1. Ordersheet'!S373=\"\",\"\",'1. Ordersheet'!S373)","v":""},{"$f":"IF('1. Ordersheet'!V373=\"\",\"\",'1. Ordersheet'!V373)","v":""},{"$f":"IF('1. Ordersheet'!W373=\"\",\"\",'1. Ordersheet'!W373)","v":""},{"$f":"IF('1. Ordersheet'!X373=\"\",\"\",'1. Ordersheet'!X373)","v":""},{"$f":"IF('1. Ordersheet'!Y373=\"\",\"\",'1. Ordersheet'!Y373)","v":""},{"$f":"IF('1. Ordersheet'!Z373=\"\",\"\",'1. Ordersheet'!Z373)","v":""},{"$f":"IF('1. Ordersheet'!AA373=\"\",\"\",'1. Ordersheet'!AA373)","v":""},null,{"$f":"IF('1. Ordersheet'!AS373=\"\",\"\",'1. Ordersheet'!AS373)","v":""},{"$f":"IF('1. Ordersheet'!AT373=\"\",\"\",'1. Ordersheet'!AT373)","v":""},null,null,null,null,null,null,null,{"$f":"IF('1. Ordersheet'!AX373=\"\",\"\",'1. Ordersheet'!AX373)","v":""},{"$f":"IF('1. Ordersheet'!AY373=\"\",\"\",'1. Ordersheet'!AY373)","v":""},{"$f":"IF('1. Ordersheet'!AZ373=\"\",\"\",'1. Ordersheet'!AZ373)","v":""},{"$f":"IF('1. Ordersheet'!BA373=\"\",\"\",'1. Ordersheet'!BA373)","v":""},{"$f":"IF('1. Ordersheet'!BC373=\"\",\"\",'1. Ordersheet'!BC373)","v":""},{"$f":"IF('1. Ordersheet'!BD373=\"\",\"\",'1. Ordersheet'!BD373)","v":""},{"$f":"IF('1. Ordersheet'!BE373=\"\",\"\",'1. Ordersheet'!BE373)","v":""},{"$f":"IF('1. Ordersheet'!BF373=\"\",\"\",'1. Ordersheet'!BF373)","v":""},{"$f":"IF('1. Ordersheet'!BG373=\"\",\"\",'1. Ordersheet'!BG373)","v":"ZWO"},{"$f":"IF('1. Ordersheet'!BH373=\"\",\"\",'1. Ordersheet'!BH373)","v":""},{"$f":"IF('1. Ordersheet'!BI373=\"\",\"\",'1. Ordersheet'!BI373)","v":""},{"$f":"IF('1. Ordersheet'!BJ373=\"\",\"\",'1. Ordersheet'!BJ373)","v":""},{"$f":"IF('1. Ordersheet'!BK373=\"\",\"\",'1. Ordersheet'!BK373)","v":""},{"$f":"IF('1. Ordersheet'!BL373=\"\",\"\",'1. Ordersheet'!BL373)","v":""}]
[{"$f":"IF('1. Ordersheet'!F374=\"\",\"\",'1. Ordersheet'!F374)","v":""},{"$f":"IF('1. Ordersheet'!G374=\"\",\"\",'1. Ordersheet'!G374)","v":""},{"$f":"IF('1. Ordersheet'!H374=\"\",\"\",'1. Ordersheet'!H374)","v":""},{"$f":"IF('1. Ordersheet'!I374=\"\",\"\",'1. Ordersheet'!I374)","v":""},{"$f":"IF('1. Ordersheet'!J374=\"\",\"\",'1. Ordersheet'!J374)","v":""},{"$f":"IF('1. Ordersheet'!K374=\"\",\"\",'1. Ordersheet'!K374)","v":""},{"$f":"IF('1. Ordersheet'!L374=\"\",\"\",'1. Ordersheet'!L374)","v":""},{"$f":"IF('1. Ordersheet'!M374=\"\",\"\",'1. Ordersheet'!M374)","v":""},{"$f":"IF('1. Ordersheet'!N374=\"\",\"\",'1. Ordersheet'!N374)","v":""},{"$f":"IF('1. Ordersheet'!O374=\"\",\"\",'1. Ordersheet'!O374)","v":{"$error":"#N/A"}},{"$f":"IF('1. Ordersheet'!P374=\"\",\"\",'1. Ordersheet'!P374)","v":{"$error":"#N/A"}},{"$f":"IF('1. Ordersheet'!Q374=\"\",\"\",'1. Ordersheet'!Q374)","v":""},{"$f":"IF('1. Ordersheet'!R374=\"\",\"\",'1. Ordersheet'!R374)","v":""},{"$f":"IF('1. Ordersheet'!S374=\"\",\"\",'1. Ordersheet'!S374)","v":""},{"$f":"IF('1. Ordersheet'!V374=\"\",\"\",'1. Ordersheet'!V374)","v":""},{"$f":"IF('1. Ordersheet'!W374=\"\",\"\",'1. Ordersheet'!W374)","v":""},{"$f":"IF('1. Ordersheet'!X374=\"\",\"\",'1. Ordersheet'!X374)","v":""},{"$f":"IF('1. Ordersheet'!Y374=\"\",\"\",'1. Ordersheet'!Y374)","v":""},{"$f":"IF('1. Ordersheet'!Z374=\"\",\"\",'1. Ordersheet'!Z374)","v":""},{"$f":"IF('1. Ordersheet'!AA374=\"\",\"\",'1. Ordersheet'!AA374)","v":""},null,{"$f":"IF('1. Ordersheet'!AS374=\"\",\"\",'1. Ordersheet'!AS374)","v":""},{"$f":"IF('1. Ordersheet'!AT374=\"\",\"\",'1. Ordersheet'!AT374)","v":""},null,null,null,null,null,null,null,{"$f":"IF('1. Ordersheet'!AX374=\"\",\"\",'1. Ordersheet'!AX374)","v":""},{"$f":"IF('1. Ordersheet'!AY374=\"\",\"\",'1. Ordersheet'!AY374)","v":""},{"$f":"IF('1. Ordersheet'!AZ374=\"\",\"\",'1. Ordersheet'!AZ374)","v":""},{"$f":"IF('1. Ordersheet'!BA374=\"\",\"\",'1. Ordersheet'!BA374)","v":""},{"$f":"IF('1. Ordersheet'!BC374=\"\",\"\",'1. Ordersheet'!BC374)","v":""},{"$f":"IF('1. Ordersheet'!BD374=\"\",\"\",'1. Ordersheet'!BD374)","v":""},{"$f":"IF('1. Ordersheet'!BE374=\"\",\"\",'1. Ordersheet'!BE374)","v":""},{"$f":"IF('1. Ordersheet'!BF374=\"\",\"\",'1. Ordersheet'!BF374)","v":""},{"$f":"IF('1. Ordersheet'!BG374=\"\",\"\",'1. Ordersheet'!BG374)","v":"ZWO"},{"$f":"IF('1. Ordersheet'!BH374=\"\",\"\",'1. Ordersheet'!BH374)","v":""},{"$f":"IF('1. Ordersheet'!BI374=\"\",\"\",'1. Ordersheet'!BI374)","v":""},{"$f":"IF('1. Ordersheet'!BJ374=\"\",\"\",'1. Ordersheet'!BJ374)","v":""},{"$f":"IF('1. Ordersheet'!BK374=\"\",\"\",'1. Ordersheet'!BK374)","v":""},{"$f":"IF('1. Ordersheet'!BL374=\"\",\"\",'1. Ordersheet'!BL374)","v":""}]
[{"$f":"IF('1. Ordersheet'!F375=\"\",\"\",'1. Ordersheet'!F375)","v":""},{"$f":"IF('1. Ordersheet'!G375=\"\",\"\",'1. Ordersheet'!G375)","v":""},{"$f":"IF('1. Ordersheet'!H375=\"\",\"\",'1. Ordersheet'!H375)","v":""},{"$f":"IF('1. Ordersheet'!I375=\"\",\"\",'1. Ordersheet'!I375)","v":""},{"$f":"IF('1. Ordersheet'!J375=\"\",\"\",'1. Ordersheet'!J375)","v":""},{"$f":"IF('1. Ordersheet'!K375=\"\",\"\",'1. Ordersheet'!K375)","v":""},{"$f":"IF('1. Ordersheet'!L375=\"\",\"\",'1. Ordersheet'!L375)","v":""},{"$f":"IF('1. Ordersheet'!M375=\"\",\"\",'1. Ordersheet'!M375)","v":""},{"$f":"IF('1. Ordersheet'!N375=\"\",\"\",'1. Ordersheet'!N375)","v":""},{"$f":"IF('1. Ordersheet'!O375=\"\",\"\",'1. Ordersheet'!O375)","v":{"$error":"#N/A"}},{"$f":"IF('1. Ordersheet'!P375=\"\",\"\",'1. Ordersheet'!P375)","v":{"$error":"#N/A"}},{"$f":"IF('1. Ordersheet'!Q375=\"\",\"\",'1. Ordersheet'!Q375)","v":""},{"$f":"IF('1. Ordersheet'!R375=\"\",\"\",'1. Ordersheet'!R375)","v":""},{"$f":"IF('1. Ordersheet'!S375=\"\",\"\",'1. Ordersheet'!S375)","v":""},{"$f":"IF('1. Ordersheet'!V375=\"\",\"\",'1. Ordersheet'!V375)","v":""},{"$f":"IF('1. Ordersheet'!W375=\"\",\"\",'1. Ordersheet'!W375)","v":""},{"$f":"IF('1. Ordersheet'!X375=\"\",\"\",'1. Ordersheet'!X375)","v":""},{"$f":"IF('1. Ordersheet'!Y375=\"\",\"\",'1. Ordersheet'!Y375)","v":""},{"$f":"IF('1. Ordersheet'!Z375=\"\",\"\",'1. Ordersheet'!Z375)","v":""},{"$f":"IF('1. Ordersheet'!AA375=\"\",\"\",'1. Ordersheet'!AA375)","v":""},null,{"$f":"IF('1. Ordersheet'!AS375=\"\",\"\",'1. Ordersheet'!AS375)","v":""},{"$f":"IF('1. Ordersheet'!AT375=\"\",\"\",'1. Ordersheet'!AT375)","v":""},null,null,null,null,null,null,null,{"$f":"IF('1. Ordersheet'!AX375=\"\",\"\",'1. Ordersheet'!AX375)","v":""},{"$f":"IF('1. Ordersheet'!AY375=\"\",\"\",'1. Ordersheet'!AY375)","v":""},{"$f":"IF('1. Ordersheet'!AZ375=\"\",\"\",'1. Ordersheet'!AZ375)","v":""},{"$f":"IF('1. Ordersheet'!BA375=\"\",\"\",'1. Ordersheet'!BA375)","v":""},{"$f":"IF('1. Ordersheet'!BC375=\"\",\"\",'1. Ordersheet'!BC375)","v":""},{"$f":"IF('1. Ordersheet'!BD375=\"\",\"\",'1. Ordersheet'!BD375)","v":""},{"$f":"IF('1. Ordersheet'!BE375=\"\",\"\",'1. Ordersheet'!BE375)","v":""},{"$f":"IF('1. Ordersheet'!BF375=\"\",\"\",'1. Ordersheet'!BF375)","v":""},{"$f":"IF('1. Ordersheet'!BG375=\"\",\"\",'1. Ordersheet'!BG375)","v":"ZWO"},{"$f":"IF('1. Ordersheet'!BH375=\"\",\"\",'1. Ordersheet'!BH375)","v":""},{"$f":"IF('1. Ordersheet'!BI375=\"\",\"\",'1. Ordersheet'!BI375)","v":""},{"$f":"IF('1. Ordersheet'!BJ375=\"\",\"\",'1. Ordersheet'!BJ375)","v":""},{"$f":"IF('1. Ordersheet'!BK375=\"\",\"\",'1. Ordersheet'!BK375)","v":""},{"$f":"IF('1. Ordersheet'!BL375=\"\",\"\",'1. Ordersheet'!BL375)","v":""}]
[{"$f":"IF('1. Ordersheet'!F376=\"\",\"\",'1. Ordersheet'!F376)","v":""},{"$f":"IF('1. Ordersheet'!G376=\"\",\"\",'1. Ordersheet'!G376)","v":""},{"$f":"IF('1. Ordersheet'!H376=\"\",\"\",'1. Ordersheet'!H376)","v":""},{"$f":"IF('1. Ordersheet'!I376=\"\",\"\",'1. Ordersheet'!I376)","v":""},{"$f":"IF('1. Ordersheet'!J376=\"\",\"\",'1. Ordersheet'!J376)","v":""},{"$f":"IF('1. Ordersheet'!K376=\"\",\"\",'1. Ordersheet'!K376)","v":""},{"$f":"IF('1. Ordersheet'!L376=\"\",\"\",'1. Ordersheet'!L376)","v":""},{"$f":"IF('1. Ordersheet'!M376=\"\",\"\",'1. Ordersheet'!M376)","v":""},{"$f":"IF('1. Ordersheet'!N376=\"\",\"\",'1. Ordersheet'!N376)","v":""},{"$f":"IF('1. Ordersheet'!O376=\"\",\"\",'1. Ordersheet'!O376)","v":{"$error":"#N/A"}},{"$f":"IF('1. Ordersheet'!P376=\"\",\"\",'1. Ordersheet'!P376)","v":{"$error":"#N/A"}},{"$f":"IF('1. Ordersheet'!Q376=\"\",\"\",'1. Ordersheet'!Q376)","v":""},{"$f":"IF('1. Ordersheet'!R376=\"\",\"\",'1. Ordersheet'!R376)","v":""},{"$f":"IF('1. Ordersheet'!S376=\"\",\"\",'1. Ordersheet'!S376)","v":""},{"$f":"IF('1. Ordersheet'!V376=\"\",\"\",'1. Ordersheet'!V376)","v":""},{"$f":"IF('1. Ordersheet'!W376=\"\",\"\",'1. Ordersheet'!W376)","v":""},{"$f":"IF('1. Ordersheet'!X376=\"\",\"\",'1. Ordersheet'!X376)","v":""},{"$f":"IF('1. Ordersheet'!Y376=\"\",\"\",'1. Ordersheet'!Y376)","v":""},{"$f":"IF('1. Ordersheet'!Z376=\"\",\"\",'1. Ordersheet'!Z376)","v":""},{"$f":"IF('1. Ordersheet'!AA376=\"\",\"\",'1. Ordersheet'!AA376)","v":""},null,{"$f":"IF('1. Ordersheet'!AS376=\"\",\"\",'1. Ordersheet'!AS376)","v":""},{"$f":"IF('1. Ordersheet'!AT376=\"\",\"\",'1. Ordersheet'!AT376)","v":""},null,null,null,null,null,null,null,{"$f":"IF('1. Ordersheet'!AX376=\"\",\"\",'1. Ordersheet'!AX376)","v":""},{"$f":"IF('1. Ordersheet'!AY376=\"\",\"\",'1. Ordersheet'!AY376)","v":""},{"$f":"IF('1. Ordersheet'!AZ376=\"\",\"\",'1. Ordersheet'!AZ376)","v":""},{"$f":"IF('1. Ordersheet'!BA376=\"\",\"\",'1. Ordersheet'!BA376)","v":""},{"$f":"IF('1. Ordersheet'!BC376=\"\",\"\",'1. Ordersheet'!BC376)","v":""},{"$f":"IF('1. Ordersheet'!BD376=\"\",\"\",'1. Ordersheet'!BD376)","v":""},{"$f":"IF('1. Ordersheet'!BE376=\"\",\"\",'1. Ordersheet'!BE376)","v":""},{"$f":"IF('1. Ordersheet'!BF376=\"\",\"\",'1. Ordersheet'!BF376)","v":""},{"$f":"IF('1. Ordersheet'!BG376=\"\",\"\",'1. Ordersheet'!BG376)","v":"ZWO"},{"$f":"IF('1. Ordersheet'!BH376=\"\",\"\",'1. Ordersheet'!BH376)","v":""},{"$f":"IF('1. Ordersheet'!BI376=\"\",\"\",'1. Ordersheet'!BI376)","v":""},{"$f":"IF('1. Ordersheet'!BJ376=\"\",\"\",'1. Ordersheet'!BJ376)","v":""},{"$f":"IF('1. Ordersheet'!BK376=\"\",\"\",'1. Ordersheet'!BK376)","v":""},{"$f":"IF('1. Ordersheet'!BL376=\"\",\"\",'1. Ordersheet'!BL376)","v":""}]
[{"$f":"IF('1. Ordersheet'!F377=\"\",\"\",'1. Ordersheet'!F377)","v":""},{"$f":"IF('1. Ordersheet'!G377=\"\",\"\",'1. Ordersheet'!G377)","v":""},{"$f":"IF('1. Ordersheet'!H377=\"\",\"\",'1. Ordersheet'!H377)","v":""},{"$f":"IF('1. Ordersheet'!I377=\"\",\"\",'1. Ordersheet'!I377)","v":""},{"$f":"IF('1. Ordersheet'!J377=\"\",\"\",'1. Ordersheet'!J377)","v":""},{"$f":"IF('1. Ordersheet'!K377=\"\",\"\",'1. Ordersheet'!K377)","v":""},{"$f":"IF('1. Ordersheet'!L377=\"\",\"\",'1. Ordersheet'!L377)","v":""},{"$f":"IF('1. Ordersheet'!M377=\"\",\"\",'1. Ordersheet'!M377)","v":""},{"$f":"IF('1. Ordersheet'!N377=\"\",\"\",'1. Ordersheet'!N377)","v":""},{"$f":"IF('1. Ordersheet'!O377=\"\",\"\",'1. Ordersheet'!O377)","v":{"$error":"#N/A"}},{"$f":"IF('1. Ordersheet'!P377=\"\",\"\",'1. Ordersheet'!P377)","v":{"$error":"#N/A"}},{"$f":"IF('1. Ordersheet'!Q377=\"\",\"\",'1. Ordersheet'!Q377)","v":""},{"$f":"IF('1. Ordersheet'!R377=\"\",\"\",'1. Ordersheet'!R377)","v":""},{"$f":"IF('1. Ordersheet'!S377=\"\",\"\",'1. Ordersheet'!S377)","v":""},{"$f":"IF('1. Ordersheet'!V377=\"\",\"\",'1. Ordersheet'!V377)","v":""},{"$f":"IF('1. Ordersheet'!W377=\"\",\"\",'1. Ordersheet'!W377)","v":""},{"$f":"IF('1. Ordersheet'!X377=\"\",\"\",'1. Ordersheet'!X377)","v":""},{"$f":"IF('1. Ordersheet'!Y377=\"\",\"\",'1. Ordersheet'!Y377)","v":""},{"$f":"IF('1. Ordersheet'!Z377=\"\",\"\",'1. Ordersheet'!Z377)","v":""},{"$f":"IF('1. Ordersheet'!AA377=\"\",\"\",'1. Ordersheet'!AA377)","v":""},null,{"$f":"IF('1. Ordersheet'!AS377=\"\",\"\",'1. Ordersheet'!AS377)","v":""},{"$f":"IF('1. Ordersheet'!AT377=\"\",\"\",'1. Ordersheet'!AT377)","v":""},null,null,null,null,null,null,null,{"$f":"IF('1. Ordersheet'!AX377=\"\",\"\",'1. Ordersheet'!AX377)","v":""},{"$f":"IF('1. Ordersheet'!AY377=\"\",\"\",'1. Ordersheet'!AY377)","v":""},{"$f":"IF('1. Ordersheet'!AZ377=\"\",\"\",'1. Ordersheet'!AZ377)","v":""},{"$f":"IF('1. Ordersheet'!BA377=\"\",\"\",'1. Ordersheet'!BA377)","v":""},{"$f":"IF('1. Ordersheet'!BC377=\"\",\"\",'1. Ordersheet'!BC377)","v":""},{"$f":"IF('1. Ordersheet'!BD377=\"\",\"\",'1. Ordersheet'!BD377)","v":""},{"$f":"IF('1. Ordersheet'!BE377=\"\",\"\",'1. Ordersheet'!BE377)","v":""},{"$f":"IF('1. Ordersheet'!BF377=\"\",\"\",'1. Ordersheet'!BF377)","v":""},{"$f":"IF('1. Ordersheet'!BG377=\"\",\"\",'1. Ordersheet'!BG377)","v":"ZWO"},{"$f":"IF('1. Ordersheet'!BH377=\"\",\"\",'1. Ordersheet'!BH377)","v":""},{"$f":"IF('1. Ordersheet'!BI377=\"\",\"\",'1. Ordersheet'!BI377)","v":""},{"$f":"IF('1. Ordersheet'!BJ377=\"\",\"\",'1. Ordersheet'!BJ377)","v":""},{"$f":"IF('1. Ordersheet'!BK377=\"\",\"\",'1. Ordersheet'!BK377)","v":""},{"$f":"IF('1. Ordersheet'!BL377=\"\",\"\",'1. Ordersheet'!BL377)","v":""}]
[{"$f":"IF('1. Ordersheet'!F378=\"\",\"\",'1. Ordersheet'!F378)","v":""},{"$f":"IF('1. Ordersheet'!G378=\"\",\"\",'1. Ordersheet'!G378)","v":""},{"$f":"IF('1. Ordersheet'!H378=\"\",\"\",'1. Ordersheet'!H378)","v":""},{"$f":"IF('1. Ordersheet'!I378=\"\",\"\",'1. Ordersheet'!I378)","v":""},{"$f":"IF('1. Ordersheet'!J378=\"\",\"\",'1. Ordersheet'!J378)","v":""},{"$f":"IF('1. Ordersheet'!K378=\"\",\"\",'1. Ordersheet'!K378)","v":""},{"$f":"IF('1. Ordersheet'!L378=\"\",\"\",'1. Ordersheet'!L378)","v":""},{"$f":"IF('1. Ordersheet'!M378=\"\",\"\",'1. Ordersheet'!M378)","v":""},{"$f":"IF('1. Ordersheet'!N378=\"\",\"\",'1. Ordersheet'!N378)","v":""},{"$f":"IF('1. Ordersheet'!O378=\"\",\"\",'1. Ordersheet'!O378)","v":{"$error":"#N/A"}},{"$f":"IF('1. Ordersheet'!P378=\"\",\"\",'1. Ordersheet'!P378)","v":{"$error":"#N/A"}},{"$f":"IF('1. Ordersheet'!Q378=\"\",\"\",'1. Ordersheet'!Q378)","v":""},{"$f":"IF('1. Ordersheet'!R378=\"\",\"\",'1. Ordersheet'!R378)","v":""},{"$f":"IF('1. Ordersheet'!S378=\"\",\"\",'1. Ordersheet'!S378)","v":""},{"$f":"IF('1. Ordersheet'!V378=\"\",\"\",'1. Ordersheet'!V378)","v":""},{"$f":"IF('1. Ordersheet'!W378=\"\",\"\",'1. Ordersheet'!W378)","v":""},{"$f":"IF('1. Ordersheet'!X378=\"\",\"\",'1. Ordersheet'!X378)","v":""},{"$f":"IF('1. Ordersheet'!Y378=\"\",\"\",'1. Ordersheet'!Y378)","v":""},{"$f":"IF('1. Ordersheet'!Z378=\"\",\"\",'1. Ordersheet'!Z378)","v":""},{"$f":"IF('1. Ordersheet'!AA378=\"\",\"\",'1. Ordersheet'!AA378)","v":""},null,{"$f":"IF('1. Ordersheet'!AS378=\"\",\"\",'1. Ordersheet'!AS378)","v":""},{"$f":"IF('1. Ordersheet'!AT378=\"\",\"\",'1. Ordersheet'!AT378)","v":""},null,null,null,null,null,null,null,{"$f":"IF('1. Ordersheet'!AX378=\"\",\"\",'1. Ordersheet'!AX378)","v":""},{"$f":"IF('1. Ordersheet'!AY378=\"\",\"\",'1. Ordersheet'!AY378)","v":""},{"$f":"IF('1. Ordersheet'!AZ378=\"\",\"\",'1. Ordersheet'!AZ378)","v":""},{"$f":"IF('1. Ordersheet'!BA378=\"\",\"\",'1. Ordersheet'!BA378)","v":""},{"$f":"IF('1. Ordersheet'!BC378=\"\",\"\",'1. Ordersheet'!BC378)","v":""},{"$f":"IF('1. Ordersheet'!BD378=\"\",\"\",'1. Ordersheet'!BD378)","v":""},{"$f":"IF('1. Ordersheet'!BE378=\"\",\"\",'1. Ordersheet'!BE378)","v":""},{"$f":"IF('1. Ordersheet'!BF378=\"\",\"\",'1. Ordersheet'!BF378)","v":""},{"$f":"IF('1. Ordersheet'!BG378=\"\",\"\",'1. Ordersheet'!BG378)","v":"ZWO"},{"$f":"IF('1. Ordersheet'!BH378=\"\",\"\",'1. Ordersheet'!BH378)","v":""},{"$f":"IF('1. Ordersheet'!BI378=\"\",\"\",'1. Ordersheet'!BI378)","v":""},{"$f":"IF('1. Ordersheet'!BJ378=\"\",\"\",'1. Ordersheet'!BJ378)","v":""},{"$f":"IF('1. Ordersheet'!BK378=\"\",\"\",'1. Ordersheet'!BK378)","v":""},{"$f":"IF('1. Ordersheet'!BL378=\"\",\"\",'1. Ordersheet'!BL378)","v":""}]
[{"$f":"IF('1. Ordersheet'!F379=\"\",\"\",'1. Ordersheet'!F379)","v":""},{"$f":"IF('1. Ordersheet'!G379=\"\",\"\",'1. Ordersheet'!G379)","v":""},{"$f":"IF('1. Ordersheet'!H379=\"\",\"\",'1. Ordersheet'!H379)","v":""},{"$f":"IF('1. Ordersheet'!I379=\"\",\"\",'1. Ordersheet'!I379)","v":""},{"$f":"IF('1. Ordersheet'!J379=\"\",\"\",'1. Ordersheet'!J379)","v":""},{"$f":"IF('1. Ordersheet'!K379=\"\",\"\",'1. Ordersheet'!K379)","v":""},{"$f":"IF('1. Ordersheet'!L379=\"\",\"\",'1. Ordersheet'!L379)","v":""},{"$f":"IF('1. Ordersheet'!M379=\"\",\"\",'1. Ordersheet'!M379)","v":""},{"$f":"IF('1. Ordersheet'!N379=\"\",\"\",'1. Ordersheet'!N379)","v":""},{"$f":"IF('1. Ordersheet'!O379=\"\",\"\",'1. Ordersheet'!O379)","v":{"$error":"#N/A"}},{"$f":"IF('1. Ordersheet'!P379=\"\",\"\",'1. Ordersheet'!P379)","v":{"$error":"#N/A"}},{"$f":"IF('1. Ordersheet'!Q379=\"\",\"\",'1. Ordersheet'!Q379)","v":""},{"$f":"IF('1. Ordersheet'!R379=\"\",\"\",'1. Ordersheet'!R379)","v":""},{"$f":"IF('1. Ordersheet'!S379=\"\",\"\",'1. Ordersheet'!S379)","v":""},{"$f":"IF('1. Ordersheet'!V379=\"\",\"\",'1. Ordersheet'!V379)","v":""},{"$f":"IF('1. Ordersheet'!W379=\"\",\"\",'1. Ordersheet'!W379)","v":""},{"$f":"IF('1. Ordersheet'!X379=\"\",\"\",'1. Ordersheet'!X379)","v":""},{"$f":"IF('1. Ordersheet'!Y379=\"\",\"\",'1. Ordersheet'!Y379)","v":""},{"$f":"IF('1. Ordersheet'!Z379=\"\",\"\",'1. Ordersheet'!Z379)","v":""},{"$f":"IF('1. Ordersheet'!AA379=\"\",\"\",'1. Ordersheet'!AA379)","v":""},null,{"$f":"IF('1. Ordersheet'!AS379=\"\",\"\",'1. Ordersheet'!AS379)","v":""},{"$f":"IF('1. Ordersheet'!AT379=\"\",\"\",'1. Ordersheet'!AT379)","v":""},null,null,null,null,null,null,null,{"$f":"IF('1. Ordersheet'!AX379=\"\",\"\",'1. Ordersheet'!AX379)","v":""},{"$f":"IF('1. Ordersheet'!AY379=\"\",\"\",'1. Ordersheet'!AY379)","v":""},{"$f":"IF('1. Ordersheet'!AZ379=\"\",\"\",'1. Ordersheet'!AZ379)","v":""},{"$f":"IF('1. Ordersheet'!BA379=\"\",\"\",'1. Ordersheet'!BA379)","v":""},{"$f":"IF('1. Ordersheet'!BC379=\"\",\"\",'1. Ordersheet'!BC379)","v":""},{"$f":"IF('1. Ordersheet'!BD379=\"\",\"\",'1. Ordersheet'!BD379)","v":""},{"$f":"IF('1. Ordersheet'!BE379=\"\",\"\",'1. Ordersheet'!BE379)","v":""},{"$f":"IF('1. Ordersheet'!BF379=\"\",\"\",'1. Ordersheet'!BF379)","v":""},{"$f":"IF('1. Ordersheet'!BG379=\"\",\"\",'1. Ordersheet'!BG379)","v":"ZWO"},{"$f":"IF('1. Ordersheet'!BH379=\"\",\"\",'1. Ordersheet'!BH379)","v":""},{"$f":"IF('1. Ordersheet'!BI379=\"\",\"\",'1. Ordersheet'!BI379)","v":""},{"$f":"IF('1. Ordersheet'!BJ379=\"\",\"\",'1. Ordersheet'!BJ379)","v":""},{"$f":"IF('1. Ordersheet'!BK379=\"\",\"\",'1. Ordersheet'!BK379)","v":""},{"$f":"IF('1. Ordersheet'!BL379=\"\",\"\",'1. Ordersheet'!BL379)","v":""}]
[{"$f":"IF('1. Ordersheet'!F380=\"\",\"\",'1. Ordersheet'!F380)","v":""},{"$f":"IF('1. Ordersheet'!G380=\"\",\"\",'1. Ordersheet'!G380)","v":""},{"$f":"IF('1. Ordersheet'!H380=\"\",\"\",'1. Ordersheet'!H380)","v":""},{"$f":"IF('1. Ordersheet'!I380=\"\",\"\",'1. Ordersheet'!I380)","v":""},{"$f":"IF('1. Ordersheet'!J380=\"\",\"\",'1. Ordersheet'!J380)","v":""},{"$f":"IF('1. Ordersheet'!K380=\"\",\"\",'1. Ordersheet'!K380)","v":""},{"$f":"IF('1. Ordersheet'!L380=\"\",\"\",'1. Ordersheet'!L380)","v":""},{"$f":"IF('1. Ordersheet'!M380=\"\",\"\",'1. Ordersheet'!M380)","v":""},{"$f":"IF('1. Ordersheet'!N380=\"\",\"\",'1. Ordersheet'!N380)","v":""},{"$f":"IF('1. Ordersheet'!O380=\"\",\"\",'1. Ordersheet'!O380)","v":{"$error":"#N/A"}},{"$f":"IF('1. Ordersheet'!P380=\"\",\"\",'1. Ordersheet'!P380)","v":{"$error":"#N/A"}},{"$f":"IF('1. Ordersheet'!Q380=\"\",\"\",'1. Ordersheet'!Q380)","v":""},{"$f":"IF('1. Ordersheet'!R380=\"\",\"\",'1. Ordersheet'!R380)","v":""},{"$f":"IF('1. Ordersheet'!S380=\"\",\"\",'1. Ordersheet'!S380)","v":""},{"$f":"IF('1. Ordersheet'!V380=\"\",\"\",'1. Ordersheet'!V380)","v":""},{"$f":"IF('1. Ordersheet'!W380=\"\",\"\",'1. Ordersheet'!W380)","v":""},{"$f":"IF('1. Ordersheet'!X380=\"\",\"\",'1. Ordersheet'!X380)","v":""},{"$f":"IF('1. Ordersheet'!Y380=\"\",\"\",'1. Ordersheet'!Y380)","v":""},{"$f":"IF('1. Ordersheet'!Z380=\"\",\"\",'1. Ordersheet'!Z380)","v":""},{"$f":"IF('1. Ordersheet'!AA380=\"\",\"\",'1. Ordersheet'!AA380)","v":""},null,{"$f":"IF('1. Ordersheet'!AS380=\"\",\"\",'1. Ordersheet'!AS380)","v":""},{"$f":"IF('1. Ordersheet'!AT380=\"\",\"\",'1. Ordersheet'!AT380)","v":""},null,null,null,null,null,null,null,{"$f":"IF('1. Ordersheet'!AX380=\"\",\"\",'1. Ordersheet'!AX380)","v":""},{"$f":"IF('1. Ordersheet'!AY380=\"\",\"\",'1. Ordersheet'!AY380)","v":""},{"$f":"IF('1. Ordersheet'!AZ380=\"\",\"\",'1. Ordersheet'!AZ380)","v":""},{"$f":"IF('1. Ordersheet'!BA380=\"\",\"\",'1. Ordersheet'!BA380)","v":""},{"$f":"IF('1. Ordersheet'!BC380=\"\",\"\",'1. Ordersheet'!BC380)","v":""},{"$f":"IF('1. Ordersheet'!BD380=\"\",\"\",'1. Ordersheet'!BD380)","v":""},{"$f":"IF('1. Ordersheet'!BE380=\"\",\"\",'1. Ordersheet'!BE380)","v":""},{"$f":"IF('1. Ordersheet'!BF380=\"\",\"\",'1. Ordersheet'!BF380)","v":""},{"$f":"IF('1. Ordersheet'!BG380=\"\",\"\",'1. Ordersheet'!BG380)","v":"ZWO"},{"$f":"IF('1. Ordersheet'!BH380=\"\",\"\",'1. Ordersheet'!BH380)","v":""},{"$f":"IF('1. Ordersheet'!BI380=\"\",\"\",'1. Ordersheet'!BI380)","v":""},{"$f":"IF('1. Ordersheet'!BJ380=\"\",\"\",'1. Ordersheet'!BJ380)","v":""},{"$f":"IF('1. Ordersheet'!BK380=\"\",\"\",'1. Ordersheet'!BK380)","v":""},{"$f":"IF('1. Ordersheet'!BL380=\"\",\"\",'1. Ordersheet'!BL380)","v":""}]
[{"$f":"IF('1. Ordersheet'!F381=\"\",\"\",'1. Ordersheet'!F381)","v":""},{"$f":"IF('1. Ordersheet'!G381=\"\",\"\",'1. Ordersheet'!G381)","v":""},{"$f":"IF('1. Ordersheet'!H381=\"\",\"\",'1. Ordersheet'!H381)","v":""},{"$f":"IF('1. Ordersheet'!I381=\"\",\"\",'1. Ordersheet'!I381)","v":""},{"$f":"IF('1. Ordersheet'!J381=\"\",\"\",'1. Ordersheet'!J381)","v":""},{"$f":"IF('1. Ordersheet'!K381=\"\",\"\",'1. Ordersheet'!K381)","v":""},{"$f":"IF('1. Ordersheet'!L381=\"\",\"\",'1. Ordersheet'!L381)","v":""},{"$f":"IF('1. Ordersheet'!M381=\"\",\"\",'1. Ordersheet'!M381)","v":""},{"$f":"IF('1. Ordersheet'!N381=\"\",\"\",'1. Ordersheet'!N381)","v":""},{"$f":"IF('1. Ordersheet'!O381=\"\",\"\",'1. Ordersheet'!O381)","v":{"$error":"#N/A"}},{"$f":"IF('1. Ordersheet'!P381=\"\",\"\",'1. Ordersheet'!P381)","v":{"$error":"#N/A"}},{"$f":"IF('1. Ordersheet'!Q381=\"\",\"\",'1. Ordersheet'!Q381)","v":""},{"$f":"IF('1. Ordersheet'!R381=\"\",\"\",'1. Ordersheet'!R381)","v":""},{"$f":"IF('1. Ordersheet'!S381=\"\",\"\",'1. Ordersheet'!S381)","v":""},{"$f":"IF('1. Ordersheet'!V381=\"\",\"\",'1. Ordersheet'!V381)","v":""},{"$f":"IF('1. Ordersheet'!W381=\"\",\"\",'1. Ordersheet'!W381)","v":""},{"$f":"IF('1. Ordersheet'!X381=\"\",\"\",'1. Ordersheet'!X381)","v":""},{"$f":"IF('1. Ordersheet'!Y381=\"\",\"\",'1. Ordersheet'!Y381)","v":""},{"$f":"IF('1. Ordersheet'!Z381=\"\",\"\",'1. Ordersheet'!Z381)","v":""},{"$f":"IF('1. Ordersheet'!AA381=\"\",\"\",'1. Ordersheet'!AA381)","v":""},null,{"$f":"IF('1. Ordersheet'!AS381=\"\",\"\",'1. Ordersheet'!AS381)","v":""},{"$f":"IF('1. Ordersheet'!AT381=\"\",\"\",'1. Ordersheet'!AT381)","v":""},null,null,null,null,null,null,null,{"$f":"IF('1. Ordersheet'!AX381=\"\",\"\",'1. Ordersheet'!AX381)","v":""},{"$f":"IF('1. Ordersheet'!AY381=\"\",\"\",'1. Ordersheet'!AY381)","v":""},{"$f":"IF('1. Ordersheet'!AZ381=\"\",\"\",'1. Ordersheet'!AZ381)","v":""},{"$f":"IF('1. Ordersheet'!BA381=\"\",\"\",'1. Ordersheet'!BA381)","v":""},{"$f":"IF('1. Ordersheet'!BC381=\"\",\"\",'1. Ordersheet'!BC381)","v":""},{"$f":"IF('1. Ordersheet'!BD381=\"\",\"\",'1. Ordersheet'!BD381)","v":""},{"$f":"IF('1. Ordersheet'!BE381=\"\",\"\",'1. Ordersheet'!BE381)","v":""},{"$f":"IF('1. Ordersheet'!BF381=\"\",\"\",'1. Ordersheet'!BF381)","v":""},{"$f":"IF('1. Ordersheet'!BG381=\"\",\"\",'1. Ordersheet'!BG381)","v":"ZWO"},{"$f":"IF('1. Ordersheet'!BH381=\"\",\"\",'1. Ordersheet'!BH381)","v":""},{"$f":"IF('1. Ordersheet'!BI381=\"\",\"\",'1. Ordersheet'!BI381)","v":""},{"$f":"IF('1. Ordersheet'!BJ381=\"\",\"\",'1. Ordersheet'!BJ381)","v":""},{"$f":"IF('1. Ordersheet'!BK381=\"\",\"\",'1. Ordersheet'!BK381)","v":""},{"$f":"IF('1. Ordersheet'!BL381=\"\",\"\",'1. Ordersheet'!BL381)","v":""}]
[{"$f":"IF('1. Ordersheet'!F382=\"\",\"\",'1. Ordersheet'!F382)","v":""},{"$f":"IF('1. Ordersheet'!G382=\"\",\"\",'1. Ordersheet'!G382)","v":""},{"$f":"IF('1. Ordersheet'!H382=\"\",\"\",'1. Ordersheet'!H382)","v":""},{"$f":"IF('1. Ordersheet'!I382=\"\",\"\",'1. Ordersheet'!I382)","v":""},{"$f":"IF('1. Ordersheet'!J382=\"\",\"\",'1. Ordersheet'!J382)","v":""},{"$f":"IF('1. Ordersheet'!K382=\"\",\"\",'1. Ordersheet'!K382)","v":""},{"$f":"IF('1. Ordersheet'!L382=\"\",\"\",'1. Ordersheet'!L382)","v":""},{"$f":"IF('1. Ordersheet'!M382=\"\",\"\",'1. Ordersheet'!M382)","v":""},{"$f":"IF('1. Ordersheet'!N382=\"\",\"\",'1. Ordersheet'!N382)","v":""},{"$f":"IF('1. Ordersheet'!O382=\"\",\"\",'1. Ordersheet'!O382)","v":{"$error":"#N/A"}},{"$f":"IF('1. Ordersheet'!P382=\"\",\"\",'1. Ordersheet'!P382)","v":{"$error":"#N/A"}},{"$f":"IF('1. Ordersheet'!Q382=\"\",\"\",'1. Ordersheet'!Q382)","v":""},{"$f":"IF('1. Ordersheet'!R382=\"\",\"\",'1. Ordersheet'!R382)","v":""},{"$f":"IF('1. Ordersheet'!S382=\"\",\"\",'1. Ordersheet'!S382)","v":""},{"$f":"IF('1. Ordersheet'!V382=\"\",\"\",'1. Ordersheet'!V382)","v":""},{"$f":"IF('1. Ordersheet'!W382=\"\",\"\",'1. Ordersheet'!W382)","v":""},{"$f":"IF('1. Ordersheet'!X382=\"\",\"\",'1. Ordersheet'!X382)","v":""},{"$f":"IF('1. Ordersheet'!Y382=\"\",\"\",'1. Ordersheet'!Y382)","v":""},{"$f":"IF('1. Ordersheet'!Z382=\"\",\"\",'1. Ordersheet'!Z382)","v":""},{"$f":"IF('1. Ordersheet'!AA382=\"\",\"\",'1. Ordersheet'!AA382)","v":""},null,{"$f":"IF('1. Ordersheet'!AS382=\"\",\"\",'1. Ordersheet'!AS382)","v":""},{"$f":"IF('1. Ordersheet'!AT382=\"\",\"\",'1. Ordersheet'!AT382)","v":""},null,null,null,null,null,null,null,{"$f":"IF('1. Ordersheet'!AX382=\"\",\"\",'1. Ordersheet'!AX382)","v":""},{"$f":"IF('1. Ordersheet'!AY382=\"\",\"\",'1. Ordersheet'!AY382)","v":""},{"$f":"IF('1. Ordersheet'!AZ382=\"\",\"\",'1. Ordersheet'!AZ382)","v":""},{"$f":"IF('1. Ordersheet'!BA382=\"\",\"\",'1. Ordersheet'!BA382)","v":""},{"$f":"IF('1. Ordersheet'!BC382=\"\",\"\",'1. Ordersheet'!BC382)","v":""},{"$f":"IF('1. Ordersheet'!BD382=\"\",\"\",'1. Ordersheet'!BD382)","v":""},{"$f":"IF('1. Ordersheet'!BE382=\"\",\"\",'1. Ordersheet'!BE382)","v":""},{"$f":"IF('1. Ordersheet'!BF382=\"\",\"\",'1. Ordersheet'!BF382)","v":""},{"$f":"IF('1. Ordersheet'!BG382=\"\",\"\",'1. Ordersheet'!BG382)","v":"ZWO"},{"$f":"IF('1. Ordersheet'!BH382=\"\",\"\",'1. Ordersheet'!BH382)","v":""},{"$f":"IF('1. Ordersheet'!BI382=\"\",\"\",'1. Ordersheet'!BI382)","v":""},{"$f":"IF('1. Ordersheet'!BJ382=\"\",\"\",'1. Ordersheet'!BJ382)","v":""},{"$f":"IF('1. Ordersheet'!BK382=\"\",\"\",'1. Ordersheet'!BK382)","v":""},{"$f":"IF('1. Ordersheet'!BL382=\"\",\"\",'1. Ordersheet'!BL382)","v":""}]
[{"$f":"IF('1. Ordersheet'!F383=\"\",\"\",'1. Ordersheet'!F383)","v":""},{"$f":"IF('1. Ordersheet'!G383=\"\",\"\",'1. Ordersheet'!G383)","v":""},{"$f":"IF('1. Ordersheet'!H383=\"\",\"\",'1. Ordersheet'!H383)","v":""},{"$f":"IF('1. Ordersheet'!I383=\"\",\"\",'1. Ordersheet'!I383)","v":""},{"$f":"IF('1. Ordersheet'!J383=\"\",\"\",'1. Ordersheet'!J383)","v":""},{"$f":"IF('1. Ordersheet'!K383=\"\",\"\",'1. Ordersheet'!K383)","v":""},{"$f":"IF('1. Ordersheet'!L383=\"\",\"\",'1. Ordersheet'!L383)","v":""},{"$f":"IF('1. Ordersheet'!M383=\"\",\"\",'1. Ordersheet'!M383)","v":""},{"$f":"IF('1. Ordersheet'!N383=\"\",\"\",'1. Ordersheet'!N383)","v":""},{"$f":"IF('1. Ordersheet'!O383=\"\",\"\",'1. Ordersheet'!O383)","v":{"$error":"#N/A"}},{"$f":"IF('1. Ordersheet'!P383=\"\",\"\",'1. Ordersheet'!P383)","v":{"$error":"#N/A"}},{"$f":"IF('1. Ordersheet'!Q383=\"\",\"\",'1. Ordersheet'!Q383)","v":""},{"$f":"IF('1. Ordersheet'!R383=\"\",\"\",'1. Ordersheet'!R383)","v":""},{"$f":"IF('1. Ordersheet'!S383=\"\",\"\",'1. Ordersheet'!S383)","v":""},{"$f":"IF('1. Ordersheet'!V383=\"\",\"\",'1. Ordersheet'!V383)","v":""},{"$f":"IF('1. Ordersheet'!W383=\"\",\"\",'1. Ordersheet'!W383)","v":""},{"$f":"IF('1. Ordersheet'!X383=\"\",\"\",'1. Ordersheet'!X383)","v":""},{"$f":"IF('1. Ordersheet'!Y383=\"\",\"\",'1. Ordersheet'!Y383)","v":""},{"$f":"IF('1. Ordersheet'!Z383=\"\",\"\",'1. Ordersheet'!Z383)","v":""},{"$f":"IF('1. Ordersheet'!AA383=\"\",\"\",'1. Ordersheet'!AA383)","v":""},null,{"$f":"IF('1. Ordersheet'!AS383=\"\",\"\",'1. Ordersheet'!AS383)","v":""},{"$f":"IF('1. Ordersheet'!AT383=\"\",\"\",'1. Ordersheet'!AT383)","v":""},null,null,null,null,null,null,null,{"$f":"IF('1. Ordersheet'!AX383=\"\",\"\",'1. Ordersheet'!AX383)","v":""},{"$f":"IF('1. Ordersheet'!AY383=\"\",\"\",'1. Ordersheet'!AY383)","v":""},{"$f":"IF('1. Ordersheet'!AZ383=\"\",\"\",'1. Ordersheet'!AZ383)","v":""},{"$f":"IF('1. Ordersheet'!BA383=\"\",\"\",'1. Ordersheet'!BA383)","v":""},{"$f":"IF('1. Ordersheet'!BC383=\"\",\"\",'1. Ordersheet'!BC383)","v":""},{"$f":"IF('1. Ordersheet'!BD383=\"\",\"\",'1. Ordersheet'!BD383)","v":""},{"$f":"IF('1. Ordersheet'!BE383=\"\",\"\",'1. Ordersheet'!BE383)","v":""},{"$f":"IF('1. Ordersheet'!BF383=\"\",\"\",'1. Ordersheet'!BF383)","v":""},{"$f":"IF('1. Ordersheet'!BG383=\"\",\"\",'1. Ordersheet'!BG383)","v":"ZWO"},{"$f":"IF('1. Ordersheet'!BH383=\"\",\"\",'1. Ordersheet'!BH383)","v":""},{"$f":"IF('1. Ordersheet'!BI383=\"\",\"\",'1. Ordersheet'!BI383)","v":""},{"$f":"IF('1. Ordersheet'!BJ383=\"\",\"\",'1. Ordersheet'!BJ383)","v":""},{"$f":"IF('1. Ordersheet'!BK383=\"\",\"\",'1. Ordersheet'!BK383)","v":""},{"$f":"IF('1. Ordersheet'!BL383=\"\",\"\",'1. Ordersheet'!BL383)","v":""}]
[{"$f":"IF('1. Ordersheet'!F384=\"\",\"\",'1. Ordersheet'!F384)","v":""},{"$f":"IF('1. Ordersheet'!G384=\"\",\"\",'1. Ordersheet'!G384)","v":""},{"$f":"IF('1. Ordersheet'!H384=\"\",\"\",'1. Ordersheet'!H384)","v":""},{"$f":"IF('1. Ordersheet'!I384=\"\",\"\",'1. Ordersheet'!I384)","v":""},{"$f":"IF('1. Ordersheet'!J384=\"\",\"\",'1. Ordersheet'!J384)","v":""},{"$f":"IF('1. Ordersheet'!K384=\"\",\"\",'1. Ordersheet'!K384)","v":""},{"$f":"IF('1. Ordersheet'!L384=\"\",\"\",'1. Ordersheet'!L384)","v":""},{"$f":"IF('1. Ordersheet'!M384=\"\",\"\",'1. Ordersheet'!M384)","v":""},{"$f":"IF('1. Ordersheet'!N384=\"\",\"\",'1. Ordersheet'!N384)","v":""},{"$f":"IF('1. Ordersheet'!O384=\"\",\"\",'1. Ordersheet'!O384)","v":{"$error":"#N/A"}},{"$f":"IF('1. Ordersheet'!P384=\"\",\"\",'1. Ordersheet'!P384)","v":{"$error":"#N/A"}},{"$f":"IF('1. Ordersheet'!Q384=\"\",\"\",'1. Ordersheet'!Q384)","v":""},{"$f":"IF('1. Ordersheet'!R384=\"\",\"\",'1. Ordersheet'!R384)","v":""},{"$f":"IF('1. Ordersheet'!S384=\"\",\"\",'1. Ordersheet'!S384)","v":""},{"$f":"IF('1. Ordersheet'!V384=\"\",\"\",'1. Ordersheet'!V384)","v":""},{"$f":"IF('1. Ordersheet'!W384=\"\",\"\",'1. Ordersheet'!W384)","v":""},{"$f":"IF('1. Ordersheet'!X384=\"\",\"\",'1. Ordersheet'!X384)","v":""},{"$f":"IF('1. Ordersheet'!Y384=\"\",\"\",'1. Ordersheet'!Y384)","v":""},{"$f":"IF('1. Ordersheet'!Z384=\"\",\"\",'1. Ordersheet'!Z384)","v":""},{"$f":"IF('1. Ordersheet'!AA384=\"\",\"\",'1. Ordersheet'!AA384)","v":""},null,{"$f":"IF('1. Ordersheet'!AS384=\"\",\"\",'1. Ordersheet'!AS384)","v":""},{"$f":"IF('1. Ordersheet'!AT384=\"\",\"\",'1. Ordersheet'!AT384)","v":""},null,null,null,null,null,null,null,{"$f":"IF('1. Ordersheet'!AX384=\"\",\"\",'1. Ordersheet'!AX384)","v":""},{"$f":"IF('1. Ordersheet'!AY384=\"\",\"\",'1. Ordersheet'!AY384)","v":""},{"$f":"IF('1. Ordersheet'!AZ384=\"\",\"\",'1. Ordersheet'!AZ384)","v":""},{"$f":"IF('1. Ordersheet'!BA384=\"\",\"\",'1. Ordersheet'!BA384)","v":""},{"$f":"IF('1. Ordersheet'!BC384=\"\",\"\",'1. Ordersheet'!BC384)","v":""},{"$f":"IF('1. Ordersheet'!BD384=\"\",\"\",'1. Ordersheet'!BD384)","v":""},{"$f":"IF('1. Ordersheet'!BE384=\"\",\"\",'1. Ordersheet'!BE384)","v":""},{"$f":"IF('1. Ordersheet'!BF384=\"\",\"\",'1. Ordersheet'!BF384)","v":""},{"$f":"IF('1. Ordersheet'!BG384=\"\",\"\",'1. Ordersheet'!BG384)","v":"ZWO"},{"$f":"IF('1. Ordersheet'!BH384=\"\",\"\",'1. Ordersheet'!BH384)","v":""},{"$f":"IF('1. Ordersheet'!BI384=\"\",\"\",'1. Ordersheet'!BI384)","v":""},{"$f":"IF('1. Ordersheet'!BJ384=\"\",\"\",'1. Ordersheet'!BJ384)","v":""},{"$f":"IF('1. Ordersheet'!BK384=\"\",\"\",'1. Ordersheet'!BK384)","v":""},{"$f":"IF('1. Ordersheet'!BL384=\"\",\"\",'1. Ordersheet'!BL384)","v":""}]
[{"$f":"IF('1. Ordersheet'!F385=\"\",\"\",'1. Ordersheet'!F385)","v":""},{"$f":"IF('1. Ordersheet'!G385=\"\",\"\",'1. Ordersheet'!G385)","v":""},{"$f":"IF('1. Ordersheet'!H385=\"\",\"\",'1. Ordersheet'!H385)","v":""},{"$f":"IF('1. Ordersheet'!I385=\"\",\"\",'1. Ordersheet'!I385)","v":""},{"$f":"IF('1. Ordersheet'!J385=\"\",\"\",'1. Ordersheet'!J385)","v":""},{"$f":"IF('1. Ordersheet'!K385=\"\",\"\",'1. Ordersheet'!K385)","v":""},{"$f":"IF('1. Ordersheet'!L385=\"\",\"\",'1. Ordersheet'!L385)","v":""},{"$f":"IF('1. Ordersheet'!M385=\"\",\"\",'1. Ordersheet'!M385)","v":""},{"$f":"IF('1. Ordersheet'!N385=\"\",\"\",'1. Ordersheet'!N385)","v":""},{"$f":"IF('1. Ordersheet'!O385=\"\",\"\",'1. Ordersheet'!O385)","v":{"$error":"#N/A"}},{"$f":"IF('1. Ordersheet'!P385=\"\",\"\",'1. Ordersheet'!P385)","v":{"$error":"#N/A"}},{"$f":"IF('1. Ordersheet'!Q385=\"\",\"\",'1. Ordersheet'!Q385)","v":""},{"$f":"IF('1. Ordersheet'!R385=\"\",\"\",'1. Ordersheet'!R385)","v":""},{"$f":"IF('1. Ordersheet'!S385=\"\",\"\",'1. Ordersheet'!S385)","v":""},{"$f":"IF('1. Ordersheet'!V385=\"\",\"\",'1. Ordersheet'!V385)","v":""},{"$f":"IF('1. Ordersheet'!W385=\"\",\"\",'1. Ordersheet'!W385)","v":""},{"$f":"IF('1. Ordersheet'!X385=\"\",\"\",'1. Ordersheet'!X385)","v":""},{"$f":"IF('1. Ordersheet'!Y385=\"\",\"\",'1. Ordersheet'!Y385)","v":""},{"$f":"IF('1. Ordersheet'!Z385=\"\",\"\",'1. Ordersheet'!Z385)","v":""},{"$f":"IF('1. Ordersheet'!AA385=\"\",\"\",'1. Ordersheet'!AA385)","v":""},null,{"$f":"IF('1. Ordersheet'!AS385=\"\",\"\",'1. Ordersheet'!AS385)","v":""},{"$f":"IF('1. Ordersheet'!AT385=\"\",\"\",'1. Ordersheet'!AT385)","v":""},null,null,null,null,null,null,null,{"$f":"IF('1. Ordersheet'!AX385=\"\",\"\",'1. Ordersheet'!AX385)","v":""},{"$f":"IF('1. Ordersheet'!AY385=\"\",\"\",'1. Ordersheet'!AY385)","v":""},{"$f":"IF('1. Ordersheet'!AZ385=\"\",\"\",'1. Ordersheet'!AZ385)","v":""},{"$f":"IF('1. Ordersheet'!BA385=\"\",\"\",'1. Ordersheet'!BA385)","v":""},{"$f":"IF('1. Ordersheet'!BC385=\"\",\"\",'1. Ordersheet'!BC385)","v":""},{"$f":"IF('1. Ordersheet'!BD385=\"\",\"\",'1. Ordersheet'!BD385)","v":""},{"$f":"IF('1. Ordersheet'!BE385=\"\",\"\",'1. Ordersheet'!BE385)","v":""},{"$f":"IF('1. Ordersheet'!BF385=\"\",\"\",'1. Ordersheet'!BF385)","v":""},{"$f":"IF('1. Ordersheet'!BG385=\"\",\"\",'1. Ordersheet'!BG385)","v":"ZWO"},{"$f":"IF('1. Ordersheet'!BH385=\"\",\"\",'1. Ordersheet'!BH385)","v":""},{"$f":"IF('1. Ordersheet'!BI385=\"\",\"\",'1. Ordersheet'!BI385)","v":""},{"$f":"IF('1. Ordersheet'!BJ385=\"\",\"\",'1. Ordersheet'!BJ385)","v":""},{"$f":"IF('1. Ordersheet'!BK385=\"\",\"\",'1. Ordersheet'!BK385)","v":""},{"$f":"IF('1. Ordersheet'!BL385=\"\",\"\",'1. Ordersheet'!BL385)","v":""}]
[{"$f":"IF('1. Ordersheet'!F386=\"\",\"\",'1. Ordersheet'!F386)","v":""},{"$f":"IF('1. Ordersheet'!G386=\"\",\"\",'1. Ordersheet'!G386)","v":""},{"$f":"IF('1. Ordersheet'!H386=\"\",\"\",'1. Ordersheet'!H386)","v":""},{"$f":"IF('1. Ordersheet'!I386=\"\",\"\",'1. Ordersheet'!I386)","v":""},{"$f":"IF('1. Ordersheet'!J386=\"\",\"\",'1. Ordersheet'!J386)","v":""},{"$f":"IF('1. Ordersheet'!K386=\"\",\"\",'1. Ordersheet'!K386)","v":""},{"$f":"IF('1. Ordersheet'!L386=\"\",\"\",'1. Ordersheet'!L386)","v":""},{"$f":"IF('1. Ordersheet'!M386=\"\",\"\",'1. Ordersheet'!M386)","v":""},{"$f":"IF('1. Ordersheet'!N386=\"\",\"\",'1. Ordersheet'!N386)","v":""},{"$f":"IF('1. Ordersheet'!O386=\"\",\"\",'1. Ordersheet'!O386)","v":{"$error":"#N/A"}},{"$f":"IF('1. Ordersheet'!P386=\"\",\"\",'1. Ordersheet'!P386)","v":{"$error":"#N/A"}},{"$f":"IF('1. Ordersheet'!Q386=\"\",\"\",'1. Ordersheet'!Q386)","v":""},{"$f":"IF('1. Ordersheet'!R386=\"\",\"\",'1. Ordersheet'!R386)","v":""},{"$f":"IF('1. Ordersheet'!S386=\"\",\"\",'1. Ordersheet'!S386)","v":""},{"$f":"IF('1. Ordersheet'!V386=\"\",\"\",'1. Ordersheet'!V386)","v":""},{"$f":"IF('1. Ordersheet'!W386=\"\",\"\",'1. Ordersheet'!W386)","v":""},{"$f":"IF('1. Ordersheet'!X386=\"\",\"\",'1. Ordersheet'!X386)","v":""},{"$f":"IF('1. Ordersheet'!Y386=\"\",\"\",'1. Ordersheet'!Y386)","v":""},{"$f":"IF('1. Ordersheet'!Z386=\"\",\"\",'1. Ordersheet'!Z386)","v":""},{"$f":"IF('1. Ordersheet'!AA386=\"\",\"\",'1. Ordersheet'!AA386)","v":""},null,{"$f":"IF('1. Ordersheet'!AS386=\"\",\"\",'1. Ordersheet'!AS386)","v":""},{"$f":"IF('1. Ordersheet'!AT386=\"\",\"\",'1. Ordersheet'!AT386)","v":""},null,null,null,null,null,null,null,{"$f":"IF('1. Ordersheet'!AX386=\"\",\"\",'1. Ordersheet'!AX386)","v":""},{"$f":"IF('1. Ordersheet'!AY386=\"\",\"\",'1. Ordersheet'!AY386)","v":""},{"$f":"IF('1. Ordersheet'!AZ386=\"\",\"\",'1. Ordersheet'!AZ386)","v":""},{"$f":"IF('1. Ordersheet'!BA386=\"\",\"\",'1. Ordersheet'!BA386)","v":""},{"$f":"IF('1. Ordersheet'!BC386=\"\",\"\",'1. Ordersheet'!BC386)","v":""},{"$f":"IF('1. Ordersheet'!BD386=\"\",\"\",'1. Ordersheet'!BD386)","v":""},{"$f":"IF('1. Ordersheet'!BE386=\"\",\"\",'1. Ordersheet'!BE386)","v":""},{"$f":"IF('1. Ordersheet'!BF386=\"\",\"\",'1. Ordersheet'!BF386)","v":""},{"$f":"IF('1. Ordersheet'!BG386=\"\",\"\",'1. Ordersheet'!BG386)","v":"ZWO"},{"$f":"IF('1. Ordersheet'!BH386=\"\",\"\",'1. Ordersheet'!BH386)","v":""},{"$f":"IF('1. Ordersheet'!BI386=\"\",\"\",'1. Ordersheet'!BI386)","v":""},{"$f":"IF('1. Ordersheet'!BJ386=\"\",\"\",'1. Ordersheet'!BJ386)","v":""},{"$f":"IF('1. Ordersheet'!BK386=\"\",\"\",'1. Ordersheet'!BK386)","v":""},{"$f":"IF('1. Ordersheet'!BL386=\"\",\"\",'1. Ordersheet'!BL386)","v":""}]
[{"$f":"IF('1. Ordersheet'!F387=\"\",\"\",'1. Ordersheet'!F387)","v":""},{"$f":"IF('1. Ordersheet'!G387=\"\",\"\",'1. Ordersheet'!G387)","v":""},{"$f":"IF('1. Ordersheet'!H387=\"\",\"\",'1. Ordersheet'!H387)","v":""},{"$f":"IF('1. Ordersheet'!I387=\"\",\"\",'1. Ordersheet'!I387)","v":""},{"$f":"IF('1. Ordersheet'!J387=\"\",\"\",'1. Ordersheet'!J387)","v":""},{"$f":"IF('1. Ordersheet'!K387=\"\",\"\",'1. Ordersheet'!K387)","v":""},{"$f":"IF('1. Ordersheet'!L387=\"\",\"\",'1. Ordersheet'!L387)","v":""},{"$f":"IF('1. Ordersheet'!M387=\"\",\"\",'1. Ordersheet'!M387)","v":""},{"$f":"IF('1. Ordersheet'!N387=\"\",\"\",'1. Ordersheet'!N387)","v":""},{"$f":"IF('1. Ordersheet'!O387=\"\",\"\",'1. Ordersheet'!O387)","v":{"$error":"#N/A"}},{"$f":"IF('1. Ordersheet'!P387=\"\",\"\",'1. Ordersheet'!P387)","v":{"$error":"#N/A"}},{"$f":"IF('1. Ordersheet'!Q387=\"\",\"\",'1. Ordersheet'!Q387)","v":""},{"$f":"IF('1. Ordersheet'!R387=\"\",\"\",'1. Ordersheet'!R387)","v":""},{"$f":"IF('1. Ordersheet'!S387=\"\",\"\",'1. Ordersheet'!S387)","v":""},{"$f":"IF('1. Ordersheet'!V387=\"\",\"\",'1. Ordersheet'!V387)","v":""},{"$f":"IF('1. Ordersheet'!W387=\"\",\"\",'1. Ordersheet'!W387)","v":""},{"$f":"IF('1. Ordersheet'!X387=\"\",\"\",'1. Ordersheet'!X387)","v":""},{"$f":"IF('1. Ordersheet'!Y387=\"\",\"\",'1. Ordersheet'!Y387)","v":""},{"$f":"IF('1. Ordersheet'!Z387=\"\",\"\",'1. Ordersheet'!Z387)","v":""},{"$f":"IF('1. Ordersheet'!AA387=\"\",\"\",'1. Ordersheet'!AA387)","v":""},null,{"$f":"IF('1. Ordersheet'!AS387=\"\",\"\",'1. Ordersheet'!AS387)","v":""},{"$f":"IF('1. Ordersheet'!AT387=\"\",\"\",'1. Ordersheet'!AT387)","v":""},null,null,null,null,null,null,null,{"$f":"IF('1. Ordersheet'!AX387=\"\",\"\",'1. Ordersheet'!AX387)","v":""},{"$f":"IF('1. Ordersheet'!AY387=\"\",\"\",'1. Ordersheet'!AY387)","v":""},{"$f":"IF('1. Ordersheet'!AZ387=\"\",\"\",'1. Ordersheet'!AZ387)","v":""},{"$f":"IF('1. Ordersheet'!BA387=\"\",\"\",'1. Ordersheet'!BA387)","v":""},{"$f":"IF('1. Ordersheet'!BC387=\"\",\"\",'1. Ordersheet'!BC387)","v":""},{"$f":"IF('1. Ordersheet'!BD387=\"\",\"\",'1. Ordersheet'!BD387)","v":""},{"$f":"IF('1. Ordersheet'!BE387=\"\",\"\",'1. Ordersheet'!BE387)","v":""},{"$f":"IF('1. Ordersheet'!BF387=\"\",\"\",'1. Ordersheet'!BF387)","v":""},{"$f":"IF('1. Ordersheet'!BG387=\"\",\"\",'1. Ordersheet'!BG387)","v":"ZWO"},{"$f":"IF('1. Ordersheet'!BH387=\"\",\"\",'1. Ordersheet'!BH387)","v":""},{"$f":"IF('1. Ordersheet'!BI387=\"\",\"\",'1. Ordersheet'!BI387)","v":""},{"$f":"IF('1. Ordersheet'!BJ387=\"\",\"\",'1. Ordersheet'!BJ387)","v":""},{"$f":"IF('1. Ordersheet'!BK387=\"\",\"\",'1. Ordersheet'!BK387)","v":""},{"$f":"IF('1. Ordersheet'!BL387=\"\",\"\",'1. Ordersheet'!BL387)","v":""}]
[{"$f":"IF('1. Ordersheet'!F388=\"\",\"\",'1. Ordersheet'!F388)","v":""},{"$f":"IF('1. Ordersheet'!G388=\"\",\"\",'1. Ordersheet'!G388)","v":""},{"$f":"IF('1. Ordersheet'!H388=\"\",\"\",'1. Ordersheet'!H388)","v":""},{"$f":"IF('1. Ordersheet'!I388=\"\",\"\",'1. Ordersheet'!I388)","v":""},{"$f":"IF('1. Ordersheet'!J388=\"\",\"\",'1. Ordersheet'!J388)","v":""},{"$f":"IF('1. Ordersheet'!K388=\"\",\"\",'1. Ordersheet'!K388)","v":""},{"$f":"IF('1. Ordersheet'!L388=\"\",\"\",'1. Ordersheet'!L388)","v":""},{"$f":"IF('1. Ordersheet'!M388=\"\",\"\",'1. Ordersheet'!M388)","v":""},{"$f":"IF('1. Ordersheet'!N388=\"\",\"\",'1. Ordersheet'!N388)","v":""},{"$f":"IF('1. Ordersheet'!O388=\"\",\"\",'1. Ordersheet'!O388)","v":{"$error":"#N/A"}},{"$f":"IF('1. Ordersheet'!P388=\"\",\"\",'1. Ordersheet'!P388)","v":{"$error":"#N/A"}},{"$f":"IF('1. Ordersheet'!Q388=\"\",\"\",'1. Ordersheet'!Q388)","v":""},{"$f":"IF('1. Ordersheet'!R388=\"\",\"\",'1. Ordersheet'!R388)","v":""},{"$f":"IF('1. Ordersheet'!S388=\"\",\"\",'1. Ordersheet'!S388)","v":""},{"$f":"IF('1. Ordersheet'!V388=\"\",\"\",'1. Ordersheet'!V388)","v":""},{"$f":"IF('1. Ordersheet'!W388=\"\",\"\",'1. Ordersheet'!W388)","v":""},{"$f":"IF('1. Ordersheet'!X388=\"\",\"\",'1. Ordersheet'!X388)","v":""},{"$f":"IF('1. Ordersheet'!Y388=\"\",\"\",'1. Ordersheet'!Y388)","v":""},{"$f":"IF('1. Ordersheet'!Z388=\"\",\"\",'1. Ordersheet'!Z388)","v":""},{"$f":"IF('1. Ordersheet'!AA388=\"\",\"\",'1. Ordersheet'!AA388)","v":""},null,{"$f":"IF('1. Ordersheet'!AS388=\"\",\"\",'1. Ordersheet'!AS388)","v":""},{"$f":"IF('1. Ordersheet'!AT388=\"\",\"\",'1. Ordersheet'!AT388)","v":""},null,null,null,null,null,null,null,{"$f":"IF('1. Ordersheet'!AX388=\"\",\"\",'1. Ordersheet'!AX388)","v":""},{"$f":"IF('1. Ordersheet'!AY388=\"\",\"\",'1. Ordersheet'!AY388)","v":""},{"$f":"IF('1. Ordersheet'!AZ388=\"\",\"\",'1. Ordersheet'!AZ388)","v":""},{"$f":"IF('1. Ordersheet'!BA388=\"\",\"\",'1. Ordersheet'!BA388)","v":""},{"$f":"IF('1. Ordersheet'!BC388=\"\",\"\",'1. Ordersheet'!BC388)","v":""},{"$f":"IF('1. Ordersheet'!BD388=\"\",\"\",'1. Ordersheet'!BD388)","v":""},{"$f":"IF('1. Ordersheet'!BE388=\"\",\"\",'1. Ordersheet'!BE388)","v":""},{"$f":"IF('1. Ordersheet'!BF388=\"\",\"\",'1. Ordersheet'!BF388)","v":""},{"$f":"IF('1. Ordersheet'!BG388=\"\",\"\",'1. Ordersheet'!BG388)","v":"ZWO"},{"$f":"IF('1. Ordersheet'!BH388=\"\",\"\",'1. Ordersheet'!BH388)","v":""},{"$f":"IF('1. Ordersheet'!BI388=\"\",\"\",'1. Ordersheet'!BI388)","v":""},{"$f":"IF('1. Ordersheet'!BJ388=\"\",\"\",'1. Ordersheet'!BJ388)","v":""},{"$f":"IF('1. Ordersheet'!BK388=\"\",\"\",'1. Ordersheet'!BK388)","v":""},{"$f":"IF('1. Ordersheet'!BL388=\"\",\"\",'1. Ordersheet'!BL388)","v":""}]
[{"$f":"IF('1. Ordersheet'!F389=\"\",\"\",'1. Ordersheet'!F389)","v":""},{"$f":"IF('1. Ordersheet'!G389=\"\",\"\",'1. Ordersheet'!G389)","v":""},{"$f":"IF('1. Ordersheet'!H389=\"\",\"\",'1. Ordersheet'!H389)","v":""},{"$f":"IF('1. Ordersheet'!I389=\"\",\"\",'1. Ordersheet'!I389)","v":""},{"$f":"IF('1. Ordersheet'!J389=\"\",\"\",'1. Ordersheet'!J389)","v":""},{"$f":"IF('1. Ordersheet'!K389=\"\",\"\",'1. Ordersheet'!K389)","v":""},{"$f":"IF('1. Ordersheet'!L389=\"\",\"\",'1. Ordersheet'!L389)","v":""},{"$f":"IF('1. Ordersheet'!M389=\"\",\"\",'1. Ordersheet'!M389)","v":""},{"$f":"IF('1. Ordersheet'!N389=\"\",\"\",'1. Ordersheet'!N389)","v":""},{"$f":"IF('1. Ordersheet'!O389=\"\",\"\",'1. Ordersheet'!O389)","v":{"$error":"#N/A"}},{"$f":"IF('1. Ordersheet'!P389=\"\",\"\",'1. Ordersheet'!P389)","v":{"$error":"#N/A"}},{"$f":"IF('1. Ordersheet'!Q389=\"\",\"\",'1. Ordersheet'!Q389)","v":""},{"$f":"IF('1. Ordersheet'!R389=\"\",\"\",'1. Ordersheet'!R389)","v":""},{"$f":"IF('1. Ordersheet'!S389=\"\",\"\",'1. Ordersheet'!S389)","v":""},{"$f":"IF('1. Ordersheet'!V389=\"\",\"\",'1. Ordersheet'!V389)","v":""},{"$f":"IF('1. Ordersheet'!W389=\"\",\"\",'1. Ordersheet'!W389)","v":""},{"$f":"IF('1. Ordersheet'!X389=\"\",\"\",'1. Ordersheet'!X389)","v":""},{"$f":"IF('1. Ordersheet'!Y389=\"\",\"\",'1. Ordersheet'!Y389)","v":""},{"$f":"IF('1. Ordersheet'!Z389=\"\",\"\",'1. Ordersheet'!Z389)","v":""},{"$f":"IF('1. Ordersheet'!AA389=\"\",\"\",'1. Ordersheet'!AA389)","v":""},null,{"$f":"IF('1. Ordersheet'!AS389=\"\",\"\",'1. Ordersheet'!AS389)","v":""},{"$f":"IF('1. Ordersheet'!AT389=\"\",\"\",'1. Ordersheet'!AT389)","v":""},null,null,null,null,null,null,null,{"$f":"IF('1. Ordersheet'!AX389=\"\",\"\",'1. Ordersheet'!AX389)","v":""},{"$f":"IF('1. Ordersheet'!AY389=\"\",\"\",'1. Ordersheet'!AY389)","v":""},{"$f":"IF('1. Ordersheet'!AZ389=\"\",\"\",'1. Ordersheet'!AZ389)","v":""},{"$f":"IF('1. Ordersheet'!BA389=\"\",\"\",'1. Ordersheet'!BA389)","v":""},{"$f":"IF('1. Ordersheet'!BC389=\"\",\"\",'1. Ordersheet'!BC389)","v":""},{"$f":"IF('1. Ordersheet'!BD389=\"\",\"\",'1. Ordersheet'!BD389)","v":""},{"$f":"IF('1. Ordersheet'!BE389=\"\",\"\",'1. Ordersheet'!BE389)","v":""},{"$f":"IF('1. Ordersheet'!BF389=\"\",\"\",'1. Ordersheet'!BF389)","v":""},{"$f":"IF('1. Ordersheet'!BG389=\"\",\"\",'1. Ordersheet'!BG389)","v":"ZWO"},{"$f":"IF('1. Ordersheet'!BH389=\"\",\"\",'1. Ordersheet'!BH389)","v":""},{"$f":"IF('1. Ordersheet'!BI389=\"\",\"\",'1. Ordersheet'!BI389)","v":""},{"$f":"IF('1. Ordersheet'!BJ389=\"\",\"\",'1. Ordersheet'!BJ389)","v":""},{"$f":"IF('1. Ordersheet'!BK389=\"\",\"\",'1. Ordersheet'!BK389)","v":""},{"$f":"IF('1. Ordersheet'!BL389=\"\",\"\",'1. Ordersheet'!BL389)","v":""}]
[{"$f":"IF('1. Ordersheet'!F390=\"\",\"\",'1. Ordersheet'!F390)","v":""},{"$f":"IF('1. Ordersheet'!G390=\"\",\"\",'1. Ordersheet'!G390)","v":""},{"$f":"IF('1. Ordersheet'!H390=\"\",\"\",'1. Ordersheet'!H390)","v":""},{"$f":"IF('1. Ordersheet'!I390=\"\",\"\",'1. Ordersheet'!I390)","v":""},{"$f":"IF('1. Ordersheet'!J390=\"\",\"\",'1. Ordersheet'!J390)","v":""},{"$f":"IF('1. Ordersheet'!K390=\"\",\"\",'1. Ordersheet'!K390)","v":""},{"$f":"IF('1. Ordersheet'!L390=\"\",\"\",'1. Ordersheet'!L390)","v":""},{"$f":"IF('1. Ordersheet'!M390=\"\",\"\",'1. Ordersheet'!M390)","v":""},{"$f":"IF('1. Ordersheet'!N390=\"\",\"\",'1. Ordersheet'!N390)","v":""},{"$f":"IF('1. Ordersheet'!O390=\"\",\"\",'1. Ordersheet'!O390)","v":{"$error":"#N/A"}},{"$f":"IF('1. Ordersheet'!P390=\"\",\"\",'1. Ordersheet'!P390)","v":{"$error":"#N/A"}},{"$f":"IF('1. Ordersheet'!Q390=\"\",\"\",'1. Ordersheet'!Q390)","v":""},{"$f":"IF('1. Ordersheet'!R390=\"\",\"\",'1. Ordersheet'!R390)","v":""},{"$f":"IF('1. Ordersheet'!S390=\"\",\"\",'1. Ordersheet'!S390)","v":""},{"$f":"IF('1. Ordersheet'!V390=\"\",\"\",'1. Ordersheet'!V390)","v":""},{"$f":"IF('1. Ordersheet'!W390=\"\",\"\",'1. Ordersheet'!W390)","v":""},{"$f":"IF('1. Ordersheet'!X390=\"\",\"\",'1. Ordersheet'!X390)","v":""},{"$f":"IF('1. Ordersheet'!Y390=\"\",\"\",'1. Ordersheet'!Y390)","v":""},{"$f":"IF('1. Ordersheet'!Z390=\"\",\"\",'1. Ordersheet'!Z390)","v":""},{"$f":"IF('1. Ordersheet'!AA390=\"\",\"\",'1. Ordersheet'!AA390)","v":""},null,{"$f":"IF('1. Ordersheet'!AS390=\"\",\"\",'1. Ordersheet'!AS390)","v":""},{"$f":"IF('1. Ordersheet'!AT390=\"\",\"\",'1. Ordersheet'!AT390)","v":""},null,null,null,null,null,null,null,{"$f":"IF('1. Ordersheet'!AX390=\"\",\"\",'1. Ordersheet'!AX390)","v":""},{"$f":"IF('1. Ordersheet'!AY390=\"\",\"\",'1. Ordersheet'!AY390)","v":""},{"$f":"IF('1. Ordersheet'!AZ390=\"\",\"\",'1. Ordersheet'!AZ390)","v":""},{"$f":"IF('1. Ordersheet'!BA390=\"\",\"\",'1. Ordersheet'!BA390)","v":""},{"$f":"IF('1. Ordersheet'!BC390=\"\",\"\",'1. Ordersheet'!BC390)","v":""},{"$f":"IF('1. Ordersheet'!BD390=\"\",\"\",'1. Ordersheet'!BD390)","v":""},{"$f":"IF('1. Ordersheet'!BE390=\"\",\"\",'1. Ordersheet'!BE390)","v":""},{"$f":"IF('1. Ordersheet'!BF390=\"\",\"\",'1. Ordersheet'!BF390)","v":""},{"$f":"IF('1. Ordersheet'!BG390=\"\",\"\",'1. Ordersheet'!BG390)","v":"ZWO"},{"$f":"IF('1. Ordersheet'!BH390=\"\",\"\",'1. Ordersheet'!BH390)","v":""},{"$f":"IF('1. Ordersheet'!BI390=\"\",\"\",'1. Ordersheet'!BI390)","v":""},{"$f":"IF('1. Ordersheet'!BJ390=\"\",\"\",'1. Ordersheet'!BJ390)","v":""},{"$f":"IF('1. Ordersheet'!BK390=\"\",\"\",'1. Ordersheet'!BK390)","v":""},{"$f":"IF('1. Ordersheet'!BL390=\"\",\"\",'1. Ordersheet'!BL390)","v":""}]
[{"$f":"IF('1. Ordersheet'!F391=\"\",\"\",'1. Ordersheet'!F391)","v":""},{"$f":"IF('1. Ordersheet'!G391=\"\",\"\",'1. Ordersheet'!G391)","v":""},{"$f":"IF('1. Ordersheet'!H391=\"\",\"\",'1. Ordersheet'!H391)","v":""},{"$f":"IF('1. Ordersheet'!I391=\"\",\"\",'1. Ordersheet'!I391)","v":""},{"$f":"IF('1. Ordersheet'!J391=\"\",\"\",'1. Ordersheet'!J391)","v":""},{"$f":"IF('1. Ordersheet'!K391=\"\",\"\",'1. Ordersheet'!K391)","v":""},{"$f":"IF('1. Ordersheet'!L391=\"\",\"\",'1. Ordersheet'!L391)","v":""},{"$f":"IF('1. Ordersheet'!M391=\"\",\"\",'1. Ordersheet'!M391)","v":""},{"$f":"IF('1. Ordersheet'!N391=\"\",\"\",'1. Ordersheet'!N391)","v":""},{"$f":"IF('1. Ordersheet'!O391=\"\",\"\",'1. Ordersheet'!O391)","v":{"$error":"#N/A"}},{"$f":"IF('1. Ordersheet'!P391=\"\",\"\",'1. Ordersheet'!P391)","v":{"$error":"#N/A"}},{"$f":"IF('1. Ordersheet'!Q391=\"\",\"\",'1. Ordersheet'!Q391)","v":""},{"$f":"IF('1. Ordersheet'!R391=\"\",\"\",'1. Ordersheet'!R391)","v":""},{"$f":"IF('1. Ordersheet'!S391=\"\",\"\",'1. Ordersheet'!S391)","v":""},{"$f":"IF('1. Ordersheet'!V391=\"\",\"\",'1. Ordersheet'!V391)","v":""},{"$f":"IF('1. Ordersheet'!W391=\"\",\"\",'1. Ordersheet'!W391)","v":""},{"$f":"IF('1. Ordersheet'!X391=\"\",\"\",'1. Ordersheet'!X391)","v":""},{"$f":"IF('1. Ordersheet'!Y391=\"\",\"\",'1. Ordersheet'!Y391)","v":""},{"$f":"IF('1. Ordersheet'!Z391=\"\",\"\",'1. Ordersheet'!Z391)","v":""},{"$f":"IF('1. Ordersheet'!AA391=\"\",\"\",'1. Ordersheet'!AA391)","v":""},null,{"$f":"IF('1. Ordersheet'!AS391=\"\",\"\",'1. Ordersheet'!AS391)","v":""},{"$f":"IF('1. Ordersheet'!AT391=\"\",\"\",'1. Ordersheet'!AT391)","v":""},null,null,null,null,null,null,null,{"$f":"IF('1. Ordersheet'!AX391=\"\",\"\",'1. Ordersheet'!AX391)","v":""},{"$f":"IF('1. Ordersheet'!AY391=\"\",\"\",'1. Ordersheet'!AY391)","v":""},{"$f":"IF('1. Ordersheet'!AZ391=\"\",\"\",'1. Ordersheet'!AZ391)","v":""},{"$f":"IF('1. Ordersheet'!BA391=\"\",\"\",'1. Ordersheet'!BA391)","v":""},{"$f":"IF('1. Ordersheet'!BC391=\"\",\"\",'1. Ordersheet'!BC391)","v":""},{"$f":"IF('1. Ordersheet'!BD391=\"\",\"\",'1. Ordersheet'!BD391)","v":""},{"$f":"IF('1. Ordersheet'!BE391=\"\",\"\",'1. Ordersheet'!BE391)","v":""},{"$f":"IF('1. Ordersheet'!BF391=\"\",\"\",'1. Ordersheet'!BF391)","v":""},{"$f":"IF('1. Ordersheet'!BG391=\"\",\"\",'1. Ordersheet'!BG391)","v":"ZWO"},{"$f":"IF('1. Ordersheet'!BH391=\"\",\"\",'1. Ordersheet'!BH391)","v":""},{"$f":"IF('1. Ordersheet'!BI391=\"\",\"\",'1. Ordersheet'!BI391)","v":""},{"$f":"IF('1. Ordersheet'!BJ391=\"\",\"\",'1. Ordersheet'!BJ391)","v":""},{"$f":"IF('1. Ordersheet'!BK391=\"\",\"\",'1. Ordersheet'!BK391)","v":""},{"$f":"IF('1. Ordersheet'!BL391=\"\",\"\",'1. Ordersheet'!BL391)","v":""}]
[{"$f":"IF('1. Ordersheet'!F392=\"\",\"\",'1. Ordersheet'!F392)","v":""},{"$f":"IF('1. Ordersheet'!G392=\"\",\"\",'1. Ordersheet'!G392)","v":""},{"$f":"IF('1. Ordersheet'!H392=\"\",\"\",'1. Ordersheet'!H392)","v":""},{"$f":"IF('1. Ordersheet'!I392=\"\",\"\",'1. Ordersheet'!I392)","v":""},{"$f":"IF('1. Ordersheet'!J392=\"\",\"\",'1. Ordersheet'!J392)","v":""},{"$f":"IF('1. Ordersheet'!K392=\"\",\"\",'1. Ordersheet'!K392)","v":""},{"$f":"IF('1. Ordersheet'!L392=\"\",\"\",'1. Ordersheet'!L392)","v":""},{"$f":"IF('1. Ordersheet'!M392=\"\",\"\",'1. Ordersheet'!M392)","v":""},{"$f":"IF('1. Ordersheet'!N392=\"\",\"\",'1. Ordersheet'!N392)","v":""},{"$f":"IF('1. Ordersheet'!O392=\"\",\"\",'1. Ordersheet'!O392)","v":{"$error":"#N/A"}},{"$f":"IF('1. Ordersheet'!P392=\"\",\"\",'1. Ordersheet'!P392)","v":{"$error":"#N/A"}},{"$f":"IF('1. Ordersheet'!Q392=\"\",\"\",'1. Ordersheet'!Q392)","v":""},{"$f":"IF('1. Ordersheet'!R392=\"\",\"\",'1. Ordersheet'!R392)","v":""},{"$f":"IF('1. Ordersheet'!S392=\"\",\"\",'1. Ordersheet'!S392)","v":""},{"$f":"IF('1. Ordersheet'!V392=\"\",\"\",'1. Ordersheet'!V392)","v":""},{"$f":"IF('1. Ordersheet'!W392=\"\",\"\",'1. Ordersheet'!W392)","v":""},{"$f":"IF('1. Ordersheet'!X392=\"\",\"\",'1. Ordersheet'!X392)","v":""},{"$f":"IF('1. Ordersheet'!Y392=\"\",\"\",'1. Ordersheet'!Y392)","v":""},{"$f":"IF('1. Ordersheet'!Z392=\"\",\"\",'1. Ordersheet'!Z392)","v":""},{"$f":"IF('1. Ordersheet'!AA392=\"\",\"\",'1. Ordersheet'!AA392)","v":""},null,{"$f":"IF('1. Ordersheet'!AS392=\"\",\"\",'1. Ordersheet'!AS392)","v":""},{"$f":"IF('1. Ordersheet'!AT392=\"\",\"\",'1. Ordersheet'!AT392)","v":""},null,null,null,null,null,null,null,{"$f":"IF('1. Ordersheet'!AX392=\"\",\"\",'1. Ordersheet'!AX392)","v":""},{"$f":"IF('1. Ordersheet'!AY392=\"\",\"\",'1. Ordersheet'!AY392)","v":""},{"$f":"IF('1. Ordersheet'!AZ392=\"\",\"\",'1. Ordersheet'!AZ392)","v":""},{"$f":"IF('1. Ordersheet'!BA392=\"\",\"\",'1. Ordersheet'!BA392)","v":""},{"$f":"IF('1. Ordersheet'!BC392=\"\",\"\",'1. Ordersheet'!BC392)","v":""},{"$f":"IF('1. Ordersheet'!BD392=\"\",\"\",'1. Ordersheet'!BD392)","v":""},{"$f":"IF('1. Ordersheet'!BE392=\"\",\"\",'1. Ordersheet'!BE392)","v":""},{"$f":"IF('1. Ordersheet'!BF392=\"\",\"\",'1. Ordersheet'!BF392)","v":""},{"$f":"IF('1. Ordersheet'!BG392=\"\",\"\",'1. Ordersheet'!BG392)","v":"ZWO"},{"$f":"IF('1. Ordersheet'!BH392=\"\",\"\",'1. Ordersheet'!BH392)","v":""},{"$f":"IF('1. Ordersheet'!BI392=\"\",\"\",'1. Ordersheet'!BI392)","v":""},{"$f":"IF('1. Ordersheet'!BJ392=\"\",\"\",'1. Ordersheet'!BJ392)","v":""},{"$f":"IF('1. Ordersheet'!BK392=\"\",\"\",'1. Ordersheet'!BK392)","v":""},{"$f":"IF('1. Ordersheet'!BL392=\"\",\"\",'1. Ordersheet'!BL392)","v":""}]
[{"$f":"IF('1. Ordersheet'!F393=\"\",\"\",'1. Ordersheet'!F393)","v":""},{"$f":"IF('1. Ordersheet'!G393=\"\",\"\",'1. Ordersheet'!G393)","v":""},{"$f":"IF('1. Ordersheet'!H393=\"\",\"\",'1. Ordersheet'!H393)","v":""},{"$f":"IF('1. Ordersheet'!I393=\"\",\"\",'1. Ordersheet'!I393)","v":""},{"$f":"IF('1. Ordersheet'!J393=\"\",\"\",'1. Ordersheet'!J393)","v":""},{"$f":"IF('1. Ordersheet'!K393=\"\",\"\",'1. Ordersheet'!K393)","v":""},{"$f":"IF('1. Ordersheet'!L393=\"\",\"\",'1. Ordersheet'!L393)","v":""},{"$f":"IF('1. Ordersheet'!M393=\"\",\"\",'1. Ordersheet'!M393)","v":""},{"$f":"IF('1. Ordersheet'!N393=\"\",\"\",'1. Ordersheet'!N393)","v":""},{"$f":"IF('1. Ordersheet'!O393=\"\",\"\",'1. Ordersheet'!O393)","v":{"$error":"#N/A"}},{"$f":"IF('1. Ordersheet'!P393=\"\",\"\",'1. Ordersheet'!P393)","v":{"$error":"#N/A"}},{"$f":"IF('1. Ordersheet'!Q393=\"\",\"\",'1. Ordersheet'!Q393)","v":""},{"$f":"IF('1. Ordersheet'!R393=\"\",\"\",'1. Ordersheet'!R393)","v":""},{"$f":"IF('1. Ordersheet'!S393=\"\",\"\",'1. Ordersheet'!S393)","v":""},{"$f":"IF('1. Ordersheet'!V393=\"\",\"\",'1. Ordersheet'!V393)","v":""},{"$f":"IF('1. Ordersheet'!W393=\"\",\"\",'1. Ordersheet'!W393)","v":""},{"$f":"IF('1. Ordersheet'!X393=\"\",\"\",'1. Ordersheet'!X393)","v":""},{"$f":"IF('1. Ordersheet'!Y393=\"\",\"\",'1. Ordersheet'!Y393)","v":""},{"$f":"IF('1. Ordersheet'!Z393=\"\",\"\",'1. Ordersheet'!Z393)","v":""},{"$f":"IF('1. Ordersheet'!AA393=\"\",\"\",'1. Ordersheet'!AA393)","v":""},null,{"$f":"IF('1. Ordersheet'!AS393=\"\",\"\",'1. Ordersheet'!AS393)","v":""},{"$f":"IF('1. Ordersheet'!AT393=\"\",\"\",'1. Ordersheet'!AT393)","v":""},null,null,null,null,null,null,null,{"$f":"IF('1. Ordersheet'!AX393=\"\",\"\",'1. Ordersheet'!AX393)","v":""},{"$f":"IF('1. Ordersheet'!AY393=\"\",\"\",'1. Ordersheet'!AY393)","v":""},{"$f":"IF('1. Ordersheet'!AZ393=\"\",\"\",'1. Ordersheet'!AZ393)","v":""},{"$f":"IF('1. Ordersheet'!BA393=\"\",\"\",'1. Ordersheet'!BA393)","v":""},{"$f":"IF('1. Ordersheet'!BC393=\"\",\"\",'1. Ordersheet'!BC393)","v":""},{"$f":"IF('1. Ordersheet'!BD393=\"\",\"\",'1. Ordersheet'!BD393)","v":""},{"$f":"IF('1. Ordersheet'!BE393=\"\",\"\",'1. Ordersheet'!BE393)","v":""},{"$f":"IF('1. Ordersheet'!BF393=\"\",\"\",'1. Ordersheet'!BF393)","v":""},{"$f":"IF('1. Ordersheet'!BG393=\"\",\"\",'1. Ordersheet'!BG393)","v":"ZWO"},{"$f":"IF('1. Ordersheet'!BH393=\"\",\"\",'1. Ordersheet'!BH393)","v":""},{"$f":"IF('1. Ordersheet'!BI393=\"\",\"\",'1. Ordersheet'!BI393)","v":""},{"$f":"IF('1. Ordersheet'!BJ393=\"\",\"\",'1. Ordersheet'!BJ393)","v":""},{"$f":"IF('1. Ordersheet'!BK393=\"\",\"\",'1. Ordersheet'!BK393)","v":""},{"$f":"IF('1. Ordersheet'!BL393=\"\",\"\",'1. Ordersheet'!BL393)","v":""}]
[{"$f":"IF('1. Ordersheet'!F394=\"\",\"\",'1. Ordersheet'!F394)","v":""},{"$f":"IF('1. Ordersheet'!G394=\"\",\"\",'1. Ordersheet'!G394)","v":""},{"$f":"IF('1. Ordersheet'!H394=\"\",\"\",'1. Ordersheet'!H394)","v":""},{"$f":"IF('1. Ordersheet'!I394=\"\",\"\",'1. Ordersheet'!I394)","v":""},{"$f":"IF('1. Ordersheet'!J394=\"\",\"\",'1. Ordersheet'!J394)","v":""},{"$f":"IF('1. Ordersheet'!K394=\"\",\"\",'1. Ordersheet'!K394)","v":""},{"$f":"IF('1. Ordersheet'!L394=\"\",\"\",'1. Ordersheet'!L394)","v":""},{"$f":"IF('1. Ordersheet'!M394=\"\",\"\",'1. Ordersheet'!M394)","v":""},{"$f":"IF('1. Ordersheet'!N394=\"\",\"\",'1. Ordersheet'!N394)","v":""},{"$f":"IF('1. Ordersheet'!O394=\"\",\"\",'1. Ordersheet'!O394)","v":{"$error":"#N/A"}},{"$f":"IF('1. Ordersheet'!P394=\"\",\"\",'1. Ordersheet'!P394)","v":{"$error":"#N/A"}},{"$f":"IF('1. Ordersheet'!Q394=\"\",\"\",'1. Ordersheet'!Q394)","v":""},{"$f":"IF('1. Ordersheet'!R394=\"\",\"\",'1. Ordersheet'!R394)","v":""},{"$f":"IF('1. Ordersheet'!S394=\"\",\"\",'1. Ordersheet'!S394)","v":""},{"$f":"IF('1. Ordersheet'!V394=\"\",\"\",'1. Ordersheet'!V394)","v":""},{"$f":"IF('1. Ordersheet'!W394=\"\",\"\",'1. Ordersheet'!W394)","v":""},{"$f":"IF('1. Ordersheet'!X394=\"\",\"\",'1. Ordersheet'!X394)","v":""},{"$f":"IF('1. Ordersheet'!Y394=\"\",\"\",'1. Ordersheet'!Y394)","v":""},{"$f":"IF('1. Ordersheet'!Z394=\"\",\"\",'1. Ordersheet'!Z394)","v":""},{"$f":"IF('1. Ordersheet'!AA394=\"\",\"\",'1. Ordersheet'!AA394)","v":""},null,{"$f":"IF('1. Ordersheet'!AS394=\"\",\"\",'1. Ordersheet'!AS394)","v":""},{"$f":"IF('1. Ordersheet'!AT394=\"\",\"\",'1. Ordersheet'!AT394)","v":""},null,null,null,null,null,null,null,{"$f":"IF('1. Ordersheet'!AX394=\"\",\"\",'1. Ordersheet'!AX394)","v":""},{"$f":"IF('1. Ordersheet'!AY394=\"\",\"\",'1. Ordersheet'!AY394)","v":""},{"$f":"IF('1. Ordersheet'!AZ394=\"\",\"\",'1. Ordersheet'!AZ394)","v":""},{"$f":"IF('1. Ordersheet'!BA394=\"\",\"\",'1. Ordersheet'!BA394)","v":""},{"$f":"IF('1. Ordersheet'!BC394=\"\",\"\",'1. Ordersheet'!BC394)","v":""},{"$f":"IF('1. Ordersheet'!BD394=\"\",\"\",'1. Ordersheet'!BD394)","v":""},{"$f":"IF('1. Ordersheet'!BE394=\"\",\"\",'1. Ordersheet'!BE394)","v":""},{"$f":"IF('1. Ordersheet'!BF394=\"\",\"\",'1. Ordersheet'!BF394)","v":""},{"$f":"IF('1. Ordersheet'!BG394=\"\",\"\",'1. Ordersheet'!BG394)","v":"ZWO"},{"$f":"IF('1. Ordersheet'!BH394=\"\",\"\",'1. Ordersheet'!BH394)","v":""},{"$f":"IF('1. Ordersheet'!BI394=\"\",\"\",'1. Ordersheet'!BI394)","v":""},{"$f":"IF('1. Ordersheet'!BJ394=\"\",\"\",'1. Ordersheet'!BJ394)","v":""},{"$f":"IF('1. Ordersheet'!BK394=\"\",\"\",'1. Ordersheet'!BK394)","v":""},{"$f":"IF('1. Ordersheet'!BL394=\"\",\"\",'1. Ordersheet'!BL394)","v":""}]
[{"$f":"IF('1. Ordersheet'!F395=\"\",\"\",'1. Ordersheet'!F395)","v":""},{"$f":"IF('1. Ordersheet'!G395=\"\",\"\",'1. Ordersheet'!G395)","v":""},{"$f":"IF('1. Ordersheet'!H395=\"\",\"\",'1. Ordersheet'!H395)","v":""},{"$f":"IF('1. Ordersheet'!I395=\"\",\"\",'1. Ordersheet'!I395)","v":""},{"$f":"IF('1. Ordersheet'!J395=\"\",\"\",'1. Ordersheet'!J395)","v":""},{"$f":"IF('1. Ordersheet'!K395=\"\",\"\",'1. Ordersheet'!K395)","v":""},{"$f":"IF('1. Ordersheet'!L395=\"\",\"\",'1. Ordersheet'!L395)","v":""},{"$f":"IF('1. Ordersheet'!M395=\"\",\"\",'1. Ordersheet'!M395)","v":""},{"$f":"IF('1. Ordersheet'!N395=\"\",\"\",'1. Ordersheet'!N395)","v":""},{"$f":"IF('1. Ordersheet'!O395=\"\",\"\",'1. Ordersheet'!O395)","v":{"$error":"#N/A"}},{"$f":"IF('1. Ordersheet'!P395=\"\",\"\",'1. Ordersheet'!P395)","v":{"$error":"#N/A"}},{"$f":"IF('1. Ordersheet'!Q395=\"\",\"\",'1. Ordersheet'!Q395)","v":""},{"$f":"IF('1. Ordersheet'!R395=\"\",\"\",'1. Ordersheet'!R395)","v":""},{"$f":"IF('1. Ordersheet'!S395=\"\",\"\",'1. Ordersheet'!S395)","v":""},{"$f":"IF('1. Ordersheet'!V395=\"\",\"\",'1. Ordersheet'!V395)","v":""},{"$f":"IF('1. Ordersheet'!W395=\"\",\"\",'1. Ordersheet'!W395)","v":""},{"$f":"IF('1. Ordersheet'!X395=\"\",\"\",'1. Ordersheet'!X395)","v":""},{"$f":"IF('1. Ordersheet'!Y395=\"\",\"\",'1. Ordersheet'!Y395)","v":""},{"$f":"IF('1. Ordersheet'!Z395=\"\",\"\",'1. Ordersheet'!Z395)","v":""},{"$f":"IF('1. Ordersheet'!AA395=\"\",\"\",'1. Ordersheet'!AA395)","v":""},null,{"$f":"IF('1. Ordersheet'!AS395=\"\",\"\",'1. Ordersheet'!AS395)","v":""},{"$f":"IF('1. Ordersheet'!AT395=\"\",\"\",'1. Ordersheet'!AT395)","v":""},null,null,null,null,null,null,null,{"$f":"IF('1. Ordersheet'!AX395=\"\",\"\",'1. Ordersheet'!AX395)","v":""},{"$f":"IF('1. Ordersheet'!AY395=\"\",\"\",'1. Ordersheet'!AY395)","v":""},{"$f":"IF('1. Ordersheet'!AZ395=\"\",\"\",'1. Ordersheet'!AZ395)","v":""},{"$f":"IF('1. Ordersheet'!BA395=\"\",\"\",'1. Ordersheet'!BA395)","v":""},{"$f":"IF('1. Ordersheet'!BC395=\"\",\"\",'1. Ordersheet'!BC395)","v":""},{"$f":"IF('1. Ordersheet'!BD395=\"\",\"\",'1. Ordersheet'!BD395)","v":""},{"$f":"IF('1. Ordersheet'!BE395=\"\",\"\",'1. Ordersheet'!BE395)","v":""},{"$f":"IF('1. Ordersheet'!BF395=\"\",\"\",'1. Ordersheet'!BF395)","v":""},{"$f":"IF('1. Ordersheet'!BG395=\"\",\"\",'1. Ordersheet'!BG395)","v":"ZWO"},{"$f":"IF('1. Ordersheet'!BH395=\"\",\"\",'1. Ordersheet'!BH395)","v":""},{"$f":"IF('1. Ordersheet'!BI395=\"\",\"\",'1. Ordersheet'!BI395)","v":""},{"$f":"IF('1. Ordersheet'!BJ395=\"\",\"\",'1. Ordersheet'!BJ395)","v":""},{"$f":"IF('1. Ordersheet'!BK395=\"\",\"\",'1. Ordersheet'!BK395)","v":""},{"$f":"IF('1. Ordersheet'!BL395=\"\",\"\",'1. Ordersheet'!BL395)","v":""}]
[{"$f":"IF('1. Ordersheet'!F396=\"\",\"\",'1. Ordersheet'!F396)","v":""},{"$f":"IF('1. Ordersheet'!G396=\"\",\"\",'1. Ordersheet'!G396)","v":""},{"$f":"IF('1. Ordersheet'!H396=\"\",\"\",'1. Ordersheet'!H396)","v":""},{"$f":"IF('1. Ordersheet'!I396=\"\",\"\",'1. Ordersheet'!I396)","v":""},{"$f":"IF('1. Ordersheet'!J396=\"\",\"\",'1. Ordersheet'!J396)","v":""},{"$f":"IF('1. Ordersheet'!K396=\"\",\"\",'1. Ordersheet'!K396)","v":""},{"$f":"IF('1. Ordersheet'!L396=\"\",\"\",'1. Ordersheet'!L396)","v":""},{"$f":"IF('1. Ordersheet'!M396=\"\",\"\",'1. Ordersheet'!M396)","v":""},{"$f":"IF('1. Ordersheet'!N396=\"\",\"\",'1. Ordersheet'!N396)","v":""},{"$f":"IF('1. Ordersheet'!O396=\"\",\"\",'1. Ordersheet'!O396)","v":{"$error":"#N/A"}},{"$f":"IF('1. Ordersheet'!P396=\"\",\"\",'1. Ordersheet'!P396)","v":{"$error":"#N/A"}},{"$f":"IF('1. Ordersheet'!Q396=\"\",\"\",'1. Ordersheet'!Q396)","v":""},{"$f":"IF('1. Ordersheet'!R396=\"\",\"\",'1. Ordersheet'!R396)","v":""},{"$f":"IF('1. Ordersheet'!S396=\"\",\"\",'1. Ordersheet'!S396)","v":""},{"$f":"IF('1. Ordersheet'!V396=\"\",\"\",'1. Ordersheet'!V396)","v":""},{"$f":"IF('1. Ordersheet'!W396=\"\",\"\",'1. Ordersheet'!W396)","v":""},{"$f":"IF('1. Ordersheet'!X396=\"\",\"\",'1. Ordersheet'!X396)","v":""},{"$f":"IF('1. Ordersheet'!Y396=\"\",\"\",'1. Ordersheet'!Y396)","v":""},{"$f":"IF('1. Ordersheet'!Z396=\"\",\"\",'1. Ordersheet'!Z396)","v":""},{"$f":"IF('1. Ordersheet'!AA396=\"\",\"\",'1. Ordersheet'!AA396)","v":""},null,{"$f":"IF('1. Ordersheet'!AS396=\"\",\"\",'1. Ordersheet'!AS396)","v":""},{"$f":"IF('1. Ordersheet'!AT396=\"\",\"\",'1. Ordersheet'!AT396)","v":""},null,null,null,null,null,null,null,{"$f":"IF('1. Ordersheet'!AX396=\"\",\"\",'1. Ordersheet'!AX396)","v":""},{"$f":"IF('1. Ordersheet'!AY396=\"\",\"\",'1. Ordersheet'!AY396)","v":""},{"$f":"IF('1. Ordersheet'!AZ396=\"\",\"\",'1. Ordersheet'!AZ396)","v":""},{"$f":"IF('1. Ordersheet'!BA396=\"\",\"\",'1. Ordersheet'!BA396)","v":""},{"$f":"IF('1. Ordersheet'!BC396=\"\",\"\",'1. Ordersheet'!BC396)","v":""},{"$f":"IF('1. Ordersheet'!BD396=\"\",\"\",'1. Ordersheet'!BD396)","v":""},{"$f":"IF('1. Ordersheet'!BE396=\"\",\"\",'1. Ordersheet'!BE396)","v":""},{"$f":"IF('1. Ordersheet'!BF396=\"\",\"\",'1. Ordersheet'!BF396)","v":""},{"$f":"IF('1. Ordersheet'!BG396=\"\",\"\",'1. Ordersheet'!BG396)","v":"ZWO"},{"$f":"IF('1. Ordersheet'!BH396=\"\",\"\",'1. Ordersheet'!BH396)","v":""},{"$f":"IF('1. Ordersheet'!BI396=\"\",\"\",'1. Ordersheet'!BI396)","v":""},{"$f":"IF('1. Ordersheet'!BJ396=\"\",\"\",'1. Ordersheet'!BJ396)","v":""},{"$f":"IF('1. Ordersheet'!BK396=\"\",\"\",'1. Ordersheet'!BK396)","v":""},{"$f":"IF('1. Ordersheet'!BL396=\"\",\"\",'1. Ordersheet'!BL396)","v":""}]
[{"$f":"IF('1. Ordersheet'!F397=\"\",\"\",'1. Ordersheet'!F397)","v":""},{"$f":"IF('1. Ordersheet'!G397=\"\",\"\",'1. Ordersheet'!G397)","v":""},{"$f":"IF('1. Ordersheet'!H397=\"\",\"\",'1. Ordersheet'!H397)","v":""},{"$f":"IF('1. Ordersheet'!I397=\"\",\"\",'1. Ordersheet'!I397)","v":""},{"$f":"IF('1. Ordersheet'!J397=\"\",\"\",'1. Ordersheet'!J397)","v":""},{"$f":"IF('1. Ordersheet'!K397=\"\",\"\",'1. Ordersheet'!K397)","v":""},{"$f":"IF('1. Ordersheet'!L397=\"\",\"\",'1. Ordersheet'!L397)","v":""},{"$f":"IF('1. Ordersheet'!M397=\"\",\"\",'1. Ordersheet'!M397)","v":""},{"$f":"IF('1. Ordersheet'!N397=\"\",\"\",'1. Ordersheet'!N397)","v":""},{"$f":"IF('1. Ordersheet'!O397=\"\",\"\",'1. Ordersheet'!O397)","v":{"$error":"#N/A"}},{"$f":"IF('1. Ordersheet'!P397=\"\",\"\",'1. Ordersheet'!P397)","v":{"$error":"#N/A"}},{"$f":"IF('1. Ordersheet'!Q397=\"\",\"\",'1. Ordersheet'!Q397)","v":""},{"$f":"IF('1. Ordersheet'!R397=\"\",\"\",'1. Ordersheet'!R397)","v":""},{"$f":"IF('1. Ordersheet'!S397=\"\",\"\",'1. Ordersheet'!S397)","v":""},{"$f":"IF('1. Ordersheet'!V397=\"\",\"\",'1. Ordersheet'!V397)","v":""},{"$f":"IF('1. Ordersheet'!W397=\"\",\"\",'1. Ordersheet'!W397)","v":""},{"$f":"IF('1. Ordersheet'!X397=\"\",\"\",'1. Ordersheet'!X397)","v":""},{"$f":"IF('1. Ordersheet'!Y397=\"\",\"\",'1. Ordersheet'!Y397)","v":""},{"$f":"IF('1. Ordersheet'!Z397=\"\",\"\",'1. Ordersheet'!Z397)","v":""},{"$f":"IF('1. Ordersheet'!AA397=\"\",\"\",'1. Ordersheet'!AA397)","v":""},null,{"$f":"IF('1. Ordersheet'!AS397=\"\",\"\",'1. Ordersheet'!AS397)","v":""},{"$f":"IF('1. Ordersheet'!AT397=\"\",\"\",'1. Ordersheet'!AT397)","v":""},null,null,null,null,null,null,null,{"$f":"IF('1. Ordersheet'!AX397=\"\",\"\",'1. Ordersheet'!AX397)","v":""},{"$f":"IF('1. Ordersheet'!AY397=\"\",\"\",'1. Ordersheet'!AY397)","v":""},{"$f":"IF('1. Ordersheet'!AZ397=\"\",\"\",'1. Ordersheet'!AZ397)","v":""},{"$f":"IF('1. Ordersheet'!BA397=\"\",\"\",'1. Ordersheet'!BA397)","v":""},{"$f":"IF('1. Ordersheet'!BC397=\"\",\"\",'1. Ordersheet'!BC397)","v":""},{"$f":"IF('1. Ordersheet'!BD397=\"\",\"\",'1. Ordersheet'!BD397)","v":""},{"$f":"IF('1. Ordersheet'!BE397=\"\",\"\",'1. Ordersheet'!BE397)","v":""},{"$f":"IF('1. Ordersheet'!BF397=\"\",\"\",'1. Ordersheet'!BF397)","v":""},{"$f":"IF('1. Ordersheet'!BG397=\"\",\"\",'1. Ordersheet'!BG397)","v":"ZWO"},{"$f":"IF('1. Ordersheet'!BH397=\"\",\"\",'1. Ordersheet'!BH397)","v":""},{"$f":"IF('1. Ordersheet'!BI397=\"\",\"\",'1. Ordersheet'!BI397)","v":""},{"$f":"IF('1. Ordersheet'!BJ397=\"\",\"\",'1. Ordersheet'!BJ397)","v":""},{"$f":"IF('1. Ordersheet'!BK397=\"\",\"\",'1. Ordersheet'!BK397)","v":""},{"$f":"IF('1. Ordersheet'!BL397=\"\",\"\",'1. Ordersheet'!BL397)","v":""}]
[{"$f":"IF('1. Ordersheet'!F398=\"\",\"\",'1. Ordersheet'!F398)","v":""},{"$f":"IF('1. Ordersheet'!G398=\"\",\"\",'1. Ordersheet'!G398)","v":""},{"$f":"IF('1. Ordersheet'!H398=\"\",\"\",'1. Ordersheet'!H398)","v":""},{"$f":"IF('1. Ordersheet'!I398=\"\",\"\",'1. Ordersheet'!I398)","v":""},{"$f":"IF('1. Ordersheet'!J398=\"\",\"\",'1. Ordersheet'!J398)","v":""},{"$f":"IF('1. Ordersheet'!K398=\"\",\"\",'1. Ordersheet'!K398)","v":""},{"$f":"IF('1. Ordersheet'!L398=\"\",\"\",'1. Ordersheet'!L398)","v":""},{"$f":"IF('1. Ordersheet'!M398=\"\",\"\",'1. Ordersheet'!M398)","v":""},{"$f":"IF('1. Ordersheet'!N398=\"\",\"\",'1. Ordersheet'!N398)","v":""},{"$f":"IF('1. Ordersheet'!O398=\"\",\"\",'1. Ordersheet'!O398)","v":{"$error":"#N/A"}},{"$f":"IF('1. Ordersheet'!P398=\"\",\"\",'1. Ordersheet'!P398)","v":{"$error":"#N/A"}},{"$f":"IF('1. Ordersheet'!Q398=\"\",\"\",'1. Ordersheet'!Q398)","v":""},{"$f":"IF('1. Ordersheet'!R398=\"\",\"\",'1. Ordersheet'!R398)","v":""},{"$f":"IF('1. Ordersheet'!S398=\"\",\"\",'1. Ordersheet'!S398)","v":""},{"$f":"IF('1. Ordersheet'!V398=\"\",\"\",'1. Ordersheet'!V398)","v":""},{"$f":"IF('1. Ordersheet'!W398=\"\",\"\",'1. Ordersheet'!W398)","v":""},{"$f":"IF('1. Ordersheet'!X398=\"\",\"\",'1. Ordersheet'!X398)","v":""},{"$f":"IF('1. Ordersheet'!Y398=\"\",\"\",'1. Ordersheet'!Y398)","v":""},{"$f":"IF('1. Ordersheet'!Z398=\"\",\"\",'1. Ordersheet'!Z398)","v":""},{"$f":"IF('1. Ordersheet'!AA398=\"\",\"\",'1. Ordersheet'!AA398)","v":""},null,{"$f":"IF('1. Ordersheet'!AS398=\"\",\"\",'1. Ordersheet'!AS398)","v":""},{"$f":"IF('1. Ordersheet'!AT398=\"\",\"\",'1. Ordersheet'!AT398)","v":""},null,null,null,null,null,null,null,{"$f":"IF('1. Ordersheet'!AX398=\"\",\"\",'1. Ordersheet'!AX398)","v":""},{"$f":"IF('1. Ordersheet'!AY398=\"\",\"\",'1. Ordersheet'!AY398)","v":""},{"$f":"IF('1. Ordersheet'!AZ398=\"\",\"\",'1. Ordersheet'!AZ398)","v":""},{"$f":"IF('1. Ordersheet'!BA398=\"\",\"\",'1. Ordersheet'!BA398)","v":""},{"$f":"IF('1. Ordersheet'!BC398=\"\",\"\",'1. Ordersheet'!BC398)","v":""},{"$f":"IF('1. Ordersheet'!BD398=\"\",\"\",'1. Ordersheet'!BD398)","v":""},{"$f":"IF('1. Ordersheet'!BE398=\"\",\"\",'1. Ordersheet'!BE398)","v":""},{"$f":"IF('1. Ordersheet'!BF398=\"\",\"\",'1. Ordersheet'!BF398)","v":""},{"$f":"IF('1. Ordersheet'!BG398=\"\",\"\",'1. Ordersheet'!BG398)","v":"ZWO"},{"$f":"IF('1. Ordersheet'!BH398=\"\",\"\",'1. Ordersheet'!BH398)","v":""},{"$f":"IF('1. Ordersheet'!BI398=\"\",\"\",'1. Ordersheet'!BI398)","v":""},{"$f":"IF('1. Ordersheet'!BJ398=\"\",\"\",'1. Ordersheet'!BJ398)","v":""},{"$f":"IF('1. Ordersheet'!BK398=\"\",\"\",'1. Ordersheet'!BK398)","v":""},{"$f":"IF('1. Ordersheet'!BL398=\"\",\"\",'1. Ordersheet'!BL398)","v":""}]
[{"$f":"IF('1. Ordersheet'!F399=\"\",\"\",'1. Ordersheet'!F399)","v":""},{"$f":"IF('1. Ordersheet'!G399=\"\",\"\",'1. Ordersheet'!G399)","v":""},{"$f":"IF('1. Ordersheet'!H399=\"\",\"\",'1. Ordersheet'!H399)","v":""},{"$f":"IF('1. Ordersheet'!I399=\"\",\"\",'1. Ordersheet'!I399)","v":""},{"$f":"IF('1. Ordersheet'!J399=\"\",\"\",'1. Ordersheet'!J399)","v":""},{"$f":"IF('1. Ordersheet'!K399=\"\",\"\",'1. Ordersheet'!K399)","v":""},{"$f":"IF('1. Ordersheet'!L399=\"\",\"\",'1. Ordersheet'!L399)","v":""},{"$f":"IF('1. Ordersheet'!M399=\"\",\"\",'1. Ordersheet'!M399)","v":""},{"$f":"IF('1. Ordersheet'!N399=\"\",\"\",'1. Ordersheet'!N399)","v":""},{"$f":"IF('1. Ordersheet'!O399=\"\",\"\",'1. Ordersheet'!O399)","v":{"$error":"#N/A"}},{"$f":"IF('1. Ordersheet'!P399=\"\",\"\",'1. Ordersheet'!P399)","v":{"$error":"#N/A"}},{"$f":"IF('1. Ordersheet'!Q399=\"\",\"\",'1. Ordersheet'!Q399)","v":""},{"$f":"IF('1. Ordersheet'!R399=\"\",\"\",'1. Ordersheet'!R399)","v":""},{"$f":"IF('1. Ordersheet'!S399=\"\",\"\",'1. Ordersheet'!S399)","v":""},{"$f":"IF('1. Ordersheet'!V399=\"\",\"\",'1. Ordersheet'!V399)","v":""},{"$f":"IF('1. Ordersheet'!W399=\"\",\"\",'1. Ordersheet'!W399)","v":""},{"$f":"IF('1. Ordersheet'!X399=\"\",\"\",'1. Ordersheet'!X399)","v":""},{"$f":"IF('1. Ordersheet'!Y399=\"\",\"\",'1. Ordersheet'!Y399)","v":""},{"$f":"IF('1. Ordersheet'!Z399=\"\",\"\",'1. Ordersheet'!Z399)","v":""},{"$f":"IF('1. Ordersheet'!AA399=\"\",\"\",'1. Ordersheet'!AA399)","v":""},null,{"$f":"IF('1. Ordersheet'!AS399=\"\",\"\",'1. Ordersheet'!AS399)","v":""},{"$f":"IF('1. Ordersheet'!AT399=\"\",\"\",'1. Ordersheet'!AT399)","v":""},null,null,null,null,null,null,null,{"$f":"IF('1. Ordersheet'!AX399=\"\",\"\",'1. Ordersheet'!AX399)","v":""},{"$f":"IF('1. Ordersheet'!AY399=\"\",\"\",'1. Ordersheet'!AY399)","v":""},{"$f":"IF('1. Ordersheet'!AZ399=\"\",\"\",'1. Ordersheet'!AZ399)","v":""},{"$f":"IF('1. Ordersheet'!BA399=\"\",\"\",'1. Ordersheet'!BA399)","v":""},{"$f":"IF('1. Ordersheet'!BC399=\"\",\"\",'1. Ordersheet'!BC399)","v":""},{"$f":"IF('1. Ordersheet'!BD399=\"\",\"\",'1. Ordersheet'!BD399)","v":""},{"$f":"IF('1. Ordersheet'!BE399=\"\",\"\",'1. Ordersheet'!BE399)","v":""},{"$f":"IF('1. Ordersheet'!BF399=\"\",\"\",'1. Ordersheet'!BF399)","v":""},{"$f":"IF('1. Ordersheet'!BG399=\"\",\"\",'1. Ordersheet'!BG399)","v":"ZWO"},{"$f":"IF('1. Ordersheet'!BH399=\"\",\"\",'1. Ordersheet'!BH399)","v":""},{"$f":"IF('1. Ordersheet'!BI399=\"\",\"\",'1. Ordersheet'!BI399)","v":""},{"$f":"IF('1. Ordersheet'!BJ399=\"\",\"\",'1. Ordersheet'!BJ399)","v":""},{"$f":"IF('1. Ordersheet'!BK399=\"\",\"\",'1. Ordersheet'!BK399)","v":""},{"$f":"IF('1. Ordersheet'!BL399=\"\",\"\",'1. Ordersheet'!BL399)","v":""}]
[{"$f":"IF('1. Ordersheet'!F400=\"\",\"\",'1. Ordersheet'!F400)","v":""},{"$f":"IF('1. Ordersheet'!G400=\"\",\"\",'1. Ordersheet'!G400)","v":""},{"$f":"IF('1. Ordersheet'!H400=\"\",\"\",'1. Ordersheet'!H400)","v":""},{"$f":"IF('1. Ordersheet'!I400=\"\",\"\",'1. Ordersheet'!I400)","v":""},{"$f":"IF('1. Ordersheet'!J400=\"\",\"\",'1. Ordersheet'!J400)","v":""},{"$f":"IF('1. Ordersheet'!K400=\"\",\"\",'1. Ordersheet'!K400)","v":""},{"$f":"IF('1. Ordersheet'!L400=\"\",\"\",'1. Ordersheet'!L400)","v":""},{"$f":"IF('1. Ordersheet'!M400=\"\",\"\",'1. Ordersheet'!M400)","v":""},{"$f":"IF('1. Ordersheet'!N400=\"\",\"\",'1. Ordersheet'!N400)","v":""},{"$f":"IF('1. Ordersheet'!O400=\"\",\"\",'1. Ordersheet'!O400)","v":{"$error":"#N/A"}},{"$f":"IF('1. Ordersheet'!P400=\"\",\"\",'1. Ordersheet'!P400)","v":{"$error":"#N/A"}},{"$f":"IF('1. Ordersheet'!Q400=\"\",\"\",'1. Ordersheet'!Q400)","v":""},{"$f":"IF('1. Ordersheet'!R400=\"\",\"\",'1. Ordersheet'!R400)","v":""},{"$f":"IF('1. Ordersheet'!S400=\"\",\"\",'1. Ordersheet'!S400)","v":""},{"$f":"IF('1. Ordersheet'!V400=\"\",\"\",'1. Ordersheet'!V400)","v":""},{"$f":"IF('1. Ordersheet'!W400=\"\",\"\",'1. Ordersheet'!W400)","v":""},{"$f":"IF('1. Ordersheet'!X400=\"\",\"\",'1. Ordersheet'!X400)","v":""},{"$f":"IF('1. Ordersheet'!Y400=\"\",\"\",'1. Ordersheet'!Y400)","v":""},{"$f":"IF('1. Ordersheet'!Z400=\"\",\"\",'1. Ordersheet'!Z400)","v":""},{"$f":"IF('1. Ordersheet'!AA400=\"\",\"\",'1. Ordersheet'!AA400)","v":""},null,{"$f":"IF('1. Ordersheet'!AS400=\"\",\"\",'1. Ordersheet'!AS400)","v":""},{"$f":"IF('1. Ordersheet'!AT400=\"\",\"\",'1. Ordersheet'!AT400)","v":""},null,null,null,null,null,null,null,{"$f":"IF('1. Ordersheet'!AX400=\"\",\"\",'1. Ordersheet'!AX400)","v":""},{"$f":"IF('1. Ordersheet'!AY400=\"\",\"\",'1. Ordersheet'!AY400)","v":""},{"$f":"IF('1. Ordersheet'!AZ400=\"\",\"\",'1. Ordersheet'!AZ400)","v":""},{"$f":"IF('1. Ordersheet'!BA400=\"\",\"\",'1. Ordersheet'!BA400)","v":""},{"$f":"IF('1. Ordersheet'!BC400=\"\",\"\",'1. Ordersheet'!BC400)","v":""},{"$f":"IF('1. Ordersheet'!BD400=\"\",\"\",'1. Ordersheet'!BD400)","v":""},{"$f":"IF('1. Ordersheet'!BE400=\"\",\"\",'1. Ordersheet'!BE400)","v":""},{"$f":"IF('1. Ordersheet'!BF400=\"\",\"\",'1. Ordersheet'!BF400)","v":""},{"$f":"IF('1. Ordersheet'!BG400=\"\",\"\",'1. Ordersheet'!BG400)","v":"ZWO"},{"$f":"IF('1. Ordersheet'!BH400=\"\",\"\",'1. Ordersheet'!BH400)","v":""},{"$f":"IF('1. Ordersheet'!BI400=\"\",\"\",'1. Ordersheet'!BI400)","v":""},{"$f":"IF('1. Ordersheet'!BJ400=\"\",\"\",'1. Ordersheet'!BJ400)","v":""},{"$f":"IF('1. Ordersheet'!BK400=\"\",\"\",'1. Ordersheet'!BK400)","v":""},{"$f":"IF('1. Ordersheet'!BL400=\"\",\"\",'1. Ordersheet'!BL400)","v":""}]
[{"$f":"IF('1. Ordersheet'!F401=\"\",\"\",'1. Ordersheet'!F401)","v":""},{"$f":"IF('1. Ordersheet'!G401=\"\",\"\",'1. Ordersheet'!G401)","v":""},{"$f":"IF('1. Ordersheet'!H401=\"\",\"\",'1. Ordersheet'!H401)","v":""},{"$f":"IF('1. Ordersheet'!I401=\"\",\"\",'1. Ordersheet'!I401)","v":""},{"$f":"IF('1. Ordersheet'!J401=\"\",\"\",'1. Ordersheet'!J401)","v":""},{"$f":"IF('1. Ordersheet'!K401=\"\",\"\",'1. Ordersheet'!K401)","v":""},{"$f":"IF('1. Ordersheet'!L401=\"\",\"\",'1. Ordersheet'!L401)","v":""},{"$f":"IF('1. Ordersheet'!M401=\"\",\"\",'1. Ordersheet'!M401)","v":""},{"$f":"IF('1. Ordersheet'!N401=\"\",\"\",'1. Ordersheet'!N401)","v":""},{"$f":"IF('1. Ordersheet'!O401=\"\",\"\",'1. Ordersheet'!O401)","v":{"$error":"#N/A"}},{"$f":"IF('1. Ordersheet'!P401=\"\",\"\",'1. Ordersheet'!P401)","v":{"$error":"#N/A"}},{"$f":"IF('1. Ordersheet'!Q401=\"\",\"\",'1. Ordersheet'!Q401)","v":""},{"$f":"IF('1. Ordersheet'!R401=\"\",\"\",'1. Ordersheet'!R401)","v":""},{"$f":"IF('1. Ordersheet'!S401=\"\",\"\",'1. Ordersheet'!S401)","v":""},{"$f":"IF('1. Ordersheet'!V401=\"\",\"\",'1. Ordersheet'!V401)","v":""},{"$f":"IF('1. Ordersheet'!W401=\"\",\"\",'1. Ordersheet'!W401)","v":""},{"$f":"IF('1. Ordersheet'!X401=\"\",\"\",'1. Ordersheet'!X401)","v":""},{"$f":"IF('1. Ordersheet'!Y401=\"\",\"\",'1. Ordersheet'!Y401)","v":""},{"$f":"IF('1. Ordersheet'!Z401=\"\",\"\",'1. Ordersheet'!Z401)","v":""},{"$f":"IF('1. Ordersheet'!AA401=\"\",\"\",'1. Ordersheet'!AA401)","v":""},null,{"$f":"IF('1. Ordersheet'!AS401=\"\",\"\",'1. Ordersheet'!AS401)","v":""},{"$f":"IF('1. Ordersheet'!AT401=\"\",\"\",'1. Ordersheet'!AT401)","v":""},null,null,null,null,null,null,null,{"$f":"IF('1. Ordersheet'!AX401=\"\",\"\",'1. Ordersheet'!AX401)","v":""},{"$f":"IF('1. Ordersheet'!AY401=\"\",\"\",'1. Ordersheet'!AY401)","v":""},{"$f":"IF('1. Ordersheet'!AZ401=\"\",\"\",'1. Ordersheet'!AZ401)","v":""},{"$f":"IF('1. Ordersheet'!BA401=\"\",\"\",'1. Ordersheet'!BA401)","v":""},{"$f":"IF('1. Ordersheet'!BC401=\"\",\"\",'1. Ordersheet'!BC401)","v":""},{"$f":"IF('1. Ordersheet'!BD401=\"\",\"\",'1. Ordersheet'!BD401)","v":""},{"$f":"IF('1. Ordersheet'!BE401=\"\",\"\",'1. Ordersheet'!BE401)","v":""},{"$f":"IF('1. Ordersheet'!BF401=\"\",\"\",'1. Ordersheet'!BF401)","v":""},{"$f":"IF('1. Ordersheet'!BG401=\"\",\"\",'1. Ordersheet'!BG401)","v":"ZWO"},{"$f":"IF('1. Ordersheet'!BH401=\"\",\"\",'1. Ordersheet'!BH401)","v":""},{"$f":"IF('1. Ordersheet'!BI401=\"\",\"\",'1. Ordersheet'!BI401)","v":""},{"$f":"IF('1. Ordersheet'!BJ401=\"\",\"\",'1. Ordersheet'!BJ401)","v":""},{"$f":"IF('1. Ordersheet'!BK401=\"\",\"\",'1. Ordersheet'!BK401)","v":""},{"$f":"IF('1. Ordersheet'!BL401=\"\",\"\",'1. Ordersheet'!BL401)","v":""}]
[{"$f":"IF('1. Ordersheet'!F402=\"\",\"\",'1. Ordersheet'!F402)","v":""},{"$f":"IF('1. Ordersheet'!G402=\"\",\"\",'1. Ordersheet'!G402)","v":""},{"$f":"IF('1. Ordersheet'!H402=\"\",\"\",'1. Ordersheet'!H402)","v":""},{"$f":"IF('1. Ordersheet'!I402=\"\",\"\",'1. Ordersheet'!I402)","v":""},{"$f":"IF('1. Ordersheet'!J402=\"\",\"\",'1. Ordersheet'!J402)","v":""},{"$f":"IF('1. Ordersheet'!K402=\"\",\"\",'1. Ordersheet'!K402)","v":""},{"$f":"IF('1. Ordersheet'!L402=\"\",\"\",'1. Ordersheet'!L402)","v":""},{"$f":"IF('1. Ordersheet'!M402=\"\",\"\",'1. Ordersheet'!M402)","v":""},{"$f":"IF('1. Ordersheet'!N402=\"\",\"\",'1. Ordersheet'!N402)","v":""},{"$f":"IF('1. Ordersheet'!O402=\"\",\"\",'1. Ordersheet'!O402)","v":{"$error":"#N/A"}},{"$f":"IF('1. Ordersheet'!P402=\"\",\"\",'1. Ordersheet'!P402)","v":{"$error":"#N/A"}},{"$f":"IF('1. Ordersheet'!Q402=\"\",\"\",'1. Ordersheet'!Q402)","v":""},{"$f":"IF('1. Ordersheet'!R402=\"\",\"\",'1. Ordersheet'!R402)","v":""},{"$f":"IF('1. Ordersheet'!S402=\"\",\"\",'1. Ordersheet'!S402)","v":""},{"$f":"IF('1. Ordersheet'!V402=\"\",\"\",'1. Ordersheet'!V402)","v":""},{"$f":"IF('1. Ordersheet'!W402=\"\",\"\",'1. Ordersheet'!W402)","v":""},{"$f":"IF('1. Ordersheet'!X402=\"\",\"\",'1. Ordersheet'!X402)","v":""},{"$f":"IF('1. Ordersheet'!Y402=\"\",\"\",'1. Ordersheet'!Y402)","v":""},{"$f":"IF('1. Ordersheet'!Z402=\"\",\"\",'1. Ordersheet'!Z402)","v":""},{"$f":"IF('1. Ordersheet'!AA402=\"\",\"\",'1. Ordersheet'!AA402)","v":""},null,{"$f":"IF('1. Ordersheet'!AS402=\"\",\"\",'1. Ordersheet'!AS402)","v":""},{"$f":"IF('1. Ordersheet'!AT402=\"\",\"\",'1. Ordersheet'!AT402)","v":""},null,null,null,null,null,null,null,{"$f":"IF('1. Ordersheet'!AX402=\"\",\"\",'1. Ordersheet'!AX402)","v":""},{"$f":"IF('1. Ordersheet'!AY402=\"\",\"\",'1. Ordersheet'!AY402)","v":""},{"$f":"IF('1. Ordersheet'!AZ402=\"\",\"\",'1. Ordersheet'!AZ402)","v":""},{"$f":"IF('1. Ordersheet'!BA402=\"\",\"\",'1. Ordersheet'!BA402)","v":""},{"$f":"IF('1. Ordersheet'!BC402=\"\",\"\",'1. Ordersheet'!BC402)","v":""},{"$f":"IF('1. Ordersheet'!BD402=\"\",\"\",'1. Ordersheet'!BD402)","v":""},{"$f":"IF('1. Ordersheet'!BE402=\"\",\"\",'1. Ordersheet'!BE402)","v":""},{"$f":"IF('1. Ordersheet'!BF402=\"\",\"\",'1. Ordersheet'!BF402)","v":""},{"$f":"IF('1. Ordersheet'!BG402=\"\",\"\",'1. Ordersheet'!BG402)","v":"ZWO"},{"$f":"IF('1. Ordersheet'!BH402=\"\",\"\",'1. Ordersheet'!BH402)","v":""},{"$f":"IF('1. Ordersheet'!BI402=\"\",\"\",'1. Ordersheet'!BI402)","v":""},{"$f":"IF('1. Ordersheet'!BJ402=\"\",\"\",'1. Ordersheet'!BJ402)","v":""},{"$f":"IF('1. Ordersheet'!BK402=\"\",\"\",'1. Ordersheet'!BK402)","v":""},{"$f":"IF('1. Ordersheet'!BL402=\"\",\"\",'1. Ordersheet'!BL402)","v":""}]
[{"$f":"IF('1. Ordersheet'!F403=\"\",\"\",'1. Ordersheet'!F403)","v":""},{"$f":"IF('1. Ordersheet'!G403=\"\",\"\",'1. Ordersheet'!G403)","v":""},{"$f":"IF('1. Ordersheet'!H403=\"\",\"\",'1. Ordersheet'!H403)","v":""},{"$f":"IF('1. Ordersheet'!I403=\"\",\"\",'1. Ordersheet'!I403)","v":""},{"$f":"IF('1. Ordersheet'!J403=\"\",\"\",'1. Ordersheet'!J403)","v":""},{"$f":"IF('1. Ordersheet'!K403=\"\",\"\",'1. Ordersheet'!K403)","v":""},{"$f":"IF('1. Ordersheet'!L403=\"\",\"\",'1. Ordersheet'!L403)","v":""},{"$f":"IF('1. Ordersheet'!M403=\"\",\"\",'1. Ordersheet'!M403)","v":""},{"$f":"IF('1. Ordersheet'!N403=\"\",\"\",'1. Ordersheet'!N403)","v":""},{"$f":"IF('1. Ordersheet'!O403=\"\",\"\",'1. Ordersheet'!O403)","v":{"$error":"#N/A"}},{"$f":"IF('1. Ordersheet'!P403=\"\",\"\",'1. Ordersheet'!P403)","v":{"$error":"#N/A"}},{"$f":"IF('1. Ordersheet'!Q403=\"\",\"\",'1. Ordersheet'!Q403)","v":""},{"$f":"IF('1. Ordersheet'!R403=\"\",\"\",'1. Ordersheet'!R403)","v":""},{"$f":"IF('1. Ordersheet'!S403=\"\",\"\",'1. Ordersheet'!S403)","v":""},{"$f":"IF('1. Ordersheet'!V403=\"\",\"\",'1. Ordersheet'!V403)","v":""},{"$f":"IF('1. Ordersheet'!W403=\"\",\"\",'1. Ordersheet'!W403)","v":""},{"$f":"IF('1. Ordersheet'!X403=\"\",\"\",'1. Ordersheet'!X403)","v":""},{"$f":"IF('1. Ordersheet'!Y403=\"\",\"\",'1. Ordersheet'!Y403)","v":""},{"$f":"IF('1. Ordersheet'!Z403=\"\",\"\",'1. Ordersheet'!Z403)","v":""},{"$f":"IF('1. Ordersheet'!AA403=\"\",\"\",'1. Ordersheet'!AA403)","v":""},null,{"$f":"IF('1. Ordersheet'!AS403=\"\",\"\",'1. Ordersheet'!AS403)","v":""},{"$f":"IF('1. Ordersheet'!AT403=\"\",\"\",'1. Ordersheet'!AT403)","v":""},null,null,null,null,null,null,null,{"$f":"IF('1. Ordersheet'!AX403=\"\",\"\",'1. Ordersheet'!AX403)","v":""},{"$f":"IF('1. Ordersheet'!AY403=\"\",\"\",'1. Ordersheet'!AY403)","v":""},{"$f":"IF('1. Ordersheet'!AZ403=\"\",\"\",'1. Ordersheet'!AZ403)","v":""},{"$f":"IF('1. Ordersheet'!BA403=\"\",\"\",'1. Ordersheet'!BA403)","v":""},{"$f":"IF('1. Ordersheet'!BC403=\"\",\"\",'1. Ordersheet'!BC403)","v":""},{"$f":"IF('1. Ordersheet'!BD403=\"\",\"\",'1. Ordersheet'!BD403)","v":""},{"$f":"IF('1. Ordersheet'!BE403=\"\",\"\",'1. Ordersheet'!BE403)","v":""},{"$f":"IF('1. Ordersheet'!BF403=\"\",\"\",'1. Ordersheet'!BF403)","v":""},{"$f":"IF('1. Ordersheet'!BG403=\"\",\"\",'1. Ordersheet'!BG403)","v":"ZWO"},{"$f":"IF('1. Ordersheet'!BH403=\"\",\"\",'1. Ordersheet'!BH403)","v":""},{"$f":"IF('1. Ordersheet'!BI403=\"\",\"\",'1. Ordersheet'!BI403)","v":""},{"$f":"IF('1. Ordersheet'!BJ403=\"\",\"\",'1. Ordersheet'!BJ403)","v":""},{"$f":"IF('1. Ordersheet'!BK403=\"\",\"\",'1. Ordersheet'!BK403)","v":""},{"$f":"IF('1. Ordersheet'!BL403=\"\",\"\",'1. Ordersheet'!BL403)","v":""}]
[{"$f":"IF('1. Ordersheet'!F404=\"\",\"\",'1. Ordersheet'!F404)","v":""},{"$f":"IF('1. Ordersheet'!G404=\"\",\"\",'1. Ordersheet'!G404)","v":""},{"$f":"IF('1. Ordersheet'!H404=\"\",\"\",'1. Ordersheet'!H404)","v":""},{"$f":"IF('1. Ordersheet'!I404=\"\",\"\",'1. Ordersheet'!I404)","v":""},{"$f":"IF('1. Ordersheet'!J404=\"\",\"\",'1. Ordersheet'!J404)","v":""},{"$f":"IF('1. Ordersheet'!K404=\"\",\"\",'1. Ordersheet'!K404)","v":""},{"$f":"IF('1. Ordersheet'!L404=\"\",\"\",'1. Ordersheet'!L404)","v":""},{"$f":"IF('1. Ordersheet'!M404=\"\",\"\",'1. Ordersheet'!M404)","v":""},{"$f":"IF('1. Ordersheet'!N404=\"\",\"\",'1. Ordersheet'!N404)","v":""},{"$f":"IF('1. Ordersheet'!O404=\"\",\"\",'1. Ordersheet'!O404)","v":{"$error":"#N/A"}},{"$f":"IF('1. Ordersheet'!P404=\"\",\"\",'1. Ordersheet'!P404)","v":{"$error":"#N/A"}},{"$f":"IF('1. Ordersheet'!Q404=\"\",\"\",'1. Ordersheet'!Q404)","v":""},{"$f":"IF('1. Ordersheet'!R404=\"\",\"\",'1. Ordersheet'!R404)","v":""},{"$f":"IF('1. Ordersheet'!S404=\"\",\"\",'1. Ordersheet'!S404)","v":""},{"$f":"IF('1. Ordersheet'!V404=\"\",\"\",'1. Ordersheet'!V404)","v":""},{"$f":"IF('1. Ordersheet'!W404=\"\",\"\",'1. Ordersheet'!W404)","v":""},{"$f":"IF('1. Ordersheet'!X404=\"\",\"\",'1. Ordersheet'!X404)","v":""},{"$f":"IF('1. Ordersheet'!Y404=\"\",\"\",'1. Ordersheet'!Y404)","v":""},{"$f":"IF('1. Ordersheet'!Z404=\"\",\"\",'1. Ordersheet'!Z404)","v":""},{"$f":"IF('1. Ordersheet'!AA404=\"\",\"\",'1. Ordersheet'!AA404)","v":""},null,{"$f":"IF('1. Ordersheet'!AS404=\"\",\"\",'1. Ordersheet'!AS404)","v":""},{"$f":"IF('1. Ordersheet'!AT404=\"\",\"\",'1. Ordersheet'!AT404)","v":""},null,null,null,null,null,null,null,{"$f":"IF('1. Ordersheet'!AX404=\"\",\"\",'1. Ordersheet'!AX404)","v":""},{"$f":"IF('1. Ordersheet'!AY404=\"\",\"\",'1. Ordersheet'!AY404)","v":""},{"$f":"IF('1. Ordersheet'!AZ404=\"\",\"\",'1. Ordersheet'!AZ404)","v":""},{"$f":"IF('1. Ordersheet'!BA404=\"\",\"\",'1. Ordersheet'!BA404)","v":""},{"$f":"IF('1. Ordersheet'!BC404=\"\",\"\",'1. Ordersheet'!BC404)","v":""},{"$f":"IF('1. Ordersheet'!BD404=\"\",\"\",'1. Ordersheet'!BD404)","v":""},{"$f":"IF('1. Ordersheet'!BE404=\"\",\"\",'1. Ordersheet'!BE404)","v":""},{"$f":"IF('1. Ordersheet'!BF404=\"\",\"\",'1. Ordersheet'!BF404)","v":""},{"$f":"IF('1. Ordersheet'!BG404=\"\",\"\",'1. Ordersheet'!BG404)","v":"ZWO"},{"$f":"IF('1. Ordersheet'!BH404=\"\",\"\",'1. Ordersheet'!BH404)","v":""},{"$f":"IF('1. Ordersheet'!BI404=\"\",\"\",'1. Ordersheet'!BI404)","v":""},{"$f":"IF('1. Ordersheet'!BJ404=\"\",\"\",'1. Ordersheet'!BJ404)","v":""},{"$f":"IF('1. Ordersheet'!BK404=\"\",\"\",'1. Ordersheet'!BK404)","v":""},{"$f":"IF('1. Ordersheet'!BL404=\"\",\"\",'1. Ordersheet'!BL404)","v":""}]
[{"$f":"IF('1. Ordersheet'!F405=\"\",\"\",'1. Ordersheet'!F405)","v":""},{"$f":"IF('1. Ordersheet'!G405=\"\",\"\",'1. Ordersheet'!G405)","v":""},{"$f":"IF('1. Ordersheet'!H405=\"\",\"\",'1. Ordersheet'!H405)","v":""},{"$f":"IF('1. Ordersheet'!I405=\"\",\"\",'1. Ordersheet'!I405)","v":""},{"$f":"IF('1. Ordersheet'!J405=\"\",\"\",'1. Ordersheet'!J405)","v":""},{"$f":"IF('1. Ordersheet'!K405=\"\",\"\",'1. Ordersheet'!K405)","v":""},{"$f":"IF('1. Ordersheet'!L405=\"\",\"\",'1. Ordersheet'!L405)","v":""},{"$f":"IF('1. Ordersheet'!M405=\"\",\"\",'1. Ordersheet'!M405)","v":""},{"$f":"IF('1. Ordersheet'!N405=\"\",\"\",'1. Ordersheet'!N405)","v":""},{"$f":"IF('1. Ordersheet'!O405=\"\",\"\",'1. Ordersheet'!O405)","v":{"$error":"#N/A"}},{"$f":"IF('1. Ordersheet'!P405=\"\",\"\",'1. Ordersheet'!P405)","v":{"$error":"#N/A"}},{"$f":"IF('1. Ordersheet'!Q405=\"\",\"\",'1. Ordersheet'!Q405)","v":""},{"$f":"IF('1. Ordersheet'!R405=\"\",\"\",'1. Ordersheet'!R405)","v":""},{"$f":"IF('1. Ordersheet'!S405=\"\",\"\",'1. Ordersheet'!S405)","v":""},{"$f":"IF('1. Ordersheet'!V405=\"\",\"\",'1. Ordersheet'!V405)","v":""},{"$f":"IF('1. Ordersheet'!W405=\"\",\"\",'1. Ordersheet'!W405)","v":""},{"$f":"IF('1. Ordersheet'!X405=\"\",\"\",'1. Ordersheet'!X405)","v":""},{"$f":"IF('1. Ordersheet'!Y405=\"\",\"\",'1. Ordersheet'!Y405)","v":""},{"$f":"IF('1. Ordersheet'!Z405=\"\",\"\",'1. Ordersheet'!Z405)","v":""},{"$f":"IF('1. Ordersheet'!AA405=\"\",\"\",'1. Ordersheet'!AA405)","v":""},null,{"$f":"IF('1. Ordersheet'!AS405=\"\",\"\",'1. Ordersheet'!AS405)","v":""},{"$f":"IF('1. Ordersheet'!AT405=\"\",\"\",'1. Ordersheet'!AT405)","v":""},null,null,null,null,null,null,null,{"$f":"IF('1. Ordersheet'!AX405=\"\",\"\",'1. Ordersheet'!AX405)","v":""},{"$f":"IF('1. Ordersheet'!AY405=\"\",\"\",'1. Ordersheet'!AY405)","v":""},{"$f":"IF('1. Ordersheet'!AZ405=\"\",\"\",'1. Ordersheet'!AZ405)","v":""},{"$f":"IF('1. Ordersheet'!BA405=\"\",\"\",'1. Ordersheet'!BA405)","v":""},{"$f":"IF('1. Ordersheet'!BC405=\"\",\"\",'1. Ordersheet'!BC405)","v":""},{"$f":"IF('1. Ordersheet'!BD405=\"\",\"\",'1. Ordersheet'!BD405)","v":""},{"$f":"IF('1. Ordersheet'!BE405=\"\",\"\",'1. Ordersheet'!BE405)","v":""},{"$f":"IF('1. Ordersheet'!BF405=\"\",\"\",'1. Ordersheet'!BF405)","v":""},{"$f":"IF('1. Ordersheet'!BG405=\"\",\"\",'1. Ordersheet'!BG405)","v":"ZWO"},{"$f":"IF('1. Ordersheet'!BH405=\"\",\"\",'1. Ordersheet'!BH405)","v":""},{"$f":"IF('1. Ordersheet'!BI405=\"\",\"\",'1. Ordersheet'!BI405)","v":""},{"$f":"IF('1. Ordersheet'!BJ405=\"\",\"\",'1. Ordersheet'!BJ405)","v":""},{"$f":"IF('1. Ordersheet'!BK405=\"\",\"\",'1. Ordersheet'!BK405)","v":""},{"$f":"IF('1. Ordersheet'!BL405=\"\",\"\",'1. Ordersheet'!BL405)","v":""}]
[{"$f":"IF('1. Ordersheet'!F406=\"\",\"\",'1. Ordersheet'!F406)","v":""},{"$f":"IF('1. Ordersheet'!G406=\"\",\"\",'1. Ordersheet'!G406)","v":""},{"$f":"IF('1. Ordersheet'!H406=\"\",\"\",'1. Ordersheet'!H406)","v":""},{"$f":"IF('1. Ordersheet'!I406=\"\",\"\",'1. Ordersheet'!I406)","v":""},{"$f":"IF('1. Ordersheet'!J406=\"\",\"\",'1. Ordersheet'!J406)","v":""},{"$f":"IF('1. Ordersheet'!K406=\"\",\"\",'1. Ordersheet'!K406)","v":""},{"$f":"IF('1. Ordersheet'!L406=\"\",\"\",'1. Ordersheet'!L406)","v":""},{"$f":"IF('1. Ordersheet'!M406=\"\",\"\",'1. Ordersheet'!M406)","v":""},{"$f":"IF('1. Ordersheet'!N406=\"\",\"\",'1. Ordersheet'!N406)","v":""},{"$f":"IF('1. Ordersheet'!O406=\"\",\"\",'1. Ordersheet'!O406)","v":{"$error":"#N/A"}},{"$f":"IF('1. Ordersheet'!P406=\"\",\"\",'1. Ordersheet'!P406)","v":{"$error":"#N/A"}},{"$f":"IF('1. Ordersheet'!Q406=\"\",\"\",'1. Ordersheet'!Q406)","v":""},{"$f":"IF('1. Ordersheet'!R406=\"\",\"\",'1. Ordersheet'!R406)","v":""},{"$f":"IF('1. Ordersheet'!S406=\"\",\"\",'1. Ordersheet'!S406)","v":""},{"$f":"IF('1. Ordersheet'!V406=\"\",\"\",'1. Ordersheet'!V406)","v":""},{"$f":"IF('1. Ordersheet'!W406=\"\",\"\",'1. Ordersheet'!W406)","v":""},{"$f":"IF('1. Ordersheet'!X406=\"\",\"\",'1. Ordersheet'!X406)","v":""},{"$f":"IF('1. Ordersheet'!Y406=\"\",\"\",'1. Ordersheet'!Y406)","v":""},{"$f":"IF('1. Ordersheet'!Z406=\"\",\"\",'1. Ordersheet'!Z406)","v":""},{"$f":"IF('1. Ordersheet'!AA406=\"\",\"\",'1. Ordersheet'!AA406)","v":""},null,{"$f":"IF('1. Ordersheet'!AS406=\"\",\"\",'1. Ordersheet'!AS406)","v":""},{"$f":"IF('1. Ordersheet'!AT406=\"\",\"\",'1. Ordersheet'!AT406)","v":""},null,null,null,null,null,null,null,{"$f":"IF('1. Ordersheet'!AX406=\"\",\"\",'1. Ordersheet'!AX406)","v":""},{"$f":"IF('1. Ordersheet'!AY406=\"\",\"\",'1. Ordersheet'!AY406)","v":""},{"$f":"IF('1. Ordersheet'!AZ406=\"\",\"\",'1. Ordersheet'!AZ406)","v":""},{"$f":"IF('1. Ordersheet'!BA406=\"\",\"\",'1. Ordersheet'!BA406)","v":""},{"$f":"IF('1. Ordersheet'!BC406=\"\",\"\",'1. Ordersheet'!BC406)","v":""},{"$f":"IF('1. Ordersheet'!BD406=\"\",\"\",'1. Ordersheet'!BD406)","v":""},{"$f":"IF('1. Ordersheet'!BE406=\"\",\"\",'1. Ordersheet'!BE406)","v":""},{"$f":"IF('1. Ordersheet'!BF406=\"\",\"\",'1. Ordersheet'!BF406)","v":""},{"$f":"IF('1. Ordersheet'!BG406=\"\",\"\",'1. Ordersheet'!BG406)","v":"ZWO"},{"$f":"IF('1. Ordersheet'!BH406=\"\",\"\",'1. Ordersheet'!BH406)","v":""},{"$f":"IF('1. Ordersheet'!BI406=\"\",\"\",'1. Ordersheet'!BI406)","v":""},{"$f":"IF('1. Ordersheet'!BJ406=\"\",\"\",'1. Ordersheet'!BJ406)","v":""},{"$f":"IF('1. Ordersheet'!BK406=\"\",\"\",'1. Ordersheet'!BK406)","v":""},{"$f":"IF('1. Ordersheet'!BL406=\"\",\"\",'1. Ordersheet'!BL406)","v":""}]
[{"$f":"IF('1. Ordersheet'!F407=\"\",\"\",'1. Ordersheet'!F407)","v":""},{"$f":"IF('1. Ordersheet'!G407=\"\",\"\",'1. Ordersheet'!G407)","v":""},{"$f":"IF('1. Ordersheet'!H407=\"\",\"\",'1. Ordersheet'!H407)","v":""},{"$f":"IF('1. Ordersheet'!I407=\"\",\"\",'1. Ordersheet'!I407)","v":""},{"$f":"IF('1. Ordersheet'!J407=\"\",\"\",'1. Ordersheet'!J407)","v":""},{"$f":"IF('1. Ordersheet'!K407=\"\",\"\",'1. Ordersheet'!K407)","v":""},{"$f":"IF('1. Ordersheet'!L407=\"\",\"\",'1. Ordersheet'!L407)","v":""},{"$f":"IF('1. Ordersheet'!M407=\"\",\"\",'1. Ordersheet'!M407)","v":""},{"$f":"IF('1. Ordersheet'!N407=\"\",\"\",'1. Ordersheet'!N407)","v":""},{"$f":"IF('1. Ordersheet'!O407=\"\",\"\",'1. Ordersheet'!O407)","v":{"$error":"#N/A"}},{"$f":"IF('1. Ordersheet'!P407=\"\",\"\",'1. Ordersheet'!P407)","v":{"$error":"#N/A"}},{"$f":"IF('1. Ordersheet'!Q407=\"\",\"\",'1. Ordersheet'!Q407)","v":""},{"$f":"IF('1. Ordersheet'!R407=\"\",\"\",'1. Ordersheet'!R407)","v":""},{"$f":"IF('1. Ordersheet'!S407=\"\",\"\",'1. Ordersheet'!S407)","v":""},{"$f":"IF('1. Ordersheet'!V407=\"\",\"\",'1. Ordersheet'!V407)","v":""},{"$f":"IF('1. Ordersheet'!W407=\"\",\"\",'1. Ordersheet'!W407)","v":""},{"$f":"IF('1. Ordersheet'!X407=\"\",\"\",'1. Ordersheet'!X407)","v":""},{"$f":"IF('1. Ordersheet'!Y407=\"\",\"\",'1. Ordersheet'!Y407)","v":""},{"$f":"IF('1. Ordersheet'!Z407=\"\",\"\",'1. Ordersheet'!Z407)","v":""},{"$f":"IF('1. Ordersheet'!AA407=\"\",\"\",'1. Ordersheet'!AA407)","v":""},null,{"$f":"IF('1. Ordersheet'!AS407=\"\",\"\",'1. Ordersheet'!AS407)","v":""},{"$f":"IF('1. Ordersheet'!AT407=\"\",\"\",'1. Ordersheet'!AT407)","v":""},null,null,null,null,null,null,null,{"$f":"IF('1. Ordersheet'!AX407=\"\",\"\",'1. Ordersheet'!AX407)","v":""},{"$f":"IF('1. Ordersheet'!AY407=\"\",\"\",'1. Ordersheet'!AY407)","v":""},{"$f":"IF('1. Ordersheet'!AZ407=\"\",\"\",'1. Ordersheet'!AZ407)","v":""},{"$f":"IF('1. Ordersheet'!BA407=\"\",\"\",'1. Ordersheet'!BA407)","v":""},{"$f":"IF('1. Ordersheet'!BC407=\"\",\"\",'1. Ordersheet'!BC407)","v":""},{"$f":"IF('1. Ordersheet'!BD407=\"\",\"\",'1. Ordersheet'!BD407)","v":""},{"$f":"IF('1. Ordersheet'!BE407=\"\",\"\",'1. Ordersheet'!BE407)","v":""},{"$f":"IF('1. Ordersheet'!BF407=\"\",\"\",'1. Ordersheet'!BF407)","v":""},{"$f":"IF('1. Ordersheet'!BG407=\"\",\"\",'1. Ordersheet'!BG407)","v":"ZWO"},{"$f":"IF('1. Ordersheet'!BH407=\"\",\"\",'1. Ordersheet'!BH407)","v":""},{"$f":"IF('1. Ordersheet'!BI407=\"\",\"\",'1. Ordersheet'!BI407)","v":""},{"$f":"IF('1. Ordersheet'!BJ407=\"\",\"\",'1. Ordersheet'!BJ407)","v":""},{"$f":"IF('1. Ordersheet'!BK407=\"\",\"\",'1. Ordersheet'!BK407)","v":""},{"$f":"IF('1. Ordersheet'!BL407=\"\",\"\",'1. Ordersheet'!BL407)","v":""}]
[{"$f":"IF('1. Ordersheet'!F408=\"\",\"\",'1. Ordersheet'!F408)","v":""},{"$f":"IF('1. Ordersheet'!G408=\"\",\"\",'1. Ordersheet'!G408)","v":""},{"$f":"IF('1. Ordersheet'!H408=\"\",\"\",'1. Ordersheet'!H408)","v":""},{"$f":"IF('1. Ordersheet'!I408=\"\",\"\",'1. Ordersheet'!I408)","v":""},{"$f":"IF('1. Ordersheet'!J408=\"\",\"\",'1. Ordersheet'!J408)","v":""},{"$f":"IF('1. Ordersheet'!K408=\"\",\"\",'1. Ordersheet'!K408)","v":""},{"$f":"IF('1. Ordersheet'!L408=\"\",\"\",'1. Ordersheet'!L408)","v":""},{"$f":"IF('1. Ordersheet'!M408=\"\",\"\",'1. Ordersheet'!M408)","v":""},{"$f":"IF('1. Ordersheet'!N408=\"\",\"\",'1. Ordersheet'!N408)","v":""},{"$f":"IF('1. Ordersheet'!O408=\"\",\"\",'1. Ordersheet'!O408)","v":{"$error":"#N/A"}},{"$f":"IF('1. Ordersheet'!P408=\"\",\"\",'1. Ordersheet'!P408)","v":{"$error":"#N/A"}},{"$f":"IF('1. Ordersheet'!Q408=\"\",\"\",'1. Ordersheet'!Q408)","v":""},{"$f":"IF('1. Ordersheet'!R408=\"\",\"\",'1. Ordersheet'!R408)","v":""},{"$f":"IF('1. Ordersheet'!S408=\"\",\"\",'1. Ordersheet'!S408)","v":""},{"$f":"IF('1. Ordersheet'!V408=\"\",\"\",'1. Ordersheet'!V408)","v":""},{"$f":"IF('1. Ordersheet'!W408=\"\",\"\",'1. Ordersheet'!W408)","v":""},{"$f":"IF('1. Ordersheet'!X408=\"\",\"\",'1. Ordersheet'!X408)","v":""},{"$f":"IF('1. Ordersheet'!Y408=\"\",\"\",'1. Ordersheet'!Y408)","v":""},{"$f":"IF('1. Ordersheet'!Z408=\"\",\"\",'1. Ordersheet'!Z408)","v":""},{"$f":"IF('1. Ordersheet'!AA408=\"\",\"\",'1. Ordersheet'!AA408)","v":""},null,{"$f":"IF('1. Ordersheet'!AS408=\"\",\"\",'1. Ordersheet'!AS408)","v":""},{"$f":"IF('1. Ordersheet'!AT408=\"\",\"\",'1. Ordersheet'!AT408)","v":""},null,null,null,null,null,null,null,{"$f":"IF('1. Ordersheet'!AX408=\"\",\"\",'1. Ordersheet'!AX408)","v":""},{"$f":"IF('1. Ordersheet'!AY408=\"\",\"\",'1. Ordersheet'!AY408)","v":""},{"$f":"IF('1. Ordersheet'!AZ408=\"\",\"\",'1. Ordersheet'!AZ408)","v":""},{"$f":"IF('1. Ordersheet'!BA408=\"\",\"\",'1. Ordersheet'!BA408)","v":""},{"$f":"IF('1. Ordersheet'!BC408=\"\",\"\",'1. Ordersheet'!BC408)","v":""},{"$f":"IF('1. Ordersheet'!BD408=\"\",\"\",'1. Ordersheet'!BD408)","v":""},{"$f":"IF('1. Ordersheet'!BE408=\"\",\"\",'1. Ordersheet'!BE408)","v":""},{"$f":"IF('1. Ordersheet'!BF408=\"\",\"\",'1. Ordersheet'!BF408)","v":""},{"$f":"IF('1. Ordersheet'!BG408=\"\",\"\",'1. Ordersheet'!BG408)","v":"ZWO"},{"$f":"IF('1. Ordersheet'!BH408=\"\",\"\",'1. Ordersheet'!BH408)","v":""},{"$f":"IF('1. Ordersheet'!BI408=\"\",\"\",'1. Ordersheet'!BI408)","v":""},{"$f":"IF('1. Ordersheet'!BJ408=\"\",\"\",'1. Ordersheet'!BJ408)","v":""},{"$f":"IF('1. Ordersheet'!BK408=\"\",\"\",'1. Ordersheet'!BK408)","v":""},{"$f":"IF('1. Ordersheet'!BL408=\"\",\"\",'1. Ordersheet'!BL408)","v":""}]
[{"$f":"IF('1. Ordersheet'!F409=\"\",\"\",'1. Ordersheet'!F409)","v":""},{"$f":"IF('1. Ordersheet'!G409=\"\",\"\",'1. Ordersheet'!G409)","v":""},{"$f":"IF('1. Ordersheet'!H409=\"\",\"\",'1. Ordersheet'!H409)","v":""},{"$f":"IF('1. Ordersheet'!I409=\"\",\"\",'1. Ordersheet'!I409)","v":""},{"$f":"IF('1. Ordersheet'!J409=\"\",\"\",'1. Ordersheet'!J409)","v":""},{"$f":"IF('1. Ordersheet'!K409=\"\",\"\",'1. Ordersheet'!K409)","v":""},{"$f":"IF('1. Ordersheet'!L409=\"\",\"\",'1. Ordersheet'!L409)","v":""},{"$f":"IF('1. Ordersheet'!M409=\"\",\"\",'1. Ordersheet'!M409)","v":""},{"$f":"IF('1. Ordersheet'!N409=\"\",\"\",'1. Ordersheet'!N409)","v":""},{"$f":"IF('1. Ordersheet'!O409=\"\",\"\",'1. Ordersheet'!O409)","v":{"$error":"#N/A"}},{"$f":"IF('1. Ordersheet'!P409=\"\",\"\",'1. Ordersheet'!P409)","v":{"$error":"#N/A"}},{"$f":"IF('1. Ordersheet'!Q409=\"\",\"\",'1. Ordersheet'!Q409)","v":""},{"$f":"IF('1. Ordersheet'!R409=\"\",\"\",'1. Ordersheet'!R409)","v":""},{"$f":"IF('1. Ordersheet'!S409=\"\",\"\",'1. Ordersheet'!S409)","v":""},{"$f":"IF('1. Ordersheet'!V409=\"\",\"\",'1. Ordersheet'!V409)","v":""},{"$f":"IF('1. Ordersheet'!W409=\"\",\"\",'1. Ordersheet'!W409)","v":""},{"$f":"IF('1. Ordersheet'!X409=\"\",\"\",'1. Ordersheet'!X409)","v":""},{"$f":"IF('1. Ordersheet'!Y409=\"\",\"\",'1. Ordersheet'!Y409)","v":""},{"$f":"IF('1. Ordersheet'!Z409=\"\",\"\",'1. Ordersheet'!Z409)","v":""},{"$f":"IF('1. Ordersheet'!AA409=\"\",\"\",'1. Ordersheet'!AA409)","v":""},null,{"$f":"IF('1. Ordersheet'!AS409=\"\",\"\",'1. Ordersheet'!AS409)","v":""},{"$f":"IF('1. Ordersheet'!AT409=\"\",\"\",'1. Ordersheet'!AT409)","v":""},null,null,null,null,null,null,null,{"$f":"IF('1. Ordersheet'!AX409=\"\",\"\",'1. Ordersheet'!AX409)","v":""},{"$f":"IF('1. Ordersheet'!AY409=\"\",\"\",'1. Ordersheet'!AY409)","v":""},{"$f":"IF('1. Ordersheet'!AZ409=\"\",\"\",'1. Ordersheet'!AZ409)","v":""},{"$f":"IF('1. Ordersheet'!BA409=\"\",\"\",'1. Ordersheet'!BA409)","v":""},{"$f":"IF('1. Ordersheet'!BC409=\"\",\"\",'1. Ordersheet'!BC409)","v":""},{"$f":"IF('1. Ordersheet'!BD409=\"\",\"\",'1. Ordersheet'!BD409)","v":""},{"$f":"IF('1. Ordersheet'!BE409=\"\",\"\",'1. Ordersheet'!BE409)","v":""},{"$f":"IF('1. Ordersheet'!BF409=\"\",\"\",'1. Ordersheet'!BF409)","v":""},{"$f":"IF('1. Ordersheet'!BG409=\"\",\"\",'1. Ordersheet'!BG409)","v":"ZWO"},{"$f":"IF('1. Ordersheet'!BH409=\"\",\"\",'1. Ordersheet'!BH409)","v":""},{"$f":"IF('1. Ordersheet'!BI409=\"\",\"\",'1. Ordersheet'!BI409)","v":""},{"$f":"IF('1. Ordersheet'!BJ409=\"\",\"\",'1. Ordersheet'!BJ409)","v":""},{"$f":"IF('1. Ordersheet'!BK409=\"\",\"\",'1. Ordersheet'!BK409)","v":""},{"$f":"IF('1. Ordersheet'!BL409=\"\",\"\",'1. Ordersheet'!BL409)","v":""}]
[{"$f":"IF('1. Ordersheet'!F410=\"\",\"\",'1. Ordersheet'!F410)","v":""},{"$f":"IF('1. Ordersheet'!G410=\"\",\"\",'1. Ordersheet'!G410)","v":""},{"$f":"IF('1. Ordersheet'!H410=\"\",\"\",'1. Ordersheet'!H410)","v":""},{"$f":"IF('1. Ordersheet'!I410=\"\",\"\",'1. Ordersheet'!I410)","v":""},{"$f":"IF('1. Ordersheet'!J410=\"\",\"\",'1. Ordersheet'!J410)","v":""},{"$f":"IF('1. Ordersheet'!K410=\"\",\"\",'1. Ordersheet'!K410)","v":""},{"$f":"IF('1. Ordersheet'!L410=\"\",\"\",'1. Ordersheet'!L410)","v":""},{"$f":"IF('1. Ordersheet'!M410=\"\",\"\",'1. Ordersheet'!M410)","v":""},{"$f":"IF('1. Ordersheet'!N410=\"\",\"\",'1. Ordersheet'!N410)","v":""},{"$f":"IF('1. Ordersheet'!O410=\"\",\"\",'1. Ordersheet'!O410)","v":{"$error":"#N/A"}},{"$f":"IF('1. Ordersheet'!P410=\"\",\"\",'1. Ordersheet'!P410)","v":{"$error":"#N/A"}},{"$f":"IF('1. Ordersheet'!Q410=\"\",\"\",'1. Ordersheet'!Q410)","v":""},{"$f":"IF('1. Ordersheet'!R410=\"\",\"\",'1. Ordersheet'!R410)","v":""},{"$f":"IF('1. Ordersheet'!S410=\"\",\"\",'1. Ordersheet'!S410)","v":""},{"$f":"IF('1. Ordersheet'!V410=\"\",\"\",'1. Ordersheet'!V410)","v":""},{"$f":"IF('1. Ordersheet'!W410=\"\",\"\",'1. Ordersheet'!W410)","v":""},{"$f":"IF('1. Ordersheet'!X410=\"\",\"\",'1. Ordersheet'!X410)","v":""},{"$f":"IF('1. Ordersheet'!Y410=\"\",\"\",'1. Ordersheet'!Y410)","v":""},{"$f":"IF('1. Ordersheet'!Z410=\"\",\"\",'1. Ordersheet'!Z410)","v":""},{"$f":"IF('1. Ordersheet'!AA410=\"\",\"\",'1. Ordersheet'!AA410)","v":""},null,{"$f":"IF('1. Ordersheet'!AS410=\"\",\"\",'1. Ordersheet'!AS410)","v":""},{"$f":"IF('1. Ordersheet'!AT410=\"\",\"\",'1. Ordersheet'!AT410)","v":""},null,null,null,null,null,null,null,{"$f":"IF('1. Ordersheet'!AX410=\"\",\"\",'1. Ordersheet'!AX410)","v":""},{"$f":"IF('1. Ordersheet'!AY410=\"\",\"\",'1. Ordersheet'!AY410)","v":""},{"$f":"IF('1. Ordersheet'!AZ410=\"\",\"\",'1. Ordersheet'!AZ410)","v":""},{"$f":"IF('1. Ordersheet'!BA410=\"\",\"\",'1. Ordersheet'!BA410)","v":""},{"$f":"IF('1. Ordersheet'!BC410=\"\",\"\",'1. Ordersheet'!BC410)","v":""},{"$f":"IF('1. Ordersheet'!BD410=\"\",\"\",'1. Ordersheet'!BD410)","v":""},{"$f":"IF('1. Ordersheet'!BE410=\"\",\"\",'1. Ordersheet'!BE410)","v":""},{"$f":"IF('1. Ordersheet'!BF410=\"\",\"\",'1. Ordersheet'!BF410)","v":""},{"$f":"IF('1. Ordersheet'!BG410=\"\",\"\",'1. Ordersheet'!BG410)","v":"ZWO"},{"$f":"IF('1. Ordersheet'!BH410=\"\",\"\",'1. Ordersheet'!BH410)","v":""},{"$f":"IF('1. Ordersheet'!BI410=\"\",\"\",'1. Ordersheet'!BI410)","v":""},{"$f":"IF('1. Ordersheet'!BJ410=\"\",\"\",'1. Ordersheet'!BJ410)","v":""},{"$f":"IF('1. Ordersheet'!BK410=\"\",\"\",'1. Ordersheet'!BK410)","v":""},{"$f":"IF('1. Ordersheet'!BL410=\"\",\"\",'1. Ordersheet'!BL410)","v":""}]
[{"$f":"IF('1. Ordersheet'!F411=\"\",\"\",'1. Ordersheet'!F411)","v":""},{"$f":"IF('1. Ordersheet'!G411=\"\",\"\",'1. Ordersheet'!G411)","v":""},{"$f":"IF('1. Ordersheet'!H411=\"\",\"\",'1. Ordersheet'!H411)","v":""},{"$f":"IF('1. Ordersheet'!I411=\"\",\"\",'1. Ordersheet'!I411)","v":""},{"$f":"IF('1. Ordersheet'!J411=\"\",\"\",'1. Ordersheet'!J411)","v":""},{"$f":"IF('1. Ordersheet'!K411=\"\",\"\",'1. Ordersheet'!K411)","v":""},{"$f":"IF('1. Ordersheet'!L411=\"\",\"\",'1. Ordersheet'!L411)","v":""},{"$f":"IF('1. Ordersheet'!M411=\"\",\"\",'1. Ordersheet'!M411)","v":""},{"$f":"IF('1. Ordersheet'!N411=\"\",\"\",'1. Ordersheet'!N411)","v":""},{"$f":"IF('1. Ordersheet'!O411=\"\",\"\",'1. Ordersheet'!O411)","v":{"$error":"#N/A"}},{"$f":"IF('1. Ordersheet'!P411=\"\",\"\",'1. Ordersheet'!P411)","v":{"$error":"#N/A"}},{"$f":"IF('1. Ordersheet'!Q411=\"\",\"\",'1. Ordersheet'!Q411)","v":""},{"$f":"IF('1. Ordersheet'!R411=\"\",\"\",'1. Ordersheet'!R411)","v":""},{"$f":"IF('1. Ordersheet'!S411=\"\",\"\",'1. Ordersheet'!S411)","v":""},{"$f":"IF('1. Ordersheet'!V411=\"\",\"\",'1. Ordersheet'!V411)","v":""},{"$f":"IF('1. Ordersheet'!W411=\"\",\"\",'1. Ordersheet'!W411)","v":""},{"$f":"IF('1. Ordersheet'!X411=\"\",\"\",'1. Ordersheet'!X411)","v":""},{"$f":"IF('1. Ordersheet'!Y411=\"\",\"\",'1. Ordersheet'!Y411)","v":""},{"$f":"IF('1. Ordersheet'!Z411=\"\",\"\",'1. Ordersheet'!Z411)","v":""},{"$f":"IF('1. Ordersheet'!AA411=\"\",\"\",'1. Ordersheet'!AA411)","v":""},null,{"$f":"IF('1. Ordersheet'!AS411=\"\",\"\",'1. Ordersheet'!AS411)","v":""},{"$f":"IF('1. Ordersheet'!AT411=\"\",\"\",'1. Ordersheet'!AT411)","v":""},null,null,null,null,null,null,null,{"$f":"IF('1. Ordersheet'!AX411=\"\",\"\",'1. Ordersheet'!AX411)","v":""},{"$f":"IF('1. Ordersheet'!AY411=\"\",\"\",'1. Ordersheet'!AY411)","v":""},{"$f":"IF('1. Ordersheet'!AZ411=\"\",\"\",'1. Ordersheet'!AZ411)","v":""},{"$f":"IF('1. Ordersheet'!BA411=\"\",\"\",'1. Ordersheet'!BA411)","v":""},{"$f":"IF('1. Ordersheet'!BC411=\"\",\"\",'1. Ordersheet'!BC411)","v":""},{"$f":"IF('1. Ordersheet'!BD411=\"\",\"\",'1. Ordersheet'!BD411)","v":""},{"$f":"IF('1. Ordersheet'!BE411=\"\",\"\",'1. Ordersheet'!BE411)","v":""},{"$f":"IF('1. Ordersheet'!BF411=\"\",\"\",'1. Ordersheet'!BF411)","v":""},{"$f":"IF('1. Ordersheet'!BG411=\"\",\"\",'1. Ordersheet'!BG411)","v":"ZWO"},{"$f":"IF('1. Ordersheet'!BH411=\"\",\"\",'1. Ordersheet'!BH411)","v":""},{"$f":"IF('1. Ordersheet'!BI411=\"\",\"\",'1. Ordersheet'!BI411)","v":""},{"$f":"IF('1. Ordersheet'!BJ411=\"\",\"\",'1. Ordersheet'!BJ411)","v":""},{"$f":"IF('1. Ordersheet'!BK411=\"\",\"\",'1. Ordersheet'!BK411)","v":""},{"$f":"IF('1. Ordersheet'!BL411=\"\",\"\",'1. Ordersheet'!BL411)","v":""}]
[{"$f":"IF('1. Ordersheet'!F412=\"\",\"\",'1. Ordersheet'!F412)","v":""},{"$f":"IF('1. Ordersheet'!G412=\"\",\"\",'1. Ordersheet'!G412)","v":""},{"$f":"IF('1. Ordersheet'!H412=\"\",\"\",'1. Ordersheet'!H412)","v":""},{"$f":"IF('1. Ordersheet'!I412=\"\",\"\",'1. Ordersheet'!I412)","v":""},{"$f":"IF('1. Ordersheet'!J412=\"\",\"\",'1. Ordersheet'!J412)","v":""},{"$f":"IF('1. Ordersheet'!K412=\"\",\"\",'1. Ordersheet'!K412)","v":""},{"$f":"IF('1. Ordersheet'!L412=\"\",\"\",'1. Ordersheet'!L412)","v":""},{"$f":"IF('1. Ordersheet'!M412=\"\",\"\",'1. Ordersheet'!M412)","v":""},{"$f":"IF('1. Ordersheet'!N412=\"\",\"\",'1. Ordersheet'!N412)","v":""},{"$f":"IF('1. Ordersheet'!O412=\"\",\"\",'1. Ordersheet'!O412)","v":{"$error":"#N/A"}},{"$f":"IF('1. Ordersheet'!P412=\"\",\"\",'1. Ordersheet'!P412)","v":{"$error":"#N/A"}},{"$f":"IF('1. Ordersheet'!Q412=\"\",\"\",'1. Ordersheet'!Q412)","v":""},{"$f":"IF('1. Ordersheet'!R412=\"\",\"\",'1. Ordersheet'!R412)","v":""},{"$f":"IF('1. Ordersheet'!S412=\"\",\"\",'1. Ordersheet'!S412)","v":""},{"$f":"IF('1. Ordersheet'!V412=\"\",\"\",'1. Ordersheet'!V412)","v":""},{"$f":"IF('1. Ordersheet'!W412=\"\",\"\",'1. Ordersheet'!W412)","v":""},{"$f":"IF('1. Ordersheet'!X412=\"\",\"\",'1. Ordersheet'!X412)","v":""},{"$f":"IF('1. Ordersheet'!Y412=\"\",\"\",'1. Ordersheet'!Y412)","v":""},{"$f":"IF('1. Ordersheet'!Z412=\"\",\"\",'1. Ordersheet'!Z412)","v":""},{"$f":"IF('1. Ordersheet'!AA412=\"\",\"\",'1. Ordersheet'!AA412)","v":""},null,{"$f":"IF('1. Ordersheet'!AS412=\"\",\"\",'1. Ordersheet'!AS412)","v":""},{"$f":"IF('1. Ordersheet'!AT412=\"\",\"\",'1. Ordersheet'!AT412)","v":""},null,null,null,null,null,null,null,{"$f":"IF('1. Ordersheet'!AX412=\"\",\"\",'1. Ordersheet'!AX412)","v":""},{"$f":"IF('1. Ordersheet'!AY412=\"\",\"\",'1. Ordersheet'!AY412)","v":""},{"$f":"IF('1. Ordersheet'!AZ412=\"\",\"\",'1. Ordersheet'!AZ412)","v":""},{"$f":"IF('1. Ordersheet'!BA412=\"\",\"\",'1. Ordersheet'!BA412)","v":""},{"$f":"IF('1. Ordersheet'!BC412=\"\",\"\",'1. Ordersheet'!BC412)","v":""},{"$f":"IF('1. Ordersheet'!BD412=\"\",\"\",'1. Ordersheet'!BD412)","v":""},{"$f":"IF('1. Ordersheet'!BE412=\"\",\"\",'1. Ordersheet'!BE412)","v":""},{"$f":"IF('1. Ordersheet'!BF412=\"\",\"\",'1. Ordersheet'!BF412)","v":""},{"$f":"IF('1. Ordersheet'!BG412=\"\",\"\",'1. Ordersheet'!BG412)","v":"ZWO"},{"$f":"IF('1. Ordersheet'!BH412=\"\",\"\",'1. Ordersheet'!BH412)","v":""},{"$f":"IF('1. Ordersheet'!BI412=\"\",\"\",'1. Ordersheet'!BI412)","v":""},{"$f":"IF('1. Ordersheet'!BJ412=\"\",\"\",'1. Ordersheet'!BJ412)","v":""},{"$f":"IF('1. Ordersheet'!BK412=\"\",\"\",'1. Ordersheet'!BK412)","v":""},{"$f":"IF('1. Ordersheet'!BL412=\"\",\"\",'1. Ordersheet'!BL412)","v":""}]
[{"$f":"IF('1. Ordersheet'!F413=\"\",\"\",'1. Ordersheet'!F413)","v":""},{"$f":"IF('1. Ordersheet'!G413=\"\",\"\",'1. Ordersheet'!G413)","v":""},{"$f":"IF('1. Ordersheet'!H413=\"\",\"\",'1. Ordersheet'!H413)","v":""},{"$f":"IF('1. Ordersheet'!I413=\"\",\"\",'1. Ordersheet'!I413)","v":""},{"$f":"IF('1. Ordersheet'!J413=\"\",\"\",'1. Ordersheet'!J413)","v":""},{"$f":"IF('1. Ordersheet'!K413=\"\",\"\",'1. Ordersheet'!K413)","v":""},{"$f":"IF('1. Ordersheet'!L413=\"\",\"\",'1. Ordersheet'!L413)","v":""},{"$f":"IF('1. Ordersheet'!M413=\"\",\"\",'1. Ordersheet'!M413)","v":""},{"$f":"IF('1. Ordersheet'!N413=\"\",\"\",'1. Ordersheet'!N413)","v":""},{"$f":"IF('1. Ordersheet'!O413=\"\",\"\",'1. Ordersheet'!O413)","v":{"$error":"#N/A"}},{"$f":"IF('1. Ordersheet'!P413=\"\",\"\",'1. Ordersheet'!P413)","v":{"$error":"#N/A"}},{"$f":"IF('1. Ordersheet'!Q413=\"\",\"\",'1. Ordersheet'!Q413)","v":""},{"$f":"IF('1. Ordersheet'!R413=\"\",\"\",'1. Ordersheet'!R413)","v":""},{"$f":"IF('1. Ordersheet'!S413=\"\",\"\",'1. Ordersheet'!S413)","v":""},{"$f":"IF('1. Ordersheet'!V413=\"\",\"\",'1. Ordersheet'!V413)","v":""},{"$f":"IF('1. Ordersheet'!W413=\"\",\"\",'1. Ordersheet'!W413)","v":""},{"$f":"IF('1. Ordersheet'!X413=\"\",\"\",'1. Ordersheet'!X413)","v":""},{"$f":"IF('1. Ordersheet'!Y413=\"\",\"\",'1. Ordersheet'!Y413)","v":""},{"$f":"IF('1. Ordersheet'!Z413=\"\",\"\",'1. Ordersheet'!Z413)","v":""},{"$f":"IF('1. Ordersheet'!AA413=\"\",\"\",'1. Ordersheet'!AA413)","v":""},null,{"$f":"IF('1. Ordersheet'!AS413=\"\",\"\",'1. Ordersheet'!AS413)","v":""},{"$f":"IF('1. Ordersheet'!AT413=\"\",\"\",'1. Ordersheet'!AT413)","v":""},null,null,null,null,null,null,null,{"$f":"IF('1. Ordersheet'!AX413=\"\",\"\",'1. Ordersheet'!AX413)","v":""},{"$f":"IF('1. Ordersheet'!AY413=\"\",\"\",'1. Ordersheet'!AY413)","v":""},{"$f":"IF('1. Ordersheet'!AZ413=\"\",\"\",'1. Ordersheet'!AZ413)","v":""},{"$f":"IF('1. Ordersheet'!BA413=\"\",\"\",'1. Ordersheet'!BA413)","v":""},{"$f":"IF('1. Ordersheet'!BC413=\"\",\"\",'1. Ordersheet'!BC413)","v":""},{"$f":"IF('1. Ordersheet'!BD413=\"\",\"\",'1. Ordersheet'!BD413)","v":""},{"$f":"IF('1. Ordersheet'!BE413=\"\",\"\",'1. Ordersheet'!BE413)","v":""},{"$f":"IF('1. Ordersheet'!BF413=\"\",\"\",'1. Ordersheet'!BF413)","v":""},{"$f":"IF('1. Ordersheet'!BG413=\"\",\"\",'1. Ordersheet'!BG413)","v":"ZWO"},{"$f":"IF('1. Ordersheet'!BH413=\"\",\"\",'1. Ordersheet'!BH413)","v":""},{"$f":"IF('1. Ordersheet'!BI413=\"\",\"\",'1. Ordersheet'!BI413)","v":""},{"$f":"IF('1. Ordersheet'!BJ413=\"\",\"\",'1. Ordersheet'!BJ413)","v":""},{"$f":"IF('1. Ordersheet'!BK413=\"\",\"\",'1. Ordersheet'!BK413)","v":""},{"$f":"IF('1. Ordersheet'!BL413=\"\",\"\",'1. Ordersheet'!BL413)","v":""}]
[{"$f":"IF('1. Ordersheet'!F414=\"\",\"\",'1. Ordersheet'!F414)","v":""},{"$f":"IF('1. Ordersheet'!G414=\"\",\"\",'1. Ordersheet'!G414)","v":""},{"$f":"IF('1. Ordersheet'!H414=\"\",\"\",'1. Ordersheet'!H414)","v":""},{"$f":"IF('1. Ordersheet'!I414=\"\",\"\",'1. Ordersheet'!I414)","v":""},{"$f":"IF('1. Ordersheet'!J414=\"\",\"\",'1. Ordersheet'!J414)","v":""},{"$f":"IF('1. Ordersheet'!K414=\"\",\"\",'1. Ordersheet'!K414)","v":""},{"$f":"IF('1. Ordersheet'!L414=\"\",\"\",'1. Ordersheet'!L414)","v":""},{"$f":"IF('1. Ordersheet'!M414=\"\",\"\",'1. Ordersheet'!M414)","v":""},{"$f":"IF('1. Ordersheet'!N414=\"\",\"\",'1. Ordersheet'!N414)","v":""},{"$f":"IF('1. Ordersheet'!O414=\"\",\"\",'1. Ordersheet'!O414)","v":{"$error":"#N/A"}},{"$f":"IF('1. Ordersheet'!P414=\"\",\"\",'1. Ordersheet'!P414)","v":{"$error":"#N/A"}},{"$f":"IF('1. Ordersheet'!Q414=\"\",\"\",'1. Ordersheet'!Q414)","v":""},{"$f":"IF('1. Ordersheet'!R414=\"\",\"\",'1. Ordersheet'!R414)","v":""},{"$f":"IF('1. Ordersheet'!S414=\"\",\"\",'1. Ordersheet'!S414)","v":""},{"$f":"IF('1. Ordersheet'!V414=\"\",\"\",'1. Ordersheet'!V414)","v":""},{"$f":"IF('1. Ordersheet'!W414=\"\",\"\",'1. Ordersheet'!W414)","v":""},{"$f":"IF('1. Ordersheet'!X414=\"\",\"\",'1. Ordersheet'!X414)","v":""},{"$f":"IF('1. Ordersheet'!Y414=\"\",\"\",'1. Ordersheet'!Y414)","v":""},{"$f":"IF('1. Ordersheet'!Z414=\"\",\"\",'1. Ordersheet'!Z414)","v":""},{"$f":"IF('1. Ordersheet'!AA414=\"\",\"\",'1. Ordersheet'!AA414)","v":""},null,{"$f":"IF('1. Ordersheet'!AS414=\"\",\"\",'1. Ordersheet'!AS414)","v":""},{"$f":"IF('1. Ordersheet'!AT414=\"\",\"\",'1. Ordersheet'!AT414)","v":""},null,null,null,null,null,null,null,{"$f":"IF('1. Ordersheet'!AX414=\"\",\"\",'1. Ordersheet'!AX414)","v":""},{"$f":"IF('1. Ordersheet'!AY414=\"\",\"\",'1. Ordersheet'!AY414)","v":""},{"$f":"IF('1. Ordersheet'!AZ414=\"\",\"\",'1. Ordersheet'!AZ414)","v":""},{"$f":"IF('1. Ordersheet'!BA414=\"\",\"\",'1. Ordersheet'!BA414)","v":""},{"$f":"IF('1. Ordersheet'!BC414=\"\",\"\",'1. Ordersheet'!BC414)","v":""},{"$f":"IF('1. Ordersheet'!BD414=\"\",\"\",'1. Ordersheet'!BD414)","v":""},{"$f":"IF('1. Ordersheet'!BE414=\"\",\"\",'1. Ordersheet'!BE414)","v":""},{"$f":"IF('1. Ordersheet'!BF414=\"\",\"\",'1. Ordersheet'!BF414)","v":""},{"$f":"IF('1. Ordersheet'!BG414=\"\",\"\",'1. Ordersheet'!BG414)","v":"ZWO"},{"$f":"IF('1. Ordersheet'!BH414=\"\",\"\",'1. Ordersheet'!BH414)","v":""},{"$f":"IF('1. Ordersheet'!BI414=\"\",\"\",'1. Ordersheet'!BI414)","v":""},{"$f":"IF('1. Ordersheet'!BJ414=\"\",\"\",'1. Ordersheet'!BJ414)","v":""},{"$f":"IF('1. Ordersheet'!BK414=\"\",\"\",'1. Ordersheet'!BK414)","v":""},{"$f":"IF('1. Ordersheet'!BL414=\"\",\"\",'1. Ordersheet'!BL414)","v":""}]
[{"$f":"IF('1. Ordersheet'!F415=\"\",\"\",'1. Ordersheet'!F415)","v":""},{"$f":"IF('1. Ordersheet'!G415=\"\",\"\",'1. Ordersheet'!G415)","v":""},{"$f":"IF('1. Ordersheet'!H415=\"\",\"\",'1. Ordersheet'!H415)","v":""},{"$f":"IF('1. Ordersheet'!I415=\"\",\"\",'1. Ordersheet'!I415)","v":""},{"$f":"IF('1. Ordersheet'!J415=\"\",\"\",'1. Ordersheet'!J415)","v":""},{"$f":"IF('1. Ordersheet'!K415=\"\",\"\",'1. Ordersheet'!K415)","v":""},{"$f":"IF('1. Ordersheet'!L415=\"\",\"\",'1. Ordersheet'!L415)","v":""},{"$f":"IF('1. Ordersheet'!M415=\"\",\"\",'1. Ordersheet'!M415)","v":""},{"$f":"IF('1. Ordersheet'!N415=\"\",\"\",'1. Ordersheet'!N415)","v":""},{"$f":"IF('1. Ordersheet'!O415=\"\",\"\",'1. Ordersheet'!O415)","v":{"$error":"#N/A"}},{"$f":"IF('1. Ordersheet'!P415=\"\",\"\",'1. Ordersheet'!P415)","v":{"$error":"#N/A"}},{"$f":"IF('1. Ordersheet'!Q415=\"\",\"\",'1. Ordersheet'!Q415)","v":""},{"$f":"IF('1. Ordersheet'!R415=\"\",\"\",'1. Ordersheet'!R415)","v":""},{"$f":"IF('1. Ordersheet'!S415=\"\",\"\",'1. Ordersheet'!S415)","v":""},{"$f":"IF('1. Ordersheet'!V415=\"\",\"\",'1. Ordersheet'!V415)","v":""},{"$f":"IF('1. Ordersheet'!W415=\"\",\"\",'1. Ordersheet'!W415)","v":""},{"$f":"IF('1. Ordersheet'!X415=\"\",\"\",'1. Ordersheet'!X415)","v":""},{"$f":"IF('1. Ordersheet'!Y415=\"\",\"\",'1. Ordersheet'!Y415)","v":""},{"$f":"IF('1. Ordersheet'!Z415=\"\",\"\",'1. Ordersheet'!Z415)","v":""},{"$f":"IF('1. Ordersheet'!AA415=\"\",\"\",'1. Ordersheet'!AA415)","v":""},null,{"$f":"IF('1. Ordersheet'!AS415=\"\",\"\",'1. Ordersheet'!AS415)","v":""},{"$f":"IF('1. Ordersheet'!AT415=\"\",\"\",'1. Ordersheet'!AT415)","v":""},null,null,null,null,null,null,null,{"$f":"IF('1. Ordersheet'!AX415=\"\",\"\",'1. Ordersheet'!AX415)","v":""},{"$f":"IF('1. Ordersheet'!AY415=\"\",\"\",'1. Ordersheet'!AY415)","v":""},{"$f":"IF('1. Ordersheet'!AZ415=\"\",\"\",'1. Ordersheet'!AZ415)","v":""},{"$f":"IF('1. Ordersheet'!BA415=\"\",\"\",'1. Ordersheet'!BA415)","v":""},{"$f":"IF('1. Ordersheet'!BC415=\"\",\"\",'1. Ordersheet'!BC415)","v":""},{"$f":"IF('1. Ordersheet'!BD415=\"\",\"\",'1. Ordersheet'!BD415)","v":""},{"$f":"IF('1. Ordersheet'!BE415=\"\",\"\",'1. Ordersheet'!BE415)","v":""},{"$f":"IF('1. Ordersheet'!BF415=\"\",\"\",'1. Ordersheet'!BF415)","v":""},{"$f":"IF('1. Ordersheet'!BG415=\"\",\"\",'1. Ordersheet'!BG415)","v":"ZWO"},{"$f":"IF('1. Ordersheet'!BH415=\"\",\"\",'1. Ordersheet'!BH415)","v":""},{"$f":"IF('1. Ordersheet'!BI415=\"\",\"\",'1. Ordersheet'!BI415)","v":""},{"$f":"IF('1. Ordersheet'!BJ415=\"\",\"\",'1. Ordersheet'!BJ415)","v":""},{"$f":"IF('1. Ordersheet'!BK415=\"\",\"\",'1. Ordersheet'!BK415)","v":""},{"$f":"IF('1. Ordersheet'!BL415=\"\",\"\",'1. Ordersheet'!BL415)","v":""}]
[{"$f":"IF('1. Ordersheet'!F416=\"\",\"\",'1. Ordersheet'!F416)","v":""},{"$f":"IF('1. Ordersheet'!G416=\"\",\"\",'1. Ordersheet'!G416)","v":""},{"$f":"IF('1. Ordersheet'!H416=\"\",\"\",'1. Ordersheet'!H416)","v":""},{"$f":"IF('1. Ordersheet'!I416=\"\",\"\",'1. Ordersheet'!I416)","v":""},{"$f":"IF('1. Ordersheet'!J416=\"\",\"\",'1. Ordersheet'!J416)","v":""},{"$f":"IF('1. Ordersheet'!K416=\"\",\"\",'1. Ordersheet'!K416)","v":""},{"$f":"IF('1. Ordersheet'!L416=\"\",\"\",'1. Ordersheet'!L416)","v":""},{"$f":"IF('1. Ordersheet'!M416=\"\",\"\",'1. Ordersheet'!M416)","v":""},{"$f":"IF('1. Ordersheet'!N416=\"\",\"\",'1. Ordersheet'!N416)","v":""},{"$f":"IF('1. Ordersheet'!O416=\"\",\"\",'1. Ordersheet'!O416)","v":{"$error":"#N/A"}},{"$f":"IF('1. Ordersheet'!P416=\"\",\"\",'1. Ordersheet'!P416)","v":{"$error":"#N/A"}},{"$f":"IF('1. Ordersheet'!Q416=\"\",\"\",'1. Ordersheet'!Q416)","v":""},{"$f":"IF('1. Ordersheet'!R416=\"\",\"\",'1. Ordersheet'!R416)","v":""},{"$f":"IF('1. Ordersheet'!S416=\"\",\"\",'1. Ordersheet'!S416)","v":""},{"$f":"IF('1. Ordersheet'!V416=\"\",\"\",'1. Ordersheet'!V416)","v":""},{"$f":"IF('1. Ordersheet'!W416=\"\",\"\",'1. Ordersheet'!W416)","v":""},{"$f":"IF('1. Ordersheet'!X416=\"\",\"\",'1. Ordersheet'!X416)","v":""},{"$f":"IF('1. Ordersheet'!Y416=\"\",\"\",'1. Ordersheet'!Y416)","v":""},{"$f":"IF('1. Ordersheet'!Z416=\"\",\"\",'1. Ordersheet'!Z416)","v":""},{"$f":"IF('1. Ordersheet'!AA416=\"\",\"\",'1. Ordersheet'!AA416)","v":""},null,{"$f":"IF('1. Ordersheet'!AS416=\"\",\"\",'1. Ordersheet'!AS416)","v":""},{"$f":"IF('1. Ordersheet'!AT416=\"\",\"\",'1. Ordersheet'!AT416)","v":""},null,null,null,null,null,null,null,{"$f":"IF('1. Ordersheet'!AX416=\"\",\"\",'1. Ordersheet'!AX416)","v":""},{"$f":"IF('1. Ordersheet'!AY416=\"\",\"\",'1. Ordersheet'!AY416)","v":""},{"$f":"IF('1. Ordersheet'!AZ416=\"\",\"\",'1. Ordersheet'!AZ416)","v":""},{"$f":"IF('1. Ordersheet'!BA416=\"\",\"\",'1. Ordersheet'!BA416)","v":""},{"$f":"IF('1. Ordersheet'!BC416=\"\",\"\",'1. Ordersheet'!BC416)","v":""},{"$f":"IF('1. Ordersheet'!BD416=\"\",\"\",'1. Ordersheet'!BD416)","v":""},{"$f":"IF('1. Ordersheet'!BE416=\"\",\"\",'1. Ordersheet'!BE416)","v":""},{"$f":"IF('1. Ordersheet'!BF416=\"\",\"\",'1. Ordersheet'!BF416)","v":""},{"$f":"IF('1. Ordersheet'!BG416=\"\",\"\",'1. Ordersheet'!BG416)","v":"ZWO"},{"$f":"IF('1. Ordersheet'!BH416=\"\",\"\",'1. Ordersheet'!BH416)","v":""},{"$f":"IF('1. Ordersheet'!BI416=\"\",\"\",'1. Ordersheet'!BI416)","v":""},{"$f":"IF('1. Ordersheet'!BJ416=\"\",\"\",'1. Ordersheet'!BJ416)","v":""},{"$f":"IF('1. Ordersheet'!BK416=\"\",\"\",'1. Ordersheet'!BK416)","v":""},{"$f":"IF('1. Ordersheet'!BL416=\"\",\"\",'1. Ordersheet'!BL416)","v":""}]
[{"$f":"IF('1. Ordersheet'!F417=\"\",\"\",'1. Ordersheet'!F417)","v":""},{"$f":"IF('1. Ordersheet'!G417=\"\",\"\",'1. Ordersheet'!G417)","v":""},{"$f":"IF('1. Ordersheet'!H417=\"\",\"\",'1. Ordersheet'!H417)","v":""},{"$f":"IF('1. Ordersheet'!I417=\"\",\"\",'1. Ordersheet'!I417)","v":""},{"$f":"IF('1. Ordersheet'!J417=\"\",\"\",'1. Ordersheet'!J417)","v":""},{"$f":"IF('1. Ordersheet'!K417=\"\",\"\",'1. Ordersheet'!K417)","v":""},{"$f":"IF('1. Ordersheet'!L417=\"\",\"\",'1. Ordersheet'!L417)","v":""},{"$f":"IF('1. Ordersheet'!M417=\"\",\"\",'1. Ordersheet'!M417)","v":""},{"$f":"IF('1. Ordersheet'!N417=\"\",\"\",'1. Ordersheet'!N417)","v":""},{"$f":"IF('1. Ordersheet'!O417=\"\",\"\",'1. Ordersheet'!O417)","v":{"$error":"#N/A"}},{"$f":"IF('1. Ordersheet'!P417=\"\",\"\",'1. Ordersheet'!P417)","v":{"$error":"#N/A"}},{"$f":"IF('1. Ordersheet'!Q417=\"\",\"\",'1. Ordersheet'!Q417)","v":""},{"$f":"IF('1. Ordersheet'!R417=\"\",\"\",'1. Ordersheet'!R417)","v":""},{"$f":"IF('1. Ordersheet'!S417=\"\",\"\",'1. Ordersheet'!S417)","v":""},{"$f":"IF('1. Ordersheet'!V417=\"\",\"\",'1. Ordersheet'!V417)","v":""},{"$f":"IF('1. Ordersheet'!W417=\"\",\"\",'1. Ordersheet'!W417)","v":""},{"$f":"IF('1. Ordersheet'!X417=\"\",\"\",'1. Ordersheet'!X417)","v":""},{"$f":"IF('1. Ordersheet'!Y417=\"\",\"\",'1. Ordersheet'!Y417)","v":""},{"$f":"IF('1. Ordersheet'!Z417=\"\",\"\",'1. Ordersheet'!Z417)","v":""},{"$f":"IF('1. Ordersheet'!AA417=\"\",\"\",'1. Ordersheet'!AA417)","v":""},null,{"$f":"IF('1. Ordersheet'!AS417=\"\",\"\",'1. Ordersheet'!AS417)","v":""},{"$f":"IF('1. Ordersheet'!AT417=\"\",\"\",'1. Ordersheet'!AT417)","v":""},null,null,null,null,null,null,null,{"$f":"IF('1. Ordersheet'!AX417=\"\",\"\",'1. Ordersheet'!AX417)","v":""},{"$f":"IF('1. Ordersheet'!AY417=\"\",\"\",'1. Ordersheet'!AY417)","v":""},{"$f":"IF('1. Ordersheet'!AZ417=\"\",\"\",'1. Ordersheet'!AZ417)","v":""},{"$f":"IF('1. Ordersheet'!BA417=\"\",\"\",'1. Ordersheet'!BA417)","v":""},{"$f":"IF('1. Ordersheet'!BC417=\"\",\"\",'1. Ordersheet'!BC417)","v":""},{"$f":"IF('1. Ordersheet'!BD417=\"\",\"\",'1. Ordersheet'!BD417)","v":""},{"$f":"IF('1. Ordersheet'!BE417=\"\",\"\",'1. Ordersheet'!BE417)","v":""},{"$f":"IF('1. Ordersheet'!BF417=\"\",\"\",'1. Ordersheet'!BF417)","v":""},{"$f":"IF('1. Ordersheet'!BG417=\"\",\"\",'1. Ordersheet'!BG417)","v":"ZWO"},{"$f":"IF('1. Ordersheet'!BH417=\"\",\"\",'1. Ordersheet'!BH417)","v":""},{"$f":"IF('1. Ordersheet'!BI417=\"\",\"\",'1. Ordersheet'!BI417)","v":""},{"$f":"IF('1. Ordersheet'!BJ417=\"\",\"\",'1. Ordersheet'!BJ417)","v":""},{"$f":"IF('1. Ordersheet'!BK417=\"\",\"\",'1. Ordersheet'!BK417)","v":""},{"$f":"IF('1. Ordersheet'!BL417=\"\",\"\",'1. Ordersheet'!BL417)","v":""}]
[{"$f":"IF('1. Ordersheet'!F418=\"\",\"\",'1. Ordersheet'!F418)","v":""},{"$f":"IF('1. Ordersheet'!G418=\"\",\"\",'1. Ordersheet'!G418)","v":""},{"$f":"IF('1. Ordersheet'!H418=\"\",\"\",'1. Ordersheet'!H418)","v":""},{"$f":"IF('1. Ordersheet'!I418=\"\",\"\",'1. Ordersheet'!I418)","v":""},{"$f":"IF('1. Ordersheet'!J418=\"\",\"\",'1. Ordersheet'!J418)","v":""},{"$f":"IF('1. Ordersheet'!K418=\"\",\"\",'1. Ordersheet'!K418)","v":""},{"$f":"IF('1. Ordersheet'!L418=\"\",\"\",'1. Ordersheet'!L418)","v":""},{"$f":"IF('1. Ordersheet'!M418=\"\",\"\",'1. Ordersheet'!M418)","v":""},{"$f":"IF('1. Ordersheet'!N418=\"\",\"\",'1. Ordersheet'!N418)","v":""},{"$f":"IF('1. Ordersheet'!O418=\"\",\"\",'1. Ordersheet'!O418)","v":{"$error":"#N/A"}},{"$f":"IF('1. Ordersheet'!P418=\"\",\"\",'1. Ordersheet'!P418)","v":{"$error":"#N/A"}},{"$f":"IF('1. Ordersheet'!Q418=\"\",\"\",'1. Ordersheet'!Q418)","v":""},{"$f":"IF('1. Ordersheet'!R418=\"\",\"\",'1. Ordersheet'!R418)","v":""},{"$f":"IF('1. Ordersheet'!S418=\"\",\"\",'1. Ordersheet'!S418)","v":""},{"$f":"IF('1. Ordersheet'!V418=\"\",\"\",'1. Ordersheet'!V418)","v":""},{"$f":"IF('1. Ordersheet'!W418=\"\",\"\",'1. Ordersheet'!W418)","v":""},{"$f":"IF('1. Ordersheet'!X418=\"\",\"\",'1. Ordersheet'!X418)","v":""},{"$f":"IF('1. Ordersheet'!Y418=\"\",\"\",'1. Ordersheet'!Y418)","v":""},{"$f":"IF('1. Ordersheet'!Z418=\"\",\"\",'1. Ordersheet'!Z418)","v":""},{"$f":"IF('1. Ordersheet'!AA418=\"\",\"\",'1. Ordersheet'!AA418)","v":""},null,{"$f":"IF('1. Ordersheet'!AS418=\"\",\"\",'1. Ordersheet'!AS418)","v":""},{"$f":"IF('1. Ordersheet'!AT418=\"\",\"\",'1. Ordersheet'!AT418)","v":""},null,null,null,null,null,null,null,{"$f":"IF('1. Ordersheet'!AX418=\"\",\"\",'1. Ordersheet'!AX418)","v":""},{"$f":"IF('1. Ordersheet'!AY418=\"\",\"\",'1. Ordersheet'!AY418)","v":""},{"$f":"IF('1. Ordersheet'!AZ418=\"\",\"\",'1. Ordersheet'!AZ418)","v":""},{"$f":"IF('1. Ordersheet'!BA418=\"\",\"\",'1. Ordersheet'!BA418)","v":""},{"$f":"IF('1. Ordersheet'!BC418=\"\",\"\",'1. Ordersheet'!BC418)","v":""},{"$f":"IF('1. Ordersheet'!BD418=\"\",\"\",'1. Ordersheet'!BD418)","v":""},{"$f":"IF('1. Ordersheet'!BE418=\"\",\"\",'1. Ordersheet'!BE418)","v":""},{"$f":"IF('1. Ordersheet'!BF418=\"\",\"\",'1. Ordersheet'!BF418)","v":""},{"$f":"IF('1. Ordersheet'!BG418=\"\",\"\",'1. Ordersheet'!BG418)","v":"ZWO"},{"$f":"IF('1. Ordersheet'!BH418=\"\",\"\",'1. Ordersheet'!BH418)","v":""},{"$f":"IF('1. Ordersheet'!BI418=\"\",\"\",'1. Ordersheet'!BI418)","v":""},{"$f":"IF('1. Ordersheet'!BJ418=\"\",\"\",'1. Ordersheet'!BJ418)","v":""},{"$f":"IF('1. Ordersheet'!BK418=\"\",\"\",'1. Ordersheet'!BK418)","v":""},{"$f":"IF('1. Ordersheet'!BL418=\"\",\"\",'1. Ordersheet'!BL418)","v":""}]
[{"$f":"IF('1. Ordersheet'!F419=\"\",\"\",'1. Ordersheet'!F419)","v":""},{"$f":"IF('1. Ordersheet'!G419=\"\",\"\",'1. Ordersheet'!G419)","v":""},{"$f":"IF('1. Ordersheet'!H419=\"\",\"\",'1. Ordersheet'!H419)","v":""},{"$f":"IF('1. Ordersheet'!I419=\"\",\"\",'1. Ordersheet'!I419)","v":""},{"$f":"IF('1. Ordersheet'!J419=\"\",\"\",'1. Ordersheet'!J419)","v":""},{"$f":"IF('1. Ordersheet'!K419=\"\",\"\",'1. Ordersheet'!K419)","v":""},{"$f":"IF('1. Ordersheet'!L419=\"\",\"\",'1. Ordersheet'!L419)","v":""},{"$f":"IF('1. Ordersheet'!M419=\"\",\"\",'1. Ordersheet'!M419)","v":""},{"$f":"IF('1. Ordersheet'!N419=\"\",\"\",'1. Ordersheet'!N419)","v":""},{"$f":"IF('1. Ordersheet'!O419=\"\",\"\",'1. Ordersheet'!O419)","v":{"$error":"#N/A"}},{"$f":"IF('1. Ordersheet'!P419=\"\",\"\",'1. Ordersheet'!P419)","v":{"$error":"#N/A"}},{"$f":"IF('1. Ordersheet'!Q419=\"\",\"\",'1. Ordersheet'!Q419)","v":""},{"$f":"IF('1. Ordersheet'!R419=\"\",\"\",'1. Ordersheet'!R419)","v":""},{"$f":"IF('1. Ordersheet'!S419=\"\",\"\",'1. Ordersheet'!S419)","v":""},{"$f":"IF('1. Ordersheet'!V419=\"\",\"\",'1. Ordersheet'!V419)","v":""},{"$f":"IF('1. Ordersheet'!W419=\"\",\"\",'1. Ordersheet'!W419)","v":""},{"$f":"IF('1. Ordersheet'!X419=\"\",\"\",'1. Ordersheet'!X419)","v":""},{"$f":"IF('1. Ordersheet'!Y419=\"\",\"\",'1. Ordersheet'!Y419)","v":""},{"$f":"IF('1. Ordersheet'!Z419=\"\",\"\",'1. Ordersheet'!Z419)","v":""},{"$f":"IF('1. Ordersheet'!AA419=\"\",\"\",'1. Ordersheet'!AA419)","v":""},null,{"$f":"IF('1. Ordersheet'!AS419=\"\",\"\",'1. Ordersheet'!AS419)","v":""},{"$f":"IF('1. Ordersheet'!AT419=\"\",\"\",'1. Ordersheet'!AT419)","v":""},null,null,null,null,null,null,null,{"$f":"IF('1. Ordersheet'!AX419=\"\",\"\",'1. Ordersheet'!AX419)","v":""},{"$f":"IF('1. Ordersheet'!AY419=\"\",\"\",'1. Ordersheet'!AY419)","v":""},{"$f":"IF('1. Ordersheet'!AZ419=\"\",\"\",'1. Ordersheet'!AZ419)","v":""},{"$f":"IF('1. Ordersheet'!BA419=\"\",\"\",'1. Ordersheet'!BA419)","v":""},{"$f":"IF('1. Ordersheet'!BC419=\"\",\"\",'1. Ordersheet'!BC419)","v":""},{"$f":"IF('1. Ordersheet'!BD419=\"\",\"\",'1. Ordersheet'!BD419)","v":""},{"$f":"IF('1. Ordersheet'!BE419=\"\",\"\",'1. Ordersheet'!BE419)","v":""},{"$f":"IF('1. Ordersheet'!BF419=\"\",\"\",'1. Ordersheet'!BF419)","v":""},{"$f":"IF('1. Ordersheet'!BG419=\"\",\"\",'1. Ordersheet'!BG419)","v":"ZWO"},{"$f":"IF('1. Ordersheet'!BH419=\"\",\"\",'1. Ordersheet'!BH419)","v":""},{"$f":"IF('1. Ordersheet'!BI419=\"\",\"\",'1. Ordersheet'!BI419)","v":""},{"$f":"IF('1. Ordersheet'!BJ419=\"\",\"\",'1. Ordersheet'!BJ419)","v":""},{"$f":"IF('1. Ordersheet'!BK419=\"\",\"\",'1. Ordersheet'!BK419)","v":""},{"$f":"IF('1. Ordersheet'!BL419=\"\",\"\",'1. Ordersheet'!BL419)","v":""}]
[{"$f":"IF('1. Ordersheet'!F420=\"\",\"\",'1. Ordersheet'!F420)","v":""},{"$f":"IF('1. Ordersheet'!G420=\"\",\"\",'1. Ordersheet'!G420)","v":""},{"$f":"IF('1. Ordersheet'!H420=\"\",\"\",'1. Ordersheet'!H420)","v":""},{"$f":"IF('1. Ordersheet'!I420=\"\",\"\",'1. Ordersheet'!I420)","v":""},{"$f":"IF('1. Ordersheet'!J420=\"\",\"\",'1. Ordersheet'!J420)","v":""},{"$f":"IF('1. Ordersheet'!K420=\"\",\"\",'1. Ordersheet'!K420)","v":""},{"$f":"IF('1. Ordersheet'!L420=\"\",\"\",'1. Ordersheet'!L420)","v":""},{"$f":"IF('1. Ordersheet'!M420=\"\",\"\",'1. Ordersheet'!M420)","v":""},{"$f":"IF('1. Ordersheet'!N420=\"\",\"\",'1. Ordersheet'!N420)","v":""},{"$f":"IF('1. Ordersheet'!O420=\"\",\"\",'1. Ordersheet'!O420)","v":{"$error":"#N/A"}},{"$f":"IF('1. Ordersheet'!P420=\"\",\"\",'1. Ordersheet'!P420)","v":{"$error":"#N/A"}},{"$f":"IF('1. Ordersheet'!Q420=\"\",\"\",'1. Ordersheet'!Q420)","v":""},{"$f":"IF('1. Ordersheet'!R420=\"\",\"\",'1. Ordersheet'!R420)","v":""},{"$f":"IF('1. Ordersheet'!S420=\"\",\"\",'1. Ordersheet'!S420)","v":""},{"$f":"IF('1. Ordersheet'!V420=\"\",\"\",'1. Ordersheet'!V420)","v":""},{"$f":"IF('1. Ordersheet'!W420=\"\",\"\",'1. Ordersheet'!W420)","v":""},{"$f":"IF('1. Ordersheet'!X420=\"\",\"\",'1. Ordersheet'!X420)","v":""},{"$f":"IF('1. Ordersheet'!Y420=\"\",\"\",'1. Ordersheet'!Y420)","v":""},{"$f":"IF('1. Ordersheet'!Z420=\"\",\"\",'1. Ordersheet'!Z420)","v":""},{"$f":"IF('1. Ordersheet'!AA420=\"\",\"\",'1. Ordersheet'!AA420)","v":""},null,{"$f":"IF('1. Ordersheet'!AS420=\"\",\"\",'1. Ordersheet'!AS420)","v":""},{"$f":"IF('1. Ordersheet'!AT420=\"\",\"\",'1. Ordersheet'!AT420)","v":""},null,null,null,null,null,null,null,{"$f":"IF('1. Ordersheet'!AX420=\"\",\"\",'1. Ordersheet'!AX420)","v":""},{"$f":"IF('1. Ordersheet'!AY420=\"\",\"\",'1. Ordersheet'!AY420)","v":""},{"$f":"IF('1. Ordersheet'!AZ420=\"\",\"\",'1. Ordersheet'!AZ420)","v":""},{"$f":"IF('1. Ordersheet'!BA420=\"\",\"\",'1. Ordersheet'!BA420)","v":""},{"$f":"IF('1. Ordersheet'!BC420=\"\",\"\",'1. Ordersheet'!BC420)","v":""},{"$f":"IF('1. Ordersheet'!BD420=\"\",\"\",'1. Ordersheet'!BD420)","v":""},{"$f":"IF('1. Ordersheet'!BE420=\"\",\"\",'1. Ordersheet'!BE420)","v":""},{"$f":"IF('1. Ordersheet'!BF420=\"\",\"\",'1. Ordersheet'!BF420)","v":""},{"$f":"IF('1. Ordersheet'!BG420=\"\",\"\",'1. Ordersheet'!BG420)","v":"ZWO"},{"$f":"IF('1. Ordersheet'!BH420=\"\",\"\",'1. Ordersheet'!BH420)","v":""},{"$f":"IF('1. Ordersheet'!BI420=\"\",\"\",'1. Ordersheet'!BI420)","v":""},{"$f":"IF('1. Ordersheet'!BJ420=\"\",\"\",'1. Ordersheet'!BJ420)","v":""},{"$f":"IF('1. Ordersheet'!BK420=\"\",\"\",'1. Ordersheet'!BK420)","v":""},{"$f":"IF('1. Ordersheet'!BL420=\"\",\"\",'1. Ordersheet'!BL420)","v":""}]
[{"$f":"IF('1. Ordersheet'!F421=\"\",\"\",'1. Ordersheet'!F421)","v":""},{"$f":"IF('1. Ordersheet'!G421=\"\",\"\",'1. Ordersheet'!G421)","v":""},{"$f":"IF('1. Ordersheet'!H421=\"\",\"\",'1. Ordersheet'!H421)","v":""},{"$f":"IF('1. Ordersheet'!I421=\"\",\"\",'1. Ordersheet'!I421)","v":""},{"$f":"IF('1. Ordersheet'!J421=\"\",\"\",'1. Ordersheet'!J421)","v":""},{"$f":"IF('1. Ordersheet'!K421=\"\",\"\",'1. Ordersheet'!K421)","v":""},{"$f":"IF('1. Ordersheet'!L421=\"\",\"\",'1. Ordersheet'!L421)","v":""},{"$f":"IF('1. Ordersheet'!M421=\"\",\"\",'1. Ordersheet'!M421)","v":""},{"$f":"IF('1. Ordersheet'!N421=\"\",\"\",'1. Ordersheet'!N421)","v":""},{"$f":"IF('1. Ordersheet'!O421=\"\",\"\",'1. Ordersheet'!O421)","v":{"$error":"#N/A"}},{"$f":"IF('1. Ordersheet'!P421=\"\",\"\",'1. Ordersheet'!P421)","v":{"$error":"#N/A"}},{"$f":"IF('1. Ordersheet'!Q421=\"\",\"\",'1. Ordersheet'!Q421)","v":""},{"$f":"IF('1. Ordersheet'!R421=\"\",\"\",'1. Ordersheet'!R421)","v":""},{"$f":"IF('1. Ordersheet'!S421=\"\",\"\",'1. Ordersheet'!S421)","v":""},{"$f":"IF('1. Ordersheet'!V421=\"\",\"\",'1. Ordersheet'!V421)","v":""},{"$f":"IF('1. Ordersheet'!W421=\"\",\"\",'1. Ordersheet'!W421)","v":""},{"$f":"IF('1. Ordersheet'!X421=\"\",\"\",'1. Ordersheet'!X421)","v":""},{"$f":"IF('1. Ordersheet'!Y421=\"\",\"\",'1. Ordersheet'!Y421)","v":""},{"$f":"IF('1. Ordersheet'!Z421=\"\",\"\",'1. Ordersheet'!Z421)","v":""},{"$f":"IF('1. Ordersheet'!AA421=\"\",\"\",'1. Ordersheet'!AA421)","v":""},null,{"$f":"IF('1. Ordersheet'!AS421=\"\",\"\",'1. Ordersheet'!AS421)","v":""},{"$f":"IF('1. Ordersheet'!AT421=\"\",\"\",'1. Ordersheet'!AT421)","v":""},null,null,null,null,null,null,null,{"$f":"IF('1. Ordersheet'!AX421=\"\",\"\",'1. Ordersheet'!AX421)","v":""},{"$f":"IF('1. Ordersheet'!AY421=\"\",\"\",'1. Ordersheet'!AY421)","v":""},{"$f":"IF('1. Ordersheet'!AZ421=\"\",\"\",'1. Ordersheet'!AZ421)","v":""},{"$f":"IF('1. Ordersheet'!BA421=\"\",\"\",'1. Ordersheet'!BA421)","v":""},{"$f":"IF('1. Ordersheet'!BC421=\"\",\"\",'1. Ordersheet'!BC421)","v":""},{"$f":"IF('1. Ordersheet'!BD421=\"\",\"\",'1. Ordersheet'!BD421)","v":""},{"$f":"IF('1. Ordersheet'!BE421=\"\",\"\",'1. Ordersheet'!BE421)","v":""},{"$f":"IF('1. Ordersheet'!BF421=\"\",\"\",'1. Ordersheet'!BF421)","v":""},{"$f":"IF('1. Ordersheet'!BG421=\"\",\"\",'1. Ordersheet'!BG421)","v":"ZWO"},{"$f":"IF('1. Ordersheet'!BH421=\"\",\"\",'1. Ordersheet'!BH421)","v":""},{"$f":"IF('1. Ordersheet'!BI421=\"\",\"\",'1. Ordersheet'!BI421)","v":""},{"$f":"IF('1. Ordersheet'!BJ421=\"\",\"\",'1. Ordersheet'!BJ421)","v":""},{"$f":"IF('1. Ordersheet'!BK421=\"\",\"\",'1. Ordersheet'!BK421)","v":""},{"$f":"IF('1. Ordersheet'!BL421=\"\",\"\",'1. Ordersheet'!BL421)","v":""}]
[{"$f":"IF('1. Ordersheet'!F422=\"\",\"\",'1. Ordersheet'!F422)","v":""},{"$f":"IF('1. Ordersheet'!G422=\"\",\"\",'1. Ordersheet'!G422)","v":""},{"$f":"IF('1. Ordersheet'!H422=\"\",\"\",'1. Ordersheet'!H422)","v":""},{"$f":"IF('1. Ordersheet'!I422=\"\",\"\",'1. Ordersheet'!I422)","v":""},{"$f":"IF('1. Ordersheet'!J422=\"\",\"\",'1. Ordersheet'!J422)","v":""},{"$f":"IF('1. Ordersheet'!K422=\"\",\"\",'1. Ordersheet'!K422)","v":""},{"$f":"IF('1. Ordersheet'!L422=\"\",\"\",'1. Ordersheet'!L422)","v":""},{"$f":"IF('1. Ordersheet'!M422=\"\",\"\",'1. Ordersheet'!M422)","v":""},{"$f":"IF('1. Ordersheet'!N422=\"\",\"\",'1. Ordersheet'!N422)","v":""},{"$f":"IF('1. Ordersheet'!O422=\"\",\"\",'1. Ordersheet'!O422)","v":{"$error":"#N/A"}},{"$f":"IF('1. Ordersheet'!P422=\"\",\"\",'1. Ordersheet'!P422)","v":{"$error":"#N/A"}},{"$f":"IF('1. Ordersheet'!Q422=\"\",\"\",'1. Ordersheet'!Q422)","v":""},{"$f":"IF('1. Ordersheet'!R422=\"\",\"\",'1. Ordersheet'!R422)","v":""},{"$f":"IF('1. Ordersheet'!S422=\"\",\"\",'1. Ordersheet'!S422)","v":""},{"$f":"IF('1. Ordersheet'!V422=\"\",\"\",'1. Ordersheet'!V422)","v":""},{"$f":"IF('1. Ordersheet'!W422=\"\",\"\",'1. Ordersheet'!W422)","v":""},{"$f":"IF('1. Ordersheet'!X422=\"\",\"\",'1. Ordersheet'!X422)","v":""},{"$f":"IF('1. Ordersheet'!Y422=\"\",\"\",'1. Ordersheet'!Y422)","v":""},{"$f":"IF('1. Ordersheet'!Z422=\"\",\"\",'1. Ordersheet'!Z422)","v":""},{"$f":"IF('1. Ordersheet'!AA422=\"\",\"\",'1. Ordersheet'!AA422)","v":""},null,{"$f":"IF('1. Ordersheet'!AS422=\"\",\"\",'1. Ordersheet'!AS422)","v":""},{"$f":"IF('1. Ordersheet'!AT422=\"\",\"\",'1. Ordersheet'!AT422)","v":""},null,null,null,null,null,null,null,{"$f":"IF('1. Ordersheet'!AX422=\"\",\"\",'1. Ordersheet'!AX422)","v":""},{"$f":"IF('1. Ordersheet'!AY422=\"\",\"\",'1. Ordersheet'!AY422)","v":""},{"$f":"IF('1. Ordersheet'!AZ422=\"\",\"\",'1. Ordersheet'!AZ422)","v":""},{"$f":"IF('1. Ordersheet'!BA422=\"\",\"\",'1. Ordersheet'!BA422)","v":""},{"$f":"IF('1. Ordersheet'!BC422=\"\",\"\",'1. Ordersheet'!BC422)","v":""},{"$f":"IF('1. Ordersheet'!BD422=\"\",\"\",'1. Ordersheet'!BD422)","v":""},{"$f":"IF('1. Ordersheet'!BE422=\"\",\"\",'1. Ordersheet'!BE422)","v":""},{"$f":"IF('1. Ordersheet'!BF422=\"\",\"\",'1. Ordersheet'!BF422)","v":""},{"$f":"IF('1. Ordersheet'!BG422=\"\",\"\",'1. Ordersheet'!BG422)","v":"ZWO"},{"$f":"IF('1. Ordersheet'!BH422=\"\",\"\",'1. Ordersheet'!BH422)","v":""},{"$f":"IF('1. Ordersheet'!BI422=\"\",\"\",'1. Ordersheet'!BI422)","v":""},{"$f":"IF('1. Ordersheet'!BJ422=\"\",\"\",'1. Ordersheet'!BJ422)","v":""},{"$f":"IF('1. Ordersheet'!BK422=\"\",\"\",'1. Ordersheet'!BK422)","v":""},{"$f":"IF('1. Ordersheet'!BL422=\"\",\"\",'1. Ordersheet'!BL422)","v":""}]
[{"$f":"IF('1. Ordersheet'!F423=\"\",\"\",'1. Ordersheet'!F423)","v":""},{"$f":"IF('1. Ordersheet'!G423=\"\",\"\",'1. Ordersheet'!G423)","v":""},{"$f":"IF('1. Ordersheet'!H423=\"\",\"\",'1. Ordersheet'!H423)","v":""},{"$f":"IF('1. Ordersheet'!I423=\"\",\"\",'1. Ordersheet'!I423)","v":""},{"$f":"IF('1. Ordersheet'!J423=\"\",\"\",'1. Ordersheet'!J423)","v":""},{"$f":"IF('1. Ordersheet'!K423=\"\",\"\",'1. Ordersheet'!K423)","v":""},{"$f":"IF('1. Ordersheet'!L423=\"\",\"\",'1. Ordersheet'!L423)","v":""},{"$f":"IF('1. Ordersheet'!M423=\"\",\"\",'1. Ordersheet'!M423)","v":""},{"$f":"IF('1. Ordersheet'!N423=\"\",\"\",'1. Ordersheet'!N423)","v":""},{"$f":"IF('1. Ordersheet'!O423=\"\",\"\",'1. Ordersheet'!O423)","v":{"$error":"#N/A"}},{"$f":"IF('1. Ordersheet'!P423=\"\",\"\",'1. Ordersheet'!P423)","v":{"$error":"#N/A"}},{"$f":"IF('1. Ordersheet'!Q423=\"\",\"\",'1. Ordersheet'!Q423)","v":""},{"$f":"IF('1. Ordersheet'!R423=\"\",\"\",'1. Ordersheet'!R423)","v":""},{"$f":"IF('1. Ordersheet'!S423=\"\",\"\",'1. Ordersheet'!S423)","v":""},{"$f":"IF('1. Ordersheet'!V423=\"\",\"\",'1. Ordersheet'!V423)","v":""},{"$f":"IF('1. Ordersheet'!W423=\"\",\"\",'1. Ordersheet'!W423)","v":""},{"$f":"IF('1. Ordersheet'!X423=\"\",\"\",'1. Ordersheet'!X423)","v":""},{"$f":"IF('1. Ordersheet'!Y423=\"\",\"\",'1. Ordersheet'!Y423)","v":""},{"$f":"IF('1. Ordersheet'!Z423=\"\",\"\",'1. Ordersheet'!Z423)","v":""},{"$f":"IF('1. Ordersheet'!AA423=\"\",\"\",'1. Ordersheet'!AA423)","v":""},null,{"$f":"IF('1. Ordersheet'!AS423=\"\",\"\",'1. Ordersheet'!AS423)","v":""},{"$f":"IF('1. Ordersheet'!AT423=\"\",\"\",'1. Ordersheet'!AT423)","v":""},null,null,null,null,null,null,null,{"$f":"IF('1. Ordersheet'!AX423=\"\",\"\",'1. Ordersheet'!AX423)","v":""},{"$f":"IF('1. Ordersheet'!AY423=\"\",\"\",'1. Ordersheet'!AY423)","v":""},{"$f":"IF('1. Ordersheet'!AZ423=\"\",\"\",'1. Ordersheet'!AZ423)","v":""},{"$f":"IF('1. Ordersheet'!BA423=\"\",\"\",'1. Ordersheet'!BA423)","v":""},{"$f":"IF('1. Ordersheet'!BC423=\"\",\"\",'1. Ordersheet'!BC423)","v":""},{"$f":"IF('1. Ordersheet'!BD423=\"\",\"\",'1. Ordersheet'!BD423)","v":""},{"$f":"IF('1. Ordersheet'!BE423=\"\",\"\",'1. Ordersheet'!BE423)","v":""},{"$f":"IF('1. Ordersheet'!BF423=\"\",\"\",'1. Ordersheet'!BF423)","v":""},{"$f":"IF('1. Ordersheet'!BG423=\"\",\"\",'1. Ordersheet'!BG423)","v":"ZWO"},{"$f":"IF('1. Ordersheet'!BH423=\"\",\"\",'1. Ordersheet'!BH423)","v":""},{"$f":"IF('1. Ordersheet'!BI423=\"\",\"\",'1. Ordersheet'!BI423)","v":""},{"$f":"IF('1. Ordersheet'!BJ423=\"\",\"\",'1. Ordersheet'!BJ423)","v":""},{"$f":"IF('1. Ordersheet'!BK423=\"\",\"\",'1. Ordersheet'!BK423)","v":""},{"$f":"IF('1. Ordersheet'!BL423=\"\",\"\",'1. Ordersheet'!BL423)","v":""}]
[{"$f":"IF('1. Ordersheet'!F424=\"\",\"\",'1. Ordersheet'!F424)","v":""},{"$f":"IF('1. Ordersheet'!G424=\"\",\"\",'1. Ordersheet'!G424)","v":""},{"$f":"IF('1. Ordersheet'!H424=\"\",\"\",'1. Ordersheet'!H424)","v":""},{"$f":"IF('1. Ordersheet'!I424=\"\",\"\",'1. Ordersheet'!I424)","v":""},{"$f":"IF('1. Ordersheet'!J424=\"\",\"\",'1. Ordersheet'!J424)","v":""},{"$f":"IF('1. Ordersheet'!K424=\"\",\"\",'1. Ordersheet'!K424)","v":""},{"$f":"IF('1. Ordersheet'!L424=\"\",\"\",'1. Ordersheet'!L424)","v":""},{"$f":"IF('1. Ordersheet'!M424=\"\",\"\",'1. Ordersheet'!M424)","v":""},{"$f":"IF('1. Ordersheet'!N424=\"\",\"\",'1. Ordersheet'!N424)","v":""},{"$f":"IF('1. Ordersheet'!O424=\"\",\"\",'1. Ordersheet'!O424)","v":{"$error":"#N/A"}},{"$f":"IF('1. Ordersheet'!P424=\"\",\"\",'1. Ordersheet'!P424)","v":{"$error":"#N/A"}},{"$f":"IF('1. Ordersheet'!Q424=\"\",\"\",'1. Ordersheet'!Q424)","v":""},{"$f":"IF('1. Ordersheet'!R424=\"\",\"\",'1. Ordersheet'!R424)","v":""},{"$f":"IF('1. Ordersheet'!S424=\"\",\"\",'1. Ordersheet'!S424)","v":""},{"$f":"IF('1. Ordersheet'!V424=\"\",\"\",'1. Ordersheet'!V424)","v":""},{"$f":"IF('1. Ordersheet'!W424=\"\",\"\",'1. Ordersheet'!W424)","v":""},{"$f":"IF('1. Ordersheet'!X424=\"\",\"\",'1. Ordersheet'!X424)","v":""},{"$f":"IF('1. Ordersheet'!Y424=\"\",\"\",'1. Ordersheet'!Y424)","v":""},{"$f":"IF('1. Ordersheet'!Z424=\"\",\"\",'1. Ordersheet'!Z424)","v":""},{"$f":"IF('1. Ordersheet'!AA424=\"\",\"\",'1. Ordersheet'!AA424)","v":""},null,{"$f":"IF('1. Ordersheet'!AS424=\"\",\"\",'1. Ordersheet'!AS424)","v":""},{"$f":"IF('1. Ordersheet'!AT424=\"\",\"\",'1. Ordersheet'!AT424)","v":""},null,null,null,null,null,null,null,{"$f":"IF('1. Ordersheet'!AX424=\"\",\"\",'1. Ordersheet'!AX424)","v":""},{"$f":"IF('1. Ordersheet'!AY424=\"\",\"\",'1. Ordersheet'!AY424)","v":""},{"$f":"IF('1. Ordersheet'!AZ424=\"\",\"\",'1. Ordersheet'!AZ424)","v":""},{"$f":"IF('1. Ordersheet'!BA424=\"\",\"\",'1. Ordersheet'!BA424)","v":""},{"$f":"IF('1. Ordersheet'!BC424=\"\",\"\",'1. Ordersheet'!BC424)","v":""},{"$f":"IF('1. Ordersheet'!BD424=\"\",\"\",'1. Ordersheet'!BD424)","v":""},{"$f":"IF('1. Ordersheet'!BE424=\"\",\"\",'1. Ordersheet'!BE424)","v":""},{"$f":"IF('1. Ordersheet'!BF424=\"\",\"\",'1. Ordersheet'!BF424)","v":""},{"$f":"IF('1. Ordersheet'!BG424=\"\",\"\",'1. Ordersheet'!BG424)","v":"ZWO"},{"$f":"IF('1. Ordersheet'!BH424=\"\",\"\",'1. Ordersheet'!BH424)","v":""},{"$f":"IF('1. Ordersheet'!BI424=\"\",\"\",'1. Ordersheet'!BI424)","v":""},{"$f":"IF('1. Ordersheet'!BJ424=\"\",\"\",'1. Ordersheet'!BJ424)","v":""},{"$f":"IF('1. Ordersheet'!BK424=\"\",\"\",'1. Ordersheet'!BK424)","v":""},{"$f":"IF('1. Ordersheet'!BL424=\"\",\"\",'1. Ordersheet'!BL424)","v":""}]
[{"$f":"IF('1. Ordersheet'!F425=\"\",\"\",'1. Ordersheet'!F425)","v":""},{"$f":"IF('1. Ordersheet'!G425=\"\",\"\",'1. Ordersheet'!G425)","v":""},{"$f":"IF('1. Ordersheet'!H425=\"\",\"\",'1. Ordersheet'!H425)","v":""},{"$f":"IF('1. Ordersheet'!I425=\"\",\"\",'1. Ordersheet'!I425)","v":""},{"$f":"IF('1. Ordersheet'!J425=\"\",\"\",'1. Ordersheet'!J425)","v":""},{"$f":"IF('1. Ordersheet'!K425=\"\",\"\",'1. Ordersheet'!K425)","v":""},{"$f":"IF('1. Ordersheet'!L425=\"\",\"\",'1. Ordersheet'!L425)","v":""},{"$f":"IF('1. Ordersheet'!M425=\"\",\"\",'1. Ordersheet'!M425)","v":""},{"$f":"IF('1. Ordersheet'!N425=\"\",\"\",'1. Ordersheet'!N425)","v":""},{"$f":"IF('1. Ordersheet'!O425=\"\",\"\",'1. Ordersheet'!O425)","v":{"$error":"#N/A"}},{"$f":"IF('1. Ordersheet'!P425=\"\",\"\",'1. Ordersheet'!P425)","v":{"$error":"#N/A"}},{"$f":"IF('1. Ordersheet'!Q425=\"\",\"\",'1. Ordersheet'!Q425)","v":""},{"$f":"IF('1. Ordersheet'!R425=\"\",\"\",'1. Ordersheet'!R425)","v":""},{"$f":"IF('1. Ordersheet'!S425=\"\",\"\",'1. Ordersheet'!S425)","v":""},{"$f":"IF('1. Ordersheet'!V425=\"\",\"\",'1. Ordersheet'!V425)","v":""},{"$f":"IF('1. Ordersheet'!W425=\"\",\"\",'1. Ordersheet'!W425)","v":""},{"$f":"IF('1. Ordersheet'!X425=\"\",\"\",'1. Ordersheet'!X425)","v":""},{"$f":"IF('1. Ordersheet'!Y425=\"\",\"\",'1. Ordersheet'!Y425)","v":""},{"$f":"IF('1. Ordersheet'!Z425=\"\",\"\",'1. Ordersheet'!Z425)","v":""},{"$f":"IF('1. Ordersheet'!AA425=\"\",\"\",'1. Ordersheet'!AA425)","v":""},null,{"$f":"IF('1. Ordersheet'!AS425=\"\",\"\",'1. Ordersheet'!AS425)","v":""},{"$f":"IF('1. Ordersheet'!AT425=\"\",\"\",'1. Ordersheet'!AT425)","v":""},null,null,null,null,null,null,null,{"$f":"IF('1. Ordersheet'!AX425=\"\",\"\",'1. Ordersheet'!AX425)","v":""},{"$f":"IF('1. Ordersheet'!AY425=\"\",\"\",'1. Ordersheet'!AY425)","v":""},{"$f":"IF('1. Ordersheet'!AZ425=\"\",\"\",'1. Ordersheet'!AZ425)","v":""},{"$f":"IF('1. Ordersheet'!BA425=\"\",\"\",'1. Ordersheet'!BA425)","v":""},{"$f":"IF('1. Ordersheet'!BC425=\"\",\"\",'1. Ordersheet'!BC425)","v":""},{"$f":"IF('1. Ordersheet'!BD425=\"\",\"\",'1. Ordersheet'!BD425)","v":""},{"$f":"IF('1. Ordersheet'!BE425=\"\",\"\",'1. Ordersheet'!BE425)","v":""},{"$f":"IF('1. Ordersheet'!BF425=\"\",\"\",'1. Ordersheet'!BF425)","v":""},{"$f":"IF('1. Ordersheet'!BG425=\"\",\"\",'1. Ordersheet'!BG425)","v":"ZWO"},{"$f":"IF('1. Ordersheet'!BH425=\"\",\"\",'1. Ordersheet'!BH425)","v":""},{"$f":"IF('1. Ordersheet'!BI425=\"\",\"\",'1. Ordersheet'!BI425)","v":""},{"$f":"IF('1. Ordersheet'!BJ425=\"\",\"\",'1. Ordersheet'!BJ425)","v":""},{"$f":"IF('1. Ordersheet'!BK425=\"\",\"\",'1. Ordersheet'!BK425)","v":""},{"$f":"IF('1. Ordersheet'!BL425=\"\",\"\",'1. Ordersheet'!BL425)","v":""}]
[{"$f":"IF('1. Ordersheet'!F426=\"\",\"\",'1. Ordersheet'!F426)","v":""},{"$f":"IF('1. Ordersheet'!G426=\"\",\"\",'1. Ordersheet'!G426)","v":""},{"$f":"IF('1. Ordersheet'!H426=\"\",\"\",'1. Ordersheet'!H426)","v":""},{"$f":"IF('1. Ordersheet'!I426=\"\",\"\",'1. Ordersheet'!I426)","v":""},{"$f":"IF('1. Ordersheet'!J426=\"\",\"\",'1. Ordersheet'!J426)","v":""},{"$f":"IF('1. Ordersheet'!K426=\"\",\"\",'1. Ordersheet'!K426)","v":""},{"$f":"IF('1. Ordersheet'!L426=\"\",\"\",'1. Ordersheet'!L426)","v":""},{"$f":"IF('1. Ordersheet'!M426=\"\",\"\",'1. Ordersheet'!M426)","v":""},{"$f":"IF('1. Ordersheet'!N426=\"\",\"\",'1. Ordersheet'!N426)","v":""},{"$f":"IF('1. Ordersheet'!O426=\"\",\"\",'1. Ordersheet'!O426)","v":{"$error":"#N/A"}},{"$f":"IF('1. Ordersheet'!P426=\"\",\"\",'1. Ordersheet'!P426)","v":{"$error":"#N/A"}},{"$f":"IF('1. Ordersheet'!Q426=\"\",\"\",'1. Ordersheet'!Q426)","v":""},{"$f":"IF('1. Ordersheet'!R426=\"\",\"\",'1. Ordersheet'!R426)","v":""},{"$f":"IF('1. Ordersheet'!S426=\"\",\"\",'1. Ordersheet'!S426)","v":""},{"$f":"IF('1. Ordersheet'!V426=\"\",\"\",'1. Ordersheet'!V426)","v":""},{"$f":"IF('1. Ordersheet'!W426=\"\",\"\",'1. Ordersheet'!W426)","v":""},{"$f":"IF('1. Ordersheet'!X426=\"\",\"\",'1. Ordersheet'!X426)","v":""},{"$f":"IF('1. Ordersheet'!Y426=\"\",\"\",'1. Ordersheet'!Y426)","v":""},{"$f":"IF('1. Ordersheet'!Z426=\"\",\"\",'1. Ordersheet'!Z426)","v":""},{"$f":"IF('1. Ordersheet'!AA426=\"\",\"\",'1. Ordersheet'!AA426)","v":""},null,{"$f":"IF('1. Ordersheet'!AS426=\"\",\"\",'1. Ordersheet'!AS426)","v":""},{"$f":"IF('1. Ordersheet'!AT426=\"\",\"\",'1. Ordersheet'!AT426)","v":""},null,null,null,null,null,null,null,{"$f":"IF('1. Ordersheet'!AX426=\"\",\"\",'1. Ordersheet'!AX426)","v":""},{"$f":"IF('1. Ordersheet'!AY426=\"\",\"\",'1. Ordersheet'!AY426)","v":""},{"$f":"IF('1. Ordersheet'!AZ426=\"\",\"\",'1. Ordersheet'!AZ426)","v":""},{"$f":"IF('1. Ordersheet'!BA426=\"\",\"\",'1. Ordersheet'!BA426)","v":""},{"$f":"IF('1. Ordersheet'!BC426=\"\",\"\",'1. Ordersheet'!BC426)","v":""},{"$f":"IF('1. Ordersheet'!BD426=\"\",\"\",'1. Ordersheet'!BD426)","v":""},{"$f":"IF('1. Ordersheet'!BE426=\"\",\"\",'1. Ordersheet'!BE426)","v":""},{"$f":"IF('1. Ordersheet'!BF426=\"\",\"\",'1. Ordersheet'!BF426)","v":""},{"$f":"IF('1. Ordersheet'!BG426=\"\",\"\",'1. Ordersheet'!BG426)","v":"ZWO"},{"$f":"IF('1. Ordersheet'!BH426=\"\",\"\",'1. Ordersheet'!BH426)","v":""},{"$f":"IF('1. Ordersheet'!BI426=\"\",\"\",'1. Ordersheet'!BI426)","v":""},{"$f":"IF('1. Ordersheet'!BJ426=\"\",\"\",'1. Ordersheet'!BJ426)","v":""},{"$f":"IF('1. Ordersheet'!BK426=\"\",\"\",'1. Ordersheet'!BK426)","v":""},{"$f":"IF('1. Ordersheet'!BL426=\"\",\"\",'1. Ordersheet'!BL426)","v":""}]
[{"$f":"IF('1. Ordersheet'!F427=\"\",\"\",'1. Ordersheet'!F427)","v":""},{"$f":"IF('1. Ordersheet'!G427=\"\",\"\",'1. Ordersheet'!G427)","v":""},{"$f":"IF('1. Ordersheet'!H427=\"\",\"\",'1. Ordersheet'!H427)","v":""},{"$f":"IF('1. Ordersheet'!I427=\"\",\"\",'1. Ordersheet'!I427)","v":""},{"$f":"IF('1. Ordersheet'!J427=\"\",\"\",'1. Ordersheet'!J427)","v":""},{"$f":"IF('1. Ordersheet'!K427=\"\",\"\",'1. Ordersheet'!K427)","v":""},{"$f":"IF('1. Ordersheet'!L427=\"\",\"\",'1. Ordersheet'!L427)","v":""},{"$f":"IF('1. Ordersheet'!M427=\"\",\"\",'1. Ordersheet'!M427)","v":""},{"$f":"IF('1. Ordersheet'!N427=\"\",\"\",'1. Ordersheet'!N427)","v":""},{"$f":"IF('1. Ordersheet'!O427=\"\",\"\",'1. Ordersheet'!O427)","v":{"$error":"#N/A"}},{"$f":"IF('1. Ordersheet'!P427=\"\",\"\",'1. Ordersheet'!P427)","v":{"$error":"#N/A"}},{"$f":"IF('1. Ordersheet'!Q427=\"\",\"\",'1. Ordersheet'!Q427)","v":""},{"$f":"IF('1. Ordersheet'!R427=\"\",\"\",'1. Ordersheet'!R427)","v":""},{"$f":"IF('1. Ordersheet'!S427=\"\",\"\",'1. Ordersheet'!S427)","v":""},{"$f":"IF('1. Ordersheet'!V427=\"\",\"\",'1. Ordersheet'!V427)","v":""},{"$f":"IF('1. Ordersheet'!W427=\"\",\"\",'1. Ordersheet'!W427)","v":""},{"$f":"IF('1. Ordersheet'!X427=\"\",\"\",'1. Ordersheet'!X427)","v":""},{"$f":"IF('1. Ordersheet'!Y427=\"\",\"\",'1. Ordersheet'!Y427)","v":""},{"$f":"IF('1. Ordersheet'!Z427=\"\",\"\",'1. Ordersheet'!Z427)","v":""},{"$f":"IF('1. Ordersheet'!AA427=\"\",\"\",'1. Ordersheet'!AA427)","v":""},null,{"$f":"IF('1. Ordersheet'!AS427=\"\",\"\",'1. Ordersheet'!AS427)","v":""},{"$f":"IF('1. Ordersheet'!AT427=\"\",\"\",'1. Ordersheet'!AT427)","v":""},null,null,null,null,null,null,null,{"$f":"IF('1. Ordersheet'!AX427=\"\",\"\",'1. Ordersheet'!AX427)","v":""},{"$f":"IF('1. Ordersheet'!AY427=\"\",\"\",'1. Ordersheet'!AY427)","v":""},{"$f":"IF('1. Ordersheet'!AZ427=\"\",\"\",'1. Ordersheet'!AZ427)","v":""},{"$f":"IF('1. Ordersheet'!BA427=\"\",\"\",'1. Ordersheet'!BA427)","v":""},{"$f":"IF('1. Ordersheet'!BC427=\"\",\"\",'1. Ordersheet'!BC427)","v":""},{"$f":"IF('1. Ordersheet'!BD427=\"\",\"\",'1. Ordersheet'!BD427)","v":""},{"$f":"IF('1. Ordersheet'!BE427=\"\",\"\",'1. Ordersheet'!BE427)","v":""},{"$f":"IF('1. Ordersheet'!BF427=\"\",\"\",'1. Ordersheet'!BF427)","v":""},{"$f":"IF('1. Ordersheet'!BG427=\"\",\"\",'1. Ordersheet'!BG427)","v":"ZWO"},{"$f":"IF('1. Ordersheet'!BH427=\"\",\"\",'1. Ordersheet'!BH427)","v":""},{"$f":"IF('1. Ordersheet'!BI427=\"\",\"\",'1. Ordersheet'!BI427)","v":""},{"$f":"IF('1. Ordersheet'!BJ427=\"\",\"\",'1. Ordersheet'!BJ427)","v":""},{"$f":"IF('1. Ordersheet'!BK427=\"\",\"\",'1. Ordersheet'!BK427)","v":""},{"$f":"IF('1. Ordersheet'!BL427=\"\",\"\",'1. Ordersheet'!BL427)","v":""}]
[{"$f":"IF('1. Ordersheet'!F428=\"\",\"\",'1. Ordersheet'!F428)","v":""},{"$f":"IF('1. Ordersheet'!G428=\"\",\"\",'1. Ordersheet'!G428)","v":""},{"$f":"IF('1. Ordersheet'!H428=\"\",\"\",'1. Ordersheet'!H428)","v":""},{"$f":"IF('1. Ordersheet'!I428=\"\",\"\",'1. Ordersheet'!I428)","v":""},{"$f":"IF('1. Ordersheet'!J428=\"\",\"\",'1. Ordersheet'!J428)","v":""},{"$f":"IF('1. Ordersheet'!K428=\"\",\"\",'1. Ordersheet'!K428)","v":""},{"$f":"IF('1. Ordersheet'!L428=\"\",\"\",'1. Ordersheet'!L428)","v":""},{"$f":"IF('1. Ordersheet'!M428=\"\",\"\",'1. Ordersheet'!M428)","v":""},{"$f":"IF('1. Ordersheet'!N428=\"\",\"\",'1. Ordersheet'!N428)","v":""},{"$f":"IF('1. Ordersheet'!O428=\"\",\"\",'1. Ordersheet'!O428)","v":{"$error":"#N/A"}},{"$f":"IF('1. Ordersheet'!P428=\"\",\"\",'1. Ordersheet'!P428)","v":{"$error":"#N/A"}},{"$f":"IF('1. Ordersheet'!Q428=\"\",\"\",'1. Ordersheet'!Q428)","v":""},{"$f":"IF('1. Ordersheet'!R428=\"\",\"\",'1. Ordersheet'!R428)","v":""},{"$f":"IF('1. Ordersheet'!S428=\"\",\"\",'1. Ordersheet'!S428)","v":""},{"$f":"IF('1. Ordersheet'!V428=\"\",\"\",'1. Ordersheet'!V428)","v":""},{"$f":"IF('1. Ordersheet'!W428=\"\",\"\",'1. Ordersheet'!W428)","v":""},{"$f":"IF('1. Ordersheet'!X428=\"\",\"\",'1. Ordersheet'!X428)","v":""},{"$f":"IF('1. Ordersheet'!Y428=\"\",\"\",'1. Ordersheet'!Y428)","v":""},{"$f":"IF('1. Ordersheet'!Z428=\"\",\"\",'1. Ordersheet'!Z428)","v":""},{"$f":"IF('1. Ordersheet'!AA428=\"\",\"\",'1. Ordersheet'!AA428)","v":""},null,{"$f":"IF('1. Ordersheet'!AS428=\"\",\"\",'1. Ordersheet'!AS428)","v":""},{"$f":"IF('1. Ordersheet'!AT428=\"\",\"\",'1. Ordersheet'!AT428)","v":""},null,null,null,null,null,null,null,{"$f":"IF('1. Ordersheet'!AX428=\"\",\"\",'1. Ordersheet'!AX428)","v":""},{"$f":"IF('1. Ordersheet'!AY428=\"\",\"\",'1. Ordersheet'!AY428)","v":""},{"$f":"IF('1. Ordersheet'!AZ428=\"\",\"\",'1. Ordersheet'!AZ428)","v":""},{"$f":"IF('1. Ordersheet'!BA428=\"\",\"\",'1. Ordersheet'!BA428)","v":""},{"$f":"IF('1. Ordersheet'!BC428=\"\",\"\",'1. Ordersheet'!BC428)","v":""},{"$f":"IF('1. Ordersheet'!BD428=\"\",\"\",'1. Ordersheet'!BD428)","v":""},{"$f":"IF('1. Ordersheet'!BE428=\"\",\"\",'1. Ordersheet'!BE428)","v":""},{"$f":"IF('1. Ordersheet'!BF428=\"\",\"\",'1. Ordersheet'!BF428)","v":""},{"$f":"IF('1. Ordersheet'!BG428=\"\",\"\",'1. Ordersheet'!BG428)","v":"ZWO"},{"$f":"IF('1. Ordersheet'!BH428=\"\",\"\",'1. Ordersheet'!BH428)","v":""},{"$f":"IF('1. Ordersheet'!BI428=\"\",\"\",'1. Ordersheet'!BI428)","v":""},{"$f":"IF('1. Ordersheet'!BJ428=\"\",\"\",'1. Ordersheet'!BJ428)","v":""},{"$f":"IF('1. Ordersheet'!BK428=\"\",\"\",'1. Ordersheet'!BK428)","v":""},{"$f":"IF('1. Ordersheet'!BL428=\"\",\"\",'1. Ordersheet'!BL428)","v":""}]
[{"$f":"IF('1. Ordersheet'!F429=\"\",\"\",'1. Ordersheet'!F429)","v":""},{"$f":"IF('1. Ordersheet'!G429=\"\",\"\",'1. Ordersheet'!G429)","v":""},{"$f":"IF('1. Ordersheet'!H429=\"\",\"\",'1. Ordersheet'!H429)","v":""},{"$f":"IF('1. Ordersheet'!I429=\"\",\"\",'1. Ordersheet'!I429)","v":""},{"$f":"IF('1. Ordersheet'!J429=\"\",\"\",'1. Ordersheet'!J429)","v":""},{"$f":"IF('1. Ordersheet'!K429=\"\",\"\",'1. Ordersheet'!K429)","v":""},{"$f":"IF('1. Ordersheet'!L429=\"\",\"\",'1. Ordersheet'!L429)","v":""},{"$f":"IF('1. Ordersheet'!M429=\"\",\"\",'1. Ordersheet'!M429)","v":""},{"$f":"IF('1. Ordersheet'!N429=\"\",\"\",'1. Ordersheet'!N429)","v":""},{"$f":"IF('1. Ordersheet'!O429=\"\",\"\",'1. Ordersheet'!O429)","v":{"$error":"#N/A"}},{"$f":"IF('1. Ordersheet'!P429=\"\",\"\",'1. Ordersheet'!P429)","v":{"$error":"#N/A"}},{"$f":"IF('1. Ordersheet'!Q429=\"\",\"\",'1. Ordersheet'!Q429)","v":""},{"$f":"IF('1. Ordersheet'!R429=\"\",\"\",'1. Ordersheet'!R429)","v":""},{"$f":"IF('1. Ordersheet'!S429=\"\",\"\",'1. Ordersheet'!S429)","v":""},{"$f":"IF('1. Ordersheet'!V429=\"\",\"\",'1. Ordersheet'!V429)","v":""},{"$f":"IF('1. Ordersheet'!W429=\"\",\"\",'1. Ordersheet'!W429)","v":""},{"$f":"IF('1. Ordersheet'!X429=\"\",\"\",'1. Ordersheet'!X429)","v":""},{"$f":"IF('1. Ordersheet'!Y429=\"\",\"\",'1. Ordersheet'!Y429)","v":""},{"$f":"IF('1. Ordersheet'!Z429=\"\",\"\",'1. Ordersheet'!Z429)","v":""},{"$f":"IF('1. Ordersheet'!AA429=\"\",\"\",'1. Ordersheet'!AA429)","v":""},null,{"$f":"IF('1. Ordersheet'!AS429=\"\",\"\",'1. Ordersheet'!AS429)","v":""},{"$f":"IF('1. Ordersheet'!AT429=\"\",\"\",'1. Ordersheet'!AT429)","v":""},null,null,null,null,null,null,null,{"$f":"IF('1. Ordersheet'!AX429=\"\",\"\",'1. Ordersheet'!AX429)","v":""},{"$f":"IF('1. Ordersheet'!AY429=\"\",\"\",'1. Ordersheet'!AY429)","v":""},{"$f":"IF('1. Ordersheet'!AZ429=\"\",\"\",'1. Ordersheet'!AZ429)","v":""},{"$f":"IF('1. Ordersheet'!BA429=\"\",\"\",'1. Ordersheet'!BA429)","v":""},{"$f":"IF('1. Ordersheet'!BC429=\"\",\"\",'1. Ordersheet'!BC429)","v":""},{"$f":"IF('1. Ordersheet'!BD429=\"\",\"\",'1. Ordersheet'!BD429)","v":""},{"$f":"IF('1. Ordersheet'!BE429=\"\",\"\",'1. Ordersheet'!BE429)","v":""},{"$f":"IF('1. Ordersheet'!BF429=\"\",\"\",'1. Ordersheet'!BF429)","v":""},{"$f":"IF('1. Ordersheet'!BG429=\"\",\"\",'1. Ordersheet'!BG429)","v":"ZWO"},{"$f":"IF('1. Ordersheet'!BH429=\"\",\"\",'1. Ordersheet'!BH429)","v":""},{"$f":"IF('1. Ordersheet'!BI429=\"\",\"\",'1. Ordersheet'!BI429)","v":""},{"$f":"IF('1. Ordersheet'!BJ429=\"\",\"\",'1. Ordersheet'!BJ429)","v":""},{"$f":"IF('1. Ordersheet'!BK429=\"\",\"\",'1. Ordersheet'!BK429)","v":""},{"$f":"IF('1. Ordersheet'!BL429=\"\",\"\",'1. Ordersheet'!BL429)","v":""}]
[{"$f":"IF('1. Ordersheet'!F430=\"\",\"\",'1. Ordersheet'!F430)","v":""},{"$f":"IF('1. Ordersheet'!G430=\"\",\"\",'1. Ordersheet'!G430)","v":""},{"$f":"IF('1. Ordersheet'!H430=\"\",\"\",'1. Ordersheet'!H430)","v":""},{"$f":"IF('1. Ordersheet'!I430=\"\",\"\",'1. Ordersheet'!I430)","v":""},{"$f":"IF('1. Ordersheet'!J430=\"\",\"\",'1. Ordersheet'!J430)","v":""},{"$f":"IF('1. Ordersheet'!K430=\"\",\"\",'1. Ordersheet'!K430)","v":""},{"$f":"IF('1. Ordersheet'!L430=\"\",\"\",'1. Ordersheet'!L430)","v":""},{"$f":"IF('1. Ordersheet'!M430=\"\",\"\",'1. Ordersheet'!M430)","v":""},{"$f":"IF('1. Ordersheet'!N430=\"\",\"\",'1. Ordersheet'!N430)","v":""},{"$f":"IF('1. Ordersheet'!O430=\"\",\"\",'1. Ordersheet'!O430)","v":{"$error":"#N/A"}},{"$f":"IF('1. Ordersheet'!P430=\"\",\"\",'1. Ordersheet'!P430)","v":{"$error":"#N/A"}},{"$f":"IF('1. Ordersheet'!Q430=\"\",\"\",'1. Ordersheet'!Q430)","v":""},{"$f":"IF('1. Ordersheet'!R430=\"\",\"\",'1. Ordersheet'!R430)","v":""},{"$f":"IF('1. Ordersheet'!S430=\"\",\"\",'1. Ordersheet'!S430)","v":""},{"$f":"IF('1. Ordersheet'!V430=\"\",\"\",'1. Ordersheet'!V430)","v":""},{"$f":"IF('1. Ordersheet'!W430=\"\",\"\",'1. Ordersheet'!W430)","v":""},{"$f":"IF('1. Ordersheet'!X430=\"\",\"\",'1. Ordersheet'!X430)","v":""},{"$f":"IF('1. Ordersheet'!Y430=\"\",\"\",'1. Ordersheet'!Y430)","v":""},{"$f":"IF('1. Ordersheet'!Z430=\"\",\"\",'1. Ordersheet'!Z430)","v":""},{"$f":"IF('1. Ordersheet'!AA430=\"\",\"\",'1. Ordersheet'!AA430)","v":""},null,{"$f":"IF('1. Ordersheet'!AS430=\"\",\"\",'1. Ordersheet'!AS430)","v":""},{"$f":"IF('1. Ordersheet'!AT430=\"\",\"\",'1. Ordersheet'!AT430)","v":""},null,null,null,null,null,null,null,{"$f":"IF('1. Ordersheet'!AX430=\"\",\"\",'1. Ordersheet'!AX430)","v":""},{"$f":"IF('1. Ordersheet'!AY430=\"\",\"\",'1. Ordersheet'!AY430)","v":""},{"$f":"IF('1. Ordersheet'!AZ430=\"\",\"\",'1. Ordersheet'!AZ430)","v":""},{"$f":"IF('1. Ordersheet'!BA430=\"\",\"\",'1. Ordersheet'!BA430)","v":""},{"$f":"IF('1. Ordersheet'!BC430=\"\",\"\",'1. Ordersheet'!BC430)","v":""},{"$f":"IF('1. Ordersheet'!BD430=\"\",\"\",'1. Ordersheet'!BD430)","v":""},{"$f":"IF('1. Ordersheet'!BE430=\"\",\"\",'1. Ordersheet'!BE430)","v":""},{"$f":"IF('1. Ordersheet'!BF430=\"\",\"\",'1. Ordersheet'!BF430)","v":""},{"$f":"IF('1. Ordersheet'!BG430=\"\",\"\",'1. Ordersheet'!BG430)","v":"ZWO"},{"$f":"IF('1. Ordersheet'!BH430=\"\",\"\",'1. Ordersheet'!BH430)","v":""},{"$f":"IF('1. Ordersheet'!BI430=\"\",\"\",'1. Ordersheet'!BI430)","v":""},{"$f":"IF('1. Ordersheet'!BJ430=\"\",\"\",'1. Ordersheet'!BJ430)","v":""},{"$f":"IF('1. Ordersheet'!BK430=\"\",\"\",'1. Ordersheet'!BK430)","v":""},{"$f":"IF('1. Ordersheet'!BL430=\"\",\"\",'1. Ordersheet'!BL430)","v":""}]
[{"$f":"IF('1. Ordersheet'!F431=\"\",\"\",'1. Ordersheet'!F431)","v":""},{"$f":"IF('1. Ordersheet'!G431=\"\",\"\",'1. Ordersheet'!G431)","v":""},{"$f":"IF('1. Ordersheet'!H431=\"\",\"\",'1. Ordersheet'!H431)","v":""},{"$f":"IF('1. Ordersheet'!I431=\"\",\"\",'1. Ordersheet'!I431)","v":""},{"$f":"IF('1. Ordersheet'!J431=\"\",\"\",'1. Ordersheet'!J431)","v":""},{"$f":"IF('1. Ordersheet'!K431=\"\",\"\",'1. Ordersheet'!K431)","v":""},{"$f":"IF('1. Ordersheet'!L431=\"\",\"\",'1. Ordersheet'!L431)","v":""},{"$f":"IF('1. Ordersheet'!M431=\"\",\"\",'1. Ordersheet'!M431)","v":""},{"$f":"IF('1. Ordersheet'!N431=\"\",\"\",'1. Ordersheet'!N431)","v":""},{"$f":"IF('1. Ordersheet'!O431=\"\",\"\",'1. Ordersheet'!O431)","v":{"$error":"#N/A"}},{"$f":"IF('1. Ordersheet'!P431=\"\",\"\",'1. Ordersheet'!P431)","v":{"$error":"#N/A"}},{"$f":"IF('1. Ordersheet'!Q431=\"\",\"\",'1. Ordersheet'!Q431)","v":""},{"$f":"IF('1. Ordersheet'!R431=\"\",\"\",'1. Ordersheet'!R431)","v":""},{"$f":"IF('1. Ordersheet'!S431=\"\",\"\",'1. Ordersheet'!S431)","v":""},{"$f":"IF('1. Ordersheet'!V431=\"\",\"\",'1. Ordersheet'!V431)","v":""},{"$f":"IF('1. Ordersheet'!W431=\"\",\"\",'1. Ordersheet'!W431)","v":""},{"$f":"IF('1. Ordersheet'!X431=\"\",\"\",'1. Ordersheet'!X431)","v":""},{"$f":"IF('1. Ordersheet'!Y431=\"\",\"\",'1. Ordersheet'!Y431)","v":""},{"$f":"IF('1. Ordersheet'!Z431=\"\",\"\",'1. Ordersheet'!Z431)","v":""},{"$f":"IF('1. Ordersheet'!AA431=\"\",\"\",'1. Ordersheet'!AA431)","v":""},null,{"$f":"IF('1. Ordersheet'!AS431=\"\",\"\",'1. Ordersheet'!AS431)","v":""},{"$f":"IF('1. Ordersheet'!AT431=\"\",\"\",'1. Ordersheet'!AT431)","v":""},null,null,null,null,null,null,null,{"$f":"IF('1. Ordersheet'!AX431=\"\",\"\",'1. Ordersheet'!AX431)","v":""},{"$f":"IF('1. Ordersheet'!AY431=\"\",\"\",'1. Ordersheet'!AY431)","v":""},{"$f":"IF('1. Ordersheet'!AZ431=\"\",\"\",'1. Ordersheet'!AZ431)","v":""},{"$f":"IF('1. Ordersheet'!BA431=\"\",\"\",'1. Ordersheet'!BA431)","v":""},{"$f":"IF('1. Ordersheet'!BC431=\"\",\"\",'1. Ordersheet'!BC431)","v":""},{"$f":"IF('1. Ordersheet'!BD431=\"\",\"\",'1. Ordersheet'!BD431)","v":""},{"$f":"IF('1. Ordersheet'!BE431=\"\",\"\",'1. Ordersheet'!BE431)","v":""},{"$f":"IF('1. Ordersheet'!BF431=\"\",\"\",'1. Ordersheet'!BF431)","v":""},{"$f":"IF('1. Ordersheet'!BG431=\"\",\"\",'1. Ordersheet'!BG431)","v":"ZWO"},{"$f":"IF('1. Ordersheet'!BH431=\"\",\"\",'1. Ordersheet'!BH431)","v":""},{"$f":"IF('1. Ordersheet'!BI431=\"\",\"\",'1. Ordersheet'!BI431)","v":""},{"$f":"IF('1. Ordersheet'!BJ431=\"\",\"\",'1. Ordersheet'!BJ431)","v":""},{"$f":"IF('1. Ordersheet'!BK431=\"\",\"\",'1. Ordersheet'!BK431)","v":""},{"$f":"IF('1. Ordersheet'!BL431=\"\",\"\",'1. Ordersheet'!BL431)","v":""}]
[{"$f":"IF('1. Ordersheet'!F432=\"\",\"\",'1. Ordersheet'!F432)","v":""},{"$f":"IF('1. Ordersheet'!G432=\"\",\"\",'1. Ordersheet'!G432)","v":""},{"$f":"IF('1. Ordersheet'!H432=\"\",\"\",'1. Ordersheet'!H432)","v":""},{"$f":"IF('1. Ordersheet'!I432=\"\",\"\",'1. Ordersheet'!I432)","v":""},{"$f":"IF('1. Ordersheet'!J432=\"\",\"\",'1. Ordersheet'!J432)","v":""},{"$f":"IF('1. Ordersheet'!K432=\"\",\"\",'1. Ordersheet'!K432)","v":""},{"$f":"IF('1. Ordersheet'!L432=\"\",\"\",'1. Ordersheet'!L432)","v":""},{"$f":"IF('1. Ordersheet'!M432=\"\",\"\",'1. Ordersheet'!M432)","v":""},{"$f":"IF('1. Ordersheet'!N432=\"\",\"\",'1. Ordersheet'!N432)","v":""},{"$f":"IF('1. Ordersheet'!O432=\"\",\"\",'1. Ordersheet'!O432)","v":{"$error":"#N/A"}},{"$f":"IF('1. Ordersheet'!P432=\"\",\"\",'1. Ordersheet'!P432)","v":{"$error":"#N/A"}},{"$f":"IF('1. Ordersheet'!Q432=\"\",\"\",'1. Ordersheet'!Q432)","v":""},{"$f":"IF('1. Ordersheet'!R432=\"\",\"\",'1. Ordersheet'!R432)","v":""},{"$f":"IF('1. Ordersheet'!S432=\"\",\"\",'1. Ordersheet'!S432)","v":""},{"$f":"IF('1. Ordersheet'!V432=\"\",\"\",'1. Ordersheet'!V432)","v":""},{"$f":"IF('1. Ordersheet'!W432=\"\",\"\",'1. Ordersheet'!W432)","v":""},{"$f":"IF('1. Ordersheet'!X432=\"\",\"\",'1. Ordersheet'!X432)","v":""},{"$f":"IF('1. Ordersheet'!Y432=\"\",\"\",'1. Ordersheet'!Y432)","v":""},{"$f":"IF('1. Ordersheet'!Z432=\"\",\"\",'1. Ordersheet'!Z432)","v":""},{"$f":"IF('1. Ordersheet'!AA432=\"\",\"\",'1. Ordersheet'!AA432)","v":""},null,{"$f":"IF('1. Ordersheet'!AS432=\"\",\"\",'1. Ordersheet'!AS432)","v":""},{"$f":"IF('1. Ordersheet'!AT432=\"\",\"\",'1. Ordersheet'!AT432)","v":""},null,null,null,null,null,null,null,{"$f":"IF('1. Ordersheet'!AX432=\"\",\"\",'1. Ordersheet'!AX432)","v":""},{"$f":"IF('1. Ordersheet'!AY432=\"\",\"\",'1. Ordersheet'!AY432)","v":""},{"$f":"IF('1. Ordersheet'!AZ432=\"\",\"\",'1. Ordersheet'!AZ432)","v":""},{"$f":"IF('1. Ordersheet'!BA432=\"\",\"\",'1. Ordersheet'!BA432)","v":""},{"$f":"IF('1. Ordersheet'!BC432=\"\",\"\",'1. Ordersheet'!BC432)","v":""},{"$f":"IF('1. Ordersheet'!BD432=\"\",\"\",'1. Ordersheet'!BD432)","v":""},{"$f":"IF('1. Ordersheet'!BE432=\"\",\"\",'1. Ordersheet'!BE432)","v":""},{"$f":"IF('1. Ordersheet'!BF432=\"\",\"\",'1. Ordersheet'!BF432)","v":""},{"$f":"IF('1. Ordersheet'!BG432=\"\",\"\",'1. Ordersheet'!BG432)","v":"ZWO"},{"$f":"IF('1. Ordersheet'!BH432=\"\",\"\",'1. Ordersheet'!BH432)","v":""},{"$f":"IF('1. Ordersheet'!BI432=\"\",\"\",'1. Ordersheet'!BI432)","v":""},{"$f":"IF('1. Ordersheet'!BJ432=\"\",\"\",'1. Ordersheet'!BJ432)","v":""},{"$f":"IF('1. Ordersheet'!BK432=\"\",\"\",'1. Ordersheet'!BK432)","v":""},{"$f":"IF('1. Ordersheet'!BL432=\"\",\"\",'1. Ordersheet'!BL432)","v":""}]
[{"$f":"IF('1. Ordersheet'!F433=\"\",\"\",'1. Ordersheet'!F433)","v":""},{"$f":"IF('1. Ordersheet'!G433=\"\",\"\",'1. Ordersheet'!G433)","v":""},{"$f":"IF('1. Ordersheet'!H433=\"\",\"\",'1. Ordersheet'!H433)","v":""},{"$f":"IF('1. Ordersheet'!I433=\"\",\"\",'1. Ordersheet'!I433)","v":""},{"$f":"IF('1. Ordersheet'!J433=\"\",\"\",'1. Ordersheet'!J433)","v":""},{"$f":"IF('1. Ordersheet'!K433=\"\",\"\",'1. Ordersheet'!K433)","v":""},{"$f":"IF('1. Ordersheet'!L433=\"\",\"\",'1. Ordersheet'!L433)","v":""},{"$f":"IF('1. Ordersheet'!M433=\"\",\"\",'1. Ordersheet'!M433)","v":""},{"$f":"IF('1. Ordersheet'!N433=\"\",\"\",'1. Ordersheet'!N433)","v":""},{"$f":"IF('1. Ordersheet'!O433=\"\",\"\",'1. Ordersheet'!O433)","v":{"$error":"#N/A"}},{"$f":"IF('1. Ordersheet'!P433=\"\",\"\",'1. Ordersheet'!P433)","v":{"$error":"#N/A"}},{"$f":"IF('1. Ordersheet'!Q433=\"\",\"\",'1. Ordersheet'!Q433)","v":""},{"$f":"IF('1. Ordersheet'!R433=\"\",\"\",'1. Ordersheet'!R433)","v":""},{"$f":"IF('1. Ordersheet'!S433=\"\",\"\",'1. Ordersheet'!S433)","v":""},{"$f":"IF('1. Ordersheet'!V433=\"\",\"\",'1. Ordersheet'!V433)","v":""},{"$f":"IF('1. Ordersheet'!W433=\"\",\"\",'1. Ordersheet'!W433)","v":""},{"$f":"IF('1. Ordersheet'!X433=\"\",\"\",'1. Ordersheet'!X433)","v":""},{"$f":"IF('1. Ordersheet'!Y433=\"\",\"\",'1. Ordersheet'!Y433)","v":""},{"$f":"IF('1. Ordersheet'!Z433=\"\",\"\",'1. Ordersheet'!Z433)","v":""},{"$f":"IF('1. Ordersheet'!AA433=\"\",\"\",'1. Ordersheet'!AA433)","v":""},null,{"$f":"IF('1. Ordersheet'!AS433=\"\",\"\",'1. Ordersheet'!AS433)","v":""},{"$f":"IF('1. Ordersheet'!AT433=\"\",\"\",'1. Ordersheet'!AT433)","v":""},null,null,null,null,null,null,null,{"$f":"IF('1. Ordersheet'!AX433=\"\",\"\",'1. Ordersheet'!AX433)","v":""},{"$f":"IF('1. Ordersheet'!AY433=\"\",\"\",'1. Ordersheet'!AY433)","v":""},{"$f":"IF('1. Ordersheet'!AZ433=\"\",\"\",'1. Ordersheet'!AZ433)","v":""},{"$f":"IF('1. Ordersheet'!BA433=\"\",\"\",'1. Ordersheet'!BA433)","v":""},{"$f":"IF('1. Ordersheet'!BC433=\"\",\"\",'1. Ordersheet'!BC433)","v":""},{"$f":"IF('1. Ordersheet'!BD433=\"\",\"\",'1. Ordersheet'!BD433)","v":""},{"$f":"IF('1. Ordersheet'!BE433=\"\",\"\",'1. Ordersheet'!BE433)","v":""},{"$f":"IF('1. Ordersheet'!BF433=\"\",\"\",'1. Ordersheet'!BF433)","v":""},{"$f":"IF('1. Ordersheet'!BG433=\"\",\"\",'1. Ordersheet'!BG433)","v":"ZWO"},{"$f":"IF('1. Ordersheet'!BH433=\"\",\"\",'1. Ordersheet'!BH433)","v":""},{"$f":"IF('1. Ordersheet'!BI433=\"\",\"\",'1. Ordersheet'!BI433)","v":""},{"$f":"IF('1. Ordersheet'!BJ433=\"\",\"\",'1. Ordersheet'!BJ433)","v":""},{"$f":"IF('1. Ordersheet'!BK433=\"\",\"\",'1. Ordersheet'!BK433)","v":""},{"$f":"IF('1. Ordersheet'!BL433=\"\",\"\",'1. Ordersheet'!BL433)","v":""}]
[{"$f":"IF('1. Ordersheet'!F434=\"\",\"\",'1. Ordersheet'!F434)","v":""},{"$f":"IF('1. Ordersheet'!G434=\"\",\"\",'1. Ordersheet'!G434)","v":""},{"$f":"IF('1. Ordersheet'!H434=\"\",\"\",'1. Ordersheet'!H434)","v":""},{"$f":"IF('1. Ordersheet'!I434=\"\",\"\",'1. Ordersheet'!I434)","v":""},{"$f":"IF('1. Ordersheet'!J434=\"\",\"\",'1. Ordersheet'!J434)","v":""},{"$f":"IF('1. Ordersheet'!K434=\"\",\"\",'1. Ordersheet'!K434)","v":""},{"$f":"IF('1. Ordersheet'!L434=\"\",\"\",'1. Ordersheet'!L434)","v":""},{"$f":"IF('1. Ordersheet'!M434=\"\",\"\",'1. Ordersheet'!M434)","v":""},{"$f":"IF('1. Ordersheet'!N434=\"\",\"\",'1. Ordersheet'!N434)","v":""},{"$f":"IF('1. Ordersheet'!O434=\"\",\"\",'1. Ordersheet'!O434)","v":{"$error":"#N/A"}},{"$f":"IF('1. Ordersheet'!P434=\"\",\"\",'1. Ordersheet'!P434)","v":{"$error":"#N/A"}},{"$f":"IF('1. Ordersheet'!Q434=\"\",\"\",'1. Ordersheet'!Q434)","v":""},{"$f":"IF('1. Ordersheet'!R434=\"\",\"\",'1. Ordersheet'!R434)","v":""},{"$f":"IF('1. Ordersheet'!S434=\"\",\"\",'1. Ordersheet'!S434)","v":""},{"$f":"IF('1. Ordersheet'!V434=\"\",\"\",'1. Ordersheet'!V434)","v":""},{"$f":"IF('1. Ordersheet'!W434=\"\",\"\",'1. Ordersheet'!W434)","v":""},{"$f":"IF('1. Ordersheet'!X434=\"\",\"\",'1. Ordersheet'!X434)","v":""},{"$f":"IF('1. Ordersheet'!Y434=\"\",\"\",'1. Ordersheet'!Y434)","v":""},{"$f":"IF('1. Ordersheet'!Z434=\"\",\"\",'1. Ordersheet'!Z434)","v":""},{"$f":"IF('1. Ordersheet'!AA434=\"\",\"\",'1. Ordersheet'!AA434)","v":""},null,{"$f":"IF('1. Ordersheet'!AS434=\"\",\"\",'1. Ordersheet'!AS434)","v":""},{"$f":"IF('1. Ordersheet'!AT434=\"\",\"\",'1. Ordersheet'!AT434)","v":""},null,null,null,null,null,null,null,{"$f":"IF('1. Ordersheet'!AX434=\"\",\"\",'1. Ordersheet'!AX434)","v":""},{"$f":"IF('1. Ordersheet'!AY434=\"\",\"\",'1. Ordersheet'!AY434)","v":""},{"$f":"IF('1. Ordersheet'!AZ434=\"\",\"\",'1. Ordersheet'!AZ434)","v":""},{"$f":"IF('1. Ordersheet'!BA434=\"\",\"\",'1. Ordersheet'!BA434)","v":""},{"$f":"IF('1. Ordersheet'!BC434=\"\",\"\",'1. Ordersheet'!BC434)","v":""},{"$f":"IF('1. Ordersheet'!BD434=\"\",\"\",'1. Ordersheet'!BD434)","v":""},{"$f":"IF('1. Ordersheet'!BE434=\"\",\"\",'1. Ordersheet'!BE434)","v":""},{"$f":"IF('1. Ordersheet'!BF434=\"\",\"\",'1. Ordersheet'!BF434)","v":""},{"$f":"IF('1. Ordersheet'!BG434=\"\",\"\",'1. Ordersheet'!BG434)","v":"ZWO"},{"$f":"IF('1. Ordersheet'!BH434=\"\",\"\",'1. Ordersheet'!BH434)","v":""},{"$f":"IF('1. Ordersheet'!BI434=\"\",\"\",'1. Ordersheet'!BI434)","v":""},{"$f":"IF('1. Ordersheet'!BJ434=\"\",\"\",'1. Ordersheet'!BJ434)","v":""},{"$f":"IF('1. Ordersheet'!BK434=\"\",\"\",'1. Ordersheet'!BK434)","v":""},{"$f":"IF('1. Ordersheet'!BL434=\"\",\"\",'1. Ordersheet'!BL434)","v":""}]
[{"$f":"IF('1. Ordersheet'!F435=\"\",\"\",'1. Ordersheet'!F435)","v":""},{"$f":"IF('1. Ordersheet'!G435=\"\",\"\",'1. Ordersheet'!G435)","v":""},{"$f":"IF('1. Ordersheet'!H435=\"\",\"\",'1. Ordersheet'!H435)","v":""},{"$f":"IF('1. Ordersheet'!I435=\"\",\"\",'1. Ordersheet'!I435)","v":""},{"$f":"IF('1. Ordersheet'!J435=\"\",\"\",'1. Ordersheet'!J435)","v":""},{"$f":"IF('1. Ordersheet'!K435=\"\",\"\",'1. Ordersheet'!K435)","v":""},{"$f":"IF('1. Ordersheet'!L435=\"\",\"\",'1. Ordersheet'!L435)","v":""},{"$f":"IF('1. Ordersheet'!M435=\"\",\"\",'1. Ordersheet'!M435)","v":""},{"$f":"IF('1. Ordersheet'!N435=\"\",\"\",'1. Ordersheet'!N435)","v":""},{"$f":"IF('1. Ordersheet'!O435=\"\",\"\",'1. Ordersheet'!O435)","v":{"$error":"#N/A"}},{"$f":"IF('1. Ordersheet'!P435=\"\",\"\",'1. Ordersheet'!P435)","v":{"$error":"#N/A"}},{"$f":"IF('1. Ordersheet'!Q435=\"\",\"\",'1. Ordersheet'!Q435)","v":""},{"$f":"IF('1. Ordersheet'!R435=\"\",\"\",'1. Ordersheet'!R435)","v":""},{"$f":"IF('1. Ordersheet'!S435=\"\",\"\",'1. Ordersheet'!S435)","v":""},{"$f":"IF('1. Ordersheet'!V435=\"\",\"\",'1. Ordersheet'!V435)","v":""},{"$f":"IF('1. Ordersheet'!W435=\"\",\"\",'1. Ordersheet'!W435)","v":""},{"$f":"IF('1. Ordersheet'!X435=\"\",\"\",'1. Ordersheet'!X435)","v":""},{"$f":"IF('1. Ordersheet'!Y435=\"\",\"\",'1. Ordersheet'!Y435)","v":""},{"$f":"IF('1. Ordersheet'!Z435=\"\",\"\",'1. Ordersheet'!Z435)","v":""},{"$f":"IF('1. Ordersheet'!AA435=\"\",\"\",'1. Ordersheet'!AA435)","v":""},null,{"$f":"IF('1. Ordersheet'!AS435=\"\",\"\",'1. Ordersheet'!AS435)","v":""},{"$f":"IF('1. Ordersheet'!AT435=\"\",\"\",'1. Ordersheet'!AT435)","v":""},null,null,null,null,null,null,null,{"$f":"IF('1. Ordersheet'!AX435=\"\",\"\",'1. Ordersheet'!AX435)","v":""},{"$f":"IF('1. Ordersheet'!AY435=\"\",\"\",'1. Ordersheet'!AY435)","v":""},{"$f":"IF('1. Ordersheet'!AZ435=\"\",\"\",'1. Ordersheet'!AZ435)","v":""},{"$f":"IF('1. Ordersheet'!BA435=\"\",\"\",'1. Ordersheet'!BA435)","v":""},{"$f":"IF('1. Ordersheet'!BC435=\"\",\"\",'1. Ordersheet'!BC435)","v":""},{"$f":"IF('1. Ordersheet'!BD435=\"\",\"\",'1. Ordersheet'!BD435)","v":""},{"$f":"IF('1. Ordersheet'!BE435=\"\",\"\",'1. Ordersheet'!BE435)","v":""},{"$f":"IF('1. Ordersheet'!BF435=\"\",\"\",'1. Ordersheet'!BF435)","v":""},{"$f":"IF('1. Ordersheet'!BG435=\"\",\"\",'1. Ordersheet'!BG435)","v":"ZWO"},{"$f":"IF('1. Ordersheet'!BH435=\"\",\"\",'1. Ordersheet'!BH435)","v":""},{"$f":"IF('1. Ordersheet'!BI435=\"\",\"\",'1. Ordersheet'!BI435)","v":""},{"$f":"IF('1. Ordersheet'!BJ435=\"\",\"\",'1. Ordersheet'!BJ435)","v":""},{"$f":"IF('1. Ordersheet'!BK435=\"\",\"\",'1. Ordersheet'!BK435)","v":""},{"$f":"IF('1. Ordersheet'!BL435=\"\",\"\",'1. Ordersheet'!BL435)","v":""}]
[{"$f":"IF('1. Ordersheet'!F436=\"\",\"\",'1. Ordersheet'!F436)","v":""},{"$f":"IF('1. Ordersheet'!G436=\"\",\"\",'1. Ordersheet'!G436)","v":""},{"$f":"IF('1. Ordersheet'!H436=\"\",\"\",'1. Ordersheet'!H436)","v":""},{"$f":"IF('1. Ordersheet'!I436=\"\",\"\",'1. Ordersheet'!I436)","v":""},{"$f":"IF('1. Ordersheet'!J436=\"\",\"\",'1. Ordersheet'!J436)","v":""},{"$f":"IF('1. Ordersheet'!K436=\"\",\"\",'1. Ordersheet'!K436)","v":""},{"$f":"IF('1. Ordersheet'!L436=\"\",\"\",'1. Ordersheet'!L436)","v":""},{"$f":"IF('1. Ordersheet'!M436=\"\",\"\",'1. Ordersheet'!M436)","v":""},{"$f":"IF('1. Ordersheet'!N436=\"\",\"\",'1. Ordersheet'!N436)","v":""},{"$f":"IF('1. Ordersheet'!O436=\"\",\"\",'1. Ordersheet'!O436)","v":{"$error":"#N/A"}},{"$f":"IF('1. Ordersheet'!P436=\"\",\"\",'1. Ordersheet'!P436)","v":{"$error":"#N/A"}},{"$f":"IF('1. Ordersheet'!Q436=\"\",\"\",'1. Ordersheet'!Q436)","v":""},{"$f":"IF('1. Ordersheet'!R436=\"\",\"\",'1. Ordersheet'!R436)","v":""},{"$f":"IF('1. Ordersheet'!S436=\"\",\"\",'1. Ordersheet'!S436)","v":""},{"$f":"IF('1. Ordersheet'!V436=\"\",\"\",'1. Ordersheet'!V436)","v":""},{"$f":"IF('1. Ordersheet'!W436=\"\",\"\",'1. Ordersheet'!W436)","v":""},{"$f":"IF('1. Ordersheet'!X436=\"\",\"\",'1. Ordersheet'!X436)","v":""},{"$f":"IF('1. Ordersheet'!Y436=\"\",\"\",'1. Ordersheet'!Y436)","v":""},{"$f":"IF('1. Ordersheet'!Z436=\"\",\"\",'1. Ordersheet'!Z436)","v":""},{"$f":"IF('1. Ordersheet'!AA436=\"\",\"\",'1. Ordersheet'!AA436)","v":""},null,{"$f":"IF('1. Ordersheet'!AS436=\"\",\"\",'1. Ordersheet'!AS436)","v":""},{"$f":"IF('1. Ordersheet'!AT436=\"\",\"\",'1. Ordersheet'!AT436)","v":""},null,null,null,null,null,null,null,{"$f":"IF('1. Ordersheet'!AX436=\"\",\"\",'1. Ordersheet'!AX436)","v":""},{"$f":"IF('1. Ordersheet'!AY436=\"\",\"\",'1. Ordersheet'!AY436)","v":""},{"$f":"IF('1. Ordersheet'!AZ436=\"\",\"\",'1. Ordersheet'!AZ436)","v":""},{"$f":"IF('1. Ordersheet'!BA436=\"\",\"\",'1. Ordersheet'!BA436)","v":""},{"$f":"IF('1. Ordersheet'!BC436=\"\",\"\",'1. Ordersheet'!BC436)","v":""},{"$f":"IF('1. Ordersheet'!BD436=\"\",\"\",'1. Ordersheet'!BD436)","v":""},{"$f":"IF('1. Ordersheet'!BE436=\"\",\"\",'1. Ordersheet'!BE436)","v":""},{"$f":"IF('1. Ordersheet'!BF436=\"\",\"\",'1. Ordersheet'!BF436)","v":""},{"$f":"IF('1. Ordersheet'!BG436=\"\",\"\",'1. Ordersheet'!BG436)","v":"ZWO"},{"$f":"IF('1. Ordersheet'!BH436=\"\",\"\",'1. Ordersheet'!BH436)","v":""},{"$f":"IF('1. Ordersheet'!BI436=\"\",\"\",'1. Ordersheet'!BI436)","v":""},{"$f":"IF('1. Ordersheet'!BJ436=\"\",\"\",'1. Ordersheet'!BJ436)","v":""},{"$f":"IF('1. Ordersheet'!BK436=\"\",\"\",'1. Ordersheet'!BK436)","v":""},{"$f":"IF('1. Ordersheet'!BL436=\"\",\"\",'1. Ordersheet'!BL436)","v":""}]
[{"$f":"IF('1. Ordersheet'!F437=\"\",\"\",'1. Ordersheet'!F437)","v":""},{"$f":"IF('1. Ordersheet'!G437=\"\",\"\",'1. Ordersheet'!G437)","v":""},{"$f":"IF('1. Ordersheet'!H437=\"\",\"\",'1. Ordersheet'!H437)","v":""},{"$f":"IF('1. Ordersheet'!I437=\"\",\"\",'1. Ordersheet'!I437)","v":""},{"$f":"IF('1. Ordersheet'!J437=\"\",\"\",'1. Ordersheet'!J437)","v":""},{"$f":"IF('1. Ordersheet'!K437=\"\",\"\",'1. Ordersheet'!K437)","v":""},{"$f":"IF('1. Ordersheet'!L437=\"\",\"\",'1. Ordersheet'!L437)","v":""},{"$f":"IF('1. Ordersheet'!M437=\"\",\"\",'1. Ordersheet'!M437)","v":""},{"$f":"IF('1. Ordersheet'!N437=\"\",\"\",'1. Ordersheet'!N437)","v":""},{"$f":"IF('1. Ordersheet'!O437=\"\",\"\",'1. Ordersheet'!O437)","v":{"$error":"#N/A"}},{"$f":"IF('1. Ordersheet'!P437=\"\",\"\",'1. Ordersheet'!P437)","v":{"$error":"#N/A"}},{"$f":"IF('1. Ordersheet'!Q437=\"\",\"\",'1. Ordersheet'!Q437)","v":""},{"$f":"IF('1. Ordersheet'!R437=\"\",\"\",'1. Ordersheet'!R437)","v":""},{"$f":"IF('1. Ordersheet'!S437=\"\",\"\",'1. Ordersheet'!S437)","v":""},{"$f":"IF('1. Ordersheet'!V437=\"\",\"\",'1. Ordersheet'!V437)","v":""},{"$f":"IF('1. Ordersheet'!W437=\"\",\"\",'1. Ordersheet'!W437)","v":""},{"$f":"IF('1. Ordersheet'!X437=\"\",\"\",'1. Ordersheet'!X437)","v":""},{"$f":"IF('1. Ordersheet'!Y437=\"\",\"\",'1. Ordersheet'!Y437)","v":""},{"$f":"IF('1. Ordersheet'!Z437=\"\",\"\",'1. Ordersheet'!Z437)","v":""},{"$f":"IF('1. Ordersheet'!AA437=\"\",\"\",'1. Ordersheet'!AA437)","v":""},null,{"$f":"IF('1. Ordersheet'!AS437=\"\",\"\",'1. Ordersheet'!AS437)","v":""},{"$f":"IF('1. Ordersheet'!AT437=\"\",\"\",'1. Ordersheet'!AT437)","v":""},null,null,null,null,null,null,null,{"$f":"IF('1. Ordersheet'!AX437=\"\",\"\",'1. Ordersheet'!AX437)","v":""},{"$f":"IF('1. Ordersheet'!AY437=\"\",\"\",'1. Ordersheet'!AY437)","v":""},{"$f":"IF('1. Ordersheet'!AZ437=\"\",\"\",'1. Ordersheet'!AZ437)","v":""},{"$f":"IF('1. Ordersheet'!BA437=\"\",\"\",'1. Ordersheet'!BA437)","v":""},{"$f":"IF('1. Ordersheet'!BC437=\"\",\"\",'1. Ordersheet'!BC437)","v":""},{"$f":"IF('1. Ordersheet'!BD437=\"\",\"\",'1. Ordersheet'!BD437)","v":""},{"$f":"IF('1. Ordersheet'!BE437=\"\",\"\",'1. Ordersheet'!BE437)","v":""},{"$f":"IF('1. Ordersheet'!BF437=\"\",\"\",'1. Ordersheet'!BF437)","v":""},{"$f":"IF('1. Ordersheet'!BG437=\"\",\"\",'1. Ordersheet'!BG437)","v":"ZWO"},{"$f":"IF('1. Ordersheet'!BH437=\"\",\"\",'1. Ordersheet'!BH437)","v":""},{"$f":"IF('1. Ordersheet'!BI437=\"\",\"\",'1. Ordersheet'!BI437)","v":""},{"$f":"IF('1. Ordersheet'!BJ437=\"\",\"\",'1. Ordersheet'!BJ437)","v":""},{"$f":"IF('1. Ordersheet'!BK437=\"\",\"\",'1. Ordersheet'!BK437)","v":""},{"$f":"IF('1. Ordersheet'!BL437=\"\",\"\",'1. Ordersheet'!BL437)","v":""}]
[{"$f":"IF('1. Ordersheet'!F438=\"\",\"\",'1. Ordersheet'!F438)","v":""},{"$f":"IF('1. Ordersheet'!G438=\"\",\"\",'1. Ordersheet'!G438)","v":""},{"$f":"IF('1. Ordersheet'!H438=\"\",\"\",'1. Ordersheet'!H438)","v":""},{"$f":"IF('1. Ordersheet'!I438=\"\",\"\",'1. Ordersheet'!I438)","v":""},{"$f":"IF('1. Ordersheet'!J438=\"\",\"\",'1. Ordersheet'!J438)","v":""},{"$f":"IF('1. Ordersheet'!K438=\"\",\"\",'1. Ordersheet'!K438)","v":""},{"$f":"IF('1. Ordersheet'!L438=\"\",\"\",'1. Ordersheet'!L438)","v":""},{"$f":"IF('1. Ordersheet'!M438=\"\",\"\",'1. Ordersheet'!M438)","v":""},{"$f":"IF('1. Ordersheet'!N438=\"\",\"\",'1. Ordersheet'!N438)","v":""},{"$f":"IF('1. Ordersheet'!O438=\"\",\"\",'1. Ordersheet'!O438)","v":{"$error":"#N/A"}},{"$f":"IF('1. Ordersheet'!P438=\"\",\"\",'1. Ordersheet'!P438)","v":{"$error":"#N/A"}},{"$f":"IF('1. Ordersheet'!Q438=\"\",\"\",'1. Ordersheet'!Q438)","v":""},{"$f":"IF('1. Ordersheet'!R438=\"\",\"\",'1. Ordersheet'!R438)","v":""},{"$f":"IF('1. Ordersheet'!S438=\"\",\"\",'1. Ordersheet'!S438)","v":""},{"$f":"IF('1. Ordersheet'!V438=\"\",\"\",'1. Ordersheet'!V438)","v":""},{"$f":"IF('1. Ordersheet'!W438=\"\",\"\",'1. Ordersheet'!W438)","v":""},{"$f":"IF('1. Ordersheet'!X438=\"\",\"\",'1. Ordersheet'!X438)","v":""},{"$f":"IF('1. Ordersheet'!Y438=\"\",\"\",'1. Ordersheet'!Y438)","v":""},{"$f":"IF('1. Ordersheet'!Z438=\"\",\"\",'1. Ordersheet'!Z438)","v":""},{"$f":"IF('1. Ordersheet'!AA438=\"\",\"\",'1. Ordersheet'!AA438)","v":""},null,{"$f":"IF('1. Ordersheet'!AS438=\"\",\"\",'1. Ordersheet'!AS438)","v":""},{"$f":"IF('1. Ordersheet'!AT438=\"\",\"\",'1. Ordersheet'!AT438)","v":""},null,null,null,null,null,null,null,{"$f":"IF('1. Ordersheet'!AX438=\"\",\"\",'1. Ordersheet'!AX438)","v":""},{"$f":"IF('1. Ordersheet'!AY438=\"\",\"\",'1. Ordersheet'!AY438)","v":""},{"$f":"IF('1. Ordersheet'!AZ438=\"\",\"\",'1. Ordersheet'!AZ438)","v":""},{"$f":"IF('1. Ordersheet'!BA438=\"\",\"\",'1. Ordersheet'!BA438)","v":""},{"$f":"IF('1. Ordersheet'!BC438=\"\",\"\",'1. Ordersheet'!BC438)","v":""},{"$f":"IF('1. Ordersheet'!BD438=\"\",\"\",'1. Ordersheet'!BD438)","v":""},{"$f":"IF('1. Ordersheet'!BE438=\"\",\"\",'1. Ordersheet'!BE438)","v":""},{"$f":"IF('1. Ordersheet'!BF438=\"\",\"\",'1. Ordersheet'!BF438)","v":""},{"$f":"IF('1. Ordersheet'!BG438=\"\",\"\",'1. Ordersheet'!BG438)","v":"ZWO"},{"$f":"IF('1. Ordersheet'!BH438=\"\",\"\",'1. Ordersheet'!BH438)","v":""},{"$f":"IF('1. Ordersheet'!BI438=\"\",\"\",'1. Ordersheet'!BI438)","v":""},{"$f":"IF('1. Ordersheet'!BJ438=\"\",\"\",'1. Ordersheet'!BJ438)","v":""},{"$f":"IF('1. Ordersheet'!BK438=\"\",\"\",'1. Ordersheet'!BK438)","v":""},{"$f":"IF('1. Ordersheet'!BL438=\"\",\"\",'1. Ordersheet'!BL438)","v":""}]
[{"$f":"IF('1. Ordersheet'!F439=\"\",\"\",'1. Ordersheet'!F439)","v":""},{"$f":"IF('1. Ordersheet'!G439=\"\",\"\",'1. Ordersheet'!G439)","v":""},{"$f":"IF('1. Ordersheet'!H439=\"\",\"\",'1. Ordersheet'!H439)","v":""},{"$f":"IF('1. Ordersheet'!I439=\"\",\"\",'1. Ordersheet'!I439)","v":""},{"$f":"IF('1. Ordersheet'!J439=\"\",\"\",'1. Ordersheet'!J439)","v":""},{"$f":"IF('1. Ordersheet'!K439=\"\",\"\",'1. Ordersheet'!K439)","v":""},{"$f":"IF('1. Ordersheet'!L439=\"\",\"\",'1. Ordersheet'!L439)","v":""},{"$f":"IF('1. Ordersheet'!M439=\"\",\"\",'1. Ordersheet'!M439)","v":""},{"$f":"IF('1. Ordersheet'!N439=\"\",\"\",'1. Ordersheet'!N439)","v":""},{"$f":"IF('1. Ordersheet'!O439=\"\",\"\",'1. Ordersheet'!O439)","v":{"$error":"#N/A"}},{"$f":"IF('1. Ordersheet'!P439=\"\",\"\",'1. Ordersheet'!P439)","v":{"$error":"#N/A"}},{"$f":"IF('1. Ordersheet'!Q439=\"\",\"\",'1. Ordersheet'!Q439)","v":""},{"$f":"IF('1. Ordersheet'!R439=\"\",\"\",'1. Ordersheet'!R439)","v":""},{"$f":"IF('1. Ordersheet'!S439=\"\",\"\",'1. Ordersheet'!S439)","v":""},{"$f":"IF('1. Ordersheet'!V439=\"\",\"\",'1. Ordersheet'!V439)","v":""},{"$f":"IF('1. Ordersheet'!W439=\"\",\"\",'1. Ordersheet'!W439)","v":""},{"$f":"IF('1. Ordersheet'!X439=\"\",\"\",'1. Ordersheet'!X439)","v":""},{"$f":"IF('1. Ordersheet'!Y439=\"\",\"\",'1. Ordersheet'!Y439)","v":""},{"$f":"IF('1. Ordersheet'!Z439=\"\",\"\",'1. Ordersheet'!Z439)","v":""},{"$f":"IF('1. Ordersheet'!AA439=\"\",\"\",'1. Ordersheet'!AA439)","v":""},null,{"$f":"IF('1. Ordersheet'!AS439=\"\",\"\",'1. Ordersheet'!AS439)","v":""},{"$f":"IF('1. Ordersheet'!AT439=\"\",\"\",'1. Ordersheet'!AT439)","v":""},null,null,null,null,null,null,null,{"$f":"IF('1. Ordersheet'!AX439=\"\",\"\",'1. Ordersheet'!AX439)","v":""},{"$f":"IF('1. Ordersheet'!AY439=\"\",\"\",'1. Ordersheet'!AY439)","v":""},{"$f":"IF('1. Ordersheet'!AZ439=\"\",\"\",'1. Ordersheet'!AZ439)","v":""},{"$f":"IF('1. Ordersheet'!BA439=\"\",\"\",'1. Ordersheet'!BA439)","v":""},{"$f":"IF('1. Ordersheet'!BC439=\"\",\"\",'1. Ordersheet'!BC439)","v":""},{"$f":"IF('1. Ordersheet'!BD439=\"\",\"\",'1. Ordersheet'!BD439)","v":""},{"$f":"IF('1. Ordersheet'!BE439=\"\",\"\",'1. Ordersheet'!BE439)","v":""},{"$f":"IF('1. Ordersheet'!BF439=\"\",\"\",'1. Ordersheet'!BF439)","v":""},{"$f":"IF('1. Ordersheet'!BG439=\"\",\"\",'1. Ordersheet'!BG439)","v":"ZWO"},{"$f":"IF('1. Ordersheet'!BH439=\"\",\"\",'1. Ordersheet'!BH439)","v":""},{"$f":"IF('1. Ordersheet'!BI439=\"\",\"\",'1. Ordersheet'!BI439)","v":""},{"$f":"IF('1. Ordersheet'!BJ439=\"\",\"\",'1. Ordersheet'!BJ439)","v":""},{"$f":"IF('1. Ordersheet'!BK439=\"\",\"\",'1. Ordersheet'!BK439)","v":""},{"$f":"IF('1. Ordersheet'!BL439=\"\",\"\",'1. Ordersheet'!BL439)","v":""}]
[{"$f":"IF('1. Ordersheet'!F440=\"\",\"\",'1. Ordersheet'!F440)","v":""},{"$f":"IF('1. Ordersheet'!G440=\"\",\"\",'1. Ordersheet'!G440)","v":""},{"$f":"IF('1. Ordersheet'!H440=\"\",\"\",'1. Ordersheet'!H440)","v":""},{"$f":"IF('1. Ordersheet'!I440=\"\",\"\",'1. Ordersheet'!I440)","v":""},{"$f":"IF('1. Ordersheet'!J440=\"\",\"\",'1. Ordersheet'!J440)","v":""},{"$f":"IF('1. Ordersheet'!K440=\"\",\"\",'1. Ordersheet'!K440)","v":""},{"$f":"IF('1. Ordersheet'!L440=\"\",\"\",'1. Ordersheet'!L440)","v":""},{"$f":"IF('1. Ordersheet'!M440=\"\",\"\",'1. Ordersheet'!M440)","v":""},{"$f":"IF('1. Ordersheet'!N440=\"\",\"\",'1. Ordersheet'!N440)","v":""},{"$f":"IF('1. Ordersheet'!O440=\"\",\"\",'1. Ordersheet'!O440)","v":{"$error":"#N/A"}},{"$f":"IF('1. Ordersheet'!P440=\"\",\"\",'1. Ordersheet'!P440)","v":{"$error":"#N/A"}},{"$f":"IF('1. Ordersheet'!Q440=\"\",\"\",'1. Ordersheet'!Q440)","v":""},{"$f":"IF('1. Ordersheet'!R440=\"\",\"\",'1. Ordersheet'!R440)","v":""},{"$f":"IF('1. Ordersheet'!S440=\"\",\"\",'1. Ordersheet'!S440)","v":""},{"$f":"IF('1. Ordersheet'!V440=\"\",\"\",'1. Ordersheet'!V440)","v":""},{"$f":"IF('1. Ordersheet'!W440=\"\",\"\",'1. Ordersheet'!W440)","v":""},{"$f":"IF('1. Ordersheet'!X440=\"\",\"\",'1. Ordersheet'!X440)","v":""},{"$f":"IF('1. Ordersheet'!Y440=\"\",\"\",'1. Ordersheet'!Y440)","v":""},{"$f":"IF('1. Ordersheet'!Z440=\"\",\"\",'1. Ordersheet'!Z440)","v":""},{"$f":"IF('1. Ordersheet'!AA440=\"\",\"\",'1. Ordersheet'!AA440)","v":""},null,{"$f":"IF('1. Ordersheet'!AS440=\"\",\"\",'1. Ordersheet'!AS440)","v":""},{"$f":"IF('1. Ordersheet'!AT440=\"\",\"\",'1. Ordersheet'!AT440)","v":""},null,null,null,null,null,null,null,{"$f":"IF('1. Ordersheet'!AX440=\"\",\"\",'1. Ordersheet'!AX440)","v":""},{"$f":"IF('1. Ordersheet'!AY440=\"\",\"\",'1. Ordersheet'!AY440)","v":""},{"$f":"IF('1. Ordersheet'!AZ440=\"\",\"\",'1. Ordersheet'!AZ440)","v":""},{"$f":"IF('1. Ordersheet'!BA440=\"\",\"\",'1. Ordersheet'!BA440)","v":""},{"$f":"IF('1. Ordersheet'!BC440=\"\",\"\",'1. Ordersheet'!BC440)","v":""},{"$f":"IF('1. Ordersheet'!BD440=\"\",\"\",'1. Ordersheet'!BD440)","v":""},{"$f":"IF('1. Ordersheet'!BE440=\"\",\"\",'1. Ordersheet'!BE440)","v":""},{"$f":"IF('1. Ordersheet'!BF440=\"\",\"\",'1. Ordersheet'!BF440)","v":""},{"$f":"IF('1. Ordersheet'!BG440=\"\",\"\",'1. Ordersheet'!BG440)","v":"ZWO"},{"$f":"IF('1. Ordersheet'!BH440=\"\",\"\",'1. Ordersheet'!BH440)","v":""},{"$f":"IF('1. Ordersheet'!BI440=\"\",\"\",'1. Ordersheet'!BI440)","v":""},{"$f":"IF('1. Ordersheet'!BJ440=\"\",\"\",'1. Ordersheet'!BJ440)","v":""},{"$f":"IF('1. Ordersheet'!BK440=\"\",\"\",'1. Ordersheet'!BK440)","v":""},{"$f":"IF('1. Ordersheet'!BL440=\"\",\"\",'1. Ordersheet'!BL440)","v":""}]
[{"$f":"IF('1. Ordersheet'!F441=\"\",\"\",'1. Ordersheet'!F441)","v":""},{"$f":"IF('1. Ordersheet'!G441=\"\",\"\",'1. Ordersheet'!G441)","v":""},{"$f":"IF('1. Ordersheet'!H441=\"\",\"\",'1. Ordersheet'!H441)","v":""},{"$f":"IF('1. Ordersheet'!I441=\"\",\"\",'1. Ordersheet'!I441)","v":""},{"$f":"IF('1. Ordersheet'!J441=\"\",\"\",'1. Ordersheet'!J441)","v":""},{"$f":"IF('1. Ordersheet'!K441=\"\",\"\",'1. Ordersheet'!K441)","v":""},{"$f":"IF('1. Ordersheet'!L441=\"\",\"\",'1. Ordersheet'!L441)","v":""},{"$f":"IF('1. Ordersheet'!M441=\"\",\"\",'1. Ordersheet'!M441)","v":""},{"$f":"IF('1. Ordersheet'!N441=\"\",\"\",'1. Ordersheet'!N441)","v":""},{"$f":"IF('1. Ordersheet'!O441=\"\",\"\",'1. Ordersheet'!O441)","v":{"$error":"#N/A"}},{"$f":"IF('1. Ordersheet'!P441=\"\",\"\",'1. Ordersheet'!P441)","v":{"$error":"#N/A"}},{"$f":"IF('1. Ordersheet'!Q441=\"\",\"\",'1. Ordersheet'!Q441)","v":""},{"$f":"IF('1. Ordersheet'!R441=\"\",\"\",'1. Ordersheet'!R441)","v":""},{"$f":"IF('1. Ordersheet'!S441=\"\",\"\",'1. Ordersheet'!S441)","v":""},{"$f":"IF('1. Ordersheet'!V441=\"\",\"\",'1. Ordersheet'!V441)","v":""},{"$f":"IF('1. Ordersheet'!W441=\"\",\"\",'1. Ordersheet'!W441)","v":""},{"$f":"IF('1. Ordersheet'!X441=\"\",\"\",'1. Ordersheet'!X441)","v":""},{"$f":"IF('1. Ordersheet'!Y441=\"\",\"\",'1. Ordersheet'!Y441)","v":""},{"$f":"IF('1. Ordersheet'!Z441=\"\",\"\",'1. Ordersheet'!Z441)","v":""},{"$f":"IF('1. Ordersheet'!AA441=\"\",\"\",'1. Ordersheet'!AA441)","v":""},null,{"$f":"IF('1. Ordersheet'!AS441=\"\",\"\",'1. Ordersheet'!AS441)","v":""},{"$f":"IF('1. Ordersheet'!AT441=\"\",\"\",'1. Ordersheet'!AT441)","v":""},null,null,null,null,null,null,null,{"$f":"IF('1. Ordersheet'!AX441=\"\",\"\",'1. Ordersheet'!AX441)","v":""},{"$f":"IF('1. Ordersheet'!AY441=\"\",\"\",'1. Ordersheet'!AY441)","v":""},{"$f":"IF('1. Ordersheet'!AZ441=\"\",\"\",'1. Ordersheet'!AZ441)","v":""},{"$f":"IF('1. Ordersheet'!BA441=\"\",\"\",'1. Ordersheet'!BA441)","v":""},{"$f":"IF('1. Ordersheet'!BC441=\"\",\"\",'1. Ordersheet'!BC441)","v":""},{"$f":"IF('1. Ordersheet'!BD441=\"\",\"\",'1. Ordersheet'!BD441)","v":""},{"$f":"IF('1. Ordersheet'!BE441=\"\",\"\",'1. Ordersheet'!BE441)","v":""},{"$f":"IF('1. Ordersheet'!BF441=\"\",\"\",'1. Ordersheet'!BF441)","v":""},{"$f":"IF('1. Ordersheet'!BG441=\"\",\"\",'1. Ordersheet'!BG441)","v":"ZWO"},{"$f":"IF('1. Ordersheet'!BH441=\"\",\"\",'1. Ordersheet'!BH441)","v":""},{"$f":"IF('1. Ordersheet'!BI441=\"\",\"\",'1. Ordersheet'!BI441)","v":""},{"$f":"IF('1. Ordersheet'!BJ441=\"\",\"\",'1. Ordersheet'!BJ441)","v":""},{"$f":"IF('1. Ordersheet'!BK441=\"\",\"\",'1. Ordersheet'!BK441)","v":""},{"$f":"IF('1. Ordersheet'!BL441=\"\",\"\",'1. Ordersheet'!BL441)","v":""}]
[{"$f":"IF('1. Ordersheet'!F442=\"\",\"\",'1. Ordersheet'!F442)","v":""},{"$f":"IF('1. Ordersheet'!G442=\"\",\"\",'1. Ordersheet'!G442)","v":""},{"$f":"IF('1. Ordersheet'!H442=\"\",\"\",'1. Ordersheet'!H442)","v":""},{"$f":"IF('1. Ordersheet'!I442=\"\",\"\",'1. Ordersheet'!I442)","v":""},{"$f":"IF('1. Ordersheet'!J442=\"\",\"\",'1. Ordersheet'!J442)","v":""},{"$f":"IF('1. Ordersheet'!K442=\"\",\"\",'1. Ordersheet'!K442)","v":""},{"$f":"IF('1. Ordersheet'!L442=\"\",\"\",'1. Ordersheet'!L442)","v":""},{"$f":"IF('1. Ordersheet'!M442=\"\",\"\",'1. Ordersheet'!M442)","v":""},{"$f":"IF('1. Ordersheet'!N442=\"\",\"\",'1. Ordersheet'!N442)","v":""},{"$f":"IF('1. Ordersheet'!O442=\"\",\"\",'1. Ordersheet'!O442)","v":{"$error":"#N/A"}},{"$f":"IF('1. Ordersheet'!P442=\"\",\"\",'1. Ordersheet'!P442)","v":{"$error":"#N/A"}},{"$f":"IF('1. Ordersheet'!Q442=\"\",\"\",'1. Ordersheet'!Q442)","v":""},{"$f":"IF('1. Ordersheet'!R442=\"\",\"\",'1. Ordersheet'!R442)","v":""},{"$f":"IF('1. Ordersheet'!S442=\"\",\"\",'1. Ordersheet'!S442)","v":""},{"$f":"IF('1. Ordersheet'!V442=\"\",\"\",'1. Ordersheet'!V442)","v":""},{"$f":"IF('1. Ordersheet'!W442=\"\",\"\",'1. Ordersheet'!W442)","v":""},{"$f":"IF('1. Ordersheet'!X442=\"\",\"\",'1. Ordersheet'!X442)","v":""},{"$f":"IF('1. Ordersheet'!Y442=\"\",\"\",'1. Ordersheet'!Y442)","v":""},{"$f":"IF('1. Ordersheet'!Z442=\"\",\"\",'1. Ordersheet'!Z442)","v":""},{"$f":"IF('1. Ordersheet'!AA442=\"\",\"\",'1. Ordersheet'!AA442)","v":""},null,{"$f":"IF('1. Ordersheet'!AS442=\"\",\"\",'1. Ordersheet'!AS442)","v":""},{"$f":"IF('1. Ordersheet'!AT442=\"\",\"\",'1. Ordersheet'!AT442)","v":""},null,null,null,null,null,null,null,{"$f":"IF('1. Ordersheet'!AX442=\"\",\"\",'1. Ordersheet'!AX442)","v":""},{"$f":"IF('1. Ordersheet'!AY442=\"\",\"\",'1. Ordersheet'!AY442)","v":""},{"$f":"IF('1. Ordersheet'!AZ442=\"\",\"\",'1. Ordersheet'!AZ442)","v":""},{"$f":"IF('1. Ordersheet'!BA442=\"\",\"\",'1. Ordersheet'!BA442)","v":""},{"$f":"IF('1. Ordersheet'!BC442=\"\",\"\",'1. Ordersheet'!BC442)","v":""},{"$f":"IF('1. Ordersheet'!BD442=\"\",\"\",'1. Ordersheet'!BD442)","v":""},{"$f":"IF('1. Ordersheet'!BE442=\"\",\"\",'1. Ordersheet'!BE442)","v":""},{"$f":"IF('1. Ordersheet'!BF442=\"\",\"\",'1. Ordersheet'!BF442)","v":""},{"$f":"IF('1. Ordersheet'!BG442=\"\",\"\",'1. Ordersheet'!BG442)","v":"ZWO"},{"$f":"IF('1. Ordersheet'!BH442=\"\",\"\",'1. Ordersheet'!BH442)","v":""},{"$f":"IF('1. Ordersheet'!BI442=\"\",\"\",'1. Ordersheet'!BI442)","v":""},{"$f":"IF('1. Ordersheet'!BJ442=\"\",\"\",'1. Ordersheet'!BJ442)","v":""},{"$f":"IF('1. Ordersheet'!BK442=\"\",\"\",'1. Ordersheet'!BK442)","v":""},{"$f":"IF('1. Ordersheet'!BL442=\"\",\"\",'1. Ordersheet'!BL442)","v":""}]
[{"$f":"IF('1. Ordersheet'!F443=\"\",\"\",'1. Ordersheet'!F443)","v":""},{"$f":"IF('1. Ordersheet'!G443=\"\",\"\",'1. Ordersheet'!G443)","v":""},{"$f":"IF('1. Ordersheet'!H443=\"\",\"\",'1. Ordersheet'!H443)","v":""},{"$f":"IF('1. Ordersheet'!I443=\"\",\"\",'1. Ordersheet'!I443)","v":""},{"$f":"IF('1. Ordersheet'!J443=\"\",\"\",'1. Ordersheet'!J443)","v":""},{"$f":"IF('1. Ordersheet'!K443=\"\",\"\",'1. Ordersheet'!K443)","v":""},{"$f":"IF('1. Ordersheet'!L443=\"\",\"\",'1. Ordersheet'!L443)","v":""},{"$f":"IF('1. Ordersheet'!M443=\"\",\"\",'1. Ordersheet'!M443)","v":""},{"$f":"IF('1. Ordersheet'!N443=\"\",\"\",'1. Ordersheet'!N443)","v":""},{"$f":"IF('1. Ordersheet'!O443=\"\",\"\",'1. Ordersheet'!O443)","v":{"$error":"#N/A"}},{"$f":"IF('1. Ordersheet'!P443=\"\",\"\",'1. Ordersheet'!P443)","v":{"$error":"#N/A"}},{"$f":"IF('1. Ordersheet'!Q443=\"\",\"\",'1. Ordersheet'!Q443)","v":""},{"$f":"IF('1. Ordersheet'!R443=\"\",\"\",'1. Ordersheet'!R443)","v":""},{"$f":"IF('1. Ordersheet'!S443=\"\",\"\",'1. Ordersheet'!S443)","v":""},{"$f":"IF('1. Ordersheet'!V443=\"\",\"\",'1. Ordersheet'!V443)","v":""},{"$f":"IF('1. Ordersheet'!W443=\"\",\"\",'1. Ordersheet'!W443)","v":""},{"$f":"IF('1. Ordersheet'!X443=\"\",\"\",'1. Ordersheet'!X443)","v":""},{"$f":"IF('1. Ordersheet'!Y443=\"\",\"\",'1. Ordersheet'!Y443)","v":""},{"$f":"IF('1. Ordersheet'!Z443=\"\",\"\",'1. Ordersheet'!Z443)","v":""},{"$f":"IF('1. Ordersheet'!AA443=\"\",\"\",'1. Ordersheet'!AA443)","v":""},null,{"$f":"IF('1. Ordersheet'!AS443=\"\",\"\",'1. Ordersheet'!AS443)","v":""},{"$f":"IF('1. Ordersheet'!AT443=\"\",\"\",'1. Ordersheet'!AT443)","v":""},null,null,null,null,null,null,null,{"$f":"IF('1. Ordersheet'!AX443=\"\",\"\",'1. Ordersheet'!AX443)","v":""},{"$f":"IF('1. Ordersheet'!AY443=\"\",\"\",'1. Ordersheet'!AY443)","v":""},{"$f":"IF('1. Ordersheet'!AZ443=\"\",\"\",'1. Ordersheet'!AZ443)","v":""},{"$f":"IF('1. Ordersheet'!BA443=\"\",\"\",'1. Ordersheet'!BA443)","v":""},{"$f":"IF('1. Ordersheet'!BC443=\"\",\"\",'1. Ordersheet'!BC443)","v":""},{"$f":"IF('1. Ordersheet'!BD443=\"\",\"\",'1. Ordersheet'!BD443)","v":""},{"$f":"IF('1. Ordersheet'!BE443=\"\",\"\",'1. Ordersheet'!BE443)","v":""},{"$f":"IF('1. Ordersheet'!BF443=\"\",\"\",'1. Ordersheet'!BF443)","v":""},{"$f":"IF('1. Ordersheet'!BG443=\"\",\"\",'1. Ordersheet'!BG443)","v":"ZWO"},{"$f":"IF('1. Ordersheet'!BH443=\"\",\"\",'1. Ordersheet'!BH443)","v":""},{"$f":"IF('1. Ordersheet'!BI443=\"\",\"\",'1. Ordersheet'!BI443)","v":""},{"$f":"IF('1. Ordersheet'!BJ443=\"\",\"\",'1. Ordersheet'!BJ443)","v":""},{"$f":"IF('1. Ordersheet'!BK443=\"\",\"\",'1. Ordersheet'!BK443)","v":""},{"$f":"IF('1. Ordersheet'!BL443=\"\",\"\",'1. Ordersheet'!BL443)","v":""}]
[{"$f":"IF('1. Ordersheet'!F444=\"\",\"\",'1. Ordersheet'!F444)","v":""},{"$f":"IF('1. Ordersheet'!G444=\"\",\"\",'1. Ordersheet'!G444)","v":""},{"$f":"IF('1. Ordersheet'!H444=\"\",\"\",'1. Ordersheet'!H444)","v":""},{"$f":"IF('1. Ordersheet'!I444=\"\",\"\",'1. Ordersheet'!I444)","v":""},{"$f":"IF('1. Ordersheet'!J444=\"\",\"\",'1. Ordersheet'!J444)","v":""},{"$f":"IF('1. Ordersheet'!K444=\"\",\"\",'1. Ordersheet'!K444)","v":""},{"$f":"IF('1. Ordersheet'!L444=\"\",\"\",'1. Ordersheet'!L444)","v":""},{"$f":"IF('1. Ordersheet'!M444=\"\",\"\",'1. Ordersheet'!M444)","v":""},{"$f":"IF('1. Ordersheet'!N444=\"\",\"\",'1. Ordersheet'!N444)","v":""},{"$f":"IF('1. Ordersheet'!O444=\"\",\"\",'1. Ordersheet'!O444)","v":{"$error":"#N/A"}},{"$f":"IF('1. Ordersheet'!P444=\"\",\"\",'1. Ordersheet'!P444)","v":{"$error":"#N/A"}},{"$f":"IF('1. Ordersheet'!Q444=\"\",\"\",'1. Ordersheet'!Q444)","v":""},{"$f":"IF('1. Ordersheet'!R444=\"\",\"\",'1. Ordersheet'!R444)","v":""},{"$f":"IF('1. Ordersheet'!S444=\"\",\"\",'1. Ordersheet'!S444)","v":""},{"$f":"IF('1. Ordersheet'!V444=\"\",\"\",'1. Ordersheet'!V444)","v":""},{"$f":"IF('1. Ordersheet'!W444=\"\",\"\",'1. Ordersheet'!W444)","v":""},{"$f":"IF('1. Ordersheet'!X444=\"\",\"\",'1. Ordersheet'!X444)","v":""},{"$f":"IF('1. Ordersheet'!Y444=\"\",\"\",'1. Ordersheet'!Y444)","v":""},{"$f":"IF('1. Ordersheet'!Z444=\"\",\"\",'1. Ordersheet'!Z444)","v":""},{"$f":"IF('1. Ordersheet'!AA444=\"\",\"\",'1. Ordersheet'!AA444)","v":""},null,{"$f":"IF('1. Ordersheet'!AS444=\"\",\"\",'1. Ordersheet'!AS444)","v":""},{"$f":"IF('1. Ordersheet'!AT444=\"\",\"\",'1. Ordersheet'!AT444)","v":""},null,null,null,null,null,null,null,{"$f":"IF('1. Ordersheet'!AX444=\"\",\"\",'1. Ordersheet'!AX444)","v":""},{"$f":"IF('1. Ordersheet'!AY444=\"\",\"\",'1. Ordersheet'!AY444)","v":""},{"$f":"IF('1. Ordersheet'!AZ444=\"\",\"\",'1. Ordersheet'!AZ444)","v":""},{"$f":"IF('1. Ordersheet'!BA444=\"\",\"\",'1. Ordersheet'!BA444)","v":""},{"$f":"IF('1. Ordersheet'!BC444=\"\",\"\",'1. Ordersheet'!BC444)","v":""},{"$f":"IF('1. Ordersheet'!BD444=\"\",\"\",'1. Ordersheet'!BD444)","v":""},{"$f":"IF('1. Ordersheet'!BE444=\"\",\"\",'1. Ordersheet'!BE444)","v":""},{"$f":"IF('1. Ordersheet'!BF444=\"\",\"\",'1. Ordersheet'!BF444)","v":""},{"$f":"IF('1. Ordersheet'!BG444=\"\",\"\",'1. Ordersheet'!BG444)","v":"ZWO"},{"$f":"IF('1. Ordersheet'!BH444=\"\",\"\",'1. Ordersheet'!BH444)","v":""},{"$f":"IF('1. Ordersheet'!BI444=\"\",\"\",'1. Ordersheet'!BI444)","v":""},{"$f":"IF('1. Ordersheet'!BJ444=\"\",\"\",'1. Ordersheet'!BJ444)","v":""},{"$f":"IF('1. Ordersheet'!BK444=\"\",\"\",'1. Ordersheet'!BK444)","v":""},{"$f":"IF('1. Ordersheet'!BL444=\"\",\"\",'1. Ordersheet'!BL444)","v":""}]
[{"$f":"IF('1. Ordersheet'!F445=\"\",\"\",'1. Ordersheet'!F445)","v":""},{"$f":"IF('1. Ordersheet'!G445=\"\",\"\",'1. Ordersheet'!G445)","v":""},{"$f":"IF('1. Ordersheet'!H445=\"\",\"\",'1. Ordersheet'!H445)","v":""},{"$f":"IF('1. Ordersheet'!I445=\"\",\"\",'1. Ordersheet'!I445)","v":""},{"$f":"IF('1. Ordersheet'!J445=\"\",\"\",'1. Ordersheet'!J445)","v":""},{"$f":"IF('1. Ordersheet'!K445=\"\",\"\",'1. Ordersheet'!K445)","v":""},{"$f":"IF('1. Ordersheet'!L445=\"\",\"\",'1. Ordersheet'!L445)","v":""},{"$f":"IF('1. Ordersheet'!M445=\"\",\"\",'1. Ordersheet'!M445)","v":""},{"$f":"IF('1. Ordersheet'!N445=\"\",\"\",'1. Ordersheet'!N445)","v":""},{"$f":"IF('1. Ordersheet'!O445=\"\",\"\",'1. Ordersheet'!O445)","v":{"$error":"#N/A"}},{"$f":"IF('1. Ordersheet'!P445=\"\",\"\",'1. Ordersheet'!P445)","v":{"$error":"#N/A"}},{"$f":"IF('1. Ordersheet'!Q445=\"\",\"\",'1. Ordersheet'!Q445)","v":""},{"$f":"IF('1. Ordersheet'!R445=\"\",\"\",'1. Ordersheet'!R445)","v":""},{"$f":"IF('1. Ordersheet'!S445=\"\",\"\",'1. Ordersheet'!S445)","v":""},{"$f":"IF('1. Ordersheet'!V445=\"\",\"\",'1. Ordersheet'!V445)","v":""},{"$f":"IF('1. Ordersheet'!W445=\"\",\"\",'1. Ordersheet'!W445)","v":""},{"$f":"IF('1. Ordersheet'!X445=\"\",\"\",'1. Ordersheet'!X445)","v":""},{"$f":"IF('1. Ordersheet'!Y445=\"\",\"\",'1. Ordersheet'!Y445)","v":""},{"$f":"IF('1. Ordersheet'!Z445=\"\",\"\",'1. Ordersheet'!Z445)","v":""},{"$f":"IF('1. Ordersheet'!AA445=\"\",\"\",'1. Ordersheet'!AA445)","v":""},null,{"$f":"IF('1. Ordersheet'!AS445=\"\",\"\",'1. Ordersheet'!AS445)","v":""},{"$f":"IF('1. Ordersheet'!AT445=\"\",\"\",'1. Ordersheet'!AT445)","v":""},null,null,null,null,null,null,null,{"$f":"IF('1. Ordersheet'!AX445=\"\",\"\",'1. Ordersheet'!AX445)","v":""},{"$f":"IF('1. Ordersheet'!AY445=\"\",\"\",'1. Ordersheet'!AY445)","v":""},{"$f":"IF('1. Ordersheet'!AZ445=\"\",\"\",'1. Ordersheet'!AZ445)","v":""},{"$f":"IF('1. Ordersheet'!BA445=\"\",\"\",'1. Ordersheet'!BA445)","v":""},{"$f":"IF('1. Ordersheet'!BC445=\"\",\"\",'1. Ordersheet'!BC445)","v":""},{"$f":"IF('1. Ordersheet'!BD445=\"\",\"\",'1. Ordersheet'!BD445)","v":""},{"$f":"IF('1. Ordersheet'!BE445=\"\",\"\",'1. Ordersheet'!BE445)","v":""},{"$f":"IF('1. Ordersheet'!BF445=\"\",\"\",'1. Ordersheet'!BF445)","v":""},{"$f":"IF('1. Ordersheet'!BG445=\"\",\"\",'1. Ordersheet'!BG445)","v":"ZWO"},{"$f":"IF('1. Ordersheet'!BH445=\"\",\"\",'1. Ordersheet'!BH445)","v":""},{"$f":"IF('1. Ordersheet'!BI445=\"\",\"\",'1. Ordersheet'!BI445)","v":""},{"$f":"IF('1. Ordersheet'!BJ445=\"\",\"\",'1. Ordersheet'!BJ445)","v":""},{"$f":"IF('1. Ordersheet'!BK445=\"\",\"\",'1. Ordersheet'!BK445)","v":""},{"$f":"IF('1. Ordersheet'!BL445=\"\",\"\",'1. Ordersheet'!BL445)","v":""}]
[{"$f":"IF('1. Ordersheet'!F446=\"\",\"\",'1. Ordersheet'!F446)","v":""},{"$f":"IF('1. Ordersheet'!G446=\"\",\"\",'1. Ordersheet'!G446)","v":""},{"$f":"IF('1. Ordersheet'!H446=\"\",\"\",'1. Ordersheet'!H446)","v":""},{"$f":"IF('1. Ordersheet'!I446=\"\",\"\",'1. Ordersheet'!I446)","v":""},{"$f":"IF('1. Ordersheet'!J446=\"\",\"\",'1. Ordersheet'!J446)","v":""},{"$f":"IF('1. Ordersheet'!K446=\"\",\"\",'1. Ordersheet'!K446)","v":""},{"$f":"IF('1. Ordersheet'!L446=\"\",\"\",'1. Ordersheet'!L446)","v":""},{"$f":"IF('1. Ordersheet'!M446=\"\",\"\",'1. Ordersheet'!M446)","v":""},{"$f":"IF('1. Ordersheet'!N446=\"\",\"\",'1. Ordersheet'!N446)","v":""},{"$f":"IF('1. Ordersheet'!O446=\"\",\"\",'1. Ordersheet'!O446)","v":{"$error":"#N/A"}},{"$f":"IF('1. Ordersheet'!P446=\"\",\"\",'1. Ordersheet'!P446)","v":{"$error":"#N/A"}},{"$f":"IF('1. Ordersheet'!Q446=\"\",\"\",'1. Ordersheet'!Q446)","v":""},{"$f":"IF('1. Ordersheet'!R446=\"\",\"\",'1. Ordersheet'!R446)","v":""},{"$f":"IF('1. Ordersheet'!S446=\"\",\"\",'1. Ordersheet'!S446)","v":""},{"$f":"IF('1. Ordersheet'!V446=\"\",\"\",'1. Ordersheet'!V446)","v":""},{"$f":"IF('1. Ordersheet'!W446=\"\",\"\",'1. Ordersheet'!W446)","v":""},{"$f":"IF('1. Ordersheet'!X446=\"\",\"\",'1. Ordersheet'!X446)","v":""},{"$f":"IF('1. Ordersheet'!Y446=\"\",\"\",'1. Ordersheet'!Y446)","v":""},{"$f":"IF('1. Ordersheet'!Z446=\"\",\"\",'1. Ordersheet'!Z446)","v":""},{"$f":"IF('1. Ordersheet'!AA446=\"\",\"\",'1. Ordersheet'!AA446)","v":""},null,{"$f":"IF('1. Ordersheet'!AS446=\"\",\"\",'1. Ordersheet'!AS446)","v":""},{"$f":"IF('1. Ordersheet'!AT446=\"\",\"\",'1. Ordersheet'!AT446)","v":""},null,null,null,null,null,null,null,{"$f":"IF('1. Ordersheet'!AX446=\"\",\"\",'1. Ordersheet'!AX446)","v":""},{"$f":"IF('1. Ordersheet'!AY446=\"\",\"\",'1. Ordersheet'!AY446)","v":""},{"$f":"IF('1. Ordersheet'!AZ446=\"\",\"\",'1. Ordersheet'!AZ446)","v":""},{"$f":"IF('1. Ordersheet'!BA446=\"\",\"\",'1. Ordersheet'!BA446)","v":""},{"$f":"IF('1. Ordersheet'!BC446=\"\",\"\",'1. Ordersheet'!BC446)","v":""},{"$f":"IF('1. Ordersheet'!BD446=\"\",\"\",'1. Ordersheet'!BD446)","v":""},{"$f":"IF('1. Ordersheet'!BE446=\"\",\"\",'1. Ordersheet'!BE446)","v":""},{"$f":"IF('1. Ordersheet'!BF446=\"\",\"\",'1. Ordersheet'!BF446)","v":""},{"$f":"IF('1. Ordersheet'!BG446=\"\",\"\",'1. Ordersheet'!BG446)","v":"ZWO"},{"$f":"IF('1. Ordersheet'!BH446=\"\",\"\",'1. Ordersheet'!BH446)","v":""},{"$f":"IF('1. Ordersheet'!BI446=\"\",\"\",'1. Ordersheet'!BI446)","v":""},{"$f":"IF('1. Ordersheet'!BJ446=\"\",\"\",'1. Ordersheet'!BJ446)","v":""},{"$f":"IF('1. Ordersheet'!BK446=\"\",\"\",'1. Ordersheet'!BK446)","v":""},{"$f":"IF('1. Ordersheet'!BL446=\"\",\"\",'1. Ordersheet'!BL446)","v":""}]
[{"$f":"IF('1. Ordersheet'!F447=\"\",\"\",'1. Ordersheet'!F447)","v":""},{"$f":"IF('1. Ordersheet'!G447=\"\",\"\",'1. Ordersheet'!G447)","v":""},{"$f":"IF('1. Ordersheet'!H447=\"\",\"\",'1. Ordersheet'!H447)","v":""},{"$f":"IF('1. Ordersheet'!I447=\"\",\"\",'1. Ordersheet'!I447)","v":""},{"$f":"IF('1. Ordersheet'!J447=\"\",\"\",'1. Ordersheet'!J447)","v":""},{"$f":"IF('1. Ordersheet'!K447=\"\",\"\",'1. Ordersheet'!K447)","v":""},{"$f":"IF('1. Ordersheet'!L447=\"\",\"\",'1. Ordersheet'!L447)","v":""},{"$f":"IF('1. Ordersheet'!M447=\"\",\"\",'1. Ordersheet'!M447)","v":""},{"$f":"IF('1. Ordersheet'!N447=\"\",\"\",'1. Ordersheet'!N447)","v":""},{"$f":"IF('1. Ordersheet'!O447=\"\",\"\",'1. Ordersheet'!O447)","v":{"$error":"#N/A"}},{"$f":"IF('1. Ordersheet'!P447=\"\",\"\",'1. Ordersheet'!P447)","v":{"$error":"#N/A"}},{"$f":"IF('1. Ordersheet'!Q447=\"\",\"\",'1. Ordersheet'!Q447)","v":""},{"$f":"IF('1. Ordersheet'!R447=\"\",\"\",'1. Ordersheet'!R447)","v":""},{"$f":"IF('1. Ordersheet'!S447=\"\",\"\",'1. Ordersheet'!S447)","v":""},{"$f":"IF('1. Ordersheet'!V447=\"\",\"\",'1. Ordersheet'!V447)","v":""},{"$f":"IF('1. Ordersheet'!W447=\"\",\"\",'1. Ordersheet'!W447)","v":""},{"$f":"IF('1. Ordersheet'!X447=\"\",\"\",'1. Ordersheet'!X447)","v":""},{"$f":"IF('1. Ordersheet'!Y447=\"\",\"\",'1. Ordersheet'!Y447)","v":""},{"$f":"IF('1. Ordersheet'!Z447=\"\",\"\",'1. Ordersheet'!Z447)","v":""},{"$f":"IF('1. Ordersheet'!AA447=\"\",\"\",'1. Ordersheet'!AA447)","v":""},null,{"$f":"IF('1. Ordersheet'!AS447=\"\",\"\",'1. Ordersheet'!AS447)","v":""},{"$f":"IF('1. Ordersheet'!AT447=\"\",\"\",'1. Ordersheet'!AT447)","v":""},null,null,null,null,null,null,null,{"$f":"IF('1. Ordersheet'!AX447=\"\",\"\",'1. Ordersheet'!AX447)","v":""},{"$f":"IF('1. Ordersheet'!AY447=\"\",\"\",'1. Ordersheet'!AY447)","v":""},{"$f":"IF('1. Ordersheet'!AZ447=\"\",\"\",'1. Ordersheet'!AZ447)","v":""},{"$f":"IF('1. Ordersheet'!BA447=\"\",\"\",'1. Ordersheet'!BA447)","v":""},{"$f":"IF('1. Ordersheet'!BC447=\"\",\"\",'1. Ordersheet'!BC447)","v":""},{"$f":"IF('1. Ordersheet'!BD447=\"\",\"\",'1. Ordersheet'!BD447)","v":""},{"$f":"IF('1. Ordersheet'!BE447=\"\",\"\",'1. Ordersheet'!BE447)","v":""},{"$f":"IF('1. Ordersheet'!BF447=\"\",\"\",'1. Ordersheet'!BF447)","v":""},{"$f":"IF('1. Ordersheet'!BG447=\"\",\"\",'1. Ordersheet'!BG447)","v":"ZWO"},{"$f":"IF('1. Ordersheet'!BH447=\"\",\"\",'1. Ordersheet'!BH447)","v":""},{"$f":"IF('1. Ordersheet'!BI447=\"\",\"\",'1. Ordersheet'!BI447)","v":""},{"$f":"IF('1. Ordersheet'!BJ447=\"\",\"\",'1. Ordersheet'!BJ447)","v":""},{"$f":"IF('1. Ordersheet'!BK447=\"\",\"\",'1. Ordersheet'!BK447)","v":""},{"$f":"IF('1. Ordersheet'!BL447=\"\",\"\",'1. Ordersheet'!BL447)","v":""}]
[{"$f":"IF('1. Ordersheet'!F448=\"\",\"\",'1. Ordersheet'!F448)","v":""},{"$f":"IF('1. Ordersheet'!G448=\"\",\"\",'1. Ordersheet'!G448)","v":""},{"$f":"IF('1. Ordersheet'!H448=\"\",\"\",'1. Ordersheet'!H448)","v":""},{"$f":"IF('1. Ordersheet'!I448=\"\",\"\",'1. Ordersheet'!I448)","v":""},{"$f":"IF('1. Ordersheet'!J448=\"\",\"\",'1. Ordersheet'!J448)","v":""},{"$f":"IF('1. Ordersheet'!K448=\"\",\"\",'1. Ordersheet'!K448)","v":""},{"$f":"IF('1. Ordersheet'!L448=\"\",\"\",'1. Ordersheet'!L448)","v":""},{"$f":"IF('1. Ordersheet'!M448=\"\",\"\",'1. Ordersheet'!M448)","v":""},{"$f":"IF('1. Ordersheet'!N448=\"\",\"\",'1. Ordersheet'!N448)","v":""},{"$f":"IF('1. Ordersheet'!O448=\"\",\"\",'1. Ordersheet'!O448)","v":{"$error":"#N/A"}},{"$f":"IF('1. Ordersheet'!P448=\"\",\"\",'1. Ordersheet'!P448)","v":{"$error":"#N/A"}},{"$f":"IF('1. Ordersheet'!Q448=\"\",\"\",'1. Ordersheet'!Q448)","v":""},{"$f":"IF('1. Ordersheet'!R448=\"\",\"\",'1. Ordersheet'!R448)","v":""},{"$f":"IF('1. Ordersheet'!S448=\"\",\"\",'1. Ordersheet'!S448)","v":""},{"$f":"IF('1. Ordersheet'!V448=\"\",\"\",'1. Ordersheet'!V448)","v":""},{"$f":"IF('1. Ordersheet'!W448=\"\",\"\",'1. Ordersheet'!W448)","v":""},{"$f":"IF('1. Ordersheet'!X448=\"\",\"\",'1. Ordersheet'!X448)","v":""},{"$f":"IF('1. Ordersheet'!Y448=\"\",\"\",'1. Ordersheet'!Y448)","v":""},{"$f":"IF('1. Ordersheet'!Z448=\"\",\"\",'1. Ordersheet'!Z448)","v":""},{"$f":"IF('1. Ordersheet'!AA448=\"\",\"\",'1. Ordersheet'!AA448)","v":""},null,{"$f":"IF('1. Ordersheet'!AS448=\"\",\"\",'1. Ordersheet'!AS448)","v":""},{"$f":"IF('1. Ordersheet'!AT448=\"\",\"\",'1. Ordersheet'!AT448)","v":""},null,null,null,null,null,null,null,{"$f":"IF('1. Ordersheet'!AX448=\"\",\"\",'1. Ordersheet'!AX448)","v":""},{"$f":"IF('1. Ordersheet'!AY448=\"\",\"\",'1. Ordersheet'!AY448)","v":""},{"$f":"IF('1. Ordersheet'!AZ448=\"\",\"\",'1. Ordersheet'!AZ448)","v":""},{"$f":"IF('1. Ordersheet'!BA448=\"\",\"\",'1. Ordersheet'!BA448)","v":""},{"$f":"IF('1. Ordersheet'!BC448=\"\",\"\",'1. Ordersheet'!BC448)","v":""},{"$f":"IF('1. Ordersheet'!BD448=\"\",\"\",'1. Ordersheet'!BD448)","v":""},{"$f":"IF('1. Ordersheet'!BE448=\"\",\"\",'1. Ordersheet'!BE448)","v":""},{"$f":"IF('1. Ordersheet'!BF448=\"\",\"\",'1. Ordersheet'!BF448)","v":""},{"$f":"IF('1. Ordersheet'!BG448=\"\",\"\",'1. Ordersheet'!BG448)","v":"ZWO"},{"$f":"IF('1. Ordersheet'!BH448=\"\",\"\",'1. Ordersheet'!BH448)","v":""},{"$f":"IF('1. Ordersheet'!BI448=\"\",\"\",'1. Ordersheet'!BI448)","v":""},{"$f":"IF('1. Ordersheet'!BJ448=\"\",\"\",'1. Ordersheet'!BJ448)","v":""},{"$f":"IF('1. Ordersheet'!BK448=\"\",\"\",'1. Ordersheet'!BK448)","v":""},{"$f":"IF('1. Ordersheet'!BL448=\"\",\"\",'1. Ordersheet'!BL448)","v":""}]
[{"$f":"IF('1. Ordersheet'!F449=\"\",\"\",'1. Ordersheet'!F449)","v":""},{"$f":"IF('1. Ordersheet'!G449=\"\",\"\",'1. Ordersheet'!G449)","v":""},{"$f":"IF('1. Ordersheet'!H449=\"\",\"\",'1. Ordersheet'!H449)","v":""},{"$f":"IF('1. Ordersheet'!I449=\"\",\"\",'1. Ordersheet'!I449)","v":""},{"$f":"IF('1. Ordersheet'!J449=\"\",\"\",'1. Ordersheet'!J449)","v":""},{"$f":"IF('1. Ordersheet'!K449=\"\",\"\",'1. Ordersheet'!K449)","v":""},{"$f":"IF('1. Ordersheet'!L449=\"\",\"\",'1. Ordersheet'!L449)","v":""},{"$f":"IF('1. Ordersheet'!M449=\"\",\"\",'1. Ordersheet'!M449)","v":""},{"$f":"IF('1. Ordersheet'!N449=\"\",\"\",'1. Ordersheet'!N449)","v":""},{"$f":"IF('1. Ordersheet'!O449=\"\",\"\",'1. Ordersheet'!O449)","v":{"$error":"#N/A"}},{"$f":"IF('1. Ordersheet'!P449=\"\",\"\",'1. Ordersheet'!P449)","v":{"$error":"#N/A"}},{"$f":"IF('1. Ordersheet'!Q449=\"\",\"\",'1. Ordersheet'!Q449)","v":""},{"$f":"IF('1. Ordersheet'!R449=\"\",\"\",'1. Ordersheet'!R449)","v":""},{"$f":"IF('1. Ordersheet'!S449=\"\",\"\",'1. Ordersheet'!S449)","v":""},{"$f":"IF('1. Ordersheet'!V449=\"\",\"\",'1. Ordersheet'!V449)","v":""},{"$f":"IF('1. Ordersheet'!W449=\"\",\"\",'1. Ordersheet'!W449)","v":""},{"$f":"IF('1. Ordersheet'!X449=\"\",\"\",'1. Ordersheet'!X449)","v":""},{"$f":"IF('1. Ordersheet'!Y449=\"\",\"\",'1. Ordersheet'!Y449)","v":""},{"$f":"IF('1. Ordersheet'!Z449=\"\",\"\",'1. Ordersheet'!Z449)","v":""},{"$f":"IF('1. Ordersheet'!AA449=\"\",\"\",'1. Ordersheet'!AA449)","v":""},null,{"$f":"IF('1. Ordersheet'!AS449=\"\",\"\",'1. Ordersheet'!AS449)","v":""},{"$f":"IF('1. Ordersheet'!AT449=\"\",\"\",'1. Ordersheet'!AT449)","v":""},null,null,null,null,null,null,null,{"$f":"IF('1. Ordersheet'!AX449=\"\",\"\",'1. Ordersheet'!AX449)","v":""},{"$f":"IF('1. Ordersheet'!AY449=\"\",\"\",'1. Ordersheet'!AY449)","v":""},{"$f":"IF('1. Ordersheet'!AZ449=\"\",\"\",'1. Ordersheet'!AZ449)","v":""},{"$f":"IF('1. Ordersheet'!BA449=\"\",\"\",'1. Ordersheet'!BA449)","v":""},{"$f":"IF('1. Ordersheet'!BC449=\"\",\"\",'1. Ordersheet'!BC449)","v":""},{"$f":"IF('1. Ordersheet'!BD449=\"\",\"\",'1. Ordersheet'!BD449)","v":""},{"$f":"IF('1. Ordersheet'!BE449=\"\",\"\",'1. Ordersheet'!BE449)","v":""},{"$f":"IF('1. Ordersheet'!BF449=\"\",\"\",'1. Ordersheet'!BF449)","v":""},{"$f":"IF('1. Ordersheet'!BG449=\"\",\"\",'1. Ordersheet'!BG449)","v":"ZWO"},{"$f":"IF('1. Ordersheet'!BH449=\"\",\"\",'1. Ordersheet'!BH449)","v":""},{"$f":"IF('1. Ordersheet'!BI449=\"\",\"\",'1. Ordersheet'!BI449)","v":""},{"$f":"IF('1. Ordersheet'!BJ449=\"\",\"\",'1. Ordersheet'!BJ449)","v":""},{"$f":"IF('1. Ordersheet'!BK449=\"\",\"\",'1. Ordersheet'!BK449)","v":""},{"$f":"IF('1. Ordersheet'!BL449=\"\",\"\",'1. Ordersheet'!BL449)","v":""}]
[{"$f":"IF('1. Ordersheet'!F450=\"\",\"\",'1. Ordersheet'!F450)","v":""},{"$f":"IF('1. Ordersheet'!G450=\"\",\"\",'1. Ordersheet'!G450)","v":""},{"$f":"IF('1. Ordersheet'!H450=\"\",\"\",'1. Ordersheet'!H450)","v":""},{"$f":"IF('1. Ordersheet'!I450=\"\",\"\",'1. Ordersheet'!I450)","v":""},{"$f":"IF('1. Ordersheet'!J450=\"\",\"\",'1. Ordersheet'!J450)","v":""},{"$f":"IF('1. Ordersheet'!K450=\"\",\"\",'1. Ordersheet'!K450)","v":""},{"$f":"IF('1. Ordersheet'!L450=\"\",\"\",'1. Ordersheet'!L450)","v":""},{"$f":"IF('1. Ordersheet'!M450=\"\",\"\",'1. Ordersheet'!M450)","v":""},{"$f":"IF('1. Ordersheet'!N450=\"\",\"\",'1. Ordersheet'!N450)","v":""},{"$f":"IF('1. Ordersheet'!O450=\"\",\"\",'1. Ordersheet'!O450)","v":{"$error":"#N/A"}},{"$f":"IF('1. Ordersheet'!P450=\"\",\"\",'1. Ordersheet'!P450)","v":{"$error":"#N/A"}},{"$f":"IF('1. Ordersheet'!Q450=\"\",\"\",'1. Ordersheet'!Q450)","v":""},{"$f":"IF('1. Ordersheet'!R450=\"\",\"\",'1. Ordersheet'!R450)","v":""},{"$f":"IF('1. Ordersheet'!S450=\"\",\"\",'1. Ordersheet'!S450)","v":""},{"$f":"IF('1. Ordersheet'!V450=\"\",\"\",'1. Ordersheet'!V450)","v":""},{"$f":"IF('1. Ordersheet'!W450=\"\",\"\",'1. Ordersheet'!W450)","v":""},{"$f":"IF('1. Ordersheet'!X450=\"\",\"\",'1. Ordersheet'!X450)","v":""},{"$f":"IF('1. Ordersheet'!Y450=\"\",\"\",'1. Ordersheet'!Y450)","v":""},{"$f":"IF('1. Ordersheet'!Z450=\"\",\"\",'1. Ordersheet'!Z450)","v":""},{"$f":"IF('1. Ordersheet'!AA450=\"\",\"\",'1. Ordersheet'!AA450)","v":""},null,{"$f":"IF('1. Ordersheet'!AS450=\"\",\"\",'1. Ordersheet'!AS450)","v":""},{"$f":"IF('1. Ordersheet'!AT450=\"\",\"\",'1. Ordersheet'!AT450)","v":""},null,null,null,null,null,null,null,{"$f":"IF('1. Ordersheet'!AX450=\"\",\"\",'1. Ordersheet'!AX450)","v":""},{"$f":"IF('1. Ordersheet'!AY450=\"\",\"\",'1. Ordersheet'!AY450)","v":""},{"$f":"IF('1. Ordersheet'!AZ450=\"\",\"\",'1. Ordersheet'!AZ450)","v":""},{"$f":"IF('1. Ordersheet'!BA450=\"\",\"\",'1. Ordersheet'!BA450)","v":""},{"$f":"IF('1. Ordersheet'!BC450=\"\",\"\",'1. Ordersheet'!BC450)","v":""},{"$f":"IF('1. Ordersheet'!BD450=\"\",\"\",'1. Ordersheet'!BD450)","v":""},{"$f":"IF('1. Ordersheet'!BE450=\"\",\"\",'1. Ordersheet'!BE450)","v":""},{"$f":"IF('1. Ordersheet'!BF450=\"\",\"\",'1. Ordersheet'!BF450)","v":""},{"$f":"IF('1. Ordersheet'!BG450=\"\",\"\",'1. Ordersheet'!BG450)","v":"ZWO"},{"$f":"IF('1. Ordersheet'!BH450=\"\",\"\",'1. Ordersheet'!BH450)","v":""},{"$f":"IF('1. Ordersheet'!BI450=\"\",\"\",'1. Ordersheet'!BI450)","v":""},{"$f":"IF('1. Ordersheet'!BJ450=\"\",\"\",'1. Ordersheet'!BJ450)","v":""},{"$f":"IF('1. Ordersheet'!BK450=\"\",\"\",'1. Ordersheet'!BK450)","v":""},{"$f":"IF('1. Ordersheet'!BL450=\"\",\"\",'1. Ordersheet'!BL450)","v":""}]
[{"$f":"IF('1. Ordersheet'!F451=\"\",\"\",'1. Ordersheet'!F451)","v":""},{"$f":"IF('1. Ordersheet'!G451=\"\",\"\",'1. Ordersheet'!G451)","v":""},{"$f":"IF('1. Ordersheet'!H451=\"\",\"\",'1. Ordersheet'!H451)","v":""},{"$f":"IF('1. Ordersheet'!I451=\"\",\"\",'1. Ordersheet'!I451)","v":""},{"$f":"IF('1. Ordersheet'!J451=\"\",\"\",'1. Ordersheet'!J451)","v":""},{"$f":"IF('1. Ordersheet'!K451=\"\",\"\",'1. Ordersheet'!K451)","v":""},{"$f":"IF('1. Ordersheet'!L451=\"\",\"\",'1. Ordersheet'!L451)","v":""},{"$f":"IF('1. Ordersheet'!M451=\"\",\"\",'1. Ordersheet'!M451)","v":""},{"$f":"IF('1. Ordersheet'!N451=\"\",\"\",'1. Ordersheet'!N451)","v":""},{"$f":"IF('1. Ordersheet'!O451=\"\",\"\",'1. Ordersheet'!O451)","v":{"$error":"#N/A"}},{"$f":"IF('1. Ordersheet'!P451=\"\",\"\",'1. Ordersheet'!P451)","v":{"$error":"#N/A"}},{"$f":"IF('1. Ordersheet'!Q451=\"\",\"\",'1. Ordersheet'!Q451)","v":""},{"$f":"IF('1. Ordersheet'!R451=\"\",\"\",'1. Ordersheet'!R451)","v":""},{"$f":"IF('1. Ordersheet'!S451=\"\",\"\",'1. Ordersheet'!S451)","v":""},{"$f":"IF('1. Ordersheet'!V451=\"\",\"\",'1. Ordersheet'!V451)","v":""},{"$f":"IF('1. Ordersheet'!W451=\"\",\"\",'1. Ordersheet'!W451)","v":""},{"$f":"IF('1. Ordersheet'!X451=\"\",\"\",'1. Ordersheet'!X451)","v":""},{"$f":"IF('1. Ordersheet'!Y451=\"\",\"\",'1. Ordersheet'!Y451)","v":""},{"$f":"IF('1. Ordersheet'!Z451=\"\",\"\",'1. Ordersheet'!Z451)","v":""},{"$f":"IF('1. Ordersheet'!AA451=\"\",\"\",'1. Ordersheet'!AA451)","v":""},null,{"$f":"IF('1. Ordersheet'!AS451=\"\",\"\",'1. Ordersheet'!AS451)","v":""},{"$f":"IF('1. Ordersheet'!AT451=\"\",\"\",'1. Ordersheet'!AT451)","v":""},null,null,null,null,null,null,null,{"$f":"IF('1. Ordersheet'!AX451=\"\",\"\",'1. Ordersheet'!AX451)","v":""},{"$f":"IF('1. Ordersheet'!AY451=\"\",\"\",'1. Ordersheet'!AY451)","v":""},{"$f":"IF('1. Ordersheet'!AZ451=\"\",\"\",'1. Ordersheet'!AZ451)","v":""},{"$f":"IF('1. Ordersheet'!BA451=\"\",\"\",'1. Ordersheet'!BA451)","v":""},{"$f":"IF('1. Ordersheet'!BC451=\"\",\"\",'1. Ordersheet'!BC451)","v":""},{"$f":"IF('1. Ordersheet'!BD451=\"\",\"\",'1. Ordersheet'!BD451)","v":""},{"$f":"IF('1. Ordersheet'!BE451=\"\",\"\",'1. Ordersheet'!BE451)","v":""},{"$f":"IF('1. Ordersheet'!BF451=\"\",\"\",'1. Ordersheet'!BF451)","v":""},{"$f":"IF('1. Ordersheet'!BG451=\"\",\"\",'1. Ordersheet'!BG451)","v":"ZWO"},{"$f":"IF('1. Ordersheet'!BH451=\"\",\"\",'1. Ordersheet'!BH451)","v":""},{"$f":"IF('1. Ordersheet'!BI451=\"\",\"\",'1. Ordersheet'!BI451)","v":""},{"$f":"IF('1. Ordersheet'!BJ451=\"\",\"\",'1. Ordersheet'!BJ451)","v":""},{"$f":"IF('1. Ordersheet'!BK451=\"\",\"\",'1. Ordersheet'!BK451)","v":""},{"$f":"IF('1. Ordersheet'!BL451=\"\",\"\",'1. Ordersheet'!BL451)","v":""}]
[{"$f":"IF('1. Ordersheet'!F452=\"\",\"\",'1. Ordersheet'!F452)","v":""},{"$f":"IF('1. Ordersheet'!G452=\"\",\"\",'1. Ordersheet'!G452)","v":""},{"$f":"IF('1. Ordersheet'!H452=\"\",\"\",'1. Ordersheet'!H452)","v":""},{"$f":"IF('1. Ordersheet'!I452=\"\",\"\",'1. Ordersheet'!I452)","v":""},{"$f":"IF('1. Ordersheet'!J452=\"\",\"\",'1. Ordersheet'!J452)","v":""},{"$f":"IF('1. Ordersheet'!K452=\"\",\"\",'1. Ordersheet'!K452)","v":""},{"$f":"IF('1. Ordersheet'!L452=\"\",\"\",'1. Ordersheet'!L452)","v":""},{"$f":"IF('1. Ordersheet'!M452=\"\",\"\",'1. Ordersheet'!M452)","v":""},{"$f":"IF('1. Ordersheet'!N452=\"\",\"\",'1. Ordersheet'!N452)","v":""},{"$f":"IF('1. Ordersheet'!O452=\"\",\"\",'1. Ordersheet'!O452)","v":{"$error":"#N/A"}},{"$f":"IF('1. Ordersheet'!P452=\"\",\"\",'1. Ordersheet'!P452)","v":{"$error":"#N/A"}},{"$f":"IF('1. Ordersheet'!Q452=\"\",\"\",'1. Ordersheet'!Q452)","v":""},{"$f":"IF('1. Ordersheet'!R452=\"\",\"\",'1. Ordersheet'!R452)","v":""},{"$f":"IF('1. Ordersheet'!S452=\"\",\"\",'1. Ordersheet'!S452)","v":""},{"$f":"IF('1. Ordersheet'!V452=\"\",\"\",'1. Ordersheet'!V452)","v":""},{"$f":"IF('1. Ordersheet'!W452=\"\",\"\",'1. Ordersheet'!W452)","v":""},{"$f":"IF('1. Ordersheet'!X452=\"\",\"\",'1. Ordersheet'!X452)","v":""},{"$f":"IF('1. Ordersheet'!Y452=\"\",\"\",'1. Ordersheet'!Y452)","v":""},{"$f":"IF('1. Ordersheet'!Z452=\"\",\"\",'1. Ordersheet'!Z452)","v":""},{"$f":"IF('1. Ordersheet'!AA452=\"\",\"\",'1. Ordersheet'!AA452)","v":""},null,{"$f":"IF('1. Ordersheet'!AS452=\"\",\"\",'1. Ordersheet'!AS452)","v":""},{"$f":"IF('1. Ordersheet'!AT452=\"\",\"\",'1. Ordersheet'!AT452)","v":""},null,null,null,null,null,null,null,{"$f":"IF('1. Ordersheet'!AX452=\"\",\"\",'1. Ordersheet'!AX452)","v":""},{"$f":"IF('1. Ordersheet'!AY452=\"\",\"\",'1. Ordersheet'!AY452)","v":""},{"$f":"IF('1. Ordersheet'!AZ452=\"\",\"\",'1. Ordersheet'!AZ452)","v":""},{"$f":"IF('1. Ordersheet'!BA452=\"\",\"\",'1. Ordersheet'!BA452)","v":""},{"$f":"IF('1. Ordersheet'!BC452=\"\",\"\",'1. Ordersheet'!BC452)","v":""},{"$f":"IF('1. Ordersheet'!BD452=\"\",\"\",'1. Ordersheet'!BD452)","v":""},{"$f":"IF('1. Ordersheet'!BE452=\"\",\"\",'1. Ordersheet'!BE452)","v":""},{"$f":"IF('1. Ordersheet'!BF452=\"\",\"\",'1. Ordersheet'!BF452)","v":""},{"$f":"IF('1. Ordersheet'!BG452=\"\",\"\",'1. Ordersheet'!BG452)","v":"ZWO"},{"$f":"IF('1. Ordersheet'!BH452=\"\",\"\",'1. Ordersheet'!BH452)","v":""},{"$f":"IF('1. Ordersheet'!BI452=\"\",\"\",'1. Ordersheet'!BI452)","v":""},{"$f":"IF('1. Ordersheet'!BJ452=\"\",\"\",'1. Ordersheet'!BJ452)","v":""},{"$f":"IF('1. Ordersheet'!BK452=\"\",\"\",'1. Ordersheet'!BK452)","v":""},{"$f":"IF('1. Ordersheet'!BL452=\"\",\"\",'1. Ordersheet'!BL452)","v":""}]
[{"$f":"IF('1. Ordersheet'!F453=\"\",\"\",'1. Ordersheet'!F453)","v":""},{"$f":"IF('1. Ordersheet'!G453=\"\",\"\",'1. Ordersheet'!G453)","v":""},{"$f":"IF('1. Ordersheet'!H453=\"\",\"\",'1. Ordersheet'!H453)","v":""},{"$f":"IF('1. Ordersheet'!I453=\"\",\"\",'1. Ordersheet'!I453)","v":""},{"$f":"IF('1. Ordersheet'!J453=\"\",\"\",'1. Ordersheet'!J453)","v":""},{"$f":"IF('1. Ordersheet'!K453=\"\",\"\",'1. Ordersheet'!K453)","v":""},{"$f":"IF('1. Ordersheet'!L453=\"\",\"\",'1. Ordersheet'!L453)","v":""},{"$f":"IF('1. Ordersheet'!M453=\"\",\"\",'1. Ordersheet'!M453)","v":""},{"$f":"IF('1. Ordersheet'!N453=\"\",\"\",'1. Ordersheet'!N453)","v":""},{"$f":"IF('1. Ordersheet'!O453=\"\",\"\",'1. Ordersheet'!O453)","v":{"$error":"#N/A"}},{"$f":"IF('1. Ordersheet'!P453=\"\",\"\",'1. Ordersheet'!P453)","v":{"$error":"#N/A"}},{"$f":"IF('1. Ordersheet'!Q453=\"\",\"\",'1. Ordersheet'!Q453)","v":""},{"$f":"IF('1. Ordersheet'!R453=\"\",\"\",'1. Ordersheet'!R453)","v":""},{"$f":"IF('1. Ordersheet'!S453=\"\",\"\",'1. Ordersheet'!S453)","v":""},{"$f":"IF('1. Ordersheet'!V453=\"\",\"\",'1. Ordersheet'!V453)","v":""},{"$f":"IF('1. Ordersheet'!W453=\"\",\"\",'1. Ordersheet'!W453)","v":""},{"$f":"IF('1. Ordersheet'!X453=\"\",\"\",'1. Ordersheet'!X453)","v":""},{"$f":"IF('1. Ordersheet'!Y453=\"\",\"\",'1. Ordersheet'!Y453)","v":""},{"$f":"IF('1. Ordersheet'!Z453=\"\",\"\",'1. Ordersheet'!Z453)","v":""},{"$f":"IF('1. Ordersheet'!AA453=\"\",\"\",'1. Ordersheet'!AA453)","v":""},null,{"$f":"IF('1. Ordersheet'!AS453=\"\",\"\",'1. Ordersheet'!AS453)","v":""},{"$f":"IF('1. Ordersheet'!AT453=\"\",\"\",'1. Ordersheet'!AT453)","v":""},null,null,null,null,null,null,null,{"$f":"IF('1. Ordersheet'!AX453=\"\",\"\",'1. Ordersheet'!AX453)","v":""},{"$f":"IF('1. Ordersheet'!AY453=\"\",\"\",'1. Ordersheet'!AY453)","v":""},{"$f":"IF('1. Ordersheet'!AZ453=\"\",\"\",'1. Ordersheet'!AZ453)","v":""},{"$f":"IF('1. Ordersheet'!BA453=\"\",\"\",'1. Ordersheet'!BA453)","v":""},{"$f":"IF('1. Ordersheet'!BC453=\"\",\"\",'1. Ordersheet'!BC453)","v":""},{"$f":"IF('1. Ordersheet'!BD453=\"\",\"\",'1. Ordersheet'!BD453)","v":""},{"$f":"IF('1. Ordersheet'!BE453=\"\",\"\",'1. Ordersheet'!BE453)","v":""},{"$f":"IF('1. Ordersheet'!BF453=\"\",\"\",'1. Ordersheet'!BF453)","v":""},{"$f":"IF('1. Ordersheet'!BG453=\"\",\"\",'1. Ordersheet'!BG453)","v":"ZWO"},{"$f":"IF('1. Ordersheet'!BH453=\"\",\"\",'1. Ordersheet'!BH453)","v":""},{"$f":"IF('1. Ordersheet'!BI453=\"\",\"\",'1. Ordersheet'!BI453)","v":""},{"$f":"IF('1. Ordersheet'!BJ453=\"\",\"\",'1. Ordersheet'!BJ453)","v":""},{"$f":"IF('1. Ordersheet'!BK453=\"\",\"\",'1. Ordersheet'!BK453)","v":""},{"$f":"IF('1. Ordersheet'!BL453=\"\",\"\",'1. Ordersheet'!BL453)","v":""}]
[{"$f":"IF('1. Ordersheet'!F454=\"\",\"\",'1. Ordersheet'!F454)","v":""},{"$f":"IF('1. Ordersheet'!G454=\"\",\"\",'1. Ordersheet'!G454)","v":""},{"$f":"IF('1. Ordersheet'!H454=\"\",\"\",'1. Ordersheet'!H454)","v":""},{"$f":"IF('1. Ordersheet'!I454=\"\",\"\",'1. Ordersheet'!I454)","v":""},{"$f":"IF('1. Ordersheet'!J454=\"\",\"\",'1. Ordersheet'!J454)","v":""},{"$f":"IF('1. Ordersheet'!K454=\"\",\"\",'1. Ordersheet'!K454)","v":""},{"$f":"IF('1. Ordersheet'!L454=\"\",\"\",'1. Ordersheet'!L454)","v":""},{"$f":"IF('1. Ordersheet'!M454=\"\",\"\",'1. Ordersheet'!M454)","v":""},{"$f":"IF('1. Ordersheet'!N454=\"\",\"\",'1. Ordersheet'!N454)","v":""},{"$f":"IF('1. Ordersheet'!O454=\"\",\"\",'1. Ordersheet'!O454)","v":{"$error":"#N/A"}},{"$f":"IF('1. Ordersheet'!P454=\"\",\"\",'1. Ordersheet'!P454)","v":{"$error":"#N/A"}},{"$f":"IF('1. Ordersheet'!Q454=\"\",\"\",'1. Ordersheet'!Q454)","v":""},{"$f":"IF('1. Ordersheet'!R454=\"\",\"\",'1. Ordersheet'!R454)","v":""},{"$f":"IF('1. Ordersheet'!S454=\"\",\"\",'1. Ordersheet'!S454)","v":""},{"$f":"IF('1. Ordersheet'!V454=\"\",\"\",'1. Ordersheet'!V454)","v":""},{"$f":"IF('1. Ordersheet'!W454=\"\",\"\",'1. Ordersheet'!W454)","v":""},{"$f":"IF('1. Ordersheet'!X454=\"\",\"\",'1. Ordersheet'!X454)","v":""},{"$f":"IF('1. Ordersheet'!Y454=\"\",\"\",'1. Ordersheet'!Y454)","v":""},{"$f":"IF('1. Ordersheet'!Z454=\"\",\"\",'1. Ordersheet'!Z454)","v":""},{"$f":"IF('1. Ordersheet'!AA454=\"\",\"\",'1. Ordersheet'!AA454)","v":""},null,{"$f":"IF('1. Ordersheet'!AS454=\"\",\"\",'1. Ordersheet'!AS454)","v":""},{"$f":"IF('1. Ordersheet'!AT454=\"\",\"\",'1. Ordersheet'!AT454)","v":""},null,null,null,null,null,null,null,{"$f":"IF('1. Ordersheet'!AX454=\"\",\"\",'1. Ordersheet'!AX454)","v":""},{"$f":"IF('1. Ordersheet'!AY454=\"\",\"\",'1. Ordersheet'!AY454)","v":""},{"$f":"IF('1. Ordersheet'!AZ454=\"\",\"\",'1. Ordersheet'!AZ454)","v":""},{"$f":"IF('1. Ordersheet'!BA454=\"\",\"\",'1. Ordersheet'!BA454)","v":""},{"$f":"IF('1. Ordersheet'!BC454=\"\",\"\",'1. Ordersheet'!BC454)","v":""},{"$f":"IF('1. Ordersheet'!BD454=\"\",\"\",'1. Ordersheet'!BD454)","v":""},{"$f":"IF('1. Ordersheet'!BE454=\"\",\"\",'1. Ordersheet'!BE454)","v":""},{"$f":"IF('1. Ordersheet'!BF454=\"\",\"\",'1. Ordersheet'!BF454)","v":""},{"$f":"IF('1. Ordersheet'!BG454=\"\",\"\",'1. Ordersheet'!BG454)","v":"ZWO"},{"$f":"IF('1. Ordersheet'!BH454=\"\",\"\",'1. Ordersheet'!BH454)","v":""},{"$f":"IF('1. Ordersheet'!BI454=\"\",\"\",'1. Ordersheet'!BI454)","v":""},{"$f":"IF('1. Ordersheet'!BJ454=\"\",\"\",'1. Ordersheet'!BJ454)","v":""},{"$f":"IF('1. Ordersheet'!BK454=\"\",\"\",'1. Ordersheet'!BK454)","v":""},{"$f":"IF('1. Ordersheet'!BL454=\"\",\"\",'1. Ordersheet'!BL454)","v":""}]
[{"$f":"IF('1. Ordersheet'!F455=\"\",\"\",'1. Ordersheet'!F455)","v":""},{"$f":"IF('1. Ordersheet'!G455=\"\",\"\",'1. Ordersheet'!G455)","v":""},{"$f":"IF('1. Ordersheet'!H455=\"\",\"\",'1. Ordersheet'!H455)","v":""},{"$f":"IF('1. Ordersheet'!I455=\"\",\"\",'1. Ordersheet'!I455)","v":""},{"$f":"IF('1. Ordersheet'!J455=\"\",\"\",'1. Ordersheet'!J455)","v":""},{"$f":"IF('1. Ordersheet'!K455=\"\",\"\",'1. Ordersheet'!K455)","v":""},{"$f":"IF('1. Ordersheet'!L455=\"\",\"\",'1. Ordersheet'!L455)","v":""},{"$f":"IF('1. Ordersheet'!M455=\"\",\"\",'1. Ordersheet'!M455)","v":""},{"$f":"IF('1. Ordersheet'!N455=\"\",\"\",'1. Ordersheet'!N455)","v":""},{"$f":"IF('1. Ordersheet'!O455=\"\",\"\",'1. Ordersheet'!O455)","v":{"$error":"#N/A"}},{"$f":"IF('1. Ordersheet'!P455=\"\",\"\",'1. Ordersheet'!P455)","v":{"$error":"#N/A"}},{"$f":"IF('1. Ordersheet'!Q455=\"\",\"\",'1. Ordersheet'!Q455)","v":""},{"$f":"IF('1. Ordersheet'!R455=\"\",\"\",'1. Ordersheet'!R455)","v":""},{"$f":"IF('1. Ordersheet'!S455=\"\",\"\",'1. Ordersheet'!S455)","v":""},{"$f":"IF('1. Ordersheet'!V455=\"\",\"\",'1. Ordersheet'!V455)","v":""},{"$f":"IF('1. Ordersheet'!W455=\"\",\"\",'1. Ordersheet'!W455)","v":""},{"$f":"IF('1. Ordersheet'!X455=\"\",\"\",'1. Ordersheet'!X455)","v":""},{"$f":"IF('1. Ordersheet'!Y455=\"\",\"\",'1. Ordersheet'!Y455)","v":""},{"$f":"IF('1. Ordersheet'!Z455=\"\",\"\",'1. Ordersheet'!Z455)","v":""},{"$f":"IF('1. Ordersheet'!AA455=\"\",\"\",'1. Ordersheet'!AA455)","v":""},null,{"$f":"IF('1. Ordersheet'!AS455=\"\",\"\",'1. Ordersheet'!AS455)","v":""},{"$f":"IF('1. Ordersheet'!AT455=\"\",\"\",'1. Ordersheet'!AT455)","v":""},null,null,null,null,null,null,null,{"$f":"IF('1. Ordersheet'!AX455=\"\",\"\",'1. Ordersheet'!AX455)","v":""},{"$f":"IF('1. Ordersheet'!AY455=\"\",\"\",'1. Ordersheet'!AY455)","v":""},{"$f":"IF('1. Ordersheet'!AZ455=\"\",\"\",'1. Ordersheet'!AZ455)","v":""},{"$f":"IF('1. Ordersheet'!BA455=\"\",\"\",'1. Ordersheet'!BA455)","v":""},{"$f":"IF('1. Ordersheet'!BC455=\"\",\"\",'1. Ordersheet'!BC455)","v":""},{"$f":"IF('1. Ordersheet'!BD455=\"\",\"\",'1. Ordersheet'!BD455)","v":""},{"$f":"IF('1. Ordersheet'!BE455=\"\",\"\",'1. Ordersheet'!BE455)","v":""},{"$f":"IF('1. Ordersheet'!BF455=\"\",\"\",'1. Ordersheet'!BF455)","v":""},{"$f":"IF('1. Ordersheet'!BG455=\"\",\"\",'1. Ordersheet'!BG455)","v":"ZWO"},{"$f":"IF('1. Ordersheet'!BH455=\"\",\"\",'1. Ordersheet'!BH455)","v":""},{"$f":"IF('1. Ordersheet'!BI455=\"\",\"\",'1. Ordersheet'!BI455)","v":""},{"$f":"IF('1. Ordersheet'!BJ455=\"\",\"\",'1. Ordersheet'!BJ455)","v":""},{"$f":"IF('1. Ordersheet'!BK455=\"\",\"\",'1. Ordersheet'!BK455)","v":""},{"$f":"IF('1. Ordersheet'!BL455=\"\",\"\",'1. Ordersheet'!BL455)","v":""}]
[{"$f":"IF('1. Ordersheet'!F456=\"\",\"\",'1. Ordersheet'!F456)","v":""},{"$f":"IF('1. Ordersheet'!G456=\"\",\"\",'1. Ordersheet'!G456)","v":""},{"$f":"IF('1. Ordersheet'!H456=\"\",\"\",'1. Ordersheet'!H456)","v":""},{"$f":"IF('1. Ordersheet'!I456=\"\",\"\",'1. Ordersheet'!I456)","v":""},{"$f":"IF('1. Ordersheet'!J456=\"\",\"\",'1. Ordersheet'!J456)","v":""},{"$f":"IF('1. Ordersheet'!K456=\"\",\"\",'1. Ordersheet'!K456)","v":""},{"$f":"IF('1. Ordersheet'!L456=\"\",\"\",'1. Ordersheet'!L456)","v":""},{"$f":"IF('1. Ordersheet'!M456=\"\",\"\",'1. Ordersheet'!M456)","v":""},{"$f":"IF('1. Ordersheet'!N456=\"\",\"\",'1. Ordersheet'!N456)","v":""},{"$f":"IF('1. Ordersheet'!O456=\"\",\"\",'1. Ordersheet'!O456)","v":{"$error":"#N/A"}},{"$f":"IF('1. Ordersheet'!P456=\"\",\"\",'1. Ordersheet'!P456)","v":{"$error":"#N/A"}},{"$f":"IF('1. Ordersheet'!Q456=\"\",\"\",'1. Ordersheet'!Q456)","v":""},{"$f":"IF('1. Ordersheet'!R456=\"\",\"\",'1. Ordersheet'!R456)","v":""},{"$f":"IF('1. Ordersheet'!S456=\"\",\"\",'1. Ordersheet'!S456)","v":""},{"$f":"IF('1. Ordersheet'!V456=\"\",\"\",'1. Ordersheet'!V456)","v":""},{"$f":"IF('1. Ordersheet'!W456=\"\",\"\",'1. Ordersheet'!W456)","v":""},{"$f":"IF('1. Ordersheet'!X456=\"\",\"\",'1. Ordersheet'!X456)","v":""},{"$f":"IF('1. Ordersheet'!Y456=\"\",\"\",'1. Ordersheet'!Y456)","v":""},{"$f":"IF('1. Ordersheet'!Z456=\"\",\"\",'1. Ordersheet'!Z456)","v":""},{"$f":"IF('1. Ordersheet'!AA456=\"\",\"\",'1. Ordersheet'!AA456)","v":""},null,{"$f":"IF('1. Ordersheet'!AS456=\"\",\"\",'1. Ordersheet'!AS456)","v":""},{"$f":"IF('1. Ordersheet'!AT456=\"\",\"\",'1. Ordersheet'!AT456)","v":""},null,null,null,null,null,null,null,{"$f":"IF('1. Ordersheet'!AX456=\"\",\"\",'1. Ordersheet'!AX456)","v":""},{"$f":"IF('1. Ordersheet'!AY456=\"\",\"\",'1. Ordersheet'!AY456)","v":""},{"$f":"IF('1. Ordersheet'!AZ456=\"\",\"\",'1. Ordersheet'!AZ456)","v":""},{"$f":"IF('1. Ordersheet'!BA456=\"\",\"\",'1. Ordersheet'!BA456)","v":""},{"$f":"IF('1. Ordersheet'!BC456=\"\",\"\",'1. Ordersheet'!BC456)","v":""},{"$f":"IF('1. Ordersheet'!BD456=\"\",\"\",'1. Ordersheet'!BD456)","v":""},{"$f":"IF('1. Ordersheet'!BE456=\"\",\"\",'1. Ordersheet'!BE456)","v":""},{"$f":"IF('1. Ordersheet'!BF456=\"\",\"\",'1. Ordersheet'!BF456)","v":""},{"$f":"IF('1. Ordersheet'!BG456=\"\",\"\",'1. Ordersheet'!BG456)","v":"ZWO"},{"$f":"IF('1. Ordersheet'!BH456=\"\",\"\",'1. Ordersheet'!BH456)","v":""},{"$f":"IF('1. Ordersheet'!BI456=\"\",\"\",'1. Ordersheet'!BI456)","v":""},{"$f":"IF('1. Ordersheet'!BJ456=\"\",\"\",'1. Ordersheet'!BJ456)","v":""},{"$f":"IF('1. Ordersheet'!BK456=\"\",\"\",'1. Ordersheet'!BK456)","v":""},{"$f":"IF('1. Ordersheet'!BL456=\"\",\"\",'1. Ordersheet'!BL456)","v":""}]
[{"$f":"IF('1. Ordersheet'!F457=\"\",\"\",'1. Ordersheet'!F457)","v":""},{"$f":"IF('1. Ordersheet'!G457=\"\",\"\",'1. Ordersheet'!G457)","v":""},{"$f":"IF('1. Ordersheet'!H457=\"\",\"\",'1. Ordersheet'!H457)","v":""},{"$f":"IF('1. Ordersheet'!I457=\"\",\"\",'1. Ordersheet'!I457)","v":""},{"$f":"IF('1. Ordersheet'!J457=\"\",\"\",'1. Ordersheet'!J457)","v":""},{"$f":"IF('1. Ordersheet'!K457=\"\",\"\",'1. Ordersheet'!K457)","v":""},{"$f":"IF('1. Ordersheet'!L457=\"\",\"\",'1. Ordersheet'!L457)","v":""},{"$f":"IF('1. Ordersheet'!M457=\"\",\"\",'1. Ordersheet'!M457)","v":""},{"$f":"IF('1. Ordersheet'!N457=\"\",\"\",'1. Ordersheet'!N457)","v":""},{"$f":"IF('1. Ordersheet'!O457=\"\",\"\",'1. Ordersheet'!O457)","v":{"$error":"#N/A"}},{"$f":"IF('1. Ordersheet'!P457=\"\",\"\",'1. Ordersheet'!P457)","v":{"$error":"#N/A"}},{"$f":"IF('1. Ordersheet'!Q457=\"\",\"\",'1. Ordersheet'!Q457)","v":""},{"$f":"IF('1. Ordersheet'!R457=\"\",\"\",'1. Ordersheet'!R457)","v":""},{"$f":"IF('1. Ordersheet'!S457=\"\",\"\",'1. Ordersheet'!S457)","v":""},{"$f":"IF('1. Ordersheet'!V457=\"\",\"\",'1. Ordersheet'!V457)","v":""},{"$f":"IF('1. Ordersheet'!W457=\"\",\"\",'1. Ordersheet'!W457)","v":""},{"$f":"IF('1. Ordersheet'!X457=\"\",\"\",'1. Ordersheet'!X457)","v":""},{"$f":"IF('1. Ordersheet'!Y457=\"\",\"\",'1. Ordersheet'!Y457)","v":""},{"$f":"IF('1. Ordersheet'!Z457=\"\",\"\",'1. Ordersheet'!Z457)","v":""},{"$f":"IF('1. Ordersheet'!AA457=\"\",\"\",'1. Ordersheet'!AA457)","v":""},null,{"$f":"IF('1. Ordersheet'!AS457=\"\",\"\",'1. Ordersheet'!AS457)","v":""},{"$f":"IF('1. Ordersheet'!AT457=\"\",\"\",'1. Ordersheet'!AT457)","v":""},null,null,null,null,null,null,null,{"$f":"IF('1. Ordersheet'!AX457=\"\",\"\",'1. Ordersheet'!AX457)","v":""},{"$f":"IF('1. Ordersheet'!AY457=\"\",\"\",'1. Ordersheet'!AY457)","v":""},{"$f":"IF('1. Ordersheet'!AZ457=\"\",\"\",'1. Ordersheet'!AZ457)","v":""},{"$f":"IF('1. Ordersheet'!BA457=\"\",\"\",'1. Ordersheet'!BA457)","v":""},{"$f":"IF('1. Ordersheet'!BC457=\"\",\"\",'1. Ordersheet'!BC457)","v":""},{"$f":"IF('1. Ordersheet'!BD457=\"\",\"\",'1. Ordersheet'!BD457)","v":""},{"$f":"IF('1. Ordersheet'!BE457=\"\",\"\",'1. Ordersheet'!BE457)","v":""},{"$f":"IF('1. Ordersheet'!BF457=\"\",\"\",'1. Ordersheet'!BF457)","v":""},{"$f":"IF('1. Ordersheet'!BG457=\"\",\"\",'1. Ordersheet'!BG457)","v":"ZWO"},{"$f":"IF('1. Ordersheet'!BH457=\"\",\"\",'1. Ordersheet'!BH457)","v":""},{"$f":"IF('1. Ordersheet'!BI457=\"\",\"\",'1. Ordersheet'!BI457)","v":""},{"$f":"IF('1. Ordersheet'!BJ457=\"\",\"\",'1. Ordersheet'!BJ457)","v":""},{"$f":"IF('1. Ordersheet'!BK457=\"\",\"\",'1. Ordersheet'!BK457)","v":""},{"$f":"IF('1. Ordersheet'!BL457=\"\",\"\",'1. Ordersheet'!BL457)","v":""}]
[{"$f":"IF('1. Ordersheet'!F458=\"\",\"\",'1. Ordersheet'!F458)","v":""},{"$f":"IF('1. Ordersheet'!G458=\"\",\"\",'1. Ordersheet'!G458)","v":""},{"$f":"IF('1. Ordersheet'!H458=\"\",\"\",'1. Ordersheet'!H458)","v":""},{"$f":"IF('1. Ordersheet'!I458=\"\",\"\",'1. Ordersheet'!I458)","v":""},{"$f":"IF('1. Ordersheet'!J458=\"\",\"\",'1. Ordersheet'!J458)","v":""},{"$f":"IF('1. Ordersheet'!K458=\"\",\"\",'1. Ordersheet'!K458)","v":""},{"$f":"IF('1. Ordersheet'!L458=\"\",\"\",'1. Ordersheet'!L458)","v":""},{"$f":"IF('1. Ordersheet'!M458=\"\",\"\",'1. Ordersheet'!M458)","v":""},{"$f":"IF('1. Ordersheet'!N458=\"\",\"\",'1. Ordersheet'!N458)","v":""},{"$f":"IF('1. Ordersheet'!O458=\"\",\"\",'1. Ordersheet'!O458)","v":{"$error":"#N/A"}},{"$f":"IF('1. Ordersheet'!P458=\"\",\"\",'1. Ordersheet'!P458)","v":{"$error":"#N/A"}},{"$f":"IF('1. Ordersheet'!Q458=\"\",\"\",'1. Ordersheet'!Q458)","v":""},{"$f":"IF('1. Ordersheet'!R458=\"\",\"\",'1. Ordersheet'!R458)","v":""},{"$f":"IF('1. Ordersheet'!S458=\"\",\"\",'1. Ordersheet'!S458)","v":""},{"$f":"IF('1. Ordersheet'!V458=\"\",\"\",'1. Ordersheet'!V458)","v":""},{"$f":"IF('1. Ordersheet'!W458=\"\",\"\",'1. Ordersheet'!W458)","v":""},{"$f":"IF('1. Ordersheet'!X458=\"\",\"\",'1. Ordersheet'!X458)","v":""},{"$f":"IF('1. Ordersheet'!Y458=\"\",\"\",'1. Ordersheet'!Y458)","v":""},{"$f":"IF('1. Ordersheet'!Z458=\"\",\"\",'1. Ordersheet'!Z458)","v":""},{"$f":"IF('1. Ordersheet'!AA458=\"\",\"\",'1. Ordersheet'!AA458)","v":""},null,{"$f":"IF('1. Ordersheet'!AS458=\"\",\"\",'1. Ordersheet'!AS458)","v":""},{"$f":"IF('1. Ordersheet'!AT458=\"\",\"\",'1. Ordersheet'!AT458)","v":""},null,null,null,null,null,null,null,{"$f":"IF('1. Ordersheet'!AX458=\"\",\"\",'1. Ordersheet'!AX458)","v":""},{"$f":"IF('1. Ordersheet'!AY458=\"\",\"\",'1. Ordersheet'!AY458)","v":""},{"$f":"IF('1. Ordersheet'!AZ458=\"\",\"\",'1. Ordersheet'!AZ458)","v":""},{"$f":"IF('1. Ordersheet'!BA458=\"\",\"\",'1. Ordersheet'!BA458)","v":""},{"$f":"IF('1. Ordersheet'!BC458=\"\",\"\",'1. Ordersheet'!BC458)","v":""},{"$f":"IF('1. Ordersheet'!BD458=\"\",\"\",'1. Ordersheet'!BD458)","v":""},{"$f":"IF('1. Ordersheet'!BE458=\"\",\"\",'1. Ordersheet'!BE458)","v":""},{"$f":"IF('1. Ordersheet'!BF458=\"\",\"\",'1. Ordersheet'!BF458)","v":""},{"$f":"IF('1. Ordersheet'!BG458=\"\",\"\",'1. Ordersheet'!BG458)","v":"ZWO"},{"$f":"IF('1. Ordersheet'!BH458=\"\",\"\",'1. Ordersheet'!BH458)","v":""},{"$f":"IF('1. Ordersheet'!BI458=\"\",\"\",'1. Ordersheet'!BI458)","v":""},{"$f":"IF('1. Ordersheet'!BJ458=\"\",\"\",'1. Ordersheet'!BJ458)","v":""},{"$f":"IF('1. Ordersheet'!BK458=\"\",\"\",'1. Ordersheet'!BK458)","v":""},{"$f":"IF('1. Ordersheet'!BL458=\"\",\"\",'1. Ordersheet'!BL458)","v":""}]
[{"$f":"IF('1. Ordersheet'!F459=\"\",\"\",'1. Ordersheet'!F459)","v":""},{"$f":"IF('1. Ordersheet'!G459=\"\",\"\",'1. Ordersheet'!G459)","v":""},{"$f":"IF('1. Ordersheet'!H459=\"\",\"\",'1. Ordersheet'!H459)","v":""},{"$f":"IF('1. Ordersheet'!I459=\"\",\"\",'1. Ordersheet'!I459)","v":""},{"$f":"IF('1. Ordersheet'!J459=\"\",\"\",'1. Ordersheet'!J459)","v":""},{"$f":"IF('1. Ordersheet'!K459=\"\",\"\",'1. Ordersheet'!K459)","v":""},{"$f":"IF('1. Ordersheet'!L459=\"\",\"\",'1. Ordersheet'!L459)","v":""},{"$f":"IF('1. Ordersheet'!M459=\"\",\"\",'1. Ordersheet'!M459)","v":""},{"$f":"IF('1. Ordersheet'!N459=\"\",\"\",'1. Ordersheet'!N459)","v":""},{"$f":"IF('1. Ordersheet'!O459=\"\",\"\",'1. Ordersheet'!O459)","v":{"$error":"#N/A"}},{"$f":"IF('1. Ordersheet'!P459=\"\",\"\",'1. Ordersheet'!P459)","v":{"$error":"#N/A"}},{"$f":"IF('1. Ordersheet'!Q459=\"\",\"\",'1. Ordersheet'!Q459)","v":""},{"$f":"IF('1. Ordersheet'!R459=\"\",\"\",'1. Ordersheet'!R459)","v":""},{"$f":"IF('1. Ordersheet'!S459=\"\",\"\",'1. Ordersheet'!S459)","v":""},{"$f":"IF('1. Ordersheet'!V459=\"\",\"\",'1. Ordersheet'!V459)","v":""},{"$f":"IF('1. Ordersheet'!W459=\"\",\"\",'1. Ordersheet'!W459)","v":""},{"$f":"IF('1. Ordersheet'!X459=\"\",\"\",'1. Ordersheet'!X459)","v":""},{"$f":"IF('1. Ordersheet'!Y459=\"\",\"\",'1. Ordersheet'!Y459)","v":""},{"$f":"IF('1. Ordersheet'!Z459=\"\",\"\",'1. Ordersheet'!Z459)","v":""},{"$f":"IF('1. Ordersheet'!AA459=\"\",\"\",'1. Ordersheet'!AA459)","v":""},null,{"$f":"IF('1. Ordersheet'!AS459=\"\",\"\",'1. Ordersheet'!AS459)","v":""},{"$f":"IF('1. Ordersheet'!AT459=\"\",\"\",'1. Ordersheet'!AT459)","v":""},null,null,null,null,null,null,null,{"$f":"IF('1. Ordersheet'!AX459=\"\",\"\",'1. Ordersheet'!AX459)","v":""},{"$f":"IF('1. Ordersheet'!AY459=\"\",\"\",'1. Ordersheet'!AY459)","v":""},{"$f":"IF('1. Ordersheet'!AZ459=\"\",\"\",'1. Ordersheet'!AZ459)","v":""},{"$f":"IF('1. Ordersheet'!BA459=\"\",\"\",'1. Ordersheet'!BA459)","v":""},{"$f":"IF('1. Ordersheet'!BC459=\"\",\"\",'1. Ordersheet'!BC459)","v":""},{"$f":"IF('1. Ordersheet'!BD459=\"\",\"\",'1. Ordersheet'!BD459)","v":""},{"$f":"IF('1. Ordersheet'!BE459=\"\",\"\",'1. Ordersheet'!BE459)","v":""},{"$f":"IF('1. Ordersheet'!BF459=\"\",\"\",'1. Ordersheet'!BF459)","v":""},{"$f":"IF('1. Ordersheet'!BG459=\"\",\"\",'1. Ordersheet'!BG459)","v":"ZWO"},{"$f":"IF('1. Ordersheet'!BH459=\"\",\"\",'1. Ordersheet'!BH459)","v":""},{"$f":"IF('1. Ordersheet'!BI459=\"\",\"\",'1. Ordersheet'!BI459)","v":""},{"$f":"IF('1. Ordersheet'!BJ459=\"\",\"\",'1. Ordersheet'!BJ459)","v":""},{"$f":"IF('1. Ordersheet'!BK459=\"\",\"\",'1. Ordersheet'!BK459)","v":""},{"$f":"IF('1. Ordersheet'!BL459=\"\",\"\",'1. Ordersheet'!BL459)","v":""}]
[{"$f":"IF('1. Ordersheet'!F460=\"\",\"\",'1. Ordersheet'!F460)","v":""},{"$f":"IF('1. Ordersheet'!G460=\"\",\"\",'1. Ordersheet'!G460)","v":""},{"$f":"IF('1. Ordersheet'!H460=\"\",\"\",'1. Ordersheet'!H460)","v":""},{"$f":"IF('1. Ordersheet'!I460=\"\",\"\",'1. Ordersheet'!I460)","v":""},{"$f":"IF('1. Ordersheet'!J460=\"\",\"\",'1. Ordersheet'!J460)","v":""},{"$f":"IF('1. Ordersheet'!K460=\"\",\"\",'1. Ordersheet'!K460)","v":""},{"$f":"IF('1. Ordersheet'!L460=\"\",\"\",'1. Ordersheet'!L460)","v":""},{"$f":"IF('1. Ordersheet'!M460=\"\",\"\",'1. Ordersheet'!M460)","v":""},{"$f":"IF('1. Ordersheet'!N460=\"\",\"\",'1. Ordersheet'!N460)","v":""},{"$f":"IF('1. Ordersheet'!O460=\"\",\"\",'1. Ordersheet'!O460)","v":{"$error":"#N/A"}},{"$f":"IF('1. Ordersheet'!P460=\"\",\"\",'1. Ordersheet'!P460)","v":{"$error":"#N/A"}},{"$f":"IF('1. Ordersheet'!Q460=\"\",\"\",'1. Ordersheet'!Q460)","v":""},{"$f":"IF('1. Ordersheet'!R460=\"\",\"\",'1. Ordersheet'!R460)","v":""},{"$f":"IF('1. Ordersheet'!S460=\"\",\"\",'1. Ordersheet'!S460)","v":""},{"$f":"IF('1. Ordersheet'!V460=\"\",\"\",'1. Ordersheet'!V460)","v":""},{"$f":"IF('1. Ordersheet'!W460=\"\",\"\",'1. Ordersheet'!W460)","v":""},{"$f":"IF('1. Ordersheet'!X460=\"\",\"\",'1. Ordersheet'!X460)","v":""},{"$f":"IF('1. Ordersheet'!Y460=\"\",\"\",'1. Ordersheet'!Y460)","v":""},{"$f":"IF('1. Ordersheet'!Z460=\"\",\"\",'1. Ordersheet'!Z460)","v":""},{"$f":"IF('1. Ordersheet'!AA460=\"\",\"\",'1. Ordersheet'!AA460)","v":""},null,{"$f":"IF('1. Ordersheet'!AS460=\"\",\"\",'1. Ordersheet'!AS460)","v":""},{"$f":"IF('1. Ordersheet'!AT460=\"\",\"\",'1. Ordersheet'!AT460)","v":""},null,null,null,null,null,null,null,{"$f":"IF('1. Ordersheet'!AX460=\"\",\"\",'1. Ordersheet'!AX460)","v":""},{"$f":"IF('1. Ordersheet'!AY460=\"\",\"\",'1. Ordersheet'!AY460)","v":""},{"$f":"IF('1. Ordersheet'!AZ460=\"\",\"\",'1. Ordersheet'!AZ460)","v":""},{"$f":"IF('1. Ordersheet'!BA460=\"\",\"\",'1. Ordersheet'!BA460)","v":""},{"$f":"IF('1. Ordersheet'!BC460=\"\",\"\",'1. Ordersheet'!BC460)","v":""},{"$f":"IF('1. Ordersheet'!BD460=\"\",\"\",'1. Ordersheet'!BD460)","v":""},{"$f":"IF('1. Ordersheet'!BE460=\"\",\"\",'1. Ordersheet'!BE460)","v":""},{"$f":"IF('1. Ordersheet'!BF460=\"\",\"\",'1. Ordersheet'!BF460)","v":""},{"$f":"IF('1. Ordersheet'!BG460=\"\",\"\",'1. Ordersheet'!BG460)","v":"ZWO"},{"$f":"IF('1. Ordersheet'!BH460=\"\",\"\",'1. Ordersheet'!BH460)","v":""},{"$f":"IF('1. Ordersheet'!BI460=\"\",\"\",'1. Ordersheet'!BI460)","v":""},{"$f":"IF('1. Ordersheet'!BJ460=\"\",\"\",'1. Ordersheet'!BJ460)","v":""},{"$f":"IF('1. Ordersheet'!BK460=\"\",\"\",'1. Ordersheet'!BK460)","v":""},{"$f":"IF('1. Ordersheet'!BL460=\"\",\"\",'1. Ordersheet'!BL460)","v":""}]
[{"$f":"IF('1. Ordersheet'!F461=\"\",\"\",'1. Ordersheet'!F461)","v":""},{"$f":"IF('1. Ordersheet'!G461=\"\",\"\",'1. Ordersheet'!G461)","v":""},{"$f":"IF('1. Ordersheet'!H461=\"\",\"\",'1. Ordersheet'!H461)","v":""},{"$f":"IF('1. Ordersheet'!I461=\"\",\"\",'1. Ordersheet'!I461)","v":""},{"$f":"IF('1. Ordersheet'!J461=\"\",\"\",'1. Ordersheet'!J461)","v":""},{"$f":"IF('1. Ordersheet'!K461=\"\",\"\",'1. Ordersheet'!K461)","v":""},{"$f":"IF('1. Ordersheet'!L461=\"\",\"\",'1. Ordersheet'!L461)","v":""},{"$f":"IF('1. Ordersheet'!M461=\"\",\"\",'1. Ordersheet'!M461)","v":""},{"$f":"IF('1. Ordersheet'!N461=\"\",\"\",'1. Ordersheet'!N461)","v":""},{"$f":"IF('1. Ordersheet'!O461=\"\",\"\",'1. Ordersheet'!O461)","v":{"$error":"#N/A"}},{"$f":"IF('1. Ordersheet'!P461=\"\",\"\",'1. Ordersheet'!P461)","v":{"$error":"#N/A"}},{"$f":"IF('1. Ordersheet'!Q461=\"\",\"\",'1. Ordersheet'!Q461)","v":""},{"$f":"IF('1. Ordersheet'!R461=\"\",\"\",'1. Ordersheet'!R461)","v":""},{"$f":"IF('1. Ordersheet'!S461=\"\",\"\",'1. Ordersheet'!S461)","v":""},{"$f":"IF('1. Ordersheet'!V461=\"\",\"\",'1. Ordersheet'!V461)","v":""},{"$f":"IF('1. Ordersheet'!W461=\"\",\"\",'1. Ordersheet'!W461)","v":""},{"$f":"IF('1. Ordersheet'!X461=\"\",\"\",'1. Ordersheet'!X461)","v":""},{"$f":"IF('1. Ordersheet'!Y461=\"\",\"\",'1. Ordersheet'!Y461)","v":""},{"$f":"IF('1. Ordersheet'!Z461=\"\",\"\",'1. Ordersheet'!Z461)","v":""},{"$f":"IF('1. Ordersheet'!AA461=\"\",\"\",'1. Ordersheet'!AA461)","v":""},null,{"$f":"IF('1. Ordersheet'!AS461=\"\",\"\",'1. Ordersheet'!AS461)","v":""},{"$f":"IF('1. Ordersheet'!AT461=\"\",\"\",'1. Ordersheet'!AT461)","v":""},null,null,null,null,null,null,null,{"$f":"IF('1. Ordersheet'!AX461=\"\",\"\",'1. Ordersheet'!AX461)","v":""},{"$f":"IF('1. Ordersheet'!AY461=\"\",\"\",'1. Ordersheet'!AY461)","v":""},{"$f":"IF('1. Ordersheet'!AZ461=\"\",\"\",'1. Ordersheet'!AZ461)","v":""},{"$f":"IF('1. Ordersheet'!BA461=\"\",\"\",'1. Ordersheet'!BA461)","v":""},{"$f":"IF('1. Ordersheet'!BC461=\"\",\"\",'1. Ordersheet'!BC461)","v":""},{"$f":"IF('1. Ordersheet'!BD461=\"\",\"\",'1. Ordersheet'!BD461)","v":""},{"$f":"IF('1. Ordersheet'!BE461=\"\",\"\",'1. Ordersheet'!BE461)","v":""},{"$f":"IF('1. Ordersheet'!BF461=\"\",\"\",'1. Ordersheet'!BF461)","v":""},{"$f":"IF('1. Ordersheet'!BG461=\"\",\"\",'1. Ordersheet'!BG461)","v":"ZWO"},{"$f":"IF('1. Ordersheet'!BH461=\"\",\"\",'1. Ordersheet'!BH461)","v":""},{"$f":"IF('1. Ordersheet'!BI461=\"\",\"\",'1. Ordersheet'!BI461)","v":""},{"$f":"IF('1. Ordersheet'!BJ461=\"\",\"\",'1. Ordersheet'!BJ461)","v":""},{"$f":"IF('1. Ordersheet'!BK461=\"\",\"\",'1. Ordersheet'!BK461)","v":""},{"$f":"IF('1. Ordersheet'!BL461=\"\",\"\",'1. Ordersheet'!BL461)","v":""}]
[{"$f":"IF('1. Ordersheet'!F462=\"\",\"\",'1. Ordersheet'!F462)","v":""},{"$f":"IF('1. Ordersheet'!G462=\"\",\"\",'1. Ordersheet'!G462)","v":""},{"$f":"IF('1. Ordersheet'!H462=\"\",\"\",'1. Ordersheet'!H462)","v":""},{"$f":"IF('1. Ordersheet'!I462=\"\",\"\",'1. Ordersheet'!I462)","v":""},{"$f":"IF('1. Ordersheet'!J462=\"\",\"\",'1. Ordersheet'!J462)","v":""},{"$f":"IF('1. Ordersheet'!K462=\"\",\"\",'1. Ordersheet'!K462)","v":""},{"$f":"IF('1. Ordersheet'!L462=\"\",\"\",'1. Ordersheet'!L462)","v":""},{"$f":"IF('1. Ordersheet'!M462=\"\",\"\",'1. Ordersheet'!M462)","v":""},{"$f":"IF('1. Ordersheet'!N462=\"\",\"\",'1. Ordersheet'!N462)","v":""},{"$f":"IF('1. Ordersheet'!O462=\"\",\"\",'1. Ordersheet'!O462)","v":{"$error":"#N/A"}},{"$f":"IF('1. Ordersheet'!P462=\"\",\"\",'1. Ordersheet'!P462)","v":{"$error":"#N/A"}},{"$f":"IF('1. Ordersheet'!Q462=\"\",\"\",'1. Ordersheet'!Q462)","v":""},{"$f":"IF('1. Ordersheet'!R462=\"\",\"\",'1. Ordersheet'!R462)","v":""},{"$f":"IF('1. Ordersheet'!S462=\"\",\"\",'1. Ordersheet'!S462)","v":""},{"$f":"IF('1. Ordersheet'!V462=\"\",\"\",'1. Ordersheet'!V462)","v":""},{"$f":"IF('1. Ordersheet'!W462=\"\",\"\",'1. Ordersheet'!W462)","v":""},{"$f":"IF('1. Ordersheet'!X462=\"\",\"\",'1. Ordersheet'!X462)","v":""},{"$f":"IF('1. Ordersheet'!Y462=\"\",\"\",'1. Ordersheet'!Y462)","v":""},{"$f":"IF('1. Ordersheet'!Z462=\"\",\"\",'1. Ordersheet'!Z462)","v":""},{"$f":"IF('1. Ordersheet'!AA462=\"\",\"\",'1. Ordersheet'!AA462)","v":""},null,{"$f":"IF('1. Ordersheet'!AS462=\"\",\"\",'1. Ordersheet'!AS462)","v":""},{"$f":"IF('1. Ordersheet'!AT462=\"\",\"\",'1. Ordersheet'!AT462)","v":""},null,null,null,null,null,null,null,{"$f":"IF('1. Ordersheet'!AX462=\"\",\"\",'1. Ordersheet'!AX462)","v":""},{"$f":"IF('1. Ordersheet'!AY462=\"\",\"\",'1. Ordersheet'!AY462)","v":""},{"$f":"IF('1. Ordersheet'!AZ462=\"\",\"\",'1. Ordersheet'!AZ462)","v":""},{"$f":"IF('1. Ordersheet'!BA462=\"\",\"\",'1. Ordersheet'!BA462)","v":""},{"$f":"IF('1. Ordersheet'!BC462=\"\",\"\",'1. Ordersheet'!BC462)","v":""},{"$f":"IF('1. Ordersheet'!BD462=\"\",\"\",'1. Ordersheet'!BD462)","v":""},{"$f":"IF('1. Ordersheet'!BE462=\"\",\"\",'1. Ordersheet'!BE462)","v":""},{"$f":"IF('1. Ordersheet'!BF462=\"\",\"\",'1. Ordersheet'!BF462)","v":""},{"$f":"IF('1. Ordersheet'!BG462=\"\",\"\",'1. Ordersheet'!BG462)","v":"ZWO"},{"$f":"IF('1. Ordersheet'!BH462=\"\",\"\",'1. Ordersheet'!BH462)","v":""},{"$f":"IF('1. Ordersheet'!BI462=\"\",\"\",'1. Ordersheet'!BI462)","v":""},{"$f":"IF('1. Ordersheet'!BJ462=\"\",\"\",'1. Ordersheet'!BJ462)","v":""},{"$f":"IF('1. Ordersheet'!BK462=\"\",\"\",'1. Ordersheet'!BK462)","v":""},{"$f":"IF('1. Ordersheet'!BL462=\"\",\"\",'1. Ordersheet'!BL462)","v":""}]
[{"$f":"IF('1. Ordersheet'!F463=\"\",\"\",'1. Ordersheet'!F463)","v":""},{"$f":"IF('1. Ordersheet'!G463=\"\",\"\",'1. Ordersheet'!G463)","v":""},{"$f":"IF('1. Ordersheet'!H463=\"\",\"\",'1. Ordersheet'!H463)","v":""},{"$f":"IF('1. Ordersheet'!I463=\"\",\"\",'1. Ordersheet'!I463)","v":""},{"$f":"IF('1. Ordersheet'!J463=\"\",\"\",'1. Ordersheet'!J463)","v":""},{"$f":"IF('1. Ordersheet'!K463=\"\",\"\",'1. Ordersheet'!K463)","v":""},{"$f":"IF('1. Ordersheet'!L463=\"\",\"\",'1. Ordersheet'!L463)","v":""},{"$f":"IF('1. Ordersheet'!M463=\"\",\"\",'1. Ordersheet'!M463)","v":""},{"$f":"IF('1. Ordersheet'!N463=\"\",\"\",'1. Ordersheet'!N463)","v":""},{"$f":"IF('1. Ordersheet'!O463=\"\",\"\",'1. Ordersheet'!O463)","v":{"$error":"#N/A"}},{"$f":"IF('1. Ordersheet'!P463=\"\",\"\",'1. Ordersheet'!P463)","v":{"$error":"#N/A"}},{"$f":"IF('1. Ordersheet'!Q463=\"\",\"\",'1. Ordersheet'!Q463)","v":""},{"$f":"IF('1. Ordersheet'!R463=\"\",\"\",'1. Ordersheet'!R463)","v":""},{"$f":"IF('1. Ordersheet'!S463=\"\",\"\",'1. Ordersheet'!S463)","v":""},{"$f":"IF('1. Ordersheet'!V463=\"\",\"\",'1. Ordersheet'!V463)","v":""},{"$f":"IF('1. Ordersheet'!W463=\"\",\"\",'1. Ordersheet'!W463)","v":""},{"$f":"IF('1. Ordersheet'!X463=\"\",\"\",'1. Ordersheet'!X463)","v":""},{"$f":"IF('1. Ordersheet'!Y463=\"\",\"\",'1. Ordersheet'!Y463)","v":""},{"$f":"IF('1. Ordersheet'!Z463=\"\",\"\",'1. Ordersheet'!Z463)","v":""},{"$f":"IF('1. Ordersheet'!AA463=\"\",\"\",'1. Ordersheet'!AA463)","v":""},null,{"$f":"IF('1. Ordersheet'!AS463=\"\",\"\",'1. Ordersheet'!AS463)","v":""},{"$f":"IF('1. Ordersheet'!AT463=\"\",\"\",'1. Ordersheet'!AT463)","v":""},null,null,null,null,null,null,null,{"$f":"IF('1. Ordersheet'!AX463=\"\",\"\",'1. Ordersheet'!AX463)","v":""},{"$f":"IF('1. Ordersheet'!AY463=\"\",\"\",'1. Ordersheet'!AY463)","v":""},{"$f":"IF('1. Ordersheet'!AZ463=\"\",\"\",'1. Ordersheet'!AZ463)","v":""},{"$f":"IF('1. Ordersheet'!BA463=\"\",\"\",'1. Ordersheet'!BA463)","v":""},{"$f":"IF('1. Ordersheet'!BC463=\"\",\"\",'1. Ordersheet'!BC463)","v":""},{"$f":"IF('1. Ordersheet'!BD463=\"\",\"\",'1. Ordersheet'!BD463)","v":""},{"$f":"IF('1. Ordersheet'!BE463=\"\",\"\",'1. Ordersheet'!BE463)","v":""},{"$f":"IF('1. Ordersheet'!BF463=\"\",\"\",'1. Ordersheet'!BF463)","v":""},{"$f":"IF('1. Ordersheet'!BG463=\"\",\"\",'1. Ordersheet'!BG463)","v":"ZWO"},{"$f":"IF('1. Ordersheet'!BH463=\"\",\"\",'1. Ordersheet'!BH463)","v":""},{"$f":"IF('1. Ordersheet'!BI463=\"\",\"\",'1. Ordersheet'!BI463)","v":""},{"$f":"IF('1. Ordersheet'!BJ463=\"\",\"\",'1. Ordersheet'!BJ463)","v":""},{"$f":"IF('1. Ordersheet'!BK463=\"\",\"\",'1. Ordersheet'!BK463)","v":""},{"$f":"IF('1. Ordersheet'!BL463=\"\",\"\",'1. Ordersheet'!BL463)","v":""}]
[{"$f":"IF('1. Ordersheet'!F464=\"\",\"\",'1. Ordersheet'!F464)","v":""},{"$f":"IF('1. Ordersheet'!G464=\"\",\"\",'1. Ordersheet'!G464)","v":""},{"$f":"IF('1. Ordersheet'!H464=\"\",\"\",'1. Ordersheet'!H464)","v":""},{"$f":"IF('1. Ordersheet'!I464=\"\",\"\",'1. Ordersheet'!I464)","v":""},{"$f":"IF('1. Ordersheet'!J464=\"\",\"\",'1. Ordersheet'!J464)","v":""},{"$f":"IF('1. Ordersheet'!K464=\"\",\"\",'1. Ordersheet'!K464)","v":""},{"$f":"IF('1. Ordersheet'!L464=\"\",\"\",'1. Ordersheet'!L464)","v":""},{"$f":"IF('1. Ordersheet'!M464=\"\",\"\",'1. Ordersheet'!M464)","v":""},{"$f":"IF('1. Ordersheet'!N464=\"\",\"\",'1. Ordersheet'!N464)","v":""},{"$f":"IF('1. Ordersheet'!O464=\"\",\"\",'1. Ordersheet'!O464)","v":{"$error":"#N/A"}},{"$f":"IF('1. Ordersheet'!P464=\"\",\"\",'1. Ordersheet'!P464)","v":{"$error":"#N/A"}},{"$f":"IF('1. Ordersheet'!Q464=\"\",\"\",'1. Ordersheet'!Q464)","v":""},{"$f":"IF('1. Ordersheet'!R464=\"\",\"\",'1. Ordersheet'!R464)","v":""},{"$f":"IF('1. Ordersheet'!S464=\"\",\"\",'1. Ordersheet'!S464)","v":""},{"$f":"IF('1. Ordersheet'!V464=\"\",\"\",'1. Ordersheet'!V464)","v":""},{"$f":"IF('1. Ordersheet'!W464=\"\",\"\",'1. Ordersheet'!W464)","v":""},{"$f":"IF('1. Ordersheet'!X464=\"\",\"\",'1. Ordersheet'!X464)","v":""},{"$f":"IF('1. Ordersheet'!Y464=\"\",\"\",'1. Ordersheet'!Y464)","v":""},{"$f":"IF('1. Ordersheet'!Z464=\"\",\"\",'1. Ordersheet'!Z464)","v":""},{"$f":"IF('1. Ordersheet'!AA464=\"\",\"\",'1. Ordersheet'!AA464)","v":""},null,{"$f":"IF('1. Ordersheet'!AS464=\"\",\"\",'1. Ordersheet'!AS464)","v":""},{"$f":"IF('1. Ordersheet'!AT464=\"\",\"\",'1. Ordersheet'!AT464)","v":""},null,null,null,null,null,null,null,{"$f":"IF('1. Ordersheet'!AX464=\"\",\"\",'1. Ordersheet'!AX464)","v":""},{"$f":"IF('1. Ordersheet'!AY464=\"\",\"\",'1. Ordersheet'!AY464)","v":""},{"$f":"IF('1. Ordersheet'!AZ464=\"\",\"\",'1. Ordersheet'!AZ464)","v":""},{"$f":"IF('1. Ordersheet'!BA464=\"\",\"\",'1. Ordersheet'!BA464)","v":""},{"$f":"IF('1. Ordersheet'!BC464=\"\",\"\",'1. Ordersheet'!BC464)","v":""},{"$f":"IF('1. Ordersheet'!BD464=\"\",\"\",'1. Ordersheet'!BD464)","v":""},{"$f":"IF('1. Ordersheet'!BE464=\"\",\"\",'1. Ordersheet'!BE464)","v":""},{"$f":"IF('1. Ordersheet'!BF464=\"\",\"\",'1. Ordersheet'!BF464)","v":""},{"$f":"IF('1. Ordersheet'!BG464=\"\",\"\",'1. Ordersheet'!BG464)","v":"ZWO"},{"$f":"IF('1. Ordersheet'!BH464=\"\",\"\",'1. Ordersheet'!BH464)","v":""},{"$f":"IF('1. Ordersheet'!BI464=\"\",\"\",'1. Ordersheet'!BI464)","v":""},{"$f":"IF('1. Ordersheet'!BJ464=\"\",\"\",'1. Ordersheet'!BJ464)","v":""},{"$f":"IF('1. Ordersheet'!BK464=\"\",\"\",'1. Ordersheet'!BK464)","v":""},{"$f":"IF('1. Ordersheet'!BL464=\"\",\"\",'1. Ordersheet'!BL464)","v":""}]
[{"$f":"IF('1. Ordersheet'!F465=\"\",\"\",'1. Ordersheet'!F465)","v":""},{"$f":"IF('1. Ordersheet'!G465=\"\",\"\",'1. Ordersheet'!G465)","v":""},{"$f":"IF('1. Ordersheet'!H465=\"\",\"\",'1. Ordersheet'!H465)","v":""},{"$f":"IF('1. Ordersheet'!I465=\"\",\"\",'1. Ordersheet'!I465)","v":""},{"$f":"IF('1. Ordersheet'!J465=\"\",\"\",'1. Ordersheet'!J465)","v":""},{"$f":"IF('1. Ordersheet'!K465=\"\",\"\",'1. Ordersheet'!K465)","v":""},{"$f":"IF('1. Ordersheet'!L465=\"\",\"\",'1. Ordersheet'!L465)","v":""},{"$f":"IF('1. Ordersheet'!M465=\"\",\"\",'1. Ordersheet'!M465)","v":""},{"$f":"IF('1. Ordersheet'!N465=\"\",\"\",'1. Ordersheet'!N465)","v":""},{"$f":"IF('1. Ordersheet'!O465=\"\",\"\",'1. Ordersheet'!O465)","v":{"$error":"#N/A"}},{"$f":"IF('1. Ordersheet'!P465=\"\",\"\",'1. Ordersheet'!P465)","v":{"$error":"#N/A"}},{"$f":"IF('1. Ordersheet'!Q465=\"\",\"\",'1. Ordersheet'!Q465)","v":""},{"$f":"IF('1. Ordersheet'!R465=\"\",\"\",'1. Ordersheet'!R465)","v":""},{"$f":"IF('1. Ordersheet'!S465=\"\",\"\",'1. Ordersheet'!S465)","v":""},{"$f":"IF('1. Ordersheet'!V465=\"\",\"\",'1. Ordersheet'!V465)","v":""},{"$f":"IF('1. Ordersheet'!W465=\"\",\"\",'1. Ordersheet'!W465)","v":""},{"$f":"IF('1. Ordersheet'!X465=\"\",\"\",'1. Ordersheet'!X465)","v":""},{"$f":"IF('1. Ordersheet'!Y465=\"\",\"\",'1. Ordersheet'!Y465)","v":""},{"$f":"IF('1. Ordersheet'!Z465=\"\",\"\",'1. Ordersheet'!Z465)","v":""},{"$f":"IF('1. Ordersheet'!AA465=\"\",\"\",'1. Ordersheet'!AA465)","v":""},null,{"$f":"IF('1. Ordersheet'!AS465=\"\",\"\",'1. Ordersheet'!AS465)","v":""},{"$f":"IF('1. Ordersheet'!AT465=\"\",\"\",'1. Ordersheet'!AT465)","v":""},null,null,null,null,null,null,null,{"$f":"IF('1. Ordersheet'!AX465=\"\",\"\",'1. Ordersheet'!AX465)","v":""},{"$f":"IF('1. Ordersheet'!AY465=\"\",\"\",'1. Ordersheet'!AY465)","v":""},{"$f":"IF('1. Ordersheet'!AZ465=\"\",\"\",'1. Ordersheet'!AZ465)","v":""},{"$f":"IF('1. Ordersheet'!BA465=\"\",\"\",'1. Ordersheet'!BA465)","v":""},{"$f":"IF('1. Ordersheet'!BC465=\"\",\"\",'1. Ordersheet'!BC465)","v":""},{"$f":"IF('1. Ordersheet'!BD465=\"\",\"\",'1. Ordersheet'!BD465)","v":""},{"$f":"IF('1. Ordersheet'!BE465=\"\",\"\",'1. Ordersheet'!BE465)","v":""},{"$f":"IF('1. Ordersheet'!BF465=\"\",\"\",'1. Ordersheet'!BF465)","v":""},{"$f":"IF('1. Ordersheet'!BG465=\"\",\"\",'1. Ordersheet'!BG465)","v":"ZWO"},{"$f":"IF('1. Ordersheet'!BH465=\"\",\"\",'1. Ordersheet'!BH465)","v":""},{"$f":"IF('1. Ordersheet'!BI465=\"\",\"\",'1. Ordersheet'!BI465)","v":""},{"$f":"IF('1. Ordersheet'!BJ465=\"\",\"\",'1. Ordersheet'!BJ465)","v":""},{"$f":"IF('1. Ordersheet'!BK465=\"\",\"\",'1. Ordersheet'!BK465)","v":""},{"$f":"IF('1. Ordersheet'!BL465=\"\",\"\",'1. Ordersheet'!BL465)","v":""}]
[{"$f":"IF('1. Ordersheet'!F466=\"\",\"\",'1. Ordersheet'!F466)","v":""},{"$f":"IF('1. Ordersheet'!G466=\"\",\"\",'1. Ordersheet'!G466)","v":""},{"$f":"IF('1. Ordersheet'!H466=\"\",\"\",'1. Ordersheet'!H466)","v":""},{"$f":"IF('1. Ordersheet'!I466=\"\",\"\",'1. Ordersheet'!I466)","v":""},{"$f":"IF('1. Ordersheet'!J466=\"\",\"\",'1. Ordersheet'!J466)","v":""},{"$f":"IF('1. Ordersheet'!K466=\"\",\"\",'1. Ordersheet'!K466)","v":""},{"$f":"IF('1. Ordersheet'!L466=\"\",\"\",'1. Ordersheet'!L466)","v":""},{"$f":"IF('1. Ordersheet'!M466=\"\",\"\",'1. Ordersheet'!M466)","v":""},{"$f":"IF('1. Ordersheet'!N466=\"\",\"\",'1. Ordersheet'!N466)","v":""},{"$f":"IF('1. Ordersheet'!O466=\"\",\"\",'1. Ordersheet'!O466)","v":{"$error":"#N/A"}},{"$f":"IF('1. Ordersheet'!P466=\"\",\"\",'1. Ordersheet'!P466)","v":{"$error":"#N/A"}},{"$f":"IF('1. Ordersheet'!Q466=\"\",\"\",'1. Ordersheet'!Q466)","v":""},{"$f":"IF('1. Ordersheet'!R466=\"\",\"\",'1. Ordersheet'!R466)","v":""},{"$f":"IF('1. Ordersheet'!S466=\"\",\"\",'1. Ordersheet'!S466)","v":""},{"$f":"IF('1. Ordersheet'!V466=\"\",\"\",'1. Ordersheet'!V466)","v":""},{"$f":"IF('1. Ordersheet'!W466=\"\",\"\",'1. Ordersheet'!W466)","v":""},{"$f":"IF('1. Ordersheet'!X466=\"\",\"\",'1. Ordersheet'!X466)","v":""},{"$f":"IF('1. Ordersheet'!Y466=\"\",\"\",'1. Ordersheet'!Y466)","v":""},{"$f":"IF('1. Ordersheet'!Z466=\"\",\"\",'1. Ordersheet'!Z466)","v":""},{"$f":"IF('1. Ordersheet'!AA466=\"\",\"\",'1. Ordersheet'!AA466)","v":""},null,{"$f":"IF('1. Ordersheet'!AS466=\"\",\"\",'1. Ordersheet'!AS466)","v":""},{"$f":"IF('1. Ordersheet'!AT466=\"\",\"\",'1. Ordersheet'!AT466)","v":""},null,null,null,null,null,null,null,{"$f":"IF('1. Ordersheet'!AX466=\"\",\"\",'1. Ordersheet'!AX466)","v":""},{"$f":"IF('1. Ordersheet'!AY466=\"\",\"\",'1. Ordersheet'!AY466)","v":""},{"$f":"IF('1. Ordersheet'!AZ466=\"\",\"\",'1. Ordersheet'!AZ466)","v":""},{"$f":"IF('1. Ordersheet'!BA466=\"\",\"\",'1. Ordersheet'!BA466)","v":""},{"$f":"IF('1. Ordersheet'!BC466=\"\",\"\",'1. Ordersheet'!BC466)","v":""},{"$f":"IF('1. Ordersheet'!BD466=\"\",\"\",'1. Ordersheet'!BD466)","v":""},{"$f":"IF('1. Ordersheet'!BE466=\"\",\"\",'1. Ordersheet'!BE466)","v":""},{"$f":"IF('1. Ordersheet'!BF466=\"\",\"\",'1. Ordersheet'!BF466)","v":""},{"$f":"IF('1. Ordersheet'!BG466=\"\",\"\",'1. Ordersheet'!BG466)","v":"ZWO"},{"$f":"IF('1. Ordersheet'!BH466=\"\",\"\",'1. Ordersheet'!BH466)","v":""},{"$f":"IF('1. Ordersheet'!BI466=\"\",\"\",'1. Ordersheet'!BI466)","v":""},{"$f":"IF('1. Ordersheet'!BJ466=\"\",\"\",'1. Ordersheet'!BJ466)","v":""},{"$f":"IF('1. Ordersheet'!BK466=\"\",\"\",'1. Ordersheet'!BK466)","v":""},{"$f":"IF('1. Ordersheet'!BL466=\"\",\"\",'1. Ordersheet'!BL466)","v":""}]
[{"$f":"IF('1. Ordersheet'!F467=\"\",\"\",'1. Ordersheet'!F467)","v":""},{"$f":"IF('1. Ordersheet'!G467=\"\",\"\",'1. Ordersheet'!G467)","v":""},{"$f":"IF('1. Ordersheet'!H467=\"\",\"\",'1. Ordersheet'!H467)","v":""},{"$f":"IF('1. Ordersheet'!I467=\"\",\"\",'1. Ordersheet'!I467)","v":""},{"$f":"IF('1. Ordersheet'!J467=\"\",\"\",'1. Ordersheet'!J467)","v":""},{"$f":"IF('1. Ordersheet'!K467=\"\",\"\",'1. Ordersheet'!K467)","v":""},{"$f":"IF('1. Ordersheet'!L467=\"\",\"\",'1. Ordersheet'!L467)","v":""},{"$f":"IF('1. Ordersheet'!M467=\"\",\"\",'1. Ordersheet'!M467)","v":""},{"$f":"IF('1. Ordersheet'!N467=\"\",\"\",'1. Ordersheet'!N467)","v":""},{"$f":"IF('1. Ordersheet'!O467=\"\",\"\",'1. Ordersheet'!O467)","v":{"$error":"#N/A"}},{"$f":"IF('1. Ordersheet'!P467=\"\",\"\",'1. Ordersheet'!P467)","v":{"$error":"#N/A"}},{"$f":"IF('1. Ordersheet'!Q467=\"\",\"\",'1. Ordersheet'!Q467)","v":""},{"$f":"IF('1. Ordersheet'!R467=\"\",\"\",'1. Ordersheet'!R467)","v":""},{"$f":"IF('1. Ordersheet'!S467=\"\",\"\",'1. Ordersheet'!S467)","v":""},{"$f":"IF('1. Ordersheet'!V467=\"\",\"\",'1. Ordersheet'!V467)","v":""},{"$f":"IF('1. Ordersheet'!W467=\"\",\"\",'1. Ordersheet'!W467)","v":""},{"$f":"IF('1. Ordersheet'!X467=\"\",\"\",'1. Ordersheet'!X467)","v":""},{"$f":"IF('1. Ordersheet'!Y467=\"\",\"\",'1. Ordersheet'!Y467)","v":""},{"$f":"IF('1. Ordersheet'!Z467=\"\",\"\",'1. Ordersheet'!Z467)","v":""},{"$f":"IF('1. Ordersheet'!AA467=\"\",\"\",'1. Ordersheet'!AA467)","v":""},null,{"$f":"IF('1. Ordersheet'!AS467=\"\",\"\",'1. Ordersheet'!AS467)","v":""},{"$f":"IF('1. Ordersheet'!AT467=\"\",\"\",'1. Ordersheet'!AT467)","v":""},null,null,null,null,null,null,null,{"$f":"IF('1. Ordersheet'!AX467=\"\",\"\",'1. Ordersheet'!AX467)","v":""},{"$f":"IF('1. Ordersheet'!AY467=\"\",\"\",'1. Ordersheet'!AY467)","v":""},{"$f":"IF('1. Ordersheet'!AZ467=\"\",\"\",'1. Ordersheet'!AZ467)","v":""},{"$f":"IF('1. Ordersheet'!BA467=\"\",\"\",'1. Ordersheet'!BA467)","v":""},{"$f":"IF('1. Ordersheet'!BC467=\"\",\"\",'1. Ordersheet'!BC467)","v":""},{"$f":"IF('1. Ordersheet'!BD467=\"\",\"\",'1. Ordersheet'!BD467)","v":""},{"$f":"IF('1. Ordersheet'!BE467=\"\",\"\",'1. Ordersheet'!BE467)","v":""},{"$f":"IF('1. Ordersheet'!BF467=\"\",\"\",'1. Ordersheet'!BF467)","v":""},{"$f":"IF('1. Ordersheet'!BG467=\"\",\"\",'1. Ordersheet'!BG467)","v":"ZWO"},{"$f":"IF('1. Ordersheet'!BH467=\"\",\"\",'1. Ordersheet'!BH467)","v":""},{"$f":"IF('1. Ordersheet'!BI467=\"\",\"\",'1. Ordersheet'!BI467)","v":""},{"$f":"IF('1. Ordersheet'!BJ467=\"\",\"\",'1. Ordersheet'!BJ467)","v":""},{"$f":"IF('1. Ordersheet'!BK467=\"\",\"\",'1. Ordersheet'!BK467)","v":""},{"$f":"IF('1. Ordersheet'!BL467=\"\",\"\",'1. Ordersheet'!BL467)","v":""}]
[{"$f":"IF('1. Ordersheet'!F468=\"\",\"\",'1. Ordersheet'!F468)","v":""},{"$f":"IF('1. Ordersheet'!G468=\"\",\"\",'1. Ordersheet'!G468)","v":""},{"$f":"IF('1. Ordersheet'!H468=\"\",\"\",'1. Ordersheet'!H468)","v":""},{"$f":"IF('1. Ordersheet'!I468=\"\",\"\",'1. Ordersheet'!I468)","v":""},{"$f":"IF('1. Ordersheet'!J468=\"\",\"\",'1. Ordersheet'!J468)","v":""},{"$f":"IF('1. Ordersheet'!K468=\"\",\"\",'1. Ordersheet'!K468)","v":""},{"$f":"IF('1. Ordersheet'!L468=\"\",\"\",'1. Ordersheet'!L468)","v":""},{"$f":"IF('1. Ordersheet'!M468=\"\",\"\",'1. Ordersheet'!M468)","v":""},{"$f":"IF('1. Ordersheet'!N468=\"\",\"\",'1. Ordersheet'!N468)","v":""},{"$f":"IF('1. Ordersheet'!O468=\"\",\"\",'1. Ordersheet'!O468)","v":{"$error":"#N/A"}},{"$f":"IF('1. Ordersheet'!P468=\"\",\"\",'1. Ordersheet'!P468)","v":{"$error":"#N/A"}},{"$f":"IF('1. Ordersheet'!Q468=\"\",\"\",'1. Ordersheet'!Q468)","v":""},{"$f":"IF('1. Ordersheet'!R468=\"\",\"\",'1. Ordersheet'!R468)","v":""},{"$f":"IF('1. Ordersheet'!S468=\"\",\"\",'1. Ordersheet'!S468)","v":""},{"$f":"IF('1. Ordersheet'!V468=\"\",\"\",'1. Ordersheet'!V468)","v":""},{"$f":"IF('1. Ordersheet'!W468=\"\",\"\",'1. Ordersheet'!W468)","v":""},{"$f":"IF('1. Ordersheet'!X468=\"\",\"\",'1. Ordersheet'!X468)","v":""},{"$f":"IF('1. Ordersheet'!Y468=\"\",\"\",'1. Ordersheet'!Y468)","v":""},{"$f":"IF('1. Ordersheet'!Z468=\"\",\"\",'1. Ordersheet'!Z468)","v":""},{"$f":"IF('1. Ordersheet'!AA468=\"\",\"\",'1. Ordersheet'!AA468)","v":""},null,{"$f":"IF('1. Ordersheet'!AS468=\"\",\"\",'1. Ordersheet'!AS468)","v":""},{"$f":"IF('1. Ordersheet'!AT468=\"\",\"\",'1. Ordersheet'!AT468)","v":""},null,null,null,null,null,null,null,{"$f":"IF('1. Ordersheet'!AX468=\"\",\"\",'1. Ordersheet'!AX468)","v":""},{"$f":"IF('1. Ordersheet'!AY468=\"\",\"\",'1. Ordersheet'!AY468)","v":""},{"$f":"IF('1. Ordersheet'!AZ468=\"\",\"\",'1. Ordersheet'!AZ468)","v":""},{"$f":"IF('1. Ordersheet'!BA468=\"\",\"\",'1. Ordersheet'!BA468)","v":""},{"$f":"IF('1. Ordersheet'!BC468=\"\",\"\",'1. Ordersheet'!BC468)","v":""},{"$f":"IF('1. Ordersheet'!BD468=\"\",\"\",'1. Ordersheet'!BD468)","v":""},{"$f":"IF('1. Ordersheet'!BE468=\"\",\"\",'1. Ordersheet'!BE468)","v":""},{"$f":"IF('1. Ordersheet'!BF468=\"\",\"\",'1. Ordersheet'!BF468)","v":""},{"$f":"IF('1. Ordersheet'!BG468=\"\",\"\",'1. Ordersheet'!BG468)","v":"ZWO"},{"$f":"IF('1. Ordersheet'!BH468=\"\",\"\",'1. Ordersheet'!BH468)","v":""},{"$f":"IF('1. Ordersheet'!BI468=\"\",\"\",'1. Ordersheet'!BI468)","v":""},{"$f":"IF('1. Ordersheet'!BJ468=\"\",\"\",'1. Ordersheet'!BJ468)","v":""},{"$f":"IF('1. Ordersheet'!BK468=\"\",\"\",'1. Ordersheet'!BK468)","v":""},{"$f":"IF('1. Ordersheet'!BL468=\"\",\"\",'1. Ordersheet'!BL468)","v":""}]
[{"$f":"IF('1. Ordersheet'!F469=\"\",\"\",'1. Ordersheet'!F469)","v":""},{"$f":"IF('1. Ordersheet'!G469=\"\",\"\",'1. Ordersheet'!G469)","v":""},{"$f":"IF('1. Ordersheet'!H469=\"\",\"\",'1. Ordersheet'!H469)","v":""},{"$f":"IF('1. Ordersheet'!I469=\"\",\"\",'1. Ordersheet'!I469)","v":""},{"$f":"IF('1. Ordersheet'!J469=\"\",\"\",'1. Ordersheet'!J469)","v":""},{"$f":"IF('1. Ordersheet'!K469=\"\",\"\",'1. Ordersheet'!K469)","v":""},{"$f":"IF('1. Ordersheet'!L469=\"\",\"\",'1. Ordersheet'!L469)","v":""},{"$f":"IF('1. Ordersheet'!M469=\"\",\"\",'1. Ordersheet'!M469)","v":""},{"$f":"IF('1. Ordersheet'!N469=\"\",\"\",'1. Ordersheet'!N469)","v":""},{"$f":"IF('1. Ordersheet'!O469=\"\",\"\",'1. Ordersheet'!O469)","v":{"$error":"#N/A"}},{"$f":"IF('1. Ordersheet'!P469=\"\",\"\",'1. Ordersheet'!P469)","v":{"$error":"#N/A"}},{"$f":"IF('1. Ordersheet'!Q469=\"\",\"\",'1. Ordersheet'!Q469)","v":""},{"$f":"IF('1. Ordersheet'!R469=\"\",\"\",'1. Ordersheet'!R469)","v":""},{"$f":"IF('1. Ordersheet'!S469=\"\",\"\",'1. Ordersheet'!S469)","v":""},{"$f":"IF('1. Ordersheet'!V469=\"\",\"\",'1. Ordersheet'!V469)","v":""},{"$f":"IF('1. Ordersheet'!W469=\"\",\"\",'1. Ordersheet'!W469)","v":""},{"$f":"IF('1. Ordersheet'!X469=\"\",\"\",'1. Ordersheet'!X469)","v":""},{"$f":"IF('1. Ordersheet'!Y469=\"\",\"\",'1. Ordersheet'!Y469)","v":""},{"$f":"IF('1. Ordersheet'!Z469=\"\",\"\",'1. Ordersheet'!Z469)","v":""},{"$f":"IF('1. Ordersheet'!AA469=\"\",\"\",'1. Ordersheet'!AA469)","v":""},null,{"$f":"IF('1. Ordersheet'!AS469=\"\",\"\",'1. Ordersheet'!AS469)","v":""},{"$f":"IF('1. Ordersheet'!AT469=\"\",\"\",'1. Ordersheet'!AT469)","v":""},null,null,null,null,null,null,null,{"$f":"IF('1. Ordersheet'!AX469=\"\",\"\",'1. Ordersheet'!AX469)","v":""},{"$f":"IF('1. Ordersheet'!AY469=\"\",\"\",'1. Ordersheet'!AY469)","v":""},{"$f":"IF('1. Ordersheet'!AZ469=\"\",\"\",'1. Ordersheet'!AZ469)","v":""},{"$f":"IF('1. Ordersheet'!BA469=\"\",\"\",'1. Ordersheet'!BA469)","v":""},{"$f":"IF('1. Ordersheet'!BC469=\"\",\"\",'1. Ordersheet'!BC469)","v":""},{"$f":"IF('1. Ordersheet'!BD469=\"\",\"\",'1. Ordersheet'!BD469)","v":""},{"$f":"IF('1. Ordersheet'!BE469=\"\",\"\",'1. Ordersheet'!BE469)","v":""},{"$f":"IF('1. Ordersheet'!BF469=\"\",\"\",'1. Ordersheet'!BF469)","v":""},{"$f":"IF('1. Ordersheet'!BG469=\"\",\"\",'1. Ordersheet'!BG469)","v":"ZWO"},{"$f":"IF('1. Ordersheet'!BH469=\"\",\"\",'1. Ordersheet'!BH469)","v":""},{"$f":"IF('1. Ordersheet'!BI469=\"\",\"\",'1. Ordersheet'!BI469)","v":""},{"$f":"IF('1. Ordersheet'!BJ469=\"\",\"\",'1. Ordersheet'!BJ469)","v":""},{"$f":"IF('1. Ordersheet'!BK469=\"\",\"\",'1. Ordersheet'!BK469)","v":""},{"$f":"IF('1. Ordersheet'!BL469=\"\",\"\",'1. Ordersheet'!BL469)","v":""}]
[{"$f":"IF('1. Ordersheet'!F470=\"\",\"\",'1. Ordersheet'!F470)","v":""},{"$f":"IF('1. Ordersheet'!G470=\"\",\"\",'1. Ordersheet'!G470)","v":""},{"$f":"IF('1. Ordersheet'!H470=\"\",\"\",'1. Ordersheet'!H470)","v":""},{"$f":"IF('1. Ordersheet'!I470=\"\",\"\",'1. Ordersheet'!I470)","v":""},{"$f":"IF('1. Ordersheet'!J470=\"\",\"\",'1. Ordersheet'!J470)","v":""},{"$f":"IF('1. Ordersheet'!K470=\"\",\"\",'1. Ordersheet'!K470)","v":""},{"$f":"IF('1. Ordersheet'!L470=\"\",\"\",'1. Ordersheet'!L470)","v":""},{"$f":"IF('1. Ordersheet'!M470=\"\",\"\",'1. Ordersheet'!M470)","v":""},{"$f":"IF('1. Ordersheet'!N470=\"\",\"\",'1. Ordersheet'!N470)","v":""},{"$f":"IF('1. Ordersheet'!O470=\"\",\"\",'1. Ordersheet'!O470)","v":{"$error":"#N/A"}},{"$f":"IF('1. Ordersheet'!P470=\"\",\"\",'1. Ordersheet'!P470)","v":{"$error":"#N/A"}},{"$f":"IF('1. Ordersheet'!Q470=\"\",\"\",'1. Ordersheet'!Q470)","v":""},{"$f":"IF('1. Ordersheet'!R470=\"\",\"\",'1. Ordersheet'!R470)","v":""},{"$f":"IF('1. Ordersheet'!S470=\"\",\"\",'1. Ordersheet'!S470)","v":""},{"$f":"IF('1. Ordersheet'!V470=\"\",\"\",'1. Ordersheet'!V470)","v":""},{"$f":"IF('1. Ordersheet'!W470=\"\",\"\",'1. Ordersheet'!W470)","v":""},{"$f":"IF('1. Ordersheet'!X470=\"\",\"\",'1. Ordersheet'!X470)","v":""},{"$f":"IF('1. Ordersheet'!Y470=\"\",\"\",'1. Ordersheet'!Y470)","v":""},{"$f":"IF('1. Ordersheet'!Z470=\"\",\"\",'1. Ordersheet'!Z470)","v":""},{"$f":"IF('1. Ordersheet'!AA470=\"\",\"\",'1. Ordersheet'!AA470)","v":""},null,{"$f":"IF('1. Ordersheet'!AS470=\"\",\"\",'1. Ordersheet'!AS470)","v":""},{"$f":"IF('1. Ordersheet'!AT470=\"\",\"\",'1. Ordersheet'!AT470)","v":""},null,null,null,null,null,null,null,{"$f":"IF('1. Ordersheet'!AX470=\"\",\"\",'1. Ordersheet'!AX470)","v":""},{"$f":"IF('1. Ordersheet'!AY470=\"\",\"\",'1. Ordersheet'!AY470)","v":""},{"$f":"IF('1. Ordersheet'!AZ470=\"\",\"\",'1. Ordersheet'!AZ470)","v":""},{"$f":"IF('1. Ordersheet'!BA470=\"\",\"\",'1. Ordersheet'!BA470)","v":""},{"$f":"IF('1. Ordersheet'!BC470=\"\",\"\",'1. Ordersheet'!BC470)","v":""},{"$f":"IF('1. Ordersheet'!BD470=\"\",\"\",'1. Ordersheet'!BD470)","v":""},{"$f":"IF('1. Ordersheet'!BE470=\"\",\"\",'1. Ordersheet'!BE470)","v":""},{"$f":"IF('1. Ordersheet'!BF470=\"\",\"\",'1. Ordersheet'!BF470)","v":""},{"$f":"IF('1. Ordersheet'!BG470=\"\",\"\",'1. Ordersheet'!BG470)","v":"ZWO"},{"$f":"IF('1. Ordersheet'!BH470=\"\",\"\",'1. Ordersheet'!BH470)","v":""},{"$f":"IF('1. Ordersheet'!BI470=\"\",\"\",'1. Ordersheet'!BI470)","v":""},{"$f":"IF('1. Ordersheet'!BJ470=\"\",\"\",'1. Ordersheet'!BJ470)","v":""},{"$f":"IF('1. Ordersheet'!BK470=\"\",\"\",'1. Ordersheet'!BK470)","v":""},{"$f":"IF('1. Ordersheet'!BL470=\"\",\"\",'1. Ordersheet'!BL470)","v":""}]
[{"$f":"IF('1. Ordersheet'!F471=\"\",\"\",'1. Ordersheet'!F471)","v":""},{"$f":"IF('1. Ordersheet'!G471=\"\",\"\",'1. Ordersheet'!G471)","v":""},{"$f":"IF('1. Ordersheet'!H471=\"\",\"\",'1. Ordersheet'!H471)","v":""},{"$f":"IF('1. Ordersheet'!I471=\"\",\"\",'1. Ordersheet'!I471)","v":""},{"$f":"IF('1. Ordersheet'!J471=\"\",\"\",'1. Ordersheet'!J471)","v":""},{"$f":"IF('1. Ordersheet'!K471=\"\",\"\",'1. Ordersheet'!K471)","v":""},{"$f":"IF('1. Ordersheet'!L471=\"\",\"\",'1. Ordersheet'!L471)","v":""},{"$f":"IF('1. Ordersheet'!M471=\"\",\"\",'1. Ordersheet'!M471)","v":""},{"$f":"IF('1. Ordersheet'!N471=\"\",\"\",'1. Ordersheet'!N471)","v":""},{"$f":"IF('1. Ordersheet'!O471=\"\",\"\",'1. Ordersheet'!O471)","v":{"$error":"#N/A"}},{"$f":"IF('1. Ordersheet'!P471=\"\",\"\",'1. Ordersheet'!P471)","v":{"$error":"#N/A"}},{"$f":"IF('1. Ordersheet'!Q471=\"\",\"\",'1. Ordersheet'!Q471)","v":""},{"$f":"IF('1. Ordersheet'!R471=\"\",\"\",'1. Ordersheet'!R471)","v":""},{"$f":"IF('1. Ordersheet'!S471=\"\",\"\",'1. Ordersheet'!S471)","v":""},{"$f":"IF('1. Ordersheet'!V471=\"\",\"\",'1. Ordersheet'!V471)","v":""},{"$f":"IF('1. Ordersheet'!W471=\"\",\"\",'1. Ordersheet'!W471)","v":""},{"$f":"IF('1. Ordersheet'!X471=\"\",\"\",'1. Ordersheet'!X471)","v":""},{"$f":"IF('1. Ordersheet'!Y471=\"\",\"\",'1. Ordersheet'!Y471)","v":""},{"$f":"IF('1. Ordersheet'!Z471=\"\",\"\",'1. Ordersheet'!Z471)","v":""},{"$f":"IF('1. Ordersheet'!AA471=\"\",\"\",'1. Ordersheet'!AA471)","v":""},null,{"$f":"IF('1. Ordersheet'!AS471=\"\",\"\",'1. Ordersheet'!AS471)","v":""},{"$f":"IF('1. Ordersheet'!AT471=\"\",\"\",'1. Ordersheet'!AT471)","v":""},null,null,null,null,null,null,null,{"$f":"IF('1. Ordersheet'!AX471=\"\",\"\",'1. Ordersheet'!AX471)","v":""},{"$f":"IF('1. Ordersheet'!AY471=\"\",\"\",'1. Ordersheet'!AY471)","v":""},{"$f":"IF('1. Ordersheet'!AZ471=\"\",\"\",'1. Ordersheet'!AZ471)","v":""},{"$f":"IF('1. Ordersheet'!BA471=\"\",\"\",'1. Ordersheet'!BA471)","v":""},{"$f":"IF('1. Ordersheet'!BC471=\"\",\"\",'1. Ordersheet'!BC471)","v":""},{"$f":"IF('1. Ordersheet'!BD471=\"\",\"\",'1. Ordersheet'!BD471)","v":""},{"$f":"IF('1. Ordersheet'!BE471=\"\",\"\",'1. Ordersheet'!BE471)","v":""},{"$f":"IF('1. Ordersheet'!BF471=\"\",\"\",'1. Ordersheet'!BF471)","v":""},{"$f":"IF('1. Ordersheet'!BG471=\"\",\"\",'1. Ordersheet'!BG471)","v":"ZWO"},{"$f":"IF('1. Ordersheet'!BH471=\"\",\"\",'1. Ordersheet'!BH471)","v":""},{"$f":"IF('1. Ordersheet'!BI471=\"\",\"\",'1. Ordersheet'!BI471)","v":""},{"$f":"IF('1. Ordersheet'!BJ471=\"\",\"\",'1. Ordersheet'!BJ471)","v":""},{"$f":"IF('1. Ordersheet'!BK471=\"\",\"\",'1. Ordersheet'!BK471)","v":""},{"$f":"IF('1. Ordersheet'!BL471=\"\",\"\",'1. Ordersheet'!BL471)","v":""}]
[{"$f":"IF('1. Ordersheet'!F472=\"\",\"\",'1. Ordersheet'!F472)","v":""},{"$f":"IF('1. Ordersheet'!G472=\"\",\"\",'1. Ordersheet'!G472)","v":""},{"$f":"IF('1. Ordersheet'!H472=\"\",\"\",'1. Ordersheet'!H472)","v":""},{"$f":"IF('1. Ordersheet'!I472=\"\",\"\",'1. Ordersheet'!I472)","v":""},{"$f":"IF('1. Ordersheet'!J472=\"\",\"\",'1. Ordersheet'!J472)","v":""},{"$f":"IF('1. Ordersheet'!K472=\"\",\"\",'1. Ordersheet'!K472)","v":""},{"$f":"IF('1. Ordersheet'!L472=\"\",\"\",'1. Ordersheet'!L472)","v":""},{"$f":"IF('1. Ordersheet'!M472=\"\",\"\",'1. Ordersheet'!M472)","v":""},{"$f":"IF('1. Ordersheet'!N472=\"\",\"\",'1. Ordersheet'!N472)","v":""},{"$f":"IF('1. Ordersheet'!O472=\"\",\"\",'1. Ordersheet'!O472)","v":{"$error":"#N/A"}},{"$f":"IF('1. Ordersheet'!P472=\"\",\"\",'1. Ordersheet'!P472)","v":{"$error":"#N/A"}},{"$f":"IF('1. Ordersheet'!Q472=\"\",\"\",'1. Ordersheet'!Q472)","v":""},{"$f":"IF('1. Ordersheet'!R472=\"\",\"\",'1. Ordersheet'!R472)","v":""},{"$f":"IF('1. Ordersheet'!S472=\"\",\"\",'1. Ordersheet'!S472)","v":""},{"$f":"IF('1. Ordersheet'!V472=\"\",\"\",'1. Ordersheet'!V472)","v":""},{"$f":"IF('1. Ordersheet'!W472=\"\",\"\",'1. Ordersheet'!W472)","v":""},{"$f":"IF('1. Ordersheet'!X472=\"\",\"\",'1. Ordersheet'!X472)","v":""},{"$f":"IF('1. Ordersheet'!Y472=\"\",\"\",'1. Ordersheet'!Y472)","v":""},{"$f":"IF('1. Ordersheet'!Z472=\"\",\"\",'1. Ordersheet'!Z472)","v":""},{"$f":"IF('1. Ordersheet'!AA472=\"\",\"\",'1. Ordersheet'!AA472)","v":""},null,{"$f":"IF('1. Ordersheet'!AS472=\"\",\"\",'1. Ordersheet'!AS472)","v":""},{"$f":"IF('1. Ordersheet'!AT472=\"\",\"\",'1. Ordersheet'!AT472)","v":""},null,null,null,null,null,null,null,{"$f":"IF('1. Ordersheet'!AX472=\"\",\"\",'1. Ordersheet'!AX472)","v":""},{"$f":"IF('1. Ordersheet'!AY472=\"\",\"\",'1. Ordersheet'!AY472)","v":""},{"$f":"IF('1. Ordersheet'!AZ472=\"\",\"\",'1. Ordersheet'!AZ472)","v":""},{"$f":"IF('1. Ordersheet'!BA472=\"\",\"\",'1. Ordersheet'!BA472)","v":""},{"$f":"IF('1. Ordersheet'!BC472=\"\",\"\",'1. Ordersheet'!BC472)","v":""},{"$f":"IF('1. Ordersheet'!BD472=\"\",\"\",'1. Ordersheet'!BD472)","v":""},{"$f":"IF('1. Ordersheet'!BE472=\"\",\"\",'1. Ordersheet'!BE472)","v":""},{"$f":"IF('1. Ordersheet'!BF472=\"\",\"\",'1. Ordersheet'!BF472)","v":""},{"$f":"IF('1. Ordersheet'!BG472=\"\",\"\",'1. Ordersheet'!BG472)","v":"ZWO"},{"$f":"IF('1. Ordersheet'!BH472=\"\",\"\",'1. Ordersheet'!BH472)","v":""},{"$f":"IF('1. Ordersheet'!BI472=\"\",\"\",'1. Ordersheet'!BI472)","v":""},{"$f":"IF('1. Ordersheet'!BJ472=\"\",\"\",'1. Ordersheet'!BJ472)","v":""},{"$f":"IF('1. Ordersheet'!BK472=\"\",\"\",'1. Ordersheet'!BK472)","v":""},{"$f":"IF('1. Ordersheet'!BL472=\"\",\"\",'1. Ordersheet'!BL472)","v":""}]
[{"$f":"IF('1. Ordersheet'!F473=\"\",\"\",'1. Ordersheet'!F473)","v":""},{"$f":"IF('1. Ordersheet'!G473=\"\",\"\",'1. Ordersheet'!G473)","v":""},{"$f":"IF('1. Ordersheet'!H473=\"\",\"\",'1. Ordersheet'!H473)","v":""},{"$f":"IF('1. Ordersheet'!I473=\"\",\"\",'1. Ordersheet'!I473)","v":""},{"$f":"IF('1. Ordersheet'!J473=\"\",\"\",'1. Ordersheet'!J473)","v":""},{"$f":"IF('1. Ordersheet'!K473=\"\",\"\",'1. Ordersheet'!K473)","v":""},{"$f":"IF('1. Ordersheet'!L473=\"\",\"\",'1. Ordersheet'!L473)","v":""},{"$f":"IF('1. Ordersheet'!M473=\"\",\"\",'1. Ordersheet'!M473)","v":""},{"$f":"IF('1. Ordersheet'!N473=\"\",\"\",'1. Ordersheet'!N473)","v":""},{"$f":"IF('1. Ordersheet'!O473=\"\",\"\",'1. Ordersheet'!O473)","v":{"$error":"#N/A"}},{"$f":"IF('1. Ordersheet'!P473=\"\",\"\",'1. Ordersheet'!P473)","v":{"$error":"#N/A"}},{"$f":"IF('1. Ordersheet'!Q473=\"\",\"\",'1. Ordersheet'!Q473)","v":""},{"$f":"IF('1. Ordersheet'!R473=\"\",\"\",'1. Ordersheet'!R473)","v":""},{"$f":"IF('1. Ordersheet'!S473=\"\",\"\",'1. Ordersheet'!S473)","v":""},{"$f":"IF('1. Ordersheet'!V473=\"\",\"\",'1. Ordersheet'!V473)","v":""},{"$f":"IF('1. Ordersheet'!W473=\"\",\"\",'1. Ordersheet'!W473)","v":""},{"$f":"IF('1. Ordersheet'!X473=\"\",\"\",'1. Ordersheet'!X473)","v":""},{"$f":"IF('1. Ordersheet'!Y473=\"\",\"\",'1. Ordersheet'!Y473)","v":""},{"$f":"IF('1. Ordersheet'!Z473=\"\",\"\",'1. Ordersheet'!Z473)","v":""},{"$f":"IF('1. Ordersheet'!AA473=\"\",\"\",'1. Ordersheet'!AA473)","v":""},null,{"$f":"IF('1. Ordersheet'!AS473=\"\",\"\",'1. Ordersheet'!AS473)","v":""},{"$f":"IF('1. Ordersheet'!AT473=\"\",\"\",'1. Ordersheet'!AT473)","v":""},null,null,null,null,null,null,null,{"$f":"IF('1. Ordersheet'!AX473=\"\",\"\",'1. Ordersheet'!AX473)","v":""},{"$f":"IF('1. Ordersheet'!AY473=\"\",\"\",'1. Ordersheet'!AY473)","v":""},{"$f":"IF('1. Ordersheet'!AZ473=\"\",\"\",'1. Ordersheet'!AZ473)","v":""},{"$f":"IF('1. Ordersheet'!BA473=\"\",\"\",'1. Ordersheet'!BA473)","v":""},{"$f":"IF('1. Ordersheet'!BC473=\"\",\"\",'1. Ordersheet'!BC473)","v":""},{"$f":"IF('1. Ordersheet'!BD473=\"\",\"\",'1. Ordersheet'!BD473)","v":""},{"$f":"IF('1. Ordersheet'!BE473=\"\",\"\",'1. Ordersheet'!BE473)","v":""},{"$f":"IF('1. Ordersheet'!BF473=\"\",\"\",'1. Ordersheet'!BF473)","v":""},{"$f":"IF('1. Ordersheet'!BG473=\"\",\"\",'1. Ordersheet'!BG473)","v":"ZWO"},{"$f":"IF('1. Ordersheet'!BH473=\"\",\"\",'1. Ordersheet'!BH473)","v":""},{"$f":"IF('1. Ordersheet'!BI473=\"\",\"\",'1. Ordersheet'!BI473)","v":""},{"$f":"IF('1. Ordersheet'!BJ473=\"\",\"\",'1. Ordersheet'!BJ473)","v":""},{"$f":"IF('1. Ordersheet'!BK473=\"\",\"\",'1. Ordersheet'!BK473)","v":""},{"$f":"IF('1. Ordersheet'!BL473=\"\",\"\",'1. Ordersheet'!BL473)","v":""}]
[{"$f":"IF('1. Ordersheet'!F474=\"\",\"\",'1. Ordersheet'!F474)","v":""},{"$f":"IF('1. Ordersheet'!G474=\"\",\"\",'1. Ordersheet'!G474)","v":""},{"$f":"IF('1. Ordersheet'!H474=\"\",\"\",'1. Ordersheet'!H474)","v":""},{"$f":"IF('1. Ordersheet'!I474=\"\",\"\",'1. Ordersheet'!I474)","v":""},{"$f":"IF('1. Ordersheet'!J474=\"\",\"\",'1. Ordersheet'!J474)","v":""},{"$f":"IF('1. Ordersheet'!K474=\"\",\"\",'1. Ordersheet'!K474)","v":""},{"$f":"IF('1. Ordersheet'!L474=\"\",\"\",'1. Ordersheet'!L474)","v":""},{"$f":"IF('1. Ordersheet'!M474=\"\",\"\",'1. Ordersheet'!M474)","v":""},{"$f":"IF('1. Ordersheet'!N474=\"\",\"\",'1. Ordersheet'!N474)","v":""},{"$f":"IF('1. Ordersheet'!O474=\"\",\"\",'1. Ordersheet'!O474)","v":{"$error":"#N/A"}},{"$f":"IF('1. Ordersheet'!P474=\"\",\"\",'1. Ordersheet'!P474)","v":{"$error":"#N/A"}},{"$f":"IF('1. Ordersheet'!Q474=\"\",\"\",'1. Ordersheet'!Q474)","v":""},{"$f":"IF('1. Ordersheet'!R474=\"\",\"\",'1. Ordersheet'!R474)","v":""},{"$f":"IF('1. Ordersheet'!S474=\"\",\"\",'1. Ordersheet'!S474)","v":""},{"$f":"IF('1. Ordersheet'!V474=\"\",\"\",'1. Ordersheet'!V474)","v":""},{"$f":"IF('1. Ordersheet'!W474=\"\",\"\",'1. Ordersheet'!W474)","v":""},{"$f":"IF('1. Ordersheet'!X474=\"\",\"\",'1. Ordersheet'!X474)","v":""},{"$f":"IF('1. Ordersheet'!Y474=\"\",\"\",'1. Ordersheet'!Y474)","v":""},{"$f":"IF('1. Ordersheet'!Z474=\"\",\"\",'1. Ordersheet'!Z474)","v":""},{"$f":"IF('1. Ordersheet'!AA474=\"\",\"\",'1. Ordersheet'!AA474)","v":""},null,{"$f":"IF('1. Ordersheet'!AS474=\"\",\"\",'1. Ordersheet'!AS474)","v":""},{"$f":"IF('1. Ordersheet'!AT474=\"\",\"\",'1. Ordersheet'!AT474)","v":""},null,null,null,null,null,null,null,{"$f":"IF('1. Ordersheet'!AX474=\"\",\"\",'1. Ordersheet'!AX474)","v":""},{"$f":"IF('1. Ordersheet'!AY474=\"\",\"\",'1. Ordersheet'!AY474)","v":""},{"$f":"IF('1. Ordersheet'!AZ474=\"\",\"\",'1. Ordersheet'!AZ474)","v":""},{"$f":"IF('1. Ordersheet'!BA474=\"\",\"\",'1. Ordersheet'!BA474)","v":""},{"$f":"IF('1. Ordersheet'!BC474=\"\",\"\",'1. Ordersheet'!BC474)","v":""},{"$f":"IF('1. Ordersheet'!BD474=\"\",\"\",'1. Ordersheet'!BD474)","v":""},{"$f":"IF('1. Ordersheet'!BE474=\"\",\"\",'1. Ordersheet'!BE474)","v":""},{"$f":"IF('1. Ordersheet'!BF474=\"\",\"\",'1. Ordersheet'!BF474)","v":""},{"$f":"IF('1. Ordersheet'!BG474=\"\",\"\",'1. Ordersheet'!BG474)","v":"ZWO"},{"$f":"IF('1. Ordersheet'!BH474=\"\",\"\",'1. Ordersheet'!BH474)","v":""},{"$f":"IF('1. Ordersheet'!BI474=\"\",\"\",'1. Ordersheet'!BI474)","v":""},{"$f":"IF('1. Ordersheet'!BJ474=\"\",\"\",'1. Ordersheet'!BJ474)","v":""},{"$f":"IF('1. Ordersheet'!BK474=\"\",\"\",'1. Ordersheet'!BK474)","v":""},{"$f":"IF('1. Ordersheet'!BL474=\"\",\"\",'1. Ordersheet'!BL474)","v":""}]
[{"$f":"IF('1. Ordersheet'!F475=\"\",\"\",'1. Ordersheet'!F475)","v":""},{"$f":"IF('1. Ordersheet'!G475=\"\",\"\",'1. Ordersheet'!G475)","v":""},{"$f":"IF('1. Ordersheet'!H475=\"\",\"\",'1. Ordersheet'!H475)","v":""},{"$f":"IF('1. Ordersheet'!I475=\"\",\"\",'1. Ordersheet'!I475)","v":""},{"$f":"IF('1. Ordersheet'!J475=\"\",\"\",'1. Ordersheet'!J475)","v":""},{"$f":"IF('1. Ordersheet'!K475=\"\",\"\",'1. Ordersheet'!K475)","v":""},{"$f":"IF('1. Ordersheet'!L475=\"\",\"\",'1. Ordersheet'!L475)","v":""},{"$f":"IF('1. Ordersheet'!M475=\"\",\"\",'1. Ordersheet'!M475)","v":""},{"$f":"IF('1. Ordersheet'!N475=\"\",\"\",'1. Ordersheet'!N475)","v":""},{"$f":"IF('1. Ordersheet'!O475=\"\",\"\",'1. Ordersheet'!O475)","v":{"$error":"#N/A"}},{"$f":"IF('1. Ordersheet'!P475=\"\",\"\",'1. Ordersheet'!P475)","v":{"$error":"#N/A"}},{"$f":"IF('1. Ordersheet'!Q475=\"\",\"\",'1. Ordersheet'!Q475)","v":""},{"$f":"IF('1. Ordersheet'!R475=\"\",\"\",'1. Ordersheet'!R475)","v":""},{"$f":"IF('1. Ordersheet'!S475=\"\",\"\",'1. Ordersheet'!S475)","v":""},{"$f":"IF('1. Ordersheet'!V475=\"\",\"\",'1. Ordersheet'!V475)","v":""},{"$f":"IF('1. Ordersheet'!W475=\"\",\"\",'1. Ordersheet'!W475)","v":""},{"$f":"IF('1. Ordersheet'!X475=\"\",\"\",'1. Ordersheet'!X475)","v":""},{"$f":"IF('1. Ordersheet'!Y475=\"\",\"\",'1. Ordersheet'!Y475)","v":""},{"$f":"IF('1. Ordersheet'!Z475=\"\",\"\",'1. Ordersheet'!Z475)","v":""},{"$f":"IF('1. Ordersheet'!AA475=\"\",\"\",'1. Ordersheet'!AA475)","v":""},null,{"$f":"IF('1. Ordersheet'!AS475=\"\",\"\",'1. Ordersheet'!AS475)","v":""},{"$f":"IF('1. Ordersheet'!AT475=\"\",\"\",'1. Ordersheet'!AT475)","v":""},null,null,null,null,null,null,null,{"$f":"IF('1. Ordersheet'!AX475=\"\",\"\",'1. Ordersheet'!AX475)","v":""},{"$f":"IF('1. Ordersheet'!AY475=\"\",\"\",'1. Ordersheet'!AY475)","v":""},{"$f":"IF('1. Ordersheet'!AZ475=\"\",\"\",'1. Ordersheet'!AZ475)","v":""},{"$f":"IF('1. Ordersheet'!BA475=\"\",\"\",'1. Ordersheet'!BA475)","v":""},{"$f":"IF('1. Ordersheet'!BC475=\"\",\"\",'1. Ordersheet'!BC475)","v":""},{"$f":"IF('1. Ordersheet'!BD475=\"\",\"\",'1. Ordersheet'!BD475)","v":""},{"$f":"IF('1. Ordersheet'!BE475=\"\",\"\",'1. Ordersheet'!BE475)","v":""},{"$f":"IF('1. Ordersheet'!BF475=\"\",\"\",'1. Ordersheet'!BF475)","v":""},{"$f":"IF('1. Ordersheet'!BG475=\"\",\"\",'1. Ordersheet'!BG475)","v":"ZWO"},{"$f":"IF('1. Ordersheet'!BH475=\"\",\"\",'1. Ordersheet'!BH475)","v":""},{"$f":"IF('1. Ordersheet'!BI475=\"\",\"\",'1. Ordersheet'!BI475)","v":""},{"$f":"IF('1. Ordersheet'!BJ475=\"\",\"\",'1. Ordersheet'!BJ475)","v":""},{"$f":"IF('1. Ordersheet'!BK475=\"\",\"\",'1. Ordersheet'!BK475)","v":""},{"$f":"IF('1. Ordersheet'!BL475=\"\",\"\",'1. Ordersheet'!BL475)","v":""}]
[{"$f":"IF('1. Ordersheet'!F476=\"\",\"\",'1. Ordersheet'!F476)","v":""},{"$f":"IF('1. Ordersheet'!G476=\"\",\"\",'1. Ordersheet'!G476)","v":""},{"$f":"IF('1. Ordersheet'!H476=\"\",\"\",'1. Ordersheet'!H476)","v":""},{"$f":"IF('1. Ordersheet'!I476=\"\",\"\",'1. Ordersheet'!I476)","v":""},{"$f":"IF('1. Ordersheet'!J476=\"\",\"\",'1. Ordersheet'!J476)","v":""},{"$f":"IF('1. Ordersheet'!K476=\"\",\"\",'1. Ordersheet'!K476)","v":""},{"$f":"IF('1. Ordersheet'!L476=\"\",\"\",'1. Ordersheet'!L476)","v":""},{"$f":"IF('1. Ordersheet'!M476=\"\",\"\",'1. Ordersheet'!M476)","v":""},{"$f":"IF('1. Ordersheet'!N476=\"\",\"\",'1. Ordersheet'!N476)","v":""},{"$f":"IF('1. Ordersheet'!O476=\"\",\"\",'1. Ordersheet'!O476)","v":{"$error":"#N/A"}},{"$f":"IF('1. Ordersheet'!P476=\"\",\"\",'1. Ordersheet'!P476)","v":{"$error":"#N/A"}},{"$f":"IF('1. Ordersheet'!Q476=\"\",\"\",'1. Ordersheet'!Q476)","v":""},{"$f":"IF('1. Ordersheet'!R476=\"\",\"\",'1. Ordersheet'!R476)","v":""},{"$f":"IF('1. Ordersheet'!S476=\"\",\"\",'1. Ordersheet'!S476)","v":""},{"$f":"IF('1. Ordersheet'!V476=\"\",\"\",'1. Ordersheet'!V476)","v":""},{"$f":"IF('1. Ordersheet'!W476=\"\",\"\",'1. Ordersheet'!W476)","v":""},{"$f":"IF('1. Ordersheet'!X476=\"\",\"\",'1. Ordersheet'!X476)","v":""},{"$f":"IF('1. Ordersheet'!Y476=\"\",\"\",'1. Ordersheet'!Y476)","v":""},{"$f":"IF('1. Ordersheet'!Z476=\"\",\"\",'1. Ordersheet'!Z476)","v":""},{"$f":"IF('1. Ordersheet'!AA476=\"\",\"\",'1. Ordersheet'!AA476)","v":""},null,{"$f":"IF('1. Ordersheet'!AS476=\"\",\"\",'1. Ordersheet'!AS476)","v":""},{"$f":"IF('1. Ordersheet'!AT476=\"\",\"\",'1. Ordersheet'!AT476)","v":""},null,null,null,null,null,null,null,{"$f":"IF('1. Ordersheet'!AX476=\"\",\"\",'1. Ordersheet'!AX476)","v":""},{"$f":"IF('1. Ordersheet'!AY476=\"\",\"\",'1. Ordersheet'!AY476)","v":""},{"$f":"IF('1. Ordersheet'!AZ476=\"\",\"\",'1. Ordersheet'!AZ476)","v":""},{"$f":"IF('1. Ordersheet'!BA476=\"\",\"\",'1. Ordersheet'!BA476)","v":""},{"$f":"IF('1. Ordersheet'!BC476=\"\",\"\",'1. Ordersheet'!BC476)","v":""},{"$f":"IF('1. Ordersheet'!BD476=\"\",\"\",'1. Ordersheet'!BD476)","v":""},{"$f":"IF('1. Ordersheet'!BE476=\"\",\"\",'1. Ordersheet'!BE476)","v":""},{"$f":"IF('1. Ordersheet'!BF476=\"\",\"\",'1. Ordersheet'!BF476)","v":""},{"$f":"IF('1. Ordersheet'!BG476=\"\",\"\",'1. Ordersheet'!BG476)","v":"ZWO"},{"$f":"IF('1. Ordersheet'!BH476=\"\",\"\",'1. Ordersheet'!BH476)","v":""},{"$f":"IF('1. Ordersheet'!BI476=\"\",\"\",'1. Ordersheet'!BI476)","v":""},{"$f":"IF('1. Ordersheet'!BJ476=\"\",\"\",'1. Ordersheet'!BJ476)","v":""},{"$f":"IF('1. Ordersheet'!BK476=\"\",\"\",'1. Ordersheet'!BK476)","v":""},{"$f":"IF('1. Ordersheet'!BL476=\"\",\"\",'1. Ordersheet'!BL476)","v":""}]
[{"$f":"IF('1. Ordersheet'!F477=\"\",\"\",'1. Ordersheet'!F477)","v":""},{"$f":"IF('1. Ordersheet'!G477=\"\",\"\",'1. Ordersheet'!G477)","v":""},{"$f":"IF('1. Ordersheet'!H477=\"\",\"\",'1. Ordersheet'!H477)","v":""},{"$f":"IF('1. Ordersheet'!I477=\"\",\"\",'1. Ordersheet'!I477)","v":""},{"$f":"IF('1. Ordersheet'!J477=\"\",\"\",'1. Ordersheet'!J477)","v":""},{"$f":"IF('1. Ordersheet'!K477=\"\",\"\",'1. Ordersheet'!K477)","v":""},{"$f":"IF('1. Ordersheet'!L477=\"\",\"\",'1. Ordersheet'!L477)","v":""},{"$f":"IF('1. Ordersheet'!M477=\"\",\"\",'1. Ordersheet'!M477)","v":""},{"$f":"IF('1. Ordersheet'!N477=\"\",\"\",'1. Ordersheet'!N477)","v":""},{"$f":"IF('1. Ordersheet'!O477=\"\",\"\",'1. Ordersheet'!O477)","v":{"$error":"#N/A"}},{"$f":"IF('1. Ordersheet'!P477=\"\",\"\",'1. Ordersheet'!P477)","v":{"$error":"#N/A"}},{"$f":"IF('1. Ordersheet'!Q477=\"\",\"\",'1. Ordersheet'!Q477)","v":""},{"$f":"IF('1. Ordersheet'!R477=\"\",\"\",'1. Ordersheet'!R477)","v":""},{"$f":"IF('1. Ordersheet'!S477=\"\",\"\",'1. Ordersheet'!S477)","v":""},{"$f":"IF('1. Ordersheet'!V477=\"\",\"\",'1. Ordersheet'!V477)","v":""},{"$f":"IF('1. Ordersheet'!W477=\"\",\"\",'1. Ordersheet'!W477)","v":""},{"$f":"IF('1. Ordersheet'!X477=\"\",\"\",'1. Ordersheet'!X477)","v":""},{"$f":"IF('1. Ordersheet'!Y477=\"\",\"\",'1. Ordersheet'!Y477)","v":""},{"$f":"IF('1. Ordersheet'!Z477=\"\",\"\",'1. Ordersheet'!Z477)","v":""},{"$f":"IF('1. Ordersheet'!AA477=\"\",\"\",'1. Ordersheet'!AA477)","v":""},null,{"$f":"IF('1. Ordersheet'!AS477=\"\",\"\",'1. Ordersheet'!AS477)","v":""},{"$f":"IF('1. Ordersheet'!AT477=\"\",\"\",'1. Ordersheet'!AT477)","v":""},null,null,null,null,null,null,null,{"$f":"IF('1. Ordersheet'!AX477=\"\",\"\",'1. Ordersheet'!AX477)","v":""},{"$f":"IF('1. Ordersheet'!AY477=\"\",\"\",'1. Ordersheet'!AY477)","v":""},{"$f":"IF('1. Ordersheet'!AZ477=\"\",\"\",'1. Ordersheet'!AZ477)","v":""},{"$f":"IF('1. Ordersheet'!BA477=\"\",\"\",'1. Ordersheet'!BA477)","v":""},{"$f":"IF('1. Ordersheet'!BC477=\"\",\"\",'1. Ordersheet'!BC477)","v":""},{"$f":"IF('1. Ordersheet'!BD477=\"\",\"\",'1. Ordersheet'!BD477)","v":""},{"$f":"IF('1. Ordersheet'!BE477=\"\",\"\",'1. Ordersheet'!BE477)","v":""},{"$f":"IF('1. Ordersheet'!BF477=\"\",\"\",'1. Ordersheet'!BF477)","v":""},{"$f":"IF('1. Ordersheet'!BG477=\"\",\"\",'1. Ordersheet'!BG477)","v":"ZWO"},{"$f":"IF('1. Ordersheet'!BH477=\"\",\"\",'1. Ordersheet'!BH477)","v":""},{"$f":"IF('1. Ordersheet'!BI477=\"\",\"\",'1. Ordersheet'!BI477)","v":""},{"$f":"IF('1. Ordersheet'!BJ477=\"\",\"\",'1. Ordersheet'!BJ477)","v":""},{"$f":"IF('1. Ordersheet'!BK477=\"\",\"\",'1. Ordersheet'!BK477)","v":""},{"$f":"IF('1. Ordersheet'!BL477=\"\",\"\",'1. Ordersheet'!BL477)","v":""}]
[{"$f":"IF('1. Ordersheet'!F478=\"\",\"\",'1. Ordersheet'!F478)","v":""},{"$f":"IF('1. Ordersheet'!G478=\"\",\"\",'1. Ordersheet'!G478)","v":""},{"$f":"IF('1. Ordersheet'!H478=\"\",\"\",'1. Ordersheet'!H478)","v":""},{"$f":"IF('1. Ordersheet'!I478=\"\",\"\",'1. Ordersheet'!I478)","v":""},{"$f":"IF('1. Ordersheet'!J478=\"\",\"\",'1. Ordersheet'!J478)","v":""},{"$f":"IF('1. Ordersheet'!K478=\"\",\"\",'1. Ordersheet'!K478)","v":""},{"$f":"IF('1. Ordersheet'!L478=\"\",\"\",'1. Ordersheet'!L478)","v":""},{"$f":"IF('1. Ordersheet'!M478=\"\",\"\",'1. Ordersheet'!M478)","v":""},{"$f":"IF('1. Ordersheet'!N478=\"\",\"\",'1. Ordersheet'!N478)","v":""},{"$f":"IF('1. Ordersheet'!O478=\"\",\"\",'1. Ordersheet'!O478)","v":{"$error":"#N/A"}},{"$f":"IF('1. Ordersheet'!P478=\"\",\"\",'1. Ordersheet'!P478)","v":{"$error":"#N/A"}},{"$f":"IF('1. Ordersheet'!Q478=\"\",\"\",'1. Ordersheet'!Q478)","v":""},{"$f":"IF('1. Ordersheet'!R478=\"\",\"\",'1. Ordersheet'!R478)","v":""},{"$f":"IF('1. Ordersheet'!S478=\"\",\"\",'1. Ordersheet'!S478)","v":""},{"$f":"IF('1. Ordersheet'!V478=\"\",\"\",'1. Ordersheet'!V478)","v":""},{"$f":"IF('1. Ordersheet'!W478=\"\",\"\",'1. Ordersheet'!W478)","v":""},{"$f":"IF('1. Ordersheet'!X478=\"\",\"\",'1. Ordersheet'!X478)","v":""},{"$f":"IF('1. Ordersheet'!Y478=\"\",\"\",'1. Ordersheet'!Y478)","v":""},{"$f":"IF('1. Ordersheet'!Z478=\"\",\"\",'1. Ordersheet'!Z478)","v":""},{"$f":"IF('1. Ordersheet'!AA478=\"\",\"\",'1. Ordersheet'!AA478)","v":""},null,{"$f":"IF('1. Ordersheet'!AS478=\"\",\"\",'1. Ordersheet'!AS478)","v":""},{"$f":"IF('1. Ordersheet'!AT478=\"\",\"\",'1. Ordersheet'!AT478)","v":""},null,null,null,null,null,null,null,{"$f":"IF('1. Ordersheet'!AX478=\"\",\"\",'1. Ordersheet'!AX478)","v":""},{"$f":"IF('1. Ordersheet'!AY478=\"\",\"\",'1. Ordersheet'!AY478)","v":""},{"$f":"IF('1. Ordersheet'!AZ478=\"\",\"\",'1. Ordersheet'!AZ478)","v":""},{"$f":"IF('1. Ordersheet'!BA478=\"\",\"\",'1. Ordersheet'!BA478)","v":""},{"$f":"IF('1. Ordersheet'!BC478=\"\",\"\",'1. Ordersheet'!BC478)","v":""},{"$f":"IF('1. Ordersheet'!BD478=\"\",\"\",'1. Ordersheet'!BD478)","v":""},{"$f":"IF('1. Ordersheet'!BE478=\"\",\"\",'1. Ordersheet'!BE478)","v":""},{"$f":"IF('1. Ordersheet'!BF478=\"\",\"\",'1. Ordersheet'!BF478)","v":""},{"$f":"IF('1. Ordersheet'!BG478=\"\",\"\",'1. Ordersheet'!BG478)","v":"ZWO"},{"$f":"IF('1. Ordersheet'!BH478=\"\",\"\",'1. Ordersheet'!BH478)","v":""},{"$f":"IF('1. Ordersheet'!BI478=\"\",\"\",'1. Ordersheet'!BI478)","v":""},{"$f":"IF('1. Ordersheet'!BJ478=\"\",\"\",'1. Ordersheet'!BJ478)","v":""},{"$f":"IF('1. Ordersheet'!BK478=\"\",\"\",'1. Ordersheet'!BK478)","v":""},{"$f":"IF('1. Ordersheet'!BL478=\"\",\"\",'1. Ordersheet'!BL478)","v":""}]
[{"$f":"IF('1. Ordersheet'!F479=\"\",\"\",'1. Ordersheet'!F479)","v":""},{"$f":"IF('1. Ordersheet'!G479=\"\",\"\",'1. Ordersheet'!G479)","v":""},{"$f":"IF('1. Ordersheet'!H479=\"\",\"\",'1. Ordersheet'!H479)","v":""},{"$f":"IF('1. Ordersheet'!I479=\"\",\"\",'1. Ordersheet'!I479)","v":""},{"$f":"IF('1. Ordersheet'!J479=\"\",\"\",'1. Ordersheet'!J479)","v":""},{"$f":"IF('1. Ordersheet'!K479=\"\",\"\",'1. Ordersheet'!K479)","v":""},{"$f":"IF('1. Ordersheet'!L479=\"\",\"\",'1. Ordersheet'!L479)","v":""},{"$f":"IF('1. Ordersheet'!M479=\"\",\"\",'1. Ordersheet'!M479)","v":""},{"$f":"IF('1. Ordersheet'!N479=\"\",\"\",'1. Ordersheet'!N479)","v":""},{"$f":"IF('1. Ordersheet'!O479=\"\",\"\",'1. Ordersheet'!O479)","v":{"$error":"#N/A"}},{"$f":"IF('1. Ordersheet'!P479=\"\",\"\",'1. Ordersheet'!P479)","v":{"$error":"#N/A"}},{"$f":"IF('1. Ordersheet'!Q479=\"\",\"\",'1. Ordersheet'!Q479)","v":""},{"$f":"IF('1. Ordersheet'!R479=\"\",\"\",'1. Ordersheet'!R479)","v":""},{"$f":"IF('1. Ordersheet'!S479=\"\",\"\",'1. Ordersheet'!S479)","v":""},{"$f":"IF('1. Ordersheet'!V479=\"\",\"\",'1. Ordersheet'!V479)","v":""},{"$f":"IF('1. Ordersheet'!W479=\"\",\"\",'1. Ordersheet'!W479)","v":""},{"$f":"IF('1. Ordersheet'!X479=\"\",\"\",'1. Ordersheet'!X479)","v":""},{"$f":"IF('1. Ordersheet'!Y479=\"\",\"\",'1. Ordersheet'!Y479)","v":""},{"$f":"IF('1. Ordersheet'!Z479=\"\",\"\",'1. Ordersheet'!Z479)","v":""},{"$f":"IF('1. Ordersheet'!AA479=\"\",\"\",'1. Ordersheet'!AA479)","v":""},null,{"$f":"IF('1. Ordersheet'!AS479=\"\",\"\",'1. Ordersheet'!AS479)","v":""},{"$f":"IF('1. Ordersheet'!AT479=\"\",\"\",'1. Ordersheet'!AT479)","v":""},null,null,null,null,null,null,null,{"$f":"IF('1. Ordersheet'!AX479=\"\",\"\",'1. Ordersheet'!AX479)","v":""},{"$f":"IF('1. Ordersheet'!AY479=\"\",\"\",'1. Ordersheet'!AY479)","v":""},{"$f":"IF('1. Ordersheet'!AZ479=\"\",\"\",'1. Ordersheet'!AZ479)","v":""},{"$f":"IF('1. Ordersheet'!BA479=\"\",\"\",'1. Ordersheet'!BA479)","v":""},{"$f":"IF('1. Ordersheet'!BC479=\"\",\"\",'1. Ordersheet'!BC479)","v":""},{"$f":"IF('1. Ordersheet'!BD479=\"\",\"\",'1. Ordersheet'!BD479)","v":""},{"$f":"IF('1. Ordersheet'!BE479=\"\",\"\",'1. Ordersheet'!BE479)","v":""},{"$f":"IF('1. Ordersheet'!BF479=\"\",\"\",'1. Ordersheet'!BF479)","v":""},{"$f":"IF('1. Ordersheet'!BG479=\"\",\"\",'1. Ordersheet'!BG479)","v":"ZWO"},{"$f":"IF('1. Ordersheet'!BH479=\"\",\"\",'1. Ordersheet'!BH479)","v":""},{"$f":"IF('1. Ordersheet'!BI479=\"\",\"\",'1. Ordersheet'!BI479)","v":""},{"$f":"IF('1. Ordersheet'!BJ479=\"\",\"\",'1. Ordersheet'!BJ479)","v":""},{"$f":"IF('1. Ordersheet'!BK479=\"\",\"\",'1. Ordersheet'!BK479)","v":""},{"$f":"IF('1. Ordersheet'!BL479=\"\",\"\",'1. Ordersheet'!BL479)","v":""}]
[{"$f":"IF('1. Ordersheet'!F480=\"\",\"\",'1. Ordersheet'!F480)","v":""},{"$f":"IF('1. Ordersheet'!G480=\"\",\"\",'1. Ordersheet'!G480)","v":""},{"$f":"IF('1. Ordersheet'!H480=\"\",\"\",'1. Ordersheet'!H480)","v":""},{"$f":"IF('1. Ordersheet'!I480=\"\",\"\",'1. Ordersheet'!I480)","v":""},{"$f":"IF('1. Ordersheet'!J480=\"\",\"\",'1. Ordersheet'!J480)","v":""},{"$f":"IF('1. Ordersheet'!K480=\"\",\"\",'1. Ordersheet'!K480)","v":""},{"$f":"IF('1. Ordersheet'!L480=\"\",\"\",'1. Ordersheet'!L480)","v":""},{"$f":"IF('1. Ordersheet'!M480=\"\",\"\",'1. Ordersheet'!M480)","v":""},{"$f":"IF('1. Ordersheet'!N480=\"\",\"\",'1. Ordersheet'!N480)","v":""},{"$f":"IF('1. Ordersheet'!O480=\"\",\"\",'1. Ordersheet'!O480)","v":{"$error":"#N/A"}},{"$f":"IF('1. Ordersheet'!P480=\"\",\"\",'1. Ordersheet'!P480)","v":{"$error":"#N/A"}},{"$f":"IF('1. Ordersheet'!Q480=\"\",\"\",'1. Ordersheet'!Q480)","v":""},{"$f":"IF('1. Ordersheet'!R480=\"\",\"\",'1. Ordersheet'!R480)","v":""},{"$f":"IF('1. Ordersheet'!S480=\"\",\"\",'1. Ordersheet'!S480)","v":""},{"$f":"IF('1. Ordersheet'!V480=\"\",\"\",'1. Ordersheet'!V480)","v":""},{"$f":"IF('1. Ordersheet'!W480=\"\",\"\",'1. Ordersheet'!W480)","v":""},{"$f":"IF('1. Ordersheet'!X480=\"\",\"\",'1. Ordersheet'!X480)","v":""},{"$f":"IF('1. Ordersheet'!Y480=\"\",\"\",'1. Ordersheet'!Y480)","v":""},{"$f":"IF('1. Ordersheet'!Z480=\"\",\"\",'1. Ordersheet'!Z480)","v":""},{"$f":"IF('1. Ordersheet'!AA480=\"\",\"\",'1. Ordersheet'!AA480)","v":""},null,{"$f":"IF('1. Ordersheet'!AS480=\"\",\"\",'1. Ordersheet'!AS480)","v":""},{"$f":"IF('1. Ordersheet'!AT480=\"\",\"\",'1. Ordersheet'!AT480)","v":""},null,null,null,null,null,null,null,{"$f":"IF('1. Ordersheet'!AX480=\"\",\"\",'1. Ordersheet'!AX480)","v":""},{"$f":"IF('1. Ordersheet'!AY480=\"\",\"\",'1. Ordersheet'!AY480)","v":""},{"$f":"IF('1. Ordersheet'!AZ480=\"\",\"\",'1. Ordersheet'!AZ480)","v":""},{"$f":"IF('1. Ordersheet'!BA480=\"\",\"\",'1. Ordersheet'!BA480)","v":""},{"$f":"IF('1. Ordersheet'!BC480=\"\",\"\",'1. Ordersheet'!BC480)","v":""},{"$f":"IF('1. Ordersheet'!BD480=\"\",\"\",'1. Ordersheet'!BD480)","v":""},{"$f":"IF('1. Ordersheet'!BE480=\"\",\"\",'1. Ordersheet'!BE480)","v":""},{"$f":"IF('1. Ordersheet'!BF480=\"\",\"\",'1. Ordersheet'!BF480)","v":""},{"$f":"IF('1. Ordersheet'!BG480=\"\",\"\",'1. Ordersheet'!BG480)","v":"ZWO"},{"$f":"IF('1. Ordersheet'!BH480=\"\",\"\",'1. Ordersheet'!BH480)","v":""},{"$f":"IF('1. Ordersheet'!BI480=\"\",\"\",'1. Ordersheet'!BI480)","v":""},{"$f":"IF('1. Ordersheet'!BJ480=\"\",\"\",'1. Ordersheet'!BJ480)","v":""},{"$f":"IF('1. Ordersheet'!BK480=\"\",\"\",'1. Ordersheet'!BK480)","v":""},{"$f":"IF('1. Ordersheet'!BL480=\"\",\"\",'1. Ordersheet'!BL480)","v":""}]
[{"$f":"IF('1. Ordersheet'!F481=\"\",\"\",'1. Ordersheet'!F481)","v":""},{"$f":"IF('1. Ordersheet'!G481=\"\",\"\",'1. Ordersheet'!G481)","v":""},{"$f":"IF('1. Ordersheet'!H481=\"\",\"\",'1. Ordersheet'!H481)","v":""},{"$f":"IF('1. Ordersheet'!I481=\"\",\"\",'1. Ordersheet'!I481)","v":""},{"$f":"IF('1. Ordersheet'!J481=\"\",\"\",'1. Ordersheet'!J481)","v":""},{"$f":"IF('1. Ordersheet'!K481=\"\",\"\",'1. Ordersheet'!K481)","v":""},{"$f":"IF('1. Ordersheet'!L481=\"\",\"\",'1. Ordersheet'!L481)","v":""},{"$f":"IF('1. Ordersheet'!M481=\"\",\"\",'1. Ordersheet'!M481)","v":""},{"$f":"IF('1. Ordersheet'!N481=\"\",\"\",'1. Ordersheet'!N481)","v":""},{"$f":"IF('1. Ordersheet'!O481=\"\",\"\",'1. Ordersheet'!O481)","v":{"$error":"#N/A"}},{"$f":"IF('1. Ordersheet'!P481=\"\",\"\",'1. Ordersheet'!P481)","v":{"$error":"#N/A"}},{"$f":"IF('1. Ordersheet'!Q481=\"\",\"\",'1. Ordersheet'!Q481)","v":""},{"$f":"IF('1. Ordersheet'!R481=\"\",\"\",'1. Ordersheet'!R481)","v":""},{"$f":"IF('1. Ordersheet'!S481=\"\",\"\",'1. Ordersheet'!S481)","v":""},{"$f":"IF('1. Ordersheet'!V481=\"\",\"\",'1. Ordersheet'!V481)","v":""},{"$f":"IF('1. Ordersheet'!W481=\"\",\"\",'1. Ordersheet'!W481)","v":""},{"$f":"IF('1. Ordersheet'!X481=\"\",\"\",'1. Ordersheet'!X481)","v":""},{"$f":"IF('1. Ordersheet'!Y481=\"\",\"\",'1. Ordersheet'!Y481)","v":""},{"$f":"IF('1. Ordersheet'!Z481=\"\",\"\",'1. Ordersheet'!Z481)","v":""},{"$f":"IF('1. Ordersheet'!AA481=\"\",\"\",'1. Ordersheet'!AA481)","v":""},null,{"$f":"IF('1. Ordersheet'!AS481=\"\",\"\",'1. Ordersheet'!AS481)","v":""},{"$f":"IF('1. Ordersheet'!AT481=\"\",\"\",'1. Ordersheet'!AT481)","v":""},null,null,null,null,null,null,null,{"$f":"IF('1. Ordersheet'!AX481=\"\",\"\",'1. Ordersheet'!AX481)","v":""},{"$f":"IF('1. Ordersheet'!AY481=\"\",\"\",'1. Ordersheet'!AY481)","v":""},{"$f":"IF('1. Ordersheet'!AZ481=\"\",\"\",'1. Ordersheet'!AZ481)","v":""},{"$f":"IF('1. Ordersheet'!BA481=\"\",\"\",'1. Ordersheet'!BA481)","v":""},{"$f":"IF('1. Ordersheet'!BC481=\"\",\"\",'1. Ordersheet'!BC481)","v":""},{"$f":"IF('1. Ordersheet'!BD481=\"\",\"\",'1. Ordersheet'!BD481)","v":""},{"$f":"IF('1. Ordersheet'!BE481=\"\",\"\",'1. Ordersheet'!BE481)","v":""},{"$f":"IF('1. Ordersheet'!BF481=\"\",\"\",'1. Ordersheet'!BF481)","v":""},{"$f":"IF('1. Ordersheet'!BG481=\"\",\"\",'1. Ordersheet'!BG481)","v":"ZWO"},{"$f":"IF('1. Ordersheet'!BH481=\"\",\"\",'1. Ordersheet'!BH481)","v":""},{"$f":"IF('1. Ordersheet'!BI481=\"\",\"\",'1. Ordersheet'!BI481)","v":""},{"$f":"IF('1. Ordersheet'!BJ481=\"\",\"\",'1. Ordersheet'!BJ481)","v":""},{"$f":"IF('1. Ordersheet'!BK481=\"\",\"\",'1. Ordersheet'!BK481)","v":""},{"$f":"IF('1. Ordersheet'!BL481=\"\",\"\",'1. Ordersheet'!BL481)","v":""}]
[{"$f":"IF('1. Ordersheet'!F482=\"\",\"\",'1. Ordersheet'!F482)","v":""},{"$f":"IF('1. Ordersheet'!G482=\"\",\"\",'1. Ordersheet'!G482)","v":""},{"$f":"IF('1. Ordersheet'!H482=\"\",\"\",'1. Ordersheet'!H482)","v":""},{"$f":"IF('1. Ordersheet'!I482=\"\",\"\",'1. Ordersheet'!I482)","v":""},{"$f":"IF('1. Ordersheet'!J482=\"\",\"\",'1. Ordersheet'!J482)","v":""},{"$f":"IF('1. Ordersheet'!K482=\"\",\"\",'1. Ordersheet'!K482)","v":""},{"$f":"IF('1. Ordersheet'!L482=\"\",\"\",'1. Ordersheet'!L482)","v":""},{"$f":"IF('1. Ordersheet'!M482=\"\",\"\",'1. Ordersheet'!M482)","v":""},{"$f":"IF('1. Ordersheet'!N482=\"\",\"\",'1. Ordersheet'!N482)","v":""},{"$f":"IF('1. Ordersheet'!O482=\"\",\"\",'1. Ordersheet'!O482)","v":{"$error":"#N/A"}},{"$f":"IF('1. Ordersheet'!P482=\"\",\"\",'1. Ordersheet'!P482)","v":{"$error":"#N/A"}},{"$f":"IF('1. Ordersheet'!Q482=\"\",\"\",'1. Ordersheet'!Q482)","v":""},{"$f":"IF('1. Ordersheet'!R482=\"\",\"\",'1. Ordersheet'!R482)","v":""},{"$f":"IF('1. Ordersheet'!S482=\"\",\"\",'1. Ordersheet'!S482)","v":""},{"$f":"IF('1. Ordersheet'!V482=\"\",\"\",'1. Ordersheet'!V482)","v":""},{"$f":"IF('1. Ordersheet'!W482=\"\",\"\",'1. Ordersheet'!W482)","v":""},{"$f":"IF('1. Ordersheet'!X482=\"\",\"\",'1. Ordersheet'!X482)","v":""},{"$f":"IF('1. Ordersheet'!Y482=\"\",\"\",'1. Ordersheet'!Y482)","v":""},{"$f":"IF('1. Ordersheet'!Z482=\"\",\"\",'1. Ordersheet'!Z482)","v":""},{"$f":"IF('1. Ordersheet'!AA482=\"\",\"\",'1. Ordersheet'!AA482)","v":""},null,{"$f":"IF('1. Ordersheet'!AS482=\"\",\"\",'1. Ordersheet'!AS482)","v":""},{"$f":"IF('1. Ordersheet'!AT482=\"\",\"\",'1. Ordersheet'!AT482)","v":""},null,null,null,null,null,null,null,{"$f":"IF('1. Ordersheet'!AX482=\"\",\"\",'1. Ordersheet'!AX482)","v":""},{"$f":"IF('1. Ordersheet'!AY482=\"\",\"\",'1. Ordersheet'!AY482)","v":""},{"$f":"IF('1. Ordersheet'!AZ482=\"\",\"\",'1. Ordersheet'!AZ482)","v":""},{"$f":"IF('1. Ordersheet'!BA482=\"\",\"\",'1. Ordersheet'!BA482)","v":""},{"$f":"IF('1. Ordersheet'!BC482=\"\",\"\",'1. Ordersheet'!BC482)","v":""},{"$f":"IF('1. Ordersheet'!BD482=\"\",\"\",'1. Ordersheet'!BD482)","v":""},{"$f":"IF('1. Ordersheet'!BE482=\"\",\"\",'1. Ordersheet'!BE482)","v":""},{"$f":"IF('1. Ordersheet'!BF482=\"\",\"\",'1. Ordersheet'!BF482)","v":""},{"$f":"IF('1. Ordersheet'!BG482=\"\",\"\",'1. Ordersheet'!BG482)","v":"ZWO"},{"$f":"IF('1. Ordersheet'!BH482=\"\",\"\",'1. Ordersheet'!BH482)","v":""},{"$f":"IF('1. Ordersheet'!BI482=\"\",\"\",'1. Ordersheet'!BI482)","v":""},{"$f":"IF('1. Ordersheet'!BJ482=\"\",\"\",'1. Ordersheet'!BJ482)","v":""},{"$f":"IF('1. Ordersheet'!BK482=\"\",\"\",'1. Ordersheet'!BK482)","v":""},{"$f":"IF('1. Ordersheet'!BL482=\"\",\"\",'1. Ordersheet'!BL482)","v":""}]
[{"$f":"IF('1. Ordersheet'!F483=\"\",\"\",'1. Ordersheet'!F483)","v":""},{"$f":"IF('1. Ordersheet'!G483=\"\",\"\",'1. Ordersheet'!G483)","v":""},{"$f":"IF('1. Ordersheet'!H483=\"\",\"\",'1. Ordersheet'!H483)","v":""},{"$f":"IF('1. Ordersheet'!I483=\"\",\"\",'1. Ordersheet'!I483)","v":""},{"$f":"IF('1. Ordersheet'!J483=\"\",\"\",'1. Ordersheet'!J483)","v":""},{"$f":"IF('1. Ordersheet'!K483=\"\",\"\",'1. Ordersheet'!K483)","v":""},{"$f":"IF('1. Ordersheet'!L483=\"\",\"\",'1. Ordersheet'!L483)","v":""},{"$f":"IF('1. Ordersheet'!M483=\"\",\"\",'1. Ordersheet'!M483)","v":""},{"$f":"IF('1. Ordersheet'!N483=\"\",\"\",'1. Ordersheet'!N483)","v":""},{"$f":"IF('1. Ordersheet'!O483=\"\",\"\",'1. Ordersheet'!O483)","v":{"$error":"#N/A"}},{"$f":"IF('1. Ordersheet'!P483=\"\",\"\",'1. Ordersheet'!P483)","v":{"$error":"#N/A"}},{"$f":"IF('1. Ordersheet'!Q483=\"\",\"\",'1. Ordersheet'!Q483)","v":""},{"$f":"IF('1. Ordersheet'!R483=\"\",\"\",'1. Ordersheet'!R483)","v":""},{"$f":"IF('1. Ordersheet'!S483=\"\",\"\",'1. Ordersheet'!S483)","v":""},{"$f":"IF('1. Ordersheet'!V483=\"\",\"\",'1. Ordersheet'!V483)","v":""},{"$f":"IF('1. Ordersheet'!W483=\"\",\"\",'1. Ordersheet'!W483)","v":""},{"$f":"IF('1. Ordersheet'!X483=\"\",\"\",'1. Ordersheet'!X483)","v":""},{"$f":"IF('1. Ordersheet'!Y483=\"\",\"\",'1. Ordersheet'!Y483)","v":""},{"$f":"IF('1. Ordersheet'!Z483=\"\",\"\",'1. Ordersheet'!Z483)","v":""},{"$f":"IF('1. Ordersheet'!AA483=\"\",\"\",'1. Ordersheet'!AA483)","v":""},null,{"$f":"IF('1. Ordersheet'!AS483=\"\",\"\",'1. Ordersheet'!AS483)","v":""},{"$f":"IF('1. Ordersheet'!AT483=\"\",\"\",'1. Ordersheet'!AT483)","v":""},null,null,null,null,null,null,null,{"$f":"IF('1. Ordersheet'!AX483=\"\",\"\",'1. Ordersheet'!AX483)","v":""},{"$f":"IF('1. Ordersheet'!AY483=\"\",\"\",'1. Ordersheet'!AY483)","v":""},{"$f":"IF('1. Ordersheet'!AZ483=\"\",\"\",'1. Ordersheet'!AZ483)","v":""},{"$f":"IF('1. Ordersheet'!BA483=\"\",\"\",'1. Ordersheet'!BA483)","v":""},{"$f":"IF('1. Ordersheet'!BC483=\"\",\"\",'1. Ordersheet'!BC483)","v":""},{"$f":"IF('1. Ordersheet'!BD483=\"\",\"\",'1. Ordersheet'!BD483)","v":""},{"$f":"IF('1. Ordersheet'!BE483=\"\",\"\",'1. Ordersheet'!BE483)","v":""},{"$f":"IF('1. Ordersheet'!BF483=\"\",\"\",'1. Ordersheet'!BF483)","v":""},{"$f":"IF('1. Ordersheet'!BG483=\"\",\"\",'1. Ordersheet'!BG483)","v":"ZWO"},{"$f":"IF('1. Ordersheet'!BH483=\"\",\"\",'1. Ordersheet'!BH483)","v":""},{"$f":"IF('1. Ordersheet'!BI483=\"\",\"\",'1. Ordersheet'!BI483)","v":""},{"$f":"IF('1. Ordersheet'!BJ483=\"\",\"\",'1. Ordersheet'!BJ483)","v":""},{"$f":"IF('1. Ordersheet'!BK483=\"\",\"\",'1. Ordersheet'!BK483)","v":""},{"$f":"IF('1. Ordersheet'!BL483=\"\",\"\",'1. Ordersheet'!BL483)","v":""}]
[{"$f":"IF('1. Ordersheet'!F484=\"\",\"\",'1. Ordersheet'!F484)","v":""},{"$f":"IF('1. Ordersheet'!G484=\"\",\"\",'1. Ordersheet'!G484)","v":""},{"$f":"IF('1. Ordersheet'!H484=\"\",\"\",'1. Ordersheet'!H484)","v":""},{"$f":"IF('1. Ordersheet'!I484=\"\",\"\",'1. Ordersheet'!I484)","v":""},{"$f":"IF('1. Ordersheet'!J484=\"\",\"\",'1. Ordersheet'!J484)","v":""},{"$f":"IF('1. Ordersheet'!K484=\"\",\"\",'1. Ordersheet'!K484)","v":""},{"$f":"IF('1. Ordersheet'!L484=\"\",\"\",'1. Ordersheet'!L484)","v":""},{"$f":"IF('1. Ordersheet'!M484=\"\",\"\",'1. Ordersheet'!M484)","v":""},{"$f":"IF('1. Ordersheet'!N484=\"\",\"\",'1. Ordersheet'!N484)","v":""},{"$f":"IF('1. Ordersheet'!O484=\"\",\"\",'1. Ordersheet'!O484)","v":{"$error":"#N/A"}},{"$f":"IF('1. Ordersheet'!P484=\"\",\"\",'1. Ordersheet'!P484)","v":{"$error":"#N/A"}},{"$f":"IF('1. Ordersheet'!Q484=\"\",\"\",'1. Ordersheet'!Q484)","v":""},{"$f":"IF('1. Ordersheet'!R484=\"\",\"\",'1. Ordersheet'!R484)","v":""},{"$f":"IF('1. Ordersheet'!S484=\"\",\"\",'1. Ordersheet'!S484)","v":""},{"$f":"IF('1. Ordersheet'!V484=\"\",\"\",'1. Ordersheet'!V484)","v":""},{"$f":"IF('1. Ordersheet'!W484=\"\",\"\",'1. Ordersheet'!W484)","v":""},{"$f":"IF('1. Ordersheet'!X484=\"\",\"\",'1. Ordersheet'!X484)","v":""},{"$f":"IF('1. Ordersheet'!Y484=\"\",\"\",'1. Ordersheet'!Y484)","v":""},{"$f":"IF('1. Ordersheet'!Z484=\"\",\"\",'1. Ordersheet'!Z484)","v":""},{"$f":"IF('1. Ordersheet'!AA484=\"\",\"\",'1. Ordersheet'!AA484)","v":""},null,{"$f":"IF('1. Ordersheet'!AS484=\"\",\"\",'1. Ordersheet'!AS484)","v":""},{"$f":"IF('1. Ordersheet'!AT484=\"\",\"\",'1. Ordersheet'!AT484)","v":""},null,null,null,null,null,null,null,{"$f":"IF('1. Ordersheet'!AX484=\"\",\"\",'1. Ordersheet'!AX484)","v":""},{"$f":"IF('1. Ordersheet'!AY484=\"\",\"\",'1. Ordersheet'!AY484)","v":""},{"$f":"IF('1. Ordersheet'!AZ484=\"\",\"\",'1. Ordersheet'!AZ484)","v":""},{"$f":"IF('1. Ordersheet'!BA484=\"\",\"\",'1. Ordersheet'!BA484)","v":""},{"$f":"IF('1. Ordersheet'!BC484=\"\",\"\",'1. Ordersheet'!BC484)","v":""},{"$f":"IF('1. Ordersheet'!BD484=\"\",\"\",'1. Ordersheet'!BD484)","v":""},{"$f":"IF('1. Ordersheet'!BE484=\"\",\"\",'1. Ordersheet'!BE484)","v":""},{"$f":"IF('1. Ordersheet'!BF484=\"\",\"\",'1. Ordersheet'!BF484)","v":""},{"$f":"IF('1. Ordersheet'!BG484=\"\",\"\",'1. Ordersheet'!BG484)","v":"ZWO"},{"$f":"IF('1. Ordersheet'!BH484=\"\",\"\",'1. Ordersheet'!BH484)","v":""},{"$f":"IF('1. Ordersheet'!BI484=\"\",\"\",'1. Ordersheet'!BI484)","v":""},{"$f":"IF('1. Ordersheet'!BJ484=\"\",\"\",'1. Ordersheet'!BJ484)","v":""},{"$f":"IF('1. Ordersheet'!BK484=\"\",\"\",'1. Ordersheet'!BK484)","v":""},{"$f":"IF('1. Ordersheet'!BL484=\"\",\"\",'1. Ordersheet'!BL484)","v":""}]
[{"$f":"IF('1. Ordersheet'!F485=\"\",\"\",'1. Ordersheet'!F485)","v":""},{"$f":"IF('1. Ordersheet'!G485=\"\",\"\",'1. Ordersheet'!G485)","v":""},{"$f":"IF('1. Ordersheet'!H485=\"\",\"\",'1. Ordersheet'!H485)","v":""},{"$f":"IF('1. Ordersheet'!I485=\"\",\"\",'1. Ordersheet'!I485)","v":""},{"$f":"IF('1. Ordersheet'!J485=\"\",\"\",'1. Ordersheet'!J485)","v":""},{"$f":"IF('1. Ordersheet'!K485=\"\",\"\",'1. Ordersheet'!K485)","v":""},{"$f":"IF('1. Ordersheet'!L485=\"\",\"\",'1. Ordersheet'!L485)","v":""},{"$f":"IF('1. Ordersheet'!M485=\"\",\"\",'1. Ordersheet'!M485)","v":""},{"$f":"IF('1. Ordersheet'!N485=\"\",\"\",'1. Ordersheet'!N485)","v":""},{"$f":"IF('1. Ordersheet'!O485=\"\",\"\",'1. Ordersheet'!O485)","v":{"$error":"#N/A"}},{"$f":"IF('1. Ordersheet'!P485=\"\",\"\",'1. Ordersheet'!P485)","v":{"$error":"#N/A"}},{"$f":"IF('1. Ordersheet'!Q485=\"\",\"\",'1. Ordersheet'!Q485)","v":""},{"$f":"IF('1. Ordersheet'!R485=\"\",\"\",'1. Ordersheet'!R485)","v":""},{"$f":"IF('1. Ordersheet'!S485=\"\",\"\",'1. Ordersheet'!S485)","v":""},{"$f":"IF('1. Ordersheet'!V485=\"\",\"\",'1. Ordersheet'!V485)","v":""},{"$f":"IF('1. Ordersheet'!W485=\"\",\"\",'1. Ordersheet'!W485)","v":""},{"$f":"IF('1. Ordersheet'!X485=\"\",\"\",'1. Ordersheet'!X485)","v":""},{"$f":"IF('1. Ordersheet'!Y485=\"\",\"\",'1. Ordersheet'!Y485)","v":""},{"$f":"IF('1. Ordersheet'!Z485=\"\",\"\",'1. Ordersheet'!Z485)","v":""},{"$f":"IF('1. Ordersheet'!AA485=\"\",\"\",'1. Ordersheet'!AA485)","v":""},null,{"$f":"IF('1. Ordersheet'!AS485=\"\",\"\",'1. Ordersheet'!AS485)","v":""},{"$f":"IF('1. Ordersheet'!AT485=\"\",\"\",'1. Ordersheet'!AT485)","v":""},null,null,null,null,null,null,null,{"$f":"IF('1. Ordersheet'!AX485=\"\",\"\",'1. Ordersheet'!AX485)","v":""},{"$f":"IF('1. Ordersheet'!AY485=\"\",\"\",'1. Ordersheet'!AY485)","v":""},{"$f":"IF('1. Ordersheet'!AZ485=\"\",\"\",'1. Ordersheet'!AZ485)","v":""},{"$f":"IF('1. Ordersheet'!BA485=\"\",\"\",'1. Ordersheet'!BA485)","v":""},{"$f":"IF('1. Ordersheet'!BC485=\"\",\"\",'1. Ordersheet'!BC485)","v":""},{"$f":"IF('1. Ordersheet'!BD485=\"\",\"\",'1. Ordersheet'!BD485)","v":""},{"$f":"IF('1. Ordersheet'!BE485=\"\",\"\",'1. Ordersheet'!BE485)","v":""},{"$f":"IF('1. Ordersheet'!BF485=\"\",\"\",'1. Ordersheet'!BF485)","v":""},{"$f":"IF('1. Ordersheet'!BG485=\"\",\"\",'1. Ordersheet'!BG485)","v":"ZWO"},{"$f":"IF('1. Ordersheet'!BH485=\"\",\"\",'1. Ordersheet'!BH485)","v":""},{"$f":"IF('1. Ordersheet'!BI485=\"\",\"\",'1. Ordersheet'!BI485)","v":""},{"$f":"IF('1. Ordersheet'!BJ485=\"\",\"\",'1. Ordersheet'!BJ485)","v":""},{"$f":"IF('1. Ordersheet'!BK485=\"\",\"\",'1. Ordersheet'!BK485)","v":""},{"$f":"IF('1. Ordersheet'!BL485=\"\",\"\",'1. Ordersheet'!BL485)","v":""}]
[{"$f":"IF('1. Ordersheet'!F486=\"\",\"\",'1. Ordersheet'!F486)","v":""},{"$f":"IF('1. Ordersheet'!G486=\"\",\"\",'1. Ordersheet'!G486)","v":""},{"$f":"IF('1. Ordersheet'!H486=\"\",\"\",'1. Ordersheet'!H486)","v":""},{"$f":"IF('1. Ordersheet'!I486=\"\",\"\",'1. Ordersheet'!I486)","v":""},{"$f":"IF('1. Ordersheet'!J486=\"\",\"\",'1. Ordersheet'!J486)","v":""},{"$f":"IF('1. Ordersheet'!K486=\"\",\"\",'1. Ordersheet'!K486)","v":""},{"$f":"IF('1. Ordersheet'!L486=\"\",\"\",'1. Ordersheet'!L486)","v":""},{"$f":"IF('1. Ordersheet'!M486=\"\",\"\",'1. Ordersheet'!M486)","v":""},{"$f":"IF('1. Ordersheet'!N486=\"\",\"\",'1. Ordersheet'!N486)","v":""},{"$f":"IF('1. Ordersheet'!O486=\"\",\"\",'1. Ordersheet'!O486)","v":{"$error":"#N/A"}},{"$f":"IF('1. Ordersheet'!P486=\"\",\"\",'1. Ordersheet'!P486)","v":{"$error":"#N/A"}},{"$f":"IF('1. Ordersheet'!Q486=\"\",\"\",'1. Ordersheet'!Q486)","v":""},{"$f":"IF('1. Ordersheet'!R486=\"\",\"\",'1. Ordersheet'!R486)","v":""},{"$f":"IF('1. Ordersheet'!S486=\"\",\"\",'1. Ordersheet'!S486)","v":""},{"$f":"IF('1. Ordersheet'!V486=\"\",\"\",'1. Ordersheet'!V486)","v":""},{"$f":"IF('1. Ordersheet'!W486=\"\",\"\",'1. Ordersheet'!W486)","v":""},{"$f":"IF('1. Ordersheet'!X486=\"\",\"\",'1. Ordersheet'!X486)","v":""},{"$f":"IF('1. Ordersheet'!Y486=\"\",\"\",'1. Ordersheet'!Y486)","v":""},{"$f":"IF('1. Ordersheet'!Z486=\"\",\"\",'1. Ordersheet'!Z486)","v":""},{"$f":"IF('1. Ordersheet'!AA486=\"\",\"\",'1. Ordersheet'!AA486)","v":""},null,{"$f":"IF('1. Ordersheet'!AS486=\"\",\"\",'1. Ordersheet'!AS486)","v":""},{"$f":"IF('1. Ordersheet'!AT486=\"\",\"\",'1. Ordersheet'!AT486)","v":""},null,null,null,null,null,null,null,{"$f":"IF('1. Ordersheet'!AX486=\"\",\"\",'1. Ordersheet'!AX486)","v":""},{"$f":"IF('1. Ordersheet'!AY486=\"\",\"\",'1. Ordersheet'!AY486)","v":""},{"$f":"IF('1. Ordersheet'!AZ486=\"\",\"\",'1. Ordersheet'!AZ486)","v":""},{"$f":"IF('1. Ordersheet'!BA486=\"\",\"\",'1. Ordersheet'!BA486)","v":""},{"$f":"IF('1. Ordersheet'!BC486=\"\",\"\",'1. Ordersheet'!BC486)","v":""},{"$f":"IF('1. Ordersheet'!BD486=\"\",\"\",'1. Ordersheet'!BD486)","v":""},{"$f":"IF('1. Ordersheet'!BE486=\"\",\"\",'1. Ordersheet'!BE486)","v":""},{"$f":"IF('1. Ordersheet'!BF486=\"\",\"\",'1. Ordersheet'!BF486)","v":""},{"$f":"IF('1. Ordersheet'!BG486=\"\",\"\",'1. Ordersheet'!BG486)","v":"ZWO"},{"$f":"IF('1. Ordersheet'!BH486=\"\",\"\",'1. Ordersheet'!BH486)","v":""},{"$f":"IF('1. Ordersheet'!BI486=\"\",\"\",'1. Ordersheet'!BI486)","v":""},{"$f":"IF('1. Ordersheet'!BJ486=\"\",\"\",'1. Ordersheet'!BJ486)","v":""},{"$f":"IF('1. Ordersheet'!BK486=\"\",\"\",'1. Ordersheet'!BK486)","v":""},{"$f":"IF('1. Ordersheet'!BL486=\"\",\"\",'1. Ordersheet'!BL486)","v":""}]
[{"$f":"IF('1. Ordersheet'!F487=\"\",\"\",'1. Ordersheet'!F487)","v":""},{"$f":"IF('1. Ordersheet'!G487=\"\",\"\",'1. Ordersheet'!G487)","v":""},{"$f":"IF('1. Ordersheet'!H487=\"\",\"\",'1. Ordersheet'!H487)","v":""},{"$f":"IF('1. Ordersheet'!I487=\"\",\"\",'1. Ordersheet'!I487)","v":""},{"$f":"IF('1. Ordersheet'!J487=\"\",\"\",'1. Ordersheet'!J487)","v":""},{"$f":"IF('1. Ordersheet'!K487=\"\",\"\",'1. Ordersheet'!K487)","v":""},{"$f":"IF('1. Ordersheet'!L487=\"\",\"\",'1. Ordersheet'!L487)","v":""},{"$f":"IF('1. Ordersheet'!M487=\"\",\"\",'1. Ordersheet'!M487)","v":""},{"$f":"IF('1. Ordersheet'!N487=\"\",\"\",'1. Ordersheet'!N487)","v":""},{"$f":"IF('1. Ordersheet'!O487=\"\",\"\",'1. Ordersheet'!O487)","v":{"$error":"#N/A"}},{"$f":"IF('1. Ordersheet'!P487=\"\",\"\",'1. Ordersheet'!P487)","v":{"$error":"#N/A"}},{"$f":"IF('1. Ordersheet'!Q487=\"\",\"\",'1. Ordersheet'!Q487)","v":""},{"$f":"IF('1. Ordersheet'!R487=\"\",\"\",'1. Ordersheet'!R487)","v":""},{"$f":"IF('1. Ordersheet'!S487=\"\",\"\",'1. Ordersheet'!S487)","v":""},{"$f":"IF('1. Ordersheet'!V487=\"\",\"\",'1. Ordersheet'!V487)","v":""},{"$f":"IF('1. Ordersheet'!W487=\"\",\"\",'1. Ordersheet'!W487)","v":""},{"$f":"IF('1. Ordersheet'!X487=\"\",\"\",'1. Ordersheet'!X487)","v":""},{"$f":"IF('1. Ordersheet'!Y487=\"\",\"\",'1. Ordersheet'!Y487)","v":""},{"$f":"IF('1. Ordersheet'!Z487=\"\",\"\",'1. Ordersheet'!Z487)","v":""},{"$f":"IF('1. Ordersheet'!AA487=\"\",\"\",'1. Ordersheet'!AA487)","v":""},null,{"$f":"IF('1. Ordersheet'!AS487=\"\",\"\",'1. Ordersheet'!AS487)","v":""},{"$f":"IF('1. Ordersheet'!AT487=\"\",\"\",'1. Ordersheet'!AT487)","v":""},null,null,null,null,null,null,null,{"$f":"IF('1. Ordersheet'!AX487=\"\",\"\",'1. Ordersheet'!AX487)","v":""},{"$f":"IF('1. Ordersheet'!AY487=\"\",\"\",'1. Ordersheet'!AY487)","v":""},{"$f":"IF('1. Ordersheet'!AZ487=\"\",\"\",'1. Ordersheet'!AZ487)","v":""},{"$f":"IF('1. Ordersheet'!BA487=\"\",\"\",'1. Ordersheet'!BA487)","v":""},{"$f":"IF('1. Ordersheet'!BC487=\"\",\"\",'1. Ordersheet'!BC487)","v":""},{"$f":"IF('1. Ordersheet'!BD487=\"\",\"\",'1. Ordersheet'!BD487)","v":""},{"$f":"IF('1. Ordersheet'!BE487=\"\",\"\",'1. Ordersheet'!BE487)","v":""},{"$f":"IF('1. Ordersheet'!BF487=\"\",\"\",'1. Ordersheet'!BF487)","v":""},{"$f":"IF('1. Ordersheet'!BG487=\"\",\"\",'1. Ordersheet'!BG487)","v":"ZWO"},{"$f":"IF('1. Ordersheet'!BH487=\"\",\"\",'1. Ordersheet'!BH487)","v":""},{"$f":"IF('1. Ordersheet'!BI487=\"\",\"\",'1. Ordersheet'!BI487)","v":""},{"$f":"IF('1. Ordersheet'!BJ487=\"\",\"\",'1. Ordersheet'!BJ487)","v":""},{"$f":"IF('1. Ordersheet'!BK487=\"\",\"\",'1. Ordersheet'!BK487)","v":""},{"$f":"IF('1. Ordersheet'!BL487=\"\",\"\",'1. Ordersheet'!BL487)","v":""}]
[{"$f":"IF('1. Ordersheet'!F488=\"\",\"\",'1. Ordersheet'!F488)","v":""},{"$f":"IF('1. Ordersheet'!G488=\"\",\"\",'1. Ordersheet'!G488)","v":""},{"$f":"IF('1. Ordersheet'!H488=\"\",\"\",'1. Ordersheet'!H488)","v":""},{"$f":"IF('1. Ordersheet'!I488=\"\",\"\",'1. Ordersheet'!I488)","v":""},{"$f":"IF('1. Ordersheet'!J488=\"\",\"\",'1. Ordersheet'!J488)","v":""},{"$f":"IF('1. Ordersheet'!K488=\"\",\"\",'1. Ordersheet'!K488)","v":""},{"$f":"IF('1. Ordersheet'!L488=\"\",\"\",'1. Ordersheet'!L488)","v":""},{"$f":"IF('1. Ordersheet'!M488=\"\",\"\",'1. Ordersheet'!M488)","v":""},{"$f":"IF('1. Ordersheet'!N488=\"\",\"\",'1. Ordersheet'!N488)","v":""},{"$f":"IF('1. Ordersheet'!O488=\"\",\"\",'1. Ordersheet'!O488)","v":{"$error":"#N/A"}},{"$f":"IF('1. Ordersheet'!P488=\"\",\"\",'1. Ordersheet'!P488)","v":{"$error":"#N/A"}},{"$f":"IF('1. Ordersheet'!Q488=\"\",\"\",'1. Ordersheet'!Q488)","v":""},{"$f":"IF('1. Ordersheet'!R488=\"\",\"\",'1. Ordersheet'!R488)","v":""},{"$f":"IF('1. Ordersheet'!S488=\"\",\"\",'1. Ordersheet'!S488)","v":""},{"$f":"IF('1. Ordersheet'!V488=\"\",\"\",'1. Ordersheet'!V488)","v":""},{"$f":"IF('1. Ordersheet'!W488=\"\",\"\",'1. Ordersheet'!W488)","v":""},{"$f":"IF('1. Ordersheet'!X488=\"\",\"\",'1. Ordersheet'!X488)","v":""},{"$f":"IF('1. Ordersheet'!Y488=\"\",\"\",'1. Ordersheet'!Y488)","v":""},{"$f":"IF('1. Ordersheet'!Z488=\"\",\"\",'1. Ordersheet'!Z488)","v":""},{"$f":"IF('1. Ordersheet'!AA488=\"\",\"\",'1. Ordersheet'!AA488)","v":""},null,{"$f":"IF('1. Ordersheet'!AS488=\"\",\"\",'1. Ordersheet'!AS488)","v":""},{"$f":"IF('1. Ordersheet'!AT488=\"\",\"\",'1. Ordersheet'!AT488)","v":""},null,null,null,null,null,null,null,{"$f":"IF('1. Ordersheet'!AX488=\"\",\"\",'1. Ordersheet'!AX488)","v":""},{"$f":"IF('1. Ordersheet'!AY488=\"\",\"\",'1. Ordersheet'!AY488)","v":""},{"$f":"IF('1. Ordersheet'!AZ488=\"\",\"\",'1. Ordersheet'!AZ488)","v":""},{"$f":"IF('1. Ordersheet'!BA488=\"\",\"\",'1. Ordersheet'!BA488)","v":""},{"$f":"IF('1. Ordersheet'!BC488=\"\",\"\",'1. Ordersheet'!BC488)","v":""},{"$f":"IF('1. Ordersheet'!BD488=\"\",\"\",'1. Ordersheet'!BD488)","v":""},{"$f":"IF('1. Ordersheet'!BE488=\"\",\"\",'1. Ordersheet'!BE488)","v":""},{"$f":"IF('1. Ordersheet'!BF488=\"\",\"\",'1. Ordersheet'!BF488)","v":""},{"$f":"IF('1. Ordersheet'!BG488=\"\",\"\",'1. Ordersheet'!BG488)","v":"ZWO"},{"$f":"IF('1. Ordersheet'!BH488=\"\",\"\",'1. Ordersheet'!BH488)","v":""},{"$f":"IF('1. Ordersheet'!BI488=\"\",\"\",'1. Ordersheet'!BI488)","v":""},{"$f":"IF('1. Ordersheet'!BJ488=\"\",\"\",'1. Ordersheet'!BJ488)","v":""},{"$f":"IF('1. Ordersheet'!BK488=\"\",\"\",'1. Ordersheet'!BK488)","v":""},{"$f":"IF('1. Ordersheet'!BL488=\"\",\"\",'1. Ordersheet'!BL488)","v":""}]
[{"$f":"IF('1. Ordersheet'!F489=\"\",\"\",'1. Ordersheet'!F489)","v":""},{"$f":"IF('1. Ordersheet'!G489=\"\",\"\",'1. Ordersheet'!G489)","v":""},{"$f":"IF('1. Ordersheet'!H489=\"\",\"\",'1. Ordersheet'!H489)","v":""},{"$f":"IF('1. Ordersheet'!I489=\"\",\"\",'1. Ordersheet'!I489)","v":""},{"$f":"IF('1. Ordersheet'!J489=\"\",\"\",'1. Ordersheet'!J489)","v":""},{"$f":"IF('1. Ordersheet'!K489=\"\",\"\",'1. Ordersheet'!K489)","v":""},{"$f":"IF('1. Ordersheet'!L489=\"\",\"\",'1. Ordersheet'!L489)","v":""},{"$f":"IF('1. Ordersheet'!M489=\"\",\"\",'1. Ordersheet'!M489)","v":""},{"$f":"IF('1. Ordersheet'!N489=\"\",\"\",'1. Ordersheet'!N489)","v":""},{"$f":"IF('1. Ordersheet'!O489=\"\",\"\",'1. Ordersheet'!O489)","v":{"$error":"#N/A"}},{"$f":"IF('1. Ordersheet'!P489=\"\",\"\",'1. Ordersheet'!P489)","v":{"$error":"#N/A"}},{"$f":"IF('1. Ordersheet'!Q489=\"\",\"\",'1. Ordersheet'!Q489)","v":""},{"$f":"IF('1. Ordersheet'!R489=\"\",\"\",'1. Ordersheet'!R489)","v":""},{"$f":"IF('1. Ordersheet'!S489=\"\",\"\",'1. Ordersheet'!S489)","v":""},{"$f":"IF('1. Ordersheet'!V489=\"\",\"\",'1. Ordersheet'!V489)","v":""},{"$f":"IF('1. Ordersheet'!W489=\"\",\"\",'1. Ordersheet'!W489)","v":""},{"$f":"IF('1. Ordersheet'!X489=\"\",\"\",'1. Ordersheet'!X489)","v":""},{"$f":"IF('1. Ordersheet'!Y489=\"\",\"\",'1. Ordersheet'!Y489)","v":""},{"$f":"IF('1. Ordersheet'!Z489=\"\",\"\",'1. Ordersheet'!Z489)","v":""},{"$f":"IF('1. Ordersheet'!AA489=\"\",\"\",'1. Ordersheet'!AA489)","v":""},null,{"$f":"IF('1. Ordersheet'!AS489=\"\",\"\",'1. Ordersheet'!AS489)","v":""},{"$f":"IF('1. Ordersheet'!AT489=\"\",\"\",'1. Ordersheet'!AT489)","v":""},null,null,null,null,null,null,null,{"$f":"IF('1. Ordersheet'!AX489=\"\",\"\",'1. Ordersheet'!AX489)","v":""},{"$f":"IF('1. Ordersheet'!AY489=\"\",\"\",'1. Ordersheet'!AY489)","v":""},{"$f":"IF('1. Ordersheet'!AZ489=\"\",\"\",'1. Ordersheet'!AZ489)","v":""},{"$f":"IF('1. Ordersheet'!BA489=\"\",\"\",'1. Ordersheet'!BA489)","v":""},{"$f":"IF('1. Ordersheet'!BC489=\"\",\"\",'1. Ordersheet'!BC489)","v":""},{"$f":"IF('1. Ordersheet'!BD489=\"\",\"\",'1. Ordersheet'!BD489)","v":""},{"$f":"IF('1. Ordersheet'!BE489=\"\",\"\",'1. Ordersheet'!BE489)","v":""},{"$f":"IF('1. Ordersheet'!BF489=\"\",\"\",'1. Ordersheet'!BF489)","v":""},{"$f":"IF('1. Ordersheet'!BG489=\"\",\"\",'1. Ordersheet'!BG489)","v":"ZWO"},{"$f":"IF('1. Ordersheet'!BH489=\"\",\"\",'1. Ordersheet'!BH489)","v":""},{"$f":"IF('1. Ordersheet'!BI489=\"\",\"\",'1. Ordersheet'!BI489)","v":""},{"$f":"IF('1. Ordersheet'!BJ489=\"\",\"\",'1. Ordersheet'!BJ489)","v":""},{"$f":"IF('1. Ordersheet'!BK489=\"\",\"\",'1. Ordersheet'!BK489)","v":""},{"$f":"IF('1. Ordersheet'!BL489=\"\",\"\",'1. Ordersheet'!BL489)","v":""}]
[{"$f":"IF('1. Ordersheet'!F490=\"\",\"\",'1. Ordersheet'!F490)","v":""},{"$f":"IF('1. Ordersheet'!G490=\"\",\"\",'1. Ordersheet'!G490)","v":""},{"$f":"IF('1. Ordersheet'!H490=\"\",\"\",'1. Ordersheet'!H490)","v":""},{"$f":"IF('1. Ordersheet'!I490=\"\",\"\",'1. Ordersheet'!I490)","v":""},{"$f":"IF('1. Ordersheet'!J490=\"\",\"\",'1. Ordersheet'!J490)","v":""},{"$f":"IF('1. Ordersheet'!K490=\"\",\"\",'1. Ordersheet'!K490)","v":""},{"$f":"IF('1. Ordersheet'!L490=\"\",\"\",'1. Ordersheet'!L490)","v":""},{"$f":"IF('1. Ordersheet'!M490=\"\",\"\",'1. Ordersheet'!M490)","v":""},{"$f":"IF('1. Ordersheet'!N490=\"\",\"\",'1. Ordersheet'!N490)","v":""},{"$f":"IF('1. Ordersheet'!O490=\"\",\"\",'1. Ordersheet'!O490)","v":{"$error":"#N/A"}},{"$f":"IF('1. Ordersheet'!P490=\"\",\"\",'1. Ordersheet'!P490)","v":{"$error":"#N/A"}},{"$f":"IF('1. Ordersheet'!Q490=\"\",\"\",'1. Ordersheet'!Q490)","v":""},{"$f":"IF('1. Ordersheet'!R490=\"\",\"\",'1. Ordersheet'!R490)","v":""},{"$f":"IF('1. Ordersheet'!S490=\"\",\"\",'1. Ordersheet'!S490)","v":""},{"$f":"IF('1. Ordersheet'!V490=\"\",\"\",'1. Ordersheet'!V490)","v":""},{"$f":"IF('1. Ordersheet'!W490=\"\",\"\",'1. Ordersheet'!W490)","v":""},{"$f":"IF('1. Ordersheet'!X490=\"\",\"\",'1. Ordersheet'!X490)","v":""},{"$f":"IF('1. Ordersheet'!Y490=\"\",\"\",'1. Ordersheet'!Y490)","v":""},{"$f":"IF('1. Ordersheet'!Z490=\"\",\"\",'1. Ordersheet'!Z490)","v":""},{"$f":"IF('1. Ordersheet'!AA490=\"\",\"\",'1. Ordersheet'!AA490)","v":""},null,{"$f":"IF('1. Ordersheet'!AS490=\"\",\"\",'1. Ordersheet'!AS490)","v":""},{"$f":"IF('1. Ordersheet'!AT490=\"\",\"\",'1. Ordersheet'!AT490)","v":""},null,null,null,null,null,null,null,{"$f":"IF('1. Ordersheet'!AX490=\"\",\"\",'1. Ordersheet'!AX490)","v":""},{"$f":"IF('1. Ordersheet'!AY490=\"\",\"\",'1. Ordersheet'!AY490)","v":""},{"$f":"IF('1. Ordersheet'!AZ490=\"\",\"\",'1. Ordersheet'!AZ490)","v":""},{"$f":"IF('1. Ordersheet'!BA490=\"\",\"\",'1. Ordersheet'!BA490)","v":""},{"$f":"IF('1. Ordersheet'!BC490=\"\",\"\",'1. Ordersheet'!BC490)","v":""},{"$f":"IF('1. Ordersheet'!BD490=\"\",\"\",'1. Ordersheet'!BD490)","v":""},{"$f":"IF('1. Ordersheet'!BE490=\"\",\"\",'1. Ordersheet'!BE490)","v":""},{"$f":"IF('1. Ordersheet'!BF490=\"\",\"\",'1. Ordersheet'!BF490)","v":""},{"$f":"IF('1. Ordersheet'!BG490=\"\",\"\",'1. Ordersheet'!BG490)","v":"ZWO"},{"$f":"IF('1. Ordersheet'!BH490=\"\",\"\",'1. Ordersheet'!BH490)","v":""},{"$f":"IF('1. Ordersheet'!BI490=\"\",\"\",'1. Ordersheet'!BI490)","v":""},{"$f":"IF('1. Ordersheet'!BJ490=\"\",\"\",'1. Ordersheet'!BJ490)","v":""},{"$f":"IF('1. Ordersheet'!BK490=\"\",\"\",'1. Ordersheet'!BK490)","v":""},{"$f":"IF('1. Ordersheet'!BL490=\"\",\"\",'1. Ordersheet'!BL490)","v":""}]
[{"$f":"IF('1. Ordersheet'!F491=\"\",\"\",'1. Ordersheet'!F491)","v":""},{"$f":"IF('1. Ordersheet'!G491=\"\",\"\",'1. Ordersheet'!G491)","v":""},{"$f":"IF('1. Ordersheet'!H491=\"\",\"\",'1. Ordersheet'!H491)","v":""},{"$f":"IF('1. Ordersheet'!I491=\"\",\"\",'1. Ordersheet'!I491)","v":""},{"$f":"IF('1. Ordersheet'!J491=\"\",\"\",'1. Ordersheet'!J491)","v":""},{"$f":"IF('1. Ordersheet'!K491=\"\",\"\",'1. Ordersheet'!K491)","v":""},{"$f":"IF('1. Ordersheet'!L491=\"\",\"\",'1. Ordersheet'!L491)","v":""},{"$f":"IF('1. Ordersheet'!M491=\"\",\"\",'1. Ordersheet'!M491)","v":""},{"$f":"IF('1. Ordersheet'!N491=\"\",\"\",'1. Ordersheet'!N491)","v":""},{"$f":"IF('1. Ordersheet'!O491=\"\",\"\",'1. Ordersheet'!O491)","v":{"$error":"#N/A"}},{"$f":"IF('1. Ordersheet'!P491=\"\",\"\",'1. Ordersheet'!P491)","v":{"$error":"#N/A"}},{"$f":"IF('1. Ordersheet'!Q491=\"\",\"\",'1. Ordersheet'!Q491)","v":""},{"$f":"IF('1. Ordersheet'!R491=\"\",\"\",'1. Ordersheet'!R491)","v":""},{"$f":"IF('1. Ordersheet'!S491=\"\",\"\",'1. Ordersheet'!S491)","v":""},{"$f":"IF('1. Ordersheet'!V491=\"\",\"\",'1. Ordersheet'!V491)","v":""},{"$f":"IF('1. Ordersheet'!W491=\"\",\"\",'1. Ordersheet'!W491)","v":""},{"$f":"IF('1. Ordersheet'!X491=\"\",\"\",'1. Ordersheet'!X491)","v":""},{"$f":"IF('1. Ordersheet'!Y491=\"\",\"\",'1. Ordersheet'!Y491)","v":""},{"$f":"IF('1. Ordersheet'!Z491=\"\",\"\",'1. Ordersheet'!Z491)","v":""},{"$f":"IF('1. Ordersheet'!AA491=\"\",\"\",'1. Ordersheet'!AA491)","v":""},null,{"$f":"IF('1. Ordersheet'!AS491=\"\",\"\",'1. Ordersheet'!AS491)","v":""},{"$f":"IF('1. Ordersheet'!AT491=\"\",\"\",'1. Ordersheet'!AT491)","v":""},null,null,null,null,null,null,null,{"$f":"IF('1. Ordersheet'!AX491=\"\",\"\",'1. Ordersheet'!AX491)","v":""},{"$f":"IF('1. Ordersheet'!AY491=\"\",\"\",'1. Ordersheet'!AY491)","v":""},{"$f":"IF('1. Ordersheet'!AZ491=\"\",\"\",'1. Ordersheet'!AZ491)","v":""},{"$f":"IF('1. Ordersheet'!BA491=\"\",\"\",'1. Ordersheet'!BA491)","v":""},{"$f":"IF('1. Ordersheet'!BC491=\"\",\"\",'1. Ordersheet'!BC491)","v":""},{"$f":"IF('1. Ordersheet'!BD491=\"\",\"\",'1. Ordersheet'!BD491)","v":""},{"$f":"IF('1. Ordersheet'!BE491=\"\",\"\",'1. Ordersheet'!BE491)","v":""},{"$f":"IF('1. Ordersheet'!BF491=\"\",\"\",'1. Ordersheet'!BF491)","v":""},{"$f":"IF('1. Ordersheet'!BG491=\"\",\"\",'1. Ordersheet'!BG491)","v":"ZWO"},{"$f":"IF('1. Ordersheet'!BH491=\"\",\"\",'1. Ordersheet'!BH491)","v":""},{"$f":"IF('1. Ordersheet'!BI491=\"\",\"\",'1. Ordersheet'!BI491)","v":""},{"$f":"IF('1. Ordersheet'!BJ491=\"\",\"\",'1. Ordersheet'!BJ491)","v":""},{"$f":"IF('1. Ordersheet'!BK491=\"\",\"\",'1. Ordersheet'!BK491)","v":""},{"$f":"IF('1. Ordersheet'!BL491=\"\",\"\",'1. Ordersheet'!BL491)","v":""}]
[{"$f":"IF('1. Ordersheet'!F492=\"\",\"\",'1. Ordersheet'!F492)","v":""},{"$f":"IF('1. Ordersheet'!G492=\"\",\"\",'1. Ordersheet'!G492)","v":""},{"$f":"IF('1. Ordersheet'!H492=\"\",\"\",'1. Ordersheet'!H492)","v":""},{"$f":"IF('1. Ordersheet'!I492=\"\",\"\",'1. Ordersheet'!I492)","v":""},{"$f":"IF('1. Ordersheet'!J492=\"\",\"\",'1. Ordersheet'!J492)","v":""},{"$f":"IF('1. Ordersheet'!K492=\"\",\"\",'1. Ordersheet'!K492)","v":""},{"$f":"IF('1. Ordersheet'!L492=\"\",\"\",'1. Ordersheet'!L492)","v":""},{"$f":"IF('1. Ordersheet'!M492=\"\",\"\",'1. Ordersheet'!M492)","v":""},{"$f":"IF('1. Ordersheet'!N492=\"\",\"\",'1. Ordersheet'!N492)","v":""},{"$f":"IF('1. Ordersheet'!O492=\"\",\"\",'1. Ordersheet'!O492)","v":{"$error":"#N/A"}},{"$f":"IF('1. Ordersheet'!P492=\"\",\"\",'1. Ordersheet'!P492)","v":{"$error":"#N/A"}},{"$f":"IF('1. Ordersheet'!Q492=\"\",\"\",'1. Ordersheet'!Q492)","v":""},{"$f":"IF('1. Ordersheet'!R492=\"\",\"\",'1. Ordersheet'!R492)","v":""},{"$f":"IF('1. Ordersheet'!S492=\"\",\"\",'1. Ordersheet'!S492)","v":""},{"$f":"IF('1. Ordersheet'!V492=\"\",\"\",'1. Ordersheet'!V492)","v":""},{"$f":"IF('1. Ordersheet'!W492=\"\",\"\",'1. Ordersheet'!W492)","v":""},{"$f":"IF('1. Ordersheet'!X492=\"\",\"\",'1. Ordersheet'!X492)","v":""},{"$f":"IF('1. Ordersheet'!Y492=\"\",\"\",'1. Ordersheet'!Y492)","v":""},{"$f":"IF('1. Ordersheet'!Z492=\"\",\"\",'1. Ordersheet'!Z492)","v":""},{"$f":"IF('1. Ordersheet'!AA492=\"\",\"\",'1. Ordersheet'!AA492)","v":""},null,{"$f":"IF('1. Ordersheet'!AS492=\"\",\"\",'1. Ordersheet'!AS492)","v":""},{"$f":"IF('1. Ordersheet'!AT492=\"\",\"\",'1. Ordersheet'!AT492)","v":""},null,null,null,null,null,null,null,{"$f":"IF('1. Ordersheet'!AX492=\"\",\"\",'1. Ordersheet'!AX492)","v":""},{"$f":"IF('1. Ordersheet'!AY492=\"\",\"\",'1. Ordersheet'!AY492)","v":""},{"$f":"IF('1. Ordersheet'!AZ492=\"\",\"\",'1. Ordersheet'!AZ492)","v":""},{"$f":"IF('1. Ordersheet'!BA492=\"\",\"\",'1. Ordersheet'!BA492)","v":""},{"$f":"IF('1. Ordersheet'!BC492=\"\",\"\",'1. Ordersheet'!BC492)","v":""},{"$f":"IF('1. Ordersheet'!BD492=\"\",\"\",'1. Ordersheet'!BD492)","v":""},{"$f":"IF('1. Ordersheet'!BE492=\"\",\"\",'1. Ordersheet'!BE492)","v":""},{"$f":"IF('1. Ordersheet'!BF492=\"\",\"\",'1. Ordersheet'!BF492)","v":""},{"$f":"IF('1. Ordersheet'!BG492=\"\",\"\",'1. Ordersheet'!BG492)","v":"ZWO"},{"$f":"IF('1. Ordersheet'!BH492=\"\",\"\",'1. Ordersheet'!BH492)","v":""},{"$f":"IF('1. Ordersheet'!BI492=\"\",\"\",'1. Ordersheet'!BI492)","v":""},{"$f":"IF('1. Ordersheet'!BJ492=\"\",\"\",'1. Ordersheet'!BJ492)","v":""},{"$f":"IF('1. Ordersheet'!BK492=\"\",\"\",'1. Ordersheet'!BK492)","v":""},{"$f":"IF('1. Ordersheet'!BL492=\"\",\"\",'1. Ordersheet'!BL492)","v":""}]
[{"$f":"IF('1. Ordersheet'!F493=\"\",\"\",'1. Ordersheet'!F493)","v":""},{"$f":"IF('1. Ordersheet'!G493=\"\",\"\",'1. Ordersheet'!G493)","v":""},{"$f":"IF('1. Ordersheet'!H493=\"\",\"\",'1. Ordersheet'!H493)","v":""},{"$f":"IF('1. Ordersheet'!I493=\"\",\"\",'1. Ordersheet'!I493)","v":""},{"$f":"IF('1. Ordersheet'!J493=\"\",\"\",'1. Ordersheet'!J493)","v":""},{"$f":"IF('1. Ordersheet'!K493=\"\",\"\",'1. Ordersheet'!K493)","v":""},{"$f":"IF('1. Ordersheet'!L493=\"\",\"\",'1. Ordersheet'!L493)","v":""},{"$f":"IF('1. Ordersheet'!M493=\"\",\"\",'1. Ordersheet'!M493)","v":""},{"$f":"IF('1. Ordersheet'!N493=\"\",\"\",'1. Ordersheet'!N493)","v":""},{"$f":"IF('1. Ordersheet'!O493=\"\",\"\",'1. Ordersheet'!O493)","v":{"$error":"#N/A"}},{"$f":"IF('1. Ordersheet'!P493=\"\",\"\",'1. Ordersheet'!P493)","v":{"$error":"#N/A"}},{"$f":"IF('1. Ordersheet'!Q493=\"\",\"\",'1. Ordersheet'!Q493)","v":""},{"$f":"IF('1. Ordersheet'!R493=\"\",\"\",'1. Ordersheet'!R493)","v":""},{"$f":"IF('1. Ordersheet'!S493=\"\",\"\",'1. Ordersheet'!S493)","v":""},{"$f":"IF('1. Ordersheet'!V493=\"\",\"\",'1. Ordersheet'!V493)","v":""},{"$f":"IF('1. Ordersheet'!W493=\"\",\"\",'1. Ordersheet'!W493)","v":""},{"$f":"IF('1. Ordersheet'!X493=\"\",\"\",'1. Ordersheet'!X493)","v":""},{"$f":"IF('1. Ordersheet'!Y493=\"\",\"\",'1. Ordersheet'!Y493)","v":""},{"$f":"IF('1. Ordersheet'!Z493=\"\",\"\",'1. Ordersheet'!Z493)","v":""},{"$f":"IF('1. Ordersheet'!AA493=\"\",\"\",'1. Ordersheet'!AA493)","v":""},null,{"$f":"IF('1. Ordersheet'!AS493=\"\",\"\",'1. Ordersheet'!AS493)","v":""},{"$f":"IF('1. Ordersheet'!AT493=\"\",\"\",'1. Ordersheet'!AT493)","v":""},null,null,null,null,null,null,null,{"$f":"IF('1. Ordersheet'!AX493=\"\",\"\",'1. Ordersheet'!AX493)","v":""},{"$f":"IF('1. Ordersheet'!AY493=\"\",\"\",'1. Ordersheet'!AY493)","v":""},{"$f":"IF('1. Ordersheet'!AZ493=\"\",\"\",'1. Ordersheet'!AZ493)","v":""},{"$f":"IF('1. Ordersheet'!BA493=\"\",\"\",'1. Ordersheet'!BA493)","v":""},{"$f":"IF('1. Ordersheet'!BC493=\"\",\"\",'1. Ordersheet'!BC493)","v":""},{"$f":"IF('1. Ordersheet'!BD493=\"\",\"\",'1. Ordersheet'!BD493)","v":""},{"$f":"IF('1. Ordersheet'!BE493=\"\",\"\",'1. Ordersheet'!BE493)","v":""},{"$f":"IF('1. Ordersheet'!BF493=\"\",\"\",'1. Ordersheet'!BF493)","v":""},{"$f":"IF('1. Ordersheet'!BG493=\"\",\"\",'1. Ordersheet'!BG493)","v":"ZWO"},{"$f":"IF('1. Ordersheet'!BH493=\"\",\"\",'1. Ordersheet'!BH493)","v":""},{"$f":"IF('1. Ordersheet'!BI493=\"\",\"\",'1. Ordersheet'!BI493)","v":""},{"$f":"IF('1. Ordersheet'!BJ493=\"\",\"\",'1. Ordersheet'!BJ493)","v":""},{"$f":"IF('1. Ordersheet'!BK493=\"\",\"\",'1. Ordersheet'!BK493)","v":""},{"$f":"IF('1. Ordersheet'!BL493=\"\",\"\",'1. Ordersheet'!BL493)","v":""}]
[{"$f":"IF('1. Ordersheet'!F494=\"\",\"\",'1. Ordersheet'!F494)","v":""},{"$f":"IF('1. Ordersheet'!G494=\"\",\"\",'1. Ordersheet'!G494)","v":""},{"$f":"IF('1. Ordersheet'!H494=\"\",\"\",'1. Ordersheet'!H494)","v":""},{"$f":"IF('1. Ordersheet'!I494=\"\",\"\",'1. Ordersheet'!I494)","v":""},{"$f":"IF('1. Ordersheet'!J494=\"\",\"\",'1. Ordersheet'!J494)","v":""},{"$f":"IF('1. Ordersheet'!K494=\"\",\"\",'1. Ordersheet'!K494)","v":""},{"$f":"IF('1. Ordersheet'!L494=\"\",\"\",'1. Ordersheet'!L494)","v":""},{"$f":"IF('1. Ordersheet'!M494=\"\",\"\",'1. Ordersheet'!M494)","v":""},{"$f":"IF('1. Ordersheet'!N494=\"\",\"\",'1. Ordersheet'!N494)","v":""},{"$f":"IF('1. Ordersheet'!O494=\"\",\"\",'1. Ordersheet'!O494)","v":{"$error":"#N/A"}},{"$f":"IF('1. Ordersheet'!P494=\"\",\"\",'1. Ordersheet'!P494)","v":{"$error":"#N/A"}},{"$f":"IF('1. Ordersheet'!Q494=\"\",\"\",'1. Ordersheet'!Q494)","v":""},{"$f":"IF('1. Ordersheet'!R494=\"\",\"\",'1. Ordersheet'!R494)","v":""},{"$f":"IF('1. Ordersheet'!S494=\"\",\"\",'1. Ordersheet'!S494)","v":""},{"$f":"IF('1. Ordersheet'!V494=\"\",\"\",'1. Ordersheet'!V494)","v":""},{"$f":"IF('1. Ordersheet'!W494=\"\",\"\",'1. Ordersheet'!W494)","v":""},{"$f":"IF('1. Ordersheet'!X494=\"\",\"\",'1. Ordersheet'!X494)","v":""},{"$f":"IF('1. Ordersheet'!Y494=\"\",\"\",'1. Ordersheet'!Y494)","v":""},{"$f":"IF('1. Ordersheet'!Z494=\"\",\"\",'1. Ordersheet'!Z494)","v":""},{"$f":"IF('1. Ordersheet'!AA494=\"\",\"\",'1. Ordersheet'!AA494)","v":""},null,{"$f":"IF('1. Ordersheet'!AS494=\"\",\"\",'1. Ordersheet'!AS494)","v":""},{"$f":"IF('1. Ordersheet'!AT494=\"\",\"\",'1. Ordersheet'!AT494)","v":""},null,null,null,null,null,null,null,{"$f":"IF('1. Ordersheet'!AX494=\"\",\"\",'1. Ordersheet'!AX494)","v":""},{"$f":"IF('1. Ordersheet'!AY494=\"\",\"\",'1. Ordersheet'!AY494)","v":""},{"$f":"IF('1. Ordersheet'!AZ494=\"\",\"\",'1. Ordersheet'!AZ494)","v":""},{"$f":"IF('1. Ordersheet'!BA494=\"\",\"\",'1. Ordersheet'!BA494)","v":""},{"$f":"IF('1. Ordersheet'!BC494=\"\",\"\",'1. Ordersheet'!BC494)","v":""},{"$f":"IF('1. Ordersheet'!BD494=\"\",\"\",'1. Ordersheet'!BD494)","v":""},{"$f":"IF('1. Ordersheet'!BE494=\"\",\"\",'1. Ordersheet'!BE494)","v":""},{"$f":"IF('1. Ordersheet'!BF494=\"\",\"\",'1. Ordersheet'!BF494)","v":""},{"$f":"IF('1. Ordersheet'!BG494=\"\",\"\",'1. Ordersheet'!BG494)","v":"ZWO"},{"$f":"IF('1. Ordersheet'!BH494=\"\",\"\",'1. Ordersheet'!BH494)","v":""},{"$f":"IF('1. Ordersheet'!BI494=\"\",\"\",'1. Ordersheet'!BI494)","v":""},{"$f":"IF('1. Ordersheet'!BJ494=\"\",\"\",'1. Ordersheet'!BJ494)","v":""},{"$f":"IF('1. Ordersheet'!BK494=\"\",\"\",'1. Ordersheet'!BK494)","v":""},{"$f":"IF('1. Ordersheet'!BL494=\"\",\"\",'1. Ordersheet'!BL494)","v":""}]
[{"$f":"IF('1. Ordersheet'!F495=\"\",\"\",'1. Ordersheet'!F495)","v":""},{"$f":"IF('1. Ordersheet'!G495=\"\",\"\",'1. Ordersheet'!G495)","v":""},{"$f":"IF('1. Ordersheet'!H495=\"\",\"\",'1. Ordersheet'!H495)","v":""},{"$f":"IF('1. Ordersheet'!I495=\"\",\"\",'1. Ordersheet'!I495)","v":""},{"$f":"IF('1. Ordersheet'!J495=\"\",\"\",'1. Ordersheet'!J495)","v":""},{"$f":"IF('1. Ordersheet'!K495=\"\",\"\",'1. Ordersheet'!K495)","v":""},{"$f":"IF('1. Ordersheet'!L495=\"\",\"\",'1. Ordersheet'!L495)","v":""},{"$f":"IF('1. Ordersheet'!M495=\"\",\"\",'1. Ordersheet'!M495)","v":""},{"$f":"IF('1. Ordersheet'!N495=\"\",\"\",'1. Ordersheet'!N495)","v":""},{"$f":"IF('1. Ordersheet'!O495=\"\",\"\",'1. Ordersheet'!O495)","v":{"$error":"#N/A"}},{"$f":"IF('1. Ordersheet'!P495=\"\",\"\",'1. Ordersheet'!P495)","v":{"$error":"#N/A"}},{"$f":"IF('1. Ordersheet'!Q495=\"\",\"\",'1. Ordersheet'!Q495)","v":""},{"$f":"IF('1. Ordersheet'!R495=\"\",\"\",'1. Ordersheet'!R495)","v":""},{"$f":"IF('1. Ordersheet'!S495=\"\",\"\",'1. Ordersheet'!S495)","v":""},{"$f":"IF('1. Ordersheet'!V495=\"\",\"\",'1. Ordersheet'!V495)","v":""},{"$f":"IF('1. Ordersheet'!W495=\"\",\"\",'1. Ordersheet'!W495)","v":""},{"$f":"IF('1. Ordersheet'!X495=\"\",\"\",'1. Ordersheet'!X495)","v":""},{"$f":"IF('1. Ordersheet'!Y495=\"\",\"\",'1. Ordersheet'!Y495)","v":""},{"$f":"IF('1. Ordersheet'!Z495=\"\",\"\",'1. Ordersheet'!Z495)","v":""},{"$f":"IF('1. Ordersheet'!AA495=\"\",\"\",'1. Ordersheet'!AA495)","v":""},null,{"$f":"IF('1. Ordersheet'!AS495=\"\",\"\",'1. Ordersheet'!AS495)","v":""},{"$f":"IF('1. Ordersheet'!AT495=\"\",\"\",'1. Ordersheet'!AT495)","v":""},null,null,null,null,null,null,null,{"$f":"IF('1. Ordersheet'!AX495=\"\",\"\",'1. Ordersheet'!AX495)","v":""},{"$f":"IF('1. Ordersheet'!AY495=\"\",\"\",'1. Ordersheet'!AY495)","v":""},{"$f":"IF('1. Ordersheet'!AZ495=\"\",\"\",'1. Ordersheet'!AZ495)","v":""},{"$f":"IF('1. Ordersheet'!BA495=\"\",\"\",'1. Ordersheet'!BA495)","v":""},{"$f":"IF('1. Ordersheet'!BC495=\"\",\"\",'1. Ordersheet'!BC495)","v":""},{"$f":"IF('1. Ordersheet'!BD495=\"\",\"\",'1. Ordersheet'!BD495)","v":""},{"$f":"IF('1. Ordersheet'!BE495=\"\",\"\",'1. Ordersheet'!BE495)","v":""},{"$f":"IF('1. Ordersheet'!BF495=\"\",\"\",'1. Ordersheet'!BF495)","v":""},{"$f":"IF('1. Ordersheet'!BG495=\"\",\"\",'1. Ordersheet'!BG495)","v":"ZWO"},{"$f":"IF('1. Ordersheet'!BH495=\"\",\"\",'1. Ordersheet'!BH495)","v":""},{"$f":"IF('1. Ordersheet'!BI495=\"\",\"\",'1. Ordersheet'!BI495)","v":""},{"$f":"IF('1. Ordersheet'!BJ495=\"\",\"\",'1. Ordersheet'!BJ495)","v":""},{"$f":"IF('1. Ordersheet'!BK495=\"\",\"\",'1. Ordersheet'!BK495)","v":""},{"$f":"IF('1. Ordersheet'!BL495=\"\",\"\",'1. Ordersheet'!BL495)","v":""}]
[{"$f":"IF('1. Ordersheet'!F496=\"\",\"\",'1. Ordersheet'!F496)","v":""},{"$f":"IF('1. Ordersheet'!G496=\"\",\"\",'1. Ordersheet'!G496)","v":""},{"$f":"IF('1. Ordersheet'!H496=\"\",\"\",'1. Ordersheet'!H496)","v":""},{"$f":"IF('1. Ordersheet'!I496=\"\",\"\",'1. Ordersheet'!I496)","v":""},{"$f":"IF('1. Ordersheet'!J496=\"\",\"\",'1. Ordersheet'!J496)","v":""},{"$f":"IF('1. Ordersheet'!K496=\"\",\"\",'1. Ordersheet'!K496)","v":""},{"$f":"IF('1. Ordersheet'!L496=\"\",\"\",'1. Ordersheet'!L496)","v":""},{"$f":"IF('1. Ordersheet'!M496=\"\",\"\",'1. Ordersheet'!M496)","v":""},{"$f":"IF('1. Ordersheet'!N496=\"\",\"\",'1. Ordersheet'!N496)","v":""},{"$f":"IF('1. Ordersheet'!O496=\"\",\"\",'1. Ordersheet'!O496)","v":{"$error":"#N/A"}},{"$f":"IF('1. Ordersheet'!P496=\"\",\"\",'1. Ordersheet'!P496)","v":{"$error":"#N/A"}},{"$f":"IF('1. Ordersheet'!Q496=\"\",\"\",'1. Ordersheet'!Q496)","v":""},{"$f":"IF('1. Ordersheet'!R496=\"\",\"\",'1. Ordersheet'!R496)","v":""},{"$f":"IF('1. Ordersheet'!S496=\"\",\"\",'1. Ordersheet'!S496)","v":""},{"$f":"IF('1. Ordersheet'!V496=\"\",\"\",'1. Ordersheet'!V496)","v":""},{"$f":"IF('1. Ordersheet'!W496=\"\",\"\",'1. Ordersheet'!W496)","v":""},{"$f":"IF('1. Ordersheet'!X496=\"\",\"\",'1. Ordersheet'!X496)","v":""},{"$f":"IF('1. Ordersheet'!Y496=\"\",\"\",'1. Ordersheet'!Y496)","v":""},{"$f":"IF('1. Ordersheet'!Z496=\"\",\"\",'1. Ordersheet'!Z496)","v":""},{"$f":"IF('1. Ordersheet'!AA496=\"\",\"\",'1. Ordersheet'!AA496)","v":""},null,{"$f":"IF('1. Ordersheet'!AS496=\"\",\"\",'1. Ordersheet'!AS496)","v":""},{"$f":"IF('1. Ordersheet'!AT496=\"\",\"\",'1. Ordersheet'!AT496)","v":""},null,null,null,null,null,null,null,{"$f":"IF('1. Ordersheet'!AX496=\"\",\"\",'1. Ordersheet'!AX496)","v":""},{"$f":"IF('1. Ordersheet'!AY496=\"\",\"\",'1. Ordersheet'!AY496)","v":""},{"$f":"IF('1. Ordersheet'!AZ496=\"\",\"\",'1. Ordersheet'!AZ496)","v":""},{"$f":"IF('1. Ordersheet'!BA496=\"\",\"\",'1. Ordersheet'!BA496)","v":""},{"$f":"IF('1. Ordersheet'!BC496=\"\",\"\",'1. Ordersheet'!BC496)","v":""},{"$f":"IF('1. Ordersheet'!BD496=\"\",\"\",'1. Ordersheet'!BD496)","v":""},{"$f":"IF('1. Ordersheet'!BE496=\"\",\"\",'1. Ordersheet'!BE496)","v":""},{"$f":"IF('1. Ordersheet'!BF496=\"\",\"\",'1. Ordersheet'!BF496)","v":""},{"$f":"IF('1. Ordersheet'!BG496=\"\",\"\",'1. Ordersheet'!BG496)","v":"ZWO"},{"$f":"IF('1. Ordersheet'!BH496=\"\",\"\",'1. Ordersheet'!BH496)","v":""},{"$f":"IF('1. Ordersheet'!BI496=\"\",\"\",'1. Ordersheet'!BI496)","v":""},{"$f":"IF('1. Ordersheet'!BJ496=\"\",\"\",'1. Ordersheet'!BJ496)","v":""},{"$f":"IF('1. Ordersheet'!BK496=\"\",\"\",'1. Ordersheet'!BK496)","v":""},{"$f":"IF('1. Ordersheet'!BL496=\"\",\"\",'1. Ordersheet'!BL496)","v":""}]
[{"$f":"IF('1. Ordersheet'!F497=\"\",\"\",'1. Ordersheet'!F497)","v":""},{"$f":"IF('1. Ordersheet'!G497=\"\",\"\",'1. Ordersheet'!G497)","v":""},{"$f":"IF('1. Ordersheet'!H497=\"\",\"\",'1. Ordersheet'!H497)","v":""},{"$f":"IF('1. Ordersheet'!I497=\"\",\"\",'1. Ordersheet'!I497)","v":""},{"$f":"IF('1. Ordersheet'!J497=\"\",\"\",'1. Ordersheet'!J497)","v":""},{"$f":"IF('1. Ordersheet'!K497=\"\",\"\",'1. Ordersheet'!K497)","v":""},{"$f":"IF('1. Ordersheet'!L497=\"\",\"\",'1. Ordersheet'!L497)","v":""},{"$f":"IF('1. Ordersheet'!M497=\"\",\"\",'1. Ordersheet'!M497)","v":""},{"$f":"IF('1. Ordersheet'!N497=\"\",\"\",'1. Ordersheet'!N497)","v":""},{"$f":"IF('1. Ordersheet'!O497=\"\",\"\",'1. Ordersheet'!O497)","v":{"$error":"#N/A"}},{"$f":"IF('1. Ordersheet'!P497=\"\",\"\",'1. Ordersheet'!P497)","v":{"$error":"#N/A"}},{"$f":"IF('1. Ordersheet'!Q497=\"\",\"\",'1. Ordersheet'!Q497)","v":""},{"$f":"IF('1. Ordersheet'!R497=\"\",\"\",'1. Ordersheet'!R497)","v":""},{"$f":"IF('1. Ordersheet'!S497=\"\",\"\",'1. Ordersheet'!S497)","v":""},{"$f":"IF('1. Ordersheet'!V497=\"\",\"\",'1. Ordersheet'!V497)","v":""},{"$f":"IF('1. Ordersheet'!W497=\"\",\"\",'1. Ordersheet'!W497)","v":""},{"$f":"IF('1. Ordersheet'!X497=\"\",\"\",'1. Ordersheet'!X497)","v":""},{"$f":"IF('1. Ordersheet'!Y497=\"\",\"\",'1. Ordersheet'!Y497)","v":""},{"$f":"IF('1. Ordersheet'!Z497=\"\",\"\",'1. Ordersheet'!Z497)","v":""},{"$f":"IF('1. Ordersheet'!AA497=\"\",\"\",'1. Ordersheet'!AA497)","v":""},null,{"$f":"IF('1. Ordersheet'!AS497=\"\",\"\",'1. Ordersheet'!AS497)","v":""},{"$f":"IF('1. Ordersheet'!AT497=\"\",\"\",'1. Ordersheet'!AT497)","v":""},null,null,null,null,null,null,null,{"$f":"IF('1. Ordersheet'!AX497=\"\",\"\",'1. Ordersheet'!AX497)","v":""},{"$f":"IF('1. Ordersheet'!AY497=\"\",\"\",'1. Ordersheet'!AY497)","v":""},{"$f":"IF('1. Ordersheet'!AZ497=\"\",\"\",'1. Ordersheet'!AZ497)","v":""},{"$f":"IF('1. Ordersheet'!BA497=\"\",\"\",'1. Ordersheet'!BA497)","v":""},{"$f":"IF('1. Ordersheet'!BC497=\"\",\"\",'1. Ordersheet'!BC497)","v":""},{"$f":"IF('1. Ordersheet'!BD497=\"\",\"\",'1. Ordersheet'!BD497)","v":""},{"$f":"IF('1. Ordersheet'!BE497=\"\",\"\",'1. Ordersheet'!BE497)","v":""},{"$f":"IF('1. Ordersheet'!BF497=\"\",\"\",'1. Ordersheet'!BF497)","v":""},{"$f":"IF('1. Ordersheet'!BG497=\"\",\"\",'1. Ordersheet'!BG497)","v":"ZWO"},{"$f":"IF('1. Ordersheet'!BH497=\"\",\"\",'1. Ordersheet'!BH497)","v":""},{"$f":"IF('1. Ordersheet'!BI497=\"\",\"\",'1. Ordersheet'!BI497)","v":""},{"$f":"IF('1. Ordersheet'!BJ497=\"\",\"\",'1. Ordersheet'!BJ497)","v":""},{"$f":"IF('1. Ordersheet'!BK497=\"\",\"\",'1. Ordersheet'!BK497)","v":""},{"$f":"IF('1. Ordersheet'!BL497=\"\",\"\",'1. Ordersheet'!BL497)","v":""}]
[{"$f":"IF('1. Ordersheet'!F498=\"\",\"\",'1. Ordersheet'!F498)","v":""},{"$f":"IF('1. Ordersheet'!G498=\"\",\"\",'1. Ordersheet'!G498)","v":""},{"$f":"IF('1. Ordersheet'!H498=\"\",\"\",'1. Ordersheet'!H498)","v":""},{"$f":"IF('1. Ordersheet'!I498=\"\",\"\",'1. Ordersheet'!I498)","v":""},{"$f":"IF('1. Ordersheet'!J498=\"\",\"\",'1. Ordersheet'!J498)","v":""},{"$f":"IF('1. Ordersheet'!K498=\"\",\"\",'1. Ordersheet'!K498)","v":""},{"$f":"IF('1. Ordersheet'!L498=\"\",\"\",'1. Ordersheet'!L498)","v":""},{"$f":"IF('1. Ordersheet'!M498=\"\",\"\",'1. Ordersheet'!M498)","v":""},{"$f":"IF('1. Ordersheet'!N498=\"\",\"\",'1. Ordersheet'!N498)","v":""},{"$f":"IF('1. Ordersheet'!O498=\"\",\"\",'1. Ordersheet'!O498)","v":{"$error":"#N/A"}},{"$f":"IF('1. Ordersheet'!P498=\"\",\"\",'1. Ordersheet'!P498)","v":{"$error":"#N/A"}},{"$f":"IF('1. Ordersheet'!Q498=\"\",\"\",'1. Ordersheet'!Q498)","v":""},{"$f":"IF('1. Ordersheet'!R498=\"\",\"\",'1. Ordersheet'!R498)","v":""},{"$f":"IF('1. Ordersheet'!S498=\"\",\"\",'1. Ordersheet'!S498)","v":""},{"$f":"IF('1. Ordersheet'!V498=\"\",\"\",'1. Ordersheet'!V498)","v":""},{"$f":"IF('1. Ordersheet'!W498=\"\",\"\",'1. Ordersheet'!W498)","v":""},{"$f":"IF('1. Ordersheet'!X498=\"\",\"\",'1. Ordersheet'!X498)","v":""},{"$f":"IF('1. Ordersheet'!Y498=\"\",\"\",'1. Ordersheet'!Y498)","v":""},{"$f":"IF('1. Ordersheet'!Z498=\"\",\"\",'1. Ordersheet'!Z498)","v":""},{"$f":"IF('1. Ordersheet'!AA498=\"\",\"\",'1. Ordersheet'!AA498)","v":""},null,{"$f":"IF('1. Ordersheet'!AS498=\"\",\"\",'1. Ordersheet'!AS498)","v":""},{"$f":"IF('1. Ordersheet'!AT498=\"\",\"\",'1. Ordersheet'!AT498)","v":""},null,null,null,null,null,null,null,{"$f":"IF('1. Ordersheet'!AX498=\"\",\"\",'1. Ordersheet'!AX498)","v":""},{"$f":"IF('1. Ordersheet'!AY498=\"\",\"\",'1. Ordersheet'!AY498)","v":""},{"$f":"IF('1. Ordersheet'!AZ498=\"\",\"\",'1. Ordersheet'!AZ498)","v":""},{"$f":"IF('1. Ordersheet'!BA498=\"\",\"\",'1. Ordersheet'!BA498)","v":""},{"$f":"IF('1. Ordersheet'!BC498=\"\",\"\",'1. Ordersheet'!BC498)","v":""},{"$f":"IF('1. Ordersheet'!BD498=\"\",\"\",'1. Ordersheet'!BD498)","v":""},{"$f":"IF('1. Ordersheet'!BE498=\"\",\"\",'1. Ordersheet'!BE498)","v":""},{"$f":"IF('1. Ordersheet'!BF498=\"\",\"\",'1. Ordersheet'!BF498)","v":""},{"$f":"IF('1. Ordersheet'!BG498=\"\",\"\",'1. Ordersheet'!BG498)","v":"ZWO"},{"$f":"IF('1. Ordersheet'!BH498=\"\",\"\",'1. Ordersheet'!BH498)","v":""},{"$f":"IF('1. Ordersheet'!BI498=\"\",\"\",'1. Ordersheet'!BI498)","v":""},{"$f":"IF('1. Ordersheet'!BJ498=\"\",\"\",'1. Ordersheet'!BJ498)","v":""},{"$f":"IF('1. Ordersheet'!BK498=\"\",\"\",'1. Ordersheet'!BK498)","v":""},{"$f":"IF('1. Ordersheet'!BL498=\"\",\"\",'1. Ordersheet'!BL498)","v":""}]
[{"$f":"IF('1. Ordersheet'!F499=\"\",\"\",'1. Ordersheet'!F499)","v":""},{"$f":"IF('1. Ordersheet'!G499=\"\",\"\",'1. Ordersheet'!G499)","v":""},{"$f":"IF('1. Ordersheet'!H499=\"\",\"\",'1. Ordersheet'!H499)","v":""},{"$f":"IF('1. Ordersheet'!I499=\"\",\"\",'1. Ordersheet'!I499)","v":""},{"$f":"IF('1. Ordersheet'!J499=\"\",\"\",'1. Ordersheet'!J499)","v":""},{"$f":"IF('1. Ordersheet'!K499=\"\",\"\",'1. Ordersheet'!K499)","v":""},{"$f":"IF('1. Ordersheet'!L499=\"\",\"\",'1. Ordersheet'!L499)","v":""},{"$f":"IF('1. Ordersheet'!M499=\"\",\"\",'1. Ordersheet'!M499)","v":""},{"$f":"IF('1. Ordersheet'!N499=\"\",\"\",'1. Ordersheet'!N499)","v":""},{"$f":"IF('1. Ordersheet'!O499=\"\",\"\",'1. Ordersheet'!O499)","v":{"$error":"#N/A"}},{"$f":"IF('1. Ordersheet'!P499=\"\",\"\",'1. Ordersheet'!P499)","v":{"$error":"#N/A"}},{"$f":"IF('1. Ordersheet'!Q499=\"\",\"\",'1. Ordersheet'!Q499)","v":""},{"$f":"IF('1. Ordersheet'!R499=\"\",\"\",'1. Ordersheet'!R499)","v":""},{"$f":"IF('1. Ordersheet'!S499=\"\",\"\",'1. Ordersheet'!S499)","v":""},{"$f":"IF('1. Ordersheet'!V499=\"\",\"\",'1. Ordersheet'!V499)","v":""},{"$f":"IF('1. Ordersheet'!W499=\"\",\"\",'1. Ordersheet'!W499)","v":""},{"$f":"IF('1. Ordersheet'!X499=\"\",\"\",'1. Ordersheet'!X499)","v":""},{"$f":"IF('1. Ordersheet'!Y499=\"\",\"\",'1. Ordersheet'!Y499)","v":""},{"$f":"IF('1. Ordersheet'!Z499=\"\",\"\",'1. Ordersheet'!Z499)","v":""},{"$f":"IF('1. Ordersheet'!AA499=\"\",\"\",'1. Ordersheet'!AA499)","v":""},null,{"$f":"IF('1. Ordersheet'!AS499=\"\",\"\",'1. Ordersheet'!AS499)","v":""},{"$f":"IF('1. Ordersheet'!AT499=\"\",\"\",'1. Ordersheet'!AT499)","v":""},null,null,null,null,null,null,null,{"$f":"IF('1. Ordersheet'!AX499=\"\",\"\",'1. Ordersheet'!AX499)","v":""},{"$f":"IF('1. Ordersheet'!AY499=\"\",\"\",'1. Ordersheet'!AY499)","v":""},{"$f":"IF('1. Ordersheet'!AZ499=\"\",\"\",'1. Ordersheet'!AZ499)","v":""},{"$f":"IF('1. Ordersheet'!BA499=\"\",\"\",'1. Ordersheet'!BA499)","v":""},{"$f":"IF('1. Ordersheet'!BC499=\"\",\"\",'1. Ordersheet'!BC499)","v":""},{"$f":"IF('1. Ordersheet'!BD499=\"\",\"\",'1. Ordersheet'!BD499)","v":""},{"$f":"IF('1. Ordersheet'!BE499=\"\",\"\",'1. Ordersheet'!BE499)","v":""},{"$f":"IF('1. Ordersheet'!BF499=\"\",\"\",'1. Ordersheet'!BF499)","v":""},{"$f":"IF('1. Ordersheet'!BG499=\"\",\"\",'1. Ordersheet'!BG499)","v":"ZWO"},{"$f":"IF('1. Ordersheet'!BH499=\"\",\"\",'1. Ordersheet'!BH499)","v":""},{"$f":"IF('1. Ordersheet'!BI499=\"\",\"\",'1. Ordersheet'!BI499)","v":""},{"$f":"IF('1. Ordersheet'!BJ499=\"\",\"\",'1. Ordersheet'!BJ499)","v":""},{"$f":"IF('1. Ordersheet'!BK499=\"\",\"\",'1. Ordersheet'!BK499)","v":""},{"$f":"IF('1. Ordersheet'!BL499=\"\",\"\",'1. Ordersheet'!BL499)","v":""}]
[{"$f":"IF('1. Ordersheet'!F500=\"\",\"\",'1. Ordersheet'!F500)","v":""},{"$f":"IF('1. Ordersheet'!G500=\"\",\"\",'1. Ordersheet'!G500)","v":""},{"$f":"IF('1. Ordersheet'!H500=\"\",\"\",'1. Ordersheet'!H500)","v":""},{"$f":"IF('1. Ordersheet'!I500=\"\",\"\",'1. Ordersheet'!I500)","v":""},{"$f":"IF('1. Ordersheet'!J500=\"\",\"\",'1. Ordersheet'!J500)","v":""},{"$f":"IF('1. Ordersheet'!K500=\"\",\"\",'1. Ordersheet'!K500)","v":""},{"$f":"IF('1. Ordersheet'!L500=\"\",\"\",'1. Ordersheet'!L500)","v":""},{"$f":"IF('1. Ordersheet'!M500=\"\",\"\",'1. Ordersheet'!M500)","v":""},{"$f":"IF('1. Ordersheet'!N500=\"\",\"\",'1. Ordersheet'!N500)","v":""},{"$f":"IF('1. Ordersheet'!O500=\"\",\"\",'1. Ordersheet'!O500)","v":{"$error":"#N/A"}},{"$f":"IF('1. Ordersheet'!P500=\"\",\"\",'1. Ordersheet'!P500)","v":{"$error":"#N/A"}},{"$f":"IF('1. Ordersheet'!Q500=\"\",\"\",'1. Ordersheet'!Q500)","v":""},{"$f":"IF('1. Ordersheet'!R500=\"\",\"\",'1. Ordersheet'!R500)","v":""},{"$f":"IF('1. Ordersheet'!S500=\"\",\"\",'1. Ordersheet'!S500)","v":""},{"$f":"IF('1. Ordersheet'!V500=\"\",\"\",'1. Ordersheet'!V500)","v":""},{"$f":"IF('1. Ordersheet'!W500=\"\",\"\",'1. Ordersheet'!W500)","v":""},{"$f":"IF('1. Ordersheet'!X500=\"\",\"\",'1. Ordersheet'!X500)","v":""},{"$f":"IF('1. Ordersheet'!Y500=\"\",\"\",'1. Ordersheet'!Y500)","v":""},{"$f":"IF('1. Ordersheet'!Z500=\"\",\"\",'1. Ordersheet'!Z500)","v":""},{"$f":"IF('1. Ordersheet'!AA500=\"\",\"\",'1. Ordersheet'!AA500)","v":""},null,{"$f":"IF('1. Ordersheet'!AS500=\"\",\"\",'1. Ordersheet'!AS500)","v":""},{"$f":"IF('1. Ordersheet'!AT500=\"\",\"\",'1. Ordersheet'!AT500)","v":""},null,null,null,null,null,null,null,{"$f":"IF('1. Ordersheet'!AX500=\"\",\"\",'1. Ordersheet'!AX500)","v":""},{"$f":"IF('1. Ordersheet'!AY500=\"\",\"\",'1. Ordersheet'!AY500)","v":""},{"$f":"IF('1. Ordersheet'!AZ500=\"\",\"\",'1. Ordersheet'!AZ500)","v":""},{"$f":"IF('1. Ordersheet'!BA500=\"\",\"\",'1. Ordersheet'!BA500)","v":""},{"$f":"IF('1. Ordersheet'!BC500=\"\",\"\",'1. Ordersheet'!BC500)","v":""},{"$f":"IF('1. Ordersheet'!BD500=\"\",\"\",'1. Ordersheet'!BD500)","v":""},{"$f":"IF('1. Ordersheet'!BE500=\"\",\"\",'1. Ordersheet'!BE500)","v":""},{"$f":"IF('1. Ordersheet'!BF500=\"\",\"\",'1. Ordersheet'!BF500)","v":""},{"$f":"IF('1. Ordersheet'!BG500=\"\",\"\",'1. Ordersheet'!BG500)","v":"ZWO"},{"$f":"IF('1. Ordersheet'!BH500=\"\",\"\",'1. Ordersheet'!BH500)","v":""},{"$f":"IF('1. Ordersheet'!BI500=\"\",\"\",'1. Ordersheet'!BI500)","v":""},{"$f":"IF('1. Ordersheet'!BJ500=\"\",\"\",'1. Ordersheet'!BJ500)","v":""},{"$f":"IF('1. Ordersheet'!BK500=\"\",\"\",'1. Ordersheet'!BK500)","v":""},{"$f":"IF('1. Ordersheet'!BL500=\"\",\"\",'1. Ordersheet'!BL500)","v":""}]
[{"$f":"IF('1. Ordersheet'!F501=\"\",\"\",'1. Ordersheet'!F501)","v":""},{"$f":"IF('1. Ordersheet'!G501=\"\",\"\",'1. Ordersheet'!G501)","v":""},{"$f":"IF('1. Ordersheet'!H501=\"\",\"\",'1. Ordersheet'!H501)","v":""},{"$f":"IF('1. Ordersheet'!I501=\"\",\"\",'1. Ordersheet'!I501)","v":""},{"$f":"IF('1. Ordersheet'!J501=\"\",\"\",'1. Ordersheet'!J501)","v":""},{"$f":"IF('1. Ordersheet'!K501=\"\",\"\",'1. Ordersheet'!K501)","v":""},{"$f":"IF('1. Ordersheet'!L501=\"\",\"\",'1. Ordersheet'!L501)","v":""},{"$f":"IF('1. Ordersheet'!M501=\"\",\"\",'1. Ordersheet'!M501)","v":""},{"$f":"IF('1. Ordersheet'!N501=\"\",\"\",'1. Ordersheet'!N501)","v":""},{"$f":"IF('1. Ordersheet'!O501=\"\",\"\",'1. Ordersheet'!O501)","v":{"$error":"#N/A"}},{"$f":"IF('1. Ordersheet'!P501=\"\",\"\",'1. Ordersheet'!P501)","v":{"$error":"#N/A"}},{"$f":"IF('1. Ordersheet'!Q501=\"\",\"\",'1. Ordersheet'!Q501)","v":""},{"$f":"IF('1. Ordersheet'!R501=\"\",\"\",'1. Ordersheet'!R501)","v":""},{"$f":"IF('1. Ordersheet'!S501=\"\",\"\",'1. Ordersheet'!S501)","v":""},{"$f":"IF('1. Ordersheet'!V501=\"\",\"\",'1. Ordersheet'!V501)","v":""},{"$f":"IF('1. Ordersheet'!W501=\"\",\"\",'1. Ordersheet'!W501)","v":""},{"$f":"IF('1. Ordersheet'!X501=\"\",\"\",'1. Ordersheet'!X501)","v":""},{"$f":"IF('1. Ordersheet'!Y501=\"\",\"\",'1. Ordersheet'!Y501)","v":""},{"$f":"IF('1. Ordersheet'!Z501=\"\",\"\",'1. Ordersheet'!Z501)","v":""},{"$f":"IF('1. Ordersheet'!AA501=\"\",\"\",'1. Ordersheet'!AA501)","v":""},null,{"$f":"IF('1. Ordersheet'!AS501=\"\",\"\",'1. Ordersheet'!AS501)","v":""},{"$f":"IF('1. Ordersheet'!AT501=\"\",\"\",'1. Ordersheet'!AT501)","v":""},null,null,null,null,null,null,null,{"$f":"IF('1. Ordersheet'!AX501=\"\",\"\",'1. Ordersheet'!AX501)","v":""},{"$f":"IF('1. Ordersheet'!AY501=\"\",\"\",'1. Ordersheet'!AY501)","v":""},{"$f":"IF('1. Ordersheet'!AZ501=\"\",\"\",'1. Ordersheet'!AZ501)","v":""},{"$f":"IF('1. Ordersheet'!BA501=\"\",\"\",'1. Ordersheet'!BA501)","v":""},{"$f":"IF('1. Ordersheet'!BC501=\"\",\"\",'1. Ordersheet'!BC501)","v":""},{"$f":"IF('1. Ordersheet'!BD501=\"\",\"\",'1. Ordersheet'!BD501)","v":""},{"$f":"IF('1. Ordersheet'!BE501=\"\",\"\",'1. Ordersheet'!BE501)","v":""},{"$f":"IF('1. Ordersheet'!BF501=\"\",\"\",'1. Ordersheet'!BF501)","v":""},{"$f":"IF('1. Ordersheet'!BG501=\"\",\"\",'1. Ordersheet'!BG501)","v":"ZWO"},{"$f":"IF('1. Ordersheet'!BH501=\"\",\"\",'1. Ordersheet'!BH501)","v":""},{"$f":"IF('1. Ordersheet'!BI501=\"\",\"\",'1. Ordersheet'!BI501)","v":""},{"$f":"IF('1. Ordersheet'!BJ501=\"\",\"\",'1. Ordersheet'!BJ501)","v":""},{"$f":"IF('1. Ordersheet'!BK501=\"\",\"\",'1. Ordersheet'!BK501)","v":""},{"$f":"IF('1. Ordersheet'!BL501=\"\",\"\",'1. Ordersheet'!BL501)","v":""}]
[{"$f":"IF('1. Ordersheet'!F502=\"\",\"\",'1. Ordersheet'!F502)","v":""},{"$f":"IF('1. Ordersheet'!G502=\"\",\"\",'1. Ordersheet'!G502)","v":""},{"$f":"IF('1. Ordersheet'!H502=\"\",\"\",'1. Ordersheet'!H502)","v":""},{"$f":"IF('1. Ordersheet'!I502=\"\",\"\",'1. Ordersheet'!I502)","v":""},{"$f":"IF('1. Ordersheet'!J502=\"\",\"\",'1. Ordersheet'!J502)","v":""},{"$f":"IF('1. Ordersheet'!K502=\"\",\"\",'1. Ordersheet'!K502)","v":""},{"$f":"IF('1. Ordersheet'!L502=\"\",\"\",'1. Ordersheet'!L502)","v":""},{"$f":"IF('1. Ordersheet'!M502=\"\",\"\",'1. Ordersheet'!M502)","v":""},{"$f":"IF('1. Ordersheet'!N502=\"\",\"\",'1. Ordersheet'!N502)","v":""},{"$f":"IF('1. Ordersheet'!O502=\"\",\"\",'1. Ordersheet'!O502)","v":{"$error":"#N/A"}},{"$f":"IF('1. Ordersheet'!P502=\"\",\"\",'1. Ordersheet'!P502)","v":{"$error":"#N/A"}},{"$f":"IF('1. Ordersheet'!Q502=\"\",\"\",'1. Ordersheet'!Q502)","v":""},{"$f":"IF('1. Ordersheet'!R502=\"\",\"\",'1. Ordersheet'!R502)","v":""},{"$f":"IF('1. Ordersheet'!S502=\"\",\"\",'1. Ordersheet'!S502)","v":""},{"$f":"IF('1. Ordersheet'!V502=\"\",\"\",'1. Ordersheet'!V502)","v":""},{"$f":"IF('1. Ordersheet'!W502=\"\",\"\",'1. Ordersheet'!W502)","v":""},{"$f":"IF('1. Ordersheet'!X502=\"\",\"\",'1. Ordersheet'!X502)","v":""},{"$f":"IF('1. Ordersheet'!Y502=\"\",\"\",'1. Ordersheet'!Y502)","v":""},{"$f":"IF('1. Ordersheet'!Z502=\"\",\"\",'1. Ordersheet'!Z502)","v":""},{"$f":"IF('1. Ordersheet'!AA502=\"\",\"\",'1. Ordersheet'!AA502)","v":""},null,{"$f":"IF('1. Ordersheet'!AS502=\"\",\"\",'1. Ordersheet'!AS502)","v":""},{"$f":"IF('1. Ordersheet'!AT502=\"\",\"\",'1. Ordersheet'!AT502)","v":""},null,null,null,null,null,null,null,{"$f":"IF('1. Ordersheet'!AX502=\"\",\"\",'1. Ordersheet'!AX502)","v":""},{"$f":"IF('1. Ordersheet'!AY502=\"\",\"\",'1. Ordersheet'!AY502)","v":""},{"$f":"IF('1. Ordersheet'!AZ502=\"\",\"\",'1. Ordersheet'!AZ502)","v":""},{"$f":"IF('1. Ordersheet'!BA502=\"\",\"\",'1. Ordersheet'!BA502)","v":""},{"$f":"IF('1. Ordersheet'!BC502=\"\",\"\",'1. Ordersheet'!BC502)","v":""},{"$f":"IF('1. Ordersheet'!BD502=\"\",\"\",'1. Ordersheet'!BD502)","v":""},{"$f":"IF('1. Ordersheet'!BE502=\"\",\"\",'1. Ordersheet'!BE502)","v":""},{"$f":"IF('1. Ordersheet'!BF502=\"\",\"\",'1. Ordersheet'!BF502)","v":""},{"$f":"IF('1. Ordersheet'!BG502=\"\",\"\",'1. Ordersheet'!BG502)","v":"ZWO"},{"$f":"IF('1. Ordersheet'!BH502=\"\",\"\",'1. Ordersheet'!BH502)","v":""},{"$f":"IF('1. Ordersheet'!BI502=\"\",\"\",'1. Ordersheet'!BI502)","v":""},{"$f":"IF('1. Ordersheet'!BJ502=\"\",\"\",'1. Ordersheet'!BJ502)","v":""},{"$f":"IF('1. Ordersheet'!BK502=\"\",\"\",'1. Ordersheet'!BK502)","v":""},{"$f":"IF('1. Ordersheet'!BL502=\"\",\"\",'1. Ordersheet'!BL502)","v":""}]
[{"$f":"IF('1. Ordersheet'!F503=\"\",\"\",'1. Ordersheet'!F503)","v":""},{"$f":"IF('1. Ordersheet'!G503=\"\",\"\",'1. Ordersheet'!G503)","v":""},{"$f":"IF('1. Ordersheet'!H503=\"\",\"\",'1. Ordersheet'!H503)","v":""},{"$f":"IF('1. Ordersheet'!I503=\"\",\"\",'1. Ordersheet'!I503)","v":""},{"$f":"IF('1. Ordersheet'!J503=\"\",\"\",'1. Ordersheet'!J503)","v":""},{"$f":"IF('1. Ordersheet'!K503=\"\",\"\",'1. Ordersheet'!K503)","v":""},{"$f":"IF('1. Ordersheet'!L503=\"\",\"\",'1. Ordersheet'!L503)","v":""},{"$f":"IF('1. Ordersheet'!M503=\"\",\"\",'1. Ordersheet'!M503)","v":""},{"$f":"IF('1. Ordersheet'!N503=\"\",\"\",'1. Ordersheet'!N503)","v":""},{"$f":"IF('1. Ordersheet'!O503=\"\",\"\",'1. Ordersheet'!O503)","v":{"$error":"#N/A"}},{"$f":"IF('1. Ordersheet'!P503=\"\",\"\",'1. Ordersheet'!P503)","v":{"$error":"#N/A"}},{"$f":"IF('1. Ordersheet'!Q503=\"\",\"\",'1. Ordersheet'!Q503)","v":""},{"$f":"IF('1. Ordersheet'!R503=\"\",\"\",'1. Ordersheet'!R503)","v":""},{"$f":"IF('1. Ordersheet'!S503=\"\",\"\",'1. Ordersheet'!S503)","v":""},{"$f":"IF('1. Ordersheet'!V503=\"\",\"\",'1. Ordersheet'!V503)","v":""},{"$f":"IF('1. Ordersheet'!W503=\"\",\"\",'1. Ordersheet'!W503)","v":""},{"$f":"IF('1. Ordersheet'!X503=\"\",\"\",'1. Ordersheet'!X503)","v":""},{"$f":"IF('1. Ordersheet'!Y503=\"\",\"\",'1. Ordersheet'!Y503)","v":""},{"$f":"IF('1. Ordersheet'!Z503=\"\",\"\",'1. Ordersheet'!Z503)","v":""},{"$f":"IF('1. Ordersheet'!AA503=\"\",\"\",'1. Ordersheet'!AA503)","v":""},null,{"$f":"IF('1. Ordersheet'!AS503=\"\",\"\",'1. Ordersheet'!AS503)","v":""},{"$f":"IF('1. Ordersheet'!AT503=\"\",\"\",'1. Ordersheet'!AT503)","v":""},null,null,null,null,null,null,null,{"$f":"IF('1. Ordersheet'!AX503=\"\",\"\",'1. Ordersheet'!AX503)","v":""},{"$f":"IF('1. Ordersheet'!AY503=\"\",\"\",'1. Ordersheet'!AY503)","v":""},{"$f":"IF('1. Ordersheet'!AZ503=\"\",\"\",'1. Ordersheet'!AZ503)","v":""},{"$f":"IF('1. Ordersheet'!BA503=\"\",\"\",'1. Ordersheet'!BA503)","v":""},{"$f":"IF('1. Ordersheet'!BC503=\"\",\"\",'1. Ordersheet'!BC503)","v":""},{"$f":"IF('1. Ordersheet'!BD503=\"\",\"\",'1. Ordersheet'!BD503)","v":""},{"$f":"IF('1. Ordersheet'!BE503=\"\",\"\",'1. Ordersheet'!BE503)","v":""},{"$f":"IF('1. Ordersheet'!BF503=\"\",\"\",'1. Ordersheet'!BF503)","v":""},{"$f":"IF('1. Ordersheet'!BG503=\"\",\"\",'1. Ordersheet'!BG503)","v":"ZWO"},{"$f":"IF('1. Ordersheet'!BH503=\"\",\"\",'1. Ordersheet'!BH503)","v":""},{"$f":"IF('1. Ordersheet'!BI503=\"\",\"\",'1. Ordersheet'!BI503)","v":""},{"$f":"IF('1. Ordersheet'!BJ503=\"\",\"\",'1. Ordersheet'!BJ503)","v":""},{"$f":"IF('1. Ordersheet'!BK503=\"\",\"\",'1. Ordersheet'!BK503)","v":""},{"$f":"IF('1. Ordersheet'!BL503=\"\",\"\",'1. Ordersheet'!BL503)","v":""}]
[{"$f":"IF('1. Ordersheet'!F504=\"\",\"\",'1. Ordersheet'!F504)","v":""},{"$f":"IF('1. Ordersheet'!G504=\"\",\"\",'1. Ordersheet'!G504)","v":""},{"$f":"IF('1. Ordersheet'!H504=\"\",\"\",'1. Ordersheet'!H504)","v":""},{"$f":"IF('1. Ordersheet'!I504=\"\",\"\",'1. Ordersheet'!I504)","v":""},{"$f":"IF('1. Ordersheet'!J504=\"\",\"\",'1. Ordersheet'!J504)","v":""},{"$f":"IF('1. Ordersheet'!K504=\"\",\"\",'1. Ordersheet'!K504)","v":""},{"$f":"IF('1. Ordersheet'!L504=\"\",\"\",'1. Ordersheet'!L504)","v":""},{"$f":"IF('1. Ordersheet'!M504=\"\",\"\",'1. Ordersheet'!M504)","v":""},{"$f":"IF('1. Ordersheet'!N504=\"\",\"\",'1. Ordersheet'!N504)","v":""},{"$f":"IF('1. Ordersheet'!O504=\"\",\"\",'1. Ordersheet'!O504)","v":{"$error":"#N/A"}},{"$f":"IF('1. Ordersheet'!P504=\"\",\"\",'1. Ordersheet'!P504)","v":{"$error":"#N/A"}},{"$f":"IF('1. Ordersheet'!Q504=\"\",\"\",'1. Ordersheet'!Q504)","v":""},{"$f":"IF('1. Ordersheet'!R504=\"\",\"\",'1. Ordersheet'!R504)","v":""},{"$f":"IF('1. Ordersheet'!S504=\"\",\"\",'1. Ordersheet'!S504)","v":""},{"$f":"IF('1. Ordersheet'!V504=\"\",\"\",'1. Ordersheet'!V504)","v":""},{"$f":"IF('1. Ordersheet'!W504=\"\",\"\",'1. Ordersheet'!W504)","v":""},{"$f":"IF('1. Ordersheet'!X504=\"\",\"\",'1. Ordersheet'!X504)","v":""},{"$f":"IF('1. Ordersheet'!Y504=\"\",\"\",'1. Ordersheet'!Y504)","v":""},{"$f":"IF('1. Ordersheet'!Z504=\"\",\"\",'1. Ordersheet'!Z504)","v":""},{"$f":"IF('1. Ordersheet'!AA504=\"\",\"\",'1. Ordersheet'!AA504)","v":""},null,{"$f":"IF('1. Ordersheet'!AS504=\"\",\"\",'1. Ordersheet'!AS504)","v":""},{"$f":"IF('1. Ordersheet'!AT504=\"\",\"\",'1. Ordersheet'!AT504)","v":""},null,null,null,null,null,null,null,{"$f":"IF('1. Ordersheet'!AX504=\"\",\"\",'1. Ordersheet'!AX504)","v":""},{"$f":"IF('1. Ordersheet'!AY504=\"\",\"\",'1. Ordersheet'!AY504)","v":""},{"$f":"IF('1. Ordersheet'!AZ504=\"\",\"\",'1. Ordersheet'!AZ504)","v":""},{"$f":"IF('1. Ordersheet'!BA504=\"\",\"\",'1. Ordersheet'!BA504)","v":""},{"$f":"IF('1. Ordersheet'!BC504=\"\",\"\",'1. Ordersheet'!BC504)","v":""},{"$f":"IF('1. Ordersheet'!BD504=\"\",\"\",'1. Ordersheet'!BD504)","v":""},{"$f":"IF('1. Ordersheet'!BE504=\"\",\"\",'1. Ordersheet'!BE504)","v":""},{"$f":"IF('1. Ordersheet'!BF504=\"\",\"\",'1. Ordersheet'!BF504)","v":""},{"$f":"IF('1. Ordersheet'!BG504=\"\",\"\",'1. Ordersheet'!BG504)","v":"ZWO"},{"$f":"IF('1. Ordersheet'!BH504=\"\",\"\",'1. Ordersheet'!BH504)","v":""},{"$f":"IF('1. Ordersheet'!BI504=\"\",\"\",'1. Ordersheet'!BI504)","v":""},{"$f":"IF('1. Ordersheet'!BJ504=\"\",\"\",'1. Ordersheet'!BJ504)","v":""},{"$f":"IF('1. Ordersheet'!BK504=\"\",\"\",'1. Ordersheet'!BK504)","v":""},{"$f":"IF('1. Ordersheet'!BL504=\"\",\"\",'1. Ordersheet'!BL504)","v":""}]
[{"$f":"IF('1. Ordersheet'!F505=\"\",\"\",'1. Ordersheet'!F505)","v":""},{"$f":"IF('1. Ordersheet'!G505=\"\",\"\",'1. Ordersheet'!G505)","v":""},{"$f":"IF('1. Ordersheet'!H505=\"\",\"\",'1. Ordersheet'!H505)","v":""},{"$f":"IF('1. Ordersheet'!I505=\"\",\"\",'1. Ordersheet'!I505)","v":""},{"$f":"IF('1. Ordersheet'!J505=\"\",\"\",'1. Ordersheet'!J505)","v":""},{"$f":"IF('1. Ordersheet'!K505=\"\",\"\",'1. Ordersheet'!K505)","v":""},{"$f":"IF('1. Ordersheet'!L505=\"\",\"\",'1. Ordersheet'!L505)","v":""},{"$f":"IF('1. Ordersheet'!M505=\"\",\"\",'1. Ordersheet'!M505)","v":""},{"$f":"IF('1. Ordersheet'!N505=\"\",\"\",'1. Ordersheet'!N505)","v":""},{"$f":"IF('1. Ordersheet'!O505=\"\",\"\",'1. Ordersheet'!O505)","v":{"$error":"#N/A"}},{"$f":"IF('1. Ordersheet'!P505=\"\",\"\",'1. Ordersheet'!P505)","v":{"$error":"#N/A"}},{"$f":"IF('1. Ordersheet'!Q505=\"\",\"\",'1. Ordersheet'!Q505)","v":""},{"$f":"IF('1. Ordersheet'!R505=\"\",\"\",'1. Ordersheet'!R505)","v":""},{"$f":"IF('1. Ordersheet'!S505=\"\",\"\",'1. Ordersheet'!S505)","v":""},{"$f":"IF('1. Ordersheet'!V505=\"\",\"\",'1. Ordersheet'!V505)","v":""},{"$f":"IF('1. Ordersheet'!W505=\"\",\"\",'1. Ordersheet'!W505)","v":""},{"$f":"IF('1. Ordersheet'!X505=\"\",\"\",'1. Ordersheet'!X505)","v":""},{"$f":"IF('1. Ordersheet'!Y505=\"\",\"\",'1. Ordersheet'!Y505)","v":""},{"$f":"IF('1. Ordersheet'!Z505=\"\",\"\",'1. Ordersheet'!Z505)","v":""},{"$f":"IF('1. Ordersheet'!AA505=\"\",\"\",'1. Ordersheet'!AA505)","v":""},null,{"$f":"IF('1. Ordersheet'!AS505=\"\",\"\",'1. Ordersheet'!AS505)","v":""},{"$f":"IF('1. Ordersheet'!AT505=\"\",\"\",'1. Ordersheet'!AT505)","v":""},null,null,null,null,null,null,null,{"$f":"IF('1. Ordersheet'!AX505=\"\",\"\",'1. Ordersheet'!AX505)","v":""},{"$f":"IF('1. Ordersheet'!AY505=\"\",\"\",'1. Ordersheet'!AY505)","v":""},{"$f":"IF('1. Ordersheet'!AZ505=\"\",\"\",'1. Ordersheet'!AZ505)","v":""},{"$f":"IF('1. Ordersheet'!BA505=\"\",\"\",'1. Ordersheet'!BA505)","v":""},{"$f":"IF('1. Ordersheet'!BC505=\"\",\"\",'1. Ordersheet'!BC505)","v":""},{"$f":"IF('1. Ordersheet'!BD505=\"\",\"\",'1. Ordersheet'!BD505)","v":""},{"$f":"IF('1. Ordersheet'!BE505=\"\",\"\",'1. Ordersheet'!BE505)","v":""},{"$f":"IF('1. Ordersheet'!BF505=\"\",\"\",'1. Ordersheet'!BF505)","v":""},{"$f":"IF('1. Ordersheet'!BG505=\"\",\"\",'1. Ordersheet'!BG505)","v":"ZWO"},{"$f":"IF('1. Ordersheet'!BH505=\"\",\"\",'1. Ordersheet'!BH505)","v":""},{"$f":"IF('1. Ordersheet'!BI505=\"\",\"\",'1. Ordersheet'!BI505)","v":""},{"$f":"IF('1. Ordersheet'!BJ505=\"\",\"\",'1. Ordersheet'!BJ505)","v":""},{"$f":"IF('1. Ordersheet'!BK505=\"\",\"\",'1. Ordersheet'!BK505)","v":""},{"$f":"IF('1. Ordersheet'!BL505=\"\",\"\",'1. Ordersheet'!BL505)","v":""}]
[{"$f":"IF('1. Ordersheet'!F506=\"\",\"\",'1. Ordersheet'!F506)","v":""},{"$f":"IF('1. Ordersheet'!G506=\"\",\"\",'1. Ordersheet'!G506)","v":""},{"$f":"IF('1. Ordersheet'!H506=\"\",\"\",'1. Ordersheet'!H506)","v":""},{"$f":"IF('1. Ordersheet'!I506=\"\",\"\",'1. Ordersheet'!I506)","v":""},{"$f":"IF('1. Ordersheet'!J506=\"\",\"\",'1. Ordersheet'!J506)","v":""},{"$f":"IF('1. Ordersheet'!K506=\"\",\"\",'1. Ordersheet'!K506)","v":""},{"$f":"IF('1. Ordersheet'!L506=\"\",\"\",'1. Ordersheet'!L506)","v":""},{"$f":"IF('1. Ordersheet'!M506=\"\",\"\",'1. Ordersheet'!M506)","v":""},{"$f":"IF('1. Ordersheet'!N506=\"\",\"\",'1. Ordersheet'!N506)","v":""},{"$f":"IF('1. Ordersheet'!O506=\"\",\"\",'1. Ordersheet'!O506)","v":{"$error":"#N/A"}},{"$f":"IF('1. Ordersheet'!P506=\"\",\"\",'1. Ordersheet'!P506)","v":{"$error":"#N/A"}},{"$f":"IF('1. Ordersheet'!Q506=\"\",\"\",'1. Ordersheet'!Q506)","v":""},{"$f":"IF('1. Ordersheet'!R506=\"\",\"\",'1. Ordersheet'!R506)","v":""},{"$f":"IF('1. Ordersheet'!S506=\"\",\"\",'1. Ordersheet'!S506)","v":""},{"$f":"IF('1. Ordersheet'!V506=\"\",\"\",'1. Ordersheet'!V506)","v":""},{"$f":"IF('1. Ordersheet'!W506=\"\",\"\",'1. Ordersheet'!W506)","v":""},{"$f":"IF('1. Ordersheet'!X506=\"\",\"\",'1. Ordersheet'!X506)","v":""},{"$f":"IF('1. Ordersheet'!Y506=\"\",\"\",'1. Ordersheet'!Y506)","v":""},{"$f":"IF('1. Ordersheet'!Z506=\"\",\"\",'1. Ordersheet'!Z506)","v":""},{"$f":"IF('1. Ordersheet'!AA506=\"\",\"\",'1. Ordersheet'!AA506)","v":""},null,{"$f":"IF('1. Ordersheet'!AS506=\"\",\"\",'1. Ordersheet'!AS506)","v":""},{"$f":"IF('1. Ordersheet'!AT506=\"\",\"\",'1. Ordersheet'!AT506)","v":""},null,null,null,null,null,null,null,{"$f":"IF('1. Ordersheet'!AX506=\"\",\"\",'1. Ordersheet'!AX506)","v":""},{"$f":"IF('1. Ordersheet'!AY506=\"\",\"\",'1. Ordersheet'!AY506)","v":""},{"$f":"IF('1. Ordersheet'!AZ506=\"\",\"\",'1. Ordersheet'!AZ506)","v":""},{"$f":"IF('1. Ordersheet'!BA506=\"\",\"\",'1. Ordersheet'!BA506)","v":""},{"$f":"IF('1. Ordersheet'!BC506=\"\",\"\",'1. Ordersheet'!BC506)","v":""},{"$f":"IF('1. Ordersheet'!BD506=\"\",\"\",'1. Ordersheet'!BD506)","v":""},{"$f":"IF('1. Ordersheet'!BE506=\"\",\"\",'1. Ordersheet'!BE506)","v":""},{"$f":"IF('1. Ordersheet'!BF506=\"\",\"\",'1. Ordersheet'!BF506)","v":""},{"$f":"IF('1. Ordersheet'!BG506=\"\",\"\",'1. Ordersheet'!BG506)","v":"ZWO"},{"$f":"IF('1. Ordersheet'!BH506=\"\",\"\",'1. Ordersheet'!BH506)","v":""},{"$f":"IF('1. Ordersheet'!BI506=\"\",\"\",'1. Ordersheet'!BI506)","v":""},{"$f":"IF('1. Ordersheet'!BJ506=\"\",\"\",'1. Ordersheet'!BJ506)","v":""},{"$f":"IF('1. Ordersheet'!BK506=\"\",\"\",'1. Ordersheet'!BK506)","v":""},{"$f":"IF('1. Ordersheet'!BL506=\"\",\"\",'1. Ordersheet'!BL506)","v":""}]
[{"$f":"IF('1. Ordersheet'!F507=\"\",\"\",'1. Ordersheet'!F507)","v":""},{"$f":"IF('1. Ordersheet'!G507=\"\",\"\",'1. Ordersheet'!G507)","v":""},{"$f":"IF('1. Ordersheet'!H507=\"\",\"\",'1. Ordersheet'!H507)","v":""},{"$f":"IF('1. Ordersheet'!I507=\"\",\"\",'1. Ordersheet'!I507)","v":""},{"$f":"IF('1. Ordersheet'!J507=\"\",\"\",'1. Ordersheet'!J507)","v":""},{"$f":"IF('1. Ordersheet'!K507=\"\",\"\",'1. Ordersheet'!K507)","v":""},{"$f":"IF('1. Ordersheet'!L507=\"\",\"\",'1. Ordersheet'!L507)","v":""},{"$f":"IF('1. Ordersheet'!M507=\"\",\"\",'1. Ordersheet'!M507)","v":""},{"$f":"IF('1. Ordersheet'!N507=\"\",\"\",'1. Ordersheet'!N507)","v":""},{"$f":"IF('1. Ordersheet'!O507=\"\",\"\",'1. Ordersheet'!O507)","v":{"$error":"#N/A"}},{"$f":"IF('1. Ordersheet'!P507=\"\",\"\",'1. Ordersheet'!P507)","v":{"$error":"#N/A"}},{"$f":"IF('1. Ordersheet'!Q507=\"\",\"\",'1. Ordersheet'!Q507)","v":""},{"$f":"IF('1. Ordersheet'!R507=\"\",\"\",'1. Ordersheet'!R507)","v":""},{"$f":"IF('1. Ordersheet'!S507=\"\",\"\",'1. Ordersheet'!S507)","v":""},{"$f":"IF('1. Ordersheet'!V507=\"\",\"\",'1. Ordersheet'!V507)","v":""},{"$f":"IF('1. Ordersheet'!W507=\"\",\"\",'1. Ordersheet'!W507)","v":""},{"$f":"IF('1. Ordersheet'!X507=\"\",\"\",'1. Ordersheet'!X507)","v":""},{"$f":"IF('1. Ordersheet'!Y507=\"\",\"\",'1. Ordersheet'!Y507)","v":""},{"$f":"IF('1. Ordersheet'!Z507=\"\",\"\",'1. Ordersheet'!Z507)","v":""},{"$f":"IF('1. Ordersheet'!AA507=\"\",\"\",'1. Ordersheet'!AA507)","v":""},null,{"$f":"IF('1. Ordersheet'!AS507=\"\",\"\",'1. Ordersheet'!AS507)","v":""},{"$f":"IF('1. Ordersheet'!AT507=\"\",\"\",'1. Ordersheet'!AT507)","v":""},null,null,null,null,null,null,null,{"$f":"IF('1. Ordersheet'!AX507=\"\",\"\",'1. Ordersheet'!AX507)","v":""},{"$f":"IF('1. Ordersheet'!AY507=\"\",\"\",'1. Ordersheet'!AY507)","v":""},{"$f":"IF('1. Ordersheet'!AZ507=\"\",\"\",'1. Ordersheet'!AZ507)","v":""},{"$f":"IF('1. Ordersheet'!BA507=\"\",\"\",'1. Ordersheet'!BA507)","v":""},{"$f":"IF('1. Ordersheet'!BC507=\"\",\"\",'1. Ordersheet'!BC507)","v":""},{"$f":"IF('1. Ordersheet'!BD507=\"\",\"\",'1. Ordersheet'!BD507)","v":""},{"$f":"IF('1. Ordersheet'!BE507=\"\",\"\",'1. Ordersheet'!BE507)","v":""},{"$f":"IF('1. Ordersheet'!BF507=\"\",\"\",'1. Ordersheet'!BF507)","v":""},{"$f":"IF('1. Ordersheet'!BG507=\"\",\"\",'1. Ordersheet'!BG507)","v":"ZWO"},{"$f":"IF('1. Ordersheet'!BH507=\"\",\"\",'1. Ordersheet'!BH507)","v":""},{"$f":"IF('1. Ordersheet'!BI507=\"\",\"\",'1. Ordersheet'!BI507)","v":""},{"$f":"IF('1. Ordersheet'!BJ507=\"\",\"\",'1. Ordersheet'!BJ507)","v":""},{"$f":"IF('1. Ordersheet'!BK507=\"\",\"\",'1. Ordersheet'!BK507)","v":""},{"$f":"IF('1. Ordersheet'!BL507=\"\",\"\",'1. Ordersheet'!BL507)","v":""}]
[{"$f":"IF('1. Ordersheet'!F508=\"\",\"\",'1. Ordersheet'!F508)","v":""},{"$f":"IF('1. Ordersheet'!G508=\"\",\"\",'1. Ordersheet'!G508)","v":""},{"$f":"IF('1. Ordersheet'!H508=\"\",\"\",'1. Ordersheet'!H508)","v":""},{"$f":"IF('1. Ordersheet'!I508=\"\",\"\",'1. Ordersheet'!I508)","v":""},{"$f":"IF('1. Ordersheet'!J508=\"\",\"\",'1. Ordersheet'!J508)","v":""},{"$f":"IF('1. Ordersheet'!K508=\"\",\"\",'1. Ordersheet'!K508)","v":""},{"$f":"IF('1. Ordersheet'!L508=\"\",\"\",'1. Ordersheet'!L508)","v":""},{"$f":"IF('1. Ordersheet'!M508=\"\",\"\",'1. Ordersheet'!M508)","v":""},{"$f":"IF('1. Ordersheet'!N508=\"\",\"\",'1. Ordersheet'!N508)","v":""},{"$f":"IF('1. Ordersheet'!O508=\"\",\"\",'1. Ordersheet'!O508)","v":{"$error":"#N/A"}},{"$f":"IF('1. Ordersheet'!P508=\"\",\"\",'1. Ordersheet'!P508)","v":{"$error":"#N/A"}},{"$f":"IF('1. Ordersheet'!Q508=\"\",\"\",'1. Ordersheet'!Q508)","v":""},{"$f":"IF('1. Ordersheet'!R508=\"\",\"\",'1. Ordersheet'!R508)","v":""},{"$f":"IF('1. Ordersheet'!S508=\"\",\"\",'1. Ordersheet'!S508)","v":""},{"$f":"IF('1. Ordersheet'!V508=\"\",\"\",'1. Ordersheet'!V508)","v":""},{"$f":"IF('1. Ordersheet'!W508=\"\",\"\",'1. Ordersheet'!W508)","v":""},{"$f":"IF('1. Ordersheet'!X508=\"\",\"\",'1. Ordersheet'!X508)","v":""},{"$f":"IF('1. Ordersheet'!Y508=\"\",\"\",'1. Ordersheet'!Y508)","v":""},{"$f":"IF('1. Ordersheet'!Z508=\"\",\"\",'1. Ordersheet'!Z508)","v":""},{"$f":"IF('1. Ordersheet'!AA508=\"\",\"\",'1. Ordersheet'!AA508)","v":""},null,{"$f":"IF('1. Ordersheet'!AS508=\"\",\"\",'1. Ordersheet'!AS508)","v":""},{"$f":"IF('1. Ordersheet'!AT508=\"\",\"\",'1. Ordersheet'!AT508)","v":""},null,null,null,null,null,null,null,{"$f":"IF('1. Ordersheet'!AX508=\"\",\"\",'1. Ordersheet'!AX508)","v":""},{"$f":"IF('1. Ordersheet'!AY508=\"\",\"\",'1. Ordersheet'!AY508)","v":""},{"$f":"IF('1. Ordersheet'!AZ508=\"\",\"\",'1. Ordersheet'!AZ508)","v":""},{"$f":"IF('1. Ordersheet'!BA508=\"\",\"\",'1. Ordersheet'!BA508)","v":""},{"$f":"IF('1. Ordersheet'!BC508=\"\",\"\",'1. Ordersheet'!BC508)","v":""},{"$f":"IF('1. Ordersheet'!BD508=\"\",\"\",'1. Ordersheet'!BD508)","v":""},{"$f":"IF('1. Ordersheet'!BE508=\"\",\"\",'1. Ordersheet'!BE508)","v":""},{"$f":"IF('1. Ordersheet'!BF508=\"\",\"\",'1. Ordersheet'!BF508)","v":""},{"$f":"IF('1. Ordersheet'!BG508=\"\",\"\",'1. Ordersheet'!BG508)","v":"ZWO"},{"$f":"IF('1. Ordersheet'!BH508=\"\",\"\",'1. Ordersheet'!BH508)","v":""},{"$f":"IF('1. Ordersheet'!BI508=\"\",\"\",'1. Ordersheet'!BI508)","v":""},{"$f":"IF('1. Ordersheet'!BJ508=\"\",\"\",'1. Ordersheet'!BJ508)","v":""},{"$f":"IF('1. Ordersheet'!BK508=\"\",\"\",'1. Ordersheet'!BK508)","v":""},{"$f":"IF('1. Ordersheet'!BL508=\"\",\"\",'1. Ordersheet'!BL508)","v":""}]
[{"$f":"IF('1. Ordersheet'!F509=\"\",\"\",'1. Ordersheet'!F509)","v":""},{"$f":"IF('1. Ordersheet'!G509=\"\",\"\",'1. Ordersheet'!G509)","v":""},{"$f":"IF('1. Ordersheet'!H509=\"\",\"\",'1. Ordersheet'!H509)","v":""},{"$f":"IF('1. Ordersheet'!I509=\"\",\"\",'1. Ordersheet'!I509)","v":""},{"$f":"IF('1. Ordersheet'!J509=\"\",\"\",'1. Ordersheet'!J509)","v":""},{"$f":"IF('1. Ordersheet'!K509=\"\",\"\",'1. Ordersheet'!K509)","v":""},{"$f":"IF('1. Ordersheet'!L509=\"\",\"\",'1. Ordersheet'!L509)","v":""},{"$f":"IF('1. Ordersheet'!M509=\"\",\"\",'1. Ordersheet'!M509)","v":""},{"$f":"IF('1. Ordersheet'!N509=\"\",\"\",'1. Ordersheet'!N509)","v":""},{"$f":"IF('1. Ordersheet'!O509=\"\",\"\",'1. Ordersheet'!O509)","v":{"$error":"#N/A"}},{"$f":"IF('1. Ordersheet'!P509=\"\",\"\",'1. Ordersheet'!P509)","v":{"$error":"#N/A"}},{"$f":"IF('1. Ordersheet'!Q509=\"\",\"\",'1. Ordersheet'!Q509)","v":""},{"$f":"IF('1. Ordersheet'!R509=\"\",\"\",'1. Ordersheet'!R509)","v":""},{"$f":"IF('1. Ordersheet'!S509=\"\",\"\",'1. Ordersheet'!S509)","v":""},{"$f":"IF('1. Ordersheet'!V509=\"\",\"\",'1. Ordersheet'!V509)","v":""},{"$f":"IF('1. Ordersheet'!W509=\"\",\"\",'1. Ordersheet'!W509)","v":""},{"$f":"IF('1. Ordersheet'!X509=\"\",\"\",'1. Ordersheet'!X509)","v":""},{"$f":"IF('1. Ordersheet'!Y509=\"\",\"\",'1. Ordersheet'!Y509)","v":""},{"$f":"IF('1. Ordersheet'!Z509=\"\",\"\",'1. Ordersheet'!Z509)","v":""},{"$f":"IF('1. Ordersheet'!AA509=\"\",\"\",'1. Ordersheet'!AA509)","v":""},null,{"$f":"IF('1. Ordersheet'!AS509=\"\",\"\",'1. Ordersheet'!AS509)","v":""},{"$f":"IF('1. Ordersheet'!AT509=\"\",\"\",'1. Ordersheet'!AT509)","v":""},null,null,null,null,null,null,null,{"$f":"IF('1. Ordersheet'!AX509=\"\",\"\",'1. Ordersheet'!AX509)","v":""},{"$f":"IF('1. Ordersheet'!AY509=\"\",\"\",'1. Ordersheet'!AY509)","v":""},{"$f":"IF('1. Ordersheet'!AZ509=\"\",\"\",'1. Ordersheet'!AZ509)","v":""},{"$f":"IF('1. Ordersheet'!BA509=\"\",\"\",'1. Ordersheet'!BA509)","v":""},{"$f":"IF('1. Ordersheet'!BC509=\"\",\"\",'1. Ordersheet'!BC509)","v":""},{"$f":"IF('1. Ordersheet'!BD509=\"\",\"\",'1. Ordersheet'!BD509)","v":""},{"$f":"IF('1. Ordersheet'!BE509=\"\",\"\",'1. Ordersheet'!BE509)","v":""},{"$f":"IF('1. Ordersheet'!BF509=\"\",\"\",'1. Ordersheet'!BF509)","v":""},{"$f":"IF('1. Ordersheet'!BG509=\"\",\"\",'1. Ordersheet'!BG509)","v":"ZWO"},{"$f":"IF('1. Ordersheet'!BH509=\"\",\"\",'1. Ordersheet'!BH509)","v":""},{"$f":"IF('1. Ordersheet'!BI509=\"\",\"\",'1. Ordersheet'!BI509)","v":""},{"$f":"IF('1. Ordersheet'!BJ509=\"\",\"\",'1. Ordersheet'!BJ509)","v":""},{"$f":"IF('1. Ordersheet'!BK509=\"\",\"\",'1. Ordersheet'!BK509)","v":""},{"$f":"IF('1. Ordersheet'!BL509=\"\",\"\",'1. Ordersheet'!BL509)","v":""}]
[{"$f":"IF('1. Ordersheet'!F510=\"\",\"\",'1. Ordersheet'!F510)","v":""},{"$f":"IF('1. Ordersheet'!G510=\"\",\"\",'1. Ordersheet'!G510)","v":""},{"$f":"IF('1. Ordersheet'!H510=\"\",\"\",'1. Ordersheet'!H510)","v":""},{"$f":"IF('1. Ordersheet'!I510=\"\",\"\",'1. Ordersheet'!I510)","v":""},{"$f":"IF('1. Ordersheet'!J510=\"\",\"\",'1. Ordersheet'!J510)","v":""},{"$f":"IF('1. Ordersheet'!K510=\"\",\"\",'1. Ordersheet'!K510)","v":""},{"$f":"IF('1. Ordersheet'!L510=\"\",\"\",'1. Ordersheet'!L510)","v":""},{"$f":"IF('1. Ordersheet'!M510=\"\",\"\",'1. Ordersheet'!M510)","v":""},{"$f":"IF('1. Ordersheet'!N510=\"\",\"\",'1. Ordersheet'!N510)","v":""},{"$f":"IF('1. Ordersheet'!O510=\"\",\"\",'1. Ordersheet'!O510)","v":{"$error":"#N/A"}},{"$f":"IF('1. Ordersheet'!P510=\"\",\"\",'1. Ordersheet'!P510)","v":{"$error":"#N/A"}},{"$f":"IF('1. Ordersheet'!Q510=\"\",\"\",'1. Ordersheet'!Q510)","v":""},{"$f":"IF('1. Ordersheet'!R510=\"\",\"\",'1. Ordersheet'!R510)","v":""},{"$f":"IF('1. Ordersheet'!S510=\"\",\"\",'1. Ordersheet'!S510)","v":""},{"$f":"IF('1. Ordersheet'!V510=\"\",\"\",'1. Ordersheet'!V510)","v":""},{"$f":"IF('1. Ordersheet'!W510=\"\",\"\",'1. Ordersheet'!W510)","v":""},{"$f":"IF('1. Ordersheet'!X510=\"\",\"\",'1. Ordersheet'!X510)","v":""},{"$f":"IF('1. Ordersheet'!Y510=\"\",\"\",'1. Ordersheet'!Y510)","v":""},{"$f":"IF('1. Ordersheet'!Z510=\"\",\"\",'1. Ordersheet'!Z510)","v":""},{"$f":"IF('1. Ordersheet'!AA510=\"\",\"\",'1. Ordersheet'!AA510)","v":""},null,{"$f":"IF('1. Ordersheet'!AS510=\"\",\"\",'1. Ordersheet'!AS510)","v":""},{"$f":"IF('1. Ordersheet'!AT510=\"\",\"\",'1. Ordersheet'!AT510)","v":""},null,null,null,null,null,null,null,{"$f":"IF('1. Ordersheet'!AX510=\"\",\"\",'1. Ordersheet'!AX510)","v":""},{"$f":"IF('1. Ordersheet'!AY510=\"\",\"\",'1. Ordersheet'!AY510)","v":""},{"$f":"IF('1. Ordersheet'!AZ510=\"\",\"\",'1. Ordersheet'!AZ510)","v":""},{"$f":"IF('1. Ordersheet'!BA510=\"\",\"\",'1. Ordersheet'!BA510)","v":""},{"$f":"IF('1. Ordersheet'!BC510=\"\",\"\",'1. Ordersheet'!BC510)","v":""},{"$f":"IF('1. Ordersheet'!BD510=\"\",\"\",'1. Ordersheet'!BD510)","v":""},{"$f":"IF('1. Ordersheet'!BE510=\"\",\"\",'1. Ordersheet'!BE510)","v":""},{"$f":"IF('1. Ordersheet'!BF510=\"\",\"\",'1. Ordersheet'!BF510)","v":""},{"$f":"IF('1. Ordersheet'!BG510=\"\",\"\",'1. Ordersheet'!BG510)","v":"ZWO"},{"$f":"IF('1. Ordersheet'!BH510=\"\",\"\",'1. Ordersheet'!BH510)","v":""},{"$f":"IF('1. Ordersheet'!BI510=\"\",\"\",'1. Ordersheet'!BI510)","v":""},{"$f":"IF('1. Ordersheet'!BJ510=\"\",\"\",'1. Ordersheet'!BJ510)","v":""},{"$f":"IF('1. Ordersheet'!BK510=\"\",\"\",'1. Ordersheet'!BK510)","v":""},{"$f":"IF('1. Ordersheet'!BL510=\"\",\"\",'1. Ordersheet'!BL510)","v":""}]
[{"$f":"IF('1. Ordersheet'!F511=\"\",\"\",'1. Ordersheet'!F511)","v":""},{"$f":"IF('1. Ordersheet'!G511=\"\",\"\",'1. Ordersheet'!G511)","v":""},{"$f":"IF('1. Ordersheet'!H511=\"\",\"\",'1. Ordersheet'!H511)","v":""},{"$f":"IF('1. Ordersheet'!I511=\"\",\"\",'1. Ordersheet'!I511)","v":""},{"$f":"IF('1. Ordersheet'!J511=\"\",\"\",'1. Ordersheet'!J511)","v":""},{"$f":"IF('1. Ordersheet'!K511=\"\",\"\",'1. Ordersheet'!K511)","v":""},{"$f":"IF('1. Ordersheet'!L511=\"\",\"\",'1. Ordersheet'!L511)","v":""},{"$f":"IF('1. Ordersheet'!M511=\"\",\"\",'1. Ordersheet'!M511)","v":""},{"$f":"IF('1. Ordersheet'!N511=\"\",\"\",'1. Ordersheet'!N511)","v":""},{"$f":"IF('1. Ordersheet'!O511=\"\",\"\",'1. Ordersheet'!O511)","v":{"$error":"#N/A"}},{"$f":"IF('1. Ordersheet'!P511=\"\",\"\",'1. Ordersheet'!P511)","v":{"$error":"#N/A"}},{"$f":"IF('1. Ordersheet'!Q511=\"\",\"\",'1. Ordersheet'!Q511)","v":""},{"$f":"IF('1. Ordersheet'!R511=\"\",\"\",'1. Ordersheet'!R511)","v":""},{"$f":"IF('1. Ordersheet'!S511=\"\",\"\",'1. Ordersheet'!S511)","v":""},{"$f":"IF('1. Ordersheet'!V511=\"\",\"\",'1. Ordersheet'!V511)","v":""},{"$f":"IF('1. Ordersheet'!W511=\"\",\"\",'1. Ordersheet'!W511)","v":""},{"$f":"IF('1. Ordersheet'!X511=\"\",\"\",'1. Ordersheet'!X511)","v":""},{"$f":"IF('1. Ordersheet'!Y511=\"\",\"\",'1. Ordersheet'!Y511)","v":""},{"$f":"IF('1. Ordersheet'!Z511=\"\",\"\",'1. Ordersheet'!Z511)","v":""},{"$f":"IF('1. Ordersheet'!AA511=\"\",\"\",'1. Ordersheet'!AA511)","v":""},null,{"$f":"IF('1. Ordersheet'!AS511=\"\",\"\",'1. Ordersheet'!AS511)","v":""},{"$f":"IF('1. Ordersheet'!AT511=\"\",\"\",'1. Ordersheet'!AT511)","v":""},null,null,null,null,null,null,null,{"$f":"IF('1. Ordersheet'!AX511=\"\",\"\",'1. Ordersheet'!AX511)","v":""},{"$f":"IF('1. Ordersheet'!AY511=\"\",\"\",'1. Ordersheet'!AY511)","v":""},{"$f":"IF('1. Ordersheet'!AZ511=\"\",\"\",'1. Ordersheet'!AZ511)","v":""},{"$f":"IF('1. Ordersheet'!BA511=\"\",\"\",'1. Ordersheet'!BA511)","v":""},{"$f":"IF('1. Ordersheet'!BC511=\"\",\"\",'1. Ordersheet'!BC511)","v":""},{"$f":"IF('1. Ordersheet'!BD511=\"\",\"\",'1. Ordersheet'!BD511)","v":""},{"$f":"IF('1. Ordersheet'!BE511=\"\",\"\",'1. Ordersheet'!BE511)","v":""},{"$f":"IF('1. Ordersheet'!BF511=\"\",\"\",'1. Ordersheet'!BF511)","v":""},{"$f":"IF('1. Ordersheet'!BG511=\"\",\"\",'1. Ordersheet'!BG511)","v":"ZWO"},{"$f":"IF('1. Ordersheet'!BH511=\"\",\"\",'1. Ordersheet'!BH511)","v":""},{"$f":"IF('1. Ordersheet'!BI511=\"\",\"\",'1. Ordersheet'!BI511)","v":""},{"$f":"IF('1. Ordersheet'!BJ511=\"\",\"\",'1. Ordersheet'!BJ511)","v":""},{"$f":"IF('1. Ordersheet'!BK511=\"\",\"\",'1. Ordersheet'!BK511)","v":""},{"$f":"IF('1. Ordersheet'!BL511=\"\",\"\",'1. Ordersheet'!BL511)","v":""}]
[{"$f":"IF('1. Ordersheet'!F512=\"\",\"\",'1. Ordersheet'!F512)","v":""},{"$f":"IF('1. Ordersheet'!G512=\"\",\"\",'1. Ordersheet'!G512)","v":""},{"$f":"IF('1. Ordersheet'!H512=\"\",\"\",'1. Ordersheet'!H512)","v":""},{"$f":"IF('1. Ordersheet'!I512=\"\",\"\",'1. Ordersheet'!I512)","v":""},{"$f":"IF('1. Ordersheet'!J512=\"\",\"\",'1. Ordersheet'!J512)","v":""},{"$f":"IF('1. Ordersheet'!K512=\"\",\"\",'1. Ordersheet'!K512)","v":""},{"$f":"IF('1. Ordersheet'!L512=\"\",\"\",'1. Ordersheet'!L512)","v":""},{"$f":"IF('1. Ordersheet'!M512=\"\",\"\",'1. Ordersheet'!M512)","v":""},{"$f":"IF('1. Ordersheet'!N512=\"\",\"\",'1. Ordersheet'!N512)","v":""},{"$f":"IF('1. Ordersheet'!O512=\"\",\"\",'1. Ordersheet'!O512)","v":{"$error":"#N/A"}},{"$f":"IF('1. Ordersheet'!P512=\"\",\"\",'1. Ordersheet'!P512)","v":{"$error":"#N/A"}},{"$f":"IF('1. Ordersheet'!Q512=\"\",\"\",'1. Ordersheet'!Q512)","v":""},{"$f":"IF('1. Ordersheet'!R512=\"\",\"\",'1. Ordersheet'!R512)","v":""},{"$f":"IF('1. Ordersheet'!S512=\"\",\"\",'1. Ordersheet'!S512)","v":""},{"$f":"IF('1. Ordersheet'!V512=\"\",\"\",'1. Ordersheet'!V512)","v":""},{"$f":"IF('1. Ordersheet'!W512=\"\",\"\",'1. Ordersheet'!W512)","v":""},{"$f":"IF('1. Ordersheet'!X512=\"\",\"\",'1. Ordersheet'!X512)","v":""},{"$f":"IF('1. Ordersheet'!Y512=\"\",\"\",'1. Ordersheet'!Y512)","v":""},{"$f":"IF('1. Ordersheet'!Z512=\"\",\"\",'1. Ordersheet'!Z512)","v":""},{"$f":"IF('1. Ordersheet'!AA512=\"\",\"\",'1. Ordersheet'!AA512)","v":""},null,{"$f":"IF('1. Ordersheet'!AS512=\"\",\"\",'1. Ordersheet'!AS512)","v":""},{"$f":"IF('1. Ordersheet'!AT512=\"\",\"\",'1. Ordersheet'!AT512)","v":""},null,null,null,null,null,null,null,{"$f":"IF('1. Ordersheet'!AX512=\"\",\"\",'1. Ordersheet'!AX512)","v":""},{"$f":"IF('1. Ordersheet'!AY512=\"\",\"\",'1. Ordersheet'!AY512)","v":""},{"$f":"IF('1. Ordersheet'!AZ512=\"\",\"\",'1. Ordersheet'!AZ512)","v":""},{"$f":"IF('1. Ordersheet'!BA512=\"\",\"\",'1. Ordersheet'!BA512)","v":""},{"$f":"IF('1. Ordersheet'!BC512=\"\",\"\",'1. Ordersheet'!BC512)","v":""},{"$f":"IF('1. Ordersheet'!BD512=\"\",\"\",'1. Ordersheet'!BD512)","v":""},{"$f":"IF('1. Ordersheet'!BE512=\"\",\"\",'1. Ordersheet'!BE512)","v":""},{"$f":"IF('1. Ordersheet'!BF512=\"\",\"\",'1. Ordersheet'!BF512)","v":""},{"$f":"IF('1. Ordersheet'!BG512=\"\",\"\",'1. Ordersheet'!BG512)","v":"ZWO"},{"$f":"IF('1. Ordersheet'!BH512=\"\",\"\",'1. Ordersheet'!BH512)","v":""},{"$f":"IF('1. Ordersheet'!BI512=\"\",\"\",'1. Ordersheet'!BI512)","v":""},{"$f":"IF('1. Ordersheet'!BJ512=\"\",\"\",'1. Ordersheet'!BJ512)","v":""},{"$f":"IF('1. Ordersheet'!BK512=\"\",\"\",'1. Ordersheet'!BK512)","v":""},{"$f":"IF('1. Ordersheet'!BL512=\"\",\"\",'1. Ordersheet'!BL512)","v":""}]
[{"$f":"IF('1. Ordersheet'!F513=\"\",\"\",'1. Ordersheet'!F513)","v":""},{"$f":"IF('1. Ordersheet'!G513=\"\",\"\",'1. Ordersheet'!G513)","v":""},{"$f":"IF('1. Ordersheet'!H513=\"\",\"\",'1. Ordersheet'!H513)","v":""},{"$f":"IF('1. Ordersheet'!I513=\"\",\"\",'1. Ordersheet'!I513)","v":""},{"$f":"IF('1. Ordersheet'!J513=\"\",\"\",'1. Ordersheet'!J513)","v":""},{"$f":"IF('1. Ordersheet'!K513=\"\",\"\",'1. Ordersheet'!K513)","v":""},{"$f":"IF('1. Ordersheet'!L513=\"\",\"\",'1. Ordersheet'!L513)","v":""},{"$f":"IF('1. Ordersheet'!M513=\"\",\"\",'1. Ordersheet'!M513)","v":""},{"$f":"IF('1. Ordersheet'!N513=\"\",\"\",'1. Ordersheet'!N513)","v":""},{"$f":"IF('1. Ordersheet'!O513=\"\",\"\",'1. Ordersheet'!O513)","v":{"$error":"#N/A"}},{"$f":"IF('1. Ordersheet'!P513=\"\",\"\",'1. Ordersheet'!P513)","v":{"$error":"#N/A"}},{"$f":"IF('1. Ordersheet'!Q513=\"\",\"\",'1. Ordersheet'!Q513)","v":""},{"$f":"IF('1. Ordersheet'!R513=\"\",\"\",'1. Ordersheet'!R513)","v":""},{"$f":"IF('1. Ordersheet'!S513=\"\",\"\",'1. Ordersheet'!S513)","v":""},{"$f":"IF('1. Ordersheet'!V513=\"\",\"\",'1. Ordersheet'!V513)","v":""},{"$f":"IF('1. Ordersheet'!W513=\"\",\"\",'1. Ordersheet'!W513)","v":""},{"$f":"IF('1. Ordersheet'!X513=\"\",\"\",'1. Ordersheet'!X513)","v":""},{"$f":"IF('1. Ordersheet'!Y513=\"\",\"\",'1. Ordersheet'!Y513)","v":""},{"$f":"IF('1. Ordersheet'!Z513=\"\",\"\",'1. Ordersheet'!Z513)","v":""},{"$f":"IF('1. Ordersheet'!AA513=\"\",\"\",'1. Ordersheet'!AA513)","v":""},null,{"$f":"IF('1. Ordersheet'!AS513=\"\",\"\",'1. Ordersheet'!AS513)","v":""},{"$f":"IF('1. Ordersheet'!AT513=\"\",\"\",'1. Ordersheet'!AT513)","v":""},null,null,null,null,null,null,null,{"$f":"IF('1. Ordersheet'!AX513=\"\",\"\",'1. Ordersheet'!AX513)","v":""},{"$f":"IF('1. Ordersheet'!AY513=\"\",\"\",'1. Ordersheet'!AY513)","v":""},{"$f":"IF('1. Ordersheet'!AZ513=\"\",\"\",'1. Ordersheet'!AZ513)","v":""},{"$f":"IF('1. Ordersheet'!BA513=\"\",\"\",'1. Ordersheet'!BA513)","v":""},{"$f":"IF('1. Ordersheet'!BC513=\"\",\"\",'1. Ordersheet'!BC513)","v":""},{"$f":"IF('1. Ordersheet'!BD513=\"\",\"\",'1. Ordersheet'!BD513)","v":""},{"$f":"IF('1. Ordersheet'!BE513=\"\",\"\",'1. Ordersheet'!BE513)","v":""},{"$f":"IF('1. Ordersheet'!BF513=\"\",\"\",'1. Ordersheet'!BF513)","v":""},{"$f":"IF('1. Ordersheet'!BG513=\"\",\"\",'1. Ordersheet'!BG513)","v":"ZWO"},{"$f":"IF('1. Ordersheet'!BH513=\"\",\"\",'1. Ordersheet'!BH513)","v":""},{"$f":"IF('1. Ordersheet'!BI513=\"\",\"\",'1. Ordersheet'!BI513)","v":""},{"$f":"IF('1. Ordersheet'!BJ513=\"\",\"\",'1. Ordersheet'!BJ513)","v":""},{"$f":"IF('1. Ordersheet'!BK513=\"\",\"\",'1. Ordersheet'!BK513)","v":""},{"$f":"IF('1. Ordersheet'!BL513=\"\",\"\",'1. Ordersheet'!BL513)","v":""}]
[{"$f":"IF('1. Ordersheet'!F514=\"\",\"\",'1. Ordersheet'!F514)","v":""},{"$f":"IF('1. Ordersheet'!G514=\"\",\"\",'1. Ordersheet'!G514)","v":""},{"$f":"IF('1. Ordersheet'!H514=\"\",\"\",'1. Ordersheet'!H514)","v":""},{"$f":"IF('1. Ordersheet'!I514=\"\",\"\",'1. Ordersheet'!I514)","v":""},{"$f":"IF('1. Ordersheet'!J514=\"\",\"\",'1. Ordersheet'!J514)","v":""},{"$f":"IF('1. Ordersheet'!K514=\"\",\"\",'1. Ordersheet'!K514)","v":""},{"$f":"IF('1. Ordersheet'!L514=\"\",\"\",'1. Ordersheet'!L514)","v":""},{"$f":"IF('1. Ordersheet'!M514=\"\",\"\",'1. Ordersheet'!M514)","v":""},{"$f":"IF('1. Ordersheet'!N514=\"\",\"\",'1. Ordersheet'!N514)","v":""},{"$f":"IF('1. Ordersheet'!O514=\"\",\"\",'1. Ordersheet'!O514)","v":{"$error":"#N/A"}},{"$f":"IF('1. Ordersheet'!P514=\"\",\"\",'1. Ordersheet'!P514)","v":{"$error":"#N/A"}},{"$f":"IF('1. Ordersheet'!Q514=\"\",\"\",'1. Ordersheet'!Q514)","v":""},{"$f":"IF('1. Ordersheet'!R514=\"\",\"\",'1. Ordersheet'!R514)","v":""},{"$f":"IF('1. Ordersheet'!S514=\"\",\"\",'1. Ordersheet'!S514)","v":""},{"$f":"IF('1. Ordersheet'!V514=\"\",\"\",'1. Ordersheet'!V514)","v":""},{"$f":"IF('1. Ordersheet'!W514=\"\",\"\",'1. Ordersheet'!W514)","v":""},{"$f":"IF('1. Ordersheet'!X514=\"\",\"\",'1. Ordersheet'!X514)","v":""},{"$f":"IF('1. Ordersheet'!Y514=\"\",\"\",'1. Ordersheet'!Y514)","v":""},{"$f":"IF('1. Ordersheet'!Z514=\"\",\"\",'1. Ordersheet'!Z514)","v":""},{"$f":"IF('1. Ordersheet'!AA514=\"\",\"\",'1. Ordersheet'!AA514)","v":""},null,{"$f":"IF('1. Ordersheet'!AS514=\"\",\"\",'1. Ordersheet'!AS514)","v":""},{"$f":"IF('1. Ordersheet'!AT514=\"\",\"\",'1. Ordersheet'!AT514)","v":""},null,null,null,null,null,null,null,{"$f":"IF('1. Ordersheet'!AX514=\"\",\"\",'1. Ordersheet'!AX514)","v":""},{"$f":"IF('1. Ordersheet'!AY514=\"\",\"\",'1. Ordersheet'!AY514)","v":""},{"$f":"IF('1. Ordersheet'!AZ514=\"\",\"\",'1. Ordersheet'!AZ514)","v":""},{"$f":"IF('1. Ordersheet'!BA514=\"\",\"\",'1. Ordersheet'!BA514)","v":""},{"$f":"IF('1. Ordersheet'!BC514=\"\",\"\",'1. Ordersheet'!BC514)","v":""},{"$f":"IF('1. Ordersheet'!BD514=\"\",\"\",'1. Ordersheet'!BD514)","v":""},{"$f":"IF('1. Ordersheet'!BE514=\"\",\"\",'1. Ordersheet'!BE514)","v":""},{"$f":"IF('1. Ordersheet'!BF514=\"\",\"\",'1. Ordersheet'!BF514)","v":""},{"$f":"IF('1. Ordersheet'!BG514=\"\",\"\",'1. Ordersheet'!BG514)","v":"ZWO"},{"$f":"IF('1. Ordersheet'!BH514=\"\",\"\",'1. Ordersheet'!BH514)","v":""},{"$f":"IF('1. Ordersheet'!BI514=\"\",\"\",'1. Ordersheet'!BI514)","v":""},{"$f":"IF('1. Ordersheet'!BJ514=\"\",\"\",'1. Ordersheet'!BJ514)","v":""},{"$f":"IF('1. Ordersheet'!BK514=\"\",\"\",'1. Ordersheet'!BK514)","v":""},{"$f":"IF('1. Ordersheet'!BL514=\"\",\"\",'1. Ordersheet'!BL514)","v":""}]
[{"$f":"IF('1. Ordersheet'!F515=\"\",\"\",'1. Ordersheet'!F515)","v":""},{"$f":"IF('1. Ordersheet'!G515=\"\",\"\",'1. Ordersheet'!G515)","v":""},{"$f":"IF('1. Ordersheet'!H515=\"\",\"\",'1. Ordersheet'!H515)","v":""},{"$f":"IF('1. Ordersheet'!I515=\"\",\"\",'1. Ordersheet'!I515)","v":""},{"$f":"IF('1. Ordersheet'!J515=\"\",\"\",'1. Ordersheet'!J515)","v":""},{"$f":"IF('1. Ordersheet'!K515=\"\",\"\",'1. Ordersheet'!K515)","v":""},{"$f":"IF('1. Ordersheet'!L515=\"\",\"\",'1. Ordersheet'!L515)","v":""},{"$f":"IF('1. Ordersheet'!M515=\"\",\"\",'1. Ordersheet'!M515)","v":""},{"$f":"IF('1. Ordersheet'!N515=\"\",\"\",'1. Ordersheet'!N515)","v":""},{"$f":"IF('1. Ordersheet'!O515=\"\",\"\",'1. Ordersheet'!O515)","v":{"$error":"#N/A"}},{"$f":"IF('1. Ordersheet'!P515=\"\",\"\",'1. Ordersheet'!P515)","v":{"$error":"#N/A"}},{"$f":"IF('1. Ordersheet'!Q515=\"\",\"\",'1. Ordersheet'!Q515)","v":""},{"$f":"IF('1. Ordersheet'!R515=\"\",\"\",'1. Ordersheet'!R515)","v":""},{"$f":"IF('1. Ordersheet'!S515=\"\",\"\",'1. Ordersheet'!S515)","v":""},{"$f":"IF('1. Ordersheet'!V515=\"\",\"\",'1. Ordersheet'!V515)","v":""},{"$f":"IF('1. Ordersheet'!W515=\"\",\"\",'1. Ordersheet'!W515)","v":""},{"$f":"IF('1. Ordersheet'!X515=\"\",\"\",'1. Ordersheet'!X515)","v":""},{"$f":"IF('1. Ordersheet'!Y515=\"\",\"\",'1. Ordersheet'!Y515)","v":""},{"$f":"IF('1. Ordersheet'!Z515=\"\",\"\",'1. Ordersheet'!Z515)","v":""},{"$f":"IF('1. Ordersheet'!AA515=\"\",\"\",'1. Ordersheet'!AA515)","v":""},null,{"$f":"IF('1. Ordersheet'!AS515=\"\",\"\",'1. Ordersheet'!AS515)","v":""},{"$f":"IF('1. Ordersheet'!AT515=\"\",\"\",'1. Ordersheet'!AT515)","v":""},null,null,null,null,null,null,null,{"$f":"IF('1. Ordersheet'!AX515=\"\",\"\",'1. Ordersheet'!AX515)","v":""},{"$f":"IF('1. Ordersheet'!AY515=\"\",\"\",'1. Ordersheet'!AY515)","v":""},{"$f":"IF('1. Ordersheet'!AZ515=\"\",\"\",'1. Ordersheet'!AZ515)","v":""},{"$f":"IF('1. Ordersheet'!BA515=\"\",\"\",'1. Ordersheet'!BA515)","v":""},{"$f":"IF('1. Ordersheet'!BC515=\"\",\"\",'1. Ordersheet'!BC515)","v":""},{"$f":"IF('1. Ordersheet'!BD515=\"\",\"\",'1. Ordersheet'!BD515)","v":""},{"$f":"IF('1. Ordersheet'!BE515=\"\",\"\",'1. Ordersheet'!BE515)","v":""},{"$f":"IF('1. Ordersheet'!BF515=\"\",\"\",'1. Ordersheet'!BF515)","v":""},{"$f":"IF('1. Ordersheet'!BG515=\"\",\"\",'1. Ordersheet'!BG515)","v":"ZWO"},{"$f":"IF('1. Ordersheet'!BH515=\"\",\"\",'1. Ordersheet'!BH515)","v":""},{"$f":"IF('1. Ordersheet'!BI515=\"\",\"\",'1. Ordersheet'!BI515)","v":""},{"$f":"IF('1. Ordersheet'!BJ515=\"\",\"\",'1. Ordersheet'!BJ515)","v":""},{"$f":"IF('1. Ordersheet'!BK515=\"\",\"\",'1. Ordersheet'!BK515)","v":""},{"$f":"IF('1. Ordersheet'!BL515=\"\",\"\",'1. Ordersheet'!BL515)","v":""}]
[{"$f":"IF('1. Ordersheet'!F516=\"\",\"\",'1. Ordersheet'!F516)","v":""},{"$f":"IF('1. Ordersheet'!G516=\"\",\"\",'1. Ordersheet'!G516)","v":""},{"$f":"IF('1. Ordersheet'!H516=\"\",\"\",'1. Ordersheet'!H516)","v":""},{"$f":"IF('1. Ordersheet'!I516=\"\",\"\",'1. Ordersheet'!I516)","v":""},{"$f":"IF('1. Ordersheet'!J516=\"\",\"\",'1. Ordersheet'!J516)","v":""},{"$f":"IF('1. Ordersheet'!K516=\"\",\"\",'1. Ordersheet'!K516)","v":""},{"$f":"IF('1. Ordersheet'!L516=\"\",\"\",'1. Ordersheet'!L516)","v":""},{"$f":"IF('1. Ordersheet'!M516=\"\",\"\",'1. Ordersheet'!M516)","v":""},{"$f":"IF('1. Ordersheet'!N516=\"\",\"\",'1. Ordersheet'!N516)","v":""},{"$f":"IF('1. Ordersheet'!O516=\"\",\"\",'1. Ordersheet'!O516)","v":{"$error":"#N/A"}},{"$f":"IF('1. Ordersheet'!P516=\"\",\"\",'1. Ordersheet'!P516)","v":{"$error":"#N/A"}},{"$f":"IF('1. Ordersheet'!Q516=\"\",\"\",'1. Ordersheet'!Q516)","v":""},{"$f":"IF('1. Ordersheet'!R516=\"\",\"\",'1. Ordersheet'!R516)","v":""},{"$f":"IF('1. Ordersheet'!S516=\"\",\"\",'1. Ordersheet'!S516)","v":""},{"$f":"IF('1. Ordersheet'!V516=\"\",\"\",'1. Ordersheet'!V516)","v":""},{"$f":"IF('1. Ordersheet'!W516=\"\",\"\",'1. Ordersheet'!W516)","v":""},{"$f":"IF('1. Ordersheet'!X516=\"\",\"\",'1. Ordersheet'!X516)","v":""},{"$f":"IF('1. Ordersheet'!Y516=\"\",\"\",'1. Ordersheet'!Y516)","v":""},{"$f":"IF('1. Ordersheet'!Z516=\"\",\"\",'1. Ordersheet'!Z516)","v":""},{"$f":"IF('1. Ordersheet'!AA516=\"\",\"\",'1. Ordersheet'!AA516)","v":""},null,{"$f":"IF('1. Ordersheet'!AS516=\"\",\"\",'1. Ordersheet'!AS516)","v":""},{"$f":"IF('1. Ordersheet'!AT516=\"\",\"\",'1. Ordersheet'!AT516)","v":""},null,null,null,null,null,null,null,{"$f":"IF('1. Ordersheet'!AX516=\"\",\"\",'1. Ordersheet'!AX516)","v":""},{"$f":"IF('1. Ordersheet'!AY516=\"\",\"\",'1. Ordersheet'!AY516)","v":""},{"$f":"IF('1. Ordersheet'!AZ516=\"\",\"\",'1. Ordersheet'!AZ516)","v":""},{"$f":"IF('1. Ordersheet'!BA516=\"\",\"\",'1. Ordersheet'!BA516)","v":""},{"$f":"IF('1. Ordersheet'!BC516=\"\",\"\",'1. Ordersheet'!BC516)","v":""},{"$f":"IF('1. Ordersheet'!BD516=\"\",\"\",'1. Ordersheet'!BD516)","v":""},{"$f":"IF('1. Ordersheet'!BE516=\"\",\"\",'1. Ordersheet'!BE516)","v":""},{"$f":"IF('1. Ordersheet'!BF516=\"\",\"\",'1. Ordersheet'!BF516)","v":""},{"$f":"IF('1. Ordersheet'!BG516=\"\",\"\",'1. Ordersheet'!BG516)","v":"ZWO"},{"$f":"IF('1. Ordersheet'!BH516=\"\",\"\",'1. Ordersheet'!BH516)","v":""},{"$f":"IF('1. Ordersheet'!BI516=\"\",\"\",'1. Ordersheet'!BI516)","v":""},{"$f":"IF('1. Ordersheet'!BJ516=\"\",\"\",'1. Ordersheet'!BJ516)","v":""},{"$f":"IF('1. Ordersheet'!BK516=\"\",\"\",'1. Ordersheet'!BK516)","v":""},{"$f":"IF('1. Ordersheet'!BL516=\"\",\"\",'1. Ordersheet'!BL516)","v":""}]
[{"$f":"IF('1. Ordersheet'!F517=\"\",\"\",'1. Ordersheet'!F517)","v":""},{"$f":"IF('1. Ordersheet'!G517=\"\",\"\",'1. Ordersheet'!G517)","v":""},{"$f":"IF('1. Ordersheet'!H517=\"\",\"\",'1. Ordersheet'!H517)","v":""},{"$f":"IF('1. Ordersheet'!I517=\"\",\"\",'1. Ordersheet'!I517)","v":""},{"$f":"IF('1. Ordersheet'!J517=\"\",\"\",'1. Ordersheet'!J517)","v":""},{"$f":"IF('1. Ordersheet'!K517=\"\",\"\",'1. Ordersheet'!K517)","v":""},{"$f":"IF('1. Ordersheet'!L517=\"\",\"\",'1. Ordersheet'!L517)","v":""},{"$f":"IF('1. Ordersheet'!M517=\"\",\"\",'1. Ordersheet'!M517)","v":""},{"$f":"IF('1. Ordersheet'!N517=\"\",\"\",'1. Ordersheet'!N517)","v":""},{"$f":"IF('1. Ordersheet'!O517=\"\",\"\",'1. Ordersheet'!O517)","v":{"$error":"#N/A"}},{"$f":"IF('1. Ordersheet'!P517=\"\",\"\",'1. Ordersheet'!P517)","v":{"$error":"#N/A"}},{"$f":"IF('1. Ordersheet'!Q517=\"\",\"\",'1. Ordersheet'!Q517)","v":""},{"$f":"IF('1. Ordersheet'!R517=\"\",\"\",'1. Ordersheet'!R517)","v":""},{"$f":"IF('1. Ordersheet'!S517=\"\",\"\",'1. Ordersheet'!S517)","v":""},{"$f":"IF('1. Ordersheet'!V517=\"\",\"\",'1. Ordersheet'!V517)","v":""},{"$f":"IF('1. Ordersheet'!W517=\"\",\"\",'1. Ordersheet'!W517)","v":""},{"$f":"IF('1. Ordersheet'!X517=\"\",\"\",'1. Ordersheet'!X517)","v":""},{"$f":"IF('1. Ordersheet'!Y517=\"\",\"\",'1. Ordersheet'!Y517)","v":""},{"$f":"IF('1. Ordersheet'!Z517=\"\",\"\",'1. Ordersheet'!Z517)","v":""},{"$f":"IF('1. Ordersheet'!AA517=\"\",\"\",'1. Ordersheet'!AA517)","v":""},null,{"$f":"IF('1. Ordersheet'!AS517=\"\",\"\",'1. Ordersheet'!AS517)","v":""},{"$f":"IF('1. Ordersheet'!AT517=\"\",\"\",'1. Ordersheet'!AT517)","v":""},null,null,null,null,null,null,null,{"$f":"IF('1. Ordersheet'!AX517=\"\",\"\",'1. Ordersheet'!AX517)","v":""},{"$f":"IF('1. Ordersheet'!AY517=\"\",\"\",'1. Ordersheet'!AY517)","v":""},{"$f":"IF('1. Ordersheet'!AZ517=\"\",\"\",'1. Ordersheet'!AZ517)","v":""},{"$f":"IF('1. Ordersheet'!BA517=\"\",\"\",'1. Ordersheet'!BA517)","v":""},{"$f":"IF('1. Ordersheet'!BC517=\"\",\"\",'1. Ordersheet'!BC517)","v":""},{"$f":"IF('1. Ordersheet'!BD517=\"\",\"\",'1. Ordersheet'!BD517)","v":""},{"$f":"IF('1. Ordersheet'!BE517=\"\",\"\",'1. Ordersheet'!BE517)","v":""},{"$f":"IF('1. Ordersheet'!BF517=\"\",\"\",'1. Ordersheet'!BF517)","v":""},{"$f":"IF('1. Ordersheet'!BG517=\"\",\"\",'1. Ordersheet'!BG517)","v":"ZWO"},{"$f":"IF('1. Ordersheet'!BH517=\"\",\"\",'1. Ordersheet'!BH517)","v":""},{"$f":"IF('1. Ordersheet'!BI517=\"\",\"\",'1. Ordersheet'!BI517)","v":""},{"$f":"IF('1. Ordersheet'!BJ517=\"\",\"\",'1. Ordersheet'!BJ517)","v":""},{"$f":"IF('1. Ordersheet'!BK517=\"\",\"\",'1. Ordersheet'!BK517)","v":""},{"$f":"IF('1. Ordersheet'!BL517=\"\",\"\",'1. Ordersheet'!BL517)","v":""}]
[{"$f":"IF('1. Ordersheet'!F518=\"\",\"\",'1. Ordersheet'!F518)","v":""},{"$f":"IF('1. Ordersheet'!G518=\"\",\"\",'1. Ordersheet'!G518)","v":""},{"$f":"IF('1. Ordersheet'!H518=\"\",\"\",'1. Ordersheet'!H518)","v":""},{"$f":"IF('1. Ordersheet'!I518=\"\",\"\",'1. Ordersheet'!I518)","v":""},{"$f":"IF('1. Ordersheet'!J518=\"\",\"\",'1. Ordersheet'!J518)","v":""},{"$f":"IF('1. Ordersheet'!K518=\"\",\"\",'1. Ordersheet'!K518)","v":""},{"$f":"IF('1. Ordersheet'!L518=\"\",\"\",'1. Ordersheet'!L518)","v":""},{"$f":"IF('1. Ordersheet'!M518=\"\",\"\",'1. Ordersheet'!M518)","v":""},{"$f":"IF('1. Ordersheet'!N518=\"\",\"\",'1. Ordersheet'!N518)","v":""},{"$f":"IF('1. Ordersheet'!O518=\"\",\"\",'1. Ordersheet'!O518)","v":{"$error":"#N/A"}},{"$f":"IF('1. Ordersheet'!P518=\"\",\"\",'1. Ordersheet'!P518)","v":{"$error":"#N/A"}},{"$f":"IF('1. Ordersheet'!Q518=\"\",\"\",'1. Ordersheet'!Q518)","v":""},{"$f":"IF('1. Ordersheet'!R518=\"\",\"\",'1. Ordersheet'!R518)","v":""},{"$f":"IF('1. Ordersheet'!S518=\"\",\"\",'1. Ordersheet'!S518)","v":""},{"$f":"IF('1. Ordersheet'!V518=\"\",\"\",'1. Ordersheet'!V518)","v":""},{"$f":"IF('1. Ordersheet'!W518=\"\",\"\",'1. Ordersheet'!W518)","v":""},{"$f":"IF('1. Ordersheet'!X518=\"\",\"\",'1. Ordersheet'!X518)","v":""},{"$f":"IF('1. Ordersheet'!Y518=\"\",\"\",'1. Ordersheet'!Y518)","v":""},{"$f":"IF('1. Ordersheet'!Z518=\"\",\"\",'1. Ordersheet'!Z518)","v":""},{"$f":"IF('1. Ordersheet'!AA518=\"\",\"\",'1. Ordersheet'!AA518)","v":""},null,{"$f":"IF('1. Ordersheet'!AS518=\"\",\"\",'1. Ordersheet'!AS518)","v":""},{"$f":"IF('1. Ordersheet'!AT518=\"\",\"\",'1. Ordersheet'!AT518)","v":""},null,null,null,null,null,null,null,{"$f":"IF('1. Ordersheet'!AX518=\"\",\"\",'1. Ordersheet'!AX518)","v":""},{"$f":"IF('1. Ordersheet'!AY518=\"\",\"\",'1. Ordersheet'!AY518)","v":""},{"$f":"IF('1. Ordersheet'!AZ518=\"\",\"\",'1. Ordersheet'!AZ518)","v":""},{"$f":"IF('1. Ordersheet'!BA518=\"\",\"\",'1. Ordersheet'!BA518)","v":""},{"$f":"IF('1. Ordersheet'!BC518=\"\",\"\",'1. Ordersheet'!BC518)","v":""},{"$f":"IF('1. Ordersheet'!BD518=\"\",\"\",'1. Ordersheet'!BD518)","v":""},{"$f":"IF('1. Ordersheet'!BE518=\"\",\"\",'1. Ordersheet'!BE518)","v":""},{"$f":"IF('1. Ordersheet'!BF518=\"\",\"\",'1. Ordersheet'!BF518)","v":""},{"$f":"IF('1. Ordersheet'!BG518=\"\",\"\",'1. Ordersheet'!BG518)","v":"ZWO"},{"$f":"IF('1. Ordersheet'!BH518=\"\",\"\",'1. Ordersheet'!BH518)","v":""},{"$f":"IF('1. Ordersheet'!BI518=\"\",\"\",'1. Ordersheet'!BI518)","v":""},{"$f":"IF('1. Ordersheet'!BJ518=\"\",\"\",'1. Ordersheet'!BJ518)","v":""},{"$f":"IF('1. Ordersheet'!BK518=\"\",\"\",'1. Ordersheet'!BK518)","v":""},{"$f":"IF('1. Ordersheet'!BL518=\"\",\"\",'1. Ordersheet'!BL518)","v":""}]
[{"$f":"IF('1. Ordersheet'!F519=\"\",\"\",'1. Ordersheet'!F519)","v":""},{"$f":"IF('1. Ordersheet'!G519=\"\",\"\",'1. Ordersheet'!G519)","v":""},{"$f":"IF('1. Ordersheet'!H519=\"\",\"\",'1. Ordersheet'!H519)","v":""},{"$f":"IF('1. Ordersheet'!I519=\"\",\"\",'1. Ordersheet'!I519)","v":""},{"$f":"IF('1. Ordersheet'!J519=\"\",\"\",'1. Ordersheet'!J519)","v":""},{"$f":"IF('1. Ordersheet'!K519=\"\",\"\",'1. Ordersheet'!K519)","v":""},{"$f":"IF('1. Ordersheet'!L519=\"\",\"\",'1. Ordersheet'!L519)","v":""},{"$f":"IF('1. Ordersheet'!M519=\"\",\"\",'1. Ordersheet'!M519)","v":""},{"$f":"IF('1. Ordersheet'!N519=\"\",\"\",'1. Ordersheet'!N519)","v":""},{"$f":"IF('1. Ordersheet'!O519=\"\",\"\",'1. Ordersheet'!O519)","v":{"$error":"#N/A"}},{"$f":"IF('1. Ordersheet'!P519=\"\",\"\",'1. Ordersheet'!P519)","v":{"$error":"#N/A"}},{"$f":"IF('1. Ordersheet'!Q519=\"\",\"\",'1. Ordersheet'!Q519)","v":""},{"$f":"IF('1. Ordersheet'!R519=\"\",\"\",'1. Ordersheet'!R519)","v":""},{"$f":"IF('1. Ordersheet'!S519=\"\",\"\",'1. Ordersheet'!S519)","v":""},{"$f":"IF('1. Ordersheet'!V519=\"\",\"\",'1. Ordersheet'!V519)","v":""},{"$f":"IF('1. Ordersheet'!W519=\"\",\"\",'1. Ordersheet'!W519)","v":""},{"$f":"IF('1. Ordersheet'!X519=\"\",\"\",'1. Ordersheet'!X519)","v":""},{"$f":"IF('1. Ordersheet'!Y519=\"\",\"\",'1. Ordersheet'!Y519)","v":""},{"$f":"IF('1. Ordersheet'!Z519=\"\",\"\",'1. Ordersheet'!Z519)","v":""},{"$f":"IF('1. Ordersheet'!AA519=\"\",\"\",'1. Ordersheet'!AA519)","v":""},null,{"$f":"IF('1. Ordersheet'!AS519=\"\",\"\",'1. Ordersheet'!AS519)","v":""},{"$f":"IF('1. Ordersheet'!AT519=\"\",\"\",'1. Ordersheet'!AT519)","v":""},null,null,null,null,null,null,null,{"$f":"IF('1. Ordersheet'!AX519=\"\",\"\",'1. Ordersheet'!AX519)","v":""},{"$f":"IF('1. Ordersheet'!AY519=\"\",\"\",'1. Ordersheet'!AY519)","v":""},{"$f":"IF('1. Ordersheet'!AZ519=\"\",\"\",'1. Ordersheet'!AZ519)","v":""},{"$f":"IF('1. Ordersheet'!BA519=\"\",\"\",'1. Ordersheet'!BA519)","v":""},{"$f":"IF('1. Ordersheet'!BC519=\"\",\"\",'1. Ordersheet'!BC519)","v":""},{"$f":"IF('1. Ordersheet'!BD519=\"\",\"\",'1. Ordersheet'!BD519)","v":""},{"$f":"IF('1. Ordersheet'!BE519=\"\",\"\",'1. Ordersheet'!BE519)","v":""},{"$f":"IF('1. Ordersheet'!BF519=\"\",\"\",'1. Ordersheet'!BF519)","v":""},{"$f":"IF('1. Ordersheet'!BG519=\"\",\"\",'1. Ordersheet'!BG519)","v":"ZWO"},{"$f":"IF('1. Ordersheet'!BH519=\"\",\"\",'1. Ordersheet'!BH519)","v":""},{"$f":"IF('1. Ordersheet'!BI519=\"\",\"\",'1. Ordersheet'!BI519)","v":""},{"$f":"IF('1. Ordersheet'!BJ519=\"\",\"\",'1. Ordersheet'!BJ519)","v":""},{"$f":"IF('1. Ordersheet'!BK519=\"\",\"\",'1. Ordersheet'!BK519)","v":""},{"$f":"IF('1. Ordersheet'!BL519=\"\",\"\",'1. Ordersheet'!BL519)","v":""}]
[{"$f":"IF('1. Ordersheet'!F520=\"\",\"\",'1. Ordersheet'!F520)","v":""},{"$f":"IF('1. Ordersheet'!G520=\"\",\"\",'1. Ordersheet'!G520)","v":""},{"$f":"IF('1. Ordersheet'!H520=\"\",\"\",'1. Ordersheet'!H520)","v":""},{"$f":"IF('1. Ordersheet'!I520=\"\",\"\",'1. Ordersheet'!I520)","v":""},{"$f":"IF('1. Ordersheet'!J520=\"\",\"\",'1. Ordersheet'!J520)","v":""},{"$f":"IF('1. Ordersheet'!K520=\"\",\"\",'1. Ordersheet'!K520)","v":""},{"$f":"IF('1. Ordersheet'!L520=\"\",\"\",'1. Ordersheet'!L520)","v":""},{"$f":"IF('1. Ordersheet'!M520=\"\",\"\",'1. Ordersheet'!M520)","v":""},{"$f":"IF('1. Ordersheet'!N520=\"\",\"\",'1. Ordersheet'!N520)","v":""},{"$f":"IF('1. Ordersheet'!O520=\"\",\"\",'1. Ordersheet'!O520)","v":{"$error":"#N/A"}},{"$f":"IF('1. Ordersheet'!P520=\"\",\"\",'1. Ordersheet'!P520)","v":{"$error":"#N/A"}},{"$f":"IF('1. Ordersheet'!Q520=\"\",\"\",'1. Ordersheet'!Q520)","v":""},{"$f":"IF('1. Ordersheet'!R520=\"\",\"\",'1. Ordersheet'!R520)","v":""},{"$f":"IF('1. Ordersheet'!S520=\"\",\"\",'1. Ordersheet'!S520)","v":""},{"$f":"IF('1. Ordersheet'!V520=\"\",\"\",'1. Ordersheet'!V520)","v":""},{"$f":"IF('1. Ordersheet'!W520=\"\",\"\",'1. Ordersheet'!W520)","v":""},{"$f":"IF('1. Ordersheet'!X520=\"\",\"\",'1. Ordersheet'!X520)","v":""},{"$f":"IF('1. Ordersheet'!Y520=\"\",\"\",'1. Ordersheet'!Y520)","v":""},{"$f":"IF('1. Ordersheet'!Z520=\"\",\"\",'1. Ordersheet'!Z520)","v":""},{"$f":"IF('1. Ordersheet'!AA520=\"\",\"\",'1. Ordersheet'!AA520)","v":""},null,{"$f":"IF('1. Ordersheet'!AS520=\"\",\"\",'1. Ordersheet'!AS520)","v":""},{"$f":"IF('1. Ordersheet'!AT520=\"\",\"\",'1. Ordersheet'!AT520)","v":""},null,null,null,null,null,null,null,{"$f":"IF('1. Ordersheet'!AX520=\"\",\"\",'1. Ordersheet'!AX520)","v":""},{"$f":"IF('1. Ordersheet'!AY520=\"\",\"\",'1. Ordersheet'!AY520)","v":""},{"$f":"IF('1. Ordersheet'!AZ520=\"\",\"\",'1. Ordersheet'!AZ520)","v":""},{"$f":"IF('1. Ordersheet'!BA520=\"\",\"\",'1. Ordersheet'!BA520)","v":""},{"$f":"IF('1. Ordersheet'!BC520=\"\",\"\",'1. Ordersheet'!BC520)","v":""},{"$f":"IF('1. Ordersheet'!BD520=\"\",\"\",'1. Ordersheet'!BD520)","v":""},{"$f":"IF('1. Ordersheet'!BE520=\"\",\"\",'1. Ordersheet'!BE520)","v":""},{"$f":"IF('1. Ordersheet'!BF520=\"\",\"\",'1. Ordersheet'!BF520)","v":""},{"$f":"IF('1. Ordersheet'!BG520=\"\",\"\",'1. Ordersheet'!BG520)","v":"ZWO"},{"$f":"IF('1. Ordersheet'!BH520=\"\",\"\",'1. Ordersheet'!BH520)","v":""},{"$f":"IF('1. Ordersheet'!BI520=\"\",\"\",'1. Ordersheet'!BI520)","v":""},{"$f":"IF('1. Ordersheet'!BJ520=\"\",\"\",'1. Ordersheet'!BJ520)","v":""},{"$f":"IF('1. Ordersheet'!BK520=\"\",\"\",'1. Ordersheet'!BK520)","v":""},{"$f":"IF('1. Ordersheet'!BL520=\"\",\"\",'1. Ordersheet'!BL520)","v":""}]
[{"$f":"IF('1. Ordersheet'!F521=\"\",\"\",'1. Ordersheet'!F521)","v":""},{"$f":"IF('1. Ordersheet'!G521=\"\",\"\",'1. Ordersheet'!G521)","v":""},{"$f":"IF('1. Ordersheet'!H521=\"\",\"\",'1. Ordersheet'!H521)","v":""},{"$f":"IF('1. Ordersheet'!I521=\"\",\"\",'1. Ordersheet'!I521)","v":""},{"$f":"IF('1. Ordersheet'!J521=\"\",\"\",'1. Ordersheet'!J521)","v":""},{"$f":"IF('1. Ordersheet'!K521=\"\",\"\",'1. Ordersheet'!K521)","v":""},{"$f":"IF('1. Ordersheet'!L521=\"\",\"\",'1. Ordersheet'!L521)","v":""},{"$f":"IF('1. Ordersheet'!M521=\"\",\"\",'1. Ordersheet'!M521)","v":""},{"$f":"IF('1. Ordersheet'!N521=\"\",\"\",'1. Ordersheet'!N521)","v":""},{"$f":"IF('1. Ordersheet'!O521=\"\",\"\",'1. Ordersheet'!O521)","v":{"$error":"#N/A"}},{"$f":"IF('1. Ordersheet'!P521=\"\",\"\",'1. Ordersheet'!P521)","v":{"$error":"#N/A"}},{"$f":"IF('1. Ordersheet'!Q521=\"\",\"\",'1. Ordersheet'!Q521)","v":""},{"$f":"IF('1. Ordersheet'!R521=\"\",\"\",'1. Ordersheet'!R521)","v":""},{"$f":"IF('1. Ordersheet'!S521=\"\",\"\",'1. Ordersheet'!S521)","v":""},{"$f":"IF('1. Ordersheet'!V521=\"\",\"\",'1. Ordersheet'!V521)","v":""},{"$f":"IF('1. Ordersheet'!W521=\"\",\"\",'1. Ordersheet'!W521)","v":""},{"$f":"IF('1. Ordersheet'!X521=\"\",\"\",'1. Ordersheet'!X521)","v":""},{"$f":"IF('1. Ordersheet'!Y521=\"\",\"\",'1. Ordersheet'!Y521)","v":""},{"$f":"IF('1. Ordersheet'!Z521=\"\",\"\",'1. Ordersheet'!Z521)","v":""},{"$f":"IF('1. Ordersheet'!AA521=\"\",\"\",'1. Ordersheet'!AA521)","v":""},null,{"$f":"IF('1. Ordersheet'!AS521=\"\",\"\",'1. Ordersheet'!AS521)","v":""},{"$f":"IF('1. Ordersheet'!AT521=\"\",\"\",'1. Ordersheet'!AT521)","v":""},null,null,null,null,null,null,null,{"$f":"IF('1. Ordersheet'!AX521=\"\",\"\",'1. Ordersheet'!AX521)","v":""},{"$f":"IF('1. Ordersheet'!AY521=\"\",\"\",'1. Ordersheet'!AY521)","v":""},{"$f":"IF('1. Ordersheet'!AZ521=\"\",\"\",'1. Ordersheet'!AZ521)","v":""},{"$f":"IF('1. Ordersheet'!BA521=\"\",\"\",'1. Ordersheet'!BA521)","v":""},{"$f":"IF('1. Ordersheet'!BC521=\"\",\"\",'1. Ordersheet'!BC521)","v":""},{"$f":"IF('1. Ordersheet'!BD521=\"\",\"\",'1. Ordersheet'!BD521)","v":""},{"$f":"IF('1. Ordersheet'!BE521=\"\",\"\",'1. Ordersheet'!BE521)","v":""},{"$f":"IF('1. Ordersheet'!BF521=\"\",\"\",'1. Ordersheet'!BF521)","v":""},{"$f":"IF('1. Ordersheet'!BG521=\"\",\"\",'1. Ordersheet'!BG521)","v":"ZWO"},{"$f":"IF('1. Ordersheet'!BH521=\"\",\"\",'1. Ordersheet'!BH521)","v":""},{"$f":"IF('1. Ordersheet'!BI521=\"\",\"\",'1. Ordersheet'!BI521)","v":""},{"$f":"IF('1. Ordersheet'!BJ521=\"\",\"\",'1. Ordersheet'!BJ521)","v":""},{"$f":"IF('1. Ordersheet'!BK521=\"\",\"\",'1. Ordersheet'!BK521)","v":""},{"$f":"IF('1. Ordersheet'!BL521=\"\",\"\",'1. Ordersheet'!BL521)","v":""}]
[{"$f":"IF('1. Ordersheet'!F522=\"\",\"\",'1. Ordersheet'!F522)","v":""},{"$f":"IF('1. Ordersheet'!G522=\"\",\"\",'1. Ordersheet'!G522)","v":""},{"$f":"IF('1. Ordersheet'!H522=\"\",\"\",'1. Ordersheet'!H522)","v":""},{"$f":"IF('1. Ordersheet'!I522=\"\",\"\",'1. Ordersheet'!I522)","v":""},{"$f":"IF('1. Ordersheet'!J522=\"\",\"\",'1. Ordersheet'!J522)","v":""},{"$f":"IF('1. Ordersheet'!K522=\"\",\"\",'1. Ordersheet'!K522)","v":""},{"$f":"IF('1. Ordersheet'!L522=\"\",\"\",'1. Ordersheet'!L522)","v":""},{"$f":"IF('1. Ordersheet'!M522=\"\",\"\",'1. Ordersheet'!M522)","v":""},{"$f":"IF('1. Ordersheet'!N522=\"\",\"\",'1. Ordersheet'!N522)","v":""},{"$f":"IF('1. Ordersheet'!O522=\"\",\"\",'1. Ordersheet'!O522)","v":{"$error":"#N/A"}},{"$f":"IF('1. Ordersheet'!P522=\"\",\"\",'1. Ordersheet'!P522)","v":{"$error":"#N/A"}},{"$f":"IF('1. Ordersheet'!Q522=\"\",\"\",'1. Ordersheet'!Q522)","v":""},{"$f":"IF('1. Ordersheet'!R522=\"\",\"\",'1. Ordersheet'!R522)","v":""},{"$f":"IF('1. Ordersheet'!S522=\"\",\"\",'1. Ordersheet'!S522)","v":""},{"$f":"IF('1. Ordersheet'!V522=\"\",\"\",'1. Ordersheet'!V522)","v":""},{"$f":"IF('1. Ordersheet'!W522=\"\",\"\",'1. Ordersheet'!W522)","v":""},{"$f":"IF('1. Ordersheet'!X522=\"\",\"\",'1. Ordersheet'!X522)","v":""},{"$f":"IF('1. Ordersheet'!Y522=\"\",\"\",'1. Ordersheet'!Y522)","v":""},{"$f":"IF('1. Ordersheet'!Z522=\"\",\"\",'1. Ordersheet'!Z522)","v":""},{"$f":"IF('1. Ordersheet'!AA522=\"\",\"\",'1. Ordersheet'!AA522)","v":""},null,{"$f":"IF('1. Ordersheet'!AS522=\"\",\"\",'1. Ordersheet'!AS522)","v":""},{"$f":"IF('1. Ordersheet'!AT522=\"\",\"\",'1. Ordersheet'!AT522)","v":""},null,null,null,null,null,null,null,{"$f":"IF('1. Ordersheet'!AX522=\"\",\"\",'1. Ordersheet'!AX522)","v":""},{"$f":"IF('1. Ordersheet'!AY522=\"\",\"\",'1. Ordersheet'!AY522)","v":""},{"$f":"IF('1. Ordersheet'!AZ522=\"\",\"\",'1. Ordersheet'!AZ522)","v":""},{"$f":"IF('1. Ordersheet'!BA522=\"\",\"\",'1. Ordersheet'!BA522)","v":""},{"$f":"IF('1. Ordersheet'!BC522=\"\",\"\",'1. Ordersheet'!BC522)","v":""},{"$f":"IF('1. Ordersheet'!BD522=\"\",\"\",'1. Ordersheet'!BD522)","v":""},{"$f":"IF('1. Ordersheet'!BE522=\"\",\"\",'1. Ordersheet'!BE522)","v":""},{"$f":"IF('1. Ordersheet'!BF522=\"\",\"\",'1. Ordersheet'!BF522)","v":""},{"$f":"IF('1. Ordersheet'!BG522=\"\",\"\",'1. Ordersheet'!BG522)","v":"ZWO"},{"$f":"IF('1. Ordersheet'!BH522=\"\",\"\",'1. Ordersheet'!BH522)","v":""},{"$f":"IF('1. Ordersheet'!BI522=\"\",\"\",'1. Ordersheet'!BI522)","v":""},{"$f":"IF('1. Ordersheet'!BJ522=\"\",\"\",'1. Ordersheet'!BJ522)","v":""},{"$f":"IF('1. Ordersheet'!BK522=\"\",\"\",'1. Ordersheet'!BK522)","v":""},{"$f":"IF('1. Ordersheet'!BL522=\"\",\"\",'1. Ordersheet'!BL522)","v":""}]
[{"$f":"IF('1. Ordersheet'!F523=\"\",\"\",'1. Ordersheet'!F523)","v":""},{"$f":"IF('1. Ordersheet'!G523=\"\",\"\",'1. Ordersheet'!G523)","v":""},{"$f":"IF('1. Ordersheet'!H523=\"\",\"\",'1. Ordersheet'!H523)","v":""},{"$f":"IF('1. Ordersheet'!I523=\"\",\"\",'1. Ordersheet'!I523)","v":""},{"$f":"IF('1. Ordersheet'!J523=\"\",\"\",'1. Ordersheet'!J523)","v":""},{"$f":"IF('1. Ordersheet'!K523=\"\",\"\",'1. Ordersheet'!K523)","v":""},{"$f":"IF('1. Ordersheet'!L523=\"\",\"\",'1. Ordersheet'!L523)","v":""},{"$f":"IF('1. Ordersheet'!M523=\"\",\"\",'1. Ordersheet'!M523)","v":""},{"$f":"IF('1. Ordersheet'!N523=\"\",\"\",'1. Ordersheet'!N523)","v":""},{"$f":"IF('1. Ordersheet'!O523=\"\",\"\",'1. Ordersheet'!O523)","v":{"$error":"#N/A"}},{"$f":"IF('1. Ordersheet'!P523=\"\",\"\",'1. Ordersheet'!P523)","v":{"$error":"#N/A"}},{"$f":"IF('1. Ordersheet'!Q523=\"\",\"\",'1. Ordersheet'!Q523)","v":""},{"$f":"IF('1. Ordersheet'!R523=\"\",\"\",'1. Ordersheet'!R523)","v":""},{"$f":"IF('1. Ordersheet'!S523=\"\",\"\",'1. Ordersheet'!S523)","v":""},{"$f":"IF('1. Ordersheet'!V523=\"\",\"\",'1. Ordersheet'!V523)","v":""},{"$f":"IF('1. Ordersheet'!W523=\"\",\"\",'1. Ordersheet'!W523)","v":""},{"$f":"IF('1. Ordersheet'!X523=\"\",\"\",'1. Ordersheet'!X523)","v":""},{"$f":"IF('1. Ordersheet'!Y523=\"\",\"\",'1. Ordersheet'!Y523)","v":""},{"$f":"IF('1. Ordersheet'!Z523=\"\",\"\",'1. Ordersheet'!Z523)","v":""},{"$f":"IF('1. Ordersheet'!AA523=\"\",\"\",'1. Ordersheet'!AA523)","v":""},null,{"$f":"IF('1. Ordersheet'!AS523=\"\",\"\",'1. Ordersheet'!AS523)","v":""},{"$f":"IF('1. Ordersheet'!AT523=\"\",\"\",'1. Ordersheet'!AT523)","v":""},null,null,null,null,null,null,null,{"$f":"IF('1. Ordersheet'!AX523=\"\",\"\",'1. Ordersheet'!AX523)","v":""},{"$f":"IF('1. Ordersheet'!AY523=\"\",\"\",'1. Ordersheet'!AY523)","v":""},{"$f":"IF('1. Ordersheet'!AZ523=\"\",\"\",'1. Ordersheet'!AZ523)","v":""},{"$f":"IF('1. Ordersheet'!BA523=\"\",\"\",'1. Ordersheet'!BA523)","v":""},{"$f":"IF('1. Ordersheet'!BC523=\"\",\"\",'1. Ordersheet'!BC523)","v":""},{"$f":"IF('1. Ordersheet'!BD523=\"\",\"\",'1. Ordersheet'!BD523)","v":""},{"$f":"IF('1. Ordersheet'!BE523=\"\",\"\",'1. Ordersheet'!BE523)","v":""},{"$f":"IF('1. Ordersheet'!BF523=\"\",\"\",'1. Ordersheet'!BF523)","v":""},{"$f":"IF('1. Ordersheet'!BG523=\"\",\"\",'1. Ordersheet'!BG523)","v":"ZWO"},{"$f":"IF('1. Ordersheet'!BH523=\"\",\"\",'1. Ordersheet'!BH523)","v":""},{"$f":"IF('1. Ordersheet'!BI523=\"\",\"\",'1. Ordersheet'!BI523)","v":""},{"$f":"IF('1. Ordersheet'!BJ523=\"\",\"\",'1. Ordersheet'!BJ523)","v":""},{"$f":"IF('1. Ordersheet'!BK523=\"\",\"\",'1. Ordersheet'!BK523)","v":""},{"$f":"IF('1. Ordersheet'!BL523=\"\",\"\",'1. Ordersheet'!BL523)","v":""}]
[{"$f":"IF('1. Ordersheet'!F524=\"\",\"\",'1. Ordersheet'!F524)","v":""},{"$f":"IF('1. Ordersheet'!G524=\"\",\"\",'1. Ordersheet'!G524)","v":""},{"$f":"IF('1. Ordersheet'!H524=\"\",\"\",'1. Ordersheet'!H524)","v":""},{"$f":"IF('1. Ordersheet'!I524=\"\",\"\",'1. Ordersheet'!I524)","v":""},{"$f":"IF('1. Ordersheet'!J524=\"\",\"\",'1. Ordersheet'!J524)","v":""},{"$f":"IF('1. Ordersheet'!K524=\"\",\"\",'1. Ordersheet'!K524)","v":""},{"$f":"IF('1. Ordersheet'!L524=\"\",\"\",'1. Ordersheet'!L524)","v":""},{"$f":"IF('1. Ordersheet'!M524=\"\",\"\",'1. Ordersheet'!M524)","v":""},{"$f":"IF('1. Ordersheet'!N524=\"\",\"\",'1. Ordersheet'!N524)","v":""},{"$f":"IF('1. Ordersheet'!O524=\"\",\"\",'1. Ordersheet'!O524)","v":{"$error":"#N/A"}},{"$f":"IF('1. Ordersheet'!P524=\"\",\"\",'1. Ordersheet'!P524)","v":{"$error":"#N/A"}},{"$f":"IF('1. Ordersheet'!Q524=\"\",\"\",'1. Ordersheet'!Q524)","v":""},{"$f":"IF('1. Ordersheet'!R524=\"\",\"\",'1. Ordersheet'!R524)","v":""},{"$f":"IF('1. Ordersheet'!S524=\"\",\"\",'1. Ordersheet'!S524)","v":""},{"$f":"IF('1. Ordersheet'!V524=\"\",\"\",'1. Ordersheet'!V524)","v":""},{"$f":"IF('1. Ordersheet'!W524=\"\",\"\",'1. Ordersheet'!W524)","v":""},{"$f":"IF('1. Ordersheet'!X524=\"\",\"\",'1. Ordersheet'!X524)","v":""},{"$f":"IF('1. Ordersheet'!Y524=\"\",\"\",'1. Ordersheet'!Y524)","v":""},{"$f":"IF('1. Ordersheet'!Z524=\"\",\"\",'1. Ordersheet'!Z524)","v":""},{"$f":"IF('1. Ordersheet'!AA524=\"\",\"\",'1. Ordersheet'!AA524)","v":""},null,{"$f":"IF('1. Ordersheet'!AS524=\"\",\"\",'1. Ordersheet'!AS524)","v":""},{"$f":"IF('1. Ordersheet'!AT524=\"\",\"\",'1. Ordersheet'!AT524)","v":""},null,null,null,null,null,null,null,{"$f":"IF('1. Ordersheet'!AX524=\"\",\"\",'1. Ordersheet'!AX524)","v":""},{"$f":"IF('1. Ordersheet'!AY524=\"\",\"\",'1. Ordersheet'!AY524)","v":""},{"$f":"IF('1. Ordersheet'!AZ524=\"\",\"\",'1. Ordersheet'!AZ524)","v":""},{"$f":"IF('1. Ordersheet'!BA524=\"\",\"\",'1. Ordersheet'!BA524)","v":""},{"$f":"IF('1. Ordersheet'!BC524=\"\",\"\",'1. Ordersheet'!BC524)","v":""},{"$f":"IF('1. Ordersheet'!BD524=\"\",\"\",'1. Ordersheet'!BD524)","v":""},{"$f":"IF('1. Ordersheet'!BE524=\"\",\"\",'1. Ordersheet'!BE524)","v":""},{"$f":"IF('1. Ordersheet'!BF524=\"\",\"\",'1. Ordersheet'!BF524)","v":""},{"$f":"IF('1. Ordersheet'!BG524=\"\",\"\",'1. Ordersheet'!BG524)","v":"ZWO"},{"$f":"IF('1. Ordersheet'!BH524=\"\",\"\",'1. Ordersheet'!BH524)","v":""},{"$f":"IF('1. Ordersheet'!BI524=\"\",\"\",'1. Ordersheet'!BI524)","v":""},{"$f":"IF('1. Ordersheet'!BJ524=\"\",\"\",'1. Ordersheet'!BJ524)","v":""},{"$f":"IF('1. Ordersheet'!BK524=\"\",\"\",'1. Ordersheet'!BK524)","v":""},{"$f":"IF('1. Ordersheet'!BL524=\"\",\"\",'1. Ordersheet'!BL524)","v":""}]
[{"$f":"IF('1. Ordersheet'!F525=\"\",\"\",'1. Ordersheet'!F525)","v":""},{"$f":"IF('1. Ordersheet'!G525=\"\",\"\",'1. Ordersheet'!G525)","v":""},{"$f":"IF('1. Ordersheet'!H525=\"\",\"\",'1. Ordersheet'!H525)","v":""},{"$f":"IF('1. Ordersheet'!I525=\"\",\"\",'1. Ordersheet'!I525)","v":""},{"$f":"IF('1. Ordersheet'!J525=\"\",\"\",'1. Ordersheet'!J525)","v":""},{"$f":"IF('1. Ordersheet'!K525=\"\",\"\",'1. Ordersheet'!K525)","v":""},{"$f":"IF('1. Ordersheet'!L525=\"\",\"\",'1. Ordersheet'!L525)","v":""},{"$f":"IF('1. Ordersheet'!M525=\"\",\"\",'1. Ordersheet'!M525)","v":""},{"$f":"IF('1. Ordersheet'!N525=\"\",\"\",'1. Ordersheet'!N525)","v":""},{"$f":"IF('1. Ordersheet'!O525=\"\",\"\",'1. Ordersheet'!O525)","v":{"$error":"#N/A"}},{"$f":"IF('1. Ordersheet'!P525=\"\",\"\",'1. Ordersheet'!P525)","v":{"$error":"#N/A"}},{"$f":"IF('1. Ordersheet'!Q525=\"\",\"\",'1. Ordersheet'!Q525)","v":""},{"$f":"IF('1. Ordersheet'!R525=\"\",\"\",'1. Ordersheet'!R525)","v":""},{"$f":"IF('1. Ordersheet'!S525=\"\",\"\",'1. Ordersheet'!S525)","v":""},{"$f":"IF('1. Ordersheet'!V525=\"\",\"\",'1. Ordersheet'!V525)","v":""},{"$f":"IF('1. Ordersheet'!W525=\"\",\"\",'1. Ordersheet'!W525)","v":""},{"$f":"IF('1. Ordersheet'!X525=\"\",\"\",'1. Ordersheet'!X525)","v":""},{"$f":"IF('1. Ordersheet'!Y525=\"\",\"\",'1. Ordersheet'!Y525)","v":""},{"$f":"IF('1. Ordersheet'!Z525=\"\",\"\",'1. Ordersheet'!Z525)","v":""},{"$f":"IF('1. Ordersheet'!AA525=\"\",\"\",'1. Ordersheet'!AA525)","v":""},null,{"$f":"IF('1. Ordersheet'!AS525=\"\",\"\",'1. Ordersheet'!AS525)","v":""},{"$f":"IF('1. Ordersheet'!AT525=\"\",\"\",'1. Ordersheet'!AT525)","v":""},null,null,null,null,null,null,null,{"$f":"IF('1. Ordersheet'!AX525=\"\",\"\",'1. Ordersheet'!AX525)","v":""},{"$f":"IF('1. Ordersheet'!AY525=\"\",\"\",'1. Ordersheet'!AY525)","v":""},{"$f":"IF('1. Ordersheet'!AZ525=\"\",\"\",'1. Ordersheet'!AZ525)","v":""},{"$f":"IF('1. Ordersheet'!BA525=\"\",\"\",'1. Ordersheet'!BA525)","v":""},{"$f":"IF('1. Ordersheet'!BC525=\"\",\"\",'1. Ordersheet'!BC525)","v":""},{"$f":"IF('1. Ordersheet'!BD525=\"\",\"\",'1. Ordersheet'!BD525)","v":""},{"$f":"IF('1. Ordersheet'!BE525=\"\",\"\",'1. Ordersheet'!BE525)","v":""},{"$f":"IF('1. Ordersheet'!BF525=\"\",\"\",'1. Ordersheet'!BF525)","v":""},{"$f":"IF('1. Ordersheet'!BG525=\"\",\"\",'1. Ordersheet'!BG525)","v":"ZWO"},{"$f":"IF('1. Ordersheet'!BH525=\"\",\"\",'1. Ordersheet'!BH525)","v":""},{"$f":"IF('1. Ordersheet'!BI525=\"\",\"\",'1. Ordersheet'!BI525)","v":""},{"$f":"IF('1. Ordersheet'!BJ525=\"\",\"\",'1. Ordersheet'!BJ525)","v":""},{"$f":"IF('1. Ordersheet'!BK525=\"\",\"\",'1. Ordersheet'!BK525)","v":""},{"$f":"IF('1. Ordersheet'!BL525=\"\",\"\",'1. Ordersheet'!BL525)","v":""}]
[{"$f":"IF('1. Ordersheet'!F526=\"\",\"\",'1. Ordersheet'!F526)","v":""},{"$f":"IF('1. Ordersheet'!G526=\"\",\"\",'1. Ordersheet'!G526)","v":""},{"$f":"IF('1. Ordersheet'!H526=\"\",\"\",'1. Ordersheet'!H526)","v":""},{"$f":"IF('1. Ordersheet'!I526=\"\",\"\",'1. Ordersheet'!I526)","v":""},{"$f":"IF('1. Ordersheet'!J526=\"\",\"\",'1. Ordersheet'!J526)","v":""},{"$f":"IF('1. Ordersheet'!K526=\"\",\"\",'1. Ordersheet'!K526)","v":""},{"$f":"IF('1. Ordersheet'!L526=\"\",\"\",'1. Ordersheet'!L526)","v":""},{"$f":"IF('1. Ordersheet'!M526=\"\",\"\",'1. Ordersheet'!M526)","v":""},{"$f":"IF('1. Ordersheet'!N526=\"\",\"\",'1. Ordersheet'!N526)","v":""},{"$f":"IF('1. Ordersheet'!O526=\"\",\"\",'1. Ordersheet'!O526)","v":{"$error":"#N/A"}},{"$f":"IF('1. Ordersheet'!P526=\"\",\"\",'1. Ordersheet'!P526)","v":{"$error":"#N/A"}},{"$f":"IF('1. Ordersheet'!Q526=\"\",\"\",'1. Ordersheet'!Q526)","v":""},{"$f":"IF('1. Ordersheet'!R526=\"\",\"\",'1. Ordersheet'!R526)","v":""},{"$f":"IF('1. Ordersheet'!S526=\"\",\"\",'1. Ordersheet'!S526)","v":""},{"$f":"IF('1. Ordersheet'!V526=\"\",\"\",'1. Ordersheet'!V526)","v":""},{"$f":"IF('1. Ordersheet'!W526=\"\",\"\",'1. Ordersheet'!W526)","v":""},{"$f":"IF('1. Ordersheet'!X526=\"\",\"\",'1. Ordersheet'!X526)","v":""},{"$f":"IF('1. Ordersheet'!Y526=\"\",\"\",'1. Ordersheet'!Y526)","v":""},{"$f":"IF('1. Ordersheet'!Z526=\"\",\"\",'1. Ordersheet'!Z526)","v":""},{"$f":"IF('1. Ordersheet'!AA526=\"\",\"\",'1. Ordersheet'!AA526)","v":""},null,{"$f":"IF('1. Ordersheet'!AS526=\"\",\"\",'1. Ordersheet'!AS526)","v":""},{"$f":"IF('1. Ordersheet'!AT526=\"\",\"\",'1. Ordersheet'!AT526)","v":""},null,null,null,null,null,null,null,{"$f":"IF('1. Ordersheet'!AX526=\"\",\"\",'1. Ordersheet'!AX526)","v":""},{"$f":"IF('1. Ordersheet'!AY526=\"\",\"\",'1. Ordersheet'!AY526)","v":""},{"$f":"IF('1. Ordersheet'!AZ526=\"\",\"\",'1. Ordersheet'!AZ526)","v":""},{"$f":"IF('1. Ordersheet'!BA526=\"\",\"\",'1. Ordersheet'!BA526)","v":""},{"$f":"IF('1. Ordersheet'!BC526=\"\",\"\",'1. Ordersheet'!BC526)","v":""},{"$f":"IF('1. Ordersheet'!BD526=\"\",\"\",'1. Ordersheet'!BD526)","v":""},{"$f":"IF('1. Ordersheet'!BE526=\"\",\"\",'1. Ordersheet'!BE526)","v":""},{"$f":"IF('1. Ordersheet'!BF526=\"\",\"\",'1. Ordersheet'!BF526)","v":""},{"$f":"IF('1. Ordersheet'!BG526=\"\",\"\",'1. Ordersheet'!BG526)","v":"ZWO"},{"$f":"IF('1. Ordersheet'!BH526=\"\",\"\",'1. Ordersheet'!BH526)","v":""},{"$f":"IF('1. Ordersheet'!BI526=\"\",\"\",'1. Ordersheet'!BI526)","v":""},{"$f":"IF('1. Ordersheet'!BJ526=\"\",\"\",'1. Ordersheet'!BJ526)","v":""},{"$f":"IF('1. Ordersheet'!BK526=\"\",\"\",'1. Ordersheet'!BK526)","v":""},{"$f":"IF('1. Ordersheet'!BL526=\"\",\"\",'1. Ordersheet'!BL526)","v":""}]
[{"$f":"IF('1. Ordersheet'!F527=\"\",\"\",'1. Ordersheet'!F527)","v":""},{"$f":"IF('1. Ordersheet'!G527=\"\",\"\",'1. Ordersheet'!G527)","v":""},{"$f":"IF('1. Ordersheet'!H527=\"\",\"\",'1. Ordersheet'!H527)","v":""},{"$f":"IF('1. Ordersheet'!I527=\"\",\"\",'1. Ordersheet'!I527)","v":""},{"$f":"IF('1. Ordersheet'!J527=\"\",\"\",'1. Ordersheet'!J527)","v":""},{"$f":"IF('1. Ordersheet'!K527=\"\",\"\",'1. Ordersheet'!K527)","v":""},{"$f":"IF('1. Ordersheet'!L527=\"\",\"\",'1. Ordersheet'!L527)","v":""},{"$f":"IF('1. Ordersheet'!M527=\"\",\"\",'1. Ordersheet'!M527)","v":""},{"$f":"IF('1. Ordersheet'!N527=\"\",\"\",'1. Ordersheet'!N527)","v":""},{"$f":"IF('1. Ordersheet'!O527=\"\",\"\",'1. Ordersheet'!O527)","v":{"$error":"#N/A"}},{"$f":"IF('1. Ordersheet'!P527=\"\",\"\",'1. Ordersheet'!P527)","v":{"$error":"#N/A"}},{"$f":"IF('1. Ordersheet'!Q527=\"\",\"\",'1. Ordersheet'!Q527)","v":""},{"$f":"IF('1. Ordersheet'!R527=\"\",\"\",'1. Ordersheet'!R527)","v":""},{"$f":"IF('1. Ordersheet'!S527=\"\",\"\",'1. Ordersheet'!S527)","v":""},{"$f":"IF('1. Ordersheet'!V527=\"\",\"\",'1. Ordersheet'!V527)","v":""},{"$f":"IF('1. Ordersheet'!W527=\"\",\"\",'1. Ordersheet'!W527)","v":""},{"$f":"IF('1. Ordersheet'!X527=\"\",\"\",'1. Ordersheet'!X527)","v":""},{"$f":"IF('1. Ordersheet'!Y527=\"\",\"\",'1. Ordersheet'!Y527)","v":""},{"$f":"IF('1. Ordersheet'!Z527=\"\",\"\",'1. Ordersheet'!Z527)","v":""},{"$f":"IF('1. Ordersheet'!AA527=\"\",\"\",'1. Ordersheet'!AA527)","v":""},null,{"$f":"IF('1. Ordersheet'!AS527=\"\",\"\",'1. Ordersheet'!AS527)","v":""},{"$f":"IF('1. Ordersheet'!AT527=\"\",\"\",'1. Ordersheet'!AT527)","v":""},null,null,null,null,null,null,null,{"$f":"IF('1. Ordersheet'!AX527=\"\",\"\",'1. Ordersheet'!AX527)","v":""},{"$f":"IF('1. Ordersheet'!AY527=\"\",\"\",'1. Ordersheet'!AY527)","v":""},{"$f":"IF('1. Ordersheet'!AZ527=\"\",\"\",'1. Ordersheet'!AZ527)","v":""},{"$f":"IF('1. Ordersheet'!BA527=\"\",\"\",'1. Ordersheet'!BA527)","v":""},{"$f":"IF('1. Ordersheet'!BC527=\"\",\"\",'1. Ordersheet'!BC527)","v":""},{"$f":"IF('1. Ordersheet'!BD527=\"\",\"\",'1. Ordersheet'!BD527)","v":""},{"$f":"IF('1. Ordersheet'!BE527=\"\",\"\",'1. Ordersheet'!BE527)","v":""},{"$f":"IF('1. Ordersheet'!BF527=\"\",\"\",'1. Ordersheet'!BF527)","v":""},{"$f":"IF('1. Ordersheet'!BG527=\"\",\"\",'1. Ordersheet'!BG527)","v":"ZWO"},{"$f":"IF('1. Ordersheet'!BH527=\"\",\"\",'1. Ordersheet'!BH527)","v":""},{"$f":"IF('1. Ordersheet'!BI527=\"\",\"\",'1. Ordersheet'!BI527)","v":""},{"$f":"IF('1. Ordersheet'!BJ527=\"\",\"\",'1. Ordersheet'!BJ527)","v":""},{"$f":"IF('1. Ordersheet'!BK527=\"\",\"\",'1. Ordersheet'!BK527)","v":""},{"$f":"IF('1. Ordersheet'!BL527=\"\",\"\",'1. Ordersheet'!BL527)","v":""}]
[{"$f":"IF('1. Ordersheet'!F528=\"\",\"\",'1. Ordersheet'!F528)","v":""},{"$f":"IF('1. Ordersheet'!G528=\"\",\"\",'1. Ordersheet'!G528)","v":""},{"$f":"IF('1. Ordersheet'!H528=\"\",\"\",'1. Ordersheet'!H528)","v":""},{"$f":"IF('1. Ordersheet'!I528=\"\",\"\",'1. Ordersheet'!I528)","v":""},{"$f":"IF('1. Ordersheet'!J528=\"\",\"\",'1. Ordersheet'!J528)","v":""},{"$f":"IF('1. Ordersheet'!K528=\"\",\"\",'1. Ordersheet'!K528)","v":""},{"$f":"IF('1. Ordersheet'!L528=\"\",\"\",'1. Ordersheet'!L528)","v":""},{"$f":"IF('1. Ordersheet'!M528=\"\",\"\",'1. Ordersheet'!M528)","v":""},{"$f":"IF('1. Ordersheet'!N528=\"\",\"\",'1. Ordersheet'!N528)","v":""},{"$f":"IF('1. Ordersheet'!O528=\"\",\"\",'1. Ordersheet'!O528)","v":{"$error":"#N/A"}},{"$f":"IF('1. Ordersheet'!P528=\"\",\"\",'1. Ordersheet'!P528)","v":{"$error":"#N/A"}},{"$f":"IF('1. Ordersheet'!Q528=\"\",\"\",'1. Ordersheet'!Q528)","v":""},{"$f":"IF('1. Ordersheet'!R528=\"\",\"\",'1. Ordersheet'!R528)","v":""},{"$f":"IF('1. Ordersheet'!S528=\"\",\"\",'1. Ordersheet'!S528)","v":""},{"$f":"IF('1. Ordersheet'!V528=\"\",\"\",'1. Ordersheet'!V528)","v":""},{"$f":"IF('1. Ordersheet'!W528=\"\",\"\",'1. Ordersheet'!W528)","v":""},{"$f":"IF('1. Ordersheet'!X528=\"\",\"\",'1. Ordersheet'!X528)","v":""},{"$f":"IF('1. Ordersheet'!Y528=\"\",\"\",'1. Ordersheet'!Y528)","v":""},{"$f":"IF('1. Ordersheet'!Z528=\"\",\"\",'1. Ordersheet'!Z528)","v":""},{"$f":"IF('1. Ordersheet'!AA528=\"\",\"\",'1. Ordersheet'!AA528)","v":""},null,{"$f":"IF('1. Ordersheet'!AS528=\"\",\"\",'1. Ordersheet'!AS528)","v":""},{"$f":"IF('1. Ordersheet'!AT528=\"\",\"\",'1. Ordersheet'!AT528)","v":""},null,null,null,null,null,null,null,{"$f":"IF('1. Ordersheet'!AX528=\"\",\"\",'1. Ordersheet'!AX528)","v":""},{"$f":"IF('1. Ordersheet'!AY528=\"\",\"\",'1. Ordersheet'!AY528)","v":""},{"$f":"IF('1. Ordersheet'!AZ528=\"\",\"\",'1. Ordersheet'!AZ528)","v":""},{"$f":"IF('1. Ordersheet'!BA528=\"\",\"\",'1. Ordersheet'!BA528)","v":""},{"$f":"IF('1. Ordersheet'!BC528=\"\",\"\",'1. Ordersheet'!BC528)","v":""},{"$f":"IF('1. Ordersheet'!BD528=\"\",\"\",'1. Ordersheet'!BD528)","v":""},{"$f":"IF('1. Ordersheet'!BE528=\"\",\"\",'1. Ordersheet'!BE528)","v":""},{"$f":"IF('1. Ordersheet'!BF528=\"\",\"\",'1. Ordersheet'!BF528)","v":""},{"$f":"IF('1. Ordersheet'!BG528=\"\",\"\",'1. Ordersheet'!BG528)","v":"ZWO"},{"$f":"IF('1. Ordersheet'!BH528=\"\",\"\",'1. Ordersheet'!BH528)","v":""},{"$f":"IF('1. Ordersheet'!BI528=\"\",\"\",'1. Ordersheet'!BI528)","v":""},{"$f":"IF('1. Ordersheet'!BJ528=\"\",\"\",'1. Ordersheet'!BJ528)","v":""},{"$f":"IF('1. Ordersheet'!BK528=\"\",\"\",'1. Ordersheet'!BK528)","v":""},{"$f":"IF('1. Ordersheet'!BL528=\"\",\"\",'1. Ordersheet'!BL528)","v":""}]
[{"$f":"IF('1. Ordersheet'!F529=\"\",\"\",'1. Ordersheet'!F529)","v":""},{"$f":"IF('1. Ordersheet'!G529=\"\",\"\",'1. Ordersheet'!G529)","v":""},{"$f":"IF('1. Ordersheet'!H529=\"\",\"\",'1. Ordersheet'!H529)","v":""},{"$f":"IF('1. Ordersheet'!I529=\"\",\"\",'1. Ordersheet'!I529)","v":""},{"$f":"IF('1. Ordersheet'!J529=\"\",\"\",'1. Ordersheet'!J529)","v":""},{"$f":"IF('1. Ordersheet'!K529=\"\",\"\",'1. Ordersheet'!K529)","v":""},{"$f":"IF('1. Ordersheet'!L529=\"\",\"\",'1. Ordersheet'!L529)","v":""},{"$f":"IF('1. Ordersheet'!M529=\"\",\"\",'1. Ordersheet'!M529)","v":""},{"$f":"IF('1. Ordersheet'!N529=\"\",\"\",'1. Ordersheet'!N529)","v":""},{"$f":"IF('1. Ordersheet'!O529=\"\",\"\",'1. Ordersheet'!O529)","v":{"$error":"#N/A"}},{"$f":"IF('1. Ordersheet'!P529=\"\",\"\",'1. Ordersheet'!P529)","v":{"$error":"#N/A"}},{"$f":"IF('1. Ordersheet'!Q529=\"\",\"\",'1. Ordersheet'!Q529)","v":""},{"$f":"IF('1. Ordersheet'!R529=\"\",\"\",'1. Ordersheet'!R529)","v":""},{"$f":"IF('1. Ordersheet'!S529=\"\",\"\",'1. Ordersheet'!S529)","v":""},{"$f":"IF('1. Ordersheet'!V529=\"\",\"\",'1. Ordersheet'!V529)","v":""},{"$f":"IF('1. Ordersheet'!W529=\"\",\"\",'1. Ordersheet'!W529)","v":""},{"$f":"IF('1. Ordersheet'!X529=\"\",\"\",'1. Ordersheet'!X529)","v":""},{"$f":"IF('1. Ordersheet'!Y529=\"\",\"\",'1. Ordersheet'!Y529)","v":""},{"$f":"IF('1. Ordersheet'!Z529=\"\",\"\",'1. Ordersheet'!Z529)","v":""},{"$f":"IF('1. Ordersheet'!AA529=\"\",\"\",'1. Ordersheet'!AA529)","v":""},null,{"$f":"IF('1. Ordersheet'!AS529=\"\",\"\",'1. Ordersheet'!AS529)","v":""},{"$f":"IF('1. Ordersheet'!AT529=\"\",\"\",'1. Ordersheet'!AT529)","v":""},null,null,null,null,null,null,null,{"$f":"IF('1. Ordersheet'!AX529=\"\",\"\",'1. Ordersheet'!AX529)","v":""},{"$f":"IF('1. Ordersheet'!AY529=\"\",\"\",'1. Ordersheet'!AY529)","v":""},{"$f":"IF('1. Ordersheet'!AZ529=\"\",\"\",'1. Ordersheet'!AZ529)","v":""},{"$f":"IF('1. Ordersheet'!BA529=\"\",\"\",'1. Ordersheet'!BA529)","v":""},{"$f":"IF('1. Ordersheet'!BC529=\"\",\"\",'1. Ordersheet'!BC529)","v":""},{"$f":"IF('1. Ordersheet'!BD529=\"\",\"\",'1. Ordersheet'!BD529)","v":""},{"$f":"IF('1. Ordersheet'!BE529=\"\",\"\",'1. Ordersheet'!BE529)","v":""},{"$f":"IF('1. Ordersheet'!BF529=\"\",\"\",'1. Ordersheet'!BF529)","v":""},{"$f":"IF('1. Ordersheet'!BG529=\"\",\"\",'1. Ordersheet'!BG529)","v":"ZWO"},{"$f":"IF('1. Ordersheet'!BH529=\"\",\"\",'1. Ordersheet'!BH529)","v":""},{"$f":"IF('1. Ordersheet'!BI529=\"\",\"\",'1. Ordersheet'!BI529)","v":""},{"$f":"IF('1. Ordersheet'!BJ529=\"\",\"\",'1. Ordersheet'!BJ529)","v":""},{"$f":"IF('1. Ordersheet'!BK529=\"\",\"\",'1. Ordersheet'!BK529)","v":""},{"$f":"IF('1. Ordersheet'!BL529=\"\",\"\",'1. Ordersheet'!BL529)","v":""}]
[{"$f":"IF('1. Ordersheet'!F530=\"\",\"\",'1. Ordersheet'!F530)","v":""},{"$f":"IF('1. Ordersheet'!G530=\"\",\"\",'1. Ordersheet'!G530)","v":""},{"$f":"IF('1. Ordersheet'!H530=\"\",\"\",'1. Ordersheet'!H530)","v":""},{"$f":"IF('1. Ordersheet'!I530=\"\",\"\",'1. Ordersheet'!I530)","v":""},{"$f":"IF('1. Ordersheet'!J530=\"\",\"\",'1. Ordersheet'!J530)","v":""},{"$f":"IF('1. Ordersheet'!K530=\"\",\"\",'1. Ordersheet'!K530)","v":""},{"$f":"IF('1. Ordersheet'!L530=\"\",\"\",'1. Ordersheet'!L530)","v":""},{"$f":"IF('1. Ordersheet'!M530=\"\",\"\",'1. Ordersheet'!M530)","v":""},{"$f":"IF('1. Ordersheet'!N530=\"\",\"\",'1. Ordersheet'!N530)","v":""},{"$f":"IF('1. Ordersheet'!O530=\"\",\"\",'1. Ordersheet'!O530)","v":{"$error":"#N/A"}},{"$f":"IF('1. Ordersheet'!P530=\"\",\"\",'1. Ordersheet'!P530)","v":{"$error":"#N/A"}},{"$f":"IF('1. Ordersheet'!Q530=\"\",\"\",'1. Ordersheet'!Q530)","v":""},{"$f":"IF('1. Ordersheet'!R530=\"\",\"\",'1. Ordersheet'!R530)","v":""},{"$f":"IF('1. Ordersheet'!S530=\"\",\"\",'1. Ordersheet'!S530)","v":""},{"$f":"IF('1. Ordersheet'!V530=\"\",\"\",'1. Ordersheet'!V530)","v":""},{"$f":"IF('1. Ordersheet'!W530=\"\",\"\",'1. Ordersheet'!W530)","v":""},{"$f":"IF('1. Ordersheet'!X530=\"\",\"\",'1. Ordersheet'!X530)","v":""},{"$f":"IF('1. Ordersheet'!Y530=\"\",\"\",'1. Ordersheet'!Y530)","v":""},{"$f":"IF('1. Ordersheet'!Z530=\"\",\"\",'1. Ordersheet'!Z530)","v":""},{"$f":"IF('1. Ordersheet'!AA530=\"\",\"\",'1. Ordersheet'!AA530)","v":""},null,{"$f":"IF('1. Ordersheet'!AS530=\"\",\"\",'1. Ordersheet'!AS530)","v":""},{"$f":"IF('1. Ordersheet'!AT530=\"\",\"\",'1. Ordersheet'!AT530)","v":""},null,null,null,null,null,null,null,{"$f":"IF('1. Ordersheet'!AX530=\"\",\"\",'1. Ordersheet'!AX530)","v":""},{"$f":"IF('1. Ordersheet'!AY530=\"\",\"\",'1. Ordersheet'!AY530)","v":""},{"$f":"IF('1. Ordersheet'!AZ530=\"\",\"\",'1. Ordersheet'!AZ530)","v":""},{"$f":"IF('1. Ordersheet'!BA530=\"\",\"\",'1. Ordersheet'!BA530)","v":""},{"$f":"IF('1. Ordersheet'!BC530=\"\",\"\",'1. Ordersheet'!BC530)","v":""},{"$f":"IF('1. Ordersheet'!BD530=\"\",\"\",'1. Ordersheet'!BD530)","v":""},{"$f":"IF('1. Ordersheet'!BE530=\"\",\"\",'1. Ordersheet'!BE530)","v":""},{"$f":"IF('1. Ordersheet'!BF530=\"\",\"\",'1. Ordersheet'!BF530)","v":""},{"$f":"IF('1. Ordersheet'!BG530=\"\",\"\",'1. Ordersheet'!BG530)","v":"ZWO"},{"$f":"IF('1. Ordersheet'!BH530=\"\",\"\",'1. Ordersheet'!BH530)","v":""},{"$f":"IF('1. Ordersheet'!BI530=\"\",\"\",'1. Ordersheet'!BI530)","v":""},{"$f":"IF('1. Ordersheet'!BJ530=\"\",\"\",'1. Ordersheet'!BJ530)","v":""},{"$f":"IF('1. Ordersheet'!BK530=\"\",\"\",'1. Ordersheet'!BK530)","v":""},{"$f":"IF('1. Ordersheet'!BL530=\"\",\"\",'1. Ordersheet'!BL530)","v":""}]
[{"$f":"IF('1. Ordersheet'!F531=\"\",\"\",'1. Ordersheet'!F531)","v":""},{"$f":"IF('1. Ordersheet'!G531=\"\",\"\",'1. Ordersheet'!G531)","v":""},{"$f":"IF('1. Ordersheet'!H531=\"\",\"\",'1. Ordersheet'!H531)","v":""},{"$f":"IF('1. Ordersheet'!I531=\"\",\"\",'1. Ordersheet'!I531)","v":""},{"$f":"IF('1. Ordersheet'!J531=\"\",\"\",'1. Ordersheet'!J531)","v":""},{"$f":"IF('1. Ordersheet'!K531=\"\",\"\",'1. Ordersheet'!K531)","v":""},{"$f":"IF('1. Ordersheet'!L531=\"\",\"\",'1. Ordersheet'!L531)","v":""},{"$f":"IF('1. Ordersheet'!M531=\"\",\"\",'1. Ordersheet'!M531)","v":""},{"$f":"IF('1. Ordersheet'!N531=\"\",\"\",'1. Ordersheet'!N531)","v":""},{"$f":"IF('1. Ordersheet'!O531=\"\",\"\",'1. Ordersheet'!O531)","v":{"$error":"#N/A"}},{"$f":"IF('1. Ordersheet'!P531=\"\",\"\",'1. Ordersheet'!P531)","v":{"$error":"#N/A"}},{"$f":"IF('1. Ordersheet'!Q531=\"\",\"\",'1. Ordersheet'!Q531)","v":""},{"$f":"IF('1. Ordersheet'!R531=\"\",\"\",'1. Ordersheet'!R531)","v":""},{"$f":"IF('1. Ordersheet'!S531=\"\",\"\",'1. Ordersheet'!S531)","v":""},{"$f":"IF('1. Ordersheet'!V531=\"\",\"\",'1. Ordersheet'!V531)","v":""},{"$f":"IF('1. Ordersheet'!W531=\"\",\"\",'1. Ordersheet'!W531)","v":""},{"$f":"IF('1. Ordersheet'!X531=\"\",\"\",'1. Ordersheet'!X531)","v":""},{"$f":"IF('1. Ordersheet'!Y531=\"\",\"\",'1. Ordersheet'!Y531)","v":""},{"$f":"IF('1. Ordersheet'!Z531=\"\",\"\",'1. Ordersheet'!Z531)","v":""},{"$f":"IF('1. Ordersheet'!AA531=\"\",\"\",'1. Ordersheet'!AA531)","v":""},null,{"$f":"IF('1. Ordersheet'!AS531=\"\",\"\",'1. Ordersheet'!AS531)","v":""},{"$f":"IF('1. Ordersheet'!AT531=\"\",\"\",'1. Ordersheet'!AT531)","v":""},null,null,null,null,null,null,null,{"$f":"IF('1. Ordersheet'!AX531=\"\",\"\",'1. Ordersheet'!AX531)","v":""},{"$f":"IF('1. Ordersheet'!AY531=\"\",\"\",'1. Ordersheet'!AY531)","v":""},{"$f":"IF('1. Ordersheet'!AZ531=\"\",\"\",'1. Ordersheet'!AZ531)","v":""},{"$f":"IF('1. Ordersheet'!BA531=\"\",\"\",'1. Ordersheet'!BA531)","v":""},{"$f":"IF('1. Ordersheet'!BC531=\"\",\"\",'1. Ordersheet'!BC531)","v":""},{"$f":"IF('1. Ordersheet'!BD531=\"\",\"\",'1. Ordersheet'!BD531)","v":""},{"$f":"IF('1. Ordersheet'!BE531=\"\",\"\",'1. Ordersheet'!BE531)","v":""},{"$f":"IF('1. Ordersheet'!BF531=\"\",\"\",'1. Ordersheet'!BF531)","v":""},{"$f":"IF('1. Ordersheet'!BG531=\"\",\"\",'1. Ordersheet'!BG531)","v":"ZWO"},{"$f":"IF('1. Ordersheet'!BH531=\"\",\"\",'1. Ordersheet'!BH531)","v":""},{"$f":"IF('1. Ordersheet'!BI531=\"\",\"\",'1. Ordersheet'!BI531)","v":""},{"$f":"IF('1. Ordersheet'!BJ531=\"\",\"\",'1. Ordersheet'!BJ531)","v":""},{"$f":"IF('1. Ordersheet'!BK531=\"\",\"\",'1. Ordersheet'!BK531)","v":""},{"$f":"IF('1. Ordersheet'!BL531=\"\",\"\",'1. Ordersheet'!BL531)","v":""}]
[{"$f":"IF('1. Ordersheet'!F532=\"\",\"\",'1. Ordersheet'!F532)","v":""},{"$f":"IF('1. Ordersheet'!G532=\"\",\"\",'1. Ordersheet'!G532)","v":""},{"$f":"IF('1. Ordersheet'!H532=\"\",\"\",'1. Ordersheet'!H532)","v":""},{"$f":"IF('1. Ordersheet'!I532=\"\",\"\",'1. Ordersheet'!I532)","v":""},{"$f":"IF('1. Ordersheet'!J532=\"\",\"\",'1. Ordersheet'!J532)","v":""},{"$f":"IF('1. Ordersheet'!K532=\"\",\"\",'1. Ordersheet'!K532)","v":""},{"$f":"IF('1. Ordersheet'!L532=\"\",\"\",'1. Ordersheet'!L532)","v":""},{"$f":"IF('1. Ordersheet'!M532=\"\",\"\",'1. Ordersheet'!M532)","v":""},{"$f":"IF('1. Ordersheet'!N532=\"\",\"\",'1. Ordersheet'!N532)","v":""},{"$f":"IF('1. Ordersheet'!O532=\"\",\"\",'1. Ordersheet'!O532)","v":{"$error":"#N/A"}},{"$f":"IF('1. Ordersheet'!P532=\"\",\"\",'1. Ordersheet'!P532)","v":{"$error":"#N/A"}},{"$f":"IF('1. Ordersheet'!Q532=\"\",\"\",'1. Ordersheet'!Q532)","v":""},{"$f":"IF('1. Ordersheet'!R532=\"\",\"\",'1. Ordersheet'!R532)","v":""},{"$f":"IF('1. Ordersheet'!S532=\"\",\"\",'1. Ordersheet'!S532)","v":""},{"$f":"IF('1. Ordersheet'!V532=\"\",\"\",'1. Ordersheet'!V532)","v":""},{"$f":"IF('1. Ordersheet'!W532=\"\",\"\",'1. Ordersheet'!W532)","v":""},{"$f":"IF('1. Ordersheet'!X532=\"\",\"\",'1. Ordersheet'!X532)","v":""},{"$f":"IF('1. Ordersheet'!Y532=\"\",\"\",'1. Ordersheet'!Y532)","v":""},{"$f":"IF('1. Ordersheet'!Z532=\"\",\"\",'1. Ordersheet'!Z532)","v":""},{"$f":"IF('1. Ordersheet'!AA532=\"\",\"\",'1. Ordersheet'!AA532)","v":""},null,{"$f":"IF('1. Ordersheet'!AS532=\"\",\"\",'1. Ordersheet'!AS532)","v":""},{"$f":"IF('1. Ordersheet'!AT532=\"\",\"\",'1. Ordersheet'!AT532)","v":""},null,null,null,null,null,null,null,{"$f":"IF('1. Ordersheet'!AX532=\"\",\"\",'1. Ordersheet'!AX532)","v":""},{"$f":"IF('1. Ordersheet'!AY532=\"\",\"\",'1. Ordersheet'!AY532)","v":""},{"$f":"IF('1. Ordersheet'!AZ532=\"\",\"\",'1. Ordersheet'!AZ532)","v":""},{"$f":"IF('1. Ordersheet'!BA532=\"\",\"\",'1. Ordersheet'!BA532)","v":""},{"$f":"IF('1. Ordersheet'!BC532=\"\",\"\",'1. Ordersheet'!BC532)","v":""},{"$f":"IF('1. Ordersheet'!BD532=\"\",\"\",'1. Ordersheet'!BD532)","v":""},{"$f":"IF('1. Ordersheet'!BE532=\"\",\"\",'1. Ordersheet'!BE532)","v":""},{"$f":"IF('1. Ordersheet'!BF532=\"\",\"\",'1. Ordersheet'!BF532)","v":""},{"$f":"IF('1. Ordersheet'!BG532=\"\",\"\",'1. Ordersheet'!BG532)","v":"ZWO"},{"$f":"IF('1. Ordersheet'!BH532=\"\",\"\",'1. Ordersheet'!BH532)","v":""},{"$f":"IF('1. Ordersheet'!BI532=\"\",\"\",'1. Ordersheet'!BI532)","v":""},{"$f":"IF('1. Ordersheet'!BJ532=\"\",\"\",'1. Ordersheet'!BJ532)","v":""},{"$f":"IF('1. Ordersheet'!BK532=\"\",\"\",'1. Ordersheet'!BK532)","v":""},{"$f":"IF('1. Ordersheet'!BL532=\"\",\"\",'1. Ordersheet'!BL532)","v":""}]
[{"$f":"IF('1. Ordersheet'!F533=\"\",\"\",'1. Ordersheet'!F533)","v":""},{"$f":"IF('1. Ordersheet'!G533=\"\",\"\",'1. Ordersheet'!G533)","v":""},{"$f":"IF('1. Ordersheet'!H533=\"\",\"\",'1. Ordersheet'!H533)","v":""},{"$f":"IF('1. Ordersheet'!I533=\"\",\"\",'1. Ordersheet'!I533)","v":""},{"$f":"IF('1. Ordersheet'!J533=\"\",\"\",'1. Ordersheet'!J533)","v":""},{"$f":"IF('1. Ordersheet'!K533=\"\",\"\",'1. Ordersheet'!K533)","v":""},{"$f":"IF('1. Ordersheet'!L533=\"\",\"\",'1. Ordersheet'!L533)","v":""},{"$f":"IF('1. Ordersheet'!M533=\"\",\"\",'1. Ordersheet'!M533)","v":""},{"$f":"IF('1. Ordersheet'!N533=\"\",\"\",'1. Ordersheet'!N533)","v":""},{"$f":"IF('1. Ordersheet'!O533=\"\",\"\",'1. Ordersheet'!O533)","v":{"$error":"#N/A"}},{"$f":"IF('1. Ordersheet'!P533=\"\",\"\",'1. Ordersheet'!P533)","v":{"$error":"#N/A"}},{"$f":"IF('1. Ordersheet'!Q533=\"\",\"\",'1. Ordersheet'!Q533)","v":""},{"$f":"IF('1. Ordersheet'!R533=\"\",\"\",'1. Ordersheet'!R533)","v":""},{"$f":"IF('1. Ordersheet'!S533=\"\",\"\",'1. Ordersheet'!S533)","v":""},{"$f":"IF('1. Ordersheet'!V533=\"\",\"\",'1. Ordersheet'!V533)","v":""},{"$f":"IF('1. Ordersheet'!W533=\"\",\"\",'1. Ordersheet'!W533)","v":""},{"$f":"IF('1. Ordersheet'!X533=\"\",\"\",'1. Ordersheet'!X533)","v":""},{"$f":"IF('1. Ordersheet'!Y533=\"\",\"\",'1. Ordersheet'!Y533)","v":""},{"$f":"IF('1. Ordersheet'!Z533=\"\",\"\",'1. Ordersheet'!Z533)","v":""},{"$f":"IF('1. Ordersheet'!AA533=\"\",\"\",'1. Ordersheet'!AA533)","v":""},null,{"$f":"IF('1. Ordersheet'!AS533=\"\",\"\",'1. Ordersheet'!AS533)","v":""},{"$f":"IF('1. Ordersheet'!AT533=\"\",\"\",'1. Ordersheet'!AT533)","v":""},null,null,null,null,null,null,null,{"$f":"IF('1. Ordersheet'!AX533=\"\",\"\",'1. Ordersheet'!AX533)","v":""},{"$f":"IF('1. Ordersheet'!AY533=\"\",\"\",'1. Ordersheet'!AY533)","v":""},{"$f":"IF('1. Ordersheet'!AZ533=\"\",\"\",'1. Ordersheet'!AZ533)","v":""},{"$f":"IF('1. Ordersheet'!BA533=\"\",\"\",'1. Ordersheet'!BA533)","v":""},{"$f":"IF('1. Ordersheet'!BC533=\"\",\"\",'1. Ordersheet'!BC533)","v":""},{"$f":"IF('1. Ordersheet'!BD533=\"\",\"\",'1. Ordersheet'!BD533)","v":""},{"$f":"IF('1. Ordersheet'!BE533=\"\",\"\",'1. Ordersheet'!BE533)","v":""},{"$f":"IF('1. Ordersheet'!BF533=\"\",\"\",'1. Ordersheet'!BF533)","v":""},{"$f":"IF('1. Ordersheet'!BG533=\"\",\"\",'1. Ordersheet'!BG533)","v":"ZWO"},{"$f":"IF('1. Ordersheet'!BH533=\"\",\"\",'1. Ordersheet'!BH533)","v":""},{"$f":"IF('1. Ordersheet'!BI533=\"\",\"\",'1. Ordersheet'!BI533)","v":""},{"$f":"IF('1. Ordersheet'!BJ533=\"\",\"\",'1. Ordersheet'!BJ533)","v":""},{"$f":"IF('1. Ordersheet'!BK533=\"\",\"\",'1. Ordersheet'!BK533)","v":""},{"$f":"IF('1. Ordersheet'!BL533=\"\",\"\",'1. Ordersheet'!BL533)","v":""}]
[{"$f":"IF('1. Ordersheet'!F534=\"\",\"\",'1. Ordersheet'!F534)","v":""},{"$f":"IF('1. Ordersheet'!G534=\"\",\"\",'1. Ordersheet'!G534)","v":""},{"$f":"IF('1. Ordersheet'!H534=\"\",\"\",'1. Ordersheet'!H534)","v":""},{"$f":"IF('1. Ordersheet'!I534=\"\",\"\",'1. Ordersheet'!I534)","v":""},{"$f":"IF('1. Ordersheet'!J534=\"\",\"\",'1. Ordersheet'!J534)","v":""},{"$f":"IF('1. Ordersheet'!K534=\"\",\"\",'1. Ordersheet'!K534)","v":""},{"$f":"IF('1. Ordersheet'!L534=\"\",\"\",'1. Ordersheet'!L534)","v":""},{"$f":"IF('1. Ordersheet'!M534=\"\",\"\",'1. Ordersheet'!M534)","v":""},{"$f":"IF('1. Ordersheet'!N534=\"\",\"\",'1. Ordersheet'!N534)","v":""},{"$f":"IF('1. Ordersheet'!O534=\"\",\"\",'1. Ordersheet'!O534)","v":{"$error":"#N/A"}},{"$f":"IF('1. Ordersheet'!P534=\"\",\"\",'1. Ordersheet'!P534)","v":{"$error":"#N/A"}},{"$f":"IF('1. Ordersheet'!Q534=\"\",\"\",'1. Ordersheet'!Q534)","v":""},{"$f":"IF('1. Ordersheet'!R534=\"\",\"\",'1. Ordersheet'!R534)","v":""},{"$f":"IF('1. Ordersheet'!S534=\"\",\"\",'1. Ordersheet'!S534)","v":""},{"$f":"IF('1. Ordersheet'!V534=\"\",\"\",'1. Ordersheet'!V534)","v":""},{"$f":"IF('1. Ordersheet'!W534=\"\",\"\",'1. Ordersheet'!W534)","v":""},{"$f":"IF('1. Ordersheet'!X534=\"\",\"\",'1. Ordersheet'!X534)","v":""},{"$f":"IF('1. Ordersheet'!Y534=\"\",\"\",'1. Ordersheet'!Y534)","v":""},{"$f":"IF('1. Ordersheet'!Z534=\"\",\"\",'1. Ordersheet'!Z534)","v":""},{"$f":"IF('1. Ordersheet'!AA534=\"\",\"\",'1. Ordersheet'!AA534)","v":""},null,{"$f":"IF('1. Ordersheet'!AS534=\"\",\"\",'1. Ordersheet'!AS534)","v":""},{"$f":"IF('1. Ordersheet'!AT534=\"\",\"\",'1. Ordersheet'!AT534)","v":""},null,null,null,null,null,null,null,{"$f":"IF('1. Ordersheet'!AX534=\"\",\"\",'1. Ordersheet'!AX534)","v":""},{"$f":"IF('1. Ordersheet'!AY534=\"\",\"\",'1. Ordersheet'!AY534)","v":""},{"$f":"IF('1. Ordersheet'!AZ534=\"\",\"\",'1. Ordersheet'!AZ534)","v":""},{"$f":"IF('1. Ordersheet'!BA534=\"\",\"\",'1. Ordersheet'!BA534)","v":""},{"$f":"IF('1. Ordersheet'!BC534=\"\",\"\",'1. Ordersheet'!BC534)","v":""},{"$f":"IF('1. Ordersheet'!BD534=\"\",\"\",'1. Ordersheet'!BD534)","v":""},{"$f":"IF('1. Ordersheet'!BE534=\"\",\"\",'1. Ordersheet'!BE534)","v":""},{"$f":"IF('1. Ordersheet'!BF534=\"\",\"\",'1. Ordersheet'!BF534)","v":""},{"$f":"IF('1. Ordersheet'!BG534=\"\",\"\",'1. Ordersheet'!BG534)","v":"ZWO"},{"$f":"IF('1. Ordersheet'!BH534=\"\",\"\",'1. Ordersheet'!BH534)","v":""},{"$f":"IF('1. Ordersheet'!BI534=\"\",\"\",'1. Ordersheet'!BI534)","v":""},{"$f":"IF('1. Ordersheet'!BJ534=\"\",\"\",'1. Ordersheet'!BJ534)","v":""},{"$f":"IF('1. Ordersheet'!BK534=\"\",\"\",'1. Ordersheet'!BK534)","v":""},{"$f":"IF('1. Ordersheet'!BL534=\"\",\"\",'1. Ordersheet'!BL534)","v":""}]
[{"$f":"IF('1. Ordersheet'!F535=\"\",\"\",'1. Ordersheet'!F535)","v":""},{"$f":"IF('1. Ordersheet'!G535=\"\",\"\",'1. Ordersheet'!G535)","v":""},{"$f":"IF('1. Ordersheet'!H535=\"\",\"\",'1. Ordersheet'!H535)","v":""},{"$f":"IF('1. Ordersheet'!I535=\"\",\"\",'1. Ordersheet'!I535)","v":""},{"$f":"IF('1. Ordersheet'!J535=\"\",\"\",'1. Ordersheet'!J535)","v":""},{"$f":"IF('1. Ordersheet'!K535=\"\",\"\",'1. Ordersheet'!K535)","v":""},{"$f":"IF('1. Ordersheet'!L535=\"\",\"\",'1. Ordersheet'!L535)","v":""},{"$f":"IF('1. Ordersheet'!M535=\"\",\"\",'1. Ordersheet'!M535)","v":""},{"$f":"IF('1. Ordersheet'!N535=\"\",\"\",'1. Ordersheet'!N535)","v":""},{"$f":"IF('1. Ordersheet'!O535=\"\",\"\",'1. Ordersheet'!O535)","v":{"$error":"#N/A"}},{"$f":"IF('1. Ordersheet'!P535=\"\",\"\",'1. Ordersheet'!P535)","v":{"$error":"#N/A"}},{"$f":"IF('1. Ordersheet'!Q535=\"\",\"\",'1. Ordersheet'!Q535)","v":""},{"$f":"IF('1. Ordersheet'!R535=\"\",\"\",'1. Ordersheet'!R535)","v":""},{"$f":"IF('1. Ordersheet'!S535=\"\",\"\",'1. Ordersheet'!S535)","v":""},{"$f":"IF('1. Ordersheet'!V535=\"\",\"\",'1. Ordersheet'!V535)","v":""},{"$f":"IF('1. Ordersheet'!W535=\"\",\"\",'1. Ordersheet'!W535)","v":""},{"$f":"IF('1. Ordersheet'!X535=\"\",\"\",'1. Ordersheet'!X535)","v":""},{"$f":"IF('1. Ordersheet'!Y535=\"\",\"\",'1. Ordersheet'!Y535)","v":""},{"$f":"IF('1. Ordersheet'!Z535=\"\",\"\",'1. Ordersheet'!Z535)","v":""},{"$f":"IF('1. Ordersheet'!AA535=\"\",\"\",'1. Ordersheet'!AA535)","v":""},null,{"$f":"IF('1. Ordersheet'!AS535=\"\",\"\",'1. Ordersheet'!AS535)","v":""},{"$f":"IF('1. Ordersheet'!AT535=\"\",\"\",'1. Ordersheet'!AT535)","v":""},null,null,null,null,null,null,null,{"$f":"IF('1. Ordersheet'!AX535=\"\",\"\",'1. Ordersheet'!AX535)","v":""},{"$f":"IF('1. Ordersheet'!AY535=\"\",\"\",'1. Ordersheet'!AY535)","v":""},{"$f":"IF('1. Ordersheet'!AZ535=\"\",\"\",'1. Ordersheet'!AZ535)","v":""},{"$f":"IF('1. Ordersheet'!BA535=\"\",\"\",'1. Ordersheet'!BA535)","v":""},{"$f":"IF('1. Ordersheet'!BC535=\"\",\"\",'1. Ordersheet'!BC535)","v":""},{"$f":"IF('1. Ordersheet'!BD535=\"\",\"\",'1. Ordersheet'!BD535)","v":""},{"$f":"IF('1. Ordersheet'!BE535=\"\",\"\",'1. Ordersheet'!BE535)","v":""},{"$f":"IF('1. Ordersheet'!BF535=\"\",\"\",'1. Ordersheet'!BF535)","v":""},{"$f":"IF('1. Ordersheet'!BG535=\"\",\"\",'1. Ordersheet'!BG535)","v":"ZWO"},{"$f":"IF('1. Ordersheet'!BH535=\"\",\"\",'1. Ordersheet'!BH535)","v":""},{"$f":"IF('1. Ordersheet'!BI535=\"\",\"\",'1. Ordersheet'!BI535)","v":""},{"$f":"IF('1. Ordersheet'!BJ535=\"\",\"\",'1. Ordersheet'!BJ535)","v":""},{"$f":"IF('1. Ordersheet'!BK535=\"\",\"\",'1. Ordersheet'!BK535)","v":""},{"$f":"IF('1. Ordersheet'!BL535=\"\",\"\",'1. Ordersheet'!BL535)","v":""}]
[{"$f":"IF('1. Ordersheet'!F536=\"\",\"\",'1. Ordersheet'!F536)","v":""},{"$f":"IF('1. Ordersheet'!G536=\"\",\"\",'1. Ordersheet'!G536)","v":""},{"$f":"IF('1. Ordersheet'!H536=\"\",\"\",'1. Ordersheet'!H536)","v":""},{"$f":"IF('1. Ordersheet'!I536=\"\",\"\",'1. Ordersheet'!I536)","v":""},{"$f":"IF('1. Ordersheet'!J536=\"\",\"\",'1. Ordersheet'!J536)","v":""},{"$f":"IF('1. Ordersheet'!K536=\"\",\"\",'1. Ordersheet'!K536)","v":""},{"$f":"IF('1. Ordersheet'!L536=\"\",\"\",'1. Ordersheet'!L536)","v":""},{"$f":"IF('1. Ordersheet'!M536=\"\",\"\",'1. Ordersheet'!M536)","v":""},{"$f":"IF('1. Ordersheet'!N536=\"\",\"\",'1. Ordersheet'!N536)","v":""},{"$f":"IF('1. Ordersheet'!O536=\"\",\"\",'1. Ordersheet'!O536)","v":{"$error":"#N/A"}},{"$f":"IF('1. Ordersheet'!P536=\"\",\"\",'1. Ordersheet'!P536)","v":{"$error":"#N/A"}},{"$f":"IF('1. Ordersheet'!Q536=\"\",\"\",'1. Ordersheet'!Q536)","v":""},{"$f":"IF('1. Ordersheet'!R536=\"\",\"\",'1. Ordersheet'!R536)","v":""},{"$f":"IF('1. Ordersheet'!S536=\"\",\"\",'1. Ordersheet'!S536)","v":""},{"$f":"IF('1. Ordersheet'!V536=\"\",\"\",'1. Ordersheet'!V536)","v":""},{"$f":"IF('1. Ordersheet'!W536=\"\",\"\",'1. Ordersheet'!W536)","v":""},{"$f":"IF('1. Ordersheet'!X536=\"\",\"\",'1. Ordersheet'!X536)","v":""},{"$f":"IF('1. Ordersheet'!Y536=\"\",\"\",'1. Ordersheet'!Y536)","v":""},{"$f":"IF('1. Ordersheet'!Z536=\"\",\"\",'1. Ordersheet'!Z536)","v":""},{"$f":"IF('1. Ordersheet'!AA536=\"\",\"\",'1. Ordersheet'!AA536)","v":""},null,{"$f":"IF('1. Ordersheet'!AS536=\"\",\"\",'1. Ordersheet'!AS536)","v":""},{"$f":"IF('1. Ordersheet'!AT536=\"\",\"\",'1. Ordersheet'!AT536)","v":""},null,null,null,null,null,null,null,{"$f":"IF('1. Ordersheet'!AX536=\"\",\"\",'1. Ordersheet'!AX536)","v":""},{"$f":"IF('1. Ordersheet'!AY536=\"\",\"\",'1. Ordersheet'!AY536)","v":""},{"$f":"IF('1. Ordersheet'!AZ536=\"\",\"\",'1. Ordersheet'!AZ536)","v":""},{"$f":"IF('1. Ordersheet'!BA536=\"\",\"\",'1. Ordersheet'!BA536)","v":""},{"$f":"IF('1. Ordersheet'!BC536=\"\",\"\",'1. Ordersheet'!BC536)","v":""},{"$f":"IF('1. Ordersheet'!BD536=\"\",\"\",'1. Ordersheet'!BD536)","v":""},{"$f":"IF('1. Ordersheet'!BE536=\"\",\"\",'1. Ordersheet'!BE536)","v":""},{"$f":"IF('1. Ordersheet'!BF536=\"\",\"\",'1. Ordersheet'!BF536)","v":""},{"$f":"IF('1. Ordersheet'!BG536=\"\",\"\",'1. Ordersheet'!BG536)","v":"ZWO"},{"$f":"IF('1. Ordersheet'!BH536=\"\",\"\",'1. Ordersheet'!BH536)","v":""},{"$f":"IF('1. Ordersheet'!BI536=\"\",\"\",'1. Ordersheet'!BI536)","v":""},{"$f":"IF('1. Ordersheet'!BJ536=\"\",\"\",'1. Ordersheet'!BJ536)","v":""},{"$f":"IF('1. Ordersheet'!BK536=\"\",\"\",'1. Ordersheet'!BK536)","v":""},{"$f":"IF('1. Ordersheet'!BL536=\"\",\"\",'1. Ordersheet'!BL536)","v":""}]
[{"$f":"IF('1. Ordersheet'!F537=\"\",\"\",'1. Ordersheet'!F537)","v":""},{"$f":"IF('1. Ordersheet'!G537=\"\",\"\",'1. Ordersheet'!G537)","v":""},{"$f":"IF('1. Ordersheet'!H537=\"\",\"\",'1. Ordersheet'!H537)","v":""},{"$f":"IF('1. Ordersheet'!I537=\"\",\"\",'1. Ordersheet'!I537)","v":""},{"$f":"IF('1. Ordersheet'!J537=\"\",\"\",'1. Ordersheet'!J537)","v":""},{"$f":"IF('1. Ordersheet'!K537=\"\",\"\",'1. Ordersheet'!K537)","v":""},{"$f":"IF('1. Ordersheet'!L537=\"\",\"\",'1. Ordersheet'!L537)","v":""},{"$f":"IF('1. Ordersheet'!M537=\"\",\"\",'1. Ordersheet'!M537)","v":""},{"$f":"IF('1. Ordersheet'!N537=\"\",\"\",'1. Ordersheet'!N537)","v":""},{"$f":"IF('1. Ordersheet'!O537=\"\",\"\",'1. Ordersheet'!O537)","v":{"$error":"#N/A"}},{"$f":"IF('1. Ordersheet'!P537=\"\",\"\",'1. Ordersheet'!P537)","v":{"$error":"#N/A"}},{"$f":"IF('1. Ordersheet'!Q537=\"\",\"\",'1. Ordersheet'!Q537)","v":""},{"$f":"IF('1. Ordersheet'!R537=\"\",\"\",'1. Ordersheet'!R537)","v":""},{"$f":"IF('1. Ordersheet'!S537=\"\",\"\",'1. Ordersheet'!S537)","v":""},{"$f":"IF('1. Ordersheet'!V537=\"\",\"\",'1. Ordersheet'!V537)","v":""},{"$f":"IF('1. Ordersheet'!W537=\"\",\"\",'1. Ordersheet'!W537)","v":""},{"$f":"IF('1. Ordersheet'!X537=\"\",\"\",'1. Ordersheet'!X537)","v":""},{"$f":"IF('1. Ordersheet'!Y537=\"\",\"\",'1. Ordersheet'!Y537)","v":""},{"$f":"IF('1. Ordersheet'!Z537=\"\",\"\",'1. Ordersheet'!Z537)","v":""},{"$f":"IF('1. Ordersheet'!AA537=\"\",\"\",'1. Ordersheet'!AA537)","v":""},null,{"$f":"IF('1. Ordersheet'!AS537=\"\",\"\",'1. Ordersheet'!AS537)","v":""},{"$f":"IF('1. Ordersheet'!AT537=\"\",\"\",'1. Ordersheet'!AT537)","v":""},null,null,null,null,null,null,null,{"$f":"IF('1. Ordersheet'!AX537=\"\",\"\",'1. Ordersheet'!AX537)","v":""},{"$f":"IF('1. Ordersheet'!AY537=\"\",\"\",'1. Ordersheet'!AY537)","v":""},{"$f":"IF('1. Ordersheet'!AZ537=\"\",\"\",'1. Ordersheet'!AZ537)","v":""},{"$f":"IF('1. Ordersheet'!BA537=\"\",\"\",'1. Ordersheet'!BA537)","v":""},{"$f":"IF('1. Ordersheet'!BC537=\"\",\"\",'1. Ordersheet'!BC537)","v":""},{"$f":"IF('1. Ordersheet'!BD537=\"\",\"\",'1. Ordersheet'!BD537)","v":""},{"$f":"IF('1. Ordersheet'!BE537=\"\",\"\",'1. Ordersheet'!BE537)","v":""},{"$f":"IF('1. Ordersheet'!BF537=\"\",\"\",'1. Ordersheet'!BF537)","v":""},{"$f":"IF('1. Ordersheet'!BG537=\"\",\"\",'1. Ordersheet'!BG537)","v":"ZWO"},{"$f":"IF('1. Ordersheet'!BH537=\"\",\"\",'1. Ordersheet'!BH537)","v":""},{"$f":"IF('1. Ordersheet'!BI537=\"\",\"\",'1. Ordersheet'!BI537)","v":""},{"$f":"IF('1. Ordersheet'!BJ537=\"\",\"\",'1. Ordersheet'!BJ537)","v":""},{"$f":"IF('1. Ordersheet'!BK537=\"\",\"\",'1. Ordersheet'!BK537)","v":""},{"$f":"IF('1. Ordersheet'!BL537=\"\",\"\",'1. Ordersheet'!BL537)","v":""}]
[{"$f":"IF('1. Ordersheet'!F538=\"\",\"\",'1. Ordersheet'!F538)","v":""},{"$f":"IF('1. Ordersheet'!G538=\"\",\"\",'1. Ordersheet'!G538)","v":""},{"$f":"IF('1. Ordersheet'!H538=\"\",\"\",'1. Ordersheet'!H538)","v":""},{"$f":"IF('1. Ordersheet'!I538=\"\",\"\",'1. Ordersheet'!I538)","v":""},{"$f":"IF('1. Ordersheet'!J538=\"\",\"\",'1. Ordersheet'!J538)","v":""},{"$f":"IF('1. Ordersheet'!K538=\"\",\"\",'1. Ordersheet'!K538)","v":""},{"$f":"IF('1. Ordersheet'!L538=\"\",\"\",'1. Ordersheet'!L538)","v":""},{"$f":"IF('1. Ordersheet'!M538=\"\",\"\",'1. Ordersheet'!M538)","v":""},{"$f":"IF('1. Ordersheet'!N538=\"\",\"\",'1. Ordersheet'!N538)","v":""},{"$f":"IF('1. Ordersheet'!O538=\"\",\"\",'1. Ordersheet'!O538)","v":{"$error":"#N/A"}},{"$f":"IF('1. Ordersheet'!P538=\"\",\"\",'1. Ordersheet'!P538)","v":{"$error":"#N/A"}},{"$f":"IF('1. Ordersheet'!Q538=\"\",\"\",'1. Ordersheet'!Q538)","v":""},{"$f":"IF('1. Ordersheet'!R538=\"\",\"\",'1. Ordersheet'!R538)","v":""},{"$f":"IF('1. Ordersheet'!S538=\"\",\"\",'1. Ordersheet'!S538)","v":""},{"$f":"IF('1. Ordersheet'!V538=\"\",\"\",'1. Ordersheet'!V538)","v":""},{"$f":"IF('1. Ordersheet'!W538=\"\",\"\",'1. Ordersheet'!W538)","v":""},{"$f":"IF('1. Ordersheet'!X538=\"\",\"\",'1. Ordersheet'!X538)","v":""},{"$f":"IF('1. Ordersheet'!Y538=\"\",\"\",'1. Ordersheet'!Y538)","v":""},{"$f":"IF('1. Ordersheet'!Z538=\"\",\"\",'1. Ordersheet'!Z538)","v":""},{"$f":"IF('1. Ordersheet'!AA538=\"\",\"\",'1. Ordersheet'!AA538)","v":""},null,{"$f":"IF('1. Ordersheet'!AS538=\"\",\"\",'1. Ordersheet'!AS538)","v":""},{"$f":"IF('1. Ordersheet'!AT538=\"\",\"\",'1. Ordersheet'!AT538)","v":""},null,null,null,null,null,null,null,{"$f":"IF('1. Ordersheet'!AX538=\"\",\"\",'1. Ordersheet'!AX538)","v":""},{"$f":"IF('1. Ordersheet'!AY538=\"\",\"\",'1. Ordersheet'!AY538)","v":""},{"$f":"IF('1. Ordersheet'!AZ538=\"\",\"\",'1. Ordersheet'!AZ538)","v":""},{"$f":"IF('1. Ordersheet'!BA538=\"\",\"\",'1. Ordersheet'!BA538)","v":""},{"$f":"IF('1. Ordersheet'!BC538=\"\",\"\",'1. Ordersheet'!BC538)","v":""},{"$f":"IF('1. Ordersheet'!BD538=\"\",\"\",'1. Ordersheet'!BD538)","v":""},{"$f":"IF('1. Ordersheet'!BE538=\"\",\"\",'1. Ordersheet'!BE538)","v":""},{"$f":"IF('1. Ordersheet'!BF538=\"\",\"\",'1. Ordersheet'!BF538)","v":""},{"$f":"IF('1. Ordersheet'!BG538=\"\",\"\",'1. Ordersheet'!BG538)","v":"ZWO"},{"$f":"IF('1. Ordersheet'!BH538=\"\",\"\",'1. Ordersheet'!BH538)","v":""},{"$f":"IF('1. Ordersheet'!BI538=\"\",\"\",'1. Ordersheet'!BI538)","v":""},{"$f":"IF('1. Ordersheet'!BJ538=\"\",\"\",'1. Ordersheet'!BJ538)","v":""},{"$f":"IF('1. Ordersheet'!BK538=\"\",\"\",'1. Ordersheet'!BK538)","v":""},{"$f":"IF('1. Ordersheet'!BL538=\"\",\"\",'1. Ordersheet'!BL538)","v":""}]
[{"$f":"IF('1. Ordersheet'!F539=\"\",\"\",'1. Ordersheet'!F539)","v":""},{"$f":"IF('1. Ordersheet'!G539=\"\",\"\",'1. Ordersheet'!G539)","v":""},{"$f":"IF('1. Ordersheet'!H539=\"\",\"\",'1. Ordersheet'!H539)","v":""},{"$f":"IF('1. Ordersheet'!I539=\"\",\"\",'1. Ordersheet'!I539)","v":""},{"$f":"IF('1. Ordersheet'!J539=\"\",\"\",'1. Ordersheet'!J539)","v":""},{"$f":"IF('1. Ordersheet'!K539=\"\",\"\",'1. Ordersheet'!K539)","v":""},{"$f":"IF('1. Ordersheet'!L539=\"\",\"\",'1. Ordersheet'!L539)","v":""},{"$f":"IF('1. Ordersheet'!M539=\"\",\"\",'1. Ordersheet'!M539)","v":""},{"$f":"IF('1. Ordersheet'!N539=\"\",\"\",'1. Ordersheet'!N539)","v":""},{"$f":"IF('1. Ordersheet'!O539=\"\",\"\",'1. Ordersheet'!O539)","v":{"$error":"#N/A"}},{"$f":"IF('1. Ordersheet'!P539=\"\",\"\",'1. Ordersheet'!P539)","v":{"$error":"#N/A"}},{"$f":"IF('1. Ordersheet'!Q539=\"\",\"\",'1. Ordersheet'!Q539)","v":""},{"$f":"IF('1. Ordersheet'!R539=\"\",\"\",'1. Ordersheet'!R539)","v":""},{"$f":"IF('1. Ordersheet'!S539=\"\",\"\",'1. Ordersheet'!S539)","v":""},{"$f":"IF('1. Ordersheet'!V539=\"\",\"\",'1. Ordersheet'!V539)","v":""},{"$f":"IF('1. Ordersheet'!W539=\"\",\"\",'1. Ordersheet'!W539)","v":""},{"$f":"IF('1. Ordersheet'!X539=\"\",\"\",'1. Ordersheet'!X539)","v":""},{"$f":"IF('1. Ordersheet'!Y539=\"\",\"\",'1. Ordersheet'!Y539)","v":""},{"$f":"IF('1. Ordersheet'!Z539=\"\",\"\",'1. Ordersheet'!Z539)","v":""},{"$f":"IF('1. Ordersheet'!AA539=\"\",\"\",'1. Ordersheet'!AA539)","v":""},null,{"$f":"IF('1. Ordersheet'!AS539=\"\",\"\",'1. Ordersheet'!AS539)","v":""},{"$f":"IF('1. Ordersheet'!AT539=\"\",\"\",'1. Ordersheet'!AT539)","v":""},null,null,null,null,null,null,null,{"$f":"IF('1. Ordersheet'!AX539=\"\",\"\",'1. Ordersheet'!AX539)","v":""},{"$f":"IF('1. Ordersheet'!AY539=\"\",\"\",'1. Ordersheet'!AY539)","v":""},{"$f":"IF('1. Ordersheet'!AZ539=\"\",\"\",'1. Ordersheet'!AZ539)","v":""},{"$f":"IF('1. Ordersheet'!BA539=\"\",\"\",'1. Ordersheet'!BA539)","v":""},{"$f":"IF('1. Ordersheet'!BC539=\"\",\"\",'1. Ordersheet'!BC539)","v":""},{"$f":"IF('1. Ordersheet'!BD539=\"\",\"\",'1. Ordersheet'!BD539)","v":""},{"$f":"IF('1. Ordersheet'!BE539=\"\",\"\",'1. Ordersheet'!BE539)","v":""},{"$f":"IF('1. Ordersheet'!BF539=\"\",\"\",'1. Ordersheet'!BF539)","v":""},{"$f":"IF('1. Ordersheet'!BG539=\"\",\"\",'1. Ordersheet'!BG539)","v":"ZWO"},{"$f":"IF('1. Ordersheet'!BH539=\"\",\"\",'1. Ordersheet'!BH539)","v":""},{"$f":"IF('1. Ordersheet'!BI539=\"\",\"\",'1. Ordersheet'!BI539)","v":""},{"$f":"IF('1. Ordersheet'!BJ539=\"\",\"\",'1. Ordersheet'!BJ539)","v":""},{"$f":"IF('1. Ordersheet'!BK539=\"\",\"\",'1. Ordersheet'!BK539)","v":""},{"$f":"IF('1. Ordersheet'!BL539=\"\",\"\",'1. Ordersheet'!BL539)","v":""}]
[{"$f":"IF('1. Ordersheet'!F540=\"\",\"\",'1. Ordersheet'!F540)","v":""},{"$f":"IF('1. Ordersheet'!G540=\"\",\"\",'1. Ordersheet'!G540)","v":""},{"$f":"IF('1. Ordersheet'!H540=\"\",\"\",'1. Ordersheet'!H540)","v":""},{"$f":"IF('1. Ordersheet'!I540=\"\",\"\",'1. Ordersheet'!I540)","v":""},{"$f":"IF('1. Ordersheet'!J540=\"\",\"\",'1. Ordersheet'!J540)","v":""},{"$f":"IF('1. Ordersheet'!K540=\"\",\"\",'1. Ordersheet'!K540)","v":""},{"$f":"IF('1. Ordersheet'!L540=\"\",\"\",'1. Ordersheet'!L540)","v":""},{"$f":"IF('1. Ordersheet'!M540=\"\",\"\",'1. Ordersheet'!M540)","v":""},{"$f":"IF('1. Ordersheet'!N540=\"\",\"\",'1. Ordersheet'!N540)","v":""},{"$f":"IF('1. Ordersheet'!O540=\"\",\"\",'1. Ordersheet'!O540)","v":{"$error":"#N/A"}},{"$f":"IF('1. Ordersheet'!P540=\"\",\"\",'1. Ordersheet'!P540)","v":{"$error":"#N/A"}},{"$f":"IF('1. Ordersheet'!Q540=\"\",\"\",'1. Ordersheet'!Q540)","v":""},{"$f":"IF('1. Ordersheet'!R540=\"\",\"\",'1. Ordersheet'!R540)","v":""},{"$f":"IF('1. Ordersheet'!S540=\"\",\"\",'1. Ordersheet'!S540)","v":""},{"$f":"IF('1. Ordersheet'!V540=\"\",\"\",'1. Ordersheet'!V540)","v":""},{"$f":"IF('1. Ordersheet'!W540=\"\",\"\",'1. Ordersheet'!W540)","v":""},{"$f":"IF('1. Ordersheet'!X540=\"\",\"\",'1. Ordersheet'!X540)","v":""},{"$f":"IF('1. Ordersheet'!Y540=\"\",\"\",'1. Ordersheet'!Y540)","v":""},{"$f":"IF('1. Ordersheet'!Z540=\"\",\"\",'1. Ordersheet'!Z540)","v":""},{"$f":"IF('1. Ordersheet'!AA540=\"\",\"\",'1. Ordersheet'!AA540)","v":""},null,{"$f":"IF('1. Ordersheet'!AS540=\"\",\"\",'1. Ordersheet'!AS540)","v":""},{"$f":"IF('1. Ordersheet'!AT540=\"\",\"\",'1. Ordersheet'!AT540)","v":""},null,null,null,null,null,null,null,{"$f":"IF('1. Ordersheet'!AX540=\"\",\"\",'1. Ordersheet'!AX540)","v":""},{"$f":"IF('1. Ordersheet'!AY540=\"\",\"\",'1. Ordersheet'!AY540)","v":""},{"$f":"IF('1. Ordersheet'!AZ540=\"\",\"\",'1. Ordersheet'!AZ540)","v":""},{"$f":"IF('1. Ordersheet'!BA540=\"\",\"\",'1. Ordersheet'!BA540)","v":""},{"$f":"IF('1. Ordersheet'!BC540=\"\",\"\",'1. Ordersheet'!BC540)","v":""},{"$f":"IF('1. Ordersheet'!BD540=\"\",\"\",'1. Ordersheet'!BD540)","v":""},{"$f":"IF('1. Ordersheet'!BE540=\"\",\"\",'1. Ordersheet'!BE540)","v":""},{"$f":"IF('1. Ordersheet'!BF540=\"\",\"\",'1. Ordersheet'!BF540)","v":""},{"$f":"IF('1. Ordersheet'!BG540=\"\",\"\",'1. Ordersheet'!BG540)","v":"ZWO"},{"$f":"IF('1. Ordersheet'!BH540=\"\",\"\",'1. Ordersheet'!BH540)","v":""},{"$f":"IF('1. Ordersheet'!BI540=\"\",\"\",'1. Ordersheet'!BI540)","v":""},{"$f":"IF('1. Ordersheet'!BJ540=\"\",\"\",'1. Ordersheet'!BJ540)","v":""},{"$f":"IF('1. Ordersheet'!BK540=\"\",\"\",'1. Ordersheet'!BK540)","v":""},{"$f":"IF('1. Ordersheet'!BL540=\"\",\"\",'1. Ordersheet'!BL540)","v":""}]
[{"$f":"IF('1. Ordersheet'!F541=\"\",\"\",'1. Ordersheet'!F541)","v":""},{"$f":"IF('1. Ordersheet'!G541=\"\",\"\",'1. Ordersheet'!G541)","v":""},{"$f":"IF('1. Ordersheet'!H541=\"\",\"\",'1. Ordersheet'!H541)","v":""},{"$f":"IF('1. Ordersheet'!I541=\"\",\"\",'1. Ordersheet'!I541)","v":""},{"$f":"IF('1. Ordersheet'!J541=\"\",\"\",'1. Ordersheet'!J541)","v":""},{"$f":"IF('1. Ordersheet'!K541=\"\",\"\",'1. Ordersheet'!K541)","v":""},{"$f":"IF('1. Ordersheet'!L541=\"\",\"\",'1. Ordersheet'!L541)","v":""},{"$f":"IF('1. Ordersheet'!M541=\"\",\"\",'1. Ordersheet'!M541)","v":""},{"$f":"IF('1. Ordersheet'!N541=\"\",\"\",'1. Ordersheet'!N541)","v":""},{"$f":"IF('1. Ordersheet'!O541=\"\",\"\",'1. Ordersheet'!O541)","v":{"$error":"#N/A"}},{"$f":"IF('1. Ordersheet'!P541=\"\",\"\",'1. Ordersheet'!P541)","v":{"$error":"#N/A"}},{"$f":"IF('1. Ordersheet'!Q541=\"\",\"\",'1. Ordersheet'!Q541)","v":""},{"$f":"IF('1. Ordersheet'!R541=\"\",\"\",'1. Ordersheet'!R541)","v":""},{"$f":"IF('1. Ordersheet'!S541=\"\",\"\",'1. Ordersheet'!S541)","v":""},{"$f":"IF('1. Ordersheet'!V541=\"\",\"\",'1. Ordersheet'!V541)","v":""},{"$f":"IF('1. Ordersheet'!W541=\"\",\"\",'1. Ordersheet'!W541)","v":""},{"$f":"IF('1. Ordersheet'!X541=\"\",\"\",'1. Ordersheet'!X541)","v":""},{"$f":"IF('1. Ordersheet'!Y541=\"\",\"\",'1. Ordersheet'!Y541)","v":""},{"$f":"IF('1. Ordersheet'!Z541=\"\",\"\",'1. Ordersheet'!Z541)","v":""},{"$f":"IF('1. Ordersheet'!AA541=\"\",\"\",'1. Ordersheet'!AA541)","v":""},null,{"$f":"IF('1. Ordersheet'!AS541=\"\",\"\",'1. Ordersheet'!AS541)","v":""},{"$f":"IF('1. Ordersheet'!AT541=\"\",\"\",'1. Ordersheet'!AT541)","v":""},null,null,null,null,null,null,null,{"$f":"IF('1. Ordersheet'!AX541=\"\",\"\",'1. Ordersheet'!AX541)","v":""},{"$f":"IF('1. Ordersheet'!AY541=\"\",\"\",'1. Ordersheet'!AY541)","v":""},{"$f":"IF('1. Ordersheet'!AZ541=\"\",\"\",'1. Ordersheet'!AZ541)","v":""},{"$f":"IF('1. Ordersheet'!BA541=\"\",\"\",'1. Ordersheet'!BA541)","v":""},{"$f":"IF('1. Ordersheet'!BC541=\"\",\"\",'1. Ordersheet'!BC541)","v":""},{"$f":"IF('1. Ordersheet'!BD541=\"\",\"\",'1. Ordersheet'!BD541)","v":""},{"$f":"IF('1. Ordersheet'!BE541=\"\",\"\",'1. Ordersheet'!BE541)","v":""},{"$f":"IF('1. Ordersheet'!BF541=\"\",\"\",'1. Ordersheet'!BF541)","v":""},{"$f":"IF('1. Ordersheet'!BG541=\"\",\"\",'1. Ordersheet'!BG541)","v":"ZWO"},{"$f":"IF('1. Ordersheet'!BH541=\"\",\"\",'1. Ordersheet'!BH541)","v":""},{"$f":"IF('1. Ordersheet'!BI541=\"\",\"\",'1. Ordersheet'!BI541)","v":""},{"$f":"IF('1. Ordersheet'!BJ541=\"\",\"\",'1. Ordersheet'!BJ541)","v":""},{"$f":"IF('1. Ordersheet'!BK541=\"\",\"\",'1. Ordersheet'!BK541)","v":""},{"$f":"IF('1. Ordersheet'!BL541=\"\",\"\",'1. Ordersheet'!BL541)","v":""}]
[{"$f":"IF('1. Ordersheet'!F542=\"\",\"\",'1. Ordersheet'!F542)","v":""},{"$f":"IF('1. Ordersheet'!G542=\"\",\"\",'1. Ordersheet'!G542)","v":""},{"$f":"IF('1. Ordersheet'!H542=\"\",\"\",'1. Ordersheet'!H542)","v":""},{"$f":"IF('1. Ordersheet'!I542=\"\",\"\",'1. Ordersheet'!I542)","v":""},{"$f":"IF('1. Ordersheet'!J542=\"\",\"\",'1. Ordersheet'!J542)","v":""},{"$f":"IF('1. Ordersheet'!K542=\"\",\"\",'1. Ordersheet'!K542)","v":""},{"$f":"IF('1. Ordersheet'!L542=\"\",\"\",'1. Ordersheet'!L542)","v":""},{"$f":"IF('1. Ordersheet'!M542=\"\",\"\",'1. Ordersheet'!M542)","v":""},{"$f":"IF('1. Ordersheet'!N542=\"\",\"\",'1. Ordersheet'!N542)","v":""},{"$f":"IF('1. Ordersheet'!O542=\"\",\"\",'1. Ordersheet'!O542)","v":{"$error":"#N/A"}},{"$f":"IF('1. Ordersheet'!P542=\"\",\"\",'1. Ordersheet'!P542)","v":{"$error":"#N/A"}},{"$f":"IF('1. Ordersheet'!Q542=\"\",\"\",'1. Ordersheet'!Q542)","v":""},{"$f":"IF('1. Ordersheet'!R542=\"\",\"\",'1. Ordersheet'!R542)","v":""},{"$f":"IF('1. Ordersheet'!S542=\"\",\"\",'1. Ordersheet'!S542)","v":""},{"$f":"IF('1. Ordersheet'!V542=\"\",\"\",'1. Ordersheet'!V542)","v":""},{"$f":"IF('1. Ordersheet'!W542=\"\",\"\",'1. Ordersheet'!W542)","v":""},{"$f":"IF('1. Ordersheet'!X542=\"\",\"\",'1. Ordersheet'!X542)","v":""},{"$f":"IF('1. Ordersheet'!Y542=\"\",\"\",'1. Ordersheet'!Y542)","v":""},{"$f":"IF('1. Ordersheet'!Z542=\"\",\"\",'1. Ordersheet'!Z542)","v":""},{"$f":"IF('1. Ordersheet'!AA542=\"\",\"\",'1. Ordersheet'!AA542)","v":""},null,{"$f":"IF('1. Ordersheet'!AS542=\"\",\"\",'1. Ordersheet'!AS542)","v":""},{"$f":"IF('1. Ordersheet'!AT542=\"\",\"\",'1. Ordersheet'!AT542)","v":""},null,null,null,null,null,null,null,{"$f":"IF('1. Ordersheet'!AX542=\"\",\"\",'1. Ordersheet'!AX542)","v":""},{"$f":"IF('1. Ordersheet'!AY542=\"\",\"\",'1. Ordersheet'!AY542)","v":""},{"$f":"IF('1. Ordersheet'!AZ542=\"\",\"\",'1. Ordersheet'!AZ542)","v":""},{"$f":"IF('1. Ordersheet'!BA542=\"\",\"\",'1. Ordersheet'!BA542)","v":""},{"$f":"IF('1. Ordersheet'!BC542=\"\",\"\",'1. Ordersheet'!BC542)","v":""},{"$f":"IF('1. Ordersheet'!BD542=\"\",\"\",'1. Ordersheet'!BD542)","v":""},{"$f":"IF('1. Ordersheet'!BE542=\"\",\"\",'1. Ordersheet'!BE542)","v":""},{"$f":"IF('1. Ordersheet'!BF542=\"\",\"\",'1. Ordersheet'!BF542)","v":""},{"$f":"IF('1. Ordersheet'!BG542=\"\",\"\",'1. Ordersheet'!BG542)","v":"ZWO"},{"$f":"IF('1. Ordersheet'!BH542=\"\",\"\",'1. Ordersheet'!BH542)","v":""},{"$f":"IF('1. Ordersheet'!BI542=\"\",\"\",'1. Ordersheet'!BI542)","v":""},{"$f":"IF('1. Ordersheet'!BJ542=\"\",\"\",'1. Ordersheet'!BJ542)","v":""},{"$f":"IF('1. Ordersheet'!BK542=\"\",\"\",'1. Ordersheet'!BK542)","v":""},{"$f":"IF('1. Ordersheet'!BL542=\"\",\"\",'1. Ordersheet'!BL542)","v":""}]
[{"$f":"IF('1. Ordersheet'!F543=\"\",\"\",'1. Ordersheet'!F543)","v":""},{"$f":"IF('1. Ordersheet'!G543=\"\",\"\",'1. Ordersheet'!G543)","v":""},{"$f":"IF('1. Ordersheet'!H543=\"\",\"\",'1. Ordersheet'!H543)","v":""},{"$f":"IF('1. Ordersheet'!I543=\"\",\"\",'1. Ordersheet'!I543)","v":""},{"$f":"IF('1. Ordersheet'!J543=\"\",\"\",'1. Ordersheet'!J543)","v":""},{"$f":"IF('1. Ordersheet'!K543=\"\",\"\",'1. Ordersheet'!K543)","v":""},{"$f":"IF('1. Ordersheet'!L543=\"\",\"\",'1. Ordersheet'!L543)","v":""},{"$f":"IF('1. Ordersheet'!M543=\"\",\"\",'1. Ordersheet'!M543)","v":""},{"$f":"IF('1. Ordersheet'!N543=\"\",\"\",'1. Ordersheet'!N543)","v":""},{"$f":"IF('1. Ordersheet'!O543=\"\",\"\",'1. Ordersheet'!O543)","v":{"$error":"#N/A"}},{"$f":"IF('1. Ordersheet'!P543=\"\",\"\",'1. Ordersheet'!P543)","v":{"$error":"#N/A"}},{"$f":"IF('1. Ordersheet'!Q543=\"\",\"\",'1. Ordersheet'!Q543)","v":""},{"$f":"IF('1. Ordersheet'!R543=\"\",\"\",'1. Ordersheet'!R543)","v":""},{"$f":"IF('1. Ordersheet'!S543=\"\",\"\",'1. Ordersheet'!S543)","v":""},{"$f":"IF('1. Ordersheet'!V543=\"\",\"\",'1. Ordersheet'!V543)","v":""},{"$f":"IF('1. Ordersheet'!W543=\"\",\"\",'1. Ordersheet'!W543)","v":""},{"$f":"IF('1. Ordersheet'!X543=\"\",\"\",'1. Ordersheet'!X543)","v":""},{"$f":"IF('1. Ordersheet'!Y543=\"\",\"\",'1. Ordersheet'!Y543)","v":""},{"$f":"IF('1. Ordersheet'!Z543=\"\",\"\",'1. Ordersheet'!Z543)","v":""},{"$f":"IF('1. Ordersheet'!AA543=\"\",\"\",'1. Ordersheet'!AA543)","v":""},null,{"$f":"IF('1. Ordersheet'!AS543=\"\",\"\",'1. Ordersheet'!AS543)","v":""},{"$f":"IF('1. Ordersheet'!AT543=\"\",\"\",'1. Ordersheet'!AT543)","v":""},null,null,null,null,null,null,null,{"$f":"IF('1. Ordersheet'!AX543=\"\",\"\",'1. Ordersheet'!AX543)","v":""},{"$f":"IF('1. Ordersheet'!AY543=\"\",\"\",'1. Ordersheet'!AY543)","v":""},{"$f":"IF('1. Ordersheet'!AZ543=\"\",\"\",'1. Ordersheet'!AZ543)","v":""},{"$f":"IF('1. Ordersheet'!BA543=\"\",\"\",'1. Ordersheet'!BA543)","v":""},{"$f":"IF('1. Ordersheet'!BC543=\"\",\"\",'1. Ordersheet'!BC543)","v":""},{"$f":"IF('1. Ordersheet'!BD543=\"\",\"\",'1. Ordersheet'!BD543)","v":""},{"$f":"IF('1. Ordersheet'!BE543=\"\",\"\",'1. Ordersheet'!BE543)","v":""},{"$f":"IF('1. Ordersheet'!BF543=\"\",\"\",'1. Ordersheet'!BF543)","v":""},{"$f":"IF('1. Ordersheet'!BG543=\"\",\"\",'1. Ordersheet'!BG543)","v":"ZWO"},{"$f":"IF('1. Ordersheet'!BH543=\"\",\"\",'1. Ordersheet'!BH543)","v":""},{"$f":"IF('1. Ordersheet'!BI543=\"\",\"\",'1. Ordersheet'!BI543)","v":""},{"$f":"IF('1. Ordersheet'!BJ543=\"\",\"\",'1. Ordersheet'!BJ543)","v":""},{"$f":"IF('1. Ordersheet'!BK543=\"\",\"\",'1. Ordersheet'!BK543)","v":""},{"$f":"IF('1. Ordersheet'!BL543=\"\",\"\",'1. Ordersheet'!BL543)","v":""}]
[{"$f":"IF('1. Ordersheet'!F544=\"\",\"\",'1. Ordersheet'!F544)","v":""},{"$f":"IF('1. Ordersheet'!G544=\"\",\"\",'1. Ordersheet'!G544)","v":""},{"$f":"IF('1. Ordersheet'!H544=\"\",\"\",'1. Ordersheet'!H544)","v":""},{"$f":"IF('1. Ordersheet'!I544=\"\",\"\",'1. Ordersheet'!I544)","v":""},{"$f":"IF('1. Ordersheet'!J544=\"\",\"\",'1. Ordersheet'!J544)","v":""},{"$f":"IF('1. Ordersheet'!K544=\"\",\"\",'1. Ordersheet'!K544)","v":""},{"$f":"IF('1. Ordersheet'!L544=\"\",\"\",'1. Ordersheet'!L544)","v":""},{"$f":"IF('1. Ordersheet'!M544=\"\",\"\",'1. Ordersheet'!M544)","v":""},{"$f":"IF('1. Ordersheet'!N544=\"\",\"\",'1. Ordersheet'!N544)","v":""},{"$f":"IF('1. Ordersheet'!O544=\"\",\"\",'1. Ordersheet'!O544)","v":{"$error":"#N/A"}},{"$f":"IF('1. Ordersheet'!P544=\"\",\"\",'1. Ordersheet'!P544)","v":{"$error":"#N/A"}},{"$f":"IF('1. Ordersheet'!Q544=\"\",\"\",'1. Ordersheet'!Q544)","v":""},{"$f":"IF('1. Ordersheet'!R544=\"\",\"\",'1. Ordersheet'!R544)","v":""},{"$f":"IF('1. Ordersheet'!S544=\"\",\"\",'1. Ordersheet'!S544)","v":""},{"$f":"IF('1. Ordersheet'!V544=\"\",\"\",'1. Ordersheet'!V544)","v":""},{"$f":"IF('1. Ordersheet'!W544=\"\",\"\",'1. Ordersheet'!W544)","v":""},{"$f":"IF('1. Ordersheet'!X544=\"\",\"\",'1. Ordersheet'!X544)","v":""},{"$f":"IF('1. Ordersheet'!Y544=\"\",\"\",'1. Ordersheet'!Y544)","v":""},{"$f":"IF('1. Ordersheet'!Z544=\"\",\"\",'1. Ordersheet'!Z544)","v":""},{"$f":"IF('1. Ordersheet'!AA544=\"\",\"\",'1. Ordersheet'!AA544)","v":""},null,{"$f":"IF('1. Ordersheet'!AS544=\"\",\"\",'1. Ordersheet'!AS544)","v":""},{"$f":"IF('1. Ordersheet'!AT544=\"\",\"\",'1. Ordersheet'!AT544)","v":""},null,null,null,null,null,null,null,{"$f":"IF('1. Ordersheet'!AX544=\"\",\"\",'1. Ordersheet'!AX544)","v":""},{"$f":"IF('1. Ordersheet'!AY544=\"\",\"\",'1. Ordersheet'!AY544)","v":""},{"$f":"IF('1. Ordersheet'!AZ544=\"\",\"\",'1. Ordersheet'!AZ544)","v":""},{"$f":"IF('1. Ordersheet'!BA544=\"\",\"\",'1. Ordersheet'!BA544)","v":""},{"$f":"IF('1. Ordersheet'!BC544=\"\",\"\",'1. Ordersheet'!BC544)","v":""},{"$f":"IF('1. Ordersheet'!BD544=\"\",\"\",'1. Ordersheet'!BD544)","v":""},{"$f":"IF('1. Ordersheet'!BE544=\"\",\"\",'1. Ordersheet'!BE544)","v":""},{"$f":"IF('1. Ordersheet'!BF544=\"\",\"\",'1. Ordersheet'!BF544)","v":""},{"$f":"IF('1. Ordersheet'!BG544=\"\",\"\",'1. Ordersheet'!BG544)","v":"ZWO"},{"$f":"IF('1. Ordersheet'!BH544=\"\",\"\",'1. Ordersheet'!BH544)","v":""},{"$f":"IF('1. Ordersheet'!BI544=\"\",\"\",'1. Ordersheet'!BI544)","v":""},{"$f":"IF('1. Ordersheet'!BJ544=\"\",\"\",'1. Ordersheet'!BJ544)","v":""},{"$f":"IF('1. Ordersheet'!BK544=\"\",\"\",'1. Ordersheet'!BK544)","v":""},{"$f":"IF('1. Ordersheet'!BL544=\"\",\"\",'1. Ordersheet'!BL544)","v":""}]
[{"$f":"IF('1. Ordersheet'!F545=\"\",\"\",'1. Ordersheet'!F545)","v":""},{"$f":"IF('1. Ordersheet'!G545=\"\",\"\",'1. Ordersheet'!G545)","v":""},{"$f":"IF('1. Ordersheet'!H545=\"\",\"\",'1. Ordersheet'!H545)","v":""},{"$f":"IF('1. Ordersheet'!I545=\"\",\"\",'1. Ordersheet'!I545)","v":""},{"$f":"IF('1. Ordersheet'!J545=\"\",\"\",'1. Ordersheet'!J545)","v":""},{"$f":"IF('1. Ordersheet'!K545=\"\",\"\",'1. Ordersheet'!K545)","v":""},{"$f":"IF('1. Ordersheet'!L545=\"\",\"\",'1. Ordersheet'!L545)","v":""},{"$f":"IF('1. Ordersheet'!M545=\"\",\"\",'1. Ordersheet'!M545)","v":""},{"$f":"IF('1. Ordersheet'!N545=\"\",\"\",'1. Ordersheet'!N545)","v":""},{"$f":"IF('1. Ordersheet'!O545=\"\",\"\",'1. Ordersheet'!O545)","v":{"$error":"#N/A"}},{"$f":"IF('1. Ordersheet'!P545=\"\",\"\",'1. Ordersheet'!P545)","v":{"$error":"#N/A"}},{"$f":"IF('1. Ordersheet'!Q545=\"\",\"\",'1. Ordersheet'!Q545)","v":""},{"$f":"IF('1. Ordersheet'!R545=\"\",\"\",'1. Ordersheet'!R545)","v":""},{"$f":"IF('1. Ordersheet'!S545=\"\",\"\",'1. Ordersheet'!S545)","v":""},{"$f":"IF('1. Ordersheet'!V545=\"\",\"\",'1. Ordersheet'!V545)","v":""},{"$f":"IF('1. Ordersheet'!W545=\"\",\"\",'1. Ordersheet'!W545)","v":""},{"$f":"IF('1. Ordersheet'!X545=\"\",\"\",'1. Ordersheet'!X545)","v":""},{"$f":"IF('1. Ordersheet'!Y545=\"\",\"\",'1. Ordersheet'!Y545)","v":""},{"$f":"IF('1. Ordersheet'!Z545=\"\",\"\",'1. Ordersheet'!Z545)","v":""},{"$f":"IF('1. Ordersheet'!AA545=\"\",\"\",'1. Ordersheet'!AA545)","v":""},null,{"$f":"IF('1. Ordersheet'!AS545=\"\",\"\",'1. Ordersheet'!AS545)","v":""},{"$f":"IF('1. Ordersheet'!AT545=\"\",\"\",'1. Ordersheet'!AT545)","v":""},null,null,null,null,null,null,null,{"$f":"IF('1. Ordersheet'!AX545=\"\",\"\",'1. Ordersheet'!AX545)","v":""},{"$f":"IF('1. Ordersheet'!AY545=\"\",\"\",'1. Ordersheet'!AY545)","v":""},{"$f":"IF('1. Ordersheet'!AZ545=\"\",\"\",'1. Ordersheet'!AZ545)","v":""},{"$f":"IF('1. Ordersheet'!BA545=\"\",\"\",'1. Ordersheet'!BA545)","v":""},{"$f":"IF('1. Ordersheet'!BC545=\"\",\"\",'1. Ordersheet'!BC545)","v":""},{"$f":"IF('1. Ordersheet'!BD545=\"\",\"\",'1. Ordersheet'!BD545)","v":""},{"$f":"IF('1. Ordersheet'!BE545=\"\",\"\",'1. Ordersheet'!BE545)","v":""},{"$f":"IF('1. Ordersheet'!BF545=\"\",\"\",'1. Ordersheet'!BF545)","v":""},{"$f":"IF('1. Ordersheet'!BG545=\"\",\"\",'1. Ordersheet'!BG545)","v":"ZWO"},{"$f":"IF('1. Ordersheet'!BH545=\"\",\"\",'1. Ordersheet'!BH545)","v":""},{"$f":"IF('1. Ordersheet'!BI545=\"\",\"\",'1. Ordersheet'!BI545)","v":""},{"$f":"IF('1. Ordersheet'!BJ545=\"\",\"\",'1. Ordersheet'!BJ545)","v":""},{"$f":"IF('1. Ordersheet'!BK545=\"\",\"\",'1. Ordersheet'!BK545)","v":""},{"$f":"IF('1. Ordersheet'!BL545=\"\",\"\",'1. Ordersheet'!BL545)","v":""}]
[{"$f":"IF('1. Ordersheet'!F546=\"\",\"\",'1. Ordersheet'!F546)","v":""},{"$f":"IF('1. Ordersheet'!G546=\"\",\"\",'1. Ordersheet'!G546)","v":""},{"$f":"IF('1. Ordersheet'!H546=\"\",\"\",'1. Ordersheet'!H546)","v":""},{"$f":"IF('1. Ordersheet'!I546=\"\",\"\",'1. Ordersheet'!I546)","v":""},{"$f":"IF('1. Ordersheet'!J546=\"\",\"\",'1. Ordersheet'!J546)","v":""},{"$f":"IF('1. Ordersheet'!K546=\"\",\"\",'1. Ordersheet'!K546)","v":""},{"$f":"IF('1. Ordersheet'!L546=\"\",\"\",'1. Ordersheet'!L546)","v":""},{"$f":"IF('1. Ordersheet'!M546=\"\",\"\",'1. Ordersheet'!M546)","v":""},{"$f":"IF('1. Ordersheet'!N546=\"\",\"\",'1. Ordersheet'!N546)","v":""},{"$f":"IF('1. Ordersheet'!O546=\"\",\"\",'1. Ordersheet'!O546)","v":{"$error":"#N/A"}},{"$f":"IF('1. Ordersheet'!P546=\"\",\"\",'1. Ordersheet'!P546)","v":{"$error":"#N/A"}},{"$f":"IF('1. Ordersheet'!Q546=\"\",\"\",'1. Ordersheet'!Q546)","v":""},{"$f":"IF('1. Ordersheet'!R546=\"\",\"\",'1. Ordersheet'!R546)","v":""},{"$f":"IF('1. Ordersheet'!S546=\"\",\"\",'1. Ordersheet'!S546)","v":""},{"$f":"IF('1. Ordersheet'!V546=\"\",\"\",'1. Ordersheet'!V546)","v":""},{"$f":"IF('1. Ordersheet'!W546=\"\",\"\",'1. Ordersheet'!W546)","v":""},{"$f":"IF('1. Ordersheet'!X546=\"\",\"\",'1. Ordersheet'!X546)","v":""},{"$f":"IF('1. Ordersheet'!Y546=\"\",\"\",'1. Ordersheet'!Y546)","v":""},{"$f":"IF('1. Ordersheet'!Z546=\"\",\"\",'1. Ordersheet'!Z546)","v":""},{"$f":"IF('1. Ordersheet'!AA546=\"\",\"\",'1. Ordersheet'!AA546)","v":""},null,{"$f":"IF('1. Ordersheet'!AS546=\"\",\"\",'1. Ordersheet'!AS546)","v":""},{"$f":"IF('1. Ordersheet'!AT546=\"\",\"\",'1. Ordersheet'!AT546)","v":""},null,null,null,null,null,null,null,{"$f":"IF('1. Ordersheet'!AX546=\"\",\"\",'1. Ordersheet'!AX546)","v":""},{"$f":"IF('1. Ordersheet'!AY546=\"\",\"\",'1. Ordersheet'!AY546)","v":""},{"$f":"IF('1. Ordersheet'!AZ546=\"\",\"\",'1. Ordersheet'!AZ546)","v":""},{"$f":"IF('1. Ordersheet'!BA546=\"\",\"\",'1. Ordersheet'!BA546)","v":""},{"$f":"IF('1. Ordersheet'!BC546=\"\",\"\",'1. Ordersheet'!BC546)","v":""},{"$f":"IF('1. Ordersheet'!BD546=\"\",\"\",'1. Ordersheet'!BD546)","v":""},{"$f":"IF('1. Ordersheet'!BE546=\"\",\"\",'1. Ordersheet'!BE546)","v":""},{"$f":"IF('1. Ordersheet'!BF546=\"\",\"\",'1. Ordersheet'!BF546)","v":""},{"$f":"IF('1. Ordersheet'!BG546=\"\",\"\",'1. Ordersheet'!BG546)","v":"ZWO"},{"$f":"IF('1. Ordersheet'!BH546=\"\",\"\",'1. Ordersheet'!BH546)","v":""},{"$f":"IF('1. Ordersheet'!BI546=\"\",\"\",'1. Ordersheet'!BI546)","v":""},{"$f":"IF('1. Ordersheet'!BJ546=\"\",\"\",'1. Ordersheet'!BJ546)","v":""},{"$f":"IF('1. Ordersheet'!BK546=\"\",\"\",'1. Ordersheet'!BK546)","v":""},{"$f":"IF('1. Ordersheet'!BL546=\"\",\"\",'1. Ordersheet'!BL546)","v":""}]
[{"$f":"IF('1. Ordersheet'!F547=\"\",\"\",'1. Ordersheet'!F547)","v":""},{"$f":"IF('1. Ordersheet'!G547=\"\",\"\",'1. Ordersheet'!G547)","v":""},{"$f":"IF('1. Ordersheet'!H547=\"\",\"\",'1. Ordersheet'!H547)","v":""},{"$f":"IF('1. Ordersheet'!I547=\"\",\"\",'1. Ordersheet'!I547)","v":""},{"$f":"IF('1. Ordersheet'!J547=\"\",\"\",'1. Ordersheet'!J547)","v":""},{"$f":"IF('1. Ordersheet'!K547=\"\",\"\",'1. Ordersheet'!K547)","v":""},{"$f":"IF('1. Ordersheet'!L547=\"\",\"\",'1. Ordersheet'!L547)","v":""},{"$f":"IF('1. Ordersheet'!M547=\"\",\"\",'1. Ordersheet'!M547)","v":""},{"$f":"IF('1. Ordersheet'!N547=\"\",\"\",'1. Ordersheet'!N547)","v":""},{"$f":"IF('1. Ordersheet'!O547=\"\",\"\",'1. Ordersheet'!O547)","v":{"$error":"#N/A"}},{"$f":"IF('1. Ordersheet'!P547=\"\",\"\",'1. Ordersheet'!P547)","v":{"$error":"#N/A"}},{"$f":"IF('1. Ordersheet'!Q547=\"\",\"\",'1. Ordersheet'!Q547)","v":""},{"$f":"IF('1. Ordersheet'!R547=\"\",\"\",'1. Ordersheet'!R547)","v":""},{"$f":"IF('1. Ordersheet'!S547=\"\",\"\",'1. Ordersheet'!S547)","v":""},{"$f":"IF('1. Ordersheet'!V547=\"\",\"\",'1. Ordersheet'!V547)","v":""},{"$f":"IF('1. Ordersheet'!W547=\"\",\"\",'1. Ordersheet'!W547)","v":""},{"$f":"IF('1. Ordersheet'!X547=\"\",\"\",'1. Ordersheet'!X547)","v":""},{"$f":"IF('1. Ordersheet'!Y547=\"\",\"\",'1. Ordersheet'!Y547)","v":""},{"$f":"IF('1. Ordersheet'!Z547=\"\",\"\",'1. Ordersheet'!Z547)","v":""},{"$f":"IF('1. Ordersheet'!AA547=\"\",\"\",'1. Ordersheet'!AA547)","v":""},null,{"$f":"IF('1. Ordersheet'!AS547=\"\",\"\",'1. Ordersheet'!AS547)","v":""},{"$f":"IF('1. Ordersheet'!AT547=\"\",\"\",'1. Ordersheet'!AT547)","v":""},null,null,null,null,null,null,null,{"$f":"IF('1. Ordersheet'!AX547=\"\",\"\",'1. Ordersheet'!AX547)","v":""},{"$f":"IF('1. Ordersheet'!AY547=\"\",\"\",'1. Ordersheet'!AY547)","v":""},{"$f":"IF('1. Ordersheet'!AZ547=\"\",\"\",'1. Ordersheet'!AZ547)","v":""},{"$f":"IF('1. Ordersheet'!BA547=\"\",\"\",'1. Ordersheet'!BA547)","v":""},{"$f":"IF('1. Ordersheet'!BC547=\"\",\"\",'1. Ordersheet'!BC547)","v":""},{"$f":"IF('1. Ordersheet'!BD547=\"\",\"\",'1. Ordersheet'!BD547)","v":""},{"$f":"IF('1. Ordersheet'!BE547=\"\",\"\",'1. Ordersheet'!BE547)","v":""},{"$f":"IF('1. Ordersheet'!BF547=\"\",\"\",'1. Ordersheet'!BF547)","v":""},{"$f":"IF('1. Ordersheet'!BG547=\"\",\"\",'1. Ordersheet'!BG547)","v":"ZWO"},{"$f":"IF('1. Ordersheet'!BH547=\"\",\"\",'1. Ordersheet'!BH547)","v":""},{"$f":"IF('1. Ordersheet'!BI547=\"\",\"\",'1. Ordersheet'!BI547)","v":""},{"$f":"IF('1. Ordersheet'!BJ547=\"\",\"\",'1. Ordersheet'!BJ547)","v":""},{"$f":"IF('1. Ordersheet'!BK547=\"\",\"\",'1. Ordersheet'!BK547)","v":""},{"$f":"IF('1. Ordersheet'!BL547=\"\",\"\",'1. Ordersheet'!BL547)","v":""}]
[{"$f":"IF('1. Ordersheet'!F548=\"\",\"\",'1. Ordersheet'!F548)","v":""},{"$f":"IF('1. Ordersheet'!G548=\"\",\"\",'1. Ordersheet'!G548)","v":""},{"$f":"IF('1. Ordersheet'!H548=\"\",\"\",'1. Ordersheet'!H548)","v":""},{"$f":"IF('1. Ordersheet'!I548=\"\",\"\",'1. Ordersheet'!I548)","v":""},{"$f":"IF('1. Ordersheet'!J548=\"\",\"\",'1. Ordersheet'!J548)","v":""},{"$f":"IF('1. Ordersheet'!K548=\"\",\"\",'1. Ordersheet'!K548)","v":""},{"$f":"IF('1. Ordersheet'!L548=\"\",\"\",'1. Ordersheet'!L548)","v":""},{"$f":"IF('1. Ordersheet'!M548=\"\",\"\",'1. Ordersheet'!M548)","v":""},{"$f":"IF('1. Ordersheet'!N548=\"\",\"\",'1. Ordersheet'!N548)","v":""},{"$f":"IF('1. Ordersheet'!O548=\"\",\"\",'1. Ordersheet'!O548)","v":{"$error":"#N/A"}},{"$f":"IF('1. Ordersheet'!P548=\"\",\"\",'1. Ordersheet'!P548)","v":{"$error":"#N/A"}},{"$f":"IF('1. Ordersheet'!Q548=\"\",\"\",'1. Ordersheet'!Q548)","v":""},{"$f":"IF('1. Ordersheet'!R548=\"\",\"\",'1. Ordersheet'!R548)","v":""},{"$f":"IF('1. Ordersheet'!S548=\"\",\"\",'1. Ordersheet'!S548)","v":""},{"$f":"IF('1. Ordersheet'!V548=\"\",\"\",'1. Ordersheet'!V548)","v":""},{"$f":"IF('1. Ordersheet'!W548=\"\",\"\",'1. Ordersheet'!W548)","v":""},{"$f":"IF('1. Ordersheet'!X548=\"\",\"\",'1. Ordersheet'!X548)","v":""},{"$f":"IF('1. Ordersheet'!Y548=\"\",\"\",'1. Ordersheet'!Y548)","v":""},{"$f":"IF('1. Ordersheet'!Z548=\"\",\"\",'1. Ordersheet'!Z548)","v":""},{"$f":"IF('1. Ordersheet'!AA548=\"\",\"\",'1. Ordersheet'!AA548)","v":""},null,{"$f":"IF('1. Ordersheet'!AS548=\"\",\"\",'1. Ordersheet'!AS548)","v":""},{"$f":"IF('1. Ordersheet'!AT548=\"\",\"\",'1. Ordersheet'!AT548)","v":""},null,null,null,null,null,null,null,{"$f":"IF('1. Ordersheet'!AX548=\"\",\"\",'1. Ordersheet'!AX548)","v":""},{"$f":"IF('1. Ordersheet'!AY548=\"\",\"\",'1. Ordersheet'!AY548)","v":""},{"$f":"IF('1. Ordersheet'!AZ548=\"\",\"\",'1. Ordersheet'!AZ548)","v":""},{"$f":"IF('1. Ordersheet'!BA548=\"\",\"\",'1. Ordersheet'!BA548)","v":""},{"$f":"IF('1. Ordersheet'!BC548=\"\",\"\",'1. Ordersheet'!BC548)","v":""},{"$f":"IF('1. Ordersheet'!BD548=\"\",\"\",'1. Ordersheet'!BD548)","v":""},{"$f":"IF('1. Ordersheet'!BE548=\"\",\"\",'1. Ordersheet'!BE548)","v":""},{"$f":"IF('1. Ordersheet'!BF548=\"\",\"\",'1. Ordersheet'!BF548)","v":""},{"$f":"IF('1. Ordersheet'!BG548=\"\",\"\",'1. Ordersheet'!BG548)","v":"ZWO"},{"$f":"IF('1. Ordersheet'!BH548=\"\",\"\",'1. Ordersheet'!BH548)","v":""},{"$f":"IF('1. Ordersheet'!BI548=\"\",\"\",'1. Ordersheet'!BI548)","v":""},{"$f":"IF('1. Ordersheet'!BJ548=\"\",\"\",'1. Ordersheet'!BJ548)","v":""},{"$f":"IF('1. Ordersheet'!BK548=\"\",\"\",'1. Ordersheet'!BK548)","v":""},{"$f":"IF('1. Ordersheet'!BL548=\"\",\"\",'1. Ordersheet'!BL548)","v":""}]
[{"$f":"IF('1. Ordersheet'!F549=\"\",\"\",'1. Ordersheet'!F549)","v":""},{"$f":"IF('1. Ordersheet'!G549=\"\",\"\",'1. Ordersheet'!G549)","v":""},{"$f":"IF('1. Ordersheet'!H549=\"\",\"\",'1. Ordersheet'!H549)","v":""},{"$f":"IF('1. Ordersheet'!I549=\"\",\"\",'1. Ordersheet'!I549)","v":""},{"$f":"IF('1. Ordersheet'!J549=\"\",\"\",'1. Ordersheet'!J549)","v":""},{"$f":"IF('1. Ordersheet'!K549=\"\",\"\",'1. Ordersheet'!K549)","v":""},{"$f":"IF('1. Ordersheet'!L549=\"\",\"\",'1. Ordersheet'!L549)","v":""},{"$f":"IF('1. Ordersheet'!M549=\"\",\"\",'1. Ordersheet'!M549)","v":""},{"$f":"IF('1. Ordersheet'!N549=\"\",\"\",'1. Ordersheet'!N549)","v":""},{"$f":"IF('1. Ordersheet'!O549=\"\",\"\",'1. Ordersheet'!O549)","v":{"$error":"#N/A"}},{"$f":"IF('1. Ordersheet'!P549=\"\",\"\",'1. Ordersheet'!P549)","v":{"$error":"#N/A"}},{"$f":"IF('1. Ordersheet'!Q549=\"\",\"\",'1. Ordersheet'!Q549)","v":""},{"$f":"IF('1. Ordersheet'!R549=\"\",\"\",'1. Ordersheet'!R549)","v":""},{"$f":"IF('1. Ordersheet'!S549=\"\",\"\",'1. Ordersheet'!S549)","v":""},{"$f":"IF('1. Ordersheet'!V549=\"\",\"\",'1. Ordersheet'!V549)","v":""},{"$f":"IF('1. Ordersheet'!W549=\"\",\"\",'1. Ordersheet'!W549)","v":""},{"$f":"IF('1. Ordersheet'!X549=\"\",\"\",'1. Ordersheet'!X549)","v":""},{"$f":"IF('1. Ordersheet'!Y549=\"\",\"\",'1. Ordersheet'!Y549)","v":""},{"$f":"IF('1. Ordersheet'!Z549=\"\",\"\",'1. Ordersheet'!Z549)","v":""},{"$f":"IF('1. Ordersheet'!AA549=\"\",\"\",'1. Ordersheet'!AA549)","v":""},null,{"$f":"IF('1. Ordersheet'!AS549=\"\",\"\",'1. Ordersheet'!AS549)","v":""},{"$f":"IF('1. Ordersheet'!AT549=\"\",\"\",'1. Ordersheet'!AT549)","v":""},null,null,null,null,null,null,null,{"$f":"IF('1. Ordersheet'!AX549=\"\",\"\",'1. Ordersheet'!AX549)","v":""},{"$f":"IF('1. Ordersheet'!AY549=\"\",\"\",'1. Ordersheet'!AY549)","v":""},{"$f":"IF('1. Ordersheet'!AZ549=\"\",\"\",'1. Ordersheet'!AZ549)","v":""},{"$f":"IF('1. Ordersheet'!BA549=\"\",\"\",'1. Ordersheet'!BA549)","v":""},{"$f":"IF('1. Ordersheet'!BC549=\"\",\"\",'1. Ordersheet'!BC549)","v":""},{"$f":"IF('1. Ordersheet'!BD549=\"\",\"\",'1. Ordersheet'!BD549)","v":""},{"$f":"IF('1. Ordersheet'!BE549=\"\",\"\",'1. Ordersheet'!BE549)","v":""},{"$f":"IF('1. Ordersheet'!BF549=\"\",\"\",'1. Ordersheet'!BF549)","v":""},{"$f":"IF('1. Ordersheet'!BG549=\"\",\"\",'1. Ordersheet'!BG549)","v":"ZWO"},{"$f":"IF('1. Ordersheet'!BH549=\"\",\"\",'1. Ordersheet'!BH549)","v":""},{"$f":"IF('1. Ordersheet'!BI549=\"\",\"\",'1. Ordersheet'!BI549)","v":""},{"$f":"IF('1. Ordersheet'!BJ549=\"\",\"\",'1. Ordersheet'!BJ549)","v":""},{"$f":"IF('1. Ordersheet'!BK549=\"\",\"\",'1. Ordersheet'!BK549)","v":""},{"$f":"IF('1. Ordersheet'!BL549=\"\",\"\",'1. Ordersheet'!BL549)","v":""}]
[{"$f":"IF('1. Ordersheet'!F550=\"\",\"\",'1. Ordersheet'!F550)","v":""},{"$f":"IF('1. Ordersheet'!G550=\"\",\"\",'1. Ordersheet'!G550)","v":""},{"$f":"IF('1. Ordersheet'!H550=\"\",\"\",'1. Ordersheet'!H550)","v":""},{"$f":"IF('1. Ordersheet'!I550=\"\",\"\",'1. Ordersheet'!I550)","v":""},{"$f":"IF('1. Ordersheet'!J550=\"\",\"\",'1. Ordersheet'!J550)","v":""},{"$f":"IF('1. Ordersheet'!K550=\"\",\"\",'1. Ordersheet'!K550)","v":""},{"$f":"IF('1. Ordersheet'!L550=\"\",\"\",'1. Ordersheet'!L550)","v":""},{"$f":"IF('1. Ordersheet'!M550=\"\",\"\",'1. Ordersheet'!M550)","v":""},{"$f":"IF('1. Ordersheet'!N550=\"\",\"\",'1. Ordersheet'!N550)","v":""},{"$f":"IF('1. Ordersheet'!O550=\"\",\"\",'1. Ordersheet'!O550)","v":{"$error":"#N/A"}},{"$f":"IF('1. Ordersheet'!P550=\"\",\"\",'1. Ordersheet'!P550)","v":{"$error":"#N/A"}},{"$f":"IF('1. Ordersheet'!Q550=\"\",\"\",'1. Ordersheet'!Q550)","v":""},{"$f":"IF('1. Ordersheet'!R550=\"\",\"\",'1. Ordersheet'!R550)","v":""},{"$f":"IF('1. Ordersheet'!S550=\"\",\"\",'1. Ordersheet'!S550)","v":""},{"$f":"IF('1. Ordersheet'!V550=\"\",\"\",'1. Ordersheet'!V550)","v":""},{"$f":"IF('1. Ordersheet'!W550=\"\",\"\",'1. Ordersheet'!W550)","v":""},{"$f":"IF('1. Ordersheet'!X550=\"\",\"\",'1. Ordersheet'!X550)","v":""},{"$f":"IF('1. Ordersheet'!Y550=\"\",\"\",'1. Ordersheet'!Y550)","v":""},{"$f":"IF('1. Ordersheet'!Z550=\"\",\"\",'1. Ordersheet'!Z550)","v":""},{"$f":"IF('1. Ordersheet'!AA550=\"\",\"\",'1. Ordersheet'!AA550)","v":""},null,{"$f":"IF('1. Ordersheet'!AS550=\"\",\"\",'1. Ordersheet'!AS550)","v":""},{"$f":"IF('1. Ordersheet'!AT550=\"\",\"\",'1. Ordersheet'!AT550)","v":""},null,null,null,null,null,null,null,{"$f":"IF('1. Ordersheet'!AX550=\"\",\"\",'1. Ordersheet'!AX550)","v":""},{"$f":"IF('1. Ordersheet'!AY550=\"\",\"\",'1. Ordersheet'!AY550)","v":""},{"$f":"IF('1. Ordersheet'!AZ550=\"\",\"\",'1. Ordersheet'!AZ550)","v":""},{"$f":"IF('1. Ordersheet'!BA550=\"\",\"\",'1. Ordersheet'!BA550)","v":""},{"$f":"IF('1. Ordersheet'!BC550=\"\",\"\",'1. Ordersheet'!BC550)","v":""},{"$f":"IF('1. Ordersheet'!BD550=\"\",\"\",'1. Ordersheet'!BD550)","v":""},{"$f":"IF('1. Ordersheet'!BE550=\"\",\"\",'1. Ordersheet'!BE550)","v":""},{"$f":"IF('1. Ordersheet'!BF550=\"\",\"\",'1. Ordersheet'!BF550)","v":""},{"$f":"IF('1. Ordersheet'!BG550=\"\",\"\",'1. Ordersheet'!BG550)","v":"ZWO"},{"$f":"IF('1. Ordersheet'!BH550=\"\",\"\",'1. Ordersheet'!BH550)","v":""},{"$f":"IF('1. Ordersheet'!BI550=\"\",\"\",'1. Ordersheet'!BI550)","v":""},{"$f":"IF('1. Ordersheet'!BJ550=\"\",\"\",'1. Ordersheet'!BJ550)","v":""},{"$f":"IF('1. Ordersheet'!BK550=\"\",\"\",'1. Ordersheet'!BK550)","v":""},{"$f":"IF('1. Ordersheet'!BL550=\"\",\"\",'1. Ordersheet'!BL550)","v":""}]
[{"$f":"IF('1. Ordersheet'!F551=\"\",\"\",'1. Ordersheet'!F551)","v":""},{"$f":"IF('1. Ordersheet'!G551=\"\",\"\",'1. Ordersheet'!G551)","v":""},{"$f":"IF('1. Ordersheet'!H551=\"\",\"\",'1. Ordersheet'!H551)","v":""},{"$f":"IF('1. Ordersheet'!I551=\"\",\"\",'1. Ordersheet'!I551)","v":""},{"$f":"IF('1. Ordersheet'!J551=\"\",\"\",'1. Ordersheet'!J551)","v":""},{"$f":"IF('1. Ordersheet'!K551=\"\",\"\",'1. Ordersheet'!K551)","v":""},{"$f":"IF('1. Ordersheet'!L551=\"\",\"\",'1. Ordersheet'!L551)","v":""},{"$f":"IF('1. Ordersheet'!M551=\"\",\"\",'1. Ordersheet'!M551)","v":""},{"$f":"IF('1. Ordersheet'!N551=\"\",\"\",'1. Ordersheet'!N551)","v":""},{"$f":"IF('1. Ordersheet'!O551=\"\",\"\",'1. Ordersheet'!O551)","v":{"$error":"#N/A"}},{"$f":"IF('1. Ordersheet'!P551=\"\",\"\",'1. Ordersheet'!P551)","v":{"$error":"#N/A"}},{"$f":"IF('1. Ordersheet'!Q551=\"\",\"\",'1. Ordersheet'!Q551)","v":""},{"$f":"IF('1. Ordersheet'!R551=\"\",\"\",'1. Ordersheet'!R551)","v":""},{"$f":"IF('1. Ordersheet'!S551=\"\",\"\",'1. Ordersheet'!S551)","v":""},{"$f":"IF('1. Ordersheet'!V551=\"\",\"\",'1. Ordersheet'!V551)","v":""},{"$f":"IF('1. Ordersheet'!W551=\"\",\"\",'1. Ordersheet'!W551)","v":""},{"$f":"IF('1. Ordersheet'!X551=\"\",\"\",'1. Ordersheet'!X551)","v":""},{"$f":"IF('1. Ordersheet'!Y551=\"\",\"\",'1. Ordersheet'!Y551)","v":""},{"$f":"IF('1. Ordersheet'!Z551=\"\",\"\",'1. Ordersheet'!Z551)","v":""},{"$f":"IF('1. Ordersheet'!AA551=\"\",\"\",'1. Ordersheet'!AA551)","v":""},null,{"$f":"IF('1. Ordersheet'!AS551=\"\",\"\",'1. Ordersheet'!AS551)","v":""},{"$f":"IF('1. Ordersheet'!AT551=\"\",\"\",'1. Ordersheet'!AT551)","v":""},null,null,null,null,null,null,null,{"$f":"IF('1. Ordersheet'!AX551=\"\",\"\",'1. Ordersheet'!AX551)","v":""},{"$f":"IF('1. Ordersheet'!AY551=\"\",\"\",'1. Ordersheet'!AY551)","v":""},{"$f":"IF('1. Ordersheet'!AZ551=\"\",\"\",'1. Ordersheet'!AZ551)","v":""},{"$f":"IF('1. Ordersheet'!BA551=\"\",\"\",'1. Ordersheet'!BA551)","v":""},{"$f":"IF('1. Ordersheet'!BC551=\"\",\"\",'1. Ordersheet'!BC551)","v":""},{"$f":"IF('1. Ordersheet'!BD551=\"\",\"\",'1. Ordersheet'!BD551)","v":""},{"$f":"IF('1. Ordersheet'!BE551=\"\",\"\",'1. Ordersheet'!BE551)","v":""},{"$f":"IF('1. Ordersheet'!BF551=\"\",\"\",'1. Ordersheet'!BF551)","v":""},{"$f":"IF('1. Ordersheet'!BG551=\"\",\"\",'1. Ordersheet'!BG551)","v":"ZWO"},{"$f":"IF('1. Ordersheet'!BH551=\"\",\"\",'1. Ordersheet'!BH551)","v":""},{"$f":"IF('1. Ordersheet'!BI551=\"\",\"\",'1. Ordersheet'!BI551)","v":""},{"$f":"IF('1. Ordersheet'!BJ551=\"\",\"\",'1. Ordersheet'!BJ551)","v":""},{"$f":"IF('1. Ordersheet'!BK551=\"\",\"\",'1. Ordersheet'!BK551)","v":""},{"$f":"IF('1. Ordersheet'!BL551=\"\",\"\",'1. Ordersheet'!BL551)","v":""}]
[{"$f":"IF('1. Ordersheet'!F552=\"\",\"\",'1. Ordersheet'!F552)","v":""},{"$f":"IF('1. Ordersheet'!G552=\"\",\"\",'1. Ordersheet'!G552)","v":""},{"$f":"IF('1. Ordersheet'!H552=\"\",\"\",'1. Ordersheet'!H552)","v":""},{"$f":"IF('1. Ordersheet'!I552=\"\",\"\",'1. Ordersheet'!I552)","v":""},{"$f":"IF('1. Ordersheet'!J552=\"\",\"\",'1. Ordersheet'!J552)","v":""},{"$f":"IF('1. Ordersheet'!K552=\"\",\"\",'1. Ordersheet'!K552)","v":""},{"$f":"IF('1. Ordersheet'!L552=\"\",\"\",'1. Ordersheet'!L552)","v":""},{"$f":"IF('1. Ordersheet'!M552=\"\",\"\",'1. Ordersheet'!M552)","v":""},{"$f":"IF('1. Ordersheet'!N552=\"\",\"\",'1. Ordersheet'!N552)","v":""},{"$f":"IF('1. Ordersheet'!O552=\"\",\"\",'1. Ordersheet'!O552)","v":{"$error":"#N/A"}},{"$f":"IF('1. Ordersheet'!P552=\"\",\"\",'1. Ordersheet'!P552)","v":{"$error":"#N/A"}},{"$f":"IF('1. Ordersheet'!Q552=\"\",\"\",'1. Ordersheet'!Q552)","v":""},{"$f":"IF('1. Ordersheet'!R552=\"\",\"\",'1. Ordersheet'!R552)","v":""},{"$f":"IF('1. Ordersheet'!S552=\"\",\"\",'1. Ordersheet'!S552)","v":""},{"$f":"IF('1. Ordersheet'!V552=\"\",\"\",'1. Ordersheet'!V552)","v":""},{"$f":"IF('1. Ordersheet'!W552=\"\",\"\",'1. Ordersheet'!W552)","v":""},{"$f":"IF('1. Ordersheet'!X552=\"\",\"\",'1. Ordersheet'!X552)","v":""},{"$f":"IF('1. Ordersheet'!Y552=\"\",\"\",'1. Ordersheet'!Y552)","v":""},{"$f":"IF('1. Ordersheet'!Z552=\"\",\"\",'1. Ordersheet'!Z552)","v":""},{"$f":"IF('1. Ordersheet'!AA552=\"\",\"\",'1. Ordersheet'!AA552)","v":""},null,{"$f":"IF('1. Ordersheet'!AS552=\"\",\"\",'1. Ordersheet'!AS552)","v":""},{"$f":"IF('1. Ordersheet'!AT552=\"\",\"\",'1. Ordersheet'!AT552)","v":""},null,null,null,null,null,null,null,{"$f":"IF('1. Ordersheet'!AX552=\"\",\"\",'1. Ordersheet'!AX552)","v":""},{"$f":"IF('1. Ordersheet'!AY552=\"\",\"\",'1. Ordersheet'!AY552)","v":""},{"$f":"IF('1. Ordersheet'!AZ552=\"\",\"\",'1. Ordersheet'!AZ552)","v":""},{"$f":"IF('1. Ordersheet'!BA552=\"\",\"\",'1. Ordersheet'!BA552)","v":""},{"$f":"IF('1. Ordersheet'!BC552=\"\",\"\",'1. Ordersheet'!BC552)","v":""},{"$f":"IF('1. Ordersheet'!BD552=\"\",\"\",'1. Ordersheet'!BD552)","v":""},{"$f":"IF('1. Ordersheet'!BE552=\"\",\"\",'1. Ordersheet'!BE552)","v":""},{"$f":"IF('1. Ordersheet'!BF552=\"\",\"\",'1. Ordersheet'!BF552)","v":""},{"$f":"IF('1. Ordersheet'!BG552=\"\",\"\",'1. Ordersheet'!BG552)","v":"ZWO"},{"$f":"IF('1. Ordersheet'!BH552=\"\",\"\",'1. Ordersheet'!BH552)","v":""},{"$f":"IF('1. Ordersheet'!BI552=\"\",\"\",'1. Ordersheet'!BI552)","v":""},{"$f":"IF('1. Ordersheet'!BJ552=\"\",\"\",'1. Ordersheet'!BJ552)","v":""},{"$f":"IF('1. Ordersheet'!BK552=\"\",\"\",'1. Ordersheet'!BK552)","v":""},{"$f":"IF('1. Ordersheet'!BL552=\"\",\"\",'1. Ordersheet'!BL552)","v":""}]
[{"$f":"IF('1. Ordersheet'!F553=\"\",\"\",'1. Ordersheet'!F553)","v":""},{"$f":"IF('1. Ordersheet'!G553=\"\",\"\",'1. Ordersheet'!G553)","v":""},{"$f":"IF('1. Ordersheet'!H553=\"\",\"\",'1. Ordersheet'!H553)","v":""},{"$f":"IF('1. Ordersheet'!I553=\"\",\"\",'1. Ordersheet'!I553)","v":""},{"$f":"IF('1. Ordersheet'!J553=\"\",\"\",'1. Ordersheet'!J553)","v":""},{"$f":"IF('1. Ordersheet'!K553=\"\",\"\",'1. Ordersheet'!K553)","v":""},{"$f":"IF('1. Ordersheet'!L553=\"\",\"\",'1. Ordersheet'!L553)","v":""},{"$f":"IF('1. Ordersheet'!M553=\"\",\"\",'1. Ordersheet'!M553)","v":""},{"$f":"IF('1. Ordersheet'!N553=\"\",\"\",'1. Ordersheet'!N553)","v":""},{"$f":"IF('1. Ordersheet'!O553=\"\",\"\",'1. Ordersheet'!O553)","v":{"$error":"#N/A"}},{"$f":"IF('1. Ordersheet'!P553=\"\",\"\",'1. Ordersheet'!P553)","v":{"$error":"#N/A"}},{"$f":"IF('1. Ordersheet'!Q553=\"\",\"\",'1. Ordersheet'!Q553)","v":""},{"$f":"IF('1. Ordersheet'!R553=\"\",\"\",'1. Ordersheet'!R553)","v":""},{"$f":"IF('1. Ordersheet'!S553=\"\",\"\",'1. Ordersheet'!S553)","v":""},{"$f":"IF('1. Ordersheet'!V553=\"\",\"\",'1. Ordersheet'!V553)","v":""},{"$f":"IF('1. Ordersheet'!W553=\"\",\"\",'1. Ordersheet'!W553)","v":""},{"$f":"IF('1. Ordersheet'!X553=\"\",\"\",'1. Ordersheet'!X553)","v":""},{"$f":"IF('1. Ordersheet'!Y553=\"\",\"\",'1. Ordersheet'!Y553)","v":""},{"$f":"IF('1. Ordersheet'!Z553=\"\",\"\",'1. Ordersheet'!Z553)","v":""},{"$f":"IF('1. Ordersheet'!AA553=\"\",\"\",'1. Ordersheet'!AA553)","v":""},null,{"$f":"IF('1. Ordersheet'!AS553=\"\",\"\",'1. Ordersheet'!AS553)","v":""},{"$f":"IF('1. Ordersheet'!AT553=\"\",\"\",'1. Ordersheet'!AT553)","v":""},null,null,null,null,null,null,null,{"$f":"IF('1. Ordersheet'!AX553=\"\",\"\",'1. Ordersheet'!AX553)","v":""},{"$f":"IF('1. Ordersheet'!AY553=\"\",\"\",'1. Ordersheet'!AY553)","v":""},{"$f":"IF('1. Ordersheet'!AZ553=\"\",\"\",'1. Ordersheet'!AZ553)","v":""},{"$f":"IF('1. Ordersheet'!BA553=\"\",\"\",'1. Ordersheet'!BA553)","v":""},{"$f":"IF('1. Ordersheet'!BC553=\"\",\"\",'1. Ordersheet'!BC553)","v":""},{"$f":"IF('1. Ordersheet'!BD553=\"\",\"\",'1. Ordersheet'!BD553)","v":""},{"$f":"IF('1. Ordersheet'!BE553=\"\",\"\",'1. Ordersheet'!BE553)","v":""},{"$f":"IF('1. Ordersheet'!BF553=\"\",\"\",'1. Ordersheet'!BF553)","v":""},{"$f":"IF('1. Ordersheet'!BG553=\"\",\"\",'1. Ordersheet'!BG553)","v":"ZWO"},{"$f":"IF('1. Ordersheet'!BH553=\"\",\"\",'1. Ordersheet'!BH553)","v":""},{"$f":"IF('1. Ordersheet'!BI553=\"\",\"\",'1. Ordersheet'!BI553)","v":""},{"$f":"IF('1. Ordersheet'!BJ553=\"\",\"\",'1. Ordersheet'!BJ553)","v":""},{"$f":"IF('1. Ordersheet'!BK553=\"\",\"\",'1. Ordersheet'!BK553)","v":""},{"$f":"IF('1. Ordersheet'!BL553=\"\",\"\",'1. Ordersheet'!BL553)","v":""}]
[{"$f":"IF('1. Ordersheet'!F554=\"\",\"\",'1. Ordersheet'!F554)","v":""},{"$f":"IF('1. Ordersheet'!G554=\"\",\"\",'1. Ordersheet'!G554)","v":""},{"$f":"IF('1. Ordersheet'!H554=\"\",\"\",'1. Ordersheet'!H554)","v":""},{"$f":"IF('1. Ordersheet'!I554=\"\",\"\",'1. Ordersheet'!I554)","v":""},{"$f":"IF('1. Ordersheet'!J554=\"\",\"\",'1. Ordersheet'!J554)","v":""},{"$f":"IF('1. Ordersheet'!K554=\"\",\"\",'1. Ordersheet'!K554)","v":""},{"$f":"IF('1. Ordersheet'!L554=\"\",\"\",'1. Ordersheet'!L554)","v":""},{"$f":"IF('1. Ordersheet'!M554=\"\",\"\",'1. Ordersheet'!M554)","v":""},{"$f":"IF('1. Ordersheet'!N554=\"\",\"\",'1. Ordersheet'!N554)","v":""},{"$f":"IF('1. Ordersheet'!O554=\"\",\"\",'1. Ordersheet'!O554)","v":{"$error":"#N/A"}},{"$f":"IF('1. Ordersheet'!P554=\"\",\"\",'1. Ordersheet'!P554)","v":{"$error":"#N/A"}},{"$f":"IF('1. Ordersheet'!Q554=\"\",\"\",'1. Ordersheet'!Q554)","v":""},{"$f":"IF('1. Ordersheet'!R554=\"\",\"\",'1. Ordersheet'!R554)","v":""},{"$f":"IF('1. Ordersheet'!S554=\"\",\"\",'1. Ordersheet'!S554)","v":""},{"$f":"IF('1. Ordersheet'!V554=\"\",\"\",'1. Ordersheet'!V554)","v":""},{"$f":"IF('1. Ordersheet'!W554=\"\",\"\",'1. Ordersheet'!W554)","v":""},{"$f":"IF('1. Ordersheet'!X554=\"\",\"\",'1. Ordersheet'!X554)","v":""},{"$f":"IF('1. Ordersheet'!Y554=\"\",\"\",'1. Ordersheet'!Y554)","v":""},{"$f":"IF('1. Ordersheet'!Z554=\"\",\"\",'1. Ordersheet'!Z554)","v":""},{"$f":"IF('1. Ordersheet'!AA554=\"\",\"\",'1. Ordersheet'!AA554)","v":""},null,{"$f":"IF('1. Ordersheet'!AS554=\"\",\"\",'1. Ordersheet'!AS554)","v":""},{"$f":"IF('1. Ordersheet'!AT554=\"\",\"\",'1. Ordersheet'!AT554)","v":""},null,null,null,null,null,null,null,{"$f":"IF('1. Ordersheet'!AX554=\"\",\"\",'1. Ordersheet'!AX554)","v":""},{"$f":"IF('1. Ordersheet'!AY554=\"\",\"\",'1. Ordersheet'!AY554)","v":""},{"$f":"IF('1. Ordersheet'!AZ554=\"\",\"\",'1. Ordersheet'!AZ554)","v":""},{"$f":"IF('1. Ordersheet'!BA554=\"\",\"\",'1. Ordersheet'!BA554)","v":""},{"$f":"IF('1. Ordersheet'!BC554=\"\",\"\",'1. Ordersheet'!BC554)","v":""},{"$f":"IF('1. Ordersheet'!BD554=\"\",\"\",'1. Ordersheet'!BD554)","v":""},{"$f":"IF('1. Ordersheet'!BE554=\"\",\"\",'1. Ordersheet'!BE554)","v":""},{"$f":"IF('1. Ordersheet'!BF554=\"\",\"\",'1. Ordersheet'!BF554)","v":""},{"$f":"IF('1. Ordersheet'!BG554=\"\",\"\",'1. Ordersheet'!BG554)","v":"ZWO"},{"$f":"IF('1. Ordersheet'!BH554=\"\",\"\",'1. Ordersheet'!BH554)","v":""},{"$f":"IF('1. Ordersheet'!BI554=\"\",\"\",'1. Ordersheet'!BI554)","v":""},{"$f":"IF('1. Ordersheet'!BJ554=\"\",\"\",'1. Ordersheet'!BJ554)","v":""},{"$f":"IF('1. Ordersheet'!BK554=\"\",\"\",'1. Ordersheet'!BK554)","v":""},{"$f":"IF('1. Ordersheet'!BL554=\"\",\"\",'1. Ordersheet'!BL554)","v":""}]
[{"$f":"IF('1. Ordersheet'!F555=\"\",\"\",'1. Ordersheet'!F555)","v":""},{"$f":"IF('1. Ordersheet'!G555=\"\",\"\",'1. Ordersheet'!G555)","v":""},{"$f":"IF('1. Ordersheet'!H555=\"\",\"\",'1. Ordersheet'!H555)","v":""},{"$f":"IF('1. Ordersheet'!I555=\"\",\"\",'1. Ordersheet'!I555)","v":""},{"$f":"IF('1. Ordersheet'!J555=\"\",\"\",'1. Ordersheet'!J555)","v":""},{"$f":"IF('1. Ordersheet'!K555=\"\",\"\",'1. Ordersheet'!K555)","v":""},{"$f":"IF('1. Ordersheet'!L555=\"\",\"\",'1. Ordersheet'!L555)","v":""},{"$f":"IF('1. Ordersheet'!M555=\"\",\"\",'1. Ordersheet'!M555)","v":""},{"$f":"IF('1. Ordersheet'!N555=\"\",\"\",'1. Ordersheet'!N555)","v":""},{"$f":"IF('1. Ordersheet'!O555=\"\",\"\",'1. Ordersheet'!O555)","v":{"$error":"#N/A"}},{"$f":"IF('1. Ordersheet'!P555=\"\",\"\",'1. Ordersheet'!P555)","v":{"$error":"#N/A"}},{"$f":"IF('1. Ordersheet'!Q555=\"\",\"\",'1. Ordersheet'!Q555)","v":""},{"$f":"IF('1. Ordersheet'!R555=\"\",\"\",'1. Ordersheet'!R555)","v":""},{"$f":"IF('1. Ordersheet'!S555=\"\",\"\",'1. Ordersheet'!S555)","v":""},{"$f":"IF('1. Ordersheet'!V555=\"\",\"\",'1. Ordersheet'!V555)","v":""},{"$f":"IF('1. Ordersheet'!W555=\"\",\"\",'1. Ordersheet'!W555)","v":""},{"$f":"IF('1. Ordersheet'!X555=\"\",\"\",'1. Ordersheet'!X555)","v":""},{"$f":"IF('1. Ordersheet'!Y555=\"\",\"\",'1. Ordersheet'!Y555)","v":""},{"$f":"IF('1. Ordersheet'!Z555=\"\",\"\",'1. Ordersheet'!Z555)","v":""},{"$f":"IF('1. Ordersheet'!AA555=\"\",\"\",'1. Ordersheet'!AA555)","v":""},null,{"$f":"IF('1. Ordersheet'!AS555=\"\",\"\",'1. Ordersheet'!AS555)","v":""},{"$f":"IF('1. Ordersheet'!AT555=\"\",\"\",'1. Ordersheet'!AT555)","v":""},null,null,null,null,null,null,null,{"$f":"IF('1. Ordersheet'!AX555=\"\",\"\",'1. Ordersheet'!AX555)","v":""},{"$f":"IF('1. Ordersheet'!AY555=\"\",\"\",'1. Ordersheet'!AY555)","v":""},{"$f":"IF('1. Ordersheet'!AZ555=\"\",\"\",'1. Ordersheet'!AZ555)","v":""},{"$f":"IF('1. Ordersheet'!BA555=\"\",\"\",'1. Ordersheet'!BA555)","v":""},{"$f":"IF('1. Ordersheet'!BC555=\"\",\"\",'1. Ordersheet'!BC555)","v":""},{"$f":"IF('1. Ordersheet'!BD555=\"\",\"\",'1. Ordersheet'!BD555)","v":""},{"$f":"IF('1. Ordersheet'!BE555=\"\",\"\",'1. Ordersheet'!BE555)","v":""},{"$f":"IF('1. Ordersheet'!BF555=\"\",\"\",'1. Ordersheet'!BF555)","v":""},{"$f":"IF('1. Ordersheet'!BG555=\"\",\"\",'1. Ordersheet'!BG555)","v":"ZWO"},{"$f":"IF('1. Ordersheet'!BH555=\"\",\"\",'1. Ordersheet'!BH555)","v":""},{"$f":"IF('1. Ordersheet'!BI555=\"\",\"\",'1. Ordersheet'!BI555)","v":""},{"$f":"IF('1. Ordersheet'!BJ555=\"\",\"\",'1. Ordersheet'!BJ555)","v":""},{"$f":"IF('1. Ordersheet'!BK555=\"\",\"\",'1. Ordersheet'!BK555)","v":""},{"$f":"IF('1. Ordersheet'!BL555=\"\",\"\",'1. Ordersheet'!BL555)","v":""}]
[{"$f":"IF('1. Ordersheet'!F556=\"\",\"\",'1. Ordersheet'!F556)","v":""},{"$f":"IF('1. Ordersheet'!G556=\"\",\"\",'1. Ordersheet'!G556)","v":""},{"$f":"IF('1. Ordersheet'!H556=\"\",\"\",'1. Ordersheet'!H556)","v":""},{"$f":"IF('1. Ordersheet'!I556=\"\",\"\",'1. Ordersheet'!I556)","v":""},{"$f":"IF('1. Ordersheet'!J556=\"\",\"\",'1. Ordersheet'!J556)","v":""},{"$f":"IF('1. Ordersheet'!K556=\"\",\"\",'1. Ordersheet'!K556)","v":""},{"$f":"IF('1. Ordersheet'!L556=\"\",\"\",'1. Ordersheet'!L556)","v":""},{"$f":"IF('1. Ordersheet'!M556=\"\",\"\",'1. Ordersheet'!M556)","v":""},{"$f":"IF('1. Ordersheet'!N556=\"\",\"\",'1. Ordersheet'!N556)","v":""},{"$f":"IF('1. Ordersheet'!O556=\"\",\"\",'1. Ordersheet'!O556)","v":{"$error":"#N/A"}},{"$f":"IF('1. Ordersheet'!P556=\"\",\"\",'1. Ordersheet'!P556)","v":{"$error":"#N/A"}},{"$f":"IF('1. Ordersheet'!Q556=\"\",\"\",'1. Ordersheet'!Q556)","v":""},{"$f":"IF('1. Ordersheet'!R556=\"\",\"\",'1. Ordersheet'!R556)","v":""},{"$f":"IF('1. Ordersheet'!S556=\"\",\"\",'1. Ordersheet'!S556)","v":""},{"$f":"IF('1. Ordersheet'!V556=\"\",\"\",'1. Ordersheet'!V556)","v":""},{"$f":"IF('1. Ordersheet'!W556=\"\",\"\",'1. Ordersheet'!W556)","v":""},{"$f":"IF('1. Ordersheet'!X556=\"\",\"\",'1. Ordersheet'!X556)","v":""},{"$f":"IF('1. Ordersheet'!Y556=\"\",\"\",'1. Ordersheet'!Y556)","v":""},{"$f":"IF('1. Ordersheet'!Z556=\"\",\"\",'1. Ordersheet'!Z556)","v":""},{"$f":"IF('1. Ordersheet'!AA556=\"\",\"\",'1. Ordersheet'!AA556)","v":""},null,{"$f":"IF('1. Ordersheet'!AS556=\"\",\"\",'1. Ordersheet'!AS556)","v":""},{"$f":"IF('1. Ordersheet'!AT556=\"\",\"\",'1. Ordersheet'!AT556)","v":""},null,null,null,null,null,null,null,{"$f":"IF('1. Ordersheet'!AX556=\"\",\"\",'1. Ordersheet'!AX556)","v":""},{"$f":"IF('1. Ordersheet'!AY556=\"\",\"\",'1. Ordersheet'!AY556)","v":""},{"$f":"IF('1. Ordersheet'!AZ556=\"\",\"\",'1. Ordersheet'!AZ556)","v":""},{"$f":"IF('1. Ordersheet'!BA556=\"\",\"\",'1. Ordersheet'!BA556)","v":""},{"$f":"IF('1. Ordersheet'!BC556=\"\",\"\",'1. Ordersheet'!BC556)","v":""},{"$f":"IF('1. Ordersheet'!BD556=\"\",\"\",'1. Ordersheet'!BD556)","v":""},{"$f":"IF('1. Ordersheet'!BE556=\"\",\"\",'1. Ordersheet'!BE556)","v":""},{"$f":"IF('1. Ordersheet'!BF556=\"\",\"\",'1. Ordersheet'!BF556)","v":""},{"$f":"IF('1. Ordersheet'!BG556=\"\",\"\",'1. Ordersheet'!BG556)","v":"ZWO"},{"$f":"IF('1. Ordersheet'!BH556=\"\",\"\",'1. Ordersheet'!BH556)","v":""},{"$f":"IF('1. Ordersheet'!BI556=\"\",\"\",'1. Ordersheet'!BI556)","v":""},{"$f":"IF('1. Ordersheet'!BJ556=\"\",\"\",'1. Ordersheet'!BJ556)","v":""},{"$f":"IF('1. Ordersheet'!BK556=\"\",\"\",'1. Ordersheet'!BK556)","v":""},{"$f":"IF('1. Ordersheet'!BL556=\"\",\"\",'1. Ordersheet'!BL556)","v":""}]
[{"$f":"IF('1. Ordersheet'!F557=\"\",\"\",'1. Ordersheet'!F557)","v":""},{"$f":"IF('1. Ordersheet'!G557=\"\",\"\",'1. Ordersheet'!G557)","v":""},{"$f":"IF('1. Ordersheet'!H557=\"\",\"\",'1. Ordersheet'!H557)","v":""},{"$f":"IF('1. Ordersheet'!I557=\"\",\"\",'1. Ordersheet'!I557)","v":""},{"$f":"IF('1. Ordersheet'!J557=\"\",\"\",'1. Ordersheet'!J557)","v":""},{"$f":"IF('1. Ordersheet'!K557=\"\",\"\",'1. Ordersheet'!K557)","v":""},{"$f":"IF('1. Ordersheet'!L557=\"\",\"\",'1. Ordersheet'!L557)","v":""},{"$f":"IF('1. Ordersheet'!M557=\"\",\"\",'1. Ordersheet'!M557)","v":""},{"$f":"IF('1. Ordersheet'!N557=\"\",\"\",'1. Ordersheet'!N557)","v":""},{"$f":"IF('1. Ordersheet'!O557=\"\",\"\",'1. Ordersheet'!O557)","v":{"$error":"#N/A"}},{"$f":"IF('1. Ordersheet'!P557=\"\",\"\",'1. Ordersheet'!P557)","v":{"$error":"#N/A"}},{"$f":"IF('1. Ordersheet'!Q557=\"\",\"\",'1. Ordersheet'!Q557)","v":""},{"$f":"IF('1. Ordersheet'!R557=\"\",\"\",'1. Ordersheet'!R557)","v":""},{"$f":"IF('1. Ordersheet'!S557=\"\",\"\",'1. Ordersheet'!S557)","v":""},{"$f":"IF('1. Ordersheet'!V557=\"\",\"\",'1. Ordersheet'!V557)","v":""},{"$f":"IF('1. Ordersheet'!W557=\"\",\"\",'1. Ordersheet'!W557)","v":""},{"$f":"IF('1. Ordersheet'!X557=\"\",\"\",'1. Ordersheet'!X557)","v":""},{"$f":"IF('1. Ordersheet'!Y557=\"\",\"\",'1. Ordersheet'!Y557)","v":""},{"$f":"IF('1. Ordersheet'!Z557=\"\",\"\",'1. Ordersheet'!Z557)","v":""},{"$f":"IF('1. Ordersheet'!AA557=\"\",\"\",'1. Ordersheet'!AA557)","v":""},null,{"$f":"IF('1. Ordersheet'!AS557=\"\",\"\",'1. Ordersheet'!AS557)","v":""},{"$f":"IF('1. Ordersheet'!AT557=\"\",\"\",'1. Ordersheet'!AT557)","v":""},null,null,null,null,null,null,null,{"$f":"IF('1. Ordersheet'!AX557=\"\",\"\",'1. Ordersheet'!AX557)","v":""},{"$f":"IF('1. Ordersheet'!AY557=\"\",\"\",'1. Ordersheet'!AY557)","v":""},{"$f":"IF('1. Ordersheet'!AZ557=\"\",\"\",'1. Ordersheet'!AZ557)","v":""},{"$f":"IF('1. Ordersheet'!BA557=\"\",\"\",'1. Ordersheet'!BA557)","v":""},{"$f":"IF('1. Ordersheet'!BC557=\"\",\"\",'1. Ordersheet'!BC557)","v":""},{"$f":"IF('1. Ordersheet'!BD557=\"\",\"\",'1. Ordersheet'!BD557)","v":""},{"$f":"IF('1. Ordersheet'!BE557=\"\",\"\",'1. Ordersheet'!BE557)","v":""},{"$f":"IF('1. Ordersheet'!BF557=\"\",\"\",'1. Ordersheet'!BF557)","v":""},{"$f":"IF('1. Ordersheet'!BG557=\"\",\"\",'1. Ordersheet'!BG557)","v":"ZWO"},{"$f":"IF('1. Ordersheet'!BH557=\"\",\"\",'1. Ordersheet'!BH557)","v":""},{"$f":"IF('1. Ordersheet'!BI557=\"\",\"\",'1. Ordersheet'!BI557)","v":""},{"$f":"IF('1. Ordersheet'!BJ557=\"\",\"\",'1. Ordersheet'!BJ557)","v":""},{"$f":"IF('1. Ordersheet'!BK557=\"\",\"\",'1. Ordersheet'!BK557)","v":""},{"$f":"IF('1. Ordersheet'!BL557=\"\",\"\",'1. Ordersheet'!BL557)","v":""}]
[{"$f":"IF('1. Ordersheet'!F558=\"\",\"\",'1. Ordersheet'!F558)","v":""},{"$f":"IF('1. Ordersheet'!G558=\"\",\"\",'1. Ordersheet'!G558)","v":""},{"$f":"IF('1. Ordersheet'!H558=\"\",\"\",'1. Ordersheet'!H558)","v":""},{"$f":"IF('1. Ordersheet'!I558=\"\",\"\",'1. Ordersheet'!I558)","v":""},{"$f":"IF('1. Ordersheet'!J558=\"\",\"\",'1. Ordersheet'!J558)","v":""},{"$f":"IF('1. Ordersheet'!K558=\"\",\"\",'1. Ordersheet'!K558)","v":""},{"$f":"IF('1. Ordersheet'!L558=\"\",\"\",'1. Ordersheet'!L558)","v":""},{"$f":"IF('1. Ordersheet'!M558=\"\",\"\",'1. Ordersheet'!M558)","v":""},{"$f":"IF('1. Ordersheet'!N558=\"\",\"\",'1. Ordersheet'!N558)","v":""},{"$f":"IF('1. Ordersheet'!O558=\"\",\"\",'1. Ordersheet'!O558)","v":{"$error":"#N/A"}},{"$f":"IF('1. Ordersheet'!P558=\"\",\"\",'1. Ordersheet'!P558)","v":{"$error":"#N/A"}},{"$f":"IF('1. Ordersheet'!Q558=\"\",\"\",'1. Ordersheet'!Q558)","v":""},{"$f":"IF('1. Ordersheet'!R558=\"\",\"\",'1. Ordersheet'!R558)","v":""},{"$f":"IF('1. Ordersheet'!S558=\"\",\"\",'1. Ordersheet'!S558)","v":""},{"$f":"IF('1. Ordersheet'!V558=\"\",\"\",'1. Ordersheet'!V558)","v":""},{"$f":"IF('1. Ordersheet'!W558=\"\",\"\",'1. Ordersheet'!W558)","v":""},{"$f":"IF('1. Ordersheet'!X558=\"\",\"\",'1. Ordersheet'!X558)","v":""},{"$f":"IF('1. Ordersheet'!Y558=\"\",\"\",'1. Ordersheet'!Y558)","v":""},{"$f":"IF('1. Ordersheet'!Z558=\"\",\"\",'1. Ordersheet'!Z558)","v":""},{"$f":"IF('1. Ordersheet'!AA558=\"\",\"\",'1. Ordersheet'!AA558)","v":""},null,{"$f":"IF('1. Ordersheet'!AS558=\"\",\"\",'1. Ordersheet'!AS558)","v":""},{"$f":"IF('1. Ordersheet'!AT558=\"\",\"\",'1. Ordersheet'!AT558)","v":""},null,null,null,null,null,null,null,{"$f":"IF('1. Ordersheet'!AX558=\"\",\"\",'1. Ordersheet'!AX558)","v":""},{"$f":"IF('1. Ordersheet'!AY558=\"\",\"\",'1. Ordersheet'!AY558)","v":""},{"$f":"IF('1. Ordersheet'!AZ558=\"\",\"\",'1. Ordersheet'!AZ558)","v":""},{"$f":"IF('1. Ordersheet'!BA558=\"\",\"\",'1. Ordersheet'!BA558)","v":""},{"$f":"IF('1. Ordersheet'!BC558=\"\",\"\",'1. Ordersheet'!BC558)","v":""},{"$f":"IF('1. Ordersheet'!BD558=\"\",\"\",'1. Ordersheet'!BD558)","v":""},{"$f":"IF('1. Ordersheet'!BE558=\"\",\"\",'1. Ordersheet'!BE558)","v":""},{"$f":"IF('1. Ordersheet'!BF558=\"\",\"\",'1. Ordersheet'!BF558)","v":""},{"$f":"IF('1. Ordersheet'!BG558=\"\",\"\",'1. Ordersheet'!BG558)","v":"ZWO"},{"$f":"IF('1. Ordersheet'!BH558=\"\",\"\",'1. Ordersheet'!BH558)","v":""},{"$f":"IF('1. Ordersheet'!BI558=\"\",\"\",'1. Ordersheet'!BI558)","v":""},{"$f":"IF('1. Ordersheet'!BJ558=\"\",\"\",'1. Ordersheet'!BJ558)","v":""},{"$f":"IF('1. Ordersheet'!BK558=\"\",\"\",'1. Ordersheet'!BK558)","v":""},{"$f":"IF('1. Ordersheet'!BL558=\"\",\"\",'1. Ordersheet'!BL558)","v":""}]
[{"$f":"IF('1. Ordersheet'!F559=\"\",\"\",'1. Ordersheet'!F559)","v":""},{"$f":"IF('1. Ordersheet'!G559=\"\",\"\",'1. Ordersheet'!G559)","v":""},{"$f":"IF('1. Ordersheet'!H559=\"\",\"\",'1. Ordersheet'!H559)","v":""},{"$f":"IF('1. Ordersheet'!I559=\"\",\"\",'1. Ordersheet'!I559)","v":""},{"$f":"IF('1. Ordersheet'!J559=\"\",\"\",'1. Ordersheet'!J559)","v":""},{"$f":"IF('1. Ordersheet'!K559=\"\",\"\",'1. Ordersheet'!K559)","v":""},{"$f":"IF('1. Ordersheet'!L559=\"\",\"\",'1. Ordersheet'!L559)","v":""},{"$f":"IF('1. Ordersheet'!M559=\"\",\"\",'1. Ordersheet'!M559)","v":""},{"$f":"IF('1. Ordersheet'!N559=\"\",\"\",'1. Ordersheet'!N559)","v":""},{"$f":"IF('1. Ordersheet'!O559=\"\",\"\",'1. Ordersheet'!O559)","v":{"$error":"#N/A"}},{"$f":"IF('1. Ordersheet'!P559=\"\",\"\",'1. Ordersheet'!P559)","v":{"$error":"#N/A"}},{"$f":"IF('1. Ordersheet'!Q559=\"\",\"\",'1. Ordersheet'!Q559)","v":""},{"$f":"IF('1. Ordersheet'!R559=\"\",\"\",'1. Ordersheet'!R559)","v":""},{"$f":"IF('1. Ordersheet'!S559=\"\",\"\",'1. Ordersheet'!S559)","v":""},{"$f":"IF('1. Ordersheet'!V559=\"\",\"\",'1. Ordersheet'!V559)","v":""},{"$f":"IF('1. Ordersheet'!W559=\"\",\"\",'1. Ordersheet'!W559)","v":""},{"$f":"IF('1. Ordersheet'!X559=\"\",\"\",'1. Ordersheet'!X559)","v":""},{"$f":"IF('1. Ordersheet'!Y559=\"\",\"\",'1. Ordersheet'!Y559)","v":""},{"$f":"IF('1. Ordersheet'!Z559=\"\",\"\",'1. Ordersheet'!Z559)","v":""},{"$f":"IF('1. Ordersheet'!AA559=\"\",\"\",'1. Ordersheet'!AA559)","v":""},null,{"$f":"IF('1. Ordersheet'!AS559=\"\",\"\",'1. Ordersheet'!AS559)","v":""},{"$f":"IF('1. Ordersheet'!AT559=\"\",\"\",'1. Ordersheet'!AT559)","v":""},null,null,null,null,null,null,null,{"$f":"IF('1. Ordersheet'!AX559=\"\",\"\",'1. Ordersheet'!AX559)","v":""},{"$f":"IF('1. Ordersheet'!AY559=\"\",\"\",'1. Ordersheet'!AY559)","v":""},{"$f":"IF('1. Ordersheet'!AZ559=\"\",\"\",'1. Ordersheet'!AZ559)","v":""},{"$f":"IF('1. Ordersheet'!BA559=\"\",\"\",'1. Ordersheet'!BA559)","v":""},{"$f":"IF('1. Ordersheet'!BC559=\"\",\"\",'1. Ordersheet'!BC559)","v":""},{"$f":"IF('1. Ordersheet'!BD559=\"\",\"\",'1. Ordersheet'!BD559)","v":""},{"$f":"IF('1. Ordersheet'!BE559=\"\",\"\",'1. Ordersheet'!BE559)","v":""},{"$f":"IF('1. Ordersheet'!BF559=\"\",\"\",'1. Ordersheet'!BF559)","v":""},{"$f":"IF('1. Ordersheet'!BG559=\"\",\"\",'1. Ordersheet'!BG559)","v":"ZWO"},{"$f":"IF('1. Ordersheet'!BH559=\"\",\"\",'1. Ordersheet'!BH559)","v":""},{"$f":"IF('1. Ordersheet'!BI559=\"\",\"\",'1. Ordersheet'!BI559)","v":""},{"$f":"IF('1. Ordersheet'!BJ559=\"\",\"\",'1. Ordersheet'!BJ559)","v":""},{"$f":"IF('1. Ordersheet'!BK559=\"\",\"\",'1. Ordersheet'!BK559)","v":""},{"$f":"IF('1. Ordersheet'!BL559=\"\",\"\",'1. Ordersheet'!BL559)","v":""}]
[{"$f":"IF('1. Ordersheet'!F560=\"\",\"\",'1. Ordersheet'!F560)","v":""},{"$f":"IF('1. Ordersheet'!G560=\"\",\"\",'1. Ordersheet'!G560)","v":""},{"$f":"IF('1. Ordersheet'!H560=\"\",\"\",'1. Ordersheet'!H560)","v":""},{"$f":"IF('1. Ordersheet'!I560=\"\",\"\",'1. Ordersheet'!I560)","v":""},{"$f":"IF('1. Ordersheet'!J560=\"\",\"\",'1. Ordersheet'!J560)","v":""},{"$f":"IF('1. Ordersheet'!K560=\"\",\"\",'1. Ordersheet'!K560)","v":""},{"$f":"IF('1. Ordersheet'!L560=\"\",\"\",'1. Ordersheet'!L560)","v":""},{"$f":"IF('1. Ordersheet'!M560=\"\",\"\",'1. Ordersheet'!M560)","v":""},{"$f":"IF('1. Ordersheet'!N560=\"\",\"\",'1. Ordersheet'!N560)","v":""},{"$f":"IF('1. Ordersheet'!O560=\"\",\"\",'1. Ordersheet'!O560)","v":{"$error":"#N/A"}},{"$f":"IF('1. Ordersheet'!P560=\"\",\"\",'1. Ordersheet'!P560)","v":{"$error":"#N/A"}},{"$f":"IF('1. Ordersheet'!Q560=\"\",\"\",'1. Ordersheet'!Q560)","v":""},{"$f":"IF('1. Ordersheet'!R560=\"\",\"\",'1. Ordersheet'!R560)","v":""},{"$f":"IF('1. Ordersheet'!S560=\"\",\"\",'1. Ordersheet'!S560)","v":""},{"$f":"IF('1. Ordersheet'!V560=\"\",\"\",'1. Ordersheet'!V560)","v":""},{"$f":"IF('1. Ordersheet'!W560=\"\",\"\",'1. Ordersheet'!W560)","v":""},{"$f":"IF('1. Ordersheet'!X560=\"\",\"\",'1. Ordersheet'!X560)","v":""},{"$f":"IF('1. Ordersheet'!Y560=\"\",\"\",'1. Ordersheet'!Y560)","v":""},{"$f":"IF('1. Ordersheet'!Z560=\"\",\"\",'1. Ordersheet'!Z560)","v":""},{"$f":"IF('1. Ordersheet'!AA560=\"\",\"\",'1. Ordersheet'!AA560)","v":""},null,{"$f":"IF('1. Ordersheet'!AS560=\"\",\"\",'1. Ordersheet'!AS560)","v":""},{"$f":"IF('1. Ordersheet'!AT560=\"\",\"\",'1. Ordersheet'!AT560)","v":""},null,null,null,null,null,null,null,{"$f":"IF('1. Ordersheet'!AX560=\"\",\"\",'1. Ordersheet'!AX560)","v":""},{"$f":"IF('1. Ordersheet'!AY560=\"\",\"\",'1. Ordersheet'!AY560)","v":""},{"$f":"IF('1. Ordersheet'!AZ560=\"\",\"\",'1. Ordersheet'!AZ560)","v":""},{"$f":"IF('1. Ordersheet'!BA560=\"\",\"\",'1. Ordersheet'!BA560)","v":""},{"$f":"IF('1. Ordersheet'!BC560=\"\",\"\",'1. Ordersheet'!BC560)","v":""},{"$f":"IF('1. Ordersheet'!BD560=\"\",\"\",'1. Ordersheet'!BD560)","v":""},{"$f":"IF('1. Ordersheet'!BE560=\"\",\"\",'1. Ordersheet'!BE560)","v":""},{"$f":"IF('1. Ordersheet'!BF560=\"\",\"\",'1. Ordersheet'!BF560)","v":""},{"$f":"IF('1. Ordersheet'!BG560=\"\",\"\",'1. Ordersheet'!BG560)","v":"ZWO"},{"$f":"IF('1. Ordersheet'!BH560=\"\",\"\",'1. Ordersheet'!BH560)","v":""},{"$f":"IF('1. Ordersheet'!BI560=\"\",\"\",'1. Ordersheet'!BI560)","v":""},{"$f":"IF('1. Ordersheet'!BJ560=\"\",\"\",'1. Ordersheet'!BJ560)","v":""},{"$f":"IF('1. Ordersheet'!BK560=\"\",\"\",'1. Ordersheet'!BK560)","v":""},{"$f":"IF('1. Ordersheet'!BL560=\"\",\"\",'1. Ordersheet'!BL560)","v":""}]
[{"$f":"IF('1. Ordersheet'!F561=\"\",\"\",'1. Ordersheet'!F561)","v":""},{"$f":"IF('1. Ordersheet'!G561=\"\",\"\",'1. Ordersheet'!G561)","v":""},{"$f":"IF('1. Ordersheet'!H561=\"\",\"\",'1. Ordersheet'!H561)","v":""},{"$f":"IF('1. Ordersheet'!I561=\"\",\"\",'1. Ordersheet'!I561)","v":""},{"$f":"IF('1. Ordersheet'!J561=\"\",\"\",'1. Ordersheet'!J561)","v":""},{"$f":"IF('1. Ordersheet'!K561=\"\",\"\",'1. Ordersheet'!K561)","v":""},{"$f":"IF('1. Ordersheet'!L561=\"\",\"\",'1. Ordersheet'!L561)","v":""},{"$f":"IF('1. Ordersheet'!M561=\"\",\"\",'1. Ordersheet'!M561)","v":""},{"$f":"IF('1. Ordersheet'!N561=\"\",\"\",'1. Ordersheet'!N561)","v":""},{"$f":"IF('1. Ordersheet'!O561=\"\",\"\",'1. Ordersheet'!O561)","v":{"$error":"#N/A"}},{"$f":"IF('1. Ordersheet'!P561=\"\",\"\",'1. Ordersheet'!P561)","v":{"$error":"#N/A"}},{"$f":"IF('1. Ordersheet'!Q561=\"\",\"\",'1. Ordersheet'!Q561)","v":""},{"$f":"IF('1. Ordersheet'!R561=\"\",\"\",'1. Ordersheet'!R561)","v":""},{"$f":"IF('1. Ordersheet'!S561=\"\",\"\",'1. Ordersheet'!S561)","v":""},{"$f":"IF('1. Ordersheet'!V561=\"\",\"\",'1. Ordersheet'!V561)","v":""},{"$f":"IF('1. Ordersheet'!W561=\"\",\"\",'1. Ordersheet'!W561)","v":""},{"$f":"IF('1. Ordersheet'!X561=\"\",\"\",'1. Ordersheet'!X561)","v":""},{"$f":"IF('1. Ordersheet'!Y561=\"\",\"\",'1. Ordersheet'!Y561)","v":""},{"$f":"IF('1. Ordersheet'!Z561=\"\",\"\",'1. Ordersheet'!Z561)","v":""},{"$f":"IF('1. Ordersheet'!AA561=\"\",\"\",'1. Ordersheet'!AA561)","v":""},null,{"$f":"IF('1. Ordersheet'!AS561=\"\",\"\",'1. Ordersheet'!AS561)","v":""},{"$f":"IF('1. Ordersheet'!AT561=\"\",\"\",'1. Ordersheet'!AT561)","v":""},null,null,null,null,null,null,null,{"$f":"IF('1. Ordersheet'!AX561=\"\",\"\",'1. Ordersheet'!AX561)","v":""},{"$f":"IF('1. Ordersheet'!AY561=\"\",\"\",'1. Ordersheet'!AY561)","v":""},{"$f":"IF('1. Ordersheet'!AZ561=\"\",\"\",'1. Ordersheet'!AZ561)","v":""},{"$f":"IF('1. Ordersheet'!BA561=\"\",\"\",'1. Ordersheet'!BA561)","v":""},{"$f":"IF('1. Ordersheet'!BC561=\"\",\"\",'1. Ordersheet'!BC561)","v":""},{"$f":"IF('1. Ordersheet'!BD561=\"\",\"\",'1. Ordersheet'!BD561)","v":""},{"$f":"IF('1. Ordersheet'!BE561=\"\",\"\",'1. Ordersheet'!BE561)","v":""},{"$f":"IF('1. Ordersheet'!BF561=\"\",\"\",'1. Ordersheet'!BF561)","v":""},{"$f":"IF('1. Ordersheet'!BG561=\"\",\"\",'1. Ordersheet'!BG561)","v":"ZWO"},{"$f":"IF('1. Ordersheet'!BH561=\"\",\"\",'1. Ordersheet'!BH561)","v":""},{"$f":"IF('1. Ordersheet'!BI561=\"\",\"\",'1. Ordersheet'!BI561)","v":""},{"$f":"IF('1. Ordersheet'!BJ561=\"\",\"\",'1. Ordersheet'!BJ561)","v":""},{"$f":"IF('1. Ordersheet'!BK561=\"\",\"\",'1. Ordersheet'!BK561)","v":""},{"$f":"IF('1. Ordersheet'!BL561=\"\",\"\",'1. Ordersheet'!BL561)","v":""}]
[{"$f":"IF('1. Ordersheet'!F562=\"\",\"\",'1. Ordersheet'!F562)","v":""},{"$f":"IF('1. Ordersheet'!G562=\"\",\"\",'1. Ordersheet'!G562)","v":""},{"$f":"IF('1. Ordersheet'!H562=\"\",\"\",'1. Ordersheet'!H562)","v":""},{"$f":"IF('1. Ordersheet'!I562=\"\",\"\",'1. Ordersheet'!I562)","v":""},{"$f":"IF('1. Ordersheet'!J562=\"\",\"\",'1. Ordersheet'!J562)","v":""},{"$f":"IF('1. Ordersheet'!K562=\"\",\"\",'1. Ordersheet'!K562)","v":""},{"$f":"IF('1. Ordersheet'!L562=\"\",\"\",'1. Ordersheet'!L562)","v":""},{"$f":"IF('1. Ordersheet'!M562=\"\",\"\",'1. Ordersheet'!M562)","v":""},{"$f":"IF('1. Ordersheet'!N562=\"\",\"\",'1. Ordersheet'!N562)","v":""},{"$f":"IF('1. Ordersheet'!O562=\"\",\"\",'1. Ordersheet'!O562)","v":{"$error":"#N/A"}},{"$f":"IF('1. Ordersheet'!P562=\"\",\"\",'1. Ordersheet'!P562)","v":{"$error":"#N/A"}},{"$f":"IF('1. Ordersheet'!Q562=\"\",\"\",'1. Ordersheet'!Q562)","v":""},{"$f":"IF('1. Ordersheet'!R562=\"\",\"\",'1. Ordersheet'!R562)","v":""},{"$f":"IF('1. Ordersheet'!S562=\"\",\"\",'1. Ordersheet'!S562)","v":""},{"$f":"IF('1. Ordersheet'!V562=\"\",\"\",'1. Ordersheet'!V562)","v":""},{"$f":"IF('1. Ordersheet'!W562=\"\",\"\",'1. Ordersheet'!W562)","v":""},{"$f":"IF('1. Ordersheet'!X562=\"\",\"\",'1. Ordersheet'!X562)","v":""},{"$f":"IF('1. Ordersheet'!Y562=\"\",\"\",'1. Ordersheet'!Y562)","v":""},{"$f":"IF('1. Ordersheet'!Z562=\"\",\"\",'1. Ordersheet'!Z562)","v":""},{"$f":"IF('1. Ordersheet'!AA562=\"\",\"\",'1. Ordersheet'!AA562)","v":""},null,{"$f":"IF('1. Ordersheet'!AS562=\"\",\"\",'1. Ordersheet'!AS562)","v":""},{"$f":"IF('1. Ordersheet'!AT562=\"\",\"\",'1. Ordersheet'!AT562)","v":""},null,null,null,null,null,null,null,{"$f":"IF('1. Ordersheet'!AX562=\"\",\"\",'1. Ordersheet'!AX562)","v":""},{"$f":"IF('1. Ordersheet'!AY562=\"\",\"\",'1. Ordersheet'!AY562)","v":""},{"$f":"IF('1. Ordersheet'!AZ562=\"\",\"\",'1. Ordersheet'!AZ562)","v":""},{"$f":"IF('1. Ordersheet'!BA562=\"\",\"\",'1. Ordersheet'!BA562)","v":""},{"$f":"IF('1. Ordersheet'!BC562=\"\",\"\",'1. Ordersheet'!BC562)","v":""},{"$f":"IF('1. Ordersheet'!BD562=\"\",\"\",'1. Ordersheet'!BD562)","v":""},{"$f":"IF('1. Ordersheet'!BE562=\"\",\"\",'1. Ordersheet'!BE562)","v":""},{"$f":"IF('1. Ordersheet'!BF562=\"\",\"\",'1. Ordersheet'!BF562)","v":""},{"$f":"IF('1. Ordersheet'!BG562=\"\",\"\",'1. Ordersheet'!BG562)","v":"ZWO"},{"$f":"IF('1. Ordersheet'!BH562=\"\",\"\",'1. Ordersheet'!BH562)","v":""},{"$f":"IF('1. Ordersheet'!BI562=\"\",\"\",'1. Ordersheet'!BI562)","v":""},{"$f":"IF('1. Ordersheet'!BJ562=\"\",\"\",'1. Ordersheet'!BJ562)","v":""},{"$f":"IF('1. Ordersheet'!BK562=\"\",\"\",'1. Ordersheet'!BK562)","v":""},{"$f":"IF('1. Ordersheet'!BL562=\"\",\"\",'1. Ordersheet'!BL562)","v":""}]
[{"$f":"IF('1. Ordersheet'!F563=\"\",\"\",'1. Ordersheet'!F563)","v":""},{"$f":"IF('1. Ordersheet'!G563=\"\",\"\",'1. Ordersheet'!G563)","v":""},{"$f":"IF('1. Ordersheet'!H563=\"\",\"\",'1. Ordersheet'!H563)","v":""},{"$f":"IF('1. Ordersheet'!I563=\"\",\"\",'1. Ordersheet'!I563)","v":""},{"$f":"IF('1. Ordersheet'!J563=\"\",\"\",'1. Ordersheet'!J563)","v":""},{"$f":"IF('1. Ordersheet'!K563=\"\",\"\",'1. Ordersheet'!K563)","v":""},{"$f":"IF('1. Ordersheet'!L563=\"\",\"\",'1. Ordersheet'!L563)","v":""},{"$f":"IF('1. Ordersheet'!M563=\"\",\"\",'1. Ordersheet'!M563)","v":""},{"$f":"IF('1. Ordersheet'!N563=\"\",\"\",'1. Ordersheet'!N563)","v":""},{"$f":"IF('1. Ordersheet'!O563=\"\",\"\",'1. Ordersheet'!O563)","v":{"$error":"#N/A"}},{"$f":"IF('1. Ordersheet'!P563=\"\",\"\",'1. Ordersheet'!P563)","v":{"$error":"#N/A"}},{"$f":"IF('1. Ordersheet'!Q563=\"\",\"\",'1. Ordersheet'!Q563)","v":""},{"$f":"IF('1. Ordersheet'!R563=\"\",\"\",'1. Ordersheet'!R563)","v":""},{"$f":"IF('1. Ordersheet'!S563=\"\",\"\",'1. Ordersheet'!S563)","v":""},{"$f":"IF('1. Ordersheet'!V563=\"\",\"\",'1. Ordersheet'!V563)","v":""},{"$f":"IF('1. Ordersheet'!W563=\"\",\"\",'1. Ordersheet'!W563)","v":""},{"$f":"IF('1. Ordersheet'!X563=\"\",\"\",'1. Ordersheet'!X563)","v":""},{"$f":"IF('1. Ordersheet'!Y563=\"\",\"\",'1. Ordersheet'!Y563)","v":""},{"$f":"IF('1. Ordersheet'!Z563=\"\",\"\",'1. Ordersheet'!Z563)","v":""},{"$f":"IF('1. Ordersheet'!AA563=\"\",\"\",'1. Ordersheet'!AA563)","v":""},null,{"$f":"IF('1. Ordersheet'!AS563=\"\",\"\",'1. Ordersheet'!AS563)","v":""},{"$f":"IF('1. Ordersheet'!AT563=\"\",\"\",'1. Ordersheet'!AT563)","v":""},null,null,null,null,null,null,null,{"$f":"IF('1. Ordersheet'!AX563=\"\",\"\",'1. Ordersheet'!AX563)","v":""},{"$f":"IF('1. Ordersheet'!AY563=\"\",\"\",'1. Ordersheet'!AY563)","v":""},{"$f":"IF('1. Ordersheet'!AZ563=\"\",\"\",'1. Ordersheet'!AZ563)","v":""},{"$f":"IF('1. Ordersheet'!BA563=\"\",\"\",'1. Ordersheet'!BA563)","v":""},{"$f":"IF('1. Ordersheet'!BC563=\"\",\"\",'1. Ordersheet'!BC563)","v":""},{"$f":"IF('1. Ordersheet'!BD563=\"\",\"\",'1. Ordersheet'!BD563)","v":""},{"$f":"IF('1. Ordersheet'!BE563=\"\",\"\",'1. Ordersheet'!BE563)","v":""},{"$f":"IF('1. Ordersheet'!BF563=\"\",\"\",'1. Ordersheet'!BF563)","v":""},{"$f":"IF('1. Ordersheet'!BG563=\"\",\"\",'1. Ordersheet'!BG563)","v":"ZWO"},{"$f":"IF('1. Ordersheet'!BH563=\"\",\"\",'1. Ordersheet'!BH563)","v":""},{"$f":"IF('1. Ordersheet'!BI563=\"\",\"\",'1. Ordersheet'!BI563)","v":""},{"$f":"IF('1. Ordersheet'!BJ563=\"\",\"\",'1. Ordersheet'!BJ563)","v":""},{"$f":"IF('1. Ordersheet'!BK563=\"\",\"\",'1. Ordersheet'!BK563)","v":""},{"$f":"IF('1. Ordersheet'!BL563=\"\",\"\",'1. Ordersheet'!BL563)","v":""}]
[{"$f":"IF('1. Ordersheet'!F564=\"\",\"\",'1. Ordersheet'!F564)","v":""},{"$f":"IF('1. Ordersheet'!G564=\"\",\"\",'1. Ordersheet'!G564)","v":""},{"$f":"IF('1. Ordersheet'!H564=\"\",\"\",'1. Ordersheet'!H564)","v":""},{"$f":"IF('1. Ordersheet'!I564=\"\",\"\",'1. Ordersheet'!I564)","v":""},{"$f":"IF('1. Ordersheet'!J564=\"\",\"\",'1. Ordersheet'!J564)","v":""},{"$f":"IF('1. Ordersheet'!K564=\"\",\"\",'1. Ordersheet'!K564)","v":""},{"$f":"IF('1. Ordersheet'!L564=\"\",\"\",'1. Ordersheet'!L564)","v":""},{"$f":"IF('1. Ordersheet'!M564=\"\",\"\",'1. Ordersheet'!M564)","v":""},{"$f":"IF('1. Ordersheet'!N564=\"\",\"\",'1. Ordersheet'!N564)","v":""},{"$f":"IF('1. Ordersheet'!O564=\"\",\"\",'1. Ordersheet'!O564)","v":{"$error":"#N/A"}},{"$f":"IF('1. Ordersheet'!P564=\"\",\"\",'1. Ordersheet'!P564)","v":{"$error":"#N/A"}},{"$f":"IF('1. Ordersheet'!Q564=\"\",\"\",'1. Ordersheet'!Q564)","v":""},{"$f":"IF('1. Ordersheet'!R564=\"\",\"\",'1. Ordersheet'!R564)","v":""},{"$f":"IF('1. Ordersheet'!S564=\"\",\"\",'1. Ordersheet'!S564)","v":""},{"$f":"IF('1. Ordersheet'!V564=\"\",\"\",'1. Ordersheet'!V564)","v":""},{"$f":"IF('1. Ordersheet'!W564=\"\",\"\",'1. Ordersheet'!W564)","v":""},{"$f":"IF('1. Ordersheet'!X564=\"\",\"\",'1. Ordersheet'!X564)","v":""},{"$f":"IF('1. Ordersheet'!Y564=\"\",\"\",'1. Ordersheet'!Y564)","v":""},{"$f":"IF('1. Ordersheet'!Z564=\"\",\"\",'1. Ordersheet'!Z564)","v":""},{"$f":"IF('1. Ordersheet'!AA564=\"\",\"\",'1. Ordersheet'!AA564)","v":""},null,{"$f":"IF('1. Ordersheet'!AS564=\"\",\"\",'1. Ordersheet'!AS564)","v":""},{"$f":"IF('1. Ordersheet'!AT564=\"\",\"\",'1. Ordersheet'!AT564)","v":""},null,null,null,null,null,null,null,{"$f":"IF('1. Ordersheet'!AX564=\"\",\"\",'1. Ordersheet'!AX564)","v":""},{"$f":"IF('1. Ordersheet'!AY564=\"\",\"\",'1. Ordersheet'!AY564)","v":""},{"$f":"IF('1. Ordersheet'!AZ564=\"\",\"\",'1. Ordersheet'!AZ564)","v":""},{"$f":"IF('1. Ordersheet'!BA564=\"\",\"\",'1. Ordersheet'!BA564)","v":""},{"$f":"IF('1. Ordersheet'!BC564=\"\",\"\",'1. Ordersheet'!BC564)","v":""},{"$f":"IF('1. Ordersheet'!BD564=\"\",\"\",'1. Ordersheet'!BD564)","v":""},{"$f":"IF('1. Ordersheet'!BE564=\"\",\"\",'1. Ordersheet'!BE564)","v":""},{"$f":"IF('1. Ordersheet'!BF564=\"\",\"\",'1. Ordersheet'!BF564)","v":""},{"$f":"IF('1. Ordersheet'!BG564=\"\",\"\",'1. Ordersheet'!BG564)","v":"ZWO"},{"$f":"IF('1. Ordersheet'!BH564=\"\",\"\",'1. Ordersheet'!BH564)","v":""},{"$f":"IF('1. Ordersheet'!BI564=\"\",\"\",'1. Ordersheet'!BI564)","v":""},{"$f":"IF('1. Ordersheet'!BJ564=\"\",\"\",'1. Ordersheet'!BJ564)","v":""},{"$f":"IF('1. Ordersheet'!BK564=\"\",\"\",'1. Ordersheet'!BK564)","v":""},{"$f":"IF('1. Ordersheet'!BL564=\"\",\"\",'1. Ordersheet'!BL564)","v":""}]
[{"$f":"IF('1. Ordersheet'!F565=\"\",\"\",'1. Ordersheet'!F565)","v":""},{"$f":"IF('1. Ordersheet'!G565=\"\",\"\",'1. Ordersheet'!G565)","v":""},{"$f":"IF('1. Ordersheet'!H565=\"\",\"\",'1. Ordersheet'!H565)","v":""},{"$f":"IF('1. Ordersheet'!I565=\"\",\"\",'1. Ordersheet'!I565)","v":""},{"$f":"IF('1. Ordersheet'!J565=\"\",\"\",'1. Ordersheet'!J565)","v":""},{"$f":"IF('1. Ordersheet'!K565=\"\",\"\",'1. Ordersheet'!K565)","v":""},{"$f":"IF('1. Ordersheet'!L565=\"\",\"\",'1. Ordersheet'!L565)","v":""},{"$f":"IF('1. Ordersheet'!M565=\"\",\"\",'1. Ordersheet'!M565)","v":""},{"$f":"IF('1. Ordersheet'!N565=\"\",\"\",'1. Ordersheet'!N565)","v":""},{"$f":"IF('1. Ordersheet'!O565=\"\",\"\",'1. Ordersheet'!O565)","v":{"$error":"#N/A"}},{"$f":"IF('1. Ordersheet'!P565=\"\",\"\",'1. Ordersheet'!P565)","v":{"$error":"#N/A"}},{"$f":"IF('1. Ordersheet'!Q565=\"\",\"\",'1. Ordersheet'!Q565)","v":""},{"$f":"IF('1. Ordersheet'!R565=\"\",\"\",'1. Ordersheet'!R565)","v":""},{"$f":"IF('1. Ordersheet'!S565=\"\",\"\",'1. Ordersheet'!S565)","v":""},{"$f":"IF('1. Ordersheet'!V565=\"\",\"\",'1. Ordersheet'!V565)","v":""},{"$f":"IF('1. Ordersheet'!W565=\"\",\"\",'1. Ordersheet'!W565)","v":""},{"$f":"IF('1. Ordersheet'!X565=\"\",\"\",'1. Ordersheet'!X565)","v":""},{"$f":"IF('1. Ordersheet'!Y565=\"\",\"\",'1. Ordersheet'!Y565)","v":""},{"$f":"IF('1. Ordersheet'!Z565=\"\",\"\",'1. Ordersheet'!Z565)","v":""},{"$f":"IF('1. Ordersheet'!AA565=\"\",\"\",'1. Ordersheet'!AA565)","v":""},null,{"$f":"IF('1. Ordersheet'!AS565=\"\",\"\",'1. Ordersheet'!AS565)","v":""},{"$f":"IF('1. Ordersheet'!AT565=\"\",\"\",'1. Ordersheet'!AT565)","v":""},null,null,null,null,null,null,null,{"$f":"IF('1. Ordersheet'!AX565=\"\",\"\",'1. Ordersheet'!AX565)","v":""},{"$f":"IF('1. Ordersheet'!AY565=\"\",\"\",'1. Ordersheet'!AY565)","v":""},{"$f":"IF('1. Ordersheet'!AZ565=\"\",\"\",'1. Ordersheet'!AZ565)","v":""},{"$f":"IF('1. Ordersheet'!BA565=\"\",\"\",'1. Ordersheet'!BA565)","v":""},{"$f":"IF('1. Ordersheet'!BC565=\"\",\"\",'1. Ordersheet'!BC565)","v":""},{"$f":"IF('1. Ordersheet'!BD565=\"\",\"\",'1. Ordersheet'!BD565)","v":""},{"$f":"IF('1. Ordersheet'!BE565=\"\",\"\",'1. Ordersheet'!BE565)","v":""},{"$f":"IF('1. Ordersheet'!BF565=\"\",\"\",'1. Ordersheet'!BF565)","v":""},{"$f":"IF('1. Ordersheet'!BG565=\"\",\"\",'1. Ordersheet'!BG565)","v":"ZWO"},{"$f":"IF('1. Ordersheet'!BH565=\"\",\"\",'1. Ordersheet'!BH565)","v":""},{"$f":"IF('1. Ordersheet'!BI565=\"\",\"\",'1. Ordersheet'!BI565)","v":""},{"$f":"IF('1. Ordersheet'!BJ565=\"\",\"\",'1. Ordersheet'!BJ565)","v":""},{"$f":"IF('1. Ordersheet'!BK565=\"\",\"\",'1. Ordersheet'!BK565)","v":""},{"$f":"IF('1. Ordersheet'!BL565=\"\",\"\",'1. Ordersheet'!BL565)","v":""}]
[{"$f":"IF('1. Ordersheet'!F566=\"\",\"\",'1. Ordersheet'!F566)","v":""},{"$f":"IF('1. Ordersheet'!G566=\"\",\"\",'1. Ordersheet'!G566)","v":""},{"$f":"IF('1. Ordersheet'!H566=\"\",\"\",'1. Ordersheet'!H566)","v":""},{"$f":"IF('1. Ordersheet'!I566=\"\",\"\",'1. Ordersheet'!I566)","v":""},{"$f":"IF('1. Ordersheet'!J566=\"\",\"\",'1. Ordersheet'!J566)","v":""},{"$f":"IF('1. Ordersheet'!K566=\"\",\"\",'1. Ordersheet'!K566)","v":""},{"$f":"IF('1. Ordersheet'!L566=\"\",\"\",'1. Ordersheet'!L566)","v":""},{"$f":"IF('1. Ordersheet'!M566=\"\",\"\",'1. Ordersheet'!M566)","v":""},{"$f":"IF('1. Ordersheet'!N566=\"\",\"\",'1. Ordersheet'!N566)","v":""},{"$f":"IF('1. Ordersheet'!O566=\"\",\"\",'1. Ordersheet'!O566)","v":{"$error":"#N/A"}},{"$f":"IF('1. Ordersheet'!P566=\"\",\"\",'1. Ordersheet'!P566)","v":{"$error":"#N/A"}},{"$f":"IF('1. Ordersheet'!Q566=\"\",\"\",'1. Ordersheet'!Q566)","v":""},{"$f":"IF('1. Ordersheet'!R566=\"\",\"\",'1. Ordersheet'!R566)","v":""},{"$f":"IF('1. Ordersheet'!S566=\"\",\"\",'1. Ordersheet'!S566)","v":""},{"$f":"IF('1. Ordersheet'!V566=\"\",\"\",'1. Ordersheet'!V566)","v":""},{"$f":"IF('1. Ordersheet'!W566=\"\",\"\",'1. Ordersheet'!W566)","v":""},{"$f":"IF('1. Ordersheet'!X566=\"\",\"\",'1. Ordersheet'!X566)","v":""},{"$f":"IF('1. Ordersheet'!Y566=\"\",\"\",'1. Ordersheet'!Y566)","v":""},{"$f":"IF('1. Ordersheet'!Z566=\"\",\"\",'1. Ordersheet'!Z566)","v":""},{"$f":"IF('1. Ordersheet'!AA566=\"\",\"\",'1. Ordersheet'!AA566)","v":""},null,{"$f":"IF('1. Ordersheet'!AS566=\"\",\"\",'1. Ordersheet'!AS566)","v":""},{"$f":"IF('1. Ordersheet'!AT566=\"\",\"\",'1. Ordersheet'!AT566)","v":""},null,null,null,null,null,null,null,{"$f":"IF('1. Ordersheet'!AX566=\"\",\"\",'1. Ordersheet'!AX566)","v":""},{"$f":"IF('1. Ordersheet'!AY566=\"\",\"\",'1. Ordersheet'!AY566)","v":""},{"$f":"IF('1. Ordersheet'!AZ566=\"\",\"\",'1. Ordersheet'!AZ566)","v":""},{"$f":"IF('1. Ordersheet'!BA566=\"\",\"\",'1. Ordersheet'!BA566)","v":""},{"$f":"IF('1. Ordersheet'!BC566=\"\",\"\",'1. Ordersheet'!BC566)","v":""},{"$f":"IF('1. Ordersheet'!BD566=\"\",\"\",'1. Ordersheet'!BD566)","v":""},{"$f":"IF('1. Ordersheet'!BE566=\"\",\"\",'1. Ordersheet'!BE566)","v":""},{"$f":"IF('1. Ordersheet'!BF566=\"\",\"\",'1. Ordersheet'!BF566)","v":""},{"$f":"IF('1. Ordersheet'!BG566=\"\",\"\",'1. Ordersheet'!BG566)","v":"ZWO"},{"$f":"IF('1. Ordersheet'!BH566=\"\",\"\",'1. Ordersheet'!BH566)","v":""},{"$f":"IF('1. Ordersheet'!BI566=\"\",\"\",'1. Ordersheet'!BI566)","v":""},{"$f":"IF('1. Ordersheet'!BJ566=\"\",\"\",'1. Ordersheet'!BJ566)","v":""},{"$f":"IF('1. Ordersheet'!BK566=\"\",\"\",'1. Ordersheet'!BK566)","v":""},{"$f":"IF('1. Ordersheet'!BL566=\"\",\"\",'1. Ordersheet'!BL566)","v":""}]
[{"$f":"IF('1. Ordersheet'!F567=\"\",\"\",'1. Ordersheet'!F567)","v":""},{"$f":"IF('1. Ordersheet'!G567=\"\",\"\",'1. Ordersheet'!G567)","v":""},{"$f":"IF('1. Ordersheet'!H567=\"\",\"\",'1. Ordersheet'!H567)","v":""},{"$f":"IF('1. Ordersheet'!I567=\"\",\"\",'1. Ordersheet'!I567)","v":""},{"$f":"IF('1. Ordersheet'!J567=\"\",\"\",'1. Ordersheet'!J567)","v":""},{"$f":"IF('1. Ordersheet'!K567=\"\",\"\",'1. Ordersheet'!K567)","v":""},{"$f":"IF('1. Ordersheet'!L567=\"\",\"\",'1. Ordersheet'!L567)","v":""},{"$f":"IF('1. Ordersheet'!M567=\"\",\"\",'1. Ordersheet'!M567)","v":""},{"$f":"IF('1. Ordersheet'!N567=\"\",\"\",'1. Ordersheet'!N567)","v":""},{"$f":"IF('1. Ordersheet'!O567=\"\",\"\",'1. Ordersheet'!O567)","v":{"$error":"#N/A"}},{"$f":"IF('1. Ordersheet'!P567=\"\",\"\",'1. Ordersheet'!P567)","v":{"$error":"#N/A"}},{"$f":"IF('1. Ordersheet'!Q567=\"\",\"\",'1. Ordersheet'!Q567)","v":""},{"$f":"IF('1. Ordersheet'!R567=\"\",\"\",'1. Ordersheet'!R567)","v":""},{"$f":"IF('1. Ordersheet'!S567=\"\",\"\",'1. Ordersheet'!S567)","v":""},{"$f":"IF('1. Ordersheet'!V567=\"\",\"\",'1. Ordersheet'!V567)","v":""},{"$f":"IF('1. Ordersheet'!W567=\"\",\"\",'1. Ordersheet'!W567)","v":""},{"$f":"IF('1. Ordersheet'!X567=\"\",\"\",'1. Ordersheet'!X567)","v":""},{"$f":"IF('1. Ordersheet'!Y567=\"\",\"\",'1. Ordersheet'!Y567)","v":""},{"$f":"IF('1. Ordersheet'!Z567=\"\",\"\",'1. Ordersheet'!Z567)","v":""},{"$f":"IF('1. Ordersheet'!AA567=\"\",\"\",'1. Ordersheet'!AA567)","v":""},null,{"$f":"IF('1. Ordersheet'!AS567=\"\",\"\",'1. Ordersheet'!AS567)","v":""},{"$f":"IF('1. Ordersheet'!AT567=\"\",\"\",'1. Ordersheet'!AT567)","v":""},null,null,null,null,null,null,null,{"$f":"IF('1. Ordersheet'!AX567=\"\",\"\",'1. Ordersheet'!AX567)","v":""},{"$f":"IF('1. Ordersheet'!AY567=\"\",\"\",'1. Ordersheet'!AY567)","v":""},{"$f":"IF('1. Ordersheet'!AZ567=\"\",\"\",'1. Ordersheet'!AZ567)","v":""},{"$f":"IF('1. Ordersheet'!BA567=\"\",\"\",'1. Ordersheet'!BA567)","v":""},{"$f":"IF('1. Ordersheet'!BC567=\"\",\"\",'1. Ordersheet'!BC567)","v":""},{"$f":"IF('1. Ordersheet'!BD567=\"\",\"\",'1. Ordersheet'!BD567)","v":""},{"$f":"IF('1. Ordersheet'!BE567=\"\",\"\",'1. Ordersheet'!BE567)","v":""},{"$f":"IF('1. Ordersheet'!BF567=\"\",\"\",'1. Ordersheet'!BF567)","v":""},{"$f":"IF('1. Ordersheet'!BG567=\"\",\"\",'1. Ordersheet'!BG567)","v":"ZWO"},{"$f":"IF('1. Ordersheet'!BH567=\"\",\"\",'1. Ordersheet'!BH567)","v":""},{"$f":"IF('1. Ordersheet'!BI567=\"\",\"\",'1. Ordersheet'!BI567)","v":""},{"$f":"IF('1. Ordersheet'!BJ567=\"\",\"\",'1. Ordersheet'!BJ567)","v":""},{"$f":"IF('1. Ordersheet'!BK567=\"\",\"\",'1. Ordersheet'!BK567)","v":""},{"$f":"IF('1. Ordersheet'!BL567=\"\",\"\",'1. Ordersheet'!BL567)","v":""}]
[{"$f":"IF('1. Ordersheet'!F568=\"\",\"\",'1. Ordersheet'!F568)","v":""},{"$f":"IF('1. Ordersheet'!G568=\"\",\"\",'1. Ordersheet'!G568)","v":""},{"$f":"IF('1. Ordersheet'!H568=\"\",\"\",'1. Ordersheet'!H568)","v":""},{"$f":"IF('1. Ordersheet'!I568=\"\",\"\",'1. Ordersheet'!I568)","v":""},{"$f":"IF('1. Ordersheet'!J568=\"\",\"\",'1. Ordersheet'!J568)","v":""},{"$f":"IF('1. Ordersheet'!K568=\"\",\"\",'1. Ordersheet'!K568)","v":""},{"$f":"IF('1. Ordersheet'!L568=\"\",\"\",'1. Ordersheet'!L568)","v":""},{"$f":"IF('1. Ordersheet'!M568=\"\",\"\",'1. Ordersheet'!M568)","v":""},{"$f":"IF('1. Ordersheet'!N568=\"\",\"\",'1. Ordersheet'!N568)","v":""},{"$f":"IF('1. Ordersheet'!O568=\"\",\"\",'1. Ordersheet'!O568)","v":{"$error":"#N/A"}},{"$f":"IF('1. Ordersheet'!P568=\"\",\"\",'1. Ordersheet'!P568)","v":{"$error":"#N/A"}},{"$f":"IF('1. Ordersheet'!Q568=\"\",\"\",'1. Ordersheet'!Q568)","v":""},{"$f":"IF('1. Ordersheet'!R568=\"\",\"\",'1. Ordersheet'!R568)","v":""},{"$f":"IF('1. Ordersheet'!S568=\"\",\"\",'1. Ordersheet'!S568)","v":""},{"$f":"IF('1. Ordersheet'!V568=\"\",\"\",'1. Ordersheet'!V568)","v":""},{"$f":"IF('1. Ordersheet'!W568=\"\",\"\",'1. Ordersheet'!W568)","v":""},{"$f":"IF('1. Ordersheet'!X568=\"\",\"\",'1. Ordersheet'!X568)","v":""},{"$f":"IF('1. Ordersheet'!Y568=\"\",\"\",'1. Ordersheet'!Y568)","v":""},{"$f":"IF('1. Ordersheet'!Z568=\"\",\"\",'1. Ordersheet'!Z568)","v":""},{"$f":"IF('1. Ordersheet'!AA568=\"\",\"\",'1. Ordersheet'!AA568)","v":""},null,{"$f":"IF('1. Ordersheet'!AS568=\"\",\"\",'1. Ordersheet'!AS568)","v":""},{"$f":"IF('1. Ordersheet'!AT568=\"\",\"\",'1. Ordersheet'!AT568)","v":""},null,null,null,null,null,null,null,{"$f":"IF('1. Ordersheet'!AX568=\"\",\"\",'1. Ordersheet'!AX568)","v":""},{"$f":"IF('1. Ordersheet'!AY568=\"\",\"\",'1. Ordersheet'!AY568)","v":""},{"$f":"IF('1. Ordersheet'!AZ568=\"\",\"\",'1. Ordersheet'!AZ568)","v":""},{"$f":"IF('1. Ordersheet'!BA568=\"\",\"\",'1. Ordersheet'!BA568)","v":""},{"$f":"IF('1. Ordersheet'!BC568=\"\",\"\",'1. Ordersheet'!BC568)","v":""},{"$f":"IF('1. Ordersheet'!BD568=\"\",\"\",'1. Ordersheet'!BD568)","v":""},{"$f":"IF('1. Ordersheet'!BE568=\"\",\"\",'1. Ordersheet'!BE568)","v":""},{"$f":"IF('1. Ordersheet'!BF568=\"\",\"\",'1. Ordersheet'!BF568)","v":""},{"$f":"IF('1. Ordersheet'!BG568=\"\",\"\",'1. Ordersheet'!BG568)","v":"ZWO"},{"$f":"IF('1. Ordersheet'!BH568=\"\",\"\",'1. Ordersheet'!BH568)","v":""},{"$f":"IF('1. Ordersheet'!BI568=\"\",\"\",'1. Ordersheet'!BI568)","v":""},{"$f":"IF('1. Ordersheet'!BJ568=\"\",\"\",'1. Ordersheet'!BJ568)","v":""},{"$f":"IF('1. Ordersheet'!BK568=\"\",\"\",'1. Ordersheet'!BK568)","v":""},{"$f":"IF('1. Ordersheet'!BL568=\"\",\"\",'1. Ordersheet'!BL568)","v":""}]
[{"$f":"IF('1. Ordersheet'!F569=\"\",\"\",'1. Ordersheet'!F569)","v":""},{"$f":"IF('1. Ordersheet'!G569=\"\",\"\",'1. Ordersheet'!G569)","v":""},{"$f":"IF('1. Ordersheet'!H569=\"\",\"\",'1. Ordersheet'!H569)","v":""},{"$f":"IF('1. Ordersheet'!I569=\"\",\"\",'1. Ordersheet'!I569)","v":""},{"$f":"IF('1. Ordersheet'!J569=\"\",\"\",'1. Ordersheet'!J569)","v":""},{"$f":"IF('1. Ordersheet'!K569=\"\",\"\",'1. Ordersheet'!K569)","v":""},{"$f":"IF('1. Ordersheet'!L569=\"\",\"\",'1. Ordersheet'!L569)","v":""},{"$f":"IF('1. Ordersheet'!M569=\"\",\"\",'1. Ordersheet'!M569)","v":""},{"$f":"IF('1. Ordersheet'!N569=\"\",\"\",'1. Ordersheet'!N569)","v":""},{"$f":"IF('1. Ordersheet'!O569=\"\",\"\",'1. Ordersheet'!O569)","v":{"$error":"#N/A"}},{"$f":"IF('1. Ordersheet'!P569=\"\",\"\",'1. Ordersheet'!P569)","v":{"$error":"#N/A"}},{"$f":"IF('1. Ordersheet'!Q569=\"\",\"\",'1. Ordersheet'!Q569)","v":""},{"$f":"IF('1. Ordersheet'!R569=\"\",\"\",'1. Ordersheet'!R569)","v":""},{"$f":"IF('1. Ordersheet'!S569=\"\",\"\",'1. Ordersheet'!S569)","v":""},{"$f":"IF('1. Ordersheet'!V569=\"\",\"\",'1. Ordersheet'!V569)","v":""},{"$f":"IF('1. Ordersheet'!W569=\"\",\"\",'1. Ordersheet'!W569)","v":""},{"$f":"IF('1. Ordersheet'!X569=\"\",\"\",'1. Ordersheet'!X569)","v":""},{"$f":"IF('1. Ordersheet'!Y569=\"\",\"\",'1. Ordersheet'!Y569)","v":""},{"$f":"IF('1. Ordersheet'!Z569=\"\",\"\",'1. Ordersheet'!Z569)","v":""},{"$f":"IF('1. Ordersheet'!AA569=\"\",\"\",'1. Ordersheet'!AA569)","v":""},null,{"$f":"IF('1. Ordersheet'!AS569=\"\",\"\",'1. Ordersheet'!AS569)","v":""},{"$f":"IF('1. Ordersheet'!AT569=\"\",\"\",'1. Ordersheet'!AT569)","v":""},null,null,null,null,null,null,null,{"$f":"IF('1. Ordersheet'!AX569=\"\",\"\",'1. Ordersheet'!AX569)","v":""},{"$f":"IF('1. Ordersheet'!AY569=\"\",\"\",'1. Ordersheet'!AY569)","v":""},{"$f":"IF('1. Ordersheet'!AZ569=\"\",\"\",'1. Ordersheet'!AZ569)","v":""},{"$f":"IF('1. Ordersheet'!BA569=\"\",\"\",'1. Ordersheet'!BA569)","v":""},{"$f":"IF('1. Ordersheet'!BC569=\"\",\"\",'1. Ordersheet'!BC569)","v":""},{"$f":"IF('1. Ordersheet'!BD569=\"\",\"\",'1. Ordersheet'!BD569)","v":""},{"$f":"IF('1. Ordersheet'!BE569=\"\",\"\",'1. Ordersheet'!BE569)","v":""},{"$f":"IF('1. Ordersheet'!BF569=\"\",\"\",'1. Ordersheet'!BF569)","v":""},{"$f":"IF('1. Ordersheet'!BG569=\"\",\"\",'1. Ordersheet'!BG569)","v":"ZWO"},{"$f":"IF('1. Ordersheet'!BH569=\"\",\"\",'1. Ordersheet'!BH569)","v":""},{"$f":"IF('1. Ordersheet'!BI569=\"\",\"\",'1. Ordersheet'!BI569)","v":""},{"$f":"IF('1. Ordersheet'!BJ569=\"\",\"\",'1. Ordersheet'!BJ569)","v":""},{"$f":"IF('1. Ordersheet'!BK569=\"\",\"\",'1. Ordersheet'!BK569)","v":""},{"$f":"IF('1. Ordersheet'!BL569=\"\",\"\",'1. Ordersheet'!BL569)","v":""}]
[{"$f":"IF('1. Ordersheet'!F570=\"\",\"\",'1. Ordersheet'!F570)","v":""},{"$f":"IF('1. Ordersheet'!G570=\"\",\"\",'1. Ordersheet'!G570)","v":""},{"$f":"IF('1. Ordersheet'!H570=\"\",\"\",'1. Ordersheet'!H570)","v":""},{"$f":"IF('1. Ordersheet'!I570=\"\",\"\",'1. Ordersheet'!I570)","v":""},{"$f":"IF('1. Ordersheet'!J570=\"\",\"\",'1. Ordersheet'!J570)","v":""},{"$f":"IF('1. Ordersheet'!K570=\"\",\"\",'1. Ordersheet'!K570)","v":""},{"$f":"IF('1. Ordersheet'!L570=\"\",\"\",'1. Ordersheet'!L570)","v":""},{"$f":"IF('1. Ordersheet'!M570=\"\",\"\",'1. Ordersheet'!M570)","v":""},{"$f":"IF('1. Ordersheet'!N570=\"\",\"\",'1. Ordersheet'!N570)","v":""},{"$f":"IF('1. Ordersheet'!O570=\"\",\"\",'1. Ordersheet'!O570)","v":{"$error":"#N/A"}},{"$f":"IF('1. Ordersheet'!P570=\"\",\"\",'1. Ordersheet'!P570)","v":{"$error":"#N/A"}},{"$f":"IF('1. Ordersheet'!Q570=\"\",\"\",'1. Ordersheet'!Q570)","v":""},{"$f":"IF('1. Ordersheet'!R570=\"\",\"\",'1. Ordersheet'!R570)","v":""},{"$f":"IF('1. Ordersheet'!S570=\"\",\"\",'1. Ordersheet'!S570)","v":""},{"$f":"IF('1. Ordersheet'!V570=\"\",\"\",'1. Ordersheet'!V570)","v":""},{"$f":"IF('1. Ordersheet'!W570=\"\",\"\",'1. Ordersheet'!W570)","v":""},{"$f":"IF('1. Ordersheet'!X570=\"\",\"\",'1. Ordersheet'!X570)","v":""},{"$f":"IF('1. Ordersheet'!Y570=\"\",\"\",'1. Ordersheet'!Y570)","v":""},{"$f":"IF('1. Ordersheet'!Z570=\"\",\"\",'1. Ordersheet'!Z570)","v":""},{"$f":"IF('1. Ordersheet'!AA570=\"\",\"\",'1. Ordersheet'!AA570)","v":""},null,{"$f":"IF('1. Ordersheet'!AS570=\"\",\"\",'1. Ordersheet'!AS570)","v":""},{"$f":"IF('1. Ordersheet'!AT570=\"\",\"\",'1. Ordersheet'!AT570)","v":""},null,null,null,null,null,null,null,{"$f":"IF('1. Ordersheet'!AX570=\"\",\"\",'1. Ordersheet'!AX570)","v":""},{"$f":"IF('1. Ordersheet'!AY570=\"\",\"\",'1. Ordersheet'!AY570)","v":""},{"$f":"IF('1. Ordersheet'!AZ570=\"\",\"\",'1. Ordersheet'!AZ570)","v":""},{"$f":"IF('1. Ordersheet'!BA570=\"\",\"\",'1. Ordersheet'!BA570)","v":""},{"$f":"IF('1. Ordersheet'!BC570=\"\",\"\",'1. Ordersheet'!BC570)","v":""},{"$f":"IF('1. Ordersheet'!BD570=\"\",\"\",'1. Ordersheet'!BD570)","v":""},{"$f":"IF('1. Ordersheet'!BE570=\"\",\"\",'1. Ordersheet'!BE570)","v":""},{"$f":"IF('1. Ordersheet'!BF570=\"\",\"\",'1. Ordersheet'!BF570)","v":""},{"$f":"IF('1. Ordersheet'!BG570=\"\",\"\",'1. Ordersheet'!BG570)","v":"ZWO"},{"$f":"IF('1. Ordersheet'!BH570=\"\",\"\",'1. Ordersheet'!BH570)","v":""},{"$f":"IF('1. Ordersheet'!BI570=\"\",\"\",'1. Ordersheet'!BI570)","v":""},{"$f":"IF('1. Ordersheet'!BJ570=\"\",\"\",'1. Ordersheet'!BJ570)","v":""},{"$f":"IF('1. Ordersheet'!BK570=\"\",\"\",'1. Ordersheet'!BK570)","v":""},{"$f":"IF('1. Ordersheet'!BL570=\"\",\"\",'1. Ordersheet'!BL570)","v":""}]
[{"$f":"IF('1. Ordersheet'!F571=\"\",\"\",'1. Ordersheet'!F571)","v":""},{"$f":"IF('1. Ordersheet'!G571=\"\",\"\",'1. Ordersheet'!G571)","v":""},{"$f":"IF('1. Ordersheet'!H571=\"\",\"\",'1. Ordersheet'!H571)","v":""},{"$f":"IF('1. Ordersheet'!I571=\"\",\"\",'1. Ordersheet'!I571)","v":""},{"$f":"IF('1. Ordersheet'!J571=\"\",\"\",'1. Ordersheet'!J571)","v":""},{"$f":"IF('1. Ordersheet'!K571=\"\",\"\",'1. Ordersheet'!K571)","v":""},{"$f":"IF('1. Ordersheet'!L571=\"\",\"\",'1. Ordersheet'!L571)","v":""},{"$f":"IF('1. Ordersheet'!M571=\"\",\"\",'1. Ordersheet'!M571)","v":""},{"$f":"IF('1. Ordersheet'!N571=\"\",\"\",'1. Ordersheet'!N571)","v":""},{"$f":"IF('1. Ordersheet'!O571=\"\",\"\",'1. Ordersheet'!O571)","v":{"$error":"#N/A"}},{"$f":"IF('1. Ordersheet'!P571=\"\",\"\",'1. Ordersheet'!P571)","v":{"$error":"#N/A"}},{"$f":"IF('1. Ordersheet'!Q571=\"\",\"\",'1. Ordersheet'!Q571)","v":""},{"$f":"IF('1. Ordersheet'!R571=\"\",\"\",'1. Ordersheet'!R571)","v":""},{"$f":"IF('1. Ordersheet'!S571=\"\",\"\",'1. Ordersheet'!S571)","v":""},{"$f":"IF('1. Ordersheet'!V571=\"\",\"\",'1. Ordersheet'!V571)","v":""},{"$f":"IF('1. Ordersheet'!W571=\"\",\"\",'1. Ordersheet'!W571)","v":""},{"$f":"IF('1. Ordersheet'!X571=\"\",\"\",'1. Ordersheet'!X571)","v":""},{"$f":"IF('1. Ordersheet'!Y571=\"\",\"\",'1. Ordersheet'!Y571)","v":""},{"$f":"IF('1. Ordersheet'!Z571=\"\",\"\",'1. Ordersheet'!Z571)","v":""},{"$f":"IF('1. Ordersheet'!AA571=\"\",\"\",'1. Ordersheet'!AA571)","v":""},null,{"$f":"IF('1. Ordersheet'!AS571=\"\",\"\",'1. Ordersheet'!AS571)","v":""},{"$f":"IF('1. Ordersheet'!AT571=\"\",\"\",'1. Ordersheet'!AT571)","v":""},null,null,null,null,null,null,null,{"$f":"IF('1. Ordersheet'!AX571=\"\",\"\",'1. Ordersheet'!AX571)","v":""},{"$f":"IF('1. Ordersheet'!AY571=\"\",\"\",'1. Ordersheet'!AY571)","v":""},{"$f":"IF('1. Ordersheet'!AZ571=\"\",\"\",'1. Ordersheet'!AZ571)","v":""},{"$f":"IF('1. Ordersheet'!BA571=\"\",\"\",'1. Ordersheet'!BA571)","v":""},{"$f":"IF('1. Ordersheet'!BC571=\"\",\"\",'1. Ordersheet'!BC571)","v":""},{"$f":"IF('1. Ordersheet'!BD571=\"\",\"\",'1. Ordersheet'!BD571)","v":""},{"$f":"IF('1. Ordersheet'!BE571=\"\",\"\",'1. Ordersheet'!BE571)","v":""},{"$f":"IF('1. Ordersheet'!BF571=\"\",\"\",'1. Ordersheet'!BF571)","v":""},{"$f":"IF('1. Ordersheet'!BG571=\"\",\"\",'1. Ordersheet'!BG571)","v":"ZWO"},{"$f":"IF('1. Ordersheet'!BH571=\"\",\"\",'1. Ordersheet'!BH571)","v":""},{"$f":"IF('1. Ordersheet'!BI571=\"\",\"\",'1. Ordersheet'!BI571)","v":""},{"$f":"IF('1. Ordersheet'!BJ571=\"\",\"\",'1. Ordersheet'!BJ571)","v":""},{"$f":"IF('1. Ordersheet'!BK571=\"\",\"\",'1. Ordersheet'!BK571)","v":""},{"$f":"IF('1. Ordersheet'!BL571=\"\",\"\",'1. Ordersheet'!BL571)","v":""}]
[{"$f":"IF('1. Ordersheet'!F572=\"\",\"\",'1. Ordersheet'!F572)","v":""},{"$f":"IF('1. Ordersheet'!G572=\"\",\"\",'1. Ordersheet'!G572)","v":""},{"$f":"IF('1. Ordersheet'!H572=\"\",\"\",'1. Ordersheet'!H572)","v":""},{"$f":"IF('1. Ordersheet'!I572=\"\",\"\",'1. Ordersheet'!I572)","v":""},{"$f":"IF('1. Ordersheet'!J572=\"\",\"\",'1. Ordersheet'!J572)","v":""},{"$f":"IF('1. Ordersheet'!K572=\"\",\"\",'1. Ordersheet'!K572)","v":""},{"$f":"IF('1. Ordersheet'!L572=\"\",\"\",'1. Ordersheet'!L572)","v":""},{"$f":"IF('1. Ordersheet'!M572=\"\",\"\",'1. Ordersheet'!M572)","v":""},{"$f":"IF('1. Ordersheet'!N572=\"\",\"\",'1. Ordersheet'!N572)","v":""},{"$f":"IF('1. Ordersheet'!O572=\"\",\"\",'1. Ordersheet'!O572)","v":{"$error":"#N/A"}},{"$f":"IF('1. Ordersheet'!P572=\"\",\"\",'1. Ordersheet'!P572)","v":{"$error":"#N/A"}},{"$f":"IF('1. Ordersheet'!Q572=\"\",\"\",'1. Ordersheet'!Q572)","v":""},{"$f":"IF('1. Ordersheet'!R572=\"\",\"\",'1. Ordersheet'!R572)","v":""},{"$f":"IF('1. Ordersheet'!S572=\"\",\"\",'1. Ordersheet'!S572)","v":""},{"$f":"IF('1. Ordersheet'!V572=\"\",\"\",'1. Ordersheet'!V572)","v":""},{"$f":"IF('1. Ordersheet'!W572=\"\",\"\",'1. Ordersheet'!W572)","v":""},{"$f":"IF('1. Ordersheet'!X572=\"\",\"\",'1. Ordersheet'!X572)","v":""},{"$f":"IF('1. Ordersheet'!Y572=\"\",\"\",'1. Ordersheet'!Y572)","v":""},{"$f":"IF('1. Ordersheet'!Z572=\"\",\"\",'1. Ordersheet'!Z572)","v":""},{"$f":"IF('1. Ordersheet'!AA572=\"\",\"\",'1. Ordersheet'!AA572)","v":""},null,{"$f":"IF('1. Ordersheet'!AS572=\"\",\"\",'1. Ordersheet'!AS572)","v":""},{"$f":"IF('1. Ordersheet'!AT572=\"\",\"\",'1. Ordersheet'!AT572)","v":""},null,null,null,null,null,null,null,{"$f":"IF('1. Ordersheet'!AX572=\"\",\"\",'1. Ordersheet'!AX572)","v":""},{"$f":"IF('1. Ordersheet'!AY572=\"\",\"\",'1. Ordersheet'!AY572)","v":""},{"$f":"IF('1. Ordersheet'!AZ572=\"\",\"\",'1. Ordersheet'!AZ572)","v":""},{"$f":"IF('1. Ordersheet'!BA572=\"\",\"\",'1. Ordersheet'!BA572)","v":""},{"$f":"IF('1. Ordersheet'!BC572=\"\",\"\",'1. Ordersheet'!BC572)","v":""},{"$f":"IF('1. Ordersheet'!BD572=\"\",\"\",'1. Ordersheet'!BD572)","v":""},{"$f":"IF('1. Ordersheet'!BE572=\"\",\"\",'1. Ordersheet'!BE572)","v":""},{"$f":"IF('1. Ordersheet'!BF572=\"\",\"\",'1. Ordersheet'!BF572)","v":""},{"$f":"IF('1. Ordersheet'!BG572=\"\",\"\",'1. Ordersheet'!BG572)","v":"ZWO"},{"$f":"IF('1. Ordersheet'!BH572=\"\",\"\",'1. Ordersheet'!BH572)","v":""},{"$f":"IF('1. Ordersheet'!BI572=\"\",\"\",'1. Ordersheet'!BI572)","v":""},{"$f":"IF('1. Ordersheet'!BJ572=\"\",\"\",'1. Ordersheet'!BJ572)","v":""},{"$f":"IF('1. Ordersheet'!BK572=\"\",\"\",'1. Ordersheet'!BK572)","v":""},{"$f":"IF('1. Ordersheet'!BL572=\"\",\"\",'1. Ordersheet'!BL572)","v":""}]
[{"$f":"IF('1. Ordersheet'!F573=\"\",\"\",'1. Ordersheet'!F573)","v":""},{"$f":"IF('1. Ordersheet'!G573=\"\",\"\",'1. Ordersheet'!G573)","v":""},{"$f":"IF('1. Ordersheet'!H573=\"\",\"\",'1. Ordersheet'!H573)","v":""},{"$f":"IF('1. Ordersheet'!I573=\"\",\"\",'1. Ordersheet'!I573)","v":""},{"$f":"IF('1. Ordersheet'!J573=\"\",\"\",'1. Ordersheet'!J573)","v":""},{"$f":"IF('1. Ordersheet'!K573=\"\",\"\",'1. Ordersheet'!K573)","v":""},{"$f":"IF('1. Ordersheet'!L573=\"\",\"\",'1. Ordersheet'!L573)","v":""},{"$f":"IF('1. Ordersheet'!M573=\"\",\"\",'1. Ordersheet'!M573)","v":""},{"$f":"IF('1. Ordersheet'!N573=\"\",\"\",'1. Ordersheet'!N573)","v":""},{"$f":"IF('1. Ordersheet'!O573=\"\",\"\",'1. Ordersheet'!O573)","v":{"$error":"#N/A"}},{"$f":"IF('1. Ordersheet'!P573=\"\",\"\",'1. Ordersheet'!P573)","v":{"$error":"#N/A"}},{"$f":"IF('1. Ordersheet'!Q573=\"\",\"\",'1. Ordersheet'!Q573)","v":""},{"$f":"IF('1. Ordersheet'!R573=\"\",\"\",'1. Ordersheet'!R573)","v":""},{"$f":"IF('1. Ordersheet'!S573=\"\",\"\",'1. Ordersheet'!S573)","v":""},{"$f":"IF('1. Ordersheet'!V573=\"\",\"\",'1. Ordersheet'!V573)","v":""},{"$f":"IF('1. Ordersheet'!W573=\"\",\"\",'1. Ordersheet'!W573)","v":""},{"$f":"IF('1. Ordersheet'!X573=\"\",\"\",'1. Ordersheet'!X573)","v":""},{"$f":"IF('1. Ordersheet'!Y573=\"\",\"\",'1. Ordersheet'!Y573)","v":""},{"$f":"IF('1. Ordersheet'!Z573=\"\",\"\",'1. Ordersheet'!Z573)","v":""},{"$f":"IF('1. Ordersheet'!AA573=\"\",\"\",'1. Ordersheet'!AA573)","v":""},null,{"$f":"IF('1. Ordersheet'!AS573=\"\",\"\",'1. Ordersheet'!AS573)","v":""},{"$f":"IF('1. Ordersheet'!AT573=\"\",\"\",'1. Ordersheet'!AT573)","v":""},null,null,null,null,null,null,null,{"$f":"IF('1. Ordersheet'!AX573=\"\",\"\",'1. Ordersheet'!AX573)","v":""},{"$f":"IF('1. Ordersheet'!AY573=\"\",\"\",'1. Ordersheet'!AY573)","v":""},{"$f":"IF('1. Ordersheet'!AZ573=\"\",\"\",'1. Ordersheet'!AZ573)","v":""},{"$f":"IF('1. Ordersheet'!BA573=\"\",\"\",'1. Ordersheet'!BA573)","v":""},{"$f":"IF('1. Ordersheet'!BC573=\"\",\"\",'1. Ordersheet'!BC573)","v":""},{"$f":"IF('1. Ordersheet'!BD573=\"\",\"\",'1. Ordersheet'!BD573)","v":""},{"$f":"IF('1. Ordersheet'!BE573=\"\",\"\",'1. Ordersheet'!BE573)","v":""},{"$f":"IF('1. Ordersheet'!BF573=\"\",\"\",'1. Ordersheet'!BF573)","v":""},{"$f":"IF('1. Ordersheet'!BG573=\"\",\"\",'1. Ordersheet'!BG573)","v":"ZWO"},{"$f":"IF('1. Ordersheet'!BH573=\"\",\"\",'1. Ordersheet'!BH573)","v":""},{"$f":"IF('1. Ordersheet'!BI573=\"\",\"\",'1. Ordersheet'!BI573)","v":""},{"$f":"IF('1. Ordersheet'!BJ573=\"\",\"\",'1. Ordersheet'!BJ573)","v":""},{"$f":"IF('1. Ordersheet'!BK573=\"\",\"\",'1. Ordersheet'!BK573)","v":""},{"$f":"IF('1. Ordersheet'!BL573=\"\",\"\",'1. Ordersheet'!BL573)","v":""}]
[{"$f":"IF('1. Ordersheet'!F574=\"\",\"\",'1. Ordersheet'!F574)","v":""},{"$f":"IF('1. Ordersheet'!G574=\"\",\"\",'1. Ordersheet'!G574)","v":""},{"$f":"IF('1. Ordersheet'!H574=\"\",\"\",'1. Ordersheet'!H574)","v":""},{"$f":"IF('1. Ordersheet'!I574=\"\",\"\",'1. Ordersheet'!I574)","v":""},{"$f":"IF('1. Ordersheet'!J574=\"\",\"\",'1. Ordersheet'!J574)","v":""},{"$f":"IF('1. Ordersheet'!K574=\"\",\"\",'1. Ordersheet'!K574)","v":""},{"$f":"IF('1. Ordersheet'!L574=\"\",\"\",'1. Ordersheet'!L574)","v":""},{"$f":"IF('1. Ordersheet'!M574=\"\",\"\",'1. Ordersheet'!M574)","v":""},{"$f":"IF('1. Ordersheet'!N574=\"\",\"\",'1. Ordersheet'!N574)","v":""},{"$f":"IF('1. Ordersheet'!O574=\"\",\"\",'1. Ordersheet'!O574)","v":{"$error":"#N/A"}},{"$f":"IF('1. Ordersheet'!P574=\"\",\"\",'1. Ordersheet'!P574)","v":{"$error":"#N/A"}},{"$f":"IF('1. Ordersheet'!Q574=\"\",\"\",'1. Ordersheet'!Q574)","v":""},{"$f":"IF('1. Ordersheet'!R574=\"\",\"\",'1. Ordersheet'!R574)","v":""},{"$f":"IF('1. Ordersheet'!S574=\"\",\"\",'1. Ordersheet'!S574)","v":""},{"$f":"IF('1. Ordersheet'!V574=\"\",\"\",'1. Ordersheet'!V574)","v":""},{"$f":"IF('1. Ordersheet'!W574=\"\",\"\",'1. Ordersheet'!W574)","v":""},{"$f":"IF('1. Ordersheet'!X574=\"\",\"\",'1. Ordersheet'!X574)","v":""},{"$f":"IF('1. Ordersheet'!Y574=\"\",\"\",'1. Ordersheet'!Y574)","v":""},{"$f":"IF('1. Ordersheet'!Z574=\"\",\"\",'1. Ordersheet'!Z574)","v":""},{"$f":"IF('1. Ordersheet'!AA574=\"\",\"\",'1. Ordersheet'!AA574)","v":""},null,{"$f":"IF('1. Ordersheet'!AS574=\"\",\"\",'1. Ordersheet'!AS574)","v":""},{"$f":"IF('1. Ordersheet'!AT574=\"\",\"\",'1. Ordersheet'!AT574)","v":""},null,null,null,null,null,null,null,{"$f":"IF('1. Ordersheet'!AX574=\"\",\"\",'1. Ordersheet'!AX574)","v":""},{"$f":"IF('1. Ordersheet'!AY574=\"\",\"\",'1. Ordersheet'!AY574)","v":""},{"$f":"IF('1. Ordersheet'!AZ574=\"\",\"\",'1. Ordersheet'!AZ574)","v":""},{"$f":"IF('1. Ordersheet'!BA574=\"\",\"\",'1. Ordersheet'!BA574)","v":""},{"$f":"IF('1. Ordersheet'!BC574=\"\",\"\",'1. Ordersheet'!BC574)","v":""},{"$f":"IF('1. Ordersheet'!BD574=\"\",\"\",'1. Ordersheet'!BD574)","v":""},{"$f":"IF('1. Ordersheet'!BE574=\"\",\"\",'1. Ordersheet'!BE574)","v":""},{"$f":"IF('1. Ordersheet'!BF574=\"\",\"\",'1. Ordersheet'!BF574)","v":""},{"$f":"IF('1. Ordersheet'!BG574=\"\",\"\",'1. Ordersheet'!BG574)","v":"ZWO"},{"$f":"IF('1. Ordersheet'!BH574=\"\",\"\",'1. Ordersheet'!BH574)","v":""},{"$f":"IF('1. Ordersheet'!BI574=\"\",\"\",'1. Ordersheet'!BI574)","v":""},{"$f":"IF('1. Ordersheet'!BJ574=\"\",\"\",'1. Ordersheet'!BJ574)","v":""},{"$f":"IF('1. Ordersheet'!BK574=\"\",\"\",'1. Ordersheet'!BK574)","v":""},{"$f":"IF('1. Ordersheet'!BL574=\"\",\"\",'1. Ordersheet'!BL574)","v":""}]
[{"$f":"IF('1. Ordersheet'!F575=\"\",\"\",'1. Ordersheet'!F575)","v":""},{"$f":"IF('1. Ordersheet'!G575=\"\",\"\",'1. Ordersheet'!G575)","v":""},{"$f":"IF('1. Ordersheet'!H575=\"\",\"\",'1. Ordersheet'!H575)","v":""},{"$f":"IF('1. Ordersheet'!I575=\"\",\"\",'1. Ordersheet'!I575)","v":""},{"$f":"IF('1. Ordersheet'!J575=\"\",\"\",'1. Ordersheet'!J575)","v":""},{"$f":"IF('1. Ordersheet'!K575=\"\",\"\",'1. Ordersheet'!K575)","v":""},{"$f":"IF('1. Ordersheet'!L575=\"\",\"\",'1. Ordersheet'!L575)","v":""},{"$f":"IF('1. Ordersheet'!M575=\"\",\"\",'1. Ordersheet'!M575)","v":""},{"$f":"IF('1. Ordersheet'!N575=\"\",\"\",'1. Ordersheet'!N575)","v":""},{"$f":"IF('1. Ordersheet'!O575=\"\",\"\",'1. Ordersheet'!O575)","v":{"$error":"#N/A"}},{"$f":"IF('1. Ordersheet'!P575=\"\",\"\",'1. Ordersheet'!P575)","v":{"$error":"#N/A"}},{"$f":"IF('1. Ordersheet'!Q575=\"\",\"\",'1. Ordersheet'!Q575)","v":""},{"$f":"IF('1. Ordersheet'!R575=\"\",\"\",'1. Ordersheet'!R575)","v":""},{"$f":"IF('1. Ordersheet'!S575=\"\",\"\",'1. Ordersheet'!S575)","v":""},{"$f":"IF('1. Ordersheet'!V575=\"\",\"\",'1. Ordersheet'!V575)","v":""},{"$f":"IF('1. Ordersheet'!W575=\"\",\"\",'1. Ordersheet'!W575)","v":""},{"$f":"IF('1. Ordersheet'!X575=\"\",\"\",'1. Ordersheet'!X575)","v":""},{"$f":"IF('1. Ordersheet'!Y575=\"\",\"\",'1. Ordersheet'!Y575)","v":""},{"$f":"IF('1. Ordersheet'!Z575=\"\",\"\",'1. Ordersheet'!Z575)","v":""},{"$f":"IF('1. Ordersheet'!AA575=\"\",\"\",'1. Ordersheet'!AA575)","v":""},null,{"$f":"IF('1. Ordersheet'!AS575=\"\",\"\",'1. Ordersheet'!AS575)","v":""},{"$f":"IF('1. Ordersheet'!AT575=\"\",\"\",'1. Ordersheet'!AT575)","v":""},null,null,null,null,null,null,null,{"$f":"IF('1. Ordersheet'!AX575=\"\",\"\",'1. Ordersheet'!AX575)","v":""},{"$f":"IF('1. Ordersheet'!AY575=\"\",\"\",'1. Ordersheet'!AY575)","v":""},{"$f":"IF('1. Ordersheet'!AZ575=\"\",\"\",'1. Ordersheet'!AZ575)","v":""},{"$f":"IF('1. Ordersheet'!BA575=\"\",\"\",'1. Ordersheet'!BA575)","v":""},{"$f":"IF('1. Ordersheet'!BC575=\"\",\"\",'1. Ordersheet'!BC575)","v":""},{"$f":"IF('1. Ordersheet'!BD575=\"\",\"\",'1. Ordersheet'!BD575)","v":""},{"$f":"IF('1. Ordersheet'!BE575=\"\",\"\",'1. Ordersheet'!BE575)","v":""},{"$f":"IF('1. Ordersheet'!BF575=\"\",\"\",'1. Ordersheet'!BF575)","v":""},{"$f":"IF('1. Ordersheet'!BG575=\"\",\"\",'1. Ordersheet'!BG575)","v":"ZWO"},{"$f":"IF('1. Ordersheet'!BH575=\"\",\"\",'1. Ordersheet'!BH575)","v":""},{"$f":"IF('1. Ordersheet'!BI575=\"\",\"\",'1. Ordersheet'!BI575)","v":""},{"$f":"IF('1. Ordersheet'!BJ575=\"\",\"\",'1. Ordersheet'!BJ575)","v":""},{"$f":"IF('1. Ordersheet'!BK575=\"\",\"\",'1. Ordersheet'!BK575)","v":""},{"$f":"IF('1. Ordersheet'!BL575=\"\",\"\",'1. Ordersheet'!BL575)","v":""}]
[{"$f":"IF('1. Ordersheet'!F576=\"\",\"\",'1. Ordersheet'!F576)","v":""},{"$f":"IF('1. Ordersheet'!G576=\"\",\"\",'1. Ordersheet'!G576)","v":""},{"$f":"IF('1. Ordersheet'!H576=\"\",\"\",'1. Ordersheet'!H576)","v":""},{"$f":"IF('1. Ordersheet'!I576=\"\",\"\",'1. Ordersheet'!I576)","v":""},{"$f":"IF('1. Ordersheet'!J576=\"\",\"\",'1. Ordersheet'!J576)","v":""},{"$f":"IF('1. Ordersheet'!K576=\"\",\"\",'1. Ordersheet'!K576)","v":""},{"$f":"IF('1. Ordersheet'!L576=\"\",\"\",'1. Ordersheet'!L576)","v":""},{"$f":"IF('1. Ordersheet'!M576=\"\",\"\",'1. Ordersheet'!M576)","v":""},{"$f":"IF('1. Ordersheet'!N576=\"\",\"\",'1. Ordersheet'!N576)","v":""},{"$f":"IF('1. Ordersheet'!O576=\"\",\"\",'1. Ordersheet'!O576)","v":{"$error":"#N/A"}},{"$f":"IF('1. Ordersheet'!P576=\"\",\"\",'1. Ordersheet'!P576)","v":{"$error":"#N/A"}},{"$f":"IF('1. Ordersheet'!Q576=\"\",\"\",'1. Ordersheet'!Q576)","v":""},{"$f":"IF('1. Ordersheet'!R576=\"\",\"\",'1. Ordersheet'!R576)","v":""},{"$f":"IF('1. Ordersheet'!S576=\"\",\"\",'1. Ordersheet'!S576)","v":""},{"$f":"IF('1. Ordersheet'!V576=\"\",\"\",'1. Ordersheet'!V576)","v":""},{"$f":"IF('1. Ordersheet'!W576=\"\",\"\",'1. Ordersheet'!W576)","v":""},{"$f":"IF('1. Ordersheet'!X576=\"\",\"\",'1. Ordersheet'!X576)","v":""},{"$f":"IF('1. Ordersheet'!Y576=\"\",\"\",'1. Ordersheet'!Y576)","v":""},{"$f":"IF('1. Ordersheet'!Z576=\"\",\"\",'1. Ordersheet'!Z576)","v":""},{"$f":"IF('1. Ordersheet'!AA576=\"\",\"\",'1. Ordersheet'!AA576)","v":""},null,{"$f":"IF('1. Ordersheet'!AS576=\"\",\"\",'1. Ordersheet'!AS576)","v":""},{"$f":"IF('1. Ordersheet'!AT576=\"\",\"\",'1. Ordersheet'!AT576)","v":""},null,null,null,null,null,null,null,{"$f":"IF('1. Ordersheet'!AX576=\"\",\"\",'1. Ordersheet'!AX576)","v":""},{"$f":"IF('1. Ordersheet'!AY576=\"\",\"\",'1. Ordersheet'!AY576)","v":""},{"$f":"IF('1. Ordersheet'!AZ576=\"\",\"\",'1. Ordersheet'!AZ576)","v":""},{"$f":"IF('1. Ordersheet'!BA576=\"\",\"\",'1. Ordersheet'!BA576)","v":""},{"$f":"IF('1. Ordersheet'!BC576=\"\",\"\",'1. Ordersheet'!BC576)","v":""},{"$f":"IF('1. Ordersheet'!BD576=\"\",\"\",'1. Ordersheet'!BD576)","v":""},{"$f":"IF('1. Ordersheet'!BE576=\"\",\"\",'1. Ordersheet'!BE576)","v":""},{"$f":"IF('1. Ordersheet'!BF576=\"\",\"\",'1. Ordersheet'!BF576)","v":""},{"$f":"IF('1. Ordersheet'!BG576=\"\",\"\",'1. Ordersheet'!BG576)","v":"ZWO"},{"$f":"IF('1. Ordersheet'!BH576=\"\",\"\",'1. Ordersheet'!BH576)","v":""},{"$f":"IF('1. Ordersheet'!BI576=\"\",\"\",'1. Ordersheet'!BI576)","v":""},{"$f":"IF('1. Ordersheet'!BJ576=\"\",\"\",'1. Ordersheet'!BJ576)","v":""},{"$f":"IF('1. Ordersheet'!BK576=\"\",\"\",'1. Ordersheet'!BK576)","v":""},{"$f":"IF('1. Ordersheet'!BL576=\"\",\"\",'1. Ordersheet'!BL576)","v":""}]
[{"$f":"IF('1. Ordersheet'!F577=\"\",\"\",'1. Ordersheet'!F577)","v":""},{"$f":"IF('1. Ordersheet'!G577=\"\",\"\",'1. Ordersheet'!G577)","v":""},{"$f":"IF('1. Ordersheet'!H577=\"\",\"\",'1. Ordersheet'!H577)","v":""},{"$f":"IF('1. Ordersheet'!I577=\"\",\"\",'1. Ordersheet'!I577)","v":""},{"$f":"IF('1. Ordersheet'!J577=\"\",\"\",'1. Ordersheet'!J577)","v":""},{"$f":"IF('1. Ordersheet'!K577=\"\",\"\",'1. Ordersheet'!K577)","v":""},{"$f":"IF('1. Ordersheet'!L577=\"\",\"\",'1. Ordersheet'!L577)","v":""},{"$f":"IF('1. Ordersheet'!M577=\"\",\"\",'1. Ordersheet'!M577)","v":""},{"$f":"IF('1. Ordersheet'!N577=\"\",\"\",'1. Ordersheet'!N577)","v":""},{"$f":"IF('1. Ordersheet'!O577=\"\",\"\",'1. Ordersheet'!O577)","v":{"$error":"#N/A"}},{"$f":"IF('1. Ordersheet'!P577=\"\",\"\",'1. Ordersheet'!P577)","v":{"$error":"#N/A"}},{"$f":"IF('1. Ordersheet'!Q577=\"\",\"\",'1. Ordersheet'!Q577)","v":""},{"$f":"IF('1. Ordersheet'!R577=\"\",\"\",'1. Ordersheet'!R577)","v":""},{"$f":"IF('1. Ordersheet'!S577=\"\",\"\",'1. Ordersheet'!S577)","v":""},{"$f":"IF('1. Ordersheet'!V577=\"\",\"\",'1. Ordersheet'!V577)","v":""},{"$f":"IF('1. Ordersheet'!W577=\"\",\"\",'1. Ordersheet'!W577)","v":""},{"$f":"IF('1. Ordersheet'!X577=\"\",\"\",'1. Ordersheet'!X577)","v":""},{"$f":"IF('1. Ordersheet'!Y577=\"\",\"\",'1. Ordersheet'!Y577)","v":""},{"$f":"IF('1. Ordersheet'!Z577=\"\",\"\",'1. Ordersheet'!Z577)","v":""},{"$f":"IF('1. Ordersheet'!AA577=\"\",\"\",'1. Ordersheet'!AA577)","v":""},null,{"$f":"IF('1. Ordersheet'!AS577=\"\",\"\",'1. Ordersheet'!AS577)","v":""},{"$f":"IF('1. Ordersheet'!AT577=\"\",\"\",'1. Ordersheet'!AT577)","v":""},null,null,null,null,null,null,null,{"$f":"IF('1. Ordersheet'!AX577=\"\",\"\",'1. Ordersheet'!AX577)","v":""},{"$f":"IF('1. Ordersheet'!AY577=\"\",\"\",'1. Ordersheet'!AY577)","v":""},{"$f":"IF('1. Ordersheet'!AZ577=\"\",\"\",'1. Ordersheet'!AZ577)","v":""},{"$f":"IF('1. Ordersheet'!BA577=\"\",\"\",'1. Ordersheet'!BA577)","v":""},{"$f":"IF('1. Ordersheet'!BC577=\"\",\"\",'1. Ordersheet'!BC577)","v":""},{"$f":"IF('1. Ordersheet'!BD577=\"\",\"\",'1. Ordersheet'!BD577)","v":""},{"$f":"IF('1. Ordersheet'!BE577=\"\",\"\",'1. Ordersheet'!BE577)","v":""},{"$f":"IF('1. Ordersheet'!BF577=\"\",\"\",'1. Ordersheet'!BF577)","v":""},{"$f":"IF('1. Ordersheet'!BG577=\"\",\"\",'1. Ordersheet'!BG577)","v":"ZWO"},{"$f":"IF('1. Ordersheet'!BH577=\"\",\"\",'1. Ordersheet'!BH577)","v":""},{"$f":"IF('1. Ordersheet'!BI577=\"\",\"\",'1. Ordersheet'!BI577)","v":""},{"$f":"IF('1. Ordersheet'!BJ577=\"\",\"\",'1. Ordersheet'!BJ577)","v":""},{"$f":"IF('1. Ordersheet'!BK577=\"\",\"\",'1. Ordersheet'!BK577)","v":""},{"$f":"IF('1. Ordersheet'!BL577=\"\",\"\",'1. Ordersheet'!BL577)","v":""}]
[{"$f":"IF('1. Ordersheet'!F578=\"\",\"\",'1. Ordersheet'!F578)","v":""},{"$f":"IF('1. Ordersheet'!G578=\"\",\"\",'1. Ordersheet'!G578)","v":""},{"$f":"IF('1. Ordersheet'!H578=\"\",\"\",'1. Ordersheet'!H578)","v":""},{"$f":"IF('1. Ordersheet'!I578=\"\",\"\",'1. Ordersheet'!I578)","v":""},{"$f":"IF('1. Ordersheet'!J578=\"\",\"\",'1. Ordersheet'!J578)","v":""},{"$f":"IF('1. Ordersheet'!K578=\"\",\"\",'1. Ordersheet'!K578)","v":""},{"$f":"IF('1. Ordersheet'!L578=\"\",\"\",'1. Ordersheet'!L578)","v":""},{"$f":"IF('1. Ordersheet'!M578=\"\",\"\",'1. Ordersheet'!M578)","v":""},{"$f":"IF('1. Ordersheet'!N578=\"\",\"\",'1. Ordersheet'!N578)","v":""},{"$f":"IF('1. Ordersheet'!O578=\"\",\"\",'1. Ordersheet'!O578)","v":{"$error":"#N/A"}},{"$f":"IF('1. Ordersheet'!P578=\"\",\"\",'1. Ordersheet'!P578)","v":{"$error":"#N/A"}},{"$f":"IF('1. Ordersheet'!Q578=\"\",\"\",'1. Ordersheet'!Q578)","v":""},{"$f":"IF('1. Ordersheet'!R578=\"\",\"\",'1. Ordersheet'!R578)","v":""},{"$f":"IF('1. Ordersheet'!S578=\"\",\"\",'1. Ordersheet'!S578)","v":""},{"$f":"IF('1. Ordersheet'!V578=\"\",\"\",'1. Ordersheet'!V578)","v":""},{"$f":"IF('1. Ordersheet'!W578=\"\",\"\",'1. Ordersheet'!W578)","v":""},{"$f":"IF('1. Ordersheet'!X578=\"\",\"\",'1. Ordersheet'!X578)","v":""},{"$f":"IF('1. Ordersheet'!Y578=\"\",\"\",'1. Ordersheet'!Y578)","v":""},{"$f":"IF('1. Ordersheet'!Z578=\"\",\"\",'1. Ordersheet'!Z578)","v":""},{"$f":"IF('1. Ordersheet'!AA578=\"\",\"\",'1. Ordersheet'!AA578)","v":""},null,{"$f":"IF('1. Ordersheet'!AS578=\"\",\"\",'1. Ordersheet'!AS578)","v":""},{"$f":"IF('1. Ordersheet'!AT578=\"\",\"\",'1. Ordersheet'!AT578)","v":""},null,null,null,null,null,null,null,{"$f":"IF('1. Ordersheet'!AX578=\"\",\"\",'1. Ordersheet'!AX578)","v":""},{"$f":"IF('1. Ordersheet'!AY578=\"\",\"\",'1. Ordersheet'!AY578)","v":""},{"$f":"IF('1. Ordersheet'!AZ578=\"\",\"\",'1. Ordersheet'!AZ578)","v":""},{"$f":"IF('1. Ordersheet'!BA578=\"\",\"\",'1. Ordersheet'!BA578)","v":""},{"$f":"IF('1. Ordersheet'!BC578=\"\",\"\",'1. Ordersheet'!BC578)","v":""},{"$f":"IF('1. Ordersheet'!BD578=\"\",\"\",'1. Ordersheet'!BD578)","v":""},{"$f":"IF('1. Ordersheet'!BE578=\"\",\"\",'1. Ordersheet'!BE578)","v":""},{"$f":"IF('1. Ordersheet'!BF578=\"\",\"\",'1. Ordersheet'!BF578)","v":""},{"$f":"IF('1. Ordersheet'!BG578=\"\",\"\",'1. Ordersheet'!BG578)","v":"ZWO"},{"$f":"IF('1. Ordersheet'!BH578=\"\",\"\",'1. Ordersheet'!BH578)","v":""},{"$f":"IF('1. Ordersheet'!BI578=\"\",\"\",'1. Ordersheet'!BI578)","v":""},{"$f":"IF('1. Ordersheet'!BJ578=\"\",\"\",'1. Ordersheet'!BJ578)","v":""},{"$f":"IF('1. Ordersheet'!BK578=\"\",\"\",'1. Ordersheet'!BK578)","v":""},{"$f":"IF('1. Ordersheet'!BL578=\"\",\"\",'1. Ordersheet'!BL578)","v":""}]
[{"$f":"IF('1. Ordersheet'!F579=\"\",\"\",'1. Ordersheet'!F579)","v":""},{"$f":"IF('1. Ordersheet'!G579=\"\",\"\",'1. Ordersheet'!G579)","v":""},{"$f":"IF('1. Ordersheet'!H579=\"\",\"\",'1. Ordersheet'!H579)","v":""},{"$f":"IF('1. Ordersheet'!I579=\"\",\"\",'1. Ordersheet'!I579)","v":""},{"$f":"IF('1. Ordersheet'!J579=\"\",\"\",'1. Ordersheet'!J579)","v":""},{"$f":"IF('1. Ordersheet'!K579=\"\",\"\",'1. Ordersheet'!K579)","v":""},{"$f":"IF('1. Ordersheet'!L579=\"\",\"\",'1. Ordersheet'!L579)","v":""},{"$f":"IF('1. Ordersheet'!M579=\"\",\"\",'1. Ordersheet'!M579)","v":""},{"$f":"IF('1. Ordersheet'!N579=\"\",\"\",'1. Ordersheet'!N579)","v":""},{"$f":"IF('1. Ordersheet'!O579=\"\",\"\",'1. Ordersheet'!O579)","v":{"$error":"#N/A"}},{"$f":"IF('1. Ordersheet'!P579=\"\",\"\",'1. Ordersheet'!P579)","v":{"$error":"#N/A"}},{"$f":"IF('1. Ordersheet'!Q579=\"\",\"\",'1. Ordersheet'!Q579)","v":""},{"$f":"IF('1. Ordersheet'!R579=\"\",\"\",'1. Ordersheet'!R579)","v":""},{"$f":"IF('1. Ordersheet'!S579=\"\",\"\",'1. Ordersheet'!S579)","v":""},{"$f":"IF('1. Ordersheet'!V579=\"\",\"\",'1. Ordersheet'!V579)","v":""},{"$f":"IF('1. Ordersheet'!W579=\"\",\"\",'1. Ordersheet'!W579)","v":""},{"$f":"IF('1. Ordersheet'!X579=\"\",\"\",'1. Ordersheet'!X579)","v":""},{"$f":"IF('1. Ordersheet'!Y579=\"\",\"\",'1. Ordersheet'!Y579)","v":""},{"$f":"IF('1. Ordersheet'!Z579=\"\",\"\",'1. Ordersheet'!Z579)","v":""},{"$f":"IF('1. Ordersheet'!AA579=\"\",\"\",'1. Ordersheet'!AA579)","v":""},null,{"$f":"IF('1. Ordersheet'!AS579=\"\",\"\",'1. Ordersheet'!AS579)","v":""},{"$f":"IF('1. Ordersheet'!AT579=\"\",\"\",'1. Ordersheet'!AT579)","v":""},null,null,null,null,null,null,null,{"$f":"IF('1. Ordersheet'!AX579=\"\",\"\",'1. Ordersheet'!AX579)","v":""},{"$f":"IF('1. Ordersheet'!AY579=\"\",\"\",'1. Ordersheet'!AY579)","v":""},{"$f":"IF('1. Ordersheet'!AZ579=\"\",\"\",'1. Ordersheet'!AZ579)","v":""},{"$f":"IF('1. Ordersheet'!BA579=\"\",\"\",'1. Ordersheet'!BA579)","v":""},{"$f":"IF('1. Ordersheet'!BC579=\"\",\"\",'1. Ordersheet'!BC579)","v":""},{"$f":"IF('1. Ordersheet'!BD579=\"\",\"\",'1. Ordersheet'!BD579)","v":""},{"$f":"IF('1. Ordersheet'!BE579=\"\",\"\",'1. Ordersheet'!BE579)","v":""},{"$f":"IF('1. Ordersheet'!BF579=\"\",\"\",'1. Ordersheet'!BF579)","v":""},{"$f":"IF('1. Ordersheet'!BG579=\"\",\"\",'1. Ordersheet'!BG579)","v":"ZWO"},{"$f":"IF('1. Ordersheet'!BH579=\"\",\"\",'1. Ordersheet'!BH579)","v":""},{"$f":"IF('1. Ordersheet'!BI579=\"\",\"\",'1. Ordersheet'!BI579)","v":""},{"$f":"IF('1. Ordersheet'!BJ579=\"\",\"\",'1. Ordersheet'!BJ579)","v":""},{"$f":"IF('1. Ordersheet'!BK579=\"\",\"\",'1. Ordersheet'!BK579)","v":""},{"$f":"IF('1. Ordersheet'!BL579=\"\",\"\",'1. Ordersheet'!BL579)","v":""}]
[{"$f":"IF('1. Ordersheet'!F580=\"\",\"\",'1. Ordersheet'!F580)","v":""},{"$f":"IF('1. Ordersheet'!G580=\"\",\"\",'1. Ordersheet'!G580)","v":""},{"$f":"IF('1. Ordersheet'!H580=\"\",\"\",'1. Ordersheet'!H580)","v":""},{"$f":"IF('1. Ordersheet'!I580=\"\",\"\",'1. Ordersheet'!I580)","v":""},{"$f":"IF('1. Ordersheet'!J580=\"\",\"\",'1. Ordersheet'!J580)","v":""},{"$f":"IF('1. Ordersheet'!K580=\"\",\"\",'1. Ordersheet'!K580)","v":""},{"$f":"IF('1. Ordersheet'!L580=\"\",\"\",'1. Ordersheet'!L580)","v":""},{"$f":"IF('1. Ordersheet'!M580=\"\",\"\",'1. Ordersheet'!M580)","v":""},{"$f":"IF('1. Ordersheet'!N580=\"\",\"\",'1. Ordersheet'!N580)","v":""},{"$f":"IF('1. Ordersheet'!O580=\"\",\"\",'1. Ordersheet'!O580)","v":{"$error":"#N/A"}},{"$f":"IF('1. Ordersheet'!P580=\"\",\"\",'1. Ordersheet'!P580)","v":{"$error":"#N/A"}},{"$f":"IF('1. Ordersheet'!Q580=\"\",\"\",'1. Ordersheet'!Q580)","v":""},{"$f":"IF('1. Ordersheet'!R580=\"\",\"\",'1. Ordersheet'!R580)","v":""},{"$f":"IF('1. Ordersheet'!S580=\"\",\"\",'1. Ordersheet'!S580)","v":""},{"$f":"IF('1. Ordersheet'!V580=\"\",\"\",'1. Ordersheet'!V580)","v":""},{"$f":"IF('1. Ordersheet'!W580=\"\",\"\",'1. Ordersheet'!W580)","v":""},{"$f":"IF('1. Ordersheet'!X580=\"\",\"\",'1. Ordersheet'!X580)","v":""},{"$f":"IF('1. Ordersheet'!Y580=\"\",\"\",'1. Ordersheet'!Y580)","v":""},{"$f":"IF('1. Ordersheet'!Z580=\"\",\"\",'1. Ordersheet'!Z580)","v":""},{"$f":"IF('1. Ordersheet'!AA580=\"\",\"\",'1. Ordersheet'!AA580)","v":""},null,{"$f":"IF('1. Ordersheet'!AS580=\"\",\"\",'1. Ordersheet'!AS580)","v":""},{"$f":"IF('1. Ordersheet'!AT580=\"\",\"\",'1. Ordersheet'!AT580)","v":""},null,null,null,null,null,null,null,{"$f":"IF('1. Ordersheet'!AX580=\"\",\"\",'1. Ordersheet'!AX580)","v":""},{"$f":"IF('1. Ordersheet'!AY580=\"\",\"\",'1. Ordersheet'!AY580)","v":""},{"$f":"IF('1. Ordersheet'!AZ580=\"\",\"\",'1. Ordersheet'!AZ580)","v":""},{"$f":"IF('1. Ordersheet'!BA580=\"\",\"\",'1. Ordersheet'!BA580)","v":""},{"$f":"IF('1. Ordersheet'!BC580=\"\",\"\",'1. Ordersheet'!BC580)","v":""},{"$f":"IF('1. Ordersheet'!BD580=\"\",\"\",'1. Ordersheet'!BD580)","v":""},{"$f":"IF('1. Ordersheet'!BE580=\"\",\"\",'1. Ordersheet'!BE580)","v":""},{"$f":"IF('1. Ordersheet'!BF580=\"\",\"\",'1. Ordersheet'!BF580)","v":""},{"$f":"IF('1. Ordersheet'!BG580=\"\",\"\",'1. Ordersheet'!BG580)","v":"ZWO"},{"$f":"IF('1. Ordersheet'!BH580=\"\",\"\",'1. Ordersheet'!BH580)","v":""},{"$f":"IF('1. Ordersheet'!BI580=\"\",\"\",'1. Ordersheet'!BI580)","v":""},{"$f":"IF('1. Ordersheet'!BJ580=\"\",\"\",'1. Ordersheet'!BJ580)","v":""},{"$f":"IF('1. Ordersheet'!BK580=\"\",\"\",'1. Ordersheet'!BK580)","v":""},{"$f":"IF('1. Ordersheet'!BL580=\"\",\"\",'1. Ordersheet'!BL580)","v":""}]
[{"$f":"IF('1. Ordersheet'!F581=\"\",\"\",'1. Ordersheet'!F581)","v":""},{"$f":"IF('1. Ordersheet'!G581=\"\",\"\",'1. Ordersheet'!G581)","v":""},{"$f":"IF('1. Ordersheet'!H581=\"\",\"\",'1. Ordersheet'!H581)","v":""},{"$f":"IF('1. Ordersheet'!I581=\"\",\"\",'1. Ordersheet'!I581)","v":""},{"$f":"IF('1. Ordersheet'!J581=\"\",\"\",'1. Ordersheet'!J581)","v":""},{"$f":"IF('1. Ordersheet'!K581=\"\",\"\",'1. Ordersheet'!K581)","v":""},{"$f":"IF('1. Ordersheet'!L581=\"\",\"\",'1. Ordersheet'!L581)","v":""},{"$f":"IF('1. Ordersheet'!M581=\"\",\"\",'1. Ordersheet'!M581)","v":""},{"$f":"IF('1. Ordersheet'!N581=\"\",\"\",'1. Ordersheet'!N581)","v":""},{"$f":"IF('1. Ordersheet'!O581=\"\",\"\",'1. Ordersheet'!O581)","v":{"$error":"#N/A"}},{"$f":"IF('1. Ordersheet'!P581=\"\",\"\",'1. Ordersheet'!P581)","v":{"$error":"#N/A"}},{"$f":"IF('1. Ordersheet'!Q581=\"\",\"\",'1. Ordersheet'!Q581)","v":""},{"$f":"IF('1. Ordersheet'!R581=\"\",\"\",'1. Ordersheet'!R581)","v":""},{"$f":"IF('1. Ordersheet'!S581=\"\",\"\",'1. Ordersheet'!S581)","v":""},{"$f":"IF('1. Ordersheet'!V581=\"\",\"\",'1. Ordersheet'!V581)","v":""},{"$f":"IF('1. Ordersheet'!W581=\"\",\"\",'1. Ordersheet'!W581)","v":""},{"$f":"IF('1. Ordersheet'!X581=\"\",\"\",'1. Ordersheet'!X581)","v":""},{"$f":"IF('1. Ordersheet'!Y581=\"\",\"\",'1. Ordersheet'!Y581)","v":""},{"$f":"IF('1. Ordersheet'!Z581=\"\",\"\",'1. Ordersheet'!Z581)","v":""},{"$f":"IF('1. Ordersheet'!AA581=\"\",\"\",'1. Ordersheet'!AA581)","v":""},null,{"$f":"IF('1. Ordersheet'!AS581=\"\",\"\",'1. Ordersheet'!AS581)","v":""},{"$f":"IF('1. Ordersheet'!AT581=\"\",\"\",'1. Ordersheet'!AT581)","v":""},null,null,null,null,null,null,null,{"$f":"IF('1. Ordersheet'!AX581=\"\",\"\",'1. Ordersheet'!AX581)","v":""},{"$f":"IF('1. Ordersheet'!AY581=\"\",\"\",'1. Ordersheet'!AY581)","v":""},{"$f":"IF('1. Ordersheet'!AZ581=\"\",\"\",'1. Ordersheet'!AZ581)","v":""},{"$f":"IF('1. Ordersheet'!BA581=\"\",\"\",'1. Ordersheet'!BA581)","v":""},{"$f":"IF('1. Ordersheet'!BC581=\"\",\"\",'1. Ordersheet'!BC581)","v":""},{"$f":"IF('1. Ordersheet'!BD581=\"\",\"\",'1. Ordersheet'!BD581)","v":""},{"$f":"IF('1. Ordersheet'!BE581=\"\",\"\",'1. Ordersheet'!BE581)","v":""},{"$f":"IF('1. Ordersheet'!BF581=\"\",\"\",'1. Ordersheet'!BF581)","v":""},{"$f":"IF('1. Ordersheet'!BG581=\"\",\"\",'1. Ordersheet'!BG581)","v":"ZWO"},{"$f":"IF('1. Ordersheet'!BH581=\"\",\"\",'1. Ordersheet'!BH581)","v":""},{"$f":"IF('1. Ordersheet'!BI581=\"\",\"\",'1. Ordersheet'!BI581)","v":""},{"$f":"IF('1. Ordersheet'!BJ581=\"\",\"\",'1. Ordersheet'!BJ581)","v":""},{"$f":"IF('1. Ordersheet'!BK581=\"\",\"\",'1. Ordersheet'!BK581)","v":""},{"$f":"IF('1. Ordersheet'!BL581=\"\",\"\",'1. Ordersheet'!BL581)","v":""}]
[{"$f":"IF('1. Ordersheet'!F582=\"\",\"\",'1. Ordersheet'!F582)","v":""},{"$f":"IF('1. Ordersheet'!G582=\"\",\"\",'1. Ordersheet'!G582)","v":""},{"$f":"IF('1. Ordersheet'!H582=\"\",\"\",'1. Ordersheet'!H582)","v":""},{"$f":"IF('1. Ordersheet'!I582=\"\",\"\",'1. Ordersheet'!I582)","v":""},{"$f":"IF('1. Ordersheet'!J582=\"\",\"\",'1. Ordersheet'!J582)","v":""},{"$f":"IF('1. Ordersheet'!K582=\"\",\"\",'1. Ordersheet'!K582)","v":""},{"$f":"IF('1. Ordersheet'!L582=\"\",\"\",'1. Ordersheet'!L582)","v":""},{"$f":"IF('1. Ordersheet'!M582=\"\",\"\",'1. Ordersheet'!M582)","v":""},{"$f":"IF('1. Ordersheet'!N582=\"\",\"\",'1. Ordersheet'!N582)","v":""},{"$f":"IF('1. Ordersheet'!O582=\"\",\"\",'1. Ordersheet'!O582)","v":{"$error":"#N/A"}},{"$f":"IF('1. Ordersheet'!P582=\"\",\"\",'1. Ordersheet'!P582)","v":{"$error":"#N/A"}},{"$f":"IF('1. Ordersheet'!Q582=\"\",\"\",'1. Ordersheet'!Q582)","v":""},{"$f":"IF('1. Ordersheet'!R582=\"\",\"\",'1. Ordersheet'!R582)","v":""},{"$f":"IF('1. Ordersheet'!S582=\"\",\"\",'1. Ordersheet'!S582)","v":""},{"$f":"IF('1. Ordersheet'!V582=\"\",\"\",'1. Ordersheet'!V582)","v":""},{"$f":"IF('1. Ordersheet'!W582=\"\",\"\",'1. Ordersheet'!W582)","v":""},{"$f":"IF('1. Ordersheet'!X582=\"\",\"\",'1. Ordersheet'!X582)","v":""},{"$f":"IF('1. Ordersheet'!Y582=\"\",\"\",'1. Ordersheet'!Y582)","v":""},{"$f":"IF('1. Ordersheet'!Z582=\"\",\"\",'1. Ordersheet'!Z582)","v":""},{"$f":"IF('1. Ordersheet'!AA582=\"\",\"\",'1. Ordersheet'!AA582)","v":""},null,{"$f":"IF('1. Ordersheet'!AS582=\"\",\"\",'1. Ordersheet'!AS582)","v":""},{"$f":"IF('1. Ordersheet'!AT582=\"\",\"\",'1. Ordersheet'!AT582)","v":""},null,null,null,null,null,null,null,{"$f":"IF('1. Ordersheet'!AX582=\"\",\"\",'1. Ordersheet'!AX582)","v":""},{"$f":"IF('1. Ordersheet'!AY582=\"\",\"\",'1. Ordersheet'!AY582)","v":""},{"$f":"IF('1. Ordersheet'!AZ582=\"\",\"\",'1. Ordersheet'!AZ582)","v":""},{"$f":"IF('1. Ordersheet'!BA582=\"\",\"\",'1. Ordersheet'!BA582)","v":""},{"$f":"IF('1. Ordersheet'!BC582=\"\",\"\",'1. Ordersheet'!BC582)","v":""},{"$f":"IF('1. Ordersheet'!BD582=\"\",\"\",'1. Ordersheet'!BD582)","v":""},{"$f":"IF('1. Ordersheet'!BE582=\"\",\"\",'1. Ordersheet'!BE582)","v":""},{"$f":"IF('1. Ordersheet'!BF582=\"\",\"\",'1. Ordersheet'!BF582)","v":""},{"$f":"IF('1. Ordersheet'!BG582=\"\",\"\",'1. Ordersheet'!BG582)","v":"ZWO"},{"$f":"IF('1. Ordersheet'!BH582=\"\",\"\",'1. Ordersheet'!BH582)","v":""},{"$f":"IF('1. Ordersheet'!BI582=\"\",\"\",'1. Ordersheet'!BI582)","v":""},{"$f":"IF('1. Ordersheet'!BJ582=\"\",\"\",'1. Ordersheet'!BJ582)","v":""},{"$f":"IF('1. Ordersheet'!BK582=\"\",\"\",'1. Ordersheet'!BK582)","v":""},{"$f":"IF('1. Ordersheet'!BL582=\"\",\"\",'1. Ordersheet'!BL582)","v":""}]
[{"$f":"IF('1. Ordersheet'!F583=\"\",\"\",'1. Ordersheet'!F583)","v":""},{"$f":"IF('1. Ordersheet'!G583=\"\",\"\",'1. Ordersheet'!G583)","v":""},{"$f":"IF('1. Ordersheet'!H583=\"\",\"\",'1. Ordersheet'!H583)","v":""},{"$f":"IF('1. Ordersheet'!I583=\"\",\"\",'1. Ordersheet'!I583)","v":""},{"$f":"IF('1. Ordersheet'!J583=\"\",\"\",'1. Ordersheet'!J583)","v":""},{"$f":"IF('1. Ordersheet'!K583=\"\",\"\",'1. Ordersheet'!K583)","v":""},{"$f":"IF('1. Ordersheet'!L583=\"\",\"\",'1. Ordersheet'!L583)","v":""},{"$f":"IF('1. Ordersheet'!M583=\"\",\"\",'1. Ordersheet'!M583)","v":""},{"$f":"IF('1. Ordersheet'!N583=\"\",\"\",'1. Ordersheet'!N583)","v":""},{"$f":"IF('1. Ordersheet'!O583=\"\",\"\",'1. Ordersheet'!O583)","v":{"$error":"#N/A"}},{"$f":"IF('1. Ordersheet'!P583=\"\",\"\",'1. Ordersheet'!P583)","v":{"$error":"#N/A"}},{"$f":"IF('1. Ordersheet'!Q583=\"\",\"\",'1. Ordersheet'!Q583)","v":""},{"$f":"IF('1. Ordersheet'!R583=\"\",\"\",'1. Ordersheet'!R583)","v":""},{"$f":"IF('1. Ordersheet'!S583=\"\",\"\",'1. Ordersheet'!S583)","v":""},{"$f":"IF('1. Ordersheet'!V583=\"\",\"\",'1. Ordersheet'!V583)","v":""},{"$f":"IF('1. Ordersheet'!W583=\"\",\"\",'1. Ordersheet'!W583)","v":""},{"$f":"IF('1. Ordersheet'!X583=\"\",\"\",'1. Ordersheet'!X583)","v":""},{"$f":"IF('1. Ordersheet'!Y583=\"\",\"\",'1. Ordersheet'!Y583)","v":""},{"$f":"IF('1. Ordersheet'!Z583=\"\",\"\",'1. Ordersheet'!Z583)","v":""},{"$f":"IF('1. Ordersheet'!AA583=\"\",\"\",'1. Ordersheet'!AA583)","v":""},null,{"$f":"IF('1. Ordersheet'!AS583=\"\",\"\",'1. Ordersheet'!AS583)","v":""},{"$f":"IF('1. Ordersheet'!AT583=\"\",\"\",'1. Ordersheet'!AT583)","v":""},null,null,null,null,null,null,null,{"$f":"IF('1. Ordersheet'!AX583=\"\",\"\",'1. Ordersheet'!AX583)","v":""},{"$f":"IF('1. Ordersheet'!AY583=\"\",\"\",'1. Ordersheet'!AY583)","v":""},{"$f":"IF('1. Ordersheet'!AZ583=\"\",\"\",'1. Ordersheet'!AZ583)","v":""},{"$f":"IF('1. Ordersheet'!BA583=\"\",\"\",'1. Ordersheet'!BA583)","v":""},{"$f":"IF('1. Ordersheet'!BC583=\"\",\"\",'1. Ordersheet'!BC583)","v":""},{"$f":"IF('1. Ordersheet'!BD583=\"\",\"\",'1. Ordersheet'!BD583)","v":""},{"$f":"IF('1. Ordersheet'!BE583=\"\",\"\",'1. Ordersheet'!BE583)","v":""},{"$f":"IF('1. Ordersheet'!BF583=\"\",\"\",'1. Ordersheet'!BF583)","v":""},{"$f":"IF('1. Ordersheet'!BG583=\"\",\"\",'1. Ordersheet'!BG583)","v":"ZWO"},{"$f":"IF('1. Ordersheet'!BH583=\"\",\"\",'1. Ordersheet'!BH583)","v":""},{"$f":"IF('1. Ordersheet'!BI583=\"\",\"\",'1. Ordersheet'!BI583)","v":""},{"$f":"IF('1. Ordersheet'!BJ583=\"\",\"\",'1. Ordersheet'!BJ583)","v":""},{"$f":"IF('1. Ordersheet'!BK583=\"\",\"\",'1. Ordersheet'!BK583)","v":""},{"$f":"IF('1. Ordersheet'!BL583=\"\",\"\",'1. Ordersheet'!BL583)","v":""}]
[{"$f":"IF('1. Ordersheet'!F584=\"\",\"\",'1. Ordersheet'!F584)","v":""},{"$f":"IF('1. Ordersheet'!G584=\"\",\"\",'1. Ordersheet'!G584)","v":""},{"$f":"IF('1. Ordersheet'!H584=\"\",\"\",'1. Ordersheet'!H584)","v":""},{"$f":"IF('1. Ordersheet'!I584=\"\",\"\",'1. Ordersheet'!I584)","v":""},{"$f":"IF('1. Ordersheet'!J584=\"\",\"\",'1. Ordersheet'!J584)","v":""},{"$f":"IF('1. Ordersheet'!K584=\"\",\"\",'1. Ordersheet'!K584)","v":""},{"$f":"IF('1. Ordersheet'!L584=\"\",\"\",'1. Ordersheet'!L584)","v":""},{"$f":"IF('1. Ordersheet'!M584=\"\",\"\",'1. Ordersheet'!M584)","v":""},{"$f":"IF('1. Ordersheet'!N584=\"\",\"\",'1. Ordersheet'!N584)","v":""},{"$f":"IF('1. Ordersheet'!O584=\"\",\"\",'1. Ordersheet'!O584)","v":{"$error":"#N/A"}},{"$f":"IF('1. Ordersheet'!P584=\"\",\"\",'1. Ordersheet'!P584)","v":{"$error":"#N/A"}},{"$f":"IF('1. Ordersheet'!Q584=\"\",\"\",'1. Ordersheet'!Q584)","v":""},{"$f":"IF('1. Ordersheet'!R584=\"\",\"\",'1. Ordersheet'!R584)","v":""},{"$f":"IF('1. Ordersheet'!S584=\"\",\"\",'1. Ordersheet'!S584)","v":""},{"$f":"IF('1. Ordersheet'!V584=\"\",\"\",'1. Ordersheet'!V584)","v":""},{"$f":"IF('1. Ordersheet'!W584=\"\",\"\",'1. Ordersheet'!W584)","v":""},{"$f":"IF('1. Ordersheet'!X584=\"\",\"\",'1. Ordersheet'!X584)","v":""},{"$f":"IF('1. Ordersheet'!Y584=\"\",\"\",'1. Ordersheet'!Y584)","v":""},{"$f":"IF('1. Ordersheet'!Z584=\"\",\"\",'1. Ordersheet'!Z584)","v":""},{"$f":"IF('1. Ordersheet'!AA584=\"\",\"\",'1. Ordersheet'!AA584)","v":""},null,{"$f":"IF('1. Ordersheet'!AS584=\"\",\"\",'1. Ordersheet'!AS584)","v":""},{"$f":"IF('1. Ordersheet'!AT584=\"\",\"\",'1. Ordersheet'!AT584)","v":""},null,null,null,null,null,null,null,{"$f":"IF('1. Ordersheet'!AX584=\"\",\"\",'1. Ordersheet'!AX584)","v":""},{"$f":"IF('1. Ordersheet'!AY584=\"\",\"\",'1. Ordersheet'!AY584)","v":""},{"$f":"IF('1. Ordersheet'!AZ584=\"\",\"\",'1. Ordersheet'!AZ584)","v":""},{"$f":"IF('1. Ordersheet'!BA584=\"\",\"\",'1. Ordersheet'!BA584)","v":""},{"$f":"IF('1. Ordersheet'!BC584=\"\",\"\",'1. Ordersheet'!BC584)","v":""},{"$f":"IF('1. Ordersheet'!BD584=\"\",\"\",'1. Ordersheet'!BD584)","v":""},{"$f":"IF('1. Ordersheet'!BE584=\"\",\"\",'1. Ordersheet'!BE584)","v":""},{"$f":"IF('1. Ordersheet'!BF584=\"\",\"\",'1. Ordersheet'!BF584)","v":""},{"$f":"IF('1. Ordersheet'!BG584=\"\",\"\",'1. Ordersheet'!BG584)","v":"ZWO"},{"$f":"IF('1. Ordersheet'!BH584=\"\",\"\",'1. Ordersheet'!BH584)","v":""},{"$f":"IF('1. Ordersheet'!BI584=\"\",\"\",'1. Ordersheet'!BI584)","v":""},{"$f":"IF('1. Ordersheet'!BJ584=\"\",\"\",'1. Ordersheet'!BJ584)","v":""},{"$f":"IF('1. Ordersheet'!BK584=\"\",\"\",'1. Ordersheet'!BK584)","v":""},{"$f":"IF('1. Ordersheet'!BL584=\"\",\"\",'1. Ordersheet'!BL584)","v":""}]
[{"$f":"IF('1. Ordersheet'!F585=\"\",\"\",'1. Ordersheet'!F585)","v":""},{"$f":"IF('1. Ordersheet'!G585=\"\",\"\",'1. Ordersheet'!G585)","v":""},{"$f":"IF('1. Ordersheet'!H585=\"\",\"\",'1. Ordersheet'!H585)","v":""},{"$f":"IF('1. Ordersheet'!I585=\"\",\"\",'1. Ordersheet'!I585)","v":""},{"$f":"IF('1. Ordersheet'!J585=\"\",\"\",'1. Ordersheet'!J585)","v":""},{"$f":"IF('1. Ordersheet'!K585=\"\",\"\",'1. Ordersheet'!K585)","v":""},{"$f":"IF('1. Ordersheet'!L585=\"\",\"\",'1. Ordersheet'!L585)","v":""},{"$f":"IF('1. Ordersheet'!M585=\"\",\"\",'1. Ordersheet'!M585)","v":""},{"$f":"IF('1. Ordersheet'!N585=\"\",\"\",'1. Ordersheet'!N585)","v":""},{"$f":"IF('1. Ordersheet'!O585=\"\",\"\",'1. Ordersheet'!O585)","v":{"$error":"#N/A"}},{"$f":"IF('1. Ordersheet'!P585=\"\",\"\",'1. Ordersheet'!P585)","v":{"$error":"#N/A"}},{"$f":"IF('1. Ordersheet'!Q585=\"\",\"\",'1. Ordersheet'!Q585)","v":""},{"$f":"IF('1. Ordersheet'!R585=\"\",\"\",'1. Ordersheet'!R585)","v":""},{"$f":"IF('1. Ordersheet'!S585=\"\",\"\",'1. Ordersheet'!S585)","v":""},{"$f":"IF('1. Ordersheet'!V585=\"\",\"\",'1. Ordersheet'!V585)","v":""},{"$f":"IF('1. Ordersheet'!W585=\"\",\"\",'1. Ordersheet'!W585)","v":""},{"$f":"IF('1. Ordersheet'!X585=\"\",\"\",'1. Ordersheet'!X585)","v":""},{"$f":"IF('1. Ordersheet'!Y585=\"\",\"\",'1. Ordersheet'!Y585)","v":""},{"$f":"IF('1. Ordersheet'!Z585=\"\",\"\",'1. Ordersheet'!Z585)","v":""},{"$f":"IF('1. Ordersheet'!AA585=\"\",\"\",'1. Ordersheet'!AA585)","v":""},null,{"$f":"IF('1. Ordersheet'!AS585=\"\",\"\",'1. Ordersheet'!AS585)","v":""},{"$f":"IF('1. Ordersheet'!AT585=\"\",\"\",'1. Ordersheet'!AT585)","v":""},null,null,null,null,null,null,null,{"$f":"IF('1. Ordersheet'!AX585=\"\",\"\",'1. Ordersheet'!AX585)","v":""},{"$f":"IF('1. Ordersheet'!AY585=\"\",\"\",'1. Ordersheet'!AY585)","v":""},{"$f":"IF('1. Ordersheet'!AZ585=\"\",\"\",'1. Ordersheet'!AZ585)","v":""},{"$f":"IF('1. Ordersheet'!BA585=\"\",\"\",'1. Ordersheet'!BA585)","v":""},{"$f":"IF('1. Ordersheet'!BC585=\"\",\"\",'1. Ordersheet'!BC585)","v":""},{"$f":"IF('1. Ordersheet'!BD585=\"\",\"\",'1. Ordersheet'!BD585)","v":""},{"$f":"IF('1. Ordersheet'!BE585=\"\",\"\",'1. Ordersheet'!BE585)","v":""},{"$f":"IF('1. Ordersheet'!BF585=\"\",\"\",'1. Ordersheet'!BF585)","v":""},{"$f":"IF('1. Ordersheet'!BG585=\"\",\"\",'1. Ordersheet'!BG585)","v":"ZWO"},{"$f":"IF('1. Ordersheet'!BH585=\"\",\"\",'1. Ordersheet'!BH585)","v":""},{"$f":"IF('1. Ordersheet'!BI585=\"\",\"\",'1. Ordersheet'!BI585)","v":""},{"$f":"IF('1. Ordersheet'!BJ585=\"\",\"\",'1. Ordersheet'!BJ585)","v":""},{"$f":"IF('1. Ordersheet'!BK585=\"\",\"\",'1. Ordersheet'!BK585)","v":""},{"$f":"IF('1. Ordersheet'!BL585=\"\",\"\",'1. Ordersheet'!BL585)","v":""}]
[{"$f":"IF('1. Ordersheet'!F586=\"\",\"\",'1. Ordersheet'!F586)","v":""},{"$f":"IF('1. Ordersheet'!G586=\"\",\"\",'1. Ordersheet'!G586)","v":""},{"$f":"IF('1. Ordersheet'!H586=\"\",\"\",'1. Ordersheet'!H586)","v":""},{"$f":"IF('1. Ordersheet'!I586=\"\",\"\",'1. Ordersheet'!I586)","v":""},{"$f":"IF('1. Ordersheet'!J586=\"\",\"\",'1. Ordersheet'!J586)","v":""},{"$f":"IF('1. Ordersheet'!K586=\"\",\"\",'1. Ordersheet'!K586)","v":""},{"$f":"IF('1. Ordersheet'!L586=\"\",\"\",'1. Ordersheet'!L586)","v":""},{"$f":"IF('1. Ordersheet'!M586=\"\",\"\",'1. Ordersheet'!M586)","v":""},{"$f":"IF('1. Ordersheet'!N586=\"\",\"\",'1. Ordersheet'!N586)","v":""},{"$f":"IF('1. Ordersheet'!O586=\"\",\"\",'1. Ordersheet'!O586)","v":{"$error":"#N/A"}},{"$f":"IF('1. Ordersheet'!P586=\"\",\"\",'1. Ordersheet'!P586)","v":{"$error":"#N/A"}},{"$f":"IF('1. Ordersheet'!Q586=\"\",\"\",'1. Ordersheet'!Q586)","v":""},{"$f":"IF('1. Ordersheet'!R586=\"\",\"\",'1. Ordersheet'!R586)","v":""},{"$f":"IF('1. Ordersheet'!S586=\"\",\"\",'1. Ordersheet'!S586)","v":""},{"$f":"IF('1. Ordersheet'!V586=\"\",\"\",'1. Ordersheet'!V586)","v":""},{"$f":"IF('1. Ordersheet'!W586=\"\",\"\",'1. Ordersheet'!W586)","v":""},{"$f":"IF('1. Ordersheet'!X586=\"\",\"\",'1. Ordersheet'!X586)","v":""},{"$f":"IF('1. Ordersheet'!Y586=\"\",\"\",'1. Ordersheet'!Y586)","v":""},{"$f":"IF('1. Ordersheet'!Z586=\"\",\"\",'1. Ordersheet'!Z586)","v":""},{"$f":"IF('1. Ordersheet'!AA586=\"\",\"\",'1. Ordersheet'!AA586)","v":""},null,{"$f":"IF('1. Ordersheet'!AS586=\"\",\"\",'1. Ordersheet'!AS586)","v":""},{"$f":"IF('1. Ordersheet'!AT586=\"\",\"\",'1. Ordersheet'!AT586)","v":""},null,null,null,null,null,null,null,{"$f":"IF('1. Ordersheet'!AX586=\"\",\"\",'1. Ordersheet'!AX586)","v":""},{"$f":"IF('1. Ordersheet'!AY586=\"\",\"\",'1. Ordersheet'!AY586)","v":""},{"$f":"IF('1. Ordersheet'!AZ586=\"\",\"\",'1. Ordersheet'!AZ586)","v":""},{"$f":"IF('1. Ordersheet'!BA586=\"\",\"\",'1. Ordersheet'!BA586)","v":""},{"$f":"IF('1. Ordersheet'!BC586=\"\",\"\",'1. Ordersheet'!BC586)","v":""},{"$f":"IF('1. Ordersheet'!BD586=\"\",\"\",'1. Ordersheet'!BD586)","v":""},{"$f":"IF('1. Ordersheet'!BE586=\"\",\"\",'1. Ordersheet'!BE586)","v":""},{"$f":"IF('1. Ordersheet'!BF586=\"\",\"\",'1. Ordersheet'!BF586)","v":""},{"$f":"IF('1. Ordersheet'!BG586=\"\",\"\",'1. Ordersheet'!BG586)","v":"ZWO"},{"$f":"IF('1. Ordersheet'!BH586=\"\",\"\",'1. Ordersheet'!BH586)","v":""},{"$f":"IF('1. Ordersheet'!BI586=\"\",\"\",'1. Ordersheet'!BI586)","v":""},{"$f":"IF('1. Ordersheet'!BJ586=\"\",\"\",'1. Ordersheet'!BJ586)","v":""},{"$f":"IF('1. Ordersheet'!BK586=\"\",\"\",'1. Ordersheet'!BK586)","v":""},{"$f":"IF('1. Ordersheet'!BL586=\"\",\"\",'1. Ordersheet'!BL586)","v":""}]
[{"$f":"IF('1. Ordersheet'!F587=\"\",\"\",'1. Ordersheet'!F587)","v":""},{"$f":"IF('1. Ordersheet'!G587=\"\",\"\",'1. Ordersheet'!G587)","v":""},{"$f":"IF('1. Ordersheet'!H587=\"\",\"\",'1. Ordersheet'!H587)","v":""},{"$f":"IF('1. Ordersheet'!I587=\"\",\"\",'1. Ordersheet'!I587)","v":""},{"$f":"IF('1. Ordersheet'!J587=\"\",\"\",'1. Ordersheet'!J587)","v":""},{"$f":"IF('1. Ordersheet'!K587=\"\",\"\",'1. Ordersheet'!K587)","v":""},{"$f":"IF('1. Ordersheet'!L587=\"\",\"\",'1. Ordersheet'!L587)","v":""},{"$f":"IF('1. Ordersheet'!M587=\"\",\"\",'1. Ordersheet'!M587)","v":""},{"$f":"IF('1. Ordersheet'!N587=\"\",\"\",'1. Ordersheet'!N587)","v":""},{"$f":"IF('1. Ordersheet'!O587=\"\",\"\",'1. Ordersheet'!O587)","v":{"$error":"#N/A"}},{"$f":"IF('1. Ordersheet'!P587=\"\",\"\",'1. Ordersheet'!P587)","v":{"$error":"#N/A"}},{"$f":"IF('1. Ordersheet'!Q587=\"\",\"\",'1. Ordersheet'!Q587)","v":""},{"$f":"IF('1. Ordersheet'!R587=\"\",\"\",'1. Ordersheet'!R587)","v":""},{"$f":"IF('1. Ordersheet'!S587=\"\",\"\",'1. Ordersheet'!S587)","v":""},{"$f":"IF('1. Ordersheet'!V587=\"\",\"\",'1. Ordersheet'!V587)","v":""},{"$f":"IF('1. Ordersheet'!W587=\"\",\"\",'1. Ordersheet'!W587)","v":""},{"$f":"IF('1. Ordersheet'!X587=\"\",\"\",'1. Ordersheet'!X587)","v":""},{"$f":"IF('1. Ordersheet'!Y587=\"\",\"\",'1. Ordersheet'!Y587)","v":""},{"$f":"IF('1. Ordersheet'!Z587=\"\",\"\",'1. Ordersheet'!Z587)","v":""},{"$f":"IF('1. Ordersheet'!AA587=\"\",\"\",'1. Ordersheet'!AA587)","v":""},null,{"$f":"IF('1. Ordersheet'!AS587=\"\",\"\",'1. Ordersheet'!AS587)","v":""},{"$f":"IF('1. Ordersheet'!AT587=\"\",\"\",'1. Ordersheet'!AT587)","v":""},null,null,null,null,null,null,null,{"$f":"IF('1. Ordersheet'!AX587=\"\",\"\",'1. Ordersheet'!AX587)","v":""},{"$f":"IF('1. Ordersheet'!AY587=\"\",\"\",'1. Ordersheet'!AY587)","v":""},{"$f":"IF('1. Ordersheet'!AZ587=\"\",\"\",'1. Ordersheet'!AZ587)","v":""},{"$f":"IF('1. Ordersheet'!BA587=\"\",\"\",'1. Ordersheet'!BA587)","v":""},{"$f":"IF('1. Ordersheet'!BC587=\"\",\"\",'1. Ordersheet'!BC587)","v":""},{"$f":"IF('1. Ordersheet'!BD587=\"\",\"\",'1. Ordersheet'!BD587)","v":""},{"$f":"IF('1. Ordersheet'!BE587=\"\",\"\",'1. Ordersheet'!BE587)","v":""},{"$f":"IF('1. Ordersheet'!BF587=\"\",\"\",'1. Ordersheet'!BF587)","v":""},{"$f":"IF('1. Ordersheet'!BG587=\"\",\"\",'1. Ordersheet'!BG587)","v":"ZWO"},{"$f":"IF('1. Ordersheet'!BH587=\"\",\"\",'1. Ordersheet'!BH587)","v":""},{"$f":"IF('1. Ordersheet'!BI587=\"\",\"\",'1. Ordersheet'!BI587)","v":""},{"$f":"IF('1. Ordersheet'!BJ587=\"\",\"\",'1. Ordersheet'!BJ587)","v":""},{"$f":"IF('1. Ordersheet'!BK587=\"\",\"\",'1. Ordersheet'!BK587)","v":""},{"$f":"IF('1. Ordersheet'!BL587=\"\",\"\",'1. Ordersheet'!BL587)","v":""}]
[{"$f":"IF('1. Ordersheet'!F588=\"\",\"\",'1. Ordersheet'!F588)","v":""},{"$f":"IF('1. Ordersheet'!G588=\"\",\"\",'1. Ordersheet'!G588)","v":""},{"$f":"IF('1. Ordersheet'!H588=\"\",\"\",'1. Ordersheet'!H588)","v":""},{"$f":"IF('1. Ordersheet'!I588=\"\",\"\",'1. Ordersheet'!I588)","v":""},{"$f":"IF('1. Ordersheet'!J588=\"\",\"\",'1. Ordersheet'!J588)","v":""},{"$f":"IF('1. Ordersheet'!K588=\"\",\"\",'1. Ordersheet'!K588)","v":""},{"$f":"IF('1. Ordersheet'!L588=\"\",\"\",'1. Ordersheet'!L588)","v":""},{"$f":"IF('1. Ordersheet'!M588=\"\",\"\",'1. Ordersheet'!M588)","v":""},{"$f":"IF('1. Ordersheet'!N588=\"\",\"\",'1. Ordersheet'!N588)","v":""},{"$f":"IF('1. Ordersheet'!O588=\"\",\"\",'1. Ordersheet'!O588)","v":{"$error":"#N/A"}},{"$f":"IF('1. Ordersheet'!P588=\"\",\"\",'1. Ordersheet'!P588)","v":{"$error":"#N/A"}},{"$f":"IF('1. Ordersheet'!Q588=\"\",\"\",'1. Ordersheet'!Q588)","v":""},{"$f":"IF('1. Ordersheet'!R588=\"\",\"\",'1. Ordersheet'!R588)","v":""},{"$f":"IF('1. Ordersheet'!S588=\"\",\"\",'1. Ordersheet'!S588)","v":""},{"$f":"IF('1. Ordersheet'!V588=\"\",\"\",'1. Ordersheet'!V588)","v":""},{"$f":"IF('1. Ordersheet'!W588=\"\",\"\",'1. Ordersheet'!W588)","v":""},{"$f":"IF('1. Ordersheet'!X588=\"\",\"\",'1. Ordersheet'!X588)","v":""},{"$f":"IF('1. Ordersheet'!Y588=\"\",\"\",'1. Ordersheet'!Y588)","v":""},{"$f":"IF('1. Ordersheet'!Z588=\"\",\"\",'1. Ordersheet'!Z588)","v":""},{"$f":"IF('1. Ordersheet'!AA588=\"\",\"\",'1. Ordersheet'!AA588)","v":""},null,{"$f":"IF('1. Ordersheet'!AS588=\"\",\"\",'1. Ordersheet'!AS588)","v":""},{"$f":"IF('1. Ordersheet'!AT588=\"\",\"\",'1. Ordersheet'!AT588)","v":""},null,null,null,null,null,null,null,{"$f":"IF('1. Ordersheet'!AX588=\"\",\"\",'1. Ordersheet'!AX588)","v":""},{"$f":"IF('1. Ordersheet'!AY588=\"\",\"\",'1. Ordersheet'!AY588)","v":""},{"$f":"IF('1. Ordersheet'!AZ588=\"\",\"\",'1. Ordersheet'!AZ588)","v":""},{"$f":"IF('1. Ordersheet'!BA588=\"\",\"\",'1. Ordersheet'!BA588)","v":""},{"$f":"IF('1. Ordersheet'!BC588=\"\",\"\",'1. Ordersheet'!BC588)","v":""},{"$f":"IF('1. Ordersheet'!BD588=\"\",\"\",'1. Ordersheet'!BD588)","v":""},{"$f":"IF('1. Ordersheet'!BE588=\"\",\"\",'1. Ordersheet'!BE588)","v":""},{"$f":"IF('1. Ordersheet'!BF588=\"\",\"\",'1. Ordersheet'!BF588)","v":""},{"$f":"IF('1. Ordersheet'!BG588=\"\",\"\",'1. Ordersheet'!BG588)","v":"ZWO"},{"$f":"IF('1. Ordersheet'!BH588=\"\",\"\",'1. Ordersheet'!BH588)","v":""},{"$f":"IF('1. Ordersheet'!BI588=\"\",\"\",'1. Ordersheet'!BI588)","v":""},{"$f":"IF('1. Ordersheet'!BJ588=\"\",\"\",'1. Ordersheet'!BJ588)","v":""},{"$f":"IF('1. Ordersheet'!BK588=\"\",\"\",'1. Ordersheet'!BK588)","v":""},{"$f":"IF('1. Ordersheet'!BL588=\"\",\"\",'1. Ordersheet'!BL588)","v":""}]
[{"$f":"IF('1. Ordersheet'!F589=\"\",\"\",'1. Ordersheet'!F589)","v":""},{"$f":"IF('1. Ordersheet'!G589=\"\",\"\",'1. Ordersheet'!G589)","v":""},{"$f":"IF('1. Ordersheet'!H589=\"\",\"\",'1. Ordersheet'!H589)","v":""},{"$f":"IF('1. Ordersheet'!I589=\"\",\"\",'1. Ordersheet'!I589)","v":""},{"$f":"IF('1. Ordersheet'!J589=\"\",\"\",'1. Ordersheet'!J589)","v":""},{"$f":"IF('1. Ordersheet'!K589=\"\",\"\",'1. Ordersheet'!K589)","v":""},{"$f":"IF('1. Ordersheet'!L589=\"\",\"\",'1. Ordersheet'!L589)","v":""},{"$f":"IF('1. Ordersheet'!M589=\"\",\"\",'1. Ordersheet'!M589)","v":""},{"$f":"IF('1. Ordersheet'!N589=\"\",\"\",'1. Ordersheet'!N589)","v":""},{"$f":"IF('1. Ordersheet'!O589=\"\",\"\",'1. Ordersheet'!O589)","v":{"$error":"#N/A"}},{"$f":"IF('1. Ordersheet'!P589=\"\",\"\",'1. Ordersheet'!P589)","v":{"$error":"#N/A"}},{"$f":"IF('1. Ordersheet'!Q589=\"\",\"\",'1. Ordersheet'!Q589)","v":""},{"$f":"IF('1. Ordersheet'!R589=\"\",\"\",'1. Ordersheet'!R589)","v":""},{"$f":"IF('1. Ordersheet'!S589=\"\",\"\",'1. Ordersheet'!S589)","v":""},{"$f":"IF('1. Ordersheet'!V589=\"\",\"\",'1. Ordersheet'!V589)","v":""},{"$f":"IF('1. Ordersheet'!W589=\"\",\"\",'1. Ordersheet'!W589)","v":""},{"$f":"IF('1. Ordersheet'!X589=\"\",\"\",'1. Ordersheet'!X589)","v":""},{"$f":"IF('1. Ordersheet'!Y589=\"\",\"\",'1. Ordersheet'!Y589)","v":""},{"$f":"IF('1. Ordersheet'!Z589=\"\",\"\",'1. Ordersheet'!Z589)","v":""},{"$f":"IF('1. Ordersheet'!AA589=\"\",\"\",'1. Ordersheet'!AA589)","v":""},null,{"$f":"IF('1. Ordersheet'!AS589=\"\",\"\",'1. Ordersheet'!AS589)","v":""},{"$f":"IF('1. Ordersheet'!AT589=\"\",\"\",'1. Ordersheet'!AT589)","v":""},null,null,null,null,null,null,null,{"$f":"IF('1. Ordersheet'!AX589=\"\",\"\",'1. Ordersheet'!AX589)","v":""},{"$f":"IF('1. Ordersheet'!AY589=\"\",\"\",'1. Ordersheet'!AY589)","v":""},{"$f":"IF('1. Ordersheet'!AZ589=\"\",\"\",'1. Ordersheet'!AZ589)","v":""},{"$f":"IF('1. Ordersheet'!BA589=\"\",\"\",'1. Ordersheet'!BA589)","v":""},{"$f":"IF('1. Ordersheet'!BC589=\"\",\"\",'1. Ordersheet'!BC589)","v":""},{"$f":"IF('1. Ordersheet'!BD589=\"\",\"\",'1. Ordersheet'!BD589)","v":""},{"$f":"IF('1. Ordersheet'!BE589=\"\",\"\",'1. Ordersheet'!BE589)","v":""},{"$f":"IF('1. Ordersheet'!BF589=\"\",\"\",'1. Ordersheet'!BF589)","v":""},{"$f":"IF('1. Ordersheet'!BG589=\"\",\"\",'1. Ordersheet'!BG589)","v":"ZWO"},{"$f":"IF('1. Ordersheet'!BH589=\"\",\"\",'1. Ordersheet'!BH589)","v":""},{"$f":"IF('1. Ordersheet'!BI589=\"\",\"\",'1. Ordersheet'!BI589)","v":""},{"$f":"IF('1. Ordersheet'!BJ589=\"\",\"\",'1. Ordersheet'!BJ589)","v":""},{"$f":"IF('1. Ordersheet'!BK589=\"\",\"\",'1. Ordersheet'!BK589)","v":""},{"$f":"IF('1. Ordersheet'!BL589=\"\",\"\",'1. Ordersheet'!BL589)","v":""}]
[{"$f":"IF('1. Ordersheet'!F590=\"\",\"\",'1. Ordersheet'!F590)","v":""},{"$f":"IF('1. Ordersheet'!G590=\"\",\"\",'1. Ordersheet'!G590)","v":""},{"$f":"IF('1. Ordersheet'!H590=\"\",\"\",'1. Ordersheet'!H590)","v":""},{"$f":"IF('1. Ordersheet'!I590=\"\",\"\",'1. Ordersheet'!I590)","v":""},{"$f":"IF('1. Ordersheet'!J590=\"\",\"\",'1. Ordersheet'!J590)","v":""},{"$f":"IF('1. Ordersheet'!K590=\"\",\"\",'1. Ordersheet'!K590)","v":""},{"$f":"IF('1. Ordersheet'!L590=\"\",\"\",'1. Ordersheet'!L590)","v":""},{"$f":"IF('1. Ordersheet'!M590=\"\",\"\",'1. Ordersheet'!M590)","v":""},{"$f":"IF('1. Ordersheet'!N590=\"\",\"\",'1. Ordersheet'!N590)","v":""},{"$f":"IF('1. Ordersheet'!O590=\"\",\"\",'1. Ordersheet'!O590)","v":{"$error":"#N/A"}},{"$f":"IF('1. Ordersheet'!P590=\"\",\"\",'1. Ordersheet'!P590)","v":{"$error":"#N/A"}},{"$f":"IF('1. Ordersheet'!Q590=\"\",\"\",'1. Ordersheet'!Q590)","v":""},{"$f":"IF('1. Ordersheet'!R590=\"\",\"\",'1. Ordersheet'!R590)","v":""},{"$f":"IF('1. Ordersheet'!S590=\"\",\"\",'1. Ordersheet'!S590)","v":""},{"$f":"IF('1. Ordersheet'!V590=\"\",\"\",'1. Ordersheet'!V590)","v":""},{"$f":"IF('1. Ordersheet'!W590=\"\",\"\",'1. Ordersheet'!W590)","v":""},{"$f":"IF('1. Ordersheet'!X590=\"\",\"\",'1. Ordersheet'!X590)","v":""},{"$f":"IF('1. Ordersheet'!Y590=\"\",\"\",'1. Ordersheet'!Y590)","v":""},{"$f":"IF('1. Ordersheet'!Z590=\"\",\"\",'1. Ordersheet'!Z590)","v":""},{"$f":"IF('1. Ordersheet'!AA590=\"\",\"\",'1. Ordersheet'!AA590)","v":""},null,{"$f":"IF('1. Ordersheet'!AS590=\"\",\"\",'1. Ordersheet'!AS590)","v":""},{"$f":"IF('1. Ordersheet'!AT590=\"\",\"\",'1. Ordersheet'!AT590)","v":""},null,null,null,null,null,null,null,{"$f":"IF('1. Ordersheet'!AX590=\"\",\"\",'1. Ordersheet'!AX590)","v":""},{"$f":"IF('1. Ordersheet'!AY590=\"\",\"\",'1. Ordersheet'!AY590)","v":""},{"$f":"IF('1. Ordersheet'!AZ590=\"\",\"\",'1. Ordersheet'!AZ590)","v":""},{"$f":"IF('1. Ordersheet'!BA590=\"\",\"\",'1. Ordersheet'!BA590)","v":""},{"$f":"IF('1. Ordersheet'!BC590=\"\",\"\",'1. Ordersheet'!BC590)","v":""},{"$f":"IF('1. Ordersheet'!BD590=\"\",\"\",'1. Ordersheet'!BD590)","v":""},{"$f":"IF('1. Ordersheet'!BE590=\"\",\"\",'1. Ordersheet'!BE590)","v":""},{"$f":"IF('1. Ordersheet'!BF590=\"\",\"\",'1. Ordersheet'!BF590)","v":""},{"$f":"IF('1. Ordersheet'!BG590=\"\",\"\",'1. Ordersheet'!BG590)","v":"ZWO"},{"$f":"IF('1. Ordersheet'!BH590=\"\",\"\",'1. Ordersheet'!BH590)","v":""},{"$f":"IF('1. Ordersheet'!BI590=\"\",\"\",'1. Ordersheet'!BI590)","v":""},{"$f":"IF('1. Ordersheet'!BJ590=\"\",\"\",'1. Ordersheet'!BJ590)","v":""},{"$f":"IF('1. Ordersheet'!BK590=\"\",\"\",'1. Ordersheet'!BK590)","v":""},{"$f":"IF('1. Ordersheet'!BL590=\"\",\"\",'1. Ordersheet'!BL590)","v":""}]
[{"$f":"IF('1. Ordersheet'!F591=\"\",\"\",'1. Ordersheet'!F591)","v":""},{"$f":"IF('1. Ordersheet'!G591=\"\",\"\",'1. Ordersheet'!G591)","v":""},{"$f":"IF('1. Ordersheet'!H591=\"\",\"\",'1. Ordersheet'!H591)","v":""},{"$f":"IF('1. Ordersheet'!I591=\"\",\"\",'1. Ordersheet'!I591)","v":""},{"$f":"IF('1. Ordersheet'!J591=\"\",\"\",'1. Ordersheet'!J591)","v":""},{"$f":"IF('1. Ordersheet'!K591=\"\",\"\",'1. Ordersheet'!K591)","v":""},{"$f":"IF('1. Ordersheet'!L591=\"\",\"\",'1. Ordersheet'!L591)","v":""},{"$f":"IF('1. Ordersheet'!M591=\"\",\"\",'1. Ordersheet'!M591)","v":""},{"$f":"IF('1. Ordersheet'!N591=\"\",\"\",'1. Ordersheet'!N591)","v":""},{"$f":"IF('1. Ordersheet'!O591=\"\",\"\",'1. Ordersheet'!O591)","v":{"$error":"#N/A"}},{"$f":"IF('1. Ordersheet'!P591=\"\",\"\",'1. Ordersheet'!P591)","v":{"$error":"#N/A"}},{"$f":"IF('1. Ordersheet'!Q591=\"\",\"\",'1. Ordersheet'!Q591)","v":""},{"$f":"IF('1. Ordersheet'!R591=\"\",\"\",'1. Ordersheet'!R591)","v":""},{"$f":"IF('1. Ordersheet'!S591=\"\",\"\",'1. Ordersheet'!S591)","v":""},{"$f":"IF('1. Ordersheet'!V591=\"\",\"\",'1. Ordersheet'!V591)","v":""},{"$f":"IF('1. Ordersheet'!W591=\"\",\"\",'1. Ordersheet'!W591)","v":""},{"$f":"IF('1. Ordersheet'!X591=\"\",\"\",'1. Ordersheet'!X591)","v":""},{"$f":"IF('1. Ordersheet'!Y591=\"\",\"\",'1. Ordersheet'!Y591)","v":""},{"$f":"IF('1. Ordersheet'!Z591=\"\",\"\",'1. Ordersheet'!Z591)","v":""},{"$f":"IF('1. Ordersheet'!AA591=\"\",\"\",'1. Ordersheet'!AA591)","v":""},null,{"$f":"IF('1. Ordersheet'!AS591=\"\",\"\",'1. Ordersheet'!AS591)","v":""},{"$f":"IF('1. Ordersheet'!AT591=\"\",\"\",'1. Ordersheet'!AT591)","v":""},null,null,null,null,null,null,null,{"$f":"IF('1. Ordersheet'!AX591=\"\",\"\",'1. Ordersheet'!AX591)","v":""},{"$f":"IF('1. Ordersheet'!AY591=\"\",\"\",'1. Ordersheet'!AY591)","v":""},{"$f":"IF('1. Ordersheet'!AZ591=\"\",\"\",'1. Ordersheet'!AZ591)","v":""},{"$f":"IF('1. Ordersheet'!BA591=\"\",\"\",'1. Ordersheet'!BA591)","v":""},{"$f":"IF('1. Ordersheet'!BC591=\"\",\"\",'1. Ordersheet'!BC591)","v":""},{"$f":"IF('1. Ordersheet'!BD591=\"\",\"\",'1. Ordersheet'!BD591)","v":""},{"$f":"IF('1. Ordersheet'!BE591=\"\",\"\",'1. Ordersheet'!BE591)","v":""},{"$f":"IF('1. Ordersheet'!BF591=\"\",\"\",'1. Ordersheet'!BF591)","v":""},{"$f":"IF('1. Ordersheet'!BG591=\"\",\"\",'1. Ordersheet'!BG591)","v":"ZWO"},{"$f":"IF('1. Ordersheet'!BH591=\"\",\"\",'1. Ordersheet'!BH591)","v":""},{"$f":"IF('1. Ordersheet'!BI591=\"\",\"\",'1. Ordersheet'!BI591)","v":""},{"$f":"IF('1. Ordersheet'!BJ591=\"\",\"\",'1. Ordersheet'!BJ591)","v":""},{"$f":"IF('1. Ordersheet'!BK591=\"\",\"\",'1. Ordersheet'!BK591)","v":""},{"$f":"IF('1. Ordersheet'!BL591=\"\",\"\",'1. Ordersheet'!BL591)","v":""}]
[{"$f":"IF('1. Ordersheet'!F592=\"\",\"\",'1. Ordersheet'!F592)","v":""},{"$f":"IF('1. Ordersheet'!G592=\"\",\"\",'1. Ordersheet'!G592)","v":""},{"$f":"IF('1. Ordersheet'!H592=\"\",\"\",'1. Ordersheet'!H592)","v":""},{"$f":"IF('1. Ordersheet'!I592=\"\",\"\",'1. Ordersheet'!I592)","v":""},{"$f":"IF('1. Ordersheet'!J592=\"\",\"\",'1. Ordersheet'!J592)","v":""},{"$f":"IF('1. Ordersheet'!K592=\"\",\"\",'1. Ordersheet'!K592)","v":""},{"$f":"IF('1. Ordersheet'!L592=\"\",\"\",'1. Ordersheet'!L592)","v":""},{"$f":"IF('1. Ordersheet'!M592=\"\",\"\",'1. Ordersheet'!M592)","v":""},{"$f":"IF('1. Ordersheet'!N592=\"\",\"\",'1. Ordersheet'!N592)","v":""},{"$f":"IF('1. Ordersheet'!O592=\"\",\"\",'1. Ordersheet'!O592)","v":{"$error":"#N/A"}},{"$f":"IF('1. Ordersheet'!P592=\"\",\"\",'1. Ordersheet'!P592)","v":{"$error":"#N/A"}},{"$f":"IF('1. Ordersheet'!Q592=\"\",\"\",'1. Ordersheet'!Q592)","v":""},{"$f":"IF('1. Ordersheet'!R592=\"\",\"\",'1. Ordersheet'!R592)","v":""},{"$f":"IF('1. Ordersheet'!S592=\"\",\"\",'1. Ordersheet'!S592)","v":""},{"$f":"IF('1. Ordersheet'!V592=\"\",\"\",'1. Ordersheet'!V592)","v":""},{"$f":"IF('1. Ordersheet'!W592=\"\",\"\",'1. Ordersheet'!W592)","v":""},{"$f":"IF('1. Ordersheet'!X592=\"\",\"\",'1. Ordersheet'!X592)","v":""},{"$f":"IF('1. Ordersheet'!Y592=\"\",\"\",'1. Ordersheet'!Y592)","v":""},{"$f":"IF('1. Ordersheet'!Z592=\"\",\"\",'1. Ordersheet'!Z592)","v":""},{"$f":"IF('1. Ordersheet'!AA592=\"\",\"\",'1. Ordersheet'!AA592)","v":""},null,{"$f":"IF('1. Ordersheet'!AS592=\"\",\"\",'1. Ordersheet'!AS592)","v":""},{"$f":"IF('1. Ordersheet'!AT592=\"\",\"\",'1. Ordersheet'!AT592)","v":""},null,null,null,null,null,null,null,{"$f":"IF('1. Ordersheet'!AX592=\"\",\"\",'1. Ordersheet'!AX592)","v":""},{"$f":"IF('1. Ordersheet'!AY592=\"\",\"\",'1. Ordersheet'!AY592)","v":""},{"$f":"IF('1. Ordersheet'!AZ592=\"\",\"\",'1. Ordersheet'!AZ592)","v":""},{"$f":"IF('1. Ordersheet'!BA592=\"\",\"\",'1. Ordersheet'!BA592)","v":""},{"$f":"IF('1. Ordersheet'!BC592=\"\",\"\",'1. Ordersheet'!BC592)","v":""},{"$f":"IF('1. Ordersheet'!BD592=\"\",\"\",'1. Ordersheet'!BD592)","v":""},{"$f":"IF('1. Ordersheet'!BE592=\"\",\"\",'1. Ordersheet'!BE592)","v":""},{"$f":"IF('1. Ordersheet'!BF592=\"\",\"\",'1. Ordersheet'!BF592)","v":""},{"$f":"IF('1. Ordersheet'!BG592=\"\",\"\",'1. Ordersheet'!BG592)","v":"ZWO"},{"$f":"IF('1. Ordersheet'!BH592=\"\",\"\",'1. Ordersheet'!BH592)","v":""},{"$f":"IF('1. Ordersheet'!BI592=\"\",\"\",'1. Ordersheet'!BI592)","v":""},{"$f":"IF('1. Ordersheet'!BJ592=\"\",\"\",'1. Ordersheet'!BJ592)","v":""},{"$f":"IF('1. Ordersheet'!BK592=\"\",\"\",'1. Ordersheet'!BK592)","v":""},{"$f":"IF('1. Ordersheet'!BL592=\"\",\"\",'1. Ordersheet'!BL592)","v":""}]
[{"$f":"IF('1. Ordersheet'!F593=\"\",\"\",'1. Ordersheet'!F593)","v":""},{"$f":"IF('1. Ordersheet'!G593=\"\",\"\",'1. Ordersheet'!G593)","v":""},{"$f":"IF('1. Ordersheet'!H593=\"\",\"\",'1. Ordersheet'!H593)","v":""},{"$f":"IF('1. Ordersheet'!I593=\"\",\"\",'1. Ordersheet'!I593)","v":""},{"$f":"IF('1. Ordersheet'!J593=\"\",\"\",'1. Ordersheet'!J593)","v":""},{"$f":"IF('1. Ordersheet'!K593=\"\",\"\",'1. Ordersheet'!K593)","v":""},{"$f":"IF('1. Ordersheet'!L593=\"\",\"\",'1. Ordersheet'!L593)","v":""},{"$f":"IF('1. Ordersheet'!M593=\"\",\"\",'1. Ordersheet'!M593)","v":""},{"$f":"IF('1. Ordersheet'!N593=\"\",\"\",'1. Ordersheet'!N593)","v":""},{"$f":"IF('1. Ordersheet'!O593=\"\",\"\",'1. Ordersheet'!O593)","v":{"$error":"#N/A"}},{"$f":"IF('1. Ordersheet'!P593=\"\",\"\",'1. Ordersheet'!P593)","v":{"$error":"#N/A"}},{"$f":"IF('1. Ordersheet'!Q593=\"\",\"\",'1. Ordersheet'!Q593)","v":""},{"$f":"IF('1. Ordersheet'!R593=\"\",\"\",'1. Ordersheet'!R593)","v":""},{"$f":"IF('1. Ordersheet'!S593=\"\",\"\",'1. Ordersheet'!S593)","v":""},{"$f":"IF('1. Ordersheet'!V593=\"\",\"\",'1. Ordersheet'!V593)","v":""},{"$f":"IF('1. Ordersheet'!W593=\"\",\"\",'1. Ordersheet'!W593)","v":""},{"$f":"IF('1. Ordersheet'!X593=\"\",\"\",'1. Ordersheet'!X593)","v":""},{"$f":"IF('1. Ordersheet'!Y593=\"\",\"\",'1. Ordersheet'!Y593)","v":""},{"$f":"IF('1. Ordersheet'!Z593=\"\",\"\",'1. Ordersheet'!Z593)","v":""},{"$f":"IF('1. Ordersheet'!AA593=\"\",\"\",'1. Ordersheet'!AA593)","v":""},null,{"$f":"IF('1. Ordersheet'!AS593=\"\",\"\",'1. Ordersheet'!AS593)","v":""},{"$f":"IF('1. Ordersheet'!AT593=\"\",\"\",'1. Ordersheet'!AT593)","v":""},null,null,null,null,null,null,null,{"$f":"IF('1. Ordersheet'!AX593=\"\",\"\",'1. Ordersheet'!AX593)","v":""},{"$f":"IF('1. Ordersheet'!AY593=\"\",\"\",'1. Ordersheet'!AY593)","v":""},{"$f":"IF('1. Ordersheet'!AZ593=\"\",\"\",'1. Ordersheet'!AZ593)","v":""},{"$f":"IF('1. Ordersheet'!BA593=\"\",\"\",'1. Ordersheet'!BA593)","v":""},{"$f":"IF('1. Ordersheet'!BC593=\"\",\"\",'1. Ordersheet'!BC593)","v":""},{"$f":"IF('1. Ordersheet'!BD593=\"\",\"\",'1. Ordersheet'!BD593)","v":""},{"$f":"IF('1. Ordersheet'!BE593=\"\",\"\",'1. Ordersheet'!BE593)","v":""},{"$f":"IF('1. Ordersheet'!BF593=\"\",\"\",'1. Ordersheet'!BF593)","v":""},{"$f":"IF('1. Ordersheet'!BG593=\"\",\"\",'1. Ordersheet'!BG593)","v":"ZWO"},{"$f":"IF('1. Ordersheet'!BH593=\"\",\"\",'1. Ordersheet'!BH593)","v":""},{"$f":"IF('1. Ordersheet'!BI593=\"\",\"\",'1. Ordersheet'!BI593)","v":""},{"$f":"IF('1. Ordersheet'!BJ593=\"\",\"\",'1. Ordersheet'!BJ593)","v":""},{"$f":"IF('1. Ordersheet'!BK593=\"\",\"\",'1. Ordersheet'!BK593)","v":""},{"$f":"IF('1. Ordersheet'!BL593=\"\",\"\",'1. Ordersheet'!BL593)","v":""}]
[{"$f":"IF('1. Ordersheet'!F594=\"\",\"\",'1. Ordersheet'!F594)","v":""},{"$f":"IF('1. Ordersheet'!G594=\"\",\"\",'1. Ordersheet'!G594)","v":""},{"$f":"IF('1. Ordersheet'!H594=\"\",\"\",'1. Ordersheet'!H594)","v":""},{"$f":"IF('1. Ordersheet'!I594=\"\",\"\",'1. Ordersheet'!I594)","v":""},{"$f":"IF('1. Ordersheet'!J594=\"\",\"\",'1. Ordersheet'!J594)","v":""},{"$f":"IF('1. Ordersheet'!K594=\"\",\"\",'1. Ordersheet'!K594)","v":""},{"$f":"IF('1. Ordersheet'!L594=\"\",\"\",'1. Ordersheet'!L594)","v":""},{"$f":"IF('1. Ordersheet'!M594=\"\",\"\",'1. Ordersheet'!M594)","v":""},{"$f":"IF('1. Ordersheet'!N594=\"\",\"\",'1. Ordersheet'!N594)","v":""},{"$f":"IF('1. Ordersheet'!O594=\"\",\"\",'1. Ordersheet'!O594)","v":{"$error":"#N/A"}},{"$f":"IF('1. Ordersheet'!P594=\"\",\"\",'1. Ordersheet'!P594)","v":{"$error":"#N/A"}},{"$f":"IF('1. Ordersheet'!Q594=\"\",\"\",'1. Ordersheet'!Q594)","v":""},{"$f":"IF('1. Ordersheet'!R594=\"\",\"\",'1. Ordersheet'!R594)","v":""},{"$f":"IF('1. Ordersheet'!S594=\"\",\"\",'1. Ordersheet'!S594)","v":""},{"$f":"IF('1. Ordersheet'!V594=\"\",\"\",'1. Ordersheet'!V594)","v":""},{"$f":"IF('1. Ordersheet'!W594=\"\",\"\",'1. Ordersheet'!W594)","v":""},{"$f":"IF('1. Ordersheet'!X594=\"\",\"\",'1. Ordersheet'!X594)","v":""},{"$f":"IF('1. Ordersheet'!Y594=\"\",\"\",'1. Ordersheet'!Y594)","v":""},{"$f":"IF('1. Ordersheet'!Z594=\"\",\"\",'1. Ordersheet'!Z594)","v":""},{"$f":"IF('1. Ordersheet'!AA594=\"\",\"\",'1. Ordersheet'!AA594)","v":""},null,{"$f":"IF('1. Ordersheet'!AS594=\"\",\"\",'1. Ordersheet'!AS594)","v":""},{"$f":"IF('1. Ordersheet'!AT594=\"\",\"\",'1. Ordersheet'!AT594)","v":""},null,null,null,null,null,null,null,{"$f":"IF('1. Ordersheet'!AX594=\"\",\"\",'1. Ordersheet'!AX594)","v":""},{"$f":"IF('1. Ordersheet'!AY594=\"\",\"\",'1. Ordersheet'!AY594)","v":""},{"$f":"IF('1. Ordersheet'!AZ594=\"\",\"\",'1. Ordersheet'!AZ594)","v":""},{"$f":"IF('1. Ordersheet'!BA594=\"\",\"\",'1. Ordersheet'!BA594)","v":""},{"$f":"IF('1. Ordersheet'!BC594=\"\",\"\",'1. Ordersheet'!BC594)","v":""},{"$f":"IF('1. Ordersheet'!BD594=\"\",\"\",'1. Ordersheet'!BD594)","v":""},{"$f":"IF('1. Ordersheet'!BE594=\"\",\"\",'1. Ordersheet'!BE594)","v":""},{"$f":"IF('1. Ordersheet'!BF594=\"\",\"\",'1. Ordersheet'!BF594)","v":""},{"$f":"IF('1. Ordersheet'!BG594=\"\",\"\",'1. Ordersheet'!BG594)","v":"ZWO"},{"$f":"IF('1. Ordersheet'!BH594=\"\",\"\",'1. Ordersheet'!BH594)","v":""},{"$f":"IF('1. Ordersheet'!BI594=\"\",\"\",'1. Ordersheet'!BI594)","v":""},{"$f":"IF('1. Ordersheet'!BJ594=\"\",\"\",'1. Ordersheet'!BJ594)","v":""},{"$f":"IF('1. Ordersheet'!BK594=\"\",\"\",'1. Ordersheet'!BK594)","v":""},{"$f":"IF('1. Ordersheet'!BL594=\"\",\"\",'1. Ordersheet'!BL594)","v":""}]
[{"$f":"IF('1. Ordersheet'!F595=\"\",\"\",'1. Ordersheet'!F595)","v":""},{"$f":"IF('1. Ordersheet'!G595=\"\",\"\",'1. Ordersheet'!G595)","v":""},{"$f":"IF('1. Ordersheet'!H595=\"\",\"\",'1. Ordersheet'!H595)","v":""},{"$f":"IF('1. Ordersheet'!I595=\"\",\"\",'1. Ordersheet'!I595)","v":""},{"$f":"IF('1. Ordersheet'!J595=\"\",\"\",'1. Ordersheet'!J595)","v":""},{"$f":"IF('1. Ordersheet'!K595=\"\",\"\",'1. Ordersheet'!K595)","v":""},{"$f":"IF('1. Ordersheet'!L595=\"\",\"\",'1. Ordersheet'!L595)","v":""},{"$f":"IF('1. Ordersheet'!M595=\"\",\"\",'1. Ordersheet'!M595)","v":""},{"$f":"IF('1. Ordersheet'!N595=\"\",\"\",'1. Ordersheet'!N595)","v":""},{"$f":"IF('1. Ordersheet'!O595=\"\",\"\",'1. Ordersheet'!O595)","v":{"$error":"#N/A"}},{"$f":"IF('1. Ordersheet'!P595=\"\",\"\",'1. Ordersheet'!P595)","v":{"$error":"#N/A"}},{"$f":"IF('1. Ordersheet'!Q595=\"\",\"\",'1. Ordersheet'!Q595)","v":""},{"$f":"IF('1. Ordersheet'!R595=\"\",\"\",'1. Ordersheet'!R595)","v":""},{"$f":"IF('1. Ordersheet'!S595=\"\",\"\",'1. Ordersheet'!S595)","v":""},{"$f":"IF('1. Ordersheet'!V595=\"\",\"\",'1. Ordersheet'!V595)","v":""},{"$f":"IF('1. Ordersheet'!W595=\"\",\"\",'1. Ordersheet'!W595)","v":""},{"$f":"IF('1. Ordersheet'!X595=\"\",\"\",'1. Ordersheet'!X595)","v":""},{"$f":"IF('1. Ordersheet'!Y595=\"\",\"\",'1. Ordersheet'!Y595)","v":""},{"$f":"IF('1. Ordersheet'!Z595=\"\",\"\",'1. Ordersheet'!Z595)","v":""},{"$f":"IF('1. Ordersheet'!AA595=\"\",\"\",'1. Ordersheet'!AA595)","v":""},null,{"$f":"IF('1. Ordersheet'!AS595=\"\",\"\",'1. Ordersheet'!AS595)","v":""},{"$f":"IF('1. Ordersheet'!AT595=\"\",\"\",'1. Ordersheet'!AT595)","v":""},null,null,null,null,null,null,null,{"$f":"IF('1. Ordersheet'!AX595=\"\",\"\",'1. Ordersheet'!AX595)","v":""},{"$f":"IF('1. Ordersheet'!AY595=\"\",\"\",'1. Ordersheet'!AY595)","v":""},{"$f":"IF('1. Ordersheet'!AZ595=\"\",\"\",'1. Ordersheet'!AZ595)","v":""},{"$f":"IF('1. Ordersheet'!BA595=\"\",\"\",'1. Ordersheet'!BA595)","v":""},{"$f":"IF('1. Ordersheet'!BC595=\"\",\"\",'1. Ordersheet'!BC595)","v":""},{"$f":"IF('1. Ordersheet'!BD595=\"\",\"\",'1. Ordersheet'!BD595)","v":""},{"$f":"IF('1. Ordersheet'!BE595=\"\",\"\",'1. Ordersheet'!BE595)","v":""},{"$f":"IF('1. Ordersheet'!BF595=\"\",\"\",'1. Ordersheet'!BF595)","v":""},{"$f":"IF('1. Ordersheet'!BG595=\"\",\"\",'1. Ordersheet'!BG595)","v":"ZWO"},{"$f":"IF('1. Ordersheet'!BH595=\"\",\"\",'1. Ordersheet'!BH595)","v":""},{"$f":"IF('1. Ordersheet'!BI595=\"\",\"\",'1. Ordersheet'!BI595)","v":""},{"$f":"IF('1. Ordersheet'!BJ595=\"\",\"\",'1. Ordersheet'!BJ595)","v":""},{"$f":"IF('1. Ordersheet'!BK595=\"\",\"\",'1. Ordersheet'!BK595)","v":""},{"$f":"IF('1. Ordersheet'!BL595=\"\",\"\",'1. Ordersheet'!BL595)","v":""}]
[{"$f":"IF('1. Ordersheet'!F596=\"\",\"\",'1. Ordersheet'!F596)","v":""},{"$f":"IF('1. Ordersheet'!G596=\"\",\"\",'1. Ordersheet'!G596)","v":""},{"$f":"IF('1. Ordersheet'!H596=\"\",\"\",'1. Ordersheet'!H596)","v":""},{"$f":"IF('1. Ordersheet'!I596=\"\",\"\",'1. Ordersheet'!I596)","v":""},{"$f":"IF('1. Ordersheet'!J596=\"\",\"\",'1. Ordersheet'!J596)","v":""},{"$f":"IF('1. Ordersheet'!K596=\"\",\"\",'1. Ordersheet'!K596)","v":""},{"$f":"IF('1. Ordersheet'!L596=\"\",\"\",'1. Ordersheet'!L596)","v":""},{"$f":"IF('1. Ordersheet'!M596=\"\",\"\",'1. Ordersheet'!M596)","v":""},{"$f":"IF('1. Ordersheet'!N596=\"\",\"\",'1. Ordersheet'!N596)","v":""},{"$f":"IF('1. Ordersheet'!O596=\"\",\"\",'1. Ordersheet'!O596)","v":{"$error":"#N/A"}},{"$f":"IF('1. Ordersheet'!P596=\"\",\"\",'1. Ordersheet'!P596)","v":{"$error":"#N/A"}},{"$f":"IF('1. Ordersheet'!Q596=\"\",\"\",'1. Ordersheet'!Q596)","v":""},{"$f":"IF('1. Ordersheet'!R596=\"\",\"\",'1. Ordersheet'!R596)","v":""},{"$f":"IF('1. Ordersheet'!S596=\"\",\"\",'1. Ordersheet'!S596)","v":""},{"$f":"IF('1. Ordersheet'!V596=\"\",\"\",'1. Ordersheet'!V596)","v":""},{"$f":"IF('1. Ordersheet'!W596=\"\",\"\",'1. Ordersheet'!W596)","v":""},{"$f":"IF('1. Ordersheet'!X596=\"\",\"\",'1. Ordersheet'!X596)","v":""},{"$f":"IF('1. Ordersheet'!Y596=\"\",\"\",'1. Ordersheet'!Y596)","v":""},{"$f":"IF('1. Ordersheet'!Z596=\"\",\"\",'1. Ordersheet'!Z596)","v":""},{"$f":"IF('1. Ordersheet'!AA596=\"\",\"\",'1. Ordersheet'!AA596)","v":""},null,{"$f":"IF('1. Ordersheet'!AS596=\"\",\"\",'1. Ordersheet'!AS596)","v":""},{"$f":"IF('1. Ordersheet'!AT596=\"\",\"\",'1. Ordersheet'!AT596)","v":""},null,null,null,null,null,null,null,{"$f":"IF('1. Ordersheet'!AX596=\"\",\"\",'1. Ordersheet'!AX596)","v":""},{"$f":"IF('1. Ordersheet'!AY596=\"\",\"\",'1. Ordersheet'!AY596)","v":""},{"$f":"IF('1. Ordersheet'!AZ596=\"\",\"\",'1. Ordersheet'!AZ596)","v":""},{"$f":"IF('1. Ordersheet'!BA596=\"\",\"\",'1. Ordersheet'!BA596)","v":""},{"$f":"IF('1. Ordersheet'!BC596=\"\",\"\",'1. Ordersheet'!BC596)","v":""},{"$f":"IF('1. Ordersheet'!BD596=\"\",\"\",'1. Ordersheet'!BD596)","v":""},{"$f":"IF('1. Ordersheet'!BE596=\"\",\"\",'1. Ordersheet'!BE596)","v":""},{"$f":"IF('1. Ordersheet'!BF596=\"\",\"\",'1. Ordersheet'!BF596)","v":""},{"$f":"IF('1. Ordersheet'!BG596=\"\",\"\",'1. Ordersheet'!BG596)","v":"ZWO"},{"$f":"IF('1. Ordersheet'!BH596=\"\",\"\",'1. Ordersheet'!BH596)","v":""},{"$f":"IF('1. Ordersheet'!BI596=\"\",\"\",'1. Ordersheet'!BI596)","v":""},{"$f":"IF('1. Ordersheet'!BJ596=\"\",\"\",'1. Ordersheet'!BJ596)","v":""},{"$f":"IF('1. Ordersheet'!BK596=\"\",\"\",'1. Ordersheet'!BK596)","v":""},{"$f":"IF('1. Ordersheet'!BL596=\"\",\"\",'1. Ordersheet'!BL596)","v":""}]
[{"$f":"IF('1. Ordersheet'!F597=\"\",\"\",'1. Ordersheet'!F597)","v":""},{"$f":"IF('1. Ordersheet'!G597=\"\",\"\",'1. Ordersheet'!G597)","v":""},{"$f":"IF('1. Ordersheet'!H597=\"\",\"\",'1. Ordersheet'!H597)","v":""},{"$f":"IF('1. Ordersheet'!I597=\"\",\"\",'1. Ordersheet'!I597)","v":""},{"$f":"IF('1. Ordersheet'!J597=\"\",\"\",'1. Ordersheet'!J597)","v":""},{"$f":"IF('1. Ordersheet'!K597=\"\",\"\",'1. Ordersheet'!K597)","v":""},{"$f":"IF('1. Ordersheet'!L597=\"\",\"\",'1. Ordersheet'!L597)","v":""},{"$f":"IF('1. Ordersheet'!M597=\"\",\"\",'1. Ordersheet'!M597)","v":""},{"$f":"IF('1. Ordersheet'!N597=\"\",\"\",'1. Ordersheet'!N597)","v":""},{"$f":"IF('1. Ordersheet'!O597=\"\",\"\",'1. Ordersheet'!O597)","v":{"$error":"#N/A"}},{"$f":"IF('1. Ordersheet'!P597=\"\",\"\",'1. Ordersheet'!P597)","v":{"$error":"#N/A"}},{"$f":"IF('1. Ordersheet'!Q597=\"\",\"\",'1. Ordersheet'!Q597)","v":""},{"$f":"IF('1. Ordersheet'!R597=\"\",\"\",'1. Ordersheet'!R597)","v":""},{"$f":"IF('1. Ordersheet'!S597=\"\",\"\",'1. Ordersheet'!S597)","v":""},{"$f":"IF('1. Ordersheet'!V597=\"\",\"\",'1. Ordersheet'!V597)","v":""},{"$f":"IF('1. Ordersheet'!W597=\"\",\"\",'1. Ordersheet'!W597)","v":""},{"$f":"IF('1. Ordersheet'!X597=\"\",\"\",'1. Ordersheet'!X597)","v":""},{"$f":"IF('1. Ordersheet'!Y597=\"\",\"\",'1. Ordersheet'!Y597)","v":""},{"$f":"IF('1. Ordersheet'!Z597=\"\",\"\",'1. Ordersheet'!Z597)","v":""},{"$f":"IF('1. Ordersheet'!AA597=\"\",\"\",'1. Ordersheet'!AA597)","v":""},null,{"$f":"IF('1. Ordersheet'!AS597=\"\",\"\",'1. Ordersheet'!AS597)","v":""},{"$f":"IF('1. Ordersheet'!AT597=\"\",\"\",'1. Ordersheet'!AT597)","v":""},null,null,null,null,null,null,null,{"$f":"IF('1. Ordersheet'!AX597=\"\",\"\",'1. Ordersheet'!AX597)","v":""},{"$f":"IF('1. Ordersheet'!AY597=\"\",\"\",'1. Ordersheet'!AY597)","v":""},{"$f":"IF('1. Ordersheet'!AZ597=\"\",\"\",'1. Ordersheet'!AZ597)","v":""},{"$f":"IF('1. Ordersheet'!BA597=\"\",\"\",'1. Ordersheet'!BA597)","v":""},{"$f":"IF('1. Ordersheet'!BC597=\"\",\"\",'1. Ordersheet'!BC597)","v":""},{"$f":"IF('1. Ordersheet'!BD597=\"\",\"\",'1. Ordersheet'!BD597)","v":""},{"$f":"IF('1. Ordersheet'!BE597=\"\",\"\",'1. Ordersheet'!BE597)","v":""},{"$f":"IF('1. Ordersheet'!BF597=\"\",\"\",'1. Ordersheet'!BF597)","v":""},{"$f":"IF('1. Ordersheet'!BG597=\"\",\"\",'1. Ordersheet'!BG597)","v":"ZWO"},{"$f":"IF('1. Ordersheet'!BH597=\"\",\"\",'1. Ordersheet'!BH597)","v":""},{"$f":"IF('1. Ordersheet'!BI597=\"\",\"\",'1. Ordersheet'!BI597)","v":""},{"$f":"IF('1. Ordersheet'!BJ597=\"\",\"\",'1. Ordersheet'!BJ597)","v":""},{"$f":"IF('1. Ordersheet'!BK597=\"\",\"\",'1. Ordersheet'!BK597)","v":""},{"$f":"IF('1. Ordersheet'!BL597=\"\",\"\",'1. Ordersheet'!BL597)","v":""}]
[{"$f":"IF('1. Ordersheet'!F598=\"\",\"\",'1. Ordersheet'!F598)","v":""},{"$f":"IF('1. Ordersheet'!G598=\"\",\"\",'1. Ordersheet'!G598)","v":""},{"$f":"IF('1. Ordersheet'!H598=\"\",\"\",'1. Ordersheet'!H598)","v":""},{"$f":"IF('1. Ordersheet'!I598=\"\",\"\",'1. Ordersheet'!I598)","v":""},{"$f":"IF('1. Ordersheet'!J598=\"\",\"\",'1. Ordersheet'!J598)","v":""},{"$f":"IF('1. Ordersheet'!K598=\"\",\"\",'1. Ordersheet'!K598)","v":""},{"$f":"IF('1. Ordersheet'!L598=\"\",\"\",'1. Ordersheet'!L598)","v":""},{"$f":"IF('1. Ordersheet'!M598=\"\",\"\",'1. Ordersheet'!M598)","v":""},{"$f":"IF('1. Ordersheet'!N598=\"\",\"\",'1. Ordersheet'!N598)","v":""},{"$f":"IF('1. Ordersheet'!O598=\"\",\"\",'1. Ordersheet'!O598)","v":{"$error":"#N/A"}},{"$f":"IF('1. Ordersheet'!P598=\"\",\"\",'1. Ordersheet'!P598)","v":{"$error":"#N/A"}},{"$f":"IF('1. Ordersheet'!Q598=\"\",\"\",'1. Ordersheet'!Q598)","v":""},{"$f":"IF('1. Ordersheet'!R598=\"\",\"\",'1. Ordersheet'!R598)","v":""},{"$f":"IF('1. Ordersheet'!S598=\"\",\"\",'1. Ordersheet'!S598)","v":""},{"$f":"IF('1. Ordersheet'!V598=\"\",\"\",'1. Ordersheet'!V598)","v":""},{"$f":"IF('1. Ordersheet'!W598=\"\",\"\",'1. Ordersheet'!W598)","v":""},{"$f":"IF('1. Ordersheet'!X598=\"\",\"\",'1. Ordersheet'!X598)","v":""},{"$f":"IF('1. Ordersheet'!Y598=\"\",\"\",'1. Ordersheet'!Y598)","v":""},{"$f":"IF('1. Ordersheet'!Z598=\"\",\"\",'1. Ordersheet'!Z598)","v":""},{"$f":"IF('1. Ordersheet'!AA598=\"\",\"\",'1. Ordersheet'!AA598)","v":""},null,{"$f":"IF('1. Ordersheet'!AS598=\"\",\"\",'1. Ordersheet'!AS598)","v":""},{"$f":"IF('1. Ordersheet'!AT598=\"\",\"\",'1. Ordersheet'!AT598)","v":""},null,null,null,null,null,null,null,{"$f":"IF('1. Ordersheet'!AX598=\"\",\"\",'1. Ordersheet'!AX598)","v":""},{"$f":"IF('1. Ordersheet'!AY598=\"\",\"\",'1. Ordersheet'!AY598)","v":""},{"$f":"IF('1. Ordersheet'!AZ598=\"\",\"\",'1. Ordersheet'!AZ598)","v":""},{"$f":"IF('1. Ordersheet'!BA598=\"\",\"\",'1. Ordersheet'!BA598)","v":""},{"$f":"IF('1. Ordersheet'!BC598=\"\",\"\",'1. Ordersheet'!BC598)","v":""},{"$f":"IF('1. Ordersheet'!BD598=\"\",\"\",'1. Ordersheet'!BD598)","v":""},{"$f":"IF('1. Ordersheet'!BE598=\"\",\"\",'1. Ordersheet'!BE598)","v":""},{"$f":"IF('1. Ordersheet'!BF598=\"\",\"\",'1. Ordersheet'!BF598)","v":""},{"$f":"IF('1. Ordersheet'!BG598=\"\",\"\",'1. Ordersheet'!BG598)","v":"ZWO"},{"$f":"IF('1. Ordersheet'!BH598=\"\",\"\",'1. Ordersheet'!BH598)","v":""},{"$f":"IF('1. Ordersheet'!BI598=\"\",\"\",'1. Ordersheet'!BI598)","v":""},{"$f":"IF('1. Ordersheet'!BJ598=\"\",\"\",'1. Ordersheet'!BJ598)","v":""},{"$f":"IF('1. Ordersheet'!BK598=\"\",\"\",'1. Ordersheet'!BK598)","v":""},{"$f":"IF('1. Ordersheet'!BL598=\"\",\"\",'1. Ordersheet'!BL598)","v":""}]
[{"$f":"IF('1. Ordersheet'!F599=\"\",\"\",'1. Ordersheet'!F599)","v":""},{"$f":"IF('1. Ordersheet'!G599=\"\",\"\",'1. Ordersheet'!G599)","v":""},{"$f":"IF('1. Ordersheet'!H599=\"\",\"\",'1. Ordersheet'!H599)","v":""},{"$f":"IF('1. Ordersheet'!I599=\"\",\"\",'1. Ordersheet'!I599)","v":""},{"$f":"IF('1. Ordersheet'!J599=\"\",\"\",'1. Ordersheet'!J599)","v":""},{"$f":"IF('1. Ordersheet'!K599=\"\",\"\",'1. Ordersheet'!K599)","v":""},{"$f":"IF('1. Ordersheet'!L599=\"\",\"\",'1. Ordersheet'!L599)","v":""},{"$f":"IF('1. Ordersheet'!M599=\"\",\"\",'1. Ordersheet'!M599)","v":""},{"$f":"IF('1. Ordersheet'!N599=\"\",\"\",'1. Ordersheet'!N599)","v":""},{"$f":"IF('1. Ordersheet'!O599=\"\",\"\",'1. Ordersheet'!O599)","v":{"$error":"#N/A"}},{"$f":"IF('1. Ordersheet'!P599=\"\",\"\",'1. Ordersheet'!P599)","v":{"$error":"#N/A"}},{"$f":"IF('1. Ordersheet'!Q599=\"\",\"\",'1. Ordersheet'!Q599)","v":""},{"$f":"IF('1. Ordersheet'!R599=\"\",\"\",'1. Ordersheet'!R599)","v":""},{"$f":"IF('1. Ordersheet'!S599=\"\",\"\",'1. Ordersheet'!S599)","v":""},{"$f":"IF('1. Ordersheet'!V599=\"\",\"\",'1. Ordersheet'!V599)","v":""},{"$f":"IF('1. Ordersheet'!W599=\"\",\"\",'1. Ordersheet'!W599)","v":""},{"$f":"IF('1. Ordersheet'!X599=\"\",\"\",'1. Ordersheet'!X599)","v":""},{"$f":"IF('1. Ordersheet'!Y599=\"\",\"\",'1. Ordersheet'!Y599)","v":""},{"$f":"IF('1. Ordersheet'!Z599=\"\",\"\",'1. Ordersheet'!Z599)","v":""},{"$f":"IF('1. Ordersheet'!AA599=\"\",\"\",'1. Ordersheet'!AA599)","v":""},null,{"$f":"IF('1. Ordersheet'!AS599=\"\",\"\",'1. Ordersheet'!AS599)","v":""},{"$f":"IF('1. Ordersheet'!AT599=\"\",\"\",'1. Ordersheet'!AT599)","v":""},null,null,null,null,null,null,null,{"$f":"IF('1. Ordersheet'!AX599=\"\",\"\",'1. Ordersheet'!AX599)","v":""},{"$f":"IF('1. Ordersheet'!AY599=\"\",\"\",'1. Ordersheet'!AY599)","v":""},{"$f":"IF('1. Ordersheet'!AZ599=\"\",\"\",'1. Ordersheet'!AZ599)","v":""},{"$f":"IF('1. Ordersheet'!BA599=\"\",\"\",'1. Ordersheet'!BA599)","v":""},{"$f":"IF('1. Ordersheet'!BC599=\"\",\"\",'1. Ordersheet'!BC599)","v":""},{"$f":"IF('1. Ordersheet'!BD599=\"\",\"\",'1. Ordersheet'!BD599)","v":""},{"$f":"IF('1. Ordersheet'!BE599=\"\",\"\",'1. Ordersheet'!BE599)","v":""},{"$f":"IF('1. Ordersheet'!BF599=\"\",\"\",'1. Ordersheet'!BF599)","v":""},{"$f":"IF('1. Ordersheet'!BG599=\"\",\"\",'1. Ordersheet'!BG599)","v":"ZWO"},{"$f":"IF('1. Ordersheet'!BH599=\"\",\"\",'1. Ordersheet'!BH599)","v":""},{"$f":"IF('1. Ordersheet'!BI599=\"\",\"\",'1. Ordersheet'!BI599)","v":""},{"$f":"IF('1. Ordersheet'!BJ599=\"\",\"\",'1. Ordersheet'!BJ599)","v":""},{"$f":"IF('1. Ordersheet'!BK599=\"\",\"\",'1. Ordersheet'!BK599)","v":""},{"$f":"IF('1. Ordersheet'!BL599=\"\",\"\",'1. Ordersheet'!BL599)","v":""}]
[{"$f":"IF('1. Ordersheet'!F600=\"\",\"\",'1. Ordersheet'!F600)","v":""},{"$f":"IF('1. Ordersheet'!G600=\"\",\"\",'1. Ordersheet'!G600)","v":""},{"$f":"IF('1. Ordersheet'!H600=\"\",\"\",'1. Ordersheet'!H600)","v":""},{"$f":"IF('1. Ordersheet'!I600=\"\",\"\",'1. Ordersheet'!I600)","v":""},{"$f":"IF('1. Ordersheet'!J600=\"\",\"\",'1. Ordersheet'!J600)","v":""},{"$f":"IF('1. Ordersheet'!K600=\"\",\"\",'1. Ordersheet'!K600)","v":""},{"$f":"IF('1. Ordersheet'!L600=\"\",\"\",'1. Ordersheet'!L600)","v":""},{"$f":"IF('1. Ordersheet'!M600=\"\",\"\",'1. Ordersheet'!M600)","v":""},{"$f":"IF('1. Ordersheet'!N600=\"\",\"\",'1. Ordersheet'!N600)","v":""},{"$f":"IF('1. Ordersheet'!O600=\"\",\"\",'1. Ordersheet'!O600)","v":{"$error":"#N/A"}},{"$f":"IF('1. Ordersheet'!P600=\"\",\"\",'1. Ordersheet'!P600)","v":{"$error":"#N/A"}},{"$f":"IF('1. Ordersheet'!Q600=\"\",\"\",'1. Ordersheet'!Q600)","v":""},{"$f":"IF('1. Ordersheet'!R600=\"\",\"\",'1. Ordersheet'!R600)","v":""},{"$f":"IF('1. Ordersheet'!S600=\"\",\"\",'1. Ordersheet'!S600)","v":""},{"$f":"IF('1. Ordersheet'!V600=\"\",\"\",'1. Ordersheet'!V600)","v":""},{"$f":"IF('1. Ordersheet'!W600=\"\",\"\",'1. Ordersheet'!W600)","v":""},{"$f":"IF('1. Ordersheet'!X600=\"\",\"\",'1. Ordersheet'!X600)","v":""},{"$f":"IF('1. Ordersheet'!Y600=\"\",\"\",'1. Ordersheet'!Y600)","v":""},{"$f":"IF('1. Ordersheet'!Z600=\"\",\"\",'1. Ordersheet'!Z600)","v":""},{"$f":"IF('1. Ordersheet'!AA600=\"\",\"\",'1. Ordersheet'!AA600)","v":""},null,{"$f":"IF('1. Ordersheet'!AS600=\"\",\"\",'1. Ordersheet'!AS600)","v":""},{"$f":"IF('1. Ordersheet'!AT600=\"\",\"\",'1. Ordersheet'!AT600)","v":""},null,null,null,null,null,null,null,{"$f":"IF('1. Ordersheet'!AX600=\"\",\"\",'1. Ordersheet'!AX600)","v":""},{"$f":"IF('1. Ordersheet'!AY600=\"\",\"\",'1. Ordersheet'!AY600)","v":""},{"$f":"IF('1. Ordersheet'!AZ600=\"\",\"\",'1. Ordersheet'!AZ600)","v":""},{"$f":"IF('1. Ordersheet'!BA600=\"\",\"\",'1. Ordersheet'!BA600)","v":""},{"$f":"IF('1. Ordersheet'!BC600=\"\",\"\",'1. Ordersheet'!BC600)","v":""},{"$f":"IF('1. Ordersheet'!BD600=\"\",\"\",'1. Ordersheet'!BD600)","v":""},{"$f":"IF('1. Ordersheet'!BE600=\"\",\"\",'1. Ordersheet'!BE600)","v":""},{"$f":"IF('1. Ordersheet'!BF600=\"\",\"\",'1. Ordersheet'!BF600)","v":""},{"$f":"IF('1. Ordersheet'!BG600=\"\",\"\",'1. Ordersheet'!BG600)","v":"ZWO"},{"$f":"IF('1. Ordersheet'!BH600=\"\",\"\",'1. Ordersheet'!BH600)","v":""},{"$f":"IF('1. Ordersheet'!BI600=\"\",\"\",'1. Ordersheet'!BI600)","v":""},{"$f":"IF('1. Ordersheet'!BJ600=\"\",\"\",'1. Ordersheet'!BJ600)","v":""},{"$f":"IF('1. Ordersheet'!BK600=\"\",\"\",'1. Ordersheet'!BK600)","v":""},{"$f":"IF('1. Ordersheet'!BL600=\"\",\"\",'1. Ordersheet'!BL600)","v":""}]
[{"$f":"IF('1. Ordersheet'!F601=\"\",\"\",'1. Ordersheet'!F601)","v":""},{"$f":"IF('1. Ordersheet'!G601=\"\",\"\",'1. Ordersheet'!G601)","v":""},{"$f":"IF('1. Ordersheet'!H601=\"\",\"\",'1. Ordersheet'!H601)","v":""},{"$f":"IF('1. Ordersheet'!I601=\"\",\"\",'1. Ordersheet'!I601)","v":""},{"$f":"IF('1. Ordersheet'!J601=\"\",\"\",'1. Ordersheet'!J601)","v":""},{"$f":"IF('1. Ordersheet'!K601=\"\",\"\",'1. Ordersheet'!K601)","v":""},{"$f":"IF('1. Ordersheet'!L601=\"\",\"\",'1. Ordersheet'!L601)","v":""},{"$f":"IF('1. Ordersheet'!M601=\"\",\"\",'1. Ordersheet'!M601)","v":""},{"$f":"IF('1. Ordersheet'!N601=\"\",\"\",'1. Ordersheet'!N601)","v":""},{"$f":"IF('1. Ordersheet'!O601=\"\",\"\",'1. Ordersheet'!O601)","v":{"$error":"#N/A"}},{"$f":"IF('1. Ordersheet'!P601=\"\",\"\",'1. Ordersheet'!P601)","v":{"$error":"#N/A"}},{"$f":"IF('1. Ordersheet'!Q601=\"\",\"\",'1. Ordersheet'!Q601)","v":""},{"$f":"IF('1. Ordersheet'!R601=\"\",\"\",'1. Ordersheet'!R601)","v":""},{"$f":"IF('1. Ordersheet'!S601=\"\",\"\",'1. Ordersheet'!S601)","v":""},{"$f":"IF('1. Ordersheet'!V601=\"\",\"\",'1. Ordersheet'!V601)","v":""},{"$f":"IF('1. Ordersheet'!W601=\"\",\"\",'1. Ordersheet'!W601)","v":""},{"$f":"IF('1. Ordersheet'!X601=\"\",\"\",'1. Ordersheet'!X601)","v":""},{"$f":"IF('1. Ordersheet'!Y601=\"\",\"\",'1. Ordersheet'!Y601)","v":""},{"$f":"IF('1. Ordersheet'!Z601=\"\",\"\",'1. Ordersheet'!Z601)","v":""},{"$f":"IF('1. Ordersheet'!AA601=\"\",\"\",'1. Ordersheet'!AA601)","v":""},null,{"$f":"IF('1. Ordersheet'!AS601=\"\",\"\",'1. Ordersheet'!AS601)","v":""},{"$f":"IF('1. Ordersheet'!AT601=\"\",\"\",'1. Ordersheet'!AT601)","v":""},null,null,null,null,null,null,null,{"$f":"IF('1. Ordersheet'!AX601=\"\",\"\",'1. Ordersheet'!AX601)","v":""},{"$f":"IF('1. Ordersheet'!AY601=\"\",\"\",'1. Ordersheet'!AY601)","v":""},{"$f":"IF('1. Ordersheet'!AZ601=\"\",\"\",'1. Ordersheet'!AZ601)","v":""},{"$f":"IF('1. Ordersheet'!BA601=\"\",\"\",'1. Ordersheet'!BA601)","v":""},{"$f":"IF('1. Ordersheet'!BC601=\"\",\"\",'1. Ordersheet'!BC601)","v":""},{"$f":"IF('1. Ordersheet'!BD601=\"\",\"\",'1. Ordersheet'!BD601)","v":""},{"$f":"IF('1. Ordersheet'!BE601=\"\",\"\",'1. Ordersheet'!BE601)","v":""},{"$f":"IF('1. Ordersheet'!BF601=\"\",\"\",'1. Ordersheet'!BF601)","v":""},{"$f":"IF('1. Ordersheet'!BG601=\"\",\"\",'1. Ordersheet'!BG601)","v":"ZWO"},{"$f":"IF('1. Ordersheet'!BH601=\"\",\"\",'1. Ordersheet'!BH601)","v":""},{"$f":"IF('1. Ordersheet'!BI601=\"\",\"\",'1. Ordersheet'!BI601)","v":""},{"$f":"IF('1. Ordersheet'!BJ601=\"\",\"\",'1. Ordersheet'!BJ601)","v":""},{"$f":"IF('1. Ordersheet'!BK601=\"\",\"\",'1. Ordersheet'!BK601)","v":""},{"$f":"IF('1. Ordersheet'!BL601=\"\",\"\",'1. Ordersheet'!BL601)","v":""}]
[{"$f":"IF('1. Ordersheet'!F602=\"\",\"\",'1. Ordersheet'!F602)","v":""},{"$f":"IF('1. Ordersheet'!G602=\"\",\"\",'1. Ordersheet'!G602)","v":""},{"$f":"IF('1. Ordersheet'!H602=\"\",\"\",'1. Ordersheet'!H602)","v":""},{"$f":"IF('1. Ordersheet'!I602=\"\",\"\",'1. Ordersheet'!I602)","v":""},{"$f":"IF('1. Ordersheet'!J602=\"\",\"\",'1. Ordersheet'!J602)","v":""},{"$f":"IF('1. Ordersheet'!K602=\"\",\"\",'1. Ordersheet'!K602)","v":""},{"$f":"IF('1. Ordersheet'!L602=\"\",\"\",'1. Ordersheet'!L602)","v":""},{"$f":"IF('1. Ordersheet'!M602=\"\",\"\",'1. Ordersheet'!M602)","v":""},{"$f":"IF('1. Ordersheet'!N602=\"\",\"\",'1. Ordersheet'!N602)","v":""},{"$f":"IF('1. Ordersheet'!O602=\"\",\"\",'1. Ordersheet'!O602)","v":{"$error":"#N/A"}},{"$f":"IF('1. Ordersheet'!P602=\"\",\"\",'1. Ordersheet'!P602)","v":{"$error":"#N/A"}},{"$f":"IF('1. Ordersheet'!Q602=\"\",\"\",'1. Ordersheet'!Q602)","v":""},{"$f":"IF('1. Ordersheet'!R602=\"\",\"\",'1. Ordersheet'!R602)","v":""},{"$f":"IF('1. Ordersheet'!S602=\"\",\"\",'1. Ordersheet'!S602)","v":""},{"$f":"IF('1. Ordersheet'!V602=\"\",\"\",'1. Ordersheet'!V602)","v":""},{"$f":"IF('1. Ordersheet'!W602=\"\",\"\",'1. Ordersheet'!W602)","v":""},{"$f":"IF('1. Ordersheet'!X602=\"\",\"\",'1. Ordersheet'!X602)","v":""},{"$f":"IF('1. Ordersheet'!Y602=\"\",\"\",'1. Ordersheet'!Y602)","v":""},{"$f":"IF('1. Ordersheet'!Z602=\"\",\"\",'1. Ordersheet'!Z602)","v":""},{"$f":"IF('1. Ordersheet'!AA602=\"\",\"\",'1. Ordersheet'!AA602)","v":""},null,{"$f":"IF('1. Ordersheet'!AS602=\"\",\"\",'1. Ordersheet'!AS602)","v":""},{"$f":"IF('1. Ordersheet'!AT602=\"\",\"\",'1. Ordersheet'!AT602)","v":""},null,null,null,null,null,null,null,{"$f":"IF('1. Ordersheet'!AX602=\"\",\"\",'1. Ordersheet'!AX602)","v":""},{"$f":"IF('1. Ordersheet'!AY602=\"\",\"\",'1. Ordersheet'!AY602)","v":""},{"$f":"IF('1. Ordersheet'!AZ602=\"\",\"\",'1. Ordersheet'!AZ602)","v":""},{"$f":"IF('1. Ordersheet'!BA602=\"\",\"\",'1. Ordersheet'!BA602)","v":""},{"$f":"IF('1. Ordersheet'!BC602=\"\",\"\",'1. Ordersheet'!BC602)","v":""},{"$f":"IF('1. Ordersheet'!BD602=\"\",\"\",'1. Ordersheet'!BD602)","v":""},{"$f":"IF('1. Ordersheet'!BE602=\"\",\"\",'1. Ordersheet'!BE602)","v":""},{"$f":"IF('1. Ordersheet'!BF602=\"\",\"\",'1. Ordersheet'!BF602)","v":""},{"$f":"IF('1. Ordersheet'!BG602=\"\",\"\",'1. Ordersheet'!BG602)","v":"ZWO"},{"$f":"IF('1. Ordersheet'!BH602=\"\",\"\",'1. Ordersheet'!BH602)","v":""},{"$f":"IF('1. Ordersheet'!BI602=\"\",\"\",'1. Ordersheet'!BI602)","v":""},{"$f":"IF('1. Ordersheet'!BJ602=\"\",\"\",'1. Ordersheet'!BJ602)","v":""},{"$f":"IF('1. Ordersheet'!BK602=\"\",\"\",'1. Ordersheet'!BK602)","v":""},{"$f":"IF('1. Ordersheet'!BL602=\"\",\"\",'1. Ordersheet'!BL602)","v":""}]
[{"$f":"IF('1. Ordersheet'!F603=\"\",\"\",'1. Ordersheet'!F603)","v":""},{"$f":"IF('1. Ordersheet'!G603=\"\",\"\",'1. Ordersheet'!G603)","v":""},{"$f":"IF('1. Ordersheet'!H603=\"\",\"\",'1. Ordersheet'!H603)","v":""},{"$f":"IF('1. Ordersheet'!I603=\"\",\"\",'1. Ordersheet'!I603)","v":""},{"$f":"IF('1. Ordersheet'!J603=\"\",\"\",'1. Ordersheet'!J603)","v":""},{"$f":"IF('1. Ordersheet'!K603=\"\",\"\",'1. Ordersheet'!K603)","v":""},{"$f":"IF('1. Ordersheet'!L603=\"\",\"\",'1. Ordersheet'!L603)","v":""},{"$f":"IF('1. Ordersheet'!M603=\"\",\"\",'1. Ordersheet'!M603)","v":""},{"$f":"IF('1. Ordersheet'!N603=\"\",\"\",'1. Ordersheet'!N603)","v":""},{"$f":"IF('1. Ordersheet'!O603=\"\",\"\",'1. Ordersheet'!O603)","v":{"$error":"#N/A"}},{"$f":"IF('1. Ordersheet'!P603=\"\",\"\",'1. Ordersheet'!P603)","v":{"$error":"#N/A"}},{"$f":"IF('1. Ordersheet'!Q603=\"\",\"\",'1. Ordersheet'!Q603)","v":""},{"$f":"IF('1. Ordersheet'!R603=\"\",\"\",'1. Ordersheet'!R603)","v":""},{"$f":"IF('1. Ordersheet'!S603=\"\",\"\",'1. Ordersheet'!S603)","v":""},{"$f":"IF('1. Ordersheet'!V603=\"\",\"\",'1. Ordersheet'!V603)","v":""},{"$f":"IF('1. Ordersheet'!W603=\"\",\"\",'1. Ordersheet'!W603)","v":""},{"$f":"IF('1. Ordersheet'!X603=\"\",\"\",'1. Ordersheet'!X603)","v":""},{"$f":"IF('1. Ordersheet'!Y603=\"\",\"\",'1. Ordersheet'!Y603)","v":""},{"$f":"IF('1. Ordersheet'!Z603=\"\",\"\",'1. Ordersheet'!Z603)","v":""},{"$f":"IF('1. Ordersheet'!AA603=\"\",\"\",'1. Ordersheet'!AA603)","v":""},null,{"$f":"IF('1. Ordersheet'!AS603=\"\",\"\",'1. Ordersheet'!AS603)","v":""},{"$f":"IF('1. Ordersheet'!AT603=\"\",\"\",'1. Ordersheet'!AT603)","v":""},null,null,null,null,null,null,null,{"$f":"IF('1. Ordersheet'!AX603=\"\",\"\",'1. Ordersheet'!AX603)","v":""},{"$f":"IF('1. Ordersheet'!AY603=\"\",\"\",'1. Ordersheet'!AY603)","v":""},{"$f":"IF('1. Ordersheet'!AZ603=\"\",\"\",'1. Ordersheet'!AZ603)","v":""},{"$f":"IF('1. Ordersheet'!BA603=\"\",\"\",'1. Ordersheet'!BA603)","v":""},{"$f":"IF('1. Ordersheet'!BC603=\"\",\"\",'1. Ordersheet'!BC603)","v":""},{"$f":"IF('1. Ordersheet'!BD603=\"\",\"\",'1. Ordersheet'!BD603)","v":""},{"$f":"IF('1. Ordersheet'!BE603=\"\",\"\",'1. Ordersheet'!BE603)","v":""},{"$f":"IF('1. Ordersheet'!BF603=\"\",\"\",'1. Ordersheet'!BF603)","v":""},{"$f":"IF('1. Ordersheet'!BG603=\"\",\"\",'1. Ordersheet'!BG603)","v":"ZWO"},{"$f":"IF('1. Ordersheet'!BH603=\"\",\"\",'1. Ordersheet'!BH603)","v":""},{"$f":"IF('1. Ordersheet'!BI603=\"\",\"\",'1. Ordersheet'!BI603)","v":""},{"$f":"IF('1. Ordersheet'!BJ603=\"\",\"\",'1. Ordersheet'!BJ603)","v":""},{"$f":"IF('1. Ordersheet'!BK603=\"\",\"\",'1. Ordersheet'!BK603)","v":""},{"$f":"IF('1. Ordersheet'!BL603=\"\",\"\",'1. Ordersheet'!BL603)","v":""}]
[{"$f":"IF('1. Ordersheet'!F604=\"\",\"\",'1. Ordersheet'!F604)","v":""},{"$f":"IF('1. Ordersheet'!G604=\"\",\"\",'1. Ordersheet'!G604)","v":""},{"$f":"IF('1. Ordersheet'!H604=\"\",\"\",'1. Ordersheet'!H604)","v":""},{"$f":"IF('1. Ordersheet'!I604=\"\",\"\",'1. Ordersheet'!I604)","v":""},{"$f":"IF('1. Ordersheet'!J604=\"\",\"\",'1. Ordersheet'!J604)","v":""},{"$f":"IF('1. Ordersheet'!K604=\"\",\"\",'1. Ordersheet'!K604)","v":""},{"$f":"IF('1. Ordersheet'!L604=\"\",\"\",'1. Ordersheet'!L604)","v":""},{"$f":"IF('1. Ordersheet'!M604=\"\",\"\",'1. Ordersheet'!M604)","v":""},{"$f":"IF('1. Ordersheet'!N604=\"\",\"\",'1. Ordersheet'!N604)","v":""},{"$f":"IF('1. Ordersheet'!O604=\"\",\"\",'1. Ordersheet'!O604)","v":{"$error":"#N/A"}},{"$f":"IF('1. Ordersheet'!P604=\"\",\"\",'1. Ordersheet'!P604)","v":{"$error":"#N/A"}},{"$f":"IF('1. Ordersheet'!Q604=\"\",\"\",'1. Ordersheet'!Q604)","v":""},{"$f":"IF('1. Ordersheet'!R604=\"\",\"\",'1. Ordersheet'!R604)","v":""},{"$f":"IF('1. Ordersheet'!S604=\"\",\"\",'1. Ordersheet'!S604)","v":""},{"$f":"IF('1. Ordersheet'!V604=\"\",\"\",'1. Ordersheet'!V604)","v":""},{"$f":"IF('1. Ordersheet'!W604=\"\",\"\",'1. Ordersheet'!W604)","v":""},{"$f":"IF('1. Ordersheet'!X604=\"\",\"\",'1. Ordersheet'!X604)","v":""},{"$f":"IF('1. Ordersheet'!Y604=\"\",\"\",'1. Ordersheet'!Y604)","v":""},{"$f":"IF('1. Ordersheet'!Z604=\"\",\"\",'1. Ordersheet'!Z604)","v":""},{"$f":"IF('1. Ordersheet'!AA604=\"\",\"\",'1. Ordersheet'!AA604)","v":""},null,{"$f":"IF('1. Ordersheet'!AS604=\"\",\"\",'1. Ordersheet'!AS604)","v":""},{"$f":"IF('1. Ordersheet'!AT604=\"\",\"\",'1. Ordersheet'!AT604)","v":""},null,null,null,null,null,null,null,{"$f":"IF('1. Ordersheet'!AX604=\"\",\"\",'1. Ordersheet'!AX604)","v":""},{"$f":"IF('1. Ordersheet'!AY604=\"\",\"\",'1. Ordersheet'!AY604)","v":""},{"$f":"IF('1. Ordersheet'!AZ604=\"\",\"\",'1. Ordersheet'!AZ604)","v":""},{"$f":"IF('1. Ordersheet'!BA604=\"\",\"\",'1. Ordersheet'!BA604)","v":""},{"$f":"IF('1. Ordersheet'!BC604=\"\",\"\",'1. Ordersheet'!BC604)","v":""},{"$f":"IF('1. Ordersheet'!BD604=\"\",\"\",'1. Ordersheet'!BD604)","v":""},{"$f":"IF('1. Ordersheet'!BE604=\"\",\"\",'1. Ordersheet'!BE604)","v":""},{"$f":"IF('1. Ordersheet'!BF604=\"\",\"\",'1. Ordersheet'!BF604)","v":""},{"$f":"IF('1. Ordersheet'!BG604=\"\",\"\",'1. Ordersheet'!BG604)","v":"ZWO"},{"$f":"IF('1. Ordersheet'!BH604=\"\",\"\",'1. Ordersheet'!BH604)","v":""},{"$f":"IF('1. Ordersheet'!BI604=\"\",\"\",'1. Ordersheet'!BI604)","v":""},{"$f":"IF('1. Ordersheet'!BJ604=\"\",\"\",'1. Ordersheet'!BJ604)","v":""},{"$f":"IF('1. Ordersheet'!BK604=\"\",\"\",'1. Ordersheet'!BK604)","v":""},{"$f":"IF('1. Ordersheet'!BL604=\"\",\"\",'1. Ordersheet'!BL604)","v":""}]
[{"$f":"IF('1. Ordersheet'!F605=\"\",\"\",'1. Ordersheet'!F605)","v":""},{"$f":"IF('1. Ordersheet'!G605=\"\",\"\",'1. Ordersheet'!G605)","v":""},{"$f":"IF('1. Ordersheet'!H605=\"\",\"\",'1. Ordersheet'!H605)","v":""},{"$f":"IF('1. Ordersheet'!I605=\"\",\"\",'1. Ordersheet'!I605)","v":""},{"$f":"IF('1. Ordersheet'!J605=\"\",\"\",'1. Ordersheet'!J605)","v":""},{"$f":"IF('1. Ordersheet'!K605=\"\",\"\",'1. Ordersheet'!K605)","v":""},{"$f":"IF('1. Ordersheet'!L605=\"\",\"\",'1. Ordersheet'!L605)","v":""},{"$f":"IF('1. Ordersheet'!M605=\"\",\"\",'1. Ordersheet'!M605)","v":""},{"$f":"IF('1. Ordersheet'!N605=\"\",\"\",'1. Ordersheet'!N605)","v":""},{"$f":"IF('1. Ordersheet'!O605=\"\",\"\",'1. Ordersheet'!O605)","v":{"$error":"#N/A"}},{"$f":"IF('1. Ordersheet'!P605=\"\",\"\",'1. Ordersheet'!P605)","v":{"$error":"#N/A"}},{"$f":"IF('1. Ordersheet'!Q605=\"\",\"\",'1. Ordersheet'!Q605)","v":""},{"$f":"IF('1. Ordersheet'!R605=\"\",\"\",'1. Ordersheet'!R605)","v":""},{"$f":"IF('1. Ordersheet'!S605=\"\",\"\",'1. Ordersheet'!S605)","v":""},{"$f":"IF('1. Ordersheet'!V605=\"\",\"\",'1. Ordersheet'!V605)","v":""},{"$f":"IF('1. Ordersheet'!W605=\"\",\"\",'1. Ordersheet'!W605)","v":""},{"$f":"IF('1. Ordersheet'!X605=\"\",\"\",'1. Ordersheet'!X605)","v":""},{"$f":"IF('1. Ordersheet'!Y605=\"\",\"\",'1. Ordersheet'!Y605)","v":""},{"$f":"IF('1. Ordersheet'!Z605=\"\",\"\",'1. Ordersheet'!Z605)","v":""},{"$f":"IF('1. Ordersheet'!AA605=\"\",\"\",'1. Ordersheet'!AA605)","v":""},null,{"$f":"IF('1. Ordersheet'!AS605=\"\",\"\",'1. Ordersheet'!AS605)","v":""},{"$f":"IF('1. Ordersheet'!AT605=\"\",\"\",'1. Ordersheet'!AT605)","v":""},null,null,null,null,null,null,null,{"$f":"IF('1. Ordersheet'!AX605=\"\",\"\",'1. Ordersheet'!AX605)","v":""},{"$f":"IF('1. Ordersheet'!AY605=\"\",\"\",'1. Ordersheet'!AY605)","v":""},{"$f":"IF('1. Ordersheet'!AZ605=\"\",\"\",'1. Ordersheet'!AZ605)","v":""},{"$f":"IF('1. Ordersheet'!BA605=\"\",\"\",'1. Ordersheet'!BA605)","v":""},{"$f":"IF('1. Ordersheet'!BC605=\"\",\"\",'1. Ordersheet'!BC605)","v":""},{"$f":"IF('1. Ordersheet'!BD605=\"\",\"\",'1. Ordersheet'!BD605)","v":""},{"$f":"IF('1. Ordersheet'!BE605=\"\",\"\",'1. Ordersheet'!BE605)","v":""},{"$f":"IF('1. Ordersheet'!BF605=\"\",\"\",'1. Ordersheet'!BF605)","v":""},{"$f":"IF('1. Ordersheet'!BG605=\"\",\"\",'1. Ordersheet'!BG605)","v":"ZWO"},{"$f":"IF('1. Ordersheet'!BH605=\"\",\"\",'1. Ordersheet'!BH605)","v":""},{"$f":"IF('1. Ordersheet'!BI605=\"\",\"\",'1. Ordersheet'!BI605)","v":""},{"$f":"IF('1. Ordersheet'!BJ605=\"\",\"\",'1. Ordersheet'!BJ605)","v":""},{"$f":"IF('1. Ordersheet'!BK605=\"\",\"\",'1. Ordersheet'!BK605)","v":""},{"$f":"IF('1. Ordersheet'!BL605=\"\",\"\",'1. Ordersheet'!BL605)","v":""}]
[{"$f":"IF('1. Ordersheet'!F606=\"\",\"\",'1. Ordersheet'!F606)","v":""},{"$f":"IF('1. Ordersheet'!G606=\"\",\"\",'1. Ordersheet'!G606)","v":""},{"$f":"IF('1. Ordersheet'!H606=\"\",\"\",'1. Ordersheet'!H606)","v":""},{"$f":"IF('1. Ordersheet'!I606=\"\",\"\",'1. Ordersheet'!I606)","v":""},{"$f":"IF('1. Ordersheet'!J606=\"\",\"\",'1. Ordersheet'!J606)","v":""},{"$f":"IF('1. Ordersheet'!K606=\"\",\"\",'1. Ordersheet'!K606)","v":""},{"$f":"IF('1. Ordersheet'!L606=\"\",\"\",'1. Ordersheet'!L606)","v":""},{"$f":"IF('1. Ordersheet'!M606=\"\",\"\",'1. Ordersheet'!M606)","v":""},{"$f":"IF('1. Ordersheet'!N606=\"\",\"\",'1. Ordersheet'!N606)","v":""},{"$f":"IF('1. Ordersheet'!O606=\"\",\"\",'1. Ordersheet'!O606)","v":{"$error":"#N/A"}},{"$f":"IF('1. Ordersheet'!P606=\"\",\"\",'1. Ordersheet'!P606)","v":{"$error":"#N/A"}},{"$f":"IF('1. Ordersheet'!Q606=\"\",\"\",'1. Ordersheet'!Q606)","v":""},{"$f":"IF('1. Ordersheet'!R606=\"\",\"\",'1. Ordersheet'!R606)","v":""},{"$f":"IF('1. Ordersheet'!S606=\"\",\"\",'1. Ordersheet'!S606)","v":""},{"$f":"IF('1. Ordersheet'!V606=\"\",\"\",'1. Ordersheet'!V606)","v":""},{"$f":"IF('1. Ordersheet'!W606=\"\",\"\",'1. Ordersheet'!W606)","v":""},{"$f":"IF('1. Ordersheet'!X606=\"\",\"\",'1. Ordersheet'!X606)","v":""},{"$f":"IF('1. Ordersheet'!Y606=\"\",\"\",'1. Ordersheet'!Y606)","v":""},{"$f":"IF('1. Ordersheet'!Z606=\"\",\"\",'1. Ordersheet'!Z606)","v":""},{"$f":"IF('1. Ordersheet'!AA606=\"\",\"\",'1. Ordersheet'!AA606)","v":""},null,{"$f":"IF('1. Ordersheet'!AS606=\"\",\"\",'1. Ordersheet'!AS606)","v":""},{"$f":"IF('1. Ordersheet'!AT606=\"\",\"\",'1. Ordersheet'!AT606)","v":""},null,null,null,null,null,null,null,{"$f":"IF('1. Ordersheet'!AX606=\"\",\"\",'1. Ordersheet'!AX606)","v":""},{"$f":"IF('1. Ordersheet'!AY606=\"\",\"\",'1. Ordersheet'!AY606)","v":""},{"$f":"IF('1. Ordersheet'!AZ606=\"\",\"\",'1. Ordersheet'!AZ606)","v":""},{"$f":"IF('1. Ordersheet'!BA606=\"\",\"\",'1. Ordersheet'!BA606)","v":""},{"$f":"IF('1. Ordersheet'!BC606=\"\",\"\",'1. Ordersheet'!BC606)","v":""},{"$f":"IF('1. Ordersheet'!BD606=\"\",\"\",'1. Ordersheet'!BD606)","v":""},{"$f":"IF('1. Ordersheet'!BE606=\"\",\"\",'1. Ordersheet'!BE606)","v":""},{"$f":"IF('1. Ordersheet'!BF606=\"\",\"\",'1. Ordersheet'!BF606)","v":""},{"$f":"IF('1. Ordersheet'!BG606=\"\",\"\",'1. Ordersheet'!BG606)","v":"ZWO"},{"$f":"IF('1. Ordersheet'!BH606=\"\",\"\",'1. Ordersheet'!BH606)","v":""},{"$f":"IF('1. Ordersheet'!BI606=\"\",\"\",'1. Ordersheet'!BI606)","v":""},{"$f":"IF('1. Ordersheet'!BJ606=\"\",\"\",'1. Ordersheet'!BJ606)","v":""},{"$f":"IF('1. Ordersheet'!BK606=\"\",\"\",'1. Ordersheet'!BK606)","v":""},{"$f":"IF('1. Ordersheet'!BL606=\"\",\"\",'1. Ordersheet'!BL606)","v":""}]
[{"$f":"IF('1. Ordersheet'!F607=\"\",\"\",'1. Ordersheet'!F607)","v":""},{"$f":"IF('1. Ordersheet'!G607=\"\",\"\",'1. Ordersheet'!G607)","v":""},{"$f":"IF('1. Ordersheet'!H607=\"\",\"\",'1. Ordersheet'!H607)","v":""},{"$f":"IF('1. Ordersheet'!I607=\"\",\"\",'1. Ordersheet'!I607)","v":""},{"$f":"IF('1. Ordersheet'!J607=\"\",\"\",'1. Ordersheet'!J607)","v":""},{"$f":"IF('1. Ordersheet'!K607=\"\",\"\",'1. Ordersheet'!K607)","v":""},{"$f":"IF('1. Ordersheet'!L607=\"\",\"\",'1. Ordersheet'!L607)","v":""},{"$f":"IF('1. Ordersheet'!M607=\"\",\"\",'1. Ordersheet'!M607)","v":""},{"$f":"IF('1. Ordersheet'!N607=\"\",\"\",'1. Ordersheet'!N607)","v":""},{"$f":"IF('1. Ordersheet'!O607=\"\",\"\",'1. Ordersheet'!O607)","v":{"$error":"#N/A"}},{"$f":"IF('1. Ordersheet'!P607=\"\",\"\",'1. Ordersheet'!P607)","v":{"$error":"#N/A"}},{"$f":"IF('1. Ordersheet'!Q607=\"\",\"\",'1. Ordersheet'!Q607)","v":""},{"$f":"IF('1. Ordersheet'!R607=\"\",\"\",'1. Ordersheet'!R607)","v":""},{"$f":"IF('1. Ordersheet'!S607=\"\",\"\",'1. Ordersheet'!S607)","v":""},{"$f":"IF('1. Ordersheet'!V607=\"\",\"\",'1. Ordersheet'!V607)","v":""},{"$f":"IF('1. Ordersheet'!W607=\"\",\"\",'1. Ordersheet'!W607)","v":""},{"$f":"IF('1. Ordersheet'!X607=\"\",\"\",'1. Ordersheet'!X607)","v":""},{"$f":"IF('1. Ordersheet'!Y607=\"\",\"\",'1. Ordersheet'!Y607)","v":""},{"$f":"IF('1. Ordersheet'!Z607=\"\",\"\",'1. Ordersheet'!Z607)","v":""},{"$f":"IF('1. Ordersheet'!AA607=\"\",\"\",'1. Ordersheet'!AA607)","v":""},null,{"$f":"IF('1. Ordersheet'!AS607=\"\",\"\",'1. Ordersheet'!AS607)","v":""},{"$f":"IF('1. Ordersheet'!AT607=\"\",\"\",'1. Ordersheet'!AT607)","v":""},null,null,null,null,null,null,null,{"$f":"IF('1. Ordersheet'!AX607=\"\",\"\",'1. Ordersheet'!AX607)","v":""},{"$f":"IF('1. Ordersheet'!AY607=\"\",\"\",'1. Ordersheet'!AY607)","v":""},{"$f":"IF('1. Ordersheet'!AZ607=\"\",\"\",'1. Ordersheet'!AZ607)","v":""},{"$f":"IF('1. Ordersheet'!BA607=\"\",\"\",'1. Ordersheet'!BA607)","v":""},{"$f":"IF('1. Ordersheet'!BC607=\"\",\"\",'1. Ordersheet'!BC607)","v":""},{"$f":"IF('1. Ordersheet'!BD607=\"\",\"\",'1. Ordersheet'!BD607)","v":""},{"$f":"IF('1. Ordersheet'!BE607=\"\",\"\",'1. Ordersheet'!BE607)","v":""},{"$f":"IF('1. Ordersheet'!BF607=\"\",\"\",'1. Ordersheet'!BF607)","v":""},{"$f":"IF('1. Ordersheet'!BG607=\"\",\"\",'1. Ordersheet'!BG607)","v":"ZWO"},{"$f":"IF('1. Ordersheet'!BH607=\"\",\"\",'1. Ordersheet'!BH607)","v":""},{"$f":"IF('1. Ordersheet'!BI607=\"\",\"\",'1. Ordersheet'!BI607)","v":""},{"$f":"IF('1. Ordersheet'!BJ607=\"\",\"\",'1. Ordersheet'!BJ607)","v":""},{"$f":"IF('1. Ordersheet'!BK607=\"\",\"\",'1. Ordersheet'!BK607)","v":""},{"$f":"IF('1. Ordersheet'!BL607=\"\",\"\",'1. Ordersheet'!BL607)","v":""}]
[{"$f":"IF('1. Ordersheet'!F608=\"\",\"\",'1. Ordersheet'!F608)","v":""},{"$f":"IF('1. Ordersheet'!G608=\"\",\"\",'1. Ordersheet'!G608)","v":""},{"$f":"IF('1. Ordersheet'!H608=\"\",\"\",'1. Ordersheet'!H608)","v":""},{"$f":"IF('1. Ordersheet'!I608=\"\",\"\",'1. Ordersheet'!I608)","v":""},{"$f":"IF('1. Ordersheet'!J608=\"\",\"\",'1. Ordersheet'!J608)","v":""},{"$f":"IF('1. Ordersheet'!K608=\"\",\"\",'1. Ordersheet'!K608)","v":""},{"$f":"IF('1. Ordersheet'!L608=\"\",\"\",'1. Ordersheet'!L608)","v":""},{"$f":"IF('1. Ordersheet'!M608=\"\",\"\",'1. Ordersheet'!M608)","v":""},{"$f":"IF('1. Ordersheet'!N608=\"\",\"\",'1. Ordersheet'!N608)","v":""},{"$f":"IF('1. Ordersheet'!O608=\"\",\"\",'1. Ordersheet'!O608)","v":{"$error":"#N/A"}},{"$f":"IF('1. Ordersheet'!P608=\"\",\"\",'1. Ordersheet'!P608)","v":{"$error":"#N/A"}},{"$f":"IF('1. Ordersheet'!Q608=\"\",\"\",'1. Ordersheet'!Q608)","v":""},{"$f":"IF('1. Ordersheet'!R608=\"\",\"\",'1. Ordersheet'!R608)","v":""},{"$f":"IF('1. Ordersheet'!S608=\"\",\"\",'1. Ordersheet'!S608)","v":""},{"$f":"IF('1. Ordersheet'!V608=\"\",\"\",'1. Ordersheet'!V608)","v":""},{"$f":"IF('1. Ordersheet'!W608=\"\",\"\",'1. Ordersheet'!W608)","v":""},{"$f":"IF('1. Ordersheet'!X608=\"\",\"\",'1. Ordersheet'!X608)","v":""},{"$f":"IF('1. Ordersheet'!Y608=\"\",\"\",'1. Ordersheet'!Y608)","v":""},{"$f":"IF('1. Ordersheet'!Z608=\"\",\"\",'1. Ordersheet'!Z608)","v":""},{"$f":"IF('1. Ordersheet'!AA608=\"\",\"\",'1. Ordersheet'!AA608)","v":""},null,{"$f":"IF('1. Ordersheet'!AS608=\"\",\"\",'1. Ordersheet'!AS608)","v":""},{"$f":"IF('1. Ordersheet'!AT608=\"\",\"\",'1. Ordersheet'!AT608)","v":""},null,null,null,null,null,null,null,{"$f":"IF('1. Ordersheet'!AX608=\"\",\"\",'1. Ordersheet'!AX608)","v":""},{"$f":"IF('1. Ordersheet'!AY608=\"\",\"\",'1. Ordersheet'!AY608)","v":""},{"$f":"IF('1. Ordersheet'!AZ608=\"\",\"\",'1. Ordersheet'!AZ608)","v":""},{"$f":"IF('1. Ordersheet'!BA608=\"\",\"\",'1. Ordersheet'!BA608)","v":""},{"$f":"IF('1. Ordersheet'!BC608=\"\",\"\",'1. Ordersheet'!BC608)","v":""},{"$f":"IF('1. Ordersheet'!BD608=\"\",\"\",'1. Ordersheet'!BD608)","v":""},{"$f":"IF('1. Ordersheet'!BE608=\"\",\"\",'1. Ordersheet'!BE608)","v":""},{"$f":"IF('1. Ordersheet'!BF608=\"\",\"\",'1. Ordersheet'!BF608)","v":""},{"$f":"IF('1. Ordersheet'!BG608=\"\",\"\",'1. Ordersheet'!BG608)","v":"ZWO"},{"$f":"IF('1. Ordersheet'!BH608=\"\",\"\",'1. Ordersheet'!BH608)","v":""},{"$f":"IF('1. Ordersheet'!BI608=\"\",\"\",'1. Ordersheet'!BI608)","v":""},{"$f":"IF('1. Ordersheet'!BJ608=\"\",\"\",'1. Ordersheet'!BJ608)","v":""},{"$f":"IF('1. Ordersheet'!BK608=\"\",\"\",'1. Ordersheet'!BK608)","v":""},{"$f":"IF('1. Ordersheet'!BL608=\"\",\"\",'1. Ordersheet'!BL608)","v":""}]
[{"$f":"IF('1. Ordersheet'!F609=\"\",\"\",'1. Ordersheet'!F609)","v":""},{"$f":"IF('1. Ordersheet'!G609=\"\",\"\",'1. Ordersheet'!G609)","v":""},{"$f":"IF('1. Ordersheet'!H609=\"\",\"\",'1. Ordersheet'!H609)","v":""},{"$f":"IF('1. Ordersheet'!I609=\"\",\"\",'1. Ordersheet'!I609)","v":""},{"$f":"IF('1. Ordersheet'!J609=\"\",\"\",'1. Ordersheet'!J609)","v":""},{"$f":"IF('1. Ordersheet'!K609=\"\",\"\",'1. Ordersheet'!K609)","v":""},{"$f":"IF('1. Ordersheet'!L609=\"\",\"\",'1. Ordersheet'!L609)","v":""},{"$f":"IF('1. Ordersheet'!M609=\"\",\"\",'1. Ordersheet'!M609)","v":""},{"$f":"IF('1. Ordersheet'!N609=\"\",\"\",'1. Ordersheet'!N609)","v":""},{"$f":"IF('1. Ordersheet'!O609=\"\",\"\",'1. Ordersheet'!O609)","v":{"$error":"#N/A"}},{"$f":"IF('1. Ordersheet'!P609=\"\",\"\",'1. Ordersheet'!P609)","v":{"$error":"#N/A"}},{"$f":"IF('1. Ordersheet'!Q609=\"\",\"\",'1. Ordersheet'!Q609)","v":""},{"$f":"IF('1. Ordersheet'!R609=\"\",\"\",'1. Ordersheet'!R609)","v":""},{"$f":"IF('1. Ordersheet'!S609=\"\",\"\",'1. Ordersheet'!S609)","v":""},{"$f":"IF('1. Ordersheet'!V609=\"\",\"\",'1. Ordersheet'!V609)","v":""},{"$f":"IF('1. Ordersheet'!W609=\"\",\"\",'1. Ordersheet'!W609)","v":""},{"$f":"IF('1. Ordersheet'!X609=\"\",\"\",'1. Ordersheet'!X609)","v":""},{"$f":"IF('1. Ordersheet'!Y609=\"\",\"\",'1. Ordersheet'!Y609)","v":""},{"$f":"IF('1. Ordersheet'!Z609=\"\",\"\",'1. Ordersheet'!Z609)","v":""},{"$f":"IF('1. Ordersheet'!AA609=\"\",\"\",'1. Ordersheet'!AA609)","v":""},null,{"$f":"IF('1. Ordersheet'!AS609=\"\",\"\",'1. Ordersheet'!AS609)","v":""},{"$f":"IF('1. Ordersheet'!AT609=\"\",\"\",'1. Ordersheet'!AT609)","v":""},null,null,null,null,null,null,null,{"$f":"IF('1. Ordersheet'!AX609=\"\",\"\",'1. Ordersheet'!AX609)","v":""},{"$f":"IF('1. Ordersheet'!AY609=\"\",\"\",'1. Ordersheet'!AY609)","v":""},{"$f":"IF('1. Ordersheet'!AZ609=\"\",\"\",'1. Ordersheet'!AZ609)","v":""},{"$f":"IF('1. Ordersheet'!BA609=\"\",\"\",'1. Ordersheet'!BA609)","v":""},{"$f":"IF('1. Ordersheet'!BC609=\"\",\"\",'1. Ordersheet'!BC609)","v":""},{"$f":"IF('1. Ordersheet'!BD609=\"\",\"\",'1. Ordersheet'!BD609)","v":""},{"$f":"IF('1. Ordersheet'!BE609=\"\",\"\",'1. Ordersheet'!BE609)","v":""},{"$f":"IF('1. Ordersheet'!BF609=\"\",\"\",'1. Ordersheet'!BF609)","v":""},{"$f":"IF('1. Ordersheet'!BG609=\"\",\"\",'1. Ordersheet'!BG609)","v":"ZWO"},{"$f":"IF('1. Ordersheet'!BH609=\"\",\"\",'1. Ordersheet'!BH609)","v":""},{"$f":"IF('1. Ordersheet'!BI609=\"\",\"\",'1. Ordersheet'!BI609)","v":""},{"$f":"IF('1. Ordersheet'!BJ609=\"\",\"\",'1. Ordersheet'!BJ609)","v":""},{"$f":"IF('1. Ordersheet'!BK609=\"\",\"\",'1. Ordersheet'!BK609)","v":""},{"$f":"IF('1. Ordersheet'!BL609=\"\",\"\",'1. Ordersheet'!BL609)","v":""}]
[{"$f":"IF('1. Ordersheet'!F610=\"\",\"\",'1. Ordersheet'!F610)","v":""},{"$f":"IF('1. Ordersheet'!G610=\"\",\"\",'1. Ordersheet'!G610)","v":""},{"$f":"IF('1. Ordersheet'!H610=\"\",\"\",'1. Ordersheet'!H610)","v":""},{"$f":"IF('1. Ordersheet'!I610=\"\",\"\",'1. Ordersheet'!I610)","v":""},{"$f":"IF('1. Ordersheet'!J610=\"\",\"\",'1. Ordersheet'!J610)","v":""},{"$f":"IF('1. Ordersheet'!K610=\"\",\"\",'1. Ordersheet'!K610)","v":""},{"$f":"IF('1. Ordersheet'!L610=\"\",\"\",'1. Ordersheet'!L610)","v":""},{"$f":"IF('1. Ordersheet'!M610=\"\",\"\",'1. Ordersheet'!M610)","v":""},{"$f":"IF('1. Ordersheet'!N610=\"\",\"\",'1. Ordersheet'!N610)","v":""},{"$f":"IF('1. Ordersheet'!O610=\"\",\"\",'1. Ordersheet'!O610)","v":{"$error":"#N/A"}},{"$f":"IF('1. Ordersheet'!P610=\"\",\"\",'1. Ordersheet'!P610)","v":{"$error":"#N/A"}},{"$f":"IF('1. Ordersheet'!Q610=\"\",\"\",'1. Ordersheet'!Q610)","v":""},{"$f":"IF('1. Ordersheet'!R610=\"\",\"\",'1. Ordersheet'!R610)","v":""},{"$f":"IF('1. Ordersheet'!S610=\"\",\"\",'1. Ordersheet'!S610)","v":""},{"$f":"IF('1. Ordersheet'!V610=\"\",\"\",'1. Ordersheet'!V610)","v":""},{"$f":"IF('1. Ordersheet'!W610=\"\",\"\",'1. Ordersheet'!W610)","v":""},{"$f":"IF('1. Ordersheet'!X610=\"\",\"\",'1. Ordersheet'!X610)","v":""},{"$f":"IF('1. Ordersheet'!Y610=\"\",\"\",'1. Ordersheet'!Y610)","v":""},{"$f":"IF('1. Ordersheet'!Z610=\"\",\"\",'1. Ordersheet'!Z610)","v":""},{"$f":"IF('1. Ordersheet'!AA610=\"\",\"\",'1. Ordersheet'!AA610)","v":""},null,{"$f":"IF('1. Ordersheet'!AS610=\"\",\"\",'1. Ordersheet'!AS610)","v":""},{"$f":"IF('1. Ordersheet'!AT610=\"\",\"\",'1. Ordersheet'!AT610)","v":""},null,null,null,null,null,null,null,{"$f":"IF('1. Ordersheet'!AX610=\"\",\"\",'1. Ordersheet'!AX610)","v":""},{"$f":"IF('1. Ordersheet'!AY610=\"\",\"\",'1. Ordersheet'!AY610)","v":""},{"$f":"IF('1. Ordersheet'!AZ610=\"\",\"\",'1. Ordersheet'!AZ610)","v":""},{"$f":"IF('1. Ordersheet'!BA610=\"\",\"\",'1. Ordersheet'!BA610)","v":""},{"$f":"IF('1. Ordersheet'!BC610=\"\",\"\",'1. Ordersheet'!BC610)","v":""},{"$f":"IF('1. Ordersheet'!BD610=\"\",\"\",'1. Ordersheet'!BD610)","v":""},{"$f":"IF('1. Ordersheet'!BE610=\"\",\"\",'1. Ordersheet'!BE610)","v":""},{"$f":"IF('1. Ordersheet'!BF610=\"\",\"\",'1. Ordersheet'!BF610)","v":""},{"$f":"IF('1. Ordersheet'!BG610=\"\",\"\",'1. Ordersheet'!BG610)","v":"ZWO"},{"$f":"IF('1. Ordersheet'!BH610=\"\",\"\",'1. Ordersheet'!BH610)","v":""},{"$f":"IF('1. Ordersheet'!BI610=\"\",\"\",'1. Ordersheet'!BI610)","v":""},{"$f":"IF('1. Ordersheet'!BJ610=\"\",\"\",'1. Ordersheet'!BJ610)","v":""},{"$f":"IF('1. Ordersheet'!BK610=\"\",\"\",'1. Ordersheet'!BK610)","v":""},{"$f":"IF('1. Ordersheet'!BL610=\"\",\"\",'1. Ordersheet'!BL610)","v":""}]
[{"$f":"IF('1. Ordersheet'!F611=\"\",\"\",'1. Ordersheet'!F611)","v":""},{"$f":"IF('1. Ordersheet'!G611=\"\",\"\",'1. Ordersheet'!G611)","v":""},{"$f":"IF('1. Ordersheet'!H611=\"\",\"\",'1. Ordersheet'!H611)","v":""},{"$f":"IF('1. Ordersheet'!I611=\"\",\"\",'1. Ordersheet'!I611)","v":""},{"$f":"IF('1. Ordersheet'!J611=\"\",\"\",'1. Ordersheet'!J611)","v":""},{"$f":"IF('1. Ordersheet'!K611=\"\",\"\",'1. Ordersheet'!K611)","v":""},{"$f":"IF('1. Ordersheet'!L611=\"\",\"\",'1. Ordersheet'!L611)","v":""},{"$f":"IF('1. Ordersheet'!M611=\"\",\"\",'1. Ordersheet'!M611)","v":""},{"$f":"IF('1. Ordersheet'!N611=\"\",\"\",'1. Ordersheet'!N611)","v":""},{"$f":"IF('1. Ordersheet'!O611=\"\",\"\",'1. Ordersheet'!O611)","v":{"$error":"#N/A"}},{"$f":"IF('1. Ordersheet'!P611=\"\",\"\",'1. Ordersheet'!P611)","v":{"$error":"#N/A"}},{"$f":"IF('1. Ordersheet'!Q611=\"\",\"\",'1. Ordersheet'!Q611)","v":""},{"$f":"IF('1. Ordersheet'!R611=\"\",\"\",'1. Ordersheet'!R611)","v":""},{"$f":"IF('1. Ordersheet'!S611=\"\",\"\",'1. Ordersheet'!S611)","v":""},{"$f":"IF('1. Ordersheet'!V611=\"\",\"\",'1. Ordersheet'!V611)","v":""},{"$f":"IF('1. Ordersheet'!W611=\"\",\"\",'1. Ordersheet'!W611)","v":""},{"$f":"IF('1. Ordersheet'!X611=\"\",\"\",'1. Ordersheet'!X611)","v":""},{"$f":"IF('1. Ordersheet'!Y611=\"\",\"\",'1. Ordersheet'!Y611)","v":""},{"$f":"IF('1. Ordersheet'!Z611=\"\",\"\",'1. Ordersheet'!Z611)","v":""},{"$f":"IF('1. Ordersheet'!AA611=\"\",\"\",'1. Ordersheet'!AA611)","v":""},null,{"$f":"IF('1. Ordersheet'!AS611=\"\",\"\",'1. Ordersheet'!AS611)","v":""},{"$f":"IF('1. Ordersheet'!AT611=\"\",\"\",'1. Ordersheet'!AT611)","v":""},null,null,null,null,null,null,null,{"$f":"IF('1. Ordersheet'!AX611=\"\",\"\",'1. Ordersheet'!AX611)","v":""},{"$f":"IF('1. Ordersheet'!AY611=\"\",\"\",'1. Ordersheet'!AY611)","v":""},{"$f":"IF('1. Ordersheet'!AZ611=\"\",\"\",'1. Ordersheet'!AZ611)","v":""},{"$f":"IF('1. Ordersheet'!BA611=\"\",\"\",'1. Ordersheet'!BA611)","v":""},{"$f":"IF('1. Ordersheet'!BC611=\"\",\"\",'1. Ordersheet'!BC611)","v":""},{"$f":"IF('1. Ordersheet'!BD611=\"\",\"\",'1. Ordersheet'!BD611)","v":""},{"$f":"IF('1. Ordersheet'!BE611=\"\",\"\",'1. Ordersheet'!BE611)","v":""},{"$f":"IF('1. Ordersheet'!BF611=\"\",\"\",'1. Ordersheet'!BF611)","v":""},{"$f":"IF('1. Ordersheet'!BG611=\"\",\"\",'1. Ordersheet'!BG611)","v":"ZWO"},{"$f":"IF('1. Ordersheet'!BH611=\"\",\"\",'1. Ordersheet'!BH611)","v":""},{"$f":"IF('1. Ordersheet'!BI611=\"\",\"\",'1. Ordersheet'!BI611)","v":""},{"$f":"IF('1. Ordersheet'!BJ611=\"\",\"\",'1. Ordersheet'!BJ611)","v":""},{"$f":"IF('1. Ordersheet'!BK611=\"\",\"\",'1. Ordersheet'!BK611)","v":""},{"$f":"IF('1. Ordersheet'!BL611=\"\",\"\",'1. Ordersheet'!BL611)","v":""}]
[{"$f":"IF('1. Ordersheet'!F612=\"\",\"\",'1. Ordersheet'!F612)","v":""},{"$f":"IF('1. Ordersheet'!G612=\"\",\"\",'1. Ordersheet'!G612)","v":""},{"$f":"IF('1. Ordersheet'!H612=\"\",\"\",'1. Ordersheet'!H612)","v":""},{"$f":"IF('1. Ordersheet'!I612=\"\",\"\",'1. Ordersheet'!I612)","v":""},{"$f":"IF('1. Ordersheet'!J612=\"\",\"\",'1. Ordersheet'!J612)","v":""},{"$f":"IF('1. Ordersheet'!K612=\"\",\"\",'1. Ordersheet'!K612)","v":""},{"$f":"IF('1. Ordersheet'!L612=\"\",\"\",'1. Ordersheet'!L612)","v":""},{"$f":"IF('1. Ordersheet'!M612=\"\",\"\",'1. Ordersheet'!M612)","v":""},{"$f":"IF('1. Ordersheet'!N612=\"\",\"\",'1. Ordersheet'!N612)","v":""},{"$f":"IF('1. Ordersheet'!O612=\"\",\"\",'1. Ordersheet'!O612)","v":{"$error":"#N/A"}},{"$f":"IF('1. Ordersheet'!P612=\"\",\"\",'1. Ordersheet'!P612)","v":{"$error":"#N/A"}},{"$f":"IF('1. Ordersheet'!Q612=\"\",\"\",'1. Ordersheet'!Q612)","v":""},{"$f":"IF('1. Ordersheet'!R612=\"\",\"\",'1. Ordersheet'!R612)","v":""},{"$f":"IF('1. Ordersheet'!S612=\"\",\"\",'1. Ordersheet'!S612)","v":""},{"$f":"IF('1. Ordersheet'!V612=\"\",\"\",'1. Ordersheet'!V612)","v":""},{"$f":"IF('1. Ordersheet'!W612=\"\",\"\",'1. Ordersheet'!W612)","v":""},{"$f":"IF('1. Ordersheet'!X612=\"\",\"\",'1. Ordersheet'!X612)","v":""},{"$f":"IF('1. Ordersheet'!Y612=\"\",\"\",'1. Ordersheet'!Y612)","v":""},{"$f":"IF('1. Ordersheet'!Z612=\"\",\"\",'1. Ordersheet'!Z612)","v":""},{"$f":"IF('1. Ordersheet'!AA612=\"\",\"\",'1. Ordersheet'!AA612)","v":""},null,{"$f":"IF('1. Ordersheet'!AS612=\"\",\"\",'1. Ordersheet'!AS612)","v":""},{"$f":"IF('1. Ordersheet'!AT612=\"\",\"\",'1. Ordersheet'!AT612)","v":""},null,null,null,null,null,null,null,{"$f":"IF('1. Ordersheet'!AX612=\"\",\"\",'1. Ordersheet'!AX612)","v":""},{"$f":"IF('1. Ordersheet'!AY612=\"\",\"\",'1. Ordersheet'!AY612)","v":""},{"$f":"IF('1. Ordersheet'!AZ612=\"\",\"\",'1. Ordersheet'!AZ612)","v":""},{"$f":"IF('1. Ordersheet'!BA612=\"\",\"\",'1. Ordersheet'!BA612)","v":""},{"$f":"IF('1. Ordersheet'!BC612=\"\",\"\",'1. Ordersheet'!BC612)","v":""},{"$f":"IF('1. Ordersheet'!BD612=\"\",\"\",'1. Ordersheet'!BD612)","v":""},{"$f":"IF('1. Ordersheet'!BE612=\"\",\"\",'1. Ordersheet'!BE612)","v":""},{"$f":"IF('1. Ordersheet'!BF612=\"\",\"\",'1. Ordersheet'!BF612)","v":""},{"$f":"IF('1. Ordersheet'!BG612=\"\",\"\",'1. Ordersheet'!BG612)","v":"ZWO"},{"$f":"IF('1. Ordersheet'!BH612=\"\",\"\",'1. Ordersheet'!BH612)","v":""},{"$f":"IF('1. Ordersheet'!BI612=\"\",\"\",'1. Ordersheet'!BI612)","v":""},{"$f":"IF('1. Ordersheet'!BJ612=\"\",\"\",'1. Ordersheet'!BJ612)","v":""},{"$f":"IF('1. Ordersheet'!BK612=\"\",\"\",'1. Ordersheet'!BK612)","v":""},{"$f":"IF('1. Ordersheet'!BL612=\"\",\"\",'1. Ordersheet'!BL612)","v":""}]
[{"$f":"IF('1. Ordersheet'!F613=\"\",\"\",'1. Ordersheet'!F613)","v":""},{"$f":"IF('1. Ordersheet'!G613=\"\",\"\",'1. Ordersheet'!G613)","v":""},{"$f":"IF('1. Ordersheet'!H613=\"\",\"\",'1. Ordersheet'!H613)","v":""},{"$f":"IF('1. Ordersheet'!I613=\"\",\"\",'1. Ordersheet'!I613)","v":""},{"$f":"IF('1. Ordersheet'!J613=\"\",\"\",'1. Ordersheet'!J613)","v":""},{"$f":"IF('1. Ordersheet'!K613=\"\",\"\",'1. Ordersheet'!K613)","v":""},{"$f":"IF('1. Ordersheet'!L613=\"\",\"\",'1. Ordersheet'!L613)","v":""},{"$f":"IF('1. Ordersheet'!M613=\"\",\"\",'1. Ordersheet'!M613)","v":""},{"$f":"IF('1. Ordersheet'!N613=\"\",\"\",'1. Ordersheet'!N613)","v":""},{"$f":"IF('1. Ordersheet'!O613=\"\",\"\",'1. Ordersheet'!O613)","v":{"$error":"#N/A"}},{"$f":"IF('1. Ordersheet'!P613=\"\",\"\",'1. Ordersheet'!P613)","v":{"$error":"#N/A"}},{"$f":"IF('1. Ordersheet'!Q613=\"\",\"\",'1. Ordersheet'!Q613)","v":""},{"$f":"IF('1. Ordersheet'!R613=\"\",\"\",'1. Ordersheet'!R613)","v":""},{"$f":"IF('1. Ordersheet'!S613=\"\",\"\",'1. Ordersheet'!S613)","v":""},{"$f":"IF('1. Ordersheet'!V613=\"\",\"\",'1. Ordersheet'!V613)","v":""},{"$f":"IF('1. Ordersheet'!W613=\"\",\"\",'1. Ordersheet'!W613)","v":""},{"$f":"IF('1. Ordersheet'!X613=\"\",\"\",'1. Ordersheet'!X613)","v":""},{"$f":"IF('1. Ordersheet'!Y613=\"\",\"\",'1. Ordersheet'!Y613)","v":""},{"$f":"IF('1. Ordersheet'!Z613=\"\",\"\",'1. Ordersheet'!Z613)","v":""},{"$f":"IF('1. Ordersheet'!AA613=\"\",\"\",'1. Ordersheet'!AA613)","v":""},null,{"$f":"IF('1. Ordersheet'!AS613=\"\",\"\",'1. Ordersheet'!AS613)","v":""},{"$f":"IF('1. Ordersheet'!AT613=\"\",\"\",'1. Ordersheet'!AT613)","v":""},null,null,null,null,null,null,null,{"$f":"IF('1. Ordersheet'!AX613=\"\",\"\",'1. Ordersheet'!AX613)","v":""},{"$f":"IF('1. Ordersheet'!AY613=\"\",\"\",'1. Ordersheet'!AY613)","v":""},{"$f":"IF('1. Ordersheet'!AZ613=\"\",\"\",'1. Ordersheet'!AZ613)","v":""},{"$f":"IF('1. Ordersheet'!BA613=\"\",\"\",'1. Ordersheet'!BA613)","v":""},{"$f":"IF('1. Ordersheet'!BC613=\"\",\"\",'1. Ordersheet'!BC613)","v":""},{"$f":"IF('1. Ordersheet'!BD613=\"\",\"\",'1. Ordersheet'!BD613)","v":""},{"$f":"IF('1. Ordersheet'!BE613=\"\",\"\",'1. Ordersheet'!BE613)","v":""},{"$f":"IF('1. Ordersheet'!BF613=\"\",\"\",'1. Ordersheet'!BF613)","v":""},{"$f":"IF('1. Ordersheet'!BG613=\"\",\"\",'1. Ordersheet'!BG613)","v":"ZWO"},{"$f":"IF('1. Ordersheet'!BH613=\"\",\"\",'1. Ordersheet'!BH613)","v":""},{"$f":"IF('1. Ordersheet'!BI613=\"\",\"\",'1. Ordersheet'!BI613)","v":""},{"$f":"IF('1. Ordersheet'!BJ613=\"\",\"\",'1. Ordersheet'!BJ613)","v":""},{"$f":"IF('1. Ordersheet'!BK613=\"\",\"\",'1. Ordersheet'!BK613)","v":""},{"$f":"IF('1. Ordersheet'!BL613=\"\",\"\",'1. Ordersheet'!BL613)","v":""}]
[{"$f":"IF('1. Ordersheet'!F614=\"\",\"\",'1. Ordersheet'!F614)","v":""},{"$f":"IF('1. Ordersheet'!G614=\"\",\"\",'1. Ordersheet'!G614)","v":""},{"$f":"IF('1. Ordersheet'!H614=\"\",\"\",'1. Ordersheet'!H614)","v":""},{"$f":"IF('1. Ordersheet'!I614=\"\",\"\",'1. Ordersheet'!I614)","v":""},{"$f":"IF('1. Ordersheet'!J614=\"\",\"\",'1. Ordersheet'!J614)","v":""},{"$f":"IF('1. Ordersheet'!K614=\"\",\"\",'1. Ordersheet'!K614)","v":""},{"$f":"IF('1. Ordersheet'!L614=\"\",\"\",'1. Ordersheet'!L614)","v":""},{"$f":"IF('1. Ordersheet'!M614=\"\",\"\",'1. Ordersheet'!M614)","v":""},{"$f":"IF('1. Ordersheet'!N614=\"\",\"\",'1. Ordersheet'!N614)","v":""},{"$f":"IF('1. Ordersheet'!O614=\"\",\"\",'1. Ordersheet'!O614)","v":{"$error":"#N/A"}},{"$f":"IF('1. Ordersheet'!P614=\"\",\"\",'1. Ordersheet'!P614)","v":{"$error":"#N/A"}},{"$f":"IF('1. Ordersheet'!Q614=\"\",\"\",'1. Ordersheet'!Q614)","v":""},{"$f":"IF('1. Ordersheet'!R614=\"\",\"\",'1. Ordersheet'!R614)","v":""},{"$f":"IF('1. Ordersheet'!S614=\"\",\"\",'1. Ordersheet'!S614)","v":""},{"$f":"IF('1. Ordersheet'!V614=\"\",\"\",'1. Ordersheet'!V614)","v":""},{"$f":"IF('1. Ordersheet'!W614=\"\",\"\",'1. Ordersheet'!W614)","v":""},{"$f":"IF('1. Ordersheet'!X614=\"\",\"\",'1. Ordersheet'!X614)","v":""},{"$f":"IF('1. Ordersheet'!Y614=\"\",\"\",'1. Ordersheet'!Y614)","v":""},{"$f":"IF('1. Ordersheet'!Z614=\"\",\"\",'1. Ordersheet'!Z614)","v":""},{"$f":"IF('1. Ordersheet'!AA614=\"\",\"\",'1. Ordersheet'!AA614)","v":""},null,{"$f":"IF('1. Ordersheet'!AS614=\"\",\"\",'1. Ordersheet'!AS614)","v":""},{"$f":"IF('1. Ordersheet'!AT614=\"\",\"\",'1. Ordersheet'!AT614)","v":""},null,null,null,null,null,null,null,{"$f":"IF('1. Ordersheet'!AX614=\"\",\"\",'1. Ordersheet'!AX614)","v":""},{"$f":"IF('1. Ordersheet'!AY614=\"\",\"\",'1. Ordersheet'!AY614)","v":""},{"$f":"IF('1. Ordersheet'!AZ614=\"\",\"\",'1. Ordersheet'!AZ614)","v":""},{"$f":"IF('1. Ordersheet'!BA614=\"\",\"\",'1. Ordersheet'!BA614)","v":""},{"$f":"IF('1. Ordersheet'!BC614=\"\",\"\",'1. Ordersheet'!BC614)","v":""},{"$f":"IF('1. Ordersheet'!BD614=\"\",\"\",'1. Ordersheet'!BD614)","v":""},{"$f":"IF('1. Ordersheet'!BE614=\"\",\"\",'1. Ordersheet'!BE614)","v":""},{"$f":"IF('1. Ordersheet'!BF614=\"\",\"\",'1. Ordersheet'!BF614)","v":""},{"$f":"IF('1. Ordersheet'!BG614=\"\",\"\",'1. Ordersheet'!BG614)","v":"ZWO"},{"$f":"IF('1. Ordersheet'!BH614=\"\",\"\",'1. Ordersheet'!BH614)","v":""},{"$f":"IF('1. Ordersheet'!BI614=\"\",\"\",'1. Ordersheet'!BI614)","v":""},{"$f":"IF('1. Ordersheet'!BJ614=\"\",\"\",'1. Ordersheet'!BJ614)","v":""},{"$f":"IF('1. Ordersheet'!BK614=\"\",\"\",'1. Ordersheet'!BK614)","v":""},{"$f":"IF('1. Ordersheet'!BL614=\"\",\"\",'1. Ordersheet'!BL614)","v":""}]
[{"$f":"IF('1. Ordersheet'!F615=\"\",\"\",'1. Ordersheet'!F615)","v":""},{"$f":"IF('1. Ordersheet'!G615=\"\",\"\",'1. Ordersheet'!G615)","v":""},{"$f":"IF('1. Ordersheet'!H615=\"\",\"\",'1. Ordersheet'!H615)","v":""},{"$f":"IF('1. Ordersheet'!I615=\"\",\"\",'1. Ordersheet'!I615)","v":""},{"$f":"IF('1. Ordersheet'!J615=\"\",\"\",'1. Ordersheet'!J615)","v":""},{"$f":"IF('1. Ordersheet'!K615=\"\",\"\",'1. Ordersheet'!K615)","v":""},{"$f":"IF('1. Ordersheet'!L615=\"\",\"\",'1. Ordersheet'!L615)","v":""},{"$f":"IF('1. Ordersheet'!M615=\"\",\"\",'1. Ordersheet'!M615)","v":""},{"$f":"IF('1. Ordersheet'!N615=\"\",\"\",'1. Ordersheet'!N615)","v":""},{"$f":"IF('1. Ordersheet'!O615=\"\",\"\",'1. Ordersheet'!O615)","v":{"$error":"#N/A"}},{"$f":"IF('1. Ordersheet'!P615=\"\",\"\",'1. Ordersheet'!P615)","v":{"$error":"#N/A"}},{"$f":"IF('1. Ordersheet'!Q615=\"\",\"\",'1. Ordersheet'!Q615)","v":""},{"$f":"IF('1. Ordersheet'!R615=\"\",\"\",'1. Ordersheet'!R615)","v":""},{"$f":"IF('1. Ordersheet'!S615=\"\",\"\",'1. Ordersheet'!S615)","v":""},{"$f":"IF('1. Ordersheet'!V615=\"\",\"\",'1. Ordersheet'!V615)","v":""},{"$f":"IF('1. Ordersheet'!W615=\"\",\"\",'1. Ordersheet'!W615)","v":""},{"$f":"IF('1. Ordersheet'!X615=\"\",\"\",'1. Ordersheet'!X615)","v":""},{"$f":"IF('1. Ordersheet'!Y615=\"\",\"\",'1. Ordersheet'!Y615)","v":""},{"$f":"IF('1. Ordersheet'!Z615=\"\",\"\",'1. Ordersheet'!Z615)","v":""},{"$f":"IF('1. Ordersheet'!AA615=\"\",\"\",'1. Ordersheet'!AA615)","v":""},null,{"$f":"IF('1. Ordersheet'!AS615=\"\",\"\",'1. Ordersheet'!AS615)","v":""},{"$f":"IF('1. Ordersheet'!AT615=\"\",\"\",'1. Ordersheet'!AT615)","v":""},null,null,null,null,null,null,null,{"$f":"IF('1. Ordersheet'!AX615=\"\",\"\",'1. Ordersheet'!AX615)","v":""},{"$f":"IF('1. Ordersheet'!AY615=\"\",\"\",'1. Ordersheet'!AY615)","v":""},{"$f":"IF('1. Ordersheet'!AZ615=\"\",\"\",'1. Ordersheet'!AZ615)","v":""},{"$f":"IF('1. Ordersheet'!BA615=\"\",\"\",'1. Ordersheet'!BA615)","v":""},{"$f":"IF('1. Ordersheet'!BC615=\"\",\"\",'1. Ordersheet'!BC615)","v":""},{"$f":"IF('1. Ordersheet'!BD615=\"\",\"\",'1. Ordersheet'!BD615)","v":""},{"$f":"IF('1. Ordersheet'!BE615=\"\",\"\",'1. Ordersheet'!BE615)","v":""},{"$f":"IF('1. Ordersheet'!BF615=\"\",\"\",'1. Ordersheet'!BF615)","v":""},{"$f":"IF('1. Ordersheet'!BG615=\"\",\"\",'1. Ordersheet'!BG615)","v":"ZWO"},{"$f":"IF('1. Ordersheet'!BH615=\"\",\"\",'1. Ordersheet'!BH615)","v":""},{"$f":"IF('1. Ordersheet'!BI615=\"\",\"\",'1. Ordersheet'!BI615)","v":""},{"$f":"IF('1. Ordersheet'!BJ615=\"\",\"\",'1. Ordersheet'!BJ615)","v":""},{"$f":"IF('1. Ordersheet'!BK615=\"\",\"\",'1. Ordersheet'!BK615)","v":""},{"$f":"IF('1. Ordersheet'!BL615=\"\",\"\",'1. Ordersheet'!BL615)","v":""}]
[{"$f":"IF('1. Ordersheet'!F616=\"\",\"\",'1. Ordersheet'!F616)","v":""},{"$f":"IF('1. Ordersheet'!G616=\"\",\"\",'1. Ordersheet'!G616)","v":""},{"$f":"IF('1. Ordersheet'!H616=\"\",\"\",'1. Ordersheet'!H616)","v":""},{"$f":"IF('1. Ordersheet'!I616=\"\",\"\",'1. Ordersheet'!I616)","v":""},{"$f":"IF('1. Ordersheet'!J616=\"\",\"\",'1. Ordersheet'!J616)","v":""},{"$f":"IF('1. Ordersheet'!K616=\"\",\"\",'1. Ordersheet'!K616)","v":""},{"$f":"IF('1. Ordersheet'!L616=\"\",\"\",'1. Ordersheet'!L616)","v":""},{"$f":"IF('1. Ordersheet'!M616=\"\",\"\",'1. Ordersheet'!M616)","v":""},{"$f":"IF('1. Ordersheet'!N616=\"\",\"\",'1. Ordersheet'!N616)","v":""},{"$f":"IF('1. Ordersheet'!O616=\"\",\"\",'1. Ordersheet'!O616)","v":{"$error":"#N/A"}},{"$f":"IF('1. Ordersheet'!P616=\"\",\"\",'1. Ordersheet'!P616)","v":{"$error":"#N/A"}},{"$f":"IF('1. Ordersheet'!Q616=\"\",\"\",'1. Ordersheet'!Q616)","v":""},{"$f":"IF('1. Ordersheet'!R616=\"\",\"\",'1. Ordersheet'!R616)","v":""},{"$f":"IF('1. Ordersheet'!S616=\"\",\"\",'1. Ordersheet'!S616)","v":""},{"$f":"IF('1. Ordersheet'!V616=\"\",\"\",'1. Ordersheet'!V616)","v":""},{"$f":"IF('1. Ordersheet'!W616=\"\",\"\",'1. Ordersheet'!W616)","v":""},{"$f":"IF('1. Ordersheet'!X616=\"\",\"\",'1. Ordersheet'!X616)","v":""},{"$f":"IF('1. Ordersheet'!Y616=\"\",\"\",'1. Ordersheet'!Y616)","v":""},{"$f":"IF('1. Ordersheet'!Z616=\"\",\"\",'1. Ordersheet'!Z616)","v":""},{"$f":"IF('1. Ordersheet'!AA616=\"\",\"\",'1. Ordersheet'!AA616)","v":""},null,{"$f":"IF('1. Ordersheet'!AS616=\"\",\"\",'1. Ordersheet'!AS616)","v":""},{"$f":"IF('1. Ordersheet'!AT616=\"\",\"\",'1. Ordersheet'!AT616)","v":""},null,null,null,null,null,null,null,{"$f":"IF('1. Ordersheet'!AX616=\"\",\"\",'1. Ordersheet'!AX616)","v":""},{"$f":"IF('1. Ordersheet'!AY616=\"\",\"\",'1. Ordersheet'!AY616)","v":""},{"$f":"IF('1. Ordersheet'!AZ616=\"\",\"\",'1. Ordersheet'!AZ616)","v":""},{"$f":"IF('1. Ordersheet'!BA616=\"\",\"\",'1. Ordersheet'!BA616)","v":""},{"$f":"IF('1. Ordersheet'!BC616=\"\",\"\",'1. Ordersheet'!BC616)","v":""},{"$f":"IF('1. Ordersheet'!BD616=\"\",\"\",'1. Ordersheet'!BD616)","v":""},{"$f":"IF('1. Ordersheet'!BE616=\"\",\"\",'1. Ordersheet'!BE616)","v":""},{"$f":"IF('1. Ordersheet'!BF616=\"\",\"\",'1. Ordersheet'!BF616)","v":""},{"$f":"IF('1. Ordersheet'!BG616=\"\",\"\",'1. Ordersheet'!BG616)","v":"ZWO"},{"$f":"IF('1. Ordersheet'!BH616=\"\",\"\",'1. Ordersheet'!BH616)","v":""},{"$f":"IF('1. Ordersheet'!BI616=\"\",\"\",'1. Ordersheet'!BI616)","v":""},{"$f":"IF('1. Ordersheet'!BJ616=\"\",\"\",'1. Ordersheet'!BJ616)","v":""},{"$f":"IF('1. Ordersheet'!BK616=\"\",\"\",'1. Ordersheet'!BK616)","v":""},{"$f":"IF('1. Ordersheet'!BL616=\"\",\"\",'1. Ordersheet'!BL616)","v":""}]
[{"$f":"IF('1. Ordersheet'!F617=\"\",\"\",'1. Ordersheet'!F617)","v":""},{"$f":"IF('1. Ordersheet'!G617=\"\",\"\",'1. Ordersheet'!G617)","v":""},{"$f":"IF('1. Ordersheet'!H617=\"\",\"\",'1. Ordersheet'!H617)","v":""},{"$f":"IF('1. Ordersheet'!I617=\"\",\"\",'1. Ordersheet'!I617)","v":""},{"$f":"IF('1. Ordersheet'!J617=\"\",\"\",'1. Ordersheet'!J617)","v":""},{"$f":"IF('1. Ordersheet'!K617=\"\",\"\",'1. Ordersheet'!K617)","v":""},{"$f":"IF('1. Ordersheet'!L617=\"\",\"\",'1. Ordersheet'!L617)","v":""},{"$f":"IF('1. Ordersheet'!M617=\"\",\"\",'1. Ordersheet'!M617)","v":""},{"$f":"IF('1. Ordersheet'!N617=\"\",\"\",'1. Ordersheet'!N617)","v":""},{"$f":"IF('1. Ordersheet'!O617=\"\",\"\",'1. Ordersheet'!O617)","v":{"$error":"#N/A"}},{"$f":"IF('1. Ordersheet'!P617=\"\",\"\",'1. Ordersheet'!P617)","v":{"$error":"#N/A"}},{"$f":"IF('1. Ordersheet'!Q617=\"\",\"\",'1. Ordersheet'!Q617)","v":""},{"$f":"IF('1. Ordersheet'!R617=\"\",\"\",'1. Ordersheet'!R617)","v":""},{"$f":"IF('1. Ordersheet'!S617=\"\",\"\",'1. Ordersheet'!S617)","v":""},{"$f":"IF('1. Ordersheet'!V617=\"\",\"\",'1. Ordersheet'!V617)","v":""},{"$f":"IF('1. Ordersheet'!W617=\"\",\"\",'1. Ordersheet'!W617)","v":""},{"$f":"IF('1. Ordersheet'!X617=\"\",\"\",'1. Ordersheet'!X617)","v":""},{"$f":"IF('1. Ordersheet'!Y617=\"\",\"\",'1. Ordersheet'!Y617)","v":""},{"$f":"IF('1. Ordersheet'!Z617=\"\",\"\",'1. Ordersheet'!Z617)","v":""},{"$f":"IF('1. Ordersheet'!AA617=\"\",\"\",'1. Ordersheet'!AA617)","v":""},null,{"$f":"IF('1. Ordersheet'!AS617=\"\",\"\",'1. Ordersheet'!AS617)","v":""},{"$f":"IF('1. Ordersheet'!AT617=\"\",\"\",'1. Ordersheet'!AT617)","v":""},null,null,null,null,null,null,null,{"$f":"IF('1. Ordersheet'!AX617=\"\",\"\",'1. Ordersheet'!AX617)","v":""},{"$f":"IF('1. Ordersheet'!AY617=\"\",\"\",'1. Ordersheet'!AY617)","v":""},{"$f":"IF('1. Ordersheet'!AZ617=\"\",\"\",'1. Ordersheet'!AZ617)","v":""},{"$f":"IF('1. Ordersheet'!BA617=\"\",\"\",'1. Ordersheet'!BA617)","v":""},{"$f":"IF('1. Ordersheet'!BC617=\"\",\"\",'1. Ordersheet'!BC617)","v":""},{"$f":"IF('1. Ordersheet'!BD617=\"\",\"\",'1. Ordersheet'!BD617)","v":""},{"$f":"IF('1. Ordersheet'!BE617=\"\",\"\",'1. Ordersheet'!BE617)","v":""},{"$f":"IF('1. Ordersheet'!BF617=\"\",\"\",'1. Ordersheet'!BF617)","v":""},{"$f":"IF('1. Ordersheet'!BG617=\"\",\"\",'1. Ordersheet'!BG617)","v":"ZWO"},{"$f":"IF('1. Ordersheet'!BH617=\"\",\"\",'1. Ordersheet'!BH617)","v":""},{"$f":"IF('1. Ordersheet'!BI617=\"\",\"\",'1. Ordersheet'!BI617)","v":""},{"$f":"IF('1. Ordersheet'!BJ617=\"\",\"\",'1. Ordersheet'!BJ617)","v":""},{"$f":"IF('1. Ordersheet'!BK617=\"\",\"\",'1. Ordersheet'!BK617)","v":""},{"$f":"IF('1. Ordersheet'!BL617=\"\",\"\",'1. Ordersheet'!BL617)","v":""}]
[{"$f":"IF('1. Ordersheet'!F618=\"\",\"\",'1. Ordersheet'!F618)","v":""},{"$f":"IF('1. Ordersheet'!G618=\"\",\"\",'1. Ordersheet'!G618)","v":""},{"$f":"IF('1. Ordersheet'!H618=\"\",\"\",'1. Ordersheet'!H618)","v":""},{"$f":"IF('1. Ordersheet'!I618=\"\",\"\",'1. Ordersheet'!I618)","v":""},{"$f":"IF('1. Ordersheet'!J618=\"\",\"\",'1. Ordersheet'!J618)","v":""},{"$f":"IF('1. Ordersheet'!K618=\"\",\"\",'1. Ordersheet'!K618)","v":""},{"$f":"IF('1. Ordersheet'!L618=\"\",\"\",'1. Ordersheet'!L618)","v":""},{"$f":"IF('1. Ordersheet'!M618=\"\",\"\",'1. Ordersheet'!M618)","v":""},{"$f":"IF('1. Ordersheet'!N618=\"\",\"\",'1. Ordersheet'!N618)","v":""},{"$f":"IF('1. Ordersheet'!O618=\"\",\"\",'1. Ordersheet'!O618)","v":{"$error":"#N/A"}},{"$f":"IF('1. Ordersheet'!P618=\"\",\"\",'1. Ordersheet'!P618)","v":{"$error":"#N/A"}},{"$f":"IF('1. Ordersheet'!Q618=\"\",\"\",'1. Ordersheet'!Q618)","v":""},{"$f":"IF('1. Ordersheet'!R618=\"\",\"\",'1. Ordersheet'!R618)","v":""},{"$f":"IF('1. Ordersheet'!S618=\"\",\"\",'1. Ordersheet'!S618)","v":""},{"$f":"IF('1. Ordersheet'!V618=\"\",\"\",'1. Ordersheet'!V618)","v":""},{"$f":"IF('1. Ordersheet'!W618=\"\",\"\",'1. Ordersheet'!W618)","v":""},{"$f":"IF('1. Ordersheet'!X618=\"\",\"\",'1. Ordersheet'!X618)","v":""},{"$f":"IF('1. Ordersheet'!Y618=\"\",\"\",'1. Ordersheet'!Y618)","v":""},{"$f":"IF('1. Ordersheet'!Z618=\"\",\"\",'1. Ordersheet'!Z618)","v":""},{"$f":"IF('1. Ordersheet'!AA618=\"\",\"\",'1. Ordersheet'!AA618)","v":""},null,{"$f":"IF('1. Ordersheet'!AS618=\"\",\"\",'1. Ordersheet'!AS618)","v":""},{"$f":"IF('1. Ordersheet'!AT618=\"\",\"\",'1. Ordersheet'!AT618)","v":""},null,null,null,null,null,null,null,{"$f":"IF('1. Ordersheet'!AX618=\"\",\"\",'1. Ordersheet'!AX618)","v":""},{"$f":"IF('1. Ordersheet'!AY618=\"\",\"\",'1. Ordersheet'!AY618)","v":""},{"$f":"IF('1. Ordersheet'!AZ618=\"\",\"\",'1. Ordersheet'!AZ618)","v":""},{"$f":"IF('1. Ordersheet'!BA618=\"\",\"\",'1. Ordersheet'!BA618)","v":""},{"$f":"IF('1. Ordersheet'!BC618=\"\",\"\",'1. Ordersheet'!BC618)","v":""},{"$f":"IF('1. Ordersheet'!BD618=\"\",\"\",'1. Ordersheet'!BD618)","v":""},{"$f":"IF('1. Ordersheet'!BE618=\"\",\"\",'1. Ordersheet'!BE618)","v":""},{"$f":"IF('1. Ordersheet'!BF618=\"\",\"\",'1. Ordersheet'!BF618)","v":""},{"$f":"IF('1. Ordersheet'!BG618=\"\",\"\",'1. Ordersheet'!BG618)","v":"ZWO"},{"$f":"IF('1. Ordersheet'!BH618=\"\",\"\",'1. Ordersheet'!BH618)","v":""},{"$f":"IF('1. Ordersheet'!BI618=\"\",\"\",'1. Ordersheet'!BI618)","v":""},{"$f":"IF('1. Ordersheet'!BJ618=\"\",\"\",'1. Ordersheet'!BJ618)","v":""},{"$f":"IF('1. Ordersheet'!BK618=\"\",\"\",'1. Ordersheet'!BK618)","v":""},{"$f":"IF('1. Ordersheet'!BL618=\"\",\"\",'1. Ordersheet'!BL618)","v":""}]
[{"$f":"IF('1. Ordersheet'!F619=\"\",\"\",'1. Ordersheet'!F619)","v":""},{"$f":"IF('1. Ordersheet'!G619=\"\",\"\",'1. Ordersheet'!G619)","v":""},{"$f":"IF('1. Ordersheet'!H619=\"\",\"\",'1. Ordersheet'!H619)","v":""},{"$f":"IF('1. Ordersheet'!I619=\"\",\"\",'1. Ordersheet'!I619)","v":""},{"$f":"IF('1. Ordersheet'!J619=\"\",\"\",'1. Ordersheet'!J619)","v":""},{"$f":"IF('1. Ordersheet'!K619=\"\",\"\",'1. Ordersheet'!K619)","v":""},{"$f":"IF('1. Ordersheet'!L619=\"\",\"\",'1. Ordersheet'!L619)","v":""},{"$f":"IF('1. Ordersheet'!M619=\"\",\"\",'1. Ordersheet'!M619)","v":""},{"$f":"IF('1. Ordersheet'!N619=\"\",\"\",'1. Ordersheet'!N619)","v":""},{"$f":"IF('1. Ordersheet'!O619=\"\",\"\",'1. Ordersheet'!O619)","v":{"$error":"#N/A"}},{"$f":"IF('1. Ordersheet'!P619=\"\",\"\",'1. Ordersheet'!P619)","v":{"$error":"#N/A"}},{"$f":"IF('1. Ordersheet'!Q619=\"\",\"\",'1. Ordersheet'!Q619)","v":""},{"$f":"IF('1. Ordersheet'!R619=\"\",\"\",'1. Ordersheet'!R619)","v":""},{"$f":"IF('1. Ordersheet'!S619=\"\",\"\",'1. Ordersheet'!S619)","v":""},{"$f":"IF('1. Ordersheet'!V619=\"\",\"\",'1. Ordersheet'!V619)","v":""},{"$f":"IF('1. Ordersheet'!W619=\"\",\"\",'1. Ordersheet'!W619)","v":""},{"$f":"IF('1. Ordersheet'!X619=\"\",\"\",'1. Ordersheet'!X619)","v":""},{"$f":"IF('1. Ordersheet'!Y619=\"\",\"\",'1. Ordersheet'!Y619)","v":""},{"$f":"IF('1. Ordersheet'!Z619=\"\",\"\",'1. Ordersheet'!Z619)","v":""},{"$f":"IF('1. Ordersheet'!AA619=\"\",\"\",'1. Ordersheet'!AA619)","v":""},null,{"$f":"IF('1. Ordersheet'!AS619=\"\",\"\",'1. Ordersheet'!AS619)","v":""},{"$f":"IF('1. Ordersheet'!AT619=\"\",\"\",'1. Ordersheet'!AT619)","v":""},null,null,null,null,null,null,null,{"$f":"IF('1. Ordersheet'!AX619=\"\",\"\",'1. Ordersheet'!AX619)","v":""},{"$f":"IF('1. Ordersheet'!AY619=\"\",\"\",'1. Ordersheet'!AY619)","v":""},{"$f":"IF('1. Ordersheet'!AZ619=\"\",\"\",'1. Ordersheet'!AZ619)","v":""},{"$f":"IF('1. Ordersheet'!BA619=\"\",\"\",'1. Ordersheet'!BA619)","v":""},{"$f":"IF('1. Ordersheet'!BC619=\"\",\"\",'1. Ordersheet'!BC619)","v":""},{"$f":"IF('1. Ordersheet'!BD619=\"\",\"\",'1. Ordersheet'!BD619)","v":""},{"$f":"IF('1. Ordersheet'!BE619=\"\",\"\",'1. Ordersheet'!BE619)","v":""},{"$f":"IF('1. Ordersheet'!BF619=\"\",\"\",'1. Ordersheet'!BF619)","v":""},{"$f":"IF('1. Ordersheet'!BG619=\"\",\"\",'1. Ordersheet'!BG619)","v":"ZWO"},{"$f":"IF('1. Ordersheet'!BH619=\"\",\"\",'1. Ordersheet'!BH619)","v":""},{"$f":"IF('1. Ordersheet'!BI619=\"\",\"\",'1. Ordersheet'!BI619)","v":""},{"$f":"IF('1. Ordersheet'!BJ619=\"\",\"\",'1. Ordersheet'!BJ619)","v":""},{"$f":"IF('1. Ordersheet'!BK619=\"\",\"\",'1. Ordersheet'!BK619)","v":""},{"$f":"IF('1. Ordersheet'!BL619=\"\",\"\",'1. Ordersheet'!BL619)","v":""}]
[{"$f":"IF('1. Ordersheet'!F620=\"\",\"\",'1. Ordersheet'!F620)","v":""},{"$f":"IF('1. Ordersheet'!G620=\"\",\"\",'1. Ordersheet'!G620)","v":""},{"$f":"IF('1. Ordersheet'!H620=\"\",\"\",'1. Ordersheet'!H620)","v":""},{"$f":"IF('1. Ordersheet'!I620=\"\",\"\",'1. Ordersheet'!I620)","v":""},{"$f":"IF('1. Ordersheet'!J620=\"\",\"\",'1. Ordersheet'!J620)","v":""},{"$f":"IF('1. Ordersheet'!K620=\"\",\"\",'1. Ordersheet'!K620)","v":""},{"$f":"IF('1. Ordersheet'!L620=\"\",\"\",'1. Ordersheet'!L620)","v":""},{"$f":"IF('1. Ordersheet'!M620=\"\",\"\",'1. Ordersheet'!M620)","v":""},{"$f":"IF('1. Ordersheet'!N620=\"\",\"\",'1. Ordersheet'!N620)","v":""},{"$f":"IF('1. Ordersheet'!O620=\"\",\"\",'1. Ordersheet'!O620)","v":{"$error":"#N/A"}},{"$f":"IF('1. Ordersheet'!P620=\"\",\"\",'1. Ordersheet'!P620)","v":{"$error":"#N/A"}},{"$f":"IF('1. Ordersheet'!Q620=\"\",\"\",'1. Ordersheet'!Q620)","v":""},{"$f":"IF('1. Ordersheet'!R620=\"\",\"\",'1. Ordersheet'!R620)","v":""},{"$f":"IF('1. Ordersheet'!S620=\"\",\"\",'1. Ordersheet'!S620)","v":""},{"$f":"IF('1. Ordersheet'!V620=\"\",\"\",'1. Ordersheet'!V620)","v":""},{"$f":"IF('1. Ordersheet'!W620=\"\",\"\",'1. Ordersheet'!W620)","v":""},{"$f":"IF('1. Ordersheet'!X620=\"\",\"\",'1. Ordersheet'!X620)","v":""},{"$f":"IF('1. Ordersheet'!Y620=\"\",\"\",'1. Ordersheet'!Y620)","v":""},{"$f":"IF('1. Ordersheet'!Z620=\"\",\"\",'1. Ordersheet'!Z620)","v":""},{"$f":"IF('1. Ordersheet'!AA620=\"\",\"\",'1. Ordersheet'!AA620)","v":""},null,{"$f":"IF('1. Ordersheet'!AS620=\"\",\"\",'1. Ordersheet'!AS620)","v":""},{"$f":"IF('1. Ordersheet'!AT620=\"\",\"\",'1. Ordersheet'!AT620)","v":""},null,null,null,null,null,null,null,{"$f":"IF('1. Ordersheet'!AX620=\"\",\"\",'1. Ordersheet'!AX620)","v":""},{"$f":"IF('1. Ordersheet'!AY620=\"\",\"\",'1. Ordersheet'!AY620)","v":""},{"$f":"IF('1. Ordersheet'!AZ620=\"\",\"\",'1. Ordersheet'!AZ620)","v":""},{"$f":"IF('1. Ordersheet'!BA620=\"\",\"\",'1. Ordersheet'!BA620)","v":""},{"$f":"IF('1. Ordersheet'!BC620=\"\",\"\",'1. Ordersheet'!BC620)","v":""},{"$f":"IF('1. Ordersheet'!BD620=\"\",\"\",'1. Ordersheet'!BD620)","v":""},{"$f":"IF('1. Ordersheet'!BE620=\"\",\"\",'1. Ordersheet'!BE620)","v":""},{"$f":"IF('1. Ordersheet'!BF620=\"\",\"\",'1. Ordersheet'!BF620)","v":""},{"$f":"IF('1. Ordersheet'!BG620=\"\",\"\",'1. Ordersheet'!BG620)","v":"ZWO"},{"$f":"IF('1. Ordersheet'!BH620=\"\",\"\",'1. Ordersheet'!BH620)","v":""},{"$f":"IF('1. Ordersheet'!BI620=\"\",\"\",'1. Ordersheet'!BI620)","v":""},{"$f":"IF('1. Ordersheet'!BJ620=\"\",\"\",'1. Ordersheet'!BJ620)","v":""},{"$f":"IF('1. Ordersheet'!BK620=\"\",\"\",'1. Ordersheet'!BK620)","v":""},{"$f":"IF('1. Ordersheet'!BL620=\"\",\"\",'1. Ordersheet'!BL620)","v":""}]
[{"$f":"IF('1. Ordersheet'!F621=\"\",\"\",'1. Ordersheet'!F621)","v":""},{"$f":"IF('1. Ordersheet'!G621=\"\",\"\",'1. Ordersheet'!G621)","v":""},{"$f":"IF('1. Ordersheet'!H621=\"\",\"\",'1. Ordersheet'!H621)","v":""},{"$f":"IF('1. Ordersheet'!I621=\"\",\"\",'1. Ordersheet'!I621)","v":""},{"$f":"IF('1. Ordersheet'!J621=\"\",\"\",'1. Ordersheet'!J621)","v":""},{"$f":"IF('1. Ordersheet'!K621=\"\",\"\",'1. Ordersheet'!K621)","v":""},{"$f":"IF('1. Ordersheet'!L621=\"\",\"\",'1. Ordersheet'!L621)","v":""},{"$f":"IF('1. Ordersheet'!M621=\"\",\"\",'1. Ordersheet'!M621)","v":""},{"$f":"IF('1. Ordersheet'!N621=\"\",\"\",'1. Ordersheet'!N621)","v":""},{"$f":"IF('1. Ordersheet'!O621=\"\",\"\",'1. Ordersheet'!O621)","v":{"$error":"#N/A"}},{"$f":"IF('1. Ordersheet'!P621=\"\",\"\",'1. Ordersheet'!P621)","v":{"$error":"#N/A"}},{"$f":"IF('1. Ordersheet'!Q621=\"\",\"\",'1. Ordersheet'!Q621)","v":""},{"$f":"IF('1. Ordersheet'!R621=\"\",\"\",'1. Ordersheet'!R621)","v":""},{"$f":"IF('1. Ordersheet'!S621=\"\",\"\",'1. Ordersheet'!S621)","v":""},{"$f":"IF('1. Ordersheet'!V621=\"\",\"\",'1. Ordersheet'!V621)","v":""},{"$f":"IF('1. Ordersheet'!W621=\"\",\"\",'1. Ordersheet'!W621)","v":""},{"$f":"IF('1. Ordersheet'!X621=\"\",\"\",'1. Ordersheet'!X621)","v":""},{"$f":"IF('1. Ordersheet'!Y621=\"\",\"\",'1. Ordersheet'!Y621)","v":""},{"$f":"IF('1. Ordersheet'!Z621=\"\",\"\",'1. Ordersheet'!Z621)","v":""},{"$f":"IF('1. Ordersheet'!AA621=\"\",\"\",'1. Ordersheet'!AA621)","v":""},null,{"$f":"IF('1. Ordersheet'!AS621=\"\",\"\",'1. Ordersheet'!AS621)","v":""},{"$f":"IF('1. Ordersheet'!AT621=\"\",\"\",'1. Ordersheet'!AT621)","v":""},null,null,null,null,null,null,null,{"$f":"IF('1. Ordersheet'!AX621=\"\",\"\",'1. Ordersheet'!AX621)","v":""},{"$f":"IF('1. Ordersheet'!AY621=\"\",\"\",'1. Ordersheet'!AY621)","v":""},{"$f":"IF('1. Ordersheet'!AZ621=\"\",\"\",'1. Ordersheet'!AZ621)","v":""},{"$f":"IF('1. Ordersheet'!BA621=\"\",\"\",'1. Ordersheet'!BA621)","v":""},{"$f":"IF('1. Ordersheet'!BC621=\"\",\"\",'1. Ordersheet'!BC621)","v":""},{"$f":"IF('1. Ordersheet'!BD621=\"\",\"\",'1. Ordersheet'!BD621)","v":""},{"$f":"IF('1. Ordersheet'!BE621=\"\",\"\",'1. Ordersheet'!BE621)","v":""},{"$f":"IF('1. Ordersheet'!BF621=\"\",\"\",'1. Ordersheet'!BF621)","v":""},{"$f":"IF('1. Ordersheet'!BG621=\"\",\"\",'1. Ordersheet'!BG621)","v":"ZWO"},{"$f":"IF('1. Ordersheet'!BH621=\"\",\"\",'1. Ordersheet'!BH621)","v":""},{"$f":"IF('1. Ordersheet'!BI621=\"\",\"\",'1. Ordersheet'!BI621)","v":""},{"$f":"IF('1. Ordersheet'!BJ621=\"\",\"\",'1. Ordersheet'!BJ621)","v":""},{"$f":"IF('1. Ordersheet'!BK621=\"\",\"\",'1. Ordersheet'!BK621)","v":""},{"$f":"IF('1. Ordersheet'!BL621=\"\",\"\",'1. Ordersheet'!BL621)","v":""}]
[{"$f":"IF('1. Ordersheet'!F622=\"\",\"\",'1. Ordersheet'!F622)","v":""},{"$f":"IF('1. Ordersheet'!G622=\"\",\"\",'1. Ordersheet'!G622)","v":""},{"$f":"IF('1. Ordersheet'!H622=\"\",\"\",'1. Ordersheet'!H622)","v":""},{"$f":"IF('1. Ordersheet'!I622=\"\",\"\",'1. Ordersheet'!I622)","v":""},{"$f":"IF('1. Ordersheet'!J622=\"\",\"\",'1. Ordersheet'!J622)","v":""},{"$f":"IF('1. Ordersheet'!K622=\"\",\"\",'1. Ordersheet'!K622)","v":""},{"$f":"IF('1. Ordersheet'!L622=\"\",\"\",'1. Ordersheet'!L622)","v":""},{"$f":"IF('1. Ordersheet'!M622=\"\",\"\",'1. Ordersheet'!M622)","v":""},{"$f":"IF('1. Ordersheet'!N622=\"\",\"\",'1. Ordersheet'!N622)","v":""},{"$f":"IF('1. Ordersheet'!O622=\"\",\"\",'1. Ordersheet'!O622)","v":{"$error":"#N/A"}},{"$f":"IF('1. Ordersheet'!P622=\"\",\"\",'1. Ordersheet'!P622)","v":{"$error":"#N/A"}},{"$f":"IF('1. Ordersheet'!Q622=\"\",\"\",'1. Ordersheet'!Q622)","v":""},{"$f":"IF('1. Ordersheet'!R622=\"\",\"\",'1. Ordersheet'!R622)","v":""},{"$f":"IF('1. Ordersheet'!S622=\"\",\"\",'1. Ordersheet'!S622)","v":""},{"$f":"IF('1. Ordersheet'!V622=\"\",\"\",'1. Ordersheet'!V622)","v":""},{"$f":"IF('1. Ordersheet'!W622=\"\",\"\",'1. Ordersheet'!W622)","v":""},{"$f":"IF('1. Ordersheet'!X622=\"\",\"\",'1. Ordersheet'!X622)","v":""},{"$f":"IF('1. Ordersheet'!Y622=\"\",\"\",'1. Ordersheet'!Y622)","v":""},{"$f":"IF('1. Ordersheet'!Z622=\"\",\"\",'1. Ordersheet'!Z622)","v":""},{"$f":"IF('1. Ordersheet'!AA622=\"\",\"\",'1. Ordersheet'!AA622)","v":""},null,{"$f":"IF('1. Ordersheet'!AS622=\"\",\"\",'1. Ordersheet'!AS622)","v":""},{"$f":"IF('1. Ordersheet'!AT622=\"\",\"\",'1. Ordersheet'!AT622)","v":""},null,null,null,null,null,null,null,{"$f":"IF('1. Ordersheet'!AX622=\"\",\"\",'1. Ordersheet'!AX622)","v":""},{"$f":"IF('1. Ordersheet'!AY622=\"\",\"\",'1. Ordersheet'!AY622)","v":""},{"$f":"IF('1. Ordersheet'!AZ622=\"\",\"\",'1. Ordersheet'!AZ622)","v":""},{"$f":"IF('1. Ordersheet'!BA622=\"\",\"\",'1. Ordersheet'!BA622)","v":""},{"$f":"IF('1. Ordersheet'!BC622=\"\",\"\",'1. Ordersheet'!BC622)","v":""},{"$f":"IF('1. Ordersheet'!BD622=\"\",\"\",'1. Ordersheet'!BD622)","v":""},{"$f":"IF('1. Ordersheet'!BE622=\"\",\"\",'1. Ordersheet'!BE622)","v":""},{"$f":"IF('1. Ordersheet'!BF622=\"\",\"\",'1. Ordersheet'!BF622)","v":""},{"$f":"IF('1. Ordersheet'!BG622=\"\",\"\",'1. Ordersheet'!BG622)","v":"ZWO"},{"$f":"IF('1. Ordersheet'!BH622=\"\",\"\",'1. Ordersheet'!BH622)","v":""},{"$f":"IF('1. Ordersheet'!BI622=\"\",\"\",'1. Ordersheet'!BI622)","v":""},{"$f":"IF('1. Ordersheet'!BJ622=\"\",\"\",'1. Ordersheet'!BJ622)","v":""},{"$f":"IF('1. Ordersheet'!BK622=\"\",\"\",'1. Ordersheet'!BK622)","v":""},{"$f":"IF('1. Ordersheet'!BL622=\"\",\"\",'1. Ordersheet'!BL622)","v":""}]
[{"$f":"IF('1. Ordersheet'!F623=\"\",\"\",'1. Ordersheet'!F623)","v":""},{"$f":"IF('1. Ordersheet'!G623=\"\",\"\",'1. Ordersheet'!G623)","v":""},{"$f":"IF('1. Ordersheet'!H623=\"\",\"\",'1. Ordersheet'!H623)","v":""},{"$f":"IF('1. Ordersheet'!I623=\"\",\"\",'1. Ordersheet'!I623)","v":""},{"$f":"IF('1. Ordersheet'!J623=\"\",\"\",'1. Ordersheet'!J623)","v":""},{"$f":"IF('1. Ordersheet'!K623=\"\",\"\",'1. Ordersheet'!K623)","v":""},{"$f":"IF('1. Ordersheet'!L623=\"\",\"\",'1. Ordersheet'!L623)","v":""},{"$f":"IF('1. Ordersheet'!M623=\"\",\"\",'1. Ordersheet'!M623)","v":""},{"$f":"IF('1. Ordersheet'!N623=\"\",\"\",'1. Ordersheet'!N623)","v":""},{"$f":"IF('1. Ordersheet'!O623=\"\",\"\",'1. Ordersheet'!O623)","v":{"$error":"#N/A"}},{"$f":"IF('1. Ordersheet'!P623=\"\",\"\",'1. Ordersheet'!P623)","v":{"$error":"#N/A"}},{"$f":"IF('1. Ordersheet'!Q623=\"\",\"\",'1. Ordersheet'!Q623)","v":""},{"$f":"IF('1. Ordersheet'!R623=\"\",\"\",'1. Ordersheet'!R623)","v":""},{"$f":"IF('1. Ordersheet'!S623=\"\",\"\",'1. Ordersheet'!S623)","v":""},{"$f":"IF('1. Ordersheet'!V623=\"\",\"\",'1. Ordersheet'!V623)","v":""},{"$f":"IF('1. Ordersheet'!W623=\"\",\"\",'1. Ordersheet'!W623)","v":""},{"$f":"IF('1. Ordersheet'!X623=\"\",\"\",'1. Ordersheet'!X623)","v":""},{"$f":"IF('1. Ordersheet'!Y623=\"\",\"\",'1. Ordersheet'!Y623)","v":""},{"$f":"IF('1. Ordersheet'!Z623=\"\",\"\",'1. Ordersheet'!Z623)","v":""},{"$f":"IF('1. Ordersheet'!AA623=\"\",\"\",'1. Ordersheet'!AA623)","v":""},null,{"$f":"IF('1. Ordersheet'!AS623=\"\",\"\",'1. Ordersheet'!AS623)","v":""},{"$f":"IF('1. Ordersheet'!AT623=\"\",\"\",'1. Ordersheet'!AT623)","v":""},null,null,null,null,null,null,null,{"$f":"IF('1. Ordersheet'!AX623=\"\",\"\",'1. Ordersheet'!AX623)","v":""},{"$f":"IF('1. Ordersheet'!AY623=\"\",\"\",'1. Ordersheet'!AY623)","v":""},{"$f":"IF('1. Ordersheet'!AZ623=\"\",\"\",'1. Ordersheet'!AZ623)","v":""},{"$f":"IF('1. Ordersheet'!BA623=\"\",\"\",'1. Ordersheet'!BA623)","v":""},{"$f":"IF('1. Ordersheet'!BC623=\"\",\"\",'1. Ordersheet'!BC623)","v":""},{"$f":"IF('1. Ordersheet'!BD623=\"\",\"\",'1. Ordersheet'!BD623)","v":""},{"$f":"IF('1. Ordersheet'!BE623=\"\",\"\",'1. Ordersheet'!BE623)","v":""},{"$f":"IF('1. Ordersheet'!BF623=\"\",\"\",'1. Ordersheet'!BF623)","v":""},{"$f":"IF('1. Ordersheet'!BG623=\"\",\"\",'1. Ordersheet'!BG623)","v":"ZWO"},{"$f":"IF('1. Ordersheet'!BH623=\"\",\"\",'1. Ordersheet'!BH623)","v":""},{"$f":"IF('1. Ordersheet'!BI623=\"\",\"\",'1. Ordersheet'!BI623)","v":""},{"$f":"IF('1. Ordersheet'!BJ623=\"\",\"\",'1. Ordersheet'!BJ623)","v":""},{"$f":"IF('1. Ordersheet'!BK623=\"\",\"\",'1. Ordersheet'!BK623)","v":""},{"$f":"IF('1. Ordersheet'!BL623=\"\",\"\",'1. Ordersheet'!BL623)","v":""}]
[{"$f":"IF('1. Ordersheet'!F624=\"\",\"\",'1. Ordersheet'!F624)","v":""},{"$f":"IF('1. Ordersheet'!G624=\"\",\"\",'1. Ordersheet'!G624)","v":""},{"$f":"IF('1. Ordersheet'!H624=\"\",\"\",'1. Ordersheet'!H624)","v":""},{"$f":"IF('1. Ordersheet'!I624=\"\",\"\",'1. Ordersheet'!I624)","v":""},{"$f":"IF('1. Ordersheet'!J624=\"\",\"\",'1. Ordersheet'!J624)","v":""},{"$f":"IF('1. Ordersheet'!K624=\"\",\"\",'1. Ordersheet'!K624)","v":""},{"$f":"IF('1. Ordersheet'!L624=\"\",\"\",'1. Ordersheet'!L624)","v":""},{"$f":"IF('1. Ordersheet'!M624=\"\",\"\",'1. Ordersheet'!M624)","v":""},{"$f":"IF('1. Ordersheet'!N624=\"\",\"\",'1. Ordersheet'!N624)","v":""},{"$f":"IF('1. Ordersheet'!O624=\"\",\"\",'1. Ordersheet'!O624)","v":{"$error":"#N/A"}},{"$f":"IF('1. Ordersheet'!P624=\"\",\"\",'1. Ordersheet'!P624)","v":{"$error":"#N/A"}},{"$f":"IF('1. Ordersheet'!Q624=\"\",\"\",'1. Ordersheet'!Q624)","v":""},{"$f":"IF('1. Ordersheet'!R624=\"\",\"\",'1. Ordersheet'!R624)","v":""},{"$f":"IF('1. Ordersheet'!S624=\"\",\"\",'1. Ordersheet'!S624)","v":""},{"$f":"IF('1. Ordersheet'!V624=\"\",\"\",'1. Ordersheet'!V624)","v":""},{"$f":"IF('1. Ordersheet'!W624=\"\",\"\",'1. Ordersheet'!W624)","v":""},{"$f":"IF('1. Ordersheet'!X624=\"\",\"\",'1. Ordersheet'!X624)","v":""},{"$f":"IF('1. Ordersheet'!Y624=\"\",\"\",'1. Ordersheet'!Y624)","v":""},{"$f":"IF('1. Ordersheet'!Z624=\"\",\"\",'1. Ordersheet'!Z624)","v":""},{"$f":"IF('1. Ordersheet'!AA624=\"\",\"\",'1. Ordersheet'!AA624)","v":""},null,{"$f":"IF('1. Ordersheet'!AS624=\"\",\"\",'1. Ordersheet'!AS624)","v":""},{"$f":"IF('1. Ordersheet'!AT624=\"\",\"\",'1. Ordersheet'!AT624)","v":""},null,null,null,null,null,null,null,{"$f":"IF('1. Ordersheet'!AX624=\"\",\"\",'1. Ordersheet'!AX624)","v":""},{"$f":"IF('1. Ordersheet'!AY624=\"\",\"\",'1. Ordersheet'!AY624)","v":""},{"$f":"IF('1. Ordersheet'!AZ624=\"\",\"\",'1. Ordersheet'!AZ624)","v":""},{"$f":"IF('1. Ordersheet'!BA624=\"\",\"\",'1. Ordersheet'!BA624)","v":""},{"$f":"IF('1. Ordersheet'!BC624=\"\",\"\",'1. Ordersheet'!BC624)","v":""},{"$f":"IF('1. Ordersheet'!BD624=\"\",\"\",'1. Ordersheet'!BD624)","v":""},{"$f":"IF('1. Ordersheet'!BE624=\"\",\"\",'1. Ordersheet'!BE624)","v":""},{"$f":"IF('1. Ordersheet'!BF624=\"\",\"\",'1. Ordersheet'!BF624)","v":""},{"$f":"IF('1. Ordersheet'!BG624=\"\",\"\",'1. Ordersheet'!BG624)","v":"ZWO"},{"$f":"IF('1. Ordersheet'!BH624=\"\",\"\",'1. Ordersheet'!BH624)","v":""},{"$f":"IF('1. Ordersheet'!BI624=\"\",\"\",'1. Ordersheet'!BI624)","v":""},{"$f":"IF('1. Ordersheet'!BJ624=\"\",\"\",'1. Ordersheet'!BJ624)","v":""},{"$f":"IF('1. Ordersheet'!BK624=\"\",\"\",'1. Ordersheet'!BK624)","v":""},{"$f":"IF('1. Ordersheet'!BL624=\"\",\"\",'1. Ordersheet'!BL624)","v":""}]
[{"$f":"IF('1. Ordersheet'!F625=\"\",\"\",'1. Ordersheet'!F625)","v":""},{"$f":"IF('1. Ordersheet'!G625=\"\",\"\",'1. Ordersheet'!G625)","v":""},{"$f":"IF('1. Ordersheet'!H625=\"\",\"\",'1. Ordersheet'!H625)","v":""},{"$f":"IF('1. Ordersheet'!I625=\"\",\"\",'1. Ordersheet'!I625)","v":""},{"$f":"IF('1. Ordersheet'!J625=\"\",\"\",'1. Ordersheet'!J625)","v":""},{"$f":"IF('1. Ordersheet'!K625=\"\",\"\",'1. Ordersheet'!K625)","v":""},{"$f":"IF('1. Ordersheet'!L625=\"\",\"\",'1. Ordersheet'!L625)","v":""},{"$f":"IF('1. Ordersheet'!M625=\"\",\"\",'1. Ordersheet'!M625)","v":""},{"$f":"IF('1. Ordersheet'!N625=\"\",\"\",'1. Ordersheet'!N625)","v":""},{"$f":"IF('1. Ordersheet'!O625=\"\",\"\",'1. Ordersheet'!O625)","v":{"$error":"#N/A"}},{"$f":"IF('1. Ordersheet'!P625=\"\",\"\",'1. Ordersheet'!P625)","v":{"$error":"#N/A"}},{"$f":"IF('1. Ordersheet'!Q625=\"\",\"\",'1. Ordersheet'!Q625)","v":""},{"$f":"IF('1. Ordersheet'!R625=\"\",\"\",'1. Ordersheet'!R625)","v":""},{"$f":"IF('1. Ordersheet'!S625=\"\",\"\",'1. Ordersheet'!S625)","v":""},{"$f":"IF('1. Ordersheet'!V625=\"\",\"\",'1. Ordersheet'!V625)","v":""},{"$f":"IF('1. Ordersheet'!W625=\"\",\"\",'1. Ordersheet'!W625)","v":""},{"$f":"IF('1. Ordersheet'!X625=\"\",\"\",'1. Ordersheet'!X625)","v":""},{"$f":"IF('1. Ordersheet'!Y625=\"\",\"\",'1. Ordersheet'!Y625)","v":""},{"$f":"IF('1. Ordersheet'!Z625=\"\",\"\",'1. Ordersheet'!Z625)","v":""},{"$f":"IF('1. Ordersheet'!AA625=\"\",\"\",'1. Ordersheet'!AA625)","v":""},null,{"$f":"IF('1. Ordersheet'!AS625=\"\",\"\",'1. Ordersheet'!AS625)","v":""},{"$f":"IF('1. Ordersheet'!AT625=\"\",\"\",'1. Ordersheet'!AT625)","v":""},null,null,null,null,null,null,null,{"$f":"IF('1. Ordersheet'!AX625=\"\",\"\",'1. Ordersheet'!AX625)","v":""},{"$f":"IF('1. Ordersheet'!AY625=\"\",\"\",'1. Ordersheet'!AY625)","v":""},{"$f":"IF('1. Ordersheet'!AZ625=\"\",\"\",'1. Ordersheet'!AZ625)","v":""},{"$f":"IF('1. Ordersheet'!BA625=\"\",\"\",'1. Ordersheet'!BA625)","v":""},{"$f":"IF('1. Ordersheet'!BC625=\"\",\"\",'1. Ordersheet'!BC625)","v":""},{"$f":"IF('1. Ordersheet'!BD625=\"\",\"\",'1. Ordersheet'!BD625)","v":""},{"$f":"IF('1. Ordersheet'!BE625=\"\",\"\",'1. Ordersheet'!BE625)","v":""},{"$f":"IF('1. Ordersheet'!BF625=\"\",\"\",'1. Ordersheet'!BF625)","v":""},{"$f":"IF('1. Ordersheet'!BG625=\"\",\"\",'1. Ordersheet'!BG625)","v":"ZWO"},{"$f":"IF('1. Ordersheet'!BH625=\"\",\"\",'1. Ordersheet'!BH625)","v":""},{"$f":"IF('1. Ordersheet'!BI625=\"\",\"\",'1. Ordersheet'!BI625)","v":""},{"$f":"IF('1. Ordersheet'!BJ625=\"\",\"\",'1. Ordersheet'!BJ625)","v":""},{"$f":"IF('1. Ordersheet'!BK625=\"\",\"\",'1. Ordersheet'!BK625)","v":""},{"$f":"IF('1. Ordersheet'!BL625=\"\",\"\",'1. Ordersheet'!BL625)","v":""}]
[{"$f":"IF('1. Ordersheet'!F626=\"\",\"\",'1. Ordersheet'!F626)","v":""},{"$f":"IF('1. Ordersheet'!G626=\"\",\"\",'1. Ordersheet'!G626)","v":""},{"$f":"IF('1. Ordersheet'!H626=\"\",\"\",'1. Ordersheet'!H626)","v":""},{"$f":"IF('1. Ordersheet'!I626=\"\",\"\",'1. Ordersheet'!I626)","v":""},{"$f":"IF('1. Ordersheet'!J626=\"\",\"\",'1. Ordersheet'!J626)","v":""},{"$f":"IF('1. Ordersheet'!K626=\"\",\"\",'1. Ordersheet'!K626)","v":""},{"$f":"IF('1. Ordersheet'!L626=\"\",\"\",'1. Ordersheet'!L626)","v":""},{"$f":"IF('1. Ordersheet'!M626=\"\",\"\",'1. Ordersheet'!M626)","v":""},{"$f":"IF('1. Ordersheet'!N626=\"\",\"\",'1. Ordersheet'!N626)","v":""},{"$f":"IF('1. Ordersheet'!O626=\"\",\"\",'1. Ordersheet'!O626)","v":{"$error":"#N/A"}},{"$f":"IF('1. Ordersheet'!P626=\"\",\"\",'1. Ordersheet'!P626)","v":{"$error":"#N/A"}},{"$f":"IF('1. Ordersheet'!Q626=\"\",\"\",'1. Ordersheet'!Q626)","v":""},{"$f":"IF('1. Ordersheet'!R626=\"\",\"\",'1. Ordersheet'!R626)","v":""},{"$f":"IF('1. Ordersheet'!S626=\"\",\"\",'1. Ordersheet'!S626)","v":""},{"$f":"IF('1. Ordersheet'!V626=\"\",\"\",'1. Ordersheet'!V626)","v":""},{"$f":"IF('1. Ordersheet'!W626=\"\",\"\",'1. Ordersheet'!W626)","v":""},{"$f":"IF('1. Ordersheet'!X626=\"\",\"\",'1. Ordersheet'!X626)","v":""},{"$f":"IF('1. Ordersheet'!Y626=\"\",\"\",'1. Ordersheet'!Y626)","v":""},{"$f":"IF('1. Ordersheet'!Z626=\"\",\"\",'1. Ordersheet'!Z626)","v":""},{"$f":"IF('1. Ordersheet'!AA626=\"\",\"\",'1. Ordersheet'!AA626)","v":""},null,{"$f":"IF('1. Ordersheet'!AS626=\"\",\"\",'1. Ordersheet'!AS626)","v":""},{"$f":"IF('1. Ordersheet'!AT626=\"\",\"\",'1. Ordersheet'!AT626)","v":""},null,null,null,null,null,null,null,{"$f":"IF('1. Ordersheet'!AX626=\"\",\"\",'1. Ordersheet'!AX626)","v":""},{"$f":"IF('1. Ordersheet'!AY626=\"\",\"\",'1. Ordersheet'!AY626)","v":""},{"$f":"IF('1. Ordersheet'!AZ626=\"\",\"\",'1. Ordersheet'!AZ626)","v":""},{"$f":"IF('1. Ordersheet'!BA626=\"\",\"\",'1. Ordersheet'!BA626)","v":""},{"$f":"IF('1. Ordersheet'!BC626=\"\",\"\",'1. Ordersheet'!BC626)","v":""},{"$f":"IF('1. Ordersheet'!BD626=\"\",\"\",'1. Ordersheet'!BD626)","v":""},{"$f":"IF('1. Ordersheet'!BE626=\"\",\"\",'1. Ordersheet'!BE626)","v":""},{"$f":"IF('1. Ordersheet'!BF626=\"\",\"\",'1. Ordersheet'!BF626)","v":""},{"$f":"IF('1. Ordersheet'!BG626=\"\",\"\",'1. Ordersheet'!BG626)","v":"ZWO"},{"$f":"IF('1. Ordersheet'!BH626=\"\",\"\",'1. Ordersheet'!BH626)","v":""},{"$f":"IF('1. Ordersheet'!BI626=\"\",\"\",'1. Ordersheet'!BI626)","v":""},{"$f":"IF('1. Ordersheet'!BJ626=\"\",\"\",'1. Ordersheet'!BJ626)","v":""},{"$f":"IF('1. Ordersheet'!BK626=\"\",\"\",'1. Ordersheet'!BK626)","v":""},{"$f":"IF('1. Ordersheet'!BL626=\"\",\"\",'1. Ordersheet'!BL626)","v":""}]
[{"$f":"IF('1. Ordersheet'!F627=\"\",\"\",'1. Ordersheet'!F627)","v":""},{"$f":"IF('1. Ordersheet'!G627=\"\",\"\",'1. Ordersheet'!G627)","v":""},{"$f":"IF('1. Ordersheet'!H627=\"\",\"\",'1. Ordersheet'!H627)","v":""},{"$f":"IF('1. Ordersheet'!I627=\"\",\"\",'1. Ordersheet'!I627)","v":""},{"$f":"IF('1. Ordersheet'!J627=\"\",\"\",'1. Ordersheet'!J627)","v":""},{"$f":"IF('1. Ordersheet'!K627=\"\",\"\",'1. Ordersheet'!K627)","v":""},{"$f":"IF('1. Ordersheet'!L627=\"\",\"\",'1. Ordersheet'!L627)","v":""},{"$f":"IF('1. Ordersheet'!M627=\"\",\"\",'1. Ordersheet'!M627)","v":""},{"$f":"IF('1. Ordersheet'!N627=\"\",\"\",'1. Ordersheet'!N627)","v":""},{"$f":"IF('1. Ordersheet'!O627=\"\",\"\",'1. Ordersheet'!O627)","v":{"$error":"#N/A"}},{"$f":"IF('1. Ordersheet'!P627=\"\",\"\",'1. Ordersheet'!P627)","v":{"$error":"#N/A"}},{"$f":"IF('1. Ordersheet'!Q627=\"\",\"\",'1. Ordersheet'!Q627)","v":""},{"$f":"IF('1. Ordersheet'!R627=\"\",\"\",'1. Ordersheet'!R627)","v":""},{"$f":"IF('1. Ordersheet'!S627=\"\",\"\",'1. Ordersheet'!S627)","v":""},{"$f":"IF('1. Ordersheet'!V627=\"\",\"\",'1. Ordersheet'!V627)","v":""},{"$f":"IF('1. Ordersheet'!W627=\"\",\"\",'1. Ordersheet'!W627)","v":""},{"$f":"IF('1. Ordersheet'!X627=\"\",\"\",'1. Ordersheet'!X627)","v":""},{"$f":"IF('1. Ordersheet'!Y627=\"\",\"\",'1. Ordersheet'!Y627)","v":""},{"$f":"IF('1. Ordersheet'!Z627=\"\",\"\",'1. Ordersheet'!Z627)","v":""},{"$f":"IF('1. Ordersheet'!AA627=\"\",\"\",'1. Ordersheet'!AA627)","v":""},null,{"$f":"IF('1. Ordersheet'!AS627=\"\",\"\",'1. Ordersheet'!AS627)","v":""},{"$f":"IF('1. Ordersheet'!AT627=\"\",\"\",'1. Ordersheet'!AT627)","v":""},null,null,null,null,null,null,null,{"$f":"IF('1. Ordersheet'!AX627=\"\",\"\",'1. Ordersheet'!AX627)","v":""},{"$f":"IF('1. Ordersheet'!AY627=\"\",\"\",'1. Ordersheet'!AY627)","v":""},{"$f":"IF('1. Ordersheet'!AZ627=\"\",\"\",'1. Ordersheet'!AZ627)","v":""},{"$f":"IF('1. Ordersheet'!BA627=\"\",\"\",'1. Ordersheet'!BA627)","v":""},{"$f":"IF('1. Ordersheet'!BC627=\"\",\"\",'1. Ordersheet'!BC627)","v":""},{"$f":"IF('1. Ordersheet'!BD627=\"\",\"\",'1. Ordersheet'!BD627)","v":""},{"$f":"IF('1. Ordersheet'!BE627=\"\",\"\",'1. Ordersheet'!BE627)","v":""},{"$f":"IF('1. Ordersheet'!BF627=\"\",\"\",'1. Ordersheet'!BF627)","v":""},{"$f":"IF('1. Ordersheet'!BG627=\"\",\"\",'1. Ordersheet'!BG627)","v":"ZWO"},{"$f":"IF('1. Ordersheet'!BH627=\"\",\"\",'1. Ordersheet'!BH627)","v":""},{"$f":"IF('1. Ordersheet'!BI627=\"\",\"\",'1. Ordersheet'!BI627)","v":""},{"$f":"IF('1. Ordersheet'!BJ627=\"\",\"\",'1. Ordersheet'!BJ627)","v":""},{"$f":"IF('1. Ordersheet'!BK627=\"\",\"\",'1. Ordersheet'!BK627)","v":""},{"$f":"IF('1. Ordersheet'!BL627=\"\",\"\",'1. Ordersheet'!BL627)","v":""}]
[{"$f":"IF('1. Ordersheet'!F628=\"\",\"\",'1. Ordersheet'!F628)","v":""},{"$f":"IF('1. Ordersheet'!G628=\"\",\"\",'1. Ordersheet'!G628)","v":""},{"$f":"IF('1. Ordersheet'!H628=\"\",\"\",'1. Ordersheet'!H628)","v":""},{"$f":"IF('1. Ordersheet'!I628=\"\",\"\",'1. Ordersheet'!I628)","v":""},{"$f":"IF('1. Ordersheet'!J628=\"\",\"\",'1. Ordersheet'!J628)","v":""},{"$f":"IF('1. Ordersheet'!K628=\"\",\"\",'1. Ordersheet'!K628)","v":""},{"$f":"IF('1. Ordersheet'!L628=\"\",\"\",'1. Ordersheet'!L628)","v":""},{"$f":"IF('1. Ordersheet'!M628=\"\",\"\",'1. Ordersheet'!M628)","v":""},{"$f":"IF('1. Ordersheet'!N628=\"\",\"\",'1. Ordersheet'!N628)","v":""},{"$f":"IF('1. Ordersheet'!O628=\"\",\"\",'1. Ordersheet'!O628)","v":{"$error":"#N/A"}},{"$f":"IF('1. Ordersheet'!P628=\"\",\"\",'1. Ordersheet'!P628)","v":{"$error":"#N/A"}},{"$f":"IF('1. Ordersheet'!Q628=\"\",\"\",'1. Ordersheet'!Q628)","v":""},{"$f":"IF('1. Ordersheet'!R628=\"\",\"\",'1. Ordersheet'!R628)","v":""},{"$f":"IF('1. Ordersheet'!S628=\"\",\"\",'1. Ordersheet'!S628)","v":""},{"$f":"IF('1. Ordersheet'!V628=\"\",\"\",'1. Ordersheet'!V628)","v":""},{"$f":"IF('1. Ordersheet'!W628=\"\",\"\",'1. Ordersheet'!W628)","v":""},{"$f":"IF('1. Ordersheet'!X628=\"\",\"\",'1. Ordersheet'!X628)","v":""},{"$f":"IF('1. Ordersheet'!Y628=\"\",\"\",'1. Ordersheet'!Y628)","v":""},{"$f":"IF('1. Ordersheet'!Z628=\"\",\"\",'1. Ordersheet'!Z628)","v":""},{"$f":"IF('1. Ordersheet'!AA628=\"\",\"\",'1. Ordersheet'!AA628)","v":""},null,{"$f":"IF('1. Ordersheet'!AS628=\"\",\"\",'1. Ordersheet'!AS628)","v":""},{"$f":"IF('1. Ordersheet'!AT628=\"\",\"\",'1. Ordersheet'!AT628)","v":""},null,null,null,null,null,null,null,{"$f":"IF('1. Ordersheet'!AX628=\"\",\"\",'1. Ordersheet'!AX628)","v":""},{"$f":"IF('1. Ordersheet'!AY628=\"\",\"\",'1. Ordersheet'!AY628)","v":""},{"$f":"IF('1. Ordersheet'!AZ628=\"\",\"\",'1. Ordersheet'!AZ628)","v":""},{"$f":"IF('1. Ordersheet'!BA628=\"\",\"\",'1. Ordersheet'!BA628)","v":""},{"$f":"IF('1. Ordersheet'!BC628=\"\",\"\",'1. Ordersheet'!BC628)","v":""},{"$f":"IF('1. Ordersheet'!BD628=\"\",\"\",'1. Ordersheet'!BD628)","v":""},{"$f":"IF('1. Ordersheet'!BE628=\"\",\"\",'1. Ordersheet'!BE628)","v":""},{"$f":"IF('1. Ordersheet'!BF628=\"\",\"\",'1. Ordersheet'!BF628)","v":""},{"$f":"IF('1. Ordersheet'!BG628=\"\",\"\",'1. Ordersheet'!BG628)","v":"ZWO"},{"$f":"IF('1. Ordersheet'!BH628=\"\",\"\",'1. Ordersheet'!BH628)","v":""},{"$f":"IF('1. Ordersheet'!BI628=\"\",\"\",'1. Ordersheet'!BI628)","v":""},{"$f":"IF('1. Ordersheet'!BJ628=\"\",\"\",'1. Ordersheet'!BJ628)","v":""},{"$f":"IF('1. Ordersheet'!BK628=\"\",\"\",'1. Ordersheet'!BK628)","v":""},{"$f":"IF('1. Ordersheet'!BL628=\"\",\"\",'1. Ordersheet'!BL628)","v":""}]
[{"$f":"IF('1. Ordersheet'!F629=\"\",\"\",'1. Ordersheet'!F629)","v":""},{"$f":"IF('1. Ordersheet'!G629=\"\",\"\",'1. Ordersheet'!G629)","v":""},{"$f":"IF('1. Ordersheet'!H629=\"\",\"\",'1. Ordersheet'!H629)","v":""},{"$f":"IF('1. Ordersheet'!I629=\"\",\"\",'1. Ordersheet'!I629)","v":""},{"$f":"IF('1. Ordersheet'!J629=\"\",\"\",'1. Ordersheet'!J629)","v":""},{"$f":"IF('1. Ordersheet'!K629=\"\",\"\",'1. Ordersheet'!K629)","v":""},{"$f":"IF('1. Ordersheet'!L629=\"\",\"\",'1. Ordersheet'!L629)","v":""},{"$f":"IF('1. Ordersheet'!M629=\"\",\"\",'1. Ordersheet'!M629)","v":""},{"$f":"IF('1. Ordersheet'!N629=\"\",\"\",'1. Ordersheet'!N629)","v":""},{"$f":"IF('1. Ordersheet'!O629=\"\",\"\",'1. Ordersheet'!O629)","v":{"$error":"#N/A"}},{"$f":"IF('1. Ordersheet'!P629=\"\",\"\",'1. Ordersheet'!P629)","v":{"$error":"#N/A"}},{"$f":"IF('1. Ordersheet'!Q629=\"\",\"\",'1. Ordersheet'!Q629)","v":""},{"$f":"IF('1. Ordersheet'!R629=\"\",\"\",'1. Ordersheet'!R629)","v":""},{"$f":"IF('1. Ordersheet'!S629=\"\",\"\",'1. Ordersheet'!S629)","v":""},{"$f":"IF('1. Ordersheet'!V629=\"\",\"\",'1. Ordersheet'!V629)","v":""},{"$f":"IF('1. Ordersheet'!W629=\"\",\"\",'1. Ordersheet'!W629)","v":""},{"$f":"IF('1. Ordersheet'!X629=\"\",\"\",'1. Ordersheet'!X629)","v":""},{"$f":"IF('1. Ordersheet'!Y629=\"\",\"\",'1. Ordersheet'!Y629)","v":""},{"$f":"IF('1. Ordersheet'!Z629=\"\",\"\",'1. Ordersheet'!Z629)","v":""},{"$f":"IF('1. Ordersheet'!AA629=\"\",\"\",'1. Ordersheet'!AA629)","v":""},null,{"$f":"IF('1. Ordersheet'!AS629=\"\",\"\",'1. Ordersheet'!AS629)","v":""},{"$f":"IF('1. Ordersheet'!AT629=\"\",\"\",'1. Ordersheet'!AT629)","v":""},null,null,null,null,null,null,null,{"$f":"IF('1. Ordersheet'!AX629=\"\",\"\",'1. Ordersheet'!AX629)","v":""},{"$f":"IF('1. Ordersheet'!AY629=\"\",\"\",'1. Ordersheet'!AY629)","v":""},{"$f":"IF('1. Ordersheet'!AZ629=\"\",\"\",'1. Ordersheet'!AZ629)","v":""},{"$f":"IF('1. Ordersheet'!BA629=\"\",\"\",'1. Ordersheet'!BA629)","v":""},{"$f":"IF('1. Ordersheet'!BC629=\"\",\"\",'1. Ordersheet'!BC629)","v":""},{"$f":"IF('1. Ordersheet'!BD629=\"\",\"\",'1. Ordersheet'!BD629)","v":""},{"$f":"IF('1. Ordersheet'!BE629=\"\",\"\",'1. Ordersheet'!BE629)","v":""},{"$f":"IF('1. Ordersheet'!BF629=\"\",\"\",'1. Ordersheet'!BF629)","v":""},{"$f":"IF('1. Ordersheet'!BG629=\"\",\"\",'1. Ordersheet'!BG629)","v":"ZWO"},{"$f":"IF('1. Ordersheet'!BH629=\"\",\"\",'1. Ordersheet'!BH629)","v":""},{"$f":"IF('1. Ordersheet'!BI629=\"\",\"\",'1. Ordersheet'!BI629)","v":""},{"$f":"IF('1. Ordersheet'!BJ629=\"\",\"\",'1. Ordersheet'!BJ629)","v":""},{"$f":"IF('1. Ordersheet'!BK629=\"\",\"\",'1. Ordersheet'!BK629)","v":""},{"$f":"IF('1. Ordersheet'!BL629=\"\",\"\",'1. Ordersheet'!BL629)","v":""}]
[{"$f":"IF('1. Ordersheet'!F630=\"\",\"\",'1. Ordersheet'!F630)","v":""},{"$f":"IF('1. Ordersheet'!G630=\"\",\"\",'1. Ordersheet'!G630)","v":""},{"$f":"IF('1. Ordersheet'!H630=\"\",\"\",'1. Ordersheet'!H630)","v":""},{"$f":"IF('1. Ordersheet'!I630=\"\",\"\",'1. Ordersheet'!I630)","v":""},{"$f":"IF('1. Ordersheet'!J630=\"\",\"\",'1. Ordersheet'!J630)","v":""},{"$f":"IF('1. Ordersheet'!K630=\"\",\"\",'1. Ordersheet'!K630)","v":""},{"$f":"IF('1. Ordersheet'!L630=\"\",\"\",'1. Ordersheet'!L630)","v":""},{"$f":"IF('1. Ordersheet'!M630=\"\",\"\",'1. Ordersheet'!M630)","v":""},{"$f":"IF('1. Ordersheet'!N630=\"\",\"\",'1. Ordersheet'!N630)","v":""},{"$f":"IF('1. Ordersheet'!O630=\"\",\"\",'1. Ordersheet'!O630)","v":{"$error":"#N/A"}},{"$f":"IF('1. Ordersheet'!P630=\"\",\"\",'1. Ordersheet'!P630)","v":{"$error":"#N/A"}},{"$f":"IF('1. Ordersheet'!Q630=\"\",\"\",'1. Ordersheet'!Q630)","v":""},{"$f":"IF('1. Ordersheet'!R630=\"\",\"\",'1. Ordersheet'!R630)","v":""},{"$f":"IF('1. Ordersheet'!S630=\"\",\"\",'1. Ordersheet'!S630)","v":""},{"$f":"IF('1. Ordersheet'!V630=\"\",\"\",'1. Ordersheet'!V630)","v":""},{"$f":"IF('1. Ordersheet'!W630=\"\",\"\",'1. Ordersheet'!W630)","v":""},{"$f":"IF('1. Ordersheet'!X630=\"\",\"\",'1. Ordersheet'!X630)","v":""},{"$f":"IF('1. Ordersheet'!Y630=\"\",\"\",'1. Ordersheet'!Y630)","v":""},{"$f":"IF('1. Ordersheet'!Z630=\"\",\"\",'1. Ordersheet'!Z630)","v":""},{"$f":"IF('1. Ordersheet'!AA630=\"\",\"\",'1. Ordersheet'!AA630)","v":""},null,{"$f":"IF('1. Ordersheet'!AS630=\"\",\"\",'1. Ordersheet'!AS630)","v":""},{"$f":"IF('1. Ordersheet'!AT630=\"\",\"\",'1. Ordersheet'!AT630)","v":""},null,null,null,null,null,null,null,{"$f":"IF('1. Ordersheet'!AX630=\"\",\"\",'1. Ordersheet'!AX630)","v":""},{"$f":"IF('1. Ordersheet'!AY630=\"\",\"\",'1. Ordersheet'!AY630)","v":""},{"$f":"IF('1. Ordersheet'!AZ630=\"\",\"\",'1. Ordersheet'!AZ630)","v":""},{"$f":"IF('1. Ordersheet'!BA630=\"\",\"\",'1. Ordersheet'!BA630)","v":""},{"$f":"IF('1. Ordersheet'!BC630=\"\",\"\",'1. Ordersheet'!BC630)","v":""},{"$f":"IF('1. Ordersheet'!BD630=\"\",\"\",'1. Ordersheet'!BD630)","v":""},{"$f":"IF('1. Ordersheet'!BE630=\"\",\"\",'1. Ordersheet'!BE630)","v":""},{"$f":"IF('1. Ordersheet'!BF630=\"\",\"\",'1. Ordersheet'!BF630)","v":""},{"$f":"IF('1. Ordersheet'!BG630=\"\",\"\",'1. Ordersheet'!BG630)","v":"ZWO"},{"$f":"IF('1. Ordersheet'!BH630=\"\",\"\",'1. Ordersheet'!BH630)","v":""},{"$f":"IF('1. Ordersheet'!BI630=\"\",\"\",'1. Ordersheet'!BI630)","v":""},{"$f":"IF('1. Ordersheet'!BJ630=\"\",\"\",'1. Ordersheet'!BJ630)","v":""},{"$f":"IF('1. Ordersheet'!BK630=\"\",\"\",'1. Ordersheet'!BK630)","v":""},{"$f":"IF('1. Ordersheet'!BL630=\"\",\"\",'1. Ordersheet'!BL630)","v":""}]
[{"$f":"IF('1. Ordersheet'!F631=\"\",\"\",'1. Ordersheet'!F631)","v":""},{"$f":"IF('1. Ordersheet'!G631=\"\",\"\",'1. Ordersheet'!G631)","v":""},{"$f":"IF('1. Ordersheet'!H631=\"\",\"\",'1. Ordersheet'!H631)","v":""},{"$f":"IF('1. Ordersheet'!I631=\"\",\"\",'1. Ordersheet'!I631)","v":""},{"$f":"IF('1. Ordersheet'!J631=\"\",\"\",'1. Ordersheet'!J631)","v":""},{"$f":"IF('1. Ordersheet'!K631=\"\",\"\",'1. Ordersheet'!K631)","v":""},{"$f":"IF('1. Ordersheet'!L631=\"\",\"\",'1. Ordersheet'!L631)","v":""},{"$f":"IF('1. Ordersheet'!M631=\"\",\"\",'1. Ordersheet'!M631)","v":""},{"$f":"IF('1. Ordersheet'!N631=\"\",\"\",'1. Ordersheet'!N631)","v":""},{"$f":"IF('1. Ordersheet'!O631=\"\",\"\",'1. Ordersheet'!O631)","v":{"$error":"#N/A"}},{"$f":"IF('1. Ordersheet'!P631=\"\",\"\",'1. Ordersheet'!P631)","v":{"$error":"#N/A"}},{"$f":"IF('1. Ordersheet'!Q631=\"\",\"\",'1. Ordersheet'!Q631)","v":""},{"$f":"IF('1. Ordersheet'!R631=\"\",\"\",'1. Ordersheet'!R631)","v":""},{"$f":"IF('1. Ordersheet'!S631=\"\",\"\",'1. Ordersheet'!S631)","v":""},{"$f":"IF('1. Ordersheet'!V631=\"\",\"\",'1. Ordersheet'!V631)","v":""},{"$f":"IF('1. Ordersheet'!W631=\"\",\"\",'1. Ordersheet'!W631)","v":""},{"$f":"IF('1. Ordersheet'!X631=\"\",\"\",'1. Ordersheet'!X631)","v":""},{"$f":"IF('1. Ordersheet'!Y631=\"\",\"\",'1. Ordersheet'!Y631)","v":""},{"$f":"IF('1. Ordersheet'!Z631=\"\",\"\",'1. Ordersheet'!Z631)","v":""},{"$f":"IF('1. Ordersheet'!AA631=\"\",\"\",'1. Ordersheet'!AA631)","v":""},null,{"$f":"IF('1. Ordersheet'!AS631=\"\",\"\",'1. Ordersheet'!AS631)","v":""},{"$f":"IF('1. Ordersheet'!AT631=\"\",\"\",'1. Ordersheet'!AT631)","v":""},null,null,null,null,null,null,null,{"$f":"IF('1. Ordersheet'!AX631=\"\",\"\",'1. Ordersheet'!AX631)","v":""},{"$f":"IF('1. Ordersheet'!AY631=\"\",\"\",'1. Ordersheet'!AY631)","v":""},{"$f":"IF('1. Ordersheet'!AZ631=\"\",\"\",'1. Ordersheet'!AZ631)","v":""},{"$f":"IF('1. Ordersheet'!BA631=\"\",\"\",'1. Ordersheet'!BA631)","v":""},{"$f":"IF('1. Ordersheet'!BC631=\"\",\"\",'1. Ordersheet'!BC631)","v":""},{"$f":"IF('1. Ordersheet'!BD631=\"\",\"\",'1. Ordersheet'!BD631)","v":""},{"$f":"IF('1. Ordersheet'!BE631=\"\",\"\",'1. Ordersheet'!BE631)","v":""},{"$f":"IF('1. Ordersheet'!BF631=\"\",\"\",'1. Ordersheet'!BF631)","v":""},{"$f":"IF('1. Ordersheet'!BG631=\"\",\"\",'1. Ordersheet'!BG631)","v":"ZWO"},{"$f":"IF('1. Ordersheet'!BH631=\"\",\"\",'1. Ordersheet'!BH631)","v":""},{"$f":"IF('1. Ordersheet'!BI631=\"\",\"\",'1. Ordersheet'!BI631)","v":""},{"$f":"IF('1. Ordersheet'!BJ631=\"\",\"\",'1. Ordersheet'!BJ631)","v":""},{"$f":"IF('1. Ordersheet'!BK631=\"\",\"\",'1. Ordersheet'!BK631)","v":""},{"$f":"IF('1. Ordersheet'!BL631=\"\",\"\",'1. Ordersheet'!BL631)","v":""}]
[{"$f":"IF('1. Ordersheet'!F632=\"\",\"\",'1. Ordersheet'!F632)","v":""},{"$f":"IF('1. Ordersheet'!G632=\"\",\"\",'1. Ordersheet'!G632)","v":""},{"$f":"IF('1. Ordersheet'!H632=\"\",\"\",'1. Ordersheet'!H632)","v":""},{"$f":"IF('1. Ordersheet'!I632=\"\",\"\",'1. Ordersheet'!I632)","v":""},{"$f":"IF('1. Ordersheet'!J632=\"\",\"\",'1. Ordersheet'!J632)","v":""},{"$f":"IF('1. Ordersheet'!K632=\"\",\"\",'1. Ordersheet'!K632)","v":""},{"$f":"IF('1. Ordersheet'!L632=\"\",\"\",'1. Ordersheet'!L632)","v":""},{"$f":"IF('1. Ordersheet'!M632=\"\",\"\",'1. Ordersheet'!M632)","v":""},{"$f":"IF('1. Ordersheet'!N632=\"\",\"\",'1. Ordersheet'!N632)","v":""},{"$f":"IF('1. Ordersheet'!O632=\"\",\"\",'1. Ordersheet'!O632)","v":{"$error":"#N/A"}},{"$f":"IF('1. Ordersheet'!P632=\"\",\"\",'1. Ordersheet'!P632)","v":{"$error":"#N/A"}},{"$f":"IF('1. Ordersheet'!Q632=\"\",\"\",'1. Ordersheet'!Q632)","v":""},{"$f":"IF('1. Ordersheet'!R632=\"\",\"\",'1. Ordersheet'!R632)","v":""},{"$f":"IF('1. Ordersheet'!S632=\"\",\"\",'1. Ordersheet'!S632)","v":""},{"$f":"IF('1. Ordersheet'!V632=\"\",\"\",'1. Ordersheet'!V632)","v":""},{"$f":"IF('1. Ordersheet'!W632=\"\",\"\",'1. Ordersheet'!W632)","v":""},{"$f":"IF('1. Ordersheet'!X632=\"\",\"\",'1. Ordersheet'!X632)","v":""},{"$f":"IF('1. Ordersheet'!Y632=\"\",\"\",'1. Ordersheet'!Y632)","v":""},{"$f":"IF('1. Ordersheet'!Z632=\"\",\"\",'1. Ordersheet'!Z632)","v":""},{"$f":"IF('1. Ordersheet'!AA632=\"\",\"\",'1. Ordersheet'!AA632)","v":""},null,{"$f":"IF('1. Ordersheet'!AS632=\"\",\"\",'1. Ordersheet'!AS632)","v":""},{"$f":"IF('1. Ordersheet'!AT632=\"\",\"\",'1. Ordersheet'!AT632)","v":""},null,null,null,null,null,null,null,{"$f":"IF('1. Ordersheet'!AX632=\"\",\"\",'1. Ordersheet'!AX632)","v":""},{"$f":"IF('1. Ordersheet'!AY632=\"\",\"\",'1. Ordersheet'!AY632)","v":""},{"$f":"IF('1. Ordersheet'!AZ632=\"\",\"\",'1. Ordersheet'!AZ632)","v":""},{"$f":"IF('1. Ordersheet'!BA632=\"\",\"\",'1. Ordersheet'!BA632)","v":""},{"$f":"IF('1. Ordersheet'!BC632=\"\",\"\",'1. Ordersheet'!BC632)","v":""},{"$f":"IF('1. Ordersheet'!BD632=\"\",\"\",'1. Ordersheet'!BD632)","v":""},{"$f":"IF('1. Ordersheet'!BE632=\"\",\"\",'1. Ordersheet'!BE632)","v":""},{"$f":"IF('1. Ordersheet'!BF632=\"\",\"\",'1. Ordersheet'!BF632)","v":""},{"$f":"IF('1. Ordersheet'!BG632=\"\",\"\",'1. Ordersheet'!BG632)","v":"ZWO"},{"$f":"IF('1. Ordersheet'!BH632=\"\",\"\",'1. Ordersheet'!BH632)","v":""},{"$f":"IF('1. Ordersheet'!BI632=\"\",\"\",'1. Ordersheet'!BI632)","v":""},{"$f":"IF('1. Ordersheet'!BJ632=\"\",\"\",'1. Ordersheet'!BJ632)","v":""},{"$f":"IF('1. Ordersheet'!BK632=\"\",\"\",'1. Ordersheet'!BK632)","v":""},{"$f":"IF('1. Ordersheet'!BL632=\"\",\"\",'1. Ordersheet'!BL632)","v":""}]
[{"$f":"IF('1. Ordersheet'!F633=\"\",\"\",'1. Ordersheet'!F633)","v":""},{"$f":"IF('1. Ordersheet'!G633=\"\",\"\",'1. Ordersheet'!G633)","v":""},{"$f":"IF('1. Ordersheet'!H633=\"\",\"\",'1. Ordersheet'!H633)","v":""},{"$f":"IF('1. Ordersheet'!I633=\"\",\"\",'1. Ordersheet'!I633)","v":""},{"$f":"IF('1. Ordersheet'!J633=\"\",\"\",'1. Ordersheet'!J633)","v":""},{"$f":"IF('1. Ordersheet'!K633=\"\",\"\",'1. Ordersheet'!K633)","v":""},{"$f":"IF('1. Ordersheet'!L633=\"\",\"\",'1. Ordersheet'!L633)","v":""},{"$f":"IF('1. Ordersheet'!M633=\"\",\"\",'1. Ordersheet'!M633)","v":""},{"$f":"IF('1. Ordersheet'!N633=\"\",\"\",'1. Ordersheet'!N633)","v":""},{"$f":"IF('1. Ordersheet'!O633=\"\",\"\",'1. Ordersheet'!O633)","v":{"$error":"#N/A"}},{"$f":"IF('1. Ordersheet'!P633=\"\",\"\",'1. Ordersheet'!P633)","v":{"$error":"#N/A"}},{"$f":"IF('1. Ordersheet'!Q633=\"\",\"\",'1. Ordersheet'!Q633)","v":""},{"$f":"IF('1. Ordersheet'!R633=\"\",\"\",'1. Ordersheet'!R633)","v":""},{"$f":"IF('1. Ordersheet'!S633=\"\",\"\",'1. Ordersheet'!S633)","v":""},{"$f":"IF('1. Ordersheet'!V633=\"\",\"\",'1. Ordersheet'!V633)","v":""},{"$f":"IF('1. Ordersheet'!W633=\"\",\"\",'1. Ordersheet'!W633)","v":""},{"$f":"IF('1. Ordersheet'!X633=\"\",\"\",'1. Ordersheet'!X633)","v":""},{"$f":"IF('1. Ordersheet'!Y633=\"\",\"\",'1. Ordersheet'!Y633)","v":""},{"$f":"IF('1. Ordersheet'!Z633=\"\",\"\",'1. Ordersheet'!Z633)","v":""},{"$f":"IF('1. Ordersheet'!AA633=\"\",\"\",'1. Ordersheet'!AA633)","v":""},null,{"$f":"IF('1. Ordersheet'!AS633=\"\",\"\",'1. Ordersheet'!AS633)","v":""},{"$f":"IF('1. Ordersheet'!AT633=\"\",\"\",'1. Ordersheet'!AT633)","v":""},null,null,null,null,null,null,null,{"$f":"IF('1. Ordersheet'!AX633=\"\",\"\",'1. Ordersheet'!AX633)","v":""},{"$f":"IF('1. Ordersheet'!AY633=\"\",\"\",'1. Ordersheet'!AY633)","v":""},{"$f":"IF('1. Ordersheet'!AZ633=\"\",\"\",'1. Ordersheet'!AZ633)","v":""},{"$f":"IF('1. Ordersheet'!BA633=\"\",\"\",'1. Ordersheet'!BA633)","v":""},{"$f":"IF('1. Ordersheet'!BC633=\"\",\"\",'1. Ordersheet'!BC633)","v":""},{"$f":"IF('1. Ordersheet'!BD633=\"\",\"\",'1. Ordersheet'!BD633)","v":""},{"$f":"IF('1. Ordersheet'!BE633=\"\",\"\",'1. Ordersheet'!BE633)","v":""},{"$f":"IF('1. Ordersheet'!BF633=\"\",\"\",'1. Ordersheet'!BF633)","v":""},{"$f":"IF('1. Ordersheet'!BG633=\"\",\"\",'1. Ordersheet'!BG633)","v":"ZWO"},{"$f":"IF('1. Ordersheet'!BH633=\"\",\"\",'1. Ordersheet'!BH633)","v":""},{"$f":"IF('1. Ordersheet'!BI633=\"\",\"\",'1. Ordersheet'!BI633)","v":""},{"$f":"IF('1. Ordersheet'!BJ633=\"\",\"\",'1. Ordersheet'!BJ633)","v":""},{"$f":"IF('1. Ordersheet'!BK633=\"\",\"\",'1. Ordersheet'!BK633)","v":""},{"$f":"IF('1. Ordersheet'!BL633=\"\",\"\",'1. Ordersheet'!BL633)","v":""}]
[{"$f":"IF('1. Ordersheet'!F634=\"\",\"\",'1. Ordersheet'!F634)","v":""},{"$f":"IF('1. Ordersheet'!G634=\"\",\"\",'1. Ordersheet'!G634)","v":""},{"$f":"IF('1. Ordersheet'!H634=\"\",\"\",'1. Ordersheet'!H634)","v":""},{"$f":"IF('1. Ordersheet'!I634=\"\",\"\",'1. Ordersheet'!I634)","v":""},{"$f":"IF('1. Ordersheet'!J634=\"\",\"\",'1. Ordersheet'!J634)","v":""},{"$f":"IF('1. Ordersheet'!K634=\"\",\"\",'1. Ordersheet'!K634)","v":""},{"$f":"IF('1. Ordersheet'!L634=\"\",\"\",'1. Ordersheet'!L634)","v":""},{"$f":"IF('1. Ordersheet'!M634=\"\",\"\",'1. Ordersheet'!M634)","v":""},{"$f":"IF('1. Ordersheet'!N634=\"\",\"\",'1. Ordersheet'!N634)","v":""},{"$f":"IF('1. Ordersheet'!O634=\"\",\"\",'1. Ordersheet'!O634)","v":{"$error":"#N/A"}},{"$f":"IF('1. Ordersheet'!P634=\"\",\"\",'1. Ordersheet'!P634)","v":{"$error":"#N/A"}},{"$f":"IF('1. Ordersheet'!Q634=\"\",\"\",'1. Ordersheet'!Q634)","v":""},{"$f":"IF('1. Ordersheet'!R634=\"\",\"\",'1. Ordersheet'!R634)","v":""},{"$f":"IF('1. Ordersheet'!S634=\"\",\"\",'1. Ordersheet'!S634)","v":""},{"$f":"IF('1. Ordersheet'!V634=\"\",\"\",'1. Ordersheet'!V634)","v":""},{"$f":"IF('1. Ordersheet'!W634=\"\",\"\",'1. Ordersheet'!W634)","v":""},{"$f":"IF('1. Ordersheet'!X634=\"\",\"\",'1. Ordersheet'!X634)","v":""},{"$f":"IF('1. Ordersheet'!Y634=\"\",\"\",'1. Ordersheet'!Y634)","v":""},{"$f":"IF('1. Ordersheet'!Z634=\"\",\"\",'1. Ordersheet'!Z634)","v":""},{"$f":"IF('1. Ordersheet'!AA634=\"\",\"\",'1. Ordersheet'!AA634)","v":""},null,{"$f":"IF('1. Ordersheet'!AS634=\"\",\"\",'1. Ordersheet'!AS634)","v":""},{"$f":"IF('1. Ordersheet'!AT634=\"\",\"\",'1. Ordersheet'!AT634)","v":""},null,null,null,null,null,null,null,{"$f":"IF('1. Ordersheet'!AX634=\"\",\"\",'1. Ordersheet'!AX634)","v":""},{"$f":"IF('1. Ordersheet'!AY634=\"\",\"\",'1. Ordersheet'!AY634)","v":""},{"$f":"IF('1. Ordersheet'!AZ634=\"\",\"\",'1. Ordersheet'!AZ634)","v":""},{"$f":"IF('1. Ordersheet'!BA634=\"\",\"\",'1. Ordersheet'!BA634)","v":""},{"$f":"IF('1. Ordersheet'!BC634=\"\",\"\",'1. Ordersheet'!BC634)","v":""},{"$f":"IF('1. Ordersheet'!BD634=\"\",\"\",'1. Ordersheet'!BD634)","v":""},{"$f":"IF('1. Ordersheet'!BE634=\"\",\"\",'1. Ordersheet'!BE634)","v":""},{"$f":"IF('1. Ordersheet'!BF634=\"\",\"\",'1. Ordersheet'!BF634)","v":""},{"$f":"IF('1. Ordersheet'!BG634=\"\",\"\",'1. Ordersheet'!BG634)","v":"ZWO"},{"$f":"IF('1. Ordersheet'!BH634=\"\",\"\",'1. Ordersheet'!BH634)","v":""},{"$f":"IF('1. Ordersheet'!BI634=\"\",\"\",'1. Ordersheet'!BI634)","v":""},{"$f":"IF('1. Ordersheet'!BJ634=\"\",\"\",'1. Ordersheet'!BJ634)","v":""},{"$f":"IF('1. Ordersheet'!BK634=\"\",\"\",'1. Ordersheet'!BK634)","v":""},{"$f":"IF('1. Ordersheet'!BL634=\"\",\"\",'1. Ordersheet'!BL634)","v":""}]
[{"$f":"IF('1. Ordersheet'!F635=\"\",\"\",'1. Ordersheet'!F635)","v":""},{"$f":"IF('1. Ordersheet'!G635=\"\",\"\",'1. Ordersheet'!G635)","v":""},{"$f":"IF('1. Ordersheet'!H635=\"\",\"\",'1. Ordersheet'!H635)","v":""},{"$f":"IF('1. Ordersheet'!I635=\"\",\"\",'1. Ordersheet'!I635)","v":""},{"$f":"IF('1. Ordersheet'!J635=\"\",\"\",'1. Ordersheet'!J635)","v":""},{"$f":"IF('1. Ordersheet'!K635=\"\",\"\",'1. Ordersheet'!K635)","v":""},{"$f":"IF('1. Ordersheet'!L635=\"\",\"\",'1. Ordersheet'!L635)","v":""},{"$f":"IF('1. Ordersheet'!M635=\"\",\"\",'1. Ordersheet'!M635)","v":""},{"$f":"IF('1. Ordersheet'!N635=\"\",\"\",'1. Ordersheet'!N635)","v":""},{"$f":"IF('1. Ordersheet'!O635=\"\",\"\",'1. Ordersheet'!O635)","v":{"$error":"#N/A"}},{"$f":"IF('1. Ordersheet'!P635=\"\",\"\",'1. Ordersheet'!P635)","v":{"$error":"#N/A"}},{"$f":"IF('1. Ordersheet'!Q635=\"\",\"\",'1. Ordersheet'!Q635)","v":""},{"$f":"IF('1. Ordersheet'!R635=\"\",\"\",'1. Ordersheet'!R635)","v":""},{"$f":"IF('1. Ordersheet'!S635=\"\",\"\",'1. Ordersheet'!S635)","v":""},{"$f":"IF('1. Ordersheet'!V635=\"\",\"\",'1. Ordersheet'!V635)","v":""},{"$f":"IF('1. Ordersheet'!W635=\"\",\"\",'1. Ordersheet'!W635)","v":""},{"$f":"IF('1. Ordersheet'!X635=\"\",\"\",'1. Ordersheet'!X635)","v":""},{"$f":"IF('1. Ordersheet'!Y635=\"\",\"\",'1. Ordersheet'!Y635)","v":""},{"$f":"IF('1. Ordersheet'!Z635=\"\",\"\",'1. Ordersheet'!Z635)","v":""},{"$f":"IF('1. Ordersheet'!AA635=\"\",\"\",'1. Ordersheet'!AA635)","v":""},null,{"$f":"IF('1. Ordersheet'!AS635=\"\",\"\",'1. Ordersheet'!AS635)","v":""},{"$f":"IF('1. Ordersheet'!AT635=\"\",\"\",'1. Ordersheet'!AT635)","v":""},null,null,null,null,null,null,null,{"$f":"IF('1. Ordersheet'!AX635=\"\",\"\",'1. Ordersheet'!AX635)","v":""},{"$f":"IF('1. Ordersheet'!AY635=\"\",\"\",'1. Ordersheet'!AY635)","v":""},{"$f":"IF('1. Ordersheet'!AZ635=\"\",\"\",'1. Ordersheet'!AZ635)","v":""},{"$f":"IF('1. Ordersheet'!BA635=\"\",\"\",'1. Ordersheet'!BA635)","v":""},{"$f":"IF('1. Ordersheet'!BC635=\"\",\"\",'1. Ordersheet'!BC635)","v":""},{"$f":"IF('1. Ordersheet'!BD635=\"\",\"\",'1. Ordersheet'!BD635)","v":""},{"$f":"IF('1. Ordersheet'!BE635=\"\",\"\",'1. Ordersheet'!BE635)","v":""},{"$f":"IF('1. Ordersheet'!BF635=\"\",\"\",'1. Ordersheet'!BF635)","v":""},{"$f":"IF('1. Ordersheet'!BG635=\"\",\"\",'1. Ordersheet'!BG635)","v":"ZWO"},{"$f":"IF('1. Ordersheet'!BH635=\"\",\"\",'1. Ordersheet'!BH635)","v":""},{"$f":"IF('1. Ordersheet'!BI635=\"\",\"\",'1. Ordersheet'!BI635)","v":""},{"$f":"IF('1. Ordersheet'!BJ635=\"\",\"\",'1. Ordersheet'!BJ635)","v":""},{"$f":"IF('1. Ordersheet'!BK635=\"\",\"\",'1. Ordersheet'!BK635)","v":""},{"$f":"IF('1. Ordersheet'!BL635=\"\",\"\",'1. Ordersheet'!BL635)","v":""}]
[{"$f":"IF('1. Ordersheet'!F636=\"\",\"\",'1. Ordersheet'!F636)","v":""},{"$f":"IF('1. Ordersheet'!G636=\"\",\"\",'1. Ordersheet'!G636)","v":""},{"$f":"IF('1. Ordersheet'!H636=\"\",\"\",'1. Ordersheet'!H636)","v":""},{"$f":"IF('1. Ordersheet'!I636=\"\",\"\",'1. Ordersheet'!I636)","v":""},{"$f":"IF('1. Ordersheet'!J636=\"\",\"\",'1. Ordersheet'!J636)","v":""},{"$f":"IF('1. Ordersheet'!K636=\"\",\"\",'1. Ordersheet'!K636)","v":""},{"$f":"IF('1. Ordersheet'!L636=\"\",\"\",'1. Ordersheet'!L636)","v":""},{"$f":"IF('1. Ordersheet'!M636=\"\",\"\",'1. Ordersheet'!M636)","v":""},{"$f":"IF('1. Ordersheet'!N636=\"\",\"\",'1. Ordersheet'!N636)","v":""},{"$f":"IF('1. Ordersheet'!O636=\"\",\"\",'1. Ordersheet'!O636)","v":{"$error":"#N/A"}},{"$f":"IF('1. Ordersheet'!P636=\"\",\"\",'1. Ordersheet'!P636)","v":{"$error":"#N/A"}},{"$f":"IF('1. Ordersheet'!Q636=\"\",\"\",'1. Ordersheet'!Q636)","v":""},{"$f":"IF('1. Ordersheet'!R636=\"\",\"\",'1. Ordersheet'!R636)","v":""},{"$f":"IF('1. Ordersheet'!S636=\"\",\"\",'1. Ordersheet'!S636)","v":""},{"$f":"IF('1. Ordersheet'!V636=\"\",\"\",'1. Ordersheet'!V636)","v":""},{"$f":"IF('1. Ordersheet'!W636=\"\",\"\",'1. Ordersheet'!W636)","v":""},{"$f":"IF('1. Ordersheet'!X636=\"\",\"\",'1. Ordersheet'!X636)","v":""},{"$f":"IF('1. Ordersheet'!Y636=\"\",\"\",'1. Ordersheet'!Y636)","v":""},{"$f":"IF('1. Ordersheet'!Z636=\"\",\"\",'1. Ordersheet'!Z636)","v":""},{"$f":"IF('1. Ordersheet'!AA636=\"\",\"\",'1. Ordersheet'!AA636)","v":""},null,{"$f":"IF('1. Ordersheet'!AS636=\"\",\"\",'1. Ordersheet'!AS636)","v":""},{"$f":"IF('1. Ordersheet'!AT636=\"\",\"\",'1. Ordersheet'!AT636)","v":""},null,null,null,null,null,null,null,{"$f":"IF('1. Ordersheet'!AX636=\"\",\"\",'1. Ordersheet'!AX636)","v":""},{"$f":"IF('1. Ordersheet'!AY636=\"\",\"\",'1. Ordersheet'!AY636)","v":""},{"$f":"IF('1. Ordersheet'!AZ636=\"\",\"\",'1. Ordersheet'!AZ636)","v":""},{"$f":"IF('1. Ordersheet'!BA636=\"\",\"\",'1. Ordersheet'!BA636)","v":""},{"$f":"IF('1. Ordersheet'!BC636=\"\",\"\",'1. Ordersheet'!BC636)","v":""},{"$f":"IF('1. Ordersheet'!BD636=\"\",\"\",'1. Ordersheet'!BD636)","v":""},{"$f":"IF('1. Ordersheet'!BE636=\"\",\"\",'1. Ordersheet'!BE636)","v":""},{"$f":"IF('1. Ordersheet'!BF636=\"\",\"\",'1. Ordersheet'!BF636)","v":""},{"$f":"IF('1. Ordersheet'!BG636=\"\",\"\",'1. Ordersheet'!BG636)","v":"ZWO"},{"$f":"IF('1. Ordersheet'!BH636=\"\",\"\",'1. Ordersheet'!BH636)","v":""},{"$f":"IF('1. Ordersheet'!BI636=\"\",\"\",'1. Ordersheet'!BI636)","v":""},{"$f":"IF('1. Ordersheet'!BJ636=\"\",\"\",'1. Ordersheet'!BJ636)","v":""},{"$f":"IF('1. Ordersheet'!BK636=\"\",\"\",'1. Ordersheet'!BK636)","v":""},{"$f":"IF('1. Ordersheet'!BL636=\"\",\"\",'1. Ordersheet'!BL636)","v":""}]
[{"$f":"IF('1. Ordersheet'!F637=\"\",\"\",'1. Ordersheet'!F637)","v":""},{"$f":"IF('1. Ordersheet'!G637=\"\",\"\",'1. Ordersheet'!G637)","v":""},{"$f":"IF('1. Ordersheet'!H637=\"\",\"\",'1. Ordersheet'!H637)","v":""},{"$f":"IF('1. Ordersheet'!I637=\"\",\"\",'1. Ordersheet'!I637)","v":""},{"$f":"IF('1. Ordersheet'!J637=\"\",\"\",'1. Ordersheet'!J637)","v":""},{"$f":"IF('1. Ordersheet'!K637=\"\",\"\",'1. Ordersheet'!K637)","v":""},{"$f":"IF('1. Ordersheet'!L637=\"\",\"\",'1. Ordersheet'!L637)","v":""},{"$f":"IF('1. Ordersheet'!M637=\"\",\"\",'1. Ordersheet'!M637)","v":""},{"$f":"IF('1. Ordersheet'!N637=\"\",\"\",'1. Ordersheet'!N637)","v":""},{"$f":"IF('1. Ordersheet'!O637=\"\",\"\",'1. Ordersheet'!O637)","v":{"$error":"#N/A"}},{"$f":"IF('1. Ordersheet'!P637=\"\",\"\",'1. Ordersheet'!P637)","v":{"$error":"#N/A"}},{"$f":"IF('1. Ordersheet'!Q637=\"\",\"\",'1. Ordersheet'!Q637)","v":""},{"$f":"IF('1. Ordersheet'!R637=\"\",\"\",'1. Ordersheet'!R637)","v":""},{"$f":"IF('1. Ordersheet'!S637=\"\",\"\",'1. Ordersheet'!S637)","v":""},{"$f":"IF('1. Ordersheet'!V637=\"\",\"\",'1. Ordersheet'!V637)","v":""},{"$f":"IF('1. Ordersheet'!W637=\"\",\"\",'1. Ordersheet'!W637)","v":""},{"$f":"IF('1. Ordersheet'!X637=\"\",\"\",'1. Ordersheet'!X637)","v":""},{"$f":"IF('1. Ordersheet'!Y637=\"\",\"\",'1. Ordersheet'!Y637)","v":""},{"$f":"IF('1. Ordersheet'!Z637=\"\",\"\",'1. Ordersheet'!Z637)","v":""},{"$f":"IF('1. Ordersheet'!AA637=\"\",\"\",'1. Ordersheet'!AA637)","v":""},null,{"$f":"IF('1. Ordersheet'!AS637=\"\",\"\",'1. Ordersheet'!AS637)","v":""},{"$f":"IF('1. Ordersheet'!AT637=\"\",\"\",'1. Ordersheet'!AT637)","v":""},null,null,null,null,null,null,null,{"$f":"IF('1. Ordersheet'!AX637=\"\",\"\",'1. Ordersheet'!AX637)","v":""},{"$f":"IF('1. Ordersheet'!AY637=\"\",\"\",'1. Ordersheet'!AY637)","v":""},{"$f":"IF('1. Ordersheet'!AZ637=\"\",\"\",'1. Ordersheet'!AZ637)","v":""},{"$f":"IF('1. Ordersheet'!BA637=\"\",\"\",'1. Ordersheet'!BA637)","v":""},{"$f":"IF('1. Ordersheet'!BC637=\"\",\"\",'1. Ordersheet'!BC637)","v":""},{"$f":"IF('1. Ordersheet'!BD637=\"\",\"\",'1. Ordersheet'!BD637)","v":""},{"$f":"IF('1. Ordersheet'!BE637=\"\",\"\",'1. Ordersheet'!BE637)","v":""},{"$f":"IF('1. Ordersheet'!BF637=\"\",\"\",'1. Ordersheet'!BF637)","v":""},{"$f":"IF('1. Ordersheet'!BG637=\"\",\"\",'1. Ordersheet'!BG637)","v":"ZWO"},{"$f":"IF('1. Ordersheet'!BH637=\"\",\"\",'1. Ordersheet'!BH637)","v":""},{"$f":"IF('1. Ordersheet'!BI637=\"\",\"\",'1. Ordersheet'!BI637)","v":""},{"$f":"IF('1. Ordersheet'!BJ637=\"\",\"\",'1. Ordersheet'!BJ637)","v":""},{"$f":"IF('1. Ordersheet'!BK637=\"\",\"\",'1. Ordersheet'!BK637)","v":""},{"$f":"IF('1. Ordersheet'!BL637=\"\",\"\",'1. Ordersheet'!BL637)","v":""}]
[{"$f":"IF('1. Ordersheet'!F638=\"\",\"\",'1. Ordersheet'!F638)","v":""},{"$f":"IF('1. Ordersheet'!G638=\"\",\"\",'1. Ordersheet'!G638)","v":""},{"$f":"IF('1. Ordersheet'!H638=\"\",\"\",'1. Ordersheet'!H638)","v":""},{"$f":"IF('1. Ordersheet'!I638=\"\",\"\",'1. Ordersheet'!I638)","v":""},{"$f":"IF('1. Ordersheet'!J638=\"\",\"\",'1. Ordersheet'!J638)","v":""},{"$f":"IF('1. Ordersheet'!K638=\"\",\"\",'1. Ordersheet'!K638)","v":""},{"$f":"IF('1. Ordersheet'!L638=\"\",\"\",'1. Ordersheet'!L638)","v":""},{"$f":"IF('1. Ordersheet'!M638=\"\",\"\",'1. Ordersheet'!M638)","v":""},{"$f":"IF('1. Ordersheet'!N638=\"\",\"\",'1. Ordersheet'!N638)","v":""},{"$f":"IF('1. Ordersheet'!O638=\"\",\"\",'1. Ordersheet'!O638)","v":{"$error":"#N/A"}},{"$f":"IF('1. Ordersheet'!P638=\"\",\"\",'1. Ordersheet'!P638)","v":{"$error":"#N/A"}},{"$f":"IF('1. Ordersheet'!Q638=\"\",\"\",'1. Ordersheet'!Q638)","v":""},{"$f":"IF('1. Ordersheet'!R638=\"\",\"\",'1. Ordersheet'!R638)","v":""},{"$f":"IF('1. Ordersheet'!S638=\"\",\"\",'1. Ordersheet'!S638)","v":""},{"$f":"IF('1. Ordersheet'!V638=\"\",\"\",'1. Ordersheet'!V638)","v":""},{"$f":"IF('1. Ordersheet'!W638=\"\",\"\",'1. Ordersheet'!W638)","v":""},{"$f":"IF('1. Ordersheet'!X638=\"\",\"\",'1. Ordersheet'!X638)","v":""},{"$f":"IF('1. Ordersheet'!Y638=\"\",\"\",'1. Ordersheet'!Y638)","v":""},{"$f":"IF('1. Ordersheet'!Z638=\"\",\"\",'1. Ordersheet'!Z638)","v":""},{"$f":"IF('1. Ordersheet'!AA638=\"\",\"\",'1. Ordersheet'!AA638)","v":""},null,{"$f":"IF('1. Ordersheet'!AS638=\"\",\"\",'1. Ordersheet'!AS638)","v":""},{"$f":"IF('1. Ordersheet'!AT638=\"\",\"\",'1. Ordersheet'!AT638)","v":""},null,null,null,null,null,null,null,{"$f":"IF('1. Ordersheet'!AX638=\"\",\"\",'1. Ordersheet'!AX638)","v":""},{"$f":"IF('1. Ordersheet'!AY638=\"\",\"\",'1. Ordersheet'!AY638)","v":""},{"$f":"IF('1. Ordersheet'!AZ638=\"\",\"\",'1. Ordersheet'!AZ638)","v":""},{"$f":"IF('1. Ordersheet'!BA638=\"\",\"\",'1. Ordersheet'!BA638)","v":""},{"$f":"IF('1. Ordersheet'!BC638=\"\",\"\",'1. Ordersheet'!BC638)","v":""},{"$f":"IF('1. Ordersheet'!BD638=\"\",\"\",'1. Ordersheet'!BD638)","v":""},{"$f":"IF('1. Ordersheet'!BE638=\"\",\"\",'1. Ordersheet'!BE638)","v":""},{"$f":"IF('1. Ordersheet'!BF638=\"\",\"\",'1. Ordersheet'!BF638)","v":""},{"$f":"IF('1. Ordersheet'!BG638=\"\",\"\",'1. Ordersheet'!BG638)","v":"ZWO"},{"$f":"IF('1. Ordersheet'!BH638=\"\",\"\",'1. Ordersheet'!BH638)","v":""},{"$f":"IF('1. Ordersheet'!BI638=\"\",\"\",'1. Ordersheet'!BI638)","v":""},{"$f":"IF('1. Ordersheet'!BJ638=\"\",\"\",'1. Ordersheet'!BJ638)","v":""},{"$f":"IF('1. Ordersheet'!BK638=\"\",\"\",'1. Ordersheet'!BK638)","v":""},{"$f":"IF('1. Ordersheet'!BL638=\"\",\"\",'1. Ordersheet'!BL638)","v":""}]
[{"$f":"IF('1. Ordersheet'!F639=\"\",\"\",'1. Ordersheet'!F639)","v":""},{"$f":"IF('1. Ordersheet'!G639=\"\",\"\",'1. Ordersheet'!G639)","v":""},{"$f":"IF('1. Ordersheet'!H639=\"\",\"\",'1. Ordersheet'!H639)","v":""},{"$f":"IF('1. Ordersheet'!I639=\"\",\"\",'1. Ordersheet'!I639)","v":""},{"$f":"IF('1. Ordersheet'!J639=\"\",\"\",'1. Ordersheet'!J639)","v":""},{"$f":"IF('1. Ordersheet'!K639=\"\",\"\",'1. Ordersheet'!K639)","v":""},{"$f":"IF('1. Ordersheet'!L639=\"\",\"\",'1. Ordersheet'!L639)","v":""},{"$f":"IF('1. Ordersheet'!M639=\"\",\"\",'1. Ordersheet'!M639)","v":""},{"$f":"IF('1. Ordersheet'!N639=\"\",\"\",'1. Ordersheet'!N639)","v":""},{"$f":"IF('1. Ordersheet'!O639=\"\",\"\",'1. Ordersheet'!O639)","v":{"$error":"#N/A"}},{"$f":"IF('1. Ordersheet'!P639=\"\",\"\",'1. Ordersheet'!P639)","v":{"$error":"#N/A"}},{"$f":"IF('1. Ordersheet'!Q639=\"\",\"\",'1. Ordersheet'!Q639)","v":""},{"$f":"IF('1. Ordersheet'!R639=\"\",\"\",'1. Ordersheet'!R639)","v":""},{"$f":"IF('1. Ordersheet'!S639=\"\",\"\",'1. Ordersheet'!S639)","v":""},{"$f":"IF('1. Ordersheet'!V639=\"\",\"\",'1. Ordersheet'!V639)","v":""},{"$f":"IF('1. Ordersheet'!W639=\"\",\"\",'1. Ordersheet'!W639)","v":""},{"$f":"IF('1. Ordersheet'!X639=\"\",\"\",'1. Ordersheet'!X639)","v":""},{"$f":"IF('1. Ordersheet'!Y639=\"\",\"\",'1. Ordersheet'!Y639)","v":""},{"$f":"IF('1. Ordersheet'!Z639=\"\",\"\",'1. Ordersheet'!Z639)","v":""},{"$f":"IF('1. Ordersheet'!AA639=\"\",\"\",'1. Ordersheet'!AA639)","v":""},null,{"$f":"IF('1. Ordersheet'!AS639=\"\",\"\",'1. Ordersheet'!AS639)","v":""},{"$f":"IF('1. Ordersheet'!AT639=\"\",\"\",'1. Ordersheet'!AT639)","v":""},null,null,null,null,null,null,null,{"$f":"IF('1. Ordersheet'!AX639=\"\",\"\",'1. Ordersheet'!AX639)","v":""},{"$f":"IF('1. Ordersheet'!AY639=\"\",\"\",'1. Ordersheet'!AY639)","v":""},{"$f":"IF('1. Ordersheet'!AZ639=\"\",\"\",'1. Ordersheet'!AZ639)","v":""},{"$f":"IF('1. Ordersheet'!BA639=\"\",\"\",'1. Ordersheet'!BA639)","v":""},{"$f":"IF('1. Ordersheet'!BC639=\"\",\"\",'1. Ordersheet'!BC639)","v":""},{"$f":"IF('1. Ordersheet'!BD639=\"\",\"\",'1. Ordersheet'!BD639)","v":""},{"$f":"IF('1. Ordersheet'!BE639=\"\",\"\",'1. Ordersheet'!BE639)","v":""},{"$f":"IF('1. Ordersheet'!BF639=\"\",\"\",'1. Ordersheet'!BF639)","v":""},{"$f":"IF('1. Ordersheet'!BG639=\"\",\"\",'1. Ordersheet'!BG639)","v":"ZWO"},{"$f":"IF('1. Ordersheet'!BH639=\"\",\"\",'1. Ordersheet'!BH639)","v":""},{"$f":"IF('1. Ordersheet'!BI639=\"\",\"\",'1. Ordersheet'!BI639)","v":""},{"$f":"IF('1. Ordersheet'!BJ639=\"\",\"\",'1. Ordersheet'!BJ639)","v":""},{"$f":"IF('1. Ordersheet'!BK639=\"\",\"\",'1. Ordersheet'!BK639)","v":""},{"$f":"IF('1. Ordersheet'!BL639=\"\",\"\",'1. Ordersheet'!BL639)","v":""}]
[{"$f":"IF('1. Ordersheet'!F640=\"\",\"\",'1. Ordersheet'!F640)","v":""},{"$f":"IF('1. Ordersheet'!G640=\"\",\"\",'1. Ordersheet'!G640)","v":""},{"$f":"IF('1. Ordersheet'!H640=\"\",\"\",'1. Ordersheet'!H640)","v":""},{"$f":"IF('1. Ordersheet'!I640=\"\",\"\",'1. Ordersheet'!I640)","v":""},{"$f":"IF('1. Ordersheet'!J640=\"\",\"\",'1. Ordersheet'!J640)","v":""},{"$f":"IF('1. Ordersheet'!K640=\"\",\"\",'1. Ordersheet'!K640)","v":""},{"$f":"IF('1. Ordersheet'!L640=\"\",\"\",'1. Ordersheet'!L640)","v":""},{"$f":"IF('1. Ordersheet'!M640=\"\",\"\",'1. Ordersheet'!M640)","v":""},{"$f":"IF('1. Ordersheet'!N640=\"\",\"\",'1. Ordersheet'!N640)","v":""},{"$f":"IF('1. Ordersheet'!O640=\"\",\"\",'1. Ordersheet'!O640)","v":{"$error":"#N/A"}},{"$f":"IF('1. Ordersheet'!P640=\"\",\"\",'1. Ordersheet'!P640)","v":{"$error":"#N/A"}},{"$f":"IF('1. Ordersheet'!Q640=\"\",\"\",'1. Ordersheet'!Q640)","v":""},{"$f":"IF('1. Ordersheet'!R640=\"\",\"\",'1. Ordersheet'!R640)","v":""},{"$f":"IF('1. Ordersheet'!S640=\"\",\"\",'1. Ordersheet'!S640)","v":""},{"$f":"IF('1. Ordersheet'!V640=\"\",\"\",'1. Ordersheet'!V640)","v":""},{"$f":"IF('1. Ordersheet'!W640=\"\",\"\",'1. Ordersheet'!W640)","v":""},{"$f":"IF('1. Ordersheet'!X640=\"\",\"\",'1. Ordersheet'!X640)","v":""},{"$f":"IF('1. Ordersheet'!Y640=\"\",\"\",'1. Ordersheet'!Y640)","v":""},{"$f":"IF('1. Ordersheet'!Z640=\"\",\"\",'1. Ordersheet'!Z640)","v":""},{"$f":"IF('1. Ordersheet'!AA640=\"\",\"\",'1. Ordersheet'!AA640)","v":""},null,{"$f":"IF('1. Ordersheet'!AS640=\"\",\"\",'1. Ordersheet'!AS640)","v":""},{"$f":"IF('1. Ordersheet'!AT640=\"\",\"\",'1. Ordersheet'!AT640)","v":""},null,null,null,null,null,null,null,{"$f":"IF('1. Ordersheet'!AX640=\"\",\"\",'1. Ordersheet'!AX640)","v":""},{"$f":"IF('1. Ordersheet'!AY640=\"\",\"\",'1. Ordersheet'!AY640)","v":""},{"$f":"IF('1. Ordersheet'!AZ640=\"\",\"\",'1. Ordersheet'!AZ640)","v":""},{"$f":"IF('1. Ordersheet'!BA640=\"\",\"\",'1. Ordersheet'!BA640)","v":""},{"$f":"IF('1. Ordersheet'!BC640=\"\",\"\",'1. Ordersheet'!BC640)","v":""},{"$f":"IF('1. Ordersheet'!BD640=\"\",\"\",'1. Ordersheet'!BD640)","v":""},{"$f":"IF('1. Ordersheet'!BE640=\"\",\"\",'1. Ordersheet'!BE640)","v":""},{"$f":"IF('1. Ordersheet'!BF640=\"\",\"\",'1. Ordersheet'!BF640)","v":""},{"$f":"IF('1. Ordersheet'!BG640=\"\",\"\",'1. Ordersheet'!BG640)","v":"ZWO"},{"$f":"IF('1. Ordersheet'!BH640=\"\",\"\",'1. Ordersheet'!BH640)","v":""},{"$f":"IF('1. Ordersheet'!BI640=\"\",\"\",'1. Ordersheet'!BI640)","v":""},{"$f":"IF('1. Ordersheet'!BJ640=\"\",\"\",'1. Ordersheet'!BJ640)","v":""},{"$f":"IF('1. Ordersheet'!BK640=\"\",\"\",'1. Ordersheet'!BK640)","v":""},{"$f":"IF('1. Ordersheet'!BL640=\"\",\"\",'1. Ordersheet'!BL640)","v":""}]
[{"$f":"IF('1. Ordersheet'!F641=\"\",\"\",'1. Ordersheet'!F641)","v":""},{"$f":"IF('1. Ordersheet'!G641=\"\",\"\",'1. Ordersheet'!G641)","v":""},{"$f":"IF('1. Ordersheet'!H641=\"\",\"\",'1. Ordersheet'!H641)","v":""},{"$f":"IF('1. Ordersheet'!I641=\"\",\"\",'1. Ordersheet'!I641)","v":""},{"$f":"IF('1. Ordersheet'!J641=\"\",\"\",'1. Ordersheet'!J641)","v":""},{"$f":"IF('1. Ordersheet'!K641=\"\",\"\",'1. Ordersheet'!K641)","v":""},{"$f":"IF('1. Ordersheet'!L641=\"\",\"\",'1. Ordersheet'!L641)","v":""},{"$f":"IF('1. Ordersheet'!M641=\"\",\"\",'1. Ordersheet'!M641)","v":""},{"$f":"IF('1. Ordersheet'!N641=\"\",\"\",'1. Ordersheet'!N641)","v":""},{"$f":"IF('1. Ordersheet'!O641=\"\",\"\",'1. Ordersheet'!O641)","v":{"$error":"#N/A"}},{"$f":"IF('1. Ordersheet'!P641=\"\",\"\",'1. Ordersheet'!P641)","v":{"$error":"#N/A"}},{"$f":"IF('1. Ordersheet'!Q641=\"\",\"\",'1. Ordersheet'!Q641)","v":""},{"$f":"IF('1. Ordersheet'!R641=\"\",\"\",'1. Ordersheet'!R641)","v":""},{"$f":"IF('1. Ordersheet'!S641=\"\",\"\",'1. Ordersheet'!S641)","v":""},{"$f":"IF('1. Ordersheet'!V641=\"\",\"\",'1. Ordersheet'!V641)","v":""},{"$f":"IF('1. Ordersheet'!W641=\"\",\"\",'1. Ordersheet'!W641)","v":""},{"$f":"IF('1. Ordersheet'!X641=\"\",\"\",'1. Ordersheet'!X641)","v":""},{"$f":"IF('1. Ordersheet'!Y641=\"\",\"\",'1. Ordersheet'!Y641)","v":""},{"$f":"IF('1. Ordersheet'!Z641=\"\",\"\",'1. Ordersheet'!Z641)","v":""},{"$f":"IF('1. Ordersheet'!AA641=\"\",\"\",'1. Ordersheet'!AA641)","v":""},null,{"$f":"IF('1. Ordersheet'!AS641=\"\",\"\",'1. Ordersheet'!AS641)","v":""},{"$f":"IF('1. Ordersheet'!AT641=\"\",\"\",'1. Ordersheet'!AT641)","v":""},null,null,null,null,null,null,null,{"$f":"IF('1. Ordersheet'!AX641=\"\",\"\",'1. Ordersheet'!AX641)","v":""},{"$f":"IF('1. Ordersheet'!AY641=\"\",\"\",'1. Ordersheet'!AY641)","v":""},{"$f":"IF('1. Ordersheet'!AZ641=\"\",\"\",'1. Ordersheet'!AZ641)","v":""},{"$f":"IF('1. Ordersheet'!BA641=\"\",\"\",'1. Ordersheet'!BA641)","v":""},{"$f":"IF('1. Ordersheet'!BC641=\"\",\"\",'1. Ordersheet'!BC641)","v":""},{"$f":"IF('1. Ordersheet'!BD641=\"\",\"\",'1. Ordersheet'!BD641)","v":""},{"$f":"IF('1. Ordersheet'!BE641=\"\",\"\",'1. Ordersheet'!BE641)","v":""},{"$f":"IF('1. Ordersheet'!BF641=\"\",\"\",'1. Ordersheet'!BF641)","v":""},{"$f":"IF('1. Ordersheet'!BG641=\"\",\"\",'1. Ordersheet'!BG641)","v":"ZWO"},{"$f":"IF('1. Ordersheet'!BH641=\"\",\"\",'1. Ordersheet'!BH641)","v":""},{"$f":"IF('1. Ordersheet'!BI641=\"\",\"\",'1. Ordersheet'!BI641)","v":""},{"$f":"IF('1. Ordersheet'!BJ641=\"\",\"\",'1. Ordersheet'!BJ641)","v":""},{"$f":"IF('1. Ordersheet'!BK641=\"\",\"\",'1. Ordersheet'!BK641)","v":""},{"$f":"IF('1. Ordersheet'!BL641=\"\",\"\",'1. Ordersheet'!BL641)","v":""}]
[{"$f":"IF('1. Ordersheet'!F642=\"\",\"\",'1. Ordersheet'!F642)","v":""},{"$f":"IF('1. Ordersheet'!G642=\"\",\"\",'1. Ordersheet'!G642)","v":""},{"$f":"IF('1. Ordersheet'!H642=\"\",\"\",'1. Ordersheet'!H642)","v":""},{"$f":"IF('1. Ordersheet'!I642=\"\",\"\",'1. Ordersheet'!I642)","v":""},{"$f":"IF('1. Ordersheet'!J642=\"\",\"\",'1. Ordersheet'!J642)","v":""},{"$f":"IF('1. Ordersheet'!K642=\"\",\"\",'1. Ordersheet'!K642)","v":""},{"$f":"IF('1. Ordersheet'!L642=\"\",\"\",'1. Ordersheet'!L642)","v":""},{"$f":"IF('1. Ordersheet'!M642=\"\",\"\",'1. Ordersheet'!M642)","v":""},{"$f":"IF('1. Ordersheet'!N642=\"\",\"\",'1. Ordersheet'!N642)","v":""},{"$f":"IF('1. Ordersheet'!O642=\"\",\"\",'1. Ordersheet'!O642)","v":{"$error":"#N/A"}},{"$f":"IF('1. Ordersheet'!P642=\"\",\"\",'1. Ordersheet'!P642)","v":{"$error":"#N/A"}},{"$f":"IF('1. Ordersheet'!Q642=\"\",\"\",'1. Ordersheet'!Q642)","v":""},{"$f":"IF('1. Ordersheet'!R642=\"\",\"\",'1. Ordersheet'!R642)","v":""},{"$f":"IF('1. Ordersheet'!S642=\"\",\"\",'1. Ordersheet'!S642)","v":""},{"$f":"IF('1. Ordersheet'!V642=\"\",\"\",'1. Ordersheet'!V642)","v":""},{"$f":"IF('1. Ordersheet'!W642=\"\",\"\",'1. Ordersheet'!W642)","v":""},{"$f":"IF('1. Ordersheet'!X642=\"\",\"\",'1. Ordersheet'!X642)","v":""},{"$f":"IF('1. Ordersheet'!Y642=\"\",\"\",'1. Ordersheet'!Y642)","v":""},{"$f":"IF('1. Ordersheet'!Z642=\"\",\"\",'1. Ordersheet'!Z642)","v":""},{"$f":"IF('1. Ordersheet'!AA642=\"\",\"\",'1. Ordersheet'!AA642)","v":""},null,{"$f":"IF('1. Ordersheet'!AS642=\"\",\"\",'1. Ordersheet'!AS642)","v":""},{"$f":"IF('1. Ordersheet'!AT642=\"\",\"\",'1. Ordersheet'!AT642)","v":""},null,null,null,null,null,null,null,{"$f":"IF('1. Ordersheet'!AX642=\"\",\"\",'1. Ordersheet'!AX642)","v":""},{"$f":"IF('1. Ordersheet'!AY642=\"\",\"\",'1. Ordersheet'!AY642)","v":""},{"$f":"IF('1. Ordersheet'!AZ642=\"\",\"\",'1. Ordersheet'!AZ642)","v":""},{"$f":"IF('1. Ordersheet'!BA642=\"\",\"\",'1. Ordersheet'!BA642)","v":""},{"$f":"IF('1. Ordersheet'!BC642=\"\",\"\",'1. Ordersheet'!BC642)","v":""},{"$f":"IF('1. Ordersheet'!BD642=\"\",\"\",'1. Ordersheet'!BD642)","v":""},{"$f":"IF('1. Ordersheet'!BE642=\"\",\"\",'1. Ordersheet'!BE642)","v":""},{"$f":"IF('1. Ordersheet'!BF642=\"\",\"\",'1. Ordersheet'!BF642)","v":""},{"$f":"IF('1. Ordersheet'!BG642=\"\",\"\",'1. Ordersheet'!BG642)","v":"ZWO"},{"$f":"IF('1. Ordersheet'!BH642=\"\",\"\",'1. Ordersheet'!BH642)","v":""},{"$f":"IF('1. Ordersheet'!BI642=\"\",\"\",'1. Ordersheet'!BI642)","v":""},{"$f":"IF('1. Ordersheet'!BJ642=\"\",\"\",'1. Ordersheet'!BJ642)","v":""},{"$f":"IF('1. Ordersheet'!BK642=\"\",\"\",'1. Ordersheet'!BK642)","v":""},{"$f":"IF('1. Ordersheet'!BL642=\"\",\"\",'1. Ordersheet'!BL642)","v":""}]
[{"$f":"IF('1. Ordersheet'!F643=\"\",\"\",'1. Ordersheet'!F643)","v":""},{"$f":"IF('1. Ordersheet'!G643=\"\",\"\",'1. Ordersheet'!G643)","v":""},{"$f":"IF('1. Ordersheet'!H643=\"\",\"\",'1. Ordersheet'!H643)","v":""},{"$f":"IF('1. Ordersheet'!I643=\"\",\"\",'1. Ordersheet'!I643)","v":""},{"$f":"IF('1. Ordersheet'!J643=\"\",\"\",'1. Ordersheet'!J643)","v":""},{"$f":"IF('1. Ordersheet'!K643=\"\",\"\",'1. Ordersheet'!K643)","v":""},{"$f":"IF('1. Ordersheet'!L643=\"\",\"\",'1. Ordersheet'!L643)","v":""},{"$f":"IF('1. Ordersheet'!M643=\"\",\"\",'1. Ordersheet'!M643)","v":""},{"$f":"IF('1. Ordersheet'!N643=\"\",\"\",'1. Ordersheet'!N643)","v":""},{"$f":"IF('1. Ordersheet'!O643=\"\",\"\",'1. Ordersheet'!O643)","v":{"$error":"#N/A"}},{"$f":"IF('1. Ordersheet'!P643=\"\",\"\",'1. Ordersheet'!P643)","v":{"$error":"#N/A"}},{"$f":"IF('1. Ordersheet'!Q643=\"\",\"\",'1. Ordersheet'!Q643)","v":""},{"$f":"IF('1. Ordersheet'!R643=\"\",\"\",'1. Ordersheet'!R643)","v":""},{"$f":"IF('1. Ordersheet'!S643=\"\",\"\",'1. Ordersheet'!S643)","v":""},{"$f":"IF('1. Ordersheet'!V643=\"\",\"\",'1. Ordersheet'!V643)","v":""},{"$f":"IF('1. Ordersheet'!W643=\"\",\"\",'1. Ordersheet'!W643)","v":""},{"$f":"IF('1. Ordersheet'!X643=\"\",\"\",'1. Ordersheet'!X643)","v":""},{"$f":"IF('1. Ordersheet'!Y643=\"\",\"\",'1. Ordersheet'!Y643)","v":""},{"$f":"IF('1. Ordersheet'!Z643=\"\",\"\",'1. Ordersheet'!Z643)","v":""},{"$f":"IF('1. Ordersheet'!AA643=\"\",\"\",'1. Ordersheet'!AA643)","v":""},null,{"$f":"IF('1. Ordersheet'!AS643=\"\",\"\",'1. Ordersheet'!AS643)","v":""},{"$f":"IF('1. Ordersheet'!AT643=\"\",\"\",'1. Ordersheet'!AT643)","v":""},null,null,null,null,null,null,null,{"$f":"IF('1. Ordersheet'!AX643=\"\",\"\",'1. Ordersheet'!AX643)","v":""},{"$f":"IF('1. Ordersheet'!AY643=\"\",\"\",'1. Ordersheet'!AY643)","v":""},{"$f":"IF('1. Ordersheet'!AZ643=\"\",\"\",'1. Ordersheet'!AZ643)","v":""},{"$f":"IF('1. Ordersheet'!BA643=\"\",\"\",'1. Ordersheet'!BA643)","v":""},{"$f":"IF('1. Ordersheet'!BC643=\"\",\"\",'1. Ordersheet'!BC643)","v":""},{"$f":"IF('1. Ordersheet'!BD643=\"\",\"\",'1. Ordersheet'!BD643)","v":""},{"$f":"IF('1. Ordersheet'!BE643=\"\",\"\",'1. Ordersheet'!BE643)","v":""},{"$f":"IF('1. Ordersheet'!BF643=\"\",\"\",'1. Ordersheet'!BF643)","v":""},{"$f":"IF('1. Ordersheet'!BG643=\"\",\"\",'1. Ordersheet'!BG643)","v":"ZWO"},{"$f":"IF('1. Ordersheet'!BH643=\"\",\"\",'1. Ordersheet'!BH643)","v":""},{"$f":"IF('1. Ordersheet'!BI643=\"\",\"\",'1. Ordersheet'!BI643)","v":""},{"$f":"IF('1. Ordersheet'!BJ643=\"\",\"\",'1. Ordersheet'!BJ643)","v":""},{"$f":"IF('1. Ordersheet'!BK643=\"\",\"\",'1. Ordersheet'!BK643)","v":""},{"$f":"IF('1. Ordersheet'!BL643=\"\",\"\",'1. Ordersheet'!BL643)","v":""}]
[{"$f":"IF('1. Ordersheet'!F644=\"\",\"\",'1. Ordersheet'!F644)","v":""},{"$f":"IF('1. Ordersheet'!G644=\"\",\"\",'1. Ordersheet'!G644)","v":""},{"$f":"IF('1. Ordersheet'!H644=\"\",\"\",'1. Ordersheet'!H644)","v":""},{"$f":"IF('1. Ordersheet'!I644=\"\",\"\",'1. Ordersheet'!I644)","v":""},{"$f":"IF('1. Ordersheet'!J644=\"\",\"\",'1. Ordersheet'!J644)","v":""},{"$f":"IF('1. Ordersheet'!K644=\"\",\"\",'1. Ordersheet'!K644)","v":""},{"$f":"IF('1. Ordersheet'!L644=\"\",\"\",'1. Ordersheet'!L644)","v":""},{"$f":"IF('1. Ordersheet'!M644=\"\",\"\",'1. Ordersheet'!M644)","v":""},{"$f":"IF('1. Ordersheet'!N644=\"\",\"\",'1. Ordersheet'!N644)","v":""},{"$f":"IF('1. Ordersheet'!O644=\"\",\"\",'1. Ordersheet'!O644)","v":{"$error":"#N/A"}},{"$f":"IF('1. Ordersheet'!P644=\"\",\"\",'1. Ordersheet'!P644)","v":{"$error":"#N/A"}},{"$f":"IF('1. Ordersheet'!Q644=\"\",\"\",'1. Ordersheet'!Q644)","v":""},{"$f":"IF('1. Ordersheet'!R644=\"\",\"\",'1. Ordersheet'!R644)","v":""},{"$f":"IF('1. Ordersheet'!S644=\"\",\"\",'1. Ordersheet'!S644)","v":""},{"$f":"IF('1. Ordersheet'!V644=\"\",\"\",'1. Ordersheet'!V644)","v":""},{"$f":"IF('1. Ordersheet'!W644=\"\",\"\",'1. Ordersheet'!W644)","v":""},{"$f":"IF('1. Ordersheet'!X644=\"\",\"\",'1. Ordersheet'!X644)","v":""},{"$f":"IF('1. Ordersheet'!Y644=\"\",\"\",'1. Ordersheet'!Y644)","v":""},{"$f":"IF('1. Ordersheet'!Z644=\"\",\"\",'1. Ordersheet'!Z644)","v":""},{"$f":"IF('1. Ordersheet'!AA644=\"\",\"\",'1. Ordersheet'!AA644)","v":""},null,{"$f":"IF('1. Ordersheet'!AS644=\"\",\"\",'1. Ordersheet'!AS644)","v":""},{"$f":"IF('1. Ordersheet'!AT644=\"\",\"\",'1. Ordersheet'!AT644)","v":""},null,null,null,null,null,null,null,{"$f":"IF('1. Ordersheet'!AX644=\"\",\"\",'1. Ordersheet'!AX644)","v":""},{"$f":"IF('1. Ordersheet'!AY644=\"\",\"\",'1. Ordersheet'!AY644)","v":""},{"$f":"IF('1. Ordersheet'!AZ644=\"\",\"\",'1. Ordersheet'!AZ644)","v":""},{"$f":"IF('1. Ordersheet'!BA644=\"\",\"\",'1. Ordersheet'!BA644)","v":""},{"$f":"IF('1. Ordersheet'!BC644=\"\",\"\",'1. Ordersheet'!BC644)","v":""},{"$f":"IF('1. Ordersheet'!BD644=\"\",\"\",'1. Ordersheet'!BD644)","v":""},{"$f":"IF('1. Ordersheet'!BE644=\"\",\"\",'1. Ordersheet'!BE644)","v":""},{"$f":"IF('1. Ordersheet'!BF644=\"\",\"\",'1. Ordersheet'!BF644)","v":""},{"$f":"IF('1. Ordersheet'!BG644=\"\",\"\",'1. Ordersheet'!BG644)","v":"ZWO"},{"$f":"IF('1. Ordersheet'!BH644=\"\",\"\",'1. Ordersheet'!BH644)","v":""},{"$f":"IF('1. Ordersheet'!BI644=\"\",\"\",'1. Ordersheet'!BI644)","v":""},{"$f":"IF('1. Ordersheet'!BJ644=\"\",\"\",'1. Ordersheet'!BJ644)","v":""},{"$f":"IF('1. Ordersheet'!BK644=\"\",\"\",'1. Ordersheet'!BK644)","v":""},{"$f":"IF('1. Ordersheet'!BL644=\"\",\"\",'1. Ordersheet'!BL644)","v":""}]
[{"$f":"IF('1. Ordersheet'!F645=\"\",\"\",'1. Ordersheet'!F645)","v":""},{"$f":"IF('1. Ordersheet'!G645=\"\",\"\",'1. Ordersheet'!G645)","v":""},{"$f":"IF('1. Ordersheet'!H645=\"\",\"\",'1. Ordersheet'!H645)","v":""},{"$f":"IF('1. Ordersheet'!I645=\"\",\"\",'1. Ordersheet'!I645)","v":""},{"$f":"IF('1. Ordersheet'!J645=\"\",\"\",'1. Ordersheet'!J645)","v":""},{"$f":"IF('1. Ordersheet'!K645=\"\",\"\",'1. Ordersheet'!K645)","v":""},{"$f":"IF('1. Ordersheet'!L645=\"\",\"\",'1. Ordersheet'!L645)","v":""},{"$f":"IF('1. Ordersheet'!M645=\"\",\"\",'1. Ordersheet'!M645)","v":""},{"$f":"IF('1. Ordersheet'!N645=\"\",\"\",'1. Ordersheet'!N645)","v":""},{"$f":"IF('1. Ordersheet'!O645=\"\",\"\",'1. Ordersheet'!O645)","v":{"$error":"#N/A"}},{"$f":"IF('1. Ordersheet'!P645=\"\",\"\",'1. Ordersheet'!P645)","v":{"$error":"#N/A"}},{"$f":"IF('1. Ordersheet'!Q645=\"\",\"\",'1. Ordersheet'!Q645)","v":""},{"$f":"IF('1. Ordersheet'!R645=\"\",\"\",'1. Ordersheet'!R645)","v":""},{"$f":"IF('1. Ordersheet'!S645=\"\",\"\",'1. Ordersheet'!S645)","v":""},{"$f":"IF('1. Ordersheet'!V645=\"\",\"\",'1. Ordersheet'!V645)","v":""},{"$f":"IF('1. Ordersheet'!W645=\"\",\"\",'1. Ordersheet'!W645)","v":""},{"$f":"IF('1. Ordersheet'!X645=\"\",\"\",'1. Ordersheet'!X645)","v":""},{"$f":"IF('1. Ordersheet'!Y645=\"\",\"\",'1. Ordersheet'!Y645)","v":""},{"$f":"IF('1. Ordersheet'!Z645=\"\",\"\",'1. Ordersheet'!Z645)","v":""},{"$f":"IF('1. Ordersheet'!AA645=\"\",\"\",'1. Ordersheet'!AA645)","v":""},null,{"$f":"IF('1. Ordersheet'!AS645=\"\",\"\",'1. Ordersheet'!AS645)","v":""},{"$f":"IF('1. Ordersheet'!AT645=\"\",\"\",'1. Ordersheet'!AT645)","v":""},null,null,null,null,null,null,null,{"$f":"IF('1. Ordersheet'!AX645=\"\",\"\",'1. Ordersheet'!AX645)","v":""},{"$f":"IF('1. Ordersheet'!AY645=\"\",\"\",'1. Ordersheet'!AY645)","v":""},{"$f":"IF('1. Ordersheet'!AZ645=\"\",\"\",'1. Ordersheet'!AZ645)","v":""},{"$f":"IF('1. Ordersheet'!BA645=\"\",\"\",'1. Ordersheet'!BA645)","v":""},{"$f":"IF('1. Ordersheet'!BC645=\"\",\"\",'1. Ordersheet'!BC645)","v":""},{"$f":"IF('1. Ordersheet'!BD645=\"\",\"\",'1. Ordersheet'!BD645)","v":""},{"$f":"IF('1. Ordersheet'!BE645=\"\",\"\",'1. Ordersheet'!BE645)","v":""},{"$f":"IF('1. Ordersheet'!BF645=\"\",\"\",'1. Ordersheet'!BF645)","v":""},{"$f":"IF('1. Ordersheet'!BG645=\"\",\"\",'1. Ordersheet'!BG645)","v":"ZWO"},{"$f":"IF('1. Ordersheet'!BH645=\"\",\"\",'1. Ordersheet'!BH645)","v":""},{"$f":"IF('1. Ordersheet'!BI645=\"\",\"\",'1. Ordersheet'!BI645)","v":""},{"$f":"IF('1. Ordersheet'!BJ645=\"\",\"\",'1. Ordersheet'!BJ645)","v":""},{"$f":"IF('1. Ordersheet'!BK645=\"\",\"\",'1. Ordersheet'!BK645)","v":""},{"$f":"IF('1. Ordersheet'!BL645=\"\",\"\",'1. Ordersheet'!BL645)","v":""}]
[{"$f":"IF('1. Ordersheet'!F646=\"\",\"\",'1. Ordersheet'!F646)","v":""},{"$f":"IF('1. Ordersheet'!G646=\"\",\"\",'1. Ordersheet'!G646)","v":""},{"$f":"IF('1. Ordersheet'!H646=\"\",\"\",'1. Ordersheet'!H646)","v":""},{"$f":"IF('1. Ordersheet'!I646=\"\",\"\",'1. Ordersheet'!I646)","v":""},{"$f":"IF('1. Ordersheet'!J646=\"\",\"\",'1. Ordersheet'!J646)","v":""},{"$f":"IF('1. Ordersheet'!K646=\"\",\"\",'1. Ordersheet'!K646)","v":""},{"$f":"IF('1. Ordersheet'!L646=\"\",\"\",'1. Ordersheet'!L646)","v":""},{"$f":"IF('1. Ordersheet'!M646=\"\",\"\",'1. Ordersheet'!M646)","v":""},{"$f":"IF('1. Ordersheet'!N646=\"\",\"\",'1. Ordersheet'!N646)","v":""},{"$f":"IF('1. Ordersheet'!O646=\"\",\"\",'1. Ordersheet'!O646)","v":{"$error":"#N/A"}},{"$f":"IF('1. Ordersheet'!P646=\"\",\"\",'1. Ordersheet'!P646)","v":{"$error":"#N/A"}},{"$f":"IF('1. Ordersheet'!Q646=\"\",\"\",'1. Ordersheet'!Q646)","v":""},{"$f":"IF('1. Ordersheet'!R646=\"\",\"\",'1. Ordersheet'!R646)","v":""},{"$f":"IF('1. Ordersheet'!S646=\"\",\"\",'1. Ordersheet'!S646)","v":""},{"$f":"IF('1. Ordersheet'!V646=\"\",\"\",'1. Ordersheet'!V646)","v":""},{"$f":"IF('1. Ordersheet'!W646=\"\",\"\",'1. Ordersheet'!W646)","v":""},{"$f":"IF('1. Ordersheet'!X646=\"\",\"\",'1. Ordersheet'!X646)","v":""},{"$f":"IF('1. Ordersheet'!Y646=\"\",\"\",'1. Ordersheet'!Y646)","v":""},{"$f":"IF('1. Ordersheet'!Z646=\"\",\"\",'1. Ordersheet'!Z646)","v":""},{"$f":"IF('1. Ordersheet'!AA646=\"\",\"\",'1. Ordersheet'!AA646)","v":""},null,{"$f":"IF('1. Ordersheet'!AS646=\"\",\"\",'1. Ordersheet'!AS646)","v":""},{"$f":"IF('1. Ordersheet'!AT646=\"\",\"\",'1. Ordersheet'!AT646)","v":""},null,null,null,null,null,null,null,{"$f":"IF('1. Ordersheet'!AX646=\"\",\"\",'1. Ordersheet'!AX646)","v":""},{"$f":"IF('1. Ordersheet'!AY646=\"\",\"\",'1. Ordersheet'!AY646)","v":""},{"$f":"IF('1. Ordersheet'!AZ646=\"\",\"\",'1. Ordersheet'!AZ646)","v":""},{"$f":"IF('1. Ordersheet'!BA646=\"\",\"\",'1. Ordersheet'!BA646)","v":""},{"$f":"IF('1. Ordersheet'!BC646=\"\",\"\",'1. Ordersheet'!BC646)","v":""},{"$f":"IF('1. Ordersheet'!BD646=\"\",\"\",'1. Ordersheet'!BD646)","v":""},{"$f":"IF('1. Ordersheet'!BE646=\"\",\"\",'1. Ordersheet'!BE646)","v":""},{"$f":"IF('1. Ordersheet'!BF646=\"\",\"\",'1. Ordersheet'!BF646)","v":""},{"$f":"IF('1. Ordersheet'!BG646=\"\",\"\",'1. Ordersheet'!BG646)","v":"ZWO"},{"$f":"IF('1. Ordersheet'!BH646=\"\",\"\",'1. Ordersheet'!BH646)","v":""},{"$f":"IF('1. Ordersheet'!BI646=\"\",\"\",'1. Ordersheet'!BI646)","v":""},{"$f":"IF('1. Ordersheet'!BJ646=\"\",\"\",'1. Ordersheet'!BJ646)","v":""},{"$f":"IF('1. Ordersheet'!BK646=\"\",\"\",'1. Ordersheet'!BK646)","v":""},{"$f":"IF('1. Ordersheet'!BL646=\"\",\"\",'1. Ordersheet'!BL646)","v":""}]
[{"$f":"IF('1. Ordersheet'!F647=\"\",\"\",'1. Ordersheet'!F647)","v":""},{"$f":"IF('1. Ordersheet'!G647=\"\",\"\",'1. Ordersheet'!G647)","v":""},{"$f":"IF('1. Ordersheet'!H647=\"\",\"\",'1. Ordersheet'!H647)","v":""},{"$f":"IF('1. Ordersheet'!I647=\"\",\"\",'1. Ordersheet'!I647)","v":""},{"$f":"IF('1. Ordersheet'!J647=\"\",\"\",'1. Ordersheet'!J647)","v":""},{"$f":"IF('1. Ordersheet'!K647=\"\",\"\",'1. Ordersheet'!K647)","v":""},{"$f":"IF('1. Ordersheet'!L647=\"\",\"\",'1. Ordersheet'!L647)","v":""},{"$f":"IF('1. Ordersheet'!M647=\"\",\"\",'1. Ordersheet'!M647)","v":""},{"$f":"IF('1. Ordersheet'!N647=\"\",\"\",'1. Ordersheet'!N647)","v":""},{"$f":"IF('1. Ordersheet'!O647=\"\",\"\",'1. Ordersheet'!O647)","v":{"$error":"#N/A"}},{"$f":"IF('1. Ordersheet'!P647=\"\",\"\",'1. Ordersheet'!P647)","v":{"$error":"#N/A"}},{"$f":"IF('1. Ordersheet'!Q647=\"\",\"\",'1. Ordersheet'!Q647)","v":""},{"$f":"IF('1. Ordersheet'!R647=\"\",\"\",'1. Ordersheet'!R647)","v":""},{"$f":"IF('1. Ordersheet'!S647=\"\",\"\",'1. Ordersheet'!S647)","v":""},{"$f":"IF('1. Ordersheet'!V647=\"\",\"\",'1. Ordersheet'!V647)","v":""},{"$f":"IF('1. Ordersheet'!W647=\"\",\"\",'1. Ordersheet'!W647)","v":""},{"$f":"IF('1. Ordersheet'!X647=\"\",\"\",'1. Ordersheet'!X647)","v":""},{"$f":"IF('1. Ordersheet'!Y647=\"\",\"\",'1. Ordersheet'!Y647)","v":""},{"$f":"IF('1. Ordersheet'!Z647=\"\",\"\",'1. Ordersheet'!Z647)","v":""},{"$f":"IF('1. Ordersheet'!AA647=\"\",\"\",'1. Ordersheet'!AA647)","v":""},null,{"$f":"IF('1. Ordersheet'!AS647=\"\",\"\",'1. Ordersheet'!AS647)","v":""},{"$f":"IF('1. Ordersheet'!AT647=\"\",\"\",'1. Ordersheet'!AT647)","v":""},null,null,null,null,null,null,null,{"$f":"IF('1. Ordersheet'!AX647=\"\",\"\",'1. Ordersheet'!AX647)","v":""},{"$f":"IF('1. Ordersheet'!AY647=\"\",\"\",'1. Ordersheet'!AY647)","v":""},{"$f":"IF('1. Ordersheet'!AZ647=\"\",\"\",'1. Ordersheet'!AZ647)","v":""},{"$f":"IF('1. Ordersheet'!BA647=\"\",\"\",'1. Ordersheet'!BA647)","v":""},{"$f":"IF('1. Ordersheet'!BC647=\"\",\"\",'1. Ordersheet'!BC647)","v":""},{"$f":"IF('1. Ordersheet'!BD647=\"\",\"\",'1. Ordersheet'!BD647)","v":""},{"$f":"IF('1. Ordersheet'!BE647=\"\",\"\",'1. Ordersheet'!BE647)","v":""},{"$f":"IF('1. Ordersheet'!BF647=\"\",\"\",'1. Ordersheet'!BF647)","v":""},{"$f":"IF('1. Ordersheet'!BG647=\"\",\"\",'1. Ordersheet'!BG647)","v":"ZWO"},{"$f":"IF('1. Ordersheet'!BH647=\"\",\"\",'1. Ordersheet'!BH647)","v":""},{"$f":"IF('1. Ordersheet'!BI647=\"\",\"\",'1. Ordersheet'!BI647)","v":""},{"$f":"IF('1. Ordersheet'!BJ647=\"\",\"\",'1. Ordersheet'!BJ647)","v":""},{"$f":"IF('1. Ordersheet'!BK647=\"\",\"\",'1. Ordersheet'!BK647)","v":""},{"$f":"IF('1. Ordersheet'!BL647=\"\",\"\",'1. Ordersheet'!BL647)","v":""}]
[{"$f":"IF('1. Ordersheet'!F648=\"\",\"\",'1. Ordersheet'!F648)","v":""},{"$f":"IF('1. Ordersheet'!G648=\"\",\"\",'1. Ordersheet'!G648)","v":""},{"$f":"IF('1. Ordersheet'!H648=\"\",\"\",'1. Ordersheet'!H648)","v":""},{"$f":"IF('1. Ordersheet'!I648=\"\",\"\",'1. Ordersheet'!I648)","v":""},{"$f":"IF('1. Ordersheet'!J648=\"\",\"\",'1. Ordersheet'!J648)","v":""},{"$f":"IF('1. Ordersheet'!K648=\"\",\"\",'1. Ordersheet'!K648)","v":""},{"$f":"IF('1. Ordersheet'!L648=\"\",\"\",'1. Ordersheet'!L648)","v":""},{"$f":"IF('1. Ordersheet'!M648=\"\",\"\",'1. Ordersheet'!M648)","v":""},{"$f":"IF('1. Ordersheet'!N648=\"\",\"\",'1. Ordersheet'!N648)","v":""},{"$f":"IF('1. Ordersheet'!O648=\"\",\"\",'1. Ordersheet'!O648)","v":{"$error":"#N/A"}},{"$f":"IF('1. Ordersheet'!P648=\"\",\"\",'1. Ordersheet'!P648)","v":{"$error":"#N/A"}},{"$f":"IF('1. Ordersheet'!Q648=\"\",\"\",'1. Ordersheet'!Q648)","v":""},{"$f":"IF('1. Ordersheet'!R648=\"\",\"\",'1. Ordersheet'!R648)","v":""},{"$f":"IF('1. Ordersheet'!S648=\"\",\"\",'1. Ordersheet'!S648)","v":""},{"$f":"IF('1. Ordersheet'!V648=\"\",\"\",'1. Ordersheet'!V648)","v":""},{"$f":"IF('1. Ordersheet'!W648=\"\",\"\",'1. Ordersheet'!W648)","v":""},{"$f":"IF('1. Ordersheet'!X648=\"\",\"\",'1. Ordersheet'!X648)","v":""},{"$f":"IF('1. Ordersheet'!Y648=\"\",\"\",'1. Ordersheet'!Y648)","v":""},{"$f":"IF('1. Ordersheet'!Z648=\"\",\"\",'1. Ordersheet'!Z648)","v":""},{"$f":"IF('1. Ordersheet'!AA648=\"\",\"\",'1. Ordersheet'!AA648)","v":""},null,{"$f":"IF('1. Ordersheet'!AS648=\"\",\"\",'1. Ordersheet'!AS648)","v":""},{"$f":"IF('1. Ordersheet'!AT648=\"\",\"\",'1. Ordersheet'!AT648)","v":""},null,null,null,null,null,null,null,{"$f":"IF('1. Ordersheet'!AX648=\"\",\"\",'1. Ordersheet'!AX648)","v":""},{"$f":"IF('1. Ordersheet'!AY648=\"\",\"\",'1. Ordersheet'!AY648)","v":""},{"$f":"IF('1. Ordersheet'!AZ648=\"\",\"\",'1. Ordersheet'!AZ648)","v":""},{"$f":"IF('1. Ordersheet'!BA648=\"\",\"\",'1. Ordersheet'!BA648)","v":""},{"$f":"IF('1. Ordersheet'!BC648=\"\",\"\",'1. Ordersheet'!BC648)","v":""},{"$f":"IF('1. Ordersheet'!BD648=\"\",\"\",'1. Ordersheet'!BD648)","v":""},{"$f":"IF('1. Ordersheet'!BE648=\"\",\"\",'1. Ordersheet'!BE648)","v":""},{"$f":"IF('1. Ordersheet'!BF648=\"\",\"\",'1. Ordersheet'!BF648)","v":""},{"$f":"IF('1. Ordersheet'!BG648=\"\",\"\",'1. Ordersheet'!BG648)","v":"ZWO"},{"$f":"IF('1. Ordersheet'!BH648=\"\",\"\",'1. Ordersheet'!BH648)","v":""},{"$f":"IF('1. Ordersheet'!BI648=\"\",\"\",'1. Ordersheet'!BI648)","v":""},{"$f":"IF('1. Ordersheet'!BJ648=\"\",\"\",'1. Ordersheet'!BJ648)","v":""},{"$f":"IF('1. Ordersheet'!BK648=\"\",\"\",'1. Ordersheet'!BK648)","v":""},{"$f":"IF('1. Ordersheet'!BL648=\"\",\"\",'1. Ordersheet'!BL648)","v":""}]
[{"$f":"IF('1. Ordersheet'!F649=\"\",\"\",'1. Ordersheet'!F649)","v":""},{"$f":"IF('1. Ordersheet'!G649=\"\",\"\",'1. Ordersheet'!G649)","v":""},{"$f":"IF('1. Ordersheet'!H649=\"\",\"\",'1. Ordersheet'!H649)","v":""},{"$f":"IF('1. Ordersheet'!I649=\"\",\"\",'1. Ordersheet'!I649)","v":""},{"$f":"IF('1. Ordersheet'!J649=\"\",\"\",'1. Ordersheet'!J649)","v":""},{"$f":"IF('1. Ordersheet'!K649=\"\",\"\",'1. Ordersheet'!K649)","v":""},{"$f":"IF('1. Ordersheet'!L649=\"\",\"\",'1. Ordersheet'!L649)","v":""},{"$f":"IF('1. Ordersheet'!M649=\"\",\"\",'1. Ordersheet'!M649)","v":""},{"$f":"IF('1. Ordersheet'!N649=\"\",\"\",'1. Ordersheet'!N649)","v":""},{"$f":"IF('1. Ordersheet'!O649=\"\",\"\",'1. Ordersheet'!O649)","v":{"$error":"#N/A"}},{"$f":"IF('1. Ordersheet'!P649=\"\",\"\",'1. Ordersheet'!P649)","v":{"$error":"#N/A"}},{"$f":"IF('1. Ordersheet'!Q649=\"\",\"\",'1. Ordersheet'!Q649)","v":""},{"$f":"IF('1. Ordersheet'!R649=\"\",\"\",'1. Ordersheet'!R649)","v":""},{"$f":"IF('1. Ordersheet'!S649=\"\",\"\",'1. Ordersheet'!S649)","v":""},{"$f":"IF('1. Ordersheet'!V649=\"\",\"\",'1. Ordersheet'!V649)","v":""},{"$f":"IF('1. Ordersheet'!W649=\"\",\"\",'1. Ordersheet'!W649)","v":""},{"$f":"IF('1. Ordersheet'!X649=\"\",\"\",'1. Ordersheet'!X649)","v":""},{"$f":"IF('1. Ordersheet'!Y649=\"\",\"\",'1. Ordersheet'!Y649)","v":""},{"$f":"IF('1. Ordersheet'!Z649=\"\",\"\",'1. Ordersheet'!Z649)","v":""},{"$f":"IF('1. Ordersheet'!AA649=\"\",\"\",'1. Ordersheet'!AA649)","v":""},null,{"$f":"IF('1. Ordersheet'!AS649=\"\",\"\",'1. Ordersheet'!AS649)","v":""},{"$f":"IF('1. Ordersheet'!AT649=\"\",\"\",'1. Ordersheet'!AT649)","v":""},null,null,null,null,null,null,null,{"$f":"IF('1. Ordersheet'!AX649=\"\",\"\",'1. Ordersheet'!AX649)","v":""},{"$f":"IF('1. Ordersheet'!AY649=\"\",\"\",'1. Ordersheet'!AY649)","v":""},{"$f":"IF('1. Ordersheet'!AZ649=\"\",\"\",'1. Ordersheet'!AZ649)","v":""},{"$f":"IF('1. Ordersheet'!BA649=\"\",\"\",'1. Ordersheet'!BA649)","v":""},{"$f":"IF('1. Ordersheet'!BC649=\"\",\"\",'1. Ordersheet'!BC649)","v":""},{"$f":"IF('1. Ordersheet'!BD649=\"\",\"\",'1. Ordersheet'!BD649)","v":""},{"$f":"IF('1. Ordersheet'!BE649=\"\",\"\",'1. Ordersheet'!BE649)","v":""},{"$f":"IF('1. Ordersheet'!BF649=\"\",\"\",'1. Ordersheet'!BF649)","v":""},{"$f":"IF('1. Ordersheet'!BG649=\"\",\"\",'1. Ordersheet'!BG649)","v":"ZWO"},{"$f":"IF('1. Ordersheet'!BH649=\"\",\"\",'1. Ordersheet'!BH649)","v":""},{"$f":"IF('1. Ordersheet'!BI649=\"\",\"\",'1. Ordersheet'!BI649)","v":""},{"$f":"IF('1. Ordersheet'!BJ649=\"\",\"\",'1. Ordersheet'!BJ649)","v":""},{"$f":"IF('1. Ordersheet'!BK649=\"\",\"\",'1. Ordersheet'!BK649)","v":""},{"$f":"IF('1. Ordersheet'!BL649=\"\",\"\",'1. Ordersheet'!BL649)","v":""}]
[{"$f":"IF('1. Ordersheet'!F650=\"\",\"\",'1. Ordersheet'!F650)","v":""},{"$f":"IF('1. Ordersheet'!G650=\"\",\"\",'1. Ordersheet'!G650)","v":""},{"$f":"IF('1. Ordersheet'!H650=\"\",\"\",'1. Ordersheet'!H650)","v":""},{"$f":"IF('1. Ordersheet'!I650=\"\",\"\",'1. Ordersheet'!I650)","v":""},{"$f":"IF('1. Ordersheet'!J650=\"\",\"\",'1. Ordersheet'!J650)","v":""},{"$f":"IF('1. Ordersheet'!K650=\"\",\"\",'1. Ordersheet'!K650)","v":""},{"$f":"IF('1. Ordersheet'!L650=\"\",\"\",'1. Ordersheet'!L650)","v":""},{"$f":"IF('1. Ordersheet'!M650=\"\",\"\",'1. Ordersheet'!M650)","v":""},{"$f":"IF('1. Ordersheet'!N650=\"\",\"\",'1. Ordersheet'!N650)","v":""},{"$f":"IF('1. Ordersheet'!O650=\"\",\"\",'1. Ordersheet'!O650)","v":{"$error":"#N/A"}},{"$f":"IF('1. Ordersheet'!P650=\"\",\"\",'1. Ordersheet'!P650)","v":{"$error":"#N/A"}},{"$f":"IF('1. Ordersheet'!Q650=\"\",\"\",'1. Ordersheet'!Q650)","v":""},{"$f":"IF('1. Ordersheet'!R650=\"\",\"\",'1. Ordersheet'!R650)","v":""},{"$f":"IF('1. Ordersheet'!S650=\"\",\"\",'1. Ordersheet'!S650)","v":""},{"$f":"IF('1. Ordersheet'!V650=\"\",\"\",'1. Ordersheet'!V650)","v":""},{"$f":"IF('1. Ordersheet'!W650=\"\",\"\",'1. Ordersheet'!W650)","v":""},{"$f":"IF('1. Ordersheet'!X650=\"\",\"\",'1. Ordersheet'!X650)","v":""},{"$f":"IF('1. Ordersheet'!Y650=\"\",\"\",'1. Ordersheet'!Y650)","v":""},{"$f":"IF('1. Ordersheet'!Z650=\"\",\"\",'1. Ordersheet'!Z650)","v":""},{"$f":"IF('1. Ordersheet'!AA650=\"\",\"\",'1. Ordersheet'!AA650)","v":""},null,{"$f":"IF('1. Ordersheet'!AS650=\"\",\"\",'1. Ordersheet'!AS650)","v":""},{"$f":"IF('1. Ordersheet'!AT650=\"\",\"\",'1. Ordersheet'!AT650)","v":""},null,null,null,null,null,null,null,{"$f":"IF('1. Ordersheet'!AX650=\"\",\"\",'1. Ordersheet'!AX650)","v":""},{"$f":"IF('1. Ordersheet'!AY650=\"\",\"\",'1. Ordersheet'!AY650)","v":""},{"$f":"IF('1. Ordersheet'!AZ650=\"\",\"\",'1. Ordersheet'!AZ650)","v":""},{"$f":"IF('1. Ordersheet'!BA650=\"\",\"\",'1. Ordersheet'!BA650)","v":""},{"$f":"IF('1. Ordersheet'!BC650=\"\",\"\",'1. Ordersheet'!BC650)","v":""},{"$f":"IF('1. Ordersheet'!BD650=\"\",\"\",'1. Ordersheet'!BD650)","v":""},{"$f":"IF('1. Ordersheet'!BE650=\"\",\"\",'1. Ordersheet'!BE650)","v":""},{"$f":"IF('1. Ordersheet'!BF650=\"\",\"\",'1. Ordersheet'!BF650)","v":""},{"$f":"IF('1. Ordersheet'!BG650=\"\",\"\",'1. Ordersheet'!BG650)","v":"ZWO"},{"$f":"IF('1. Ordersheet'!BH650=\"\",\"\",'1. Ordersheet'!BH650)","v":""},{"$f":"IF('1. Ordersheet'!BI650=\"\",\"\",'1. Ordersheet'!BI650)","v":""},{"$f":"IF('1. Ordersheet'!BJ650=\"\",\"\",'1. Ordersheet'!BJ650)","v":""},{"$f":"IF('1. Ordersheet'!BK650=\"\",\"\",'1. Ordersheet'!BK650)","v":""},{"$f":"IF('1. Ordersheet'!BL650=\"\",\"\",'1. Ordersheet'!BL650)","v":""}]
[{"$f":"IF('1. Ordersheet'!F651=\"\",\"\",'1. Ordersheet'!F651)","v":""},{"$f":"IF('1. Ordersheet'!G651=\"\",\"\",'1. Ordersheet'!G651)","v":""},{"$f":"IF('1. Ordersheet'!H651=\"\",\"\",'1. Ordersheet'!H651)","v":""},{"$f":"IF('1. Ordersheet'!I651=\"\",\"\",'1. Ordersheet'!I651)","v":""},{"$f":"IF('1. Ordersheet'!J651=\"\",\"\",'1. Ordersheet'!J651)","v":""},{"$f":"IF('1. Ordersheet'!K651=\"\",\"\",'1. Ordersheet'!K651)","v":""},{"$f":"IF('1. Ordersheet'!L651=\"\",\"\",'1. Ordersheet'!L651)","v":""},{"$f":"IF('1. Ordersheet'!M651=\"\",\"\",'1. Ordersheet'!M651)","v":""},{"$f":"IF('1. Ordersheet'!N651=\"\",\"\",'1. Ordersheet'!N651)","v":""},{"$f":"IF('1. Ordersheet'!O651=\"\",\"\",'1. Ordersheet'!O651)","v":{"$error":"#N/A"}},{"$f":"IF('1. Ordersheet'!P651=\"\",\"\",'1. Ordersheet'!P651)","v":{"$error":"#N/A"}},{"$f":"IF('1. Ordersheet'!Q651=\"\",\"\",'1. Ordersheet'!Q651)","v":""},{"$f":"IF('1. Ordersheet'!R651=\"\",\"\",'1. Ordersheet'!R651)","v":""},{"$f":"IF('1. Ordersheet'!S651=\"\",\"\",'1. Ordersheet'!S651)","v":""},{"$f":"IF('1. Ordersheet'!V651=\"\",\"\",'1. Ordersheet'!V651)","v":""},{"$f":"IF('1. Ordersheet'!W651=\"\",\"\",'1. Ordersheet'!W651)","v":""},{"$f":"IF('1. Ordersheet'!X651=\"\",\"\",'1. Ordersheet'!X651)","v":""},{"$f":"IF('1. Ordersheet'!Y651=\"\",\"\",'1. Ordersheet'!Y651)","v":""},{"$f":"IF('1. Ordersheet'!Z651=\"\",\"\",'1. Ordersheet'!Z651)","v":""},{"$f":"IF('1. Ordersheet'!AA651=\"\",\"\",'1. Ordersheet'!AA651)","v":""},null,{"$f":"IF('1. Ordersheet'!AS651=\"\",\"\",'1. Ordersheet'!AS651)","v":""},{"$f":"IF('1. Ordersheet'!AT651=\"\",\"\",'1. Ordersheet'!AT651)","v":""},null,null,null,null,null,null,null,{"$f":"IF('1. Ordersheet'!AX651=\"\",\"\",'1. Ordersheet'!AX651)","v":""},{"$f":"IF('1. Ordersheet'!AY651=\"\",\"\",'1. Ordersheet'!AY651)","v":""},{"$f":"IF('1. Ordersheet'!AZ651=\"\",\"\",'1. Ordersheet'!AZ651)","v":""},{"$f":"IF('1. Ordersheet'!BA651=\"\",\"\",'1. Ordersheet'!BA651)","v":""},{"$f":"IF('1. Ordersheet'!BC651=\"\",\"\",'1. Ordersheet'!BC651)","v":""},{"$f":"IF('1. Ordersheet'!BD651=\"\",\"\",'1. Ordersheet'!BD651)","v":""},{"$f":"IF('1. Ordersheet'!BE651=\"\",\"\",'1. Ordersheet'!BE651)","v":""},{"$f":"IF('1. Ordersheet'!BF651=\"\",\"\",'1. Ordersheet'!BF651)","v":""},{"$f":"IF('1. Ordersheet'!BG651=\"\",\"\",'1. Ordersheet'!BG651)","v":"ZWO"},{"$f":"IF('1. Ordersheet'!BH651=\"\",\"\",'1. Ordersheet'!BH651)","v":""},{"$f":"IF('1. Ordersheet'!BI651=\"\",\"\",'1. Ordersheet'!BI651)","v":""},{"$f":"IF('1. Ordersheet'!BJ651=\"\",\"\",'1. Ordersheet'!BJ651)","v":""},{"$f":"IF('1. Ordersheet'!BK651=\"\",\"\",'1. Ordersheet'!BK651)","v":""},{"$f":"IF('1. Ordersheet'!BL651=\"\",\"\",'1. Ordersheet'!BL651)","v":""}]
[{"$f":"IF('1. Ordersheet'!F652=\"\",\"\",'1. Ordersheet'!F652)","v":""},{"$f":"IF('1. Ordersheet'!G652=\"\",\"\",'1. Ordersheet'!G652)","v":""},{"$f":"IF('1. Ordersheet'!H652=\"\",\"\",'1. Ordersheet'!H652)","v":""},{"$f":"IF('1. Ordersheet'!I652=\"\",\"\",'1. Ordersheet'!I652)","v":""},{"$f":"IF('1. Ordersheet'!J652=\"\",\"\",'1. Ordersheet'!J652)","v":""},{"$f":"IF('1. Ordersheet'!K652=\"\",\"\",'1. Ordersheet'!K652)","v":""},{"$f":"IF('1. Ordersheet'!L652=\"\",\"\",'1. Ordersheet'!L652)","v":""},{"$f":"IF('1. Ordersheet'!M652=\"\",\"\",'1. Ordersheet'!M652)","v":""},{"$f":"IF('1. Ordersheet'!N652=\"\",\"\",'1. Ordersheet'!N652)","v":""},{"$f":"IF('1. Ordersheet'!O652=\"\",\"\",'1. Ordersheet'!O652)","v":{"$error":"#N/A"}},{"$f":"IF('1. Ordersheet'!P652=\"\",\"\",'1. Ordersheet'!P652)","v":{"$error":"#N/A"}},{"$f":"IF('1. Ordersheet'!Q652=\"\",\"\",'1. Ordersheet'!Q652)","v":""},{"$f":"IF('1. Ordersheet'!R652=\"\",\"\",'1. Ordersheet'!R652)","v":""},{"$f":"IF('1. Ordersheet'!S652=\"\",\"\",'1. Ordersheet'!S652)","v":""},{"$f":"IF('1. Ordersheet'!V652=\"\",\"\",'1. Ordersheet'!V652)","v":""},{"$f":"IF('1. Ordersheet'!W652=\"\",\"\",'1. Ordersheet'!W652)","v":""},{"$f":"IF('1. Ordersheet'!X652=\"\",\"\",'1. Ordersheet'!X652)","v":""},{"$f":"IF('1. Ordersheet'!Y652=\"\",\"\",'1. Ordersheet'!Y652)","v":""},{"$f":"IF('1. Ordersheet'!Z652=\"\",\"\",'1. Ordersheet'!Z652)","v":""},{"$f":"IF('1. Ordersheet'!AA652=\"\",\"\",'1. Ordersheet'!AA652)","v":""},null,{"$f":"IF('1. Ordersheet'!AS652=\"\",\"\",'1. Ordersheet'!AS652)","v":""},{"$f":"IF('1. Ordersheet'!AT652=\"\",\"\",'1. Ordersheet'!AT652)","v":""},null,null,null,null,null,null,null,{"$f":"IF('1. Ordersheet'!AX652=\"\",\"\",'1. Ordersheet'!AX652)","v":""},{"$f":"IF('1. Ordersheet'!AY652=\"\",\"\",'1. Ordersheet'!AY652)","v":""},{"$f":"IF('1. Ordersheet'!AZ652=\"\",\"\",'1. Ordersheet'!AZ652)","v":""},{"$f":"IF('1. Ordersheet'!BA652=\"\",\"\",'1. Ordersheet'!BA652)","v":""},{"$f":"IF('1. Ordersheet'!BC652=\"\",\"\",'1. Ordersheet'!BC652)","v":""},{"$f":"IF('1. Ordersheet'!BD652=\"\",\"\",'1. Ordersheet'!BD652)","v":""},{"$f":"IF('1. Ordersheet'!BE652=\"\",\"\",'1. Ordersheet'!BE652)","v":""},{"$f":"IF('1. Ordersheet'!BF652=\"\",\"\",'1. Ordersheet'!BF652)","v":""},{"$f":"IF('1. Ordersheet'!BG652=\"\",\"\",'1. Ordersheet'!BG652)","v":"ZWO"},{"$f":"IF('1. Ordersheet'!BH652=\"\",\"\",'1. Ordersheet'!BH652)","v":""},{"$f":"IF('1. Ordersheet'!BI652=\"\",\"\",'1. Ordersheet'!BI652)","v":""},{"$f":"IF('1. Ordersheet'!BJ652=\"\",\"\",'1. Ordersheet'!BJ652)","v":""},{"$f":"IF('1. Ordersheet'!BK652=\"\",\"\",'1. Ordersheet'!BK652)","v":""},{"$f":"IF('1. Ordersheet'!BL652=\"\",\"\",'1. Ordersheet'!BL652)","v":""}]
[{"$f":"IF('1. Ordersheet'!F653=\"\",\"\",'1. Ordersheet'!F653)","v":""},{"$f":"IF('1. Ordersheet'!G653=\"\",\"\",'1. Ordersheet'!G653)","v":""},{"$f":"IF('1. Ordersheet'!H653=\"\",\"\",'1. Ordersheet'!H653)","v":""},{"$f":"IF('1. Ordersheet'!I653=\"\",\"\",'1. Ordersheet'!I653)","v":""},{"$f":"IF('1. Ordersheet'!J653=\"\",\"\",'1. Ordersheet'!J653)","v":""},{"$f":"IF('1. Ordersheet'!K653=\"\",\"\",'1. Ordersheet'!K653)","v":""},{"$f":"IF('1. Ordersheet'!L653=\"\",\"\",'1. Ordersheet'!L653)","v":""},{"$f":"IF('1. Ordersheet'!M653=\"\",\"\",'1. Ordersheet'!M653)","v":""},{"$f":"IF('1. Ordersheet'!N653=\"\",\"\",'1. Ordersheet'!N653)","v":""},{"$f":"IF('1. Ordersheet'!O653=\"\",\"\",'1. Ordersheet'!O653)","v":{"$error":"#N/A"}},{"$f":"IF('1. Ordersheet'!P653=\"\",\"\",'1. Ordersheet'!P653)","v":{"$error":"#N/A"}},{"$f":"IF('1. Ordersheet'!Q653=\"\",\"\",'1. Ordersheet'!Q653)","v":""},{"$f":"IF('1. Ordersheet'!R653=\"\",\"\",'1. Ordersheet'!R653)","v":""},{"$f":"IF('1. Ordersheet'!S653=\"\",\"\",'1. Ordersheet'!S653)","v":""},{"$f":"IF('1. Ordersheet'!V653=\"\",\"\",'1. Ordersheet'!V653)","v":""},{"$f":"IF('1. Ordersheet'!W653=\"\",\"\",'1. Ordersheet'!W653)","v":""},{"$f":"IF('1. Ordersheet'!X653=\"\",\"\",'1. Ordersheet'!X653)","v":""},{"$f":"IF('1. Ordersheet'!Y653=\"\",\"\",'1. Ordersheet'!Y653)","v":""},{"$f":"IF('1. Ordersheet'!Z653=\"\",\"\",'1. Ordersheet'!Z653)","v":""},{"$f":"IF('1. Ordersheet'!AA653=\"\",\"\",'1. Ordersheet'!AA653)","v":""},null,{"$f":"IF('1. Ordersheet'!AS653=\"\",\"\",'1. Ordersheet'!AS653)","v":""},{"$f":"IF('1. Ordersheet'!AT653=\"\",\"\",'1. Ordersheet'!AT653)","v":""},null,null,null,null,null,null,null,{"$f":"IF('1. Ordersheet'!AX653=\"\",\"\",'1. Ordersheet'!AX653)","v":""},{"$f":"IF('1. Ordersheet'!AY653=\"\",\"\",'1. Ordersheet'!AY653)","v":""},{"$f":"IF('1. Ordersheet'!AZ653=\"\",\"\",'1. Ordersheet'!AZ653)","v":""},{"$f":"IF('1. Ordersheet'!BA653=\"\",\"\",'1. Ordersheet'!BA653)","v":""},{"$f":"IF('1. Ordersheet'!BC653=\"\",\"\",'1. Ordersheet'!BC653)","v":""},{"$f":"IF('1. Ordersheet'!BD653=\"\",\"\",'1. Ordersheet'!BD653)","v":""},{"$f":"IF('1. Ordersheet'!BE653=\"\",\"\",'1. Ordersheet'!BE653)","v":""},{"$f":"IF('1. Ordersheet'!BF653=\"\",\"\",'1. Ordersheet'!BF653)","v":""},{"$f":"IF('1. Ordersheet'!BG653=\"\",\"\",'1. Ordersheet'!BG653)","v":"ZWO"},{"$f":"IF('1. Ordersheet'!BH653=\"\",\"\",'1. Ordersheet'!BH653)","v":""},{"$f":"IF('1. Ordersheet'!BI653=\"\",\"\",'1. Ordersheet'!BI653)","v":""},{"$f":"IF('1. Ordersheet'!BJ653=\"\",\"\",'1. Ordersheet'!BJ653)","v":""},{"$f":"IF('1. Ordersheet'!BK653=\"\",\"\",'1. Ordersheet'!BK653)","v":""},{"$f":"IF('1. Ordersheet'!BL653=\"\",\"\",'1. Ordersheet'!BL653)","v":""}]
[{"$f":"IF('1. Ordersheet'!F654=\"\",\"\",'1. Ordersheet'!F654)","v":""},{"$f":"IF('1. Ordersheet'!G654=\"\",\"\",'1. Ordersheet'!G654)","v":""},{"$f":"IF('1. Ordersheet'!H654=\"\",\"\",'1. Ordersheet'!H654)","v":""},{"$f":"IF('1. Ordersheet'!I654=\"\",\"\",'1. Ordersheet'!I654)","v":""},{"$f":"IF('1. Ordersheet'!J654=\"\",\"\",'1. Ordersheet'!J654)","v":""},{"$f":"IF('1. Ordersheet'!K654=\"\",\"\",'1. Ordersheet'!K654)","v":""},{"$f":"IF('1. Ordersheet'!L654=\"\",\"\",'1. Ordersheet'!L654)","v":""},{"$f":"IF('1. Ordersheet'!M654=\"\",\"\",'1. Ordersheet'!M654)","v":""},{"$f":"IF('1. Ordersheet'!N654=\"\",\"\",'1. Ordersheet'!N654)","v":""},{"$f":"IF('1. Ordersheet'!O654=\"\",\"\",'1. Ordersheet'!O654)","v":{"$error":"#N/A"}},{"$f":"IF('1. Ordersheet'!P654=\"\",\"\",'1. Ordersheet'!P654)","v":{"$error":"#N/A"}},{"$f":"IF('1. Ordersheet'!Q654=\"\",\"\",'1. Ordersheet'!Q654)","v":""},{"$f":"IF('1. Ordersheet'!R654=\"\",\"\",'1. Ordersheet'!R654)","v":""},{"$f":"IF('1. Ordersheet'!S654=\"\",\"\",'1. Ordersheet'!S654)","v":""},{"$f":"IF('1. Ordersheet'!V654=\"\",\"\",'1. Ordersheet'!V654)","v":""},{"$f":"IF('1. Ordersheet'!W654=\"\",\"\",'1. Ordersheet'!W654)","v":""},{"$f":"IF('1. Ordersheet'!X654=\"\",\"\",'1. Ordersheet'!X654)","v":""},{"$f":"IF('1. Ordersheet'!Y654=\"\",\"\",'1. Ordersheet'!Y654)","v":""},{"$f":"IF('1. Ordersheet'!Z654=\"\",\"\",'1. Ordersheet'!Z654)","v":""},{"$f":"IF('1. Ordersheet'!AA654=\"\",\"\",'1. Ordersheet'!AA654)","v":""},null,{"$f":"IF('1. Ordersheet'!AS654=\"\",\"\",'1. Ordersheet'!AS654)","v":""},{"$f":"IF('1. Ordersheet'!AT654=\"\",\"\",'1. Ordersheet'!AT654)","v":""},null,null,null,null,null,null,null,{"$f":"IF('1. Ordersheet'!AX654=\"\",\"\",'1. Ordersheet'!AX654)","v":""},{"$f":"IF('1. Ordersheet'!AY654=\"\",\"\",'1. Ordersheet'!AY654)","v":""},{"$f":"IF('1. Ordersheet'!AZ654=\"\",\"\",'1. Ordersheet'!AZ654)","v":""},{"$f":"IF('1. Ordersheet'!BA654=\"\",\"\",'1. Ordersheet'!BA654)","v":""},{"$f":"IF('1. Ordersheet'!BC654=\"\",\"\",'1. Ordersheet'!BC654)","v":""},{"$f":"IF('1. Ordersheet'!BD654=\"\",\"\",'1. Ordersheet'!BD654)","v":""},{"$f":"IF('1. Ordersheet'!BE654=\"\",\"\",'1. Ordersheet'!BE654)","v":""},{"$f":"IF('1. Ordersheet'!BF654=\"\",\"\",'1. Ordersheet'!BF654)","v":""},{"$f":"IF('1. Ordersheet'!BG654=\"\",\"\",'1. Ordersheet'!BG654)","v":"ZWO"},{"$f":"IF('1. Ordersheet'!BH654=\"\",\"\",'1. Ordersheet'!BH654)","v":""},{"$f":"IF('1. Ordersheet'!BI654=\"\",\"\",'1. Ordersheet'!BI654)","v":""},{"$f":"IF('1. Ordersheet'!BJ654=\"\",\"\",'1. Ordersheet'!BJ654)","v":""},{"$f":"IF('1. Ordersheet'!BK654=\"\",\"\",'1. Ordersheet'!BK654)","v":""},{"$f":"IF('1. Ordersheet'!BL654=\"\",\"\",'1. Ordersheet'!BL654)","v":""}]
[{"$f":"IF('1. Ordersheet'!F655=\"\",\"\",'1. Ordersheet'!F655)","v":""},{"$f":"IF('1. Ordersheet'!G655=\"\",\"\",'1. Ordersheet'!G655)","v":""},{"$f":"IF('1. Ordersheet'!H655=\"\",\"\",'1. Ordersheet'!H655)","v":""},{"$f":"IF('1. Ordersheet'!I655=\"\",\"\",'1. Ordersheet'!I655)","v":""},{"$f":"IF('1. Ordersheet'!J655=\"\",\"\",'1. Ordersheet'!J655)","v":""},{"$f":"IF('1. Ordersheet'!K655=\"\",\"\",'1. Ordersheet'!K655)","v":""},{"$f":"IF('1. Ordersheet'!L655=\"\",\"\",'1. Ordersheet'!L655)","v":""},{"$f":"IF('1. Ordersheet'!M655=\"\",\"\",'1. Ordersheet'!M655)","v":""},{"$f":"IF('1. Ordersheet'!N655=\"\",\"\",'1. Ordersheet'!N655)","v":""},{"$f":"IF('1. Ordersheet'!O655=\"\",\"\",'1. Ordersheet'!O655)","v":{"$error":"#N/A"}},{"$f":"IF('1. Ordersheet'!P655=\"\",\"\",'1. Ordersheet'!P655)","v":{"$error":"#N/A"}},{"$f":"IF('1. Ordersheet'!Q655=\"\",\"\",'1. Ordersheet'!Q655)","v":""},{"$f":"IF('1. Ordersheet'!R655=\"\",\"\",'1. Ordersheet'!R655)","v":""},{"$f":"IF('1. Ordersheet'!S655=\"\",\"\",'1. Ordersheet'!S655)","v":""},{"$f":"IF('1. Ordersheet'!V655=\"\",\"\",'1. Ordersheet'!V655)","v":""},{"$f":"IF('1. Ordersheet'!W655=\"\",\"\",'1. Ordersheet'!W655)","v":""},{"$f":"IF('1. Ordersheet'!X655=\"\",\"\",'1. Ordersheet'!X655)","v":""},{"$f":"IF('1. Ordersheet'!Y655=\"\",\"\",'1. Ordersheet'!Y655)","v":""},{"$f":"IF('1. Ordersheet'!Z655=\"\",\"\",'1. Ordersheet'!Z655)","v":""},{"$f":"IF('1. Ordersheet'!AA655=\"\",\"\",'1. Ordersheet'!AA655)","v":""},null,{"$f":"IF('1. Ordersheet'!AS655=\"\",\"\",'1. Ordersheet'!AS655)","v":""},{"$f":"IF('1. Ordersheet'!AT655=\"\",\"\",'1. Ordersheet'!AT655)","v":""},null,null,null,null,null,null,null,{"$f":"IF('1. Ordersheet'!AX655=\"\",\"\",'1. Ordersheet'!AX655)","v":""},{"$f":"IF('1. Ordersheet'!AY655=\"\",\"\",'1. Ordersheet'!AY655)","v":""},{"$f":"IF('1. Ordersheet'!AZ655=\"\",\"\",'1. Ordersheet'!AZ655)","v":""},{"$f":"IF('1. Ordersheet'!BA655=\"\",\"\",'1. Ordersheet'!BA655)","v":""},{"$f":"IF('1. Ordersheet'!BC655=\"\",\"\",'1. Ordersheet'!BC655)","v":""},{"$f":"IF('1. Ordersheet'!BD655=\"\",\"\",'1. Ordersheet'!BD655)","v":""},{"$f":"IF('1. Ordersheet'!BE655=\"\",\"\",'1. Ordersheet'!BE655)","v":""},{"$f":"IF('1. Ordersheet'!BF655=\"\",\"\",'1. Ordersheet'!BF655)","v":""},{"$f":"IF('1. Ordersheet'!BG655=\"\",\"\",'1. Ordersheet'!BG655)","v":"ZWO"},{"$f":"IF('1. Ordersheet'!BH655=\"\",\"\",'1. Ordersheet'!BH655)","v":""},{"$f":"IF('1. Ordersheet'!BI655=\"\",\"\",'1. Ordersheet'!BI655)","v":""},{"$f":"IF('1. Ordersheet'!BJ655=\"\",\"\",'1. Ordersheet'!BJ655)","v":""},{"$f":"IF('1. Ordersheet'!BK655=\"\",\"\",'1. Ordersheet'!BK655)","v":""},{"$f":"IF('1. Ordersheet'!BL655=\"\",\"\",'1. Ordersheet'!BL655)","v":""}]
[{"$f":"IF('1. Ordersheet'!F656=\"\",\"\",'1. Ordersheet'!F656)","v":""},{"$f":"IF('1. Ordersheet'!G656=\"\",\"\",'1. Ordersheet'!G656)","v":""},{"$f":"IF('1. Ordersheet'!H656=\"\",\"\",'1. Ordersheet'!H656)","v":""},{"$f":"IF('1. Ordersheet'!I656=\"\",\"\",'1. Ordersheet'!I656)","v":""},{"$f":"IF('1. Ordersheet'!J656=\"\",\"\",'1. Ordersheet'!J656)","v":""},{"$f":"IF('1. Ordersheet'!K656=\"\",\"\",'1. Ordersheet'!K656)","v":""},{"$f":"IF('1. Ordersheet'!L656=\"\",\"\",'1. Ordersheet'!L656)","v":""},{"$f":"IF('1. Ordersheet'!M656=\"\",\"\",'1. Ordersheet'!M656)","v":""},{"$f":"IF('1. Ordersheet'!N656=\"\",\"\",'1. Ordersheet'!N656)","v":""},{"$f":"IF('1. Ordersheet'!O656=\"\",\"\",'1. Ordersheet'!O656)","v":{"$error":"#N/A"}},{"$f":"IF('1. Ordersheet'!P656=\"\",\"\",'1. Ordersheet'!P656)","v":{"$error":"#N/A"}},{"$f":"IF('1. Ordersheet'!Q656=\"\",\"\",'1. Ordersheet'!Q656)","v":""},{"$f":"IF('1. Ordersheet'!R656=\"\",\"\",'1. Ordersheet'!R656)","v":""},{"$f":"IF('1. Ordersheet'!S656=\"\",\"\",'1. Ordersheet'!S656)","v":""},{"$f":"IF('1. Ordersheet'!V656=\"\",\"\",'1. Ordersheet'!V656)","v":""},{"$f":"IF('1. Ordersheet'!W656=\"\",\"\",'1. Ordersheet'!W656)","v":""},{"$f":"IF('1. Ordersheet'!X656=\"\",\"\",'1. Ordersheet'!X656)","v":""},{"$f":"IF('1. Ordersheet'!Y656=\"\",\"\",'1. Ordersheet'!Y656)","v":""},{"$f":"IF('1. Ordersheet'!Z656=\"\",\"\",'1. Ordersheet'!Z656)","v":""},{"$f":"IF('1. Ordersheet'!AA656=\"\",\"\",'1. Ordersheet'!AA656)","v":""},null,{"$f":"IF('1. Ordersheet'!AS656=\"\",\"\",'1. Ordersheet'!AS656)","v":""},{"$f":"IF('1. Ordersheet'!AT656=\"\",\"\",'1. Ordersheet'!AT656)","v":""},null,null,null,null,null,null,null,{"$f":"IF('1. Ordersheet'!AX656=\"\",\"\",'1. Ordersheet'!AX656)","v":""},{"$f":"IF('1. Ordersheet'!AY656=\"\",\"\",'1. Ordersheet'!AY656)","v":""},{"$f":"IF('1. Ordersheet'!AZ656=\"\",\"\",'1. Ordersheet'!AZ656)","v":""},{"$f":"IF('1. Ordersheet'!BA656=\"\",\"\",'1. Ordersheet'!BA656)","v":""},{"$f":"IF('1. Ordersheet'!BC656=\"\",\"\",'1. Ordersheet'!BC656)","v":""},{"$f":"IF('1. Ordersheet'!BD656=\"\",\"\",'1. Ordersheet'!BD656)","v":""},{"$f":"IF('1. Ordersheet'!BE656=\"\",\"\",'1. Ordersheet'!BE656)","v":""},{"$f":"IF('1. Ordersheet'!BF656=\"\",\"\",'1. Ordersheet'!BF656)","v":""},{"$f":"IF('1. Ordersheet'!BG656=\"\",\"\",'1. Ordersheet'!BG656)","v":"ZWO"},{"$f":"IF('1. Ordersheet'!BH656=\"\",\"\",'1. Ordersheet'!BH656)","v":""},{"$f":"IF('1. Ordersheet'!BI656=\"\",\"\",'1. Ordersheet'!BI656)","v":""},{"$f":"IF('1. Ordersheet'!BJ656=\"\",\"\",'1. Ordersheet'!BJ656)","v":""},{"$f":"IF('1. Ordersheet'!BK656=\"\",\"\",'1. Ordersheet'!BK656)","v":""},{"$f":"IF('1. Ordersheet'!BL656=\"\",\"\",'1. Ordersheet'!BL656)","v":""}]
[{"$f":"IF('1. Ordersheet'!F657=\"\",\"\",'1. Ordersheet'!F657)","v":""},{"$f":"IF('1. Ordersheet'!G657=\"\",\"\",'1. Ordersheet'!G657)","v":""},{"$f":"IF('1. Ordersheet'!H657=\"\",\"\",'1. Ordersheet'!H657)","v":""},{"$f":"IF('1. Ordersheet'!I657=\"\",\"\",'1. Ordersheet'!I657)","v":""},{"$f":"IF('1. Ordersheet'!J657=\"\",\"\",'1. Ordersheet'!J657)","v":""},{"$f":"IF('1. Ordersheet'!K657=\"\",\"\",'1. Ordersheet'!K657)","v":""},{"$f":"IF('1. Ordersheet'!L657=\"\",\"\",'1. Ordersheet'!L657)","v":""},{"$f":"IF('1. Ordersheet'!M657=\"\",\"\",'1. Ordersheet'!M657)","v":""},{"$f":"IF('1. Ordersheet'!N657=\"\",\"\",'1. Ordersheet'!N657)","v":""},{"$f":"IF('1. Ordersheet'!O657=\"\",\"\",'1. Ordersheet'!O657)","v":{"$error":"#N/A"}},{"$f":"IF('1. Ordersheet'!P657=\"\",\"\",'1. Ordersheet'!P657)","v":{"$error":"#N/A"}},{"$f":"IF('1. Ordersheet'!Q657=\"\",\"\",'1. Ordersheet'!Q657)","v":""},{"$f":"IF('1. Ordersheet'!R657=\"\",\"\",'1. Ordersheet'!R657)","v":""},{"$f":"IF('1. Ordersheet'!S657=\"\",\"\",'1. Ordersheet'!S657)","v":""},{"$f":"IF('1. Ordersheet'!V657=\"\",\"\",'1. Ordersheet'!V657)","v":""},{"$f":"IF('1. Ordersheet'!W657=\"\",\"\",'1. Ordersheet'!W657)","v":""},{"$f":"IF('1. Ordersheet'!X657=\"\",\"\",'1. Ordersheet'!X657)","v":""},{"$f":"IF('1. Ordersheet'!Y657=\"\",\"\",'1. Ordersheet'!Y657)","v":""},{"$f":"IF('1. Ordersheet'!Z657=\"\",\"\",'1. Ordersheet'!Z657)","v":""},{"$f":"IF('1. Ordersheet'!AA657=\"\",\"\",'1. Ordersheet'!AA657)","v":""},null,{"$f":"IF('1. Ordersheet'!AS657=\"\",\"\",'1. Ordersheet'!AS657)","v":""},{"$f":"IF('1. Ordersheet'!AT657=\"\",\"\",'1. Ordersheet'!AT657)","v":""},null,null,null,null,null,null,null,{"$f":"IF('1. Ordersheet'!AX657=\"\",\"\",'1. Ordersheet'!AX657)","v":""},{"$f":"IF('1. Ordersheet'!AY657=\"\",\"\",'1. Ordersheet'!AY657)","v":""},{"$f":"IF('1. Ordersheet'!AZ657=\"\",\"\",'1. Ordersheet'!AZ657)","v":""},{"$f":"IF('1. Ordersheet'!BA657=\"\",\"\",'1. Ordersheet'!BA657)","v":""},{"$f":"IF('1. Ordersheet'!BC657=\"\",\"\",'1. Ordersheet'!BC657)","v":""},{"$f":"IF('1. Ordersheet'!BD657=\"\",\"\",'1. Ordersheet'!BD657)","v":""},{"$f":"IF('1. Ordersheet'!BE657=\"\",\"\",'1. Ordersheet'!BE657)","v":""},{"$f":"IF('1. Ordersheet'!BF657=\"\",\"\",'1. Ordersheet'!BF657)","v":""},{"$f":"IF('1. Ordersheet'!BG657=\"\",\"\",'1. Ordersheet'!BG657)","v":"ZWO"},{"$f":"IF('1. Ordersheet'!BH657=\"\",\"\",'1. Ordersheet'!BH657)","v":""},{"$f":"IF('1. Ordersheet'!BI657=\"\",\"\",'1. Ordersheet'!BI657)","v":""},{"$f":"IF('1. Ordersheet'!BJ657=\"\",\"\",'1. Ordersheet'!BJ657)","v":""},{"$f":"IF('1. Ordersheet'!BK657=\"\",\"\",'1. Ordersheet'!BK657)","v":""},{"$f":"IF('1. Ordersheet'!BL657=\"\",\"\",'1. Ordersheet'!BL657)","v":""}]
[{"$f":"IF('1. Ordersheet'!F658=\"\",\"\",'1. Ordersheet'!F658)","v":""},{"$f":"IF('1. Ordersheet'!G658=\"\",\"\",'1. Ordersheet'!G658)","v":""},{"$f":"IF('1. Ordersheet'!H658=\"\",\"\",'1. Ordersheet'!H658)","v":""},{"$f":"IF('1. Ordersheet'!I658=\"\",\"\",'1. Ordersheet'!I658)","v":""},{"$f":"IF('1. Ordersheet'!J658=\"\",\"\",'1. Ordersheet'!J658)","v":""},{"$f":"IF('1. Ordersheet'!K658=\"\",\"\",'1. Ordersheet'!K658)","v":""},{"$f":"IF('1. Ordersheet'!L658=\"\",\"\",'1. Ordersheet'!L658)","v":""},{"$f":"IF('1. Ordersheet'!M658=\"\",\"\",'1. Ordersheet'!M658)","v":""},{"$f":"IF('1. Ordersheet'!N658=\"\",\"\",'1. Ordersheet'!N658)","v":""},{"$f":"IF('1. Ordersheet'!O658=\"\",\"\",'1. Ordersheet'!O658)","v":{"$error":"#N/A"}},{"$f":"IF('1. Ordersheet'!P658=\"\",\"\",'1. Ordersheet'!P658)","v":{"$error":"#N/A"}},{"$f":"IF('1. Ordersheet'!Q658=\"\",\"\",'1. Ordersheet'!Q658)","v":""},{"$f":"IF('1. Ordersheet'!R658=\"\",\"\",'1. Ordersheet'!R658)","v":""},{"$f":"IF('1. Ordersheet'!S658=\"\",\"\",'1. Ordersheet'!S658)","v":""},{"$f":"IF('1. Ordersheet'!V658=\"\",\"\",'1. Ordersheet'!V658)","v":""},{"$f":"IF('1. Ordersheet'!W658=\"\",\"\",'1. Ordersheet'!W658)","v":""},{"$f":"IF('1. Ordersheet'!X658=\"\",\"\",'1. Ordersheet'!X658)","v":""},{"$f":"IF('1. Ordersheet'!Y658=\"\",\"\",'1. Ordersheet'!Y658)","v":""},{"$f":"IF('1. Ordersheet'!Z658=\"\",\"\",'1. Ordersheet'!Z658)","v":""},{"$f":"IF('1. Ordersheet'!AA658=\"\",\"\",'1. Ordersheet'!AA658)","v":""},null,{"$f":"IF('1. Ordersheet'!AS658=\"\",\"\",'1. Ordersheet'!AS658)","v":""},{"$f":"IF('1. Ordersheet'!AT658=\"\",\"\",'1. Ordersheet'!AT658)","v":""},null,null,null,null,null,null,null,{"$f":"IF('1. Ordersheet'!AX658=\"\",\"\",'1. Ordersheet'!AX658)","v":""},{"$f":"IF('1. Ordersheet'!AY658=\"\",\"\",'1. Ordersheet'!AY658)","v":""},{"$f":"IF('1. Ordersheet'!AZ658=\"\",\"\",'1. Ordersheet'!AZ658)","v":""},{"$f":"IF('1. Ordersheet'!BA658=\"\",\"\",'1. Ordersheet'!BA658)","v":""},{"$f":"IF('1. Ordersheet'!BC658=\"\",\"\",'1. Ordersheet'!BC658)","v":""},{"$f":"IF('1. Ordersheet'!BD658=\"\",\"\",'1. Ordersheet'!BD658)","v":""},{"$f":"IF('1. Ordersheet'!BE658=\"\",\"\",'1. Ordersheet'!BE658)","v":""},{"$f":"IF('1. Ordersheet'!BF658=\"\",\"\",'1. Ordersheet'!BF658)","v":""},{"$f":"IF('1. Ordersheet'!BG658=\"\",\"\",'1. Ordersheet'!BG658)","v":"ZWO"},{"$f":"IF('1. Ordersheet'!BH658=\"\",\"\",'1. Ordersheet'!BH658)","v":""},{"$f":"IF('1. Ordersheet'!BI658=\"\",\"\",'1. Ordersheet'!BI658)","v":""},{"$f":"IF('1. Ordersheet'!BJ658=\"\",\"\",'1. Ordersheet'!BJ658)","v":""},{"$f":"IF('1. Ordersheet'!BK658=\"\",\"\",'1. Ordersheet'!BK658)","v":""},{"$f":"IF('1. Ordersheet'!BL658=\"\",\"\",'1. Ordersheet'!BL658)","v":""}]
[{"$f":"IF('1. Ordersheet'!F659=\"\",\"\",'1. Ordersheet'!F659)","v":""},{"$f":"IF('1. Ordersheet'!G659=\"\",\"\",'1. Ordersheet'!G659)","v":""},{"$f":"IF('1. Ordersheet'!H659=\"\",\"\",'1. Ordersheet'!H659)","v":""},{"$f":"IF('1. Ordersheet'!I659=\"\",\"\",'1. Ordersheet'!I659)","v":""},{"$f":"IF('1. Ordersheet'!J659=\"\",\"\",'1. Ordersheet'!J659)","v":""},{"$f":"IF('1. Ordersheet'!K659=\"\",\"\",'1. Ordersheet'!K659)","v":""},{"$f":"IF('1. Ordersheet'!L659=\"\",\"\",'1. Ordersheet'!L659)","v":""},{"$f":"IF('1. Ordersheet'!M659=\"\",\"\",'1. Ordersheet'!M659)","v":""},{"$f":"IF('1. Ordersheet'!N659=\"\",\"\",'1. Ordersheet'!N659)","v":""},{"$f":"IF('1. Ordersheet'!O659=\"\",\"\",'1. Ordersheet'!O659)","v":{"$error":"#N/A"}},{"$f":"IF('1. Ordersheet'!P659=\"\",\"\",'1. Ordersheet'!P659)","v":{"$error":"#N/A"}},{"$f":"IF('1. Ordersheet'!Q659=\"\",\"\",'1. Ordersheet'!Q659)","v":""},{"$f":"IF('1. Ordersheet'!R659=\"\",\"\",'1. Ordersheet'!R659)","v":""},{"$f":"IF('1. Ordersheet'!S659=\"\",\"\",'1. Ordersheet'!S659)","v":""},{"$f":"IF('1. Ordersheet'!V659=\"\",\"\",'1. Ordersheet'!V659)","v":""},{"$f":"IF('1. Ordersheet'!W659=\"\",\"\",'1. Ordersheet'!W659)","v":""},{"$f":"IF('1. Ordersheet'!X659=\"\",\"\",'1. Ordersheet'!X659)","v":""},{"$f":"IF('1. Ordersheet'!Y659=\"\",\"\",'1. Ordersheet'!Y659)","v":""},{"$f":"IF('1. Ordersheet'!Z659=\"\",\"\",'1. Ordersheet'!Z659)","v":""},{"$f":"IF('1. Ordersheet'!AA659=\"\",\"\",'1. Ordersheet'!AA659)","v":""},null,{"$f":"IF('1. Ordersheet'!AS659=\"\",\"\",'1. Ordersheet'!AS659)","v":""},{"$f":"IF('1. Ordersheet'!AT659=\"\",\"\",'1. Ordersheet'!AT659)","v":""},null,null,null,null,null,null,null,{"$f":"IF('1. Ordersheet'!AX659=\"\",\"\",'1. Ordersheet'!AX659)","v":""},{"$f":"IF('1. Ordersheet'!AY659=\"\",\"\",'1. Ordersheet'!AY659)","v":""},{"$f":"IF('1. Ordersheet'!AZ659=\"\",\"\",'1. Ordersheet'!AZ659)","v":""},{"$f":"IF('1. Ordersheet'!BA659=\"\",\"\",'1. Ordersheet'!BA659)","v":""},{"$f":"IF('1. Ordersheet'!BC659=\"\",\"\",'1. Ordersheet'!BC659)","v":""},{"$f":"IF('1. Ordersheet'!BD659=\"\",\"\",'1. Ordersheet'!BD659)","v":""},{"$f":"IF('1. Ordersheet'!BE659=\"\",\"\",'1. Ordersheet'!BE659)","v":""},{"$f":"IF('1. Ordersheet'!BF659=\"\",\"\",'1. Ordersheet'!BF659)","v":""},{"$f":"IF('1. Ordersheet'!BG659=\"\",\"\",'1. Ordersheet'!BG659)","v":"ZWO"},{"$f":"IF('1. Ordersheet'!BH659=\"\",\"\",'1. Ordersheet'!BH659)","v":""},{"$f":"IF('1. Ordersheet'!BI659=\"\",\"\",'1. Ordersheet'!BI659)","v":""},{"$f":"IF('1. Ordersheet'!BJ659=\"\",\"\",'1. Ordersheet'!BJ659)","v":""},{"$f":"IF('1. Ordersheet'!BK659=\"\",\"\",'1. Ordersheet'!BK659)","v":""},{"$f":"IF('1. Ordersheet'!BL659=\"\",\"\",'1. Ordersheet'!BL659)","v":""}]
[{"$f":"IF('1. Ordersheet'!F660=\"\",\"\",'1. Ordersheet'!F660)","v":""},{"$f":"IF('1. Ordersheet'!G660=\"\",\"\",'1. Ordersheet'!G660)","v":""},{"$f":"IF('1. Ordersheet'!H660=\"\",\"\",'1. Ordersheet'!H660)","v":""},{"$f":"IF('1. Ordersheet'!I660=\"\",\"\",'1. Ordersheet'!I660)","v":""},{"$f":"IF('1. Ordersheet'!J660=\"\",\"\",'1. Ordersheet'!J660)","v":""},{"$f":"IF('1. Ordersheet'!K660=\"\",\"\",'1. Ordersheet'!K660)","v":""},{"$f":"IF('1. Ordersheet'!L660=\"\",\"\",'1. Ordersheet'!L660)","v":""},{"$f":"IF('1. Ordersheet'!M660=\"\",\"\",'1. Ordersheet'!M660)","v":""},{"$f":"IF('1. Ordersheet'!N660=\"\",\"\",'1. Ordersheet'!N660)","v":""},{"$f":"IF('1. Ordersheet'!O660=\"\",\"\",'1. Ordersheet'!O660)","v":{"$error":"#N/A"}},{"$f":"IF('1. Ordersheet'!P660=\"\",\"\",'1. Ordersheet'!P660)","v":{"$error":"#N/A"}},{"$f":"IF('1. Ordersheet'!Q660=\"\",\"\",'1. Ordersheet'!Q660)","v":""},{"$f":"IF('1. Ordersheet'!R660=\"\",\"\",'1. Ordersheet'!R660)","v":""},{"$f":"IF('1. Ordersheet'!S660=\"\",\"\",'1. Ordersheet'!S660)","v":""},{"$f":"IF('1. Ordersheet'!V660=\"\",\"\",'1. Ordersheet'!V660)","v":""},{"$f":"IF('1. Ordersheet'!W660=\"\",\"\",'1. Ordersheet'!W660)","v":""},{"$f":"IF('1. Ordersheet'!X660=\"\",\"\",'1. Ordersheet'!X660)","v":""},{"$f":"IF('1. Ordersheet'!Y660=\"\",\"\",'1. Ordersheet'!Y660)","v":""},{"$f":"IF('1. Ordersheet'!Z660=\"\",\"\",'1. Ordersheet'!Z660)","v":""},{"$f":"IF('1. Ordersheet'!AA660=\"\",\"\",'1. Ordersheet'!AA660)","v":""},null,{"$f":"IF('1. Ordersheet'!AS660=\"\",\"\",'1. Ordersheet'!AS660)","v":""},{"$f":"IF('1. Ordersheet'!AT660=\"\",\"\",'1. Ordersheet'!AT660)","v":""},null,null,null,null,null,null,null,{"$f":"IF('1. Ordersheet'!AX660=\"\",\"\",'1. Ordersheet'!AX660)","v":""},{"$f":"IF('1. Ordersheet'!AY660=\"\",\"\",'1. Ordersheet'!AY660)","v":""},{"$f":"IF('1. Ordersheet'!AZ660=\"\",\"\",'1. Ordersheet'!AZ660)","v":""},{"$f":"IF('1. Ordersheet'!BA660=\"\",\"\",'1. Ordersheet'!BA660)","v":""},{"$f":"IF('1. Ordersheet'!BC660=\"\",\"\",'1. Ordersheet'!BC660)","v":""},{"$f":"IF('1. Ordersheet'!BD660=\"\",\"\",'1. Ordersheet'!BD660)","v":""},{"$f":"IF('1. Ordersheet'!BE660=\"\",\"\",'1. Ordersheet'!BE660)","v":""},{"$f":"IF('1. Ordersheet'!BF660=\"\",\"\",'1. Ordersheet'!BF660)","v":""},{"$f":"IF('1. Ordersheet'!BG660=\"\",\"\",'1. Ordersheet'!BG660)","v":"ZWO"},{"$f":"IF('1. Ordersheet'!BH660=\"\",\"\",'1. Ordersheet'!BH660)","v":""},{"$f":"IF('1. Ordersheet'!BI660=\"\",\"\",'1. Ordersheet'!BI660)","v":""},{"$f":"IF('1. Ordersheet'!BJ660=\"\",\"\",'1. Ordersheet'!BJ660)","v":""},{"$f":"IF('1. Ordersheet'!BK660=\"\",\"\",'1. Ordersheet'!BK660)","v":""},{"$f":"IF('1. Ordersheet'!BL660=\"\",\"\",'1. Ordersheet'!BL660)","v":""}]
[{"$f":"IF('1. Ordersheet'!F661=\"\",\"\",'1. Ordersheet'!F661)","v":""},{"$f":"IF('1. Ordersheet'!G661=\"\",\"\",'1. Ordersheet'!G661)","v":""},{"$f":"IF('1. Ordersheet'!H661=\"\",\"\",'1. Ordersheet'!H661)","v":""},{"$f":"IF('1. Ordersheet'!I661=\"\",\"\",'1. Ordersheet'!I661)","v":""},{"$f":"IF('1. Ordersheet'!J661=\"\",\"\",'1. Ordersheet'!J661)","v":""},{"$f":"IF('1. Ordersheet'!K661=\"\",\"\",'1. Ordersheet'!K661)","v":""},{"$f":"IF('1. Ordersheet'!L661=\"\",\"\",'1. Ordersheet'!L661)","v":""},{"$f":"IF('1. Ordersheet'!M661=\"\",\"\",'1. Ordersheet'!M661)","v":""},{"$f":"IF('1. Ordersheet'!N661=\"\",\"\",'1. Ordersheet'!N661)","v":""},{"$f":"IF('1. Ordersheet'!O661=\"\",\"\",'1. Ordersheet'!O661)","v":{"$error":"#N/A"}},{"$f":"IF('1. Ordersheet'!P661=\"\",\"\",'1. Ordersheet'!P661)","v":{"$error":"#N/A"}},{"$f":"IF('1. Ordersheet'!Q661=\"\",\"\",'1. Ordersheet'!Q661)","v":""},{"$f":"IF('1. Ordersheet'!R661=\"\",\"\",'1. Ordersheet'!R661)","v":""},{"$f":"IF('1. Ordersheet'!S661=\"\",\"\",'1. Ordersheet'!S661)","v":""},{"$f":"IF('1. Ordersheet'!V661=\"\",\"\",'1. Ordersheet'!V661)","v":""},{"$f":"IF('1. Ordersheet'!W661=\"\",\"\",'1. Ordersheet'!W661)","v":""},{"$f":"IF('1. Ordersheet'!X661=\"\",\"\",'1. Ordersheet'!X661)","v":""},{"$f":"IF('1. Ordersheet'!Y661=\"\",\"\",'1. Ordersheet'!Y661)","v":""},{"$f":"IF('1. Ordersheet'!Z661=\"\",\"\",'1. Ordersheet'!Z661)","v":""},{"$f":"IF('1. Ordersheet'!AA661=\"\",\"\",'1. Ordersheet'!AA661)","v":""},null,{"$f":"IF('1. Ordersheet'!AS661=\"\",\"\",'1. Ordersheet'!AS661)","v":""},{"$f":"IF('1. Ordersheet'!AT661=\"\",\"\",'1. Ordersheet'!AT661)","v":""},null,null,null,null,null,null,null,{"$f":"IF('1. Ordersheet'!AX661=\"\",\"\",'1. Ordersheet'!AX661)","v":""},{"$f":"IF('1. Ordersheet'!AY661=\"\",\"\",'1. Ordersheet'!AY661)","v":""},{"$f":"IF('1. Ordersheet'!AZ661=\"\",\"\",'1. Ordersheet'!AZ661)","v":""},{"$f":"IF('1. Ordersheet'!BA661=\"\",\"\",'1. Ordersheet'!BA661)","v":""},{"$f":"IF('1. Ordersheet'!BC661=\"\",\"\",'1. Ordersheet'!BC661)","v":""},{"$f":"IF('1. Ordersheet'!BD661=\"\",\"\",'1. Ordersheet'!BD661)","v":""},{"$f":"IF('1. Ordersheet'!BE661=\"\",\"\",'1. Ordersheet'!BE661)","v":""},{"$f":"IF('1. Ordersheet'!BF661=\"\",\"\",'1. Ordersheet'!BF661)","v":""},{"$f":"IF('1. Ordersheet'!BG661=\"\",\"\",'1. Ordersheet'!BG661)","v":"ZWO"},{"$f":"IF('1. Ordersheet'!BH661=\"\",\"\",'1. Ordersheet'!BH661)","v":""},{"$f":"IF('1. Ordersheet'!BI661=\"\",\"\",'1. Ordersheet'!BI661)","v":""},{"$f":"IF('1. Ordersheet'!BJ661=\"\",\"\",'1. Ordersheet'!BJ661)","v":""},{"$f":"IF('1. Ordersheet'!BK661=\"\",\"\",'1. Ordersheet'!BK661)","v":""},{"$f":"IF('1. Ordersheet'!BL661=\"\",\"\",'1. Ordersheet'!BL661)","v":""}]
[{"$f":"IF('1. Ordersheet'!F662=\"\",\"\",'1. Ordersheet'!F662)","v":""},{"$f":"IF('1. Ordersheet'!G662=\"\",\"\",'1. Ordersheet'!G662)","v":""},{"$f":"IF('1. Ordersheet'!H662=\"\",\"\",'1. Ordersheet'!H662)","v":""},{"$f":"IF('1. Ordersheet'!I662=\"\",\"\",'1. Ordersheet'!I662)","v":""},{"$f":"IF('1. Ordersheet'!J662=\"\",\"\",'1. Ordersheet'!J662)","v":""},{"$f":"IF('1. Ordersheet'!K662=\"\",\"\",'1. Ordersheet'!K662)","v":""},{"$f":"IF('1. Ordersheet'!L662=\"\",\"\",'1. Ordersheet'!L662)","v":""},{"$f":"IF('1. Ordersheet'!M662=\"\",\"\",'1. Ordersheet'!M662)","v":""},{"$f":"IF('1. Ordersheet'!N662=\"\",\"\",'1. Ordersheet'!N662)","v":""},{"$f":"IF('1. Ordersheet'!O662=\"\",\"\",'1. Ordersheet'!O662)","v":{"$error":"#N/A"}},{"$f":"IF('1. Ordersheet'!P662=\"\",\"\",'1. Ordersheet'!P662)","v":{"$error":"#N/A"}},{"$f":"IF('1. Ordersheet'!Q662=\"\",\"\",'1. Ordersheet'!Q662)","v":""},{"$f":"IF('1. Ordersheet'!R662=\"\",\"\",'1. Ordersheet'!R662)","v":""},{"$f":"IF('1. Ordersheet'!S662=\"\",\"\",'1. Ordersheet'!S662)","v":""},{"$f":"IF('1. Ordersheet'!V662=\"\",\"\",'1. Ordersheet'!V662)","v":""},{"$f":"IF('1. Ordersheet'!W662=\"\",\"\",'1. Ordersheet'!W662)","v":""},{"$f":"IF('1. Ordersheet'!X662=\"\",\"\",'1. Ordersheet'!X662)","v":""},{"$f":"IF('1. Ordersheet'!Y662=\"\",\"\",'1. Ordersheet'!Y662)","v":""},{"$f":"IF('1. Ordersheet'!Z662=\"\",\"\",'1. Ordersheet'!Z662)","v":""},{"$f":"IF('1. Ordersheet'!AA662=\"\",\"\",'1. Ordersheet'!AA662)","v":""},null,{"$f":"IF('1. Ordersheet'!AS662=\"\",\"\",'1. Ordersheet'!AS662)","v":""},{"$f":"IF('1. Ordersheet'!AT662=\"\",\"\",'1. Ordersheet'!AT662)","v":""},null,null,null,null,null,null,null,{"$f":"IF('1. Ordersheet'!AX662=\"\",\"\",'1. Ordersheet'!AX662)","v":""},{"$f":"IF('1. Ordersheet'!AY662=\"\",\"\",'1. Ordersheet'!AY662)","v":""},{"$f":"IF('1. Ordersheet'!AZ662=\"\",\"\",'1. Ordersheet'!AZ662)","v":""},{"$f":"IF('1. Ordersheet'!BA662=\"\",\"\",'1. Ordersheet'!BA662)","v":""},{"$f":"IF('1. Ordersheet'!BC662=\"\",\"\",'1. Ordersheet'!BC662)","v":""},{"$f":"IF('1. Ordersheet'!BD662=\"\",\"\",'1. Ordersheet'!BD662)","v":""},{"$f":"IF('1. Ordersheet'!BE662=\"\",\"\",'1. Ordersheet'!BE662)","v":""},{"$f":"IF('1. Ordersheet'!BF662=\"\",\"\",'1. Ordersheet'!BF662)","v":""},{"$f":"IF('1. Ordersheet'!BG662=\"\",\"\",'1. Ordersheet'!BG662)","v":"ZWO"},{"$f":"IF('1. Ordersheet'!BH662=\"\",\"\",'1. Ordersheet'!BH662)","v":""},{"$f":"IF('1. Ordersheet'!BI662=\"\",\"\",'1. Ordersheet'!BI662)","v":""},{"$f":"IF('1. Ordersheet'!BJ662=\"\",\"\",'1. Ordersheet'!BJ662)","v":""},{"$f":"IF('1. Ordersheet'!BK662=\"\",\"\",'1. Ordersheet'!BK662)","v":""},{"$f":"IF('1. Ordersheet'!BL662=\"\",\"\",'1. Ordersheet'!BL662)","v":""}]
[{"$f":"IF('1. Ordersheet'!F663=\"\",\"\",'1. Ordersheet'!F663)","v":""},{"$f":"IF('1. Ordersheet'!G663=\"\",\"\",'1. Ordersheet'!G663)","v":""},{"$f":"IF('1. Ordersheet'!H663=\"\",\"\",'1. Ordersheet'!H663)","v":""},{"$f":"IF('1. Ordersheet'!I663=\"\",\"\",'1. Ordersheet'!I663)","v":""},{"$f":"IF('1. Ordersheet'!J663=\"\",\"\",'1. Ordersheet'!J663)","v":""},{"$f":"IF('1. Ordersheet'!K663=\"\",\"\",'1. Ordersheet'!K663)","v":""},{"$f":"IF('1. Ordersheet'!L663=\"\",\"\",'1. Ordersheet'!L663)","v":""},{"$f":"IF('1. Ordersheet'!M663=\"\",\"\",'1. Ordersheet'!M663)","v":""},{"$f":"IF('1. Ordersheet'!N663=\"\",\"\",'1. Ordersheet'!N663)","v":""},{"$f":"IF('1. Ordersheet'!O663=\"\",\"\",'1. Ordersheet'!O663)","v":{"$error":"#N/A"}},{"$f":"IF('1. Ordersheet'!P663=\"\",\"\",'1. Ordersheet'!P663)","v":{"$error":"#N/A"}},{"$f":"IF('1. Ordersheet'!Q663=\"\",\"\",'1. Ordersheet'!Q663)","v":""},{"$f":"IF('1. Ordersheet'!R663=\"\",\"\",'1. Ordersheet'!R663)","v":""},{"$f":"IF('1. Ordersheet'!S663=\"\",\"\",'1. Ordersheet'!S663)","v":""},{"$f":"IF('1. Ordersheet'!V663=\"\",\"\",'1. Ordersheet'!V663)","v":""},{"$f":"IF('1. Ordersheet'!W663=\"\",\"\",'1. Ordersheet'!W663)","v":""},{"$f":"IF('1. Ordersheet'!X663=\"\",\"\",'1. Ordersheet'!X663)","v":""},{"$f":"IF('1. Ordersheet'!Y663=\"\",\"\",'1. Ordersheet'!Y663)","v":""},{"$f":"IF('1. Ordersheet'!Z663=\"\",\"\",'1. Ordersheet'!Z663)","v":""},{"$f":"IF('1. Ordersheet'!AA663=\"\",\"\",'1. Ordersheet'!AA663)","v":""},null,{"$f":"IF('1. Ordersheet'!AS663=\"\",\"\",'1. Ordersheet'!AS663)","v":""},{"$f":"IF('1. Ordersheet'!AT663=\"\",\"\",'1. Ordersheet'!AT663)","v":""},null,null,null,null,null,null,null,{"$f":"IF('1. Ordersheet'!AX663=\"\",\"\",'1. Ordersheet'!AX663)","v":""},{"$f":"IF('1. Ordersheet'!AY663=\"\",\"\",'1. Ordersheet'!AY663)","v":""},{"$f":"IF('1. Ordersheet'!AZ663=\"\",\"\",'1. Ordersheet'!AZ663)","v":""},{"$f":"IF('1. Ordersheet'!BA663=\"\",\"\",'1. Ordersheet'!BA663)","v":""},{"$f":"IF('1. Ordersheet'!BC663=\"\",\"\",'1. Ordersheet'!BC663)","v":""},{"$f":"IF('1. Ordersheet'!BD663=\"\",\"\",'1. Ordersheet'!BD663)","v":""},{"$f":"IF('1. Ordersheet'!BE663=\"\",\"\",'1. Ordersheet'!BE663)","v":""},{"$f":"IF('1. Ordersheet'!BF663=\"\",\"\",'1. Ordersheet'!BF663)","v":""},{"$f":"IF('1. Ordersheet'!BG663=\"\",\"\",'1. Ordersheet'!BG663)","v":"ZWO"},{"$f":"IF('1. Ordersheet'!BH663=\"\",\"\",'1. Ordersheet'!BH663)","v":""},{"$f":"IF('1. Ordersheet'!BI663=\"\",\"\",'1. Ordersheet'!BI663)","v":""},{"$f":"IF('1. Ordersheet'!BJ663=\"\",\"\",'1. Ordersheet'!BJ663)","v":""},{"$f":"IF('1. Ordersheet'!BK663=\"\",\"\",'1. Ordersheet'!BK663)","v":""},{"$f":"IF('1. Ordersheet'!BL663=\"\",\"\",'1. Ordersheet'!BL663)","v":""}]
[{"$f":"IF('1. Ordersheet'!F664=\"\",\"\",'1. Ordersheet'!F664)","v":""},{"$f":"IF('1. Ordersheet'!G664=\"\",\"\",'1. Ordersheet'!G664)","v":""},{"$f":"IF('1. Ordersheet'!H664=\"\",\"\",'1. Ordersheet'!H664)","v":""},{"$f":"IF('1. Ordersheet'!I664=\"\",\"\",'1. Ordersheet'!I664)","v":""},{"$f":"IF('1. Ordersheet'!J664=\"\",\"\",'1. Ordersheet'!J664)","v":""},{"$f":"IF('1. Ordersheet'!K664=\"\",\"\",'1. Ordersheet'!K664)","v":""},{"$f":"IF('1. Ordersheet'!L664=\"\",\"\",'1. Ordersheet'!L664)","v":""},{"$f":"IF('1. Ordersheet'!M664=\"\",\"\",'1. Ordersheet'!M664)","v":""},{"$f":"IF('1. Ordersheet'!N664=\"\",\"\",'1. Ordersheet'!N664)","v":""},{"$f":"IF('1. Ordersheet'!O664=\"\",\"\",'1. Ordersheet'!O664)","v":{"$error":"#N/A"}},{"$f":"IF('1. Ordersheet'!P664=\"\",\"\",'1. Ordersheet'!P664)","v":{"$error":"#N/A"}},{"$f":"IF('1. Ordersheet'!Q664=\"\",\"\",'1. Ordersheet'!Q664)","v":""},{"$f":"IF('1. Ordersheet'!R664=\"\",\"\",'1. Ordersheet'!R664)","v":""},{"$f":"IF('1. Ordersheet'!S664=\"\",\"\",'1. Ordersheet'!S664)","v":""},{"$f":"IF('1. Ordersheet'!V664=\"\",\"\",'1. Ordersheet'!V664)","v":""},{"$f":"IF('1. Ordersheet'!W664=\"\",\"\",'1. Ordersheet'!W664)","v":""},{"$f":"IF('1. Ordersheet'!X664=\"\",\"\",'1. Ordersheet'!X664)","v":""},{"$f":"IF('1. Ordersheet'!Y664=\"\",\"\",'1. Ordersheet'!Y664)","v":""},{"$f":"IF('1. Ordersheet'!Z664=\"\",\"\",'1. Ordersheet'!Z664)","v":""},{"$f":"IF('1. Ordersheet'!AA664=\"\",\"\",'1. Ordersheet'!AA664)","v":""},null,{"$f":"IF('1. Ordersheet'!AS664=\"\",\"\",'1. Ordersheet'!AS664)","v":""},{"$f":"IF('1. Ordersheet'!AT664=\"\",\"\",'1. Ordersheet'!AT664)","v":""},null,null,null,null,null,null,null,{"$f":"IF('1. Ordersheet'!AX664=\"\",\"\",'1. Ordersheet'!AX664)","v":""},{"$f":"IF('1. Ordersheet'!AY664=\"\",\"\",'1. Ordersheet'!AY664)","v":""},{"$f":"IF('1. Ordersheet'!AZ664=\"\",\"\",'1. Ordersheet'!AZ664)","v":""},{"$f":"IF('1. Ordersheet'!BA664=\"\",\"\",'1. Ordersheet'!BA664)","v":""},{"$f":"IF('1. Ordersheet'!BC664=\"\",\"\",'1. Ordersheet'!BC664)","v":""},{"$f":"IF('1. Ordersheet'!BD664=\"\",\"\",'1. Ordersheet'!BD664)","v":""},{"$f":"IF('1. Ordersheet'!BE664=\"\",\"\",'1. Ordersheet'!BE664)","v":""},{"$f":"IF('1. Ordersheet'!BF664=\"\",\"\",'1. Ordersheet'!BF664)","v":""},{"$f":"IF('1. Ordersheet'!BG664=\"\",\"\",'1. Ordersheet'!BG664)","v":"ZWO"},{"$f":"IF('1. Ordersheet'!BH664=\"\",\"\",'1. Ordersheet'!BH664)","v":""},{"$f":"IF('1. Ordersheet'!BI664=\"\",\"\",'1. Ordersheet'!BI664)","v":""},{"$f":"IF('1. Ordersheet'!BJ664=\"\",\"\",'1. Ordersheet'!BJ664)","v":""},{"$f":"IF('1. Ordersheet'!BK664=\"\",\"\",'1. Ordersheet'!BK664)","v":""},{"$f":"IF('1. Ordersheet'!BL664=\"\",\"\",'1. Ordersheet'!BL664)","v":""}]
[{"$f":"IF('1. Ordersheet'!F665=\"\",\"\",'1. Ordersheet'!F665)","v":""},{"$f":"IF('1. Ordersheet'!G665=\"\",\"\",'1. Ordersheet'!G665)","v":""},{"$f":"IF('1. Ordersheet'!H665=\"\",\"\",'1. Ordersheet'!H665)","v":""},{"$f":"IF('1. Ordersheet'!I665=\"\",\"\",'1. Ordersheet'!I665)","v":""},{"$f":"IF('1. Ordersheet'!J665=\"\",\"\",'1. Ordersheet'!J665)","v":""},{"$f":"IF('1. Ordersheet'!K665=\"\",\"\",'1. Ordersheet'!K665)","v":""},{"$f":"IF('1. Ordersheet'!L665=\"\",\"\",'1. Ordersheet'!L665)","v":""},{"$f":"IF('1. Ordersheet'!M665=\"\",\"\",'1. Ordersheet'!M665)","v":""},{"$f":"IF('1. Ordersheet'!N665=\"\",\"\",'1. Ordersheet'!N665)","v":""},{"$f":"IF('1. Ordersheet'!O665=\"\",\"\",'1. Ordersheet'!O665)","v":{"$error":"#N/A"}},{"$f":"IF('1. Ordersheet'!P665=\"\",\"\",'1. Ordersheet'!P665)","v":{"$error":"#N/A"}},{"$f":"IF('1. Ordersheet'!Q665=\"\",\"\",'1. Ordersheet'!Q665)","v":""},{"$f":"IF('1. Ordersheet'!R665=\"\",\"\",'1. Ordersheet'!R665)","v":""},{"$f":"IF('1. Ordersheet'!S665=\"\",\"\",'1. Ordersheet'!S665)","v":""},{"$f":"IF('1. Ordersheet'!V665=\"\",\"\",'1. Ordersheet'!V665)","v":""},{"$f":"IF('1. Ordersheet'!W665=\"\",\"\",'1. Ordersheet'!W665)","v":""},{"$f":"IF('1. Ordersheet'!X665=\"\",\"\",'1. Ordersheet'!X665)","v":""},{"$f":"IF('1. Ordersheet'!Y665=\"\",\"\",'1. Ordersheet'!Y665)","v":""},{"$f":"IF('1. Ordersheet'!Z665=\"\",\"\",'1. Ordersheet'!Z665)","v":""},{"$f":"IF('1. Ordersheet'!AA665=\"\",\"\",'1. Ordersheet'!AA665)","v":""},null,{"$f":"IF('1. Ordersheet'!AS665=\"\",\"\",'1. Ordersheet'!AS665)","v":""},{"$f":"IF('1. Ordersheet'!AT665=\"\",\"\",'1. Ordersheet'!AT665)","v":""},null,null,null,null,null,null,null,{"$f":"IF('1. Ordersheet'!AX665=\"\",\"\",'1. Ordersheet'!AX665)","v":""},{"$f":"IF('1. Ordersheet'!AY665=\"\",\"\",'1. Ordersheet'!AY665)","v":""},{"$f":"IF('1. Ordersheet'!AZ665=\"\",\"\",'1. Ordersheet'!AZ665)","v":""},{"$f":"IF('1. Ordersheet'!BA665=\"\",\"\",'1. Ordersheet'!BA665)","v":""},{"$f":"IF('1. Ordersheet'!BC665=\"\",\"\",'1. Ordersheet'!BC665)","v":""},{"$f":"IF('1. Ordersheet'!BD665=\"\",\"\",'1. Ordersheet'!BD665)","v":""},{"$f":"IF('1. Ordersheet'!BE665=\"\",\"\",'1. Ordersheet'!BE665)","v":""},{"$f":"IF('1. Ordersheet'!BF665=\"\",\"\",'1. Ordersheet'!BF665)","v":""},{"$f":"IF('1. Ordersheet'!BG665=\"\",\"\",'1. Ordersheet'!BG665)","v":"ZWO"},{"$f":"IF('1. Ordersheet'!BH665=\"\",\"\",'1. Ordersheet'!BH665)","v":""},{"$f":"IF('1. Ordersheet'!BI665=\"\",\"\",'1. Ordersheet'!BI665)","v":""},{"$f":"IF('1. Ordersheet'!BJ665=\"\",\"\",'1. Ordersheet'!BJ665)","v":""},{"$f":"IF('1. Ordersheet'!BK665=\"\",\"\",'1. Ordersheet'!BK665)","v":""},{"$f":"IF('1. Ordersheet'!BL665=\"\",\"\",'1. Ordersheet'!BL665)","v":""}]
[{"$f":"IF('1. Ordersheet'!F666=\"\",\"\",'1. Ordersheet'!F666)","v":""},{"$f":"IF('1. Ordersheet'!G666=\"\",\"\",'1. Ordersheet'!G666)","v":""},{"$f":"IF('1. Ordersheet'!H666=\"\",\"\",'1. Ordersheet'!H666)","v":""},{"$f":"IF('1. Ordersheet'!I666=\"\",\"\",'1. Ordersheet'!I666)","v":""},{"$f":"IF('1. Ordersheet'!J666=\"\",\"\",'1. Ordersheet'!J666)","v":""},{"$f":"IF('1. Ordersheet'!K666=\"\",\"\",'1. Ordersheet'!K666)","v":""},{"$f":"IF('1. Ordersheet'!L666=\"\",\"\",'1. Ordersheet'!L666)","v":""},{"$f":"IF('1. Ordersheet'!M666=\"\",\"\",'1. Ordersheet'!M666)","v":""},{"$f":"IF('1. Ordersheet'!N666=\"\",\"\",'1. Ordersheet'!N666)","v":""},{"$f":"IF('1. Ordersheet'!O666=\"\",\"\",'1. Ordersheet'!O666)","v":{"$error":"#N/A"}},{"$f":"IF('1. Ordersheet'!P666=\"\",\"\",'1. Ordersheet'!P666)","v":{"$error":"#N/A"}},{"$f":"IF('1. Ordersheet'!Q666=\"\",\"\",'1. Ordersheet'!Q666)","v":""},{"$f":"IF('1. Ordersheet'!R666=\"\",\"\",'1. Ordersheet'!R666)","v":""},{"$f":"IF('1. Ordersheet'!S666=\"\",\"\",'1. Ordersheet'!S666)","v":""},{"$f":"IF('1. Ordersheet'!V666=\"\",\"\",'1. Ordersheet'!V666)","v":""},{"$f":"IF('1. Ordersheet'!W666=\"\",\"\",'1. Ordersheet'!W666)","v":""},{"$f":"IF('1. Ordersheet'!X666=\"\",\"\",'1. Ordersheet'!X666)","v":""},{"$f":"IF('1. Ordersheet'!Y666=\"\",\"\",'1. Ordersheet'!Y666)","v":""},{"$f":"IF('1. Ordersheet'!Z666=\"\",\"\",'1. Ordersheet'!Z666)","v":""},{"$f":"IF('1. Ordersheet'!AA666=\"\",\"\",'1. Ordersheet'!AA666)","v":""},null,{"$f":"IF('1. Ordersheet'!AS666=\"\",\"\",'1. Ordersheet'!AS666)","v":""},{"$f":"IF('1. Ordersheet'!AT666=\"\",\"\",'1. Ordersheet'!AT666)","v":""},null,null,null,null,null,null,null,{"$f":"IF('1. Ordersheet'!AX666=\"\",\"\",'1. Ordersheet'!AX666)","v":""},{"$f":"IF('1. Ordersheet'!AY666=\"\",\"\",'1. Ordersheet'!AY666)","v":""},{"$f":"IF('1. Ordersheet'!AZ666=\"\",\"\",'1. Ordersheet'!AZ666)","v":""},{"$f":"IF('1. Ordersheet'!BA666=\"\",\"\",'1. Ordersheet'!BA666)","v":""},{"$f":"IF('1. Ordersheet'!BC666=\"\",\"\",'1. Ordersheet'!BC666)","v":""},{"$f":"IF('1. Ordersheet'!BD666=\"\",\"\",'1. Ordersheet'!BD666)","v":""},{"$f":"IF('1. Ordersheet'!BE666=\"\",\"\",'1. Ordersheet'!BE666)","v":""},{"$f":"IF('1. Ordersheet'!BF666=\"\",\"\",'1. Ordersheet'!BF666)","v":""},{"$f":"IF('1. Ordersheet'!BG666=\"\",\"\",'1. Ordersheet'!BG666)","v":"ZWO"},{"$f":"IF('1. Ordersheet'!BH666=\"\",\"\",'1. Ordersheet'!BH666)","v":""},{"$f":"IF('1. Ordersheet'!BI666=\"\",\"\",'1. Ordersheet'!BI666)","v":""},{"$f":"IF('1. Ordersheet'!BJ666=\"\",\"\",'1. Ordersheet'!BJ666)","v":""},{"$f":"IF('1. Ordersheet'!BK666=\"\",\"\",'1. Ordersheet'!BK666)","v":""},{"$f":"IF('1. Ordersheet'!BL666=\"\",\"\",'1. Ordersheet'!BL666)","v":""}]
[{"$f":"IF('1. Ordersheet'!F667=\"\",\"\",'1. Ordersheet'!F667)","v":""},{"$f":"IF('1. Ordersheet'!G667=\"\",\"\",'1. Ordersheet'!G667)","v":""},{"$f":"IF('1. Ordersheet'!H667=\"\",\"\",'1. Ordersheet'!H667)","v":""},{"$f":"IF('1. Ordersheet'!I667=\"\",\"\",'1. Ordersheet'!I667)","v":""},{"$f":"IF('1. Ordersheet'!J667=\"\",\"\",'1. Ordersheet'!J667)","v":""},{"$f":"IF('1. Ordersheet'!K667=\"\",\"\",'1. Ordersheet'!K667)","v":""},{"$f":"IF('1. Ordersheet'!L667=\"\",\"\",'1. Ordersheet'!L667)","v":""},{"$f":"IF('1. Ordersheet'!M667=\"\",\"\",'1. Ordersheet'!M667)","v":""},{"$f":"IF('1. Ordersheet'!N667=\"\",\"\",'1. Ordersheet'!N667)","v":""},{"$f":"IF('1. Ordersheet'!O667=\"\",\"\",'1. Ordersheet'!O667)","v":{"$error":"#N/A"}},{"$f":"IF('1. Ordersheet'!P667=\"\",\"\",'1. Ordersheet'!P667)","v":{"$error":"#N/A"}},{"$f":"IF('1. Ordersheet'!Q667=\"\",\"\",'1. Ordersheet'!Q667)","v":""},{"$f":"IF('1. Ordersheet'!R667=\"\",\"\",'1. Ordersheet'!R667)","v":""},{"$f":"IF('1. Ordersheet'!S667=\"\",\"\",'1. Ordersheet'!S667)","v":""},{"$f":"IF('1. Ordersheet'!V667=\"\",\"\",'1. Ordersheet'!V667)","v":""},{"$f":"IF('1. Ordersheet'!W667=\"\",\"\",'1. Ordersheet'!W667)","v":""},{"$f":"IF('1. Ordersheet'!X667=\"\",\"\",'1. Ordersheet'!X667)","v":""},{"$f":"IF('1. Ordersheet'!Y667=\"\",\"\",'1. Ordersheet'!Y667)","v":""},{"$f":"IF('1. Ordersheet'!Z667=\"\",\"\",'1. Ordersheet'!Z667)","v":""},{"$f":"IF('1. Ordersheet'!AA667=\"\",\"\",'1. Ordersheet'!AA667)","v":""},null,{"$f":"IF('1. Ordersheet'!AS667=\"\",\"\",'1. Ordersheet'!AS667)","v":""},{"$f":"IF('1. Ordersheet'!AT667=\"\",\"\",'1. Ordersheet'!AT667)","v":""},null,null,null,null,null,null,null,{"$f":"IF('1. Ordersheet'!AX667=\"\",\"\",'1. Ordersheet'!AX667)","v":""},{"$f":"IF('1. Ordersheet'!AY667=\"\",\"\",'1. Ordersheet'!AY667)","v":""},{"$f":"IF('1. Ordersheet'!AZ667=\"\",\"\",'1. Ordersheet'!AZ667)","v":""},{"$f":"IF('1. Ordersheet'!BA667=\"\",\"\",'1. Ordersheet'!BA667)","v":""},{"$f":"IF('1. Ordersheet'!BC667=\"\",\"\",'1. Ordersheet'!BC667)","v":""},{"$f":"IF('1. Ordersheet'!BD667=\"\",\"\",'1. Ordersheet'!BD667)","v":""},{"$f":"IF('1. Ordersheet'!BE667=\"\",\"\",'1. Ordersheet'!BE667)","v":""},{"$f":"IF('1. Ordersheet'!BF667=\"\",\"\",'1. Ordersheet'!BF667)","v":""},{"$f":"IF('1. Ordersheet'!BG667=\"\",\"\",'1. Ordersheet'!BG667)","v":"ZWO"},{"$f":"IF('1. Ordersheet'!BH667=\"\",\"\",'1. Ordersheet'!BH667)","v":""},{"$f":"IF('1. Ordersheet'!BI667=\"\",\"\",'1. Ordersheet'!BI667)","v":""},{"$f":"IF('1. Ordersheet'!BJ667=\"\",\"\",'1. Ordersheet'!BJ667)","v":""},{"$f":"IF('1. Ordersheet'!BK667=\"\",\"\",'1. Ordersheet'!BK667)","v":""},{"$f":"IF('1. Ordersheet'!BL667=\"\",\"\",'1. Ordersheet'!BL667)","v":""}]
[{"$f":"IF('1. Ordersheet'!F668=\"\",\"\",'1. Ordersheet'!F668)","v":""},{"$f":"IF('1. Ordersheet'!G668=\"\",\"\",'1. Ordersheet'!G668)","v":""},{"$f":"IF('1. Ordersheet'!H668=\"\",\"\",'1. Ordersheet'!H668)","v":""},{"$f":"IF('1. Ordersheet'!I668=\"\",\"\",'1. Ordersheet'!I668)","v":""},{"$f":"IF('1. Ordersheet'!J668=\"\",\"\",'1. Ordersheet'!J668)","v":""},{"$f":"IF('1. Ordersheet'!K668=\"\",\"\",'1. Ordersheet'!K668)","v":""},{"$f":"IF('1. Ordersheet'!L668=\"\",\"\",'1. Ordersheet'!L668)","v":""},{"$f":"IF('1. Ordersheet'!M668=\"\",\"\",'1. Ordersheet'!M668)","v":""},{"$f":"IF('1. Ordersheet'!N668=\"\",\"\",'1. Ordersheet'!N668)","v":""},{"$f":"IF('1. Ordersheet'!O668=\"\",\"\",'1. Ordersheet'!O668)","v":{"$error":"#N/A"}},{"$f":"IF('1. Ordersheet'!P668=\"\",\"\",'1. Ordersheet'!P668)","v":{"$error":"#N/A"}},{"$f":"IF('1. Ordersheet'!Q668=\"\",\"\",'1. Ordersheet'!Q668)","v":""},{"$f":"IF('1. Ordersheet'!R668=\"\",\"\",'1. Ordersheet'!R668)","v":""},{"$f":"IF('1. Ordersheet'!S668=\"\",\"\",'1. Ordersheet'!S668)","v":""},{"$f":"IF('1. Ordersheet'!V668=\"\",\"\",'1. Ordersheet'!V668)","v":""},{"$f":"IF('1. Ordersheet'!W668=\"\",\"\",'1. Ordersheet'!W668)","v":""},{"$f":"IF('1. Ordersheet'!X668=\"\",\"\",'1. Ordersheet'!X668)","v":""},{"$f":"IF('1. Ordersheet'!Y668=\"\",\"\",'1. Ordersheet'!Y668)","v":""},{"$f":"IF('1. Ordersheet'!Z668=\"\",\"\",'1. Ordersheet'!Z668)","v":""},{"$f":"IF('1. Ordersheet'!AA668=\"\",\"\",'1. Ordersheet'!AA668)","v":""},null,{"$f":"IF('1. Ordersheet'!AS668=\"\",\"\",'1. Ordersheet'!AS668)","v":""},{"$f":"IF('1. Ordersheet'!AT668=\"\",\"\",'1. Ordersheet'!AT668)","v":""},null,null,null,null,null,null,null,{"$f":"IF('1. Ordersheet'!AX668=\"\",\"\",'1. Ordersheet'!AX668)","v":""},{"$f":"IF('1. Ordersheet'!AY668=\"\",\"\",'1. Ordersheet'!AY668)","v":""},{"$f":"IF('1. Ordersheet'!AZ668=\"\",\"\",'1. Ordersheet'!AZ668)","v":""},{"$f":"IF('1. Ordersheet'!BA668=\"\",\"\",'1. Ordersheet'!BA668)","v":""},{"$f":"IF('1. Ordersheet'!BC668=\"\",\"\",'1. Ordersheet'!BC668)","v":""},{"$f":"IF('1. Ordersheet'!BD668=\"\",\"\",'1. Ordersheet'!BD668)","v":""},{"$f":"IF('1. Ordersheet'!BE668=\"\",\"\",'1. Ordersheet'!BE668)","v":""},{"$f":"IF('1. Ordersheet'!BF668=\"\",\"\",'1. Ordersheet'!BF668)","v":""},{"$f":"IF('1. Ordersheet'!BG668=\"\",\"\",'1. Ordersheet'!BG668)","v":"ZWO"},{"$f":"IF('1. Ordersheet'!BH668=\"\",\"\",'1. Ordersheet'!BH668)","v":""},{"$f":"IF('1. Ordersheet'!BI668=\"\",\"\",'1. Ordersheet'!BI668)","v":""},{"$f":"IF('1. Ordersheet'!BJ668=\"\",\"\",'1. Ordersheet'!BJ668)","v":""},{"$f":"IF('1. Ordersheet'!BK668=\"\",\"\",'1. Ordersheet'!BK668)","v":""},{"$f":"IF('1. Ordersheet'!BL668=\"\",\"\",'1. Ordersheet'!BL668)","v":""}]
[{"$f":"IF('1. Ordersheet'!F669=\"\",\"\",'1. Ordersheet'!F669)","v":""},{"$f":"IF('1. Ordersheet'!G669=\"\",\"\",'1. Ordersheet'!G669)","v":""},{"$f":"IF('1. Ordersheet'!H669=\"\",\"\",'1. Ordersheet'!H669)","v":""},{"$f":"IF('1. Ordersheet'!I669=\"\",\"\",'1. Ordersheet'!I669)","v":""},{"$f":"IF('1. Ordersheet'!J669=\"\",\"\",'1. Ordersheet'!J669)","v":""},{"$f":"IF('1. Ordersheet'!K669=\"\",\"\",'1. Ordersheet'!K669)","v":""},{"$f":"IF('1. Ordersheet'!L669=\"\",\"\",'1. Ordersheet'!L669)","v":""},{"$f":"IF('1. Ordersheet'!M669=\"\",\"\",'1. Ordersheet'!M669)","v":""},{"$f":"IF('1. Ordersheet'!N669=\"\",\"\",'1. Ordersheet'!N669)","v":""},{"$f":"IF('1. Ordersheet'!O669=\"\",\"\",'1. Ordersheet'!O669)","v":{"$error":"#N/A"}},{"$f":"IF('1. Ordersheet'!P669=\"\",\"\",'1. Ordersheet'!P669)","v":{"$error":"#N/A"}},{"$f":"IF('1. Ordersheet'!Q669=\"\",\"\",'1. Ordersheet'!Q669)","v":""},{"$f":"IF('1. Ordersheet'!R669=\"\",\"\",'1. Ordersheet'!R669)","v":""},{"$f":"IF('1. Ordersheet'!S669=\"\",\"\",'1. Ordersheet'!S669)","v":""},{"$f":"IF('1. Ordersheet'!V669=\"\",\"\",'1. Ordersheet'!V669)","v":""},{"$f":"IF('1. Ordersheet'!W669=\"\",\"\",'1. Ordersheet'!W669)","v":""},{"$f":"IF('1. Ordersheet'!X669=\"\",\"\",'1. Ordersheet'!X669)","v":""},{"$f":"IF('1. Ordersheet'!Y669=\"\",\"\",'1. Ordersheet'!Y669)","v":""},{"$f":"IF('1. Ordersheet'!Z669=\"\",\"\",'1. Ordersheet'!Z669)","v":""},{"$f":"IF('1. Ordersheet'!AA669=\"\",\"\",'1. Ordersheet'!AA669)","v":""},null,{"$f":"IF('1. Ordersheet'!AS669=\"\",\"\",'1. Ordersheet'!AS669)","v":""},{"$f":"IF('1. Ordersheet'!AT669=\"\",\"\",'1. Ordersheet'!AT669)","v":""},null,null,null,null,null,null,null,{"$f":"IF('1. Ordersheet'!AX669=\"\",\"\",'1. Ordersheet'!AX669)","v":""},{"$f":"IF('1. Ordersheet'!AY669=\"\",\"\",'1. Ordersheet'!AY669)","v":""},{"$f":"IF('1. Ordersheet'!AZ669=\"\",\"\",'1. Ordersheet'!AZ669)","v":""},{"$f":"IF('1. Ordersheet'!BA669=\"\",\"\",'1. Ordersheet'!BA669)","v":""},{"$f":"IF('1. Ordersheet'!BC669=\"\",\"\",'1. Ordersheet'!BC669)","v":""},{"$f":"IF('1. Ordersheet'!BD669=\"\",\"\",'1. Ordersheet'!BD669)","v":""},{"$f":"IF('1. Ordersheet'!BE669=\"\",\"\",'1. Ordersheet'!BE669)","v":""},{"$f":"IF('1. Ordersheet'!BF669=\"\",\"\",'1. Ordersheet'!BF669)","v":""},{"$f":"IF('1. Ordersheet'!BG669=\"\",\"\",'1. Ordersheet'!BG669)","v":"ZWO"},{"$f":"IF('1. Ordersheet'!BH669=\"\",\"\",'1. Ordersheet'!BH669)","v":""},{"$f":"IF('1. Ordersheet'!BI669=\"\",\"\",'1. Ordersheet'!BI669)","v":""},{"$f":"IF('1. Ordersheet'!BJ669=\"\",\"\",'1. Ordersheet'!BJ669)","v":""},{"$f":"IF('1. Ordersheet'!BK669=\"\",\"\",'1. Ordersheet'!BK669)","v":""},{"$f":"IF('1. Ordersheet'!BL669=\"\",\"\",'1. Ordersheet'!BL669)","v":""}]
[{"$f":"IF('1. Ordersheet'!F670=\"\",\"\",'1. Ordersheet'!F670)","v":""},{"$f":"IF('1. Ordersheet'!G670=\"\",\"\",'1. Ordersheet'!G670)","v":""},{"$f":"IF('1. Ordersheet'!H670=\"\",\"\",'1. Ordersheet'!H670)","v":""},{"$f":"IF('1. Ordersheet'!I670=\"\",\"\",'1. Ordersheet'!I670)","v":""},{"$f":"IF('1. Ordersheet'!J670=\"\",\"\",'1. Ordersheet'!J670)","v":""},{"$f":"IF('1. Ordersheet'!K670=\"\",\"\",'1. Ordersheet'!K670)","v":""},{"$f":"IF('1. Ordersheet'!L670=\"\",\"\",'1. Ordersheet'!L670)","v":""},{"$f":"IF('1. Ordersheet'!M670=\"\",\"\",'1. Ordersheet'!M670)","v":""},{"$f":"IF('1. Ordersheet'!N670=\"\",\"\",'1. Ordersheet'!N670)","v":""},{"$f":"IF('1. Ordersheet'!O670=\"\",\"\",'1. Ordersheet'!O670)","v":{"$error":"#N/A"}},{"$f":"IF('1. Ordersheet'!P670=\"\",\"\",'1. Ordersheet'!P670)","v":{"$error":"#N/A"}},{"$f":"IF('1. Ordersheet'!Q670=\"\",\"\",'1. Ordersheet'!Q670)","v":""},{"$f":"IF('1. Ordersheet'!R670=\"\",\"\",'1. Ordersheet'!R670)","v":""},{"$f":"IF('1. Ordersheet'!S670=\"\",\"\",'1. Ordersheet'!S670)","v":""},{"$f":"IF('1. Ordersheet'!V670=\"\",\"\",'1. Ordersheet'!V670)","v":""},{"$f":"IF('1. Ordersheet'!W670=\"\",\"\",'1. Ordersheet'!W670)","v":""},{"$f":"IF('1. Ordersheet'!X670=\"\",\"\",'1. Ordersheet'!X670)","v":""},{"$f":"IF('1. Ordersheet'!Y670=\"\",\"\",'1. Ordersheet'!Y670)","v":""},{"$f":"IF('1. Ordersheet'!Z670=\"\",\"\",'1. Ordersheet'!Z670)","v":""},{"$f":"IF('1. Ordersheet'!AA670=\"\",\"\",'1. Ordersheet'!AA670)","v":""},null,{"$f":"IF('1. Ordersheet'!AS670=\"\",\"\",'1. Ordersheet'!AS670)","v":""},{"$f":"IF('1. Ordersheet'!AT670=\"\",\"\",'1. Ordersheet'!AT670)","v":""},null,null,null,null,null,null,null,{"$f":"IF('1. Ordersheet'!AX670=\"\",\"\",'1. Ordersheet'!AX670)","v":""},{"$f":"IF('1. Ordersheet'!AY670=\"\",\"\",'1. Ordersheet'!AY670)","v":""},{"$f":"IF('1. Ordersheet'!AZ670=\"\",\"\",'1. Ordersheet'!AZ670)","v":""},{"$f":"IF('1. Ordersheet'!BA670=\"\",\"\",'1. Ordersheet'!BA670)","v":""},{"$f":"IF('1. Ordersheet'!BC670=\"\",\"\",'1. Ordersheet'!BC670)","v":""},{"$f":"IF('1. Ordersheet'!BD670=\"\",\"\",'1. Ordersheet'!BD670)","v":""},{"$f":"IF('1. Ordersheet'!BE670=\"\",\"\",'1. Ordersheet'!BE670)","v":""},{"$f":"IF('1. Ordersheet'!BF670=\"\",\"\",'1. Ordersheet'!BF670)","v":""},{"$f":"IF('1. Ordersheet'!BG670=\"\",\"\",'1. Ordersheet'!BG670)","v":"ZWO"},{"$f":"IF('1. Ordersheet'!BH670=\"\",\"\",'1. Ordersheet'!BH670)","v":""},{"$f":"IF('1. Ordersheet'!BI670=\"\",\"\",'1. Ordersheet'!BI670)","v":""},{"$f":"IF('1. Ordersheet'!BJ670=\"\",\"\",'1. Ordersheet'!BJ670)","v":""},{"$f":"IF('1. Ordersheet'!BK670=\"\",\"\",'1. Ordersheet'!BK670)","v":""},{"$f":"IF('1. Ordersheet'!BL670=\"\",\"\",'1. Ordersheet'!BL670)","v":""}]
[{"$f":"IF('1. Ordersheet'!F671=\"\",\"\",'1. Ordersheet'!F671)","v":""},{"$f":"IF('1. Ordersheet'!G671=\"\",\"\",'1. Ordersheet'!G671)","v":""},{"$f":"IF('1. Ordersheet'!H671=\"\",\"\",'1. Ordersheet'!H671)","v":""},{"$f":"IF('1. Ordersheet'!I671=\"\",\"\",'1. Ordersheet'!I671)","v":""},{"$f":"IF('1. Ordersheet'!J671=\"\",\"\",'1. Ordersheet'!J671)","v":""},{"$f":"IF('1. Ordersheet'!K671=\"\",\"\",'1. Ordersheet'!K671)","v":""},{"$f":"IF('1. Ordersheet'!L671=\"\",\"\",'1. Ordersheet'!L671)","v":""},{"$f":"IF('1. Ordersheet'!M671=\"\",\"\",'1. Ordersheet'!M671)","v":""},{"$f":"IF('1. Ordersheet'!N671=\"\",\"\",'1. Ordersheet'!N671)","v":""},{"$f":"IF('1. Ordersheet'!O671=\"\",\"\",'1. Ordersheet'!O671)","v":{"$error":"#N/A"}},{"$f":"IF('1. Ordersheet'!P671=\"\",\"\",'1. Ordersheet'!P671)","v":{"$error":"#N/A"}},{"$f":"IF('1. Ordersheet'!Q671=\"\",\"\",'1. Ordersheet'!Q671)","v":""},{"$f":"IF('1. Ordersheet'!R671=\"\",\"\",'1. Ordersheet'!R671)","v":""},{"$f":"IF('1. Ordersheet'!S671=\"\",\"\",'1. Ordersheet'!S671)","v":""},{"$f":"IF('1. Ordersheet'!V671=\"\",\"\",'1. Ordersheet'!V671)","v":""},{"$f":"IF('1. Ordersheet'!W671=\"\",\"\",'1. Ordersheet'!W671)","v":""},{"$f":"IF('1. Ordersheet'!X671=\"\",\"\",'1. Ordersheet'!X671)","v":""},{"$f":"IF('1. Ordersheet'!Y671=\"\",\"\",'1. Ordersheet'!Y671)","v":""},{"$f":"IF('1. Ordersheet'!Z671=\"\",\"\",'1. Ordersheet'!Z671)","v":""},{"$f":"IF('1. Ordersheet'!AA671=\"\",\"\",'1. Ordersheet'!AA671)","v":""},null,{"$f":"IF('1. Ordersheet'!AS671=\"\",\"\",'1. Ordersheet'!AS671)","v":""},{"$f":"IF('1. Ordersheet'!AT671=\"\",\"\",'1. Ordersheet'!AT671)","v":""},null,null,null,null,null,null,null,{"$f":"IF('1. Ordersheet'!AX671=\"\",\"\",'1. Ordersheet'!AX671)","v":""},{"$f":"IF('1. Ordersheet'!AY671=\"\",\"\",'1. Ordersheet'!AY671)","v":""},{"$f":"IF('1. Ordersheet'!AZ671=\"\",\"\",'1. Ordersheet'!AZ671)","v":""},{"$f":"IF('1. Ordersheet'!BA671=\"\",\"\",'1. Ordersheet'!BA671)","v":""},{"$f":"IF('1. Ordersheet'!BC671=\"\",\"\",'1. Ordersheet'!BC671)","v":""},{"$f":"IF('1. Ordersheet'!BD671=\"\",\"\",'1. Ordersheet'!BD671)","v":""},{"$f":"IF('1. Ordersheet'!BE671=\"\",\"\",'1. Ordersheet'!BE671)","v":""},{"$f":"IF('1. Ordersheet'!BF671=\"\",\"\",'1. Ordersheet'!BF671)","v":""},{"$f":"IF('1. Ordersheet'!BG671=\"\",\"\",'1. Ordersheet'!BG671)","v":"ZWO"},{"$f":"IF('1. Ordersheet'!BH671=\"\",\"\",'1. Ordersheet'!BH671)","v":""},{"$f":"IF('1. Ordersheet'!BI671=\"\",\"\",'1. Ordersheet'!BI671)","v":""},{"$f":"IF('1. Ordersheet'!BJ671=\"\",\"\",'1. Ordersheet'!BJ671)","v":""},{"$f":"IF('1. Ordersheet'!BK671=\"\",\"\",'1. Ordersheet'!BK671)","v":""},{"$f":"IF('1. Ordersheet'!BL671=\"\",\"\",'1. Ordersheet'!BL671)","v":""}]
[{"$f":"IF('1. Ordersheet'!F672=\"\",\"\",'1. Ordersheet'!F672)","v":""},{"$f":"IF('1. Ordersheet'!G672=\"\",\"\",'1. Ordersheet'!G672)","v":""},{"$f":"IF('1. Ordersheet'!H672=\"\",\"\",'1. Ordersheet'!H672)","v":""},{"$f":"IF('1. Ordersheet'!I672=\"\",\"\",'1. Ordersheet'!I672)","v":""},{"$f":"IF('1. Ordersheet'!J672=\"\",\"\",'1. Ordersheet'!J672)","v":""},{"$f":"IF('1. Ordersheet'!K672=\"\",\"\",'1. Ordersheet'!K672)","v":""},{"$f":"IF('1. Ordersheet'!L672=\"\",\"\",'1. Ordersheet'!L672)","v":""},{"$f":"IF('1. Ordersheet'!M672=\"\",\"\",'1. Ordersheet'!M672)","v":""},{"$f":"IF('1. Ordersheet'!N672=\"\",\"\",'1. Ordersheet'!N672)","v":""},{"$f":"IF('1. Ordersheet'!O672=\"\",\"\",'1. Ordersheet'!O672)","v":{"$error":"#N/A"}},{"$f":"IF('1. Ordersheet'!P672=\"\",\"\",'1. Ordersheet'!P672)","v":{"$error":"#N/A"}},{"$f":"IF('1. Ordersheet'!Q672=\"\",\"\",'1. Ordersheet'!Q672)","v":""},{"$f":"IF('1. Ordersheet'!R672=\"\",\"\",'1. Ordersheet'!R672)","v":""},{"$f":"IF('1. Ordersheet'!S672=\"\",\"\",'1. Ordersheet'!S672)","v":""},{"$f":"IF('1. Ordersheet'!V672=\"\",\"\",'1. Ordersheet'!V672)","v":""},{"$f":"IF('1. Ordersheet'!W672=\"\",\"\",'1. Ordersheet'!W672)","v":""},{"$f":"IF('1. Ordersheet'!X672=\"\",\"\",'1. Ordersheet'!X672)","v":""},{"$f":"IF('1. Ordersheet'!Y672=\"\",\"\",'1. Ordersheet'!Y672)","v":""},{"$f":"IF('1. Ordersheet'!Z672=\"\",\"\",'1. Ordersheet'!Z672)","v":""},{"$f":"IF('1. Ordersheet'!AA672=\"\",\"\",'1. Ordersheet'!AA672)","v":""},null,{"$f":"IF('1. Ordersheet'!AS672=\"\",\"\",'1. Ordersheet'!AS672)","v":""},{"$f":"IF('1. Ordersheet'!AT672=\"\",\"\",'1. Ordersheet'!AT672)","v":""},null,null,null,null,null,null,null,{"$f":"IF('1. Ordersheet'!AX672=\"\",\"\",'1. Ordersheet'!AX672)","v":""},{"$f":"IF('1. Ordersheet'!AY672=\"\",\"\",'1. Ordersheet'!AY672)","v":""},{"$f":"IF('1. Ordersheet'!AZ672=\"\",\"\",'1. Ordersheet'!AZ672)","v":""},{"$f":"IF('1. Ordersheet'!BA672=\"\",\"\",'1. Ordersheet'!BA672)","v":""},{"$f":"IF('1. Ordersheet'!BC672=\"\",\"\",'1. Ordersheet'!BC672)","v":""},{"$f":"IF('1. Ordersheet'!BD672=\"\",\"\",'1. Ordersheet'!BD672)","v":""},{"$f":"IF('1. Ordersheet'!BE672=\"\",\"\",'1. Ordersheet'!BE672)","v":""},{"$f":"IF('1. Ordersheet'!BF672=\"\",\"\",'1. Ordersheet'!BF672)","v":""},{"$f":"IF('1. Ordersheet'!BG672=\"\",\"\",'1. Ordersheet'!BG672)","v":"ZWO"},{"$f":"IF('1. Ordersheet'!BH672=\"\",\"\",'1. Ordersheet'!BH672)","v":""},{"$f":"IF('1. Ordersheet'!BI672=\"\",\"\",'1. Ordersheet'!BI672)","v":""},{"$f":"IF('1. Ordersheet'!BJ672=\"\",\"\",'1. Ordersheet'!BJ672)","v":""},{"$f":"IF('1. Ordersheet'!BK672=\"\",\"\",'1. Ordersheet'!BK672)","v":""},{"$f":"IF('1. Ordersheet'!BL672=\"\",\"\",'1. Ordersheet'!BL672)","v":""}]
[{"$f":"IF('1. Ordersheet'!F673=\"\",\"\",'1. Ordersheet'!F673)","v":""},{"$f":"IF('1. Ordersheet'!G673=\"\",\"\",'1. Ordersheet'!G673)","v":""},{"$f":"IF('1. Ordersheet'!H673=\"\",\"\",'1. Ordersheet'!H673)","v":""},{"$f":"IF('1. Ordersheet'!I673=\"\",\"\",'1. Ordersheet'!I673)","v":""},{"$f":"IF('1. Ordersheet'!J673=\"\",\"\",'1. Ordersheet'!J673)","v":""},{"$f":"IF('1. Ordersheet'!K673=\"\",\"\",'1. Ordersheet'!K673)","v":""},{"$f":"IF('1. Ordersheet'!L673=\"\",\"\",'1. Ordersheet'!L673)","v":""},{"$f":"IF('1. Ordersheet'!M673=\"\",\"\",'1. Ordersheet'!M673)","v":""},{"$f":"IF('1. Ordersheet'!N673=\"\",\"\",'1. Ordersheet'!N673)","v":""},{"$f":"IF('1. Ordersheet'!O673=\"\",\"\",'1. Ordersheet'!O673)","v":{"$error":"#N/A"}},{"$f":"IF('1. Ordersheet'!P673=\"\",\"\",'1. Ordersheet'!P673)","v":{"$error":"#N/A"}},{"$f":"IF('1. Ordersheet'!Q673=\"\",\"\",'1. Ordersheet'!Q673)","v":""},{"$f":"IF('1. Ordersheet'!R673=\"\",\"\",'1. Ordersheet'!R673)","v":""},{"$f":"IF('1. Ordersheet'!S673=\"\",\"\",'1. Ordersheet'!S673)","v":""},{"$f":"IF('1. Ordersheet'!V673=\"\",\"\",'1. Ordersheet'!V673)","v":""},{"$f":"IF('1. Ordersheet'!W673=\"\",\"\",'1. Ordersheet'!W673)","v":""},{"$f":"IF('1. Ordersheet'!X673=\"\",\"\",'1. Ordersheet'!X673)","v":""},{"$f":"IF('1. Ordersheet'!Y673=\"\",\"\",'1. Ordersheet'!Y673)","v":""},{"$f":"IF('1. Ordersheet'!Z673=\"\",\"\",'1. Ordersheet'!Z673)","v":""},{"$f":"IF('1. Ordersheet'!AA673=\"\",\"\",'1. Ordersheet'!AA673)","v":""},null,{"$f":"IF('1. Ordersheet'!AS673=\"\",\"\",'1. Ordersheet'!AS673)","v":""},{"$f":"IF('1. Ordersheet'!AT673=\"\",\"\",'1. Ordersheet'!AT673)","v":""},null,null,null,null,null,null,null,{"$f":"IF('1. Ordersheet'!AX673=\"\",\"\",'1. Ordersheet'!AX673)","v":""},{"$f":"IF('1. Ordersheet'!AY673=\"\",\"\",'1. Ordersheet'!AY673)","v":""},{"$f":"IF('1. Ordersheet'!AZ673=\"\",\"\",'1. Ordersheet'!AZ673)","v":""},{"$f":"IF('1. Ordersheet'!BA673=\"\",\"\",'1. Ordersheet'!BA673)","v":""},{"$f":"IF('1. Ordersheet'!BC673=\"\",\"\",'1. Ordersheet'!BC673)","v":""},{"$f":"IF('1. Ordersheet'!BD673=\"\",\"\",'1. Ordersheet'!BD673)","v":""},{"$f":"IF('1. Ordersheet'!BE673=\"\",\"\",'1. Ordersheet'!BE673)","v":""},{"$f":"IF('1. Ordersheet'!BF673=\"\",\"\",'1. Ordersheet'!BF673)","v":""},{"$f":"IF('1. Ordersheet'!BG673=\"\",\"\",'1. Ordersheet'!BG673)","v":"ZWO"},{"$f":"IF('1. Ordersheet'!BH673=\"\",\"\",'1. Ordersheet'!BH673)","v":""},{"$f":"IF('1. Ordersheet'!BI673=\"\",\"\",'1. Ordersheet'!BI673)","v":""},{"$f":"IF('1. Ordersheet'!BJ673=\"\",\"\",'1. Ordersheet'!BJ673)","v":""},{"$f":"IF('1. Ordersheet'!BK673=\"\",\"\",'1. Ordersheet'!BK673)","v":""},{"$f":"IF('1. Ordersheet'!BL673=\"\",\"\",'1. Ordersheet'!BL673)","v":""}]
[{"$f":"IF('1. Ordersheet'!F674=\"\",\"\",'1. Ordersheet'!F674)","v":""},{"$f":"IF('1. Ordersheet'!G674=\"\",\"\",'1. Ordersheet'!G674)","v":""},{"$f":"IF('1. Ordersheet'!H674=\"\",\"\",'1. Ordersheet'!H674)","v":""},{"$f":"IF('1. Ordersheet'!I674=\"\",\"\",'1. Ordersheet'!I674)","v":""},{"$f":"IF('1. Ordersheet'!J674=\"\",\"\",'1. Ordersheet'!J674)","v":""},{"$f":"IF('1. Ordersheet'!K674=\"\",\"\",'1. Ordersheet'!K674)","v":""},{"$f":"IF('1. Ordersheet'!L674=\"\",\"\",'1. Ordersheet'!L674)","v":""},{"$f":"IF('1. Ordersheet'!M674=\"\",\"\",'1. Ordersheet'!M674)","v":""},{"$f":"IF('1. Ordersheet'!N674=\"\",\"\",'1. Ordersheet'!N674)","v":""},{"$f":"IF('1. Ordersheet'!O674=\"\",\"\",'1. Ordersheet'!O674)","v":{"$error":"#N/A"}},{"$f":"IF('1. Ordersheet'!P674=\"\",\"\",'1. Ordersheet'!P674)","v":{"$error":"#N/A"}},{"$f":"IF('1. Ordersheet'!Q674=\"\",\"\",'1. Ordersheet'!Q674)","v":""},{"$f":"IF('1. Ordersheet'!R674=\"\",\"\",'1. Ordersheet'!R674)","v":""},{"$f":"IF('1. Ordersheet'!S674=\"\",\"\",'1. Ordersheet'!S674)","v":""},{"$f":"IF('1. Ordersheet'!V674=\"\",\"\",'1. Ordersheet'!V674)","v":""},{"$f":"IF('1. Ordersheet'!W674=\"\",\"\",'1. Ordersheet'!W674)","v":""},{"$f":"IF('1. Ordersheet'!X674=\"\",\"\",'1. Ordersheet'!X674)","v":""},{"$f":"IF('1. Ordersheet'!Y674=\"\",\"\",'1. Ordersheet'!Y674)","v":""},{"$f":"IF('1. Ordersheet'!Z674=\"\",\"\",'1. Ordersheet'!Z674)","v":""},{"$f":"IF('1. Ordersheet'!AA674=\"\",\"\",'1. Ordersheet'!AA674)","v":""},null,{"$f":"IF('1. Ordersheet'!AS674=\"\",\"\",'1. Ordersheet'!AS674)","v":""},{"$f":"IF('1. Ordersheet'!AT674=\"\",\"\",'1. Ordersheet'!AT674)","v":""},null,null,null,null,null,null,null,{"$f":"IF('1. Ordersheet'!AX674=\"\",\"\",'1. Ordersheet'!AX674)","v":""},{"$f":"IF('1. Ordersheet'!AY674=\"\",\"\",'1. Ordersheet'!AY674)","v":""},{"$f":"IF('1. Ordersheet'!AZ674=\"\",\"\",'1. Ordersheet'!AZ674)","v":""},{"$f":"IF('1. Ordersheet'!BA674=\"\",\"\",'1. Ordersheet'!BA674)","v":""},{"$f":"IF('1. Ordersheet'!BC674=\"\",\"\",'1. Ordersheet'!BC674)","v":""},{"$f":"IF('1. Ordersheet'!BD674=\"\",\"\",'1. Ordersheet'!BD674)","v":""},{"$f":"IF('1. Ordersheet'!BE674=\"\",\"\",'1. Ordersheet'!BE674)","v":""},{"$f":"IF('1. Ordersheet'!BF674=\"\",\"\",'1. Ordersheet'!BF674)","v":""},{"$f":"IF('1. Ordersheet'!BG674=\"\",\"\",'1. Ordersheet'!BG674)","v":"ZWO"},{"$f":"IF('1. Ordersheet'!BH674=\"\",\"\",'1. Ordersheet'!BH674)","v":""},{"$f":"IF('1. Ordersheet'!BI674=\"\",\"\",'1. Ordersheet'!BI674)","v":""},{"$f":"IF('1. Ordersheet'!BJ674=\"\",\"\",'1. Ordersheet'!BJ674)","v":""},{"$f":"IF('1. Ordersheet'!BK674=\"\",\"\",'1. Ordersheet'!BK674)","v":""},{"$f":"IF('1. Ordersheet'!BL674=\"\",\"\",'1. Ordersheet'!BL674)","v":""}]
[{"$f":"IF('1. Ordersheet'!F675=\"\",\"\",'1. Ordersheet'!F675)","v":""},{"$f":"IF('1. Ordersheet'!G675=\"\",\"\",'1. Ordersheet'!G675)","v":""},{"$f":"IF('1. Ordersheet'!H675=\"\",\"\",'1. Ordersheet'!H675)","v":""},{"$f":"IF('1. Ordersheet'!I675=\"\",\"\",'1. Ordersheet'!I675)","v":""},{"$f":"IF('1. Ordersheet'!J675=\"\",\"\",'1. Ordersheet'!J675)","v":""},{"$f":"IF('1. Ordersheet'!K675=\"\",\"\",'1. Ordersheet'!K675)","v":""},{"$f":"IF('1. Ordersheet'!L675=\"\",\"\",'1. Ordersheet'!L675)","v":""},{"$f":"IF('1. Ordersheet'!M675=\"\",\"\",'1. Ordersheet'!M675)","v":""},{"$f":"IF('1. Ordersheet'!N675=\"\",\"\",'1. Ordersheet'!N675)","v":""},{"$f":"IF('1. Ordersheet'!O675=\"\",\"\",'1. Ordersheet'!O675)","v":{"$error":"#N/A"}},{"$f":"IF('1. Ordersheet'!P675=\"\",\"\",'1. Ordersheet'!P675)","v":{"$error":"#N/A"}},{"$f":"IF('1. Ordersheet'!Q675=\"\",\"\",'1. Ordersheet'!Q675)","v":""},{"$f":"IF('1. Ordersheet'!R675=\"\",\"\",'1. Ordersheet'!R675)","v":""},{"$f":"IF('1. Ordersheet'!S675=\"\",\"\",'1. Ordersheet'!S675)","v":""},{"$f":"IF('1. Ordersheet'!V675=\"\",\"\",'1. Ordersheet'!V675)","v":""},{"$f":"IF('1. Ordersheet'!W675=\"\",\"\",'1. Ordersheet'!W675)","v":""},{"$f":"IF('1. Ordersheet'!X675=\"\",\"\",'1. Ordersheet'!X675)","v":""},{"$f":"IF('1. Ordersheet'!Y675=\"\",\"\",'1. Ordersheet'!Y675)","v":""},{"$f":"IF('1. Ordersheet'!Z675=\"\",\"\",'1. Ordersheet'!Z675)","v":""},{"$f":"IF('1. Ordersheet'!AA675=\"\",\"\",'1. Ordersheet'!AA675)","v":""},null,{"$f":"IF('1. Ordersheet'!AS675=\"\",\"\",'1. Ordersheet'!AS675)","v":""},{"$f":"IF('1. Ordersheet'!AT675=\"\",\"\",'1. Ordersheet'!AT675)","v":""},null,null,null,null,null,null,null,{"$f":"IF('1. Ordersheet'!AX675=\"\",\"\",'1. Ordersheet'!AX675)","v":""},{"$f":"IF('1. Ordersheet'!AY675=\"\",\"\",'1. Ordersheet'!AY675)","v":""},{"$f":"IF('1. Ordersheet'!AZ675=\"\",\"\",'1. Ordersheet'!AZ675)","v":""},{"$f":"IF('1. Ordersheet'!BA675=\"\",\"\",'1. Ordersheet'!BA675)","v":""},{"$f":"IF('1. Ordersheet'!BC675=\"\",\"\",'1. Ordersheet'!BC675)","v":""},{"$f":"IF('1. Ordersheet'!BD675=\"\",\"\",'1. Ordersheet'!BD675)","v":""},{"$f":"IF('1. Ordersheet'!BE675=\"\",\"\",'1. Ordersheet'!BE675)","v":""},{"$f":"IF('1. Ordersheet'!BF675=\"\",\"\",'1. Ordersheet'!BF675)","v":""},{"$f":"IF('1. Ordersheet'!BG675=\"\",\"\",'1. Ordersheet'!BG675)","v":"ZWO"},{"$f":"IF('1. Ordersheet'!BH675=\"\",\"\",'1. Ordersheet'!BH675)","v":""},{"$f":"IF('1. Ordersheet'!BI675=\"\",\"\",'1. Ordersheet'!BI675)","v":""},{"$f":"IF('1. Ordersheet'!BJ675=\"\",\"\",'1. Ordersheet'!BJ675)","v":""},{"$f":"IF('1. Ordersheet'!BK675=\"\",\"\",'1. Ordersheet'!BK675)","v":""},{"$f":"IF('1. Ordersheet'!BL675=\"\",\"\",'1. Ordersheet'!BL675)","v":""}]
[{"$f":"IF('1. Ordersheet'!F676=\"\",\"\",'1. Ordersheet'!F676)","v":""},{"$f":"IF('1. Ordersheet'!G676=\"\",\"\",'1. Ordersheet'!G676)","v":""},{"$f":"IF('1. Ordersheet'!H676=\"\",\"\",'1. Ordersheet'!H676)","v":""},{"$f":"IF('1. Ordersheet'!I676=\"\",\"\",'1. Ordersheet'!I676)","v":""},{"$f":"IF('1. Ordersheet'!J676=\"\",\"\",'1. Ordersheet'!J676)","v":""},{"$f":"IF('1. Ordersheet'!K676=\"\",\"\",'1. Ordersheet'!K676)","v":""},{"$f":"IF('1. Ordersheet'!L676=\"\",\"\",'1. Ordersheet'!L676)","v":""},{"$f":"IF('1. Ordersheet'!M676=\"\",\"\",'1. Ordersheet'!M676)","v":""},{"$f":"IF('1. Ordersheet'!N676=\"\",\"\",'1. Ordersheet'!N676)","v":""},{"$f":"IF('1. Ordersheet'!O676=\"\",\"\",'1. Ordersheet'!O676)","v":{"$error":"#N/A"}},{"$f":"IF('1. Ordersheet'!P676=\"\",\"\",'1. Ordersheet'!P676)","v":{"$error":"#N/A"}},{"$f":"IF('1. Ordersheet'!Q676=\"\",\"\",'1. Ordersheet'!Q676)","v":""},{"$f":"IF('1. Ordersheet'!R676=\"\",\"\",'1. Ordersheet'!R676)","v":""},{"$f":"IF('1. Ordersheet'!S676=\"\",\"\",'1. Ordersheet'!S676)","v":""},{"$f":"IF('1. Ordersheet'!V676=\"\",\"\",'1. Ordersheet'!V676)","v":""},{"$f":"IF('1. Ordersheet'!W676=\"\",\"\",'1. Ordersheet'!W676)","v":""},{"$f":"IF('1. Ordersheet'!X676=\"\",\"\",'1. Ordersheet'!X676)","v":""},{"$f":"IF('1. Ordersheet'!Y676=\"\",\"\",'1. Ordersheet'!Y676)","v":""},{"$f":"IF('1. Ordersheet'!Z676=\"\",\"\",'1. Ordersheet'!Z676)","v":""},{"$f":"IF('1. Ordersheet'!AA676=\"\",\"\",'1. Ordersheet'!AA676)","v":""},null,{"$f":"IF('1. Ordersheet'!AS676=\"\",\"\",'1. Ordersheet'!AS676)","v":""},{"$f":"IF('1. Ordersheet'!AT676=\"\",\"\",'1. Ordersheet'!AT676)","v":""},null,null,null,null,null,null,null,{"$f":"IF('1. Ordersheet'!AX676=\"\",\"\",'1. Ordersheet'!AX676)","v":""},{"$f":"IF('1. Ordersheet'!AY676=\"\",\"\",'1. Ordersheet'!AY676)","v":""},{"$f":"IF('1. Ordersheet'!AZ676=\"\",\"\",'1. Ordersheet'!AZ676)","v":""},{"$f":"IF('1. Ordersheet'!BA676=\"\",\"\",'1. Ordersheet'!BA676)","v":""},{"$f":"IF('1. Ordersheet'!BC676=\"\",\"\",'1. Ordersheet'!BC676)","v":""},{"$f":"IF('1. Ordersheet'!BD676=\"\",\"\",'1. Ordersheet'!BD676)","v":""},{"$f":"IF('1. Ordersheet'!BE676=\"\",\"\",'1. Ordersheet'!BE676)","v":""},{"$f":"IF('1. Ordersheet'!BF676=\"\",\"\",'1. Ordersheet'!BF676)","v":""},{"$f":"IF('1. Ordersheet'!BG676=\"\",\"\",'1. Ordersheet'!BG676)","v":"ZWO"},{"$f":"IF('1. Ordersheet'!BH676=\"\",\"\",'1. Ordersheet'!BH676)","v":""},{"$f":"IF('1. Ordersheet'!BI676=\"\",\"\",'1. Ordersheet'!BI676)","v":""},{"$f":"IF('1. Ordersheet'!BJ676=\"\",\"\",'1. Ordersheet'!BJ676)","v":""},{"$f":"IF('1. Ordersheet'!BK676=\"\",\"\",'1. Ordersheet'!BK676)","v":""},{"$f":"IF('1. Ordersheet'!BL676=\"\",\"\",'1. Ordersheet'!BL676)","v":""}]
[{"$f":"IF('1. Ordersheet'!F677=\"\",\"\",'1. Ordersheet'!F677)","v":""},{"$f":"IF('1. Ordersheet'!G677=\"\",\"\",'1. Ordersheet'!G677)","v":""},{"$f":"IF('1. Ordersheet'!H677=\"\",\"\",'1. Ordersheet'!H677)","v":""},{"$f":"IF('1. Ordersheet'!I677=\"\",\"\",'1. Ordersheet'!I677)","v":""},{"$f":"IF('1. Ordersheet'!J677=\"\",\"\",'1. Ordersheet'!J677)","v":""},{"$f":"IF('1. Ordersheet'!K677=\"\",\"\",'1. Ordersheet'!K677)","v":""},{"$f":"IF('1. Ordersheet'!L677=\"\",\"\",'1. Ordersheet'!L677)","v":""},{"$f":"IF('1. Ordersheet'!M677=\"\",\"\",'1. Ordersheet'!M677)","v":""},{"$f":"IF('1. Ordersheet'!N677=\"\",\"\",'1. Ordersheet'!N677)","v":""},{"$f":"IF('1. Ordersheet'!O677=\"\",\"\",'1. Ordersheet'!O677)","v":{"$error":"#N/A"}},{"$f":"IF('1. Ordersheet'!P677=\"\",\"\",'1. Ordersheet'!P677)","v":{"$error":"#N/A"}},{"$f":"IF('1. Ordersheet'!Q677=\"\",\"\",'1. Ordersheet'!Q677)","v":""},{"$f":"IF('1. Ordersheet'!R677=\"\",\"\",'1. Ordersheet'!R677)","v":""},{"$f":"IF('1. Ordersheet'!S677=\"\",\"\",'1. Ordersheet'!S677)","v":""},{"$f":"IF('1. Ordersheet'!V677=\"\",\"\",'1. Ordersheet'!V677)","v":""},{"$f":"IF('1. Ordersheet'!W677=\"\",\"\",'1. Ordersheet'!W677)","v":""},{"$f":"IF('1. Ordersheet'!X677=\"\",\"\",'1. Ordersheet'!X677)","v":""},{"$f":"IF('1. Ordersheet'!Y677=\"\",\"\",'1. Ordersheet'!Y677)","v":""},{"$f":"IF('1. Ordersheet'!Z677=\"\",\"\",'1. Ordersheet'!Z677)","v":""},{"$f":"IF('1. Ordersheet'!AA677=\"\",\"\",'1. Ordersheet'!AA677)","v":""},null,{"$f":"IF('1. Ordersheet'!AS677=\"\",\"\",'1. Ordersheet'!AS677)","v":""},{"$f":"IF('1. Ordersheet'!AT677=\"\",\"\",'1. Ordersheet'!AT677)","v":""},null,null,null,null,null,null,null,{"$f":"IF('1. Ordersheet'!AX677=\"\",\"\",'1. Ordersheet'!AX677)","v":""},{"$f":"IF('1. Ordersheet'!AY677=\"\",\"\",'1. Ordersheet'!AY677)","v":""},{"$f":"IF('1. Ordersheet'!AZ677=\"\",\"\",'1. Ordersheet'!AZ677)","v":""},{"$f":"IF('1. Ordersheet'!BA677=\"\",\"\",'1. Ordersheet'!BA677)","v":""},{"$f":"IF('1. Ordersheet'!BC677=\"\",\"\",'1. Ordersheet'!BC677)","v":""},{"$f":"IF('1. Ordersheet'!BD677=\"\",\"\",'1. Ordersheet'!BD677)","v":""},{"$f":"IF('1. Ordersheet'!BE677=\"\",\"\",'1. Ordersheet'!BE677)","v":""},{"$f":"IF('1. Ordersheet'!BF677=\"\",\"\",'1. Ordersheet'!BF677)","v":""},{"$f":"IF('1. Ordersheet'!BG677=\"\",\"\",'1. Ordersheet'!BG677)","v":"ZWO"},{"$f":"IF('1. Ordersheet'!BH677=\"\",\"\",'1. Ordersheet'!BH677)","v":""},{"$f":"IF('1. Ordersheet'!BI677=\"\",\"\",'1. Ordersheet'!BI677)","v":""},{"$f":"IF('1. Ordersheet'!BJ677=\"\",\"\",'1. Ordersheet'!BJ677)","v":""},{"$f":"IF('1. Ordersheet'!BK677=\"\",\"\",'1. Ordersheet'!BK677)","v":""},{"$f":"IF('1. Ordersheet'!BL677=\"\",\"\",'1. Ordersheet'!BL677)","v":""}]
[{"$f":"IF('1. Ordersheet'!F678=\"\",\"\",'1. Ordersheet'!F678)","v":""},{"$f":"IF('1. Ordersheet'!G678=\"\",\"\",'1. Ordersheet'!G678)","v":""},{"$f":"IF('1. Ordersheet'!H678=\"\",\"\",'1. Ordersheet'!H678)","v":""},{"$f":"IF('1. Ordersheet'!I678=\"\",\"\",'1. Ordersheet'!I678)","v":""},{"$f":"IF('1. Ordersheet'!J678=\"\",\"\",'1. Ordersheet'!J678)","v":""},{"$f":"IF('1. Ordersheet'!K678=\"\",\"\",'1. Ordersheet'!K678)","v":""},{"$f":"IF('1. Ordersheet'!L678=\"\",\"\",'1. Ordersheet'!L678)","v":""},{"$f":"IF('1. Ordersheet'!M678=\"\",\"\",'1. Ordersheet'!M678)","v":""},{"$f":"IF('1. Ordersheet'!N678=\"\",\"\",'1. Ordersheet'!N678)","v":""},{"$f":"IF('1. Ordersheet'!O678=\"\",\"\",'1. Ordersheet'!O678)","v":{"$error":"#N/A"}},{"$f":"IF('1. Ordersheet'!P678=\"\",\"\",'1. Ordersheet'!P678)","v":{"$error":"#N/A"}},{"$f":"IF('1. Ordersheet'!Q678=\"\",\"\",'1. Ordersheet'!Q678)","v":""},{"$f":"IF('1. Ordersheet'!R678=\"\",\"\",'1. Ordersheet'!R678)","v":""},{"$f":"IF('1. Ordersheet'!S678=\"\",\"\",'1. Ordersheet'!S678)","v":""},{"$f":"IF('1. Ordersheet'!V678=\"\",\"\",'1. Ordersheet'!V678)","v":""},{"$f":"IF('1. Ordersheet'!W678=\"\",\"\",'1. Ordersheet'!W678)","v":""},{"$f":"IF('1. Ordersheet'!X678=\"\",\"\",'1. Ordersheet'!X678)","v":""},{"$f":"IF('1. Ordersheet'!Y678=\"\",\"\",'1. Ordersheet'!Y678)","v":""},{"$f":"IF('1. Ordersheet'!Z678=\"\",\"\",'1. Ordersheet'!Z678)","v":""},{"$f":"IF('1. Ordersheet'!AA678=\"\",\"\",'1. Ordersheet'!AA678)","v":""},null,{"$f":"IF('1. Ordersheet'!AS678=\"\",\"\",'1. Ordersheet'!AS678)","v":""},{"$f":"IF('1. Ordersheet'!AT678=\"\",\"\",'1. Ordersheet'!AT678)","v":""},null,null,null,null,null,null,null,{"$f":"IF('1. Ordersheet'!AX678=\"\",\"\",'1. Ordersheet'!AX678)","v":""},{"$f":"IF('1. Ordersheet'!AY678=\"\",\"\",'1. Ordersheet'!AY678)","v":""},{"$f":"IF('1. Ordersheet'!AZ678=\"\",\"\",'1. Ordersheet'!AZ678)","v":""},{"$f":"IF('1. Ordersheet'!BA678=\"\",\"\",'1. Ordersheet'!BA678)","v":""},{"$f":"IF('1. Ordersheet'!BC678=\"\",\"\",'1. Ordersheet'!BC678)","v":""},{"$f":"IF('1. Ordersheet'!BD678=\"\",\"\",'1. Ordersheet'!BD678)","v":""},{"$f":"IF('1. Ordersheet'!BE678=\"\",\"\",'1. Ordersheet'!BE678)","v":""},{"$f":"IF('1. Ordersheet'!BF678=\"\",\"\",'1. Ordersheet'!BF678)","v":""},{"$f":"IF('1. Ordersheet'!BG678=\"\",\"\",'1. Ordersheet'!BG678)","v":"ZWO"},{"$f":"IF('1. Ordersheet'!BH678=\"\",\"\",'1. Ordersheet'!BH678)","v":""},{"$f":"IF('1. Ordersheet'!BI678=\"\",\"\",'1. Ordersheet'!BI678)","v":""},{"$f":"IF('1. Ordersheet'!BJ678=\"\",\"\",'1. Ordersheet'!BJ678)","v":""},{"$f":"IF('1. Ordersheet'!BK678=\"\",\"\",'1. Ordersheet'!BK678)","v":""},{"$f":"IF('1. Ordersheet'!BL678=\"\",\"\",'1. Ordersheet'!BL678)","v":""}]
[{"$f":"IF('1. Ordersheet'!F679=\"\",\"\",'1. Ordersheet'!F679)","v":""},{"$f":"IF('1. Ordersheet'!G679=\"\",\"\",'1. Ordersheet'!G679)","v":""},{"$f":"IF('1. Ordersheet'!H679=\"\",\"\",'1. Ordersheet'!H679)","v":""},{"$f":"IF('1. Ordersheet'!I679=\"\",\"\",'1. Ordersheet'!I679)","v":""},{"$f":"IF('1. Ordersheet'!J679=\"\",\"\",'1. Ordersheet'!J679)","v":""},{"$f":"IF('1. Ordersheet'!K679=\"\",\"\",'1. Ordersheet'!K679)","v":""},{"$f":"IF('1. Ordersheet'!L679=\"\",\"\",'1. Ordersheet'!L679)","v":""},{"$f":"IF('1. Ordersheet'!M679=\"\",\"\",'1. Ordersheet'!M679)","v":""},{"$f":"IF('1. Ordersheet'!N679=\"\",\"\",'1. Ordersheet'!N679)","v":""},{"$f":"IF('1. Ordersheet'!O679=\"\",\"\",'1. Ordersheet'!O679)","v":{"$error":"#N/A"}},{"$f":"IF('1. Ordersheet'!P679=\"\",\"\",'1. Ordersheet'!P679)","v":{"$error":"#N/A"}},{"$f":"IF('1. Ordersheet'!Q679=\"\",\"\",'1. Ordersheet'!Q679)","v":""},{"$f":"IF('1. Ordersheet'!R679=\"\",\"\",'1. Ordersheet'!R679)","v":""},{"$f":"IF('1. Ordersheet'!S679=\"\",\"\",'1. Ordersheet'!S679)","v":""},{"$f":"IF('1. Ordersheet'!V679=\"\",\"\",'1. Ordersheet'!V679)","v":""},{"$f":"IF('1. Ordersheet'!W679=\"\",\"\",'1. Ordersheet'!W679)","v":""},{"$f":"IF('1. Ordersheet'!X679=\"\",\"\",'1. Ordersheet'!X679)","v":""},{"$f":"IF('1. Ordersheet'!Y679=\"\",\"\",'1. Ordersheet'!Y679)","v":""},{"$f":"IF('1. Ordersheet'!Z679=\"\",\"\",'1. Ordersheet'!Z679)","v":""},{"$f":"IF('1. Ordersheet'!AA679=\"\",\"\",'1. Ordersheet'!AA679)","v":""},null,{"$f":"IF('1. Ordersheet'!AS679=\"\",\"\",'1. Ordersheet'!AS679)","v":""},{"$f":"IF('1. Ordersheet'!AT679=\"\",\"\",'1. Ordersheet'!AT679)","v":""},null,null,null,null,null,null,null,{"$f":"IF('1. Ordersheet'!AX679=\"\",\"\",'1. Ordersheet'!AX679)","v":""},{"$f":"IF('1. Ordersheet'!AY679=\"\",\"\",'1. Ordersheet'!AY679)","v":""},{"$f":"IF('1. Ordersheet'!AZ679=\"\",\"\",'1. Ordersheet'!AZ679)","v":""},{"$f":"IF('1. Ordersheet'!BA679=\"\",\"\",'1. Ordersheet'!BA679)","v":""},{"$f":"IF('1. Ordersheet'!BC679=\"\",\"\",'1. Ordersheet'!BC679)","v":""},{"$f":"IF('1. Ordersheet'!BD679=\"\",\"\",'1. Ordersheet'!BD679)","v":""},{"$f":"IF('1. Ordersheet'!BE679=\"\",\"\",'1. Ordersheet'!BE679)","v":""},{"$f":"IF('1. Ordersheet'!BF679=\"\",\"\",'1. Ordersheet'!BF679)","v":""},{"$f":"IF('1. Ordersheet'!BG679=\"\",\"\",'1. Ordersheet'!BG679)","v":"ZWO"},{"$f":"IF('1. Ordersheet'!BH679=\"\",\"\",'1. Ordersheet'!BH679)","v":""},{"$f":"IF('1. Ordersheet'!BI679=\"\",\"\",'1. Ordersheet'!BI679)","v":""},{"$f":"IF('1. Ordersheet'!BJ679=\"\",\"\",'1. Ordersheet'!BJ679)","v":""},{"$f":"IF('1. Ordersheet'!BK679=\"\",\"\",'1. Ordersheet'!BK679)","v":""},{"$f":"IF('1. Ordersheet'!BL679=\"\",\"\",'1. Ordersheet'!BL679)","v":""}]
[{"$f":"IF('1. Ordersheet'!F680=\"\",\"\",'1. Ordersheet'!F680)","v":""},{"$f":"IF('1. Ordersheet'!G680=\"\",\"\",'1. Ordersheet'!G680)","v":""},{"$f":"IF('1. Ordersheet'!H680=\"\",\"\",'1. Ordersheet'!H680)","v":""},{"$f":"IF('1. Ordersheet'!I680=\"\",\"\",'1. Ordersheet'!I680)","v":""},{"$f":"IF('1. Ordersheet'!J680=\"\",\"\",'1. Ordersheet'!J680)","v":""},{"$f":"IF('1. Ordersheet'!K680=\"\",\"\",'1. Ordersheet'!K680)","v":""},{"$f":"IF('1. Ordersheet'!L680=\"\",\"\",'1. Ordersheet'!L680)","v":""},{"$f":"IF('1. Ordersheet'!M680=\"\",\"\",'1. Ordersheet'!M680)","v":""},{"$f":"IF('1. Ordersheet'!N680=\"\",\"\",'1. Ordersheet'!N680)","v":""},{"$f":"IF('1. Ordersheet'!O680=\"\",\"\",'1. Ordersheet'!O680)","v":{"$error":"#N/A"}},{"$f":"IF('1. Ordersheet'!P680=\"\",\"\",'1. Ordersheet'!P680)","v":{"$error":"#N/A"}},{"$f":"IF('1. Ordersheet'!Q680=\"\",\"\",'1. Ordersheet'!Q680)","v":""},{"$f":"IF('1. Ordersheet'!R680=\"\",\"\",'1. Ordersheet'!R680)","v":""},{"$f":"IF('1. Ordersheet'!S680=\"\",\"\",'1. Ordersheet'!S680)","v":""},{"$f":"IF('1. Ordersheet'!V680=\"\",\"\",'1. Ordersheet'!V680)","v":""},{"$f":"IF('1. Ordersheet'!W680=\"\",\"\",'1. Ordersheet'!W680)","v":""},{"$f":"IF('1. Ordersheet'!X680=\"\",\"\",'1. Ordersheet'!X680)","v":""},{"$f":"IF('1. Ordersheet'!Y680=\"\",\"\",'1. Ordersheet'!Y680)","v":""},{"$f":"IF('1. Ordersheet'!Z680=\"\",\"\",'1. Ordersheet'!Z680)","v":""},{"$f":"IF('1. Ordersheet'!AA680=\"\",\"\",'1. Ordersheet'!AA680)","v":""},null,{"$f":"IF('1. Ordersheet'!AS680=\"\",\"\",'1. Ordersheet'!AS680)","v":""},{"$f":"IF('1. Ordersheet'!AT680=\"\",\"\",'1. Ordersheet'!AT680)","v":""},null,null,null,null,null,null,null,{"$f":"IF('1. Ordersheet'!AX680=\"\",\"\",'1. Ordersheet'!AX680)","v":""},{"$f":"IF('1. Ordersheet'!AY680=\"\",\"\",'1. Ordersheet'!AY680)","v":""},{"$f":"IF('1. Ordersheet'!AZ680=\"\",\"\",'1. Ordersheet'!AZ680)","v":""},{"$f":"IF('1. Ordersheet'!BA680=\"\",\"\",'1. Ordersheet'!BA680)","v":""},{"$f":"IF('1. Ordersheet'!BC680=\"\",\"\",'1. Ordersheet'!BC680)","v":""},{"$f":"IF('1. Ordersheet'!BD680=\"\",\"\",'1. Ordersheet'!BD680)","v":""},{"$f":"IF('1. Ordersheet'!BE680=\"\",\"\",'1. Ordersheet'!BE680)","v":""},{"$f":"IF('1. Ordersheet'!BF680=\"\",\"\",'1. Ordersheet'!BF680)","v":""},{"$f":"IF('1. Ordersheet'!BG680=\"\",\"\",'1. Ordersheet'!BG680)","v":"ZWO"},{"$f":"IF('1. Ordersheet'!BH680=\"\",\"\",'1. Ordersheet'!BH680)","v":""},{"$f":"IF('1. Ordersheet'!BI680=\"\",\"\",'1. Ordersheet'!BI680)","v":""},{"$f":"IF('1. Ordersheet'!BJ680=\"\",\"\",'1. Ordersheet'!BJ680)","v":""},{"$f":"IF('1. Ordersheet'!BK680=\"\",\"\",'1. Ordersheet'!BK680)","v":""},{"$f":"IF('1. Ordersheet'!BL680=\"\",\"\",'1. Ordersheet'!BL680)","v":""}]
[{"$f":"IF('1. Ordersheet'!F681=\"\",\"\",'1. Ordersheet'!F681)","v":""},{"$f":"IF('1. Ordersheet'!G681=\"\",\"\",'1. Ordersheet'!G681)","v":""},{"$f":"IF('1. Ordersheet'!H681=\"\",\"\",'1. Ordersheet'!H681)","v":""},{"$f":"IF('1. Ordersheet'!I681=\"\",\"\",'1. Ordersheet'!I681)","v":""},{"$f":"IF('1. Ordersheet'!J681=\"\",\"\",'1. Ordersheet'!J681)","v":""},{"$f":"IF('1. Ordersheet'!K681=\"\",\"\",'1. Ordersheet'!K681)","v":""},{"$f":"IF('1. Ordersheet'!L681=\"\",\"\",'1. Ordersheet'!L681)","v":""},{"$f":"IF('1. Ordersheet'!M681=\"\",\"\",'1. Ordersheet'!M681)","v":""},{"$f":"IF('1. Ordersheet'!N681=\"\",\"\",'1. Ordersheet'!N681)","v":""},{"$f":"IF('1. Ordersheet'!O681=\"\",\"\",'1. Ordersheet'!O681)","v":{"$error":"#N/A"}},{"$f":"IF('1. Ordersheet'!P681=\"\",\"\",'1. Ordersheet'!P681)","v":{"$error":"#N/A"}},{"$f":"IF('1. Ordersheet'!Q681=\"\",\"\",'1. Ordersheet'!Q681)","v":""},{"$f":"IF('1. Ordersheet'!R681=\"\",\"\",'1. Ordersheet'!R681)","v":""},{"$f":"IF('1. Ordersheet'!S681=\"\",\"\",'1. Ordersheet'!S681)","v":""},{"$f":"IF('1. Ordersheet'!V681=\"\",\"\",'1. Ordersheet'!V681)","v":""},{"$f":"IF('1. Ordersheet'!W681=\"\",\"\",'1. Ordersheet'!W681)","v":""},{"$f":"IF('1. Ordersheet'!X681=\"\",\"\",'1. Ordersheet'!X681)","v":""},{"$f":"IF('1. Ordersheet'!Y681=\"\",\"\",'1. Ordersheet'!Y681)","v":""},{"$f":"IF('1. Ordersheet'!Z681=\"\",\"\",'1. Ordersheet'!Z681)","v":""},{"$f":"IF('1. Ordersheet'!AA681=\"\",\"\",'1. Ordersheet'!AA681)","v":""},null,{"$f":"IF('1. Ordersheet'!AS681=\"\",\"\",'1. Ordersheet'!AS681)","v":""},{"$f":"IF('1. Ordersheet'!AT681=\"\",\"\",'1. Ordersheet'!AT681)","v":""},null,null,null,null,null,null,null,{"$f":"IF('1. Ordersheet'!AX681=\"\",\"\",'1. Ordersheet'!AX681)","v":""},{"$f":"IF('1. Ordersheet'!AY681=\"\",\"\",'1. Ordersheet'!AY681)","v":""},{"$f":"IF('1. Ordersheet'!AZ681=\"\",\"\",'1. Ordersheet'!AZ681)","v":""},{"$f":"IF('1. Ordersheet'!BA681=\"\",\"\",'1. Ordersheet'!BA681)","v":""},{"$f":"IF('1. Ordersheet'!BC681=\"\",\"\",'1. Ordersheet'!BC681)","v":""},{"$f":"IF('1. Ordersheet'!BD681=\"\",\"\",'1. Ordersheet'!BD681)","v":""},{"$f":"IF('1. Ordersheet'!BE681=\"\",\"\",'1. Ordersheet'!BE681)","v":""},{"$f":"IF('1. Ordersheet'!BF681=\"\",\"\",'1. Ordersheet'!BF681)","v":""},{"$f":"IF('1. Ordersheet'!BG681=\"\",\"\",'1. Ordersheet'!BG681)","v":"ZWO"},{"$f":"IF('1. Ordersheet'!BH681=\"\",\"\",'1. Ordersheet'!BH681)","v":""},{"$f":"IF('1. Ordersheet'!BI681=\"\",\"\",'1. Ordersheet'!BI681)","v":""},{"$f":"IF('1. Ordersheet'!BJ681=\"\",\"\",'1. Ordersheet'!BJ681)","v":""},{"$f":"IF('1. Ordersheet'!BK681=\"\",\"\",'1. Ordersheet'!BK681)","v":""},{"$f":"IF('1. Ordersheet'!BL681=\"\",\"\",'1. Ordersheet'!BL681)","v":""}]
[{"$f":"IF('1. Ordersheet'!F682=\"\",\"\",'1. Ordersheet'!F682)","v":""},{"$f":"IF('1. Ordersheet'!G682=\"\",\"\",'1. Ordersheet'!G682)","v":""},{"$f":"IF('1. Ordersheet'!H682=\"\",\"\",'1. Ordersheet'!H682)","v":""},{"$f":"IF('1. Ordersheet'!I682=\"\",\"\",'1. Ordersheet'!I682)","v":""},{"$f":"IF('1. Ordersheet'!J682=\"\",\"\",'1. Ordersheet'!J682)","v":""},{"$f":"IF('1. Ordersheet'!K682=\"\",\"\",'1. Ordersheet'!K682)","v":""},{"$f":"IF('1. Ordersheet'!L682=\"\",\"\",'1. Ordersheet'!L682)","v":""},{"$f":"IF('1. Ordersheet'!M682=\"\",\"\",'1. Ordersheet'!M682)","v":""},{"$f":"IF('1. Ordersheet'!N682=\"\",\"\",'1. Ordersheet'!N682)","v":""},{"$f":"IF('1. Ordersheet'!O682=\"\",\"\",'1. Ordersheet'!O682)","v":{"$error":"#N/A"}},{"$f":"IF('1. Ordersheet'!P682=\"\",\"\",'1. Ordersheet'!P682)","v":{"$error":"#N/A"}},{"$f":"IF('1. Ordersheet'!Q682=\"\",\"\",'1. Ordersheet'!Q682)","v":""},{"$f":"IF('1. Ordersheet'!R682=\"\",\"\",'1. Ordersheet'!R682)","v":""},{"$f":"IF('1. Ordersheet'!S682=\"\",\"\",'1. Ordersheet'!S682)","v":""},{"$f":"IF('1. Ordersheet'!V682=\"\",\"\",'1. Ordersheet'!V682)","v":""},{"$f":"IF('1. Ordersheet'!W682=\"\",\"\",'1. Ordersheet'!W682)","v":""},{"$f":"IF('1. Ordersheet'!X682=\"\",\"\",'1. Ordersheet'!X682)","v":""},{"$f":"IF('1. Ordersheet'!Y682=\"\",\"\",'1. Ordersheet'!Y682)","v":""},{"$f":"IF('1. Ordersheet'!Z682=\"\",\"\",'1. Ordersheet'!Z682)","v":""},{"$f":"IF('1. Ordersheet'!AA682=\"\",\"\",'1. Ordersheet'!AA682)","v":""},null,{"$f":"IF('1. Ordersheet'!AS682=\"\",\"\",'1. Ordersheet'!AS682)","v":""},{"$f":"IF('1. Ordersheet'!AT682=\"\",\"\",'1. Ordersheet'!AT682)","v":""},null,null,null,null,null,null,null,{"$f":"IF('1. Ordersheet'!AX682=\"\",\"\",'1. Ordersheet'!AX682)","v":""},{"$f":"IF('1. Ordersheet'!AY682=\"\",\"\",'1. Ordersheet'!AY682)","v":""},{"$f":"IF('1. Ordersheet'!AZ682=\"\",\"\",'1. Ordersheet'!AZ682)","v":""},{"$f":"IF('1. Ordersheet'!BA682=\"\",\"\",'1. Ordersheet'!BA682)","v":""},{"$f":"IF('1. Ordersheet'!BC682=\"\",\"\",'1. Ordersheet'!BC682)","v":""},{"$f":"IF('1. Ordersheet'!BD682=\"\",\"\",'1. Ordersheet'!BD682)","v":""},{"$f":"IF('1. Ordersheet'!BE682=\"\",\"\",'1. Ordersheet'!BE682)","v":""},{"$f":"IF('1. Ordersheet'!BF682=\"\",\"\",'1. Ordersheet'!BF682)","v":""},{"$f":"IF('1. Ordersheet'!BG682=\"\",\"\",'1. Ordersheet'!BG682)","v":"ZWO"},{"$f":"IF('1. Ordersheet'!BH682=\"\",\"\",'1. Ordersheet'!BH682)","v":""},{"$f":"IF('1. Ordersheet'!BI682=\"\",\"\",'1. Ordersheet'!BI682)","v":""},{"$f":"IF('1. Ordersheet'!BJ682=\"\",\"\",'1. Ordersheet'!BJ682)","v":""},{"$f":"IF('1. Ordersheet'!BK682=\"\",\"\",'1. Ordersheet'!BK682)","v":""},{"$f":"IF('1. Ordersheet'!BL682=\"\",\"\",'1. Ordersheet'!BL682)","v":""}]
[{"$f":"IF('1. Ordersheet'!F683=\"\",\"\",'1. Ordersheet'!F683)","v":""},{"$f":"IF('1. Ordersheet'!G683=\"\",\"\",'1. Ordersheet'!G683)","v":""},{"$f":"IF('1. Ordersheet'!H683=\"\",\"\",'1. Ordersheet'!H683)","v":""},{"$f":"IF('1. Ordersheet'!I683=\"\",\"\",'1. Ordersheet'!I683)","v":""},{"$f":"IF('1. Ordersheet'!J683=\"\",\"\",'1. Ordersheet'!J683)","v":""},{"$f":"IF('1. Ordersheet'!K683=\"\",\"\",'1. Ordersheet'!K683)","v":""},{"$f":"IF('1. Ordersheet'!L683=\"\",\"\",'1. Ordersheet'!L683)","v":""},{"$f":"IF('1. Ordersheet'!M683=\"\",\"\",'1. Ordersheet'!M683)","v":""},{"$f":"IF('1. Ordersheet'!N683=\"\",\"\",'1. Ordersheet'!N683)","v":""},{"$f":"IF('1. Ordersheet'!O683=\"\",\"\",'1. Ordersheet'!O683)","v":{"$error":"#N/A"}},{"$f":"IF('1. Ordersheet'!P683=\"\",\"\",'1. Ordersheet'!P683)","v":{"$error":"#N/A"}},{"$f":"IF('1. Ordersheet'!Q683=\"\",\"\",'1. Ordersheet'!Q683)","v":""},{"$f":"IF('1. Ordersheet'!R683=\"\",\"\",'1. Ordersheet'!R683)","v":""},{"$f":"IF('1. Ordersheet'!S683=\"\",\"\",'1. Ordersheet'!S683)","v":""},{"$f":"IF('1. Ordersheet'!V683=\"\",\"\",'1. Ordersheet'!V683)","v":""},{"$f":"IF('1. Ordersheet'!W683=\"\",\"\",'1. Ordersheet'!W683)","v":""},{"$f":"IF('1. Ordersheet'!X683=\"\",\"\",'1. Ordersheet'!X683)","v":""},{"$f":"IF('1. Ordersheet'!Y683=\"\",\"\",'1. Ordersheet'!Y683)","v":""},{"$f":"IF('1. Ordersheet'!Z683=\"\",\"\",'1. Ordersheet'!Z683)","v":""},{"$f":"IF('1. Ordersheet'!AA683=\"\",\"\",'1. Ordersheet'!AA683)","v":""},null,{"$f":"IF('1. Ordersheet'!AS683=\"\",\"\",'1. Ordersheet'!AS683)","v":""},{"$f":"IF('1. Ordersheet'!AT683=\"\",\"\",'1. Ordersheet'!AT683)","v":""},null,null,null,null,null,null,null,{"$f":"IF('1. Ordersheet'!AX683=\"\",\"\",'1. Ordersheet'!AX683)","v":""},{"$f":"IF('1. Ordersheet'!AY683=\"\",\"\",'1. Ordersheet'!AY683)","v":""},{"$f":"IF('1. Ordersheet'!AZ683=\"\",\"\",'1. Ordersheet'!AZ683)","v":""},{"$f":"IF('1. Ordersheet'!BA683=\"\",\"\",'1. Ordersheet'!BA683)","v":""},{"$f":"IF('1. Ordersheet'!BC683=\"\",\"\",'1. Ordersheet'!BC683)","v":""},{"$f":"IF('1. Ordersheet'!BD683=\"\",\"\",'1. Ordersheet'!BD683)","v":""},{"$f":"IF('1. Ordersheet'!BE683=\"\",\"\",'1. Ordersheet'!BE683)","v":""},{"$f":"IF('1. Ordersheet'!BF683=\"\",\"\",'1. Ordersheet'!BF683)","v":""},{"$f":"IF('1. Ordersheet'!BG683=\"\",\"\",'1. Ordersheet'!BG683)","v":"ZWO"},{"$f":"IF('1. Ordersheet'!BH683=\"\",\"\",'1. Ordersheet'!BH683)","v":""},{"$f":"IF('1. Ordersheet'!BI683=\"\",\"\",'1. Ordersheet'!BI683)","v":""},{"$f":"IF('1. Ordersheet'!BJ683=\"\",\"\",'1. Ordersheet'!BJ683)","v":""},{"$f":"IF('1. Ordersheet'!BK683=\"\",\"\",'1. Ordersheet'!BK683)","v":""},{"$f":"IF('1. Ordersheet'!BL683=\"\",\"\",'1. Ordersheet'!BL683)","v":""}]
[{"$f":"IF('1. Ordersheet'!F684=\"\",\"\",'1. Ordersheet'!F684)","v":""},{"$f":"IF('1. Ordersheet'!G684=\"\",\"\",'1. Ordersheet'!G684)","v":""},{"$f":"IF('1. Ordersheet'!H684=\"\",\"\",'1. Ordersheet'!H684)","v":""},{"$f":"IF('1. Ordersheet'!I684=\"\",\"\",'1. Ordersheet'!I684)","v":""},{"$f":"IF('1. Ordersheet'!J684=\"\",\"\",'1. Ordersheet'!J684)","v":""},{"$f":"IF('1. Ordersheet'!K684=\"\",\"\",'1. Ordersheet'!K684)","v":""},{"$f":"IF('1. Ordersheet'!L684=\"\",\"\",'1. Ordersheet'!L684)","v":""},{"$f":"IF('1. Ordersheet'!M684=\"\",\"\",'1. Ordersheet'!M684)","v":""},{"$f":"IF('1. Ordersheet'!N684=\"\",\"\",'1. Ordersheet'!N684)","v":""},{"$f":"IF('1. Ordersheet'!O684=\"\",\"\",'1. Ordersheet'!O684)","v":{"$error":"#N/A"}},{"$f":"IF('1. Ordersheet'!P684=\"\",\"\",'1. Ordersheet'!P684)","v":{"$error":"#N/A"}},{"$f":"IF('1. Ordersheet'!Q684=\"\",\"\",'1. Ordersheet'!Q684)","v":""},{"$f":"IF('1. Ordersheet'!R684=\"\",\"\",'1. Ordersheet'!R684)","v":""},{"$f":"IF('1. Ordersheet'!S684=\"\",\"\",'1. Ordersheet'!S684)","v":""},{"$f":"IF('1. Ordersheet'!V684=\"\",\"\",'1. Ordersheet'!V684)","v":""},{"$f":"IF('1. Ordersheet'!W684=\"\",\"\",'1. Ordersheet'!W684)","v":""},{"$f":"IF('1. Ordersheet'!X684=\"\",\"\",'1. Ordersheet'!X684)","v":""},{"$f":"IF('1. Ordersheet'!Y684=\"\",\"\",'1. Ordersheet'!Y684)","v":""},{"$f":"IF('1. Ordersheet'!Z684=\"\",\"\",'1. Ordersheet'!Z684)","v":""},{"$f":"IF('1. Ordersheet'!AA684=\"\",\"\",'1. Ordersheet'!AA684)","v":""},null,{"$f":"IF('1. Ordersheet'!AS684=\"\",\"\",'1. Ordersheet'!AS684)","v":""},{"$f":"IF('1. Ordersheet'!AT684=\"\",\"\",'1. Ordersheet'!AT684)","v":""},null,null,null,null,null,null,null,{"$f":"IF('1. Ordersheet'!AX684=\"\",\"\",'1. Ordersheet'!AX684)","v":""},{"$f":"IF('1. Ordersheet'!AY684=\"\",\"\",'1. Ordersheet'!AY684)","v":""},{"$f":"IF('1. Ordersheet'!AZ684=\"\",\"\",'1. Ordersheet'!AZ684)","v":""},{"$f":"IF('1. Ordersheet'!BA684=\"\",\"\",'1. Ordersheet'!BA684)","v":""},{"$f":"IF('1. Ordersheet'!BC684=\"\",\"\",'1. Ordersheet'!BC684)","v":""},{"$f":"IF('1. Ordersheet'!BD684=\"\",\"\",'1. Ordersheet'!BD684)","v":""},{"$f":"IF('1. Ordersheet'!BE684=\"\",\"\",'1. Ordersheet'!BE684)","v":""},{"$f":"IF('1. Ordersheet'!BF684=\"\",\"\",'1. Ordersheet'!BF684)","v":""},{"$f":"IF('1. Ordersheet'!BG684=\"\",\"\",'1. Ordersheet'!BG684)","v":"ZWO"},{"$f":"IF('1. Ordersheet'!BH684=\"\",\"\",'1. Ordersheet'!BH684)","v":""},{"$f":"IF('1. Ordersheet'!BI684=\"\",\"\",'1. Ordersheet'!BI684)","v":""},{"$f":"IF('1. Ordersheet'!BJ684=\"\",\"\",'1. Ordersheet'!BJ684)","v":""},{"$f":"IF('1. Ordersheet'!BK684=\"\",\"\",'1. Ordersheet'!BK684)","v":""},{"$f":"IF('1. Ordersheet'!BL684=\"\",\"\",'1. Ordersheet'!BL684)","v":""}]
[{"$f":"IF('1. Ordersheet'!F685=\"\",\"\",'1. Ordersheet'!F685)","v":""},{"$f":"IF('1. Ordersheet'!G685=\"\",\"\",'1. Ordersheet'!G685)","v":""},{"$f":"IF('1. Ordersheet'!H685=\"\",\"\",'1. Ordersheet'!H685)","v":""},{"$f":"IF('1. Ordersheet'!I685=\"\",\"\",'1. Ordersheet'!I685)","v":""},{"$f":"IF('1. Ordersheet'!J685=\"\",\"\",'1. Ordersheet'!J685)","v":""},{"$f":"IF('1. Ordersheet'!K685=\"\",\"\",'1. Ordersheet'!K685)","v":""},{"$f":"IF('1. Ordersheet'!L685=\"\",\"\",'1. Ordersheet'!L685)","v":""},{"$f":"IF('1. Ordersheet'!M685=\"\",\"\",'1. Ordersheet'!M685)","v":""},{"$f":"IF('1. Ordersheet'!N685=\"\",\"\",'1. Ordersheet'!N685)","v":""},{"$f":"IF('1. Ordersheet'!O685=\"\",\"\",'1. Ordersheet'!O685)","v":{"$error":"#N/A"}},{"$f":"IF('1. Ordersheet'!P685=\"\",\"\",'1. Ordersheet'!P685)","v":{"$error":"#N/A"}},{"$f":"IF('1. Ordersheet'!Q685=\"\",\"\",'1. Ordersheet'!Q685)","v":""},{"$f":"IF('1. Ordersheet'!R685=\"\",\"\",'1. Ordersheet'!R685)","v":""},{"$f":"IF('1. Ordersheet'!S685=\"\",\"\",'1. Ordersheet'!S685)","v":""},{"$f":"IF('1. Ordersheet'!V685=\"\",\"\",'1. Ordersheet'!V685)","v":""},{"$f":"IF('1. Ordersheet'!W685=\"\",\"\",'1. Ordersheet'!W685)","v":""},{"$f":"IF('1. Ordersheet'!X685=\"\",\"\",'1. Ordersheet'!X685)","v":""},{"$f":"IF('1. Ordersheet'!Y685=\"\",\"\",'1. Ordersheet'!Y685)","v":""},{"$f":"IF('1. Ordersheet'!Z685=\"\",\"\",'1. Ordersheet'!Z685)","v":""},{"$f":"IF('1. Ordersheet'!AA685=\"\",\"\",'1. Ordersheet'!AA685)","v":""},null,{"$f":"IF('1. Ordersheet'!AS685=\"\",\"\",'1. Ordersheet'!AS685)","v":""},{"$f":"IF('1. Ordersheet'!AT685=\"\",\"\",'1. Ordersheet'!AT685)","v":""},null,null,null,null,null,null,null,{"$f":"IF('1. Ordersheet'!AX685=\"\",\"\",'1. Ordersheet'!AX685)","v":""},{"$f":"IF('1. Ordersheet'!AY685=\"\",\"\",'1. Ordersheet'!AY685)","v":""},{"$f":"IF('1. Ordersheet'!AZ685=\"\",\"\",'1. Ordersheet'!AZ685)","v":""},{"$f":"IF('1. Ordersheet'!BA685=\"\",\"\",'1. Ordersheet'!BA685)","v":""},{"$f":"IF('1. Ordersheet'!BC685=\"\",\"\",'1. Ordersheet'!BC685)","v":""},{"$f":"IF('1. Ordersheet'!BD685=\"\",\"\",'1. Ordersheet'!BD685)","v":""},{"$f":"IF('1. Ordersheet'!BE685=\"\",\"\",'1. Ordersheet'!BE685)","v":""},{"$f":"IF('1. Ordersheet'!BF685=\"\",\"\",'1. Ordersheet'!BF685)","v":""},{"$f":"IF('1. Ordersheet'!BG685=\"\",\"\",'1. Ordersheet'!BG685)","v":"ZWO"},{"$f":"IF('1. Ordersheet'!BH685=\"\",\"\",'1. Ordersheet'!BH685)","v":""},{"$f":"IF('1. Ordersheet'!BI685=\"\",\"\",'1. Ordersheet'!BI685)","v":""},{"$f":"IF('1. Ordersheet'!BJ685=\"\",\"\",'1. Ordersheet'!BJ685)","v":""},{"$f":"IF('1. Ordersheet'!BK685=\"\",\"\",'1. Ordersheet'!BK685)","v":""},{"$f":"IF('1. Ordersheet'!BL685=\"\",\"\",'1. Ordersheet'!BL685)","v":""}]
[{"$f":"IF('1. Ordersheet'!F686=\"\",\"\",'1. Ordersheet'!F686)","v":""},{"$f":"IF('1. Ordersheet'!G686=\"\",\"\",'1. Ordersheet'!G686)","v":""},{"$f":"IF('1. Ordersheet'!H686=\"\",\"\",'1. Ordersheet'!H686)","v":""},{"$f":"IF('1. Ordersheet'!I686=\"\",\"\",'1. Ordersheet'!I686)","v":""},{"$f":"IF('1. Ordersheet'!J686=\"\",\"\",'1. Ordersheet'!J686)","v":""},{"$f":"IF('1. Ordersheet'!K686=\"\",\"\",'1. Ordersheet'!K686)","v":""},{"$f":"IF('1. Ordersheet'!L686=\"\",\"\",'1. Ordersheet'!L686)","v":""},{"$f":"IF('1. Ordersheet'!M686=\"\",\"\",'1. Ordersheet'!M686)","v":""},{"$f":"IF('1. Ordersheet'!N686=\"\",\"\",'1. Ordersheet'!N686)","v":""},{"$f":"IF('1. Ordersheet'!O686=\"\",\"\",'1. Ordersheet'!O686)","v":{"$error":"#N/A"}},{"$f":"IF('1. Ordersheet'!P686=\"\",\"\",'1. Ordersheet'!P686)","v":{"$error":"#N/A"}},{"$f":"IF('1. Ordersheet'!Q686=\"\",\"\",'1. Ordersheet'!Q686)","v":""},{"$f":"IF('1. Ordersheet'!R686=\"\",\"\",'1. Ordersheet'!R686)","v":""},{"$f":"IF('1. Ordersheet'!S686=\"\",\"\",'1. Ordersheet'!S686)","v":""},{"$f":"IF('1. Ordersheet'!V686=\"\",\"\",'1. Ordersheet'!V686)","v":""},{"$f":"IF('1. Ordersheet'!W686=\"\",\"\",'1. Ordersheet'!W686)","v":""},{"$f":"IF('1. Ordersheet'!X686=\"\",\"\",'1. Ordersheet'!X686)","v":""},{"$f":"IF('1. Ordersheet'!Y686=\"\",\"\",'1. Ordersheet'!Y686)","v":""},{"$f":"IF('1. Ordersheet'!Z686=\"\",\"\",'1. Ordersheet'!Z686)","v":""},{"$f":"IF('1. Ordersheet'!AA686=\"\",\"\",'1. Ordersheet'!AA686)","v":""},null,{"$f":"IF('1. Ordersheet'!AS686=\"\",\"\",'1. Ordersheet'!AS686)","v":""},{"$f":"IF('1. Ordersheet'!AT686=\"\",\"\",'1. Ordersheet'!AT686)","v":""},null,null,null,null,null,null,null,{"$f":"IF('1. Ordersheet'!AX686=\"\",\"\",'1. Ordersheet'!AX686)","v":""},{"$f":"IF('1. Ordersheet'!AY686=\"\",\"\",'1. Ordersheet'!AY686)","v":""},{"$f":"IF('1. Ordersheet'!AZ686=\"\",\"\",'1. Ordersheet'!AZ686)","v":""},{"$f":"IF('1. Ordersheet'!BA686=\"\",\"\",'1. Ordersheet'!BA686)","v":""},{"$f":"IF('1. Ordersheet'!BC686=\"\",\"\",'1. Ordersheet'!BC686)","v":""},{"$f":"IF('1. Ordersheet'!BD686=\"\",\"\",'1. Ordersheet'!BD686)","v":""},{"$f":"IF('1. Ordersheet'!BE686=\"\",\"\",'1. Ordersheet'!BE686)","v":""},{"$f":"IF('1. Ordersheet'!BF686=\"\",\"\",'1. Ordersheet'!BF686)","v":""},{"$f":"IF('1. Ordersheet'!BG686=\"\",\"\",'1. Ordersheet'!BG686)","v":"ZWO"},{"$f":"IF('1. Ordersheet'!BH686=\"\",\"\",'1. Ordersheet'!BH686)","v":""},{"$f":"IF('1. Ordersheet'!BI686=\"\",\"\",'1. Ordersheet'!BI686)","v":""},{"$f":"IF('1. Ordersheet'!BJ686=\"\",\"\",'1. Ordersheet'!BJ686)","v":""},{"$f":"IF('1. Ordersheet'!BK686=\"\",\"\",'1. Ordersheet'!BK686)","v":""},{"$f":"IF('1. Ordersheet'!BL686=\"\",\"\",'1. Ordersheet'!BL686)","v":""}]
[{"$f":"IF('1. Ordersheet'!F687=\"\",\"\",'1. Ordersheet'!F687)","v":""},{"$f":"IF('1. Ordersheet'!G687=\"\",\"\",'1. Ordersheet'!G687)","v":""},{"$f":"IF('1. Ordersheet'!H687=\"\",\"\",'1. Ordersheet'!H687)","v":""},{"$f":"IF('1. Ordersheet'!I687=\"\",\"\",'1. Ordersheet'!I687)","v":""},{"$f":"IF('1. Ordersheet'!J687=\"\",\"\",'1. Ordersheet'!J687)","v":""},{"$f":"IF('1. Ordersheet'!K687=\"\",\"\",'1. Ordersheet'!K687)","v":""},{"$f":"IF('1. Ordersheet'!L687=\"\",\"\",'1. Ordersheet'!L687)","v":""},{"$f":"IF('1. Ordersheet'!M687=\"\",\"\",'1. Ordersheet'!M687)","v":""},{"$f":"IF('1. Ordersheet'!N687=\"\",\"\",'1. Ordersheet'!N687)","v":""},{"$f":"IF('1. Ordersheet'!O687=\"\",\"\",'1. Ordersheet'!O687)","v":{"$error":"#N/A"}},{"$f":"IF('1. Ordersheet'!P687=\"\",\"\",'1. Ordersheet'!P687)","v":{"$error":"#N/A"}},{"$f":"IF('1. Ordersheet'!Q687=\"\",\"\",'1. Ordersheet'!Q687)","v":""},{"$f":"IF('1. Ordersheet'!R687=\"\",\"\",'1. Ordersheet'!R687)","v":""},{"$f":"IF('1. Ordersheet'!S687=\"\",\"\",'1. Ordersheet'!S687)","v":""},{"$f":"IF('1. Ordersheet'!V687=\"\",\"\",'1. Ordersheet'!V687)","v":""},{"$f":"IF('1. Ordersheet'!W687=\"\",\"\",'1. Ordersheet'!W687)","v":""},{"$f":"IF('1. Ordersheet'!X687=\"\",\"\",'1. Ordersheet'!X687)","v":""},{"$f":"IF('1. Ordersheet'!Y687=\"\",\"\",'1. Ordersheet'!Y687)","v":""},{"$f":"IF('1. Ordersheet'!Z687=\"\",\"\",'1. Ordersheet'!Z687)","v":""},{"$f":"IF('1. Ordersheet'!AA687=\"\",\"\",'1. Ordersheet'!AA687)","v":""},null,{"$f":"IF('1. Ordersheet'!AS687=\"\",\"\",'1. Ordersheet'!AS687)","v":""},{"$f":"IF('1. Ordersheet'!AT687=\"\",\"\",'1. Ordersheet'!AT687)","v":""},null,null,null,null,null,null,null,{"$f":"IF('1. Ordersheet'!AX687=\"\",\"\",'1. Ordersheet'!AX687)","v":""},{"$f":"IF('1. Ordersheet'!AY687=\"\",\"\",'1. Ordersheet'!AY687)","v":""},{"$f":"IF('1. Ordersheet'!AZ687=\"\",\"\",'1. Ordersheet'!AZ687)","v":""},{"$f":"IF('1. Ordersheet'!BA687=\"\",\"\",'1. Ordersheet'!BA687)","v":""},{"$f":"IF('1. Ordersheet'!BC687=\"\",\"\",'1. Ordersheet'!BC687)","v":""},{"$f":"IF('1. Ordersheet'!BD687=\"\",\"\",'1. Ordersheet'!BD687)","v":""},{"$f":"IF('1. Ordersheet'!BE687=\"\",\"\",'1. Ordersheet'!BE687)","v":""},{"$f":"IF('1. Ordersheet'!BF687=\"\",\"\",'1. Ordersheet'!BF687)","v":""},{"$f":"IF('1. Ordersheet'!BG687=\"\",\"\",'1. Ordersheet'!BG687)","v":"ZWO"},{"$f":"IF('1. Ordersheet'!BH687=\"\",\"\",'1. Ordersheet'!BH687)","v":""},{"$f":"IF('1. Ordersheet'!BI687=\"\",\"\",'1. Ordersheet'!BI687)","v":""},{"$f":"IF('1. Ordersheet'!BJ687=\"\",\"\",'1. Ordersheet'!BJ687)","v":""},{"$f":"IF('1. Ordersheet'!BK687=\"\",\"\",'1. Ordersheet'!BK687)","v":""},{"$f":"IF('1. Ordersheet'!BL687=\"\",\"\",'1. Ordersheet'!BL687)","v":""}]
[{"$f":"IF('1. Ordersheet'!F688=\"\",\"\",'1. Ordersheet'!F688)","v":""},{"$f":"IF('1. Ordersheet'!G688=\"\",\"\",'1. Ordersheet'!G688)","v":""},{"$f":"IF('1. Ordersheet'!H688=\"\",\"\",'1. Ordersheet'!H688)","v":""},{"$f":"IF('1. Ordersheet'!I688=\"\",\"\",'1. Ordersheet'!I688)","v":""},{"$f":"IF('1. Ordersheet'!J688=\"\",\"\",'1. Ordersheet'!J688)","v":""},{"$f":"IF('1. Ordersheet'!K688=\"\",\"\",'1. Ordersheet'!K688)","v":""},{"$f":"IF('1. Ordersheet'!L688=\"\",\"\",'1. Ordersheet'!L688)","v":""},{"$f":"IF('1. Ordersheet'!M688=\"\",\"\",'1. Ordersheet'!M688)","v":""},{"$f":"IF('1. Ordersheet'!N688=\"\",\"\",'1. Ordersheet'!N688)","v":""},{"$f":"IF('1. Ordersheet'!O688=\"\",\"\",'1. Ordersheet'!O688)","v":{"$error":"#N/A"}},{"$f":"IF('1. Ordersheet'!P688=\"\",\"\",'1. Ordersheet'!P688)","v":{"$error":"#N/A"}},{"$f":"IF('1. Ordersheet'!Q688=\"\",\"\",'1. Ordersheet'!Q688)","v":""},{"$f":"IF('1. Ordersheet'!R688=\"\",\"\",'1. Ordersheet'!R688)","v":""},{"$f":"IF('1. Ordersheet'!S688=\"\",\"\",'1. Ordersheet'!S688)","v":""},{"$f":"IF('1. Ordersheet'!V688=\"\",\"\",'1. Ordersheet'!V688)","v":""},{"$f":"IF('1. Ordersheet'!W688=\"\",\"\",'1. Ordersheet'!W688)","v":""},{"$f":"IF('1. Ordersheet'!X688=\"\",\"\",'1. Ordersheet'!X688)","v":""},{"$f":"IF('1. Ordersheet'!Y688=\"\",\"\",'1. Ordersheet'!Y688)","v":""},{"$f":"IF('1. Ordersheet'!Z688=\"\",\"\",'1. Ordersheet'!Z688)","v":""},{"$f":"IF('1. Ordersheet'!AA688=\"\",\"\",'1. Ordersheet'!AA688)","v":""},null,{"$f":"IF('1. Ordersheet'!AS688=\"\",\"\",'1. Ordersheet'!AS688)","v":""},{"$f":"IF('1. Ordersheet'!AT688=\"\",\"\",'1. Ordersheet'!AT688)","v":""},null,null,null,null,null,null,null,{"$f":"IF('1. Ordersheet'!AX688=\"\",\"\",'1. Ordersheet'!AX688)","v":""},{"$f":"IF('1. Ordersheet'!AY688=\"\",\"\",'1. Ordersheet'!AY688)","v":""},{"$f":"IF('1. Ordersheet'!AZ688=\"\",\"\",'1. Ordersheet'!AZ688)","v":""},{"$f":"IF('1. Ordersheet'!BA688=\"\",\"\",'1. Ordersheet'!BA688)","v":""},{"$f":"IF('1. Ordersheet'!BC688=\"\",\"\",'1. Ordersheet'!BC688)","v":""},{"$f":"IF('1. Ordersheet'!BD688=\"\",\"\",'1. Ordersheet'!BD688)","v":""},{"$f":"IF('1. Ordersheet'!BE688=\"\",\"\",'1. Ordersheet'!BE688)","v":""},{"$f":"IF('1. Ordersheet'!BF688=\"\",\"\",'1. Ordersheet'!BF688)","v":""},{"$f":"IF('1. Ordersheet'!BG688=\"\",\"\",'1. Ordersheet'!BG688)","v":"ZWO"},{"$f":"IF('1. Ordersheet'!BH688=\"\",\"\",'1. Ordersheet'!BH688)","v":""},{"$f":"IF('1. Ordersheet'!BI688=\"\",\"\",'1. Ordersheet'!BI688)","v":""},{"$f":"IF('1. Ordersheet'!BJ688=\"\",\"\",'1. Ordersheet'!BJ688)","v":""},{"$f":"IF('1. Ordersheet'!BK688=\"\",\"\",'1. Ordersheet'!BK688)","v":""},{"$f":"IF('1. Ordersheet'!BL688=\"\",\"\",'1. Ordersheet'!BL688)","v":""}]
[{"$f":"IF('1. Ordersheet'!F689=\"\",\"\",'1. Ordersheet'!F689)","v":""},{"$f":"IF('1. Ordersheet'!G689=\"\",\"\",'1. Ordersheet'!G689)","v":""},{"$f":"IF('1. Ordersheet'!H689=\"\",\"\",'1. Ordersheet'!H689)","v":""},{"$f":"IF('1. Ordersheet'!I689=\"\",\"\",'1. Ordersheet'!I689)","v":""},{"$f":"IF('1. Ordersheet'!J689=\"\",\"\",'1. Ordersheet'!J689)","v":""},{"$f":"IF('1. Ordersheet'!K689=\"\",\"\",'1. Ordersheet'!K689)","v":""},{"$f":"IF('1. Ordersheet'!L689=\"\",\"\",'1. Ordersheet'!L689)","v":""},{"$f":"IF('1. Ordersheet'!M689=\"\",\"\",'1. Ordersheet'!M689)","v":""},{"$f":"IF('1. Ordersheet'!N689=\"\",\"\",'1. Ordersheet'!N689)","v":""},{"$f":"IF('1. Ordersheet'!O689=\"\",\"\",'1. Ordersheet'!O689)","v":{"$error":"#N/A"}},{"$f":"IF('1. Ordersheet'!P689=\"\",\"\",'1. Ordersheet'!P689)","v":{"$error":"#N/A"}},{"$f":"IF('1. Ordersheet'!Q689=\"\",\"\",'1. Ordersheet'!Q689)","v":""},{"$f":"IF('1. Ordersheet'!R689=\"\",\"\",'1. Ordersheet'!R689)","v":""},{"$f":"IF('1. Ordersheet'!S689=\"\",\"\",'1. Ordersheet'!S689)","v":""},{"$f":"IF('1. Ordersheet'!V689=\"\",\"\",'1. Ordersheet'!V689)","v":""},{"$f":"IF('1. Ordersheet'!W689=\"\",\"\",'1. Ordersheet'!W689)","v":""},{"$f":"IF('1. Ordersheet'!X689=\"\",\"\",'1. Ordersheet'!X689)","v":""},{"$f":"IF('1. Ordersheet'!Y689=\"\",\"\",'1. Ordersheet'!Y689)","v":""},{"$f":"IF('1. Ordersheet'!Z689=\"\",\"\",'1. Ordersheet'!Z689)","v":""},{"$f":"IF('1. Ordersheet'!AA689=\"\",\"\",'1. Ordersheet'!AA689)","v":""},null,{"$f":"IF('1. Ordersheet'!AS689=\"\",\"\",'1. Ordersheet'!AS689)","v":""},{"$f":"IF('1. Ordersheet'!AT689=\"\",\"\",'1. Ordersheet'!AT689)","v":""},null,null,null,null,null,null,null,{"$f":"IF('1. Ordersheet'!AX689=\"\",\"\",'1. Ordersheet'!AX689)","v":""},{"$f":"IF('1. Ordersheet'!AY689=\"\",\"\",'1. Ordersheet'!AY689)","v":""},{"$f":"IF('1. Ordersheet'!AZ689=\"\",\"\",'1. Ordersheet'!AZ689)","v":""},{"$f":"IF('1. Ordersheet'!BA689=\"\",\"\",'1. Ordersheet'!BA689)","v":""},{"$f":"IF('1. Ordersheet'!BC689=\"\",\"\",'1. Ordersheet'!BC689)","v":""},{"$f":"IF('1. Ordersheet'!BD689=\"\",\"\",'1. Ordersheet'!BD689)","v":""},{"$f":"IF('1. Ordersheet'!BE689=\"\",\"\",'1. Ordersheet'!BE689)","v":""},{"$f":"IF('1. Ordersheet'!BF689=\"\",\"\",'1. Ordersheet'!BF689)","v":""},{"$f":"IF('1. Ordersheet'!BG689=\"\",\"\",'1. Ordersheet'!BG689)","v":"ZWO"},{"$f":"IF('1. Ordersheet'!BH689=\"\",\"\",'1. Ordersheet'!BH689)","v":""},{"$f":"IF('1. Ordersheet'!BI689=\"\",\"\",'1. Ordersheet'!BI689)","v":""},{"$f":"IF('1. Ordersheet'!BJ689=\"\",\"\",'1. Ordersheet'!BJ689)","v":""},{"$f":"IF('1. Ordersheet'!BK689=\"\",\"\",'1. Ordersheet'!BK689)","v":""},{"$f":"IF('1. Ordersheet'!BL689=\"\",\"\",'1. Ordersheet'!BL689)","v":""}]
[{"$f":"IF('1. Ordersheet'!F690=\"\",\"\",'1. Ordersheet'!F690)","v":""},{"$f":"IF('1. Ordersheet'!G690=\"\",\"\",'1. Ordersheet'!G690)","v":""},{"$f":"IF('1. Ordersheet'!H690=\"\",\"\",'1. Ordersheet'!H690)","v":""},{"$f":"IF('1. Ordersheet'!I690=\"\",\"\",'1. Ordersheet'!I690)","v":""},{"$f":"IF('1. Ordersheet'!J690=\"\",\"\",'1. Ordersheet'!J690)","v":""},{"$f":"IF('1. Ordersheet'!K690=\"\",\"\",'1. Ordersheet'!K690)","v":""},{"$f":"IF('1. Ordersheet'!L690=\"\",\"\",'1. Ordersheet'!L690)","v":""},{"$f":"IF('1. Ordersheet'!M690=\"\",\"\",'1. Ordersheet'!M690)","v":""},{"$f":"IF('1. Ordersheet'!N690=\"\",\"\",'1. Ordersheet'!N690)","v":""},{"$f":"IF('1. Ordersheet'!O690=\"\",\"\",'1. Ordersheet'!O690)","v":{"$error":"#N/A"}},{"$f":"IF('1. Ordersheet'!P690=\"\",\"\",'1. Ordersheet'!P690)","v":{"$error":"#N/A"}},{"$f":"IF('1. Ordersheet'!Q690=\"\",\"\",'1. Ordersheet'!Q690)","v":""},{"$f":"IF('1. Ordersheet'!R690=\"\",\"\",'1. Ordersheet'!R690)","v":""},{"$f":"IF('1. Ordersheet'!S690=\"\",\"\",'1. Ordersheet'!S690)","v":""},{"$f":"IF('1. Ordersheet'!V690=\"\",\"\",'1. Ordersheet'!V690)","v":""},{"$f":"IF('1. Ordersheet'!W690=\"\",\"\",'1. Ordersheet'!W690)","v":""},{"$f":"IF('1. Ordersheet'!X690=\"\",\"\",'1. Ordersheet'!X690)","v":""},{"$f":"IF('1. Ordersheet'!Y690=\"\",\"\",'1. Ordersheet'!Y690)","v":""},{"$f":"IF('1. Ordersheet'!Z690=\"\",\"\",'1. Ordersheet'!Z690)","v":""},{"$f":"IF('1. Ordersheet'!AA690=\"\",\"\",'1. Ordersheet'!AA690)","v":""},null,{"$f":"IF('1. Ordersheet'!AS690=\"\",\"\",'1. Ordersheet'!AS690)","v":""},{"$f":"IF('1. Ordersheet'!AT690=\"\",\"\",'1. Ordersheet'!AT690)","v":""},null,null,null,null,null,null,null,{"$f":"IF('1. Ordersheet'!AX690=\"\",\"\",'1. Ordersheet'!AX690)","v":""},{"$f":"IF('1. Ordersheet'!AY690=\"\",\"\",'1. Ordersheet'!AY690)","v":""},{"$f":"IF('1. Ordersheet'!AZ690=\"\",\"\",'1. Ordersheet'!AZ690)","v":""},{"$f":"IF('1. Ordersheet'!BA690=\"\",\"\",'1. Ordersheet'!BA690)","v":""},{"$f":"IF('1. Ordersheet'!BC690=\"\",\"\",'1. Ordersheet'!BC690)","v":""},{"$f":"IF('1. Ordersheet'!BD690=\"\",\"\",'1. Ordersheet'!BD690)","v":""},{"$f":"IF('1. Ordersheet'!BE690=\"\",\"\",'1. Ordersheet'!BE690)","v":""},{"$f":"IF('1. Ordersheet'!BF690=\"\",\"\",'1. Ordersheet'!BF690)","v":""},{"$f":"IF('1. Ordersheet'!BG690=\"\",\"\",'1. Ordersheet'!BG690)","v":"ZWO"},{"$f":"IF('1. Ordersheet'!BH690=\"\",\"\",'1. Ordersheet'!BH690)","v":""},{"$f":"IF('1. Ordersheet'!BI690=\"\",\"\",'1. Ordersheet'!BI690)","v":""},{"$f":"IF('1. Ordersheet'!BJ690=\"\",\"\",'1. Ordersheet'!BJ690)","v":""},{"$f":"IF('1. Ordersheet'!BK690=\"\",\"\",'1. Ordersheet'!BK690)","v":""},{"$f":"IF('1. Ordersheet'!BL690=\"\",\"\",'1. Ordersheet'!BL690)","v":""}]
[{"$f":"IF('1. Ordersheet'!F691=\"\",\"\",'1. Ordersheet'!F691)","v":""},{"$f":"IF('1. Ordersheet'!G691=\"\",\"\",'1. Ordersheet'!G691)","v":""},{"$f":"IF('1. Ordersheet'!H691=\"\",\"\",'1. Ordersheet'!H691)","v":""},{"$f":"IF('1. Ordersheet'!I691=\"\",\"\",'1. Ordersheet'!I691)","v":""},{"$f":"IF('1. Ordersheet'!J691=\"\",\"\",'1. Ordersheet'!J691)","v":""},{"$f":"IF('1. Ordersheet'!K691=\"\",\"\",'1. Ordersheet'!K691)","v":""},{"$f":"IF('1. Ordersheet'!L691=\"\",\"\",'1. Ordersheet'!L691)","v":""},{"$f":"IF('1. Ordersheet'!M691=\"\",\"\",'1. Ordersheet'!M691)","v":""},{"$f":"IF('1. Ordersheet'!N691=\"\",\"\",'1. Ordersheet'!N691)","v":""},{"$f":"IF('1. Ordersheet'!O691=\"\",\"\",'1. Ordersheet'!O691)","v":{"$error":"#N/A"}},{"$f":"IF('1. Ordersheet'!P691=\"\",\"\",'1. Ordersheet'!P691)","v":{"$error":"#N/A"}},{"$f":"IF('1. Ordersheet'!Q691=\"\",\"\",'1. Ordersheet'!Q691)","v":""},{"$f":"IF('1. Ordersheet'!R691=\"\",\"\",'1. Ordersheet'!R691)","v":""},{"$f":"IF('1. Ordersheet'!S691=\"\",\"\",'1. Ordersheet'!S691)","v":""},{"$f":"IF('1. Ordersheet'!V691=\"\",\"\",'1. Ordersheet'!V691)","v":""},{"$f":"IF('1. Ordersheet'!W691=\"\",\"\",'1. Ordersheet'!W691)","v":""},{"$f":"IF('1. Ordersheet'!X691=\"\",\"\",'1. Ordersheet'!X691)","v":""},{"$f":"IF('1. Ordersheet'!Y691=\"\",\"\",'1. Ordersheet'!Y691)","v":""},{"$f":"IF('1. Ordersheet'!Z691=\"\",\"\",'1. Ordersheet'!Z691)","v":""},{"$f":"IF('1. Ordersheet'!AA691=\"\",\"\",'1. Ordersheet'!AA691)","v":""},null,{"$f":"IF('1. Ordersheet'!AS691=\"\",\"\",'1. Ordersheet'!AS691)","v":""},{"$f":"IF('1. Ordersheet'!AT691=\"\",\"\",'1. Ordersheet'!AT691)","v":""},null,null,null,null,null,null,null,{"$f":"IF('1. Ordersheet'!AX691=\"\",\"\",'1. Ordersheet'!AX691)","v":""},{"$f":"IF('1. Ordersheet'!AY691=\"\",\"\",'1. Ordersheet'!AY691)","v":""},{"$f":"IF('1. Ordersheet'!AZ691=\"\",\"\",'1. Ordersheet'!AZ691)","v":""},{"$f":"IF('1. Ordersheet'!BA691=\"\",\"\",'1. Ordersheet'!BA691)","v":""},{"$f":"IF('1. Ordersheet'!BC691=\"\",\"\",'1. Ordersheet'!BC691)","v":""},{"$f":"IF('1. Ordersheet'!BD691=\"\",\"\",'1. Ordersheet'!BD691)","v":""},{"$f":"IF('1. Ordersheet'!BE691=\"\",\"\",'1. Ordersheet'!BE691)","v":""},{"$f":"IF('1. Ordersheet'!BF691=\"\",\"\",'1. Ordersheet'!BF691)","v":""},{"$f":"IF('1. Ordersheet'!BG691=\"\",\"\",'1. Ordersheet'!BG691)","v":"ZWO"},{"$f":"IF('1. Ordersheet'!BH691=\"\",\"\",'1. Ordersheet'!BH691)","v":""},{"$f":"IF('1. Ordersheet'!BI691=\"\",\"\",'1. Ordersheet'!BI691)","v":""},{"$f":"IF('1. Ordersheet'!BJ691=\"\",\"\",'1. Ordersheet'!BJ691)","v":""},{"$f":"IF('1. Ordersheet'!BK691=\"\",\"\",'1. Ordersheet'!BK691)","v":""},{"$f":"IF('1. Ordersheet'!BL691=\"\",\"\",'1. Ordersheet'!BL691)","v":""}]
[{"$f":"IF('1. Ordersheet'!F692=\"\",\"\",'1. Ordersheet'!F692)","v":""},{"$f":"IF('1. Ordersheet'!G692=\"\",\"\",'1. Ordersheet'!G692)","v":""},{"$f":"IF('1. Ordersheet'!H692=\"\",\"\",'1. Ordersheet'!H692)","v":""},{"$f":"IF('1. Ordersheet'!I692=\"\",\"\",'1. Ordersheet'!I692)","v":""},{"$f":"IF('1. Ordersheet'!J692=\"\",\"\",'1. Ordersheet'!J692)","v":""},{"$f":"IF('1. Ordersheet'!K692=\"\",\"\",'1. Ordersheet'!K692)","v":""},{"$f":"IF('1. Ordersheet'!L692=\"\",\"\",'1. Ordersheet'!L692)","v":""},{"$f":"IF('1. Ordersheet'!M692=\"\",\"\",'1. Ordersheet'!M692)","v":""},{"$f":"IF('1. Ordersheet'!N692=\"\",\"\",'1. Ordersheet'!N692)","v":""},{"$f":"IF('1. Ordersheet'!O692=\"\",\"\",'1. Ordersheet'!O692)","v":{"$error":"#N/A"}},{"$f":"IF('1. Ordersheet'!P692=\"\",\"\",'1. Ordersheet'!P692)","v":{"$error":"#N/A"}},{"$f":"IF('1. Ordersheet'!Q692=\"\",\"\",'1. Ordersheet'!Q692)","v":""},{"$f":"IF('1. Ordersheet'!R692=\"\",\"\",'1. Ordersheet'!R692)","v":""},{"$f":"IF('1. Ordersheet'!S692=\"\",\"\",'1. Ordersheet'!S692)","v":""},{"$f":"IF('1. Ordersheet'!V692=\"\",\"\",'1. Ordersheet'!V692)","v":""},{"$f":"IF('1. Ordersheet'!W692=\"\",\"\",'1. Ordersheet'!W692)","v":""},{"$f":"IF('1. Ordersheet'!X692=\"\",\"\",'1. Ordersheet'!X692)","v":""},{"$f":"IF('1. Ordersheet'!Y692=\"\",\"\",'1. Ordersheet'!Y692)","v":""},{"$f":"IF('1. Ordersheet'!Z692=\"\",\"\",'1. Ordersheet'!Z692)","v":""},{"$f":"IF('1. Ordersheet'!AA692=\"\",\"\",'1. Ordersheet'!AA692)","v":""},null,{"$f":"IF('1. Ordersheet'!AS692=\"\",\"\",'1. Ordersheet'!AS692)","v":""},{"$f":"IF('1. Ordersheet'!AT692=\"\",\"\",'1. Ordersheet'!AT692)","v":""},null,null,null,null,null,null,null,{"$f":"IF('1. Ordersheet'!AX692=\"\",\"\",'1. Ordersheet'!AX692)","v":""},{"$f":"IF('1. Ordersheet'!AY692=\"\",\"\",'1. Ordersheet'!AY692)","v":""},{"$f":"IF('1. Ordersheet'!AZ692=\"\",\"\",'1. Ordersheet'!AZ692)","v":""},{"$f":"IF('1. Ordersheet'!BA692=\"\",\"\",'1. Ordersheet'!BA692)","v":""},{"$f":"IF('1. Ordersheet'!BC692=\"\",\"\",'1. Ordersheet'!BC692)","v":""},{"$f":"IF('1. Ordersheet'!BD692=\"\",\"\",'1. Ordersheet'!BD692)","v":""},{"$f":"IF('1. Ordersheet'!BE692=\"\",\"\",'1. Ordersheet'!BE692)","v":""},{"$f":"IF('1. Ordersheet'!BF692=\"\",\"\",'1. Ordersheet'!BF692)","v":""},{"$f":"IF('1. Ordersheet'!BG692=\"\",\"\",'1. Ordersheet'!BG692)","v":"ZWO"},{"$f":"IF('1. Ordersheet'!BH692=\"\",\"\",'1. Ordersheet'!BH692)","v":""},{"$f":"IF('1. Ordersheet'!BI692=\"\",\"\",'1. Ordersheet'!BI692)","v":""},{"$f":"IF('1. Ordersheet'!BJ692=\"\",\"\",'1. Ordersheet'!BJ692)","v":""},{"$f":"IF('1. Ordersheet'!BK692=\"\",\"\",'1. Ordersheet'!BK692)","v":""},{"$f":"IF('1. Ordersheet'!BL692=\"\",\"\",'1. Ordersheet'!BL692)","v":""}]
[{"$f":"IF('1. Ordersheet'!F693=\"\",\"\",'1. Ordersheet'!F693)","v":""},{"$f":"IF('1. Ordersheet'!G693=\"\",\"\",'1. Ordersheet'!G693)","v":""},{"$f":"IF('1. Ordersheet'!H693=\"\",\"\",'1. Ordersheet'!H693)","v":""},{"$f":"IF('1. Ordersheet'!I693=\"\",\"\",'1. Ordersheet'!I693)","v":""},{"$f":"IF('1. Ordersheet'!J693=\"\",\"\",'1. Ordersheet'!J693)","v":""},{"$f":"IF('1. Ordersheet'!K693=\"\",\"\",'1. Ordersheet'!K693)","v":""},{"$f":"IF('1. Ordersheet'!L693=\"\",\"\",'1. Ordersheet'!L693)","v":""},{"$f":"IF('1. Ordersheet'!M693=\"\",\"\",'1. Ordersheet'!M693)","v":""},{"$f":"IF('1. Ordersheet'!N693=\"\",\"\",'1. Ordersheet'!N693)","v":""},{"$f":"IF('1. Ordersheet'!O693=\"\",\"\",'1. Ordersheet'!O693)","v":{"$error":"#N/A"}},{"$f":"IF('1. Ordersheet'!P693=\"\",\"\",'1. Ordersheet'!P693)","v":{"$error":"#N/A"}},{"$f":"IF('1. Ordersheet'!Q693=\"\",\"\",'1. Ordersheet'!Q693)","v":""},{"$f":"IF('1. Ordersheet'!R693=\"\",\"\",'1. Ordersheet'!R693)","v":""},{"$f":"IF('1. Ordersheet'!S693=\"\",\"\",'1. Ordersheet'!S693)","v":""},{"$f":"IF('1. Ordersheet'!V693=\"\",\"\",'1. Ordersheet'!V693)","v":""},{"$f":"IF('1. Ordersheet'!W693=\"\",\"\",'1. Ordersheet'!W693)","v":""},{"$f":"IF('1. Ordersheet'!X693=\"\",\"\",'1. Ordersheet'!X693)","v":""},{"$f":"IF('1. Ordersheet'!Y693=\"\",\"\",'1. Ordersheet'!Y693)","v":""},{"$f":"IF('1. Ordersheet'!Z693=\"\",\"\",'1. Ordersheet'!Z693)","v":""},{"$f":"IF('1. Ordersheet'!AA693=\"\",\"\",'1. Ordersheet'!AA693)","v":""},null,{"$f":"IF('1. Ordersheet'!AS693=\"\",\"\",'1. Ordersheet'!AS693)","v":""},{"$f":"IF('1. Ordersheet'!AT693=\"\",\"\",'1. Ordersheet'!AT693)","v":""},null,null,null,null,null,null,null,{"$f":"IF('1. Ordersheet'!AX693=\"\",\"\",'1. Ordersheet'!AX693)","v":""},{"$f":"IF('1. Ordersheet'!AY693=\"\",\"\",'1. Ordersheet'!AY693)","v":""},{"$f":"IF('1. Ordersheet'!AZ693=\"\",\"\",'1. Ordersheet'!AZ693)","v":""},{"$f":"IF('1. Ordersheet'!BA693=\"\",\"\",'1. Ordersheet'!BA693)","v":""},{"$f":"IF('1. Ordersheet'!BC693=\"\",\"\",'1. Ordersheet'!BC693)","v":""},{"$f":"IF('1. Ordersheet'!BD693=\"\",\"\",'1. Ordersheet'!BD693)","v":""},{"$f":"IF('1. Ordersheet'!BE693=\"\",\"\",'1. Ordersheet'!BE693)","v":""},{"$f":"IF('1. Ordersheet'!BF693=\"\",\"\",'1. Ordersheet'!BF693)","v":""},{"$f":"IF('1. Ordersheet'!BG693=\"\",\"\",'1. Ordersheet'!BG693)","v":"ZWO"},{"$f":"IF('1. Ordersheet'!BH693=\"\",\"\",'1. Ordersheet'!BH693)","v":""},{"$f":"IF('1. Ordersheet'!BI693=\"\",\"\",'1. Ordersheet'!BI693)","v":""},{"$f":"IF('1. Ordersheet'!BJ693=\"\",\"\",'1. Ordersheet'!BJ693)","v":""},{"$f":"IF('1. Ordersheet'!BK693=\"\",\"\",'1. Ordersheet'!BK693)","v":""},{"$f":"IF('1. Ordersheet'!BL693=\"\",\"\",'1. Ordersheet'!BL693)","v":""}]
[{"$f":"IF('1. Ordersheet'!F694=\"\",\"\",'1. Ordersheet'!F694)","v":""},{"$f":"IF('1. Ordersheet'!G694=\"\",\"\",'1. Ordersheet'!G694)","v":""},{"$f":"IF('1. Ordersheet'!H694=\"\",\"\",'1. Ordersheet'!H694)","v":""},{"$f":"IF('1. Ordersheet'!I694=\"\",\"\",'1. Ordersheet'!I694)","v":""},{"$f":"IF('1. Ordersheet'!J694=\"\",\"\",'1. Ordersheet'!J694)","v":""},{"$f":"IF('1. Ordersheet'!K694=\"\",\"\",'1. Ordersheet'!K694)","v":""},{"$f":"IF('1. Ordersheet'!L694=\"\",\"\",'1. Ordersheet'!L694)","v":""},{"$f":"IF('1. Ordersheet'!M694=\"\",\"\",'1. Ordersheet'!M694)","v":""},{"$f":"IF('1. Ordersheet'!N694=\"\",\"\",'1. Ordersheet'!N694)","v":""},{"$f":"IF('1. Ordersheet'!O694=\"\",\"\",'1. Ordersheet'!O694)","v":{"$error":"#N/A"}},{"$f":"IF('1. Ordersheet'!P694=\"\",\"\",'1. Ordersheet'!P694)","v":{"$error":"#N/A"}},{"$f":"IF('1. Ordersheet'!Q694=\"\",\"\",'1. Ordersheet'!Q694)","v":""},{"$f":"IF('1. Ordersheet'!R694=\"\",\"\",'1. Ordersheet'!R694)","v":""},{"$f":"IF('1. Ordersheet'!S694=\"\",\"\",'1. Ordersheet'!S694)","v":""},{"$f":"IF('1. Ordersheet'!V694=\"\",\"\",'1. Ordersheet'!V694)","v":""},{"$f":"IF('1. Ordersheet'!W694=\"\",\"\",'1. Ordersheet'!W694)","v":""},{"$f":"IF('1. Ordersheet'!X694=\"\",\"\",'1. Ordersheet'!X694)","v":""},{"$f":"IF('1. Ordersheet'!Y694=\"\",\"\",'1. Ordersheet'!Y694)","v":""},{"$f":"IF('1. Ordersheet'!Z694=\"\",\"\",'1. Ordersheet'!Z694)","v":""},{"$f":"IF('1. Ordersheet'!AA694=\"\",\"\",'1. Ordersheet'!AA694)","v":""},null,{"$f":"IF('1. Ordersheet'!AS694=\"\",\"\",'1. Ordersheet'!AS694)","v":""},{"$f":"IF('1. Ordersheet'!AT694=\"\",\"\",'1. Ordersheet'!AT694)","v":""},null,null,null,null,null,null,null,{"$f":"IF('1. Ordersheet'!AX694=\"\",\"\",'1. Ordersheet'!AX694)","v":""},{"$f":"IF('1. Ordersheet'!AY694=\"\",\"\",'1. Ordersheet'!AY694)","v":""},{"$f":"IF('1. Ordersheet'!AZ694=\"\",\"\",'1. Ordersheet'!AZ694)","v":""},{"$f":"IF('1. Ordersheet'!BA694=\"\",\"\",'1. Ordersheet'!BA694)","v":""},{"$f":"IF('1. Ordersheet'!BC694=\"\",\"\",'1. Ordersheet'!BC694)","v":""},{"$f":"IF('1. Ordersheet'!BD694=\"\",\"\",'1. Ordersheet'!BD694)","v":""},{"$f":"IF('1. Ordersheet'!BE694=\"\",\"\",'1. Ordersheet'!BE694)","v":""},{"$f":"IF('1. Ordersheet'!BF694=\"\",\"\",'1. Ordersheet'!BF694)","v":""},{"$f":"IF('1. Ordersheet'!BG694=\"\",\"\",'1. Ordersheet'!BG694)","v":"ZWO"},{"$f":"IF('1. Ordersheet'!BH694=\"\",\"\",'1. Ordersheet'!BH694)","v":""},{"$f":"IF('1. Ordersheet'!BI694=\"\",\"\",'1. Ordersheet'!BI694)","v":""},{"$f":"IF('1. Ordersheet'!BJ694=\"\",\"\",'1. Ordersheet'!BJ694)","v":""},{"$f":"IF('1. Ordersheet'!BK694=\"\",\"\",'1. Ordersheet'!BK694)","v":""},{"$f":"IF('1. Ordersheet'!BL694=\"\",\"\",'1. Ordersheet'!BL694)","v":""}]
[{"$f":"IF('1. Ordersheet'!F695=\"\",\"\",'1. Ordersheet'!F695)","v":""},{"$f":"IF('1. Ordersheet'!G695=\"\",\"\",'1. Ordersheet'!G695)","v":""},{"$f":"IF('1. Ordersheet'!H695=\"\",\"\",'1. Ordersheet'!H695)","v":""},{"$f":"IF('1. Ordersheet'!I695=\"\",\"\",'1. Ordersheet'!I695)","v":""},{"$f":"IF('1. Ordersheet'!J695=\"\",\"\",'1. Ordersheet'!J695)","v":""},{"$f":"IF('1. Ordersheet'!K695=\"\",\"\",'1. Ordersheet'!K695)","v":""},{"$f":"IF('1. Ordersheet'!L695=\"\",\"\",'1. Ordersheet'!L695)","v":""},{"$f":"IF('1. Ordersheet'!M695=\"\",\"\",'1. Ordersheet'!M695)","v":""},{"$f":"IF('1. Ordersheet'!N695=\"\",\"\",'1. Ordersheet'!N695)","v":""},{"$f":"IF('1. Ordersheet'!O695=\"\",\"\",'1. Ordersheet'!O695)","v":{"$error":"#N/A"}},{"$f":"IF('1. Ordersheet'!P695=\"\",\"\",'1. Ordersheet'!P695)","v":{"$error":"#N/A"}},{"$f":"IF('1. Ordersheet'!Q695=\"\",\"\",'1. Ordersheet'!Q695)","v":""},{"$f":"IF('1. Ordersheet'!R695=\"\",\"\",'1. Ordersheet'!R695)","v":""},{"$f":"IF('1. Ordersheet'!S695=\"\",\"\",'1. Ordersheet'!S695)","v":""},{"$f":"IF('1. Ordersheet'!V695=\"\",\"\",'1. Ordersheet'!V695)","v":""},{"$f":"IF('1. Ordersheet'!W695=\"\",\"\",'1. Ordersheet'!W695)","v":""},{"$f":"IF('1. Ordersheet'!X695=\"\",\"\",'1. Ordersheet'!X695)","v":""},{"$f":"IF('1. Ordersheet'!Y695=\"\",\"\",'1. Ordersheet'!Y695)","v":""},{"$f":"IF('1. Ordersheet'!Z695=\"\",\"\",'1. Ordersheet'!Z695)","v":""},{"$f":"IF('1. Ordersheet'!AA695=\"\",\"\",'1. Ordersheet'!AA695)","v":""},null,{"$f":"IF('1. Ordersheet'!AS695=\"\",\"\",'1. Ordersheet'!AS695)","v":""},{"$f":"IF('1. Ordersheet'!AT695=\"\",\"\",'1. Ordersheet'!AT695)","v":""},null,null,null,null,null,null,null,{"$f":"IF('1. Ordersheet'!AX695=\"\",\"\",'1. Ordersheet'!AX695)","v":""},{"$f":"IF('1. Ordersheet'!AY695=\"\",\"\",'1. Ordersheet'!AY695)","v":""},{"$f":"IF('1. Ordersheet'!AZ695=\"\",\"\",'1. Ordersheet'!AZ695)","v":""},{"$f":"IF('1. Ordersheet'!BA695=\"\",\"\",'1. Ordersheet'!BA695)","v":""},{"$f":"IF('1. Ordersheet'!BC695=\"\",\"\",'1. Ordersheet'!BC695)","v":""},{"$f":"IF('1. Ordersheet'!BD695=\"\",\"\",'1. Ordersheet'!BD695)","v":""},{"$f":"IF('1. Ordersheet'!BE695=\"\",\"\",'1. Ordersheet'!BE695)","v":""},{"$f":"IF('1. Ordersheet'!BF695=\"\",\"\",'1. Ordersheet'!BF695)","v":""},{"$f":"IF('1. Ordersheet'!BG695=\"\",\"\",'1. Ordersheet'!BG695)","v":"ZWO"},{"$f":"IF('1. Ordersheet'!BH695=\"\",\"\",'1. Ordersheet'!BH695)","v":""},{"$f":"IF('1. Ordersheet'!BI695=\"\",\"\",'1. Ordersheet'!BI695)","v":""},{"$f":"IF('1. Ordersheet'!BJ695=\"\",\"\",'1. Ordersheet'!BJ695)","v":""},{"$f":"IF('1. Ordersheet'!BK695=\"\",\"\",'1. Ordersheet'!BK695)","v":""},{"$f":"IF('1. Ordersheet'!BL695=\"\",\"\",'1. Ordersheet'!BL695)","v":""}]
[{"$f":"IF('1. Ordersheet'!F696=\"\",\"\",'1. Ordersheet'!F696)","v":""},{"$f":"IF('1. Ordersheet'!G696=\"\",\"\",'1. Ordersheet'!G696)","v":""},{"$f":"IF('1. Ordersheet'!H696=\"\",\"\",'1. Ordersheet'!H696)","v":""},{"$f":"IF('1. Ordersheet'!I696=\"\",\"\",'1. Ordersheet'!I696)","v":""},{"$f":"IF('1. Ordersheet'!J696=\"\",\"\",'1. Ordersheet'!J696)","v":""},{"$f":"IF('1. Ordersheet'!K696=\"\",\"\",'1. Ordersheet'!K696)","v":""},{"$f":"IF('1. Ordersheet'!L696=\"\",\"\",'1. Ordersheet'!L696)","v":""},{"$f":"IF('1. Ordersheet'!M696=\"\",\"\",'1. Ordersheet'!M696)","v":""},{"$f":"IF('1. Ordersheet'!N696=\"\",\"\",'1. Ordersheet'!N696)","v":""},{"$f":"IF('1. Ordersheet'!O696=\"\",\"\",'1. Ordersheet'!O696)","v":{"$error":"#N/A"}},{"$f":"IF('1. Ordersheet'!P696=\"\",\"\",'1. Ordersheet'!P696)","v":{"$error":"#N/A"}},{"$f":"IF('1. Ordersheet'!Q696=\"\",\"\",'1. Ordersheet'!Q696)","v":""},{"$f":"IF('1. Ordersheet'!R696=\"\",\"\",'1. Ordersheet'!R696)","v":""},{"$f":"IF('1. Ordersheet'!S696=\"\",\"\",'1. Ordersheet'!S696)","v":""},{"$f":"IF('1. Ordersheet'!V696=\"\",\"\",'1. Ordersheet'!V696)","v":""},{"$f":"IF('1. Ordersheet'!W696=\"\",\"\",'1. Ordersheet'!W696)","v":""},{"$f":"IF('1. Ordersheet'!X696=\"\",\"\",'1. Ordersheet'!X696)","v":""},{"$f":"IF('1. Ordersheet'!Y696=\"\",\"\",'1. Ordersheet'!Y696)","v":""},{"$f":"IF('1. Ordersheet'!Z696=\"\",\"\",'1. Ordersheet'!Z696)","v":""},{"$f":"IF('1. Ordersheet'!AA696=\"\",\"\",'1. Ordersheet'!AA696)","v":""},null,{"$f":"IF('1. Ordersheet'!AS696=\"\",\"\",'1. Ordersheet'!AS696)","v":""},{"$f":"IF('1. Ordersheet'!AT696=\"\",\"\",'1. Ordersheet'!AT696)","v":""},null,null,null,null,null,null,null,{"$f":"IF('1. Ordersheet'!AX696=\"\",\"\",'1. Ordersheet'!AX696)","v":""},{"$f":"IF('1. Ordersheet'!AY696=\"\",\"\",'1. Ordersheet'!AY696)","v":""},{"$f":"IF('1. Ordersheet'!AZ696=\"\",\"\",'1. Ordersheet'!AZ696)","v":""},{"$f":"IF('1. Ordersheet'!BA696=\"\",\"\",'1. Ordersheet'!BA696)","v":""},{"$f":"IF('1. Ordersheet'!BC696=\"\",\"\",'1. Ordersheet'!BC696)","v":""},{"$f":"IF('1. Ordersheet'!BD696=\"\",\"\",'1. Ordersheet'!BD696)","v":""},{"$f":"IF('1. Ordersheet'!BE696=\"\",\"\",'1. Ordersheet'!BE696)","v":""},{"$f":"IF('1. Ordersheet'!BF696=\"\",\"\",'1. Ordersheet'!BF696)","v":""},{"$f":"IF('1. Ordersheet'!BG696=\"\",\"\",'1. Ordersheet'!BG696)","v":"ZWO"},{"$f":"IF('1. Ordersheet'!BH696=\"\",\"\",'1. Ordersheet'!BH696)","v":""},{"$f":"IF('1. Ordersheet'!BI696=\"\",\"\",'1. Ordersheet'!BI696)","v":""},{"$f":"IF('1. Ordersheet'!BJ696=\"\",\"\",'1. Ordersheet'!BJ696)","v":""},{"$f":"IF('1. Ordersheet'!BK696=\"\",\"\",'1. Ordersheet'!BK696)","v":""},{"$f":"IF('1. Ordersheet'!BL696=\"\",\"\",'1. Ordersheet'!BL696)","v":""}]
[{"$f":"IF('1. Ordersheet'!F697=\"\",\"\",'1. Ordersheet'!F697)","v":""},{"$f":"IF('1. Ordersheet'!G697=\"\",\"\",'1. Ordersheet'!G697)","v":""},{"$f":"IF('1. Ordersheet'!H697=\"\",\"\",'1. Ordersheet'!H697)","v":""},{"$f":"IF('1. Ordersheet'!I697=\"\",\"\",'1. Ordersheet'!I697)","v":""},{"$f":"IF('1. Ordersheet'!J697=\"\",\"\",'1. Ordersheet'!J697)","v":""},{"$f":"IF('1. Ordersheet'!K697=\"\",\"\",'1. Ordersheet'!K697)","v":""},{"$f":"IF('1. Ordersheet'!L697=\"\",\"\",'1. Ordersheet'!L697)","v":""},{"$f":"IF('1. Ordersheet'!M697=\"\",\"\",'1. Ordersheet'!M697)","v":""},{"$f":"IF('1. Ordersheet'!N697=\"\",\"\",'1. Ordersheet'!N697)","v":""},{"$f":"IF('1. Ordersheet'!O697=\"\",\"\",'1. Ordersheet'!O697)","v":{"$error":"#N/A"}},{"$f":"IF('1. Ordersheet'!P697=\"\",\"\",'1. Ordersheet'!P697)","v":{"$error":"#N/A"}},{"$f":"IF('1. Ordersheet'!Q697=\"\",\"\",'1. Ordersheet'!Q697)","v":""},{"$f":"IF('1. Ordersheet'!R697=\"\",\"\",'1. Ordersheet'!R697)","v":""},{"$f":"IF('1. Ordersheet'!S697=\"\",\"\",'1. Ordersheet'!S697)","v":""},{"$f":"IF('1. Ordersheet'!V697=\"\",\"\",'1. Ordersheet'!V697)","v":""},{"$f":"IF('1. Ordersheet'!W697=\"\",\"\",'1. Ordersheet'!W697)","v":""},{"$f":"IF('1. Ordersheet'!X697=\"\",\"\",'1. Ordersheet'!X697)","v":""},{"$f":"IF('1. Ordersheet'!Y697=\"\",\"\",'1. Ordersheet'!Y697)","v":""},{"$f":"IF('1. Ordersheet'!Z697=\"\",\"\",'1. Ordersheet'!Z697)","v":""},{"$f":"IF('1. Ordersheet'!AA697=\"\",\"\",'1. Ordersheet'!AA697)","v":""},null,{"$f":"IF('1. Ordersheet'!AS697=\"\",\"\",'1. Ordersheet'!AS697)","v":""},{"$f":"IF('1. Ordersheet'!AT697=\"\",\"\",'1. Ordersheet'!AT697)","v":""},null,null,null,null,null,null,null,{"$f":"IF('1. Ordersheet'!AX697=\"\",\"\",'1. Ordersheet'!AX697)","v":""},{"$f":"IF('1. Ordersheet'!AY697=\"\",\"\",'1. Ordersheet'!AY697)","v":""},{"$f":"IF('1. Ordersheet'!AZ697=\"\",\"\",'1. Ordersheet'!AZ697)","v":""},{"$f":"IF('1. Ordersheet'!BA697=\"\",\"\",'1. Ordersheet'!BA697)","v":""},{"$f":"IF('1. Ordersheet'!BC697=\"\",\"\",'1. Ordersheet'!BC697)","v":""},{"$f":"IF('1. Ordersheet'!BD697=\"\",\"\",'1. Ordersheet'!BD697)","v":""},{"$f":"IF('1. Ordersheet'!BE697=\"\",\"\",'1. Ordersheet'!BE697)","v":""},{"$f":"IF('1. Ordersheet'!BF697=\"\",\"\",'1. Ordersheet'!BF697)","v":""},{"$f":"IF('1. Ordersheet'!BG697=\"\",\"\",'1. Ordersheet'!BG697)","v":"ZWO"},{"$f":"IF('1. Ordersheet'!BH697=\"\",\"\",'1. Ordersheet'!BH697)","v":""},{"$f":"IF('1. Ordersheet'!BI697=\"\",\"\",'1. Ordersheet'!BI697)","v":""},{"$f":"IF('1. Ordersheet'!BJ697=\"\",\"\",'1. Ordersheet'!BJ697)","v":""},{"$f":"IF('1. Ordersheet'!BK697=\"\",\"\",'1. Ordersheet'!BK697)","v":""},{"$f":"IF('1. Ordersheet'!BL697=\"\",\"\",'1. Ordersheet'!BL697)","v":""}]
[{"$f":"IF('1. Ordersheet'!F698=\"\",\"\",'1. Ordersheet'!F698)","v":""},{"$f":"IF('1. Ordersheet'!G698=\"\",\"\",'1. Ordersheet'!G698)","v":""},{"$f":"IF('1. Ordersheet'!H698=\"\",\"\",'1. Ordersheet'!H698)","v":""},{"$f":"IF('1. Ordersheet'!I698=\"\",\"\",'1. Ordersheet'!I698)","v":""},{"$f":"IF('1. Ordersheet'!J698=\"\",\"\",'1. Ordersheet'!J698)","v":""},{"$f":"IF('1. Ordersheet'!K698=\"\",\"\",'1. Ordersheet'!K698)","v":""},{"$f":"IF('1. Ordersheet'!L698=\"\",\"\",'1. Ordersheet'!L698)","v":""},{"$f":"IF('1. Ordersheet'!M698=\"\",\"\",'1. Ordersheet'!M698)","v":""},{"$f":"IF('1. Ordersheet'!N698=\"\",\"\",'1. Ordersheet'!N698)","v":""},{"$f":"IF('1. Ordersheet'!O698=\"\",\"\",'1. Ordersheet'!O698)","v":{"$error":"#N/A"}},{"$f":"IF('1. Ordersheet'!P698=\"\",\"\",'1. Ordersheet'!P698)","v":{"$error":"#N/A"}},{"$f":"IF('1. Ordersheet'!Q698=\"\",\"\",'1. Ordersheet'!Q698)","v":""},{"$f":"IF('1. Ordersheet'!R698=\"\",\"\",'1. Ordersheet'!R698)","v":""},{"$f":"IF('1. Ordersheet'!S698=\"\",\"\",'1. Ordersheet'!S698)","v":""},{"$f":"IF('1. Ordersheet'!V698=\"\",\"\",'1. Ordersheet'!V698)","v":""},{"$f":"IF('1. Ordersheet'!W698=\"\",\"\",'1. Ordersheet'!W698)","v":""},{"$f":"IF('1. Ordersheet'!X698=\"\",\"\",'1. Ordersheet'!X698)","v":""},{"$f":"IF('1. Ordersheet'!Y698=\"\",\"\",'1. Ordersheet'!Y698)","v":""},{"$f":"IF('1. Ordersheet'!Z698=\"\",\"\",'1. Ordersheet'!Z698)","v":""},{"$f":"IF('1. Ordersheet'!AA698=\"\",\"\",'1. Ordersheet'!AA698)","v":""},null,{"$f":"IF('1. Ordersheet'!AS698=\"\",\"\",'1. Ordersheet'!AS698)","v":""},{"$f":"IF('1. Ordersheet'!AT698=\"\",\"\",'1. Ordersheet'!AT698)","v":""},null,null,null,null,null,null,null,{"$f":"IF('1. Ordersheet'!AX698=\"\",\"\",'1. Ordersheet'!AX698)","v":""},{"$f":"IF('1. Ordersheet'!AY698=\"\",\"\",'1. Ordersheet'!AY698)","v":""},{"$f":"IF('1. Ordersheet'!AZ698=\"\",\"\",'1. Ordersheet'!AZ698)","v":""},{"$f":"IF('1. Ordersheet'!BA698=\"\",\"\",'1. Ordersheet'!BA698)","v":""},{"$f":"IF('1. Ordersheet'!BC698=\"\",\"\",'1. Ordersheet'!BC698)","v":""},{"$f":"IF('1. Ordersheet'!BD698=\"\",\"\",'1. Ordersheet'!BD698)","v":""},{"$f":"IF('1. Ordersheet'!BE698=\"\",\"\",'1. Ordersheet'!BE698)","v":""},{"$f":"IF('1. Ordersheet'!BF698=\"\",\"\",'1. Ordersheet'!BF698)","v":""},{"$f":"IF('1. Ordersheet'!BG698=\"\",\"\",'1. Ordersheet'!BG698)","v":"ZWO"},{"$f":"IF('1. Ordersheet'!BH698=\"\",\"\",'1. Ordersheet'!BH698)","v":""},{"$f":"IF('1. Ordersheet'!BI698=\"\",\"\",'1. Ordersheet'!BI698)","v":""},{"$f":"IF('1. Ordersheet'!BJ698=\"\",\"\",'1. Ordersheet'!BJ698)","v":""},{"$f":"IF('1. Ordersheet'!BK698=\"\",\"\",'1. Ordersheet'!BK698)","v":""},{"$f":"IF('1. Ordersheet'!BL698=\"\",\"\",'1. Ordersheet'!BL698)","v":""}]
[{"$f":"IF('1. Ordersheet'!F699=\"\",\"\",'1. Ordersheet'!F699)","v":""},{"$f":"IF('1. Ordersheet'!G699=\"\",\"\",'1. Ordersheet'!G699)","v":""},{"$f":"IF('1. Ordersheet'!H699=\"\",\"\",'1. Ordersheet'!H699)","v":""},{"$f":"IF('1. Ordersheet'!I699=\"\",\"\",'1. Ordersheet'!I699)","v":""},{"$f":"IF('1. Ordersheet'!J699=\"\",\"\",'1. Ordersheet'!J699)","v":""},{"$f":"IF('1. Ordersheet'!K699=\"\",\"\",'1. Ordersheet'!K699)","v":""},{"$f":"IF('1. Ordersheet'!L699=\"\",\"\",'1. Ordersheet'!L699)","v":""},{"$f":"IF('1. Ordersheet'!M699=\"\",\"\",'1. Ordersheet'!M699)","v":""},{"$f":"IF('1. Ordersheet'!N699=\"\",\"\",'1. Ordersheet'!N699)","v":""},{"$f":"IF('1. Ordersheet'!O699=\"\",\"\",'1. Ordersheet'!O699)","v":{"$error":"#N/A"}},{"$f":"IF('1. Ordersheet'!P699=\"\",\"\",'1. Ordersheet'!P699)","v":{"$error":"#N/A"}},{"$f":"IF('1. Ordersheet'!Q699=\"\",\"\",'1. Ordersheet'!Q699)","v":""},{"$f":"IF('1. Ordersheet'!R699=\"\",\"\",'1. Ordersheet'!R699)","v":""},{"$f":"IF('1. Ordersheet'!S699=\"\",\"\",'1. Ordersheet'!S699)","v":""},{"$f":"IF('1. Ordersheet'!V699=\"\",\"\",'1. Ordersheet'!V699)","v":""},{"$f":"IF('1. Ordersheet'!W699=\"\",\"\",'1. Ordersheet'!W699)","v":""},{"$f":"IF('1. Ordersheet'!X699=\"\",\"\",'1. Ordersheet'!X699)","v":""},{"$f":"IF('1. Ordersheet'!Y699=\"\",\"\",'1. Ordersheet'!Y699)","v":""},{"$f":"IF('1. Ordersheet'!Z699=\"\",\"\",'1. Ordersheet'!Z699)","v":""},{"$f":"IF('1. Ordersheet'!AA699=\"\",\"\",'1. Ordersheet'!AA699)","v":""},null,{"$f":"IF('1. Ordersheet'!AS699=\"\",\"\",'1. Ordersheet'!AS699)","v":""},{"$f":"IF('1. Ordersheet'!AT699=\"\",\"\",'1. Ordersheet'!AT699)","v":""},null,null,null,null,null,null,null,{"$f":"IF('1. Ordersheet'!AX699=\"\",\"\",'1. Ordersheet'!AX699)","v":""},{"$f":"IF('1. Ordersheet'!AY699=\"\",\"\",'1. Ordersheet'!AY699)","v":""},{"$f":"IF('1. Ordersheet'!AZ699=\"\",\"\",'1. Ordersheet'!AZ699)","v":""},{"$f":"IF('1. Ordersheet'!BA699=\"\",\"\",'1. Ordersheet'!BA699)","v":""},{"$f":"IF('1. Ordersheet'!BC699=\"\",\"\",'1. Ordersheet'!BC699)","v":""},{"$f":"IF('1. Ordersheet'!BD699=\"\",\"\",'1. Ordersheet'!BD699)","v":""},{"$f":"IF('1. Ordersheet'!BE699=\"\",\"\",'1. Ordersheet'!BE699)","v":""},{"$f":"IF('1. Ordersheet'!BF699=\"\",\"\",'1. Ordersheet'!BF699)","v":""},{"$f":"IF('1. Ordersheet'!BG699=\"\",\"\",'1. Ordersheet'!BG699)","v":"ZWO"},{"$f":"IF('1. Ordersheet'!BH699=\"\",\"\",'1. Ordersheet'!BH699)","v":""},{"$f":"IF('1. Ordersheet'!BI699=\"\",\"\",'1. Ordersheet'!BI699)","v":""},{"$f":"IF('1. Ordersheet'!BJ699=\"\",\"\",'1. Ordersheet'!BJ699)","v":""},{"$f":"IF('1. Ordersheet'!BK699=\"\",\"\",'1. Ordersheet'!BK699)","v":""},{"$f":"IF('1. Ordersheet'!BL699=\"\",\"\",'1. Ordersheet'!BL699)","v":""}]
[{"$f":"IF('1. Ordersheet'!F700=\"\",\"\",'1. Ordersheet'!F700)","v":""},{"$f":"IF('1. Ordersheet'!G700=\"\",\"\",'1. Ordersheet'!G700)","v":""},{"$f":"IF('1. Ordersheet'!H700=\"\",\"\",'1. Ordersheet'!H700)","v":""},{"$f":"IF('1. Ordersheet'!I700=\"\",\"\",'1. Ordersheet'!I700)","v":""},{"$f":"IF('1. Ordersheet'!J700=\"\",\"\",'1. Ordersheet'!J700)","v":""},{"$f":"IF('1. Ordersheet'!K700=\"\",\"\",'1. Ordersheet'!K700)","v":""},{"$f":"IF('1. Ordersheet'!L700=\"\",\"\",'1. Ordersheet'!L700)","v":""},{"$f":"IF('1. Ordersheet'!M700=\"\",\"\",'1. Ordersheet'!M700)","v":""},{"$f":"IF('1. Ordersheet'!N700=\"\",\"\",'1. Ordersheet'!N700)","v":""},{"$f":"IF('1. Ordersheet'!O700=\"\",\"\",'1. Ordersheet'!O700)","v":{"$error":"#N/A"}},{"$f":"IF('1. Ordersheet'!P700=\"\",\"\",'1. Ordersheet'!P700)","v":{"$error":"#N/A"}},{"$f":"IF('1. Ordersheet'!Q700=\"\",\"\",'1. Ordersheet'!Q700)","v":""},{"$f":"IF('1. Ordersheet'!R700=\"\",\"\",'1. Ordersheet'!R700)","v":""},{"$f":"IF('1. Ordersheet'!S700=\"\",\"\",'1. Ordersheet'!S700)","v":""},{"$f":"IF('1. Ordersheet'!V700=\"\",\"\",'1. Ordersheet'!V700)","v":""},{"$f":"IF('1. Ordersheet'!W700=\"\",\"\",'1. Ordersheet'!W700)","v":""},{"$f":"IF('1. Ordersheet'!X700=\"\",\"\",'1. Ordersheet'!X700)","v":""},{"$f":"IF('1. Ordersheet'!Y700=\"\",\"\",'1. Ordersheet'!Y700)","v":""},{"$f":"IF('1. Ordersheet'!Z700=\"\",\"\",'1. Ordersheet'!Z700)","v":""},{"$f":"IF('1. Ordersheet'!AA700=\"\",\"\",'1. Ordersheet'!AA700)","v":""},null,{"$f":"IF('1. Ordersheet'!AS700=\"\",\"\",'1. Ordersheet'!AS700)","v":""},{"$f":"IF('1. Ordersheet'!AT700=\"\",\"\",'1. Ordersheet'!AT700)","v":""},null,null,null,null,null,null,null,{"$f":"IF('1. Ordersheet'!AX700=\"\",\"\",'1. Ordersheet'!AX700)","v":""},{"$f":"IF('1. Ordersheet'!AY700=\"\",\"\",'1. Ordersheet'!AY700)","v":""},{"$f":"IF('1. Ordersheet'!AZ700=\"\",\"\",'1. Ordersheet'!AZ700)","v":""},{"$f":"IF('1. Ordersheet'!BA700=\"\",\"\",'1. Ordersheet'!BA700)","v":""},{"$f":"IF('1. Ordersheet'!BC700=\"\",\"\",'1. Ordersheet'!BC700)","v":""},{"$f":"IF('1. Ordersheet'!BD700=\"\",\"\",'1. Ordersheet'!BD700)","v":""},{"$f":"IF('1. Ordersheet'!BE700=\"\",\"\",'1. Ordersheet'!BE700)","v":""},{"$f":"IF('1. Ordersheet'!BF700=\"\",\"\",'1. Ordersheet'!BF700)","v":""},{"$f":"IF('1. Ordersheet'!BG700=\"\",\"\",'1. Ordersheet'!BG700)","v":"ZWO"},{"$f":"IF('1. Ordersheet'!BH700=\"\",\"\",'1. Ordersheet'!BH700)","v":""},{"$f":"IF('1. Ordersheet'!BI700=\"\",\"\",'1. Ordersheet'!BI700)","v":""},{"$f":"IF('1. Ordersheet'!BJ700=\"\",\"\",'1. Ordersheet'!BJ700)","v":""},{"$f":"IF('1. Ordersheet'!BK700=\"\",\"\",'1. Ordersheet'!BK700)","v":""},{"$f":"IF('1. Ordersheet'!BL700=\"\",\"\",'1. Ordersheet'!BL700)","v":""}]
[{"$f":"IF('1. Ordersheet'!F701=\"\",\"\",'1. Ordersheet'!F701)","v":""},{"$f":"IF('1. Ordersheet'!G701=\"\",\"\",'1. Ordersheet'!G701)","v":""},{"$f":"IF('1. Ordersheet'!H701=\"\",\"\",'1. Ordersheet'!H701)","v":""},{"$f":"IF('1. Ordersheet'!I701=\"\",\"\",'1. Ordersheet'!I701)","v":""},{"$f":"IF('1. Ordersheet'!J701=\"\",\"\",'1. Ordersheet'!J701)","v":""},{"$f":"IF('1. Ordersheet'!K701=\"\",\"\",'1. Ordersheet'!K701)","v":""},{"$f":"IF('1. Ordersheet'!L701=\"\",\"\",'1. Ordersheet'!L701)","v":""},{"$f":"IF('1. Ordersheet'!M701=\"\",\"\",'1. Ordersheet'!M701)","v":""},{"$f":"IF('1. Ordersheet'!N701=\"\",\"\",'1. Ordersheet'!N701)","v":""},{"$f":"IF('1. Ordersheet'!O701=\"\",\"\",'1. Ordersheet'!O701)","v":{"$error":"#N/A"}},{"$f":"IF('1. Ordersheet'!P701=\"\",\"\",'1. Ordersheet'!P701)","v":{"$error":"#N/A"}},{"$f":"IF('1. Ordersheet'!Q701=\"\",\"\",'1. Ordersheet'!Q701)","v":""},{"$f":"IF('1. Ordersheet'!R701=\"\",\"\",'1. Ordersheet'!R701)","v":""},{"$f":"IF('1. Ordersheet'!S701=\"\",\"\",'1. Ordersheet'!S701)","v":""},{"$f":"IF('1. Ordersheet'!V701=\"\",\"\",'1. Ordersheet'!V701)","v":""},{"$f":"IF('1. Ordersheet'!W701=\"\",\"\",'1. Ordersheet'!W701)","v":""},{"$f":"IF('1. Ordersheet'!X701=\"\",\"\",'1. Ordersheet'!X701)","v":""},{"$f":"IF('1. Ordersheet'!Y701=\"\",\"\",'1. Ordersheet'!Y701)","v":""},{"$f":"IF('1. Ordersheet'!Z701=\"\",\"\",'1. Ordersheet'!Z701)","v":""},{"$f":"IF('1. Ordersheet'!AA701=\"\",\"\",'1. Ordersheet'!AA701)","v":""},null,{"$f":"IF('1. Ordersheet'!AS701=\"\",\"\",'1. Ordersheet'!AS701)","v":""},{"$f":"IF('1. Ordersheet'!AT701=\"\",\"\",'1. Ordersheet'!AT701)","v":""},null,null,null,null,null,null,null,{"$f":"IF('1. Ordersheet'!AX701=\"\",\"\",'1. Ordersheet'!AX701)","v":""},{"$f":"IF('1. Ordersheet'!AY701=\"\",\"\",'1. Ordersheet'!AY701)","v":""},{"$f":"IF('1. Ordersheet'!AZ701=\"\",\"\",'1. Ordersheet'!AZ701)","v":""},{"$f":"IF('1. Ordersheet'!BA701=\"\",\"\",'1. Ordersheet'!BA701)","v":""},{"$f":"IF('1. Ordersheet'!BC701=\"\",\"\",'1. Ordersheet'!BC701)","v":""},{"$f":"IF('1. Ordersheet'!BD701=\"\",\"\",'1. Ordersheet'!BD701)","v":""},{"$f":"IF('1. Ordersheet'!BE701=\"\",\"\",'1. Ordersheet'!BE701)","v":""},{"$f":"IF('1. Ordersheet'!BF701=\"\",\"\",'1. Ordersheet'!BF701)","v":""},{"$f":"IF('1. Ordersheet'!BG701=\"\",\"\",'1. Ordersheet'!BG701)","v":"ZWO"},{"$f":"IF('1. Ordersheet'!BH701=\"\",\"\",'1. Ordersheet'!BH701)","v":""},{"$f":"IF('1. Ordersheet'!BI701=\"\",\"\",'1. Ordersheet'!BI701)","v":""},{"$f":"IF('1. Ordersheet'!BJ701=\"\",\"\",'1. Ordersheet'!BJ701)","v":""},{"$f":"IF('1. Ordersheet'!BK701=\"\",\"\",'1. Ordersheet'!BK701)","v":""},{"$f":"IF('1. Ordersheet'!BL701=\"\",\"\",'1. Ordersheet'!BL701)","v":""}]
[{"$f":"IF('1. Ordersheet'!F702=\"\",\"\",'1. Ordersheet'!F702)","v":""},{"$f":"IF('1. Ordersheet'!G702=\"\",\"\",'1. Ordersheet'!G702)","v":""},{"$f":"IF('1. Ordersheet'!H702=\"\",\"\",'1. Ordersheet'!H702)","v":""},{"$f":"IF('1. Ordersheet'!I702=\"\",\"\",'1. Ordersheet'!I702)","v":""},{"$f":"IF('1. Ordersheet'!J702=\"\",\"\",'1. Ordersheet'!J702)","v":""},{"$f":"IF('1. Ordersheet'!K702=\"\",\"\",'1. Ordersheet'!K702)","v":""},{"$f":"IF('1. Ordersheet'!L702=\"\",\"\",'1. Ordersheet'!L702)","v":""},{"$f":"IF('1. Ordersheet'!M702=\"\",\"\",'1. Ordersheet'!M702)","v":""},{"$f":"IF('1. Ordersheet'!N702=\"\",\"\",'1. Ordersheet'!N702)","v":""},{"$f":"IF('1. Ordersheet'!O702=\"\",\"\",'1. Ordersheet'!O702)","v":{"$error":"#N/A"}},{"$f":"IF('1. Ordersheet'!P702=\"\",\"\",'1. Ordersheet'!P702)","v":{"$error":"#N/A"}},{"$f":"IF('1. Ordersheet'!Q702=\"\",\"\",'1. Ordersheet'!Q702)","v":""},{"$f":"IF('1. Ordersheet'!R702=\"\",\"\",'1. Ordersheet'!R702)","v":""},{"$f":"IF('1. Ordersheet'!S702=\"\",\"\",'1. Ordersheet'!S702)","v":""},{"$f":"IF('1. Ordersheet'!V702=\"\",\"\",'1. Ordersheet'!V702)","v":""},{"$f":"IF('1. Ordersheet'!W702=\"\",\"\",'1. Ordersheet'!W702)","v":""},{"$f":"IF('1. Ordersheet'!X702=\"\",\"\",'1. Ordersheet'!X702)","v":""},{"$f":"IF('1. Ordersheet'!Y702=\"\",\"\",'1. Ordersheet'!Y702)","v":""},{"$f":"IF('1. Ordersheet'!Z702=\"\",\"\",'1. Ordersheet'!Z702)","v":""},{"$f":"IF('1. Ordersheet'!AA702=\"\",\"\",'1. Ordersheet'!AA702)","v":""},null,{"$f":"IF('1. Ordersheet'!AS702=\"\",\"\",'1. Ordersheet'!AS702)","v":""},{"$f":"IF('1. Ordersheet'!AT702=\"\",\"\",'1. Ordersheet'!AT702)","v":""},null,null,null,null,null,null,null,{"$f":"IF('1. Ordersheet'!AX702=\"\",\"\",'1. Ordersheet'!AX702)","v":""},{"$f":"IF('1. Ordersheet'!AY702=\"\",\"\",'1. Ordersheet'!AY702)","v":""},{"$f":"IF('1. Ordersheet'!AZ702=\"\",\"\",'1. Ordersheet'!AZ702)","v":""},{"$f":"IF('1. Ordersheet'!BA702=\"\",\"\",'1. Ordersheet'!BA702)","v":""},{"$f":"IF('1. Ordersheet'!BC702=\"\",\"\",'1. Ordersheet'!BC702)","v":""},{"$f":"IF('1. Ordersheet'!BD702=\"\",\"\",'1. Ordersheet'!BD702)","v":""},{"$f":"IF('1. Ordersheet'!BE702=\"\",\"\",'1. Ordersheet'!BE702)","v":""},{"$f":"IF('1. Ordersheet'!BF702=\"\",\"\",'1. Ordersheet'!BF702)","v":""},{"$f":"IF('1. Ordersheet'!BG702=\"\",\"\",'1. Ordersheet'!BG702)","v":"ZWO"},{"$f":"IF('1. Ordersheet'!BH702=\"\",\"\",'1. Ordersheet'!BH702)","v":""},{"$f":"IF('1. Ordersheet'!BI702=\"\",\"\",'1. Ordersheet'!BI702)","v":""},{"$f":"IF('1. Ordersheet'!BJ702=\"\",\"\",'1. Ordersheet'!BJ702)","v":""},{"$f":"IF('1. Ordersheet'!BK702=\"\",\"\",'1. Ordersheet'!BK702)","v":""},{"$f":"IF('1. Ordersheet'!BL702=\"\",\"\",'1. Ordersheet'!BL702)","v":""}]
[{"$f":"IF('1. Ordersheet'!F703=\"\",\"\",'1. Ordersheet'!F703)","v":""},{"$f":"IF('1. Ordersheet'!G703=\"\",\"\",'1. Ordersheet'!G703)","v":""},{"$f":"IF('1. Ordersheet'!H703=\"\",\"\",'1. Ordersheet'!H703)","v":""},{"$f":"IF('1. Ordersheet'!I703=\"\",\"\",'1. Ordersheet'!I703)","v":""},{"$f":"IF('1. Ordersheet'!J703=\"\",\"\",'1. Ordersheet'!J703)","v":""},{"$f":"IF('1. Ordersheet'!K703=\"\",\"\",'1. Ordersheet'!K703)","v":""},{"$f":"IF('1. Ordersheet'!L703=\"\",\"\",'1. Ordersheet'!L703)","v":""},{"$f":"IF('1. Ordersheet'!M703=\"\",\"\",'1. Ordersheet'!M703)","v":""},{"$f":"IF('1. Ordersheet'!N703=\"\",\"\",'1. Ordersheet'!N703)","v":""},{"$f":"IF('1. Ordersheet'!O703=\"\",\"\",'1. Ordersheet'!O703)","v":{"$error":"#N/A"}},{"$f":"IF('1. Ordersheet'!P703=\"\",\"\",'1. Ordersheet'!P703)","v":{"$error":"#N/A"}},{"$f":"IF('1. Ordersheet'!Q703=\"\",\"\",'1. Ordersheet'!Q703)","v":""},{"$f":"IF('1. Ordersheet'!R703=\"\",\"\",'1. Ordersheet'!R703)","v":""},{"$f":"IF('1. Ordersheet'!S703=\"\",\"\",'1. Ordersheet'!S703)","v":""},{"$f":"IF('1. Ordersheet'!V703=\"\",\"\",'1. Ordersheet'!V703)","v":""},{"$f":"IF('1. Ordersheet'!W703=\"\",\"\",'1. Ordersheet'!W703)","v":""},{"$f":"IF('1. Ordersheet'!X703=\"\",\"\",'1. Ordersheet'!X703)","v":""},{"$f":"IF('1. Ordersheet'!Y703=\"\",\"\",'1. Ordersheet'!Y703)","v":""},{"$f":"IF('1. Ordersheet'!Z703=\"\",\"\",'1. Ordersheet'!Z703)","v":""},{"$f":"IF('1. Ordersheet'!AA703=\"\",\"\",'1. Ordersheet'!AA703)","v":""},null,{"$f":"IF('1. Ordersheet'!AS703=\"\",\"\",'1. Ordersheet'!AS703)","v":""},{"$f":"IF('1. Ordersheet'!AT703=\"\",\"\",'1. Ordersheet'!AT703)","v":""},null,null,null,null,null,null,null,{"$f":"IF('1. Ordersheet'!AX703=\"\",\"\",'1. Ordersheet'!AX703)","v":""},{"$f":"IF('1. Ordersheet'!AY703=\"\",\"\",'1. Ordersheet'!AY703)","v":""},{"$f":"IF('1. Ordersheet'!AZ703=\"\",\"\",'1. Ordersheet'!AZ703)","v":""},{"$f":"IF('1. Ordersheet'!BA703=\"\",\"\",'1. Ordersheet'!BA703)","v":""},{"$f":"IF('1. Ordersheet'!BC703=\"\",\"\",'1. Ordersheet'!BC703)","v":""},{"$f":"IF('1. Ordersheet'!BD703=\"\",\"\",'1. Ordersheet'!BD703)","v":""},{"$f":"IF('1. Ordersheet'!BE703=\"\",\"\",'1. Ordersheet'!BE703)","v":""},{"$f":"IF('1. Ordersheet'!BF703=\"\",\"\",'1. Ordersheet'!BF703)","v":""},{"$f":"IF('1. Ordersheet'!BG703=\"\",\"\",'1. Ordersheet'!BG703)","v":"ZWO"},{"$f":"IF('1. Ordersheet'!BH703=\"\",\"\",'1. Ordersheet'!BH703)","v":""},{"$f":"IF('1. Ordersheet'!BI703=\"\",\"\",'1. Ordersheet'!BI703)","v":""},{"$f":"IF('1. Ordersheet'!BJ703=\"\",\"\",'1. Ordersheet'!BJ703)","v":""},{"$f":"IF('1. Ordersheet'!BK703=\"\",\"\",'1. Ordersheet'!BK703)","v":""},{"$f":"IF('1. Ordersheet'!BL703=\"\",\"\",'1. Ordersheet'!BL703)","v":""}]
[{"$f":"IF('1. Ordersheet'!F704=\"\",\"\",'1. Ordersheet'!F704)","v":""},{"$f":"IF('1. Ordersheet'!G704=\"\",\"\",'1. Ordersheet'!G704)","v":""},{"$f":"IF('1. Ordersheet'!H704=\"\",\"\",'1. Ordersheet'!H704)","v":""},{"$f":"IF('1. Ordersheet'!I704=\"\",\"\",'1. Ordersheet'!I704)","v":""},{"$f":"IF('1. Ordersheet'!J704=\"\",\"\",'1. Ordersheet'!J704)","v":""},{"$f":"IF('1. Ordersheet'!K704=\"\",\"\",'1. Ordersheet'!K704)","v":""},{"$f":"IF('1. Ordersheet'!L704=\"\",\"\",'1. Ordersheet'!L704)","v":""},{"$f":"IF('1. Ordersheet'!M704=\"\",\"\",'1. Ordersheet'!M704)","v":""},{"$f":"IF('1. Ordersheet'!N704=\"\",\"\",'1. Ordersheet'!N704)","v":""},{"$f":"IF('1. Ordersheet'!O704=\"\",\"\",'1. Ordersheet'!O704)","v":{"$error":"#N/A"}},{"$f":"IF('1. Ordersheet'!P704=\"\",\"\",'1. Ordersheet'!P704)","v":{"$error":"#N/A"}},{"$f":"IF('1. Ordersheet'!Q704=\"\",\"\",'1. Ordersheet'!Q704)","v":""},{"$f":"IF('1. Ordersheet'!R704=\"\",\"\",'1. Ordersheet'!R704)","v":""},{"$f":"IF('1. Ordersheet'!S704=\"\",\"\",'1. Ordersheet'!S704)","v":""},{"$f":"IF('1. Ordersheet'!V704=\"\",\"\",'1. Ordersheet'!V704)","v":""},{"$f":"IF('1. Ordersheet'!W704=\"\",\"\",'1. Ordersheet'!W704)","v":""},{"$f":"IF('1. Ordersheet'!X704=\"\",\"\",'1. Ordersheet'!X704)","v":""},{"$f":"IF('1. Ordersheet'!Y704=\"\",\"\",'1. Ordersheet'!Y704)","v":""},{"$f":"IF('1. Ordersheet'!Z704=\"\",\"\",'1. Ordersheet'!Z704)","v":""},{"$f":"IF('1. Ordersheet'!AA704=\"\",\"\",'1. Ordersheet'!AA704)","v":""},null,{"$f":"IF('1. Ordersheet'!AS704=\"\",\"\",'1. Ordersheet'!AS704)","v":""},{"$f":"IF('1. Ordersheet'!AT704=\"\",\"\",'1. Ordersheet'!AT704)","v":""},null,null,null,null,null,null,null,{"$f":"IF('1. Ordersheet'!AX704=\"\",\"\",'1. Ordersheet'!AX704)","v":""},{"$f":"IF('1. Ordersheet'!AY704=\"\",\"\",'1. Ordersheet'!AY704)","v":""},{"$f":"IF('1. Ordersheet'!AZ704=\"\",\"\",'1. Ordersheet'!AZ704)","v":""},{"$f":"IF('1. Ordersheet'!BA704=\"\",\"\",'1. Ordersheet'!BA704)","v":""},{"$f":"IF('1. Ordersheet'!BC704=\"\",\"\",'1. Ordersheet'!BC704)","v":""},{"$f":"IF('1. Ordersheet'!BD704=\"\",\"\",'1. Ordersheet'!BD704)","v":""},{"$f":"IF('1. Ordersheet'!BE704=\"\",\"\",'1. Ordersheet'!BE704)","v":""},{"$f":"IF('1. Ordersheet'!BF704=\"\",\"\",'1. Ordersheet'!BF704)","v":""},{"$f":"IF('1. Ordersheet'!BG704=\"\",\"\",'1. Ordersheet'!BG704)","v":"ZWO"},{"$f":"IF('1. Ordersheet'!BH704=\"\",\"\",'1. Ordersheet'!BH704)","v":""},{"$f":"IF('1. Ordersheet'!BI704=\"\",\"\",'1. Ordersheet'!BI704)","v":""},{"$f":"IF('1. Ordersheet'!BJ704=\"\",\"\",'1. Ordersheet'!BJ704)","v":""},{"$f":"IF('1. Ordersheet'!BK704=\"\",\"\",'1. Ordersheet'!BK704)","v":""},{"$f":"IF('1. Ordersheet'!BL704=\"\",\"\",'1. Ordersheet'!BL704)","v":""}]
[{"$f":"IF('1. Ordersheet'!F705=\"\",\"\",'1. Ordersheet'!F705)","v":""},{"$f":"IF('1. Ordersheet'!G705=\"\",\"\",'1. Ordersheet'!G705)","v":""},{"$f":"IF('1. Ordersheet'!H705=\"\",\"\",'1. Ordersheet'!H705)","v":""},{"$f":"IF('1. Ordersheet'!I705=\"\",\"\",'1. Ordersheet'!I705)","v":""},{"$f":"IF('1. Ordersheet'!J705=\"\",\"\",'1. Ordersheet'!J705)","v":""},{"$f":"IF('1. Ordersheet'!K705=\"\",\"\",'1. Ordersheet'!K705)","v":""},{"$f":"IF('1. Ordersheet'!L705=\"\",\"\",'1. Ordersheet'!L705)","v":""},{"$f":"IF('1. Ordersheet'!M705=\"\",\"\",'1. Ordersheet'!M705)","v":""},{"$f":"IF('1. Ordersheet'!N705=\"\",\"\",'1. Ordersheet'!N705)","v":""},{"$f":"IF('1. Ordersheet'!O705=\"\",\"\",'1. Ordersheet'!O705)","v":{"$error":"#N/A"}},{"$f":"IF('1. Ordersheet'!P705=\"\",\"\",'1. Ordersheet'!P705)","v":{"$error":"#N/A"}},{"$f":"IF('1. Ordersheet'!Q705=\"\",\"\",'1. Ordersheet'!Q705)","v":""},{"$f":"IF('1. Ordersheet'!R705=\"\",\"\",'1. Ordersheet'!R705)","v":""},{"$f":"IF('1. Ordersheet'!S705=\"\",\"\",'1. Ordersheet'!S705)","v":""},{"$f":"IF('1. Ordersheet'!V705=\"\",\"\",'1. Ordersheet'!V705)","v":""},{"$f":"IF('1. Ordersheet'!W705=\"\",\"\",'1. Ordersheet'!W705)","v":""},{"$f":"IF('1. Ordersheet'!X705=\"\",\"\",'1. Ordersheet'!X705)","v":""},{"$f":"IF('1. Ordersheet'!Y705=\"\",\"\",'1. Ordersheet'!Y705)","v":""},{"$f":"IF('1. Ordersheet'!Z705=\"\",\"\",'1. Ordersheet'!Z705)","v":""},{"$f":"IF('1. Ordersheet'!AA705=\"\",\"\",'1. Ordersheet'!AA705)","v":""},null,{"$f":"IF('1. Ordersheet'!AS705=\"\",\"\",'1. Ordersheet'!AS705)","v":""},{"$f":"IF('1. Ordersheet'!AT705=\"\",\"\",'1. Ordersheet'!AT705)","v":""},null,null,null,null,null,null,null,{"$f":"IF('1. Ordersheet'!AX705=\"\",\"\",'1. Ordersheet'!AX705)","v":""},{"$f":"IF('1. Ordersheet'!AY705=\"\",\"\",'1. Ordersheet'!AY705)","v":""},{"$f":"IF('1. Ordersheet'!AZ705=\"\",\"\",'1. Ordersheet'!AZ705)","v":""},{"$f":"IF('1. Ordersheet'!BA705=\"\",\"\",'1. Ordersheet'!BA705)","v":""},{"$f":"IF('1. Ordersheet'!BC705=\"\",\"\",'1. Ordersheet'!BC705)","v":""},{"$f":"IF('1. Ordersheet'!BD705=\"\",\"\",'1. Ordersheet'!BD705)","v":""},{"$f":"IF('1. Ordersheet'!BE705=\"\",\"\",'1. Ordersheet'!BE705)","v":""},{"$f":"IF('1. Ordersheet'!BF705=\"\",\"\",'1. Ordersheet'!BF705)","v":""},{"$f":"IF('1. Ordersheet'!BG705=\"\",\"\",'1. Ordersheet'!BG705)","v":"ZWO"},{"$f":"IF('1. Ordersheet'!BH705=\"\",\"\",'1. Ordersheet'!BH705)","v":""},{"$f":"IF('1. Ordersheet'!BI705=\"\",\"\",'1. Ordersheet'!BI705)","v":""},{"$f":"IF('1. Ordersheet'!BJ705=\"\",\"\",'1. Ordersheet'!BJ705)","v":""},{"$f":"IF('1. Ordersheet'!BK705=\"\",\"\",'1. Ordersheet'!BK705)","v":""},{"$f":"IF('1. Ordersheet'!BL705=\"\",\"\",'1. Ordersheet'!BL705)","v":""}]
[{"$f":"IF('1. Ordersheet'!F706=\"\",\"\",'1. Ordersheet'!F706)","v":""},{"$f":"IF('1. Ordersheet'!G706=\"\",\"\",'1. Ordersheet'!G706)","v":""},{"$f":"IF('1. Ordersheet'!H706=\"\",\"\",'1. Ordersheet'!H706)","v":""},{"$f":"IF('1. Ordersheet'!I706=\"\",\"\",'1. Ordersheet'!I706)","v":""},{"$f":"IF('1. Ordersheet'!J706=\"\",\"\",'1. Ordersheet'!J706)","v":""},{"$f":"IF('1. Ordersheet'!K706=\"\",\"\",'1. Ordersheet'!K706)","v":""},{"$f":"IF('1. Ordersheet'!L706=\"\",\"\",'1. Ordersheet'!L706)","v":""},{"$f":"IF('1. Ordersheet'!M706=\"\",\"\",'1. Ordersheet'!M706)","v":""},{"$f":"IF('1. Ordersheet'!N706=\"\",\"\",'1. Ordersheet'!N706)","v":""},{"$f":"IF('1. Ordersheet'!O706=\"\",\"\",'1. Ordersheet'!O706)","v":{"$error":"#N/A"}},{"$f":"IF('1. Ordersheet'!P706=\"\",\"\",'1. Ordersheet'!P706)","v":{"$error":"#N/A"}},{"$f":"IF('1. Ordersheet'!Q706=\"\",\"\",'1. Ordersheet'!Q706)","v":""},{"$f":"IF('1. Ordersheet'!R706=\"\",\"\",'1. Ordersheet'!R706)","v":""},{"$f":"IF('1. Ordersheet'!S706=\"\",\"\",'1. Ordersheet'!S706)","v":""},{"$f":"IF('1. Ordersheet'!V706=\"\",\"\",'1. Ordersheet'!V706)","v":""},{"$f":"IF('1. Ordersheet'!W706=\"\",\"\",'1. Ordersheet'!W706)","v":""},{"$f":"IF('1. Ordersheet'!X706=\"\",\"\",'1. Ordersheet'!X706)","v":""},{"$f":"IF('1. Ordersheet'!Y706=\"\",\"\",'1. Ordersheet'!Y706)","v":""},{"$f":"IF('1. Ordersheet'!Z706=\"\",\"\",'1. Ordersheet'!Z706)","v":""},{"$f":"IF('1. Ordersheet'!AA706=\"\",\"\",'1. Ordersheet'!AA706)","v":""},null,{"$f":"IF('1. Ordersheet'!AS706=\"\",\"\",'1. Ordersheet'!AS706)","v":""},{"$f":"IF('1. Ordersheet'!AT706=\"\",\"\",'1. Ordersheet'!AT706)","v":""},null,null,null,null,null,null,null,{"$f":"IF('1. Ordersheet'!AX706=\"\",\"\",'1. Ordersheet'!AX706)","v":""},{"$f":"IF('1. Ordersheet'!AY706=\"\",\"\",'1. Ordersheet'!AY706)","v":""},{"$f":"IF('1. Ordersheet'!AZ706=\"\",\"\",'1. Ordersheet'!AZ706)","v":""},{"$f":"IF('1. Ordersheet'!BA706=\"\",\"\",'1. Ordersheet'!BA706)","v":""},{"$f":"IF('1. Ordersheet'!BC706=\"\",\"\",'1. Ordersheet'!BC706)","v":""},{"$f":"IF('1. Ordersheet'!BD706=\"\",\"\",'1. Ordersheet'!BD706)","v":""},{"$f":"IF('1. Ordersheet'!BE706=\"\",\"\",'1. Ordersheet'!BE706)","v":""},{"$f":"IF('1. Ordersheet'!BF706=\"\",\"\",'1. Ordersheet'!BF706)","v":""},{"$f":"IF('1. Ordersheet'!BG706=\"\",\"\",'1. Ordersheet'!BG706)","v":"ZWO"},{"$f":"IF('1. Ordersheet'!BH706=\"\",\"\",'1. Ordersheet'!BH706)","v":""},{"$f":"IF('1. Ordersheet'!BI706=\"\",\"\",'1. Ordersheet'!BI706)","v":""},{"$f":"IF('1. Ordersheet'!BJ706=\"\",\"\",'1. Ordersheet'!BJ706)","v":""},{"$f":"IF('1. Ordersheet'!BK706=\"\",\"\",'1. Ordersheet'!BK706)","v":""},{"$f":"IF('1. Ordersheet'!BL706=\"\",\"\",'1. Ordersheet'!BL706)","v":""}]
[{"$f":"IF('1. Ordersheet'!F707=\"\",\"\",'1. Ordersheet'!F707)","v":""},{"$f":"IF('1. Ordersheet'!G707=\"\",\"\",'1. Ordersheet'!G707)","v":""},{"$f":"IF('1. Ordersheet'!H707=\"\",\"\",'1. Ordersheet'!H707)","v":""},{"$f":"IF('1. Ordersheet'!I707=\"\",\"\",'1. Ordersheet'!I707)","v":""},{"$f":"IF('1. Ordersheet'!J707=\"\",\"\",'1. Ordersheet'!J707)","v":""},{"$f":"IF('1. Ordersheet'!K707=\"\",\"\",'1. Ordersheet'!K707)","v":""},{"$f":"IF('1. Ordersheet'!L707=\"\",\"\",'1. Ordersheet'!L707)","v":""},{"$f":"IF('1. Ordersheet'!M707=\"\",\"\",'1. Ordersheet'!M707)","v":""},{"$f":"IF('1. Ordersheet'!N707=\"\",\"\",'1. Ordersheet'!N707)","v":""},{"$f":"IF('1. Ordersheet'!O707=\"\",\"\",'1. Ordersheet'!O707)","v":{"$error":"#N/A"}},{"$f":"IF('1. Ordersheet'!P707=\"\",\"\",'1. Ordersheet'!P707)","v":{"$error":"#N/A"}},{"$f":"IF('1. Ordersheet'!Q707=\"\",\"\",'1. Ordersheet'!Q707)","v":""},{"$f":"IF('1. Ordersheet'!R707=\"\",\"\",'1. Ordersheet'!R707)","v":""},{"$f":"IF('1. Ordersheet'!S707=\"\",\"\",'1. Ordersheet'!S707)","v":""},{"$f":"IF('1. Ordersheet'!V707=\"\",\"\",'1. Ordersheet'!V707)","v":""},{"$f":"IF('1. Ordersheet'!W707=\"\",\"\",'1. Ordersheet'!W707)","v":""},{"$f":"IF('1. Ordersheet'!X707=\"\",\"\",'1. Ordersheet'!X707)","v":""},{"$f":"IF('1. Ordersheet'!Y707=\"\",\"\",'1. Ordersheet'!Y707)","v":""},{"$f":"IF('1. Ordersheet'!Z707=\"\",\"\",'1. Ordersheet'!Z707)","v":""},{"$f":"IF('1. Ordersheet'!AA707=\"\",\"\",'1. Ordersheet'!AA707)","v":""},null,{"$f":"IF('1. Ordersheet'!AS707=\"\",\"\",'1. Ordersheet'!AS707)","v":""},{"$f":"IF('1. Ordersheet'!AT707=\"\",\"\",'1. Ordersheet'!AT707)","v":""},null,null,null,null,null,null,null,{"$f":"IF('1. Ordersheet'!AX707=\"\",\"\",'1. Ordersheet'!AX707)","v":""},{"$f":"IF('1. Ordersheet'!AY707=\"\",\"\",'1. Ordersheet'!AY707)","v":""},{"$f":"IF('1. Ordersheet'!AZ707=\"\",\"\",'1. Ordersheet'!AZ707)","v":""},{"$f":"IF('1. Ordersheet'!BA707=\"\",\"\",'1. Ordersheet'!BA707)","v":""},{"$f":"IF('1. Ordersheet'!BC707=\"\",\"\",'1. Ordersheet'!BC707)","v":""},{"$f":"IF('1. Ordersheet'!BD707=\"\",\"\",'1. Ordersheet'!BD707)","v":""},{"$f":"IF('1. Ordersheet'!BE707=\"\",\"\",'1. Ordersheet'!BE707)","v":""},{"$f":"IF('1. Ordersheet'!BF707=\"\",\"\",'1. Ordersheet'!BF707)","v":""},{"$f":"IF('1. Ordersheet'!BG707=\"\",\"\",'1. Ordersheet'!BG707)","v":"ZWO"},{"$f":"IF('1. Ordersheet'!BH707=\"\",\"\",'1. Ordersheet'!BH707)","v":""},{"$f":"IF('1. Ordersheet'!BI707=\"\",\"\",'1. Ordersheet'!BI707)","v":""},{"$f":"IF('1. Ordersheet'!BJ707=\"\",\"\",'1. Ordersheet'!BJ707)","v":""},{"$f":"IF('1. Ordersheet'!BK707=\"\",\"\",'1. Ordersheet'!BK707)","v":""},{"$f":"IF('1. Ordersheet'!BL707=\"\",\"\",'1. Ordersheet'!BL707)","v":""}]
[{"$f":"IF('1. Ordersheet'!F708=\"\",\"\",'1. Ordersheet'!F708)","v":""},{"$f":"IF('1. Ordersheet'!G708=\"\",\"\",'1. Ordersheet'!G708)","v":""},{"$f":"IF('1. Ordersheet'!H708=\"\",\"\",'1. Ordersheet'!H708)","v":""},{"$f":"IF('1. Ordersheet'!I708=\"\",\"\",'1. Ordersheet'!I708)","v":""},{"$f":"IF('1. Ordersheet'!J708=\"\",\"\",'1. Ordersheet'!J708)","v":""},{"$f":"IF('1. Ordersheet'!K708=\"\",\"\",'1. Ordersheet'!K708)","v":""},{"$f":"IF('1. Ordersheet'!L708=\"\",\"\",'1. Ordersheet'!L708)","v":""},{"$f":"IF('1. Ordersheet'!M708=\"\",\"\",'1. Ordersheet'!M708)","v":""},{"$f":"IF('1. Ordersheet'!N708=\"\",\"\",'1. Ordersheet'!N708)","v":""},{"$f":"IF('1. Ordersheet'!O708=\"\",\"\",'1. Ordersheet'!O708)","v":{"$error":"#N/A"}},{"$f":"IF('1. Ordersheet'!P708=\"\",\"\",'1. Ordersheet'!P708)","v":{"$error":"#N/A"}},{"$f":"IF('1. Ordersheet'!Q708=\"\",\"\",'1. Ordersheet'!Q708)","v":""},{"$f":"IF('1. Ordersheet'!R708=\"\",\"\",'1. Ordersheet'!R708)","v":""},{"$f":"IF('1. Ordersheet'!S708=\"\",\"\",'1. Ordersheet'!S708)","v":""},{"$f":"IF('1. Ordersheet'!V708=\"\",\"\",'1. Ordersheet'!V708)","v":""},{"$f":"IF('1. Ordersheet'!W708=\"\",\"\",'1. Ordersheet'!W708)","v":""},{"$f":"IF('1. Ordersheet'!X708=\"\",\"\",'1. Ordersheet'!X708)","v":""},{"$f":"IF('1. Ordersheet'!Y708=\"\",\"\",'1. Ordersheet'!Y708)","v":""},{"$f":"IF('1. Ordersheet'!Z708=\"\",\"\",'1. Ordersheet'!Z708)","v":""},{"$f":"IF('1. Ordersheet'!AA708=\"\",\"\",'1. Ordersheet'!AA708)","v":""},null,{"$f":"IF('1. Ordersheet'!AS708=\"\",\"\",'1. Ordersheet'!AS708)","v":""},{"$f":"IF('1. Ordersheet'!AT708=\"\",\"\",'1. Ordersheet'!AT708)","v":""},null,null,null,null,null,null,null,{"$f":"IF('1. Ordersheet'!AX708=\"\",\"\",'1. Ordersheet'!AX708)","v":""},{"$f":"IF('1. Ordersheet'!AY708=\"\",\"\",'1. Ordersheet'!AY708)","v":""},{"$f":"IF('1. Ordersheet'!AZ708=\"\",\"\",'1. Ordersheet'!AZ708)","v":""},{"$f":"IF('1. Ordersheet'!BA708=\"\",\"\",'1. Ordersheet'!BA708)","v":""},{"$f":"IF('1. Ordersheet'!BC708=\"\",\"\",'1. Ordersheet'!BC708)","v":""},{"$f":"IF('1. Ordersheet'!BD708=\"\",\"\",'1. Ordersheet'!BD708)","v":""},{"$f":"IF('1. Ordersheet'!BE708=\"\",\"\",'1. Ordersheet'!BE708)","v":""},{"$f":"IF('1. Ordersheet'!BF708=\"\",\"\",'1. Ordersheet'!BF708)","v":""},{"$f":"IF('1. Ordersheet'!BG708=\"\",\"\",'1. Ordersheet'!BG708)","v":"ZWO"},{"$f":"IF('1. Ordersheet'!BH708=\"\",\"\",'1. Ordersheet'!BH708)","v":""},{"$f":"IF('1. Ordersheet'!BI708=\"\",\"\",'1. Ordersheet'!BI708)","v":""},{"$f":"IF('1. Ordersheet'!BJ708=\"\",\"\",'1. Ordersheet'!BJ708)","v":""},{"$f":"IF('1. Ordersheet'!BK708=\"\",\"\",'1. Ordersheet'!BK708)","v":""},{"$f":"IF('1. Ordersheet'!BL708=\"\",\"\",'1. Ordersheet'!BL708)","v":""}]
[{"$f":"IF('1. Ordersheet'!F709=\"\",\"\",'1. Ordersheet'!F709)","v":""},{"$f":"IF('1. Ordersheet'!G709=\"\",\"\",'1. Ordersheet'!G709)","v":""},{"$f":"IF('1. Ordersheet'!H709=\"\",\"\",'1. Ordersheet'!H709)","v":""},{"$f":"IF('1. Ordersheet'!I709=\"\",\"\",'1. Ordersheet'!I709)","v":""},{"$f":"IF('1. Ordersheet'!J709=\"\",\"\",'1. Ordersheet'!J709)","v":""},{"$f":"IF('1. Ordersheet'!K709=\"\",\"\",'1. Ordersheet'!K709)","v":""},{"$f":"IF('1. Ordersheet'!L709=\"\",\"\",'1. Ordersheet'!L709)","v":""},{"$f":"IF('1. Ordersheet'!M709=\"\",\"\",'1. Ordersheet'!M709)","v":""},{"$f":"IF('1. Ordersheet'!N709=\"\",\"\",'1. Ordersheet'!N709)","v":""},{"$f":"IF('1. Ordersheet'!O709=\"\",\"\",'1. Ordersheet'!O709)","v":{"$error":"#N/A"}},{"$f":"IF('1. Ordersheet'!P709=\"\",\"\",'1. Ordersheet'!P709)","v":{"$error":"#N/A"}},{"$f":"IF('1. Ordersheet'!Q709=\"\",\"\",'1. Ordersheet'!Q709)","v":""},{"$f":"IF('1. Ordersheet'!R709=\"\",\"\",'1. Ordersheet'!R709)","v":""},{"$f":"IF('1. Ordersheet'!S709=\"\",\"\",'1. Ordersheet'!S709)","v":""},{"$f":"IF('1. Ordersheet'!V709=\"\",\"\",'1. Ordersheet'!V709)","v":""},{"$f":"IF('1. Ordersheet'!W709=\"\",\"\",'1. Ordersheet'!W709)","v":""},{"$f":"IF('1. Ordersheet'!X709=\"\",\"\",'1. Ordersheet'!X709)","v":""},{"$f":"IF('1. Ordersheet'!Y709=\"\",\"\",'1. Ordersheet'!Y709)","v":""},{"$f":"IF('1. Ordersheet'!Z709=\"\",\"\",'1. Ordersheet'!Z709)","v":""},{"$f":"IF('1. Ordersheet'!AA709=\"\",\"\",'1. Ordersheet'!AA709)","v":""},null,{"$f":"IF('1. Ordersheet'!AS709=\"\",\"\",'1. Ordersheet'!AS709)","v":""},{"$f":"IF('1. Ordersheet'!AT709=\"\",\"\",'1. Ordersheet'!AT709)","v":""},null,null,null,null,null,null,null,{"$f":"IF('1. Ordersheet'!AX709=\"\",\"\",'1. Ordersheet'!AX709)","v":""},{"$f":"IF('1. Ordersheet'!AY709=\"\",\"\",'1. Ordersheet'!AY709)","v":""},{"$f":"IF('1. Ordersheet'!AZ709=\"\",\"\",'1. Ordersheet'!AZ709)","v":""},{"$f":"IF('1. Ordersheet'!BA709=\"\",\"\",'1. Ordersheet'!BA709)","v":""},{"$f":"IF('1. Ordersheet'!BC709=\"\",\"\",'1. Ordersheet'!BC709)","v":""},{"$f":"IF('1. Ordersheet'!BD709=\"\",\"\",'1. Ordersheet'!BD709)","v":""},{"$f":"IF('1. Ordersheet'!BE709=\"\",\"\",'1. Ordersheet'!BE709)","v":""},{"$f":"IF('1. Ordersheet'!BF709=\"\",\"\",'1. Ordersheet'!BF709)","v":""},{"$f":"IF('1. Ordersheet'!BG709=\"\",\"\",'1. Ordersheet'!BG709)","v":"ZWO"},{"$f":"IF('1. Ordersheet'!BH709=\"\",\"\",'1. Ordersheet'!BH709)","v":""},{"$f":"IF('1. Ordersheet'!BI709=\"\",\"\",'1. Ordersheet'!BI709)","v":""},{"$f":"IF('1. Ordersheet'!BJ709=\"\",\"\",'1. Ordersheet'!BJ709)","v":""},{"$f":"IF('1. Ordersheet'!BK709=\"\",\"\",'1. Ordersheet'!BK709)","v":""},{"$f":"IF('1. Ordersheet'!BL709=\"\",\"\",'1. Ordersheet'!BL709)","v":""}]
[{"$f":"IF('1. Ordersheet'!F710=\"\",\"\",'1. Ordersheet'!F710)","v":""},{"$f":"IF('1. Ordersheet'!G710=\"\",\"\",'1. Ordersheet'!G710)","v":""},{"$f":"IF('1. Ordersheet'!H710=\"\",\"\",'1. Ordersheet'!H710)","v":""},{"$f":"IF('1. Ordersheet'!I710=\"\",\"\",'1. Ordersheet'!I710)","v":""},{"$f":"IF('1. Ordersheet'!J710=\"\",\"\",'1. Ordersheet'!J710)","v":""},{"$f":"IF('1. Ordersheet'!K710=\"\",\"\",'1. Ordersheet'!K710)","v":""},{"$f":"IF('1. Ordersheet'!L710=\"\",\"\",'1. Ordersheet'!L710)","v":""},{"$f":"IF('1. Ordersheet'!M710=\"\",\"\",'1. Ordersheet'!M710)","v":""},{"$f":"IF('1. Ordersheet'!N710=\"\",\"\",'1. Ordersheet'!N710)","v":""},{"$f":"IF('1. Ordersheet'!O710=\"\",\"\",'1. Ordersheet'!O710)","v":{"$error":"#N/A"}},{"$f":"IF('1. Ordersheet'!P710=\"\",\"\",'1. Ordersheet'!P710)","v":{"$error":"#N/A"}},{"$f":"IF('1. Ordersheet'!Q710=\"\",\"\",'1. Ordersheet'!Q710)","v":""},{"$f":"IF('1. Ordersheet'!R710=\"\",\"\",'1. Ordersheet'!R710)","v":""},{"$f":"IF('1. Ordersheet'!S710=\"\",\"\",'1. Ordersheet'!S710)","v":""},{"$f":"IF('1. Ordersheet'!V710=\"\",\"\",'1. Ordersheet'!V710)","v":""},{"$f":"IF('1. Ordersheet'!W710=\"\",\"\",'1. Ordersheet'!W710)","v":""},{"$f":"IF('1. Ordersheet'!X710=\"\",\"\",'1. Ordersheet'!X710)","v":""},{"$f":"IF('1. Ordersheet'!Y710=\"\",\"\",'1. Ordersheet'!Y710)","v":""},{"$f":"IF('1. Ordersheet'!Z710=\"\",\"\",'1. Ordersheet'!Z710)","v":""},{"$f":"IF('1. Ordersheet'!AA710=\"\",\"\",'1. Ordersheet'!AA710)","v":""},null,{"$f":"IF('1. Ordersheet'!AS710=\"\",\"\",'1. Ordersheet'!AS710)","v":""},{"$f":"IF('1. Ordersheet'!AT710=\"\",\"\",'1. Ordersheet'!AT710)","v":""},null,null,null,null,null,null,null,{"$f":"IF('1. Ordersheet'!AX710=\"\",\"\",'1. Ordersheet'!AX710)","v":""},{"$f":"IF('1. Ordersheet'!AY710=\"\",\"\",'1. Ordersheet'!AY710)","v":""},{"$f":"IF('1. Ordersheet'!AZ710=\"\",\"\",'1. Ordersheet'!AZ710)","v":""},{"$f":"IF('1. Ordersheet'!BA710=\"\",\"\",'1. Ordersheet'!BA710)","v":""},{"$f":"IF('1. Ordersheet'!BC710=\"\",\"\",'1. Ordersheet'!BC710)","v":""},{"$f":"IF('1. Ordersheet'!BD710=\"\",\"\",'1. Ordersheet'!BD710)","v":""},{"$f":"IF('1. Ordersheet'!BE710=\"\",\"\",'1. Ordersheet'!BE710)","v":""},{"$f":"IF('1. Ordersheet'!BF710=\"\",\"\",'1. Ordersheet'!BF710)","v":""},{"$f":"IF('1. Ordersheet'!BG710=\"\",\"\",'1. Ordersheet'!BG710)","v":"ZWO"},{"$f":"IF('1. Ordersheet'!BH710=\"\",\"\",'1. Ordersheet'!BH710)","v":""},{"$f":"IF('1. Ordersheet'!BI710=\"\",\"\",'1. Ordersheet'!BI710)","v":""},{"$f":"IF('1. Ordersheet'!BJ710=\"\",\"\",'1. Ordersheet'!BJ710)","v":""},{"$f":"IF('1. Ordersheet'!BK710=\"\",\"\",'1. Ordersheet'!BK710)","v":""},{"$f":"IF('1. Ordersheet'!BL710=\"\",\"\",'1. Ordersheet'!BL710)","v":""}]
[{"$f":"IF('1. Ordersheet'!F711=\"\",\"\",'1. Ordersheet'!F711)","v":""},{"$f":"IF('1. Ordersheet'!G711=\"\",\"\",'1. Ordersheet'!G711)","v":""},{"$f":"IF('1. Ordersheet'!H711=\"\",\"\",'1. Ordersheet'!H711)","v":""},{"$f":"IF('1. Ordersheet'!I711=\"\",\"\",'1. Ordersheet'!I711)","v":""},{"$f":"IF('1. Ordersheet'!J711=\"\",\"\",'1. Ordersheet'!J711)","v":""},{"$f":"IF('1. Ordersheet'!K711=\"\",\"\",'1. Ordersheet'!K711)","v":""},{"$f":"IF('1. Ordersheet'!L711=\"\",\"\",'1. Ordersheet'!L711)","v":""},{"$f":"IF('1. Ordersheet'!M711=\"\",\"\",'1. Ordersheet'!M711)","v":""},{"$f":"IF('1. Ordersheet'!N711=\"\",\"\",'1. Ordersheet'!N711)","v":""},{"$f":"IF('1. Ordersheet'!O711=\"\",\"\",'1. Ordersheet'!O711)","v":{"$error":"#N/A"}},{"$f":"IF('1. Ordersheet'!P711=\"\",\"\",'1. Ordersheet'!P711)","v":{"$error":"#N/A"}},{"$f":"IF('1. Ordersheet'!Q711=\"\",\"\",'1. Ordersheet'!Q711)","v":""},{"$f":"IF('1. Ordersheet'!R711=\"\",\"\",'1. Ordersheet'!R711)","v":""},{"$f":"IF('1. Ordersheet'!S711=\"\",\"\",'1. Ordersheet'!S711)","v":""},{"$f":"IF('1. Ordersheet'!V711=\"\",\"\",'1. Ordersheet'!V711)","v":""},{"$f":"IF('1. Ordersheet'!W711=\"\",\"\",'1. Ordersheet'!W711)","v":""},{"$f":"IF('1. Ordersheet'!X711=\"\",\"\",'1. Ordersheet'!X711)","v":""},{"$f":"IF('1. Ordersheet'!Y711=\"\",\"\",'1. Ordersheet'!Y711)","v":""},{"$f":"IF('1. Ordersheet'!Z711=\"\",\"\",'1. Ordersheet'!Z711)","v":""},{"$f":"IF('1. Ordersheet'!AA711=\"\",\"\",'1. Ordersheet'!AA711)","v":""},null,{"$f":"IF('1. Ordersheet'!AS711=\"\",\"\",'1. Ordersheet'!AS711)","v":""},{"$f":"IF('1. Ordersheet'!AT711=\"\",\"\",'1. Ordersheet'!AT711)","v":""},null,null,null,null,null,null,null,{"$f":"IF('1. Ordersheet'!AX711=\"\",\"\",'1. Ordersheet'!AX711)","v":""},{"$f":"IF('1. Ordersheet'!AY711=\"\",\"\",'1. Ordersheet'!AY711)","v":""},{"$f":"IF('1. Ordersheet'!AZ711=\"\",\"\",'1. Ordersheet'!AZ711)","v":""},{"$f":"IF('1. Ordersheet'!BA711=\"\",\"\",'1. Ordersheet'!BA711)","v":""},{"$f":"IF('1. Ordersheet'!BC711=\"\",\"\",'1. Ordersheet'!BC711)","v":""},{"$f":"IF('1. Ordersheet'!BD711=\"\",\"\",'1. Ordersheet'!BD711)","v":""},{"$f":"IF('1. Ordersheet'!BE711=\"\",\"\",'1. Ordersheet'!BE711)","v":""},{"$f":"IF('1. Ordersheet'!BF711=\"\",\"\",'1. Ordersheet'!BF711)","v":""},{"$f":"IF('1. Ordersheet'!BG711=\"\",\"\",'1. Ordersheet'!BG711)","v":"ZWO"},{"$f":"IF('1. Ordersheet'!BH711=\"\",\"\",'1. Ordersheet'!BH711)","v":""},{"$f":"IF('1. Ordersheet'!BI711=\"\",\"\",'1. Ordersheet'!BI711)","v":""},{"$f":"IF('1. Ordersheet'!BJ711=\"\",\"\",'1. Ordersheet'!BJ711)","v":""},{"$f":"IF('1. Ordersheet'!BK711=\"\",\"\",'1. Ordersheet'!BK711)","v":""},{"$f":"IF('1. Ordersheet'!BL711=\"\",\"\",'1. Ordersheet'!BL711)","v":""}]
[{"$f":"IF('1. Ordersheet'!F712=\"\",\"\",'1. Ordersheet'!F712)","v":""},{"$f":"IF('1. Ordersheet'!G712=\"\",\"\",'1. Ordersheet'!G712)","v":""},{"$f":"IF('1. Ordersheet'!H712=\"\",\"\",'1. Ordersheet'!H712)","v":""},{"$f":"IF('1. Ordersheet'!I712=\"\",\"\",'1. Ordersheet'!I712)","v":""},{"$f":"IF('1. Ordersheet'!J712=\"\",\"\",'1. Ordersheet'!J712)","v":""},{"$f":"IF('1. Ordersheet'!K712=\"\",\"\",'1. Ordersheet'!K712)","v":""},{"$f":"IF('1. Ordersheet'!L712=\"\",\"\",'1. Ordersheet'!L712)","v":""},{"$f":"IF('1. Ordersheet'!M712=\"\",\"\",'1. Ordersheet'!M712)","v":""},{"$f":"IF('1. Ordersheet'!N712=\"\",\"\",'1. Ordersheet'!N712)","v":""},{"$f":"IF('1. Ordersheet'!O712=\"\",\"\",'1. Ordersheet'!O712)","v":{"$error":"#N/A"}},{"$f":"IF('1. Ordersheet'!P712=\"\",\"\",'1. Ordersheet'!P712)","v":{"$error":"#N/A"}},{"$f":"IF('1. Ordersheet'!Q712=\"\",\"\",'1. Ordersheet'!Q712)","v":""},{"$f":"IF('1. Ordersheet'!R712=\"\",\"\",'1. Ordersheet'!R712)","v":""},{"$f":"IF('1. Ordersheet'!S712=\"\",\"\",'1. Ordersheet'!S712)","v":""},{"$f":"IF('1. Ordersheet'!V712=\"\",\"\",'1. Ordersheet'!V712)","v":""},{"$f":"IF('1. Ordersheet'!W712=\"\",\"\",'1. Ordersheet'!W712)","v":""},{"$f":"IF('1. Ordersheet'!X712=\"\",\"\",'1. Ordersheet'!X712)","v":""},{"$f":"IF('1. Ordersheet'!Y712=\"\",\"\",'1. Ordersheet'!Y712)","v":""},{"$f":"IF('1. Ordersheet'!Z712=\"\",\"\",'1. Ordersheet'!Z712)","v":""},{"$f":"IF('1. Ordersheet'!AA712=\"\",\"\",'1. Ordersheet'!AA712)","v":""},null,{"$f":"IF('1. Ordersheet'!AS712=\"\",\"\",'1. Ordersheet'!AS712)","v":""},{"$f":"IF('1. Ordersheet'!AT712=\"\",\"\",'1. Ordersheet'!AT712)","v":""},null,null,null,null,null,null,null,{"$f":"IF('1. Ordersheet'!AX712=\"\",\"\",'1. Ordersheet'!AX712)","v":""},{"$f":"IF('1. Ordersheet'!AY712=\"\",\"\",'1. Ordersheet'!AY712)","v":""},{"$f":"IF('1. Ordersheet'!AZ712=\"\",\"\",'1. Ordersheet'!AZ712)","v":""},{"$f":"IF('1. Ordersheet'!BA712=\"\",\"\",'1. Ordersheet'!BA712)","v":""},{"$f":"IF('1. Ordersheet'!BC712=\"\",\"\",'1. Ordersheet'!BC712)","v":""},{"$f":"IF('1. Ordersheet'!BD712=\"\",\"\",'1. Ordersheet'!BD712)","v":""},{"$f":"IF('1. Ordersheet'!BE712=\"\",\"\",'1. Ordersheet'!BE712)","v":""},{"$f":"IF('1. Ordersheet'!BF712=\"\",\"\",'1. Ordersheet'!BF712)","v":""},{"$f":"IF('1. Ordersheet'!BG712=\"\",\"\",'1. Ordersheet'!BG712)","v":"ZWO"},{"$f":"IF('1. Ordersheet'!BH712=\"\",\"\",'1. Ordersheet'!BH712)","v":""},{"$f":"IF('1. Ordersheet'!BI712=\"\",\"\",'1. Ordersheet'!BI712)","v":""},{"$f":"IF('1. Ordersheet'!BJ712=\"\",\"\",'1. Ordersheet'!BJ712)","v":""},{"$f":"IF('1. Ordersheet'!BK712=\"\",\"\",'1. Ordersheet'!BK712)","v":""},{"$f":"IF('1. Ordersheet'!BL712=\"\",\"\",'1. Ordersheet'!BL712)","v":""}]
[{"$f":"IF('1. Ordersheet'!F713=\"\",\"\",'1. Ordersheet'!F713)","v":""},{"$f":"IF('1. Ordersheet'!G713=\"\",\"\",'1. Ordersheet'!G713)","v":""},{"$f":"IF('1. Ordersheet'!H713=\"\",\"\",'1. Ordersheet'!H713)","v":""},{"$f":"IF('1. Ordersheet'!I713=\"\",\"\",'1. Ordersheet'!I713)","v":""},{"$f":"IF('1. Ordersheet'!J713=\"\",\"\",'1. Ordersheet'!J713)","v":""},{"$f":"IF('1. Ordersheet'!K713=\"\",\"\",'1. Ordersheet'!K713)","v":""},{"$f":"IF('1. Ordersheet'!L713=\"\",\"\",'1. Ordersheet'!L713)","v":""},{"$f":"IF('1. Ordersheet'!M713=\"\",\"\",'1. Ordersheet'!M713)","v":""},{"$f":"IF('1. Ordersheet'!N713=\"\",\"\",'1. Ordersheet'!N713)","v":""},{"$f":"IF('1. Ordersheet'!O713=\"\",\"\",'1. Ordersheet'!O713)","v":{"$error":"#N/A"}},{"$f":"IF('1. Ordersheet'!P713=\"\",\"\",'1. Ordersheet'!P713)","v":{"$error":"#N/A"}},{"$f":"IF('1. Ordersheet'!Q713=\"\",\"\",'1. Ordersheet'!Q713)","v":""},{"$f":"IF('1. Ordersheet'!R713=\"\",\"\",'1. Ordersheet'!R713)","v":""},{"$f":"IF('1. Ordersheet'!S713=\"\",\"\",'1. Ordersheet'!S713)","v":""},{"$f":"IF('1. Ordersheet'!V713=\"\",\"\",'1. Ordersheet'!V713)","v":""},{"$f":"IF('1. Ordersheet'!W713=\"\",\"\",'1. Ordersheet'!W713)","v":""},{"$f":"IF('1. Ordersheet'!X713=\"\",\"\",'1. Ordersheet'!X713)","v":""},{"$f":"IF('1. Ordersheet'!Y713=\"\",\"\",'1. Ordersheet'!Y713)","v":""},{"$f":"IF('1. Ordersheet'!Z713=\"\",\"\",'1. Ordersheet'!Z713)","v":""},{"$f":"IF('1. Ordersheet'!AA713=\"\",\"\",'1. Ordersheet'!AA713)","v":""},null,{"$f":"IF('1. Ordersheet'!AS713=\"\",\"\",'1. Ordersheet'!AS713)","v":""},{"$f":"IF('1. Ordersheet'!AT713=\"\",\"\",'1. Ordersheet'!AT713)","v":""},null,null,null,null,null,null,null,{"$f":"IF('1. Ordersheet'!AX713=\"\",\"\",'1. Ordersheet'!AX713)","v":""},{"$f":"IF('1. Ordersheet'!AY713=\"\",\"\",'1. Ordersheet'!AY713)","v":""},{"$f":"IF('1. Ordersheet'!AZ713=\"\",\"\",'1. Ordersheet'!AZ713)","v":""},{"$f":"IF('1. Ordersheet'!BA713=\"\",\"\",'1. Ordersheet'!BA713)","v":""},{"$f":"IF('1. Ordersheet'!BC713=\"\",\"\",'1. Ordersheet'!BC713)","v":""},{"$f":"IF('1. Ordersheet'!BD713=\"\",\"\",'1. Ordersheet'!BD713)","v":""},{"$f":"IF('1. Ordersheet'!BE713=\"\",\"\",'1. Ordersheet'!BE713)","v":""},{"$f":"IF('1. Ordersheet'!BF713=\"\",\"\",'1. Ordersheet'!BF713)","v":""},{"$f":"IF('1. Ordersheet'!BG713=\"\",\"\",'1. Ordersheet'!BG713)","v":"ZWO"},{"$f":"IF('1. Ordersheet'!BH713=\"\",\"\",'1. Ordersheet'!BH713)","v":""},{"$f":"IF('1. Ordersheet'!BI713=\"\",\"\",'1. Ordersheet'!BI713)","v":""},{"$f":"IF('1. Ordersheet'!BJ713=\"\",\"\",'1. Ordersheet'!BJ713)","v":""},{"$f":"IF('1. Ordersheet'!BK713=\"\",\"\",'1. Ordersheet'!BK713)","v":""},{"$f":"IF('1. Ordersheet'!BL713=\"\",\"\",'1. Ordersheet'!BL713)","v":""}]
[{"$f":"IF('1. Ordersheet'!F714=\"\",\"\",'1. Ordersheet'!F714)","v":""},{"$f":"IF('1. Ordersheet'!G714=\"\",\"\",'1. Ordersheet'!G714)","v":""},{"$f":"IF('1. Ordersheet'!H714=\"\",\"\",'1. Ordersheet'!H714)","v":""},{"$f":"IF('1. Ordersheet'!I714=\"\",\"\",'1. Ordersheet'!I714)","v":""},{"$f":"IF('1. Ordersheet'!J714=\"\",\"\",'1. Ordersheet'!J714)","v":""},{"$f":"IF('1. Ordersheet'!K714=\"\",\"\",'1. Ordersheet'!K714)","v":""},{"$f":"IF('1. Ordersheet'!L714=\"\",\"\",'1. Ordersheet'!L714)","v":""},{"$f":"IF('1. Ordersheet'!M714=\"\",\"\",'1. Ordersheet'!M714)","v":""},{"$f":"IF('1. Ordersheet'!N714=\"\",\"\",'1. Ordersheet'!N714)","v":""},{"$f":"IF('1. Ordersheet'!O714=\"\",\"\",'1. Ordersheet'!O714)","v":{"$error":"#N/A"}},{"$f":"IF('1. Ordersheet'!P714=\"\",\"\",'1. Ordersheet'!P714)","v":{"$error":"#N/A"}},{"$f":"IF('1. Ordersheet'!Q714=\"\",\"\",'1. Ordersheet'!Q714)","v":""},{"$f":"IF('1. Ordersheet'!R714=\"\",\"\",'1. Ordersheet'!R714)","v":""},{"$f":"IF('1. Ordersheet'!S714=\"\",\"\",'1. Ordersheet'!S714)","v":""},{"$f":"IF('1. Ordersheet'!V714=\"\",\"\",'1. Ordersheet'!V714)","v":""},{"$f":"IF('1. Ordersheet'!W714=\"\",\"\",'1. Ordersheet'!W714)","v":""},{"$f":"IF('1. Ordersheet'!X714=\"\",\"\",'1. Ordersheet'!X714)","v":""},{"$f":"IF('1. Ordersheet'!Y714=\"\",\"\",'1. Ordersheet'!Y714)","v":""},{"$f":"IF('1. Ordersheet'!Z714=\"\",\"\",'1. Ordersheet'!Z714)","v":""},{"$f":"IF('1. Ordersheet'!AA714=\"\",\"\",'1. Ordersheet'!AA714)","v":""},null,{"$f":"IF('1. Ordersheet'!AS714=\"\",\"\",'1. Ordersheet'!AS714)","v":""},{"$f":"IF('1. Ordersheet'!AT714=\"\",\"\",'1. Ordersheet'!AT714)","v":""},null,null,null,null,null,null,null,{"$f":"IF('1. Ordersheet'!AX714=\"\",\"\",'1. Ordersheet'!AX714)","v":""},{"$f":"IF('1. Ordersheet'!AY714=\"\",\"\",'1. Ordersheet'!AY714)","v":""},{"$f":"IF('1. Ordersheet'!AZ714=\"\",\"\",'1. Ordersheet'!AZ714)","v":""},{"$f":"IF('1. Ordersheet'!BA714=\"\",\"\",'1. Ordersheet'!BA714)","v":""},{"$f":"IF('1. Ordersheet'!BC714=\"\",\"\",'1. Ordersheet'!BC714)","v":""},{"$f":"IF('1. Ordersheet'!BD714=\"\",\"\",'1. Ordersheet'!BD714)","v":""},{"$f":"IF('1. Ordersheet'!BE714=\"\",\"\",'1. Ordersheet'!BE714)","v":""},{"$f":"IF('1. Ordersheet'!BF714=\"\",\"\",'1. Ordersheet'!BF714)","v":""},{"$f":"IF('1. Ordersheet'!BG714=\"\",\"\",'1. Ordersheet'!BG714)","v":"ZWO"},{"$f":"IF('1. Ordersheet'!BH714=\"\",\"\",'1. Ordersheet'!BH714)","v":""},{"$f":"IF('1. Ordersheet'!BI714=\"\",\"\",'1. Ordersheet'!BI714)","v":""},{"$f":"IF('1. Ordersheet'!BJ714=\"\",\"\",'1. Ordersheet'!BJ714)","v":""},{"$f":"IF('1. Ordersheet'!BK714=\"\",\"\",'1. Ordersheet'!BK714)","v":""},{"$f":"IF('1. Ordersheet'!BL714=\"\",\"\",'1. Ordersheet'!BL714)","v":""}]
[{"$f":"IF('1. Ordersheet'!F715=\"\",\"\",'1. Ordersheet'!F715)","v":""},{"$f":"IF('1. Ordersheet'!G715=\"\",\"\",'1. Ordersheet'!G715)","v":""},{"$f":"IF('1. Ordersheet'!H715=\"\",\"\",'1. Ordersheet'!H715)","v":""},{"$f":"IF('1. Ordersheet'!I715=\"\",\"\",'1. Ordersheet'!I715)","v":""},{"$f":"IF('1. Ordersheet'!J715=\"\",\"\",'1. Ordersheet'!J715)","v":""},{"$f":"IF('1. Ordersheet'!K715=\"\",\"\",'1. Ordersheet'!K715)","v":""},{"$f":"IF('1. Ordersheet'!L715=\"\",\"\",'1. Ordersheet'!L715)","v":""},{"$f":"IF('1. Ordersheet'!M715=\"\",\"\",'1. Ordersheet'!M715)","v":""},{"$f":"IF('1. Ordersheet'!N715=\"\",\"\",'1. Ordersheet'!N715)","v":""},{"$f":"IF('1. Ordersheet'!O715=\"\",\"\",'1. Ordersheet'!O715)","v":{"$error":"#N/A"}},{"$f":"IF('1. Ordersheet'!P715=\"\",\"\",'1. Ordersheet'!P715)","v":{"$error":"#N/A"}},{"$f":"IF('1. Ordersheet'!Q715=\"\",\"\",'1. Ordersheet'!Q715)","v":""},{"$f":"IF('1. Ordersheet'!R715=\"\",\"\",'1. Ordersheet'!R715)","v":""},{"$f":"IF('1. Ordersheet'!S715=\"\",\"\",'1. Ordersheet'!S715)","v":""},{"$f":"IF('1. Ordersheet'!V715=\"\",\"\",'1. Ordersheet'!V715)","v":""},{"$f":"IF('1. Ordersheet'!W715=\"\",\"\",'1. Ordersheet'!W715)","v":""},{"$f":"IF('1. Ordersheet'!X715=\"\",\"\",'1. Ordersheet'!X715)","v":""},{"$f":"IF('1. Ordersheet'!Y715=\"\",\"\",'1. Ordersheet'!Y715)","v":""},{"$f":"IF('1. Ordersheet'!Z715=\"\",\"\",'1. Ordersheet'!Z715)","v":""},{"$f":"IF('1. Ordersheet'!AA715=\"\",\"\",'1. Ordersheet'!AA715)","v":""},null,{"$f":"IF('1. Ordersheet'!AS715=\"\",\"\",'1. Ordersheet'!AS715)","v":""},{"$f":"IF('1. Ordersheet'!AT715=\"\",\"\",'1. Ordersheet'!AT715)","v":""},null,null,null,null,null,null,null,{"$f":"IF('1. Ordersheet'!AX715=\"\",\"\",'1. Ordersheet'!AX715)","v":""},{"$f":"IF('1. Ordersheet'!AY715=\"\",\"\",'1. Ordersheet'!AY715)","v":""},{"$f":"IF('1. Ordersheet'!AZ715=\"\",\"\",'1. Ordersheet'!AZ715)","v":""},{"$f":"IF('1. Ordersheet'!BA715=\"\",\"\",'1. Ordersheet'!BA715)","v":""},{"$f":"IF('1. Ordersheet'!BC715=\"\",\"\",'1. Ordersheet'!BC715)","v":""},{"$f":"IF('1. Ordersheet'!BD715=\"\",\"\",'1. Ordersheet'!BD715)","v":""},{"$f":"IF('1. Ordersheet'!BE715=\"\",\"\",'1. Ordersheet'!BE715)","v":""},{"$f":"IF('1. Ordersheet'!BF715=\"\",\"\",'1. Ordersheet'!BF715)","v":""},{"$f":"IF('1. Ordersheet'!BG715=\"\",\"\",'1. Ordersheet'!BG715)","v":"ZWO"},{"$f":"IF('1. Ordersheet'!BH715=\"\",\"\",'1. Ordersheet'!BH715)","v":""},{"$f":"IF('1. Ordersheet'!BI715=\"\",\"\",'1. Ordersheet'!BI715)","v":""},{"$f":"IF('1. Ordersheet'!BJ715=\"\",\"\",'1. Ordersheet'!BJ715)","v":""},{"$f":"IF('1. Ordersheet'!BK715=\"\",\"\",'1. Ordersheet'!BK715)","v":""},{"$f":"IF('1. Ordersheet'!BL715=\"\",\"\",'1. Ordersheet'!BL715)","v":""}]
[{"$f":"IF('1. Ordersheet'!F716=\"\",\"\",'1. Ordersheet'!F716)","v":""},{"$f":"IF('1. Ordersheet'!G716=\"\",\"\",'1. Ordersheet'!G716)","v":""},{"$f":"IF('1. Ordersheet'!H716=\"\",\"\",'1. Ordersheet'!H716)","v":""},{"$f":"IF('1. Ordersheet'!I716=\"\",\"\",'1. Ordersheet'!I716)","v":""},{"$f":"IF('1. Ordersheet'!J716=\"\",\"\",'1. Ordersheet'!J716)","v":""},{"$f":"IF('1. Ordersheet'!K716=\"\",\"\",'1. Ordersheet'!K716)","v":""},{"$f":"IF('1. Ordersheet'!L716=\"\",\"\",'1. Ordersheet'!L716)","v":""},{"$f":"IF('1. Ordersheet'!M716=\"\",\"\",'1. Ordersheet'!M716)","v":""},{"$f":"IF('1. Ordersheet'!N716=\"\",\"\",'1. Ordersheet'!N716)","v":""},{"$f":"IF('1. Ordersheet'!O716=\"\",\"\",'1. Ordersheet'!O716)","v":{"$error":"#N/A"}},{"$f":"IF('1. Ordersheet'!P716=\"\",\"\",'1. Ordersheet'!P716)","v":{"$error":"#N/A"}},{"$f":"IF('1. Ordersheet'!Q716=\"\",\"\",'1. Ordersheet'!Q716)","v":""},{"$f":"IF('1. Ordersheet'!R716=\"\",\"\",'1. Ordersheet'!R716)","v":""},{"$f":"IF('1. Ordersheet'!S716=\"\",\"\",'1. Ordersheet'!S716)","v":""},{"$f":"IF('1. Ordersheet'!V716=\"\",\"\",'1. Ordersheet'!V716)","v":""},{"$f":"IF('1. Ordersheet'!W716=\"\",\"\",'1. Ordersheet'!W716)","v":""},{"$f":"IF('1. Ordersheet'!X716=\"\",\"\",'1. Ordersheet'!X716)","v":""},{"$f":"IF('1. Ordersheet'!Y716=\"\",\"\",'1. Ordersheet'!Y716)","v":""},{"$f":"IF('1. Ordersheet'!Z716=\"\",\"\",'1. Ordersheet'!Z716)","v":""},{"$f":"IF('1. Ordersheet'!AA716=\"\",\"\",'1. Ordersheet'!AA716)","v":""},null,{"$f":"IF('1. Ordersheet'!AS716=\"\",\"\",'1. Ordersheet'!AS716)","v":""},{"$f":"IF('1. Ordersheet'!AT716=\"\",\"\",'1. Ordersheet'!AT716)","v":""},null,null,null,null,null,null,null,{"$f":"IF('1. Ordersheet'!AX716=\"\",\"\",'1. Ordersheet'!AX716)","v":""},{"$f":"IF('1. Ordersheet'!AY716=\"\",\"\",'1. Ordersheet'!AY716)","v":""},{"$f":"IF('1. Ordersheet'!AZ716=\"\",\"\",'1. Ordersheet'!AZ716)","v":""},{"$f":"IF('1. Ordersheet'!BA716=\"\",\"\",'1. Ordersheet'!BA716)","v":""},{"$f":"IF('1. Ordersheet'!BC716=\"\",\"\",'1. Ordersheet'!BC716)","v":""},{"$f":"IF('1. Ordersheet'!BD716=\"\",\"\",'1. Ordersheet'!BD716)","v":""},{"$f":"IF('1. Ordersheet'!BE716=\"\",\"\",'1. Ordersheet'!BE716)","v":""},{"$f":"IF('1. Ordersheet'!BF716=\"\",\"\",'1. Ordersheet'!BF716)","v":""},{"$f":"IF('1. Ordersheet'!BG716=\"\",\"\",'1. Ordersheet'!BG716)","v":"ZWO"},{"$f":"IF('1. Ordersheet'!BH716=\"\",\"\",'1. Ordersheet'!BH716)","v":""},{"$f":"IF('1. Ordersheet'!BI716=\"\",\"\",'1. Ordersheet'!BI716)","v":""},{"$f":"IF('1. Ordersheet'!BJ716=\"\",\"\",'1. Ordersheet'!BJ716)","v":""},{"$f":"IF('1. Ordersheet'!BK716=\"\",\"\",'1. Ordersheet'!BK716)","v":""},{"$f":"IF('1. Ordersheet'!BL716=\"\",\"\",'1. Ordersheet'!BL716)","v":""}]
[{"$f":"IF('1. Ordersheet'!F717=\"\",\"\",'1. Ordersheet'!F717)","v":""},{"$f":"IF('1. Ordersheet'!G717=\"\",\"\",'1. Ordersheet'!G717)","v":""},{"$f":"IF('1. Ordersheet'!H717=\"\",\"\",'1. Ordersheet'!H717)","v":""},{"$f":"IF('1. Ordersheet'!I717=\"\",\"\",'1. Ordersheet'!I717)","v":""},{"$f":"IF('1. Ordersheet'!J717=\"\",\"\",'1. Ordersheet'!J717)","v":""},{"$f":"IF('1. Ordersheet'!K717=\"\",\"\",'1. Ordersheet'!K717)","v":""},{"$f":"IF('1. Ordersheet'!L717=\"\",\"\",'1. Ordersheet'!L717)","v":""},{"$f":"IF('1. Ordersheet'!M717=\"\",\"\",'1. Ordersheet'!M717)","v":""},{"$f":"IF('1. Ordersheet'!N717=\"\",\"\",'1. Ordersheet'!N717)","v":""},{"$f":"IF('1. Ordersheet'!O717=\"\",\"\",'1. Ordersheet'!O717)","v":{"$error":"#N/A"}},{"$f":"IF('1. Ordersheet'!P717=\"\",\"\",'1. Ordersheet'!P717)","v":{"$error":"#N/A"}},{"$f":"IF('1. Ordersheet'!Q717=\"\",\"\",'1. Ordersheet'!Q717)","v":""},{"$f":"IF('1. Ordersheet'!R717=\"\",\"\",'1. Ordersheet'!R717)","v":""},{"$f":"IF('1. Ordersheet'!S717=\"\",\"\",'1. Ordersheet'!S717)","v":""},{"$f":"IF('1. Ordersheet'!V717=\"\",\"\",'1. Ordersheet'!V717)","v":""},{"$f":"IF('1. Ordersheet'!W717=\"\",\"\",'1. Ordersheet'!W717)","v":""},{"$f":"IF('1. Ordersheet'!X717=\"\",\"\",'1. Ordersheet'!X717)","v":""},{"$f":"IF('1. Ordersheet'!Y717=\"\",\"\",'1. Ordersheet'!Y717)","v":""},{"$f":"IF('1. Ordersheet'!Z717=\"\",\"\",'1. Ordersheet'!Z717)","v":""},{"$f":"IF('1. Ordersheet'!AA717=\"\",\"\",'1. Ordersheet'!AA717)","v":""},null,{"$f":"IF('1. Ordersheet'!AS717=\"\",\"\",'1. Ordersheet'!AS717)","v":""},{"$f":"IF('1. Ordersheet'!AT717=\"\",\"\",'1. Ordersheet'!AT717)","v":""},null,null,null,null,null,null,null,{"$f":"IF('1. Ordersheet'!AX717=\"\",\"\",'1. Ordersheet'!AX717)","v":""},{"$f":"IF('1. Ordersheet'!AY717=\"\",\"\",'1. Ordersheet'!AY717)","v":""},{"$f":"IF('1. Ordersheet'!AZ717=\"\",\"\",'1. Ordersheet'!AZ717)","v":""},{"$f":"IF('1. Ordersheet'!BA717=\"\",\"\",'1. Ordersheet'!BA717)","v":""},{"$f":"IF('1. Ordersheet'!BC717=\"\",\"\",'1. Ordersheet'!BC717)","v":""},{"$f":"IF('1. Ordersheet'!BD717=\"\",\"\",'1. Ordersheet'!BD717)","v":""},{"$f":"IF('1. Ordersheet'!BE717=\"\",\"\",'1. Ordersheet'!BE717)","v":""},{"$f":"IF('1. Ordersheet'!BF717=\"\",\"\",'1. Ordersheet'!BF717)","v":""},{"$f":"IF('1. Ordersheet'!BG717=\"\",\"\",'1. Ordersheet'!BG717)","v":"ZWO"},{"$f":"IF('1. Ordersheet'!BH717=\"\",\"\",'1. Ordersheet'!BH717)","v":""},{"$f":"IF('1. Ordersheet'!BI717=\"\",\"\",'1. Ordersheet'!BI717)","v":""},{"$f":"IF('1. Ordersheet'!BJ717=\"\",\"\",'1. Ordersheet'!BJ717)","v":""},{"$f":"IF('1. Ordersheet'!BK717=\"\",\"\",'1. Ordersheet'!BK717)","v":""},{"$f":"IF('1. Ordersheet'!BL717=\"\",\"\",'1. Ordersheet'!BL717)","v":""}]
[{"$f":"IF('1. Ordersheet'!F718=\"\",\"\",'1. Ordersheet'!F718)","v":""},{"$f":"IF('1. Ordersheet'!G718=\"\",\"\",'1. Ordersheet'!G718)","v":""},{"$f":"IF('1. Ordersheet'!H718=\"\",\"\",'1. Ordersheet'!H718)","v":""},{"$f":"IF('1. Ordersheet'!I718=\"\",\"\",'1. Ordersheet'!I718)","v":""},{"$f":"IF('1. Ordersheet'!J718=\"\",\"\",'1. Ordersheet'!J718)","v":""},{"$f":"IF('1. Ordersheet'!K718=\"\",\"\",'1. Ordersheet'!K718)","v":""},{"$f":"IF('1. Ordersheet'!L718=\"\",\"\",'1. Ordersheet'!L718)","v":""},{"$f":"IF('1. Ordersheet'!M718=\"\",\"\",'1. Ordersheet'!M718)","v":""},{"$f":"IF('1. Ordersheet'!N718=\"\",\"\",'1. Ordersheet'!N718)","v":""},{"$f":"IF('1. Ordersheet'!O718=\"\",\"\",'1. Ordersheet'!O718)","v":{"$error":"#N/A"}},{"$f":"IF('1. Ordersheet'!P718=\"\",\"\",'1. Ordersheet'!P718)","v":{"$error":"#N/A"}},{"$f":"IF('1. Ordersheet'!Q718=\"\",\"\",'1. Ordersheet'!Q718)","v":""},{"$f":"IF('1. Ordersheet'!R718=\"\",\"\",'1. Ordersheet'!R718)","v":""},{"$f":"IF('1. Ordersheet'!S718=\"\",\"\",'1. Ordersheet'!S718)","v":""},{"$f":"IF('1. Ordersheet'!V718=\"\",\"\",'1. Ordersheet'!V718)","v":""},{"$f":"IF('1. Ordersheet'!W718=\"\",\"\",'1. Ordersheet'!W718)","v":""},{"$f":"IF('1. Ordersheet'!X718=\"\",\"\",'1. Ordersheet'!X718)","v":""},{"$f":"IF('1. Ordersheet'!Y718=\"\",\"\",'1. Ordersheet'!Y718)","v":""},{"$f":"IF('1. Ordersheet'!Z718=\"\",\"\",'1. Ordersheet'!Z718)","v":""},{"$f":"IF('1. Ordersheet'!AA718=\"\",\"\",'1. Ordersheet'!AA718)","v":""},null,{"$f":"IF('1. Ordersheet'!AS718=\"\",\"\",'1. Ordersheet'!AS718)","v":""},{"$f":"IF('1. Ordersheet'!AT718=\"\",\"\",'1. Ordersheet'!AT718)","v":""},null,null,null,null,null,null,null,{"$f":"IF('1. Ordersheet'!AX718=\"\",\"\",'1. Ordersheet'!AX718)","v":""},{"$f":"IF('1. Ordersheet'!AY718=\"\",\"\",'1. Ordersheet'!AY718)","v":""},{"$f":"IF('1. Ordersheet'!AZ718=\"\",\"\",'1. Ordersheet'!AZ718)","v":""},{"$f":"IF('1. Ordersheet'!BA718=\"\",\"\",'1. Ordersheet'!BA718)","v":""},{"$f":"IF('1. Ordersheet'!BC718=\"\",\"\",'1. Ordersheet'!BC718)","v":""},{"$f":"IF('1. Ordersheet'!BD718=\"\",\"\",'1. Ordersheet'!BD718)","v":""},{"$f":"IF('1. Ordersheet'!BE718=\"\",\"\",'1. Ordersheet'!BE718)","v":""},{"$f":"IF('1. Ordersheet'!BF718=\"\",\"\",'1. Ordersheet'!BF718)","v":""},{"$f":"IF('1. Ordersheet'!BG718=\"\",\"\",'1. Ordersheet'!BG718)","v":"ZWO"},{"$f":"IF('1. Ordersheet'!BH718=\"\",\"\",'1. Ordersheet'!BH718)","v":""},{"$f":"IF('1. Ordersheet'!BI718=\"\",\"\",'1. Ordersheet'!BI718)","v":""},{"$f":"IF('1. Ordersheet'!BJ718=\"\",\"\",'1. Ordersheet'!BJ718)","v":""},{"$f":"IF('1. Ordersheet'!BK718=\"\",\"\",'1. Ordersheet'!BK718)","v":""},{"$f":"IF('1. Ordersheet'!BL718=\"\",\"\",'1. Ordersheet'!BL718)","v":""}]
[{"$f":"IF('1. Ordersheet'!F719=\"\",\"\",'1. Ordersheet'!F719)","v":""},{"$f":"IF('1. Ordersheet'!G719=\"\",\"\",'1. Ordersheet'!G719)","v":""},{"$f":"IF('1. Ordersheet'!H719=\"\",\"\",'1. Ordersheet'!H719)","v":""},{"$f":"IF('1. Ordersheet'!I719=\"\",\"\",'1. Ordersheet'!I719)","v":""},{"$f":"IF('1. Ordersheet'!J719=\"\",\"\",'1. Ordersheet'!J719)","v":""},{"$f":"IF('1. Ordersheet'!K719=\"\",\"\",'1. Ordersheet'!K719)","v":""},{"$f":"IF('1. Ordersheet'!L719=\"\",\"\",'1. Ordersheet'!L719)","v":""},{"$f":"IF('1. Ordersheet'!M719=\"\",\"\",'1. Ordersheet'!M719)","v":""},{"$f":"IF('1. Ordersheet'!N719=\"\",\"\",'1. Ordersheet'!N719)","v":""},{"$f":"IF('1. Ordersheet'!O719=\"\",\"\",'1. Ordersheet'!O719)","v":{"$error":"#N/A"}},{"$f":"IF('1. Ordersheet'!P719=\"\",\"\",'1. Ordersheet'!P719)","v":{"$error":"#N/A"}},{"$f":"IF('1. Ordersheet'!Q719=\"\",\"\",'1. Ordersheet'!Q719)","v":""},{"$f":"IF('1. Ordersheet'!R719=\"\",\"\",'1. Ordersheet'!R719)","v":""},{"$f":"IF('1. Ordersheet'!S719=\"\",\"\",'1. Ordersheet'!S719)","v":""},{"$f":"IF('1. Ordersheet'!V719=\"\",\"\",'1. Ordersheet'!V719)","v":""},{"$f":"IF('1. Ordersheet'!W719=\"\",\"\",'1. Ordersheet'!W719)","v":""},{"$f":"IF('1. Ordersheet'!X719=\"\",\"\",'1. Ordersheet'!X719)","v":""},{"$f":"IF('1. Ordersheet'!Y719=\"\",\"\",'1. Ordersheet'!Y719)","v":""},{"$f":"IF('1. Ordersheet'!Z719=\"\",\"\",'1. Ordersheet'!Z719)","v":""},{"$f":"IF('1. Ordersheet'!AA719=\"\",\"\",'1. Ordersheet'!AA719)","v":""},null,{"$f":"IF('1. Ordersheet'!AS719=\"\",\"\",'1. Ordersheet'!AS719)","v":""},{"$f":"IF('1. Ordersheet'!AT719=\"\",\"\",'1. Ordersheet'!AT719)","v":""},null,null,null,null,null,null,null,{"$f":"IF('1. Ordersheet'!AX719=\"\",\"\",'1. Ordersheet'!AX719)","v":""},{"$f":"IF('1. Ordersheet'!AY719=\"\",\"\",'1. Ordersheet'!AY719)","v":""},{"$f":"IF('1. Ordersheet'!AZ719=\"\",\"\",'1. Ordersheet'!AZ719)","v":""},{"$f":"IF('1. Ordersheet'!BA719=\"\",\"\",'1. Ordersheet'!BA719)","v":""},{"$f":"IF('1. Ordersheet'!BC719=\"\",\"\",'1. Ordersheet'!BC719)","v":""},{"$f":"IF('1. Ordersheet'!BD719=\"\",\"\",'1. Ordersheet'!BD719)","v":""},{"$f":"IF('1. Ordersheet'!BE719=\"\",\"\",'1. Ordersheet'!BE719)","v":""},{"$f":"IF('1. Ordersheet'!BF719=\"\",\"\",'1. Ordersheet'!BF719)","v":""},{"$f":"IF('1. Ordersheet'!BG719=\"\",\"\",'1. Ordersheet'!BG719)","v":"ZWO"},{"$f":"IF('1. Ordersheet'!BH719=\"\",\"\",'1. Ordersheet'!BH719)","v":""},{"$f":"IF('1. Ordersheet'!BI719=\"\",\"\",'1. Ordersheet'!BI719)","v":""},{"$f":"IF('1. Ordersheet'!BJ719=\"\",\"\",'1. Ordersheet'!BJ719)","v":""},{"$f":"IF('1. Ordersheet'!BK719=\"\",\"\",'1. Ordersheet'!BK719)","v":""},{"$f":"IF('1. Ordersheet'!BL719=\"\",\"\",'1. Ordersheet'!BL719)","v":""}]
[{"$f":"IF('1. Ordersheet'!F720=\"\",\"\",'1. Ordersheet'!F720)","v":""},{"$f":"IF('1. Ordersheet'!G720=\"\",\"\",'1. Ordersheet'!G720)","v":""},{"$f":"IF('1. Ordersheet'!H720=\"\",\"\",'1. Ordersheet'!H720)","v":""},{"$f":"IF('1. Ordersheet'!I720=\"\",\"\",'1. Ordersheet'!I720)","v":""},{"$f":"IF('1. Ordersheet'!J720=\"\",\"\",'1. Ordersheet'!J720)","v":""},{"$f":"IF('1. Ordersheet'!K720=\"\",\"\",'1. Ordersheet'!K720)","v":""},{"$f":"IF('1. Ordersheet'!L720=\"\",\"\",'1. Ordersheet'!L720)","v":""},{"$f":"IF('1. Ordersheet'!M720=\"\",\"\",'1. Ordersheet'!M720)","v":""},{"$f":"IF('1. Ordersheet'!N720=\"\",\"\",'1. Ordersheet'!N720)","v":""},{"$f":"IF('1. Ordersheet'!O720=\"\",\"\",'1. Ordersheet'!O720)","v":{"$error":"#N/A"}},{"$f":"IF('1. Ordersheet'!P720=\"\",\"\",'1. Ordersheet'!P720)","v":{"$error":"#N/A"}},{"$f":"IF('1. Ordersheet'!Q720=\"\",\"\",'1. Ordersheet'!Q720)","v":""},{"$f":"IF('1. Ordersheet'!R720=\"\",\"\",'1. Ordersheet'!R720)","v":""},{"$f":"IF('1. Ordersheet'!S720=\"\",\"\",'1. Ordersheet'!S720)","v":""},{"$f":"IF('1. Ordersheet'!V720=\"\",\"\",'1. Ordersheet'!V720)","v":""},{"$f":"IF('1. Ordersheet'!W720=\"\",\"\",'1. Ordersheet'!W720)","v":""},{"$f":"IF('1. Ordersheet'!X720=\"\",\"\",'1. Ordersheet'!X720)","v":""},{"$f":"IF('1. Ordersheet'!Y720=\"\",\"\",'1. Ordersheet'!Y720)","v":""},{"$f":"IF('1. Ordersheet'!Z720=\"\",\"\",'1. Ordersheet'!Z720)","v":""},{"$f":"IF('1. Ordersheet'!AA720=\"\",\"\",'1. Ordersheet'!AA720)","v":""},null,{"$f":"IF('1. Ordersheet'!AS720=\"\",\"\",'1. Ordersheet'!AS720)","v":""},{"$f":"IF('1. Ordersheet'!AT720=\"\",\"\",'1. Ordersheet'!AT720)","v":""},null,null,null,null,null,null,null,{"$f":"IF('1. Ordersheet'!AX720=\"\",\"\",'1. Ordersheet'!AX720)","v":""},{"$f":"IF('1. Ordersheet'!AY720=\"\",\"\",'1. Ordersheet'!AY720)","v":""},{"$f":"IF('1. Ordersheet'!AZ720=\"\",\"\",'1. Ordersheet'!AZ720)","v":""},{"$f":"IF('1. Ordersheet'!BA720=\"\",\"\",'1. Ordersheet'!BA720)","v":""},{"$f":"IF('1. Ordersheet'!BC720=\"\",\"\",'1. Ordersheet'!BC720)","v":""},{"$f":"IF('1. Ordersheet'!BD720=\"\",\"\",'1. Ordersheet'!BD720)","v":""},{"$f":"IF('1. Ordersheet'!BE720=\"\",\"\",'1. Ordersheet'!BE720)","v":""},{"$f":"IF('1. Ordersheet'!BF720=\"\",\"\",'1. Ordersheet'!BF720)","v":""},{"$f":"IF('1. Ordersheet'!BG720=\"\",\"\",'1. Ordersheet'!BG720)","v":"ZWO"},{"$f":"IF('1. Ordersheet'!BH720=\"\",\"\",'1. Ordersheet'!BH720)","v":""},{"$f":"IF('1. Ordersheet'!BI720=\"\",\"\",'1. Ordersheet'!BI720)","v":""},{"$f":"IF('1. Ordersheet'!BJ720=\"\",\"\",'1. Ordersheet'!BJ720)","v":""},{"$f":"IF('1. Ordersheet'!BK720=\"\",\"\",'1. Ordersheet'!BK720)","v":""},{"$f":"IF('1. Ordersheet'!BL720=\"\",\"\",'1. Ordersheet'!BL720)","v":""}]
[{"$f":"IF('1. Ordersheet'!F721=\"\",\"\",'1. Ordersheet'!F721)","v":""},{"$f":"IF('1. Ordersheet'!G721=\"\",\"\",'1. Ordersheet'!G721)","v":""},{"$f":"IF('1. Ordersheet'!H721=\"\",\"\",'1. Ordersheet'!H721)","v":""},{"$f":"IF('1. Ordersheet'!I721=\"\",\"\",'1. Ordersheet'!I721)","v":""},{"$f":"IF('1. Ordersheet'!J721=\"\",\"\",'1. Ordersheet'!J721)","v":""},{"$f":"IF('1. Ordersheet'!K721=\"\",\"\",'1. Ordersheet'!K721)","v":""},{"$f":"IF('1. Ordersheet'!L721=\"\",\"\",'1. Ordersheet'!L721)","v":""},{"$f":"IF('1. Ordersheet'!M721=\"\",\"\",'1. Ordersheet'!M721)","v":""},{"$f":"IF('1. Ordersheet'!N721=\"\",\"\",'1. Ordersheet'!N721)","v":""},{"$f":"IF('1. Ordersheet'!O721=\"\",\"\",'1. Ordersheet'!O721)","v":{"$error":"#N/A"}},{"$f":"IF('1. Ordersheet'!P721=\"\",\"\",'1. Ordersheet'!P721)","v":{"$error":"#N/A"}},{"$f":"IF('1. Ordersheet'!Q721=\"\",\"\",'1. Ordersheet'!Q721)","v":""},{"$f":"IF('1. Ordersheet'!R721=\"\",\"\",'1. Ordersheet'!R721)","v":""},{"$f":"IF('1. Ordersheet'!S721=\"\",\"\",'1. Ordersheet'!S721)","v":""},{"$f":"IF('1. Ordersheet'!V721=\"\",\"\",'1. Ordersheet'!V721)","v":""},{"$f":"IF('1. Ordersheet'!W721=\"\",\"\",'1. Ordersheet'!W721)","v":""},{"$f":"IF('1. Ordersheet'!X721=\"\",\"\",'1. Ordersheet'!X721)","v":""},{"$f":"IF('1. Ordersheet'!Y721=\"\",\"\",'1. Ordersheet'!Y721)","v":""},{"$f":"IF('1. Ordersheet'!Z721=\"\",\"\",'1. Ordersheet'!Z721)","v":""},{"$f":"IF('1. Ordersheet'!AA721=\"\",\"\",'1. Ordersheet'!AA721)","v":""},null,{"$f":"IF('1. Ordersheet'!AS721=\"\",\"\",'1. Ordersheet'!AS721)","v":""},{"$f":"IF('1. Ordersheet'!AT721=\"\",\"\",'1. Ordersheet'!AT721)","v":""},null,null,null,null,null,null,null,{"$f":"IF('1. Ordersheet'!AX721=\"\",\"\",'1. Ordersheet'!AX721)","v":""},{"$f":"IF('1. Ordersheet'!AY721=\"\",\"\",'1. Ordersheet'!AY721)","v":""},{"$f":"IF('1. Ordersheet'!AZ721=\"\",\"\",'1. Ordersheet'!AZ721)","v":""},{"$f":"IF('1. Ordersheet'!BA721=\"\",\"\",'1. Ordersheet'!BA721)","v":""},{"$f":"IF('1. Ordersheet'!BC721=\"\",\"\",'1. Ordersheet'!BC721)","v":""},{"$f":"IF('1. Ordersheet'!BD721=\"\",\"\",'1. Ordersheet'!BD721)","v":""},{"$f":"IF('1. Ordersheet'!BE721=\"\",\"\",'1. Ordersheet'!BE721)","v":""},{"$f":"IF('1. Ordersheet'!BF721=\"\",\"\",'1. Ordersheet'!BF721)","v":""},{"$f":"IF('1. Ordersheet'!BG721=\"\",\"\",'1. Ordersheet'!BG721)","v":"ZWO"},{"$f":"IF('1. Ordersheet'!BH721=\"\",\"\",'1. Ordersheet'!BH721)","v":""},{"$f":"IF('1. Ordersheet'!BI721=\"\",\"\",'1. Ordersheet'!BI721)","v":""},{"$f":"IF('1. Ordersheet'!BJ721=\"\",\"\",'1. Ordersheet'!BJ721)","v":""},{"$f":"IF('1. Ordersheet'!BK721=\"\",\"\",'1. Ordersheet'!BK721)","v":""},{"$f":"IF('1. Ordersheet'!BL721=\"\",\"\",'1. Ordersheet'!BL721)","v":""}]
[{"$f":"IF('1. Ordersheet'!F722=\"\",\"\",'1. Ordersheet'!F722)","v":""},{"$f":"IF('1. Ordersheet'!G722=\"\",\"\",'1. Ordersheet'!G722)","v":""},{"$f":"IF('1. Ordersheet'!H722=\"\",\"\",'1. Ordersheet'!H722)","v":""},{"$f":"IF('1. Ordersheet'!I722=\"\",\"\",'1. Ordersheet'!I722)","v":""},{"$f":"IF('1. Ordersheet'!J722=\"\",\"\",'1. Ordersheet'!J722)","v":""},{"$f":"IF('1. Ordersheet'!K722=\"\",\"\",'1. Ordersheet'!K722)","v":""},{"$f":"IF('1. Ordersheet'!L722=\"\",\"\",'1. Ordersheet'!L722)","v":""},{"$f":"IF('1. Ordersheet'!M722=\"\",\"\",'1. Ordersheet'!M722)","v":""},{"$f":"IF('1. Ordersheet'!N722=\"\",\"\",'1. Ordersheet'!N722)","v":""},{"$f":"IF('1. Ordersheet'!O722=\"\",\"\",'1. Ordersheet'!O722)","v":{"$error":"#N/A"}},{"$f":"IF('1. Ordersheet'!P722=\"\",\"\",'1. Ordersheet'!P722)","v":{"$error":"#N/A"}},{"$f":"IF('1. Ordersheet'!Q722=\"\",\"\",'1. Ordersheet'!Q722)","v":""},{"$f":"IF('1. Ordersheet'!R722=\"\",\"\",'1. Ordersheet'!R722)","v":""},{"$f":"IF('1. Ordersheet'!S722=\"\",\"\",'1. Ordersheet'!S722)","v":""},{"$f":"IF('1. Ordersheet'!V722=\"\",\"\",'1. Ordersheet'!V722)","v":""},{"$f":"IF('1. Ordersheet'!W722=\"\",\"\",'1. Ordersheet'!W722)","v":""},{"$f":"IF('1. Ordersheet'!X722=\"\",\"\",'1. Ordersheet'!X722)","v":""},{"$f":"IF('1. Ordersheet'!Y722=\"\",\"\",'1. Ordersheet'!Y722)","v":""},{"$f":"IF('1. Ordersheet'!Z722=\"\",\"\",'1. Ordersheet'!Z722)","v":""},{"$f":"IF('1. Ordersheet'!AA722=\"\",\"\",'1. Ordersheet'!AA722)","v":""},null,{"$f":"IF('1. Ordersheet'!AS722=\"\",\"\",'1. Ordersheet'!AS722)","v":""},{"$f":"IF('1. Ordersheet'!AT722=\"\",\"\",'1. Ordersheet'!AT722)","v":""},null,null,null,null,null,null,null,{"$f":"IF('1. Ordersheet'!AX722=\"\",\"\",'1. Ordersheet'!AX722)","v":""},{"$f":"IF('1. Ordersheet'!AY722=\"\",\"\",'1. Ordersheet'!AY722)","v":""},{"$f":"IF('1. Ordersheet'!AZ722=\"\",\"\",'1. Ordersheet'!AZ722)","v":""},{"$f":"IF('1. Ordersheet'!BA722=\"\",\"\",'1. Ordersheet'!BA722)","v":""},{"$f":"IF('1. Ordersheet'!BC722=\"\",\"\",'1. Ordersheet'!BC722)","v":""},{"$f":"IF('1. Ordersheet'!BD722=\"\",\"\",'1. Ordersheet'!BD722)","v":""},{"$f":"IF('1. Ordersheet'!BE722=\"\",\"\",'1. Ordersheet'!BE722)","v":""},{"$f":"IF('1. Ordersheet'!BF722=\"\",\"\",'1. Ordersheet'!BF722)","v":""},{"$f":"IF('1. Ordersheet'!BG722=\"\",\"\",'1. Ordersheet'!BG722)","v":"ZWO"},{"$f":"IF('1. Ordersheet'!BH722=\"\",\"\",'1. Ordersheet'!BH722)","v":""},{"$f":"IF('1. Ordersheet'!BI722=\"\",\"\",'1. Ordersheet'!BI722)","v":""},{"$f":"IF('1. Ordersheet'!BJ722=\"\",\"\",'1. Ordersheet'!BJ722)","v":""},{"$f":"IF('1. Ordersheet'!BK722=\"\",\"\",'1. Ordersheet'!BK722)","v":""},{"$f":"IF('1. Ordersheet'!BL722=\"\",\"\",'1. Ordersheet'!BL722)","v":""}]
[{"$f":"IF('1. Ordersheet'!F723=\"\",\"\",'1. Ordersheet'!F723)","v":""},{"$f":"IF('1. Ordersheet'!G723=\"\",\"\",'1. Ordersheet'!G723)","v":""},{"$f":"IF('1. Ordersheet'!H723=\"\",\"\",'1. Ordersheet'!H723)","v":""},{"$f":"IF('1. Ordersheet'!I723=\"\",\"\",'1. Ordersheet'!I723)","v":""},{"$f":"IF('1. Ordersheet'!J723=\"\",\"\",'1. Ordersheet'!J723)","v":""},{"$f":"IF('1. Ordersheet'!K723=\"\",\"\",'1. Ordersheet'!K723)","v":""},{"$f":"IF('1. Ordersheet'!L723=\"\",\"\",'1. Ordersheet'!L723)","v":""},{"$f":"IF('1. Ordersheet'!M723=\"\",\"\",'1. Ordersheet'!M723)","v":""},{"$f":"IF('1. Ordersheet'!N723=\"\",\"\",'1. Ordersheet'!N723)","v":""},{"$f":"IF('1. Ordersheet'!O723=\"\",\"\",'1. Ordersheet'!O723)","v":{"$error":"#N/A"}},{"$f":"IF('1. Ordersheet'!P723=\"\",\"\",'1. Ordersheet'!P723)","v":{"$error":"#N/A"}},{"$f":"IF('1. Ordersheet'!Q723=\"\",\"\",'1. Ordersheet'!Q723)","v":""},{"$f":"IF('1. Ordersheet'!R723=\"\",\"\",'1. Ordersheet'!R723)","v":""},{"$f":"IF('1. Ordersheet'!S723=\"\",\"\",'1. Ordersheet'!S723)","v":""},{"$f":"IF('1. Ordersheet'!V723=\"\",\"\",'1. Ordersheet'!V723)","v":""},{"$f":"IF('1. Ordersheet'!W723=\"\",\"\",'1. Ordersheet'!W723)","v":""},{"$f":"IF('1. Ordersheet'!X723=\"\",\"\",'1. Ordersheet'!X723)","v":""},{"$f":"IF('1. Ordersheet'!Y723=\"\",\"\",'1. Ordersheet'!Y723)","v":""},{"$f":"IF('1. Ordersheet'!Z723=\"\",\"\",'1. Ordersheet'!Z723)","v":""},{"$f":"IF('1. Ordersheet'!AA723=\"\",\"\",'1. Ordersheet'!AA723)","v":""},null,{"$f":"IF('1. Ordersheet'!AS723=\"\",\"\",'1. Ordersheet'!AS723)","v":""},{"$f":"IF('1. Ordersheet'!AT723=\"\",\"\",'1. Ordersheet'!AT723)","v":""},null,null,null,null,null,null,null,{"$f":"IF('1. Ordersheet'!AX723=\"\",\"\",'1. Ordersheet'!AX723)","v":""},{"$f":"IF('1. Ordersheet'!AY723=\"\",\"\",'1. Ordersheet'!AY723)","v":""},{"$f":"IF('1. Ordersheet'!AZ723=\"\",\"\",'1. Ordersheet'!AZ723)","v":""},{"$f":"IF('1. Ordersheet'!BA723=\"\",\"\",'1. Ordersheet'!BA723)","v":""},{"$f":"IF('1. Ordersheet'!BC723=\"\",\"\",'1. Ordersheet'!BC723)","v":""},{"$f":"IF('1. Ordersheet'!BD723=\"\",\"\",'1. Ordersheet'!BD723)","v":""},{"$f":"IF('1. Ordersheet'!BE723=\"\",\"\",'1. Ordersheet'!BE723)","v":""},{"$f":"IF('1. Ordersheet'!BF723=\"\",\"\",'1. Ordersheet'!BF723)","v":""},{"$f":"IF('1. Ordersheet'!BG723=\"\",\"\",'1. Ordersheet'!BG723)","v":"ZWO"},{"$f":"IF('1. Ordersheet'!BH723=\"\",\"\",'1. Ordersheet'!BH723)","v":""},{"$f":"IF('1. Ordersheet'!BI723=\"\",\"\",'1. Ordersheet'!BI723)","v":""},{"$f":"IF('1. Ordersheet'!BJ723=\"\",\"\",'1. Ordersheet'!BJ723)","v":""},{"$f":"IF('1. Ordersheet'!BK723=\"\",\"\",'1. Ordersheet'!BK723)","v":""},{"$f":"IF('1. Ordersheet'!BL723=\"\",\"\",'1. Ordersheet'!BL723)","v":""}]
[{"$f":"IF('1. Ordersheet'!F724=\"\",\"\",'1. Ordersheet'!F724)","v":""},{"$f":"IF('1. Ordersheet'!G724=\"\",\"\",'1. Ordersheet'!G724)","v":""},{"$f":"IF('1. Ordersheet'!H724=\"\",\"\",'1. Ordersheet'!H724)","v":""},{"$f":"IF('1. Ordersheet'!I724=\"\",\"\",'1. Ordersheet'!I724)","v":""},{"$f":"IF('1. Ordersheet'!J724=\"\",\"\",'1. Ordersheet'!J724)","v":""},{"$f":"IF('1. Ordersheet'!K724=\"\",\"\",'1. Ordersheet'!K724)","v":""},{"$f":"IF('1. Ordersheet'!L724=\"\",\"\",'1. Ordersheet'!L724)","v":""},{"$f":"IF('1. Ordersheet'!M724=\"\",\"\",'1. Ordersheet'!M724)","v":""},{"$f":"IF('1. Ordersheet'!N724=\"\",\"\",'1. Ordersheet'!N724)","v":""},{"$f":"IF('1. Ordersheet'!O724=\"\",\"\",'1. Ordersheet'!O724)","v":{"$error":"#N/A"}},{"$f":"IF('1. Ordersheet'!P724=\"\",\"\",'1. Ordersheet'!P724)","v":{"$error":"#N/A"}},{"$f":"IF('1. Ordersheet'!Q724=\"\",\"\",'1. Ordersheet'!Q724)","v":""},{"$f":"IF('1. Ordersheet'!R724=\"\",\"\",'1. Ordersheet'!R724)","v":""},{"$f":"IF('1. Ordersheet'!S724=\"\",\"\",'1. Ordersheet'!S724)","v":""},{"$f":"IF('1. Ordersheet'!V724=\"\",\"\",'1. Ordersheet'!V724)","v":""},{"$f":"IF('1. Ordersheet'!W724=\"\",\"\",'1. Ordersheet'!W724)","v":""},{"$f":"IF('1. Ordersheet'!X724=\"\",\"\",'1. Ordersheet'!X724)","v":""},{"$f":"IF('1. Ordersheet'!Y724=\"\",\"\",'1. Ordersheet'!Y724)","v":""},{"$f":"IF('1. Ordersheet'!Z724=\"\",\"\",'1. Ordersheet'!Z724)","v":""},{"$f":"IF('1. Ordersheet'!AA724=\"\",\"\",'1. Ordersheet'!AA724)","v":""},null,{"$f":"IF('1. Ordersheet'!AS724=\"\",\"\",'1. Ordersheet'!AS724)","v":""},{"$f":"IF('1. Ordersheet'!AT724=\"\",\"\",'1. Ordersheet'!AT724)","v":""},null,null,null,null,null,null,null,{"$f":"IF('1. Ordersheet'!AX724=\"\",\"\",'1. Ordersheet'!AX724)","v":""},{"$f":"IF('1. Ordersheet'!AY724=\"\",\"\",'1. Ordersheet'!AY724)","v":""},{"$f":"IF('1. Ordersheet'!AZ724=\"\",\"\",'1. Ordersheet'!AZ724)","v":""},{"$f":"IF('1. Ordersheet'!BA724=\"\",\"\",'1. Ordersheet'!BA724)","v":""},{"$f":"IF('1. Ordersheet'!BC724=\"\",\"\",'1. Ordersheet'!BC724)","v":""},{"$f":"IF('1. Ordersheet'!BD724=\"\",\"\",'1. Ordersheet'!BD724)","v":""},{"$f":"IF('1. Ordersheet'!BE724=\"\",\"\",'1. Ordersheet'!BE724)","v":""},{"$f":"IF('1. Ordersheet'!BF724=\"\",\"\",'1. Ordersheet'!BF724)","v":""},{"$f":"IF('1. Ordersheet'!BG724=\"\",\"\",'1. Ordersheet'!BG724)","v":"ZWO"},{"$f":"IF('1. Ordersheet'!BH724=\"\",\"\",'1. Ordersheet'!BH724)","v":""},{"$f":"IF('1. Ordersheet'!BI724=\"\",\"\",'1. Ordersheet'!BI724)","v":""},{"$f":"IF('1. Ordersheet'!BJ724=\"\",\"\",'1. Ordersheet'!BJ724)","v":""},{"$f":"IF('1. Ordersheet'!BK724=\"\",\"\",'1. Ordersheet'!BK724)","v":""},{"$f":"IF('1. Ordersheet'!BL724=\"\",\"\",'1. Ordersheet'!BL724)","v":""}]
[{"$f":"IF('1. Ordersheet'!F725=\"\",\"\",'1. Ordersheet'!F725)","v":""},{"$f":"IF('1. Ordersheet'!G725=\"\",\"\",'1. Ordersheet'!G725)","v":""},{"$f":"IF('1. Ordersheet'!H725=\"\",\"\",'1. Ordersheet'!H725)","v":""},{"$f":"IF('1. Ordersheet'!I725=\"\",\"\",'1. Ordersheet'!I725)","v":""},{"$f":"IF('1. Ordersheet'!J725=\"\",\"\",'1. Ordersheet'!J725)","v":""},{"$f":"IF('1. Ordersheet'!K725=\"\",\"\",'1. Ordersheet'!K725)","v":""},{"$f":"IF('1. Ordersheet'!L725=\"\",\"\",'1. Ordersheet'!L725)","v":""},{"$f":"IF('1. Ordersheet'!M725=\"\",\"\",'1. Ordersheet'!M725)","v":""},{"$f":"IF('1. Ordersheet'!N725=\"\",\"\",'1. Ordersheet'!N725)","v":""},{"$f":"IF('1. Ordersheet'!O725=\"\",\"\",'1. Ordersheet'!O725)","v":{"$error":"#N/A"}},{"$f":"IF('1. Ordersheet'!P725=\"\",\"\",'1. Ordersheet'!P725)","v":{"$error":"#N/A"}},{"$f":"IF('1. Ordersheet'!Q725=\"\",\"\",'1. Ordersheet'!Q725)","v":""},{"$f":"IF('1. Ordersheet'!R725=\"\",\"\",'1. Ordersheet'!R725)","v":""},{"$f":"IF('1. Ordersheet'!S725=\"\",\"\",'1. Ordersheet'!S725)","v":""},{"$f":"IF('1. Ordersheet'!V725=\"\",\"\",'1. Ordersheet'!V725)","v":""},{"$f":"IF('1. Ordersheet'!W725=\"\",\"\",'1. Ordersheet'!W725)","v":""},{"$f":"IF('1. Ordersheet'!X725=\"\",\"\",'1. Ordersheet'!X725)","v":""},{"$f":"IF('1. Ordersheet'!Y725=\"\",\"\",'1. Ordersheet'!Y725)","v":""},{"$f":"IF('1. Ordersheet'!Z725=\"\",\"\",'1. Ordersheet'!Z725)","v":""},{"$f":"IF('1. Ordersheet'!AA725=\"\",\"\",'1. Ordersheet'!AA725)","v":""},null,{"$f":"IF('1. Ordersheet'!AS725=\"\",\"\",'1. Ordersheet'!AS725)","v":""},{"$f":"IF('1. Ordersheet'!AT725=\"\",\"\",'1. Ordersheet'!AT725)","v":""},null,null,null,null,null,null,null,{"$f":"IF('1. Ordersheet'!AX725=\"\",\"\",'1. Ordersheet'!AX725)","v":""},{"$f":"IF('1. Ordersheet'!AY725=\"\",\"\",'1. Ordersheet'!AY725)","v":""},{"$f":"IF('1. Ordersheet'!AZ725=\"\",\"\",'1. Ordersheet'!AZ725)","v":""},{"$f":"IF('1. Ordersheet'!BA725=\"\",\"\",'1. Ordersheet'!BA725)","v":""},{"$f":"IF('1. Ordersheet'!BC725=\"\",\"\",'1. Ordersheet'!BC725)","v":""},{"$f":"IF('1. Ordersheet'!BD725=\"\",\"\",'1. Ordersheet'!BD725)","v":""},{"$f":"IF('1. Ordersheet'!BE725=\"\",\"\",'1. Ordersheet'!BE725)","v":""},{"$f":"IF('1. Ordersheet'!BF725=\"\",\"\",'1. Ordersheet'!BF725)","v":""},{"$f":"IF('1. Ordersheet'!BG725=\"\",\"\",'1. Ordersheet'!BG725)","v":"ZWO"},{"$f":"IF('1. Ordersheet'!BH725=\"\",\"\",'1. Ordersheet'!BH725)","v":""},{"$f":"IF('1. Ordersheet'!BI725=\"\",\"\",'1. Ordersheet'!BI725)","v":""},{"$f":"IF('1. Ordersheet'!BJ725=\"\",\"\",'1. Ordersheet'!BJ725)","v":""},{"$f":"IF('1. Ordersheet'!BK725=\"\",\"\",'1. Ordersheet'!BK725)","v":""},{"$f":"IF('1. Ordersheet'!BL725=\"\",\"\",'1. Ordersheet'!BL725)","v":""}]
[{"$f":"IF('1. Ordersheet'!F726=\"\",\"\",'1. Ordersheet'!F726)","v":""},{"$f":"IF('1. Ordersheet'!G726=\"\",\"\",'1. Ordersheet'!G726)","v":""},{"$f":"IF('1. Ordersheet'!H726=\"\",\"\",'1. Ordersheet'!H726)","v":""},{"$f":"IF('1. Ordersheet'!I726=\"\",\"\",'1. Ordersheet'!I726)","v":""},{"$f":"IF('1. Ordersheet'!J726=\"\",\"\",'1. Ordersheet'!J726)","v":""},{"$f":"IF('1. Ordersheet'!K726=\"\",\"\",'1. Ordersheet'!K726)","v":""},{"$f":"IF('1. Ordersheet'!L726=\"\",\"\",'1. Ordersheet'!L726)","v":""},{"$f":"IF('1. Ordersheet'!M726=\"\",\"\",'1. Ordersheet'!M726)","v":""},{"$f":"IF('1. Ordersheet'!N726=\"\",\"\",'1. Ordersheet'!N726)","v":""},{"$f":"IF('1. Ordersheet'!O726=\"\",\"\",'1. Ordersheet'!O726)","v":{"$error":"#N/A"}},{"$f":"IF('1. Ordersheet'!P726=\"\",\"\",'1. Ordersheet'!P726)","v":{"$error":"#N/A"}},{"$f":"IF('1. Ordersheet'!Q726=\"\",\"\",'1. Ordersheet'!Q726)","v":""},{"$f":"IF('1. Ordersheet'!R726=\"\",\"\",'1. Ordersheet'!R726)","v":""},{"$f":"IF('1. Ordersheet'!S726=\"\",\"\",'1. Ordersheet'!S726)","v":""},{"$f":"IF('1. Ordersheet'!V726=\"\",\"\",'1. Ordersheet'!V726)","v":""},{"$f":"IF('1. Ordersheet'!W726=\"\",\"\",'1. Ordersheet'!W726)","v":""},{"$f":"IF('1. Ordersheet'!X726=\"\",\"\",'1. Ordersheet'!X726)","v":""},{"$f":"IF('1. Ordersheet'!Y726=\"\",\"\",'1. Ordersheet'!Y726)","v":""},{"$f":"IF('1. Ordersheet'!Z726=\"\",\"\",'1. Ordersheet'!Z726)","v":""},{"$f":"IF('1. Ordersheet'!AA726=\"\",\"\",'1. Ordersheet'!AA726)","v":""},null,{"$f":"IF('1. Ordersheet'!AS726=\"\",\"\",'1. Ordersheet'!AS726)","v":""},{"$f":"IF('1. Ordersheet'!AT726=\"\",\"\",'1. Ordersheet'!AT726)","v":""},null,null,null,null,null,null,null,{"$f":"IF('1. Ordersheet'!AX726=\"\",\"\",'1. Ordersheet'!AX726)","v":""},{"$f":"IF('1. Ordersheet'!AY726=\"\",\"\",'1. Ordersheet'!AY726)","v":""},{"$f":"IF('1. Ordersheet'!AZ726=\"\",\"\",'1. Ordersheet'!AZ726)","v":""},{"$f":"IF('1. Ordersheet'!BA726=\"\",\"\",'1. Ordersheet'!BA726)","v":""},{"$f":"IF('1. Ordersheet'!BC726=\"\",\"\",'1. Ordersheet'!BC726)","v":""},{"$f":"IF('1. Ordersheet'!BD726=\"\",\"\",'1. Ordersheet'!BD726)","v":""},{"$f":"IF('1. Ordersheet'!BE726=\"\",\"\",'1. Ordersheet'!BE726)","v":""},{"$f":"IF('1. Ordersheet'!BF726=\"\",\"\",'1. Ordersheet'!BF726)","v":""},{"$f":"IF('1. Ordersheet'!BG726=\"\",\"\",'1. Ordersheet'!BG726)","v":"ZWO"},{"$f":"IF('1. Ordersheet'!BH726=\"\",\"\",'1. Ordersheet'!BH726)","v":""},{"$f":"IF('1. Ordersheet'!BI726=\"\",\"\",'1. Ordersheet'!BI726)","v":""},{"$f":"IF('1. Ordersheet'!BJ726=\"\",\"\",'1. Ordersheet'!BJ726)","v":""},{"$f":"IF('1. Ordersheet'!BK726=\"\",\"\",'1. Ordersheet'!BK726)","v":""},{"$f":"IF('1. Ordersheet'!BL726=\"\",\"\",'1. Ordersheet'!BL726)","v":""}]
[{"$f":"IF('1. Ordersheet'!F727=\"\",\"\",'1. Ordersheet'!F727)","v":""},{"$f":"IF('1. Ordersheet'!G727=\"\",\"\",'1. Ordersheet'!G727)","v":""},{"$f":"IF('1. Ordersheet'!H727=\"\",\"\",'1. Ordersheet'!H727)","v":""},{"$f":"IF('1. Ordersheet'!I727=\"\",\"\",'1. Ordersheet'!I727)","v":""},{"$f":"IF('1. Ordersheet'!J727=\"\",\"\",'1. Ordersheet'!J727)","v":""},{"$f":"IF('1. Ordersheet'!K727=\"\",\"\",'1. Ordersheet'!K727)","v":""},{"$f":"IF('1. Ordersheet'!L727=\"\",\"\",'1. Ordersheet'!L727)","v":""},{"$f":"IF('1. Ordersheet'!M727=\"\",\"\",'1. Ordersheet'!M727)","v":""},{"$f":"IF('1. Ordersheet'!N727=\"\",\"\",'1. Ordersheet'!N727)","v":""},{"$f":"IF('1. Ordersheet'!O727=\"\",\"\",'1. Ordersheet'!O727)","v":{"$error":"#N/A"}},{"$f":"IF('1. Ordersheet'!P727=\"\",\"\",'1. Ordersheet'!P727)","v":{"$error":"#N/A"}},{"$f":"IF('1. Ordersheet'!Q727=\"\",\"\",'1. Ordersheet'!Q727)","v":""},{"$f":"IF('1. Ordersheet'!R727=\"\",\"\",'1. Ordersheet'!R727)","v":""},{"$f":"IF('1. Ordersheet'!S727=\"\",\"\",'1. Ordersheet'!S727)","v":""},{"$f":"IF('1. Ordersheet'!V727=\"\",\"\",'1. Ordersheet'!V727)","v":""},{"$f":"IF('1. Ordersheet'!W727=\"\",\"\",'1. Ordersheet'!W727)","v":""},{"$f":"IF('1. Ordersheet'!X727=\"\",\"\",'1. Ordersheet'!X727)","v":""},{"$f":"IF('1. Ordersheet'!Y727=\"\",\"\",'1. Ordersheet'!Y727)","v":""},{"$f":"IF('1. Ordersheet'!Z727=\"\",\"\",'1. Ordersheet'!Z727)","v":""},{"$f":"IF('1. Ordersheet'!AA727=\"\",\"\",'1. Ordersheet'!AA727)","v":""},null,{"$f":"IF('1. Ordersheet'!AS727=\"\",\"\",'1. Ordersheet'!AS727)","v":""},{"$f":"IF('1. Ordersheet'!AT727=\"\",\"\",'1. Ordersheet'!AT727)","v":""},null,null,null,null,null,null,null,{"$f":"IF('1. Ordersheet'!AX727=\"\",\"\",'1. Ordersheet'!AX727)","v":""},{"$f":"IF('1. Ordersheet'!AY727=\"\",\"\",'1. Ordersheet'!AY727)","v":""},{"$f":"IF('1. Ordersheet'!AZ727=\"\",\"\",'1. Ordersheet'!AZ727)","v":""},{"$f":"IF('1. Ordersheet'!BA727=\"\",\"\",'1. Ordersheet'!BA727)","v":""},{"$f":"IF('1. Ordersheet'!BC727=\"\",\"\",'1. Ordersheet'!BC727)","v":""},{"$f":"IF('1. Ordersheet'!BD727=\"\",\"\",'1. Ordersheet'!BD727)","v":""},{"$f":"IF('1. Ordersheet'!BE727=\"\",\"\",'1. Ordersheet'!BE727)","v":""},{"$f":"IF('1. Ordersheet'!BF727=\"\",\"\",'1. Ordersheet'!BF727)","v":""},{"$f":"IF('1. Ordersheet'!BG727=\"\",\"\",'1. Ordersheet'!BG727)","v":"ZWO"},{"$f":"IF('1. Ordersheet'!BH727=\"\",\"\",'1. Ordersheet'!BH727)","v":""},{"$f":"IF('1. Ordersheet'!BI727=\"\",\"\",'1. Ordersheet'!BI727)","v":""},{"$f":"IF('1. Ordersheet'!BJ727=\"\",\"\",'1. Ordersheet'!BJ727)","v":""},{"$f":"IF('1. Ordersheet'!BK727=\"\",\"\",'1. Ordersheet'!BK727)","v":""},{"$f":"IF('1. Ordersheet'!BL727=\"\",\"\",'1. Ordersheet'!BL727)","v":""}]
[{"$f":"IF('1. Ordersheet'!F728=\"\",\"\",'1. Ordersheet'!F728)","v":""},{"$f":"IF('1. Ordersheet'!G728=\"\",\"\",'1. Ordersheet'!G728)","v":""},{"$f":"IF('1. Ordersheet'!H728=\"\",\"\",'1. Ordersheet'!H728)","v":""},{"$f":"IF('1. Ordersheet'!I728=\"\",\"\",'1. Ordersheet'!I728)","v":""},{"$f":"IF('1. Ordersheet'!J728=\"\",\"\",'1. Ordersheet'!J728)","v":""},{"$f":"IF('1. Ordersheet'!K728=\"\",\"\",'1. Ordersheet'!K728)","v":""},{"$f":"IF('1. Ordersheet'!L728=\"\",\"\",'1. Ordersheet'!L728)","v":""},{"$f":"IF('1. Ordersheet'!M728=\"\",\"\",'1. Ordersheet'!M728)","v":""},{"$f":"IF('1. Ordersheet'!N728=\"\",\"\",'1. Ordersheet'!N728)","v":""},{"$f":"IF('1. Ordersheet'!O728=\"\",\"\",'1. Ordersheet'!O728)","v":{"$error":"#N/A"}},{"$f":"IF('1. Ordersheet'!P728=\"\",\"\",'1. Ordersheet'!P728)","v":{"$error":"#N/A"}},{"$f":"IF('1. Ordersheet'!Q728=\"\",\"\",'1. Ordersheet'!Q728)","v":""},{"$f":"IF('1. Ordersheet'!R728=\"\",\"\",'1. Ordersheet'!R728)","v":""},{"$f":"IF('1. Ordersheet'!S728=\"\",\"\",'1. Ordersheet'!S728)","v":""},{"$f":"IF('1. Ordersheet'!V728=\"\",\"\",'1. Ordersheet'!V728)","v":""},{"$f":"IF('1. Ordersheet'!W728=\"\",\"\",'1. Ordersheet'!W728)","v":""},{"$f":"IF('1. Ordersheet'!X728=\"\",\"\",'1. Ordersheet'!X728)","v":""},{"$f":"IF('1. Ordersheet'!Y728=\"\",\"\",'1. Ordersheet'!Y728)","v":""},{"$f":"IF('1. Ordersheet'!Z728=\"\",\"\",'1. Ordersheet'!Z728)","v":""},{"$f":"IF('1. Ordersheet'!AA728=\"\",\"\",'1. Ordersheet'!AA728)","v":""},null,{"$f":"IF('1. Ordersheet'!AS728=\"\",\"\",'1. Ordersheet'!AS728)","v":""},{"$f":"IF('1. Ordersheet'!AT728=\"\",\"\",'1. Ordersheet'!AT728)","v":""},null,null,null,null,null,null,null,{"$f":"IF('1. Ordersheet'!AX728=\"\",\"\",'1. Ordersheet'!AX728)","v":""},{"$f":"IF('1. Ordersheet'!AY728=\"\",\"\",'1. Ordersheet'!AY728)","v":""},{"$f":"IF('1. Ordersheet'!AZ728=\"\",\"\",'1. Ordersheet'!AZ728)","v":""},{"$f":"IF('1. Ordersheet'!BA728=\"\",\"\",'1. Ordersheet'!BA728)","v":""},{"$f":"IF('1. Ordersheet'!BC728=\"\",\"\",'1. Ordersheet'!BC728)","v":""},{"$f":"IF('1. Ordersheet'!BD728=\"\",\"\",'1. Ordersheet'!BD728)","v":""},{"$f":"IF('1. Ordersheet'!BE728=\"\",\"\",'1. Ordersheet'!BE728)","v":""},{"$f":"IF('1. Ordersheet'!BF728=\"\",\"\",'1. Ordersheet'!BF728)","v":""},{"$f":"IF('1. Ordersheet'!BG728=\"\",\"\",'1. Ordersheet'!BG728)","v":"ZWO"},{"$f":"IF('1. Ordersheet'!BH728=\"\",\"\",'1. Ordersheet'!BH728)","v":""},{"$f":"IF('1. Ordersheet'!BI728=\"\",\"\",'1. Ordersheet'!BI728)","v":""},{"$f":"IF('1. Ordersheet'!BJ728=\"\",\"\",'1. Ordersheet'!BJ728)","v":""},{"$f":"IF('1. Ordersheet'!BK728=\"\",\"\",'1. Ordersheet'!BK728)","v":""},{"$f":"IF('1. Ordersheet'!BL728=\"\",\"\",'1. Ordersheet'!BL728)","v":""}]
[{"$f":"IF('1. Ordersheet'!F729=\"\",\"\",'1. Ordersheet'!F729)","v":""},{"$f":"IF('1. Ordersheet'!G729=\"\",\"\",'1. Ordersheet'!G729)","v":""},{"$f":"IF('1. Ordersheet'!H729=\"\",\"\",'1. Ordersheet'!H729)","v":""},{"$f":"IF('1. Ordersheet'!I729=\"\",\"\",'1. Ordersheet'!I729)","v":""},{"$f":"IF('1. Ordersheet'!J729=\"\",\"\",'1. Ordersheet'!J729)","v":""},{"$f":"IF('1. Ordersheet'!K729=\"\",\"\",'1. Ordersheet'!K729)","v":""},{"$f":"IF('1. Ordersheet'!L729=\"\",\"\",'1. Ordersheet'!L729)","v":""},{"$f":"IF('1. Ordersheet'!M729=\"\",\"\",'1. Ordersheet'!M729)","v":""},{"$f":"IF('1. Ordersheet'!N729=\"\",\"\",'1. Ordersheet'!N729)","v":""},{"$f":"IF('1. Ordersheet'!O729=\"\",\"\",'1. Ordersheet'!O729)","v":{"$error":"#N/A"}},{"$f":"IF('1. Ordersheet'!P729=\"\",\"\",'1. Ordersheet'!P729)","v":{"$error":"#N/A"}},{"$f":"IF('1. Ordersheet'!Q729=\"\",\"\",'1. Ordersheet'!Q729)","v":""},{"$f":"IF('1. Ordersheet'!R729=\"\",\"\",'1. Ordersheet'!R729)","v":""},{"$f":"IF('1. Ordersheet'!S729=\"\",\"\",'1. Ordersheet'!S729)","v":""},{"$f":"IF('1. Ordersheet'!V729=\"\",\"\",'1. Ordersheet'!V729)","v":""},{"$f":"IF('1. Ordersheet'!W729=\"\",\"\",'1. Ordersheet'!W729)","v":""},{"$f":"IF('1. Ordersheet'!X729=\"\",\"\",'1. Ordersheet'!X729)","v":""},{"$f":"IF('1. Ordersheet'!Y729=\"\",\"\",'1. Ordersheet'!Y729)","v":""},{"$f":"IF('1. Ordersheet'!Z729=\"\",\"\",'1. Ordersheet'!Z729)","v":""},{"$f":"IF('1. Ordersheet'!AA729=\"\",\"\",'1. Ordersheet'!AA729)","v":""},null,{"$f":"IF('1. Ordersheet'!AS729=\"\",\"\",'1. Ordersheet'!AS729)","v":""},{"$f":"IF('1. Ordersheet'!AT729=\"\",\"\",'1. Ordersheet'!AT729)","v":""},null,null,null,null,null,null,null,{"$f":"IF('1. Ordersheet'!AX729=\"\",\"\",'1. Ordersheet'!AX729)","v":""},{"$f":"IF('1. Ordersheet'!AY729=\"\",\"\",'1. Ordersheet'!AY729)","v":""},{"$f":"IF('1. Ordersheet'!AZ729=\"\",\"\",'1. Ordersheet'!AZ729)","v":""},{"$f":"IF('1. Ordersheet'!BA729=\"\",\"\",'1. Ordersheet'!BA729)","v":""},{"$f":"IF('1. Ordersheet'!BC729=\"\",\"\",'1. Ordersheet'!BC729)","v":""},{"$f":"IF('1. Ordersheet'!BD729=\"\",\"\",'1. Ordersheet'!BD729)","v":""},{"$f":"IF('1. Ordersheet'!BE729=\"\",\"\",'1. Ordersheet'!BE729)","v":""},{"$f":"IF('1. Ordersheet'!BF729=\"\",\"\",'1. Ordersheet'!BF729)","v":""},{"$f":"IF('1. Ordersheet'!BG729=\"\",\"\",'1. Ordersheet'!BG729)","v":"ZWO"},{"$f":"IF('1. Ordersheet'!BH729=\"\",\"\",'1. Ordersheet'!BH729)","v":""},{"$f":"IF('1. Ordersheet'!BI729=\"\",\"\",'1. Ordersheet'!BI729)","v":""},{"$f":"IF('1. Ordersheet'!BJ729=\"\",\"\",'1. Ordersheet'!BJ729)","v":""},{"$f":"IF('1. Ordersheet'!BK729=\"\",\"\",'1. Ordersheet'!BK729)","v":""},{"$f":"IF('1. Ordersheet'!BL729=\"\",\"\",'1. Ordersheet'!BL729)","v":""}]
[{"$f":"IF('1. Ordersheet'!F730=\"\",\"\",'1. Ordersheet'!F730)","v":""},{"$f":"IF('1. Ordersheet'!G730=\"\",\"\",'1. Ordersheet'!G730)","v":""},{"$f":"IF('1. Ordersheet'!H730=\"\",\"\",'1. Ordersheet'!H730)","v":""},{"$f":"IF('1. Ordersheet'!I730=\"\",\"\",'1. Ordersheet'!I730)","v":""},{"$f":"IF('1. Ordersheet'!J730=\"\",\"\",'1. Ordersheet'!J730)","v":""},{"$f":"IF('1. Ordersheet'!K730=\"\",\"\",'1. Ordersheet'!K730)","v":""},{"$f":"IF('1. Ordersheet'!L730=\"\",\"\",'1. Ordersheet'!L730)","v":""},{"$f":"IF('1. Ordersheet'!M730=\"\",\"\",'1. Ordersheet'!M730)","v":""},{"$f":"IF('1. Ordersheet'!N730=\"\",\"\",'1. Ordersheet'!N730)","v":""},{"$f":"IF('1. Ordersheet'!O730=\"\",\"\",'1. Ordersheet'!O730)","v":{"$error":"#N/A"}},{"$f":"IF('1. Ordersheet'!P730=\"\",\"\",'1. Ordersheet'!P730)","v":{"$error":"#N/A"}},{"$f":"IF('1. Ordersheet'!Q730=\"\",\"\",'1. Ordersheet'!Q730)","v":""},{"$f":"IF('1. Ordersheet'!R730=\"\",\"\",'1. Ordersheet'!R730)","v":""},{"$f":"IF('1. Ordersheet'!S730=\"\",\"\",'1. Ordersheet'!S730)","v":""},{"$f":"IF('1. Ordersheet'!V730=\"\",\"\",'1. Ordersheet'!V730)","v":""},{"$f":"IF('1. Ordersheet'!W730=\"\",\"\",'1. Ordersheet'!W730)","v":""},{"$f":"IF('1. Ordersheet'!X730=\"\",\"\",'1. Ordersheet'!X730)","v":""},{"$f":"IF('1. Ordersheet'!Y730=\"\",\"\",'1. Ordersheet'!Y730)","v":""},{"$f":"IF('1. Ordersheet'!Z730=\"\",\"\",'1. Ordersheet'!Z730)","v":""},{"$f":"IF('1. Ordersheet'!AA730=\"\",\"\",'1. Ordersheet'!AA730)","v":""},null,{"$f":"IF('1. Ordersheet'!AS730=\"\",\"\",'1. Ordersheet'!AS730)","v":""},{"$f":"IF('1. Ordersheet'!AT730=\"\",\"\",'1. Ordersheet'!AT730)","v":""},null,null,null,null,null,null,null,{"$f":"IF('1. Ordersheet'!AX730=\"\",\"\",'1. Ordersheet'!AX730)","v":""},{"$f":"IF('1. Ordersheet'!AY730=\"\",\"\",'1. Ordersheet'!AY730)","v":""},{"$f":"IF('1. Ordersheet'!AZ730=\"\",\"\",'1. Ordersheet'!AZ730)","v":""},{"$f":"IF('1. Ordersheet'!BA730=\"\",\"\",'1. Ordersheet'!BA730)","v":""},{"$f":"IF('1. Ordersheet'!BC730=\"\",\"\",'1. Ordersheet'!BC730)","v":""},{"$f":"IF('1. Ordersheet'!BD730=\"\",\"\",'1. Ordersheet'!BD730)","v":""},{"$f":"IF('1. Ordersheet'!BE730=\"\",\"\",'1. Ordersheet'!BE730)","v":""},{"$f":"IF('1. Ordersheet'!BF730=\"\",\"\",'1. Ordersheet'!BF730)","v":""},{"$f":"IF('1. Ordersheet'!BG730=\"\",\"\",'1. Ordersheet'!BG730)","v":"ZWO"},{"$f":"IF('1. Ordersheet'!BH730=\"\",\"\",'1. Ordersheet'!BH730)","v":""},{"$f":"IF('1. Ordersheet'!BI730=\"\",\"\",'1. Ordersheet'!BI730)","v":""},{"$f":"IF('1. Ordersheet'!BJ730=\"\",\"\",'1. Ordersheet'!BJ730)","v":""},{"$f":"IF('1. Ordersheet'!BK730=\"\",\"\",'1. Ordersheet'!BK730)","v":""},{"$f":"IF('1. Ordersheet'!BL730=\"\",\"\",'1. Ordersheet'!BL730)","v":""}]
[{"$f":"IF('1. Ordersheet'!F731=\"\",\"\",'1. Ordersheet'!F731)","v":""},{"$f":"IF('1. Ordersheet'!G731=\"\",\"\",'1. Ordersheet'!G731)","v":""},{"$f":"IF('1. Ordersheet'!H731=\"\",\"\",'1. Ordersheet'!H731)","v":""},{"$f":"IF('1. Ordersheet'!I731=\"\",\"\",'1. Ordersheet'!I731)","v":""},{"$f":"IF('1. Ordersheet'!J731=\"\",\"\",'1. Ordersheet'!J731)","v":""},{"$f":"IF('1. Ordersheet'!K731=\"\",\"\",'1. Ordersheet'!K731)","v":""},{"$f":"IF('1. Ordersheet'!L731=\"\",\"\",'1. Ordersheet'!L731)","v":""},{"$f":"IF('1. Ordersheet'!M731=\"\",\"\",'1. Ordersheet'!M731)","v":""},{"$f":"IF('1. Ordersheet'!N731=\"\",\"\",'1. Ordersheet'!N731)","v":""},{"$f":"IF('1. Ordersheet'!O731=\"\",\"\",'1. Ordersheet'!O731)","v":{"$error":"#N/A"}},{"$f":"IF('1. Ordersheet'!P731=\"\",\"\",'1. Ordersheet'!P731)","v":{"$error":"#N/A"}},{"$f":"IF('1. Ordersheet'!Q731=\"\",\"\",'1. Ordersheet'!Q731)","v":""},{"$f":"IF('1. Ordersheet'!R731=\"\",\"\",'1. Ordersheet'!R731)","v":""},{"$f":"IF('1. Ordersheet'!S731=\"\",\"\",'1. Ordersheet'!S731)","v":""},{"$f":"IF('1. Ordersheet'!V731=\"\",\"\",'1. Ordersheet'!V731)","v":""},{"$f":"IF('1. Ordersheet'!W731=\"\",\"\",'1. Ordersheet'!W731)","v":""},{"$f":"IF('1. Ordersheet'!X731=\"\",\"\",'1. Ordersheet'!X731)","v":""},{"$f":"IF('1. Ordersheet'!Y731=\"\",\"\",'1. Ordersheet'!Y731)","v":""},{"$f":"IF('1. Ordersheet'!Z731=\"\",\"\",'1. Ordersheet'!Z731)","v":""},{"$f":"IF('1. Ordersheet'!AA731=\"\",\"\",'1. Ordersheet'!AA731)","v":""},null,{"$f":"IF('1. Ordersheet'!AS731=\"\",\"\",'1. Ordersheet'!AS731)","v":""},{"$f":"IF('1. Ordersheet'!AT731=\"\",\"\",'1. Ordersheet'!AT731)","v":""},null,null,null,null,null,null,null,{"$f":"IF('1. Ordersheet'!AX731=\"\",\"\",'1. Ordersheet'!AX731)","v":""},{"$f":"IF('1. Ordersheet'!AY731=\"\",\"\",'1. Ordersheet'!AY731)","v":""},{"$f":"IF('1. Ordersheet'!AZ731=\"\",\"\",'1. Ordersheet'!AZ731)","v":""},{"$f":"IF('1. Ordersheet'!BA731=\"\",\"\",'1. Ordersheet'!BA731)","v":""},{"$f":"IF('1. Ordersheet'!BC731=\"\",\"\",'1. Ordersheet'!BC731)","v":""},{"$f":"IF('1. Ordersheet'!BD731=\"\",\"\",'1. Ordersheet'!BD731)","v":""},{"$f":"IF('1. Ordersheet'!BE731=\"\",\"\",'1. Ordersheet'!BE731)","v":""},{"$f":"IF('1. Ordersheet'!BF731=\"\",\"\",'1. Ordersheet'!BF731)","v":""},{"$f":"IF('1. Ordersheet'!BG731=\"\",\"\",'1. Ordersheet'!BG731)","v":"ZWO"},{"$f":"IF('1. Ordersheet'!BH731=\"\",\"\",'1. Ordersheet'!BH731)","v":""},{"$f":"IF('1. Ordersheet'!BI731=\"\",\"\",'1. Ordersheet'!BI731)","v":""},{"$f":"IF('1. Ordersheet'!BJ731=\"\",\"\",'1. Ordersheet'!BJ731)","v":""},{"$f":"IF('1. Ordersheet'!BK731=\"\",\"\",'1. Ordersheet'!BK731)","v":""},{"$f":"IF('1. Ordersheet'!BL731=\"\",\"\",'1. Ordersheet'!BL731)","v":""}]
[{"$f":"IF('1. Ordersheet'!F732=\"\",\"\",'1. Ordersheet'!F732)","v":""},{"$f":"IF('1. Ordersheet'!G732=\"\",\"\",'1. Ordersheet'!G732)","v":""},{"$f":"IF('1. Ordersheet'!H732=\"\",\"\",'1. Ordersheet'!H732)","v":""},{"$f":"IF('1. Ordersheet'!I732=\"\",\"\",'1. Ordersheet'!I732)","v":""},{"$f":"IF('1. Ordersheet'!J732=\"\",\"\",'1. Ordersheet'!J732)","v":""},{"$f":"IF('1. Ordersheet'!K732=\"\",\"\",'1. Ordersheet'!K732)","v":""},{"$f":"IF('1. Ordersheet'!L732=\"\",\"\",'1. Ordersheet'!L732)","v":""},{"$f":"IF('1. Ordersheet'!M732=\"\",\"\",'1. Ordersheet'!M732)","v":""},{"$f":"IF('1. Ordersheet'!N732=\"\",\"\",'1. Ordersheet'!N732)","v":""},{"$f":"IF('1. Ordersheet'!O732=\"\",\"\",'1. Ordersheet'!O732)","v":{"$error":"#N/A"}},{"$f":"IF('1. Ordersheet'!P732=\"\",\"\",'1. Ordersheet'!P732)","v":{"$error":"#N/A"}},{"$f":"IF('1. Ordersheet'!Q732=\"\",\"\",'1. Ordersheet'!Q732)","v":""},{"$f":"IF('1. Ordersheet'!R732=\"\",\"\",'1. Ordersheet'!R732)","v":""},{"$f":"IF('1. Ordersheet'!S732=\"\",\"\",'1. Ordersheet'!S732)","v":""},{"$f":"IF('1. Ordersheet'!V732=\"\",\"\",'1. Ordersheet'!V732)","v":""},{"$f":"IF('1. Ordersheet'!W732=\"\",\"\",'1. Ordersheet'!W732)","v":""},{"$f":"IF('1. Ordersheet'!X732=\"\",\"\",'1. Ordersheet'!X732)","v":""},{"$f":"IF('1. Ordersheet'!Y732=\"\",\"\",'1. Ordersheet'!Y732)","v":""},{"$f":"IF('1. Ordersheet'!Z732=\"\",\"\",'1. Ordersheet'!Z732)","v":""},{"$f":"IF('1. Ordersheet'!AA732=\"\",\"\",'1. Ordersheet'!AA732)","v":""},null,{"$f":"IF('1. Ordersheet'!AS732=\"\",\"\",'1. Ordersheet'!AS732)","v":""},{"$f":"IF('1. Ordersheet'!AT732=\"\",\"\",'1. Ordersheet'!AT732)","v":""},null,null,null,null,null,null,null,{"$f":"IF('1. Ordersheet'!AX732=\"\",\"\",'1. Ordersheet'!AX732)","v":""},{"$f":"IF('1. Ordersheet'!AY732=\"\",\"\",'1. Ordersheet'!AY732)","v":""},{"$f":"IF('1. Ordersheet'!AZ732=\"\",\"\",'1. Ordersheet'!AZ732)","v":""},{"$f":"IF('1. Ordersheet'!BA732=\"\",\"\",'1. Ordersheet'!BA732)","v":""},{"$f":"IF('1. Ordersheet'!BC732=\"\",\"\",'1. Ordersheet'!BC732)","v":""},{"$f":"IF('1. Ordersheet'!BD732=\"\",\"\",'1. Ordersheet'!BD732)","v":""},{"$f":"IF('1. Ordersheet'!BE732=\"\",\"\",'1. Ordersheet'!BE732)","v":""},{"$f":"IF('1. Ordersheet'!BF732=\"\",\"\",'1. Ordersheet'!BF732)","v":""},{"$f":"IF('1. Ordersheet'!BG732=\"\",\"\",'1. Ordersheet'!BG732)","v":"ZWO"},{"$f":"IF('1. Ordersheet'!BH732=\"\",\"\",'1. Ordersheet'!BH732)","v":""},{"$f":"IF('1. Ordersheet'!BI732=\"\",\"\",'1. Ordersheet'!BI732)","v":""},{"$f":"IF('1. Ordersheet'!BJ732=\"\",\"\",'1. Ordersheet'!BJ732)","v":""},{"$f":"IF('1. Ordersheet'!BK732=\"\",\"\",'1. Ordersheet'!BK732)","v":""},{"$f":"IF('1. Ordersheet'!BL732=\"\",\"\",'1. Ordersheet'!BL732)","v":""}]
[{"$f":"IF('1. Ordersheet'!F733=\"\",\"\",'1. Ordersheet'!F733)","v":""},{"$f":"IF('1. Ordersheet'!G733=\"\",\"\",'1. Ordersheet'!G733)","v":""},{"$f":"IF('1. Ordersheet'!H733=\"\",\"\",'1. Ordersheet'!H733)","v":""},{"$f":"IF('1. Ordersheet'!I733=\"\",\"\",'1. Ordersheet'!I733)","v":""},{"$f":"IF('1. Ordersheet'!J733=\"\",\"\",'1. Ordersheet'!J733)","v":""},{"$f":"IF('1. Ordersheet'!K733=\"\",\"\",'1. Ordersheet'!K733)","v":""},{"$f":"IF('1. Ordersheet'!L733=\"\",\"\",'1. Ordersheet'!L733)","v":""},{"$f":"IF('1. Ordersheet'!M733=\"\",\"\",'1. Ordersheet'!M733)","v":""},{"$f":"IF('1. Ordersheet'!N733=\"\",\"\",'1. Ordersheet'!N733)","v":""},{"$f":"IF('1. Ordersheet'!O733=\"\",\"\",'1. Ordersheet'!O733)","v":{"$error":"#N/A"}},{"$f":"IF('1. Ordersheet'!P733=\"\",\"\",'1. Ordersheet'!P733)","v":{"$error":"#N/A"}},{"$f":"IF('1. Ordersheet'!Q733=\"\",\"\",'1. Ordersheet'!Q733)","v":""},{"$f":"IF('1. Ordersheet'!R733=\"\",\"\",'1. Ordersheet'!R733)","v":""},{"$f":"IF('1. Ordersheet'!S733=\"\",\"\",'1. Ordersheet'!S733)","v":""},{"$f":"IF('1. Ordersheet'!V733=\"\",\"\",'1. Ordersheet'!V733)","v":""},{"$f":"IF('1. Ordersheet'!W733=\"\",\"\",'1. Ordersheet'!W733)","v":""},{"$f":"IF('1. Ordersheet'!X733=\"\",\"\",'1. Ordersheet'!X733)","v":""},{"$f":"IF('1. Ordersheet'!Y733=\"\",\"\",'1. Ordersheet'!Y733)","v":""},{"$f":"IF('1. Ordersheet'!Z733=\"\",\"\",'1. Ordersheet'!Z733)","v":""},{"$f":"IF('1. Ordersheet'!AA733=\"\",\"\",'1. Ordersheet'!AA733)","v":""},null,{"$f":"IF('1. Ordersheet'!AS733=\"\",\"\",'1. Ordersheet'!AS733)","v":""},{"$f":"IF('1. Ordersheet'!AT733=\"\",\"\",'1. Ordersheet'!AT733)","v":""},null,null,null,null,null,null,null,{"$f":"IF('1. Ordersheet'!AX733=\"\",\"\",'1. Ordersheet'!AX733)","v":""},{"$f":"IF('1. Ordersheet'!AY733=\"\",\"\",'1. Ordersheet'!AY733)","v":""},{"$f":"IF('1. Ordersheet'!AZ733=\"\",\"\",'1. Ordersheet'!AZ733)","v":""},{"$f":"IF('1. Ordersheet'!BA733=\"\",\"\",'1. Ordersheet'!BA733)","v":""},{"$f":"IF('1. Ordersheet'!BC733=\"\",\"\",'1. Ordersheet'!BC733)","v":""},{"$f":"IF('1. Ordersheet'!BD733=\"\",\"\",'1. Ordersheet'!BD733)","v":""},{"$f":"IF('1. Ordersheet'!BE733=\"\",\"\",'1. Ordersheet'!BE733)","v":""},{"$f":"IF('1. Ordersheet'!BF733=\"\",\"\",'1. Ordersheet'!BF733)","v":""},{"$f":"IF('1. Ordersheet'!BG733=\"\",\"\",'1. Ordersheet'!BG733)","v":"ZWO"},{"$f":"IF('1. Ordersheet'!BH733=\"\",\"\",'1. Ordersheet'!BH733)","v":""},{"$f":"IF('1. Ordersheet'!BI733=\"\",\"\",'1. Ordersheet'!BI733)","v":""},{"$f":"IF('1. Ordersheet'!BJ733=\"\",\"\",'1. Ordersheet'!BJ733)","v":""},{"$f":"IF('1. Ordersheet'!BK733=\"\",\"\",'1. Ordersheet'!BK733)","v":""},{"$f":"IF('1. Ordersheet'!BL733=\"\",\"\",'1. Ordersheet'!BL733)","v":""}]
[{"$f":"IF('1. Ordersheet'!F734=\"\",\"\",'1. Ordersheet'!F734)","v":""},{"$f":"IF('1. Ordersheet'!G734=\"\",\"\",'1. Ordersheet'!G734)","v":""},{"$f":"IF('1. Ordersheet'!H734=\"\",\"\",'1. Ordersheet'!H734)","v":""},{"$f":"IF('1. Ordersheet'!I734=\"\",\"\",'1. Ordersheet'!I734)","v":""},{"$f":"IF('1. Ordersheet'!J734=\"\",\"\",'1. Ordersheet'!J734)","v":""},{"$f":"IF('1. Ordersheet'!K734=\"\",\"\",'1. Ordersheet'!K734)","v":""},{"$f":"IF('1. Ordersheet'!L734=\"\",\"\",'1. Ordersheet'!L734)","v":""},{"$f":"IF('1. Ordersheet'!M734=\"\",\"\",'1. Ordersheet'!M734)","v":""},{"$f":"IF('1. Ordersheet'!N734=\"\",\"\",'1. Ordersheet'!N734)","v":""},{"$f":"IF('1. Ordersheet'!O734=\"\",\"\",'1. Ordersheet'!O734)","v":{"$error":"#N/A"}},{"$f":"IF('1. Ordersheet'!P734=\"\",\"\",'1. Ordersheet'!P734)","v":{"$error":"#N/A"}},{"$f":"IF('1. Ordersheet'!Q734=\"\",\"\",'1. Ordersheet'!Q734)","v":""},{"$f":"IF('1. Ordersheet'!R734=\"\",\"\",'1. Ordersheet'!R734)","v":""},{"$f":"IF('1. Ordersheet'!S734=\"\",\"\",'1. Ordersheet'!S734)","v":""},{"$f":"IF('1. Ordersheet'!V734=\"\",\"\",'1. Ordersheet'!V734)","v":""},{"$f":"IF('1. Ordersheet'!W734=\"\",\"\",'1. Ordersheet'!W734)","v":""},{"$f":"IF('1. Ordersheet'!X734=\"\",\"\",'1. Ordersheet'!X734)","v":""},{"$f":"IF('1. Ordersheet'!Y734=\"\",\"\",'1. Ordersheet'!Y734)","v":""},{"$f":"IF('1. Ordersheet'!Z734=\"\",\"\",'1. Ordersheet'!Z734)","v":""},{"$f":"IF('1. Ordersheet'!AA734=\"\",\"\",'1. Ordersheet'!AA734)","v":""},null,{"$f":"IF('1. Ordersheet'!AS734=\"\",\"\",'1. Ordersheet'!AS734)","v":""},{"$f":"IF('1. Ordersheet'!AT734=\"\",\"\",'1. Ordersheet'!AT734)","v":""},null,null,null,null,null,null,null,{"$f":"IF('1. Ordersheet'!AX734=\"\",\"\",'1. Ordersheet'!AX734)","v":""},{"$f":"IF('1. Ordersheet'!AY734=\"\",\"\",'1. Ordersheet'!AY734)","v":""},{"$f":"IF('1. Ordersheet'!AZ734=\"\",\"\",'1. Ordersheet'!AZ734)","v":""},{"$f":"IF('1. Ordersheet'!BA734=\"\",\"\",'1. Ordersheet'!BA734)","v":""},{"$f":"IF('1. Ordersheet'!BC734=\"\",\"\",'1. Ordersheet'!BC734)","v":""},{"$f":"IF('1. Ordersheet'!BD734=\"\",\"\",'1. Ordersheet'!BD734)","v":""},{"$f":"IF('1. Ordersheet'!BE734=\"\",\"\",'1. Ordersheet'!BE734)","v":""},{"$f":"IF('1. Ordersheet'!BF734=\"\",\"\",'1. Ordersheet'!BF734)","v":""},{"$f":"IF('1. Ordersheet'!BG734=\"\",\"\",'1. Ordersheet'!BG734)","v":"ZWO"},{"$f":"IF('1. Ordersheet'!BH734=\"\",\"\",'1. Ordersheet'!BH734)","v":""},{"$f":"IF('1. Ordersheet'!BI734=\"\",\"\",'1. Ordersheet'!BI734)","v":""},{"$f":"IF('1. Ordersheet'!BJ734=\"\",\"\",'1. Ordersheet'!BJ734)","v":""},{"$f":"IF('1. Ordersheet'!BK734=\"\",\"\",'1. Ordersheet'!BK734)","v":""},{"$f":"IF('1. Ordersheet'!BL734=\"\",\"\",'1. Ordersheet'!BL734)","v":""}]
[{"$f":"IF('1. Ordersheet'!F735=\"\",\"\",'1. Ordersheet'!F735)","v":""},{"$f":"IF('1. Ordersheet'!G735=\"\",\"\",'1. Ordersheet'!G735)","v":""},{"$f":"IF('1. Ordersheet'!H735=\"\",\"\",'1. Ordersheet'!H735)","v":""},{"$f":"IF('1. Ordersheet'!I735=\"\",\"\",'1. Ordersheet'!I735)","v":""},{"$f":"IF('1. Ordersheet'!J735=\"\",\"\",'1. Ordersheet'!J735)","v":""},{"$f":"IF('1. Ordersheet'!K735=\"\",\"\",'1. Ordersheet'!K735)","v":""},{"$f":"IF('1. Ordersheet'!L735=\"\",\"\",'1. Ordersheet'!L735)","v":""},{"$f":"IF('1. Ordersheet'!M735=\"\",\"\",'1. Ordersheet'!M735)","v":""},{"$f":"IF('1. Ordersheet'!N735=\"\",\"\",'1. Ordersheet'!N735)","v":""},{"$f":"IF('1. Ordersheet'!O735=\"\",\"\",'1. Ordersheet'!O735)","v":{"$error":"#N/A"}},{"$f":"IF('1. Ordersheet'!P735=\"\",\"\",'1. Ordersheet'!P735)","v":{"$error":"#N/A"}},{"$f":"IF('1. Ordersheet'!Q735=\"\",\"\",'1. Ordersheet'!Q735)","v":""},{"$f":"IF('1. Ordersheet'!R735=\"\",\"\",'1. Ordersheet'!R735)","v":""},{"$f":"IF('1. Ordersheet'!S735=\"\",\"\",'1. Ordersheet'!S735)","v":""},{"$f":"IF('1. Ordersheet'!V735=\"\",\"\",'1. Ordersheet'!V735)","v":""},{"$f":"IF('1. Ordersheet'!W735=\"\",\"\",'1. Ordersheet'!W735)","v":""},{"$f":"IF('1. Ordersheet'!X735=\"\",\"\",'1. Ordersheet'!X735)","v":""},{"$f":"IF('1. Ordersheet'!Y735=\"\",\"\",'1. Ordersheet'!Y735)","v":""},{"$f":"IF('1. Ordersheet'!Z735=\"\",\"\",'1. Ordersheet'!Z735)","v":""},{"$f":"IF('1. Ordersheet'!AA735=\"\",\"\",'1. Ordersheet'!AA735)","v":""},null,{"$f":"IF('1. Ordersheet'!AS735=\"\",\"\",'1. Ordersheet'!AS735)","v":""},{"$f":"IF('1. Ordersheet'!AT735=\"\",\"\",'1. Ordersheet'!AT735)","v":""},null,null,null,null,null,null,null,{"$f":"IF('1. Ordersheet'!AX735=\"\",\"\",'1. Ordersheet'!AX735)","v":""},{"$f":"IF('1. Ordersheet'!AY735=\"\",\"\",'1. Ordersheet'!AY735)","v":""},{"$f":"IF('1. Ordersheet'!AZ735=\"\",\"\",'1. Ordersheet'!AZ735)","v":""},{"$f":"IF('1. Ordersheet'!BA735=\"\",\"\",'1. Ordersheet'!BA735)","v":""},{"$f":"IF('1. Ordersheet'!BC735=\"\",\"\",'1. Ordersheet'!BC735)","v":""},{"$f":"IF('1. Ordersheet'!BD735=\"\",\"\",'1. Ordersheet'!BD735)","v":""},{"$f":"IF('1. Ordersheet'!BE735=\"\",\"\",'1. Ordersheet'!BE735)","v":""},{"$f":"IF('1. Ordersheet'!BF735=\"\",\"\",'1. Ordersheet'!BF735)","v":""},{"$f":"IF('1. Ordersheet'!BG735=\"\",\"\",'1. Ordersheet'!BG735)","v":"ZWO"},{"$f":"IF('1. Ordersheet'!BH735=\"\",\"\",'1. Ordersheet'!BH735)","v":""},{"$f":"IF('1. Ordersheet'!BI735=\"\",\"\",'1. Ordersheet'!BI735)","v":""},{"$f":"IF('1. Ordersheet'!BJ735=\"\",\"\",'1. Ordersheet'!BJ735)","v":""},{"$f":"IF('1. Ordersheet'!BK735=\"\",\"\",'1. Ordersheet'!BK735)","v":""},{"$f":"IF('1. Ordersheet'!BL735=\"\",\"\",'1. Ordersheet'!BL735)","v":""}]
[{"$f":"IF('1. Ordersheet'!F736=\"\",\"\",'1. Ordersheet'!F736)","v":""},{"$f":"IF('1. Ordersheet'!G736=\"\",\"\",'1. Ordersheet'!G736)","v":""},{"$f":"IF('1. Ordersheet'!H736=\"\",\"\",'1. Ordersheet'!H736)","v":""},{"$f":"IF('1. Ordersheet'!I736=\"\",\"\",'1. Ordersheet'!I736)","v":""},{"$f":"IF('1. Ordersheet'!J736=\"\",\"\",'1. Ordersheet'!J736)","v":""},{"$f":"IF('1. Ordersheet'!K736=\"\",\"\",'1. Ordersheet'!K736)","v":""},{"$f":"IF('1. Ordersheet'!L736=\"\",\"\",'1. Ordersheet'!L736)","v":""},{"$f":"IF('1. Ordersheet'!M736=\"\",\"\",'1. Ordersheet'!M736)","v":""},{"$f":"IF('1. Ordersheet'!N736=\"\",\"\",'1. Ordersheet'!N736)","v":""},{"$f":"IF('1. Ordersheet'!O736=\"\",\"\",'1. Ordersheet'!O736)","v":{"$error":"#N/A"}},{"$f":"IF('1. Ordersheet'!P736=\"\",\"\",'1. Ordersheet'!P736)","v":{"$error":"#N/A"}},{"$f":"IF('1. Ordersheet'!Q736=\"\",\"\",'1. Ordersheet'!Q736)","v":""},{"$f":"IF('1. Ordersheet'!R736=\"\",\"\",'1. Ordersheet'!R736)","v":""},{"$f":"IF('1. Ordersheet'!S736=\"\",\"\",'1. Ordersheet'!S736)","v":""},{"$f":"IF('1. Ordersheet'!V736=\"\",\"\",'1. Ordersheet'!V736)","v":""},{"$f":"IF('1. Ordersheet'!W736=\"\",\"\",'1. Ordersheet'!W736)","v":""},{"$f":"IF('1. Ordersheet'!X736=\"\",\"\",'1. Ordersheet'!X736)","v":""},{"$f":"IF('1. Ordersheet'!Y736=\"\",\"\",'1. Ordersheet'!Y736)","v":""},{"$f":"IF('1. Ordersheet'!Z736=\"\",\"\",'1. Ordersheet'!Z736)","v":""},{"$f":"IF('1. Ordersheet'!AA736=\"\",\"\",'1. Ordersheet'!AA736)","v":""},null,{"$f":"IF('1. Ordersheet'!AS736=\"\",\"\",'1. Ordersheet'!AS736)","v":""},{"$f":"IF('1. Ordersheet'!AT736=\"\",\"\",'1. Ordersheet'!AT736)","v":""},null,null,null,null,null,null,null,{"$f":"IF('1. Ordersheet'!AX736=\"\",\"\",'1. Ordersheet'!AX736)","v":""},{"$f":"IF('1. Ordersheet'!AY736=\"\",\"\",'1. Ordersheet'!AY736)","v":""},{"$f":"IF('1. Ordersheet'!AZ736=\"\",\"\",'1. Ordersheet'!AZ736)","v":""},{"$f":"IF('1. Ordersheet'!BA736=\"\",\"\",'1. Ordersheet'!BA736)","v":""},{"$f":"IF('1. Ordersheet'!BC736=\"\",\"\",'1. Ordersheet'!BC736)","v":""},{"$f":"IF('1. Ordersheet'!BD736=\"\",\"\",'1. Ordersheet'!BD736)","v":""},{"$f":"IF('1. Ordersheet'!BE736=\"\",\"\",'1. Ordersheet'!BE736)","v":""},{"$f":"IF('1. Ordersheet'!BF736=\"\",\"\",'1. Ordersheet'!BF736)","v":""},{"$f":"IF('1. Ordersheet'!BG736=\"\",\"\",'1. Ordersheet'!BG736)","v":"ZWO"},{"$f":"IF('1. Ordersheet'!BH736=\"\",\"\",'1. Ordersheet'!BH736)","v":""},{"$f":"IF('1. Ordersheet'!BI736=\"\",\"\",'1. Ordersheet'!BI736)","v":""},{"$f":"IF('1. Ordersheet'!BJ736=\"\",\"\",'1. Ordersheet'!BJ736)","v":""},{"$f":"IF('1. Ordersheet'!BK736=\"\",\"\",'1. Ordersheet'!BK736)","v":""},{"$f":"IF('1. Ordersheet'!BL736=\"\",\"\",'1. Ordersheet'!BL736)","v":""}]
[{"$f":"IF('1. Ordersheet'!F737=\"\",\"\",'1. Ordersheet'!F737)","v":""},{"$f":"IF('1. Ordersheet'!G737=\"\",\"\",'1. Ordersheet'!G737)","v":""},{"$f":"IF('1. Ordersheet'!H737=\"\",\"\",'1. Ordersheet'!H737)","v":""},{"$f":"IF('1. Ordersheet'!I737=\"\",\"\",'1. Ordersheet'!I737)","v":""},{"$f":"IF('1. Ordersheet'!J737=\"\",\"\",'1. Ordersheet'!J737)","v":""},{"$f":"IF('1. Ordersheet'!K737=\"\",\"\",'1. Ordersheet'!K737)","v":""},{"$f":"IF('1. Ordersheet'!L737=\"\",\"\",'1. Ordersheet'!L737)","v":""},{"$f":"IF('1. Ordersheet'!M737=\"\",\"\",'1. Ordersheet'!M737)","v":""},{"$f":"IF('1. Ordersheet'!N737=\"\",\"\",'1. Ordersheet'!N737)","v":""},{"$f":"IF('1. Ordersheet'!O737=\"\",\"\",'1. Ordersheet'!O737)","v":{"$error":"#N/A"}},{"$f":"IF('1. Ordersheet'!P737=\"\",\"\",'1. Ordersheet'!P737)","v":{"$error":"#N/A"}},{"$f":"IF('1. Ordersheet'!Q737=\"\",\"\",'1. Ordersheet'!Q737)","v":""},{"$f":"IF('1. Ordersheet'!R737=\"\",\"\",'1. Ordersheet'!R737)","v":""},{"$f":"IF('1. Ordersheet'!S737=\"\",\"\",'1. Ordersheet'!S737)","v":""},{"$f":"IF('1. Ordersheet'!V737=\"\",\"\",'1. Ordersheet'!V737)","v":""},{"$f":"IF('1. Ordersheet'!W737=\"\",\"\",'1. Ordersheet'!W737)","v":""},{"$f":"IF('1. Ordersheet'!X737=\"\",\"\",'1. Ordersheet'!X737)","v":""},{"$f":"IF('1. Ordersheet'!Y737=\"\",\"\",'1. Ordersheet'!Y737)","v":""},{"$f":"IF('1. Ordersheet'!Z737=\"\",\"\",'1. Ordersheet'!Z737)","v":""},{"$f":"IF('1. Ordersheet'!AA737=\"\",\"\",'1. Ordersheet'!AA737)","v":""},null,{"$f":"IF('1. Ordersheet'!AS737=\"\",\"\",'1. Ordersheet'!AS737)","v":""},{"$f":"IF('1. Ordersheet'!AT737=\"\",\"\",'1. Ordersheet'!AT737)","v":""},null,null,null,null,null,null,null,{"$f":"IF('1. Ordersheet'!AX737=\"\",\"\",'1. Ordersheet'!AX737)","v":""},{"$f":"IF('1. Ordersheet'!AY737=\"\",\"\",'1. Ordersheet'!AY737)","v":""},{"$f":"IF('1. Ordersheet'!AZ737=\"\",\"\",'1. Ordersheet'!AZ737)","v":""},{"$f":"IF('1. Ordersheet'!BA737=\"\",\"\",'1. Ordersheet'!BA737)","v":""},{"$f":"IF('1. Ordersheet'!BC737=\"\",\"\",'1. Ordersheet'!BC737)","v":""},{"$f":"IF('1. Ordersheet'!BD737=\"\",\"\",'1. Ordersheet'!BD737)","v":""},{"$f":"IF('1. Ordersheet'!BE737=\"\",\"\",'1. Ordersheet'!BE737)","v":""},{"$f":"IF('1. Ordersheet'!BF737=\"\",\"\",'1. Ordersheet'!BF737)","v":""},{"$f":"IF('1. Ordersheet'!BG737=\"\",\"\",'1. Ordersheet'!BG737)","v":"ZWO"},{"$f":"IF('1. Ordersheet'!BH737=\"\",\"\",'1. Ordersheet'!BH737)","v":""},{"$f":"IF('1. Ordersheet'!BI737=\"\",\"\",'1. Ordersheet'!BI737)","v":""},{"$f":"IF('1. Ordersheet'!BJ737=\"\",\"\",'1. Ordersheet'!BJ737)","v":""},{"$f":"IF('1. Ordersheet'!BK737=\"\",\"\",'1. Ordersheet'!BK737)","v":""},{"$f":"IF('1. Ordersheet'!BL737=\"\",\"\",'1. Ordersheet'!BL737)","v":""}]
[{"$f":"IF('1. Ordersheet'!F738=\"\",\"\",'1. Ordersheet'!F738)","v":""},{"$f":"IF('1. Ordersheet'!G738=\"\",\"\",'1. Ordersheet'!G738)","v":""},{"$f":"IF('1. Ordersheet'!H738=\"\",\"\",'1. Ordersheet'!H738)","v":""},{"$f":"IF('1. Ordersheet'!I738=\"\",\"\",'1. Ordersheet'!I738)","v":""},{"$f":"IF('1. Ordersheet'!J738=\"\",\"\",'1. Ordersheet'!J738)","v":""},{"$f":"IF('1. Ordersheet'!K738=\"\",\"\",'1. Ordersheet'!K738)","v":""},{"$f":"IF('1. Ordersheet'!L738=\"\",\"\",'1. Ordersheet'!L738)","v":""},{"$f":"IF('1. Ordersheet'!M738=\"\",\"\",'1. Ordersheet'!M738)","v":""},{"$f":"IF('1. Ordersheet'!N738=\"\",\"\",'1. Ordersheet'!N738)","v":""},{"$f":"IF('1. Ordersheet'!O738=\"\",\"\",'1. Ordersheet'!O738)","v":{"$error":"#N/A"}},{"$f":"IF('1. Ordersheet'!P738=\"\",\"\",'1. Ordersheet'!P738)","v":{"$error":"#N/A"}},{"$f":"IF('1. Ordersheet'!Q738=\"\",\"\",'1. Ordersheet'!Q738)","v":""},{"$f":"IF('1. Ordersheet'!R738=\"\",\"\",'1. Ordersheet'!R738)","v":""},{"$f":"IF('1. Ordersheet'!S738=\"\",\"\",'1. Ordersheet'!S738)","v":""},{"$f":"IF('1. Ordersheet'!V738=\"\",\"\",'1. Ordersheet'!V738)","v":""},{"$f":"IF('1. Ordersheet'!W738=\"\",\"\",'1. Ordersheet'!W738)","v":""},{"$f":"IF('1. Ordersheet'!X738=\"\",\"\",'1. Ordersheet'!X738)","v":""},{"$f":"IF('1. Ordersheet'!Y738=\"\",\"\",'1. Ordersheet'!Y738)","v":""},{"$f":"IF('1. Ordersheet'!Z738=\"\",\"\",'1. Ordersheet'!Z738)","v":""},{"$f":"IF('1. Ordersheet'!AA738=\"\",\"\",'1. Ordersheet'!AA738)","v":""},null,{"$f":"IF('1. Ordersheet'!AS738=\"\",\"\",'1. Ordersheet'!AS738)","v":""},{"$f":"IF('1. Ordersheet'!AT738=\"\",\"\",'1. Ordersheet'!AT738)","v":""},null,null,null,null,null,null,null,{"$f":"IF('1. Ordersheet'!AX738=\"\",\"\",'1. Ordersheet'!AX738)","v":""},{"$f":"IF('1. Ordersheet'!AY738=\"\",\"\",'1. Ordersheet'!AY738)","v":""},{"$f":"IF('1. Ordersheet'!AZ738=\"\",\"\",'1. Ordersheet'!AZ738)","v":""},{"$f":"IF('1. Ordersheet'!BA738=\"\",\"\",'1. Ordersheet'!BA738)","v":""},{"$f":"IF('1. Ordersheet'!BC738=\"\",\"\",'1. Ordersheet'!BC738)","v":""},{"$f":"IF('1. Ordersheet'!BD738=\"\",\"\",'1. Ordersheet'!BD738)","v":""},{"$f":"IF('1. Ordersheet'!BE738=\"\",\"\",'1. Ordersheet'!BE738)","v":""},{"$f":"IF('1. Ordersheet'!BF738=\"\",\"\",'1. Ordersheet'!BF738)","v":""},{"$f":"IF('1. Ordersheet'!BG738=\"\",\"\",'1. Ordersheet'!BG738)","v":"ZWO"},{"$f":"IF('1. Ordersheet'!BH738=\"\",\"\",'1. Ordersheet'!BH738)","v":""},{"$f":"IF('1. Ordersheet'!BI738=\"\",\"\",'1. Ordersheet'!BI738)","v":""},{"$f":"IF('1. Ordersheet'!BJ738=\"\",\"\",'1. Ordersheet'!BJ738)","v":""},{"$f":"IF('1. Ordersheet'!BK738=\"\",\"\",'1. Ordersheet'!BK738)","v":""},{"$f":"IF('1. Ordersheet'!BL738=\"\",\"\",'1. Ordersheet'!BL738)","v":""}]
[{"$f":"IF('1. Ordersheet'!F739=\"\",\"\",'1. Ordersheet'!F739)","v":""},{"$f":"IF('1. Ordersheet'!G739=\"\",\"\",'1. Ordersheet'!G739)","v":""},{"$f":"IF('1. Ordersheet'!H739=\"\",\"\",'1. Ordersheet'!H739)","v":""},{"$f":"IF('1. Ordersheet'!I739=\"\",\"\",'1. Ordersheet'!I739)","v":""},{"$f":"IF('1. Ordersheet'!J739=\"\",\"\",'1. Ordersheet'!J739)","v":""},{"$f":"IF('1. Ordersheet'!K739=\"\",\"\",'1. Ordersheet'!K739)","v":""},{"$f":"IF('1. Ordersheet'!L739=\"\",\"\",'1. Ordersheet'!L739)","v":""},{"$f":"IF('1. Ordersheet'!M739=\"\",\"\",'1. Ordersheet'!M739)","v":""},{"$f":"IF('1. Ordersheet'!N739=\"\",\"\",'1. Ordersheet'!N739)","v":""},{"$f":"IF('1. Ordersheet'!O739=\"\",\"\",'1. Ordersheet'!O739)","v":{"$error":"#N/A"}},{"$f":"IF('1. Ordersheet'!P739=\"\",\"\",'1. Ordersheet'!P739)","v":{"$error":"#N/A"}},{"$f":"IF('1. Ordersheet'!Q739=\"\",\"\",'1. Ordersheet'!Q739)","v":""},{"$f":"IF('1. Ordersheet'!R739=\"\",\"\",'1. Ordersheet'!R739)","v":""},{"$f":"IF('1. Ordersheet'!S739=\"\",\"\",'1. Ordersheet'!S739)","v":""},{"$f":"IF('1. Ordersheet'!V739=\"\",\"\",'1. Ordersheet'!V739)","v":""},{"$f":"IF('1. Ordersheet'!W739=\"\",\"\",'1. Ordersheet'!W739)","v":""},{"$f":"IF('1. Ordersheet'!X739=\"\",\"\",'1. Ordersheet'!X739)","v":""},{"$f":"IF('1. Ordersheet'!Y739=\"\",\"\",'1. Ordersheet'!Y739)","v":""},{"$f":"IF('1. Ordersheet'!Z739=\"\",\"\",'1. Ordersheet'!Z739)","v":""},{"$f":"IF('1. Ordersheet'!AA739=\"\",\"\",'1. Ordersheet'!AA739)","v":""},null,{"$f":"IF('1. Ordersheet'!AS739=\"\",\"\",'1. Ordersheet'!AS739)","v":""},{"$f":"IF('1. Ordersheet'!AT739=\"\",\"\",'1. Ordersheet'!AT739)","v":""},null,null,null,null,null,null,null,{"$f":"IF('1. Ordersheet'!AX739=\"\",\"\",'1. Ordersheet'!AX739)","v":""},{"$f":"IF('1. Ordersheet'!AY739=\"\",\"\",'1. Ordersheet'!AY739)","v":""},{"$f":"IF('1. Ordersheet'!AZ739=\"\",\"\",'1. Ordersheet'!AZ739)","v":""},{"$f":"IF('1. Ordersheet'!BA739=\"\",\"\",'1. Ordersheet'!BA739)","v":""},{"$f":"IF('1. Ordersheet'!BC739=\"\",\"\",'1. Ordersheet'!BC739)","v":""},{"$f":"IF('1. Ordersheet'!BD739=\"\",\"\",'1. Ordersheet'!BD739)","v":""},{"$f":"IF('1. Ordersheet'!BE739=\"\",\"\",'1. Ordersheet'!BE739)","v":""},{"$f":"IF('1. Ordersheet'!BF739=\"\",\"\",'1. Ordersheet'!BF739)","v":""},{"$f":"IF('1. Ordersheet'!BG739=\"\",\"\",'1. Ordersheet'!BG739)","v":"ZWO"},{"$f":"IF('1. Ordersheet'!BH739=\"\",\"\",'1. Ordersheet'!BH739)","v":""},{"$f":"IF('1. Ordersheet'!BI739=\"\",\"\",'1. Ordersheet'!BI739)","v":""},{"$f":"IF('1. Ordersheet'!BJ739=\"\",\"\",'1. Ordersheet'!BJ739)","v":""},{"$f":"IF('1. Ordersheet'!BK739=\"\",\"\",'1. Ordersheet'!BK739)","v":""},{"$f":"IF('1. Ordersheet'!BL739=\"\",\"\",'1. Ordersheet'!BL739)","v":""}]
[{"$f":"IF('1. Ordersheet'!F740=\"\",\"\",'1. Ordersheet'!F740)","v":""},{"$f":"IF('1. Ordersheet'!G740=\"\",\"\",'1. Ordersheet'!G740)","v":""},{"$f":"IF('1. Ordersheet'!H740=\"\",\"\",'1. Ordersheet'!H740)","v":""},{"$f":"IF('1. Ordersheet'!I740=\"\",\"\",'1. Ordersheet'!I740)","v":""},{"$f":"IF('1. Ordersheet'!J740=\"\",\"\",'1. Ordersheet'!J740)","v":""},{"$f":"IF('1. Ordersheet'!K740=\"\",\"\",'1. Ordersheet'!K740)","v":""},{"$f":"IF('1. Ordersheet'!L740=\"\",\"\",'1. Ordersheet'!L740)","v":""},{"$f":"IF('1. Ordersheet'!M740=\"\",\"\",'1. Ordersheet'!M740)","v":""},{"$f":"IF('1. Ordersheet'!N740=\"\",\"\",'1. Ordersheet'!N740)","v":""},{"$f":"IF('1. Ordersheet'!O740=\"\",\"\",'1. Ordersheet'!O740)","v":{"$error":"#N/A"}},{"$f":"IF('1. Ordersheet'!P740=\"\",\"\",'1. Ordersheet'!P740)","v":{"$error":"#N/A"}},{"$f":"IF('1. Ordersheet'!Q740=\"\",\"\",'1. Ordersheet'!Q740)","v":""},{"$f":"IF('1. Ordersheet'!R740=\"\",\"\",'1. Ordersheet'!R740)","v":""},{"$f":"IF('1. Ordersheet'!S740=\"\",\"\",'1. Ordersheet'!S740)","v":""},{"$f":"IF('1. Ordersheet'!V740=\"\",\"\",'1. Ordersheet'!V740)","v":""},{"$f":"IF('1. Ordersheet'!W740=\"\",\"\",'1. Ordersheet'!W740)","v":""},{"$f":"IF('1. Ordersheet'!X740=\"\",\"\",'1. Ordersheet'!X740)","v":""},{"$f":"IF('1. Ordersheet'!Y740=\"\",\"\",'1. Ordersheet'!Y740)","v":""},{"$f":"IF('1. Ordersheet'!Z740=\"\",\"\",'1. Ordersheet'!Z740)","v":""},{"$f":"IF('1. Ordersheet'!AA740=\"\",\"\",'1. Ordersheet'!AA740)","v":""},null,{"$f":"IF('1. Ordersheet'!AS740=\"\",\"\",'1. Ordersheet'!AS740)","v":""},{"$f":"IF('1. Ordersheet'!AT740=\"\",\"\",'1. Ordersheet'!AT740)","v":""},null,null,null,null,null,null,null,{"$f":"IF('1. Ordersheet'!AX740=\"\",\"\",'1. Ordersheet'!AX740)","v":""},{"$f":"IF('1. Ordersheet'!AY740=\"\",\"\",'1. Ordersheet'!AY740)","v":""},{"$f":"IF('1. Ordersheet'!AZ740=\"\",\"\",'1. Ordersheet'!AZ740)","v":""},{"$f":"IF('1. Ordersheet'!BA740=\"\",\"\",'1. Ordersheet'!BA740)","v":""},{"$f":"IF('1. Ordersheet'!BC740=\"\",\"\",'1. Ordersheet'!BC740)","v":""},{"$f":"IF('1. Ordersheet'!BD740=\"\",\"\",'1. Ordersheet'!BD740)","v":""},{"$f":"IF('1. Ordersheet'!BE740=\"\",\"\",'1. Ordersheet'!BE740)","v":""},{"$f":"IF('1. Ordersheet'!BF740=\"\",\"\",'1. Ordersheet'!BF740)","v":""},{"$f":"IF('1. Ordersheet'!BG740=\"\",\"\",'1. Ordersheet'!BG740)","v":"ZWO"},{"$f":"IF('1. Ordersheet'!BH740=\"\",\"\",'1. Ordersheet'!BH740)","v":""},{"$f":"IF('1. Ordersheet'!BI740=\"\",\"\",'1. Ordersheet'!BI740)","v":""},{"$f":"IF('1. Ordersheet'!BJ740=\"\",\"\",'1. Ordersheet'!BJ740)","v":""},{"$f":"IF('1. Ordersheet'!BK740=\"\",\"\",'1. Ordersheet'!BK740)","v":""},{"$f":"IF('1. Ordersheet'!BL740=\"\",\"\",'1. Ordersheet'!BL740)","v":""}]
[{"$f":"IF('1. Ordersheet'!F741=\"\",\"\",'1. Ordersheet'!F741)","v":""},{"$f":"IF('1. Ordersheet'!G741=\"\",\"\",'1. Ordersheet'!G741)","v":""},{"$f":"IF('1. Ordersheet'!H741=\"\",\"\",'1. Ordersheet'!H741)","v":""},{"$f":"IF('1. Ordersheet'!I741=\"\",\"\",'1. Ordersheet'!I741)","v":""},{"$f":"IF('1. Ordersheet'!J741=\"\",\"\",'1. Ordersheet'!J741)","v":""},{"$f":"IF('1. Ordersheet'!K741=\"\",\"\",'1. Ordersheet'!K741)","v":""},{"$f":"IF('1. Ordersheet'!L741=\"\",\"\",'1. Ordersheet'!L741)","v":""},{"$f":"IF('1. Ordersheet'!M741=\"\",\"\",'1. Ordersheet'!M741)","v":""},{"$f":"IF('1. Ordersheet'!N741=\"\",\"\",'1. Ordersheet'!N741)","v":""},{"$f":"IF('1. Ordersheet'!O741=\"\",\"\",'1. Ordersheet'!O741)","v":{"$error":"#N/A"}},{"$f":"IF('1. Ordersheet'!P741=\"\",\"\",'1. Ordersheet'!P741)","v":{"$error":"#N/A"}},{"$f":"IF('1. Ordersheet'!Q741=\"\",\"\",'1. Ordersheet'!Q741)","v":""},{"$f":"IF('1. Ordersheet'!R741=\"\",\"\",'1. Ordersheet'!R741)","v":""},{"$f":"IF('1. Ordersheet'!S741=\"\",\"\",'1. Ordersheet'!S741)","v":""},{"$f":"IF('1. Ordersheet'!V741=\"\",\"\",'1. Ordersheet'!V741)","v":""},{"$f":"IF('1. Ordersheet'!W741=\"\",\"\",'1. Ordersheet'!W741)","v":""},{"$f":"IF('1. Ordersheet'!X741=\"\",\"\",'1. Ordersheet'!X741)","v":""},{"$f":"IF('1. Ordersheet'!Y741=\"\",\"\",'1. Ordersheet'!Y741)","v":""},{"$f":"IF('1. Ordersheet'!Z741=\"\",\"\",'1. Ordersheet'!Z741)","v":""},{"$f":"IF('1. Ordersheet'!AA741=\"\",\"\",'1. Ordersheet'!AA741)","v":""},null,{"$f":"IF('1. Ordersheet'!AS741=\"\",\"\",'1. Ordersheet'!AS741)","v":""},{"$f":"IF('1. Ordersheet'!AT741=\"\",\"\",'1. Ordersheet'!AT741)","v":""},null,null,null,null,null,null,null,{"$f":"IF('1. Ordersheet'!AX741=\"\",\"\",'1. Ordersheet'!AX741)","v":""},{"$f":"IF('1. Ordersheet'!AY741=\"\",\"\",'1. Ordersheet'!AY741)","v":""},{"$f":"IF('1. Ordersheet'!AZ741=\"\",\"\",'1. Ordersheet'!AZ741)","v":""},{"$f":"IF('1. Ordersheet'!BA741=\"\",\"\",'1. Ordersheet'!BA741)","v":""},{"$f":"IF('1. Ordersheet'!BC741=\"\",\"\",'1. Ordersheet'!BC741)","v":""},{"$f":"IF('1. Ordersheet'!BD741=\"\",\"\",'1. Ordersheet'!BD741)","v":""},{"$f":"IF('1. Ordersheet'!BE741=\"\",\"\",'1. Ordersheet'!BE741)","v":""},{"$f":"IF('1. Ordersheet'!BF741=\"\",\"\",'1. Ordersheet'!BF741)","v":""},{"$f":"IF('1. Ordersheet'!BG741=\"\",\"\",'1. Ordersheet'!BG741)","v":"ZWO"},{"$f":"IF('1. Ordersheet'!BH741=\"\",\"\",'1. Ordersheet'!BH741)","v":""},{"$f":"IF('1. Ordersheet'!BI741=\"\",\"\",'1. Ordersheet'!BI741)","v":""},{"$f":"IF('1. Ordersheet'!BJ741=\"\",\"\",'1. Ordersheet'!BJ741)","v":""},{"$f":"IF('1. Ordersheet'!BK741=\"\",\"\",'1. Ordersheet'!BK741)","v":""},{"$f":"IF('1. Ordersheet'!BL741=\"\",\"\",'1. Ordersheet'!BL741)","v":""}]
[{"$f":"IF('1. Ordersheet'!F742=\"\",\"\",'1. Ordersheet'!F742)","v":""},{"$f":"IF('1. Ordersheet'!G742=\"\",\"\",'1. Ordersheet'!G742)","v":""},{"$f":"IF('1. Ordersheet'!H742=\"\",\"\",'1. Ordersheet'!H742)","v":""},{"$f":"IF('1. Ordersheet'!I742=\"\",\"\",'1. Ordersheet'!I742)","v":""},{"$f":"IF('1. Ordersheet'!J742=\"\",\"\",'1. Ordersheet'!J742)","v":""},{"$f":"IF('1. Ordersheet'!K742=\"\",\"\",'1. Ordersheet'!K742)","v":""},{"$f":"IF('1. Ordersheet'!L742=\"\",\"\",'1. Ordersheet'!L742)","v":""},{"$f":"IF('1. Ordersheet'!M742=\"\",\"\",'1. Ordersheet'!M742)","v":""},{"$f":"IF('1. Ordersheet'!N742=\"\",\"\",'1. Ordersheet'!N742)","v":""},{"$f":"IF('1. Ordersheet'!O742=\"\",\"\",'1. Ordersheet'!O742)","v":{"$error":"#N/A"}},{"$f":"IF('1. Ordersheet'!P742=\"\",\"\",'1. Ordersheet'!P742)","v":{"$error":"#N/A"}},{"$f":"IF('1. Ordersheet'!Q742=\"\",\"\",'1. Ordersheet'!Q742)","v":""},{"$f":"IF('1. Ordersheet'!R742=\"\",\"\",'1. Ordersheet'!R742)","v":""},{"$f":"IF('1. Ordersheet'!S742=\"\",\"\",'1. Ordersheet'!S742)","v":""},{"$f":"IF('1. Ordersheet'!V742=\"\",\"\",'1. Ordersheet'!V742)","v":""},{"$f":"IF('1. Ordersheet'!W742=\"\",\"\",'1. Ordersheet'!W742)","v":""},{"$f":"IF('1. Ordersheet'!X742=\"\",\"\",'1. Ordersheet'!X742)","v":""},{"$f":"IF('1. Ordersheet'!Y742=\"\",\"\",'1. Ordersheet'!Y742)","v":""},{"$f":"IF('1. Ordersheet'!Z742=\"\",\"\",'1. Ordersheet'!Z742)","v":""},{"$f":"IF('1. Ordersheet'!AA742=\"\",\"\",'1. Ordersheet'!AA742)","v":""},null,{"$f":"IF('1. Ordersheet'!AS742=\"\",\"\",'1. Ordersheet'!AS742)","v":""},{"$f":"IF('1. Ordersheet'!AT742=\"\",\"\",'1. Ordersheet'!AT742)","v":""},null,null,null,null,null,null,null,{"$f":"IF('1. Ordersheet'!AX742=\"\",\"\",'1. Ordersheet'!AX742)","v":""},{"$f":"IF('1. Ordersheet'!AY742=\"\",\"\",'1. Ordersheet'!AY742)","v":""},{"$f":"IF('1. Ordersheet'!AZ742=\"\",\"\",'1. Ordersheet'!AZ742)","v":""},{"$f":"IF('1. Ordersheet'!BA742=\"\",\"\",'1. Ordersheet'!BA742)","v":""},{"$f":"IF('1. Ordersheet'!BC742=\"\",\"\",'1. Ordersheet'!BC742)","v":""},{"$f":"IF('1. Ordersheet'!BD742=\"\",\"\",'1. Ordersheet'!BD742)","v":""},{"$f":"IF('1. Ordersheet'!BE742=\"\",\"\",'1. Ordersheet'!BE742)","v":""},{"$f":"IF('1. Ordersheet'!BF742=\"\",\"\",'1. Ordersheet'!BF742)","v":""},{"$f":"IF('1. Ordersheet'!BG742=\"\",\"\",'1. Ordersheet'!BG742)","v":"ZWO"},{"$f":"IF('1. Ordersheet'!BH742=\"\",\"\",'1. Ordersheet'!BH742)","v":""},{"$f":"IF('1. Ordersheet'!BI742=\"\",\"\",'1. Ordersheet'!BI742)","v":""},{"$f":"IF('1. Ordersheet'!BJ742=\"\",\"\",'1. Ordersheet'!BJ742)","v":""},{"$f":"IF('1. Ordersheet'!BK742=\"\",\"\",'1. Ordersheet'!BK742)","v":""},{"$f":"IF('1. Ordersheet'!BL742=\"\",\"\",'1. Ordersheet'!BL742)","v":""}]
[{"$f":"IF('1. Ordersheet'!F743=\"\",\"\",'1. Ordersheet'!F743)","v":""},{"$f":"IF('1. Ordersheet'!G743=\"\",\"\",'1. Ordersheet'!G743)","v":""},{"$f":"IF('1. Ordersheet'!H743=\"\",\"\",'1. Ordersheet'!H743)","v":""},{"$f":"IF('1. Ordersheet'!I743=\"\",\"\",'1. Ordersheet'!I743)","v":""},{"$f":"IF('1. Ordersheet'!J743=\"\",\"\",'1. Ordersheet'!J743)","v":""},{"$f":"IF('1. Ordersheet'!K743=\"\",\"\",'1. Ordersheet'!K743)","v":""},{"$f":"IF('1. Ordersheet'!L743=\"\",\"\",'1. Ordersheet'!L743)","v":""},{"$f":"IF('1. Ordersheet'!M743=\"\",\"\",'1. Ordersheet'!M743)","v":""},{"$f":"IF('1. Ordersheet'!N743=\"\",\"\",'1. Ordersheet'!N743)","v":""},{"$f":"IF('1. Ordersheet'!O743=\"\",\"\",'1. Ordersheet'!O743)","v":{"$error":"#N/A"}},{"$f":"IF('1. Ordersheet'!P743=\"\",\"\",'1. Ordersheet'!P743)","v":{"$error":"#N/A"}},{"$f":"IF('1. Ordersheet'!Q743=\"\",\"\",'1. Ordersheet'!Q743)","v":""},{"$f":"IF('1. Ordersheet'!R743=\"\",\"\",'1. Ordersheet'!R743)","v":""},{"$f":"IF('1. Ordersheet'!S743=\"\",\"\",'1. Ordersheet'!S743)","v":""},{"$f":"IF('1. Ordersheet'!V743=\"\",\"\",'1. Ordersheet'!V743)","v":""},{"$f":"IF('1. Ordersheet'!W743=\"\",\"\",'1. Ordersheet'!W743)","v":""},{"$f":"IF('1. Ordersheet'!X743=\"\",\"\",'1. Ordersheet'!X743)","v":""},{"$f":"IF('1. Ordersheet'!Y743=\"\",\"\",'1. Ordersheet'!Y743)","v":""},{"$f":"IF('1. Ordersheet'!Z743=\"\",\"\",'1. Ordersheet'!Z743)","v":""},{"$f":"IF('1. Ordersheet'!AA743=\"\",\"\",'1. Ordersheet'!AA743)","v":""},null,{"$f":"IF('1. Ordersheet'!AS743=\"\",\"\",'1. Ordersheet'!AS743)","v":""},{"$f":"IF('1. Ordersheet'!AT743=\"\",\"\",'1. Ordersheet'!AT743)","v":""},null,null,null,null,null,null,null,{"$f":"IF('1. Ordersheet'!AX743=\"\",\"\",'1. Ordersheet'!AX743)","v":""},{"$f":"IF('1. Ordersheet'!AY743=\"\",\"\",'1. Ordersheet'!AY743)","v":""},{"$f":"IF('1. Ordersheet'!AZ743=\"\",\"\",'1. Ordersheet'!AZ743)","v":""},{"$f":"IF('1. Ordersheet'!BA743=\"\",\"\",'1. Ordersheet'!BA743)","v":""},{"$f":"IF('1. Ordersheet'!BC743=\"\",\"\",'1. Ordersheet'!BC743)","v":""},{"$f":"IF('1. Ordersheet'!BD743=\"\",\"\",'1. Ordersheet'!BD743)","v":""},{"$f":"IF('1. Ordersheet'!BE743=\"\",\"\",'1. Ordersheet'!BE743)","v":""},{"$f":"IF('1. Ordersheet'!BF743=\"\",\"\",'1. Ordersheet'!BF743)","v":""},{"$f":"IF('1. Ordersheet'!BG743=\"\",\"\",'1. Ordersheet'!BG743)","v":"ZWO"},{"$f":"IF('1. Ordersheet'!BH743=\"\",\"\",'1. Ordersheet'!BH743)","v":""},{"$f":"IF('1. Ordersheet'!BI743=\"\",\"\",'1. Ordersheet'!BI743)","v":""},{"$f":"IF('1. Ordersheet'!BJ743=\"\",\"\",'1. Ordersheet'!BJ743)","v":""},{"$f":"IF('1. Ordersheet'!BK743=\"\",\"\",'1. Ordersheet'!BK743)","v":""},{"$f":"IF('1. Ordersheet'!BL743=\"\",\"\",'1. Ordersheet'!BL743)","v":""}]
[{"$f":"IF('1. Ordersheet'!F744=\"\",\"\",'1. Ordersheet'!F744)","v":""},{"$f":"IF('1. Ordersheet'!G744=\"\",\"\",'1. Ordersheet'!G744)","v":""},{"$f":"IF('1. Ordersheet'!H744=\"\",\"\",'1. Ordersheet'!H744)","v":""},{"$f":"IF('1. Ordersheet'!I744=\"\",\"\",'1. Ordersheet'!I744)","v":""},{"$f":"IF('1. Ordersheet'!J744=\"\",\"\",'1. Ordersheet'!J744)","v":""},{"$f":"IF('1. Ordersheet'!K744=\"\",\"\",'1. Ordersheet'!K744)","v":""},{"$f":"IF('1. Ordersheet'!L744=\"\",\"\",'1. Ordersheet'!L744)","v":""},{"$f":"IF('1. Ordersheet'!M744=\"\",\"\",'1. Ordersheet'!M744)","v":""},{"$f":"IF('1. Ordersheet'!N744=\"\",\"\",'1. Ordersheet'!N744)","v":""},{"$f":"IF('1. Ordersheet'!O744=\"\",\"\",'1. Ordersheet'!O744)","v":{"$error":"#N/A"}},{"$f":"IF('1. Ordersheet'!P744=\"\",\"\",'1. Ordersheet'!P744)","v":{"$error":"#N/A"}},{"$f":"IF('1. Ordersheet'!Q744=\"\",\"\",'1. Ordersheet'!Q744)","v":""},{"$f":"IF('1. Ordersheet'!R744=\"\",\"\",'1. Ordersheet'!R744)","v":""},{"$f":"IF('1. Ordersheet'!S744=\"\",\"\",'1. Ordersheet'!S744)","v":""},{"$f":"IF('1. Ordersheet'!V744=\"\",\"\",'1. Ordersheet'!V744)","v":""},{"$f":"IF('1. Ordersheet'!W744=\"\",\"\",'1. Ordersheet'!W744)","v":""},{"$f":"IF('1. Ordersheet'!X744=\"\",\"\",'1. Ordersheet'!X744)","v":""},{"$f":"IF('1. Ordersheet'!Y744=\"\",\"\",'1. Ordersheet'!Y744)","v":""},{"$f":"IF('1. Ordersheet'!Z744=\"\",\"\",'1. Ordersheet'!Z744)","v":""},{"$f":"IF('1. Ordersheet'!AA744=\"\",\"\",'1. Ordersheet'!AA744)","v":""},null,{"$f":"IF('1. Ordersheet'!AS744=\"\",\"\",'1. Ordersheet'!AS744)","v":""},{"$f":"IF('1. Ordersheet'!AT744=\"\",\"\",'1. Ordersheet'!AT744)","v":""},null,null,null,null,null,null,null,{"$f":"IF('1. Ordersheet'!AX744=\"\",\"\",'1. Ordersheet'!AX744)","v":""},{"$f":"IF('1. Ordersheet'!AY744=\"\",\"\",'1. Ordersheet'!AY744)","v":""},{"$f":"IF('1. Ordersheet'!AZ744=\"\",\"\",'1. Ordersheet'!AZ744)","v":""},{"$f":"IF('1. Ordersheet'!BA744=\"\",\"\",'1. Ordersheet'!BA744)","v":""},{"$f":"IF('1. Ordersheet'!BC744=\"\",\"\",'1. Ordersheet'!BC744)","v":""},{"$f":"IF('1. Ordersheet'!BD744=\"\",\"\",'1. Ordersheet'!BD744)","v":""},{"$f":"IF('1. Ordersheet'!BE744=\"\",\"\",'1. Ordersheet'!BE744)","v":""},{"$f":"IF('1. Ordersheet'!BF744=\"\",\"\",'1. Ordersheet'!BF744)","v":""},{"$f":"IF('1. Ordersheet'!BG744=\"\",\"\",'1. Ordersheet'!BG744)","v":"ZWO"},{"$f":"IF('1. Ordersheet'!BH744=\"\",\"\",'1. Ordersheet'!BH744)","v":""},{"$f":"IF('1. Ordersheet'!BI744=\"\",\"\",'1. Ordersheet'!BI744)","v":""},{"$f":"IF('1. Ordersheet'!BJ744=\"\",\"\",'1. Ordersheet'!BJ744)","v":""},{"$f":"IF('1. Ordersheet'!BK744=\"\",\"\",'1. Ordersheet'!BK744)","v":""},{"$f":"IF('1. Ordersheet'!BL744=\"\",\"\",'1. Ordersheet'!BL744)","v":""}]
[{"$f":"IF('1. Ordersheet'!F745=\"\",\"\",'1. Ordersheet'!F745)","v":""},{"$f":"IF('1. Ordersheet'!G745=\"\",\"\",'1. Ordersheet'!G745)","v":""},{"$f":"IF('1. Ordersheet'!H745=\"\",\"\",'1. Ordersheet'!H745)","v":""},{"$f":"IF('1. Ordersheet'!I745=\"\",\"\",'1. Ordersheet'!I745)","v":""},{"$f":"IF('1. Ordersheet'!J745=\"\",\"\",'1. Ordersheet'!J745)","v":""},{"$f":"IF('1. Ordersheet'!K745=\"\",\"\",'1. Ordersheet'!K745)","v":""},{"$f":"IF('1. Ordersheet'!L745=\"\",\"\",'1. Ordersheet'!L745)","v":""},{"$f":"IF('1. Ordersheet'!M745=\"\",\"\",'1. Ordersheet'!M745)","v":""},{"$f":"IF('1. Ordersheet'!N745=\"\",\"\",'1. Ordersheet'!N745)","v":""},{"$f":"IF('1. Ordersheet'!O745=\"\",\"\",'1. Ordersheet'!O745)","v":{"$error":"#N/A"}},{"$f":"IF('1. Ordersheet'!P745=\"\",\"\",'1. Ordersheet'!P745)","v":{"$error":"#N/A"}},{"$f":"IF('1. Ordersheet'!Q745=\"\",\"\",'1. Ordersheet'!Q745)","v":""},{"$f":"IF('1. Ordersheet'!R745=\"\",\"\",'1. Ordersheet'!R745)","v":""},{"$f":"IF('1. Ordersheet'!S745=\"\",\"\",'1. Ordersheet'!S745)","v":""},{"$f":"IF('1. Ordersheet'!V745=\"\",\"\",'1. Ordersheet'!V745)","v":""},{"$f":"IF('1. Ordersheet'!W745=\"\",\"\",'1. Ordersheet'!W745)","v":""},{"$f":"IF('1. Ordersheet'!X745=\"\",\"\",'1. Ordersheet'!X745)","v":""},{"$f":"IF('1. Ordersheet'!Y745=\"\",\"\",'1. Ordersheet'!Y745)","v":""},{"$f":"IF('1. Ordersheet'!Z745=\"\",\"\",'1. Ordersheet'!Z745)","v":""},{"$f":"IF('1. Ordersheet'!AA745=\"\",\"\",'1. Ordersheet'!AA745)","v":""},null,{"$f":"IF('1. Ordersheet'!AS745=\"\",\"\",'1. Ordersheet'!AS745)","v":""},{"$f":"IF('1. Ordersheet'!AT745=\"\",\"\",'1. Ordersheet'!AT745)","v":""},null,null,null,null,null,null,null,{"$f":"IF('1. Ordersheet'!AX745=\"\",\"\",'1. Ordersheet'!AX745)","v":""},{"$f":"IF('1. Ordersheet'!AY745=\"\",\"\",'1. Ordersheet'!AY745)","v":""},{"$f":"IF('1. Ordersheet'!AZ745=\"\",\"\",'1. Ordersheet'!AZ745)","v":""},{"$f":"IF('1. Ordersheet'!BA745=\"\",\"\",'1. Ordersheet'!BA745)","v":""},{"$f":"IF('1. Ordersheet'!BC745=\"\",\"\",'1. Ordersheet'!BC745)","v":""},{"$f":"IF('1. Ordersheet'!BD745=\"\",\"\",'1. Ordersheet'!BD745)","v":""},{"$f":"IF('1. Ordersheet'!BE745=\"\",\"\",'1. Ordersheet'!BE745)","v":""},{"$f":"IF('1. Ordersheet'!BF745=\"\",\"\",'1. Ordersheet'!BF745)","v":""},{"$f":"IF('1. Ordersheet'!BG745=\"\",\"\",'1. Ordersheet'!BG745)","v":"ZWO"},{"$f":"IF('1. Ordersheet'!BH745=\"\",\"\",'1. Ordersheet'!BH745)","v":""},{"$f":"IF('1. Ordersheet'!BI745=\"\",\"\",'1. Ordersheet'!BI745)","v":""},{"$f":"IF('1. Ordersheet'!BJ745=\"\",\"\",'1. Ordersheet'!BJ745)","v":""},{"$f":"IF('1. Ordersheet'!BK745=\"\",\"\",'1. Ordersheet'!BK745)","v":""},{"$f":"IF('1. Ordersheet'!BL745=\"\",\"\",'1. Ordersheet'!BL745)","v":""}]
[{"$f":"IF('1. Ordersheet'!F746=\"\",\"\",'1. Ordersheet'!F746)","v":""},{"$f":"IF('1. Ordersheet'!G746=\"\",\"\",'1. Ordersheet'!G746)","v":""},{"$f":"IF('1. Ordersheet'!H746=\"\",\"\",'1. Ordersheet'!H746)","v":""},{"$f":"IF('1. Ordersheet'!I746=\"\",\"\",'1. Ordersheet'!I746)","v":""},{"$f":"IF('1. Ordersheet'!J746=\"\",\"\",'1. Ordersheet'!J746)","v":""},{"$f":"IF('1. Ordersheet'!K746=\"\",\"\",'1. Ordersheet'!K746)","v":""},{"$f":"IF('1. Ordersheet'!L746=\"\",\"\",'1. Ordersheet'!L746)","v":""},{"$f":"IF('1. Ordersheet'!M746=\"\",\"\",'1. Ordersheet'!M746)","v":""},{"$f":"IF('1. Ordersheet'!N746=\"\",\"\",'1. Ordersheet'!N746)","v":""},{"$f":"IF('1. Ordersheet'!O746=\"\",\"\",'1. Ordersheet'!O746)","v":{"$error":"#N/A"}},{"$f":"IF('1. Ordersheet'!P746=\"\",\"\",'1. Ordersheet'!P746)","v":{"$error":"#N/A"}},{"$f":"IF('1. Ordersheet'!Q746=\"\",\"\",'1. Ordersheet'!Q746)","v":""},{"$f":"IF('1. Ordersheet'!R746=\"\",\"\",'1. Ordersheet'!R746)","v":""},{"$f":"IF('1. Ordersheet'!S746=\"\",\"\",'1. Ordersheet'!S746)","v":""},{"$f":"IF('1. Ordersheet'!V746=\"\",\"\",'1. Ordersheet'!V746)","v":""},{"$f":"IF('1. Ordersheet'!W746=\"\",\"\",'1. Ordersheet'!W746)","v":""},{"$f":"IF('1. Ordersheet'!X746=\"\",\"\",'1. Ordersheet'!X746)","v":""},{"$f":"IF('1. Ordersheet'!Y746=\"\",\"\",'1. Ordersheet'!Y746)","v":""},{"$f":"IF('1. Ordersheet'!Z746=\"\",\"\",'1. Ordersheet'!Z746)","v":""},{"$f":"IF('1. Ordersheet'!AA746=\"\",\"\",'1. Ordersheet'!AA746)","v":""},null,{"$f":"IF('1. Ordersheet'!AS746=\"\",\"\",'1. Ordersheet'!AS746)","v":""},{"$f":"IF('1. Ordersheet'!AT746=\"\",\"\",'1. Ordersheet'!AT746)","v":""},null,null,null,null,null,null,null,{"$f":"IF('1. Ordersheet'!AX746=\"\",\"\",'1. Ordersheet'!AX746)","v":""},{"$f":"IF('1. Ordersheet'!AY746=\"\",\"\",'1. Ordersheet'!AY746)","v":""},{"$f":"IF('1. Ordersheet'!AZ746=\"\",\"\",'1. Ordersheet'!AZ746)","v":""},{"$f":"IF('1. Ordersheet'!BA746=\"\",\"\",'1. Ordersheet'!BA746)","v":""},{"$f":"IF('1. Ordersheet'!BC746=\"\",\"\",'1. Ordersheet'!BC746)","v":""},{"$f":"IF('1. Ordersheet'!BD746=\"\",\"\",'1. Ordersheet'!BD746)","v":""},{"$f":"IF('1. Ordersheet'!BE746=\"\",\"\",'1. Ordersheet'!BE746)","v":""},{"$f":"IF('1. Ordersheet'!BF746=\"\",\"\",'1. Ordersheet'!BF746)","v":""},{"$f":"IF('1. Ordersheet'!BG746=\"\",\"\",'1. Ordersheet'!BG746)","v":"ZWO"},{"$f":"IF('1. Ordersheet'!BH746=\"\",\"\",'1. Ordersheet'!BH746)","v":""},{"$f":"IF('1. Ordersheet'!BI746=\"\",\"\",'1. Ordersheet'!BI746)","v":""},{"$f":"IF('1. Ordersheet'!BJ746=\"\",\"\",'1. Ordersheet'!BJ746)","v":""},{"$f":"IF('1. Ordersheet'!BK746=\"\",\"\",'1. Ordersheet'!BK746)","v":""},{"$f":"IF('1. Ordersheet'!BL746=\"\",\"\",'1. Ordersheet'!BL746)","v":""}]
[{"$f":"IF('1. Ordersheet'!F747=\"\",\"\",'1. Ordersheet'!F747)","v":""},{"$f":"IF('1. Ordersheet'!G747=\"\",\"\",'1. Ordersheet'!G747)","v":""},{"$f":"IF('1. Ordersheet'!H747=\"\",\"\",'1. Ordersheet'!H747)","v":""},{"$f":"IF('1. Ordersheet'!I747=\"\",\"\",'1. Ordersheet'!I747)","v":""},{"$f":"IF('1. Ordersheet'!J747=\"\",\"\",'1. Ordersheet'!J747)","v":""},{"$f":"IF('1. Ordersheet'!K747=\"\",\"\",'1. Ordersheet'!K747)","v":""},{"$f":"IF('1. Ordersheet'!L747=\"\",\"\",'1. Ordersheet'!L747)","v":""},{"$f":"IF('1. Ordersheet'!M747=\"\",\"\",'1. Ordersheet'!M747)","v":""},{"$f":"IF('1. Ordersheet'!N747=\"\",\"\",'1. Ordersheet'!N747)","v":""},{"$f":"IF('1. Ordersheet'!O747=\"\",\"\",'1. Ordersheet'!O747)","v":{"$error":"#N/A"}},{"$f":"IF('1. Ordersheet'!P747=\"\",\"\",'1. Ordersheet'!P747)","v":{"$error":"#N/A"}},{"$f":"IF('1. Ordersheet'!Q747=\"\",\"\",'1. Ordersheet'!Q747)","v":""},{"$f":"IF('1. Ordersheet'!R747=\"\",\"\",'1. Ordersheet'!R747)","v":""},{"$f":"IF('1. Ordersheet'!S747=\"\",\"\",'1. Ordersheet'!S747)","v":""},{"$f":"IF('1. Ordersheet'!V747=\"\",\"\",'1. Ordersheet'!V747)","v":""},{"$f":"IF('1. Ordersheet'!W747=\"\",\"\",'1. Ordersheet'!W747)","v":""},{"$f":"IF('1. Ordersheet'!X747=\"\",\"\",'1. Ordersheet'!X747)","v":""},{"$f":"IF('1. Ordersheet'!Y747=\"\",\"\",'1. Ordersheet'!Y747)","v":""},{"$f":"IF('1. Ordersheet'!Z747=\"\",\"\",'1. Ordersheet'!Z747)","v":""},{"$f":"IF('1. Ordersheet'!AA747=\"\",\"\",'1. Ordersheet'!AA747)","v":""},null,{"$f":"IF('1. Ordersheet'!AS747=\"\",\"\",'1. Ordersheet'!AS747)","v":""},{"$f":"IF('1. Ordersheet'!AT747=\"\",\"\",'1. Ordersheet'!AT747)","v":""},null,null,null,null,null,null,null,{"$f":"IF('1. Ordersheet'!AX747=\"\",\"\",'1. Ordersheet'!AX747)","v":""},{"$f":"IF('1. Ordersheet'!AY747=\"\",\"\",'1. Ordersheet'!AY747)","v":""},{"$f":"IF('1. Ordersheet'!AZ747=\"\",\"\",'1. Ordersheet'!AZ747)","v":""},{"$f":"IF('1. Ordersheet'!BA747=\"\",\"\",'1. Ordersheet'!BA747)","v":""},{"$f":"IF('1. Ordersheet'!BC747=\"\",\"\",'1. Ordersheet'!BC747)","v":""},{"$f":"IF('1. Ordersheet'!BD747=\"\",\"\",'1. Ordersheet'!BD747)","v":""},{"$f":"IF('1. Ordersheet'!BE747=\"\",\"\",'1. Ordersheet'!BE747)","v":""},{"$f":"IF('1. Ordersheet'!BF747=\"\",\"\",'1. Ordersheet'!BF747)","v":""},{"$f":"IF('1. Ordersheet'!BG747=\"\",\"\",'1. Ordersheet'!BG747)","v":"ZWO"},{"$f":"IF('1. Ordersheet'!BH747=\"\",\"\",'1. Ordersheet'!BH747)","v":""},{"$f":"IF('1. Ordersheet'!BI747=\"\",\"\",'1. Ordersheet'!BI747)","v":""},{"$f":"IF('1. Ordersheet'!BJ747=\"\",\"\",'1. Ordersheet'!BJ747)","v":""},{"$f":"IF('1. Ordersheet'!BK747=\"\",\"\",'1. Ordersheet'!BK747)","v":""},{"$f":"IF('1. Ordersheet'!BL747=\"\",\"\",'1. Ordersheet'!BL747)","v":""}]
[{"$f":"IF('1. Ordersheet'!F748=\"\",\"\",'1. Ordersheet'!F748)","v":""},{"$f":"IF('1. Ordersheet'!G748=\"\",\"\",'1. Ordersheet'!G748)","v":""},{"$f":"IF('1. Ordersheet'!H748=\"\",\"\",'1. Ordersheet'!H748)","v":""},{"$f":"IF('1. Ordersheet'!I748=\"\",\"\",'1. Ordersheet'!I748)","v":""},{"$f":"IF('1. Ordersheet'!J748=\"\",\"\",'1. Ordersheet'!J748)","v":""},{"$f":"IF('1. Ordersheet'!K748=\"\",\"\",'1. Ordersheet'!K748)","v":""},{"$f":"IF('1. Ordersheet'!L748=\"\",\"\",'1. Ordersheet'!L748)","v":""},{"$f":"IF('1. Ordersheet'!M748=\"\",\"\",'1. Ordersheet'!M748)","v":""},{"$f":"IF('1. Ordersheet'!N748=\"\",\"\",'1. Ordersheet'!N748)","v":""},{"$f":"IF('1. Ordersheet'!O748=\"\",\"\",'1. Ordersheet'!O748)","v":{"$error":"#N/A"}},{"$f":"IF('1. Ordersheet'!P748=\"\",\"\",'1. Ordersheet'!P748)","v":{"$error":"#N/A"}},{"$f":"IF('1. Ordersheet'!Q748=\"\",\"\",'1. Ordersheet'!Q748)","v":""},{"$f":"IF('1. Ordersheet'!R748=\"\",\"\",'1. Ordersheet'!R748)","v":""},{"$f":"IF('1. Ordersheet'!S748=\"\",\"\",'1. Ordersheet'!S748)","v":""},{"$f":"IF('1. Ordersheet'!V748=\"\",\"\",'1. Ordersheet'!V748)","v":""},{"$f":"IF('1. Ordersheet'!W748=\"\",\"\",'1. Ordersheet'!W748)","v":""},{"$f":"IF('1. Ordersheet'!X748=\"\",\"\",'1. Ordersheet'!X748)","v":""},{"$f":"IF('1. Ordersheet'!Y748=\"\",\"\",'1. Ordersheet'!Y748)","v":""},{"$f":"IF('1. Ordersheet'!Z748=\"\",\"\",'1. Ordersheet'!Z748)","v":""},{"$f":"IF('1. Ordersheet'!AA748=\"\",\"\",'1. Ordersheet'!AA748)","v":""},null,{"$f":"IF('1. Ordersheet'!AS748=\"\",\"\",'1. Ordersheet'!AS748)","v":""},{"$f":"IF('1. Ordersheet'!AT748=\"\",\"\",'1. Ordersheet'!AT748)","v":""},null,null,null,null,null,null,null,{"$f":"IF('1. Ordersheet'!AX748=\"\",\"\",'1. Ordersheet'!AX748)","v":""},{"$f":"IF('1. Ordersheet'!AY748=\"\",\"\",'1. Ordersheet'!AY748)","v":""},{"$f":"IF('1. Ordersheet'!AZ748=\"\",\"\",'1. Ordersheet'!AZ748)","v":""},{"$f":"IF('1. Ordersheet'!BA748=\"\",\"\",'1. Ordersheet'!BA748)","v":""},{"$f":"IF('1. Ordersheet'!BC748=\"\",\"\",'1. Ordersheet'!BC748)","v":""},{"$f":"IF('1. Ordersheet'!BD748=\"\",\"\",'1. Ordersheet'!BD748)","v":""},{"$f":"IF('1. Ordersheet'!BE748=\"\",\"\",'1. Ordersheet'!BE748)","v":""},{"$f":"IF('1. Ordersheet'!BF748=\"\",\"\",'1. Ordersheet'!BF748)","v":""},{"$f":"IF('1. Ordersheet'!BG748=\"\",\"\",'1. Ordersheet'!BG748)","v":"ZWO"},{"$f":"IF('1. Ordersheet'!BH748=\"\",\"\",'1. Ordersheet'!BH748)","v":""},{"$f":"IF('1. Ordersheet'!BI748=\"\",\"\",'1. Ordersheet'!BI748)","v":""},{"$f":"IF('1. Ordersheet'!BJ748=\"\",\"\",'1. Ordersheet'!BJ748)","v":""},{"$f":"IF('1. Ordersheet'!BK748=\"\",\"\",'1. Ordersheet'!BK748)","v":""},{"$f":"IF('1. Ordersheet'!BL748=\"\",\"\",'1. Ordersheet'!BL748)","v":""}]
[{"$f":"IF('1. Ordersheet'!F749=\"\",\"\",'1. Ordersheet'!F749)","v":""},{"$f":"IF('1. Ordersheet'!G749=\"\",\"\",'1. Ordersheet'!G749)","v":""},{"$f":"IF('1. Ordersheet'!H749=\"\",\"\",'1. Ordersheet'!H749)","v":""},{"$f":"IF('1. Ordersheet'!I749=\"\",\"\",'1. Ordersheet'!I749)","v":""},{"$f":"IF('1. Ordersheet'!J749=\"\",\"\",'1. Ordersheet'!J749)","v":""},{"$f":"IF('1. Ordersheet'!K749=\"\",\"\",'1. Ordersheet'!K749)","v":""},{"$f":"IF('1. Ordersheet'!L749=\"\",\"\",'1. Ordersheet'!L749)","v":""},{"$f":"IF('1. Ordersheet'!M749=\"\",\"\",'1. Ordersheet'!M749)","v":""},{"$f":"IF('1. Ordersheet'!N749=\"\",\"\",'1. Ordersheet'!N749)","v":""},{"$f":"IF('1. Ordersheet'!O749=\"\",\"\",'1. Ordersheet'!O749)","v":{"$error":"#N/A"}},{"$f":"IF('1. Ordersheet'!P749=\"\",\"\",'1. Ordersheet'!P749)","v":{"$error":"#N/A"}},{"$f":"IF('1. Ordersheet'!Q749=\"\",\"\",'1. Ordersheet'!Q749)","v":""},{"$f":"IF('1. Ordersheet'!R749=\"\",\"\",'1. Ordersheet'!R749)","v":""},{"$f":"IF('1. Ordersheet'!S749=\"\",\"\",'1. Ordersheet'!S749)","v":""},{"$f":"IF('1. Ordersheet'!V749=\"\",\"\",'1. Ordersheet'!V749)","v":""},{"$f":"IF('1. Ordersheet'!W749=\"\",\"\",'1. Ordersheet'!W749)","v":""},{"$f":"IF('1. Ordersheet'!X749=\"\",\"\",'1. Ordersheet'!X749)","v":""},{"$f":"IF('1. Ordersheet'!Y749=\"\",\"\",'1. Ordersheet'!Y749)","v":""},{"$f":"IF('1. Ordersheet'!Z749=\"\",\"\",'1. Ordersheet'!Z749)","v":""},{"$f":"IF('1. Ordersheet'!AA749=\"\",\"\",'1. Ordersheet'!AA749)","v":""},null,{"$f":"IF('1. Ordersheet'!AS749=\"\",\"\",'1. Ordersheet'!AS749)","v":""},{"$f":"IF('1. Ordersheet'!AT749=\"\",\"\",'1. Ordersheet'!AT749)","v":""},null,null,null,null,null,null,null,{"$f":"IF('1. Ordersheet'!AX749=\"\",\"\",'1. Ordersheet'!AX749)","v":""},{"$f":"IF('1. Ordersheet'!AY749=\"\",\"\",'1. Ordersheet'!AY749)","v":""},{"$f":"IF('1. Ordersheet'!AZ749=\"\",\"\",'1. Ordersheet'!AZ749)","v":""},{"$f":"IF('1. Ordersheet'!BA749=\"\",\"\",'1. Ordersheet'!BA749)","v":""},{"$f":"IF('1. Ordersheet'!BC749=\"\",\"\",'1. Ordersheet'!BC749)","v":""},{"$f":"IF('1. Ordersheet'!BD749=\"\",\"\",'1. Ordersheet'!BD749)","v":""},{"$f":"IF('1. Ordersheet'!BE749=\"\",\"\",'1. Ordersheet'!BE749)","v":""},{"$f":"IF('1. Ordersheet'!BF749=\"\",\"\",'1. Ordersheet'!BF749)","v":""},{"$f":"IF('1. Ordersheet'!BG749=\"\",\"\",'1. Ordersheet'!BG749)","v":"ZWO"},{"$f":"IF('1. Ordersheet'!BH749=\"\",\"\",'1. Ordersheet'!BH749)","v":""},{"$f":"IF('1. Ordersheet'!BI749=\"\",\"\",'1. Ordersheet'!BI749)","v":""},{"$f":"IF('1. Ordersheet'!BJ749=\"\",\"\",'1. Ordersheet'!BJ749)","v":""},{"$f":"IF('1. Ordersheet'!BK749=\"\",\"\",'1. Ordersheet'!BK749)","v":""},{"$f":"IF('1. Ordersheet'!BL749=\"\",\"\",'1. Ordersheet'!BL749)","v":""}]
[{"$f":"IF('1. Ordersheet'!F750=\"\",\"\",'1. Ordersheet'!F750)","v":""},{"$f":"IF('1. Ordersheet'!G750=\"\",\"\",'1. Ordersheet'!G750)","v":""},{"$f":"IF('1. Ordersheet'!H750=\"\",\"\",'1. Ordersheet'!H750)","v":""},{"$f":"IF('1. Ordersheet'!I750=\"\",\"\",'1. Ordersheet'!I750)","v":""},{"$f":"IF('1. Ordersheet'!J750=\"\",\"\",'1. Ordersheet'!J750)","v":""},{"$f":"IF('1. Ordersheet'!K750=\"\",\"\",'1. Ordersheet'!K750)","v":""},{"$f":"IF('1. Ordersheet'!L750=\"\",\"\",'1. Ordersheet'!L750)","v":""},{"$f":"IF('1. Ordersheet'!M750=\"\",\"\",'1. Ordersheet'!M750)","v":""},{"$f":"IF('1. Ordersheet'!N750=\"\",\"\",'1. Ordersheet'!N750)","v":""},{"$f":"IF('1. Ordersheet'!O750=\"\",\"\",'1. Ordersheet'!O750)","v":{"$error":"#N/A"}},{"$f":"IF('1. Ordersheet'!P750=\"\",\"\",'1. Ordersheet'!P750)","v":{"$error":"#N/A"}},{"$f":"IF('1. Ordersheet'!Q750=\"\",\"\",'1. Ordersheet'!Q750)","v":""},{"$f":"IF('1. Ordersheet'!R750=\"\",\"\",'1. Ordersheet'!R750)","v":""},{"$f":"IF('1. Ordersheet'!S750=\"\",\"\",'1. Ordersheet'!S750)","v":""},{"$f":"IF('1. Ordersheet'!V750=\"\",\"\",'1. Ordersheet'!V750)","v":""},{"$f":"IF('1. Ordersheet'!W750=\"\",\"\",'1. Ordersheet'!W750)","v":""},{"$f":"IF('1. Ordersheet'!X750=\"\",\"\",'1. Ordersheet'!X750)","v":""},{"$f":"IF('1. Ordersheet'!Y750=\"\",\"\",'1. Ordersheet'!Y750)","v":""},{"$f":"IF('1. Ordersheet'!Z750=\"\",\"\",'1. Ordersheet'!Z750)","v":""},{"$f":"IF('1. Ordersheet'!AA750=\"\",\"\",'1. Ordersheet'!AA750)","v":""},null,{"$f":"IF('1. Ordersheet'!AS750=\"\",\"\",'1. Ordersheet'!AS750)","v":""},{"$f":"IF('1. Ordersheet'!AT750=\"\",\"\",'1. Ordersheet'!AT750)","v":""},null,null,null,null,null,null,null,{"$f":"IF('1. Ordersheet'!AX750=\"\",\"\",'1. Ordersheet'!AX750)","v":""},{"$f":"IF('1. Ordersheet'!AY750=\"\",\"\",'1. Ordersheet'!AY750)","v":""},{"$f":"IF('1. Ordersheet'!AZ750=\"\",\"\",'1. Ordersheet'!AZ750)","v":""},{"$f":"IF('1. Ordersheet'!BA750=\"\",\"\",'1. Ordersheet'!BA750)","v":""},{"$f":"IF('1. Ordersheet'!BC750=\"\",\"\",'1. Ordersheet'!BC750)","v":""},{"$f":"IF('1. Ordersheet'!BD750=\"\",\"\",'1. Ordersheet'!BD750)","v":""},{"$f":"IF('1. Ordersheet'!BE750=\"\",\"\",'1. Ordersheet'!BE750)","v":""},{"$f":"IF('1. Ordersheet'!BF750=\"\",\"\",'1. Ordersheet'!BF750)","v":""},{"$f":"IF('1. Ordersheet'!BG750=\"\",\"\",'1. Ordersheet'!BG750)","v":"ZWO"},{"$f":"IF('1. Ordersheet'!BH750=\"\",\"\",'1. Ordersheet'!BH750)","v":""},{"$f":"IF('1. Ordersheet'!BI750=\"\",\"\",'1. Ordersheet'!BI750)","v":""},{"$f":"IF('1. Ordersheet'!BJ750=\"\",\"\",'1. Ordersheet'!BJ750)","v":""},{"$f":"IF('1. Ordersheet'!BK750=\"\",\"\",'1. Ordersheet'!BK750)","v":""},{"$f":"IF('1. Ordersheet'!BL750=\"\",\"\",'1. Ordersheet'!BL750)","v":""}]
[{"$f":"IF('1. Ordersheet'!F751=\"\",\"\",'1. Ordersheet'!F751)","v":""},{"$f":"IF('1. Ordersheet'!G751=\"\",\"\",'1. Ordersheet'!G751)","v":""},{"$f":"IF('1. Ordersheet'!H751=\"\",\"\",'1. Ordersheet'!H751)","v":""},{"$f":"IF('1. Ordersheet'!I751=\"\",\"\",'1. Ordersheet'!I751)","v":""},{"$f":"IF('1. Ordersheet'!J751=\"\",\"\",'1. Ordersheet'!J751)","v":""},{"$f":"IF('1. Ordersheet'!K751=\"\",\"\",'1. Ordersheet'!K751)","v":""},{"$f":"IF('1. Ordersheet'!L751=\"\",\"\",'1. Ordersheet'!L751)","v":""},{"$f":"IF('1. Ordersheet'!M751=\"\",\"\",'1. Ordersheet'!M751)","v":""},{"$f":"IF('1. Ordersheet'!N751=\"\",\"\",'1. Ordersheet'!N751)","v":""},{"$f":"IF('1. Ordersheet'!O751=\"\",\"\",'1. Ordersheet'!O751)","v":{"$error":"#N/A"}},{"$f":"IF('1. Ordersheet'!P751=\"\",\"\",'1. Ordersheet'!P751)","v":{"$error":"#N/A"}},{"$f":"IF('1. Ordersheet'!Q751=\"\",\"\",'1. Ordersheet'!Q751)","v":""},{"$f":"IF('1. Ordersheet'!R751=\"\",\"\",'1. Ordersheet'!R751)","v":""},{"$f":"IF('1. Ordersheet'!S751=\"\",\"\",'1. Ordersheet'!S751)","v":""},{"$f":"IF('1. Ordersheet'!V751=\"\",\"\",'1. Ordersheet'!V751)","v":""},{"$f":"IF('1. Ordersheet'!W751=\"\",\"\",'1. Ordersheet'!W751)","v":""},{"$f":"IF('1. Ordersheet'!X751=\"\",\"\",'1. Ordersheet'!X751)","v":""},{"$f":"IF('1. Ordersheet'!Y751=\"\",\"\",'1. Ordersheet'!Y751)","v":""},{"$f":"IF('1. Ordersheet'!Z751=\"\",\"\",'1. Ordersheet'!Z751)","v":""},{"$f":"IF('1. Ordersheet'!AA751=\"\",\"\",'1. Ordersheet'!AA751)","v":""},null,{"$f":"IF('1. Ordersheet'!AS751=\"\",\"\",'1. Ordersheet'!AS751)","v":""},{"$f":"IF('1. Ordersheet'!AT751=\"\",\"\",'1. Ordersheet'!AT751)","v":""},null,null,null,null,null,null,null,{"$f":"IF('1. Ordersheet'!AX751=\"\",\"\",'1. Ordersheet'!AX751)","v":""},{"$f":"IF('1. Ordersheet'!AY751=\"\",\"\",'1. Ordersheet'!AY751)","v":""},{"$f":"IF('1. Ordersheet'!AZ751=\"\",\"\",'1. Ordersheet'!AZ751)","v":""},{"$f":"IF('1. Ordersheet'!BA751=\"\",\"\",'1. Ordersheet'!BA751)","v":""},{"$f":"IF('1. Ordersheet'!BC751=\"\",\"\",'1. Ordersheet'!BC751)","v":""},{"$f":"IF('1. Ordersheet'!BD751=\"\",\"\",'1. Ordersheet'!BD751)","v":""},{"$f":"IF('1. Ordersheet'!BE751=\"\",\"\",'1. Ordersheet'!BE751)","v":""},{"$f":"IF('1. Ordersheet'!BF751=\"\",\"\",'1. Ordersheet'!BF751)","v":""},{"$f":"IF('1. Ordersheet'!BG751=\"\",\"\",'1. Ordersheet'!BG751)","v":"ZWO"},{"$f":"IF('1. Ordersheet'!BH751=\"\",\"\",'1. Ordersheet'!BH751)","v":""},{"$f":"IF('1. Ordersheet'!BI751=\"\",\"\",'1. Ordersheet'!BI751)","v":""},{"$f":"IF('1. Ordersheet'!BJ751=\"\",\"\",'1. Ordersheet'!BJ751)","v":""},{"$f":"IF('1. Ordersheet'!BK751=\"\",\"\",'1. Ordersheet'!BK751)","v":""},{"$f":"IF('1. Ordersheet'!BL751=\"\",\"\",'1. Ordersheet'!BL751)","v":""}]
[{"$f":"IF('1. Ordersheet'!F752=\"\",\"\",'1. Ordersheet'!F752)","v":""},{"$f":"IF('1. Ordersheet'!G752=\"\",\"\",'1. Ordersheet'!G752)","v":""},{"$f":"IF('1. Ordersheet'!H752=\"\",\"\",'1. Ordersheet'!H752)","v":""},{"$f":"IF('1. Ordersheet'!I752=\"\",\"\",'1. Ordersheet'!I752)","v":""},{"$f":"IF('1. Ordersheet'!J752=\"\",\"\",'1. Ordersheet'!J752)","v":""},{"$f":"IF('1. Ordersheet'!K752=\"\",\"\",'1. Ordersheet'!K752)","v":""},{"$f":"IF('1. Ordersheet'!L752=\"\",\"\",'1. Ordersheet'!L752)","v":""},{"$f":"IF('1. Ordersheet'!M752=\"\",\"\",'1. Ordersheet'!M752)","v":""},{"$f":"IF('1. Ordersheet'!N752=\"\",\"\",'1. Ordersheet'!N752)","v":""},{"$f":"IF('1. Ordersheet'!O752=\"\",\"\",'1. Ordersheet'!O752)","v":{"$error":"#N/A"}},{"$f":"IF('1. Ordersheet'!P752=\"\",\"\",'1. Ordersheet'!P752)","v":{"$error":"#N/A"}},{"$f":"IF('1. Ordersheet'!Q752=\"\",\"\",'1. Ordersheet'!Q752)","v":""},{"$f":"IF('1. Ordersheet'!R752=\"\",\"\",'1. Ordersheet'!R752)","v":""},{"$f":"IF('1. Ordersheet'!S752=\"\",\"\",'1. Ordersheet'!S752)","v":""},{"$f":"IF('1. Ordersheet'!V752=\"\",\"\",'1. Ordersheet'!V752)","v":""},{"$f":"IF('1. Ordersheet'!W752=\"\",\"\",'1. Ordersheet'!W752)","v":""},{"$f":"IF('1. Ordersheet'!X752=\"\",\"\",'1. Ordersheet'!X752)","v":""},{"$f":"IF('1. Ordersheet'!Y752=\"\",\"\",'1. Ordersheet'!Y752)","v":""},{"$f":"IF('1. Ordersheet'!Z752=\"\",\"\",'1. Ordersheet'!Z752)","v":""},{"$f":"IF('1. Ordersheet'!AA752=\"\",\"\",'1. Ordersheet'!AA752)","v":""},null,{"$f":"IF('1. Ordersheet'!AS752=\"\",\"\",'1. Ordersheet'!AS752)","v":""},{"$f":"IF('1. Ordersheet'!AT752=\"\",\"\",'1. Ordersheet'!AT752)","v":""},null,null,null,null,null,null,null,{"$f":"IF('1. Ordersheet'!AX752=\"\",\"\",'1. Ordersheet'!AX752)","v":""},{"$f":"IF('1. Ordersheet'!AY752=\"\",\"\",'1. Ordersheet'!AY752)","v":""},{"$f":"IF('1. Ordersheet'!AZ752=\"\",\"\",'1. Ordersheet'!AZ752)","v":""},{"$f":"IF('1. Ordersheet'!BA752=\"\",\"\",'1. Ordersheet'!BA752)","v":""},{"$f":"IF('1. Ordersheet'!BC752=\"\",\"\",'1. Ordersheet'!BC752)","v":""},{"$f":"IF('1. Ordersheet'!BD752=\"\",\"\",'1. Ordersheet'!BD752)","v":""},{"$f":"IF('1. Ordersheet'!BE752=\"\",\"\",'1. Ordersheet'!BE752)","v":""},{"$f":"IF('1. Ordersheet'!BF752=\"\",\"\",'1. Ordersheet'!BF752)","v":""},{"$f":"IF('1. Ordersheet'!BG752=\"\",\"\",'1. Ordersheet'!BG752)","v":"ZWO"},{"$f":"IF('1. Ordersheet'!BH752=\"\",\"\",'1. Ordersheet'!BH752)","v":""},{"$f":"IF('1. Ordersheet'!BI752=\"\",\"\",'1. Ordersheet'!BI752)","v":""},{"$f":"IF('1. Ordersheet'!BJ752=\"\",\"\",'1. Ordersheet'!BJ752)","v":""},{"$f":"IF('1. Ordersheet'!BK752=\"\",\"\",'1. Ordersheet'!BK752)","v":""},{"$f":"IF('1. Ordersheet'!BL752=\"\",\"\",'1. Ordersheet'!BL752)","v":""}]
[{"$f":"IF('1. Ordersheet'!F753=\"\",\"\",'1. Ordersheet'!F753)","v":""},{"$f":"IF('1. Ordersheet'!G753=\"\",\"\",'1. Ordersheet'!G753)","v":""},{"$f":"IF('1. Ordersheet'!H753=\"\",\"\",'1. Ordersheet'!H753)","v":""},{"$f":"IF('1. Ordersheet'!I753=\"\",\"\",'1. Ordersheet'!I753)","v":""},{"$f":"IF('1. Ordersheet'!J753=\"\",\"\",'1. Ordersheet'!J753)","v":""},{"$f":"IF('1. Ordersheet'!K753=\"\",\"\",'1. Ordersheet'!K753)","v":""},{"$f":"IF('1. Ordersheet'!L753=\"\",\"\",'1. Ordersheet'!L753)","v":""},{"$f":"IF('1. Ordersheet'!M753=\"\",\"\",'1. Ordersheet'!M753)","v":""},{"$f":"IF('1. Ordersheet'!N753=\"\",\"\",'1. Ordersheet'!N753)","v":""},{"$f":"IF('1. Ordersheet'!O753=\"\",\"\",'1. Ordersheet'!O753)","v":{"$error":"#N/A"}},{"$f":"IF('1. Ordersheet'!P753=\"\",\"\",'1. Ordersheet'!P753)","v":{"$error":"#N/A"}},{"$f":"IF('1. Ordersheet'!Q753=\"\",\"\",'1. Ordersheet'!Q753)","v":""},{"$f":"IF('1. Ordersheet'!R753=\"\",\"\",'1. Ordersheet'!R753)","v":""},{"$f":"IF('1. Ordersheet'!S753=\"\",\"\",'1. Ordersheet'!S753)","v":""},{"$f":"IF('1. Ordersheet'!V753=\"\",\"\",'1. Ordersheet'!V753)","v":""},{"$f":"IF('1. Ordersheet'!W753=\"\",\"\",'1. Ordersheet'!W753)","v":""},{"$f":"IF('1. Ordersheet'!X753=\"\",\"\",'1. Ordersheet'!X753)","v":""},{"$f":"IF('1. Ordersheet'!Y753=\"\",\"\",'1. Ordersheet'!Y753)","v":""},{"$f":"IF('1. Ordersheet'!Z753=\"\",\"\",'1. Ordersheet'!Z753)","v":""},{"$f":"IF('1. Ordersheet'!AA753=\"\",\"\",'1. Ordersheet'!AA753)","v":""},null,{"$f":"IF('1. Ordersheet'!AS753=\"\",\"\",'1. Ordersheet'!AS753)","v":""},{"$f":"IF('1. Ordersheet'!AT753=\"\",\"\",'1. Ordersheet'!AT753)","v":""},null,null,null,null,null,null,null,{"$f":"IF('1. Ordersheet'!AX753=\"\",\"\",'1. Ordersheet'!AX753)","v":""},{"$f":"IF('1. Ordersheet'!AY753=\"\",\"\",'1. Ordersheet'!AY753)","v":""},{"$f":"IF('1. Ordersheet'!AZ753=\"\",\"\",'1. Ordersheet'!AZ753)","v":""},{"$f":"IF('1. Ordersheet'!BA753=\"\",\"\",'1. Ordersheet'!BA753)","v":""},{"$f":"IF('1. Ordersheet'!BC753=\"\",\"\",'1. Ordersheet'!BC753)","v":""},{"$f":"IF('1. Ordersheet'!BD753=\"\",\"\",'1. Ordersheet'!BD753)","v":""},{"$f":"IF('1. Ordersheet'!BE753=\"\",\"\",'1. Ordersheet'!BE753)","v":""},{"$f":"IF('1. Ordersheet'!BF753=\"\",\"\",'1. Ordersheet'!BF753)","v":""},{"$f":"IF('1. Ordersheet'!BG753=\"\",\"\",'1. Ordersheet'!BG753)","v":"ZWO"},{"$f":"IF('1. Ordersheet'!BH753=\"\",\"\",'1. Ordersheet'!BH753)","v":""},{"$f":"IF('1. Ordersheet'!BI753=\"\",\"\",'1. Ordersheet'!BI753)","v":""},{"$f":"IF('1. Ordersheet'!BJ753=\"\",\"\",'1. Ordersheet'!BJ753)","v":""},{"$f":"IF('1. Ordersheet'!BK753=\"\",\"\",'1. Ordersheet'!BK753)","v":""},{"$f":"IF('1. Ordersheet'!BL753=\"\",\"\",'1. Ordersheet'!BL753)","v":""}]
[{"$f":"IF('1. Ordersheet'!F754=\"\",\"\",'1. Ordersheet'!F754)","v":""},{"$f":"IF('1. Ordersheet'!G754=\"\",\"\",'1. Ordersheet'!G754)","v":""},{"$f":"IF('1. Ordersheet'!H754=\"\",\"\",'1. Ordersheet'!H754)","v":""},{"$f":"IF('1. Ordersheet'!I754=\"\",\"\",'1. Ordersheet'!I754)","v":""},{"$f":"IF('1. Ordersheet'!J754=\"\",\"\",'1. Ordersheet'!J754)","v":""},{"$f":"IF('1. Ordersheet'!K754=\"\",\"\",'1. Ordersheet'!K754)","v":""},{"$f":"IF('1. Ordersheet'!L754=\"\",\"\",'1. Ordersheet'!L754)","v":""},{"$f":"IF('1. Ordersheet'!M754=\"\",\"\",'1. Ordersheet'!M754)","v":""},{"$f":"IF('1. Ordersheet'!N754=\"\",\"\",'1. Ordersheet'!N754)","v":""},{"$f":"IF('1. Ordersheet'!O754=\"\",\"\",'1. Ordersheet'!O754)","v":{"$error":"#N/A"}},{"$f":"IF('1. Ordersheet'!P754=\"\",\"\",'1. Ordersheet'!P754)","v":{"$error":"#N/A"}},{"$f":"IF('1. Ordersheet'!Q754=\"\",\"\",'1. Ordersheet'!Q754)","v":""},{"$f":"IF('1. Ordersheet'!R754=\"\",\"\",'1. Ordersheet'!R754)","v":""},{"$f":"IF('1. Ordersheet'!S754=\"\",\"\",'1. Ordersheet'!S754)","v":""},{"$f":"IF('1. Ordersheet'!V754=\"\",\"\",'1. Ordersheet'!V754)","v":""},{"$f":"IF('1. Ordersheet'!W754=\"\",\"\",'1. Ordersheet'!W754)","v":""},{"$f":"IF('1. Ordersheet'!X754=\"\",\"\",'1. Ordersheet'!X754)","v":""},{"$f":"IF('1. Ordersheet'!Y754=\"\",\"\",'1. Ordersheet'!Y754)","v":""},{"$f":"IF('1. Ordersheet'!Z754=\"\",\"\",'1. Ordersheet'!Z754)","v":""},{"$f":"IF('1. Ordersheet'!AA754=\"\",\"\",'1. Ordersheet'!AA754)","v":""},null,{"$f":"IF('1. Ordersheet'!AS754=\"\",\"\",'1. Ordersheet'!AS754)","v":""},{"$f":"IF('1. Ordersheet'!AT754=\"\",\"\",'1. Ordersheet'!AT754)","v":""},null,null,null,null,null,null,null,{"$f":"IF('1. Ordersheet'!AX754=\"\",\"\",'1. Ordersheet'!AX754)","v":""},{"$f":"IF('1. Ordersheet'!AY754=\"\",\"\",'1. Ordersheet'!AY754)","v":""},{"$f":"IF('1. Ordersheet'!AZ754=\"\",\"\",'1. Ordersheet'!AZ754)","v":""},{"$f":"IF('1. Ordersheet'!BA754=\"\",\"\",'1. Ordersheet'!BA754)","v":""},{"$f":"IF('1. Ordersheet'!BC754=\"\",\"\",'1. Ordersheet'!BC754)","v":""},{"$f":"IF('1. Ordersheet'!BD754=\"\",\"\",'1. Ordersheet'!BD754)","v":""},{"$f":"IF('1. Ordersheet'!BE754=\"\",\"\",'1. Ordersheet'!BE754)","v":""},{"$f":"IF('1. Ordersheet'!BF754=\"\",\"\",'1. Ordersheet'!BF754)","v":""},{"$f":"IF('1. Ordersheet'!BG754=\"\",\"\",'1. Ordersheet'!BG754)","v":"ZWO"},{"$f":"IF('1. Ordersheet'!BH754=\"\",\"\",'1. Ordersheet'!BH754)","v":""},{"$f":"IF('1. Ordersheet'!BI754=\"\",\"\",'1. Ordersheet'!BI754)","v":""},{"$f":"IF('1. Ordersheet'!BJ754=\"\",\"\",'1. Ordersheet'!BJ754)","v":""},{"$f":"IF('1. Ordersheet'!BK754=\"\",\"\",'1. Ordersheet'!BK754)","v":""},{"$f":"IF('1. Ordersheet'!BL754=\"\",\"\",'1. Ordersheet'!BL754)","v":""}]
[{"$f":"IF('1. Ordersheet'!F755=\"\",\"\",'1. Ordersheet'!F755)","v":""},{"$f":"IF('1. Ordersheet'!G755=\"\",\"\",'1. Ordersheet'!G755)","v":""},{"$f":"IF('1. Ordersheet'!H755=\"\",\"\",'1. Ordersheet'!H755)","v":""},{"$f":"IF('1. Ordersheet'!I755=\"\",\"\",'1. Ordersheet'!I755)","v":""},{"$f":"IF('1. Ordersheet'!J755=\"\",\"\",'1. Ordersheet'!J755)","v":""},{"$f":"IF('1. Ordersheet'!K755=\"\",\"\",'1. Ordersheet'!K755)","v":""},{"$f":"IF('1. Ordersheet'!L755=\"\",\"\",'1. Ordersheet'!L755)","v":""},{"$f":"IF('1. Ordersheet'!M755=\"\",\"\",'1. Ordersheet'!M755)","v":""},{"$f":"IF('1. Ordersheet'!N755=\"\",\"\",'1. Ordersheet'!N755)","v":""},{"$f":"IF('1. Ordersheet'!O755=\"\",\"\",'1. Ordersheet'!O755)","v":{"$error":"#N/A"}},{"$f":"IF('1. Ordersheet'!P755=\"\",\"\",'1. Ordersheet'!P755)","v":{"$error":"#N/A"}},{"$f":"IF('1. Ordersheet'!Q755=\"\",\"\",'1. Ordersheet'!Q755)","v":""},{"$f":"IF('1. Ordersheet'!R755=\"\",\"\",'1. Ordersheet'!R755)","v":""},{"$f":"IF('1. Ordersheet'!S755=\"\",\"\",'1. Ordersheet'!S755)","v":""},{"$f":"IF('1. Ordersheet'!V755=\"\",\"\",'1. Ordersheet'!V755)","v":""},{"$f":"IF('1. Ordersheet'!W755=\"\",\"\",'1. Ordersheet'!W755)","v":""},{"$f":"IF('1. Ordersheet'!X755=\"\",\"\",'1. Ordersheet'!X755)","v":""},{"$f":"IF('1. Ordersheet'!Y755=\"\",\"\",'1. Ordersheet'!Y755)","v":""},{"$f":"IF('1. Ordersheet'!Z755=\"\",\"\",'1. Ordersheet'!Z755)","v":""},{"$f":"IF('1. Ordersheet'!AA755=\"\",\"\",'1. Ordersheet'!AA755)","v":""},null,{"$f":"IF('1. Ordersheet'!AS755=\"\",\"\",'1. Ordersheet'!AS755)","v":""},{"$f":"IF('1. Ordersheet'!AT755=\"\",\"\",'1. Ordersheet'!AT755)","v":""},null,null,null,null,null,null,null,{"$f":"IF('1. Ordersheet'!AX755=\"\",\"\",'1. Ordersheet'!AX755)","v":""},{"$f":"IF('1. Ordersheet'!AY755=\"\",\"\",'1. Ordersheet'!AY755)","v":""},{"$f":"IF('1. Ordersheet'!AZ755=\"\",\"\",'1. Ordersheet'!AZ755)","v":""},{"$f":"IF('1. Ordersheet'!BA755=\"\",\"\",'1. Ordersheet'!BA755)","v":""},{"$f":"IF('1. Ordersheet'!BC755=\"\",\"\",'1. Ordersheet'!BC755)","v":""},{"$f":"IF('1. Ordersheet'!BD755=\"\",\"\",'1. Ordersheet'!BD755)","v":""},{"$f":"IF('1. Ordersheet'!BE755=\"\",\"\",'1. Ordersheet'!BE755)","v":""},{"$f":"IF('1. Ordersheet'!BF755=\"\",\"\",'1. Ordersheet'!BF755)","v":""},{"$f":"IF('1. Ordersheet'!BG755=\"\",\"\",'1. Ordersheet'!BG755)","v":"ZWO"},{"$f":"IF('1. Ordersheet'!BH755=\"\",\"\",'1. Ordersheet'!BH755)","v":""},{"$f":"IF('1. Ordersheet'!BI755=\"\",\"\",'1. Ordersheet'!BI755)","v":""},{"$f":"IF('1. Ordersheet'!BJ755=\"\",\"\",'1. Ordersheet'!BJ755)","v":""},{"$f":"IF('1. Ordersheet'!BK755=\"\",\"\",'1. Ordersheet'!BK755)","v":""},{"$f":"IF('1. Ordersheet'!BL755=\"\",\"\",'1. Ordersheet'!BL755)","v":""}]
[{"$f":"IF('1. Ordersheet'!F756=\"\",\"\",'1. Ordersheet'!F756)","v":""},{"$f":"IF('1. Ordersheet'!G756=\"\",\"\",'1. Ordersheet'!G756)","v":""},{"$f":"IF('1. Ordersheet'!H756=\"\",\"\",'1. Ordersheet'!H756)","v":""},{"$f":"IF('1. Ordersheet'!I756=\"\",\"\",'1. Ordersheet'!I756)","v":""},{"$f":"IF('1. Ordersheet'!J756=\"\",\"\",'1. Ordersheet'!J756)","v":""},{"$f":"IF('1. Ordersheet'!K756=\"\",\"\",'1. Ordersheet'!K756)","v":""},{"$f":"IF('1. Ordersheet'!L756=\"\",\"\",'1. Ordersheet'!L756)","v":""},{"$f":"IF('1. Ordersheet'!M756=\"\",\"\",'1. Ordersheet'!M756)","v":""},{"$f":"IF('1. Ordersheet'!N756=\"\",\"\",'1. Ordersheet'!N756)","v":""},{"$f":"IF('1. Ordersheet'!O756=\"\",\"\",'1. Ordersheet'!O756)","v":{"$error":"#N/A"}},{"$f":"IF('1. Ordersheet'!P756=\"\",\"\",'1. Ordersheet'!P756)","v":{"$error":"#N/A"}},{"$f":"IF('1. Ordersheet'!Q756=\"\",\"\",'1. Ordersheet'!Q756)","v":""},{"$f":"IF('1. Ordersheet'!R756=\"\",\"\",'1. Ordersheet'!R756)","v":""},{"$f":"IF('1. Ordersheet'!S756=\"\",\"\",'1. Ordersheet'!S756)","v":""},{"$f":"IF('1. Ordersheet'!V756=\"\",\"\",'1. Ordersheet'!V756)","v":""},{"$f":"IF('1. Ordersheet'!W756=\"\",\"\",'1. Ordersheet'!W756)","v":""},{"$f":"IF('1. Ordersheet'!X756=\"\",\"\",'1. Ordersheet'!X756)","v":""},{"$f":"IF('1. Ordersheet'!Y756=\"\",\"\",'1. Ordersheet'!Y756)","v":""},{"$f":"IF('1. Ordersheet'!Z756=\"\",\"\",'1. Ordersheet'!Z756)","v":""},{"$f":"IF('1. Ordersheet'!AA756=\"\",\"\",'1. Ordersheet'!AA756)","v":""},null,{"$f":"IF('1. Ordersheet'!AS756=\"\",\"\",'1. Ordersheet'!AS756)","v":""},{"$f":"IF('1. Ordersheet'!AT756=\"\",\"\",'1. Ordersheet'!AT756)","v":""},null,null,null,null,null,null,null,{"$f":"IF('1. Ordersheet'!AX756=\"\",\"\",'1. Ordersheet'!AX756)","v":""},{"$f":"IF('1. Ordersheet'!AY756=\"\",\"\",'1. Ordersheet'!AY756)","v":""},{"$f":"IF('1. Ordersheet'!AZ756=\"\",\"\",'1. Ordersheet'!AZ756)","v":""},{"$f":"IF('1. Ordersheet'!BA756=\"\",\"\",'1. Ordersheet'!BA756)","v":""},{"$f":"IF('1. Ordersheet'!BC756=\"\",\"\",'1. Ordersheet'!BC756)","v":""},{"$f":"IF('1. Ordersheet'!BD756=\"\",\"\",'1. Ordersheet'!BD756)","v":""},{"$f":"IF('1. Ordersheet'!BE756=\"\",\"\",'1. Ordersheet'!BE756)","v":""},{"$f":"IF('1. Ordersheet'!BF756=\"\",\"\",'1. Ordersheet'!BF756)","v":""},{"$f":"IF('1. Ordersheet'!BG756=\"\",\"\",'1. Ordersheet'!BG756)","v":"ZWO"},{"$f":"IF('1. Ordersheet'!BH756=\"\",\"\",'1. Ordersheet'!BH756)","v":""},{"$f":"IF('1. Ordersheet'!BI756=\"\",\"\",'1. Ordersheet'!BI756)","v":""},{"$f":"IF('1. Ordersheet'!BJ756=\"\",\"\",'1. Ordersheet'!BJ756)","v":""},{"$f":"IF('1. Ordersheet'!BK756=\"\",\"\",'1. Ordersheet'!BK756)","v":""},{"$f":"IF('1. Ordersheet'!BL756=\"\",\"\",'1. Ordersheet'!BL756)","v":""}]
[{"$f":"IF('1. Ordersheet'!F757=\"\",\"\",'1. Ordersheet'!F757)","v":""},{"$f":"IF('1. Ordersheet'!G757=\"\",\"\",'1. Ordersheet'!G757)","v":""},{"$f":"IF('1. Ordersheet'!H757=\"\",\"\",'1. Ordersheet'!H757)","v":""},{"$f":"IF('1. Ordersheet'!I757=\"\",\"\",'1. Ordersheet'!I757)","v":""},{"$f":"IF('1. Ordersheet'!J757=\"\",\"\",'1. Ordersheet'!J757)","v":""},{"$f":"IF('1. Ordersheet'!K757=\"\",\"\",'1. Ordersheet'!K757)","v":""},{"$f":"IF('1. Ordersheet'!L757=\"\",\"\",'1. Ordersheet'!L757)","v":""},{"$f":"IF('1. Ordersheet'!M757=\"\",\"\",'1. Ordersheet'!M757)","v":""},{"$f":"IF('1. Ordersheet'!N757=\"\",\"\",'1. Ordersheet'!N757)","v":""},{"$f":"IF('1. Ordersheet'!O757=\"\",\"\",'1. Ordersheet'!O757)","v":{"$error":"#N/A"}},{"$f":"IF('1. Ordersheet'!P757=\"\",\"\",'1. Ordersheet'!P757)","v":{"$error":"#N/A"}},{"$f":"IF('1. Ordersheet'!Q757=\"\",\"\",'1. Ordersheet'!Q757)","v":""},{"$f":"IF('1. Ordersheet'!R757=\"\",\"\",'1. Ordersheet'!R757)","v":""},{"$f":"IF('1. Ordersheet'!S757=\"\",\"\",'1. Ordersheet'!S757)","v":""},{"$f":"IF('1. Ordersheet'!V757=\"\",\"\",'1. Ordersheet'!V757)","v":""},{"$f":"IF('1. Ordersheet'!W757=\"\",\"\",'1. Ordersheet'!W757)","v":""},{"$f":"IF('1. Ordersheet'!X757=\"\",\"\",'1. Ordersheet'!X757)","v":""},{"$f":"IF('1. Ordersheet'!Y757=\"\",\"\",'1. Ordersheet'!Y757)","v":""},{"$f":"IF('1. Ordersheet'!Z757=\"\",\"\",'1. Ordersheet'!Z757)","v":""},{"$f":"IF('1. Ordersheet'!AA757=\"\",\"\",'1. Ordersheet'!AA757)","v":""},null,{"$f":"IF('1. Ordersheet'!AS757=\"\",\"\",'1. Ordersheet'!AS757)","v":""},{"$f":"IF('1. Ordersheet'!AT757=\"\",\"\",'1. Ordersheet'!AT757)","v":""},null,null,null,null,null,null,null,{"$f":"IF('1. Ordersheet'!AX757=\"\",\"\",'1. Ordersheet'!AX757)","v":""},{"$f":"IF('1. Ordersheet'!AY757=\"\",\"\",'1. Ordersheet'!AY757)","v":""},{"$f":"IF('1. Ordersheet'!AZ757=\"\",\"\",'1. Ordersheet'!AZ757)","v":""},{"$f":"IF('1. Ordersheet'!BA757=\"\",\"\",'1. Ordersheet'!BA757)","v":""},{"$f":"IF('1. Ordersheet'!BC757=\"\",\"\",'1. Ordersheet'!BC757)","v":""},{"$f":"IF('1. Ordersheet'!BD757=\"\",\"\",'1. Ordersheet'!BD757)","v":""},{"$f":"IF('1. Ordersheet'!BE757=\"\",\"\",'1. Ordersheet'!BE757)","v":""},{"$f":"IF('1. Ordersheet'!BF757=\"\",\"\",'1. Ordersheet'!BF757)","v":""},{"$f":"IF('1. Ordersheet'!BG757=\"\",\"\",'1. Ordersheet'!BG757)","v":"ZWO"},{"$f":"IF('1. Ordersheet'!BH757=\"\",\"\",'1. Ordersheet'!BH757)","v":""},{"$f":"IF('1. Ordersheet'!BI757=\"\",\"\",'1. Ordersheet'!BI757)","v":""},{"$f":"IF('1. Ordersheet'!BJ757=\"\",\"\",'1. Ordersheet'!BJ757)","v":""},{"$f":"IF('1. Ordersheet'!BK757=\"\",\"\",'1. Ordersheet'!BK757)","v":""},{"$f":"IF('1. Ordersheet'!BL757=\"\",\"\",'1. Ordersheet'!BL757)","v":""}]
[{"$f":"IF('1. Ordersheet'!F758=\"\",\"\",'1. Ordersheet'!F758)","v":""},{"$f":"IF('1. Ordersheet'!G758=\"\",\"\",'1. Ordersheet'!G758)","v":""},{"$f":"IF('1. Ordersheet'!H758=\"\",\"\",'1. Ordersheet'!H758)","v":""},{"$f":"IF('1. Ordersheet'!I758=\"\",\"\",'1. Ordersheet'!I758)","v":""},{"$f":"IF('1. Ordersheet'!J758=\"\",\"\",'1. Ordersheet'!J758)","v":""},{"$f":"IF('1. Ordersheet'!K758=\"\",\"\",'1. Ordersheet'!K758)","v":""},{"$f":"IF('1. Ordersheet'!L758=\"\",\"\",'1. Ordersheet'!L758)","v":""},{"$f":"IF('1. Ordersheet'!M758=\"\",\"\",'1. Ordersheet'!M758)","v":""},{"$f":"IF('1. Ordersheet'!N758=\"\",\"\",'1. Ordersheet'!N758)","v":""},{"$f":"IF('1. Ordersheet'!O758=\"\",\"\",'1. Ordersheet'!O758)","v":{"$error":"#N/A"}},{"$f":"IF('1. Ordersheet'!P758=\"\",\"\",'1. Ordersheet'!P758)","v":{"$error":"#N/A"}},{"$f":"IF('1. Ordersheet'!Q758=\"\",\"\",'1. Ordersheet'!Q758)","v":""},{"$f":"IF('1. Ordersheet'!R758=\"\",\"\",'1. Ordersheet'!R758)","v":""},{"$f":"IF('1. Ordersheet'!S758=\"\",\"\",'1. Ordersheet'!S758)","v":""},{"$f":"IF('1. Ordersheet'!V758=\"\",\"\",'1. Ordersheet'!V758)","v":""},{"$f":"IF('1. Ordersheet'!W758=\"\",\"\",'1. Ordersheet'!W758)","v":""},{"$f":"IF('1. Ordersheet'!X758=\"\",\"\",'1. Ordersheet'!X758)","v":""},{"$f":"IF('1. Ordersheet'!Y758=\"\",\"\",'1. Ordersheet'!Y758)","v":""},{"$f":"IF('1. Ordersheet'!Z758=\"\",\"\",'1. Ordersheet'!Z758)","v":""},{"$f":"IF('1. Ordersheet'!AA758=\"\",\"\",'1. Ordersheet'!AA758)","v":""},null,{"$f":"IF('1. Ordersheet'!AS758=\"\",\"\",'1. Ordersheet'!AS758)","v":""},{"$f":"IF('1. Ordersheet'!AT758=\"\",\"\",'1. Ordersheet'!AT758)","v":""},null,null,null,null,null,null,null,{"$f":"IF('1. Ordersheet'!AX758=\"\",\"\",'1. Ordersheet'!AX758)","v":""},{"$f":"IF('1. Ordersheet'!AY758=\"\",\"\",'1. Ordersheet'!AY758)","v":""},{"$f":"IF('1. Ordersheet'!AZ758=\"\",\"\",'1. Ordersheet'!AZ758)","v":""},{"$f":"IF('1. Ordersheet'!BA758=\"\",\"\",'1. Ordersheet'!BA758)","v":""},{"$f":"IF('1. Ordersheet'!BC758=\"\",\"\",'1. Ordersheet'!BC758)","v":""},{"$f":"IF('1. Ordersheet'!BD758=\"\",\"\",'1. Ordersheet'!BD758)","v":""},{"$f":"IF('1. Ordersheet'!BE758=\"\",\"\",'1. Ordersheet'!BE758)","v":""},{"$f":"IF('1. Ordersheet'!BF758=\"\",\"\",'1. Ordersheet'!BF758)","v":""},{"$f":"IF('1. Ordersheet'!BG758=\"\",\"\",'1. Ordersheet'!BG758)","v":"ZWO"},{"$f":"IF('1. Ordersheet'!BH758=\"\",\"\",'1. Ordersheet'!BH758)","v":""},{"$f":"IF('1. Ordersheet'!BI758=\"\",\"\",'1. Ordersheet'!BI758)","v":""},{"$f":"IF('1. Ordersheet'!BJ758=\"\",\"\",'1. Ordersheet'!BJ758)","v":""},{"$f":"IF('1. Ordersheet'!BK758=\"\",\"\",'1. Ordersheet'!BK758)","v":""},{"$f":"IF('1. Ordersheet'!BL758=\"\",\"\",'1. Ordersheet'!BL758)","v":""}]
[{"$f":"IF('1. Ordersheet'!F759=\"\",\"\",'1. Ordersheet'!F759)","v":""},{"$f":"IF('1. Ordersheet'!G759=\"\",\"\",'1. Ordersheet'!G759)","v":""},{"$f":"IF('1. Ordersheet'!H759=\"\",\"\",'1. Ordersheet'!H759)","v":""},{"$f":"IF('1. Ordersheet'!I759=\"\",\"\",'1. Ordersheet'!I759)","v":""},{"$f":"IF('1. Ordersheet'!J759=\"\",\"\",'1. Ordersheet'!J759)","v":""},{"$f":"IF('1. Ordersheet'!K759=\"\",\"\",'1. Ordersheet'!K759)","v":""},{"$f":"IF('1. Ordersheet'!L759=\"\",\"\",'1. Ordersheet'!L759)","v":""},{"$f":"IF('1. Ordersheet'!M759=\"\",\"\",'1. Ordersheet'!M759)","v":""},{"$f":"IF('1. Ordersheet'!N759=\"\",\"\",'1. Ordersheet'!N759)","v":""},{"$f":"IF('1. Ordersheet'!O759=\"\",\"\",'1. Ordersheet'!O759)","v":{"$error":"#N/A"}},{"$f":"IF('1. Ordersheet'!P759=\"\",\"\",'1. Ordersheet'!P759)","v":{"$error":"#N/A"}},{"$f":"IF('1. Ordersheet'!Q759=\"\",\"\",'1. Ordersheet'!Q759)","v":""},{"$f":"IF('1. Ordersheet'!R759=\"\",\"\",'1. Ordersheet'!R759)","v":""},{"$f":"IF('1. Ordersheet'!S759=\"\",\"\",'1. Ordersheet'!S759)","v":""},{"$f":"IF('1. Ordersheet'!V759=\"\",\"\",'1. Ordersheet'!V759)","v":""},{"$f":"IF('1. Ordersheet'!W759=\"\",\"\",'1. Ordersheet'!W759)","v":""},{"$f":"IF('1. Ordersheet'!X759=\"\",\"\",'1. Ordersheet'!X759)","v":""},{"$f":"IF('1. Ordersheet'!Y759=\"\",\"\",'1. Ordersheet'!Y759)","v":""},{"$f":"IF('1. Ordersheet'!Z759=\"\",\"\",'1. Ordersheet'!Z759)","v":""},{"$f":"IF('1. Ordersheet'!AA759=\"\",\"\",'1. Ordersheet'!AA759)","v":""},null,{"$f":"IF('1. Ordersheet'!AS759=\"\",\"\",'1. Ordersheet'!AS759)","v":""},{"$f":"IF('1. Ordersheet'!AT759=\"\",\"\",'1. Ordersheet'!AT759)","v":""},null,null,null,null,null,null,null,{"$f":"IF('1. Ordersheet'!AX759=\"\",\"\",'1. Ordersheet'!AX759)","v":""},{"$f":"IF('1. Ordersheet'!AY759=\"\",\"\",'1. Ordersheet'!AY759)","v":""},{"$f":"IF('1. Ordersheet'!AZ759=\"\",\"\",'1. Ordersheet'!AZ759)","v":""},{"$f":"IF('1. Ordersheet'!BA759=\"\",\"\",'1. Ordersheet'!BA759)","v":""},{"$f":"IF('1. Ordersheet'!BC759=\"\",\"\",'1. Ordersheet'!BC759)","v":""},{"$f":"IF('1. Ordersheet'!BD759=\"\",\"\",'1. Ordersheet'!BD759)","v":""},{"$f":"IF('1. Ordersheet'!BE759=\"\",\"\",'1. Ordersheet'!BE759)","v":""},{"$f":"IF('1. Ordersheet'!BF759=\"\",\"\",'1. Ordersheet'!BF759)","v":""},{"$f":"IF('1. Ordersheet'!BG759=\"\",\"\",'1. Ordersheet'!BG759)","v":"ZWO"},{"$f":"IF('1. Ordersheet'!BH759=\"\",\"\",'1. Ordersheet'!BH759)","v":""},{"$f":"IF('1. Ordersheet'!BI759=\"\",\"\",'1. Ordersheet'!BI759)","v":""},{"$f":"IF('1. Ordersheet'!BJ759=\"\",\"\",'1. Ordersheet'!BJ759)","v":""},{"$f":"IF('1. Ordersheet'!BK759=\"\",\"\",'1. Ordersheet'!BK759)","v":""},{"$f":"IF('1. Ordersheet'!BL759=\"\",\"\",'1. Ordersheet'!BL759)","v":""}]
[{"$f":"IF('1. Ordersheet'!F760=\"\",\"\",'1. Ordersheet'!F760)","v":""},{"$f":"IF('1. Ordersheet'!G760=\"\",\"\",'1. Ordersheet'!G760)","v":""},{"$f":"IF('1. Ordersheet'!H760=\"\",\"\",'1. Ordersheet'!H760)","v":""},{"$f":"IF('1. Ordersheet'!I760=\"\",\"\",'1. Ordersheet'!I760)","v":""},{"$f":"IF('1. Ordersheet'!J760=\"\",\"\",'1. Ordersheet'!J760)","v":""},{"$f":"IF('1. Ordersheet'!K760=\"\",\"\",'1. Ordersheet'!K760)","v":""},{"$f":"IF('1. Ordersheet'!L760=\"\",\"\",'1. Ordersheet'!L760)","v":""},{"$f":"IF('1. Ordersheet'!M760=\"\",\"\",'1. Ordersheet'!M760)","v":""},{"$f":"IF('1. Ordersheet'!N760=\"\",\"\",'1. Ordersheet'!N760)","v":""},{"$f":"IF('1. Ordersheet'!O760=\"\",\"\",'1. Ordersheet'!O760)","v":{"$error":"#N/A"}},{"$f":"IF('1. Ordersheet'!P760=\"\",\"\",'1. Ordersheet'!P760)","v":{"$error":"#N/A"}},{"$f":"IF('1. Ordersheet'!Q760=\"\",\"\",'1. Ordersheet'!Q760)","v":""},{"$f":"IF('1. Ordersheet'!R760=\"\",\"\",'1. Ordersheet'!R760)","v":""},{"$f":"IF('1. Ordersheet'!S760=\"\",\"\",'1. Ordersheet'!S760)","v":""},{"$f":"IF('1. Ordersheet'!V760=\"\",\"\",'1. Ordersheet'!V760)","v":""},{"$f":"IF('1. Ordersheet'!W760=\"\",\"\",'1. Ordersheet'!W760)","v":""},{"$f":"IF('1. Ordersheet'!X760=\"\",\"\",'1. Ordersheet'!X760)","v":""},{"$f":"IF('1. Ordersheet'!Y760=\"\",\"\",'1. Ordersheet'!Y760)","v":""},{"$f":"IF('1. Ordersheet'!Z760=\"\",\"\",'1. Ordersheet'!Z760)","v":""},{"$f":"IF('1. Ordersheet'!AA760=\"\",\"\",'1. Ordersheet'!AA760)","v":""},null,{"$f":"IF('1. Ordersheet'!AS760=\"\",\"\",'1. Ordersheet'!AS760)","v":""},{"$f":"IF('1. Ordersheet'!AT760=\"\",\"\",'1. Ordersheet'!AT760)","v":""},null,null,null,null,null,null,null,{"$f":"IF('1. Ordersheet'!AX760=\"\",\"\",'1. Ordersheet'!AX760)","v":""},{"$f":"IF('1. Ordersheet'!AY760=\"\",\"\",'1. Ordersheet'!AY760)","v":""},{"$f":"IF('1. Ordersheet'!AZ760=\"\",\"\",'1. Ordersheet'!AZ760)","v":""},{"$f":"IF('1. Ordersheet'!BA760=\"\",\"\",'1. Ordersheet'!BA760)","v":""},{"$f":"IF('1. Ordersheet'!BC760=\"\",\"\",'1. Ordersheet'!BC760)","v":""},{"$f":"IF('1. Ordersheet'!BD760=\"\",\"\",'1. Ordersheet'!BD760)","v":""},{"$f":"IF('1. Ordersheet'!BE760=\"\",\"\",'1. Ordersheet'!BE760)","v":""},{"$f":"IF('1. Ordersheet'!BF760=\"\",\"\",'1. Ordersheet'!BF760)","v":""},{"$f":"IF('1. Ordersheet'!BG760=\"\",\"\",'1. Ordersheet'!BG760)","v":"ZWO"},{"$f":"IF('1. Ordersheet'!BH760=\"\",\"\",'1. Ordersheet'!BH760)","v":""},{"$f":"IF('1. Ordersheet'!BI760=\"\",\"\",'1. Ordersheet'!BI760)","v":""},{"$f":"IF('1. Ordersheet'!BJ760=\"\",\"\",'1. Ordersheet'!BJ760)","v":""},{"$f":"IF('1. Ordersheet'!BK760=\"\",\"\",'1. Ordersheet'!BK760)","v":""},{"$f":"IF('1. Ordersheet'!BL760=\"\",\"\",'1. Ordersheet'!BL760)","v":""}]
[{"$f":"IF('1. Ordersheet'!F761=\"\",\"\",'1. Ordersheet'!F761)","v":""},{"$f":"IF('1. Ordersheet'!G761=\"\",\"\",'1. Ordersheet'!G761)","v":""},{"$f":"IF('1. Ordersheet'!H761=\"\",\"\",'1. Ordersheet'!H761)","v":""},{"$f":"IF('1. Ordersheet'!I761=\"\",\"\",'1. Ordersheet'!I761)","v":""},{"$f":"IF('1. Ordersheet'!J761=\"\",\"\",'1. Ordersheet'!J761)","v":""},{"$f":"IF('1. Ordersheet'!K761=\"\",\"\",'1. Ordersheet'!K761)","v":""},{"$f":"IF('1. Ordersheet'!L761=\"\",\"\",'1. Ordersheet'!L761)","v":""},{"$f":"IF('1. Ordersheet'!M761=\"\",\"\",'1. Ordersheet'!M761)","v":""},{"$f":"IF('1. Ordersheet'!N761=\"\",\"\",'1. Ordersheet'!N761)","v":""},{"$f":"IF('1. Ordersheet'!O761=\"\",\"\",'1. Ordersheet'!O761)","v":{"$error":"#N/A"}},{"$f":"IF('1. Ordersheet'!P761=\"\",\"\",'1. Ordersheet'!P761)","v":{"$error":"#N/A"}},{"$f":"IF('1. Ordersheet'!Q761=\"\",\"\",'1. Ordersheet'!Q761)","v":""},{"$f":"IF('1. Ordersheet'!R761=\"\",\"\",'1. Ordersheet'!R761)","v":""},{"$f":"IF('1. Ordersheet'!S761=\"\",\"\",'1. Ordersheet'!S761)","v":""},{"$f":"IF('1. Ordersheet'!V761=\"\",\"\",'1. Ordersheet'!V761)","v":""},{"$f":"IF('1. Ordersheet'!W761=\"\",\"\",'1. Ordersheet'!W761)","v":""},{"$f":"IF('1. Ordersheet'!X761=\"\",\"\",'1. Ordersheet'!X761)","v":""},{"$f":"IF('1. Ordersheet'!Y761=\"\",\"\",'1. Ordersheet'!Y761)","v":""},{"$f":"IF('1. Ordersheet'!Z761=\"\",\"\",'1. Ordersheet'!Z761)","v":""},{"$f":"IF('1. Ordersheet'!AA761=\"\",\"\",'1. Ordersheet'!AA761)","v":""},null,{"$f":"IF('1. Ordersheet'!AS761=\"\",\"\",'1. Ordersheet'!AS761)","v":""},{"$f":"IF('1. Ordersheet'!AT761=\"\",\"\",'1. Ordersheet'!AT761)","v":""},null,null,null,null,null,null,null,{"$f":"IF('1. Ordersheet'!AX761=\"\",\"\",'1. Ordersheet'!AX761)","v":""},{"$f":"IF('1. Ordersheet'!AY761=\"\",\"\",'1. Ordersheet'!AY761)","v":""},{"$f":"IF('1. Ordersheet'!AZ761=\"\",\"\",'1. Ordersheet'!AZ761)","v":""},{"$f":"IF('1. Ordersheet'!BA761=\"\",\"\",'1. Ordersheet'!BA761)","v":""},{"$f":"IF('1. Ordersheet'!BC761=\"\",\"\",'1. Ordersheet'!BC761)","v":""},{"$f":"IF('1. Ordersheet'!BD761=\"\",\"\",'1. Ordersheet'!BD761)","v":""},{"$f":"IF('1. Ordersheet'!BE761=\"\",\"\",'1. Ordersheet'!BE761)","v":""},{"$f":"IF('1. Ordersheet'!BF761=\"\",\"\",'1. Ordersheet'!BF761)","v":""},{"$f":"IF('1. Ordersheet'!BG761=\"\",\"\",'1. Ordersheet'!BG761)","v":"ZWO"},{"$f":"IF('1. Ordersheet'!BH761=\"\",\"\",'1. Ordersheet'!BH761)","v":""},{"$f":"IF('1. Ordersheet'!BI761=\"\",\"\",'1. Ordersheet'!BI761)","v":""},{"$f":"IF('1. Ordersheet'!BJ761=\"\",\"\",'1. Ordersheet'!BJ761)","v":""},{"$f":"IF('1. Ordersheet'!BK761=\"\",\"\",'1. Ordersheet'!BK761)","v":""},{"$f":"IF('1. Ordersheet'!BL761=\"\",\"\",'1. Ordersheet'!BL761)","v":""}]
[{"$f":"IF('1. Ordersheet'!F762=\"\",\"\",'1. Ordersheet'!F762)","v":""},{"$f":"IF('1. Ordersheet'!G762=\"\",\"\",'1. Ordersheet'!G762)","v":""},{"$f":"IF('1. Ordersheet'!H762=\"\",\"\",'1. Ordersheet'!H762)","v":""},{"$f":"IF('1. Ordersheet'!I762=\"\",\"\",'1. Ordersheet'!I762)","v":""},{"$f":"IF('1. Ordersheet'!J762=\"\",\"\",'1. Ordersheet'!J762)","v":""},{"$f":"IF('1. Ordersheet'!K762=\"\",\"\",'1. Ordersheet'!K762)","v":""},{"$f":"IF('1. Ordersheet'!L762=\"\",\"\",'1. Ordersheet'!L762)","v":""},{"$f":"IF('1. Ordersheet'!M762=\"\",\"\",'1. Ordersheet'!M762)","v":""},{"$f":"IF('1. Ordersheet'!N762=\"\",\"\",'1. Ordersheet'!N762)","v":""},{"$f":"IF('1. Ordersheet'!O762=\"\",\"\",'1. Ordersheet'!O762)","v":{"$error":"#N/A"}},{"$f":"IF('1. Ordersheet'!P762=\"\",\"\",'1. Ordersheet'!P762)","v":{"$error":"#N/A"}},{"$f":"IF('1. Ordersheet'!Q762=\"\",\"\",'1. Ordersheet'!Q762)","v":""},{"$f":"IF('1. Ordersheet'!R762=\"\",\"\",'1. Ordersheet'!R762)","v":""},{"$f":"IF('1. Ordersheet'!S762=\"\",\"\",'1. Ordersheet'!S762)","v":""},{"$f":"IF('1. Ordersheet'!V762=\"\",\"\",'1. Ordersheet'!V762)","v":""},{"$f":"IF('1. Ordersheet'!W762=\"\",\"\",'1. Ordersheet'!W762)","v":""},{"$f":"IF('1. Ordersheet'!X762=\"\",\"\",'1. Ordersheet'!X762)","v":""},{"$f":"IF('1. Ordersheet'!Y762=\"\",\"\",'1. Ordersheet'!Y762)","v":""},{"$f":"IF('1. Ordersheet'!Z762=\"\",\"\",'1. Ordersheet'!Z762)","v":""},{"$f":"IF('1. Ordersheet'!AA762=\"\",\"\",'1. Ordersheet'!AA762)","v":""},null,{"$f":"IF('1. Ordersheet'!AS762=\"\",\"\",'1. Ordersheet'!AS762)","v":""},{"$f":"IF('1. Ordersheet'!AT762=\"\",\"\",'1. Ordersheet'!AT762)","v":""},null,null,null,null,null,null,null,{"$f":"IF('1. Ordersheet'!AX762=\"\",\"\",'1. Ordersheet'!AX762)","v":""},{"$f":"IF('1. Ordersheet'!AY762=\"\",\"\",'1. Ordersheet'!AY762)","v":""},{"$f":"IF('1. Ordersheet'!AZ762=\"\",\"\",'1. Ordersheet'!AZ762)","v":""},{"$f":"IF('1. Ordersheet'!BA762=\"\",\"\",'1. Ordersheet'!BA762)","v":""},{"$f":"IF('1. Ordersheet'!BC762=\"\",\"\",'1. Ordersheet'!BC762)","v":""},{"$f":"IF('1. Ordersheet'!BD762=\"\",\"\",'1. Ordersheet'!BD762)","v":""},{"$f":"IF('1. Ordersheet'!BE762=\"\",\"\",'1. Ordersheet'!BE762)","v":""},{"$f":"IF('1. Ordersheet'!BF762=\"\",\"\",'1. Ordersheet'!BF762)","v":""},{"$f":"IF('1. Ordersheet'!BG762=\"\",\"\",'1. Ordersheet'!BG762)","v":"ZWO"},{"$f":"IF('1. Ordersheet'!BH762=\"\",\"\",'1. Ordersheet'!BH762)","v":""},{"$f":"IF('1. Ordersheet'!BI762=\"\",\"\",'1. Ordersheet'!BI762)","v":""},{"$f":"IF('1. Ordersheet'!BJ762=\"\",\"\",'1. Ordersheet'!BJ762)","v":""},{"$f":"IF('1. Ordersheet'!BK762=\"\",\"\",'1. Ordersheet'!BK762)","v":""},{"$f":"IF('1. Ordersheet'!BL762=\"\",\"\",'1. Ordersheet'!BL762)","v":""}]
[{"$f":"IF('1. Ordersheet'!F763=\"\",\"\",'1. Ordersheet'!F763)","v":""},{"$f":"IF('1. Ordersheet'!G763=\"\",\"\",'1. Ordersheet'!G763)","v":""},{"$f":"IF('1. Ordersheet'!H763=\"\",\"\",'1. Ordersheet'!H763)","v":""},{"$f":"IF('1. Ordersheet'!I763=\"\",\"\",'1. Ordersheet'!I763)","v":""},{"$f":"IF('1. Ordersheet'!J763=\"\",\"\",'1. Ordersheet'!J763)","v":""},{"$f":"IF('1. Ordersheet'!K763=\"\",\"\",'1. Ordersheet'!K763)","v":""},{"$f":"IF('1. Ordersheet'!L763=\"\",\"\",'1. Ordersheet'!L763)","v":""},{"$f":"IF('1. Ordersheet'!M763=\"\",\"\",'1. Ordersheet'!M763)","v":""},{"$f":"IF('1. Ordersheet'!N763=\"\",\"\",'1. Ordersheet'!N763)","v":""},{"$f":"IF('1. Ordersheet'!O763=\"\",\"\",'1. Ordersheet'!O763)","v":{"$error":"#N/A"}},{"$f":"IF('1. Ordersheet'!P763=\"\",\"\",'1. Ordersheet'!P763)","v":{"$error":"#N/A"}},{"$f":"IF('1. Ordersheet'!Q763=\"\",\"\",'1. Ordersheet'!Q763)","v":""},{"$f":"IF('1. Ordersheet'!R763=\"\",\"\",'1. Ordersheet'!R763)","v":""},{"$f":"IF('1. Ordersheet'!S763=\"\",\"\",'1. Ordersheet'!S763)","v":""},{"$f":"IF('1. Ordersheet'!V763=\"\",\"\",'1. Ordersheet'!V763)","v":""},{"$f":"IF('1. Ordersheet'!W763=\"\",\"\",'1. Ordersheet'!W763)","v":""},{"$f":"IF('1. Ordersheet'!X763=\"\",\"\",'1. Ordersheet'!X763)","v":""},{"$f":"IF('1. Ordersheet'!Y763=\"\",\"\",'1. Ordersheet'!Y763)","v":""},{"$f":"IF('1. Ordersheet'!Z763=\"\",\"\",'1. Ordersheet'!Z763)","v":""},{"$f":"IF('1. Ordersheet'!AA763=\"\",\"\",'1. Ordersheet'!AA763)","v":""},null,{"$f":"IF('1. Ordersheet'!AS763=\"\",\"\",'1. Ordersheet'!AS763)","v":""},{"$f":"IF('1. Ordersheet'!AT763=\"\",\"\",'1. Ordersheet'!AT763)","v":""},null,null,null,null,null,null,null,{"$f":"IF('1. Ordersheet'!AX763=\"\",\"\",'1. Ordersheet'!AX763)","v":""},{"$f":"IF('1. Ordersheet'!AY763=\"\",\"\",'1. Ordersheet'!AY763)","v":""},{"$f":"IF('1. Ordersheet'!AZ763=\"\",\"\",'1. Ordersheet'!AZ763)","v":""},{"$f":"IF('1. Ordersheet'!BA763=\"\",\"\",'1. Ordersheet'!BA763)","v":""},{"$f":"IF('1. Ordersheet'!BC763=\"\",\"\",'1. Ordersheet'!BC763)","v":""},{"$f":"IF('1. Ordersheet'!BD763=\"\",\"\",'1. Ordersheet'!BD763)","v":""},{"$f":"IF('1. Ordersheet'!BE763=\"\",\"\",'1. Ordersheet'!BE763)","v":""},{"$f":"IF('1. Ordersheet'!BF763=\"\",\"\",'1. Ordersheet'!BF763)","v":""},{"$f":"IF('1. Ordersheet'!BG763=\"\",\"\",'1. Ordersheet'!BG763)","v":"ZWO"},{"$f":"IF('1. Ordersheet'!BH763=\"\",\"\",'1. Ordersheet'!BH763)","v":""},{"$f":"IF('1. Ordersheet'!BI763=\"\",\"\",'1. Ordersheet'!BI763)","v":""},{"$f":"IF('1. Ordersheet'!BJ763=\"\",\"\",'1. Ordersheet'!BJ763)","v":""},{"$f":"IF('1. Ordersheet'!BK763=\"\",\"\",'1. Ordersheet'!BK763)","v":""},{"$f":"IF('1. Ordersheet'!BL763=\"\",\"\",'1. Ordersheet'!BL763)","v":""}]
[{"$f":"IF('1. Ordersheet'!F764=\"\",\"\",'1. Ordersheet'!F764)","v":""},{"$f":"IF('1. Ordersheet'!G764=\"\",\"\",'1. Ordersheet'!G764)","v":""},{"$f":"IF('1. Ordersheet'!H764=\"\",\"\",'1. Ordersheet'!H764)","v":""},{"$f":"IF('1. Ordersheet'!I764=\"\",\"\",'1. Ordersheet'!I764)","v":""},{"$f":"IF('1. Ordersheet'!J764=\"\",\"\",'1. Ordersheet'!J764)","v":""},{"$f":"IF('1. Ordersheet'!K764=\"\",\"\",'1. Ordersheet'!K764)","v":""},{"$f":"IF('1. Ordersheet'!L764=\"\",\"\",'1. Ordersheet'!L764)","v":""},{"$f":"IF('1. Ordersheet'!M764=\"\",\"\",'1. Ordersheet'!M764)","v":""},{"$f":"IF('1. Ordersheet'!N764=\"\",\"\",'1. Ordersheet'!N764)","v":""},{"$f":"IF('1. Ordersheet'!O764=\"\",\"\",'1. Ordersheet'!O764)","v":{"$error":"#N/A"}},{"$f":"IF('1. Ordersheet'!P764=\"\",\"\",'1. Ordersheet'!P764)","v":{"$error":"#N/A"}},{"$f":"IF('1. Ordersheet'!Q764=\"\",\"\",'1. Ordersheet'!Q764)","v":""},{"$f":"IF('1. Ordersheet'!R764=\"\",\"\",'1. Ordersheet'!R764)","v":""},{"$f":"IF('1. Ordersheet'!S764=\"\",\"\",'1. Ordersheet'!S764)","v":""},{"$f":"IF('1. Ordersheet'!V764=\"\",\"\",'1. Ordersheet'!V764)","v":""},{"$f":"IF('1. Ordersheet'!W764=\"\",\"\",'1. Ordersheet'!W764)","v":""},{"$f":"IF('1. Ordersheet'!X764=\"\",\"\",'1. Ordersheet'!X764)","v":""},{"$f":"IF('1. Ordersheet'!Y764=\"\",\"\",'1. Ordersheet'!Y764)","v":""},{"$f":"IF('1. Ordersheet'!Z764=\"\",\"\",'1. Ordersheet'!Z764)","v":""},{"$f":"IF('1. Ordersheet'!AA764=\"\",\"\",'1. Ordersheet'!AA764)","v":""},null,{"$f":"IF('1. Ordersheet'!AS764=\"\",\"\",'1. Ordersheet'!AS764)","v":""},{"$f":"IF('1. Ordersheet'!AT764=\"\",\"\",'1. Ordersheet'!AT764)","v":""},null,null,null,null,null,null,null,{"$f":"IF('1. Ordersheet'!AX764=\"\",\"\",'1. Ordersheet'!AX764)","v":""},{"$f":"IF('1. Ordersheet'!AY764=\"\",\"\",'1. Ordersheet'!AY764)","v":""},{"$f":"IF('1. Ordersheet'!AZ764=\"\",\"\",'1. Ordersheet'!AZ764)","v":""},{"$f":"IF('1. Ordersheet'!BA764=\"\",\"\",'1. Ordersheet'!BA764)","v":""},{"$f":"IF('1. Ordersheet'!BC764=\"\",\"\",'1. Ordersheet'!BC764)","v":""},{"$f":"IF('1. Ordersheet'!BD764=\"\",\"\",'1. Ordersheet'!BD764)","v":""},{"$f":"IF('1. Ordersheet'!BE764=\"\",\"\",'1. Ordersheet'!BE764)","v":""},{"$f":"IF('1. Ordersheet'!BF764=\"\",\"\",'1. Ordersheet'!BF764)","v":""},{"$f":"IF('1. Ordersheet'!BG764=\"\",\"\",'1. Ordersheet'!BG764)","v":"ZWO"},{"$f":"IF('1. Ordersheet'!BH764=\"\",\"\",'1. Ordersheet'!BH764)","v":""},{"$f":"IF('1. Ordersheet'!BI764=\"\",\"\",'1. Ordersheet'!BI764)","v":""},{"$f":"IF('1. Ordersheet'!BJ764=\"\",\"\",'1. Ordersheet'!BJ764)","v":""},{"$f":"IF('1. Ordersheet'!BK764=\"\",\"\",'1. Ordersheet'!BK764)","v":""},{"$f":"IF('1. Ordersheet'!BL764=\"\",\"\",'1. Ordersheet'!BL764)","v":""}]
[{"$f":"IF('1. Ordersheet'!F765=\"\",\"\",'1. Ordersheet'!F765)","v":""},{"$f":"IF('1. Ordersheet'!G765=\"\",\"\",'1. Ordersheet'!G765)","v":""},{"$f":"IF('1. Ordersheet'!H765=\"\",\"\",'1. Ordersheet'!H765)","v":""},{"$f":"IF('1. Ordersheet'!I765=\"\",\"\",'1. Ordersheet'!I765)","v":""},{"$f":"IF('1. Ordersheet'!J765=\"\",\"\",'1. Ordersheet'!J765)","v":""},{"$f":"IF('1. Ordersheet'!K765=\"\",\"\",'1. Ordersheet'!K765)","v":""},{"$f":"IF('1. Ordersheet'!L765=\"\",\"\",'1. Ordersheet'!L765)","v":""},{"$f":"IF('1. Ordersheet'!M765=\"\",\"\",'1. Ordersheet'!M765)","v":""},{"$f":"IF('1. Ordersheet'!N765=\"\",\"\",'1. Ordersheet'!N765)","v":""},{"$f":"IF('1. Ordersheet'!O765=\"\",\"\",'1. Ordersheet'!O765)","v":{"$error":"#N/A"}},{"$f":"IF('1. Ordersheet'!P765=\"\",\"\",'1. Ordersheet'!P765)","v":{"$error":"#N/A"}},{"$f":"IF('1. Ordersheet'!Q765=\"\",\"\",'1. Ordersheet'!Q765)","v":""},{"$f":"IF('1. Ordersheet'!R765=\"\",\"\",'1. Ordersheet'!R765)","v":""},{"$f":"IF('1. Ordersheet'!S765=\"\",\"\",'1. Ordersheet'!S765)","v":""},{"$f":"IF('1. Ordersheet'!V765=\"\",\"\",'1. Ordersheet'!V765)","v":""},{"$f":"IF('1. Ordersheet'!W765=\"\",\"\",'1. Ordersheet'!W765)","v":""},{"$f":"IF('1. Ordersheet'!X765=\"\",\"\",'1. Ordersheet'!X765)","v":""},{"$f":"IF('1. Ordersheet'!Y765=\"\",\"\",'1. Ordersheet'!Y765)","v":""},{"$f":"IF('1. Ordersheet'!Z765=\"\",\"\",'1. Ordersheet'!Z765)","v":""},{"$f":"IF('1. Ordersheet'!AA765=\"\",\"\",'1. Ordersheet'!AA765)","v":""},null,{"$f":"IF('1. Ordersheet'!AS765=\"\",\"\",'1. Ordersheet'!AS765)","v":""},{"$f":"IF('1. Ordersheet'!AT765=\"\",\"\",'1. Ordersheet'!AT765)","v":""},null,null,null,null,null,null,null,{"$f":"IF('1. Ordersheet'!AX765=\"\",\"\",'1. Ordersheet'!AX765)","v":""},{"$f":"IF('1. Ordersheet'!AY765=\"\",\"\",'1. Ordersheet'!AY765)","v":""},{"$f":"IF('1. Ordersheet'!AZ765=\"\",\"\",'1. Ordersheet'!AZ765)","v":""},{"$f":"IF('1. Ordersheet'!BA765=\"\",\"\",'1. Ordersheet'!BA765)","v":""},{"$f":"IF('1. Ordersheet'!BC765=\"\",\"\",'1. Ordersheet'!BC765)","v":""},{"$f":"IF('1. Ordersheet'!BD765=\"\",\"\",'1. Ordersheet'!BD765)","v":""},{"$f":"IF('1. Ordersheet'!BE765=\"\",\"\",'1. Ordersheet'!BE765)","v":""},{"$f":"IF('1. Ordersheet'!BF765=\"\",\"\",'1. Ordersheet'!BF765)","v":""},{"$f":"IF('1. Ordersheet'!BG765=\"\",\"\",'1. Ordersheet'!BG765)","v":"ZWO"},{"$f":"IF('1. Ordersheet'!BH765=\"\",\"\",'1. Ordersheet'!BH765)","v":""},{"$f":"IF('1. Ordersheet'!BI765=\"\",\"\",'1. Ordersheet'!BI765)","v":""},{"$f":"IF('1. Ordersheet'!BJ765=\"\",\"\",'1. Ordersheet'!BJ765)","v":""},{"$f":"IF('1. Ordersheet'!BK765=\"\",\"\",'1. Ordersheet'!BK765)","v":""},{"$f":"IF('1. Ordersheet'!BL765=\"\",\"\",'1. Ordersheet'!BL765)","v":""}]
[{"$f":"IF('1. Ordersheet'!F766=\"\",\"\",'1. Ordersheet'!F766)","v":""},{"$f":"IF('1. Ordersheet'!G766=\"\",\"\",'1. Ordersheet'!G766)","v":""},{"$f":"IF('1. Ordersheet'!H766=\"\",\"\",'1. Ordersheet'!H766)","v":""},{"$f":"IF('1. Ordersheet'!I766=\"\",\"\",'1. Ordersheet'!I766)","v":""},{"$f":"IF('1. Ordersheet'!J766=\"\",\"\",'1. Ordersheet'!J766)","v":""},{"$f":"IF('1. Ordersheet'!K766=\"\",\"\",'1. Ordersheet'!K766)","v":""},{"$f":"IF('1. Ordersheet'!L766=\"\",\"\",'1. Ordersheet'!L766)","v":""},{"$f":"IF('1. Ordersheet'!M766=\"\",\"\",'1. Ordersheet'!M766)","v":""},{"$f":"IF('1. Ordersheet'!N766=\"\",\"\",'1. Ordersheet'!N766)","v":""},{"$f":"IF('1. Ordersheet'!O766=\"\",\"\",'1. Ordersheet'!O766)","v":{"$error":"#N/A"}},{"$f":"IF('1. Ordersheet'!P766=\"\",\"\",'1. Ordersheet'!P766)","v":{"$error":"#N/A"}},{"$f":"IF('1. Ordersheet'!Q766=\"\",\"\",'1. Ordersheet'!Q766)","v":""},{"$f":"IF('1. Ordersheet'!R766=\"\",\"\",'1. Ordersheet'!R766)","v":""},{"$f":"IF('1. Ordersheet'!S766=\"\",\"\",'1. Ordersheet'!S766)","v":""},{"$f":"IF('1. Ordersheet'!V766=\"\",\"\",'1. Ordersheet'!V766)","v":""},{"$f":"IF('1. Ordersheet'!W766=\"\",\"\",'1. Ordersheet'!W766)","v":""},{"$f":"IF('1. Ordersheet'!X766=\"\",\"\",'1. Ordersheet'!X766)","v":""},{"$f":"IF('1. Ordersheet'!Y766=\"\",\"\",'1. Ordersheet'!Y766)","v":""},{"$f":"IF('1. Ordersheet'!Z766=\"\",\"\",'1. Ordersheet'!Z766)","v":""},{"$f":"IF('1. Ordersheet'!AA766=\"\",\"\",'1. Ordersheet'!AA766)","v":""},null,{"$f":"IF('1. Ordersheet'!AS766=\"\",\"\",'1. Ordersheet'!AS766)","v":""},{"$f":"IF('1. Ordersheet'!AT766=\"\",\"\",'1. Ordersheet'!AT766)","v":""},null,null,null,null,null,null,null,{"$f":"IF('1. Ordersheet'!AX766=\"\",\"\",'1. Ordersheet'!AX766)","v":""},{"$f":"IF('1. Ordersheet'!AY766=\"\",\"\",'1. Ordersheet'!AY766)","v":""},{"$f":"IF('1. Ordersheet'!AZ766=\"\",\"\",'1. Ordersheet'!AZ766)","v":""},{"$f":"IF('1. Ordersheet'!BA766=\"\",\"\",'1. Ordersheet'!BA766)","v":""},{"$f":"IF('1. Ordersheet'!BC766=\"\",\"\",'1. Ordersheet'!BC766)","v":""},{"$f":"IF('1. Ordersheet'!BD766=\"\",\"\",'1. Ordersheet'!BD766)","v":""},{"$f":"IF('1. Ordersheet'!BE766=\"\",\"\",'1. Ordersheet'!BE766)","v":""},{"$f":"IF('1. Ordersheet'!BF766=\"\",\"\",'1. Ordersheet'!BF766)","v":""},{"$f":"IF('1. Ordersheet'!BG766=\"\",\"\",'1. Ordersheet'!BG766)","v":"ZWO"},{"$f":"IF('1. Ordersheet'!BH766=\"\",\"\",'1. Ordersheet'!BH766)","v":""},{"$f":"IF('1. Ordersheet'!BI766=\"\",\"\",'1. Ordersheet'!BI766)","v":""},{"$f":"IF('1. Ordersheet'!BJ766=\"\",\"\",'1. Ordersheet'!BJ766)","v":""},{"$f":"IF('1. Ordersheet'!BK766=\"\",\"\",'1. Ordersheet'!BK766)","v":""},{"$f":"IF('1. Ordersheet'!BL766=\"\",\"\",'1. Ordersheet'!BL766)","v":""}]
[{"$f":"IF('1. Ordersheet'!F767=\"\",\"\",'1. Ordersheet'!F767)","v":""},{"$f":"IF('1. Ordersheet'!G767=\"\",\"\",'1. Ordersheet'!G767)","v":""},{"$f":"IF('1. Ordersheet'!H767=\"\",\"\",'1. Ordersheet'!H767)","v":""},{"$f":"IF('1. Ordersheet'!I767=\"\",\"\",'1. Ordersheet'!I767)","v":""},{"$f":"IF('1. Ordersheet'!J767=\"\",\"\",'1. Ordersheet'!J767)","v":""},{"$f":"IF('1. Ordersheet'!K767=\"\",\"\",'1. Ordersheet'!K767)","v":""},{"$f":"IF('1. Ordersheet'!L767=\"\",\"\",'1. Ordersheet'!L767)","v":""},{"$f":"IF('1. Ordersheet'!M767=\"\",\"\",'1. Ordersheet'!M767)","v":""},{"$f":"IF('1. Ordersheet'!N767=\"\",\"\",'1. Ordersheet'!N767)","v":""},{"$f":"IF('1. Ordersheet'!O767=\"\",\"\",'1. Ordersheet'!O767)","v":{"$error":"#N/A"}},{"$f":"IF('1. Ordersheet'!P767=\"\",\"\",'1. Ordersheet'!P767)","v":{"$error":"#N/A"}},{"$f":"IF('1. Ordersheet'!Q767=\"\",\"\",'1. Ordersheet'!Q767)","v":""},{"$f":"IF('1. Ordersheet'!R767=\"\",\"\",'1. Ordersheet'!R767)","v":""},{"$f":"IF('1. Ordersheet'!S767=\"\",\"\",'1. Ordersheet'!S767)","v":""},{"$f":"IF('1. Ordersheet'!V767=\"\",\"\",'1. Ordersheet'!V767)","v":""},{"$f":"IF('1. Ordersheet'!W767=\"\",\"\",'1. Ordersheet'!W767)","v":""},{"$f":"IF('1. Ordersheet'!X767=\"\",\"\",'1. Ordersheet'!X767)","v":""},{"$f":"IF('1. Ordersheet'!Y767=\"\",\"\",'1. Ordersheet'!Y767)","v":""},{"$f":"IF('1. Ordersheet'!Z767=\"\",\"\",'1. Ordersheet'!Z767)","v":""},{"$f":"IF('1. Ordersheet'!AA767=\"\",\"\",'1. Ordersheet'!AA767)","v":""},null,{"$f":"IF('1. Ordersheet'!AS767=\"\",\"\",'1. Ordersheet'!AS767)","v":""},{"$f":"IF('1. Ordersheet'!AT767=\"\",\"\",'1. Ordersheet'!AT767)","v":""},null,null,null,null,null,null,null,{"$f":"IF('1. Ordersheet'!AX767=\"\",\"\",'1. Ordersheet'!AX767)","v":""},{"$f":"IF('1. Ordersheet'!AY767=\"\",\"\",'1. Ordersheet'!AY767)","v":""},{"$f":"IF('1. Ordersheet'!AZ767=\"\",\"\",'1. Ordersheet'!AZ767)","v":""},{"$f":"IF('1. Ordersheet'!BA767=\"\",\"\",'1. Ordersheet'!BA767)","v":""},{"$f":"IF('1. Ordersheet'!BC767=\"\",\"\",'1. Ordersheet'!BC767)","v":""},{"$f":"IF('1. Ordersheet'!BD767=\"\",\"\",'1. Ordersheet'!BD767)","v":""},{"$f":"IF('1. Ordersheet'!BE767=\"\",\"\",'1. Ordersheet'!BE767)","v":""},{"$f":"IF('1. Ordersheet'!BF767=\"\",\"\",'1. Ordersheet'!BF767)","v":""},{"$f":"IF('1. Ordersheet'!BG767=\"\",\"\",'1. Ordersheet'!BG767)","v":"ZWO"},{"$f":"IF('1. Ordersheet'!BH767=\"\",\"\",'1. Ordersheet'!BH767)","v":""},{"$f":"IF('1. Ordersheet'!BI767=\"\",\"\",'1. Ordersheet'!BI767)","v":""},{"$f":"IF('1. Ordersheet'!BJ767=\"\",\"\",'1. Ordersheet'!BJ767)","v":""},{"$f":"IF('1. Ordersheet'!BK767=\"\",\"\",'1. Ordersheet'!BK767)","v":""},{"$f":"IF('1. Ordersheet'!BL767=\"\",\"\",'1. Ordersheet'!BL767)","v":""}]
[{"$f":"IF('1. Ordersheet'!F768=\"\",\"\",'1. Ordersheet'!F768)","v":""},{"$f":"IF('1. Ordersheet'!G768=\"\",\"\",'1. Ordersheet'!G768)","v":""},{"$f":"IF('1. Ordersheet'!H768=\"\",\"\",'1. Ordersheet'!H768)","v":""},{"$f":"IF('1. Ordersheet'!I768=\"\",\"\",'1. Ordersheet'!I768)","v":""},{"$f":"IF('1. Ordersheet'!J768=\"\",\"\",'1. Ordersheet'!J768)","v":""},{"$f":"IF('1. Ordersheet'!K768=\"\",\"\",'1. Ordersheet'!K768)","v":""},{"$f":"IF('1. Ordersheet'!L768=\"\",\"\",'1. Ordersheet'!L768)","v":""},{"$f":"IF('1. Ordersheet'!M768=\"\",\"\",'1. Ordersheet'!M768)","v":""},{"$f":"IF('1. Ordersheet'!N768=\"\",\"\",'1. Ordersheet'!N768)","v":""},{"$f":"IF('1. Ordersheet'!O768=\"\",\"\",'1. Ordersheet'!O768)","v":{"$error":"#N/A"}},{"$f":"IF('1. Ordersheet'!P768=\"\",\"\",'1. Ordersheet'!P768)","v":{"$error":"#N/A"}},{"$f":"IF('1. Ordersheet'!Q768=\"\",\"\",'1. Ordersheet'!Q768)","v":""},{"$f":"IF('1. Ordersheet'!R768=\"\",\"\",'1. Ordersheet'!R768)","v":""},{"$f":"IF('1. Ordersheet'!S768=\"\",\"\",'1. Ordersheet'!S768)","v":""},{"$f":"IF('1. Ordersheet'!V768=\"\",\"\",'1. Ordersheet'!V768)","v":""},{"$f":"IF('1. Ordersheet'!W768=\"\",\"\",'1. Ordersheet'!W768)","v":""},{"$f":"IF('1. Ordersheet'!X768=\"\",\"\",'1. Ordersheet'!X768)","v":""},{"$f":"IF('1. Ordersheet'!Y768=\"\",\"\",'1. Ordersheet'!Y768)","v":""},{"$f":"IF('1. Ordersheet'!Z768=\"\",\"\",'1. Ordersheet'!Z768)","v":""},{"$f":"IF('1. Ordersheet'!AA768=\"\",\"\",'1. Ordersheet'!AA768)","v":""},null,{"$f":"IF('1. Ordersheet'!AS768=\"\",\"\",'1. Ordersheet'!AS768)","v":""},{"$f":"IF('1. Ordersheet'!AT768=\"\",\"\",'1. Ordersheet'!AT768)","v":""},null,null,null,null,null,null,null,{"$f":"IF('1. Ordersheet'!AX768=\"\",\"\",'1. Ordersheet'!AX768)","v":""},{"$f":"IF('1. Ordersheet'!AY768=\"\",\"\",'1. Ordersheet'!AY768)","v":""},{"$f":"IF('1. Ordersheet'!AZ768=\"\",\"\",'1. Ordersheet'!AZ768)","v":""},{"$f":"IF('1. Ordersheet'!BA768=\"\",\"\",'1. Ordersheet'!BA768)","v":""},{"$f":"IF('1. Ordersheet'!BC768=\"\",\"\",'1. Ordersheet'!BC768)","v":""},{"$f":"IF('1. Ordersheet'!BD768=\"\",\"\",'1. Ordersheet'!BD768)","v":""},{"$f":"IF('1. Ordersheet'!BE768=\"\",\"\",'1. Ordersheet'!BE768)","v":""},{"$f":"IF('1. Ordersheet'!BF768=\"\",\"\",'1. Ordersheet'!BF768)","v":""},{"$f":"IF('1. Ordersheet'!BG768=\"\",\"\",'1. Ordersheet'!BG768)","v":"ZWO"},{"$f":"IF('1. Ordersheet'!BH768=\"\",\"\",'1. Ordersheet'!BH768)","v":""},{"$f":"IF('1. Ordersheet'!BI768=\"\",\"\",'1. Ordersheet'!BI768)","v":""},{"$f":"IF('1. Ordersheet'!BJ768=\"\",\"\",'1. Ordersheet'!BJ768)","v":""},{"$f":"IF('1. Ordersheet'!BK768=\"\",\"\",'1. Ordersheet'!BK768)","v":""},{"$f":"IF('1. Ordersheet'!BL768=\"\",\"\",'1. Ordersheet'!BL768)","v":""}]
[{"$f":"IF('1. Ordersheet'!F769=\"\",\"\",'1. Ordersheet'!F769)","v":""},{"$f":"IF('1. Ordersheet'!G769=\"\",\"\",'1. Ordersheet'!G769)","v":""},{"$f":"IF('1. Ordersheet'!H769=\"\",\"\",'1. Ordersheet'!H769)","v":""},{"$f":"IF('1. Ordersheet'!I769=\"\",\"\",'1. Ordersheet'!I769)","v":""},{"$f":"IF('1. Ordersheet'!J769=\"\",\"\",'1. Ordersheet'!J769)","v":""},{"$f":"IF('1. Ordersheet'!K769=\"\",\"\",'1. Ordersheet'!K769)","v":""},{"$f":"IF('1. Ordersheet'!L769=\"\",\"\",'1. Ordersheet'!L769)","v":""},{"$f":"IF('1. Ordersheet'!M769=\"\",\"\",'1. Ordersheet'!M769)","v":""},{"$f":"IF('1. Ordersheet'!N769=\"\",\"\",'1. Ordersheet'!N769)","v":""},{"$f":"IF('1. Ordersheet'!O769=\"\",\"\",'1. Ordersheet'!O769)","v":{"$error":"#N/A"}},{"$f":"IF('1. Ordersheet'!P769=\"\",\"\",'1. Ordersheet'!P769)","v":{"$error":"#N/A"}},{"$f":"IF('1. Ordersheet'!Q769=\"\",\"\",'1. Ordersheet'!Q769)","v":""},{"$f":"IF('1. Ordersheet'!R769=\"\",\"\",'1. Ordersheet'!R769)","v":""},{"$f":"IF('1. Ordersheet'!S769=\"\",\"\",'1. Ordersheet'!S769)","v":""},{"$f":"IF('1. Ordersheet'!V769=\"\",\"\",'1. Ordersheet'!V769)","v":""},{"$f":"IF('1. Ordersheet'!W769=\"\",\"\",'1. Ordersheet'!W769)","v":""},{"$f":"IF('1. Ordersheet'!X769=\"\",\"\",'1. Ordersheet'!X769)","v":""},{"$f":"IF('1. Ordersheet'!Y769=\"\",\"\",'1. Ordersheet'!Y769)","v":""},{"$f":"IF('1. Ordersheet'!Z769=\"\",\"\",'1. Ordersheet'!Z769)","v":""},{"$f":"IF('1. Ordersheet'!AA769=\"\",\"\",'1. Ordersheet'!AA769)","v":""},null,{"$f":"IF('1. Ordersheet'!AS769=\"\",\"\",'1. Ordersheet'!AS769)","v":""},{"$f":"IF('1. Ordersheet'!AT769=\"\",\"\",'1. Ordersheet'!AT769)","v":""},null,null,null,null,null,null,null,{"$f":"IF('1. Ordersheet'!AX769=\"\",\"\",'1. Ordersheet'!AX769)","v":""},{"$f":"IF('1. Ordersheet'!AY769=\"\",\"\",'1. Ordersheet'!AY769)","v":""},{"$f":"IF('1. Ordersheet'!AZ769=\"\",\"\",'1. Ordersheet'!AZ769)","v":""},{"$f":"IF('1. Ordersheet'!BA769=\"\",\"\",'1. Ordersheet'!BA769)","v":""},{"$f":"IF('1. Ordersheet'!BC769=\"\",\"\",'1. Ordersheet'!BC769)","v":""},{"$f":"IF('1. Ordersheet'!BD769=\"\",\"\",'1. Ordersheet'!BD769)","v":""},{"$f":"IF('1. Ordersheet'!BE769=\"\",\"\",'1. Ordersheet'!BE769)","v":""},{"$f":"IF('1. Ordersheet'!BF769=\"\",\"\",'1. Ordersheet'!BF769)","v":""},{"$f":"IF('1. Ordersheet'!BG769=\"\",\"\",'1. Ordersheet'!BG769)","v":"ZWO"},{"$f":"IF('1. Ordersheet'!BH769=\"\",\"\",'1. Ordersheet'!BH769)","v":""},{"$f":"IF('1. Ordersheet'!BI769=\"\",\"\",'1. Ordersheet'!BI769)","v":""},{"$f":"IF('1. Ordersheet'!BJ769=\"\",\"\",'1. Ordersheet'!BJ769)","v":""},{"$f":"IF('1. Ordersheet'!BK769=\"\",\"\",'1. Ordersheet'!BK769)","v":""},{"$f":"IF('1. Ordersheet'!BL769=\"\",\"\",'1. Ordersheet'!BL769)","v":""}]
[{"$f":"IF('1. Ordersheet'!F770=\"\",\"\",'1. Ordersheet'!F770)","v":""},{"$f":"IF('1. Ordersheet'!G770=\"\",\"\",'1. Ordersheet'!G770)","v":""},{"$f":"IF('1. Ordersheet'!H770=\"\",\"\",'1. Ordersheet'!H770)","v":""},{"$f":"IF('1. Ordersheet'!I770=\"\",\"\",'1. Ordersheet'!I770)","v":""},{"$f":"IF('1. Ordersheet'!J770=\"\",\"\",'1. Ordersheet'!J770)","v":""},{"$f":"IF('1. Ordersheet'!K770=\"\",\"\",'1. Ordersheet'!K770)","v":""},{"$f":"IF('1. Ordersheet'!L770=\"\",\"\",'1. Ordersheet'!L770)","v":""},{"$f":"IF('1. Ordersheet'!M770=\"\",\"\",'1. Ordersheet'!M770)","v":""},{"$f":"IF('1. Ordersheet'!N770=\"\",\"\",'1. Ordersheet'!N770)","v":""},{"$f":"IF('1. Ordersheet'!O770=\"\",\"\",'1. Ordersheet'!O770)","v":{"$error":"#N/A"}},{"$f":"IF('1. Ordersheet'!P770=\"\",\"\",'1. Ordersheet'!P770)","v":{"$error":"#N/A"}},{"$f":"IF('1. Ordersheet'!Q770=\"\",\"\",'1. Ordersheet'!Q770)","v":""},{"$f":"IF('1. Ordersheet'!R770=\"\",\"\",'1. Ordersheet'!R770)","v":""},{"$f":"IF('1. Ordersheet'!S770=\"\",\"\",'1. Ordersheet'!S770)","v":""},{"$f":"IF('1. Ordersheet'!V770=\"\",\"\",'1. Ordersheet'!V770)","v":""},{"$f":"IF('1. Ordersheet'!W770=\"\",\"\",'1. Ordersheet'!W770)","v":""},{"$f":"IF('1. Ordersheet'!X770=\"\",\"\",'1. Ordersheet'!X770)","v":""},{"$f":"IF('1. Ordersheet'!Y770=\"\",\"\",'1. Ordersheet'!Y770)","v":""},{"$f":"IF('1. Ordersheet'!Z770=\"\",\"\",'1. Ordersheet'!Z770)","v":""},{"$f":"IF('1. Ordersheet'!AA770=\"\",\"\",'1. Ordersheet'!AA770)","v":""},null,{"$f":"IF('1. Ordersheet'!AS770=\"\",\"\",'1. Ordersheet'!AS770)","v":""},{"$f":"IF('1. Ordersheet'!AT770=\"\",\"\",'1. Ordersheet'!AT770)","v":""},null,null,null,null,null,null,null,{"$f":"IF('1. Ordersheet'!AX770=\"\",\"\",'1. Ordersheet'!AX770)","v":""},{"$f":"IF('1. Ordersheet'!AY770=\"\",\"\",'1. Ordersheet'!AY770)","v":""},{"$f":"IF('1. Ordersheet'!AZ770=\"\",\"\",'1. Ordersheet'!AZ770)","v":""},{"$f":"IF('1. Ordersheet'!BA770=\"\",\"\",'1. Ordersheet'!BA770)","v":""},{"$f":"IF('1. Ordersheet'!BC770=\"\",\"\",'1. Ordersheet'!BC770)","v":""},{"$f":"IF('1. Ordersheet'!BD770=\"\",\"\",'1. Ordersheet'!BD770)","v":""},{"$f":"IF('1. Ordersheet'!BE770=\"\",\"\",'1. Ordersheet'!BE770)","v":""},{"$f":"IF('1. Ordersheet'!BF770=\"\",\"\",'1. Ordersheet'!BF770)","v":""},{"$f":"IF('1. Ordersheet'!BG770=\"\",\"\",'1. Ordersheet'!BG770)","v":"ZWO"},{"$f":"IF('1. Ordersheet'!BH770=\"\",\"\",'1. Ordersheet'!BH770)","v":""},{"$f":"IF('1. Ordersheet'!BI770=\"\",\"\",'1. Ordersheet'!BI770)","v":""},{"$f":"IF('1. Ordersheet'!BJ770=\"\",\"\",'1. Ordersheet'!BJ770)","v":""},{"$f":"IF('1. Ordersheet'!BK770=\"\",\"\",'1. Ordersheet'!BK770)","v":""},{"$f":"IF('1. Ordersheet'!BL770=\"\",\"\",'1. Ordersheet'!BL770)","v":""}]
[{"$f":"IF('1. Ordersheet'!F771=\"\",\"\",'1. Ordersheet'!F771)","v":""},{"$f":"IF('1. Ordersheet'!G771=\"\",\"\",'1. Ordersheet'!G771)","v":""},{"$f":"IF('1. Ordersheet'!H771=\"\",\"\",'1. Ordersheet'!H771)","v":""},{"$f":"IF('1. Ordersheet'!I771=\"\",\"\",'1. Ordersheet'!I771)","v":""},{"$f":"IF('1. Ordersheet'!J771=\"\",\"\",'1. Ordersheet'!J771)","v":""},{"$f":"IF('1. Ordersheet'!K771=\"\",\"\",'1. Ordersheet'!K771)","v":""},{"$f":"IF('1. Ordersheet'!L771=\"\",\"\",'1. Ordersheet'!L771)","v":""},{"$f":"IF('1. Ordersheet'!M771=\"\",\"\",'1. Ordersheet'!M771)","v":""},{"$f":"IF('1. Ordersheet'!N771=\"\",\"\",'1. Ordersheet'!N771)","v":""},{"$f":"IF('1. Ordersheet'!O771=\"\",\"\",'1. Ordersheet'!O771)","v":{"$error":"#N/A"}},{"$f":"IF('1. Ordersheet'!P771=\"\",\"\",'1. Ordersheet'!P771)","v":{"$error":"#N/A"}},{"$f":"IF('1. Ordersheet'!Q771=\"\",\"\",'1. Ordersheet'!Q771)","v":""},{"$f":"IF('1. Ordersheet'!R771=\"\",\"\",'1. Ordersheet'!R771)","v":""},{"$f":"IF('1. Ordersheet'!S771=\"\",\"\",'1. Ordersheet'!S771)","v":""},{"$f":"IF('1. Ordersheet'!V771=\"\",\"\",'1. Ordersheet'!V771)","v":""},{"$f":"IF('1. Ordersheet'!W771=\"\",\"\",'1. Ordersheet'!W771)","v":""},{"$f":"IF('1. Ordersheet'!X771=\"\",\"\",'1. Ordersheet'!X771)","v":""},{"$f":"IF('1. Ordersheet'!Y771=\"\",\"\",'1. Ordersheet'!Y771)","v":""},{"$f":"IF('1. Ordersheet'!Z771=\"\",\"\",'1. Ordersheet'!Z771)","v":""},{"$f":"IF('1. Ordersheet'!AA771=\"\",\"\",'1. Ordersheet'!AA771)","v":""},null,{"$f":"IF('1. Ordersheet'!AS771=\"\",\"\",'1. Ordersheet'!AS771)","v":""},{"$f":"IF('1. Ordersheet'!AT771=\"\",\"\",'1. Ordersheet'!AT771)","v":""},null,null,null,null,null,null,null,{"$f":"IF('1. Ordersheet'!AX771=\"\",\"\",'1. Ordersheet'!AX771)","v":""},{"$f":"IF('1. Ordersheet'!AY771=\"\",\"\",'1. Ordersheet'!AY771)","v":""},{"$f":"IF('1. Ordersheet'!AZ771=\"\",\"\",'1. Ordersheet'!AZ771)","v":""},{"$f":"IF('1. Ordersheet'!BA771=\"\",\"\",'1. Ordersheet'!BA771)","v":""},{"$f":"IF('1. Ordersheet'!BC771=\"\",\"\",'1. Ordersheet'!BC771)","v":""},{"$f":"IF('1. Ordersheet'!BD771=\"\",\"\",'1. Ordersheet'!BD771)","v":""},{"$f":"IF('1. Ordersheet'!BE771=\"\",\"\",'1. Ordersheet'!BE771)","v":""},{"$f":"IF('1. Ordersheet'!BF771=\"\",\"\",'1. Ordersheet'!BF771)","v":""},{"$f":"IF('1. Ordersheet'!BG771=\"\",\"\",'1. Ordersheet'!BG771)","v":"ZWO"},{"$f":"IF('1. Ordersheet'!BH771=\"\",\"\",'1. Ordersheet'!BH771)","v":""},{"$f":"IF('1. Ordersheet'!BI771=\"\",\"\",'1. Ordersheet'!BI771)","v":""},{"$f":"IF('1. Ordersheet'!BJ771=\"\",\"\",'1. Ordersheet'!BJ771)","v":""},{"$f":"IF('1. Ordersheet'!BK771=\"\",\"\",'1. Ordersheet'!BK771)","v":""},{"$f":"IF('1. Ordersheet'!BL771=\"\",\"\",'1. Ordersheet'!BL771)","v":""}]
[{"$f":"IF('1. Ordersheet'!F772=\"\",\"\",'1. Ordersheet'!F772)","v":""},{"$f":"IF('1. Ordersheet'!G772=\"\",\"\",'1. Ordersheet'!G772)","v":""},{"$f":"IF('1. Ordersheet'!H772=\"\",\"\",'1. Ordersheet'!H772)","v":""},{"$f":"IF('1. Ordersheet'!I772=\"\",\"\",'1. Ordersheet'!I772)","v":""},{"$f":"IF('1. Ordersheet'!J772=\"\",\"\",'1. Ordersheet'!J772)","v":""},{"$f":"IF('1. Ordersheet'!K772=\"\",\"\",'1. Ordersheet'!K772)","v":""},{"$f":"IF('1. Ordersheet'!L772=\"\",\"\",'1. Ordersheet'!L772)","v":""},{"$f":"IF('1. Ordersheet'!M772=\"\",\"\",'1. Ordersheet'!M772)","v":""},{"$f":"IF('1. Ordersheet'!N772=\"\",\"\",'1. Ordersheet'!N772)","v":""},{"$f":"IF('1. Ordersheet'!O772=\"\",\"\",'1. Ordersheet'!O772)","v":{"$error":"#N/A"}},{"$f":"IF('1. Ordersheet'!P772=\"\",\"\",'1. Ordersheet'!P772)","v":{"$error":"#N/A"}},{"$f":"IF('1. Ordersheet'!Q772=\"\",\"\",'1. Ordersheet'!Q772)","v":""},{"$f":"IF('1. Ordersheet'!R772=\"\",\"\",'1. Ordersheet'!R772)","v":""},{"$f":"IF('1. Ordersheet'!S772=\"\",\"\",'1. Ordersheet'!S772)","v":""},{"$f":"IF('1. Ordersheet'!V772=\"\",\"\",'1. Ordersheet'!V772)","v":""},{"$f":"IF('1. Ordersheet'!W772=\"\",\"\",'1. Ordersheet'!W772)","v":""},{"$f":"IF('1. Ordersheet'!X772=\"\",\"\",'1. Ordersheet'!X772)","v":""},{"$f":"IF('1. Ordersheet'!Y772=\"\",\"\",'1. Ordersheet'!Y772)","v":""},{"$f":"IF('1. Ordersheet'!Z772=\"\",\"\",'1. Ordersheet'!Z772)","v":""},{"$f":"IF('1. Ordersheet'!AA772=\"\",\"\",'1. Ordersheet'!AA772)","v":""},null,{"$f":"IF('1. Ordersheet'!AS772=\"\",\"\",'1. Ordersheet'!AS772)","v":""},{"$f":"IF('1. Ordersheet'!AT772=\"\",\"\",'1. Ordersheet'!AT772)","v":""},null,null,null,null,null,null,null,{"$f":"IF('1. Ordersheet'!AX772=\"\",\"\",'1. Ordersheet'!AX772)","v":""},{"$f":"IF('1. Ordersheet'!AY772=\"\",\"\",'1. Ordersheet'!AY772)","v":""},{"$f":"IF('1. Ordersheet'!AZ772=\"\",\"\",'1. Ordersheet'!AZ772)","v":""},{"$f":"IF('1. Ordersheet'!BA772=\"\",\"\",'1. Ordersheet'!BA772)","v":""},{"$f":"IF('1. Ordersheet'!BC772=\"\",\"\",'1. Ordersheet'!BC772)","v":""},{"$f":"IF('1. Ordersheet'!BD772=\"\",\"\",'1. Ordersheet'!BD772)","v":""},{"$f":"IF('1. Ordersheet'!BE772=\"\",\"\",'1. Ordersheet'!BE772)","v":""},{"$f":"IF('1. Ordersheet'!BF772=\"\",\"\",'1. Ordersheet'!BF772)","v":""},{"$f":"IF('1. Ordersheet'!BG772=\"\",\"\",'1. Ordersheet'!BG772)","v":"ZWO"},{"$f":"IF('1. Ordersheet'!BH772=\"\",\"\",'1. Ordersheet'!BH772)","v":""},{"$f":"IF('1. Ordersheet'!BI772=\"\",\"\",'1. Ordersheet'!BI772)","v":""},{"$f":"IF('1. Ordersheet'!BJ772=\"\",\"\",'1. Ordersheet'!BJ772)","v":""},{"$f":"IF('1. Ordersheet'!BK772=\"\",\"\",'1. Ordersheet'!BK772)","v":""},{"$f":"IF('1. Ordersheet'!BL772=\"\",\"\",'1. Ordersheet'!BL772)","v":""}]
[{"$f":"IF('1. Ordersheet'!F773=\"\",\"\",'1. Ordersheet'!F773)","v":""},{"$f":"IF('1. Ordersheet'!G773=\"\",\"\",'1. Ordersheet'!G773)","v":""},{"$f":"IF('1. Ordersheet'!H773=\"\",\"\",'1. Ordersheet'!H773)","v":""},{"$f":"IF('1. Ordersheet'!I773=\"\",\"\",'1. Ordersheet'!I773)","v":""},{"$f":"IF('1. Ordersheet'!J773=\"\",\"\",'1. Ordersheet'!J773)","v":""},{"$f":"IF('1. Ordersheet'!K773=\"\",\"\",'1. Ordersheet'!K773)","v":""},{"$f":"IF('1. Ordersheet'!L773=\"\",\"\",'1. Ordersheet'!L773)","v":""},{"$f":"IF('1. Ordersheet'!M773=\"\",\"\",'1. Ordersheet'!M773)","v":""},{"$f":"IF('1. Ordersheet'!N773=\"\",\"\",'1. Ordersheet'!N773)","v":""},{"$f":"IF('1. Ordersheet'!O773=\"\",\"\",'1. Ordersheet'!O773)","v":{"$error":"#N/A"}},{"$f":"IF('1. Ordersheet'!P773=\"\",\"\",'1. Ordersheet'!P773)","v":{"$error":"#N/A"}},{"$f":"IF('1. Ordersheet'!Q773=\"\",\"\",'1. Ordersheet'!Q773)","v":""},{"$f":"IF('1. Ordersheet'!R773=\"\",\"\",'1. Ordersheet'!R773)","v":""},{"$f":"IF('1. Ordersheet'!S773=\"\",\"\",'1. Ordersheet'!S773)","v":""},{"$f":"IF('1. Ordersheet'!V773=\"\",\"\",'1. Ordersheet'!V773)","v":""},{"$f":"IF('1. Ordersheet'!W773=\"\",\"\",'1. Ordersheet'!W773)","v":""},{"$f":"IF('1. Ordersheet'!X773=\"\",\"\",'1. Ordersheet'!X773)","v":""},{"$f":"IF('1. Ordersheet'!Y773=\"\",\"\",'1. Ordersheet'!Y773)","v":""},{"$f":"IF('1. Ordersheet'!Z773=\"\",\"\",'1. Ordersheet'!Z773)","v":""},{"$f":"IF('1. Ordersheet'!AA773=\"\",\"\",'1. Ordersheet'!AA773)","v":""},null,{"$f":"IF('1. Ordersheet'!AS773=\"\",\"\",'1. Ordersheet'!AS773)","v":""},{"$f":"IF('1. Ordersheet'!AT773=\"\",\"\",'1. Ordersheet'!AT773)","v":""},null,null,null,null,null,null,null,{"$f":"IF('1. Ordersheet'!AX773=\"\",\"\",'1. Ordersheet'!AX773)","v":""},{"$f":"IF('1. Ordersheet'!AY773=\"\",\"\",'1. Ordersheet'!AY773)","v":""},{"$f":"IF('1. Ordersheet'!AZ773=\"\",\"\",'1. Ordersheet'!AZ773)","v":""},{"$f":"IF('1. Ordersheet'!BA773=\"\",\"\",'1. Ordersheet'!BA773)","v":""},{"$f":"IF('1. Ordersheet'!BC773=\"\",\"\",'1. Ordersheet'!BC773)","v":""},{"$f":"IF('1. Ordersheet'!BD773=\"\",\"\",'1. Ordersheet'!BD773)","v":""},{"$f":"IF('1. Ordersheet'!BE773=\"\",\"\",'1. Ordersheet'!BE773)","v":""},{"$f":"IF('1. Ordersheet'!BF773=\"\",\"\",'1. Ordersheet'!BF773)","v":""},{"$f":"IF('1. Ordersheet'!BG773=\"\",\"\",'1. Ordersheet'!BG773)","v":"ZWO"},{"$f":"IF('1. Ordersheet'!BH773=\"\",\"\",'1. Ordersheet'!BH773)","v":""},{"$f":"IF('1. Ordersheet'!BI773=\"\",\"\",'1. Ordersheet'!BI773)","v":""},{"$f":"IF('1. Ordersheet'!BJ773=\"\",\"\",'1. Ordersheet'!BJ773)","v":""},{"$f":"IF('1. Ordersheet'!BK773=\"\",\"\",'1. Ordersheet'!BK773)","v":""},{"$f":"IF('1. Ordersheet'!BL773=\"\",\"\",'1. Ordersheet'!BL773)","v":""}]
[{"$f":"IF('1. Ordersheet'!F774=\"\",\"\",'1. Ordersheet'!F774)","v":""},{"$f":"IF('1. Ordersheet'!G774=\"\",\"\",'1. Ordersheet'!G774)","v":""},{"$f":"IF('1. Ordersheet'!H774=\"\",\"\",'1. Ordersheet'!H774)","v":""},{"$f":"IF('1. Ordersheet'!I774=\"\",\"\",'1. Ordersheet'!I774)","v":""},{"$f":"IF('1. Ordersheet'!J774=\"\",\"\",'1. Ordersheet'!J774)","v":""},{"$f":"IF('1. Ordersheet'!K774=\"\",\"\",'1. Ordersheet'!K774)","v":""},{"$f":"IF('1. Ordersheet'!L774=\"\",\"\",'1. Ordersheet'!L774)","v":""},{"$f":"IF('1. Ordersheet'!M774=\"\",\"\",'1. Ordersheet'!M774)","v":""},{"$f":"IF('1. Ordersheet'!N774=\"\",\"\",'1. Ordersheet'!N774)","v":""},{"$f":"IF('1. Ordersheet'!O774=\"\",\"\",'1. Ordersheet'!O774)","v":{"$error":"#N/A"}},{"$f":"IF('1. Ordersheet'!P774=\"\",\"\",'1. Ordersheet'!P774)","v":{"$error":"#N/A"}},{"$f":"IF('1. Ordersheet'!Q774=\"\",\"\",'1. Ordersheet'!Q774)","v":""},{"$f":"IF('1. Ordersheet'!R774=\"\",\"\",'1. Ordersheet'!R774)","v":""},{"$f":"IF('1. Ordersheet'!S774=\"\",\"\",'1. Ordersheet'!S774)","v":""},{"$f":"IF('1. Ordersheet'!V774=\"\",\"\",'1. Ordersheet'!V774)","v":""},{"$f":"IF('1. Ordersheet'!W774=\"\",\"\",'1. Ordersheet'!W774)","v":""},{"$f":"IF('1. Ordersheet'!X774=\"\",\"\",'1. Ordersheet'!X774)","v":""},{"$f":"IF('1. Ordersheet'!Y774=\"\",\"\",'1. Ordersheet'!Y774)","v":""},{"$f":"IF('1. Ordersheet'!Z774=\"\",\"\",'1. Ordersheet'!Z774)","v":""},{"$f":"IF('1. Ordersheet'!AA774=\"\",\"\",'1. Ordersheet'!AA774)","v":""},null,{"$f":"IF('1. Ordersheet'!AS774=\"\",\"\",'1. Ordersheet'!AS774)","v":""},{"$f":"IF('1. Ordersheet'!AT774=\"\",\"\",'1. Ordersheet'!AT774)","v":""},null,null,null,null,null,null,null,{"$f":"IF('1. Ordersheet'!AX774=\"\",\"\",'1. Ordersheet'!AX774)","v":""},{"$f":"IF('1. Ordersheet'!AY774=\"\",\"\",'1. Ordersheet'!AY774)","v":""},{"$f":"IF('1. Ordersheet'!AZ774=\"\",\"\",'1. Ordersheet'!AZ774)","v":""},{"$f":"IF('1. Ordersheet'!BA774=\"\",\"\",'1. Ordersheet'!BA774)","v":""},{"$f":"IF('1. Ordersheet'!BC774=\"\",\"\",'1. Ordersheet'!BC774)","v":""},{"$f":"IF('1. Ordersheet'!BD774=\"\",\"\",'1. Ordersheet'!BD774)","v":""},{"$f":"IF('1. Ordersheet'!BE774=\"\",\"\",'1. Ordersheet'!BE774)","v":""},{"$f":"IF('1. Ordersheet'!BF774=\"\",\"\",'1. Ordersheet'!BF774)","v":""},{"$f":"IF('1. Ordersheet'!BG774=\"\",\"\",'1. Ordersheet'!BG774)","v":"ZWO"},{"$f":"IF('1. Ordersheet'!BH774=\"\",\"\",'1. Ordersheet'!BH774)","v":""},{"$f":"IF('1. Ordersheet'!BI774=\"\",\"\",'1. Ordersheet'!BI774)","v":""},{"$f":"IF('1. Ordersheet'!BJ774=\"\",\"\",'1. Ordersheet'!BJ774)","v":""},{"$f":"IF('1. Ordersheet'!BK774=\"\",\"\",'1. Ordersheet'!BK774)","v":""},{"$f":"IF('1. Ordersheet'!BL774=\"\",\"\",'1. Ordersheet'!BL774)","v":""}]
[{"$f":"IF('1. Ordersheet'!F775=\"\",\"\",'1. Ordersheet'!F775)","v":""},{"$f":"IF('1. Ordersheet'!G775=\"\",\"\",'1. Ordersheet'!G775)","v":""},{"$f":"IF('1. Ordersheet'!H775=\"\",\"\",'1. Ordersheet'!H775)","v":""},{"$f":"IF('1. Ordersheet'!I775=\"\",\"\",'1. Ordersheet'!I775)","v":""},{"$f":"IF('1. Ordersheet'!J775=\"\",\"\",'1. Ordersheet'!J775)","v":""},{"$f":"IF('1. Ordersheet'!K775=\"\",\"\",'1. Ordersheet'!K775)","v":""},{"$f":"IF('1. Ordersheet'!L775=\"\",\"\",'1. Ordersheet'!L775)","v":""},{"$f":"IF('1. Ordersheet'!M775=\"\",\"\",'1. Ordersheet'!M775)","v":""},{"$f":"IF('1. Ordersheet'!N775=\"\",\"\",'1. Ordersheet'!N775)","v":""},{"$f":"IF('1. Ordersheet'!O775=\"\",\"\",'1. Ordersheet'!O775)","v":{"$error":"#N/A"}},{"$f":"IF('1. Ordersheet'!P775=\"\",\"\",'1. Ordersheet'!P775)","v":{"$error":"#N/A"}},{"$f":"IF('1. Ordersheet'!Q775=\"\",\"\",'1. Ordersheet'!Q775)","v":""},{"$f":"IF('1. Ordersheet'!R775=\"\",\"\",'1. Ordersheet'!R775)","v":""},{"$f":"IF('1. Ordersheet'!S775=\"\",\"\",'1. Ordersheet'!S775)","v":""},{"$f":"IF('1. Ordersheet'!V775=\"\",\"\",'1. Ordersheet'!V775)","v":""},{"$f":"IF('1. Ordersheet'!W775=\"\",\"\",'1. Ordersheet'!W775)","v":""},{"$f":"IF('1. Ordersheet'!X775=\"\",\"\",'1. Ordersheet'!X775)","v":""},{"$f":"IF('1. Ordersheet'!Y775=\"\",\"\",'1. Ordersheet'!Y775)","v":""},{"$f":"IF('1. Ordersheet'!Z775=\"\",\"\",'1. Ordersheet'!Z775)","v":""},{"$f":"IF('1. Ordersheet'!AA775=\"\",\"\",'1. Ordersheet'!AA775)","v":""},null,{"$f":"IF('1. Ordersheet'!AS775=\"\",\"\",'1. Ordersheet'!AS775)","v":""},{"$f":"IF('1. Ordersheet'!AT775=\"\",\"\",'1. Ordersheet'!AT775)","v":""},null,null,null,null,null,null,null,{"$f":"IF('1. Ordersheet'!AX775=\"\",\"\",'1. Ordersheet'!AX775)","v":""},{"$f":"IF('1. Ordersheet'!AY775=\"\",\"\",'1. Ordersheet'!AY775)","v":""},{"$f":"IF('1. Ordersheet'!AZ775=\"\",\"\",'1. Ordersheet'!AZ775)","v":""},{"$f":"IF('1. Ordersheet'!BA775=\"\",\"\",'1. Ordersheet'!BA775)","v":""},{"$f":"IF('1. Ordersheet'!BC775=\"\",\"\",'1. Ordersheet'!BC775)","v":""},{"$f":"IF('1. Ordersheet'!BD775=\"\",\"\",'1. Ordersheet'!BD775)","v":""},{"$f":"IF('1. Ordersheet'!BE775=\"\",\"\",'1. Ordersheet'!BE775)","v":""},{"$f":"IF('1. Ordersheet'!BF775=\"\",\"\",'1. Ordersheet'!BF775)","v":""},{"$f":"IF('1. Ordersheet'!BG775=\"\",\"\",'1. Ordersheet'!BG775)","v":"ZWO"},{"$f":"IF('1. Ordersheet'!BH775=\"\",\"\",'1. Ordersheet'!BH775)","v":""},{"$f":"IF('1. Ordersheet'!BI775=\"\",\"\",'1. Ordersheet'!BI775)","v":""},{"$f":"IF('1. Ordersheet'!BJ775=\"\",\"\",'1. Ordersheet'!BJ775)","v":""},{"$f":"IF('1. Ordersheet'!BK775=\"\",\"\",'1. Ordersheet'!BK775)","v":""},{"$f":"IF('1. Ordersheet'!BL775=\"\",\"\",'1. Ordersheet'!BL775)","v":""}]
[{"$f":"IF('1. Ordersheet'!F776=\"\",\"\",'1. Ordersheet'!F776)","v":""},{"$f":"IF('1. Ordersheet'!G776=\"\",\"\",'1. Ordersheet'!G776)","v":""},{"$f":"IF('1. Ordersheet'!H776=\"\",\"\",'1. Ordersheet'!H776)","v":""},{"$f":"IF('1. Ordersheet'!I776=\"\",\"\",'1. Ordersheet'!I776)","v":""},{"$f":"IF('1. Ordersheet'!J776=\"\",\"\",'1. Ordersheet'!J776)","v":""},{"$f":"IF('1. Ordersheet'!K776=\"\",\"\",'1. Ordersheet'!K776)","v":""},{"$f":"IF('1. Ordersheet'!L776=\"\",\"\",'1. Ordersheet'!L776)","v":""},{"$f":"IF('1. Ordersheet'!M776=\"\",\"\",'1. Ordersheet'!M776)","v":""},{"$f":"IF('1. Ordersheet'!N776=\"\",\"\",'1. Ordersheet'!N776)","v":""},{"$f":"IF('1. Ordersheet'!O776=\"\",\"\",'1. Ordersheet'!O776)","v":{"$error":"#N/A"}},{"$f":"IF('1. Ordersheet'!P776=\"\",\"\",'1. Ordersheet'!P776)","v":{"$error":"#N/A"}},{"$f":"IF('1. Ordersheet'!Q776=\"\",\"\",'1. Ordersheet'!Q776)","v":""},{"$f":"IF('1. Ordersheet'!R776=\"\",\"\",'1. Ordersheet'!R776)","v":""},{"$f":"IF('1. Ordersheet'!S776=\"\",\"\",'1. Ordersheet'!S776)","v":""},{"$f":"IF('1. Ordersheet'!V776=\"\",\"\",'1. Ordersheet'!V776)","v":""},{"$f":"IF('1. Ordersheet'!W776=\"\",\"\",'1. Ordersheet'!W776)","v":""},{"$f":"IF('1. Ordersheet'!X776=\"\",\"\",'1. Ordersheet'!X776)","v":""},{"$f":"IF('1. Ordersheet'!Y776=\"\",\"\",'1. Ordersheet'!Y776)","v":""},{"$f":"IF('1. Ordersheet'!Z776=\"\",\"\",'1. Ordersheet'!Z776)","v":""},{"$f":"IF('1. Ordersheet'!AA776=\"\",\"\",'1. Ordersheet'!AA776)","v":""},null,{"$f":"IF('1. Ordersheet'!AS776=\"\",\"\",'1. Ordersheet'!AS776)","v":""},{"$f":"IF('1. Ordersheet'!AT776=\"\",\"\",'1. Ordersheet'!AT776)","v":""},null,null,null,null,null,null,null,{"$f":"IF('1. Ordersheet'!AX776=\"\",\"\",'1. Ordersheet'!AX776)","v":""},{"$f":"IF('1. Ordersheet'!AY776=\"\",\"\",'1. Ordersheet'!AY776)","v":""},{"$f":"IF('1. Ordersheet'!AZ776=\"\",\"\",'1. Ordersheet'!AZ776)","v":""},{"$f":"IF('1. Ordersheet'!BA776=\"\",\"\",'1. Ordersheet'!BA776)","v":""},{"$f":"IF('1. Ordersheet'!BC776=\"\",\"\",'1. Ordersheet'!BC776)","v":""},{"$f":"IF('1. Ordersheet'!BD776=\"\",\"\",'1. Ordersheet'!BD776)","v":""},{"$f":"IF('1. Ordersheet'!BE776=\"\",\"\",'1. Ordersheet'!BE776)","v":""},{"$f":"IF('1. Ordersheet'!BF776=\"\",\"\",'1. Ordersheet'!BF776)","v":""},{"$f":"IF('1. Ordersheet'!BG776=\"\",\"\",'1. Ordersheet'!BG776)","v":"ZWO"},{"$f":"IF('1. Ordersheet'!BH776=\"\",\"\",'1. Ordersheet'!BH776)","v":""},{"$f":"IF('1. Ordersheet'!BI776=\"\",\"\",'1. Ordersheet'!BI776)","v":""},{"$f":"IF('1. Ordersheet'!BJ776=\"\",\"\",'1. Ordersheet'!BJ776)","v":""},{"$f":"IF('1. Ordersheet'!BK776=\"\",\"\",'1. Ordersheet'!BK776)","v":""},{"$f":"IF('1. Ordersheet'!BL776=\"\",\"\",'1. Ordersheet'!BL776)","v":""}]
[{"$f":"IF('1. Ordersheet'!F777=\"\",\"\",'1. Ordersheet'!F777)","v":""},{"$f":"IF('1. Ordersheet'!G777=\"\",\"\",'1. Ordersheet'!G777)","v":""},{"$f":"IF('1. Ordersheet'!H777=\"\",\"\",'1. Ordersheet'!H777)","v":""},{"$f":"IF('1. Ordersheet'!I777=\"\",\"\",'1. Ordersheet'!I777)","v":""},{"$f":"IF('1. Ordersheet'!J777=\"\",\"\",'1. Ordersheet'!J777)","v":""},{"$f":"IF('1. Ordersheet'!K777=\"\",\"\",'1. Ordersheet'!K777)","v":""},{"$f":"IF('1. Ordersheet'!L777=\"\",\"\",'1. Ordersheet'!L777)","v":""},{"$f":"IF('1. Ordersheet'!M777=\"\",\"\",'1. Ordersheet'!M777)","v":""},{"$f":"IF('1. Ordersheet'!N777=\"\",\"\",'1. Ordersheet'!N777)","v":""},{"$f":"IF('1. Ordersheet'!O777=\"\",\"\",'1. Ordersheet'!O777)","v":{"$error":"#N/A"}},{"$f":"IF('1. Ordersheet'!P777=\"\",\"\",'1. Ordersheet'!P777)","v":{"$error":"#N/A"}},{"$f":"IF('1. Ordersheet'!Q777=\"\",\"\",'1. Ordersheet'!Q777)","v":""},{"$f":"IF('1. Ordersheet'!R777=\"\",\"\",'1. Ordersheet'!R777)","v":""},{"$f":"IF('1. Ordersheet'!S777=\"\",\"\",'1. Ordersheet'!S777)","v":""},{"$f":"IF('1. Ordersheet'!V777=\"\",\"\",'1. Ordersheet'!V777)","v":""},{"$f":"IF('1. Ordersheet'!W777=\"\",\"\",'1. Ordersheet'!W777)","v":""},{"$f":"IF('1. Ordersheet'!X777=\"\",\"\",'1. Ordersheet'!X777)","v":""},{"$f":"IF('1. Ordersheet'!Y777=\"\",\"\",'1. Ordersheet'!Y777)","v":""},{"$f":"IF('1. Ordersheet'!Z777=\"\",\"\",'1. Ordersheet'!Z777)","v":""},{"$f":"IF('1. Ordersheet'!AA777=\"\",\"\",'1. Ordersheet'!AA777)","v":""},null,{"$f":"IF('1. Ordersheet'!AS777=\"\",\"\",'1. Ordersheet'!AS777)","v":""},{"$f":"IF('1. Ordersheet'!AT777=\"\",\"\",'1. Ordersheet'!AT777)","v":""},null,null,null,null,null,null,null,{"$f":"IF('1. Ordersheet'!AX777=\"\",\"\",'1. Ordersheet'!AX777)","v":""},{"$f":"IF('1. Ordersheet'!AY777=\"\",\"\",'1. Ordersheet'!AY777)","v":""},{"$f":"IF('1. Ordersheet'!AZ777=\"\",\"\",'1. Ordersheet'!AZ777)","v":""},{"$f":"IF('1. Ordersheet'!BA777=\"\",\"\",'1. Ordersheet'!BA777)","v":""},{"$f":"IF('1. Ordersheet'!BC777=\"\",\"\",'1. Ordersheet'!BC777)","v":""},{"$f":"IF('1. Ordersheet'!BD777=\"\",\"\",'1. Ordersheet'!BD777)","v":""},{"$f":"IF('1. Ordersheet'!BE777=\"\",\"\",'1. Ordersheet'!BE777)","v":""},{"$f":"IF('1. Ordersheet'!BF777=\"\",\"\",'1. Ordersheet'!BF777)","v":""},{"$f":"IF('1. Ordersheet'!BG777=\"\",\"\",'1. Ordersheet'!BG777)","v":"ZWO"},{"$f":"IF('1. Ordersheet'!BH777=\"\",\"\",'1. Ordersheet'!BH777)","v":""},{"$f":"IF('1. Ordersheet'!BI777=\"\",\"\",'1. Ordersheet'!BI777)","v":""},{"$f":"IF('1. Ordersheet'!BJ777=\"\",\"\",'1. Ordersheet'!BJ777)","v":""},{"$f":"IF('1. Ordersheet'!BK777=\"\",\"\",'1. Ordersheet'!BK777)","v":""},{"$f":"IF('1. Ordersheet'!BL777=\"\",\"\",'1. Ordersheet'!BL777)","v":""}]
[{"$f":"IF('1. Ordersheet'!F778=\"\",\"\",'1. Ordersheet'!F778)","v":""},{"$f":"IF('1. Ordersheet'!G778=\"\",\"\",'1. Ordersheet'!G778)","v":""},{"$f":"IF('1. Ordersheet'!H778=\"\",\"\",'1. Ordersheet'!H778)","v":""},{"$f":"IF('1. Ordersheet'!I778=\"\",\"\",'1. Ordersheet'!I778)","v":""},{"$f":"IF('1. Ordersheet'!J778=\"\",\"\",'1. Ordersheet'!J778)","v":""},{"$f":"IF('1. Ordersheet'!K778=\"\",\"\",'1. Ordersheet'!K778)","v":""},{"$f":"IF('1. Ordersheet'!L778=\"\",\"\",'1. Ordersheet'!L778)","v":""},{"$f":"IF('1. Ordersheet'!M778=\"\",\"\",'1. Ordersheet'!M778)","v":""},{"$f":"IF('1. Ordersheet'!N778=\"\",\"\",'1. Ordersheet'!N778)","v":""},{"$f":"IF('1. Ordersheet'!O778=\"\",\"\",'1. Ordersheet'!O778)","v":{"$error":"#N/A"}},{"$f":"IF('1. Ordersheet'!P778=\"\",\"\",'1. Ordersheet'!P778)","v":{"$error":"#N/A"}},{"$f":"IF('1. Ordersheet'!Q778=\"\",\"\",'1. Ordersheet'!Q778)","v":""},{"$f":"IF('1. Ordersheet'!R778=\"\",\"\",'1. Ordersheet'!R778)","v":""},{"$f":"IF('1. Ordersheet'!S778=\"\",\"\",'1. Ordersheet'!S778)","v":""},{"$f":"IF('1. Ordersheet'!V778=\"\",\"\",'1. Ordersheet'!V778)","v":""},{"$f":"IF('1. Ordersheet'!W778=\"\",\"\",'1. Ordersheet'!W778)","v":""},{"$f":"IF('1. Ordersheet'!X778=\"\",\"\",'1. Ordersheet'!X778)","v":""},{"$f":"IF('1. Ordersheet'!Y778=\"\",\"\",'1. Ordersheet'!Y778)","v":""},{"$f":"IF('1. Ordersheet'!Z778=\"\",\"\",'1. Ordersheet'!Z778)","v":""},{"$f":"IF('1. Ordersheet'!AA778=\"\",\"\",'1. Ordersheet'!AA778)","v":""},null,{"$f":"IF('1. Ordersheet'!AS778=\"\",\"\",'1. Ordersheet'!AS778)","v":""},{"$f":"IF('1. Ordersheet'!AT778=\"\",\"\",'1. Ordersheet'!AT778)","v":""},null,null,null,null,null,null,null,{"$f":"IF('1. Ordersheet'!AX778=\"\",\"\",'1. Ordersheet'!AX778)","v":""},{"$f":"IF('1. Ordersheet'!AY778=\"\",\"\",'1. Ordersheet'!AY778)","v":""},{"$f":"IF('1. Ordersheet'!AZ778=\"\",\"\",'1. Ordersheet'!AZ778)","v":""},{"$f":"IF('1. Ordersheet'!BA778=\"\",\"\",'1. Ordersheet'!BA778)","v":""},{"$f":"IF('1. Ordersheet'!BC778=\"\",\"\",'1. Ordersheet'!BC778)","v":""},{"$f":"IF('1. Ordersheet'!BD778=\"\",\"\",'1. Ordersheet'!BD778)","v":""},{"$f":"IF('1. Ordersheet'!BE778=\"\",\"\",'1. Ordersheet'!BE778)","v":""},{"$f":"IF('1. Ordersheet'!BF778=\"\",\"\",'1. Ordersheet'!BF778)","v":""},{"$f":"IF('1. Ordersheet'!BG778=\"\",\"\",'1. Ordersheet'!BG778)","v":"ZWO"},{"$f":"IF('1. Ordersheet'!BH778=\"\",\"\",'1. Ordersheet'!BH778)","v":""},{"$f":"IF('1. Ordersheet'!BI778=\"\",\"\",'1. Ordersheet'!BI778)","v":""},{"$f":"IF('1. Ordersheet'!BJ778=\"\",\"\",'1. Ordersheet'!BJ778)","v":""},{"$f":"IF('1. Ordersheet'!BK778=\"\",\"\",'1. Ordersheet'!BK778)","v":""},{"$f":"IF('1. Ordersheet'!BL778=\"\",\"\",'1. Ordersheet'!BL778)","v":""}]
[{"$f":"IF('1. Ordersheet'!F779=\"\",\"\",'1. Ordersheet'!F779)","v":""},{"$f":"IF('1. Ordersheet'!G779=\"\",\"\",'1. Ordersheet'!G779)","v":""},{"$f":"IF('1. Ordersheet'!H779=\"\",\"\",'1. Ordersheet'!H779)","v":""},{"$f":"IF('1. Ordersheet'!I779=\"\",\"\",'1. Ordersheet'!I779)","v":""},{"$f":"IF('1. Ordersheet'!J779=\"\",\"\",'1. Ordersheet'!J779)","v":""},{"$f":"IF('1. Ordersheet'!K779=\"\",\"\",'1. Ordersheet'!K779)","v":""},{"$f":"IF('1. Ordersheet'!L779=\"\",\"\",'1. Ordersheet'!L779)","v":""},{"$f":"IF('1. Ordersheet'!M779=\"\",\"\",'1. Ordersheet'!M779)","v":""},{"$f":"IF('1. Ordersheet'!N779=\"\",\"\",'1. Ordersheet'!N779)","v":""},{"$f":"IF('1. Ordersheet'!O779=\"\",\"\",'1. Ordersheet'!O779)","v":{"$error":"#N/A"}},{"$f":"IF('1. Ordersheet'!P779=\"\",\"\",'1. Ordersheet'!P779)","v":{"$error":"#N/A"}},{"$f":"IF('1. Ordersheet'!Q779=\"\",\"\",'1. Ordersheet'!Q779)","v":""},{"$f":"IF('1. Ordersheet'!R779=\"\",\"\",'1. Ordersheet'!R779)","v":""},{"$f":"IF('1. Ordersheet'!S779=\"\",\"\",'1. Ordersheet'!S779)","v":""},{"$f":"IF('1. Ordersheet'!V779=\"\",\"\",'1. Ordersheet'!V779)","v":""},{"$f":"IF('1. Ordersheet'!W779=\"\",\"\",'1. Ordersheet'!W779)","v":""},{"$f":"IF('1. Ordersheet'!X779=\"\",\"\",'1. Ordersheet'!X779)","v":""},{"$f":"IF('1. Ordersheet'!Y779=\"\",\"\",'1. Ordersheet'!Y779)","v":""},{"$f":"IF('1. Ordersheet'!Z779=\"\",\"\",'1. Ordersheet'!Z779)","v":""},{"$f":"IF('1. Ordersheet'!AA779=\"\",\"\",'1. Ordersheet'!AA779)","v":""},null,{"$f":"IF('1. Ordersheet'!AS779=\"\",\"\",'1. Ordersheet'!AS779)","v":""},{"$f":"IF('1. Ordersheet'!AT779=\"\",\"\",'1. Ordersheet'!AT779)","v":""},null,null,null,null,null,null,null,{"$f":"IF('1. Ordersheet'!AX779=\"\",\"\",'1. Ordersheet'!AX779)","v":""},{"$f":"IF('1. Ordersheet'!AY779=\"\",\"\",'1. Ordersheet'!AY779)","v":""},{"$f":"IF('1. Ordersheet'!AZ779=\"\",\"\",'1. Ordersheet'!AZ779)","v":""},{"$f":"IF('1. Ordersheet'!BA779=\"\",\"\",'1. Ordersheet'!BA779)","v":""},{"$f":"IF('1. Ordersheet'!BC779=\"\",\"\",'1. Ordersheet'!BC779)","v":""},{"$f":"IF('1. Ordersheet'!BD779=\"\",\"\",'1. Ordersheet'!BD779)","v":""},{"$f":"IF('1. Ordersheet'!BE779=\"\",\"\",'1. Ordersheet'!BE779)","v":""},{"$f":"IF('1. Ordersheet'!BF779=\"\",\"\",'1. Ordersheet'!BF779)","v":""},{"$f":"IF('1. Ordersheet'!BG779=\"\",\"\",'1. Ordersheet'!BG779)","v":"ZWO"},{"$f":"IF('1. Ordersheet'!BH779=\"\",\"\",'1. Ordersheet'!BH779)","v":""},{"$f":"IF('1. Ordersheet'!BI779=\"\",\"\",'1. Ordersheet'!BI779)","v":""},{"$f":"IF('1. Ordersheet'!BJ779=\"\",\"\",'1. Ordersheet'!BJ779)","v":""},{"$f":"IF('1. Ordersheet'!BK779=\"\",\"\",'1. Ordersheet'!BK779)","v":""},{"$f":"IF('1. Ordersheet'!BL779=\"\",\"\",'1. Ordersheet'!BL779)","v":""}]
[{"$f":"IF('1. Ordersheet'!F780=\"\",\"\",'1. Ordersheet'!F780)","v":""},{"$f":"IF('1. Ordersheet'!G780=\"\",\"\",'1. Ordersheet'!G780)","v":""},{"$f":"IF('1. Ordersheet'!H780=\"\",\"\",'1. Ordersheet'!H780)","v":""},{"$f":"IF('1. Ordersheet'!I780=\"\",\"\",'1. Ordersheet'!I780)","v":""},{"$f":"IF('1. Ordersheet'!J780=\"\",\"\",'1. Ordersheet'!J780)","v":""},{"$f":"IF('1. Ordersheet'!K780=\"\",\"\",'1. Ordersheet'!K780)","v":""},{"$f":"IF('1. Ordersheet'!L780=\"\",\"\",'1. Ordersheet'!L780)","v":""},{"$f":"IF('1. Ordersheet'!M780=\"\",\"\",'1. Ordersheet'!M780)","v":""},{"$f":"IF('1. Ordersheet'!N780=\"\",\"\",'1. Ordersheet'!N780)","v":""},{"$f":"IF('1. Ordersheet'!O780=\"\",\"\",'1. Ordersheet'!O780)","v":{"$error":"#N/A"}},{"$f":"IF('1. Ordersheet'!P780=\"\",\"\",'1. Ordersheet'!P780)","v":{"$error":"#N/A"}},{"$f":"IF('1. Ordersheet'!Q780=\"\",\"\",'1. Ordersheet'!Q780)","v":""},{"$f":"IF('1. Ordersheet'!R780=\"\",\"\",'1. Ordersheet'!R780)","v":""},{"$f":"IF('1. Ordersheet'!S780=\"\",\"\",'1. Ordersheet'!S780)","v":""},{"$f":"IF('1. Ordersheet'!V780=\"\",\"\",'1. Ordersheet'!V780)","v":""},{"$f":"IF('1. Ordersheet'!W780=\"\",\"\",'1. Ordersheet'!W780)","v":""},{"$f":"IF('1. Ordersheet'!X780=\"\",\"\",'1. Ordersheet'!X780)","v":""},{"$f":"IF('1. Ordersheet'!Y780=\"\",\"\",'1. Ordersheet'!Y780)","v":""},{"$f":"IF('1. Ordersheet'!Z780=\"\",\"\",'1. Ordersheet'!Z780)","v":""},{"$f":"IF('1. Ordersheet'!AA780=\"\",\"\",'1. Ordersheet'!AA780)","v":""},null,{"$f":"IF('1. Ordersheet'!AS780=\"\",\"\",'1. Ordersheet'!AS780)","v":""},{"$f":"IF('1. Ordersheet'!AT780=\"\",\"\",'1. Ordersheet'!AT780)","v":""},null,null,null,null,null,null,null,{"$f":"IF('1. Ordersheet'!AX780=\"\",\"\",'1. Ordersheet'!AX780)","v":""},{"$f":"IF('1. Ordersheet'!AY780=\"\",\"\",'1. Ordersheet'!AY780)","v":""},{"$f":"IF('1. Ordersheet'!AZ780=\"\",\"\",'1. Ordersheet'!AZ780)","v":""},{"$f":"IF('1. Ordersheet'!BA780=\"\",\"\",'1. Ordersheet'!BA780)","v":""},{"$f":"IF('1. Ordersheet'!BC780=\"\",\"\",'1. Ordersheet'!BC780)","v":""},{"$f":"IF('1. Ordersheet'!BD780=\"\",\"\",'1. Ordersheet'!BD780)","v":""},{"$f":"IF('1. Ordersheet'!BE780=\"\",\"\",'1. Ordersheet'!BE780)","v":""},{"$f":"IF('1. Ordersheet'!BF780=\"\",\"\",'1. Ordersheet'!BF780)","v":""},{"$f":"IF('1. Ordersheet'!BG780=\"\",\"\",'1. Ordersheet'!BG780)","v":"ZWO"},{"$f":"IF('1. Ordersheet'!BH780=\"\",\"\",'1. Ordersheet'!BH780)","v":""},{"$f":"IF('1. Ordersheet'!BI780=\"\",\"\",'1. Ordersheet'!BI780)","v":""},{"$f":"IF('1. Ordersheet'!BJ780=\"\",\"\",'1. Ordersheet'!BJ780)","v":""},{"$f":"IF('1. Ordersheet'!BK780=\"\",\"\",'1. Ordersheet'!BK780)","v":""},{"$f":"IF('1. Ordersheet'!BL780=\"\",\"\",'1. Ordersheet'!BL780)","v":""}]
[{"$f":"IF('1. Ordersheet'!F781=\"\",\"\",'1. Ordersheet'!F781)","v":""},{"$f":"IF('1. Ordersheet'!G781=\"\",\"\",'1. Ordersheet'!G781)","v":""},{"$f":"IF('1. Ordersheet'!H781=\"\",\"\",'1. Ordersheet'!H781)","v":""},{"$f":"IF('1. Ordersheet'!I781=\"\",\"\",'1. Ordersheet'!I781)","v":""},{"$f":"IF('1. Ordersheet'!J781=\"\",\"\",'1. Ordersheet'!J781)","v":""},{"$f":"IF('1. Ordersheet'!K781=\"\",\"\",'1. Ordersheet'!K781)","v":""},{"$f":"IF('1. Ordersheet'!L781=\"\",\"\",'1. Ordersheet'!L781)","v":""},{"$f":"IF('1. Ordersheet'!M781=\"\",\"\",'1. Ordersheet'!M781)","v":""},{"$f":"IF('1. Ordersheet'!N781=\"\",\"\",'1. Ordersheet'!N781)","v":""},{"$f":"IF('1. Ordersheet'!O781=\"\",\"\",'1. Ordersheet'!O781)","v":{"$error":"#N/A"}},{"$f":"IF('1. Ordersheet'!P781=\"\",\"\",'1. Ordersheet'!P781)","v":{"$error":"#N/A"}},{"$f":"IF('1. Ordersheet'!Q781=\"\",\"\",'1. Ordersheet'!Q781)","v":""},{"$f":"IF('1. Ordersheet'!R781=\"\",\"\",'1. Ordersheet'!R781)","v":""},{"$f":"IF('1. Ordersheet'!S781=\"\",\"\",'1. Ordersheet'!S781)","v":""},{"$f":"IF('1. Ordersheet'!V781=\"\",\"\",'1. Ordersheet'!V781)","v":""},{"$f":"IF('1. Ordersheet'!W781=\"\",\"\",'1. Ordersheet'!W781)","v":""},{"$f":"IF('1. Ordersheet'!X781=\"\",\"\",'1. Ordersheet'!X781)","v":""},{"$f":"IF('1. Ordersheet'!Y781=\"\",\"\",'1. Ordersheet'!Y781)","v":""},{"$f":"IF('1. Ordersheet'!Z781=\"\",\"\",'1. Ordersheet'!Z781)","v":""},{"$f":"IF('1. Ordersheet'!AA781=\"\",\"\",'1. Ordersheet'!AA781)","v":""},null,{"$f":"IF('1. Ordersheet'!AS781=\"\",\"\",'1. Ordersheet'!AS781)","v":""},{"$f":"IF('1. Ordersheet'!AT781=\"\",\"\",'1. Ordersheet'!AT781)","v":""},null,null,null,null,null,null,null,{"$f":"IF('1. Ordersheet'!AX781=\"\",\"\",'1. Ordersheet'!AX781)","v":""},{"$f":"IF('1. Ordersheet'!AY781=\"\",\"\",'1. Ordersheet'!AY781)","v":""},{"$f":"IF('1. Ordersheet'!AZ781=\"\",\"\",'1. Ordersheet'!AZ781)","v":""},{"$f":"IF('1. Ordersheet'!BA781=\"\",\"\",'1. Ordersheet'!BA781)","v":""},{"$f":"IF('1. Ordersheet'!BC781=\"\",\"\",'1. Ordersheet'!BC781)","v":""},{"$f":"IF('1. Ordersheet'!BD781=\"\",\"\",'1. Ordersheet'!BD781)","v":""},{"$f":"IF('1. Ordersheet'!BE781=\"\",\"\",'1. Ordersheet'!BE781)","v":""},{"$f":"IF('1. Ordersheet'!BF781=\"\",\"\",'1. Ordersheet'!BF781)","v":""},{"$f":"IF('1. Ordersheet'!BG781=\"\",\"\",'1. Ordersheet'!BG781)","v":"ZWO"},{"$f":"IF('1. Ordersheet'!BH781=\"\",\"\",'1. Ordersheet'!BH781)","v":""},{"$f":"IF('1. Ordersheet'!BI781=\"\",\"\",'1. Ordersheet'!BI781)","v":""},{"$f":"IF('1. Ordersheet'!BJ781=\"\",\"\",'1. Ordersheet'!BJ781)","v":""},{"$f":"IF('1. Ordersheet'!BK781=\"\",\"\",'1. Ordersheet'!BK781)","v":""},{"$f":"IF('1. Ordersheet'!BL781=\"\",\"\",'1. Ordersheet'!BL781)","v":""}]
[{"$f":"IF('1. Ordersheet'!F782=\"\",\"\",'1. Ordersheet'!F782)","v":""},{"$f":"IF('1. Ordersheet'!G782=\"\",\"\",'1. Ordersheet'!G782)","v":""},{"$f":"IF('1. Ordersheet'!H782=\"\",\"\",'1. Ordersheet'!H782)","v":""},{"$f":"IF('1. Ordersheet'!I782=\"\",\"\",'1. Ordersheet'!I782)","v":""},{"$f":"IF('1. Ordersheet'!J782=\"\",\"\",'1. Ordersheet'!J782)","v":""},{"$f":"IF('1. Ordersheet'!K782=\"\",\"\",'1. Ordersheet'!K782)","v":""},{"$f":"IF('1. Ordersheet'!L782=\"\",\"\",'1. Ordersheet'!L782)","v":""},{"$f":"IF('1. Ordersheet'!M782=\"\",\"\",'1. Ordersheet'!M782)","v":""},{"$f":"IF('1. Ordersheet'!N782=\"\",\"\",'1. Ordersheet'!N782)","v":""},{"$f":"IF('1. Ordersheet'!O782=\"\",\"\",'1. Ordersheet'!O782)","v":{"$error":"#N/A"}},{"$f":"IF('1. Ordersheet'!P782=\"\",\"\",'1. Ordersheet'!P782)","v":{"$error":"#N/A"}},{"$f":"IF('1. Ordersheet'!Q782=\"\",\"\",'1. Ordersheet'!Q782)","v":""},{"$f":"IF('1. Ordersheet'!R782=\"\",\"\",'1. Ordersheet'!R782)","v":""},{"$f":"IF('1. Ordersheet'!S782=\"\",\"\",'1. Ordersheet'!S782)","v":""},{"$f":"IF('1. Ordersheet'!V782=\"\",\"\",'1. Ordersheet'!V782)","v":""},{"$f":"IF('1. Ordersheet'!W782=\"\",\"\",'1. Ordersheet'!W782)","v":""},{"$f":"IF('1. Ordersheet'!X782=\"\",\"\",'1. Ordersheet'!X782)","v":""},{"$f":"IF('1. Ordersheet'!Y782=\"\",\"\",'1. Ordersheet'!Y782)","v":""},{"$f":"IF('1. Ordersheet'!Z782=\"\",\"\",'1. Ordersheet'!Z782)","v":""},{"$f":"IF('1. Ordersheet'!AA782=\"\",\"\",'1. Ordersheet'!AA782)","v":""},null,{"$f":"IF('1. Ordersheet'!AS782=\"\",\"\",'1. Ordersheet'!AS782)","v":""},{"$f":"IF('1. Ordersheet'!AT782=\"\",\"\",'1. Ordersheet'!AT782)","v":""},null,null,null,null,null,null,null,{"$f":"IF('1. Ordersheet'!AX782=\"\",\"\",'1. Ordersheet'!AX782)","v":""},{"$f":"IF('1. Ordersheet'!AY782=\"\",\"\",'1. Ordersheet'!AY782)","v":""},{"$f":"IF('1. Ordersheet'!AZ782=\"\",\"\",'1. Ordersheet'!AZ782)","v":""},{"$f":"IF('1. Ordersheet'!BA782=\"\",\"\",'1. Ordersheet'!BA782)","v":""},{"$f":"IF('1. Ordersheet'!BC782=\"\",\"\",'1. Ordersheet'!BC782)","v":""},{"$f":"IF('1. Ordersheet'!BD782=\"\",\"\",'1. Ordersheet'!BD782)","v":""},{"$f":"IF('1. Ordersheet'!BE782=\"\",\"\",'1. Ordersheet'!BE782)","v":""},{"$f":"IF('1. Ordersheet'!BF782=\"\",\"\",'1. Ordersheet'!BF782)","v":""},{"$f":"IF('1. Ordersheet'!BG782=\"\",\"\",'1. Ordersheet'!BG782)","v":"ZWO"},{"$f":"IF('1. Ordersheet'!BH782=\"\",\"\",'1. Ordersheet'!BH782)","v":""},{"$f":"IF('1. Ordersheet'!BI782=\"\",\"\",'1. Ordersheet'!BI782)","v":""},{"$f":"IF('1. Ordersheet'!BJ782=\"\",\"\",'1. Ordersheet'!BJ782)","v":""},{"$f":"IF('1. Ordersheet'!BK782=\"\",\"\",'1. Ordersheet'!BK782)","v":""},{"$f":"IF('1. Ordersheet'!BL782=\"\",\"\",'1. Ordersheet'!BL782)","v":""}]
[{"$f":"IF('1. Ordersheet'!F783=\"\",\"\",'1. Ordersheet'!F783)","v":""},{"$f":"IF('1. Ordersheet'!G783=\"\",\"\",'1. Ordersheet'!G783)","v":""},{"$f":"IF('1. Ordersheet'!H783=\"\",\"\",'1. Ordersheet'!H783)","v":""},{"$f":"IF('1. Ordersheet'!I783=\"\",\"\",'1. Ordersheet'!I783)","v":""},{"$f":"IF('1. Ordersheet'!J783=\"\",\"\",'1. Ordersheet'!J783)","v":""},{"$f":"IF('1. Ordersheet'!K783=\"\",\"\",'1. Ordersheet'!K783)","v":""},{"$f":"IF('1. Ordersheet'!L783=\"\",\"\",'1. Ordersheet'!L783)","v":""},{"$f":"IF('1. Ordersheet'!M783=\"\",\"\",'1. Ordersheet'!M783)","v":""},{"$f":"IF('1. Ordersheet'!N783=\"\",\"\",'1. Ordersheet'!N783)","v":""},{"$f":"IF('1. Ordersheet'!O783=\"\",\"\",'1. Ordersheet'!O783)","v":{"$error":"#N/A"}},{"$f":"IF('1. Ordersheet'!P783=\"\",\"\",'1. Ordersheet'!P783)","v":{"$error":"#N/A"}},{"$f":"IF('1. Ordersheet'!Q783=\"\",\"\",'1. Ordersheet'!Q783)","v":""},{"$f":"IF('1. Ordersheet'!R783=\"\",\"\",'1. Ordersheet'!R783)","v":""},{"$f":"IF('1. Ordersheet'!S783=\"\",\"\",'1. Ordersheet'!S783)","v":""},{"$f":"IF('1. Ordersheet'!V783=\"\",\"\",'1. Ordersheet'!V783)","v":""},{"$f":"IF('1. Ordersheet'!W783=\"\",\"\",'1. Ordersheet'!W783)","v":""},{"$f":"IF('1. Ordersheet'!X783=\"\",\"\",'1. Ordersheet'!X783)","v":""},{"$f":"IF('1. Ordersheet'!Y783=\"\",\"\",'1. Ordersheet'!Y783)","v":""},{"$f":"IF('1. Ordersheet'!Z783=\"\",\"\",'1. Ordersheet'!Z783)","v":""},{"$f":"IF('1. Ordersheet'!AA783=\"\",\"\",'1. Ordersheet'!AA783)","v":""},null,{"$f":"IF('1. Ordersheet'!AS783=\"\",\"\",'1. Ordersheet'!AS783)","v":""},{"$f":"IF('1. Ordersheet'!AT783=\"\",\"\",'1. Ordersheet'!AT783)","v":""},null,null,null,null,null,null,null,{"$f":"IF('1. Ordersheet'!AX783=\"\",\"\",'1. Ordersheet'!AX783)","v":""},{"$f":"IF('1. Ordersheet'!AY783=\"\",\"\",'1. Ordersheet'!AY783)","v":""},{"$f":"IF('1. Ordersheet'!AZ783=\"\",\"\",'1. Ordersheet'!AZ783)","v":""},{"$f":"IF('1. Ordersheet'!BA783=\"\",\"\",'1. Ordersheet'!BA783)","v":""},{"$f":"IF('1. Ordersheet'!BC783=\"\",\"\",'1. Ordersheet'!BC783)","v":""},{"$f":"IF('1. Ordersheet'!BD783=\"\",\"\",'1. Ordersheet'!BD783)","v":""},{"$f":"IF('1. Ordersheet'!BE783=\"\",\"\",'1. Ordersheet'!BE783)","v":""},{"$f":"IF('1. Ordersheet'!BF783=\"\",\"\",'1. Ordersheet'!BF783)","v":""},{"$f":"IF('1. Ordersheet'!BG783=\"\",\"\",'1. Ordersheet'!BG783)","v":"ZWO"},{"$f":"IF('1. Ordersheet'!BH783=\"\",\"\",'1. Ordersheet'!BH783)","v":""},{"$f":"IF('1. Ordersheet'!BI783=\"\",\"\",'1. Ordersheet'!BI783)","v":""},{"$f":"IF('1. Ordersheet'!BJ783=\"\",\"\",'1. Ordersheet'!BJ783)","v":""},{"$f":"IF('1. Ordersheet'!BK783=\"\",\"\",'1. Ordersheet'!BK783)","v":""},{"$f":"IF('1. Ordersheet'!BL783=\"\",\"\",'1. Ordersheet'!BL783)","v":""}]
[{"$f":"IF('1. Ordersheet'!F784=\"\",\"\",'1. Ordersheet'!F784)","v":""},{"$f":"IF('1. Ordersheet'!G784=\"\",\"\",'1. Ordersheet'!G784)","v":""},{"$f":"IF('1. Ordersheet'!H784=\"\",\"\",'1. Ordersheet'!H784)","v":""},{"$f":"IF('1. Ordersheet'!I784=\"\",\"\",'1. Ordersheet'!I784)","v":""},{"$f":"IF('1. Ordersheet'!J784=\"\",\"\",'1. Ordersheet'!J784)","v":""},{"$f":"IF('1. Ordersheet'!K784=\"\",\"\",'1. Ordersheet'!K784)","v":""},{"$f":"IF('1. Ordersheet'!L784=\"\",\"\",'1. Ordersheet'!L784)","v":""},{"$f":"IF('1. Ordersheet'!M784=\"\",\"\",'1. Ordersheet'!M784)","v":""},{"$f":"IF('1. Ordersheet'!N784=\"\",\"\",'1. Ordersheet'!N784)","v":""},{"$f":"IF('1. Ordersheet'!O784=\"\",\"\",'1. Ordersheet'!O784)","v":{"$error":"#N/A"}},{"$f":"IF('1. Ordersheet'!P784=\"\",\"\",'1. Ordersheet'!P784)","v":{"$error":"#N/A"}},{"$f":"IF('1. Ordersheet'!Q784=\"\",\"\",'1. Ordersheet'!Q784)","v":""},{"$f":"IF('1. Ordersheet'!R784=\"\",\"\",'1. Ordersheet'!R784)","v":""},{"$f":"IF('1. Ordersheet'!S784=\"\",\"\",'1. Ordersheet'!S784)","v":""},{"$f":"IF('1. Ordersheet'!V784=\"\",\"\",'1. Ordersheet'!V784)","v":""},{"$f":"IF('1. Ordersheet'!W784=\"\",\"\",'1. Ordersheet'!W784)","v":""},{"$f":"IF('1. Ordersheet'!X784=\"\",\"\",'1. Ordersheet'!X784)","v":""},{"$f":"IF('1. Ordersheet'!Y784=\"\",\"\",'1. Ordersheet'!Y784)","v":""},{"$f":"IF('1. Ordersheet'!Z784=\"\",\"\",'1. Ordersheet'!Z784)","v":""},{"$f":"IF('1. Ordersheet'!AA784=\"\",\"\",'1. Ordersheet'!AA784)","v":""},null,{"$f":"IF('1. Ordersheet'!AS784=\"\",\"\",'1. Ordersheet'!AS784)","v":""},{"$f":"IF('1. Ordersheet'!AT784=\"\",\"\",'1. Ordersheet'!AT784)","v":""},null,null,null,null,null,null,null,{"$f":"IF('1. Ordersheet'!AX784=\"\",\"\",'1. Ordersheet'!AX784)","v":""},{"$f":"IF('1. Ordersheet'!AY784=\"\",\"\",'1. Ordersheet'!AY784)","v":""},{"$f":"IF('1. Ordersheet'!AZ784=\"\",\"\",'1. Ordersheet'!AZ784)","v":""},{"$f":"IF('1. Ordersheet'!BA784=\"\",\"\",'1. Ordersheet'!BA784)","v":""},{"$f":"IF('1. Ordersheet'!BC784=\"\",\"\",'1. Ordersheet'!BC784)","v":""},{"$f":"IF('1. Ordersheet'!BD784=\"\",\"\",'1. Ordersheet'!BD784)","v":""},{"$f":"IF('1. Ordersheet'!BE784=\"\",\"\",'1. Ordersheet'!BE784)","v":""},{"$f":"IF('1. Ordersheet'!BF784=\"\",\"\",'1. Ordersheet'!BF784)","v":""},{"$f":"IF('1. Ordersheet'!BG784=\"\",\"\",'1. Ordersheet'!BG784)","v":"ZWO"},{"$f":"IF('1. Ordersheet'!BH784=\"\",\"\",'1. Ordersheet'!BH784)","v":""},{"$f":"IF('1. Ordersheet'!BI784=\"\",\"\",'1. Ordersheet'!BI784)","v":""},{"$f":"IF('1. Ordersheet'!BJ784=\"\",\"\",'1. Ordersheet'!BJ784)","v":""},{"$f":"IF('1. Ordersheet'!BK784=\"\",\"\",'1. Ordersheet'!BK784)","v":""},{"$f":"IF('1. Ordersheet'!BL784=\"\",\"\",'1. Ordersheet'!BL784)","v":""}]
[{"$f":"IF('1. Ordersheet'!F785=\"\",\"\",'1. Ordersheet'!F785)","v":""},{"$f":"IF('1. Ordersheet'!G785=\"\",\"\",'1. Ordersheet'!G785)","v":""},{"$f":"IF('1. Ordersheet'!H785=\"\",\"\",'1. Ordersheet'!H785)","v":""},{"$f":"IF('1. Ordersheet'!I785=\"\",\"\",'1. Ordersheet'!I785)","v":""},{"$f":"IF('1. Ordersheet'!J785=\"\",\"\",'1. Ordersheet'!J785)","v":""},{"$f":"IF('1. Ordersheet'!K785=\"\",\"\",'1. Ordersheet'!K785)","v":""},{"$f":"IF('1. Ordersheet'!L785=\"\",\"\",'1. Ordersheet'!L785)","v":""},{"$f":"IF('1. Ordersheet'!M785=\"\",\"\",'1. Ordersheet'!M785)","v":""},{"$f":"IF('1. Ordersheet'!N785=\"\",\"\",'1. Ordersheet'!N785)","v":""},{"$f":"IF('1. Ordersheet'!O785=\"\",\"\",'1. Ordersheet'!O785)","v":{"$error":"#N/A"}},{"$f":"IF('1. Ordersheet'!P785=\"\",\"\",'1. Ordersheet'!P785)","v":{"$error":"#N/A"}},{"$f":"IF('1. Ordersheet'!Q785=\"\",\"\",'1. Ordersheet'!Q785)","v":""},{"$f":"IF('1. Ordersheet'!R785=\"\",\"\",'1. Ordersheet'!R785)","v":""},{"$f":"IF('1. Ordersheet'!S785=\"\",\"\",'1. Ordersheet'!S785)","v":""},{"$f":"IF('1. Ordersheet'!V785=\"\",\"\",'1. Ordersheet'!V785)","v":""},{"$f":"IF('1. Ordersheet'!W785=\"\",\"\",'1. Ordersheet'!W785)","v":""},{"$f":"IF('1. Ordersheet'!X785=\"\",\"\",'1. Ordersheet'!X785)","v":""},{"$f":"IF('1. Ordersheet'!Y785=\"\",\"\",'1. Ordersheet'!Y785)","v":""},{"$f":"IF('1. Ordersheet'!Z785=\"\",\"\",'1. Ordersheet'!Z785)","v":""},{"$f":"IF('1. Ordersheet'!AA785=\"\",\"\",'1. Ordersheet'!AA785)","v":""},null,{"$f":"IF('1. Ordersheet'!AS785=\"\",\"\",'1. Ordersheet'!AS785)","v":""},{"$f":"IF('1. Ordersheet'!AT785=\"\",\"\",'1. Ordersheet'!AT785)","v":""},null,null,null,null,null,null,null,{"$f":"IF('1. Ordersheet'!AX785=\"\",\"\",'1. Ordersheet'!AX785)","v":""},{"$f":"IF('1. Ordersheet'!AY785=\"\",\"\",'1. Ordersheet'!AY785)","v":""},{"$f":"IF('1. Ordersheet'!AZ785=\"\",\"\",'1. Ordersheet'!AZ785)","v":""},{"$f":"IF('1. Ordersheet'!BA785=\"\",\"\",'1. Ordersheet'!BA785)","v":""},{"$f":"IF('1. Ordersheet'!BC785=\"\",\"\",'1. Ordersheet'!BC785)","v":""},{"$f":"IF('1. Ordersheet'!BD785=\"\",\"\",'1. Ordersheet'!BD785)","v":""},{"$f":"IF('1. Ordersheet'!BE785=\"\",\"\",'1. Ordersheet'!BE785)","v":""},{"$f":"IF('1. Ordersheet'!BF785=\"\",\"\",'1. Ordersheet'!BF785)","v":""},{"$f":"IF('1. Ordersheet'!BG785=\"\",\"\",'1. Ordersheet'!BG785)","v":"ZWO"},{"$f":"IF('1. Ordersheet'!BH785=\"\",\"\",'1. Ordersheet'!BH785)","v":""},{"$f":"IF('1. Ordersheet'!BI785=\"\",\"\",'1. Ordersheet'!BI785)","v":""},{"$f":"IF('1. Ordersheet'!BJ785=\"\",\"\",'1. Ordersheet'!BJ785)","v":""},{"$f":"IF('1. Ordersheet'!BK785=\"\",\"\",'1. Ordersheet'!BK785)","v":""},{"$f":"IF('1. Ordersheet'!BL785=\"\",\"\",'1. Ordersheet'!BL785)","v":""}]
[{"$f":"IF('1. Ordersheet'!F786=\"\",\"\",'1. Ordersheet'!F786)","v":""},{"$f":"IF('1. Ordersheet'!G786=\"\",\"\",'1. Ordersheet'!G786)","v":""},{"$f":"IF('1. Ordersheet'!H786=\"\",\"\",'1. Ordersheet'!H786)","v":""},{"$f":"IF('1. Ordersheet'!I786=\"\",\"\",'1. Ordersheet'!I786)","v":""},{"$f":"IF('1. Ordersheet'!J786=\"\",\"\",'1. Ordersheet'!J786)","v":""},{"$f":"IF('1. Ordersheet'!K786=\"\",\"\",'1. Ordersheet'!K786)","v":""},{"$f":"IF('1. Ordersheet'!L786=\"\",\"\",'1. Ordersheet'!L786)","v":""},{"$f":"IF('1. Ordersheet'!M786=\"\",\"\",'1. Ordersheet'!M786)","v":""},{"$f":"IF('1. Ordersheet'!N786=\"\",\"\",'1. Ordersheet'!N786)","v":""},{"$f":"IF('1. Ordersheet'!O786=\"\",\"\",'1. Ordersheet'!O786)","v":{"$error":"#N/A"}},{"$f":"IF('1. Ordersheet'!P786=\"\",\"\",'1. Ordersheet'!P786)","v":{"$error":"#N/A"}},{"$f":"IF('1. Ordersheet'!Q786=\"\",\"\",'1. Ordersheet'!Q786)","v":""},{"$f":"IF('1. Ordersheet'!R786=\"\",\"\",'1. Ordersheet'!R786)","v":""},{"$f":"IF('1. Ordersheet'!S786=\"\",\"\",'1. Ordersheet'!S786)","v":""},{"$f":"IF('1. Ordersheet'!V786=\"\",\"\",'1. Ordersheet'!V786)","v":""},{"$f":"IF('1. Ordersheet'!W786=\"\",\"\",'1. Ordersheet'!W786)","v":""},{"$f":"IF('1. Ordersheet'!X786=\"\",\"\",'1. Ordersheet'!X786)","v":""},{"$f":"IF('1. Ordersheet'!Y786=\"\",\"\",'1. Ordersheet'!Y786)","v":""},{"$f":"IF('1. Ordersheet'!Z786=\"\",\"\",'1. Ordersheet'!Z786)","v":""},{"$f":"IF('1. Ordersheet'!AA786=\"\",\"\",'1. Ordersheet'!AA786)","v":""},null,{"$f":"IF('1. Ordersheet'!AS786=\"\",\"\",'1. Ordersheet'!AS786)","v":""},{"$f":"IF('1. Ordersheet'!AT786=\"\",\"\",'1. Ordersheet'!AT786)","v":""},null,null,null,null,null,null,null,{"$f":"IF('1. Ordersheet'!AX786=\"\",\"\",'1. Ordersheet'!AX786)","v":""},{"$f":"IF('1. Ordersheet'!AY786=\"\",\"\",'1. Ordersheet'!AY786)","v":""},{"$f":"IF('1. Ordersheet'!AZ786=\"\",\"\",'1. Ordersheet'!AZ786)","v":""},{"$f":"IF('1. Ordersheet'!BA786=\"\",\"\",'1. Ordersheet'!BA786)","v":""},{"$f":"IF('1. Ordersheet'!BC786=\"\",\"\",'1. Ordersheet'!BC786)","v":""},{"$f":"IF('1. Ordersheet'!BD786=\"\",\"\",'1. Ordersheet'!BD786)","v":""},{"$f":"IF('1. Ordersheet'!BE786=\"\",\"\",'1. Ordersheet'!BE786)","v":""},{"$f":"IF('1. Ordersheet'!BF786=\"\",\"\",'1. Ordersheet'!BF786)","v":""},{"$f":"IF('1. Ordersheet'!BG786=\"\",\"\",'1. Ordersheet'!BG786)","v":"ZWO"},{"$f":"IF('1. Ordersheet'!BH786=\"\",\"\",'1. Ordersheet'!BH786)","v":""},{"$f":"IF('1. Ordersheet'!BI786=\"\",\"\",'1. Ordersheet'!BI786)","v":""},{"$f":"IF('1. Ordersheet'!BJ786=\"\",\"\",'1. Ordersheet'!BJ786)","v":""},{"$f":"IF('1. Ordersheet'!BK786=\"\",\"\",'1. Ordersheet'!BK786)","v":""},{"$f":"IF('1. Ordersheet'!BL786=\"\",\"\",'1. Ordersheet'!BL786)","v":""}]
[{"$f":"IF('1. Ordersheet'!F787=\"\",\"\",'1. Ordersheet'!F787)","v":""},{"$f":"IF('1. Ordersheet'!G787=\"\",\"\",'1. Ordersheet'!G787)","v":""},{"$f":"IF('1. Ordersheet'!H787=\"\",\"\",'1. Ordersheet'!H787)","v":""},{"$f":"IF('1. Ordersheet'!I787=\"\",\"\",'1. Ordersheet'!I787)","v":""},{"$f":"IF('1. Ordersheet'!J787=\"\",\"\",'1. Ordersheet'!J787)","v":""},{"$f":"IF('1. Ordersheet'!K787=\"\",\"\",'1. Ordersheet'!K787)","v":""},{"$f":"IF('1. Ordersheet'!L787=\"\",\"\",'1. Ordersheet'!L787)","v":""},{"$f":"IF('1. Ordersheet'!M787=\"\",\"\",'1. Ordersheet'!M787)","v":""},{"$f":"IF('1. Ordersheet'!N787=\"\",\"\",'1. Ordersheet'!N787)","v":""},{"$f":"IF('1. Ordersheet'!O787=\"\",\"\",'1. Ordersheet'!O787)","v":{"$error":"#N/A"}},{"$f":"IF('1. Ordersheet'!P787=\"\",\"\",'1. Ordersheet'!P787)","v":{"$error":"#N/A"}},{"$f":"IF('1. Ordersheet'!Q787=\"\",\"\",'1. Ordersheet'!Q787)","v":""},{"$f":"IF('1. Ordersheet'!R787=\"\",\"\",'1. Ordersheet'!R787)","v":""},{"$f":"IF('1. Ordersheet'!S787=\"\",\"\",'1. Ordersheet'!S787)","v":""},{"$f":"IF('1. Ordersheet'!V787=\"\",\"\",'1. Ordersheet'!V787)","v":""},{"$f":"IF('1. Ordersheet'!W787=\"\",\"\",'1. Ordersheet'!W787)","v":""},{"$f":"IF('1. Ordersheet'!X787=\"\",\"\",'1. Ordersheet'!X787)","v":""},{"$f":"IF('1. Ordersheet'!Y787=\"\",\"\",'1. Ordersheet'!Y787)","v":""},{"$f":"IF('1. Ordersheet'!Z787=\"\",\"\",'1. Ordersheet'!Z787)","v":""},{"$f":"IF('1. Ordersheet'!AA787=\"\",\"\",'1. Ordersheet'!AA787)","v":""},null,{"$f":"IF('1. Ordersheet'!AS787=\"\",\"\",'1. Ordersheet'!AS787)","v":""},{"$f":"IF('1. Ordersheet'!AT787=\"\",\"\",'1. Ordersheet'!AT787)","v":""},null,null,null,null,null,null,null,{"$f":"IF('1. Ordersheet'!AX787=\"\",\"\",'1. Ordersheet'!AX787)","v":""},{"$f":"IF('1. Ordersheet'!AY787=\"\",\"\",'1. Ordersheet'!AY787)","v":""},{"$f":"IF('1. Ordersheet'!AZ787=\"\",\"\",'1. Ordersheet'!AZ787)","v":""},{"$f":"IF('1. Ordersheet'!BA787=\"\",\"\",'1. Ordersheet'!BA787)","v":""},{"$f":"IF('1. Ordersheet'!BC787=\"\",\"\",'1. Ordersheet'!BC787)","v":""},{"$f":"IF('1. Ordersheet'!BD787=\"\",\"\",'1. Ordersheet'!BD787)","v":""},{"$f":"IF('1. Ordersheet'!BE787=\"\",\"\",'1. Ordersheet'!BE787)","v":""},{"$f":"IF('1. Ordersheet'!BF787=\"\",\"\",'1. Ordersheet'!BF787)","v":""},{"$f":"IF('1. Ordersheet'!BG787=\"\",\"\",'1. Ordersheet'!BG787)","v":"ZWO"},{"$f":"IF('1. Ordersheet'!BH787=\"\",\"\",'1. Ordersheet'!BH787)","v":""},{"$f":"IF('1. Ordersheet'!BI787=\"\",\"\",'1. Ordersheet'!BI787)","v":""},{"$f":"IF('1. Ordersheet'!BJ787=\"\",\"\",'1. Ordersheet'!BJ787)","v":""},{"$f":"IF('1. Ordersheet'!BK787=\"\",\"\",'1. Ordersheet'!BK787)","v":""},{"$f":"IF('1. Ordersheet'!BL787=\"\",\"\",'1. Ordersheet'!BL787)","v":""}]
[{"$f":"IF('1. Ordersheet'!F788=\"\",\"\",'1. Ordersheet'!F788)","v":""},{"$f":"IF('1. Ordersheet'!G788=\"\",\"\",'1. Ordersheet'!G788)","v":""},{"$f":"IF('1. Ordersheet'!H788=\"\",\"\",'1. Ordersheet'!H788)","v":""},{"$f":"IF('1. Ordersheet'!I788=\"\",\"\",'1. Ordersheet'!I788)","v":""},{"$f":"IF('1. Ordersheet'!J788=\"\",\"\",'1. Ordersheet'!J788)","v":""},{"$f":"IF('1. Ordersheet'!K788=\"\",\"\",'1. Ordersheet'!K788)","v":""},{"$f":"IF('1. Ordersheet'!L788=\"\",\"\",'1. Ordersheet'!L788)","v":""},{"$f":"IF('1. Ordersheet'!M788=\"\",\"\",'1. Ordersheet'!M788)","v":""},{"$f":"IF('1. Ordersheet'!N788=\"\",\"\",'1. Ordersheet'!N788)","v":""},{"$f":"IF('1. Ordersheet'!O788=\"\",\"\",'1. Ordersheet'!O788)","v":{"$error":"#N/A"}},{"$f":"IF('1. Ordersheet'!P788=\"\",\"\",'1. Ordersheet'!P788)","v":{"$error":"#N/A"}},{"$f":"IF('1. Ordersheet'!Q788=\"\",\"\",'1. Ordersheet'!Q788)","v":""},{"$f":"IF('1. Ordersheet'!R788=\"\",\"\",'1. Ordersheet'!R788)","v":""},{"$f":"IF('1. Ordersheet'!S788=\"\",\"\",'1. Ordersheet'!S788)","v":""},{"$f":"IF('1. Ordersheet'!V788=\"\",\"\",'1. Ordersheet'!V788)","v":""},{"$f":"IF('1. Ordersheet'!W788=\"\",\"\",'1. Ordersheet'!W788)","v":""},{"$f":"IF('1. Ordersheet'!X788=\"\",\"\",'1. Ordersheet'!X788)","v":""},{"$f":"IF('1. Ordersheet'!Y788=\"\",\"\",'1. Ordersheet'!Y788)","v":""},{"$f":"IF('1. Ordersheet'!Z788=\"\",\"\",'1. Ordersheet'!Z788)","v":""},{"$f":"IF('1. Ordersheet'!AA788=\"\",\"\",'1. Ordersheet'!AA788)","v":""},null,{"$f":"IF('1. Ordersheet'!AS788=\"\",\"\",'1. Ordersheet'!AS788)","v":""},{"$f":"IF('1. Ordersheet'!AT788=\"\",\"\",'1. Ordersheet'!AT788)","v":""},null,null,null,null,null,null,null,{"$f":"IF('1. Ordersheet'!AX788=\"\",\"\",'1. Ordersheet'!AX788)","v":""},{"$f":"IF('1. Ordersheet'!AY788=\"\",\"\",'1. Ordersheet'!AY788)","v":""},{"$f":"IF('1. Ordersheet'!AZ788=\"\",\"\",'1. Ordersheet'!AZ788)","v":""},{"$f":"IF('1. Ordersheet'!BA788=\"\",\"\",'1. Ordersheet'!BA788)","v":""},{"$f":"IF('1. Ordersheet'!BC788=\"\",\"\",'1. Ordersheet'!BC788)","v":""},{"$f":"IF('1. Ordersheet'!BD788=\"\",\"\",'1. Ordersheet'!BD788)","v":""},{"$f":"IF('1. Ordersheet'!BE788=\"\",\"\",'1. Ordersheet'!BE788)","v":""},{"$f":"IF('1. Ordersheet'!BF788=\"\",\"\",'1. Ordersheet'!BF788)","v":""},{"$f":"IF('1. Ordersheet'!BG788=\"\",\"\",'1. Ordersheet'!BG788)","v":"ZWO"},{"$f":"IF('1. Ordersheet'!BH788=\"\",\"\",'1. Ordersheet'!BH788)","v":""},{"$f":"IF('1. Ordersheet'!BI788=\"\",\"\",'1. Ordersheet'!BI788)","v":""},{"$f":"IF('1. Ordersheet'!BJ788=\"\",\"\",'1. Ordersheet'!BJ788)","v":""},{"$f":"IF('1. Ordersheet'!BK788=\"\",\"\",'1. Ordersheet'!BK788)","v":""},{"$f":"IF('1. Ordersheet'!BL788=\"\",\"\",'1. Ordersheet'!BL788)","v":""}]
[{"$f":"IF('1. Ordersheet'!F789=\"\",\"\",'1. Ordersheet'!F789)","v":""},{"$f":"IF('1. Ordersheet'!G789=\"\",\"\",'1. Ordersheet'!G789)","v":""},{"$f":"IF('1. Ordersheet'!H789=\"\",\"\",'1. Ordersheet'!H789)","v":""},{"$f":"IF('1. Ordersheet'!I789=\"\",\"\",'1. Ordersheet'!I789)","v":""},{"$f":"IF('1. Ordersheet'!J789=\"\",\"\",'1. Ordersheet'!J789)","v":""},{"$f":"IF('1. Ordersheet'!K789=\"\",\"\",'1. Ordersheet'!K789)","v":""},{"$f":"IF('1. Ordersheet'!L789=\"\",\"\",'1. Ordersheet'!L789)","v":""},{"$f":"IF('1. Ordersheet'!M789=\"\",\"\",'1. Ordersheet'!M789)","v":""},{"$f":"IF('1. Ordersheet'!N789=\"\",\"\",'1. Ordersheet'!N789)","v":""},{"$f":"IF('1. Ordersheet'!O789=\"\",\"\",'1. Ordersheet'!O789)","v":{"$error":"#N/A"}},{"$f":"IF('1. Ordersheet'!P789=\"\",\"\",'1. Ordersheet'!P789)","v":{"$error":"#N/A"}},{"$f":"IF('1. Ordersheet'!Q789=\"\",\"\",'1. Ordersheet'!Q789)","v":""},{"$f":"IF('1. Ordersheet'!R789=\"\",\"\",'1. Ordersheet'!R789)","v":""},{"$f":"IF('1. Ordersheet'!S789=\"\",\"\",'1. Ordersheet'!S789)","v":""},{"$f":"IF('1. Ordersheet'!V789=\"\",\"\",'1. Ordersheet'!V789)","v":""},{"$f":"IF('1. Ordersheet'!W789=\"\",\"\",'1. Ordersheet'!W789)","v":""},{"$f":"IF('1. Ordersheet'!X789=\"\",\"\",'1. Ordersheet'!X789)","v":""},{"$f":"IF('1. Ordersheet'!Y789=\"\",\"\",'1. Ordersheet'!Y789)","v":""},{"$f":"IF('1. Ordersheet'!Z789=\"\",\"\",'1. Ordersheet'!Z789)","v":""},{"$f":"IF('1. Ordersheet'!AA789=\"\",\"\",'1. Ordersheet'!AA789)","v":""},null,{"$f":"IF('1. Ordersheet'!AS789=\"\",\"\",'1. Ordersheet'!AS789)","v":""},{"$f":"IF('1. Ordersheet'!AT789=\"\",\"\",'1. Ordersheet'!AT789)","v":""},null,null,null,null,null,null,null,{"$f":"IF('1. Ordersheet'!AX789=\"\",\"\",'1. Ordersheet'!AX789)","v":""},{"$f":"IF('1. Ordersheet'!AY789=\"\",\"\",'1. Ordersheet'!AY789)","v":""},{"$f":"IF('1. Ordersheet'!AZ789=\"\",\"\",'1. Ordersheet'!AZ789)","v":""},{"$f":"IF('1. Ordersheet'!BA789=\"\",\"\",'1. Ordersheet'!BA789)","v":""},{"$f":"IF('1. Ordersheet'!BC789=\"\",\"\",'1. Ordersheet'!BC789)","v":""},{"$f":"IF('1. Ordersheet'!BD789=\"\",\"\",'1. Ordersheet'!BD789)","v":""},{"$f":"IF('1. Ordersheet'!BE789=\"\",\"\",'1. Ordersheet'!BE789)","v":""},{"$f":"IF('1. Ordersheet'!BF789=\"\",\"\",'1. Ordersheet'!BF789)","v":""},{"$f":"IF('1. Ordersheet'!BG789=\"\",\"\",'1. Ordersheet'!BG789)","v":"ZWO"},{"$f":"IF('1. Ordersheet'!BH789=\"\",\"\",'1. Ordersheet'!BH789)","v":""},{"$f":"IF('1. Ordersheet'!BI789=\"\",\"\",'1. Ordersheet'!BI789)","v":""},{"$f":"IF('1. Ordersheet'!BJ789=\"\",\"\",'1. Ordersheet'!BJ789)","v":""},{"$f":"IF('1. Ordersheet'!BK789=\"\",\"\",'1. Ordersheet'!BK789)","v":""},{"$f":"IF('1. Ordersheet'!BL789=\"\",\"\",'1. Ordersheet'!BL789)","v":""}]
[{"$f":"IF('1. Ordersheet'!F790=\"\",\"\",'1. Ordersheet'!F790)","v":""},{"$f":"IF('1. Ordersheet'!G790=\"\",\"\",'1. Ordersheet'!G790)","v":""},{"$f":"IF('1. Ordersheet'!H790=\"\",\"\",'1. Ordersheet'!H790)","v":""},{"$f":"IF('1. Ordersheet'!I790=\"\",\"\",'1. Ordersheet'!I790)","v":""},{"$f":"IF('1. Ordersheet'!J790=\"\",\"\",'1. Ordersheet'!J790)","v":""},{"$f":"IF('1. Ordersheet'!K790=\"\",\"\",'1. Ordersheet'!K790)","v":""},{"$f":"IF('1. Ordersheet'!L790=\"\",\"\",'1. Ordersheet'!L790)","v":""},{"$f":"IF('1. Ordersheet'!M790=\"\",\"\",'1. Ordersheet'!M790)","v":""},{"$f":"IF('1. Ordersheet'!N790=\"\",\"\",'1. Ordersheet'!N790)","v":""},{"$f":"IF('1. Ordersheet'!O790=\"\",\"\",'1. Ordersheet'!O790)","v":{"$error":"#N/A"}},{"$f":"IF('1. Ordersheet'!P790=\"\",\"\",'1. Ordersheet'!P790)","v":{"$error":"#N/A"}},{"$f":"IF('1. Ordersheet'!Q790=\"\",\"\",'1. Ordersheet'!Q790)","v":""},{"$f":"IF('1. Ordersheet'!R790=\"\",\"\",'1. Ordersheet'!R790)","v":""},{"$f":"IF('1. Ordersheet'!S790=\"\",\"\",'1. Ordersheet'!S790)","v":""},{"$f":"IF('1. Ordersheet'!V790=\"\",\"\",'1. Ordersheet'!V790)","v":""},{"$f":"IF('1. Ordersheet'!W790=\"\",\"\",'1. Ordersheet'!W790)","v":""},{"$f":"IF('1. Ordersheet'!X790=\"\",\"\",'1. Ordersheet'!X790)","v":""},{"$f":"IF('1. Ordersheet'!Y790=\"\",\"\",'1. Ordersheet'!Y790)","v":""},{"$f":"IF('1. Ordersheet'!Z790=\"\",\"\",'1. Ordersheet'!Z790)","v":""},{"$f":"IF('1. Ordersheet'!AA790=\"\",\"\",'1. Ordersheet'!AA790)","v":""},null,{"$f":"IF('1. Ordersheet'!AS790=\"\",\"\",'1. Ordersheet'!AS790)","v":""},{"$f":"IF('1. Ordersheet'!AT790=\"\",\"\",'1. Ordersheet'!AT790)","v":""},null,null,null,null,null,null,null,{"$f":"IF('1. Ordersheet'!AX790=\"\",\"\",'1. Ordersheet'!AX790)","v":""},{"$f":"IF('1. Ordersheet'!AY790=\"\",\"\",'1. Ordersheet'!AY790)","v":""},{"$f":"IF('1. Ordersheet'!AZ790=\"\",\"\",'1. Ordersheet'!AZ790)","v":""},{"$f":"IF('1. Ordersheet'!BA790=\"\",\"\",'1. Ordersheet'!BA790)","v":""},{"$f":"IF('1. Ordersheet'!BC790=\"\",\"\",'1. Ordersheet'!BC790)","v":""},{"$f":"IF('1. Ordersheet'!BD790=\"\",\"\",'1. Ordersheet'!BD790)","v":""},{"$f":"IF('1. Ordersheet'!BE790=\"\",\"\",'1. Ordersheet'!BE790)","v":""},{"$f":"IF('1. Ordersheet'!BF790=\"\",\"\",'1. Ordersheet'!BF790)","v":""},{"$f":"IF('1. Ordersheet'!BG790=\"\",\"\",'1. Ordersheet'!BG790)","v":"ZWO"},{"$f":"IF('1. Ordersheet'!BH790=\"\",\"\",'1. Ordersheet'!BH790)","v":""},{"$f":"IF('1. Ordersheet'!BI790=\"\",\"\",'1. Ordersheet'!BI790)","v":""},{"$f":"IF('1. Ordersheet'!BJ790=\"\",\"\",'1. Ordersheet'!BJ790)","v":""},{"$f":"IF('1. Ordersheet'!BK790=\"\",\"\",'1. Ordersheet'!BK790)","v":""},{"$f":"IF('1. Ordersheet'!BL790=\"\",\"\",'1. Ordersheet'!BL790)","v":""}]
[{"$f":"IF('1. Ordersheet'!F791=\"\",\"\",'1. Ordersheet'!F791)","v":""},{"$f":"IF('1. Ordersheet'!G791=\"\",\"\",'1. Ordersheet'!G791)","v":""},{"$f":"IF('1. Ordersheet'!H791=\"\",\"\",'1. Ordersheet'!H791)","v":""},{"$f":"IF('1. Ordersheet'!I791=\"\",\"\",'1. Ordersheet'!I791)","v":""},{"$f":"IF('1. Ordersheet'!J791=\"\",\"\",'1. Ordersheet'!J791)","v":""},{"$f":"IF('1. Ordersheet'!K791=\"\",\"\",'1. Ordersheet'!K791)","v":""},{"$f":"IF('1. Ordersheet'!L791=\"\",\"\",'1. Ordersheet'!L791)","v":""},{"$f":"IF('1. Ordersheet'!M791=\"\",\"\",'1. Ordersheet'!M791)","v":""},{"$f":"IF('1. Ordersheet'!N791=\"\",\"\",'1. Ordersheet'!N791)","v":""},{"$f":"IF('1. Ordersheet'!O791=\"\",\"\",'1. Ordersheet'!O791)","v":{"$error":"#N/A"}},{"$f":"IF('1. Ordersheet'!P791=\"\",\"\",'1. Ordersheet'!P791)","v":{"$error":"#N/A"}},{"$f":"IF('1. Ordersheet'!Q791=\"\",\"\",'1. Ordersheet'!Q791)","v":""},{"$f":"IF('1. Ordersheet'!R791=\"\",\"\",'1. Ordersheet'!R791)","v":""},{"$f":"IF('1. Ordersheet'!S791=\"\",\"\",'1. Ordersheet'!S791)","v":""},{"$f":"IF('1. Ordersheet'!V791=\"\",\"\",'1. Ordersheet'!V791)","v":""},{"$f":"IF('1. Ordersheet'!W791=\"\",\"\",'1. Ordersheet'!W791)","v":""},{"$f":"IF('1. Ordersheet'!X791=\"\",\"\",'1. Ordersheet'!X791)","v":""},{"$f":"IF('1. Ordersheet'!Y791=\"\",\"\",'1. Ordersheet'!Y791)","v":""},{"$f":"IF('1. Ordersheet'!Z791=\"\",\"\",'1. Ordersheet'!Z791)","v":""},{"$f":"IF('1. Ordersheet'!AA791=\"\",\"\",'1. Ordersheet'!AA791)","v":""},null,{"$f":"IF('1. Ordersheet'!AS791=\"\",\"\",'1. Ordersheet'!AS791)","v":""},{"$f":"IF('1. Ordersheet'!AT791=\"\",\"\",'1. Ordersheet'!AT791)","v":""},null,null,null,null,null,null,null,{"$f":"IF('1. Ordersheet'!AX791=\"\",\"\",'1. Ordersheet'!AX791)","v":""},{"$f":"IF('1. Ordersheet'!AY791=\"\",\"\",'1. Ordersheet'!AY791)","v":""},{"$f":"IF('1. Ordersheet'!AZ791=\"\",\"\",'1. Ordersheet'!AZ791)","v":""},{"$f":"IF('1. Ordersheet'!BA791=\"\",\"\",'1. Ordersheet'!BA791)","v":""},{"$f":"IF('1. Ordersheet'!BC791=\"\",\"\",'1. Ordersheet'!BC791)","v":""},{"$f":"IF('1. Ordersheet'!BD791=\"\",\"\",'1. Ordersheet'!BD791)","v":""},{"$f":"IF('1. Ordersheet'!BE791=\"\",\"\",'1. Ordersheet'!BE791)","v":""},{"$f":"IF('1. Ordersheet'!BF791=\"\",\"\",'1. Ordersheet'!BF791)","v":""},{"$f":"IF('1. Ordersheet'!BG791=\"\",\"\",'1. Ordersheet'!BG791)","v":"ZWO"},{"$f":"IF('1. Ordersheet'!BH791=\"\",\"\",'1. Ordersheet'!BH791)","v":""},{"$f":"IF('1. Ordersheet'!BI791=\"\",\"\",'1. Ordersheet'!BI791)","v":""},{"$f":"IF('1. Ordersheet'!BJ791=\"\",\"\",'1. Ordersheet'!BJ791)","v":""},{"$f":"IF('1. Ordersheet'!BK791=\"\",\"\",'1. Ordersheet'!BK791)","v":""},{"$f":"IF('1. Ordersheet'!BL791=\"\",\"\",'1. Ordersheet'!BL791)","v":""}]
[{"$f":"IF('1. Ordersheet'!F792=\"\",\"\",'1. Ordersheet'!F792)","v":""},{"$f":"IF('1. Ordersheet'!G792=\"\",\"\",'1. Ordersheet'!G792)","v":""},{"$f":"IF('1. Ordersheet'!H792=\"\",\"\",'1. Ordersheet'!H792)","v":""},{"$f":"IF('1. Ordersheet'!I792=\"\",\"\",'1. Ordersheet'!I792)","v":""},{"$f":"IF('1. Ordersheet'!J792=\"\",\"\",'1. Ordersheet'!J792)","v":""},{"$f":"IF('1. Ordersheet'!K792=\"\",\"\",'1. Ordersheet'!K792)","v":""},{"$f":"IF('1. Ordersheet'!L792=\"\",\"\",'1. Ordersheet'!L792)","v":""},{"$f":"IF('1. Ordersheet'!M792=\"\",\"\",'1. Ordersheet'!M792)","v":""},{"$f":"IF('1. Ordersheet'!N792=\"\",\"\",'1. Ordersheet'!N792)","v":""},{"$f":"IF('1. Ordersheet'!O792=\"\",\"\",'1. Ordersheet'!O792)","v":{"$error":"#N/A"}},{"$f":"IF('1. Ordersheet'!P792=\"\",\"\",'1. Ordersheet'!P792)","v":{"$error":"#N/A"}},{"$f":"IF('1. Ordersheet'!Q792=\"\",\"\",'1. Ordersheet'!Q792)","v":""},{"$f":"IF('1. Ordersheet'!R792=\"\",\"\",'1. Ordersheet'!R792)","v":""},{"$f":"IF('1. Ordersheet'!S792=\"\",\"\",'1. Ordersheet'!S792)","v":""},{"$f":"IF('1. Ordersheet'!V792=\"\",\"\",'1. Ordersheet'!V792)","v":""},{"$f":"IF('1. Ordersheet'!W792=\"\",\"\",'1. Ordersheet'!W792)","v":""},{"$f":"IF('1. Ordersheet'!X792=\"\",\"\",'1. Ordersheet'!X792)","v":""},{"$f":"IF('1. Ordersheet'!Y792=\"\",\"\",'1. Ordersheet'!Y792)","v":""},{"$f":"IF('1. Ordersheet'!Z792=\"\",\"\",'1. Ordersheet'!Z792)","v":""},{"$f":"IF('1. Ordersheet'!AA792=\"\",\"\",'1. Ordersheet'!AA792)","v":""},null,{"$f":"IF('1. Ordersheet'!AS792=\"\",\"\",'1. Ordersheet'!AS792)","v":""},{"$f":"IF('1. Ordersheet'!AT792=\"\",\"\",'1. Ordersheet'!AT792)","v":""},null,null,null,null,null,null,null,{"$f":"IF('1. Ordersheet'!AX792=\"\",\"\",'1. Ordersheet'!AX792)","v":""},{"$f":"IF('1. Ordersheet'!AY792=\"\",\"\",'1. Ordersheet'!AY792)","v":""},{"$f":"IF('1. Ordersheet'!AZ792=\"\",\"\",'1. Ordersheet'!AZ792)","v":""},{"$f":"IF('1. Ordersheet'!BA792=\"\",\"\",'1. Ordersheet'!BA792)","v":""},{"$f":"IF('1. Ordersheet'!BC792=\"\",\"\",'1. Ordersheet'!BC792)","v":""},{"$f":"IF('1. Ordersheet'!BD792=\"\",\"\",'1. Ordersheet'!BD792)","v":""},{"$f":"IF('1. Ordersheet'!BE792=\"\",\"\",'1. Ordersheet'!BE792)","v":""},{"$f":"IF('1. Ordersheet'!BF792=\"\",\"\",'1. Ordersheet'!BF792)","v":""},{"$f":"IF('1. Ordersheet'!BG792=\"\",\"\",'1. Ordersheet'!BG792)","v":"ZWO"},{"$f":"IF('1. Ordersheet'!BH792=\"\",\"\",'1. Ordersheet'!BH792)","v":""},{"$f":"IF('1. Ordersheet'!BI792=\"\",\"\",'1. Ordersheet'!BI792)","v":""},{"$f":"IF('1. Ordersheet'!BJ792=\"\",\"\",'1. Ordersheet'!BJ792)","v":""},{"$f":"IF('1. Ordersheet'!BK792=\"\",\"\",'1. Ordersheet'!BK792)","v":""},{"$f":"IF('1. Ordersheet'!BL792=\"\",\"\",'1. Ordersheet'!BL792)","v":""}]
[{"$f":"IF('1. Ordersheet'!F793=\"\",\"\",'1. Ordersheet'!F793)","v":""},{"$f":"IF('1. Ordersheet'!G793=\"\",\"\",'1. Ordersheet'!G793)","v":""},{"$f":"IF('1. Ordersheet'!H793=\"\",\"\",'1. Ordersheet'!H793)","v":""},{"$f":"IF('1. Ordersheet'!I793=\"\",\"\",'1. Ordersheet'!I793)","v":""},{"$f":"IF('1. Ordersheet'!J793=\"\",\"\",'1. Ordersheet'!J793)","v":""},{"$f":"IF('1. Ordersheet'!K793=\"\",\"\",'1. Ordersheet'!K793)","v":""},{"$f":"IF('1. Ordersheet'!L793=\"\",\"\",'1. Ordersheet'!L793)","v":""},{"$f":"IF('1. Ordersheet'!M793=\"\",\"\",'1. Ordersheet'!M793)","v":""},{"$f":"IF('1. Ordersheet'!N793=\"\",\"\",'1. Ordersheet'!N793)","v":""},{"$f":"IF('1. Ordersheet'!O793=\"\",\"\",'1. Ordersheet'!O793)","v":{"$error":"#N/A"}},{"$f":"IF('1. Ordersheet'!P793=\"\",\"\",'1. Ordersheet'!P793)","v":{"$error":"#N/A"}},{"$f":"IF('1. Ordersheet'!Q793=\"\",\"\",'1. Ordersheet'!Q793)","v":""},{"$f":"IF('1. Ordersheet'!R793=\"\",\"\",'1. Ordersheet'!R793)","v":""},{"$f":"IF('1. Ordersheet'!S793=\"\",\"\",'1. Ordersheet'!S793)","v":""},{"$f":"IF('1. Ordersheet'!V793=\"\",\"\",'1. Ordersheet'!V793)","v":""},{"$f":"IF('1. Ordersheet'!W793=\"\",\"\",'1. Ordersheet'!W793)","v":""},{"$f":"IF('1. Ordersheet'!X793=\"\",\"\",'1. Ordersheet'!X793)","v":""},{"$f":"IF('1. Ordersheet'!Y793=\"\",\"\",'1. Ordersheet'!Y793)","v":""},{"$f":"IF('1. Ordersheet'!Z793=\"\",\"\",'1. Ordersheet'!Z793)","v":""},{"$f":"IF('1. Ordersheet'!AA793=\"\",\"\",'1. Ordersheet'!AA793)","v":""},null,{"$f":"IF('1. Ordersheet'!AS793=\"\",\"\",'1. Ordersheet'!AS793)","v":""},{"$f":"IF('1. Ordersheet'!AT793=\"\",\"\",'1. Ordersheet'!AT793)","v":""},null,null,null,null,null,null,null,{"$f":"IF('1. Ordersheet'!AX793=\"\",\"\",'1. Ordersheet'!AX793)","v":""},{"$f":"IF('1. Ordersheet'!AY793=\"\",\"\",'1. Ordersheet'!AY793)","v":""},{"$f":"IF('1. Ordersheet'!AZ793=\"\",\"\",'1. Ordersheet'!AZ793)","v":""},{"$f":"IF('1. Ordersheet'!BA793=\"\",\"\",'1. Ordersheet'!BA793)","v":""},{"$f":"IF('1. Ordersheet'!BC793=\"\",\"\",'1. Ordersheet'!BC793)","v":""},{"$f":"IF('1. Ordersheet'!BD793=\"\",\"\",'1. Ordersheet'!BD793)","v":""},{"$f":"IF('1. Ordersheet'!BE793=\"\",\"\",'1. Ordersheet'!BE793)","v":""},{"$f":"IF('1. Ordersheet'!BF793=\"\",\"\",'1. Ordersheet'!BF793)","v":""},{"$f":"IF('1. Ordersheet'!BG793=\"\",\"\",'1. Ordersheet'!BG793)","v":"ZWO"},{"$f":"IF('1. Ordersheet'!BH793=\"\",\"\",'1. Ordersheet'!BH793)","v":""},{"$f":"IF('1. Ordersheet'!BI793=\"\",\"\",'1. Ordersheet'!BI793)","v":""},{"$f":"IF('1. Ordersheet'!BJ793=\"\",\"\",'1. Ordersheet'!BJ793)","v":""},{"$f":"IF('1. Ordersheet'!BK793=\"\",\"\",'1. Ordersheet'!BK793)","v":""},{"$f":"IF('1. Ordersheet'!BL793=\"\",\"\",'1. Ordersheet'!BL793)","v":""}]
[{"$f":"IF('1. Ordersheet'!F794=\"\",\"\",'1. Ordersheet'!F794)","v":""},{"$f":"IF('1. Ordersheet'!G794=\"\",\"\",'1. Ordersheet'!G794)","v":""},{"$f":"IF('1. Ordersheet'!H794=\"\",\"\",'1. Ordersheet'!H794)","v":""},{"$f":"IF('1. Ordersheet'!I794=\"\",\"\",'1. Ordersheet'!I794)","v":""},{"$f":"IF('1. Ordersheet'!J794=\"\",\"\",'1. Ordersheet'!J794)","v":""},{"$f":"IF('1. Ordersheet'!K794=\"\",\"\",'1. Ordersheet'!K794)","v":""},{"$f":"IF('1. Ordersheet'!L794=\"\",\"\",'1. Ordersheet'!L794)","v":""},{"$f":"IF('1. Ordersheet'!M794=\"\",\"\",'1. Ordersheet'!M794)","v":""},{"$f":"IF('1. Ordersheet'!N794=\"\",\"\",'1. Ordersheet'!N794)","v":""},{"$f":"IF('1. Ordersheet'!O794=\"\",\"\",'1. Ordersheet'!O794)","v":{"$error":"#N/A"}},{"$f":"IF('1. Ordersheet'!P794=\"\",\"\",'1. Ordersheet'!P794)","v":{"$error":"#N/A"}},{"$f":"IF('1. Ordersheet'!Q794=\"\",\"\",'1. Ordersheet'!Q794)","v":""},{"$f":"IF('1. Ordersheet'!R794=\"\",\"\",'1. Ordersheet'!R794)","v":""},{"$f":"IF('1. Ordersheet'!S794=\"\",\"\",'1. Ordersheet'!S794)","v":""},{"$f":"IF('1. Ordersheet'!V794=\"\",\"\",'1. Ordersheet'!V794)","v":""},{"$f":"IF('1. Ordersheet'!W794=\"\",\"\",'1. Ordersheet'!W794)","v":""},{"$f":"IF('1. Ordersheet'!X794=\"\",\"\",'1. Ordersheet'!X794)","v":""},{"$f":"IF('1. Ordersheet'!Y794=\"\",\"\",'1. Ordersheet'!Y794)","v":""},{"$f":"IF('1. Ordersheet'!Z794=\"\",\"\",'1. Ordersheet'!Z794)","v":""},{"$f":"IF('1. Ordersheet'!AA794=\"\",\"\",'1. Ordersheet'!AA794)","v":""},null,{"$f":"IF('1. Ordersheet'!AS794=\"\",\"\",'1. Ordersheet'!AS794)","v":""},{"$f":"IF('1. Ordersheet'!AT794=\"\",\"\",'1. Ordersheet'!AT794)","v":""},null,null,null,null,null,null,null,{"$f":"IF('1. Ordersheet'!AX794=\"\",\"\",'1. Ordersheet'!AX794)","v":""},{"$f":"IF('1. Ordersheet'!AY794=\"\",\"\",'1. Ordersheet'!AY794)","v":""},{"$f":"IF('1. Ordersheet'!AZ794=\"\",\"\",'1. Ordersheet'!AZ794)","v":""},{"$f":"IF('1. Ordersheet'!BA794=\"\",\"\",'1. Ordersheet'!BA794)","v":""},{"$f":"IF('1. Ordersheet'!BC794=\"\",\"\",'1. Ordersheet'!BC794)","v":""},{"$f":"IF('1. Ordersheet'!BD794=\"\",\"\",'1. Ordersheet'!BD794)","v":""},{"$f":"IF('1. Ordersheet'!BE794=\"\",\"\",'1. Ordersheet'!BE794)","v":""},{"$f":"IF('1. Ordersheet'!BF794=\"\",\"\",'1. Ordersheet'!BF794)","v":""},{"$f":"IF('1. Ordersheet'!BG794=\"\",\"\",'1. Ordersheet'!BG794)","v":"ZWO"},{"$f":"IF('1. Ordersheet'!BH794=\"\",\"\",'1. Ordersheet'!BH794)","v":""},{"$f":"IF('1. Ordersheet'!BI794=\"\",\"\",'1. Ordersheet'!BI794)","v":""},{"$f":"IF('1. Ordersheet'!BJ794=\"\",\"\",'1. Ordersheet'!BJ794)","v":""},{"$f":"IF('1. Ordersheet'!BK794=\"\",\"\",'1. Ordersheet'!BK794)","v":""},{"$f":"IF('1. Ordersheet'!BL794=\"\",\"\",'1. Ordersheet'!BL794)","v":""}]
[{"$f":"IF('1. Ordersheet'!F795=\"\",\"\",'1. Ordersheet'!F795)","v":""},{"$f":"IF('1. Ordersheet'!G795=\"\",\"\",'1. Ordersheet'!G795)","v":""},{"$f":"IF('1. Ordersheet'!H795=\"\",\"\",'1. Ordersheet'!H795)","v":""},{"$f":"IF('1. Ordersheet'!I795=\"\",\"\",'1. Ordersheet'!I795)","v":""},{"$f":"IF('1. Ordersheet'!J795=\"\",\"\",'1. Ordersheet'!J795)","v":""},{"$f":"IF('1. Ordersheet'!K795=\"\",\"\",'1. Ordersheet'!K795)","v":""},{"$f":"IF('1. Ordersheet'!L795=\"\",\"\",'1. Ordersheet'!L795)","v":""},{"$f":"IF('1. Ordersheet'!M795=\"\",\"\",'1. Ordersheet'!M795)","v":""},{"$f":"IF('1. Ordersheet'!N795=\"\",\"\",'1. Ordersheet'!N795)","v":""},{"$f":"IF('1. Ordersheet'!O795=\"\",\"\",'1. Ordersheet'!O795)","v":{"$error":"#N/A"}},{"$f":"IF('1. Ordersheet'!P795=\"\",\"\",'1. Ordersheet'!P795)","v":{"$error":"#N/A"}},{"$f":"IF('1. Ordersheet'!Q795=\"\",\"\",'1. Ordersheet'!Q795)","v":""},{"$f":"IF('1. Ordersheet'!R795=\"\",\"\",'1. Ordersheet'!R795)","v":""},{"$f":"IF('1. Ordersheet'!S795=\"\",\"\",'1. Ordersheet'!S795)","v":""},{"$f":"IF('1. Ordersheet'!V795=\"\",\"\",'1. Ordersheet'!V795)","v":""},{"$f":"IF('1. Ordersheet'!W795=\"\",\"\",'1. Ordersheet'!W795)","v":""},{"$f":"IF('1. Ordersheet'!X795=\"\",\"\",'1. Ordersheet'!X795)","v":""},{"$f":"IF('1. Ordersheet'!Y795=\"\",\"\",'1. Ordersheet'!Y795)","v":""},{"$f":"IF('1. Ordersheet'!Z795=\"\",\"\",'1. Ordersheet'!Z795)","v":""},{"$f":"IF('1. Ordersheet'!AA795=\"\",\"\",'1. Ordersheet'!AA795)","v":""},null,{"$f":"IF('1. Ordersheet'!AS795=\"\",\"\",'1. Ordersheet'!AS795)","v":""},{"$f":"IF('1. Ordersheet'!AT795=\"\",\"\",'1. Ordersheet'!AT795)","v":""},null,null,null,null,null,null,null,{"$f":"IF('1. Ordersheet'!AX795=\"\",\"\",'1. Ordersheet'!AX795)","v":""},{"$f":"IF('1. Ordersheet'!AY795=\"\",\"\",'1. Ordersheet'!AY795)","v":""},{"$f":"IF('1. Ordersheet'!AZ795=\"\",\"\",'1. Ordersheet'!AZ795)","v":""},{"$f":"IF('1. Ordersheet'!BA795=\"\",\"\",'1. Ordersheet'!BA795)","v":""},{"$f":"IF('1. Ordersheet'!BC795=\"\",\"\",'1. Ordersheet'!BC795)","v":""},{"$f":"IF('1. Ordersheet'!BD795=\"\",\"\",'1. Ordersheet'!BD795)","v":""},{"$f":"IF('1. Ordersheet'!BE795=\"\",\"\",'1. Ordersheet'!BE795)","v":""},{"$f":"IF('1. Ordersheet'!BF795=\"\",\"\",'1. Ordersheet'!BF795)","v":""},{"$f":"IF('1. Ordersheet'!BG795=\"\",\"\",'1. Ordersheet'!BG795)","v":"ZWO"},{"$f":"IF('1. Ordersheet'!BH795=\"\",\"\",'1. Ordersheet'!BH795)","v":""},{"$f":"IF('1. Ordersheet'!BI795=\"\",\"\",'1. Ordersheet'!BI795)","v":""},{"$f":"IF('1. Ordersheet'!BJ795=\"\",\"\",'1. Ordersheet'!BJ795)","v":""},{"$f":"IF('1. Ordersheet'!BK795=\"\",\"\",'1. Ordersheet'!BK795)","v":""},{"$f":"IF('1. Ordersheet'!BL795=\"\",\"\",'1. Ordersheet'!BL795)","v":""}]
[{"$f":"IF('1. Ordersheet'!F796=\"\",\"\",'1. Ordersheet'!F796)","v":""},{"$f":"IF('1. Ordersheet'!G796=\"\",\"\",'1. Ordersheet'!G796)","v":""},{"$f":"IF('1. Ordersheet'!H796=\"\",\"\",'1. Ordersheet'!H796)","v":""},{"$f":"IF('1. Ordersheet'!I796=\"\",\"\",'1. Ordersheet'!I796)","v":""},{"$f":"IF('1. Ordersheet'!J796=\"\",\"\",'1. Ordersheet'!J796)","v":""},{"$f":"IF('1. Ordersheet'!K796=\"\",\"\",'1. Ordersheet'!K796)","v":""},{"$f":"IF('1. Ordersheet'!L796=\"\",\"\",'1. Ordersheet'!L796)","v":""},{"$f":"IF('1. Ordersheet'!M796=\"\",\"\",'1. Ordersheet'!M796)","v":""},{"$f":"IF('1. Ordersheet'!N796=\"\",\"\",'1. Ordersheet'!N796)","v":""},{"$f":"IF('1. Ordersheet'!O796=\"\",\"\",'1. Ordersheet'!O796)","v":{"$error":"#N/A"}},{"$f":"IF('1. Ordersheet'!P796=\"\",\"\",'1. Ordersheet'!P796)","v":{"$error":"#N/A"}},{"$f":"IF('1. Ordersheet'!Q796=\"\",\"\",'1. Ordersheet'!Q796)","v":""},{"$f":"IF('1. Ordersheet'!R796=\"\",\"\",'1. Ordersheet'!R796)","v":""},{"$f":"IF('1. Ordersheet'!S796=\"\",\"\",'1. Ordersheet'!S796)","v":""},{"$f":"IF('1. Ordersheet'!V796=\"\",\"\",'1. Ordersheet'!V796)","v":""},{"$f":"IF('1. Ordersheet'!W796=\"\",\"\",'1. Ordersheet'!W796)","v":""},{"$f":"IF('1. Ordersheet'!X796=\"\",\"\",'1. Ordersheet'!X796)","v":""},{"$f":"IF('1. Ordersheet'!Y796=\"\",\"\",'1. Ordersheet'!Y796)","v":""},{"$f":"IF('1. Ordersheet'!Z796=\"\",\"\",'1. Ordersheet'!Z796)","v":""},{"$f":"IF('1. Ordersheet'!AA796=\"\",\"\",'1. Ordersheet'!AA796)","v":""},null,{"$f":"IF('1. Ordersheet'!AS796=\"\",\"\",'1. Ordersheet'!AS796)","v":""},{"$f":"IF('1. Ordersheet'!AT796=\"\",\"\",'1. Ordersheet'!AT796)","v":""},null,null,null,null,null,null,null,{"$f":"IF('1. Ordersheet'!AX796=\"\",\"\",'1. Ordersheet'!AX796)","v":""},{"$f":"IF('1. Ordersheet'!AY796=\"\",\"\",'1. Ordersheet'!AY796)","v":""},{"$f":"IF('1. Ordersheet'!AZ796=\"\",\"\",'1. Ordersheet'!AZ796)","v":""},{"$f":"IF('1. Ordersheet'!BA796=\"\",\"\",'1. Ordersheet'!BA796)","v":""},{"$f":"IF('1. Ordersheet'!BC796=\"\",\"\",'1. Ordersheet'!BC796)","v":""},{"$f":"IF('1. Ordersheet'!BD796=\"\",\"\",'1. Ordersheet'!BD796)","v":""},{"$f":"IF('1. Ordersheet'!BE796=\"\",\"\",'1. Ordersheet'!BE796)","v":""},{"$f":"IF('1. Ordersheet'!BF796=\"\",\"\",'1. Ordersheet'!BF796)","v":""},{"$f":"IF('1. Ordersheet'!BG796=\"\",\"\",'1. Ordersheet'!BG796)","v":"ZWO"},{"$f":"IF('1. Ordersheet'!BH796=\"\",\"\",'1. Ordersheet'!BH796)","v":""},{"$f":"IF('1. Ordersheet'!BI796=\"\",\"\",'1. Ordersheet'!BI796)","v":""},{"$f":"IF('1. Ordersheet'!BJ796=\"\",\"\",'1. Ordersheet'!BJ796)","v":""},{"$f":"IF('1. Ordersheet'!BK796=\"\",\"\",'1. Ordersheet'!BK796)","v":""},{"$f":"IF('1. Ordersheet'!BL796=\"\",\"\",'1. Ordersheet'!BL796)","v":""}]
[{"$f":"IF('1. Ordersheet'!F797=\"\",\"\",'1. Ordersheet'!F797)","v":""},{"$f":"IF('1. Ordersheet'!G797=\"\",\"\",'1. Ordersheet'!G797)","v":""},{"$f":"IF('1. Ordersheet'!H797=\"\",\"\",'1. Ordersheet'!H797)","v":""},{"$f":"IF('1. Ordersheet'!I797=\"\",\"\",'1. Ordersheet'!I797)","v":""},{"$f":"IF('1. Ordersheet'!J797=\"\",\"\",'1. Ordersheet'!J797)","v":""},{"$f":"IF('1. Ordersheet'!K797=\"\",\"\",'1. Ordersheet'!K797)","v":""},{"$f":"IF('1. Ordersheet'!L797=\"\",\"\",'1. Ordersheet'!L797)","v":""},{"$f":"IF('1. Ordersheet'!M797=\"\",\"\",'1. Ordersheet'!M797)","v":""},{"$f":"IF('1. Ordersheet'!N797=\"\",\"\",'1. Ordersheet'!N797)","v":""},{"$f":"IF('1. Ordersheet'!O797=\"\",\"\",'1. Ordersheet'!O797)","v":{"$error":"#N/A"}},{"$f":"IF('1. Ordersheet'!P797=\"\",\"\",'1. Ordersheet'!P797)","v":{"$error":"#N/A"}},{"$f":"IF('1. Ordersheet'!Q797=\"\",\"\",'1. Ordersheet'!Q797)","v":""},{"$f":"IF('1. Ordersheet'!R797=\"\",\"\",'1. Ordersheet'!R797)","v":""},{"$f":"IF('1. Ordersheet'!S797=\"\",\"\",'1. Ordersheet'!S797)","v":""},{"$f":"IF('1. Ordersheet'!V797=\"\",\"\",'1. Ordersheet'!V797)","v":""},{"$f":"IF('1. Ordersheet'!W797=\"\",\"\",'1. Ordersheet'!W797)","v":""},{"$f":"IF('1. Ordersheet'!X797=\"\",\"\",'1. Ordersheet'!X797)","v":""},{"$f":"IF('1. Ordersheet'!Y797=\"\",\"\",'1. Ordersheet'!Y797)","v":""},{"$f":"IF('1. Ordersheet'!Z797=\"\",\"\",'1. Ordersheet'!Z797)","v":""},{"$f":"IF('1. Ordersheet'!AA797=\"\",\"\",'1. Ordersheet'!AA797)","v":""},null,{"$f":"IF('1. Ordersheet'!AS797=\"\",\"\",'1. Ordersheet'!AS797)","v":""},{"$f":"IF('1. Ordersheet'!AT797=\"\",\"\",'1. Ordersheet'!AT797)","v":""},null,null,null,null,null,null,null,{"$f":"IF('1. Ordersheet'!AX797=\"\",\"\",'1. Ordersheet'!AX797)","v":""},{"$f":"IF('1. Ordersheet'!AY797=\"\",\"\",'1. Ordersheet'!AY797)","v":""},{"$f":"IF('1. Ordersheet'!AZ797=\"\",\"\",'1. Ordersheet'!AZ797)","v":""},{"$f":"IF('1. Ordersheet'!BA797=\"\",\"\",'1. Ordersheet'!BA797)","v":""},{"$f":"IF('1. Ordersheet'!BC797=\"\",\"\",'1. Ordersheet'!BC797)","v":""},{"$f":"IF('1. Ordersheet'!BD797=\"\",\"\",'1. Ordersheet'!BD797)","v":""},{"$f":"IF('1. Ordersheet'!BE797=\"\",\"\",'1. Ordersheet'!BE797)","v":""},{"$f":"IF('1. Ordersheet'!BF797=\"\",\"\",'1. Ordersheet'!BF797)","v":""},{"$f":"IF('1. Ordersheet'!BG797=\"\",\"\",'1. Ordersheet'!BG797)","v":"ZWO"},{"$f":"IF('1. Ordersheet'!BH797=\"\",\"\",'1. Ordersheet'!BH797)","v":""},{"$f":"IF('1. Ordersheet'!BI797=\"\",\"\",'1. Ordersheet'!BI797)","v":""},{"$f":"IF('1. Ordersheet'!BJ797=\"\",\"\",'1. Ordersheet'!BJ797)","v":""},{"$f":"IF('1. Ordersheet'!BK797=\"\",\"\",'1. Ordersheet'!BK797)","v":""},{"$f":"IF('1. Ordersheet'!BL797=\"\",\"\",'1. Ordersheet'!BL797)","v":""}]
[{"$f":"IF('1. Ordersheet'!F798=\"\",\"\",'1. Ordersheet'!F798)","v":""},{"$f":"IF('1. Ordersheet'!G798=\"\",\"\",'1. Ordersheet'!G798)","v":""},{"$f":"IF('1. Ordersheet'!H798=\"\",\"\",'1. Ordersheet'!H798)","v":""},{"$f":"IF('1. Ordersheet'!I798=\"\",\"\",'1. Ordersheet'!I798)","v":""},{"$f":"IF('1. Ordersheet'!J798=\"\",\"\",'1. Ordersheet'!J798)","v":""},{"$f":"IF('1. Ordersheet'!K798=\"\",\"\",'1. Ordersheet'!K798)","v":""},{"$f":"IF('1. Ordersheet'!L798=\"\",\"\",'1. Ordersheet'!L798)","v":""},{"$f":"IF('1. Ordersheet'!M798=\"\",\"\",'1. Ordersheet'!M798)","v":""},{"$f":"IF('1. Ordersheet'!N798=\"\",\"\",'1. Ordersheet'!N798)","v":""},{"$f":"IF('1. Ordersheet'!O798=\"\",\"\",'1. Ordersheet'!O798)","v":{"$error":"#N/A"}},{"$f":"IF('1. Ordersheet'!P798=\"\",\"\",'1. Ordersheet'!P798)","v":{"$error":"#N/A"}},{"$f":"IF('1. Ordersheet'!Q798=\"\",\"\",'1. Ordersheet'!Q798)","v":""},{"$f":"IF('1. Ordersheet'!R798=\"\",\"\",'1. Ordersheet'!R798)","v":""},{"$f":"IF('1. Ordersheet'!S798=\"\",\"\",'1. Ordersheet'!S798)","v":""},{"$f":"IF('1. Ordersheet'!V798=\"\",\"\",'1. Ordersheet'!V798)","v":""},{"$f":"IF('1. Ordersheet'!W798=\"\",\"\",'1. Ordersheet'!W798)","v":""},{"$f":"IF('1. Ordersheet'!X798=\"\",\"\",'1. Ordersheet'!X798)","v":""},{"$f":"IF('1. Ordersheet'!Y798=\"\",\"\",'1. Ordersheet'!Y798)","v":""},{"$f":"IF('1. Ordersheet'!Z798=\"\",\"\",'1. Ordersheet'!Z798)","v":""},{"$f":"IF('1. Ordersheet'!AA798=\"\",\"\",'1. Ordersheet'!AA798)","v":""},null,{"$f":"IF('1. Ordersheet'!AS798=\"\",\"\",'1. Ordersheet'!AS798)","v":""},{"$f":"IF('1. Ordersheet'!AT798=\"\",\"\",'1. Ordersheet'!AT798)","v":""},null,null,null,null,null,null,null,{"$f":"IF('1. Ordersheet'!AX798=\"\",\"\",'1. Ordersheet'!AX798)","v":""},{"$f":"IF('1. Ordersheet'!AY798=\"\",\"\",'1. Ordersheet'!AY798)","v":""},{"$f":"IF('1. Ordersheet'!AZ798=\"\",\"\",'1. Ordersheet'!AZ798)","v":""},{"$f":"IF('1. Ordersheet'!BA798=\"\",\"\",'1. Ordersheet'!BA798)","v":""},{"$f":"IF('1. Ordersheet'!BC798=\"\",\"\",'1. Ordersheet'!BC798)","v":""},{"$f":"IF('1. Ordersheet'!BD798=\"\",\"\",'1. Ordersheet'!BD798)","v":""},{"$f":"IF('1. Ordersheet'!BE798=\"\",\"\",'1. Ordersheet'!BE798)","v":""},{"$f":"IF('1. Ordersheet'!BF798=\"\",\"\",'1. Ordersheet'!BF798)","v":""},{"$f":"IF('1. Ordersheet'!BG798=\"\",\"\",'1. Ordersheet'!BG798)","v":"ZWO"},{"$f":"IF('1. Ordersheet'!BH798=\"\",\"\",'1. Ordersheet'!BH798)","v":""},{"$f":"IF('1. Ordersheet'!BI798=\"\",\"\",'1. Ordersheet'!BI798)","v":""},{"$f":"IF('1. Ordersheet'!BJ798=\"\",\"\",'1. Ordersheet'!BJ798)","v":""},{"$f":"IF('1. Ordersheet'!BK798=\"\",\"\",'1. Ordersheet'!BK798)","v":""},{"$f":"IF('1. Ordersheet'!BL798=\"\",\"\",'1. Ordersheet'!BL798)","v":""}]
[{"$f":"IF('1. Ordersheet'!F799=\"\",\"\",'1. Ordersheet'!F799)","v":""},{"$f":"IF('1. Ordersheet'!G799=\"\",\"\",'1. Ordersheet'!G799)","v":""},{"$f":"IF('1. Ordersheet'!H799=\"\",\"\",'1. Ordersheet'!H799)","v":""},{"$f":"IF('1. Ordersheet'!I799=\"\",\"\",'1. Ordersheet'!I799)","v":""},{"$f":"IF('1. Ordersheet'!J799=\"\",\"\",'1. Ordersheet'!J799)","v":""},{"$f":"IF('1. Ordersheet'!K799=\"\",\"\",'1. Ordersheet'!K799)","v":""},{"$f":"IF('1. Ordersheet'!L799=\"\",\"\",'1. Ordersheet'!L799)","v":""},{"$f":"IF('1. Ordersheet'!M799=\"\",\"\",'1. Ordersheet'!M799)","v":""},{"$f":"IF('1. Ordersheet'!N799=\"\",\"\",'1. Ordersheet'!N799)","v":""},{"$f":"IF('1. Ordersheet'!O799=\"\",\"\",'1. Ordersheet'!O799)","v":{"$error":"#N/A"}},{"$f":"IF('1. Ordersheet'!P799=\"\",\"\",'1. Ordersheet'!P799)","v":{"$error":"#N/A"}},{"$f":"IF('1. Ordersheet'!Q799=\"\",\"\",'1. Ordersheet'!Q799)","v":""},{"$f":"IF('1. Ordersheet'!R799=\"\",\"\",'1. Ordersheet'!R799)","v":""},{"$f":"IF('1. Ordersheet'!S799=\"\",\"\",'1. Ordersheet'!S799)","v":""},{"$f":"IF('1. Ordersheet'!V799=\"\",\"\",'1. Ordersheet'!V799)","v":""},{"$f":"IF('1. Ordersheet'!W799=\"\",\"\",'1. Ordersheet'!W799)","v":""},{"$f":"IF('1. Ordersheet'!X799=\"\",\"\",'1. Ordersheet'!X799)","v":""},{"$f":"IF('1. Ordersheet'!Y799=\"\",\"\",'1. Ordersheet'!Y799)","v":""},{"$f":"IF('1. Ordersheet'!Z799=\"\",\"\",'1. Ordersheet'!Z799)","v":""},{"$f":"IF('1. Ordersheet'!AA799=\"\",\"\",'1. Ordersheet'!AA799)","v":""},null,{"$f":"IF('1. Ordersheet'!AS799=\"\",\"\",'1. Ordersheet'!AS799)","v":""},{"$f":"IF('1. Ordersheet'!AT799=\"\",\"\",'1. Ordersheet'!AT799)","v":""},null,null,null,null,null,null,null,{"$f":"IF('1. Ordersheet'!AX799=\"\",\"\",'1. Ordersheet'!AX799)","v":""},{"$f":"IF('1. Ordersheet'!AY799=\"\",\"\",'1. Ordersheet'!AY799)","v":""},{"$f":"IF('1. Ordersheet'!AZ799=\"\",\"\",'1. Ordersheet'!AZ799)","v":""},{"$f":"IF('1. Ordersheet'!BA799=\"\",\"\",'1. Ordersheet'!BA799)","v":""},{"$f":"IF('1. Ordersheet'!BC799=\"\",\"\",'1. Ordersheet'!BC799)","v":""},{"$f":"IF('1. Ordersheet'!BD799=\"\",\"\",'1. Ordersheet'!BD799)","v":""},{"$f":"IF('1. Ordersheet'!BE799=\"\",\"\",'1. Ordersheet'!BE799)","v":""},{"$f":"IF('1. Ordersheet'!BF799=\"\",\"\",'1. Ordersheet'!BF799)","v":""},{"$f":"IF('1. Ordersheet'!BG799=\"\",\"\",'1. Ordersheet'!BG799)","v":"ZWO"},{"$f":"IF('1. Ordersheet'!BH799=\"\",\"\",'1. Ordersheet'!BH799)","v":""},{"$f":"IF('1. Ordersheet'!BI799=\"\",\"\",'1. Ordersheet'!BI799)","v":""},{"$f":"IF('1. Ordersheet'!BJ799=\"\",\"\",'1. Ordersheet'!BJ799)","v":""},{"$f":"IF('1. Ordersheet'!BK799=\"\",\"\",'1. Ordersheet'!BK799)","v":""},{"$f":"IF('1. Ordersheet'!BL799=\"\",\"\",'1. Ordersheet'!BL799)","v":""}]
[{"$f":"IF('1. Ordersheet'!F800=\"\",\"\",'1. Ordersheet'!F800)","v":""},{"$f":"IF('1. Ordersheet'!G800=\"\",\"\",'1. Ordersheet'!G800)","v":""},{"$f":"IF('1. Ordersheet'!H800=\"\",\"\",'1. Ordersheet'!H800)","v":""},{"$f":"IF('1. Ordersheet'!I800=\"\",\"\",'1. Ordersheet'!I800)","v":""},{"$f":"IF('1. Ordersheet'!J800=\"\",\"\",'1. Ordersheet'!J800)","v":""},{"$f":"IF('1. Ordersheet'!K800=\"\",\"\",'1. Ordersheet'!K800)","v":""},{"$f":"IF('1. Ordersheet'!L800=\"\",\"\",'1. Ordersheet'!L800)","v":""},{"$f":"IF('1. Ordersheet'!M800=\"\",\"\",'1. Ordersheet'!M800)","v":""},{"$f":"IF('1. Ordersheet'!N800=\"\",\"\",'1. Ordersheet'!N800)","v":""},{"$f":"IF('1. Ordersheet'!O800=\"\",\"\",'1. Ordersheet'!O800)","v":{"$error":"#N/A"}},{"$f":"IF('1. Ordersheet'!P800=\"\",\"\",'1. Ordersheet'!P800)","v":{"$error":"#N/A"}},{"$f":"IF('1. Ordersheet'!Q800=\"\",\"\",'1. Ordersheet'!Q800)","v":""},{"$f":"IF('1. Ordersheet'!R800=\"\",\"\",'1. Ordersheet'!R800)","v":""},{"$f":"IF('1. Ordersheet'!S800=\"\",\"\",'1. Ordersheet'!S800)","v":""},{"$f":"IF('1. Ordersheet'!V800=\"\",\"\",'1. Ordersheet'!V800)","v":""},{"$f":"IF('1. Ordersheet'!W800=\"\",\"\",'1. Ordersheet'!W800)","v":""},{"$f":"IF('1. Ordersheet'!X800=\"\",\"\",'1. Ordersheet'!X800)","v":""},{"$f":"IF('1. Ordersheet'!Y800=\"\",\"\",'1. Ordersheet'!Y800)","v":""},{"$f":"IF('1. Ordersheet'!Z800=\"\",\"\",'1. Ordersheet'!Z800)","v":""},{"$f":"IF('1. Ordersheet'!AA800=\"\",\"\",'1. Ordersheet'!AA800)","v":""},null,{"$f":"IF('1. Ordersheet'!AS800=\"\",\"\",'1. Ordersheet'!AS800)","v":""},{"$f":"IF('1. Ordersheet'!AT800=\"\",\"\",'1. Ordersheet'!AT800)","v":""},null,null,null,null,null,null,null,{"$f":"IF('1. Ordersheet'!AX800=\"\",\"\",'1. Ordersheet'!AX800)","v":""},{"$f":"IF('1. Ordersheet'!AY800=\"\",\"\",'1. Ordersheet'!AY800)","v":""},{"$f":"IF('1. Ordersheet'!AZ800=\"\",\"\",'1. Ordersheet'!AZ800)","v":""},{"$f":"IF('1. Ordersheet'!BA800=\"\",\"\",'1. Ordersheet'!BA800)","v":""},{"$f":"IF('1. Ordersheet'!BC800=\"\",\"\",'1. Ordersheet'!BC800)","v":""},{"$f":"IF('1. Ordersheet'!BD800=\"\",\"\",'1. Ordersheet'!BD800)","v":""},{"$f":"IF('1. Ordersheet'!BE800=\"\",\"\",'1. Ordersheet'!BE800)","v":""},{"$f":"IF('1. Ordersheet'!BF800=\"\",\"\",'1. Ordersheet'!BF800)","v":""},{"$f":"IF('1. Ordersheet'!BG800=\"\",\"\",'1. Ordersheet'!BG800)","v":"ZWO"},{"$f":"IF('1. Ordersheet'!BH800=\"\",\"\",'1. Ordersheet'!BH800)","v":""},{"$f":"IF('1. Ordersheet'!BI800=\"\",\"\",'1. Ordersheet'!BI800)","v":""},{"$f":"IF('1. Ordersheet'!BJ800=\"\",\"\",'1. Ordersheet'!BJ800)","v":""},{"$f":"IF('1. Ordersheet'!BK800=\"\",\"\",'1. Ordersheet'!BK800)","v":""},{"$f":"IF('1. Ordersheet'!BL800=\"\",\"\",'1. Ordersheet'!BL800)","v":""}]
[{"$f":"IF('1. Ordersheet'!F801=\"\",\"\",'1. Ordersheet'!F801)","v":""},{"$f":"IF('1. Ordersheet'!G801=\"\",\"\",'1. Ordersheet'!G801)","v":""},{"$f":"IF('1. Ordersheet'!H801=\"\",\"\",'1. Ordersheet'!H801)","v":""},{"$f":"IF('1. Ordersheet'!I801=\"\",\"\",'1. Ordersheet'!I801)","v":""},{"$f":"IF('1. Ordersheet'!J801=\"\",\"\",'1. Ordersheet'!J801)","v":""},{"$f":"IF('1. Ordersheet'!K801=\"\",\"\",'1. Ordersheet'!K801)","v":""},{"$f":"IF('1. Ordersheet'!L801=\"\",\"\",'1. Ordersheet'!L801)","v":""},{"$f":"IF('1. Ordersheet'!M801=\"\",\"\",'1. Ordersheet'!M801)","v":""},{"$f":"IF('1. Ordersheet'!N801=\"\",\"\",'1. Ordersheet'!N801)","v":""},{"$f":"IF('1. Ordersheet'!O801=\"\",\"\",'1. Ordersheet'!O801)","v":{"$error":"#N/A"}},{"$f":"IF('1. Ordersheet'!P801=\"\",\"\",'1. Ordersheet'!P801)","v":{"$error":"#N/A"}},{"$f":"IF('1. Ordersheet'!Q801=\"\",\"\",'1. Ordersheet'!Q801)","v":""},{"$f":"IF('1. Ordersheet'!R801=\"\",\"\",'1. Ordersheet'!R801)","v":""},{"$f":"IF('1. Ordersheet'!S801=\"\",\"\",'1. Ordersheet'!S801)","v":""},{"$f":"IF('1. Ordersheet'!V801=\"\",\"\",'1. Ordersheet'!V801)","v":""},{"$f":"IF('1. Ordersheet'!W801=\"\",\"\",'1. Ordersheet'!W801)","v":""},{"$f":"IF('1. Ordersheet'!X801=\"\",\"\",'1. Ordersheet'!X801)","v":""},{"$f":"IF('1. Ordersheet'!Y801=\"\",\"\",'1. Ordersheet'!Y801)","v":""},{"$f":"IF('1. Ordersheet'!Z801=\"\",\"\",'1. Ordersheet'!Z801)","v":""},{"$f":"IF('1. Ordersheet'!AA801=\"\",\"\",'1. Ordersheet'!AA801)","v":""},null,{"$f":"IF('1. Ordersheet'!AS801=\"\",\"\",'1. Ordersheet'!AS801)","v":""},{"$f":"IF('1. Ordersheet'!AT801=\"\",\"\",'1. Ordersheet'!AT801)","v":""},null,null,null,null,null,null,null,{"$f":"IF('1. Ordersheet'!AX801=\"\",\"\",'1. Ordersheet'!AX801)","v":""},{"$f":"IF('1. Ordersheet'!AY801=\"\",\"\",'1. Ordersheet'!AY801)","v":""},{"$f":"IF('1. Ordersheet'!AZ801=\"\",\"\",'1. Ordersheet'!AZ801)","v":""},{"$f":"IF('1. Ordersheet'!BA801=\"\",\"\",'1. Ordersheet'!BA801)","v":""},{"$f":"IF('1. Ordersheet'!BC801=\"\",\"\",'1. Ordersheet'!BC801)","v":""},{"$f":"IF('1. Ordersheet'!BD801=\"\",\"\",'1. Ordersheet'!BD801)","v":""},{"$f":"IF('1. Ordersheet'!BE801=\"\",\"\",'1. Ordersheet'!BE801)","v":""},{"$f":"IF('1. Ordersheet'!BF801=\"\",\"\",'1. Ordersheet'!BF801)","v":""},{"$f":"IF('1. Ordersheet'!BG801=\"\",\"\",'1. Ordersheet'!BG801)","v":"ZWO"},{"$f":"IF('1. Ordersheet'!BH801=\"\",\"\",'1. Ordersheet'!BH801)","v":""},{"$f":"IF('1. Ordersheet'!BI801=\"\",\"\",'1. Ordersheet'!BI801)","v":""},{"$f":"IF('1. Ordersheet'!BJ801=\"\",\"\",'1. Ordersheet'!BJ801)","v":""},{"$f":"IF('1. Ordersheet'!BK801=\"\",\"\",'1. Ordersheet'!BK801)","v":""},{"$f":"IF('1. Ordersheet'!BL801=\"\",\"\",'1. Ordersheet'!BL801)","v":""}]
[{"$f":"IF('1. Ordersheet'!F802=\"\",\"\",'1. Ordersheet'!F802)","v":""},{"$f":"IF('1. Ordersheet'!G802=\"\",\"\",'1. Ordersheet'!G802)","v":""},{"$f":"IF('1. Ordersheet'!H802=\"\",\"\",'1. Ordersheet'!H802)","v":""},{"$f":"IF('1. Ordersheet'!I802=\"\",\"\",'1. Ordersheet'!I802)","v":""},{"$f":"IF('1. Ordersheet'!J802=\"\",\"\",'1. Ordersheet'!J802)","v":""},{"$f":"IF('1. Ordersheet'!K802=\"\",\"\",'1. Ordersheet'!K802)","v":""},{"$f":"IF('1. Ordersheet'!L802=\"\",\"\",'1. Ordersheet'!L802)","v":""},{"$f":"IF('1. Ordersheet'!M802=\"\",\"\",'1. Ordersheet'!M802)","v":""},{"$f":"IF('1. Ordersheet'!N802=\"\",\"\",'1. Ordersheet'!N802)","v":""},{"$f":"IF('1. Ordersheet'!O802=\"\",\"\",'1. Ordersheet'!O802)","v":{"$error":"#N/A"}},{"$f":"IF('1. Ordersheet'!P802=\"\",\"\",'1. Ordersheet'!P802)","v":{"$error":"#N/A"}},{"$f":"IF('1. Ordersheet'!Q802=\"\",\"\",'1. Ordersheet'!Q802)","v":""},{"$f":"IF('1. Ordersheet'!R802=\"\",\"\",'1. Ordersheet'!R802)","v":""},{"$f":"IF('1. Ordersheet'!S802=\"\",\"\",'1. Ordersheet'!S802)","v":""},{"$f":"IF('1. Ordersheet'!V802=\"\",\"\",'1. Ordersheet'!V802)","v":""},{"$f":"IF('1. Ordersheet'!W802=\"\",\"\",'1. Ordersheet'!W802)","v":""},{"$f":"IF('1. Ordersheet'!X802=\"\",\"\",'1. Ordersheet'!X802)","v":""},{"$f":"IF('1. Ordersheet'!Y802=\"\",\"\",'1. Ordersheet'!Y802)","v":""},{"$f":"IF('1. Ordersheet'!Z802=\"\",\"\",'1. Ordersheet'!Z802)","v":""},{"$f":"IF('1. Ordersheet'!AA802=\"\",\"\",'1. Ordersheet'!AA802)","v":""},null,{"$f":"IF('1. Ordersheet'!AS802=\"\",\"\",'1. Ordersheet'!AS802)","v":""},{"$f":"IF('1. Ordersheet'!AT802=\"\",\"\",'1. Ordersheet'!AT802)","v":""},null,null,null,null,null,null,null,{"$f":"IF('1. Ordersheet'!AX802=\"\",\"\",'1. Ordersheet'!AX802)","v":""},{"$f":"IF('1. Ordersheet'!AY802=\"\",\"\",'1. Ordersheet'!AY802)","v":""},{"$f":"IF('1. Ordersheet'!AZ802=\"\",\"\",'1. Ordersheet'!AZ802)","v":""},{"$f":"IF('1. Ordersheet'!BA802=\"\",\"\",'1. Ordersheet'!BA802)","v":""},{"$f":"IF('1. Ordersheet'!BC802=\"\",\"\",'1. Ordersheet'!BC802)","v":""},{"$f":"IF('1. Ordersheet'!BD802=\"\",\"\",'1. Ordersheet'!BD802)","v":""},{"$f":"IF('1. Ordersheet'!BE802=\"\",\"\",'1. Ordersheet'!BE802)","v":""},{"$f":"IF('1. Ordersheet'!BF802=\"\",\"\",'1. Ordersheet'!BF802)","v":""},{"$f":"IF('1. Ordersheet'!BG802=\"\",\"\",'1. Ordersheet'!BG802)","v":"ZWO"},{"$f":"IF('1. Ordersheet'!BH802=\"\",\"\",'1. Ordersheet'!BH802)","v":""},{"$f":"IF('1. Ordersheet'!BI802=\"\",\"\",'1. Ordersheet'!BI802)","v":""},{"$f":"IF('1. Ordersheet'!BJ802=\"\",\"\",'1. Ordersheet'!BJ802)","v":""},{"$f":"IF('1. Ordersheet'!BK802=\"\",\"\",'1. Ordersheet'!BK802)","v":""},{"$f":"IF('1. Ordersheet'!BL802=\"\",\"\",'1. Ordersheet'!BL802)","v":""}]
[{"$f":"IF('1. Ordersheet'!F803=\"\",\"\",'1. Ordersheet'!F803)","v":""},{"$f":"IF('1. Ordersheet'!G803=\"\",\"\",'1. Ordersheet'!G803)","v":""},{"$f":"IF('1. Ordersheet'!H803=\"\",\"\",'1. Ordersheet'!H803)","v":""},{"$f":"IF('1. Ordersheet'!I803=\"\",\"\",'1. Ordersheet'!I803)","v":""},{"$f":"IF('1. Ordersheet'!J803=\"\",\"\",'1. Ordersheet'!J803)","v":""},{"$f":"IF('1. Ordersheet'!K803=\"\",\"\",'1. Ordersheet'!K803)","v":""},{"$f":"IF('1. Ordersheet'!L803=\"\",\"\",'1. Ordersheet'!L803)","v":""},{"$f":"IF('1. Ordersheet'!M803=\"\",\"\",'1. Ordersheet'!M803)","v":""},{"$f":"IF('1. Ordersheet'!N803=\"\",\"\",'1. Ordersheet'!N803)","v":""},{"$f":"IF('1. Ordersheet'!O803=\"\",\"\",'1. Ordersheet'!O803)","v":{"$error":"#N/A"}},{"$f":"IF('1. Ordersheet'!P803=\"\",\"\",'1. Ordersheet'!P803)","v":{"$error":"#N/A"}},{"$f":"IF('1. Ordersheet'!Q803=\"\",\"\",'1. Ordersheet'!Q803)","v":""},{"$f":"IF('1. Ordersheet'!R803=\"\",\"\",'1. Ordersheet'!R803)","v":""},{"$f":"IF('1. Ordersheet'!S803=\"\",\"\",'1. Ordersheet'!S803)","v":""},{"$f":"IF('1. Ordersheet'!V803=\"\",\"\",'1. Ordersheet'!V803)","v":""},{"$f":"IF('1. Ordersheet'!W803=\"\",\"\",'1. Ordersheet'!W803)","v":""},{"$f":"IF('1. Ordersheet'!X803=\"\",\"\",'1. Ordersheet'!X803)","v":""},{"$f":"IF('1. Ordersheet'!Y803=\"\",\"\",'1. Ordersheet'!Y803)","v":""},{"$f":"IF('1. Ordersheet'!Z803=\"\",\"\",'1. Ordersheet'!Z803)","v":""},{"$f":"IF('1. Ordersheet'!AA803=\"\",\"\",'1. Ordersheet'!AA803)","v":""},null,{"$f":"IF('1. Ordersheet'!AS803=\"\",\"\",'1. Ordersheet'!AS803)","v":""},{"$f":"IF('1. Ordersheet'!AT803=\"\",\"\",'1. Ordersheet'!AT803)","v":""},null,null,null,null,null,null,null,{"$f":"IF('1. Ordersheet'!AX803=\"\",\"\",'1. Ordersheet'!AX803)","v":""},{"$f":"IF('1. Ordersheet'!AY803=\"\",\"\",'1. Ordersheet'!AY803)","v":""},{"$f":"IF('1. Ordersheet'!AZ803=\"\",\"\",'1. Ordersheet'!AZ803)","v":""},{"$f":"IF('1. Ordersheet'!BA803=\"\",\"\",'1. Ordersheet'!BA803)","v":""},{"$f":"IF('1. Ordersheet'!BC803=\"\",\"\",'1. Ordersheet'!BC803)","v":""},{"$f":"IF('1. Ordersheet'!BD803=\"\",\"\",'1. Ordersheet'!BD803)","v":""},{"$f":"IF('1. Ordersheet'!BE803=\"\",\"\",'1. Ordersheet'!BE803)","v":""},{"$f":"IF('1. Ordersheet'!BF803=\"\",\"\",'1. Ordersheet'!BF803)","v":""},{"$f":"IF('1. Ordersheet'!BG803=\"\",\"\",'1. Ordersheet'!BG803)","v":"ZWO"},{"$f":"IF('1. Ordersheet'!BH803=\"\",\"\",'1. Ordersheet'!BH803)","v":""},{"$f":"IF('1. Ordersheet'!BI803=\"\",\"\",'1. Ordersheet'!BI803)","v":""},{"$f":"IF('1. Ordersheet'!BJ803=\"\",\"\",'1. Ordersheet'!BJ803)","v":""},{"$f":"IF('1. Ordersheet'!BK803=\"\",\"\",'1. Ordersheet'!BK803)","v":""},{"$f":"IF('1. Ordersheet'!BL803=\"\",\"\",'1. Ordersheet'!BL803)","v":""}]
[{"$f":"IF('1. Ordersheet'!F804=\"\",\"\",'1. Ordersheet'!F804)","v":""},{"$f":"IF('1. Ordersheet'!G804=\"\",\"\",'1. Ordersheet'!G804)","v":""},{"$f":"IF('1. Ordersheet'!H804=\"\",\"\",'1. Ordersheet'!H804)","v":""},{"$f":"IF('1. Ordersheet'!I804=\"\",\"\",'1. Ordersheet'!I804)","v":""},{"$f":"IF('1. Ordersheet'!J804=\"\",\"\",'1. Ordersheet'!J804)","v":""},{"$f":"IF('1. Ordersheet'!K804=\"\",\"\",'1. Ordersheet'!K804)","v":""},{"$f":"IF('1. Ordersheet'!L804=\"\",\"\",'1. Ordersheet'!L804)","v":""},{"$f":"IF('1. Ordersheet'!M804=\"\",\"\",'1. Ordersheet'!M804)","v":""},{"$f":"IF('1. Ordersheet'!N804=\"\",\"\",'1. Ordersheet'!N804)","v":""},{"$f":"IF('1. Ordersheet'!O804=\"\",\"\",'1. Ordersheet'!O804)","v":{"$error":"#N/A"}},{"$f":"IF('1. Ordersheet'!P804=\"\",\"\",'1. Ordersheet'!P804)","v":{"$error":"#N/A"}},{"$f":"IF('1. Ordersheet'!Q804=\"\",\"\",'1. Ordersheet'!Q804)","v":""},{"$f":"IF('1. Ordersheet'!R804=\"\",\"\",'1. Ordersheet'!R804)","v":""},{"$f":"IF('1. Ordersheet'!S804=\"\",\"\",'1. Ordersheet'!S804)","v":""},{"$f":"IF('1. Ordersheet'!V804=\"\",\"\",'1. Ordersheet'!V804)","v":""},{"$f":"IF('1. Ordersheet'!W804=\"\",\"\",'1. Ordersheet'!W804)","v":""},{"$f":"IF('1. Ordersheet'!X804=\"\",\"\",'1. Ordersheet'!X804)","v":""},{"$f":"IF('1. Ordersheet'!Y804=\"\",\"\",'1. Ordersheet'!Y804)","v":""},{"$f":"IF('1. Ordersheet'!Z804=\"\",\"\",'1. Ordersheet'!Z804)","v":""},{"$f":"IF('1. Ordersheet'!AA804=\"\",\"\",'1. Ordersheet'!AA804)","v":""},null,{"$f":"IF('1. Ordersheet'!AS804=\"\",\"\",'1. Ordersheet'!AS804)","v":""},{"$f":"IF('1. Ordersheet'!AT804=\"\",\"\",'1. Ordersheet'!AT804)","v":""},null,null,null,null,null,null,null,{"$f":"IF('1. Ordersheet'!AX804=\"\",\"\",'1. Ordersheet'!AX804)","v":""},{"$f":"IF('1. Ordersheet'!AY804=\"\",\"\",'1. Ordersheet'!AY804)","v":""},{"$f":"IF('1. Ordersheet'!AZ804=\"\",\"\",'1. Ordersheet'!AZ804)","v":""},{"$f":"IF('1. Ordersheet'!BA804=\"\",\"\",'1. Ordersheet'!BA804)","v":""},{"$f":"IF('1. Ordersheet'!BC804=\"\",\"\",'1. Ordersheet'!BC804)","v":""},{"$f":"IF('1. Ordersheet'!BD804=\"\",\"\",'1. Ordersheet'!BD804)","v":""},{"$f":"IF('1. Ordersheet'!BE804=\"\",\"\",'1. Ordersheet'!BE804)","v":""},{"$f":"IF('1. Ordersheet'!BF804=\"\",\"\",'1. Ordersheet'!BF804)","v":""},{"$f":"IF('1. Ordersheet'!BG804=\"\",\"\",'1. Ordersheet'!BG804)","v":"ZWO"},{"$f":"IF('1. Ordersheet'!BH804=\"\",\"\",'1. Ordersheet'!BH804)","v":""},{"$f":"IF('1. Ordersheet'!BI804=\"\",\"\",'1. Ordersheet'!BI804)","v":""},{"$f":"IF('1. Ordersheet'!BJ804=\"\",\"\",'1. Ordersheet'!BJ804)","v":""},{"$f":"IF('1. Ordersheet'!BK804=\"\",\"\",'1. Ordersheet'!BK804)","v":""},{"$f":"IF('1. Ordersheet'!BL804=\"\",\"\",'1. Ordersheet'!BL804)","v":""}]
[{"$f":"IF('1. Ordersheet'!F805=\"\",\"\",'1. Ordersheet'!F805)","v":""},{"$f":"IF('1. Ordersheet'!G805=\"\",\"\",'1. Ordersheet'!G805)","v":""},{"$f":"IF('1. Ordersheet'!H805=\"\",\"\",'1. Ordersheet'!H805)","v":""},{"$f":"IF('1. Ordersheet'!I805=\"\",\"\",'1. Ordersheet'!I805)","v":""},{"$f":"IF('1. Ordersheet'!J805=\"\",\"\",'1. Ordersheet'!J805)","v":""},{"$f":"IF('1. Ordersheet'!K805=\"\",\"\",'1. Ordersheet'!K805)","v":""},{"$f":"IF('1. Ordersheet'!L805=\"\",\"\",'1. Ordersheet'!L805)","v":""},{"$f":"IF('1. Ordersheet'!M805=\"\",\"\",'1. Ordersheet'!M805)","v":""},{"$f":"IF('1. Ordersheet'!N805=\"\",\"\",'1. Ordersheet'!N805)","v":""},{"$f":"IF('1. Ordersheet'!O805=\"\",\"\",'1. Ordersheet'!O805)","v":{"$error":"#N/A"}},{"$f":"IF('1. Ordersheet'!P805=\"\",\"\",'1. Ordersheet'!P805)","v":{"$error":"#N/A"}},{"$f":"IF('1. Ordersheet'!Q805=\"\",\"\",'1. Ordersheet'!Q805)","v":""},{"$f":"IF('1. Ordersheet'!R805=\"\",\"\",'1. Ordersheet'!R805)","v":""},{"$f":"IF('1. Ordersheet'!S805=\"\",\"\",'1. Ordersheet'!S805)","v":""},{"$f":"IF('1. Ordersheet'!V805=\"\",\"\",'1. Ordersheet'!V805)","v":""},{"$f":"IF('1. Ordersheet'!W805=\"\",\"\",'1. Ordersheet'!W805)","v":""},{"$f":"IF('1. Ordersheet'!X805=\"\",\"\",'1. Ordersheet'!X805)","v":""},{"$f":"IF('1. Ordersheet'!Y805=\"\",\"\",'1. Ordersheet'!Y805)","v":""},{"$f":"IF('1. Ordersheet'!Z805=\"\",\"\",'1. Ordersheet'!Z805)","v":""},{"$f":"IF('1. Ordersheet'!AA805=\"\",\"\",'1. Ordersheet'!AA805)","v":""},null,{"$f":"IF('1. Ordersheet'!AS805=\"\",\"\",'1. Ordersheet'!AS805)","v":""},{"$f":"IF('1. Ordersheet'!AT805=\"\",\"\",'1. Ordersheet'!AT805)","v":""},null,null,null,null,null,null,null,{"$f":"IF('1. Ordersheet'!AX805=\"\",\"\",'1. Ordersheet'!AX805)","v":""},{"$f":"IF('1. Ordersheet'!AY805=\"\",\"\",'1. Ordersheet'!AY805)","v":""},{"$f":"IF('1. Ordersheet'!AZ805=\"\",\"\",'1. Ordersheet'!AZ805)","v":""},{"$f":"IF('1. Ordersheet'!BA805=\"\",\"\",'1. Ordersheet'!BA805)","v":""},{"$f":"IF('1. Ordersheet'!BC805=\"\",\"\",'1. Ordersheet'!BC805)","v":""},{"$f":"IF('1. Ordersheet'!BD805=\"\",\"\",'1. Ordersheet'!BD805)","v":""},{"$f":"IF('1. Ordersheet'!BE805=\"\",\"\",'1. Ordersheet'!BE805)","v":""},{"$f":"IF('1. Ordersheet'!BF805=\"\",\"\",'1. Ordersheet'!BF805)","v":""},{"$f":"IF('1. Ordersheet'!BG805=\"\",\"\",'1. Ordersheet'!BG805)","v":"ZWO"},{"$f":"IF('1. Ordersheet'!BH805=\"\",\"\",'1. Ordersheet'!BH805)","v":""},{"$f":"IF('1. Ordersheet'!BI805=\"\",\"\",'1. Ordersheet'!BI805)","v":""},{"$f":"IF('1. Ordersheet'!BJ805=\"\",\"\",'1. Ordersheet'!BJ805)","v":""},{"$f":"IF('1. Ordersheet'!BK805=\"\",\"\",'1. Ordersheet'!BK805)","v":""},{"$f":"IF('1. Ordersheet'!BL805=\"\",\"\",'1. Ordersheet'!BL805)","v":""}]
[{"$f":"IF('1. Ordersheet'!F806=\"\",\"\",'1. Ordersheet'!F806)","v":""},{"$f":"IF('1. Ordersheet'!G806=\"\",\"\",'1. Ordersheet'!G806)","v":""},{"$f":"IF('1. Ordersheet'!H806=\"\",\"\",'1. Ordersheet'!H806)","v":""},{"$f":"IF('1. Ordersheet'!I806=\"\",\"\",'1. Ordersheet'!I806)","v":""},{"$f":"IF('1. Ordersheet'!J806=\"\",\"\",'1. Ordersheet'!J806)","v":""},{"$f":"IF('1. Ordersheet'!K806=\"\",\"\",'1. Ordersheet'!K806)","v":""},{"$f":"IF('1. Ordersheet'!L806=\"\",\"\",'1. Ordersheet'!L806)","v":""},{"$f":"IF('1. Ordersheet'!M806=\"\",\"\",'1. Ordersheet'!M806)","v":""},{"$f":"IF('1. Ordersheet'!N806=\"\",\"\",'1. Ordersheet'!N806)","v":""},{"$f":"IF('1. Ordersheet'!O806=\"\",\"\",'1. Ordersheet'!O806)","v":{"$error":"#N/A"}},{"$f":"IF('1. Ordersheet'!P806=\"\",\"\",'1. Ordersheet'!P806)","v":{"$error":"#N/A"}},{"$f":"IF('1. Ordersheet'!Q806=\"\",\"\",'1. Ordersheet'!Q806)","v":""},{"$f":"IF('1. Ordersheet'!R806=\"\",\"\",'1. Ordersheet'!R806)","v":""},{"$f":"IF('1. Ordersheet'!S806=\"\",\"\",'1. Ordersheet'!S806)","v":""},{"$f":"IF('1. Ordersheet'!V806=\"\",\"\",'1. Ordersheet'!V806)","v":""},{"$f":"IF('1. Ordersheet'!W806=\"\",\"\",'1. Ordersheet'!W806)","v":""},{"$f":"IF('1. Ordersheet'!X806=\"\",\"\",'1. Ordersheet'!X806)","v":""},{"$f":"IF('1. Ordersheet'!Y806=\"\",\"\",'1. Ordersheet'!Y806)","v":""},{"$f":"IF('1. Ordersheet'!Z806=\"\",\"\",'1. Ordersheet'!Z806)","v":""},{"$f":"IF('1. Ordersheet'!AA806=\"\",\"\",'1. Ordersheet'!AA806)","v":""},null,{"$f":"IF('1. Ordersheet'!AS806=\"\",\"\",'1. Ordersheet'!AS806)","v":""},{"$f":"IF('1. Ordersheet'!AT806=\"\",\"\",'1. Ordersheet'!AT806)","v":""},null,null,null,null,null,null,null,{"$f":"IF('1. Ordersheet'!AX806=\"\",\"\",'1. Ordersheet'!AX806)","v":""},{"$f":"IF('1. Ordersheet'!AY806=\"\",\"\",'1. Ordersheet'!AY806)","v":""},{"$f":"IF('1. Ordersheet'!AZ806=\"\",\"\",'1. Ordersheet'!AZ806)","v":""},{"$f":"IF('1. Ordersheet'!BA806=\"\",\"\",'1. Ordersheet'!BA806)","v":""},{"$f":"IF('1. Ordersheet'!BC806=\"\",\"\",'1. Ordersheet'!BC806)","v":""},{"$f":"IF('1. Ordersheet'!BD806=\"\",\"\",'1. Ordersheet'!BD806)","v":""},{"$f":"IF('1. Ordersheet'!BE806=\"\",\"\",'1. Ordersheet'!BE806)","v":""},{"$f":"IF('1. Ordersheet'!BF806=\"\",\"\",'1. Ordersheet'!BF806)","v":""},{"$f":"IF('1. Ordersheet'!BG806=\"\",\"\",'1. Ordersheet'!BG806)","v":"ZWO"},{"$f":"IF('1. Ordersheet'!BH806=\"\",\"\",'1. Ordersheet'!BH806)","v":""},{"$f":"IF('1. Ordersheet'!BI806=\"\",\"\",'1. Ordersheet'!BI806)","v":""},{"$f":"IF('1. Ordersheet'!BJ806=\"\",\"\",'1. Ordersheet'!BJ806)","v":""},{"$f":"IF('1. Ordersheet'!BK806=\"\",\"\",'1. Ordersheet'!BK806)","v":""},{"$f":"IF('1. Ordersheet'!BL806=\"\",\"\",'1. Ordersheet'!BL806)","v":""}]
[{"$f":"IF('1. Ordersheet'!F807=\"\",\"\",'1. Ordersheet'!F807)","v":""},{"$f":"IF('1. Ordersheet'!G807=\"\",\"\",'1. Ordersheet'!G807)","v":""},{"$f":"IF('1. Ordersheet'!H807=\"\",\"\",'1. Ordersheet'!H807)","v":""},{"$f":"IF('1. Ordersheet'!I807=\"\",\"\",'1. Ordersheet'!I807)","v":""},{"$f":"IF('1. Ordersheet'!J807=\"\",\"\",'1. Ordersheet'!J807)","v":""},{"$f":"IF('1. Ordersheet'!K807=\"\",\"\",'1. Ordersheet'!K807)","v":""},{"$f":"IF('1. Ordersheet'!L807=\"\",\"\",'1. Ordersheet'!L807)","v":""},{"$f":"IF('1. Ordersheet'!M807=\"\",\"\",'1. Ordersheet'!M807)","v":""},{"$f":"IF('1. Ordersheet'!N807=\"\",\"\",'1. Ordersheet'!N807)","v":""},{"$f":"IF('1. Ordersheet'!O807=\"\",\"\",'1. Ordersheet'!O807)","v":{"$error":"#N/A"}},{"$f":"IF('1. Ordersheet'!P807=\"\",\"\",'1. Ordersheet'!P807)","v":{"$error":"#N/A"}},{"$f":"IF('1. Ordersheet'!Q807=\"\",\"\",'1. Ordersheet'!Q807)","v":""},{"$f":"IF('1. Ordersheet'!R807=\"\",\"\",'1. Ordersheet'!R807)","v":""},{"$f":"IF('1. Ordersheet'!S807=\"\",\"\",'1. Ordersheet'!S807)","v":""},{"$f":"IF('1. Ordersheet'!V807=\"\",\"\",'1. Ordersheet'!V807)","v":""},{"$f":"IF('1. Ordersheet'!W807=\"\",\"\",'1. Ordersheet'!W807)","v":""},{"$f":"IF('1. Ordersheet'!X807=\"\",\"\",'1. Ordersheet'!X807)","v":""},{"$f":"IF('1. Ordersheet'!Y807=\"\",\"\",'1. Ordersheet'!Y807)","v":""},{"$f":"IF('1. Ordersheet'!Z807=\"\",\"\",'1. Ordersheet'!Z807)","v":""},{"$f":"IF('1. Ordersheet'!AA807=\"\",\"\",'1. Ordersheet'!AA807)","v":""},null,{"$f":"IF('1. Ordersheet'!AS807=\"\",\"\",'1. Ordersheet'!AS807)","v":""},{"$f":"IF('1. Ordersheet'!AT807=\"\",\"\",'1. Ordersheet'!AT807)","v":""},null,null,null,null,null,null,null,{"$f":"IF('1. Ordersheet'!AX807=\"\",\"\",'1. Ordersheet'!AX807)","v":""},{"$f":"IF('1. Ordersheet'!AY807=\"\",\"\",'1. Ordersheet'!AY807)","v":""},{"$f":"IF('1. Ordersheet'!AZ807=\"\",\"\",'1. Ordersheet'!AZ807)","v":""},{"$f":"IF('1. Ordersheet'!BA807=\"\",\"\",'1. Ordersheet'!BA807)","v":""},{"$f":"IF('1. Ordersheet'!BC807=\"\",\"\",'1. Ordersheet'!BC807)","v":""},{"$f":"IF('1. Ordersheet'!BD807=\"\",\"\",'1. Ordersheet'!BD807)","v":""},{"$f":"IF('1. Ordersheet'!BE807=\"\",\"\",'1. Ordersheet'!BE807)","v":""},{"$f":"IF('1. Ordersheet'!BF807=\"\",\"\",'1. Ordersheet'!BF807)","v":""},{"$f":"IF('1. Ordersheet'!BG807=\"\",\"\",'1. Ordersheet'!BG807)","v":"ZWO"},{"$f":"IF('1. Ordersheet'!BH807=\"\",\"\",'1. Ordersheet'!BH807)","v":""},{"$f":"IF('1. Ordersheet'!BI807=\"\",\"\",'1. Ordersheet'!BI807)","v":""},{"$f":"IF('1. Ordersheet'!BJ807=\"\",\"\",'1. Ordersheet'!BJ807)","v":""},{"$f":"IF('1. Ordersheet'!BK807=\"\",\"\",'1. Ordersheet'!BK807)","v":""},{"$f":"IF('1. Ordersheet'!BL807=\"\",\"\",'1. Ordersheet'!BL807)","v":""}]
[{"$f":"IF('1. Ordersheet'!F808=\"\",\"\",'1. Ordersheet'!F808)","v":""},{"$f":"IF('1. Ordersheet'!G808=\"\",\"\",'1. Ordersheet'!G808)","v":""},{"$f":"IF('1. Ordersheet'!H808=\"\",\"\",'1. Ordersheet'!H808)","v":""},{"$f":"IF('1. Ordersheet'!I808=\"\",\"\",'1. Ordersheet'!I808)","v":""},{"$f":"IF('1. Ordersheet'!J808=\"\",\"\",'1. Ordersheet'!J808)","v":""},{"$f":"IF('1. Ordersheet'!K808=\"\",\"\",'1. Ordersheet'!K808)","v":""},{"$f":"IF('1. Ordersheet'!L808=\"\",\"\",'1. Ordersheet'!L808)","v":""},{"$f":"IF('1. Ordersheet'!M808=\"\",\"\",'1. Ordersheet'!M808)","v":""},{"$f":"IF('1. Ordersheet'!N808=\"\",\"\",'1. Ordersheet'!N808)","v":""},{"$f":"IF('1. Ordersheet'!O808=\"\",\"\",'1. Ordersheet'!O808)","v":{"$error":"#N/A"}},{"$f":"IF('1. Ordersheet'!P808=\"\",\"\",'1. Ordersheet'!P808)","v":{"$error":"#N/A"}},{"$f":"IF('1. Ordersheet'!Q808=\"\",\"\",'1. Ordersheet'!Q808)","v":""},{"$f":"IF('1. Ordersheet'!R808=\"\",\"\",'1. Ordersheet'!R808)","v":""},{"$f":"IF('1. Ordersheet'!S808=\"\",\"\",'1. Ordersheet'!S808)","v":""},{"$f":"IF('1. Ordersheet'!V808=\"\",\"\",'1. Ordersheet'!V808)","v":""},{"$f":"IF('1. Ordersheet'!W808=\"\",\"\",'1. Ordersheet'!W808)","v":""},{"$f":"IF('1. Ordersheet'!X808=\"\",\"\",'1. Ordersheet'!X808)","v":""},{"$f":"IF('1. Ordersheet'!Y808=\"\",\"\",'1. Ordersheet'!Y808)","v":""},{"$f":"IF('1. Ordersheet'!Z808=\"\",\"\",'1. Ordersheet'!Z808)","v":""},{"$f":"IF('1. Ordersheet'!AA808=\"\",\"\",'1. Ordersheet'!AA808)","v":""},null,{"$f":"IF('1. Ordersheet'!AS808=\"\",\"\",'1. Ordersheet'!AS808)","v":""},{"$f":"IF('1. Ordersheet'!AT808=\"\",\"\",'1. Ordersheet'!AT808)","v":""},null,null,null,null,null,null,null,{"$f":"IF('1. Ordersheet'!AX808=\"\",\"\",'1. Ordersheet'!AX808)","v":""},{"$f":"IF('1. Ordersheet'!AY808=\"\",\"\",'1. Ordersheet'!AY808)","v":""},{"$f":"IF('1. Ordersheet'!AZ808=\"\",\"\",'1. Ordersheet'!AZ808)","v":""},{"$f":"IF('1. Ordersheet'!BA808=\"\",\"\",'1. Ordersheet'!BA808)","v":""},{"$f":"IF('1. Ordersheet'!BC808=\"\",\"\",'1. Ordersheet'!BC808)","v":""},{"$f":"IF('1. Ordersheet'!BD808=\"\",\"\",'1. Ordersheet'!BD808)","v":""},{"$f":"IF('1. Ordersheet'!BE808=\"\",\"\",'1. Ordersheet'!BE808)","v":""},{"$f":"IF('1. Ordersheet'!BF808=\"\",\"\",'1. Ordersheet'!BF808)","v":""},{"$f":"IF('1. Ordersheet'!BG808=\"\",\"\",'1. Ordersheet'!BG808)","v":"ZWO"},{"$f":"IF('1. Ordersheet'!BH808=\"\",\"\",'1. Ordersheet'!BH808)","v":""},{"$f":"IF('1. Ordersheet'!BI808=\"\",\"\",'1. Ordersheet'!BI808)","v":""},{"$f":"IF('1. Ordersheet'!BJ808=\"\",\"\",'1. Ordersheet'!BJ808)","v":""},{"$f":"IF('1. Ordersheet'!BK808=\"\",\"\",'1. Ordersheet'!BK808)","v":""},{"$f":"IF('1. Ordersheet'!BL808=\"\",\"\",'1. Ordersheet'!BL808)","v":""}]
[{"$f":"IF('1. Ordersheet'!F809=\"\",\"\",'1. Ordersheet'!F809)","v":""},{"$f":"IF('1. Ordersheet'!G809=\"\",\"\",'1. Ordersheet'!G809)","v":""},{"$f":"IF('1. Ordersheet'!H809=\"\",\"\",'1. Ordersheet'!H809)","v":""},{"$f":"IF('1. Ordersheet'!I809=\"\",\"\",'1. Ordersheet'!I809)","v":""},{"$f":"IF('1. Ordersheet'!J809=\"\",\"\",'1. Ordersheet'!J809)","v":""},{"$f":"IF('1. Ordersheet'!K809=\"\",\"\",'1. Ordersheet'!K809)","v":""},{"$f":"IF('1. Ordersheet'!L809=\"\",\"\",'1. Ordersheet'!L809)","v":""},{"$f":"IF('1. Ordersheet'!M809=\"\",\"\",'1. Ordersheet'!M809)","v":""},{"$f":"IF('1. Ordersheet'!N809=\"\",\"\",'1. Ordersheet'!N809)","v":""},{"$f":"IF('1. Ordersheet'!O809=\"\",\"\",'1. Ordersheet'!O809)","v":{"$error":"#N/A"}},{"$f":"IF('1. Ordersheet'!P809=\"\",\"\",'1. Ordersheet'!P809)","v":{"$error":"#N/A"}},{"$f":"IF('1. Ordersheet'!Q809=\"\",\"\",'1. Ordersheet'!Q809)","v":""},{"$f":"IF('1. Ordersheet'!R809=\"\",\"\",'1. Ordersheet'!R809)","v":""},{"$f":"IF('1. Ordersheet'!S809=\"\",\"\",'1. Ordersheet'!S809)","v":""},{"$f":"IF('1. Ordersheet'!V809=\"\",\"\",'1. Ordersheet'!V809)","v":""},{"$f":"IF('1. Ordersheet'!W809=\"\",\"\",'1. Ordersheet'!W809)","v":""},{"$f":"IF('1. Ordersheet'!X809=\"\",\"\",'1. Ordersheet'!X809)","v":""},{"$f":"IF('1. Ordersheet'!Y809=\"\",\"\",'1. Ordersheet'!Y809)","v":""},{"$f":"IF('1. Ordersheet'!Z809=\"\",\"\",'1. Ordersheet'!Z809)","v":""},{"$f":"IF('1. Ordersheet'!AA809=\"\",\"\",'1. Ordersheet'!AA809)","v":""},null,{"$f":"IF('1. Ordersheet'!AS809=\"\",\"\",'1. Ordersheet'!AS809)","v":""},{"$f":"IF('1. Ordersheet'!AT809=\"\",\"\",'1. Ordersheet'!AT809)","v":""},null,null,null,null,null,null,null,{"$f":"IF('1. Ordersheet'!AX809=\"\",\"\",'1. Ordersheet'!AX809)","v":""},{"$f":"IF('1. Ordersheet'!AY809=\"\",\"\",'1. Ordersheet'!AY809)","v":""},{"$f":"IF('1. Ordersheet'!AZ809=\"\",\"\",'1. Ordersheet'!AZ809)","v":""},{"$f":"IF('1. Ordersheet'!BA809=\"\",\"\",'1. Ordersheet'!BA809)","v":""},{"$f":"IF('1. Ordersheet'!BC809=\"\",\"\",'1. Ordersheet'!BC809)","v":""},{"$f":"IF('1. Ordersheet'!BD809=\"\",\"\",'1. Ordersheet'!BD809)","v":""},{"$f":"IF('1. Ordersheet'!BE809=\"\",\"\",'1. Ordersheet'!BE809)","v":""},{"$f":"IF('1. Ordersheet'!BF809=\"\",\"\",'1. Ordersheet'!BF809)","v":""},{"$f":"IF('1. Ordersheet'!BG809=\"\",\"\",'1. Ordersheet'!BG809)","v":"ZWO"},{"$f":"IF('1. Ordersheet'!BH809=\"\",\"\",'1. Ordersheet'!BH809)","v":""},{"$f":"IF('1. Ordersheet'!BI809=\"\",\"\",'1. Ordersheet'!BI809)","v":""},{"$f":"IF('1. Ordersheet'!BJ809=\"\",\"\",'1. Ordersheet'!BJ809)","v":""},{"$f":"IF('1. Ordersheet'!BK809=\"\",\"\",'1. Ordersheet'!BK809)","v":""},{"$f":"IF('1. Ordersheet'!BL809=\"\",\"\",'1. Ordersheet'!BL809)","v":""}]
[{"$f":"IF('1. Ordersheet'!F810=\"\",\"\",'1. Ordersheet'!F810)","v":""},{"$f":"IF('1. Ordersheet'!G810=\"\",\"\",'1. Ordersheet'!G810)","v":""},{"$f":"IF('1. Ordersheet'!H810=\"\",\"\",'1. Ordersheet'!H810)","v":""},{"$f":"IF('1. Ordersheet'!I810=\"\",\"\",'1. Ordersheet'!I810)","v":""},{"$f":"IF('1. Ordersheet'!J810=\"\",\"\",'1. Ordersheet'!J810)","v":""},{"$f":"IF('1. Ordersheet'!K810=\"\",\"\",'1. Ordersheet'!K810)","v":""},{"$f":"IF('1. Ordersheet'!L810=\"\",\"\",'1. Ordersheet'!L810)","v":""},{"$f":"IF('1. Ordersheet'!M810=\"\",\"\",'1. Ordersheet'!M810)","v":""},{"$f":"IF('1. Ordersheet'!N810=\"\",\"\",'1. Ordersheet'!N810)","v":""},{"$f":"IF('1. Ordersheet'!O810=\"\",\"\",'1. Ordersheet'!O810)","v":{"$error":"#N/A"}},{"$f":"IF('1. Ordersheet'!P810=\"\",\"\",'1. Ordersheet'!P810)","v":{"$error":"#N/A"}},{"$f":"IF('1. Ordersheet'!Q810=\"\",\"\",'1. Ordersheet'!Q810)","v":""},{"$f":"IF('1. Ordersheet'!R810=\"\",\"\",'1. Ordersheet'!R810)","v":""},{"$f":"IF('1. Ordersheet'!S810=\"\",\"\",'1. Ordersheet'!S810)","v":""},{"$f":"IF('1. Ordersheet'!V810=\"\",\"\",'1. Ordersheet'!V810)","v":""},{"$f":"IF('1. Ordersheet'!W810=\"\",\"\",'1. Ordersheet'!W810)","v":""},{"$f":"IF('1. Ordersheet'!X810=\"\",\"\",'1. Ordersheet'!X810)","v":""},{"$f":"IF('1. Ordersheet'!Y810=\"\",\"\",'1. Ordersheet'!Y810)","v":""},{"$f":"IF('1. Ordersheet'!Z810=\"\",\"\",'1. Ordersheet'!Z810)","v":""},{"$f":"IF('1. Ordersheet'!AA810=\"\",\"\",'1. Ordersheet'!AA810)","v":""},null,{"$f":"IF('1. Ordersheet'!AS810=\"\",\"\",'1. Ordersheet'!AS810)","v":""},{"$f":"IF('1. Ordersheet'!AT810=\"\",\"\",'1. Ordersheet'!AT810)","v":""},null,null,null,null,null,null,null,{"$f":"IF('1. Ordersheet'!AX810=\"\",\"\",'1. Ordersheet'!AX810)","v":""},{"$f":"IF('1. Ordersheet'!AY810=\"\",\"\",'1. Ordersheet'!AY810)","v":""},{"$f":"IF('1. Ordersheet'!AZ810=\"\",\"\",'1. Ordersheet'!AZ810)","v":""},{"$f":"IF('1. Ordersheet'!BA810=\"\",\"\",'1. Ordersheet'!BA810)","v":""},{"$f":"IF('1. Ordersheet'!BC810=\"\",\"\",'1. Ordersheet'!BC810)","v":""},{"$f":"IF('1. Ordersheet'!BD810=\"\",\"\",'1. Ordersheet'!BD810)","v":""},{"$f":"IF('1. Ordersheet'!BE810=\"\",\"\",'1. Ordersheet'!BE810)","v":""},{"$f":"IF('1. Ordersheet'!BF810=\"\",\"\",'1. Ordersheet'!BF810)","v":""},{"$f":"IF('1. Ordersheet'!BG810=\"\",\"\",'1. Ordersheet'!BG810)","v":"ZWO"},{"$f":"IF('1. Ordersheet'!BH810=\"\",\"\",'1. Ordersheet'!BH810)","v":""},{"$f":"IF('1. Ordersheet'!BI810=\"\",\"\",'1. Ordersheet'!BI810)","v":""},{"$f":"IF('1. Ordersheet'!BJ810=\"\",\"\",'1. Ordersheet'!BJ810)","v":""},{"$f":"IF('1. Ordersheet'!BK810=\"\",\"\",'1. Ordersheet'!BK810)","v":""},{"$f":"IF('1. Ordersheet'!BL810=\"\",\"\",'1. Ordersheet'!BL810)","v":""}]
[{"$f":"IF('1. Ordersheet'!F811=\"\",\"\",'1. Ordersheet'!F811)","v":""},{"$f":"IF('1. Ordersheet'!G811=\"\",\"\",'1. Ordersheet'!G811)","v":""},{"$f":"IF('1. Ordersheet'!H811=\"\",\"\",'1. Ordersheet'!H811)","v":""},{"$f":"IF('1. Ordersheet'!I811=\"\",\"\",'1. Ordersheet'!I811)","v":""},{"$f":"IF('1. Ordersheet'!J811=\"\",\"\",'1. Ordersheet'!J811)","v":""},{"$f":"IF('1. Ordersheet'!K811=\"\",\"\",'1. Ordersheet'!K811)","v":""},{"$f":"IF('1. Ordersheet'!L811=\"\",\"\",'1. Ordersheet'!L811)","v":""},{"$f":"IF('1. Ordersheet'!M811=\"\",\"\",'1. Ordersheet'!M811)","v":""},{"$f":"IF('1. Ordersheet'!N811=\"\",\"\",'1. Ordersheet'!N811)","v":""},{"$f":"IF('1. Ordersheet'!O811=\"\",\"\",'1. Ordersheet'!O811)","v":{"$error":"#N/A"}},{"$f":"IF('1. Ordersheet'!P811=\"\",\"\",'1. Ordersheet'!P811)","v":{"$error":"#N/A"}},{"$f":"IF('1. Ordersheet'!Q811=\"\",\"\",'1. Ordersheet'!Q811)","v":""},{"$f":"IF('1. Ordersheet'!R811=\"\",\"\",'1. Ordersheet'!R811)","v":""},{"$f":"IF('1. Ordersheet'!S811=\"\",\"\",'1. Ordersheet'!S811)","v":""},{"$f":"IF('1. Ordersheet'!V811=\"\",\"\",'1. Ordersheet'!V811)","v":""},{"$f":"IF('1. Ordersheet'!W811=\"\",\"\",'1. Ordersheet'!W811)","v":""},{"$f":"IF('1. Ordersheet'!X811=\"\",\"\",'1. Ordersheet'!X811)","v":""},{"$f":"IF('1. Ordersheet'!Y811=\"\",\"\",'1. Ordersheet'!Y811)","v":""},{"$f":"IF('1. Ordersheet'!Z811=\"\",\"\",'1. Ordersheet'!Z811)","v":""},{"$f":"IF('1. Ordersheet'!AA811=\"\",\"\",'1. Ordersheet'!AA811)","v":""},null,{"$f":"IF('1. Ordersheet'!AS811=\"\",\"\",'1. Ordersheet'!AS811)","v":""},{"$f":"IF('1. Ordersheet'!AT811=\"\",\"\",'1. Ordersheet'!AT811)","v":""},null,null,null,null,null,null,null,{"$f":"IF('1. Ordersheet'!AX811=\"\",\"\",'1. Ordersheet'!AX811)","v":""},{"$f":"IF('1. Ordersheet'!AY811=\"\",\"\",'1. Ordersheet'!AY811)","v":""},{"$f":"IF('1. Ordersheet'!AZ811=\"\",\"\",'1. Ordersheet'!AZ811)","v":""},{"$f":"IF('1. Ordersheet'!BA811=\"\",\"\",'1. Ordersheet'!BA811)","v":""},{"$f":"IF('1. Ordersheet'!BC811=\"\",\"\",'1. Ordersheet'!BC811)","v":""},{"$f":"IF('1. Ordersheet'!BD811=\"\",\"\",'1. Ordersheet'!BD811)","v":""},{"$f":"IF('1. Ordersheet'!BE811=\"\",\"\",'1. Ordersheet'!BE811)","v":""},{"$f":"IF('1. Ordersheet'!BF811=\"\",\"\",'1. Ordersheet'!BF811)","v":""},{"$f":"IF('1. Ordersheet'!BG811=\"\",\"\",'1. Ordersheet'!BG811)","v":"ZWO"},{"$f":"IF('1. Ordersheet'!BH811=\"\",\"\",'1. Ordersheet'!BH811)","v":""},{"$f":"IF('1. Ordersheet'!BI811=\"\",\"\",'1. Ordersheet'!BI811)","v":""},{"$f":"IF('1. Ordersheet'!BJ811=\"\",\"\",'1. Ordersheet'!BJ811)","v":""},{"$f":"IF('1. Ordersheet'!BK811=\"\",\"\",'1. Ordersheet'!BK811)","v":""},{"$f":"IF('1. Ordersheet'!BL811=\"\",\"\",'1. Ordersheet'!BL811)","v":""}]
[{"$f":"IF('1. Ordersheet'!F812=\"\",\"\",'1. Ordersheet'!F812)","v":""},{"$f":"IF('1. Ordersheet'!G812=\"\",\"\",'1. Ordersheet'!G812)","v":""},{"$f":"IF('1. Ordersheet'!H812=\"\",\"\",'1. Ordersheet'!H812)","v":""},{"$f":"IF('1. Ordersheet'!I812=\"\",\"\",'1. Ordersheet'!I812)","v":""},{"$f":"IF('1. Ordersheet'!J812=\"\",\"\",'1. Ordersheet'!J812)","v":""},{"$f":"IF('1. Ordersheet'!K812=\"\",\"\",'1. Ordersheet'!K812)","v":""},{"$f":"IF('1. Ordersheet'!L812=\"\",\"\",'1. Ordersheet'!L812)","v":""},{"$f":"IF('1. Ordersheet'!M812=\"\",\"\",'1. Ordersheet'!M812)","v":""},{"$f":"IF('1. Ordersheet'!N812=\"\",\"\",'1. Ordersheet'!N812)","v":""},{"$f":"IF('1. Ordersheet'!O812=\"\",\"\",'1. Ordersheet'!O812)","v":{"$error":"#N/A"}},{"$f":"IF('1. Ordersheet'!P812=\"\",\"\",'1. Ordersheet'!P812)","v":{"$error":"#N/A"}},{"$f":"IF('1. Ordersheet'!Q812=\"\",\"\",'1. Ordersheet'!Q812)","v":""},{"$f":"IF('1. Ordersheet'!R812=\"\",\"\",'1. Ordersheet'!R812)","v":""},{"$f":"IF('1. Ordersheet'!S812=\"\",\"\",'1. Ordersheet'!S812)","v":""},{"$f":"IF('1. Ordersheet'!V812=\"\",\"\",'1. Ordersheet'!V812)","v":""},{"$f":"IF('1. Ordersheet'!W812=\"\",\"\",'1. Ordersheet'!W812)","v":""},{"$f":"IF('1. Ordersheet'!X812=\"\",\"\",'1. Ordersheet'!X812)","v":""},{"$f":"IF('1. Ordersheet'!Y812=\"\",\"\",'1. Ordersheet'!Y812)","v":""},{"$f":"IF('1. Ordersheet'!Z812=\"\",\"\",'1. Ordersheet'!Z812)","v":""},{"$f":"IF('1. Ordersheet'!AA812=\"\",\"\",'1. Ordersheet'!AA812)","v":""},null,{"$f":"IF('1. Ordersheet'!AS812=\"\",\"\",'1. Ordersheet'!AS812)","v":""},{"$f":"IF('1. Ordersheet'!AT812=\"\",\"\",'1. Ordersheet'!AT812)","v":""},null,null,null,null,null,null,null,{"$f":"IF('1. Ordersheet'!AX812=\"\",\"\",'1. Ordersheet'!AX812)","v":""},{"$f":"IF('1. Ordersheet'!AY812=\"\",\"\",'1. Ordersheet'!AY812)","v":""},{"$f":"IF('1. Ordersheet'!AZ812=\"\",\"\",'1. Ordersheet'!AZ812)","v":""},{"$f":"IF('1. Ordersheet'!BA812=\"\",\"\",'1. Ordersheet'!BA812)","v":""},{"$f":"IF('1. Ordersheet'!BC812=\"\",\"\",'1. Ordersheet'!BC812)","v":""},{"$f":"IF('1. Ordersheet'!BD812=\"\",\"\",'1. Ordersheet'!BD812)","v":""},{"$f":"IF('1. Ordersheet'!BE812=\"\",\"\",'1. Ordersheet'!BE812)","v":""},{"$f":"IF('1. Ordersheet'!BF812=\"\",\"\",'1. Ordersheet'!BF812)","v":""},{"$f":"IF('1. Ordersheet'!BG812=\"\",\"\",'1. Ordersheet'!BG812)","v":"ZWO"},{"$f":"IF('1. Ordersheet'!BH812=\"\",\"\",'1. Ordersheet'!BH812)","v":""},{"$f":"IF('1. Ordersheet'!BI812=\"\",\"\",'1. Ordersheet'!BI812)","v":""},{"$f":"IF('1. Ordersheet'!BJ812=\"\",\"\",'1. Ordersheet'!BJ812)","v":""},{"$f":"IF('1. Ordersheet'!BK812=\"\",\"\",'1. Ordersheet'!BK812)","v":""},{"$f":"IF('1. Ordersheet'!BL812=\"\",\"\",'1. Ordersheet'!BL812)","v":""}]
[{"$f":"IF('1. Ordersheet'!F813=\"\",\"\",'1. Ordersheet'!F813)","v":""},{"$f":"IF('1. Ordersheet'!G813=\"\",\"\",'1. Ordersheet'!G813)","v":""},{"$f":"IF('1. Ordersheet'!H813=\"\",\"\",'1. Ordersheet'!H813)","v":""},{"$f":"IF('1. Ordersheet'!I813=\"\",\"\",'1. Ordersheet'!I813)","v":""},{"$f":"IF('1. Ordersheet'!J813=\"\",\"\",'1. Ordersheet'!J813)","v":""},{"$f":"IF('1. Ordersheet'!K813=\"\",\"\",'1. Ordersheet'!K813)","v":""},{"$f":"IF('1. Ordersheet'!L813=\"\",\"\",'1. Ordersheet'!L813)","v":""},{"$f":"IF('1. Ordersheet'!M813=\"\",\"\",'1. Ordersheet'!M813)","v":""},{"$f":"IF('1. Ordersheet'!N813=\"\",\"\",'1. Ordersheet'!N813)","v":""},{"$f":"IF('1. Ordersheet'!O813=\"\",\"\",'1. Ordersheet'!O813)","v":{"$error":"#N/A"}},{"$f":"IF('1. Ordersheet'!P813=\"\",\"\",'1. Ordersheet'!P813)","v":{"$error":"#N/A"}},{"$f":"IF('1. Ordersheet'!Q813=\"\",\"\",'1. Ordersheet'!Q813)","v":""},{"$f":"IF('1. Ordersheet'!R813=\"\",\"\",'1. Ordersheet'!R813)","v":""},{"$f":"IF('1. Ordersheet'!S813=\"\",\"\",'1. Ordersheet'!S813)","v":""},{"$f":"IF('1. Ordersheet'!V813=\"\",\"\",'1. Ordersheet'!V813)","v":""},{"$f":"IF('1. Ordersheet'!W813=\"\",\"\",'1. Ordersheet'!W813)","v":""},{"$f":"IF('1. Ordersheet'!X813=\"\",\"\",'1. Ordersheet'!X813)","v":""},{"$f":"IF('1. Ordersheet'!Y813=\"\",\"\",'1. Ordersheet'!Y813)","v":""},{"$f":"IF('1. Ordersheet'!Z813=\"\",\"\",'1. Ordersheet'!Z813)","v":""},{"$f":"IF('1. Ordersheet'!AA813=\"\",\"\",'1. Ordersheet'!AA813)","v":""},null,{"$f":"IF('1. Ordersheet'!AS813=\"\",\"\",'1. Ordersheet'!AS813)","v":""},{"$f":"IF('1. Ordersheet'!AT813=\"\",\"\",'1. Ordersheet'!AT813)","v":""},null,null,null,null,null,null,null,{"$f":"IF('1. Ordersheet'!AX813=\"\",\"\",'1. Ordersheet'!AX813)","v":""},{"$f":"IF('1. Ordersheet'!AY813=\"\",\"\",'1. Ordersheet'!AY813)","v":""},{"$f":"IF('1. Ordersheet'!AZ813=\"\",\"\",'1. Ordersheet'!AZ813)","v":""},{"$f":"IF('1. Ordersheet'!BA813=\"\",\"\",'1. Ordersheet'!BA813)","v":""},{"$f":"IF('1. Ordersheet'!BC813=\"\",\"\",'1. Ordersheet'!BC813)","v":""},{"$f":"IF('1. Ordersheet'!BD813=\"\",\"\",'1. Ordersheet'!BD813)","v":""},{"$f":"IF('1. Ordersheet'!BE813=\"\",\"\",'1. Ordersheet'!BE813)","v":""},{"$f":"IF('1. Ordersheet'!BF813=\"\",\"\",'1. Ordersheet'!BF813)","v":""},{"$f":"IF('1. Ordersheet'!BG813=\"\",\"\",'1. Ordersheet'!BG813)","v":"ZWO"},{"$f":"IF('1. Ordersheet'!BH813=\"\",\"\",'1. Ordersheet'!BH813)","v":""},{"$f":"IF('1. Ordersheet'!BI813=\"\",\"\",'1. Ordersheet'!BI813)","v":""},{"$f":"IF('1. Ordersheet'!BJ813=\"\",\"\",'1. Ordersheet'!BJ813)","v":""},{"$f":"IF('1. Ordersheet'!BK813=\"\",\"\",'1. Ordersheet'!BK813)","v":""},{"$f":"IF('1. Ordersheet'!BL813=\"\",\"\",'1. Ordersheet'!BL813)","v":""}]
[{"$f":"IF('1. Ordersheet'!F814=\"\",\"\",'1. Ordersheet'!F814)","v":""},{"$f":"IF('1. Ordersheet'!G814=\"\",\"\",'1. Ordersheet'!G814)","v":""},{"$f":"IF('1. Ordersheet'!H814=\"\",\"\",'1. Ordersheet'!H814)","v":""},{"$f":"IF('1. Ordersheet'!I814=\"\",\"\",'1. Ordersheet'!I814)","v":""},{"$f":"IF('1. Ordersheet'!J814=\"\",\"\",'1. Ordersheet'!J814)","v":""},{"$f":"IF('1. Ordersheet'!K814=\"\",\"\",'1. Ordersheet'!K814)","v":""},{"$f":"IF('1. Ordersheet'!L814=\"\",\"\",'1. Ordersheet'!L814)","v":""},{"$f":"IF('1. Ordersheet'!M814=\"\",\"\",'1. Ordersheet'!M814)","v":""},{"$f":"IF('1. Ordersheet'!N814=\"\",\"\",'1. Ordersheet'!N814)","v":""},{"$f":"IF('1. Ordersheet'!O814=\"\",\"\",'1. Ordersheet'!O814)","v":{"$error":"#N/A"}},{"$f":"IF('1. Ordersheet'!P814=\"\",\"\",'1. Ordersheet'!P814)","v":{"$error":"#N/A"}},{"$f":"IF('1. Ordersheet'!Q814=\"\",\"\",'1. Ordersheet'!Q814)","v":""},{"$f":"IF('1. Ordersheet'!R814=\"\",\"\",'1. Ordersheet'!R814)","v":""},{"$f":"IF('1. Ordersheet'!S814=\"\",\"\",'1. Ordersheet'!S814)","v":""},{"$f":"IF('1. Ordersheet'!V814=\"\",\"\",'1. Ordersheet'!V814)","v":""},{"$f":"IF('1. Ordersheet'!W814=\"\",\"\",'1. Ordersheet'!W814)","v":""},{"$f":"IF('1. Ordersheet'!X814=\"\",\"\",'1. Ordersheet'!X814)","v":""},{"$f":"IF('1. Ordersheet'!Y814=\"\",\"\",'1. Ordersheet'!Y814)","v":""},{"$f":"IF('1. Ordersheet'!Z814=\"\",\"\",'1. Ordersheet'!Z814)","v":""},{"$f":"IF('1. Ordersheet'!AA814=\"\",\"\",'1. Ordersheet'!AA814)","v":""},null,{"$f":"IF('1. Ordersheet'!AS814=\"\",\"\",'1. Ordersheet'!AS814)","v":""},{"$f":"IF('1. Ordersheet'!AT814=\"\",\"\",'1. Ordersheet'!AT814)","v":""},null,null,null,null,null,null,null,{"$f":"IF('1. Ordersheet'!AX814=\"\",\"\",'1. Ordersheet'!AX814)","v":""},{"$f":"IF('1. Ordersheet'!AY814=\"\",\"\",'1. Ordersheet'!AY814)","v":""},{"$f":"IF('1. Ordersheet'!AZ814=\"\",\"\",'1. Ordersheet'!AZ814)","v":""},{"$f":"IF('1. Ordersheet'!BA814=\"\",\"\",'1. Ordersheet'!BA814)","v":""},{"$f":"IF('1. Ordersheet'!BC814=\"\",\"\",'1. Ordersheet'!BC814)","v":""},{"$f":"IF('1. Ordersheet'!BD814=\"\",\"\",'1. Ordersheet'!BD814)","v":""},{"$f":"IF('1. Ordersheet'!BE814=\"\",\"\",'1. Ordersheet'!BE814)","v":""},{"$f":"IF('1. Ordersheet'!BF814=\"\",\"\",'1. Ordersheet'!BF814)","v":""},{"$f":"IF('1. Ordersheet'!BG814=\"\",\"\",'1. Ordersheet'!BG814)","v":"ZWO"},{"$f":"IF('1. Ordersheet'!BH814=\"\",\"\",'1. Ordersheet'!BH814)","v":""},{"$f":"IF('1. Ordersheet'!BI814=\"\",\"\",'1. Ordersheet'!BI814)","v":""},{"$f":"IF('1. Ordersheet'!BJ814=\"\",\"\",'1. Ordersheet'!BJ814)","v":""},{"$f":"IF('1. Ordersheet'!BK814=\"\",\"\",'1. Ordersheet'!BK814)","v":""},{"$f":"IF('1. Ordersheet'!BL814=\"\",\"\",'1. Ordersheet'!BL814)","v":""}]
[{"$f":"IF('1. Ordersheet'!F815=\"\",\"\",'1. Ordersheet'!F815)","v":""},{"$f":"IF('1. Ordersheet'!G815=\"\",\"\",'1. Ordersheet'!G815)","v":""},{"$f":"IF('1. Ordersheet'!H815=\"\",\"\",'1. Ordersheet'!H815)","v":""},{"$f":"IF('1. Ordersheet'!I815=\"\",\"\",'1. Ordersheet'!I815)","v":""},{"$f":"IF('1. Ordersheet'!J815=\"\",\"\",'1. Ordersheet'!J815)","v":""},{"$f":"IF('1. Ordersheet'!K815=\"\",\"\",'1. Ordersheet'!K815)","v":""},{"$f":"IF('1. Ordersheet'!L815=\"\",\"\",'1. Ordersheet'!L815)","v":""},{"$f":"IF('1. Ordersheet'!M815=\"\",\"\",'1. Ordersheet'!M815)","v":""},{"$f":"IF('1. Ordersheet'!N815=\"\",\"\",'1. Ordersheet'!N815)","v":""},{"$f":"IF('1. Ordersheet'!O815=\"\",\"\",'1. Ordersheet'!O815)","v":{"$error":"#N/A"}},{"$f":"IF('1. Ordersheet'!P815=\"\",\"\",'1. Ordersheet'!P815)","v":{"$error":"#N/A"}},{"$f":"IF('1. Ordersheet'!Q815=\"\",\"\",'1. Ordersheet'!Q815)","v":""},{"$f":"IF('1. Ordersheet'!R815=\"\",\"\",'1. Ordersheet'!R815)","v":""},{"$f":"IF('1. Ordersheet'!S815=\"\",\"\",'1. Ordersheet'!S815)","v":""},{"$f":"IF('1. Ordersheet'!V815=\"\",\"\",'1. Ordersheet'!V815)","v":""},{"$f":"IF('1. Ordersheet'!W815=\"\",\"\",'1. Ordersheet'!W815)","v":""},{"$f":"IF('1. Ordersheet'!X815=\"\",\"\",'1. Ordersheet'!X815)","v":""},{"$f":"IF('1. Ordersheet'!Y815=\"\",\"\",'1. Ordersheet'!Y815)","v":""},{"$f":"IF('1. Ordersheet'!Z815=\"\",\"\",'1. Ordersheet'!Z815)","v":""},{"$f":"IF('1. Ordersheet'!AA815=\"\",\"\",'1. Ordersheet'!AA815)","v":""},null,{"$f":"IF('1. Ordersheet'!AS815=\"\",\"\",'1. Ordersheet'!AS815)","v":""},{"$f":"IF('1. Ordersheet'!AT815=\"\",\"\",'1. Ordersheet'!AT815)","v":""},null,null,null,null,null,null,null,{"$f":"IF('1. Ordersheet'!AX815=\"\",\"\",'1. Ordersheet'!AX815)","v":""},{"$f":"IF('1. Ordersheet'!AY815=\"\",\"\",'1. Ordersheet'!AY815)","v":""},{"$f":"IF('1. Ordersheet'!AZ815=\"\",\"\",'1. Ordersheet'!AZ815)","v":""},{"$f":"IF('1. Ordersheet'!BA815=\"\",\"\",'1. Ordersheet'!BA815)","v":""},{"$f":"IF('1. Ordersheet'!BC815=\"\",\"\",'1. Ordersheet'!BC815)","v":""},{"$f":"IF('1. Ordersheet'!BD815=\"\",\"\",'1. Ordersheet'!BD815)","v":""},{"$f":"IF('1. Ordersheet'!BE815=\"\",\"\",'1. Ordersheet'!BE815)","v":""},{"$f":"IF('1. Ordersheet'!BF815=\"\",\"\",'1. Ordersheet'!BF815)","v":""},{"$f":"IF('1. Ordersheet'!BG815=\"\",\"\",'1. Ordersheet'!BG815)","v":"ZWO"},{"$f":"IF('1. Ordersheet'!BH815=\"\",\"\",'1. Ordersheet'!BH815)","v":""},{"$f":"IF('1. Ordersheet'!BI815=\"\",\"\",'1. Ordersheet'!BI815)","v":""},{"$f":"IF('1. Ordersheet'!BJ815=\"\",\"\",'1. Ordersheet'!BJ815)","v":""},{"$f":"IF('1. Ordersheet'!BK815=\"\",\"\",'1. Ordersheet'!BK815)","v":""},{"$f":"IF('1. Ordersheet'!BL815=\"\",\"\",'1. Ordersheet'!BL815)","v":""}]
[{"$f":"IF('1. Ordersheet'!F816=\"\",\"\",'1. Ordersheet'!F816)","v":""},{"$f":"IF('1. Ordersheet'!G816=\"\",\"\",'1. Ordersheet'!G816)","v":""},{"$f":"IF('1. Ordersheet'!H816=\"\",\"\",'1. Ordersheet'!H816)","v":""},{"$f":"IF('1. Ordersheet'!I816=\"\",\"\",'1. Ordersheet'!I816)","v":""},{"$f":"IF('1. Ordersheet'!J816=\"\",\"\",'1. Ordersheet'!J816)","v":""},{"$f":"IF('1. Ordersheet'!K816=\"\",\"\",'1. Ordersheet'!K816)","v":""},{"$f":"IF('1. Ordersheet'!L816=\"\",\"\",'1. Ordersheet'!L816)","v":""},{"$f":"IF('1. Ordersheet'!M816=\"\",\"\",'1. Ordersheet'!M816)","v":""},{"$f":"IF('1. Ordersheet'!N816=\"\",\"\",'1. Ordersheet'!N816)","v":""},{"$f":"IF('1. Ordersheet'!O816=\"\",\"\",'1. Ordersheet'!O816)","v":{"$error":"#N/A"}},{"$f":"IF('1. Ordersheet'!P816=\"\",\"\",'1. Ordersheet'!P816)","v":{"$error":"#N/A"}},{"$f":"IF('1. Ordersheet'!Q816=\"\",\"\",'1. Ordersheet'!Q816)","v":""},{"$f":"IF('1. Ordersheet'!R816=\"\",\"\",'1. Ordersheet'!R816)","v":""},{"$f":"IF('1. Ordersheet'!S816=\"\",\"\",'1. Ordersheet'!S816)","v":""},{"$f":"IF('1. Ordersheet'!V816=\"\",\"\",'1. Ordersheet'!V816)","v":""},{"$f":"IF('1. Ordersheet'!W816=\"\",\"\",'1. Ordersheet'!W816)","v":""},{"$f":"IF('1. Ordersheet'!X816=\"\",\"\",'1. Ordersheet'!X816)","v":""},{"$f":"IF('1. Ordersheet'!Y816=\"\",\"\",'1. Ordersheet'!Y816)","v":""},{"$f":"IF('1. Ordersheet'!Z816=\"\",\"\",'1. Ordersheet'!Z816)","v":""},{"$f":"IF('1. Ordersheet'!AA816=\"\",\"\",'1. Ordersheet'!AA816)","v":""},null,{"$f":"IF('1. Ordersheet'!AS816=\"\",\"\",'1. Ordersheet'!AS816)","v":""},{"$f":"IF('1. Ordersheet'!AT816=\"\",\"\",'1. Ordersheet'!AT816)","v":""},null,null,null,null,null,null,null,{"$f":"IF('1. Ordersheet'!AX816=\"\",\"\",'1. Ordersheet'!AX816)","v":""},{"$f":"IF('1. Ordersheet'!AY816=\"\",\"\",'1. Ordersheet'!AY816)","v":""},{"$f":"IF('1. Ordersheet'!AZ816=\"\",\"\",'1. Ordersheet'!AZ816)","v":""},{"$f":"IF('1. Ordersheet'!BA816=\"\",\"\",'1. Ordersheet'!BA816)","v":""},{"$f":"IF('1. Ordersheet'!BC816=\"\",\"\",'1. Ordersheet'!BC816)","v":""},{"$f":"IF('1. Ordersheet'!BD816=\"\",\"\",'1. Ordersheet'!BD816)","v":""},{"$f":"IF('1. Ordersheet'!BE816=\"\",\"\",'1. Ordersheet'!BE816)","v":""},{"$f":"IF('1. Ordersheet'!BF816=\"\",\"\",'1. Ordersheet'!BF816)","v":""},{"$f":"IF('1. Ordersheet'!BG816=\"\",\"\",'1. Ordersheet'!BG816)","v":"ZWO"},{"$f":"IF('1. Ordersheet'!BH816=\"\",\"\",'1. Ordersheet'!BH816)","v":""},{"$f":"IF('1. Ordersheet'!BI816=\"\",\"\",'1. Ordersheet'!BI816)","v":""},{"$f":"IF('1. Ordersheet'!BJ816=\"\",\"\",'1. Ordersheet'!BJ816)","v":""},{"$f":"IF('1. Ordersheet'!BK816=\"\",\"\",'1. Ordersheet'!BK816)","v":""},{"$f":"IF('1. Ordersheet'!BL816=\"\",\"\",'1. Ordersheet'!BL816)","v":""}]
[{"$f":"IF('1. Ordersheet'!F817=\"\",\"\",'1. Ordersheet'!F817)","v":""},{"$f":"IF('1. Ordersheet'!G817=\"\",\"\",'1. Ordersheet'!G817)","v":""},{"$f":"IF('1. Ordersheet'!H817=\"\",\"\",'1. Ordersheet'!H817)","v":""},{"$f":"IF('1. Ordersheet'!I817=\"\",\"\",'1. Ordersheet'!I817)","v":""},{"$f":"IF('1. Ordersheet'!J817=\"\",\"\",'1. Ordersheet'!J817)","v":""},{"$f":"IF('1. Ordersheet'!K817=\"\",\"\",'1. Ordersheet'!K817)","v":""},{"$f":"IF('1. Ordersheet'!L817=\"\",\"\",'1. Ordersheet'!L817)","v":""},{"$f":"IF('1. Ordersheet'!M817=\"\",\"\",'1. Ordersheet'!M817)","v":""},{"$f":"IF('1. Ordersheet'!N817=\"\",\"\",'1. Ordersheet'!N817)","v":""},{"$f":"IF('1. Ordersheet'!O817=\"\",\"\",'1. Ordersheet'!O817)","v":{"$error":"#N/A"}},{"$f":"IF('1. Ordersheet'!P817=\"\",\"\",'1. Ordersheet'!P817)","v":{"$error":"#N/A"}},{"$f":"IF('1. Ordersheet'!Q817=\"\",\"\",'1. Ordersheet'!Q817)","v":""},{"$f":"IF('1. Ordersheet'!R817=\"\",\"\",'1. Ordersheet'!R817)","v":""},{"$f":"IF('1. Ordersheet'!S817=\"\",\"\",'1. Ordersheet'!S817)","v":""},{"$f":"IF('1. Ordersheet'!V817=\"\",\"\",'1. Ordersheet'!V817)","v":""},{"$f":"IF('1. Ordersheet'!W817=\"\",\"\",'1. Ordersheet'!W817)","v":""},{"$f":"IF('1. Ordersheet'!X817=\"\",\"\",'1. Ordersheet'!X817)","v":""},{"$f":"IF('1. Ordersheet'!Y817=\"\",\"\",'1. Ordersheet'!Y817)","v":""},{"$f":"IF('1. Ordersheet'!Z817=\"\",\"\",'1. Ordersheet'!Z817)","v":""},{"$f":"IF('1. Ordersheet'!AA817=\"\",\"\",'1. Ordersheet'!AA817)","v":""},null,{"$f":"IF('1. Ordersheet'!AS817=\"\",\"\",'1. Ordersheet'!AS817)","v":""},{"$f":"IF('1. Ordersheet'!AT817=\"\",\"\",'1. Ordersheet'!AT817)","v":""},null,null,null,null,null,null,null,{"$f":"IF('1. Ordersheet'!AX817=\"\",\"\",'1. Ordersheet'!AX817)","v":""},{"$f":"IF('1. Ordersheet'!AY817=\"\",\"\",'1. Ordersheet'!AY817)","v":""},{"$f":"IF('1. Ordersheet'!AZ817=\"\",\"\",'1. Ordersheet'!AZ817)","v":""},{"$f":"IF('1. Ordersheet'!BA817=\"\",\"\",'1. Ordersheet'!BA817)","v":""},{"$f":"IF('1. Ordersheet'!BC817=\"\",\"\",'1. Ordersheet'!BC817)","v":""},{"$f":"IF('1. Ordersheet'!BD817=\"\",\"\",'1. Ordersheet'!BD817)","v":""},{"$f":"IF('1. Ordersheet'!BE817=\"\",\"\",'1. Ordersheet'!BE817)","v":""},{"$f":"IF('1. Ordersheet'!BF817=\"\",\"\",'1. Ordersheet'!BF817)","v":""},{"$f":"IF('1. Ordersheet'!BG817=\"\",\"\",'1. Ordersheet'!BG817)","v":"ZWO"},{"$f":"IF('1. Ordersheet'!BH817=\"\",\"\",'1. Ordersheet'!BH817)","v":""},{"$f":"IF('1. Ordersheet'!BI817=\"\",\"\",'1. Ordersheet'!BI817)","v":""},{"$f":"IF('1. Ordersheet'!BJ817=\"\",\"\",'1. Ordersheet'!BJ817)","v":""},{"$f":"IF('1. Ordersheet'!BK817=\"\",\"\",'1. Ordersheet'!BK817)","v":""},{"$f":"IF('1. Ordersheet'!BL817=\"\",\"\",'1. Ordersheet'!BL817)","v":""}]
[{"$f":"IF('1. Ordersheet'!F818=\"\",\"\",'1. Ordersheet'!F818)","v":""},{"$f":"IF('1. Ordersheet'!G818=\"\",\"\",'1. Ordersheet'!G818)","v":""},{"$f":"IF('1. Ordersheet'!H818=\"\",\"\",'1. Ordersheet'!H818)","v":""},{"$f":"IF('1. Ordersheet'!I818=\"\",\"\",'1. Ordersheet'!I818)","v":""},{"$f":"IF('1. Ordersheet'!J818=\"\",\"\",'1. Ordersheet'!J818)","v":""},{"$f":"IF('1. Ordersheet'!K818=\"\",\"\",'1. Ordersheet'!K818)","v":""},{"$f":"IF('1. Ordersheet'!L818=\"\",\"\",'1. Ordersheet'!L818)","v":""},{"$f":"IF('1. Ordersheet'!M818=\"\",\"\",'1. Ordersheet'!M818)","v":""},{"$f":"IF('1. Ordersheet'!N818=\"\",\"\",'1. Ordersheet'!N818)","v":""},{"$f":"IF('1. Ordersheet'!O818=\"\",\"\",'1. Ordersheet'!O818)","v":{"$error":"#N/A"}},{"$f":"IF('1. Ordersheet'!P818=\"\",\"\",'1. Ordersheet'!P818)","v":{"$error":"#N/A"}},{"$f":"IF('1. Ordersheet'!Q818=\"\",\"\",'1. Ordersheet'!Q818)","v":""},{"$f":"IF('1. Ordersheet'!R818=\"\",\"\",'1. Ordersheet'!R818)","v":""},{"$f":"IF('1. Ordersheet'!S818=\"\",\"\",'1. Ordersheet'!S818)","v":""},{"$f":"IF('1. Ordersheet'!V818=\"\",\"\",'1. Ordersheet'!V818)","v":""},{"$f":"IF('1. Ordersheet'!W818=\"\",\"\",'1. Ordersheet'!W818)","v":""},{"$f":"IF('1. Ordersheet'!X818=\"\",\"\",'1. Ordersheet'!X818)","v":""},{"$f":"IF('1. Ordersheet'!Y818=\"\",\"\",'1. Ordersheet'!Y818)","v":""},{"$f":"IF('1. Ordersheet'!Z818=\"\",\"\",'1. Ordersheet'!Z818)","v":""},{"$f":"IF('1. Ordersheet'!AA818=\"\",\"\",'1. Ordersheet'!AA818)","v":""},null,{"$f":"IF('1. Ordersheet'!AS818=\"\",\"\",'1. Ordersheet'!AS818)","v":""},{"$f":"IF('1. Ordersheet'!AT818=\"\",\"\",'1. Ordersheet'!AT818)","v":""},null,null,null,null,null,null,null,{"$f":"IF('1. Ordersheet'!AX818=\"\",\"\",'1. Ordersheet'!AX818)","v":""},{"$f":"IF('1. Ordersheet'!AY818=\"\",\"\",'1. Ordersheet'!AY818)","v":""},{"$f":"IF('1. Ordersheet'!AZ818=\"\",\"\",'1. Ordersheet'!AZ818)","v":""},{"$f":"IF('1. Ordersheet'!BA818=\"\",\"\",'1. Ordersheet'!BA818)","v":""},{"$f":"IF('1. Ordersheet'!BC818=\"\",\"\",'1. Ordersheet'!BC818)","v":""},{"$f":"IF('1. Ordersheet'!BD818=\"\",\"\",'1. Ordersheet'!BD818)","v":""},{"$f":"IF('1. Ordersheet'!BE818=\"\",\"\",'1. Ordersheet'!BE818)","v":""},{"$f":"IF('1. Ordersheet'!BF818=\"\",\"\",'1. Ordersheet'!BF818)","v":""},{"$f":"IF('1. Ordersheet'!BG818=\"\",\"\",'1. Ordersheet'!BG818)","v":"ZWO"},{"$f":"IF('1. Ordersheet'!BH818=\"\",\"\",'1. Ordersheet'!BH818)","v":""},{"$f":"IF('1. Ordersheet'!BI818=\"\",\"\",'1. Ordersheet'!BI818)","v":""},{"$f":"IF('1. Ordersheet'!BJ818=\"\",\"\",'1. Ordersheet'!BJ818)","v":""},{"$f":"IF('1. Ordersheet'!BK818=\"\",\"\",'1. Ordersheet'!BK818)","v":""},{"$f":"IF('1. Ordersheet'!BL818=\"\",\"\",'1. Ordersheet'!BL818)","v":""}]
[{"$f":"IF('1. Ordersheet'!F819=\"\",\"\",'1. Ordersheet'!F819)","v":""},{"$f":"IF('1. Ordersheet'!G819=\"\",\"\",'1. Ordersheet'!G819)","v":""},{"$f":"IF('1. Ordersheet'!H819=\"\",\"\",'1. Ordersheet'!H819)","v":""},{"$f":"IF('1. Ordersheet'!I819=\"\",\"\",'1. Ordersheet'!I819)","v":""},{"$f":"IF('1. Ordersheet'!J819=\"\",\"\",'1. Ordersheet'!J819)","v":""},{"$f":"IF('1. Ordersheet'!K819=\"\",\"\",'1. Ordersheet'!K819)","v":""},{"$f":"IF('1. Ordersheet'!L819=\"\",\"\",'1. Ordersheet'!L819)","v":""},{"$f":"IF('1. Ordersheet'!M819=\"\",\"\",'1. Ordersheet'!M819)","v":""},{"$f":"IF('1. Ordersheet'!N819=\"\",\"\",'1. Ordersheet'!N819)","v":""},{"$f":"IF('1. Ordersheet'!O819=\"\",\"\",'1. Ordersheet'!O819)","v":{"$error":"#N/A"}},{"$f":"IF('1. Ordersheet'!P819=\"\",\"\",'1. Ordersheet'!P819)","v":{"$error":"#N/A"}},{"$f":"IF('1. Ordersheet'!Q819=\"\",\"\",'1. Ordersheet'!Q819)","v":""},{"$f":"IF('1. Ordersheet'!R819=\"\",\"\",'1. Ordersheet'!R819)","v":""},{"$f":"IF('1. Ordersheet'!S819=\"\",\"\",'1. Ordersheet'!S819)","v":""},{"$f":"IF('1. Ordersheet'!V819=\"\",\"\",'1. Ordersheet'!V819)","v":""},{"$f":"IF('1. Ordersheet'!W819=\"\",\"\",'1. Ordersheet'!W819)","v":""},{"$f":"IF('1. Ordersheet'!X819=\"\",\"\",'1. Ordersheet'!X819)","v":""},{"$f":"IF('1. Ordersheet'!Y819=\"\",\"\",'1. Ordersheet'!Y819)","v":""},{"$f":"IF('1. Ordersheet'!Z819=\"\",\"\",'1. Ordersheet'!Z819)","v":""},{"$f":"IF('1. Ordersheet'!AA819=\"\",\"\",'1. Ordersheet'!AA819)","v":""},null,{"$f":"IF('1. Ordersheet'!AS819=\"\",\"\",'1. Ordersheet'!AS819)","v":""},{"$f":"IF('1. Ordersheet'!AT819=\"\",\"\",'1. Ordersheet'!AT819)","v":""},null,null,null,null,null,null,null,{"$f":"IF('1. Ordersheet'!AX819=\"\",\"\",'1. Ordersheet'!AX819)","v":""},{"$f":"IF('1. Ordersheet'!AY819=\"\",\"\",'1. Ordersheet'!AY819)","v":""},{"$f":"IF('1. Ordersheet'!AZ819=\"\",\"\",'1. Ordersheet'!AZ819)","v":""},{"$f":"IF('1. Ordersheet'!BA819=\"\",\"\",'1. Ordersheet'!BA819)","v":""},{"$f":"IF('1. Ordersheet'!BC819=\"\",\"\",'1. Ordersheet'!BC819)","v":""},{"$f":"IF('1. Ordersheet'!BD819=\"\",\"\",'1. Ordersheet'!BD819)","v":""},{"$f":"IF('1. Ordersheet'!BE819=\"\",\"\",'1. Ordersheet'!BE819)","v":""},{"$f":"IF('1. Ordersheet'!BF819=\"\",\"\",'1. Ordersheet'!BF819)","v":""},{"$f":"IF('1. Ordersheet'!BG819=\"\",\"\",'1. Ordersheet'!BG819)","v":"ZWO"},{"$f":"IF('1. Ordersheet'!BH819=\"\",\"\",'1. Ordersheet'!BH819)","v":""},{"$f":"IF('1. Ordersheet'!BI819=\"\",\"\",'1. Ordersheet'!BI819)","v":""},{"$f":"IF('1. Ordersheet'!BJ819=\"\",\"\",'1. Ordersheet'!BJ819)","v":""},{"$f":"IF('1. Ordersheet'!BK819=\"\",\"\",'1. Ordersheet'!BK819)","v":""},{"$f":"IF('1. Ordersheet'!BL819=\"\",\"\",'1. Ordersheet'!BL819)","v":""}]
[{"$f":"IF('1. Ordersheet'!F820=\"\",\"\",'1. Ordersheet'!F820)","v":""},{"$f":"IF('1. Ordersheet'!G820=\"\",\"\",'1. Ordersheet'!G820)","v":""},{"$f":"IF('1. Ordersheet'!H820=\"\",\"\",'1. Ordersheet'!H820)","v":""},{"$f":"IF('1. Ordersheet'!I820=\"\",\"\",'1. Ordersheet'!I820)","v":""},{"$f":"IF('1. Ordersheet'!J820=\"\",\"\",'1. Ordersheet'!J820)","v":""},{"$f":"IF('1. Ordersheet'!K820=\"\",\"\",'1. Ordersheet'!K820)","v":""},{"$f":"IF('1. Ordersheet'!L820=\"\",\"\",'1. Ordersheet'!L820)","v":""},{"$f":"IF('1. Ordersheet'!M820=\"\",\"\",'1. Ordersheet'!M820)","v":""},{"$f":"IF('1. Ordersheet'!N820=\"\",\"\",'1. Ordersheet'!N820)","v":""},{"$f":"IF('1. Ordersheet'!O820=\"\",\"\",'1. Ordersheet'!O820)","v":{"$error":"#N/A"}},{"$f":"IF('1. Ordersheet'!P820=\"\",\"\",'1. Ordersheet'!P820)","v":{"$error":"#N/A"}},{"$f":"IF('1. Ordersheet'!Q820=\"\",\"\",'1. Ordersheet'!Q820)","v":""},{"$f":"IF('1. Ordersheet'!R820=\"\",\"\",'1. Ordersheet'!R820)","v":""},{"$f":"IF('1. Ordersheet'!S820=\"\",\"\",'1. Ordersheet'!S820)","v":""},{"$f":"IF('1. Ordersheet'!V820=\"\",\"\",'1. Ordersheet'!V820)","v":""},{"$f":"IF('1. Ordersheet'!W820=\"\",\"\",'1. Ordersheet'!W820)","v":""},{"$f":"IF('1. Ordersheet'!X820=\"\",\"\",'1. Ordersheet'!X820)","v":""},{"$f":"IF('1. Ordersheet'!Y820=\"\",\"\",'1. Ordersheet'!Y820)","v":""},{"$f":"IF('1. Ordersheet'!Z820=\"\",\"\",'1. Ordersheet'!Z820)","v":""},{"$f":"IF('1. Ordersheet'!AA820=\"\",\"\",'1. Ordersheet'!AA820)","v":""},null,{"$f":"IF('1. Ordersheet'!AS820=\"\",\"\",'1. Ordersheet'!AS820)","v":""},{"$f":"IF('1. Ordersheet'!AT820=\"\",\"\",'1. Ordersheet'!AT820)","v":""},null,null,null,null,null,null,null,{"$f":"IF('1. Ordersheet'!AX820=\"\",\"\",'1. Ordersheet'!AX820)","v":""},{"$f":"IF('1. Ordersheet'!AY820=\"\",\"\",'1. Ordersheet'!AY820)","v":""},{"$f":"IF('1. Ordersheet'!AZ820=\"\",\"\",'1. Ordersheet'!AZ820)","v":""},{"$f":"IF('1. Ordersheet'!BA820=\"\",\"\",'1. Ordersheet'!BA820)","v":""},{"$f":"IF('1. Ordersheet'!BC820=\"\",\"\",'1. Ordersheet'!BC820)","v":""},{"$f":"IF('1. Ordersheet'!BD820=\"\",\"\",'1. Ordersheet'!BD820)","v":""},{"$f":"IF('1. Ordersheet'!BE820=\"\",\"\",'1. Ordersheet'!BE820)","v":""},{"$f":"IF('1. Ordersheet'!BF820=\"\",\"\",'1. Ordersheet'!BF820)","v":""},{"$f":"IF('1. Ordersheet'!BG820=\"\",\"\",'1. Ordersheet'!BG820)","v":"ZWO"},{"$f":"IF('1. Ordersheet'!BH820=\"\",\"\",'1. Ordersheet'!BH820)","v":""},{"$f":"IF('1. Ordersheet'!BI820=\"\",\"\",'1. Ordersheet'!BI820)","v":""},{"$f":"IF('1. Ordersheet'!BJ820=\"\",\"\",'1. Ordersheet'!BJ820)","v":""},{"$f":"IF('1. Ordersheet'!BK820=\"\",\"\",'1. Ordersheet'!BK820)","v":""},{"$f":"IF('1. Ordersheet'!BL820=\"\",\"\",'1. Ordersheet'!BL820)","v":""}]
[{"$f":"IF('1. Ordersheet'!F821=\"\",\"\",'1. Ordersheet'!F821)","v":""},{"$f":"IF('1. Ordersheet'!G821=\"\",\"\",'1. Ordersheet'!G821)","v":""},{"$f":"IF('1. Ordersheet'!H821=\"\",\"\",'1. Ordersheet'!H821)","v":""},{"$f":"IF('1. Ordersheet'!I821=\"\",\"\",'1. Ordersheet'!I821)","v":""},{"$f":"IF('1. Ordersheet'!J821=\"\",\"\",'1. Ordersheet'!J821)","v":""},{"$f":"IF('1. Ordersheet'!K821=\"\",\"\",'1. Ordersheet'!K821)","v":""},{"$f":"IF('1. Ordersheet'!L821=\"\",\"\",'1. Ordersheet'!L821)","v":""},{"$f":"IF('1. Ordersheet'!M821=\"\",\"\",'1. Ordersheet'!M821)","v":""},{"$f":"IF('1. Ordersheet'!N821=\"\",\"\",'1. Ordersheet'!N821)","v":""},{"$f":"IF('1. Ordersheet'!O821=\"\",\"\",'1. Ordersheet'!O821)","v":{"$error":"#N/A"}},{"$f":"IF('1. Ordersheet'!P821=\"\",\"\",'1. Ordersheet'!P821)","v":{"$error":"#N/A"}},{"$f":"IF('1. Ordersheet'!Q821=\"\",\"\",'1. Ordersheet'!Q821)","v":""},{"$f":"IF('1. Ordersheet'!R821=\"\",\"\",'1. Ordersheet'!R821)","v":""},{"$f":"IF('1. Ordersheet'!S821=\"\",\"\",'1. Ordersheet'!S821)","v":""},{"$f":"IF('1. Ordersheet'!V821=\"\",\"\",'1. Ordersheet'!V821)","v":""},{"$f":"IF('1. Ordersheet'!W821=\"\",\"\",'1. Ordersheet'!W821)","v":""},{"$f":"IF('1. Ordersheet'!X821=\"\",\"\",'1. Ordersheet'!X821)","v":""},{"$f":"IF('1. Ordersheet'!Y821=\"\",\"\",'1. Ordersheet'!Y821)","v":""},{"$f":"IF('1. Ordersheet'!Z821=\"\",\"\",'1. Ordersheet'!Z821)","v":""},{"$f":"IF('1. Ordersheet'!AA821=\"\",\"\",'1. Ordersheet'!AA821)","v":""},null,{"$f":"IF('1. Ordersheet'!AS821=\"\",\"\",'1. Ordersheet'!AS821)","v":""},{"$f":"IF('1. Ordersheet'!AT821=\"\",\"\",'1. Ordersheet'!AT821)","v":""},null,null,null,null,null,null,null,{"$f":"IF('1. Ordersheet'!AX821=\"\",\"\",'1. Ordersheet'!AX821)","v":""},{"$f":"IF('1. Ordersheet'!AY821=\"\",\"\",'1. Ordersheet'!AY821)","v":""},{"$f":"IF('1. Ordersheet'!AZ821=\"\",\"\",'1. Ordersheet'!AZ821)","v":""},{"$f":"IF('1. Ordersheet'!BA821=\"\",\"\",'1. Ordersheet'!BA821)","v":""},{"$f":"IF('1. Ordersheet'!BC821=\"\",\"\",'1. Ordersheet'!BC821)","v":""},{"$f":"IF('1. Ordersheet'!BD821=\"\",\"\",'1. Ordersheet'!BD821)","v":""},{"$f":"IF('1. Ordersheet'!BE821=\"\",\"\",'1. Ordersheet'!BE821)","v":""},{"$f":"IF('1. Ordersheet'!BF821=\"\",\"\",'1. Ordersheet'!BF821)","v":""},{"$f":"IF('1. Ordersheet'!BG821=\"\",\"\",'1. Ordersheet'!BG821)","v":"ZWO"},{"$f":"IF('1. Ordersheet'!BH821=\"\",\"\",'1. Ordersheet'!BH821)","v":""},{"$f":"IF('1. Ordersheet'!BI821=\"\",\"\",'1. Ordersheet'!BI821)","v":""},{"$f":"IF('1. Ordersheet'!BJ821=\"\",\"\",'1. Ordersheet'!BJ821)","v":""},{"$f":"IF('1. Ordersheet'!BK821=\"\",\"\",'1. Ordersheet'!BK821)","v":""},{"$f":"IF('1. Ordersheet'!BL821=\"\",\"\",'1. Ordersheet'!BL821)","v":""}]
[{"$f":"IF('1. Ordersheet'!F822=\"\",\"\",'1. Ordersheet'!F822)","v":""},{"$f":"IF('1. Ordersheet'!G822=\"\",\"\",'1. Ordersheet'!G822)","v":""},{"$f":"IF('1. Ordersheet'!H822=\"\",\"\",'1. Ordersheet'!H822)","v":""},{"$f":"IF('1. Ordersheet'!I822=\"\",\"\",'1. Ordersheet'!I822)","v":""},{"$f":"IF('1. Ordersheet'!J822=\"\",\"\",'1. Ordersheet'!J822)","v":""},{"$f":"IF('1. Ordersheet'!K822=\"\",\"\",'1. Ordersheet'!K822)","v":""},{"$f":"IF('1. Ordersheet'!L822=\"\",\"\",'1. Ordersheet'!L822)","v":""},{"$f":"IF('1. Ordersheet'!M822=\"\",\"\",'1. Ordersheet'!M822)","v":""},{"$f":"IF('1. Ordersheet'!N822=\"\",\"\",'1. Ordersheet'!N822)","v":""},{"$f":"IF('1. Ordersheet'!O822=\"\",\"\",'1. Ordersheet'!O822)","v":{"$error":"#N/A"}},{"$f":"IF('1. Ordersheet'!P822=\"\",\"\",'1. Ordersheet'!P822)","v":{"$error":"#N/A"}},{"$f":"IF('1. Ordersheet'!Q822=\"\",\"\",'1. Ordersheet'!Q822)","v":""},{"$f":"IF('1. Ordersheet'!R822=\"\",\"\",'1. Ordersheet'!R822)","v":""},{"$f":"IF('1. Ordersheet'!S822=\"\",\"\",'1. Ordersheet'!S822)","v":""},{"$f":"IF('1. Ordersheet'!V822=\"\",\"\",'1. Ordersheet'!V822)","v":""},{"$f":"IF('1. Ordersheet'!W822=\"\",\"\",'1. Ordersheet'!W822)","v":""},{"$f":"IF('1. Ordersheet'!X822=\"\",\"\",'1. Ordersheet'!X822)","v":""},{"$f":"IF('1. Ordersheet'!Y822=\"\",\"\",'1. Ordersheet'!Y822)","v":""},{"$f":"IF('1. Ordersheet'!Z822=\"\",\"\",'1. Ordersheet'!Z822)","v":""},{"$f":"IF('1. Ordersheet'!AA822=\"\",\"\",'1. Ordersheet'!AA822)","v":""},null,{"$f":"IF('1. Ordersheet'!AS822=\"\",\"\",'1. Ordersheet'!AS822)","v":""},{"$f":"IF('1. Ordersheet'!AT822=\"\",\"\",'1. Ordersheet'!AT822)","v":""},null,null,null,null,null,null,null,{"$f":"IF('1. Ordersheet'!AX822=\"\",\"\",'1. Ordersheet'!AX822)","v":""},{"$f":"IF('1. Ordersheet'!AY822=\"\",\"\",'1. Ordersheet'!AY822)","v":""},{"$f":"IF('1. Ordersheet'!AZ822=\"\",\"\",'1. Ordersheet'!AZ822)","v":""},{"$f":"IF('1. Ordersheet'!BA822=\"\",\"\",'1. Ordersheet'!BA822)","v":""},{"$f":"IF('1. Ordersheet'!BC822=\"\",\"\",'1. Ordersheet'!BC822)","v":""},{"$f":"IF('1. Ordersheet'!BD822=\"\",\"\",'1. Ordersheet'!BD822)","v":""},{"$f":"IF('1. Ordersheet'!BE822=\"\",\"\",'1. Ordersheet'!BE822)","v":""},{"$f":"IF('1. Ordersheet'!BF822=\"\",\"\",'1. Ordersheet'!BF822)","v":""},{"$f":"IF('1. Ordersheet'!BG822=\"\",\"\",'1. Ordersheet'!BG822)","v":"ZWO"},{"$f":"IF('1. Ordersheet'!BH822=\"\",\"\",'1. Ordersheet'!BH822)","v":""},{"$f":"IF('1. Ordersheet'!BI822=\"\",\"\",'1. Ordersheet'!BI822)","v":""},{"$f":"IF('1. Ordersheet'!BJ822=\"\",\"\",'1. Ordersheet'!BJ822)","v":""},{"$f":"IF('1. Ordersheet'!BK822=\"\",\"\",'1. Ordersheet'!BK822)","v":""},{"$f":"IF('1. Ordersheet'!BL822=\"\",\"\",'1. Ordersheet'!BL822)","v":""}]
[{"$f":"IF('1. Ordersheet'!F823=\"\",\"\",'1. Ordersheet'!F823)","v":""},{"$f":"IF('1. Ordersheet'!G823=\"\",\"\",'1. Ordersheet'!G823)","v":""},{"$f":"IF('1. Ordersheet'!H823=\"\",\"\",'1. Ordersheet'!H823)","v":""},{"$f":"IF('1. Ordersheet'!I823=\"\",\"\",'1. Ordersheet'!I823)","v":""},{"$f":"IF('1. Ordersheet'!J823=\"\",\"\",'1. Ordersheet'!J823)","v":""},{"$f":"IF('1. Ordersheet'!K823=\"\",\"\",'1. Ordersheet'!K823)","v":""},{"$f":"IF('1. Ordersheet'!L823=\"\",\"\",'1. Ordersheet'!L823)","v":""},{"$f":"IF('1. Ordersheet'!M823=\"\",\"\",'1. Ordersheet'!M823)","v":""},{"$f":"IF('1. Ordersheet'!N823=\"\",\"\",'1. Ordersheet'!N823)","v":""},{"$f":"IF('1. Ordersheet'!O823=\"\",\"\",'1. Ordersheet'!O823)","v":{"$error":"#N/A"}},{"$f":"IF('1. Ordersheet'!P823=\"\",\"\",'1. Ordersheet'!P823)","v":{"$error":"#N/A"}},{"$f":"IF('1. Ordersheet'!Q823=\"\",\"\",'1. Ordersheet'!Q823)","v":""},{"$f":"IF('1. Ordersheet'!R823=\"\",\"\",'1. Ordersheet'!R823)","v":""},{"$f":"IF('1. Ordersheet'!S823=\"\",\"\",'1. Ordersheet'!S823)","v":""},{"$f":"IF('1. Ordersheet'!V823=\"\",\"\",'1. Ordersheet'!V823)","v":""},{"$f":"IF('1. Ordersheet'!W823=\"\",\"\",'1. Ordersheet'!W823)","v":""},{"$f":"IF('1. Ordersheet'!X823=\"\",\"\",'1. Ordersheet'!X823)","v":""},{"$f":"IF('1. Ordersheet'!Y823=\"\",\"\",'1. Ordersheet'!Y823)","v":""},{"$f":"IF('1. Ordersheet'!Z823=\"\",\"\",'1. Ordersheet'!Z823)","v":""},{"$f":"IF('1. Ordersheet'!AA823=\"\",\"\",'1. Ordersheet'!AA823)","v":""},null,{"$f":"IF('1. Ordersheet'!AS823=\"\",\"\",'1. Ordersheet'!AS823)","v":""},{"$f":"IF('1. Ordersheet'!AT823=\"\",\"\",'1. Ordersheet'!AT823)","v":""},null,null,null,null,null,null,null,{"$f":"IF('1. Ordersheet'!AX823=\"\",\"\",'1. Ordersheet'!AX823)","v":""},{"$f":"IF('1. Ordersheet'!AY823=\"\",\"\",'1. Ordersheet'!AY823)","v":""},{"$f":"IF('1. Ordersheet'!AZ823=\"\",\"\",'1. Ordersheet'!AZ823)","v":""},{"$f":"IF('1. Ordersheet'!BA823=\"\",\"\",'1. Ordersheet'!BA823)","v":""},{"$f":"IF('1. Ordersheet'!BC823=\"\",\"\",'1. Ordersheet'!BC823)","v":""},{"$f":"IF('1. Ordersheet'!BD823=\"\",\"\",'1. Ordersheet'!BD823)","v":""},{"$f":"IF('1. Ordersheet'!BE823=\"\",\"\",'1. Ordersheet'!BE823)","v":""},{"$f":"IF('1. Ordersheet'!BF823=\"\",\"\",'1. Ordersheet'!BF823)","v":""},{"$f":"IF('1. Ordersheet'!BG823=\"\",\"\",'1. Ordersheet'!BG823)","v":"ZWO"},{"$f":"IF('1. Ordersheet'!BH823=\"\",\"\",'1. Ordersheet'!BH823)","v":""},{"$f":"IF('1. Ordersheet'!BI823=\"\",\"\",'1. Ordersheet'!BI823)","v":""},{"$f":"IF('1. Ordersheet'!BJ823=\"\",\"\",'1. Ordersheet'!BJ823)","v":""},{"$f":"IF('1. Ordersheet'!BK823=\"\",\"\",'1. Ordersheet'!BK823)","v":""},{"$f":"IF('1. Ordersheet'!BL823=\"\",\"\",'1. Ordersheet'!BL823)","v":""}]
[{"$f":"IF('1. Ordersheet'!F824=\"\",\"\",'1. Ordersheet'!F824)","v":""},{"$f":"IF('1. Ordersheet'!G824=\"\",\"\",'1. Ordersheet'!G824)","v":""},{"$f":"IF('1. Ordersheet'!H824=\"\",\"\",'1. Ordersheet'!H824)","v":""},{"$f":"IF('1. Ordersheet'!I824=\"\",\"\",'1. Ordersheet'!I824)","v":""},{"$f":"IF('1. Ordersheet'!J824=\"\",\"\",'1. Ordersheet'!J824)","v":""},{"$f":"IF('1. Ordersheet'!K824=\"\",\"\",'1. Ordersheet'!K824)","v":""},{"$f":"IF('1. Ordersheet'!L824=\"\",\"\",'1. Ordersheet'!L824)","v":""},{"$f":"IF('1. Ordersheet'!M824=\"\",\"\",'1. Ordersheet'!M824)","v":""},{"$f":"IF('1. Ordersheet'!N824=\"\",\"\",'1. Ordersheet'!N824)","v":""},{"$f":"IF('1. Ordersheet'!O824=\"\",\"\",'1. Ordersheet'!O824)","v":{"$error":"#N/A"}},{"$f":"IF('1. Ordersheet'!P824=\"\",\"\",'1. Ordersheet'!P824)","v":{"$error":"#N/A"}},{"$f":"IF('1. Ordersheet'!Q824=\"\",\"\",'1. Ordersheet'!Q824)","v":""},{"$f":"IF('1. Ordersheet'!R824=\"\",\"\",'1. Ordersheet'!R824)","v":""},{"$f":"IF('1. Ordersheet'!S824=\"\",\"\",'1. Ordersheet'!S824)","v":""},{"$f":"IF('1. Ordersheet'!V824=\"\",\"\",'1. Ordersheet'!V824)","v":""},{"$f":"IF('1. Ordersheet'!W824=\"\",\"\",'1. Ordersheet'!W824)","v":""},{"$f":"IF('1. Ordersheet'!X824=\"\",\"\",'1. Ordersheet'!X824)","v":""},{"$f":"IF('1. Ordersheet'!Y824=\"\",\"\",'1. Ordersheet'!Y824)","v":""},{"$f":"IF('1. Ordersheet'!Z824=\"\",\"\",'1. Ordersheet'!Z824)","v":""},{"$f":"IF('1. Ordersheet'!AA824=\"\",\"\",'1. Ordersheet'!AA824)","v":""},null,{"$f":"IF('1. Ordersheet'!AS824=\"\",\"\",'1. Ordersheet'!AS824)","v":""},{"$f":"IF('1. Ordersheet'!AT824=\"\",\"\",'1. Ordersheet'!AT824)","v":""},null,null,null,null,null,null,null,{"$f":"IF('1. Ordersheet'!AX824=\"\",\"\",'1. Ordersheet'!AX824)","v":""},{"$f":"IF('1. Ordersheet'!AY824=\"\",\"\",'1. Ordersheet'!AY824)","v":""},{"$f":"IF('1. Ordersheet'!AZ824=\"\",\"\",'1. Ordersheet'!AZ824)","v":""},{"$f":"IF('1. Ordersheet'!BA824=\"\",\"\",'1. Ordersheet'!BA824)","v":""},{"$f":"IF('1. Ordersheet'!BC824=\"\",\"\",'1. Ordersheet'!BC824)","v":""},{"$f":"IF('1. Ordersheet'!BD824=\"\",\"\",'1. Ordersheet'!BD824)","v":""},{"$f":"IF('1. Ordersheet'!BE824=\"\",\"\",'1. Ordersheet'!BE824)","v":""},{"$f":"IF('1. Ordersheet'!BF824=\"\",\"\",'1. Ordersheet'!BF824)","v":""},{"$f":"IF('1. Ordersheet'!BG824=\"\",\"\",'1. Ordersheet'!BG824)","v":"ZWO"},{"$f":"IF('1. Ordersheet'!BH824=\"\",\"\",'1. Ordersheet'!BH824)","v":""},{"$f":"IF('1. Ordersheet'!BI824=\"\",\"\",'1. Ordersheet'!BI824)","v":""},{"$f":"IF('1. Ordersheet'!BJ824=\"\",\"\",'1. Ordersheet'!BJ824)","v":""},{"$f":"IF('1. Ordersheet'!BK824=\"\",\"\",'1. Ordersheet'!BK824)","v":""},{"$f":"IF('1. Ordersheet'!BL824=\"\",\"\",'1. Ordersheet'!BL824)","v":""}]
[{"$f":"IF('1. Ordersheet'!F825=\"\",\"\",'1. Ordersheet'!F825)","v":""},{"$f":"IF('1. Ordersheet'!G825=\"\",\"\",'1. Ordersheet'!G825)","v":""},{"$f":"IF('1. Ordersheet'!H825=\"\",\"\",'1. Ordersheet'!H825)","v":""},{"$f":"IF('1. Ordersheet'!I825=\"\",\"\",'1. Ordersheet'!I825)","v":""},{"$f":"IF('1. Ordersheet'!J825=\"\",\"\",'1. Ordersheet'!J825)","v":""},{"$f":"IF('1. Ordersheet'!K825=\"\",\"\",'1. Ordersheet'!K825)","v":""},{"$f":"IF('1. Ordersheet'!L825=\"\",\"\",'1. Ordersheet'!L825)","v":""},{"$f":"IF('1. Ordersheet'!M825=\"\",\"\",'1. Ordersheet'!M825)","v":""},{"$f":"IF('1. Ordersheet'!N825=\"\",\"\",'1. Ordersheet'!N825)","v":""},{"$f":"IF('1. Ordersheet'!O825=\"\",\"\",'1. Ordersheet'!O825)","v":{"$error":"#N/A"}},{"$f":"IF('1. Ordersheet'!P825=\"\",\"\",'1. Ordersheet'!P825)","v":{"$error":"#N/A"}},{"$f":"IF('1. Ordersheet'!Q825=\"\",\"\",'1. Ordersheet'!Q825)","v":""},{"$f":"IF('1. Ordersheet'!R825=\"\",\"\",'1. Ordersheet'!R825)","v":""},{"$f":"IF('1. Ordersheet'!S825=\"\",\"\",'1. Ordersheet'!S825)","v":""},{"$f":"IF('1. Ordersheet'!V825=\"\",\"\",'1. Ordersheet'!V825)","v":""},{"$f":"IF('1. Ordersheet'!W825=\"\",\"\",'1. Ordersheet'!W825)","v":""},{"$f":"IF('1. Ordersheet'!X825=\"\",\"\",'1. Ordersheet'!X825)","v":""},{"$f":"IF('1. Ordersheet'!Y825=\"\",\"\",'1. Ordersheet'!Y825)","v":""},{"$f":"IF('1. Ordersheet'!Z825=\"\",\"\",'1. Ordersheet'!Z825)","v":""},{"$f":"IF('1. Ordersheet'!AA825=\"\",\"\",'1. Ordersheet'!AA825)","v":""},null,{"$f":"IF('1. Ordersheet'!AS825=\"\",\"\",'1. Ordersheet'!AS825)","v":""},{"$f":"IF('1. Ordersheet'!AT825=\"\",\"\",'1. Ordersheet'!AT825)","v":""},null,null,null,null,null,null,null,{"$f":"IF('1. Ordersheet'!AX825=\"\",\"\",'1. Ordersheet'!AX825)","v":""},{"$f":"IF('1. Ordersheet'!AY825=\"\",\"\",'1. Ordersheet'!AY825)","v":""},{"$f":"IF('1. Ordersheet'!AZ825=\"\",\"\",'1. Ordersheet'!AZ825)","v":""},{"$f":"IF('1. Ordersheet'!BA825=\"\",\"\",'1. Ordersheet'!BA825)","v":""},{"$f":"IF('1. Ordersheet'!BC825=\"\",\"\",'1. Ordersheet'!BC825)","v":""},{"$f":"IF('1. Ordersheet'!BD825=\"\",\"\",'1. Ordersheet'!BD825)","v":""},{"$f":"IF('1. Ordersheet'!BE825=\"\",\"\",'1. Ordersheet'!BE825)","v":""},{"$f":"IF('1. Ordersheet'!BF825=\"\",\"\",'1. Ordersheet'!BF825)","v":""},{"$f":"IF('1. Ordersheet'!BG825=\"\",\"\",'1. Ordersheet'!BG825)","v":"ZWO"},{"$f":"IF('1. Ordersheet'!BH825=\"\",\"\",'1. Ordersheet'!BH825)","v":""},{"$f":"IF('1. Ordersheet'!BI825=\"\",\"\",'1. Ordersheet'!BI825)","v":""},{"$f":"IF('1. Ordersheet'!BJ825=\"\",\"\",'1. Ordersheet'!BJ825)","v":""},{"$f":"IF('1. Ordersheet'!BK825=\"\",\"\",'1. Ordersheet'!BK825)","v":""},{"$f":"IF('1. Ordersheet'!BL825=\"\",\"\",'1. Ordersheet'!BL825)","v":""}]
[{"$f":"IF('1. Ordersheet'!F826=\"\",\"\",'1. Ordersheet'!F826)","v":""},{"$f":"IF('1. Ordersheet'!G826=\"\",\"\",'1. Ordersheet'!G826)","v":""},{"$f":"IF('1. Ordersheet'!H826=\"\",\"\",'1. Ordersheet'!H826)","v":""},{"$f":"IF('1. Ordersheet'!I826=\"\",\"\",'1. Ordersheet'!I826)","v":""},{"$f":"IF('1. Ordersheet'!J826=\"\",\"\",'1. Ordersheet'!J826)","v":""},{"$f":"IF('1. Ordersheet'!K826=\"\",\"\",'1. Ordersheet'!K826)","v":""},{"$f":"IF('1. Ordersheet'!L826=\"\",\"\",'1. Ordersheet'!L826)","v":""},{"$f":"IF('1. Ordersheet'!M826=\"\",\"\",'1. Ordersheet'!M826)","v":""},{"$f":"IF('1. Ordersheet'!N826=\"\",\"\",'1. Ordersheet'!N826)","v":""},{"$f":"IF('1. Ordersheet'!O826=\"\",\"\",'1. Ordersheet'!O826)","v":{"$error":"#N/A"}},{"$f":"IF('1. Ordersheet'!P826=\"\",\"\",'1. Ordersheet'!P826)","v":{"$error":"#N/A"}},{"$f":"IF('1. Ordersheet'!Q826=\"\",\"\",'1. Ordersheet'!Q826)","v":""},{"$f":"IF('1. Ordersheet'!R826=\"\",\"\",'1. Ordersheet'!R826)","v":""},{"$f":"IF('1. Ordersheet'!S826=\"\",\"\",'1. Ordersheet'!S826)","v":""},{"$f":"IF('1. Ordersheet'!V826=\"\",\"\",'1. Ordersheet'!V826)","v":""},{"$f":"IF('1. Ordersheet'!W826=\"\",\"\",'1. Ordersheet'!W826)","v":""},{"$f":"IF('1. Ordersheet'!X826=\"\",\"\",'1. Ordersheet'!X826)","v":""},{"$f":"IF('1. Ordersheet'!Y826=\"\",\"\",'1. Ordersheet'!Y826)","v":""},{"$f":"IF('1. Ordersheet'!Z826=\"\",\"\",'1. Ordersheet'!Z826)","v":""},{"$f":"IF('1. Ordersheet'!AA826=\"\",\"\",'1. Ordersheet'!AA826)","v":""},null,{"$f":"IF('1. Ordersheet'!AS826=\"\",\"\",'1. Ordersheet'!AS826)","v":""},{"$f":"IF('1. Ordersheet'!AT826=\"\",\"\",'1. Ordersheet'!AT826)","v":""},null,null,null,null,null,null,null,{"$f":"IF('1. Ordersheet'!AX826=\"\",\"\",'1. Ordersheet'!AX826)","v":""},{"$f":"IF('1. Ordersheet'!AY826=\"\",\"\",'1. Ordersheet'!AY826)","v":""},{"$f":"IF('1. Ordersheet'!AZ826=\"\",\"\",'1. Ordersheet'!AZ826)","v":""},{"$f":"IF('1. Ordersheet'!BA826=\"\",\"\",'1. Ordersheet'!BA826)","v":""},{"$f":"IF('1. Ordersheet'!BC826=\"\",\"\",'1. Ordersheet'!BC826)","v":""},{"$f":"IF('1. Ordersheet'!BD826=\"\",\"\",'1. Ordersheet'!BD826)","v":""},{"$f":"IF('1. Ordersheet'!BE826=\"\",\"\",'1. Ordersheet'!BE826)","v":""},{"$f":"IF('1. Ordersheet'!BF826=\"\",\"\",'1. Ordersheet'!BF826)","v":""},{"$f":"IF('1. Ordersheet'!BG826=\"\",\"\",'1. Ordersheet'!BG826)","v":"ZWO"},{"$f":"IF('1. Ordersheet'!BH826=\"\",\"\",'1. Ordersheet'!BH826)","v":""},{"$f":"IF('1. Ordersheet'!BI826=\"\",\"\",'1. Ordersheet'!BI826)","v":""},{"$f":"IF('1. Ordersheet'!BJ826=\"\",\"\",'1. Ordersheet'!BJ826)","v":""},{"$f":"IF('1. Ordersheet'!BK826=\"\",\"\",'1. Ordersheet'!BK826)","v":""},{"$f":"IF('1. Ordersheet'!BL826=\"\",\"\",'1. Ordersheet'!BL826)","v":""}]
[{"$f":"IF('1. Ordersheet'!F827=\"\",\"\",'1. Ordersheet'!F827)","v":""},{"$f":"IF('1. Ordersheet'!G827=\"\",\"\",'1. Ordersheet'!G827)","v":""},{"$f":"IF('1. Ordersheet'!H827=\"\",\"\",'1. Ordersheet'!H827)","v":""},{"$f":"IF('1. Ordersheet'!I827=\"\",\"\",'1. Ordersheet'!I827)","v":""},{"$f":"IF('1. Ordersheet'!J827=\"\",\"\",'1. Ordersheet'!J827)","v":""},{"$f":"IF('1. Ordersheet'!K827=\"\",\"\",'1. Ordersheet'!K827)","v":""},{"$f":"IF('1. Ordersheet'!L827=\"\",\"\",'1. Ordersheet'!L827)","v":""},{"$f":"IF('1. Ordersheet'!M827=\"\",\"\",'1. Ordersheet'!M827)","v":""},{"$f":"IF('1. Ordersheet'!N827=\"\",\"\",'1. Ordersheet'!N827)","v":""},{"$f":"IF('1. Ordersheet'!O827=\"\",\"\",'1. Ordersheet'!O827)","v":{"$error":"#N/A"}},{"$f":"IF('1. Ordersheet'!P827=\"\",\"\",'1. Ordersheet'!P827)","v":{"$error":"#N/A"}},{"$f":"IF('1. Ordersheet'!Q827=\"\",\"\",'1. Ordersheet'!Q827)","v":""},{"$f":"IF('1. Ordersheet'!R827=\"\",\"\",'1. Ordersheet'!R827)","v":""},{"$f":"IF('1. Ordersheet'!S827=\"\",\"\",'1. Ordersheet'!S827)","v":""},{"$f":"IF('1. Ordersheet'!V827=\"\",\"\",'1. Ordersheet'!V827)","v":""},{"$f":"IF('1. Ordersheet'!W827=\"\",\"\",'1. Ordersheet'!W827)","v":""},{"$f":"IF('1. Ordersheet'!X827=\"\",\"\",'1. Ordersheet'!X827)","v":""},{"$f":"IF('1. Ordersheet'!Y827=\"\",\"\",'1. Ordersheet'!Y827)","v":""},{"$f":"IF('1. Ordersheet'!Z827=\"\",\"\",'1. Ordersheet'!Z827)","v":""},{"$f":"IF('1. Ordersheet'!AA827=\"\",\"\",'1. Ordersheet'!AA827)","v":""},null,{"$f":"IF('1. Ordersheet'!AS827=\"\",\"\",'1. Ordersheet'!AS827)","v":""},{"$f":"IF('1. Ordersheet'!AT827=\"\",\"\",'1. Ordersheet'!AT827)","v":""},null,null,null,null,null,null,null,{"$f":"IF('1. Ordersheet'!AX827=\"\",\"\",'1. Ordersheet'!AX827)","v":""},{"$f":"IF('1. Ordersheet'!AY827=\"\",\"\",'1. Ordersheet'!AY827)","v":""},{"$f":"IF('1. Ordersheet'!AZ827=\"\",\"\",'1. Ordersheet'!AZ827)","v":""},{"$f":"IF('1. Ordersheet'!BA827=\"\",\"\",'1. Ordersheet'!BA827)","v":""},{"$f":"IF('1. Ordersheet'!BC827=\"\",\"\",'1. Ordersheet'!BC827)","v":""},{"$f":"IF('1. Ordersheet'!BD827=\"\",\"\",'1. Ordersheet'!BD827)","v":""},{"$f":"IF('1. Ordersheet'!BE827=\"\",\"\",'1. Ordersheet'!BE827)","v":""},{"$f":"IF('1. Ordersheet'!BF827=\"\",\"\",'1. Ordersheet'!BF827)","v":""},{"$f":"IF('1. Ordersheet'!BG827=\"\",\"\",'1. Ordersheet'!BG827)","v":"ZWO"},{"$f":"IF('1. Ordersheet'!BH827=\"\",\"\",'1. Ordersheet'!BH827)","v":""},{"$f":"IF('1. Ordersheet'!BI827=\"\",\"\",'1. Ordersheet'!BI827)","v":""},{"$f":"IF('1. Ordersheet'!BJ827=\"\",\"\",'1. Ordersheet'!BJ827)","v":""},{"$f":"IF('1. Ordersheet'!BK827=\"\",\"\",'1. Ordersheet'!BK827)","v":""},{"$f":"IF('1. Ordersheet'!BL827=\"\",\"\",'1. Ordersheet'!BL827)","v":""}]
[{"$f":"IF('1. Ordersheet'!F828=\"\",\"\",'1. Ordersheet'!F828)","v":""},{"$f":"IF('1. Ordersheet'!G828=\"\",\"\",'1. Ordersheet'!G828)","v":""},{"$f":"IF('1. Ordersheet'!H828=\"\",\"\",'1. Ordersheet'!H828)","v":""},{"$f":"IF('1. Ordersheet'!I828=\"\",\"\",'1. Ordersheet'!I828)","v":""},{"$f":"IF('1. Ordersheet'!J828=\"\",\"\",'1. Ordersheet'!J828)","v":""},{"$f":"IF('1. Ordersheet'!K828=\"\",\"\",'1. Ordersheet'!K828)","v":""},{"$f":"IF('1. Ordersheet'!L828=\"\",\"\",'1. Ordersheet'!L828)","v":""},{"$f":"IF('1. Ordersheet'!M828=\"\",\"\",'1. Ordersheet'!M828)","v":""},{"$f":"IF('1. Ordersheet'!N828=\"\",\"\",'1. Ordersheet'!N828)","v":""},{"$f":"IF('1. Ordersheet'!O828=\"\",\"\",'1. Ordersheet'!O828)","v":{"$error":"#N/A"}},{"$f":"IF('1. Ordersheet'!P828=\"\",\"\",'1. Ordersheet'!P828)","v":{"$error":"#N/A"}},{"$f":"IF('1. Ordersheet'!Q828=\"\",\"\",'1. Ordersheet'!Q828)","v":""},{"$f":"IF('1. Ordersheet'!R828=\"\",\"\",'1. Ordersheet'!R828)","v":""},{"$f":"IF('1. Ordersheet'!S828=\"\",\"\",'1. Ordersheet'!S828)","v":""},{"$f":"IF('1. Ordersheet'!V828=\"\",\"\",'1. Ordersheet'!V828)","v":""},{"$f":"IF('1. Ordersheet'!W828=\"\",\"\",'1. Ordersheet'!W828)","v":""},{"$f":"IF('1. Ordersheet'!X828=\"\",\"\",'1. Ordersheet'!X828)","v":""},{"$f":"IF('1. Ordersheet'!Y828=\"\",\"\",'1. Ordersheet'!Y828)","v":""},{"$f":"IF('1. Ordersheet'!Z828=\"\",\"\",'1. Ordersheet'!Z828)","v":""},{"$f":"IF('1. Ordersheet'!AA828=\"\",\"\",'1. Ordersheet'!AA828)","v":""},null,{"$f":"IF('1. Ordersheet'!AS828=\"\",\"\",'1. Ordersheet'!AS828)","v":""},{"$f":"IF('1. Ordersheet'!AT828=\"\",\"\",'1. Ordersheet'!AT828)","v":""},null,null,null,null,null,null,null,{"$f":"IF('1. Ordersheet'!AX828=\"\",\"\",'1. Ordersheet'!AX828)","v":""},{"$f":"IF('1. Ordersheet'!AY828=\"\",\"\",'1. Ordersheet'!AY828)","v":""},{"$f":"IF('1. Ordersheet'!AZ828=\"\",\"\",'1. Ordersheet'!AZ828)","v":""},{"$f":"IF('1. Ordersheet'!BA828=\"\",\"\",'1. Ordersheet'!BA828)","v":""},{"$f":"IF('1. Ordersheet'!BC828=\"\",\"\",'1. Ordersheet'!BC828)","v":""},{"$f":"IF('1. Ordersheet'!BD828=\"\",\"\",'1. Ordersheet'!BD828)","v":""},{"$f":"IF('1. Ordersheet'!BE828=\"\",\"\",'1. Ordersheet'!BE828)","v":""},{"$f":"IF('1. Ordersheet'!BF828=\"\",\"\",'1. Ordersheet'!BF828)","v":""},{"$f":"IF('1. Ordersheet'!BG828=\"\",\"\",'1. Ordersheet'!BG828)","v":"ZWO"},{"$f":"IF('1. Ordersheet'!BH828=\"\",\"\",'1. Ordersheet'!BH828)","v":""},{"$f":"IF('1. Ordersheet'!BI828=\"\",\"\",'1. Ordersheet'!BI828)","v":""},{"$f":"IF('1. Ordersheet'!BJ828=\"\",\"\",'1. Ordersheet'!BJ828)","v":""},{"$f":"IF('1. Ordersheet'!BK828=\"\",\"\",'1. Ordersheet'!BK828)","v":""},{"$f":"IF('1. Ordersheet'!BL828=\"\",\"\",'1. Ordersheet'!BL828)","v":""}]
[{"$f":"IF('1. Ordersheet'!F829=\"\",\"\",'1. Ordersheet'!F829)","v":""},{"$f":"IF('1. Ordersheet'!G829=\"\",\"\",'1. Ordersheet'!G829)","v":""},{"$f":"IF('1. Ordersheet'!H829=\"\",\"\",'1. Ordersheet'!H829)","v":""},{"$f":"IF('1. Ordersheet'!I829=\"\",\"\",'1. Ordersheet'!I829)","v":""},{"$f":"IF('1. Ordersheet'!J829=\"\",\"\",'1. Ordersheet'!J829)","v":""},{"$f":"IF('1. Ordersheet'!K829=\"\",\"\",'1. Ordersheet'!K829)","v":""},{"$f":"IF('1. Ordersheet'!L829=\"\",\"\",'1. Ordersheet'!L829)","v":""},{"$f":"IF('1. Ordersheet'!M829=\"\",\"\",'1. Ordersheet'!M829)","v":""},{"$f":"IF('1. Ordersheet'!N829=\"\",\"\",'1. Ordersheet'!N829)","v":""},{"$f":"IF('1. Ordersheet'!O829=\"\",\"\",'1. Ordersheet'!O829)","v":{"$error":"#N/A"}},{"$f":"IF('1. Ordersheet'!P829=\"\",\"\",'1. Ordersheet'!P829)","v":{"$error":"#N/A"}},{"$f":"IF('1. Ordersheet'!Q829=\"\",\"\",'1. Ordersheet'!Q829)","v":""},{"$f":"IF('1. Ordersheet'!R829=\"\",\"\",'1. Ordersheet'!R829)","v":""},{"$f":"IF('1. Ordersheet'!S829=\"\",\"\",'1. Ordersheet'!S829)","v":""},{"$f":"IF('1. Ordersheet'!V829=\"\",\"\",'1. Ordersheet'!V829)","v":""},{"$f":"IF('1. Ordersheet'!W829=\"\",\"\",'1. Ordersheet'!W829)","v":""},{"$f":"IF('1. Ordersheet'!X829=\"\",\"\",'1. Ordersheet'!X829)","v":""},{"$f":"IF('1. Ordersheet'!Y829=\"\",\"\",'1. Ordersheet'!Y829)","v":""},{"$f":"IF('1. Ordersheet'!Z829=\"\",\"\",'1. Ordersheet'!Z829)","v":""},{"$f":"IF('1. Ordersheet'!AA829=\"\",\"\",'1. Ordersheet'!AA829)","v":""},null,{"$f":"IF('1. Ordersheet'!AS829=\"\",\"\",'1. Ordersheet'!AS829)","v":""},{"$f":"IF('1. Ordersheet'!AT829=\"\",\"\",'1. Ordersheet'!AT829)","v":""},null,null,null,null,null,null,null,{"$f":"IF('1. Ordersheet'!AX829=\"\",\"\",'1. Ordersheet'!AX829)","v":""},{"$f":"IF('1. Ordersheet'!AY829=\"\",\"\",'1. Ordersheet'!AY829)","v":""},{"$f":"IF('1. Ordersheet'!AZ829=\"\",\"\",'1. Ordersheet'!AZ829)","v":""},{"$f":"IF('1. Ordersheet'!BA829=\"\",\"\",'1. Ordersheet'!BA829)","v":""},{"$f":"IF('1. Ordersheet'!BC829=\"\",\"\",'1. Ordersheet'!BC829)","v":""},{"$f":"IF('1. Ordersheet'!BD829=\"\",\"\",'1. Ordersheet'!BD829)","v":""},{"$f":"IF('1. Ordersheet'!BE829=\"\",\"\",'1. Ordersheet'!BE829)","v":""},{"$f":"IF('1. Ordersheet'!BF829=\"\",\"\",'1. Ordersheet'!BF829)","v":""},{"$f":"IF('1. Ordersheet'!BG829=\"\",\"\",'1. Ordersheet'!BG829)","v":"ZWO"},{"$f":"IF('1. Ordersheet'!BH829=\"\",\"\",'1. Ordersheet'!BH829)","v":""},{"$f":"IF('1. Ordersheet'!BI829=\"\",\"\",'1. Ordersheet'!BI829)","v":""},{"$f":"IF('1. Ordersheet'!BJ829=\"\",\"\",'1. Ordersheet'!BJ829)","v":""},{"$f":"IF('1. Ordersheet'!BK829=\"\",\"\",'1. Ordersheet'!BK829)","v":""},{"$f":"IF('1. Ordersheet'!BL829=\"\",\"\",'1. Ordersheet'!BL829)","v":""}]
[{"$f":"IF('1. Ordersheet'!F830=\"\",\"\",'1. Ordersheet'!F830)","v":""},{"$f":"IF('1. Ordersheet'!G830=\"\",\"\",'1. Ordersheet'!G830)","v":""},{"$f":"IF('1. Ordersheet'!H830=\"\",\"\",'1. Ordersheet'!H830)","v":""},{"$f":"IF('1. Ordersheet'!I830=\"\",\"\",'1. Ordersheet'!I830)","v":""},{"$f":"IF('1. Ordersheet'!J830=\"\",\"\",'1. Ordersheet'!J830)","v":""},{"$f":"IF('1. Ordersheet'!K830=\"\",\"\",'1. Ordersheet'!K830)","v":""},{"$f":"IF('1. Ordersheet'!L830=\"\",\"\",'1. Ordersheet'!L830)","v":""},{"$f":"IF('1. Ordersheet'!M830=\"\",\"\",'1. Ordersheet'!M830)","v":""},{"$f":"IF('1. Ordersheet'!N830=\"\",\"\",'1. Ordersheet'!N830)","v":""},{"$f":"IF('1. Ordersheet'!O830=\"\",\"\",'1. Ordersheet'!O830)","v":{"$error":"#N/A"}},{"$f":"IF('1. Ordersheet'!P830=\"\",\"\",'1. Ordersheet'!P830)","v":{"$error":"#N/A"}},{"$f":"IF('1. Ordersheet'!Q830=\"\",\"\",'1. Ordersheet'!Q830)","v":""},{"$f":"IF('1. Ordersheet'!R830=\"\",\"\",'1. Ordersheet'!R830)","v":""},{"$f":"IF('1. Ordersheet'!S830=\"\",\"\",'1. Ordersheet'!S830)","v":""},{"$f":"IF('1. Ordersheet'!V830=\"\",\"\",'1. Ordersheet'!V830)","v":""},{"$f":"IF('1. Ordersheet'!W830=\"\",\"\",'1. Ordersheet'!W830)","v":""},{"$f":"IF('1. Ordersheet'!X830=\"\",\"\",'1. Ordersheet'!X830)","v":""},{"$f":"IF('1. Ordersheet'!Y830=\"\",\"\",'1. Ordersheet'!Y830)","v":""},{"$f":"IF('1. Ordersheet'!Z830=\"\",\"\",'1. Ordersheet'!Z830)","v":""},{"$f":"IF('1. Ordersheet'!AA830=\"\",\"\",'1. Ordersheet'!AA830)","v":""},null,{"$f":"IF('1. Ordersheet'!AS830=\"\",\"\",'1. Ordersheet'!AS830)","v":""},{"$f":"IF('1. Ordersheet'!AT830=\"\",\"\",'1. Ordersheet'!AT830)","v":""},null,null,null,null,null,null,null,{"$f":"IF('1. Ordersheet'!AX830=\"\",\"\",'1. Ordersheet'!AX830)","v":""},{"$f":"IF('1. Ordersheet'!AY830=\"\",\"\",'1. Ordersheet'!AY830)","v":""},{"$f":"IF('1. Ordersheet'!AZ830=\"\",\"\",'1. Ordersheet'!AZ830)","v":""},{"$f":"IF('1. Ordersheet'!BA830=\"\",\"\",'1. Ordersheet'!BA830)","v":""},{"$f":"IF('1. Ordersheet'!BC830=\"\",\"\",'1. Ordersheet'!BC830)","v":""},{"$f":"IF('1. Ordersheet'!BD830=\"\",\"\",'1. Ordersheet'!BD830)","v":""},{"$f":"IF('1. Ordersheet'!BE830=\"\",\"\",'1. Ordersheet'!BE830)","v":""},{"$f":"IF('1. Ordersheet'!BF830=\"\",\"\",'1. Ordersheet'!BF830)","v":""},{"$f":"IF('1. Ordersheet'!BG830=\"\",\"\",'1. Ordersheet'!BG830)","v":"ZWO"},{"$f":"IF('1. Ordersheet'!BH830=\"\",\"\",'1. Ordersheet'!BH830)","v":""},{"$f":"IF('1. Ordersheet'!BI830=\"\",\"\",'1. Ordersheet'!BI830)","v":""},{"$f":"IF('1. Ordersheet'!BJ830=\"\",\"\",'1. Ordersheet'!BJ830)","v":""},{"$f":"IF('1. Ordersheet'!BK830=\"\",\"\",'1. Ordersheet'!BK830)","v":""},{"$f":"IF('1. Ordersheet'!BL830=\"\",\"\",'1. Ordersheet'!BL830)","v":""}]
[{"$f":"IF('1. Ordersheet'!F831=\"\",\"\",'1. Ordersheet'!F831)","v":""},{"$f":"IF('1. Ordersheet'!G831=\"\",\"\",'1. Ordersheet'!G831)","v":""},{"$f":"IF('1. Ordersheet'!H831=\"\",\"\",'1. Ordersheet'!H831)","v":""},{"$f":"IF('1. Ordersheet'!I831=\"\",\"\",'1. Ordersheet'!I831)","v":""},{"$f":"IF('1. Ordersheet'!J831=\"\",\"\",'1. Ordersheet'!J831)","v":""},{"$f":"IF('1. Ordersheet'!K831=\"\",\"\",'1. Ordersheet'!K831)","v":""},{"$f":"IF('1. Ordersheet'!L831=\"\",\"\",'1. Ordersheet'!L831)","v":""},{"$f":"IF('1. Ordersheet'!M831=\"\",\"\",'1. Ordersheet'!M831)","v":""},{"$f":"IF('1. Ordersheet'!N831=\"\",\"\",'1. Ordersheet'!N831)","v":""},{"$f":"IF('1. Ordersheet'!O831=\"\",\"\",'1. Ordersheet'!O831)","v":{"$error":"#N/A"}},{"$f":"IF('1. Ordersheet'!P831=\"\",\"\",'1. Ordersheet'!P831)","v":{"$error":"#N/A"}},{"$f":"IF('1. Ordersheet'!Q831=\"\",\"\",'1. Ordersheet'!Q831)","v":""},{"$f":"IF('1. Ordersheet'!R831=\"\",\"\",'1. Ordersheet'!R831)","v":""},{"$f":"IF('1. Ordersheet'!S831=\"\",\"\",'1. Ordersheet'!S831)","v":""},{"$f":"IF('1. Ordersheet'!V831=\"\",\"\",'1. Ordersheet'!V831)","v":""},{"$f":"IF('1. Ordersheet'!W831=\"\",\"\",'1. Ordersheet'!W831)","v":""},{"$f":"IF('1. Ordersheet'!X831=\"\",\"\",'1. Ordersheet'!X831)","v":""},{"$f":"IF('1. Ordersheet'!Y831=\"\",\"\",'1. Ordersheet'!Y831)","v":""},{"$f":"IF('1. Ordersheet'!Z831=\"\",\"\",'1. Ordersheet'!Z831)","v":""},{"$f":"IF('1. Ordersheet'!AA831=\"\",\"\",'1. Ordersheet'!AA831)","v":""},null,{"$f":"IF('1. Ordersheet'!AS831=\"\",\"\",'1. Ordersheet'!AS831)","v":""},{"$f":"IF('1. Ordersheet'!AT831=\"\",\"\",'1. Ordersheet'!AT831)","v":""},null,null,null,null,null,null,null,{"$f":"IF('1. Ordersheet'!AX831=\"\",\"\",'1. Ordersheet'!AX831)","v":""},{"$f":"IF('1. Ordersheet'!AY831=\"\",\"\",'1. Ordersheet'!AY831)","v":""},{"$f":"IF('1. Ordersheet'!AZ831=\"\",\"\",'1. Ordersheet'!AZ831)","v":""},{"$f":"IF('1. Ordersheet'!BA831=\"\",\"\",'1. Ordersheet'!BA831)","v":""},{"$f":"IF('1. Ordersheet'!BC831=\"\",\"\",'1. Ordersheet'!BC831)","v":""},{"$f":"IF('1. Ordersheet'!BD831=\"\",\"\",'1. Ordersheet'!BD831)","v":""},{"$f":"IF('1. Ordersheet'!BE831=\"\",\"\",'1. Ordersheet'!BE831)","v":""},{"$f":"IF('1. Ordersheet'!BF831=\"\",\"\",'1. Ordersheet'!BF831)","v":""},{"$f":"IF('1. Ordersheet'!BG831=\"\",\"\",'1. Ordersheet'!BG831)","v":"ZWO"},{"$f":"IF('1. Ordersheet'!BH831=\"\",\"\",'1. Ordersheet'!BH831)","v":""},{"$f":"IF('1. Ordersheet'!BI831=\"\",\"\",'1. Ordersheet'!BI831)","v":""},{"$f":"IF('1. Ordersheet'!BJ831=\"\",\"\",'1. Ordersheet'!BJ831)","v":""},{"$f":"IF('1. Ordersheet'!BK831=\"\",\"\",'1. Ordersheet'!BK831)","v":""},{"$f":"IF('1. Ordersheet'!BL831=\"\",\"\",'1. Ordersheet'!BL831)","v":""}]
[{"$f":"IF('1. Ordersheet'!F832=\"\",\"\",'1. Ordersheet'!F832)","v":""},{"$f":"IF('1. Ordersheet'!G832=\"\",\"\",'1. Ordersheet'!G832)","v":""},{"$f":"IF('1. Ordersheet'!H832=\"\",\"\",'1. Ordersheet'!H832)","v":""},{"$f":"IF('1. Ordersheet'!I832=\"\",\"\",'1. Ordersheet'!I832)","v":""},{"$f":"IF('1. Ordersheet'!J832=\"\",\"\",'1. Ordersheet'!J832)","v":""},{"$f":"IF('1. Ordersheet'!K832=\"\",\"\",'1. Ordersheet'!K832)","v":""},{"$f":"IF('1. Ordersheet'!L832=\"\",\"\",'1. Ordersheet'!L832)","v":""},{"$f":"IF('1. Ordersheet'!M832=\"\",\"\",'1. Ordersheet'!M832)","v":""},{"$f":"IF('1. Ordersheet'!N832=\"\",\"\",'1. Ordersheet'!N832)","v":""},{"$f":"IF('1. Ordersheet'!O832=\"\",\"\",'1. Ordersheet'!O832)","v":{"$error":"#N/A"}},{"$f":"IF('1. Ordersheet'!P832=\"\",\"\",'1. Ordersheet'!P832)","v":{"$error":"#N/A"}},{"$f":"IF('1. Ordersheet'!Q832=\"\",\"\",'1. Ordersheet'!Q832)","v":""},{"$f":"IF('1. Ordersheet'!R832=\"\",\"\",'1. Ordersheet'!R832)","v":""},{"$f":"IF('1. Ordersheet'!S832=\"\",\"\",'1. Ordersheet'!S832)","v":""},{"$f":"IF('1. Ordersheet'!V832=\"\",\"\",'1. Ordersheet'!V832)","v":""},{"$f":"IF('1. Ordersheet'!W832=\"\",\"\",'1. Ordersheet'!W832)","v":""},{"$f":"IF('1. Ordersheet'!X832=\"\",\"\",'1. Ordersheet'!X832)","v":""},{"$f":"IF('1. Ordersheet'!Y832=\"\",\"\",'1. Ordersheet'!Y832)","v":""},{"$f":"IF('1. Ordersheet'!Z832=\"\",\"\",'1. Ordersheet'!Z832)","v":""},{"$f":"IF('1. Ordersheet'!AA832=\"\",\"\",'1. Ordersheet'!AA832)","v":""},null,{"$f":"IF('1. Ordersheet'!AS832=\"\",\"\",'1. Ordersheet'!AS832)","v":""},{"$f":"IF('1. Ordersheet'!AT832=\"\",\"\",'1. Ordersheet'!AT832)","v":""},null,null,null,null,null,null,null,{"$f":"IF('1. Ordersheet'!AX832=\"\",\"\",'1. Ordersheet'!AX832)","v":""},{"$f":"IF('1. Ordersheet'!AY832=\"\",\"\",'1. Ordersheet'!AY832)","v":""},{"$f":"IF('1. Ordersheet'!AZ832=\"\",\"\",'1. Ordersheet'!AZ832)","v":""},{"$f":"IF('1. Ordersheet'!BA832=\"\",\"\",'1. Ordersheet'!BA832)","v":""},{"$f":"IF('1. Ordersheet'!BC832=\"\",\"\",'1. Ordersheet'!BC832)","v":""},{"$f":"IF('1. Ordersheet'!BD832=\"\",\"\",'1. Ordersheet'!BD832)","v":""},{"$f":"IF('1. Ordersheet'!BE832=\"\",\"\",'1. Ordersheet'!BE832)","v":""},{"$f":"IF('1. Ordersheet'!BF832=\"\",\"\",'1. Ordersheet'!BF832)","v":""},{"$f":"IF('1. Ordersheet'!BG832=\"\",\"\",'1. Ordersheet'!BG832)","v":"ZWO"},{"$f":"IF('1. Ordersheet'!BH832=\"\",\"\",'1. Ordersheet'!BH832)","v":""},{"$f":"IF('1. Ordersheet'!BI832=\"\",\"\",'1. Ordersheet'!BI832)","v":""},{"$f":"IF('1. Ordersheet'!BJ832=\"\",\"\",'1. Ordersheet'!BJ832)","v":""},{"$f":"IF('1. Ordersheet'!BK832=\"\",\"\",'1. Ordersheet'!BK832)","v":""},{"$f":"IF('1. Ordersheet'!BL832=\"\",\"\",'1. Ordersheet'!BL832)","v":""}]
[{"$f":"IF('1. Ordersheet'!F833=\"\",\"\",'1. Ordersheet'!F833)","v":""},{"$f":"IF('1. Ordersheet'!G833=\"\",\"\",'1. Ordersheet'!G833)","v":""},{"$f":"IF('1. Ordersheet'!H833=\"\",\"\",'1. Ordersheet'!H833)","v":""},{"$f":"IF('1. Ordersheet'!I833=\"\",\"\",'1. Ordersheet'!I833)","v":""},{"$f":"IF('1. Ordersheet'!J833=\"\",\"\",'1. Ordersheet'!J833)","v":""},{"$f":"IF('1. Ordersheet'!K833=\"\",\"\",'1. Ordersheet'!K833)","v":""},{"$f":"IF('1. Ordersheet'!L833=\"\",\"\",'1. Ordersheet'!L833)","v":""},{"$f":"IF('1. Ordersheet'!M833=\"\",\"\",'1. Ordersheet'!M833)","v":""},{"$f":"IF('1. Ordersheet'!N833=\"\",\"\",'1. Ordersheet'!N833)","v":""},{"$f":"IF('1. Ordersheet'!O833=\"\",\"\",'1. Ordersheet'!O833)","v":{"$error":"#N/A"}},{"$f":"IF('1. Ordersheet'!P833=\"\",\"\",'1. Ordersheet'!P833)","v":{"$error":"#N/A"}},{"$f":"IF('1. Ordersheet'!Q833=\"\",\"\",'1. Ordersheet'!Q833)","v":""},{"$f":"IF('1. Ordersheet'!R833=\"\",\"\",'1. Ordersheet'!R833)","v":""},{"$f":"IF('1. Ordersheet'!S833=\"\",\"\",'1. Ordersheet'!S833)","v":""},{"$f":"IF('1. Ordersheet'!V833=\"\",\"\",'1. Ordersheet'!V833)","v":""},{"$f":"IF('1. Ordersheet'!W833=\"\",\"\",'1. Ordersheet'!W833)","v":""},{"$f":"IF('1. Ordersheet'!X833=\"\",\"\",'1. Ordersheet'!X833)","v":""},{"$f":"IF('1. Ordersheet'!Y833=\"\",\"\",'1. Ordersheet'!Y833)","v":""},{"$f":"IF('1. Ordersheet'!Z833=\"\",\"\",'1. Ordersheet'!Z833)","v":""},{"$f":"IF('1. Ordersheet'!AA833=\"\",\"\",'1. Ordersheet'!AA833)","v":""},null,{"$f":"IF('1. Ordersheet'!AS833=\"\",\"\",'1. Ordersheet'!AS833)","v":""},{"$f":"IF('1. Ordersheet'!AT833=\"\",\"\",'1. Ordersheet'!AT833)","v":""},null,null,null,null,null,null,null,{"$f":"IF('1. Ordersheet'!AX833=\"\",\"\",'1. Ordersheet'!AX833)","v":""},{"$f":"IF('1. Ordersheet'!AY833=\"\",\"\",'1. Ordersheet'!AY833)","v":""},{"$f":"IF('1. Ordersheet'!AZ833=\"\",\"\",'1. Ordersheet'!AZ833)","v":""},{"$f":"IF('1. Ordersheet'!BA833=\"\",\"\",'1. Ordersheet'!BA833)","v":""},{"$f":"IF('1. Ordersheet'!BC833=\"\",\"\",'1. Ordersheet'!BC833)","v":""},{"$f":"IF('1. Ordersheet'!BD833=\"\",\"\",'1. Ordersheet'!BD833)","v":""},{"$f":"IF('1. Ordersheet'!BE833=\"\",\"\",'1. Ordersheet'!BE833)","v":""},{"$f":"IF('1. Ordersheet'!BF833=\"\",\"\",'1. Ordersheet'!BF833)","v":""},{"$f":"IF('1. Ordersheet'!BG833=\"\",\"\",'1. Ordersheet'!BG833)","v":"ZWO"},{"$f":"IF('1. Ordersheet'!BH833=\"\",\"\",'1. Ordersheet'!BH833)","v":""},{"$f":"IF('1. Ordersheet'!BI833=\"\",\"\",'1. Ordersheet'!BI833)","v":""},{"$f":"IF('1. Ordersheet'!BJ833=\"\",\"\",'1. Ordersheet'!BJ833)","v":""},{"$f":"IF('1. Ordersheet'!BK833=\"\",\"\",'1. Ordersheet'!BK833)","v":""},{"$f":"IF('1. Ordersheet'!BL833=\"\",\"\",'1. Ordersheet'!BL833)","v":""}]
[{"$f":"IF('1. Ordersheet'!F834=\"\",\"\",'1. Ordersheet'!F834)","v":""},{"$f":"IF('1. Ordersheet'!G834=\"\",\"\",'1. Ordersheet'!G834)","v":""},{"$f":"IF('1. Ordersheet'!H834=\"\",\"\",'1. Ordersheet'!H834)","v":""},{"$f":"IF('1. Ordersheet'!I834=\"\",\"\",'1. Ordersheet'!I834)","v":""},{"$f":"IF('1. Ordersheet'!J834=\"\",\"\",'1. Ordersheet'!J834)","v":""},{"$f":"IF('1. Ordersheet'!K834=\"\",\"\",'1. Ordersheet'!K834)","v":""},{"$f":"IF('1. Ordersheet'!L834=\"\",\"\",'1. Ordersheet'!L834)","v":""},{"$f":"IF('1. Ordersheet'!M834=\"\",\"\",'1. Ordersheet'!M834)","v":""},{"$f":"IF('1. Ordersheet'!N834=\"\",\"\",'1. Ordersheet'!N834)","v":""},{"$f":"IF('1. Ordersheet'!O834=\"\",\"\",'1. Ordersheet'!O834)","v":{"$error":"#N/A"}},{"$f":"IF('1. Ordersheet'!P834=\"\",\"\",'1. Ordersheet'!P834)","v":{"$error":"#N/A"}},{"$f":"IF('1. Ordersheet'!Q834=\"\",\"\",'1. Ordersheet'!Q834)","v":""},{"$f":"IF('1. Ordersheet'!R834=\"\",\"\",'1. Ordersheet'!R834)","v":""},{"$f":"IF('1. Ordersheet'!S834=\"\",\"\",'1. Ordersheet'!S834)","v":""},{"$f":"IF('1. Ordersheet'!V834=\"\",\"\",'1. Ordersheet'!V834)","v":""},{"$f":"IF('1. Ordersheet'!W834=\"\",\"\",'1. Ordersheet'!W834)","v":""},{"$f":"IF('1. Ordersheet'!X834=\"\",\"\",'1. Ordersheet'!X834)","v":""},{"$f":"IF('1. Ordersheet'!Y834=\"\",\"\",'1. Ordersheet'!Y834)","v":""},{"$f":"IF('1. Ordersheet'!Z834=\"\",\"\",'1. Ordersheet'!Z834)","v":""},{"$f":"IF('1. Ordersheet'!AA834=\"\",\"\",'1. Ordersheet'!AA834)","v":""},null,{"$f":"IF('1. Ordersheet'!AS834=\"\",\"\",'1. Ordersheet'!AS834)","v":""},{"$f":"IF('1. Ordersheet'!AT834=\"\",\"\",'1. Ordersheet'!AT834)","v":""},null,null,null,null,null,null,null,{"$f":"IF('1. Ordersheet'!AX834=\"\",\"\",'1. Ordersheet'!AX834)","v":""},{"$f":"IF('1. Ordersheet'!AY834=\"\",\"\",'1. Ordersheet'!AY834)","v":""},{"$f":"IF('1. Ordersheet'!AZ834=\"\",\"\",'1. Ordersheet'!AZ834)","v":""},{"$f":"IF('1. Ordersheet'!BA834=\"\",\"\",'1. Ordersheet'!BA834)","v":""},{"$f":"IF('1. Ordersheet'!BC834=\"\",\"\",'1. Ordersheet'!BC834)","v":""},{"$f":"IF('1. Ordersheet'!BD834=\"\",\"\",'1. Ordersheet'!BD834)","v":""},{"$f":"IF('1. Ordersheet'!BE834=\"\",\"\",'1. Ordersheet'!BE834)","v":""},{"$f":"IF('1. Ordersheet'!BF834=\"\",\"\",'1. Ordersheet'!BF834)","v":""},{"$f":"IF('1. Ordersheet'!BG834=\"\",\"\",'1. Ordersheet'!BG834)","v":"ZWO"},{"$f":"IF('1. Ordersheet'!BH834=\"\",\"\",'1. Ordersheet'!BH834)","v":""},{"$f":"IF('1. Ordersheet'!BI834=\"\",\"\",'1. Ordersheet'!BI834)","v":""},{"$f":"IF('1. Ordersheet'!BJ834=\"\",\"\",'1. Ordersheet'!BJ834)","v":""},{"$f":"IF('1. Ordersheet'!BK834=\"\",\"\",'1. Ordersheet'!BK834)","v":""},{"$f":"IF('1. Ordersheet'!BL834=\"\",\"\",'1. Ordersheet'!BL834)","v":""}]
[{"$f":"IF('1. Ordersheet'!F835=\"\",\"\",'1. Ordersheet'!F835)","v":""},{"$f":"IF('1. Ordersheet'!G835=\"\",\"\",'1. Ordersheet'!G835)","v":""},{"$f":"IF('1. Ordersheet'!H835=\"\",\"\",'1. Ordersheet'!H835)","v":""},{"$f":"IF('1. Ordersheet'!I835=\"\",\"\",'1. Ordersheet'!I835)","v":""},{"$f":"IF('1. Ordersheet'!J835=\"\",\"\",'1. Ordersheet'!J835)","v":""},{"$f":"IF('1. Ordersheet'!K835=\"\",\"\",'1. Ordersheet'!K835)","v":""},{"$f":"IF('1. Ordersheet'!L835=\"\",\"\",'1. Ordersheet'!L835)","v":""},{"$f":"IF('1. Ordersheet'!M835=\"\",\"\",'1. Ordersheet'!M835)","v":""},{"$f":"IF('1. Ordersheet'!N835=\"\",\"\",'1. Ordersheet'!N835)","v":""},{"$f":"IF('1. Ordersheet'!O835=\"\",\"\",'1. Ordersheet'!O835)","v":{"$error":"#N/A"}},{"$f":"IF('1. Ordersheet'!P835=\"\",\"\",'1. Ordersheet'!P835)","v":{"$error":"#N/A"}},{"$f":"IF('1. Ordersheet'!Q835=\"\",\"\",'1. Ordersheet'!Q835)","v":""},{"$f":"IF('1. Ordersheet'!R835=\"\",\"\",'1. Ordersheet'!R835)","v":""},{"$f":"IF('1. Ordersheet'!S835=\"\",\"\",'1. Ordersheet'!S835)","v":""},{"$f":"IF('1. Ordersheet'!V835=\"\",\"\",'1. Ordersheet'!V835)","v":""},{"$f":"IF('1. Ordersheet'!W835=\"\",\"\",'1. Ordersheet'!W835)","v":""},{"$f":"IF('1. Ordersheet'!X835=\"\",\"\",'1. Ordersheet'!X835)","v":""},{"$f":"IF('1. Ordersheet'!Y835=\"\",\"\",'1. Ordersheet'!Y835)","v":""},{"$f":"IF('1. Ordersheet'!Z835=\"\",\"\",'1. Ordersheet'!Z835)","v":""},{"$f":"IF('1. Ordersheet'!AA835=\"\",\"\",'1. Ordersheet'!AA835)","v":""},null,{"$f":"IF('1. Ordersheet'!AS835=\"\",\"\",'1. Ordersheet'!AS835)","v":""},{"$f":"IF('1. Ordersheet'!AT835=\"\",\"\",'1. Ordersheet'!AT835)","v":""},null,null,null,null,null,null,null,{"$f":"IF('1. Ordersheet'!AX835=\"\",\"\",'1. Ordersheet'!AX835)","v":""},{"$f":"IF('1. Ordersheet'!AY835=\"\",\"\",'1. Ordersheet'!AY835)","v":""},{"$f":"IF('1. Ordersheet'!AZ835=\"\",\"\",'1. Ordersheet'!AZ835)","v":""},{"$f":"IF('1. Ordersheet'!BA835=\"\",\"\",'1. Ordersheet'!BA835)","v":""},{"$f":"IF('1. Ordersheet'!BC835=\"\",\"\",'1. Ordersheet'!BC835)","v":""},{"$f":"IF('1. Ordersheet'!BD835=\"\",\"\",'1. Ordersheet'!BD835)","v":""},{"$f":"IF('1. Ordersheet'!BE835=\"\",\"\",'1. Ordersheet'!BE835)","v":""},{"$f":"IF('1. Ordersheet'!BF835=\"\",\"\",'1. Ordersheet'!BF835)","v":""},{"$f":"IF('1. Ordersheet'!BG835=\"\",\"\",'1. Ordersheet'!BG835)","v":"ZWO"},{"$f":"IF('1. Ordersheet'!BH835=\"\",\"\",'1. Ordersheet'!BH835)","v":""},{"$f":"IF('1. Ordersheet'!BI835=\"\",\"\",'1. Ordersheet'!BI835)","v":""},{"$f":"IF('1. Ordersheet'!BJ835=\"\",\"\",'1. Ordersheet'!BJ835)","v":""},{"$f":"IF('1. Ordersheet'!BK835=\"\",\"\",'1. Ordersheet'!BK835)","v":""},{"$f":"IF('1. Ordersheet'!BL835=\"\",\"\",'1. Ordersheet'!BL835)","v":""}]
[{"$f":"IF('1. Ordersheet'!F836=\"\",\"\",'1. Ordersheet'!F836)","v":""},{"$f":"IF('1. Ordersheet'!G836=\"\",\"\",'1. Ordersheet'!G836)","v":""},{"$f":"IF('1. Ordersheet'!H836=\"\",\"\",'1. Ordersheet'!H836)","v":""},{"$f":"IF('1. Ordersheet'!I836=\"\",\"\",'1. Ordersheet'!I836)","v":""},{"$f":"IF('1. Ordersheet'!J836=\"\",\"\",'1. Ordersheet'!J836)","v":""},{"$f":"IF('1. Ordersheet'!K836=\"\",\"\",'1. Ordersheet'!K836)","v":""},{"$f":"IF('1. Ordersheet'!L836=\"\",\"\",'1. Ordersheet'!L836)","v":""},{"$f":"IF('1. Ordersheet'!M836=\"\",\"\",'1. Ordersheet'!M836)","v":""},{"$f":"IF('1. Ordersheet'!N836=\"\",\"\",'1. Ordersheet'!N836)","v":""},{"$f":"IF('1. Ordersheet'!O836=\"\",\"\",'1. Ordersheet'!O836)","v":{"$error":"#N/A"}},{"$f":"IF('1. Ordersheet'!P836=\"\",\"\",'1. Ordersheet'!P836)","v":{"$error":"#N/A"}},{"$f":"IF('1. Ordersheet'!Q836=\"\",\"\",'1. Ordersheet'!Q836)","v":""},{"$f":"IF('1. Ordersheet'!R836=\"\",\"\",'1. Ordersheet'!R836)","v":""},{"$f":"IF('1. Ordersheet'!S836=\"\",\"\",'1. Ordersheet'!S836)","v":""},{"$f":"IF('1. Ordersheet'!V836=\"\",\"\",'1. Ordersheet'!V836)","v":""},{"$f":"IF('1. Ordersheet'!W836=\"\",\"\",'1. Ordersheet'!W836)","v":""},{"$f":"IF('1. Ordersheet'!X836=\"\",\"\",'1. Ordersheet'!X836)","v":""},{"$f":"IF('1. Ordersheet'!Y836=\"\",\"\",'1. Ordersheet'!Y836)","v":""},{"$f":"IF('1. Ordersheet'!Z836=\"\",\"\",'1. Ordersheet'!Z836)","v":""},{"$f":"IF('1. Ordersheet'!AA836=\"\",\"\",'1. Ordersheet'!AA836)","v":""},null,{"$f":"IF('1. Ordersheet'!AS836=\"\",\"\",'1. Ordersheet'!AS836)","v":""},{"$f":"IF('1. Ordersheet'!AT836=\"\",\"\",'1. Ordersheet'!AT836)","v":""},null,null,null,null,null,null,null,{"$f":"IF('1. Ordersheet'!AX836=\"\",\"\",'1. Ordersheet'!AX836)","v":""},{"$f":"IF('1. Ordersheet'!AY836=\"\",\"\",'1. Ordersheet'!AY836)","v":""},{"$f":"IF('1. Ordersheet'!AZ836=\"\",\"\",'1. Ordersheet'!AZ836)","v":""},{"$f":"IF('1. Ordersheet'!BA836=\"\",\"\",'1. Ordersheet'!BA836)","v":""},{"$f":"IF('1. Ordersheet'!BC836=\"\",\"\",'1. Ordersheet'!BC836)","v":""},{"$f":"IF('1. Ordersheet'!BD836=\"\",\"\",'1. Ordersheet'!BD836)","v":""},{"$f":"IF('1. Ordersheet'!BE836=\"\",\"\",'1. Ordersheet'!BE836)","v":""},{"$f":"IF('1. Ordersheet'!BF836=\"\",\"\",'1. Ordersheet'!BF836)","v":""},{"$f":"IF('1. Ordersheet'!BG836=\"\",\"\",'1. Ordersheet'!BG836)","v":"ZWO"},{"$f":"IF('1. Ordersheet'!BH836=\"\",\"\",'1. Ordersheet'!BH836)","v":""},{"$f":"IF('1. Ordersheet'!BI836=\"\",\"\",'1. Ordersheet'!BI836)","v":""},{"$f":"IF('1. Ordersheet'!BJ836=\"\",\"\",'1. Ordersheet'!BJ836)","v":""},{"$f":"IF('1. Ordersheet'!BK836=\"\",\"\",'1. Ordersheet'!BK836)","v":""},{"$f":"IF('1. Ordersheet'!BL836=\"\",\"\",'1. Ordersheet'!BL836)","v":""}]
[{"$f":"IF('1. Ordersheet'!F837=\"\",\"\",'1. Ordersheet'!F837)","v":""},{"$f":"IF('1. Ordersheet'!G837=\"\",\"\",'1. Ordersheet'!G837)","v":""},{"$f":"IF('1. Ordersheet'!H837=\"\",\"\",'1. Ordersheet'!H837)","v":""},{"$f":"IF('1. Ordersheet'!I837=\"\",\"\",'1. Ordersheet'!I837)","v":""},{"$f":"IF('1. Ordersheet'!J837=\"\",\"\",'1. Ordersheet'!J837)","v":""},{"$f":"IF('1. Ordersheet'!K837=\"\",\"\",'1. Ordersheet'!K837)","v":""},{"$f":"IF('1. Ordersheet'!L837=\"\",\"\",'1. Ordersheet'!L837)","v":""},{"$f":"IF('1. Ordersheet'!M837=\"\",\"\",'1. Ordersheet'!M837)","v":""},{"$f":"IF('1. Ordersheet'!N837=\"\",\"\",'1. Ordersheet'!N837)","v":""},{"$f":"IF('1. Ordersheet'!O837=\"\",\"\",'1. Ordersheet'!O837)","v":{"$error":"#N/A"}},{"$f":"IF('1. Ordersheet'!P837=\"\",\"\",'1. Ordersheet'!P837)","v":{"$error":"#N/A"}},{"$f":"IF('1. Ordersheet'!Q837=\"\",\"\",'1. Ordersheet'!Q837)","v":""},{"$f":"IF('1. Ordersheet'!R837=\"\",\"\",'1. Ordersheet'!R837)","v":""},{"$f":"IF('1. Ordersheet'!S837=\"\",\"\",'1. Ordersheet'!S837)","v":""},{"$f":"IF('1. Ordersheet'!V837=\"\",\"\",'1. Ordersheet'!V837)","v":""},{"$f":"IF('1. Ordersheet'!W837=\"\",\"\",'1. Ordersheet'!W837)","v":""},{"$f":"IF('1. Ordersheet'!X837=\"\",\"\",'1. Ordersheet'!X837)","v":""},{"$f":"IF('1. Ordersheet'!Y837=\"\",\"\",'1. Ordersheet'!Y837)","v":""},{"$f":"IF('1. Ordersheet'!Z837=\"\",\"\",'1. Ordersheet'!Z837)","v":""},{"$f":"IF('1. Ordersheet'!AA837=\"\",\"\",'1. Ordersheet'!AA837)","v":""},null,{"$f":"IF('1. Ordersheet'!AS837=\"\",\"\",'1. Ordersheet'!AS837)","v":""},{"$f":"IF('1. Ordersheet'!AT837=\"\",\"\",'1. Ordersheet'!AT837)","v":""},null,null,null,null,null,null,null,{"$f":"IF('1. Ordersheet'!AX837=\"\",\"\",'1. Ordersheet'!AX837)","v":""},{"$f":"IF('1. Ordersheet'!AY837=\"\",\"\",'1. Ordersheet'!AY837)","v":""},{"$f":"IF('1. Ordersheet'!AZ837=\"\",\"\",'1. Ordersheet'!AZ837)","v":""},{"$f":"IF('1. Ordersheet'!BA837=\"\",\"\",'1. Ordersheet'!BA837)","v":""},{"$f":"IF('1. Ordersheet'!BC837=\"\",\"\",'1. Ordersheet'!BC837)","v":""},{"$f":"IF('1. Ordersheet'!BD837=\"\",\"\",'1. Ordersheet'!BD837)","v":""},{"$f":"IF('1. Ordersheet'!BE837=\"\",\"\",'1. Ordersheet'!BE837)","v":""},{"$f":"IF('1. Ordersheet'!BF837=\"\",\"\",'1. Ordersheet'!BF837)","v":""},{"$f":"IF('1. Ordersheet'!BG837=\"\",\"\",'1. Ordersheet'!BG837)","v":"ZWO"},{"$f":"IF('1. Ordersheet'!BH837=\"\",\"\",'1. Ordersheet'!BH837)","v":""},{"$f":"IF('1. Ordersheet'!BI837=\"\",\"\",'1. Ordersheet'!BI837)","v":""},{"$f":"IF('1. Ordersheet'!BJ837=\"\",\"\",'1. Ordersheet'!BJ837)","v":""},{"$f":"IF('1. Ordersheet'!BK837=\"\",\"\",'1. Ordersheet'!BK837)","v":""},{"$f":"IF('1. Ordersheet'!BL837=\"\",\"\",'1. Ordersheet'!BL837)","v":""}]
[{"$f":"IF('1. Ordersheet'!F838=\"\",\"\",'1. Ordersheet'!F838)","v":""},{"$f":"IF('1. Ordersheet'!G838=\"\",\"\",'1. Ordersheet'!G838)","v":""},{"$f":"IF('1. Ordersheet'!H838=\"\",\"\",'1. Ordersheet'!H838)","v":""},{"$f":"IF('1. Ordersheet'!I838=\"\",\"\",'1. Ordersheet'!I838)","v":""},{"$f":"IF('1. Ordersheet'!J838=\"\",\"\",'1. Ordersheet'!J838)","v":""},{"$f":"IF('1. Ordersheet'!K838=\"\",\"\",'1. Ordersheet'!K838)","v":""},{"$f":"IF('1. Ordersheet'!L838=\"\",\"\",'1. Ordersheet'!L838)","v":""},{"$f":"IF('1. Ordersheet'!M838=\"\",\"\",'1. Ordersheet'!M838)","v":""},{"$f":"IF('1. Ordersheet'!N838=\"\",\"\",'1. Ordersheet'!N838)","v":""},{"$f":"IF('1. Ordersheet'!O838=\"\",\"\",'1. Ordersheet'!O838)","v":{"$error":"#N/A"}},{"$f":"IF('1. Ordersheet'!P838=\"\",\"\",'1. Ordersheet'!P838)","v":{"$error":"#N/A"}},{"$f":"IF('1. Ordersheet'!Q838=\"\",\"\",'1. Ordersheet'!Q838)","v":""},{"$f":"IF('1. Ordersheet'!R838=\"\",\"\",'1. Ordersheet'!R838)","v":""},{"$f":"IF('1. Ordersheet'!S838=\"\",\"\",'1. Ordersheet'!S838)","v":""},{"$f":"IF('1. Ordersheet'!V838=\"\",\"\",'1. Ordersheet'!V838)","v":""},{"$f":"IF('1. Ordersheet'!W838=\"\",\"\",'1. Ordersheet'!W838)","v":""},{"$f":"IF('1. Ordersheet'!X838=\"\",\"\",'1. Ordersheet'!X838)","v":""},{"$f":"IF('1. Ordersheet'!Y838=\"\",\"\",'1. Ordersheet'!Y838)","v":""},{"$f":"IF('1. Ordersheet'!Z838=\"\",\"\",'1. Ordersheet'!Z838)","v":""},{"$f":"IF('1. Ordersheet'!AA838=\"\",\"\",'1. Ordersheet'!AA838)","v":""},null,{"$f":"IF('1. Ordersheet'!AS838=\"\",\"\",'1. Ordersheet'!AS838)","v":""},{"$f":"IF('1. Ordersheet'!AT838=\"\",\"\",'1. Ordersheet'!AT838)","v":""},null,null,null,null,null,null,null,{"$f":"IF('1. Ordersheet'!AX838=\"\",\"\",'1. Ordersheet'!AX838)","v":""},{"$f":"IF('1. Ordersheet'!AY838=\"\",\"\",'1. Ordersheet'!AY838)","v":""},{"$f":"IF('1. Ordersheet'!AZ838=\"\",\"\",'1. Ordersheet'!AZ838)","v":""},{"$f":"IF('1. Ordersheet'!BA838=\"\",\"\",'1. Ordersheet'!BA838)","v":""},{"$f":"IF('1. Ordersheet'!BC838=\"\",\"\",'1. Ordersheet'!BC838)","v":""},{"$f":"IF('1. Ordersheet'!BD838=\"\",\"\",'1. Ordersheet'!BD838)","v":""},{"$f":"IF('1. Ordersheet'!BE838=\"\",\"\",'1. Ordersheet'!BE838)","v":""},{"$f":"IF('1. Ordersheet'!BF838=\"\",\"\",'1. Ordersheet'!BF838)","v":""},{"$f":"IF('1. Ordersheet'!BG838=\"\",\"\",'1. Ordersheet'!BG838)","v":"ZWO"},{"$f":"IF('1. Ordersheet'!BH838=\"\",\"\",'1. Ordersheet'!BH838)","v":""},{"$f":"IF('1. Ordersheet'!BI838=\"\",\"\",'1. Ordersheet'!BI838)","v":""},{"$f":"IF('1. Ordersheet'!BJ838=\"\",\"\",'1. Ordersheet'!BJ838)","v":""},{"$f":"IF('1. Ordersheet'!BK838=\"\",\"\",'1. Ordersheet'!BK838)","v":""},{"$f":"IF('1. Ordersheet'!BL838=\"\",\"\",'1. Ordersheet'!BL838)","v":""}]
[{"$f":"IF('1. Ordersheet'!F839=\"\",\"\",'1. Ordersheet'!F839)","v":""},{"$f":"IF('1. Ordersheet'!G839=\"\",\"\",'1. Ordersheet'!G839)","v":""},{"$f":"IF('1. Ordersheet'!H839=\"\",\"\",'1. Ordersheet'!H839)","v":""},{"$f":"IF('1. Ordersheet'!I839=\"\",\"\",'1. Ordersheet'!I839)","v":""},{"$f":"IF('1. Ordersheet'!J839=\"\",\"\",'1. Ordersheet'!J839)","v":""},{"$f":"IF('1. Ordersheet'!K839=\"\",\"\",'1. Ordersheet'!K839)","v":""},{"$f":"IF('1. Ordersheet'!L839=\"\",\"\",'1. Ordersheet'!L839)","v":""},{"$f":"IF('1. Ordersheet'!M839=\"\",\"\",'1. Ordersheet'!M839)","v":""},{"$f":"IF('1. Ordersheet'!N839=\"\",\"\",'1. Ordersheet'!N839)","v":""},{"$f":"IF('1. Ordersheet'!O839=\"\",\"\",'1. Ordersheet'!O839)","v":{"$error":"#N/A"}},{"$f":"IF('1. Ordersheet'!P839=\"\",\"\",'1. Ordersheet'!P839)","v":{"$error":"#N/A"}},{"$f":"IF('1. Ordersheet'!Q839=\"\",\"\",'1. Ordersheet'!Q839)","v":""},{"$f":"IF('1. Ordersheet'!R839=\"\",\"\",'1. Ordersheet'!R839)","v":""},{"$f":"IF('1. Ordersheet'!S839=\"\",\"\",'1. Ordersheet'!S839)","v":""},{"$f":"IF('1. Ordersheet'!V839=\"\",\"\",'1. Ordersheet'!V839)","v":""},{"$f":"IF('1. Ordersheet'!W839=\"\",\"\",'1. Ordersheet'!W839)","v":""},{"$f":"IF('1. Ordersheet'!X839=\"\",\"\",'1. Ordersheet'!X839)","v":""},{"$f":"IF('1. Ordersheet'!Y839=\"\",\"\",'1. Ordersheet'!Y839)","v":""},{"$f":"IF('1. Ordersheet'!Z839=\"\",\"\",'1. Ordersheet'!Z839)","v":""},{"$f":"IF('1. Ordersheet'!AA839=\"\",\"\",'1. Ordersheet'!AA839)","v":""},null,{"$f":"IF('1. Ordersheet'!AS839=\"\",\"\",'1. Ordersheet'!AS839)","v":""},{"$f":"IF('1. Ordersheet'!AT839=\"\",\"\",'1. Ordersheet'!AT839)","v":""},null,null,null,null,null,null,null,{"$f":"IF('1. Ordersheet'!AX839=\"\",\"\",'1. Ordersheet'!AX839)","v":""},{"$f":"IF('1. Ordersheet'!AY839=\"\",\"\",'1. Ordersheet'!AY839)","v":""},{"$f":"IF('1. Ordersheet'!AZ839=\"\",\"\",'1. Ordersheet'!AZ839)","v":""},{"$f":"IF('1. Ordersheet'!BA839=\"\",\"\",'1. Ordersheet'!BA839)","v":""},{"$f":"IF('1. Ordersheet'!BC839=\"\",\"\",'1. Ordersheet'!BC839)","v":""},{"$f":"IF('1. Ordersheet'!BD839=\"\",\"\",'1. Ordersheet'!BD839)","v":""},{"$f":"IF('1. Ordersheet'!BE839=\"\",\"\",'1. Ordersheet'!BE839)","v":""},{"$f":"IF('1. Ordersheet'!BF839=\"\",\"\",'1. Ordersheet'!BF839)","v":""},{"$f":"IF('1. Ordersheet'!BG839=\"\",\"\",'1. Ordersheet'!BG839)","v":"ZWO"},{"$f":"IF('1. Ordersheet'!BH839=\"\",\"\",'1. Ordersheet'!BH839)","v":""},{"$f":"IF('1. Ordersheet'!BI839=\"\",\"\",'1. Ordersheet'!BI839)","v":""},{"$f":"IF('1. Ordersheet'!BJ839=\"\",\"\",'1. Ordersheet'!BJ839)","v":""},{"$f":"IF('1. Ordersheet'!BK839=\"\",\"\",'1. Ordersheet'!BK839)","v":""},{"$f":"IF('1. Ordersheet'!BL839=\"\",\"\",'1. Ordersheet'!BL839)","v":""}]
[{"$f":"IF('1. Ordersheet'!F840=\"\",\"\",'1. Ordersheet'!F840)","v":""},{"$f":"IF('1. Ordersheet'!G840=\"\",\"\",'1. Ordersheet'!G840)","v":""},{"$f":"IF('1. Ordersheet'!H840=\"\",\"\",'1. Ordersheet'!H840)","v":""},{"$f":"IF('1. Ordersheet'!I840=\"\",\"\",'1. Ordersheet'!I840)","v":""},{"$f":"IF('1. Ordersheet'!J840=\"\",\"\",'1. Ordersheet'!J840)","v":""},{"$f":"IF('1. Ordersheet'!K840=\"\",\"\",'1. Ordersheet'!K840)","v":""},{"$f":"IF('1. Ordersheet'!L840=\"\",\"\",'1. Ordersheet'!L840)","v":""},{"$f":"IF('1. Ordersheet'!M840=\"\",\"\",'1. Ordersheet'!M840)","v":""},{"$f":"IF('1. Ordersheet'!N840=\"\",\"\",'1. Ordersheet'!N840)","v":""},{"$f":"IF('1. Ordersheet'!O840=\"\",\"\",'1. Ordersheet'!O840)","v":{"$error":"#N/A"}},{"$f":"IF('1. Ordersheet'!P840=\"\",\"\",'1. Ordersheet'!P840)","v":{"$error":"#N/A"}},{"$f":"IF('1. Ordersheet'!Q840=\"\",\"\",'1. Ordersheet'!Q840)","v":""},{"$f":"IF('1. Ordersheet'!R840=\"\",\"\",'1. Ordersheet'!R840)","v":""},{"$f":"IF('1. Ordersheet'!S840=\"\",\"\",'1. Ordersheet'!S840)","v":""},{"$f":"IF('1. Ordersheet'!V840=\"\",\"\",'1. Ordersheet'!V840)","v":""},{"$f":"IF('1. Ordersheet'!W840=\"\",\"\",'1. Ordersheet'!W840)","v":""},{"$f":"IF('1. Ordersheet'!X840=\"\",\"\",'1. Ordersheet'!X840)","v":""},{"$f":"IF('1. Ordersheet'!Y840=\"\",\"\",'1. Ordersheet'!Y840)","v":""},{"$f":"IF('1. Ordersheet'!Z840=\"\",\"\",'1. Ordersheet'!Z840)","v":""},{"$f":"IF('1. Ordersheet'!AA840=\"\",\"\",'1. Ordersheet'!AA840)","v":""},null,{"$f":"IF('1. Ordersheet'!AS840=\"\",\"\",'1. Ordersheet'!AS840)","v":""},{"$f":"IF('1. Ordersheet'!AT840=\"\",\"\",'1. Ordersheet'!AT840)","v":""},null,null,null,null,null,null,null,{"$f":"IF('1. Ordersheet'!AX840=\"\",\"\",'1. Ordersheet'!AX840)","v":""},{"$f":"IF('1. Ordersheet'!AY840=\"\",\"\",'1. Ordersheet'!AY840)","v":""},{"$f":"IF('1. Ordersheet'!AZ840=\"\",\"\",'1. Ordersheet'!AZ840)","v":""},{"$f":"IF('1. Ordersheet'!BA840=\"\",\"\",'1. Ordersheet'!BA840)","v":""},{"$f":"IF('1. Ordersheet'!BC840=\"\",\"\",'1. Ordersheet'!BC840)","v":""},{"$f":"IF('1. Ordersheet'!BD840=\"\",\"\",'1. Ordersheet'!BD840)","v":""},{"$f":"IF('1. Ordersheet'!BE840=\"\",\"\",'1. Ordersheet'!BE840)","v":""},{"$f":"IF('1. Ordersheet'!BF840=\"\",\"\",'1. Ordersheet'!BF840)","v":""},{"$f":"IF('1. Ordersheet'!BG840=\"\",\"\",'1. Ordersheet'!BG840)","v":"ZWO"},{"$f":"IF('1. Ordersheet'!BH840=\"\",\"\",'1. Ordersheet'!BH840)","v":""},{"$f":"IF('1. Ordersheet'!BI840=\"\",\"\",'1. Ordersheet'!BI840)","v":""},{"$f":"IF('1. Ordersheet'!BJ840=\"\",\"\",'1. Ordersheet'!BJ840)","v":""},{"$f":"IF('1. Ordersheet'!BK840=\"\",\"\",'1. Ordersheet'!BK840)","v":""},{"$f":"IF('1. Ordersheet'!BL840=\"\",\"\",'1. Ordersheet'!BL840)","v":""}]
[{"$f":"IF('1. Ordersheet'!F841=\"\",\"\",'1. Ordersheet'!F841)","v":""},{"$f":"IF('1. Ordersheet'!G841=\"\",\"\",'1. Ordersheet'!G841)","v":""},{"$f":"IF('1. Ordersheet'!H841=\"\",\"\",'1. Ordersheet'!H841)","v":""},{"$f":"IF('1. Ordersheet'!I841=\"\",\"\",'1. Ordersheet'!I841)","v":""},{"$f":"IF('1. Ordersheet'!J841=\"\",\"\",'1. Ordersheet'!J841)","v":""},{"$f":"IF('1. Ordersheet'!K841=\"\",\"\",'1. Ordersheet'!K841)","v":""},{"$f":"IF('1. Ordersheet'!L841=\"\",\"\",'1. Ordersheet'!L841)","v":""},{"$f":"IF('1. Ordersheet'!M841=\"\",\"\",'1. Ordersheet'!M841)","v":""},{"$f":"IF('1. Ordersheet'!N841=\"\",\"\",'1. Ordersheet'!N841)","v":""},{"$f":"IF('1. Ordersheet'!O841=\"\",\"\",'1. Ordersheet'!O841)","v":{"$error":"#N/A"}},{"$f":"IF('1. Ordersheet'!P841=\"\",\"\",'1. Ordersheet'!P841)","v":{"$error":"#N/A"}},{"$f":"IF('1. Ordersheet'!Q841=\"\",\"\",'1. Ordersheet'!Q841)","v":""},{"$f":"IF('1. Ordersheet'!R841=\"\",\"\",'1. Ordersheet'!R841)","v":""},{"$f":"IF('1. Ordersheet'!S841=\"\",\"\",'1. Ordersheet'!S841)","v":""},{"$f":"IF('1. Ordersheet'!V841=\"\",\"\",'1. Ordersheet'!V841)","v":""},{"$f":"IF('1. Ordersheet'!W841=\"\",\"\",'1. Ordersheet'!W841)","v":""},{"$f":"IF('1. Ordersheet'!X841=\"\",\"\",'1. Ordersheet'!X841)","v":""},{"$f":"IF('1. Ordersheet'!Y841=\"\",\"\",'1. Ordersheet'!Y841)","v":""},{"$f":"IF('1. Ordersheet'!Z841=\"\",\"\",'1. Ordersheet'!Z841)","v":""},{"$f":"IF('1. Ordersheet'!AA841=\"\",\"\",'1. Ordersheet'!AA841)","v":""},null,{"$f":"IF('1. Ordersheet'!AS841=\"\",\"\",'1. Ordersheet'!AS841)","v":""},{"$f":"IF('1. Ordersheet'!AT841=\"\",\"\",'1. Ordersheet'!AT841)","v":""},null,null,null,null,null,null,null,{"$f":"IF('1. Ordersheet'!AX841=\"\",\"\",'1. Ordersheet'!AX841)","v":""},{"$f":"IF('1. Ordersheet'!AY841=\"\",\"\",'1. Ordersheet'!AY841)","v":""},{"$f":"IF('1. Ordersheet'!AZ841=\"\",\"\",'1. Ordersheet'!AZ841)","v":""},{"$f":"IF('1. Ordersheet'!BA841=\"\",\"\",'1. Ordersheet'!BA841)","v":""},{"$f":"IF('1. Ordersheet'!BC841=\"\",\"\",'1. Ordersheet'!BC841)","v":""},{"$f":"IF('1. Ordersheet'!BD841=\"\",\"\",'1. Ordersheet'!BD841)","v":""},{"$f":"IF('1. Ordersheet'!BE841=\"\",\"\",'1. Ordersheet'!BE841)","v":""},{"$f":"IF('1. Ordersheet'!BF841=\"\",\"\",'1. Ordersheet'!BF841)","v":""},{"$f":"IF('1. Ordersheet'!BG841=\"\",\"\",'1. Ordersheet'!BG841)","v":"ZWO"},{"$f":"IF('1. Ordersheet'!BH841=\"\",\"\",'1. Ordersheet'!BH841)","v":""},{"$f":"IF('1. Ordersheet'!BI841=\"\",\"\",'1. Ordersheet'!BI841)","v":""},{"$f":"IF('1. Ordersheet'!BJ841=\"\",\"\",'1. Ordersheet'!BJ841)","v":""},{"$f":"IF('1. Ordersheet'!BK841=\"\",\"\",'1. Ordersheet'!BK841)","v":""},{"$f":"IF('1. Ordersheet'!BL841=\"\",\"\",'1. Ordersheet'!BL841)","v":""}]
[{"$f":"IF('1. Ordersheet'!F842=\"\",\"\",'1. Ordersheet'!F842)","v":""},{"$f":"IF('1. Ordersheet'!G842=\"\",\"\",'1. Ordersheet'!G842)","v":""},{"$f":"IF('1. Ordersheet'!H842=\"\",\"\",'1. Ordersheet'!H842)","v":""},{"$f":"IF('1. Ordersheet'!I842=\"\",\"\",'1. Ordersheet'!I842)","v":""},{"$f":"IF('1. Ordersheet'!J842=\"\",\"\",'1. Ordersheet'!J842)","v":""},{"$f":"IF('1. Ordersheet'!K842=\"\",\"\",'1. Ordersheet'!K842)","v":""},{"$f":"IF('1. Ordersheet'!L842=\"\",\"\",'1. Ordersheet'!L842)","v":""},{"$f":"IF('1. Ordersheet'!M842=\"\",\"\",'1. Ordersheet'!M842)","v":""},{"$f":"IF('1. Ordersheet'!N842=\"\",\"\",'1. Ordersheet'!N842)","v":""},{"$f":"IF('1. Ordersheet'!O842=\"\",\"\",'1. Ordersheet'!O842)","v":{"$error":"#N/A"}},{"$f":"IF('1. Ordersheet'!P842=\"\",\"\",'1. Ordersheet'!P842)","v":{"$error":"#N/A"}},{"$f":"IF('1. Ordersheet'!Q842=\"\",\"\",'1. Ordersheet'!Q842)","v":""},{"$f":"IF('1. Ordersheet'!R842=\"\",\"\",'1. Ordersheet'!R842)","v":""},{"$f":"IF('1. Ordersheet'!S842=\"\",\"\",'1. Ordersheet'!S842)","v":""},{"$f":"IF('1. Ordersheet'!V842=\"\",\"\",'1. Ordersheet'!V842)","v":""},{"$f":"IF('1. Ordersheet'!W842=\"\",\"\",'1. Ordersheet'!W842)","v":""},{"$f":"IF('1. Ordersheet'!X842=\"\",\"\",'1. Ordersheet'!X842)","v":""},{"$f":"IF('1. Ordersheet'!Y842=\"\",\"\",'1. Ordersheet'!Y842)","v":""},{"$f":"IF('1. Ordersheet'!Z842=\"\",\"\",'1. Ordersheet'!Z842)","v":""},{"$f":"IF('1. Ordersheet'!AA842=\"\",\"\",'1. Ordersheet'!AA842)","v":""},null,{"$f":"IF('1. Ordersheet'!AS842=\"\",\"\",'1. Ordersheet'!AS842)","v":""},{"$f":"IF('1. Ordersheet'!AT842=\"\",\"\",'1. Ordersheet'!AT842)","v":""},null,null,null,null,null,null,null,{"$f":"IF('1. Ordersheet'!AX842=\"\",\"\",'1. Ordersheet'!AX842)","v":""},{"$f":"IF('1. Ordersheet'!AY842=\"\",\"\",'1. Ordersheet'!AY842)","v":""},{"$f":"IF('1. Ordersheet'!AZ842=\"\",\"\",'1. Ordersheet'!AZ842)","v":""},{"$f":"IF('1. Ordersheet'!BA842=\"\",\"\",'1. Ordersheet'!BA842)","v":""},{"$f":"IF('1. Ordersheet'!BC842=\"\",\"\",'1. Ordersheet'!BC842)","v":""},{"$f":"IF('1. Ordersheet'!BD842=\"\",\"\",'1. Ordersheet'!BD842)","v":""},{"$f":"IF('1. Ordersheet'!BE842=\"\",\"\",'1. Ordersheet'!BE842)","v":""},{"$f":"IF('1. Ordersheet'!BF842=\"\",\"\",'1. Ordersheet'!BF842)","v":""},{"$f":"IF('1. Ordersheet'!BG842=\"\",\"\",'1. Ordersheet'!BG842)","v":"ZWO"},{"$f":"IF('1. Ordersheet'!BH842=\"\",\"\",'1. Ordersheet'!BH842)","v":""},{"$f":"IF('1. Ordersheet'!BI842=\"\",\"\",'1. Ordersheet'!BI842)","v":""},{"$f":"IF('1. Ordersheet'!BJ842=\"\",\"\",'1. Ordersheet'!BJ842)","v":""},{"$f":"IF('1. Ordersheet'!BK842=\"\",\"\",'1. Ordersheet'!BK842)","v":""},{"$f":"IF('1. Ordersheet'!BL842=\"\",\"\",'1. Ordersheet'!BL842)","v":""}]
[{"$f":"IF('1. Ordersheet'!F843=\"\",\"\",'1. Ordersheet'!F843)","v":""},{"$f":"IF('1. Ordersheet'!G843=\"\",\"\",'1. Ordersheet'!G843)","v":""},{"$f":"IF('1. Ordersheet'!H843=\"\",\"\",'1. Ordersheet'!H843)","v":""},{"$f":"IF('1. Ordersheet'!I843=\"\",\"\",'1. Ordersheet'!I843)","v":""},{"$f":"IF('1. Ordersheet'!J843=\"\",\"\",'1. Ordersheet'!J843)","v":""},{"$f":"IF('1. Ordersheet'!K843=\"\",\"\",'1. Ordersheet'!K843)","v":""},{"$f":"IF('1. Ordersheet'!L843=\"\",\"\",'1. Ordersheet'!L843)","v":""},{"$f":"IF('1. Ordersheet'!M843=\"\",\"\",'1. Ordersheet'!M843)","v":""},{"$f":"IF('1. Ordersheet'!N843=\"\",\"\",'1. Ordersheet'!N843)","v":""},{"$f":"IF('1. Ordersheet'!O843=\"\",\"\",'1. Ordersheet'!O843)","v":{"$error":"#N/A"}},{"$f":"IF('1. Ordersheet'!P843=\"\",\"\",'1. Ordersheet'!P843)","v":{"$error":"#N/A"}},{"$f":"IF('1. Ordersheet'!Q843=\"\",\"\",'1. Ordersheet'!Q843)","v":""},{"$f":"IF('1. Ordersheet'!R843=\"\",\"\",'1. Ordersheet'!R843)","v":""},{"$f":"IF('1. Ordersheet'!S843=\"\",\"\",'1. Ordersheet'!S843)","v":""},{"$f":"IF('1. Ordersheet'!V843=\"\",\"\",'1. Ordersheet'!V843)","v":""},{"$f":"IF('1. Ordersheet'!W843=\"\",\"\",'1. Ordersheet'!W843)","v":""},{"$f":"IF('1. Ordersheet'!X843=\"\",\"\",'1. Ordersheet'!X843)","v":""},{"$f":"IF('1. Ordersheet'!Y843=\"\",\"\",'1. Ordersheet'!Y843)","v":""},{"$f":"IF('1. Ordersheet'!Z843=\"\",\"\",'1. Ordersheet'!Z843)","v":""},{"$f":"IF('1. Ordersheet'!AA843=\"\",\"\",'1. Ordersheet'!AA843)","v":""},null,{"$f":"IF('1. Ordersheet'!AS843=\"\",\"\",'1. Ordersheet'!AS843)","v":""},{"$f":"IF('1. Ordersheet'!AT843=\"\",\"\",'1. Ordersheet'!AT843)","v":""},null,null,null,null,null,null,null,{"$f":"IF('1. Ordersheet'!AX843=\"\",\"\",'1. Ordersheet'!AX843)","v":""},{"$f":"IF('1. Ordersheet'!AY843=\"\",\"\",'1. Ordersheet'!AY843)","v":""},{"$f":"IF('1. Ordersheet'!AZ843=\"\",\"\",'1. Ordersheet'!AZ843)","v":""},{"$f":"IF('1. Ordersheet'!BA843=\"\",\"\",'1. Ordersheet'!BA843)","v":""},{"$f":"IF('1. Ordersheet'!BC843=\"\",\"\",'1. Ordersheet'!BC843)","v":""},{"$f":"IF('1. Ordersheet'!BD843=\"\",\"\",'1. Ordersheet'!BD843)","v":""},{"$f":"IF('1. Ordersheet'!BE843=\"\",\"\",'1. Ordersheet'!BE843)","v":""},{"$f":"IF('1. Ordersheet'!BF843=\"\",\"\",'1. Ordersheet'!BF843)","v":""},{"$f":"IF('1. Ordersheet'!BG843=\"\",\"\",'1. Ordersheet'!BG843)","v":"ZWO"},{"$f":"IF('1. Ordersheet'!BH843=\"\",\"\",'1. Ordersheet'!BH843)","v":""},{"$f":"IF('1. Ordersheet'!BI843=\"\",\"\",'1. Ordersheet'!BI843)","v":""},{"$f":"IF('1. Ordersheet'!BJ843=\"\",\"\",'1. Ordersheet'!BJ843)","v":""},{"$f":"IF('1. Ordersheet'!BK843=\"\",\"\",'1. Ordersheet'!BK843)","v":""},{"$f":"IF('1. Ordersheet'!BL843=\"\",\"\",'1. Ordersheet'!BL843)","v":""}]
[{"$f":"IF('1. Ordersheet'!F844=\"\",\"\",'1. Ordersheet'!F844)","v":""},{"$f":"IF('1. Ordersheet'!G844=\"\",\"\",'1. Ordersheet'!G844)","v":""},{"$f":"IF('1. Ordersheet'!H844=\"\",\"\",'1. Ordersheet'!H844)","v":""},{"$f":"IF('1. Ordersheet'!I844=\"\",\"\",'1. Ordersheet'!I844)","v":""},{"$f":"IF('1. Ordersheet'!J844=\"\",\"\",'1. Ordersheet'!J844)","v":""},{"$f":"IF('1. Ordersheet'!K844=\"\",\"\",'1. Ordersheet'!K844)","v":""},{"$f":"IF('1. Ordersheet'!L844=\"\",\"\",'1. Ordersheet'!L844)","v":""},{"$f":"IF('1. Ordersheet'!M844=\"\",\"\",'1. Ordersheet'!M844)","v":""},{"$f":"IF('1. Ordersheet'!N844=\"\",\"\",'1. Ordersheet'!N844)","v":""},{"$f":"IF('1. Ordersheet'!O844=\"\",\"\",'1. Ordersheet'!O844)","v":{"$error":"#N/A"}},{"$f":"IF('1. Ordersheet'!P844=\"\",\"\",'1. Ordersheet'!P844)","v":{"$error":"#N/A"}},{"$f":"IF('1. Ordersheet'!Q844=\"\",\"\",'1. Ordersheet'!Q844)","v":""},{"$f":"IF('1. Ordersheet'!R844=\"\",\"\",'1. Ordersheet'!R844)","v":""},{"$f":"IF('1. Ordersheet'!S844=\"\",\"\",'1. Ordersheet'!S844)","v":""},{"$f":"IF('1. Ordersheet'!V844=\"\",\"\",'1. Ordersheet'!V844)","v":""},{"$f":"IF('1. Ordersheet'!W844=\"\",\"\",'1. Ordersheet'!W844)","v":""},{"$f":"IF('1. Ordersheet'!X844=\"\",\"\",'1. Ordersheet'!X844)","v":""},{"$f":"IF('1. Ordersheet'!Y844=\"\",\"\",'1. Ordersheet'!Y844)","v":""},{"$f":"IF('1. Ordersheet'!Z844=\"\",\"\",'1. Ordersheet'!Z844)","v":""},{"$f":"IF('1. Ordersheet'!AA844=\"\",\"\",'1. Ordersheet'!AA844)","v":""},null,{"$f":"IF('1. Ordersheet'!AS844=\"\",\"\",'1. Ordersheet'!AS844)","v":""},{"$f":"IF('1. Ordersheet'!AT844=\"\",\"\",'1. Ordersheet'!AT844)","v":""},null,null,null,null,null,null,null,{"$f":"IF('1. Ordersheet'!AX844=\"\",\"\",'1. Ordersheet'!AX844)","v":""},{"$f":"IF('1. Ordersheet'!AY844=\"\",\"\",'1. Ordersheet'!AY844)","v":""},{"$f":"IF('1. Ordersheet'!AZ844=\"\",\"\",'1. Ordersheet'!AZ844)","v":""},{"$f":"IF('1. Ordersheet'!BA844=\"\",\"\",'1. Ordersheet'!BA844)","v":""},{"$f":"IF('1. Ordersheet'!BC844=\"\",\"\",'1. Ordersheet'!BC844)","v":""},{"$f":"IF('1. Ordersheet'!BD844=\"\",\"\",'1. Ordersheet'!BD844)","v":""},{"$f":"IF('1. Ordersheet'!BE844=\"\",\"\",'1. Ordersheet'!BE844)","v":""},{"$f":"IF('1. Ordersheet'!BF844=\"\",\"\",'1. Ordersheet'!BF844)","v":""},{"$f":"IF('1. Ordersheet'!BG844=\"\",\"\",'1. Ordersheet'!BG844)","v":"ZWO"},{"$f":"IF('1. Ordersheet'!BH844=\"\",\"\",'1. Ordersheet'!BH844)","v":""},{"$f":"IF('1. Ordersheet'!BI844=\"\",\"\",'1. Ordersheet'!BI844)","v":""},{"$f":"IF('1. Ordersheet'!BJ844=\"\",\"\",'1. Ordersheet'!BJ844)","v":""},{"$f":"IF('1. Ordersheet'!BK844=\"\",\"\",'1. Ordersheet'!BK844)","v":""},{"$f":"IF('1. Ordersheet'!BL844=\"\",\"\",'1. Ordersheet'!BL844)","v":""}]
[{"$f":"IF('1. Ordersheet'!F845=\"\",\"\",'1. Ordersheet'!F845)","v":""},{"$f":"IF('1. Ordersheet'!G845=\"\",\"\",'1. Ordersheet'!G845)","v":""},{"$f":"IF('1. Ordersheet'!H845=\"\",\"\",'1. Ordersheet'!H845)","v":""},{"$f":"IF('1. Ordersheet'!I845=\"\",\"\",'1. Ordersheet'!I845)","v":""},{"$f":"IF('1. Ordersheet'!J845=\"\",\"\",'1. Ordersheet'!J845)","v":""},{"$f":"IF('1. Ordersheet'!K845=\"\",\"\",'1. Ordersheet'!K845)","v":""},{"$f":"IF('1. Ordersheet'!L845=\"\",\"\",'1. Ordersheet'!L845)","v":""},{"$f":"IF('1. Ordersheet'!M845=\"\",\"\",'1. Ordersheet'!M845)","v":""},{"$f":"IF('1. Ordersheet'!N845=\"\",\"\",'1. Ordersheet'!N845)","v":""},{"$f":"IF('1. Ordersheet'!O845=\"\",\"\",'1. Ordersheet'!O845)","v":{"$error":"#N/A"}},{"$f":"IF('1. Ordersheet'!P845=\"\",\"\",'1. Ordersheet'!P845)","v":{"$error":"#N/A"}},{"$f":"IF('1. Ordersheet'!Q845=\"\",\"\",'1. Ordersheet'!Q845)","v":""},{"$f":"IF('1. Ordersheet'!R845=\"\",\"\",'1. Ordersheet'!R845)","v":""},{"$f":"IF('1. Ordersheet'!S845=\"\",\"\",'1. Ordersheet'!S845)","v":""},{"$f":"IF('1. Ordersheet'!V845=\"\",\"\",'1. Ordersheet'!V845)","v":""},{"$f":"IF('1. Ordersheet'!W845=\"\",\"\",'1. Ordersheet'!W845)","v":""},{"$f":"IF('1. Ordersheet'!X845=\"\",\"\",'1. Ordersheet'!X845)","v":""},{"$f":"IF('1. Ordersheet'!Y845=\"\",\"\",'1. Ordersheet'!Y845)","v":""},{"$f":"IF('1. Ordersheet'!Z845=\"\",\"\",'1. Ordersheet'!Z845)","v":""},{"$f":"IF('1. Ordersheet'!AA845=\"\",\"\",'1. Ordersheet'!AA845)","v":""},null,{"$f":"IF('1. Ordersheet'!AS845=\"\",\"\",'1. Ordersheet'!AS845)","v":""},{"$f":"IF('1. Ordersheet'!AT845=\"\",\"\",'1. Ordersheet'!AT845)","v":""},null,null,null,null,null,null,null,{"$f":"IF('1. Ordersheet'!AX845=\"\",\"\",'1. Ordersheet'!AX845)","v":""},{"$f":"IF('1. Ordersheet'!AY845=\"\",\"\",'1. Ordersheet'!AY845)","v":""},{"$f":"IF('1. Ordersheet'!AZ845=\"\",\"\",'1. Ordersheet'!AZ845)","v":""},{"$f":"IF('1. Ordersheet'!BA845=\"\",\"\",'1. Ordersheet'!BA845)","v":""},{"$f":"IF('1. Ordersheet'!BC845=\"\",\"\",'1. Ordersheet'!BC845)","v":""},{"$f":"IF('1. Ordersheet'!BD845=\"\",\"\",'1. Ordersheet'!BD845)","v":""},{"$f":"IF('1. Ordersheet'!BE845=\"\",\"\",'1. Ordersheet'!BE845)","v":""},{"$f":"IF('1. Ordersheet'!BF845=\"\",\"\",'1. Ordersheet'!BF845)","v":""},{"$f":"IF('1. Ordersheet'!BG845=\"\",\"\",'1. Ordersheet'!BG845)","v":"ZWO"},{"$f":"IF('1. Ordersheet'!BH845=\"\",\"\",'1. Ordersheet'!BH845)","v":""},{"$f":"IF('1. Ordersheet'!BI845=\"\",\"\",'1. Ordersheet'!BI845)","v":""},{"$f":"IF('1. Ordersheet'!BJ845=\"\",\"\",'1. Ordersheet'!BJ845)","v":""},{"$f":"IF('1. Ordersheet'!BK845=\"\",\"\",'1. Ordersheet'!BK845)","v":""},{"$f":"IF('1. Ordersheet'!BL845=\"\",\"\",'1. Ordersheet'!BL845)","v":""}]
[{"$f":"IF('1. Ordersheet'!F846=\"\",\"\",'1. Ordersheet'!F846)","v":""},{"$f":"IF('1. Ordersheet'!G846=\"\",\"\",'1. Ordersheet'!G846)","v":""},{"$f":"IF('1. Ordersheet'!H846=\"\",\"\",'1. Ordersheet'!H846)","v":""},{"$f":"IF('1. Ordersheet'!I846=\"\",\"\",'1. Ordersheet'!I846)","v":""},{"$f":"IF('1. Ordersheet'!J846=\"\",\"\",'1. Ordersheet'!J846)","v":""},{"$f":"IF('1. Ordersheet'!K846=\"\",\"\",'1. Ordersheet'!K846)","v":""},{"$f":"IF('1. Ordersheet'!L846=\"\",\"\",'1. Ordersheet'!L846)","v":""},{"$f":"IF('1. Ordersheet'!M846=\"\",\"\",'1. Ordersheet'!M846)","v":""},{"$f":"IF('1. Ordersheet'!N846=\"\",\"\",'1. Ordersheet'!N846)","v":""},{"$f":"IF('1. Ordersheet'!O846=\"\",\"\",'1. Ordersheet'!O846)","v":{"$error":"#N/A"}},{"$f":"IF('1. Ordersheet'!P846=\"\",\"\",'1. Ordersheet'!P846)","v":{"$error":"#N/A"}},{"$f":"IF('1. Ordersheet'!Q846=\"\",\"\",'1. Ordersheet'!Q846)","v":""},{"$f":"IF('1. Ordersheet'!R846=\"\",\"\",'1. Ordersheet'!R846)","v":""},{"$f":"IF('1. Ordersheet'!S846=\"\",\"\",'1. Ordersheet'!S846)","v":""},{"$f":"IF('1. Ordersheet'!V846=\"\",\"\",'1. Ordersheet'!V846)","v":""},{"$f":"IF('1. Ordersheet'!W846=\"\",\"\",'1. Ordersheet'!W846)","v":""},{"$f":"IF('1. Ordersheet'!X846=\"\",\"\",'1. Ordersheet'!X846)","v":""},{"$f":"IF('1. Ordersheet'!Y846=\"\",\"\",'1. Ordersheet'!Y846)","v":""},{"$f":"IF('1. Ordersheet'!Z846=\"\",\"\",'1. Ordersheet'!Z846)","v":""},{"$f":"IF('1. Ordersheet'!AA846=\"\",\"\",'1. Ordersheet'!AA846)","v":""},null,{"$f":"IF('1. Ordersheet'!AS846=\"\",\"\",'1. Ordersheet'!AS846)","v":""},{"$f":"IF('1. Ordersheet'!AT846=\"\",\"\",'1. Ordersheet'!AT846)","v":""},null,null,null,null,null,null,null,{"$f":"IF('1. Ordersheet'!AX846=\"\",\"\",'1. Ordersheet'!AX846)","v":""},{"$f":"IF('1. Ordersheet'!AY846=\"\",\"\",'1. Ordersheet'!AY846)","v":""},{"$f":"IF('1. Ordersheet'!AZ846=\"\",\"\",'1. Ordersheet'!AZ846)","v":""},{"$f":"IF('1. Ordersheet'!BA846=\"\",\"\",'1. Ordersheet'!BA846)","v":""},{"$f":"IF('1. Ordersheet'!BC846=\"\",\"\",'1. Ordersheet'!BC846)","v":""},{"$f":"IF('1. Ordersheet'!BD846=\"\",\"\",'1. Ordersheet'!BD846)","v":""},{"$f":"IF('1. Ordersheet'!BE846=\"\",\"\",'1. Ordersheet'!BE846)","v":""},{"$f":"IF('1. Ordersheet'!BF846=\"\",\"\",'1. Ordersheet'!BF846)","v":""},{"$f":"IF('1. Ordersheet'!BG846=\"\",\"\",'1. Ordersheet'!BG846)","v":"ZWO"},{"$f":"IF('1. Ordersheet'!BH846=\"\",\"\",'1. Ordersheet'!BH846)","v":""},{"$f":"IF('1. Ordersheet'!BI846=\"\",\"\",'1. Ordersheet'!BI846)","v":""},{"$f":"IF('1. Ordersheet'!BJ846=\"\",\"\",'1. Ordersheet'!BJ846)","v":""},{"$f":"IF('1. Ordersheet'!BK846=\"\",\"\",'1. Ordersheet'!BK846)","v":""},{"$f":"IF('1. Ordersheet'!BL846=\"\",\"\",'1. Ordersheet'!BL846)","v":""}]
[{"$f":"IF('1. Ordersheet'!F847=\"\",\"\",'1. Ordersheet'!F847)","v":""},{"$f":"IF('1. Ordersheet'!G847=\"\",\"\",'1. Ordersheet'!G847)","v":""},{"$f":"IF('1. Ordersheet'!H847=\"\",\"\",'1. Ordersheet'!H847)","v":""},{"$f":"IF('1. Ordersheet'!I847=\"\",\"\",'1. Ordersheet'!I847)","v":""},{"$f":"IF('1. Ordersheet'!J847=\"\",\"\",'1. Ordersheet'!J847)","v":""},{"$f":"IF('1. Ordersheet'!K847=\"\",\"\",'1. Ordersheet'!K847)","v":""},{"$f":"IF('1. Ordersheet'!L847=\"\",\"\",'1. Ordersheet'!L847)","v":""},{"$f":"IF('1. Ordersheet'!M847=\"\",\"\",'1. Ordersheet'!M847)","v":""},{"$f":"IF('1. Ordersheet'!N847=\"\",\"\",'1. Ordersheet'!N847)","v":""},{"$f":"IF('1. Ordersheet'!O847=\"\",\"\",'1. Ordersheet'!O847)","v":{"$error":"#N/A"}},{"$f":"IF('1. Ordersheet'!P847=\"\",\"\",'1. Ordersheet'!P847)","v":{"$error":"#N/A"}},{"$f":"IF('1. Ordersheet'!Q847=\"\",\"\",'1. Ordersheet'!Q847)","v":""},{"$f":"IF('1. Ordersheet'!R847=\"\",\"\",'1. Ordersheet'!R847)","v":""},{"$f":"IF('1. Ordersheet'!S847=\"\",\"\",'1. Ordersheet'!S847)","v":""},{"$f":"IF('1. Ordersheet'!V847=\"\",\"\",'1. Ordersheet'!V847)","v":""},{"$f":"IF('1. Ordersheet'!W847=\"\",\"\",'1. Ordersheet'!W847)","v":""},{"$f":"IF('1. Ordersheet'!X847=\"\",\"\",'1. Ordersheet'!X847)","v":""},{"$f":"IF('1. Ordersheet'!Y847=\"\",\"\",'1. Ordersheet'!Y847)","v":""},{"$f":"IF('1. Ordersheet'!Z847=\"\",\"\",'1. Ordersheet'!Z847)","v":""},{"$f":"IF('1. Ordersheet'!AA847=\"\",\"\",'1. Ordersheet'!AA847)","v":""},null,{"$f":"IF('1. Ordersheet'!AS847=\"\",\"\",'1. Ordersheet'!AS847)","v":""},{"$f":"IF('1. Ordersheet'!AT847=\"\",\"\",'1. Ordersheet'!AT847)","v":""},null,null,null,null,null,null,null,{"$f":"IF('1. Ordersheet'!AX847=\"\",\"\",'1. Ordersheet'!AX847)","v":""},{"$f":"IF('1. Ordersheet'!AY847=\"\",\"\",'1. Ordersheet'!AY847)","v":""},{"$f":"IF('1. Ordersheet'!AZ847=\"\",\"\",'1. Ordersheet'!AZ847)","v":""},{"$f":"IF('1. Ordersheet'!BA847=\"\",\"\",'1. Ordersheet'!BA847)","v":""},{"$f":"IF('1. Ordersheet'!BC847=\"\",\"\",'1. Ordersheet'!BC847)","v":""},{"$f":"IF('1. Ordersheet'!BD847=\"\",\"\",'1. Ordersheet'!BD847)","v":""},{"$f":"IF('1. Ordersheet'!BE847=\"\",\"\",'1. Ordersheet'!BE847)","v":""},{"$f":"IF('1. Ordersheet'!BF847=\"\",\"\",'1. Ordersheet'!BF847)","v":""},{"$f":"IF('1. Ordersheet'!BG847=\"\",\"\",'1. Ordersheet'!BG847)","v":"ZWO"},{"$f":"IF('1. Ordersheet'!BH847=\"\",\"\",'1. Ordersheet'!BH847)","v":""},{"$f":"IF('1. Ordersheet'!BI847=\"\",\"\",'1. Ordersheet'!BI847)","v":""},{"$f":"IF('1. Ordersheet'!BJ847=\"\",\"\",'1. Ordersheet'!BJ847)","v":""},{"$f":"IF('1. Ordersheet'!BK847=\"\",\"\",'1. Ordersheet'!BK847)","v":""},{"$f":"IF('1. Ordersheet'!BL847=\"\",\"\",'1. Ordersheet'!BL847)","v":""}]
[{"$f":"IF('1. Ordersheet'!F848=\"\",\"\",'1. Ordersheet'!F848)","v":""},{"$f":"IF('1. Ordersheet'!G848=\"\",\"\",'1. Ordersheet'!G848)","v":""},{"$f":"IF('1. Ordersheet'!H848=\"\",\"\",'1. Ordersheet'!H848)","v":""},{"$f":"IF('1. Ordersheet'!I848=\"\",\"\",'1. Ordersheet'!I848)","v":""},{"$f":"IF('1. Ordersheet'!J848=\"\",\"\",'1. Ordersheet'!J848)","v":""},{"$f":"IF('1. Ordersheet'!K848=\"\",\"\",'1. Ordersheet'!K848)","v":""},{"$f":"IF('1. Ordersheet'!L848=\"\",\"\",'1. Ordersheet'!L848)","v":""},{"$f":"IF('1. Ordersheet'!M848=\"\",\"\",'1. Ordersheet'!M848)","v":""},{"$f":"IF('1. Ordersheet'!N848=\"\",\"\",'1. Ordersheet'!N848)","v":""},{"$f":"IF('1. Ordersheet'!O848=\"\",\"\",'1. Ordersheet'!O848)","v":{"$error":"#N/A"}},{"$f":"IF('1. Ordersheet'!P848=\"\",\"\",'1. Ordersheet'!P848)","v":{"$error":"#N/A"}},{"$f":"IF('1. Ordersheet'!Q848=\"\",\"\",'1. Ordersheet'!Q848)","v":""},{"$f":"IF('1. Ordersheet'!R848=\"\",\"\",'1. Ordersheet'!R848)","v":""},{"$f":"IF('1. Ordersheet'!S848=\"\",\"\",'1. Ordersheet'!S848)","v":""},{"$f":"IF('1. Ordersheet'!V848=\"\",\"\",'1. Ordersheet'!V848)","v":""},{"$f":"IF('1. Ordersheet'!W848=\"\",\"\",'1. Ordersheet'!W848)","v":""},{"$f":"IF('1. Ordersheet'!X848=\"\",\"\",'1. Ordersheet'!X848)","v":""},{"$f":"IF('1. Ordersheet'!Y848=\"\",\"\",'1. Ordersheet'!Y848)","v":""},{"$f":"IF('1. Ordersheet'!Z848=\"\",\"\",'1. Ordersheet'!Z848)","v":""},{"$f":"IF('1. Ordersheet'!AA848=\"\",\"\",'1. Ordersheet'!AA848)","v":""},null,{"$f":"IF('1. Ordersheet'!AS848=\"\",\"\",'1. Ordersheet'!AS848)","v":""},{"$f":"IF('1. Ordersheet'!AT848=\"\",\"\",'1. Ordersheet'!AT848)","v":""},null,null,null,null,null,null,null,{"$f":"IF('1. Ordersheet'!AX848=\"\",\"\",'1. Ordersheet'!AX848)","v":""},{"$f":"IF('1. Ordersheet'!AY848=\"\",\"\",'1. Ordersheet'!AY848)","v":""},{"$f":"IF('1. Ordersheet'!AZ848=\"\",\"\",'1. Ordersheet'!AZ848)","v":""},{"$f":"IF('1. Ordersheet'!BA848=\"\",\"\",'1. Ordersheet'!BA848)","v":""},{"$f":"IF('1. Ordersheet'!BC848=\"\",\"\",'1. Ordersheet'!BC848)","v":""},{"$f":"IF('1. Ordersheet'!BD848=\"\",\"\",'1. Ordersheet'!BD848)","v":""},{"$f":"IF('1. Ordersheet'!BE848=\"\",\"\",'1. Ordersheet'!BE848)","v":""},{"$f":"IF('1. Ordersheet'!BF848=\"\",\"\",'1. Ordersheet'!BF848)","v":""},{"$f":"IF('1. Ordersheet'!BG848=\"\",\"\",'1. Ordersheet'!BG848)","v":"ZWO"},{"$f":"IF('1. Ordersheet'!BH848=\"\",\"\",'1. Ordersheet'!BH848)","v":""},{"$f":"IF('1. Ordersheet'!BI848=\"\",\"\",'1. Ordersheet'!BI848)","v":""},{"$f":"IF('1. Ordersheet'!BJ848=\"\",\"\",'1. Ordersheet'!BJ848)","v":""},{"$f":"IF('1. Ordersheet'!BK848=\"\",\"\",'1. Ordersheet'!BK848)","v":""},{"$f":"IF('1. Ordersheet'!BL848=\"\",\"\",'1. Ordersheet'!BL848)","v":""}]
[{"$f":"IF('1. Ordersheet'!F849=\"\",\"\",'1. Ordersheet'!F849)","v":""},{"$f":"IF('1. Ordersheet'!G849=\"\",\"\",'1. Ordersheet'!G849)","v":""},{"$f":"IF('1. Ordersheet'!H849=\"\",\"\",'1. Ordersheet'!H849)","v":""},{"$f":"IF('1. Ordersheet'!I849=\"\",\"\",'1. Ordersheet'!I849)","v":""},{"$f":"IF('1. Ordersheet'!J849=\"\",\"\",'1. Ordersheet'!J849)","v":""},{"$f":"IF('1. Ordersheet'!K849=\"\",\"\",'1. Ordersheet'!K849)","v":""},{"$f":"IF('1. Ordersheet'!L849=\"\",\"\",'1. Ordersheet'!L849)","v":""},{"$f":"IF('1. Ordersheet'!M849=\"\",\"\",'1. Ordersheet'!M849)","v":""},{"$f":"IF('1. Ordersheet'!N849=\"\",\"\",'1. Ordersheet'!N849)","v":""},{"$f":"IF('1. Ordersheet'!O849=\"\",\"\",'1. Ordersheet'!O849)","v":{"$error":"#N/A"}},{"$f":"IF('1. Ordersheet'!P849=\"\",\"\",'1. Ordersheet'!P849)","v":{"$error":"#N/A"}},{"$f":"IF('1. Ordersheet'!Q849=\"\",\"\",'1. Ordersheet'!Q849)","v":""},{"$f":"IF('1. Ordersheet'!R849=\"\",\"\",'1. Ordersheet'!R849)","v":""},{"$f":"IF('1. Ordersheet'!S849=\"\",\"\",'1. Ordersheet'!S849)","v":""},{"$f":"IF('1. Ordersheet'!V849=\"\",\"\",'1. Ordersheet'!V849)","v":""},{"$f":"IF('1. Ordersheet'!W849=\"\",\"\",'1. Ordersheet'!W849)","v":""},{"$f":"IF('1. Ordersheet'!X849=\"\",\"\",'1. Ordersheet'!X849)","v":""},{"$f":"IF('1. Ordersheet'!Y849=\"\",\"\",'1. Ordersheet'!Y849)","v":""},{"$f":"IF('1. Ordersheet'!Z849=\"\",\"\",'1. Ordersheet'!Z849)","v":""},{"$f":"IF('1. Ordersheet'!AA849=\"\",\"\",'1. Ordersheet'!AA849)","v":""},null,{"$f":"IF('1. Ordersheet'!AS849=\"\",\"\",'1. Ordersheet'!AS849)","v":""},{"$f":"IF('1. Ordersheet'!AT849=\"\",\"\",'1. Ordersheet'!AT849)","v":""},null,null,null,null,null,null,null,{"$f":"IF('1. Ordersheet'!AX849=\"\",\"\",'1. Ordersheet'!AX849)","v":""},{"$f":"IF('1. Ordersheet'!AY849=\"\",\"\",'1. Ordersheet'!AY849)","v":""},{"$f":"IF('1. Ordersheet'!AZ849=\"\",\"\",'1. Ordersheet'!AZ849)","v":""},{"$f":"IF('1. Ordersheet'!BA849=\"\",\"\",'1. Ordersheet'!BA849)","v":""},{"$f":"IF('1. Ordersheet'!BC849=\"\",\"\",'1. Ordersheet'!BC849)","v":""},{"$f":"IF('1. Ordersheet'!BD849=\"\",\"\",'1. Ordersheet'!BD849)","v":""},{"$f":"IF('1. Ordersheet'!BE849=\"\",\"\",'1. Ordersheet'!BE849)","v":""},{"$f":"IF('1. Ordersheet'!BF849=\"\",\"\",'1. Ordersheet'!BF849)","v":""},{"$f":"IF('1. Ordersheet'!BG849=\"\",\"\",'1. Ordersheet'!BG849)","v":"ZWO"},{"$f":"IF('1. Ordersheet'!BH849=\"\",\"\",'1. Ordersheet'!BH849)","v":""},{"$f":"IF('1. Ordersheet'!BI849=\"\",\"\",'1. Ordersheet'!BI849)","v":""},{"$f":"IF('1. Ordersheet'!BJ849=\"\",\"\",'1. Ordersheet'!BJ849)","v":""},{"$f":"IF('1. Ordersheet'!BK849=\"\",\"\",'1. Ordersheet'!BK849)","v":""},{"$f":"IF('1. Ordersheet'!BL849=\"\",\"\",'1. Ordersheet'!BL849)","v":""}]
[{"$f":"IF('1. Ordersheet'!F850=\"\",\"\",'1. Ordersheet'!F850)","v":""},{"$f":"IF('1. Ordersheet'!G850=\"\",\"\",'1. Ordersheet'!G850)","v":""},{"$f":"IF('1. Ordersheet'!H850=\"\",\"\",'1. Ordersheet'!H850)","v":""},{"$f":"IF('1. Ordersheet'!I850=\"\",\"\",'1. Ordersheet'!I850)","v":""},{"$f":"IF('1. Ordersheet'!J850=\"\",\"\",'1. Ordersheet'!J850)","v":""},{"$f":"IF('1. Ordersheet'!K850=\"\",\"\",'1. Ordersheet'!K850)","v":""},{"$f":"IF('1. Ordersheet'!L850=\"\",\"\",'1. Ordersheet'!L850)","v":""},{"$f":"IF('1. Ordersheet'!M850=\"\",\"\",'1. Ordersheet'!M850)","v":""},{"$f":"IF('1. Ordersheet'!N850=\"\",\"\",'1. Ordersheet'!N850)","v":""},{"$f":"IF('1. Ordersheet'!O850=\"\",\"\",'1. Ordersheet'!O850)","v":{"$error":"#N/A"}},{"$f":"IF('1. Ordersheet'!P850=\"\",\"\",'1. Ordersheet'!P850)","v":{"$error":"#N/A"}},{"$f":"IF('1. Ordersheet'!Q850=\"\",\"\",'1. Ordersheet'!Q850)","v":""},{"$f":"IF('1. Ordersheet'!R850=\"\",\"\",'1. Ordersheet'!R850)","v":""},{"$f":"IF('1. Ordersheet'!S850=\"\",\"\",'1. Ordersheet'!S850)","v":""},{"$f":"IF('1. Ordersheet'!V850=\"\",\"\",'1. Ordersheet'!V850)","v":""},{"$f":"IF('1. Ordersheet'!W850=\"\",\"\",'1. Ordersheet'!W850)","v":""},{"$f":"IF('1. Ordersheet'!X850=\"\",\"\",'1. Ordersheet'!X850)","v":""},{"$f":"IF('1. Ordersheet'!Y850=\"\",\"\",'1. Ordersheet'!Y850)","v":""},{"$f":"IF('1. Ordersheet'!Z850=\"\",\"\",'1. Ordersheet'!Z850)","v":""},{"$f":"IF('1. Ordersheet'!AA850=\"\",\"\",'1. Ordersheet'!AA850)","v":""},null,{"$f":"IF('1. Ordersheet'!AS850=\"\",\"\",'1. Ordersheet'!AS850)","v":""},{"$f":"IF('1. Ordersheet'!AT850=\"\",\"\",'1. Ordersheet'!AT850)","v":""},null,null,null,null,null,null,null,{"$f":"IF('1. Ordersheet'!AX850=\"\",\"\",'1. Ordersheet'!AX850)","v":""},{"$f":"IF('1. Ordersheet'!AY850=\"\",\"\",'1. Ordersheet'!AY850)","v":""},{"$f":"IF('1. Ordersheet'!AZ850=\"\",\"\",'1. Ordersheet'!AZ850)","v":""},{"$f":"IF('1. Ordersheet'!BA850=\"\",\"\",'1. Ordersheet'!BA850)","v":""},{"$f":"IF('1. Ordersheet'!BC850=\"\",\"\",'1. Ordersheet'!BC850)","v":""},{"$f":"IF('1. Ordersheet'!BD850=\"\",\"\",'1. Ordersheet'!BD850)","v":""},{"$f":"IF('1. Ordersheet'!BE850=\"\",\"\",'1. Ordersheet'!BE850)","v":""},{"$f":"IF('1. Ordersheet'!BF850=\"\",\"\",'1. Ordersheet'!BF850)","v":""},{"$f":"IF('1. Ordersheet'!BG850=\"\",\"\",'1. Ordersheet'!BG850)","v":"ZWO"},{"$f":"IF('1. Ordersheet'!BH850=\"\",\"\",'1. Ordersheet'!BH850)","v":""},{"$f":"IF('1. Ordersheet'!BI850=\"\",\"\",'1. Ordersheet'!BI850)","v":""},{"$f":"IF('1. Ordersheet'!BJ850=\"\",\"\",'1. Ordersheet'!BJ850)","v":""},{"$f":"IF('1. Ordersheet'!BK850=\"\",\"\",'1. Ordersheet'!BK850)","v":""},{"$f":"IF('1. Ordersheet'!BL850=\"\",\"\",'1. Ordersheet'!BL850)","v":""}]
[{"$f":"IF('1. Ordersheet'!F851=\"\",\"\",'1. Ordersheet'!F851)","v":""},{"$f":"IF('1. Ordersheet'!G851=\"\",\"\",'1. Ordersheet'!G851)","v":""},{"$f":"IF('1. Ordersheet'!H851=\"\",\"\",'1. Ordersheet'!H851)","v":""},{"$f":"IF('1. Ordersheet'!I851=\"\",\"\",'1. Ordersheet'!I851)","v":""},{"$f":"IF('1. Ordersheet'!J851=\"\",\"\",'1. Ordersheet'!J851)","v":""},{"$f":"IF('1. Ordersheet'!K851=\"\",\"\",'1. Ordersheet'!K851)","v":""},{"$f":"IF('1. Ordersheet'!L851=\"\",\"\",'1. Ordersheet'!L851)","v":""},{"$f":"IF('1. Ordersheet'!M851=\"\",\"\",'1. Ordersheet'!M851)","v":""},{"$f":"IF('1. Ordersheet'!N851=\"\",\"\",'1. Ordersheet'!N851)","v":""},{"$f":"IF('1. Ordersheet'!O851=\"\",\"\",'1. Ordersheet'!O851)","v":{"$error":"#N/A"}},{"$f":"IF('1. Ordersheet'!P851=\"\",\"\",'1. Ordersheet'!P851)","v":{"$error":"#N/A"}},{"$f":"IF('1. Ordersheet'!Q851=\"\",\"\",'1. Ordersheet'!Q851)","v":""},{"$f":"IF('1. Ordersheet'!R851=\"\",\"\",'1. Ordersheet'!R851)","v":""},{"$f":"IF('1. Ordersheet'!S851=\"\",\"\",'1. Ordersheet'!S851)","v":""},{"$f":"IF('1. Ordersheet'!V851=\"\",\"\",'1. Ordersheet'!V851)","v":""},{"$f":"IF('1. Ordersheet'!W851=\"\",\"\",'1. Ordersheet'!W851)","v":""},{"$f":"IF('1. Ordersheet'!X851=\"\",\"\",'1. Ordersheet'!X851)","v":""},{"$f":"IF('1. Ordersheet'!Y851=\"\",\"\",'1. Ordersheet'!Y851)","v":""},{"$f":"IF('1. Ordersheet'!Z851=\"\",\"\",'1. Ordersheet'!Z851)","v":""},{"$f":"IF('1. Ordersheet'!AA851=\"\",\"\",'1. Ordersheet'!AA851)","v":""},null,{"$f":"IF('1. Ordersheet'!AS851=\"\",\"\",'1. Ordersheet'!AS851)","v":""},{"$f":"IF('1. Ordersheet'!AT851=\"\",\"\",'1. Ordersheet'!AT851)","v":""},null,null,null,null,null,null,null,{"$f":"IF('1. Ordersheet'!AX851=\"\",\"\",'1. Ordersheet'!AX851)","v":""},{"$f":"IF('1. Ordersheet'!AY851=\"\",\"\",'1. Ordersheet'!AY851)","v":""},{"$f":"IF('1. Ordersheet'!AZ851=\"\",\"\",'1. Ordersheet'!AZ851)","v":""},{"$f":"IF('1. Ordersheet'!BA851=\"\",\"\",'1. Ordersheet'!BA851)","v":""},{"$f":"IF('1. Ordersheet'!BC851=\"\",\"\",'1. Ordersheet'!BC851)","v":""},{"$f":"IF('1. Ordersheet'!BD851=\"\",\"\",'1. Ordersheet'!BD851)","v":""},{"$f":"IF('1. Ordersheet'!BE851=\"\",\"\",'1. Ordersheet'!BE851)","v":""},{"$f":"IF('1. Ordersheet'!BF851=\"\",\"\",'1. Ordersheet'!BF851)","v":""},{"$f":"IF('1. Ordersheet'!BG851=\"\",\"\",'1. Ordersheet'!BG851)","v":"ZWO"},{"$f":"IF('1. Ordersheet'!BH851=\"\",\"\",'1. Ordersheet'!BH851)","v":""},{"$f":"IF('1. Ordersheet'!BI851=\"\",\"\",'1. Ordersheet'!BI851)","v":""},{"$f":"IF('1. Ordersheet'!BJ851=\"\",\"\",'1. Ordersheet'!BJ851)","v":""},{"$f":"IF('1. Ordersheet'!BK851=\"\",\"\",'1. Ordersheet'!BK851)","v":""},{"$f":"IF('1. Ordersheet'!BL851=\"\",\"\",'1. Ordersheet'!BL851)","v":""}]
[{"$f":"IF('1. Ordersheet'!F852=\"\",\"\",'1. Ordersheet'!F852)","v":""},{"$f":"IF('1. Ordersheet'!G852=\"\",\"\",'1. Ordersheet'!G852)","v":""},{"$f":"IF('1. Ordersheet'!H852=\"\",\"\",'1. Ordersheet'!H852)","v":""},{"$f":"IF('1. Ordersheet'!I852=\"\",\"\",'1. Ordersheet'!I852)","v":""},{"$f":"IF('1. Ordersheet'!J852=\"\",\"\",'1. Ordersheet'!J852)","v":""},{"$f":"IF('1. Ordersheet'!K852=\"\",\"\",'1. Ordersheet'!K852)","v":""},{"$f":"IF('1. Ordersheet'!L852=\"\",\"\",'1. Ordersheet'!L852)","v":""},{"$f":"IF('1. Ordersheet'!M852=\"\",\"\",'1. Ordersheet'!M852)","v":""},{"$f":"IF('1. Ordersheet'!N852=\"\",\"\",'1. Ordersheet'!N852)","v":""},{"$f":"IF('1. Ordersheet'!O852=\"\",\"\",'1. Ordersheet'!O852)","v":{"$error":"#N/A"}},{"$f":"IF('1. Ordersheet'!P852=\"\",\"\",'1. Ordersheet'!P852)","v":{"$error":"#N/A"}},{"$f":"IF('1. Ordersheet'!Q852=\"\",\"\",'1. Ordersheet'!Q852)","v":""},{"$f":"IF('1. Ordersheet'!R852=\"\",\"\",'1. Ordersheet'!R852)","v":""},{"$f":"IF('1. Ordersheet'!S852=\"\",\"\",'1. Ordersheet'!S852)","v":""},{"$f":"IF('1. Ordersheet'!V852=\"\",\"\",'1. Ordersheet'!V852)","v":""},{"$f":"IF('1. Ordersheet'!W852=\"\",\"\",'1. Ordersheet'!W852)","v":""},{"$f":"IF('1. Ordersheet'!X852=\"\",\"\",'1. Ordersheet'!X852)","v":""},{"$f":"IF('1. Ordersheet'!Y852=\"\",\"\",'1. Ordersheet'!Y852)","v":""},{"$f":"IF('1. Ordersheet'!Z852=\"\",\"\",'1. Ordersheet'!Z852)","v":""},{"$f":"IF('1. Ordersheet'!AA852=\"\",\"\",'1. Ordersheet'!AA852)","v":""},null,{"$f":"IF('1. Ordersheet'!AS852=\"\",\"\",'1. Ordersheet'!AS852)","v":""},{"$f":"IF('1. Ordersheet'!AT852=\"\",\"\",'1. Ordersheet'!AT852)","v":""},null,null,null,null,null,null,null,{"$f":"IF('1. Ordersheet'!AX852=\"\",\"\",'1. Ordersheet'!AX852)","v":""},{"$f":"IF('1. Ordersheet'!AY852=\"\",\"\",'1. Ordersheet'!AY852)","v":""},{"$f":"IF('1. Ordersheet'!AZ852=\"\",\"\",'1. Ordersheet'!AZ852)","v":""},{"$f":"IF('1. Ordersheet'!BA852=\"\",\"\",'1. Ordersheet'!BA852)","v":""},{"$f":"IF('1. Ordersheet'!BC852=\"\",\"\",'1. Ordersheet'!BC852)","v":""},{"$f":"IF('1. Ordersheet'!BD852=\"\",\"\",'1. Ordersheet'!BD852)","v":""},{"$f":"IF('1. Ordersheet'!BE852=\"\",\"\",'1. Ordersheet'!BE852)","v":""},{"$f":"IF('1. Ordersheet'!BF852=\"\",\"\",'1. Ordersheet'!BF852)","v":""},{"$f":"IF('1. Ordersheet'!BG852=\"\",\"\",'1. Ordersheet'!BG852)","v":"ZWO"},{"$f":"IF('1. Ordersheet'!BH852=\"\",\"\",'1. Ordersheet'!BH852)","v":""},{"$f":"IF('1. Ordersheet'!BI852=\"\",\"\",'1. Ordersheet'!BI852)","v":""},{"$f":"IF('1. Ordersheet'!BJ852=\"\",\"\",'1. Ordersheet'!BJ852)","v":""},{"$f":"IF('1. Ordersheet'!BK852=\"\",\"\",'1. Ordersheet'!BK852)","v":""},{"$f":"IF('1. Ordersheet'!BL852=\"\",\"\",'1. Ordersheet'!BL852)","v":""}]
[{"$f":"IF('1. Ordersheet'!F853=\"\",\"\",'1. Ordersheet'!F853)","v":""},{"$f":"IF('1. Ordersheet'!G853=\"\",\"\",'1. Ordersheet'!G853)","v":""},{"$f":"IF('1. Ordersheet'!H853=\"\",\"\",'1. Ordersheet'!H853)","v":""},{"$f":"IF('1. Ordersheet'!I853=\"\",\"\",'1. Ordersheet'!I853)","v":""},{"$f":"IF('1. Ordersheet'!J853=\"\",\"\",'1. Ordersheet'!J853)","v":""},{"$f":"IF('1. Ordersheet'!K853=\"\",\"\",'1. Ordersheet'!K853)","v":""},{"$f":"IF('1. Ordersheet'!L853=\"\",\"\",'1. Ordersheet'!L853)","v":""},{"$f":"IF('1. Ordersheet'!M853=\"\",\"\",'1. Ordersheet'!M853)","v":""},{"$f":"IF('1. Ordersheet'!N853=\"\",\"\",'1. Ordersheet'!N853)","v":""},{"$f":"IF('1. Ordersheet'!O853=\"\",\"\",'1. Ordersheet'!O853)","v":{"$error":"#N/A"}},{"$f":"IF('1. Ordersheet'!P853=\"\",\"\",'1. Ordersheet'!P853)","v":{"$error":"#N/A"}},{"$f":"IF('1. Ordersheet'!Q853=\"\",\"\",'1. Ordersheet'!Q853)","v":""},{"$f":"IF('1. Ordersheet'!R853=\"\",\"\",'1. Ordersheet'!R853)","v":""},{"$f":"IF('1. Ordersheet'!S853=\"\",\"\",'1. Ordersheet'!S853)","v":""},{"$f":"IF('1. Ordersheet'!V853=\"\",\"\",'1. Ordersheet'!V853)","v":""},{"$f":"IF('1. Ordersheet'!W853=\"\",\"\",'1. Ordersheet'!W853)","v":""},{"$f":"IF('1. Ordersheet'!X853=\"\",\"\",'1. Ordersheet'!X853)","v":""},{"$f":"IF('1. Ordersheet'!Y853=\"\",\"\",'1. Ordersheet'!Y853)","v":""},{"$f":"IF('1. Ordersheet'!Z853=\"\",\"\",'1. Ordersheet'!Z853)","v":""},{"$f":"IF('1. Ordersheet'!AA853=\"\",\"\",'1. Ordersheet'!AA853)","v":""},null,{"$f":"IF('1. Ordersheet'!AS853=\"\",\"\",'1. Ordersheet'!AS853)","v":""},{"$f":"IF('1. Ordersheet'!AT853=\"\",\"\",'1. Ordersheet'!AT853)","v":""},null,null,null,null,null,null,null,{"$f":"IF('1. Ordersheet'!AX853=\"\",\"\",'1. Ordersheet'!AX853)","v":""},{"$f":"IF('1. Ordersheet'!AY853=\"\",\"\",'1. Ordersheet'!AY853)","v":""},{"$f":"IF('1. Ordersheet'!AZ853=\"\",\"\",'1. Ordersheet'!AZ853)","v":""},{"$f":"IF('1. Ordersheet'!BA853=\"\",\"\",'1. Ordersheet'!BA853)","v":""},{"$f":"IF('1. Ordersheet'!BC853=\"\",\"\",'1. Ordersheet'!BC853)","v":""},{"$f":"IF('1. Ordersheet'!BD853=\"\",\"\",'1. Ordersheet'!BD853)","v":""},{"$f":"IF('1. Ordersheet'!BE853=\"\",\"\",'1. Ordersheet'!BE853)","v":""},{"$f":"IF('1. Ordersheet'!BF853=\"\",\"\",'1. Ordersheet'!BF853)","v":""},{"$f":"IF('1. Ordersheet'!BG853=\"\",\"\",'1. Ordersheet'!BG853)","v":"ZWO"},{"$f":"IF('1. Ordersheet'!BH853=\"\",\"\",'1. Ordersheet'!BH853)","v":""},{"$f":"IF('1. Ordersheet'!BI853=\"\",\"\",'1. Ordersheet'!BI853)","v":""},{"$f":"IF('1. Ordersheet'!BJ853=\"\",\"\",'1. Ordersheet'!BJ853)","v":""},{"$f":"IF('1. Ordersheet'!BK853=\"\",\"\",'1. Ordersheet'!BK853)","v":""},{"$f":"IF('1. Ordersheet'!BL853=\"\",\"\",'1. Ordersheet'!BL853)","v":""}]
[{"$f":"IF('1. Ordersheet'!F854=\"\",\"\",'1. Ordersheet'!F854)","v":""},{"$f":"IF('1. Ordersheet'!G854=\"\",\"\",'1. Ordersheet'!G854)","v":""},{"$f":"IF('1. Ordersheet'!H854=\"\",\"\",'1. Ordersheet'!H854)","v":""},{"$f":"IF('1. Ordersheet'!I854=\"\",\"\",'1. Ordersheet'!I854)","v":""},{"$f":"IF('1. Ordersheet'!J854=\"\",\"\",'1. Ordersheet'!J854)","v":""},{"$f":"IF('1. Ordersheet'!K854=\"\",\"\",'1. Ordersheet'!K854)","v":""},{"$f":"IF('1. Ordersheet'!L854=\"\",\"\",'1. Ordersheet'!L854)","v":""},{"$f":"IF('1. Ordersheet'!M854=\"\",\"\",'1. Ordersheet'!M854)","v":""},{"$f":"IF('1. Ordersheet'!N854=\"\",\"\",'1. Ordersheet'!N854)","v":""},{"$f":"IF('1. Ordersheet'!O854=\"\",\"\",'1. Ordersheet'!O854)","v":{"$error":"#N/A"}},{"$f":"IF('1. Ordersheet'!P854=\"\",\"\",'1. Ordersheet'!P854)","v":{"$error":"#N/A"}},{"$f":"IF('1. Ordersheet'!Q854=\"\",\"\",'1. Ordersheet'!Q854)","v":""},{"$f":"IF('1. Ordersheet'!R854=\"\",\"\",'1. Ordersheet'!R854)","v":""},{"$f":"IF('1. Ordersheet'!S854=\"\",\"\",'1. Ordersheet'!S854)","v":""},{"$f":"IF('1. Ordersheet'!V854=\"\",\"\",'1. Ordersheet'!V854)","v":""},{"$f":"IF('1. Ordersheet'!W854=\"\",\"\",'1. Ordersheet'!W854)","v":""},{"$f":"IF('1. Ordersheet'!X854=\"\",\"\",'1. Ordersheet'!X854)","v":""},{"$f":"IF('1. Ordersheet'!Y854=\"\",\"\",'1. Ordersheet'!Y854)","v":""},{"$f":"IF('1. Ordersheet'!Z854=\"\",\"\",'1. Ordersheet'!Z854)","v":""},{"$f":"IF('1. Ordersheet'!AA854=\"\",\"\",'1. Ordersheet'!AA854)","v":""},null,{"$f":"IF('1. Ordersheet'!AS854=\"\",\"\",'1. Ordersheet'!AS854)","v":""},{"$f":"IF('1. Ordersheet'!AT854=\"\",\"\",'1. Ordersheet'!AT854)","v":""},null,null,null,null,null,null,null,{"$f":"IF('1. Ordersheet'!AX854=\"\",\"\",'1. Ordersheet'!AX854)","v":""},{"$f":"IF('1. Ordersheet'!AY854=\"\",\"\",'1. Ordersheet'!AY854)","v":""},{"$f":"IF('1. Ordersheet'!AZ854=\"\",\"\",'1. Ordersheet'!AZ854)","v":""},{"$f":"IF('1. Ordersheet'!BA854=\"\",\"\",'1. Ordersheet'!BA854)","v":""},{"$f":"IF('1. Ordersheet'!BC854=\"\",\"\",'1. Ordersheet'!BC854)","v":""},{"$f":"IF('1. Ordersheet'!BD854=\"\",\"\",'1. Ordersheet'!BD854)","v":""},{"$f":"IF('1. Ordersheet'!BE854=\"\",\"\",'1. Ordersheet'!BE854)","v":""},{"$f":"IF('1. Ordersheet'!BF854=\"\",\"\",'1. Ordersheet'!BF854)","v":""},{"$f":"IF('1. Ordersheet'!BG854=\"\",\"\",'1. Ordersheet'!BG854)","v":"ZWO"},{"$f":"IF('1. Ordersheet'!BH854=\"\",\"\",'1. Ordersheet'!BH854)","v":""},{"$f":"IF('1. Ordersheet'!BI854=\"\",\"\",'1. Ordersheet'!BI854)","v":""},{"$f":"IF('1. Ordersheet'!BJ854=\"\",\"\",'1. Ordersheet'!BJ854)","v":""},{"$f":"IF('1. Ordersheet'!BK854=\"\",\"\",'1. Ordersheet'!BK854)","v":""},{"$f":"IF('1. Ordersheet'!BL854=\"\",\"\",'1. Ordersheet'!BL854)","v":""}]
[{"$f":"IF('1. Ordersheet'!F855=\"\",\"\",'1. Ordersheet'!F855)","v":""},{"$f":"IF('1. Ordersheet'!G855=\"\",\"\",'1. Ordersheet'!G855)","v":""},{"$f":"IF('1. Ordersheet'!H855=\"\",\"\",'1. Ordersheet'!H855)","v":""},{"$f":"IF('1. Ordersheet'!I855=\"\",\"\",'1. Ordersheet'!I855)","v":""},{"$f":"IF('1. Ordersheet'!J855=\"\",\"\",'1. Ordersheet'!J855)","v":""},{"$f":"IF('1. Ordersheet'!K855=\"\",\"\",'1. Ordersheet'!K855)","v":""},{"$f":"IF('1. Ordersheet'!L855=\"\",\"\",'1. Ordersheet'!L855)","v":""},{"$f":"IF('1. Ordersheet'!M855=\"\",\"\",'1. Ordersheet'!M855)","v":""},{"$f":"IF('1. Ordersheet'!N855=\"\",\"\",'1. Ordersheet'!N855)","v":""},{"$f":"IF('1. Ordersheet'!O855=\"\",\"\",'1. Ordersheet'!O855)","v":{"$error":"#N/A"}},{"$f":"IF('1. Ordersheet'!P855=\"\",\"\",'1. Ordersheet'!P855)","v":{"$error":"#N/A"}},{"$f":"IF('1. Ordersheet'!Q855=\"\",\"\",'1. Ordersheet'!Q855)","v":""},{"$f":"IF('1. Ordersheet'!R855=\"\",\"\",'1. Ordersheet'!R855)","v":""},{"$f":"IF('1. Ordersheet'!S855=\"\",\"\",'1. Ordersheet'!S855)","v":""},{"$f":"IF('1. Ordersheet'!V855=\"\",\"\",'1. Ordersheet'!V855)","v":""},{"$f":"IF('1. Ordersheet'!W855=\"\",\"\",'1. Ordersheet'!W855)","v":""},{"$f":"IF('1. Ordersheet'!X855=\"\",\"\",'1. Ordersheet'!X855)","v":""},{"$f":"IF('1. Ordersheet'!Y855=\"\",\"\",'1. Ordersheet'!Y855)","v":""},{"$f":"IF('1. Ordersheet'!Z855=\"\",\"\",'1. Ordersheet'!Z855)","v":""},{"$f":"IF('1. Ordersheet'!AA855=\"\",\"\",'1. Ordersheet'!AA855)","v":""},null,{"$f":"IF('1. Ordersheet'!AS855=\"\",\"\",'1. Ordersheet'!AS855)","v":""},{"$f":"IF('1. Ordersheet'!AT855=\"\",\"\",'1. Ordersheet'!AT855)","v":""},null,null,null,null,null,null,null,{"$f":"IF('1. Ordersheet'!AX855=\"\",\"\",'1. Ordersheet'!AX855)","v":""},{"$f":"IF('1. Ordersheet'!AY855=\"\",\"\",'1. Ordersheet'!AY855)","v":""},{"$f":"IF('1. Ordersheet'!AZ855=\"\",\"\",'1. Ordersheet'!AZ855)","v":""},{"$f":"IF('1. Ordersheet'!BA855=\"\",\"\",'1. Ordersheet'!BA855)","v":""},{"$f":"IF('1. Ordersheet'!BC855=\"\",\"\",'1. Ordersheet'!BC855)","v":""},{"$f":"IF('1. Ordersheet'!BD855=\"\",\"\",'1. Ordersheet'!BD855)","v":""},{"$f":"IF('1. Ordersheet'!BE855=\"\",\"\",'1. Ordersheet'!BE855)","v":""},{"$f":"IF('1. Ordersheet'!BF855=\"\",\"\",'1. Ordersheet'!BF855)","v":""},{"$f":"IF('1. Ordersheet'!BG855=\"\",\"\",'1. Ordersheet'!BG855)","v":"ZWO"},{"$f":"IF('1. Ordersheet'!BH855=\"\",\"\",'1. Ordersheet'!BH855)","v":""},{"$f":"IF('1. Ordersheet'!BI855=\"\",\"\",'1. Ordersheet'!BI855)","v":""},{"$f":"IF('1. Ordersheet'!BJ855=\"\",\"\",'1. Ordersheet'!BJ855)","v":""},{"$f":"IF('1. Ordersheet'!BK855=\"\",\"\",'1. Ordersheet'!BK855)","v":""},{"$f":"IF('1. Ordersheet'!BL855=\"\",\"\",'1. Ordersheet'!BL855)","v":""}]
[{"$f":"IF('1. Ordersheet'!F856=\"\",\"\",'1. Ordersheet'!F856)","v":""},{"$f":"IF('1. Ordersheet'!G856=\"\",\"\",'1. Ordersheet'!G856)","v":""},{"$f":"IF('1. Ordersheet'!H856=\"\",\"\",'1. Ordersheet'!H856)","v":""},{"$f":"IF('1. Ordersheet'!I856=\"\",\"\",'1. Ordersheet'!I856)","v":""},{"$f":"IF('1. Ordersheet'!J856=\"\",\"\",'1. Ordersheet'!J856)","v":""},{"$f":"IF('1. Ordersheet'!K856=\"\",\"\",'1. Ordersheet'!K856)","v":""},{"$f":"IF('1. Ordersheet'!L856=\"\",\"\",'1. Ordersheet'!L856)","v":""},{"$f":"IF('1. Ordersheet'!M856=\"\",\"\",'1. Ordersheet'!M856)","v":""},{"$f":"IF('1. Ordersheet'!N856=\"\",\"\",'1. Ordersheet'!N856)","v":""},{"$f":"IF('1. Ordersheet'!O856=\"\",\"\",'1. Ordersheet'!O856)","v":{"$error":"#N/A"}},{"$f":"IF('1. Ordersheet'!P856=\"\",\"\",'1. Ordersheet'!P856)","v":{"$error":"#N/A"}},{"$f":"IF('1. Ordersheet'!Q856=\"\",\"\",'1. Ordersheet'!Q856)","v":""},{"$f":"IF('1. Ordersheet'!R856=\"\",\"\",'1. Ordersheet'!R856)","v":""},{"$f":"IF('1. Ordersheet'!S856=\"\",\"\",'1. Ordersheet'!S856)","v":""},{"$f":"IF('1. Ordersheet'!V856=\"\",\"\",'1. Ordersheet'!V856)","v":""},{"$f":"IF('1. Ordersheet'!W856=\"\",\"\",'1. Ordersheet'!W856)","v":""},{"$f":"IF('1. Ordersheet'!X856=\"\",\"\",'1. Ordersheet'!X856)","v":""},{"$f":"IF('1. Ordersheet'!Y856=\"\",\"\",'1. Ordersheet'!Y856)","v":""},{"$f":"IF('1. Ordersheet'!Z856=\"\",\"\",'1. Ordersheet'!Z856)","v":""},{"$f":"IF('1. Ordersheet'!AA856=\"\",\"\",'1. Ordersheet'!AA856)","v":""},null,{"$f":"IF('1. Ordersheet'!AS856=\"\",\"\",'1. Ordersheet'!AS856)","v":""},{"$f":"IF('1. Ordersheet'!AT856=\"\",\"\",'1. Ordersheet'!AT856)","v":""},null,null,null,null,null,null,null,{"$f":"IF('1. Ordersheet'!AX856=\"\",\"\",'1. Ordersheet'!AX856)","v":""},{"$f":"IF('1. Ordersheet'!AY856=\"\",\"\",'1. Ordersheet'!AY856)","v":""},{"$f":"IF('1. Ordersheet'!AZ856=\"\",\"\",'1. Ordersheet'!AZ856)","v":""},{"$f":"IF('1. Ordersheet'!BA856=\"\",\"\",'1. Ordersheet'!BA856)","v":""},{"$f":"IF('1. Ordersheet'!BC856=\"\",\"\",'1. Ordersheet'!BC856)","v":""},{"$f":"IF('1. Ordersheet'!BD856=\"\",\"\",'1. Ordersheet'!BD856)","v":""},{"$f":"IF('1. Ordersheet'!BE856=\"\",\"\",'1. Ordersheet'!BE856)","v":""},{"$f":"IF('1. Ordersheet'!BF856=\"\",\"\",'1. Ordersheet'!BF856)","v":""},{"$f":"IF('1. Ordersheet'!BG856=\"\",\"\",'1. Ordersheet'!BG856)","v":"ZWO"},{"$f":"IF('1. Ordersheet'!BH856=\"\",\"\",'1. Ordersheet'!BH856)","v":""},{"$f":"IF('1. Ordersheet'!BI856=\"\",\"\",'1. Ordersheet'!BI856)","v":""},{"$f":"IF('1. Ordersheet'!BJ856=\"\",\"\",'1. Ordersheet'!BJ856)","v":""},{"$f":"IF('1. Ordersheet'!BK856=\"\",\"\",'1. Ordersheet'!BK856)","v":""},{"$f":"IF('1. Ordersheet'!BL856=\"\",\"\",'1. Ordersheet'!BL856)","v":""}]
[{"$f":"IF('1. Ordersheet'!F857=\"\",\"\",'1. Ordersheet'!F857)","v":""},{"$f":"IF('1. Ordersheet'!G857=\"\",\"\",'1. Ordersheet'!G857)","v":""},{"$f":"IF('1. Ordersheet'!H857=\"\",\"\",'1. Ordersheet'!H857)","v":""},{"$f":"IF('1. Ordersheet'!I857=\"\",\"\",'1. Ordersheet'!I857)","v":""},{"$f":"IF('1. Ordersheet'!J857=\"\",\"\",'1. Ordersheet'!J857)","v":""},{"$f":"IF('1. Ordersheet'!K857=\"\",\"\",'1. Ordersheet'!K857)","v":""},{"$f":"IF('1. Ordersheet'!L857=\"\",\"\",'1. Ordersheet'!L857)","v":""},{"$f":"IF('1. Ordersheet'!M857=\"\",\"\",'1. Ordersheet'!M857)","v":""},{"$f":"IF('1. Ordersheet'!N857=\"\",\"\",'1. Ordersheet'!N857)","v":""},{"$f":"IF('1. Ordersheet'!O857=\"\",\"\",'1. Ordersheet'!O857)","v":{"$error":"#N/A"}},{"$f":"IF('1. Ordersheet'!P857=\"\",\"\",'1. Ordersheet'!P857)","v":{"$error":"#N/A"}},{"$f":"IF('1. Ordersheet'!Q857=\"\",\"\",'1. Ordersheet'!Q857)","v":""},{"$f":"IF('1. Ordersheet'!R857=\"\",\"\",'1. Ordersheet'!R857)","v":""},{"$f":"IF('1. Ordersheet'!S857=\"\",\"\",'1. Ordersheet'!S857)","v":""},{"$f":"IF('1. Ordersheet'!V857=\"\",\"\",'1. Ordersheet'!V857)","v":""},{"$f":"IF('1. Ordersheet'!W857=\"\",\"\",'1. Ordersheet'!W857)","v":""},{"$f":"IF('1. Ordersheet'!X857=\"\",\"\",'1. Ordersheet'!X857)","v":""},{"$f":"IF('1. Ordersheet'!Y857=\"\",\"\",'1. Ordersheet'!Y857)","v":""},{"$f":"IF('1. Ordersheet'!Z857=\"\",\"\",'1. Ordersheet'!Z857)","v":""},{"$f":"IF('1. Ordersheet'!AA857=\"\",\"\",'1. Ordersheet'!AA857)","v":""},null,{"$f":"IF('1. Ordersheet'!AS857=\"\",\"\",'1. Ordersheet'!AS857)","v":""},{"$f":"IF('1. Ordersheet'!AT857=\"\",\"\",'1. Ordersheet'!AT857)","v":""},null,null,null,null,null,null,null,{"$f":"IF('1. Ordersheet'!AX857=\"\",\"\",'1. Ordersheet'!AX857)","v":""},{"$f":"IF('1. Ordersheet'!AY857=\"\",\"\",'1. Ordersheet'!AY857)","v":""},{"$f":"IF('1. Ordersheet'!AZ857=\"\",\"\",'1. Ordersheet'!AZ857)","v":""},{"$f":"IF('1. Ordersheet'!BA857=\"\",\"\",'1. Ordersheet'!BA857)","v":""},{"$f":"IF('1. Ordersheet'!BC857=\"\",\"\",'1. Ordersheet'!BC857)","v":""},{"$f":"IF('1. Ordersheet'!BD857=\"\",\"\",'1. Ordersheet'!BD857)","v":""},{"$f":"IF('1. Ordersheet'!BE857=\"\",\"\",'1. Ordersheet'!BE857)","v":""},{"$f":"IF('1. Ordersheet'!BF857=\"\",\"\",'1. Ordersheet'!BF857)","v":""},{"$f":"IF('1. Ordersheet'!BG857=\"\",\"\",'1. Ordersheet'!BG857)","v":"ZWO"},{"$f":"IF('1. Ordersheet'!BH857=\"\",\"\",'1. Ordersheet'!BH857)","v":""},{"$f":"IF('1. Ordersheet'!BI857=\"\",\"\",'1. Ordersheet'!BI857)","v":""},{"$f":"IF('1. Ordersheet'!BJ857=\"\",\"\",'1. Ordersheet'!BJ857)","v":""},{"$f":"IF('1. Ordersheet'!BK857=\"\",\"\",'1. Ordersheet'!BK857)","v":""},{"$f":"IF('1. Ordersheet'!BL857=\"\",\"\",'1. Ordersheet'!BL857)","v":""}]
[{"$f":"IF('1. Ordersheet'!F858=\"\",\"\",'1. Ordersheet'!F858)","v":""},{"$f":"IF('1. Ordersheet'!G858=\"\",\"\",'1. Ordersheet'!G858)","v":""},{"$f":"IF('1. Ordersheet'!H858=\"\",\"\",'1. Ordersheet'!H858)","v":""},{"$f":"IF('1. Ordersheet'!I858=\"\",\"\",'1. Ordersheet'!I858)","v":""},{"$f":"IF('1. Ordersheet'!J858=\"\",\"\",'1. Ordersheet'!J858)","v":""},{"$f":"IF('1. Ordersheet'!K858=\"\",\"\",'1. Ordersheet'!K858)","v":""},{"$f":"IF('1. Ordersheet'!L858=\"\",\"\",'1. Ordersheet'!L858)","v":""},{"$f":"IF('1. Ordersheet'!M858=\"\",\"\",'1. Ordersheet'!M858)","v":""},{"$f":"IF('1. Ordersheet'!N858=\"\",\"\",'1. Ordersheet'!N858)","v":""},{"$f":"IF('1. Ordersheet'!O858=\"\",\"\",'1. Ordersheet'!O858)","v":{"$error":"#N/A"}},{"$f":"IF('1. Ordersheet'!P858=\"\",\"\",'1. Ordersheet'!P858)","v":{"$error":"#N/A"}},{"$f":"IF('1. Ordersheet'!Q858=\"\",\"\",'1. Ordersheet'!Q858)","v":""},{"$f":"IF('1. Ordersheet'!R858=\"\",\"\",'1. Ordersheet'!R858)","v":""},{"$f":"IF('1. Ordersheet'!S858=\"\",\"\",'1. Ordersheet'!S858)","v":""},{"$f":"IF('1. Ordersheet'!V858=\"\",\"\",'1. Ordersheet'!V858)","v":""},{"$f":"IF('1. Ordersheet'!W858=\"\",\"\",'1. Ordersheet'!W858)","v":""},{"$f":"IF('1. Ordersheet'!X858=\"\",\"\",'1. Ordersheet'!X858)","v":""},{"$f":"IF('1. Ordersheet'!Y858=\"\",\"\",'1. Ordersheet'!Y858)","v":""},{"$f":"IF('1. Ordersheet'!Z858=\"\",\"\",'1. Ordersheet'!Z858)","v":""},{"$f":"IF('1. Ordersheet'!AA858=\"\",\"\",'1. Ordersheet'!AA858)","v":""},null,{"$f":"IF('1. Ordersheet'!AS858=\"\",\"\",'1. Ordersheet'!AS858)","v":""},{"$f":"IF('1. Ordersheet'!AT858=\"\",\"\",'1. Ordersheet'!AT858)","v":""},null,null,null,null,null,null,null,{"$f":"IF('1. Ordersheet'!AX858=\"\",\"\",'1. Ordersheet'!AX858)","v":""},{"$f":"IF('1. Ordersheet'!AY858=\"\",\"\",'1. Ordersheet'!AY858)","v":""},{"$f":"IF('1. Ordersheet'!AZ858=\"\",\"\",'1. Ordersheet'!AZ858)","v":""},{"$f":"IF('1. Ordersheet'!BA858=\"\",\"\",'1. Ordersheet'!BA858)","v":""},{"$f":"IF('1. Ordersheet'!BC858=\"\",\"\",'1. Ordersheet'!BC858)","v":""},{"$f":"IF('1. Ordersheet'!BD858=\"\",\"\",'1. Ordersheet'!BD858)","v":""},{"$f":"IF('1. Ordersheet'!BE858=\"\",\"\",'1. Ordersheet'!BE858)","v":""},{"$f":"IF('1. Ordersheet'!BF858=\"\",\"\",'1. Ordersheet'!BF858)","v":""},{"$f":"IF('1. Ordersheet'!BG858=\"\",\"\",'1. Ordersheet'!BG858)","v":"ZWO"},{"$f":"IF('1. Ordersheet'!BH858=\"\",\"\",'1. Ordersheet'!BH858)","v":""},{"$f":"IF('1. Ordersheet'!BI858=\"\",\"\",'1. Ordersheet'!BI858)","v":""},{"$f":"IF('1. Ordersheet'!BJ858=\"\",\"\",'1. Ordersheet'!BJ858)","v":""},{"$f":"IF('1. Ordersheet'!BK858=\"\",\"\",'1. Ordersheet'!BK858)","v":""},{"$f":"IF('1. Ordersheet'!BL858=\"\",\"\",'1. Ordersheet'!BL858)","v":""}]
[{"$f":"IF('1. Ordersheet'!F859=\"\",\"\",'1. Ordersheet'!F859)","v":""},{"$f":"IF('1. Ordersheet'!G859=\"\",\"\",'1. Ordersheet'!G859)","v":""},{"$f":"IF('1. Ordersheet'!H859=\"\",\"\",'1. Ordersheet'!H859)","v":""},{"$f":"IF('1. Ordersheet'!I859=\"\",\"\",'1. Ordersheet'!I859)","v":""},{"$f":"IF('1. Ordersheet'!J859=\"\",\"\",'1. Ordersheet'!J859)","v":""},{"$f":"IF('1. Ordersheet'!K859=\"\",\"\",'1. Ordersheet'!K859)","v":""},{"$f":"IF('1. Ordersheet'!L859=\"\",\"\",'1. Ordersheet'!L859)","v":""},{"$f":"IF('1. Ordersheet'!M859=\"\",\"\",'1. Ordersheet'!M859)","v":""},{"$f":"IF('1. Ordersheet'!N859=\"\",\"\",'1. Ordersheet'!N859)","v":""},{"$f":"IF('1. Ordersheet'!O859=\"\",\"\",'1. Ordersheet'!O859)","v":{"$error":"#N/A"}},{"$f":"IF('1. Ordersheet'!P859=\"\",\"\",'1. Ordersheet'!P859)","v":{"$error":"#N/A"}},{"$f":"IF('1. Ordersheet'!Q859=\"\",\"\",'1. Ordersheet'!Q859)","v":""},{"$f":"IF('1. Ordersheet'!R859=\"\",\"\",'1. Ordersheet'!R859)","v":""},{"$f":"IF('1. Ordersheet'!S859=\"\",\"\",'1. Ordersheet'!S859)","v":""},{"$f":"IF('1. Ordersheet'!V859=\"\",\"\",'1. Ordersheet'!V859)","v":""},{"$f":"IF('1. Ordersheet'!W859=\"\",\"\",'1. Ordersheet'!W859)","v":""},{"$f":"IF('1. Ordersheet'!X859=\"\",\"\",'1. Ordersheet'!X859)","v":""},{"$f":"IF('1. Ordersheet'!Y859=\"\",\"\",'1. Ordersheet'!Y859)","v":""},{"$f":"IF('1. Ordersheet'!Z859=\"\",\"\",'1. Ordersheet'!Z859)","v":""},{"$f":"IF('1. Ordersheet'!AA859=\"\",\"\",'1. Ordersheet'!AA859)","v":""},null,{"$f":"IF('1. Ordersheet'!AS859=\"\",\"\",'1. Ordersheet'!AS859)","v":""},{"$f":"IF('1. Ordersheet'!AT859=\"\",\"\",'1. Ordersheet'!AT859)","v":""},null,null,null,null,null,null,null,{"$f":"IF('1. Ordersheet'!AX859=\"\",\"\",'1. Ordersheet'!AX859)","v":""},{"$f":"IF('1. Ordersheet'!AY859=\"\",\"\",'1. Ordersheet'!AY859)","v":""},{"$f":"IF('1. Ordersheet'!AZ859=\"\",\"\",'1. Ordersheet'!AZ859)","v":""},{"$f":"IF('1. Ordersheet'!BA859=\"\",\"\",'1. Ordersheet'!BA859)","v":""},{"$f":"IF('1. Ordersheet'!BC859=\"\",\"\",'1. Ordersheet'!BC859)","v":""},{"$f":"IF('1. Ordersheet'!BD859=\"\",\"\",'1. Ordersheet'!BD859)","v":""},{"$f":"IF('1. Ordersheet'!BE859=\"\",\"\",'1. Ordersheet'!BE859)","v":""},{"$f":"IF('1. Ordersheet'!BF859=\"\",\"\",'1. Ordersheet'!BF859)","v":""},{"$f":"IF('1. Ordersheet'!BG859=\"\",\"\",'1. Ordersheet'!BG859)","v":"ZWO"},{"$f":"IF('1. Ordersheet'!BH859=\"\",\"\",'1. Ordersheet'!BH859)","v":""},{"$f":"IF('1. Ordersheet'!BI859=\"\",\"\",'1. Ordersheet'!BI859)","v":""},{"$f":"IF('1. Ordersheet'!BJ859=\"\",\"\",'1. Ordersheet'!BJ859)","v":""},{"$f":"IF('1. Ordersheet'!BK859=\"\",\"\",'1. Ordersheet'!BK859)","v":""},{"$f":"IF('1. Ordersheet'!BL859=\"\",\"\",'1. Ordersheet'!BL859)","v":""}]
[{"$f":"IF('1. Ordersheet'!F860=\"\",\"\",'1. Ordersheet'!F860)","v":""},{"$f":"IF('1. Ordersheet'!G860=\"\",\"\",'1. Ordersheet'!G860)","v":""},{"$f":"IF('1. Ordersheet'!H860=\"\",\"\",'1. Ordersheet'!H860)","v":""},{"$f":"IF('1. Ordersheet'!I860=\"\",\"\",'1. Ordersheet'!I860)","v":""},{"$f":"IF('1. Ordersheet'!J860=\"\",\"\",'1. Ordersheet'!J860)","v":""},{"$f":"IF('1. Ordersheet'!K860=\"\",\"\",'1. Ordersheet'!K860)","v":""},{"$f":"IF('1. Ordersheet'!L860=\"\",\"\",'1. Ordersheet'!L860)","v":""},{"$f":"IF('1. Ordersheet'!M860=\"\",\"\",'1. Ordersheet'!M860)","v":""},{"$f":"IF('1. Ordersheet'!N860=\"\",\"\",'1. Ordersheet'!N860)","v":""},{"$f":"IF('1. Ordersheet'!O860=\"\",\"\",'1. Ordersheet'!O860)","v":{"$error":"#N/A"}},{"$f":"IF('1. Ordersheet'!P860=\"\",\"\",'1. Ordersheet'!P860)","v":{"$error":"#N/A"}},{"$f":"IF('1. Ordersheet'!Q860=\"\",\"\",'1. Ordersheet'!Q860)","v":""},{"$f":"IF('1. Ordersheet'!R860=\"\",\"\",'1. Ordersheet'!R860)","v":""},{"$f":"IF('1. Ordersheet'!S860=\"\",\"\",'1. Ordersheet'!S860)","v":""},{"$f":"IF('1. Ordersheet'!V860=\"\",\"\",'1. Ordersheet'!V860)","v":""},{"$f":"IF('1. Ordersheet'!W860=\"\",\"\",'1. Ordersheet'!W860)","v":""},{"$f":"IF('1. Ordersheet'!X860=\"\",\"\",'1. Ordersheet'!X860)","v":""},{"$f":"IF('1. Ordersheet'!Y860=\"\",\"\",'1. Ordersheet'!Y860)","v":""},{"$f":"IF('1. Ordersheet'!Z860=\"\",\"\",'1. Ordersheet'!Z860)","v":""},{"$f":"IF('1. Ordersheet'!AA860=\"\",\"\",'1. Ordersheet'!AA860)","v":""},null,{"$f":"IF('1. Ordersheet'!AS860=\"\",\"\",'1. Ordersheet'!AS860)","v":""},{"$f":"IF('1. Ordersheet'!AT860=\"\",\"\",'1. Ordersheet'!AT860)","v":""},null,null,null,null,null,null,null,{"$f":"IF('1. Ordersheet'!AX860=\"\",\"\",'1. Ordersheet'!AX860)","v":""},{"$f":"IF('1. Ordersheet'!AY860=\"\",\"\",'1. Ordersheet'!AY860)","v":""},{"$f":"IF('1. Ordersheet'!AZ860=\"\",\"\",'1. Ordersheet'!AZ860)","v":""},{"$f":"IF('1. Ordersheet'!BA860=\"\",\"\",'1. Ordersheet'!BA860)","v":""},{"$f":"IF('1. Ordersheet'!BC860=\"\",\"\",'1. Ordersheet'!BC860)","v":""},{"$f":"IF('1. Ordersheet'!BD860=\"\",\"\",'1. Ordersheet'!BD860)","v":""},{"$f":"IF('1. Ordersheet'!BE860=\"\",\"\",'1. Ordersheet'!BE860)","v":""},{"$f":"IF('1. Ordersheet'!BF860=\"\",\"\",'1. Ordersheet'!BF860)","v":""},{"$f":"IF('1. Ordersheet'!BG860=\"\",\"\",'1. Ordersheet'!BG860)","v":"ZWO"},{"$f":"IF('1. Ordersheet'!BH860=\"\",\"\",'1. Ordersheet'!BH860)","v":""},{"$f":"IF('1. Ordersheet'!BI860=\"\",\"\",'1. Ordersheet'!BI860)","v":""},{"$f":"IF('1. Ordersheet'!BJ860=\"\",\"\",'1. Ordersheet'!BJ860)","v":""},{"$f":"IF('1. Ordersheet'!BK860=\"\",\"\",'1. Ordersheet'!BK860)","v":""},{"$f":"IF('1. Ordersheet'!BL860=\"\",\"\",'1. Ordersheet'!BL860)","v":""}]
[{"$f":"IF('1. Ordersheet'!F861=\"\",\"\",'1. Ordersheet'!F861)","v":""},{"$f":"IF('1. Ordersheet'!G861=\"\",\"\",'1. Ordersheet'!G861)","v":""},{"$f":"IF('1. Ordersheet'!H861=\"\",\"\",'1. Ordersheet'!H861)","v":""},{"$f":"IF('1. Ordersheet'!I861=\"\",\"\",'1. Ordersheet'!I861)","v":""},{"$f":"IF('1. Ordersheet'!J861=\"\",\"\",'1. Ordersheet'!J861)","v":""},{"$f":"IF('1. Ordersheet'!K861=\"\",\"\",'1. Ordersheet'!K861)","v":""},{"$f":"IF('1. Ordersheet'!L861=\"\",\"\",'1. Ordersheet'!L861)","v":""},{"$f":"IF('1. Ordersheet'!M861=\"\",\"\",'1. Ordersheet'!M861)","v":""},{"$f":"IF('1. Ordersheet'!N861=\"\",\"\",'1. Ordersheet'!N861)","v":""},{"$f":"IF('1. Ordersheet'!O861=\"\",\"\",'1. Ordersheet'!O861)","v":{"$error":"#N/A"}},{"$f":"IF('1. Ordersheet'!P861=\"\",\"\",'1. Ordersheet'!P861)","v":{"$error":"#N/A"}},{"$f":"IF('1. Ordersheet'!Q861=\"\",\"\",'1. Ordersheet'!Q861)","v":""},{"$f":"IF('1. Ordersheet'!R861=\"\",\"\",'1. Ordersheet'!R861)","v":""},{"$f":"IF('1. Ordersheet'!S861=\"\",\"\",'1. Ordersheet'!S861)","v":""},{"$f":"IF('1. Ordersheet'!V861=\"\",\"\",'1. Ordersheet'!V861)","v":""},{"$f":"IF('1. Ordersheet'!W861=\"\",\"\",'1. Ordersheet'!W861)","v":""},{"$f":"IF('1. Ordersheet'!X861=\"\",\"\",'1. Ordersheet'!X861)","v":""},{"$f":"IF('1. Ordersheet'!Y861=\"\",\"\",'1. Ordersheet'!Y861)","v":""},{"$f":"IF('1. Ordersheet'!Z861=\"\",\"\",'1. Ordersheet'!Z861)","v":""},{"$f":"IF('1. Ordersheet'!AA861=\"\",\"\",'1. Ordersheet'!AA861)","v":""},null,{"$f":"IF('1. Ordersheet'!AS861=\"\",\"\",'1. Ordersheet'!AS861)","v":""},{"$f":"IF('1. Ordersheet'!AT861=\"\",\"\",'1. Ordersheet'!AT861)","v":""},null,null,null,null,null,null,null,{"$f":"IF('1. Ordersheet'!AX861=\"\",\"\",'1. Ordersheet'!AX861)","v":""},{"$f":"IF('1. Ordersheet'!AY861=\"\",\"\",'1. Ordersheet'!AY861)","v":""},{"$f":"IF('1. Ordersheet'!AZ861=\"\",\"\",'1. Ordersheet'!AZ861)","v":""},{"$f":"IF('1. Ordersheet'!BA861=\"\",\"\",'1. Ordersheet'!BA861)","v":""},{"$f":"IF('1. Ordersheet'!BC861=\"\",\"\",'1. Ordersheet'!BC861)","v":""},{"$f":"IF('1. Ordersheet'!BD861=\"\",\"\",'1. Ordersheet'!BD861)","v":""},{"$f":"IF('1. Ordersheet'!BE861=\"\",\"\",'1. Ordersheet'!BE861)","v":""},{"$f":"IF('1. Ordersheet'!BF861=\"\",\"\",'1. Ordersheet'!BF861)","v":""},{"$f":"IF('1. Ordersheet'!BG861=\"\",\"\",'1. Ordersheet'!BG861)","v":"ZWO"},{"$f":"IF('1. Ordersheet'!BH861=\"\",\"\",'1. Ordersheet'!BH861)","v":""},{"$f":"IF('1. Ordersheet'!BI861=\"\",\"\",'1. Ordersheet'!BI861)","v":""},{"$f":"IF('1. Ordersheet'!BJ861=\"\",\"\",'1. Ordersheet'!BJ861)","v":""},{"$f":"IF('1. Ordersheet'!BK861=\"\",\"\",'1. Ordersheet'!BK861)","v":""},{"$f":"IF('1. Ordersheet'!BL861=\"\",\"\",'1. Ordersheet'!BL861)","v":""}]
[{"$f":"IF('1. Ordersheet'!F862=\"\",\"\",'1. Ordersheet'!F862)","v":""},{"$f":"IF('1. Ordersheet'!G862=\"\",\"\",'1. Ordersheet'!G862)","v":""},{"$f":"IF('1. Ordersheet'!H862=\"\",\"\",'1. Ordersheet'!H862)","v":""},{"$f":"IF('1. Ordersheet'!I862=\"\",\"\",'1. Ordersheet'!I862)","v":""},{"$f":"IF('1. Ordersheet'!J862=\"\",\"\",'1. Ordersheet'!J862)","v":""},{"$f":"IF('1. Ordersheet'!K862=\"\",\"\",'1. Ordersheet'!K862)","v":""},{"$f":"IF('1. Ordersheet'!L862=\"\",\"\",'1. Ordersheet'!L862)","v":""},{"$f":"IF('1. Ordersheet'!M862=\"\",\"\",'1. Ordersheet'!M862)","v":""},{"$f":"IF('1. Ordersheet'!N862=\"\",\"\",'1. Ordersheet'!N862)","v":""},{"$f":"IF('1. Ordersheet'!O862=\"\",\"\",'1. Ordersheet'!O862)","v":{"$error":"#N/A"}},{"$f":"IF('1. Ordersheet'!P862=\"\",\"\",'1. Ordersheet'!P862)","v":{"$error":"#N/A"}},{"$f":"IF('1. Ordersheet'!Q862=\"\",\"\",'1. Ordersheet'!Q862)","v":""},{"$f":"IF('1. Ordersheet'!R862=\"\",\"\",'1. Ordersheet'!R862)","v":""},{"$f":"IF('1. Ordersheet'!S862=\"\",\"\",'1. Ordersheet'!S862)","v":""},{"$f":"IF('1. Ordersheet'!V862=\"\",\"\",'1. Ordersheet'!V862)","v":""},{"$f":"IF('1. Ordersheet'!W862=\"\",\"\",'1. Ordersheet'!W862)","v":""},{"$f":"IF('1. Ordersheet'!X862=\"\",\"\",'1. Ordersheet'!X862)","v":""},{"$f":"IF('1. Ordersheet'!Y862=\"\",\"\",'1. Ordersheet'!Y862)","v":""},{"$f":"IF('1. Ordersheet'!Z862=\"\",\"\",'1. Ordersheet'!Z862)","v":""},{"$f":"IF('1. Ordersheet'!AA862=\"\",\"\",'1. Ordersheet'!AA862)","v":""},null,{"$f":"IF('1. Ordersheet'!AS862=\"\",\"\",'1. Ordersheet'!AS862)","v":""},{"$f":"IF('1. Ordersheet'!AT862=\"\",\"\",'1. Ordersheet'!AT862)","v":""},null,null,null,null,null,null,null,{"$f":"IF('1. Ordersheet'!AX862=\"\",\"\",'1. Ordersheet'!AX862)","v":""},{"$f":"IF('1. Ordersheet'!AY862=\"\",\"\",'1. Ordersheet'!AY862)","v":""},{"$f":"IF('1. Ordersheet'!AZ862=\"\",\"\",'1. Ordersheet'!AZ862)","v":""},{"$f":"IF('1. Ordersheet'!BA862=\"\",\"\",'1. Ordersheet'!BA862)","v":""},{"$f":"IF('1. Ordersheet'!BC862=\"\",\"\",'1. Ordersheet'!BC862)","v":""},{"$f":"IF('1. Ordersheet'!BD862=\"\",\"\",'1. Ordersheet'!BD862)","v":""},{"$f":"IF('1. Ordersheet'!BE862=\"\",\"\",'1. Ordersheet'!BE862)","v":""},{"$f":"IF('1. Ordersheet'!BF862=\"\",\"\",'1. Ordersheet'!BF862)","v":""},{"$f":"IF('1. Ordersheet'!BG862=\"\",\"\",'1. Ordersheet'!BG862)","v":"ZWO"},{"$f":"IF('1. Ordersheet'!BH862=\"\",\"\",'1. Ordersheet'!BH862)","v":""},{"$f":"IF('1. Ordersheet'!BI862=\"\",\"\",'1. Ordersheet'!BI862)","v":""},{"$f":"IF('1. Ordersheet'!BJ862=\"\",\"\",'1. Ordersheet'!BJ862)","v":""},{"$f":"IF('1. Ordersheet'!BK862=\"\",\"\",'1. Ordersheet'!BK862)","v":""},{"$f":"IF('1. Ordersheet'!BL862=\"\",\"\",'1. Ordersheet'!BL862)","v":""}]
[{"$f":"IF('1. Ordersheet'!F863=\"\",\"\",'1. Ordersheet'!F863)","v":""},{"$f":"IF('1. Ordersheet'!G863=\"\",\"\",'1. Ordersheet'!G863)","v":""},{"$f":"IF('1. Ordersheet'!H863=\"\",\"\",'1. Ordersheet'!H863)","v":""},{"$f":"IF('1. Ordersheet'!I863=\"\",\"\",'1. Ordersheet'!I863)","v":""},{"$f":"IF('1. Ordersheet'!J863=\"\",\"\",'1. Ordersheet'!J863)","v":""},{"$f":"IF('1. Ordersheet'!K863=\"\",\"\",'1. Ordersheet'!K863)","v":""},{"$f":"IF('1. Ordersheet'!L863=\"\",\"\",'1. Ordersheet'!L863)","v":""},{"$f":"IF('1. Ordersheet'!M863=\"\",\"\",'1. Ordersheet'!M863)","v":""},{"$f":"IF('1. Ordersheet'!N863=\"\",\"\",'1. Ordersheet'!N863)","v":""},{"$f":"IF('1. Ordersheet'!O863=\"\",\"\",'1. Ordersheet'!O863)","v":{"$error":"#N/A"}},{"$f":"IF('1. Ordersheet'!P863=\"\",\"\",'1. Ordersheet'!P863)","v":{"$error":"#N/A"}},{"$f":"IF('1. Ordersheet'!Q863=\"\",\"\",'1. Ordersheet'!Q863)","v":""},{"$f":"IF('1. Ordersheet'!R863=\"\",\"\",'1. Ordersheet'!R863)","v":""},{"$f":"IF('1. Ordersheet'!S863=\"\",\"\",'1. Ordersheet'!S863)","v":""},{"$f":"IF('1. Ordersheet'!V863=\"\",\"\",'1. Ordersheet'!V863)","v":""},{"$f":"IF('1. Ordersheet'!W863=\"\",\"\",'1. Ordersheet'!W863)","v":""},{"$f":"IF('1. Ordersheet'!X863=\"\",\"\",'1. Ordersheet'!X863)","v":""},{"$f":"IF('1. Ordersheet'!Y863=\"\",\"\",'1. Ordersheet'!Y863)","v":""},{"$f":"IF('1. Ordersheet'!Z863=\"\",\"\",'1. Ordersheet'!Z863)","v":""},{"$f":"IF('1. Ordersheet'!AA863=\"\",\"\",'1. Ordersheet'!AA863)","v":""},null,{"$f":"IF('1. Ordersheet'!AS863=\"\",\"\",'1. Ordersheet'!AS863)","v":""},{"$f":"IF('1. Ordersheet'!AT863=\"\",\"\",'1. Ordersheet'!AT863)","v":""},null,null,null,null,null,null,null,{"$f":"IF('1. Ordersheet'!AX863=\"\",\"\",'1. Ordersheet'!AX863)","v":""},{"$f":"IF('1. Ordersheet'!AY863=\"\",\"\",'1. Ordersheet'!AY863)","v":""},{"$f":"IF('1. Ordersheet'!AZ863=\"\",\"\",'1. Ordersheet'!AZ863)","v":""},{"$f":"IF('1. Ordersheet'!BA863=\"\",\"\",'1. Ordersheet'!BA863)","v":""},{"$f":"IF('1. Ordersheet'!BC863=\"\",\"\",'1. Ordersheet'!BC863)","v":""},{"$f":"IF('1. Ordersheet'!BD863=\"\",\"\",'1. Ordersheet'!BD863)","v":""},{"$f":"IF('1. Ordersheet'!BE863=\"\",\"\",'1. Ordersheet'!BE863)","v":""},{"$f":"IF('1. Ordersheet'!BF863=\"\",\"\",'1. Ordersheet'!BF863)","v":""},{"$f":"IF('1. Ordersheet'!BG863=\"\",\"\",'1. Ordersheet'!BG863)","v":"ZWO"},{"$f":"IF('1. Ordersheet'!BH863=\"\",\"\",'1. Ordersheet'!BH863)","v":""},{"$f":"IF('1. Ordersheet'!BI863=\"\",\"\",'1. Ordersheet'!BI863)","v":""},{"$f":"IF('1. Ordersheet'!BJ863=\"\",\"\",'1. Ordersheet'!BJ863)","v":""},{"$f":"IF('1. Ordersheet'!BK863=\"\",\"\",'1. Ordersheet'!BK863)","v":""},{"$f":"IF('1. Ordersheet'!BL863=\"\",\"\",'1. Ordersheet'!BL863)","v":""}]
[{"$f":"IF('1. Ordersheet'!F864=\"\",\"\",'1. Ordersheet'!F864)","v":""},{"$f":"IF('1. Ordersheet'!G864=\"\",\"\",'1. Ordersheet'!G864)","v":""},{"$f":"IF('1. Ordersheet'!H864=\"\",\"\",'1. Ordersheet'!H864)","v":""},{"$f":"IF('1. Ordersheet'!I864=\"\",\"\",'1. Ordersheet'!I864)","v":""},{"$f":"IF('1. Ordersheet'!J864=\"\",\"\",'1. Ordersheet'!J864)","v":""},{"$f":"IF('1. Ordersheet'!K864=\"\",\"\",'1. Ordersheet'!K864)","v":""},{"$f":"IF('1. Ordersheet'!L864=\"\",\"\",'1. Ordersheet'!L864)","v":""},{"$f":"IF('1. Ordersheet'!M864=\"\",\"\",'1. Ordersheet'!M864)","v":""},{"$f":"IF('1. Ordersheet'!N864=\"\",\"\",'1. Ordersheet'!N864)","v":""},{"$f":"IF('1. Ordersheet'!O864=\"\",\"\",'1. Ordersheet'!O864)","v":{"$error":"#N/A"}},{"$f":"IF('1. Ordersheet'!P864=\"\",\"\",'1. Ordersheet'!P864)","v":{"$error":"#N/A"}},{"$f":"IF('1. Ordersheet'!Q864=\"\",\"\",'1. Ordersheet'!Q864)","v":""},{"$f":"IF('1. Ordersheet'!R864=\"\",\"\",'1. Ordersheet'!R864)","v":""},{"$f":"IF('1. Ordersheet'!S864=\"\",\"\",'1. Ordersheet'!S864)","v":""},{"$f":"IF('1. Ordersheet'!V864=\"\",\"\",'1. Ordersheet'!V864)","v":""},{"$f":"IF('1. Ordersheet'!W864=\"\",\"\",'1. Ordersheet'!W864)","v":""},{"$f":"IF('1. Ordersheet'!X864=\"\",\"\",'1. Ordersheet'!X864)","v":""},{"$f":"IF('1. Ordersheet'!Y864=\"\",\"\",'1. Ordersheet'!Y864)","v":""},{"$f":"IF('1. Ordersheet'!Z864=\"\",\"\",'1. Ordersheet'!Z864)","v":""},{"$f":"IF('1. Ordersheet'!AA864=\"\",\"\",'1. Ordersheet'!AA864)","v":""},null,{"$f":"IF('1. Ordersheet'!AS864=\"\",\"\",'1. Ordersheet'!AS864)","v":""},{"$f":"IF('1. Ordersheet'!AT864=\"\",\"\",'1. Ordersheet'!AT864)","v":""},null,null,null,null,null,null,null,{"$f":"IF('1. Ordersheet'!AX864=\"\",\"\",'1. Ordersheet'!AX864)","v":""},{"$f":"IF('1. Ordersheet'!AY864=\"\",\"\",'1. Ordersheet'!AY864)","v":""},{"$f":"IF('1. Ordersheet'!AZ864=\"\",\"\",'1. Ordersheet'!AZ864)","v":""},{"$f":"IF('1. Ordersheet'!BA864=\"\",\"\",'1. Ordersheet'!BA864)","v":""},{"$f":"IF('1. Ordersheet'!BC864=\"\",\"\",'1. Ordersheet'!BC864)","v":""},{"$f":"IF('1. Ordersheet'!BD864=\"\",\"\",'1. Ordersheet'!BD864)","v":""},{"$f":"IF('1. Ordersheet'!BE864=\"\",\"\",'1. Ordersheet'!BE864)","v":""},{"$f":"IF('1. Ordersheet'!BF864=\"\",\"\",'1. Ordersheet'!BF864)","v":""},{"$f":"IF('1. Ordersheet'!BG864=\"\",\"\",'1. Ordersheet'!BG864)","v":"ZWO"},{"$f":"IF('1. Ordersheet'!BH864=\"\",\"\",'1. Ordersheet'!BH864)","v":""},{"$f":"IF('1. Ordersheet'!BI864=\"\",\"\",'1. Ordersheet'!BI864)","v":""},{"$f":"IF('1. Ordersheet'!BJ864=\"\",\"\",'1. Ordersheet'!BJ864)","v":""},{"$f":"IF('1. Ordersheet'!BK864=\"\",\"\",'1. Ordersheet'!BK864)","v":""},{"$f":"IF('1. Ordersheet'!BL864=\"\",\"\",'1. Ordersheet'!BL864)","v":""}]
[{"$f":"IF('1. Ordersheet'!F865=\"\",\"\",'1. Ordersheet'!F865)","v":""},{"$f":"IF('1. Ordersheet'!G865=\"\",\"\",'1. Ordersheet'!G865)","v":""},{"$f":"IF('1. Ordersheet'!H865=\"\",\"\",'1. Ordersheet'!H865)","v":""},{"$f":"IF('1. Ordersheet'!I865=\"\",\"\",'1. Ordersheet'!I865)","v":""},{"$f":"IF('1. Ordersheet'!J865=\"\",\"\",'1. Ordersheet'!J865)","v":""},{"$f":"IF('1. Ordersheet'!K865=\"\",\"\",'1. Ordersheet'!K865)","v":""},{"$f":"IF('1. Ordersheet'!L865=\"\",\"\",'1. Ordersheet'!L865)","v":""},{"$f":"IF('1. Ordersheet'!M865=\"\",\"\",'1. Ordersheet'!M865)","v":""},{"$f":"IF('1. Ordersheet'!N865=\"\",\"\",'1. Ordersheet'!N865)","v":""},{"$f":"IF('1. Ordersheet'!O865=\"\",\"\",'1. Ordersheet'!O865)","v":{"$error":"#N/A"}},{"$f":"IF('1. Ordersheet'!P865=\"\",\"\",'1. Ordersheet'!P865)","v":{"$error":"#N/A"}},{"$f":"IF('1. Ordersheet'!Q865=\"\",\"\",'1. Ordersheet'!Q865)","v":""},{"$f":"IF('1. Ordersheet'!R865=\"\",\"\",'1. Ordersheet'!R865)","v":""},{"$f":"IF('1. Ordersheet'!S865=\"\",\"\",'1. Ordersheet'!S865)","v":""},{"$f":"IF('1. Ordersheet'!V865=\"\",\"\",'1. Ordersheet'!V865)","v":""},{"$f":"IF('1. Ordersheet'!W865=\"\",\"\",'1. Ordersheet'!W865)","v":""},{"$f":"IF('1. Ordersheet'!X865=\"\",\"\",'1. Ordersheet'!X865)","v":""},{"$f":"IF('1. Ordersheet'!Y865=\"\",\"\",'1. Ordersheet'!Y865)","v":""},{"$f":"IF('1. Ordersheet'!Z865=\"\",\"\",'1. Ordersheet'!Z865)","v":""},{"$f":"IF('1. Ordersheet'!AA865=\"\",\"\",'1. Ordersheet'!AA865)","v":""},null,{"$f":"IF('1. Ordersheet'!AS865=\"\",\"\",'1. Ordersheet'!AS865)","v":""},{"$f":"IF('1. Ordersheet'!AT865=\"\",\"\",'1. Ordersheet'!AT865)","v":""},null,null,null,null,null,null,null,{"$f":"IF('1. Ordersheet'!AX865=\"\",\"\",'1. Ordersheet'!AX865)","v":""},{"$f":"IF('1. Ordersheet'!AY865=\"\",\"\",'1. Ordersheet'!AY865)","v":""},{"$f":"IF('1. Ordersheet'!AZ865=\"\",\"\",'1. Ordersheet'!AZ865)","v":""},{"$f":"IF('1. Ordersheet'!BA865=\"\",\"\",'1. Ordersheet'!BA865)","v":""},{"$f":"IF('1. Ordersheet'!BC865=\"\",\"\",'1. Ordersheet'!BC865)","v":""},{"$f":"IF('1. Ordersheet'!BD865=\"\",\"\",'1. Ordersheet'!BD865)","v":""},{"$f":"IF('1. Ordersheet'!BE865=\"\",\"\",'1. Ordersheet'!BE865)","v":""},{"$f":"IF('1. Ordersheet'!BF865=\"\",\"\",'1. Ordersheet'!BF865)","v":""},{"$f":"IF('1. Ordersheet'!BG865=\"\",\"\",'1. Ordersheet'!BG865)","v":"ZWO"},{"$f":"IF('1. Ordersheet'!BH865=\"\",\"\",'1. Ordersheet'!BH865)","v":""},{"$f":"IF('1. Ordersheet'!BI865=\"\",\"\",'1. Ordersheet'!BI865)","v":""},{"$f":"IF('1. Ordersheet'!BJ865=\"\",\"\",'1. Ordersheet'!BJ865)","v":""},{"$f":"IF('1. Ordersheet'!BK865=\"\",\"\",'1. Ordersheet'!BK865)","v":""},{"$f":"IF('1. Ordersheet'!BL865=\"\",\"\",'1. Ordersheet'!BL865)","v":""}]
[{"$f":"IF('1. Ordersheet'!F866=\"\",\"\",'1. Ordersheet'!F866)","v":""},{"$f":"IF('1. Ordersheet'!G866=\"\",\"\",'1. Ordersheet'!G866)","v":""},{"$f":"IF('1. Ordersheet'!H866=\"\",\"\",'1. Ordersheet'!H866)","v":""},{"$f":"IF('1. Ordersheet'!I866=\"\",\"\",'1. Ordersheet'!I866)","v":""},{"$f":"IF('1. Ordersheet'!J866=\"\",\"\",'1. Ordersheet'!J866)","v":""},{"$f":"IF('1. Ordersheet'!K866=\"\",\"\",'1. Ordersheet'!K866)","v":""},{"$f":"IF('1. Ordersheet'!L866=\"\",\"\",'1. Ordersheet'!L866)","v":""},{"$f":"IF('1. Ordersheet'!M866=\"\",\"\",'1. Ordersheet'!M866)","v":""},{"$f":"IF('1. Ordersheet'!N866=\"\",\"\",'1. Ordersheet'!N866)","v":""},{"$f":"IF('1. Ordersheet'!O866=\"\",\"\",'1. Ordersheet'!O866)","v":{"$error":"#N/A"}},{"$f":"IF('1. Ordersheet'!P866=\"\",\"\",'1. Ordersheet'!P866)","v":{"$error":"#N/A"}},{"$f":"IF('1. Ordersheet'!Q866=\"\",\"\",'1. Ordersheet'!Q866)","v":""},{"$f":"IF('1. Ordersheet'!R866=\"\",\"\",'1. Ordersheet'!R866)","v":""},{"$f":"IF('1. Ordersheet'!S866=\"\",\"\",'1. Ordersheet'!S866)","v":""},{"$f":"IF('1. Ordersheet'!V866=\"\",\"\",'1. Ordersheet'!V866)","v":""},{"$f":"IF('1. Ordersheet'!W866=\"\",\"\",'1. Ordersheet'!W866)","v":""},{"$f":"IF('1. Ordersheet'!X866=\"\",\"\",'1. Ordersheet'!X866)","v":""},{"$f":"IF('1. Ordersheet'!Y866=\"\",\"\",'1. Ordersheet'!Y866)","v":""},{"$f":"IF('1. Ordersheet'!Z866=\"\",\"\",'1. Ordersheet'!Z866)","v":""},{"$f":"IF('1. Ordersheet'!AA866=\"\",\"\",'1. Ordersheet'!AA866)","v":""},null,{"$f":"IF('1. Ordersheet'!AS866=\"\",\"\",'1. Ordersheet'!AS866)","v":""},{"$f":"IF('1. Ordersheet'!AT866=\"\",\"\",'1. Ordersheet'!AT866)","v":""},null,null,null,null,null,null,null,{"$f":"IF('1. Ordersheet'!AX866=\"\",\"\",'1. Ordersheet'!AX866)","v":""},{"$f":"IF('1. Ordersheet'!AY866=\"\",\"\",'1. Ordersheet'!AY866)","v":""},{"$f":"IF('1. Ordersheet'!AZ866=\"\",\"\",'1. Ordersheet'!AZ866)","v":""},{"$f":"IF('1. Ordersheet'!BA866=\"\",\"\",'1. Ordersheet'!BA866)","v":""},{"$f":"IF('1. Ordersheet'!BC866=\"\",\"\",'1. Ordersheet'!BC866)","v":""},{"$f":"IF('1. Ordersheet'!BD866=\"\",\"\",'1. Ordersheet'!BD866)","v":""},{"$f":"IF('1. Ordersheet'!BE866=\"\",\"\",'1. Ordersheet'!BE866)","v":""},{"$f":"IF('1. Ordersheet'!BF866=\"\",\"\",'1. Ordersheet'!BF866)","v":""},{"$f":"IF('1. Ordersheet'!BG866=\"\",\"\",'1. Ordersheet'!BG866)","v":"ZWO"},{"$f":"IF('1. Ordersheet'!BH866=\"\",\"\",'1. Ordersheet'!BH866)","v":""},{"$f":"IF('1. Ordersheet'!BI866=\"\",\"\",'1. Ordersheet'!BI866)","v":""},{"$f":"IF('1. Ordersheet'!BJ866=\"\",\"\",'1. Ordersheet'!BJ866)","v":""},{"$f":"IF('1. Ordersheet'!BK866=\"\",\"\",'1. Ordersheet'!BK866)","v":""},{"$f":"IF('1. Ordersheet'!BL866=\"\",\"\",'1. Ordersheet'!BL866)","v":""}]
[{"$f":"IF('1. Ordersheet'!F867=\"\",\"\",'1. Ordersheet'!F867)","v":""},{"$f":"IF('1. Ordersheet'!G867=\"\",\"\",'1. Ordersheet'!G867)","v":""},{"$f":"IF('1. Ordersheet'!H867=\"\",\"\",'1. Ordersheet'!H867)","v":""},{"$f":"IF('1. Ordersheet'!I867=\"\",\"\",'1. Ordersheet'!I867)","v":""},{"$f":"IF('1. Ordersheet'!J867=\"\",\"\",'1. Ordersheet'!J867)","v":""},{"$f":"IF('1. Ordersheet'!K867=\"\",\"\",'1. Ordersheet'!K867)","v":""},{"$f":"IF('1. Ordersheet'!L867=\"\",\"\",'1. Ordersheet'!L867)","v":""},{"$f":"IF('1. Ordersheet'!M867=\"\",\"\",'1. Ordersheet'!M867)","v":""},{"$f":"IF('1. Ordersheet'!N867=\"\",\"\",'1. Ordersheet'!N867)","v":""},{"$f":"IF('1. Ordersheet'!O867=\"\",\"\",'1. Ordersheet'!O867)","v":{"$error":"#N/A"}},{"$f":"IF('1. Ordersheet'!P867=\"\",\"\",'1. Ordersheet'!P867)","v":{"$error":"#N/A"}},{"$f":"IF('1. Ordersheet'!Q867=\"\",\"\",'1. Ordersheet'!Q867)","v":""},{"$f":"IF('1. Ordersheet'!R867=\"\",\"\",'1. Ordersheet'!R867)","v":""},{"$f":"IF('1. Ordersheet'!S867=\"\",\"\",'1. Ordersheet'!S867)","v":""},{"$f":"IF('1. Ordersheet'!V867=\"\",\"\",'1. Ordersheet'!V867)","v":""},{"$f":"IF('1. Ordersheet'!W867=\"\",\"\",'1. Ordersheet'!W867)","v":""},{"$f":"IF('1. Ordersheet'!X867=\"\",\"\",'1. Ordersheet'!X867)","v":""},{"$f":"IF('1. Ordersheet'!Y867=\"\",\"\",'1. Ordersheet'!Y867)","v":""},{"$f":"IF('1. Ordersheet'!Z867=\"\",\"\",'1. Ordersheet'!Z867)","v":""},{"$f":"IF('1. Ordersheet'!AA867=\"\",\"\",'1. Ordersheet'!AA867)","v":""},null,{"$f":"IF('1. Ordersheet'!AS867=\"\",\"\",'1. Ordersheet'!AS867)","v":""},{"$f":"IF('1. Ordersheet'!AT867=\"\",\"\",'1. Ordersheet'!AT867)","v":""},null,null,null,null,null,null,null,{"$f":"IF('1. Ordersheet'!AX867=\"\",\"\",'1. Ordersheet'!AX867)","v":""},{"$f":"IF('1. Ordersheet'!AY867=\"\",\"\",'1. Ordersheet'!AY867)","v":""},{"$f":"IF('1. Ordersheet'!AZ867=\"\",\"\",'1. Ordersheet'!AZ867)","v":""},{"$f":"IF('1. Ordersheet'!BA867=\"\",\"\",'1. Ordersheet'!BA867)","v":""},{"$f":"IF('1. Ordersheet'!BC867=\"\",\"\",'1. Ordersheet'!BC867)","v":""},{"$f":"IF('1. Ordersheet'!BD867=\"\",\"\",'1. Ordersheet'!BD867)","v":""},{"$f":"IF('1. Ordersheet'!BE867=\"\",\"\",'1. Ordersheet'!BE867)","v":""},{"$f":"IF('1. Ordersheet'!BF867=\"\",\"\",'1. Ordersheet'!BF867)","v":""},{"$f":"IF('1. Ordersheet'!BG867=\"\",\"\",'1. Ordersheet'!BG867)","v":"ZWO"},{"$f":"IF('1. Ordersheet'!BH867=\"\",\"\",'1. Ordersheet'!BH867)","v":""},{"$f":"IF('1. Ordersheet'!BI867=\"\",\"\",'1. Ordersheet'!BI867)","v":""},{"$f":"IF('1. Ordersheet'!BJ867=\"\",\"\",'1. Ordersheet'!BJ867)","v":""},{"$f":"IF('1. Ordersheet'!BK867=\"\",\"\",'1. Ordersheet'!BK867)","v":""},{"$f":"IF('1. Ordersheet'!BL867=\"\",\"\",'1. Ordersheet'!BL867)","v":""}]
[{"$f":"IF('1. Ordersheet'!F868=\"\",\"\",'1. Ordersheet'!F868)","v":""},{"$f":"IF('1. Ordersheet'!G868=\"\",\"\",'1. Ordersheet'!G868)","v":""},{"$f":"IF('1. Ordersheet'!H868=\"\",\"\",'1. Ordersheet'!H868)","v":""},{"$f":"IF('1. Ordersheet'!I868=\"\",\"\",'1. Ordersheet'!I868)","v":""},{"$f":"IF('1. Ordersheet'!J868=\"\",\"\",'1. Ordersheet'!J868)","v":""},{"$f":"IF('1. Ordersheet'!K868=\"\",\"\",'1. Ordersheet'!K868)","v":""},{"$f":"IF('1. Ordersheet'!L868=\"\",\"\",'1. Ordersheet'!L868)","v":""},{"$f":"IF('1. Ordersheet'!M868=\"\",\"\",'1. Ordersheet'!M868)","v":""},{"$f":"IF('1. Ordersheet'!N868=\"\",\"\",'1. Ordersheet'!N868)","v":""},{"$f":"IF('1. Ordersheet'!O868=\"\",\"\",'1. Ordersheet'!O868)","v":{"$error":"#N/A"}},{"$f":"IF('1. Ordersheet'!P868=\"\",\"\",'1. Ordersheet'!P868)","v":{"$error":"#N/A"}},{"$f":"IF('1. Ordersheet'!Q868=\"\",\"\",'1. Ordersheet'!Q868)","v":""},{"$f":"IF('1. Ordersheet'!R868=\"\",\"\",'1. Ordersheet'!R868)","v":""},{"$f":"IF('1. Ordersheet'!S868=\"\",\"\",'1. Ordersheet'!S868)","v":""},{"$f":"IF('1. Ordersheet'!V868=\"\",\"\",'1. Ordersheet'!V868)","v":""},{"$f":"IF('1. Ordersheet'!W868=\"\",\"\",'1. Ordersheet'!W868)","v":""},{"$f":"IF('1. Ordersheet'!X868=\"\",\"\",'1. Ordersheet'!X868)","v":""},{"$f":"IF('1. Ordersheet'!Y868=\"\",\"\",'1. Ordersheet'!Y868)","v":""},{"$f":"IF('1. Ordersheet'!Z868=\"\",\"\",'1. Ordersheet'!Z868)","v":""},{"$f":"IF('1. Ordersheet'!AA868=\"\",\"\",'1. Ordersheet'!AA868)","v":""},null,{"$f":"IF('1. Ordersheet'!AS868=\"\",\"\",'1. Ordersheet'!AS868)","v":""},{"$f":"IF('1. Ordersheet'!AT868=\"\",\"\",'1. Ordersheet'!AT868)","v":""},null,null,null,null,null,null,null,{"$f":"IF('1. Ordersheet'!AX868=\"\",\"\",'1. Ordersheet'!AX868)","v":""},{"$f":"IF('1. Ordersheet'!AY868=\"\",\"\",'1. Ordersheet'!AY868)","v":""},{"$f":"IF('1. Ordersheet'!AZ868=\"\",\"\",'1. Ordersheet'!AZ868)","v":""},{"$f":"IF('1. Ordersheet'!BA868=\"\",\"\",'1. Ordersheet'!BA868)","v":""},{"$f":"IF('1. Ordersheet'!BC868=\"\",\"\",'1. Ordersheet'!BC868)","v":""},{"$f":"IF('1. Ordersheet'!BD868=\"\",\"\",'1. Ordersheet'!BD868)","v":""},{"$f":"IF('1. Ordersheet'!BE868=\"\",\"\",'1. Ordersheet'!BE868)","v":""},{"$f":"IF('1. Ordersheet'!BF868=\"\",\"\",'1. Ordersheet'!BF868)","v":""},{"$f":"IF('1. Ordersheet'!BG868=\"\",\"\",'1. Ordersheet'!BG868)","v":"ZWO"},{"$f":"IF('1. Ordersheet'!BH868=\"\",\"\",'1. Ordersheet'!BH868)","v":""},{"$f":"IF('1. Ordersheet'!BI868=\"\",\"\",'1. Ordersheet'!BI868)","v":""},{"$f":"IF('1. Ordersheet'!BJ868=\"\",\"\",'1. Ordersheet'!BJ868)","v":""},{"$f":"IF('1. Ordersheet'!BK868=\"\",\"\",'1. Ordersheet'!BK868)","v":""},{"$f":"IF('1. Ordersheet'!BL868=\"\",\"\",'1. Ordersheet'!BL868)","v":""}]
[{"$f":"IF('1. Ordersheet'!F869=\"\",\"\",'1. Ordersheet'!F869)","v":""},{"$f":"IF('1. Ordersheet'!G869=\"\",\"\",'1. Ordersheet'!G869)","v":""},{"$f":"IF('1. Ordersheet'!H869=\"\",\"\",'1. Ordersheet'!H869)","v":""},{"$f":"IF('1. Ordersheet'!I869=\"\",\"\",'1. Ordersheet'!I869)","v":""},{"$f":"IF('1. Ordersheet'!J869=\"\",\"\",'1. Ordersheet'!J869)","v":""},{"$f":"IF('1. Ordersheet'!K869=\"\",\"\",'1. Ordersheet'!K869)","v":""},{"$f":"IF('1. Ordersheet'!L869=\"\",\"\",'1. Ordersheet'!L869)","v":""},{"$f":"IF('1. Ordersheet'!M869=\"\",\"\",'1. Ordersheet'!M869)","v":""},{"$f":"IF('1. Ordersheet'!N869=\"\",\"\",'1. Ordersheet'!N869)","v":""},{"$f":"IF('1. Ordersheet'!O869=\"\",\"\",'1. Ordersheet'!O869)","v":{"$error":"#N/A"}},{"$f":"IF('1. Ordersheet'!P869=\"\",\"\",'1. Ordersheet'!P869)","v":{"$error":"#N/A"}},{"$f":"IF('1. Ordersheet'!Q869=\"\",\"\",'1. Ordersheet'!Q869)","v":""},{"$f":"IF('1. Ordersheet'!R869=\"\",\"\",'1. Ordersheet'!R869)","v":""},{"$f":"IF('1. Ordersheet'!S869=\"\",\"\",'1. Ordersheet'!S869)","v":""},{"$f":"IF('1. Ordersheet'!V869=\"\",\"\",'1. Ordersheet'!V869)","v":""},{"$f":"IF('1. Ordersheet'!W869=\"\",\"\",'1. Ordersheet'!W869)","v":""},{"$f":"IF('1. Ordersheet'!X869=\"\",\"\",'1. Ordersheet'!X869)","v":""},{"$f":"IF('1. Ordersheet'!Y869=\"\",\"\",'1. Ordersheet'!Y869)","v":""},{"$f":"IF('1. Ordersheet'!Z869=\"\",\"\",'1. Ordersheet'!Z869)","v":""},{"$f":"IF('1. Ordersheet'!AA869=\"\",\"\",'1. Ordersheet'!AA869)","v":""},null,{"$f":"IF('1. Ordersheet'!AS869=\"\",\"\",'1. Ordersheet'!AS869)","v":""},{"$f":"IF('1. Ordersheet'!AT869=\"\",\"\",'1. Ordersheet'!AT869)","v":""},null,null,null,null,null,null,null,{"$f":"IF('1. Ordersheet'!AX869=\"\",\"\",'1. Ordersheet'!AX869)","v":""},{"$f":"IF('1. Ordersheet'!AY869=\"\",\"\",'1. Ordersheet'!AY869)","v":""},{"$f":"IF('1. Ordersheet'!AZ869=\"\",\"\",'1. Ordersheet'!AZ869)","v":""},{"$f":"IF('1. Ordersheet'!BA869=\"\",\"\",'1. Ordersheet'!BA869)","v":""},{"$f":"IF('1. Ordersheet'!BC869=\"\",\"\",'1. Ordersheet'!BC869)","v":""},{"$f":"IF('1. Ordersheet'!BD869=\"\",\"\",'1. Ordersheet'!BD869)","v":""},{"$f":"IF('1. Ordersheet'!BE869=\"\",\"\",'1. Ordersheet'!BE869)","v":""},{"$f":"IF('1. Ordersheet'!BF869=\"\",\"\",'1. Ordersheet'!BF869)","v":""},{"$f":"IF('1. Ordersheet'!BG869=\"\",\"\",'1. Ordersheet'!BG869)","v":"ZWO"},{"$f":"IF('1. Ordersheet'!BH869=\"\",\"\",'1. Ordersheet'!BH869)","v":""},{"$f":"IF('1. Ordersheet'!BI869=\"\",\"\",'1. Ordersheet'!BI869)","v":""},{"$f":"IF('1. Ordersheet'!BJ869=\"\",\"\",'1. Ordersheet'!BJ869)","v":""},{"$f":"IF('1. Ordersheet'!BK869=\"\",\"\",'1. Ordersheet'!BK869)","v":""},{"$f":"IF('1. Ordersheet'!BL869=\"\",\"\",'1. Ordersheet'!BL869)","v":""}]
[{"$f":"IF('1. Ordersheet'!F870=\"\",\"\",'1. Ordersheet'!F870)","v":""},{"$f":"IF('1. Ordersheet'!G870=\"\",\"\",'1. Ordersheet'!G870)","v":""},{"$f":"IF('1. Ordersheet'!H870=\"\",\"\",'1. Ordersheet'!H870)","v":""},{"$f":"IF('1. Ordersheet'!I870=\"\",\"\",'1. Ordersheet'!I870)","v":""},{"$f":"IF('1. Ordersheet'!J870=\"\",\"\",'1. Ordersheet'!J870)","v":""},{"$f":"IF('1. Ordersheet'!K870=\"\",\"\",'1. Ordersheet'!K870)","v":""},{"$f":"IF('1. Ordersheet'!L870=\"\",\"\",'1. Ordersheet'!L870)","v":""},{"$f":"IF('1. Ordersheet'!M870=\"\",\"\",'1. Ordersheet'!M870)","v":""},{"$f":"IF('1. Ordersheet'!N870=\"\",\"\",'1. Ordersheet'!N870)","v":""},{"$f":"IF('1. Ordersheet'!O870=\"\",\"\",'1. Ordersheet'!O870)","v":{"$error":"#N/A"}},{"$f":"IF('1. Ordersheet'!P870=\"\",\"\",'1. Ordersheet'!P870)","v":{"$error":"#N/A"}},{"$f":"IF('1. Ordersheet'!Q870=\"\",\"\",'1. Ordersheet'!Q870)","v":""},{"$f":"IF('1. Ordersheet'!R870=\"\",\"\",'1. Ordersheet'!R870)","v":""},{"$f":"IF('1. Ordersheet'!S870=\"\",\"\",'1. Ordersheet'!S870)","v":""},{"$f":"IF('1. Ordersheet'!V870=\"\",\"\",'1. Ordersheet'!V870)","v":""},{"$f":"IF('1. Ordersheet'!W870=\"\",\"\",'1. Ordersheet'!W870)","v":""},{"$f":"IF('1. Ordersheet'!X870=\"\",\"\",'1. Ordersheet'!X870)","v":""},{"$f":"IF('1. Ordersheet'!Y870=\"\",\"\",'1. Ordersheet'!Y870)","v":""},{"$f":"IF('1. Ordersheet'!Z870=\"\",\"\",'1. Ordersheet'!Z870)","v":""},{"$f":"IF('1. Ordersheet'!AA870=\"\",\"\",'1. Ordersheet'!AA870)","v":""},null,{"$f":"IF('1. Ordersheet'!AS870=\"\",\"\",'1. Ordersheet'!AS870)","v":""},{"$f":"IF('1. Ordersheet'!AT870=\"\",\"\",'1. Ordersheet'!AT870)","v":""},null,null,null,null,null,null,null,{"$f":"IF('1. Ordersheet'!AX870=\"\",\"\",'1. Ordersheet'!AX870)","v":""},{"$f":"IF('1. Ordersheet'!AY870=\"\",\"\",'1. Ordersheet'!AY870)","v":""},{"$f":"IF('1. Ordersheet'!AZ870=\"\",\"\",'1. Ordersheet'!AZ870)","v":""},{"$f":"IF('1. Ordersheet'!BA870=\"\",\"\",'1. Ordersheet'!BA870)","v":""},{"$f":"IF('1. Ordersheet'!BC870=\"\",\"\",'1. Ordersheet'!BC870)","v":""},{"$f":"IF('1. Ordersheet'!BD870=\"\",\"\",'1. Ordersheet'!BD870)","v":""},{"$f":"IF('1. Ordersheet'!BE870=\"\",\"\",'1. Ordersheet'!BE870)","v":""},{"$f":"IF('1. Ordersheet'!BF870=\"\",\"\",'1. Ordersheet'!BF870)","v":""},{"$f":"IF('1. Ordersheet'!BG870=\"\",\"\",'1. Ordersheet'!BG870)","v":"ZWO"},{"$f":"IF('1. Ordersheet'!BH870=\"\",\"\",'1. Ordersheet'!BH870)","v":""},{"$f":"IF('1. Ordersheet'!BI870=\"\",\"\",'1. Ordersheet'!BI870)","v":""},{"$f":"IF('1. Ordersheet'!BJ870=\"\",\"\",'1. Ordersheet'!BJ870)","v":""},{"$f":"IF('1. Ordersheet'!BK870=\"\",\"\",'1. Ordersheet'!BK870)","v":""},{"$f":"IF('1. Ordersheet'!BL870=\"\",\"\",'1. Ordersheet'!BL870)","v":""}]
[{"$f":"IF('1. Ordersheet'!F871=\"\",\"\",'1. Ordersheet'!F871)","v":""},{"$f":"IF('1. Ordersheet'!G871=\"\",\"\",'1. Ordersheet'!G871)","v":""},{"$f":"IF('1. Ordersheet'!H871=\"\",\"\",'1. Ordersheet'!H871)","v":""},{"$f":"IF('1. Ordersheet'!I871=\"\",\"\",'1. Ordersheet'!I871)","v":""},{"$f":"IF('1. Ordersheet'!J871=\"\",\"\",'1. Ordersheet'!J871)","v":""},{"$f":"IF('1. Ordersheet'!K871=\"\",\"\",'1. Ordersheet'!K871)","v":""},{"$f":"IF('1. Ordersheet'!L871=\"\",\"\",'1. Ordersheet'!L871)","v":""},{"$f":"IF('1. Ordersheet'!M871=\"\",\"\",'1. Ordersheet'!M871)","v":""},{"$f":"IF('1. Ordersheet'!N871=\"\",\"\",'1. Ordersheet'!N871)","v":""},{"$f":"IF('1. Ordersheet'!O871=\"\",\"\",'1. Ordersheet'!O871)","v":{"$error":"#N/A"}},{"$f":"IF('1. Ordersheet'!P871=\"\",\"\",'1. Ordersheet'!P871)","v":{"$error":"#N/A"}},{"$f":"IF('1. Ordersheet'!Q871=\"\",\"\",'1. Ordersheet'!Q871)","v":""},{"$f":"IF('1. Ordersheet'!R871=\"\",\"\",'1. Ordersheet'!R871)","v":""},{"$f":"IF('1. Ordersheet'!S871=\"\",\"\",'1. Ordersheet'!S871)","v":""},{"$f":"IF('1. Ordersheet'!V871=\"\",\"\",'1. Ordersheet'!V871)","v":""},{"$f":"IF('1. Ordersheet'!W871=\"\",\"\",'1. Ordersheet'!W871)","v":""},{"$f":"IF('1. Ordersheet'!X871=\"\",\"\",'1. Ordersheet'!X871)","v":""},{"$f":"IF('1. Ordersheet'!Y871=\"\",\"\",'1. Ordersheet'!Y871)","v":""},{"$f":"IF('1. Ordersheet'!Z871=\"\",\"\",'1. Ordersheet'!Z871)","v":""},{"$f":"IF('1. Ordersheet'!AA871=\"\",\"\",'1. Ordersheet'!AA871)","v":""},null,{"$f":"IF('1. Ordersheet'!AS871=\"\",\"\",'1. Ordersheet'!AS871)","v":""},{"$f":"IF('1. Ordersheet'!AT871=\"\",\"\",'1. Ordersheet'!AT871)","v":""},null,null,null,null,null,null,null,{"$f":"IF('1. Ordersheet'!AX871=\"\",\"\",'1. Ordersheet'!AX871)","v":""},{"$f":"IF('1. Ordersheet'!AY871=\"\",\"\",'1. Ordersheet'!AY871)","v":""},{"$f":"IF('1. Ordersheet'!AZ871=\"\",\"\",'1. Ordersheet'!AZ871)","v":""},{"$f":"IF('1. Ordersheet'!BA871=\"\",\"\",'1. Ordersheet'!BA871)","v":""},{"$f":"IF('1. Ordersheet'!BC871=\"\",\"\",'1. Ordersheet'!BC871)","v":""},{"$f":"IF('1. Ordersheet'!BD871=\"\",\"\",'1. Ordersheet'!BD871)","v":""},{"$f":"IF('1. Ordersheet'!BE871=\"\",\"\",'1. Ordersheet'!BE871)","v":""},{"$f":"IF('1. Ordersheet'!BF871=\"\",\"\",'1. Ordersheet'!BF871)","v":""},{"$f":"IF('1. Ordersheet'!BG871=\"\",\"\",'1. Ordersheet'!BG871)","v":"ZWO"},{"$f":"IF('1. Ordersheet'!BH871=\"\",\"\",'1. Ordersheet'!BH871)","v":""},{"$f":"IF('1. Ordersheet'!BI871=\"\",\"\",'1. Ordersheet'!BI871)","v":""},{"$f":"IF('1. Ordersheet'!BJ871=\"\",\"\",'1. Ordersheet'!BJ871)","v":""},{"$f":"IF('1. Ordersheet'!BK871=\"\",\"\",'1. Ordersheet'!BK871)","v":""},{"$f":"IF('1. Ordersheet'!BL871=\"\",\"\",'1. Ordersheet'!BL871)","v":""}]
[{"$f":"IF('1. Ordersheet'!F872=\"\",\"\",'1. Ordersheet'!F872)","v":""},{"$f":"IF('1. Ordersheet'!G872=\"\",\"\",'1. Ordersheet'!G872)","v":""},{"$f":"IF('1. Ordersheet'!H872=\"\",\"\",'1. Ordersheet'!H872)","v":""},{"$f":"IF('1. Ordersheet'!I872=\"\",\"\",'1. Ordersheet'!I872)","v":""},{"$f":"IF('1. Ordersheet'!J872=\"\",\"\",'1. Ordersheet'!J872)","v":""},{"$f":"IF('1. Ordersheet'!K872=\"\",\"\",'1. Ordersheet'!K872)","v":""},{"$f":"IF('1. Ordersheet'!L872=\"\",\"\",'1. Ordersheet'!L872)","v":""},{"$f":"IF('1. Ordersheet'!M872=\"\",\"\",'1. Ordersheet'!M872)","v":""},{"$f":"IF('1. Ordersheet'!N872=\"\",\"\",'1. Ordersheet'!N872)","v":""},{"$f":"IF('1. Ordersheet'!O872=\"\",\"\",'1. Ordersheet'!O872)","v":{"$error":"#N/A"}},{"$f":"IF('1. Ordersheet'!P872=\"\",\"\",'1. Ordersheet'!P872)","v":{"$error":"#N/A"}},{"$f":"IF('1. Ordersheet'!Q872=\"\",\"\",'1. Ordersheet'!Q872)","v":""},{"$f":"IF('1. Ordersheet'!R872=\"\",\"\",'1. Ordersheet'!R872)","v":""},{"$f":"IF('1. Ordersheet'!S872=\"\",\"\",'1. Ordersheet'!S872)","v":""},{"$f":"IF('1. Ordersheet'!V872=\"\",\"\",'1. Ordersheet'!V872)","v":""},{"$f":"IF('1. Ordersheet'!W872=\"\",\"\",'1. Ordersheet'!W872)","v":""},{"$f":"IF('1. Ordersheet'!X872=\"\",\"\",'1. Ordersheet'!X872)","v":""},{"$f":"IF('1. Ordersheet'!Y872=\"\",\"\",'1. Ordersheet'!Y872)","v":""},{"$f":"IF('1. Ordersheet'!Z872=\"\",\"\",'1. Ordersheet'!Z872)","v":""},{"$f":"IF('1. Ordersheet'!AA872=\"\",\"\",'1. Ordersheet'!AA872)","v":""},null,{"$f":"IF('1. Ordersheet'!AS872=\"\",\"\",'1. Ordersheet'!AS872)","v":""},{"$f":"IF('1. Ordersheet'!AT872=\"\",\"\",'1. Ordersheet'!AT872)","v":""},null,null,null,null,null,null,null,{"$f":"IF('1. Ordersheet'!AX872=\"\",\"\",'1. Ordersheet'!AX872)","v":""},{"$f":"IF('1. Ordersheet'!AY872=\"\",\"\",'1. Ordersheet'!AY872)","v":""},{"$f":"IF('1. Ordersheet'!AZ872=\"\",\"\",'1. Ordersheet'!AZ872)","v":""},{"$f":"IF('1. Ordersheet'!BA872=\"\",\"\",'1. Ordersheet'!BA872)","v":""},{"$f":"IF('1. Ordersheet'!BC872=\"\",\"\",'1. Ordersheet'!BC872)","v":""},{"$f":"IF('1. Ordersheet'!BD872=\"\",\"\",'1. Ordersheet'!BD872)","v":""},{"$f":"IF('1. Ordersheet'!BE872=\"\",\"\",'1. Ordersheet'!BE872)","v":""},{"$f":"IF('1. Ordersheet'!BF872=\"\",\"\",'1. Ordersheet'!BF872)","v":""},{"$f":"IF('1. Ordersheet'!BG872=\"\",\"\",'1. Ordersheet'!BG872)","v":"ZWO"},{"$f":"IF('1. Ordersheet'!BH872=\"\",\"\",'1. Ordersheet'!BH872)","v":""},{"$f":"IF('1. Ordersheet'!BI872=\"\",\"\",'1. Ordersheet'!BI872)","v":""},{"$f":"IF('1. Ordersheet'!BJ872=\"\",\"\",'1. Ordersheet'!BJ872)","v":""},{"$f":"IF('1. Ordersheet'!BK872=\"\",\"\",'1. Ordersheet'!BK872)","v":""},{"$f":"IF('1. Ordersheet'!BL872=\"\",\"\",'1. Ordersheet'!BL872)","v":""}]
[{"$f":"IF('1. Ordersheet'!F873=\"\",\"\",'1. Ordersheet'!F873)","v":""},{"$f":"IF('1. Ordersheet'!G873=\"\",\"\",'1. Ordersheet'!G873)","v":""},{"$f":"IF('1. Ordersheet'!H873=\"\",\"\",'1. Ordersheet'!H873)","v":""},{"$f":"IF('1. Ordersheet'!I873=\"\",\"\",'1. Ordersheet'!I873)","v":""},{"$f":"IF('1. Ordersheet'!J873=\"\",\"\",'1. Ordersheet'!J873)","v":""},{"$f":"IF('1. Ordersheet'!K873=\"\",\"\",'1. Ordersheet'!K873)","v":""},{"$f":"IF('1. Ordersheet'!L873=\"\",\"\",'1. Ordersheet'!L873)","v":""},{"$f":"IF('1. Ordersheet'!M873=\"\",\"\",'1. Ordersheet'!M873)","v":""},{"$f":"IF('1. Ordersheet'!N873=\"\",\"\",'1. Ordersheet'!N873)","v":""},{"$f":"IF('1. Ordersheet'!O873=\"\",\"\",'1. Ordersheet'!O873)","v":{"$error":"#N/A"}},{"$f":"IF('1. Ordersheet'!P873=\"\",\"\",'1. Ordersheet'!P873)","v":{"$error":"#N/A"}},{"$f":"IF('1. Ordersheet'!Q873=\"\",\"\",'1. Ordersheet'!Q873)","v":""},{"$f":"IF('1. Ordersheet'!R873=\"\",\"\",'1. Ordersheet'!R873)","v":""},{"$f":"IF('1. Ordersheet'!S873=\"\",\"\",'1. Ordersheet'!S873)","v":""},{"$f":"IF('1. Ordersheet'!V873=\"\",\"\",'1. Ordersheet'!V873)","v":""},{"$f":"IF('1. Ordersheet'!W873=\"\",\"\",'1. Ordersheet'!W873)","v":""},{"$f":"IF('1. Ordersheet'!X873=\"\",\"\",'1. Ordersheet'!X873)","v":""},{"$f":"IF('1. Ordersheet'!Y873=\"\",\"\",'1. Ordersheet'!Y873)","v":""},{"$f":"IF('1. Ordersheet'!Z873=\"\",\"\",'1. Ordersheet'!Z873)","v":""},{"$f":"IF('1. Ordersheet'!AA873=\"\",\"\",'1. Ordersheet'!AA873)","v":""},null,{"$f":"IF('1. Ordersheet'!AS873=\"\",\"\",'1. Ordersheet'!AS873)","v":""},{"$f":"IF('1. Ordersheet'!AT873=\"\",\"\",'1. Ordersheet'!AT873)","v":""},null,null,null,null,null,null,null,{"$f":"IF('1. Ordersheet'!AX873=\"\",\"\",'1. Ordersheet'!AX873)","v":""},{"$f":"IF('1. Ordersheet'!AY873=\"\",\"\",'1. Ordersheet'!AY873)","v":""},{"$f":"IF('1. Ordersheet'!AZ873=\"\",\"\",'1. Ordersheet'!AZ873)","v":""},{"$f":"IF('1. Ordersheet'!BA873=\"\",\"\",'1. Ordersheet'!BA873)","v":""},{"$f":"IF('1. Ordersheet'!BC873=\"\",\"\",'1. Ordersheet'!BC873)","v":""},{"$f":"IF('1. Ordersheet'!BD873=\"\",\"\",'1. Ordersheet'!BD873)","v":""},{"$f":"IF('1. Ordersheet'!BE873=\"\",\"\",'1. Ordersheet'!BE873)","v":""},{"$f":"IF('1. Ordersheet'!BF873=\"\",\"\",'1. Ordersheet'!BF873)","v":""},{"$f":"IF('1. Ordersheet'!BG873=\"\",\"\",'1. Ordersheet'!BG873)","v":"ZWO"},{"$f":"IF('1. Ordersheet'!BH873=\"\",\"\",'1. Ordersheet'!BH873)","v":""},{"$f":"IF('1. Ordersheet'!BI873=\"\",\"\",'1. Ordersheet'!BI873)","v":""},{"$f":"IF('1. Ordersheet'!BJ873=\"\",\"\",'1. Ordersheet'!BJ873)","v":""},{"$f":"IF('1. Ordersheet'!BK873=\"\",\"\",'1. Ordersheet'!BK873)","v":""},{"$f":"IF('1. Ordersheet'!BL873=\"\",\"\",'1. Ordersheet'!BL873)","v":""}]
[{"$f":"IF('1. Ordersheet'!F874=\"\",\"\",'1. Ordersheet'!F874)","v":""},{"$f":"IF('1. Ordersheet'!G874=\"\",\"\",'1. Ordersheet'!G874)","v":""},{"$f":"IF('1. Ordersheet'!H874=\"\",\"\",'1. Ordersheet'!H874)","v":""},{"$f":"IF('1. Ordersheet'!I874=\"\",\"\",'1. Ordersheet'!I874)","v":""},{"$f":"IF('1. Ordersheet'!J874=\"\",\"\",'1. Ordersheet'!J874)","v":""},{"$f":"IF('1. Ordersheet'!K874=\"\",\"\",'1. Ordersheet'!K874)","v":""},{"$f":"IF('1. Ordersheet'!L874=\"\",\"\",'1. Ordersheet'!L874)","v":""},{"$f":"IF('1. Ordersheet'!M874=\"\",\"\",'1. Ordersheet'!M874)","v":""},{"$f":"IF('1. Ordersheet'!N874=\"\",\"\",'1. Ordersheet'!N874)","v":""},{"$f":"IF('1. Ordersheet'!O874=\"\",\"\",'1. Ordersheet'!O874)","v":{"$error":"#N/A"}},{"$f":"IF('1. Ordersheet'!P874=\"\",\"\",'1. Ordersheet'!P874)","v":{"$error":"#N/A"}},{"$f":"IF('1. Ordersheet'!Q874=\"\",\"\",'1. Ordersheet'!Q874)","v":""},{"$f":"IF('1. Ordersheet'!R874=\"\",\"\",'1. Ordersheet'!R874)","v":""},{"$f":"IF('1. Ordersheet'!S874=\"\",\"\",'1. Ordersheet'!S874)","v":""},{"$f":"IF('1. Ordersheet'!V874=\"\",\"\",'1. Ordersheet'!V874)","v":""},{"$f":"IF('1. Ordersheet'!W874=\"\",\"\",'1. Ordersheet'!W874)","v":""},{"$f":"IF('1. Ordersheet'!X874=\"\",\"\",'1. Ordersheet'!X874)","v":""},{"$f":"IF('1. Ordersheet'!Y874=\"\",\"\",'1. Ordersheet'!Y874)","v":""},{"$f":"IF('1. Ordersheet'!Z874=\"\",\"\",'1. Ordersheet'!Z874)","v":""},{"$f":"IF('1. Ordersheet'!AA874=\"\",\"\",'1. Ordersheet'!AA874)","v":""},null,{"$f":"IF('1. Ordersheet'!AS874=\"\",\"\",'1. Ordersheet'!AS874)","v":""},{"$f":"IF('1. Ordersheet'!AT874=\"\",\"\",'1. Ordersheet'!AT874)","v":""},null,null,null,null,null,null,null,{"$f":"IF('1. Ordersheet'!AX874=\"\",\"\",'1. Ordersheet'!AX874)","v":""},{"$f":"IF('1. Ordersheet'!AY874=\"\",\"\",'1. Ordersheet'!AY874)","v":""},{"$f":"IF('1. Ordersheet'!AZ874=\"\",\"\",'1. Ordersheet'!AZ874)","v":""},{"$f":"IF('1. Ordersheet'!BA874=\"\",\"\",'1. Ordersheet'!BA874)","v":""},{"$f":"IF('1. Ordersheet'!BC874=\"\",\"\",'1. Ordersheet'!BC874)","v":""},{"$f":"IF('1. Ordersheet'!BD874=\"\",\"\",'1. Ordersheet'!BD874)","v":""},{"$f":"IF('1. Ordersheet'!BE874=\"\",\"\",'1. Ordersheet'!BE874)","v":""},{"$f":"IF('1. Ordersheet'!BF874=\"\",\"\",'1. Ordersheet'!BF874)","v":""},{"$f":"IF('1. Ordersheet'!BG874=\"\",\"\",'1. Ordersheet'!BG874)","v":"ZWO"},{"$f":"IF('1. Ordersheet'!BH874=\"\",\"\",'1. Ordersheet'!BH874)","v":""},{"$f":"IF('1. Ordersheet'!BI874=\"\",\"\",'1. Ordersheet'!BI874)","v":""},{"$f":"IF('1. Ordersheet'!BJ874=\"\",\"\",'1. Ordersheet'!BJ874)","v":""},{"$f":"IF('1. Ordersheet'!BK874=\"\",\"\",'1. Ordersheet'!BK874)","v":""},{"$f":"IF('1. Ordersheet'!BL874=\"\",\"\",'1. Ordersheet'!BL874)","v":""}]
[{"$f":"IF('1. Ordersheet'!F875=\"\",\"\",'1. Ordersheet'!F875)","v":""},{"$f":"IF('1. Ordersheet'!G875=\"\",\"\",'1. Ordersheet'!G875)","v":""},{"$f":"IF('1. Ordersheet'!H875=\"\",\"\",'1. Ordersheet'!H875)","v":""},{"$f":"IF('1. Ordersheet'!I875=\"\",\"\",'1. Ordersheet'!I875)","v":""},{"$f":"IF('1. Ordersheet'!J875=\"\",\"\",'1. Ordersheet'!J875)","v":""},{"$f":"IF('1. Ordersheet'!K875=\"\",\"\",'1. Ordersheet'!K875)","v":""},{"$f":"IF('1. Ordersheet'!L875=\"\",\"\",'1. Ordersheet'!L875)","v":""},{"$f":"IF('1. Ordersheet'!M875=\"\",\"\",'1. Ordersheet'!M875)","v":""},{"$f":"IF('1. Ordersheet'!N875=\"\",\"\",'1. Ordersheet'!N875)","v":""},{"$f":"IF('1. Ordersheet'!O875=\"\",\"\",'1. Ordersheet'!O875)","v":{"$error":"#N/A"}},{"$f":"IF('1. Ordersheet'!P875=\"\",\"\",'1. Ordersheet'!P875)","v":{"$error":"#N/A"}},{"$f":"IF('1. Ordersheet'!Q875=\"\",\"\",'1. Ordersheet'!Q875)","v":""},{"$f":"IF('1. Ordersheet'!R875=\"\",\"\",'1. Ordersheet'!R875)","v":""},{"$f":"IF('1. Ordersheet'!S875=\"\",\"\",'1. Ordersheet'!S875)","v":""},{"$f":"IF('1. Ordersheet'!V875=\"\",\"\",'1. Ordersheet'!V875)","v":""},{"$f":"IF('1. Ordersheet'!W875=\"\",\"\",'1. Ordersheet'!W875)","v":""},{"$f":"IF('1. Ordersheet'!X875=\"\",\"\",'1. Ordersheet'!X875)","v":""},{"$f":"IF('1. Ordersheet'!Y875=\"\",\"\",'1. Ordersheet'!Y875)","v":""},{"$f":"IF('1. Ordersheet'!Z875=\"\",\"\",'1. Ordersheet'!Z875)","v":""},{"$f":"IF('1. Ordersheet'!AA875=\"\",\"\",'1. Ordersheet'!AA875)","v":""},null,{"$f":"IF('1. Ordersheet'!AS875=\"\",\"\",'1. Ordersheet'!AS875)","v":""},{"$f":"IF('1. Ordersheet'!AT875=\"\",\"\",'1. Ordersheet'!AT875)","v":""},null,null,null,null,null,null,null,{"$f":"IF('1. Ordersheet'!AX875=\"\",\"\",'1. Ordersheet'!AX875)","v":""},{"$f":"IF('1. Ordersheet'!AY875=\"\",\"\",'1. Ordersheet'!AY875)","v":""},{"$f":"IF('1. Ordersheet'!AZ875=\"\",\"\",'1. Ordersheet'!AZ875)","v":""},{"$f":"IF('1. Ordersheet'!BA875=\"\",\"\",'1. Ordersheet'!BA875)","v":""},{"$f":"IF('1. Ordersheet'!BC875=\"\",\"\",'1. Ordersheet'!BC875)","v":""},{"$f":"IF('1. Ordersheet'!BD875=\"\",\"\",'1. Ordersheet'!BD875)","v":""},{"$f":"IF('1. Ordersheet'!BE875=\"\",\"\",'1. Ordersheet'!BE875)","v":""},{"$f":"IF('1. Ordersheet'!BF875=\"\",\"\",'1. Ordersheet'!BF875)","v":""},{"$f":"IF('1. Ordersheet'!BG875=\"\",\"\",'1. Ordersheet'!BG875)","v":"ZWO"},{"$f":"IF('1. Ordersheet'!BH875=\"\",\"\",'1. Ordersheet'!BH875)","v":""},{"$f":"IF('1. Ordersheet'!BI875=\"\",\"\",'1. Ordersheet'!BI875)","v":""},{"$f":"IF('1. Ordersheet'!BJ875=\"\",\"\",'1. Ordersheet'!BJ875)","v":""},{"$f":"IF('1. Ordersheet'!BK875=\"\",\"\",'1. Ordersheet'!BK875)","v":""},{"$f":"IF('1. Ordersheet'!BL875=\"\",\"\",'1. Ordersheet'!BL875)","v":""}]
[{"$f":"IF('1. Ordersheet'!F876=\"\",\"\",'1. Ordersheet'!F876)","v":""},{"$f":"IF('1. Ordersheet'!G876=\"\",\"\",'1. Ordersheet'!G876)","v":""},{"$f":"IF('1. Ordersheet'!H876=\"\",\"\",'1. Ordersheet'!H876)","v":""},{"$f":"IF('1. Ordersheet'!I876=\"\",\"\",'1. Ordersheet'!I876)","v":""},{"$f":"IF('1. Ordersheet'!J876=\"\",\"\",'1. Ordersheet'!J876)","v":""},{"$f":"IF('1. Ordersheet'!K876=\"\",\"\",'1. Ordersheet'!K876)","v":""},{"$f":"IF('1. Ordersheet'!L876=\"\",\"\",'1. Ordersheet'!L876)","v":""},{"$f":"IF('1. Ordersheet'!M876=\"\",\"\",'1. Ordersheet'!M876)","v":""},{"$f":"IF('1. Ordersheet'!N876=\"\",\"\",'1. Ordersheet'!N876)","v":""},{"$f":"IF('1. Ordersheet'!O876=\"\",\"\",'1. Ordersheet'!O876)","v":{"$error":"#N/A"}},{"$f":"IF('1. Ordersheet'!P876=\"\",\"\",'1. Ordersheet'!P876)","v":{"$error":"#N/A"}},{"$f":"IF('1. Ordersheet'!Q876=\"\",\"\",'1. Ordersheet'!Q876)","v":""},{"$f":"IF('1. Ordersheet'!R876=\"\",\"\",'1. Ordersheet'!R876)","v":""},{"$f":"IF('1. Ordersheet'!S876=\"\",\"\",'1. Ordersheet'!S876)","v":""},{"$f":"IF('1. Ordersheet'!V876=\"\",\"\",'1. Ordersheet'!V876)","v":""},{"$f":"IF('1. Ordersheet'!W876=\"\",\"\",'1. Ordersheet'!W876)","v":""},{"$f":"IF('1. Ordersheet'!X876=\"\",\"\",'1. Ordersheet'!X876)","v":""},{"$f":"IF('1. Ordersheet'!Y876=\"\",\"\",'1. Ordersheet'!Y876)","v":""},{"$f":"IF('1. Ordersheet'!Z876=\"\",\"\",'1. Ordersheet'!Z876)","v":""},{"$f":"IF('1. Ordersheet'!AA876=\"\",\"\",'1. Ordersheet'!AA876)","v":""},null,{"$f":"IF('1. Ordersheet'!AS876=\"\",\"\",'1. Ordersheet'!AS876)","v":""},{"$f":"IF('1. Ordersheet'!AT876=\"\",\"\",'1. Ordersheet'!AT876)","v":""},null,null,null,null,null,null,null,{"$f":"IF('1. Ordersheet'!AX876=\"\",\"\",'1. Ordersheet'!AX876)","v":""},{"$f":"IF('1. Ordersheet'!AY876=\"\",\"\",'1. Ordersheet'!AY876)","v":""},{"$f":"IF('1. Ordersheet'!AZ876=\"\",\"\",'1. Ordersheet'!AZ876)","v":""},{"$f":"IF('1. Ordersheet'!BA876=\"\",\"\",'1. Ordersheet'!BA876)","v":""},{"$f":"IF('1. Ordersheet'!BC876=\"\",\"\",'1. Ordersheet'!BC876)","v":""},{"$f":"IF('1. Ordersheet'!BD876=\"\",\"\",'1. Ordersheet'!BD876)","v":""},{"$f":"IF('1. Ordersheet'!BE876=\"\",\"\",'1. Ordersheet'!BE876)","v":""},{"$f":"IF('1. Ordersheet'!BF876=\"\",\"\",'1. Ordersheet'!BF876)","v":""},{"$f":"IF('1. Ordersheet'!BG876=\"\",\"\",'1. Ordersheet'!BG876)","v":"ZWO"},{"$f":"IF('1. Ordersheet'!BH876=\"\",\"\",'1. Ordersheet'!BH876)","v":""},{"$f":"IF('1. Ordersheet'!BI876=\"\",\"\",'1. Ordersheet'!BI876)","v":""},{"$f":"IF('1. Ordersheet'!BJ876=\"\",\"\",'1. Ordersheet'!BJ876)","v":""},{"$f":"IF('1. Ordersheet'!BK876=\"\",\"\",'1. Ordersheet'!BK876)","v":""},{"$f":"IF('1. Ordersheet'!BL876=\"\",\"\",'1. Ordersheet'!BL876)","v":""}]
[{"$f":"IF('1. Ordersheet'!F877=\"\",\"\",'1. Ordersheet'!F877)","v":""},{"$f":"IF('1. Ordersheet'!G877=\"\",\"\",'1. Ordersheet'!G877)","v":""},{"$f":"IF('1. Ordersheet'!H877=\"\",\"\",'1. Ordersheet'!H877)","v":""},{"$f":"IF('1. Ordersheet'!I877=\"\",\"\",'1. Ordersheet'!I877)","v":""},{"$f":"IF('1. Ordersheet'!J877=\"\",\"\",'1. Ordersheet'!J877)","v":""},{"$f":"IF('1. Ordersheet'!K877=\"\",\"\",'1. Ordersheet'!K877)","v":""},{"$f":"IF('1. Ordersheet'!L877=\"\",\"\",'1. Ordersheet'!L877)","v":""},{"$f":"IF('1. Ordersheet'!M877=\"\",\"\",'1. Ordersheet'!M877)","v":""},{"$f":"IF('1. Ordersheet'!N877=\"\",\"\",'1. Ordersheet'!N877)","v":""},{"$f":"IF('1. Ordersheet'!O877=\"\",\"\",'1. Ordersheet'!O877)","v":{"$error":"#N/A"}},{"$f":"IF('1. Ordersheet'!P877=\"\",\"\",'1. Ordersheet'!P877)","v":{"$error":"#N/A"}},{"$f":"IF('1. Ordersheet'!Q877=\"\",\"\",'1. Ordersheet'!Q877)","v":""},{"$f":"IF('1. Ordersheet'!R877=\"\",\"\",'1. Ordersheet'!R877)","v":""},{"$f":"IF('1. Ordersheet'!S877=\"\",\"\",'1. Ordersheet'!S877)","v":""},{"$f":"IF('1. Ordersheet'!V877=\"\",\"\",'1. Ordersheet'!V877)","v":""},{"$f":"IF('1. Ordersheet'!W877=\"\",\"\",'1. Ordersheet'!W877)","v":""},{"$f":"IF('1. Ordersheet'!X877=\"\",\"\",'1. Ordersheet'!X877)","v":""},{"$f":"IF('1. Ordersheet'!Y877=\"\",\"\",'1. Ordersheet'!Y877)","v":""},{"$f":"IF('1. Ordersheet'!Z877=\"\",\"\",'1. Ordersheet'!Z877)","v":""},{"$f":"IF('1. Ordersheet'!AA877=\"\",\"\",'1. Ordersheet'!AA877)","v":""},null,{"$f":"IF('1. Ordersheet'!AS877=\"\",\"\",'1. Ordersheet'!AS877)","v":""},{"$f":"IF('1. Ordersheet'!AT877=\"\",\"\",'1. Ordersheet'!AT877)","v":""},null,null,null,null,null,null,null,{"$f":"IF('1. Ordersheet'!AX877=\"\",\"\",'1. Ordersheet'!AX877)","v":""},{"$f":"IF('1. Ordersheet'!AY877=\"\",\"\",'1. Ordersheet'!AY877)","v":""},{"$f":"IF('1. Ordersheet'!AZ877=\"\",\"\",'1. Ordersheet'!AZ877)","v":""},{"$f":"IF('1. Ordersheet'!BA877=\"\",\"\",'1. Ordersheet'!BA877)","v":""},{"$f":"IF('1. Ordersheet'!BC877=\"\",\"\",'1. Ordersheet'!BC877)","v":""},{"$f":"IF('1. Ordersheet'!BD877=\"\",\"\",'1. Ordersheet'!BD877)","v":""},{"$f":"IF('1. Ordersheet'!BE877=\"\",\"\",'1. Ordersheet'!BE877)","v":""},{"$f":"IF('1. Ordersheet'!BF877=\"\",\"\",'1. Ordersheet'!BF877)","v":""},{"$f":"IF('1. Ordersheet'!BG877=\"\",\"\",'1. Ordersheet'!BG877)","v":"ZWO"},{"$f":"IF('1. Ordersheet'!BH877=\"\",\"\",'1. Ordersheet'!BH877)","v":""},{"$f":"IF('1. Ordersheet'!BI877=\"\",\"\",'1. Ordersheet'!BI877)","v":""},{"$f":"IF('1. Ordersheet'!BJ877=\"\",\"\",'1. Ordersheet'!BJ877)","v":""},{"$f":"IF('1. Ordersheet'!BK877=\"\",\"\",'1. Ordersheet'!BK877)","v":""},{"$f":"IF('1. Ordersheet'!BL877=\"\",\"\",'1. Ordersheet'!BL877)","v":""}]
[{"$f":"IF('1. Ordersheet'!F878=\"\",\"\",'1. Ordersheet'!F878)","v":""},{"$f":"IF('1. Ordersheet'!G878=\"\",\"\",'1. Ordersheet'!G878)","v":""},{"$f":"IF('1. Ordersheet'!H878=\"\",\"\",'1. Ordersheet'!H878)","v":""},{"$f":"IF('1. Ordersheet'!I878=\"\",\"\",'1. Ordersheet'!I878)","v":""},{"$f":"IF('1. Ordersheet'!J878=\"\",\"\",'1. Ordersheet'!J878)","v":""},{"$f":"IF('1. Ordersheet'!K878=\"\",\"\",'1. Ordersheet'!K878)","v":""},{"$f":"IF('1. Ordersheet'!L878=\"\",\"\",'1. Ordersheet'!L878)","v":""},{"$f":"IF('1. Ordersheet'!M878=\"\",\"\",'1. Ordersheet'!M878)","v":""},{"$f":"IF('1. Ordersheet'!N878=\"\",\"\",'1. Ordersheet'!N878)","v":""},{"$f":"IF('1. Ordersheet'!O878=\"\",\"\",'1. Ordersheet'!O878)","v":{"$error":"#N/A"}},{"$f":"IF('1. Ordersheet'!P878=\"\",\"\",'1. Ordersheet'!P878)","v":{"$error":"#N/A"}},{"$f":"IF('1. Ordersheet'!Q878=\"\",\"\",'1. Ordersheet'!Q878)","v":""},{"$f":"IF('1. Ordersheet'!R878=\"\",\"\",'1. Ordersheet'!R878)","v":""},{"$f":"IF('1. Ordersheet'!S878=\"\",\"\",'1. Ordersheet'!S878)","v":""},{"$f":"IF('1. Ordersheet'!V878=\"\",\"\",'1. Ordersheet'!V878)","v":""},{"$f":"IF('1. Ordersheet'!W878=\"\",\"\",'1. Ordersheet'!W878)","v":""},{"$f":"IF('1. Ordersheet'!X878=\"\",\"\",'1. Ordersheet'!X878)","v":""},{"$f":"IF('1. Ordersheet'!Y878=\"\",\"\",'1. Ordersheet'!Y878)","v":""},{"$f":"IF('1. Ordersheet'!Z878=\"\",\"\",'1. Ordersheet'!Z878)","v":""},{"$f":"IF('1. Ordersheet'!AA878=\"\",\"\",'1. Ordersheet'!AA878)","v":""},null,{"$f":"IF('1. Ordersheet'!AS878=\"\",\"\",'1. Ordersheet'!AS878)","v":""},{"$f":"IF('1. Ordersheet'!AT878=\"\",\"\",'1. Ordersheet'!AT878)","v":""},null,null,null,null,null,null,null,{"$f":"IF('1. Ordersheet'!AX878=\"\",\"\",'1. Ordersheet'!AX878)","v":""},{"$f":"IF('1. Ordersheet'!AY878=\"\",\"\",'1. Ordersheet'!AY878)","v":""},{"$f":"IF('1. Ordersheet'!AZ878=\"\",\"\",'1. Ordersheet'!AZ878)","v":""},{"$f":"IF('1. Ordersheet'!BA878=\"\",\"\",'1. Ordersheet'!BA878)","v":""},{"$f":"IF('1. Ordersheet'!BC878=\"\",\"\",'1. Ordersheet'!BC878)","v":""},{"$f":"IF('1. Ordersheet'!BD878=\"\",\"\",'1. Ordersheet'!BD878)","v":""},{"$f":"IF('1. Ordersheet'!BE878=\"\",\"\",'1. Ordersheet'!BE878)","v":""},{"$f":"IF('1. Ordersheet'!BF878=\"\",\"\",'1. Ordersheet'!BF878)","v":""},{"$f":"IF('1. Ordersheet'!BG878=\"\",\"\",'1. Ordersheet'!BG878)","v":"ZWO"},{"$f":"IF('1. Ordersheet'!BH878=\"\",\"\",'1. Ordersheet'!BH878)","v":""},{"$f":"IF('1. Ordersheet'!BI878=\"\",\"\",'1. Ordersheet'!BI878)","v":""},{"$f":"IF('1. Ordersheet'!BJ878=\"\",\"\",'1. Ordersheet'!BJ878)","v":""},{"$f":"IF('1. Ordersheet'!BK878=\"\",\"\",'1. Ordersheet'!BK878)","v":""},{"$f":"IF('1. Ordersheet'!BL878=\"\",\"\",'1. Ordersheet'!BL878)","v":""}]
[{"$f":"IF('1. Ordersheet'!F879=\"\",\"\",'1. Ordersheet'!F879)","v":""},{"$f":"IF('1. Ordersheet'!G879=\"\",\"\",'1. Ordersheet'!G879)","v":""},{"$f":"IF('1. Ordersheet'!H879=\"\",\"\",'1. Ordersheet'!H879)","v":""},{"$f":"IF('1. Ordersheet'!I879=\"\",\"\",'1. Ordersheet'!I879)","v":""},{"$f":"IF('1. Ordersheet'!J879=\"\",\"\",'1. Ordersheet'!J879)","v":""},{"$f":"IF('1. Ordersheet'!K879=\"\",\"\",'1. Ordersheet'!K879)","v":""},{"$f":"IF('1. Ordersheet'!L879=\"\",\"\",'1. Ordersheet'!L879)","v":""},{"$f":"IF('1. Ordersheet'!M879=\"\",\"\",'1. Ordersheet'!M879)","v":""},{"$f":"IF('1. Ordersheet'!N879=\"\",\"\",'1. Ordersheet'!N879)","v":""},{"$f":"IF('1. Ordersheet'!O879=\"\",\"\",'1. Ordersheet'!O879)","v":{"$error":"#N/A"}},{"$f":"IF('1. Ordersheet'!P879=\"\",\"\",'1. Ordersheet'!P879)","v":{"$error":"#N/A"}},{"$f":"IF('1. Ordersheet'!Q879=\"\",\"\",'1. Ordersheet'!Q879)","v":""},{"$f":"IF('1. Ordersheet'!R879=\"\",\"\",'1. Ordersheet'!R879)","v":""},{"$f":"IF('1. Ordersheet'!S879=\"\",\"\",'1. Ordersheet'!S879)","v":""},{"$f":"IF('1. Ordersheet'!V879=\"\",\"\",'1. Ordersheet'!V879)","v":""},{"$f":"IF('1. Ordersheet'!W879=\"\",\"\",'1. Ordersheet'!W879)","v":""},{"$f":"IF('1. Ordersheet'!X879=\"\",\"\",'1. Ordersheet'!X879)","v":""},{"$f":"IF('1. Ordersheet'!Y879=\"\",\"\",'1. Ordersheet'!Y879)","v":""},{"$f":"IF('1. Ordersheet'!Z879=\"\",\"\",'1. Ordersheet'!Z879)","v":""},{"$f":"IF('1. Ordersheet'!AA879=\"\",\"\",'1. Ordersheet'!AA879)","v":""},null,{"$f":"IF('1. Ordersheet'!AS879=\"\",\"\",'1. Ordersheet'!AS879)","v":""},{"$f":"IF('1. Ordersheet'!AT879=\"\",\"\",'1. Ordersheet'!AT879)","v":""},null,null,null,null,null,null,null,{"$f":"IF('1. Ordersheet'!AX879=\"\",\"\",'1. Ordersheet'!AX879)","v":""},{"$f":"IF('1. Ordersheet'!AY879=\"\",\"\",'1. Ordersheet'!AY879)","v":""},{"$f":"IF('1. Ordersheet'!AZ879=\"\",\"\",'1. Ordersheet'!AZ879)","v":""},{"$f":"IF('1. Ordersheet'!BA879=\"\",\"\",'1. Ordersheet'!BA879)","v":""},{"$f":"IF('1. Ordersheet'!BC879=\"\",\"\",'1. Ordersheet'!BC879)","v":""},{"$f":"IF('1. Ordersheet'!BD879=\"\",\"\",'1. Ordersheet'!BD879)","v":""},{"$f":"IF('1. Ordersheet'!BE879=\"\",\"\",'1. Ordersheet'!BE879)","v":""},{"$f":"IF('1. Ordersheet'!BF879=\"\",\"\",'1. Ordersheet'!BF879)","v":""},{"$f":"IF('1. Ordersheet'!BG879=\"\",\"\",'1. Ordersheet'!BG879)","v":"ZWO"},{"$f":"IF('1. Ordersheet'!BH879=\"\",\"\",'1. Ordersheet'!BH879)","v":""},{"$f":"IF('1. Ordersheet'!BI879=\"\",\"\",'1. Ordersheet'!BI879)","v":""},{"$f":"IF('1. Ordersheet'!BJ879=\"\",\"\",'1. Ordersheet'!BJ879)","v":""},{"$f":"IF('1. Ordersheet'!BK879=\"\",\"\",'1. Ordersheet'!BK879)","v":""},{"$f":"IF('1. Ordersheet'!BL879=\"\",\"\",'1. Ordersheet'!BL879)","v":""}]
[{"$f":"IF('1. Ordersheet'!F880=\"\",\"\",'1. Ordersheet'!F880)","v":""},{"$f":"IF('1. Ordersheet'!G880=\"\",\"\",'1. Ordersheet'!G880)","v":""},{"$f":"IF('1. Ordersheet'!H880=\"\",\"\",'1. Ordersheet'!H880)","v":""},{"$f":"IF('1. Ordersheet'!I880=\"\",\"\",'1. Ordersheet'!I880)","v":""},{"$f":"IF('1. Ordersheet'!J880=\"\",\"\",'1. Ordersheet'!J880)","v":""},{"$f":"IF('1. Ordersheet'!K880=\"\",\"\",'1. Ordersheet'!K880)","v":""},{"$f":"IF('1. Ordersheet'!L880=\"\",\"\",'1. Ordersheet'!L880)","v":""},{"$f":"IF('1. Ordersheet'!M880=\"\",\"\",'1. Ordersheet'!M880)","v":""},{"$f":"IF('1. Ordersheet'!N880=\"\",\"\",'1. Ordersheet'!N880)","v":""},{"$f":"IF('1. Ordersheet'!O880=\"\",\"\",'1. Ordersheet'!O880)","v":{"$error":"#N/A"}},{"$f":"IF('1. Ordersheet'!P880=\"\",\"\",'1. Ordersheet'!P880)","v":{"$error":"#N/A"}},{"$f":"IF('1. Ordersheet'!Q880=\"\",\"\",'1. Ordersheet'!Q880)","v":""},{"$f":"IF('1. Ordersheet'!R880=\"\",\"\",'1. Ordersheet'!R880)","v":""},{"$f":"IF('1. Ordersheet'!S880=\"\",\"\",'1. Ordersheet'!S880)","v":""},{"$f":"IF('1. Ordersheet'!V880=\"\",\"\",'1. Ordersheet'!V880)","v":""},{"$f":"IF('1. Ordersheet'!W880=\"\",\"\",'1. Ordersheet'!W880)","v":""},{"$f":"IF('1. Ordersheet'!X880=\"\",\"\",'1. Ordersheet'!X880)","v":""},{"$f":"IF('1. Ordersheet'!Y880=\"\",\"\",'1. Ordersheet'!Y880)","v":""},{"$f":"IF('1. Ordersheet'!Z880=\"\",\"\",'1. Ordersheet'!Z880)","v":""},{"$f":"IF('1. Ordersheet'!AA880=\"\",\"\",'1. Ordersheet'!AA880)","v":""},null,{"$f":"IF('1. Ordersheet'!AS880=\"\",\"\",'1. Ordersheet'!AS880)","v":""},{"$f":"IF('1. Ordersheet'!AT880=\"\",\"\",'1. Ordersheet'!AT880)","v":""},null,null,null,null,null,null,null,{"$f":"IF('1. Ordersheet'!AX880=\"\",\"\",'1. Ordersheet'!AX880)","v":""},{"$f":"IF('1. Ordersheet'!AY880=\"\",\"\",'1. Ordersheet'!AY880)","v":""},{"$f":"IF('1. Ordersheet'!AZ880=\"\",\"\",'1. Ordersheet'!AZ880)","v":""},{"$f":"IF('1. Ordersheet'!BA880=\"\",\"\",'1. Ordersheet'!BA880)","v":""},{"$f":"IF('1. Ordersheet'!BC880=\"\",\"\",'1. Ordersheet'!BC880)","v":""},{"$f":"IF('1. Ordersheet'!BD880=\"\",\"\",'1. Ordersheet'!BD880)","v":""},{"$f":"IF('1. Ordersheet'!BE880=\"\",\"\",'1. Ordersheet'!BE880)","v":""},{"$f":"IF('1. Ordersheet'!BF880=\"\",\"\",'1. Ordersheet'!BF880)","v":""},{"$f":"IF('1. Ordersheet'!BG880=\"\",\"\",'1. Ordersheet'!BG880)","v":"ZWO"},{"$f":"IF('1. Ordersheet'!BH880=\"\",\"\",'1. Ordersheet'!BH880)","v":""},{"$f":"IF('1. Ordersheet'!BI880=\"\",\"\",'1. Ordersheet'!BI880)","v":""},{"$f":"IF('1. Ordersheet'!BJ880=\"\",\"\",'1. Ordersheet'!BJ880)","v":""},{"$f":"IF('1. Ordersheet'!BK880=\"\",\"\",'1. Ordersheet'!BK880)","v":""},{"$f":"IF('1. Ordersheet'!BL880=\"\",\"\",'1. Ordersheet'!BL880)","v":""}]
[{"$f":"IF('1. Ordersheet'!F881=\"\",\"\",'1. Ordersheet'!F881)","v":""},{"$f":"IF('1. Ordersheet'!G881=\"\",\"\",'1. Ordersheet'!G881)","v":""},{"$f":"IF('1. Ordersheet'!H881=\"\",\"\",'1. Ordersheet'!H881)","v":""},{"$f":"IF('1. Ordersheet'!I881=\"\",\"\",'1. Ordersheet'!I881)","v":""},{"$f":"IF('1. Ordersheet'!J881=\"\",\"\",'1. Ordersheet'!J881)","v":""},{"$f":"IF('1. Ordersheet'!K881=\"\",\"\",'1. Ordersheet'!K881)","v":""},{"$f":"IF('1. Ordersheet'!L881=\"\",\"\",'1. Ordersheet'!L881)","v":""},{"$f":"IF('1. Ordersheet'!M881=\"\",\"\",'1. Ordersheet'!M881)","v":""},{"$f":"IF('1. Ordersheet'!N881=\"\",\"\",'1. Ordersheet'!N881)","v":""},{"$f":"IF('1. Ordersheet'!O881=\"\",\"\",'1. Ordersheet'!O881)","v":{"$error":"#N/A"}},{"$f":"IF('1. Ordersheet'!P881=\"\",\"\",'1. Ordersheet'!P881)","v":{"$error":"#N/A"}},{"$f":"IF('1. Ordersheet'!Q881=\"\",\"\",'1. Ordersheet'!Q881)","v":""},{"$f":"IF('1. Ordersheet'!R881=\"\",\"\",'1. Ordersheet'!R881)","v":""},{"$f":"IF('1. Ordersheet'!S881=\"\",\"\",'1. Ordersheet'!S881)","v":""},{"$f":"IF('1. Ordersheet'!V881=\"\",\"\",'1. Ordersheet'!V881)","v":""},{"$f":"IF('1. Ordersheet'!W881=\"\",\"\",'1. Ordersheet'!W881)","v":""},{"$f":"IF('1. Ordersheet'!X881=\"\",\"\",'1. Ordersheet'!X881)","v":""},{"$f":"IF('1. Ordersheet'!Y881=\"\",\"\",'1. Ordersheet'!Y881)","v":""},{"$f":"IF('1. Ordersheet'!Z881=\"\",\"\",'1. Ordersheet'!Z881)","v":""},{"$f":"IF('1. Ordersheet'!AA881=\"\",\"\",'1. Ordersheet'!AA881)","v":""},null,{"$f":"IF('1. Ordersheet'!AS881=\"\",\"\",'1. Ordersheet'!AS881)","v":""},{"$f":"IF('1. Ordersheet'!AT881=\"\",\"\",'1. Ordersheet'!AT881)","v":""},null,null,null,null,null,null,null,{"$f":"IF('1. Ordersheet'!AX881=\"\",\"\",'1. Ordersheet'!AX881)","v":""},{"$f":"IF('1. Ordersheet'!AY881=\"\",\"\",'1. Ordersheet'!AY881)","v":""},{"$f":"IF('1. Ordersheet'!AZ881=\"\",\"\",'1. Ordersheet'!AZ881)","v":""},{"$f":"IF('1. Ordersheet'!BA881=\"\",\"\",'1. Ordersheet'!BA881)","v":""},{"$f":"IF('1. Ordersheet'!BC881=\"\",\"\",'1. Ordersheet'!BC881)","v":""},{"$f":"IF('1. Ordersheet'!BD881=\"\",\"\",'1. Ordersheet'!BD881)","v":""},{"$f":"IF('1. Ordersheet'!BE881=\"\",\"\",'1. Ordersheet'!BE881)","v":""},{"$f":"IF('1. Ordersheet'!BF881=\"\",\"\",'1. Ordersheet'!BF881)","v":""},{"$f":"IF('1. Ordersheet'!BG881=\"\",\"\",'1. Ordersheet'!BG881)","v":"ZWO"},{"$f":"IF('1. Ordersheet'!BH881=\"\",\"\",'1. Ordersheet'!BH881)","v":""},{"$f":"IF('1. Ordersheet'!BI881=\"\",\"\",'1. Ordersheet'!BI881)","v":""},{"$f":"IF('1. Ordersheet'!BJ881=\"\",\"\",'1. Ordersheet'!BJ881)","v":""},{"$f":"IF('1. Ordersheet'!BK881=\"\",\"\",'1. Ordersheet'!BK881)","v":""},{"$f":"IF('1. Ordersheet'!BL881=\"\",\"\",'1. Ordersheet'!BL881)","v":""}]
[{"$f":"IF('1. Ordersheet'!F882=\"\",\"\",'1. Ordersheet'!F882)","v":""},{"$f":"IF('1. Ordersheet'!G882=\"\",\"\",'1. Ordersheet'!G882)","v":""},{"$f":"IF('1. Ordersheet'!H882=\"\",\"\",'1. Ordersheet'!H882)","v":""},{"$f":"IF('1. Ordersheet'!I882=\"\",\"\",'1. Ordersheet'!I882)","v":""},{"$f":"IF('1. Ordersheet'!J882=\"\",\"\",'1. Ordersheet'!J882)","v":""},{"$f":"IF('1. Ordersheet'!K882=\"\",\"\",'1. Ordersheet'!K882)","v":""},{"$f":"IF('1. Ordersheet'!L882=\"\",\"\",'1. Ordersheet'!L882)","v":""},{"$f":"IF('1. Ordersheet'!M882=\"\",\"\",'1. Ordersheet'!M882)","v":""},{"$f":"IF('1. Ordersheet'!N882=\"\",\"\",'1. Ordersheet'!N882)","v":""},{"$f":"IF('1. Ordersheet'!O882=\"\",\"\",'1. Ordersheet'!O882)","v":{"$error":"#N/A"}},{"$f":"IF('1. Ordersheet'!P882=\"\",\"\",'1. Ordersheet'!P882)","v":{"$error":"#N/A"}},{"$f":"IF('1. Ordersheet'!Q882=\"\",\"\",'1. Ordersheet'!Q882)","v":""},{"$f":"IF('1. Ordersheet'!R882=\"\",\"\",'1. Ordersheet'!R882)","v":""},{"$f":"IF('1. Ordersheet'!S882=\"\",\"\",'1. Ordersheet'!S882)","v":""},{"$f":"IF('1. Ordersheet'!V882=\"\",\"\",'1. Ordersheet'!V882)","v":""},{"$f":"IF('1. Ordersheet'!W882=\"\",\"\",'1. Ordersheet'!W882)","v":""},{"$f":"IF('1. Ordersheet'!X882=\"\",\"\",'1. Ordersheet'!X882)","v":""},{"$f":"IF('1. Ordersheet'!Y882=\"\",\"\",'1. Ordersheet'!Y882)","v":""},{"$f":"IF('1. Ordersheet'!Z882=\"\",\"\",'1. Ordersheet'!Z882)","v":""},{"$f":"IF('1. Ordersheet'!AA882=\"\",\"\",'1. Ordersheet'!AA882)","v":""},null,{"$f":"IF('1. Ordersheet'!AS882=\"\",\"\",'1. Ordersheet'!AS882)","v":""},{"$f":"IF('1. Ordersheet'!AT882=\"\",\"\",'1. Ordersheet'!AT882)","v":""},null,null,null,null,null,null,null,{"$f":"IF('1. Ordersheet'!AX882=\"\",\"\",'1. Ordersheet'!AX882)","v":""},{"$f":"IF('1. Ordersheet'!AY882=\"\",\"\",'1. Ordersheet'!AY882)","v":""},{"$f":"IF('1. Ordersheet'!AZ882=\"\",\"\",'1. Ordersheet'!AZ882)","v":""},{"$f":"IF('1. Ordersheet'!BA882=\"\",\"\",'1. Ordersheet'!BA882)","v":""},{"$f":"IF('1. Ordersheet'!BC882=\"\",\"\",'1. Ordersheet'!BC882)","v":""},{"$f":"IF('1. Ordersheet'!BD882=\"\",\"\",'1. Ordersheet'!BD882)","v":""},{"$f":"IF('1. Ordersheet'!BE882=\"\",\"\",'1. Ordersheet'!BE882)","v":""},{"$f":"IF('1. Ordersheet'!BF882=\"\",\"\",'1. Ordersheet'!BF882)","v":""},{"$f":"IF('1. Ordersheet'!BG882=\"\",\"\",'1. Ordersheet'!BG882)","v":"ZWO"},{"$f":"IF('1. Ordersheet'!BH882=\"\",\"\",'1. Ordersheet'!BH882)","v":""},{"$f":"IF('1. Ordersheet'!BI882=\"\",\"\",'1. Ordersheet'!BI882)","v":""},{"$f":"IF('1. Ordersheet'!BJ882=\"\",\"\",'1. Ordersheet'!BJ882)","v":""},{"$f":"IF('1. Ordersheet'!BK882=\"\",\"\",'1. Ordersheet'!BK882)","v":""},{"$f":"IF('1. Ordersheet'!BL882=\"\",\"\",'1. Ordersheet'!BL882)","v":""}]
[{"$f":"IF('1. Ordersheet'!F883=\"\",\"\",'1. Ordersheet'!F883)","v":""},{"$f":"IF('1. Ordersheet'!G883=\"\",\"\",'1. Ordersheet'!G883)","v":""},{"$f":"IF('1. Ordersheet'!H883=\"\",\"\",'1. Ordersheet'!H883)","v":""},{"$f":"IF('1. Ordersheet'!I883=\"\",\"\",'1. Ordersheet'!I883)","v":""},{"$f":"IF('1. Ordersheet'!J883=\"\",\"\",'1. Ordersheet'!J883)","v":""},{"$f":"IF('1. Ordersheet'!K883=\"\",\"\",'1. Ordersheet'!K883)","v":""},{"$f":"IF('1. Ordersheet'!L883=\"\",\"\",'1. Ordersheet'!L883)","v":""},{"$f":"IF('1. Ordersheet'!M883=\"\",\"\",'1. Ordersheet'!M883)","v":""},{"$f":"IF('1. Ordersheet'!N883=\"\",\"\",'1. Ordersheet'!N883)","v":""},{"$f":"IF('1. Ordersheet'!O883=\"\",\"\",'1. Ordersheet'!O883)","v":{"$error":"#N/A"}},{"$f":"IF('1. Ordersheet'!P883=\"\",\"\",'1. Ordersheet'!P883)","v":{"$error":"#N/A"}},{"$f":"IF('1. Ordersheet'!Q883=\"\",\"\",'1. Ordersheet'!Q883)","v":""},{"$f":"IF('1. Ordersheet'!R883=\"\",\"\",'1. Ordersheet'!R883)","v":""},{"$f":"IF('1. Ordersheet'!S883=\"\",\"\",'1. Ordersheet'!S883)","v":""},{"$f":"IF('1. Ordersheet'!V883=\"\",\"\",'1. Ordersheet'!V883)","v":""},{"$f":"IF('1. Ordersheet'!W883=\"\",\"\",'1. Ordersheet'!W883)","v":""},{"$f":"IF('1. Ordersheet'!X883=\"\",\"\",'1. Ordersheet'!X883)","v":""},{"$f":"IF('1. Ordersheet'!Y883=\"\",\"\",'1. Ordersheet'!Y883)","v":""},{"$f":"IF('1. Ordersheet'!Z883=\"\",\"\",'1. Ordersheet'!Z883)","v":""},{"$f":"IF('1. Ordersheet'!AA883=\"\",\"\",'1. Ordersheet'!AA883)","v":""},null,{"$f":"IF('1. Ordersheet'!AS883=\"\",\"\",'1. Ordersheet'!AS883)","v":""},{"$f":"IF('1. Ordersheet'!AT883=\"\",\"\",'1. Ordersheet'!AT883)","v":""},null,null,null,null,null,null,null,{"$f":"IF('1. Ordersheet'!AX883=\"\",\"\",'1. Ordersheet'!AX883)","v":""},{"$f":"IF('1. Ordersheet'!AY883=\"\",\"\",'1. Ordersheet'!AY883)","v":""},{"$f":"IF('1. Ordersheet'!AZ883=\"\",\"\",'1. Ordersheet'!AZ883)","v":""},{"$f":"IF('1. Ordersheet'!BA883=\"\",\"\",'1. Ordersheet'!BA883)","v":""},{"$f":"IF('1. Ordersheet'!BC883=\"\",\"\",'1. Ordersheet'!BC883)","v":""},{"$f":"IF('1. Ordersheet'!BD883=\"\",\"\",'1. Ordersheet'!BD883)","v":""},{"$f":"IF('1. Ordersheet'!BE883=\"\",\"\",'1. Ordersheet'!BE883)","v":""},{"$f":"IF('1. Ordersheet'!BF883=\"\",\"\",'1. Ordersheet'!BF883)","v":""},{"$f":"IF('1. Ordersheet'!BG883=\"\",\"\",'1. Ordersheet'!BG883)","v":"ZWO"},{"$f":"IF('1. Ordersheet'!BH883=\"\",\"\",'1. Ordersheet'!BH883)","v":""},{"$f":"IF('1. Ordersheet'!BI883=\"\",\"\",'1. Ordersheet'!BI883)","v":""},{"$f":"IF('1. Ordersheet'!BJ883=\"\",\"\",'1. Ordersheet'!BJ883)","v":""},{"$f":"IF('1. Ordersheet'!BK883=\"\",\"\",'1. Ordersheet'!BK883)","v":""},{"$f":"IF('1. Ordersheet'!BL883=\"\",\"\",'1. Ordersheet'!BL883)","v":""}]
[{"$f":"IF('1. Ordersheet'!F884=\"\",\"\",'1. Ordersheet'!F884)","v":""},{"$f":"IF('1. Ordersheet'!G884=\"\",\"\",'1. Ordersheet'!G884)","v":""},{"$f":"IF('1. Ordersheet'!H884=\"\",\"\",'1. Ordersheet'!H884)","v":""},{"$f":"IF('1. Ordersheet'!I884=\"\",\"\",'1. Ordersheet'!I884)","v":""},{"$f":"IF('1. Ordersheet'!J884=\"\",\"\",'1. Ordersheet'!J884)","v":""},{"$f":"IF('1. Ordersheet'!K884=\"\",\"\",'1. Ordersheet'!K884)","v":""},{"$f":"IF('1. Ordersheet'!L884=\"\",\"\",'1. Ordersheet'!L884)","v":""},{"$f":"IF('1. Ordersheet'!M884=\"\",\"\",'1. Ordersheet'!M884)","v":""},{"$f":"IF('1. Ordersheet'!N884=\"\",\"\",'1. Ordersheet'!N884)","v":""},{"$f":"IF('1. Ordersheet'!O884=\"\",\"\",'1. Ordersheet'!O884)","v":{"$error":"#N/A"}},{"$f":"IF('1. Ordersheet'!P884=\"\",\"\",'1. Ordersheet'!P884)","v":{"$error":"#N/A"}},{"$f":"IF('1. Ordersheet'!Q884=\"\",\"\",'1. Ordersheet'!Q884)","v":""},{"$f":"IF('1. Ordersheet'!R884=\"\",\"\",'1. Ordersheet'!R884)","v":""},{"$f":"IF('1. Ordersheet'!S884=\"\",\"\",'1. Ordersheet'!S884)","v":""},{"$f":"IF('1. Ordersheet'!V884=\"\",\"\",'1. Ordersheet'!V884)","v":""},{"$f":"IF('1. Ordersheet'!W884=\"\",\"\",'1. Ordersheet'!W884)","v":""},{"$f":"IF('1. Ordersheet'!X884=\"\",\"\",'1. Ordersheet'!X884)","v":""},{"$f":"IF('1. Ordersheet'!Y884=\"\",\"\",'1. Ordersheet'!Y884)","v":""},{"$f":"IF('1. Ordersheet'!Z884=\"\",\"\",'1. Ordersheet'!Z884)","v":""},{"$f":"IF('1. Ordersheet'!AA884=\"\",\"\",'1. Ordersheet'!AA884)","v":""},null,{"$f":"IF('1. Ordersheet'!AS884=\"\",\"\",'1. Ordersheet'!AS884)","v":""},{"$f":"IF('1. Ordersheet'!AT884=\"\",\"\",'1. Ordersheet'!AT884)","v":""},null,null,null,null,null,null,null,{"$f":"IF('1. Ordersheet'!AX884=\"\",\"\",'1. Ordersheet'!AX884)","v":""},{"$f":"IF('1. Ordersheet'!AY884=\"\",\"\",'1. Ordersheet'!AY884)","v":""},{"$f":"IF('1. Ordersheet'!AZ884=\"\",\"\",'1. Ordersheet'!AZ884)","v":""},{"$f":"IF('1. Ordersheet'!BA884=\"\",\"\",'1. Ordersheet'!BA884)","v":""},{"$f":"IF('1. Ordersheet'!BC884=\"\",\"\",'1. Ordersheet'!BC884)","v":""},{"$f":"IF('1. Ordersheet'!BD884=\"\",\"\",'1. Ordersheet'!BD884)","v":""},{"$f":"IF('1. Ordersheet'!BE884=\"\",\"\",'1. Ordersheet'!BE884)","v":""},{"$f":"IF('1. Ordersheet'!BF884=\"\",\"\",'1. Ordersheet'!BF884)","v":""},{"$f":"IF('1. Ordersheet'!BG884=\"\",\"\",'1. Ordersheet'!BG884)","v":"ZWO"},{"$f":"IF('1. Ordersheet'!BH884=\"\",\"\",'1. Ordersheet'!BH884)","v":""},{"$f":"IF('1. Ordersheet'!BI884=\"\",\"\",'1. Ordersheet'!BI884)","v":""},{"$f":"IF('1. Ordersheet'!BJ884=\"\",\"\",'1. Ordersheet'!BJ884)","v":""},{"$f":"IF('1. Ordersheet'!BK884=\"\",\"\",'1. Ordersheet'!BK884)","v":""},{"$f":"IF('1. Ordersheet'!BL884=\"\",\"\",'1. Ordersheet'!BL884)","v":""}]
[{"$f":"IF('1. Ordersheet'!F885=\"\",\"\",'1. Ordersheet'!F885)","v":""},{"$f":"IF('1. Ordersheet'!G885=\"\",\"\",'1. Ordersheet'!G885)","v":""},{"$f":"IF('1. Ordersheet'!H885=\"\",\"\",'1. Ordersheet'!H885)","v":""},{"$f":"IF('1. Ordersheet'!I885=\"\",\"\",'1. Ordersheet'!I885)","v":""},{"$f":"IF('1. Ordersheet'!J885=\"\",\"\",'1. Ordersheet'!J885)","v":""},{"$f":"IF('1. Ordersheet'!K885=\"\",\"\",'1. Ordersheet'!K885)","v":""},{"$f":"IF('1. Ordersheet'!L885=\"\",\"\",'1. Ordersheet'!L885)","v":""},{"$f":"IF('1. Ordersheet'!M885=\"\",\"\",'1. Ordersheet'!M885)","v":""},{"$f":"IF('1. Ordersheet'!N885=\"\",\"\",'1. Ordersheet'!N885)","v":""},{"$f":"IF('1. Ordersheet'!O885=\"\",\"\",'1. Ordersheet'!O885)","v":{"$error":"#N/A"}},{"$f":"IF('1. Ordersheet'!P885=\"\",\"\",'1. Ordersheet'!P885)","v":{"$error":"#N/A"}},{"$f":"IF('1. Ordersheet'!Q885=\"\",\"\",'1. Ordersheet'!Q885)","v":""},{"$f":"IF('1. Ordersheet'!R885=\"\",\"\",'1. Ordersheet'!R885)","v":""},{"$f":"IF('1. Ordersheet'!S885=\"\",\"\",'1. Ordersheet'!S885)","v":""},{"$f":"IF('1. Ordersheet'!V885=\"\",\"\",'1. Ordersheet'!V885)","v":""},{"$f":"IF('1. Ordersheet'!W885=\"\",\"\",'1. Ordersheet'!W885)","v":""},{"$f":"IF('1. Ordersheet'!X885=\"\",\"\",'1. Ordersheet'!X885)","v":""},{"$f":"IF('1. Ordersheet'!Y885=\"\",\"\",'1. Ordersheet'!Y885)","v":""},{"$f":"IF('1. Ordersheet'!Z885=\"\",\"\",'1. Ordersheet'!Z885)","v":""},{"$f":"IF('1. Ordersheet'!AA885=\"\",\"\",'1. Ordersheet'!AA885)","v":""},null,{"$f":"IF('1. Ordersheet'!AS885=\"\",\"\",'1. Ordersheet'!AS885)","v":""},{"$f":"IF('1. Ordersheet'!AT885=\"\",\"\",'1. Ordersheet'!AT885)","v":""},null,null,null,null,null,null,null,{"$f":"IF('1. Ordersheet'!AX885=\"\",\"\",'1. Ordersheet'!AX885)","v":""},{"$f":"IF('1. Ordersheet'!AY885=\"\",\"\",'1. Ordersheet'!AY885)","v":""},{"$f":"IF('1. Ordersheet'!AZ885=\"\",\"\",'1. Ordersheet'!AZ885)","v":""},{"$f":"IF('1. Ordersheet'!BA885=\"\",\"\",'1. Ordersheet'!BA885)","v":""},{"$f":"IF('1. Ordersheet'!BC885=\"\",\"\",'1. Ordersheet'!BC885)","v":""},{"$f":"IF('1. Ordersheet'!BD885=\"\",\"\",'1. Ordersheet'!BD885)","v":""},{"$f":"IF('1. Ordersheet'!BE885=\"\",\"\",'1. Ordersheet'!BE885)","v":""},{"$f":"IF('1. Ordersheet'!BF885=\"\",\"\",'1. Ordersheet'!BF885)","v":""},{"$f":"IF('1. Ordersheet'!BG885=\"\",\"\",'1. Ordersheet'!BG885)","v":"ZWO"},{"$f":"IF('1. Ordersheet'!BH885=\"\",\"\",'1. Ordersheet'!BH885)","v":""},{"$f":"IF('1. Ordersheet'!BI885=\"\",\"\",'1. Ordersheet'!BI885)","v":""},{"$f":"IF('1. Ordersheet'!BJ885=\"\",\"\",'1. Ordersheet'!BJ885)","v":""},{"$f":"IF('1. Ordersheet'!BK885=\"\",\"\",'1. Ordersheet'!BK885)","v":""},{"$f":"IF('1. Ordersheet'!BL885=\"\",\"\",'1. Ordersheet'!BL885)","v":""}]
[{"$f":"IF('1. Ordersheet'!F886=\"\",\"\",'1. Ordersheet'!F886)","v":""},{"$f":"IF('1. Ordersheet'!G886=\"\",\"\",'1. Ordersheet'!G886)","v":""},{"$f":"IF('1. Ordersheet'!H886=\"\",\"\",'1. Ordersheet'!H886)","v":""},{"$f":"IF('1. Ordersheet'!I886=\"\",\"\",'1. Ordersheet'!I886)","v":""},{"$f":"IF('1. Ordersheet'!J886=\"\",\"\",'1. Ordersheet'!J886)","v":""},{"$f":"IF('1. Ordersheet'!K886=\"\",\"\",'1. Ordersheet'!K886)","v":""},{"$f":"IF('1. Ordersheet'!L886=\"\",\"\",'1. Ordersheet'!L886)","v":""},{"$f":"IF('1. Ordersheet'!M886=\"\",\"\",'1. Ordersheet'!M886)","v":""},{"$f":"IF('1. Ordersheet'!N886=\"\",\"\",'1. Ordersheet'!N886)","v":""},{"$f":"IF('1. Ordersheet'!O886=\"\",\"\",'1. Ordersheet'!O886)","v":{"$error":"#N/A"}},{"$f":"IF('1. Ordersheet'!P886=\"\",\"\",'1. Ordersheet'!P886)","v":{"$error":"#N/A"}},{"$f":"IF('1. Ordersheet'!Q886=\"\",\"\",'1. Ordersheet'!Q886)","v":""},{"$f":"IF('1. Ordersheet'!R886=\"\",\"\",'1. Ordersheet'!R886)","v":""},{"$f":"IF('1. Ordersheet'!S886=\"\",\"\",'1. Ordersheet'!S886)","v":""},{"$f":"IF('1. Ordersheet'!V886=\"\",\"\",'1. Ordersheet'!V886)","v":""},{"$f":"IF('1. Ordersheet'!W886=\"\",\"\",'1. Ordersheet'!W886)","v":""},{"$f":"IF('1. Ordersheet'!X886=\"\",\"\",'1. Ordersheet'!X886)","v":""},{"$f":"IF('1. Ordersheet'!Y886=\"\",\"\",'1. Ordersheet'!Y886)","v":""},{"$f":"IF('1. Ordersheet'!Z886=\"\",\"\",'1. Ordersheet'!Z886)","v":""},{"$f":"IF('1. Ordersheet'!AA886=\"\",\"\",'1. Ordersheet'!AA886)","v":""},null,{"$f":"IF('1. Ordersheet'!AS886=\"\",\"\",'1. Ordersheet'!AS886)","v":""},{"$f":"IF('1. Ordersheet'!AT886=\"\",\"\",'1. Ordersheet'!AT886)","v":""},null,null,null,null,null,null,null,{"$f":"IF('1. Ordersheet'!AX886=\"\",\"\",'1. Ordersheet'!AX886)","v":""},{"$f":"IF('1. Ordersheet'!AY886=\"\",\"\",'1. Ordersheet'!AY886)","v":""},{"$f":"IF('1. Ordersheet'!AZ886=\"\",\"\",'1. Ordersheet'!AZ886)","v":""},{"$f":"IF('1. Ordersheet'!BA886=\"\",\"\",'1. Ordersheet'!BA886)","v":""},{"$f":"IF('1. Ordersheet'!BC886=\"\",\"\",'1. Ordersheet'!BC886)","v":""},{"$f":"IF('1. Ordersheet'!BD886=\"\",\"\",'1. Ordersheet'!BD886)","v":""},{"$f":"IF('1. Ordersheet'!BE886=\"\",\"\",'1. Ordersheet'!BE886)","v":""},{"$f":"IF('1. Ordersheet'!BF886=\"\",\"\",'1. Ordersheet'!BF886)","v":""},{"$f":"IF('1. Ordersheet'!BG886=\"\",\"\",'1. Ordersheet'!BG886)","v":"ZWO"},{"$f":"IF('1. Ordersheet'!BH886=\"\",\"\",'1. Ordersheet'!BH886)","v":""},{"$f":"IF('1. Ordersheet'!BI886=\"\",\"\",'1. Ordersheet'!BI886)","v":""},{"$f":"IF('1. Ordersheet'!BJ886=\"\",\"\",'1. Ordersheet'!BJ886)","v":""},{"$f":"IF('1. Ordersheet'!BK886=\"\",\"\",'1. Ordersheet'!BK886)","v":""},{"$f":"IF('1. Ordersheet'!BL886=\"\",\"\",'1. Ordersheet'!BL886)","v":""}]
[{"$f":"IF('1. Ordersheet'!F887=\"\",\"\",'1. Ordersheet'!F887)","v":""},{"$f":"IF('1. Ordersheet'!G887=\"\",\"\",'1. Ordersheet'!G887)","v":""},{"$f":"IF('1. Ordersheet'!H887=\"\",\"\",'1. Ordersheet'!H887)","v":""},{"$f":"IF('1. Ordersheet'!I887=\"\",\"\",'1. Ordersheet'!I887)","v":""},{"$f":"IF('1. Ordersheet'!J887=\"\",\"\",'1. Ordersheet'!J887)","v":""},{"$f":"IF('1. Ordersheet'!K887=\"\",\"\",'1. Ordersheet'!K887)","v":""},{"$f":"IF('1. Ordersheet'!L887=\"\",\"\",'1. Ordersheet'!L887)","v":""},{"$f":"IF('1. Ordersheet'!M887=\"\",\"\",'1. Ordersheet'!M887)","v":""},{"$f":"IF('1. Ordersheet'!N887=\"\",\"\",'1. Ordersheet'!N887)","v":""},{"$f":"IF('1. Ordersheet'!O887=\"\",\"\",'1. Ordersheet'!O887)","v":{"$error":"#N/A"}},{"$f":"IF('1. Ordersheet'!P887=\"\",\"\",'1. Ordersheet'!P887)","v":{"$error":"#N/A"}},{"$f":"IF('1. Ordersheet'!Q887=\"\",\"\",'1. Ordersheet'!Q887)","v":""},{"$f":"IF('1. Ordersheet'!R887=\"\",\"\",'1. Ordersheet'!R887)","v":""},{"$f":"IF('1. Ordersheet'!S887=\"\",\"\",'1. Ordersheet'!S887)","v":""},{"$f":"IF('1. Ordersheet'!V887=\"\",\"\",'1. Ordersheet'!V887)","v":""},{"$f":"IF('1. Ordersheet'!W887=\"\",\"\",'1. Ordersheet'!W887)","v":""},{"$f":"IF('1. Ordersheet'!X887=\"\",\"\",'1. Ordersheet'!X887)","v":""},{"$f":"IF('1. Ordersheet'!Y887=\"\",\"\",'1. Ordersheet'!Y887)","v":""},{"$f":"IF('1. Ordersheet'!Z887=\"\",\"\",'1. Ordersheet'!Z887)","v":""},{"$f":"IF('1. Ordersheet'!AA887=\"\",\"\",'1. Ordersheet'!AA887)","v":""},null,{"$f":"IF('1. Ordersheet'!AS887=\"\",\"\",'1. Ordersheet'!AS887)","v":""},{"$f":"IF('1. Ordersheet'!AT887=\"\",\"\",'1. Ordersheet'!AT887)","v":""},null,null,null,null,null,null,null,{"$f":"IF('1. Ordersheet'!AX887=\"\",\"\",'1. Ordersheet'!AX887)","v":""},{"$f":"IF('1. Ordersheet'!AY887=\"\",\"\",'1. Ordersheet'!AY887)","v":""},{"$f":"IF('1. Ordersheet'!AZ887=\"\",\"\",'1. Ordersheet'!AZ887)","v":""},{"$f":"IF('1. Ordersheet'!BA887=\"\",\"\",'1. Ordersheet'!BA887)","v":""},{"$f":"IF('1. Ordersheet'!BC887=\"\",\"\",'1. Ordersheet'!BC887)","v":""},{"$f":"IF('1. Ordersheet'!BD887=\"\",\"\",'1. Ordersheet'!BD887)","v":""},{"$f":"IF('1. Ordersheet'!BE887=\"\",\"\",'1. Ordersheet'!BE887)","v":""},{"$f":"IF('1. Ordersheet'!BF887=\"\",\"\",'1. Ordersheet'!BF887)","v":""},{"$f":"IF('1. Ordersheet'!BG887=\"\",\"\",'1. Ordersheet'!BG887)","v":"ZWO"},{"$f":"IF('1. Ordersheet'!BH887=\"\",\"\",'1. Ordersheet'!BH887)","v":""},{"$f":"IF('1. Ordersheet'!BI887=\"\",\"\",'1. Ordersheet'!BI887)","v":""},{"$f":"IF('1. Ordersheet'!BJ887=\"\",\"\",'1. Ordersheet'!BJ887)","v":""},{"$f":"IF('1. Ordersheet'!BK887=\"\",\"\",'1. Ordersheet'!BK887)","v":""},{"$f":"IF('1. Ordersheet'!BL887=\"\",\"\",'1. Ordersheet'!BL887)","v":""}]
[{"$f":"IF('1. Ordersheet'!F888=\"\",\"\",'1. Ordersheet'!F888)","v":""},{"$f":"IF('1. Ordersheet'!G888=\"\",\"\",'1. Ordersheet'!G888)","v":""},{"$f":"IF('1. Ordersheet'!H888=\"\",\"\",'1. Ordersheet'!H888)","v":""},{"$f":"IF('1. Ordersheet'!I888=\"\",\"\",'1. Ordersheet'!I888)","v":""},{"$f":"IF('1. Ordersheet'!J888=\"\",\"\",'1. Ordersheet'!J888)","v":""},{"$f":"IF('1. Ordersheet'!K888=\"\",\"\",'1. Ordersheet'!K888)","v":""},{"$f":"IF('1. Ordersheet'!L888=\"\",\"\",'1. Ordersheet'!L888)","v":""},{"$f":"IF('1. Ordersheet'!M888=\"\",\"\",'1. Ordersheet'!M888)","v":""},{"$f":"IF('1. Ordersheet'!N888=\"\",\"\",'1. Ordersheet'!N888)","v":""},{"$f":"IF('1. Ordersheet'!O888=\"\",\"\",'1. Ordersheet'!O888)","v":{"$error":"#N/A"}},{"$f":"IF('1. Ordersheet'!P888=\"\",\"\",'1. Ordersheet'!P888)","v":{"$error":"#N/A"}},{"$f":"IF('1. Ordersheet'!Q888=\"\",\"\",'1. Ordersheet'!Q888)","v":""},{"$f":"IF('1. Ordersheet'!R888=\"\",\"\",'1. Ordersheet'!R888)","v":""},{"$f":"IF('1. Ordersheet'!S888=\"\",\"\",'1. Ordersheet'!S888)","v":""},{"$f":"IF('1. Ordersheet'!V888=\"\",\"\",'1. Ordersheet'!V888)","v":""},{"$f":"IF('1. Ordersheet'!W888=\"\",\"\",'1. Ordersheet'!W888)","v":""},{"$f":"IF('1. Ordersheet'!X888=\"\",\"\",'1. Ordersheet'!X888)","v":""},{"$f":"IF('1. Ordersheet'!Y888=\"\",\"\",'1. Ordersheet'!Y888)","v":""},{"$f":"IF('1. Ordersheet'!Z888=\"\",\"\",'1. Ordersheet'!Z888)","v":""},{"$f":"IF('1. Ordersheet'!AA888=\"\",\"\",'1. Ordersheet'!AA888)","v":""},null,{"$f":"IF('1. Ordersheet'!AS888=\"\",\"\",'1. Ordersheet'!AS888)","v":""},{"$f":"IF('1. Ordersheet'!AT888=\"\",\"\",'1. Ordersheet'!AT888)","v":""},null,null,null,null,null,null,null,{"$f":"IF('1. Ordersheet'!AX888=\"\",\"\",'1. Ordersheet'!AX888)","v":""},{"$f":"IF('1. Ordersheet'!AY888=\"\",\"\",'1. Ordersheet'!AY888)","v":""},{"$f":"IF('1. Ordersheet'!AZ888=\"\",\"\",'1. Ordersheet'!AZ888)","v":""},{"$f":"IF('1. Ordersheet'!BA888=\"\",\"\",'1. Ordersheet'!BA888)","v":""},{"$f":"IF('1. Ordersheet'!BC888=\"\",\"\",'1. Ordersheet'!BC888)","v":""},{"$f":"IF('1. Ordersheet'!BD888=\"\",\"\",'1. Ordersheet'!BD888)","v":""},{"$f":"IF('1. Ordersheet'!BE888=\"\",\"\",'1. Ordersheet'!BE888)","v":""},{"$f":"IF('1. Ordersheet'!BF888=\"\",\"\",'1. Ordersheet'!BF888)","v":""},{"$f":"IF('1. Ordersheet'!BG888=\"\",\"\",'1. Ordersheet'!BG888)","v":"ZWO"},{"$f":"IF('1. Ordersheet'!BH888=\"\",\"\",'1. Ordersheet'!BH888)","v":""},{"$f":"IF('1. Ordersheet'!BI888=\"\",\"\",'1. Ordersheet'!BI888)","v":""},{"$f":"IF('1. Ordersheet'!BJ888=\"\",\"\",'1. Ordersheet'!BJ888)","v":""},{"$f":"IF('1. Ordersheet'!BK888=\"\",\"\",'1. Ordersheet'!BK888)","v":""},{"$f":"IF('1. Ordersheet'!BL888=\"\",\"\",'1. Ordersheet'!BL888)","v":""}]
[{"$f":"IF('1. Ordersheet'!F889=\"\",\"\",'1. Ordersheet'!F889)","v":""},{"$f":"IF('1. Ordersheet'!G889=\"\",\"\",'1. Ordersheet'!G889)","v":""},{"$f":"IF('1. Ordersheet'!H889=\"\",\"\",'1. Ordersheet'!H889)","v":""},{"$f":"IF('1. Ordersheet'!I889=\"\",\"\",'1. Ordersheet'!I889)","v":""},{"$f":"IF('1. Ordersheet'!J889=\"\",\"\",'1. Ordersheet'!J889)","v":""},{"$f":"IF('1. Ordersheet'!K889=\"\",\"\",'1. Ordersheet'!K889)","v":""},{"$f":"IF('1. Ordersheet'!L889=\"\",\"\",'1. Ordersheet'!L889)","v":""},{"$f":"IF('1. Ordersheet'!M889=\"\",\"\",'1. Ordersheet'!M889)","v":""},{"$f":"IF('1. Ordersheet'!N889=\"\",\"\",'1. Ordersheet'!N889)","v":""},{"$f":"IF('1. Ordersheet'!O889=\"\",\"\",'1. Ordersheet'!O889)","v":{"$error":"#N/A"}},{"$f":"IF('1. Ordersheet'!P889=\"\",\"\",'1. Ordersheet'!P889)","v":{"$error":"#N/A"}},{"$f":"IF('1. Ordersheet'!Q889=\"\",\"\",'1. Ordersheet'!Q889)","v":""},{"$f":"IF('1. Ordersheet'!R889=\"\",\"\",'1. Ordersheet'!R889)","v":""},{"$f":"IF('1. Ordersheet'!S889=\"\",\"\",'1. Ordersheet'!S889)","v":""},{"$f":"IF('1. Ordersheet'!V889=\"\",\"\",'1. Ordersheet'!V889)","v":""},{"$f":"IF('1. Ordersheet'!W889=\"\",\"\",'1. Ordersheet'!W889)","v":""},{"$f":"IF('1. Ordersheet'!X889=\"\",\"\",'1. Ordersheet'!X889)","v":""},{"$f":"IF('1. Ordersheet'!Y889=\"\",\"\",'1. Ordersheet'!Y889)","v":""},{"$f":"IF('1. Ordersheet'!Z889=\"\",\"\",'1. Ordersheet'!Z889)","v":""},{"$f":"IF('1. Ordersheet'!AA889=\"\",\"\",'1. Ordersheet'!AA889)","v":""},null,{"$f":"IF('1. Ordersheet'!AS889=\"\",\"\",'1. Ordersheet'!AS889)","v":""},{"$f":"IF('1. Ordersheet'!AT889=\"\",\"\",'1. Ordersheet'!AT889)","v":""},null,null,null,null,null,null,null,{"$f":"IF('1. Ordersheet'!AX889=\"\",\"\",'1. Ordersheet'!AX889)","v":""},{"$f":"IF('1. Ordersheet'!AY889=\"\",\"\",'1. Ordersheet'!AY889)","v":""},{"$f":"IF('1. Ordersheet'!AZ889=\"\",\"\",'1. Ordersheet'!AZ889)","v":""},{"$f":"IF('1. Ordersheet'!BA889=\"\",\"\",'1. Ordersheet'!BA889)","v":""},{"$f":"IF('1. Ordersheet'!BC889=\"\",\"\",'1. Ordersheet'!BC889)","v":""},{"$f":"IF('1. Ordersheet'!BD889=\"\",\"\",'1. Ordersheet'!BD889)","v":""},{"$f":"IF('1. Ordersheet'!BE889=\"\",\"\",'1. Ordersheet'!BE889)","v":""},{"$f":"IF('1. Ordersheet'!BF889=\"\",\"\",'1. Ordersheet'!BF889)","v":""},{"$f":"IF('1. Ordersheet'!BG889=\"\",\"\",'1. Ordersheet'!BG889)","v":"ZWO"},{"$f":"IF('1. Ordersheet'!BH889=\"\",\"\",'1. Ordersheet'!BH889)","v":""},{"$f":"IF('1. Ordersheet'!BI889=\"\",\"\",'1. Ordersheet'!BI889)","v":""},{"$f":"IF('1. Ordersheet'!BJ889=\"\",\"\",'1. Ordersheet'!BJ889)","v":""},{"$f":"IF('1. Ordersheet'!BK889=\"\",\"\",'1. Ordersheet'!BK889)","v":""},{"$f":"IF('1. Ordersheet'!BL889=\"\",\"\",'1. Ordersheet'!BL889)","v":""}]
[{"$f":"IF('1. Ordersheet'!F890=\"\",\"\",'1. Ordersheet'!F890)","v":""},{"$f":"IF('1. Ordersheet'!G890=\"\",\"\",'1. Ordersheet'!G890)","v":""},{"$f":"IF('1. Ordersheet'!H890=\"\",\"\",'1. Ordersheet'!H890)","v":""},{"$f":"IF('1. Ordersheet'!I890=\"\",\"\",'1. Ordersheet'!I890)","v":""},{"$f":"IF('1. Ordersheet'!J890=\"\",\"\",'1. Ordersheet'!J890)","v":""},{"$f":"IF('1. Ordersheet'!K890=\"\",\"\",'1. Ordersheet'!K890)","v":""},{"$f":"IF('1. Ordersheet'!L890=\"\",\"\",'1. Ordersheet'!L890)","v":""},{"$f":"IF('1. Ordersheet'!M890=\"\",\"\",'1. Ordersheet'!M890)","v":""},{"$f":"IF('1. Ordersheet'!N890=\"\",\"\",'1. Ordersheet'!N890)","v":""},{"$f":"IF('1. Ordersheet'!O890=\"\",\"\",'1. Ordersheet'!O890)","v":{"$error":"#N/A"}},{"$f":"IF('1. Ordersheet'!P890=\"\",\"\",'1. Ordersheet'!P890)","v":{"$error":"#N/A"}},{"$f":"IF('1. Ordersheet'!Q890=\"\",\"\",'1. Ordersheet'!Q890)","v":""},{"$f":"IF('1. Ordersheet'!R890=\"\",\"\",'1. Ordersheet'!R890)","v":""},{"$f":"IF('1. Ordersheet'!S890=\"\",\"\",'1. Ordersheet'!S890)","v":""},{"$f":"IF('1. Ordersheet'!V890=\"\",\"\",'1. Ordersheet'!V890)","v":""},{"$f":"IF('1. Ordersheet'!W890=\"\",\"\",'1. Ordersheet'!W890)","v":""},{"$f":"IF('1. Ordersheet'!X890=\"\",\"\",'1. Ordersheet'!X890)","v":""},{"$f":"IF('1. Ordersheet'!Y890=\"\",\"\",'1. Ordersheet'!Y890)","v":""},{"$f":"IF('1. Ordersheet'!Z890=\"\",\"\",'1. Ordersheet'!Z890)","v":""},{"$f":"IF('1. Ordersheet'!AA890=\"\",\"\",'1. Ordersheet'!AA890)","v":""},null,{"$f":"IF('1. Ordersheet'!AS890=\"\",\"\",'1. Ordersheet'!AS890)","v":""},{"$f":"IF('1. Ordersheet'!AT890=\"\",\"\",'1. Ordersheet'!AT890)","v":""},null,null,null,null,null,null,null,{"$f":"IF('1. Ordersheet'!AX890=\"\",\"\",'1. Ordersheet'!AX890)","v":""},{"$f":"IF('1. Ordersheet'!AY890=\"\",\"\",'1. Ordersheet'!AY890)","v":""},{"$f":"IF('1. Ordersheet'!AZ890=\"\",\"\",'1. Ordersheet'!AZ890)","v":""},{"$f":"IF('1. Ordersheet'!BA890=\"\",\"\",'1. Ordersheet'!BA890)","v":""},{"$f":"IF('1. Ordersheet'!BC890=\"\",\"\",'1. Ordersheet'!BC890)","v":""},{"$f":"IF('1. Ordersheet'!BD890=\"\",\"\",'1. Ordersheet'!BD890)","v":""},{"$f":"IF('1. Ordersheet'!BE890=\"\",\"\",'1. Ordersheet'!BE890)","v":""},{"$f":"IF('1. Ordersheet'!BF890=\"\",\"\",'1. Ordersheet'!BF890)","v":""},{"$f":"IF('1. Ordersheet'!BG890=\"\",\"\",'1. Ordersheet'!BG890)","v":"ZWO"},{"$f":"IF('1. Ordersheet'!BH890=\"\",\"\",'1. Ordersheet'!BH890)","v":""},{"$f":"IF('1. Ordersheet'!BI890=\"\",\"\",'1. Ordersheet'!BI890)","v":""},{"$f":"IF('1. Ordersheet'!BJ890=\"\",\"\",'1. Ordersheet'!BJ890)","v":""},{"$f":"IF('1. Ordersheet'!BK890=\"\",\"\",'1. Ordersheet'!BK890)","v":""},{"$f":"IF('1. Ordersheet'!BL890=\"\",\"\",'1. Ordersheet'!BL890)","v":""}]
[{"$f":"IF('1. Ordersheet'!F891=\"\",\"\",'1. Ordersheet'!F891)","v":""},{"$f":"IF('1. Ordersheet'!G891=\"\",\"\",'1. Ordersheet'!G891)","v":""},{"$f":"IF('1. Ordersheet'!H891=\"\",\"\",'1. Ordersheet'!H891)","v":""},{"$f":"IF('1. Ordersheet'!I891=\"\",\"\",'1. Ordersheet'!I891)","v":""},{"$f":"IF('1. Ordersheet'!J891=\"\",\"\",'1. Ordersheet'!J891)","v":""},{"$f":"IF('1. Ordersheet'!K891=\"\",\"\",'1. Ordersheet'!K891)","v":""},{"$f":"IF('1. Ordersheet'!L891=\"\",\"\",'1. Ordersheet'!L891)","v":""},{"$f":"IF('1. Ordersheet'!M891=\"\",\"\",'1. Ordersheet'!M891)","v":""},{"$f":"IF('1. Ordersheet'!N891=\"\",\"\",'1. Ordersheet'!N891)","v":""},{"$f":"IF('1. Ordersheet'!O891=\"\",\"\",'1. Ordersheet'!O891)","v":{"$error":"#N/A"}},{"$f":"IF('1. Ordersheet'!P891=\"\",\"\",'1. Ordersheet'!P891)","v":{"$error":"#N/A"}},{"$f":"IF('1. Ordersheet'!Q891=\"\",\"\",'1. Ordersheet'!Q891)","v":""},{"$f":"IF('1. Ordersheet'!R891=\"\",\"\",'1. Ordersheet'!R891)","v":""},{"$f":"IF('1. Ordersheet'!S891=\"\",\"\",'1. Ordersheet'!S891)","v":""},{"$f":"IF('1. Ordersheet'!V891=\"\",\"\",'1. Ordersheet'!V891)","v":""},{"$f":"IF('1. Ordersheet'!W891=\"\",\"\",'1. Ordersheet'!W891)","v":""},{"$f":"IF('1. Ordersheet'!X891=\"\",\"\",'1. Ordersheet'!X891)","v":""},{"$f":"IF('1. Ordersheet'!Y891=\"\",\"\",'1. Ordersheet'!Y891)","v":""},{"$f":"IF('1. Ordersheet'!Z891=\"\",\"\",'1. Ordersheet'!Z891)","v":""},{"$f":"IF('1. Ordersheet'!AA891=\"\",\"\",'1. Ordersheet'!AA891)","v":""},null,{"$f":"IF('1. Ordersheet'!AS891=\"\",\"\",'1. Ordersheet'!AS891)","v":""},{"$f":"IF('1. Ordersheet'!AT891=\"\",\"\",'1. Ordersheet'!AT891)","v":""},null,null,null,null,null,null,null,{"$f":"IF('1. Ordersheet'!AX891=\"\",\"\",'1. Ordersheet'!AX891)","v":""},{"$f":"IF('1. Ordersheet'!AY891=\"\",\"\",'1. Ordersheet'!AY891)","v":""},{"$f":"IF('1. Ordersheet'!AZ891=\"\",\"\",'1. Ordersheet'!AZ891)","v":""},{"$f":"IF('1. Ordersheet'!BA891=\"\",\"\",'1. Ordersheet'!BA891)","v":""},{"$f":"IF('1. Ordersheet'!BC891=\"\",\"\",'1. Ordersheet'!BC891)","v":""},{"$f":"IF('1. Ordersheet'!BD891=\"\",\"\",'1. Ordersheet'!BD891)","v":""},{"$f":"IF('1. Ordersheet'!BE891=\"\",\"\",'1. Ordersheet'!BE891)","v":""},{"$f":"IF('1. Ordersheet'!BF891=\"\",\"\",'1. Ordersheet'!BF891)","v":""},{"$f":"IF('1. Ordersheet'!BG891=\"\",\"\",'1. Ordersheet'!BG891)","v":"ZWO"},{"$f":"IF('1. Ordersheet'!BH891=\"\",\"\",'1. Ordersheet'!BH891)","v":""},{"$f":"IF('1. Ordersheet'!BI891=\"\",\"\",'1. Ordersheet'!BI891)","v":""},{"$f":"IF('1. Ordersheet'!BJ891=\"\",\"\",'1. Ordersheet'!BJ891)","v":""},{"$f":"IF('1. Ordersheet'!BK891=\"\",\"\",'1. Ordersheet'!BK891)","v":""},{"$f":"IF('1. Ordersheet'!BL891=\"\",\"\",'1. Ordersheet'!BL891)","v":""}]
[{"$f":"IF('1. Ordersheet'!F892=\"\",\"\",'1. Ordersheet'!F892)","v":""},{"$f":"IF('1. Ordersheet'!G892=\"\",\"\",'1. Ordersheet'!G892)","v":""},{"$f":"IF('1. Ordersheet'!H892=\"\",\"\",'1. Ordersheet'!H892)","v":""},{"$f":"IF('1. Ordersheet'!I892=\"\",\"\",'1. Ordersheet'!I892)","v":""},{"$f":"IF('1. Ordersheet'!J892=\"\",\"\",'1. Ordersheet'!J892)","v":""},{"$f":"IF('1. Ordersheet'!K892=\"\",\"\",'1. Ordersheet'!K892)","v":""},{"$f":"IF('1. Ordersheet'!L892=\"\",\"\",'1. Ordersheet'!L892)","v":""},{"$f":"IF('1. Ordersheet'!M892=\"\",\"\",'1. Ordersheet'!M892)","v":""},{"$f":"IF('1. Ordersheet'!N892=\"\",\"\",'1. Ordersheet'!N892)","v":""},{"$f":"IF('1. Ordersheet'!O892=\"\",\"\",'1. Ordersheet'!O892)","v":{"$error":"#N/A"}},{"$f":"IF('1. Ordersheet'!P892=\"\",\"\",'1. Ordersheet'!P892)","v":{"$error":"#N/A"}},{"$f":"IF('1. Ordersheet'!Q892=\"\",\"\",'1. Ordersheet'!Q892)","v":""},{"$f":"IF('1. Ordersheet'!R892=\"\",\"\",'1. Ordersheet'!R892)","v":""},{"$f":"IF('1. Ordersheet'!S892=\"\",\"\",'1. Ordersheet'!S892)","v":""},{"$f":"IF('1. Ordersheet'!V892=\"\",\"\",'1. Ordersheet'!V892)","v":""},{"$f":"IF('1. Ordersheet'!W892=\"\",\"\",'1. Ordersheet'!W892)","v":""},{"$f":"IF('1. Ordersheet'!X892=\"\",\"\",'1. Ordersheet'!X892)","v":""},{"$f":"IF('1. Ordersheet'!Y892=\"\",\"\",'1. Ordersheet'!Y892)","v":""},{"$f":"IF('1. Ordersheet'!Z892=\"\",\"\",'1. Ordersheet'!Z892)","v":""},{"$f":"IF('1. Ordersheet'!AA892=\"\",\"\",'1. Ordersheet'!AA892)","v":""},null,{"$f":"IF('1. Ordersheet'!AS892=\"\",\"\",'1. Ordersheet'!AS892)","v":""},{"$f":"IF('1. Ordersheet'!AT892=\"\",\"\",'1. Ordersheet'!AT892)","v":""},null,null,null,null,null,null,null,{"$f":"IF('1. Ordersheet'!AX892=\"\",\"\",'1. Ordersheet'!AX892)","v":""},{"$f":"IF('1. Ordersheet'!AY892=\"\",\"\",'1. Ordersheet'!AY892)","v":""},{"$f":"IF('1. Ordersheet'!AZ892=\"\",\"\",'1. Ordersheet'!AZ892)","v":""},{"$f":"IF('1. Ordersheet'!BA892=\"\",\"\",'1. Ordersheet'!BA892)","v":""},{"$f":"IF('1. Ordersheet'!BC892=\"\",\"\",'1. Ordersheet'!BC892)","v":""},{"$f":"IF('1. Ordersheet'!BD892=\"\",\"\",'1. Ordersheet'!BD892)","v":""},{"$f":"IF('1. Ordersheet'!BE892=\"\",\"\",'1. Ordersheet'!BE892)","v":""},{"$f":"IF('1. Ordersheet'!BF892=\"\",\"\",'1. Ordersheet'!BF892)","v":""},{"$f":"IF('1. Ordersheet'!BG892=\"\",\"\",'1. Ordersheet'!BG892)","v":"ZWO"},{"$f":"IF('1. Ordersheet'!BH892=\"\",\"\",'1. Ordersheet'!BH892)","v":""},{"$f":"IF('1. Ordersheet'!BI892=\"\",\"\",'1. Ordersheet'!BI892)","v":""},{"$f":"IF('1. Ordersheet'!BJ892=\"\",\"\",'1. Ordersheet'!BJ892)","v":""},{"$f":"IF('1. Ordersheet'!BK892=\"\",\"\",'1. Ordersheet'!BK892)","v":""},{"$f":"IF('1. Ordersheet'!BL892=\"\",\"\",'1. Ordersheet'!BL892)","v":""}]
[{"$f":"IF('1. Ordersheet'!F893=\"\",\"\",'1. Ordersheet'!F893)","v":""},{"$f":"IF('1. Ordersheet'!G893=\"\",\"\",'1. Ordersheet'!G893)","v":""},{"$f":"IF('1. Ordersheet'!H893=\"\",\"\",'1. Ordersheet'!H893)","v":""},{"$f":"IF('1. Ordersheet'!I893=\"\",\"\",'1. Ordersheet'!I893)","v":""},{"$f":"IF('1. Ordersheet'!J893=\"\",\"\",'1. Ordersheet'!J893)","v":""},{"$f":"IF('1. Ordersheet'!K893=\"\",\"\",'1. Ordersheet'!K893)","v":""},{"$f":"IF('1. Ordersheet'!L893=\"\",\"\",'1. Ordersheet'!L893)","v":""},{"$f":"IF('1. Ordersheet'!M893=\"\",\"\",'1. Ordersheet'!M893)","v":""},{"$f":"IF('1. Ordersheet'!N893=\"\",\"\",'1. Ordersheet'!N893)","v":""},{"$f":"IF('1. Ordersheet'!O893=\"\",\"\",'1. Ordersheet'!O893)","v":{"$error":"#N/A"}},{"$f":"IF('1. Ordersheet'!P893=\"\",\"\",'1. Ordersheet'!P893)","v":{"$error":"#N/A"}},{"$f":"IF('1. Ordersheet'!Q893=\"\",\"\",'1. Ordersheet'!Q893)","v":""},{"$f":"IF('1. Ordersheet'!R893=\"\",\"\",'1. Ordersheet'!R893)","v":""},{"$f":"IF('1. Ordersheet'!S893=\"\",\"\",'1. Ordersheet'!S893)","v":""},{"$f":"IF('1. Ordersheet'!V893=\"\",\"\",'1. Ordersheet'!V893)","v":""},{"$f":"IF('1. Ordersheet'!W893=\"\",\"\",'1. Ordersheet'!W893)","v":""},{"$f":"IF('1. Ordersheet'!X893=\"\",\"\",'1. Ordersheet'!X893)","v":""},{"$f":"IF('1. Ordersheet'!Y893=\"\",\"\",'1. Ordersheet'!Y893)","v":""},{"$f":"IF('1. Ordersheet'!Z893=\"\",\"\",'1. Ordersheet'!Z893)","v":""},{"$f":"IF('1. Ordersheet'!AA893=\"\",\"\",'1. Ordersheet'!AA893)","v":""},null,{"$f":"IF('1. Ordersheet'!AS893=\"\",\"\",'1. Ordersheet'!AS893)","v":""},{"$f":"IF('1. Ordersheet'!AT893=\"\",\"\",'1. Ordersheet'!AT893)","v":""},null,null,null,null,null,null,null,{"$f":"IF('1. Ordersheet'!AX893=\"\",\"\",'1. Ordersheet'!AX893)","v":""},{"$f":"IF('1. Ordersheet'!AY893=\"\",\"\",'1. Ordersheet'!AY893)","v":""},{"$f":"IF('1. Ordersheet'!AZ893=\"\",\"\",'1. Ordersheet'!AZ893)","v":""},{"$f":"IF('1. Ordersheet'!BA893=\"\",\"\",'1. Ordersheet'!BA893)","v":""},{"$f":"IF('1. Ordersheet'!BC893=\"\",\"\",'1. Ordersheet'!BC893)","v":""},{"$f":"IF('1. Ordersheet'!BD893=\"\",\"\",'1. Ordersheet'!BD893)","v":""},{"$f":"IF('1. Ordersheet'!BE893=\"\",\"\",'1. Ordersheet'!BE893)","v":""},{"$f":"IF('1. Ordersheet'!BF893=\"\",\"\",'1. Ordersheet'!BF893)","v":""},{"$f":"IF('1. Ordersheet'!BG893=\"\",\"\",'1. Ordersheet'!BG893)","v":"ZWO"},{"$f":"IF('1. Ordersheet'!BH893=\"\",\"\",'1. Ordersheet'!BH893)","v":""},{"$f":"IF('1. Ordersheet'!BI893=\"\",\"\",'1. Ordersheet'!BI893)","v":""},{"$f":"IF('1. Ordersheet'!BJ893=\"\",\"\",'1. Ordersheet'!BJ893)","v":""},{"$f":"IF('1. Ordersheet'!BK893=\"\",\"\",'1. Ordersheet'!BK893)","v":""},{"$f":"IF('1. Ordersheet'!BL893=\"\",\"\",'1. Ordersheet'!BL893)","v":""}]
[{"$f":"IF('1. Ordersheet'!F894=\"\",\"\",'1. Ordersheet'!F894)","v":""},{"$f":"IF('1. Ordersheet'!G894=\"\",\"\",'1. Ordersheet'!G894)","v":""},{"$f":"IF('1. Ordersheet'!H894=\"\",\"\",'1. Ordersheet'!H894)","v":""},{"$f":"IF('1. Ordersheet'!I894=\"\",\"\",'1. Ordersheet'!I894)","v":""},{"$f":"IF('1. Ordersheet'!J894=\"\",\"\",'1. Ordersheet'!J894)","v":""},{"$f":"IF('1. Ordersheet'!K894=\"\",\"\",'1. Ordersheet'!K894)","v":""},{"$f":"IF('1. Ordersheet'!L894=\"\",\"\",'1. Ordersheet'!L894)","v":""},{"$f":"IF('1. Ordersheet'!M894=\"\",\"\",'1. Ordersheet'!M894)","v":""},{"$f":"IF('1. Ordersheet'!N894=\"\",\"\",'1. Ordersheet'!N894)","v":""},{"$f":"IF('1. Ordersheet'!O894=\"\",\"\",'1. Ordersheet'!O894)","v":{"$error":"#N/A"}},{"$f":"IF('1. Ordersheet'!P894=\"\",\"\",'1. Ordersheet'!P894)","v":{"$error":"#N/A"}},{"$f":"IF('1. Ordersheet'!Q894=\"\",\"\",'1. Ordersheet'!Q894)","v":""},{"$f":"IF('1. Ordersheet'!R894=\"\",\"\",'1. Ordersheet'!R894)","v":""},{"$f":"IF('1. Ordersheet'!S894=\"\",\"\",'1. Ordersheet'!S894)","v":""},{"$f":"IF('1. Ordersheet'!V894=\"\",\"\",'1. Ordersheet'!V894)","v":""},{"$f":"IF('1. Ordersheet'!W894=\"\",\"\",'1. Ordersheet'!W894)","v":""},{"$f":"IF('1. Ordersheet'!X894=\"\",\"\",'1. Ordersheet'!X894)","v":""},{"$f":"IF('1. Ordersheet'!Y894=\"\",\"\",'1. Ordersheet'!Y894)","v":""},{"$f":"IF('1. Ordersheet'!Z894=\"\",\"\",'1. Ordersheet'!Z894)","v":""},{"$f":"IF('1. Ordersheet'!AA894=\"\",\"\",'1. Ordersheet'!AA894)","v":""},null,{"$f":"IF('1. Ordersheet'!AS894=\"\",\"\",'1. Ordersheet'!AS894)","v":""},{"$f":"IF('1. Ordersheet'!AT894=\"\",\"\",'1. Ordersheet'!AT894)","v":""},null,null,null,null,null,null,null,{"$f":"IF('1. Ordersheet'!AX894=\"\",\"\",'1. Ordersheet'!AX894)","v":""},{"$f":"IF('1. Ordersheet'!AY894=\"\",\"\",'1. Ordersheet'!AY894)","v":""},{"$f":"IF('1. Ordersheet'!AZ894=\"\",\"\",'1. Ordersheet'!AZ894)","v":""},{"$f":"IF('1. Ordersheet'!BA894=\"\",\"\",'1. Ordersheet'!BA894)","v":""},{"$f":"IF('1. Ordersheet'!BC894=\"\",\"\",'1. Ordersheet'!BC894)","v":""},{"$f":"IF('1. Ordersheet'!BD894=\"\",\"\",'1. Ordersheet'!BD894)","v":""},{"$f":"IF('1. Ordersheet'!BE894=\"\",\"\",'1. Ordersheet'!BE894)","v":""},{"$f":"IF('1. Ordersheet'!BF894=\"\",\"\",'1. Ordersheet'!BF894)","v":""},{"$f":"IF('1. Ordersheet'!BG894=\"\",\"\",'1. Ordersheet'!BG894)","v":"ZWO"},{"$f":"IF('1. Ordersheet'!BH894=\"\",\"\",'1. Ordersheet'!BH894)","v":""},{"$f":"IF('1. Ordersheet'!BI894=\"\",\"\",'1. Ordersheet'!BI894)","v":""},{"$f":"IF('1. Ordersheet'!BJ894=\"\",\"\",'1. Ordersheet'!BJ894)","v":""},{"$f":"IF('1. Ordersheet'!BK894=\"\",\"\",'1. Ordersheet'!BK894)","v":""},{"$f":"IF('1. Ordersheet'!BL894=\"\",\"\",'1. Ordersheet'!BL894)","v":""}]
[{"$f":"IF('1. Ordersheet'!F895=\"\",\"\",'1. Ordersheet'!F895)","v":""},{"$f":"IF('1. Ordersheet'!G895=\"\",\"\",'1. Ordersheet'!G895)","v":""},{"$f":"IF('1. Ordersheet'!H895=\"\",\"\",'1. Ordersheet'!H895)","v":""},{"$f":"IF('1. Ordersheet'!I895=\"\",\"\",'1. Ordersheet'!I895)","v":""},{"$f":"IF('1. Ordersheet'!J895=\"\",\"\",'1. Ordersheet'!J895)","v":""},{"$f":"IF('1. Ordersheet'!K895=\"\",\"\",'1. Ordersheet'!K895)","v":""},{"$f":"IF('1. Ordersheet'!L895=\"\",\"\",'1. Ordersheet'!L895)","v":""},{"$f":"IF('1. Ordersheet'!M895=\"\",\"\",'1. Ordersheet'!M895)","v":""},{"$f":"IF('1. Ordersheet'!N895=\"\",\"\",'1. Ordersheet'!N895)","v":""},{"$f":"IF('1. Ordersheet'!O895=\"\",\"\",'1. Ordersheet'!O895)","v":{"$error":"#N/A"}},{"$f":"IF('1. Ordersheet'!P895=\"\",\"\",'1. Ordersheet'!P895)","v":{"$error":"#N/A"}},{"$f":"IF('1. Ordersheet'!Q895=\"\",\"\",'1. Ordersheet'!Q895)","v":""},{"$f":"IF('1. Ordersheet'!R895=\"\",\"\",'1. Ordersheet'!R895)","v":""},{"$f":"IF('1. Ordersheet'!S895=\"\",\"\",'1. Ordersheet'!S895)","v":""},{"$f":"IF('1. Ordersheet'!V895=\"\",\"\",'1. Ordersheet'!V895)","v":""},{"$f":"IF('1. Ordersheet'!W895=\"\",\"\",'1. Ordersheet'!W895)","v":""},{"$f":"IF('1. Ordersheet'!X895=\"\",\"\",'1. Ordersheet'!X895)","v":""},{"$f":"IF('1. Ordersheet'!Y895=\"\",\"\",'1. Ordersheet'!Y895)","v":""},{"$f":"IF('1. Ordersheet'!Z895=\"\",\"\",'1. Ordersheet'!Z895)","v":""},{"$f":"IF('1. Ordersheet'!AA895=\"\",\"\",'1. Ordersheet'!AA895)","v":""},null,{"$f":"IF('1. Ordersheet'!AS895=\"\",\"\",'1. Ordersheet'!AS895)","v":""},{"$f":"IF('1. Ordersheet'!AT895=\"\",\"\",'1. Ordersheet'!AT895)","v":""},null,null,null,null,null,null,null,{"$f":"IF('1. Ordersheet'!AX895=\"\",\"\",'1. Ordersheet'!AX895)","v":""},{"$f":"IF('1. Ordersheet'!AY895=\"\",\"\",'1. Ordersheet'!AY895)","v":""},{"$f":"IF('1. Ordersheet'!AZ895=\"\",\"\",'1. Ordersheet'!AZ895)","v":""},{"$f":"IF('1. Ordersheet'!BA895=\"\",\"\",'1. Ordersheet'!BA895)","v":""},{"$f":"IF('1. Ordersheet'!BC895=\"\",\"\",'1. Ordersheet'!BC895)","v":""},{"$f":"IF('1. Ordersheet'!BD895=\"\",\"\",'1. Ordersheet'!BD895)","v":""},{"$f":"IF('1. Ordersheet'!BE895=\"\",\"\",'1. Ordersheet'!BE895)","v":""},{"$f":"IF('1. Ordersheet'!BF895=\"\",\"\",'1. Ordersheet'!BF895)","v":""},{"$f":"IF('1. Ordersheet'!BG895=\"\",\"\",'1. Ordersheet'!BG895)","v":"ZWO"},{"$f":"IF('1. Ordersheet'!BH895=\"\",\"\",'1. Ordersheet'!BH895)","v":""},{"$f":"IF('1. Ordersheet'!BI895=\"\",\"\",'1. Ordersheet'!BI895)","v":""},{"$f":"IF('1. Ordersheet'!BJ895=\"\",\"\",'1. Ordersheet'!BJ895)","v":""},{"$f":"IF('1. Ordersheet'!BK895=\"\",\"\",'1. Ordersheet'!BK895)","v":""},{"$f":"IF('1. Ordersheet'!BL895=\"\",\"\",'1. Ordersheet'!BL895)","v":""}]
[{"$f":"IF('1. Ordersheet'!F896=\"\",\"\",'1. Ordersheet'!F896)","v":""},{"$f":"IF('1. Ordersheet'!G896=\"\",\"\",'1. Ordersheet'!G896)","v":""},{"$f":"IF('1. Ordersheet'!H896=\"\",\"\",'1. Ordersheet'!H896)","v":""},{"$f":"IF('1. Ordersheet'!I896=\"\",\"\",'1. Ordersheet'!I896)","v":""},{"$f":"IF('1. Ordersheet'!J896=\"\",\"\",'1. Ordersheet'!J896)","v":""},{"$f":"IF('1. Ordersheet'!K896=\"\",\"\",'1. Ordersheet'!K896)","v":""},{"$f":"IF('1. Ordersheet'!L896=\"\",\"\",'1. Ordersheet'!L896)","v":""},{"$f":"IF('1. Ordersheet'!M896=\"\",\"\",'1. Ordersheet'!M896)","v":""},{"$f":"IF('1. Ordersheet'!N896=\"\",\"\",'1. Ordersheet'!N896)","v":""},{"$f":"IF('1. Ordersheet'!O896=\"\",\"\",'1. Ordersheet'!O896)","v":{"$error":"#N/A"}},{"$f":"IF('1. Ordersheet'!P896=\"\",\"\",'1. Ordersheet'!P896)","v":{"$error":"#N/A"}},{"$f":"IF('1. Ordersheet'!Q896=\"\",\"\",'1. Ordersheet'!Q896)","v":""},{"$f":"IF('1. Ordersheet'!R896=\"\",\"\",'1. Ordersheet'!R896)","v":""},{"$f":"IF('1. Ordersheet'!S896=\"\",\"\",'1. Ordersheet'!S896)","v":""},{"$f":"IF('1. Ordersheet'!V896=\"\",\"\",'1. Ordersheet'!V896)","v":""},{"$f":"IF('1. Ordersheet'!W896=\"\",\"\",'1. Ordersheet'!W896)","v":""},{"$f":"IF('1. Ordersheet'!X896=\"\",\"\",'1. Ordersheet'!X896)","v":""},{"$f":"IF('1. Ordersheet'!Y896=\"\",\"\",'1. Ordersheet'!Y896)","v":""},{"$f":"IF('1. Ordersheet'!Z896=\"\",\"\",'1. Ordersheet'!Z896)","v":""},{"$f":"IF('1. Ordersheet'!AA896=\"\",\"\",'1. Ordersheet'!AA896)","v":""},null,{"$f":"IF('1. Ordersheet'!AS896=\"\",\"\",'1. Ordersheet'!AS896)","v":""},{"$f":"IF('1. Ordersheet'!AT896=\"\",\"\",'1. Ordersheet'!AT896)","v":""},null,null,null,null,null,null,null,{"$f":"IF('1. Ordersheet'!AX896=\"\",\"\",'1. Ordersheet'!AX896)","v":""},{"$f":"IF('1. Ordersheet'!AY896=\"\",\"\",'1. Ordersheet'!AY896)","v":""},{"$f":"IF('1. Ordersheet'!AZ896=\"\",\"\",'1. Ordersheet'!AZ896)","v":""},{"$f":"IF('1. Ordersheet'!BA896=\"\",\"\",'1. Ordersheet'!BA896)","v":""},{"$f":"IF('1. Ordersheet'!BC896=\"\",\"\",'1. Ordersheet'!BC896)","v":""},{"$f":"IF('1. Ordersheet'!BD896=\"\",\"\",'1. Ordersheet'!BD896)","v":""},{"$f":"IF('1. Ordersheet'!BE896=\"\",\"\",'1. Ordersheet'!BE896)","v":""},{"$f":"IF('1. Ordersheet'!BF896=\"\",\"\",'1. Ordersheet'!BF896)","v":""},{"$f":"IF('1. Ordersheet'!BG896=\"\",\"\",'1. Ordersheet'!BG896)","v":"ZWO"},{"$f":"IF('1. Ordersheet'!BH896=\"\",\"\",'1. Ordersheet'!BH896)","v":""},{"$f":"IF('1. Ordersheet'!BI896=\"\",\"\",'1. Ordersheet'!BI896)","v":""},{"$f":"IF('1. Ordersheet'!BJ896=\"\",\"\",'1. Ordersheet'!BJ896)","v":""},{"$f":"IF('1. Ordersheet'!BK896=\"\",\"\",'1. Ordersheet'!BK896)","v":""},{"$f":"IF('1. Ordersheet'!BL896=\"\",\"\",'1. Ordersheet'!BL896)","v":""}]
[{"$f":"IF('1. Ordersheet'!F897=\"\",\"\",'1. Ordersheet'!F897)","v":""},{"$f":"IF('1. Ordersheet'!G897=\"\",\"\",'1. Ordersheet'!G897)","v":""},{"$f":"IF('1. Ordersheet'!H897=\"\",\"\",'1. Ordersheet'!H897)","v":""},{"$f":"IF('1. Ordersheet'!I897=\"\",\"\",'1. Ordersheet'!I897)","v":""},{"$f":"IF('1. Ordersheet'!J897=\"\",\"\",'1. Ordersheet'!J897)","v":""},{"$f":"IF('1. Ordersheet'!K897=\"\",\"\",'1. Ordersheet'!K897)","v":""},{"$f":"IF('1. Ordersheet'!L897=\"\",\"\",'1. Ordersheet'!L897)","v":""},{"$f":"IF('1. Ordersheet'!M897=\"\",\"\",'1. Ordersheet'!M897)","v":""},{"$f":"IF('1. Ordersheet'!N897=\"\",\"\",'1. Ordersheet'!N897)","v":""},{"$f":"IF('1. Ordersheet'!O897=\"\",\"\",'1. Ordersheet'!O897)","v":{"$error":"#N/A"}},{"$f":"IF('1. Ordersheet'!P897=\"\",\"\",'1. Ordersheet'!P897)","v":{"$error":"#N/A"}},{"$f":"IF('1. Ordersheet'!Q897=\"\",\"\",'1. Ordersheet'!Q897)","v":""},{"$f":"IF('1. Ordersheet'!R897=\"\",\"\",'1. Ordersheet'!R897)","v":""},{"$f":"IF('1. Ordersheet'!S897=\"\",\"\",'1. Ordersheet'!S897)","v":""},{"$f":"IF('1. Ordersheet'!V897=\"\",\"\",'1. Ordersheet'!V897)","v":""},{"$f":"IF('1. Ordersheet'!W897=\"\",\"\",'1. Ordersheet'!W897)","v":""},{"$f":"IF('1. Ordersheet'!X897=\"\",\"\",'1. Ordersheet'!X897)","v":""},{"$f":"IF('1. Ordersheet'!Y897=\"\",\"\",'1. Ordersheet'!Y897)","v":""},{"$f":"IF('1. Ordersheet'!Z897=\"\",\"\",'1. Ordersheet'!Z897)","v":""},{"$f":"IF('1. Ordersheet'!AA897=\"\",\"\",'1. Ordersheet'!AA897)","v":""},null,{"$f":"IF('1. Ordersheet'!AS897=\"\",\"\",'1. Ordersheet'!AS897)","v":""},{"$f":"IF('1. Ordersheet'!AT897=\"\",\"\",'1. Ordersheet'!AT897)","v":""},null,null,null,null,null,null,null,{"$f":"IF('1. Ordersheet'!AX897=\"\",\"\",'1. Ordersheet'!AX897)","v":""},{"$f":"IF('1. Ordersheet'!AY897=\"\",\"\",'1. Ordersheet'!AY897)","v":""},{"$f":"IF('1. Ordersheet'!AZ897=\"\",\"\",'1. Ordersheet'!AZ897)","v":""},{"$f":"IF('1. Ordersheet'!BA897=\"\",\"\",'1. Ordersheet'!BA897)","v":""},{"$f":"IF('1. Ordersheet'!BC897=\"\",\"\",'1. Ordersheet'!BC897)","v":""},{"$f":"IF('1. Ordersheet'!BD897=\"\",\"\",'1. Ordersheet'!BD897)","v":""},{"$f":"IF('1. Ordersheet'!BE897=\"\",\"\",'1. Ordersheet'!BE897)","v":""},{"$f":"IF('1. Ordersheet'!BF897=\"\",\"\",'1. Ordersheet'!BF897)","v":""},{"$f":"IF('1. Ordersheet'!BG897=\"\",\"\",'1. Ordersheet'!BG897)","v":"ZWO"},{"$f":"IF('1. Ordersheet'!BH897=\"\",\"\",'1. Ordersheet'!BH897)","v":""},{"$f":"IF('1. Ordersheet'!BI897=\"\",\"\",'1. Ordersheet'!BI897)","v":""},{"$f":"IF('1. Ordersheet'!BJ897=\"\",\"\",'1. Ordersheet'!BJ897)","v":""},{"$f":"IF('1. Ordersheet'!BK897=\"\",\"\",'1. Ordersheet'!BK897)","v":""},{"$f":"IF('1. Ordersheet'!BL897=\"\",\"\",'1. Ordersheet'!BL897)","v":""}]
[{"$f":"IF('1. Ordersheet'!F898=\"\",\"\",'1. Ordersheet'!F898)","v":""},{"$f":"IF('1. Ordersheet'!G898=\"\",\"\",'1. Ordersheet'!G898)","v":""},{"$f":"IF('1. Ordersheet'!H898=\"\",\"\",'1. Ordersheet'!H898)","v":""},{"$f":"IF('1. Ordersheet'!I898=\"\",\"\",'1. Ordersheet'!I898)","v":""},{"$f":"IF('1. Ordersheet'!J898=\"\",\"\",'1. Ordersheet'!J898)","v":""},{"$f":"IF('1. Ordersheet'!K898=\"\",\"\",'1. Ordersheet'!K898)","v":""},{"$f":"IF('1. Ordersheet'!L898=\"\",\"\",'1. Ordersheet'!L898)","v":""},{"$f":"IF('1. Ordersheet'!M898=\"\",\"\",'1. Ordersheet'!M898)","v":""},{"$f":"IF('1. Ordersheet'!N898=\"\",\"\",'1. Ordersheet'!N898)","v":""},{"$f":"IF('1. Ordersheet'!O898=\"\",\"\",'1. Ordersheet'!O898)","v":{"$error":"#N/A"}},{"$f":"IF('1. Ordersheet'!P898=\"\",\"\",'1. Ordersheet'!P898)","v":{"$error":"#N/A"}},{"$f":"IF('1. Ordersheet'!Q898=\"\",\"\",'1. Ordersheet'!Q898)","v":""},{"$f":"IF('1. Ordersheet'!R898=\"\",\"\",'1. Ordersheet'!R898)","v":""},{"$f":"IF('1. Ordersheet'!S898=\"\",\"\",'1. Ordersheet'!S898)","v":""},{"$f":"IF('1. Ordersheet'!V898=\"\",\"\",'1. Ordersheet'!V898)","v":""},{"$f":"IF('1. Ordersheet'!W898=\"\",\"\",'1. Ordersheet'!W898)","v":""},{"$f":"IF('1. Ordersheet'!X898=\"\",\"\",'1. Ordersheet'!X898)","v":""},{"$f":"IF('1. Ordersheet'!Y898=\"\",\"\",'1. Ordersheet'!Y898)","v":""},{"$f":"IF('1. Ordersheet'!Z898=\"\",\"\",'1. Ordersheet'!Z898)","v":""},{"$f":"IF('1. Ordersheet'!AA898=\"\",\"\",'1. Ordersheet'!AA898)","v":""},null,{"$f":"IF('1. Ordersheet'!AS898=\"\",\"\",'1. Ordersheet'!AS898)","v":""},{"$f":"IF('1. Ordersheet'!AT898=\"\",\"\",'1. Ordersheet'!AT898)","v":""},null,null,null,null,null,null,null,{"$f":"IF('1. Ordersheet'!AX898=\"\",\"\",'1. Ordersheet'!AX898)","v":""},{"$f":"IF('1. Ordersheet'!AY898=\"\",\"\",'1. Ordersheet'!AY898)","v":""},{"$f":"IF('1. Ordersheet'!AZ898=\"\",\"\",'1. Ordersheet'!AZ898)","v":""},{"$f":"IF('1. Ordersheet'!BA898=\"\",\"\",'1. Ordersheet'!BA898)","v":""},{"$f":"IF('1. Ordersheet'!BC898=\"\",\"\",'1. Ordersheet'!BC898)","v":""},{"$f":"IF('1. Ordersheet'!BD898=\"\",\"\",'1. Ordersheet'!BD898)","v":""},{"$f":"IF('1. Ordersheet'!BE898=\"\",\"\",'1. Ordersheet'!BE898)","v":""},{"$f":"IF('1. Ordersheet'!BF898=\"\",\"\",'1. Ordersheet'!BF898)","v":""},{"$f":"IF('1. Ordersheet'!BG898=\"\",\"\",'1. Ordersheet'!BG898)","v":"ZWO"},{"$f":"IF('1. Ordersheet'!BH898=\"\",\"\",'1. Ordersheet'!BH898)","v":""},{"$f":"IF('1. Ordersheet'!BI898=\"\",\"\",'1. Ordersheet'!BI898)","v":""},{"$f":"IF('1. Ordersheet'!BJ898=\"\",\"\",'1. Ordersheet'!BJ898)","v":""},{"$f":"IF('1. Ordersheet'!BK898=\"\",\"\",'1. Ordersheet'!BK898)","v":""},{"$f":"IF('1. Ordersheet'!BL898=\"\",\"\",'1. Ordersheet'!BL898)","v":""}]
[{"$f":"IF('1. Ordersheet'!F899=\"\",\"\",'1. Ordersheet'!F899)","v":""},{"$f":"IF('1. Ordersheet'!G899=\"\",\"\",'1. Ordersheet'!G899)","v":""},{"$f":"IF('1. Ordersheet'!H899=\"\",\"\",'1. Ordersheet'!H899)","v":""},{"$f":"IF('1. Ordersheet'!I899=\"\",\"\",'1. Ordersheet'!I899)","v":""},{"$f":"IF('1. Ordersheet'!J899=\"\",\"\",'1. Ordersheet'!J899)","v":""},{"$f":"IF('1. Ordersheet'!K899=\"\",\"\",'1. Ordersheet'!K899)","v":""},{"$f":"IF('1. Ordersheet'!L899=\"\",\"\",'1. Ordersheet'!L899)","v":""},{"$f":"IF('1. Ordersheet'!M899=\"\",\"\",'1. Ordersheet'!M899)","v":""},{"$f":"IF('1. Ordersheet'!N899=\"\",\"\",'1. Ordersheet'!N899)","v":""},{"$f":"IF('1. Ordersheet'!O899=\"\",\"\",'1. Ordersheet'!O899)","v":{"$error":"#N/A"}},{"$f":"IF('1. Ordersheet'!P899=\"\",\"\",'1. Ordersheet'!P899)","v":{"$error":"#N/A"}},{"$f":"IF('1. Ordersheet'!Q899=\"\",\"\",'1. Ordersheet'!Q899)","v":""},{"$f":"IF('1. Ordersheet'!R899=\"\",\"\",'1. Ordersheet'!R899)","v":""},{"$f":"IF('1. Ordersheet'!S899=\"\",\"\",'1. Ordersheet'!S899)","v":""},{"$f":"IF('1. Ordersheet'!V899=\"\",\"\",'1. Ordersheet'!V899)","v":""},{"$f":"IF('1. Ordersheet'!W899=\"\",\"\",'1. Ordersheet'!W899)","v":""},{"$f":"IF('1. Ordersheet'!X899=\"\",\"\",'1. Ordersheet'!X899)","v":""},{"$f":"IF('1. Ordersheet'!Y899=\"\",\"\",'1. Ordersheet'!Y899)","v":""},{"$f":"IF('1. Ordersheet'!Z899=\"\",\"\",'1. Ordersheet'!Z899)","v":""},{"$f":"IF('1. Ordersheet'!AA899=\"\",\"\",'1. Ordersheet'!AA899)","v":""},null,{"$f":"IF('1. Ordersheet'!AS899=\"\",\"\",'1. Ordersheet'!AS899)","v":""},{"$f":"IF('1. Ordersheet'!AT899=\"\",\"\",'1. Ordersheet'!AT899)","v":""},null,null,null,null,null,null,null,{"$f":"IF('1. Ordersheet'!AX899=\"\",\"\",'1. Ordersheet'!AX899)","v":""},{"$f":"IF('1. Ordersheet'!AY899=\"\",\"\",'1. Ordersheet'!AY899)","v":""},{"$f":"IF('1. Ordersheet'!AZ899=\"\",\"\",'1. Ordersheet'!AZ899)","v":""},{"$f":"IF('1. Ordersheet'!BA899=\"\",\"\",'1. Ordersheet'!BA899)","v":""},{"$f":"IF('1. Ordersheet'!BC899=\"\",\"\",'1. Ordersheet'!BC899)","v":""},{"$f":"IF('1. Ordersheet'!BD899=\"\",\"\",'1. Ordersheet'!BD899)","v":""},{"$f":"IF('1. Ordersheet'!BE899=\"\",\"\",'1. Ordersheet'!BE899)","v":""},{"$f":"IF('1. Ordersheet'!BF899=\"\",\"\",'1. Ordersheet'!BF899)","v":""},{"$f":"IF('1. Ordersheet'!BG899=\"\",\"\",'1. Ordersheet'!BG899)","v":"ZWO"},{"$f":"IF('1. Ordersheet'!BH899=\"\",\"\",'1. Ordersheet'!BH899)","v":""},{"$f":"IF('1. Ordersheet'!BI899=\"\",\"\",'1. Ordersheet'!BI899)","v":""},{"$f":"IF('1. Ordersheet'!BJ899=\"\",\"\",'1. Ordersheet'!BJ899)","v":""},{"$f":"IF('1. Ordersheet'!BK899=\"\",\"\",'1. Ordersheet'!BK899)","v":""},{"$f":"IF('1. Ordersheet'!BL899=\"\",\"\",'1. Ordersheet'!BL899)","v":""}]
[{"$f":"IF('1. Ordersheet'!F900=\"\",\"\",'1. Ordersheet'!F900)","v":""},{"$f":"IF('1. Ordersheet'!G900=\"\",\"\",'1. Ordersheet'!G900)","v":""},{"$f":"IF('1. Ordersheet'!H900=\"\",\"\",'1. Ordersheet'!H900)","v":""},{"$f":"IF('1. Ordersheet'!I900=\"\",\"\",'1. Ordersheet'!I900)","v":""},{"$f":"IF('1. Ordersheet'!J900=\"\",\"\",'1. Ordersheet'!J900)","v":""},{"$f":"IF('1. Ordersheet'!K900=\"\",\"\",'1. Ordersheet'!K900)","v":""},{"$f":"IF('1. Ordersheet'!L900=\"\",\"\",'1. Ordersheet'!L900)","v":""},{"$f":"IF('1. Ordersheet'!M900=\"\",\"\",'1. Ordersheet'!M900)","v":""},{"$f":"IF('1. Ordersheet'!N900=\"\",\"\",'1. Ordersheet'!N900)","v":""},{"$f":"IF('1. Ordersheet'!O900=\"\",\"\",'1. Ordersheet'!O900)","v":{"$error":"#N/A"}},{"$f":"IF('1. Ordersheet'!P900=\"\",\"\",'1. Ordersheet'!P900)","v":{"$error":"#N/A"}},{"$f":"IF('1. Ordersheet'!Q900=\"\",\"\",'1. Ordersheet'!Q900)","v":""},{"$f":"IF('1. Ordersheet'!R900=\"\",\"\",'1. Ordersheet'!R900)","v":""},{"$f":"IF('1. Ordersheet'!S900=\"\",\"\",'1. Ordersheet'!S900)","v":""},{"$f":"IF('1. Ordersheet'!V900=\"\",\"\",'1. Ordersheet'!V900)","v":""},{"$f":"IF('1. Ordersheet'!W900=\"\",\"\",'1. Ordersheet'!W900)","v":""},{"$f":"IF('1. Ordersheet'!X900=\"\",\"\",'1. Ordersheet'!X900)","v":""},{"$f":"IF('1. Ordersheet'!Y900=\"\",\"\",'1. Ordersheet'!Y900)","v":""},{"$f":"IF('1. Ordersheet'!Z900=\"\",\"\",'1. Ordersheet'!Z900)","v":""},{"$f":"IF('1. Ordersheet'!AA900=\"\",\"\",'1. Ordersheet'!AA900)","v":""},null,{"$f":"IF('1. Ordersheet'!AS900=\"\",\"\",'1. Ordersheet'!AS900)","v":""},{"$f":"IF('1. Ordersheet'!AT900=\"\",\"\",'1. Ordersheet'!AT900)","v":""},null,null,null,null,null,null,null,{"$f":"IF('1. Ordersheet'!AX900=\"\",\"\",'1. Ordersheet'!AX900)","v":""},{"$f":"IF('1. Ordersheet'!AY900=\"\",\"\",'1. Ordersheet'!AY900)","v":""},{"$f":"IF('1. Ordersheet'!AZ900=\"\",\"\",'1. Ordersheet'!AZ900)","v":""},{"$f":"IF('1. Ordersheet'!BA900=\"\",\"\",'1. Ordersheet'!BA900)","v":""},{"$f":"IF('1. Ordersheet'!BC900=\"\",\"\",'1. Ordersheet'!BC900)","v":""},{"$f":"IF('1. Ordersheet'!BD900=\"\",\"\",'1. Ordersheet'!BD900)","v":""},{"$f":"IF('1. Ordersheet'!BE900=\"\",\"\",'1. Ordersheet'!BE900)","v":""},{"$f":"IF('1. Ordersheet'!BF900=\"\",\"\",'1. Ordersheet'!BF900)","v":""},{"$f":"IF('1. Ordersheet'!BG900=\"\",\"\",'1. Ordersheet'!BG900)","v":"ZWO"},{"$f":"IF('1. Ordersheet'!BH900=\"\",\"\",'1. Ordersheet'!BH900)","v":""},{"$f":"IF('1. Ordersheet'!BI900=\"\",\"\",'1. Ordersheet'!BI900)","v":""},{"$f":"IF('1. Ordersheet'!BJ900=\"\",\"\",'1. Ordersheet'!BJ900)","v":""},{"$f":"IF('1. Ordersheet'!BK900=\"\",\"\",'1. Ordersheet'!BK900)","v":""},{"$f":"IF('1. Ordersheet'!BL900=\"\",\"\",'1. Ordersheet'!BL900)","v":""}]
[{"$f":"IF('1. Ordersheet'!F901=\"\",\"\",'1. Ordersheet'!F901)","v":""},{"$f":"IF('1. Ordersheet'!G901=\"\",\"\",'1. Ordersheet'!G901)","v":""},{"$f":"IF('1. Ordersheet'!H901=\"\",\"\",'1. Ordersheet'!H901)","v":""},{"$f":"IF('1. Ordersheet'!I901=\"\",\"\",'1. Ordersheet'!I901)","v":""},{"$f":"IF('1. Ordersheet'!J901=\"\",\"\",'1. Ordersheet'!J901)","v":""},{"$f":"IF('1. Ordersheet'!K901=\"\",\"\",'1. Ordersheet'!K901)","v":""},{"$f":"IF('1. Ordersheet'!L901=\"\",\"\",'1. Ordersheet'!L901)","v":""},{"$f":"IF('1. Ordersheet'!M901=\"\",\"\",'1. Ordersheet'!M901)","v":""},{"$f":"IF('1. Ordersheet'!N901=\"\",\"\",'1. Ordersheet'!N901)","v":""},{"$f":"IF('1. Ordersheet'!O901=\"\",\"\",'1. Ordersheet'!O901)","v":{"$error":"#N/A"}},{"$f":"IF('1. Ordersheet'!P901=\"\",\"\",'1. Ordersheet'!P901)","v":{"$error":"#N/A"}},{"$f":"IF('1. Ordersheet'!Q901=\"\",\"\",'1. Ordersheet'!Q901)","v":""},{"$f":"IF('1. Ordersheet'!R901=\"\",\"\",'1. Ordersheet'!R901)","v":""},{"$f":"IF('1. Ordersheet'!S901=\"\",\"\",'1. Ordersheet'!S901)","v":""},{"$f":"IF('1. Ordersheet'!V901=\"\",\"\",'1. Ordersheet'!V901)","v":""},{"$f":"IF('1. Ordersheet'!W901=\"\",\"\",'1. Ordersheet'!W901)","v":""},{"$f":"IF('1. Ordersheet'!X901=\"\",\"\",'1. Ordersheet'!X901)","v":""},{"$f":"IF('1. Ordersheet'!Y901=\"\",\"\",'1. Ordersheet'!Y901)","v":""},{"$f":"IF('1. Ordersheet'!Z901=\"\",\"\",'1. Ordersheet'!Z901)","v":""},{"$f":"IF('1. Ordersheet'!AA901=\"\",\"\",'1. Ordersheet'!AA901)","v":""},null,{"$f":"IF('1. Ordersheet'!AS901=\"\",\"\",'1. Ordersheet'!AS901)","v":""},{"$f":"IF('1. Ordersheet'!AT901=\"\",\"\",'1. Ordersheet'!AT901)","v":""},null,null,null,null,null,null,null,{"$f":"IF('1. Ordersheet'!AX901=\"\",\"\",'1. Ordersheet'!AX901)","v":""},{"$f":"IF('1. Ordersheet'!AY901=\"\",\"\",'1. Ordersheet'!AY901)","v":""},{"$f":"IF('1. Ordersheet'!AZ901=\"\",\"\",'1. Ordersheet'!AZ901)","v":""},{"$f":"IF('1. Ordersheet'!BA901=\"\",\"\",'1. Ordersheet'!BA901)","v":""},{"$f":"IF('1. Ordersheet'!BC901=\"\",\"\",'1. Ordersheet'!BC901)","v":""},{"$f":"IF('1. Ordersheet'!BD901=\"\",\"\",'1. Ordersheet'!BD901)","v":""},{"$f":"IF('1. Ordersheet'!BE901=\"\",\"\",'1. Ordersheet'!BE901)","v":""},{"$f":"IF('1. Ordersheet'!BF901=\"\",\"\",'1. Ordersheet'!BF901)","v":""},{"$f":"IF('1. Ordersheet'!BG901=\"\",\"\",'1. Ordersheet'!BG901)","v":"ZWO"},{"$f":"IF('1. Ordersheet'!BH901=\"\",\"\",'1. Ordersheet'!BH901)","v":""},{"$f":"IF('1. Ordersheet'!BI901=\"\",\"\",'1. Ordersheet'!BI901)","v":""},{"$f":"IF('1. Ordersheet'!BJ901=\"\",\"\",'1. Ordersheet'!BJ901)","v":""},{"$f":"IF('1. Ordersheet'!BK901=\"\",\"\",'1. Ordersheet'!BK901)","v":""},{"$f":"IF('1. Ordersheet'!BL901=\"\",\"\",'1. Ordersheet'!BL901)","v":""}]
[{"$f":"IF('1. Ordersheet'!F902=\"\",\"\",'1. Ordersheet'!F902)","v":""},{"$f":"IF('1. Ordersheet'!G902=\"\",\"\",'1. Ordersheet'!G902)","v":""},{"$f":"IF('1. Ordersheet'!H902=\"\",\"\",'1. Ordersheet'!H902)","v":""},{"$f":"IF('1. Ordersheet'!I902=\"\",\"\",'1. Ordersheet'!I902)","v":""},{"$f":"IF('1. Ordersheet'!J902=\"\",\"\",'1. Ordersheet'!J902)","v":""},{"$f":"IF('1. Ordersheet'!K902=\"\",\"\",'1. Ordersheet'!K902)","v":""},{"$f":"IF('1. Ordersheet'!L902=\"\",\"\",'1. Ordersheet'!L902)","v":""},{"$f":"IF('1. Ordersheet'!M902=\"\",\"\",'1. Ordersheet'!M902)","v":""},{"$f":"IF('1. Ordersheet'!N902=\"\",\"\",'1. Ordersheet'!N902)","v":""},{"$f":"IF('1. Ordersheet'!O902=\"\",\"\",'1. Ordersheet'!O902)","v":{"$error":"#N/A"}},{"$f":"IF('1. Ordersheet'!P902=\"\",\"\",'1. Ordersheet'!P902)","v":{"$error":"#N/A"}},{"$f":"IF('1. Ordersheet'!Q902=\"\",\"\",'1. Ordersheet'!Q902)","v":""},{"$f":"IF('1. Ordersheet'!R902=\"\",\"\",'1. Ordersheet'!R902)","v":""},{"$f":"IF('1. Ordersheet'!S902=\"\",\"\",'1. Ordersheet'!S902)","v":""},{"$f":"IF('1. Ordersheet'!V902=\"\",\"\",'1. Ordersheet'!V902)","v":""},{"$f":"IF('1. Ordersheet'!W902=\"\",\"\",'1. Ordersheet'!W902)","v":""},{"$f":"IF('1. Ordersheet'!X902=\"\",\"\",'1. Ordersheet'!X902)","v":""},{"$f":"IF('1. Ordersheet'!Y902=\"\",\"\",'1. Ordersheet'!Y902)","v":""},{"$f":"IF('1. Ordersheet'!Z902=\"\",\"\",'1. Ordersheet'!Z902)","v":""},{"$f":"IF('1. Ordersheet'!AA902=\"\",\"\",'1. Ordersheet'!AA902)","v":""},null,{"$f":"IF('1. Ordersheet'!AS902=\"\",\"\",'1. Ordersheet'!AS902)","v":""},{"$f":"IF('1. Ordersheet'!AT902=\"\",\"\",'1. Ordersheet'!AT902)","v":""},null,null,null,null,null,null,null,{"$f":"IF('1. Ordersheet'!AX902=\"\",\"\",'1. Ordersheet'!AX902)","v":""},{"$f":"IF('1. Ordersheet'!AY902=\"\",\"\",'1. Ordersheet'!AY902)","v":""},{"$f":"IF('1. Ordersheet'!AZ902=\"\",\"\",'1. Ordersheet'!AZ902)","v":""},{"$f":"IF('1. Ordersheet'!BA902=\"\",\"\",'1. Ordersheet'!BA902)","v":""},{"$f":"IF('1. Ordersheet'!BC902=\"\",\"\",'1. Ordersheet'!BC902)","v":""},{"$f":"IF('1. Ordersheet'!BD902=\"\",\"\",'1. Ordersheet'!BD902)","v":""},{"$f":"IF('1. Ordersheet'!BE902=\"\",\"\",'1. Ordersheet'!BE902)","v":""},{"$f":"IF('1. Ordersheet'!BF902=\"\",\"\",'1. Ordersheet'!BF902)","v":""},{"$f":"IF('1. Ordersheet'!BG902=\"\",\"\",'1. Ordersheet'!BG902)","v":"ZWO"},{"$f":"IF('1. Ordersheet'!BH902=\"\",\"\",'1. Ordersheet'!BH902)","v":""},{"$f":"IF('1. Ordersheet'!BI902=\"\",\"\",'1. Ordersheet'!BI902)","v":""},{"$f":"IF('1. Ordersheet'!BJ902=\"\",\"\",'1. Ordersheet'!BJ902)","v":""},{"$f":"IF('1. Ordersheet'!BK902=\"\",\"\",'1. Ordersheet'!BK902)","v":""},{"$f":"IF('1. Ordersheet'!BL902=\"\",\"\",'1. Ordersheet'!BL902)","v":""}]
[{"$f":"IF('1. Ordersheet'!F903=\"\",\"\",'1. Ordersheet'!F903)","v":""},{"$f":"IF('1. Ordersheet'!G903=\"\",\"\",'1. Ordersheet'!G903)","v":""},{"$f":"IF('1. Ordersheet'!H903=\"\",\"\",'1. Ordersheet'!H903)","v":""},{"$f":"IF('1. Ordersheet'!I903=\"\",\"\",'1. Ordersheet'!I903)","v":""},{"$f":"IF('1. Ordersheet'!J903=\"\",\"\",'1. Ordersheet'!J903)","v":""},{"$f":"IF('1. Ordersheet'!K903=\"\",\"\",'1. Ordersheet'!K903)","v":""},{"$f":"IF('1. Ordersheet'!L903=\"\",\"\",'1. Ordersheet'!L903)","v":""},{"$f":"IF('1. Ordersheet'!M903=\"\",\"\",'1. Ordersheet'!M903)","v":""},{"$f":"IF('1. Ordersheet'!N903=\"\",\"\",'1. Ordersheet'!N903)","v":""},{"$f":"IF('1. Ordersheet'!O903=\"\",\"\",'1. Ordersheet'!O903)","v":{"$error":"#N/A"}},{"$f":"IF('1. Ordersheet'!P903=\"\",\"\",'1. Ordersheet'!P903)","v":{"$error":"#N/A"}},{"$f":"IF('1. Ordersheet'!Q903=\"\",\"\",'1. Ordersheet'!Q903)","v":""},{"$f":"IF('1. Ordersheet'!R903=\"\",\"\",'1. Ordersheet'!R903)","v":""},{"$f":"IF('1. Ordersheet'!S903=\"\",\"\",'1. Ordersheet'!S903)","v":""},{"$f":"IF('1. Ordersheet'!V903=\"\",\"\",'1. Ordersheet'!V903)","v":""},{"$f":"IF('1. Ordersheet'!W903=\"\",\"\",'1. Ordersheet'!W903)","v":""},{"$f":"IF('1. Ordersheet'!X903=\"\",\"\",'1. Ordersheet'!X903)","v":""},{"$f":"IF('1. Ordersheet'!Y903=\"\",\"\",'1. Ordersheet'!Y903)","v":""},{"$f":"IF('1. Ordersheet'!Z903=\"\",\"\",'1. Ordersheet'!Z903)","v":""},{"$f":"IF('1. Ordersheet'!AA903=\"\",\"\",'1. Ordersheet'!AA903)","v":""},null,{"$f":"IF('1. Ordersheet'!AS903=\"\",\"\",'1. Ordersheet'!AS903)","v":""},{"$f":"IF('1. Ordersheet'!AT903=\"\",\"\",'1. Ordersheet'!AT903)","v":""},null,null,null,null,null,null,null,{"$f":"IF('1. Ordersheet'!AX903=\"\",\"\",'1. Ordersheet'!AX903)","v":""},{"$f":"IF('1. Ordersheet'!AY903=\"\",\"\",'1. Ordersheet'!AY903)","v":""},{"$f":"IF('1. Ordersheet'!AZ903=\"\",\"\",'1. Ordersheet'!AZ903)","v":""},{"$f":"IF('1. Ordersheet'!BA903=\"\",\"\",'1. Ordersheet'!BA903)","v":""},{"$f":"IF('1. Ordersheet'!BC903=\"\",\"\",'1. Ordersheet'!BC903)","v":""},{"$f":"IF('1. Ordersheet'!BD903=\"\",\"\",'1. Ordersheet'!BD903)","v":""},{"$f":"IF('1. Ordersheet'!BE903=\"\",\"\",'1. Ordersheet'!BE903)","v":""},{"$f":"IF('1. Ordersheet'!BF903=\"\",\"\",'1. Ordersheet'!BF903)","v":""},{"$f":"IF('1. Ordersheet'!BG903=\"\",\"\",'1. Ordersheet'!BG903)","v":"ZWO"},{"$f":"IF('1. Ordersheet'!BH903=\"\",\"\",'1. Ordersheet'!BH903)","v":""},{"$f":"IF('1. Ordersheet'!BI903=\"\",\"\",'1. Ordersheet'!BI903)","v":""},{"$f":"IF('1. Ordersheet'!BJ903=\"\",\"\",'1. Ordersheet'!BJ903)","v":""},{"$f":"IF('1. Ordersheet'!BK903=\"\",\"\",'1. Ordersheet'!BK903)","v":""},{"$f":"IF('1. Ordersheet'!BL903=\"\",\"\",'1. Ordersheet'!BL903)","v":""}]
[{"$f":"IF('1. Ordersheet'!F904=\"\",\"\",'1. Ordersheet'!F904)","v":""},{"$f":"IF('1. Ordersheet'!G904=\"\",\"\",'1. Ordersheet'!G904)","v":""},{"$f":"IF('1. Ordersheet'!H904=\"\",\"\",'1. Ordersheet'!H904)","v":""},{"$f":"IF('1. Ordersheet'!I904=\"\",\"\",'1. Ordersheet'!I904)","v":""},{"$f":"IF('1. Ordersheet'!J904=\"\",\"\",'1. Ordersheet'!J904)","v":""},{"$f":"IF('1. Ordersheet'!K904=\"\",\"\",'1. Ordersheet'!K904)","v":""},{"$f":"IF('1. Ordersheet'!L904=\"\",\"\",'1. Ordersheet'!L904)","v":""},{"$f":"IF('1. Ordersheet'!M904=\"\",\"\",'1. Ordersheet'!M904)","v":""},{"$f":"IF('1. Ordersheet'!N904=\"\",\"\",'1. Ordersheet'!N904)","v":""},{"$f":"IF('1. Ordersheet'!O904=\"\",\"\",'1. Ordersheet'!O904)","v":{"$error":"#N/A"}},{"$f":"IF('1. Ordersheet'!P904=\"\",\"\",'1. Ordersheet'!P904)","v":{"$error":"#N/A"}},{"$f":"IF('1. Ordersheet'!Q904=\"\",\"\",'1. Ordersheet'!Q904)","v":""},{"$f":"IF('1. Ordersheet'!R904=\"\",\"\",'1. Ordersheet'!R904)","v":""},{"$f":"IF('1. Ordersheet'!S904=\"\",\"\",'1. Ordersheet'!S904)","v":""},{"$f":"IF('1. Ordersheet'!V904=\"\",\"\",'1. Ordersheet'!V904)","v":""},{"$f":"IF('1. Ordersheet'!W904=\"\",\"\",'1. Ordersheet'!W904)","v":""},{"$f":"IF('1. Ordersheet'!X904=\"\",\"\",'1. Ordersheet'!X904)","v":""},{"$f":"IF('1. Ordersheet'!Y904=\"\",\"\",'1. Ordersheet'!Y904)","v":""},{"$f":"IF('1. Ordersheet'!Z904=\"\",\"\",'1. Ordersheet'!Z904)","v":""},{"$f":"IF('1. Ordersheet'!AA904=\"\",\"\",'1. Ordersheet'!AA904)","v":""},null,{"$f":"IF('1. Ordersheet'!AS904=\"\",\"\",'1. Ordersheet'!AS904)","v":""},{"$f":"IF('1. Ordersheet'!AT904=\"\",\"\",'1. Ordersheet'!AT904)","v":""},null,null,null,null,null,null,null,{"$f":"IF('1. Ordersheet'!AX904=\"\",\"\",'1. Ordersheet'!AX904)","v":""},{"$f":"IF('1. Ordersheet'!AY904=\"\",\"\",'1. Ordersheet'!AY904)","v":""},{"$f":"IF('1. Ordersheet'!AZ904=\"\",\"\",'1. Ordersheet'!AZ904)","v":""},{"$f":"IF('1. Ordersheet'!BA904=\"\",\"\",'1. Ordersheet'!BA904)","v":""},{"$f":"IF('1. Ordersheet'!BC904=\"\",\"\",'1. Ordersheet'!BC904)","v":""},{"$f":"IF('1. Ordersheet'!BD904=\"\",\"\",'1. Ordersheet'!BD904)","v":""},{"$f":"IF('1. Ordersheet'!BE904=\"\",\"\",'1. Ordersheet'!BE904)","v":""},{"$f":"IF('1. Ordersheet'!BF904=\"\",\"\",'1. Ordersheet'!BF904)","v":""},{"$f":"IF('1. Ordersheet'!BG904=\"\",\"\",'1. Ordersheet'!BG904)","v":"ZWO"},{"$f":"IF('1. Ordersheet'!BH904=\"\",\"\",'1. Ordersheet'!BH904)","v":""},{"$f":"IF('1. Ordersheet'!BI904=\"\",\"\",'1. Ordersheet'!BI904)","v":""},{"$f":"IF('1. Ordersheet'!BJ904=\"\",\"\",'1. Ordersheet'!BJ904)","v":""},{"$f":"IF('1. Ordersheet'!BK904=\"\",\"\",'1. Ordersheet'!BK904)","v":""},{"$f":"IF('1. Ordersheet'!BL904=\"\",\"\",'1. Ordersheet'!BL904)","v":""}]
[{"$f":"IF('1. Ordersheet'!F905=\"\",\"\",'1. Ordersheet'!F905)","v":""},{"$f":"IF('1. Ordersheet'!G905=\"\",\"\",'1. Ordersheet'!G905)","v":""},{"$f":"IF('1. Ordersheet'!H905=\"\",\"\",'1. Ordersheet'!H905)","v":""},{"$f":"IF('1. Ordersheet'!I905=\"\",\"\",'1. Ordersheet'!I905)","v":""},{"$f":"IF('1. Ordersheet'!J905=\"\",\"\",'1. Ordersheet'!J905)","v":""},{"$f":"IF('1. Ordersheet'!K905=\"\",\"\",'1. Ordersheet'!K905)","v":""},{"$f":"IF('1. Ordersheet'!L905=\"\",\"\",'1. Ordersheet'!L905)","v":""},{"$f":"IF('1. Ordersheet'!M905=\"\",\"\",'1. Ordersheet'!M905)","v":""},{"$f":"IF('1. Ordersheet'!N905=\"\",\"\",'1. Ordersheet'!N905)","v":""},{"$f":"IF('1. Ordersheet'!O905=\"\",\"\",'1. Ordersheet'!O905)","v":{"$error":"#N/A"}},{"$f":"IF('1. Ordersheet'!P905=\"\",\"\",'1. Ordersheet'!P905)","v":{"$error":"#N/A"}},{"$f":"IF('1. Ordersheet'!Q905=\"\",\"\",'1. Ordersheet'!Q905)","v":""},{"$f":"IF('1. Ordersheet'!R905=\"\",\"\",'1. Ordersheet'!R905)","v":""},{"$f":"IF('1. Ordersheet'!S905=\"\",\"\",'1. Ordersheet'!S905)","v":""},{"$f":"IF('1. Ordersheet'!V905=\"\",\"\",'1. Ordersheet'!V905)","v":""},{"$f":"IF('1. Ordersheet'!W905=\"\",\"\",'1. Ordersheet'!W905)","v":""},{"$f":"IF('1. Ordersheet'!X905=\"\",\"\",'1. Ordersheet'!X905)","v":""},{"$f":"IF('1. Ordersheet'!Y905=\"\",\"\",'1. Ordersheet'!Y905)","v":""},{"$f":"IF('1. Ordersheet'!Z905=\"\",\"\",'1. Ordersheet'!Z905)","v":""},{"$f":"IF('1. Ordersheet'!AA905=\"\",\"\",'1. Ordersheet'!AA905)","v":""},null,{"$f":"IF('1. Ordersheet'!AS905=\"\",\"\",'1. Ordersheet'!AS905)","v":""},{"$f":"IF('1. Ordersheet'!AT905=\"\",\"\",'1. Ordersheet'!AT905)","v":""},null,null,null,null,null,null,null,{"$f":"IF('1. Ordersheet'!AX905=\"\",\"\",'1. Ordersheet'!AX905)","v":""},{"$f":"IF('1. Ordersheet'!AY905=\"\",\"\",'1. Ordersheet'!AY905)","v":""},{"$f":"IF('1. Ordersheet'!AZ905=\"\",\"\",'1. Ordersheet'!AZ905)","v":""},{"$f":"IF('1. Ordersheet'!BA905=\"\",\"\",'1. Ordersheet'!BA905)","v":""},{"$f":"IF('1. Ordersheet'!BC905=\"\",\"\",'1. Ordersheet'!BC905)","v":""},{"$f":"IF('1. Ordersheet'!BD905=\"\",\"\",'1. Ordersheet'!BD905)","v":""},{"$f":"IF('1. Ordersheet'!BE905=\"\",\"\",'1. Ordersheet'!BE905)","v":""},{"$f":"IF('1. Ordersheet'!BF905=\"\",\"\",'1. Ordersheet'!BF905)","v":""},{"$f":"IF('1. Ordersheet'!BG905=\"\",\"\",'1. Ordersheet'!BG905)","v":"ZWO"},{"$f":"IF('1. Ordersheet'!BH905=\"\",\"\",'1. Ordersheet'!BH905)","v":""},{"$f":"IF('1. Ordersheet'!BI905=\"\",\"\",'1. Ordersheet'!BI905)","v":""},{"$f":"IF('1. Ordersheet'!BJ905=\"\",\"\",'1. Ordersheet'!BJ905)","v":""},{"$f":"IF('1. Ordersheet'!BK905=\"\",\"\",'1. Ordersheet'!BK905)","v":""},{"$f":"IF('1. Ordersheet'!BL905=\"\",\"\",'1. Ordersheet'!BL905)","v":""}]
[{"$f":"IF('1. Ordersheet'!F906=\"\",\"\",'1. Ordersheet'!F906)","v":""},{"$f":"IF('1. Ordersheet'!G906=\"\",\"\",'1. Ordersheet'!G906)","v":""},{"$f":"IF('1. Ordersheet'!H906=\"\",\"\",'1. Ordersheet'!H906)","v":""},{"$f":"IF('1. Ordersheet'!I906=\"\",\"\",'1. Ordersheet'!I906)","v":""},{"$f":"IF('1. Ordersheet'!J906=\"\",\"\",'1. Ordersheet'!J906)","v":""},{"$f":"IF('1. Ordersheet'!K906=\"\",\"\",'1. Ordersheet'!K906)","v":""},{"$f":"IF('1. Ordersheet'!L906=\"\",\"\",'1. Ordersheet'!L906)","v":""},{"$f":"IF('1. Ordersheet'!M906=\"\",\"\",'1. Ordersheet'!M906)","v":""},{"$f":"IF('1. Ordersheet'!N906=\"\",\"\",'1. Ordersheet'!N906)","v":""},{"$f":"IF('1. Ordersheet'!O906=\"\",\"\",'1. Ordersheet'!O906)","v":{"$error":"#N/A"}},{"$f":"IF('1. Ordersheet'!P906=\"\",\"\",'1. Ordersheet'!P906)","v":{"$error":"#N/A"}},{"$f":"IF('1. Ordersheet'!Q906=\"\",\"\",'1. Ordersheet'!Q906)","v":""},{"$f":"IF('1. Ordersheet'!R906=\"\",\"\",'1. Ordersheet'!R906)","v":""},{"$f":"IF('1. Ordersheet'!S906=\"\",\"\",'1. Ordersheet'!S906)","v":""},{"$f":"IF('1. Ordersheet'!V906=\"\",\"\",'1. Ordersheet'!V906)","v":""},{"$f":"IF('1. Ordersheet'!W906=\"\",\"\",'1. Ordersheet'!W906)","v":""},{"$f":"IF('1. Ordersheet'!X906=\"\",\"\",'1. Ordersheet'!X906)","v":""},{"$f":"IF('1. Ordersheet'!Y906=\"\",\"\",'1. Ordersheet'!Y906)","v":""},{"$f":"IF('1. Ordersheet'!Z906=\"\",\"\",'1. Ordersheet'!Z906)","v":""},{"$f":"IF('1. Ordersheet'!AA906=\"\",\"\",'1. Ordersheet'!AA906)","v":""},null,{"$f":"IF('1. Ordersheet'!AS906=\"\",\"\",'1. Ordersheet'!AS906)","v":""},{"$f":"IF('1. Ordersheet'!AT906=\"\",\"\",'1. Ordersheet'!AT906)","v":""},null,null,null,null,null,null,null,{"$f":"IF('1. Ordersheet'!AX906=\"\",\"\",'1. Ordersheet'!AX906)","v":""},{"$f":"IF('1. Ordersheet'!AY906=\"\",\"\",'1. Ordersheet'!AY906)","v":""},{"$f":"IF('1. Ordersheet'!AZ906=\"\",\"\",'1. Ordersheet'!AZ906)","v":""},{"$f":"IF('1. Ordersheet'!BA906=\"\",\"\",'1. Ordersheet'!BA906)","v":""},{"$f":"IF('1. Ordersheet'!BC906=\"\",\"\",'1. Ordersheet'!BC906)","v":""},{"$f":"IF('1. Ordersheet'!BD906=\"\",\"\",'1. Ordersheet'!BD906)","v":""},{"$f":"IF('1. Ordersheet'!BE906=\"\",\"\",'1. Ordersheet'!BE906)","v":""},{"$f":"IF('1. Ordersheet'!BF906=\"\",\"\",'1. Ordersheet'!BF906)","v":""},{"$f":"IF('1. Ordersheet'!BG906=\"\",\"\",'1. Ordersheet'!BG906)","v":"ZWO"},{"$f":"IF('1. Ordersheet'!BH906=\"\",\"\",'1. Ordersheet'!BH906)","v":""},{"$f":"IF('1. Ordersheet'!BI906=\"\",\"\",'1. Ordersheet'!BI906)","v":""},{"$f":"IF('1. Ordersheet'!BJ906=\"\",\"\",'1. Ordersheet'!BJ906)","v":""},{"$f":"IF('1. Ordersheet'!BK906=\"\",\"\",'1. Ordersheet'!BK906)","v":""},{"$f":"IF('1. Ordersheet'!BL906=\"\",\"\",'1. Ordersheet'!BL906)","v":""}]
[{"$f":"IF('1. Ordersheet'!F907=\"\",\"\",'1. Ordersheet'!F907)","v":""},{"$f":"IF('1. Ordersheet'!G907=\"\",\"\",'1. Ordersheet'!G907)","v":""},{"$f":"IF('1. Ordersheet'!H907=\"\",\"\",'1. Ordersheet'!H907)","v":""},{"$f":"IF('1. Ordersheet'!I907=\"\",\"\",'1. Ordersheet'!I907)","v":""},{"$f":"IF('1. Ordersheet'!J907=\"\",\"\",'1. Ordersheet'!J907)","v":""},{"$f":"IF('1. Ordersheet'!K907=\"\",\"\",'1. Ordersheet'!K907)","v":""},{"$f":"IF('1. Ordersheet'!L907=\"\",\"\",'1. Ordersheet'!L907)","v":""},{"$f":"IF('1. Ordersheet'!M907=\"\",\"\",'1. Ordersheet'!M907)","v":""},{"$f":"IF('1. Ordersheet'!N907=\"\",\"\",'1. Ordersheet'!N907)","v":""},{"$f":"IF('1. Ordersheet'!O907=\"\",\"\",'1. Ordersheet'!O907)","v":{"$error":"#N/A"}},{"$f":"IF('1. Ordersheet'!P907=\"\",\"\",'1. Ordersheet'!P907)","v":{"$error":"#N/A"}},{"$f":"IF('1. Ordersheet'!Q907=\"\",\"\",'1. Ordersheet'!Q907)","v":""},{"$f":"IF('1. Ordersheet'!R907=\"\",\"\",'1. Ordersheet'!R907)","v":""},{"$f":"IF('1. Ordersheet'!S907=\"\",\"\",'1. Ordersheet'!S907)","v":""},{"$f":"IF('1. Ordersheet'!V907=\"\",\"\",'1. Ordersheet'!V907)","v":""},{"$f":"IF('1. Ordersheet'!W907=\"\",\"\",'1. Ordersheet'!W907)","v":""},{"$f":"IF('1. Ordersheet'!X907=\"\",\"\",'1. Ordersheet'!X907)","v":""},{"$f":"IF('1. Ordersheet'!Y907=\"\",\"\",'1. Ordersheet'!Y907)","v":""},{"$f":"IF('1. Ordersheet'!Z907=\"\",\"\",'1. Ordersheet'!Z907)","v":""},{"$f":"IF('1. Ordersheet'!AA907=\"\",\"\",'1. Ordersheet'!AA907)","v":""},null,{"$f":"IF('1. Ordersheet'!AS907=\"\",\"\",'1. Ordersheet'!AS907)","v":""},{"$f":"IF('1. Ordersheet'!AT907=\"\",\"\",'1. Ordersheet'!AT907)","v":""},null,null,null,null,null,null,null,{"$f":"IF('1. Ordersheet'!AX907=\"\",\"\",'1. Ordersheet'!AX907)","v":""},{"$f":"IF('1. Ordersheet'!AY907=\"\",\"\",'1. Ordersheet'!AY907)","v":""},{"$f":"IF('1. Ordersheet'!AZ907=\"\",\"\",'1. Ordersheet'!AZ907)","v":""},{"$f":"IF('1. Ordersheet'!BA907=\"\",\"\",'1. Ordersheet'!BA907)","v":""},{"$f":"IF('1. Ordersheet'!BC907=\"\",\"\",'1. Ordersheet'!BC907)","v":""},{"$f":"IF('1. Ordersheet'!BD907=\"\",\"\",'1. Ordersheet'!BD907)","v":""},{"$f":"IF('1. Ordersheet'!BE907=\"\",\"\",'1. Ordersheet'!BE907)","v":""},{"$f":"IF('1. Ordersheet'!BF907=\"\",\"\",'1. Ordersheet'!BF907)","v":""},{"$f":"IF('1. Ordersheet'!BG907=\"\",\"\",'1. Ordersheet'!BG907)","v":"ZWO"},{"$f":"IF('1. Ordersheet'!BH907=\"\",\"\",'1. Ordersheet'!BH907)","v":""},{"$f":"IF('1. Ordersheet'!BI907=\"\",\"\",'1. Ordersheet'!BI907)","v":""},{"$f":"IF('1. Ordersheet'!BJ907=\"\",\"\",'1. Ordersheet'!BJ907)","v":""},{"$f":"IF('1. Ordersheet'!BK907=\"\",\"\",'1. Ordersheet'!BK907)","v":""},{"$f":"IF('1. Ordersheet'!BL907=\"\",\"\",'1. Ordersheet'!BL907)","v":""}]
[{"$f":"IF('1. Ordersheet'!F908=\"\",\"\",'1. Ordersheet'!F908)","v":""},{"$f":"IF('1. Ordersheet'!G908=\"\",\"\",'1. Ordersheet'!G908)","v":""},{"$f":"IF('1. Ordersheet'!H908=\"\",\"\",'1. Ordersheet'!H908)","v":""},{"$f":"IF('1. Ordersheet'!I908=\"\",\"\",'1. Ordersheet'!I908)","v":""},{"$f":"IF('1. Ordersheet'!J908=\"\",\"\",'1. Ordersheet'!J908)","v":""},{"$f":"IF('1. Ordersheet'!K908=\"\",\"\",'1. Ordersheet'!K908)","v":""},{"$f":"IF('1. Ordersheet'!L908=\"\",\"\",'1. Ordersheet'!L908)","v":""},{"$f":"IF('1. Ordersheet'!M908=\"\",\"\",'1. Ordersheet'!M908)","v":""},{"$f":"IF('1. Ordersheet'!N908=\"\",\"\",'1. Ordersheet'!N908)","v":""},{"$f":"IF('1. Ordersheet'!O908=\"\",\"\",'1. Ordersheet'!O908)","v":{"$error":"#N/A"}},{"$f":"IF('1. Ordersheet'!P908=\"\",\"\",'1. Ordersheet'!P908)","v":{"$error":"#N/A"}},{"$f":"IF('1. Ordersheet'!Q908=\"\",\"\",'1. Ordersheet'!Q908)","v":""},{"$f":"IF('1. Ordersheet'!R908=\"\",\"\",'1. Ordersheet'!R908)","v":""},{"$f":"IF('1. Ordersheet'!S908=\"\",\"\",'1. Ordersheet'!S908)","v":""},{"$f":"IF('1. Ordersheet'!V908=\"\",\"\",'1. Ordersheet'!V908)","v":""},{"$f":"IF('1. Ordersheet'!W908=\"\",\"\",'1. Ordersheet'!W908)","v":""},{"$f":"IF('1. Ordersheet'!X908=\"\",\"\",'1. Ordersheet'!X908)","v":""},{"$f":"IF('1. Ordersheet'!Y908=\"\",\"\",'1. Ordersheet'!Y908)","v":""},{"$f":"IF('1. Ordersheet'!Z908=\"\",\"\",'1. Ordersheet'!Z908)","v":""},{"$f":"IF('1. Ordersheet'!AA908=\"\",\"\",'1. Ordersheet'!AA908)","v":""},null,{"$f":"IF('1. Ordersheet'!AS908=\"\",\"\",'1. Ordersheet'!AS908)","v":""},{"$f":"IF('1. Ordersheet'!AT908=\"\",\"\",'1. Ordersheet'!AT908)","v":""},null,null,null,null,null,null,null,{"$f":"IF('1. Ordersheet'!AX908=\"\",\"\",'1. Ordersheet'!AX908)","v":""},{"$f":"IF('1. Ordersheet'!AY908=\"\",\"\",'1. Ordersheet'!AY908)","v":""},{"$f":"IF('1. Ordersheet'!AZ908=\"\",\"\",'1. Ordersheet'!AZ908)","v":""},{"$f":"IF('1. Ordersheet'!BA908=\"\",\"\",'1. Ordersheet'!BA908)","v":""},{"$f":"IF('1. Ordersheet'!BC908=\"\",\"\",'1. Ordersheet'!BC908)","v":""},{"$f":"IF('1. Ordersheet'!BD908=\"\",\"\",'1. Ordersheet'!BD908)","v":""},{"$f":"IF('1. Ordersheet'!BE908=\"\",\"\",'1. Ordersheet'!BE908)","v":""},{"$f":"IF('1. Ordersheet'!BF908=\"\",\"\",'1. Ordersheet'!BF908)","v":""},{"$f":"IF('1. Ordersheet'!BG908=\"\",\"\",'1. Ordersheet'!BG908)","v":"ZWO"},{"$f":"IF('1. Ordersheet'!BH908=\"\",\"\",'1. Ordersheet'!BH908)","v":""},{"$f":"IF('1. Ordersheet'!BI908=\"\",\"\",'1. Ordersheet'!BI908)","v":""},{"$f":"IF('1. Ordersheet'!BJ908=\"\",\"\",'1. Ordersheet'!BJ908)","v":""},{"$f":"IF('1. Ordersheet'!BK908=\"\",\"\",'1. Ordersheet'!BK908)","v":""},{"$f":"IF('1. Ordersheet'!BL908=\"\",\"\",'1. Ordersheet'!BL908)","v":""}]
[{"$f":"IF('1. Ordersheet'!F909=\"\",\"\",'1. Ordersheet'!F909)","v":""},{"$f":"IF('1. Ordersheet'!G909=\"\",\"\",'1. Ordersheet'!G909)","v":""},{"$f":"IF('1. Ordersheet'!H909=\"\",\"\",'1. Ordersheet'!H909)","v":""},{"$f":"IF('1. Ordersheet'!I909=\"\",\"\",'1. Ordersheet'!I909)","v":""},{"$f":"IF('1. Ordersheet'!J909=\"\",\"\",'1. Ordersheet'!J909)","v":""},{"$f":"IF('1. Ordersheet'!K909=\"\",\"\",'1. Ordersheet'!K909)","v":""},{"$f":"IF('1. Ordersheet'!L909=\"\",\"\",'1. Ordersheet'!L909)","v":""},{"$f":"IF('1. Ordersheet'!M909=\"\",\"\",'1. Ordersheet'!M909)","v":""},{"$f":"IF('1. Ordersheet'!N909=\"\",\"\",'1. Ordersheet'!N909)","v":""},{"$f":"IF('1. Ordersheet'!O909=\"\",\"\",'1. Ordersheet'!O909)","v":{"$error":"#N/A"}},{"$f":"IF('1. Ordersheet'!P909=\"\",\"\",'1. Ordersheet'!P909)","v":{"$error":"#N/A"}},{"$f":"IF('1. Ordersheet'!Q909=\"\",\"\",'1. Ordersheet'!Q909)","v":""},{"$f":"IF('1. Ordersheet'!R909=\"\",\"\",'1. Ordersheet'!R909)","v":""},{"$f":"IF('1. Ordersheet'!S909=\"\",\"\",'1. Ordersheet'!S909)","v":""},{"$f":"IF('1. Ordersheet'!V909=\"\",\"\",'1. Ordersheet'!V909)","v":""},{"$f":"IF('1. Ordersheet'!W909=\"\",\"\",'1. Ordersheet'!W909)","v":""},{"$f":"IF('1. Ordersheet'!X909=\"\",\"\",'1. Ordersheet'!X909)","v":""},{"$f":"IF('1. Ordersheet'!Y909=\"\",\"\",'1. Ordersheet'!Y909)","v":""},{"$f":"IF('1. Ordersheet'!Z909=\"\",\"\",'1. Ordersheet'!Z909)","v":""},{"$f":"IF('1. Ordersheet'!AA909=\"\",\"\",'1. Ordersheet'!AA909)","v":""},null,{"$f":"IF('1. Ordersheet'!AS909=\"\",\"\",'1. Ordersheet'!AS909)","v":""},{"$f":"IF('1. Ordersheet'!AT909=\"\",\"\",'1. Ordersheet'!AT909)","v":""},null,null,null,null,null,null,null,{"$f":"IF('1. Ordersheet'!AX909=\"\",\"\",'1. Ordersheet'!AX909)","v":""},{"$f":"IF('1. Ordersheet'!AY909=\"\",\"\",'1. Ordersheet'!AY909)","v":""},{"$f":"IF('1. Ordersheet'!AZ909=\"\",\"\",'1. Ordersheet'!AZ909)","v":""},{"$f":"IF('1. Ordersheet'!BA909=\"\",\"\",'1. Ordersheet'!BA909)","v":""},{"$f":"IF('1. Ordersheet'!BC909=\"\",\"\",'1. Ordersheet'!BC909)","v":""},{"$f":"IF('1. Ordersheet'!BD909=\"\",\"\",'1. Ordersheet'!BD909)","v":""},{"$f":"IF('1. Ordersheet'!BE909=\"\",\"\",'1. Ordersheet'!BE909)","v":""},{"$f":"IF('1. Ordersheet'!BF909=\"\",\"\",'1. Ordersheet'!BF909)","v":""},{"$f":"IF('1. Ordersheet'!BG909=\"\",\"\",'1. Ordersheet'!BG909)","v":"ZWO"},{"$f":"IF('1. Ordersheet'!BH909=\"\",\"\",'1. Ordersheet'!BH909)","v":""},{"$f":"IF('1. Ordersheet'!BI909=\"\",\"\",'1. Ordersheet'!BI909)","v":""},{"$f":"IF('1. Ordersheet'!BJ909=\"\",\"\",'1. Ordersheet'!BJ909)","v":""},{"$f":"IF('1. Ordersheet'!BK909=\"\",\"\",'1. Ordersheet'!BK909)","v":""},{"$f":"IF('1. Ordersheet'!BL909=\"\",\"\",'1. Ordersheet'!BL909)","v":""}]
[{"$f":"IF('1. Ordersheet'!F910=\"\",\"\",'1. Ordersheet'!F910)","v":""},{"$f":"IF('1. Ordersheet'!G910=\"\",\"\",'1. Ordersheet'!G910)","v":""},{"$f":"IF('1. Ordersheet'!H910=\"\",\"\",'1. Ordersheet'!H910)","v":""},{"$f":"IF('1. Ordersheet'!I910=\"\",\"\",'1. Ordersheet'!I910)","v":""},{"$f":"IF('1. Ordersheet'!J910=\"\",\"\",'1. Ordersheet'!J910)","v":""},{"$f":"IF('1. Ordersheet'!K910=\"\",\"\",'1. Ordersheet'!K910)","v":""},{"$f":"IF('1. Ordersheet'!L910=\"\",\"\",'1. Ordersheet'!L910)","v":""},{"$f":"IF('1. Ordersheet'!M910=\"\",\"\",'1. Ordersheet'!M910)","v":""},{"$f":"IF('1. Ordersheet'!N910=\"\",\"\",'1. Ordersheet'!N910)","v":""},{"$f":"IF('1. Ordersheet'!O910=\"\",\"\",'1. Ordersheet'!O910)","v":{"$error":"#N/A"}},{"$f":"IF('1. Ordersheet'!P910=\"\",\"\",'1. Ordersheet'!P910)","v":{"$error":"#N/A"}},{"$f":"IF('1. Ordersheet'!Q910=\"\",\"\",'1. Ordersheet'!Q910)","v":""},{"$f":"IF('1. Ordersheet'!R910=\"\",\"\",'1. Ordersheet'!R910)","v":""},{"$f":"IF('1. Ordersheet'!S910=\"\",\"\",'1. Ordersheet'!S910)","v":""},{"$f":"IF('1. Ordersheet'!V910=\"\",\"\",'1. Ordersheet'!V910)","v":""},{"$f":"IF('1. Ordersheet'!W910=\"\",\"\",'1. Ordersheet'!W910)","v":""},{"$f":"IF('1. Ordersheet'!X910=\"\",\"\",'1. Ordersheet'!X910)","v":""},{"$f":"IF('1. Ordersheet'!Y910=\"\",\"\",'1. Ordersheet'!Y910)","v":""},{"$f":"IF('1. Ordersheet'!Z910=\"\",\"\",'1. Ordersheet'!Z910)","v":""},{"$f":"IF('1. Ordersheet'!AA910=\"\",\"\",'1. Ordersheet'!AA910)","v":""},null,{"$f":"IF('1. Ordersheet'!AS910=\"\",\"\",'1. Ordersheet'!AS910)","v":""},{"$f":"IF('1. Ordersheet'!AT910=\"\",\"\",'1. Ordersheet'!AT910)","v":""},null,null,null,null,null,null,null,{"$f":"IF('1. Ordersheet'!AX910=\"\",\"\",'1. Ordersheet'!AX910)","v":""},{"$f":"IF('1. Ordersheet'!AY910=\"\",\"\",'1. Ordersheet'!AY910)","v":""},{"$f":"IF('1. Ordersheet'!AZ910=\"\",\"\",'1. Ordersheet'!AZ910)","v":""},{"$f":"IF('1. Ordersheet'!BA910=\"\",\"\",'1. Ordersheet'!BA910)","v":""},{"$f":"IF('1. Ordersheet'!BC910=\"\",\"\",'1. Ordersheet'!BC910)","v":""},{"$f":"IF('1. Ordersheet'!BD910=\"\",\"\",'1. Ordersheet'!BD910)","v":""},{"$f":"IF('1. Ordersheet'!BE910=\"\",\"\",'1. Ordersheet'!BE910)","v":""},{"$f":"IF('1. Ordersheet'!BF910=\"\",\"\",'1. Ordersheet'!BF910)","v":""},{"$f":"IF('1. Ordersheet'!BG910=\"\",\"\",'1. Ordersheet'!BG910)","v":"ZWO"},{"$f":"IF('1. Ordersheet'!BH910=\"\",\"\",'1. Ordersheet'!BH910)","v":""},{"$f":"IF('1. Ordersheet'!BI910=\"\",\"\",'1. Ordersheet'!BI910)","v":""},{"$f":"IF('1. Ordersheet'!BJ910=\"\",\"\",'1. Ordersheet'!BJ910)","v":""},{"$f":"IF('1. Ordersheet'!BK910=\"\",\"\",'1. Ordersheet'!BK910)","v":""},{"$f":"IF('1. Ordersheet'!BL910=\"\",\"\",'1. Ordersheet'!BL910)","v":""}]
[{"$f":"IF('1. Ordersheet'!F911=\"\",\"\",'1. Ordersheet'!F911)","v":""},{"$f":"IF('1. Ordersheet'!G911=\"\",\"\",'1. Ordersheet'!G911)","v":""},{"$f":"IF('1. Ordersheet'!H911=\"\",\"\",'1. Ordersheet'!H911)","v":""},{"$f":"IF('1. Ordersheet'!I911=\"\",\"\",'1. Ordersheet'!I911)","v":""},{"$f":"IF('1. Ordersheet'!J911=\"\",\"\",'1. Ordersheet'!J911)","v":""},{"$f":"IF('1. Ordersheet'!K911=\"\",\"\",'1. Ordersheet'!K911)","v":""},{"$f":"IF('1. Ordersheet'!L911=\"\",\"\",'1. Ordersheet'!L911)","v":""},{"$f":"IF('1. Ordersheet'!M911=\"\",\"\",'1. Ordersheet'!M911)","v":""},{"$f":"IF('1. Ordersheet'!N911=\"\",\"\",'1. Ordersheet'!N911)","v":""},{"$f":"IF('1. Ordersheet'!O911=\"\",\"\",'1. Ordersheet'!O911)","v":{"$error":"#N/A"}},{"$f":"IF('1. Ordersheet'!P911=\"\",\"\",'1. Ordersheet'!P911)","v":{"$error":"#N/A"}},{"$f":"IF('1. Ordersheet'!Q911=\"\",\"\",'1. Ordersheet'!Q911)","v":""},{"$f":"IF('1. Ordersheet'!R911=\"\",\"\",'1. Ordersheet'!R911)","v":""},{"$f":"IF('1. Ordersheet'!S911=\"\",\"\",'1. Ordersheet'!S911)","v":""},{"$f":"IF('1. Ordersheet'!V911=\"\",\"\",'1. Ordersheet'!V911)","v":""},{"$f":"IF('1. Ordersheet'!W911=\"\",\"\",'1. Ordersheet'!W911)","v":""},{"$f":"IF('1. Ordersheet'!X911=\"\",\"\",'1. Ordersheet'!X911)","v":""},{"$f":"IF('1. Ordersheet'!Y911=\"\",\"\",'1. Ordersheet'!Y911)","v":""},{"$f":"IF('1. Ordersheet'!Z911=\"\",\"\",'1. Ordersheet'!Z911)","v":""},{"$f":"IF('1. Ordersheet'!AA911=\"\",\"\",'1. Ordersheet'!AA911)","v":""},null,{"$f":"IF('1. Ordersheet'!AS911=\"\",\"\",'1. Ordersheet'!AS911)","v":""},{"$f":"IF('1. Ordersheet'!AT911=\"\",\"\",'1. Ordersheet'!AT911)","v":""},null,null,null,null,null,null,null,{"$f":"IF('1. Ordersheet'!AX911=\"\",\"\",'1. Ordersheet'!AX911)","v":""},{"$f":"IF('1. Ordersheet'!AY911=\"\",\"\",'1. Ordersheet'!AY911)","v":""},{"$f":"IF('1. Ordersheet'!AZ911=\"\",\"\",'1. Ordersheet'!AZ911)","v":""},{"$f":"IF('1. Ordersheet'!BA911=\"\",\"\",'1. Ordersheet'!BA911)","v":""},{"$f":"IF('1. Ordersheet'!BC911=\"\",\"\",'1. Ordersheet'!BC911)","v":""},{"$f":"IF('1. Ordersheet'!BD911=\"\",\"\",'1. Ordersheet'!BD911)","v":""},{"$f":"IF('1. Ordersheet'!BE911=\"\",\"\",'1. Ordersheet'!BE911)","v":""},{"$f":"IF('1. Ordersheet'!BF911=\"\",\"\",'1. Ordersheet'!BF911)","v":""},{"$f":"IF('1. Ordersheet'!BG911=\"\",\"\",'1. Ordersheet'!BG911)","v":"ZWO"},{"$f":"IF('1. Ordersheet'!BH911=\"\",\"\",'1. Ordersheet'!BH911)","v":""},{"$f":"IF('1. Ordersheet'!BI911=\"\",\"\",'1. Ordersheet'!BI911)","v":""},{"$f":"IF('1. Ordersheet'!BJ911=\"\",\"\",'1. Ordersheet'!BJ911)","v":""},{"$f":"IF('1. Ordersheet'!BK911=\"\",\"\",'1. Ordersheet'!BK911)","v":""},{"$f":"IF('1. Ordersheet'!BL911=\"\",\"\",'1. Ordersheet'!BL911)","v":""}]
[{"$f":"IF('1. Ordersheet'!F912=\"\",\"\",'1. Ordersheet'!F912)","v":""},{"$f":"IF('1. Ordersheet'!G912=\"\",\"\",'1. Ordersheet'!G912)","v":""},{"$f":"IF('1. Ordersheet'!H912=\"\",\"\",'1. Ordersheet'!H912)","v":""},{"$f":"IF('1. Ordersheet'!I912=\"\",\"\",'1. Ordersheet'!I912)","v":""},{"$f":"IF('1. Ordersheet'!J912=\"\",\"\",'1. Ordersheet'!J912)","v":""},{"$f":"IF('1. Ordersheet'!K912=\"\",\"\",'1. Ordersheet'!K912)","v":""},{"$f":"IF('1. Ordersheet'!L912=\"\",\"\",'1. Ordersheet'!L912)","v":""},{"$f":"IF('1. Ordersheet'!M912=\"\",\"\",'1. Ordersheet'!M912)","v":""},{"$f":"IF('1. Ordersheet'!N912=\"\",\"\",'1. Ordersheet'!N912)","v":""},{"$f":"IF('1. Ordersheet'!O912=\"\",\"\",'1. Ordersheet'!O912)","v":{"$error":"#N/A"}},{"$f":"IF('1. Ordersheet'!P912=\"\",\"\",'1. Ordersheet'!P912)","v":{"$error":"#N/A"}},{"$f":"IF('1. Ordersheet'!Q912=\"\",\"\",'1. Ordersheet'!Q912)","v":""},{"$f":"IF('1. Ordersheet'!R912=\"\",\"\",'1. Ordersheet'!R912)","v":""},{"$f":"IF('1. Ordersheet'!S912=\"\",\"\",'1. Ordersheet'!S912)","v":""},{"$f":"IF('1. Ordersheet'!V912=\"\",\"\",'1. Ordersheet'!V912)","v":""},{"$f":"IF('1. Ordersheet'!W912=\"\",\"\",'1. Ordersheet'!W912)","v":""},{"$f":"IF('1. Ordersheet'!X912=\"\",\"\",'1. Ordersheet'!X912)","v":""},{"$f":"IF('1. Ordersheet'!Y912=\"\",\"\",'1. Ordersheet'!Y912)","v":""},{"$f":"IF('1. Ordersheet'!Z912=\"\",\"\",'1. Ordersheet'!Z912)","v":""},{"$f":"IF('1. Ordersheet'!AA912=\"\",\"\",'1. Ordersheet'!AA912)","v":""},null,{"$f":"IF('1. Ordersheet'!AS912=\"\",\"\",'1. Ordersheet'!AS912)","v":""},{"$f":"IF('1. Ordersheet'!AT912=\"\",\"\",'1. Ordersheet'!AT912)","v":""},null,null,null,null,null,null,null,{"$f":"IF('1. Ordersheet'!AX912=\"\",\"\",'1. Ordersheet'!AX912)","v":""},{"$f":"IF('1. Ordersheet'!AY912=\"\",\"\",'1. Ordersheet'!AY912)","v":""},{"$f":"IF('1. Ordersheet'!AZ912=\"\",\"\",'1. Ordersheet'!AZ912)","v":""},{"$f":"IF('1. Ordersheet'!BA912=\"\",\"\",'1. Ordersheet'!BA912)","v":""},{"$f":"IF('1. Ordersheet'!BC912=\"\",\"\",'1. Ordersheet'!BC912)","v":""},{"$f":"IF('1. Ordersheet'!BD912=\"\",\"\",'1. Ordersheet'!BD912)","v":""},{"$f":"IF('1. Ordersheet'!BE912=\"\",\"\",'1. Ordersheet'!BE912)","v":""},{"$f":"IF('1. Ordersheet'!BF912=\"\",\"\",'1. Ordersheet'!BF912)","v":""},{"$f":"IF('1. Ordersheet'!BG912=\"\",\"\",'1. Ordersheet'!BG912)","v":"ZWO"},{"$f":"IF('1. Ordersheet'!BH912=\"\",\"\",'1. Ordersheet'!BH912)","v":""},{"$f":"IF('1. Ordersheet'!BI912=\"\",\"\",'1. Ordersheet'!BI912)","v":""},{"$f":"IF('1. Ordersheet'!BJ912=\"\",\"\",'1. Ordersheet'!BJ912)","v":""},{"$f":"IF('1. Ordersheet'!BK912=\"\",\"\",'1. Ordersheet'!BK912)","v":""},{"$f":"IF('1. Ordersheet'!BL912=\"\",\"\",'1. Ordersheet'!BL912)","v":""}]
[{"$f":"IF('1. Ordersheet'!F913=\"\",\"\",'1. Ordersheet'!F913)","v":""},{"$f":"IF('1. Ordersheet'!G913=\"\",\"\",'1. Ordersheet'!G913)","v":""},{"$f":"IF('1. Ordersheet'!H913=\"\",\"\",'1. Ordersheet'!H913)","v":""},{"$f":"IF('1. Ordersheet'!I913=\"\",\"\",'1. Ordersheet'!I913)","v":""},{"$f":"IF('1. Ordersheet'!J913=\"\",\"\",'1. Ordersheet'!J913)","v":""},{"$f":"IF('1. Ordersheet'!K913=\"\",\"\",'1. Ordersheet'!K913)","v":""},{"$f":"IF('1. Ordersheet'!L913=\"\",\"\",'1. Ordersheet'!L913)","v":""},{"$f":"IF('1. Ordersheet'!M913=\"\",\"\",'1. Ordersheet'!M913)","v":""},{"$f":"IF('1. Ordersheet'!N913=\"\",\"\",'1. Ordersheet'!N913)","v":""},{"$f":"IF('1. Ordersheet'!O913=\"\",\"\",'1. Ordersheet'!O913)","v":{"$error":"#N/A"}},{"$f":"IF('1. Ordersheet'!P913=\"\",\"\",'1. Ordersheet'!P913)","v":{"$error":"#N/A"}},{"$f":"IF('1. Ordersheet'!Q913=\"\",\"\",'1. Ordersheet'!Q913)","v":""},{"$f":"IF('1. Ordersheet'!R913=\"\",\"\",'1. Ordersheet'!R913)","v":""},{"$f":"IF('1. Ordersheet'!S913=\"\",\"\",'1. Ordersheet'!S913)","v":""},{"$f":"IF('1. Ordersheet'!V913=\"\",\"\",'1. Ordersheet'!V913)","v":""},{"$f":"IF('1. Ordersheet'!W913=\"\",\"\",'1. Ordersheet'!W913)","v":""},{"$f":"IF('1. Ordersheet'!X913=\"\",\"\",'1. Ordersheet'!X913)","v":""},{"$f":"IF('1. Ordersheet'!Y913=\"\",\"\",'1. Ordersheet'!Y913)","v":""},{"$f":"IF('1. Ordersheet'!Z913=\"\",\"\",'1. Ordersheet'!Z913)","v":""},{"$f":"IF('1. Ordersheet'!AA913=\"\",\"\",'1. Ordersheet'!AA913)","v":""},null,{"$f":"IF('1. Ordersheet'!AS913=\"\",\"\",'1. Ordersheet'!AS913)","v":""},{"$f":"IF('1. Ordersheet'!AT913=\"\",\"\",'1. Ordersheet'!AT913)","v":""},null,null,null,null,null,null,null,{"$f":"IF('1. Ordersheet'!AX913=\"\",\"\",'1. Ordersheet'!AX913)","v":""},{"$f":"IF('1. Ordersheet'!AY913=\"\",\"\",'1. Ordersheet'!AY913)","v":""},{"$f":"IF('1. Ordersheet'!AZ913=\"\",\"\",'1. Ordersheet'!AZ913)","v":""},{"$f":"IF('1. Ordersheet'!BA913=\"\",\"\",'1. Ordersheet'!BA913)","v":""},{"$f":"IF('1. Ordersheet'!BC913=\"\",\"\",'1. Ordersheet'!BC913)","v":""},{"$f":"IF('1. Ordersheet'!BD913=\"\",\"\",'1. Ordersheet'!BD913)","v":""},{"$f":"IF('1. Ordersheet'!BE913=\"\",\"\",'1. Ordersheet'!BE913)","v":""},{"$f":"IF('1. Ordersheet'!BF913=\"\",\"\",'1. Ordersheet'!BF913)","v":""},{"$f":"IF('1. Ordersheet'!BG913=\"\",\"\",'1. Ordersheet'!BG913)","v":"ZWO"},{"$f":"IF('1. Ordersheet'!BH913=\"\",\"\",'1. Ordersheet'!BH913)","v":""},{"$f":"IF('1. Ordersheet'!BI913=\"\",\"\",'1. Ordersheet'!BI913)","v":""},{"$f":"IF('1. Ordersheet'!BJ913=\"\",\"\",'1. Ordersheet'!BJ913)","v":""},{"$f":"IF('1. Ordersheet'!BK913=\"\",\"\",'1. Ordersheet'!BK913)","v":""},{"$f":"IF('1. Ordersheet'!BL913=\"\",\"\",'1. Ordersheet'!BL913)","v":""}]
[{"$f":"IF('1. Ordersheet'!F914=\"\",\"\",'1. Ordersheet'!F914)","v":""},{"$f":"IF('1. Ordersheet'!G914=\"\",\"\",'1. Ordersheet'!G914)","v":""},{"$f":"IF('1. Ordersheet'!H914=\"\",\"\",'1. Ordersheet'!H914)","v":""},{"$f":"IF('1. Ordersheet'!I914=\"\",\"\",'1. Ordersheet'!I914)","v":""},{"$f":"IF('1. Ordersheet'!J914=\"\",\"\",'1. Ordersheet'!J914)","v":""},{"$f":"IF('1. Ordersheet'!K914=\"\",\"\",'1. Ordersheet'!K914)","v":""},{"$f":"IF('1. Ordersheet'!L914=\"\",\"\",'1. Ordersheet'!L914)","v":""},{"$f":"IF('1. Ordersheet'!M914=\"\",\"\",'1. Ordersheet'!M914)","v":""},{"$f":"IF('1. Ordersheet'!N914=\"\",\"\",'1. Ordersheet'!N914)","v":""},{"$f":"IF('1. Ordersheet'!O914=\"\",\"\",'1. Ordersheet'!O914)","v":{"$error":"#N/A"}},{"$f":"IF('1. Ordersheet'!P914=\"\",\"\",'1. Ordersheet'!P914)","v":{"$error":"#N/A"}},{"$f":"IF('1. Ordersheet'!Q914=\"\",\"\",'1. Ordersheet'!Q914)","v":""},{"$f":"IF('1. Ordersheet'!R914=\"\",\"\",'1. Ordersheet'!R914)","v":""},{"$f":"IF('1. Ordersheet'!S914=\"\",\"\",'1. Ordersheet'!S914)","v":""},{"$f":"IF('1. Ordersheet'!V914=\"\",\"\",'1. Ordersheet'!V914)","v":""},{"$f":"IF('1. Ordersheet'!W914=\"\",\"\",'1. Ordersheet'!W914)","v":""},{"$f":"IF('1. Ordersheet'!X914=\"\",\"\",'1. Ordersheet'!X914)","v":""},{"$f":"IF('1. Ordersheet'!Y914=\"\",\"\",'1. Ordersheet'!Y914)","v":""},{"$f":"IF('1. Ordersheet'!Z914=\"\",\"\",'1. Ordersheet'!Z914)","v":""},{"$f":"IF('1. Ordersheet'!AA914=\"\",\"\",'1. Ordersheet'!AA914)","v":""},null,{"$f":"IF('1. Ordersheet'!AS914=\"\",\"\",'1. Ordersheet'!AS914)","v":""},{"$f":"IF('1. Ordersheet'!AT914=\"\",\"\",'1. Ordersheet'!AT914)","v":""},null,null,null,null,null,null,null,{"$f":"IF('1. Ordersheet'!AX914=\"\",\"\",'1. Ordersheet'!AX914)","v":""},{"$f":"IF('1. Ordersheet'!AY914=\"\",\"\",'1. Ordersheet'!AY914)","v":""},{"$f":"IF('1. Ordersheet'!AZ914=\"\",\"\",'1. Ordersheet'!AZ914)","v":""},{"$f":"IF('1. Ordersheet'!BA914=\"\",\"\",'1. Ordersheet'!BA914)","v":""},{"$f":"IF('1. Ordersheet'!BC914=\"\",\"\",'1. Ordersheet'!BC914)","v":""},{"$f":"IF('1. Ordersheet'!BD914=\"\",\"\",'1. Ordersheet'!BD914)","v":""},{"$f":"IF('1. Ordersheet'!BE914=\"\",\"\",'1. Ordersheet'!BE914)","v":""},{"$f":"IF('1. Ordersheet'!BF914=\"\",\"\",'1. Ordersheet'!BF914)","v":""},{"$f":"IF('1. Ordersheet'!BG914=\"\",\"\",'1. Ordersheet'!BG914)","v":"ZWO"},{"$f":"IF('1. Ordersheet'!BH914=\"\",\"\",'1. Ordersheet'!BH914)","v":""},{"$f":"IF('1. Ordersheet'!BI914=\"\",\"\",'1. Ordersheet'!BI914)","v":""},{"$f":"IF('1. Ordersheet'!BJ914=\"\",\"\",'1. Ordersheet'!BJ914)","v":""},{"$f":"IF('1. Ordersheet'!BK914=\"\",\"\",'1. Ordersheet'!BK914)","v":""},{"$f":"IF('1. Ordersheet'!BL914=\"\",\"\",'1. Ordersheet'!BL914)","v":""}]
[{"$f":"IF('1. Ordersheet'!F915=\"\",\"\",'1. Ordersheet'!F915)","v":""},{"$f":"IF('1. Ordersheet'!G915=\"\",\"\",'1. Ordersheet'!G915)","v":""},{"$f":"IF('1. Ordersheet'!H915=\"\",\"\",'1. Ordersheet'!H915)","v":""},{"$f":"IF('1. Ordersheet'!I915=\"\",\"\",'1. Ordersheet'!I915)","v":""},{"$f":"IF('1. Ordersheet'!J915=\"\",\"\",'1. Ordersheet'!J915)","v":""},{"$f":"IF('1. Ordersheet'!K915=\"\",\"\",'1. Ordersheet'!K915)","v":""},{"$f":"IF('1. Ordersheet'!L915=\"\",\"\",'1. Ordersheet'!L915)","v":""},{"$f":"IF('1. Ordersheet'!M915=\"\",\"\",'1. Ordersheet'!M915)","v":""},{"$f":"IF('1. Ordersheet'!N915=\"\",\"\",'1. Ordersheet'!N915)","v":""},{"$f":"IF('1. Ordersheet'!O915=\"\",\"\",'1. Ordersheet'!O915)","v":{"$error":"#N/A"}},{"$f":"IF('1. Ordersheet'!P915=\"\",\"\",'1. Ordersheet'!P915)","v":{"$error":"#N/A"}},{"$f":"IF('1. Ordersheet'!Q915=\"\",\"\",'1. Ordersheet'!Q915)","v":""},{"$f":"IF('1. Ordersheet'!R915=\"\",\"\",'1. Ordersheet'!R915)","v":""},{"$f":"IF('1. Ordersheet'!S915=\"\",\"\",'1. Ordersheet'!S915)","v":""},{"$f":"IF('1. Ordersheet'!V915=\"\",\"\",'1. Ordersheet'!V915)","v":""},{"$f":"IF('1. Ordersheet'!W915=\"\",\"\",'1. Ordersheet'!W915)","v":""},{"$f":"IF('1. Ordersheet'!X915=\"\",\"\",'1. Ordersheet'!X915)","v":""},{"$f":"IF('1. Ordersheet'!Y915=\"\",\"\",'1. Ordersheet'!Y915)","v":""},{"$f":"IF('1. Ordersheet'!Z915=\"\",\"\",'1. Ordersheet'!Z915)","v":""},{"$f":"IF('1. Ordersheet'!AA915=\"\",\"\",'1. Ordersheet'!AA915)","v":""},null,{"$f":"IF('1. Ordersheet'!AS915=\"\",\"\",'1. Ordersheet'!AS915)","v":""},{"$f":"IF('1. Ordersheet'!AT915=\"\",\"\",'1. Ordersheet'!AT915)","v":""},null,null,null,null,null,null,null,{"$f":"IF('1. Ordersheet'!AX915=\"\",\"\",'1. Ordersheet'!AX915)","v":""},{"$f":"IF('1. Ordersheet'!AY915=\"\",\"\",'1. Ordersheet'!AY915)","v":""},{"$f":"IF('1. Ordersheet'!AZ915=\"\",\"\",'1. Ordersheet'!AZ915)","v":""},{"$f":"IF('1. Ordersheet'!BA915=\"\",\"\",'1. Ordersheet'!BA915)","v":""},{"$f":"IF('1. Ordersheet'!BC915=\"\",\"\",'1. Ordersheet'!BC915)","v":""},{"$f":"IF('1. Ordersheet'!BD915=\"\",\"\",'1. Ordersheet'!BD915)","v":""},{"$f":"IF('1. Ordersheet'!BE915=\"\",\"\",'1. Ordersheet'!BE915)","v":""},{"$f":"IF('1. Ordersheet'!BF915=\"\",\"\",'1. Ordersheet'!BF915)","v":""},{"$f":"IF('1. Ordersheet'!BG915=\"\",\"\",'1. Ordersheet'!BG915)","v":"ZWO"},{"$f":"IF('1. Ordersheet'!BH915=\"\",\"\",'1. Ordersheet'!BH915)","v":""},{"$f":"IF('1. Ordersheet'!BI915=\"\",\"\",'1. Ordersheet'!BI915)","v":""},{"$f":"IF('1. Ordersheet'!BJ915=\"\",\"\",'1. Ordersheet'!BJ915)","v":""},{"$f":"IF('1. Ordersheet'!BK915=\"\",\"\",'1. Ordersheet'!BK915)","v":""},{"$f":"IF('1. Ordersheet'!BL915=\"\",\"\",'1. Ordersheet'!BL915)","v":""}]
[{"$f":"IF('1. Ordersheet'!F916=\"\",\"\",'1. Ordersheet'!F916)","v":""},{"$f":"IF('1. Ordersheet'!G916=\"\",\"\",'1. Ordersheet'!G916)","v":""},{"$f":"IF('1. Ordersheet'!H916=\"\",\"\",'1. Ordersheet'!H916)","v":""},{"$f":"IF('1. Ordersheet'!I916=\"\",\"\",'1. Ordersheet'!I916)","v":""},{"$f":"IF('1. Ordersheet'!J916=\"\",\"\",'1. Ordersheet'!J916)","v":""},{"$f":"IF('1. Ordersheet'!K916=\"\",\"\",'1. Ordersheet'!K916)","v":""},{"$f":"IF('1. Ordersheet'!L916=\"\",\"\",'1. Ordersheet'!L916)","v":""},{"$f":"IF('1. Ordersheet'!M916=\"\",\"\",'1. Ordersheet'!M916)","v":""},{"$f":"IF('1. Ordersheet'!N916=\"\",\"\",'1. Ordersheet'!N916)","v":""},{"$f":"IF('1. Ordersheet'!O916=\"\",\"\",'1. Ordersheet'!O916)","v":{"$error":"#N/A"}},{"$f":"IF('1. Ordersheet'!P916=\"\",\"\",'1. Ordersheet'!P916)","v":{"$error":"#N/A"}},{"$f":"IF('1. Ordersheet'!Q916=\"\",\"\",'1. Ordersheet'!Q916)","v":""},{"$f":"IF('1. Ordersheet'!R916=\"\",\"\",'1. Ordersheet'!R916)","v":""},{"$f":"IF('1. Ordersheet'!S916=\"\",\"\",'1. Ordersheet'!S916)","v":""},{"$f":"IF('1. Ordersheet'!V916=\"\",\"\",'1. Ordersheet'!V916)","v":""},{"$f":"IF('1. Ordersheet'!W916=\"\",\"\",'1. Ordersheet'!W916)","v":""},{"$f":"IF('1. Ordersheet'!X916=\"\",\"\",'1. Ordersheet'!X916)","v":""},{"$f":"IF('1. Ordersheet'!Y916=\"\",\"\",'1. Ordersheet'!Y916)","v":""},{"$f":"IF('1. Ordersheet'!Z916=\"\",\"\",'1. Ordersheet'!Z916)","v":""},{"$f":"IF('1. Ordersheet'!AA916=\"\",\"\",'1. Ordersheet'!AA916)","v":""},null,{"$f":"IF('1. Ordersheet'!AS916=\"\",\"\",'1. Ordersheet'!AS916)","v":""},{"$f":"IF('1. Ordersheet'!AT916=\"\",\"\",'1. Ordersheet'!AT916)","v":""},null,null,null,null,null,null,null,{"$f":"IF('1. Ordersheet'!AX916=\"\",\"\",'1. Ordersheet'!AX916)","v":""},{"$f":"IF('1. Ordersheet'!AY916=\"\",\"\",'1. Ordersheet'!AY916)","v":""},{"$f":"IF('1. Ordersheet'!AZ916=\"\",\"\",'1. Ordersheet'!AZ916)","v":""},{"$f":"IF('1. Ordersheet'!BA916=\"\",\"\",'1. Ordersheet'!BA916)","v":""},{"$f":"IF('1. Ordersheet'!BC916=\"\",\"\",'1. Ordersheet'!BC916)","v":""},{"$f":"IF('1. Ordersheet'!BD916=\"\",\"\",'1. Ordersheet'!BD916)","v":""},{"$f":"IF('1. Ordersheet'!BE916=\"\",\"\",'1. Ordersheet'!BE916)","v":""},{"$f":"IF('1. Ordersheet'!BF916=\"\",\"\",'1. Ordersheet'!BF916)","v":""},{"$f":"IF('1. Ordersheet'!BG916=\"\",\"\",'1. Ordersheet'!BG916)","v":"ZWO"},{"$f":"IF('1. Ordersheet'!BH916=\"\",\"\",'1. Ordersheet'!BH916)","v":""},{"$f":"IF('1. Ordersheet'!BI916=\"\",\"\",'1. Ordersheet'!BI916)","v":""},{"$f":"IF('1. Ordersheet'!BJ916=\"\",\"\",'1. Ordersheet'!BJ916)","v":""},{"$f":"IF('1. Ordersheet'!BK916=\"\",\"\",'1. Ordersheet'!BK916)","v":""},{"$f":"IF('1. Ordersheet'!BL916=\"\",\"\",'1. Ordersheet'!BL916)","v":""}]
[{"$f":"IF('1. Ordersheet'!F917=\"\",\"\",'1. Ordersheet'!F917)","v":""},{"$f":"IF('1. Ordersheet'!G917=\"\",\"\",'1. Ordersheet'!G917)","v":""},{"$f":"IF('1. Ordersheet'!H917=\"\",\"\",'1. Ordersheet'!H917)","v":""},{"$f":"IF('1. Ordersheet'!I917=\"\",\"\",'1. Ordersheet'!I917)","v":""},{"$f":"IF('1. Ordersheet'!J917=\"\",\"\",'1. Ordersheet'!J917)","v":""},{"$f":"IF('1. Ordersheet'!K917=\"\",\"\",'1. Ordersheet'!K917)","v":""},{"$f":"IF('1. Ordersheet'!L917=\"\",\"\",'1. Ordersheet'!L917)","v":""},{"$f":"IF('1. Ordersheet'!M917=\"\",\"\",'1. Ordersheet'!M917)","v":""},{"$f":"IF('1. Ordersheet'!N917=\"\",\"\",'1. Ordersheet'!N917)","v":""},{"$f":"IF('1. Ordersheet'!O917=\"\",\"\",'1. Ordersheet'!O917)","v":{"$error":"#N/A"}},{"$f":"IF('1. Ordersheet'!P917=\"\",\"\",'1. Ordersheet'!P917)","v":{"$error":"#N/A"}},{"$f":"IF('1. Ordersheet'!Q917=\"\",\"\",'1. Ordersheet'!Q917)","v":""},{"$f":"IF('1. Ordersheet'!R917=\"\",\"\",'1. Ordersheet'!R917)","v":""},{"$f":"IF('1. Ordersheet'!S917=\"\",\"\",'1. Ordersheet'!S917)","v":""},{"$f":"IF('1. Ordersheet'!V917=\"\",\"\",'1. Ordersheet'!V917)","v":""},{"$f":"IF('1. Ordersheet'!W917=\"\",\"\",'1. Ordersheet'!W917)","v":""},{"$f":"IF('1. Ordersheet'!X917=\"\",\"\",'1. Ordersheet'!X917)","v":""},{"$f":"IF('1. Ordersheet'!Y917=\"\",\"\",'1. Ordersheet'!Y917)","v":""},{"$f":"IF('1. Ordersheet'!Z917=\"\",\"\",'1. Ordersheet'!Z917)","v":""},{"$f":"IF('1. Ordersheet'!AA917=\"\",\"\",'1. Ordersheet'!AA917)","v":""},null,{"$f":"IF('1. Ordersheet'!AS917=\"\",\"\",'1. Ordersheet'!AS917)","v":""},{"$f":"IF('1. Ordersheet'!AT917=\"\",\"\",'1. Ordersheet'!AT917)","v":""},null,null,null,null,null,null,null,{"$f":"IF('1. Ordersheet'!AX917=\"\",\"\",'1. Ordersheet'!AX917)","v":""},{"$f":"IF('1. Ordersheet'!AY917=\"\",\"\",'1. Ordersheet'!AY917)","v":""},{"$f":"IF('1. Ordersheet'!AZ917=\"\",\"\",'1. Ordersheet'!AZ917)","v":""},{"$f":"IF('1. Ordersheet'!BA917=\"\",\"\",'1. Ordersheet'!BA917)","v":""},{"$f":"IF('1. Ordersheet'!BC917=\"\",\"\",'1. Ordersheet'!BC917)","v":""},{"$f":"IF('1. Ordersheet'!BD917=\"\",\"\",'1. Ordersheet'!BD917)","v":""},{"$f":"IF('1. Ordersheet'!BE917=\"\",\"\",'1. Ordersheet'!BE917)","v":""},{"$f":"IF('1. Ordersheet'!BF917=\"\",\"\",'1. Ordersheet'!BF917)","v":""},{"$f":"IF('1. Ordersheet'!BG917=\"\",\"\",'1. Ordersheet'!BG917)","v":"ZWO"},{"$f":"IF('1. Ordersheet'!BH917=\"\",\"\",'1. Ordersheet'!BH917)","v":""},{"$f":"IF('1. Ordersheet'!BI917=\"\",\"\",'1. Ordersheet'!BI917)","v":""},{"$f":"IF('1. Ordersheet'!BJ917=\"\",\"\",'1. Ordersheet'!BJ917)","v":""},{"$f":"IF('1. Ordersheet'!BK917=\"\",\"\",'1. Ordersheet'!BK917)","v":""},{"$f":"IF('1. Ordersheet'!BL917=\"\",\"\",'1. Ordersheet'!BL917)","v":""}]
[{"$f":"IF('1. Ordersheet'!F918=\"\",\"\",'1. Ordersheet'!F918)","v":""},{"$f":"IF('1. Ordersheet'!G918=\"\",\"\",'1. Ordersheet'!G918)","v":""},{"$f":"IF('1. Ordersheet'!H918=\"\",\"\",'1. Ordersheet'!H918)","v":""},{"$f":"IF('1. Ordersheet'!I918=\"\",\"\",'1. Ordersheet'!I918)","v":""},{"$f":"IF('1. Ordersheet'!J918=\"\",\"\",'1. Ordersheet'!J918)","v":""},{"$f":"IF('1. Ordersheet'!K918=\"\",\"\",'1. Ordersheet'!K918)","v":""},{"$f":"IF('1. Ordersheet'!L918=\"\",\"\",'1. Ordersheet'!L918)","v":""},{"$f":"IF('1. Ordersheet'!M918=\"\",\"\",'1. Ordersheet'!M918)","v":""},{"$f":"IF('1. Ordersheet'!N918=\"\",\"\",'1. Ordersheet'!N918)","v":""},{"$f":"IF('1. Ordersheet'!O918=\"\",\"\",'1. Ordersheet'!O918)","v":{"$error":"#N/A"}},{"$f":"IF('1. Ordersheet'!P918=\"\",\"\",'1. Ordersheet'!P918)","v":{"$error":"#N/A"}},{"$f":"IF('1. Ordersheet'!Q918=\"\",\"\",'1. Ordersheet'!Q918)","v":""},{"$f":"IF('1. Ordersheet'!R918=\"\",\"\",'1. Ordersheet'!R918)","v":""},{"$f":"IF('1. Ordersheet'!S918=\"\",\"\",'1. Ordersheet'!S918)","v":""},{"$f":"IF('1. Ordersheet'!V918=\"\",\"\",'1. Ordersheet'!V918)","v":""},{"$f":"IF('1. Ordersheet'!W918=\"\",\"\",'1. Ordersheet'!W918)","v":""},{"$f":"IF('1. Ordersheet'!X918=\"\",\"\",'1. Ordersheet'!X918)","v":""},{"$f":"IF('1. Ordersheet'!Y918=\"\",\"\",'1. Ordersheet'!Y918)","v":""},{"$f":"IF('1. Ordersheet'!Z918=\"\",\"\",'1. Ordersheet'!Z918)","v":""},{"$f":"IF('1. Ordersheet'!AA918=\"\",\"\",'1. Ordersheet'!AA918)","v":""},null,{"$f":"IF('1. Ordersheet'!AS918=\"\",\"\",'1. Ordersheet'!AS918)","v":""},{"$f":"IF('1. Ordersheet'!AT918=\"\",\"\",'1. Ordersheet'!AT918)","v":""},null,null,null,null,null,null,null,{"$f":"IF('1. Ordersheet'!AX918=\"\",\"\",'1. Ordersheet'!AX918)","v":""},{"$f":"IF('1. Ordersheet'!AY918=\"\",\"\",'1. Ordersheet'!AY918)","v":""},{"$f":"IF('1. Ordersheet'!AZ918=\"\",\"\",'1. Ordersheet'!AZ918)","v":""},{"$f":"IF('1. Ordersheet'!BA918=\"\",\"\",'1. Ordersheet'!BA918)","v":""},{"$f":"IF('1. Ordersheet'!BC918=\"\",\"\",'1. Ordersheet'!BC918)","v":""},{"$f":"IF('1. Ordersheet'!BD918=\"\",\"\",'1. Ordersheet'!BD918)","v":""},{"$f":"IF('1. Ordersheet'!BE918=\"\",\"\",'1. Ordersheet'!BE918)","v":""},{"$f":"IF('1. Ordersheet'!BF918=\"\",\"\",'1. Ordersheet'!BF918)","v":""},{"$f":"IF('1. Ordersheet'!BG918=\"\",\"\",'1. Ordersheet'!BG918)","v":"ZWO"},{"$f":"IF('1. Ordersheet'!BH918=\"\",\"\",'1. Ordersheet'!BH918)","v":""},{"$f":"IF('1. Ordersheet'!BI918=\"\",\"\",'1. Ordersheet'!BI918)","v":""},{"$f":"IF('1. Ordersheet'!BJ918=\"\",\"\",'1. Ordersheet'!BJ918)","v":""},{"$f":"IF('1. Ordersheet'!BK918=\"\",\"\",'1. Ordersheet'!BK918)","v":""},{"$f":"IF('1. Ordersheet'!BL918=\"\",\"\",'1. Ordersheet'!BL918)","v":""}]
[{"$f":"IF('1. Ordersheet'!F919=\"\",\"\",'1. Ordersheet'!F919)","v":""},{"$f":"IF('1. Ordersheet'!G919=\"\",\"\",'1. Ordersheet'!G919)","v":""},{"$f":"IF('1. Ordersheet'!H919=\"\",\"\",'1. Ordersheet'!H919)","v":""},{"$f":"IF('1. Ordersheet'!I919=\"\",\"\",'1. Ordersheet'!I919)","v":""},{"$f":"IF('1. Ordersheet'!J919=\"\",\"\",'1. Ordersheet'!J919)","v":""},{"$f":"IF('1. Ordersheet'!K919=\"\",\"\",'1. Ordersheet'!K919)","v":""},{"$f":"IF('1. Ordersheet'!L919=\"\",\"\",'1. Ordersheet'!L919)","v":""},{"$f":"IF('1. Ordersheet'!M919=\"\",\"\",'1. Ordersheet'!M919)","v":""},{"$f":"IF('1. Ordersheet'!N919=\"\",\"\",'1. Ordersheet'!N919)","v":""},{"$f":"IF('1. Ordersheet'!O919=\"\",\"\",'1. Ordersheet'!O919)","v":{"$error":"#N/A"}},{"$f":"IF('1. Ordersheet'!P919=\"\",\"\",'1. Ordersheet'!P919)","v":{"$error":"#N/A"}},{"$f":"IF('1. Ordersheet'!Q919=\"\",\"\",'1. Ordersheet'!Q919)","v":""},{"$f":"IF('1. Ordersheet'!R919=\"\",\"\",'1. Ordersheet'!R919)","v":""},{"$f":"IF('1. Ordersheet'!S919=\"\",\"\",'1. Ordersheet'!S919)","v":""},{"$f":"IF('1. Ordersheet'!V919=\"\",\"\",'1. Ordersheet'!V919)","v":""},{"$f":"IF('1. Ordersheet'!W919=\"\",\"\",'1. Ordersheet'!W919)","v":""},{"$f":"IF('1. Ordersheet'!X919=\"\",\"\",'1. Ordersheet'!X919)","v":""},{"$f":"IF('1. Ordersheet'!Y919=\"\",\"\",'1. Ordersheet'!Y919)","v":""},{"$f":"IF('1. Ordersheet'!Z919=\"\",\"\",'1. Ordersheet'!Z919)","v":""},{"$f":"IF('1. Ordersheet'!AA919=\"\",\"\",'1. Ordersheet'!AA919)","v":""},null,{"$f":"IF('1. Ordersheet'!AS919=\"\",\"\",'1. Ordersheet'!AS919)","v":""},{"$f":"IF('1. Ordersheet'!AT919=\"\",\"\",'1. Ordersheet'!AT919)","v":""},null,null,null,null,null,null,null,{"$f":"IF('1. Ordersheet'!AX919=\"\",\"\",'1. Ordersheet'!AX919)","v":""},{"$f":"IF('1. Ordersheet'!AY919=\"\",\"\",'1. Ordersheet'!AY919)","v":""},{"$f":"IF('1. Ordersheet'!AZ919=\"\",\"\",'1. Ordersheet'!AZ919)","v":""},{"$f":"IF('1. Ordersheet'!BA919=\"\",\"\",'1. Ordersheet'!BA919)","v":""},{"$f":"IF('1. Ordersheet'!BC919=\"\",\"\",'1. Ordersheet'!BC919)","v":""},{"$f":"IF('1. Ordersheet'!BD919=\"\",\"\",'1. Ordersheet'!BD919)","v":""},{"$f":"IF('1. Ordersheet'!BE919=\"\",\"\",'1. Ordersheet'!BE919)","v":""},{"$f":"IF('1. Ordersheet'!BF919=\"\",\"\",'1. Ordersheet'!BF919)","v":""},{"$f":"IF('1. Ordersheet'!BG919=\"\",\"\",'1. Ordersheet'!BG919)","v":"ZWO"},{"$f":"IF('1. Ordersheet'!BH919=\"\",\"\",'1. Ordersheet'!BH919)","v":""},{"$f":"IF('1. Ordersheet'!BI919=\"\",\"\",'1. Ordersheet'!BI919)","v":""},{"$f":"IF('1. Ordersheet'!BJ919=\"\",\"\",'1. Ordersheet'!BJ919)","v":""},{"$f":"IF('1. Ordersheet'!BK919=\"\",\"\",'1. Ordersheet'!BK919)","v":""},{"$f":"IF('1. Ordersheet'!BL919=\"\",\"\",'1. Ordersheet'!BL919)","v":""}]
[{"$f":"IF('1. Ordersheet'!F920=\"\",\"\",'1. Ordersheet'!F920)","v":""},{"$f":"IF('1. Ordersheet'!G920=\"\",\"\",'1. Ordersheet'!G920)","v":""},{"$f":"IF('1. Ordersheet'!H920=\"\",\"\",'1. Ordersheet'!H920)","v":""},{"$f":"IF('1. Ordersheet'!I920=\"\",\"\",'1. Ordersheet'!I920)","v":""},{"$f":"IF('1. Ordersheet'!J920=\"\",\"\",'1. Ordersheet'!J920)","v":""},{"$f":"IF('1. Ordersheet'!K920=\"\",\"\",'1. Ordersheet'!K920)","v":""},{"$f":"IF('1. Ordersheet'!L920=\"\",\"\",'1. Ordersheet'!L920)","v":""},{"$f":"IF('1. Ordersheet'!M920=\"\",\"\",'1. Ordersheet'!M920)","v":""},{"$f":"IF('1. Ordersheet'!N920=\"\",\"\",'1. Ordersheet'!N920)","v":""},{"$f":"IF('1. Ordersheet'!O920=\"\",\"\",'1. Ordersheet'!O920)","v":{"$error":"#N/A"}},{"$f":"IF('1. Ordersheet'!P920=\"\",\"\",'1. Ordersheet'!P920)","v":{"$error":"#N/A"}},{"$f":"IF('1. Ordersheet'!Q920=\"\",\"\",'1. Ordersheet'!Q920)","v":""},{"$f":"IF('1. Ordersheet'!R920=\"\",\"\",'1. Ordersheet'!R920)","v":""},{"$f":"IF('1. Ordersheet'!S920=\"\",\"\",'1. Ordersheet'!S920)","v":""},{"$f":"IF('1. Ordersheet'!V920=\"\",\"\",'1. Ordersheet'!V920)","v":""},{"$f":"IF('1. Ordersheet'!W920=\"\",\"\",'1. Ordersheet'!W920)","v":""},{"$f":"IF('1. Ordersheet'!X920=\"\",\"\",'1. Ordersheet'!X920)","v":""},{"$f":"IF('1. Ordersheet'!Y920=\"\",\"\",'1. Ordersheet'!Y920)","v":""},{"$f":"IF('1. Ordersheet'!Z920=\"\",\"\",'1. Ordersheet'!Z920)","v":""},{"$f":"IF('1. Ordersheet'!AA920=\"\",\"\",'1. Ordersheet'!AA920)","v":""},null,{"$f":"IF('1. Ordersheet'!AS920=\"\",\"\",'1. Ordersheet'!AS920)","v":""},{"$f":"IF('1. Ordersheet'!AT920=\"\",\"\",'1. Ordersheet'!AT920)","v":""},null,null,null,null,null,null,null,{"$f":"IF('1. Ordersheet'!AX920=\"\",\"\",'1. Ordersheet'!AX920)","v":""},{"$f":"IF('1. Ordersheet'!AY920=\"\",\"\",'1. Ordersheet'!AY920)","v":""},{"$f":"IF('1. Ordersheet'!AZ920=\"\",\"\",'1. Ordersheet'!AZ920)","v":""},{"$f":"IF('1. Ordersheet'!BA920=\"\",\"\",'1. Ordersheet'!BA920)","v":""},{"$f":"IF('1. Ordersheet'!BC920=\"\",\"\",'1. Ordersheet'!BC920)","v":""},{"$f":"IF('1. Ordersheet'!BD920=\"\",\"\",'1. Ordersheet'!BD920)","v":""},{"$f":"IF('1. Ordersheet'!BE920=\"\",\"\",'1. Ordersheet'!BE920)","v":""},{"$f":"IF('1. Ordersheet'!BF920=\"\",\"\",'1. Ordersheet'!BF920)","v":""},{"$f":"IF('1. Ordersheet'!BG920=\"\",\"\",'1. Ordersheet'!BG920)","v":"ZWO"},{"$f":"IF('1. Ordersheet'!BH920=\"\",\"\",'1. Ordersheet'!BH920)","v":""},{"$f":"IF('1. Ordersheet'!BI920=\"\",\"\",'1. Ordersheet'!BI920)","v":""},{"$f":"IF('1. Ordersheet'!BJ920=\"\",\"\",'1. Ordersheet'!BJ920)","v":""},{"$f":"IF('1. Ordersheet'!BK920=\"\",\"\",'1. Ordersheet'!BK920)","v":""},{"$f":"IF('1. Ordersheet'!BL920=\"\",\"\",'1. Ordersheet'!BL920)","v":""}]
[{"$f":"IF('1. Ordersheet'!F921=\"\",\"\",'1. Ordersheet'!F921)","v":""},{"$f":"IF('1. Ordersheet'!G921=\"\",\"\",'1. Ordersheet'!G921)","v":""},{"$f":"IF('1. Ordersheet'!H921=\"\",\"\",'1. Ordersheet'!H921)","v":""},{"$f":"IF('1. Ordersheet'!I921=\"\",\"\",'1. Ordersheet'!I921)","v":""},{"$f":"IF('1. Ordersheet'!J921=\"\",\"\",'1. Ordersheet'!J921)","v":""},{"$f":"IF('1. Ordersheet'!K921=\"\",\"\",'1. Ordersheet'!K921)","v":""},{"$f":"IF('1. Ordersheet'!L921=\"\",\"\",'1. Ordersheet'!L921)","v":""},{"$f":"IF('1. Ordersheet'!M921=\"\",\"\",'1. Ordersheet'!M921)","v":""},{"$f":"IF('1. Ordersheet'!N921=\"\",\"\",'1. Ordersheet'!N921)","v":""},{"$f":"IF('1. Ordersheet'!O921=\"\",\"\",'1. Ordersheet'!O921)","v":{"$error":"#N/A"}},{"$f":"IF('1. Ordersheet'!P921=\"\",\"\",'1. Ordersheet'!P921)","v":{"$error":"#N/A"}},{"$f":"IF('1. Ordersheet'!Q921=\"\",\"\",'1. Ordersheet'!Q921)","v":""},{"$f":"IF('1. Ordersheet'!R921=\"\",\"\",'1. Ordersheet'!R921)","v":""},{"$f":"IF('1. Ordersheet'!S921=\"\",\"\",'1. Ordersheet'!S921)","v":""},{"$f":"IF('1. Ordersheet'!V921=\"\",\"\",'1. Ordersheet'!V921)","v":""},{"$f":"IF('1. Ordersheet'!W921=\"\",\"\",'1. Ordersheet'!W921)","v":""},{"$f":"IF('1. Ordersheet'!X921=\"\",\"\",'1. Ordersheet'!X921)","v":""},{"$f":"IF('1. Ordersheet'!Y921=\"\",\"\",'1. Ordersheet'!Y921)","v":""},{"$f":"IF('1. Ordersheet'!Z921=\"\",\"\",'1. Ordersheet'!Z921)","v":""},{"$f":"IF('1. Ordersheet'!AA921=\"\",\"\",'1. Ordersheet'!AA921)","v":""},null,{"$f":"IF('1. Ordersheet'!AS921=\"\",\"\",'1. Ordersheet'!AS921)","v":""},{"$f":"IF('1. Ordersheet'!AT921=\"\",\"\",'1. Ordersheet'!AT921)","v":""},null,null,null,null,null,null,null,{"$f":"IF('1. Ordersheet'!AX921=\"\",\"\",'1. Ordersheet'!AX921)","v":""},{"$f":"IF('1. Ordersheet'!AY921=\"\",\"\",'1. Ordersheet'!AY921)","v":""},{"$f":"IF('1. Ordersheet'!AZ921=\"\",\"\",'1. Ordersheet'!AZ921)","v":""},{"$f":"IF('1. Ordersheet'!BA921=\"\",\"\",'1. Ordersheet'!BA921)","v":""},{"$f":"IF('1. Ordersheet'!BC921=\"\",\"\",'1. Ordersheet'!BC921)","v":""},{"$f":"IF('1. Ordersheet'!BD921=\"\",\"\",'1. Ordersheet'!BD921)","v":""},{"$f":"IF('1. Ordersheet'!BE921=\"\",\"\",'1. Ordersheet'!BE921)","v":""},{"$f":"IF('1. Ordersheet'!BF921=\"\",\"\",'1. Ordersheet'!BF921)","v":""},{"$f":"IF('1. Ordersheet'!BG921=\"\",\"\",'1. Ordersheet'!BG921)","v":"ZWO"},{"$f":"IF('1. Ordersheet'!BH921=\"\",\"\",'1. Ordersheet'!BH921)","v":""},{"$f":"IF('1. Ordersheet'!BI921=\"\",\"\",'1. Ordersheet'!BI921)","v":""},{"$f":"IF('1. Ordersheet'!BJ921=\"\",\"\",'1. Ordersheet'!BJ921)","v":""},{"$f":"IF('1. Ordersheet'!BK921=\"\",\"\",'1. Ordersheet'!BK921)","v":""},{"$f":"IF('1. Ordersheet'!BL921=\"\",\"\",'1. Ordersheet'!BL921)","v":""}]
[{"$f":"IF('1. Ordersheet'!F922=\"\",\"\",'1. Ordersheet'!F922)","v":""},{"$f":"IF('1. Ordersheet'!G922=\"\",\"\",'1. Ordersheet'!G922)","v":""},{"$f":"IF('1. Ordersheet'!H922=\"\",\"\",'1. Ordersheet'!H922)","v":""},{"$f":"IF('1. Ordersheet'!I922=\"\",\"\",'1. Ordersheet'!I922)","v":""},{"$f":"IF('1. Ordersheet'!J922=\"\",\"\",'1. Ordersheet'!J922)","v":""},{"$f":"IF('1. Ordersheet'!K922=\"\",\"\",'1. Ordersheet'!K922)","v":""},{"$f":"IF('1. Ordersheet'!L922=\"\",\"\",'1. Ordersheet'!L922)","v":""},{"$f":"IF('1. Ordersheet'!M922=\"\",\"\",'1. Ordersheet'!M922)","v":""},{"$f":"IF('1. Ordersheet'!N922=\"\",\"\",'1. Ordersheet'!N922)","v":""},{"$f":"IF('1. Ordersheet'!O922=\"\",\"\",'1. Ordersheet'!O922)","v":{"$error":"#N/A"}},{"$f":"IF('1. Ordersheet'!P922=\"\",\"\",'1. Ordersheet'!P922)","v":{"$error":"#N/A"}},{"$f":"IF('1. Ordersheet'!Q922=\"\",\"\",'1. Ordersheet'!Q922)","v":""},{"$f":"IF('1. Ordersheet'!R922=\"\",\"\",'1. Ordersheet'!R922)","v":""},{"$f":"IF('1. Ordersheet'!S922=\"\",\"\",'1. Ordersheet'!S922)","v":""},{"$f":"IF('1. Ordersheet'!V922=\"\",\"\",'1. Ordersheet'!V922)","v":""},{"$f":"IF('1. Ordersheet'!W922=\"\",\"\",'1. Ordersheet'!W922)","v":""},{"$f":"IF('1. Ordersheet'!X922=\"\",\"\",'1. Ordersheet'!X922)","v":""},{"$f":"IF('1. Ordersheet'!Y922=\"\",\"\",'1. Ordersheet'!Y922)","v":""},{"$f":"IF('1. Ordersheet'!Z922=\"\",\"\",'1. Ordersheet'!Z922)","v":""},{"$f":"IF('1. Ordersheet'!AA922=\"\",\"\",'1. Ordersheet'!AA922)","v":""},null,{"$f":"IF('1. Ordersheet'!AS922=\"\",\"\",'1. Ordersheet'!AS922)","v":""},{"$f":"IF('1. Ordersheet'!AT922=\"\",\"\",'1. Ordersheet'!AT922)","v":""},null,null,null,null,null,null,null,{"$f":"IF('1. Ordersheet'!AX922=\"\",\"\",'1. Ordersheet'!AX922)","v":""},{"$f":"IF('1. Ordersheet'!AY922=\"\",\"\",'1. Ordersheet'!AY922)","v":""},{"$f":"IF('1. Ordersheet'!AZ922=\"\",\"\",'1. Ordersheet'!AZ922)","v":""},{"$f":"IF('1. Ordersheet'!BA922=\"\",\"\",'1. Ordersheet'!BA922)","v":""},{"$f":"IF('1. Ordersheet'!BC922=\"\",\"\",'1. Ordersheet'!BC922)","v":""},{"$f":"IF('1. Ordersheet'!BD922=\"\",\"\",'1. Ordersheet'!BD922)","v":""},{"$f":"IF('1. Ordersheet'!BE922=\"\",\"\",'1. Ordersheet'!BE922)","v":""},{"$f":"IF('1. Ordersheet'!BF922=\"\",\"\",'1. Ordersheet'!BF922)","v":""},{"$f":"IF('1. Ordersheet'!BG922=\"\",\"\",'1. Ordersheet'!BG922)","v":"ZWO"},{"$f":"IF('1. Ordersheet'!BH922=\"\",\"\",'1. Ordersheet'!BH922)","v":""},{"$f":"IF('1. Ordersheet'!BI922=\"\",\"\",'1. Ordersheet'!BI922)","v":""},{"$f":"IF('1. Ordersheet'!BJ922=\"\",\"\",'1. Ordersheet'!BJ922)","v":""},{"$f":"IF('1. Ordersheet'!BK922=\"\",\"\",'1. Ordersheet'!BK922)","v":""},{"$f":"IF('1. Ordersheet'!BL922=\"\",\"\",'1. Ordersheet'!BL922)","v":""}]
[{"$f":"IF('1. Ordersheet'!F923=\"\",\"\",'1. Ordersheet'!F923)","v":""},{"$f":"IF('1. Ordersheet'!G923=\"\",\"\",'1. Ordersheet'!G923)","v":""},{"$f":"IF('1. Ordersheet'!H923=\"\",\"\",'1. Ordersheet'!H923)","v":""},{"$f":"IF('1. Ordersheet'!I923=\"\",\"\",'1. Ordersheet'!I923)","v":""},{"$f":"IF('1. Ordersheet'!J923=\"\",\"\",'1. Ordersheet'!J923)","v":""},{"$f":"IF('1. Ordersheet'!K923=\"\",\"\",'1. Ordersheet'!K923)","v":""},{"$f":"IF('1. Ordersheet'!L923=\"\",\"\",'1. Ordersheet'!L923)","v":""},{"$f":"IF('1. Ordersheet'!M923=\"\",\"\",'1. Ordersheet'!M923)","v":""},{"$f":"IF('1. Ordersheet'!N923=\"\",\"\",'1. Ordersheet'!N923)","v":""},{"$f":"IF('1. Ordersheet'!O923=\"\",\"\",'1. Ordersheet'!O923)","v":{"$error":"#N/A"}},{"$f":"IF('1. Ordersheet'!P923=\"\",\"\",'1. Ordersheet'!P923)","v":{"$error":"#N/A"}},{"$f":"IF('1. Ordersheet'!Q923=\"\",\"\",'1. Ordersheet'!Q923)","v":""},{"$f":"IF('1. Ordersheet'!R923=\"\",\"\",'1. Ordersheet'!R923)","v":""},{"$f":"IF('1. Ordersheet'!S923=\"\",\"\",'1. Ordersheet'!S923)","v":""},{"$f":"IF('1. Ordersheet'!V923=\"\",\"\",'1. Ordersheet'!V923)","v":""},{"$f":"IF('1. Ordersheet'!W923=\"\",\"\",'1. Ordersheet'!W923)","v":""},{"$f":"IF('1. Ordersheet'!X923=\"\",\"\",'1. Ordersheet'!X923)","v":""},{"$f":"IF('1. Ordersheet'!Y923=\"\",\"\",'1. Ordersheet'!Y923)","v":""},{"$f":"IF('1. Ordersheet'!Z923=\"\",\"\",'1. Ordersheet'!Z923)","v":""},{"$f":"IF('1. Ordersheet'!AA923=\"\",\"\",'1. Ordersheet'!AA923)","v":""},null,{"$f":"IF('1. Ordersheet'!AS923=\"\",\"\",'1. Ordersheet'!AS923)","v":""},{"$f":"IF('1. Ordersheet'!AT923=\"\",\"\",'1. Ordersheet'!AT923)","v":""},null,null,null,null,null,null,null,{"$f":"IF('1. Ordersheet'!AX923=\"\",\"\",'1. Ordersheet'!AX923)","v":""},{"$f":"IF('1. Ordersheet'!AY923=\"\",\"\",'1. Ordersheet'!AY923)","v":""},{"$f":"IF('1. Ordersheet'!AZ923=\"\",\"\",'1. Ordersheet'!AZ923)","v":""},{"$f":"IF('1. Ordersheet'!BA923=\"\",\"\",'1. Ordersheet'!BA923)","v":""},{"$f":"IF('1. Ordersheet'!BC923=\"\",\"\",'1. Ordersheet'!BC923)","v":""},{"$f":"IF('1. Ordersheet'!BD923=\"\",\"\",'1. Ordersheet'!BD923)","v":""},{"$f":"IF('1. Ordersheet'!BE923=\"\",\"\",'1. Ordersheet'!BE923)","v":""},{"$f":"IF('1. Ordersheet'!BF923=\"\",\"\",'1. Ordersheet'!BF923)","v":""},{"$f":"IF('1. Ordersheet'!BG923=\"\",\"\",'1. Ordersheet'!BG923)","v":"ZWO"},{"$f":"IF('1. Ordersheet'!BH923=\"\",\"\",'1. Ordersheet'!BH923)","v":""},{"$f":"IF('1. Ordersheet'!BI923=\"\",\"\",'1. Ordersheet'!BI923)","v":""},{"$f":"IF('1. Ordersheet'!BJ923=\"\",\"\",'1. Ordersheet'!BJ923)","v":""},{"$f":"IF('1. Ordersheet'!BK923=\"\",\"\",'1. Ordersheet'!BK923)","v":""},{"$f":"IF('1. Ordersheet'!BL923=\"\",\"\",'1. Ordersheet'!BL923)","v":""}]
[{"$f":"IF('1. Ordersheet'!F924=\"\",\"\",'1. Ordersheet'!F924)","v":""},{"$f":"IF('1. Ordersheet'!G924=\"\",\"\",'1. Ordersheet'!G924)","v":""},{"$f":"IF('1. Ordersheet'!H924=\"\",\"\",'1. Ordersheet'!H924)","v":""},{"$f":"IF('1. Ordersheet'!I924=\"\",\"\",'1. Ordersheet'!I924)","v":""},{"$f":"IF('1. Ordersheet'!J924=\"\",\"\",'1. Ordersheet'!J924)","v":""},{"$f":"IF('1. Ordersheet'!K924=\"\",\"\",'1. Ordersheet'!K924)","v":""},{"$f":"IF('1. Ordersheet'!L924=\"\",\"\",'1. Ordersheet'!L924)","v":""},{"$f":"IF('1. Ordersheet'!M924=\"\",\"\",'1. Ordersheet'!M924)","v":""},{"$f":"IF('1. Ordersheet'!N924=\"\",\"\",'1. Ordersheet'!N924)","v":""},{"$f":"IF('1. Ordersheet'!O924=\"\",\"\",'1. Ordersheet'!O924)","v":{"$error":"#N/A"}},{"$f":"IF('1. Ordersheet'!P924=\"\",\"\",'1. Ordersheet'!P924)","v":{"$error":"#N/A"}},{"$f":"IF('1. Ordersheet'!Q924=\"\",\"\",'1. Ordersheet'!Q924)","v":""},{"$f":"IF('1. Ordersheet'!R924=\"\",\"\",'1. Ordersheet'!R924)","v":""},{"$f":"IF('1. Ordersheet'!S924=\"\",\"\",'1. Ordersheet'!S924)","v":""},{"$f":"IF('1. Ordersheet'!V924=\"\",\"\",'1. Ordersheet'!V924)","v":""},{"$f":"IF('1. Ordersheet'!W924=\"\",\"\",'1. Ordersheet'!W924)","v":""},{"$f":"IF('1. Ordersheet'!X924=\"\",\"\",'1. Ordersheet'!X924)","v":""},{"$f":"IF('1. Ordersheet'!Y924=\"\",\"\",'1. Ordersheet'!Y924)","v":""},{"$f":"IF('1. Ordersheet'!Z924=\"\",\"\",'1. Ordersheet'!Z924)","v":""},{"$f":"IF('1. Ordersheet'!AA924=\"\",\"\",'1. Ordersheet'!AA924)","v":""},null,{"$f":"IF('1. Ordersheet'!AS924=\"\",\"\",'1. Ordersheet'!AS924)","v":""},{"$f":"IF('1. Ordersheet'!AT924=\"\",\"\",'1. Ordersheet'!AT924)","v":""},null,null,null,null,null,null,null,{"$f":"IF('1. Ordersheet'!AX924=\"\",\"\",'1. Ordersheet'!AX924)","v":""},{"$f":"IF('1. Ordersheet'!AY924=\"\",\"\",'1. Ordersheet'!AY924)","v":""},{"$f":"IF('1. Ordersheet'!AZ924=\"\",\"\",'1. Ordersheet'!AZ924)","v":""},{"$f":"IF('1. Ordersheet'!BA924=\"\",\"\",'1. Ordersheet'!BA924)","v":""},{"$f":"IF('1. Ordersheet'!BC924=\"\",\"\",'1. Ordersheet'!BC924)","v":""},{"$f":"IF('1. Ordersheet'!BD924=\"\",\"\",'1. Ordersheet'!BD924)","v":""},{"$f":"IF('1. Ordersheet'!BE924=\"\",\"\",'1. Ordersheet'!BE924)","v":""},{"$f":"IF('1. Ordersheet'!BF924=\"\",\"\",'1. Ordersheet'!BF924)","v":""},{"$f":"IF('1. Ordersheet'!BG924=\"\",\"\",'1. Ordersheet'!BG924)","v":"ZWO"},{"$f":"IF('1. Ordersheet'!BH924=\"\",\"\",'1. Ordersheet'!BH924)","v":""},{"$f":"IF('1. Ordersheet'!BI924=\"\",\"\",'1. Ordersheet'!BI924)","v":""},{"$f":"IF('1. Ordersheet'!BJ924=\"\",\"\",'1. Ordersheet'!BJ924)","v":""},{"$f":"IF('1. Ordersheet'!BK924=\"\",\"\",'1. Ordersheet'!BK924)","v":""},{"$f":"IF('1. Ordersheet'!BL924=\"\",\"\",'1. Ordersheet'!BL924)","v":""}]
[{"$f":"IF('1. Ordersheet'!F925=\"\",\"\",'1. Ordersheet'!F925)","v":""},{"$f":"IF('1. Ordersheet'!G925=\"\",\"\",'1. Ordersheet'!G925)","v":""},{"$f":"IF('1. Ordersheet'!H925=\"\",\"\",'1. Ordersheet'!H925)","v":""},{"$f":"IF('1. Ordersheet'!I925=\"\",\"\",'1. Ordersheet'!I925)","v":""},{"$f":"IF('1. Ordersheet'!J925=\"\",\"\",'1. Ordersheet'!J925)","v":""},{"$f":"IF('1. Ordersheet'!K925=\"\",\"\",'1. Ordersheet'!K925)","v":""},{"$f":"IF('1. Ordersheet'!L925=\"\",\"\",'1. Ordersheet'!L925)","v":""},{"$f":"IF('1. Ordersheet'!M925=\"\",\"\",'1. Ordersheet'!M925)","v":""},{"$f":"IF('1. Ordersheet'!N925=\"\",\"\",'1. Ordersheet'!N925)","v":""},{"$f":"IF('1. Ordersheet'!O925=\"\",\"\",'1. Ordersheet'!O925)","v":{"$error":"#N/A"}},{"$f":"IF('1. Ordersheet'!P925=\"\",\"\",'1. Ordersheet'!P925)","v":{"$error":"#N/A"}},{"$f":"IF('1. Ordersheet'!Q925=\"\",\"\",'1. Ordersheet'!Q925)","v":""},{"$f":"IF('1. Ordersheet'!R925=\"\",\"\",'1. Ordersheet'!R925)","v":""},{"$f":"IF('1. Ordersheet'!S925=\"\",\"\",'1. Ordersheet'!S925)","v":""},{"$f":"IF('1. Ordersheet'!V925=\"\",\"\",'1. Ordersheet'!V925)","v":""},{"$f":"IF('1. Ordersheet'!W925=\"\",\"\",'1. Ordersheet'!W925)","v":""},{"$f":"IF('1. Ordersheet'!X925=\"\",\"\",'1. Ordersheet'!X925)","v":""},{"$f":"IF('1. Ordersheet'!Y925=\"\",\"\",'1. Ordersheet'!Y925)","v":""},{"$f":"IF('1. Ordersheet'!Z925=\"\",\"\",'1. Ordersheet'!Z925)","v":""},{"$f":"IF('1. Ordersheet'!AA925=\"\",\"\",'1. Ordersheet'!AA925)","v":""},null,{"$f":"IF('1. Ordersheet'!AS925=\"\",\"\",'1. Ordersheet'!AS925)","v":""},{"$f":"IF('1. Ordersheet'!AT925=\"\",\"\",'1. Ordersheet'!AT925)","v":""},null,null,null,null,null,null,null,{"$f":"IF('1. Ordersheet'!AX925=\"\",\"\",'1. Ordersheet'!AX925)","v":""},{"$f":"IF('1. Ordersheet'!AY925=\"\",\"\",'1. Ordersheet'!AY925)","v":""},{"$f":"IF('1. Ordersheet'!AZ925=\"\",\"\",'1. Ordersheet'!AZ925)","v":""},{"$f":"IF('1. Ordersheet'!BA925=\"\",\"\",'1. Ordersheet'!BA925)","v":""},{"$f":"IF('1. Ordersheet'!BC925=\"\",\"\",'1. Ordersheet'!BC925)","v":""},{"$f":"IF('1. Ordersheet'!BD925=\"\",\"\",'1. Ordersheet'!BD925)","v":""},{"$f":"IF('1. Ordersheet'!BE925=\"\",\"\",'1. Ordersheet'!BE925)","v":""},{"$f":"IF('1. Ordersheet'!BF925=\"\",\"\",'1. Ordersheet'!BF925)","v":""},{"$f":"IF('1. Ordersheet'!BG925=\"\",\"\",'1. Ordersheet'!BG925)","v":"ZWO"},{"$f":"IF('1. Ordersheet'!BH925=\"\",\"\",'1. Ordersheet'!BH925)","v":""},{"$f":"IF('1. Ordersheet'!BI925=\"\",\"\",'1. Ordersheet'!BI925)","v":""},{"$f":"IF('1. Ordersheet'!BJ925=\"\",\"\",'1. Ordersheet'!BJ925)","v":""},{"$f":"IF('1. Ordersheet'!BK925=\"\",\"\",'1. Ordersheet'!BK925)","v":""},{"$f":"IF('1. Ordersheet'!BL925=\"\",\"\",'1. Ordersheet'!BL925)","v":""}]
[{"$f":"IF('1. Ordersheet'!F926=\"\",\"\",'1. Ordersheet'!F926)","v":""},{"$f":"IF('1. Ordersheet'!G926=\"\",\"\",'1. Ordersheet'!G926)","v":""},{"$f":"IF('1. Ordersheet'!H926=\"\",\"\",'1. Ordersheet'!H926)","v":""},{"$f":"IF('1. Ordersheet'!I926=\"\",\"\",'1. Ordersheet'!I926)","v":""},{"$f":"IF('1. Ordersheet'!J926=\"\",\"\",'1. Ordersheet'!J926)","v":""},{"$f":"IF('1. Ordersheet'!K926=\"\",\"\",'1. Ordersheet'!K926)","v":""},{"$f":"IF('1. Ordersheet'!L926=\"\",\"\",'1. Ordersheet'!L926)","v":""},{"$f":"IF('1. Ordersheet'!M926=\"\",\"\",'1. Ordersheet'!M926)","v":""},{"$f":"IF('1. Ordersheet'!N926=\"\",\"\",'1. Ordersheet'!N926)","v":""},{"$f":"IF('1. Ordersheet'!O926=\"\",\"\",'1. Ordersheet'!O926)","v":{"$error":"#N/A"}},{"$f":"IF('1. Ordersheet'!P926=\"\",\"\",'1. Ordersheet'!P926)","v":{"$error":"#N/A"}},{"$f":"IF('1. Ordersheet'!Q926=\"\",\"\",'1. Ordersheet'!Q926)","v":""},{"$f":"IF('1. Ordersheet'!R926=\"\",\"\",'1. Ordersheet'!R926)","v":""},{"$f":"IF('1. Ordersheet'!S926=\"\",\"\",'1. Ordersheet'!S926)","v":""},{"$f":"IF('1. Ordersheet'!V926=\"\",\"\",'1. Ordersheet'!V926)","v":""},{"$f":"IF('1. Ordersheet'!W926=\"\",\"\",'1. Ordersheet'!W926)","v":""},{"$f":"IF('1. Ordersheet'!X926=\"\",\"\",'1. Ordersheet'!X926)","v":""},{"$f":"IF('1. Ordersheet'!Y926=\"\",\"\",'1. Ordersheet'!Y926)","v":""},{"$f":"IF('1. Ordersheet'!Z926=\"\",\"\",'1. Ordersheet'!Z926)","v":""},{"$f":"IF('1. Ordersheet'!AA926=\"\",\"\",'1. Ordersheet'!AA926)","v":""},null,{"$f":"IF('1. Ordersheet'!AS926=\"\",\"\",'1. Ordersheet'!AS926)","v":""},{"$f":"IF('1. Ordersheet'!AT926=\"\",\"\",'1. Ordersheet'!AT926)","v":""},null,null,null,null,null,null,null,{"$f":"IF('1. Ordersheet'!AX926=\"\",\"\",'1. Ordersheet'!AX926)","v":""},{"$f":"IF('1. Ordersheet'!AY926=\"\",\"\",'1. Ordersheet'!AY926)","v":""},{"$f":"IF('1. Ordersheet'!AZ926=\"\",\"\",'1. Ordersheet'!AZ926)","v":""},{"$f":"IF('1. Ordersheet'!BA926=\"\",\"\",'1. Ordersheet'!BA926)","v":""},{"$f":"IF('1. Ordersheet'!BC926=\"\",\"\",'1. Ordersheet'!BC926)","v":""},{"$f":"IF('1. Ordersheet'!BD926=\"\",\"\",'1. Ordersheet'!BD926)","v":""},{"$f":"IF('1. Ordersheet'!BE926=\"\",\"\",'1. Ordersheet'!BE926)","v":""},{"$f":"IF('1. Ordersheet'!BF926=\"\",\"\",'1. Ordersheet'!BF926)","v":""},{"$f":"IF('1. Ordersheet'!BG926=\"\",\"\",'1. Ordersheet'!BG926)","v":"ZWO"},{"$f":"IF('1. Ordersheet'!BH926=\"\",\"\",'1. Ordersheet'!BH926)","v":""},{"$f":"IF('1. Ordersheet'!BI926=\"\",\"\",'1. Ordersheet'!BI926)","v":""},{"$f":"IF('1. Ordersheet'!BJ926=\"\",\"\",'1. Ordersheet'!BJ926)","v":""},{"$f":"IF('1. Ordersheet'!BK926=\"\",\"\",'1. Ordersheet'!BK926)","v":""},{"$f":"IF('1. Ordersheet'!BL926=\"\",\"\",'1. Ordersheet'!BL926)","v":""}]
[{"$f":"IF('1. Ordersheet'!F927=\"\",\"\",'1. Ordersheet'!F927)","v":""},{"$f":"IF('1. Ordersheet'!G927=\"\",\"\",'1. Ordersheet'!G927)","v":""},{"$f":"IF('1. Ordersheet'!H927=\"\",\"\",'1. Ordersheet'!H927)","v":""},{"$f":"IF('1. Ordersheet'!I927=\"\",\"\",'1. Ordersheet'!I927)","v":""},{"$f":"IF('1. Ordersheet'!J927=\"\",\"\",'1. Ordersheet'!J927)","v":""},{"$f":"IF('1. Ordersheet'!K927=\"\",\"\",'1. Ordersheet'!K927)","v":""},{"$f":"IF('1. Ordersheet'!L927=\"\",\"\",'1. Ordersheet'!L927)","v":""},{"$f":"IF('1. Ordersheet'!M927=\"\",\"\",'1. Ordersheet'!M927)","v":""},{"$f":"IF('1. Ordersheet'!N927=\"\",\"\",'1. Ordersheet'!N927)","v":""},{"$f":"IF('1. Ordersheet'!O927=\"\",\"\",'1. Ordersheet'!O927)","v":{"$error":"#N/A"}},{"$f":"IF('1. Ordersheet'!P927=\"\",\"\",'1. Ordersheet'!P927)","v":{"$error":"#N/A"}},{"$f":"IF('1. Ordersheet'!Q927=\"\",\"\",'1. Ordersheet'!Q927)","v":""},{"$f":"IF('1. Ordersheet'!R927=\"\",\"\",'1. Ordersheet'!R927)","v":""},{"$f":"IF('1. Ordersheet'!S927=\"\",\"\",'1. Ordersheet'!S927)","v":""},{"$f":"IF('1. Ordersheet'!V927=\"\",\"\",'1. Ordersheet'!V927)","v":""},{"$f":"IF('1. Ordersheet'!W927=\"\",\"\",'1. Ordersheet'!W927)","v":""},{"$f":"IF('1. Ordersheet'!X927=\"\",\"\",'1. Ordersheet'!X927)","v":""},{"$f":"IF('1. Ordersheet'!Y927=\"\",\"\",'1. Ordersheet'!Y927)","v":""},{"$f":"IF('1. Ordersheet'!Z927=\"\",\"\",'1. Ordersheet'!Z927)","v":""},{"$f":"IF('1. Ordersheet'!AA927=\"\",\"\",'1. Ordersheet'!AA927)","v":""},null,{"$f":"IF('1. Ordersheet'!AS927=\"\",\"\",'1. Ordersheet'!AS927)","v":""},{"$f":"IF('1. Ordersheet'!AT927=\"\",\"\",'1. Ordersheet'!AT927)","v":""},null,null,null,null,null,null,null,{"$f":"IF('1. Ordersheet'!AX927=\"\",\"\",'1. Ordersheet'!AX927)","v":""},{"$f":"IF('1. Ordersheet'!AY927=\"\",\"\",'1. Ordersheet'!AY927)","v":""},{"$f":"IF('1. Ordersheet'!AZ927=\"\",\"\",'1. Ordersheet'!AZ927)","v":""},{"$f":"IF('1. Ordersheet'!BA927=\"\",\"\",'1. Ordersheet'!BA927)","v":""},{"$f":"IF('1. Ordersheet'!BC927=\"\",\"\",'1. Ordersheet'!BC927)","v":""},{"$f":"IF('1. Ordersheet'!BD927=\"\",\"\",'1. Ordersheet'!BD927)","v":""},{"$f":"IF('1. Ordersheet'!BE927=\"\",\"\",'1. Ordersheet'!BE927)","v":""},{"$f":"IF('1. Ordersheet'!BF927=\"\",\"\",'1. Ordersheet'!BF927)","v":""},{"$f":"IF('1. Ordersheet'!BG927=\"\",\"\",'1. Ordersheet'!BG927)","v":"ZWO"},{"$f":"IF('1. Ordersheet'!BH927=\"\",\"\",'1. Ordersheet'!BH927)","v":""},{"$f":"IF('1. Ordersheet'!BI927=\"\",\"\",'1. Ordersheet'!BI927)","v":""},{"$f":"IF('1. Ordersheet'!BJ927=\"\",\"\",'1. Ordersheet'!BJ927)","v":""},{"$f":"IF('1. Ordersheet'!BK927=\"\",\"\",'1. Ordersheet'!BK927)","v":""},{"$f":"IF('1. Ordersheet'!BL927=\"\",\"\",'1. Ordersheet'!BL927)","v":""}]
[{"$f":"IF('1. Ordersheet'!F928=\"\",\"\",'1. Ordersheet'!F928)","v":""},{"$f":"IF('1. Ordersheet'!G928=\"\",\"\",'1. Ordersheet'!G928)","v":""},{"$f":"IF('1. Ordersheet'!H928=\"\",\"\",'1. Ordersheet'!H928)","v":""},{"$f":"IF('1. Ordersheet'!I928=\"\",\"\",'1. Ordersheet'!I928)","v":""},{"$f":"IF('1. Ordersheet'!J928=\"\",\"\",'1. Ordersheet'!J928)","v":""},{"$f":"IF('1. Ordersheet'!K928=\"\",\"\",'1. Ordersheet'!K928)","v":""},{"$f":"IF('1. Ordersheet'!L928=\"\",\"\",'1. Ordersheet'!L928)","v":""},{"$f":"IF('1. Ordersheet'!M928=\"\",\"\",'1. Ordersheet'!M928)","v":""},{"$f":"IF('1. Ordersheet'!N928=\"\",\"\",'1. Ordersheet'!N928)","v":""},{"$f":"IF('1. Ordersheet'!O928=\"\",\"\",'1. Ordersheet'!O928)","v":{"$error":"#N/A"}},{"$f":"IF('1. Ordersheet'!P928=\"\",\"\",'1. Ordersheet'!P928)","v":{"$error":"#N/A"}},{"$f":"IF('1. Ordersheet'!Q928=\"\",\"\",'1. Ordersheet'!Q928)","v":""},{"$f":"IF('1. Ordersheet'!R928=\"\",\"\",'1. Ordersheet'!R928)","v":""},{"$f":"IF('1. Ordersheet'!S928=\"\",\"\",'1. Ordersheet'!S928)","v":""},{"$f":"IF('1. Ordersheet'!V928=\"\",\"\",'1. Ordersheet'!V928)","v":""},{"$f":"IF('1. Ordersheet'!W928=\"\",\"\",'1. Ordersheet'!W928)","v":""},{"$f":"IF('1. Ordersheet'!X928=\"\",\"\",'1. Ordersheet'!X928)","v":""},{"$f":"IF('1. Ordersheet'!Y928=\"\",\"\",'1. Ordersheet'!Y928)","v":""},{"$f":"IF('1. Ordersheet'!Z928=\"\",\"\",'1. Ordersheet'!Z928)","v":""},{"$f":"IF('1. Ordersheet'!AA928=\"\",\"\",'1. Ordersheet'!AA928)","v":""},null,{"$f":"IF('1. Ordersheet'!AS928=\"\",\"\",'1. Ordersheet'!AS928)","v":""},{"$f":"IF('1. Ordersheet'!AT928=\"\",\"\",'1. Ordersheet'!AT928)","v":""},null,null,null,null,null,null,null,{"$f":"IF('1. Ordersheet'!AX928=\"\",\"\",'1. Ordersheet'!AX928)","v":""},{"$f":"IF('1. Ordersheet'!AY928=\"\",\"\",'1. Ordersheet'!AY928)","v":""},{"$f":"IF('1. Ordersheet'!AZ928=\"\",\"\",'1. Ordersheet'!AZ928)","v":""},{"$f":"IF('1. Ordersheet'!BA928=\"\",\"\",'1. Ordersheet'!BA928)","v":""},{"$f":"IF('1. Ordersheet'!BC928=\"\",\"\",'1. Ordersheet'!BC928)","v":""},{"$f":"IF('1. Ordersheet'!BD928=\"\",\"\",'1. Ordersheet'!BD928)","v":""},{"$f":"IF('1. Ordersheet'!BE928=\"\",\"\",'1. Ordersheet'!BE928)","v":""},{"$f":"IF('1. Ordersheet'!BF928=\"\",\"\",'1. Ordersheet'!BF928)","v":""},{"$f":"IF('1. Ordersheet'!BG928=\"\",\"\",'1. Ordersheet'!BG928)","v":"ZWO"},{"$f":"IF('1. Ordersheet'!BH928=\"\",\"\",'1. Ordersheet'!BH928)","v":""},{"$f":"IF('1. Ordersheet'!BI928=\"\",\"\",'1. Ordersheet'!BI928)","v":""},{"$f":"IF('1. Ordersheet'!BJ928=\"\",\"\",'1. Ordersheet'!BJ928)","v":""},{"$f":"IF('1. Ordersheet'!BK928=\"\",\"\",'1. Ordersheet'!BK928)","v":""},{"$f":"IF('1. Ordersheet'!BL928=\"\",\"\",'1. Ordersheet'!BL928)","v":""}]
[{"$f":"IF('1. Ordersheet'!F929=\"\",\"\",'1. Ordersheet'!F929)","v":""},{"$f":"IF('1. Ordersheet'!G929=\"\",\"\",'1. Ordersheet'!G929)","v":""},{"$f":"IF('1. Ordersheet'!H929=\"\",\"\",'1. Ordersheet'!H929)","v":""},{"$f":"IF('1. Ordersheet'!I929=\"\",\"\",'1. Ordersheet'!I929)","v":""},{"$f":"IF('1. Ordersheet'!J929=\"\",\"\",'1. Ordersheet'!J929)","v":""},{"$f":"IF('1. Ordersheet'!K929=\"\",\"\",'1. Ordersheet'!K929)","v":""},{"$f":"IF('1. Ordersheet'!L929=\"\",\"\",'1. Ordersheet'!L929)","v":""},{"$f":"IF('1. Ordersheet'!M929=\"\",\"\",'1. Ordersheet'!M929)","v":""},{"$f":"IF('1. Ordersheet'!N929=\"\",\"\",'1. Ordersheet'!N929)","v":""},{"$f":"IF('1. Ordersheet'!O929=\"\",\"\",'1. Ordersheet'!O929)","v":{"$error":"#N/A"}},{"$f":"IF('1. Ordersheet'!P929=\"\",\"\",'1. Ordersheet'!P929)","v":{"$error":"#N/A"}},{"$f":"IF('1. Ordersheet'!Q929=\"\",\"\",'1. Ordersheet'!Q929)","v":""},{"$f":"IF('1. Ordersheet'!R929=\"\",\"\",'1. Ordersheet'!R929)","v":""},{"$f":"IF('1. Ordersheet'!S929=\"\",\"\",'1. Ordersheet'!S929)","v":""},{"$f":"IF('1. Ordersheet'!V929=\"\",\"\",'1. Ordersheet'!V929)","v":""},{"$f":"IF('1. Ordersheet'!W929=\"\",\"\",'1. Ordersheet'!W929)","v":""},{"$f":"IF('1. Ordersheet'!X929=\"\",\"\",'1. Ordersheet'!X929)","v":""},{"$f":"IF('1. Ordersheet'!Y929=\"\",\"\",'1. Ordersheet'!Y929)","v":""},{"$f":"IF('1. Ordersheet'!Z929=\"\",\"\",'1. Ordersheet'!Z929)","v":""},{"$f":"IF('1. Ordersheet'!AA929=\"\",\"\",'1. Ordersheet'!AA929)","v":""},null,{"$f":"IF('1. Ordersheet'!AS929=\"\",\"\",'1. Ordersheet'!AS929)","v":""},{"$f":"IF('1. Ordersheet'!AT929=\"\",\"\",'1. Ordersheet'!AT929)","v":""},null,null,null,null,null,null,null,{"$f":"IF('1. Ordersheet'!AX929=\"\",\"\",'1. Ordersheet'!AX929)","v":""},{"$f":"IF('1. Ordersheet'!AY929=\"\",\"\",'1. Ordersheet'!AY929)","v":""},{"$f":"IF('1. Ordersheet'!AZ929=\"\",\"\",'1. Ordersheet'!AZ929)","v":""},{"$f":"IF('1. Ordersheet'!BA929=\"\",\"\",'1. Ordersheet'!BA929)","v":""},{"$f":"IF('1. Ordersheet'!BC929=\"\",\"\",'1. Ordersheet'!BC929)","v":""},{"$f":"IF('1. Ordersheet'!BD929=\"\",\"\",'1. Ordersheet'!BD929)","v":""},{"$f":"IF('1. Ordersheet'!BE929=\"\",\"\",'1. Ordersheet'!BE929)","v":""},{"$f":"IF('1. Ordersheet'!BF929=\"\",\"\",'1. Ordersheet'!BF929)","v":""},{"$f":"IF('1. Ordersheet'!BG929=\"\",\"\",'1. Ordersheet'!BG929)","v":"ZWO"},{"$f":"IF('1. Ordersheet'!BH929=\"\",\"\",'1. Ordersheet'!BH929)","v":""},{"$f":"IF('1. Ordersheet'!BI929=\"\",\"\",'1. Ordersheet'!BI929)","v":""},{"$f":"IF('1. Ordersheet'!BJ929=\"\",\"\",'1. Ordersheet'!BJ929)","v":""},{"$f":"IF('1. Ordersheet'!BK929=\"\",\"\",'1. Ordersheet'!BK929)","v":""},{"$f":"IF('1. Ordersheet'!BL929=\"\",\"\",'1. Ordersheet'!BL929)","v":""}]
[{"$f":"IF('1. Ordersheet'!F930=\"\",\"\",'1. Ordersheet'!F930)","v":""},{"$f":"IF('1. Ordersheet'!G930=\"\",\"\",'1. Ordersheet'!G930)","v":""},{"$f":"IF('1. Ordersheet'!H930=\"\",\"\",'1. Ordersheet'!H930)","v":""},{"$f":"IF('1. Ordersheet'!I930=\"\",\"\",'1. Ordersheet'!I930)","v":""},{"$f":"IF('1. Ordersheet'!J930=\"\",\"\",'1. Ordersheet'!J930)","v":""},{"$f":"IF('1. Ordersheet'!K930=\"\",\"\",'1. Ordersheet'!K930)","v":""},{"$f":"IF('1. Ordersheet'!L930=\"\",\"\",'1. Ordersheet'!L930)","v":""},{"$f":"IF('1. Ordersheet'!M930=\"\",\"\",'1. Ordersheet'!M930)","v":""},{"$f":"IF('1. Ordersheet'!N930=\"\",\"\",'1. Ordersheet'!N930)","v":""},{"$f":"IF('1. Ordersheet'!O930=\"\",\"\",'1. Ordersheet'!O930)","v":{"$error":"#N/A"}},{"$f":"IF('1. Ordersheet'!P930=\"\",\"\",'1. Ordersheet'!P930)","v":{"$error":"#N/A"}},{"$f":"IF('1. Ordersheet'!Q930=\"\",\"\",'1. Ordersheet'!Q930)","v":""},{"$f":"IF('1. Ordersheet'!R930=\"\",\"\",'1. Ordersheet'!R930)","v":""},{"$f":"IF('1. Ordersheet'!S930=\"\",\"\",'1. Ordersheet'!S930)","v":""},{"$f":"IF('1. Ordersheet'!V930=\"\",\"\",'1. Ordersheet'!V930)","v":""},{"$f":"IF('1. Ordersheet'!W930=\"\",\"\",'1. Ordersheet'!W930)","v":""},{"$f":"IF('1. Ordersheet'!X930=\"\",\"\",'1. Ordersheet'!X930)","v":""},{"$f":"IF('1. Ordersheet'!Y930=\"\",\"\",'1. Ordersheet'!Y930)","v":""},{"$f":"IF('1. Ordersheet'!Z930=\"\",\"\",'1. Ordersheet'!Z930)","v":""},{"$f":"IF('1. Ordersheet'!AA930=\"\",\"\",'1. Ordersheet'!AA930)","v":""},null,{"$f":"IF('1. Ordersheet'!AS930=\"\",\"\",'1. Ordersheet'!AS930)","v":""},{"$f":"IF('1. Ordersheet'!AT930=\"\",\"\",'1. Ordersheet'!AT930)","v":""},null,null,null,null,null,null,null,{"$f":"IF('1. Ordersheet'!AX930=\"\",\"\",'1. Ordersheet'!AX930)","v":""},{"$f":"IF('1. Ordersheet'!AY930=\"\",\"\",'1. Ordersheet'!AY930)","v":""},{"$f":"IF('1. Ordersheet'!AZ930=\"\",\"\",'1. Ordersheet'!AZ930)","v":""},{"$f":"IF('1. Ordersheet'!BA930=\"\",\"\",'1. Ordersheet'!BA930)","v":""},{"$f":"IF('1. Ordersheet'!BC930=\"\",\"\",'1. Ordersheet'!BC930)","v":""},{"$f":"IF('1. Ordersheet'!BD930=\"\",\"\",'1. Ordersheet'!BD930)","v":""},{"$f":"IF('1. Ordersheet'!BE930=\"\",\"\",'1. Ordersheet'!BE930)","v":""},{"$f":"IF('1. Ordersheet'!BF930=\"\",\"\",'1. Ordersheet'!BF930)","v":""},{"$f":"IF('1. Ordersheet'!BG930=\"\",\"\",'1. Ordersheet'!BG930)","v":"ZWO"},{"$f":"IF('1. Ordersheet'!BH930=\"\",\"\",'1. Ordersheet'!BH930)","v":""},{"$f":"IF('1. Ordersheet'!BI930=\"\",\"\",'1. Ordersheet'!BI930)","v":""},{"$f":"IF('1. Ordersheet'!BJ930=\"\",\"\",'1. Ordersheet'!BJ930)","v":""},{"$f":"IF('1. Ordersheet'!BK930=\"\",\"\",'1. Ordersheet'!BK930)","v":""},{"$f":"IF('1. Ordersheet'!BL930=\"\",\"\",'1. Ordersheet'!BL930)","v":""}]
[{"$f":"IF('1. Ordersheet'!F931=\"\",\"\",'1. Ordersheet'!F931)","v":""},{"$f":"IF('1. Ordersheet'!G931=\"\",\"\",'1. Ordersheet'!G931)","v":""},{"$f":"IF('1. Ordersheet'!H931=\"\",\"\",'1. Ordersheet'!H931)","v":""},{"$f":"IF('1. Ordersheet'!I931=\"\",\"\",'1. Ordersheet'!I931)","v":""},{"$f":"IF('1. Ordersheet'!J931=\"\",\"\",'1. Ordersheet'!J931)","v":""},{"$f":"IF('1. Ordersheet'!K931=\"\",\"\",'1. Ordersheet'!K931)","v":""},{"$f":"IF('1. Ordersheet'!L931=\"\",\"\",'1. Ordersheet'!L931)","v":""},{"$f":"IF('1. Ordersheet'!M931=\"\",\"\",'1. Ordersheet'!M931)","v":""},{"$f":"IF('1. Ordersheet'!N931=\"\",\"\",'1. Ordersheet'!N931)","v":""},{"$f":"IF('1. Ordersheet'!O931=\"\",\"\",'1. Ordersheet'!O931)","v":{"$error":"#N/A"}},{"$f":"IF('1. Ordersheet'!P931=\"\",\"\",'1. Ordersheet'!P931)","v":{"$error":"#N/A"}},{"$f":"IF('1. Ordersheet'!Q931=\"\",\"\",'1. Ordersheet'!Q931)","v":""},{"$f":"IF('1. Ordersheet'!R931=\"\",\"\",'1. Ordersheet'!R931)","v":""},{"$f":"IF('1. Ordersheet'!S931=\"\",\"\",'1. Ordersheet'!S931)","v":""},{"$f":"IF('1. Ordersheet'!V931=\"\",\"\",'1. Ordersheet'!V931)","v":""},{"$f":"IF('1. Ordersheet'!W931=\"\",\"\",'1. Ordersheet'!W931)","v":""},{"$f":"IF('1. Ordersheet'!X931=\"\",\"\",'1. Ordersheet'!X931)","v":""},{"$f":"IF('1. Ordersheet'!Y931=\"\",\"\",'1. Ordersheet'!Y931)","v":""},{"$f":"IF('1. Ordersheet'!Z931=\"\",\"\",'1. Ordersheet'!Z931)","v":""},{"$f":"IF('1. Ordersheet'!AA931=\"\",\"\",'1. Ordersheet'!AA931)","v":""},null,{"$f":"IF('1. Ordersheet'!AS931=\"\",\"\",'1. Ordersheet'!AS931)","v":""},{"$f":"IF('1. Ordersheet'!AT931=\"\",\"\",'1. Ordersheet'!AT931)","v":""},null,null,null,null,null,null,null,{"$f":"IF('1. Ordersheet'!AX931=\"\",\"\",'1. Ordersheet'!AX931)","v":""},{"$f":"IF('1. Ordersheet'!AY931=\"\",\"\",'1. Ordersheet'!AY931)","v":""},{"$f":"IF('1. Ordersheet'!AZ931=\"\",\"\",'1. Ordersheet'!AZ931)","v":""},{"$f":"IF('1. Ordersheet'!BA931=\"\",\"\",'1. Ordersheet'!BA931)","v":""},{"$f":"IF('1. Ordersheet'!BC931=\"\",\"\",'1. Ordersheet'!BC931)","v":""},{"$f":"IF('1. Ordersheet'!BD931=\"\",\"\",'1. Ordersheet'!BD931)","v":""},{"$f":"IF('1. Ordersheet'!BE931=\"\",\"\",'1. Ordersheet'!BE931)","v":""},{"$f":"IF('1. Ordersheet'!BF931=\"\",\"\",'1. Ordersheet'!BF931)","v":""},{"$f":"IF('1. Ordersheet'!BG931=\"\",\"\",'1. Ordersheet'!BG931)","v":"ZWO"},{"$f":"IF('1. Ordersheet'!BH931=\"\",\"\",'1. Ordersheet'!BH931)","v":""},{"$f":"IF('1. Ordersheet'!BI931=\"\",\"\",'1. Ordersheet'!BI931)","v":""},{"$f":"IF('1. Ordersheet'!BJ931=\"\",\"\",'1. Ordersheet'!BJ931)","v":""},{"$f":"IF('1. Ordersheet'!BK931=\"\",\"\",'1. Ordersheet'!BK931)","v":""},{"$f":"IF('1. Ordersheet'!BL931=\"\",\"\",'1. Ordersheet'!BL931)","v":""}]
[{"$f":"IF('1. Ordersheet'!F932=\"\",\"\",'1. Ordersheet'!F932)","v":""},{"$f":"IF('1. Ordersheet'!G932=\"\",\"\",'1. Ordersheet'!G932)","v":""},{"$f":"IF('1. Ordersheet'!H932=\"\",\"\",'1. Ordersheet'!H932)","v":""},{"$f":"IF('1. Ordersheet'!I932=\"\",\"\",'1. Ordersheet'!I932)","v":""},{"$f":"IF('1. Ordersheet'!J932=\"\",\"\",'1. Ordersheet'!J932)","v":""},{"$f":"IF('1. Ordersheet'!K932=\"\",\"\",'1. Ordersheet'!K932)","v":""},{"$f":"IF('1. Ordersheet'!L932=\"\",\"\",'1. Ordersheet'!L932)","v":""},{"$f":"IF('1. Ordersheet'!M932=\"\",\"\",'1. Ordersheet'!M932)","v":""},{"$f":"IF('1. Ordersheet'!N932=\"\",\"\",'1. Ordersheet'!N932)","v":""},{"$f":"IF('1. Ordersheet'!O932=\"\",\"\",'1. Ordersheet'!O932)","v":{"$error":"#N/A"}},{"$f":"IF('1. Ordersheet'!P932=\"\",\"\",'1. Ordersheet'!P932)","v":{"$error":"#N/A"}},{"$f":"IF('1. Ordersheet'!Q932=\"\",\"\",'1. Ordersheet'!Q932)","v":""},{"$f":"IF('1. Ordersheet'!R932=\"\",\"\",'1. Ordersheet'!R932)","v":""},{"$f":"IF('1. Ordersheet'!S932=\"\",\"\",'1. Ordersheet'!S932)","v":""},{"$f":"IF('1. Ordersheet'!V932=\"\",\"\",'1. Ordersheet'!V932)","v":""},{"$f":"IF('1. Ordersheet'!W932=\"\",\"\",'1. Ordersheet'!W932)","v":""},{"$f":"IF('1. Ordersheet'!X932=\"\",\"\",'1. Ordersheet'!X932)","v":""},{"$f":"IF('1. Ordersheet'!Y932=\"\",\"\",'1. Ordersheet'!Y932)","v":""},{"$f":"IF('1. Ordersheet'!Z932=\"\",\"\",'1. Ordersheet'!Z932)","v":""},{"$f":"IF('1. Ordersheet'!AA932=\"\",\"\",'1. Ordersheet'!AA932)","v":""},null,{"$f":"IF('1. Ordersheet'!AS932=\"\",\"\",'1. Ordersheet'!AS932)","v":""},{"$f":"IF('1. Ordersheet'!AT932=\"\",\"\",'1. Ordersheet'!AT932)","v":""},null,null,null,null,null,null,null,{"$f":"IF('1. Ordersheet'!AX932=\"\",\"\",'1. Ordersheet'!AX932)","v":""},{"$f":"IF('1. Ordersheet'!AY932=\"\",\"\",'1. Ordersheet'!AY932)","v":""},{"$f":"IF('1. Ordersheet'!AZ932=\"\",\"\",'1. Ordersheet'!AZ932)","v":""},{"$f":"IF('1. Ordersheet'!BA932=\"\",\"\",'1. Ordersheet'!BA932)","v":""},{"$f":"IF('1. Ordersheet'!BC932=\"\",\"\",'1. Ordersheet'!BC932)","v":""},{"$f":"IF('1. Ordersheet'!BD932=\"\",\"\",'1. Ordersheet'!BD932)","v":""},{"$f":"IF('1. Ordersheet'!BE932=\"\",\"\",'1. Ordersheet'!BE932)","v":""},{"$f":"IF('1. Ordersheet'!BF932=\"\",\"\",'1. Ordersheet'!BF932)","v":""},{"$f":"IF('1. Ordersheet'!BG932=\"\",\"\",'1. Ordersheet'!BG932)","v":"ZWO"},{"$f":"IF('1. Ordersheet'!BH932=\"\",\"\",'1. Ordersheet'!BH932)","v":""},{"$f":"IF('1. Ordersheet'!BI932=\"\",\"\",'1. Ordersheet'!BI932)","v":""},{"$f":"IF('1. Ordersheet'!BJ932=\"\",\"\",'1. Ordersheet'!BJ932)","v":""},{"$f":"IF('1. Ordersheet'!BK932=\"\",\"\",'1. Ordersheet'!BK932)","v":""},{"$f":"IF('1. Ordersheet'!BL932=\"\",\"\",'1. Ordersheet'!BL932)","v":""}]
[{"$f":"IF('1. Ordersheet'!F933=\"\",\"\",'1. Ordersheet'!F933)","v":""},{"$f":"IF('1. Ordersheet'!G933=\"\",\"\",'1. Ordersheet'!G933)","v":""},{"$f":"IF('1. Ordersheet'!H933=\"\",\"\",'1. Ordersheet'!H933)","v":""},{"$f":"IF('1. Ordersheet'!I933=\"\",\"\",'1. Ordersheet'!I933)","v":""},{"$f":"IF('1. Ordersheet'!J933=\"\",\"\",'1. Ordersheet'!J933)","v":""},{"$f":"IF('1. Ordersheet'!K933=\"\",\"\",'1. Ordersheet'!K933)","v":""},{"$f":"IF('1. Ordersheet'!L933=\"\",\"\",'1. Ordersheet'!L933)","v":""},{"$f":"IF('1. Ordersheet'!M933=\"\",\"\",'1. Ordersheet'!M933)","v":""},{"$f":"IF('1. Ordersheet'!N933=\"\",\"\",'1. Ordersheet'!N933)","v":""},{"$f":"IF('1. Ordersheet'!O933=\"\",\"\",'1. Ordersheet'!O933)","v":{"$error":"#N/A"}},{"$f":"IF('1. Ordersheet'!P933=\"\",\"\",'1. Ordersheet'!P933)","v":{"$error":"#N/A"}},{"$f":"IF('1. Ordersheet'!Q933=\"\",\"\",'1. Ordersheet'!Q933)","v":""},{"$f":"IF('1. Ordersheet'!R933=\"\",\"\",'1. Ordersheet'!R933)","v":""},{"$f":"IF('1. Ordersheet'!S933=\"\",\"\",'1. Ordersheet'!S933)","v":""},{"$f":"IF('1. Ordersheet'!V933=\"\",\"\",'1. Ordersheet'!V933)","v":""},{"$f":"IF('1. Ordersheet'!W933=\"\",\"\",'1. Ordersheet'!W933)","v":""},{"$f":"IF('1. Ordersheet'!X933=\"\",\"\",'1. Ordersheet'!X933)","v":""},{"$f":"IF('1. Ordersheet'!Y933=\"\",\"\",'1. Ordersheet'!Y933)","v":""},{"$f":"IF('1. Ordersheet'!Z933=\"\",\"\",'1. Ordersheet'!Z933)","v":""},{"$f":"IF('1. Ordersheet'!AA933=\"\",\"\",'1. Ordersheet'!AA933)","v":""},null,{"$f":"IF('1. Ordersheet'!AS933=\"\",\"\",'1. Ordersheet'!AS933)","v":""},{"$f":"IF('1. Ordersheet'!AT933=\"\",\"\",'1. Ordersheet'!AT933)","v":""},null,null,null,null,null,null,null,{"$f":"IF('1. Ordersheet'!AX933=\"\",\"\",'1. Ordersheet'!AX933)","v":""},{"$f":"IF('1. Ordersheet'!AY933=\"\",\"\",'1. Ordersheet'!AY933)","v":""},{"$f":"IF('1. Ordersheet'!AZ933=\"\",\"\",'1. Ordersheet'!AZ933)","v":""},{"$f":"IF('1. Ordersheet'!BA933=\"\",\"\",'1. Ordersheet'!BA933)","v":""},{"$f":"IF('1. Ordersheet'!BC933=\"\",\"\",'1. Ordersheet'!BC933)","v":""},{"$f":"IF('1. Ordersheet'!BD933=\"\",\"\",'1. Ordersheet'!BD933)","v":""},{"$f":"IF('1. Ordersheet'!BE933=\"\",\"\",'1. Ordersheet'!BE933)","v":""},{"$f":"IF('1. Ordersheet'!BF933=\"\",\"\",'1. Ordersheet'!BF933)","v":""},{"$f":"IF('1. Ordersheet'!BG933=\"\",\"\",'1. Ordersheet'!BG933)","v":"ZWO"},{"$f":"IF('1. Ordersheet'!BH933=\"\",\"\",'1. Ordersheet'!BH933)","v":""},{"$f":"IF('1. Ordersheet'!BI933=\"\",\"\",'1. Ordersheet'!BI933)","v":""},{"$f":"IF('1. Ordersheet'!BJ933=\"\",\"\",'1. Ordersheet'!BJ933)","v":""},{"$f":"IF('1. Ordersheet'!BK933=\"\",\"\",'1. Ordersheet'!BK933)","v":""},{"$f":"IF('1. Ordersheet'!BL933=\"\",\"\",'1. Ordersheet'!BL933)","v":""}]
[{"$f":"IF('1. Ordersheet'!F934=\"\",\"\",'1. Ordersheet'!F934)","v":""},{"$f":"IF('1. Ordersheet'!G934=\"\",\"\",'1. Ordersheet'!G934)","v":""},{"$f":"IF('1. Ordersheet'!H934=\"\",\"\",'1. Ordersheet'!H934)","v":""},{"$f":"IF('1. Ordersheet'!I934=\"\",\"\",'1. Ordersheet'!I934)","v":""},{"$f":"IF('1. Ordersheet'!J934=\"\",\"\",'1. Ordersheet'!J934)","v":""},{"$f":"IF('1. Ordersheet'!K934=\"\",\"\",'1. Ordersheet'!K934)","v":""},{"$f":"IF('1. Ordersheet'!L934=\"\",\"\",'1. Ordersheet'!L934)","v":""},{"$f":"IF('1. Ordersheet'!M934=\"\",\"\",'1. Ordersheet'!M934)","v":""},{"$f":"IF('1. Ordersheet'!N934=\"\",\"\",'1. Ordersheet'!N934)","v":""},{"$f":"IF('1. Ordersheet'!O934=\"\",\"\",'1. Ordersheet'!O934)","v":{"$error":"#N/A"}},{"$f":"IF('1. Ordersheet'!P934=\"\",\"\",'1. Ordersheet'!P934)","v":{"$error":"#N/A"}},{"$f":"IF('1. Ordersheet'!Q934=\"\",\"\",'1. Ordersheet'!Q934)","v":""},{"$f":"IF('1. Ordersheet'!R934=\"\",\"\",'1. Ordersheet'!R934)","v":""},{"$f":"IF('1. Ordersheet'!S934=\"\",\"\",'1. Ordersheet'!S934)","v":""},{"$f":"IF('1. Ordersheet'!V934=\"\",\"\",'1. Ordersheet'!V934)","v":""},{"$f":"IF('1. Ordersheet'!W934=\"\",\"\",'1. Ordersheet'!W934)","v":""},{"$f":"IF('1. Ordersheet'!X934=\"\",\"\",'1. Ordersheet'!X934)","v":""},{"$f":"IF('1. Ordersheet'!Y934=\"\",\"\",'1. Ordersheet'!Y934)","v":""},{"$f":"IF('1. Ordersheet'!Z934=\"\",\"\",'1. Ordersheet'!Z934)","v":""},{"$f":"IF('1. Ordersheet'!AA934=\"\",\"\",'1. Ordersheet'!AA934)","v":""},null,{"$f":"IF('1. Ordersheet'!AS934=\"\",\"\",'1. Ordersheet'!AS934)","v":""},{"$f":"IF('1. Ordersheet'!AT934=\"\",\"\",'1. Ordersheet'!AT934)","v":""},null,null,null,null,null,null,null,{"$f":"IF('1. Ordersheet'!AX934=\"\",\"\",'1. Ordersheet'!AX934)","v":""},{"$f":"IF('1. Ordersheet'!AY934=\"\",\"\",'1. Ordersheet'!AY934)","v":""},{"$f":"IF('1. Ordersheet'!AZ934=\"\",\"\",'1. Ordersheet'!AZ934)","v":""},{"$f":"IF('1. Ordersheet'!BA934=\"\",\"\",'1. Ordersheet'!BA934)","v":""},{"$f":"IF('1. Ordersheet'!BC934=\"\",\"\",'1. Ordersheet'!BC934)","v":""},{"$f":"IF('1. Ordersheet'!BD934=\"\",\"\",'1. Ordersheet'!BD934)","v":""},{"$f":"IF('1. Ordersheet'!BE934=\"\",\"\",'1. Ordersheet'!BE934)","v":""},{"$f":"IF('1. Ordersheet'!BF934=\"\",\"\",'1. Ordersheet'!BF934)","v":""},{"$f":"IF('1. Ordersheet'!BG934=\"\",\"\",'1. Ordersheet'!BG934)","v":"ZWO"},{"$f":"IF('1. Ordersheet'!BH934=\"\",\"\",'1. Ordersheet'!BH934)","v":""},{"$f":"IF('1. Ordersheet'!BI934=\"\",\"\",'1. Ordersheet'!BI934)","v":""},{"$f":"IF('1. Ordersheet'!BJ934=\"\",\"\",'1. Ordersheet'!BJ934)","v":""},{"$f":"IF('1. Ordersheet'!BK934=\"\",\"\",'1. Ordersheet'!BK934)","v":""},{"$f":"IF('1. Ordersheet'!BL934=\"\",\"\",'1. Ordersheet'!BL934)","v":""}]
[{"$f":"IF('1. Ordersheet'!F935=\"\",\"\",'1. Ordersheet'!F935)","v":""},{"$f":"IF('1. Ordersheet'!G935=\"\",\"\",'1. Ordersheet'!G935)","v":""},{"$f":"IF('1. Ordersheet'!H935=\"\",\"\",'1. Ordersheet'!H935)","v":""},{"$f":"IF('1. Ordersheet'!I935=\"\",\"\",'1. Ordersheet'!I935)","v":""},{"$f":"IF('1. Ordersheet'!J935=\"\",\"\",'1. Ordersheet'!J935)","v":""},{"$f":"IF('1. Ordersheet'!K935=\"\",\"\",'1. Ordersheet'!K935)","v":""},{"$f":"IF('1. Ordersheet'!L935=\"\",\"\",'1. Ordersheet'!L935)","v":""},{"$f":"IF('1. Ordersheet'!M935=\"\",\"\",'1. Ordersheet'!M935)","v":""},{"$f":"IF('1. Ordersheet'!N935=\"\",\"\",'1. Ordersheet'!N935)","v":""},{"$f":"IF('1. Ordersheet'!O935=\"\",\"\",'1. Ordersheet'!O935)","v":{"$error":"#N/A"}},{"$f":"IF('1. Ordersheet'!P935=\"\",\"\",'1. Ordersheet'!P935)","v":{"$error":"#N/A"}},{"$f":"IF('1. Ordersheet'!Q935=\"\",\"\",'1. Ordersheet'!Q935)","v":""},{"$f":"IF('1. Ordersheet'!R935=\"\",\"\",'1. Ordersheet'!R935)","v":""},{"$f":"IF('1. Ordersheet'!S935=\"\",\"\",'1. Ordersheet'!S935)","v":""},{"$f":"IF('1. Ordersheet'!V935=\"\",\"\",'1. Ordersheet'!V935)","v":""},{"$f":"IF('1. Ordersheet'!W935=\"\",\"\",'1. Ordersheet'!W935)","v":""},{"$f":"IF('1. Ordersheet'!X935=\"\",\"\",'1. Ordersheet'!X935)","v":""},{"$f":"IF('1. Ordersheet'!Y935=\"\",\"\",'1. Ordersheet'!Y935)","v":""},{"$f":"IF('1. Ordersheet'!Z935=\"\",\"\",'1. Ordersheet'!Z935)","v":""},{"$f":"IF('1. Ordersheet'!AA935=\"\",\"\",'1. Ordersheet'!AA935)","v":""},null,{"$f":"IF('1. Ordersheet'!AS935=\"\",\"\",'1. Ordersheet'!AS935)","v":""},{"$f":"IF('1. Ordersheet'!AT935=\"\",\"\",'1. Ordersheet'!AT935)","v":""},null,null,null,null,null,null,null,{"$f":"IF('1. Ordersheet'!AX935=\"\",\"\",'1. Ordersheet'!AX935)","v":""},{"$f":"IF('1. Ordersheet'!AY935=\"\",\"\",'1. Ordersheet'!AY935)","v":""},{"$f":"IF('1. Ordersheet'!AZ935=\"\",\"\",'1. Ordersheet'!AZ935)","v":""},{"$f":"IF('1. Ordersheet'!BA935=\"\",\"\",'1. Ordersheet'!BA935)","v":""},{"$f":"IF('1. Ordersheet'!BC935=\"\",\"\",'1. Ordersheet'!BC935)","v":""},{"$f":"IF('1. Ordersheet'!BD935=\"\",\"\",'1. Ordersheet'!BD935)","v":""},{"$f":"IF('1. Ordersheet'!BE935=\"\",\"\",'1. Ordersheet'!BE935)","v":""},{"$f":"IF('1. Ordersheet'!BF935=\"\",\"\",'1. Ordersheet'!BF935)","v":""},{"$f":"IF('1. Ordersheet'!BG935=\"\",\"\",'1. Ordersheet'!BG935)","v":"ZWO"},{"$f":"IF('1. Ordersheet'!BH935=\"\",\"\",'1. Ordersheet'!BH935)","v":""},{"$f":"IF('1. Ordersheet'!BI935=\"\",\"\",'1. Ordersheet'!BI935)","v":""},{"$f":"IF('1. Ordersheet'!BJ935=\"\",\"\",'1. Ordersheet'!BJ935)","v":""},{"$f":"IF('1. Ordersheet'!BK935=\"\",\"\",'1. Ordersheet'!BK935)","v":""},{"$f":"IF('1. Ordersheet'!BL935=\"\",\"\",'1. Ordersheet'!BL935)","v":""}]
[{"$f":"IF('1. Ordersheet'!F936=\"\",\"\",'1. Ordersheet'!F936)","v":""},{"$f":"IF('1. Ordersheet'!G936=\"\",\"\",'1. Ordersheet'!G936)","v":""},{"$f":"IF('1. Ordersheet'!H936=\"\",\"\",'1. Ordersheet'!H936)","v":""},{"$f":"IF('1. Ordersheet'!I936=\"\",\"\",'1. Ordersheet'!I936)","v":""},{"$f":"IF('1. Ordersheet'!J936=\"\",\"\",'1. Ordersheet'!J936)","v":""},{"$f":"IF('1. Ordersheet'!K936=\"\",\"\",'1. Ordersheet'!K936)","v":""},{"$f":"IF('1. Ordersheet'!L936=\"\",\"\",'1. Ordersheet'!L936)","v":""},{"$f":"IF('1. Ordersheet'!M936=\"\",\"\",'1. Ordersheet'!M936)","v":""},{"$f":"IF('1. Ordersheet'!N936=\"\",\"\",'1. Ordersheet'!N936)","v":""},{"$f":"IF('1. Ordersheet'!O936=\"\",\"\",'1. Ordersheet'!O936)","v":{"$error":"#N/A"}},{"$f":"IF('1. Ordersheet'!P936=\"\",\"\",'1. Ordersheet'!P936)","v":{"$error":"#N/A"}},{"$f":"IF('1. Ordersheet'!Q936=\"\",\"\",'1. Ordersheet'!Q936)","v":""},{"$f":"IF('1. Ordersheet'!R936=\"\",\"\",'1. Ordersheet'!R936)","v":""},{"$f":"IF('1. Ordersheet'!S936=\"\",\"\",'1. Ordersheet'!S936)","v":""},{"$f":"IF('1. Ordersheet'!V936=\"\",\"\",'1. Ordersheet'!V936)","v":""},{"$f":"IF('1. Ordersheet'!W936=\"\",\"\",'1. Ordersheet'!W936)","v":""},{"$f":"IF('1. Ordersheet'!X936=\"\",\"\",'1. Ordersheet'!X936)","v":""},{"$f":"IF('1. Ordersheet'!Y936=\"\",\"\",'1. Ordersheet'!Y936)","v":""},{"$f":"IF('1. Ordersheet'!Z936=\"\",\"\",'1. Ordersheet'!Z936)","v":""},{"$f":"IF('1. Ordersheet'!AA936=\"\",\"\",'1. Ordersheet'!AA936)","v":""},null,{"$f":"IF('1. Ordersheet'!AS936=\"\",\"\",'1. Ordersheet'!AS936)","v":""},{"$f":"IF('1. Ordersheet'!AT936=\"\",\"\",'1. Ordersheet'!AT936)","v":""},null,null,null,null,null,null,null,{"$f":"IF('1. Ordersheet'!AX936=\"\",\"\",'1. Ordersheet'!AX936)","v":""},{"$f":"IF('1. Ordersheet'!AY936=\"\",\"\",'1. Ordersheet'!AY936)","v":""},{"$f":"IF('1. Ordersheet'!AZ936=\"\",\"\",'1. Ordersheet'!AZ936)","v":""},{"$f":"IF('1. Ordersheet'!BA936=\"\",\"\",'1. Ordersheet'!BA936)","v":""},{"$f":"IF('1. Ordersheet'!BC936=\"\",\"\",'1. Ordersheet'!BC936)","v":""},{"$f":"IF('1. Ordersheet'!BD936=\"\",\"\",'1. Ordersheet'!BD936)","v":""},{"$f":"IF('1. Ordersheet'!BE936=\"\",\"\",'1. Ordersheet'!BE936)","v":""},{"$f":"IF('1. Ordersheet'!BF936=\"\",\"\",'1. Ordersheet'!BF936)","v":""},{"$f":"IF('1. Ordersheet'!BG936=\"\",\"\",'1. Ordersheet'!BG936)","v":"ZWO"},{"$f":"IF('1. Ordersheet'!BH936=\"\",\"\",'1. Ordersheet'!BH936)","v":""},{"$f":"IF('1. Ordersheet'!BI936=\"\",\"\",'1. Ordersheet'!BI936)","v":""},{"$f":"IF('1. Ordersheet'!BJ936=\"\",\"\",'1. Ordersheet'!BJ936)","v":""},{"$f":"IF('1. Ordersheet'!BK936=\"\",\"\",'1. Ordersheet'!BK936)","v":""},{"$f":"IF('1. Ordersheet'!BL936=\"\",\"\",'1. Ordersheet'!BL936)","v":""}]
[{"$f":"IF('1. Ordersheet'!F937=\"\",\"\",'1. Ordersheet'!F937)","v":""},{"$f":"IF('1. Ordersheet'!G937=\"\",\"\",'1. Ordersheet'!G937)","v":""},{"$f":"IF('1. Ordersheet'!H937=\"\",\"\",'1. Ordersheet'!H937)","v":""},{"$f":"IF('1. Ordersheet'!I937=\"\",\"\",'1. Ordersheet'!I937)","v":""},{"$f":"IF('1. Ordersheet'!J937=\"\",\"\",'1. Ordersheet'!J937)","v":""},{"$f":"IF('1. Ordersheet'!K937=\"\",\"\",'1. Ordersheet'!K937)","v":""},{"$f":"IF('1. Ordersheet'!L937=\"\",\"\",'1. Ordersheet'!L937)","v":""},{"$f":"IF('1. Ordersheet'!M937=\"\",\"\",'1. Ordersheet'!M937)","v":""},{"$f":"IF('1. Ordersheet'!N937=\"\",\"\",'1. Ordersheet'!N937)","v":""},{"$f":"IF('1. Ordersheet'!O937=\"\",\"\",'1. Ordersheet'!O937)","v":{"$error":"#N/A"}},{"$f":"IF('1. Ordersheet'!P937=\"\",\"\",'1. Ordersheet'!P937)","v":{"$error":"#N/A"}},{"$f":"IF('1. Ordersheet'!Q937=\"\",\"\",'1. Ordersheet'!Q937)","v":""},{"$f":"IF('1. Ordersheet'!R937=\"\",\"\",'1. Ordersheet'!R937)","v":""},{"$f":"IF('1. Ordersheet'!S937=\"\",\"\",'1. Ordersheet'!S937)","v":""},{"$f":"IF('1. Ordersheet'!V937=\"\",\"\",'1. Ordersheet'!V937)","v":""},{"$f":"IF('1. Ordersheet'!W937=\"\",\"\",'1. Ordersheet'!W937)","v":""},{"$f":"IF('1. Ordersheet'!X937=\"\",\"\",'1. Ordersheet'!X937)","v":""},{"$f":"IF('1. Ordersheet'!Y937=\"\",\"\",'1. Ordersheet'!Y937)","v":""},{"$f":"IF('1. Ordersheet'!Z937=\"\",\"\",'1. Ordersheet'!Z937)","v":""},{"$f":"IF('1. Ordersheet'!AA937=\"\",\"\",'1. Ordersheet'!AA937)","v":""},null,{"$f":"IF('1. Ordersheet'!AS937=\"\",\"\",'1. Ordersheet'!AS937)","v":""},{"$f":"IF('1. Ordersheet'!AT937=\"\",\"\",'1. Ordersheet'!AT937)","v":""},null,null,null,null,null,null,null,{"$f":"IF('1. Ordersheet'!AX937=\"\",\"\",'1. Ordersheet'!AX937)","v":""},{"$f":"IF('1. Ordersheet'!AY937=\"\",\"\",'1. Ordersheet'!AY937)","v":""},{"$f":"IF('1. Ordersheet'!AZ937=\"\",\"\",'1. Ordersheet'!AZ937)","v":""},{"$f":"IF('1. Ordersheet'!BA937=\"\",\"\",'1. Ordersheet'!BA937)","v":""},{"$f":"IF('1. Ordersheet'!BC937=\"\",\"\",'1. Ordersheet'!BC937)","v":""},{"$f":"IF('1. Ordersheet'!BD937=\"\",\"\",'1. Ordersheet'!BD937)","v":""},{"$f":"IF('1. Ordersheet'!BE937=\"\",\"\",'1. Ordersheet'!BE937)","v":""},{"$f":"IF('1. Ordersheet'!BF937=\"\",\"\",'1. Ordersheet'!BF937)","v":""},{"$f":"IF('1. Ordersheet'!BG937=\"\",\"\",'1. Ordersheet'!BG937)","v":"ZWO"},{"$f":"IF('1. Ordersheet'!BH937=\"\",\"\",'1. Ordersheet'!BH937)","v":""},{"$f":"IF('1. Ordersheet'!BI937=\"\",\"\",'1. Ordersheet'!BI937)","v":""},{"$f":"IF('1. Ordersheet'!BJ937=\"\",\"\",'1. Ordersheet'!BJ937)","v":""},{"$f":"IF('1. Ordersheet'!BK937=\"\",\"\",'1. Ordersheet'!BK937)","v":""},{"$f":"IF('1. Ordersheet'!BL937=\"\",\"\",'1. Ordersheet'!BL937)","v":""}]
[{"$f":"IF('1. Ordersheet'!F938=\"\",\"\",'1. Ordersheet'!F938)","v":""},{"$f":"IF('1. Ordersheet'!G938=\"\",\"\",'1. Ordersheet'!G938)","v":""},{"$f":"IF('1. Ordersheet'!H938=\"\",\"\",'1. Ordersheet'!H938)","v":""},{"$f":"IF('1. Ordersheet'!I938=\"\",\"\",'1. Ordersheet'!I938)","v":""},{"$f":"IF('1. Ordersheet'!J938=\"\",\"\",'1. Ordersheet'!J938)","v":""},{"$f":"IF('1. Ordersheet'!K938=\"\",\"\",'1. Ordersheet'!K938)","v":""},{"$f":"IF('1. Ordersheet'!L938=\"\",\"\",'1. Ordersheet'!L938)","v":""},{"$f":"IF('1. Ordersheet'!M938=\"\",\"\",'1. Ordersheet'!M938)","v":""},{"$f":"IF('1. Ordersheet'!N938=\"\",\"\",'1. Ordersheet'!N938)","v":""},{"$f":"IF('1. Ordersheet'!O938=\"\",\"\",'1. Ordersheet'!O938)","v":{"$error":"#N/A"}},{"$f":"IF('1. Ordersheet'!P938=\"\",\"\",'1. Ordersheet'!P938)","v":{"$error":"#N/A"}},{"$f":"IF('1. Ordersheet'!Q938=\"\",\"\",'1. Ordersheet'!Q938)","v":""},{"$f":"IF('1. Ordersheet'!R938=\"\",\"\",'1. Ordersheet'!R938)","v":""},{"$f":"IF('1. Ordersheet'!S938=\"\",\"\",'1. Ordersheet'!S938)","v":""},{"$f":"IF('1. Ordersheet'!V938=\"\",\"\",'1. Ordersheet'!V938)","v":""},{"$f":"IF('1. Ordersheet'!W938=\"\",\"\",'1. Ordersheet'!W938)","v":""},{"$f":"IF('1. Ordersheet'!X938=\"\",\"\",'1. Ordersheet'!X938)","v":""},{"$f":"IF('1. Ordersheet'!Y938=\"\",\"\",'1. Ordersheet'!Y938)","v":""},{"$f":"IF('1. Ordersheet'!Z938=\"\",\"\",'1. Ordersheet'!Z938)","v":""},{"$f":"IF('1. Ordersheet'!AA938=\"\",\"\",'1. Ordersheet'!AA938)","v":""},null,{"$f":"IF('1. Ordersheet'!AS938=\"\",\"\",'1. Ordersheet'!AS938)","v":""},{"$f":"IF('1. Ordersheet'!AT938=\"\",\"\",'1. Ordersheet'!AT938)","v":""},null,null,null,null,null,null,null,{"$f":"IF('1. Ordersheet'!AX938=\"\",\"\",'1. Ordersheet'!AX938)","v":""},{"$f":"IF('1. Ordersheet'!AY938=\"\",\"\",'1. Ordersheet'!AY938)","v":""},{"$f":"IF('1. Ordersheet'!AZ938=\"\",\"\",'1. Ordersheet'!AZ938)","v":""},{"$f":"IF('1. Ordersheet'!BA938=\"\",\"\",'1. Ordersheet'!BA938)","v":""},{"$f":"IF('1. Ordersheet'!BC938=\"\",\"\",'1. Ordersheet'!BC938)","v":""},{"$f":"IF('1. Ordersheet'!BD938=\"\",\"\",'1. Ordersheet'!BD938)","v":""},{"$f":"IF('1. Ordersheet'!BE938=\"\",\"\",'1. Ordersheet'!BE938)","v":""},{"$f":"IF('1. Ordersheet'!BF938=\"\",\"\",'1. Ordersheet'!BF938)","v":""},{"$f":"IF('1. Ordersheet'!BG938=\"\",\"\",'1. Ordersheet'!BG938)","v":"ZWO"},{"$f":"IF('1. Ordersheet'!BH938=\"\",\"\",'1. Ordersheet'!BH938)","v":""},{"$f":"IF('1. Ordersheet'!BI938=\"\",\"\",'1. Ordersheet'!BI938)","v":""},{"$f":"IF('1. Ordersheet'!BJ938=\"\",\"\",'1. Ordersheet'!BJ938)","v":""},{"$f":"IF('1. Ordersheet'!BK938=\"\",\"\",'1. Ordersheet'!BK938)","v":""},{"$f":"IF('1. Ordersheet'!BL938=\"\",\"\",'1. Ordersheet'!BL938)","v":""}]
[{"$f":"IF('1. Ordersheet'!F939=\"\",\"\",'1. Ordersheet'!F939)","v":""},{"$f":"IF('1. Ordersheet'!G939=\"\",\"\",'1. Ordersheet'!G939)","v":""},{"$f":"IF('1. Ordersheet'!H939=\"\",\"\",'1. Ordersheet'!H939)","v":""},{"$f":"IF('1. Ordersheet'!I939=\"\",\"\",'1. Ordersheet'!I939)","v":""},{"$f":"IF('1. Ordersheet'!J939=\"\",\"\",'1. Ordersheet'!J939)","v":""},{"$f":"IF('1. Ordersheet'!K939=\"\",\"\",'1. Ordersheet'!K939)","v":""},{"$f":"IF('1. Ordersheet'!L939=\"\",\"\",'1. Ordersheet'!L939)","v":""},{"$f":"IF('1. Ordersheet'!M939=\"\",\"\",'1. Ordersheet'!M939)","v":""},{"$f":"IF('1. Ordersheet'!N939=\"\",\"\",'1. Ordersheet'!N939)","v":""},{"$f":"IF('1. Ordersheet'!O939=\"\",\"\",'1. Ordersheet'!O939)","v":{"$error":"#N/A"}},{"$f":"IF('1. Ordersheet'!P939=\"\",\"\",'1. Ordersheet'!P939)","v":{"$error":"#N/A"}},{"$f":"IF('1. Ordersheet'!Q939=\"\",\"\",'1. Ordersheet'!Q939)","v":""},{"$f":"IF('1. Ordersheet'!R939=\"\",\"\",'1. Ordersheet'!R939)","v":""},{"$f":"IF('1. Ordersheet'!S939=\"\",\"\",'1. Ordersheet'!S939)","v":""},{"$f":"IF('1. Ordersheet'!V939=\"\",\"\",'1. Ordersheet'!V939)","v":""},{"$f":"IF('1. Ordersheet'!W939=\"\",\"\",'1. Ordersheet'!W939)","v":""},{"$f":"IF('1. Ordersheet'!X939=\"\",\"\",'1. Ordersheet'!X939)","v":""},{"$f":"IF('1. Ordersheet'!Y939=\"\",\"\",'1. Ordersheet'!Y939)","v":""},{"$f":"IF('1. Ordersheet'!Z939=\"\",\"\",'1. Ordersheet'!Z939)","v":""},{"$f":"IF('1. Ordersheet'!AA939=\"\",\"\",'1. Ordersheet'!AA939)","v":""},null,{"$f":"IF('1. Ordersheet'!AS939=\"\",\"\",'1. Ordersheet'!AS939)","v":""},{"$f":"IF('1. Ordersheet'!AT939=\"\",\"\",'1. Ordersheet'!AT939)","v":""},null,null,null,null,null,null,null,{"$f":"IF('1. Ordersheet'!AX939=\"\",\"\",'1. Ordersheet'!AX939)","v":""},{"$f":"IF('1. Ordersheet'!AY939=\"\",\"\",'1. Ordersheet'!AY939)","v":""},{"$f":"IF('1. Ordersheet'!AZ939=\"\",\"\",'1. Ordersheet'!AZ939)","v":""},{"$f":"IF('1. Ordersheet'!BA939=\"\",\"\",'1. Ordersheet'!BA939)","v":""},{"$f":"IF('1. Ordersheet'!BC939=\"\",\"\",'1. Ordersheet'!BC939)","v":""},{"$f":"IF('1. Ordersheet'!BD939=\"\",\"\",'1. Ordersheet'!BD939)","v":""},{"$f":"IF('1. Ordersheet'!BE939=\"\",\"\",'1. Ordersheet'!BE939)","v":""},{"$f":"IF('1. Ordersheet'!BF939=\"\",\"\",'1. Ordersheet'!BF939)","v":""},{"$f":"IF('1. Ordersheet'!BG939=\"\",\"\",'1. Ordersheet'!BG939)","v":"ZWO"},{"$f":"IF('1. Ordersheet'!BH939=\"\",\"\",'1. Ordersheet'!BH939)","v":""},{"$f":"IF('1. Ordersheet'!BI939=\"\",\"\",'1. Ordersheet'!BI939)","v":""},{"$f":"IF('1. Ordersheet'!BJ939=\"\",\"\",'1. Ordersheet'!BJ939)","v":""},{"$f":"IF('1. Ordersheet'!BK939=\"\",\"\",'1. Ordersheet'!BK939)","v":""},{"$f":"IF('1. Ordersheet'!BL939=\"\",\"\",'1. Ordersheet'!BL939)","v":""}]
[{"$f":"IF('1. Ordersheet'!F940=\"\",\"\",'1. Ordersheet'!F940)","v":""},{"$f":"IF('1. Ordersheet'!G940=\"\",\"\",'1. Ordersheet'!G940)","v":""},{"$f":"IF('1. Ordersheet'!H940=\"\",\"\",'1. Ordersheet'!H940)","v":""},{"$f":"IF('1. Ordersheet'!I940=\"\",\"\",'1. Ordersheet'!I940)","v":""},{"$f":"IF('1. Ordersheet'!J940=\"\",\"\",'1. Ordersheet'!J940)","v":""},{"$f":"IF('1. Ordersheet'!K940=\"\",\"\",'1. Ordersheet'!K940)","v":""},{"$f":"IF('1. Ordersheet'!L940=\"\",\"\",'1. Ordersheet'!L940)","v":""},{"$f":"IF('1. Ordersheet'!M940=\"\",\"\",'1. Ordersheet'!M940)","v":""},{"$f":"IF('1. Ordersheet'!N940=\"\",\"\",'1. Ordersheet'!N940)","v":""},{"$f":"IF('1. Ordersheet'!O940=\"\",\"\",'1. Ordersheet'!O940)","v":{"$error":"#N/A"}},{"$f":"IF('1. Ordersheet'!P940=\"\",\"\",'1. Ordersheet'!P940)","v":{"$error":"#N/A"}},{"$f":"IF('1. Ordersheet'!Q940=\"\",\"\",'1. Ordersheet'!Q940)","v":""},{"$f":"IF('1. Ordersheet'!R940=\"\",\"\",'1. Ordersheet'!R940)","v":""},{"$f":"IF('1. Ordersheet'!S940=\"\",\"\",'1. Ordersheet'!S940)","v":""},{"$f":"IF('1. Ordersheet'!V940=\"\",\"\",'1. Ordersheet'!V940)","v":""},{"$f":"IF('1. Ordersheet'!W940=\"\",\"\",'1. Ordersheet'!W940)","v":""},{"$f":"IF('1. Ordersheet'!X940=\"\",\"\",'1. Ordersheet'!X940)","v":""},{"$f":"IF('1. Ordersheet'!Y940=\"\",\"\",'1. Ordersheet'!Y940)","v":""},{"$f":"IF('1. Ordersheet'!Z940=\"\",\"\",'1. Ordersheet'!Z940)","v":""},{"$f":"IF('1. Ordersheet'!AA940=\"\",\"\",'1. Ordersheet'!AA940)","v":""},null,{"$f":"IF('1. Ordersheet'!AS940=\"\",\"\",'1. Ordersheet'!AS940)","v":""},{"$f":"IF('1. Ordersheet'!AT940=\"\",\"\",'1. Ordersheet'!AT940)","v":""},null,null,null,null,null,null,null,{"$f":"IF('1. Ordersheet'!AX940=\"\",\"\",'1. Ordersheet'!AX940)","v":""},{"$f":"IF('1. Ordersheet'!AY940=\"\",\"\",'1. Ordersheet'!AY940)","v":""},{"$f":"IF('1. Ordersheet'!AZ940=\"\",\"\",'1. Ordersheet'!AZ940)","v":""},{"$f":"IF('1. Ordersheet'!BA940=\"\",\"\",'1. Ordersheet'!BA940)","v":""},{"$f":"IF('1. Ordersheet'!BC940=\"\",\"\",'1. Ordersheet'!BC940)","v":""},{"$f":"IF('1. Ordersheet'!BD940=\"\",\"\",'1. Ordersheet'!BD940)","v":""},{"$f":"IF('1. Ordersheet'!BE940=\"\",\"\",'1. Ordersheet'!BE940)","v":""},{"$f":"IF('1. Ordersheet'!BF940=\"\",\"\",'1. Ordersheet'!BF940)","v":""},{"$f":"IF('1. Ordersheet'!BG940=\"\",\"\",'1. Ordersheet'!BG940)","v":"ZWO"},{"$f":"IF('1. Ordersheet'!BH940=\"\",\"\",'1. Ordersheet'!BH940)","v":""},{"$f":"IF('1. Ordersheet'!BI940=\"\",\"\",'1. Ordersheet'!BI940)","v":""},{"$f":"IF('1. Ordersheet'!BJ940=\"\",\"\",'1. Ordersheet'!BJ940)","v":""},{"$f":"IF('1. Ordersheet'!BK940=\"\",\"\",'1. Ordersheet'!BK940)","v":""},{"$f":"IF('1. Ordersheet'!BL940=\"\",\"\",'1. Ordersheet'!BL940)","v":""}]
[{"$f":"IF('1. Ordersheet'!F941=\"\",\"\",'1. Ordersheet'!F941)","v":""},{"$f":"IF('1. Ordersheet'!G941=\"\",\"\",'1. Ordersheet'!G941)","v":""},{"$f":"IF('1. Ordersheet'!H941=\"\",\"\",'1. Ordersheet'!H941)","v":""},{"$f":"IF('1. Ordersheet'!I941=\"\",\"\",'1. Ordersheet'!I941)","v":""},{"$f":"IF('1. Ordersheet'!J941=\"\",\"\",'1. Ordersheet'!J941)","v":""},{"$f":"IF('1. Ordersheet'!K941=\"\",\"\",'1. Ordersheet'!K941)","v":""},{"$f":"IF('1. Ordersheet'!L941=\"\",\"\",'1. Ordersheet'!L941)","v":""},{"$f":"IF('1. Ordersheet'!M941=\"\",\"\",'1. Ordersheet'!M941)","v":""},{"$f":"IF('1. Ordersheet'!N941=\"\",\"\",'1. Ordersheet'!N941)","v":""},{"$f":"IF('1. Ordersheet'!O941=\"\",\"\",'1. Ordersheet'!O941)","v":{"$error":"#N/A"}},{"$f":"IF('1. Ordersheet'!P941=\"\",\"\",'1. Ordersheet'!P941)","v":{"$error":"#N/A"}},{"$f":"IF('1. Ordersheet'!Q941=\"\",\"\",'1. Ordersheet'!Q941)","v":""},{"$f":"IF('1. Ordersheet'!R941=\"\",\"\",'1. Ordersheet'!R941)","v":""},{"$f":"IF('1. Ordersheet'!S941=\"\",\"\",'1. Ordersheet'!S941)","v":""},{"$f":"IF('1. Ordersheet'!V941=\"\",\"\",'1. Ordersheet'!V941)","v":""},{"$f":"IF('1. Ordersheet'!W941=\"\",\"\",'1. Ordersheet'!W941)","v":""},{"$f":"IF('1. Ordersheet'!X941=\"\",\"\",'1. Ordersheet'!X941)","v":""},{"$f":"IF('1. Ordersheet'!Y941=\"\",\"\",'1. Ordersheet'!Y941)","v":""},{"$f":"IF('1. Ordersheet'!Z941=\"\",\"\",'1. Ordersheet'!Z941)","v":""},{"$f":"IF('1. Ordersheet'!AA941=\"\",\"\",'1. Ordersheet'!AA941)","v":""},null,{"$f":"IF('1. Ordersheet'!AS941=\"\",\"\",'1. Ordersheet'!AS941)","v":""},{"$f":"IF('1. Ordersheet'!AT941=\"\",\"\",'1. Ordersheet'!AT941)","v":""},null,null,null,null,null,null,null,{"$f":"IF('1. Ordersheet'!AX941=\"\",\"\",'1. Ordersheet'!AX941)","v":""},{"$f":"IF('1. Ordersheet'!AY941=\"\",\"\",'1. Ordersheet'!AY941)","v":""},{"$f":"IF('1. Ordersheet'!AZ941=\"\",\"\",'1. Ordersheet'!AZ941)","v":""},{"$f":"IF('1. Ordersheet'!BA941=\"\",\"\",'1. Ordersheet'!BA941)","v":""},{"$f":"IF('1. Ordersheet'!BC941=\"\",\"\",'1. Ordersheet'!BC941)","v":""},{"$f":"IF('1. Ordersheet'!BD941=\"\",\"\",'1. Ordersheet'!BD941)","v":""},{"$f":"IF('1. Ordersheet'!BE941=\"\",\"\",'1. Ordersheet'!BE941)","v":""},{"$f":"IF('1. Ordersheet'!BF941=\"\",\"\",'1. Ordersheet'!BF941)","v":""},{"$f":"IF('1. Ordersheet'!BG941=\"\",\"\",'1. Ordersheet'!BG941)","v":"ZWO"},{"$f":"IF('1. Ordersheet'!BH941=\"\",\"\",'1. Ordersheet'!BH941)","v":""},{"$f":"IF('1. Ordersheet'!BI941=\"\",\"\",'1. Ordersheet'!BI941)","v":""},{"$f":"IF('1. Ordersheet'!BJ941=\"\",\"\",'1. Ordersheet'!BJ941)","v":""},{"$f":"IF('1. Ordersheet'!BK941=\"\",\"\",'1. Ordersheet'!BK941)","v":""},{"$f":"IF('1. Ordersheet'!BL941=\"\",\"\",'1. Ordersheet'!BL941)","v":""}]
[{"$f":"IF('1. Ordersheet'!F942=\"\",\"\",'1. Ordersheet'!F942)","v":""},{"$f":"IF('1. Ordersheet'!G942=\"\",\"\",'1. Ordersheet'!G942)","v":""},{"$f":"IF('1. Ordersheet'!H942=\"\",\"\",'1. Ordersheet'!H942)","v":""},{"$f":"IF('1. Ordersheet'!I942=\"\",\"\",'1. Ordersheet'!I942)","v":""},{"$f":"IF('1. Ordersheet'!J942=\"\",\"\",'1. Ordersheet'!J942)","v":""},{"$f":"IF('1. Ordersheet'!K942=\"\",\"\",'1. Ordersheet'!K942)","v":""},{"$f":"IF('1. Ordersheet'!L942=\"\",\"\",'1. Ordersheet'!L942)","v":""},{"$f":"IF('1. Ordersheet'!M942=\"\",\"\",'1. Ordersheet'!M942)","v":""},{"$f":"IF('1. Ordersheet'!N942=\"\",\"\",'1. Ordersheet'!N942)","v":""},{"$f":"IF('1. Ordersheet'!O942=\"\",\"\",'1. Ordersheet'!O942)","v":{"$error":"#N/A"}},{"$f":"IF('1. Ordersheet'!P942=\"\",\"\",'1. Ordersheet'!P942)","v":{"$error":"#N/A"}},{"$f":"IF('1. Ordersheet'!Q942=\"\",\"\",'1. Ordersheet'!Q942)","v":""},{"$f":"IF('1. Ordersheet'!R942=\"\",\"\",'1. Ordersheet'!R942)","v":""},{"$f":"IF('1. Ordersheet'!S942=\"\",\"\",'1. Ordersheet'!S942)","v":""},{"$f":"IF('1. Ordersheet'!V942=\"\",\"\",'1. Ordersheet'!V942)","v":""},{"$f":"IF('1. Ordersheet'!W942=\"\",\"\",'1. Ordersheet'!W942)","v":""},{"$f":"IF('1. Ordersheet'!X942=\"\",\"\",'1. Ordersheet'!X942)","v":""},{"$f":"IF('1. Ordersheet'!Y942=\"\",\"\",'1. Ordersheet'!Y942)","v":""},{"$f":"IF('1. Ordersheet'!Z942=\"\",\"\",'1. Ordersheet'!Z942)","v":""},{"$f":"IF('1. Ordersheet'!AA942=\"\",\"\",'1. Ordersheet'!AA942)","v":""},null,{"$f":"IF('1. Ordersheet'!AS942=\"\",\"\",'1. Ordersheet'!AS942)","v":""},{"$f":"IF('1. Ordersheet'!AT942=\"\",\"\",'1. Ordersheet'!AT942)","v":""},null,null,null,null,null,null,null,{"$f":"IF('1. Ordersheet'!AX942=\"\",\"\",'1. Ordersheet'!AX942)","v":""},{"$f":"IF('1. Ordersheet'!AY942=\"\",\"\",'1. Ordersheet'!AY942)","v":""},{"$f":"IF('1. Ordersheet'!AZ942=\"\",\"\",'1. Ordersheet'!AZ942)","v":""},{"$f":"IF('1. Ordersheet'!BA942=\"\",\"\",'1. Ordersheet'!BA942)","v":""},{"$f":"IF('1. Ordersheet'!BC942=\"\",\"\",'1. Ordersheet'!BC942)","v":""},{"$f":"IF('1. Ordersheet'!BD942=\"\",\"\",'1. Ordersheet'!BD942)","v":""},{"$f":"IF('1. Ordersheet'!BE942=\"\",\"\",'1. Ordersheet'!BE942)","v":""},{"$f":"IF('1. Ordersheet'!BF942=\"\",\"\",'1. Ordersheet'!BF942)","v":""},{"$f":"IF('1. Ordersheet'!BG942=\"\",\"\",'1. Ordersheet'!BG942)","v":"ZWO"},{"$f":"IF('1. Ordersheet'!BH942=\"\",\"\",'1. Ordersheet'!BH942)","v":""},{"$f":"IF('1. Ordersheet'!BI942=\"\",\"\",'1. Ordersheet'!BI942)","v":""},{"$f":"IF('1. Ordersheet'!BJ942=\"\",\"\",'1. Ordersheet'!BJ942)","v":""},{"$f":"IF('1. Ordersheet'!BK942=\"\",\"\",'1. Ordersheet'!BK942)","v":""},{"$f":"IF('1. Ordersheet'!BL942=\"\",\"\",'1. Ordersheet'!BL942)","v":""}]
[{"$f":"IF('1. Ordersheet'!F943=\"\",\"\",'1. Ordersheet'!F943)","v":""},{"$f":"IF('1. Ordersheet'!G943=\"\",\"\",'1. Ordersheet'!G943)","v":""},{"$f":"IF('1. Ordersheet'!H943=\"\",\"\",'1. Ordersheet'!H943)","v":""},{"$f":"IF('1. Ordersheet'!I943=\"\",\"\",'1. Ordersheet'!I943)","v":""},{"$f":"IF('1. Ordersheet'!J943=\"\",\"\",'1. Ordersheet'!J943)","v":""},{"$f":"IF('1. Ordersheet'!K943=\"\",\"\",'1. Ordersheet'!K943)","v":""},{"$f":"IF('1. Ordersheet'!L943=\"\",\"\",'1. Ordersheet'!L943)","v":""},{"$f":"IF('1. Ordersheet'!M943=\"\",\"\",'1. Ordersheet'!M943)","v":""},{"$f":"IF('1. Ordersheet'!N943=\"\",\"\",'1. Ordersheet'!N943)","v":""},{"$f":"IF('1. Ordersheet'!O943=\"\",\"\",'1. Ordersheet'!O943)","v":{"$error":"#N/A"}},{"$f":"IF('1. Ordersheet'!P943=\"\",\"\",'1. Ordersheet'!P943)","v":{"$error":"#N/A"}},{"$f":"IF('1. Ordersheet'!Q943=\"\",\"\",'1. Ordersheet'!Q943)","v":""},{"$f":"IF('1. Ordersheet'!R943=\"\",\"\",'1. Ordersheet'!R943)","v":""},{"$f":"IF('1. Ordersheet'!S943=\"\",\"\",'1. Ordersheet'!S943)","v":""},{"$f":"IF('1. Ordersheet'!V943=\"\",\"\",'1. Ordersheet'!V943)","v":""},{"$f":"IF('1. Ordersheet'!W943=\"\",\"\",'1. Ordersheet'!W943)","v":""},{"$f":"IF('1. Ordersheet'!X943=\"\",\"\",'1. Ordersheet'!X943)","v":""},{"$f":"IF('1. Ordersheet'!Y943=\"\",\"\",'1. Ordersheet'!Y943)","v":""},{"$f":"IF('1. Ordersheet'!Z943=\"\",\"\",'1. Ordersheet'!Z943)","v":""},{"$f":"IF('1. Ordersheet'!AA943=\"\",\"\",'1. Ordersheet'!AA943)","v":""},null,{"$f":"IF('1. Ordersheet'!AS943=\"\",\"\",'1. Ordersheet'!AS943)","v":""},{"$f":"IF('1. Ordersheet'!AT943=\"\",\"\",'1. Ordersheet'!AT943)","v":""},null,null,null,null,null,null,null,{"$f":"IF('1. Ordersheet'!AX943=\"\",\"\",'1. Ordersheet'!AX943)","v":""},{"$f":"IF('1. Ordersheet'!AY943=\"\",\"\",'1. Ordersheet'!AY943)","v":""},{"$f":"IF('1. Ordersheet'!AZ943=\"\",\"\",'1. Ordersheet'!AZ943)","v":""},{"$f":"IF('1. Ordersheet'!BA943=\"\",\"\",'1. Ordersheet'!BA943)","v":""},{"$f":"IF('1. Ordersheet'!BC943=\"\",\"\",'1. Ordersheet'!BC943)","v":""},{"$f":"IF('1. Ordersheet'!BD943=\"\",\"\",'1. Ordersheet'!BD943)","v":""},{"$f":"IF('1. Ordersheet'!BE943=\"\",\"\",'1. Ordersheet'!BE943)","v":""},{"$f":"IF('1. Ordersheet'!BF943=\"\",\"\",'1. Ordersheet'!BF943)","v":""},{"$f":"IF('1. Ordersheet'!BG943=\"\",\"\",'1. Ordersheet'!BG943)","v":"ZWO"},{"$f":"IF('1. Ordersheet'!BH943=\"\",\"\",'1. Ordersheet'!BH943)","v":""},{"$f":"IF('1. Ordersheet'!BI943=\"\",\"\",'1. Ordersheet'!BI943)","v":""},{"$f":"IF('1. Ordersheet'!BJ943=\"\",\"\",'1. Ordersheet'!BJ943)","v":""},{"$f":"IF('1. Ordersheet'!BK943=\"\",\"\",'1. Ordersheet'!BK943)","v":""},{"$f":"IF('1. Ordersheet'!BL943=\"\",\"\",'1. Ordersheet'!BL943)","v":""}]
[{"$f":"IF('1. Ordersheet'!F944=\"\",\"\",'1. Ordersheet'!F944)","v":""},{"$f":"IF('1. Ordersheet'!G944=\"\",\"\",'1. Ordersheet'!G944)","v":""},{"$f":"IF('1. Ordersheet'!H944=\"\",\"\",'1. Ordersheet'!H944)","v":""},{"$f":"IF('1. Ordersheet'!I944=\"\",\"\",'1. Ordersheet'!I944)","v":""},{"$f":"IF('1. Ordersheet'!J944=\"\",\"\",'1. Ordersheet'!J944)","v":""},{"$f":"IF('1. Ordersheet'!K944=\"\",\"\",'1. Ordersheet'!K944)","v":""},{"$f":"IF('1. Ordersheet'!L944=\"\",\"\",'1. Ordersheet'!L944)","v":""},{"$f":"IF('1. Ordersheet'!M944=\"\",\"\",'1. Ordersheet'!M944)","v":""},{"$f":"IF('1. Ordersheet'!N944=\"\",\"\",'1. Ordersheet'!N944)","v":""},{"$f":"IF('1. Ordersheet'!O944=\"\",\"\",'1. Ordersheet'!O944)","v":{"$error":"#N/A"}},{"$f":"IF('1. Ordersheet'!P944=\"\",\"\",'1. Ordersheet'!P944)","v":{"$error":"#N/A"}},{"$f":"IF('1. Ordersheet'!Q944=\"\",\"\",'1. Ordersheet'!Q944)","v":""},{"$f":"IF('1. Ordersheet'!R944=\"\",\"\",'1. Ordersheet'!R944)","v":""},{"$f":"IF('1. Ordersheet'!S944=\"\",\"\",'1. Ordersheet'!S944)","v":""},{"$f":"IF('1. Ordersheet'!V944=\"\",\"\",'1. Ordersheet'!V944)","v":""},{"$f":"IF('1. Ordersheet'!W944=\"\",\"\",'1. Ordersheet'!W944)","v":""},{"$f":"IF('1. Ordersheet'!X944=\"\",\"\",'1. Ordersheet'!X944)","v":""},{"$f":"IF('1. Ordersheet'!Y944=\"\",\"\",'1. Ordersheet'!Y944)","v":""},{"$f":"IF('1. Ordersheet'!Z944=\"\",\"\",'1. Ordersheet'!Z944)","v":""},{"$f":"IF('1. Ordersheet'!AA944=\"\",\"\",'1. Ordersheet'!AA944)","v":""},null,{"$f":"IF('1. Ordersheet'!AS944=\"\",\"\",'1. Ordersheet'!AS944)","v":""},{"$f":"IF('1. Ordersheet'!AT944=\"\",\"\",'1. Ordersheet'!AT944)","v":""},null,null,null,null,null,null,null,{"$f":"IF('1. Ordersheet'!AX944=\"\",\"\",'1. Ordersheet'!AX944)","v":""},{"$f":"IF('1. Ordersheet'!AY944=\"\",\"\",'1. Ordersheet'!AY944)","v":""},{"$f":"IF('1. Ordersheet'!AZ944=\"\",\"\",'1. Ordersheet'!AZ944)","v":""},{"$f":"IF('1. Ordersheet'!BA944=\"\",\"\",'1. Ordersheet'!BA944)","v":""},{"$f":"IF('1. Ordersheet'!BC944=\"\",\"\",'1. Ordersheet'!BC944)","v":""},{"$f":"IF('1. Ordersheet'!BD944=\"\",\"\",'1. Ordersheet'!BD944)","v":""},{"$f":"IF('1. Ordersheet'!BE944=\"\",\"\",'1. Ordersheet'!BE944)","v":""},{"$f":"IF('1. Ordersheet'!BF944=\"\",\"\",'1. Ordersheet'!BF944)","v":""},{"$f":"IF('1. Ordersheet'!BG944=\"\",\"\",'1. Ordersheet'!BG944)","v":"ZWO"},{"$f":"IF('1. Ordersheet'!BH944=\"\",\"\",'1. Ordersheet'!BH944)","v":""},{"$f":"IF('1. Ordersheet'!BI944=\"\",\"\",'1. Ordersheet'!BI944)","v":""},{"$f":"IF('1. Ordersheet'!BJ944=\"\",\"\",'1. Ordersheet'!BJ944)","v":""},{"$f":"IF('1. Ordersheet'!BK944=\"\",\"\",'1. Ordersheet'!BK944)","v":""},{"$f":"IF('1. Ordersheet'!BL944=\"\",\"\",'1. Ordersheet'!BL944)","v":""}]
[{"$f":"IF('1. Ordersheet'!F945=\"\",\"\",'1. Ordersheet'!F945)","v":""},{"$f":"IF('1. Ordersheet'!G945=\"\",\"\",'1. Ordersheet'!G945)","v":""},{"$f":"IF('1. Ordersheet'!H945=\"\",\"\",'1. Ordersheet'!H945)","v":""},{"$f":"IF('1. Ordersheet'!I945=\"\",\"\",'1. Ordersheet'!I945)","v":""},{"$f":"IF('1. Ordersheet'!J945=\"\",\"\",'1. Ordersheet'!J945)","v":""},{"$f":"IF('1. Ordersheet'!K945=\"\",\"\",'1. Ordersheet'!K945)","v":""},{"$f":"IF('1. Ordersheet'!L945=\"\",\"\",'1. Ordersheet'!L945)","v":""},{"$f":"IF('1. Ordersheet'!M945=\"\",\"\",'1. Ordersheet'!M945)","v":""},{"$f":"IF('1. Ordersheet'!N945=\"\",\"\",'1. Ordersheet'!N945)","v":""},{"$f":"IF('1. Ordersheet'!O945=\"\",\"\",'1. Ordersheet'!O945)","v":{"$error":"#N/A"}},{"$f":"IF('1. Ordersheet'!P945=\"\",\"\",'1. Ordersheet'!P945)","v":{"$error":"#N/A"}},{"$f":"IF('1. Ordersheet'!Q945=\"\",\"\",'1. Ordersheet'!Q945)","v":""},{"$f":"IF('1. Ordersheet'!R945=\"\",\"\",'1. Ordersheet'!R945)","v":""},{"$f":"IF('1. Ordersheet'!S945=\"\",\"\",'1. Ordersheet'!S945)","v":""},{"$f":"IF('1. Ordersheet'!V945=\"\",\"\",'1. Ordersheet'!V945)","v":""},{"$f":"IF('1. Ordersheet'!W945=\"\",\"\",'1. Ordersheet'!W945)","v":""},{"$f":"IF('1. Ordersheet'!X945=\"\",\"\",'1. Ordersheet'!X945)","v":""},{"$f":"IF('1. Ordersheet'!Y945=\"\",\"\",'1. Ordersheet'!Y945)","v":""},{"$f":"IF('1. Ordersheet'!Z945=\"\",\"\",'1. Ordersheet'!Z945)","v":""},{"$f":"IF('1. Ordersheet'!AA945=\"\",\"\",'1. Ordersheet'!AA945)","v":""},null,{"$f":"IF('1. Ordersheet'!AS945=\"\",\"\",'1. Ordersheet'!AS945)","v":""},{"$f":"IF('1. Ordersheet'!AT945=\"\",\"\",'1. Ordersheet'!AT945)","v":""},null,null,null,null,null,null,null,{"$f":"IF('1. Ordersheet'!AX945=\"\",\"\",'1. Ordersheet'!AX945)","v":""},{"$f":"IF('1. Ordersheet'!AY945=\"\",\"\",'1. Ordersheet'!AY945)","v":""},{"$f":"IF('1. Ordersheet'!AZ945=\"\",\"\",'1. Ordersheet'!AZ945)","v":""},{"$f":"IF('1. Ordersheet'!BA945=\"\",\"\",'1. Ordersheet'!BA945)","v":""},{"$f":"IF('1. Ordersheet'!BC945=\"\",\"\",'1. Ordersheet'!BC945)","v":""},{"$f":"IF('1. Ordersheet'!BD945=\"\",\"\",'1. Ordersheet'!BD945)","v":""},{"$f":"IF('1. Ordersheet'!BE945=\"\",\"\",'1. Ordersheet'!BE945)","v":""},{"$f":"IF('1. Ordersheet'!BF945=\"\",\"\",'1. Ordersheet'!BF945)","v":""},{"$f":"IF('1. Ordersheet'!BG945=\"\",\"\",'1. Ordersheet'!BG945)","v":"ZWO"},{"$f":"IF('1. Ordersheet'!BH945=\"\",\"\",'1. Ordersheet'!BH945)","v":""},{"$f":"IF('1. Ordersheet'!BI945=\"\",\"\",'1. Ordersheet'!BI945)","v":""},{"$f":"IF('1. Ordersheet'!BJ945=\"\",\"\",'1. Ordersheet'!BJ945)","v":""},{"$f":"IF('1. Ordersheet'!BK945=\"\",\"\",'1. Ordersheet'!BK945)","v":""},{"$f":"IF('1. Ordersheet'!BL945=\"\",\"\",'1. Ordersheet'!BL945)","v":""}]
[{"$f":"IF('1. Ordersheet'!F946=\"\",\"\",'1. Ordersheet'!F946)","v":""},{"$f":"IF('1. Ordersheet'!G946=\"\",\"\",'1. Ordersheet'!G946)","v":""},{"$f":"IF('1. Ordersheet'!H946=\"\",\"\",'1. Ordersheet'!H946)","v":""},{"$f":"IF('1. Ordersheet'!I946=\"\",\"\",'1. Ordersheet'!I946)","v":""},{"$f":"IF('1. Ordersheet'!J946=\"\",\"\",'1. Ordersheet'!J946)","v":""},{"$f":"IF('1. Ordersheet'!K946=\"\",\"\",'1. Ordersheet'!K946)","v":""},{"$f":"IF('1. Ordersheet'!L946=\"\",\"\",'1. Ordersheet'!L946)","v":""},{"$f":"IF('1. Ordersheet'!M946=\"\",\"\",'1. Ordersheet'!M946)","v":""},{"$f":"IF('1. Ordersheet'!N946=\"\",\"\",'1. Ordersheet'!N946)","v":""},{"$f":"IF('1. Ordersheet'!O946=\"\",\"\",'1. Ordersheet'!O946)","v":{"$error":"#N/A"}},{"$f":"IF('1. Ordersheet'!P946=\"\",\"\",'1. Ordersheet'!P946)","v":{"$error":"#N/A"}},{"$f":"IF('1. Ordersheet'!Q946=\"\",\"\",'1. Ordersheet'!Q946)","v":""},{"$f":"IF('1. Ordersheet'!R946=\"\",\"\",'1. Ordersheet'!R946)","v":""},{"$f":"IF('1. Ordersheet'!S946=\"\",\"\",'1. Ordersheet'!S946)","v":""},{"$f":"IF('1. Ordersheet'!V946=\"\",\"\",'1. Ordersheet'!V946)","v":""},{"$f":"IF('1. Ordersheet'!W946=\"\",\"\",'1. Ordersheet'!W946)","v":""},{"$f":"IF('1. Ordersheet'!X946=\"\",\"\",'1. Ordersheet'!X946)","v":""},{"$f":"IF('1. Ordersheet'!Y946=\"\",\"\",'1. Ordersheet'!Y946)","v":""},{"$f":"IF('1. Ordersheet'!Z946=\"\",\"\",'1. Ordersheet'!Z946)","v":""},{"$f":"IF('1. Ordersheet'!AA946=\"\",\"\",'1. Ordersheet'!AA946)","v":""},null,{"$f":"IF('1. Ordersheet'!AS946=\"\",\"\",'1. Ordersheet'!AS946)","v":""},{"$f":"IF('1. Ordersheet'!AT946=\"\",\"\",'1. Ordersheet'!AT946)","v":""},null,null,null,null,null,null,null,{"$f":"IF('1. Ordersheet'!AX946=\"\",\"\",'1. Ordersheet'!AX946)","v":""},{"$f":"IF('1. Ordersheet'!AY946=\"\",\"\",'1. Ordersheet'!AY946)","v":""},{"$f":"IF('1. Ordersheet'!AZ946=\"\",\"\",'1. Ordersheet'!AZ946)","v":""},{"$f":"IF('1. Ordersheet'!BA946=\"\",\"\",'1. Ordersheet'!BA946)","v":""},{"$f":"IF('1. Ordersheet'!BC946=\"\",\"\",'1. Ordersheet'!BC946)","v":""},{"$f":"IF('1. Ordersheet'!BD946=\"\",\"\",'1. Ordersheet'!BD946)","v":""},{"$f":"IF('1. Ordersheet'!BE946=\"\",\"\",'1. Ordersheet'!BE946)","v":""},{"$f":"IF('1. Ordersheet'!BF946=\"\",\"\",'1. Ordersheet'!BF946)","v":""},{"$f":"IF('1. Ordersheet'!BG946=\"\",\"\",'1. Ordersheet'!BG946)","v":"ZWO"},{"$f":"IF('1. Ordersheet'!BH946=\"\",\"\",'1. Ordersheet'!BH946)","v":""},{"$f":"IF('1. Ordersheet'!BI946=\"\",\"\",'1. Ordersheet'!BI946)","v":""},{"$f":"IF('1. Ordersheet'!BJ946=\"\",\"\",'1. Ordersheet'!BJ946)","v":""},{"$f":"IF('1. Ordersheet'!BK946=\"\",\"\",'1. Ordersheet'!BK946)","v":""},{"$f":"IF('1. Ordersheet'!BL946=\"\",\"\",'1. Ordersheet'!BL946)","v":""}]
[{"$f":"IF('1. Ordersheet'!F947=\"\",\"\",'1. Ordersheet'!F947)","v":""},{"$f":"IF('1. Ordersheet'!G947=\"\",\"\",'1. Ordersheet'!G947)","v":""},{"$f":"IF('1. Ordersheet'!H947=\"\",\"\",'1. Ordersheet'!H947)","v":""},{"$f":"IF('1. Ordersheet'!I947=\"\",\"\",'1. Ordersheet'!I947)","v":""},{"$f":"IF('1. Ordersheet'!J947=\"\",\"\",'1. Ordersheet'!J947)","v":""},{"$f":"IF('1. Ordersheet'!K947=\"\",\"\",'1. Ordersheet'!K947)","v":""},{"$f":"IF('1. Ordersheet'!L947=\"\",\"\",'1. Ordersheet'!L947)","v":""},{"$f":"IF('1. Ordersheet'!M947=\"\",\"\",'1. Ordersheet'!M947)","v":""},{"$f":"IF('1. Ordersheet'!N947=\"\",\"\",'1. Ordersheet'!N947)","v":""},{"$f":"IF('1. Ordersheet'!O947=\"\",\"\",'1. Ordersheet'!O947)","v":{"$error":"#N/A"}},{"$f":"IF('1. Ordersheet'!P947=\"\",\"\",'1. Ordersheet'!P947)","v":{"$error":"#N/A"}},{"$f":"IF('1. Ordersheet'!Q947=\"\",\"\",'1. Ordersheet'!Q947)","v":""},{"$f":"IF('1. Ordersheet'!R947=\"\",\"\",'1. Ordersheet'!R947)","v":""},{"$f":"IF('1. Ordersheet'!S947=\"\",\"\",'1. Ordersheet'!S947)","v":""},{"$f":"IF('1. Ordersheet'!V947=\"\",\"\",'1. Ordersheet'!V947)","v":""},{"$f":"IF('1. Ordersheet'!W947=\"\",\"\",'1. Ordersheet'!W947)","v":""},{"$f":"IF('1. Ordersheet'!X947=\"\",\"\",'1. Ordersheet'!X947)","v":""},{"$f":"IF('1. Ordersheet'!Y947=\"\",\"\",'1. Ordersheet'!Y947)","v":""},{"$f":"IF('1. Ordersheet'!Z947=\"\",\"\",'1. Ordersheet'!Z947)","v":""},{"$f":"IF('1. Ordersheet'!AA947=\"\",\"\",'1. Ordersheet'!AA947)","v":""},null,{"$f":"IF('1. Ordersheet'!AS947=\"\",\"\",'1. Ordersheet'!AS947)","v":""},{"$f":"IF('1. Ordersheet'!AT947=\"\",\"\",'1. Ordersheet'!AT947)","v":""},null,null,null,null,null,null,null,{"$f":"IF('1. Ordersheet'!AX947=\"\",\"\",'1. Ordersheet'!AX947)","v":""},{"$f":"IF('1. Ordersheet'!AY947=\"\",\"\",'1. Ordersheet'!AY947)","v":""},{"$f":"IF('1. Ordersheet'!AZ947=\"\",\"\",'1. Ordersheet'!AZ947)","v":""},{"$f":"IF('1. Ordersheet'!BA947=\"\",\"\",'1. Ordersheet'!BA947)","v":""},{"$f":"IF('1. Ordersheet'!BC947=\"\",\"\",'1. Ordersheet'!BC947)","v":""},{"$f":"IF('1. Ordersheet'!BD947=\"\",\"\",'1. Ordersheet'!BD947)","v":""},{"$f":"IF('1. Ordersheet'!BE947=\"\",\"\",'1. Ordersheet'!BE947)","v":""},{"$f":"IF('1. Ordersheet'!BF947=\"\",\"\",'1. Ordersheet'!BF947)","v":""},{"$f":"IF('1. Ordersheet'!BG947=\"\",\"\",'1. Ordersheet'!BG947)","v":"ZWO"},{"$f":"IF('1. Ordersheet'!BH947=\"\",\"\",'1. Ordersheet'!BH947)","v":""},{"$f":"IF('1. Ordersheet'!BI947=\"\",\"\",'1. Ordersheet'!BI947)","v":""},{"$f":"IF('1. Ordersheet'!BJ947=\"\",\"\",'1. Ordersheet'!BJ947)","v":""},{"$f":"IF('1. Ordersheet'!BK947=\"\",\"\",'1. Ordersheet'!BK947)","v":""},{"$f":"IF('1. Ordersheet'!BL947=\"\",\"\",'1. Ordersheet'!BL947)","v":""}]
[{"$f":"IF('1. Ordersheet'!F948=\"\",\"\",'1. Ordersheet'!F948)","v":""},{"$f":"IF('1. Ordersheet'!G948=\"\",\"\",'1. Ordersheet'!G948)","v":""},{"$f":"IF('1. Ordersheet'!H948=\"\",\"\",'1. Ordersheet'!H948)","v":""},{"$f":"IF('1. Ordersheet'!I948=\"\",\"\",'1. Ordersheet'!I948)","v":""},{"$f":"IF('1. Ordersheet'!J948=\"\",\"\",'1. Ordersheet'!J948)","v":""},{"$f":"IF('1. Ordersheet'!K948=\"\",\"\",'1. Ordersheet'!K948)","v":""},{"$f":"IF('1. Ordersheet'!L948=\"\",\"\",'1. Ordersheet'!L948)","v":""},{"$f":"IF('1. Ordersheet'!M948=\"\",\"\",'1. Ordersheet'!M948)","v":""},{"$f":"IF('1. Ordersheet'!N948=\"\",\"\",'1. Ordersheet'!N948)","v":""},{"$f":"IF('1. Ordersheet'!O948=\"\",\"\",'1. Ordersheet'!O948)","v":{"$error":"#N/A"}},{"$f":"IF('1. Ordersheet'!P948=\"\",\"\",'1. Ordersheet'!P948)","v":{"$error":"#N/A"}},{"$f":"IF('1. Ordersheet'!Q948=\"\",\"\",'1. Ordersheet'!Q948)","v":""},{"$f":"IF('1. Ordersheet'!R948=\"\",\"\",'1. Ordersheet'!R948)","v":""},{"$f":"IF('1. Ordersheet'!S948=\"\",\"\",'1. Ordersheet'!S948)","v":""},{"$f":"IF('1. Ordersheet'!V948=\"\",\"\",'1. Ordersheet'!V948)","v":""},{"$f":"IF('1. Ordersheet'!W948=\"\",\"\",'1. Ordersheet'!W948)","v":""},{"$f":"IF('1. Ordersheet'!X948=\"\",\"\",'1. Ordersheet'!X948)","v":""},{"$f":"IF('1. Ordersheet'!Y948=\"\",\"\",'1. Ordersheet'!Y948)","v":""},{"$f":"IF('1. Ordersheet'!Z948=\"\",\"\",'1. Ordersheet'!Z948)","v":""},{"$f":"IF('1. Ordersheet'!AA948=\"\",\"\",'1. Ordersheet'!AA948)","v":""},null,{"$f":"IF('1. Ordersheet'!AS948=\"\",\"\",'1. Ordersheet'!AS948)","v":""},{"$f":"IF('1. Ordersheet'!AT948=\"\",\"\",'1. Ordersheet'!AT948)","v":""},null,null,null,null,null,null,null,{"$f":"IF('1. Ordersheet'!AX948=\"\",\"\",'1. Ordersheet'!AX948)","v":""},{"$f":"IF('1. Ordersheet'!AY948=\"\",\"\",'1. Ordersheet'!AY948)","v":""},{"$f":"IF('1. Ordersheet'!AZ948=\"\",\"\",'1. Ordersheet'!AZ948)","v":""},{"$f":"IF('1. Ordersheet'!BA948=\"\",\"\",'1. Ordersheet'!BA948)","v":""},{"$f":"IF('1. Ordersheet'!BC948=\"\",\"\",'1. Ordersheet'!BC948)","v":""},{"$f":"IF('1. Ordersheet'!BD948=\"\",\"\",'1. Ordersheet'!BD948)","v":""},{"$f":"IF('1. Ordersheet'!BE948=\"\",\"\",'1. Ordersheet'!BE948)","v":""},{"$f":"IF('1. Ordersheet'!BF948=\"\",\"\",'1. Ordersheet'!BF948)","v":""},{"$f":"IF('1. Ordersheet'!BG948=\"\",\"\",'1. Ordersheet'!BG948)","v":"ZWO"},{"$f":"IF('1. Ordersheet'!BH948=\"\",\"\",'1. Ordersheet'!BH948)","v":""},{"$f":"IF('1. Ordersheet'!BI948=\"\",\"\",'1. Ordersheet'!BI948)","v":""},{"$f":"IF('1. Ordersheet'!BJ948=\"\",\"\",'1. Ordersheet'!BJ948)","v":""},{"$f":"IF('1. Ordersheet'!BK948=\"\",\"\",'1. Ordersheet'!BK948)","v":""},{"$f":"IF('1. Ordersheet'!BL948=\"\",\"\",'1. Ordersheet'!BL948)","v":""}]
[{"$f":"IF('1. Ordersheet'!F949=\"\",\"\",'1. Ordersheet'!F949)","v":""},{"$f":"IF('1. Ordersheet'!G949=\"\",\"\",'1. Ordersheet'!G949)","v":""},{"$f":"IF('1. Ordersheet'!H949=\"\",\"\",'1. Ordersheet'!H949)","v":""},{"$f":"IF('1. Ordersheet'!I949=\"\",\"\",'1. Ordersheet'!I949)","v":""},{"$f":"IF('1. Ordersheet'!J949=\"\",\"\",'1. Ordersheet'!J949)","v":""},{"$f":"IF('1. Ordersheet'!K949=\"\",\"\",'1. Ordersheet'!K949)","v":""},{"$f":"IF('1. Ordersheet'!L949=\"\",\"\",'1. Ordersheet'!L949)","v":""},{"$f":"IF('1. Ordersheet'!M949=\"\",\"\",'1. Ordersheet'!M949)","v":""},{"$f":"IF('1. Ordersheet'!N949=\"\",\"\",'1. Ordersheet'!N949)","v":""},{"$f":"IF('1. Ordersheet'!O949=\"\",\"\",'1. Ordersheet'!O949)","v":{"$error":"#N/A"}},{"$f":"IF('1. Ordersheet'!P949=\"\",\"\",'1. Ordersheet'!P949)","v":{"$error":"#N/A"}},{"$f":"IF('1. Ordersheet'!Q949=\"\",\"\",'1. Ordersheet'!Q949)","v":""},{"$f":"IF('1. Ordersheet'!R949=\"\",\"\",'1. Ordersheet'!R949)","v":""},{"$f":"IF('1. Ordersheet'!S949=\"\",\"\",'1. Ordersheet'!S949)","v":""},{"$f":"IF('1. Ordersheet'!V949=\"\",\"\",'1. Ordersheet'!V949)","v":""},{"$f":"IF('1. Ordersheet'!W949=\"\",\"\",'1. Ordersheet'!W949)","v":""},{"$f":"IF('1. Ordersheet'!X949=\"\",\"\",'1. Ordersheet'!X949)","v":""},{"$f":"IF('1. Ordersheet'!Y949=\"\",\"\",'1. Ordersheet'!Y949)","v":""},{"$f":"IF('1. Ordersheet'!Z949=\"\",\"\",'1. Ordersheet'!Z949)","v":""},{"$f":"IF('1. Ordersheet'!AA949=\"\",\"\",'1. Ordersheet'!AA949)","v":""},null,{"$f":"IF('1. Ordersheet'!AS949=\"\",\"\",'1. Ordersheet'!AS949)","v":""},{"$f":"IF('1. Ordersheet'!AT949=\"\",\"\",'1. Ordersheet'!AT949)","v":""},null,null,null,null,null,null,null,{"$f":"IF('1. Ordersheet'!AX949=\"\",\"\",'1. Ordersheet'!AX949)","v":""},{"$f":"IF('1. Ordersheet'!AY949=\"\",\"\",'1. Ordersheet'!AY949)","v":""},{"$f":"IF('1. Ordersheet'!AZ949=\"\",\"\",'1. Ordersheet'!AZ949)","v":""},{"$f":"IF('1. Ordersheet'!BA949=\"\",\"\",'1. Ordersheet'!BA949)","v":""},{"$f":"IF('1. Ordersheet'!BC949=\"\",\"\",'1. Ordersheet'!BC949)","v":""},{"$f":"IF('1. Ordersheet'!BD949=\"\",\"\",'1. Ordersheet'!BD949)","v":""},{"$f":"IF('1. Ordersheet'!BE949=\"\",\"\",'1. Ordersheet'!BE949)","v":""},{"$f":"IF('1. Ordersheet'!BF949=\"\",\"\",'1. Ordersheet'!BF949)","v":""},{"$f":"IF('1. Ordersheet'!BG949=\"\",\"\",'1. Ordersheet'!BG949)","v":"ZWO"},{"$f":"IF('1. Ordersheet'!BH949=\"\",\"\",'1. Ordersheet'!BH949)","v":""},{"$f":"IF('1. Ordersheet'!BI949=\"\",\"\",'1. Ordersheet'!BI949)","v":""},{"$f":"IF('1. Ordersheet'!BJ949=\"\",\"\",'1. Ordersheet'!BJ949)","v":""},{"$f":"IF('1. Ordersheet'!BK949=\"\",\"\",'1. Ordersheet'!BK949)","v":""},{"$f":"IF('1. Ordersheet'!BL949=\"\",\"\",'1. Ordersheet'!BL949)","v":""}]
[{"$f":"IF('1. Ordersheet'!F950=\"\",\"\",'1. Ordersheet'!F950)","v":""},{"$f":"IF('1. Ordersheet'!G950=\"\",\"\",'1. Ordersheet'!G950)","v":""},{"$f":"IF('1. Ordersheet'!H950=\"\",\"\",'1. Ordersheet'!H950)","v":""},{"$f":"IF('1. Ordersheet'!I950=\"\",\"\",'1. Ordersheet'!I950)","v":""},{"$f":"IF('1. Ordersheet'!J950=\"\",\"\",'1. Ordersheet'!J950)","v":""},{"$f":"IF('1. Ordersheet'!K950=\"\",\"\",'1. Ordersheet'!K950)","v":""},{"$f":"IF('1. Ordersheet'!L950=\"\",\"\",'1. Ordersheet'!L950)","v":""},{"$f":"IF('1. Ordersheet'!M950=\"\",\"\",'1. Ordersheet'!M950)","v":""},{"$f":"IF('1. Ordersheet'!N950=\"\",\"\",'1. Ordersheet'!N950)","v":""},{"$f":"IF('1. Ordersheet'!O950=\"\",\"\",'1. Ordersheet'!O950)","v":{"$error":"#N/A"}},{"$f":"IF('1. Ordersheet'!P950=\"\",\"\",'1. Ordersheet'!P950)","v":{"$error":"#N/A"}},{"$f":"IF('1. Ordersheet'!Q950=\"\",\"\",'1. Ordersheet'!Q950)","v":""},{"$f":"IF('1. Ordersheet'!R950=\"\",\"\",'1. Ordersheet'!R950)","v":""},{"$f":"IF('1. Ordersheet'!S950=\"\",\"\",'1. Ordersheet'!S950)","v":""},{"$f":"IF('1. Ordersheet'!V950=\"\",\"\",'1. Ordersheet'!V950)","v":""},{"$f":"IF('1. Ordersheet'!W950=\"\",\"\",'1. Ordersheet'!W950)","v":""},{"$f":"IF('1. Ordersheet'!X950=\"\",\"\",'1. Ordersheet'!X950)","v":""},{"$f":"IF('1. Ordersheet'!Y950=\"\",\"\",'1. Ordersheet'!Y950)","v":""},{"$f":"IF('1. Ordersheet'!Z950=\"\",\"\",'1. Ordersheet'!Z950)","v":""},{"$f":"IF('1. Ordersheet'!AA950=\"\",\"\",'1. Ordersheet'!AA950)","v":""},null,{"$f":"IF('1. Ordersheet'!AS950=\"\",\"\",'1. Ordersheet'!AS950)","v":""},{"$f":"IF('1. Ordersheet'!AT950=\"\",\"\",'1. Ordersheet'!AT950)","v":""},null,null,null,null,null,null,null,{"$f":"IF('1. Ordersheet'!AX950=\"\",\"\",'1. Ordersheet'!AX950)","v":""},{"$f":"IF('1. Ordersheet'!AY950=\"\",\"\",'1. Ordersheet'!AY950)","v":""},{"$f":"IF('1. Ordersheet'!AZ950=\"\",\"\",'1. Ordersheet'!AZ950)","v":""},{"$f":"IF('1. Ordersheet'!BA950=\"\",\"\",'1. Ordersheet'!BA950)","v":""},{"$f":"IF('1. Ordersheet'!BC950=\"\",\"\",'1. Ordersheet'!BC950)","v":""},{"$f":"IF('1. Ordersheet'!BD950=\"\",\"\",'1. Ordersheet'!BD950)","v":""},{"$f":"IF('1. Ordersheet'!BE950=\"\",\"\",'1. Ordersheet'!BE950)","v":""},{"$f":"IF('1. Ordersheet'!BF950=\"\",\"\",'1. Ordersheet'!BF950)","v":""},{"$f":"IF('1. Ordersheet'!BG950=\"\",\"\",'1. Ordersheet'!BG950)","v":"ZWO"},{"$f":"IF('1. Ordersheet'!BH950=\"\",\"\",'1. Ordersheet'!BH950)","v":""},{"$f":"IF('1. Ordersheet'!BI950=\"\",\"\",'1. Ordersheet'!BI950)","v":""},{"$f":"IF('1. Ordersheet'!BJ950=\"\",\"\",'1. Ordersheet'!BJ950)","v":""},{"$f":"IF('1. Ordersheet'!BK950=\"\",\"\",'1. Ordersheet'!BK950)","v":""},{"$f":"IF('1. Ordersheet'!BL950=\"\",\"\",'1. Ordersheet'!BL950)","v":""}]
[{"$f":"IF('1. Ordersheet'!F951=\"\",\"\",'1. Ordersheet'!F951)","v":""},{"$f":"IF('1. Ordersheet'!G951=\"\",\"\",'1. Ordersheet'!G951)","v":""},{"$f":"IF('1. Ordersheet'!H951=\"\",\"\",'1. Ordersheet'!H951)","v":""},{"$f":"IF('1. Ordersheet'!I951=\"\",\"\",'1. Ordersheet'!I951)","v":""},{"$f":"IF('1. Ordersheet'!J951=\"\",\"\",'1. Ordersheet'!J951)","v":""},{"$f":"IF('1. Ordersheet'!K951=\"\",\"\",'1. Ordersheet'!K951)","v":""},{"$f":"IF('1. Ordersheet'!L951=\"\",\"\",'1. Ordersheet'!L951)","v":""},{"$f":"IF('1. Ordersheet'!M951=\"\",\"\",'1. Ordersheet'!M951)","v":""},{"$f":"IF('1. Ordersheet'!N951=\"\",\"\",'1. Ordersheet'!N951)","v":""},{"$f":"IF('1. Ordersheet'!O951=\"\",\"\",'1. Ordersheet'!O951)","v":{"$error":"#N/A"}},{"$f":"IF('1. Ordersheet'!P951=\"\",\"\",'1. Ordersheet'!P951)","v":{"$error":"#N/A"}},{"$f":"IF('1. Ordersheet'!Q951=\"\",\"\",'1. Ordersheet'!Q951)","v":""},{"$f":"IF('1. Ordersheet'!R951=\"\",\"\",'1. Ordersheet'!R951)","v":""},{"$f":"IF('1. Ordersheet'!S951=\"\",\"\",'1. Ordersheet'!S951)","v":""},{"$f":"IF('1. Ordersheet'!V951=\"\",\"\",'1. Ordersheet'!V951)","v":""},{"$f":"IF('1. Ordersheet'!W951=\"\",\"\",'1. Ordersheet'!W951)","v":""},{"$f":"IF('1. Ordersheet'!X951=\"\",\"\",'1. Ordersheet'!X951)","v":""},{"$f":"IF('1. Ordersheet'!Y951=\"\",\"\",'1. Ordersheet'!Y951)","v":""},{"$f":"IF('1. Ordersheet'!Z951=\"\",\"\",'1. Ordersheet'!Z951)","v":""},{"$f":"IF('1. Ordersheet'!AA951=\"\",\"\",'1. Ordersheet'!AA951)","v":""},null,{"$f":"IF('1. Ordersheet'!AS951=\"\",\"\",'1. Ordersheet'!AS951)","v":""},{"$f":"IF('1. Ordersheet'!AT951=\"\",\"\",'1. Ordersheet'!AT951)","v":""},null,null,null,null,null,null,null,{"$f":"IF('1. Ordersheet'!AX951=\"\",\"\",'1. Ordersheet'!AX951)","v":""},{"$f":"IF('1. Ordersheet'!AY951=\"\",\"\",'1. Ordersheet'!AY951)","v":""},{"$f":"IF('1. Ordersheet'!AZ951=\"\",\"\",'1. Ordersheet'!AZ951)","v":""},{"$f":"IF('1. Ordersheet'!BA951=\"\",\"\",'1. Ordersheet'!BA951)","v":""},{"$f":"IF('1. Ordersheet'!BC951=\"\",\"\",'1. Ordersheet'!BC951)","v":""},{"$f":"IF('1. Ordersheet'!BD951=\"\",\"\",'1. Ordersheet'!BD951)","v":""},{"$f":"IF('1. Ordersheet'!BE951=\"\",\"\",'1. Ordersheet'!BE951)","v":""},{"$f":"IF('1. Ordersheet'!BF951=\"\",\"\",'1. Ordersheet'!BF951)","v":""},{"$f":"IF('1. Ordersheet'!BG951=\"\",\"\",'1. Ordersheet'!BG951)","v":"ZWO"},{"$f":"IF('1. Ordersheet'!BH951=\"\",\"\",'1. Ordersheet'!BH951)","v":""},{"$f":"IF('1. Ordersheet'!BI951=\"\",\"\",'1. Ordersheet'!BI951)","v":""},{"$f":"IF('1. Ordersheet'!BJ951=\"\",\"\",'1. Ordersheet'!BJ951)","v":""},{"$f":"IF('1. Ordersheet'!BK951=\"\",\"\",'1. Ordersheet'!BK951)","v":""},{"$f":"IF('1. Ordersheet'!BL951=\"\",\"\",'1. Ordersheet'!BL951)","v":""}]
[{"$f":"IF('1. Ordersheet'!F952=\"\",\"\",'1. Ordersheet'!F952)","v":""},{"$f":"IF('1. Ordersheet'!G952=\"\",\"\",'1. Ordersheet'!G952)","v":""},{"$f":"IF('1. Ordersheet'!H952=\"\",\"\",'1. Ordersheet'!H952)","v":""},{"$f":"IF('1. Ordersheet'!I952=\"\",\"\",'1. Ordersheet'!I952)","v":""},{"$f":"IF('1. Ordersheet'!J952=\"\",\"\",'1. Ordersheet'!J952)","v":""},{"$f":"IF('1. Ordersheet'!K952=\"\",\"\",'1. Ordersheet'!K952)","v":""},{"$f":"IF('1. Ordersheet'!L952=\"\",\"\",'1. Ordersheet'!L952)","v":""},{"$f":"IF('1. Ordersheet'!M952=\"\",\"\",'1. Ordersheet'!M952)","v":""},{"$f":"IF('1. Ordersheet'!N952=\"\",\"\",'1. Ordersheet'!N952)","v":""},{"$f":"IF('1. Ordersheet'!O952=\"\",\"\",'1. Ordersheet'!O952)","v":{"$error":"#N/A"}},{"$f":"IF('1. Ordersheet'!P952=\"\",\"\",'1. Ordersheet'!P952)","v":{"$error":"#N/A"}},{"$f":"IF('1. Ordersheet'!Q952=\"\",\"\",'1. Ordersheet'!Q952)","v":""},{"$f":"IF('1. Ordersheet'!R952=\"\",\"\",'1. Ordersheet'!R952)","v":""},{"$f":"IF('1. Ordersheet'!S952=\"\",\"\",'1. Ordersheet'!S952)","v":""},{"$f":"IF('1. Ordersheet'!V952=\"\",\"\",'1. Ordersheet'!V952)","v":""},{"$f":"IF('1. Ordersheet'!W952=\"\",\"\",'1. Ordersheet'!W952)","v":""},{"$f":"IF('1. Ordersheet'!X952=\"\",\"\",'1. Ordersheet'!X952)","v":""},{"$f":"IF('1. Ordersheet'!Y952=\"\",\"\",'1. Ordersheet'!Y952)","v":""},{"$f":"IF('1. Ordersheet'!Z952=\"\",\"\",'1. Ordersheet'!Z952)","v":""},{"$f":"IF('1. Ordersheet'!AA952=\"\",\"\",'1. Ordersheet'!AA952)","v":""},null,{"$f":"IF('1. Ordersheet'!AS952=\"\",\"\",'1. Ordersheet'!AS952)","v":""},{"$f":"IF('1. Ordersheet'!AT952=\"\",\"\",'1. Ordersheet'!AT952)","v":""},null,null,null,null,null,null,null,{"$f":"IF('1. Ordersheet'!AX952=\"\",\"\",'1. Ordersheet'!AX952)","v":""},{"$f":"IF('1. Ordersheet'!AY952=\"\",\"\",'1. Ordersheet'!AY952)","v":""},{"$f":"IF('1. Ordersheet'!AZ952=\"\",\"\",'1. Ordersheet'!AZ952)","v":""},{"$f":"IF('1. Ordersheet'!BA952=\"\",\"\",'1. Ordersheet'!BA952)","v":""},{"$f":"IF('1. Ordersheet'!BC952=\"\",\"\",'1. Ordersheet'!BC952)","v":""},{"$f":"IF('1. Ordersheet'!BD952=\"\",\"\",'1. Ordersheet'!BD952)","v":""},{"$f":"IF('1. Ordersheet'!BE952=\"\",\"\",'1. Ordersheet'!BE952)","v":""},{"$f":"IF('1. Ordersheet'!BF952=\"\",\"\",'1. Ordersheet'!BF952)","v":""},{"$f":"IF('1. Ordersheet'!BG952=\"\",\"\",'1. Ordersheet'!BG952)","v":"ZWO"},{"$f":"IF('1. Ordersheet'!BH952=\"\",\"\",'1. Ordersheet'!BH952)","v":""},{"$f":"IF('1. Ordersheet'!BI952=\"\",\"\",'1. Ordersheet'!BI952)","v":""},{"$f":"IF('1. Ordersheet'!BJ952=\"\",\"\",'1. Ordersheet'!BJ952)","v":""},{"$f":"IF('1. Ordersheet'!BK952=\"\",\"\",'1. Ordersheet'!BK952)","v":""},{"$f":"IF('1. Ordersheet'!BL952=\"\",\"\",'1. Ordersheet'!BL952)","v":""}]
[{"$f":"IF('1. Ordersheet'!F953=\"\",\"\",'1. Ordersheet'!F953)","v":""},{"$f":"IF('1. Ordersheet'!G953=\"\",\"\",'1. Ordersheet'!G953)","v":""},{"$f":"IF('1. Ordersheet'!H953=\"\",\"\",'1. Ordersheet'!H953)","v":""},{"$f":"IF('1. Ordersheet'!I953=\"\",\"\",'1. Ordersheet'!I953)","v":""},{"$f":"IF('1. Ordersheet'!J953=\"\",\"\",'1. Ordersheet'!J953)","v":""},{"$f":"IF('1. Ordersheet'!K953=\"\",\"\",'1. Ordersheet'!K953)","v":""},{"$f":"IF('1. Ordersheet'!L953=\"\",\"\",'1. Ordersheet'!L953)","v":""},{"$f":"IF('1. Ordersheet'!M953=\"\",\"\",'1. Ordersheet'!M953)","v":""},{"$f":"IF('1. Ordersheet'!N953=\"\",\"\",'1. Ordersheet'!N953)","v":""},{"$f":"IF('1. Ordersheet'!O953=\"\",\"\",'1. Ordersheet'!O953)","v":{"$error":"#N/A"}},{"$f":"IF('1. Ordersheet'!P953=\"\",\"\",'1. Ordersheet'!P953)","v":{"$error":"#N/A"}},{"$f":"IF('1. Ordersheet'!Q953=\"\",\"\",'1. Ordersheet'!Q953)","v":""},{"$f":"IF('1. Ordersheet'!R953=\"\",\"\",'1. Ordersheet'!R953)","v":""},{"$f":"IF('1. Ordersheet'!S953=\"\",\"\",'1. Ordersheet'!S953)","v":""},{"$f":"IF('1. Ordersheet'!V953=\"\",\"\",'1. Ordersheet'!V953)","v":""},{"$f":"IF('1. Ordersheet'!W953=\"\",\"\",'1. Ordersheet'!W953)","v":""},{"$f":"IF('1. Ordersheet'!X953=\"\",\"\",'1. Ordersheet'!X953)","v":""},{"$f":"IF('1. Ordersheet'!Y953=\"\",\"\",'1. Ordersheet'!Y953)","v":""},{"$f":"IF('1. Ordersheet'!Z953=\"\",\"\",'1. Ordersheet'!Z953)","v":""},{"$f":"IF('1. Ordersheet'!AA953=\"\",\"\",'1. Ordersheet'!AA953)","v":""},null,{"$f":"IF('1. Ordersheet'!AS953=\"\",\"\",'1. Ordersheet'!AS953)","v":""},{"$f":"IF('1. Ordersheet'!AT953=\"\",\"\",'1. Ordersheet'!AT953)","v":""},null,null,null,null,null,null,null,{"$f":"IF('1. Ordersheet'!AX953=\"\",\"\",'1. Ordersheet'!AX953)","v":""},{"$f":"IF('1. Ordersheet'!AY953=\"\",\"\",'1. Ordersheet'!AY953)","v":""},{"$f":"IF('1. Ordersheet'!AZ953=\"\",\"\",'1. Ordersheet'!AZ953)","v":""},{"$f":"IF('1. Ordersheet'!BA953=\"\",\"\",'1. Ordersheet'!BA953)","v":""},{"$f":"IF('1. Ordersheet'!BC953=\"\",\"\",'1. Ordersheet'!BC953)","v":""},{"$f":"IF('1. Ordersheet'!BD953=\"\",\"\",'1. Ordersheet'!BD953)","v":""},{"$f":"IF('1. Ordersheet'!BE953=\"\",\"\",'1. Ordersheet'!BE953)","v":""},{"$f":"IF('1. Ordersheet'!BF953=\"\",\"\",'1. Ordersheet'!BF953)","v":""},{"$f":"IF('1. Ordersheet'!BG953=\"\",\"\",'1. Ordersheet'!BG953)","v":"ZWO"},{"$f":"IF('1. Ordersheet'!BH953=\"\",\"\",'1. Ordersheet'!BH953)","v":""},{"$f":"IF('1. Ordersheet'!BI953=\"\",\"\",'1. Ordersheet'!BI953)","v":""},{"$f":"IF('1. Ordersheet'!BJ953=\"\",\"\",'1. Ordersheet'!BJ953)","v":""},{"$f":"IF('1. Ordersheet'!BK953=\"\",\"\",'1. Ordersheet'!BK953)","v":""},{"$f":"IF('1. Ordersheet'!BL953=\"\",\"\",'1. Ordersheet'!BL953)","v":""}]
[{"$f":"IF('1. Ordersheet'!F954=\"\",\"\",'1. Ordersheet'!F954)","v":""},{"$f":"IF('1. Ordersheet'!G954=\"\",\"\",'1. Ordersheet'!G954)","v":""},{"$f":"IF('1. Ordersheet'!H954=\"\",\"\",'1. Ordersheet'!H954)","v":""},{"$f":"IF('1. Ordersheet'!I954=\"\",\"\",'1. Ordersheet'!I954)","v":""},{"$f":"IF('1. Ordersheet'!J954=\"\",\"\",'1. Ordersheet'!J954)","v":""},{"$f":"IF('1. Ordersheet'!K954=\"\",\"\",'1. Ordersheet'!K954)","v":""},{"$f":"IF('1. Ordersheet'!L954=\"\",\"\",'1. Ordersheet'!L954)","v":""},{"$f":"IF('1. Ordersheet'!M954=\"\",\"\",'1. Ordersheet'!M954)","v":""},{"$f":"IF('1. Ordersheet'!N954=\"\",\"\",'1. Ordersheet'!N954)","v":""},{"$f":"IF('1. Ordersheet'!O954=\"\",\"\",'1. Ordersheet'!O954)","v":{"$error":"#N/A"}},{"$f":"IF('1. Ordersheet'!P954=\"\",\"\",'1. Ordersheet'!P954)","v":{"$error":"#N/A"}},{"$f":"IF('1. Ordersheet'!Q954=\"\",\"\",'1. Ordersheet'!Q954)","v":""},{"$f":"IF('1. Ordersheet'!R954=\"\",\"\",'1. Ordersheet'!R954)","v":""},{"$f":"IF('1. Ordersheet'!S954=\"\",\"\",'1. Ordersheet'!S954)","v":""},{"$f":"IF('1. Ordersheet'!V954=\"\",\"\",'1. Ordersheet'!V954)","v":""},{"$f":"IF('1. Ordersheet'!W954=\"\",\"\",'1. Ordersheet'!W954)","v":""},{"$f":"IF('1. Ordersheet'!X954=\"\",\"\",'1. Ordersheet'!X954)","v":""},{"$f":"IF('1. Ordersheet'!Y954=\"\",\"\",'1. Ordersheet'!Y954)","v":""},{"$f":"IF('1. Ordersheet'!Z954=\"\",\"\",'1. Ordersheet'!Z954)","v":""},{"$f":"IF('1. Ordersheet'!AA954=\"\",\"\",'1. Ordersheet'!AA954)","v":""},null,{"$f":"IF('1. Ordersheet'!AS954=\"\",\"\",'1. Ordersheet'!AS954)","v":""},{"$f":"IF('1. Ordersheet'!AT954=\"\",\"\",'1. Ordersheet'!AT954)","v":""},null,null,null,null,null,null,null,{"$f":"IF('1. Ordersheet'!AX954=\"\",\"\",'1. Ordersheet'!AX954)","v":""},{"$f":"IF('1. Ordersheet'!AY954=\"\",\"\",'1. Ordersheet'!AY954)","v":""},{"$f":"IF('1. Ordersheet'!AZ954=\"\",\"\",'1. Ordersheet'!AZ954)","v":""},{"$f":"IF('1. Ordersheet'!BA954=\"\",\"\",'1. Ordersheet'!BA954)","v":""},{"$f":"IF('1. Ordersheet'!BC954=\"\",\"\",'1. Ordersheet'!BC954)","v":""},{"$f":"IF('1. Ordersheet'!BD954=\"\",\"\",'1. Ordersheet'!BD954)","v":""},{"$f":"IF('1. Ordersheet'!BE954=\"\",\"\",'1. Ordersheet'!BE954)","v":""},{"$f":"IF('1. Ordersheet'!BF954=\"\",\"\",'1. Ordersheet'!BF954)","v":""},{"$f":"IF('1. Ordersheet'!BG954=\"\",\"\",'1. Ordersheet'!BG954)","v":"ZWO"},{"$f":"IF('1. Ordersheet'!BH954=\"\",\"\",'1. Ordersheet'!BH954)","v":""},{"$f":"IF('1. Ordersheet'!BI954=\"\",\"\",'1. Ordersheet'!BI954)","v":""},{"$f":"IF('1. Ordersheet'!BJ954=\"\",\"\",'1. Ordersheet'!BJ954)","v":""},{"$f":"IF('1. Ordersheet'!BK954=\"\",\"\",'1. Ordersheet'!BK954)","v":""},{"$f":"IF('1. Ordersheet'!BL954=\"\",\"\",'1. Ordersheet'!BL954)","v":""}]
[{"$f":"IF('1. Ordersheet'!F955=\"\",\"\",'1. Ordersheet'!F955)","v":""},{"$f":"IF('1. Ordersheet'!G955=\"\",\"\",'1. Ordersheet'!G955)","v":""},{"$f":"IF('1. Ordersheet'!H955=\"\",\"\",'1. Ordersheet'!H955)","v":""},{"$f":"IF('1. Ordersheet'!I955=\"\",\"\",'1. Ordersheet'!I955)","v":""},{"$f":"IF('1. Ordersheet'!J955=\"\",\"\",'1. Ordersheet'!J955)","v":""},{"$f":"IF('1. Ordersheet'!K955=\"\",\"\",'1. Ordersheet'!K955)","v":""},{"$f":"IF('1. Ordersheet'!L955=\"\",\"\",'1. Ordersheet'!L955)","v":""},{"$f":"IF('1. Ordersheet'!M955=\"\",\"\",'1. Ordersheet'!M955)","v":""},{"$f":"IF('1. Ordersheet'!N955=\"\",\"\",'1. Ordersheet'!N955)","v":""},{"$f":"IF('1. Ordersheet'!O955=\"\",\"\",'1. Ordersheet'!O955)","v":{"$error":"#N/A"}},{"$f":"IF('1. Ordersheet'!P955=\"\",\"\",'1. Ordersheet'!P955)","v":{"$error":"#N/A"}},{"$f":"IF('1. Ordersheet'!Q955=\"\",\"\",'1. Ordersheet'!Q955)","v":""},{"$f":"IF('1. Ordersheet'!R955=\"\",\"\",'1. Ordersheet'!R955)","v":""},{"$f":"IF('1. Ordersheet'!S955=\"\",\"\",'1. Ordersheet'!S955)","v":""},{"$f":"IF('1. Ordersheet'!V955=\"\",\"\",'1. Ordersheet'!V955)","v":""},{"$f":"IF('1. Ordersheet'!W955=\"\",\"\",'1. Ordersheet'!W955)","v":""},{"$f":"IF('1. Ordersheet'!X955=\"\",\"\",'1. Ordersheet'!X955)","v":""},{"$f":"IF('1. Ordersheet'!Y955=\"\",\"\",'1. Ordersheet'!Y955)","v":""},{"$f":"IF('1. Ordersheet'!Z955=\"\",\"\",'1. Ordersheet'!Z955)","v":""},{"$f":"IF('1. Ordersheet'!AA955=\"\",\"\",'1. Ordersheet'!AA955)","v":""},null,{"$f":"IF('1. Ordersheet'!AS955=\"\",\"\",'1. Ordersheet'!AS955)","v":""},{"$f":"IF('1. Ordersheet'!AT955=\"\",\"\",'1. Ordersheet'!AT955)","v":""},null,null,null,null,null,null,null,{"$f":"IF('1. Ordersheet'!AX955=\"\",\"\",'1. Ordersheet'!AX955)","v":""},{"$f":"IF('1. Ordersheet'!AY955=\"\",\"\",'1. Ordersheet'!AY955)","v":""},{"$f":"IF('1. Ordersheet'!AZ955=\"\",\"\",'1. Ordersheet'!AZ955)","v":""},{"$f":"IF('1. Ordersheet'!BA955=\"\",\"\",'1. Ordersheet'!BA955)","v":""},{"$f":"IF('1. Ordersheet'!BC955=\"\",\"\",'1. Ordersheet'!BC955)","v":""},{"$f":"IF('1. Ordersheet'!BD955=\"\",\"\",'1. Ordersheet'!BD955)","v":""},{"$f":"IF('1. Ordersheet'!BE955=\"\",\"\",'1. Ordersheet'!BE955)","v":""},{"$f":"IF('1. Ordersheet'!BF955=\"\",\"\",'1. Ordersheet'!BF955)","v":""},{"$f":"IF('1. Ordersheet'!BG955=\"\",\"\",'1. Ordersheet'!BG955)","v":"ZWO"},{"$f":"IF('1. Ordersheet'!BH955=\"\",\"\",'1. Ordersheet'!BH955)","v":""},{"$f":"IF('1. Ordersheet'!BI955=\"\",\"\",'1. Ordersheet'!BI955)","v":""},{"$f":"IF('1. Ordersheet'!BJ955=\"\",\"\",'1. Ordersheet'!BJ955)","v":""},{"$f":"IF('1. Ordersheet'!BK955=\"\",\"\",'1. Ordersheet'!BK955)","v":""},{"$f":"IF('1. Ordersheet'!BL955=\"\",\"\",'1. Ordersheet'!BL955)","v":""}]
[{"$f":"IF('1. Ordersheet'!F956=\"\",\"\",'1. Ordersheet'!F956)","v":""},{"$f":"IF('1. Ordersheet'!G956=\"\",\"\",'1. Ordersheet'!G956)","v":""},{"$f":"IF('1. Ordersheet'!H956=\"\",\"\",'1. Ordersheet'!H956)","v":""},{"$f":"IF('1. Ordersheet'!I956=\"\",\"\",'1. Ordersheet'!I956)","v":""},{"$f":"IF('1. Ordersheet'!J956=\"\",\"\",'1. Ordersheet'!J956)","v":""},{"$f":"IF('1. Ordersheet'!K956=\"\",\"\",'1. Ordersheet'!K956)","v":""},{"$f":"IF('1. Ordersheet'!L956=\"\",\"\",'1. Ordersheet'!L956)","v":""},{"$f":"IF('1. Ordersheet'!M956=\"\",\"\",'1. Ordersheet'!M956)","v":""},{"$f":"IF('1. Ordersheet'!N956=\"\",\"\",'1. Ordersheet'!N956)","v":""},{"$f":"IF('1. Ordersheet'!O956=\"\",\"\",'1. Ordersheet'!O956)","v":{"$error":"#N/A"}},{"$f":"IF('1. Ordersheet'!P956=\"\",\"\",'1. Ordersheet'!P956)","v":{"$error":"#N/A"}},{"$f":"IF('1. Ordersheet'!Q956=\"\",\"\",'1. Ordersheet'!Q956)","v":""},{"$f":"IF('1. Ordersheet'!R956=\"\",\"\",'1. Ordersheet'!R956)","v":""},{"$f":"IF('1. Ordersheet'!S956=\"\",\"\",'1. Ordersheet'!S956)","v":""},{"$f":"IF('1. Ordersheet'!V956=\"\",\"\",'1. Ordersheet'!V956)","v":""},{"$f":"IF('1. Ordersheet'!W956=\"\",\"\",'1. Ordersheet'!W956)","v":""},{"$f":"IF('1. Ordersheet'!X956=\"\",\"\",'1. Ordersheet'!X956)","v":""},{"$f":"IF('1. Ordersheet'!Y956=\"\",\"\",'1. Ordersheet'!Y956)","v":""},{"$f":"IF('1. Ordersheet'!Z956=\"\",\"\",'1. Ordersheet'!Z956)","v":""},{"$f":"IF('1. Ordersheet'!AA956=\"\",\"\",'1. Ordersheet'!AA956)","v":""},null,{"$f":"IF('1. Ordersheet'!AS956=\"\",\"\",'1. Ordersheet'!AS956)","v":""},{"$f":"IF('1. Ordersheet'!AT956=\"\",\"\",'1. Ordersheet'!AT956)","v":""},null,null,null,null,null,null,null,{"$f":"IF('1. Ordersheet'!AX956=\"\",\"\",'1. Ordersheet'!AX956)","v":""},{"$f":"IF('1. Ordersheet'!AY956=\"\",\"\",'1. Ordersheet'!AY956)","v":""},{"$f":"IF('1. Ordersheet'!AZ956=\"\",\"\",'1. Ordersheet'!AZ956)","v":""},{"$f":"IF('1. Ordersheet'!BA956=\"\",\"\",'1. Ordersheet'!BA956)","v":""},{"$f":"IF('1. Ordersheet'!BC956=\"\",\"\",'1. Ordersheet'!BC956)","v":""},{"$f":"IF('1. Ordersheet'!BD956=\"\",\"\",'1. Ordersheet'!BD956)","v":""},{"$f":"IF('1. Ordersheet'!BE956=\"\",\"\",'1. Ordersheet'!BE956)","v":""},{"$f":"IF('1. Ordersheet'!BF956=\"\",\"\",'1. Ordersheet'!BF956)","v":""},{"$f":"IF('1. Ordersheet'!BG956=\"\",\"\",'1. Ordersheet'!BG956)","v":"ZWO"},{"$f":"IF('1. Ordersheet'!BH956=\"\",\"\",'1. Ordersheet'!BH956)","v":""},{"$f":"IF('1. Ordersheet'!BI956=\"\",\"\",'1. Ordersheet'!BI956)","v":""},{"$f":"IF('1. Ordersheet'!BJ956=\"\",\"\",'1. Ordersheet'!BJ956)","v":""},{"$f":"IF('1. Ordersheet'!BK956=\"\",\"\",'1. Ordersheet'!BK956)","v":""},{"$f":"IF('1. Ordersheet'!BL956=\"\",\"\",'1. Ordersheet'!BL956)","v":""}]
[{"$f":"IF('1. Ordersheet'!F957=\"\",\"\",'1. Ordersheet'!F957)","v":""},{"$f":"IF('1. Ordersheet'!G957=\"\",\"\",'1. Ordersheet'!G957)","v":""},{"$f":"IF('1. Ordersheet'!H957=\"\",\"\",'1. Ordersheet'!H957)","v":""},{"$f":"IF('1. Ordersheet'!I957=\"\",\"\",'1. Ordersheet'!I957)","v":""},{"$f":"IF('1. Ordersheet'!J957=\"\",\"\",'1. Ordersheet'!J957)","v":""},{"$f":"IF('1. Ordersheet'!K957=\"\",\"\",'1. Ordersheet'!K957)","v":""},{"$f":"IF('1. Ordersheet'!L957=\"\",\"\",'1. Ordersheet'!L957)","v":""},{"$f":"IF('1. Ordersheet'!M957=\"\",\"\",'1. Ordersheet'!M957)","v":""},{"$f":"IF('1. Ordersheet'!N957=\"\",\"\",'1. Ordersheet'!N957)","v":""},{"$f":"IF('1. Ordersheet'!O957=\"\",\"\",'1. Ordersheet'!O957)","v":{"$error":"#N/A"}},{"$f":"IF('1. Ordersheet'!P957=\"\",\"\",'1. Ordersheet'!P957)","v":{"$error":"#N/A"}},{"$f":"IF('1. Ordersheet'!Q957=\"\",\"\",'1. Ordersheet'!Q957)","v":""},{"$f":"IF('1. Ordersheet'!R957=\"\",\"\",'1. Ordersheet'!R957)","v":""},{"$f":"IF('1. Ordersheet'!S957=\"\",\"\",'1. Ordersheet'!S957)","v":""},{"$f":"IF('1. Ordersheet'!V957=\"\",\"\",'1. Ordersheet'!V957)","v":""},{"$f":"IF('1. Ordersheet'!W957=\"\",\"\",'1. Ordersheet'!W957)","v":""},{"$f":"IF('1. Ordersheet'!X957=\"\",\"\",'1. Ordersheet'!X957)","v":""},{"$f":"IF('1. Ordersheet'!Y957=\"\",\"\",'1. Ordersheet'!Y957)","v":""},{"$f":"IF('1. Ordersheet'!Z957=\"\",\"\",'1. Ordersheet'!Z957)","v":""},{"$f":"IF('1. Ordersheet'!AA957=\"\",\"\",'1. Ordersheet'!AA957)","v":""},null,{"$f":"IF('1. Ordersheet'!AS957=\"\",\"\",'1. Ordersheet'!AS957)","v":""},{"$f":"IF('1. Ordersheet'!AT957=\"\",\"\",'1. Ordersheet'!AT957)","v":""},null,null,null,null,null,null,null,{"$f":"IF('1. Ordersheet'!AX957=\"\",\"\",'1. Ordersheet'!AX957)","v":""},{"$f":"IF('1. Ordersheet'!AY957=\"\",\"\",'1. Ordersheet'!AY957)","v":""},{"$f":"IF('1. Ordersheet'!AZ957=\"\",\"\",'1. Ordersheet'!AZ957)","v":""},{"$f":"IF('1. Ordersheet'!BA957=\"\",\"\",'1. Ordersheet'!BA957)","v":""},{"$f":"IF('1. Ordersheet'!BC957=\"\",\"\",'1. Ordersheet'!BC957)","v":""},{"$f":"IF('1. Ordersheet'!BD957=\"\",\"\",'1. Ordersheet'!BD957)","v":""},{"$f":"IF('1. Ordersheet'!BE957=\"\",\"\",'1. Ordersheet'!BE957)","v":""},{"$f":"IF('1. Ordersheet'!BF957=\"\",\"\",'1. Ordersheet'!BF957)","v":""},{"$f":"IF('1. Ordersheet'!BG957=\"\",\"\",'1. Ordersheet'!BG957)","v":"ZWO"},{"$f":"IF('1. Ordersheet'!BH957=\"\",\"\",'1. Ordersheet'!BH957)","v":""},{"$f":"IF('1. Ordersheet'!BI957=\"\",\"\",'1. Ordersheet'!BI957)","v":""},{"$f":"IF('1. Ordersheet'!BJ957=\"\",\"\",'1. Ordersheet'!BJ957)","v":""},{"$f":"IF('1. Ordersheet'!BK957=\"\",\"\",'1. Ordersheet'!BK957)","v":""},{"$f":"IF('1. Ordersheet'!BL957=\"\",\"\",'1. Ordersheet'!BL957)","v":""}]
[{"$f":"IF('1. Ordersheet'!F958=\"\",\"\",'1. Ordersheet'!F958)","v":""},{"$f":"IF('1. Ordersheet'!G958=\"\",\"\",'1. Ordersheet'!G958)","v":""},{"$f":"IF('1. Ordersheet'!H958=\"\",\"\",'1. Ordersheet'!H958)","v":""},{"$f":"IF('1. Ordersheet'!I958=\"\",\"\",'1. Ordersheet'!I958)","v":""},{"$f":"IF('1. Ordersheet'!J958=\"\",\"\",'1. Ordersheet'!J958)","v":""},{"$f":"IF('1. Ordersheet'!K958=\"\",\"\",'1. Ordersheet'!K958)","v":""},{"$f":"IF('1. Ordersheet'!L958=\"\",\"\",'1. Ordersheet'!L958)","v":""},{"$f":"IF('1. Ordersheet'!M958=\"\",\"\",'1. Ordersheet'!M958)","v":""},{"$f":"IF('1. Ordersheet'!N958=\"\",\"\",'1. Ordersheet'!N958)","v":""},{"$f":"IF('1. Ordersheet'!O958=\"\",\"\",'1. Ordersheet'!O958)","v":{"$error":"#N/A"}},{"$f":"IF('1. Ordersheet'!P958=\"\",\"\",'1. Ordersheet'!P958)","v":{"$error":"#N/A"}},{"$f":"IF('1. Ordersheet'!Q958=\"\",\"\",'1. Ordersheet'!Q958)","v":""},{"$f":"IF('1. Ordersheet'!R958=\"\",\"\",'1. Ordersheet'!R958)","v":""},{"$f":"IF('1. Ordersheet'!S958=\"\",\"\",'1. Ordersheet'!S958)","v":""},{"$f":"IF('1. Ordersheet'!V958=\"\",\"\",'1. Ordersheet'!V958)","v":""},{"$f":"IF('1. Ordersheet'!W958=\"\",\"\",'1. Ordersheet'!W958)","v":""},{"$f":"IF('1. Ordersheet'!X958=\"\",\"\",'1. Ordersheet'!X958)","v":""},{"$f":"IF('1. Ordersheet'!Y958=\"\",\"\",'1. Ordersheet'!Y958)","v":""},{"$f":"IF('1. Ordersheet'!Z958=\"\",\"\",'1. Ordersheet'!Z958)","v":""},{"$f":"IF('1. Ordersheet'!AA958=\"\",\"\",'1. Ordersheet'!AA958)","v":""},null,{"$f":"IF('1. Ordersheet'!AS958=\"\",\"\",'1. Ordersheet'!AS958)","v":""},{"$f":"IF('1. Ordersheet'!AT958=\"\",\"\",'1. Ordersheet'!AT958)","v":""},null,null,null,null,null,null,null,{"$f":"IF('1. Ordersheet'!AX958=\"\",\"\",'1. Ordersheet'!AX958)","v":""},{"$f":"IF('1. Ordersheet'!AY958=\"\",\"\",'1. Ordersheet'!AY958)","v":""},{"$f":"IF('1. Ordersheet'!AZ958=\"\",\"\",'1. Ordersheet'!AZ958)","v":""},{"$f":"IF('1. Ordersheet'!BA958=\"\",\"\",'1. Ordersheet'!BA958)","v":""},{"$f":"IF('1. Ordersheet'!BC958=\"\",\"\",'1. Ordersheet'!BC958)","v":""},{"$f":"IF('1. Ordersheet'!BD958=\"\",\"\",'1. Ordersheet'!BD958)","v":""},{"$f":"IF('1. Ordersheet'!BE958=\"\",\"\",'1. Ordersheet'!BE958)","v":""},{"$f":"IF('1. Ordersheet'!BF958=\"\",\"\",'1. Ordersheet'!BF958)","v":""},{"$f":"IF('1. Ordersheet'!BG958=\"\",\"\",'1. Ordersheet'!BG958)","v":"ZWO"},{"$f":"IF('1. Ordersheet'!BH958=\"\",\"\",'1. Ordersheet'!BH958)","v":""},{"$f":"IF('1. Ordersheet'!BI958=\"\",\"\",'1. Ordersheet'!BI958)","v":""},{"$f":"IF('1. Ordersheet'!BJ958=\"\",\"\",'1. Ordersheet'!BJ958)","v":""},{"$f":"IF('1. Ordersheet'!BK958=\"\",\"\",'1. Ordersheet'!BK958)","v":""},{"$f":"IF('1. Ordersheet'!BL958=\"\",\"\",'1. Ordersheet'!BL958)","v":""}]
[{"$f":"IF('1. Ordersheet'!F959=\"\",\"\",'1. Ordersheet'!F959)","v":""},{"$f":"IF('1. Ordersheet'!G959=\"\",\"\",'1. Ordersheet'!G959)","v":""},{"$f":"IF('1. Ordersheet'!H959=\"\",\"\",'1. Ordersheet'!H959)","v":""},{"$f":"IF('1. Ordersheet'!I959=\"\",\"\",'1. Ordersheet'!I959)","v":""},{"$f":"IF('1. Ordersheet'!J959=\"\",\"\",'1. Ordersheet'!J959)","v":""},{"$f":"IF('1. Ordersheet'!K959=\"\",\"\",'1. Ordersheet'!K959)","v":""},{"$f":"IF('1. Ordersheet'!L959=\"\",\"\",'1. Ordersheet'!L959)","v":""},{"$f":"IF('1. Ordersheet'!M959=\"\",\"\",'1. Ordersheet'!M959)","v":""},{"$f":"IF('1. Ordersheet'!N959=\"\",\"\",'1. Ordersheet'!N959)","v":""},{"$f":"IF('1. Ordersheet'!O959=\"\",\"\",'1. Ordersheet'!O959)","v":{"$error":"#N/A"}},{"$f":"IF('1. Ordersheet'!P959=\"\",\"\",'1. Ordersheet'!P959)","v":{"$error":"#N/A"}},{"$f":"IF('1. Ordersheet'!Q959=\"\",\"\",'1. Ordersheet'!Q959)","v":""},{"$f":"IF('1. Ordersheet'!R959=\"\",\"\",'1. Ordersheet'!R959)","v":""},{"$f":"IF('1. Ordersheet'!S959=\"\",\"\",'1. Ordersheet'!S959)","v":""},{"$f":"IF('1. Ordersheet'!V959=\"\",\"\",'1. Ordersheet'!V959)","v":""},{"$f":"IF('1. Ordersheet'!W959=\"\",\"\",'1. Ordersheet'!W959)","v":""},{"$f":"IF('1. Ordersheet'!X959=\"\",\"\",'1. Ordersheet'!X959)","v":""},{"$f":"IF('1. Ordersheet'!Y959=\"\",\"\",'1. Ordersheet'!Y959)","v":""},{"$f":"IF('1. Ordersheet'!Z959=\"\",\"\",'1. Ordersheet'!Z959)","v":""},{"$f":"IF('1. Ordersheet'!AA959=\"\",\"\",'1. Ordersheet'!AA959)","v":""},null,{"$f":"IF('1. Ordersheet'!AS959=\"\",\"\",'1. Ordersheet'!AS959)","v":""},{"$f":"IF('1. Ordersheet'!AT959=\"\",\"\",'1. Ordersheet'!AT959)","v":""},null,null,null,null,null,null,null,{"$f":"IF('1. Ordersheet'!AX959=\"\",\"\",'1. Ordersheet'!AX959)","v":""},{"$f":"IF('1. Ordersheet'!AY959=\"\",\"\",'1. Ordersheet'!AY959)","v":""},{"$f":"IF('1. Ordersheet'!AZ959=\"\",\"\",'1. Ordersheet'!AZ959)","v":""},{"$f":"IF('1. Ordersheet'!BA959=\"\",\"\",'1. Ordersheet'!BA959)","v":""},{"$f":"IF('1. Ordersheet'!BC959=\"\",\"\",'1. Ordersheet'!BC959)","v":""},{"$f":"IF('1. Ordersheet'!BD959=\"\",\"\",'1. Ordersheet'!BD959)","v":""},{"$f":"IF('1. Ordersheet'!BE959=\"\",\"\",'1. Ordersheet'!BE959)","v":""},{"$f":"IF('1. Ordersheet'!BF959=\"\",\"\",'1. Ordersheet'!BF959)","v":""},{"$f":"IF('1. Ordersheet'!BG959=\"\",\"\",'1. Ordersheet'!BG959)","v":"ZWO"},{"$f":"IF('1. Ordersheet'!BH959=\"\",\"\",'1. Ordersheet'!BH959)","v":""},{"$f":"IF('1. Ordersheet'!BI959=\"\",\"\",'1. Ordersheet'!BI959)","v":""},{"$f":"IF('1. Ordersheet'!BJ959=\"\",\"\",'1. Ordersheet'!BJ959)","v":""},{"$f":"IF('1. Ordersheet'!BK959=\"\",\"\",'1. Ordersheet'!BK959)","v":""},{"$f":"IF('1. Ordersheet'!BL959=\"\",\"\",'1. Ordersheet'!BL959)","v":""}]
[{"$f":"IF('1. Ordersheet'!F960=\"\",\"\",'1. Ordersheet'!F960)","v":""},{"$f":"IF('1. Ordersheet'!G960=\"\",\"\",'1. Ordersheet'!G960)","v":""},{"$f":"IF('1. Ordersheet'!H960=\"\",\"\",'1. Ordersheet'!H960)","v":""},{"$f":"IF('1. Ordersheet'!I960=\"\",\"\",'1. Ordersheet'!I960)","v":""},{"$f":"IF('1. Ordersheet'!J960=\"\",\"\",'1. Ordersheet'!J960)","v":""},{"$f":"IF('1. Ordersheet'!K960=\"\",\"\",'1. Ordersheet'!K960)","v":""},{"$f":"IF('1. Ordersheet'!L960=\"\",\"\",'1. Ordersheet'!L960)","v":""},{"$f":"IF('1. Ordersheet'!M960=\"\",\"\",'1. Ordersheet'!M960)","v":""},{"$f":"IF('1. Ordersheet'!N960=\"\",\"\",'1. Ordersheet'!N960)","v":""},{"$f":"IF('1. Ordersheet'!O960=\"\",\"\",'1. Ordersheet'!O960)","v":{"$error":"#N/A"}},{"$f":"IF('1. Ordersheet'!P960=\"\",\"\",'1. Ordersheet'!P960)","v":{"$error":"#N/A"}},{"$f":"IF('1. Ordersheet'!Q960=\"\",\"\",'1. Ordersheet'!Q960)","v":""},{"$f":"IF('1. Ordersheet'!R960=\"\",\"\",'1. Ordersheet'!R960)","v":""},{"$f":"IF('1. Ordersheet'!S960=\"\",\"\",'1. Ordersheet'!S960)","v":""},{"$f":"IF('1. Ordersheet'!V960=\"\",\"\",'1. Ordersheet'!V960)","v":""},{"$f":"IF('1. Ordersheet'!W960=\"\",\"\",'1. Ordersheet'!W960)","v":""},{"$f":"IF('1. Ordersheet'!X960=\"\",\"\",'1. Ordersheet'!X960)","v":""},{"$f":"IF('1. Ordersheet'!Y960=\"\",\"\",'1. Ordersheet'!Y960)","v":""},{"$f":"IF('1. Ordersheet'!Z960=\"\",\"\",'1. Ordersheet'!Z960)","v":""},{"$f":"IF('1. Ordersheet'!AA960=\"\",\"\",'1. Ordersheet'!AA960)","v":""},null,{"$f":"IF('1. Ordersheet'!AS960=\"\",\"\",'1. Ordersheet'!AS960)","v":""},{"$f":"IF('1. Ordersheet'!AT960=\"\",\"\",'1. Ordersheet'!AT960)","v":""},null,null,null,null,null,null,null,{"$f":"IF('1. Ordersheet'!AX960=\"\",\"\",'1. Ordersheet'!AX960)","v":""},{"$f":"IF('1. Ordersheet'!AY960=\"\",\"\",'1. Ordersheet'!AY960)","v":""},{"$f":"IF('1. Ordersheet'!AZ960=\"\",\"\",'1. Ordersheet'!AZ960)","v":""},{"$f":"IF('1. Ordersheet'!BA960=\"\",\"\",'1. Ordersheet'!BA960)","v":""},{"$f":"IF('1. Ordersheet'!BC960=\"\",\"\",'1. Ordersheet'!BC960)","v":""},{"$f":"IF('1. Ordersheet'!BD960=\"\",\"\",'1. Ordersheet'!BD960)","v":""},{"$f":"IF('1. Ordersheet'!BE960=\"\",\"\",'1. Ordersheet'!BE960)","v":""},{"$f":"IF('1. Ordersheet'!BF960=\"\",\"\",'1. Ordersheet'!BF960)","v":""},{"$f":"IF('1. Ordersheet'!BG960=\"\",\"\",'1. Ordersheet'!BG960)","v":"ZWO"},{"$f":"IF('1. Ordersheet'!BH960=\"\",\"\",'1. Ordersheet'!BH960)","v":""},{"$f":"IF('1. Ordersheet'!BI960=\"\",\"\",'1. Ordersheet'!BI960)","v":""},{"$f":"IF('1. Ordersheet'!BJ960=\"\",\"\",'1. Ordersheet'!BJ960)","v":""},{"$f":"IF('1. Ordersheet'!BK960=\"\",\"\",'1. Ordersheet'!BK960)","v":""},{"$f":"IF('1. Ordersheet'!BL960=\"\",\"\",'1. Ordersheet'!BL960)","v":""}]
[{"$f":"IF('1. Ordersheet'!F961=\"\",\"\",'1. Ordersheet'!F961)","v":""},{"$f":"IF('1. Ordersheet'!G961=\"\",\"\",'1. Ordersheet'!G961)","v":""},{"$f":"IF('1. Ordersheet'!H961=\"\",\"\",'1. Ordersheet'!H961)","v":""},{"$f":"IF('1. Ordersheet'!I961=\"\",\"\",'1. Ordersheet'!I961)","v":""},{"$f":"IF('1. Ordersheet'!J961=\"\",\"\",'1. Ordersheet'!J961)","v":""},{"$f":"IF('1. Ordersheet'!K961=\"\",\"\",'1. Ordersheet'!K961)","v":""},{"$f":"IF('1. Ordersheet'!L961=\"\",\"\",'1. Ordersheet'!L961)","v":""},{"$f":"IF('1. Ordersheet'!M961=\"\",\"\",'1. Ordersheet'!M961)","v":""},{"$f":"IF('1. Ordersheet'!N961=\"\",\"\",'1. Ordersheet'!N961)","v":""},{"$f":"IF('1. Ordersheet'!O961=\"\",\"\",'1. Ordersheet'!O961)","v":{"$error":"#N/A"}},{"$f":"IF('1. Ordersheet'!P961=\"\",\"\",'1. Ordersheet'!P961)","v":{"$error":"#N/A"}},{"$f":"IF('1. Ordersheet'!Q961=\"\",\"\",'1. Ordersheet'!Q961)","v":""},{"$f":"IF('1. Ordersheet'!R961=\"\",\"\",'1. Ordersheet'!R961)","v":""},{"$f":"IF('1. Ordersheet'!S961=\"\",\"\",'1. Ordersheet'!S961)","v":""},{"$f":"IF('1. Ordersheet'!V961=\"\",\"\",'1. Ordersheet'!V961)","v":""},{"$f":"IF('1. Ordersheet'!W961=\"\",\"\",'1. Ordersheet'!W961)","v":""},{"$f":"IF('1. Ordersheet'!X961=\"\",\"\",'1. Ordersheet'!X961)","v":""},{"$f":"IF('1. Ordersheet'!Y961=\"\",\"\",'1. Ordersheet'!Y961)","v":""},{"$f":"IF('1. Ordersheet'!Z961=\"\",\"\",'1. Ordersheet'!Z961)","v":""},{"$f":"IF('1. Ordersheet'!AA961=\"\",\"\",'1. Ordersheet'!AA961)","v":""},null,{"$f":"IF('1. Ordersheet'!AS961=\"\",\"\",'1. Ordersheet'!AS961)","v":""},{"$f":"IF('1. Ordersheet'!AT961=\"\",\"\",'1. Ordersheet'!AT961)","v":""},null,null,null,null,null,null,null,{"$f":"IF('1. Ordersheet'!AX961=\"\",\"\",'1. Ordersheet'!AX961)","v":""},{"$f":"IF('1. Ordersheet'!AY961=\"\",\"\",'1. Ordersheet'!AY961)","v":""},{"$f":"IF('1. Ordersheet'!AZ961=\"\",\"\",'1. Ordersheet'!AZ961)","v":""},{"$f":"IF('1. Ordersheet'!BA961=\"\",\"\",'1. Ordersheet'!BA961)","v":""},{"$f":"IF('1. Ordersheet'!BC961=\"\",\"\",'1. Ordersheet'!BC961)","v":""},{"$f":"IF('1. Ordersheet'!BD961=\"\",\"\",'1. Ordersheet'!BD961)","v":""},{"$f":"IF('1. Ordersheet'!BE961=\"\",\"\",'1. Ordersheet'!BE961)","v":""},{"$f":"IF('1. Ordersheet'!BF961=\"\",\"\",'1. Ordersheet'!BF961)","v":""},{"$f":"IF('1. Ordersheet'!BG961=\"\",\"\",'1. Ordersheet'!BG961)","v":"ZWO"},{"$f":"IF('1. Ordersheet'!BH961=\"\",\"\",'1. Ordersheet'!BH961)","v":""},{"$f":"IF('1. Ordersheet'!BI961=\"\",\"\",'1. Ordersheet'!BI961)","v":""},{"$f":"IF('1. Ordersheet'!BJ961=\"\",\"\",'1. Ordersheet'!BJ961)","v":""},{"$f":"IF('1. Ordersheet'!BK961=\"\",\"\",'1. Ordersheet'!BK961)","v":""},{"$f":"IF('1. Ordersheet'!BL961=\"\",\"\",'1. Ordersheet'!BL961)","v":""}]
[{"$f":"IF('1. Ordersheet'!F962=\"\",\"\",'1. Ordersheet'!F962)","v":""},{"$f":"IF('1. Ordersheet'!G962=\"\",\"\",'1. Ordersheet'!G962)","v":""},{"$f":"IF('1. Ordersheet'!H962=\"\",\"\",'1. Ordersheet'!H962)","v":""},{"$f":"IF('1. Ordersheet'!I962=\"\",\"\",'1. Ordersheet'!I962)","v":""},{"$f":"IF('1. Ordersheet'!J962=\"\",\"\",'1. Ordersheet'!J962)","v":""},{"$f":"IF('1. Ordersheet'!K962=\"\",\"\",'1. Ordersheet'!K962)","v":""},{"$f":"IF('1. Ordersheet'!L962=\"\",\"\",'1. Ordersheet'!L962)","v":""},{"$f":"IF('1. Ordersheet'!M962=\"\",\"\",'1. Ordersheet'!M962)","v":""},{"$f":"IF('1. Ordersheet'!N962=\"\",\"\",'1. Ordersheet'!N962)","v":""},{"$f":"IF('1. Ordersheet'!O962=\"\",\"\",'1. Ordersheet'!O962)","v":{"$error":"#N/A"}},{"$f":"IF('1. Ordersheet'!P962=\"\",\"\",'1. Ordersheet'!P962)","v":{"$error":"#N/A"}},{"$f":"IF('1. Ordersheet'!Q962=\"\",\"\",'1. Ordersheet'!Q962)","v":""},{"$f":"IF('1. Ordersheet'!R962=\"\",\"\",'1. Ordersheet'!R962)","v":""},{"$f":"IF('1. Ordersheet'!S962=\"\",\"\",'1. Ordersheet'!S962)","v":""},{"$f":"IF('1. Ordersheet'!V962=\"\",\"\",'1. Ordersheet'!V962)","v":""},{"$f":"IF('1. Ordersheet'!W962=\"\",\"\",'1. Ordersheet'!W962)","v":""},{"$f":"IF('1. Ordersheet'!X962=\"\",\"\",'1. Ordersheet'!X962)","v":""},{"$f":"IF('1. Ordersheet'!Y962=\"\",\"\",'1. Ordersheet'!Y962)","v":""},{"$f":"IF('1. Ordersheet'!Z962=\"\",\"\",'1. Ordersheet'!Z962)","v":""},{"$f":"IF('1. Ordersheet'!AA962=\"\",\"\",'1. Ordersheet'!AA962)","v":""},null,{"$f":"IF('1. Ordersheet'!AS962=\"\",\"\",'1. Ordersheet'!AS962)","v":""},{"$f":"IF('1. Ordersheet'!AT962=\"\",\"\",'1. Ordersheet'!AT962)","v":""},null,null,null,null,null,null,null,{"$f":"IF('1. Ordersheet'!AX962=\"\",\"\",'1. Ordersheet'!AX962)","v":""},{"$f":"IF('1. Ordersheet'!AY962=\"\",\"\",'1. Ordersheet'!AY962)","v":""},{"$f":"IF('1. Ordersheet'!AZ962=\"\",\"\",'1. Ordersheet'!AZ962)","v":""},{"$f":"IF('1. Ordersheet'!BA962=\"\",\"\",'1. Ordersheet'!BA962)","v":""},{"$f":"IF('1. Ordersheet'!BC962=\"\",\"\",'1. Ordersheet'!BC962)","v":""},{"$f":"IF('1. Ordersheet'!BD962=\"\",\"\",'1. Ordersheet'!BD962)","v":""},{"$f":"IF('1. Ordersheet'!BE962=\"\",\"\",'1. Ordersheet'!BE962)","v":""},{"$f":"IF('1. Ordersheet'!BF962=\"\",\"\",'1. Ordersheet'!BF962)","v":""},{"$f":"IF('1. Ordersheet'!BG962=\"\",\"\",'1. Ordersheet'!BG962)","v":"ZWO"},{"$f":"IF('1. Ordersheet'!BH962=\"\",\"\",'1. Ordersheet'!BH962)","v":""},{"$f":"IF('1. Ordersheet'!BI962=\"\",\"\",'1. Ordersheet'!BI962)","v":""},{"$f":"IF('1. Ordersheet'!BJ962=\"\",\"\",'1. Ordersheet'!BJ962)","v":""},{"$f":"IF('1. Ordersheet'!BK962=\"\",\"\",'1. Ordersheet'!BK962)","v":""},{"$f":"IF('1. Ordersheet'!BL962=\"\",\"\",'1. Ordersheet'!BL962)","v":""}]
[{"$f":"IF('1. Ordersheet'!F963=\"\",\"\",'1. Ordersheet'!F963)","v":""},{"$f":"IF('1. Ordersheet'!G963=\"\",\"\",'1. Ordersheet'!G963)","v":""},{"$f":"IF('1. Ordersheet'!H963=\"\",\"\",'1. Ordersheet'!H963)","v":""},{"$f":"IF('1. Ordersheet'!I963=\"\",\"\",'1. Ordersheet'!I963)","v":""},{"$f":"IF('1. Ordersheet'!J963=\"\",\"\",'1. Ordersheet'!J963)","v":""},{"$f":"IF('1. Ordersheet'!K963=\"\",\"\",'1. Ordersheet'!K963)","v":""},{"$f":"IF('1. Ordersheet'!L963=\"\",\"\",'1. Ordersheet'!L963)","v":""},{"$f":"IF('1. Ordersheet'!M963=\"\",\"\",'1. Ordersheet'!M963)","v":""},{"$f":"IF('1. Ordersheet'!N963=\"\",\"\",'1. Ordersheet'!N963)","v":""},{"$f":"IF('1. Ordersheet'!O963=\"\",\"\",'1. Ordersheet'!O963)","v":{"$error":"#N/A"}},{"$f":"IF('1. Ordersheet'!P963=\"\",\"\",'1. Ordersheet'!P963)","v":{"$error":"#N/A"}},{"$f":"IF('1. Ordersheet'!Q963=\"\",\"\",'1. Ordersheet'!Q963)","v":""},{"$f":"IF('1. Ordersheet'!R963=\"\",\"\",'1. Ordersheet'!R963)","v":""},{"$f":"IF('1. Ordersheet'!S963=\"\",\"\",'1. Ordersheet'!S963)","v":""},{"$f":"IF('1. Ordersheet'!V963=\"\",\"\",'1. Ordersheet'!V963)","v":""},{"$f":"IF('1. Ordersheet'!W963=\"\",\"\",'1. Ordersheet'!W963)","v":""},{"$f":"IF('1. Ordersheet'!X963=\"\",\"\",'1. Ordersheet'!X963)","v":""},{"$f":"IF('1. Ordersheet'!Y963=\"\",\"\",'1. Ordersheet'!Y963)","v":""},{"$f":"IF('1. Ordersheet'!Z963=\"\",\"\",'1. Ordersheet'!Z963)","v":""},{"$f":"IF('1. Ordersheet'!AA963=\"\",\"\",'1. Ordersheet'!AA963)","v":""},null,{"$f":"IF('1. Ordersheet'!AS963=\"\",\"\",'1. Ordersheet'!AS963)","v":""},{"$f":"IF('1. Ordersheet'!AT963=\"\",\"\",'1. Ordersheet'!AT963)","v":""},null,null,null,null,null,null,null,{"$f":"IF('1. Ordersheet'!AX963=\"\",\"\",'1. Ordersheet'!AX963)","v":""},{"$f":"IF('1. Ordersheet'!AY963=\"\",\"\",'1. Ordersheet'!AY963)","v":""},{"$f":"IF('1. Ordersheet'!AZ963=\"\",\"\",'1. Ordersheet'!AZ963)","v":""},{"$f":"IF('1. Ordersheet'!BA963=\"\",\"\",'1. Ordersheet'!BA963)","v":""},{"$f":"IF('1. Ordersheet'!BC963=\"\",\"\",'1. Ordersheet'!BC963)","v":""},{"$f":"IF('1. Ordersheet'!BD963=\"\",\"\",'1. Ordersheet'!BD963)","v":""},{"$f":"IF('1. Ordersheet'!BE963=\"\",\"\",'1. Ordersheet'!BE963)","v":""},{"$f":"IF('1. Ordersheet'!BF963=\"\",\"\",'1. Ordersheet'!BF963)","v":""},{"$f":"IF('1. Ordersheet'!BG963=\"\",\"\",'1. Ordersheet'!BG963)","v":"ZWO"},{"$f":"IF('1. Ordersheet'!BH963=\"\",\"\",'1. Ordersheet'!BH963)","v":""},{"$f":"IF('1. Ordersheet'!BI963=\"\",\"\",'1. Ordersheet'!BI963)","v":""},{"$f":"IF('1. Ordersheet'!BJ963=\"\",\"\",'1. Ordersheet'!BJ963)","v":""},{"$f":"IF('1. Ordersheet'!BK963=\"\",\"\",'1. Ordersheet'!BK963)","v":""},{"$f":"IF('1. Ordersheet'!BL963=\"\",\"\",'1. Ordersheet'!BL963)","v":""}]
[{"$f":"IF('1. Ordersheet'!F964=\"\",\"\",'1. Ordersheet'!F964)","v":""},{"$f":"IF('1. Ordersheet'!G964=\"\",\"\",'1. Ordersheet'!G964)","v":""},{"$f":"IF('1. Ordersheet'!H964=\"\",\"\",'1. Ordersheet'!H964)","v":""},{"$f":"IF('1. Ordersheet'!I964=\"\",\"\",'1. Ordersheet'!I964)","v":""},{"$f":"IF('1. Ordersheet'!J964=\"\",\"\",'1. Ordersheet'!J964)","v":""},{"$f":"IF('1. Ordersheet'!K964=\"\",\"\",'1. Ordersheet'!K964)","v":""},{"$f":"IF('1. Ordersheet'!L964=\"\",\"\",'1. Ordersheet'!L964)","v":""},{"$f":"IF('1. Ordersheet'!M964=\"\",\"\",'1. Ordersheet'!M964)","v":""},{"$f":"IF('1. Ordersheet'!N964=\"\",\"\",'1. Ordersheet'!N964)","v":""},{"$f":"IF('1. Ordersheet'!O964=\"\",\"\",'1. Ordersheet'!O964)","v":{"$error":"#N/A"}},{"$f":"IF('1. Ordersheet'!P964=\"\",\"\",'1. Ordersheet'!P964)","v":{"$error":"#N/A"}},{"$f":"IF('1. Ordersheet'!Q964=\"\",\"\",'1. Ordersheet'!Q964)","v":""},{"$f":"IF('1. Ordersheet'!R964=\"\",\"\",'1. Ordersheet'!R964)","v":""},{"$f":"IF('1. Ordersheet'!S964=\"\",\"\",'1. Ordersheet'!S964)","v":""},{"$f":"IF('1. Ordersheet'!V964=\"\",\"\",'1. Ordersheet'!V964)","v":""},{"$f":"IF('1. Ordersheet'!W964=\"\",\"\",'1. Ordersheet'!W964)","v":""},{"$f":"IF('1. Ordersheet'!X964=\"\",\"\",'1. Ordersheet'!X964)","v":""},{"$f":"IF('1. Ordersheet'!Y964=\"\",\"\",'1. Ordersheet'!Y964)","v":""},{"$f":"IF('1. Ordersheet'!Z964=\"\",\"\",'1. Ordersheet'!Z964)","v":""},{"$f":"IF('1. Ordersheet'!AA964=\"\",\"\",'1. Ordersheet'!AA964)","v":""},null,{"$f":"IF('1. Ordersheet'!AS964=\"\",\"\",'1. Ordersheet'!AS964)","v":""},{"$f":"IF('1. Ordersheet'!AT964=\"\",\"\",'1. Ordersheet'!AT964)","v":""},null,null,null,null,null,null,null,{"$f":"IF('1. Ordersheet'!AX964=\"\",\"\",'1. Ordersheet'!AX964)","v":""},{"$f":"IF('1. Ordersheet'!AY964=\"\",\"\",'1. Ordersheet'!AY964)","v":""},{"$f":"IF('1. Ordersheet'!AZ964=\"\",\"\",'1. Ordersheet'!AZ964)","v":""},{"$f":"IF('1. Ordersheet'!BA964=\"\",\"\",'1. Ordersheet'!BA964)","v":""},{"$f":"IF('1. Ordersheet'!BC964=\"\",\"\",'1. Ordersheet'!BC964)","v":""},{"$f":"IF('1. Ordersheet'!BD964=\"\",\"\",'1. Ordersheet'!BD964)","v":""},{"$f":"IF('1. Ordersheet'!BE964=\"\",\"\",'1. Ordersheet'!BE964)","v":""},{"$f":"IF('1. Ordersheet'!BF964=\"\",\"\",'1. Ordersheet'!BF964)","v":""},{"$f":"IF('1. Ordersheet'!BG964=\"\",\"\",'1. Ordersheet'!BG964)","v":"ZWO"},{"$f":"IF('1. Ordersheet'!BH964=\"\",\"\",'1. Ordersheet'!BH964)","v":""},{"$f":"IF('1. Ordersheet'!BI964=\"\",\"\",'1. Ordersheet'!BI964)","v":""},{"$f":"IF('1. Ordersheet'!BJ964=\"\",\"\",'1. Ordersheet'!BJ964)","v":""},{"$f":"IF('1. Ordersheet'!BK964=\"\",\"\",'1. Ordersheet'!BK964)","v":""},{"$f":"IF('1. Ordersheet'!BL964=\"\",\"\",'1. Ordersheet'!BL964)","v":""}]
[{"$f":"IF('1. Ordersheet'!F965=\"\",\"\",'1. Ordersheet'!F965)","v":""},{"$f":"IF('1. Ordersheet'!G965=\"\",\"\",'1. Ordersheet'!G965)","v":""},{"$f":"IF('1. Ordersheet'!H965=\"\",\"\",'1. Ordersheet'!H965)","v":""},{"$f":"IF('1. Ordersheet'!I965=\"\",\"\",'1. Ordersheet'!I965)","v":""},{"$f":"IF('1. Ordersheet'!J965=\"\",\"\",'1. Ordersheet'!J965)","v":""},{"$f":"IF('1. Ordersheet'!K965=\"\",\"\",'1. Ordersheet'!K965)","v":""},{"$f":"IF('1. Ordersheet'!L965=\"\",\"\",'1. Ordersheet'!L965)","v":""},{"$f":"IF('1. Ordersheet'!M965=\"\",\"\",'1. Ordersheet'!M965)","v":""},{"$f":"IF('1. Ordersheet'!N965=\"\",\"\",'1. Ordersheet'!N965)","v":""},{"$f":"IF('1. Ordersheet'!O965=\"\",\"\",'1. Ordersheet'!O965)","v":{"$error":"#N/A"}},{"$f":"IF('1. Ordersheet'!P965=\"\",\"\",'1. Ordersheet'!P965)","v":{"$error":"#N/A"}},{"$f":"IF('1. Ordersheet'!Q965=\"\",\"\",'1. Ordersheet'!Q965)","v":""},{"$f":"IF('1. Ordersheet'!R965=\"\",\"\",'1. Ordersheet'!R965)","v":""},{"$f":"IF('1. Ordersheet'!S965=\"\",\"\",'1. Ordersheet'!S965)","v":""},{"$f":"IF('1. Ordersheet'!V965=\"\",\"\",'1. Ordersheet'!V965)","v":""},{"$f":"IF('1. Ordersheet'!W965=\"\",\"\",'1. Ordersheet'!W965)","v":""},{"$f":"IF('1. Ordersheet'!X965=\"\",\"\",'1. Ordersheet'!X965)","v":""},{"$f":"IF('1. Ordersheet'!Y965=\"\",\"\",'1. Ordersheet'!Y965)","v":""},{"$f":"IF('1. Ordersheet'!Z965=\"\",\"\",'1. Ordersheet'!Z965)","v":""},{"$f":"IF('1. Ordersheet'!AA965=\"\",\"\",'1. Ordersheet'!AA965)","v":""},null,{"$f":"IF('1. Ordersheet'!AS965=\"\",\"\",'1. Ordersheet'!AS965)","v":""},{"$f":"IF('1. Ordersheet'!AT965=\"\",\"\",'1. Ordersheet'!AT965)","v":""},null,null,null,null,null,null,null,{"$f":"IF('1. Ordersheet'!AX965=\"\",\"\",'1. Ordersheet'!AX965)","v":""},{"$f":"IF('1. Ordersheet'!AY965=\"\",\"\",'1. Ordersheet'!AY965)","v":""},{"$f":"IF('1. Ordersheet'!AZ965=\"\",\"\",'1. Ordersheet'!AZ965)","v":""},{"$f":"IF('1. Ordersheet'!BA965=\"\",\"\",'1. Ordersheet'!BA965)","v":""},{"$f":"IF('1. Ordersheet'!BC965=\"\",\"\",'1. Ordersheet'!BC965)","v":""},{"$f":"IF('1. Ordersheet'!BD965=\"\",\"\",'1. Ordersheet'!BD965)","v":""},{"$f":"IF('1. Ordersheet'!BE965=\"\",\"\",'1. Ordersheet'!BE965)","v":""},{"$f":"IF('1. Ordersheet'!BF965=\"\",\"\",'1. Ordersheet'!BF965)","v":""},{"$f":"IF('1. Ordersheet'!BG965=\"\",\"\",'1. Ordersheet'!BG965)","v":"ZWO"},{"$f":"IF('1. Ordersheet'!BH965=\"\",\"\",'1. Ordersheet'!BH965)","v":""},{"$f":"IF('1. Ordersheet'!BI965=\"\",\"\",'1. Ordersheet'!BI965)","v":""},{"$f":"IF('1. Ordersheet'!BJ965=\"\",\"\",'1. Ordersheet'!BJ965)","v":""},{"$f":"IF('1. Ordersheet'!BK965=\"\",\"\",'1. Ordersheet'!BK965)","v":""},{"$f":"IF('1. Ordersheet'!BL965=\"\",\"\",'1. Ordersheet'!BL965)","v":""}]
[{"$f":"IF('1. Ordersheet'!F966=\"\",\"\",'1. Ordersheet'!F966)","v":""},{"$f":"IF('1. Ordersheet'!G966=\"\",\"\",'1. Ordersheet'!G966)","v":""},{"$f":"IF('1. Ordersheet'!H966=\"\",\"\",'1. Ordersheet'!H966)","v":""},{"$f":"IF('1. Ordersheet'!I966=\"\",\"\",'1. Ordersheet'!I966)","v":""},{"$f":"IF('1. Ordersheet'!J966=\"\",\"\",'1. Ordersheet'!J966)","v":""},{"$f":"IF('1. Ordersheet'!K966=\"\",\"\",'1. Ordersheet'!K966)","v":""},{"$f":"IF('1. Ordersheet'!L966=\"\",\"\",'1. Ordersheet'!L966)","v":""},{"$f":"IF('1. Ordersheet'!M966=\"\",\"\",'1. Ordersheet'!M966)","v":""},{"$f":"IF('1. Ordersheet'!N966=\"\",\"\",'1. Ordersheet'!N966)","v":""},{"$f":"IF('1. Ordersheet'!O966=\"\",\"\",'1. Ordersheet'!O966)","v":{"$error":"#N/A"}},{"$f":"IF('1. Ordersheet'!P966=\"\",\"\",'1. Ordersheet'!P966)","v":{"$error":"#N/A"}},{"$f":"IF('1. Ordersheet'!Q966=\"\",\"\",'1. Ordersheet'!Q966)","v":""},{"$f":"IF('1. Ordersheet'!R966=\"\",\"\",'1. Ordersheet'!R966)","v":""},{"$f":"IF('1. Ordersheet'!S966=\"\",\"\",'1. Ordersheet'!S966)","v":""},{"$f":"IF('1. Ordersheet'!V966=\"\",\"\",'1. Ordersheet'!V966)","v":""},{"$f":"IF('1. Ordersheet'!W966=\"\",\"\",'1. Ordersheet'!W966)","v":""},{"$f":"IF('1. Ordersheet'!X966=\"\",\"\",'1. Ordersheet'!X966)","v":""},{"$f":"IF('1. Ordersheet'!Y966=\"\",\"\",'1. Ordersheet'!Y966)","v":""},{"$f":"IF('1. Ordersheet'!Z966=\"\",\"\",'1. Ordersheet'!Z966)","v":""},{"$f":"IF('1. Ordersheet'!AA966=\"\",\"\",'1. Ordersheet'!AA966)","v":""},null,{"$f":"IF('1. Ordersheet'!AS966=\"\",\"\",'1. Ordersheet'!AS966)","v":""},{"$f":"IF('1. Ordersheet'!AT966=\"\",\"\",'1. Ordersheet'!AT966)","v":""},null,null,null,null,null,null,null,{"$f":"IF('1. Ordersheet'!AX966=\"\",\"\",'1. Ordersheet'!AX966)","v":""},{"$f":"IF('1. Ordersheet'!AY966=\"\",\"\",'1. Ordersheet'!AY966)","v":""},{"$f":"IF('1. Ordersheet'!AZ966=\"\",\"\",'1. Ordersheet'!AZ966)","v":""},{"$f":"IF('1. Ordersheet'!BA966=\"\",\"\",'1. Ordersheet'!BA966)","v":""},{"$f":"IF('1. Ordersheet'!BC966=\"\",\"\",'1. Ordersheet'!BC966)","v":""},{"$f":"IF('1. Ordersheet'!BD966=\"\",\"\",'1. Ordersheet'!BD966)","v":""},{"$f":"IF('1. Ordersheet'!BE966=\"\",\"\",'1. Ordersheet'!BE966)","v":""},{"$f":"IF('1. Ordersheet'!BF966=\"\",\"\",'1. Ordersheet'!BF966)","v":""},{"$f":"IF('1. Ordersheet'!BG966=\"\",\"\",'1. Ordersheet'!BG966)","v":"ZWO"},{"$f":"IF('1. Ordersheet'!BH966=\"\",\"\",'1. Ordersheet'!BH966)","v":""},{"$f":"IF('1. Ordersheet'!BI966=\"\",\"\",'1. Ordersheet'!BI966)","v":""},{"$f":"IF('1. Ordersheet'!BJ966=\"\",\"\",'1. Ordersheet'!BJ966)","v":""},{"$f":"IF('1. Ordersheet'!BK966=\"\",\"\",'1. Ordersheet'!BK966)","v":""},{"$f":"IF('1. Ordersheet'!BL966=\"\",\"\",'1. Ordersheet'!BL966)","v":""}]
[{"$f":"IF('1. Ordersheet'!F967=\"\",\"\",'1. Ordersheet'!F967)","v":""},{"$f":"IF('1. Ordersheet'!G967=\"\",\"\",'1. Ordersheet'!G967)","v":""},{"$f":"IF('1. Ordersheet'!H967=\"\",\"\",'1. Ordersheet'!H967)","v":""},{"$f":"IF('1. Ordersheet'!I967=\"\",\"\",'1. Ordersheet'!I967)","v":""},{"$f":"IF('1. Ordersheet'!J967=\"\",\"\",'1. Ordersheet'!J967)","v":""},{"$f":"IF('1. Ordersheet'!K967=\"\",\"\",'1. Ordersheet'!K967)","v":""},{"$f":"IF('1. Ordersheet'!L967=\"\",\"\",'1. Ordersheet'!L967)","v":""},{"$f":"IF('1. Ordersheet'!M967=\"\",\"\",'1. Ordersheet'!M967)","v":""},{"$f":"IF('1. Ordersheet'!N967=\"\",\"\",'1. Ordersheet'!N967)","v":""},{"$f":"IF('1. Ordersheet'!O967=\"\",\"\",'1. Ordersheet'!O967)","v":{"$error":"#N/A"}},{"$f":"IF('1. Ordersheet'!P967=\"\",\"\",'1. Ordersheet'!P967)","v":{"$error":"#N/A"}},{"$f":"IF('1. Ordersheet'!Q967=\"\",\"\",'1. Ordersheet'!Q967)","v":""},{"$f":"IF('1. Ordersheet'!R967=\"\",\"\",'1. Ordersheet'!R967)","v":""},{"$f":"IF('1. Ordersheet'!S967=\"\",\"\",'1. Ordersheet'!S967)","v":""},{"$f":"IF('1. Ordersheet'!V967=\"\",\"\",'1. Ordersheet'!V967)","v":""},{"$f":"IF('1. Ordersheet'!W967=\"\",\"\",'1. Ordersheet'!W967)","v":""},{"$f":"IF('1. Ordersheet'!X967=\"\",\"\",'1. Ordersheet'!X967)","v":""},{"$f":"IF('1. Ordersheet'!Y967=\"\",\"\",'1. Ordersheet'!Y967)","v":""},{"$f":"IF('1. Ordersheet'!Z967=\"\",\"\",'1. Ordersheet'!Z967)","v":""},{"$f":"IF('1. Ordersheet'!AA967=\"\",\"\",'1. Ordersheet'!AA967)","v":""},null,{"$f":"IF('1. Ordersheet'!AS967=\"\",\"\",'1. Ordersheet'!AS967)","v":""},{"$f":"IF('1. Ordersheet'!AT967=\"\",\"\",'1. Ordersheet'!AT967)","v":""},null,null,null,null,null,null,null,{"$f":"IF('1. Ordersheet'!AX967=\"\",\"\",'1. Ordersheet'!AX967)","v":""},{"$f":"IF('1. Ordersheet'!AY967=\"\",\"\",'1. Ordersheet'!AY967)","v":""},{"$f":"IF('1. Ordersheet'!AZ967=\"\",\"\",'1. Ordersheet'!AZ967)","v":""},{"$f":"IF('1. Ordersheet'!BA967=\"\",\"\",'1. Ordersheet'!BA967)","v":""},{"$f":"IF('1. Ordersheet'!BC967=\"\",\"\",'1. Ordersheet'!BC967)","v":""},{"$f":"IF('1. Ordersheet'!BD967=\"\",\"\",'1. Ordersheet'!BD967)","v":""},{"$f":"IF('1. Ordersheet'!BE967=\"\",\"\",'1. Ordersheet'!BE967)","v":""},{"$f":"IF('1. Ordersheet'!BF967=\"\",\"\",'1. Ordersheet'!BF967)","v":""},{"$f":"IF('1. Ordersheet'!BG967=\"\",\"\",'1. Ordersheet'!BG967)","v":"ZWO"},{"$f":"IF('1. Ordersheet'!BH967=\"\",\"\",'1. Ordersheet'!BH967)","v":""},{"$f":"IF('1. Ordersheet'!BI967=\"\",\"\",'1. Ordersheet'!BI967)","v":""},{"$f":"IF('1. Ordersheet'!BJ967=\"\",\"\",'1. Ordersheet'!BJ967)","v":""},{"$f":"IF('1. Ordersheet'!BK967=\"\",\"\",'1. Ordersheet'!BK967)","v":""},{"$f":"IF('1. Ordersheet'!BL967=\"\",\"\",'1. Ordersheet'!BL967)","v":""}]
[{"$f":"IF('1. Ordersheet'!F968=\"\",\"\",'1. Ordersheet'!F968)","v":""},{"$f":"IF('1. Ordersheet'!G968=\"\",\"\",'1. Ordersheet'!G968)","v":""},{"$f":"IF('1. Ordersheet'!H968=\"\",\"\",'1. Ordersheet'!H968)","v":""},{"$f":"IF('1. Ordersheet'!I968=\"\",\"\",'1. Ordersheet'!I968)","v":""},{"$f":"IF('1. Ordersheet'!J968=\"\",\"\",'1. Ordersheet'!J968)","v":""},{"$f":"IF('1. Ordersheet'!K968=\"\",\"\",'1. Ordersheet'!K968)","v":""},{"$f":"IF('1. Ordersheet'!L968=\"\",\"\",'1. Ordersheet'!L968)","v":""},{"$f":"IF('1. Ordersheet'!M968=\"\",\"\",'1. Ordersheet'!M968)","v":""},{"$f":"IF('1. Ordersheet'!N968=\"\",\"\",'1. Ordersheet'!N968)","v":""},{"$f":"IF('1. Ordersheet'!O968=\"\",\"\",'1. Ordersheet'!O968)","v":{"$error":"#N/A"}},{"$f":"IF('1. Ordersheet'!P968=\"\",\"\",'1. Ordersheet'!P968)","v":{"$error":"#N/A"}},{"$f":"IF('1. Ordersheet'!Q968=\"\",\"\",'1. Ordersheet'!Q968)","v":""},{"$f":"IF('1. Ordersheet'!R968=\"\",\"\",'1. Ordersheet'!R968)","v":""},{"$f":"IF('1. Ordersheet'!S968=\"\",\"\",'1. Ordersheet'!S968)","v":""},{"$f":"IF('1. Ordersheet'!V968=\"\",\"\",'1. Ordersheet'!V968)","v":""},{"$f":"IF('1. Ordersheet'!W968=\"\",\"\",'1. Ordersheet'!W968)","v":""},{"$f":"IF('1. Ordersheet'!X968=\"\",\"\",'1. Ordersheet'!X968)","v":""},{"$f":"IF('1. Ordersheet'!Y968=\"\",\"\",'1. Ordersheet'!Y968)","v":""},{"$f":"IF('1. Ordersheet'!Z968=\"\",\"\",'1. Ordersheet'!Z968)","v":""},{"$f":"IF('1. Ordersheet'!AA968=\"\",\"\",'1. Ordersheet'!AA968)","v":""},null,{"$f":"IF('1. Ordersheet'!AS968=\"\",\"\",'1. Ordersheet'!AS968)","v":""},{"$f":"IF('1. Ordersheet'!AT968=\"\",\"\",'1. Ordersheet'!AT968)","v":""},null,null,null,null,null,null,null,{"$f":"IF('1. Ordersheet'!AX968=\"\",\"\",'1. Ordersheet'!AX968)","v":""},{"$f":"IF('1. Ordersheet'!AY968=\"\",\"\",'1. Ordersheet'!AY968)","v":""},{"$f":"IF('1. Ordersheet'!AZ968=\"\",\"\",'1. Ordersheet'!AZ968)","v":""},{"$f":"IF('1. Ordersheet'!BA968=\"\",\"\",'1. Ordersheet'!BA968)","v":""},{"$f":"IF('1. Ordersheet'!BC968=\"\",\"\",'1. Ordersheet'!BC968)","v":""},{"$f":"IF('1. Ordersheet'!BD968=\"\",\"\",'1. Ordersheet'!BD968)","v":""},{"$f":"IF('1. Ordersheet'!BE968=\"\",\"\",'1. Ordersheet'!BE968)","v":""},{"$f":"IF('1. Ordersheet'!BF968=\"\",\"\",'1. Ordersheet'!BF968)","v":""},{"$f":"IF('1. Ordersheet'!BG968=\"\",\"\",'1. Ordersheet'!BG968)","v":"ZWO"},{"$f":"IF('1. Ordersheet'!BH968=\"\",\"\",'1. Ordersheet'!BH968)","v":""},{"$f":"IF('1. Ordersheet'!BI968=\"\",\"\",'1. Ordersheet'!BI968)","v":""},{"$f":"IF('1. Ordersheet'!BJ968=\"\",\"\",'1. Ordersheet'!BJ968)","v":""},{"$f":"IF('1. Ordersheet'!BK968=\"\",\"\",'1. Ordersheet'!BK968)","v":""},{"$f":"IF('1. Ordersheet'!BL968=\"\",\"\",'1. Ordersheet'!BL968)","v":""}]
[{"$f":"IF('1. Ordersheet'!F969=\"\",\"\",'1. Ordersheet'!F969)","v":""},{"$f":"IF('1. Ordersheet'!G969=\"\",\"\",'1. Ordersheet'!G969)","v":""},{"$f":"IF('1. Ordersheet'!H969=\"\",\"\",'1. Ordersheet'!H969)","v":""},{"$f":"IF('1. Ordersheet'!I969=\"\",\"\",'1. Ordersheet'!I969)","v":""},{"$f":"IF('1. Ordersheet'!J969=\"\",\"\",'1. Ordersheet'!J969)","v":""},{"$f":"IF('1. Ordersheet'!K969=\"\",\"\",'1. Ordersheet'!K969)","v":""},{"$f":"IF('1. Ordersheet'!L969=\"\",\"\",'1. Ordersheet'!L969)","v":""},{"$f":"IF('1. Ordersheet'!M969=\"\",\"\",'1. Ordersheet'!M969)","v":""},{"$f":"IF('1. Ordersheet'!N969=\"\",\"\",'1. Ordersheet'!N969)","v":""},{"$f":"IF('1. Ordersheet'!O969=\"\",\"\",'1. Ordersheet'!O969)","v":{"$error":"#N/A"}},{"$f":"IF('1. Ordersheet'!P969=\"\",\"\",'1. Ordersheet'!P969)","v":{"$error":"#N/A"}},{"$f":"IF('1. Ordersheet'!Q969=\"\",\"\",'1. Ordersheet'!Q969)","v":""},{"$f":"IF('1. Ordersheet'!R969=\"\",\"\",'1. Ordersheet'!R969)","v":""},{"$f":"IF('1. Ordersheet'!S969=\"\",\"\",'1. Ordersheet'!S969)","v":""},{"$f":"IF('1. Ordersheet'!V969=\"\",\"\",'1. Ordersheet'!V969)","v":""},{"$f":"IF('1. Ordersheet'!W969=\"\",\"\",'1. Ordersheet'!W969)","v":""},{"$f":"IF('1. Ordersheet'!X969=\"\",\"\",'1. Ordersheet'!X969)","v":""},{"$f":"IF('1. Ordersheet'!Y969=\"\",\"\",'1. Ordersheet'!Y969)","v":""},{"$f":"IF('1. Ordersheet'!Z969=\"\",\"\",'1. Ordersheet'!Z969)","v":""},{"$f":"IF('1. Ordersheet'!AA969=\"\",\"\",'1. Ordersheet'!AA969)","v":""},null,{"$f":"IF('1. Ordersheet'!AS969=\"\",\"\",'1. Ordersheet'!AS969)","v":""},{"$f":"IF('1. Ordersheet'!AT969=\"\",\"\",'1. Ordersheet'!AT969)","v":""},null,null,null,null,null,null,null,{"$f":"IF('1. Ordersheet'!AX969=\"\",\"\",'1. Ordersheet'!AX969)","v":""},{"$f":"IF('1. Ordersheet'!AY969=\"\",\"\",'1. Ordersheet'!AY969)","v":""},{"$f":"IF('1. Ordersheet'!AZ969=\"\",\"\",'1. Ordersheet'!AZ969)","v":""},{"$f":"IF('1. Ordersheet'!BA969=\"\",\"\",'1. Ordersheet'!BA969)","v":""},{"$f":"IF('1. Ordersheet'!BC969=\"\",\"\",'1. Ordersheet'!BC969)","v":""},{"$f":"IF('1. Ordersheet'!BD969=\"\",\"\",'1. Ordersheet'!BD969)","v":""},{"$f":"IF('1. Ordersheet'!BE969=\"\",\"\",'1. Ordersheet'!BE969)","v":""},{"$f":"IF('1. Ordersheet'!BF969=\"\",\"\",'1. Ordersheet'!BF969)","v":""},{"$f":"IF('1. Ordersheet'!BG969=\"\",\"\",'1. Ordersheet'!BG969)","v":"ZWO"},{"$f":"IF('1. Ordersheet'!BH969=\"\",\"\",'1. Ordersheet'!BH969)","v":""},{"$f":"IF('1. Ordersheet'!BI969=\"\",\"\",'1. Ordersheet'!BI969)","v":""},{"$f":"IF('1. Ordersheet'!BJ969=\"\",\"\",'1. Ordersheet'!BJ969)","v":""},{"$f":"IF('1. Ordersheet'!BK969=\"\",\"\",'1. Ordersheet'!BK969)","v":""},{"$f":"IF('1. Ordersheet'!BL969=\"\",\"\",'1. Ordersheet'!BL969)","v":""}]
[{"$f":"IF('1. Ordersheet'!F970=\"\",\"\",'1. Ordersheet'!F970)","v":""},{"$f":"IF('1. Ordersheet'!G970=\"\",\"\",'1. Ordersheet'!G970)","v":""},{"$f":"IF('1. Ordersheet'!H970=\"\",\"\",'1. Ordersheet'!H970)","v":""},{"$f":"IF('1. Ordersheet'!I970=\"\",\"\",'1. Ordersheet'!I970)","v":""},{"$f":"IF('1. Ordersheet'!J970=\"\",\"\",'1. Ordersheet'!J970)","v":""},{"$f":"IF('1. Ordersheet'!K970=\"\",\"\",'1. Ordersheet'!K970)","v":""},{"$f":"IF('1. Ordersheet'!L970=\"\",\"\",'1. Ordersheet'!L970)","v":""},{"$f":"IF('1. Ordersheet'!M970=\"\",\"\",'1. Ordersheet'!M970)","v":""},{"$f":"IF('1. Ordersheet'!N970=\"\",\"\",'1. Ordersheet'!N970)","v":""},{"$f":"IF('1. Ordersheet'!O970=\"\",\"\",'1. Ordersheet'!O970)","v":{"$error":"#N/A"}},{"$f":"IF('1. Ordersheet'!P970=\"\",\"\",'1. Ordersheet'!P970)","v":{"$error":"#N/A"}},{"$f":"IF('1. Ordersheet'!Q970=\"\",\"\",'1. Ordersheet'!Q970)","v":""},{"$f":"IF('1. Ordersheet'!R970=\"\",\"\",'1. Ordersheet'!R970)","v":""},{"$f":"IF('1. Ordersheet'!S970=\"\",\"\",'1. Ordersheet'!S970)","v":""},{"$f":"IF('1. Ordersheet'!V970=\"\",\"\",'1. Ordersheet'!V970)","v":""},{"$f":"IF('1. Ordersheet'!W970=\"\",\"\",'1. Ordersheet'!W970)","v":""},{"$f":"IF('1. Ordersheet'!X970=\"\",\"\",'1. Ordersheet'!X970)","v":""},{"$f":"IF('1. Ordersheet'!Y970=\"\",\"\",'1. Ordersheet'!Y970)","v":""},{"$f":"IF('1. Ordersheet'!Z970=\"\",\"\",'1. Ordersheet'!Z970)","v":""},{"$f":"IF('1. Ordersheet'!AA970=\"\",\"\",'1. Ordersheet'!AA970)","v":""},null,{"$f":"IF('1. Ordersheet'!AS970=\"\",\"\",'1. Ordersheet'!AS970)","v":""},{"$f":"IF('1. Ordersheet'!AT970=\"\",\"\",'1. Ordersheet'!AT970)","v":""},null,null,null,null,null,null,null,{"$f":"IF('1. Ordersheet'!AX970=\"\",\"\",'1. Ordersheet'!AX970)","v":""},{"$f":"IF('1. Ordersheet'!AY970=\"\",\"\",'1. Ordersheet'!AY970)","v":""},{"$f":"IF('1. Ordersheet'!AZ970=\"\",\"\",'1. Ordersheet'!AZ970)","v":""},{"$f":"IF('1. Ordersheet'!BA970=\"\",\"\",'1. Ordersheet'!BA970)","v":""},{"$f":"IF('1. Ordersheet'!BC970=\"\",\"\",'1. Ordersheet'!BC970)","v":""},{"$f":"IF('1. Ordersheet'!BD970=\"\",\"\",'1. Ordersheet'!BD970)","v":""},{"$f":"IF('1. Ordersheet'!BE970=\"\",\"\",'1. Ordersheet'!BE970)","v":""},{"$f":"IF('1. Ordersheet'!BF970=\"\",\"\",'1. Ordersheet'!BF970)","v":""},{"$f":"IF('1. Ordersheet'!BG970=\"\",\"\",'1. Ordersheet'!BG970)","v":"ZWO"},{"$f":"IF('1. Ordersheet'!BH970=\"\",\"\",'1. Ordersheet'!BH970)","v":""},{"$f":"IF('1. Ordersheet'!BI970=\"\",\"\",'1. Ordersheet'!BI970)","v":""},{"$f":"IF('1. Ordersheet'!BJ970=\"\",\"\",'1. Ordersheet'!BJ970)","v":""},{"$f":"IF('1. Ordersheet'!BK970=\"\",\"\",'1. Ordersheet'!BK970)","v":""},{"$f":"IF('1. Ordersheet'!BL970=\"\",\"\",'1. Ordersheet'!BL970)","v":""}]
[{"$f":"IF('1. Ordersheet'!F971=\"\",\"\",'1. Ordersheet'!F971)","v":""},{"$f":"IF('1. Ordersheet'!G971=\"\",\"\",'1. Ordersheet'!G971)","v":""},{"$f":"IF('1. Ordersheet'!H971=\"\",\"\",'1. Ordersheet'!H971)","v":""},{"$f":"IF('1. Ordersheet'!I971=\"\",\"\",'1. Ordersheet'!I971)","v":""},{"$f":"IF('1. Ordersheet'!J971=\"\",\"\",'1. Ordersheet'!J971)","v":""},{"$f":"IF('1. Ordersheet'!K971=\"\",\"\",'1. Ordersheet'!K971)","v":""},{"$f":"IF('1. Ordersheet'!L971=\"\",\"\",'1. Ordersheet'!L971)","v":""},{"$f":"IF('1. Ordersheet'!M971=\"\",\"\",'1. Ordersheet'!M971)","v":""},{"$f":"IF('1. Ordersheet'!N971=\"\",\"\",'1. Ordersheet'!N971)","v":""},{"$f":"IF('1. Ordersheet'!O971=\"\",\"\",'1. Ordersheet'!O971)","v":{"$error":"#N/A"}},{"$f":"IF('1. Ordersheet'!P971=\"\",\"\",'1. Ordersheet'!P971)","v":{"$error":"#N/A"}},{"$f":"IF('1. Ordersheet'!Q971=\"\",\"\",'1. Ordersheet'!Q971)","v":""},{"$f":"IF('1. Ordersheet'!R971=\"\",\"\",'1. Ordersheet'!R971)","v":""},{"$f":"IF('1. Ordersheet'!S971=\"\",\"\",'1. Ordersheet'!S971)","v":""},{"$f":"IF('1. Ordersheet'!V971=\"\",\"\",'1. Ordersheet'!V971)","v":""},{"$f":"IF('1. Ordersheet'!W971=\"\",\"\",'1. Ordersheet'!W971)","v":""},{"$f":"IF('1. Ordersheet'!X971=\"\",\"\",'1. Ordersheet'!X971)","v":""},{"$f":"IF('1. Ordersheet'!Y971=\"\",\"\",'1. Ordersheet'!Y971)","v":""},{"$f":"IF('1. Ordersheet'!Z971=\"\",\"\",'1. Ordersheet'!Z971)","v":""},{"$f":"IF('1. Ordersheet'!AA971=\"\",\"\",'1. Ordersheet'!AA971)","v":""},null,{"$f":"IF('1. Ordersheet'!AS971=\"\",\"\",'1. Ordersheet'!AS971)","v":""},{"$f":"IF('1. Ordersheet'!AT971=\"\",\"\",'1. Ordersheet'!AT971)","v":""},null,null,null,null,null,null,null,{"$f":"IF('1. Ordersheet'!AX971=\"\",\"\",'1. Ordersheet'!AX971)","v":""},{"$f":"IF('1. Ordersheet'!AY971=\"\",\"\",'1. Ordersheet'!AY971)","v":""},{"$f":"IF('1. Ordersheet'!AZ971=\"\",\"\",'1. Ordersheet'!AZ971)","v":""},{"$f":"IF('1. Ordersheet'!BA971=\"\",\"\",'1. Ordersheet'!BA971)","v":""},{"$f":"IF('1. Ordersheet'!BC971=\"\",\"\",'1. Ordersheet'!BC971)","v":""},{"$f":"IF('1. Ordersheet'!BD971=\"\",\"\",'1. Ordersheet'!BD971)","v":""},{"$f":"IF('1. Ordersheet'!BE971=\"\",\"\",'1. Ordersheet'!BE971)","v":""},{"$f":"IF('1. Ordersheet'!BF971=\"\",\"\",'1. Ordersheet'!BF971)","v":""},{"$f":"IF('1. Ordersheet'!BG971=\"\",\"\",'1. Ordersheet'!BG971)","v":"ZWO"},{"$f":"IF('1. Ordersheet'!BH971=\"\",\"\",'1. Ordersheet'!BH971)","v":""},{"$f":"IF('1. Ordersheet'!BI971=\"\",\"\",'1. Ordersheet'!BI971)","v":""},{"$f":"IF('1. Ordersheet'!BJ971=\"\",\"\",'1. Ordersheet'!BJ971)","v":""},{"$f":"IF('1. Ordersheet'!BK971=\"\",\"\",'1. Ordersheet'!BK971)","v":""},{"$f":"IF('1. Ordersheet'!BL971=\"\",\"\",'1. Ordersheet'!BL971)","v":""}]
[{"$f":"IF('1. Ordersheet'!F972=\"\",\"\",'1. Ordersheet'!F972)","v":""},{"$f":"IF('1. Ordersheet'!G972=\"\",\"\",'1. Ordersheet'!G972)","v":""},{"$f":"IF('1. Ordersheet'!H972=\"\",\"\",'1. Ordersheet'!H972)","v":""},{"$f":"IF('1. Ordersheet'!I972=\"\",\"\",'1. Ordersheet'!I972)","v":""},{"$f":"IF('1. Ordersheet'!J972=\"\",\"\",'1. Ordersheet'!J972)","v":""},{"$f":"IF('1. Ordersheet'!K972=\"\",\"\",'1. Ordersheet'!K972)","v":""},{"$f":"IF('1. Ordersheet'!L972=\"\",\"\",'1. Ordersheet'!L972)","v":""},{"$f":"IF('1. Ordersheet'!M972=\"\",\"\",'1. Ordersheet'!M972)","v":""},{"$f":"IF('1. Ordersheet'!N972=\"\",\"\",'1. Ordersheet'!N972)","v":""},{"$f":"IF('1. Ordersheet'!O972=\"\",\"\",'1. Ordersheet'!O972)","v":{"$error":"#N/A"}},{"$f":"IF('1. Ordersheet'!P972=\"\",\"\",'1. Ordersheet'!P972)","v":{"$error":"#N/A"}},{"$f":"IF('1. Ordersheet'!Q972=\"\",\"\",'1. Ordersheet'!Q972)","v":""},{"$f":"IF('1. Ordersheet'!R972=\"\",\"\",'1. Ordersheet'!R972)","v":""},{"$f":"IF('1. Ordersheet'!S972=\"\",\"\",'1. Ordersheet'!S972)","v":""},{"$f":"IF('1. Ordersheet'!V972=\"\",\"\",'1. Ordersheet'!V972)","v":""},{"$f":"IF('1. Ordersheet'!W972=\"\",\"\",'1. Ordersheet'!W972)","v":""},{"$f":"IF('1. Ordersheet'!X972=\"\",\"\",'1. Ordersheet'!X972)","v":""},{"$f":"IF('1. Ordersheet'!Y972=\"\",\"\",'1. Ordersheet'!Y972)","v":""},{"$f":"IF('1. Ordersheet'!Z972=\"\",\"\",'1. Ordersheet'!Z972)","v":""},{"$f":"IF('1. Ordersheet'!AA972=\"\",\"\",'1. Ordersheet'!AA972)","v":""},null,{"$f":"IF('1. Ordersheet'!AS972=\"\",\"\",'1. Ordersheet'!AS972)","v":""},{"$f":"IF('1. Ordersheet'!AT972=\"\",\"\",'1. Ordersheet'!AT972)","v":""},null,null,null,null,null,null,null,{"$f":"IF('1. Ordersheet'!AX972=\"\",\"\",'1. Ordersheet'!AX972)","v":""},{"$f":"IF('1. Ordersheet'!AY972=\"\",\"\",'1. Ordersheet'!AY972)","v":""},{"$f":"IF('1. Ordersheet'!AZ972=\"\",\"\",'1. Ordersheet'!AZ972)","v":""},{"$f":"IF('1. Ordersheet'!BA972=\"\",\"\",'1. Ordersheet'!BA972)","v":""},{"$f":"IF('1. Ordersheet'!BC972=\"\",\"\",'1. Ordersheet'!BC972)","v":""},{"$f":"IF('1. Ordersheet'!BD972=\"\",\"\",'1. Ordersheet'!BD972)","v":""},{"$f":"IF('1. Ordersheet'!BE972=\"\",\"\",'1. Ordersheet'!BE972)","v":""},{"$f":"IF('1. Ordersheet'!BF972=\"\",\"\",'1. Ordersheet'!BF972)","v":""},{"$f":"IF('1. Ordersheet'!BG972=\"\",\"\",'1. Ordersheet'!BG972)","v":"ZWO"},{"$f":"IF('1. Ordersheet'!BH972=\"\",\"\",'1. Ordersheet'!BH972)","v":""},{"$f":"IF('1. Ordersheet'!BI972=\"\",\"\",'1. Ordersheet'!BI972)","v":""},{"$f":"IF('1. Ordersheet'!BJ972=\"\",\"\",'1. Ordersheet'!BJ972)","v":""},{"$f":"IF('1. Ordersheet'!BK972=\"\",\"\",'1. Ordersheet'!BK972)","v":""},{"$f":"IF('1. Ordersheet'!BL972=\"\",\"\",'1. Ordersheet'!BL972)","v":""}]
[{"$f":"IF('1. Ordersheet'!F973=\"\",\"\",'1. Ordersheet'!F973)","v":""},{"$f":"IF('1. Ordersheet'!G973=\"\",\"\",'1. Ordersheet'!G973)","v":""},{"$f":"IF('1. Ordersheet'!H973=\"\",\"\",'1. Ordersheet'!H973)","v":""},{"$f":"IF('1. Ordersheet'!I973=\"\",\"\",'1. Ordersheet'!I973)","v":""},{"$f":"IF('1. Ordersheet'!J973=\"\",\"\",'1. Ordersheet'!J973)","v":""},{"$f":"IF('1. Ordersheet'!K973=\"\",\"\",'1. Ordersheet'!K973)","v":""},{"$f":"IF('1. Ordersheet'!L973=\"\",\"\",'1. Ordersheet'!L973)","v":""},{"$f":"IF('1. Ordersheet'!M973=\"\",\"\",'1. Ordersheet'!M973)","v":""},{"$f":"IF('1. Ordersheet'!N973=\"\",\"\",'1. Ordersheet'!N973)","v":""},{"$f":"IF('1. Ordersheet'!O973=\"\",\"\",'1. Ordersheet'!O973)","v":{"$error":"#N/A"}},{"$f":"IF('1. Ordersheet'!P973=\"\",\"\",'1. Ordersheet'!P973)","v":{"$error":"#N/A"}},{"$f":"IF('1. Ordersheet'!Q973=\"\",\"\",'1. Ordersheet'!Q973)","v":""},{"$f":"IF('1. Ordersheet'!R973=\"\",\"\",'1. Ordersheet'!R973)","v":""},{"$f":"IF('1. Ordersheet'!S973=\"\",\"\",'1. Ordersheet'!S973)","v":""},{"$f":"IF('1. Ordersheet'!V973=\"\",\"\",'1. Ordersheet'!V973)","v":""},{"$f":"IF('1. Ordersheet'!W973=\"\",\"\",'1. Ordersheet'!W973)","v":""},{"$f":"IF('1. Ordersheet'!X973=\"\",\"\",'1. Ordersheet'!X973)","v":""},{"$f":"IF('1. Ordersheet'!Y973=\"\",\"\",'1. Ordersheet'!Y973)","v":""},{"$f":"IF('1. Ordersheet'!Z973=\"\",\"\",'1. Ordersheet'!Z973)","v":""},{"$f":"IF('1. Ordersheet'!AA973=\"\",\"\",'1. Ordersheet'!AA973)","v":""},null,{"$f":"IF('1. Ordersheet'!AS973=\"\",\"\",'1. Ordersheet'!AS973)","v":""},{"$f":"IF('1. Ordersheet'!AT973=\"\",\"\",'1. Ordersheet'!AT973)","v":""},null,null,null,null,null,null,null,{"$f":"IF('1. Ordersheet'!AX973=\"\",\"\",'1. Ordersheet'!AX973)","v":""},{"$f":"IF('1. Ordersheet'!AY973=\"\",\"\",'1. Ordersheet'!AY973)","v":""},{"$f":"IF('1. Ordersheet'!AZ973=\"\",\"\",'1. Ordersheet'!AZ973)","v":""},{"$f":"IF('1. Ordersheet'!BA973=\"\",\"\",'1. Ordersheet'!BA973)","v":""},{"$f":"IF('1. Ordersheet'!BC973=\"\",\"\",'1. Ordersheet'!BC973)","v":""},{"$f":"IF('1. Ordersheet'!BD973=\"\",\"\",'1. Ordersheet'!BD973)","v":""},{"$f":"IF('1. Ordersheet'!BE973=\"\",\"\",'1. Ordersheet'!BE973)","v":""},{"$f":"IF('1. Ordersheet'!BF973=\"\",\"\",'1. Ordersheet'!BF973)","v":""},{"$f":"IF('1. Ordersheet'!BG973=\"\",\"\",'1. Ordersheet'!BG973)","v":"ZWO"},{"$f":"IF('1. Ordersheet'!BH973=\"\",\"\",'1. Ordersheet'!BH973)","v":""},{"$f":"IF('1. Ordersheet'!BI973=\"\",\"\",'1. Ordersheet'!BI973)","v":""},{"$f":"IF('1. Ordersheet'!BJ973=\"\",\"\",'1. Ordersheet'!BJ973)","v":""},{"$f":"IF('1. Ordersheet'!BK973=\"\",\"\",'1. Ordersheet'!BK973)","v":""},{"$f":"IF('1. Ordersheet'!BL973=\"\",\"\",'1. Ordersheet'!BL973)","v":""}]
[{"$f":"IF('1. Ordersheet'!F974=\"\",\"\",'1. Ordersheet'!F974)","v":""},{"$f":"IF('1. Ordersheet'!G974=\"\",\"\",'1. Ordersheet'!G974)","v":""},{"$f":"IF('1. Ordersheet'!H974=\"\",\"\",'1. Ordersheet'!H974)","v":""},{"$f":"IF('1. Ordersheet'!I974=\"\",\"\",'1. Ordersheet'!I974)","v":""},{"$f":"IF('1. Ordersheet'!J974=\"\",\"\",'1. Ordersheet'!J974)","v":""},{"$f":"IF('1. Ordersheet'!K974=\"\",\"\",'1. Ordersheet'!K974)","v":""},{"$f":"IF('1. Ordersheet'!L974=\"\",\"\",'1. Ordersheet'!L974)","v":""},{"$f":"IF('1. Ordersheet'!M974=\"\",\"\",'1. Ordersheet'!M974)","v":""},{"$f":"IF('1. Ordersheet'!N974=\"\",\"\",'1. Ordersheet'!N974)","v":""},{"$f":"IF('1. Ordersheet'!O974=\"\",\"\",'1. Ordersheet'!O974)","v":{"$error":"#N/A"}},{"$f":"IF('1. Ordersheet'!P974=\"\",\"\",'1. Ordersheet'!P974)","v":{"$error":"#N/A"}},{"$f":"IF('1. Ordersheet'!Q974=\"\",\"\",'1. Ordersheet'!Q974)","v":""},{"$f":"IF('1. Ordersheet'!R974=\"\",\"\",'1. Ordersheet'!R974)","v":""},{"$f":"IF('1. Ordersheet'!S974=\"\",\"\",'1. Ordersheet'!S974)","v":""},{"$f":"IF('1. Ordersheet'!V974=\"\",\"\",'1. Ordersheet'!V974)","v":""},{"$f":"IF('1. Ordersheet'!W974=\"\",\"\",'1. Ordersheet'!W974)","v":""},{"$f":"IF('1. Ordersheet'!X974=\"\",\"\",'1. Ordersheet'!X974)","v":""},{"$f":"IF('1. Ordersheet'!Y974=\"\",\"\",'1. Ordersheet'!Y974)","v":""},{"$f":"IF('1. Ordersheet'!Z974=\"\",\"\",'1. Ordersheet'!Z974)","v":""},{"$f":"IF('1. Ordersheet'!AA974=\"\",\"\",'1. Ordersheet'!AA974)","v":""},null,{"$f":"IF('1. Ordersheet'!AS974=\"\",\"\",'1. Ordersheet'!AS974)","v":""},{"$f":"IF('1. Ordersheet'!AT974=\"\",\"\",'1. Ordersheet'!AT974)","v":""},null,null,null,null,null,null,null,{"$f":"IF('1. Ordersheet'!AX974=\"\",\"\",'1. Ordersheet'!AX974)","v":""},{"$f":"IF('1. Ordersheet'!AY974=\"\",\"\",'1. Ordersheet'!AY974)","v":""},{"$f":"IF('1. Ordersheet'!AZ974=\"\",\"\",'1. Ordersheet'!AZ974)","v":""},{"$f":"IF('1. Ordersheet'!BA974=\"\",\"\",'1. Ordersheet'!BA974)","v":""},{"$f":"IF('1. Ordersheet'!BC974=\"\",\"\",'1. Ordersheet'!BC974)","v":""},{"$f":"IF('1. Ordersheet'!BD974=\"\",\"\",'1. Ordersheet'!BD974)","v":""},{"$f":"IF('1. Ordersheet'!BE974=\"\",\"\",'1. Ordersheet'!BE974)","v":""},{"$f":"IF('1. Ordersheet'!BF974=\"\",\"\",'1. Ordersheet'!BF974)","v":""},{"$f":"IF('1. Ordersheet'!BG974=\"\",\"\",'1. Ordersheet'!BG974)","v":"ZWO"},{"$f":"IF('1. Ordersheet'!BH974=\"\",\"\",'1. Ordersheet'!BH974)","v":""},{"$f":"IF('1. Ordersheet'!BI974=\"\",\"\",'1. Ordersheet'!BI974)","v":""},{"$f":"IF('1. Ordersheet'!BJ974=\"\",\"\",'1. Ordersheet'!BJ974)","v":""},{"$f":"IF('1. Ordersheet'!BK974=\"\",\"\",'1. Ordersheet'!BK974)","v":""},{"$f":"IF('1. Ordersheet'!BL974=\"\",\"\",'1. Ordersheet'!BL974)","v":""}]
[{"$f":"IF('1. Ordersheet'!F975=\"\",\"\",'1. Ordersheet'!F975)","v":""},{"$f":"IF('1. Ordersheet'!G975=\"\",\"\",'1. Ordersheet'!G975)","v":""},{"$f":"IF('1. Ordersheet'!H975=\"\",\"\",'1. Ordersheet'!H975)","v":""},{"$f":"IF('1. Ordersheet'!I975=\"\",\"\",'1. Ordersheet'!I975)","v":""},{"$f":"IF('1. Ordersheet'!J975=\"\",\"\",'1. Ordersheet'!J975)","v":""},{"$f":"IF('1. Ordersheet'!K975=\"\",\"\",'1. Ordersheet'!K975)","v":""},{"$f":"IF('1. Ordersheet'!L975=\"\",\"\",'1. Ordersheet'!L975)","v":""},{"$f":"IF('1. Ordersheet'!M975=\"\",\"\",'1. Ordersheet'!M975)","v":""},{"$f":"IF('1. Ordersheet'!N975=\"\",\"\",'1. Ordersheet'!N975)","v":""},{"$f":"IF('1. Ordersheet'!O975=\"\",\"\",'1. Ordersheet'!O975)","v":{"$error":"#N/A"}},{"$f":"IF('1. Ordersheet'!P975=\"\",\"\",'1. Ordersheet'!P975)","v":{"$error":"#N/A"}},{"$f":"IF('1. Ordersheet'!Q975=\"\",\"\",'1. Ordersheet'!Q975)","v":""},{"$f":"IF('1. Ordersheet'!R975=\"\",\"\",'1. Ordersheet'!R975)","v":""},{"$f":"IF('1. Ordersheet'!S975=\"\",\"\",'1. Ordersheet'!S975)","v":""},{"$f":"IF('1. Ordersheet'!V975=\"\",\"\",'1. Ordersheet'!V975)","v":""},{"$f":"IF('1. Ordersheet'!W975=\"\",\"\",'1. Ordersheet'!W975)","v":""},{"$f":"IF('1. Ordersheet'!X975=\"\",\"\",'1. Ordersheet'!X975)","v":""},{"$f":"IF('1. Ordersheet'!Y975=\"\",\"\",'1. Ordersheet'!Y975)","v":""},{"$f":"IF('1. Ordersheet'!Z975=\"\",\"\",'1. Ordersheet'!Z975)","v":""},{"$f":"IF('1. Ordersheet'!AA975=\"\",\"\",'1. Ordersheet'!AA975)","v":""},null,{"$f":"IF('1. Ordersheet'!AS975=\"\",\"\",'1. Ordersheet'!AS975)","v":""},{"$f":"IF('1. Ordersheet'!AT975=\"\",\"\",'1. Ordersheet'!AT975)","v":""},null,null,null,null,null,null,null,{"$f":"IF('1. Ordersheet'!AX975=\"\",\"\",'1. Ordersheet'!AX975)","v":""},{"$f":"IF('1. Ordersheet'!AY975=\"\",\"\",'1. Ordersheet'!AY975)","v":""},{"$f":"IF('1. Ordersheet'!AZ975=\"\",\"\",'1. Ordersheet'!AZ975)","v":""},{"$f":"IF('1. Ordersheet'!BA975=\"\",\"\",'1. Ordersheet'!BA975)","v":""},{"$f":"IF('1. Ordersheet'!BC975=\"\",\"\",'1. Ordersheet'!BC975)","v":""},{"$f":"IF('1. Ordersheet'!BD975=\"\",\"\",'1. Ordersheet'!BD975)","v":""},{"$f":"IF('1. Ordersheet'!BE975=\"\",\"\",'1. Ordersheet'!BE975)","v":""},{"$f":"IF('1. Ordersheet'!BF975=\"\",\"\",'1. Ordersheet'!BF975)","v":""},{"$f":"IF('1. Ordersheet'!BG975=\"\",\"\",'1. Ordersheet'!BG975)","v":"ZWO"},{"$f":"IF('1. Ordersheet'!BH975=\"\",\"\",'1. Ordersheet'!BH975)","v":""},{"$f":"IF('1. Ordersheet'!BI975=\"\",\"\",'1. Ordersheet'!BI975)","v":""},{"$f":"IF('1. Ordersheet'!BJ975=\"\",\"\",'1. Ordersheet'!BJ975)","v":""},{"$f":"IF('1. Ordersheet'!BK975=\"\",\"\",'1. Ordersheet'!BK975)","v":""},{"$f":"IF('1. Ordersheet'!BL975=\"\",\"\",'1. Ordersheet'!BL975)","v":""}]
[{"$f":"IF('1. Ordersheet'!F976=\"\",\"\",'1. Ordersheet'!F976)","v":""},{"$f":"IF('1. Ordersheet'!G976=\"\",\"\",'1. Ordersheet'!G976)","v":""},{"$f":"IF('1. Ordersheet'!H976=\"\",\"\",'1. Ordersheet'!H976)","v":""},{"$f":"IF('1. Ordersheet'!I976=\"\",\"\",'1. Ordersheet'!I976)","v":""},{"$f":"IF('1. Ordersheet'!J976=\"\",\"\",'1. Ordersheet'!J976)","v":""},{"$f":"IF('1. Ordersheet'!K976=\"\",\"\",'1. Ordersheet'!K976)","v":""},{"$f":"IF('1. Ordersheet'!L976=\"\",\"\",'1. Ordersheet'!L976)","v":""},{"$f":"IF('1. Ordersheet'!M976=\"\",\"\",'1. Ordersheet'!M976)","v":""},{"$f":"IF('1. Ordersheet'!N976=\"\",\"\",'1. Ordersheet'!N976)","v":""},{"$f":"IF('1. Ordersheet'!O976=\"\",\"\",'1. Ordersheet'!O976)","v":{"$error":"#N/A"}},{"$f":"IF('1. Ordersheet'!P976=\"\",\"\",'1. Ordersheet'!P976)","v":{"$error":"#N/A"}},{"$f":"IF('1. Ordersheet'!Q976=\"\",\"\",'1. Ordersheet'!Q976)","v":""},{"$f":"IF('1. Ordersheet'!R976=\"\",\"\",'1. Ordersheet'!R976)","v":""},{"$f":"IF('1. Ordersheet'!S976=\"\",\"\",'1. Ordersheet'!S976)","v":""},{"$f":"IF('1. Ordersheet'!V976=\"\",\"\",'1. Ordersheet'!V976)","v":""},{"$f":"IF('1. Ordersheet'!W976=\"\",\"\",'1. Ordersheet'!W976)","v":""},{"$f":"IF('1. Ordersheet'!X976=\"\",\"\",'1. Ordersheet'!X976)","v":""},{"$f":"IF('1. Ordersheet'!Y976=\"\",\"\",'1. Ordersheet'!Y976)","v":""},{"$f":"IF('1. Ordersheet'!Z976=\"\",\"\",'1. Ordersheet'!Z976)","v":""},{"$f":"IF('1. Ordersheet'!AA976=\"\",\"\",'1. Ordersheet'!AA976)","v":""},null,{"$f":"IF('1. Ordersheet'!AS976=\"\",\"\",'1. Ordersheet'!AS976)","v":""},{"$f":"IF('1. Ordersheet'!AT976=\"\",\"\",'1. Ordersheet'!AT976)","v":""},null,null,null,null,null,null,null,{"$f":"IF('1. Ordersheet'!AX976=\"\",\"\",'1. Ordersheet'!AX976)","v":""},{"$f":"IF('1. Ordersheet'!AY976=\"\",\"\",'1. Ordersheet'!AY976)","v":""},{"$f":"IF('1. Ordersheet'!AZ976=\"\",\"\",'1. Ordersheet'!AZ976)","v":""},{"$f":"IF('1. Ordersheet'!BA976=\"\",\"\",'1. Ordersheet'!BA976)","v":""},{"$f":"IF('1. Ordersheet'!BC976=\"\",\"\",'1. Ordersheet'!BC976)","v":""},{"$f":"IF('1. Ordersheet'!BD976=\"\",\"\",'1. Ordersheet'!BD976)","v":""},{"$f":"IF('1. Ordersheet'!BE976=\"\",\"\",'1. Ordersheet'!BE976)","v":""},{"$f":"IF('1. Ordersheet'!BF976=\"\",\"\",'1. Ordersheet'!BF976)","v":""},{"$f":"IF('1. Ordersheet'!BG976=\"\",\"\",'1. Ordersheet'!BG976)","v":"ZWO"},{"$f":"IF('1. Ordersheet'!BH976=\"\",\"\",'1. Ordersheet'!BH976)","v":""},{"$f":"IF('1. Ordersheet'!BI976=\"\",\"\",'1. Ordersheet'!BI976)","v":""},{"$f":"IF('1. Ordersheet'!BJ976=\"\",\"\",'1. Ordersheet'!BJ976)","v":""},{"$f":"IF('1. Ordersheet'!BK976=\"\",\"\",'1. Ordersheet'!BK976)","v":""},{"$f":"IF('1. Ordersheet'!BL976=\"\",\"\",'1. Ordersheet'!BL976)","v":""}]
[{"$f":"IF('1. Ordersheet'!F977=\"\",\"\",'1. Ordersheet'!F977)","v":""},{"$f":"IF('1. Ordersheet'!G977=\"\",\"\",'1. Ordersheet'!G977)","v":""},{"$f":"IF('1. Ordersheet'!H977=\"\",\"\",'1. Ordersheet'!H977)","v":""},{"$f":"IF('1. Ordersheet'!I977=\"\",\"\",'1. Ordersheet'!I977)","v":""},{"$f":"IF('1. Ordersheet'!J977=\"\",\"\",'1. Ordersheet'!J977)","v":""},{"$f":"IF('1. Ordersheet'!K977=\"\",\"\",'1. Ordersheet'!K977)","v":""},{"$f":"IF('1. Ordersheet'!L977=\"\",\"\",'1. Ordersheet'!L977)","v":""},{"$f":"IF('1. Ordersheet'!M977=\"\",\"\",'1. Ordersheet'!M977)","v":""},{"$f":"IF('1. Ordersheet'!N977=\"\",\"\",'1. Ordersheet'!N977)","v":""},{"$f":"IF('1. Ordersheet'!O977=\"\",\"\",'1. Ordersheet'!O977)","v":{"$error":"#N/A"}},{"$f":"IF('1. Ordersheet'!P977=\"\",\"\",'1. Ordersheet'!P977)","v":{"$error":"#N/A"}},{"$f":"IF('1. Ordersheet'!Q977=\"\",\"\",'1. Ordersheet'!Q977)","v":""},{"$f":"IF('1. Ordersheet'!R977=\"\",\"\",'1. Ordersheet'!R977)","v":""},{"$f":"IF('1. Ordersheet'!S977=\"\",\"\",'1. Ordersheet'!S977)","v":""},{"$f":"IF('1. Ordersheet'!V977=\"\",\"\",'1. Ordersheet'!V977)","v":""},{"$f":"IF('1. Ordersheet'!W977=\"\",\"\",'1. Ordersheet'!W977)","v":""},{"$f":"IF('1. Ordersheet'!X977=\"\",\"\",'1. Ordersheet'!X977)","v":""},{"$f":"IF('1. Ordersheet'!Y977=\"\",\"\",'1. Ordersheet'!Y977)","v":""},{"$f":"IF('1. Ordersheet'!Z977=\"\",\"\",'1. Ordersheet'!Z977)","v":""},{"$f":"IF('1. Ordersheet'!AA977=\"\",\"\",'1. Ordersheet'!AA977)","v":""},null,{"$f":"IF('1. Ordersheet'!AS977=\"\",\"\",'1. Ordersheet'!AS977)","v":""},{"$f":"IF('1. Ordersheet'!AT977=\"\",\"\",'1. Ordersheet'!AT977)","v":""},null,null,null,null,null,null,null,{"$f":"IF('1. Ordersheet'!AX977=\"\",\"\",'1. Ordersheet'!AX977)","v":""},{"$f":"IF('1. Ordersheet'!AY977=\"\",\"\",'1. Ordersheet'!AY977)","v":""},{"$f":"IF('1. Ordersheet'!AZ977=\"\",\"\",'1. Ordersheet'!AZ977)","v":""},{"$f":"IF('1. Ordersheet'!BA977=\"\",\"\",'1. Ordersheet'!BA977)","v":""},{"$f":"IF('1. Ordersheet'!BC977=\"\",\"\",'1. Ordersheet'!BC977)","v":""},{"$f":"IF('1. Ordersheet'!BD977=\"\",\"\",'1. Ordersheet'!BD977)","v":""},{"$f":"IF('1. Ordersheet'!BE977=\"\",\"\",'1. Ordersheet'!BE977)","v":""},{"$f":"IF('1. Ordersheet'!BF977=\"\",\"\",'1. Ordersheet'!BF977)","v":""},{"$f":"IF('1. Ordersheet'!BG977=\"\",\"\",'1. Ordersheet'!BG977)","v":"ZWO"},{"$f":"IF('1. Ordersheet'!BH977=\"\",\"\",'1. Ordersheet'!BH977)","v":""},{"$f":"IF('1. Ordersheet'!BI977=\"\",\"\",'1. Ordersheet'!BI977)","v":""},{"$f":"IF('1. Ordersheet'!BJ977=\"\",\"\",'1. Ordersheet'!BJ977)","v":""},{"$f":"IF('1. Ordersheet'!BK977=\"\",\"\",'1. Ordersheet'!BK977)","v":""},{"$f":"IF('1. Ordersheet'!BL977=\"\",\"\",'1. Ordersheet'!BL977)","v":""}]
[{"$f":"IF('1. Ordersheet'!F978=\"\",\"\",'1. Ordersheet'!F978)","v":""},{"$f":"IF('1. Ordersheet'!G978=\"\",\"\",'1. Ordersheet'!G978)","v":""},{"$f":"IF('1. Ordersheet'!H978=\"\",\"\",'1. Ordersheet'!H978)","v":""},{"$f":"IF('1. Ordersheet'!I978=\"\",\"\",'1. Ordersheet'!I978)","v":""},{"$f":"IF('1. Ordersheet'!J978=\"\",\"\",'1. Ordersheet'!J978)","v":""},{"$f":"IF('1. Ordersheet'!K978=\"\",\"\",'1. Ordersheet'!K978)","v":""},{"$f":"IF('1. Ordersheet'!L978=\"\",\"\",'1. Ordersheet'!L978)","v":""},{"$f":"IF('1. Ordersheet'!M978=\"\",\"\",'1. Ordersheet'!M978)","v":""},{"$f":"IF('1. Ordersheet'!N978=\"\",\"\",'1. Ordersheet'!N978)","v":""},{"$f":"IF('1. Ordersheet'!O978=\"\",\"\",'1. Ordersheet'!O978)","v":{"$error":"#N/A"}},{"$f":"IF('1. Ordersheet'!P978=\"\",\"\",'1. Ordersheet'!P978)","v":{"$error":"#N/A"}},{"$f":"IF('1. Ordersheet'!Q978=\"\",\"\",'1. Ordersheet'!Q978)","v":""},{"$f":"IF('1. Ordersheet'!R978=\"\",\"\",'1. Ordersheet'!R978)","v":""},{"$f":"IF('1. Ordersheet'!S978=\"\",\"\",'1. Ordersheet'!S978)","v":""},{"$f":"IF('1. Ordersheet'!V978=\"\",\"\",'1. Ordersheet'!V978)","v":""},{"$f":"IF('1. Ordersheet'!W978=\"\",\"\",'1. Ordersheet'!W978)","v":""},{"$f":"IF('1. Ordersheet'!X978=\"\",\"\",'1. Ordersheet'!X978)","v":""},{"$f":"IF('1. Ordersheet'!Y978=\"\",\"\",'1. Ordersheet'!Y978)","v":""},{"$f":"IF('1. Ordersheet'!Z978=\"\",\"\",'1. Ordersheet'!Z978)","v":""},{"$f":"IF('1. Ordersheet'!AA978=\"\",\"\",'1. Ordersheet'!AA978)","v":""},null,{"$f":"IF('1. Ordersheet'!AS978=\"\",\"\",'1. Ordersheet'!AS978)","v":""},{"$f":"IF('1. Ordersheet'!AT978=\"\",\"\",'1. Ordersheet'!AT978)","v":""},null,null,null,null,null,null,null,{"$f":"IF('1. Ordersheet'!AX978=\"\",\"\",'1. Ordersheet'!AX978)","v":""},{"$f":"IF('1. Ordersheet'!AY978=\"\",\"\",'1. Ordersheet'!AY978)","v":""},{"$f":"IF('1. Ordersheet'!AZ978=\"\",\"\",'1. Ordersheet'!AZ978)","v":""},{"$f":"IF('1. Ordersheet'!BA978=\"\",\"\",'1. Ordersheet'!BA978)","v":""},{"$f":"IF('1. Ordersheet'!BC978=\"\",\"\",'1. Ordersheet'!BC978)","v":""},{"$f":"IF('1. Ordersheet'!BD978=\"\",\"\",'1. Ordersheet'!BD978)","v":""},{"$f":"IF('1. Ordersheet'!BE978=\"\",\"\",'1. Ordersheet'!BE978)","v":""},{"$f":"IF('1. Ordersheet'!BF978=\"\",\"\",'1. Ordersheet'!BF978)","v":""},{"$f":"IF('1. Ordersheet'!BG978=\"\",\"\",'1. Ordersheet'!BG978)","v":"ZWO"},{"$f":"IF('1. Ordersheet'!BH978=\"\",\"\",'1. Ordersheet'!BH978)","v":""},{"$f":"IF('1. Ordersheet'!BI978=\"\",\"\",'1. Ordersheet'!BI978)","v":""},{"$f":"IF('1. Ordersheet'!BJ978=\"\",\"\",'1. Ordersheet'!BJ978)","v":""},{"$f":"IF('1. Ordersheet'!BK978=\"\",\"\",'1. Ordersheet'!BK978)","v":""},{"$f":"IF('1. Ordersheet'!BL978=\"\",\"\",'1. Ordersheet'!BL978)","v":""}]
[{"$f":"IF('1. Ordersheet'!F979=\"\",\"\",'1. Ordersheet'!F979)","v":""},{"$f":"IF('1. Ordersheet'!G979=\"\",\"\",'1. Ordersheet'!G979)","v":""},{"$f":"IF('1. Ordersheet'!H979=\"\",\"\",'1. Ordersheet'!H979)","v":""},{"$f":"IF('1. Ordersheet'!I979=\"\",\"\",'1. Ordersheet'!I979)","v":""},{"$f":"IF('1. Ordersheet'!J979=\"\",\"\",'1. Ordersheet'!J979)","v":""},{"$f":"IF('1. Ordersheet'!K979=\"\",\"\",'1. Ordersheet'!K979)","v":""},{"$f":"IF('1. Ordersheet'!L979=\"\",\"\",'1. Ordersheet'!L979)","v":""},{"$f":"IF('1. Ordersheet'!M979=\"\",\"\",'1. Ordersheet'!M979)","v":""},{"$f":"IF('1. Ordersheet'!N979=\"\",\"\",'1. Ordersheet'!N979)","v":""},{"$f":"IF('1. Ordersheet'!O979=\"\",\"\",'1. Ordersheet'!O979)","v":{"$error":"#N/A"}},{"$f":"IF('1. Ordersheet'!P979=\"\",\"\",'1. Ordersheet'!P979)","v":{"$error":"#N/A"}},{"$f":"IF('1. Ordersheet'!Q979=\"\",\"\",'1. Ordersheet'!Q979)","v":""},{"$f":"IF('1. Ordersheet'!R979=\"\",\"\",'1. Ordersheet'!R979)","v":""},{"$f":"IF('1. Ordersheet'!S979=\"\",\"\",'1. Ordersheet'!S979)","v":""},{"$f":"IF('1. Ordersheet'!V979=\"\",\"\",'1. Ordersheet'!V979)","v":""},{"$f":"IF('1. Ordersheet'!W979=\"\",\"\",'1. Ordersheet'!W979)","v":""},{"$f":"IF('1. Ordersheet'!X979=\"\",\"\",'1. Ordersheet'!X979)","v":""},{"$f":"IF('1. Ordersheet'!Y979=\"\",\"\",'1. Ordersheet'!Y979)","v":""},{"$f":"IF('1. Ordersheet'!Z979=\"\",\"\",'1. Ordersheet'!Z979)","v":""},{"$f":"IF('1. Ordersheet'!AA979=\"\",\"\",'1. Ordersheet'!AA979)","v":""},null,{"$f":"IF('1. Ordersheet'!AS979=\"\",\"\",'1. Ordersheet'!AS979)","v":""},{"$f":"IF('1. Ordersheet'!AT979=\"\",\"\",'1. Ordersheet'!AT979)","v":""},null,null,null,null,null,null,null,{"$f":"IF('1. Ordersheet'!AX979=\"\",\"\",'1. Ordersheet'!AX979)","v":""},{"$f":"IF('1. Ordersheet'!AY979=\"\",\"\",'1. Ordersheet'!AY979)","v":""},{"$f":"IF('1. Ordersheet'!AZ979=\"\",\"\",'1. Ordersheet'!AZ979)","v":""},{"$f":"IF('1. Ordersheet'!BA979=\"\",\"\",'1. Ordersheet'!BA979)","v":""},{"$f":"IF('1. Ordersheet'!BC979=\"\",\"\",'1. Ordersheet'!BC979)","v":""},{"$f":"IF('1. Ordersheet'!BD979=\"\",\"\",'1. Ordersheet'!BD979)","v":""},{"$f":"IF('1. Ordersheet'!BE979=\"\",\"\",'1. Ordersheet'!BE979)","v":""},{"$f":"IF('1. Ordersheet'!BF979=\"\",\"\",'1. Ordersheet'!BF979)","v":""},{"$f":"IF('1. Ordersheet'!BG979=\"\",\"\",'1. Ordersheet'!BG979)","v":"ZWO"},{"$f":"IF('1. Ordersheet'!BH979=\"\",\"\",'1. Ordersheet'!BH979)","v":""},{"$f":"IF('1. Ordersheet'!BI979=\"\",\"\",'1. Ordersheet'!BI979)","v":""},{"$f":"IF('1. Ordersheet'!BJ979=\"\",\"\",'1. Ordersheet'!BJ979)","v":""},{"$f":"IF('1. Ordersheet'!BK979=\"\",\"\",'1. Ordersheet'!BK979)","v":""},{"$f":"IF('1. Ordersheet'!BL979=\"\",\"\",'1. Ordersheet'!BL979)","v":""}]
[{"$f":"IF('1. Ordersheet'!F980=\"\",\"\",'1. Ordersheet'!F980)","v":""},{"$f":"IF('1. Ordersheet'!G980=\"\",\"\",'1. Ordersheet'!G980)","v":""},{"$f":"IF('1. Ordersheet'!H980=\"\",\"\",'1. Ordersheet'!H980)","v":""},{"$f":"IF('1. Ordersheet'!I980=\"\",\"\",'1. Ordersheet'!I980)","v":""},{"$f":"IF('1. Ordersheet'!J980=\"\",\"\",'1. Ordersheet'!J980)","v":""},{"$f":"IF('1. Ordersheet'!K980=\"\",\"\",'1. Ordersheet'!K980)","v":""},{"$f":"IF('1. Ordersheet'!L980=\"\",\"\",'1. Ordersheet'!L980)","v":""},{"$f":"IF('1. Ordersheet'!M980=\"\",\"\",'1. Ordersheet'!M980)","v":""},{"$f":"IF('1. Ordersheet'!N980=\"\",\"\",'1. Ordersheet'!N980)","v":""},{"$f":"IF('1. Ordersheet'!O980=\"\",\"\",'1. Ordersheet'!O980)","v":{"$error":"#N/A"}},{"$f":"IF('1. Ordersheet'!P980=\"\",\"\",'1. Ordersheet'!P980)","v":{"$error":"#N/A"}},{"$f":"IF('1. Ordersheet'!Q980=\"\",\"\",'1. Ordersheet'!Q980)","v":""},{"$f":"IF('1. Ordersheet'!R980=\"\",\"\",'1. Ordersheet'!R980)","v":""},{"$f":"IF('1. Ordersheet'!S980=\"\",\"\",'1. Ordersheet'!S980)","v":""},{"$f":"IF('1. Ordersheet'!V980=\"\",\"\",'1. Ordersheet'!V980)","v":""},{"$f":"IF('1. Ordersheet'!W980=\"\",\"\",'1. Ordersheet'!W980)","v":""},{"$f":"IF('1. Ordersheet'!X980=\"\",\"\",'1. Ordersheet'!X980)","v":""},{"$f":"IF('1. Ordersheet'!Y980=\"\",\"\",'1. Ordersheet'!Y980)","v":""},{"$f":"IF('1. Ordersheet'!Z980=\"\",\"\",'1. Ordersheet'!Z980)","v":""},{"$f":"IF('1. Ordersheet'!AA980=\"\",\"\",'1. Ordersheet'!AA980)","v":""},null,{"$f":"IF('1. Ordersheet'!AS980=\"\",\"\",'1. Ordersheet'!AS980)","v":""},{"$f":"IF('1. Ordersheet'!AT980=\"\",\"\",'1. Ordersheet'!AT980)","v":""},null,null,null,null,null,null,null,{"$f":"IF('1. Ordersheet'!AX980=\"\",\"\",'1. Ordersheet'!AX980)","v":""},{"$f":"IF('1. Ordersheet'!AY980=\"\",\"\",'1. Ordersheet'!AY980)","v":""},{"$f":"IF('1. Ordersheet'!AZ980=\"\",\"\",'1. Ordersheet'!AZ980)","v":""},{"$f":"IF('1. Ordersheet'!BA980=\"\",\"\",'1. Ordersheet'!BA980)","v":""},{"$f":"IF('1. Ordersheet'!BC980=\"\",\"\",'1. Ordersheet'!BC980)","v":""},{"$f":"IF('1. Ordersheet'!BD980=\"\",\"\",'1. Ordersheet'!BD980)","v":""},{"$f":"IF('1. Ordersheet'!BE980=\"\",\"\",'1. Ordersheet'!BE980)","v":""},{"$f":"IF('1. Ordersheet'!BF980=\"\",\"\",'1. Ordersheet'!BF980)","v":""},{"$f":"IF('1. Ordersheet'!BG980=\"\",\"\",'1. Ordersheet'!BG980)","v":"ZWO"},{"$f":"IF('1. Ordersheet'!BH980=\"\",\"\",'1. Ordersheet'!BH980)","v":""},{"$f":"IF('1. Ordersheet'!BI980=\"\",\"\",'1. Ordersheet'!BI980)","v":""},{"$f":"IF('1. Ordersheet'!BJ980=\"\",\"\",'1. Ordersheet'!BJ980)","v":""},{"$f":"IF('1. Ordersheet'!BK980=\"\",\"\",'1. Ordersheet'!BK980)","v":""},{"$f":"IF('1. Ordersheet'!BL980=\"\",\"\",'1. Ordersheet'!BL980)","v":""}]
[{"$f":"IF('1. Ordersheet'!F981=\"\",\"\",'1. Ordersheet'!F981)","v":""},{"$f":"IF('1. Ordersheet'!G981=\"\",\"\",'1. Ordersheet'!G981)","v":""},{"$f":"IF('1. Ordersheet'!H981=\"\",\"\",'1. Ordersheet'!H981)","v":""},{"$f":"IF('1. Ordersheet'!I981=\"\",\"\",'1. Ordersheet'!I981)","v":""},{"$f":"IF('1. Ordersheet'!J981=\"\",\"\",'1. Ordersheet'!J981)","v":""},{"$f":"IF('1. Ordersheet'!K981=\"\",\"\",'1. Ordersheet'!K981)","v":""},{"$f":"IF('1. Ordersheet'!L981=\"\",\"\",'1. Ordersheet'!L981)","v":""},{"$f":"IF('1. Ordersheet'!M981=\"\",\"\",'1. Ordersheet'!M981)","v":""},{"$f":"IF('1. Ordersheet'!N981=\"\",\"\",'1. Ordersheet'!N981)","v":""},{"$f":"IF('1. Ordersheet'!O981=\"\",\"\",'1. Ordersheet'!O981)","v":{"$error":"#N/A"}},{"$f":"IF('1. Ordersheet'!P981=\"\",\"\",'1. Ordersheet'!P981)","v":{"$error":"#N/A"}},{"$f":"IF('1. Ordersheet'!Q981=\"\",\"\",'1. Ordersheet'!Q981)","v":""},{"$f":"IF('1. Ordersheet'!R981=\"\",\"\",'1. Ordersheet'!R981)","v":""},{"$f":"IF('1. Ordersheet'!S981=\"\",\"\",'1. Ordersheet'!S981)","v":""},{"$f":"IF('1. Ordersheet'!V981=\"\",\"\",'1. Ordersheet'!V981)","v":""},{"$f":"IF('1. Ordersheet'!W981=\"\",\"\",'1. Ordersheet'!W981)","v":""},{"$f":"IF('1. Ordersheet'!X981=\"\",\"\",'1. Ordersheet'!X981)","v":""},{"$f":"IF('1. Ordersheet'!Y981=\"\",\"\",'1. Ordersheet'!Y981)","v":""},{"$f":"IF('1. Ordersheet'!Z981=\"\",\"\",'1. Ordersheet'!Z981)","v":""},{"$f":"IF('1. Ordersheet'!AA981=\"\",\"\",'1. Ordersheet'!AA981)","v":""},null,{"$f":"IF('1. Ordersheet'!AS981=\"\",\"\",'1. Ordersheet'!AS981)","v":""},{"$f":"IF('1. Ordersheet'!AT981=\"\",\"\",'1. Ordersheet'!AT981)","v":""},null,null,null,null,null,null,null,{"$f":"IF('1. Ordersheet'!AX981=\"\",\"\",'1. Ordersheet'!AX981)","v":""},{"$f":"IF('1. Ordersheet'!AY981=\"\",\"\",'1. Ordersheet'!AY981)","v":""},{"$f":"IF('1. Ordersheet'!AZ981=\"\",\"\",'1. Ordersheet'!AZ981)","v":""},{"$f":"IF('1. Ordersheet'!BA981=\"\",\"\",'1. Ordersheet'!BA981)","v":""},{"$f":"IF('1. Ordersheet'!BC981=\"\",\"\",'1. Ordersheet'!BC981)","v":""},{"$f":"IF('1. Ordersheet'!BD981=\"\",\"\",'1. Ordersheet'!BD981)","v":""},{"$f":"IF('1. Ordersheet'!BE981=\"\",\"\",'1. Ordersheet'!BE981)","v":""},{"$f":"IF('1. Ordersheet'!BF981=\"\",\"\",'1. Ordersheet'!BF981)","v":""},{"$f":"IF('1. Ordersheet'!BG981=\"\",\"\",'1. Ordersheet'!BG981)","v":"ZWO"},{"$f":"IF('1. Ordersheet'!BH981=\"\",\"\",'1. Ordersheet'!BH981)","v":""},{"$f":"IF('1. Ordersheet'!BI981=\"\",\"\",'1. Ordersheet'!BI981)","v":""},{"$f":"IF('1. Ordersheet'!BJ981=\"\",\"\",'1. Ordersheet'!BJ981)","v":""},{"$f":"IF('1. Ordersheet'!BK981=\"\",\"\",'1. Ordersheet'!BK981)","v":""},{"$f":"IF('1. Ordersheet'!BL981=\"\",\"\",'1. Ordersheet'!BL981)","v":""}]
[{"$f":"IF('1. Ordersheet'!F982=\"\",\"\",'1. Ordersheet'!F982)","v":""},{"$f":"IF('1. Ordersheet'!G982=\"\",\"\",'1. Ordersheet'!G982)","v":""},{"$f":"IF('1. Ordersheet'!H982=\"\",\"\",'1. Ordersheet'!H982)","v":""},{"$f":"IF('1. Ordersheet'!I982=\"\",\"\",'1. Ordersheet'!I982)","v":""},{"$f":"IF('1. Ordersheet'!J982=\"\",\"\",'1. Ordersheet'!J982)","v":""},{"$f":"IF('1. Ordersheet'!K982=\"\",\"\",'1. Ordersheet'!K982)","v":""},{"$f":"IF('1. Ordersheet'!L982=\"\",\"\",'1. Ordersheet'!L982)","v":""},{"$f":"IF('1. Ordersheet'!M982=\"\",\"\",'1. Ordersheet'!M982)","v":""},{"$f":"IF('1. Ordersheet'!N982=\"\",\"\",'1. Ordersheet'!N982)","v":""},{"$f":"IF('1. Ordersheet'!O982=\"\",\"\",'1. Ordersheet'!O982)","v":{"$error":"#N/A"}},{"$f":"IF('1. Ordersheet'!P982=\"\",\"\",'1. Ordersheet'!P982)","v":{"$error":"#N/A"}},{"$f":"IF('1. Ordersheet'!Q982=\"\",\"\",'1. Ordersheet'!Q982)","v":""},{"$f":"IF('1. Ordersheet'!R982=\"\",\"\",'1. Ordersheet'!R982)","v":""},{"$f":"IF('1. Ordersheet'!S982=\"\",\"\",'1. Ordersheet'!S982)","v":""},{"$f":"IF('1. Ordersheet'!V982=\"\",\"\",'1. Ordersheet'!V982)","v":""},{"$f":"IF('1. Ordersheet'!W982=\"\",\"\",'1. Ordersheet'!W982)","v":""},{"$f":"IF('1. Ordersheet'!X982=\"\",\"\",'1. Ordersheet'!X982)","v":""},{"$f":"IF('1. Ordersheet'!Y982=\"\",\"\",'1. Ordersheet'!Y982)","v":""},{"$f":"IF('1. Ordersheet'!Z982=\"\",\"\",'1. Ordersheet'!Z982)","v":""},{"$f":"IF('1. Ordersheet'!AA982=\"\",\"\",'1. Ordersheet'!AA982)","v":""},null,{"$f":"IF('1. Ordersheet'!AS982=\"\",\"\",'1. Ordersheet'!AS982)","v":""},{"$f":"IF('1. Ordersheet'!AT982=\"\",\"\",'1. Ordersheet'!AT982)","v":""},null,null,null,null,null,null,null,{"$f":"IF('1. Ordersheet'!AX982=\"\",\"\",'1. Ordersheet'!AX982)","v":""},{"$f":"IF('1. Ordersheet'!AY982=\"\",\"\",'1. Ordersheet'!AY982)","v":""},{"$f":"IF('1. Ordersheet'!AZ982=\"\",\"\",'1. Ordersheet'!AZ982)","v":""},{"$f":"IF('1. Ordersheet'!BA982=\"\",\"\",'1. Ordersheet'!BA982)","v":""},{"$f":"IF('1. Ordersheet'!BC982=\"\",\"\",'1. Ordersheet'!BC982)","v":""},{"$f":"IF('1. Ordersheet'!BD982=\"\",\"\",'1. Ordersheet'!BD982)","v":""},{"$f":"IF('1. Ordersheet'!BE982=\"\",\"\",'1. Ordersheet'!BE982)","v":""},{"$f":"IF('1. Ordersheet'!BF982=\"\",\"\",'1. Ordersheet'!BF982)","v":""},{"$f":"IF('1. Ordersheet'!BG982=\"\",\"\",'1. Ordersheet'!BG982)","v":"ZWO"},{"$f":"IF('1. Ordersheet'!BH982=\"\",\"\",'1. Ordersheet'!BH982)","v":""},{"$f":"IF('1. Ordersheet'!BI982=\"\",\"\",'1. Ordersheet'!BI982)","v":""},{"$f":"IF('1. Ordersheet'!BJ982=\"\",\"\",'1. Ordersheet'!BJ982)","v":""},{"$f":"IF('1. Ordersheet'!BK982=\"\",\"\",'1. Ordersheet'!BK982)","v":""},{"$f":"IF('1. Ordersheet'!BL982=\"\",\"\",'1. Ordersheet'!BL982)","v":""}]
[{"$f":"IF('1. Ordersheet'!F983=\"\",\"\",'1. Ordersheet'!F983)","v":""},{"$f":"IF('1. Ordersheet'!G983=\"\",\"\",'1. Ordersheet'!G983)","v":""},{"$f":"IF('1. Ordersheet'!H983=\"\",\"\",'1. Ordersheet'!H983)","v":""},{"$f":"IF('1. Ordersheet'!I983=\"\",\"\",'1. Ordersheet'!I983)","v":""},{"$f":"IF('1. Ordersheet'!J983=\"\",\"\",'1. Ordersheet'!J983)","v":""},{"$f":"IF('1. Ordersheet'!K983=\"\",\"\",'1. Ordersheet'!K983)","v":""},{"$f":"IF('1. Ordersheet'!L983=\"\",\"\",'1. Ordersheet'!L983)","v":""},{"$f":"IF('1. Ordersheet'!M983=\"\",\"\",'1. Ordersheet'!M983)","v":""},{"$f":"IF('1. Ordersheet'!N983=\"\",\"\",'1. Ordersheet'!N983)","v":""},{"$f":"IF('1. Ordersheet'!O983=\"\",\"\",'1. Ordersheet'!O983)","v":{"$error":"#N/A"}},{"$f":"IF('1. Ordersheet'!P983=\"\",\"\",'1. Ordersheet'!P983)","v":{"$error":"#N/A"}},{"$f":"IF('1. Ordersheet'!Q983=\"\",\"\",'1. Ordersheet'!Q983)","v":""},{"$f":"IF('1. Ordersheet'!R983=\"\",\"\",'1. Ordersheet'!R983)","v":""},{"$f":"IF('1. Ordersheet'!S983=\"\",\"\",'1. Ordersheet'!S983)","v":""},{"$f":"IF('1. Ordersheet'!V983=\"\",\"\",'1. Ordersheet'!V983)","v":""},{"$f":"IF('1. Ordersheet'!W983=\"\",\"\",'1. Ordersheet'!W983)","v":""},{"$f":"IF('1. Ordersheet'!X983=\"\",\"\",'1. Ordersheet'!X983)","v":""},{"$f":"IF('1. Ordersheet'!Y983=\"\",\"\",'1. Ordersheet'!Y983)","v":""},{"$f":"IF('1. Ordersheet'!Z983=\"\",\"\",'1. Ordersheet'!Z983)","v":""},{"$f":"IF('1. Ordersheet'!AA983=\"\",\"\",'1. Ordersheet'!AA983)","v":""},null,{"$f":"IF('1. Ordersheet'!AS983=\"\",\"\",'1. Ordersheet'!AS983)","v":""},{"$f":"IF('1. Ordersheet'!AT983=\"\",\"\",'1. Ordersheet'!AT983)","v":""},null,null,null,null,null,null,null,{"$f":"IF('1. Ordersheet'!AX983=\"\",\"\",'1. Ordersheet'!AX983)","v":""},{"$f":"IF('1. Ordersheet'!AY983=\"\",\"\",'1. Ordersheet'!AY983)","v":""},{"$f":"IF('1. Ordersheet'!AZ983=\"\",\"\",'1. Ordersheet'!AZ983)","v":""},{"$f":"IF('1. Ordersheet'!BA983=\"\",\"\",'1. Ordersheet'!BA983)","v":""},{"$f":"IF('1. Ordersheet'!BC983=\"\",\"\",'1. Ordersheet'!BC983)","v":""},{"$f":"IF('1. Ordersheet'!BD983=\"\",\"\",'1. Ordersheet'!BD983)","v":""},{"$f":"IF('1. Ordersheet'!BE983=\"\",\"\",'1. Ordersheet'!BE983)","v":""},{"$f":"IF('1. Ordersheet'!BF983=\"\",\"\",'1. Ordersheet'!BF983)","v":""},{"$f":"IF('1. Ordersheet'!BG983=\"\",\"\",'1. Ordersheet'!BG983)","v":"ZWO"},{"$f":"IF('1. Ordersheet'!BH983=\"\",\"\",'1. Ordersheet'!BH983)","v":""},{"$f":"IF('1. Ordersheet'!BI983=\"\",\"\",'1. Ordersheet'!BI983)","v":""},{"$f":"IF('1. Ordersheet'!BJ983=\"\",\"\",'1. Ordersheet'!BJ983)","v":""},{"$f":"IF('1. Ordersheet'!BK983=\"\",\"\",'1. Ordersheet'!BK983)","v":""},{"$f":"IF('1. Ordersheet'!BL983=\"\",\"\",'1. Ordersheet'!BL983)","v":""}]
[{"$f":"IF('1. Ordersheet'!F984=\"\",\"\",'1. Ordersheet'!F984)","v":""},{"$f":"IF('1. Ordersheet'!G984=\"\",\"\",'1. Ordersheet'!G984)","v":""},{"$f":"IF('1. Ordersheet'!H984=\"\",\"\",'1. Ordersheet'!H984)","v":""},{"$f":"IF('1. Ordersheet'!I984=\"\",\"\",'1. Ordersheet'!I984)","v":""},{"$f":"IF('1. Ordersheet'!J984=\"\",\"\",'1. Ordersheet'!J984)","v":""},{"$f":"IF('1. Ordersheet'!K984=\"\",\"\",'1. Ordersheet'!K984)","v":""},{"$f":"IF('1. Ordersheet'!L984=\"\",\"\",'1. Ordersheet'!L984)","v":""},{"$f":"IF('1. Ordersheet'!M984=\"\",\"\",'1. Ordersheet'!M984)","v":""},{"$f":"IF('1. Ordersheet'!N984=\"\",\"\",'1. Ordersheet'!N984)","v":""},{"$f":"IF('1. Ordersheet'!O984=\"\",\"\",'1. Ordersheet'!O984)","v":{"$error":"#N/A"}},{"$f":"IF('1. Ordersheet'!P984=\"\",\"\",'1. Ordersheet'!P984)","v":{"$error":"#N/A"}},{"$f":"IF('1. Ordersheet'!Q984=\"\",\"\",'1. Ordersheet'!Q984)","v":""},{"$f":"IF('1. Ordersheet'!R984=\"\",\"\",'1. Ordersheet'!R984)","v":""},{"$f":"IF('1. Ordersheet'!S984=\"\",\"\",'1. Ordersheet'!S984)","v":""},{"$f":"IF('1. Ordersheet'!V984=\"\",\"\",'1. Ordersheet'!V984)","v":""},{"$f":"IF('1. Ordersheet'!W984=\"\",\"\",'1. Ordersheet'!W984)","v":""},{"$f":"IF('1. Ordersheet'!X984=\"\",\"\",'1. Ordersheet'!X984)","v":""},{"$f":"IF('1. Ordersheet'!Y984=\"\",\"\",'1. Ordersheet'!Y984)","v":""},{"$f":"IF('1. Ordersheet'!Z984=\"\",\"\",'1. Ordersheet'!Z984)","v":""},{"$f":"IF('1. Ordersheet'!AA984=\"\",\"\",'1. Ordersheet'!AA984)","v":""},null,{"$f":"IF('1. Ordersheet'!AS984=\"\",\"\",'1. Ordersheet'!AS984)","v":""},{"$f":"IF('1. Ordersheet'!AT984=\"\",\"\",'1. Ordersheet'!AT984)","v":""},null,null,null,null,null,null,null,{"$f":"IF('1. Ordersheet'!AX984=\"\",\"\",'1. Ordersheet'!AX984)","v":""},{"$f":"IF('1. Ordersheet'!AY984=\"\",\"\",'1. Ordersheet'!AY984)","v":""},{"$f":"IF('1. Ordersheet'!AZ984=\"\",\"\",'1. Ordersheet'!AZ984)","v":""},{"$f":"IF('1. Ordersheet'!BA984=\"\",\"\",'1. Ordersheet'!BA984)","v":""},{"$f":"IF('1. Ordersheet'!BC984=\"\",\"\",'1. Ordersheet'!BC984)","v":""},{"$f":"IF('1. Ordersheet'!BD984=\"\",\"\",'1. Ordersheet'!BD984)","v":""},{"$f":"IF('1. Ordersheet'!BE984=\"\",\"\",'1. Ordersheet'!BE984)","v":""},{"$f":"IF('1. Ordersheet'!BF984=\"\",\"\",'1. Ordersheet'!BF984)","v":""},{"$f":"IF('1. Ordersheet'!BG984=\"\",\"\",'1. Ordersheet'!BG984)","v":"ZWO"},{"$f":"IF('1. Ordersheet'!BH984=\"\",\"\",'1. Ordersheet'!BH984)","v":""},{"$f":"IF('1. Ordersheet'!BI984=\"\",\"\",'1. Ordersheet'!BI984)","v":""},{"$f":"IF('1. Ordersheet'!BJ984=\"\",\"\",'1. Ordersheet'!BJ984)","v":""},{"$f":"IF('1. Ordersheet'!BK984=\"\",\"\",'1. Ordersheet'!BK984)","v":""},{"$f":"IF('1. Ordersheet'!BL984=\"\",\"\",'1. Ordersheet'!BL984)","v":""}]
[{"$f":"IF('1. Ordersheet'!F985=\"\",\"\",'1. Ordersheet'!F985)","v":""},{"$f":"IF('1. Ordersheet'!G985=\"\",\"\",'1. Ordersheet'!G985)","v":""},{"$f":"IF('1. Ordersheet'!H985=\"\",\"\",'1. Ordersheet'!H985)","v":""},{"$f":"IF('1. Ordersheet'!I985=\"\",\"\",'1. Ordersheet'!I985)","v":""},{"$f":"IF('1. Ordersheet'!J985=\"\",\"\",'1. Ordersheet'!J985)","v":""},{"$f":"IF('1. Ordersheet'!K985=\"\",\"\",'1. Ordersheet'!K985)","v":""},{"$f":"IF('1. Ordersheet'!L985=\"\",\"\",'1. Ordersheet'!L985)","v":""},{"$f":"IF('1. Ordersheet'!M985=\"\",\"\",'1. Ordersheet'!M985)","v":""},{"$f":"IF('1. Ordersheet'!N985=\"\",\"\",'1. Ordersheet'!N985)","v":""},{"$f":"IF('1. Ordersheet'!O985=\"\",\"\",'1. Ordersheet'!O985)","v":{"$error":"#N/A"}},{"$f":"IF('1. Ordersheet'!P985=\"\",\"\",'1. Ordersheet'!P985)","v":{"$error":"#N/A"}},{"$f":"IF('1. Ordersheet'!Q985=\"\",\"\",'1. Ordersheet'!Q985)","v":""},{"$f":"IF('1. Ordersheet'!R985=\"\",\"\",'1. Ordersheet'!R985)","v":""},{"$f":"IF('1. Ordersheet'!S985=\"\",\"\",'1. Ordersheet'!S985)","v":""},{"$f":"IF('1. Ordersheet'!V985=\"\",\"\",'1. Ordersheet'!V985)","v":""},{"$f":"IF('1. Ordersheet'!W985=\"\",\"\",'1. Ordersheet'!W985)","v":""},{"$f":"IF('1. Ordersheet'!X985=\"\",\"\",'1. Ordersheet'!X985)","v":""},{"$f":"IF('1. Ordersheet'!Y985=\"\",\"\",'1. Ordersheet'!Y985)","v":""},{"$f":"IF('1. Ordersheet'!Z985=\"\",\"\",'1. Ordersheet'!Z985)","v":""},{"$f":"IF('1. Ordersheet'!AA985=\"\",\"\",'1. Ordersheet'!AA985)","v":""},null,{"$f":"IF('1. Ordersheet'!AS985=\"\",\"\",'1. Ordersheet'!AS985)","v":""},{"$f":"IF('1. Ordersheet'!AT985=\"\",\"\",'1. Ordersheet'!AT985)","v":""},null,null,null,null,null,null,null,{"$f":"IF('1. Ordersheet'!AX985=\"\",\"\",'1. Ordersheet'!AX985)","v":""},{"$f":"IF('1. Ordersheet'!AY985=\"\",\"\",'1. Ordersheet'!AY985)","v":""},{"$f":"IF('1. Ordersheet'!AZ985=\"\",\"\",'1. Ordersheet'!AZ985)","v":""},{"$f":"IF('1. Ordersheet'!BA985=\"\",\"\",'1. Ordersheet'!BA985)","v":""},{"$f":"IF('1. Ordersheet'!BC985=\"\",\"\",'1. Ordersheet'!BC985)","v":""},{"$f":"IF('1. Ordersheet'!BD985=\"\",\"\",'1. Ordersheet'!BD985)","v":""},{"$f":"IF('1. Ordersheet'!BE985=\"\",\"\",'1. Ordersheet'!BE985)","v":""},{"$f":"IF('1. Ordersheet'!BF985=\"\",\"\",'1. Ordersheet'!BF985)","v":""},{"$f":"IF('1. Ordersheet'!BG985=\"\",\"\",'1. Ordersheet'!BG985)","v":"ZWO"},{"$f":"IF('1. Ordersheet'!BH985=\"\",\"\",'1. Ordersheet'!BH985)","v":""},{"$f":"IF('1. Ordersheet'!BI985=\"\",\"\",'1. Ordersheet'!BI985)","v":""},{"$f":"IF('1. Ordersheet'!BJ985=\"\",\"\",'1. Ordersheet'!BJ985)","v":""},{"$f":"IF('1. Ordersheet'!BK985=\"\",\"\",'1. Ordersheet'!BK985)","v":""},{"$f":"IF('1. Ordersheet'!BL985=\"\",\"\",'1. Ordersheet'!BL985)","v":""}]
[{"$f":"IF('1. Ordersheet'!F986=\"\",\"\",'1. Ordersheet'!F986)","v":""},{"$f":"IF('1. Ordersheet'!G986=\"\",\"\",'1. Ordersheet'!G986)","v":""},{"$f":"IF('1. Ordersheet'!H986=\"\",\"\",'1. Ordersheet'!H986)","v":""},{"$f":"IF('1. Ordersheet'!I986=\"\",\"\",'1. Ordersheet'!I986)","v":""},{"$f":"IF('1. Ordersheet'!J986=\"\",\"\",'1. Ordersheet'!J986)","v":""},{"$f":"IF('1. Ordersheet'!K986=\"\",\"\",'1. Ordersheet'!K986)","v":""},{"$f":"IF('1. Ordersheet'!L986=\"\",\"\",'1. Ordersheet'!L986)","v":""},{"$f":"IF('1. Ordersheet'!M986=\"\",\"\",'1. Ordersheet'!M986)","v":""},{"$f":"IF('1. Ordersheet'!N986=\"\",\"\",'1. Ordersheet'!N986)","v":""},{"$f":"IF('1. Ordersheet'!O986=\"\",\"\",'1. Ordersheet'!O986)","v":{"$error":"#N/A"}},{"$f":"IF('1. Ordersheet'!P986=\"\",\"\",'1. Ordersheet'!P986)","v":{"$error":"#N/A"}},{"$f":"IF('1. Ordersheet'!Q986=\"\",\"\",'1. Ordersheet'!Q986)","v":""},{"$f":"IF('1. Ordersheet'!R986=\"\",\"\",'1. Ordersheet'!R986)","v":""},{"$f":"IF('1. Ordersheet'!S986=\"\",\"\",'1. Ordersheet'!S986)","v":""},{"$f":"IF('1. Ordersheet'!V986=\"\",\"\",'1. Ordersheet'!V986)","v":""},{"$f":"IF('1. Ordersheet'!W986=\"\",\"\",'1. Ordersheet'!W986)","v":""},{"$f":"IF('1. Ordersheet'!X986=\"\",\"\",'1. Ordersheet'!X986)","v":""},{"$f":"IF('1. Ordersheet'!Y986=\"\",\"\",'1. Ordersheet'!Y986)","v":""},{"$f":"IF('1. Ordersheet'!Z986=\"\",\"\",'1. Ordersheet'!Z986)","v":""},{"$f":"IF('1. Ordersheet'!AA986=\"\",\"\",'1. Ordersheet'!AA986)","v":""},null,{"$f":"IF('1. Ordersheet'!AS986=\"\",\"\",'1. Ordersheet'!AS986)","v":""},{"$f":"IF('1. Ordersheet'!AT986=\"\",\"\",'1. Ordersheet'!AT986)","v":""},null,null,null,null,null,null,null,{"$f":"IF('1. Ordersheet'!AX986=\"\",\"\",'1. Ordersheet'!AX986)","v":""},{"$f":"IF('1. Ordersheet'!AY986=\"\",\"\",'1. Ordersheet'!AY986)","v":""},{"$f":"IF('1. Ordersheet'!AZ986=\"\",\"\",'1. Ordersheet'!AZ986)","v":""},{"$f":"IF('1. Ordersheet'!BA986=\"\",\"\",'1. Ordersheet'!BA986)","v":""},{"$f":"IF('1. Ordersheet'!BC986=\"\",\"\",'1. Ordersheet'!BC986)","v":""},{"$f":"IF('1. Ordersheet'!BD986=\"\",\"\",'1. Ordersheet'!BD986)","v":""},{"$f":"IF('1. Ordersheet'!BE986=\"\",\"\",'1. Ordersheet'!BE986)","v":""},{"$f":"IF('1. Ordersheet'!BF986=\"\",\"\",'1. Ordersheet'!BF986)","v":""},{"$f":"IF('1. Ordersheet'!BG986=\"\",\"\",'1. Ordersheet'!BG986)","v":"ZWO"},{"$f":"IF('1. Ordersheet'!BH986=\"\",\"\",'1. Ordersheet'!BH986)","v":""},{"$f":"IF('1. Ordersheet'!BI986=\"\",\"\",'1. Ordersheet'!BI986)","v":""},{"$f":"IF('1. Ordersheet'!BJ986=\"\",\"\",'1. Ordersheet'!BJ986)","v":""},{"$f":"IF('1. Ordersheet'!BK986=\"\",\"\",'1. Ordersheet'!BK986)","v":""},{"$f":"IF('1. Ordersheet'!BL986=\"\",\"\",'1. Ordersheet'!BL986)","v":""}]
[{"$f":"IF('1. Ordersheet'!F987=\"\",\"\",'1. Ordersheet'!F987)","v":""},{"$f":"IF('1. Ordersheet'!G987=\"\",\"\",'1. Ordersheet'!G987)","v":""},{"$f":"IF('1. Ordersheet'!H987=\"\",\"\",'1. Ordersheet'!H987)","v":""},{"$f":"IF('1. Ordersheet'!I987=\"\",\"\",'1. Ordersheet'!I987)","v":""},{"$f":"IF('1. Ordersheet'!J987=\"\",\"\",'1. Ordersheet'!J987)","v":""},{"$f":"IF('1. Ordersheet'!K987=\"\",\"\",'1. Ordersheet'!K987)","v":""},{"$f":"IF('1. Ordersheet'!L987=\"\",\"\",'1. Ordersheet'!L987)","v":""},{"$f":"IF('1. Ordersheet'!M987=\"\",\"\",'1. Ordersheet'!M987)","v":""},{"$f":"IF('1. Ordersheet'!N987=\"\",\"\",'1. Ordersheet'!N987)","v":""},{"$f":"IF('1. Ordersheet'!O987=\"\",\"\",'1. Ordersheet'!O987)","v":{"$error":"#N/A"}},{"$f":"IF('1. Ordersheet'!P987=\"\",\"\",'1. Ordersheet'!P987)","v":{"$error":"#N/A"}},{"$f":"IF('1. Ordersheet'!Q987=\"\",\"\",'1. Ordersheet'!Q987)","v":""},{"$f":"IF('1. Ordersheet'!R987=\"\",\"\",'1. Ordersheet'!R987)","v":""},{"$f":"IF('1. Ordersheet'!S987=\"\",\"\",'1. Ordersheet'!S987)","v":""},{"$f":"IF('1. Ordersheet'!V987=\"\",\"\",'1. Ordersheet'!V987)","v":""},{"$f":"IF('1. Ordersheet'!W987=\"\",\"\",'1. Ordersheet'!W987)","v":""},{"$f":"IF('1. Ordersheet'!X987=\"\",\"\",'1. Ordersheet'!X987)","v":""},{"$f":"IF('1. Ordersheet'!Y987=\"\",\"\",'1. Ordersheet'!Y987)","v":""},{"$f":"IF('1. Ordersheet'!Z987=\"\",\"\",'1. Ordersheet'!Z987)","v":""},{"$f":"IF('1. Ordersheet'!AA987=\"\",\"\",'1. Ordersheet'!AA987)","v":""},null,{"$f":"IF('1. Ordersheet'!AS987=\"\",\"\",'1. Ordersheet'!AS987)","v":""},{"$f":"IF('1. Ordersheet'!AT987=\"\",\"\",'1. Ordersheet'!AT987)","v":""},null,null,null,null,null,null,null,{"$f":"IF('1. Ordersheet'!AX987=\"\",\"\",'1. Ordersheet'!AX987)","v":""},{"$f":"IF('1. Ordersheet'!AY987=\"\",\"\",'1. Ordersheet'!AY987)","v":""},{"$f":"IF('1. Ordersheet'!AZ987=\"\",\"\",'1. Ordersheet'!AZ987)","v":""},{"$f":"IF('1. Ordersheet'!BA987=\"\",\"\",'1. Ordersheet'!BA987)","v":""},{"$f":"IF('1. Ordersheet'!BC987=\"\",\"\",'1. Ordersheet'!BC987)","v":""},{"$f":"IF('1. Ordersheet'!BD987=\"\",\"\",'1. Ordersheet'!BD987)","v":""},{"$f":"IF('1. Ordersheet'!BE987=\"\",\"\",'1. Ordersheet'!BE987)","v":""},{"$f":"IF('1. Ordersheet'!BF987=\"\",\"\",'1. Ordersheet'!BF987)","v":""},{"$f":"IF('1. Ordersheet'!BG987=\"\",\"\",'1. Ordersheet'!BG987)","v":"ZWO"},{"$f":"IF('1. Ordersheet'!BH987=\"\",\"\",'1. Ordersheet'!BH987)","v":""},{"$f":"IF('1. Ordersheet'!BI987=\"\",\"\",'1. Ordersheet'!BI987)","v":""},{"$f":"IF('1. Ordersheet'!BJ987=\"\",\"\",'1. Ordersheet'!BJ987)","v":""},{"$f":"IF('1. Ordersheet'!BK987=\"\",\"\",'1. Ordersheet'!BK987)","v":""},{"$f":"IF('1. Ordersheet'!BL987=\"\",\"\",'1. Ordersheet'!BL987)","v":""}]
[{"$f":"IF('1. Ordersheet'!F988=\"\",\"\",'1. Ordersheet'!F988)","v":""},{"$f":"IF('1. Ordersheet'!G988=\"\",\"\",'1. Ordersheet'!G988)","v":""},{"$f":"IF('1. Ordersheet'!H988=\"\",\"\",'1. Ordersheet'!H988)","v":""},{"$f":"IF('1. Ordersheet'!I988=\"\",\"\",'1. Ordersheet'!I988)","v":""},{"$f":"IF('1. Ordersheet'!J988=\"\",\"\",'1. Ordersheet'!J988)","v":""},{"$f":"IF('1. Ordersheet'!K988=\"\",\"\",'1. Ordersheet'!K988)","v":""},{"$f":"IF('1. Ordersheet'!L988=\"\",\"\",'1. Ordersheet'!L988)","v":""},{"$f":"IF('1. Ordersheet'!M988=\"\",\"\",'1. Ordersheet'!M988)","v":""},{"$f":"IF('1. Ordersheet'!N988=\"\",\"\",'1. Ordersheet'!N988)","v":""},{"$f":"IF('1. Ordersheet'!O988=\"\",\"\",'1. Ordersheet'!O988)","v":{"$error":"#N/A"}},{"$f":"IF('1. Ordersheet'!P988=\"\",\"\",'1. Ordersheet'!P988)","v":{"$error":"#N/A"}},{"$f":"IF('1. Ordersheet'!Q988=\"\",\"\",'1. Ordersheet'!Q988)","v":""},{"$f":"IF('1. Ordersheet'!R988=\"\",\"\",'1. Ordersheet'!R988)","v":""},{"$f":"IF('1. Ordersheet'!S988=\"\",\"\",'1. Ordersheet'!S988)","v":""},{"$f":"IF('1. Ordersheet'!V988=\"\",\"\",'1. Ordersheet'!V988)","v":""},{"$f":"IF('1. Ordersheet'!W988=\"\",\"\",'1. Ordersheet'!W988)","v":""},{"$f":"IF('1. Ordersheet'!X988=\"\",\"\",'1. Ordersheet'!X988)","v":""},{"$f":"IF('1. Ordersheet'!Y988=\"\",\"\",'1. Ordersheet'!Y988)","v":""},{"$f":"IF('1. Ordersheet'!Z988=\"\",\"\",'1. Ordersheet'!Z988)","v":""},{"$f":"IF('1. Ordersheet'!AA988=\"\",\"\",'1. Ordersheet'!AA988)","v":""},null,{"$f":"IF('1. Ordersheet'!AS988=\"\",\"\",'1. Ordersheet'!AS988)","v":""},{"$f":"IF('1. Ordersheet'!AT988=\"\",\"\",'1. Ordersheet'!AT988)","v":""},null,null,null,null,null,null,null,{"$f":"IF('1. Ordersheet'!AX988=\"\",\"\",'1. Ordersheet'!AX988)","v":""},{"$f":"IF('1. Ordersheet'!AY988=\"\",\"\",'1. Ordersheet'!AY988)","v":""},{"$f":"IF('1. Ordersheet'!AZ988=\"\",\"\",'1. Ordersheet'!AZ988)","v":""},{"$f":"IF('1. Ordersheet'!BA988=\"\",\"\",'1. Ordersheet'!BA988)","v":""},{"$f":"IF('1. Ordersheet'!BC988=\"\",\"\",'1. Ordersheet'!BC988)","v":""},{"$f":"IF('1. Ordersheet'!BD988=\"\",\"\",'1. Ordersheet'!BD988)","v":""},{"$f":"IF('1. Ordersheet'!BE988=\"\",\"\",'1. Ordersheet'!BE988)","v":""},{"$f":"IF('1. Ordersheet'!BF988=\"\",\"\",'1. Ordersheet'!BF988)","v":""},{"$f":"IF('1. Ordersheet'!BG988=\"\",\"\",'1. Ordersheet'!BG988)","v":"ZWO"},{"$f":"IF('1. Ordersheet'!BH988=\"\",\"\",'1. Ordersheet'!BH988)","v":""},{"$f":"IF('1. Ordersheet'!BI988=\"\",\"\",'1. Ordersheet'!BI988)","v":""},{"$f":"IF('1. Ordersheet'!BJ988=\"\",\"\",'1. Ordersheet'!BJ988)","v":""},{"$f":"IF('1. Ordersheet'!BK988=\"\",\"\",'1. Ordersheet'!BK988)","v":""},{"$f":"IF('1. Ordersheet'!BL988=\"\",\"\",'1. Ordersheet'!BL988)","v":""}]
[{"$f":"IF('1. Ordersheet'!F989=\"\",\"\",'1. Ordersheet'!F989)","v":""},{"$f":"IF('1. Ordersheet'!G989=\"\",\"\",'1. Ordersheet'!G989)","v":""},{"$f":"IF('1. Ordersheet'!H989=\"\",\"\",'1. Ordersheet'!H989)","v":""},{"$f":"IF('1. Ordersheet'!I989=\"\",\"\",'1. Ordersheet'!I989)","v":""},{"$f":"IF('1. Ordersheet'!J989=\"\",\"\",'1. Ordersheet'!J989)","v":""},{"$f":"IF('1. Ordersheet'!K989=\"\",\"\",'1. Ordersheet'!K989)","v":""},{"$f":"IF('1. Ordersheet'!L989=\"\",\"\",'1. Ordersheet'!L989)","v":""},{"$f":"IF('1. Ordersheet'!M989=\"\",\"\",'1. Ordersheet'!M989)","v":""},{"$f":"IF('1. Ordersheet'!N989=\"\",\"\",'1. Ordersheet'!N989)","v":""},{"$f":"IF('1. Ordersheet'!O989=\"\",\"\",'1. Ordersheet'!O989)","v":{"$error":"#N/A"}},{"$f":"IF('1. Ordersheet'!P989=\"\",\"\",'1. Ordersheet'!P989)","v":{"$error":"#N/A"}},{"$f":"IF('1. Ordersheet'!Q989=\"\",\"\",'1. Ordersheet'!Q989)","v":""},{"$f":"IF('1. Ordersheet'!R989=\"\",\"\",'1. Ordersheet'!R989)","v":""},{"$f":"IF('1. Ordersheet'!S989=\"\",\"\",'1. Ordersheet'!S989)","v":""},{"$f":"IF('1. Ordersheet'!V989=\"\",\"\",'1. Ordersheet'!V989)","v":""},{"$f":"IF('1. Ordersheet'!W989=\"\",\"\",'1. Ordersheet'!W989)","v":""},{"$f":"IF('1. Ordersheet'!X989=\"\",\"\",'1. Ordersheet'!X989)","v":""},{"$f":"IF('1. Ordersheet'!Y989=\"\",\"\",'1. Ordersheet'!Y989)","v":""},{"$f":"IF('1. Ordersheet'!Z989=\"\",\"\",'1. Ordersheet'!Z989)","v":""},{"$f":"IF('1. Ordersheet'!AA989=\"\",\"\",'1. Ordersheet'!AA989)","v":""},null,{"$f":"IF('1. Ordersheet'!AS989=\"\",\"\",'1. Ordersheet'!AS989)","v":""},{"$f":"IF('1. Ordersheet'!AT989=\"\",\"\",'1. Ordersheet'!AT989)","v":""},null,null,null,null,null,null,null,{"$f":"IF('1. Ordersheet'!AX989=\"\",\"\",'1. Ordersheet'!AX989)","v":""},{"$f":"IF('1. Ordersheet'!AY989=\"\",\"\",'1. Ordersheet'!AY989)","v":""},{"$f":"IF('1. Ordersheet'!AZ989=\"\",\"\",'1. Ordersheet'!AZ989)","v":""},{"$f":"IF('1. Ordersheet'!BA989=\"\",\"\",'1. Ordersheet'!BA989)","v":""},{"$f":"IF('1. Ordersheet'!BC989=\"\",\"\",'1. Ordersheet'!BC989)","v":""},{"$f":"IF('1. Ordersheet'!BD989=\"\",\"\",'1. Ordersheet'!BD989)","v":""},{"$f":"IF('1. Ordersheet'!BE989=\"\",\"\",'1. Ordersheet'!BE989)","v":""},{"$f":"IF('1. Ordersheet'!BF989=\"\",\"\",'1. Ordersheet'!BF989)","v":""},{"$f":"IF('1. Ordersheet'!BG989=\"\",\"\",'1. Ordersheet'!BG989)","v":"ZWO"},{"$f":"IF('1. Ordersheet'!BH989=\"\",\"\",'1. Ordersheet'!BH989)","v":""},{"$f":"IF('1. Ordersheet'!BI989=\"\",\"\",'1. Ordersheet'!BI989)","v":""},{"$f":"IF('1. Ordersheet'!BJ989=\"\",\"\",'1. Ordersheet'!BJ989)","v":""},{"$f":"IF('1. Ordersheet'!BK989=\"\",\"\",'1. Ordersheet'!BK989)","v":""},{"$f":"IF('1. Ordersheet'!BL989=\"\",\"\",'1. Ordersheet'!BL989)","v":""}]
[{"$f":"IF('1. Ordersheet'!F990=\"\",\"\",'1. Ordersheet'!F990)","v":""},{"$f":"IF('1. Ordersheet'!G990=\"\",\"\",'1. Ordersheet'!G990)","v":""},{"$f":"IF('1. Ordersheet'!H990=\"\",\"\",'1. Ordersheet'!H990)","v":""},{"$f":"IF('1. Ordersheet'!I990=\"\",\"\",'1. Ordersheet'!I990)","v":""},{"$f":"IF('1. Ordersheet'!J990=\"\",\"\",'1. Ordersheet'!J990)","v":""},{"$f":"IF('1. Ordersheet'!K990=\"\",\"\",'1. Ordersheet'!K990)","v":""},{"$f":"IF('1. Ordersheet'!L990=\"\",\"\",'1. Ordersheet'!L990)","v":""},{"$f":"IF('1. Ordersheet'!M990=\"\",\"\",'1. Ordersheet'!M990)","v":""},{"$f":"IF('1. Ordersheet'!N990=\"\",\"\",'1. Ordersheet'!N990)","v":""},{"$f":"IF('1. Ordersheet'!O990=\"\",\"\",'1. Ordersheet'!O990)","v":{"$error":"#N/A"}},{"$f":"IF('1. Ordersheet'!P990=\"\",\"\",'1. Ordersheet'!P990)","v":{"$error":"#N/A"}},{"$f":"IF('1. Ordersheet'!Q990=\"\",\"\",'1. Ordersheet'!Q990)","v":""},{"$f":"IF('1. Ordersheet'!R990=\"\",\"\",'1. Ordersheet'!R990)","v":""},{"$f":"IF('1. Ordersheet'!S990=\"\",\"\",'1. Ordersheet'!S990)","v":""},{"$f":"IF('1. Ordersheet'!V990=\"\",\"\",'1. Ordersheet'!V990)","v":""},{"$f":"IF('1. Ordersheet'!W990=\"\",\"\",'1. Ordersheet'!W990)","v":""},{"$f":"IF('1. Ordersheet'!X990=\"\",\"\",'1. Ordersheet'!X990)","v":""},{"$f":"IF('1. Ordersheet'!Y990=\"\",\"\",'1. Ordersheet'!Y990)","v":""},{"$f":"IF('1. Ordersheet'!Z990=\"\",\"\",'1. Ordersheet'!Z990)","v":""},{"$f":"IF('1. Ordersheet'!AA990=\"\",\"\",'1. Ordersheet'!AA990)","v":""},null,{"$f":"IF('1. Ordersheet'!AS990=\"\",\"\",'1. Ordersheet'!AS990)","v":""},{"$f":"IF('1. Ordersheet'!AT990=\"\",\"\",'1. Ordersheet'!AT990)","v":""},null,null,null,null,null,null,null,{"$f":"IF('1. Ordersheet'!AX990=\"\",\"\",'1. Ordersheet'!AX990)","v":""},{"$f":"IF('1. Ordersheet'!AY990=\"\",\"\",'1. Ordersheet'!AY990)","v":""},{"$f":"IF('1. Ordersheet'!AZ990=\"\",\"\",'1. Ordersheet'!AZ990)","v":""},{"$f":"IF('1. Ordersheet'!BA990=\"\",\"\",'1. Ordersheet'!BA990)","v":""},{"$f":"IF('1. Ordersheet'!BC990=\"\",\"\",'1. Ordersheet'!BC990)","v":""},{"$f":"IF('1. Ordersheet'!BD990=\"\",\"\",'1. Ordersheet'!BD990)","v":""},{"$f":"IF('1. Ordersheet'!BE990=\"\",\"\",'1. Ordersheet'!BE990)","v":""},{"$f":"IF('1. Ordersheet'!BF990=\"\",\"\",'1. Ordersheet'!BF990)","v":""},{"$f":"IF('1. Ordersheet'!BG990=\"\",\"\",'1. Ordersheet'!BG990)","v":"ZWO"},{"$f":"IF('1. Ordersheet'!BH990=\"\",\"\",'1. Ordersheet'!BH990)","v":""},{"$f":"IF('1. Ordersheet'!BI990=\"\",\"\",'1. Ordersheet'!BI990)","v":""},{"$f":"IF('1. Ordersheet'!BJ990=\"\",\"\",'1. Ordersheet'!BJ990)","v":""},{"$f":"IF('1. Ordersheet'!BK990=\"\",\"\",'1. Ordersheet'!BK990)","v":""},{"$f":"IF('1. Ordersheet'!BL990=\"\",\"\",'1. Ordersheet'!BL990)","v":""}]
[{"$f":"IF('1. Ordersheet'!F991=\"\",\"\",'1. Ordersheet'!F991)","v":""},{"$f":"IF('1. Ordersheet'!G991=\"\",\"\",'1. Ordersheet'!G991)","v":""},{"$f":"IF('1. Ordersheet'!H991=\"\",\"\",'1. Ordersheet'!H991)","v":""},{"$f":"IF('1. Ordersheet'!I991=\"\",\"\",'1. Ordersheet'!I991)","v":""},{"$f":"IF('1. Ordersheet'!J991=\"\",\"\",'1. Ordersheet'!J991)","v":""},{"$f":"IF('1. Ordersheet'!K991=\"\",\"\",'1. Ordersheet'!K991)","v":""},{"$f":"IF('1. Ordersheet'!L991=\"\",\"\",'1. Ordersheet'!L991)","v":""},{"$f":"IF('1. Ordersheet'!M991=\"\",\"\",'1. Ordersheet'!M991)","v":""},{"$f":"IF('1. Ordersheet'!N991=\"\",\"\",'1. Ordersheet'!N991)","v":""},{"$f":"IF('1. Ordersheet'!O991=\"\",\"\",'1. Ordersheet'!O991)","v":{"$error":"#N/A"}},{"$f":"IF('1. Ordersheet'!P991=\"\",\"\",'1. Ordersheet'!P991)","v":{"$error":"#N/A"}},{"$f":"IF('1. Ordersheet'!Q991=\"\",\"\",'1. Ordersheet'!Q991)","v":""},{"$f":"IF('1. Ordersheet'!R991=\"\",\"\",'1. Ordersheet'!R991)","v":""},{"$f":"IF('1. Ordersheet'!S991=\"\",\"\",'1. Ordersheet'!S991)","v":""},{"$f":"IF('1. Ordersheet'!V991=\"\",\"\",'1. Ordersheet'!V991)","v":""},{"$f":"IF('1. Ordersheet'!W991=\"\",\"\",'1. Ordersheet'!W991)","v":""},{"$f":"IF('1. Ordersheet'!X991=\"\",\"\",'1. Ordersheet'!X991)","v":""},{"$f":"IF('1. Ordersheet'!Y991=\"\",\"\",'1. Ordersheet'!Y991)","v":""},{"$f":"IF('1. Ordersheet'!Z991=\"\",\"\",'1. Ordersheet'!Z991)","v":""},{"$f":"IF('1. Ordersheet'!AA991=\"\",\"\",'1. Ordersheet'!AA991)","v":""},null,{"$f":"IF('1. Ordersheet'!AS991=\"\",\"\",'1. Ordersheet'!AS991)","v":""},{"$f":"IF('1. Ordersheet'!AT991=\"\",\"\",'1. Ordersheet'!AT991)","v":""},null,null,null,null,null,null,null,{"$f":"IF('1. Ordersheet'!AX991=\"\",\"\",'1. Ordersheet'!AX991)","v":""},{"$f":"IF('1. Ordersheet'!AY991=\"\",\"\",'1. Ordersheet'!AY991)","v":""},{"$f":"IF('1. Ordersheet'!AZ991=\"\",\"\",'1. Ordersheet'!AZ991)","v":""},{"$f":"IF('1. Ordersheet'!BA991=\"\",\"\",'1. Ordersheet'!BA991)","v":""},{"$f":"IF('1. Ordersheet'!BC991=\"\",\"\",'1. Ordersheet'!BC991)","v":""},{"$f":"IF('1. Ordersheet'!BD991=\"\",\"\",'1. Ordersheet'!BD991)","v":""},{"$f":"IF('1. Ordersheet'!BE991=\"\",\"\",'1. Ordersheet'!BE991)","v":""},{"$f":"IF('1. Ordersheet'!BF991=\"\",\"\",'1. Ordersheet'!BF991)","v":""},{"$f":"IF('1. Ordersheet'!BG991=\"\",\"\",'1. Ordersheet'!BG991)","v":"ZWO"},{"$f":"IF('1. Ordersheet'!BH991=\"\",\"\",'1. Ordersheet'!BH991)","v":""},{"$f":"IF('1. Ordersheet'!BI991=\"\",\"\",'1. Ordersheet'!BI991)","v":""},{"$f":"IF('1. Ordersheet'!BJ991=\"\",\"\",'1. Ordersheet'!BJ991)","v":""},{"$f":"IF('1. Ordersheet'!BK991=\"\",\"\",'1. Ordersheet'!BK991)","v":""},{"$f":"IF('1. Ordersheet'!BL991=\"\",\"\",'1. Ordersheet'!BL991)","v":""}]
[{"$f":"IF('1. Ordersheet'!F992=\"\",\"\",'1. Ordersheet'!F992)","v":""},{"$f":"IF('1. Ordersheet'!G992=\"\",\"\",'1. Ordersheet'!G992)","v":""},{"$f":"IF('1. Ordersheet'!H992=\"\",\"\",'1. Ordersheet'!H992)","v":""},{"$f":"IF('1. Ordersheet'!I992=\"\",\"\",'1. Ordersheet'!I992)","v":""},{"$f":"IF('1. Ordersheet'!J992=\"\",\"\",'1. Ordersheet'!J992)","v":""},{"$f":"IF('1. Ordersheet'!K992=\"\",\"\",'1. Ordersheet'!K992)","v":""},{"$f":"IF('1. Ordersheet'!L992=\"\",\"\",'1. Ordersheet'!L992)","v":""},{"$f":"IF('1. Ordersheet'!M992=\"\",\"\",'1. Ordersheet'!M992)","v":""},{"$f":"IF('1. Ordersheet'!N992=\"\",\"\",'1. Ordersheet'!N992)","v":""},{"$f":"IF('1. Ordersheet'!O992=\"\",\"\",'1. Ordersheet'!O992)","v":{"$error":"#N/A"}},{"$f":"IF('1. Ordersheet'!P992=\"\",\"\",'1. Ordersheet'!P992)","v":{"$error":"#N/A"}},{"$f":"IF('1. Ordersheet'!Q992=\"\",\"\",'1. Ordersheet'!Q992)","v":""},{"$f":"IF('1. Ordersheet'!R992=\"\",\"\",'1. Ordersheet'!R992)","v":""},{"$f":"IF('1. Ordersheet'!S992=\"\",\"\",'1. Ordersheet'!S992)","v":""},{"$f":"IF('1. Ordersheet'!V992=\"\",\"\",'1. Ordersheet'!V992)","v":""},{"$f":"IF('1. Ordersheet'!W992=\"\",\"\",'1. Ordersheet'!W992)","v":""},{"$f":"IF('1. Ordersheet'!X992=\"\",\"\",'1. Ordersheet'!X992)","v":""},{"$f":"IF('1. Ordersheet'!Y992=\"\",\"\",'1. Ordersheet'!Y992)","v":""},{"$f":"IF('1. Ordersheet'!Z992=\"\",\"\",'1. Ordersheet'!Z992)","v":""},{"$f":"IF('1. Ordersheet'!AA992=\"\",\"\",'1. Ordersheet'!AA992)","v":""},null,{"$f":"IF('1. Ordersheet'!AS992=\"\",\"\",'1. Ordersheet'!AS992)","v":""},{"$f":"IF('1. Ordersheet'!AT992=\"\",\"\",'1. Ordersheet'!AT992)","v":""},null,null,null,null,null,null,null,{"$f":"IF('1. Ordersheet'!AX992=\"\",\"\",'1. Ordersheet'!AX992)","v":""},{"$f":"IF('1. Ordersheet'!AY992=\"\",\"\",'1. Ordersheet'!AY992)","v":""},{"$f":"IF('1. Ordersheet'!AZ992=\"\",\"\",'1. Ordersheet'!AZ992)","v":""},{"$f":"IF('1. Ordersheet'!BA992=\"\",\"\",'1. Ordersheet'!BA992)","v":""},{"$f":"IF('1. Ordersheet'!BC992=\"\",\"\",'1. Ordersheet'!BC992)","v":""},{"$f":"IF('1. Ordersheet'!BD992=\"\",\"\",'1. Ordersheet'!BD992)","v":""},{"$f":"IF('1. Ordersheet'!BE992=\"\",\"\",'1. Ordersheet'!BE992)","v":""},{"$f":"IF('1. Ordersheet'!BF992=\"\",\"\",'1. Ordersheet'!BF992)","v":""},{"$f":"IF('1. Ordersheet'!BG992=\"\",\"\",'1. Ordersheet'!BG992)","v":"ZWO"},{"$f":"IF('1. Ordersheet'!BH992=\"\",\"\",'1. Ordersheet'!BH992)","v":""},{"$f":"IF('1. Ordersheet'!BI992=\"\",\"\",'1. Ordersheet'!BI992)","v":""},{"$f":"IF('1. Ordersheet'!BJ992=\"\",\"\",'1. Ordersheet'!BJ992)","v":""},{"$f":"IF('1. Ordersheet'!BK992=\"\",\"\",'1. Ordersheet'!BK992)","v":""},{"$f":"IF('1. Ordersheet'!BL992=\"\",\"\",'1. Ordersheet'!BL992)","v":""}]
[{"$f":"IF('1. Ordersheet'!F993=\"\",\"\",'1. Ordersheet'!F993)","v":""},{"$f":"IF('1. Ordersheet'!G993=\"\",\"\",'1. Ordersheet'!G993)","v":""},{"$f":"IF('1. Ordersheet'!H993=\"\",\"\",'1. Ordersheet'!H993)","v":""},{"$f":"IF('1. Ordersheet'!I993=\"\",\"\",'1. Ordersheet'!I993)","v":""},{"$f":"IF('1. Ordersheet'!J993=\"\",\"\",'1. Ordersheet'!J993)","v":""},{"$f":"IF('1. Ordersheet'!K993=\"\",\"\",'1. Ordersheet'!K993)","v":""},{"$f":"IF('1. Ordersheet'!L993=\"\",\"\",'1. Ordersheet'!L993)","v":""},{"$f":"IF('1. Ordersheet'!M993=\"\",\"\",'1. Ordersheet'!M993)","v":""},{"$f":"IF('1. Ordersheet'!N993=\"\",\"\",'1. Ordersheet'!N993)","v":""},{"$f":"IF('1. Ordersheet'!O993=\"\",\"\",'1. Ordersheet'!O993)","v":{"$error":"#N/A"}},{"$f":"IF('1. Ordersheet'!P993=\"\",\"\",'1. Ordersheet'!P993)","v":{"$error":"#N/A"}},{"$f":"IF('1. Ordersheet'!Q993=\"\",\"\",'1. Ordersheet'!Q993)","v":""},{"$f":"IF('1. Ordersheet'!R993=\"\",\"\",'1. Ordersheet'!R993)","v":""},{"$f":"IF('1. Ordersheet'!S993=\"\",\"\",'1. Ordersheet'!S993)","v":""},{"$f":"IF('1. Ordersheet'!V993=\"\",\"\",'1. Ordersheet'!V993)","v":""},{"$f":"IF('1. Ordersheet'!W993=\"\",\"\",'1. Ordersheet'!W993)","v":""},{"$f":"IF('1. Ordersheet'!X993=\"\",\"\",'1. Ordersheet'!X993)","v":""},{"$f":"IF('1. Ordersheet'!Y993=\"\",\"\",'1. Ordersheet'!Y993)","v":""},{"$f":"IF('1. Ordersheet'!Z993=\"\",\"\",'1. Ordersheet'!Z993)","v":""},{"$f":"IF('1. Ordersheet'!AA993=\"\",\"\",'1. Ordersheet'!AA993)","v":""},null,{"$f":"IF('1. Ordersheet'!AS993=\"\",\"\",'1. Ordersheet'!AS993)","v":""},{"$f":"IF('1. Ordersheet'!AT993=\"\",\"\",'1. Ordersheet'!AT993)","v":""},null,null,null,null,null,null,null,{"$f":"IF('1. Ordersheet'!AX993=\"\",\"\",'1. Ordersheet'!AX993)","v":""},{"$f":"IF('1. Ordersheet'!AY993=\"\",\"\",'1. Ordersheet'!AY993)","v":""},{"$f":"IF('1. Ordersheet'!AZ993=\"\",\"\",'1. Ordersheet'!AZ993)","v":""},{"$f":"IF('1. Ordersheet'!BA993=\"\",\"\",'1. Ordersheet'!BA993)","v":""},{"$f":"IF('1. Ordersheet'!BC993=\"\",\"\",'1. Ordersheet'!BC993)","v":""},{"$f":"IF('1. Ordersheet'!BD993=\"\",\"\",'1. Ordersheet'!BD993)","v":""},{"$f":"IF('1. Ordersheet'!BE993=\"\",\"\",'1. Ordersheet'!BE993)","v":""},{"$f":"IF('1. Ordersheet'!BF993=\"\",\"\",'1. Ordersheet'!BF993)","v":""},{"$f":"IF('1. Ordersheet'!BG993=\"\",\"\",'1. Ordersheet'!BG993)","v":"ZWO"},{"$f":"IF('1. Ordersheet'!BH993=\"\",\"\",'1. Ordersheet'!BH993)","v":""},{"$f":"IF('1. Ordersheet'!BI993=\"\",\"\",'1. Ordersheet'!BI993)","v":""},{"$f":"IF('1. Ordersheet'!BJ993=\"\",\"\",'1. Ordersheet'!BJ993)","v":""},{"$f":"IF('1. Ordersheet'!BK993=\"\",\"\",'1. Ordersheet'!BK993)","v":""},{"$f":"IF('1. Ordersheet'!BL993=\"\",\"\",'1. Ordersheet'!BL993)","v":""}]
[{"$f":"IF('1. Ordersheet'!F994=\"\",\"\",'1. Ordersheet'!F994)","v":""},{"$f":"IF('1. Ordersheet'!G994=\"\",\"\",'1. Ordersheet'!G994)","v":""},{"$f":"IF('1. Ordersheet'!H994=\"\",\"\",'1. Ordersheet'!H994)","v":""},{"$f":"IF('1. Ordersheet'!I994=\"\",\"\",'1. Ordersheet'!I994)","v":""},{"$f":"IF('1. Ordersheet'!J994=\"\",\"\",'1. Ordersheet'!J994)","v":""},{"$f":"IF('1. Ordersheet'!K994=\"\",\"\",'1. Ordersheet'!K994)","v":""},{"$f":"IF('1. Ordersheet'!L994=\"\",\"\",'1. Ordersheet'!L994)","v":""},{"$f":"IF('1. Ordersheet'!M994=\"\",\"\",'1. Ordersheet'!M994)","v":""},{"$f":"IF('1. Ordersheet'!N994=\"\",\"\",'1. Ordersheet'!N994)","v":""},{"$f":"IF('1. Ordersheet'!O994=\"\",\"\",'1. Ordersheet'!O994)","v":{"$error":"#N/A"}},{"$f":"IF('1. Ordersheet'!P994=\"\",\"\",'1. Ordersheet'!P994)","v":{"$error":"#N/A"}},{"$f":"IF('1. Ordersheet'!Q994=\"\",\"\",'1. Ordersheet'!Q994)","v":""},{"$f":"IF('1. Ordersheet'!R994=\"\",\"\",'1. Ordersheet'!R994)","v":""},{"$f":"IF('1. Ordersheet'!S994=\"\",\"\",'1. Ordersheet'!S994)","v":""},{"$f":"IF('1. Ordersheet'!V994=\"\",\"\",'1. Ordersheet'!V994)","v":""},{"$f":"IF('1. Ordersheet'!W994=\"\",\"\",'1. Ordersheet'!W994)","v":""},{"$f":"IF('1. Ordersheet'!X994=\"\",\"\",'1. Ordersheet'!X994)","v":""},{"$f":"IF('1. Ordersheet'!Y994=\"\",\"\",'1. Ordersheet'!Y994)","v":""},{"$f":"IF('1. Ordersheet'!Z994=\"\",\"\",'1. Ordersheet'!Z994)","v":""},{"$f":"IF('1. Ordersheet'!AA994=\"\",\"\",'1. Ordersheet'!AA994)","v":""},null,{"$f":"IF('1. Ordersheet'!AS994=\"\",\"\",'1. Ordersheet'!AS994)","v":""},{"$f":"IF('1. Ordersheet'!AT994=\"\",\"\",'1. Ordersheet'!AT994)","v":""},null,null,null,null,null,null,null,{"$f":"IF('1. Ordersheet'!AX994=\"\",\"\",'1. Ordersheet'!AX994)","v":""},{"$f":"IF('1. Ordersheet'!AY994=\"\",\"\",'1. Ordersheet'!AY994)","v":""},{"$f":"IF('1. Ordersheet'!AZ994=\"\",\"\",'1. Ordersheet'!AZ994)","v":""},{"$f":"IF('1. Ordersheet'!BA994=\"\",\"\",'1. Ordersheet'!BA994)","v":""},{"$f":"IF('1. Ordersheet'!BC994=\"\",\"\",'1. Ordersheet'!BC994)","v":""},{"$f":"IF('1. Ordersheet'!BD994=\"\",\"\",'1. Ordersheet'!BD994)","v":""},{"$f":"IF('1. Ordersheet'!BE994=\"\",\"\",'1. Ordersheet'!BE994)","v":""},{"$f":"IF('1. Ordersheet'!BF994=\"\",\"\",'1. Ordersheet'!BF994)","v":""},{"$f":"IF('1. Ordersheet'!BG994=\"\",\"\",'1. Ordersheet'!BG994)","v":"ZWO"},{"$f":"IF('1. Ordersheet'!BH994=\"\",\"\",'1. Ordersheet'!BH994)","v":""},{"$f":"IF('1. Ordersheet'!BI994=\"\",\"\",'1. Ordersheet'!BI994)","v":""},{"$f":"IF('1. Ordersheet'!BJ994=\"\",\"\",'1. Ordersheet'!BJ994)","v":""},{"$f":"IF('1. Ordersheet'!BK994=\"\",\"\",'1. Ordersheet'!BK994)","v":""},{"$f":"IF('1. Ordersheet'!BL994=\"\",\"\",'1. Ordersheet'!BL994)","v":""}]
[{"$f":"IF('1. Ordersheet'!F995=\"\",\"\",'1. Ordersheet'!F995)","v":""},{"$f":"IF('1. Ordersheet'!G995=\"\",\"\",'1. Ordersheet'!G995)","v":""},{"$f":"IF('1. Ordersheet'!H995=\"\",\"\",'1. Ordersheet'!H995)","v":""},{"$f":"IF('1. Ordersheet'!I995=\"\",\"\",'1. Ordersheet'!I995)","v":""},{"$f":"IF('1. Ordersheet'!J995=\"\",\"\",'1. Ordersheet'!J995)","v":""},{"$f":"IF('1. Ordersheet'!K995=\"\",\"\",'1. Ordersheet'!K995)","v":""},{"$f":"IF('1. Ordersheet'!L995=\"\",\"\",'1. Ordersheet'!L995)","v":""},{"$f":"IF('1. Ordersheet'!M995=\"\",\"\",'1. Ordersheet'!M995)","v":""},{"$f":"IF('1. Ordersheet'!N995=\"\",\"\",'1. Ordersheet'!N995)","v":""},{"$f":"IF('1. Ordersheet'!O995=\"\",\"\",'1. Ordersheet'!O995)","v":{"$error":"#N/A"}},{"$f":"IF('1. Ordersheet'!P995=\"\",\"\",'1. Ordersheet'!P995)","v":{"$error":"#N/A"}},{"$f":"IF('1. Ordersheet'!Q995=\"\",\"\",'1. Ordersheet'!Q995)","v":""},{"$f":"IF('1. Ordersheet'!R995=\"\",\"\",'1. Ordersheet'!R995)","v":""},{"$f":"IF('1. Ordersheet'!S995=\"\",\"\",'1. Ordersheet'!S995)","v":""},{"$f":"IF('1. Ordersheet'!V995=\"\",\"\",'1. Ordersheet'!V995)","v":""},{"$f":"IF('1. Ordersheet'!W995=\"\",\"\",'1. Ordersheet'!W995)","v":""},{"$f":"IF('1. Ordersheet'!X995=\"\",\"\",'1. Ordersheet'!X995)","v":""},{"$f":"IF('1. Ordersheet'!Y995=\"\",\"\",'1. Ordersheet'!Y995)","v":""},{"$f":"IF('1. Ordersheet'!Z995=\"\",\"\",'1. Ordersheet'!Z995)","v":""},{"$f":"IF('1. Ordersheet'!AA995=\"\",\"\",'1. Ordersheet'!AA995)","v":""},null,{"$f":"IF('1. Ordersheet'!AS995=\"\",\"\",'1. Ordersheet'!AS995)","v":""},{"$f":"IF('1. Ordersheet'!AT995=\"\",\"\",'1. Ordersheet'!AT995)","v":""},null,null,null,null,null,null,null,{"$f":"IF('1. Ordersheet'!AX995=\"\",\"\",'1. Ordersheet'!AX995)","v":""},{"$f":"IF('1. Ordersheet'!AY995=\"\",\"\",'1. Ordersheet'!AY995)","v":""},{"$f":"IF('1. Ordersheet'!AZ995=\"\",\"\",'1. Ordersheet'!AZ995)","v":""},{"$f":"IF('1. Ordersheet'!BA995=\"\",\"\",'1. Ordersheet'!BA995)","v":""},{"$f":"IF('1. Ordersheet'!BC995=\"\",\"\",'1. Ordersheet'!BC995)","v":""},{"$f":"IF('1. Ordersheet'!BD995=\"\",\"\",'1. Ordersheet'!BD995)","v":""},{"$f":"IF('1. Ordersheet'!BE995=\"\",\"\",'1. Ordersheet'!BE995)","v":""},{"$f":"IF('1. Ordersheet'!BF995=\"\",\"\",'1. Ordersheet'!BF995)","v":""},{"$f":"IF('1. Ordersheet'!BG995=\"\",\"\",'1. Ordersheet'!BG995)","v":"ZWO"},{"$f":"IF('1. Ordersheet'!BH995=\"\",\"\",'1. Ordersheet'!BH995)","v":""},{"$f":"IF('1. Ordersheet'!BI995=\"\",\"\",'1. Ordersheet'!BI995)","v":""},{"$f":"IF('1. Ordersheet'!BJ995=\"\",\"\",'1. Ordersheet'!BJ995)","v":""},{"$f":"IF('1. Ordersheet'!BK995=\"\",\"\",'1. Ordersheet'!BK995)","v":""},{"$f":"IF('1. Ordersheet'!BL995=\"\",\"\",'1. Ordersheet'!BL995)","v":""}]
[{"$f":"IF('1. Ordersheet'!F996=\"\",\"\",'1. Ordersheet'!F996)","v":""},{"$f":"IF('1. Ordersheet'!G996=\"\",\"\",'1. Ordersheet'!G996)","v":""},{"$f":"IF('1. Ordersheet'!H996=\"\",\"\",'1. Ordersheet'!H996)","v":""},{"$f":"IF('1. Ordersheet'!I996=\"\",\"\",'1. Ordersheet'!I996)","v":""},{"$f":"IF('1. Ordersheet'!J996=\"\",\"\",'1. Ordersheet'!J996)","v":""},{"$f":"IF('1. Ordersheet'!K996=\"\",\"\",'1. Ordersheet'!K996)","v":""},{"$f":"IF('1. Ordersheet'!L996=\"\",\"\",'1. Ordersheet'!L996)","v":""},{"$f":"IF('1. Ordersheet'!M996=\"\",\"\",'1. Ordersheet'!M996)","v":""},{"$f":"IF('1. Ordersheet'!N996=\"\",\"\",'1. Ordersheet'!N996)","v":""},{"$f":"IF('1. Ordersheet'!O996=\"\",\"\",'1. Ordersheet'!O996)","v":{"$error":"#N/A"}},{"$f":"IF('1. Ordersheet'!P996=\"\",\"\",'1. Ordersheet'!P996)","v":{"$error":"#N/A"}},{"$f":"IF('1. Ordersheet'!Q996=\"\",\"\",'1. Ordersheet'!Q996)","v":""},{"$f":"IF('1. Ordersheet'!R996=\"\",\"\",'1. Ordersheet'!R996)","v":""},{"$f":"IF('1. Ordersheet'!S996=\"\",\"\",'1. Ordersheet'!S996)","v":""},{"$f":"IF('1. Ordersheet'!V996=\"\",\"\",'1. Ordersheet'!V996)","v":""},{"$f":"IF('1. Ordersheet'!W996=\"\",\"\",'1. Ordersheet'!W996)","v":""},{"$f":"IF('1. Ordersheet'!X996=\"\",\"\",'1. Ordersheet'!X996)","v":""},{"$f":"IF('1. Ordersheet'!Y996=\"\",\"\",'1. Ordersheet'!Y996)","v":""},{"$f":"IF('1. Ordersheet'!Z996=\"\",\"\",'1. Ordersheet'!Z996)","v":""},{"$f":"IF('1. Ordersheet'!AA996=\"\",\"\",'1. Ordersheet'!AA996)","v":""},null,{"$f":"IF('1. Ordersheet'!AS996=\"\",\"\",'1. Ordersheet'!AS996)","v":""},{"$f":"IF('1. Ordersheet'!AT996=\"\",\"\",'1. Ordersheet'!AT996)","v":""},null,null,null,null,null,null,null,{"$f":"IF('1. Ordersheet'!AX996=\"\",\"\",'1. Ordersheet'!AX996)","v":""},{"$f":"IF('1. Ordersheet'!AY996=\"\",\"\",'1. Ordersheet'!AY996)","v":""},{"$f":"IF('1. Ordersheet'!AZ996=\"\",\"\",'1. Ordersheet'!AZ996)","v":""},{"$f":"IF('1. Ordersheet'!BA996=\"\",\"\",'1. Ordersheet'!BA996)","v":""},{"$f":"IF('1. Ordersheet'!BC996=\"\",\"\",'1. Ordersheet'!BC996)","v":""},{"$f":"IF('1. Ordersheet'!BD996=\"\",\"\",'1. Ordersheet'!BD996)","v":""},{"$f":"IF('1. Ordersheet'!BE996=\"\",\"\",'1. Ordersheet'!BE996)","v":""},{"$f":"IF('1. Ordersheet'!BF996=\"\",\"\",'1. Ordersheet'!BF996)","v":""},{"$f":"IF('1. Ordersheet'!BG996=\"\",\"\",'1. Ordersheet'!BG996)","v":"ZWO"},{"$f":"IF('1. Ordersheet'!BH996=\"\",\"\",'1. Ordersheet'!BH996)","v":""},{"$f":"IF('1. Ordersheet'!BI996=\"\",\"\",'1. Ordersheet'!BI996)","v":""},{"$f":"IF('1. Ordersheet'!BJ996=\"\",\"\",'1. Ordersheet'!BJ996)","v":""},{"$f":"IF('1. Ordersheet'!BK996=\"\",\"\",'1. Ordersheet'!BK996)","v":""},{"$f":"IF('1. Ordersheet'!BL996=\"\",\"\",'1. Ordersheet'!BL996)","v":""}]
[{"$f":"IF('1. Ordersheet'!F997=\"\",\"\",'1. Ordersheet'!F997)","v":""},{"$f":"IF('1. Ordersheet'!G997=\"\",\"\",'1. Ordersheet'!G997)","v":""},{"$f":"IF('1. Ordersheet'!H997=\"\",\"\",'1. Ordersheet'!H997)","v":""},{"$f":"IF('1. Ordersheet'!I997=\"\",\"\",'1. Ordersheet'!I997)","v":""},{"$f":"IF('1. Ordersheet'!J997=\"\",\"\",'1. Ordersheet'!J997)","v":""},{"$f":"IF('1. Ordersheet'!K997=\"\",\"\",'1. Ordersheet'!K997)","v":""},{"$f":"IF('1. Ordersheet'!L997=\"\",\"\",'1. Ordersheet'!L997)","v":""},{"$f":"IF('1. Ordersheet'!M997=\"\",\"\",'1. Ordersheet'!M997)","v":""},{"$f":"IF('1. Ordersheet'!N997=\"\",\"\",'1. Ordersheet'!N997)","v":""},{"$f":"IF('1. Ordersheet'!O997=\"\",\"\",'1. Ordersheet'!O997)","v":{"$error":"#N/A"}},{"$f":"IF('1. Ordersheet'!P997=\"\",\"\",'1. Ordersheet'!P997)","v":{"$error":"#N/A"}},{"$f":"IF('1. Ordersheet'!Q997=\"\",\"\",'1. Ordersheet'!Q997)","v":""},{"$f":"IF('1. Ordersheet'!R997=\"\",\"\",'1. Ordersheet'!R997)","v":""},{"$f":"IF('1. Ordersheet'!S997=\"\",\"\",'1. Ordersheet'!S997)","v":""},{"$f":"IF('1. Ordersheet'!V997=\"\",\"\",'1. Ordersheet'!V997)","v":""},{"$f":"IF('1. Ordersheet'!W997=\"\",\"\",'1. Ordersheet'!W997)","v":""},{"$f":"IF('1. Ordersheet'!X997=\"\",\"\",'1. Ordersheet'!X997)","v":""},{"$f":"IF('1. Ordersheet'!Y997=\"\",\"\",'1. Ordersheet'!Y997)","v":""},{"$f":"IF('1. Ordersheet'!Z997=\"\",\"\",'1. Ordersheet'!Z997)","v":""},{"$f":"IF('1. Ordersheet'!AA997=\"\",\"\",'1. Ordersheet'!AA997)","v":""},null,{"$f":"IF('1. Ordersheet'!AS997=\"\",\"\",'1. Ordersheet'!AS997)","v":""},{"$f":"IF('1. Ordersheet'!AT997=\"\",\"\",'1. Ordersheet'!AT997)","v":""},null,null,null,null,null,null,null,{"$f":"IF('1. Ordersheet'!AX997=\"\",\"\",'1. Ordersheet'!AX997)","v":""},{"$f":"IF('1. Ordersheet'!AY997=\"\",\"\",'1. Ordersheet'!AY997)","v":""},{"$f":"IF('1. Ordersheet'!AZ997=\"\",\"\",'1. Ordersheet'!AZ997)","v":""},{"$f":"IF('1. Ordersheet'!BA997=\"\",\"\",'1. Ordersheet'!BA997)","v":""},{"$f":"IF('1. Ordersheet'!BC997=\"\",\"\",'1. Ordersheet'!BC997)","v":""},{"$f":"IF('1. Ordersheet'!BD997=\"\",\"\",'1. Ordersheet'!BD997)","v":""},{"$f":"IF('1. Ordersheet'!BE997=\"\",\"\",'1. Ordersheet'!BE997)","v":""},{"$f":"IF('1. Ordersheet'!BF997=\"\",\"\",'1. Ordersheet'!BF997)","v":""},{"$f":"IF('1. Ordersheet'!BG997=\"\",\"\",'1. Ordersheet'!BG997)","v":"ZWO"},{"$f":"IF('1. Ordersheet'!BH997=\"\",\"\",'1. Ordersheet'!BH997)","v":""},{"$f":"IF('1. Ordersheet'!BI997=\"\",\"\",'1. Ordersheet'!BI997)","v":""},{"$f":"IF('1. Ordersheet'!BJ997=\"\",\"\",'1. Ordersheet'!BJ997)","v":""},{"$f":"IF('1. Ordersheet'!BK997=\"\",\"\",'1. Ordersheet'!BK997)","v":""},{"$f":"IF('1. Ordersheet'!BL997=\"\",\"\",'1. Ordersheet'!BL997)","v":""}]
[{"$f":"IF('1. Ordersheet'!F998=\"\",\"\",'1. Ordersheet'!F998)","v":""},{"$f":"IF('1. Ordersheet'!G998=\"\",\"\",'1. Ordersheet'!G998)","v":""},{"$f":"IF('1. Ordersheet'!H998=\"\",\"\",'1. Ordersheet'!H998)","v":""},{"$f":"IF('1. Ordersheet'!I998=\"\",\"\",'1. Ordersheet'!I998)","v":""},{"$f":"IF('1. Ordersheet'!J998=\"\",\"\",'1. Ordersheet'!J998)","v":""},{"$f":"IF('1. Ordersheet'!K998=\"\",\"\",'1. Ordersheet'!K998)","v":""},{"$f":"IF('1. Ordersheet'!L998=\"\",\"\",'1. Ordersheet'!L998)","v":""},{"$f":"IF('1. Ordersheet'!M998=\"\",\"\",'1. Ordersheet'!M998)","v":""},{"$f":"IF('1. Ordersheet'!N998=\"\",\"\",'1. Ordersheet'!N998)","v":""},{"$f":"IF('1. Ordersheet'!O998=\"\",\"\",'1. Ordersheet'!O998)","v":{"$error":"#N/A"}},{"$f":"IF('1. Ordersheet'!P998=\"\",\"\",'1. Ordersheet'!P998)","v":{"$error":"#N/A"}},{"$f":"IF('1. Ordersheet'!Q998=\"\",\"\",'1. Ordersheet'!Q998)","v":""},{"$f":"IF('1. Ordersheet'!R998=\"\",\"\",'1. Ordersheet'!R998)","v":""},{"$f":"IF('1. Ordersheet'!S998=\"\",\"\",'1. Ordersheet'!S998)","v":""},{"$f":"IF('1. Ordersheet'!V998=\"\",\"\",'1. Ordersheet'!V998)","v":""},{"$f":"IF('1. Ordersheet'!W998=\"\",\"\",'1. Ordersheet'!W998)","v":""},{"$f":"IF('1. Ordersheet'!X998=\"\",\"\",'1. Ordersheet'!X998)","v":""},{"$f":"IF('1. Ordersheet'!Y998=\"\",\"\",'1. Ordersheet'!Y998)","v":""},{"$f":"IF('1. Ordersheet'!Z998=\"\",\"\",'1. Ordersheet'!Z998)","v":""},{"$f":"IF('1. Ordersheet'!AA998=\"\",\"\",'1. Ordersheet'!AA998)","v":""},null,{"$f":"IF('1. Ordersheet'!AS998=\"\",\"\",'1. Ordersheet'!AS998)","v":""},{"$f":"IF('1. Ordersheet'!AT998=\"\",\"\",'1. Ordersheet'!AT998)","v":""},null,null,null,null,null,null,null,{"$f":"IF('1. Ordersheet'!AX998=\"\",\"\",'1. Ordersheet'!AX998)","v":""},{"$f":"IF('1. Ordersheet'!AY998=\"\",\"\",'1. Ordersheet'!AY998)","v":""},{"$f":"IF('1. Ordersheet'!AZ998=\"\",\"\",'1. Ordersheet'!AZ998)","v":""},{"$f":"IF('1. Ordersheet'!BA998=\"\",\"\",'1. Ordersheet'!BA998)","v":""},{"$f":"IF('1. Ordersheet'!BC998=\"\",\"\",'1. Ordersheet'!BC998)","v":""},{"$f":"IF('1. Ordersheet'!BD998=\"\",\"\",'1. Ordersheet'!BD998)","v":""},{"$f":"IF('1. Ordersheet'!BE998=\"\",\"\",'1. Ordersheet'!BE998)","v":""},{"$f":"IF('1. Ordersheet'!BF998=\"\",\"\",'1. Ordersheet'!BF998)","v":""},{"$f":"IF('1. Ordersheet'!BG998=\"\",\"\",'1. Ordersheet'!BG998)","v":"ZWO"},{"$f":"IF('1. Ordersheet'!BH998=\"\",\"\",'1. Ordersheet'!BH998)","v":""},{"$f":"IF('1. Ordersheet'!BI998=\"\",\"\",'1. Ordersheet'!BI998)","v":""},{"$f":"IF('1. Ordersheet'!BJ998=\"\",\"\",'1. Ordersheet'!BJ998)","v":""},{"$f":"IF('1. Ordersheet'!BK998=\"\",\"\",'1. Ordersheet'!BK998)","v":""},{"$f":"IF('1. Ordersheet'!BL998=\"\",\"\",'1. Ordersheet'!BL998)","v":""}]
[{"$f":"IF('1. Ordersheet'!F999=\"\",\"\",'1. Ordersheet'!F999)","v":""},{"$f":"IF('1. Ordersheet'!G999=\"\",\"\",'1. Ordersheet'!G999)","v":""},{"$f":"IF('1. Ordersheet'!H999=\"\",\"\",'1. Ordersheet'!H999)","v":""},{"$f":"IF('1. Ordersheet'!I999=\"\",\"\",'1. Ordersheet'!I999)","v":""},{"$f":"IF('1. Ordersheet'!J999=\"\",\"\",'1. Ordersheet'!J999)","v":""},{"$f":"IF('1. Ordersheet'!K999=\"\",\"\",'1. Ordersheet'!K999)","v":""},{"$f":"IF('1. Ordersheet'!L999=\"\",\"\",'1. Ordersheet'!L999)","v":""},{"$f":"IF('1. Ordersheet'!M999=\"\",\"\",'1. Ordersheet'!M999)","v":""},{"$f":"IF('1. Ordersheet'!N999=\"\",\"\",'1. Ordersheet'!N999)","v":""},{"$f":"IF('1. Ordersheet'!O999=\"\",\"\",'1. Ordersheet'!O999)","v":{"$error":"#N/A"}},{"$f":"IF('1. Ordersheet'!P999=\"\",\"\",'1. Ordersheet'!P999)","v":{"$error":"#N/A"}},{"$f":"IF('1. Ordersheet'!Q999=\"\",\"\",'1. Ordersheet'!Q999)","v":""},{"$f":"IF('1. Ordersheet'!R999=\"\",\"\",'1. Ordersheet'!R999)","v":""},{"$f":"IF('1. Ordersheet'!S999=\"\",\"\",'1. Ordersheet'!S999)","v":""},{"$f":"IF('1. Ordersheet'!V999=\"\",\"\",'1. Ordersheet'!V999)","v":""},{"$f":"IF('1. Ordersheet'!W999=\"\",\"\",'1. Ordersheet'!W999)","v":""},{"$f":"IF('1. Ordersheet'!X999=\"\",\"\",'1. Ordersheet'!X999)","v":""},{"$f":"IF('1. Ordersheet'!Y999=\"\",\"\",'1. Ordersheet'!Y999)","v":""},{"$f":"IF('1. Ordersheet'!Z999=\"\",\"\",'1. Ordersheet'!Z999)","v":""},{"$f":"IF('1. Ordersheet'!AA999=\"\",\"\",'1. Ordersheet'!AA999)","v":""},null,{"$f":"IF('1. Ordersheet'!AS999=\"\",\"\",'1. Ordersheet'!AS999)","v":""},{"$f":"IF('1. Ordersheet'!AT999=\"\",\"\",'1. Ordersheet'!AT999)","v":""},null,null,null,null,null,null,null,{"$f":"IF('1. Ordersheet'!AX999=\"\",\"\",'1. Ordersheet'!AX999)","v":""},{"$f":"IF('1. Ordersheet'!AY999=\"\",\"\",'1. Ordersheet'!AY999)","v":""},{"$f":"IF('1. Ordersheet'!AZ999=\"\",\"\",'1. Ordersheet'!AZ999)","v":""},{"$f":"IF('1. Ordersheet'!BA999=\"\",\"\",'1. Ordersheet'!BA999)","v":""},{"$f":"IF('1. Ordersheet'!BC999=\"\",\"\",'1. Ordersheet'!BC999)","v":""},{"$f":"IF('1. Ordersheet'!BD999=\"\",\"\",'1. Ordersheet'!BD999)","v":""},{"$f":"IF('1. Ordersheet'!BE999=\"\",\"\",'1. Ordersheet'!BE999)","v":""},{"$f":"IF('1. Ordersheet'!BF999=\"\",\"\",'1. Ordersheet'!BF999)","v":""},{"$f":"IF('1. Ordersheet'!BG999=\"\",\"\",'1. Ordersheet'!BG999)","v":"ZWO"},{"$f":"IF('1. Ordersheet'!BH999=\"\",\"\",'1. Ordersheet'!BH999)","v":""},{"$f":"IF('1. Ordersheet'!BI999=\"\",\"\",'1. Ordersheet'!BI999)","v":""},{"$f":"IF('1. Ordersheet'!BJ999=\"\",\"\",'1. Ordersheet'!BJ999)","v":""},{"$f":"IF('1. Ordersheet'!BK999=\"\",\"\",'1. Ordersheet'!BK999)","v":""},{"$f":"IF('1. Ordersheet'!BL999=\"\",\"\",'1. Ordersheet'!BL999)","v":""}]
[{"$f":"IF('1. Ordersheet'!F1000=\"\",\"\",'1. Ordersheet'!F1000)","v":""},{"$f":"IF('1. Ordersheet'!G1000=\"\",\"\",'1. Ordersheet'!G1000)","v":""},{"$f":"IF('1. Ordersheet'!H1000=\"\",\"\",'1. Ordersheet'!H1000)","v":""},{"$f":"IF('1. Ordersheet'!I1000=\"\",\"\",'1. Ordersheet'!I1000)","v":""},{"$f":"IF('1. Ordersheet'!J1000=\"\",\"\",'1. Ordersheet'!J1000)","v":""},{"$f":"IF('1. Ordersheet'!K1000=\"\",\"\",'1. Ordersheet'!K1000)","v":""},{"$f":"IF('1. Ordersheet'!L1000=\"\",\"\",'1. Ordersheet'!L1000)","v":""},{"$f":"IF('1. Ordersheet'!M1000=\"\",\"\",'1. Ordersheet'!M1000)","v":""},{"$f":"IF('1. Ordersheet'!N1000=\"\",\"\",'1. Ordersheet'!N1000)","v":""},{"$f":"IF('1. Ordersheet'!O1000=\"\",\"\",'1. Ordersheet'!O1000)","v":{"$error":"#N/A"}},{"$f":"IF('1. Ordersheet'!P1000=\"\",\"\",'1. Ordersheet'!P1000)","v":{"$error":"#N/A"}},{"$f":"IF('1. Ordersheet'!Q1000=\"\",\"\",'1. Ordersheet'!Q1000)","v":""},{"$f":"IF('1. Ordersheet'!R1000=\"\",\"\",'1. Ordersheet'!R1000)","v":""},{"$f":"IF('1. Ordersheet'!S1000=\"\",\"\",'1. Ordersheet'!S1000)","v":""},{"$f":"IF('1. Ordersheet'!V1000=\"\",\"\",'1. Ordersheet'!V1000)","v":""},{"$f":"IF('1. Ordersheet'!W1000=\"\",\"\",'1. Ordersheet'!W1000)","v":""},{"$f":"IF('1. Ordersheet'!X1000=\"\",\"\",'1. Ordersheet'!X1000)","v":""},{"$f":"IF('1. Ordersheet'!Y1000=\"\",\"\",'1. Ordersheet'!Y1000)","v":""},{"$f":"IF('1. Ordersheet'!Z1000=\"\",\"\",'1. Ordersheet'!Z1000)","v":""},{"$f":"IF('1. Ordersheet'!AA1000=\"\",\"\",'1. Ordersheet'!AA1000)","v":""},null,{"$f":"IF('1. Ordersheet'!AS1000=\"\",\"\",'1. Ordersheet'!AS1000)","v":""},{"$f":"IF('1. Ordersheet'!AT1000=\"\",\"\",'1. Ordersheet'!AT1000)","v":""},null,null,null,null,null,null,null,{"$f":"IF('1. Ordersheet'!AX1000=\"\",\"\",'1. Ordersheet'!AX1000)","v":""},{"$f":"IF('1. Ordersheet'!AY1000=\"\",\"\",'1. Ordersheet'!AY1000)","v":""},{"$f":"IF('1. Ordersheet'!AZ1000=\"\",\"\",'1. Ordersheet'!AZ1000)","v":""},{"$f":"IF('1. Ordersheet'!BA1000=\"\",\"\",'1. Ordersheet'!BA1000)","v":""},{"$f":"IF('1. Ordersheet'!BC1000=\"\",\"\",'1. Ordersheet'!BC1000)","v":""},{"$f":"IF('1. Ordersheet'!BD1000=\"\",\"\",'1. Ordersheet'!BD1000)","v":""},{"$f":"IF('1. Ordersheet'!BE1000=\"\",\"\",'1. Ordersheet'!BE1000)","v":""},{"$f":"IF('1. Ordersheet'!BF1000=\"\",\"\",'1. Ordersheet'!BF1000)","v":""},{"$f":"IF('1. Ordersheet'!BG1000=\"\",\"\",'1. Ordersheet'!BG1000)","v":"ZWO"},{"$f":"IF('1. Ordersheet'!BH1000=\"\",\"\",'1. Ordersheet'!BH1000)","v":""},{"$f":"IF('1. Ordersheet'!BI1000=\"\",\"\",'1. Ordersheet'!BI1000)","v":""},{"$f":"IF('1. Ordersheet'!BJ1000=\"\",\"\",'1. Ordersheet'!BJ1000)","v":""},{"$f":"IF('1. Ordersheet'!BK1000=\"\",\"\",'1. Ordersheet'!BK1000)","v":""},{"$f":"IF('1. Ordersheet'!BL1000=\"\",\"\",'1. Ordersheet'!BL1000)","v":""}]
[{"$f":"IF('1. Ordersheet'!F1001=\"\",\"\",'1. Ordersheet'!F1001)","v":""},{"$f":"IF('1. Ordersheet'!G1001=\"\",\"\",'1. Ordersheet'!G1001)","v":""},{"$f":"IF('1. Ordersheet'!H1001=\"\",\"\",'1. Ordersheet'!H1001)","v":""},{"$f":"IF('1. Ordersheet'!I1001=\"\",\"\",'1. Ordersheet'!I1001)","v":""},{"$f":"IF('1. Ordersheet'!J1001=\"\",\"\",'1. Ordersheet'!J1001)","v":""},{"$f":"IF('1. Ordersheet'!K1001=\"\",\"\",'1. Ordersheet'!K1001)","v":""},{"$f":"IF('1. Ordersheet'!L1001=\"\",\"\",'1. Ordersheet'!L1001)","v":""},{"$f":"IF('1. Ordersheet'!M1001=\"\",\"\",'1. Ordersheet'!M1001)","v":""},{"$f":"IF('1. Ordersheet'!N1001=\"\",\"\",'1. Ordersheet'!N1001)","v":""},{"$f":"IF('1. Ordersheet'!O1001=\"\",\"\",'1. Ordersheet'!O1001)","v":{"$error":"#N/A"}},{"$f":"IF('1. Ordersheet'!P1001=\"\",\"\",'1. Ordersheet'!P1001)","v":{"$error":"#N/A"}},{"$f":"IF('1. Ordersheet'!Q1001=\"\",\"\",'1. Ordersheet'!Q1001)","v":""},{"$f":"IF('1. Ordersheet'!R1001=\"\",\"\",'1. Ordersheet'!R1001)","v":""},{"$f":"IF('1. Ordersheet'!S1001=\"\",\"\",'1. Ordersheet'!S1001)","v":""},{"$f":"IF('1. Ordersheet'!V1001=\"\",\"\",'1. Ordersheet'!V1001)","v":""},{"$f":"IF('1. Ordersheet'!W1001=\"\",\"\",'1. Ordersheet'!W1001)","v":""},{"$f":"IF('1. Ordersheet'!X1001=\"\",\"\",'1. Ordersheet'!X1001)","v":""},{"$f":"IF('1. Ordersheet'!Y1001=\"\",\"\",'1. Ordersheet'!Y1001)","v":""},{"$f":"IF('1. Ordersheet'!Z1001=\"\",\"\",'1. Ordersheet'!Z1001)","v":""},{"$f":"IF('1. Ordersheet'!AA1001=\"\",\"\",'1. Ordersheet'!AA1001)","v":""},null,{"$f":"IF('1. Ordersheet'!AS1001=\"\",\"\",'1. Ordersheet'!AS1001)","v":""},{"$f":"IF('1. Ordersheet'!AT1001=\"\",\"\",'1. Ordersheet'!AT1001)","v":""},null,null,null,null,null,null,null,{"$f":"IF('1. Ordersheet'!AX1001=\"\",\"\",'1. Ordersheet'!AX1001)","v":""},{"$f":"IF('1. Ordersheet'!AY1001=\"\",\"\",'1. Ordersheet'!AY1001)","v":""},{"$f":"IF('1. Ordersheet'!AZ1001=\"\",\"\",'1. Ordersheet'!AZ1001)","v":""},{"$f":"IF('1. Ordersheet'!BA1001=\"\",\"\",'1. Ordersheet'!BA1001)","v":""},{"$f":"IF('1. Ordersheet'!BC1001=\"\",\"\",'1. Ordersheet'!BC1001)","v":""},{"$f":"IF('1. Ordersheet'!BD1001=\"\",\"\",'1. Ordersheet'!BD1001)","v":""},{"$f":"IF('1. Ordersheet'!BE1001=\"\",\"\",'1. Ordersheet'!BE1001)","v":""},{"$f":"IF('1. Ordersheet'!BF1001=\"\",\"\",'1. Ordersheet'!BF1001)","v":""},{"$f":"IF('1. Ordersheet'!BG1001=\"\",\"\",'1. Ordersheet'!BG1001)","v":"ZWO"},{"$f":"IF('1. Ordersheet'!BH1001=\"\",\"\",'1. Ordersheet'!BH1001)","v":""},{"$f":"IF('1. Ordersheet'!BI1001=\"\",\"\",'1. Ordersheet'!BI1001)","v":""},{"$f":"IF('1. Ordersheet'!BJ1001=\"\",\"\",'1. Ordersheet'!BJ1001)","v":""},{"$f":"IF('1. Ordersheet'!BK1001=\"\",\"\",'1. Ordersheet'!BK1001)","v":""},{"$f":"IF('1. Ordersheet'!BL1001=\"\",\"\",'1. Ordersheet'!BL1001)","v":""}]
[{"$f":"IF('1. Ordersheet'!F1002=\"\",\"\",'1. Ordersheet'!F1002)","v":""},{"$f":"IF('1. Ordersheet'!G1002=\"\",\"\",'1. Ordersheet'!G1002)","v":""},{"$f":"IF('1. Ordersheet'!H1002=\"\",\"\",'1. Ordersheet'!H1002)","v":""},{"$f":"IF('1. Ordersheet'!I1002=\"\",\"\",'1. Ordersheet'!I1002)","v":""},{"$f":"IF('1. Ordersheet'!J1002=\"\",\"\",'1. Ordersheet'!J1002)","v":""},{"$f":"IF('1. Ordersheet'!K1002=\"\",\"\",'1. Ordersheet'!K1002)","v":""},{"$f":"IF('1. Ordersheet'!L1002=\"\",\"\",'1. Ordersheet'!L1002)","v":""},{"$f":"IF('1. Ordersheet'!M1002=\"\",\"\",'1. Ordersheet'!M1002)","v":""},{"$f":"IF('1. Ordersheet'!N1002=\"\",\"\",'1. Ordersheet'!N1002)","v":""},{"$f":"IF('1. Ordersheet'!O1002=\"\",\"\",'1. Ordersheet'!O1002)","v":{"$error":"#N/A"}},{"$f":"IF('1. Ordersheet'!P1002=\"\",\"\",'1. Ordersheet'!P1002)","v":{"$error":"#N/A"}},{"$f":"IF('1. Ordersheet'!Q1002=\"\",\"\",'1. Ordersheet'!Q1002)","v":""},{"$f":"IF('1. Ordersheet'!R1002=\"\",\"\",'1. Ordersheet'!R1002)","v":""},{"$f":"IF('1. Ordersheet'!S1002=\"\",\"\",'1. Ordersheet'!S1002)","v":""},{"$f":"IF('1. Ordersheet'!V1002=\"\",\"\",'1. Ordersheet'!V1002)","v":""},{"$f":"IF('1. Ordersheet'!W1002=\"\",\"\",'1. Ordersheet'!W1002)","v":""},{"$f":"IF('1. Ordersheet'!X1002=\"\",\"\",'1. Ordersheet'!X1002)","v":""},{"$f":"IF('1. Ordersheet'!Y1002=\"\",\"\",'1. Ordersheet'!Y1002)","v":""},{"$f":"IF('1. Ordersheet'!Z1002=\"\",\"\",'1. Ordersheet'!Z1002)","v":""},{"$f":"IF('1. Ordersheet'!AA1002=\"\",\"\",'1. Ordersheet'!AA1002)","v":""},null,{"$f":"IF('1. Ordersheet'!AS1002=\"\",\"\",'1. Ordersheet'!AS1002)","v":""},{"$f":"IF('1. Ordersheet'!AT1002=\"\",\"\",'1. Ordersheet'!AT1002)","v":""},null,null,null,null,null,null,null,{"$f":"IF('1. Ordersheet'!AX1002=\"\",\"\",'1. Ordersheet'!AX1002)","v":""},{"$f":"IF('1. Ordersheet'!AY1002=\"\",\"\",'1. Ordersheet'!AY1002)","v":""},{"$f":"IF('1. Ordersheet'!AZ1002=\"\",\"\",'1. Ordersheet'!AZ1002)","v":""},{"$f":"IF('1. Ordersheet'!BA1002=\"\",\"\",'1. Ordersheet'!BA1002)","v":""},{"$f":"IF('1. Ordersheet'!BC1002=\"\",\"\",'1. Ordersheet'!BC1002)","v":""},{"$f":"IF('1. Ordersheet'!BD1002=\"\",\"\",'1. Ordersheet'!BD1002)","v":""},{"$f":"IF('1. Ordersheet'!BE1002=\"\",\"\",'1. Ordersheet'!BE1002)","v":""},{"$f":"IF('1. Ordersheet'!BF1002=\"\",\"\",'1. Ordersheet'!BF1002)","v":""},{"$f":"IF('1. Ordersheet'!BG1002=\"\",\"\",'1. Ordersheet'!BG1002)","v":"ZWO"},{"$f":"IF('1. Ordersheet'!BH1002=\"\",\"\",'1. Ordersheet'!BH1002)","v":""},{"$f":"IF('1. Ordersheet'!BI1002=\"\",\"\",'1. Ordersheet'!BI1002)","v":""},{"$f":"IF('1. Ordersheet'!BJ1002=\"\",\"\",'1. Ordersheet'!BJ1002)","v":""},{"$f":"IF('1. Ordersheet'!BK1002=\"\",\"\",'1. Ordersheet'!BK1002)","v":""},{"$f":"IF('1. Ordersheet'!BL1002=\"\",\"\",'1. Ordersheet'!BL1002)","v":""}]
[{"$f":"IF('1. Ordersheet'!F1003=\"\",\"\",'1. Ordersheet'!F1003)","v":""},{"$f":"IF('1. Ordersheet'!G1003=\"\",\"\",'1. Ordersheet'!G1003)","v":""},{"$f":"IF('1. Ordersheet'!H1003=\"\",\"\",'1. Ordersheet'!H1003)","v":""},{"$f":"IF('1. Ordersheet'!I1003=\"\",\"\",'1. Ordersheet'!I1003)","v":""},{"$f":"IF('1. Ordersheet'!J1003=\"\",\"\",'1. Ordersheet'!J1003)","v":""},{"$f":"IF('1. Ordersheet'!K1003=\"\",\"\",'1. Ordersheet'!K1003)","v":""},{"$f":"IF('1. Ordersheet'!L1003=\"\",\"\",'1. Ordersheet'!L1003)","v":""},{"$f":"IF('1. Ordersheet'!M1003=\"\",\"\",'1. Ordersheet'!M1003)","v":""},{"$f":"IF('1. Ordersheet'!N1003=\"\",\"\",'1. Ordersheet'!N1003)","v":""},{"$f":"IF('1. Ordersheet'!O1003=\"\",\"\",'1. Ordersheet'!O1003)","v":{"$error":"#N/A"}},{"$f":"IF('1. Ordersheet'!P1003=\"\",\"\",'1. Ordersheet'!P1003)","v":{"$error":"#N/A"}},{"$f":"IF('1. Ordersheet'!Q1003=\"\",\"\",'1. Ordersheet'!Q1003)","v":""},{"$f":"IF('1. Ordersheet'!R1003=\"\",\"\",'1. Ordersheet'!R1003)","v":""},{"$f":"IF('1. Ordersheet'!S1003=\"\",\"\",'1. Ordersheet'!S1003)","v":""},{"$f":"IF('1. Ordersheet'!V1003=\"\",\"\",'1. Ordersheet'!V1003)","v":""},{"$f":"IF('1. Ordersheet'!W1003=\"\",\"\",'1. Ordersheet'!W1003)","v":""},{"$f":"IF('1. Ordersheet'!X1003=\"\",\"\",'1. Ordersheet'!X1003)","v":""},{"$f":"IF('1. Ordersheet'!Y1003=\"\",\"\",'1. Ordersheet'!Y1003)","v":""},{"$f":"IF('1. Ordersheet'!Z1003=\"\",\"\",'1. Ordersheet'!Z1003)","v":""},{"$f":"IF('1. Ordersheet'!AA1003=\"\",\"\",'1. Ordersheet'!AA1003)","v":""},null,{"$f":"IF('1. Ordersheet'!AS1003=\"\",\"\",'1. Ordersheet'!AS1003)","v":""},{"$f":"IF('1. Ordersheet'!AT1003=\"\",\"\",'1. Ordersheet'!AT1003)","v":""},null,null,null,null,null,null,null,{"$f":"IF('1. Ordersheet'!AX1003=\"\",\"\",'1. Ordersheet'!AX1003)","v":""},{"$f":"IF('1. Ordersheet'!AY1003=\"\",\"\",'1. Ordersheet'!AY1003)","v":""},{"$f":"IF('1. Ordersheet'!AZ1003=\"\",\"\",'1. Ordersheet'!AZ1003)","v":""},{"$f":"IF('1. Ordersheet'!BA1003=\"\",\"\",'1. Ordersheet'!BA1003)","v":""},{"$f":"IF('1. Ordersheet'!BC1003=\"\",\"\",'1. Ordersheet'!BC1003)","v":""},{"$f":"IF('1. Ordersheet'!BD1003=\"\",\"\",'1. Ordersheet'!BD1003)","v":""},{"$f":"IF('1. Ordersheet'!BE1003=\"\",\"\",'1. Ordersheet'!BE1003)","v":""},{"$f":"IF('1. Ordersheet'!BF1003=\"\",\"\",'1. Ordersheet'!BF1003)","v":""},{"$f":"IF('1. Ordersheet'!BG1003=\"\",\"\",'1. Ordersheet'!BG1003)","v":"ZWO"},{"$f":"IF('1. Ordersheet'!BH1003=\"\",\"\",'1. Ordersheet'!BH1003)","v":""},{"$f":"IF('1. Ordersheet'!BI1003=\"\",\"\",'1. Ordersheet'!BI1003)","v":""},{"$f":"IF('1. Ordersheet'!BJ1003=\"\",\"\",'1. Ordersheet'!BJ1003)","v":""},{"$f":"IF('1. Ordersheet'!BK1003=\"\",\"\",'1. Ordersheet'!BK1003)","v":""},{"$f":"IF('1. Ordersheet'!BL1003=\"\",\"\",'1. Ordersheet'!BL1003)","v":""}]
[{"$f":"IF('1. Ordersheet'!F1004=\"\",\"\",'1. Ordersheet'!F1004)","v":""},{"$f":"IF('1. Ordersheet'!G1004=\"\",\"\",'1. Ordersheet'!G1004)","v":""},{"$f":"IF('1. Ordersheet'!H1004=\"\",\"\",'1. Ordersheet'!H1004)","v":""},{"$f":"IF('1. Ordersheet'!I1004=\"\",\"\",'1. Ordersheet'!I1004)","v":""},{"$f":"IF('1. Ordersheet'!J1004=\"\",\"\",'1. Ordersheet'!J1004)","v":""},{"$f":"IF('1. Ordersheet'!K1004=\"\",\"\",'1. Ordersheet'!K1004)","v":""},{"$f":"IF('1. Ordersheet'!L1004=\"\",\"\",'1. Ordersheet'!L1004)","v":""},{"$f":"IF('1. Ordersheet'!M1004=\"\",\"\",'1. Ordersheet'!M1004)","v":""},{"$f":"IF('1. Ordersheet'!N1004=\"\",\"\",'1. Ordersheet'!N1004)","v":""},{"$f":"IF('1. Ordersheet'!O1004=\"\",\"\",'1. Ordersheet'!O1004)","v":{"$error":"#N/A"}},{"$f":"IF('1. Ordersheet'!P1004=\"\",\"\",'1. Ordersheet'!P1004)","v":{"$error":"#N/A"}},{"$f":"IF('1. Ordersheet'!Q1004=\"\",\"\",'1. Ordersheet'!Q1004)","v":""},{"$f":"IF('1. Ordersheet'!R1004=\"\",\"\",'1. Ordersheet'!R1004)","v":""},{"$f":"IF('1. Ordersheet'!S1004=\"\",\"\",'1. Ordersheet'!S1004)","v":""},{"$f":"IF('1. Ordersheet'!V1004=\"\",\"\",'1. Ordersheet'!V1004)","v":""},{"$f":"IF('1. Ordersheet'!W1004=\"\",\"\",'1. Ordersheet'!W1004)","v":""},{"$f":"IF('1. Ordersheet'!X1004=\"\",\"\",'1. Ordersheet'!X1004)","v":""},{"$f":"IF('1. Ordersheet'!Y1004=\"\",\"\",'1. Ordersheet'!Y1004)","v":""},{"$f":"IF('1. Ordersheet'!Z1004=\"\",\"\",'1. Ordersheet'!Z1004)","v":""},{"$f":"IF('1. Ordersheet'!AA1004=\"\",\"\",'1. Ordersheet'!AA1004)","v":""},null,{"$f":"IF('1. Ordersheet'!AS1004=\"\",\"\",'1. Ordersheet'!AS1004)","v":""},{"$f":"IF('1. Ordersheet'!AT1004=\"\",\"\",'1. Ordersheet'!AT1004)","v":""},null,null,null,null,null,null,null,{"$f":"IF('1. Ordersheet'!AX1004=\"\",\"\",'1. Ordersheet'!AX1004)","v":""},{"$f":"IF('1. Ordersheet'!AY1004=\"\",\"\",'1. Ordersheet'!AY1004)","v":""},{"$f":"IF('1. Ordersheet'!AZ1004=\"\",\"\",'1. Ordersheet'!AZ1004)","v":""},{"$f":"IF('1. Ordersheet'!BA1004=\"\",\"\",'1. Ordersheet'!BA1004)","v":""},{"$f":"IF('1. Ordersheet'!BC1004=\"\",\"\",'1. Ordersheet'!BC1004)","v":""},{"$f":"IF('1. Ordersheet'!BD1004=\"\",\"\",'1. Ordersheet'!BD1004)","v":""},{"$f":"IF('1. Ordersheet'!BE1004=\"\",\"\",'1. Ordersheet'!BE1004)","v":""},{"$f":"IF('1. Ordersheet'!BF1004=\"\",\"\",'1. Ordersheet'!BF1004)","v":""},{"$f":"IF('1. Ordersheet'!BG1004=\"\",\"\",'1. Ordersheet'!BG1004)","v":"ZWO"},{"$f":"IF('1. Ordersheet'!BH1004=\"\",\"\",'1. Ordersheet'!BH1004)","v":""},{"$f":"IF('1. Ordersheet'!BI1004=\"\",\"\",'1. Ordersheet'!BI1004)","v":""},{"$f":"IF('1. Ordersheet'!BJ1004=\"\",\"\",'1. Ordersheet'!BJ1004)","v":""},{"$f":"IF('1. Ordersheet'!BK1004=\"\",\"\",'1. Ordersheet'!BK1004)","v":""},{"$f":"IF('1. Ordersheet'!BL1004=\"\",\"\",'1. Ordersheet'!BL1004)","v":""}]
[{"$f":"IF('1. Ordersheet'!F1005=\"\",\"\",'1. Ordersheet'!F1005)","v":""},{"$f":"IF('1. Ordersheet'!G1005=\"\",\"\",'1. Ordersheet'!G1005)","v":""},{"$f":"IF('1. Ordersheet'!H1005=\"\",\"\",'1. Ordersheet'!H1005)","v":""},{"$f":"IF('1. Ordersheet'!I1005=\"\",\"\",'1. Ordersheet'!I1005)","v":""},{"$f":"IF('1. Ordersheet'!J1005=\"\",\"\",'1. Ordersheet'!J1005)","v":""},{"$f":"IF('1. Ordersheet'!K1005=\"\",\"\",'1. Ordersheet'!K1005)","v":""},{"$f":"IF('1. Ordersheet'!L1005=\"\",\"\",'1. Ordersheet'!L1005)","v":""},{"$f":"IF('1. Ordersheet'!M1005=\"\",\"\",'1. Ordersheet'!M1005)","v":""},{"$f":"IF('1. Ordersheet'!N1005=\"\",\"\",'1. Ordersheet'!N1005)","v":""},{"$f":"IF('1. Ordersheet'!O1005=\"\",\"\",'1. Ordersheet'!O1005)","v":{"$error":"#N/A"}},{"$f":"IF('1. Ordersheet'!P1005=\"\",\"\",'1. Ordersheet'!P1005)","v":{"$error":"#N/A"}},{"$f":"IF('1. Ordersheet'!Q1005=\"\",\"\",'1. Ordersheet'!Q1005)","v":""},{"$f":"IF('1. Ordersheet'!R1005=\"\",\"\",'1. Ordersheet'!R1005)","v":""},{"$f":"IF('1. Ordersheet'!S1005=\"\",\"\",'1. Ordersheet'!S1005)","v":""},{"$f":"IF('1. Ordersheet'!V1005=\"\",\"\",'1. Ordersheet'!V1005)","v":""},{"$f":"IF('1. Ordersheet'!W1005=\"\",\"\",'1. Ordersheet'!W1005)","v":""},{"$f":"IF('1. Ordersheet'!X1005=\"\",\"\",'1. Ordersheet'!X1005)","v":""},{"$f":"IF('1. Ordersheet'!Y1005=\"\",\"\",'1. Ordersheet'!Y1005)","v":""},{"$f":"IF('1. Ordersheet'!Z1005=\"\",\"\",'1. Ordersheet'!Z1005)","v":""},{"$f":"IF('1. Ordersheet'!AA1005=\"\",\"\",'1. Ordersheet'!AA1005)","v":""},null,{"$f":"IF('1. Ordersheet'!AS1005=\"\",\"\",'1. Ordersheet'!AS1005)","v":""},{"$f":"IF('1. Ordersheet'!AT1005=\"\",\"\",'1. Ordersheet'!AT1005)","v":""},null,null,null,null,null,null,null,{"$f":"IF('1. Ordersheet'!AX1005=\"\",\"\",'1. Ordersheet'!AX1005)","v":""},{"$f":"IF('1. Ordersheet'!AY1005=\"\",\"\",'1. Ordersheet'!AY1005)","v":""},{"$f":"IF('1. Ordersheet'!AZ1005=\"\",\"\",'1. Ordersheet'!AZ1005)","v":""},{"$f":"IF('1. Ordersheet'!BA1005=\"\",\"\",'1. Ordersheet'!BA1005)","v":""},{"$f":"IF('1. Ordersheet'!BC1005=\"\",\"\",'1. Ordersheet'!BC1005)","v":""},{"$f":"IF('1. Ordersheet'!BD1005=\"\",\"\",'1. Ordersheet'!BD1005)","v":""},{"$f":"IF('1. Ordersheet'!BE1005=\"\",\"\",'1. Ordersheet'!BE1005)","v":""},{"$f":"IF('1. Ordersheet'!BF1005=\"\",\"\",'1. Ordersheet'!BF1005)","v":""},{"$f":"IF('1. Ordersheet'!BG1005=\"\",\"\",'1. Ordersheet'!BG1005)","v":"ZWO"},{"$f":"IF('1. Ordersheet'!BH1005=\"\",\"\",'1. Ordersheet'!BH1005)","v":""},{"$f":"IF('1. Ordersheet'!BI1005=\"\",\"\",'1. Ordersheet'!BI1005)","v":""},{"$f":"IF('1. Ordersheet'!BJ1005=\"\",\"\",'1. Ordersheet'!BJ1005)","v":""},{"$f":"IF('1. Ordersheet'!BK1005=\"\",\"\",'1. Ordersheet'!BK1005)","v":""},{"$f":"IF('1. Ordersheet'!BL1005=\"\",\"\",'1. Ordersheet'!BL1005)","v":""}]
[{"$f":"IF('1. Ordersheet'!F1006=\"\",\"\",'1. Ordersheet'!F1006)","v":""},{"$f":"IF('1. Ordersheet'!G1006=\"\",\"\",'1. Ordersheet'!G1006)","v":""},{"$f":"IF('1. Ordersheet'!H1006=\"\",\"\",'1. Ordersheet'!H1006)","v":""},{"$f":"IF('1. Ordersheet'!I1006=\"\",\"\",'1. Ordersheet'!I1006)","v":""},{"$f":"IF('1. Ordersheet'!J1006=\"\",\"\",'1. Ordersheet'!J1006)","v":""},{"$f":"IF('1. Ordersheet'!K1006=\"\",\"\",'1. Ordersheet'!K1006)","v":""},{"$f":"IF('1. Ordersheet'!L1006=\"\",\"\",'1. Ordersheet'!L1006)","v":""},{"$f":"IF('1. Ordersheet'!M1006=\"\",\"\",'1. Ordersheet'!M1006)","v":""},{"$f":"IF('1. Ordersheet'!N1006=\"\",\"\",'1. Ordersheet'!N1006)","v":""},{"$f":"IF('1. Ordersheet'!O1006=\"\",\"\",'1. Ordersheet'!O1006)","v":{"$error":"#N/A"}},{"$f":"IF('1. Ordersheet'!P1006=\"\",\"\",'1. Ordersheet'!P1006)","v":{"$error":"#N/A"}},{"$f":"IF('1. Ordersheet'!Q1006=\"\",\"\",'1. Ordersheet'!Q1006)","v":""},{"$f":"IF('1. Ordersheet'!R1006=\"\",\"\",'1. Ordersheet'!R1006)","v":""},{"$f":"IF('1. Ordersheet'!S1006=\"\",\"\",'1. Ordersheet'!S1006)","v":""},{"$f":"IF('1. Ordersheet'!V1006=\"\",\"\",'1. Ordersheet'!V1006)","v":""},{"$f":"IF('1. Ordersheet'!W1006=\"\",\"\",'1. Ordersheet'!W1006)","v":""},{"$f":"IF('1. Ordersheet'!X1006=\"\",\"\",'1. Ordersheet'!X1006)","v":""},{"$f":"IF('1. Ordersheet'!Y1006=\"\",\"\",'1. Ordersheet'!Y1006)","v":""},{"$f":"IF('1. Ordersheet'!Z1006=\"\",\"\",'1. Ordersheet'!Z1006)","v":""},{"$f":"IF('1. Ordersheet'!AA1006=\"\",\"\",'1. Ordersheet'!AA1006)","v":""},null,{"$f":"IF('1. Ordersheet'!AS1006=\"\",\"\",'1. Ordersheet'!AS1006)","v":""},{"$f":"IF('1. Ordersheet'!AT1006=\"\",\"\",'1. Ordersheet'!AT1006)","v":""},null,null,null,null,null,null,null,{"$f":"IF('1. Ordersheet'!AX1006=\"\",\"\",'1. Ordersheet'!AX1006)","v":""},{"$f":"IF('1. Ordersheet'!AY1006=\"\",\"\",'1. Ordersheet'!AY1006)","v":""},{"$f":"IF('1. Ordersheet'!AZ1006=\"\",\"\",'1. Ordersheet'!AZ1006)","v":""},{"$f":"IF('1. Ordersheet'!BA1006=\"\",\"\",'1. Ordersheet'!BA1006)","v":""},{"$f":"IF('1. Ordersheet'!BC1006=\"\",\"\",'1. Ordersheet'!BC1006)","v":""},{"$f":"IF('1. Ordersheet'!BD1006=\"\",\"\",'1. Ordersheet'!BD1006)","v":""},{"$f":"IF('1. Ordersheet'!BE1006=\"\",\"\",'1. Ordersheet'!BE1006)","v":""},{"$f":"IF('1. Ordersheet'!BF1006=\"\",\"\",'1. Ordersheet'!BF1006)","v":""},{"$f":"IF('1. Ordersheet'!BG1006=\"\",\"\",'1. Ordersheet'!BG1006)","v":"ZWO"},{"$f":"IF('1. Ordersheet'!BH1006=\"\",\"\",'1. Ordersheet'!BH1006)","v":""},{"$f":"IF('1. Ordersheet'!BI1006=\"\",\"\",'1. Ordersheet'!BI1006)","v":""},{"$f":"IF('1. Ordersheet'!BJ1006=\"\",\"\",'1. Ordersheet'!BJ1006)","v":""},{"$f":"IF('1. Ordersheet'!BK1006=\"\",\"\",'1. Ordersheet'!BK1006)","v":""},{"$f":"IF('1. Ordersheet'!BL1006=\"\",\"\",'1. Ordersheet'!BL1006)","v":""}]
[{"$f":"IF('1. Ordersheet'!F1007=\"\",\"\",'1. Ordersheet'!F1007)","v":""},{"$f":"IF('1. Ordersheet'!G1007=\"\",\"\",'1. Ordersheet'!G1007)","v":""},{"$f":"IF('1. Ordersheet'!H1007=\"\",\"\",'1. Ordersheet'!H1007)","v":""},{"$f":"IF('1. Ordersheet'!I1007=\"\",\"\",'1. Ordersheet'!I1007)","v":""},{"$f":"IF('1. Ordersheet'!J1007=\"\",\"\",'1. Ordersheet'!J1007)","v":""},{"$f":"IF('1. Ordersheet'!K1007=\"\",\"\",'1. Ordersheet'!K1007)","v":""},{"$f":"IF('1. Ordersheet'!L1007=\"\",\"\",'1. Ordersheet'!L1007)","v":""},{"$f":"IF('1. Ordersheet'!M1007=\"\",\"\",'1. Ordersheet'!M1007)","v":""},{"$f":"IF('1. Ordersheet'!N1007=\"\",\"\",'1. Ordersheet'!N1007)","v":""},{"$f":"IF('1. Ordersheet'!O1007=\"\",\"\",'1. Ordersheet'!O1007)","v":{"$error":"#N/A"}},{"$f":"IF('1. Ordersheet'!P1007=\"\",\"\",'1. Ordersheet'!P1007)","v":{"$error":"#N/A"}},{"$f":"IF('1. Ordersheet'!Q1007=\"\",\"\",'1. Ordersheet'!Q1007)","v":""},{"$f":"IF('1. Ordersheet'!R1007=\"\",\"\",'1. Ordersheet'!R1007)","v":""},{"$f":"IF('1. Ordersheet'!S1007=\"\",\"\",'1. Ordersheet'!S1007)","v":""},{"$f":"IF('1. Ordersheet'!V1007=\"\",\"\",'1. Ordersheet'!V1007)","v":""},{"$f":"IF('1. Ordersheet'!W1007=\"\",\"\",'1. Ordersheet'!W1007)","v":""},{"$f":"IF('1. Ordersheet'!X1007=\"\",\"\",'1. Ordersheet'!X1007)","v":""},{"$f":"IF('1. Ordersheet'!Y1007=\"\",\"\",'1. Ordersheet'!Y1007)","v":""},{"$f":"IF('1. Ordersheet'!Z1007=\"\",\"\",'1. Ordersheet'!Z1007)","v":""},{"$f":"IF('1. Ordersheet'!AA1007=\"\",\"\",'1. Ordersheet'!AA1007)","v":""},null,{"$f":"IF('1. Ordersheet'!AS1007=\"\",\"\",'1. Ordersheet'!AS1007)","v":""},{"$f":"IF('1. Ordersheet'!AT1007=\"\",\"\",'1. Ordersheet'!AT1007)","v":""},null,null,null,null,null,null,null,{"$f":"IF('1. Ordersheet'!AX1007=\"\",\"\",'1. Ordersheet'!AX1007)","v":""},{"$f":"IF('1. Ordersheet'!AY1007=\"\",\"\",'1. Ordersheet'!AY1007)","v":""},{"$f":"IF('1. Ordersheet'!AZ1007=\"\",\"\",'1. Ordersheet'!AZ1007)","v":""},{"$f":"IF('1. Ordersheet'!BA1007=\"\",\"\",'1. Ordersheet'!BA1007)","v":""},{"$f":"IF('1. Ordersheet'!BC1007=\"\",\"\",'1. Ordersheet'!BC1007)","v":""},{"$f":"IF('1. Ordersheet'!BD1007=\"\",\"\",'1. Ordersheet'!BD1007)","v":""},{"$f":"IF('1. Ordersheet'!BE1007=\"\",\"\",'1. Ordersheet'!BE1007)","v":""},{"$f":"IF('1. Ordersheet'!BF1007=\"\",\"\",'1. Ordersheet'!BF1007)","v":""},{"$f":"IF('1. Ordersheet'!BG1007=\"\",\"\",'1. Ordersheet'!BG1007)","v":"ZWO"},{"$f":"IF('1. Ordersheet'!BH1007=\"\",\"\",'1. Ordersheet'!BH1007)","v":""},{"$f":"IF('1. Ordersheet'!BI1007=\"\",\"\",'1. Ordersheet'!BI1007)","v":""},{"$f":"IF('1. Ordersheet'!BJ1007=\"\",\"\",'1. Ordersheet'!BJ1007)","v":""},{"$f":"IF('1. Ordersheet'!BK1007=\"\",\"\",'1. Ordersheet'!BK1007)","v":""},{"$f":"IF('1. Ordersheet'!BL1007=\"\",\"\",'1. Ordersheet'!BL1007)","v":""}]
[{"$f":"IF('1. Ordersheet'!F1008=\"\",\"\",'1. Ordersheet'!F1008)","v":""},{"$f":"IF('1. Ordersheet'!G1008=\"\",\"\",'1. Ordersheet'!G1008)","v":""},{"$f":"IF('1. Ordersheet'!H1008=\"\",\"\",'1. Ordersheet'!H1008)","v":""},{"$f":"IF('1. Ordersheet'!I1008=\"\",\"\",'1. Ordersheet'!I1008)","v":""},{"$f":"IF('1. Ordersheet'!J1008=\"\",\"\",'1. Ordersheet'!J1008)","v":""},{"$f":"IF('1. Ordersheet'!K1008=\"\",\"\",'1. Ordersheet'!K1008)","v":""},{"$f":"IF('1. Ordersheet'!L1008=\"\",\"\",'1. Ordersheet'!L1008)","v":""},{"$f":"IF('1. Ordersheet'!M1008=\"\",\"\",'1. Ordersheet'!M1008)","v":""},{"$f":"IF('1. Ordersheet'!N1008=\"\",\"\",'1. Ordersheet'!N1008)","v":""},{"$f":"IF('1. Ordersheet'!O1008=\"\",\"\",'1. Ordersheet'!O1008)","v":{"$error":"#N/A"}},{"$f":"IF('1. Ordersheet'!P1008=\"\",\"\",'1. Ordersheet'!P1008)","v":{"$error":"#N/A"}},{"$f":"IF('1. Ordersheet'!Q1008=\"\",\"\",'1. Ordersheet'!Q1008)","v":""},{"$f":"IF('1. Ordersheet'!R1008=\"\",\"\",'1. Ordersheet'!R1008)","v":""},{"$f":"IF('1. Ordersheet'!S1008=\"\",\"\",'1. Ordersheet'!S1008)","v":""},{"$f":"IF('1. Ordersheet'!V1008=\"\",\"\",'1. Ordersheet'!V1008)","v":""},{"$f":"IF('1. Ordersheet'!W1008=\"\",\"\",'1. Ordersheet'!W1008)","v":""},{"$f":"IF('1. Ordersheet'!X1008=\"\",\"\",'1. Ordersheet'!X1008)","v":""},{"$f":"IF('1. Ordersheet'!Y1008=\"\",\"\",'1. Ordersheet'!Y1008)","v":""},{"$f":"IF('1. Ordersheet'!Z1008=\"\",\"\",'1. Ordersheet'!Z1008)","v":""},{"$f":"IF('1. Ordersheet'!AA1008=\"\",\"\",'1. Ordersheet'!AA1008)","v":""},null,{"$f":"IF('1. Ordersheet'!AS1008=\"\",\"\",'1. Ordersheet'!AS1008)","v":""},{"$f":"IF('1. Ordersheet'!AT1008=\"\",\"\",'1. Ordersheet'!AT1008)","v":""},null,null,null,null,null,null,null,{"$f":"IF('1. Ordersheet'!AX1008=\"\",\"\",'1. Ordersheet'!AX1008)","v":""},{"$f":"IF('1. Ordersheet'!AY1008=\"\",\"\",'1. Ordersheet'!AY1008)","v":""},{"$f":"IF('1. Ordersheet'!AZ1008=\"\",\"\",'1. Ordersheet'!AZ1008)","v":""},{"$f":"IF('1. Ordersheet'!BA1008=\"\",\"\",'1. Ordersheet'!BA1008)","v":""},{"$f":"IF('1. Ordersheet'!BC1008=\"\",\"\",'1. Ordersheet'!BC1008)","v":""},{"$f":"IF('1. Ordersheet'!BD1008=\"\",\"\",'1. Ordersheet'!BD1008)","v":""},{"$f":"IF('1. Ordersheet'!BE1008=\"\",\"\",'1. Ordersheet'!BE1008)","v":""},{"$f":"IF('1. Ordersheet'!BF1008=\"\",\"\",'1. Ordersheet'!BF1008)","v":""},{"$f":"IF('1. Ordersheet'!BG1008=\"\",\"\",'1. Ordersheet'!BG1008)","v":"ZWO"},{"$f":"IF('1. Ordersheet'!BH1008=\"\",\"\",'1. Ordersheet'!BH1008)","v":""},{"$f":"IF('1. Ordersheet'!BI1008=\"\",\"\",'1. Ordersheet'!BI1008)","v":""},{"$f":"IF('1. Ordersheet'!BJ1008=\"\",\"\",'1. Ordersheet'!BJ1008)","v":""},{"$f":"IF('1. Ordersheet'!BK1008=\"\",\"\",'1. Ordersheet'!BK1008)","v":""},{"$f":"IF('1. Ordersheet'!BL1008=\"\",\"\",'1. Ordersheet'!BL1008)","v":""}]
[{"$f":"IF('1. Ordersheet'!F1009=\"\",\"\",'1. Ordersheet'!F1009)","v":""},{"$f":"IF('1. Ordersheet'!G1009=\"\",\"\",'1. Ordersheet'!G1009)","v":""},{"$f":"IF('1. Ordersheet'!H1009=\"\",\"\",'1. Ordersheet'!H1009)","v":""},{"$f":"IF('1. Ordersheet'!I1009=\"\",\"\",'1. Ordersheet'!I1009)","v":""},{"$f":"IF('1. Ordersheet'!J1009=\"\",\"\",'1. Ordersheet'!J1009)","v":""},{"$f":"IF('1. Ordersheet'!K1009=\"\",\"\",'1. Ordersheet'!K1009)","v":""},{"$f":"IF('1. Ordersheet'!L1009=\"\",\"\",'1. Ordersheet'!L1009)","v":""},{"$f":"IF('1. Ordersheet'!M1009=\"\",\"\",'1. Ordersheet'!M1009)","v":""},{"$f":"IF('1. Ordersheet'!N1009=\"\",\"\",'1. Ordersheet'!N1009)","v":""},{"$f":"IF('1. Ordersheet'!O1009=\"\",\"\",'1. Ordersheet'!O1009)","v":{"$error":"#N/A"}},{"$f":"IF('1. Ordersheet'!P1009=\"\",\"\",'1. Ordersheet'!P1009)","v":{"$error":"#N/A"}},{"$f":"IF('1. Ordersheet'!Q1009=\"\",\"\",'1. Ordersheet'!Q1009)","v":""},{"$f":"IF('1. Ordersheet'!R1009=\"\",\"\",'1. Ordersheet'!R1009)","v":""},{"$f":"IF('1. Ordersheet'!S1009=\"\",\"\",'1. Ordersheet'!S1009)","v":""},{"$f":"IF('1. Ordersheet'!V1009=\"\",\"\",'1. Ordersheet'!V1009)","v":""},{"$f":"IF('1. Ordersheet'!W1009=\"\",\"\",'1. Ordersheet'!W1009)","v":""},{"$f":"IF('1. Ordersheet'!X1009=\"\",\"\",'1. Ordersheet'!X1009)","v":""},{"$f":"IF('1. Ordersheet'!Y1009=\"\",\"\",'1. Ordersheet'!Y1009)","v":""},{"$f":"IF('1. Ordersheet'!Z1009=\"\",\"\",'1. Ordersheet'!Z1009)","v":""},{"$f":"IF('1. Ordersheet'!AA1009=\"\",\"\",'1. Ordersheet'!AA1009)","v":""},null,{"$f":"IF('1. Ordersheet'!AS1009=\"\",\"\",'1. Ordersheet'!AS1009)","v":""},{"$f":"IF('1. Ordersheet'!AT1009=\"\",\"\",'1. Ordersheet'!AT1009)","v":""},null,null,null,null,null,null,null,{"$f":"IF('1. Ordersheet'!AX1009=\"\",\"\",'1. Ordersheet'!AX1009)","v":""},{"$f":"IF('1. Ordersheet'!AY1009=\"\",\"\",'1. Ordersheet'!AY1009)","v":""},{"$f":"IF('1. Ordersheet'!AZ1009=\"\",\"\",'1. Ordersheet'!AZ1009)","v":""},{"$f":"IF('1. Ordersheet'!BA1009=\"\",\"\",'1. Ordersheet'!BA1009)","v":""},{"$f":"IF('1. Ordersheet'!BC1009=\"\",\"\",'1. Ordersheet'!BC1009)","v":""},{"$f":"IF('1. Ordersheet'!BD1009=\"\",\"\",'1. Ordersheet'!BD1009)","v":""},{"$f":"IF('1. Ordersheet'!BE1009=\"\",\"\",'1. Ordersheet'!BE1009)","v":""},{"$f":"IF('1. Ordersheet'!BF1009=\"\",\"\",'1. Ordersheet'!BF1009)","v":""},{"$f":"IF('1. Ordersheet'!BG1009=\"\",\"\",'1. Ordersheet'!BG1009)","v":"ZWO"},{"$f":"IF('1. Ordersheet'!BH1009=\"\",\"\",'1. Ordersheet'!BH1009)","v":""},{"$f":"IF('1. Ordersheet'!BI1009=\"\",\"\",'1. Ordersheet'!BI1009)","v":""},{"$f":"IF('1. Ordersheet'!BJ1009=\"\",\"\",'1. Ordersheet'!BJ1009)","v":""},{"$f":"IF('1. Ordersheet'!BK1009=\"\",\"\",'1. Ordersheet'!BK1009)","v":""},{"$f":"IF('1. Ordersheet'!BL1009=\"\",\"\",'1. Ordersheet'!BL1009)","v":""}]
[{"$f":"IF('1. Ordersheet'!F1010=\"\",\"\",'1. Ordersheet'!F1010)","v":""},{"$f":"IF('1. Ordersheet'!G1010=\"\",\"\",'1. Ordersheet'!G1010)","v":""},{"$f":"IF('1. Ordersheet'!H1010=\"\",\"\",'1. Ordersheet'!H1010)","v":""},{"$f":"IF('1. Ordersheet'!I1010=\"\",\"\",'1. Ordersheet'!I1010)","v":""},{"$f":"IF('1. Ordersheet'!J1010=\"\",\"\",'1. Ordersheet'!J1010)","v":""},{"$f":"IF('1. Ordersheet'!K1010=\"\",\"\",'1. Ordersheet'!K1010)","v":""},{"$f":"IF('1. Ordersheet'!L1010=\"\",\"\",'1. Ordersheet'!L1010)","v":""},{"$f":"IF('1. Ordersheet'!M1010=\"\",\"\",'1. Ordersheet'!M1010)","v":""},{"$f":"IF('1. Ordersheet'!N1010=\"\",\"\",'1. Ordersheet'!N1010)","v":""},{"$f":"IF('1. Ordersheet'!O1010=\"\",\"\",'1. Ordersheet'!O1010)","v":{"$error":"#N/A"}},{"$f":"IF('1. Ordersheet'!P1010=\"\",\"\",'1. Ordersheet'!P1010)","v":{"$error":"#N/A"}},{"$f":"IF('1. Ordersheet'!Q1010=\"\",\"\",'1. Ordersheet'!Q1010)","v":""},{"$f":"IF('1. Ordersheet'!R1010=\"\",\"\",'1. Ordersheet'!R1010)","v":""},{"$f":"IF('1. Ordersheet'!S1010=\"\",\"\",'1. Ordersheet'!S1010)","v":""},{"$f":"IF('1. Ordersheet'!V1010=\"\",\"\",'1. Ordersheet'!V1010)","v":""},{"$f":"IF('1. Ordersheet'!W1010=\"\",\"\",'1. Ordersheet'!W1010)","v":""},{"$f":"IF('1. Ordersheet'!X1010=\"\",\"\",'1. Ordersheet'!X1010)","v":""},{"$f":"IF('1. Ordersheet'!Y1010=\"\",\"\",'1. Ordersheet'!Y1010)","v":""},{"$f":"IF('1. Ordersheet'!Z1010=\"\",\"\",'1. Ordersheet'!Z1010)","v":""},{"$f":"IF('1. Ordersheet'!AA1010=\"\",\"\",'1. Ordersheet'!AA1010)","v":""},null,{"$f":"IF('1. Ordersheet'!AS1010=\"\",\"\",'1. Ordersheet'!AS1010)","v":""},{"$f":"IF('1. Ordersheet'!AT1010=\"\",\"\",'1. Ordersheet'!AT1010)","v":""},null,null,null,null,null,null,null,{"$f":"IF('1. Ordersheet'!AX1010=\"\",\"\",'1. Ordersheet'!AX1010)","v":""},{"$f":"IF('1. Ordersheet'!AY1010=\"\",\"\",'1. Ordersheet'!AY1010)","v":""},{"$f":"IF('1. Ordersheet'!AZ1010=\"\",\"\",'1. Ordersheet'!AZ1010)","v":""},{"$f":"IF('1. Ordersheet'!BA1010=\"\",\"\",'1. Ordersheet'!BA1010)","v":""},{"$f":"IF('1. Ordersheet'!BC1010=\"\",\"\",'1. Ordersheet'!BC1010)","v":""},{"$f":"IF('1. Ordersheet'!BD1010=\"\",\"\",'1. Ordersheet'!BD1010)","v":""},{"$f":"IF('1. Ordersheet'!BE1010=\"\",\"\",'1. Ordersheet'!BE1010)","v":""},{"$f":"IF('1. Ordersheet'!BF1010=\"\",\"\",'1. Ordersheet'!BF1010)","v":""},{"$f":"IF('1. Ordersheet'!BG1010=\"\",\"\",'1. Ordersheet'!BG1010)","v":"ZWO"},{"$f":"IF('1. Ordersheet'!BH1010=\"\",\"\",'1. Ordersheet'!BH1010)","v":""},{"$f":"IF('1. Ordersheet'!BI1010=\"\",\"\",'1. Ordersheet'!BI1010)","v":""},{"$f":"IF('1. Ordersheet'!BJ1010=\"\",\"\",'1. Ordersheet'!BJ1010)","v":""},{"$f":"IF('1. Ordersheet'!BK1010=\"\",\"\",'1. Ordersheet'!BK1010)","v":""},{"$f":"IF('1. Ordersheet'!BL1010=\"\",\"\",'1. Ordersheet'!BL1010)","v":""}]
[{"$f":"IF('1. Ordersheet'!F1011=\"\",\"\",'1. Ordersheet'!F1011)","v":""},{"$f":"IF('1. Ordersheet'!G1011=\"\",\"\",'1. Ordersheet'!G1011)","v":""},{"$f":"IF('1. Ordersheet'!H1011=\"\",\"\",'1. Ordersheet'!H1011)","v":""},{"$f":"IF('1. Ordersheet'!I1011=\"\",\"\",'1. Ordersheet'!I1011)","v":""},{"$f":"IF('1. Ordersheet'!J1011=\"\",\"\",'1. Ordersheet'!J1011)","v":""},{"$f":"IF('1. Ordersheet'!K1011=\"\",\"\",'1. Ordersheet'!K1011)","v":""},{"$f":"IF('1. Ordersheet'!L1011=\"\",\"\",'1. Ordersheet'!L1011)","v":""},{"$f":"IF('1. Ordersheet'!M1011=\"\",\"\",'1. Ordersheet'!M1011)","v":""},{"$f":"IF('1. Ordersheet'!N1011=\"\",\"\",'1. Ordersheet'!N1011)","v":""},{"$f":"IF('1. Ordersheet'!O1011=\"\",\"\",'1. Ordersheet'!O1011)","v":{"$error":"#N/A"}},{"$f":"IF('1. Ordersheet'!P1011=\"\",\"\",'1. Ordersheet'!P1011)","v":{"$error":"#N/A"}},{"$f":"IF('1. Ordersheet'!Q1011=\"\",\"\",'1. Ordersheet'!Q1011)","v":""},{"$f":"IF('1. Ordersheet'!R1011=\"\",\"\",'1. Ordersheet'!R1011)","v":""},{"$f":"IF('1. Ordersheet'!S1011=\"\",\"\",'1. Ordersheet'!S1011)","v":""},{"$f":"IF('1. Ordersheet'!V1011=\"\",\"\",'1. Ordersheet'!V1011)","v":""},{"$f":"IF('1. Ordersheet'!W1011=\"\",\"\",'1. Ordersheet'!W1011)","v":""},{"$f":"IF('1. Ordersheet'!X1011=\"\",\"\",'1. Ordersheet'!X1011)","v":""},{"$f":"IF('1. Ordersheet'!Y1011=\"\",\"\",'1. Ordersheet'!Y1011)","v":""},{"$f":"IF('1. Ordersheet'!Z1011=\"\",\"\",'1. Ordersheet'!Z1011)","v":""},{"$f":"IF('1. Ordersheet'!AA1011=\"\",\"\",'1. Ordersheet'!AA1011)","v":""},null,{"$f":"IF('1. Ordersheet'!AS1011=\"\",\"\",'1. Ordersheet'!AS1011)","v":""},{"$f":"IF('1. Ordersheet'!AT1011=\"\",\"\",'1. Ordersheet'!AT1011)","v":""},null,null,null,null,null,null,null,{"$f":"IF('1. Ordersheet'!AX1011=\"\",\"\",'1. Ordersheet'!AX1011)","v":""},{"$f":"IF('1. Ordersheet'!AY1011=\"\",\"\",'1. Ordersheet'!AY1011)","v":""},{"$f":"IF('1. Ordersheet'!AZ1011=\"\",\"\",'1. Ordersheet'!AZ1011)","v":""},{"$f":"IF('1. Ordersheet'!BA1011=\"\",\"\",'1. Ordersheet'!BA1011)","v":""},{"$f":"IF('1. Ordersheet'!BC1011=\"\",\"\",'1. Ordersheet'!BC1011)","v":""},{"$f":"IF('1. Ordersheet'!BD1011=\"\",\"\",'1. Ordersheet'!BD1011)","v":""},{"$f":"IF('1. Ordersheet'!BE1011=\"\",\"\",'1. Ordersheet'!BE1011)","v":""},{"$f":"IF('1. Ordersheet'!BF1011=\"\",\"\",'1. Ordersheet'!BF1011)","v":""},{"$f":"IF('1. Ordersheet'!BG1011=\"\",\"\",'1. Ordersheet'!BG1011)","v":"ZWO"},{"$f":"IF('1. Ordersheet'!BH1011=\"\",\"\",'1. Ordersheet'!BH1011)","v":""},{"$f":"IF('1. Ordersheet'!BI1011=\"\",\"\",'1. Ordersheet'!BI1011)","v":""},{"$f":"IF('1. Ordersheet'!BJ1011=\"\",\"\",'1. Ordersheet'!BJ1011)","v":""},{"$f":"IF('1. Ordersheet'!BK1011=\"\",\"\",'1. Ordersheet'!BK1011)","v":""},{"$f":"IF('1. Ordersheet'!BL1011=\"\",\"\",'1. Ordersheet'!BL1011)","v":""}]
[{"$f":"IF('1. Ordersheet'!F1012=\"\",\"\",'1. Ordersheet'!F1012)","v":""},{"$f":"IF('1. Ordersheet'!G1012=\"\",\"\",'1. Ordersheet'!G1012)","v":""},{"$f":"IF('1. Ordersheet'!H1012=\"\",\"\",'1. Ordersheet'!H1012)","v":""},{"$f":"IF('1. Ordersheet'!I1012=\"\",\"\",'1. Ordersheet'!I1012)","v":""},{"$f":"IF('1. Ordersheet'!J1012=\"\",\"\",'1. Ordersheet'!J1012)","v":""},{"$f":"IF('1. Ordersheet'!K1012=\"\",\"\",'1. Ordersheet'!K1012)","v":""},{"$f":"IF('1. Ordersheet'!L1012=\"\",\"\",'1. Ordersheet'!L1012)","v":""},{"$f":"IF('1. Ordersheet'!M1012=\"\",\"\",'1. Ordersheet'!M1012)","v":""},{"$f":"IF('1. Ordersheet'!N1012=\"\",\"\",'1. Ordersheet'!N1012)","v":""},{"$f":"IF('1. Ordersheet'!O1012=\"\",\"\",'1. Ordersheet'!O1012)","v":{"$error":"#N/A"}},{"$f":"IF('1. Ordersheet'!P1012=\"\",\"\",'1. Ordersheet'!P1012)","v":{"$error":"#N/A"}},{"$f":"IF('1. Ordersheet'!Q1012=\"\",\"\",'1. Ordersheet'!Q1012)","v":""},{"$f":"IF('1. Ordersheet'!R1012=\"\",\"\",'1. Ordersheet'!R1012)","v":""},{"$f":"IF('1. Ordersheet'!S1012=\"\",\"\",'1. Ordersheet'!S1012)","v":""},{"$f":"IF('1. Ordersheet'!V1012=\"\",\"\",'1. Ordersheet'!V1012)","v":""},{"$f":"IF('1. Ordersheet'!W1012=\"\",\"\",'1. Ordersheet'!W1012)","v":""},{"$f":"IF('1. Ordersheet'!X1012=\"\",\"\",'1. Ordersheet'!X1012)","v":""},{"$f":"IF('1. Ordersheet'!Y1012=\"\",\"\",'1. Ordersheet'!Y1012)","v":""},{"$f":"IF('1. Ordersheet'!Z1012=\"\",\"\",'1. Ordersheet'!Z1012)","v":""},{"$f":"IF('1. Ordersheet'!AA1012=\"\",\"\",'1. Ordersheet'!AA1012)","v":""},null,{"$f":"IF('1. Ordersheet'!AS1012=\"\",\"\",'1. Ordersheet'!AS1012)","v":""},{"$f":"IF('1. Ordersheet'!AT1012=\"\",\"\",'1. Ordersheet'!AT1012)","v":""},null,null,null,null,null,null,null,{"$f":"IF('1. Ordersheet'!AX1012=\"\",\"\",'1. Ordersheet'!AX1012)","v":""},{"$f":"IF('1. Ordersheet'!AY1012=\"\",\"\",'1. Ordersheet'!AY1012)","v":""},{"$f":"IF('1. Ordersheet'!AZ1012=\"\",\"\",'1. Ordersheet'!AZ1012)","v":""},{"$f":"IF('1. Ordersheet'!BA1012=\"\",\"\",'1. Ordersheet'!BA1012)","v":""},{"$f":"IF('1. Ordersheet'!BC1012=\"\",\"\",'1. Ordersheet'!BC1012)","v":""},{"$f":"IF('1. Ordersheet'!BD1012=\"\",\"\",'1. Ordersheet'!BD1012)","v":""},{"$f":"IF('1. Ordersheet'!BE1012=\"\",\"\",'1. Ordersheet'!BE1012)","v":""},{"$f":"IF('1. Ordersheet'!BF1012=\"\",\"\",'1. Ordersheet'!BF1012)","v":""},{"$f":"IF('1. Ordersheet'!BG1012=\"\",\"\",'1. Ordersheet'!BG1012)","v":"ZWO"},{"$f":"IF('1. Ordersheet'!BH1012=\"\",\"\",'1. Ordersheet'!BH1012)","v":""},{"$f":"IF('1. Ordersheet'!BI1012=\"\",\"\",'1. Ordersheet'!BI1012)","v":""},{"$f":"IF('1. Ordersheet'!BJ1012=\"\",\"\",'1. Ordersheet'!BJ1012)","v":""},{"$f":"IF('1. Ordersheet'!BK1012=\"\",\"\",'1. Ordersheet'!BK1012)","v":""},{"$f":"IF('1. Ordersheet'!BL1012=\"\",\"\",'1. Ordersheet'!BL1012)","v":""}]
[{"$f":"IF('1. Ordersheet'!F1013=\"\",\"\",'1. Ordersheet'!F1013)","v":""},{"$f":"IF('1. Ordersheet'!G1013=\"\",\"\",'1. Ordersheet'!G1013)","v":""},{"$f":"IF('1. Ordersheet'!H1013=\"\",\"\",'1. Ordersheet'!H1013)","v":""},{"$f":"IF('1. Ordersheet'!I1013=\"\",\"\",'1. Ordersheet'!I1013)","v":""},{"$f":"IF('1. Ordersheet'!J1013=\"\",\"\",'1. Ordersheet'!J1013)","v":""},{"$f":"IF('1. Ordersheet'!K1013=\"\",\"\",'1. Ordersheet'!K1013)","v":""},{"$f":"IF('1. Ordersheet'!L1013=\"\",\"\",'1. Ordersheet'!L1013)","v":""},{"$f":"IF('1. Ordersheet'!M1013=\"\",\"\",'1. Ordersheet'!M1013)","v":""},{"$f":"IF('1. Ordersheet'!N1013=\"\",\"\",'1. Ordersheet'!N1013)","v":""},{"$f":"IF('1. Ordersheet'!O1013=\"\",\"\",'1. Ordersheet'!O1013)","v":{"$error":"#N/A"}},{"$f":"IF('1. Ordersheet'!P1013=\"\",\"\",'1. Ordersheet'!P1013)","v":{"$error":"#N/A"}},{"$f":"IF('1. Ordersheet'!Q1013=\"\",\"\",'1. Ordersheet'!Q1013)","v":""},{"$f":"IF('1. Ordersheet'!R1013=\"\",\"\",'1. Ordersheet'!R1013)","v":""},{"$f":"IF('1. Ordersheet'!S1013=\"\",\"\",'1. Ordersheet'!S1013)","v":""},{"$f":"IF('1. Ordersheet'!V1013=\"\",\"\",'1. Ordersheet'!V1013)","v":""},{"$f":"IF('1. Ordersheet'!W1013=\"\",\"\",'1. Ordersheet'!W1013)","v":""},{"$f":"IF('1. Ordersheet'!X1013=\"\",\"\",'1. Ordersheet'!X1013)","v":""},{"$f":"IF('1. Ordersheet'!Y1013=\"\",\"\",'1. Ordersheet'!Y1013)","v":""},{"$f":"IF('1. Ordersheet'!Z1013=\"\",\"\",'1. Ordersheet'!Z1013)","v":""},{"$f":"IF('1. Ordersheet'!AA1013=\"\",\"\",'1. Ordersheet'!AA1013)","v":""},null,{"$f":"IF('1. Ordersheet'!AS1013=\"\",\"\",'1. Ordersheet'!AS1013)","v":""},{"$f":"IF('1. Ordersheet'!AT1013=\"\",\"\",'1. Ordersheet'!AT1013)","v":""},null,null,null,null,null,null,null,{"$f":"IF('1. Ordersheet'!AX1013=\"\",\"\",'1. Ordersheet'!AX1013)","v":""},{"$f":"IF('1. Ordersheet'!AY1013=\"\",\"\",'1. Ordersheet'!AY1013)","v":""},{"$f":"IF('1. Ordersheet'!AZ1013=\"\",\"\",'1. Ordersheet'!AZ1013)","v":""},{"$f":"IF('1. Ordersheet'!BA1013=\"\",\"\",'1. Ordersheet'!BA1013)","v":""},{"$f":"IF('1. Ordersheet'!BC1013=\"\",\"\",'1. Ordersheet'!BC1013)","v":""},{"$f":"IF('1. Ordersheet'!BD1013=\"\",\"\",'1. Ordersheet'!BD1013)","v":""},{"$f":"IF('1. Ordersheet'!BE1013=\"\",\"\",'1. Ordersheet'!BE1013)","v":""},{"$f":"IF('1. Ordersheet'!BF1013=\"\",\"\",'1. Ordersheet'!BF1013)","v":""},{"$f":"IF('1. Ordersheet'!BG1013=\"\",\"\",'1. Ordersheet'!BG1013)","v":"ZWO"},{"$f":"IF('1. Ordersheet'!BH1013=\"\",\"\",'1. Ordersheet'!BH1013)","v":""},{"$f":"IF('1. Ordersheet'!BI1013=\"\",\"\",'1. Ordersheet'!BI1013)","v":""},{"$f":"IF('1. Ordersheet'!BJ1013=\"\",\"\",'1. Ordersheet'!BJ1013)","v":""},{"$f":"IF('1. Ordersheet'!BK1013=\"\",\"\",'1. Ordersheet'!BK1013)","v":""},{"$f":"IF('1. Ordersheet'!BL1013=\"\",\"\",'1. Ordersheet'!BL1013)","v":""}]
[{"$f":"IF('1. Ordersheet'!F1014=\"\",\"\",'1. Ordersheet'!F1014)","v":""},{"$f":"IF('1. Ordersheet'!G1014=\"\",\"\",'1. Ordersheet'!G1014)","v":""},{"$f":"IF('1. Ordersheet'!H1014=\"\",\"\",'1. Ordersheet'!H1014)","v":""},{"$f":"IF('1. Ordersheet'!I1014=\"\",\"\",'1. Ordersheet'!I1014)","v":""},{"$f":"IF('1. Ordersheet'!J1014=\"\",\"\",'1. Ordersheet'!J1014)","v":""},{"$f":"IF('1. Ordersheet'!K1014=\"\",\"\",'1. Ordersheet'!K1014)","v":""},{"$f":"IF('1. Ordersheet'!L1014=\"\",\"\",'1. Ordersheet'!L1014)","v":""},{"$f":"IF('1. Ordersheet'!M1014=\"\",\"\",'1. Ordersheet'!M1014)","v":""},{"$f":"IF('1. Ordersheet'!N1014=\"\",\"\",'1. Ordersheet'!N1014)","v":""},{"$f":"IF('1. Ordersheet'!O1014=\"\",\"\",'1. Ordersheet'!O1014)","v":{"$error":"#N/A"}},{"$f":"IF('1. Ordersheet'!P1014=\"\",\"\",'1. Ordersheet'!P1014)","v":{"$error":"#N/A"}},{"$f":"IF('1. Ordersheet'!Q1014=\"\",\"\",'1. Ordersheet'!Q1014)","v":""},{"$f":"IF('1. Ordersheet'!R1014=\"\",\"\",'1. Ordersheet'!R1014)","v":""},{"$f":"IF('1. Ordersheet'!S1014=\"\",\"\",'1. Ordersheet'!S1014)","v":""},{"$f":"IF('1. Ordersheet'!V1014=\"\",\"\",'1. Ordersheet'!V1014)","v":""},{"$f":"IF('1. Ordersheet'!W1014=\"\",\"\",'1. Ordersheet'!W1014)","v":""},{"$f":"IF('1. Ordersheet'!X1014=\"\",\"\",'1. Ordersheet'!X1014)","v":""},{"$f":"IF('1. Ordersheet'!Y1014=\"\",\"\",'1. Ordersheet'!Y1014)","v":""},{"$f":"IF('1. Ordersheet'!Z1014=\"\",\"\",'1. Ordersheet'!Z1014)","v":""},{"$f":"IF('1. Ordersheet'!AA1014=\"\",\"\",'1. Ordersheet'!AA1014)","v":""},null,{"$f":"IF('1. Ordersheet'!AS1014=\"\",\"\",'1. Ordersheet'!AS1014)","v":""},{"$f":"IF('1. Ordersheet'!AT1014=\"\",\"\",'1. Ordersheet'!AT1014)","v":""},null,null,null,null,null,null,null,{"$f":"IF('1. Ordersheet'!AX1014=\"\",\"\",'1. Ordersheet'!AX1014)","v":""},{"$f":"IF('1. Ordersheet'!AY1014=\"\",\"\",'1. Ordersheet'!AY1014)","v":""},{"$f":"IF('1. Ordersheet'!AZ1014=\"\",\"\",'1. Ordersheet'!AZ1014)","v":""},{"$f":"IF('1. Ordersheet'!BA1014=\"\",\"\",'1. Ordersheet'!BA1014)","v":""},{"$f":"IF('1. Ordersheet'!BC1014=\"\",\"\",'1. Ordersheet'!BC1014)","v":""},{"$f":"IF('1. Ordersheet'!BD1014=\"\",\"\",'1. Ordersheet'!BD1014)","v":""},{"$f":"IF('1. Ordersheet'!BE1014=\"\",\"\",'1. Ordersheet'!BE1014)","v":""},{"$f":"IF('1. Ordersheet'!BF1014=\"\",\"\",'1. Ordersheet'!BF1014)","v":""},{"$f":"IF('1. Ordersheet'!BG1014=\"\",\"\",'1. Ordersheet'!BG1014)","v":"ZWO"},{"$f":"IF('1. Ordersheet'!BH1014=\"\",\"\",'1. Ordersheet'!BH1014)","v":""},{"$f":"IF('1. Ordersheet'!BI1014=\"\",\"\",'1. Ordersheet'!BI1014)","v":""},{"$f":"IF('1. Ordersheet'!BJ1014=\"\",\"\",'1. Ordersheet'!BJ1014)","v":""},{"$f":"IF('1. Ordersheet'!BK1014=\"\",\"\",'1. Ordersheet'!BK1014)","v":""},{"$f":"IF('1. Ordersheet'!BL1014=\"\",\"\",'1. Ordersheet'!BL1014)","v":""}]
[{"$f":"IF('1. Ordersheet'!F1015=\"\",\"\",'1. Ordersheet'!F1015)","v":""},{"$f":"IF('1. Ordersheet'!G1015=\"\",\"\",'1. Ordersheet'!G1015)","v":""},{"$f":"IF('1. Ordersheet'!H1015=\"\",\"\",'1. Ordersheet'!H1015)","v":""},{"$f":"IF('1. Ordersheet'!I1015=\"\",\"\",'1. Ordersheet'!I1015)","v":""},{"$f":"IF('1. Ordersheet'!J1015=\"\",\"\",'1. Ordersheet'!J1015)","v":""},{"$f":"IF('1. Ordersheet'!K1015=\"\",\"\",'1. Ordersheet'!K1015)","v":""},{"$f":"IF('1. Ordersheet'!L1015=\"\",\"\",'1. Ordersheet'!L1015)","v":""},{"$f":"IF('1. Ordersheet'!M1015=\"\",\"\",'1. Ordersheet'!M1015)","v":""},{"$f":"IF('1. Ordersheet'!N1015=\"\",\"\",'1. Ordersheet'!N1015)","v":""},{"$f":"IF('1. Ordersheet'!O1015=\"\",\"\",'1. Ordersheet'!O1015)","v":{"$error":"#N/A"}},{"$f":"IF('1. Ordersheet'!P1015=\"\",\"\",'1. Ordersheet'!P1015)","v":{"$error":"#N/A"}},{"$f":"IF('1. Ordersheet'!Q1015=\"\",\"\",'1. Ordersheet'!Q1015)","v":""},{"$f":"IF('1. Ordersheet'!R1015=\"\",\"\",'1. Ordersheet'!R1015)","v":""},{"$f":"IF('1. Ordersheet'!S1015=\"\",\"\",'1. Ordersheet'!S1015)","v":""},{"$f":"IF('1. Ordersheet'!V1015=\"\",\"\",'1. Ordersheet'!V1015)","v":""},{"$f":"IF('1. Ordersheet'!W1015=\"\",\"\",'1. Ordersheet'!W1015)","v":""},{"$f":"IF('1. Ordersheet'!X1015=\"\",\"\",'1. Ordersheet'!X1015)","v":""},{"$f":"IF('1. Ordersheet'!Y1015=\"\",\"\",'1. Ordersheet'!Y1015)","v":""},{"$f":"IF('1. Ordersheet'!Z1015=\"\",\"\",'1. Ordersheet'!Z1015)","v":""},{"$f":"IF('1. Ordersheet'!AA1015=\"\",\"\",'1. Ordersheet'!AA1015)","v":""},null,{"$f":"IF('1. Ordersheet'!AS1015=\"\",\"\",'1. Ordersheet'!AS1015)","v":""},{"$f":"IF('1. Ordersheet'!AT1015=\"\",\"\",'1. Ordersheet'!AT1015)","v":""},null,null,null,null,null,null,null,{"$f":"IF('1. Ordersheet'!AX1015=\"\",\"\",'1. Ordersheet'!AX1015)","v":""},{"$f":"IF('1. Ordersheet'!AY1015=\"\",\"\",'1. Ordersheet'!AY1015)","v":""},{"$f":"IF('1. Ordersheet'!AZ1015=\"\",\"\",'1. Ordersheet'!AZ1015)","v":""},{"$f":"IF('1. Ordersheet'!BA1015=\"\",\"\",'1. Ordersheet'!BA1015)","v":""},{"$f":"IF('1. Ordersheet'!BC1015=\"\",\"\",'1. Ordersheet'!BC1015)","v":""},{"$f":"IF('1. Ordersheet'!BD1015=\"\",\"\",'1. Ordersheet'!BD1015)","v":""},{"$f":"IF('1. Ordersheet'!BE1015=\"\",\"\",'1. Ordersheet'!BE1015)","v":""},{"$f":"IF('1. Ordersheet'!BF1015=\"\",\"\",'1. Ordersheet'!BF1015)","v":""},{"$f":"IF('1. Ordersheet'!BG1015=\"\",\"\",'1. Ordersheet'!BG1015)","v":"ZWO"},{"$f":"IF('1. Ordersheet'!BH1015=\"\",\"\",'1. Ordersheet'!BH1015)","v":""},{"$f":"IF('1. Ordersheet'!BI1015=\"\",\"\",'1. Ordersheet'!BI1015)","v":""},{"$f":"IF('1. Ordersheet'!BJ1015=\"\",\"\",'1. Ordersheet'!BJ1015)","v":""},{"$f":"IF('1. Ordersheet'!BK1015=\"\",\"\",'1. Ordersheet'!BK1015)","v":""},{"$f":"IF('1. Ordersheet'!BL1015=\"\",\"\",'1. Ordersheet'!BL1015)","v":""}]
[{"$f":"IF('1. Ordersheet'!F1016=\"\",\"\",'1. Ordersheet'!F1016)","v":""},{"$f":"IF('1. Ordersheet'!G1016=\"\",\"\",'1. Ordersheet'!G1016)","v":""},{"$f":"IF('1. Ordersheet'!H1016=\"\",\"\",'1. Ordersheet'!H1016)","v":""},{"$f":"IF('1. Ordersheet'!I1016=\"\",\"\",'1. Ordersheet'!I1016)","v":""},{"$f":"IF('1. Ordersheet'!J1016=\"\",\"\",'1. Ordersheet'!J1016)","v":""},{"$f":"IF('1. Ordersheet'!K1016=\"\",\"\",'1. Ordersheet'!K1016)","v":""},{"$f":"IF('1. Ordersheet'!L1016=\"\",\"\",'1. Ordersheet'!L1016)","v":""},{"$f":"IF('1. Ordersheet'!M1016=\"\",\"\",'1. Ordersheet'!M1016)","v":""},{"$f":"IF('1. Ordersheet'!N1016=\"\",\"\",'1. Ordersheet'!N1016)","v":""},{"$f":"IF('1. Ordersheet'!O1016=\"\",\"\",'1. Ordersheet'!O1016)","v":{"$error":"#N/A"}},{"$f":"IF('1. Ordersheet'!P1016=\"\",\"\",'1. Ordersheet'!P1016)","v":{"$error":"#N/A"}},{"$f":"IF('1. Ordersheet'!Q1016=\"\",\"\",'1. Ordersheet'!Q1016)","v":""},{"$f":"IF('1. Ordersheet'!R1016=\"\",\"\",'1. Ordersheet'!R1016)","v":""},{"$f":"IF('1. Ordersheet'!S1016=\"\",\"\",'1. Ordersheet'!S1016)","v":""},{"$f":"IF('1. Ordersheet'!V1016=\"\",\"\",'1. Ordersheet'!V1016)","v":""},{"$f":"IF('1. Ordersheet'!W1016=\"\",\"\",'1. Ordersheet'!W1016)","v":""},{"$f":"IF('1. Ordersheet'!X1016=\"\",\"\",'1. Ordersheet'!X1016)","v":""},{"$f":"IF('1. Ordersheet'!Y1016=\"\",\"\",'1. Ordersheet'!Y1016)","v":""},{"$f":"IF('1. Ordersheet'!Z1016=\"\",\"\",'1. Ordersheet'!Z1016)","v":""},{"$f":"IF('1. Ordersheet'!AA1016=\"\",\"\",'1. Ordersheet'!AA1016)","v":""},null,{"$f":"IF('1. Ordersheet'!AS1016=\"\",\"\",'1. Ordersheet'!AS1016)","v":""},{"$f":"IF('1. Ordersheet'!AT1016=\"\",\"\",'1. Ordersheet'!AT1016)","v":""},null,null,null,null,null,null,null,{"$f":"IF('1. Ordersheet'!AX1016=\"\",\"\",'1. Ordersheet'!AX1016)","v":""},{"$f":"IF('1. Ordersheet'!AY1016=\"\",\"\",'1. Ordersheet'!AY1016)","v":""},{"$f":"IF('1. Ordersheet'!AZ1016=\"\",\"\",'1. Ordersheet'!AZ1016)","v":""},{"$f":"IF('1. Ordersheet'!BA1016=\"\",\"\",'1. Ordersheet'!BA1016)","v":""},{"$f":"IF('1. Ordersheet'!BC1016=\"\",\"\",'1. Ordersheet'!BC1016)","v":""},{"$f":"IF('1. Ordersheet'!BD1016=\"\",\"\",'1. Ordersheet'!BD1016)","v":""},{"$f":"IF('1. Ordersheet'!BE1016=\"\",\"\",'1. Ordersheet'!BE1016)","v":""},{"$f":"IF('1. Ordersheet'!BF1016=\"\",\"\",'1. Ordersheet'!BF1016)","v":""},{"$f":"IF('1. Ordersheet'!BG1016=\"\",\"\",'1. Ordersheet'!BG1016)","v":"ZWO"},{"$f":"IF('1. Ordersheet'!BH1016=\"\",\"\",'1. Ordersheet'!BH1016)","v":""},{"$f":"IF('1. Ordersheet'!BI1016=\"\",\"\",'1. Ordersheet'!BI1016)","v":""},{"$f":"IF('1. Ordersheet'!BJ1016=\"\",\"\",'1. Ordersheet'!BJ1016)","v":""},{"$f":"IF('1. Ordersheet'!BK1016=\"\",\"\",'1. Ordersheet'!BK1016)","v":""},{"$f":"IF('1. Ordersheet'!BL1016=\"\",\"\",'1. Ordersheet'!BL1016)","v":""}]
[{"$f":"IF('1. Ordersheet'!F1017=\"\",\"\",'1. Ordersheet'!F1017)","v":""},{"$f":"IF('1. Ordersheet'!G1017=\"\",\"\",'1. Ordersheet'!G1017)","v":""},{"$f":"IF('1. Ordersheet'!H1017=\"\",\"\",'1. Ordersheet'!H1017)","v":""},{"$f":"IF('1. Ordersheet'!I1017=\"\",\"\",'1. Ordersheet'!I1017)","v":""},{"$f":"IF('1. Ordersheet'!J1017=\"\",\"\",'1. Ordersheet'!J1017)","v":""},{"$f":"IF('1. Ordersheet'!K1017=\"\",\"\",'1. Ordersheet'!K1017)","v":""},{"$f":"IF('1. Ordersheet'!L1017=\"\",\"\",'1. Ordersheet'!L1017)","v":""},{"$f":"IF('1. Ordersheet'!M1017=\"\",\"\",'1. Ordersheet'!M1017)","v":""},{"$f":"IF('1. Ordersheet'!N1017=\"\",\"\",'1. Ordersheet'!N1017)","v":""},{"$f":"IF('1. Ordersheet'!O1017=\"\",\"\",'1. Ordersheet'!O1017)","v":{"$error":"#N/A"}},{"$f":"IF('1. Ordersheet'!P1017=\"\",\"\",'1. Ordersheet'!P1017)","v":{"$error":"#N/A"}},{"$f":"IF('1. Ordersheet'!Q1017=\"\",\"\",'1. Ordersheet'!Q1017)","v":""},{"$f":"IF('1. Ordersheet'!R1017=\"\",\"\",'1. Ordersheet'!R1017)","v":""},{"$f":"IF('1. Ordersheet'!S1017=\"\",\"\",'1. Ordersheet'!S1017)","v":""},{"$f":"IF('1. Ordersheet'!V1017=\"\",\"\",'1. Ordersheet'!V1017)","v":""},{"$f":"IF('1. Ordersheet'!W1017=\"\",\"\",'1. Ordersheet'!W1017)","v":""},{"$f":"IF('1. Ordersheet'!X1017=\"\",\"\",'1. Ordersheet'!X1017)","v":""},{"$f":"IF('1. Ordersheet'!Y1017=\"\",\"\",'1. Ordersheet'!Y1017)","v":""},{"$f":"IF('1. Ordersheet'!Z1017=\"\",\"\",'1. Ordersheet'!Z1017)","v":""},{"$f":"IF('1. Ordersheet'!AA1017=\"\",\"\",'1. Ordersheet'!AA1017)","v":""},null,{"$f":"IF('1. Ordersheet'!AS1017=\"\",\"\",'1. Ordersheet'!AS1017)","v":""},{"$f":"IF('1. Ordersheet'!AT1017=\"\",\"\",'1. Ordersheet'!AT1017)","v":""},null,null,null,null,null,null,null,{"$f":"IF('1. Ordersheet'!AX1017=\"\",\"\",'1. Ordersheet'!AX1017)","v":""},{"$f":"IF('1. Ordersheet'!AY1017=\"\",\"\",'1. Ordersheet'!AY1017)","v":""},{"$f":"IF('1. Ordersheet'!AZ1017=\"\",\"\",'1. Ordersheet'!AZ1017)","v":""},{"$f":"IF('1. Ordersheet'!BA1017=\"\",\"\",'1. Ordersheet'!BA1017)","v":""},{"$f":"IF('1. Ordersheet'!BC1017=\"\",\"\",'1. Ordersheet'!BC1017)","v":""},{"$f":"IF('1. Ordersheet'!BD1017=\"\",\"\",'1. Ordersheet'!BD1017)","v":""},{"$f":"IF('1. Ordersheet'!BE1017=\"\",\"\",'1. Ordersheet'!BE1017)","v":""},{"$f":"IF('1. Ordersheet'!BF1017=\"\",\"\",'1. Ordersheet'!BF1017)","v":""},{"$f":"IF('1. Ordersheet'!BG1017=\"\",\"\",'1. Ordersheet'!BG1017)","v":"ZWO"},{"$f":"IF('1. Ordersheet'!BH1017=\"\",\"\",'1. Ordersheet'!BH1017)","v":""},{"$f":"IF('1. Ordersheet'!BI1017=\"\",\"\",'1. Ordersheet'!BI1017)","v":""},{"$f":"IF('1. Ordersheet'!BJ1017=\"\",\"\",'1. Ordersheet'!BJ1017)","v":""},{"$f":"IF('1. Ordersheet'!BK1017=\"\",\"\",'1. Ordersheet'!BK1017)","v":""},{"$f":"IF('1. Ordersheet'!BL1017=\"\",\"\",'1. Ordersheet'!BL1017)","v":""}]
[{"$f":"IF('1. Ordersheet'!F1018=\"\",\"\",'1. Ordersheet'!F1018)","v":""},{"$f":"IF('1. Ordersheet'!G1018=\"\",\"\",'1. Ordersheet'!G1018)","v":""},{"$f":"IF('1. Ordersheet'!H1018=\"\",\"\",'1. Ordersheet'!H1018)","v":""},{"$f":"IF('1. Ordersheet'!I1018=\"\",\"\",'1. Ordersheet'!I1018)","v":""},{"$f":"IF('1. Ordersheet'!J1018=\"\",\"\",'1. Ordersheet'!J1018)","v":""},{"$f":"IF('1. Ordersheet'!K1018=\"\",\"\",'1. Ordersheet'!K1018)","v":""},{"$f":"IF('1. Ordersheet'!L1018=\"\",\"\",'1. Ordersheet'!L1018)","v":""},{"$f":"IF('1. Ordersheet'!M1018=\"\",\"\",'1. Ordersheet'!M1018)","v":""},{"$f":"IF('1. Ordersheet'!N1018=\"\",\"\",'1. Ordersheet'!N1018)","v":""},{"$f":"IF('1. Ordersheet'!O1018=\"\",\"\",'1. Ordersheet'!O1018)","v":{"$error":"#N/A"}},{"$f":"IF('1. Ordersheet'!P1018=\"\",\"\",'1. Ordersheet'!P1018)","v":{"$error":"#N/A"}},{"$f":"IF('1. Ordersheet'!Q1018=\"\",\"\",'1. Ordersheet'!Q1018)","v":""},{"$f":"IF('1. Ordersheet'!R1018=\"\",\"\",'1. Ordersheet'!R1018)","v":""},{"$f":"IF('1. Ordersheet'!S1018=\"\",\"\",'1. Ordersheet'!S1018)","v":""},{"$f":"IF('1. Ordersheet'!V1018=\"\",\"\",'1. Ordersheet'!V1018)","v":""},{"$f":"IF('1. Ordersheet'!W1018=\"\",\"\",'1. Ordersheet'!W1018)","v":""},{"$f":"IF('1. Ordersheet'!X1018=\"\",\"\",'1. Ordersheet'!X1018)","v":""},{"$f":"IF('1. Ordersheet'!Y1018=\"\",\"\",'1. Ordersheet'!Y1018)","v":""},{"$f":"IF('1. Ordersheet'!Z1018=\"\",\"\",'1. Ordersheet'!Z1018)","v":""},{"$f":"IF('1. Ordersheet'!AA1018=\"\",\"\",'1. Ordersheet'!AA1018)","v":""},null,{"$f":"IF('1. Ordersheet'!AS1018=\"\",\"\",'1. Ordersheet'!AS1018)","v":""},{"$f":"IF('1. Ordersheet'!AT1018=\"\",\"\",'1. Ordersheet'!AT1018)","v":""},null,null,null,null,null,null,null,{"$f":"IF('1. Ordersheet'!AX1018=\"\",\"\",'1. Ordersheet'!AX1018)","v":""},{"$f":"IF('1. Ordersheet'!AY1018=\"\",\"\",'1. Ordersheet'!AY1018)","v":""},{"$f":"IF('1. Ordersheet'!AZ1018=\"\",\"\",'1. Ordersheet'!AZ1018)","v":""},{"$f":"IF('1. Ordersheet'!BA1018=\"\",\"\",'1. Ordersheet'!BA1018)","v":""},{"$f":"IF('1. Ordersheet'!BC1018=\"\",\"\",'1. Ordersheet'!BC1018)","v":""},{"$f":"IF('1. Ordersheet'!BD1018=\"\",\"\",'1. Ordersheet'!BD1018)","v":""},{"$f":"IF('1. Ordersheet'!BE1018=\"\",\"\",'1. Ordersheet'!BE1018)","v":""},{"$f":"IF('1. Ordersheet'!BF1018=\"\",\"\",'1. Ordersheet'!BF1018)","v":""},{"$f":"IF('1. Ordersheet'!BG1018=\"\",\"\",'1. Ordersheet'!BG1018)","v":"ZWO"},{"$f":"IF('1. Ordersheet'!BH1018=\"\",\"\",'1. Ordersheet'!BH1018)","v":""},{"$f":"IF('1. Ordersheet'!BI1018=\"\",\"\",'1. Ordersheet'!BI1018)","v":""},{"$f":"IF('1. Ordersheet'!BJ1018=\"\",\"\",'1. Ordersheet'!BJ1018)","v":""},{"$f":"IF('1. Ordersheet'!BK1018=\"\",\"\",'1. Ordersheet'!BK1018)","v":""},{"$f":"IF('1. Ordersheet'!BL1018=\"\",\"\",'1. Ordersheet'!BL1018)","v":""}]
[{"$f":"IF('1. Ordersheet'!F1019=\"\",\"\",'1. Ordersheet'!F1019)","v":""},{"$f":"IF('1. Ordersheet'!G1019=\"\",\"\",'1. Ordersheet'!G1019)","v":""},{"$f":"IF('1. Ordersheet'!H1019=\"\",\"\",'1. Ordersheet'!H1019)","v":""},{"$f":"IF('1. Ordersheet'!I1019=\"\",\"\",'1. Ordersheet'!I1019)","v":""},{"$f":"IF('1. Ordersheet'!J1019=\"\",\"\",'1. Ordersheet'!J1019)","v":""},{"$f":"IF('1. Ordersheet'!K1019=\"\",\"\",'1. Ordersheet'!K1019)","v":""},{"$f":"IF('1. Ordersheet'!L1019=\"\",\"\",'1. Ordersheet'!L1019)","v":""},{"$f":"IF('1. Ordersheet'!M1019=\"\",\"\",'1. Ordersheet'!M1019)","v":""},{"$f":"IF('1. Ordersheet'!N1019=\"\",\"\",'1. Ordersheet'!N1019)","v":""},{"$f":"IF('1. Ordersheet'!O1019=\"\",\"\",'1. Ordersheet'!O1019)","v":{"$error":"#N/A"}},{"$f":"IF('1. Ordersheet'!P1019=\"\",\"\",'1. Ordersheet'!P1019)","v":{"$error":"#N/A"}},{"$f":"IF('1. Ordersheet'!Q1019=\"\",\"\",'1. Ordersheet'!Q1019)","v":""},{"$f":"IF('1. Ordersheet'!R1019=\"\",\"\",'1. Ordersheet'!R1019)","v":""},{"$f":"IF('1. Ordersheet'!S1019=\"\",\"\",'1. Ordersheet'!S1019)","v":""},{"$f":"IF('1. Ordersheet'!V1019=\"\",\"\",'1. Ordersheet'!V1019)","v":""},{"$f":"IF('1. Ordersheet'!W1019=\"\",\"\",'1. Ordersheet'!W1019)","v":""},{"$f":"IF('1. Ordersheet'!X1019=\"\",\"\",'1. Ordersheet'!X1019)","v":""},{"$f":"IF('1. Ordersheet'!Y1019=\"\",\"\",'1. Ordersheet'!Y1019)","v":""},{"$f":"IF('1. Ordersheet'!Z1019=\"\",\"\",'1. Ordersheet'!Z1019)","v":""},{"$f":"IF('1. Ordersheet'!AA1019=\"\",\"\",'1. Ordersheet'!AA1019)","v":""},null,{"$f":"IF('1. Ordersheet'!AS1019=\"\",\"\",'1. Ordersheet'!AS1019)","v":""},{"$f":"IF('1. Ordersheet'!AT1019=\"\",\"\",'1. Ordersheet'!AT1019)","v":""},null,null,null,null,null,null,null,{"$f":"IF('1. Ordersheet'!AX1019=\"\",\"\",'1. Ordersheet'!AX1019)","v":""},{"$f":"IF('1. Ordersheet'!AY1019=\"\",\"\",'1. Ordersheet'!AY1019)","v":""},{"$f":"IF('1. Ordersheet'!AZ1019=\"\",\"\",'1. Ordersheet'!AZ1019)","v":""},{"$f":"IF('1. Ordersheet'!BA1019=\"\",\"\",'1. Ordersheet'!BA1019)","v":""},{"$f":"IF('1. Ordersheet'!BC1019=\"\",\"\",'1. Ordersheet'!BC1019)","v":""},{"$f":"IF('1. Ordersheet'!BD1019=\"\",\"\",'1. Ordersheet'!BD1019)","v":""},{"$f":"IF('1. Ordersheet'!BE1019=\"\",\"\",'1. Ordersheet'!BE1019)","v":""},{"$f":"IF('1. Ordersheet'!BF1019=\"\",\"\",'1. Ordersheet'!BF1019)","v":""},{"$f":"IF('1. Ordersheet'!BG1019=\"\",\"\",'1. Ordersheet'!BG1019)","v":"ZWO"},{"$f":"IF('1. Ordersheet'!BH1019=\"\",\"\",'1. Ordersheet'!BH1019)","v":""},{"$f":"IF('1. Ordersheet'!BI1019=\"\",\"\",'1. Ordersheet'!BI1019)","v":""},{"$f":"IF('1. Ordersheet'!BJ1019=\"\",\"\",'1. Ordersheet'!BJ1019)","v":""},{"$f":"IF('1. Ordersheet'!BK1019=\"\",\"\",'1. Ordersheet'!BK1019)","v":""},{"$f":"IF('1. Ordersheet'!BL1019=\"\",\"\",'1. Ordersheet'!BL1019)","v":""}]
[{"$f":"IF('1. Ordersheet'!F1020=\"\",\"\",'1. Ordersheet'!F1020)","v":""},{"$f":"IF('1. Ordersheet'!G1020=\"\",\"\",'1. Ordersheet'!G1020)","v":""},{"$f":"IF('1. Ordersheet'!H1020=\"\",\"\",'1. Ordersheet'!H1020)","v":""},{"$f":"IF('1. Ordersheet'!I1020=\"\",\"\",'1. Ordersheet'!I1020)","v":""},{"$f":"IF('1. Ordersheet'!J1020=\"\",\"\",'1. Ordersheet'!J1020)","v":""},{"$f":"IF('1. Ordersheet'!K1020=\"\",\"\",'1. Ordersheet'!K1020)","v":""},{"$f":"IF('1. Ordersheet'!L1020=\"\",\"\",'1. Ordersheet'!L1020)","v":""},{"$f":"IF('1. Ordersheet'!M1020=\"\",\"\",'1. Ordersheet'!M1020)","v":""},{"$f":"IF('1. Ordersheet'!N1020=\"\",\"\",'1. Ordersheet'!N1020)","v":""},{"$f":"IF('1. Ordersheet'!O1020=\"\",\"\",'1. Ordersheet'!O1020)","v":{"$error":"#N/A"}},{"$f":"IF('1. Ordersheet'!P1020=\"\",\"\",'1. Ordersheet'!P1020)","v":{"$error":"#N/A"}},{"$f":"IF('1. Ordersheet'!Q1020=\"\",\"\",'1. Ordersheet'!Q1020)","v":""},{"$f":"IF('1. Ordersheet'!R1020=\"\",\"\",'1. Ordersheet'!R1020)","v":""},{"$f":"IF('1. Ordersheet'!S1020=\"\",\"\",'1. Ordersheet'!S1020)","v":""},{"$f":"IF('1. Ordersheet'!V1020=\"\",\"\",'1. Ordersheet'!V1020)","v":""},{"$f":"IF('1. Ordersheet'!W1020=\"\",\"\",'1. Ordersheet'!W1020)","v":""},{"$f":"IF('1. Ordersheet'!X1020=\"\",\"\",'1. Ordersheet'!X1020)","v":""},{"$f":"IF('1. Ordersheet'!Y1020=\"\",\"\",'1. Ordersheet'!Y1020)","v":""},{"$f":"IF('1. Ordersheet'!Z1020=\"\",\"\",'1. Ordersheet'!Z1020)","v":""},{"$f":"IF('1. Ordersheet'!AA1020=\"\",\"\",'1. Ordersheet'!AA1020)","v":""},null,{"$f":"IF('1. Ordersheet'!AS1020=\"\",\"\",'1. Ordersheet'!AS1020)","v":""},{"$f":"IF('1. Ordersheet'!AT1020=\"\",\"\",'1. Ordersheet'!AT1020)","v":""},null,null,null,null,null,null,null,{"$f":"IF('1. Ordersheet'!AX1020=\"\",\"\",'1. Ordersheet'!AX1020)","v":""},{"$f":"IF('1. Ordersheet'!AY1020=\"\",\"\",'1. Ordersheet'!AY1020)","v":""},{"$f":"IF('1. Ordersheet'!AZ1020=\"\",\"\",'1. Ordersheet'!AZ1020)","v":""},{"$f":"IF('1. Ordersheet'!BA1020=\"\",\"\",'1. Ordersheet'!BA1020)","v":""},{"$f":"IF('1. Ordersheet'!BC1020=\"\",\"\",'1. Ordersheet'!BC1020)","v":""},{"$f":"IF('1. Ordersheet'!BD1020=\"\",\"\",'1. Ordersheet'!BD1020)","v":""},{"$f":"IF('1. Ordersheet'!BE1020=\"\",\"\",'1. Ordersheet'!BE1020)","v":""},{"$f":"IF('1. Ordersheet'!BF1020=\"\",\"\",'1. Ordersheet'!BF1020)","v":""},{"$f":"IF('1. Ordersheet'!BG1020=\"\",\"\",'1. Ordersheet'!BG1020)","v":"ZWO"},{"$f":"IF('1. Ordersheet'!BH1020=\"\",\"\",'1. Ordersheet'!BH1020)","v":""},{"$f":"IF('1. Ordersheet'!BI1020=\"\",\"\",'1. Ordersheet'!BI1020)","v":""},{"$f":"IF('1. Ordersheet'!BJ1020=\"\",\"\",'1. Ordersheet'!BJ1020)","v":""},{"$f":"IF('1. Ordersheet'!BK1020=\"\",\"\",'1. Ordersheet'!BK1020)","v":""},{"$f":"IF('1. Ordersheet'!BL1020=\"\",\"\",'1. Ordersheet'!BL1020)","v":""}]
[{"$f":"IF('1. Ordersheet'!F1021=\"\",\"\",'1. Ordersheet'!F1021)","v":""},{"$f":"IF('1. Ordersheet'!G1021=\"\",\"\",'1. Ordersheet'!G1021)","v":""},{"$f":"IF('1. Ordersheet'!H1021=\"\",\"\",'1. Ordersheet'!H1021)","v":""},{"$f":"IF('1. Ordersheet'!I1021=\"\",\"\",'1. Ordersheet'!I1021)","v":""},{"$f":"IF('1. Ordersheet'!J1021=\"\",\"\",'1. Ordersheet'!J1021)","v":""},{"$f":"IF('1. Ordersheet'!K1021=\"\",\"\",'1. Ordersheet'!K1021)","v":""},{"$f":"IF('1. Ordersheet'!L1021=\"\",\"\",'1. Ordersheet'!L1021)","v":""},{"$f":"IF('1. Ordersheet'!M1021=\"\",\"\",'1. Ordersheet'!M1021)","v":""},{"$f":"IF('1. Ordersheet'!N1021=\"\",\"\",'1. Ordersheet'!N1021)","v":""},{"$f":"IF('1. Ordersheet'!O1021=\"\",\"\",'1. Ordersheet'!O1021)","v":{"$error":"#N/A"}},{"$f":"IF('1. Ordersheet'!P1021=\"\",\"\",'1. Ordersheet'!P1021)","v":{"$error":"#N/A"}},{"$f":"IF('1. Ordersheet'!Q1021=\"\",\"\",'1. Ordersheet'!Q1021)","v":""},{"$f":"IF('1. Ordersheet'!R1021=\"\",\"\",'1. Ordersheet'!R1021)","v":""},{"$f":"IF('1. Ordersheet'!S1021=\"\",\"\",'1. Ordersheet'!S1021)","v":""},{"$f":"IF('1. Ordersheet'!V1021=\"\",\"\",'1. Ordersheet'!V1021)","v":""},{"$f":"IF('1. Ordersheet'!W1021=\"\",\"\",'1. Ordersheet'!W1021)","v":""},{"$f":"IF('1. Ordersheet'!X1021=\"\",\"\",'1. Ordersheet'!X1021)","v":""},{"$f":"IF('1. Ordersheet'!Y1021=\"\",\"\",'1. Ordersheet'!Y1021)","v":""},{"$f":"IF('1. Ordersheet'!Z1021=\"\",\"\",'1. Ordersheet'!Z1021)","v":""},{"$f":"IF('1. Ordersheet'!AA1021=\"\",\"\",'1. Ordersheet'!AA1021)","v":""},null,{"$f":"IF('1. Ordersheet'!AS1021=\"\",\"\",'1. Ordersheet'!AS1021)","v":""},{"$f":"IF('1. Ordersheet'!AT1021=\"\",\"\",'1. Ordersheet'!AT1021)","v":""},null,null,null,null,null,null,null,{"$f":"IF('1. Ordersheet'!AX1021=\"\",\"\",'1. Ordersheet'!AX1021)","v":""},{"$f":"IF('1. Ordersheet'!AY1021=\"\",\"\",'1. Ordersheet'!AY1021)","v":""},{"$f":"IF('1. Ordersheet'!AZ1021=\"\",\"\",'1. Ordersheet'!AZ1021)","v":""},{"$f":"IF('1. Ordersheet'!BA1021=\"\",\"\",'1. Ordersheet'!BA1021)","v":""},{"$f":"IF('1. Ordersheet'!BC1021=\"\",\"\",'1. Ordersheet'!BC1021)","v":""},{"$f":"IF('1. Ordersheet'!BD1021=\"\",\"\",'1. Ordersheet'!BD1021)","v":""},{"$f":"IF('1. Ordersheet'!BE1021=\"\",\"\",'1. Ordersheet'!BE1021)","v":""},{"$f":"IF('1. Ordersheet'!BF1021=\"\",\"\",'1. Ordersheet'!BF1021)","v":""},{"$f":"IF('1. Ordersheet'!BG1021=\"\",\"\",'1. Ordersheet'!BG1021)","v":"ZWO"},{"$f":"IF('1. Ordersheet'!BH1021=\"\",\"\",'1. Ordersheet'!BH1021)","v":""},{"$f":"IF('1. Ordersheet'!BI1021=\"\",\"\",'1. Ordersheet'!BI1021)","v":""},{"$f":"IF('1. Ordersheet'!BJ1021=\"\",\"\",'1. Ordersheet'!BJ1021)","v":""},{"$f":"IF('1. Ordersheet'!BK1021=\"\",\"\",'1. Ordersheet'!BK1021)","v":""},{"$f":"IF('1. Ordersheet'!BL1021=\"\",\"\",'1. Ordersheet'!BL1021)","v":""}]
[{"$f":"IF('1. Ordersheet'!F1022=\"\",\"\",'1. Ordersheet'!F1022)","v":""},{"$f":"IF('1. Ordersheet'!G1022=\"\",\"\",'1. Ordersheet'!G1022)","v":""},{"$f":"IF('1. Ordersheet'!H1022=\"\",\"\",'1. Ordersheet'!H1022)","v":""},{"$f":"IF('1. Ordersheet'!I1022=\"\",\"\",'1. Ordersheet'!I1022)","v":""},{"$f":"IF('1. Ordersheet'!J1022=\"\",\"\",'1. Ordersheet'!J1022)","v":""},{"$f":"IF('1. Ordersheet'!K1022=\"\",\"\",'1. Ordersheet'!K1022)","v":""},{"$f":"IF('1. Ordersheet'!L1022=\"\",\"\",'1. Ordersheet'!L1022)","v":""},{"$f":"IF('1. Ordersheet'!M1022=\"\",\"\",'1. Ordersheet'!M1022)","v":""},{"$f":"IF('1. Ordersheet'!N1022=\"\",\"\",'1. Ordersheet'!N1022)","v":""},{"$f":"IF('1. Ordersheet'!O1022=\"\",\"\",'1. Ordersheet'!O1022)","v":{"$error":"#N/A"}},{"$f":"IF('1. Ordersheet'!P1022=\"\",\"\",'1. Ordersheet'!P1022)","v":{"$error":"#N/A"}},{"$f":"IF('1. Ordersheet'!Q1022=\"\",\"\",'1. Ordersheet'!Q1022)","v":""},{"$f":"IF('1. Ordersheet'!R1022=\"\",\"\",'1. Ordersheet'!R1022)","v":""},{"$f":"IF('1. Ordersheet'!S1022=\"\",\"\",'1. Ordersheet'!S1022)","v":""},{"$f":"IF('1. Ordersheet'!V1022=\"\",\"\",'1. Ordersheet'!V1022)","v":""},{"$f":"IF('1. Ordersheet'!W1022=\"\",\"\",'1. Ordersheet'!W1022)","v":""},{"$f":"IF('1. Ordersheet'!X1022=\"\",\"\",'1. Ordersheet'!X1022)","v":""},{"$f":"IF('1. Ordersheet'!Y1022=\"\",\"\",'1. Ordersheet'!Y1022)","v":""},{"$f":"IF('1. Ordersheet'!Z1022=\"\",\"\",'1. Ordersheet'!Z1022)","v":""},{"$f":"IF('1. Ordersheet'!AA1022=\"\",\"\",'1. Ordersheet'!AA1022)","v":""},null,{"$f":"IF('1. Ordersheet'!AS1022=\"\",\"\",'1. Ordersheet'!AS1022)","v":""},{"$f":"IF('1. Ordersheet'!AT1022=\"\",\"\",'1. Ordersheet'!AT1022)","v":""},null,null,null,null,null,null,null,{"$f":"IF('1. Ordersheet'!AX1022=\"\",\"\",'1. Ordersheet'!AX1022)","v":""},{"$f":"IF('1. Ordersheet'!AY1022=\"\",\"\",'1. Ordersheet'!AY1022)","v":""},{"$f":"IF('1. Ordersheet'!AZ1022=\"\",\"\",'1. Ordersheet'!AZ1022)","v":""},{"$f":"IF('1. Ordersheet'!BA1022=\"\",\"\",'1. Ordersheet'!BA1022)","v":""},{"$f":"IF('1. Ordersheet'!BC1022=\"\",\"\",'1. Ordersheet'!BC1022)","v":""},{"$f":"IF('1. Ordersheet'!BD1022=\"\",\"\",'1. Ordersheet'!BD1022)","v":""},{"$f":"IF('1. Ordersheet'!BE1022=\"\",\"\",'1. Ordersheet'!BE1022)","v":""},{"$f":"IF('1. Ordersheet'!BF1022=\"\",\"\",'1. Ordersheet'!BF1022)","v":""},{"$f":"IF('1. Ordersheet'!BG1022=\"\",\"\",'1. Ordersheet'!BG1022)","v":"ZWO"},{"$f":"IF('1. Ordersheet'!BH1022=\"\",\"\",'1. Ordersheet'!BH1022)","v":""},{"$f":"IF('1. Ordersheet'!BI1022=\"\",\"\",'1. Ordersheet'!BI1022)","v":""},{"$f":"IF('1. Ordersheet'!BJ1022=\"\",\"\",'1. Ordersheet'!BJ1022)","v":""},{"$f":"IF('1. Ordersheet'!BK1022=\"\",\"\",'1. Ordersheet'!BK1022)","v":""},{"$f":"IF('1. Ordersheet'!BL1022=\"\",\"\",'1. Ordersheet'!BL1022)","v":""}]
[{"$f":"IF('1. Ordersheet'!F1023=\"\",\"\",'1. Ordersheet'!F1023)","v":""},{"$f":"IF('1. Ordersheet'!G1023=\"\",\"\",'1. Ordersheet'!G1023)","v":""},{"$f":"IF('1. Ordersheet'!H1023=\"\",\"\",'1. Ordersheet'!H1023)","v":""},{"$f":"IF('1. Ordersheet'!I1023=\"\",\"\",'1. Ordersheet'!I1023)","v":""},{"$f":"IF('1. Ordersheet'!J1023=\"\",\"\",'1. Ordersheet'!J1023)","v":""},{"$f":"IF('1. Ordersheet'!K1023=\"\",\"\",'1. Ordersheet'!K1023)","v":""},{"$f":"IF('1. Ordersheet'!L1023=\"\",\"\",'1. Ordersheet'!L1023)","v":""},{"$f":"IF('1. Ordersheet'!M1023=\"\",\"\",'1. Ordersheet'!M1023)","v":""},{"$f":"IF('1. Ordersheet'!N1023=\"\",\"\",'1. Ordersheet'!N1023)","v":""},{"$f":"IF('1. Ordersheet'!O1023=\"\",\"\",'1. Ordersheet'!O1023)","v":{"$error":"#N/A"}},{"$f":"IF('1. Ordersheet'!P1023=\"\",\"\",'1. Ordersheet'!P1023)","v":{"$error":"#N/A"}},{"$f":"IF('1. Ordersheet'!Q1023=\"\",\"\",'1. Ordersheet'!Q1023)","v":""},{"$f":"IF('1. Ordersheet'!R1023=\"\",\"\",'1. Ordersheet'!R1023)","v":""},{"$f":"IF('1. Ordersheet'!S1023=\"\",\"\",'1. Ordersheet'!S1023)","v":""},{"$f":"IF('1. Ordersheet'!V1023=\"\",\"\",'1. Ordersheet'!V1023)","v":""},{"$f":"IF('1. Ordersheet'!W1023=\"\",\"\",'1. Ordersheet'!W1023)","v":""},{"$f":"IF('1. Ordersheet'!X1023=\"\",\"\",'1. Ordersheet'!X1023)","v":""},{"$f":"IF('1. Ordersheet'!Y1023=\"\",\"\",'1. Ordersheet'!Y1023)","v":""},{"$f":"IF('1. Ordersheet'!Z1023=\"\",\"\",'1. Ordersheet'!Z1023)","v":""},{"$f":"IF('1. Ordersheet'!AA1023=\"\",\"\",'1. Ordersheet'!AA1023)","v":""},null,{"$f":"IF('1. Ordersheet'!AS1023=\"\",\"\",'1. Ordersheet'!AS1023)","v":""},{"$f":"IF('1. Ordersheet'!AT1023=\"\",\"\",'1. Ordersheet'!AT1023)","v":""},null,null,null,null,null,null,null,{"$f":"IF('1. Ordersheet'!AX1023=\"\",\"\",'1. Ordersheet'!AX1023)","v":""},{"$f":"IF('1. Ordersheet'!AY1023=\"\",\"\",'1. Ordersheet'!AY1023)","v":""},{"$f":"IF('1. Ordersheet'!AZ1023=\"\",\"\",'1. Ordersheet'!AZ1023)","v":""},{"$f":"IF('1. Ordersheet'!BA1023=\"\",\"\",'1. Ordersheet'!BA1023)","v":""},{"$f":"IF('1. Ordersheet'!BC1023=\"\",\"\",'1. Ordersheet'!BC1023)","v":""},{"$f":"IF('1. Ordersheet'!BD1023=\"\",\"\",'1. Ordersheet'!BD1023)","v":""},{"$f":"IF('1. Ordersheet'!BE1023=\"\",\"\",'1. Ordersheet'!BE1023)","v":""},{"$f":"IF('1. Ordersheet'!BF1023=\"\",\"\",'1. Ordersheet'!BF1023)","v":""},{"$f":"IF('1. Ordersheet'!BG1023=\"\",\"\",'1. Ordersheet'!BG1023)","v":"ZWO"},{"$f":"IF('1. Ordersheet'!BH1023=\"\",\"\",'1. Ordersheet'!BH1023)","v":""},{"$f":"IF('1. Ordersheet'!BI1023=\"\",\"\",'1. Ordersheet'!BI1023)","v":""},{"$f":"IF('1. Ordersheet'!BJ1023=\"\",\"\",'1. Ordersheet'!BJ1023)","v":""},{"$f":"IF('1. Ordersheet'!BK1023=\"\",\"\",'1. Ordersheet'!BK1023)","v":""},{"$f":"IF('1. Ordersheet'!BL1023=\"\",\"\",'1. Ordersheet'!BL1023)","v":""}]
[{"$f":"IF('1. Ordersheet'!F1024=\"\",\"\",'1. Ordersheet'!F1024)","v":""},{"$f":"IF('1. Ordersheet'!G1024=\"\",\"\",'1. Ordersheet'!G1024)","v":""},{"$f":"IF('1. Ordersheet'!H1024=\"\",\"\",'1. Ordersheet'!H1024)","v":""},{"$f":"IF('1. Ordersheet'!I1024=\"\",\"\",'1. Ordersheet'!I1024)","v":""},{"$f":"IF('1. Ordersheet'!J1024=\"\",\"\",'1. Ordersheet'!J1024)","v":""},{"$f":"IF('1. Ordersheet'!K1024=\"\",\"\",'1. Ordersheet'!K1024)","v":""},{"$f":"IF('1. Ordersheet'!L1024=\"\",\"\",'1. Ordersheet'!L1024)","v":""},{"$f":"IF('1. Ordersheet'!M1024=\"\",\"\",'1. Ordersheet'!M1024)","v":""},{"$f":"IF('1. Ordersheet'!N1024=\"\",\"\",'1. Ordersheet'!N1024)","v":""},{"$f":"IF('1. Ordersheet'!O1024=\"\",\"\",'1. Ordersheet'!O1024)","v":{"$error":"#N/A"}},{"$f":"IF('1. Ordersheet'!P1024=\"\",\"\",'1. Ordersheet'!P1024)","v":{"$error":"#N/A"}},{"$f":"IF('1. Ordersheet'!Q1024=\"\",\"\",'1. Ordersheet'!Q1024)","v":""},{"$f":"IF('1. Ordersheet'!R1024=\"\",\"\",'1. Ordersheet'!R1024)","v":""},{"$f":"IF('1. Ordersheet'!S1024=\"\",\"\",'1. Ordersheet'!S1024)","v":""},{"$f":"IF('1. Ordersheet'!V1024=\"\",\"\",'1. Ordersheet'!V1024)","v":""},{"$f":"IF('1. Ordersheet'!W1024=\"\",\"\",'1. Ordersheet'!W1024)","v":""},{"$f":"IF('1. Ordersheet'!X1024=\"\",\"\",'1. Ordersheet'!X1024)","v":""},{"$f":"IF('1. Ordersheet'!Y1024=\"\",\"\",'1. Ordersheet'!Y1024)","v":""},{"$f":"IF('1. Ordersheet'!Z1024=\"\",\"\",'1. Ordersheet'!Z1024)","v":""},{"$f":"IF('1. Ordersheet'!AA1024=\"\",\"\",'1. Ordersheet'!AA1024)","v":""},null,{"$f":"IF('1. Ordersheet'!AS1024=\"\",\"\",'1. Ordersheet'!AS1024)","v":""},{"$f":"IF('1. Ordersheet'!AT1024=\"\",\"\",'1. Ordersheet'!AT1024)","v":""},null,null,null,null,null,null,null,{"$f":"IF('1. Ordersheet'!AX1024=\"\",\"\",'1. Ordersheet'!AX1024)","v":""},{"$f":"IF('1. Ordersheet'!AY1024=\"\",\"\",'1. Ordersheet'!AY1024)","v":""},{"$f":"IF('1. Ordersheet'!AZ1024=\"\",\"\",'1. Ordersheet'!AZ1024)","v":""},{"$f":"IF('1. Ordersheet'!BA1024=\"\",\"\",'1. Ordersheet'!BA1024)","v":""},{"$f":"IF('1. Ordersheet'!BC1024=\"\",\"\",'1. Ordersheet'!BC1024)","v":""},{"$f":"IF('1. Ordersheet'!BD1024=\"\",\"\",'1. Ordersheet'!BD1024)","v":""},{"$f":"IF('1. Ordersheet'!BE1024=\"\",\"\",'1. Ordersheet'!BE1024)","v":""},{"$f":"IF('1. Ordersheet'!BF1024=\"\",\"\",'1. Ordersheet'!BF1024)","v":""},{"$f":"IF('1. Ordersheet'!BG1024=\"\",\"\",'1. Ordersheet'!BG1024)","v":"ZWO"},{"$f":"IF('1. Ordersheet'!BH1024=\"\",\"\",'1. Ordersheet'!BH1024)","v":""},{"$f":"IF('1. Ordersheet'!BI1024=\"\",\"\",'1. Ordersheet'!BI1024)","v":""},{"$f":"IF('1. Ordersheet'!BJ1024=\"\",\"\",'1. Ordersheet'!BJ1024)","v":""},{"$f":"IF('1. Ordersheet'!BK1024=\"\",\"\",'1. Ordersheet'!BK1024)","v":""},{"$f":"IF('1. Ordersheet'!BL1024=\"\",\"\",'1. Ordersheet'!BL1024)","v":""}]
[{"$f":"IF('1. Ordersheet'!F1025=\"\",\"\",'1. Ordersheet'!F1025)","v":""},{"$f":"IF('1. Ordersheet'!G1025=\"\",\"\",'1. Ordersheet'!G1025)","v":""},{"$f":"IF('1. Ordersheet'!H1025=\"\",\"\",'1. Ordersheet'!H1025)","v":""},{"$f":"IF('1. Ordersheet'!I1025=\"\",\"\",'1. Ordersheet'!I1025)","v":""},{"$f":"IF('1. Ordersheet'!J1025=\"\",\"\",'1. Ordersheet'!J1025)","v":""},{"$f":"IF('1. Ordersheet'!K1025=\"\",\"\",'1. Ordersheet'!K1025)","v":""},{"$f":"IF('1. Ordersheet'!L1025=\"\",\"\",'1. Ordersheet'!L1025)","v":""},{"$f":"IF('1. Ordersheet'!M1025=\"\",\"\",'1. Ordersheet'!M1025)","v":""},{"$f":"IF('1. Ordersheet'!N1025=\"\",\"\",'1. Ordersheet'!N1025)","v":""},{"$f":"IF('1. Ordersheet'!O1025=\"\",\"\",'1. Ordersheet'!O1025)","v":{"$error":"#N/A"}},{"$f":"IF('1. Ordersheet'!P1025=\"\",\"\",'1. Ordersheet'!P1025)","v":{"$error":"#N/A"}},{"$f":"IF('1. Ordersheet'!Q1025=\"\",\"\",'1. Ordersheet'!Q1025)","v":""},{"$f":"IF('1. Ordersheet'!R1025=\"\",\"\",'1. Ordersheet'!R1025)","v":""},{"$f":"IF('1. Ordersheet'!S1025=\"\",\"\",'1. Ordersheet'!S1025)","v":""},{"$f":"IF('1. Ordersheet'!V1025=\"\",\"\",'1. Ordersheet'!V1025)","v":""},{"$f":"IF('1. Ordersheet'!W1025=\"\",\"\",'1. Ordersheet'!W1025)","v":""},{"$f":"IF('1. Ordersheet'!X1025=\"\",\"\",'1. Ordersheet'!X1025)","v":""},{"$f":"IF('1. Ordersheet'!Y1025=\"\",\"\",'1. Ordersheet'!Y1025)","v":""},{"$f":"IF('1. Ordersheet'!Z1025=\"\",\"\",'1. Ordersheet'!Z1025)","v":""},{"$f":"IF('1. Ordersheet'!AA1025=\"\",\"\",'1. Ordersheet'!AA1025)","v":""},null,{"$f":"IF('1. Ordersheet'!AS1025=\"\",\"\",'1. Ordersheet'!AS1025)","v":""},{"$f":"IF('1. Ordersheet'!AT1025=\"\",\"\",'1. Ordersheet'!AT1025)","v":""},null,null,null,null,null,null,null,{"$f":"IF('1. Ordersheet'!AX1025=\"\",\"\",'1. Ordersheet'!AX1025)","v":""},{"$f":"IF('1. Ordersheet'!AY1025=\"\",\"\",'1. Ordersheet'!AY1025)","v":""},{"$f":"IF('1. Ordersheet'!AZ1025=\"\",\"\",'1. Ordersheet'!AZ1025)","v":""},{"$f":"IF('1. Ordersheet'!BA1025=\"\",\"\",'1. Ordersheet'!BA1025)","v":""},{"$f":"IF('1. Ordersheet'!BC1025=\"\",\"\",'1. Ordersheet'!BC1025)","v":""},{"$f":"IF('1. Ordersheet'!BD1025=\"\",\"\",'1. Ordersheet'!BD1025)","v":""},{"$f":"IF('1. Ordersheet'!BE1025=\"\",\"\",'1. Ordersheet'!BE1025)","v":""},{"$f":"IF('1. Ordersheet'!BF1025=\"\",\"\",'1. Ordersheet'!BF1025)","v":""},{"$f":"IF('1. Ordersheet'!BG1025=\"\",\"\",'1. Ordersheet'!BG1025)","v":"ZWO"},{"$f":"IF('1. Ordersheet'!BH1025=\"\",\"\",'1. Ordersheet'!BH1025)","v":""},{"$f":"IF('1. Ordersheet'!BI1025=\"\",\"\",'1. Ordersheet'!BI1025)","v":""},{"$f":"IF('1. Ordersheet'!BJ1025=\"\",\"\",'1. Ordersheet'!BJ1025)","v":""},{"$f":"IF('1. Ordersheet'!BK1025=\"\",\"\",'1. Ordersheet'!BK1025)","v":""},{"$f":"IF('1. Ordersheet'!BL1025=\"\",\"\",'1. Ordersheet'!BL1025)","v":""}]
[{"$f":"IF('1. Ordersheet'!F1026=\"\",\"\",'1. Ordersheet'!F1026)","v":""},{"$f":"IF('1. Ordersheet'!G1026=\"\",\"\",'1. Ordersheet'!G1026)","v":""},{"$f":"IF('1. Ordersheet'!H1026=\"\",\"\",'1. Ordersheet'!H1026)","v":""},{"$f":"IF('1. Ordersheet'!I1026=\"\",\"\",'1. Ordersheet'!I1026)","v":""},{"$f":"IF('1. Ordersheet'!J1026=\"\",\"\",'1. Ordersheet'!J1026)","v":""},{"$f":"IF('1. Ordersheet'!K1026=\"\",\"\",'1. Ordersheet'!K1026)","v":""},{"$f":"IF('1. Ordersheet'!L1026=\"\",\"\",'1. Ordersheet'!L1026)","v":""},{"$f":"IF('1. Ordersheet'!M1026=\"\",\"\",'1. Ordersheet'!M1026)","v":""},{"$f":"IF('1. Ordersheet'!N1026=\"\",\"\",'1. Ordersheet'!N1026)","v":""},{"$f":"IF('1. Ordersheet'!O1026=\"\",\"\",'1. Ordersheet'!O1026)","v":{"$error":"#N/A"}},{"$f":"IF('1. Ordersheet'!P1026=\"\",\"\",'1. Ordersheet'!P1026)","v":{"$error":"#N/A"}},{"$f":"IF('1. Ordersheet'!Q1026=\"\",\"\",'1. Ordersheet'!Q1026)","v":""},{"$f":"IF('1. Ordersheet'!R1026=\"\",\"\",'1. Ordersheet'!R1026)","v":""},{"$f":"IF('1. Ordersheet'!S1026=\"\",\"\",'1. Ordersheet'!S1026)","v":""},{"$f":"IF('1. Ordersheet'!V1026=\"\",\"\",'1. Ordersheet'!V1026)","v":""},{"$f":"IF('1. Ordersheet'!W1026=\"\",\"\",'1. Ordersheet'!W1026)","v":""},{"$f":"IF('1. Ordersheet'!X1026=\"\",\"\",'1. Ordersheet'!X1026)","v":""},{"$f":"IF('1. Ordersheet'!Y1026=\"\",\"\",'1. Ordersheet'!Y1026)","v":""},{"$f":"IF('1. Ordersheet'!Z1026=\"\",\"\",'1. Ordersheet'!Z1026)","v":""},{"$f":"IF('1. Ordersheet'!AA1026=\"\",\"\",'1. Ordersheet'!AA1026)","v":""},null,{"$f":"IF('1. Ordersheet'!AS1026=\"\",\"\",'1. Ordersheet'!AS1026)","v":""},{"$f":"IF('1. Ordersheet'!AT1026=\"\",\"\",'1. Ordersheet'!AT1026)","v":""},null,null,null,null,null,null,null,{"$f":"IF('1. Ordersheet'!AX1026=\"\",\"\",'1. Ordersheet'!AX1026)","v":""},{"$f":"IF('1. Ordersheet'!AY1026=\"\",\"\",'1. Ordersheet'!AY1026)","v":""},{"$f":"IF('1. Ordersheet'!AZ1026=\"\",\"\",'1. Ordersheet'!AZ1026)","v":""},{"$f":"IF('1. Ordersheet'!BA1026=\"\",\"\",'1. Ordersheet'!BA1026)","v":""},{"$f":"IF('1. Ordersheet'!BC1026=\"\",\"\",'1. Ordersheet'!BC1026)","v":""},{"$f":"IF('1. Ordersheet'!BD1026=\"\",\"\",'1. Ordersheet'!BD1026)","v":""},{"$f":"IF('1. Ordersheet'!BE1026=\"\",\"\",'1. Ordersheet'!BE1026)","v":""},{"$f":"IF('1. Ordersheet'!BF1026=\"\",\"\",'1. Ordersheet'!BF1026)","v":""},{"$f":"IF('1. Ordersheet'!BG1026=\"\",\"\",'1. Ordersheet'!BG1026)","v":"ZWO"},{"$f":"IF('1. Ordersheet'!BH1026=\"\",\"\",'1. Ordersheet'!BH1026)","v":""},{"$f":"IF('1. Ordersheet'!BI1026=\"\",\"\",'1. Ordersheet'!BI1026)","v":""},{"$f":"IF('1. Ordersheet'!BJ1026=\"\",\"\",'1. Ordersheet'!BJ1026)","v":""},{"$f":"IF('1. Ordersheet'!BK1026=\"\",\"\",'1. Ordersheet'!BK1026)","v":""},{"$f":"IF('1. Ordersheet'!BL1026=\"\",\"\",'1. Ordersheet'!BL1026)","v":""}]
[{"$f":"IF('1. Ordersheet'!F1027=\"\",\"\",'1. Ordersheet'!F1027)","v":""},{"$f":"IF('1. Ordersheet'!G1027=\"\",\"\",'1. Ordersheet'!G1027)","v":""},{"$f":"IF('1. Ordersheet'!H1027=\"\",\"\",'1. Ordersheet'!H1027)","v":""},{"$f":"IF('1. Ordersheet'!I1027=\"\",\"\",'1. Ordersheet'!I1027)","v":""},{"$f":"IF('1. Ordersheet'!J1027=\"\",\"\",'1. Ordersheet'!J1027)","v":""},{"$f":"IF('1. Ordersheet'!K1027=\"\",\"\",'1. Ordersheet'!K1027)","v":""},{"$f":"IF('1. Ordersheet'!L1027=\"\",\"\",'1. Ordersheet'!L1027)","v":""},{"$f":"IF('1. Ordersheet'!M1027=\"\",\"\",'1. Ordersheet'!M1027)","v":""},{"$f":"IF('1. Ordersheet'!N1027=\"\",\"\",'1. Ordersheet'!N1027)","v":""},{"$f":"IF('1. Ordersheet'!O1027=\"\",\"\",'1. Ordersheet'!O1027)","v":{"$error":"#N/A"}},{"$f":"IF('1. Ordersheet'!P1027=\"\",\"\",'1. Ordersheet'!P1027)","v":{"$error":"#N/A"}},{"$f":"IF('1. Ordersheet'!Q1027=\"\",\"\",'1. Ordersheet'!Q1027)","v":""},{"$f":"IF('1. Ordersheet'!R1027=\"\",\"\",'1. Ordersheet'!R1027)","v":""},{"$f":"IF('1. Ordersheet'!S1027=\"\",\"\",'1. Ordersheet'!S1027)","v":""},{"$f":"IF('1. Ordersheet'!V1027=\"\",\"\",'1. Ordersheet'!V1027)","v":""},{"$f":"IF('1. Ordersheet'!W1027=\"\",\"\",'1. Ordersheet'!W1027)","v":""},{"$f":"IF('1. Ordersheet'!X1027=\"\",\"\",'1. Ordersheet'!X1027)","v":""},{"$f":"IF('1. Ordersheet'!Y1027=\"\",\"\",'1. Ordersheet'!Y1027)","v":""},{"$f":"IF('1. Ordersheet'!Z1027=\"\",\"\",'1. Ordersheet'!Z1027)","v":""},{"$f":"IF('1. Ordersheet'!AA1027=\"\",\"\",'1. Ordersheet'!AA1027)","v":""},null,{"$f":"IF('1. Ordersheet'!AS1027=\"\",\"\",'1. Ordersheet'!AS1027)","v":""},{"$f":"IF('1. Ordersheet'!AT1027=\"\",\"\",'1. Ordersheet'!AT1027)","v":""},null,null,null,null,null,null,null,{"$f":"IF('1. Ordersheet'!AX1027=\"\",\"\",'1. Ordersheet'!AX1027)","v":""},{"$f":"IF('1. Ordersheet'!AY1027=\"\",\"\",'1. Ordersheet'!AY1027)","v":""},{"$f":"IF('1. Ordersheet'!AZ1027=\"\",\"\",'1. Ordersheet'!AZ1027)","v":""},{"$f":"IF('1. Ordersheet'!BA1027=\"\",\"\",'1. Ordersheet'!BA1027)","v":""},{"$f":"IF('1. Ordersheet'!BC1027=\"\",\"\",'1. Ordersheet'!BC1027)","v":""},{"$f":"IF('1. Ordersheet'!BD1027=\"\",\"\",'1. Ordersheet'!BD1027)","v":""},{"$f":"IF('1. Ordersheet'!BE1027=\"\",\"\",'1. Ordersheet'!BE1027)","v":""},{"$f":"IF('1. Ordersheet'!BF1027=\"\",\"\",'1. Ordersheet'!BF1027)","v":""},{"$f":"IF('1. Ordersheet'!BG1027=\"\",\"\",'1. Ordersheet'!BG1027)","v":"ZWO"},{"$f":"IF('1. Ordersheet'!BH1027=\"\",\"\",'1. Ordersheet'!BH1027)","v":""},{"$f":"IF('1. Ordersheet'!BI1027=\"\",\"\",'1. Ordersheet'!BI1027)","v":""},{"$f":"IF('1. Ordersheet'!BJ1027=\"\",\"\",'1. Ordersheet'!BJ1027)","v":""},{"$f":"IF('1. Ordersheet'!BK1027=\"\",\"\",'1. Ordersheet'!BK1027)","v":""},{"$f":"IF('1. Ordersheet'!BL1027=\"\",\"\",'1. Ordersheet'!BL1027)","v":""}]
[{"$f":"IF('1. Ordersheet'!F1028=\"\",\"\",'1. Ordersheet'!F1028)","v":""},{"$f":"IF('1. Ordersheet'!G1028=\"\",\"\",'1. Ordersheet'!G1028)","v":""},{"$f":"IF('1. Ordersheet'!H1028=\"\",\"\",'1. Ordersheet'!H1028)","v":""},{"$f":"IF('1. Ordersheet'!I1028=\"\",\"\",'1. Ordersheet'!I1028)","v":""},{"$f":"IF('1. Ordersheet'!J1028=\"\",\"\",'1. Ordersheet'!J1028)","v":""},{"$f":"IF('1. Ordersheet'!K1028=\"\",\"\",'1. Ordersheet'!K1028)","v":""},{"$f":"IF('1. Ordersheet'!L1028=\"\",\"\",'1. Ordersheet'!L1028)","v":""},{"$f":"IF('1. Ordersheet'!M1028=\"\",\"\",'1. Ordersheet'!M1028)","v":""},{"$f":"IF('1. Ordersheet'!N1028=\"\",\"\",'1. Ordersheet'!N1028)","v":""},{"$f":"IF('1. Ordersheet'!O1028=\"\",\"\",'1. Ordersheet'!O1028)","v":{"$error":"#N/A"}},{"$f":"IF('1. Ordersheet'!P1028=\"\",\"\",'1. Ordersheet'!P1028)","v":{"$error":"#N/A"}},{"$f":"IF('1. Ordersheet'!Q1028=\"\",\"\",'1. Ordersheet'!Q1028)","v":""},{"$f":"IF('1. Ordersheet'!R1028=\"\",\"\",'1. Ordersheet'!R1028)","v":""},{"$f":"IF('1. Ordersheet'!S1028=\"\",\"\",'1. Ordersheet'!S1028)","v":""},{"$f":"IF('1. Ordersheet'!V1028=\"\",\"\",'1. Ordersheet'!V1028)","v":""},{"$f":"IF('1. Ordersheet'!W1028=\"\",\"\",'1. Ordersheet'!W1028)","v":""},{"$f":"IF('1. Ordersheet'!X1028=\"\",\"\",'1. Ordersheet'!X1028)","v":""},{"$f":"IF('1. Ordersheet'!Y1028=\"\",\"\",'1. Ordersheet'!Y1028)","v":""},{"$f":"IF('1. Ordersheet'!Z1028=\"\",\"\",'1. Ordersheet'!Z1028)","v":""},{"$f":"IF('1. Ordersheet'!AA1028=\"\",\"\",'1. Ordersheet'!AA1028)","v":""},null,{"$f":"IF('1. Ordersheet'!AS1028=\"\",\"\",'1. Ordersheet'!AS1028)","v":""},{"$f":"IF('1. Ordersheet'!AT1028=\"\",\"\",'1. Ordersheet'!AT1028)","v":""},null,null,null,null,null,null,null,{"$f":"IF('1. Ordersheet'!AX1028=\"\",\"\",'1. Ordersheet'!AX1028)","v":""},{"$f":"IF('1. Ordersheet'!AY1028=\"\",\"\",'1. Ordersheet'!AY1028)","v":""},{"$f":"IF('1. Ordersheet'!AZ1028=\"\",\"\",'1. Ordersheet'!AZ1028)","v":""},{"$f":"IF('1. Ordersheet'!BA1028=\"\",\"\",'1. Ordersheet'!BA1028)","v":""},{"$f":"IF('1. Ordersheet'!BC1028=\"\",\"\",'1. Ordersheet'!BC1028)","v":""},{"$f":"IF('1. Ordersheet'!BD1028=\"\",\"\",'1. Ordersheet'!BD1028)","v":""},{"$f":"IF('1. Ordersheet'!BE1028=\"\",\"\",'1. Ordersheet'!BE1028)","v":""},{"$f":"IF('1. Ordersheet'!BF1028=\"\",\"\",'1. Ordersheet'!BF1028)","v":""},{"$f":"IF('1. Ordersheet'!BG1028=\"\",\"\",'1. Ordersheet'!BG1028)","v":"ZWO"},{"$f":"IF('1. Ordersheet'!BH1028=\"\",\"\",'1. Ordersheet'!BH1028)","v":""},{"$f":"IF('1. Ordersheet'!BI1028=\"\",\"\",'1. Ordersheet'!BI1028)","v":""},{"$f":"IF('1. Ordersheet'!BJ1028=\"\",\"\",'1. Ordersheet'!BJ1028)","v":""},{"$f":"IF('1. Ordersheet'!BK1028=\"\",\"\",'1. Ordersheet'!BK1028)","v":""},{"$f":"IF('1. Ordersheet'!BL1028=\"\",\"\",'1. Ordersheet'!BL1028)","v":""}]
[{"$f":"IF('1. Ordersheet'!F1029=\"\",\"\",'1. Ordersheet'!F1029)","v":""},{"$f":"IF('1. Ordersheet'!G1029=\"\",\"\",'1. Ordersheet'!G1029)","v":""},{"$f":"IF('1. Ordersheet'!H1029=\"\",\"\",'1. Ordersheet'!H1029)","v":""},{"$f":"IF('1. Ordersheet'!I1029=\"\",\"\",'1. Ordersheet'!I1029)","v":""},{"$f":"IF('1. Ordersheet'!J1029=\"\",\"\",'1. Ordersheet'!J1029)","v":""},{"$f":"IF('1. Ordersheet'!K1029=\"\",\"\",'1. Ordersheet'!K1029)","v":""},{"$f":"IF('1. Ordersheet'!L1029=\"\",\"\",'1. Ordersheet'!L1029)","v":""},{"$f":"IF('1. Ordersheet'!M1029=\"\",\"\",'1. Ordersheet'!M1029)","v":""},{"$f":"IF('1. Ordersheet'!N1029=\"\",\"\",'1. Ordersheet'!N1029)","v":""},{"$f":"IF('1. Ordersheet'!O1029=\"\",\"\",'1. Ordersheet'!O1029)","v":{"$error":"#N/A"}},{"$f":"IF('1. Ordersheet'!P1029=\"\",\"\",'1. Ordersheet'!P1029)","v":{"$error":"#N/A"}},{"$f":"IF('1. Ordersheet'!Q1029=\"\",\"\",'1. Ordersheet'!Q1029)","v":""},{"$f":"IF('1. Ordersheet'!R1029=\"\",\"\",'1. Ordersheet'!R1029)","v":""},{"$f":"IF('1. Ordersheet'!S1029=\"\",\"\",'1. Ordersheet'!S1029)","v":""},{"$f":"IF('1. Ordersheet'!V1029=\"\",\"\",'1. Ordersheet'!V1029)","v":""},{"$f":"IF('1. Ordersheet'!W1029=\"\",\"\",'1. Ordersheet'!W1029)","v":""},{"$f":"IF('1. Ordersheet'!X1029=\"\",\"\",'1. Ordersheet'!X1029)","v":""},{"$f":"IF('1. Ordersheet'!Y1029=\"\",\"\",'1. Ordersheet'!Y1029)","v":""},{"$f":"IF('1. Ordersheet'!Z1029=\"\",\"\",'1. Ordersheet'!Z1029)","v":""},{"$f":"IF('1. Ordersheet'!AA1029=\"\",\"\",'1. Ordersheet'!AA1029)","v":""},null,{"$f":"IF('1. Ordersheet'!AS1029=\"\",\"\",'1. Ordersheet'!AS1029)","v":""},{"$f":"IF('1. Ordersheet'!AT1029=\"\",\"\",'1. Ordersheet'!AT1029)","v":""},null,null,null,null,null,null,null,{"$f":"IF('1. Ordersheet'!AX1029=\"\",\"\",'1. Ordersheet'!AX1029)","v":""},{"$f":"IF('1. Ordersheet'!AY1029=\"\",\"\",'1. Ordersheet'!AY1029)","v":""},{"$f":"IF('1. Ordersheet'!AZ1029=\"\",\"\",'1. Ordersheet'!AZ1029)","v":""},{"$f":"IF('1. Ordersheet'!BA1029=\"\",\"\",'1. Ordersheet'!BA1029)","v":""},{"$f":"IF('1. Ordersheet'!BC1029=\"\",\"\",'1. Ordersheet'!BC1029)","v":""},{"$f":"IF('1. Ordersheet'!BD1029=\"\",\"\",'1. Ordersheet'!BD1029)","v":""},{"$f":"IF('1. Ordersheet'!BE1029=\"\",\"\",'1. Ordersheet'!BE1029)","v":""},{"$f":"IF('1. Ordersheet'!BF1029=\"\",\"\",'1. Ordersheet'!BF1029)","v":""},{"$f":"IF('1. Ordersheet'!BG1029=\"\",\"\",'1. Ordersheet'!BG1029)","v":"ZWO"},{"$f":"IF('1. Ordersheet'!BH1029=\"\",\"\",'1. Ordersheet'!BH1029)","v":""},{"$f":"IF('1. Ordersheet'!BI1029=\"\",\"\",'1. Ordersheet'!BI1029)","v":""},{"$f":"IF('1. Ordersheet'!BJ1029=\"\",\"\",'1. Ordersheet'!BJ1029)","v":""},{"$f":"IF('1. Ordersheet'!BK1029=\"\",\"\",'1. Ordersheet'!BK1029)","v":""},{"$f":"IF('1. Ordersheet'!BL1029=\"\",\"\",'1. Ordersheet'!BL1029)","v":""}]
[{"$f":"IF('1. Ordersheet'!F1030=\"\",\"\",'1. Ordersheet'!F1030)","v":""},{"$f":"IF('1. Ordersheet'!G1030=\"\",\"\",'1. Ordersheet'!G1030)","v":""},{"$f":"IF('1. Ordersheet'!H1030=\"\",\"\",'1. Ordersheet'!H1030)","v":""},{"$f":"IF('1. Ordersheet'!I1030=\"\",\"\",'1. Ordersheet'!I1030)","v":""},{"$f":"IF('1. Ordersheet'!J1030=\"\",\"\",'1. Ordersheet'!J1030)","v":""},{"$f":"IF('1. Ordersheet'!K1030=\"\",\"\",'1. Ordersheet'!K1030)","v":""},{"$f":"IF('1. Ordersheet'!L1030=\"\",\"\",'1. Ordersheet'!L1030)","v":""},{"$f":"IF('1. Ordersheet'!M1030=\"\",\"\",'1. Ordersheet'!M1030)","v":""},{"$f":"IF('1. Ordersheet'!N1030=\"\",\"\",'1. Ordersheet'!N1030)","v":""},{"$f":"IF('1. Ordersheet'!O1030=\"\",\"\",'1. Ordersheet'!O1030)","v":{"$error":"#N/A"}},{"$f":"IF('1. Ordersheet'!P1030=\"\",\"\",'1. Ordersheet'!P1030)","v":{"$error":"#N/A"}},{"$f":"IF('1. Ordersheet'!Q1030=\"\",\"\",'1. Ordersheet'!Q1030)","v":""},{"$f":"IF('1. Ordersheet'!R1030=\"\",\"\",'1. Ordersheet'!R1030)","v":""},{"$f":"IF('1. Ordersheet'!S1030=\"\",\"\",'1. Ordersheet'!S1030)","v":""},{"$f":"IF('1. Ordersheet'!V1030=\"\",\"\",'1. Ordersheet'!V1030)","v":""},{"$f":"IF('1. Ordersheet'!W1030=\"\",\"\",'1. Ordersheet'!W1030)","v":""},{"$f":"IF('1. Ordersheet'!X1030=\"\",\"\",'1. Ordersheet'!X1030)","v":""},{"$f":"IF('1. Ordersheet'!Y1030=\"\",\"\",'1. Ordersheet'!Y1030)","v":""},{"$f":"IF('1. Ordersheet'!Z1030=\"\",\"\",'1. Ordersheet'!Z1030)","v":""},{"$f":"IF('1. Ordersheet'!AA1030=\"\",\"\",'1. Ordersheet'!AA1030)","v":""},null,{"$f":"IF('1. Ordersheet'!AS1030=\"\",\"\",'1. Ordersheet'!AS1030)","v":""},{"$f":"IF('1. Ordersheet'!AT1030=\"\",\"\",'1. Ordersheet'!AT1030)","v":""},null,null,null,null,null,null,null,{"$f":"IF('1. Ordersheet'!AX1030=\"\",\"\",'1. Ordersheet'!AX1030)","v":""},{"$f":"IF('1. Ordersheet'!AY1030=\"\",\"\",'1. Ordersheet'!AY1030)","v":""},{"$f":"IF('1. Ordersheet'!AZ1030=\"\",\"\",'1. Ordersheet'!AZ1030)","v":""},{"$f":"IF('1. Ordersheet'!BA1030=\"\",\"\",'1. Ordersheet'!BA1030)","v":""},{"$f":"IF('1. Ordersheet'!BC1030=\"\",\"\",'1. Ordersheet'!BC1030)","v":""},{"$f":"IF('1. Ordersheet'!BD1030=\"\",\"\",'1. Ordersheet'!BD1030)","v":""},{"$f":"IF('1. Ordersheet'!BE1030=\"\",\"\",'1. Ordersheet'!BE1030)","v":""},{"$f":"IF('1. Ordersheet'!BF1030=\"\",\"\",'1. Ordersheet'!BF1030)","v":""},{"$f":"IF('1. Ordersheet'!BG1030=\"\",\"\",'1. Ordersheet'!BG1030)","v":"ZWO"},{"$f":"IF('1. Ordersheet'!BH1030=\"\",\"\",'1. Ordersheet'!BH1030)","v":""},{"$f":"IF('1. Ordersheet'!BI1030=\"\",\"\",'1. Ordersheet'!BI1030)","v":""},{"$f":"IF('1. Ordersheet'!BJ1030=\"\",\"\",'1. Ordersheet'!BJ1030)","v":""},{"$f":"IF('1. Ordersheet'!BK1030=\"\",\"\",'1. Ordersheet'!BK1030)","v":""},{"$f":"IF('1. Ordersheet'!BL1030=\"\",\"\",'1. Ordersheet'!BL1030)","v":""}]
[{"$f":"IF('1. Ordersheet'!F1031=\"\",\"\",'1. Ordersheet'!F1031)","v":""},{"$f":"IF('1. Ordersheet'!G1031=\"\",\"\",'1. Ordersheet'!G1031)","v":""},{"$f":"IF('1. Ordersheet'!H1031=\"\",\"\",'1. Ordersheet'!H1031)","v":""},{"$f":"IF('1. Ordersheet'!I1031=\"\",\"\",'1. Ordersheet'!I1031)","v":""},{"$f":"IF('1. Ordersheet'!J1031=\"\",\"\",'1. Ordersheet'!J1031)","v":""},{"$f":"IF('1. Ordersheet'!K1031=\"\",\"\",'1. Ordersheet'!K1031)","v":""},{"$f":"IF('1. Ordersheet'!L1031=\"\",\"\",'1. Ordersheet'!L1031)","v":""},{"$f":"IF('1. Ordersheet'!M1031=\"\",\"\",'1. Ordersheet'!M1031)","v":""},{"$f":"IF('1. Ordersheet'!N1031=\"\",\"\",'1. Ordersheet'!N1031)","v":""},{"$f":"IF('1. Ordersheet'!O1031=\"\",\"\",'1. Ordersheet'!O1031)","v":{"$error":"#N/A"}},{"$f":"IF('1. Ordersheet'!P1031=\"\",\"\",'1. Ordersheet'!P1031)","v":{"$error":"#N/A"}},{"$f":"IF('1. Ordersheet'!Q1031=\"\",\"\",'1. Ordersheet'!Q1031)","v":""},{"$f":"IF('1. Ordersheet'!R1031=\"\",\"\",'1. Ordersheet'!R1031)","v":""},{"$f":"IF('1. Ordersheet'!S1031=\"\",\"\",'1. Ordersheet'!S1031)","v":""},{"$f":"IF('1. Ordersheet'!V1031=\"\",\"\",'1. Ordersheet'!V1031)","v":""},{"$f":"IF('1. Ordersheet'!W1031=\"\",\"\",'1. Ordersheet'!W1031)","v":""},{"$f":"IF('1. Ordersheet'!X1031=\"\",\"\",'1. Ordersheet'!X1031)","v":""},{"$f":"IF('1. Ordersheet'!Y1031=\"\",\"\",'1. Ordersheet'!Y1031)","v":""},{"$f":"IF('1. Ordersheet'!Z1031=\"\",\"\",'1. Ordersheet'!Z1031)","v":""},{"$f":"IF('1. Ordersheet'!AA1031=\"\",\"\",'1. Ordersheet'!AA1031)","v":""},null,{"$f":"IF('1. Ordersheet'!AS1031=\"\",\"\",'1. Ordersheet'!AS1031)","v":""},{"$f":"IF('1. Ordersheet'!AT1031=\"\",\"\",'1. Ordersheet'!AT1031)","v":""},null,null,null,null,null,null,null,{"$f":"IF('1. Ordersheet'!AX1031=\"\",\"\",'1. Ordersheet'!AX1031)","v":""},{"$f":"IF('1. Ordersheet'!AY1031=\"\",\"\",'1. Ordersheet'!AY1031)","v":""},{"$f":"IF('1. Ordersheet'!AZ1031=\"\",\"\",'1. Ordersheet'!AZ1031)","v":""},{"$f":"IF('1. Ordersheet'!BA1031=\"\",\"\",'1. Ordersheet'!BA1031)","v":""},{"$f":"IF('1. Ordersheet'!BC1031=\"\",\"\",'1. Ordersheet'!BC1031)","v":""},{"$f":"IF('1. Ordersheet'!BD1031=\"\",\"\",'1. Ordersheet'!BD1031)","v":""},{"$f":"IF('1. Ordersheet'!BE1031=\"\",\"\",'1. Ordersheet'!BE1031)","v":""},{"$f":"IF('1. Ordersheet'!BF1031=\"\",\"\",'1. Ordersheet'!BF1031)","v":""},{"$f":"IF('1. Ordersheet'!BG1031=\"\",\"\",'1. Ordersheet'!BG1031)","v":"ZWO"},{"$f":"IF('1. Ordersheet'!BH1031=\"\",\"\",'1. Ordersheet'!BH1031)","v":""},{"$f":"IF('1. Ordersheet'!BI1031=\"\",\"\",'1. Ordersheet'!BI1031)","v":""},{"$f":"IF('1. Ordersheet'!BJ1031=\"\",\"\",'1. Ordersheet'!BJ1031)","v":""},{"$f":"IF('1. Ordersheet'!BK1031=\"\",\"\",'1. Ordersheet'!BK1031)","v":""},{"$f":"IF('1. Ordersheet'!BL1031=\"\",\"\",'1. Ordersheet'!BL1031)","v":""}]
[{"$f":"IF('1. Ordersheet'!F1032=\"\",\"\",'1. Ordersheet'!F1032)","v":""},{"$f":"IF('1. Ordersheet'!G1032=\"\",\"\",'1. Ordersheet'!G1032)","v":""},{"$f":"IF('1. Ordersheet'!H1032=\"\",\"\",'1. Ordersheet'!H1032)","v":""},{"$f":"IF('1. Ordersheet'!I1032=\"\",\"\",'1. Ordersheet'!I1032)","v":""},{"$f":"IF('1. Ordersheet'!J1032=\"\",\"\",'1. Ordersheet'!J1032)","v":""},{"$f":"IF('1. Ordersheet'!K1032=\"\",\"\",'1. Ordersheet'!K1032)","v":""},{"$f":"IF('1. Ordersheet'!L1032=\"\",\"\",'1. Ordersheet'!L1032)","v":""},{"$f":"IF('1. Ordersheet'!M1032=\"\",\"\",'1. Ordersheet'!M1032)","v":""},{"$f":"IF('1. Ordersheet'!N1032=\"\",\"\",'1. Ordersheet'!N1032)","v":""},{"$f":"IF('1. Ordersheet'!O1032=\"\",\"\",'1. Ordersheet'!O1032)","v":{"$error":"#N/A"}},{"$f":"IF('1. Ordersheet'!P1032=\"\",\"\",'1. Ordersheet'!P1032)","v":{"$error":"#N/A"}},{"$f":"IF('1. Ordersheet'!Q1032=\"\",\"\",'1. Ordersheet'!Q1032)","v":""},{"$f":"IF('1. Ordersheet'!R1032=\"\",\"\",'1. Ordersheet'!R1032)","v":""},{"$f":"IF('1. Ordersheet'!S1032=\"\",\"\",'1. Ordersheet'!S1032)","v":""},{"$f":"IF('1. Ordersheet'!V1032=\"\",\"\",'1. Ordersheet'!V1032)","v":""},{"$f":"IF('1. Ordersheet'!W1032=\"\",\"\",'1. Ordersheet'!W1032)","v":""},{"$f":"IF('1. Ordersheet'!X1032=\"\",\"\",'1. Ordersheet'!X1032)","v":""},{"$f":"IF('1. Ordersheet'!Y1032=\"\",\"\",'1. Ordersheet'!Y1032)","v":""},{"$f":"IF('1. Ordersheet'!Z1032=\"\",\"\",'1. Ordersheet'!Z1032)","v":""},{"$f":"IF('1. Ordersheet'!AA1032=\"\",\"\",'1. Ordersheet'!AA1032)","v":""},null,{"$f":"IF('1. Ordersheet'!AS1032=\"\",\"\",'1. Ordersheet'!AS1032)","v":""},{"$f":"IF('1. Ordersheet'!AT1032=\"\",\"\",'1. Ordersheet'!AT1032)","v":""},null,null,null,null,null,null,null,{"$f":"IF('1. Ordersheet'!AX1032=\"\",\"\",'1. Ordersheet'!AX1032)","v":""},{"$f":"IF('1. Ordersheet'!AY1032=\"\",\"\",'1. Ordersheet'!AY1032)","v":""},{"$f":"IF('1. Ordersheet'!AZ1032=\"\",\"\",'1. Ordersheet'!AZ1032)","v":""},{"$f":"IF('1. Ordersheet'!BA1032=\"\",\"\",'1. Ordersheet'!BA1032)","v":""},{"$f":"IF('1. Ordersheet'!BC1032=\"\",\"\",'1. Ordersheet'!BC1032)","v":""},{"$f":"IF('1. Ordersheet'!BD1032=\"\",\"\",'1. Ordersheet'!BD1032)","v":""},{"$f":"IF('1. Ordersheet'!BE1032=\"\",\"\",'1. Ordersheet'!BE1032)","v":""},{"$f":"IF('1. Ordersheet'!BF1032=\"\",\"\",'1. Ordersheet'!BF1032)","v":""},{"$f":"IF('1. Ordersheet'!BG1032=\"\",\"\",'1. Ordersheet'!BG1032)","v":"ZWO"},{"$f":"IF('1. Ordersheet'!BH1032=\"\",\"\",'1. Ordersheet'!BH1032)","v":""},{"$f":"IF('1. Ordersheet'!BI1032=\"\",\"\",'1. Ordersheet'!BI1032)","v":""},{"$f":"IF('1. Ordersheet'!BJ1032=\"\",\"\",'1. Ordersheet'!BJ1032)","v":""},{"$f":"IF('1. Ordersheet'!BK1032=\"\",\"\",'1. Ordersheet'!BK1032)","v":""},{"$f":"IF('1. Ordersheet'!BL1032=\"\",\"\",'1. Ordersheet'!BL1032)","v":""}]
[{"$f":"IF('1. Ordersheet'!F1033=\"\",\"\",'1. Ordersheet'!F1033)","v":""},{"$f":"IF('1. Ordersheet'!G1033=\"\",\"\",'1. Ordersheet'!G1033)","v":""},{"$f":"IF('1. Ordersheet'!H1033=\"\",\"\",'1. Ordersheet'!H1033)","v":""},{"$f":"IF('1. Ordersheet'!I1033=\"\",\"\",'1. Ordersheet'!I1033)","v":""},{"$f":"IF('1. Ordersheet'!J1033=\"\",\"\",'1. Ordersheet'!J1033)","v":""},{"$f":"IF('1. Ordersheet'!K1033=\"\",\"\",'1. Ordersheet'!K1033)","v":""},{"$f":"IF('1. Ordersheet'!L1033=\"\",\"\",'1. Ordersheet'!L1033)","v":""},{"$f":"IF('1. Ordersheet'!M1033=\"\",\"\",'1. Ordersheet'!M1033)","v":""},{"$f":"IF('1. Ordersheet'!N1033=\"\",\"\",'1. Ordersheet'!N1033)","v":""},{"$f":"IF('1. Ordersheet'!O1033=\"\",\"\",'1. Ordersheet'!O1033)","v":{"$error":"#N/A"}},{"$f":"IF('1. Ordersheet'!P1033=\"\",\"\",'1. Ordersheet'!P1033)","v":{"$error":"#N/A"}},{"$f":"IF('1. Ordersheet'!Q1033=\"\",\"\",'1. Ordersheet'!Q1033)","v":""},{"$f":"IF('1. Ordersheet'!R1033=\"\",\"\",'1. Ordersheet'!R1033)","v":""},{"$f":"IF('1. Ordersheet'!S1033=\"\",\"\",'1. Ordersheet'!S1033)","v":""},{"$f":"IF('1. Ordersheet'!V1033=\"\",\"\",'1. Ordersheet'!V1033)","v":""},{"$f":"IF('1. Ordersheet'!W1033=\"\",\"\",'1. Ordersheet'!W1033)","v":""},{"$f":"IF('1. Ordersheet'!X1033=\"\",\"\",'1. Ordersheet'!X1033)","v":""},{"$f":"IF('1. Ordersheet'!Y1033=\"\",\"\",'1. Ordersheet'!Y1033)","v":""},{"$f":"IF('1. Ordersheet'!Z1033=\"\",\"\",'1. Ordersheet'!Z1033)","v":""},{"$f":"IF('1. Ordersheet'!AA1033=\"\",\"\",'1. Ordersheet'!AA1033)","v":""},null,{"$f":"IF('1. Ordersheet'!AS1033=\"\",\"\",'1. Ordersheet'!AS1033)","v":""},{"$f":"IF('1. Ordersheet'!AT1033=\"\",\"\",'1. Ordersheet'!AT1033)","v":""},null,null,null,null,null,null,null,{"$f":"IF('1. Ordersheet'!AX1033=\"\",\"\",'1. Ordersheet'!AX1033)","v":""},{"$f":"IF('1. Ordersheet'!AY1033=\"\",\"\",'1. Ordersheet'!AY1033)","v":""},{"$f":"IF('1. Ordersheet'!AZ1033=\"\",\"\",'1. Ordersheet'!AZ1033)","v":""},{"$f":"IF('1. Ordersheet'!BA1033=\"\",\"\",'1. Ordersheet'!BA1033)","v":""},{"$f":"IF('1. Ordersheet'!BC1033=\"\",\"\",'1. Ordersheet'!BC1033)","v":""},{"$f":"IF('1. Ordersheet'!BD1033=\"\",\"\",'1. Ordersheet'!BD1033)","v":""},{"$f":"IF('1. Ordersheet'!BE1033=\"\",\"\",'1. Ordersheet'!BE1033)","v":""},{"$f":"IF('1. Ordersheet'!BF1033=\"\",\"\",'1. Ordersheet'!BF1033)","v":""},{"$f":"IF('1. Ordersheet'!BG1033=\"\",\"\",'1. Ordersheet'!BG1033)","v":"ZWO"},{"$f":"IF('1. Ordersheet'!BH1033=\"\",\"\",'1. Ordersheet'!BH1033)","v":""},{"$f":"IF('1. Ordersheet'!BI1033=\"\",\"\",'1. Ordersheet'!BI1033)","v":""},{"$f":"IF('1. Ordersheet'!BJ1033=\"\",\"\",'1. Ordersheet'!BJ1033)","v":""},{"$f":"IF('1. Ordersheet'!BK1033=\"\",\"\",'1. Ordersheet'!BK1033)","v":""},{"$f":"IF('1. Ordersheet'!BL1033=\"\",\"\",'1. Ordersheet'!BL1033)","v":""}]
[{"$f":"IF('1. Ordersheet'!F1034=\"\",\"\",'1. Ordersheet'!F1034)","v":""},{"$f":"IF('1. Ordersheet'!G1034=\"\",\"\",'1. Ordersheet'!G1034)","v":""},{"$f":"IF('1. Ordersheet'!H1034=\"\",\"\",'1. Ordersheet'!H1034)","v":""},{"$f":"IF('1. Ordersheet'!I1034=\"\",\"\",'1. Ordersheet'!I1034)","v":""},{"$f":"IF('1. Ordersheet'!J1034=\"\",\"\",'1. Ordersheet'!J1034)","v":""},{"$f":"IF('1. Ordersheet'!K1034=\"\",\"\",'1. Ordersheet'!K1034)","v":""},{"$f":"IF('1. Ordersheet'!L1034=\"\",\"\",'1. Ordersheet'!L1034)","v":""},{"$f":"IF('1. Ordersheet'!M1034=\"\",\"\",'1. Ordersheet'!M1034)","v":""},{"$f":"IF('1. Ordersheet'!N1034=\"\",\"\",'1. Ordersheet'!N1034)","v":""},{"$f":"IF('1. Ordersheet'!O1034=\"\",\"\",'1. Ordersheet'!O1034)","v":{"$error":"#N/A"}},{"$f":"IF('1. Ordersheet'!P1034=\"\",\"\",'1. Ordersheet'!P1034)","v":{"$error":"#N/A"}},{"$f":"IF('1. Ordersheet'!Q1034=\"\",\"\",'1. Ordersheet'!Q1034)","v":""},{"$f":"IF('1. Ordersheet'!R1034=\"\",\"\",'1. Ordersheet'!R1034)","v":""},{"$f":"IF('1. Ordersheet'!S1034=\"\",\"\",'1. Ordersheet'!S1034)","v":""},{"$f":"IF('1. Ordersheet'!V1034=\"\",\"\",'1. Ordersheet'!V1034)","v":""},{"$f":"IF('1. Ordersheet'!W1034=\"\",\"\",'1. Ordersheet'!W1034)","v":""},{"$f":"IF('1. Ordersheet'!X1034=\"\",\"\",'1. Ordersheet'!X1034)","v":""},{"$f":"IF('1. Ordersheet'!Y1034=\"\",\"\",'1. Ordersheet'!Y1034)","v":""},{"$f":"IF('1. Ordersheet'!Z1034=\"\",\"\",'1. Ordersheet'!Z1034)","v":""},{"$f":"IF('1. Ordersheet'!AA1034=\"\",\"\",'1. Ordersheet'!AA1034)","v":""},null,{"$f":"IF('1. Ordersheet'!AS1034=\"\",\"\",'1. Ordersheet'!AS1034)","v":""},{"$f":"IF('1. Ordersheet'!AT1034=\"\",\"\",'1. Ordersheet'!AT1034)","v":""},null,null,null,null,null,null,null,{"$f":"IF('1. Ordersheet'!AX1034=\"\",\"\",'1. Ordersheet'!AX1034)","v":""},{"$f":"IF('1. Ordersheet'!AY1034=\"\",\"\",'1. Ordersheet'!AY1034)","v":""},{"$f":"IF('1. Ordersheet'!AZ1034=\"\",\"\",'1. Ordersheet'!AZ1034)","v":""},{"$f":"IF('1. Ordersheet'!BA1034=\"\",\"\",'1. Ordersheet'!BA1034)","v":""},{"$f":"IF('1. Ordersheet'!BC1034=\"\",\"\",'1. Ordersheet'!BC1034)","v":""},{"$f":"IF('1. Ordersheet'!BD1034=\"\",\"\",'1. Ordersheet'!BD1034)","v":""},{"$f":"IF('1. Ordersheet'!BE1034=\"\",\"\",'1. Ordersheet'!BE1034)","v":""},{"$f":"IF('1. Ordersheet'!BF1034=\"\",\"\",'1. Ordersheet'!BF1034)","v":""},{"$f":"IF('1. Ordersheet'!BG1034=\"\",\"\",'1. Ordersheet'!BG1034)","v":"ZWO"},{"$f":"IF('1. Ordersheet'!BH1034=\"\",\"\",'1. Ordersheet'!BH1034)","v":""},{"$f":"IF('1. Ordersheet'!BI1034=\"\",\"\",'1. Ordersheet'!BI1034)","v":""},{"$f":"IF('1. Ordersheet'!BJ1034=\"\",\"\",'1. Ordersheet'!BJ1034)","v":""},{"$f":"IF('1. Ordersheet'!BK1034=\"\",\"\",'1. Ordersheet'!BK1034)","v":""},{"$f":"IF('1. Ordersheet'!BL1034=\"\",\"\",'1. Ordersheet'!BL1034)","v":""}]
[{"$f":"IF('1. Ordersheet'!F1035=\"\",\"\",'1. Ordersheet'!F1035)","v":""},{"$f":"IF('1. Ordersheet'!G1035=\"\",\"\",'1. Ordersheet'!G1035)","v":""},{"$f":"IF('1. Ordersheet'!H1035=\"\",\"\",'1. Ordersheet'!H1035)","v":""},{"$f":"IF('1. Ordersheet'!I1035=\"\",\"\",'1. Ordersheet'!I1035)","v":""},{"$f":"IF('1. Ordersheet'!J1035=\"\",\"\",'1. Ordersheet'!J1035)","v":""},{"$f":"IF('1. Ordersheet'!K1035=\"\",\"\",'1. Ordersheet'!K1035)","v":""},{"$f":"IF('1. Ordersheet'!L1035=\"\",\"\",'1. Ordersheet'!L1035)","v":""},{"$f":"IF('1. Ordersheet'!M1035=\"\",\"\",'1. Ordersheet'!M1035)","v":""},{"$f":"IF('1. Ordersheet'!N1035=\"\",\"\",'1. Ordersheet'!N1035)","v":""},{"$f":"IF('1. Ordersheet'!O1035=\"\",\"\",'1. Ordersheet'!O1035)","v":{"$error":"#N/A"}},{"$f":"IF('1. Ordersheet'!P1035=\"\",\"\",'1. Ordersheet'!P1035)","v":{"$error":"#N/A"}},{"$f":"IF('1. Ordersheet'!Q1035=\"\",\"\",'1. Ordersheet'!Q1035)","v":""},{"$f":"IF('1. Ordersheet'!R1035=\"\",\"\",'1. Ordersheet'!R1035)","v":""},{"$f":"IF('1. Ordersheet'!S1035=\"\",\"\",'1. Ordersheet'!S1035)","v":""},{"$f":"IF('1. Ordersheet'!V1035=\"\",\"\",'1. Ordersheet'!V1035)","v":""},{"$f":"IF('1. Ordersheet'!W1035=\"\",\"\",'1. Ordersheet'!W1035)","v":""},{"$f":"IF('1. Ordersheet'!X1035=\"\",\"\",'1. Ordersheet'!X1035)","v":""},{"$f":"IF('1. Ordersheet'!Y1035=\"\",\"\",'1. Ordersheet'!Y1035)","v":""},{"$f":"IF('1. Ordersheet'!Z1035=\"\",\"\",'1. Ordersheet'!Z1035)","v":""},{"$f":"IF('1. Ordersheet'!AA1035=\"\",\"\",'1. Ordersheet'!AA1035)","v":""},null,{"$f":"IF('1. Ordersheet'!AS1035=\"\",\"\",'1. Ordersheet'!AS1035)","v":""},{"$f":"IF('1. Ordersheet'!AT1035=\"\",\"\",'1. Ordersheet'!AT1035)","v":""},null,null,null,null,null,null,null,{"$f":"IF('1. Ordersheet'!AX1035=\"\",\"\",'1. Ordersheet'!AX1035)","v":""},{"$f":"IF('1. Ordersheet'!AY1035=\"\",\"\",'1. Ordersheet'!AY1035)","v":""},{"$f":"IF('1. Ordersheet'!AZ1035=\"\",\"\",'1. Ordersheet'!AZ1035)","v":""},{"$f":"IF('1. Ordersheet'!BA1035=\"\",\"\",'1. Ordersheet'!BA1035)","v":""},{"$f":"IF('1. Ordersheet'!BC1035=\"\",\"\",'1. Ordersheet'!BC1035)","v":""},{"$f":"IF('1. Ordersheet'!BD1035=\"\",\"\",'1. Ordersheet'!BD1035)","v":""},{"$f":"IF('1. Ordersheet'!BE1035=\"\",\"\",'1. Ordersheet'!BE1035)","v":""},{"$f":"IF('1. Ordersheet'!BF1035=\"\",\"\",'1. Ordersheet'!BF1035)","v":""},{"$f":"IF('1. Ordersheet'!BG1035=\"\",\"\",'1. Ordersheet'!BG1035)","v":"ZWO"},{"$f":"IF('1. Ordersheet'!BH1035=\"\",\"\",'1. Ordersheet'!BH1035)","v":""},{"$f":"IF('1. Ordersheet'!BI1035=\"\",\"\",'1. Ordersheet'!BI1035)","v":""},{"$f":"IF('1. Ordersheet'!BJ1035=\"\",\"\",'1. Ordersheet'!BJ1035)","v":""},{"$f":"IF('1. Ordersheet'!BK1035=\"\",\"\",'1. Ordersheet'!BK1035)","v":""},{"$f":"IF('1. Ordersheet'!BL1035=\"\",\"\",'1. Ordersheet'!BL1035)","v":""}]
[{"$f":"IF('1. Ordersheet'!F1036=\"\",\"\",'1. Ordersheet'!F1036)","v":""},{"$f":"IF('1. Ordersheet'!G1036=\"\",\"\",'1. Ordersheet'!G1036)","v":""},{"$f":"IF('1. Ordersheet'!H1036=\"\",\"\",'1. Ordersheet'!H1036)","v":""},{"$f":"IF('1. Ordersheet'!I1036=\"\",\"\",'1. Ordersheet'!I1036)","v":""},{"$f":"IF('1. Ordersheet'!J1036=\"\",\"\",'1. Ordersheet'!J1036)","v":""},{"$f":"IF('1. Ordersheet'!K1036=\"\",\"\",'1. Ordersheet'!K1036)","v":""},{"$f":"IF('1. Ordersheet'!L1036=\"\",\"\",'1. Ordersheet'!L1036)","v":""},{"$f":"IF('1. Ordersheet'!M1036=\"\",\"\",'1. Ordersheet'!M1036)","v":""},{"$f":"IF('1. Ordersheet'!N1036=\"\",\"\",'1. Ordersheet'!N1036)","v":""},{"$f":"IF('1. Ordersheet'!O1036=\"\",\"\",'1. Ordersheet'!O1036)","v":{"$error":"#N/A"}},{"$f":"IF('1. Ordersheet'!P1036=\"\",\"\",'1. Ordersheet'!P1036)","v":{"$error":"#N/A"}},{"$f":"IF('1. Ordersheet'!Q1036=\"\",\"\",'1. Ordersheet'!Q1036)","v":""},{"$f":"IF('1. Ordersheet'!R1036=\"\",\"\",'1. Ordersheet'!R1036)","v":""},{"$f":"IF('1. Ordersheet'!S1036=\"\",\"\",'1. Ordersheet'!S1036)","v":""},{"$f":"IF('1. Ordersheet'!V1036=\"\",\"\",'1. Ordersheet'!V1036)","v":""},{"$f":"IF('1. Ordersheet'!W1036=\"\",\"\",'1. Ordersheet'!W1036)","v":""},{"$f":"IF('1. Ordersheet'!X1036=\"\",\"\",'1. Ordersheet'!X1036)","v":""},{"$f":"IF('1. Ordersheet'!Y1036=\"\",\"\",'1. Ordersheet'!Y1036)","v":""},{"$f":"IF('1. Ordersheet'!Z1036=\"\",\"\",'1. Ordersheet'!Z1036)","v":""},{"$f":"IF('1. Ordersheet'!AA1036=\"\",\"\",'1. Ordersheet'!AA1036)","v":""},null,{"$f":"IF('1. Ordersheet'!AS1036=\"\",\"\",'1. Ordersheet'!AS1036)","v":""},{"$f":"IF('1. Ordersheet'!AT1036=\"\",\"\",'1. Ordersheet'!AT1036)","v":""},null,null,null,null,null,null,null,{"$f":"IF('1. Ordersheet'!AX1036=\"\",\"\",'1. Ordersheet'!AX1036)","v":""},{"$f":"IF('1. Ordersheet'!AY1036=\"\",\"\",'1. Ordersheet'!AY1036)","v":""},{"$f":"IF('1. Ordersheet'!AZ1036=\"\",\"\",'1. Ordersheet'!AZ1036)","v":""},{"$f":"IF('1. Ordersheet'!BA1036=\"\",\"\",'1. Ordersheet'!BA1036)","v":""},{"$f":"IF('1. Ordersheet'!BC1036=\"\",\"\",'1. Ordersheet'!BC1036)","v":""},{"$f":"IF('1. Ordersheet'!BD1036=\"\",\"\",'1. Ordersheet'!BD1036)","v":""},{"$f":"IF('1. Ordersheet'!BE1036=\"\",\"\",'1. Ordersheet'!BE1036)","v":""},{"$f":"IF('1. Ordersheet'!BF1036=\"\",\"\",'1. Ordersheet'!BF1036)","v":""},{"$f":"IF('1. Ordersheet'!BG1036=\"\",\"\",'1. Ordersheet'!BG1036)","v":"ZWO"},{"$f":"IF('1. Ordersheet'!BH1036=\"\",\"\",'1. Ordersheet'!BH1036)","v":""},{"$f":"IF('1. Ordersheet'!BI1036=\"\",\"\",'1. Ordersheet'!BI1036)","v":""},{"$f":"IF('1. Ordersheet'!BJ1036=\"\",\"\",'1. Ordersheet'!BJ1036)","v":""},{"$f":"IF('1. Ordersheet'!BK1036=\"\",\"\",'1. Ordersheet'!BK1036)","v":""},{"$f":"IF('1. Ordersheet'!BL1036=\"\",\"\",'1. Ordersheet'!BL1036)","v":""}]
[{"$f":"IF('1. Ordersheet'!F1037=\"\",\"\",'1. Ordersheet'!F1037)","v":""},{"$f":"IF('1. Ordersheet'!G1037=\"\",\"\",'1. Ordersheet'!G1037)","v":""},{"$f":"IF('1. Ordersheet'!H1037=\"\",\"\",'1. Ordersheet'!H1037)","v":""},{"$f":"IF('1. Ordersheet'!I1037=\"\",\"\",'1. Ordersheet'!I1037)","v":""},{"$f":"IF('1. Ordersheet'!J1037=\"\",\"\",'1. Ordersheet'!J1037)","v":""},{"$f":"IF('1. Ordersheet'!K1037=\"\",\"\",'1. Ordersheet'!K1037)","v":""},{"$f":"IF('1. Ordersheet'!L1037=\"\",\"\",'1. Ordersheet'!L1037)","v":""},{"$f":"IF('1. Ordersheet'!M1037=\"\",\"\",'1. Ordersheet'!M1037)","v":""},{"$f":"IF('1. Ordersheet'!N1037=\"\",\"\",'1. Ordersheet'!N1037)","v":""},{"$f":"IF('1. Ordersheet'!O1037=\"\",\"\",'1. Ordersheet'!O1037)","v":{"$error":"#N/A"}},{"$f":"IF('1. Ordersheet'!P1037=\"\",\"\",'1. Ordersheet'!P1037)","v":{"$error":"#N/A"}},{"$f":"IF('1. Ordersheet'!Q1037=\"\",\"\",'1. Ordersheet'!Q1037)","v":""},{"$f":"IF('1. Ordersheet'!R1037=\"\",\"\",'1. Ordersheet'!R1037)","v":""},{"$f":"IF('1. Ordersheet'!S1037=\"\",\"\",'1. Ordersheet'!S1037)","v":""},{"$f":"IF('1. Ordersheet'!V1037=\"\",\"\",'1. Ordersheet'!V1037)","v":""},{"$f":"IF('1. Ordersheet'!W1037=\"\",\"\",'1. Ordersheet'!W1037)","v":""},{"$f":"IF('1. Ordersheet'!X1037=\"\",\"\",'1. Ordersheet'!X1037)","v":""},{"$f":"IF('1. Ordersheet'!Y1037=\"\",\"\",'1. Ordersheet'!Y1037)","v":""},{"$f":"IF('1. Ordersheet'!Z1037=\"\",\"\",'1. Ordersheet'!Z1037)","v":""},{"$f":"IF('1. Ordersheet'!AA1037=\"\",\"\",'1. Ordersheet'!AA1037)","v":""},null,{"$f":"IF('1. Ordersheet'!AS1037=\"\",\"\",'1. Ordersheet'!AS1037)","v":""},{"$f":"IF('1. Ordersheet'!AT1037=\"\",\"\",'1. Ordersheet'!AT1037)","v":""},null,null,null,null,null,null,null,{"$f":"IF('1. Ordersheet'!AX1037=\"\",\"\",'1. Ordersheet'!AX1037)","v":""},{"$f":"IF('1. Ordersheet'!AY1037=\"\",\"\",'1. Ordersheet'!AY1037)","v":""},{"$f":"IF('1. Ordersheet'!AZ1037=\"\",\"\",'1. Ordersheet'!AZ1037)","v":""},{"$f":"IF('1. Ordersheet'!BA1037=\"\",\"\",'1. Ordersheet'!BA1037)","v":""},{"$f":"IF('1. Ordersheet'!BC1037=\"\",\"\",'1. Ordersheet'!BC1037)","v":""},{"$f":"IF('1. Ordersheet'!BD1037=\"\",\"\",'1. Ordersheet'!BD1037)","v":""},{"$f":"IF('1. Ordersheet'!BE1037=\"\",\"\",'1. Ordersheet'!BE1037)","v":""},{"$f":"IF('1. Ordersheet'!BF1037=\"\",\"\",'1. Ordersheet'!BF1037)","v":""},{"$f":"IF('1. Ordersheet'!BG1037=\"\",\"\",'1. Ordersheet'!BG1037)","v":"ZWO"},{"$f":"IF('1. Ordersheet'!BH1037=\"\",\"\",'1. Ordersheet'!BH1037)","v":""},{"$f":"IF('1. Ordersheet'!BI1037=\"\",\"\",'1. Ordersheet'!BI1037)","v":""},{"$f":"IF('1. Ordersheet'!BJ1037=\"\",\"\",'1. Ordersheet'!BJ1037)","v":""},{"$f":"IF('1. Ordersheet'!BK1037=\"\",\"\",'1. Ordersheet'!BK1037)","v":""},{"$f":"IF('1. Ordersheet'!BL1037=\"\",\"\",'1. Ordersheet'!BL1037)","v":""}]
[{"$f":"IF('1. Ordersheet'!F1038=\"\",\"\",'1. Ordersheet'!F1038)","v":""},{"$f":"IF('1. Ordersheet'!G1038=\"\",\"\",'1. Ordersheet'!G1038)","v":""},{"$f":"IF('1. Ordersheet'!H1038=\"\",\"\",'1. Ordersheet'!H1038)","v":""},{"$f":"IF('1. Ordersheet'!I1038=\"\",\"\",'1. Ordersheet'!I1038)","v":""},{"$f":"IF('1. Ordersheet'!J1038=\"\",\"\",'1. Ordersheet'!J1038)","v":""},{"$f":"IF('1. Ordersheet'!K1038=\"\",\"\",'1. Ordersheet'!K1038)","v":""},{"$f":"IF('1. Ordersheet'!L1038=\"\",\"\",'1. Ordersheet'!L1038)","v":""},{"$f":"IF('1. Ordersheet'!M1038=\"\",\"\",'1. Ordersheet'!M1038)","v":""},{"$f":"IF('1. Ordersheet'!N1038=\"\",\"\",'1. Ordersheet'!N1038)","v":""},{"$f":"IF('1. Ordersheet'!O1038=\"\",\"\",'1. Ordersheet'!O1038)","v":{"$error":"#N/A"}},{"$f":"IF('1. Ordersheet'!P1038=\"\",\"\",'1. Ordersheet'!P1038)","v":{"$error":"#N/A"}},{"$f":"IF('1. Ordersheet'!Q1038=\"\",\"\",'1. Ordersheet'!Q1038)","v":""},{"$f":"IF('1. Ordersheet'!R1038=\"\",\"\",'1. Ordersheet'!R1038)","v":""},{"$f":"IF('1. Ordersheet'!S1038=\"\",\"\",'1. Ordersheet'!S1038)","v":""},{"$f":"IF('1. Ordersheet'!V1038=\"\",\"\",'1. Ordersheet'!V1038)","v":""},{"$f":"IF('1. Ordersheet'!W1038=\"\",\"\",'1. Ordersheet'!W1038)","v":""},{"$f":"IF('1. Ordersheet'!X1038=\"\",\"\",'1. Ordersheet'!X1038)","v":""},{"$f":"IF('1. Ordersheet'!Y1038=\"\",\"\",'1. Ordersheet'!Y1038)","v":""},{"$f":"IF('1. Ordersheet'!Z1038=\"\",\"\",'1. Ordersheet'!Z1038)","v":""},{"$f":"IF('1. Ordersheet'!AA1038=\"\",\"\",'1. Ordersheet'!AA1038)","v":""},null,{"$f":"IF('1. Ordersheet'!AS1038=\"\",\"\",'1. Ordersheet'!AS1038)","v":""},{"$f":"IF('1. Ordersheet'!AT1038=\"\",\"\",'1. Ordersheet'!AT1038)","v":""},null,null,null,null,null,null,null,{"$f":"IF('1. Ordersheet'!AX1038=\"\",\"\",'1. Ordersheet'!AX1038)","v":""},{"$f":"IF('1. Ordersheet'!AY1038=\"\",\"\",'1. Ordersheet'!AY1038)","v":""},{"$f":"IF('1. Ordersheet'!AZ1038=\"\",\"\",'1. Ordersheet'!AZ1038)","v":""},{"$f":"IF('1. Ordersheet'!BA1038=\"\",\"\",'1. Ordersheet'!BA1038)","v":""},{"$f":"IF('1. Ordersheet'!BC1038=\"\",\"\",'1. Ordersheet'!BC1038)","v":""},{"$f":"IF('1. Ordersheet'!BD1038=\"\",\"\",'1. Ordersheet'!BD1038)","v":""},{"$f":"IF('1. Ordersheet'!BE1038=\"\",\"\",'1. Ordersheet'!BE1038)","v":""},{"$f":"IF('1. Ordersheet'!BF1038=\"\",\"\",'1. Ordersheet'!BF1038)","v":""},{"$f":"IF('1. Ordersheet'!BG1038=\"\",\"\",'1. Ordersheet'!BG1038)","v":"ZWO"},{"$f":"IF('1. Ordersheet'!BH1038=\"\",\"\",'1. Ordersheet'!BH1038)","v":""},{"$f":"IF('1. Ordersheet'!BI1038=\"\",\"\",'1. Ordersheet'!BI1038)","v":""},{"$f":"IF('1. Ordersheet'!BJ1038=\"\",\"\",'1. Ordersheet'!BJ1038)","v":""},{"$f":"IF('1. Ordersheet'!BK1038=\"\",\"\",'1. Ordersheet'!BK1038)","v":""},{"$f":"IF('1. Ordersheet'!BL1038=\"\",\"\",'1. Ordersheet'!BL1038)","v":""}]
[{"$f":"IF('1. Ordersheet'!F1039=\"\",\"\",'1. Ordersheet'!F1039)","v":""},{"$f":"IF('1. Ordersheet'!G1039=\"\",\"\",'1. Ordersheet'!G1039)","v":""},{"$f":"IF('1. Ordersheet'!H1039=\"\",\"\",'1. Ordersheet'!H1039)","v":""},{"$f":"IF('1. Ordersheet'!I1039=\"\",\"\",'1. Ordersheet'!I1039)","v":""},{"$f":"IF('1. Ordersheet'!J1039=\"\",\"\",'1. Ordersheet'!J1039)","v":""},{"$f":"IF('1. Ordersheet'!K1039=\"\",\"\",'1. Ordersheet'!K1039)","v":""},{"$f":"IF('1. Ordersheet'!L1039=\"\",\"\",'1. Ordersheet'!L1039)","v":""},{"$f":"IF('1. Ordersheet'!M1039=\"\",\"\",'1. Ordersheet'!M1039)","v":""},{"$f":"IF('1. Ordersheet'!N1039=\"\",\"\",'1. Ordersheet'!N1039)","v":""},{"$f":"IF('1. Ordersheet'!O1039=\"\",\"\",'1. Ordersheet'!O1039)","v":{"$error":"#N/A"}},{"$f":"IF('1. Ordersheet'!P1039=\"\",\"\",'1. Ordersheet'!P1039)","v":{"$error":"#N/A"}},{"$f":"IF('1. Ordersheet'!Q1039=\"\",\"\",'1. Ordersheet'!Q1039)","v":""},{"$f":"IF('1. Ordersheet'!R1039=\"\",\"\",'1. Ordersheet'!R1039)","v":""},{"$f":"IF('1. Ordersheet'!S1039=\"\",\"\",'1. Ordersheet'!S1039)","v":""},{"$f":"IF('1. Ordersheet'!V1039=\"\",\"\",'1. Ordersheet'!V1039)","v":""},{"$f":"IF('1. Ordersheet'!W1039=\"\",\"\",'1. Ordersheet'!W1039)","v":""},{"$f":"IF('1. Ordersheet'!X1039=\"\",\"\",'1. Ordersheet'!X1039)","v":""},{"$f":"IF('1. Ordersheet'!Y1039=\"\",\"\",'1. Ordersheet'!Y1039)","v":""},{"$f":"IF('1. Ordersheet'!Z1039=\"\",\"\",'1. Ordersheet'!Z1039)","v":""},{"$f":"IF('1. Ordersheet'!AA1039=\"\",\"\",'1. Ordersheet'!AA1039)","v":""},null,{"$f":"IF('1. Ordersheet'!AS1039=\"\",\"\",'1. Ordersheet'!AS1039)","v":""},{"$f":"IF('1. Ordersheet'!AT1039=\"\",\"\",'1. Ordersheet'!AT1039)","v":""},null,null,null,null,null,null,null,{"$f":"IF('1. Ordersheet'!AX1039=\"\",\"\",'1. Ordersheet'!AX1039)","v":""},{"$f":"IF('1. Ordersheet'!AY1039=\"\",\"\",'1. Ordersheet'!AY1039)","v":""},{"$f":"IF('1. Ordersheet'!AZ1039=\"\",\"\",'1. Ordersheet'!AZ1039)","v":""},{"$f":"IF('1. Ordersheet'!BA1039=\"\",\"\",'1. Ordersheet'!BA1039)","v":""},{"$f":"IF('1. Ordersheet'!BC1039=\"\",\"\",'1. Ordersheet'!BC1039)","v":""},{"$f":"IF('1. Ordersheet'!BD1039=\"\",\"\",'1. Ordersheet'!BD1039)","v":""},{"$f":"IF('1. Ordersheet'!BE1039=\"\",\"\",'1. Ordersheet'!BE1039)","v":""},{"$f":"IF('1. Ordersheet'!BF1039=\"\",\"\",'1. Ordersheet'!BF1039)","v":""},{"$f":"IF('1. Ordersheet'!BG1039=\"\",\"\",'1. Ordersheet'!BG1039)","v":"ZWO"},{"$f":"IF('1. Ordersheet'!BH1039=\"\",\"\",'1. Ordersheet'!BH1039)","v":""},{"$f":"IF('1. Ordersheet'!BI1039=\"\",\"\",'1. Ordersheet'!BI1039)","v":""},{"$f":"IF('1. Ordersheet'!BJ1039=\"\",\"\",'1. Ordersheet'!BJ1039)","v":""},{"$f":"IF('1. Ordersheet'!BK1039=\"\",\"\",'1. Ordersheet'!BK1039)","v":""},{"$f":"IF('1. Ordersheet'!BL1039=\"\",\"\",'1. Ordersheet'!BL1039)","v":""}]
[{"$f":"IF('1. Ordersheet'!F1040=\"\",\"\",'1. Ordersheet'!F1040)","v":""},{"$f":"IF('1. Ordersheet'!G1040=\"\",\"\",'1. Ordersheet'!G1040)","v":""},{"$f":"IF('1. Ordersheet'!H1040=\"\",\"\",'1. Ordersheet'!H1040)","v":""},{"$f":"IF('1. Ordersheet'!I1040=\"\",\"\",'1. Ordersheet'!I1040)","v":""},{"$f":"IF('1. Ordersheet'!J1040=\"\",\"\",'1. Ordersheet'!J1040)","v":""},{"$f":"IF('1. Ordersheet'!K1040=\"\",\"\",'1. Ordersheet'!K1040)","v":""},{"$f":"IF('1. Ordersheet'!L1040=\"\",\"\",'1. Ordersheet'!L1040)","v":""},{"$f":"IF('1. Ordersheet'!M1040=\"\",\"\",'1. Ordersheet'!M1040)","v":""},{"$f":"IF('1. Ordersheet'!N1040=\"\",\"\",'1. Ordersheet'!N1040)","v":""},{"$f":"IF('1. Ordersheet'!O1040=\"\",\"\",'1. Ordersheet'!O1040)","v":{"$error":"#N/A"}},{"$f":"IF('1. Ordersheet'!P1040=\"\",\"\",'1. Ordersheet'!P1040)","v":{"$error":"#N/A"}},{"$f":"IF('1. Ordersheet'!Q1040=\"\",\"\",'1. Ordersheet'!Q1040)","v":""},{"$f":"IF('1. Ordersheet'!R1040=\"\",\"\",'1. Ordersheet'!R1040)","v":""},{"$f":"IF('1. Ordersheet'!S1040=\"\",\"\",'1. Ordersheet'!S1040)","v":""},{"$f":"IF('1. Ordersheet'!V1040=\"\",\"\",'1. Ordersheet'!V1040)","v":""},{"$f":"IF('1. Ordersheet'!W1040=\"\",\"\",'1. Ordersheet'!W1040)","v":""},{"$f":"IF('1. Ordersheet'!X1040=\"\",\"\",'1. Ordersheet'!X1040)","v":""},{"$f":"IF('1. Ordersheet'!Y1040=\"\",\"\",'1. Ordersheet'!Y1040)","v":""},{"$f":"IF('1. Ordersheet'!Z1040=\"\",\"\",'1. Ordersheet'!Z1040)","v":""},{"$f":"IF('1. Ordersheet'!AA1040=\"\",\"\",'1. Ordersheet'!AA1040)","v":""},null,{"$f":"IF('1. Ordersheet'!AS1040=\"\",\"\",'1. Ordersheet'!AS1040)","v":""},{"$f":"IF('1. Ordersheet'!AT1040=\"\",\"\",'1. Ordersheet'!AT1040)","v":""},null,null,null,null,null,null,null,{"$f":"IF('1. Ordersheet'!AX1040=\"\",\"\",'1. Ordersheet'!AX1040)","v":""},{"$f":"IF('1. Ordersheet'!AY1040=\"\",\"\",'1. Ordersheet'!AY1040)","v":""},{"$f":"IF('1. Ordersheet'!AZ1040=\"\",\"\",'1. Ordersheet'!AZ1040)","v":""},{"$f":"IF('1. Ordersheet'!BA1040=\"\",\"\",'1. Ordersheet'!BA1040)","v":""},{"$f":"IF('1. Ordersheet'!BC1040=\"\",\"\",'1. Ordersheet'!BC1040)","v":""},{"$f":"IF('1. Ordersheet'!BD1040=\"\",\"\",'1. Ordersheet'!BD1040)","v":""},{"$f":"IF('1. Ordersheet'!BE1040=\"\",\"\",'1. Ordersheet'!BE1040)","v":""},{"$f":"IF('1. Ordersheet'!BF1040=\"\",\"\",'1. Ordersheet'!BF1040)","v":""},{"$f":"IF('1. Ordersheet'!BG1040=\"\",\"\",'1. Ordersheet'!BG1040)","v":"ZWO"},{"$f":"IF('1. Ordersheet'!BH1040=\"\",\"\",'1. Ordersheet'!BH1040)","v":""},{"$f":"IF('1. Ordersheet'!BI1040=\"\",\"\",'1. Ordersheet'!BI1040)","v":""},{"$f":"IF('1. Ordersheet'!BJ1040=\"\",\"\",'1. Ordersheet'!BJ1040)","v":""},{"$f":"IF('1. Ordersheet'!BK1040=\"\",\"\",'1. Ordersheet'!BK1040)","v":""},{"$f":"IF('1. Ordersheet'!BL1040=\"\",\"\",'1. Ordersheet'!BL1040)","v":""}]
[{"$f":"IF('1. Ordersheet'!F1041=\"\",\"\",'1. Ordersheet'!F1041)","v":""},{"$f":"IF('1. Ordersheet'!G1041=\"\",\"\",'1. Ordersheet'!G1041)","v":""},{"$f":"IF('1. Ordersheet'!H1041=\"\",\"\",'1. Ordersheet'!H1041)","v":""},{"$f":"IF('1. Ordersheet'!I1041=\"\",\"\",'1. Ordersheet'!I1041)","v":""},{"$f":"IF('1. Ordersheet'!J1041=\"\",\"\",'1. Ordersheet'!J1041)","v":""},{"$f":"IF('1. Ordersheet'!K1041=\"\",\"\",'1. Ordersheet'!K1041)","v":""},{"$f":"IF('1. Ordersheet'!L1041=\"\",\"\",'1. Ordersheet'!L1041)","v":""},{"$f":"IF('1. Ordersheet'!M1041=\"\",\"\",'1. Ordersheet'!M1041)","v":""},{"$f":"IF('1. Ordersheet'!N1041=\"\",\"\",'1. Ordersheet'!N1041)","v":""},{"$f":"IF('1. Ordersheet'!O1041=\"\",\"\",'1. Ordersheet'!O1041)","v":{"$error":"#N/A"}},{"$f":"IF('1. Ordersheet'!P1041=\"\",\"\",'1. Ordersheet'!P1041)","v":{"$error":"#N/A"}},{"$f":"IF('1. Ordersheet'!Q1041=\"\",\"\",'1. Ordersheet'!Q1041)","v":""},{"$f":"IF('1. Ordersheet'!R1041=\"\",\"\",'1. Ordersheet'!R1041)","v":""},{"$f":"IF('1. Ordersheet'!S1041=\"\",\"\",'1. Ordersheet'!S1041)","v":""},{"$f":"IF('1. Ordersheet'!V1041=\"\",\"\",'1. Ordersheet'!V1041)","v":""},{"$f":"IF('1. Ordersheet'!W1041=\"\",\"\",'1. Ordersheet'!W1041)","v":""},{"$f":"IF('1. Ordersheet'!X1041=\"\",\"\",'1. Ordersheet'!X1041)","v":""},{"$f":"IF('1. Ordersheet'!Y1041=\"\",\"\",'1. Ordersheet'!Y1041)","v":""},{"$f":"IF('1. Ordersheet'!Z1041=\"\",\"\",'1. Ordersheet'!Z1041)","v":""},{"$f":"IF('1. Ordersheet'!AA1041=\"\",\"\",'1. Ordersheet'!AA1041)","v":""},null,{"$f":"IF('1. Ordersheet'!AS1041=\"\",\"\",'1. Ordersheet'!AS1041)","v":""},{"$f":"IF('1. Ordersheet'!AT1041=\"\",\"\",'1. Ordersheet'!AT1041)","v":""},null,null,null,null,null,null,null,{"$f":"IF('1. Ordersheet'!AX1041=\"\",\"\",'1. Ordersheet'!AX1041)","v":""},{"$f":"IF('1. Ordersheet'!AY1041=\"\",\"\",'1. Ordersheet'!AY1041)","v":""},{"$f":"IF('1. Ordersheet'!AZ1041=\"\",\"\",'1. Ordersheet'!AZ1041)","v":""},{"$f":"IF('1. Ordersheet'!BA1041=\"\",\"\",'1. Ordersheet'!BA1041)","v":""},{"$f":"IF('1. Ordersheet'!BC1041=\"\",\"\",'1. Ordersheet'!BC1041)","v":""},{"$f":"IF('1. Ordersheet'!BD1041=\"\",\"\",'1. Ordersheet'!BD1041)","v":""},{"$f":"IF('1. Ordersheet'!BE1041=\"\",\"\",'1. Ordersheet'!BE1041)","v":""},{"$f":"IF('1. Ordersheet'!BF1041=\"\",\"\",'1. Ordersheet'!BF1041)","v":""},{"$f":"IF('1. Ordersheet'!BG1041=\"\",\"\",'1. Ordersheet'!BG1041)","v":"ZWO"},{"$f":"IF('1. Ordersheet'!BH1041=\"\",\"\",'1. Ordersheet'!BH1041)","v":""},{"$f":"IF('1. Ordersheet'!BI1041=\"\",\"\",'1. Ordersheet'!BI1041)","v":""},{"$f":"IF('1. Ordersheet'!BJ1041=\"\",\"\",'1. Ordersheet'!BJ1041)","v":""},{"$f":"IF('1. Ordersheet'!BK1041=\"\",\"\",'1. Ordersheet'!BK1041)","v":""},{"$f":"IF('1. Ordersheet'!BL1041=\"\",\"\",'1. Ordersheet'!BL1041)","v":""}]
[{"$f":"IF('1. Ordersheet'!F1042=\"\",\"\",'1. Ordersheet'!F1042)","v":""},{"$f":"IF('1. Ordersheet'!G1042=\"\",\"\",'1. Ordersheet'!G1042)","v":""},{"$f":"IF('1. Ordersheet'!H1042=\"\",\"\",'1. Ordersheet'!H1042)","v":""},{"$f":"IF('1. Ordersheet'!I1042=\"\",\"\",'1. Ordersheet'!I1042)","v":""},{"$f":"IF('1. Ordersheet'!J1042=\"\",\"\",'1. Ordersheet'!J1042)","v":""},{"$f":"IF('1. Ordersheet'!K1042=\"\",\"\",'1. Ordersheet'!K1042)","v":""},{"$f":"IF('1. Ordersheet'!L1042=\"\",\"\",'1. Ordersheet'!L1042)","v":""},{"$f":"IF('1. Ordersheet'!M1042=\"\",\"\",'1. Ordersheet'!M1042)","v":""},{"$f":"IF('1. Ordersheet'!N1042=\"\",\"\",'1. Ordersheet'!N1042)","v":""},{"$f":"IF('1. Ordersheet'!O1042=\"\",\"\",'1. Ordersheet'!O1042)","v":{"$error":"#N/A"}},{"$f":"IF('1. Ordersheet'!P1042=\"\",\"\",'1. Ordersheet'!P1042)","v":{"$error":"#N/A"}},{"$f":"IF('1. Ordersheet'!Q1042=\"\",\"\",'1. Ordersheet'!Q1042)","v":""},{"$f":"IF('1. Ordersheet'!R1042=\"\",\"\",'1. Ordersheet'!R1042)","v":""},{"$f":"IF('1. Ordersheet'!S1042=\"\",\"\",'1. Ordersheet'!S1042)","v":""},{"$f":"IF('1. Ordersheet'!V1042=\"\",\"\",'1. Ordersheet'!V1042)","v":""},{"$f":"IF('1. Ordersheet'!W1042=\"\",\"\",'1. Ordersheet'!W1042)","v":""},{"$f":"IF('1. Ordersheet'!X1042=\"\",\"\",'1. Ordersheet'!X1042)","v":""},{"$f":"IF('1. Ordersheet'!Y1042=\"\",\"\",'1. Ordersheet'!Y1042)","v":""},{"$f":"IF('1. Ordersheet'!Z1042=\"\",\"\",'1. Ordersheet'!Z1042)","v":""},{"$f":"IF('1. Ordersheet'!AA1042=\"\",\"\",'1. Ordersheet'!AA1042)","v":""},null,{"$f":"IF('1. Ordersheet'!AS1042=\"\",\"\",'1. Ordersheet'!AS1042)","v":""},{"$f":"IF('1. Ordersheet'!AT1042=\"\",\"\",'1. Ordersheet'!AT1042)","v":""},null,null,null,null,null,null,null,{"$f":"IF('1. Ordersheet'!AX1042=\"\",\"\",'1. Ordersheet'!AX1042)","v":""},{"$f":"IF('1. Ordersheet'!AY1042=\"\",\"\",'1. Ordersheet'!AY1042)","v":""},{"$f":"IF('1. Ordersheet'!AZ1042=\"\",\"\",'1. Ordersheet'!AZ1042)","v":""},{"$f":"IF('1. Ordersheet'!BA1042=\"\",\"\",'1. Ordersheet'!BA1042)","v":""},{"$f":"IF('1. Ordersheet'!BC1042=\"\",\"\",'1. Ordersheet'!BC1042)","v":""},{"$f":"IF('1. Ordersheet'!BD1042=\"\",\"\",'1. Ordersheet'!BD1042)","v":""},{"$f":"IF('1. Ordersheet'!BE1042=\"\",\"\",'1. Ordersheet'!BE1042)","v":""},{"$f":"IF('1. Ordersheet'!BF1042=\"\",\"\",'1. Ordersheet'!BF1042)","v":""},{"$f":"IF('1. Ordersheet'!BG1042=\"\",\"\",'1. Ordersheet'!BG1042)","v":"ZWO"},{"$f":"IF('1. Ordersheet'!BH1042=\"\",\"\",'1. Ordersheet'!BH1042)","v":""},{"$f":"IF('1. Ordersheet'!BI1042=\"\",\"\",'1. Ordersheet'!BI1042)","v":""},{"$f":"IF('1. Ordersheet'!BJ1042=\"\",\"\",'1. Ordersheet'!BJ1042)","v":""},{"$f":"IF('1. Ordersheet'!BK1042=\"\",\"\",'1. Ordersheet'!BK1042)","v":""},{"$f":"IF('1. Ordersheet'!BL1042=\"\",\"\",'1. Ordersheet'!BL1042)","v":""}]
[{"$f":"IF('1. Ordersheet'!F1043=\"\",\"\",'1. Ordersheet'!F1043)","v":""},{"$f":"IF('1. Ordersheet'!G1043=\"\",\"\",'1. Ordersheet'!G1043)","v":""},{"$f":"IF('1. Ordersheet'!H1043=\"\",\"\",'1. Ordersheet'!H1043)","v":""},{"$f":"IF('1. Ordersheet'!I1043=\"\",\"\",'1. Ordersheet'!I1043)","v":""},{"$f":"IF('1. Ordersheet'!J1043=\"\",\"\",'1. Ordersheet'!J1043)","v":""},{"$f":"IF('1. Ordersheet'!K1043=\"\",\"\",'1. Ordersheet'!K1043)","v":""},{"$f":"IF('1. Ordersheet'!L1043=\"\",\"\",'1. Ordersheet'!L1043)","v":""},{"$f":"IF('1. Ordersheet'!M1043=\"\",\"\",'1. Ordersheet'!M1043)","v":""},{"$f":"IF('1. Ordersheet'!N1043=\"\",\"\",'1. Ordersheet'!N1043)","v":""},{"$f":"IF('1. Ordersheet'!O1043=\"\",\"\",'1. Ordersheet'!O1043)","v":{"$error":"#N/A"}},{"$f":"IF('1. Ordersheet'!P1043=\"\",\"\",'1. Ordersheet'!P1043)","v":{"$error":"#N/A"}},{"$f":"IF('1. Ordersheet'!Q1043=\"\",\"\",'1. Ordersheet'!Q1043)","v":""},{"$f":"IF('1. Ordersheet'!R1043=\"\",\"\",'1. Ordersheet'!R1043)","v":""},{"$f":"IF('1. Ordersheet'!S1043=\"\",\"\",'1. Ordersheet'!S1043)","v":""},{"$f":"IF('1. Ordersheet'!V1043=\"\",\"\",'1. Ordersheet'!V1043)","v":""},{"$f":"IF('1. Ordersheet'!W1043=\"\",\"\",'1. Ordersheet'!W1043)","v":""},{"$f":"IF('1. Ordersheet'!X1043=\"\",\"\",'1. Ordersheet'!X1043)","v":""},{"$f":"IF('1. Ordersheet'!Y1043=\"\",\"\",'1. Ordersheet'!Y1043)","v":""},{"$f":"IF('1. Ordersheet'!Z1043=\"\",\"\",'1. Ordersheet'!Z1043)","v":""},{"$f":"IF('1. Ordersheet'!AA1043=\"\",\"\",'1. Ordersheet'!AA1043)","v":""},null,{"$f":"IF('1. Ordersheet'!AS1043=\"\",\"\",'1. Ordersheet'!AS1043)","v":""},{"$f":"IF('1. Ordersheet'!AT1043=\"\",\"\",'1. Ordersheet'!AT1043)","v":""},null,null,null,null,null,null,null,{"$f":"IF('1. Ordersheet'!AX1043=\"\",\"\",'1. Ordersheet'!AX1043)","v":""},{"$f":"IF('1. Ordersheet'!AY1043=\"\",\"\",'1. Ordersheet'!AY1043)","v":""},{"$f":"IF('1. Ordersheet'!AZ1043=\"\",\"\",'1. Ordersheet'!AZ1043)","v":""},{"$f":"IF('1. Ordersheet'!BA1043=\"\",\"\",'1. Ordersheet'!BA1043)","v":""},{"$f":"IF('1. Ordersheet'!BC1043=\"\",\"\",'1. Ordersheet'!BC1043)","v":""},{"$f":"IF('1. Ordersheet'!BD1043=\"\",\"\",'1. Ordersheet'!BD1043)","v":""},{"$f":"IF('1. Ordersheet'!BE1043=\"\",\"\",'1. Ordersheet'!BE1043)","v":""},{"$f":"IF('1. Ordersheet'!BF1043=\"\",\"\",'1. Ordersheet'!BF1043)","v":""},{"$f":"IF('1. Ordersheet'!BG1043=\"\",\"\",'1. Ordersheet'!BG1043)","v":"ZWO"},{"$f":"IF('1. Ordersheet'!BH1043=\"\",\"\",'1. Ordersheet'!BH1043)","v":""},{"$f":"IF('1. Ordersheet'!BI1043=\"\",\"\",'1. Ordersheet'!BI1043)","v":""},{"$f":"IF('1. Ordersheet'!BJ1043=\"\",\"\",'1. Ordersheet'!BJ1043)","v":""},{"$f":"IF('1. Ordersheet'!BK1043=\"\",\"\",'1. Ordersheet'!BK1043)","v":""},{"$f":"IF('1. Ordersheet'!BL1043=\"\",\"\",'1. Ordersheet'!BL1043)","v":""}]
[{"$f":"IF('1. Ordersheet'!F1044=\"\",\"\",'1. Ordersheet'!F1044)","v":""},{"$f":"IF('1. Ordersheet'!G1044=\"\",\"\",'1. Ordersheet'!G1044)","v":""},{"$f":"IF('1. Ordersheet'!H1044=\"\",\"\",'1. Ordersheet'!H1044)","v":""},{"$f":"IF('1. Ordersheet'!I1044=\"\",\"\",'1. Ordersheet'!I1044)","v":""},{"$f":"IF('1. Ordersheet'!J1044=\"\",\"\",'1. Ordersheet'!J1044)","v":""},{"$f":"IF('1. Ordersheet'!K1044=\"\",\"\",'1. Ordersheet'!K1044)","v":""},{"$f":"IF('1. Ordersheet'!L1044=\"\",\"\",'1. Ordersheet'!L1044)","v":""},{"$f":"IF('1. Ordersheet'!M1044=\"\",\"\",'1. Ordersheet'!M1044)","v":""},{"$f":"IF('1. Ordersheet'!N1044=\"\",\"\",'1. Ordersheet'!N1044)","v":""},{"$f":"IF('1. Ordersheet'!O1044=\"\",\"\",'1. Ordersheet'!O1044)","v":{"$error":"#N/A"}},{"$f":"IF('1. Ordersheet'!P1044=\"\",\"\",'1. Ordersheet'!P1044)","v":{"$error":"#N/A"}},{"$f":"IF('1. Ordersheet'!Q1044=\"\",\"\",'1. Ordersheet'!Q1044)","v":""},{"$f":"IF('1. Ordersheet'!R1044=\"\",\"\",'1. Ordersheet'!R1044)","v":""},{"$f":"IF('1. Ordersheet'!S1044=\"\",\"\",'1. Ordersheet'!S1044)","v":""},{"$f":"IF('1. Ordersheet'!V1044=\"\",\"\",'1. Ordersheet'!V1044)","v":""},{"$f":"IF('1. Ordersheet'!W1044=\"\",\"\",'1. Ordersheet'!W1044)","v":""},{"$f":"IF('1. Ordersheet'!X1044=\"\",\"\",'1. Ordersheet'!X1044)","v":""},{"$f":"IF('1. Ordersheet'!Y1044=\"\",\"\",'1. Ordersheet'!Y1044)","v":""},{"$f":"IF('1. Ordersheet'!Z1044=\"\",\"\",'1. Ordersheet'!Z1044)","v":""},{"$f":"IF('1. Ordersheet'!AA1044=\"\",\"\",'1. Ordersheet'!AA1044)","v":""},null,{"$f":"IF('1. Ordersheet'!AS1044=\"\",\"\",'1. Ordersheet'!AS1044)","v":""},{"$f":"IF('1. Ordersheet'!AT1044=\"\",\"\",'1. Ordersheet'!AT1044)","v":""},null,null,null,null,null,null,null,{"$f":"IF('1. Ordersheet'!AX1044=\"\",\"\",'1. Ordersheet'!AX1044)","v":""},{"$f":"IF('1. Ordersheet'!AY1044=\"\",\"\",'1. Ordersheet'!AY1044)","v":""},{"$f":"IF('1. Ordersheet'!AZ1044=\"\",\"\",'1. Ordersheet'!AZ1044)","v":""},{"$f":"IF('1. Ordersheet'!BA1044=\"\",\"\",'1. Ordersheet'!BA1044)","v":""},{"$f":"IF('1. Ordersheet'!BC1044=\"\",\"\",'1. Ordersheet'!BC1044)","v":""},{"$f":"IF('1. Ordersheet'!BD1044=\"\",\"\",'1. Ordersheet'!BD1044)","v":""},{"$f":"IF('1. Ordersheet'!BE1044=\"\",\"\",'1. Ordersheet'!BE1044)","v":""},{"$f":"IF('1. Ordersheet'!BF1044=\"\",\"\",'1. Ordersheet'!BF1044)","v":""},{"$f":"IF('1. Ordersheet'!BG1044=\"\",\"\",'1. Ordersheet'!BG1044)","v":"ZWO"},{"$f":"IF('1. Ordersheet'!BH1044=\"\",\"\",'1. Ordersheet'!BH1044)","v":""},{"$f":"IF('1. Ordersheet'!BI1044=\"\",\"\",'1. Ordersheet'!BI1044)","v":""},{"$f":"IF('1. Ordersheet'!BJ1044=\"\",\"\",'1. Ordersheet'!BJ1044)","v":""},{"$f":"IF('1. Ordersheet'!BK1044=\"\",\"\",'1. Ordersheet'!BK1044)","v":""},{"$f":"IF('1. Ordersheet'!BL1044=\"\",\"\",'1. Ordersheet'!BL1044)","v":""}]
[{"$f":"IF('1. Ordersheet'!F1045=\"\",\"\",'1. Ordersheet'!F1045)","v":""},{"$f":"IF('1. Ordersheet'!G1045=\"\",\"\",'1. Ordersheet'!G1045)","v":""},{"$f":"IF('1. Ordersheet'!H1045=\"\",\"\",'1. Ordersheet'!H1045)","v":""},{"$f":"IF('1. Ordersheet'!I1045=\"\",\"\",'1. Ordersheet'!I1045)","v":""},{"$f":"IF('1. Ordersheet'!J1045=\"\",\"\",'1. Ordersheet'!J1045)","v":""},{"$f":"IF('1. Ordersheet'!K1045=\"\",\"\",'1. Ordersheet'!K1045)","v":""},{"$f":"IF('1. Ordersheet'!L1045=\"\",\"\",'1. Ordersheet'!L1045)","v":""},{"$f":"IF('1. Ordersheet'!M1045=\"\",\"\",'1. Ordersheet'!M1045)","v":""},{"$f":"IF('1. Ordersheet'!N1045=\"\",\"\",'1. Ordersheet'!N1045)","v":""},{"$f":"IF('1. Ordersheet'!O1045=\"\",\"\",'1. Ordersheet'!O1045)","v":{"$error":"#N/A"}},{"$f":"IF('1. Ordersheet'!P1045=\"\",\"\",'1. Ordersheet'!P1045)","v":{"$error":"#N/A"}},{"$f":"IF('1. Ordersheet'!Q1045=\"\",\"\",'1. Ordersheet'!Q1045)","v":""},{"$f":"IF('1. Ordersheet'!R1045=\"\",\"\",'1. Ordersheet'!R1045)","v":""},{"$f":"IF('1. Ordersheet'!S1045=\"\",\"\",'1. Ordersheet'!S1045)","v":""},{"$f":"IF('1. Ordersheet'!V1045=\"\",\"\",'1. Ordersheet'!V1045)","v":""},{"$f":"IF('1. Ordersheet'!W1045=\"\",\"\",'1. Ordersheet'!W1045)","v":""},{"$f":"IF('1. Ordersheet'!X1045=\"\",\"\",'1. Ordersheet'!X1045)","v":""},{"$f":"IF('1. Ordersheet'!Y1045=\"\",\"\",'1. Ordersheet'!Y1045)","v":""},{"$f":"IF('1. Ordersheet'!Z1045=\"\",\"\",'1. Ordersheet'!Z1045)","v":""},{"$f":"IF('1. Ordersheet'!AA1045=\"\",\"\",'1. Ordersheet'!AA1045)","v":""},null,{"$f":"IF('1. Ordersheet'!AS1045=\"\",\"\",'1. Ordersheet'!AS1045)","v":""},{"$f":"IF('1. Ordersheet'!AT1045=\"\",\"\",'1. Ordersheet'!AT1045)","v":""},null,null,null,null,null,null,null,{"$f":"IF('1. Ordersheet'!AX1045=\"\",\"\",'1. Ordersheet'!AX1045)","v":""},{"$f":"IF('1. Ordersheet'!AY1045=\"\",\"\",'1. Ordersheet'!AY1045)","v":""},{"$f":"IF('1. Ordersheet'!AZ1045=\"\",\"\",'1. Ordersheet'!AZ1045)","v":""},{"$f":"IF('1. Ordersheet'!BA1045=\"\",\"\",'1. Ordersheet'!BA1045)","v":""},{"$f":"IF('1. Ordersheet'!BC1045=\"\",\"\",'1. Ordersheet'!BC1045)","v":""},{"$f":"IF('1. Ordersheet'!BD1045=\"\",\"\",'1. Ordersheet'!BD1045)","v":""},{"$f":"IF('1. Ordersheet'!BE1045=\"\",\"\",'1. Ordersheet'!BE1045)","v":""},{"$f":"IF('1. Ordersheet'!BF1045=\"\",\"\",'1. Ordersheet'!BF1045)","v":""},{"$f":"IF('1. Ordersheet'!BG1045=\"\",\"\",'1. Ordersheet'!BG1045)","v":"ZWO"},{"$f":"IF('1. Ordersheet'!BH1045=\"\",\"\",'1. Ordersheet'!BH1045)","v":""},{"$f":"IF('1. Ordersheet'!BI1045=\"\",\"\",'1. Ordersheet'!BI1045)","v":""},{"$f":"IF('1. Ordersheet'!BJ1045=\"\",\"\",'1. Ordersheet'!BJ1045)","v":""},{"$f":"IF('1. Ordersheet'!BK1045=\"\",\"\",'1. Ordersheet'!BK1045)","v":""},{"$f":"IF('1. Ordersheet'!BL1045=\"\",\"\",'1. Ordersheet'!BL1045)","v":""}]
[{"$f":"IF('1. Ordersheet'!F1046=\"\",\"\",'1. Ordersheet'!F1046)","v":""},{"$f":"IF('1. Ordersheet'!G1046=\"\",\"\",'1. Ordersheet'!G1046)","v":""},{"$f":"IF('1. Ordersheet'!H1046=\"\",\"\",'1. Ordersheet'!H1046)","v":""},{"$f":"IF('1. Ordersheet'!I1046=\"\",\"\",'1. Ordersheet'!I1046)","v":""},{"$f":"IF('1. Ordersheet'!J1046=\"\",\"\",'1. Ordersheet'!J1046)","v":""},{"$f":"IF('1. Ordersheet'!K1046=\"\",\"\",'1. Ordersheet'!K1046)","v":""},{"$f":"IF('1. Ordersheet'!L1046=\"\",\"\",'1. Ordersheet'!L1046)","v":""},{"$f":"IF('1. Ordersheet'!M1046=\"\",\"\",'1. Ordersheet'!M1046)","v":""},{"$f":"IF('1. Ordersheet'!N1046=\"\",\"\",'1. Ordersheet'!N1046)","v":""},{"$f":"IF('1. Ordersheet'!O1046=\"\",\"\",'1. Ordersheet'!O1046)","v":{"$error":"#N/A"}},{"$f":"IF('1. Ordersheet'!P1046=\"\",\"\",'1. Ordersheet'!P1046)","v":{"$error":"#N/A"}},{"$f":"IF('1. Ordersheet'!Q1046=\"\",\"\",'1. Ordersheet'!Q1046)","v":""},{"$f":"IF('1. Ordersheet'!R1046=\"\",\"\",'1. Ordersheet'!R1046)","v":""},{"$f":"IF('1. Ordersheet'!S1046=\"\",\"\",'1. Ordersheet'!S1046)","v":""},{"$f":"IF('1. Ordersheet'!V1046=\"\",\"\",'1. Ordersheet'!V1046)","v":""},{"$f":"IF('1. Ordersheet'!W1046=\"\",\"\",'1. Ordersheet'!W1046)","v":""},{"$f":"IF('1. Ordersheet'!X1046=\"\",\"\",'1. Ordersheet'!X1046)","v":""},{"$f":"IF('1. Ordersheet'!Y1046=\"\",\"\",'1. Ordersheet'!Y1046)","v":""},{"$f":"IF('1. Ordersheet'!Z1046=\"\",\"\",'1. Ordersheet'!Z1046)","v":""},{"$f":"IF('1. Ordersheet'!AA1046=\"\",\"\",'1. Ordersheet'!AA1046)","v":""},null,{"$f":"IF('1. Ordersheet'!AS1046=\"\",\"\",'1. Ordersheet'!AS1046)","v":""},{"$f":"IF('1. Ordersheet'!AT1046=\"\",\"\",'1. Ordersheet'!AT1046)","v":""},null,null,null,null,null,null,null,{"$f":"IF('1. Ordersheet'!AX1046=\"\",\"\",'1. Ordersheet'!AX1046)","v":""},{"$f":"IF('1. Ordersheet'!AY1046=\"\",\"\",'1. Ordersheet'!AY1046)","v":""},{"$f":"IF('1. Ordersheet'!AZ1046=\"\",\"\",'1. Ordersheet'!AZ1046)","v":""},{"$f":"IF('1. Ordersheet'!BA1046=\"\",\"\",'1. Ordersheet'!BA1046)","v":""},{"$f":"IF('1. Ordersheet'!BC1046=\"\",\"\",'1. Ordersheet'!BC1046)","v":""},{"$f":"IF('1. Ordersheet'!BD1046=\"\",\"\",'1. Ordersheet'!BD1046)","v":""},{"$f":"IF('1. Ordersheet'!BE1046=\"\",\"\",'1. Ordersheet'!BE1046)","v":""},{"$f":"IF('1. Ordersheet'!BF1046=\"\",\"\",'1. Ordersheet'!BF1046)","v":""},{"$f":"IF('1. Ordersheet'!BG1046=\"\",\"\",'1. Ordersheet'!BG1046)","v":"ZWO"},{"$f":"IF('1. Ordersheet'!BH1046=\"\",\"\",'1. Ordersheet'!BH1046)","v":""},{"$f":"IF('1. Ordersheet'!BI1046=\"\",\"\",'1. Ordersheet'!BI1046)","v":""},{"$f":"IF('1. Ordersheet'!BJ1046=\"\",\"\",'1. Ordersheet'!BJ1046)","v":""},{"$f":"IF('1. Ordersheet'!BK1046=\"\",\"\",'1. Ordersheet'!BK1046)","v":""},{"$f":"IF('1. Ordersheet'!BL1046=\"\",\"\",'1. Ordersheet'!BL1046)","v":""}]
[{"$f":"IF('1. Ordersheet'!F1047=\"\",\"\",'1. Ordersheet'!F1047)","v":""},{"$f":"IF('1. Ordersheet'!G1047=\"\",\"\",'1. Ordersheet'!G1047)","v":""},{"$f":"IF('1. Ordersheet'!H1047=\"\",\"\",'1. Ordersheet'!H1047)","v":""},{"$f":"IF('1. Ordersheet'!I1047=\"\",\"\",'1. Ordersheet'!I1047)","v":""},{"$f":"IF('1. Ordersheet'!J1047=\"\",\"\",'1. Ordersheet'!J1047)","v":""},{"$f":"IF('1. Ordersheet'!K1047=\"\",\"\",'1. Ordersheet'!K1047)","v":""},{"$f":"IF('1. Ordersheet'!L1047=\"\",\"\",'1. Ordersheet'!L1047)","v":""},{"$f":"IF('1. Ordersheet'!M1047=\"\",\"\",'1. Ordersheet'!M1047)","v":""},{"$f":"IF('1. Ordersheet'!N1047=\"\",\"\",'1. Ordersheet'!N1047)","v":""},{"$f":"IF('1. Ordersheet'!O1047=\"\",\"\",'1. Ordersheet'!O1047)","v":{"$error":"#N/A"}},{"$f":"IF('1. Ordersheet'!P1047=\"\",\"\",'1. Ordersheet'!P1047)","v":{"$error":"#N/A"}},{"$f":"IF('1. Ordersheet'!Q1047=\"\",\"\",'1. Ordersheet'!Q1047)","v":""},{"$f":"IF('1. Ordersheet'!R1047=\"\",\"\",'1. Ordersheet'!R1047)","v":""},{"$f":"IF('1. Ordersheet'!S1047=\"\",\"\",'1. Ordersheet'!S1047)","v":""},{"$f":"IF('1. Ordersheet'!V1047=\"\",\"\",'1. Ordersheet'!V1047)","v":""},{"$f":"IF('1. Ordersheet'!W1047=\"\",\"\",'1. Ordersheet'!W1047)","v":""},{"$f":"IF('1. Ordersheet'!X1047=\"\",\"\",'1. Ordersheet'!X1047)","v":""},{"$f":"IF('1. Ordersheet'!Y1047=\"\",\"\",'1. Ordersheet'!Y1047)","v":""},{"$f":"IF('1. Ordersheet'!Z1047=\"\",\"\",'1. Ordersheet'!Z1047)","v":""},{"$f":"IF('1. Ordersheet'!AA1047=\"\",\"\",'1. Ordersheet'!AA1047)","v":""},null,{"$f":"IF('1. Ordersheet'!AS1047=\"\",\"\",'1. Ordersheet'!AS1047)","v":""},{"$f":"IF('1. Ordersheet'!AT1047=\"\",\"\",'1. Ordersheet'!AT1047)","v":""},null,null,null,null,null,null,null,{"$f":"IF('1. Ordersheet'!AX1047=\"\",\"\",'1. Ordersheet'!AX1047)","v":""},{"$f":"IF('1. Ordersheet'!AY1047=\"\",\"\",'1. Ordersheet'!AY1047)","v":""},{"$f":"IF('1. Ordersheet'!AZ1047=\"\",\"\",'1. Ordersheet'!AZ1047)","v":""},{"$f":"IF('1. Ordersheet'!BA1047=\"\",\"\",'1. Ordersheet'!BA1047)","v":""},{"$f":"IF('1. Ordersheet'!BC1047=\"\",\"\",'1. Ordersheet'!BC1047)","v":""},{"$f":"IF('1. Ordersheet'!BD1047=\"\",\"\",'1. Ordersheet'!BD1047)","v":""},{"$f":"IF('1. Ordersheet'!BE1047=\"\",\"\",'1. Ordersheet'!BE1047)","v":""},{"$f":"IF('1. Ordersheet'!BF1047=\"\",\"\",'1. Ordersheet'!BF1047)","v":""},{"$f":"IF('1. Ordersheet'!BG1047=\"\",\"\",'1. Ordersheet'!BG1047)","v":"ZWO"},{"$f":"IF('1. Ordersheet'!BH1047=\"\",\"\",'1. Ordersheet'!BH1047)","v":""},{"$f":"IF('1. Ordersheet'!BI1047=\"\",\"\",'1. Ordersheet'!BI1047)","v":""},{"$f":"IF('1. Ordersheet'!BJ1047=\"\",\"\",'1. Ordersheet'!BJ1047)","v":""},{"$f":"IF('1. Ordersheet'!BK1047=\"\",\"\",'1. Ordersheet'!BK1047)","v":""},{"$f":"IF('1. Ordersheet'!BL1047=\"\",\"\",'1. Ordersheet'!BL1047)","v":""}]
[{"$f":"IF('1. Ordersheet'!F1048=\"\",\"\",'1. Ordersheet'!F1048)","v":""},{"$f":"IF('1. Ordersheet'!G1048=\"\",\"\",'1. Ordersheet'!G1048)","v":""},{"$f":"IF('1. Ordersheet'!H1048=\"\",\"\",'1. Ordersheet'!H1048)","v":""},{"$f":"IF('1. Ordersheet'!I1048=\"\",\"\",'1. Ordersheet'!I1048)","v":""},{"$f":"IF('1. Ordersheet'!J1048=\"\",\"\",'1. Ordersheet'!J1048)","v":""},{"$f":"IF('1. Ordersheet'!K1048=\"\",\"\",'1. Ordersheet'!K1048)","v":""},{"$f":"IF('1. Ordersheet'!L1048=\"\",\"\",'1. Ordersheet'!L1048)","v":""},{"$f":"IF('1. Ordersheet'!M1048=\"\",\"\",'1. Ordersheet'!M1048)","v":""},{"$f":"IF('1. Ordersheet'!N1048=\"\",\"\",'1. Ordersheet'!N1048)","v":""},{"$f":"IF('1. Ordersheet'!O1048=\"\",\"\",'1. Ordersheet'!O1048)","v":{"$error":"#N/A"}},{"$f":"IF('1. Ordersheet'!P1048=\"\",\"\",'1. Ordersheet'!P1048)","v":{"$error":"#N/A"}},{"$f":"IF('1. Ordersheet'!Q1048=\"\",\"\",'1. Ordersheet'!Q1048)","v":""},{"$f":"IF('1. Ordersheet'!R1048=\"\",\"\",'1. Ordersheet'!R1048)","v":""},{"$f":"IF('1. Ordersheet'!S1048=\"\",\"\",'1. Ordersheet'!S1048)","v":""},{"$f":"IF('1. Ordersheet'!V1048=\"\",\"\",'1. Ordersheet'!V1048)","v":""},{"$f":"IF('1. Ordersheet'!W1048=\"\",\"\",'1. Ordersheet'!W1048)","v":""},{"$f":"IF('1. Ordersheet'!X1048=\"\",\"\",'1. Ordersheet'!X1048)","v":""},{"$f":"IF('1. Ordersheet'!Y1048=\"\",\"\",'1. Ordersheet'!Y1048)","v":""},{"$f":"IF('1. Ordersheet'!Z1048=\"\",\"\",'1. Ordersheet'!Z1048)","v":""},{"$f":"IF('1. Ordersheet'!AA1048=\"\",\"\",'1. Ordersheet'!AA1048)","v":""},null,{"$f":"IF('1. Ordersheet'!AS1048=\"\",\"\",'1. Ordersheet'!AS1048)","v":""},{"$f":"IF('1. Ordersheet'!AT1048=\"\",\"\",'1. Ordersheet'!AT1048)","v":""},null,null,null,null,null,null,null,{"$f":"IF('1. Ordersheet'!AX1048=\"\",\"\",'1. Ordersheet'!AX1048)","v":""},{"$f":"IF('1. Ordersheet'!AY1048=\"\",\"\",'1. Ordersheet'!AY1048)","v":""},{"$f":"IF('1. Ordersheet'!AZ1048=\"\",\"\",'1. Ordersheet'!AZ1048)","v":""},{"$f":"IF('1. Ordersheet'!BA1048=\"\",\"\",'1. Ordersheet'!BA1048)","v":""},{"$f":"IF('1. Ordersheet'!BC1048=\"\",\"\",'1. Ordersheet'!BC1048)","v":""},{"$f":"IF('1. Ordersheet'!BD1048=\"\",\"\",'1. Ordersheet'!BD1048)","v":""},{"$f":"IF('1. Ordersheet'!BE1048=\"\",\"\",'1. Ordersheet'!BE1048)","v":""},{"$f":"IF('1. Ordersheet'!BF1048=\"\",\"\",'1. Ordersheet'!BF1048)","v":""},{"$f":"IF('1. Ordersheet'!BG1048=\"\",\"\",'1. Ordersheet'!BG1048)","v":"ZWO"},{"$f":"IF('1. Ordersheet'!BH1048=\"\",\"\",'1. Ordersheet'!BH1048)","v":""},{"$f":"IF('1. Ordersheet'!BI1048=\"\",\"\",'1. Ordersheet'!BI1048)","v":""},{"$f":"IF('1. Ordersheet'!BJ1048=\"\",\"\",'1. Ordersheet'!BJ1048)","v":""},{"$f":"IF('1. Ordersheet'!BK1048=\"\",\"\",'1. Ordersheet'!BK1048)","v":""},{"$f":"IF('1. Ordersheet'!BL1048=\"\",\"\",'1. Ordersheet'!BL1048)","v":""}]
[{"$f":"IF('1. Ordersheet'!F1049=\"\",\"\",'1. Ordersheet'!F1049)","v":""},{"$f":"IF('1. Ordersheet'!G1049=\"\",\"\",'1. Ordersheet'!G1049)","v":""},{"$f":"IF('1. Ordersheet'!H1049=\"\",\"\",'1. Ordersheet'!H1049)","v":""},{"$f":"IF('1. Ordersheet'!I1049=\"\",\"\",'1. Ordersheet'!I1049)","v":""},{"$f":"IF('1. Ordersheet'!J1049=\"\",\"\",'1. Ordersheet'!J1049)","v":""},{"$f":"IF('1. Ordersheet'!K1049=\"\",\"\",'1. Ordersheet'!K1049)","v":""},{"$f":"IF('1. Ordersheet'!L1049=\"\",\"\",'1. Ordersheet'!L1049)","v":""},{"$f":"IF('1. Ordersheet'!M1049=\"\",\"\",'1. Ordersheet'!M1049)","v":""},{"$f":"IF('1. Ordersheet'!N1049=\"\",\"\",'1. Ordersheet'!N1049)","v":""},{"$f":"IF('1. Ordersheet'!O1049=\"\",\"\",'1. Ordersheet'!O1049)","v":{"$error":"#N/A"}},{"$f":"IF('1. Ordersheet'!P1049=\"\",\"\",'1. Ordersheet'!P1049)","v":{"$error":"#N/A"}},{"$f":"IF('1. Ordersheet'!Q1049=\"\",\"\",'1. Ordersheet'!Q1049)","v":""},{"$f":"IF('1. Ordersheet'!R1049=\"\",\"\",'1. Ordersheet'!R1049)","v":""},{"$f":"IF('1. Ordersheet'!S1049=\"\",\"\",'1. Ordersheet'!S1049)","v":""},{"$f":"IF('1. Ordersheet'!V1049=\"\",\"\",'1. Ordersheet'!V1049)","v":""},{"$f":"IF('1. Ordersheet'!W1049=\"\",\"\",'1. Ordersheet'!W1049)","v":""},{"$f":"IF('1. Ordersheet'!X1049=\"\",\"\",'1. Ordersheet'!X1049)","v":""},{"$f":"IF('1. Ordersheet'!Y1049=\"\",\"\",'1. Ordersheet'!Y1049)","v":""},{"$f":"IF('1. Ordersheet'!Z1049=\"\",\"\",'1. Ordersheet'!Z1049)","v":""},{"$f":"IF('1. Ordersheet'!AA1049=\"\",\"\",'1. Ordersheet'!AA1049)","v":""},null,{"$f":"IF('1. Ordersheet'!AS1049=\"\",\"\",'1. Ordersheet'!AS1049)","v":""},{"$f":"IF('1. Ordersheet'!AT1049=\"\",\"\",'1. Ordersheet'!AT1049)","v":""},null,null,null,null,null,null,null,{"$f":"IF('1. Ordersheet'!AX1049=\"\",\"\",'1. Ordersheet'!AX1049)","v":""},{"$f":"IF('1. Ordersheet'!AY1049=\"\",\"\",'1. Ordersheet'!AY1049)","v":""},{"$f":"IF('1. Ordersheet'!AZ1049=\"\",\"\",'1. Ordersheet'!AZ1049)","v":""},{"$f":"IF('1. Ordersheet'!BA1049=\"\",\"\",'1. Ordersheet'!BA1049)","v":""},{"$f":"IF('1. Ordersheet'!BC1049=\"\",\"\",'1. Ordersheet'!BC1049)","v":""},{"$f":"IF('1. Ordersheet'!BD1049=\"\",\"\",'1. Ordersheet'!BD1049)","v":""},{"$f":"IF('1. Ordersheet'!BE1049=\"\",\"\",'1. Ordersheet'!BE1049)","v":""},{"$f":"IF('1. Ordersheet'!BF1049=\"\",\"\",'1. Ordersheet'!BF1049)","v":""},{"$f":"IF('1. Ordersheet'!BG1049=\"\",\"\",'1. Ordersheet'!BG1049)","v":"ZWO"},{"$f":"IF('1. Ordersheet'!BH1049=\"\",\"\",'1. Ordersheet'!BH1049)","v":""},{"$f":"IF('1. Ordersheet'!BI1049=\"\",\"\",'1. Ordersheet'!BI1049)","v":""},{"$f":"IF('1. Ordersheet'!BJ1049=\"\",\"\",'1. Ordersheet'!BJ1049)","v":""},{"$f":"IF('1. Ordersheet'!BK1049=\"\",\"\",'1. Ordersheet'!BK1049)","v":""},{"$f":"IF('1. Ordersheet'!BL1049=\"\",\"\",'1. Ordersheet'!BL1049)","v":""}]
[{"$f":"IF('1. Ordersheet'!F1050=\"\",\"\",'1. Ordersheet'!F1050)","v":""},{"$f":"IF('1. Ordersheet'!G1050=\"\",\"\",'1. Ordersheet'!G1050)","v":""},{"$f":"IF('1. Ordersheet'!H1050=\"\",\"\",'1. Ordersheet'!H1050)","v":""},{"$f":"IF('1. Ordersheet'!I1050=\"\",\"\",'1. Ordersheet'!I1050)","v":""},{"$f":"IF('1. Ordersheet'!J1050=\"\",\"\",'1. Ordersheet'!J1050)","v":""},{"$f":"IF('1. Ordersheet'!K1050=\"\",\"\",'1. Ordersheet'!K1050)","v":""},{"$f":"IF('1. Ordersheet'!L1050=\"\",\"\",'1. Ordersheet'!L1050)","v":""},{"$f":"IF('1. Ordersheet'!M1050=\"\",\"\",'1. Ordersheet'!M1050)","v":""},{"$f":"IF('1. Ordersheet'!N1050=\"\",\"\",'1. Ordersheet'!N1050)","v":""},{"$f":"IF('1. Ordersheet'!O1050=\"\",\"\",'1. Ordersheet'!O1050)","v":{"$error":"#N/A"}},{"$f":"IF('1. Ordersheet'!P1050=\"\",\"\",'1. Ordersheet'!P1050)","v":{"$error":"#N/A"}},{"$f":"IF('1. Ordersheet'!Q1050=\"\",\"\",'1. Ordersheet'!Q1050)","v":""},{"$f":"IF('1. Ordersheet'!R1050=\"\",\"\",'1. Ordersheet'!R1050)","v":""},{"$f":"IF('1. Ordersheet'!S1050=\"\",\"\",'1. Ordersheet'!S1050)","v":""},{"$f":"IF('1. Ordersheet'!V1050=\"\",\"\",'1. Ordersheet'!V1050)","v":""},{"$f":"IF('1. Ordersheet'!W1050=\"\",\"\",'1. Ordersheet'!W1050)","v":""},{"$f":"IF('1. Ordersheet'!X1050=\"\",\"\",'1. Ordersheet'!X1050)","v":""},{"$f":"IF('1. Ordersheet'!Y1050=\"\",\"\",'1. Ordersheet'!Y1050)","v":""},{"$f":"IF('1. Ordersheet'!Z1050=\"\",\"\",'1. Ordersheet'!Z1050)","v":""},{"$f":"IF('1. Ordersheet'!AA1050=\"\",\"\",'1. Ordersheet'!AA1050)","v":""},null,{"$f":"IF('1. Ordersheet'!AS1050=\"\",\"\",'1. Ordersheet'!AS1050)","v":""},{"$f":"IF('1. Ordersheet'!AT1050=\"\",\"\",'1. Ordersheet'!AT1050)","v":""},null,null,null,null,null,null,null,{"$f":"IF('1. Ordersheet'!AX1050=\"\",\"\",'1. Ordersheet'!AX1050)","v":""},{"$f":"IF('1. Ordersheet'!AY1050=\"\",\"\",'1. Ordersheet'!AY1050)","v":""},{"$f":"IF('1. Ordersheet'!AZ1050=\"\",\"\",'1. Ordersheet'!AZ1050)","v":""},{"$f":"IF('1. Ordersheet'!BA1050=\"\",\"\",'1. Ordersheet'!BA1050)","v":""},{"$f":"IF('1. Ordersheet'!BC1050=\"\",\"\",'1. Ordersheet'!BC1050)","v":""},{"$f":"IF('1. Ordersheet'!BD1050=\"\",\"\",'1. Ordersheet'!BD1050)","v":""},{"$f":"IF('1. Ordersheet'!BE1050=\"\",\"\",'1. Ordersheet'!BE1050)","v":""},{"$f":"IF('1. Ordersheet'!BF1050=\"\",\"\",'1. Ordersheet'!BF1050)","v":""},{"$f":"IF('1. Ordersheet'!BG1050=\"\",\"\",'1. Ordersheet'!BG1050)","v":"ZWO"},{"$f":"IF('1. Ordersheet'!BH1050=\"\",\"\",'1. Ordersheet'!BH1050)","v":""},{"$f":"IF('1. Ordersheet'!BI1050=\"\",\"\",'1. Ordersheet'!BI1050)","v":""},{"$f":"IF('1. Ordersheet'!BJ1050=\"\",\"\",'1. Ordersheet'!BJ1050)","v":""},{"$f":"IF('1. Ordersheet'!BK1050=\"\",\"\",'1. Ordersheet'!BK1050)","v":""},{"$f":"IF('1. Ordersheet'!BL1050=\"\",\"\",'1. Ordersheet'!BL1050)","v":""}]
[{"$f":"IF('1. Ordersheet'!F1051=\"\",\"\",'1. Ordersheet'!F1051)","v":""},{"$f":"IF('1. Ordersheet'!G1051=\"\",\"\",'1. Ordersheet'!G1051)","v":""},{"$f":"IF('1. Ordersheet'!H1051=\"\",\"\",'1. Ordersheet'!H1051)","v":""},{"$f":"IF('1. Ordersheet'!I1051=\"\",\"\",'1. Ordersheet'!I1051)","v":""},{"$f":"IF('1. Ordersheet'!J1051=\"\",\"\",'1. Ordersheet'!J1051)","v":""},{"$f":"IF('1. Ordersheet'!K1051=\"\",\"\",'1. Ordersheet'!K1051)","v":""},{"$f":"IF('1. Ordersheet'!L1051=\"\",\"\",'1. Ordersheet'!L1051)","v":""},{"$f":"IF('1. Ordersheet'!M1051=\"\",\"\",'1. Ordersheet'!M1051)","v":""},{"$f":"IF('1. Ordersheet'!N1051=\"\",\"\",'1. Ordersheet'!N1051)","v":""},{"$f":"IF('1. Ordersheet'!O1051=\"\",\"\",'1. Ordersheet'!O1051)","v":{"$error":"#N/A"}},{"$f":"IF('1. Ordersheet'!P1051=\"\",\"\",'1. Ordersheet'!P1051)","v":{"$error":"#N/A"}},{"$f":"IF('1. Ordersheet'!Q1051=\"\",\"\",'1. Ordersheet'!Q1051)","v":""},{"$f":"IF('1. Ordersheet'!R1051=\"\",\"\",'1. Ordersheet'!R1051)","v":""},{"$f":"IF('1. Ordersheet'!S1051=\"\",\"\",'1. Ordersheet'!S1051)","v":""},{"$f":"IF('1. Ordersheet'!V1051=\"\",\"\",'1. Ordersheet'!V1051)","v":""},{"$f":"IF('1. Ordersheet'!W1051=\"\",\"\",'1. Ordersheet'!W1051)","v":""},{"$f":"IF('1. Ordersheet'!X1051=\"\",\"\",'1. Ordersheet'!X1051)","v":""},{"$f":"IF('1. Ordersheet'!Y1051=\"\",\"\",'1. Ordersheet'!Y1051)","v":""},{"$f":"IF('1. Ordersheet'!Z1051=\"\",\"\",'1. Ordersheet'!Z1051)","v":""},{"$f":"IF('1. Ordersheet'!AA1051=\"\",\"\",'1. Ordersheet'!AA1051)","v":""},null,{"$f":"IF('1. Ordersheet'!AS1051=\"\",\"\",'1. Ordersheet'!AS1051)","v":""},{"$f":"IF('1. Ordersheet'!AT1051=\"\",\"\",'1. Ordersheet'!AT1051)","v":""},null,null,null,null,null,null,null,{"$f":"IF('1. Ordersheet'!AX1051=\"\",\"\",'1. Ordersheet'!AX1051)","v":""},{"$f":"IF('1. Ordersheet'!AY1051=\"\",\"\",'1. Ordersheet'!AY1051)","v":""},{"$f":"IF('1. Ordersheet'!AZ1051=\"\",\"\",'1. Ordersheet'!AZ1051)","v":""},{"$f":"IF('1. Ordersheet'!BA1051=\"\",\"\",'1. Ordersheet'!BA1051)","v":""},{"$f":"IF('1. Ordersheet'!BC1051=\"\",\"\",'1. Ordersheet'!BC1051)","v":""},{"$f":"IF('1. Ordersheet'!BD1051=\"\",\"\",'1. Ordersheet'!BD1051)","v":""},{"$f":"IF('1. Ordersheet'!BE1051=\"\",\"\",'1. Ordersheet'!BE1051)","v":""},{"$f":"IF('1. Ordersheet'!BF1051=\"\",\"\",'1. Ordersheet'!BF1051)","v":""},{"$f":"IF('1. Ordersheet'!BG1051=\"\",\"\",'1. Ordersheet'!BG1051)","v":"ZWO"},{"$f":"IF('1. Ordersheet'!BH1051=\"\",\"\",'1. Ordersheet'!BH1051)","v":""},{"$f":"IF('1. Ordersheet'!BI1051=\"\",\"\",'1. Ordersheet'!BI1051)","v":""},{"$f":"IF('1. Ordersheet'!BJ1051=\"\",\"\",'1. Ordersheet'!BJ1051)","v":""},{"$f":"IF('1. Ordersheet'!BK1051=\"\",\"\",'1. Ordersheet'!BK1051)","v":""},{"$f":"IF('1. Ordersheet'!BL1051=\"\",\"\",'1. Ordersheet'!BL1051)","v":""}]
[{"$f":"IF('1. Ordersheet'!F1052=\"\",\"\",'1. Ordersheet'!F1052)","v":""},{"$f":"IF('1. Ordersheet'!G1052=\"\",\"\",'1. Ordersheet'!G1052)","v":""},{"$f":"IF('1. Ordersheet'!H1052=\"\",\"\",'1. Ordersheet'!H1052)","v":""},{"$f":"IF('1. Ordersheet'!I1052=\"\",\"\",'1. Ordersheet'!I1052)","v":""},{"$f":"IF('1. Ordersheet'!J1052=\"\",\"\",'1. Ordersheet'!J1052)","v":""},{"$f":"IF('1. Ordersheet'!K1052=\"\",\"\",'1. Ordersheet'!K1052)","v":""},{"$f":"IF('1. Ordersheet'!L1052=\"\",\"\",'1. Ordersheet'!L1052)","v":""},{"$f":"IF('1. Ordersheet'!M1052=\"\",\"\",'1. Ordersheet'!M1052)","v":""},{"$f":"IF('1. Ordersheet'!N1052=\"\",\"\",'1. Ordersheet'!N1052)","v":""},{"$f":"IF('1. Ordersheet'!O1052=\"\",\"\",'1. Ordersheet'!O1052)","v":{"$error":"#N/A"}},{"$f":"IF('1. Ordersheet'!P1052=\"\",\"\",'1. Ordersheet'!P1052)","v":{"$error":"#N/A"}},{"$f":"IF('1. Ordersheet'!Q1052=\"\",\"\",'1. Ordersheet'!Q1052)","v":""},{"$f":"IF('1. Ordersheet'!R1052=\"\",\"\",'1. Ordersheet'!R1052)","v":""},{"$f":"IF('1. Ordersheet'!S1052=\"\",\"\",'1. Ordersheet'!S1052)","v":""},{"$f":"IF('1. Ordersheet'!V1052=\"\",\"\",'1. Ordersheet'!V1052)","v":""},{"$f":"IF('1. Ordersheet'!W1052=\"\",\"\",'1. Ordersheet'!W1052)","v":""},{"$f":"IF('1. Ordersheet'!X1052=\"\",\"\",'1. Ordersheet'!X1052)","v":""},{"$f":"IF('1. Ordersheet'!Y1052=\"\",\"\",'1. Ordersheet'!Y1052)","v":""},{"$f":"IF('1. Ordersheet'!Z1052=\"\",\"\",'1. Ordersheet'!Z1052)","v":""},{"$f":"IF('1. Ordersheet'!AA1052=\"\",\"\",'1. Ordersheet'!AA1052)","v":""},null,{"$f":"IF('1. Ordersheet'!AS1052=\"\",\"\",'1. Ordersheet'!AS1052)","v":""},{"$f":"IF('1. Ordersheet'!AT1052=\"\",\"\",'1. Ordersheet'!AT1052)","v":""},null,null,null,null,null,null,null,{"$f":"IF('1. Ordersheet'!AX1052=\"\",\"\",'1. Ordersheet'!AX1052)","v":""},{"$f":"IF('1. Ordersheet'!AY1052=\"\",\"\",'1. Ordersheet'!AY1052)","v":""},{"$f":"IF('1. Ordersheet'!AZ1052=\"\",\"\",'1. Ordersheet'!AZ1052)","v":""},{"$f":"IF('1. Ordersheet'!BA1052=\"\",\"\",'1. Ordersheet'!BA1052)","v":""},{"$f":"IF('1. Ordersheet'!BC1052=\"\",\"\",'1. Ordersheet'!BC1052)","v":""},{"$f":"IF('1. Ordersheet'!BD1052=\"\",\"\",'1. Ordersheet'!BD1052)","v":""},{"$f":"IF('1. Ordersheet'!BE1052=\"\",\"\",'1. Ordersheet'!BE1052)","v":""},{"$f":"IF('1. Ordersheet'!BF1052=\"\",\"\",'1. Ordersheet'!BF1052)","v":""},{"$f":"IF('1. Ordersheet'!BG1052=\"\",\"\",'1. Ordersheet'!BG1052)","v":"ZWO"},{"$f":"IF('1. Ordersheet'!BH1052=\"\",\"\",'1. Ordersheet'!BH1052)","v":""},{"$f":"IF('1. Ordersheet'!BI1052=\"\",\"\",'1. Ordersheet'!BI1052)","v":""},{"$f":"IF('1. Ordersheet'!BJ1052=\"\",\"\",'1. Ordersheet'!BJ1052)","v":""},{"$f":"IF('1. Ordersheet'!BK1052=\"\",\"\",'1. Ordersheet'!BK1052)","v":""},{"$f":"IF('1. Ordersheet'!BL1052=\"\",\"\",'1. Ordersheet'!BL1052)","v":""}]
[{"$f":"IF('1. Ordersheet'!F1053=\"\",\"\",'1. Ordersheet'!F1053)","v":""},{"$f":"IF('1. Ordersheet'!G1053=\"\",\"\",'1. Ordersheet'!G1053)","v":""},{"$f":"IF('1. Ordersheet'!H1053=\"\",\"\",'1. Ordersheet'!H1053)","v":""},{"$f":"IF('1. Ordersheet'!I1053=\"\",\"\",'1. Ordersheet'!I1053)","v":""},{"$f":"IF('1. Ordersheet'!J1053=\"\",\"\",'1. Ordersheet'!J1053)","v":""},{"$f":"IF('1. Ordersheet'!K1053=\"\",\"\",'1. Ordersheet'!K1053)","v":""},{"$f":"IF('1. Ordersheet'!L1053=\"\",\"\",'1. Ordersheet'!L1053)","v":""},{"$f":"IF('1. Ordersheet'!M1053=\"\",\"\",'1. Ordersheet'!M1053)","v":""},{"$f":"IF('1. Ordersheet'!N1053=\"\",\"\",'1. Ordersheet'!N1053)","v":""},{"$f":"IF('1. Ordersheet'!O1053=\"\",\"\",'1. Ordersheet'!O1053)","v":{"$error":"#N/A"}},{"$f":"IF('1. Ordersheet'!P1053=\"\",\"\",'1. Ordersheet'!P1053)","v":{"$error":"#N/A"}},{"$f":"IF('1. Ordersheet'!Q1053=\"\",\"\",'1. Ordersheet'!Q1053)","v":""},{"$f":"IF('1. Ordersheet'!R1053=\"\",\"\",'1. Ordersheet'!R1053)","v":""},{"$f":"IF('1. Ordersheet'!S1053=\"\",\"\",'1. Ordersheet'!S1053)","v":""},{"$f":"IF('1. Ordersheet'!V1053=\"\",\"\",'1. Ordersheet'!V1053)","v":""},{"$f":"IF('1. Ordersheet'!W1053=\"\",\"\",'1. Ordersheet'!W1053)","v":""},{"$f":"IF('1. Ordersheet'!X1053=\"\",\"\",'1. Ordersheet'!X1053)","v":""},{"$f":"IF('1. Ordersheet'!Y1053=\"\",\"\",'1. Ordersheet'!Y1053)","v":""},{"$f":"IF('1. Ordersheet'!Z1053=\"\",\"\",'1. Ordersheet'!Z1053)","v":""},{"$f":"IF('1. Ordersheet'!AA1053=\"\",\"\",'1. Ordersheet'!AA1053)","v":""},null,{"$f":"IF('1. Ordersheet'!AS1053=\"\",\"\",'1. Ordersheet'!AS1053)","v":""},{"$f":"IF('1. Ordersheet'!AT1053=\"\",\"\",'1. Ordersheet'!AT1053)","v":""},null,null,null,null,null,null,null,{"$f":"IF('1. Ordersheet'!AX1053=\"\",\"\",'1. Ordersheet'!AX1053)","v":""},{"$f":"IF('1. Ordersheet'!AY1053=\"\",\"\",'1. Ordersheet'!AY1053)","v":""},{"$f":"IF('1. Ordersheet'!AZ1053=\"\",\"\",'1. Ordersheet'!AZ1053)","v":""},{"$f":"IF('1. Ordersheet'!BA1053=\"\",\"\",'1. Ordersheet'!BA1053)","v":""},{"$f":"IF('1. Ordersheet'!BC1053=\"\",\"\",'1. Ordersheet'!BC1053)","v":""},{"$f":"IF('1. Ordersheet'!BD1053=\"\",\"\",'1. Ordersheet'!BD1053)","v":""},{"$f":"IF('1. Ordersheet'!BE1053=\"\",\"\",'1. Ordersheet'!BE1053)","v":""},{"$f":"IF('1. Ordersheet'!BF1053=\"\",\"\",'1. Ordersheet'!BF1053)","v":""},{"$f":"IF('1. Ordersheet'!BG1053=\"\",\"\",'1. Ordersheet'!BG1053)","v":"ZWO"},{"$f":"IF('1. Ordersheet'!BH1053=\"\",\"\",'1. Ordersheet'!BH1053)","v":""},{"$f":"IF('1. Ordersheet'!BI1053=\"\",\"\",'1. Ordersheet'!BI1053)","v":""},{"$f":"IF('1. Ordersheet'!BJ1053=\"\",\"\",'1. Ordersheet'!BJ1053)","v":""},{"$f":"IF('1. Ordersheet'!BK1053=\"\",\"\",'1. Ordersheet'!BK1053)","v":""},{"$f":"IF('1. Ordersheet'!BL1053=\"\",\"\",'1. Ordersheet'!BL1053)","v":""}]
[{"$f":"IF('1. Ordersheet'!F1054=\"\",\"\",'1. Ordersheet'!F1054)","v":""},{"$f":"IF('1. Ordersheet'!G1054=\"\",\"\",'1. Ordersheet'!G1054)","v":""},{"$f":"IF('1. Ordersheet'!H1054=\"\",\"\",'1. Ordersheet'!H1054)","v":""},{"$f":"IF('1. Ordersheet'!I1054=\"\",\"\",'1. Ordersheet'!I1054)","v":""},{"$f":"IF('1. Ordersheet'!J1054=\"\",\"\",'1. Ordersheet'!J1054)","v":""},{"$f":"IF('1. Ordersheet'!K1054=\"\",\"\",'1. Ordersheet'!K1054)","v":""},{"$f":"IF('1. Ordersheet'!L1054=\"\",\"\",'1. Ordersheet'!L1054)","v":""},{"$f":"IF('1. Ordersheet'!M1054=\"\",\"\",'1. Ordersheet'!M1054)","v":""},{"$f":"IF('1. Ordersheet'!N1054=\"\",\"\",'1. Ordersheet'!N1054)","v":""},{"$f":"IF('1. Ordersheet'!O1054=\"\",\"\",'1. Ordersheet'!O1054)","v":{"$error":"#N/A"}},{"$f":"IF('1. Ordersheet'!P1054=\"\",\"\",'1. Ordersheet'!P1054)","v":{"$error":"#N/A"}},{"$f":"IF('1. Ordersheet'!Q1054=\"\",\"\",'1. Ordersheet'!Q1054)","v":""},{"$f":"IF('1. Ordersheet'!R1054=\"\",\"\",'1. Ordersheet'!R1054)","v":""},{"$f":"IF('1. Ordersheet'!S1054=\"\",\"\",'1. Ordersheet'!S1054)","v":""},{"$f":"IF('1. Ordersheet'!V1054=\"\",\"\",'1. Ordersheet'!V1054)","v":""},{"$f":"IF('1. Ordersheet'!W1054=\"\",\"\",'1. Ordersheet'!W1054)","v":""},{"$f":"IF('1. Ordersheet'!X1054=\"\",\"\",'1. Ordersheet'!X1054)","v":""},{"$f":"IF('1. Ordersheet'!Y1054=\"\",\"\",'1. Ordersheet'!Y1054)","v":""},{"$f":"IF('1. Ordersheet'!Z1054=\"\",\"\",'1. Ordersheet'!Z1054)","v":""},{"$f":"IF('1. Ordersheet'!AA1054=\"\",\"\",'1. Ordersheet'!AA1054)","v":""},null,{"$f":"IF('1. Ordersheet'!AS1054=\"\",\"\",'1. Ordersheet'!AS1054)","v":""},{"$f":"IF('1. Ordersheet'!AT1054=\"\",\"\",'1. Ordersheet'!AT1054)","v":""},null,null,null,null,null,null,null,{"$f":"IF('1. Ordersheet'!AX1054=\"\",\"\",'1. Ordersheet'!AX1054)","v":""},{"$f":"IF('1. Ordersheet'!AY1054=\"\",\"\",'1. Ordersheet'!AY1054)","v":""},{"$f":"IF('1. Ordersheet'!AZ1054=\"\",\"\",'1. Ordersheet'!AZ1054)","v":""},{"$f":"IF('1. Ordersheet'!BA1054=\"\",\"\",'1. Ordersheet'!BA1054)","v":""},{"$f":"IF('1. Ordersheet'!BC1054=\"\",\"\",'1. Ordersheet'!BC1054)","v":""},{"$f":"IF('1. Ordersheet'!BD1054=\"\",\"\",'1. Ordersheet'!BD1054)","v":""},{"$f":"IF('1. Ordersheet'!BE1054=\"\",\"\",'1. Ordersheet'!BE1054)","v":""},{"$f":"IF('1. Ordersheet'!BF1054=\"\",\"\",'1. Ordersheet'!BF1054)","v":""},{"$f":"IF('1. Ordersheet'!BG1054=\"\",\"\",'1. Ordersheet'!BG1054)","v":"ZWO"},{"$f":"IF('1. Ordersheet'!BH1054=\"\",\"\",'1. Ordersheet'!BH1054)","v":""},{"$f":"IF('1. Ordersheet'!BI1054=\"\",\"\",'1. Ordersheet'!BI1054)","v":""},{"$f":"IF('1. Ordersheet'!BJ1054=\"\",\"\",'1. Ordersheet'!BJ1054)","v":""},{"$f":"IF('1. Ordersheet'!BK1054=\"\",\"\",'1. Ordersheet'!BK1054)","v":""},{"$f":"IF('1. Ordersheet'!BL1054=\"\",\"\",'1. Ordersheet'!BL1054)","v":""}]
[{"$f":"IF('1. Ordersheet'!F1055=\"\",\"\",'1. Ordersheet'!F1055)","v":""},{"$f":"IF('1. Ordersheet'!G1055=\"\",\"\",'1. Ordersheet'!G1055)","v":""},{"$f":"IF('1. Ordersheet'!H1055=\"\",\"\",'1. Ordersheet'!H1055)","v":""},{"$f":"IF('1. Ordersheet'!I1055=\"\",\"\",'1. Ordersheet'!I1055)","v":""},{"$f":"IF('1. Ordersheet'!J1055=\"\",\"\",'1. Ordersheet'!J1055)","v":""},{"$f":"IF('1. Ordersheet'!K1055=\"\",\"\",'1. Ordersheet'!K1055)","v":""},{"$f":"IF('1. Ordersheet'!L1055=\"\",\"\",'1. Ordersheet'!L1055)","v":""},{"$f":"IF('1. Ordersheet'!M1055=\"\",\"\",'1. Ordersheet'!M1055)","v":""},{"$f":"IF('1. Ordersheet'!N1055=\"\",\"\",'1. Ordersheet'!N1055)","v":""},{"$f":"IF('1. Ordersheet'!O1055=\"\",\"\",'1. Ordersheet'!O1055)","v":{"$error":"#N/A"}},{"$f":"IF('1. Ordersheet'!P1055=\"\",\"\",'1. Ordersheet'!P1055)","v":{"$error":"#N/A"}},{"$f":"IF('1. Ordersheet'!Q1055=\"\",\"\",'1. Ordersheet'!Q1055)","v":""},{"$f":"IF('1. Ordersheet'!R1055=\"\",\"\",'1. Ordersheet'!R1055)","v":""},{"$f":"IF('1. Ordersheet'!S1055=\"\",\"\",'1. Ordersheet'!S1055)","v":""},{"$f":"IF('1. Ordersheet'!V1055=\"\",\"\",'1. Ordersheet'!V1055)","v":""},{"$f":"IF('1. Ordersheet'!W1055=\"\",\"\",'1. Ordersheet'!W1055)","v":""},{"$f":"IF('1. Ordersheet'!X1055=\"\",\"\",'1. Ordersheet'!X1055)","v":""},{"$f":"IF('1. Ordersheet'!Y1055=\"\",\"\",'1. Ordersheet'!Y1055)","v":""},{"$f":"IF('1. Ordersheet'!Z1055=\"\",\"\",'1. Ordersheet'!Z1055)","v":""},{"$f":"IF('1. Ordersheet'!AA1055=\"\",\"\",'1. Ordersheet'!AA1055)","v":""},null,{"$f":"IF('1. Ordersheet'!AS1055=\"\",\"\",'1. Ordersheet'!AS1055)","v":""},{"$f":"IF('1. Ordersheet'!AT1055=\"\",\"\",'1. Ordersheet'!AT1055)","v":""},null,null,null,null,null,null,null,{"$f":"IF('1. Ordersheet'!AX1055=\"\",\"\",'1. Ordersheet'!AX1055)","v":""},{"$f":"IF('1. Ordersheet'!AY1055=\"\",\"\",'1. Ordersheet'!AY1055)","v":""},{"$f":"IF('1. Ordersheet'!AZ1055=\"\",\"\",'1. Ordersheet'!AZ1055)","v":""},{"$f":"IF('1. Ordersheet'!BA1055=\"\",\"\",'1. Ordersheet'!BA1055)","v":""},{"$f":"IF('1. Ordersheet'!BC1055=\"\",\"\",'1. Ordersheet'!BC1055)","v":""},{"$f":"IF('1. Ordersheet'!BD1055=\"\",\"\",'1. Ordersheet'!BD1055)","v":""},{"$f":"IF('1. Ordersheet'!BE1055=\"\",\"\",'1. Ordersheet'!BE1055)","v":""},{"$f":"IF('1. Ordersheet'!BF1055=\"\",\"\",'1. Ordersheet'!BF1055)","v":""},{"$f":"IF('1. Ordersheet'!BG1055=\"\",\"\",'1. Ordersheet'!BG1055)","v":"ZWO"},{"$f":"IF('1. Ordersheet'!BH1055=\"\",\"\",'1. Ordersheet'!BH1055)","v":""},{"$f":"IF('1. Ordersheet'!BI1055=\"\",\"\",'1. Ordersheet'!BI1055)","v":""},{"$f":"IF('1. Ordersheet'!BJ1055=\"\",\"\",'1. Ordersheet'!BJ1055)","v":""},{"$f":"IF('1. Ordersheet'!BK1055=\"\",\"\",'1. Ordersheet'!BK1055)","v":""},{"$f":"IF('1. Ordersheet'!BL1055=\"\",\"\",'1. Ordersheet'!BL1055)","v":""}]
[{"$f":"IF('1. Ordersheet'!F1056=\"\",\"\",'1. Ordersheet'!F1056)","v":""},{"$f":"IF('1. Ordersheet'!G1056=\"\",\"\",'1. Ordersheet'!G1056)","v":""},{"$f":"IF('1. Ordersheet'!H1056=\"\",\"\",'1. Ordersheet'!H1056)","v":""},{"$f":"IF('1. Ordersheet'!I1056=\"\",\"\",'1. Ordersheet'!I1056)","v":""},{"$f":"IF('1. Ordersheet'!J1056=\"\",\"\",'1. Ordersheet'!J1056)","v":""},{"$f":"IF('1. Ordersheet'!K1056=\"\",\"\",'1. Ordersheet'!K1056)","v":""},{"$f":"IF('1. Ordersheet'!L1056=\"\",\"\",'1. Ordersheet'!L1056)","v":""},{"$f":"IF('1. Ordersheet'!M1056=\"\",\"\",'1. Ordersheet'!M1056)","v":""},{"$f":"IF('1. Ordersheet'!N1056=\"\",\"\",'1. Ordersheet'!N1056)","v":""},{"$f":"IF('1. Ordersheet'!O1056=\"\",\"\",'1. Ordersheet'!O1056)","v":{"$error":"#N/A"}},{"$f":"IF('1. Ordersheet'!P1056=\"\",\"\",'1. Ordersheet'!P1056)","v":{"$error":"#N/A"}},{"$f":"IF('1. Ordersheet'!Q1056=\"\",\"\",'1. Ordersheet'!Q1056)","v":""},{"$f":"IF('1. Ordersheet'!R1056=\"\",\"\",'1. Ordersheet'!R1056)","v":""},{"$f":"IF('1. Ordersheet'!S1056=\"\",\"\",'1. Ordersheet'!S1056)","v":""},{"$f":"IF('1. Ordersheet'!V1056=\"\",\"\",'1. Ordersheet'!V1056)","v":""},{"$f":"IF('1. Ordersheet'!W1056=\"\",\"\",'1. Ordersheet'!W1056)","v":""},{"$f":"IF('1. Ordersheet'!X1056=\"\",\"\",'1. Ordersheet'!X1056)","v":""},{"$f":"IF('1. Ordersheet'!Y1056=\"\",\"\",'1. Ordersheet'!Y1056)","v":""},{"$f":"IF('1. Ordersheet'!Z1056=\"\",\"\",'1. Ordersheet'!Z1056)","v":""},{"$f":"IF('1. Ordersheet'!AA1056=\"\",\"\",'1. Ordersheet'!AA1056)","v":""},null,{"$f":"IF('1. Ordersheet'!AS1056=\"\",\"\",'1. Ordersheet'!AS1056)","v":""},{"$f":"IF('1. Ordersheet'!AT1056=\"\",\"\",'1. Ordersheet'!AT1056)","v":""},null,null,null,null,null,null,null,{"$f":"IF('1. Ordersheet'!AX1056=\"\",\"\",'1. Ordersheet'!AX1056)","v":""},{"$f":"IF('1. Ordersheet'!AY1056=\"\",\"\",'1. Ordersheet'!AY1056)","v":""},{"$f":"IF('1. Ordersheet'!AZ1056=\"\",\"\",'1. Ordersheet'!AZ1056)","v":""},{"$f":"IF('1. Ordersheet'!BA1056=\"\",\"\",'1. Ordersheet'!BA1056)","v":""},{"$f":"IF('1. Ordersheet'!BC1056=\"\",\"\",'1. Ordersheet'!BC1056)","v":""},{"$f":"IF('1. Ordersheet'!BD1056=\"\",\"\",'1. Ordersheet'!BD1056)","v":""},{"$f":"IF('1. Ordersheet'!BE1056=\"\",\"\",'1. Ordersheet'!BE1056)","v":""},{"$f":"IF('1. Ordersheet'!BF1056=\"\",\"\",'1. Ordersheet'!BF1056)","v":""},{"$f":"IF('1. Ordersheet'!BG1056=\"\",\"\",'1. Ordersheet'!BG1056)","v":"ZWO"},{"$f":"IF('1. Ordersheet'!BH1056=\"\",\"\",'1. Ordersheet'!BH1056)","v":""},{"$f":"IF('1. Ordersheet'!BI1056=\"\",\"\",'1. Ordersheet'!BI1056)","v":""},{"$f":"IF('1. Ordersheet'!BJ1056=\"\",\"\",'1. Ordersheet'!BJ1056)","v":""},{"$f":"IF('1. Ordersheet'!BK1056=\"\",\"\",'1. Ordersheet'!BK1056)","v":""},{"$f":"IF('1. Ordersheet'!BL1056=\"\",\"\",'1. Ordersheet'!BL1056)","v":""}]
[{"$f":"IF('1. Ordersheet'!F1057=\"\",\"\",'1. Ordersheet'!F1057)","v":""},{"$f":"IF('1. Ordersheet'!G1057=\"\",\"\",'1. Ordersheet'!G1057)","v":""},{"$f":"IF('1. Ordersheet'!H1057=\"\",\"\",'1. Ordersheet'!H1057)","v":""},{"$f":"IF('1. Ordersheet'!I1057=\"\",\"\",'1. Ordersheet'!I1057)","v":""},{"$f":"IF('1. Ordersheet'!J1057=\"\",\"\",'1. Ordersheet'!J1057)","v":""},{"$f":"IF('1. Ordersheet'!K1057=\"\",\"\",'1. Ordersheet'!K1057)","v":""},{"$f":"IF('1. Ordersheet'!L1057=\"\",\"\",'1. Ordersheet'!L1057)","v":""},{"$f":"IF('1. Ordersheet'!M1057=\"\",\"\",'1. Ordersheet'!M1057)","v":""},{"$f":"IF('1. Ordersheet'!N1057=\"\",\"\",'1. Ordersheet'!N1057)","v":""},{"$f":"IF('1. Ordersheet'!O1057=\"\",\"\",'1. Ordersheet'!O1057)","v":{"$error":"#N/A"}},{"$f":"IF('1. Ordersheet'!P1057=\"\",\"\",'1. Ordersheet'!P1057)","v":{"$error":"#N/A"}},{"$f":"IF('1. Ordersheet'!Q1057=\"\",\"\",'1. Ordersheet'!Q1057)","v":""},{"$f":"IF('1. Ordersheet'!R1057=\"\",\"\",'1. Ordersheet'!R1057)","v":""},{"$f":"IF('1. Ordersheet'!S1057=\"\",\"\",'1. Ordersheet'!S1057)","v":""},{"$f":"IF('1. Ordersheet'!V1057=\"\",\"\",'1. Ordersheet'!V1057)","v":""},{"$f":"IF('1. Ordersheet'!W1057=\"\",\"\",'1. Ordersheet'!W1057)","v":""},{"$f":"IF('1. Ordersheet'!X1057=\"\",\"\",'1. Ordersheet'!X1057)","v":""},{"$f":"IF('1. Ordersheet'!Y1057=\"\",\"\",'1. Ordersheet'!Y1057)","v":""},{"$f":"IF('1. Ordersheet'!Z1057=\"\",\"\",'1. Ordersheet'!Z1057)","v":""},{"$f":"IF('1. Ordersheet'!AA1057=\"\",\"\",'1. Ordersheet'!AA1057)","v":""},null,{"$f":"IF('1. Ordersheet'!AS1057=\"\",\"\",'1. Ordersheet'!AS1057)","v":""},{"$f":"IF('1. Ordersheet'!AT1057=\"\",\"\",'1. Ordersheet'!AT1057)","v":""},null,null,null,null,null,null,null,{"$f":"IF('1. Ordersheet'!AX1057=\"\",\"\",'1. Ordersheet'!AX1057)","v":""},{"$f":"IF('1. Ordersheet'!AY1057=\"\",\"\",'1. Ordersheet'!AY1057)","v":""},{"$f":"IF('1. Ordersheet'!AZ1057=\"\",\"\",'1. Ordersheet'!AZ1057)","v":""},{"$f":"IF('1. Ordersheet'!BA1057=\"\",\"\",'1. Ordersheet'!BA1057)","v":""},{"$f":"IF('1. Ordersheet'!BC1057=\"\",\"\",'1. Ordersheet'!BC1057)","v":""},{"$f":"IF('1. Ordersheet'!BD1057=\"\",\"\",'1. Ordersheet'!BD1057)","v":""},{"$f":"IF('1. Ordersheet'!BE1057=\"\",\"\",'1. Ordersheet'!BE1057)","v":""},{"$f":"IF('1. Ordersheet'!BF1057=\"\",\"\",'1. Ordersheet'!BF1057)","v":""},{"$f":"IF('1. Ordersheet'!BG1057=\"\",\"\",'1. Ordersheet'!BG1057)","v":"ZWO"},{"$f":"IF('1. Ordersheet'!BH1057=\"\",\"\",'1. Ordersheet'!BH1057)","v":""},{"$f":"IF('1. Ordersheet'!BI1057=\"\",\"\",'1. Ordersheet'!BI1057)","v":""},{"$f":"IF('1. Ordersheet'!BJ1057=\"\",\"\",'1. Ordersheet'!BJ1057)","v":""},{"$f":"IF('1. Ordersheet'!BK1057=\"\",\"\",'1. Ordersheet'!BK1057)","v":""},{"$f":"IF('1. Ordersheet'!BL1057=\"\",\"\",'1. Ordersheet'!BL1057)","v":""}]
[{"$f":"IF('1. Ordersheet'!F1058=\"\",\"\",'1. Ordersheet'!F1058)","v":""},{"$f":"IF('1. Ordersheet'!G1058=\"\",\"\",'1. Ordersheet'!G1058)","v":""},{"$f":"IF('1. Ordersheet'!H1058=\"\",\"\",'1. Ordersheet'!H1058)","v":""},{"$f":"IF('1. Ordersheet'!I1058=\"\",\"\",'1. Ordersheet'!I1058)","v":""},{"$f":"IF('1. Ordersheet'!J1058=\"\",\"\",'1. Ordersheet'!J1058)","v":""},{"$f":"IF('1. Ordersheet'!K1058=\"\",\"\",'1. Ordersheet'!K1058)","v":""},{"$f":"IF('1. Ordersheet'!L1058=\"\",\"\",'1. Ordersheet'!L1058)","v":""},{"$f":"IF('1. Ordersheet'!M1058=\"\",\"\",'1. Ordersheet'!M1058)","v":""},{"$f":"IF('1. Ordersheet'!N1058=\"\",\"\",'1. Ordersheet'!N1058)","v":""},{"$f":"IF('1. Ordersheet'!O1058=\"\",\"\",'1. Ordersheet'!O1058)","v":{"$error":"#N/A"}},{"$f":"IF('1. Ordersheet'!P1058=\"\",\"\",'1. Ordersheet'!P1058)","v":{"$error":"#N/A"}},{"$f":"IF('1. Ordersheet'!Q1058=\"\",\"\",'1. Ordersheet'!Q1058)","v":""},{"$f":"IF('1. Ordersheet'!R1058=\"\",\"\",'1. Ordersheet'!R1058)","v":""},{"$f":"IF('1. Ordersheet'!S1058=\"\",\"\",'1. Ordersheet'!S1058)","v":""},{"$f":"IF('1. Ordersheet'!V1058=\"\",\"\",'1. Ordersheet'!V1058)","v":""},{"$f":"IF('1. Ordersheet'!W1058=\"\",\"\",'1. Ordersheet'!W1058)","v":""},{"$f":"IF('1. Ordersheet'!X1058=\"\",\"\",'1. Ordersheet'!X1058)","v":""},{"$f":"IF('1. Ordersheet'!Y1058=\"\",\"\",'1. Ordersheet'!Y1058)","v":""},{"$f":"IF('1. Ordersheet'!Z1058=\"\",\"\",'1. Ordersheet'!Z1058)","v":""},{"$f":"IF('1. Ordersheet'!AA1058=\"\",\"\",'1. Ordersheet'!AA1058)","v":""},null,{"$f":"IF('1. Ordersheet'!AS1058=\"\",\"\",'1. Ordersheet'!AS1058)","v":""},{"$f":"IF('1. Ordersheet'!AT1058=\"\",\"\",'1. Ordersheet'!AT1058)","v":""},null,null,null,null,null,null,null,{"$f":"IF('1. Ordersheet'!AX1058=\"\",\"\",'1. Ordersheet'!AX1058)","v":""},{"$f":"IF('1. Ordersheet'!AY1058=\"\",\"\",'1. Ordersheet'!AY1058)","v":""},{"$f":"IF('1. Ordersheet'!AZ1058=\"\",\"\",'1. Ordersheet'!AZ1058)","v":""},{"$f":"IF('1. Ordersheet'!BA1058=\"\",\"\",'1. Ordersheet'!BA1058)","v":""},{"$f":"IF('1. Ordersheet'!BC1058=\"\",\"\",'1. Ordersheet'!BC1058)","v":""},{"$f":"IF('1. Ordersheet'!BD1058=\"\",\"\",'1. Ordersheet'!BD1058)","v":""},{"$f":"IF('1. Ordersheet'!BE1058=\"\",\"\",'1. Ordersheet'!BE1058)","v":""},{"$f":"IF('1. Ordersheet'!BF1058=\"\",\"\",'1. Ordersheet'!BF1058)","v":""},{"$f":"IF('1. Ordersheet'!BG1058=\"\",\"\",'1. Ordersheet'!BG1058)","v":"ZWO"},{"$f":"IF('1. Ordersheet'!BH1058=\"\",\"\",'1. Ordersheet'!BH1058)","v":""},{"$f":"IF('1. Ordersheet'!BI1058=\"\",\"\",'1. Ordersheet'!BI1058)","v":""},{"$f":"IF('1. Ordersheet'!BJ1058=\"\",\"\",'1. Ordersheet'!BJ1058)","v":""},{"$f":"IF('1. Ordersheet'!BK1058=\"\",\"\",'1. Ordersheet'!BK1058)","v":""},{"$f":"IF('1. Ordersheet'!BL1058=\"\",\"\",'1. Ordersheet'!BL1058)","v":""}]
[{"$f":"IF('1. Ordersheet'!F1059=\"\",\"\",'1. Ordersheet'!F1059)","v":""},{"$f":"IF('1. Ordersheet'!G1059=\"\",\"\",'1. Ordersheet'!G1059)","v":""},{"$f":"IF('1. Ordersheet'!H1059=\"\",\"\",'1. Ordersheet'!H1059)","v":""},{"$f":"IF('1. Ordersheet'!I1059=\"\",\"\",'1. Ordersheet'!I1059)","v":""},{"$f":"IF('1. Ordersheet'!J1059=\"\",\"\",'1. Ordersheet'!J1059)","v":""},{"$f":"IF('1. Ordersheet'!K1059=\"\",\"\",'1. Ordersheet'!K1059)","v":""},{"$f":"IF('1. Ordersheet'!L1059=\"\",\"\",'1. Ordersheet'!L1059)","v":""},{"$f":"IF('1. Ordersheet'!M1059=\"\",\"\",'1. Ordersheet'!M1059)","v":""},{"$f":"IF('1. Ordersheet'!N1059=\"\",\"\",'1. Ordersheet'!N1059)","v":""},{"$f":"IF('1. Ordersheet'!O1059=\"\",\"\",'1. Ordersheet'!O1059)","v":{"$error":"#N/A"}},{"$f":"IF('1. Ordersheet'!P1059=\"\",\"\",'1. Ordersheet'!P1059)","v":{"$error":"#N/A"}},{"$f":"IF('1. Ordersheet'!Q1059=\"\",\"\",'1. Ordersheet'!Q1059)","v":""},{"$f":"IF('1. Ordersheet'!R1059=\"\",\"\",'1. Ordersheet'!R1059)","v":""},{"$f":"IF('1. Ordersheet'!S1059=\"\",\"\",'1. Ordersheet'!S1059)","v":""},{"$f":"IF('1. Ordersheet'!V1059=\"\",\"\",'1. Ordersheet'!V1059)","v":""},{"$f":"IF('1. Ordersheet'!W1059=\"\",\"\",'1. Ordersheet'!W1059)","v":""},{"$f":"IF('1. Ordersheet'!X1059=\"\",\"\",'1. Ordersheet'!X1059)","v":""},{"$f":"IF('1. Ordersheet'!Y1059=\"\",\"\",'1. Ordersheet'!Y1059)","v":""},{"$f":"IF('1. Ordersheet'!Z1059=\"\",\"\",'1. Ordersheet'!Z1059)","v":""},{"$f":"IF('1. Ordersheet'!AA1059=\"\",\"\",'1. Ordersheet'!AA1059)","v":""},null,{"$f":"IF('1. Ordersheet'!AS1059=\"\",\"\",'1. Ordersheet'!AS1059)","v":""},{"$f":"IF('1. Ordersheet'!AT1059=\"\",\"\",'1. Ordersheet'!AT1059)","v":""},null,null,null,null,null,null,null,{"$f":"IF('1. Ordersheet'!AX1059=\"\",\"\",'1. Ordersheet'!AX1059)","v":""},{"$f":"IF('1. Ordersheet'!AY1059=\"\",\"\",'1. Ordersheet'!AY1059)","v":""},{"$f":"IF('1. Ordersheet'!AZ1059=\"\",\"\",'1. Ordersheet'!AZ1059)","v":""},{"$f":"IF('1. Ordersheet'!BA1059=\"\",\"\",'1. Ordersheet'!BA1059)","v":""},{"$f":"IF('1. Ordersheet'!BC1059=\"\",\"\",'1. Ordersheet'!BC1059)","v":""},{"$f":"IF('1. Ordersheet'!BD1059=\"\",\"\",'1. Ordersheet'!BD1059)","v":""},{"$f":"IF('1. Ordersheet'!BE1059=\"\",\"\",'1. Ordersheet'!BE1059)","v":""},{"$f":"IF('1. Ordersheet'!BF1059=\"\",\"\",'1. Ordersheet'!BF1059)","v":""},{"$f":"IF('1. Ordersheet'!BG1059=\"\",\"\",'1. Ordersheet'!BG1059)","v":"ZWO"},{"$f":"IF('1. Ordersheet'!BH1059=\"\",\"\",'1. Ordersheet'!BH1059)","v":""},{"$f":"IF('1. Ordersheet'!BI1059=\"\",\"\",'1. Ordersheet'!BI1059)","v":""},{"$f":"IF('1. Ordersheet'!BJ1059=\"\",\"\",'1. Ordersheet'!BJ1059)","v":""},{"$f":"IF('1. Ordersheet'!BK1059=\"\",\"\",'1. Ordersheet'!BK1059)","v":""},{"$f":"IF('1. Ordersheet'!BL1059=\"\",\"\",'1. Ordersheet'!BL1059)","v":""}]
[{"$f":"IF('1. Ordersheet'!F1060=\"\",\"\",'1. Ordersheet'!F1060)","v":""},{"$f":"IF('1. Ordersheet'!G1060=\"\",\"\",'1. Ordersheet'!G1060)","v":""},{"$f":"IF('1. Ordersheet'!H1060=\"\",\"\",'1. Ordersheet'!H1060)","v":""},{"$f":"IF('1. Ordersheet'!I1060=\"\",\"\",'1. Ordersheet'!I1060)","v":""},{"$f":"IF('1. Ordersheet'!J1060=\"\",\"\",'1. Ordersheet'!J1060)","v":""},{"$f":"IF('1. Ordersheet'!K1060=\"\",\"\",'1. Ordersheet'!K1060)","v":""},{"$f":"IF('1. Ordersheet'!L1060=\"\",\"\",'1. Ordersheet'!L1060)","v":""},{"$f":"IF('1. Ordersheet'!M1060=\"\",\"\",'1. Ordersheet'!M1060)","v":""},{"$f":"IF('1. Ordersheet'!N1060=\"\",\"\",'1. Ordersheet'!N1060)","v":""},{"$f":"IF('1. Ordersheet'!O1060=\"\",\"\",'1. Ordersheet'!O1060)","v":{"$error":"#N/A"}},{"$f":"IF('1. Ordersheet'!P1060=\"\",\"\",'1. Ordersheet'!P1060)","v":{"$error":"#N/A"}},{"$f":"IF('1. Ordersheet'!Q1060=\"\",\"\",'1. Ordersheet'!Q1060)","v":""},{"$f":"IF('1. Ordersheet'!R1060=\"\",\"\",'1. Ordersheet'!R1060)","v":""},{"$f":"IF('1. Ordersheet'!S1060=\"\",\"\",'1. Ordersheet'!S1060)","v":""},{"$f":"IF('1. Ordersheet'!V1060=\"\",\"\",'1. Ordersheet'!V1060)","v":""},{"$f":"IF('1. Ordersheet'!W1060=\"\",\"\",'1. Ordersheet'!W1060)","v":""},{"$f":"IF('1. Ordersheet'!X1060=\"\",\"\",'1. Ordersheet'!X1060)","v":""},{"$f":"IF('1. Ordersheet'!Y1060=\"\",\"\",'1. Ordersheet'!Y1060)","v":""},{"$f":"IF('1. Ordersheet'!Z1060=\"\",\"\",'1. Ordersheet'!Z1060)","v":""},{"$f":"IF('1. Ordersheet'!AA1060=\"\",\"\",'1. Ordersheet'!AA1060)","v":""},null,{"$f":"IF('1. Ordersheet'!AS1060=\"\",\"\",'1. Ordersheet'!AS1060)","v":""},{"$f":"IF('1. Ordersheet'!AT1060=\"\",\"\",'1. Ordersheet'!AT1060)","v":""},null,null,null,null,null,null,null,{"$f":"IF('1. Ordersheet'!AX1060=\"\",\"\",'1. Ordersheet'!AX1060)","v":""},{"$f":"IF('1. Ordersheet'!AY1060=\"\",\"\",'1. Ordersheet'!AY1060)","v":""},{"$f":"IF('1. Ordersheet'!AZ1060=\"\",\"\",'1. Ordersheet'!AZ1060)","v":""},{"$f":"IF('1. Ordersheet'!BA1060=\"\",\"\",'1. Ordersheet'!BA1060)","v":""},{"$f":"IF('1. Ordersheet'!BC1060=\"\",\"\",'1. Ordersheet'!BC1060)","v":""},{"$f":"IF('1. Ordersheet'!BD1060=\"\",\"\",'1. Ordersheet'!BD1060)","v":""},{"$f":"IF('1. Ordersheet'!BE1060=\"\",\"\",'1. Ordersheet'!BE1060)","v":""},{"$f":"IF('1. Ordersheet'!BF1060=\"\",\"\",'1. Ordersheet'!BF1060)","v":""},{"$f":"IF('1. Ordersheet'!BG1060=\"\",\"\",'1. Ordersheet'!BG1060)","v":"ZWO"},{"$f":"IF('1. Ordersheet'!BH1060=\"\",\"\",'1. Ordersheet'!BH1060)","v":""},{"$f":"IF('1. Ordersheet'!BI1060=\"\",\"\",'1. Ordersheet'!BI1060)","v":""},{"$f":"IF('1. Ordersheet'!BJ1060=\"\",\"\",'1. Ordersheet'!BJ1060)","v":""},{"$f":"IF('1. Ordersheet'!BK1060=\"\",\"\",'1. Ordersheet'!BK1060)","v":""},{"$f":"IF('1. Ordersheet'!BL1060=\"\",\"\",'1. Ordersheet'!BL1060)","v":""}]
[{"$f":"IF('1. Ordersheet'!F1061=\"\",\"\",'1. Ordersheet'!F1061)","v":""},{"$f":"IF('1. Ordersheet'!G1061=\"\",\"\",'1. Ordersheet'!G1061)","v":""},{"$f":"IF('1. Ordersheet'!H1061=\"\",\"\",'1. Ordersheet'!H1061)","v":""},{"$f":"IF('1. Ordersheet'!I1061=\"\",\"\",'1. Ordersheet'!I1061)","v":""},{"$f":"IF('1. Ordersheet'!J1061=\"\",\"\",'1. Ordersheet'!J1061)","v":""},{"$f":"IF('1. Ordersheet'!K1061=\"\",\"\",'1. Ordersheet'!K1061)","v":""},{"$f":"IF('1. Ordersheet'!L1061=\"\",\"\",'1. Ordersheet'!L1061)","v":""},{"$f":"IF('1. Ordersheet'!M1061=\"\",\"\",'1. Ordersheet'!M1061)","v":""},{"$f":"IF('1. Ordersheet'!N1061=\"\",\"\",'1. Ordersheet'!N1061)","v":""},{"$f":"IF('1. Ordersheet'!O1061=\"\",\"\",'1. Ordersheet'!O1061)","v":{"$error":"#N/A"}},{"$f":"IF('1. Ordersheet'!P1061=\"\",\"\",'1. Ordersheet'!P1061)","v":{"$error":"#N/A"}},{"$f":"IF('1. Ordersheet'!Q1061=\"\",\"\",'1. Ordersheet'!Q1061)","v":""},{"$f":"IF('1. Ordersheet'!R1061=\"\",\"\",'1. Ordersheet'!R1061)","v":""},{"$f":"IF('1. Ordersheet'!S1061=\"\",\"\",'1. Ordersheet'!S1061)","v":""},{"$f":"IF('1. Ordersheet'!V1061=\"\",\"\",'1. Ordersheet'!V1061)","v":""},{"$f":"IF('1. Ordersheet'!W1061=\"\",\"\",'1. Ordersheet'!W1061)","v":""},{"$f":"IF('1. Ordersheet'!X1061=\"\",\"\",'1. Ordersheet'!X1061)","v":""},{"$f":"IF('1. Ordersheet'!Y1061=\"\",\"\",'1. Ordersheet'!Y1061)","v":""},{"$f":"IF('1. Ordersheet'!Z1061=\"\",\"\",'1. Ordersheet'!Z1061)","v":""},{"$f":"IF('1. Ordersheet'!AA1061=\"\",\"\",'1. Ordersheet'!AA1061)","v":""},null,{"$f":"IF('1. Ordersheet'!AS1061=\"\",\"\",'1. Ordersheet'!AS1061)","v":""},{"$f":"IF('1. Ordersheet'!AT1061=\"\",\"\",'1. Ordersheet'!AT1061)","v":""},null,null,null,null,null,null,null,{"$f":"IF('1. Ordersheet'!AX1061=\"\",\"\",'1. Ordersheet'!AX1061)","v":""},{"$f":"IF('1. Ordersheet'!AY1061=\"\",\"\",'1. Ordersheet'!AY1061)","v":""},{"$f":"IF('1. Ordersheet'!AZ1061=\"\",\"\",'1. Ordersheet'!AZ1061)","v":""},{"$f":"IF('1. Ordersheet'!BA1061=\"\",\"\",'1. Ordersheet'!BA1061)","v":""},{"$f":"IF('1. Ordersheet'!BC1061=\"\",\"\",'1. Ordersheet'!BC1061)","v":""},{"$f":"IF('1. Ordersheet'!BD1061=\"\",\"\",'1. Ordersheet'!BD1061)","v":""},{"$f":"IF('1. Ordersheet'!BE1061=\"\",\"\",'1. Ordersheet'!BE1061)","v":""},{"$f":"IF('1. Ordersheet'!BF1061=\"\",\"\",'1. Ordersheet'!BF1061)","v":""},{"$f":"IF('1. Ordersheet'!BG1061=\"\",\"\",'1. Ordersheet'!BG1061)","v":"ZWO"},{"$f":"IF('1. Ordersheet'!BH1061=\"\",\"\",'1. Ordersheet'!BH1061)","v":""},{"$f":"IF('1. Ordersheet'!BI1061=\"\",\"\",'1. Ordersheet'!BI1061)","v":""},{"$f":"IF('1. Ordersheet'!BJ1061=\"\",\"\",'1. Ordersheet'!BJ1061)","v":""},{"$f":"IF('1. Ordersheet'!BK1061=\"\",\"\",'1. Ordersheet'!BK1061)","v":""},{"$f":"IF('1. Ordersheet'!BL1061=\"\",\"\",'1. Ordersheet'!BL1061)","v":""}]
[{"$f":"IF('1. Ordersheet'!F1062=\"\",\"\",'1. Ordersheet'!F1062)","v":""},{"$f":"IF('1. Ordersheet'!G1062=\"\",\"\",'1. Ordersheet'!G1062)","v":""},{"$f":"IF('1. Ordersheet'!H1062=\"\",\"\",'1. Ordersheet'!H1062)","v":""},{"$f":"IF('1. Ordersheet'!I1062=\"\",\"\",'1. Ordersheet'!I1062)","v":""},{"$f":"IF('1. Ordersheet'!J1062=\"\",\"\",'1. Ordersheet'!J1062)","v":""},{"$f":"IF('1. Ordersheet'!K1062=\"\",\"\",'1. Ordersheet'!K1062)","v":""},{"$f":"IF('1. Ordersheet'!L1062=\"\",\"\",'1. Ordersheet'!L1062)","v":""},{"$f":"IF('1. Ordersheet'!M1062=\"\",\"\",'1. Ordersheet'!M1062)","v":""},{"$f":"IF('1. Ordersheet'!N1062=\"\",\"\",'1. Ordersheet'!N1062)","v":""},{"$f":"IF('1. Ordersheet'!O1062=\"\",\"\",'1. Ordersheet'!O1062)","v":{"$error":"#N/A"}},{"$f":"IF('1. Ordersheet'!P1062=\"\",\"\",'1. Ordersheet'!P1062)","v":{"$error":"#N/A"}},{"$f":"IF('1. Ordersheet'!Q1062=\"\",\"\",'1. Ordersheet'!Q1062)","v":""},{"$f":"IF('1. Ordersheet'!R1062=\"\",\"\",'1. Ordersheet'!R1062)","v":""},{"$f":"IF('1. Ordersheet'!S1062=\"\",\"\",'1. Ordersheet'!S1062)","v":""},{"$f":"IF('1. Ordersheet'!V1062=\"\",\"\",'1. Ordersheet'!V1062)","v":""},{"$f":"IF('1. Ordersheet'!W1062=\"\",\"\",'1. Ordersheet'!W1062)","v":""},{"$f":"IF('1. Ordersheet'!X1062=\"\",\"\",'1. Ordersheet'!X1062)","v":""},{"$f":"IF('1. Ordersheet'!Y1062=\"\",\"\",'1. Ordersheet'!Y1062)","v":""},{"$f":"IF('1. Ordersheet'!Z1062=\"\",\"\",'1. Ordersheet'!Z1062)","v":""},{"$f":"IF('1. Ordersheet'!AA1062=\"\",\"\",'1. Ordersheet'!AA1062)","v":""},null,{"$f":"IF('1. Ordersheet'!AS1062=\"\",\"\",'1. Ordersheet'!AS1062)","v":""},{"$f":"IF('1. Ordersheet'!AT1062=\"\",\"\",'1. Ordersheet'!AT1062)","v":""},null,null,null,null,null,null,null,{"$f":"IF('1. Ordersheet'!AX1062=\"\",\"\",'1. Ordersheet'!AX1062)","v":""},{"$f":"IF('1. Ordersheet'!AY1062=\"\",\"\",'1. Ordersheet'!AY1062)","v":""},{"$f":"IF('1. Ordersheet'!AZ1062=\"\",\"\",'1. Ordersheet'!AZ1062)","v":""},{"$f":"IF('1. Ordersheet'!BA1062=\"\",\"\",'1. Ordersheet'!BA1062)","v":""},{"$f":"IF('1. Ordersheet'!BC1062=\"\",\"\",'1. Ordersheet'!BC1062)","v":""},{"$f":"IF('1. Ordersheet'!BD1062=\"\",\"\",'1. Ordersheet'!BD1062)","v":""},{"$f":"IF('1. Ordersheet'!BE1062=\"\",\"\",'1. Ordersheet'!BE1062)","v":""},{"$f":"IF('1. Ordersheet'!BF1062=\"\",\"\",'1. Ordersheet'!BF1062)","v":""},{"$f":"IF('1. Ordersheet'!BG1062=\"\",\"\",'1. Ordersheet'!BG1062)","v":"ZWO"},{"$f":"IF('1. Ordersheet'!BH1062=\"\",\"\",'1. Ordersheet'!BH1062)","v":""},{"$f":"IF('1. Ordersheet'!BI1062=\"\",\"\",'1. Ordersheet'!BI1062)","v":""},{"$f":"IF('1. Ordersheet'!BJ1062=\"\",\"\",'1. Ordersheet'!BJ1062)","v":""},{"$f":"IF('1. Ordersheet'!BK1062=\"\",\"\",'1. Ordersheet'!BK1062)","v":""},{"$f":"IF('1. Ordersheet'!BL1062=\"\",\"\",'1. Ordersheet'!BL1062)","v":""}]
[{"$f":"IF('1. Ordersheet'!F1063=\"\",\"\",'1. Ordersheet'!F1063)","v":""},{"$f":"IF('1. Ordersheet'!G1063=\"\",\"\",'1. Ordersheet'!G1063)","v":""},{"$f":"IF('1. Ordersheet'!H1063=\"\",\"\",'1. Ordersheet'!H1063)","v":""},{"$f":"IF('1. Ordersheet'!I1063=\"\",\"\",'1. Ordersheet'!I1063)","v":""},{"$f":"IF('1. Ordersheet'!J1063=\"\",\"\",'1. Ordersheet'!J1063)","v":""},{"$f":"IF('1. Ordersheet'!K1063=\"\",\"\",'1. Ordersheet'!K1063)","v":""},{"$f":"IF('1. Ordersheet'!L1063=\"\",\"\",'1. Ordersheet'!L1063)","v":""},{"$f":"IF('1. Ordersheet'!M1063=\"\",\"\",'1. Ordersheet'!M1063)","v":""},{"$f":"IF('1. Ordersheet'!N1063=\"\",\"\",'1. Ordersheet'!N1063)","v":""},{"$f":"IF('1. Ordersheet'!O1063=\"\",\"\",'1. Ordersheet'!O1063)","v":{"$error":"#N/A"}},{"$f":"IF('1. Ordersheet'!P1063=\"\",\"\",'1. Ordersheet'!P1063)","v":{"$error":"#N/A"}},{"$f":"IF('1. Ordersheet'!Q1063=\"\",\"\",'1. Ordersheet'!Q1063)","v":""},{"$f":"IF('1. Ordersheet'!R1063=\"\",\"\",'1. Ordersheet'!R1063)","v":""},{"$f":"IF('1. Ordersheet'!S1063=\"\",\"\",'1. Ordersheet'!S1063)","v":""},{"$f":"IF('1. Ordersheet'!V1063=\"\",\"\",'1. Ordersheet'!V1063)","v":""},{"$f":"IF('1. Ordersheet'!W1063=\"\",\"\",'1. Ordersheet'!W1063)","v":""},{"$f":"IF('1. Ordersheet'!X1063=\"\",\"\",'1. Ordersheet'!X1063)","v":""},{"$f":"IF('1. Ordersheet'!Y1063=\"\",\"\",'1. Ordersheet'!Y1063)","v":""},{"$f":"IF('1. Ordersheet'!Z1063=\"\",\"\",'1. Ordersheet'!Z1063)","v":""},{"$f":"IF('1. Ordersheet'!AA1063=\"\",\"\",'1. Ordersheet'!AA1063)","v":""},null,{"$f":"IF('1. Ordersheet'!AS1063=\"\",\"\",'1. Ordersheet'!AS1063)","v":""},{"$f":"IF('1. Ordersheet'!AT1063=\"\",\"\",'1. Ordersheet'!AT1063)","v":""},null,null,null,null,null,null,null,{"$f":"IF('1. Ordersheet'!AX1063=\"\",\"\",'1. Ordersheet'!AX1063)","v":""},{"$f":"IF('1. Ordersheet'!AY1063=\"\",\"\",'1. Ordersheet'!AY1063)","v":""},{"$f":"IF('1. Ordersheet'!AZ1063=\"\",\"\",'1. Ordersheet'!AZ1063)","v":""},{"$f":"IF('1. Ordersheet'!BA1063=\"\",\"\",'1. Ordersheet'!BA1063)","v":""},{"$f":"IF('1. Ordersheet'!BC1063=\"\",\"\",'1. Ordersheet'!BC1063)","v":""},{"$f":"IF('1. Ordersheet'!BD1063=\"\",\"\",'1. Ordersheet'!BD1063)","v":""},{"$f":"IF('1. Ordersheet'!BE1063=\"\",\"\",'1. Ordersheet'!BE1063)","v":""},{"$f":"IF('1. Ordersheet'!BF1063=\"\",\"\",'1. Ordersheet'!BF1063)","v":""},{"$f":"IF('1. Ordersheet'!BG1063=\"\",\"\",'1. Ordersheet'!BG1063)","v":"ZWO"},{"$f":"IF('1. Ordersheet'!BH1063=\"\",\"\",'1. Ordersheet'!BH1063)","v":""},{"$f":"IF('1. Ordersheet'!BI1063=\"\",\"\",'1. Ordersheet'!BI1063)","v":""},{"$f":"IF('1. Ordersheet'!BJ1063=\"\",\"\",'1. Ordersheet'!BJ1063)","v":""},{"$f":"IF('1. Ordersheet'!BK1063=\"\",\"\",'1. Ordersheet'!BK1063)","v":""},{"$f":"IF('1. Ordersheet'!BL1063=\"\",\"\",'1. Ordersheet'!BL1063)","v":""}]
[{"$f":"IF('1. Ordersheet'!F1064=\"\",\"\",'1. Ordersheet'!F1064)","v":""},{"$f":"IF('1. Ordersheet'!G1064=\"\",\"\",'1. Ordersheet'!G1064)","v":""},{"$f":"IF('1. Ordersheet'!H1064=\"\",\"\",'1. Ordersheet'!H1064)","v":""},{"$f":"IF('1. Ordersheet'!I1064=\"\",\"\",'1. Ordersheet'!I1064)","v":""},{"$f":"IF('1. Ordersheet'!J1064=\"\",\"\",'1. Ordersheet'!J1064)","v":""},{"$f":"IF('1. Ordersheet'!K1064=\"\",\"\",'1. Ordersheet'!K1064)","v":""},{"$f":"IF('1. Ordersheet'!L1064=\"\",\"\",'1. Ordersheet'!L1064)","v":""},{"$f":"IF('1. Ordersheet'!M1064=\"\",\"\",'1. Ordersheet'!M1064)","v":""},{"$f":"IF('1. Ordersheet'!N1064=\"\",\"\",'1. Ordersheet'!N1064)","v":""},{"$f":"IF('1. Ordersheet'!O1064=\"\",\"\",'1. Ordersheet'!O1064)","v":{"$error":"#N/A"}},{"$f":"IF('1. Ordersheet'!P1064=\"\",\"\",'1. Ordersheet'!P1064)","v":{"$error":"#N/A"}},{"$f":"IF('1. Ordersheet'!Q1064=\"\",\"\",'1. Ordersheet'!Q1064)","v":""},{"$f":"IF('1. Ordersheet'!R1064=\"\",\"\",'1. Ordersheet'!R1064)","v":""},{"$f":"IF('1. Ordersheet'!S1064=\"\",\"\",'1. Ordersheet'!S1064)","v":""},{"$f":"IF('1. Ordersheet'!V1064=\"\",\"\",'1. Ordersheet'!V1064)","v":""},{"$f":"IF('1. Ordersheet'!W1064=\"\",\"\",'1. Ordersheet'!W1064)","v":""},{"$f":"IF('1. Ordersheet'!X1064=\"\",\"\",'1. Ordersheet'!X1064)","v":""},{"$f":"IF('1. Ordersheet'!Y1064=\"\",\"\",'1. Ordersheet'!Y1064)","v":""},{"$f":"IF('1. Ordersheet'!Z1064=\"\",\"\",'1. Ordersheet'!Z1064)","v":""},{"$f":"IF('1. Ordersheet'!AA1064=\"\",\"\",'1. Ordersheet'!AA1064)","v":""},null,{"$f":"IF('1. Ordersheet'!AS1064=\"\",\"\",'1. Ordersheet'!AS1064)","v":""},{"$f":"IF('1. Ordersheet'!AT1064=\"\",\"\",'1. Ordersheet'!AT1064)","v":""},null,null,null,null,null,null,null,{"$f":"IF('1. Ordersheet'!AX1064=\"\",\"\",'1. Ordersheet'!AX1064)","v":""},{"$f":"IF('1. Ordersheet'!AY1064=\"\",\"\",'1. Ordersheet'!AY1064)","v":""},{"$f":"IF('1. Ordersheet'!AZ1064=\"\",\"\",'1. Ordersheet'!AZ1064)","v":""},{"$f":"IF('1. Ordersheet'!BA1064=\"\",\"\",'1. Ordersheet'!BA1064)","v":""},{"$f":"IF('1. Ordersheet'!BC1064=\"\",\"\",'1. Ordersheet'!BC1064)","v":""},{"$f":"IF('1. Ordersheet'!BD1064=\"\",\"\",'1. Ordersheet'!BD1064)","v":""},{"$f":"IF('1. Ordersheet'!BE1064=\"\",\"\",'1. Ordersheet'!BE1064)","v":""},{"$f":"IF('1. Ordersheet'!BF1064=\"\",\"\",'1. Ordersheet'!BF1064)","v":""},{"$f":"IF('1. Ordersheet'!BG1064=\"\",\"\",'1. Ordersheet'!BG1064)","v":"ZWO"},{"$f":"IF('1. Ordersheet'!BH1064=\"\",\"\",'1. Ordersheet'!BH1064)","v":""},{"$f":"IF('1. Ordersheet'!BI1064=\"\",\"\",'1. Ordersheet'!BI1064)","v":""},{"$f":"IF('1. Ordersheet'!BJ1064=\"\",\"\",'1. Ordersheet'!BJ1064)","v":""},{"$f":"IF('1. Ordersheet'!BK1064=\"\",\"\",'1. Ordersheet'!BK1064)","v":""},{"$f":"IF('1. Ordersheet'!BL1064=\"\",\"\",'1. Ordersheet'!BL1064)","v":""}]
[{"$f":"IF('1. Ordersheet'!F1065=\"\",\"\",'1. Ordersheet'!F1065)","v":""},{"$f":"IF('1. Ordersheet'!G1065=\"\",\"\",'1. Ordersheet'!G1065)","v":""},{"$f":"IF('1. Ordersheet'!H1065=\"\",\"\",'1. Ordersheet'!H1065)","v":""},{"$f":"IF('1. Ordersheet'!I1065=\"\",\"\",'1. Ordersheet'!I1065)","v":""},{"$f":"IF('1. Ordersheet'!J1065=\"\",\"\",'1. Ordersheet'!J1065)","v":""},{"$f":"IF('1. Ordersheet'!K1065=\"\",\"\",'1. Ordersheet'!K1065)","v":""},{"$f":"IF('1. Ordersheet'!L1065=\"\",\"\",'1. Ordersheet'!L1065)","v":""},{"$f":"IF('1. Ordersheet'!M1065=\"\",\"\",'1. Ordersheet'!M1065)","v":""},{"$f":"IF('1. Ordersheet'!N1065=\"\",\"\",'1. Ordersheet'!N1065)","v":""},{"$f":"IF('1. Ordersheet'!O1065=\"\",\"\",'1. Ordersheet'!O1065)","v":{"$error":"#N/A"}},{"$f":"IF('1. Ordersheet'!P1065=\"\",\"\",'1. Ordersheet'!P1065)","v":{"$error":"#N/A"}},{"$f":"IF('1. Ordersheet'!Q1065=\"\",\"\",'1. Ordersheet'!Q1065)","v":""},{"$f":"IF('1. Ordersheet'!R1065=\"\",\"\",'1. Ordersheet'!R1065)","v":""},{"$f":"IF('1. Ordersheet'!S1065=\"\",\"\",'1. Ordersheet'!S1065)","v":""},{"$f":"IF('1. Ordersheet'!V1065=\"\",\"\",'1. Ordersheet'!V1065)","v":""},{"$f":"IF('1. Ordersheet'!W1065=\"\",\"\",'1. Ordersheet'!W1065)","v":""},{"$f":"IF('1. Ordersheet'!X1065=\"\",\"\",'1. Ordersheet'!X1065)","v":""},{"$f":"IF('1. Ordersheet'!Y1065=\"\",\"\",'1. Ordersheet'!Y1065)","v":""},{"$f":"IF('1. Ordersheet'!Z1065=\"\",\"\",'1. Ordersheet'!Z1065)","v":""},{"$f":"IF('1. Ordersheet'!AA1065=\"\",\"\",'1. Ordersheet'!AA1065)","v":""},null,{"$f":"IF('1. Ordersheet'!AS1065=\"\",\"\",'1. Ordersheet'!AS1065)","v":""},{"$f":"IF('1. Ordersheet'!AT1065=\"\",\"\",'1. Ordersheet'!AT1065)","v":""},null,null,null,null,null,null,null,{"$f":"IF('1. Ordersheet'!AX1065=\"\",\"\",'1. Ordersheet'!AX1065)","v":""},{"$f":"IF('1. Ordersheet'!AY1065=\"\",\"\",'1. Ordersheet'!AY1065)","v":""},{"$f":"IF('1. Ordersheet'!AZ1065=\"\",\"\",'1. Ordersheet'!AZ1065)","v":""},{"$f":"IF('1. Ordersheet'!BA1065=\"\",\"\",'1. Ordersheet'!BA1065)","v":""},{"$f":"IF('1. Ordersheet'!BC1065=\"\",\"\",'1. Ordersheet'!BC1065)","v":""},{"$f":"IF('1. Ordersheet'!BD1065=\"\",\"\",'1. Ordersheet'!BD1065)","v":""},{"$f":"IF('1. Ordersheet'!BE1065=\"\",\"\",'1. Ordersheet'!BE1065)","v":""},{"$f":"IF('1. Ordersheet'!BF1065=\"\",\"\",'1. Ordersheet'!BF1065)","v":""},{"$f":"IF('1. Ordersheet'!BG1065=\"\",\"\",'1. Ordersheet'!BG1065)","v":"ZWO"},{"$f":"IF('1. Ordersheet'!BH1065=\"\",\"\",'1. Ordersheet'!BH1065)","v":""},{"$f":"IF('1. Ordersheet'!BI1065=\"\",\"\",'1. Ordersheet'!BI1065)","v":""},{"$f":"IF('1. Ordersheet'!BJ1065=\"\",\"\",'1. Ordersheet'!BJ1065)","v":""},{"$f":"IF('1. Ordersheet'!BK1065=\"\",\"\",'1. Ordersheet'!BK1065)","v":""},{"$f":"IF('1. Ordersheet'!BL1065=\"\",\"\",'1. Ordersheet'!BL1065)","v":""}]
[{"$f":"IF('1. Ordersheet'!F1066=\"\",\"\",'1. Ordersheet'!F1066)","v":""},{"$f":"IF('1. Ordersheet'!G1066=\"\",\"\",'1. Ordersheet'!G1066)","v":""},{"$f":"IF('1. Ordersheet'!H1066=\"\",\"\",'1. Ordersheet'!H1066)","v":""},{"$f":"IF('1. Ordersheet'!I1066=\"\",\"\",'1. Ordersheet'!I1066)","v":""},{"$f":"IF('1. Ordersheet'!J1066=\"\",\"\",'1. Ordersheet'!J1066)","v":""},{"$f":"IF('1. Ordersheet'!K1066=\"\",\"\",'1. Ordersheet'!K1066)","v":""},{"$f":"IF('1. Ordersheet'!L1066=\"\",\"\",'1. Ordersheet'!L1066)","v":""},{"$f":"IF('1. Ordersheet'!M1066=\"\",\"\",'1. Ordersheet'!M1066)","v":""},{"$f":"IF('1. Ordersheet'!N1066=\"\",\"\",'1. Ordersheet'!N1066)","v":""},{"$f":"IF('1. Ordersheet'!O1066=\"\",\"\",'1. Ordersheet'!O1066)","v":{"$error":"#N/A"}},{"$f":"IF('1. Ordersheet'!P1066=\"\",\"\",'1. Ordersheet'!P1066)","v":{"$error":"#N/A"}},{"$f":"IF('1. Ordersheet'!Q1066=\"\",\"\",'1. Ordersheet'!Q1066)","v":""},{"$f":"IF('1. Ordersheet'!R1066=\"\",\"\",'1. Ordersheet'!R1066)","v":""},{"$f":"IF('1. Ordersheet'!S1066=\"\",\"\",'1. Ordersheet'!S1066)","v":""},{"$f":"IF('1. Ordersheet'!V1066=\"\",\"\",'1. Ordersheet'!V1066)","v":""},{"$f":"IF('1. Ordersheet'!W1066=\"\",\"\",'1. Ordersheet'!W1066)","v":""},{"$f":"IF('1. Ordersheet'!X1066=\"\",\"\",'1. Ordersheet'!X1066)","v":""},{"$f":"IF('1. Ordersheet'!Y1066=\"\",\"\",'1. Ordersheet'!Y1066)","v":""},{"$f":"IF('1. Ordersheet'!Z1066=\"\",\"\",'1. Ordersheet'!Z1066)","v":""},{"$f":"IF('1. Ordersheet'!AA1066=\"\",\"\",'1. Ordersheet'!AA1066)","v":""},null,{"$f":"IF('1. Ordersheet'!AS1066=\"\",\"\",'1. Ordersheet'!AS1066)","v":""},{"$f":"IF('1. Ordersheet'!AT1066=\"\",\"\",'1. Ordersheet'!AT1066)","v":""},null,null,null,null,null,null,null,{"$f":"IF('1. Ordersheet'!AX1066=\"\",\"\",'1. Ordersheet'!AX1066)","v":""},{"$f":"IF('1. Ordersheet'!AY1066=\"\",\"\",'1. Ordersheet'!AY1066)","v":""},{"$f":"IF('1. Ordersheet'!AZ1066=\"\",\"\",'1. Ordersheet'!AZ1066)","v":""},{"$f":"IF('1. Ordersheet'!BA1066=\"\",\"\",'1. Ordersheet'!BA1066)","v":""},{"$f":"IF('1. Ordersheet'!BC1066=\"\",\"\",'1. Ordersheet'!BC1066)","v":""},{"$f":"IF('1. Ordersheet'!BD1066=\"\",\"\",'1. Ordersheet'!BD1066)","v":""},{"$f":"IF('1. Ordersheet'!BE1066=\"\",\"\",'1. Ordersheet'!BE1066)","v":""},{"$f":"IF('1. Ordersheet'!BF1066=\"\",\"\",'1. Ordersheet'!BF1066)","v":""},{"$f":"IF('1. Ordersheet'!BG1066=\"\",\"\",'1. Ordersheet'!BG1066)","v":"ZWO"},{"$f":"IF('1. Ordersheet'!BH1066=\"\",\"\",'1. Ordersheet'!BH1066)","v":""},{"$f":"IF('1. Ordersheet'!BI1066=\"\",\"\",'1. Ordersheet'!BI1066)","v":""},{"$f":"IF('1. Ordersheet'!BJ1066=\"\",\"\",'1. Ordersheet'!BJ1066)","v":""},{"$f":"IF('1. Ordersheet'!BK1066=\"\",\"\",'1. Ordersheet'!BK1066)","v":""},{"$f":"IF('1. Ordersheet'!BL1066=\"\",\"\",'1. Ordersheet'!BL1066)","v":""}]
[{"$f":"IF('1. Ordersheet'!F1067=\"\",\"\",'1. Ordersheet'!F1067)","v":""},{"$f":"IF('1. Ordersheet'!G1067=\"\",\"\",'1. Ordersheet'!G1067)","v":""},{"$f":"IF('1. Ordersheet'!H1067=\"\",\"\",'1. Ordersheet'!H1067)","v":""},{"$f":"IF('1. Ordersheet'!I1067=\"\",\"\",'1. Ordersheet'!I1067)","v":""},{"$f":"IF('1. Ordersheet'!J1067=\"\",\"\",'1. Ordersheet'!J1067)","v":""},{"$f":"IF('1. Ordersheet'!K1067=\"\",\"\",'1. Ordersheet'!K1067)","v":""},{"$f":"IF('1. Ordersheet'!L1067=\"\",\"\",'1. Ordersheet'!L1067)","v":""},{"$f":"IF('1. Ordersheet'!M1067=\"\",\"\",'1. Ordersheet'!M1067)","v":""},{"$f":"IF('1. Ordersheet'!N1067=\"\",\"\",'1. Ordersheet'!N1067)","v":""},{"$f":"IF('1. Ordersheet'!O1067=\"\",\"\",'1. Ordersheet'!O1067)","v":{"$error":"#N/A"}},{"$f":"IF('1. Ordersheet'!P1067=\"\",\"\",'1. Ordersheet'!P1067)","v":{"$error":"#N/A"}},{"$f":"IF('1. Ordersheet'!Q1067=\"\",\"\",'1. Ordersheet'!Q1067)","v":""},{"$f":"IF('1. Ordersheet'!R1067=\"\",\"\",'1. Ordersheet'!R1067)","v":""},{"$f":"IF('1. Ordersheet'!S1067=\"\",\"\",'1. Ordersheet'!S1067)","v":""},{"$f":"IF('1. Ordersheet'!V1067=\"\",\"\",'1. Ordersheet'!V1067)","v":""},{"$f":"IF('1. Ordersheet'!W1067=\"\",\"\",'1. Ordersheet'!W1067)","v":""},{"$f":"IF('1. Ordersheet'!X1067=\"\",\"\",'1. Ordersheet'!X1067)","v":""},{"$f":"IF('1. Ordersheet'!Y1067=\"\",\"\",'1. Ordersheet'!Y1067)","v":""},{"$f":"IF('1. Ordersheet'!Z1067=\"\",\"\",'1. Ordersheet'!Z1067)","v":""},{"$f":"IF('1. Ordersheet'!AA1067=\"\",\"\",'1. Ordersheet'!AA1067)","v":""},null,{"$f":"IF('1. Ordersheet'!AS1067=\"\",\"\",'1. Ordersheet'!AS1067)","v":""},{"$f":"IF('1. Ordersheet'!AT1067=\"\",\"\",'1. Ordersheet'!AT1067)","v":""},null,null,null,null,null,null,null,{"$f":"IF('1. Ordersheet'!AX1067=\"\",\"\",'1. Ordersheet'!AX1067)","v":""},{"$f":"IF('1. Ordersheet'!AY1067=\"\",\"\",'1. Ordersheet'!AY1067)","v":""},{"$f":"IF('1. Ordersheet'!AZ1067=\"\",\"\",'1. Ordersheet'!AZ1067)","v":""},{"$f":"IF('1. Ordersheet'!BA1067=\"\",\"\",'1. Ordersheet'!BA1067)","v":""},{"$f":"IF('1. Ordersheet'!BC1067=\"\",\"\",'1. Ordersheet'!BC1067)","v":""},{"$f":"IF('1. Ordersheet'!BD1067=\"\",\"\",'1. Ordersheet'!BD1067)","v":""},{"$f":"IF('1. Ordersheet'!BE1067=\"\",\"\",'1. Ordersheet'!BE1067)","v":""},{"$f":"IF('1. Ordersheet'!BF1067=\"\",\"\",'1. Ordersheet'!BF1067)","v":""},{"$f":"IF('1. Ordersheet'!BG1067=\"\",\"\",'1. Ordersheet'!BG1067)","v":"ZWO"},{"$f":"IF('1. Ordersheet'!BH1067=\"\",\"\",'1. Ordersheet'!BH1067)","v":""},{"$f":"IF('1. Ordersheet'!BI1067=\"\",\"\",'1. Ordersheet'!BI1067)","v":""},{"$f":"IF('1. Ordersheet'!BJ1067=\"\",\"\",'1. Ordersheet'!BJ1067)","v":""},{"$f":"IF('1. Ordersheet'!BK1067=\"\",\"\",'1. Ordersheet'!BK1067)","v":""},{"$f":"IF('1. Ordersheet'!BL1067=\"\",\"\",'1. Ordersheet'!BL1067)","v":""}]
[{"$f":"IF('1. Ordersheet'!F1068=\"\",\"\",'1. Ordersheet'!F1068)","v":""},{"$f":"IF('1. Ordersheet'!G1068=\"\",\"\",'1. Ordersheet'!G1068)","v":""},{"$f":"IF('1. Ordersheet'!H1068=\"\",\"\",'1. Ordersheet'!H1068)","v":""},{"$f":"IF('1. Ordersheet'!I1068=\"\",\"\",'1. Ordersheet'!I1068)","v":""},{"$f":"IF('1. Ordersheet'!J1068=\"\",\"\",'1. Ordersheet'!J1068)","v":""},{"$f":"IF('1. Ordersheet'!K1068=\"\",\"\",'1. Ordersheet'!K1068)","v":""},{"$f":"IF('1. Ordersheet'!L1068=\"\",\"\",'1. Ordersheet'!L1068)","v":""},{"$f":"IF('1. Ordersheet'!M1068=\"\",\"\",'1. Ordersheet'!M1068)","v":""},{"$f":"IF('1. Ordersheet'!N1068=\"\",\"\",'1. Ordersheet'!N1068)","v":""},{"$f":"IF('1. Ordersheet'!O1068=\"\",\"\",'1. Ordersheet'!O1068)","v":{"$error":"#N/A"}},{"$f":"IF('1. Ordersheet'!P1068=\"\",\"\",'1. Ordersheet'!P1068)","v":{"$error":"#N/A"}},{"$f":"IF('1. Ordersheet'!Q1068=\"\",\"\",'1. Ordersheet'!Q1068)","v":""},{"$f":"IF('1. Ordersheet'!R1068=\"\",\"\",'1. Ordersheet'!R1068)","v":""},{"$f":"IF('1. Ordersheet'!S1068=\"\",\"\",'1. Ordersheet'!S1068)","v":""},{"$f":"IF('1. Ordersheet'!V1068=\"\",\"\",'1. Ordersheet'!V1068)","v":""},{"$f":"IF('1. Ordersheet'!W1068=\"\",\"\",'1. Ordersheet'!W1068)","v":""},{"$f":"IF('1. Ordersheet'!X1068=\"\",\"\",'1. Ordersheet'!X1068)","v":""},{"$f":"IF('1. Ordersheet'!Y1068=\"\",\"\",'1. Ordersheet'!Y1068)","v":""},{"$f":"IF('1. Ordersheet'!Z1068=\"\",\"\",'1. Ordersheet'!Z1068)","v":""},{"$f":"IF('1. Ordersheet'!AA1068=\"\",\"\",'1. Ordersheet'!AA1068)","v":""},null,{"$f":"IF('1. Ordersheet'!AS1068=\"\",\"\",'1. Ordersheet'!AS1068)","v":""},{"$f":"IF('1. Ordersheet'!AT1068=\"\",\"\",'1. Ordersheet'!AT1068)","v":""},null,null,null,null,null,null,null,{"$f":"IF('1. Ordersheet'!AX1068=\"\",\"\",'1. Ordersheet'!AX1068)","v":""},{"$f":"IF('1. Ordersheet'!AY1068=\"\",\"\",'1. Ordersheet'!AY1068)","v":""},{"$f":"IF('1. Ordersheet'!AZ1068=\"\",\"\",'1. Ordersheet'!AZ1068)","v":""},{"$f":"IF('1. Ordersheet'!BA1068=\"\",\"\",'1. Ordersheet'!BA1068)","v":""},{"$f":"IF('1. Ordersheet'!BC1068=\"\",\"\",'1. Ordersheet'!BC1068)","v":""},{"$f":"IF('1. Ordersheet'!BD1068=\"\",\"\",'1. Ordersheet'!BD1068)","v":""},{"$f":"IF('1. Ordersheet'!BE1068=\"\",\"\",'1. Ordersheet'!BE1068)","v":""},{"$f":"IF('1. Ordersheet'!BF1068=\"\",\"\",'1. Ordersheet'!BF1068)","v":""},{"$f":"IF('1. Ordersheet'!BG1068=\"\",\"\",'1. Ordersheet'!BG1068)","v":"ZWO"},{"$f":"IF('1. Ordersheet'!BH1068=\"\",\"\",'1. Ordersheet'!BH1068)","v":""},{"$f":"IF('1. Ordersheet'!BI1068=\"\",\"\",'1. Ordersheet'!BI1068)","v":""},{"$f":"IF('1. Ordersheet'!BJ1068=\"\",\"\",'1. Ordersheet'!BJ1068)","v":""},{"$f":"IF('1. Ordersheet'!BK1068=\"\",\"\",'1. Ordersheet'!BK1068)","v":""},{"$f":"IF('1. Ordersheet'!BL1068=\"\",\"\",'1. Ordersheet'!BL1068)","v":""}]
[{"$f":"IF('1. Ordersheet'!F1069=\"\",\"\",'1. Ordersheet'!F1069)","v":""},{"$f":"IF('1. Ordersheet'!G1069=\"\",\"\",'1. Ordersheet'!G1069)","v":""},{"$f":"IF('1. Ordersheet'!H1069=\"\",\"\",'1. Ordersheet'!H1069)","v":""},{"$f":"IF('1. Ordersheet'!I1069=\"\",\"\",'1. Ordersheet'!I1069)","v":""},{"$f":"IF('1. Ordersheet'!J1069=\"\",\"\",'1. Ordersheet'!J1069)","v":""},{"$f":"IF('1. Ordersheet'!K1069=\"\",\"\",'1. Ordersheet'!K1069)","v":""},{"$f":"IF('1. Ordersheet'!L1069=\"\",\"\",'1. Ordersheet'!L1069)","v":""},{"$f":"IF('1. Ordersheet'!M1069=\"\",\"\",'1. Ordersheet'!M1069)","v":""},{"$f":"IF('1. Ordersheet'!N1069=\"\",\"\",'1. Ordersheet'!N1069)","v":""},{"$f":"IF('1. Ordersheet'!O1069=\"\",\"\",'1. Ordersheet'!O1069)","v":{"$error":"#N/A"}},{"$f":"IF('1. Ordersheet'!P1069=\"\",\"\",'1. Ordersheet'!P1069)","v":{"$error":"#N/A"}},{"$f":"IF('1. Ordersheet'!Q1069=\"\",\"\",'1. Ordersheet'!Q1069)","v":""},{"$f":"IF('1. Ordersheet'!R1069=\"\",\"\",'1. Ordersheet'!R1069)","v":""},{"$f":"IF('1. Ordersheet'!S1069=\"\",\"\",'1. Ordersheet'!S1069)","v":""},{"$f":"IF('1. Ordersheet'!V1069=\"\",\"\",'1. Ordersheet'!V1069)","v":""},{"$f":"IF('1. Ordersheet'!W1069=\"\",\"\",'1. Ordersheet'!W1069)","v":""},{"$f":"IF('1. Ordersheet'!X1069=\"\",\"\",'1. Ordersheet'!X1069)","v":""},{"$f":"IF('1. Ordersheet'!Y1069=\"\",\"\",'1. Ordersheet'!Y1069)","v":""},{"$f":"IF('1. Ordersheet'!Z1069=\"\",\"\",'1. Ordersheet'!Z1069)","v":""},{"$f":"IF('1. Ordersheet'!AA1069=\"\",\"\",'1. Ordersheet'!AA1069)","v":""},null,{"$f":"IF('1. Ordersheet'!AS1069=\"\",\"\",'1. Ordersheet'!AS1069)","v":""},{"$f":"IF('1. Ordersheet'!AT1069=\"\",\"\",'1. Ordersheet'!AT1069)","v":""},null,null,null,null,null,null,null,{"$f":"IF('1. Ordersheet'!AX1069=\"\",\"\",'1. Ordersheet'!AX1069)","v":""},{"$f":"IF('1. Ordersheet'!AY1069=\"\",\"\",'1. Ordersheet'!AY1069)","v":""},{"$f":"IF('1. Ordersheet'!AZ1069=\"\",\"\",'1. Ordersheet'!AZ1069)","v":""},{"$f":"IF('1. Ordersheet'!BA1069=\"\",\"\",'1. Ordersheet'!BA1069)","v":""},{"$f":"IF('1. Ordersheet'!BC1069=\"\",\"\",'1. Ordersheet'!BC1069)","v":""},{"$f":"IF('1. Ordersheet'!BD1069=\"\",\"\",'1. Ordersheet'!BD1069)","v":""},{"$f":"IF('1. Ordersheet'!BE1069=\"\",\"\",'1. Ordersheet'!BE1069)","v":""},{"$f":"IF('1. Ordersheet'!BF1069=\"\",\"\",'1. Ordersheet'!BF1069)","v":""},{"$f":"IF('1. Ordersheet'!BG1069=\"\",\"\",'1. Ordersheet'!BG1069)","v":"ZWO"},{"$f":"IF('1. Ordersheet'!BH1069=\"\",\"\",'1. Ordersheet'!BH1069)","v":""},{"$f":"IF('1. Ordersheet'!BI1069=\"\",\"\",'1. Ordersheet'!BI1069)","v":""},{"$f":"IF('1. Ordersheet'!BJ1069=\"\",\"\",'1. Ordersheet'!BJ1069)","v":""},{"$f":"IF('1. Ordersheet'!BK1069=\"\",\"\",'1. Ordersheet'!BK1069)","v":""},{"$f":"IF('1. Ordersheet'!BL1069=\"\",\"\",'1. Ordersheet'!BL1069)","v":""}]
[{"$f":"IF('1. Ordersheet'!F1070=\"\",\"\",'1. Ordersheet'!F1070)","v":""},{"$f":"IF('1. Ordersheet'!G1070=\"\",\"\",'1. Ordersheet'!G1070)","v":""},{"$f":"IF('1. Ordersheet'!H1070=\"\",\"\",'1. Ordersheet'!H1070)","v":""},{"$f":"IF('1. Ordersheet'!I1070=\"\",\"\",'1. Ordersheet'!I1070)","v":""},{"$f":"IF('1. Ordersheet'!J1070=\"\",\"\",'1. Ordersheet'!J1070)","v":""},{"$f":"IF('1. Ordersheet'!K1070=\"\",\"\",'1. Ordersheet'!K1070)","v":""},{"$f":"IF('1. Ordersheet'!L1070=\"\",\"\",'1. Ordersheet'!L1070)","v":""},{"$f":"IF('1. Ordersheet'!M1070=\"\",\"\",'1. Ordersheet'!M1070)","v":""},{"$f":"IF('1. Ordersheet'!N1070=\"\",\"\",'1. Ordersheet'!N1070)","v":""},{"$f":"IF('1. Ordersheet'!O1070=\"\",\"\",'1. Ordersheet'!O1070)","v":{"$error":"#N/A"}},{"$f":"IF('1. Ordersheet'!P1070=\"\",\"\",'1. Ordersheet'!P1070)","v":{"$error":"#N/A"}},{"$f":"IF('1. Ordersheet'!Q1070=\"\",\"\",'1. Ordersheet'!Q1070)","v":""},{"$f":"IF('1. Ordersheet'!R1070=\"\",\"\",'1. Ordersheet'!R1070)","v":""},{"$f":"IF('1. Ordersheet'!S1070=\"\",\"\",'1. Ordersheet'!S1070)","v":""},{"$f":"IF('1. Ordersheet'!V1070=\"\",\"\",'1. Ordersheet'!V1070)","v":""},{"$f":"IF('1. Ordersheet'!W1070=\"\",\"\",'1. Ordersheet'!W1070)","v":""},{"$f":"IF('1. Ordersheet'!X1070=\"\",\"\",'1. Ordersheet'!X1070)","v":""},{"$f":"IF('1. Ordersheet'!Y1070=\"\",\"\",'1. Ordersheet'!Y1070)","v":""},{"$f":"IF('1. Ordersheet'!Z1070=\"\",\"\",'1. Ordersheet'!Z1070)","v":""},{"$f":"IF('1. Ordersheet'!AA1070=\"\",\"\",'1. Ordersheet'!AA1070)","v":""},null,{"$f":"IF('1. Ordersheet'!AS1070=\"\",\"\",'1. Ordersheet'!AS1070)","v":""},{"$f":"IF('1. Ordersheet'!AT1070=\"\",\"\",'1. Ordersheet'!AT1070)","v":""},null,null,null,null,null,null,null,{"$f":"IF('1. Ordersheet'!AX1070=\"\",\"\",'1. Ordersheet'!AX1070)","v":""},{"$f":"IF('1. Ordersheet'!AY1070=\"\",\"\",'1. Ordersheet'!AY1070)","v":""},{"$f":"IF('1. Ordersheet'!AZ1070=\"\",\"\",'1. Ordersheet'!AZ1070)","v":""},{"$f":"IF('1. Ordersheet'!BA1070=\"\",\"\",'1. Ordersheet'!BA1070)","v":""},{"$f":"IF('1. Ordersheet'!BC1070=\"\",\"\",'1. Ordersheet'!BC1070)","v":""},{"$f":"IF('1. Ordersheet'!BD1070=\"\",\"\",'1. Ordersheet'!BD1070)","v":""},{"$f":"IF('1. Ordersheet'!BE1070=\"\",\"\",'1. Ordersheet'!BE1070)","v":""},{"$f":"IF('1. Ordersheet'!BF1070=\"\",\"\",'1. Ordersheet'!BF1070)","v":""},{"$f":"IF('1. Ordersheet'!BG1070=\"\",\"\",'1. Ordersheet'!BG1070)","v":"ZWO"},{"$f":"IF('1. Ordersheet'!BH1070=\"\",\"\",'1. Ordersheet'!BH1070)","v":""},{"$f":"IF('1. Ordersheet'!BI1070=\"\",\"\",'1. Ordersheet'!BI1070)","v":""},{"$f":"IF('1. Ordersheet'!BJ1070=\"\",\"\",'1. Ordersheet'!BJ1070)","v":""},{"$f":"IF('1. Ordersheet'!BK1070=\"\",\"\",'1. Ordersheet'!BK1070)","v":""},{"$f":"IF('1. Ordersheet'!BL1070=\"\",\"\",'1. Ordersheet'!BL1070)","v":""}]
[{"$f":"IF('1. Ordersheet'!F1071=\"\",\"\",'1. Ordersheet'!F1071)","v":""},{"$f":"IF('1. Ordersheet'!G1071=\"\",\"\",'1. Ordersheet'!G1071)","v":""},{"$f":"IF('1. Ordersheet'!H1071=\"\",\"\",'1. Ordersheet'!H1071)","v":""},{"$f":"IF('1. Ordersheet'!I1071=\"\",\"\",'1. Ordersheet'!I1071)","v":""},{"$f":"IF('1. Ordersheet'!J1071=\"\",\"\",'1. Ordersheet'!J1071)","v":""},{"$f":"IF('1. Ordersheet'!K1071=\"\",\"\",'1. Ordersheet'!K1071)","v":""},{"$f":"IF('1. Ordersheet'!L1071=\"\",\"\",'1. Ordersheet'!L1071)","v":""},{"$f":"IF('1. Ordersheet'!M1071=\"\",\"\",'1. Ordersheet'!M1071)","v":""},{"$f":"IF('1. Ordersheet'!N1071=\"\",\"\",'1. Ordersheet'!N1071)","v":""},{"$f":"IF('1. Ordersheet'!O1071=\"\",\"\",'1. Ordersheet'!O1071)","v":{"$error":"#N/A"}},{"$f":"IF('1. Ordersheet'!P1071=\"\",\"\",'1. Ordersheet'!P1071)","v":{"$error":"#N/A"}},{"$f":"IF('1. Ordersheet'!Q1071=\"\",\"\",'1. Ordersheet'!Q1071)","v":""},{"$f":"IF('1. Ordersheet'!R1071=\"\",\"\",'1. Ordersheet'!R1071)","v":""},{"$f":"IF('1. Ordersheet'!S1071=\"\",\"\",'1. Ordersheet'!S1071)","v":""},{"$f":"IF('1. Ordersheet'!V1071=\"\",\"\",'1. Ordersheet'!V1071)","v":""},{"$f":"IF('1. Ordersheet'!W1071=\"\",\"\",'1. Ordersheet'!W1071)","v":""},{"$f":"IF('1. Ordersheet'!X1071=\"\",\"\",'1. Ordersheet'!X1071)","v":""},{"$f":"IF('1. Ordersheet'!Y1071=\"\",\"\",'1. Ordersheet'!Y1071)","v":""},{"$f":"IF('1. Ordersheet'!Z1071=\"\",\"\",'1. Ordersheet'!Z1071)","v":""},{"$f":"IF('1. Ordersheet'!AA1071=\"\",\"\",'1. Ordersheet'!AA1071)","v":""},null,{"$f":"IF('1. Ordersheet'!AS1071=\"\",\"\",'1. Ordersheet'!AS1071)","v":""},{"$f":"IF('1. Ordersheet'!AT1071=\"\",\"\",'1. Ordersheet'!AT1071)","v":""},null,null,null,null,null,null,null,{"$f":"IF('1. Ordersheet'!AX1071=\"\",\"\",'1. Ordersheet'!AX1071)","v":""},{"$f":"IF('1. Ordersheet'!AY1071=\"\",\"\",'1. Ordersheet'!AY1071)","v":""},{"$f":"IF('1. Ordersheet'!AZ1071=\"\",\"\",'1. Ordersheet'!AZ1071)","v":""},{"$f":"IF('1. Ordersheet'!BA1071=\"\",\"\",'1. Ordersheet'!BA1071)","v":""},{"$f":"IF('1. Ordersheet'!BC1071=\"\",\"\",'1. Ordersheet'!BC1071)","v":""},{"$f":"IF('1. Ordersheet'!BD1071=\"\",\"\",'1. Ordersheet'!BD1071)","v":""},{"$f":"IF('1. Ordersheet'!BE1071=\"\",\"\",'1. Ordersheet'!BE1071)","v":""},{"$f":"IF('1. Ordersheet'!BF1071=\"\",\"\",'1. Ordersheet'!BF1071)","v":""},{"$f":"IF('1. Ordersheet'!BG1071=\"\",\"\",'1. Ordersheet'!BG1071)","v":"ZWO"},{"$f":"IF('1. Ordersheet'!BH1071=\"\",\"\",'1. Ordersheet'!BH1071)","v":""},{"$f":"IF('1. Ordersheet'!BI1071=\"\",\"\",'1. Ordersheet'!BI1071)","v":""},{"$f":"IF('1. Ordersheet'!BJ1071=\"\",\"\",'1. Ordersheet'!BJ1071)","v":""},{"$f":"IF('1. Ordersheet'!BK1071=\"\",\"\",'1. Ordersheet'!BK1071)","v":""},{"$f":"IF('1. Ordersheet'!BL1071=\"\",\"\",'1. Ordersheet'!BL1071)","v":""}]
[{"$f":"IF('1. Ordersheet'!F1072=\"\",\"\",'1. Ordersheet'!F1072)","v":""},{"$f":"IF('1. Ordersheet'!G1072=\"\",\"\",'1. Ordersheet'!G1072)","v":""},{"$f":"IF('1. Ordersheet'!H1072=\"\",\"\",'1. Ordersheet'!H1072)","v":""},{"$f":"IF('1. Ordersheet'!I1072=\"\",\"\",'1. Ordersheet'!I1072)","v":""},{"$f":"IF('1. Ordersheet'!J1072=\"\",\"\",'1. Ordersheet'!J1072)","v":""},{"$f":"IF('1. Ordersheet'!K1072=\"\",\"\",'1. Ordersheet'!K1072)","v":""},{"$f":"IF('1. Ordersheet'!L1072=\"\",\"\",'1. Ordersheet'!L1072)","v":""},{"$f":"IF('1. Ordersheet'!M1072=\"\",\"\",'1. Ordersheet'!M1072)","v":""},{"$f":"IF('1. Ordersheet'!N1072=\"\",\"\",'1. Ordersheet'!N1072)","v":""},{"$f":"IF('1. Ordersheet'!O1072=\"\",\"\",'1. Ordersheet'!O1072)","v":{"$error":"#N/A"}},{"$f":"IF('1. Ordersheet'!P1072=\"\",\"\",'1. Ordersheet'!P1072)","v":{"$error":"#N/A"}},{"$f":"IF('1. Ordersheet'!Q1072=\"\",\"\",'1. Ordersheet'!Q1072)","v":""},{"$f":"IF('1. Ordersheet'!R1072=\"\",\"\",'1. Ordersheet'!R1072)","v":""},{"$f":"IF('1. Ordersheet'!S1072=\"\",\"\",'1. Ordersheet'!S1072)","v":""},{"$f":"IF('1. Ordersheet'!V1072=\"\",\"\",'1. Ordersheet'!V1072)","v":""},{"$f":"IF('1. Ordersheet'!W1072=\"\",\"\",'1. Ordersheet'!W1072)","v":""},{"$f":"IF('1. Ordersheet'!X1072=\"\",\"\",'1. Ordersheet'!X1072)","v":""},{"$f":"IF('1. Ordersheet'!Y1072=\"\",\"\",'1. Ordersheet'!Y1072)","v":""},{"$f":"IF('1. Ordersheet'!Z1072=\"\",\"\",'1. Ordersheet'!Z1072)","v":""},{"$f":"IF('1. Ordersheet'!AA1072=\"\",\"\",'1. Ordersheet'!AA1072)","v":""},null,{"$f":"IF('1. Ordersheet'!AS1072=\"\",\"\",'1. Ordersheet'!AS1072)","v":""},{"$f":"IF('1. Ordersheet'!AT1072=\"\",\"\",'1. Ordersheet'!AT1072)","v":""},null,null,null,null,null,null,null,{"$f":"IF('1. Ordersheet'!AX1072=\"\",\"\",'1. Ordersheet'!AX1072)","v":""},{"$f":"IF('1. Ordersheet'!AY1072=\"\",\"\",'1. Ordersheet'!AY1072)","v":""},{"$f":"IF('1. Ordersheet'!AZ1072=\"\",\"\",'1. Ordersheet'!AZ1072)","v":""},{"$f":"IF('1. Ordersheet'!BA1072=\"\",\"\",'1. Ordersheet'!BA1072)","v":""},{"$f":"IF('1. Ordersheet'!BC1072=\"\",\"\",'1. Ordersheet'!BC1072)","v":""},{"$f":"IF('1. Ordersheet'!BD1072=\"\",\"\",'1. Ordersheet'!BD1072)","v":""},{"$f":"IF('1. Ordersheet'!BE1072=\"\",\"\",'1. Ordersheet'!BE1072)","v":""},{"$f":"IF('1. Ordersheet'!BF1072=\"\",\"\",'1. Ordersheet'!BF1072)","v":""},{"$f":"IF('1. Ordersheet'!BG1072=\"\",\"\",'1. Ordersheet'!BG1072)","v":"ZWO"},{"$f":"IF('1. Ordersheet'!BH1072=\"\",\"\",'1. Ordersheet'!BH1072)","v":""},{"$f":"IF('1. Ordersheet'!BI1072=\"\",\"\",'1. Ordersheet'!BI1072)","v":""},{"$f":"IF('1. Ordersheet'!BJ1072=\"\",\"\",'1. Ordersheet'!BJ1072)","v":""},{"$f":"IF('1. Ordersheet'!BK1072=\"\",\"\",'1. Ordersheet'!BK1072)","v":""},{"$f":"IF('1. Ordersheet'!BL1072=\"\",\"\",'1. Ordersheet'!BL1072)","v":""}]
[{"$f":"IF('1. Ordersheet'!F1073=\"\",\"\",'1. Ordersheet'!F1073)","v":""},{"$f":"IF('1. Ordersheet'!G1073=\"\",\"\",'1. Ordersheet'!G1073)","v":""},{"$f":"IF('1. Ordersheet'!H1073=\"\",\"\",'1. Ordersheet'!H1073)","v":""},{"$f":"IF('1. Ordersheet'!I1073=\"\",\"\",'1. Ordersheet'!I1073)","v":""},{"$f":"IF('1. Ordersheet'!J1073=\"\",\"\",'1. Ordersheet'!J1073)","v":""},{"$f":"IF('1. Ordersheet'!K1073=\"\",\"\",'1. Ordersheet'!K1073)","v":""},{"$f":"IF('1. Ordersheet'!L1073=\"\",\"\",'1. Ordersheet'!L1073)","v":""},{"$f":"IF('1. Ordersheet'!M1073=\"\",\"\",'1. Ordersheet'!M1073)","v":""},{"$f":"IF('1. Ordersheet'!N1073=\"\",\"\",'1. Ordersheet'!N1073)","v":""},{"$f":"IF('1. Ordersheet'!O1073=\"\",\"\",'1. Ordersheet'!O1073)","v":{"$error":"#N/A"}},{"$f":"IF('1. Ordersheet'!P1073=\"\",\"\",'1. Ordersheet'!P1073)","v":{"$error":"#N/A"}},{"$f":"IF('1. Ordersheet'!Q1073=\"\",\"\",'1. Ordersheet'!Q1073)","v":""},{"$f":"IF('1. Ordersheet'!R1073=\"\",\"\",'1. Ordersheet'!R1073)","v":""},{"$f":"IF('1. Ordersheet'!S1073=\"\",\"\",'1. Ordersheet'!S1073)","v":""},{"$f":"IF('1. Ordersheet'!V1073=\"\",\"\",'1. Ordersheet'!V1073)","v":""},{"$f":"IF('1. Ordersheet'!W1073=\"\",\"\",'1. Ordersheet'!W1073)","v":""},{"$f":"IF('1. Ordersheet'!X1073=\"\",\"\",'1. Ordersheet'!X1073)","v":""},{"$f":"IF('1. Ordersheet'!Y1073=\"\",\"\",'1. Ordersheet'!Y1073)","v":""},{"$f":"IF('1. Ordersheet'!Z1073=\"\",\"\",'1. Ordersheet'!Z1073)","v":""},{"$f":"IF('1. Ordersheet'!AA1073=\"\",\"\",'1. Ordersheet'!AA1073)","v":""},null,{"$f":"IF('1. Ordersheet'!AS1073=\"\",\"\",'1. Ordersheet'!AS1073)","v":""},{"$f":"IF('1. Ordersheet'!AT1073=\"\",\"\",'1. Ordersheet'!AT1073)","v":""},null,null,null,null,null,null,null,{"$f":"IF('1. Ordersheet'!AX1073=\"\",\"\",'1. Ordersheet'!AX1073)","v":""},{"$f":"IF('1. Ordersheet'!AY1073=\"\",\"\",'1. Ordersheet'!AY1073)","v":""},{"$f":"IF('1. Ordersheet'!AZ1073=\"\",\"\",'1. Ordersheet'!AZ1073)","v":""},{"$f":"IF('1. Ordersheet'!BA1073=\"\",\"\",'1. Ordersheet'!BA1073)","v":""},{"$f":"IF('1. Ordersheet'!BC1073=\"\",\"\",'1. Ordersheet'!BC1073)","v":""},{"$f":"IF('1. Ordersheet'!BD1073=\"\",\"\",'1. Ordersheet'!BD1073)","v":""},{"$f":"IF('1. Ordersheet'!BE1073=\"\",\"\",'1. Ordersheet'!BE1073)","v":""},{"$f":"IF('1. Ordersheet'!BF1073=\"\",\"\",'1. Ordersheet'!BF1073)","v":""},{"$f":"IF('1. Ordersheet'!BG1073=\"\",\"\",'1. Ordersheet'!BG1073)","v":"ZWO"},{"$f":"IF('1. Ordersheet'!BH1073=\"\",\"\",'1. Ordersheet'!BH1073)","v":""},{"$f":"IF('1. Ordersheet'!BI1073=\"\",\"\",'1. Ordersheet'!BI1073)","v":""},{"$f":"IF('1. Ordersheet'!BJ1073=\"\",\"\",'1. Ordersheet'!BJ1073)","v":""},{"$f":"IF('1. Ordersheet'!BK1073=\"\",\"\",'1. Ordersheet'!BK1073)","v":""},{"$f":"IF('1. Ordersheet'!BL1073=\"\",\"\",'1. Ordersheet'!BL1073)","v":""}]
[{"$f":"IF('1. Ordersheet'!F1074=\"\",\"\",'1. Ordersheet'!F1074)","v":""},{"$f":"IF('1. Ordersheet'!G1074=\"\",\"\",'1. Ordersheet'!G1074)","v":""},{"$f":"IF('1. Ordersheet'!H1074=\"\",\"\",'1. Ordersheet'!H1074)","v":""},{"$f":"IF('1. Ordersheet'!I1074=\"\",\"\",'1. Ordersheet'!I1074)","v":""},{"$f":"IF('1. Ordersheet'!J1074=\"\",\"\",'1. Ordersheet'!J1074)","v":""},{"$f":"IF('1. Ordersheet'!K1074=\"\",\"\",'1. Ordersheet'!K1074)","v":""},{"$f":"IF('1. Ordersheet'!L1074=\"\",\"\",'1. Ordersheet'!L1074)","v":""},{"$f":"IF('1. Ordersheet'!M1074=\"\",\"\",'1. Ordersheet'!M1074)","v":""},{"$f":"IF('1. Ordersheet'!N1074=\"\",\"\",'1. Ordersheet'!N1074)","v":""},{"$f":"IF('1. Ordersheet'!O1074=\"\",\"\",'1. Ordersheet'!O1074)","v":{"$error":"#N/A"}},{"$f":"IF('1. Ordersheet'!P1074=\"\",\"\",'1. Ordersheet'!P1074)","v":{"$error":"#N/A"}},{"$f":"IF('1. Ordersheet'!Q1074=\"\",\"\",'1. Ordersheet'!Q1074)","v":""},{"$f":"IF('1. Ordersheet'!R1074=\"\",\"\",'1. Ordersheet'!R1074)","v":""},{"$f":"IF('1. Ordersheet'!S1074=\"\",\"\",'1. Ordersheet'!S1074)","v":""},{"$f":"IF('1. Ordersheet'!V1074=\"\",\"\",'1. Ordersheet'!V1074)","v":""},{"$f":"IF('1. Ordersheet'!W1074=\"\",\"\",'1. Ordersheet'!W1074)","v":""},{"$f":"IF('1. Ordersheet'!X1074=\"\",\"\",'1. Ordersheet'!X1074)","v":""},{"$f":"IF('1. Ordersheet'!Y1074=\"\",\"\",'1. Ordersheet'!Y1074)","v":""},{"$f":"IF('1. Ordersheet'!Z1074=\"\",\"\",'1. Ordersheet'!Z1074)","v":""},{"$f":"IF('1. Ordersheet'!AA1074=\"\",\"\",'1. Ordersheet'!AA1074)","v":""},null,{"$f":"IF('1. Ordersheet'!AS1074=\"\",\"\",'1. Ordersheet'!AS1074)","v":""},{"$f":"IF('1. Ordersheet'!AT1074=\"\",\"\",'1. Ordersheet'!AT1074)","v":""},null,null,null,null,null,null,null,{"$f":"IF('1. Ordersheet'!AX1074=\"\",\"\",'1. Ordersheet'!AX1074)","v":""},{"$f":"IF('1. Ordersheet'!AY1074=\"\",\"\",'1. Ordersheet'!AY1074)","v":""},{"$f":"IF('1. Ordersheet'!AZ1074=\"\",\"\",'1. Ordersheet'!AZ1074)","v":""},{"$f":"IF('1. Ordersheet'!BA1074=\"\",\"\",'1. Ordersheet'!BA1074)","v":""},{"$f":"IF('1. Ordersheet'!BC1074=\"\",\"\",'1. Ordersheet'!BC1074)","v":""},{"$f":"IF('1. Ordersheet'!BD1074=\"\",\"\",'1. Ordersheet'!BD1074)","v":""},{"$f":"IF('1. Ordersheet'!BE1074=\"\",\"\",'1. Ordersheet'!BE1074)","v":""},{"$f":"IF('1. Ordersheet'!BF1074=\"\",\"\",'1. Ordersheet'!BF1074)","v":""},{"$f":"IF('1. Ordersheet'!BG1074=\"\",\"\",'1. Ordersheet'!BG1074)","v":"ZWO"},{"$f":"IF('1. Ordersheet'!BH1074=\"\",\"\",'1. Ordersheet'!BH1074)","v":""},{"$f":"IF('1. Ordersheet'!BI1074=\"\",\"\",'1. Ordersheet'!BI1074)","v":""},{"$f":"IF('1. Ordersheet'!BJ1074=\"\",\"\",'1. Ordersheet'!BJ1074)","v":""},{"$f":"IF('1. Ordersheet'!BK1074=\"\",\"\",'1. Ordersheet'!BK1074)","v":""},{"$f":"IF('1. Ordersheet'!BL1074=\"\",\"\",'1. Ordersheet'!BL1074)","v":""}]
[{"$f":"IF('1. Ordersheet'!F1075=\"\",\"\",'1. Ordersheet'!F1075)","v":""},{"$f":"IF('1. Ordersheet'!G1075=\"\",\"\",'1. Ordersheet'!G1075)","v":""},{"$f":"IF('1. Ordersheet'!H1075=\"\",\"\",'1. Ordersheet'!H1075)","v":""},{"$f":"IF('1. Ordersheet'!I1075=\"\",\"\",'1. Ordersheet'!I1075)","v":""},{"$f":"IF('1. Ordersheet'!J1075=\"\",\"\",'1. Ordersheet'!J1075)","v":""},{"$f":"IF('1. Ordersheet'!K1075=\"\",\"\",'1. Ordersheet'!K1075)","v":""},{"$f":"IF('1. Ordersheet'!L1075=\"\",\"\",'1. Ordersheet'!L1075)","v":""},{"$f":"IF('1. Ordersheet'!M1075=\"\",\"\",'1. Ordersheet'!M1075)","v":""},{"$f":"IF('1. Ordersheet'!N1075=\"\",\"\",'1. Ordersheet'!N1075)","v":""},{"$f":"IF('1. Ordersheet'!O1075=\"\",\"\",'1. Ordersheet'!O1075)","v":{"$error":"#N/A"}},{"$f":"IF('1. Ordersheet'!P1075=\"\",\"\",'1. Ordersheet'!P1075)","v":{"$error":"#N/A"}},{"$f":"IF('1. Ordersheet'!Q1075=\"\",\"\",'1. Ordersheet'!Q1075)","v":""},{"$f":"IF('1. Ordersheet'!R1075=\"\",\"\",'1. Ordersheet'!R1075)","v":""},{"$f":"IF('1. Ordersheet'!S1075=\"\",\"\",'1. Ordersheet'!S1075)","v":""},{"$f":"IF('1. Ordersheet'!V1075=\"\",\"\",'1. Ordersheet'!V1075)","v":""},{"$f":"IF('1. Ordersheet'!W1075=\"\",\"\",'1. Ordersheet'!W1075)","v":""},{"$f":"IF('1. Ordersheet'!X1075=\"\",\"\",'1. Ordersheet'!X1075)","v":""},{"$f":"IF('1. Ordersheet'!Y1075=\"\",\"\",'1. Ordersheet'!Y1075)","v":""},{"$f":"IF('1. Ordersheet'!Z1075=\"\",\"\",'1. Ordersheet'!Z1075)","v":""},{"$f":"IF('1. Ordersheet'!AA1075=\"\",\"\",'1. Ordersheet'!AA1075)","v":""},null,{"$f":"IF('1. Ordersheet'!AS1075=\"\",\"\",'1. Ordersheet'!AS1075)","v":""},{"$f":"IF('1. Ordersheet'!AT1075=\"\",\"\",'1. Ordersheet'!AT1075)","v":""},null,null,null,null,null,null,null,{"$f":"IF('1. Ordersheet'!AX1075=\"\",\"\",'1. Ordersheet'!AX1075)","v":""},{"$f":"IF('1. Ordersheet'!AY1075=\"\",\"\",'1. Ordersheet'!AY1075)","v":""},{"$f":"IF('1. Ordersheet'!AZ1075=\"\",\"\",'1. Ordersheet'!AZ1075)","v":""},{"$f":"IF('1. Ordersheet'!BA1075=\"\",\"\",'1. Ordersheet'!BA1075)","v":""},{"$f":"IF('1. Ordersheet'!BC1075=\"\",\"\",'1. Ordersheet'!BC1075)","v":""},{"$f":"IF('1. Ordersheet'!BD1075=\"\",\"\",'1. Ordersheet'!BD1075)","v":""},{"$f":"IF('1. Ordersheet'!BE1075=\"\",\"\",'1. Ordersheet'!BE1075)","v":""},{"$f":"IF('1. Ordersheet'!BF1075=\"\",\"\",'1. Ordersheet'!BF1075)","v":""},{"$f":"IF('1. Ordersheet'!BG1075=\"\",\"\",'1. Ordersheet'!BG1075)","v":"ZWO"},{"$f":"IF('1. Ordersheet'!BH1075=\"\",\"\",'1. Ordersheet'!BH1075)","v":""},{"$f":"IF('1. Ordersheet'!BI1075=\"\",\"\",'1. Ordersheet'!BI1075)","v":""},{"$f":"IF('1. Ordersheet'!BJ1075=\"\",\"\",'1. Ordersheet'!BJ1075)","v":""},{"$f":"IF('1. Ordersheet'!BK1075=\"\",\"\",'1. Ordersheet'!BK1075)","v":""},{"$f":"IF('1. Ordersheet'!BL1075=\"\",\"\",'1. Ordersheet'!BL1075)","v":""}]
[{"$f":"IF('1. Ordersheet'!F1076=\"\",\"\",'1. Ordersheet'!F1076)","v":""},{"$f":"IF('1. Ordersheet'!G1076=\"\",\"\",'1. Ordersheet'!G1076)","v":""},{"$f":"IF('1. Ordersheet'!H1076=\"\",\"\",'1. Ordersheet'!H1076)","v":""},{"$f":"IF('1. Ordersheet'!I1076=\"\",\"\",'1. Ordersheet'!I1076)","v":""},{"$f":"IF('1. Ordersheet'!J1076=\"\",\"\",'1. Ordersheet'!J1076)","v":""},{"$f":"IF('1. Ordersheet'!K1076=\"\",\"\",'1. Ordersheet'!K1076)","v":""},{"$f":"IF('1. Ordersheet'!L1076=\"\",\"\",'1. Ordersheet'!L1076)","v":""},{"$f":"IF('1. Ordersheet'!M1076=\"\",\"\",'1. Ordersheet'!M1076)","v":""},{"$f":"IF('1. Ordersheet'!N1076=\"\",\"\",'1. Ordersheet'!N1076)","v":""},{"$f":"IF('1. Ordersheet'!O1076=\"\",\"\",'1. Ordersheet'!O1076)","v":{"$error":"#N/A"}},{"$f":"IF('1. Ordersheet'!P1076=\"\",\"\",'1. Ordersheet'!P1076)","v":{"$error":"#N/A"}},{"$f":"IF('1. Ordersheet'!Q1076=\"\",\"\",'1. Ordersheet'!Q1076)","v":""},{"$f":"IF('1. Ordersheet'!R1076=\"\",\"\",'1. Ordersheet'!R1076)","v":""},{"$f":"IF('1. Ordersheet'!S1076=\"\",\"\",'1. Ordersheet'!S1076)","v":""},{"$f":"IF('1. Ordersheet'!V1076=\"\",\"\",'1. Ordersheet'!V1076)","v":""},{"$f":"IF('1. Ordersheet'!W1076=\"\",\"\",'1. Ordersheet'!W1076)","v":""},{"$f":"IF('1. Ordersheet'!X1076=\"\",\"\",'1. Ordersheet'!X1076)","v":""},{"$f":"IF('1. Ordersheet'!Y1076=\"\",\"\",'1. Ordersheet'!Y1076)","v":""},{"$f":"IF('1. Ordersheet'!Z1076=\"\",\"\",'1. Ordersheet'!Z1076)","v":""},{"$f":"IF('1. Ordersheet'!AA1076=\"\",\"\",'1. Ordersheet'!AA1076)","v":""},null,{"$f":"IF('1. Ordersheet'!AS1076=\"\",\"\",'1. Ordersheet'!AS1076)","v":""},{"$f":"IF('1. Ordersheet'!AT1076=\"\",\"\",'1. Ordersheet'!AT1076)","v":""},null,null,null,null,null,null,null,{"$f":"IF('1. Ordersheet'!AX1076=\"\",\"\",'1. Ordersheet'!AX1076)","v":""},{"$f":"IF('1. Ordersheet'!AY1076=\"\",\"\",'1. Ordersheet'!AY1076)","v":""},{"$f":"IF('1. Ordersheet'!AZ1076=\"\",\"\",'1. Ordersheet'!AZ1076)","v":""},{"$f":"IF('1. Ordersheet'!BA1076=\"\",\"\",'1. Ordersheet'!BA1076)","v":""},{"$f":"IF('1. Ordersheet'!BC1076=\"\",\"\",'1. Ordersheet'!BC1076)","v":""},{"$f":"IF('1. Ordersheet'!BD1076=\"\",\"\",'1. Ordersheet'!BD1076)","v":""},{"$f":"IF('1. Ordersheet'!BE1076=\"\",\"\",'1. Ordersheet'!BE1076)","v":""},{"$f":"IF('1. Ordersheet'!BF1076=\"\",\"\",'1. Ordersheet'!BF1076)","v":""},{"$f":"IF('1. Ordersheet'!BG1076=\"\",\"\",'1. Ordersheet'!BG1076)","v":"ZWO"},{"$f":"IF('1. Ordersheet'!BH1076=\"\",\"\",'1. Ordersheet'!BH1076)","v":""},{"$f":"IF('1. Ordersheet'!BI1076=\"\",\"\",'1. Ordersheet'!BI1076)","v":""},{"$f":"IF('1. Ordersheet'!BJ1076=\"\",\"\",'1. Ordersheet'!BJ1076)","v":""},{"$f":"IF('1. Ordersheet'!BK1076=\"\",\"\",'1. Ordersheet'!BK1076)","v":""},{"$f":"IF('1. Ordersheet'!BL1076=\"\",\"\",'1. Ordersheet'!BL1076)","v":""}]
[{"$f":"IF('1. Ordersheet'!F1077=\"\",\"\",'1. Ordersheet'!F1077)","v":""},{"$f":"IF('1. Ordersheet'!G1077=\"\",\"\",'1. Ordersheet'!G1077)","v":""},{"$f":"IF('1. Ordersheet'!H1077=\"\",\"\",'1. Ordersheet'!H1077)","v":""},{"$f":"IF('1. Ordersheet'!I1077=\"\",\"\",'1. Ordersheet'!I1077)","v":""},{"$f":"IF('1. Ordersheet'!J1077=\"\",\"\",'1. Ordersheet'!J1077)","v":""},{"$f":"IF('1. Ordersheet'!K1077=\"\",\"\",'1. Ordersheet'!K1077)","v":""},{"$f":"IF('1. Ordersheet'!L1077=\"\",\"\",'1. Ordersheet'!L1077)","v":""},{"$f":"IF('1. Ordersheet'!M1077=\"\",\"\",'1. Ordersheet'!M1077)","v":""},{"$f":"IF('1. Ordersheet'!N1077=\"\",\"\",'1. Ordersheet'!N1077)","v":""},{"$f":"IF('1. Ordersheet'!O1077=\"\",\"\",'1. Ordersheet'!O1077)","v":{"$error":"#N/A"}},{"$f":"IF('1. Ordersheet'!P1077=\"\",\"\",'1. Ordersheet'!P1077)","v":{"$error":"#N/A"}},{"$f":"IF('1. Ordersheet'!Q1077=\"\",\"\",'1. Ordersheet'!Q1077)","v":""},{"$f":"IF('1. Ordersheet'!R1077=\"\",\"\",'1. Ordersheet'!R1077)","v":""},{"$f":"IF('1. Ordersheet'!S1077=\"\",\"\",'1. Ordersheet'!S1077)","v":""},{"$f":"IF('1. Ordersheet'!V1077=\"\",\"\",'1. Ordersheet'!V1077)","v":""},{"$f":"IF('1. Ordersheet'!W1077=\"\",\"\",'1. Ordersheet'!W1077)","v":""},{"$f":"IF('1. Ordersheet'!X1077=\"\",\"\",'1. Ordersheet'!X1077)","v":""},{"$f":"IF('1. Ordersheet'!Y1077=\"\",\"\",'1. Ordersheet'!Y1077)","v":""},{"$f":"IF('1. Ordersheet'!Z1077=\"\",\"\",'1. Ordersheet'!Z1077)","v":""},{"$f":"IF('1. Ordersheet'!AA1077=\"\",\"\",'1. Ordersheet'!AA1077)","v":""},null,{"$f":"IF('1. Ordersheet'!AS1077=\"\",\"\",'1. Ordersheet'!AS1077)","v":""},{"$f":"IF('1. Ordersheet'!AT1077=\"\",\"\",'1. Ordersheet'!AT1077)","v":""},null,null,null,null,null,null,null,{"$f":"IF('1. Ordersheet'!AX1077=\"\",\"\",'1. Ordersheet'!AX1077)","v":""},{"$f":"IF('1. Ordersheet'!AY1077=\"\",\"\",'1. Ordersheet'!AY1077)","v":""},{"$f":"IF('1. Ordersheet'!AZ1077=\"\",\"\",'1. Ordersheet'!AZ1077)","v":""},{"$f":"IF('1. Ordersheet'!BA1077=\"\",\"\",'1. Ordersheet'!BA1077)","v":""},{"$f":"IF('1. Ordersheet'!BC1077=\"\",\"\",'1. Ordersheet'!BC1077)","v":""},{"$f":"IF('1. Ordersheet'!BD1077=\"\",\"\",'1. Ordersheet'!BD1077)","v":""},{"$f":"IF('1. Ordersheet'!BE1077=\"\",\"\",'1. Ordersheet'!BE1077)","v":""},{"$f":"IF('1. Ordersheet'!BF1077=\"\",\"\",'1. Ordersheet'!BF1077)","v":""},{"$f":"IF('1. Ordersheet'!BG1077=\"\",\"\",'1. Ordersheet'!BG1077)","v":"ZWO"},{"$f":"IF('1. Ordersheet'!BH1077=\"\",\"\",'1. Ordersheet'!BH1077)","v":""},{"$f":"IF('1. Ordersheet'!BI1077=\"\",\"\",'1. Ordersheet'!BI1077)","v":""},{"$f":"IF('1. Ordersheet'!BJ1077=\"\",\"\",'1. Ordersheet'!BJ1077)","v":""},{"$f":"IF('1. Ordersheet'!BK1077=\"\",\"\",'1. Ordersheet'!BK1077)","v":""},{"$f":"IF('1. Ordersheet'!BL1077=\"\",\"\",'1. Ordersheet'!BL1077)","v":""}]
[{"$f":"IF('1. Ordersheet'!F1078=\"\",\"\",'1. Ordersheet'!F1078)","v":""},{"$f":"IF('1. Ordersheet'!G1078=\"\",\"\",'1. Ordersheet'!G1078)","v":""},{"$f":"IF('1. Ordersheet'!H1078=\"\",\"\",'1. Ordersheet'!H1078)","v":""},{"$f":"IF('1. Ordersheet'!I1078=\"\",\"\",'1. Ordersheet'!I1078)","v":""},{"$f":"IF('1. Ordersheet'!J1078=\"\",\"\",'1. Ordersheet'!J1078)","v":""},{"$f":"IF('1. Ordersheet'!K1078=\"\",\"\",'1. Ordersheet'!K1078)","v":""},{"$f":"IF('1. Ordersheet'!L1078=\"\",\"\",'1. Ordersheet'!L1078)","v":""},{"$f":"IF('1. Ordersheet'!M1078=\"\",\"\",'1. Ordersheet'!M1078)","v":""},{"$f":"IF('1. Ordersheet'!N1078=\"\",\"\",'1. Ordersheet'!N1078)","v":""},{"$f":"IF('1. Ordersheet'!O1078=\"\",\"\",'1. Ordersheet'!O1078)","v":{"$error":"#N/A"}},{"$f":"IF('1. Ordersheet'!P1078=\"\",\"\",'1. Ordersheet'!P1078)","v":{"$error":"#N/A"}},{"$f":"IF('1. Ordersheet'!Q1078=\"\",\"\",'1. Ordersheet'!Q1078)","v":""},{"$f":"IF('1. Ordersheet'!R1078=\"\",\"\",'1. Ordersheet'!R1078)","v":""},{"$f":"IF('1. Ordersheet'!S1078=\"\",\"\",'1. Ordersheet'!S1078)","v":""},{"$f":"IF('1. Ordersheet'!V1078=\"\",\"\",'1. Ordersheet'!V1078)","v":""},{"$f":"IF('1. Ordersheet'!W1078=\"\",\"\",'1. Ordersheet'!W1078)","v":""},{"$f":"IF('1. Ordersheet'!X1078=\"\",\"\",'1. Ordersheet'!X1078)","v":""},{"$f":"IF('1. Ordersheet'!Y1078=\"\",\"\",'1. Ordersheet'!Y1078)","v":""},{"$f":"IF('1. Ordersheet'!Z1078=\"\",\"\",'1. Ordersheet'!Z1078)","v":""},{"$f":"IF('1. Ordersheet'!AA1078=\"\",\"\",'1. Ordersheet'!AA1078)","v":""},null,{"$f":"IF('1. Ordersheet'!AS1078=\"\",\"\",'1. Ordersheet'!AS1078)","v":""},{"$f":"IF('1. Ordersheet'!AT1078=\"\",\"\",'1. Ordersheet'!AT1078)","v":""},null,null,null,null,null,null,null,{"$f":"IF('1. Ordersheet'!AX1078=\"\",\"\",'1. Ordersheet'!AX1078)","v":""},{"$f":"IF('1. Ordersheet'!AY1078=\"\",\"\",'1. Ordersheet'!AY1078)","v":""},{"$f":"IF('1. Ordersheet'!AZ1078=\"\",\"\",'1. Ordersheet'!AZ1078)","v":""},{"$f":"IF('1. Ordersheet'!BA1078=\"\",\"\",'1. Ordersheet'!BA1078)","v":""},{"$f":"IF('1. Ordersheet'!BC1078=\"\",\"\",'1. Ordersheet'!BC1078)","v":""},{"$f":"IF('1. Ordersheet'!BD1078=\"\",\"\",'1. Ordersheet'!BD1078)","v":""},{"$f":"IF('1. Ordersheet'!BE1078=\"\",\"\",'1. Ordersheet'!BE1078)","v":""},{"$f":"IF('1. Ordersheet'!BF1078=\"\",\"\",'1. Ordersheet'!BF1078)","v":""},{"$f":"IF('1. Ordersheet'!BG1078=\"\",\"\",'1. Ordersheet'!BG1078)","v":"ZWO"},{"$f":"IF('1. Ordersheet'!BH1078=\"\",\"\",'1. Ordersheet'!BH1078)","v":""},{"$f":"IF('1. Ordersheet'!BI1078=\"\",\"\",'1. Ordersheet'!BI1078)","v":""},{"$f":"IF('1. Ordersheet'!BJ1078=\"\",\"\",'1. Ordersheet'!BJ1078)","v":""},{"$f":"IF('1. Ordersheet'!BK1078=\"\",\"\",'1. Ordersheet'!BK1078)","v":""},{"$f":"IF('1. Ordersheet'!BL1078=\"\",\"\",'1. Ordersheet'!BL1078)","v":""}]
[{"$f":"IF('1. Ordersheet'!F1079=\"\",\"\",'1. Ordersheet'!F1079)","v":""},{"$f":"IF('1. Ordersheet'!G1079=\"\",\"\",'1. Ordersheet'!G1079)","v":""},{"$f":"IF('1. Ordersheet'!H1079=\"\",\"\",'1. Ordersheet'!H1079)","v":""},{"$f":"IF('1. Ordersheet'!I1079=\"\",\"\",'1. Ordersheet'!I1079)","v":""},{"$f":"IF('1. Ordersheet'!J1079=\"\",\"\",'1. Ordersheet'!J1079)","v":""},{"$f":"IF('1. Ordersheet'!K1079=\"\",\"\",'1. Ordersheet'!K1079)","v":""},{"$f":"IF('1. Ordersheet'!L1079=\"\",\"\",'1. Ordersheet'!L1079)","v":""},{"$f":"IF('1. Ordersheet'!M1079=\"\",\"\",'1. Ordersheet'!M1079)","v":""},{"$f":"IF('1. Ordersheet'!N1079=\"\",\"\",'1. Ordersheet'!N1079)","v":""},{"$f":"IF('1. Ordersheet'!O1079=\"\",\"\",'1. Ordersheet'!O1079)","v":{"$error":"#N/A"}},{"$f":"IF('1. Ordersheet'!P1079=\"\",\"\",'1. Ordersheet'!P1079)","v":{"$error":"#N/A"}},{"$f":"IF('1. Ordersheet'!Q1079=\"\",\"\",'1. Ordersheet'!Q1079)","v":""},{"$f":"IF('1. Ordersheet'!R1079=\"\",\"\",'1. Ordersheet'!R1079)","v":""},{"$f":"IF('1. Ordersheet'!S1079=\"\",\"\",'1. Ordersheet'!S1079)","v":""},{"$f":"IF('1. Ordersheet'!V1079=\"\",\"\",'1. Ordersheet'!V1079)","v":""},{"$f":"IF('1. Ordersheet'!W1079=\"\",\"\",'1. Ordersheet'!W1079)","v":""},{"$f":"IF('1. Ordersheet'!X1079=\"\",\"\",'1. Ordersheet'!X1079)","v":""},{"$f":"IF('1. Ordersheet'!Y1079=\"\",\"\",'1. Ordersheet'!Y1079)","v":""},{"$f":"IF('1. Ordersheet'!Z1079=\"\",\"\",'1. Ordersheet'!Z1079)","v":""},{"$f":"IF('1. Ordersheet'!AA1079=\"\",\"\",'1. Ordersheet'!AA1079)","v":""},null,{"$f":"IF('1. Ordersheet'!AS1079=\"\",\"\",'1. Ordersheet'!AS1079)","v":""},{"$f":"IF('1. Ordersheet'!AT1079=\"\",\"\",'1. Ordersheet'!AT1079)","v":""},null,null,null,null,null,null,null,{"$f":"IF('1. Ordersheet'!AX1079=\"\",\"\",'1. Ordersheet'!AX1079)","v":""},{"$f":"IF('1. Ordersheet'!AY1079=\"\",\"\",'1. Ordersheet'!AY1079)","v":""},{"$f":"IF('1. Ordersheet'!AZ1079=\"\",\"\",'1. Ordersheet'!AZ1079)","v":""},{"$f":"IF('1. Ordersheet'!BA1079=\"\",\"\",'1. Ordersheet'!BA1079)","v":""},{"$f":"IF('1. Ordersheet'!BC1079=\"\",\"\",'1. Ordersheet'!BC1079)","v":""},{"$f":"IF('1. Ordersheet'!BD1079=\"\",\"\",'1. Ordersheet'!BD1079)","v":""},{"$f":"IF('1. Ordersheet'!BE1079=\"\",\"\",'1. Ordersheet'!BE1079)","v":""},{"$f":"IF('1. Ordersheet'!BF1079=\"\",\"\",'1. Ordersheet'!BF1079)","v":""},{"$f":"IF('1. Ordersheet'!BG1079=\"\",\"\",'1. Ordersheet'!BG1079)","v":"ZWO"},{"$f":"IF('1. Ordersheet'!BH1079=\"\",\"\",'1. Ordersheet'!BH1079)","v":""},{"$f":"IF('1. Ordersheet'!BI1079=\"\",\"\",'1. Ordersheet'!BI1079)","v":""},{"$f":"IF('1. Ordersheet'!BJ1079=\"\",\"\",'1. Ordersheet'!BJ1079)","v":""},{"$f":"IF('1. Ordersheet'!BK1079=\"\",\"\",'1. Ordersheet'!BK1079)","v":""},{"$f":"IF('1. Ordersheet'!BL1079=\"\",\"\",'1. Ordersheet'!BL1079)","v":""}]
[{"$f":"IF('1. Ordersheet'!F1080=\"\",\"\",'1. Ordersheet'!F1080)","v":""},{"$f":"IF('1. Ordersheet'!G1080=\"\",\"\",'1. Ordersheet'!G1080)","v":""},{"$f":"IF('1. Ordersheet'!H1080=\"\",\"\",'1. Ordersheet'!H1080)","v":""},{"$f":"IF('1. Ordersheet'!I1080=\"\",\"\",'1. Ordersheet'!I1080)","v":""},{"$f":"IF('1. Ordersheet'!J1080=\"\",\"\",'1. Ordersheet'!J1080)","v":""},{"$f":"IF('1. Ordersheet'!K1080=\"\",\"\",'1. Ordersheet'!K1080)","v":""},{"$f":"IF('1. Ordersheet'!L1080=\"\",\"\",'1. Ordersheet'!L1080)","v":""},{"$f":"IF('1. Ordersheet'!M1080=\"\",\"\",'1. Ordersheet'!M1080)","v":""},{"$f":"IF('1. Ordersheet'!N1080=\"\",\"\",'1. Ordersheet'!N1080)","v":""},{"$f":"IF('1. Ordersheet'!O1080=\"\",\"\",'1. Ordersheet'!O1080)","v":{"$error":"#N/A"}},{"$f":"IF('1. Ordersheet'!P1080=\"\",\"\",'1. Ordersheet'!P1080)","v":{"$error":"#N/A"}},{"$f":"IF('1. Ordersheet'!Q1080=\"\",\"\",'1. Ordersheet'!Q1080)","v":""},{"$f":"IF('1. Ordersheet'!R1080=\"\",\"\",'1. Ordersheet'!R1080)","v":""},{"$f":"IF('1. Ordersheet'!S1080=\"\",\"\",'1. Ordersheet'!S1080)","v":""},{"$f":"IF('1. Ordersheet'!V1080=\"\",\"\",'1. Ordersheet'!V1080)","v":""},{"$f":"IF('1. Ordersheet'!W1080=\"\",\"\",'1. Ordersheet'!W1080)","v":""},{"$f":"IF('1. Ordersheet'!X1080=\"\",\"\",'1. Ordersheet'!X1080)","v":""},{"$f":"IF('1. Ordersheet'!Y1080=\"\",\"\",'1. Ordersheet'!Y1080)","v":""},{"$f":"IF('1. Ordersheet'!Z1080=\"\",\"\",'1. Ordersheet'!Z1080)","v":""},{"$f":"IF('1. Ordersheet'!AA1080=\"\",\"\",'1. Ordersheet'!AA1080)","v":""},null,{"$f":"IF('1. Ordersheet'!AS1080=\"\",\"\",'1. Ordersheet'!AS1080)","v":""},{"$f":"IF('1. Ordersheet'!AT1080=\"\",\"\",'1. Ordersheet'!AT1080)","v":""},null,null,null,null,null,null,null,{"$f":"IF('1. Ordersheet'!AX1080=\"\",\"\",'1. Ordersheet'!AX1080)","v":""},{"$f":"IF('1. Ordersheet'!AY1080=\"\",\"\",'1. Ordersheet'!AY1080)","v":""},{"$f":"IF('1. Ordersheet'!AZ1080=\"\",\"\",'1. Ordersheet'!AZ1080)","v":""},{"$f":"IF('1. Ordersheet'!BA1080=\"\",\"\",'1. Ordersheet'!BA1080)","v":""},{"$f":"IF('1. Ordersheet'!BC1080=\"\",\"\",'1. Ordersheet'!BC1080)","v":""},{"$f":"IF('1. Ordersheet'!BD1080=\"\",\"\",'1. Ordersheet'!BD1080)","v":""},{"$f":"IF('1. Ordersheet'!BE1080=\"\",\"\",'1. Ordersheet'!BE1080)","v":""},{"$f":"IF('1. Ordersheet'!BF1080=\"\",\"\",'1. Ordersheet'!BF1080)","v":""},{"$f":"IF('1. Ordersheet'!BG1080=\"\",\"\",'1. Ordersheet'!BG1080)","v":"ZWO"},{"$f":"IF('1. Ordersheet'!BH1080=\"\",\"\",'1. Ordersheet'!BH1080)","v":""},{"$f":"IF('1. Ordersheet'!BI1080=\"\",\"\",'1. Ordersheet'!BI1080)","v":""},{"$f":"IF('1. Ordersheet'!BJ1080=\"\",\"\",'1. Ordersheet'!BJ1080)","v":""},{"$f":"IF('1. Ordersheet'!BK1080=\"\",\"\",'1. Ordersheet'!BK1080)","v":""},{"$f":"IF('1. Ordersheet'!BL1080=\"\",\"\",'1. Ordersheet'!BL1080)","v":""}]
[{"$f":"IF('1. Ordersheet'!F1081=\"\",\"\",'1. Ordersheet'!F1081)","v":""},{"$f":"IF('1. Ordersheet'!G1081=\"\",\"\",'1. Ordersheet'!G1081)","v":""},{"$f":"IF('1. Ordersheet'!H1081=\"\",\"\",'1. Ordersheet'!H1081)","v":""},{"$f":"IF('1. Ordersheet'!I1081=\"\",\"\",'1. Ordersheet'!I1081)","v":""},{"$f":"IF('1. Ordersheet'!J1081=\"\",\"\",'1. Ordersheet'!J1081)","v":""},{"$f":"IF('1. Ordersheet'!K1081=\"\",\"\",'1. Ordersheet'!K1081)","v":""},{"$f":"IF('1. Ordersheet'!L1081=\"\",\"\",'1. Ordersheet'!L1081)","v":""},{"$f":"IF('1. Ordersheet'!M1081=\"\",\"\",'1. Ordersheet'!M1081)","v":""},{"$f":"IF('1. Ordersheet'!N1081=\"\",\"\",'1. Ordersheet'!N1081)","v":""},{"$f":"IF('1. Ordersheet'!O1081=\"\",\"\",'1. Ordersheet'!O1081)","v":{"$error":"#N/A"}},{"$f":"IF('1. Ordersheet'!P1081=\"\",\"\",'1. Ordersheet'!P1081)","v":{"$error":"#N/A"}},{"$f":"IF('1. Ordersheet'!Q1081=\"\",\"\",'1. Ordersheet'!Q1081)","v":""},{"$f":"IF('1. Ordersheet'!R1081=\"\",\"\",'1. Ordersheet'!R1081)","v":""},{"$f":"IF('1. Ordersheet'!S1081=\"\",\"\",'1. Ordersheet'!S1081)","v":""},{"$f":"IF('1. Ordersheet'!V1081=\"\",\"\",'1. Ordersheet'!V1081)","v":""},{"$f":"IF('1. Ordersheet'!W1081=\"\",\"\",'1. Ordersheet'!W1081)","v":""},{"$f":"IF('1. Ordersheet'!X1081=\"\",\"\",'1. Ordersheet'!X1081)","v":""},{"$f":"IF('1. Ordersheet'!Y1081=\"\",\"\",'1. Ordersheet'!Y1081)","v":""},{"$f":"IF('1. Ordersheet'!Z1081=\"\",\"\",'1. Ordersheet'!Z1081)","v":""},{"$f":"IF('1. Ordersheet'!AA1081=\"\",\"\",'1. Ordersheet'!AA1081)","v":""},null,{"$f":"IF('1. Ordersheet'!AS1081=\"\",\"\",'1. Ordersheet'!AS1081)","v":""},{"$f":"IF('1. Ordersheet'!AT1081=\"\",\"\",'1. Ordersheet'!AT1081)","v":""},null,null,null,null,null,null,null,{"$f":"IF('1. Ordersheet'!AX1081=\"\",\"\",'1. Ordersheet'!AX1081)","v":""},{"$f":"IF('1. Ordersheet'!AY1081=\"\",\"\",'1. Ordersheet'!AY1081)","v":""},{"$f":"IF('1. Ordersheet'!AZ1081=\"\",\"\",'1. Ordersheet'!AZ1081)","v":""},{"$f":"IF('1. Ordersheet'!BA1081=\"\",\"\",'1. Ordersheet'!BA1081)","v":""},{"$f":"IF('1. Ordersheet'!BC1081=\"\",\"\",'1. Ordersheet'!BC1081)","v":""},{"$f":"IF('1. Ordersheet'!BD1081=\"\",\"\",'1. Ordersheet'!BD1081)","v":""},{"$f":"IF('1. Ordersheet'!BE1081=\"\",\"\",'1. Ordersheet'!BE1081)","v":""},{"$f":"IF('1. Ordersheet'!BF1081=\"\",\"\",'1. Ordersheet'!BF1081)","v":""},{"$f":"IF('1. Ordersheet'!BG1081=\"\",\"\",'1. Ordersheet'!BG1081)","v":"ZWO"},{"$f":"IF('1. Ordersheet'!BH1081=\"\",\"\",'1. Ordersheet'!BH1081)","v":""},{"$f":"IF('1. Ordersheet'!BI1081=\"\",\"\",'1. Ordersheet'!BI1081)","v":""},{"$f":"IF('1. Ordersheet'!BJ1081=\"\",\"\",'1. Ordersheet'!BJ1081)","v":""},{"$f":"IF('1. Ordersheet'!BK1081=\"\",\"\",'1. Ordersheet'!BK1081)","v":""},{"$f":"IF('1. Ordersheet'!BL1081=\"\",\"\",'1. Ordersheet'!BL1081)","v":""}]
[{"$f":"IF('1. Ordersheet'!F1082=\"\",\"\",'1. Ordersheet'!F1082)","v":""},{"$f":"IF('1. Ordersheet'!G1082=\"\",\"\",'1. Ordersheet'!G1082)","v":""},{"$f":"IF('1. Ordersheet'!H1082=\"\",\"\",'1. Ordersheet'!H1082)","v":""},{"$f":"IF('1. Ordersheet'!I1082=\"\",\"\",'1. Ordersheet'!I1082)","v":""},{"$f":"IF('1. Ordersheet'!J1082=\"\",\"\",'1. Ordersheet'!J1082)","v":""},{"$f":"IF('1. Ordersheet'!K1082=\"\",\"\",'1. Ordersheet'!K1082)","v":""},{"$f":"IF('1. Ordersheet'!L1082=\"\",\"\",'1. Ordersheet'!L1082)","v":""},{"$f":"IF('1. Ordersheet'!M1082=\"\",\"\",'1. Ordersheet'!M1082)","v":""},{"$f":"IF('1. Ordersheet'!N1082=\"\",\"\",'1. Ordersheet'!N1082)","v":""},{"$f":"IF('1. Ordersheet'!O1082=\"\",\"\",'1. Ordersheet'!O1082)","v":{"$error":"#N/A"}},{"$f":"IF('1. Ordersheet'!P1082=\"\",\"\",'1. Ordersheet'!P1082)","v":{"$error":"#N/A"}},{"$f":"IF('1. Ordersheet'!Q1082=\"\",\"\",'1. Ordersheet'!Q1082)","v":""},{"$f":"IF('1. Ordersheet'!R1082=\"\",\"\",'1. Ordersheet'!R1082)","v":""},{"$f":"IF('1. Ordersheet'!S1082=\"\",\"\",'1. Ordersheet'!S1082)","v":""},{"$f":"IF('1. Ordersheet'!V1082=\"\",\"\",'1. Ordersheet'!V1082)","v":""},{"$f":"IF('1. Ordersheet'!W1082=\"\",\"\",'1. Ordersheet'!W1082)","v":""},{"$f":"IF('1. Ordersheet'!X1082=\"\",\"\",'1. Ordersheet'!X1082)","v":""},{"$f":"IF('1. Ordersheet'!Y1082=\"\",\"\",'1. Ordersheet'!Y1082)","v":""},{"$f":"IF('1. Ordersheet'!Z1082=\"\",\"\",'1. Ordersheet'!Z1082)","v":""},{"$f":"IF('1. Ordersheet'!AA1082=\"\",\"\",'1. Ordersheet'!AA1082)","v":""},null,{"$f":"IF('1. Ordersheet'!AS1082=\"\",\"\",'1. Ordersheet'!AS1082)","v":""},{"$f":"IF('1. Ordersheet'!AT1082=\"\",\"\",'1. Ordersheet'!AT1082)","v":""},null,null,null,null,null,null,null,{"$f":"IF('1. Ordersheet'!AX1082=\"\",\"\",'1. Ordersheet'!AX1082)","v":""},{"$f":"IF('1. Ordersheet'!AY1082=\"\",\"\",'1. Ordersheet'!AY1082)","v":""},{"$f":"IF('1. Ordersheet'!AZ1082=\"\",\"\",'1. Ordersheet'!AZ1082)","v":""},{"$f":"IF('1. Ordersheet'!BA1082=\"\",\"\",'1. Ordersheet'!BA1082)","v":""},{"$f":"IF('1. Ordersheet'!BC1082=\"\",\"\",'1. Ordersheet'!BC1082)","v":""},{"$f":"IF('1. Ordersheet'!BD1082=\"\",\"\",'1. Ordersheet'!BD1082)","v":""},{"$f":"IF('1. Ordersheet'!BE1082=\"\",\"\",'1. Ordersheet'!BE1082)","v":""},{"$f":"IF('1. Ordersheet'!BF1082=\"\",\"\",'1. Ordersheet'!BF1082)","v":""},{"$f":"IF('1. Ordersheet'!BG1082=\"\",\"\",'1. Ordersheet'!BG1082)","v":"ZWO"},{"$f":"IF('1. Ordersheet'!BH1082=\"\",\"\",'1. Ordersheet'!BH1082)","v":""},{"$f":"IF('1. Ordersheet'!BI1082=\"\",\"\",'1. Ordersheet'!BI1082)","v":""},{"$f":"IF('1. Ordersheet'!BJ1082=\"\",\"\",'1. Ordersheet'!BJ1082)","v":""},{"$f":"IF('1. Ordersheet'!BK1082=\"\",\"\",'1. Ordersheet'!BK1082)","v":""},{"$f":"IF('1. Ordersheet'!BL1082=\"\",\"\",'1. Ordersheet'!BL1082)","v":""}]
[{"$f":"IF('1. Ordersheet'!F1083=\"\",\"\",'1. Ordersheet'!F1083)","v":""},{"$f":"IF('1. Ordersheet'!G1083=\"\",\"\",'1. Ordersheet'!G1083)","v":""},{"$f":"IF('1. Ordersheet'!H1083=\"\",\"\",'1. Ordersheet'!H1083)","v":""},{"$f":"IF('1. Ordersheet'!I1083=\"\",\"\",'1. Ordersheet'!I1083)","v":""},{"$f":"IF('1. Ordersheet'!J1083=\"\",\"\",'1. Ordersheet'!J1083)","v":""},{"$f":"IF('1. Ordersheet'!K1083=\"\",\"\",'1. Ordersheet'!K1083)","v":""},{"$f":"IF('1. Ordersheet'!L1083=\"\",\"\",'1. Ordersheet'!L1083)","v":""},{"$f":"IF('1. Ordersheet'!M1083=\"\",\"\",'1. Ordersheet'!M1083)","v":""},{"$f":"IF('1. Ordersheet'!N1083=\"\",\"\",'1. Ordersheet'!N1083)","v":""},{"$f":"IF('1. Ordersheet'!O1083=\"\",\"\",'1. Ordersheet'!O1083)","v":{"$error":"#N/A"}},{"$f":"IF('1. Ordersheet'!P1083=\"\",\"\",'1. Ordersheet'!P1083)","v":{"$error":"#N/A"}},{"$f":"IF('1. Ordersheet'!Q1083=\"\",\"\",'1. Ordersheet'!Q1083)","v":""},{"$f":"IF('1. Ordersheet'!R1083=\"\",\"\",'1. Ordersheet'!R1083)","v":""},{"$f":"IF('1. Ordersheet'!S1083=\"\",\"\",'1. Ordersheet'!S1083)","v":""},{"$f":"IF('1. Ordersheet'!V1083=\"\",\"\",'1. Ordersheet'!V1083)","v":""},{"$f":"IF('1. Ordersheet'!W1083=\"\",\"\",'1. Ordersheet'!W1083)","v":""},{"$f":"IF('1. Ordersheet'!X1083=\"\",\"\",'1. Ordersheet'!X1083)","v":""},{"$f":"IF('1. Ordersheet'!Y1083=\"\",\"\",'1. Ordersheet'!Y1083)","v":""},{"$f":"IF('1. Ordersheet'!Z1083=\"\",\"\",'1. Ordersheet'!Z1083)","v":""},{"$f":"IF('1. Ordersheet'!AA1083=\"\",\"\",'1. Ordersheet'!AA1083)","v":""},null,{"$f":"IF('1. Ordersheet'!AS1083=\"\",\"\",'1. Ordersheet'!AS1083)","v":""},{"$f":"IF('1. Ordersheet'!AT1083=\"\",\"\",'1. Ordersheet'!AT1083)","v":""},null,null,null,null,null,null,null,{"$f":"IF('1. Ordersheet'!AX1083=\"\",\"\",'1. Ordersheet'!AX1083)","v":""},{"$f":"IF('1. Ordersheet'!AY1083=\"\",\"\",'1. Ordersheet'!AY1083)","v":""},{"$f":"IF('1. Ordersheet'!AZ1083=\"\",\"\",'1. Ordersheet'!AZ1083)","v":""},{"$f":"IF('1. Ordersheet'!BA1083=\"\",\"\",'1. Ordersheet'!BA1083)","v":""},{"$f":"IF('1. Ordersheet'!BC1083=\"\",\"\",'1. Ordersheet'!BC1083)","v":""},{"$f":"IF('1. Ordersheet'!BD1083=\"\",\"\",'1. Ordersheet'!BD1083)","v":""},{"$f":"IF('1. Ordersheet'!BE1083=\"\",\"\",'1. Ordersheet'!BE1083)","v":""},{"$f":"IF('1. Ordersheet'!BF1083=\"\",\"\",'1. Ordersheet'!BF1083)","v":""},{"$f":"IF('1. Ordersheet'!BG1083=\"\",\"\",'1. Ordersheet'!BG1083)","v":"ZWO"},{"$f":"IF('1. Ordersheet'!BH1083=\"\",\"\",'1. Ordersheet'!BH1083)","v":""},{"$f":"IF('1. Ordersheet'!BI1083=\"\",\"\",'1. Ordersheet'!BI1083)","v":""},{"$f":"IF('1. Ordersheet'!BJ1083=\"\",\"\",'1. Ordersheet'!BJ1083)","v":""},{"$f":"IF('1. Ordersheet'!BK1083=\"\",\"\",'1. Ordersheet'!BK1083)","v":""},{"$f":"IF('1. Ordersheet'!BL1083=\"\",\"\",'1. Ordersheet'!BL1083)","v":""}]
[{"$f":"IF('1. Ordersheet'!F1084=\"\",\"\",'1. Ordersheet'!F1084)","v":""},{"$f":"IF('1. Ordersheet'!G1084=\"\",\"\",'1. Ordersheet'!G1084)","v":""},{"$f":"IF('1. Ordersheet'!H1084=\"\",\"\",'1. Ordersheet'!H1084)","v":""},{"$f":"IF('1. Ordersheet'!I1084=\"\",\"\",'1. Ordersheet'!I1084)","v":""},{"$f":"IF('1. Ordersheet'!J1084=\"\",\"\",'1. Ordersheet'!J1084)","v":""},{"$f":"IF('1. Ordersheet'!K1084=\"\",\"\",'1. Ordersheet'!K1084)","v":""},{"$f":"IF('1. Ordersheet'!L1084=\"\",\"\",'1. Ordersheet'!L1084)","v":""},{"$f":"IF('1. Ordersheet'!M1084=\"\",\"\",'1. Ordersheet'!M1084)","v":""},{"$f":"IF('1. Ordersheet'!N1084=\"\",\"\",'1. Ordersheet'!N1084)","v":""},{"$f":"IF('1. Ordersheet'!O1084=\"\",\"\",'1. Ordersheet'!O1084)","v":{"$error":"#N/A"}},{"$f":"IF('1. Ordersheet'!P1084=\"\",\"\",'1. Ordersheet'!P1084)","v":{"$error":"#N/A"}},{"$f":"IF('1. Ordersheet'!Q1084=\"\",\"\",'1. Ordersheet'!Q1084)","v":""},{"$f":"IF('1. Ordersheet'!R1084=\"\",\"\",'1. Ordersheet'!R1084)","v":""},{"$f":"IF('1. Ordersheet'!S1084=\"\",\"\",'1. Ordersheet'!S1084)","v":""},{"$f":"IF('1. Ordersheet'!V1084=\"\",\"\",'1. Ordersheet'!V1084)","v":""},{"$f":"IF('1. Ordersheet'!W1084=\"\",\"\",'1. Ordersheet'!W1084)","v":""},{"$f":"IF('1. Ordersheet'!X1084=\"\",\"\",'1. Ordersheet'!X1084)","v":""},{"$f":"IF('1. Ordersheet'!Y1084=\"\",\"\",'1. Ordersheet'!Y1084)","v":""},{"$f":"IF('1. Ordersheet'!Z1084=\"\",\"\",'1. Ordersheet'!Z1084)","v":""},{"$f":"IF('1. Ordersheet'!AA1084=\"\",\"\",'1. Ordersheet'!AA1084)","v":""},null,{"$f":"IF('1. Ordersheet'!AS1084=\"\",\"\",'1. Ordersheet'!AS1084)","v":""},{"$f":"IF('1. Ordersheet'!AT1084=\"\",\"\",'1. Ordersheet'!AT1084)","v":""},null,null,null,null,null,null,null,{"$f":"IF('1. Ordersheet'!AX1084=\"\",\"\",'1. Ordersheet'!AX1084)","v":""},{"$f":"IF('1. Ordersheet'!AY1084=\"\",\"\",'1. Ordersheet'!AY1084)","v":""},{"$f":"IF('1. Ordersheet'!AZ1084=\"\",\"\",'1. Ordersheet'!AZ1084)","v":""},{"$f":"IF('1. Ordersheet'!BA1084=\"\",\"\",'1. Ordersheet'!BA1084)","v":""},{"$f":"IF('1. Ordersheet'!BC1084=\"\",\"\",'1. Ordersheet'!BC1084)","v":""},{"$f":"IF('1. Ordersheet'!BD1084=\"\",\"\",'1. Ordersheet'!BD1084)","v":""},{"$f":"IF('1. Ordersheet'!BE1084=\"\",\"\",'1. Ordersheet'!BE1084)","v":""},{"$f":"IF('1. Ordersheet'!BF1084=\"\",\"\",'1. Ordersheet'!BF1084)","v":""},{"$f":"IF('1. Ordersheet'!BG1084=\"\",\"\",'1. Ordersheet'!BG1084)","v":"ZWO"},{"$f":"IF('1. Ordersheet'!BH1084=\"\",\"\",'1. Ordersheet'!BH1084)","v":""},{"$f":"IF('1. Ordersheet'!BI1084=\"\",\"\",'1. Ordersheet'!BI1084)","v":""},{"$f":"IF('1. Ordersheet'!BJ1084=\"\",\"\",'1. Ordersheet'!BJ1084)","v":""},{"$f":"IF('1. Ordersheet'!BK1084=\"\",\"\",'1. Ordersheet'!BK1084)","v":""},{"$f":"IF('1. Ordersheet'!BL1084=\"\",\"\",'1. Ordersheet'!BL1084)","v":""}]
[{"$f":"IF('1. Ordersheet'!F1085=\"\",\"\",'1. Ordersheet'!F1085)","v":""},{"$f":"IF('1. Ordersheet'!G1085=\"\",\"\",'1. Ordersheet'!G1085)","v":""},{"$f":"IF('1. Ordersheet'!H1085=\"\",\"\",'1. Ordersheet'!H1085)","v":""},{"$f":"IF('1. Ordersheet'!I1085=\"\",\"\",'1. Ordersheet'!I1085)","v":""},{"$f":"IF('1. Ordersheet'!J1085=\"\",\"\",'1. Ordersheet'!J1085)","v":""},{"$f":"IF('1. Ordersheet'!K1085=\"\",\"\",'1. Ordersheet'!K1085)","v":""},{"$f":"IF('1. Ordersheet'!L1085=\"\",\"\",'1. Ordersheet'!L1085)","v":""},{"$f":"IF('1. Ordersheet'!M1085=\"\",\"\",'1. Ordersheet'!M1085)","v":""},{"$f":"IF('1. Ordersheet'!N1085=\"\",\"\",'1. Ordersheet'!N1085)","v":""},{"$f":"IF('1. Ordersheet'!O1085=\"\",\"\",'1. Ordersheet'!O1085)","v":{"$error":"#N/A"}},{"$f":"IF('1. Ordersheet'!P1085=\"\",\"\",'1. Ordersheet'!P1085)","v":{"$error":"#N/A"}},{"$f":"IF('1. Ordersheet'!Q1085=\"\",\"\",'1. Ordersheet'!Q1085)","v":""},{"$f":"IF('1. Ordersheet'!R1085=\"\",\"\",'1. Ordersheet'!R1085)","v":""},{"$f":"IF('1. Ordersheet'!S1085=\"\",\"\",'1. Ordersheet'!S1085)","v":""},{"$f":"IF('1. Ordersheet'!V1085=\"\",\"\",'1. Ordersheet'!V1085)","v":""},{"$f":"IF('1. Ordersheet'!W1085=\"\",\"\",'1. Ordersheet'!W1085)","v":""},{"$f":"IF('1. Ordersheet'!X1085=\"\",\"\",'1. Ordersheet'!X1085)","v":""},{"$f":"IF('1. Ordersheet'!Y1085=\"\",\"\",'1. Ordersheet'!Y1085)","v":""},{"$f":"IF('1. Ordersheet'!Z1085=\"\",\"\",'1. Ordersheet'!Z1085)","v":""},{"$f":"IF('1. Ordersheet'!AA1085=\"\",\"\",'1. Ordersheet'!AA1085)","v":""},null,{"$f":"IF('1. Ordersheet'!AS1085=\"\",\"\",'1. Ordersheet'!AS1085)","v":""},{"$f":"IF('1. Ordersheet'!AT1085=\"\",\"\",'1. Ordersheet'!AT1085)","v":""},null,null,null,null,null,null,null,{"$f":"IF('1. Ordersheet'!AX1085=\"\",\"\",'1. Ordersheet'!AX1085)","v":""},{"$f":"IF('1. Ordersheet'!AY1085=\"\",\"\",'1. Ordersheet'!AY1085)","v":""},{"$f":"IF('1. Ordersheet'!AZ1085=\"\",\"\",'1. Ordersheet'!AZ1085)","v":""},{"$f":"IF('1. Ordersheet'!BA1085=\"\",\"\",'1. Ordersheet'!BA1085)","v":""},{"$f":"IF('1. Ordersheet'!BC1085=\"\",\"\",'1. Ordersheet'!BC1085)","v":""},{"$f":"IF('1. Ordersheet'!BD1085=\"\",\"\",'1. Ordersheet'!BD1085)","v":""},{"$f":"IF('1. Ordersheet'!BE1085=\"\",\"\",'1. Ordersheet'!BE1085)","v":""},{"$f":"IF('1. Ordersheet'!BF1085=\"\",\"\",'1. Ordersheet'!BF1085)","v":""},{"$f":"IF('1. Ordersheet'!BG1085=\"\",\"\",'1. Ordersheet'!BG1085)","v":"ZWO"},{"$f":"IF('1. Ordersheet'!BH1085=\"\",\"\",'1. Ordersheet'!BH1085)","v":""},{"$f":"IF('1. Ordersheet'!BI1085=\"\",\"\",'1. Ordersheet'!BI1085)","v":""},{"$f":"IF('1. Ordersheet'!BJ1085=\"\",\"\",'1. Ordersheet'!BJ1085)","v":""},{"$f":"IF('1. Ordersheet'!BK1085=\"\",\"\",'1. Ordersheet'!BK1085)","v":""},{"$f":"IF('1. Ordersheet'!BL1085=\"\",\"\",'1. Ordersheet'!BL1085)","v":""}]
[{"$f":"IF('1. Ordersheet'!F1086=\"\",\"\",'1. Ordersheet'!F1086)","v":""},{"$f":"IF('1. Ordersheet'!G1086=\"\",\"\",'1. Ordersheet'!G1086)","v":""},{"$f":"IF('1. Ordersheet'!H1086=\"\",\"\",'1. Ordersheet'!H1086)","v":""},{"$f":"IF('1. Ordersheet'!I1086=\"\",\"\",'1. Ordersheet'!I1086)","v":""},{"$f":"IF('1. Ordersheet'!J1086=\"\",\"\",'1. Ordersheet'!J1086)","v":""},{"$f":"IF('1. Ordersheet'!K1086=\"\",\"\",'1. Ordersheet'!K1086)","v":""},{"$f":"IF('1. Ordersheet'!L1086=\"\",\"\",'1. Ordersheet'!L1086)","v":""},{"$f":"IF('1. Ordersheet'!M1086=\"\",\"\",'1. Ordersheet'!M1086)","v":""},{"$f":"IF('1. Ordersheet'!N1086=\"\",\"\",'1. Ordersheet'!N1086)","v":""},{"$f":"IF('1. Ordersheet'!O1086=\"\",\"\",'1. Ordersheet'!O1086)","v":{"$error":"#N/A"}},{"$f":"IF('1. Ordersheet'!P1086=\"\",\"\",'1. Ordersheet'!P1086)","v":{"$error":"#N/A"}},{"$f":"IF('1. Ordersheet'!Q1086=\"\",\"\",'1. Ordersheet'!Q1086)","v":""},{"$f":"IF('1. Ordersheet'!R1086=\"\",\"\",'1. Ordersheet'!R1086)","v":""},{"$f":"IF('1. Ordersheet'!S1086=\"\",\"\",'1. Ordersheet'!S1086)","v":""},{"$f":"IF('1. Ordersheet'!V1086=\"\",\"\",'1. Ordersheet'!V1086)","v":""},{"$f":"IF('1. Ordersheet'!W1086=\"\",\"\",'1. Ordersheet'!W1086)","v":""},{"$f":"IF('1. Ordersheet'!X1086=\"\",\"\",'1. Ordersheet'!X1086)","v":""},{"$f":"IF('1. Ordersheet'!Y1086=\"\",\"\",'1. Ordersheet'!Y1086)","v":""},{"$f":"IF('1. Ordersheet'!Z1086=\"\",\"\",'1. Ordersheet'!Z1086)","v":""},{"$f":"IF('1. Ordersheet'!AA1086=\"\",\"\",'1. Ordersheet'!AA1086)","v":""},null,{"$f":"IF('1. Ordersheet'!AS1086=\"\",\"\",'1. Ordersheet'!AS1086)","v":""},{"$f":"IF('1. Ordersheet'!AT1086=\"\",\"\",'1. Ordersheet'!AT1086)","v":""},null,null,null,null,null,null,null,{"$f":"IF('1. Ordersheet'!AX1086=\"\",\"\",'1. Ordersheet'!AX1086)","v":""},{"$f":"IF('1. Ordersheet'!AY1086=\"\",\"\",'1. Ordersheet'!AY1086)","v":""},{"$f":"IF('1. Ordersheet'!AZ1086=\"\",\"\",'1. Ordersheet'!AZ1086)","v":""},{"$f":"IF('1. Ordersheet'!BA1086=\"\",\"\",'1. Ordersheet'!BA1086)","v":""},{"$f":"IF('1. Ordersheet'!BC1086=\"\",\"\",'1. Ordersheet'!BC1086)","v":""},{"$f":"IF('1. Ordersheet'!BD1086=\"\",\"\",'1. Ordersheet'!BD1086)","v":""},{"$f":"IF('1. Ordersheet'!BE1086=\"\",\"\",'1. Ordersheet'!BE1086)","v":""},{"$f":"IF('1. Ordersheet'!BF1086=\"\",\"\",'1. Ordersheet'!BF1086)","v":""},{"$f":"IF('1. Ordersheet'!BG1086=\"\",\"\",'1. Ordersheet'!BG1086)","v":"ZWO"},{"$f":"IF('1. Ordersheet'!BH1086=\"\",\"\",'1. Ordersheet'!BH1086)","v":""},{"$f":"IF('1. Ordersheet'!BI1086=\"\",\"\",'1. Ordersheet'!BI1086)","v":""},{"$f":"IF('1. Ordersheet'!BJ1086=\"\",\"\",'1. Ordersheet'!BJ1086)","v":""},{"$f":"IF('1. Ordersheet'!BK1086=\"\",\"\",'1. Ordersheet'!BK1086)","v":""},{"$f":"IF('1. Ordersheet'!BL1086=\"\",\"\",'1. Ordersheet'!BL1086)","v":""}]
[{"$f":"IF('1. Ordersheet'!F1087=\"\",\"\",'1. Ordersheet'!F1087)","v":""},{"$f":"IF('1. Ordersheet'!G1087=\"\",\"\",'1. Ordersheet'!G1087)","v":""},{"$f":"IF('1. Ordersheet'!H1087=\"\",\"\",'1. Ordersheet'!H1087)","v":""},{"$f":"IF('1. Ordersheet'!I1087=\"\",\"\",'1. Ordersheet'!I1087)","v":""},{"$f":"IF('1. Ordersheet'!J1087=\"\",\"\",'1. Ordersheet'!J1087)","v":""},{"$f":"IF('1. Ordersheet'!K1087=\"\",\"\",'1. Ordersheet'!K1087)","v":""},{"$f":"IF('1. Ordersheet'!L1087=\"\",\"\",'1. Ordersheet'!L1087)","v":""},{"$f":"IF('1. Ordersheet'!M1087=\"\",\"\",'1. Ordersheet'!M1087)","v":""},{"$f":"IF('1. Ordersheet'!N1087=\"\",\"\",'1. Ordersheet'!N1087)","v":""},{"$f":"IF('1. Ordersheet'!O1087=\"\",\"\",'1. Ordersheet'!O1087)","v":{"$error":"#N/A"}},{"$f":"IF('1. Ordersheet'!P1087=\"\",\"\",'1. Ordersheet'!P1087)","v":{"$error":"#N/A"}},{"$f":"IF('1. Ordersheet'!Q1087=\"\",\"\",'1. Ordersheet'!Q1087)","v":""},{"$f":"IF('1. Ordersheet'!R1087=\"\",\"\",'1. Ordersheet'!R1087)","v":""},{"$f":"IF('1. Ordersheet'!S1087=\"\",\"\",'1. Ordersheet'!S1087)","v":""},{"$f":"IF('1. Ordersheet'!V1087=\"\",\"\",'1. Ordersheet'!V1087)","v":""},{"$f":"IF('1. Ordersheet'!W1087=\"\",\"\",'1. Ordersheet'!W1087)","v":""},{"$f":"IF('1. Ordersheet'!X1087=\"\",\"\",'1. Ordersheet'!X1087)","v":""},{"$f":"IF('1. Ordersheet'!Y1087=\"\",\"\",'1. Ordersheet'!Y1087)","v":""},{"$f":"IF('1. Ordersheet'!Z1087=\"\",\"\",'1. Ordersheet'!Z1087)","v":""},{"$f":"IF('1. Ordersheet'!AA1087=\"\",\"\",'1. Ordersheet'!AA1087)","v":""},null,{"$f":"IF('1. Ordersheet'!AS1087=\"\",\"\",'1. Ordersheet'!AS1087)","v":""},{"$f":"IF('1. Ordersheet'!AT1087=\"\",\"\",'1. Ordersheet'!AT1087)","v":""},null,null,null,null,null,null,null,{"$f":"IF('1. Ordersheet'!AX1087=\"\",\"\",'1. Ordersheet'!AX1087)","v":""},{"$f":"IF('1. Ordersheet'!AY1087=\"\",\"\",'1. Ordersheet'!AY1087)","v":""},{"$f":"IF('1. Ordersheet'!AZ1087=\"\",\"\",'1. Ordersheet'!AZ1087)","v":""},{"$f":"IF('1. Ordersheet'!BA1087=\"\",\"\",'1. Ordersheet'!BA1087)","v":""},{"$f":"IF('1. Ordersheet'!BC1087=\"\",\"\",'1. Ordersheet'!BC1087)","v":""},{"$f":"IF('1. Ordersheet'!BD1087=\"\",\"\",'1. Ordersheet'!BD1087)","v":""},{"$f":"IF('1. Ordersheet'!BE1087=\"\",\"\",'1. Ordersheet'!BE1087)","v":""},{"$f":"IF('1. Ordersheet'!BF1087=\"\",\"\",'1. Ordersheet'!BF1087)","v":""},{"$f":"IF('1. Ordersheet'!BG1087=\"\",\"\",'1. Ordersheet'!BG1087)","v":"ZWO"},{"$f":"IF('1. Ordersheet'!BH1087=\"\",\"\",'1. Ordersheet'!BH1087)","v":""},{"$f":"IF('1. Ordersheet'!BI1087=\"\",\"\",'1. Ordersheet'!BI1087)","v":""},{"$f":"IF('1. Ordersheet'!BJ1087=\"\",\"\",'1. Ordersheet'!BJ1087)","v":""},{"$f":"IF('1. Ordersheet'!BK1087=\"\",\"\",'1. Ordersheet'!BK1087)","v":""},{"$f":"IF('1. Ordersheet'!BL1087=\"\",\"\",'1. Ordersheet'!BL1087)","v":""}]
[{"$f":"IF('1. Ordersheet'!F1088=\"\",\"\",'1. Ordersheet'!F1088)","v":""},{"$f":"IF('1. Ordersheet'!G1088=\"\",\"\",'1. Ordersheet'!G1088)","v":""},{"$f":"IF('1. Ordersheet'!H1088=\"\",\"\",'1. Ordersheet'!H1088)","v":""},{"$f":"IF('1. Ordersheet'!I1088=\"\",\"\",'1. Ordersheet'!I1088)","v":""},{"$f":"IF('1. Ordersheet'!J1088=\"\",\"\",'1. Ordersheet'!J1088)","v":""},{"$f":"IF('1. Ordersheet'!K1088=\"\",\"\",'1. Ordersheet'!K1088)","v":""},{"$f":"IF('1. Ordersheet'!L1088=\"\",\"\",'1. Ordersheet'!L1088)","v":""},{"$f":"IF('1. Ordersheet'!M1088=\"\",\"\",'1. Ordersheet'!M1088)","v":""},{"$f":"IF('1. Ordersheet'!N1088=\"\",\"\",'1. Ordersheet'!N1088)","v":""},{"$f":"IF('1. Ordersheet'!O1088=\"\",\"\",'1. Ordersheet'!O1088)","v":{"$error":"#N/A"}},{"$f":"IF('1. Ordersheet'!P1088=\"\",\"\",'1. Ordersheet'!P1088)","v":{"$error":"#N/A"}},{"$f":"IF('1. Ordersheet'!Q1088=\"\",\"\",'1. Ordersheet'!Q1088)","v":""},{"$f":"IF('1. Ordersheet'!R1088=\"\",\"\",'1. Ordersheet'!R1088)","v":""},{"$f":"IF('1. Ordersheet'!S1088=\"\",\"\",'1. Ordersheet'!S1088)","v":""},{"$f":"IF('1. Ordersheet'!V1088=\"\",\"\",'1. Ordersheet'!V1088)","v":""},{"$f":"IF('1. Ordersheet'!W1088=\"\",\"\",'1. Ordersheet'!W1088)","v":""},{"$f":"IF('1. Ordersheet'!X1088=\"\",\"\",'1. Ordersheet'!X1088)","v":""},{"$f":"IF('1. Ordersheet'!Y1088=\"\",\"\",'1. Ordersheet'!Y1088)","v":""},{"$f":"IF('1. Ordersheet'!Z1088=\"\",\"\",'1. Ordersheet'!Z1088)","v":""},{"$f":"IF('1. Ordersheet'!AA1088=\"\",\"\",'1. Ordersheet'!AA1088)","v":""},null,{"$f":"IF('1. Ordersheet'!AS1088=\"\",\"\",'1. Ordersheet'!AS1088)","v":""},{"$f":"IF('1. Ordersheet'!AT1088=\"\",\"\",'1. Ordersheet'!AT1088)","v":""},null,null,null,null,null,null,null,{"$f":"IF('1. Ordersheet'!AX1088=\"\",\"\",'1. Ordersheet'!AX1088)","v":""},{"$f":"IF('1. Ordersheet'!AY1088=\"\",\"\",'1. Ordersheet'!AY1088)","v":""},{"$f":"IF('1. Ordersheet'!AZ1088=\"\",\"\",'1. Ordersheet'!AZ1088)","v":""},{"$f":"IF('1. Ordersheet'!BA1088=\"\",\"\",'1. Ordersheet'!BA1088)","v":""},{"$f":"IF('1. Ordersheet'!BC1088=\"\",\"\",'1. Ordersheet'!BC1088)","v":""},{"$f":"IF('1. Ordersheet'!BD1088=\"\",\"\",'1. Ordersheet'!BD1088)","v":""},{"$f":"IF('1. Ordersheet'!BE1088=\"\",\"\",'1. Ordersheet'!BE1088)","v":""},{"$f":"IF('1. Ordersheet'!BF1088=\"\",\"\",'1. Ordersheet'!BF1088)","v":""},{"$f":"IF('1. Ordersheet'!BG1088=\"\",\"\",'1. Ordersheet'!BG1088)","v":"ZWO"},{"$f":"IF('1. Ordersheet'!BH1088=\"\",\"\",'1. Ordersheet'!BH1088)","v":""},{"$f":"IF('1. Ordersheet'!BI1088=\"\",\"\",'1. Ordersheet'!BI1088)","v":""},{"$f":"IF('1. Ordersheet'!BJ1088=\"\",\"\",'1. Ordersheet'!BJ1088)","v":""},{"$f":"IF('1. Ordersheet'!BK1088=\"\",\"\",'1. Ordersheet'!BK1088)","v":""},{"$f":"IF('1. Ordersheet'!BL1088=\"\",\"\",'1. Ordersheet'!BL1088)","v":""}]
[{"$f":"IF('1. Ordersheet'!F1089=\"\",\"\",'1. Ordersheet'!F1089)","v":""},{"$f":"IF('1. Ordersheet'!G1089=\"\",\"\",'1. Ordersheet'!G1089)","v":""},{"$f":"IF('1. Ordersheet'!H1089=\"\",\"\",'1. Ordersheet'!H1089)","v":""},{"$f":"IF('1. Ordersheet'!I1089=\"\",\"\",'1. Ordersheet'!I1089)","v":""},{"$f":"IF('1. Ordersheet'!J1089=\"\",\"\",'1. Ordersheet'!J1089)","v":""},{"$f":"IF('1. Ordersheet'!K1089=\"\",\"\",'1. Ordersheet'!K1089)","v":""},{"$f":"IF('1. Ordersheet'!L1089=\"\",\"\",'1. Ordersheet'!L1089)","v":""},{"$f":"IF('1. Ordersheet'!M1089=\"\",\"\",'1. Ordersheet'!M1089)","v":""},{"$f":"IF('1. Ordersheet'!N1089=\"\",\"\",'1. Ordersheet'!N1089)","v":""},{"$f":"IF('1. Ordersheet'!O1089=\"\",\"\",'1. Ordersheet'!O1089)","v":{"$error":"#N/A"}},{"$f":"IF('1. Ordersheet'!P1089=\"\",\"\",'1. Ordersheet'!P1089)","v":{"$error":"#N/A"}},{"$f":"IF('1. Ordersheet'!Q1089=\"\",\"\",'1. Ordersheet'!Q1089)","v":""},{"$f":"IF('1. Ordersheet'!R1089=\"\",\"\",'1. Ordersheet'!R1089)","v":""},{"$f":"IF('1. Ordersheet'!S1089=\"\",\"\",'1. Ordersheet'!S1089)","v":""},{"$f":"IF('1. Ordersheet'!V1089=\"\",\"\",'1. Ordersheet'!V1089)","v":""},{"$f":"IF('1. Ordersheet'!W1089=\"\",\"\",'1. Ordersheet'!W1089)","v":""},{"$f":"IF('1. Ordersheet'!X1089=\"\",\"\",'1. Ordersheet'!X1089)","v":""},{"$f":"IF('1. Ordersheet'!Y1089=\"\",\"\",'1. Ordersheet'!Y1089)","v":""},{"$f":"IF('1. Ordersheet'!Z1089=\"\",\"\",'1. Ordersheet'!Z1089)","v":""},{"$f":"IF('1. Ordersheet'!AA1089=\"\",\"\",'1. Ordersheet'!AA1089)","v":""},null,{"$f":"IF('1. Ordersheet'!AS1089=\"\",\"\",'1. Ordersheet'!AS1089)","v":""},{"$f":"IF('1. Ordersheet'!AT1089=\"\",\"\",'1. Ordersheet'!AT1089)","v":""},null,null,null,null,null,null,null,{"$f":"IF('1. Ordersheet'!AX1089=\"\",\"\",'1. Ordersheet'!AX1089)","v":""},{"$f":"IF('1. Ordersheet'!AY1089=\"\",\"\",'1. Ordersheet'!AY1089)","v":""},{"$f":"IF('1. Ordersheet'!AZ1089=\"\",\"\",'1. Ordersheet'!AZ1089)","v":""},{"$f":"IF('1. Ordersheet'!BA1089=\"\",\"\",'1. Ordersheet'!BA1089)","v":""},{"$f":"IF('1. Ordersheet'!BC1089=\"\",\"\",'1. Ordersheet'!BC1089)","v":""},{"$f":"IF('1. Ordersheet'!BD1089=\"\",\"\",'1. Ordersheet'!BD1089)","v":""},{"$f":"IF('1. Ordersheet'!BE1089=\"\",\"\",'1. Ordersheet'!BE1089)","v":""},{"$f":"IF('1. Ordersheet'!BF1089=\"\",\"\",'1. Ordersheet'!BF1089)","v":""},{"$f":"IF('1. Ordersheet'!BG1089=\"\",\"\",'1. Ordersheet'!BG1089)","v":"ZWO"},{"$f":"IF('1. Ordersheet'!BH1089=\"\",\"\",'1. Ordersheet'!BH1089)","v":""},{"$f":"IF('1. Ordersheet'!BI1089=\"\",\"\",'1. Ordersheet'!BI1089)","v":""},{"$f":"IF('1. Ordersheet'!BJ1089=\"\",\"\",'1. Ordersheet'!BJ1089)","v":""},{"$f":"IF('1. Ordersheet'!BK1089=\"\",\"\",'1. Ordersheet'!BK1089)","v":""},{"$f":"IF('1. Ordersheet'!BL1089=\"\",\"\",'1. Ordersheet'!BL1089)","v":""}]
[{"$f":"IF('1. Ordersheet'!F1090=\"\",\"\",'1. Ordersheet'!F1090)","v":""},{"$f":"IF('1. Ordersheet'!G1090=\"\",\"\",'1. Ordersheet'!G1090)","v":""},{"$f":"IF('1. Ordersheet'!H1090=\"\",\"\",'1. Ordersheet'!H1090)","v":""},{"$f":"IF('1. Ordersheet'!I1090=\"\",\"\",'1. Ordersheet'!I1090)","v":""},{"$f":"IF('1. Ordersheet'!J1090=\"\",\"\",'1. Ordersheet'!J1090)","v":""},{"$f":"IF('1. Ordersheet'!K1090=\"\",\"\",'1. Ordersheet'!K1090)","v":""},{"$f":"IF('1. Ordersheet'!L1090=\"\",\"\",'1. Ordersheet'!L1090)","v":""},{"$f":"IF('1. Ordersheet'!M1090=\"\",\"\",'1. Ordersheet'!M1090)","v":""},{"$f":"IF('1. Ordersheet'!N1090=\"\",\"\",'1. Ordersheet'!N1090)","v":""},{"$f":"IF('1. Ordersheet'!O1090=\"\",\"\",'1. Ordersheet'!O1090)","v":{"$error":"#N/A"}},{"$f":"IF('1. Ordersheet'!P1090=\"\",\"\",'1. Ordersheet'!P1090)","v":{"$error":"#N/A"}},{"$f":"IF('1. Ordersheet'!Q1090=\"\",\"\",'1. Ordersheet'!Q1090)","v":""},{"$f":"IF('1. Ordersheet'!R1090=\"\",\"\",'1. Ordersheet'!R1090)","v":""},{"$f":"IF('1. Ordersheet'!S1090=\"\",\"\",'1. Ordersheet'!S1090)","v":""},{"$f":"IF('1. Ordersheet'!V1090=\"\",\"\",'1. Ordersheet'!V1090)","v":""},{"$f":"IF('1. Ordersheet'!W1090=\"\",\"\",'1. Ordersheet'!W1090)","v":""},{"$f":"IF('1. Ordersheet'!X1090=\"\",\"\",'1. Ordersheet'!X1090)","v":""},{"$f":"IF('1. Ordersheet'!Y1090=\"\",\"\",'1. Ordersheet'!Y1090)","v":""},{"$f":"IF('1. Ordersheet'!Z1090=\"\",\"\",'1. Ordersheet'!Z1090)","v":""},{"$f":"IF('1. Ordersheet'!AA1090=\"\",\"\",'1. Ordersheet'!AA1090)","v":""},null,{"$f":"IF('1. Ordersheet'!AS1090=\"\",\"\",'1. Ordersheet'!AS1090)","v":""},{"$f":"IF('1. Ordersheet'!AT1090=\"\",\"\",'1. Ordersheet'!AT1090)","v":""},null,null,null,null,null,null,null,{"$f":"IF('1. Ordersheet'!AX1090=\"\",\"\",'1. Ordersheet'!AX1090)","v":""},{"$f":"IF('1. Ordersheet'!AY1090=\"\",\"\",'1. Ordersheet'!AY1090)","v":""},{"$f":"IF('1. Ordersheet'!AZ1090=\"\",\"\",'1. Ordersheet'!AZ1090)","v":""},{"$f":"IF('1. Ordersheet'!BA1090=\"\",\"\",'1. Ordersheet'!BA1090)","v":""},{"$f":"IF('1. Ordersheet'!BC1090=\"\",\"\",'1. Ordersheet'!BC1090)","v":""},{"$f":"IF('1. Ordersheet'!BD1090=\"\",\"\",'1. Ordersheet'!BD1090)","v":""},{"$f":"IF('1. Ordersheet'!BE1090=\"\",\"\",'1. Ordersheet'!BE1090)","v":""},{"$f":"IF('1. Ordersheet'!BF1090=\"\",\"\",'1. Ordersheet'!BF1090)","v":""},{"$f":"IF('1. Ordersheet'!BG1090=\"\",\"\",'1. Ordersheet'!BG1090)","v":"ZWO"},{"$f":"IF('1. Ordersheet'!BH1090=\"\",\"\",'1. Ordersheet'!BH1090)","v":""},{"$f":"IF('1. Ordersheet'!BI1090=\"\",\"\",'1. Ordersheet'!BI1090)","v":""},{"$f":"IF('1. Ordersheet'!BJ1090=\"\",\"\",'1. Ordersheet'!BJ1090)","v":""},{"$f":"IF('1. Ordersheet'!BK1090=\"\",\"\",'1. Ordersheet'!BK1090)","v":""},{"$f":"IF('1. Ordersheet'!BL1090=\"\",\"\",'1. Ordersheet'!BL1090)","v":""}]
[{"$f":"IF('1. Ordersheet'!F1091=\"\",\"\",'1. Ordersheet'!F1091)","v":""},{"$f":"IF('1. Ordersheet'!G1091=\"\",\"\",'1. Ordersheet'!G1091)","v":""},{"$f":"IF('1. Ordersheet'!H1091=\"\",\"\",'1. Ordersheet'!H1091)","v":""},{"$f":"IF('1. Ordersheet'!I1091=\"\",\"\",'1. Ordersheet'!I1091)","v":""},{"$f":"IF('1. Ordersheet'!J1091=\"\",\"\",'1. Ordersheet'!J1091)","v":""},{"$f":"IF('1. Ordersheet'!K1091=\"\",\"\",'1. Ordersheet'!K1091)","v":""},{"$f":"IF('1. Ordersheet'!L1091=\"\",\"\",'1. Ordersheet'!L1091)","v":""},{"$f":"IF('1. Ordersheet'!M1091=\"\",\"\",'1. Ordersheet'!M1091)","v":""},{"$f":"IF('1. Ordersheet'!N1091=\"\",\"\",'1. Ordersheet'!N1091)","v":""},{"$f":"IF('1. Ordersheet'!O1091=\"\",\"\",'1. Ordersheet'!O1091)","v":{"$error":"#N/A"}},{"$f":"IF('1. Ordersheet'!P1091=\"\",\"\",'1. Ordersheet'!P1091)","v":{"$error":"#N/A"}},{"$f":"IF('1. Ordersheet'!Q1091=\"\",\"\",'1. Ordersheet'!Q1091)","v":""},{"$f":"IF('1. Ordersheet'!R1091=\"\",\"\",'1. Ordersheet'!R1091)","v":""},{"$f":"IF('1. Ordersheet'!S1091=\"\",\"\",'1. Ordersheet'!S1091)","v":""},{"$f":"IF('1. Ordersheet'!V1091=\"\",\"\",'1. Ordersheet'!V1091)","v":""},{"$f":"IF('1. Ordersheet'!W1091=\"\",\"\",'1. Ordersheet'!W1091)","v":""},{"$f":"IF('1. Ordersheet'!X1091=\"\",\"\",'1. Ordersheet'!X1091)","v":""},{"$f":"IF('1. Ordersheet'!Y1091=\"\",\"\",'1. Ordersheet'!Y1091)","v":""},{"$f":"IF('1. Ordersheet'!Z1091=\"\",\"\",'1. Ordersheet'!Z1091)","v":""},{"$f":"IF('1. Ordersheet'!AA1091=\"\",\"\",'1. Ordersheet'!AA1091)","v":""},null,{"$f":"IF('1. Ordersheet'!AS1091=\"\",\"\",'1. Ordersheet'!AS1091)","v":""},{"$f":"IF('1. Ordersheet'!AT1091=\"\",\"\",'1. Ordersheet'!AT1091)","v":""},null,null,null,null,null,null,null,{"$f":"IF('1. Ordersheet'!AX1091=\"\",\"\",'1. Ordersheet'!AX1091)","v":""},{"$f":"IF('1. Ordersheet'!AY1091=\"\",\"\",'1. Ordersheet'!AY1091)","v":""},{"$f":"IF('1. Ordersheet'!AZ1091=\"\",\"\",'1. Ordersheet'!AZ1091)","v":""},{"$f":"IF('1. Ordersheet'!BA1091=\"\",\"\",'1. Ordersheet'!BA1091)","v":""},{"$f":"IF('1. Ordersheet'!BC1091=\"\",\"\",'1. Ordersheet'!BC1091)","v":""},{"$f":"IF('1. Ordersheet'!BD1091=\"\",\"\",'1. Ordersheet'!BD1091)","v":""},{"$f":"IF('1. Ordersheet'!BE1091=\"\",\"\",'1. Ordersheet'!BE1091)","v":""},{"$f":"IF('1. Ordersheet'!BF1091=\"\",\"\",'1. Ordersheet'!BF1091)","v":""},{"$f":"IF('1. Ordersheet'!BG1091=\"\",\"\",'1. Ordersheet'!BG1091)","v":"ZWO"},{"$f":"IF('1. Ordersheet'!BH1091=\"\",\"\",'1. Ordersheet'!BH1091)","v":""},{"$f":"IF('1. Ordersheet'!BI1091=\"\",\"\",'1. Ordersheet'!BI1091)","v":""},{"$f":"IF('1. Ordersheet'!BJ1091=\"\",\"\",'1. Ordersheet'!BJ1091)","v":""},{"$f":"IF('1. Ordersheet'!BK1091=\"\",\"\",'1. Ordersheet'!BK1091)","v":""},{"$f":"IF('1. Ordersheet'!BL1091=\"\",\"\",'1. Ordersheet'!BL1091)","v":""}]
[{"$f":"IF('1. Ordersheet'!F1092=\"\",\"\",'1. Ordersheet'!F1092)","v":""},{"$f":"IF('1. Ordersheet'!G1092=\"\",\"\",'1. Ordersheet'!G1092)","v":""},{"$f":"IF('1. Ordersheet'!H1092=\"\",\"\",'1. Ordersheet'!H1092)","v":""},{"$f":"IF('1. Ordersheet'!I1092=\"\",\"\",'1. Ordersheet'!I1092)","v":""},{"$f":"IF('1. Ordersheet'!J1092=\"\",\"\",'1. Ordersheet'!J1092)","v":""},{"$f":"IF('1. Ordersheet'!K1092=\"\",\"\",'1. Ordersheet'!K1092)","v":""},{"$f":"IF('1. Ordersheet'!L1092=\"\",\"\",'1. Ordersheet'!L1092)","v":""},{"$f":"IF('1. Ordersheet'!M1092=\"\",\"\",'1. Ordersheet'!M1092)","v":""},{"$f":"IF('1. Ordersheet'!N1092=\"\",\"\",'1. Ordersheet'!N1092)","v":""},{"$f":"IF('1. Ordersheet'!O1092=\"\",\"\",'1. Ordersheet'!O1092)","v":{"$error":"#N/A"}},{"$f":"IF('1. Ordersheet'!P1092=\"\",\"\",'1. Ordersheet'!P1092)","v":{"$error":"#N/A"}},{"$f":"IF('1. Ordersheet'!Q1092=\"\",\"\",'1. Ordersheet'!Q1092)","v":""},{"$f":"IF('1. Ordersheet'!R1092=\"\",\"\",'1. Ordersheet'!R1092)","v":""},{"$f":"IF('1. Ordersheet'!S1092=\"\",\"\",'1. Ordersheet'!S1092)","v":""},{"$f":"IF('1. Ordersheet'!V1092=\"\",\"\",'1. Ordersheet'!V1092)","v":""},{"$f":"IF('1. Ordersheet'!W1092=\"\",\"\",'1. Ordersheet'!W1092)","v":""},{"$f":"IF('1. Ordersheet'!X1092=\"\",\"\",'1. Ordersheet'!X1092)","v":""},{"$f":"IF('1. Ordersheet'!Y1092=\"\",\"\",'1. Ordersheet'!Y1092)","v":""},{"$f":"IF('1. Ordersheet'!Z1092=\"\",\"\",'1. Ordersheet'!Z1092)","v":""},{"$f":"IF('1. Ordersheet'!AA1092=\"\",\"\",'1. Ordersheet'!AA1092)","v":""},null,{"$f":"IF('1. Ordersheet'!AS1092=\"\",\"\",'1. Ordersheet'!AS1092)","v":""},{"$f":"IF('1. Ordersheet'!AT1092=\"\",\"\",'1. Ordersheet'!AT1092)","v":""},null,null,null,null,null,null,null,{"$f":"IF('1. Ordersheet'!AX1092=\"\",\"\",'1. Ordersheet'!AX1092)","v":""},{"$f":"IF('1. Ordersheet'!AY1092=\"\",\"\",'1. Ordersheet'!AY1092)","v":""},{"$f":"IF('1. Ordersheet'!AZ1092=\"\",\"\",'1. Ordersheet'!AZ1092)","v":""},{"$f":"IF('1. Ordersheet'!BA1092=\"\",\"\",'1. Ordersheet'!BA1092)","v":""},{"$f":"IF('1. Ordersheet'!BC1092=\"\",\"\",'1. Ordersheet'!BC1092)","v":""},{"$f":"IF('1. Ordersheet'!BD1092=\"\",\"\",'1. Ordersheet'!BD1092)","v":""},{"$f":"IF('1. Ordersheet'!BE1092=\"\",\"\",'1. Ordersheet'!BE1092)","v":""},{"$f":"IF('1. Ordersheet'!BF1092=\"\",\"\",'1. Ordersheet'!BF1092)","v":""},{"$f":"IF('1. Ordersheet'!BG1092=\"\",\"\",'1. Ordersheet'!BG1092)","v":"ZWO"},{"$f":"IF('1. Ordersheet'!BH1092=\"\",\"\",'1. Ordersheet'!BH1092)","v":""},{"$f":"IF('1. Ordersheet'!BI1092=\"\",\"\",'1. Ordersheet'!BI1092)","v":""},{"$f":"IF('1. Ordersheet'!BJ1092=\"\",\"\",'1. Ordersheet'!BJ1092)","v":""},{"$f":"IF('1. Ordersheet'!BK1092=\"\",\"\",'1. Ordersheet'!BK1092)","v":""},{"$f":"IF('1. Ordersheet'!BL1092=\"\",\"\",'1. Ordersheet'!BL1092)","v":""}]
[{"$f":"IF('1. Ordersheet'!F1093=\"\",\"\",'1. Ordersheet'!F1093)","v":""},{"$f":"IF('1. Ordersheet'!G1093=\"\",\"\",'1. Ordersheet'!G1093)","v":""},{"$f":"IF('1. Ordersheet'!H1093=\"\",\"\",'1. Ordersheet'!H1093)","v":""},{"$f":"IF('1. Ordersheet'!I1093=\"\",\"\",'1. Ordersheet'!I1093)","v":""},{"$f":"IF('1. Ordersheet'!J1093=\"\",\"\",'1. Ordersheet'!J1093)","v":""},{"$f":"IF('1. Ordersheet'!K1093=\"\",\"\",'1. Ordersheet'!K1093)","v":""},{"$f":"IF('1. Ordersheet'!L1093=\"\",\"\",'1. Ordersheet'!L1093)","v":""},{"$f":"IF('1. Ordersheet'!M1093=\"\",\"\",'1. Ordersheet'!M1093)","v":""},{"$f":"IF('1. Ordersheet'!N1093=\"\",\"\",'1. Ordersheet'!N1093)","v":""},{"$f":"IF('1. Ordersheet'!O1093=\"\",\"\",'1. Ordersheet'!O1093)","v":{"$error":"#N/A"}},{"$f":"IF('1. Ordersheet'!P1093=\"\",\"\",'1. Ordersheet'!P1093)","v":{"$error":"#N/A"}},{"$f":"IF('1. Ordersheet'!Q1093=\"\",\"\",'1. Ordersheet'!Q1093)","v":""},{"$f":"IF('1. Ordersheet'!R1093=\"\",\"\",'1. Ordersheet'!R1093)","v":""},{"$f":"IF('1. Ordersheet'!S1093=\"\",\"\",'1. Ordersheet'!S1093)","v":""},{"$f":"IF('1. Ordersheet'!V1093=\"\",\"\",'1. Ordersheet'!V1093)","v":""},{"$f":"IF('1. Ordersheet'!W1093=\"\",\"\",'1. Ordersheet'!W1093)","v":""},{"$f":"IF('1. Ordersheet'!X1093=\"\",\"\",'1. Ordersheet'!X1093)","v":""},{"$f":"IF('1. Ordersheet'!Y1093=\"\",\"\",'1. Ordersheet'!Y1093)","v":""},{"$f":"IF('1. Ordersheet'!Z1093=\"\",\"\",'1. Ordersheet'!Z1093)","v":""},{"$f":"IF('1. Ordersheet'!AA1093=\"\",\"\",'1. Ordersheet'!AA1093)","v":""},null,{"$f":"IF('1. Ordersheet'!AS1093=\"\",\"\",'1. Ordersheet'!AS1093)","v":""},{"$f":"IF('1. Ordersheet'!AT1093=\"\",\"\",'1. Ordersheet'!AT1093)","v":""},null,null,null,null,null,null,null,{"$f":"IF('1. Ordersheet'!AX1093=\"\",\"\",'1. Ordersheet'!AX1093)","v":""},{"$f":"IF('1. Ordersheet'!AY1093=\"\",\"\",'1. Ordersheet'!AY1093)","v":""},{"$f":"IF('1. Ordersheet'!AZ1093=\"\",\"\",'1. Ordersheet'!AZ1093)","v":""},{"$f":"IF('1. Ordersheet'!BA1093=\"\",\"\",'1. Ordersheet'!BA1093)","v":""},{"$f":"IF('1. Ordersheet'!BC1093=\"\",\"\",'1. Ordersheet'!BC1093)","v":""},{"$f":"IF('1. Ordersheet'!BD1093=\"\",\"\",'1. Ordersheet'!BD1093)","v":""},{"$f":"IF('1. Ordersheet'!BE1093=\"\",\"\",'1. Ordersheet'!BE1093)","v":""},{"$f":"IF('1. Ordersheet'!BF1093=\"\",\"\",'1. Ordersheet'!BF1093)","v":""},{"$f":"IF('1. Ordersheet'!BG1093=\"\",\"\",'1. Ordersheet'!BG1093)","v":"ZWO"},{"$f":"IF('1. Ordersheet'!BH1093=\"\",\"\",'1. Ordersheet'!BH1093)","v":""},{"$f":"IF('1. Ordersheet'!BI1093=\"\",\"\",'1. Ordersheet'!BI1093)","v":""},{"$f":"IF('1. Ordersheet'!BJ1093=\"\",\"\",'1. Ordersheet'!BJ1093)","v":""},{"$f":"IF('1. Ordersheet'!BK1093=\"\",\"\",'1. Ordersheet'!BK1093)","v":""},{"$f":"IF('1. Ordersheet'!BL1093=\"\",\"\",'1. Ordersheet'!BL1093)","v":""}]
[{"$f":"IF('1. Ordersheet'!F1094=\"\",\"\",'1. Ordersheet'!F1094)","v":""},{"$f":"IF('1. Ordersheet'!G1094=\"\",\"\",'1. Ordersheet'!G1094)","v":""},{"$f":"IF('1. Ordersheet'!H1094=\"\",\"\",'1. Ordersheet'!H1094)","v":""},{"$f":"IF('1. Ordersheet'!I1094=\"\",\"\",'1. Ordersheet'!I1094)","v":""},{"$f":"IF('1. Ordersheet'!J1094=\"\",\"\",'1. Ordersheet'!J1094)","v":""},{"$f":"IF('1. Ordersheet'!K1094=\"\",\"\",'1. Ordersheet'!K1094)","v":""},{"$f":"IF('1. Ordersheet'!L1094=\"\",\"\",'1. Ordersheet'!L1094)","v":""},{"$f":"IF('1. Ordersheet'!M1094=\"\",\"\",'1. Ordersheet'!M1094)","v":""},{"$f":"IF('1. Ordersheet'!N1094=\"\",\"\",'1. Ordersheet'!N1094)","v":""},{"$f":"IF('1. Ordersheet'!O1094=\"\",\"\",'1. Ordersheet'!O1094)","v":{"$error":"#N/A"}},{"$f":"IF('1. Ordersheet'!P1094=\"\",\"\",'1. Ordersheet'!P1094)","v":{"$error":"#N/A"}},{"$f":"IF('1. Ordersheet'!Q1094=\"\",\"\",'1. Ordersheet'!Q1094)","v":""},{"$f":"IF('1. Ordersheet'!R1094=\"\",\"\",'1. Ordersheet'!R1094)","v":""},{"$f":"IF('1. Ordersheet'!S1094=\"\",\"\",'1. Ordersheet'!S1094)","v":""},{"$f":"IF('1. Ordersheet'!V1094=\"\",\"\",'1. Ordersheet'!V1094)","v":""},{"$f":"IF('1. Ordersheet'!W1094=\"\",\"\",'1. Ordersheet'!W1094)","v":""},{"$f":"IF('1. Ordersheet'!X1094=\"\",\"\",'1. Ordersheet'!X1094)","v":""},{"$f":"IF('1. Ordersheet'!Y1094=\"\",\"\",'1. Ordersheet'!Y1094)","v":""},{"$f":"IF('1. Ordersheet'!Z1094=\"\",\"\",'1. Ordersheet'!Z1094)","v":""},{"$f":"IF('1. Ordersheet'!AA1094=\"\",\"\",'1. Ordersheet'!AA1094)","v":""},null,{"$f":"IF('1. Ordersheet'!AS1094=\"\",\"\",'1. Ordersheet'!AS1094)","v":""},{"$f":"IF('1. Ordersheet'!AT1094=\"\",\"\",'1. Ordersheet'!AT1094)","v":""},null,null,null,null,null,null,null,{"$f":"IF('1. Ordersheet'!AX1094=\"\",\"\",'1. Ordersheet'!AX1094)","v":""},{"$f":"IF('1. Ordersheet'!AY1094=\"\",\"\",'1. Ordersheet'!AY1094)","v":""},{"$f":"IF('1. Ordersheet'!AZ1094=\"\",\"\",'1. Ordersheet'!AZ1094)","v":""},{"$f":"IF('1. Ordersheet'!BA1094=\"\",\"\",'1. Ordersheet'!BA1094)","v":""},{"$f":"IF('1. Ordersheet'!BC1094=\"\",\"\",'1. Ordersheet'!BC1094)","v":""},{"$f":"IF('1. Ordersheet'!BD1094=\"\",\"\",'1. Ordersheet'!BD1094)","v":""},{"$f":"IF('1. Ordersheet'!BE1094=\"\",\"\",'1. Ordersheet'!BE1094)","v":""},{"$f":"IF('1. Ordersheet'!BF1094=\"\",\"\",'1. Ordersheet'!BF1094)","v":""},{"$f":"IF('1. Ordersheet'!BG1094=\"\",\"\",'1. Ordersheet'!BG1094)","v":"ZWO"},{"$f":"IF('1. Ordersheet'!BH1094=\"\",\"\",'1. Ordersheet'!BH1094)","v":""},{"$f":"IF('1. Ordersheet'!BI1094=\"\",\"\",'1. Ordersheet'!BI1094)","v":""},{"$f":"IF('1. Ordersheet'!BJ1094=\"\",\"\",'1. Ordersheet'!BJ1094)","v":""},{"$f":"IF('1. Ordersheet'!BK1094=\"\",\"\",'1. Ordersheet'!BK1094)","v":""},{"$f":"IF('1. Ordersheet'!BL1094=\"\",\"\",'1. Ordersheet'!BL1094)","v":""}]
[{"$f":"IF('1. Ordersheet'!F1095=\"\",\"\",'1. Ordersheet'!F1095)","v":""},{"$f":"IF('1. Ordersheet'!G1095=\"\",\"\",'1. Ordersheet'!G1095)","v":""},{"$f":"IF('1. Ordersheet'!H1095=\"\",\"\",'1. Ordersheet'!H1095)","v":""},{"$f":"IF('1. Ordersheet'!I1095=\"\",\"\",'1. Ordersheet'!I1095)","v":""},{"$f":"IF('1. Ordersheet'!J1095=\"\",\"\",'1. Ordersheet'!J1095)","v":""},{"$f":"IF('1. Ordersheet'!K1095=\"\",\"\",'1. Ordersheet'!K1095)","v":""},{"$f":"IF('1. Ordersheet'!L1095=\"\",\"\",'1. Ordersheet'!L1095)","v":""},{"$f":"IF('1. Ordersheet'!M1095=\"\",\"\",'1. Ordersheet'!M1095)","v":""},{"$f":"IF('1. Ordersheet'!N1095=\"\",\"\",'1. Ordersheet'!N1095)","v":""},{"$f":"IF('1. Ordersheet'!O1095=\"\",\"\",'1. Ordersheet'!O1095)","v":{"$error":"#N/A"}},{"$f":"IF('1. Ordersheet'!P1095=\"\",\"\",'1. Ordersheet'!P1095)","v":{"$error":"#N/A"}},{"$f":"IF('1. Ordersheet'!Q1095=\"\",\"\",'1. Ordersheet'!Q1095)","v":""},{"$f":"IF('1. Ordersheet'!R1095=\"\",\"\",'1. Ordersheet'!R1095)","v":""},{"$f":"IF('1. Ordersheet'!S1095=\"\",\"\",'1. Ordersheet'!S1095)","v":""},{"$f":"IF('1. Ordersheet'!V1095=\"\",\"\",'1. Ordersheet'!V1095)","v":""},{"$f":"IF('1. Ordersheet'!W1095=\"\",\"\",'1. Ordersheet'!W1095)","v":""},{"$f":"IF('1. Ordersheet'!X1095=\"\",\"\",'1. Ordersheet'!X1095)","v":""},{"$f":"IF('1. Ordersheet'!Y1095=\"\",\"\",'1. Ordersheet'!Y1095)","v":""},{"$f":"IF('1. Ordersheet'!Z1095=\"\",\"\",'1. Ordersheet'!Z1095)","v":""},{"$f":"IF('1. Ordersheet'!AA1095=\"\",\"\",'1. Ordersheet'!AA1095)","v":""},null,{"$f":"IF('1. Ordersheet'!AS1095=\"\",\"\",'1. Ordersheet'!AS1095)","v":""},{"$f":"IF('1. Ordersheet'!AT1095=\"\",\"\",'1. Ordersheet'!AT1095)","v":""},null,null,null,null,null,null,null,{"$f":"IF('1. Ordersheet'!AX1095=\"\",\"\",'1. Ordersheet'!AX1095)","v":""},{"$f":"IF('1. Ordersheet'!AY1095=\"\",\"\",'1. Ordersheet'!AY1095)","v":""},{"$f":"IF('1. Ordersheet'!AZ1095=\"\",\"\",'1. Ordersheet'!AZ1095)","v":""},{"$f":"IF('1. Ordersheet'!BA1095=\"\",\"\",'1. Ordersheet'!BA1095)","v":""},{"$f":"IF('1. Ordersheet'!BC1095=\"\",\"\",'1. Ordersheet'!BC1095)","v":""},{"$f":"IF('1. Ordersheet'!BD1095=\"\",\"\",'1. Ordersheet'!BD1095)","v":""},{"$f":"IF('1. Ordersheet'!BE1095=\"\",\"\",'1. Ordersheet'!BE1095)","v":""},{"$f":"IF('1. Ordersheet'!BF1095=\"\",\"\",'1. Ordersheet'!BF1095)","v":""},{"$f":"IF('1. Ordersheet'!BG1095=\"\",\"\",'1. Ordersheet'!BG1095)","v":"ZWO"},{"$f":"IF('1. Ordersheet'!BH1095=\"\",\"\",'1. Ordersheet'!BH1095)","v":""},{"$f":"IF('1. Ordersheet'!BI1095=\"\",\"\",'1. Ordersheet'!BI1095)","v":""},{"$f":"IF('1. Ordersheet'!BJ1095=\"\",\"\",'1. Ordersheet'!BJ1095)","v":""},{"$f":"IF('1. Ordersheet'!BK1095=\"\",\"\",'1. Ordersheet'!BK1095)","v":""},{"$f":"IF('1. Ordersheet'!BL1095=\"\",\"\",'1. Ordersheet'!BL1095)","v":""}]
[{"$f":"IF('1. Ordersheet'!F1096=\"\",\"\",'1. Ordersheet'!F1096)","v":""},{"$f":"IF('1. Ordersheet'!G1096=\"\",\"\",'1. Ordersheet'!G1096)","v":""},{"$f":"IF('1. Ordersheet'!H1096=\"\",\"\",'1. Ordersheet'!H1096)","v":""},{"$f":"IF('1. Ordersheet'!I1096=\"\",\"\",'1. Ordersheet'!I1096)","v":""},{"$f":"IF('1. Ordersheet'!J1096=\"\",\"\",'1. Ordersheet'!J1096)","v":""},{"$f":"IF('1. Ordersheet'!K1096=\"\",\"\",'1. Ordersheet'!K1096)","v":""},{"$f":"IF('1. Ordersheet'!L1096=\"\",\"\",'1. Ordersheet'!L1096)","v":""},{"$f":"IF('1. Ordersheet'!M1096=\"\",\"\",'1. Ordersheet'!M1096)","v":""},{"$f":"IF('1. Ordersheet'!N1096=\"\",\"\",'1. Ordersheet'!N1096)","v":""},{"$f":"IF('1. Ordersheet'!O1096=\"\",\"\",'1. Ordersheet'!O1096)","v":{"$error":"#N/A"}},{"$f":"IF('1. Ordersheet'!P1096=\"\",\"\",'1. Ordersheet'!P1096)","v":{"$error":"#N/A"}},{"$f":"IF('1. Ordersheet'!Q1096=\"\",\"\",'1. Ordersheet'!Q1096)","v":""},{"$f":"IF('1. Ordersheet'!R1096=\"\",\"\",'1. Ordersheet'!R1096)","v":""},{"$f":"IF('1. Ordersheet'!S1096=\"\",\"\",'1. Ordersheet'!S1096)","v":""},{"$f":"IF('1. Ordersheet'!V1096=\"\",\"\",'1. Ordersheet'!V1096)","v":""},{"$f":"IF('1. Ordersheet'!W1096=\"\",\"\",'1. Ordersheet'!W1096)","v":""},{"$f":"IF('1. Ordersheet'!X1096=\"\",\"\",'1. Ordersheet'!X1096)","v":""},{"$f":"IF('1. Ordersheet'!Y1096=\"\",\"\",'1. Ordersheet'!Y1096)","v":""},{"$f":"IF('1. Ordersheet'!Z1096=\"\",\"\",'1. Ordersheet'!Z1096)","v":""},{"$f":"IF('1. Ordersheet'!AA1096=\"\",\"\",'1. Ordersheet'!AA1096)","v":""},null,{"$f":"IF('1. Ordersheet'!AS1096=\"\",\"\",'1. Ordersheet'!AS1096)","v":""},{"$f":"IF('1. Ordersheet'!AT1096=\"\",\"\",'1. Ordersheet'!AT1096)","v":""},null,null,null,null,null,null,null,{"$f":"IF('1. Ordersheet'!AX1096=\"\",\"\",'1. Ordersheet'!AX1096)","v":""},{"$f":"IF('1. Ordersheet'!AY1096=\"\",\"\",'1. Ordersheet'!AY1096)","v":""},{"$f":"IF('1. Ordersheet'!AZ1096=\"\",\"\",'1. Ordersheet'!AZ1096)","v":""},{"$f":"IF('1. Ordersheet'!BA1096=\"\",\"\",'1. Ordersheet'!BA1096)","v":""},{"$f":"IF('1. Ordersheet'!BC1096=\"\",\"\",'1. Ordersheet'!BC1096)","v":""},{"$f":"IF('1. Ordersheet'!BD1096=\"\",\"\",'1. Ordersheet'!BD1096)","v":""},{"$f":"IF('1. Ordersheet'!BE1096=\"\",\"\",'1. Ordersheet'!BE1096)","v":""},{"$f":"IF('1. Ordersheet'!BF1096=\"\",\"\",'1. Ordersheet'!BF1096)","v":""},{"$f":"IF('1. Ordersheet'!BG1096=\"\",\"\",'1. Ordersheet'!BG1096)","v":"ZWO"},{"$f":"IF('1. Ordersheet'!BH1096=\"\",\"\",'1. Ordersheet'!BH1096)","v":""},{"$f":"IF('1. Ordersheet'!BI1096=\"\",\"\",'1. Ordersheet'!BI1096)","v":""},{"$f":"IF('1. Ordersheet'!BJ1096=\"\",\"\",'1. Ordersheet'!BJ1096)","v":""},{"$f":"IF('1. Ordersheet'!BK1096=\"\",\"\",'1. Ordersheet'!BK1096)","v":""},{"$f":"IF('1. Ordersheet'!BL1096=\"\",\"\",'1. Ordersheet'!BL1096)","v":""}]
[{"$f":"IF('1. Ordersheet'!F1097=\"\",\"\",'1. Ordersheet'!F1097)","v":""},{"$f":"IF('1. Ordersheet'!G1097=\"\",\"\",'1. Ordersheet'!G1097)","v":""},{"$f":"IF('1. Ordersheet'!H1097=\"\",\"\",'1. Ordersheet'!H1097)","v":""},{"$f":"IF('1. Ordersheet'!I1097=\"\",\"\",'1. Ordersheet'!I1097)","v":""},{"$f":"IF('1. Ordersheet'!J1097=\"\",\"\",'1. Ordersheet'!J1097)","v":""},{"$f":"IF('1. Ordersheet'!K1097=\"\",\"\",'1. Ordersheet'!K1097)","v":""},{"$f":"IF('1. Ordersheet'!L1097=\"\",\"\",'1. Ordersheet'!L1097)","v":""},{"$f":"IF('1. Ordersheet'!M1097=\"\",\"\",'1. Ordersheet'!M1097)","v":""},{"$f":"IF('1. Ordersheet'!N1097=\"\",\"\",'1. Ordersheet'!N1097)","v":""},{"$f":"IF('1. Ordersheet'!O1097=\"\",\"\",'1. Ordersheet'!O1097)","v":{"$error":"#N/A"}},{"$f":"IF('1. Ordersheet'!P1097=\"\",\"\",'1. Ordersheet'!P1097)","v":{"$error":"#N/A"}},{"$f":"IF('1. Ordersheet'!Q1097=\"\",\"\",'1. Ordersheet'!Q1097)","v":""},{"$f":"IF('1. Ordersheet'!R1097=\"\",\"\",'1. Ordersheet'!R1097)","v":""},{"$f":"IF('1. Ordersheet'!S1097=\"\",\"\",'1. Ordersheet'!S1097)","v":""},{"$f":"IF('1. Ordersheet'!V1097=\"\",\"\",'1. Ordersheet'!V1097)","v":""},{"$f":"IF('1. Ordersheet'!W1097=\"\",\"\",'1. Ordersheet'!W1097)","v":""},{"$f":"IF('1. Ordersheet'!X1097=\"\",\"\",'1. Ordersheet'!X1097)","v":""},{"$f":"IF('1. Ordersheet'!Y1097=\"\",\"\",'1. Ordersheet'!Y1097)","v":""},{"$f":"IF('1. Ordersheet'!Z1097=\"\",\"\",'1. Ordersheet'!Z1097)","v":""},{"$f":"IF('1. Ordersheet'!AA1097=\"\",\"\",'1. Ordersheet'!AA1097)","v":""},null,{"$f":"IF('1. Ordersheet'!AS1097=\"\",\"\",'1. Ordersheet'!AS1097)","v":""},{"$f":"IF('1. Ordersheet'!AT1097=\"\",\"\",'1. Ordersheet'!AT1097)","v":""},null,null,null,null,null,null,null,{"$f":"IF('1. Ordersheet'!AX1097=\"\",\"\",'1. Ordersheet'!AX1097)","v":""},{"$f":"IF('1. Ordersheet'!AY1097=\"\",\"\",'1. Ordersheet'!AY1097)","v":""},{"$f":"IF('1. Ordersheet'!AZ1097=\"\",\"\",'1. Ordersheet'!AZ1097)","v":""},{"$f":"IF('1. Ordersheet'!BA1097=\"\",\"\",'1. Ordersheet'!BA1097)","v":""},{"$f":"IF('1. Ordersheet'!BC1097=\"\",\"\",'1. Ordersheet'!BC1097)","v":""},{"$f":"IF('1. Ordersheet'!BD1097=\"\",\"\",'1. Ordersheet'!BD1097)","v":""},{"$f":"IF('1. Ordersheet'!BE1097=\"\",\"\",'1. Ordersheet'!BE1097)","v":""},{"$f":"IF('1. Ordersheet'!BF1097=\"\",\"\",'1. Ordersheet'!BF1097)","v":""},{"$f":"IF('1. Ordersheet'!BG1097=\"\",\"\",'1. Ordersheet'!BG1097)","v":"ZWO"},{"$f":"IF('1. Ordersheet'!BH1097=\"\",\"\",'1. Ordersheet'!BH1097)","v":""},{"$f":"IF('1. Ordersheet'!BI1097=\"\",\"\",'1. Ordersheet'!BI1097)","v":""},{"$f":"IF('1. Ordersheet'!BJ1097=\"\",\"\",'1. Ordersheet'!BJ1097)","v":""},{"$f":"IF('1. Ordersheet'!BK1097=\"\",\"\",'1. Ordersheet'!BK1097)","v":""},{"$f":"IF('1. Ordersheet'!BL1097=\"\",\"\",'1. Ordersheet'!BL1097)","v":""}]
[{"$f":"IF('1. Ordersheet'!F1098=\"\",\"\",'1. Ordersheet'!F1098)","v":""},{"$f":"IF('1. Ordersheet'!G1098=\"\",\"\",'1. Ordersheet'!G1098)","v":""},{"$f":"IF('1. Ordersheet'!H1098=\"\",\"\",'1. Ordersheet'!H1098)","v":""},{"$f":"IF('1. Ordersheet'!I1098=\"\",\"\",'1. Ordersheet'!I1098)","v":""},{"$f":"IF('1. Ordersheet'!J1098=\"\",\"\",'1. Ordersheet'!J1098)","v":""},{"$f":"IF('1. Ordersheet'!K1098=\"\",\"\",'1. Ordersheet'!K1098)","v":""},{"$f":"IF('1. Ordersheet'!L1098=\"\",\"\",'1. Ordersheet'!L1098)","v":""},{"$f":"IF('1. Ordersheet'!M1098=\"\",\"\",'1. Ordersheet'!M1098)","v":""},{"$f":"IF('1. Ordersheet'!N1098=\"\",\"\",'1. Ordersheet'!N1098)","v":""},{"$f":"IF('1. Ordersheet'!O1098=\"\",\"\",'1. Ordersheet'!O1098)","v":{"$error":"#N/A"}},{"$f":"IF('1. Ordersheet'!P1098=\"\",\"\",'1. Ordersheet'!P1098)","v":{"$error":"#N/A"}},{"$f":"IF('1. Ordersheet'!Q1098=\"\",\"\",'1. Ordersheet'!Q1098)","v":""},{"$f":"IF('1. Ordersheet'!R1098=\"\",\"\",'1. Ordersheet'!R1098)","v":""},{"$f":"IF('1. Ordersheet'!S1098=\"\",\"\",'1. Ordersheet'!S1098)","v":""},{"$f":"IF('1. Ordersheet'!V1098=\"\",\"\",'1. Ordersheet'!V1098)","v":""},{"$f":"IF('1. Ordersheet'!W1098=\"\",\"\",'1. Ordersheet'!W1098)","v":""},{"$f":"IF('1. Ordersheet'!X1098=\"\",\"\",'1. Ordersheet'!X1098)","v":""},{"$f":"IF('1. Ordersheet'!Y1098=\"\",\"\",'1. Ordersheet'!Y1098)","v":""},{"$f":"IF('1. Ordersheet'!Z1098=\"\",\"\",'1. Ordersheet'!Z1098)","v":""},{"$f":"IF('1. Ordersheet'!AA1098=\"\",\"\",'1. Ordersheet'!AA1098)","v":""},null,{"$f":"IF('1. Ordersheet'!AS1098=\"\",\"\",'1. Ordersheet'!AS1098)","v":""},{"$f":"IF('1. Ordersheet'!AT1098=\"\",\"\",'1. Ordersheet'!AT1098)","v":""},null,null,null,null,null,null,null,{"$f":"IF('1. Ordersheet'!AX1098=\"\",\"\",'1. Ordersheet'!AX1098)","v":""},{"$f":"IF('1. Ordersheet'!AY1098=\"\",\"\",'1. Ordersheet'!AY1098)","v":""},{"$f":"IF('1. Ordersheet'!AZ1098=\"\",\"\",'1. Ordersheet'!AZ1098)","v":""},{"$f":"IF('1. Ordersheet'!BA1098=\"\",\"\",'1. Ordersheet'!BA1098)","v":""},{"$f":"IF('1. Ordersheet'!BC1098=\"\",\"\",'1. Ordersheet'!BC1098)","v":""},{"$f":"IF('1. Ordersheet'!BD1098=\"\",\"\",'1. Ordersheet'!BD1098)","v":""},{"$f":"IF('1. Ordersheet'!BE1098=\"\",\"\",'1. Ordersheet'!BE1098)","v":""},{"$f":"IF('1. Ordersheet'!BF1098=\"\",\"\",'1. Ordersheet'!BF1098)","v":""},{"$f":"IF('1. Ordersheet'!BG1098=\"\",\"\",'1. Ordersheet'!BG1098)","v":"ZWO"},{"$f":"IF('1. Ordersheet'!BH1098=\"\",\"\",'1. Ordersheet'!BH1098)","v":""},{"$f":"IF('1. Ordersheet'!BI1098=\"\",\"\",'1. Ordersheet'!BI1098)","v":""},{"$f":"IF('1. Ordersheet'!BJ1098=\"\",\"\",'1. Ordersheet'!BJ1098)","v":""},{"$f":"IF('1. Ordersheet'!BK1098=\"\",\"\",'1. Ordersheet'!BK1098)","v":""},{"$f":"IF('1. Ordersheet'!BL1098=\"\",\"\",'1. Ordersheet'!BL1098)","v":""}]
[{"$f":"IF('1. Ordersheet'!F1099=\"\",\"\",'1. Ordersheet'!F1099)","v":""},{"$f":"IF('1. Ordersheet'!G1099=\"\",\"\",'1. Ordersheet'!G1099)","v":""},{"$f":"IF('1. Ordersheet'!H1099=\"\",\"\",'1. Ordersheet'!H1099)","v":""},{"$f":"IF('1. Ordersheet'!I1099=\"\",\"\",'1. Ordersheet'!I1099)","v":""},{"$f":"IF('1. Ordersheet'!J1099=\"\",\"\",'1. Ordersheet'!J1099)","v":""},{"$f":"IF('1. Ordersheet'!K1099=\"\",\"\",'1. Ordersheet'!K1099)","v":""},{"$f":"IF('1. Ordersheet'!L1099=\"\",\"\",'1. Ordersheet'!L1099)","v":""},{"$f":"IF('1. Ordersheet'!M1099=\"\",\"\",'1. Ordersheet'!M1099)","v":""},{"$f":"IF('1. Ordersheet'!N1099=\"\",\"\",'1. Ordersheet'!N1099)","v":""},{"$f":"IF('1. Ordersheet'!O1099=\"\",\"\",'1. Ordersheet'!O1099)","v":{"$error":"#N/A"}},{"$f":"IF('1. Ordersheet'!P1099=\"\",\"\",'1. Ordersheet'!P1099)","v":{"$error":"#N/A"}},{"$f":"IF('1. Ordersheet'!Q1099=\"\",\"\",'1. Ordersheet'!Q1099)","v":""},{"$f":"IF('1. Ordersheet'!R1099=\"\",\"\",'1. Ordersheet'!R1099)","v":""},{"$f":"IF('1. Ordersheet'!S1099=\"\",\"\",'1. Ordersheet'!S1099)","v":""},{"$f":"IF('1. Ordersheet'!V1099=\"\",\"\",'1. Ordersheet'!V1099)","v":""},{"$f":"IF('1. Ordersheet'!W1099=\"\",\"\",'1. Ordersheet'!W1099)","v":""},{"$f":"IF('1. Ordersheet'!X1099=\"\",\"\",'1. Ordersheet'!X1099)","v":""},{"$f":"IF('1. Ordersheet'!Y1099=\"\",\"\",'1. Ordersheet'!Y1099)","v":""},{"$f":"IF('1. Ordersheet'!Z1099=\"\",\"\",'1. Ordersheet'!Z1099)","v":""},{"$f":"IF('1. Ordersheet'!AA1099=\"\",\"\",'1. Ordersheet'!AA1099)","v":""},null,{"$f":"IF('1. Ordersheet'!AS1099=\"\",\"\",'1. Ordersheet'!AS1099)","v":""},{"$f":"IF('1. Ordersheet'!AT1099=\"\",\"\",'1. Ordersheet'!AT1099)","v":""},null,null,null,null,null,null,null,{"$f":"IF('1. Ordersheet'!AX1099=\"\",\"\",'1. Ordersheet'!AX1099)","v":""},{"$f":"IF('1. Ordersheet'!AY1099=\"\",\"\",'1. Ordersheet'!AY1099)","v":""},{"$f":"IF('1. Ordersheet'!AZ1099=\"\",\"\",'1. Ordersheet'!AZ1099)","v":""},{"$f":"IF('1. Ordersheet'!BA1099=\"\",\"\",'1. Ordersheet'!BA1099)","v":""},{"$f":"IF('1. Ordersheet'!BC1099=\"\",\"\",'1. Ordersheet'!BC1099)","v":""},{"$f":"IF('1. Ordersheet'!BD1099=\"\",\"\",'1. Ordersheet'!BD1099)","v":""},{"$f":"IF('1. Ordersheet'!BE1099=\"\",\"\",'1. Ordersheet'!BE1099)","v":""},{"$f":"IF('1. Ordersheet'!BF1099=\"\",\"\",'1. Ordersheet'!BF1099)","v":""},{"$f":"IF('1. Ordersheet'!BG1099=\"\",\"\",'1. Ordersheet'!BG1099)","v":"ZWO"},{"$f":"IF('1. Ordersheet'!BH1099=\"\",\"\",'1. Ordersheet'!BH1099)","v":""},{"$f":"IF('1. Ordersheet'!BI1099=\"\",\"\",'1. Ordersheet'!BI1099)","v":""},{"$f":"IF('1. Ordersheet'!BJ1099=\"\",\"\",'1. Ordersheet'!BJ1099)","v":""},{"$f":"IF('1. Ordersheet'!BK1099=\"\",\"\",'1. Ordersheet'!BK1099)","v":""},{"$f":"IF('1. Ordersheet'!BL1099=\"\",\"\",'1. Ordersheet'!BL1099)","v":""}]
[{"$f":"IF('1. Ordersheet'!F1100=\"\",\"\",'1. Ordersheet'!F1100)","v":""},{"$f":"IF('1. Ordersheet'!G1100=\"\",\"\",'1. Ordersheet'!G1100)","v":""},{"$f":"IF('1. Ordersheet'!H1100=\"\",\"\",'1. Ordersheet'!H1100)","v":""},{"$f":"IF('1. Ordersheet'!I1100=\"\",\"\",'1. Ordersheet'!I1100)","v":""},{"$f":"IF('1. Ordersheet'!J1100=\"\",\"\",'1. Ordersheet'!J1100)","v":""},{"$f":"IF('1. Ordersheet'!K1100=\"\",\"\",'1. Ordersheet'!K1100)","v":""},{"$f":"IF('1. Ordersheet'!L1100=\"\",\"\",'1. Ordersheet'!L1100)","v":""},{"$f":"IF('1. Ordersheet'!M1100=\"\",\"\",'1. Ordersheet'!M1100)","v":""},{"$f":"IF('1. Ordersheet'!N1100=\"\",\"\",'1. Ordersheet'!N1100)","v":""},{"$f":"IF('1. Ordersheet'!O1100=\"\",\"\",'1. Ordersheet'!O1100)","v":{"$error":"#N/A"}},{"$f":"IF('1. Ordersheet'!P1100=\"\",\"\",'1. Ordersheet'!P1100)","v":{"$error":"#N/A"}},{"$f":"IF('1. Ordersheet'!Q1100=\"\",\"\",'1. Ordersheet'!Q1100)","v":""},{"$f":"IF('1. Ordersheet'!R1100=\"\",\"\",'1. Ordersheet'!R1100)","v":""},{"$f":"IF('1. Ordersheet'!S1100=\"\",\"\",'1. Ordersheet'!S1100)","v":""},{"$f":"IF('1. Ordersheet'!V1100=\"\",\"\",'1. Ordersheet'!V1100)","v":""},{"$f":"IF('1. Ordersheet'!W1100=\"\",\"\",'1. Ordersheet'!W1100)","v":""},{"$f":"IF('1. Ordersheet'!X1100=\"\",\"\",'1. Ordersheet'!X1100)","v":""},{"$f":"IF('1. Ordersheet'!Y1100=\"\",\"\",'1. Ordersheet'!Y1100)","v":""},{"$f":"IF('1. Ordersheet'!Z1100=\"\",\"\",'1. Ordersheet'!Z1100)","v":""},{"$f":"IF('1. Ordersheet'!AA1100=\"\",\"\",'1. Ordersheet'!AA1100)","v":""},null,{"$f":"IF('1. Ordersheet'!AS1100=\"\",\"\",'1. Ordersheet'!AS1100)","v":""},{"$f":"IF('1. Ordersheet'!AT1100=\"\",\"\",'1. Ordersheet'!AT1100)","v":""},null,null,null,null,null,null,null,{"$f":"IF('1. Ordersheet'!AX1100=\"\",\"\",'1. Ordersheet'!AX1100)","v":""},{"$f":"IF('1. Ordersheet'!AY1100=\"\",\"\",'1. Ordersheet'!AY1100)","v":""},{"$f":"IF('1. Ordersheet'!AZ1100=\"\",\"\",'1. Ordersheet'!AZ1100)","v":""},{"$f":"IF('1. Ordersheet'!BA1100=\"\",\"\",'1. Ordersheet'!BA1100)","v":""},{"$f":"IF('1. Ordersheet'!BC1100=\"\",\"\",'1. Ordersheet'!BC1100)","v":""},{"$f":"IF('1. Ordersheet'!BD1100=\"\",\"\",'1. Ordersheet'!BD1100)","v":""},{"$f":"IF('1. Ordersheet'!BE1100=\"\",\"\",'1. Ordersheet'!BE1100)","v":""},{"$f":"IF('1. Ordersheet'!BF1100=\"\",\"\",'1. Ordersheet'!BF1100)","v":""},{"$f":"IF('1. Ordersheet'!BG1100=\"\",\"\",'1. Ordersheet'!BG1100)","v":"ZWO"},{"$f":"IF('1. Ordersheet'!BH1100=\"\",\"\",'1. Ordersheet'!BH1100)","v":""},{"$f":"IF('1. Ordersheet'!BI1100=\"\",\"\",'1. Ordersheet'!BI1100)","v":""},{"$f":"IF('1. Ordersheet'!BJ1100=\"\",\"\",'1. Ordersheet'!BJ1100)","v":""},{"$f":"IF('1. Ordersheet'!BK1100=\"\",\"\",'1. Ordersheet'!BK1100)","v":""},{"$f":"IF('1. Ordersheet'!BL1100=\"\",\"\",'1. Ordersheet'!BL1100)","v":""}]
[{"$f":"IF('1. Ordersheet'!F1101=\"\",\"\",'1. Ordersheet'!F1101)","v":""},{"$f":"IF('1. Ordersheet'!G1101=\"\",\"\",'1. Ordersheet'!G1101)","v":""},{"$f":"IF('1. Ordersheet'!H1101=\"\",\"\",'1. Ordersheet'!H1101)","v":""},{"$f":"IF('1. Ordersheet'!I1101=\"\",\"\",'1. Ordersheet'!I1101)","v":""},{"$f":"IF('1. Ordersheet'!J1101=\"\",\"\",'1. Ordersheet'!J1101)","v":""},{"$f":"IF('1. Ordersheet'!K1101=\"\",\"\",'1. Ordersheet'!K1101)","v":""},{"$f":"IF('1. Ordersheet'!L1101=\"\",\"\",'1. Ordersheet'!L1101)","v":""},{"$f":"IF('1. Ordersheet'!M1101=\"\",\"\",'1. Ordersheet'!M1101)","v":""},{"$f":"IF('1. Ordersheet'!N1101=\"\",\"\",'1. Ordersheet'!N1101)","v":""},{"$f":"IF('1. Ordersheet'!O1101=\"\",\"\",'1. Ordersheet'!O1101)","v":{"$error":"#N/A"}},{"$f":"IF('1. Ordersheet'!P1101=\"\",\"\",'1. Ordersheet'!P1101)","v":{"$error":"#N/A"}},{"$f":"IF('1. Ordersheet'!Q1101=\"\",\"\",'1. Ordersheet'!Q1101)","v":""},{"$f":"IF('1. Ordersheet'!R1101=\"\",\"\",'1. Ordersheet'!R1101)","v":""},{"$f":"IF('1. Ordersheet'!S1101=\"\",\"\",'1. Ordersheet'!S1101)","v":""},{"$f":"IF('1. Ordersheet'!V1101=\"\",\"\",'1. Ordersheet'!V1101)","v":""},{"$f":"IF('1. Ordersheet'!W1101=\"\",\"\",'1. Ordersheet'!W1101)","v":""},{"$f":"IF('1. Ordersheet'!X1101=\"\",\"\",'1. Ordersheet'!X1101)","v":""},{"$f":"IF('1. Ordersheet'!Y1101=\"\",\"\",'1. Ordersheet'!Y1101)","v":""},{"$f":"IF('1. Ordersheet'!Z1101=\"\",\"\",'1. Ordersheet'!Z1101)","v":""},{"$f":"IF('1. Ordersheet'!AA1101=\"\",\"\",'1. Ordersheet'!AA1101)","v":""},null,{"$f":"IF('1. Ordersheet'!AS1101=\"\",\"\",'1. Ordersheet'!AS1101)","v":""},{"$f":"IF('1. Ordersheet'!AT1101=\"\",\"\",'1. Ordersheet'!AT1101)","v":""},null,null,null,null,null,null,null,{"$f":"IF('1. Ordersheet'!AX1101=\"\",\"\",'1. Ordersheet'!AX1101)","v":""},{"$f":"IF('1. Ordersheet'!AY1101=\"\",\"\",'1. Ordersheet'!AY1101)","v":""},{"$f":"IF('1. Ordersheet'!AZ1101=\"\",\"\",'1. Ordersheet'!AZ1101)","v":""},{"$f":"IF('1. Ordersheet'!BA1101=\"\",\"\",'1. Ordersheet'!BA1101)","v":""},{"$f":"IF('1. Ordersheet'!BC1101=\"\",\"\",'1. Ordersheet'!BC1101)","v":""},{"$f":"IF('1. Ordersheet'!BD1101=\"\",\"\",'1. Ordersheet'!BD1101)","v":""},{"$f":"IF('1. Ordersheet'!BE1101=\"\",\"\",'1. Ordersheet'!BE1101)","v":""},{"$f":"IF('1. Ordersheet'!BF1101=\"\",\"\",'1. Ordersheet'!BF1101)","v":""},{"$f":"IF('1. Ordersheet'!BG1101=\"\",\"\",'1. Ordersheet'!BG1101)","v":"ZWO"},{"$f":"IF('1. Ordersheet'!BH1101=\"\",\"\",'1. Ordersheet'!BH1101)","v":""},{"$f":"IF('1. Ordersheet'!BI1101=\"\",\"\",'1. Ordersheet'!BI1101)","v":""},{"$f":"IF('1. Ordersheet'!BJ1101=\"\",\"\",'1. Ordersheet'!BJ1101)","v":""},{"$f":"IF('1. Ordersheet'!BK1101=\"\",\"\",'1. Ordersheet'!BK1101)","v":""},{"$f":"IF('1. Ordersheet'!BL1101=\"\",\"\",'1. Ordersheet'!BL1101)","v":""}]
[{"$f":"IF('1. Ordersheet'!F1102=\"\",\"\",'1. Ordersheet'!F1102)","v":""},{"$f":"IF('1. Ordersheet'!G1102=\"\",\"\",'1. Ordersheet'!G1102)","v":""},{"$f":"IF('1. Ordersheet'!H1102=\"\",\"\",'1. Ordersheet'!H1102)","v":""},{"$f":"IF('1. Ordersheet'!I1102=\"\",\"\",'1. Ordersheet'!I1102)","v":""},{"$f":"IF('1. Ordersheet'!J1102=\"\",\"\",'1. Ordersheet'!J1102)","v":""},{"$f":"IF('1. Ordersheet'!K1102=\"\",\"\",'1. Ordersheet'!K1102)","v":""},{"$f":"IF('1. Ordersheet'!L1102=\"\",\"\",'1. Ordersheet'!L1102)","v":""},{"$f":"IF('1. Ordersheet'!M1102=\"\",\"\",'1. Ordersheet'!M1102)","v":""},{"$f":"IF('1. Ordersheet'!N1102=\"\",\"\",'1. Ordersheet'!N1102)","v":""},{"$f":"IF('1. Ordersheet'!O1102=\"\",\"\",'1. Ordersheet'!O1102)","v":{"$error":"#N/A"}},{"$f":"IF('1. Ordersheet'!P1102=\"\",\"\",'1. Ordersheet'!P1102)","v":{"$error":"#N/A"}},{"$f":"IF('1. Ordersheet'!Q1102=\"\",\"\",'1. Ordersheet'!Q1102)","v":""},{"$f":"IF('1. Ordersheet'!R1102=\"\",\"\",'1. Ordersheet'!R1102)","v":""},{"$f":"IF('1. Ordersheet'!S1102=\"\",\"\",'1. Ordersheet'!S1102)","v":""},{"$f":"IF('1. Ordersheet'!V1102=\"\",\"\",'1. Ordersheet'!V1102)","v":""},{"$f":"IF('1. Ordersheet'!W1102=\"\",\"\",'1. Ordersheet'!W1102)","v":""},{"$f":"IF('1. Ordersheet'!X1102=\"\",\"\",'1. Ordersheet'!X1102)","v":""},{"$f":"IF('1. Ordersheet'!Y1102=\"\",\"\",'1. Ordersheet'!Y1102)","v":""},{"$f":"IF('1. Ordersheet'!Z1102=\"\",\"\",'1. Ordersheet'!Z1102)","v":""},{"$f":"IF('1. Ordersheet'!AA1102=\"\",\"\",'1. Ordersheet'!AA1102)","v":""},null,{"$f":"IF('1. Ordersheet'!AS1102=\"\",\"\",'1. Ordersheet'!AS1102)","v":""},{"$f":"IF('1. Ordersheet'!AT1102=\"\",\"\",'1. Ordersheet'!AT1102)","v":""},null,null,null,null,null,null,null,{"$f":"IF('1. Ordersheet'!AX1102=\"\",\"\",'1. Ordersheet'!AX1102)","v":""},{"$f":"IF('1. Ordersheet'!AY1102=\"\",\"\",'1. Ordersheet'!AY1102)","v":""},{"$f":"IF('1. Ordersheet'!AZ1102=\"\",\"\",'1. Ordersheet'!AZ1102)","v":""},{"$f":"IF('1. Ordersheet'!BA1102=\"\",\"\",'1. Ordersheet'!BA1102)","v":""},{"$f":"IF('1. Ordersheet'!BC1102=\"\",\"\",'1. Ordersheet'!BC1102)","v":""},{"$f":"IF('1. Ordersheet'!BD1102=\"\",\"\",'1. Ordersheet'!BD1102)","v":""},{"$f":"IF('1. Ordersheet'!BE1102=\"\",\"\",'1. Ordersheet'!BE1102)","v":""},{"$f":"IF('1. Ordersheet'!BF1102=\"\",\"\",'1. Ordersheet'!BF1102)","v":""},{"$f":"IF('1. Ordersheet'!BG1102=\"\",\"\",'1. Ordersheet'!BG1102)","v":"ZWO"},{"$f":"IF('1. Ordersheet'!BH1102=\"\",\"\",'1. Ordersheet'!BH1102)","v":""},{"$f":"IF('1. Ordersheet'!BI1102=\"\",\"\",'1. Ordersheet'!BI1102)","v":""},{"$f":"IF('1. Ordersheet'!BJ1102=\"\",\"\",'1. Ordersheet'!BJ1102)","v":""},{"$f":"IF('1. Ordersheet'!BK1102=\"\",\"\",'1. Ordersheet'!BK1102)","v":""},{"$f":"IF('1. Ordersheet'!BL1102=\"\",\"\",'1. Ordersheet'!BL1102)","v":""}]
[{"$f":"IF('1. Ordersheet'!F1103=\"\",\"\",'1. Ordersheet'!F1103)","v":""},{"$f":"IF('1. Ordersheet'!G1103=\"\",\"\",'1. Ordersheet'!G1103)","v":""},{"$f":"IF('1. Ordersheet'!H1103=\"\",\"\",'1. Ordersheet'!H1103)","v":""},{"$f":"IF('1. Ordersheet'!I1103=\"\",\"\",'1. Ordersheet'!I1103)","v":""},{"$f":"IF('1. Ordersheet'!J1103=\"\",\"\",'1. Ordersheet'!J1103)","v":""},{"$f":"IF('1. Ordersheet'!K1103=\"\",\"\",'1. Ordersheet'!K1103)","v":""},{"$f":"IF('1. Ordersheet'!L1103=\"\",\"\",'1. Ordersheet'!L1103)","v":""},{"$f":"IF('1. Ordersheet'!M1103=\"\",\"\",'1. Ordersheet'!M1103)","v":""},{"$f":"IF('1. Ordersheet'!N1103=\"\",\"\",'1. Ordersheet'!N1103)","v":""},{"$f":"IF('1. Ordersheet'!O1103=\"\",\"\",'1. Ordersheet'!O1103)","v":{"$error":"#N/A"}},{"$f":"IF('1. Ordersheet'!P1103=\"\",\"\",'1. Ordersheet'!P1103)","v":{"$error":"#N/A"}},{"$f":"IF('1. Ordersheet'!Q1103=\"\",\"\",'1. Ordersheet'!Q1103)","v":""},{"$f":"IF('1. Ordersheet'!R1103=\"\",\"\",'1. Ordersheet'!R1103)","v":""},{"$f":"IF('1. Ordersheet'!S1103=\"\",\"\",'1. Ordersheet'!S1103)","v":""},{"$f":"IF('1. Ordersheet'!V1103=\"\",\"\",'1. Ordersheet'!V1103)","v":""},{"$f":"IF('1. Ordersheet'!W1103=\"\",\"\",'1. Ordersheet'!W1103)","v":""},{"$f":"IF('1. Ordersheet'!X1103=\"\",\"\",'1. Ordersheet'!X1103)","v":""},{"$f":"IF('1. Ordersheet'!Y1103=\"\",\"\",'1. Ordersheet'!Y1103)","v":""},{"$f":"IF('1. Ordersheet'!Z1103=\"\",\"\",'1. Ordersheet'!Z1103)","v":""},{"$f":"IF('1. Ordersheet'!AA1103=\"\",\"\",'1. Ordersheet'!AA1103)","v":""},null,{"$f":"IF('1. Ordersheet'!AS1103=\"\",\"\",'1. Ordersheet'!AS1103)","v":""},{"$f":"IF('1. Ordersheet'!AT1103=\"\",\"\",'1. Ordersheet'!AT1103)","v":""},null,null,null,null,null,null,null,{"$f":"IF('1. Ordersheet'!AX1103=\"\",\"\",'1. Ordersheet'!AX1103)","v":""},{"$f":"IF('1. Ordersheet'!AY1103=\"\",\"\",'1. Ordersheet'!AY1103)","v":""},{"$f":"IF('1. Ordersheet'!AZ1103=\"\",\"\",'1. Ordersheet'!AZ1103)","v":""},{"$f":"IF('1. Ordersheet'!BA1103=\"\",\"\",'1. Ordersheet'!BA1103)","v":""},{"$f":"IF('1. Ordersheet'!BC1103=\"\",\"\",'1. Ordersheet'!BC1103)","v":""},{"$f":"IF('1. Ordersheet'!BD1103=\"\",\"\",'1. Ordersheet'!BD1103)","v":""},{"$f":"IF('1. Ordersheet'!BE1103=\"\",\"\",'1. Ordersheet'!BE1103)","v":""},{"$f":"IF('1. Ordersheet'!BF1103=\"\",\"\",'1. Ordersheet'!BF1103)","v":""},{"$f":"IF('1. Ordersheet'!BG1103=\"\",\"\",'1. Ordersheet'!BG1103)","v":"ZWO"},{"$f":"IF('1. Ordersheet'!BH1103=\"\",\"\",'1. Ordersheet'!BH1103)","v":""},{"$f":"IF('1. Ordersheet'!BI1103=\"\",\"\",'1. Ordersheet'!BI1103)","v":""},{"$f":"IF('1. Ordersheet'!BJ1103=\"\",\"\",'1. Ordersheet'!BJ1103)","v":""},{"$f":"IF('1. Ordersheet'!BK1103=\"\",\"\",'1. Ordersheet'!BK1103)","v":""},{"$f":"IF('1. Ordersheet'!BL1103=\"\",\"\",'1. Ordersheet'!BL1103)","v":""}]
[{"$f":"IF('1. Ordersheet'!F1104=\"\",\"\",'1. Ordersheet'!F1104)","v":""},{"$f":"IF('1. Ordersheet'!G1104=\"\",\"\",'1. Ordersheet'!G1104)","v":""},{"$f":"IF('1. Ordersheet'!H1104=\"\",\"\",'1. Ordersheet'!H1104)","v":""},{"$f":"IF('1. Ordersheet'!I1104=\"\",\"\",'1. Ordersheet'!I1104)","v":""},{"$f":"IF('1. Ordersheet'!J1104=\"\",\"\",'1. Ordersheet'!J1104)","v":""},{"$f":"IF('1. Ordersheet'!K1104=\"\",\"\",'1. Ordersheet'!K1104)","v":""},{"$f":"IF('1. Ordersheet'!L1104=\"\",\"\",'1. Ordersheet'!L1104)","v":""},{"$f":"IF('1. Ordersheet'!M1104=\"\",\"\",'1. Ordersheet'!M1104)","v":""},{"$f":"IF('1. Ordersheet'!N1104=\"\",\"\",'1. Ordersheet'!N1104)","v":""},{"$f":"IF('1. Ordersheet'!O1104=\"\",\"\",'1. Ordersheet'!O1104)","v":{"$error":"#N/A"}},{"$f":"IF('1. Ordersheet'!P1104=\"\",\"\",'1. Ordersheet'!P1104)","v":{"$error":"#N/A"}},{"$f":"IF('1. Ordersheet'!Q1104=\"\",\"\",'1. Ordersheet'!Q1104)","v":""},{"$f":"IF('1. Ordersheet'!R1104=\"\",\"\",'1. Ordersheet'!R1104)","v":""},{"$f":"IF('1. Ordersheet'!S1104=\"\",\"\",'1. Ordersheet'!S1104)","v":""},{"$f":"IF('1. Ordersheet'!V1104=\"\",\"\",'1. Ordersheet'!V1104)","v":""},{"$f":"IF('1. Ordersheet'!W1104=\"\",\"\",'1. Ordersheet'!W1104)","v":""},{"$f":"IF('1. Ordersheet'!X1104=\"\",\"\",'1. Ordersheet'!X1104)","v":""},{"$f":"IF('1. Ordersheet'!Y1104=\"\",\"\",'1. Ordersheet'!Y1104)","v":""},{"$f":"IF('1. Ordersheet'!Z1104=\"\",\"\",'1. Ordersheet'!Z1104)","v":""},{"$f":"IF('1. Ordersheet'!AA1104=\"\",\"\",'1. Ordersheet'!AA1104)","v":""},null,{"$f":"IF('1. Ordersheet'!AS1104=\"\",\"\",'1. Ordersheet'!AS1104)","v":""},{"$f":"IF('1. Ordersheet'!AT1104=\"\",\"\",'1. Ordersheet'!AT1104)","v":""},null,null,null,null,null,null,null,{"$f":"IF('1. Ordersheet'!AX1104=\"\",\"\",'1. Ordersheet'!AX1104)","v":""},{"$f":"IF('1. Ordersheet'!AY1104=\"\",\"\",'1. Ordersheet'!AY1104)","v":""},{"$f":"IF('1. Ordersheet'!AZ1104=\"\",\"\",'1. Ordersheet'!AZ1104)","v":""},{"$f":"IF('1. Ordersheet'!BA1104=\"\",\"\",'1. Ordersheet'!BA1104)","v":""},{"$f":"IF('1. Ordersheet'!BC1104=\"\",\"\",'1. Ordersheet'!BC1104)","v":""},{"$f":"IF('1. Ordersheet'!BD1104=\"\",\"\",'1. Ordersheet'!BD1104)","v":""},{"$f":"IF('1. Ordersheet'!BE1104=\"\",\"\",'1. Ordersheet'!BE1104)","v":""},{"$f":"IF('1. Ordersheet'!BF1104=\"\",\"\",'1. Ordersheet'!BF1104)","v":""},{"$f":"IF('1. Ordersheet'!BG1104=\"\",\"\",'1. Ordersheet'!BG1104)","v":"ZWO"},{"$f":"IF('1. Ordersheet'!BH1104=\"\",\"\",'1. Ordersheet'!BH1104)","v":""},{"$f":"IF('1. Ordersheet'!BI1104=\"\",\"\",'1. Ordersheet'!BI1104)","v":""},{"$f":"IF('1. Ordersheet'!BJ1104=\"\",\"\",'1. Ordersheet'!BJ1104)","v":""},{"$f":"IF('1. Ordersheet'!BK1104=\"\",\"\",'1. Ordersheet'!BK1104)","v":""},{"$f":"IF('1. Ordersheet'!BL1104=\"\",\"\",'1. Ordersheet'!BL1104)","v":""}]
[{"$f":"IF('1. Ordersheet'!F1105=\"\",\"\",'1. Ordersheet'!F1105)","v":""},{"$f":"IF('1. Ordersheet'!G1105=\"\",\"\",'1. Ordersheet'!G1105)","v":""},{"$f":"IF('1. Ordersheet'!H1105=\"\",\"\",'1. Ordersheet'!H1105)","v":""},{"$f":"IF('1. Ordersheet'!I1105=\"\",\"\",'1. Ordersheet'!I1105)","v":""},{"$f":"IF('1. Ordersheet'!J1105=\"\",\"\",'1. Ordersheet'!J1105)","v":""},{"$f":"IF('1. Ordersheet'!K1105=\"\",\"\",'1. Ordersheet'!K1105)","v":""},{"$f":"IF('1. Ordersheet'!L1105=\"\",\"\",'1. Ordersheet'!L1105)","v":""},{"$f":"IF('1. Ordersheet'!M1105=\"\",\"\",'1. Ordersheet'!M1105)","v":""},{"$f":"IF('1. Ordersheet'!N1105=\"\",\"\",'1. Ordersheet'!N1105)","v":""},{"$f":"IF('1. Ordersheet'!O1105=\"\",\"\",'1. Ordersheet'!O1105)","v":{"$error":"#N/A"}},{"$f":"IF('1. Ordersheet'!P1105=\"\",\"\",'1. Ordersheet'!P1105)","v":{"$error":"#N/A"}},{"$f":"IF('1. Ordersheet'!Q1105=\"\",\"\",'1. Ordersheet'!Q1105)","v":""},{"$f":"IF('1. Ordersheet'!R1105=\"\",\"\",'1. Ordersheet'!R1105)","v":""},{"$f":"IF('1. Ordersheet'!S1105=\"\",\"\",'1. Ordersheet'!S1105)","v":""},{"$f":"IF('1. Ordersheet'!V1105=\"\",\"\",'1. Ordersheet'!V1105)","v":""},{"$f":"IF('1. Ordersheet'!W1105=\"\",\"\",'1. Ordersheet'!W1105)","v":""},{"$f":"IF('1. Ordersheet'!X1105=\"\",\"\",'1. Ordersheet'!X1105)","v":""},{"$f":"IF('1. Ordersheet'!Y1105=\"\",\"\",'1. Ordersheet'!Y1105)","v":""},{"$f":"IF('1. Ordersheet'!Z1105=\"\",\"\",'1. Ordersheet'!Z1105)","v":""},{"$f":"IF('1. Ordersheet'!AA1105=\"\",\"\",'1. Ordersheet'!AA1105)","v":""},null,{"$f":"IF('1. Ordersheet'!AS1105=\"\",\"\",'1. Ordersheet'!AS1105)","v":""},{"$f":"IF('1. Ordersheet'!AT1105=\"\",\"\",'1. Ordersheet'!AT1105)","v":""},null,null,null,null,null,null,null,{"$f":"IF('1. Ordersheet'!AX1105=\"\",\"\",'1. Ordersheet'!AX1105)","v":""},{"$f":"IF('1. Ordersheet'!AY1105=\"\",\"\",'1. Ordersheet'!AY1105)","v":""},{"$f":"IF('1. Ordersheet'!AZ1105=\"\",\"\",'1. Ordersheet'!AZ1105)","v":""},{"$f":"IF('1. Ordersheet'!BA1105=\"\",\"\",'1. Ordersheet'!BA1105)","v":""},{"$f":"IF('1. Ordersheet'!BC1105=\"\",\"\",'1. Ordersheet'!BC1105)","v":""},{"$f":"IF('1. Ordersheet'!BD1105=\"\",\"\",'1. Ordersheet'!BD1105)","v":""},{"$f":"IF('1. Ordersheet'!BE1105=\"\",\"\",'1. Ordersheet'!BE1105)","v":""},{"$f":"IF('1. Ordersheet'!BF1105=\"\",\"\",'1. Ordersheet'!BF1105)","v":""},{"$f":"IF('1. Ordersheet'!BG1105=\"\",\"\",'1. Ordersheet'!BG1105)","v":"ZWO"},{"$f":"IF('1. Ordersheet'!BH1105=\"\",\"\",'1. Ordersheet'!BH1105)","v":""},{"$f":"IF('1. Ordersheet'!BI1105=\"\",\"\",'1. Ordersheet'!BI1105)","v":""},{"$f":"IF('1. Ordersheet'!BJ1105=\"\",\"\",'1. Ordersheet'!BJ1105)","v":""},{"$f":"IF('1. Ordersheet'!BK1105=\"\",\"\",'1. Ordersheet'!BK1105)","v":""},{"$f":"IF('1. Ordersheet'!BL1105=\"\",\"\",'1. Ordersheet'!BL1105)","v":""}]
[{"$f":"IF('1. Ordersheet'!F1106=\"\",\"\",'1. Ordersheet'!F1106)","v":""},{"$f":"IF('1. Ordersheet'!G1106=\"\",\"\",'1. Ordersheet'!G1106)","v":""},{"$f":"IF('1. Ordersheet'!H1106=\"\",\"\",'1. Ordersheet'!H1106)","v":""},{"$f":"IF('1. Ordersheet'!I1106=\"\",\"\",'1. Ordersheet'!I1106)","v":""},{"$f":"IF('1. Ordersheet'!J1106=\"\",\"\",'1. Ordersheet'!J1106)","v":""},{"$f":"IF('1. Ordersheet'!K1106=\"\",\"\",'1. Ordersheet'!K1106)","v":""},{"$f":"IF('1. Ordersheet'!L1106=\"\",\"\",'1. Ordersheet'!L1106)","v":""},{"$f":"IF('1. Ordersheet'!M1106=\"\",\"\",'1. Ordersheet'!M1106)","v":""},{"$f":"IF('1. Ordersheet'!N1106=\"\",\"\",'1. Ordersheet'!N1106)","v":""},{"$f":"IF('1. Ordersheet'!O1106=\"\",\"\",'1. Ordersheet'!O1106)","v":{"$error":"#N/A"}},{"$f":"IF('1. Ordersheet'!P1106=\"\",\"\",'1. Ordersheet'!P1106)","v":{"$error":"#N/A"}},{"$f":"IF('1. Ordersheet'!Q1106=\"\",\"\",'1. Ordersheet'!Q1106)","v":""},{"$f":"IF('1. Ordersheet'!R1106=\"\",\"\",'1. Ordersheet'!R1106)","v":""},{"$f":"IF('1. Ordersheet'!S1106=\"\",\"\",'1. Ordersheet'!S1106)","v":""},{"$f":"IF('1. Ordersheet'!V1106=\"\",\"\",'1. Ordersheet'!V1106)","v":""},{"$f":"IF('1. Ordersheet'!W1106=\"\",\"\",'1. Ordersheet'!W1106)","v":""},{"$f":"IF('1. Ordersheet'!X1106=\"\",\"\",'1. Ordersheet'!X1106)","v":""},{"$f":"IF('1. Ordersheet'!Y1106=\"\",\"\",'1. Ordersheet'!Y1106)","v":""},{"$f":"IF('1. Ordersheet'!Z1106=\"\",\"\",'1. Ordersheet'!Z1106)","v":""},{"$f":"IF('1. Ordersheet'!AA1106=\"\",\"\",'1. Ordersheet'!AA1106)","v":""},null,{"$f":"IF('1. Ordersheet'!AS1106=\"\",\"\",'1. Ordersheet'!AS1106)","v":""},{"$f":"IF('1. Ordersheet'!AT1106=\"\",\"\",'1. Ordersheet'!AT1106)","v":""},null,null,null,null,null,null,null,{"$f":"IF('1. Ordersheet'!AX1106=\"\",\"\",'1. Ordersheet'!AX1106)","v":""},{"$f":"IF('1. Ordersheet'!AY1106=\"\",\"\",'1. Ordersheet'!AY1106)","v":""},{"$f":"IF('1. Ordersheet'!AZ1106=\"\",\"\",'1. Ordersheet'!AZ1106)","v":""},{"$f":"IF('1. Ordersheet'!BA1106=\"\",\"\",'1. Ordersheet'!BA1106)","v":""},{"$f":"IF('1. Ordersheet'!BC1106=\"\",\"\",'1. Ordersheet'!BC1106)","v":""},{"$f":"IF('1. Ordersheet'!BD1106=\"\",\"\",'1. Ordersheet'!BD1106)","v":""},{"$f":"IF('1. Ordersheet'!BE1106=\"\",\"\",'1. Ordersheet'!BE1106)","v":""},{"$f":"IF('1. Ordersheet'!BF1106=\"\",\"\",'1. Ordersheet'!BF1106)","v":""},{"$f":"IF('1. Ordersheet'!BG1106=\"\",\"\",'1. Ordersheet'!BG1106)","v":"ZWO"},{"$f":"IF('1. Ordersheet'!BH1106=\"\",\"\",'1. Ordersheet'!BH1106)","v":""},{"$f":"IF('1. Ordersheet'!BI1106=\"\",\"\",'1. Ordersheet'!BI1106)","v":""},{"$f":"IF('1. Ordersheet'!BJ1106=\"\",\"\",'1. Ordersheet'!BJ1106)","v":""},{"$f":"IF('1. Ordersheet'!BK1106=\"\",\"\",'1. Ordersheet'!BK1106)","v":""},{"$f":"IF('1. Ordersheet'!BL1106=\"\",\"\",'1. Ordersheet'!BL1106)","v":""}]
[{"$f":"IF('1. Ordersheet'!F1107=\"\",\"\",'1. Ordersheet'!F1107)","v":""},{"$f":"IF('1. Ordersheet'!G1107=\"\",\"\",'1. Ordersheet'!G1107)","v":""},{"$f":"IF('1. Ordersheet'!H1107=\"\",\"\",'1. Ordersheet'!H1107)","v":""},{"$f":"IF('1. Ordersheet'!I1107=\"\",\"\",'1. Ordersheet'!I1107)","v":""},{"$f":"IF('1. Ordersheet'!J1107=\"\",\"\",'1. Ordersheet'!J1107)","v":""},{"$f":"IF('1. Ordersheet'!K1107=\"\",\"\",'1. Ordersheet'!K1107)","v":""},{"$f":"IF('1. Ordersheet'!L1107=\"\",\"\",'1. Ordersheet'!L1107)","v":""},{"$f":"IF('1. Ordersheet'!M1107=\"\",\"\",'1. Ordersheet'!M1107)","v":""},{"$f":"IF('1. Ordersheet'!N1107=\"\",\"\",'1. Ordersheet'!N1107)","v":""},{"$f":"IF('1. Ordersheet'!O1107=\"\",\"\",'1. Ordersheet'!O1107)","v":{"$error":"#N/A"}},{"$f":"IF('1. Ordersheet'!P1107=\"\",\"\",'1. Ordersheet'!P1107)","v":{"$error":"#N/A"}},{"$f":"IF('1. Ordersheet'!Q1107=\"\",\"\",'1. Ordersheet'!Q1107)","v":""},{"$f":"IF('1. Ordersheet'!R1107=\"\",\"\",'1. Ordersheet'!R1107)","v":""},{"$f":"IF('1. Ordersheet'!S1107=\"\",\"\",'1. Ordersheet'!S1107)","v":""},{"$f":"IF('1. Ordersheet'!V1107=\"\",\"\",'1. Ordersheet'!V1107)","v":""},{"$f":"IF('1. Ordersheet'!W1107=\"\",\"\",'1. Ordersheet'!W1107)","v":""},{"$f":"IF('1. Ordersheet'!X1107=\"\",\"\",'1. Ordersheet'!X1107)","v":""},{"$f":"IF('1. Ordersheet'!Y1107=\"\",\"\",'1. Ordersheet'!Y1107)","v":""},{"$f":"IF('1. Ordersheet'!Z1107=\"\",\"\",'1. Ordersheet'!Z1107)","v":""},{"$f":"IF('1. Ordersheet'!AA1107=\"\",\"\",'1. Ordersheet'!AA1107)","v":""},null,{"$f":"IF('1. Ordersheet'!AS1107=\"\",\"\",'1. Ordersheet'!AS1107)","v":""},{"$f":"IF('1. Ordersheet'!AT1107=\"\",\"\",'1. Ordersheet'!AT1107)","v":""},null,null,null,null,null,null,null,{"$f":"IF('1. Ordersheet'!AX1107=\"\",\"\",'1. Ordersheet'!AX1107)","v":""},{"$f":"IF('1. Ordersheet'!AY1107=\"\",\"\",'1. Ordersheet'!AY1107)","v":""},{"$f":"IF('1. Ordersheet'!AZ1107=\"\",\"\",'1. Ordersheet'!AZ1107)","v":""},{"$f":"IF('1. Ordersheet'!BA1107=\"\",\"\",'1. Ordersheet'!BA1107)","v":""},{"$f":"IF('1. Ordersheet'!BC1107=\"\",\"\",'1. Ordersheet'!BC1107)","v":""},{"$f":"IF('1. Ordersheet'!BD1107=\"\",\"\",'1. Ordersheet'!BD1107)","v":""},{"$f":"IF('1. Ordersheet'!BE1107=\"\",\"\",'1. Ordersheet'!BE1107)","v":""},{"$f":"IF('1. Ordersheet'!BF1107=\"\",\"\",'1. Ordersheet'!BF1107)","v":""},{"$f":"IF('1. Ordersheet'!BG1107=\"\",\"\",'1. Ordersheet'!BG1107)","v":"ZWO"},{"$f":"IF('1. Ordersheet'!BH1107=\"\",\"\",'1. Ordersheet'!BH1107)","v":""},{"$f":"IF('1. Ordersheet'!BI1107=\"\",\"\",'1. Ordersheet'!BI1107)","v":""},{"$f":"IF('1. Ordersheet'!BJ1107=\"\",\"\",'1. Ordersheet'!BJ1107)","v":""},{"$f":"IF('1. Ordersheet'!BK1107=\"\",\"\",'1. Ordersheet'!BK1107)","v":""},{"$f":"IF('1. Ordersheet'!BL1107=\"\",\"\",'1. Ordersheet'!BL1107)","v":""}]
[{"$f":"IF('1. Ordersheet'!F1108=\"\",\"\",'1. Ordersheet'!F1108)","v":""},{"$f":"IF('1. Ordersheet'!G1108=\"\",\"\",'1. Ordersheet'!G1108)","v":""},{"$f":"IF('1. Ordersheet'!H1108=\"\",\"\",'1. Ordersheet'!H1108)","v":""},{"$f":"IF('1. Ordersheet'!I1108=\"\",\"\",'1. Ordersheet'!I1108)","v":""},{"$f":"IF('1. Ordersheet'!J1108=\"\",\"\",'1. Ordersheet'!J1108)","v":""},{"$f":"IF('1. Ordersheet'!K1108=\"\",\"\",'1. Ordersheet'!K1108)","v":""},{"$f":"IF('1. Ordersheet'!L1108=\"\",\"\",'1. Ordersheet'!L1108)","v":""},{"$f":"IF('1. Ordersheet'!M1108=\"\",\"\",'1. Ordersheet'!M1108)","v":""},{"$f":"IF('1. Ordersheet'!N1108=\"\",\"\",'1. Ordersheet'!N1108)","v":""},{"$f":"IF('1. Ordersheet'!O1108=\"\",\"\",'1. Ordersheet'!O1108)","v":{"$error":"#N/A"}},{"$f":"IF('1. Ordersheet'!P1108=\"\",\"\",'1. Ordersheet'!P1108)","v":{"$error":"#N/A"}},{"$f":"IF('1. Ordersheet'!Q1108=\"\",\"\",'1. Ordersheet'!Q1108)","v":""},{"$f":"IF('1. Ordersheet'!R1108=\"\",\"\",'1. Ordersheet'!R1108)","v":""},{"$f":"IF('1. Ordersheet'!S1108=\"\",\"\",'1. Ordersheet'!S1108)","v":""},{"$f":"IF('1. Ordersheet'!V1108=\"\",\"\",'1. Ordersheet'!V1108)","v":""},{"$f":"IF('1. Ordersheet'!W1108=\"\",\"\",'1. Ordersheet'!W1108)","v":""},{"$f":"IF('1. Ordersheet'!X1108=\"\",\"\",'1. Ordersheet'!X1108)","v":""},{"$f":"IF('1. Ordersheet'!Y1108=\"\",\"\",'1. Ordersheet'!Y1108)","v":""},{"$f":"IF('1. Ordersheet'!Z1108=\"\",\"\",'1. Ordersheet'!Z1108)","v":""},{"$f":"IF('1. Ordersheet'!AA1108=\"\",\"\",'1. Ordersheet'!AA1108)","v":""},null,{"$f":"IF('1. Ordersheet'!AS1108=\"\",\"\",'1. Ordersheet'!AS1108)","v":""},{"$f":"IF('1. Ordersheet'!AT1108=\"\",\"\",'1. Ordersheet'!AT1108)","v":""},null,null,null,null,null,null,null,{"$f":"IF('1. Ordersheet'!AX1108=\"\",\"\",'1. Ordersheet'!AX1108)","v":""},{"$f":"IF('1. Ordersheet'!AY1108=\"\",\"\",'1. Ordersheet'!AY1108)","v":""},{"$f":"IF('1. Ordersheet'!AZ1108=\"\",\"\",'1. Ordersheet'!AZ1108)","v":""},{"$f":"IF('1. Ordersheet'!BA1108=\"\",\"\",'1. Ordersheet'!BA1108)","v":""},{"$f":"IF('1. Ordersheet'!BC1108=\"\",\"\",'1. Ordersheet'!BC1108)","v":""},{"$f":"IF('1. Ordersheet'!BD1108=\"\",\"\",'1. Ordersheet'!BD1108)","v":""},{"$f":"IF('1. Ordersheet'!BE1108=\"\",\"\",'1. Ordersheet'!BE1108)","v":""},{"$f":"IF('1. Ordersheet'!BF1108=\"\",\"\",'1. Ordersheet'!BF1108)","v":""},{"$f":"IF('1. Ordersheet'!BG1108=\"\",\"\",'1. Ordersheet'!BG1108)","v":"ZWO"},{"$f":"IF('1. Ordersheet'!BH1108=\"\",\"\",'1. Ordersheet'!BH1108)","v":""},{"$f":"IF('1. Ordersheet'!BI1108=\"\",\"\",'1. Ordersheet'!BI1108)","v":""},{"$f":"IF('1. Ordersheet'!BJ1108=\"\",\"\",'1. Ordersheet'!BJ1108)","v":""},{"$f":"IF('1. Ordersheet'!BK1108=\"\",\"\",'1. Ordersheet'!BK1108)","v":""},{"$f":"IF('1. Ordersheet'!BL1108=\"\",\"\",'1. Ordersheet'!BL1108)","v":""}]
[{"$f":"IF('1. Ordersheet'!F1109=\"\",\"\",'1. Ordersheet'!F1109)","v":""},{"$f":"IF('1. Ordersheet'!G1109=\"\",\"\",'1. Ordersheet'!G1109)","v":""},{"$f":"IF('1. Ordersheet'!H1109=\"\",\"\",'1. Ordersheet'!H1109)","v":""},{"$f":"IF('1. Ordersheet'!I1109=\"\",\"\",'1. Ordersheet'!I1109)","v":""},{"$f":"IF('1. Ordersheet'!J1109=\"\",\"\",'1. Ordersheet'!J1109)","v":""},{"$f":"IF('1. Ordersheet'!K1109=\"\",\"\",'1. Ordersheet'!K1109)","v":""},{"$f":"IF('1. Ordersheet'!L1109=\"\",\"\",'1. Ordersheet'!L1109)","v":""},{"$f":"IF('1. Ordersheet'!M1109=\"\",\"\",'1. Ordersheet'!M1109)","v":""},{"$f":"IF('1. Ordersheet'!N1109=\"\",\"\",'1. Ordersheet'!N1109)","v":""},{"$f":"IF('1. Ordersheet'!O1109=\"\",\"\",'1. Ordersheet'!O1109)","v":{"$error":"#N/A"}},{"$f":"IF('1. Ordersheet'!P1109=\"\",\"\",'1. Ordersheet'!P1109)","v":{"$error":"#N/A"}},{"$f":"IF('1. Ordersheet'!Q1109=\"\",\"\",'1. Ordersheet'!Q1109)","v":""},{"$f":"IF('1. Ordersheet'!R1109=\"\",\"\",'1. Ordersheet'!R1109)","v":""},{"$f":"IF('1. Ordersheet'!S1109=\"\",\"\",'1. Ordersheet'!S1109)","v":""},{"$f":"IF('1. Ordersheet'!V1109=\"\",\"\",'1. Ordersheet'!V1109)","v":""},{"$f":"IF('1. Ordersheet'!W1109=\"\",\"\",'1. Ordersheet'!W1109)","v":""},{"$f":"IF('1. Ordersheet'!X1109=\"\",\"\",'1. Ordersheet'!X1109)","v":""},{"$f":"IF('1. Ordersheet'!Y1109=\"\",\"\",'1. Ordersheet'!Y1109)","v":""},{"$f":"IF('1. Ordersheet'!Z1109=\"\",\"\",'1. Ordersheet'!Z1109)","v":""},{"$f":"IF('1. Ordersheet'!AA1109=\"\",\"\",'1. Ordersheet'!AA1109)","v":""},null,{"$f":"IF('1. Ordersheet'!AS1109=\"\",\"\",'1. Ordersheet'!AS1109)","v":""},{"$f":"IF('1. Ordersheet'!AT1109=\"\",\"\",'1. Ordersheet'!AT1109)","v":""},null,null,null,null,null,null,null,{"$f":"IF('1. Ordersheet'!AX1109=\"\",\"\",'1. Ordersheet'!AX1109)","v":""},{"$f":"IF('1. Ordersheet'!AY1109=\"\",\"\",'1. Ordersheet'!AY1109)","v":""},{"$f":"IF('1. Ordersheet'!AZ1109=\"\",\"\",'1. Ordersheet'!AZ1109)","v":""},{"$f":"IF('1. Ordersheet'!BA1109=\"\",\"\",'1. Ordersheet'!BA1109)","v":""},{"$f":"IF('1. Ordersheet'!BC1109=\"\",\"\",'1. Ordersheet'!BC1109)","v":""},{"$f":"IF('1. Ordersheet'!BD1109=\"\",\"\",'1. Ordersheet'!BD1109)","v":""},{"$f":"IF('1. Ordersheet'!BE1109=\"\",\"\",'1. Ordersheet'!BE1109)","v":""},{"$f":"IF('1. Ordersheet'!BF1109=\"\",\"\",'1. Ordersheet'!BF1109)","v":""},{"$f":"IF('1. Ordersheet'!BG1109=\"\",\"\",'1. Ordersheet'!BG1109)","v":"ZWO"},{"$f":"IF('1. Ordersheet'!BH1109=\"\",\"\",'1. Ordersheet'!BH1109)","v":""},{"$f":"IF('1. Ordersheet'!BI1109=\"\",\"\",'1. Ordersheet'!BI1109)","v":""},{"$f":"IF('1. Ordersheet'!BJ1109=\"\",\"\",'1. Ordersheet'!BJ1109)","v":""},{"$f":"IF('1. Ordersheet'!BK1109=\"\",\"\",'1. Ordersheet'!BK1109)","v":""},{"$f":"IF('1. Ordersheet'!BL1109=\"\",\"\",'1. Ordersheet'!BL1109)","v":""}]
[{"$f":"IF('1. Ordersheet'!F1110=\"\",\"\",'1. Ordersheet'!F1110)","v":""},{"$f":"IF('1. Ordersheet'!G1110=\"\",\"\",'1. Ordersheet'!G1110)","v":""},{"$f":"IF('1. Ordersheet'!H1110=\"\",\"\",'1. Ordersheet'!H1110)","v":""},{"$f":"IF('1. Ordersheet'!I1110=\"\",\"\",'1. Ordersheet'!I1110)","v":""},{"$f":"IF('1. Ordersheet'!J1110=\"\",\"\",'1. Ordersheet'!J1110)","v":""},{"$f":"IF('1. Ordersheet'!K1110=\"\",\"\",'1. Ordersheet'!K1110)","v":""},{"$f":"IF('1. Ordersheet'!L1110=\"\",\"\",'1. Ordersheet'!L1110)","v":""},{"$f":"IF('1. Ordersheet'!M1110=\"\",\"\",'1. Ordersheet'!M1110)","v":""},{"$f":"IF('1. Ordersheet'!N1110=\"\",\"\",'1. Ordersheet'!N1110)","v":""},{"$f":"IF('1. Ordersheet'!O1110=\"\",\"\",'1. Ordersheet'!O1110)","v":{"$error":"#N/A"}},{"$f":"IF('1. Ordersheet'!P1110=\"\",\"\",'1. Ordersheet'!P1110)","v":{"$error":"#N/A"}},{"$f":"IF('1. Ordersheet'!Q1110=\"\",\"\",'1. Ordersheet'!Q1110)","v":""},{"$f":"IF('1. Ordersheet'!R1110=\"\",\"\",'1. Ordersheet'!R1110)","v":""},{"$f":"IF('1. Ordersheet'!S1110=\"\",\"\",'1. Ordersheet'!S1110)","v":""},{"$f":"IF('1. Ordersheet'!V1110=\"\",\"\",'1. Ordersheet'!V1110)","v":""},{"$f":"IF('1. Ordersheet'!W1110=\"\",\"\",'1. Ordersheet'!W1110)","v":""},{"$f":"IF('1. Ordersheet'!X1110=\"\",\"\",'1. Ordersheet'!X1110)","v":""},{"$f":"IF('1. Ordersheet'!Y1110=\"\",\"\",'1. Ordersheet'!Y1110)","v":""},{"$f":"IF('1. Ordersheet'!Z1110=\"\",\"\",'1. Ordersheet'!Z1110)","v":""},{"$f":"IF('1. Ordersheet'!AA1110=\"\",\"\",'1. Ordersheet'!AA1110)","v":""},null,{"$f":"IF('1. Ordersheet'!AS1110=\"\",\"\",'1. Ordersheet'!AS1110)","v":""},{"$f":"IF('1. Ordersheet'!AT1110=\"\",\"\",'1. Ordersheet'!AT1110)","v":""},null,null,null,null,null,null,null,{"$f":"IF('1. Ordersheet'!AX1110=\"\",\"\",'1. Ordersheet'!AX1110)","v":""},{"$f":"IF('1. Ordersheet'!AY1110=\"\",\"\",'1. Ordersheet'!AY1110)","v":""},{"$f":"IF('1. Ordersheet'!AZ1110=\"\",\"\",'1. Ordersheet'!AZ1110)","v":""},{"$f":"IF('1. Ordersheet'!BA1110=\"\",\"\",'1. Ordersheet'!BA1110)","v":""},{"$f":"IF('1. Ordersheet'!BC1110=\"\",\"\",'1. Ordersheet'!BC1110)","v":""},{"$f":"IF('1. Ordersheet'!BD1110=\"\",\"\",'1. Ordersheet'!BD1110)","v":""},{"$f":"IF('1. Ordersheet'!BE1110=\"\",\"\",'1. Ordersheet'!BE1110)","v":""},{"$f":"IF('1. Ordersheet'!BF1110=\"\",\"\",'1. Ordersheet'!BF1110)","v":""},{"$f":"IF('1. Ordersheet'!BG1110=\"\",\"\",'1. Ordersheet'!BG1110)","v":"ZWO"},{"$f":"IF('1. Ordersheet'!BH1110=\"\",\"\",'1. Ordersheet'!BH1110)","v":""},{"$f":"IF('1. Ordersheet'!BI1110=\"\",\"\",'1. Ordersheet'!BI1110)","v":""},{"$f":"IF('1. Ordersheet'!BJ1110=\"\",\"\",'1. Ordersheet'!BJ1110)","v":""},{"$f":"IF('1. Ordersheet'!BK1110=\"\",\"\",'1. Ordersheet'!BK1110)","v":""},{"$f":"IF('1. Ordersheet'!BL1110=\"\",\"\",'1. Ordersheet'!BL1110)","v":""}]
[{"$f":"IF('1. Ordersheet'!F1111=\"\",\"\",'1. Ordersheet'!F1111)","v":""},{"$f":"IF('1. Ordersheet'!G1111=\"\",\"\",'1. Ordersheet'!G1111)","v":""},{"$f":"IF('1. Ordersheet'!H1111=\"\",\"\",'1. Ordersheet'!H1111)","v":""},{"$f":"IF('1. Ordersheet'!I1111=\"\",\"\",'1. Ordersheet'!I1111)","v":""},{"$f":"IF('1. Ordersheet'!J1111=\"\",\"\",'1. Ordersheet'!J1111)","v":""},{"$f":"IF('1. Ordersheet'!K1111=\"\",\"\",'1. Ordersheet'!K1111)","v":""},{"$f":"IF('1. Ordersheet'!L1111=\"\",\"\",'1. Ordersheet'!L1111)","v":""},{"$f":"IF('1. Ordersheet'!M1111=\"\",\"\",'1. Ordersheet'!M1111)","v":""},{"$f":"IF('1. Ordersheet'!N1111=\"\",\"\",'1. Ordersheet'!N1111)","v":""},{"$f":"IF('1. Ordersheet'!O1111=\"\",\"\",'1. Ordersheet'!O1111)","v":{"$error":"#N/A"}},{"$f":"IF('1. Ordersheet'!P1111=\"\",\"\",'1. Ordersheet'!P1111)","v":{"$error":"#N/A"}},{"$f":"IF('1. Ordersheet'!Q1111=\"\",\"\",'1. Ordersheet'!Q1111)","v":""},{"$f":"IF('1. Ordersheet'!R1111=\"\",\"\",'1. Ordersheet'!R1111)","v":""},{"$f":"IF('1. Ordersheet'!S1111=\"\",\"\",'1. Ordersheet'!S1111)","v":""},{"$f":"IF('1. Ordersheet'!V1111=\"\",\"\",'1. Ordersheet'!V1111)","v":""},{"$f":"IF('1. Ordersheet'!W1111=\"\",\"\",'1. Ordersheet'!W1111)","v":""},{"$f":"IF('1. Ordersheet'!X1111=\"\",\"\",'1. Ordersheet'!X1111)","v":""},{"$f":"IF('1. Ordersheet'!Y1111=\"\",\"\",'1. Ordersheet'!Y1111)","v":""},{"$f":"IF('1. Ordersheet'!Z1111=\"\",\"\",'1. Ordersheet'!Z1111)","v":""},{"$f":"IF('1. Ordersheet'!AA1111=\"\",\"\",'1. Ordersheet'!AA1111)","v":""},null,{"$f":"IF('1. Ordersheet'!AS1111=\"\",\"\",'1. Ordersheet'!AS1111)","v":""},{"$f":"IF('1. Ordersheet'!AT1111=\"\",\"\",'1. Ordersheet'!AT1111)","v":""},null,null,null,null,null,null,null,{"$f":"IF('1. Ordersheet'!AX1111=\"\",\"\",'1. Ordersheet'!AX1111)","v":""},{"$f":"IF('1. Ordersheet'!AY1111=\"\",\"\",'1. Ordersheet'!AY1111)","v":""},{"$f":"IF('1. Ordersheet'!AZ1111=\"\",\"\",'1. Ordersheet'!AZ1111)","v":""},{"$f":"IF('1. Ordersheet'!BA1111=\"\",\"\",'1. Ordersheet'!BA1111)","v":""},{"$f":"IF('1. Ordersheet'!BC1111=\"\",\"\",'1. Ordersheet'!BC1111)","v":""},{"$f":"IF('1. Ordersheet'!BD1111=\"\",\"\",'1. Ordersheet'!BD1111)","v":""},{"$f":"IF('1. Ordersheet'!BE1111=\"\",\"\",'1. Ordersheet'!BE1111)","v":""},{"$f":"IF('1. Ordersheet'!BF1111=\"\",\"\",'1. Ordersheet'!BF1111)","v":""},{"$f":"IF('1. Ordersheet'!BG1111=\"\",\"\",'1. Ordersheet'!BG1111)","v":"ZWO"},{"$f":"IF('1. Ordersheet'!BH1111=\"\",\"\",'1. Ordersheet'!BH1111)","v":""},{"$f":"IF('1. Ordersheet'!BI1111=\"\",\"\",'1. Ordersheet'!BI1111)","v":""},{"$f":"IF('1. Ordersheet'!BJ1111=\"\",\"\",'1. Ordersheet'!BJ1111)","v":""},{"$f":"IF('1. Ordersheet'!BK1111=\"\",\"\",'1. Ordersheet'!BK1111)","v":""},{"$f":"IF('1. Ordersheet'!BL1111=\"\",\"\",'1. Ordersheet'!BL1111)","v":""}]
[{"$f":"IF('1. Ordersheet'!F1112=\"\",\"\",'1. Ordersheet'!F1112)","v":""},{"$f":"IF('1. Ordersheet'!G1112=\"\",\"\",'1. Ordersheet'!G1112)","v":""},{"$f":"IF('1. Ordersheet'!H1112=\"\",\"\",'1. Ordersheet'!H1112)","v":""},{"$f":"IF('1. Ordersheet'!I1112=\"\",\"\",'1. Ordersheet'!I1112)","v":""},{"$f":"IF('1. Ordersheet'!J1112=\"\",\"\",'1. Ordersheet'!J1112)","v":""},{"$f":"IF('1. Ordersheet'!K1112=\"\",\"\",'1. Ordersheet'!K1112)","v":""},{"$f":"IF('1. Ordersheet'!L1112=\"\",\"\",'1. Ordersheet'!L1112)","v":""},{"$f":"IF('1. Ordersheet'!M1112=\"\",\"\",'1. Ordersheet'!M1112)","v":""},{"$f":"IF('1. Ordersheet'!N1112=\"\",\"\",'1. Ordersheet'!N1112)","v":""},{"$f":"IF('1. Ordersheet'!O1112=\"\",\"\",'1. Ordersheet'!O1112)","v":{"$error":"#N/A"}},{"$f":"IF('1. Ordersheet'!P1112=\"\",\"\",'1. Ordersheet'!P1112)","v":{"$error":"#N/A"}},{"$f":"IF('1. Ordersheet'!Q1112=\"\",\"\",'1. Ordersheet'!Q1112)","v":""},{"$f":"IF('1. Ordersheet'!R1112=\"\",\"\",'1. Ordersheet'!R1112)","v":""},{"$f":"IF('1. Ordersheet'!S1112=\"\",\"\",'1. Ordersheet'!S1112)","v":""},{"$f":"IF('1. Ordersheet'!V1112=\"\",\"\",'1. Ordersheet'!V1112)","v":""},{"$f":"IF('1. Ordersheet'!W1112=\"\",\"\",'1. Ordersheet'!W1112)","v":""},{"$f":"IF('1. Ordersheet'!X1112=\"\",\"\",'1. Ordersheet'!X1112)","v":""},{"$f":"IF('1. Ordersheet'!Y1112=\"\",\"\",'1. Ordersheet'!Y1112)","v":""},{"$f":"IF('1. Ordersheet'!Z1112=\"\",\"\",'1. Ordersheet'!Z1112)","v":""},{"$f":"IF('1. Ordersheet'!AA1112=\"\",\"\",'1. Ordersheet'!AA1112)","v":""},null,{"$f":"IF('1. Ordersheet'!AS1112=\"\",\"\",'1. Ordersheet'!AS1112)","v":""},{"$f":"IF('1. Ordersheet'!AT1112=\"\",\"\",'1. Ordersheet'!AT1112)","v":""},null,null,null,null,null,null,null,{"$f":"IF('1. Ordersheet'!AX1112=\"\",\"\",'1. Ordersheet'!AX1112)","v":""},{"$f":"IF('1. Ordersheet'!AY1112=\"\",\"\",'1. Ordersheet'!AY1112)","v":""},{"$f":"IF('1. Ordersheet'!AZ1112=\"\",\"\",'1. Ordersheet'!AZ1112)","v":""},{"$f":"IF('1. Ordersheet'!BA1112=\"\",\"\",'1. Ordersheet'!BA1112)","v":""},{"$f":"IF('1. Ordersheet'!BC1112=\"\",\"\",'1. Ordersheet'!BC1112)","v":""},{"$f":"IF('1. Ordersheet'!BD1112=\"\",\"\",'1. Ordersheet'!BD1112)","v":""},{"$f":"IF('1. Ordersheet'!BE1112=\"\",\"\",'1. Ordersheet'!BE1112)","v":""},{"$f":"IF('1. Ordersheet'!BF1112=\"\",\"\",'1. Ordersheet'!BF1112)","v":""},{"$f":"IF('1. Ordersheet'!BG1112=\"\",\"\",'1. Ordersheet'!BG1112)","v":"ZWO"},{"$f":"IF('1. Ordersheet'!BH1112=\"\",\"\",'1. Ordersheet'!BH1112)","v":""},{"$f":"IF('1. Ordersheet'!BI1112=\"\",\"\",'1. Ordersheet'!BI1112)","v":""},{"$f":"IF('1. Ordersheet'!BJ1112=\"\",\"\",'1. Ordersheet'!BJ1112)","v":""},{"$f":"IF('1. Ordersheet'!BK1112=\"\",\"\",'1. Ordersheet'!BK1112)","v":""},{"$f":"IF('1. Ordersheet'!BL1112=\"\",\"\",'1. Ordersheet'!BL1112)","v":""}]
[{"$f":"IF('1. Ordersheet'!F1113=\"\",\"\",'1. Ordersheet'!F1113)","v":""},{"$f":"IF('1. Ordersheet'!G1113=\"\",\"\",'1. Ordersheet'!G1113)","v":""},{"$f":"IF('1. Ordersheet'!H1113=\"\",\"\",'1. Ordersheet'!H1113)","v":""},{"$f":"IF('1. Ordersheet'!I1113=\"\",\"\",'1. Ordersheet'!I1113)","v":""},{"$f":"IF('1. Ordersheet'!J1113=\"\",\"\",'1. Ordersheet'!J1113)","v":""},{"$f":"IF('1. Ordersheet'!K1113=\"\",\"\",'1. Ordersheet'!K1113)","v":""},{"$f":"IF('1. Ordersheet'!L1113=\"\",\"\",'1. Ordersheet'!L1113)","v":""},{"$f":"IF('1. Ordersheet'!M1113=\"\",\"\",'1. Ordersheet'!M1113)","v":""},{"$f":"IF('1. Ordersheet'!N1113=\"\",\"\",'1. Ordersheet'!N1113)","v":""},{"$f":"IF('1. Ordersheet'!O1113=\"\",\"\",'1. Ordersheet'!O1113)","v":{"$error":"#N/A"}},{"$f":"IF('1. Ordersheet'!P1113=\"\",\"\",'1. Ordersheet'!P1113)","v":{"$error":"#N/A"}},{"$f":"IF('1. Ordersheet'!Q1113=\"\",\"\",'1. Ordersheet'!Q1113)","v":""},{"$f":"IF('1. Ordersheet'!R1113=\"\",\"\",'1. Ordersheet'!R1113)","v":""},{"$f":"IF('1. Ordersheet'!S1113=\"\",\"\",'1. Ordersheet'!S1113)","v":""},{"$f":"IF('1. Ordersheet'!V1113=\"\",\"\",'1. Ordersheet'!V1113)","v":""},{"$f":"IF('1. Ordersheet'!W1113=\"\",\"\",'1. Ordersheet'!W1113)","v":""},{"$f":"IF('1. Ordersheet'!X1113=\"\",\"\",'1. Ordersheet'!X1113)","v":""},{"$f":"IF('1. Ordersheet'!Y1113=\"\",\"\",'1. Ordersheet'!Y1113)","v":""},{"$f":"IF('1. Ordersheet'!Z1113=\"\",\"\",'1. Ordersheet'!Z1113)","v":""},{"$f":"IF('1. Ordersheet'!AA1113=\"\",\"\",'1. Ordersheet'!AA1113)","v":""},null,{"$f":"IF('1. Ordersheet'!AS1113=\"\",\"\",'1. Ordersheet'!AS1113)","v":""},{"$f":"IF('1. Ordersheet'!AT1113=\"\",\"\",'1. Ordersheet'!AT1113)","v":""},null,null,null,null,null,null,null,{"$f":"IF('1. Ordersheet'!AX1113=\"\",\"\",'1. Ordersheet'!AX1113)","v":""},{"$f":"IF('1. Ordersheet'!AY1113=\"\",\"\",'1. Ordersheet'!AY1113)","v":""},{"$f":"IF('1. Ordersheet'!AZ1113=\"\",\"\",'1. Ordersheet'!AZ1113)","v":""},{"$f":"IF('1. Ordersheet'!BA1113=\"\",\"\",'1. Ordersheet'!BA1113)","v":""},{"$f":"IF('1. Ordersheet'!BC1113=\"\",\"\",'1. Ordersheet'!BC1113)","v":""},{"$f":"IF('1. Ordersheet'!BD1113=\"\",\"\",'1. Ordersheet'!BD1113)","v":""},{"$f":"IF('1. Ordersheet'!BE1113=\"\",\"\",'1. Ordersheet'!BE1113)","v":""},{"$f":"IF('1. Ordersheet'!BF1113=\"\",\"\",'1. Ordersheet'!BF1113)","v":""},{"$f":"IF('1. Ordersheet'!BG1113=\"\",\"\",'1. Ordersheet'!BG1113)","v":"ZWO"},{"$f":"IF('1. Ordersheet'!BH1113=\"\",\"\",'1. Ordersheet'!BH1113)","v":""},{"$f":"IF('1. Ordersheet'!BI1113=\"\",\"\",'1. Ordersheet'!BI1113)","v":""},{"$f":"IF('1. Ordersheet'!BJ1113=\"\",\"\",'1. Ordersheet'!BJ1113)","v":""},{"$f":"IF('1. Ordersheet'!BK1113=\"\",\"\",'1. Ordersheet'!BK1113)","v":""},{"$f":"IF('1. Ordersheet'!BL1113=\"\",\"\",'1. Ordersheet'!BL1113)","v":""}]
[{"$f":"IF('1. Ordersheet'!F1114=\"\",\"\",'1. Ordersheet'!F1114)","v":""},{"$f":"IF('1. Ordersheet'!G1114=\"\",\"\",'1. Ordersheet'!G1114)","v":""},{"$f":"IF('1. Ordersheet'!H1114=\"\",\"\",'1. Ordersheet'!H1114)","v":""},{"$f":"IF('1. Ordersheet'!I1114=\"\",\"\",'1. Ordersheet'!I1114)","v":""},{"$f":"IF('1. Ordersheet'!J1114=\"\",\"\",'1. Ordersheet'!J1114)","v":""},{"$f":"IF('1. Ordersheet'!K1114=\"\",\"\",'1. Ordersheet'!K1114)","v":""},{"$f":"IF('1. Ordersheet'!L1114=\"\",\"\",'1. Ordersheet'!L1114)","v":""},{"$f":"IF('1. Ordersheet'!M1114=\"\",\"\",'1. Ordersheet'!M1114)","v":""},{"$f":"IF('1. Ordersheet'!N1114=\"\",\"\",'1. Ordersheet'!N1114)","v":""},{"$f":"IF('1. Ordersheet'!O1114=\"\",\"\",'1. Ordersheet'!O1114)","v":{"$error":"#N/A"}},{"$f":"IF('1. Ordersheet'!P1114=\"\",\"\",'1. Ordersheet'!P1114)","v":{"$error":"#N/A"}},{"$f":"IF('1. Ordersheet'!Q1114=\"\",\"\",'1. Ordersheet'!Q1114)","v":""},{"$f":"IF('1. Ordersheet'!R1114=\"\",\"\",'1. Ordersheet'!R1114)","v":""},{"$f":"IF('1. Ordersheet'!S1114=\"\",\"\",'1. Ordersheet'!S1114)","v":""},{"$f":"IF('1. Ordersheet'!V1114=\"\",\"\",'1. Ordersheet'!V1114)","v":""},{"$f":"IF('1. Ordersheet'!W1114=\"\",\"\",'1. Ordersheet'!W1114)","v":""},{"$f":"IF('1. Ordersheet'!X1114=\"\",\"\",'1. Ordersheet'!X1114)","v":""},{"$f":"IF('1. Ordersheet'!Y1114=\"\",\"\",'1. Ordersheet'!Y1114)","v":""},{"$f":"IF('1. Ordersheet'!Z1114=\"\",\"\",'1. Ordersheet'!Z1114)","v":""},{"$f":"IF('1. Ordersheet'!AA1114=\"\",\"\",'1. Ordersheet'!AA1114)","v":""},null,{"$f":"IF('1. Ordersheet'!AS1114=\"\",\"\",'1. Ordersheet'!AS1114)","v":""},{"$f":"IF('1. Ordersheet'!AT1114=\"\",\"\",'1. Ordersheet'!AT1114)","v":""},null,null,null,null,null,null,null,{"$f":"IF('1. Ordersheet'!AX1114=\"\",\"\",'1. Ordersheet'!AX1114)","v":""},{"$f":"IF('1. Ordersheet'!AY1114=\"\",\"\",'1. Ordersheet'!AY1114)","v":""},{"$f":"IF('1. Ordersheet'!AZ1114=\"\",\"\",'1. Ordersheet'!AZ1114)","v":""},{"$f":"IF('1. Ordersheet'!BA1114=\"\",\"\",'1. Ordersheet'!BA1114)","v":""},{"$f":"IF('1. Ordersheet'!BC1114=\"\",\"\",'1. Ordersheet'!BC1114)","v":""},{"$f":"IF('1. Ordersheet'!BD1114=\"\",\"\",'1. Ordersheet'!BD1114)","v":""},{"$f":"IF('1. Ordersheet'!BE1114=\"\",\"\",'1. Ordersheet'!BE1114)","v":""},{"$f":"IF('1. Ordersheet'!BF1114=\"\",\"\",'1. Ordersheet'!BF1114)","v":""},{"$f":"IF('1. Ordersheet'!BG1114=\"\",\"\",'1. Ordersheet'!BG1114)","v":"ZWO"},{"$f":"IF('1. Ordersheet'!BH1114=\"\",\"\",'1. Ordersheet'!BH1114)","v":""},{"$f":"IF('1. Ordersheet'!BI1114=\"\",\"\",'1. Ordersheet'!BI1114)","v":""},{"$f":"IF('1. Ordersheet'!BJ1114=\"\",\"\",'1. Ordersheet'!BJ1114)","v":""},{"$f":"IF('1. Ordersheet'!BK1114=\"\",\"\",'1. Ordersheet'!BK1114)","v":""},{"$f":"IF('1. Ordersheet'!BL1114=\"\",\"\",'1. Ordersheet'!BL1114)","v":""}]
[{"$f":"IF('1. Ordersheet'!F1115=\"\",\"\",'1. Ordersheet'!F1115)","v":""},{"$f":"IF('1. Ordersheet'!G1115=\"\",\"\",'1. Ordersheet'!G1115)","v":""},{"$f":"IF('1. Ordersheet'!H1115=\"\",\"\",'1. Ordersheet'!H1115)","v":""},{"$f":"IF('1. Ordersheet'!I1115=\"\",\"\",'1. Ordersheet'!I1115)","v":""},{"$f":"IF('1. Ordersheet'!J1115=\"\",\"\",'1. Ordersheet'!J1115)","v":""},{"$f":"IF('1. Ordersheet'!K1115=\"\",\"\",'1. Ordersheet'!K1115)","v":""},{"$f":"IF('1. Ordersheet'!L1115=\"\",\"\",'1. Ordersheet'!L1115)","v":""},{"$f":"IF('1. Ordersheet'!M1115=\"\",\"\",'1. Ordersheet'!M1115)","v":""},{"$f":"IF('1. Ordersheet'!N1115=\"\",\"\",'1. Ordersheet'!N1115)","v":""},{"$f":"IF('1. Ordersheet'!O1115=\"\",\"\",'1. Ordersheet'!O1115)","v":{"$error":"#N/A"}},{"$f":"IF('1. Ordersheet'!P1115=\"\",\"\",'1. Ordersheet'!P1115)","v":{"$error":"#N/A"}},{"$f":"IF('1. Ordersheet'!Q1115=\"\",\"\",'1. Ordersheet'!Q1115)","v":""},{"$f":"IF('1. Ordersheet'!R1115=\"\",\"\",'1. Ordersheet'!R1115)","v":""},{"$f":"IF('1. Ordersheet'!S1115=\"\",\"\",'1. Ordersheet'!S1115)","v":""},{"$f":"IF('1. Ordersheet'!V1115=\"\",\"\",'1. Ordersheet'!V1115)","v":""},{"$f":"IF('1. Ordersheet'!W1115=\"\",\"\",'1. Ordersheet'!W1115)","v":""},{"$f":"IF('1. Ordersheet'!X1115=\"\",\"\",'1. Ordersheet'!X1115)","v":""},{"$f":"IF('1. Ordersheet'!Y1115=\"\",\"\",'1. Ordersheet'!Y1115)","v":""},{"$f":"IF('1. Ordersheet'!Z1115=\"\",\"\",'1. Ordersheet'!Z1115)","v":""},{"$f":"IF('1. Ordersheet'!AA1115=\"\",\"\",'1. Ordersheet'!AA1115)","v":""},null,{"$f":"IF('1. Ordersheet'!AS1115=\"\",\"\",'1. Ordersheet'!AS1115)","v":""},{"$f":"IF('1. Ordersheet'!AT1115=\"\",\"\",'1. Ordersheet'!AT1115)","v":""},null,null,null,null,null,null,null,{"$f":"IF('1. Ordersheet'!AX1115=\"\",\"\",'1. Ordersheet'!AX1115)","v":""},{"$f":"IF('1. Ordersheet'!AY1115=\"\",\"\",'1. Ordersheet'!AY1115)","v":""},{"$f":"IF('1. Ordersheet'!AZ1115=\"\",\"\",'1. Ordersheet'!AZ1115)","v":""},{"$f":"IF('1. Ordersheet'!BA1115=\"\",\"\",'1. Ordersheet'!BA1115)","v":""},{"$f":"IF('1. Ordersheet'!BC1115=\"\",\"\",'1. Ordersheet'!BC1115)","v":""},{"$f":"IF('1. Ordersheet'!BD1115=\"\",\"\",'1. Ordersheet'!BD1115)","v":""},{"$f":"IF('1. Ordersheet'!BE1115=\"\",\"\",'1. Ordersheet'!BE1115)","v":""},{"$f":"IF('1. Ordersheet'!BF1115=\"\",\"\",'1. Ordersheet'!BF1115)","v":""},{"$f":"IF('1. Ordersheet'!BG1115=\"\",\"\",'1. Ordersheet'!BG1115)","v":"ZWO"},{"$f":"IF('1. Ordersheet'!BH1115=\"\",\"\",'1. Ordersheet'!BH1115)","v":""},{"$f":"IF('1. Ordersheet'!BI1115=\"\",\"\",'1. Ordersheet'!BI1115)","v":""},{"$f":"IF('1. Ordersheet'!BJ1115=\"\",\"\",'1. Ordersheet'!BJ1115)","v":""},{"$f":"IF('1. Ordersheet'!BK1115=\"\",\"\",'1. Ordersheet'!BK1115)","v":""},{"$f":"IF('1. Ordersheet'!BL1115=\"\",\"\",'1. Ordersheet'!BL1115)","v":""}]
[{"$f":"IF('1. Ordersheet'!F1116=\"\",\"\",'1. Ordersheet'!F1116)","v":""},{"$f":"IF('1. Ordersheet'!G1116=\"\",\"\",'1. Ordersheet'!G1116)","v":""},{"$f":"IF('1. Ordersheet'!H1116=\"\",\"\",'1. Ordersheet'!H1116)","v":""},{"$f":"IF('1. Ordersheet'!I1116=\"\",\"\",'1. Ordersheet'!I1116)","v":""},{"$f":"IF('1. Ordersheet'!J1116=\"\",\"\",'1. Ordersheet'!J1116)","v":""},{"$f":"IF('1. Ordersheet'!K1116=\"\",\"\",'1. Ordersheet'!K1116)","v":""},{"$f":"IF('1. Ordersheet'!L1116=\"\",\"\",'1. Ordersheet'!L1116)","v":""},{"$f":"IF('1. Ordersheet'!M1116=\"\",\"\",'1. Ordersheet'!M1116)","v":""},{"$f":"IF('1. Ordersheet'!N1116=\"\",\"\",'1. Ordersheet'!N1116)","v":""},{"$f":"IF('1. Ordersheet'!O1116=\"\",\"\",'1. Ordersheet'!O1116)","v":{"$error":"#N/A"}},{"$f":"IF('1. Ordersheet'!P1116=\"\",\"\",'1. Ordersheet'!P1116)","v":{"$error":"#N/A"}},{"$f":"IF('1. Ordersheet'!Q1116=\"\",\"\",'1. Ordersheet'!Q1116)","v":""},{"$f":"IF('1. Ordersheet'!R1116=\"\",\"\",'1. Ordersheet'!R1116)","v":""},{"$f":"IF('1. Ordersheet'!S1116=\"\",\"\",'1. Ordersheet'!S1116)","v":""},{"$f":"IF('1. Ordersheet'!V1116=\"\",\"\",'1. Ordersheet'!V1116)","v":""},{"$f":"IF('1. Ordersheet'!W1116=\"\",\"\",'1. Ordersheet'!W1116)","v":""},{"$f":"IF('1. Ordersheet'!X1116=\"\",\"\",'1. Ordersheet'!X1116)","v":""},{"$f":"IF('1. Ordersheet'!Y1116=\"\",\"\",'1. Ordersheet'!Y1116)","v":""},{"$f":"IF('1. Ordersheet'!Z1116=\"\",\"\",'1. Ordersheet'!Z1116)","v":""},{"$f":"IF('1. Ordersheet'!AA1116=\"\",\"\",'1. Ordersheet'!AA1116)","v":""},null,{"$f":"IF('1. Ordersheet'!AS1116=\"\",\"\",'1. Ordersheet'!AS1116)","v":""},{"$f":"IF('1. Ordersheet'!AT1116=\"\",\"\",'1. Ordersheet'!AT1116)","v":""},null,null,null,null,null,null,null,{"$f":"IF('1. Ordersheet'!AX1116=\"\",\"\",'1. Ordersheet'!AX1116)","v":""},{"$f":"IF('1. Ordersheet'!AY1116=\"\",\"\",'1. Ordersheet'!AY1116)","v":""},{"$f":"IF('1. Ordersheet'!AZ1116=\"\",\"\",'1. Ordersheet'!AZ1116)","v":""},{"$f":"IF('1. Ordersheet'!BA1116=\"\",\"\",'1. Ordersheet'!BA1116)","v":""},{"$f":"IF('1. Ordersheet'!BC1116=\"\",\"\",'1. Ordersheet'!BC1116)","v":""},{"$f":"IF('1. Ordersheet'!BD1116=\"\",\"\",'1. Ordersheet'!BD1116)","v":""},{"$f":"IF('1. Ordersheet'!BE1116=\"\",\"\",'1. Ordersheet'!BE1116)","v":""},{"$f":"IF('1. Ordersheet'!BF1116=\"\",\"\",'1. Ordersheet'!BF1116)","v":""},{"$f":"IF('1. Ordersheet'!BG1116=\"\",\"\",'1. Ordersheet'!BG1116)","v":"ZWO"},{"$f":"IF('1. Ordersheet'!BH1116=\"\",\"\",'1. Ordersheet'!BH1116)","v":""},{"$f":"IF('1. Ordersheet'!BI1116=\"\",\"\",'1. Ordersheet'!BI1116)","v":""},{"$f":"IF('1. Ordersheet'!BJ1116=\"\",\"\",'1. Ordersheet'!BJ1116)","v":""},{"$f":"IF('1. Ordersheet'!BK1116=\"\",\"\",'1. Ordersheet'!BK1116)","v":""},{"$f":"IF('1. Ordersheet'!BL1116=\"\",\"\",'1. Ordersheet'!BL1116)","v":""}]
[{"$f":"IF('1. Ordersheet'!F1117=\"\",\"\",'1. Ordersheet'!F1117)","v":""},{"$f":"IF('1. Ordersheet'!G1117=\"\",\"\",'1. Ordersheet'!G1117)","v":""},{"$f":"IF('1. Ordersheet'!H1117=\"\",\"\",'1. Ordersheet'!H1117)","v":""},{"$f":"IF('1. Ordersheet'!I1117=\"\",\"\",'1. Ordersheet'!I1117)","v":""},{"$f":"IF('1. Ordersheet'!J1117=\"\",\"\",'1. Ordersheet'!J1117)","v":""},{"$f":"IF('1. Ordersheet'!K1117=\"\",\"\",'1. Ordersheet'!K1117)","v":""},{"$f":"IF('1. Ordersheet'!L1117=\"\",\"\",'1. Ordersheet'!L1117)","v":""},{"$f":"IF('1. Ordersheet'!M1117=\"\",\"\",'1. Ordersheet'!M1117)","v":""},{"$f":"IF('1. Ordersheet'!N1117=\"\",\"\",'1. Ordersheet'!N1117)","v":""},{"$f":"IF('1. Ordersheet'!O1117=\"\",\"\",'1. Ordersheet'!O1117)","v":{"$error":"#N/A"}},{"$f":"IF('1. Ordersheet'!P1117=\"\",\"\",'1. Ordersheet'!P1117)","v":{"$error":"#N/A"}},{"$f":"IF('1. Ordersheet'!Q1117=\"\",\"\",'1. Ordersheet'!Q1117)","v":""},{"$f":"IF('1. Ordersheet'!R1117=\"\",\"\",'1. Ordersheet'!R1117)","v":""},{"$f":"IF('1. Ordersheet'!S1117=\"\",\"\",'1. Ordersheet'!S1117)","v":""},{"$f":"IF('1. Ordersheet'!V1117=\"\",\"\",'1. Ordersheet'!V1117)","v":""},{"$f":"IF('1. Ordersheet'!W1117=\"\",\"\",'1. Ordersheet'!W1117)","v":""},{"$f":"IF('1. Ordersheet'!X1117=\"\",\"\",'1. Ordersheet'!X1117)","v":""},{"$f":"IF('1. Ordersheet'!Y1117=\"\",\"\",'1. Ordersheet'!Y1117)","v":""},{"$f":"IF('1. Ordersheet'!Z1117=\"\",\"\",'1. Ordersheet'!Z1117)","v":""},{"$f":"IF('1. Ordersheet'!AA1117=\"\",\"\",'1. Ordersheet'!AA1117)","v":""},null,{"$f":"IF('1. Ordersheet'!AS1117=\"\",\"\",'1. Ordersheet'!AS1117)","v":""},{"$f":"IF('1. Ordersheet'!AT1117=\"\",\"\",'1. Ordersheet'!AT1117)","v":""},null,null,null,null,null,null,null,{"$f":"IF('1. Ordersheet'!AX1117=\"\",\"\",'1. Ordersheet'!AX1117)","v":""},{"$f":"IF('1. Ordersheet'!AY1117=\"\",\"\",'1. Ordersheet'!AY1117)","v":""},{"$f":"IF('1. Ordersheet'!AZ1117=\"\",\"\",'1. Ordersheet'!AZ1117)","v":""},{"$f":"IF('1. Ordersheet'!BA1117=\"\",\"\",'1. Ordersheet'!BA1117)","v":""},{"$f":"IF('1. Ordersheet'!BC1117=\"\",\"\",'1. Ordersheet'!BC1117)","v":""},{"$f":"IF('1. Ordersheet'!BD1117=\"\",\"\",'1. Ordersheet'!BD1117)","v":""},{"$f":"IF('1. Ordersheet'!BE1117=\"\",\"\",'1. Ordersheet'!BE1117)","v":""},{"$f":"IF('1. Ordersheet'!BF1117=\"\",\"\",'1. Ordersheet'!BF1117)","v":""},{"$f":"IF('1. Ordersheet'!BG1117=\"\",\"\",'1. Ordersheet'!BG1117)","v":"ZWO"},{"$f":"IF('1. Ordersheet'!BH1117=\"\",\"\",'1. Ordersheet'!BH1117)","v":""},{"$f":"IF('1. Ordersheet'!BI1117=\"\",\"\",'1. Ordersheet'!BI1117)","v":""},{"$f":"IF('1. Ordersheet'!BJ1117=\"\",\"\",'1. Ordersheet'!BJ1117)","v":""},{"$f":"IF('1. Ordersheet'!BK1117=\"\",\"\",'1. Ordersheet'!BK1117)","v":""},{"$f":"IF('1. Ordersheet'!BL1117=\"\",\"\",'1. Ordersheet'!BL1117)","v":""}]
[{"$f":"IF('1. Ordersheet'!F1118=\"\",\"\",'1. Ordersheet'!F1118)","v":""},{"$f":"IF('1. Ordersheet'!G1118=\"\",\"\",'1. Ordersheet'!G1118)","v":""},{"$f":"IF('1. Ordersheet'!H1118=\"\",\"\",'1. Ordersheet'!H1118)","v":""},{"$f":"IF('1. Ordersheet'!I1118=\"\",\"\",'1. Ordersheet'!I1118)","v":""},{"$f":"IF('1. Ordersheet'!J1118=\"\",\"\",'1. Ordersheet'!J1118)","v":""},{"$f":"IF('1. Ordersheet'!K1118=\"\",\"\",'1. Ordersheet'!K1118)","v":""},{"$f":"IF('1. Ordersheet'!L1118=\"\",\"\",'1. Ordersheet'!L1118)","v":""},{"$f":"IF('1. Ordersheet'!M1118=\"\",\"\",'1. Ordersheet'!M1118)","v":""},{"$f":"IF('1. Ordersheet'!N1118=\"\",\"\",'1. Ordersheet'!N1118)","v":""},{"$f":"IF('1. Ordersheet'!O1118=\"\",\"\",'1. Ordersheet'!O1118)","v":{"$error":"#N/A"}},{"$f":"IF('1. Ordersheet'!P1118=\"\",\"\",'1. Ordersheet'!P1118)","v":{"$error":"#N/A"}},{"$f":"IF('1. Ordersheet'!Q1118=\"\",\"\",'1. Ordersheet'!Q1118)","v":""},{"$f":"IF('1. Ordersheet'!R1118=\"\",\"\",'1. Ordersheet'!R1118)","v":""},{"$f":"IF('1. Ordersheet'!S1118=\"\",\"\",'1. Ordersheet'!S1118)","v":""},{"$f":"IF('1. Ordersheet'!V1118=\"\",\"\",'1. Ordersheet'!V1118)","v":""},{"$f":"IF('1. Ordersheet'!W1118=\"\",\"\",'1. Ordersheet'!W1118)","v":""},{"$f":"IF('1. Ordersheet'!X1118=\"\",\"\",'1. Ordersheet'!X1118)","v":""},{"$f":"IF('1. Ordersheet'!Y1118=\"\",\"\",'1. Ordersheet'!Y1118)","v":""},{"$f":"IF('1. Ordersheet'!Z1118=\"\",\"\",'1. Ordersheet'!Z1118)","v":""},{"$f":"IF('1. Ordersheet'!AA1118=\"\",\"\",'1. Ordersheet'!AA1118)","v":""},null,{"$f":"IF('1. Ordersheet'!AS1118=\"\",\"\",'1. Ordersheet'!AS1118)","v":""},{"$f":"IF('1. Ordersheet'!AT1118=\"\",\"\",'1. Ordersheet'!AT1118)","v":""},null,null,null,null,null,null,null,{"$f":"IF('1. Ordersheet'!AX1118=\"\",\"\",'1. Ordersheet'!AX1118)","v":""},{"$f":"IF('1. Ordersheet'!AY1118=\"\",\"\",'1. Ordersheet'!AY1118)","v":""},{"$f":"IF('1. Ordersheet'!AZ1118=\"\",\"\",'1. Ordersheet'!AZ1118)","v":""},{"$f":"IF('1. Ordersheet'!BA1118=\"\",\"\",'1. Ordersheet'!BA1118)","v":""},{"$f":"IF('1. Ordersheet'!BC1118=\"\",\"\",'1. Ordersheet'!BC1118)","v":""},{"$f":"IF('1. Ordersheet'!BD1118=\"\",\"\",'1. Ordersheet'!BD1118)","v":""},{"$f":"IF('1. Ordersheet'!BE1118=\"\",\"\",'1. Ordersheet'!BE1118)","v":""},{"$f":"IF('1. Ordersheet'!BF1118=\"\",\"\",'1. Ordersheet'!BF1118)","v":""},{"$f":"IF('1. Ordersheet'!BG1118=\"\",\"\",'1. Ordersheet'!BG1118)","v":"ZWO"},{"$f":"IF('1. Ordersheet'!BH1118=\"\",\"\",'1. Ordersheet'!BH1118)","v":""},{"$f":"IF('1. Ordersheet'!BI1118=\"\",\"\",'1. Ordersheet'!BI1118)","v":""},{"$f":"IF('1. Ordersheet'!BJ1118=\"\",\"\",'1. Ordersheet'!BJ1118)","v":""},{"$f":"IF('1. Ordersheet'!BK1118=\"\",\"\",'1. Ordersheet'!BK1118)","v":""},{"$f":"IF('1. Ordersheet'!BL1118=\"\",\"\",'1. Ordersheet'!BL1118)","v":""}]
[{"$f":"IF('1. Ordersheet'!F1119=\"\",\"\",'1. Ordersheet'!F1119)","v":""},{"$f":"IF('1. Ordersheet'!G1119=\"\",\"\",'1. Ordersheet'!G1119)","v":""},{"$f":"IF('1. Ordersheet'!H1119=\"\",\"\",'1. Ordersheet'!H1119)","v":""},{"$f":"IF('1. Ordersheet'!I1119=\"\",\"\",'1. Ordersheet'!I1119)","v":""},{"$f":"IF('1. Ordersheet'!J1119=\"\",\"\",'1. Ordersheet'!J1119)","v":""},{"$f":"IF('1. Ordersheet'!K1119=\"\",\"\",'1. Ordersheet'!K1119)","v":""},{"$f":"IF('1. Ordersheet'!L1119=\"\",\"\",'1. Ordersheet'!L1119)","v":""},{"$f":"IF('1. Ordersheet'!M1119=\"\",\"\",'1. Ordersheet'!M1119)","v":""},{"$f":"IF('1. Ordersheet'!N1119=\"\",\"\",'1. Ordersheet'!N1119)","v":""},{"$f":"IF('1. Ordersheet'!O1119=\"\",\"\",'1. Ordersheet'!O1119)","v":{"$error":"#N/A"}},{"$f":"IF('1. Ordersheet'!P1119=\"\",\"\",'1. Ordersheet'!P1119)","v":{"$error":"#N/A"}},{"$f":"IF('1. Ordersheet'!Q1119=\"\",\"\",'1. Ordersheet'!Q1119)","v":""},{"$f":"IF('1. Ordersheet'!R1119=\"\",\"\",'1. Ordersheet'!R1119)","v":""},{"$f":"IF('1. Ordersheet'!S1119=\"\",\"\",'1. Ordersheet'!S1119)","v":""},{"$f":"IF('1. Ordersheet'!V1119=\"\",\"\",'1. Ordersheet'!V1119)","v":""},{"$f":"IF('1. Ordersheet'!W1119=\"\",\"\",'1. Ordersheet'!W1119)","v":""},{"$f":"IF('1. Ordersheet'!X1119=\"\",\"\",'1. Ordersheet'!X1119)","v":""},{"$f":"IF('1. Ordersheet'!Y1119=\"\",\"\",'1. Ordersheet'!Y1119)","v":""},{"$f":"IF('1. Ordersheet'!Z1119=\"\",\"\",'1. Ordersheet'!Z1119)","v":""},{"$f":"IF('1. Ordersheet'!AA1119=\"\",\"\",'1. Ordersheet'!AA1119)","v":""},null,{"$f":"IF('1. Ordersheet'!AS1119=\"\",\"\",'1. Ordersheet'!AS1119)","v":""},{"$f":"IF('1. Ordersheet'!AT1119=\"\",\"\",'1. Ordersheet'!AT1119)","v":""},null,null,null,null,null,null,null,{"$f":"IF('1. Ordersheet'!AX1119=\"\",\"\",'1. Ordersheet'!AX1119)","v":""},{"$f":"IF('1. Ordersheet'!AY1119=\"\",\"\",'1. Ordersheet'!AY1119)","v":""},{"$f":"IF('1. Ordersheet'!AZ1119=\"\",\"\",'1. Ordersheet'!AZ1119)","v":""},{"$f":"IF('1. Ordersheet'!BA1119=\"\",\"\",'1. Ordersheet'!BA1119)","v":""},{"$f":"IF('1. Ordersheet'!BC1119=\"\",\"\",'1. Ordersheet'!BC1119)","v":""},{"$f":"IF('1. Ordersheet'!BD1119=\"\",\"\",'1. Ordersheet'!BD1119)","v":""},{"$f":"IF('1. Ordersheet'!BE1119=\"\",\"\",'1. Ordersheet'!BE1119)","v":""},{"$f":"IF('1. Ordersheet'!BF1119=\"\",\"\",'1. Ordersheet'!BF1119)","v":""},{"$f":"IF('1. Ordersheet'!BG1119=\"\",\"\",'1. Ordersheet'!BG1119)","v":"ZWO"},{"$f":"IF('1. Ordersheet'!BH1119=\"\",\"\",'1. Ordersheet'!BH1119)","v":""},{"$f":"IF('1. Ordersheet'!BI1119=\"\",\"\",'1. Ordersheet'!BI1119)","v":""},{"$f":"IF('1. Ordersheet'!BJ1119=\"\",\"\",'1. Ordersheet'!BJ1119)","v":""},{"$f":"IF('1. Ordersheet'!BK1119=\"\",\"\",'1. Ordersheet'!BK1119)","v":""},{"$f":"IF('1. Ordersheet'!BL1119=\"\",\"\",'1. Ordersheet'!BL1119)","v":""}]
[{"$f":"IF('1. Ordersheet'!F1120=\"\",\"\",'1. Ordersheet'!F1120)","v":""},{"$f":"IF('1. Ordersheet'!G1120=\"\",\"\",'1. Ordersheet'!G1120)","v":""},{"$f":"IF('1. Ordersheet'!H1120=\"\",\"\",'1. Ordersheet'!H1120)","v":""},{"$f":"IF('1. Ordersheet'!I1120=\"\",\"\",'1. Ordersheet'!I1120)","v":""},{"$f":"IF('1. Ordersheet'!J1120=\"\",\"\",'1. Ordersheet'!J1120)","v":""},{"$f":"IF('1. Ordersheet'!K1120=\"\",\"\",'1. Ordersheet'!K1120)","v":""},{"$f":"IF('1. Ordersheet'!L1120=\"\",\"\",'1. Ordersheet'!L1120)","v":""},{"$f":"IF('1. Ordersheet'!M1120=\"\",\"\",'1. Ordersheet'!M1120)","v":""},{"$f":"IF('1. Ordersheet'!N1120=\"\",\"\",'1. Ordersheet'!N1120)","v":""},{"$f":"IF('1. Ordersheet'!O1120=\"\",\"\",'1. Ordersheet'!O1120)","v":{"$error":"#N/A"}},{"$f":"IF('1. Ordersheet'!P1120=\"\",\"\",'1. Ordersheet'!P1120)","v":{"$error":"#N/A"}},{"$f":"IF('1. Ordersheet'!Q1120=\"\",\"\",'1. Ordersheet'!Q1120)","v":""},{"$f":"IF('1. Ordersheet'!R1120=\"\",\"\",'1. Ordersheet'!R1120)","v":""},{"$f":"IF('1. Ordersheet'!S1120=\"\",\"\",'1. Ordersheet'!S1120)","v":""},{"$f":"IF('1. Ordersheet'!V1120=\"\",\"\",'1. Ordersheet'!V1120)","v":""},{"$f":"IF('1. Ordersheet'!W1120=\"\",\"\",'1. Ordersheet'!W1120)","v":""},{"$f":"IF('1. Ordersheet'!X1120=\"\",\"\",'1. Ordersheet'!X1120)","v":""},{"$f":"IF('1. Ordersheet'!Y1120=\"\",\"\",'1. Ordersheet'!Y1120)","v":""},{"$f":"IF('1. Ordersheet'!Z1120=\"\",\"\",'1. Ordersheet'!Z1120)","v":""},{"$f":"IF('1. Ordersheet'!AA1120=\"\",\"\",'1. Ordersheet'!AA1120)","v":""},null,{"$f":"IF('1. Ordersheet'!AS1120=\"\",\"\",'1. Ordersheet'!AS1120)","v":""},{"$f":"IF('1. Ordersheet'!AT1120=\"\",\"\",'1. Ordersheet'!AT1120)","v":""},null,null,null,null,null,null,null,{"$f":"IF('1. Ordersheet'!AX1120=\"\",\"\",'1. Ordersheet'!AX1120)","v":""},{"$f":"IF('1. Ordersheet'!AY1120=\"\",\"\",'1. Ordersheet'!AY1120)","v":""},{"$f":"IF('1. Ordersheet'!AZ1120=\"\",\"\",'1. Ordersheet'!AZ1120)","v":""},{"$f":"IF('1. Ordersheet'!BA1120=\"\",\"\",'1. Ordersheet'!BA1120)","v":""},{"$f":"IF('1. Ordersheet'!BC1120=\"\",\"\",'1. Ordersheet'!BC1120)","v":""},{"$f":"IF('1. Ordersheet'!BD1120=\"\",\"\",'1. Ordersheet'!BD1120)","v":""},{"$f":"IF('1. Ordersheet'!BE1120=\"\",\"\",'1. Ordersheet'!BE1120)","v":""},{"$f":"IF('1. Ordersheet'!BF1120=\"\",\"\",'1. Ordersheet'!BF1120)","v":""},{"$f":"IF('1. Ordersheet'!BG1120=\"\",\"\",'1. Ordersheet'!BG1120)","v":"ZWO"},{"$f":"IF('1. Ordersheet'!BH1120=\"\",\"\",'1. Ordersheet'!BH1120)","v":""},{"$f":"IF('1. Ordersheet'!BI1120=\"\",\"\",'1. Ordersheet'!BI1120)","v":""},{"$f":"IF('1. Ordersheet'!BJ1120=\"\",\"\",'1. Ordersheet'!BJ1120)","v":""},{"$f":"IF('1. Ordersheet'!BK1120=\"\",\"\",'1. Ordersheet'!BK1120)","v":""},{"$f":"IF('1. Ordersheet'!BL1120=\"\",\"\",'1. Ordersheet'!BL1120)","v":""}]
[{"$f":"IF('1. Ordersheet'!F1121=\"\",\"\",'1. Ordersheet'!F1121)","v":""},{"$f":"IF('1. Ordersheet'!G1121=\"\",\"\",'1. Ordersheet'!G1121)","v":""},{"$f":"IF('1. Ordersheet'!H1121=\"\",\"\",'1. Ordersheet'!H1121)","v":""},{"$f":"IF('1. Ordersheet'!I1121=\"\",\"\",'1. Ordersheet'!I1121)","v":""},{"$f":"IF('1. Ordersheet'!J1121=\"\",\"\",'1. Ordersheet'!J1121)","v":""},{"$f":"IF('1. Ordersheet'!K1121=\"\",\"\",'1. Ordersheet'!K1121)","v":""},{"$f":"IF('1. Ordersheet'!L1121=\"\",\"\",'1. Ordersheet'!L1121)","v":""},{"$f":"IF('1. Ordersheet'!M1121=\"\",\"\",'1. Ordersheet'!M1121)","v":""},{"$f":"IF('1. Ordersheet'!N1121=\"\",\"\",'1. Ordersheet'!N1121)","v":""},{"$f":"IF('1. Ordersheet'!O1121=\"\",\"\",'1. Ordersheet'!O1121)","v":{"$error":"#N/A"}},{"$f":"IF('1. Ordersheet'!P1121=\"\",\"\",'1. Ordersheet'!P1121)","v":{"$error":"#N/A"}},{"$f":"IF('1. Ordersheet'!Q1121=\"\",\"\",'1. Ordersheet'!Q1121)","v":""},{"$f":"IF('1. Ordersheet'!R1121=\"\",\"\",'1. Ordersheet'!R1121)","v":""},{"$f":"IF('1. Ordersheet'!S1121=\"\",\"\",'1. Ordersheet'!S1121)","v":""},{"$f":"IF('1. Ordersheet'!V1121=\"\",\"\",'1. Ordersheet'!V1121)","v":""},{"$f":"IF('1. Ordersheet'!W1121=\"\",\"\",'1. Ordersheet'!W1121)","v":""},{"$f":"IF('1. Ordersheet'!X1121=\"\",\"\",'1. Ordersheet'!X1121)","v":""},{"$f":"IF('1. Ordersheet'!Y1121=\"\",\"\",'1. Ordersheet'!Y1121)","v":""},{"$f":"IF('1. Ordersheet'!Z1121=\"\",\"\",'1. Ordersheet'!Z1121)","v":""},{"$f":"IF('1. Ordersheet'!AA1121=\"\",\"\",'1. Ordersheet'!AA1121)","v":""},null,{"$f":"IF('1. Ordersheet'!AS1121=\"\",\"\",'1. Ordersheet'!AS1121)","v":""},{"$f":"IF('1. Ordersheet'!AT1121=\"\",\"\",'1. Ordersheet'!AT1121)","v":""},null,null,null,null,null,null,null,{"$f":"IF('1. Ordersheet'!AX1121=\"\",\"\",'1. Ordersheet'!AX1121)","v":""},{"$f":"IF('1. Ordersheet'!AY1121=\"\",\"\",'1. Ordersheet'!AY1121)","v":""},{"$f":"IF('1. Ordersheet'!AZ1121=\"\",\"\",'1. Ordersheet'!AZ1121)","v":""},{"$f":"IF('1. Ordersheet'!BA1121=\"\",\"\",'1. Ordersheet'!BA1121)","v":""},{"$f":"IF('1. Ordersheet'!BC1121=\"\",\"\",'1. Ordersheet'!BC1121)","v":""},{"$f":"IF('1. Ordersheet'!BD1121=\"\",\"\",'1. Ordersheet'!BD1121)","v":""},{"$f":"IF('1. Ordersheet'!BE1121=\"\",\"\",'1. Ordersheet'!BE1121)","v":""},{"$f":"IF('1. Ordersheet'!BF1121=\"\",\"\",'1. Ordersheet'!BF1121)","v":""},{"$f":"IF('1. Ordersheet'!BG1121=\"\",\"\",'1. Ordersheet'!BG1121)","v":"ZWO"},{"$f":"IF('1. Ordersheet'!BH1121=\"\",\"\",'1. Ordersheet'!BH1121)","v":""},{"$f":"IF('1. Ordersheet'!BI1121=\"\",\"\",'1. Ordersheet'!BI1121)","v":""},{"$f":"IF('1. Ordersheet'!BJ1121=\"\",\"\",'1. Ordersheet'!BJ1121)","v":""},{"$f":"IF('1. Ordersheet'!BK1121=\"\",\"\",'1. Ordersheet'!BK1121)","v":""},{"$f":"IF('1. Ordersheet'!BL1121=\"\",\"\",'1. Ordersheet'!BL1121)","v":""}]
[{"$f":"IF('1. Ordersheet'!F1122=\"\",\"\",'1. Ordersheet'!F1122)","v":""},{"$f":"IF('1. Ordersheet'!G1122=\"\",\"\",'1. Ordersheet'!G1122)","v":""},{"$f":"IF('1. Ordersheet'!H1122=\"\",\"\",'1. Ordersheet'!H1122)","v":""},{"$f":"IF('1. Ordersheet'!I1122=\"\",\"\",'1. Ordersheet'!I1122)","v":""},{"$f":"IF('1. Ordersheet'!J1122=\"\",\"\",'1. Ordersheet'!J1122)","v":""},{"$f":"IF('1. Ordersheet'!K1122=\"\",\"\",'1. Ordersheet'!K1122)","v":""},{"$f":"IF('1. Ordersheet'!L1122=\"\",\"\",'1. Ordersheet'!L1122)","v":""},{"$f":"IF('1. Ordersheet'!M1122=\"\",\"\",'1. Ordersheet'!M1122)","v":""},{"$f":"IF('1. Ordersheet'!N1122=\"\",\"\",'1. Ordersheet'!N1122)","v":""},{"$f":"IF('1. Ordersheet'!O1122=\"\",\"\",'1. Ordersheet'!O1122)","v":{"$error":"#N/A"}},{"$f":"IF('1. Ordersheet'!P1122=\"\",\"\",'1. Ordersheet'!P1122)","v":{"$error":"#N/A"}},{"$f":"IF('1. Ordersheet'!Q1122=\"\",\"\",'1. Ordersheet'!Q1122)","v":""},{"$f":"IF('1. Ordersheet'!R1122=\"\",\"\",'1. Ordersheet'!R1122)","v":""},{"$f":"IF('1. Ordersheet'!S1122=\"\",\"\",'1. Ordersheet'!S1122)","v":""},{"$f":"IF('1. Ordersheet'!V1122=\"\",\"\",'1. Ordersheet'!V1122)","v":""},{"$f":"IF('1. Ordersheet'!W1122=\"\",\"\",'1. Ordersheet'!W1122)","v":""},{"$f":"IF('1. Ordersheet'!X1122=\"\",\"\",'1. Ordersheet'!X1122)","v":""},{"$f":"IF('1. Ordersheet'!Y1122=\"\",\"\",'1. Ordersheet'!Y1122)","v":""},{"$f":"IF('1. Ordersheet'!Z1122=\"\",\"\",'1. Ordersheet'!Z1122)","v":""},{"$f":"IF('1. Ordersheet'!AA1122=\"\",\"\",'1. Ordersheet'!AA1122)","v":""},null,{"$f":"IF('1. Ordersheet'!AS1122=\"\",\"\",'1. Ordersheet'!AS1122)","v":""},{"$f":"IF('1. Ordersheet'!AT1122=\"\",\"\",'1. Ordersheet'!AT1122)","v":""},null,null,null,null,null,null,null,{"$f":"IF('1. Ordersheet'!AX1122=\"\",\"\",'1. Ordersheet'!AX1122)","v":""},{"$f":"IF('1. Ordersheet'!AY1122=\"\",\"\",'1. Ordersheet'!AY1122)","v":""},{"$f":"IF('1. Ordersheet'!AZ1122=\"\",\"\",'1. Ordersheet'!AZ1122)","v":""},{"$f":"IF('1. Ordersheet'!BA1122=\"\",\"\",'1. Ordersheet'!BA1122)","v":""},{"$f":"IF('1. Ordersheet'!BC1122=\"\",\"\",'1. Ordersheet'!BC1122)","v":""},{"$f":"IF('1. Ordersheet'!BD1122=\"\",\"\",'1. Ordersheet'!BD1122)","v":""},{"$f":"IF('1. Ordersheet'!BE1122=\"\",\"\",'1. Ordersheet'!BE1122)","v":""},{"$f":"IF('1. Ordersheet'!BF1122=\"\",\"\",'1. Ordersheet'!BF1122)","v":""},{"$f":"IF('1. Ordersheet'!BG1122=\"\",\"\",'1. Ordersheet'!BG1122)","v":"ZWO"},{"$f":"IF('1. Ordersheet'!BH1122=\"\",\"\",'1. Ordersheet'!BH1122)","v":""},{"$f":"IF('1. Ordersheet'!BI1122=\"\",\"\",'1. Ordersheet'!BI1122)","v":""},{"$f":"IF('1. Ordersheet'!BJ1122=\"\",\"\",'1. Ordersheet'!BJ1122)","v":""},{"$f":"IF('1. Ordersheet'!BK1122=\"\",\"\",'1. Ordersheet'!BK1122)","v":""},{"$f":"IF('1. Ordersheet'!BL1122=\"\",\"\",'1. Ordersheet'!BL1122)","v":""}]
[{"$f":"IF('1. Ordersheet'!F1123=\"\",\"\",'1. Ordersheet'!F1123)","v":""},{"$f":"IF('1. Ordersheet'!G1123=\"\",\"\",'1. Ordersheet'!G1123)","v":""},{"$f":"IF('1. Ordersheet'!H1123=\"\",\"\",'1. Ordersheet'!H1123)","v":""},{"$f":"IF('1. Ordersheet'!I1123=\"\",\"\",'1. Ordersheet'!I1123)","v":""},{"$f":"IF('1. Ordersheet'!J1123=\"\",\"\",'1. Ordersheet'!J1123)","v":""},{"$f":"IF('1. Ordersheet'!K1123=\"\",\"\",'1. Ordersheet'!K1123)","v":""},{"$f":"IF('1. Ordersheet'!L1123=\"\",\"\",'1. Ordersheet'!L1123)","v":""},{"$f":"IF('1. Ordersheet'!M1123=\"\",\"\",'1. Ordersheet'!M1123)","v":""},{"$f":"IF('1. Ordersheet'!N1123=\"\",\"\",'1. Ordersheet'!N1123)","v":""},{"$f":"IF('1. Ordersheet'!O1123=\"\",\"\",'1. Ordersheet'!O1123)","v":{"$error":"#N/A"}},{"$f":"IF('1. Ordersheet'!P1123=\"\",\"\",'1. Ordersheet'!P1123)","v":{"$error":"#N/A"}},{"$f":"IF('1. Ordersheet'!Q1123=\"\",\"\",'1. Ordersheet'!Q1123)","v":""},{"$f":"IF('1. Ordersheet'!R1123=\"\",\"\",'1. Ordersheet'!R1123)","v":""},{"$f":"IF('1. Ordersheet'!S1123=\"\",\"\",'1. Ordersheet'!S1123)","v":""},{"$f":"IF('1. Ordersheet'!V1123=\"\",\"\",'1. Ordersheet'!V1123)","v":""},{"$f":"IF('1. Ordersheet'!W1123=\"\",\"\",'1. Ordersheet'!W1123)","v":""},{"$f":"IF('1. Ordersheet'!X1123=\"\",\"\",'1. Ordersheet'!X1123)","v":""},{"$f":"IF('1. Ordersheet'!Y1123=\"\",\"\",'1. Ordersheet'!Y1123)","v":""},{"$f":"IF('1. Ordersheet'!Z1123=\"\",\"\",'1. Ordersheet'!Z1123)","v":""},{"$f":"IF('1. Ordersheet'!AA1123=\"\",\"\",'1. Ordersheet'!AA1123)","v":""},null,{"$f":"IF('1. Ordersheet'!AS1123=\"\",\"\",'1. Ordersheet'!AS1123)","v":""},{"$f":"IF('1. Ordersheet'!AT1123=\"\",\"\",'1. Ordersheet'!AT1123)","v":""},null,null,null,null,null,null,null,{"$f":"IF('1. Ordersheet'!AX1123=\"\",\"\",'1. Ordersheet'!AX1123)","v":""},{"$f":"IF('1. Ordersheet'!AY1123=\"\",\"\",'1. Ordersheet'!AY1123)","v":""},{"$f":"IF('1. Ordersheet'!AZ1123=\"\",\"\",'1. Ordersheet'!AZ1123)","v":""},{"$f":"IF('1. Ordersheet'!BA1123=\"\",\"\",'1. Ordersheet'!BA1123)","v":""},{"$f":"IF('1. Ordersheet'!BC1123=\"\",\"\",'1. Ordersheet'!BC1123)","v":""},{"$f":"IF('1. Ordersheet'!BD1123=\"\",\"\",'1. Ordersheet'!BD1123)","v":""},{"$f":"IF('1. Ordersheet'!BE1123=\"\",\"\",'1. Ordersheet'!BE1123)","v":""},{"$f":"IF('1. Ordersheet'!BF1123=\"\",\"\",'1. Ordersheet'!BF1123)","v":""},{"$f":"IF('1. Ordersheet'!BG1123=\"\",\"\",'1. Ordersheet'!BG1123)","v":"ZWO"},{"$f":"IF('1. Ordersheet'!BH1123=\"\",\"\",'1. Ordersheet'!BH1123)","v":""},{"$f":"IF('1. Ordersheet'!BI1123=\"\",\"\",'1. Ordersheet'!BI1123)","v":""},{"$f":"IF('1. Ordersheet'!BJ1123=\"\",\"\",'1. Ordersheet'!BJ1123)","v":""},{"$f":"IF('1. Ordersheet'!BK1123=\"\",\"\",'1. Ordersheet'!BK1123)","v":""},{"$f":"IF('1. Ordersheet'!BL1123=\"\",\"\",'1. Ordersheet'!BL1123)","v":""}]
[{"$f":"IF('1. Ordersheet'!F1124=\"\",\"\",'1. Ordersheet'!F1124)","v":""},{"$f":"IF('1. Ordersheet'!G1124=\"\",\"\",'1. Ordersheet'!G1124)","v":""},{"$f":"IF('1. Ordersheet'!H1124=\"\",\"\",'1. Ordersheet'!H1124)","v":""},{"$f":"IF('1. Ordersheet'!I1124=\"\",\"\",'1. Ordersheet'!I1124)","v":""},{"$f":"IF('1. Ordersheet'!J1124=\"\",\"\",'1. Ordersheet'!J1124)","v":""},{"$f":"IF('1. Ordersheet'!K1124=\"\",\"\",'1. Ordersheet'!K1124)","v":""},{"$f":"IF('1. Ordersheet'!L1124=\"\",\"\",'1. Ordersheet'!L1124)","v":""},{"$f":"IF('1. Ordersheet'!M1124=\"\",\"\",'1. Ordersheet'!M1124)","v":""},{"$f":"IF('1. Ordersheet'!N1124=\"\",\"\",'1. Ordersheet'!N1124)","v":""},{"$f":"IF('1. Ordersheet'!O1124=\"\",\"\",'1. Ordersheet'!O1124)","v":{"$error":"#N/A"}},{"$f":"IF('1. Ordersheet'!P1124=\"\",\"\",'1. Ordersheet'!P1124)","v":{"$error":"#N/A"}},{"$f":"IF('1. Ordersheet'!Q1124=\"\",\"\",'1. Ordersheet'!Q1124)","v":""},{"$f":"IF('1. Ordersheet'!R1124=\"\",\"\",'1. Ordersheet'!R1124)","v":""},{"$f":"IF('1. Ordersheet'!S1124=\"\",\"\",'1. Ordersheet'!S1124)","v":""},{"$f":"IF('1. Ordersheet'!V1124=\"\",\"\",'1. Ordersheet'!V1124)","v":""},{"$f":"IF('1. Ordersheet'!W1124=\"\",\"\",'1. Ordersheet'!W1124)","v":""},{"$f":"IF('1. Ordersheet'!X1124=\"\",\"\",'1. Ordersheet'!X1124)","v":""},{"$f":"IF('1. Ordersheet'!Y1124=\"\",\"\",'1. Ordersheet'!Y1124)","v":""},{"$f":"IF('1. Ordersheet'!Z1124=\"\",\"\",'1. Ordersheet'!Z1124)","v":""},{"$f":"IF('1. Ordersheet'!AA1124=\"\",\"\",'1. Ordersheet'!AA1124)","v":""},null,{"$f":"IF('1. Ordersheet'!AS1124=\"\",\"\",'1. Ordersheet'!AS1124)","v":""},{"$f":"IF('1. Ordersheet'!AT1124=\"\",\"\",'1. Ordersheet'!AT1124)","v":""},null,null,null,null,null,null,null,{"$f":"IF('1. Ordersheet'!AX1124=\"\",\"\",'1. Ordersheet'!AX1124)","v":""},{"$f":"IF('1. Ordersheet'!AY1124=\"\",\"\",'1. Ordersheet'!AY1124)","v":""},{"$f":"IF('1. Ordersheet'!AZ1124=\"\",\"\",'1. Ordersheet'!AZ1124)","v":""},{"$f":"IF('1. Ordersheet'!BA1124=\"\",\"\",'1. Ordersheet'!BA1124)","v":""},{"$f":"IF('1. Ordersheet'!BC1124=\"\",\"\",'1. Ordersheet'!BC1124)","v":""},{"$f":"IF('1. Ordersheet'!BD1124=\"\",\"\",'1. Ordersheet'!BD1124)","v":""},{"$f":"IF('1. Ordersheet'!BE1124=\"\",\"\",'1. Ordersheet'!BE1124)","v":""},{"$f":"IF('1. Ordersheet'!BF1124=\"\",\"\",'1. Ordersheet'!BF1124)","v":""},{"$f":"IF('1. Ordersheet'!BG1124=\"\",\"\",'1. Ordersheet'!BG1124)","v":"ZWO"},{"$f":"IF('1. Ordersheet'!BH1124=\"\",\"\",'1. Ordersheet'!BH1124)","v":""},{"$f":"IF('1. Ordersheet'!BI1124=\"\",\"\",'1. Ordersheet'!BI1124)","v":""},{"$f":"IF('1. Ordersheet'!BJ1124=\"\",\"\",'1. Ordersheet'!BJ1124)","v":""},{"$f":"IF('1. Ordersheet'!BK1124=\"\",\"\",'1. Ordersheet'!BK1124)","v":""},{"$f":"IF('1. Ordersheet'!BL1124=\"\",\"\",'1. Ordersheet'!BL1124)","v":""}]
[{"$f":"IF('1. Ordersheet'!F1125=\"\",\"\",'1. Ordersheet'!F1125)","v":""},{"$f":"IF('1. Ordersheet'!G1125=\"\",\"\",'1. Ordersheet'!G1125)","v":""},{"$f":"IF('1. Ordersheet'!H1125=\"\",\"\",'1. Ordersheet'!H1125)","v":""},{"$f":"IF('1. Ordersheet'!I1125=\"\",\"\",'1. Ordersheet'!I1125)","v":""},{"$f":"IF('1. Ordersheet'!J1125=\"\",\"\",'1. Ordersheet'!J1125)","v":""},{"$f":"IF('1. Ordersheet'!K1125=\"\",\"\",'1. Ordersheet'!K1125)","v":""},{"$f":"IF('1. Ordersheet'!L1125=\"\",\"\",'1. Ordersheet'!L1125)","v":""},{"$f":"IF('1. Ordersheet'!M1125=\"\",\"\",'1. Ordersheet'!M1125)","v":""},{"$f":"IF('1. Ordersheet'!N1125=\"\",\"\",'1. Ordersheet'!N1125)","v":""},{"$f":"IF('1. Ordersheet'!O1125=\"\",\"\",'1. Ordersheet'!O1125)","v":{"$error":"#N/A"}},{"$f":"IF('1. Ordersheet'!P1125=\"\",\"\",'1. Ordersheet'!P1125)","v":{"$error":"#N/A"}},{"$f":"IF('1. Ordersheet'!Q1125=\"\",\"\",'1. Ordersheet'!Q1125)","v":""},{"$f":"IF('1. Ordersheet'!R1125=\"\",\"\",'1. Ordersheet'!R1125)","v":""},{"$f":"IF('1. Ordersheet'!S1125=\"\",\"\",'1. Ordersheet'!S1125)","v":""},{"$f":"IF('1. Ordersheet'!V1125=\"\",\"\",'1. Ordersheet'!V1125)","v":""},{"$f":"IF('1. Ordersheet'!W1125=\"\",\"\",'1. Ordersheet'!W1125)","v":""},{"$f":"IF('1. Ordersheet'!X1125=\"\",\"\",'1. Ordersheet'!X1125)","v":""},{"$f":"IF('1. Ordersheet'!Y1125=\"\",\"\",'1. Ordersheet'!Y1125)","v":""},{"$f":"IF('1. Ordersheet'!Z1125=\"\",\"\",'1. Ordersheet'!Z1125)","v":""},{"$f":"IF('1. Ordersheet'!AA1125=\"\",\"\",'1. Ordersheet'!AA1125)","v":""},null,{"$f":"IF('1. Ordersheet'!AS1125=\"\",\"\",'1. Ordersheet'!AS1125)","v":""},{"$f":"IF('1. Ordersheet'!AT1125=\"\",\"\",'1. Ordersheet'!AT1125)","v":""},null,null,null,null,null,null,null,{"$f":"IF('1. Ordersheet'!AX1125=\"\",\"\",'1. Ordersheet'!AX1125)","v":""},{"$f":"IF('1. Ordersheet'!AY1125=\"\",\"\",'1. Ordersheet'!AY1125)","v":""},{"$f":"IF('1. Ordersheet'!AZ1125=\"\",\"\",'1. Ordersheet'!AZ1125)","v":""},{"$f":"IF('1. Ordersheet'!BA1125=\"\",\"\",'1. Ordersheet'!BA1125)","v":""},{"$f":"IF('1. Ordersheet'!BC1125=\"\",\"\",'1. Ordersheet'!BC1125)","v":""},{"$f":"IF('1. Ordersheet'!BD1125=\"\",\"\",'1. Ordersheet'!BD1125)","v":""},{"$f":"IF('1. Ordersheet'!BE1125=\"\",\"\",'1. Ordersheet'!BE1125)","v":""},{"$f":"IF('1. Ordersheet'!BF1125=\"\",\"\",'1. Ordersheet'!BF1125)","v":""},{"$f":"IF('1. Ordersheet'!BG1125=\"\",\"\",'1. Ordersheet'!BG1125)","v":"ZWO"},{"$f":"IF('1. Ordersheet'!BH1125=\"\",\"\",'1. Ordersheet'!BH1125)","v":""},{"$f":"IF('1. Ordersheet'!BI1125=\"\",\"\",'1. Ordersheet'!BI1125)","v":""},{"$f":"IF('1. Ordersheet'!BJ1125=\"\",\"\",'1. Ordersheet'!BJ1125)","v":""},{"$f":"IF('1. Ordersheet'!BK1125=\"\",\"\",'1. Ordersheet'!BK1125)","v":""},{"$f":"IF('1. Ordersheet'!BL1125=\"\",\"\",'1. Ordersheet'!BL1125)","v":""}]
[{"$f":"IF('1. Ordersheet'!F1126=\"\",\"\",'1. Ordersheet'!F1126)","v":""},{"$f":"IF('1. Ordersheet'!G1126=\"\",\"\",'1. Ordersheet'!G1126)","v":""},{"$f":"IF('1. Ordersheet'!H1126=\"\",\"\",'1. Ordersheet'!H1126)","v":""},{"$f":"IF('1. Ordersheet'!I1126=\"\",\"\",'1. Ordersheet'!I1126)","v":""},{"$f":"IF('1. Ordersheet'!J1126=\"\",\"\",'1. Ordersheet'!J1126)","v":""},{"$f":"IF('1. Ordersheet'!K1126=\"\",\"\",'1. Ordersheet'!K1126)","v":""},{"$f":"IF('1. Ordersheet'!L1126=\"\",\"\",'1. Ordersheet'!L1126)","v":""},{"$f":"IF('1. Ordersheet'!M1126=\"\",\"\",'1. Ordersheet'!M1126)","v":""},{"$f":"IF('1. Ordersheet'!N1126=\"\",\"\",'1. Ordersheet'!N1126)","v":""},{"$f":"IF('1. Ordersheet'!O1126=\"\",\"\",'1. Ordersheet'!O1126)","v":{"$error":"#N/A"}},{"$f":"IF('1. Ordersheet'!P1126=\"\",\"\",'1. Ordersheet'!P1126)","v":{"$error":"#N/A"}},{"$f":"IF('1. Ordersheet'!Q1126=\"\",\"\",'1. Ordersheet'!Q1126)","v":""},{"$f":"IF('1. Ordersheet'!R1126=\"\",\"\",'1. Ordersheet'!R1126)","v":""},{"$f":"IF('1. Ordersheet'!S1126=\"\",\"\",'1. Ordersheet'!S1126)","v":""},{"$f":"IF('1. Ordersheet'!V1126=\"\",\"\",'1. Ordersheet'!V1126)","v":""},{"$f":"IF('1. Ordersheet'!W1126=\"\",\"\",'1. Ordersheet'!W1126)","v":""},{"$f":"IF('1. Ordersheet'!X1126=\"\",\"\",'1. Ordersheet'!X1126)","v":""},{"$f":"IF('1. Ordersheet'!Y1126=\"\",\"\",'1. Ordersheet'!Y1126)","v":""},{"$f":"IF('1. Ordersheet'!Z1126=\"\",\"\",'1. Ordersheet'!Z1126)","v":""},{"$f":"IF('1. Ordersheet'!AA1126=\"\",\"\",'1. Ordersheet'!AA1126)","v":""},null,{"$f":"IF('1. Ordersheet'!AS1126=\"\",\"\",'1. Ordersheet'!AS1126)","v":""},{"$f":"IF('1. Ordersheet'!AT1126=\"\",\"\",'1. Ordersheet'!AT1126)","v":""},null,null,null,null,null,null,null,{"$f":"IF('1. Ordersheet'!AX1126=\"\",\"\",'1. Ordersheet'!AX1126)","v":""},{"$f":"IF('1. Ordersheet'!AY1126=\"\",\"\",'1. Ordersheet'!AY1126)","v":""},{"$f":"IF('1. Ordersheet'!AZ1126=\"\",\"\",'1. Ordersheet'!AZ1126)","v":""},{"$f":"IF('1. Ordersheet'!BA1126=\"\",\"\",'1. Ordersheet'!BA1126)","v":""},{"$f":"IF('1. Ordersheet'!BC1126=\"\",\"\",'1. Ordersheet'!BC1126)","v":""},{"$f":"IF('1. Ordersheet'!BD1126=\"\",\"\",'1. Ordersheet'!BD1126)","v":""},{"$f":"IF('1. Ordersheet'!BE1126=\"\",\"\",'1. Ordersheet'!BE1126)","v":""},{"$f":"IF('1. Ordersheet'!BF1126=\"\",\"\",'1. Ordersheet'!BF1126)","v":""},{"$f":"IF('1. Ordersheet'!BG1126=\"\",\"\",'1. Ordersheet'!BG1126)","v":"ZWO"},{"$f":"IF('1. Ordersheet'!BH1126=\"\",\"\",'1. Ordersheet'!BH1126)","v":""},{"$f":"IF('1. Ordersheet'!BI1126=\"\",\"\",'1. Ordersheet'!BI1126)","v":""},{"$f":"IF('1. Ordersheet'!BJ1126=\"\",\"\",'1. Ordersheet'!BJ1126)","v":""},{"$f":"IF('1. Ordersheet'!BK1126=\"\",\"\",'1. Ordersheet'!BK1126)","v":""},{"$f":"IF('1. Ordersheet'!BL1126=\"\",\"\",'1. Ordersheet'!BL1126)","v":""}]
[{"$f":"IF('1. Ordersheet'!F1127=\"\",\"\",'1. Ordersheet'!F1127)","v":""},{"$f":"IF('1. Ordersheet'!G1127=\"\",\"\",'1. Ordersheet'!G1127)","v":""},{"$f":"IF('1. Ordersheet'!H1127=\"\",\"\",'1. Ordersheet'!H1127)","v":""},{"$f":"IF('1. Ordersheet'!I1127=\"\",\"\",'1. Ordersheet'!I1127)","v":""},{"$f":"IF('1. Ordersheet'!J1127=\"\",\"\",'1. Ordersheet'!J1127)","v":""},{"$f":"IF('1. Ordersheet'!K1127=\"\",\"\",'1. Ordersheet'!K1127)","v":""},{"$f":"IF('1. Ordersheet'!L1127=\"\",\"\",'1. Ordersheet'!L1127)","v":""},{"$f":"IF('1. Ordersheet'!M1127=\"\",\"\",'1. Ordersheet'!M1127)","v":""},{"$f":"IF('1. Ordersheet'!N1127=\"\",\"\",'1. Ordersheet'!N1127)","v":""},{"$f":"IF('1. Ordersheet'!O1127=\"\",\"\",'1. Ordersheet'!O1127)","v":{"$error":"#N/A"}},{"$f":"IF('1. Ordersheet'!P1127=\"\",\"\",'1. Ordersheet'!P1127)","v":{"$error":"#N/A"}},{"$f":"IF('1. Ordersheet'!Q1127=\"\",\"\",'1. Ordersheet'!Q1127)","v":""},{"$f":"IF('1. Ordersheet'!R1127=\"\",\"\",'1. Ordersheet'!R1127)","v":""},{"$f":"IF('1. Ordersheet'!S1127=\"\",\"\",'1. Ordersheet'!S1127)","v":""},{"$f":"IF('1. Ordersheet'!V1127=\"\",\"\",'1. Ordersheet'!V1127)","v":""},{"$f":"IF('1. Ordersheet'!W1127=\"\",\"\",'1. Ordersheet'!W1127)","v":""},{"$f":"IF('1. Ordersheet'!X1127=\"\",\"\",'1. Ordersheet'!X1127)","v":""},{"$f":"IF('1. Ordersheet'!Y1127=\"\",\"\",'1. Ordersheet'!Y1127)","v":""},{"$f":"IF('1. Ordersheet'!Z1127=\"\",\"\",'1. Ordersheet'!Z1127)","v":""},{"$f":"IF('1. Ordersheet'!AA1127=\"\",\"\",'1. Ordersheet'!AA1127)","v":""},null,{"$f":"IF('1. Ordersheet'!AS1127=\"\",\"\",'1. Ordersheet'!AS1127)","v":""},{"$f":"IF('1. Ordersheet'!AT1127=\"\",\"\",'1. Ordersheet'!AT1127)","v":""},null,null,null,null,null,null,null,{"$f":"IF('1. Ordersheet'!AX1127=\"\",\"\",'1. Ordersheet'!AX1127)","v":""},{"$f":"IF('1. Ordersheet'!AY1127=\"\",\"\",'1. Ordersheet'!AY1127)","v":""},{"$f":"IF('1. Ordersheet'!AZ1127=\"\",\"\",'1. Ordersheet'!AZ1127)","v":""},{"$f":"IF('1. Ordersheet'!BA1127=\"\",\"\",'1. Ordersheet'!BA1127)","v":""},{"$f":"IF('1. Ordersheet'!BC1127=\"\",\"\",'1. Ordersheet'!BC1127)","v":""},{"$f":"IF('1. Ordersheet'!BD1127=\"\",\"\",'1. Ordersheet'!BD1127)","v":""},{"$f":"IF('1. Ordersheet'!BE1127=\"\",\"\",'1. Ordersheet'!BE1127)","v":""},{"$f":"IF('1. Ordersheet'!BF1127=\"\",\"\",'1. Ordersheet'!BF1127)","v":""},{"$f":"IF('1. Ordersheet'!BG1127=\"\",\"\",'1. Ordersheet'!BG1127)","v":"ZWO"},{"$f":"IF('1. Ordersheet'!BH1127=\"\",\"\",'1. Ordersheet'!BH1127)","v":""},{"$f":"IF('1. Ordersheet'!BI1127=\"\",\"\",'1. Ordersheet'!BI1127)","v":""},{"$f":"IF('1. Ordersheet'!BJ1127=\"\",\"\",'1. Ordersheet'!BJ1127)","v":""},{"$f":"IF('1. Ordersheet'!BK1127=\"\",\"\",'1. Ordersheet'!BK1127)","v":""},{"$f":"IF('1. Ordersheet'!BL1127=\"\",\"\",'1. Ordersheet'!BL1127)","v":""}]
[{"$f":"IF('1. Ordersheet'!F1128=\"\",\"\",'1. Ordersheet'!F1128)","v":""},{"$f":"IF('1. Ordersheet'!G1128=\"\",\"\",'1. Ordersheet'!G1128)","v":""},{"$f":"IF('1. Ordersheet'!H1128=\"\",\"\",'1. Ordersheet'!H1128)","v":""},{"$f":"IF('1. Ordersheet'!I1128=\"\",\"\",'1. Ordersheet'!I1128)","v":""},{"$f":"IF('1. Ordersheet'!J1128=\"\",\"\",'1. Ordersheet'!J1128)","v":""},{"$f":"IF('1. Ordersheet'!K1128=\"\",\"\",'1. Ordersheet'!K1128)","v":""},{"$f":"IF('1. Ordersheet'!L1128=\"\",\"\",'1. Ordersheet'!L1128)","v":""},{"$f":"IF('1. Ordersheet'!M1128=\"\",\"\",'1. Ordersheet'!M1128)","v":""},{"$f":"IF('1. Ordersheet'!N1128=\"\",\"\",'1. Ordersheet'!N1128)","v":""},{"$f":"IF('1. Ordersheet'!O1128=\"\",\"\",'1. Ordersheet'!O1128)","v":{"$error":"#N/A"}},{"$f":"IF('1. Ordersheet'!P1128=\"\",\"\",'1. Ordersheet'!P1128)","v":{"$error":"#N/A"}},{"$f":"IF('1. Ordersheet'!Q1128=\"\",\"\",'1. Ordersheet'!Q1128)","v":""},{"$f":"IF('1. Ordersheet'!R1128=\"\",\"\",'1. Ordersheet'!R1128)","v":""},{"$f":"IF('1. Ordersheet'!S1128=\"\",\"\",'1. Ordersheet'!S1128)","v":""},{"$f":"IF('1. Ordersheet'!V1128=\"\",\"\",'1. Ordersheet'!V1128)","v":""},{"$f":"IF('1. Ordersheet'!W1128=\"\",\"\",'1. Ordersheet'!W1128)","v":""},{"$f":"IF('1. Ordersheet'!X1128=\"\",\"\",'1. Ordersheet'!X1128)","v":""},{"$f":"IF('1. Ordersheet'!Y1128=\"\",\"\",'1. Ordersheet'!Y1128)","v":""},{"$f":"IF('1. Ordersheet'!Z1128=\"\",\"\",'1. Ordersheet'!Z1128)","v":""},{"$f":"IF('1. Ordersheet'!AA1128=\"\",\"\",'1. Ordersheet'!AA1128)","v":""},null,{"$f":"IF('1. Ordersheet'!AS1128=\"\",\"\",'1. Ordersheet'!AS1128)","v":""},{"$f":"IF('1. Ordersheet'!AT1128=\"\",\"\",'1. Ordersheet'!AT1128)","v":""},null,null,null,null,null,null,null,{"$f":"IF('1. Ordersheet'!AX1128=\"\",\"\",'1. Ordersheet'!AX1128)","v":""},{"$f":"IF('1. Ordersheet'!AY1128=\"\",\"\",'1. Ordersheet'!AY1128)","v":""},{"$f":"IF('1. Ordersheet'!AZ1128=\"\",\"\",'1. Ordersheet'!AZ1128)","v":""},{"$f":"IF('1. Ordersheet'!BA1128=\"\",\"\",'1. Ordersheet'!BA1128)","v":""},{"$f":"IF('1. Ordersheet'!BC1128=\"\",\"\",'1. Ordersheet'!BC1128)","v":""},{"$f":"IF('1. Ordersheet'!BD1128=\"\",\"\",'1. Ordersheet'!BD1128)","v":""},{"$f":"IF('1. Ordersheet'!BE1128=\"\",\"\",'1. Ordersheet'!BE1128)","v":""},{"$f":"IF('1. Ordersheet'!BF1128=\"\",\"\",'1. Ordersheet'!BF1128)","v":""},{"$f":"IF('1. Ordersheet'!BG1128=\"\",\"\",'1. Ordersheet'!BG1128)","v":"ZWO"},{"$f":"IF('1. Ordersheet'!BH1128=\"\",\"\",'1. Ordersheet'!BH1128)","v":""},{"$f":"IF('1. Ordersheet'!BI1128=\"\",\"\",'1. Ordersheet'!BI1128)","v":""},{"$f":"IF('1. Ordersheet'!BJ1128=\"\",\"\",'1. Ordersheet'!BJ1128)","v":""},{"$f":"IF('1. Ordersheet'!BK1128=\"\",\"\",'1. Ordersheet'!BK1128)","v":""},{"$f":"IF('1. Ordersheet'!BL1128=\"\",\"\",'1. Ordersheet'!BL1128)","v":""}]
[{"$f":"IF('1. Ordersheet'!F1129=\"\",\"\",'1. Ordersheet'!F1129)","v":""},{"$f":"IF('1. Ordersheet'!G1129=\"\",\"\",'1. Ordersheet'!G1129)","v":""},{"$f":"IF('1. Ordersheet'!H1129=\"\",\"\",'1. Ordersheet'!H1129)","v":""},{"$f":"IF('1. Ordersheet'!I1129=\"\",\"\",'1. Ordersheet'!I1129)","v":""},{"$f":"IF('1. Ordersheet'!J1129=\"\",\"\",'1. Ordersheet'!J1129)","v":""},{"$f":"IF('1. Ordersheet'!K1129=\"\",\"\",'1. Ordersheet'!K1129)","v":""},{"$f":"IF('1. Ordersheet'!L1129=\"\",\"\",'1. Ordersheet'!L1129)","v":""},{"$f":"IF('1. Ordersheet'!M1129=\"\",\"\",'1. Ordersheet'!M1129)","v":""},{"$f":"IF('1. Ordersheet'!N1129=\"\",\"\",'1. Ordersheet'!N1129)","v":""},{"$f":"IF('1. Ordersheet'!O1129=\"\",\"\",'1. Ordersheet'!O1129)","v":{"$error":"#N/A"}},{"$f":"IF('1. Ordersheet'!P1129=\"\",\"\",'1. Ordersheet'!P1129)","v":{"$error":"#N/A"}},{"$f":"IF('1. Ordersheet'!Q1129=\"\",\"\",'1. Ordersheet'!Q1129)","v":""},{"$f":"IF('1. Ordersheet'!R1129=\"\",\"\",'1. Ordersheet'!R1129)","v":""},{"$f":"IF('1. Ordersheet'!S1129=\"\",\"\",'1. Ordersheet'!S1129)","v":""},{"$f":"IF('1. Ordersheet'!V1129=\"\",\"\",'1. Ordersheet'!V1129)","v":""},{"$f":"IF('1. Ordersheet'!W1129=\"\",\"\",'1. Ordersheet'!W1129)","v":""},{"$f":"IF('1. Ordersheet'!X1129=\"\",\"\",'1. Ordersheet'!X1129)","v":""},{"$f":"IF('1. Ordersheet'!Y1129=\"\",\"\",'1. Ordersheet'!Y1129)","v":""},{"$f":"IF('1. Ordersheet'!Z1129=\"\",\"\",'1. Ordersheet'!Z1129)","v":""},{"$f":"IF('1. Ordersheet'!AA1129=\"\",\"\",'1. Ordersheet'!AA1129)","v":""},null,{"$f":"IF('1. Ordersheet'!AS1129=\"\",\"\",'1. Ordersheet'!AS1129)","v":""},{"$f":"IF('1. Ordersheet'!AT1129=\"\",\"\",'1. Ordersheet'!AT1129)","v":""},null,null,null,null,null,null,null,{"$f":"IF('1. Ordersheet'!AX1129=\"\",\"\",'1. Ordersheet'!AX1129)","v":""},{"$f":"IF('1. Ordersheet'!AY1129=\"\",\"\",'1. Ordersheet'!AY1129)","v":""},{"$f":"IF('1. Ordersheet'!AZ1129=\"\",\"\",'1. Ordersheet'!AZ1129)","v":""},{"$f":"IF('1. Ordersheet'!BA1129=\"\",\"\",'1. Ordersheet'!BA1129)","v":""},{"$f":"IF('1. Ordersheet'!BC1129=\"\",\"\",'1. Ordersheet'!BC1129)","v":""},{"$f":"IF('1. Ordersheet'!BD1129=\"\",\"\",'1. Ordersheet'!BD1129)","v":""},{"$f":"IF('1. Ordersheet'!BE1129=\"\",\"\",'1. Ordersheet'!BE1129)","v":""},{"$f":"IF('1. Ordersheet'!BF1129=\"\",\"\",'1. Ordersheet'!BF1129)","v":""},{"$f":"IF('1. Ordersheet'!BG1129=\"\",\"\",'1. Ordersheet'!BG1129)","v":"ZWO"},{"$f":"IF('1. Ordersheet'!BH1129=\"\",\"\",'1. Ordersheet'!BH1129)","v":""},{"$f":"IF('1. Ordersheet'!BI1129=\"\",\"\",'1. Ordersheet'!BI1129)","v":""},{"$f":"IF('1. Ordersheet'!BJ1129=\"\",\"\",'1. Ordersheet'!BJ1129)","v":""},{"$f":"IF('1. Ordersheet'!BK1129=\"\",\"\",'1. Ordersheet'!BK1129)","v":""},{"$f":"IF('1. Ordersheet'!BL1129=\"\",\"\",'1. Ordersheet'!BL1129)","v":""}]
[{"$f":"IF('1. Ordersheet'!F1130=\"\",\"\",'1. Ordersheet'!F1130)","v":""},{"$f":"IF('1. Ordersheet'!G1130=\"\",\"\",'1. Ordersheet'!G1130)","v":""},{"$f":"IF('1. Ordersheet'!H1130=\"\",\"\",'1. Ordersheet'!H1130)","v":""},{"$f":"IF('1. Ordersheet'!I1130=\"\",\"\",'1. Ordersheet'!I1130)","v":""},{"$f":"IF('1. Ordersheet'!J1130=\"\",\"\",'1. Ordersheet'!J1130)","v":""},{"$f":"IF('1. Ordersheet'!K1130=\"\",\"\",'1. Ordersheet'!K1130)","v":""},{"$f":"IF('1. Ordersheet'!L1130=\"\",\"\",'1. Ordersheet'!L1130)","v":""},{"$f":"IF('1. Ordersheet'!M1130=\"\",\"\",'1. Ordersheet'!M1130)","v":""},{"$f":"IF('1. Ordersheet'!N1130=\"\",\"\",'1. Ordersheet'!N1130)","v":""},{"$f":"IF('1. Ordersheet'!O1130=\"\",\"\",'1. Ordersheet'!O1130)","v":{"$error":"#N/A"}},{"$f":"IF('1. Ordersheet'!P1130=\"\",\"\",'1. Ordersheet'!P1130)","v":{"$error":"#N/A"}},{"$f":"IF('1. Ordersheet'!Q1130=\"\",\"\",'1. Ordersheet'!Q1130)","v":""},{"$f":"IF('1. Ordersheet'!R1130=\"\",\"\",'1. Ordersheet'!R1130)","v":""},{"$f":"IF('1. Ordersheet'!S1130=\"\",\"\",'1. Ordersheet'!S1130)","v":""},{"$f":"IF('1. Ordersheet'!V1130=\"\",\"\",'1. Ordersheet'!V1130)","v":""},{"$f":"IF('1. Ordersheet'!W1130=\"\",\"\",'1. Ordersheet'!W1130)","v":""},{"$f":"IF('1. Ordersheet'!X1130=\"\",\"\",'1. Ordersheet'!X1130)","v":""},{"$f":"IF('1. Ordersheet'!Y1130=\"\",\"\",'1. Ordersheet'!Y1130)","v":""},{"$f":"IF('1. Ordersheet'!Z1130=\"\",\"\",'1. Ordersheet'!Z1130)","v":""},{"$f":"IF('1. Ordersheet'!AA1130=\"\",\"\",'1. Ordersheet'!AA1130)","v":""},null,{"$f":"IF('1. Ordersheet'!AS1130=\"\",\"\",'1. Ordersheet'!AS1130)","v":""},{"$f":"IF('1. Ordersheet'!AT1130=\"\",\"\",'1. Ordersheet'!AT1130)","v":""},null,null,null,null,null,null,null,{"$f":"IF('1. Ordersheet'!AX1130=\"\",\"\",'1. Ordersheet'!AX1130)","v":""},{"$f":"IF('1. Ordersheet'!AY1130=\"\",\"\",'1. Ordersheet'!AY1130)","v":""},{"$f":"IF('1. Ordersheet'!AZ1130=\"\",\"\",'1. Ordersheet'!AZ1130)","v":""},{"$f":"IF('1. Ordersheet'!BA1130=\"\",\"\",'1. Ordersheet'!BA1130)","v":""},{"$f":"IF('1. Ordersheet'!BC1130=\"\",\"\",'1. Ordersheet'!BC1130)","v":""},{"$f":"IF('1. Ordersheet'!BD1130=\"\",\"\",'1. Ordersheet'!BD1130)","v":""},{"$f":"IF('1. Ordersheet'!BE1130=\"\",\"\",'1. Ordersheet'!BE1130)","v":""},{"$f":"IF('1. Ordersheet'!BF1130=\"\",\"\",'1. Ordersheet'!BF1130)","v":""},{"$f":"IF('1. Ordersheet'!BG1130=\"\",\"\",'1. Ordersheet'!BG1130)","v":"ZWO"},{"$f":"IF('1. Ordersheet'!BH1130=\"\",\"\",'1. Ordersheet'!BH1130)","v":""},{"$f":"IF('1. Ordersheet'!BI1130=\"\",\"\",'1. Ordersheet'!BI1130)","v":""},{"$f":"IF('1. Ordersheet'!BJ1130=\"\",\"\",'1. Ordersheet'!BJ1130)","v":""},{"$f":"IF('1. Ordersheet'!BK1130=\"\",\"\",'1. Ordersheet'!BK1130)","v":""},{"$f":"IF('1. Ordersheet'!BL1130=\"\",\"\",'1. Ordersheet'!BL1130)","v":""}]
[{"$f":"IF('1. Ordersheet'!F1131=\"\",\"\",'1. Ordersheet'!F1131)","v":""},{"$f":"IF('1. Ordersheet'!G1131=\"\",\"\",'1. Ordersheet'!G1131)","v":""},{"$f":"IF('1. Ordersheet'!H1131=\"\",\"\",'1. Ordersheet'!H1131)","v":""},{"$f":"IF('1. Ordersheet'!I1131=\"\",\"\",'1. Ordersheet'!I1131)","v":""},{"$f":"IF('1. Ordersheet'!J1131=\"\",\"\",'1. Ordersheet'!J1131)","v":""},{"$f":"IF('1. Ordersheet'!K1131=\"\",\"\",'1. Ordersheet'!K1131)","v":""},{"$f":"IF('1. Ordersheet'!L1131=\"\",\"\",'1. Ordersheet'!L1131)","v":""},{"$f":"IF('1. Ordersheet'!M1131=\"\",\"\",'1. Ordersheet'!M1131)","v":""},{"$f":"IF('1. Ordersheet'!N1131=\"\",\"\",'1. Ordersheet'!N1131)","v":""},{"$f":"IF('1. Ordersheet'!O1131=\"\",\"\",'1. Ordersheet'!O1131)","v":{"$error":"#N/A"}},{"$f":"IF('1. Ordersheet'!P1131=\"\",\"\",'1. Ordersheet'!P1131)","v":{"$error":"#N/A"}},{"$f":"IF('1. Ordersheet'!Q1131=\"\",\"\",'1. Ordersheet'!Q1131)","v":""},{"$f":"IF('1. Ordersheet'!R1131=\"\",\"\",'1. Ordersheet'!R1131)","v":""},{"$f":"IF('1. Ordersheet'!S1131=\"\",\"\",'1. Ordersheet'!S1131)","v":""},{"$f":"IF('1. Ordersheet'!V1131=\"\",\"\",'1. Ordersheet'!V1131)","v":""},{"$f":"IF('1. Ordersheet'!W1131=\"\",\"\",'1. Ordersheet'!W1131)","v":""},{"$f":"IF('1. Ordersheet'!X1131=\"\",\"\",'1. Ordersheet'!X1131)","v":""},{"$f":"IF('1. Ordersheet'!Y1131=\"\",\"\",'1. Ordersheet'!Y1131)","v":""},{"$f":"IF('1. Ordersheet'!Z1131=\"\",\"\",'1. Ordersheet'!Z1131)","v":""},{"$f":"IF('1. Ordersheet'!AA1131=\"\",\"\",'1. Ordersheet'!AA1131)","v":""},null,{"$f":"IF('1. Ordersheet'!AS1131=\"\",\"\",'1. Ordersheet'!AS1131)","v":""},{"$f":"IF('1. Ordersheet'!AT1131=\"\",\"\",'1. Ordersheet'!AT1131)","v":""},null,null,null,null,null,null,null,{"$f":"IF('1. Ordersheet'!AX1131=\"\",\"\",'1. Ordersheet'!AX1131)","v":""},{"$f":"IF('1. Ordersheet'!AY1131=\"\",\"\",'1. Ordersheet'!AY1131)","v":""},{"$f":"IF('1. Ordersheet'!AZ1131=\"\",\"\",'1. Ordersheet'!AZ1131)","v":""},{"$f":"IF('1. Ordersheet'!BA1131=\"\",\"\",'1. Ordersheet'!BA1131)","v":""},{"$f":"IF('1. Ordersheet'!BC1131=\"\",\"\",'1. Ordersheet'!BC1131)","v":""},{"$f":"IF('1. Ordersheet'!BD1131=\"\",\"\",'1. Ordersheet'!BD1131)","v":""},{"$f":"IF('1. Ordersheet'!BE1131=\"\",\"\",'1. Ordersheet'!BE1131)","v":""},{"$f":"IF('1. Ordersheet'!BF1131=\"\",\"\",'1. Ordersheet'!BF1131)","v":""},{"$f":"IF('1. Ordersheet'!BG1131=\"\",\"\",'1. Ordersheet'!BG1131)","v":"ZWO"},{"$f":"IF('1. Ordersheet'!BH1131=\"\",\"\",'1. Ordersheet'!BH1131)","v":""},{"$f":"IF('1. Ordersheet'!BI1131=\"\",\"\",'1. Ordersheet'!BI1131)","v":""},{"$f":"IF('1. Ordersheet'!BJ1131=\"\",\"\",'1. Ordersheet'!BJ1131)","v":""},{"$f":"IF('1. Ordersheet'!BK1131=\"\",\"\",'1. Ordersheet'!BK1131)","v":""},{"$f":"IF('1. Ordersheet'!BL1131=\"\",\"\",'1. Ordersheet'!BL1131)","v":""}]
[{"$f":"IF('1. Ordersheet'!F1132=\"\",\"\",'1. Ordersheet'!F1132)","v":""},{"$f":"IF('1. Ordersheet'!G1132=\"\",\"\",'1. Ordersheet'!G1132)","v":""},{"$f":"IF('1. Ordersheet'!H1132=\"\",\"\",'1. Ordersheet'!H1132)","v":""},{"$f":"IF('1. Ordersheet'!I1132=\"\",\"\",'1. Ordersheet'!I1132)","v":""},{"$f":"IF('1. Ordersheet'!J1132=\"\",\"\",'1. Ordersheet'!J1132)","v":""},{"$f":"IF('1. Ordersheet'!K1132=\"\",\"\",'1. Ordersheet'!K1132)","v":""},{"$f":"IF('1. Ordersheet'!L1132=\"\",\"\",'1. Ordersheet'!L1132)","v":""},{"$f":"IF('1. Ordersheet'!M1132=\"\",\"\",'1. Ordersheet'!M1132)","v":""},{"$f":"IF('1. Ordersheet'!N1132=\"\",\"\",'1. Ordersheet'!N1132)","v":""},{"$f":"IF('1. Ordersheet'!O1132=\"\",\"\",'1. Ordersheet'!O1132)","v":{"$error":"#N/A"}},{"$f":"IF('1. Ordersheet'!P1132=\"\",\"\",'1. Ordersheet'!P1132)","v":{"$error":"#N/A"}},{"$f":"IF('1. Ordersheet'!Q1132=\"\",\"\",'1. Ordersheet'!Q1132)","v":""},{"$f":"IF('1. Ordersheet'!R1132=\"\",\"\",'1. Ordersheet'!R1132)","v":""},{"$f":"IF('1. Ordersheet'!S1132=\"\",\"\",'1. Ordersheet'!S1132)","v":""},{"$f":"IF('1. Ordersheet'!V1132=\"\",\"\",'1. Ordersheet'!V1132)","v":""},{"$f":"IF('1. Ordersheet'!W1132=\"\",\"\",'1. Ordersheet'!W1132)","v":""},{"$f":"IF('1. Ordersheet'!X1132=\"\",\"\",'1. Ordersheet'!X1132)","v":""},{"$f":"IF('1. Ordersheet'!Y1132=\"\",\"\",'1. Ordersheet'!Y1132)","v":""},{"$f":"IF('1. Ordersheet'!Z1132=\"\",\"\",'1. Ordersheet'!Z1132)","v":""},{"$f":"IF('1. Ordersheet'!AA1132=\"\",\"\",'1. Ordersheet'!AA1132)","v":""},null,{"$f":"IF('1. Ordersheet'!AS1132=\"\",\"\",'1. Ordersheet'!AS1132)","v":""},{"$f":"IF('1. Ordersheet'!AT1132=\"\",\"\",'1. Ordersheet'!AT1132)","v":""},null,null,null,null,null,null,null,{"$f":"IF('1. Ordersheet'!AX1132=\"\",\"\",'1. Ordersheet'!AX1132)","v":""},{"$f":"IF('1. Ordersheet'!AY1132=\"\",\"\",'1. Ordersheet'!AY1132)","v":""},{"$f":"IF('1. Ordersheet'!AZ1132=\"\",\"\",'1. Ordersheet'!AZ1132)","v":""},{"$f":"IF('1. Ordersheet'!BA1132=\"\",\"\",'1. Ordersheet'!BA1132)","v":""},{"$f":"IF('1. Ordersheet'!BC1132=\"\",\"\",'1. Ordersheet'!BC1132)","v":""},{"$f":"IF('1. Ordersheet'!BD1132=\"\",\"\",'1. Ordersheet'!BD1132)","v":""},{"$f":"IF('1. Ordersheet'!BE1132=\"\",\"\",'1. Ordersheet'!BE1132)","v":""},{"$f":"IF('1. Ordersheet'!BF1132=\"\",\"\",'1. Ordersheet'!BF1132)","v":""},{"$f":"IF('1. Ordersheet'!BG1132=\"\",\"\",'1. Ordersheet'!BG1132)","v":"ZWO"},{"$f":"IF('1. Ordersheet'!BH1132=\"\",\"\",'1. Ordersheet'!BH1132)","v":""},{"$f":"IF('1. Ordersheet'!BI1132=\"\",\"\",'1. Ordersheet'!BI1132)","v":""},{"$f":"IF('1. Ordersheet'!BJ1132=\"\",\"\",'1. Ordersheet'!BJ1132)","v":""},{"$f":"IF('1. Ordersheet'!BK1132=\"\",\"\",'1. Ordersheet'!BK1132)","v":""},{"$f":"IF('1. Ordersheet'!BL1132=\"\",\"\",'1. Ordersheet'!BL1132)","v":""}]
[{"$f":"IF('1. Ordersheet'!F1133=\"\",\"\",'1. Ordersheet'!F1133)","v":""},{"$f":"IF('1. Ordersheet'!G1133=\"\",\"\",'1. Ordersheet'!G1133)","v":""},{"$f":"IF('1. Ordersheet'!H1133=\"\",\"\",'1. Ordersheet'!H1133)","v":""},{"$f":"IF('1. Ordersheet'!I1133=\"\",\"\",'1. Ordersheet'!I1133)","v":""},{"$f":"IF('1. Ordersheet'!J1133=\"\",\"\",'1. Ordersheet'!J1133)","v":""},{"$f":"IF('1. Ordersheet'!K1133=\"\",\"\",'1. Ordersheet'!K1133)","v":""},{"$f":"IF('1. Ordersheet'!L1133=\"\",\"\",'1. Ordersheet'!L1133)","v":""},{"$f":"IF('1. Ordersheet'!M1133=\"\",\"\",'1. Ordersheet'!M1133)","v":""},{"$f":"IF('1. Ordersheet'!N1133=\"\",\"\",'1. Ordersheet'!N1133)","v":""},{"$f":"IF('1. Ordersheet'!O1133=\"\",\"\",'1. Ordersheet'!O1133)","v":{"$error":"#N/A"}},{"$f":"IF('1. Ordersheet'!P1133=\"\",\"\",'1. Ordersheet'!P1133)","v":{"$error":"#N/A"}},{"$f":"IF('1. Ordersheet'!Q1133=\"\",\"\",'1. Ordersheet'!Q1133)","v":""},{"$f":"IF('1. Ordersheet'!R1133=\"\",\"\",'1. Ordersheet'!R1133)","v":""},{"$f":"IF('1. Ordersheet'!S1133=\"\",\"\",'1. Ordersheet'!S1133)","v":""},{"$f":"IF('1. Ordersheet'!V1133=\"\",\"\",'1. Ordersheet'!V1133)","v":""},{"$f":"IF('1. Ordersheet'!W1133=\"\",\"\",'1. Ordersheet'!W1133)","v":""},{"$f":"IF('1. Ordersheet'!X1133=\"\",\"\",'1. Ordersheet'!X1133)","v":""},{"$f":"IF('1. Ordersheet'!Y1133=\"\",\"\",'1. Ordersheet'!Y1133)","v":""},{"$f":"IF('1. Ordersheet'!Z1133=\"\",\"\",'1. Ordersheet'!Z1133)","v":""},{"$f":"IF('1. Ordersheet'!AA1133=\"\",\"\",'1. Ordersheet'!AA1133)","v":""},null,{"$f":"IF('1. Ordersheet'!AS1133=\"\",\"\",'1. Ordersheet'!AS1133)","v":""},{"$f":"IF('1. Ordersheet'!AT1133=\"\",\"\",'1. Ordersheet'!AT1133)","v":""},null,null,null,null,null,null,null,{"$f":"IF('1. Ordersheet'!AX1133=\"\",\"\",'1. Ordersheet'!AX1133)","v":""},{"$f":"IF('1. Ordersheet'!AY1133=\"\",\"\",'1. Ordersheet'!AY1133)","v":""},{"$f":"IF('1. Ordersheet'!AZ1133=\"\",\"\",'1. Ordersheet'!AZ1133)","v":""},{"$f":"IF('1. Ordersheet'!BA1133=\"\",\"\",'1. Ordersheet'!BA1133)","v":""},{"$f":"IF('1. Ordersheet'!BC1133=\"\",\"\",'1. Ordersheet'!BC1133)","v":""},{"$f":"IF('1. Ordersheet'!BD1133=\"\",\"\",'1. Ordersheet'!BD1133)","v":""},{"$f":"IF('1. Ordersheet'!BE1133=\"\",\"\",'1. Ordersheet'!BE1133)","v":""},{"$f":"IF('1. Ordersheet'!BF1133=\"\",\"\",'1. Ordersheet'!BF1133)","v":""},{"$f":"IF('1. Ordersheet'!BG1133=\"\",\"\",'1. Ordersheet'!BG1133)","v":"ZWO"},{"$f":"IF('1. Ordersheet'!BH1133=\"\",\"\",'1. Ordersheet'!BH1133)","v":""},{"$f":"IF('1. Ordersheet'!BI1133=\"\",\"\",'1. Ordersheet'!BI1133)","v":""},{"$f":"IF('1. Ordersheet'!BJ1133=\"\",\"\",'1. Ordersheet'!BJ1133)","v":""},{"$f":"IF('1. Ordersheet'!BK1133=\"\",\"\",'1. Ordersheet'!BK1133)","v":""},{"$f":"IF('1. Ordersheet'!BL1133=\"\",\"\",'1. Ordersheet'!BL1133)","v":""}]
[{"$f":"IF('1. Ordersheet'!F1134=\"\",\"\",'1. Ordersheet'!F1134)","v":""},{"$f":"IF('1. Ordersheet'!G1134=\"\",\"\",'1. Ordersheet'!G1134)","v":""},{"$f":"IF('1. Ordersheet'!H1134=\"\",\"\",'1. Ordersheet'!H1134)","v":""},{"$f":"IF('1. Ordersheet'!I1134=\"\",\"\",'1. Ordersheet'!I1134)","v":""},{"$f":"IF('1. Ordersheet'!J1134=\"\",\"\",'1. Ordersheet'!J1134)","v":""},{"$f":"IF('1. Ordersheet'!K1134=\"\",\"\",'1. Ordersheet'!K1134)","v":""},{"$f":"IF('1. Ordersheet'!L1134=\"\",\"\",'1. Ordersheet'!L1134)","v":""},{"$f":"IF('1. Ordersheet'!M1134=\"\",\"\",'1. Ordersheet'!M1134)","v":""},{"$f":"IF('1. Ordersheet'!N1134=\"\",\"\",'1. Ordersheet'!N1134)","v":""},{"$f":"IF('1. Ordersheet'!O1134=\"\",\"\",'1. Ordersheet'!O1134)","v":{"$error":"#N/A"}},{"$f":"IF('1. Ordersheet'!P1134=\"\",\"\",'1. Ordersheet'!P1134)","v":{"$error":"#N/A"}},{"$f":"IF('1. Ordersheet'!Q1134=\"\",\"\",'1. Ordersheet'!Q1134)","v":""},{"$f":"IF('1. Ordersheet'!R1134=\"\",\"\",'1. Ordersheet'!R1134)","v":""},{"$f":"IF('1. Ordersheet'!S1134=\"\",\"\",'1. Ordersheet'!S1134)","v":""},{"$f":"IF('1. Ordersheet'!V1134=\"\",\"\",'1. Ordersheet'!V1134)","v":""},{"$f":"IF('1. Ordersheet'!W1134=\"\",\"\",'1. Ordersheet'!W1134)","v":""},{"$f":"IF('1. Ordersheet'!X1134=\"\",\"\",'1. Ordersheet'!X1134)","v":""},{"$f":"IF('1. Ordersheet'!Y1134=\"\",\"\",'1. Ordersheet'!Y1134)","v":""},{"$f":"IF('1. Ordersheet'!Z1134=\"\",\"\",'1. Ordersheet'!Z1134)","v":""},{"$f":"IF('1. Ordersheet'!AA1134=\"\",\"\",'1. Ordersheet'!AA1134)","v":""},null,{"$f":"IF('1. Ordersheet'!AS1134=\"\",\"\",'1. Ordersheet'!AS1134)","v":""},{"$f":"IF('1. Ordersheet'!AT1134=\"\",\"\",'1. Ordersheet'!AT1134)","v":""},null,null,null,null,null,null,null,{"$f":"IF('1. Ordersheet'!AX1134=\"\",\"\",'1. Ordersheet'!AX1134)","v":""},{"$f":"IF('1. Ordersheet'!AY1134=\"\",\"\",'1. Ordersheet'!AY1134)","v":""},{"$f":"IF('1. Ordersheet'!AZ1134=\"\",\"\",'1. Ordersheet'!AZ1134)","v":""},{"$f":"IF('1. Ordersheet'!BA1134=\"\",\"\",'1. Ordersheet'!BA1134)","v":""},{"$f":"IF('1. Ordersheet'!BC1134=\"\",\"\",'1. Ordersheet'!BC1134)","v":""},{"$f":"IF('1. Ordersheet'!BD1134=\"\",\"\",'1. Ordersheet'!BD1134)","v":""},{"$f":"IF('1. Ordersheet'!BE1134=\"\",\"\",'1. Ordersheet'!BE1134)","v":""},{"$f":"IF('1. Ordersheet'!BF1134=\"\",\"\",'1. Ordersheet'!BF1134)","v":""},{"$f":"IF('1. Ordersheet'!BG1134=\"\",\"\",'1. Ordersheet'!BG1134)","v":"ZWO"},{"$f":"IF('1. Ordersheet'!BH1134=\"\",\"\",'1. Ordersheet'!BH1134)","v":""},{"$f":"IF('1. Ordersheet'!BI1134=\"\",\"\",'1. Ordersheet'!BI1134)","v":""},{"$f":"IF('1. Ordersheet'!BJ1134=\"\",\"\",'1. Ordersheet'!BJ1134)","v":""},{"$f":"IF('1. Ordersheet'!BK1134=\"\",\"\",'1. Ordersheet'!BK1134)","v":""},{"$f":"IF('1. Ordersheet'!BL1134=\"\",\"\",'1. Ordersheet'!BL1134)","v":""}]
[{"$f":"IF('1. Ordersheet'!F1135=\"\",\"\",'1. Ordersheet'!F1135)","v":""},{"$f":"IF('1. Ordersheet'!G1135=\"\",\"\",'1. Ordersheet'!G1135)","v":""},{"$f":"IF('1. Ordersheet'!H1135=\"\",\"\",'1. Ordersheet'!H1135)","v":""},{"$f":"IF('1. Ordersheet'!I1135=\"\",\"\",'1. Ordersheet'!I1135)","v":""},{"$f":"IF('1. Ordersheet'!J1135=\"\",\"\",'1. Ordersheet'!J1135)","v":""},{"$f":"IF('1. Ordersheet'!K1135=\"\",\"\",'1. Ordersheet'!K1135)","v":""},{"$f":"IF('1. Ordersheet'!L1135=\"\",\"\",'1. Ordersheet'!L1135)","v":""},{"$f":"IF('1. Ordersheet'!M1135=\"\",\"\",'1. Ordersheet'!M1135)","v":""},{"$f":"IF('1. Ordersheet'!N1135=\"\",\"\",'1. Ordersheet'!N1135)","v":""},{"$f":"IF('1. Ordersheet'!O1135=\"\",\"\",'1. Ordersheet'!O1135)","v":{"$error":"#N/A"}},{"$f":"IF('1. Ordersheet'!P1135=\"\",\"\",'1. Ordersheet'!P1135)","v":{"$error":"#N/A"}},{"$f":"IF('1. Ordersheet'!Q1135=\"\",\"\",'1. Ordersheet'!Q1135)","v":""},{"$f":"IF('1. Ordersheet'!R1135=\"\",\"\",'1. Ordersheet'!R1135)","v":""},{"$f":"IF('1. Ordersheet'!S1135=\"\",\"\",'1. Ordersheet'!S1135)","v":""},{"$f":"IF('1. Ordersheet'!V1135=\"\",\"\",'1. Ordersheet'!V1135)","v":""},{"$f":"IF('1. Ordersheet'!W1135=\"\",\"\",'1. Ordersheet'!W1135)","v":""},{"$f":"IF('1. Ordersheet'!X1135=\"\",\"\",'1. Ordersheet'!X1135)","v":""},{"$f":"IF('1. Ordersheet'!Y1135=\"\",\"\",'1. Ordersheet'!Y1135)","v":""},{"$f":"IF('1. Ordersheet'!Z1135=\"\",\"\",'1. Ordersheet'!Z1135)","v":""},{"$f":"IF('1. Ordersheet'!AA1135=\"\",\"\",'1. Ordersheet'!AA1135)","v":""},null,{"$f":"IF('1. Ordersheet'!AS1135=\"\",\"\",'1. Ordersheet'!AS1135)","v":""},{"$f":"IF('1. Ordersheet'!AT1135=\"\",\"\",'1. Ordersheet'!AT1135)","v":""},null,null,null,null,null,null,null,{"$f":"IF('1. Ordersheet'!AX1135=\"\",\"\",'1. Ordersheet'!AX1135)","v":""},{"$f":"IF('1. Ordersheet'!AY1135=\"\",\"\",'1. Ordersheet'!AY1135)","v":""},{"$f":"IF('1. Ordersheet'!AZ1135=\"\",\"\",'1. Ordersheet'!AZ1135)","v":""},{"$f":"IF('1. Ordersheet'!BA1135=\"\",\"\",'1. Ordersheet'!BA1135)","v":""},{"$f":"IF('1. Ordersheet'!BC1135=\"\",\"\",'1. Ordersheet'!BC1135)","v":""},{"$f":"IF('1. Ordersheet'!BD1135=\"\",\"\",'1. Ordersheet'!BD1135)","v":""},{"$f":"IF('1. Ordersheet'!BE1135=\"\",\"\",'1. Ordersheet'!BE1135)","v":""},{"$f":"IF('1. Ordersheet'!BF1135=\"\",\"\",'1. Ordersheet'!BF1135)","v":""},{"$f":"IF('1. Ordersheet'!BG1135=\"\",\"\",'1. Ordersheet'!BG1135)","v":"ZWO"},{"$f":"IF('1. Ordersheet'!BH1135=\"\",\"\",'1. Ordersheet'!BH1135)","v":""},{"$f":"IF('1. Ordersheet'!BI1135=\"\",\"\",'1. Ordersheet'!BI1135)","v":""},{"$f":"IF('1. Ordersheet'!BJ1135=\"\",\"\",'1. Ordersheet'!BJ1135)","v":""},{"$f":"IF('1. Ordersheet'!BK1135=\"\",\"\",'1. Ordersheet'!BK1135)","v":""},{"$f":"IF('1. Ordersheet'!BL1135=\"\",\"\",'1. Ordersheet'!BL1135)","v":""}]
[{"$f":"IF('1. Ordersheet'!F1136=\"\",\"\",'1. Ordersheet'!F1136)","v":""},{"$f":"IF('1. Ordersheet'!G1136=\"\",\"\",'1. Ordersheet'!G1136)","v":""},{"$f":"IF('1. Ordersheet'!H1136=\"\",\"\",'1. Ordersheet'!H1136)","v":""},{"$f":"IF('1. Ordersheet'!I1136=\"\",\"\",'1. Ordersheet'!I1136)","v":""},{"$f":"IF('1. Ordersheet'!J1136=\"\",\"\",'1. Ordersheet'!J1136)","v":""},{"$f":"IF('1. Ordersheet'!K1136=\"\",\"\",'1. Ordersheet'!K1136)","v":""},{"$f":"IF('1. Ordersheet'!L1136=\"\",\"\",'1. Ordersheet'!L1136)","v":""},{"$f":"IF('1. Ordersheet'!M1136=\"\",\"\",'1. Ordersheet'!M1136)","v":""},{"$f":"IF('1. Ordersheet'!N1136=\"\",\"\",'1. Ordersheet'!N1136)","v":""},{"$f":"IF('1. Ordersheet'!O1136=\"\",\"\",'1. Ordersheet'!O1136)","v":{"$error":"#N/A"}},{"$f":"IF('1. Ordersheet'!P1136=\"\",\"\",'1. Ordersheet'!P1136)","v":{"$error":"#N/A"}},{"$f":"IF('1. Ordersheet'!Q1136=\"\",\"\",'1. Ordersheet'!Q1136)","v":""},{"$f":"IF('1. Ordersheet'!R1136=\"\",\"\",'1. Ordersheet'!R1136)","v":""},{"$f":"IF('1. Ordersheet'!S1136=\"\",\"\",'1. Ordersheet'!S1136)","v":""},{"$f":"IF('1. Ordersheet'!V1136=\"\",\"\",'1. Ordersheet'!V1136)","v":""},{"$f":"IF('1. Ordersheet'!W1136=\"\",\"\",'1. Ordersheet'!W1136)","v":""},{"$f":"IF('1. Ordersheet'!X1136=\"\",\"\",'1. Ordersheet'!X1136)","v":""},{"$f":"IF('1. Ordersheet'!Y1136=\"\",\"\",'1. Ordersheet'!Y1136)","v":""},{"$f":"IF('1. Ordersheet'!Z1136=\"\",\"\",'1. Ordersheet'!Z1136)","v":""},{"$f":"IF('1. Ordersheet'!AA1136=\"\",\"\",'1. Ordersheet'!AA1136)","v":""},null,{"$f":"IF('1. Ordersheet'!AS1136=\"\",\"\",'1. Ordersheet'!AS1136)","v":""},{"$f":"IF('1. Ordersheet'!AT1136=\"\",\"\",'1. Ordersheet'!AT1136)","v":""},null,null,null,null,null,null,null,{"$f":"IF('1. Ordersheet'!AX1136=\"\",\"\",'1. Ordersheet'!AX1136)","v":""},{"$f":"IF('1. Ordersheet'!AY1136=\"\",\"\",'1. Ordersheet'!AY1136)","v":""},{"$f":"IF('1. Ordersheet'!AZ1136=\"\",\"\",'1. Ordersheet'!AZ1136)","v":""},{"$f":"IF('1. Ordersheet'!BA1136=\"\",\"\",'1. Ordersheet'!BA1136)","v":""},{"$f":"IF('1. Ordersheet'!BC1136=\"\",\"\",'1. Ordersheet'!BC1136)","v":""},{"$f":"IF('1. Ordersheet'!BD1136=\"\",\"\",'1. Ordersheet'!BD1136)","v":""},{"$f":"IF('1. Ordersheet'!BE1136=\"\",\"\",'1. Ordersheet'!BE1136)","v":""},{"$f":"IF('1. Ordersheet'!BF1136=\"\",\"\",'1. Ordersheet'!BF1136)","v":""},{"$f":"IF('1. Ordersheet'!BG1136=\"\",\"\",'1. Ordersheet'!BG1136)","v":"ZWO"},{"$f":"IF('1. Ordersheet'!BH1136=\"\",\"\",'1. Ordersheet'!BH1136)","v":""},{"$f":"IF('1. Ordersheet'!BI1136=\"\",\"\",'1. Ordersheet'!BI1136)","v":""},{"$f":"IF('1. Ordersheet'!BJ1136=\"\",\"\",'1. Ordersheet'!BJ1136)","v":""},{"$f":"IF('1. Ordersheet'!BK1136=\"\",\"\",'1. Ordersheet'!BK1136)","v":""},{"$f":"IF('1. Ordersheet'!BL1136=\"\",\"\",'1. Ordersheet'!BL1136)","v":""}]
[{"$f":"IF('1. Ordersheet'!F1137=\"\",\"\",'1. Ordersheet'!F1137)","v":""},{"$f":"IF('1. Ordersheet'!G1137=\"\",\"\",'1. Ordersheet'!G1137)","v":""},{"$f":"IF('1. Ordersheet'!H1137=\"\",\"\",'1. Ordersheet'!H1137)","v":""},{"$f":"IF('1. Ordersheet'!I1137=\"\",\"\",'1. Ordersheet'!I1137)","v":""},{"$f":"IF('1. Ordersheet'!J1137=\"\",\"\",'1. Ordersheet'!J1137)","v":""},{"$f":"IF('1. Ordersheet'!K1137=\"\",\"\",'1. Ordersheet'!K1137)","v":""},{"$f":"IF('1. Ordersheet'!L1137=\"\",\"\",'1. Ordersheet'!L1137)","v":""},{"$f":"IF('1. Ordersheet'!M1137=\"\",\"\",'1. Ordersheet'!M1137)","v":""},{"$f":"IF('1. Ordersheet'!N1137=\"\",\"\",'1. Ordersheet'!N1137)","v":""},{"$f":"IF('1. Ordersheet'!O1137=\"\",\"\",'1. Ordersheet'!O1137)","v":{"$error":"#N/A"}},{"$f":"IF('1. Ordersheet'!P1137=\"\",\"\",'1. Ordersheet'!P1137)","v":{"$error":"#N/A"}},{"$f":"IF('1. Ordersheet'!Q1137=\"\",\"\",'1. Ordersheet'!Q1137)","v":""},{"$f":"IF('1. Ordersheet'!R1137=\"\",\"\",'1. Ordersheet'!R1137)","v":""},{"$f":"IF('1. Ordersheet'!S1137=\"\",\"\",'1. Ordersheet'!S1137)","v":""},{"$f":"IF('1. Ordersheet'!V1137=\"\",\"\",'1. Ordersheet'!V1137)","v":""},{"$f":"IF('1. Ordersheet'!W1137=\"\",\"\",'1. Ordersheet'!W1137)","v":""},{"$f":"IF('1. Ordersheet'!X1137=\"\",\"\",'1. Ordersheet'!X1137)","v":""},{"$f":"IF('1. Ordersheet'!Y1137=\"\",\"\",'1. Ordersheet'!Y1137)","v":""},{"$f":"IF('1. Ordersheet'!Z1137=\"\",\"\",'1. Ordersheet'!Z1137)","v":""},{"$f":"IF('1. Ordersheet'!AA1137=\"\",\"\",'1. Ordersheet'!AA1137)","v":""},null,{"$f":"IF('1. Ordersheet'!AS1137=\"\",\"\",'1. Ordersheet'!AS1137)","v":""},{"$f":"IF('1. Ordersheet'!AT1137=\"\",\"\",'1. Ordersheet'!AT1137)","v":""},null,null,null,null,null,null,null,{"$f":"IF('1. Ordersheet'!AX1137=\"\",\"\",'1. Ordersheet'!AX1137)","v":""},{"$f":"IF('1. Ordersheet'!AY1137=\"\",\"\",'1. Ordersheet'!AY1137)","v":""},{"$f":"IF('1. Ordersheet'!AZ1137=\"\",\"\",'1. Ordersheet'!AZ1137)","v":""},{"$f":"IF('1. Ordersheet'!BA1137=\"\",\"\",'1. Ordersheet'!BA1137)","v":""},{"$f":"IF('1. Ordersheet'!BC1137=\"\",\"\",'1. Ordersheet'!BC1137)","v":""},{"$f":"IF('1. Ordersheet'!BD1137=\"\",\"\",'1. Ordersheet'!BD1137)","v":""},{"$f":"IF('1. Ordersheet'!BE1137=\"\",\"\",'1. Ordersheet'!BE1137)","v":""},{"$f":"IF('1. Ordersheet'!BF1137=\"\",\"\",'1. Ordersheet'!BF1137)","v":""},{"$f":"IF('1. Ordersheet'!BG1137=\"\",\"\",'1. Ordersheet'!BG1137)","v":"ZWO"},{"$f":"IF('1. Ordersheet'!BH1137=\"\",\"\",'1. Ordersheet'!BH1137)","v":""},{"$f":"IF('1. Ordersheet'!BI1137=\"\",\"\",'1. Ordersheet'!BI1137)","v":""},{"$f":"IF('1. Ordersheet'!BJ1137=\"\",\"\",'1. Ordersheet'!BJ1137)","v":""},{"$f":"IF('1. Ordersheet'!BK1137=\"\",\"\",'1. Ordersheet'!BK1137)","v":""},{"$f":"IF('1. Ordersheet'!BL1137=\"\",\"\",'1. Ordersheet'!BL1137)","v":""}]
[{"$f":"IF('1. Ordersheet'!F1138=\"\",\"\",'1. Ordersheet'!F1138)","v":""},{"$f":"IF('1. Ordersheet'!G1138=\"\",\"\",'1. Ordersheet'!G1138)","v":""},{"$f":"IF('1. Ordersheet'!H1138=\"\",\"\",'1. Ordersheet'!H1138)","v":""},{"$f":"IF('1. Ordersheet'!I1138=\"\",\"\",'1. Ordersheet'!I1138)","v":""},{"$f":"IF('1. Ordersheet'!J1138=\"\",\"\",'1. Ordersheet'!J1138)","v":""},{"$f":"IF('1. Ordersheet'!K1138=\"\",\"\",'1. Ordersheet'!K1138)","v":""},{"$f":"IF('1. Ordersheet'!L1138=\"\",\"\",'1. Ordersheet'!L1138)","v":""},{"$f":"IF('1. Ordersheet'!M1138=\"\",\"\",'1. Ordersheet'!M1138)","v":""},{"$f":"IF('1. Ordersheet'!N1138=\"\",\"\",'1. Ordersheet'!N1138)","v":""},{"$f":"IF('1. Ordersheet'!O1138=\"\",\"\",'1. Ordersheet'!O1138)","v":{"$error":"#N/A"}},{"$f":"IF('1. Ordersheet'!P1138=\"\",\"\",'1. Ordersheet'!P1138)","v":{"$error":"#N/A"}},{"$f":"IF('1. Ordersheet'!Q1138=\"\",\"\",'1. Ordersheet'!Q1138)","v":""},{"$f":"IF('1. Ordersheet'!R1138=\"\",\"\",'1. Ordersheet'!R1138)","v":""},{"$f":"IF('1. Ordersheet'!S1138=\"\",\"\",'1. Ordersheet'!S1138)","v":""},{"$f":"IF('1. Ordersheet'!V1138=\"\",\"\",'1. Ordersheet'!V1138)","v":""},{"$f":"IF('1. Ordersheet'!W1138=\"\",\"\",'1. Ordersheet'!W1138)","v":""},{"$f":"IF('1. Ordersheet'!X1138=\"\",\"\",'1. Ordersheet'!X1138)","v":""},{"$f":"IF('1. Ordersheet'!Y1138=\"\",\"\",'1. Ordersheet'!Y1138)","v":""},{"$f":"IF('1. Ordersheet'!Z1138=\"\",\"\",'1. Ordersheet'!Z1138)","v":""},{"$f":"IF('1. Ordersheet'!AA1138=\"\",\"\",'1. Ordersheet'!AA1138)","v":""},null,{"$f":"IF('1. Ordersheet'!AS1138=\"\",\"\",'1. Ordersheet'!AS1138)","v":""},{"$f":"IF('1. Ordersheet'!AT1138=\"\",\"\",'1. Ordersheet'!AT1138)","v":""},null,null,null,null,null,null,null,{"$f":"IF('1. Ordersheet'!AX1138=\"\",\"\",'1. Ordersheet'!AX1138)","v":""},{"$f":"IF('1. Ordersheet'!AY1138=\"\",\"\",'1. Ordersheet'!AY1138)","v":""},{"$f":"IF('1. Ordersheet'!AZ1138=\"\",\"\",'1. Ordersheet'!AZ1138)","v":""},{"$f":"IF('1. Ordersheet'!BA1138=\"\",\"\",'1. Ordersheet'!BA1138)","v":""},{"$f":"IF('1. Ordersheet'!BC1138=\"\",\"\",'1. Ordersheet'!BC1138)","v":""},{"$f":"IF('1. Ordersheet'!BD1138=\"\",\"\",'1. Ordersheet'!BD1138)","v":""},{"$f":"IF('1. Ordersheet'!BE1138=\"\",\"\",'1. Ordersheet'!BE1138)","v":""},{"$f":"IF('1. Ordersheet'!BF1138=\"\",\"\",'1. Ordersheet'!BF1138)","v":""},{"$f":"IF('1. Ordersheet'!BG1138=\"\",\"\",'1. Ordersheet'!BG1138)","v":"ZWO"},{"$f":"IF('1. Ordersheet'!BH1138=\"\",\"\",'1. Ordersheet'!BH1138)","v":""},{"$f":"IF('1. Ordersheet'!BI1138=\"\",\"\",'1. Ordersheet'!BI1138)","v":""},{"$f":"IF('1. Ordersheet'!BJ1138=\"\",\"\",'1. Ordersheet'!BJ1138)","v":""},{"$f":"IF('1. Ordersheet'!BK1138=\"\",\"\",'1. Ordersheet'!BK1138)","v":""},{"$f":"IF('1. Ordersheet'!BL1138=\"\",\"\",'1. Ordersheet'!BL1138)","v":""}]
[{"$f":"IF('1. Ordersheet'!F1139=\"\",\"\",'1. Ordersheet'!F1139)","v":""},{"$f":"IF('1. Ordersheet'!G1139=\"\",\"\",'1. Ordersheet'!G1139)","v":""},{"$f":"IF('1. Ordersheet'!H1139=\"\",\"\",'1. Ordersheet'!H1139)","v":""},{"$f":"IF('1. Ordersheet'!I1139=\"\",\"\",'1. Ordersheet'!I1139)","v":""},{"$f":"IF('1. Ordersheet'!J1139=\"\",\"\",'1. Ordersheet'!J1139)","v":""},{"$f":"IF('1. Ordersheet'!K1139=\"\",\"\",'1. Ordersheet'!K1139)","v":""},{"$f":"IF('1. Ordersheet'!L1139=\"\",\"\",'1. Ordersheet'!L1139)","v":""},{"$f":"IF('1. Ordersheet'!M1139=\"\",\"\",'1. Ordersheet'!M1139)","v":""},{"$f":"IF('1. Ordersheet'!N1139=\"\",\"\",'1. Ordersheet'!N1139)","v":""},{"$f":"IF('1. Ordersheet'!O1139=\"\",\"\",'1. Ordersheet'!O1139)","v":{"$error":"#N/A"}},{"$f":"IF('1. Ordersheet'!P1139=\"\",\"\",'1. Ordersheet'!P1139)","v":{"$error":"#N/A"}},{"$f":"IF('1. Ordersheet'!Q1139=\"\",\"\",'1. Ordersheet'!Q1139)","v":""},{"$f":"IF('1. Ordersheet'!R1139=\"\",\"\",'1. Ordersheet'!R1139)","v":""},{"$f":"IF('1. Ordersheet'!S1139=\"\",\"\",'1. Ordersheet'!S1139)","v":""},{"$f":"IF('1. Ordersheet'!V1139=\"\",\"\",'1. Ordersheet'!V1139)","v":""},{"$f":"IF('1. Ordersheet'!W1139=\"\",\"\",'1. Ordersheet'!W1139)","v":""},{"$f":"IF('1. Ordersheet'!X1139=\"\",\"\",'1. Ordersheet'!X1139)","v":""},{"$f":"IF('1. Ordersheet'!Y1139=\"\",\"\",'1. Ordersheet'!Y1139)","v":""},{"$f":"IF('1. Ordersheet'!Z1139=\"\",\"\",'1. Ordersheet'!Z1139)","v":""},{"$f":"IF('1. Ordersheet'!AA1139=\"\",\"\",'1. Ordersheet'!AA1139)","v":""},null,{"$f":"IF('1. Ordersheet'!AS1139=\"\",\"\",'1. Ordersheet'!AS1139)","v":""},{"$f":"IF('1. Ordersheet'!AT1139=\"\",\"\",'1. Ordersheet'!AT1139)","v":""},null,null,null,null,null,null,null,{"$f":"IF('1. Ordersheet'!AX1139=\"\",\"\",'1. Ordersheet'!AX1139)","v":""},{"$f":"IF('1. Ordersheet'!AY1139=\"\",\"\",'1. Ordersheet'!AY1139)","v":""},{"$f":"IF('1. Ordersheet'!AZ1139=\"\",\"\",'1. Ordersheet'!AZ1139)","v":""},{"$f":"IF('1. Ordersheet'!BA1139=\"\",\"\",'1. Ordersheet'!BA1139)","v":""},{"$f":"IF('1. Ordersheet'!BC1139=\"\",\"\",'1. Ordersheet'!BC1139)","v":""},{"$f":"IF('1. Ordersheet'!BD1139=\"\",\"\",'1. Ordersheet'!BD1139)","v":""},{"$f":"IF('1. Ordersheet'!BE1139=\"\",\"\",'1. Ordersheet'!BE1139)","v":""},{"$f":"IF('1. Ordersheet'!BF1139=\"\",\"\",'1. Ordersheet'!BF1139)","v":""},{"$f":"IF('1. Ordersheet'!BG1139=\"\",\"\",'1. Ordersheet'!BG1139)","v":"ZWO"},{"$f":"IF('1. Ordersheet'!BH1139=\"\",\"\",'1. Ordersheet'!BH1139)","v":""},{"$f":"IF('1. Ordersheet'!BI1139=\"\",\"\",'1. Ordersheet'!BI1139)","v":""},{"$f":"IF('1. Ordersheet'!BJ1139=\"\",\"\",'1. Ordersheet'!BJ1139)","v":""},{"$f":"IF('1. Ordersheet'!BK1139=\"\",\"\",'1. Ordersheet'!BK1139)","v":""},{"$f":"IF('1. Ordersheet'!BL1139=\"\",\"\",'1. Ordersheet'!BL1139)","v":""}]
[{"$f":"IF('1. Ordersheet'!F1140=\"\",\"\",'1. Ordersheet'!F1140)","v":""},{"$f":"IF('1. Ordersheet'!G1140=\"\",\"\",'1. Ordersheet'!G1140)","v":""},{"$f":"IF('1. Ordersheet'!H1140=\"\",\"\",'1. Ordersheet'!H1140)","v":""},{"$f":"IF('1. Ordersheet'!I1140=\"\",\"\",'1. Ordersheet'!I1140)","v":""},{"$f":"IF('1. Ordersheet'!J1140=\"\",\"\",'1. Ordersheet'!J1140)","v":""},{"$f":"IF('1. Ordersheet'!K1140=\"\",\"\",'1. Ordersheet'!K1140)","v":""},{"$f":"IF('1. Ordersheet'!L1140=\"\",\"\",'1. Ordersheet'!L1140)","v":""},{"$f":"IF('1. Ordersheet'!M1140=\"\",\"\",'1. Ordersheet'!M1140)","v":""},{"$f":"IF('1. Ordersheet'!N1140=\"\",\"\",'1. Ordersheet'!N1140)","v":""},{"$f":"IF('1. Ordersheet'!O1140=\"\",\"\",'1. Ordersheet'!O1140)","v":{"$error":"#N/A"}},{"$f":"IF('1. Ordersheet'!P1140=\"\",\"\",'1. Ordersheet'!P1140)","v":{"$error":"#N/A"}},{"$f":"IF('1. Ordersheet'!Q1140=\"\",\"\",'1. Ordersheet'!Q1140)","v":""},{"$f":"IF('1. Ordersheet'!R1140=\"\",\"\",'1. Ordersheet'!R1140)","v":""},{"$f":"IF('1. Ordersheet'!S1140=\"\",\"\",'1. Ordersheet'!S1140)","v":""},{"$f":"IF('1. Ordersheet'!V1140=\"\",\"\",'1. Ordersheet'!V1140)","v":""},{"$f":"IF('1. Ordersheet'!W1140=\"\",\"\",'1. Ordersheet'!W1140)","v":""},{"$f":"IF('1. Ordersheet'!X1140=\"\",\"\",'1. Ordersheet'!X1140)","v":""},{"$f":"IF('1. Ordersheet'!Y1140=\"\",\"\",'1. Ordersheet'!Y1140)","v":""},{"$f":"IF('1. Ordersheet'!Z1140=\"\",\"\",'1. Ordersheet'!Z1140)","v":""},{"$f":"IF('1. Ordersheet'!AA1140=\"\",\"\",'1. Ordersheet'!AA1140)","v":""},null,{"$f":"IF('1. Ordersheet'!AS1140=\"\",\"\",'1. Ordersheet'!AS1140)","v":""},{"$f":"IF('1. Ordersheet'!AT1140=\"\",\"\",'1. Ordersheet'!AT1140)","v":""},null,null,null,null,null,null,null,{"$f":"IF('1. Ordersheet'!AX1140=\"\",\"\",'1. Ordersheet'!AX1140)","v":""},{"$f":"IF('1. Ordersheet'!AY1140=\"\",\"\",'1. Ordersheet'!AY1140)","v":""},{"$f":"IF('1. Ordersheet'!AZ1140=\"\",\"\",'1. Ordersheet'!AZ1140)","v":""},{"$f":"IF('1. Ordersheet'!BA1140=\"\",\"\",'1. Ordersheet'!BA1140)","v":""},{"$f":"IF('1. Ordersheet'!BC1140=\"\",\"\",'1. Ordersheet'!BC1140)","v":""},{"$f":"IF('1. Ordersheet'!BD1140=\"\",\"\",'1. Ordersheet'!BD1140)","v":""},{"$f":"IF('1. Ordersheet'!BE1140=\"\",\"\",'1. Ordersheet'!BE1140)","v":""},{"$f":"IF('1. Ordersheet'!BF1140=\"\",\"\",'1. Ordersheet'!BF1140)","v":""},{"$f":"IF('1. Ordersheet'!BG1140=\"\",\"\",'1. Ordersheet'!BG1140)","v":"ZWO"},{"$f":"IF('1. Ordersheet'!BH1140=\"\",\"\",'1. Ordersheet'!BH1140)","v":""},{"$f":"IF('1. Ordersheet'!BI1140=\"\",\"\",'1. Ordersheet'!BI1140)","v":""},{"$f":"IF('1. Ordersheet'!BJ1140=\"\",\"\",'1. Ordersheet'!BJ1140)","v":""},{"$f":"IF('1. Ordersheet'!BK1140=\"\",\"\",'1. Ordersheet'!BK1140)","v":""},{"$f":"IF('1. Ordersheet'!BL1140=\"\",\"\",'1. Ordersheet'!BL1140)","v":""}]
[{"$f":"IF('1. Ordersheet'!F1141=\"\",\"\",'1. Ordersheet'!F1141)","v":""},{"$f":"IF('1. Ordersheet'!G1141=\"\",\"\",'1. Ordersheet'!G1141)","v":""},{"$f":"IF('1. Ordersheet'!H1141=\"\",\"\",'1. Ordersheet'!H1141)","v":""},{"$f":"IF('1. Ordersheet'!I1141=\"\",\"\",'1. Ordersheet'!I1141)","v":""},{"$f":"IF('1. Ordersheet'!J1141=\"\",\"\",'1. Ordersheet'!J1141)","v":""},{"$f":"IF('1. Ordersheet'!K1141=\"\",\"\",'1. Ordersheet'!K1141)","v":""},{"$f":"IF('1. Ordersheet'!L1141=\"\",\"\",'1. Ordersheet'!L1141)","v":""},{"$f":"IF('1. Ordersheet'!M1141=\"\",\"\",'1. Ordersheet'!M1141)","v":""},{"$f":"IF('1. Ordersheet'!N1141=\"\",\"\",'1. Ordersheet'!N1141)","v":""},{"$f":"IF('1. Ordersheet'!O1141=\"\",\"\",'1. Ordersheet'!O1141)","v":{"$error":"#N/A"}},{"$f":"IF('1. Ordersheet'!P1141=\"\",\"\",'1. Ordersheet'!P1141)","v":{"$error":"#N/A"}},{"$f":"IF('1. Ordersheet'!Q1141=\"\",\"\",'1. Ordersheet'!Q1141)","v":""},{"$f":"IF('1. Ordersheet'!R1141=\"\",\"\",'1. Ordersheet'!R1141)","v":""},{"$f":"IF('1. Ordersheet'!S1141=\"\",\"\",'1. Ordersheet'!S1141)","v":""},{"$f":"IF('1. Ordersheet'!V1141=\"\",\"\",'1. Ordersheet'!V1141)","v":""},{"$f":"IF('1. Ordersheet'!W1141=\"\",\"\",'1. Ordersheet'!W1141)","v":""},{"$f":"IF('1. Ordersheet'!X1141=\"\",\"\",'1. Ordersheet'!X1141)","v":""},{"$f":"IF('1. Ordersheet'!Y1141=\"\",\"\",'1. Ordersheet'!Y1141)","v":""},{"$f":"IF('1. Ordersheet'!Z1141=\"\",\"\",'1. Ordersheet'!Z1141)","v":""},{"$f":"IF('1. Ordersheet'!AA1141=\"\",\"\",'1. Ordersheet'!AA1141)","v":""},null,{"$f":"IF('1. Ordersheet'!AS1141=\"\",\"\",'1. Ordersheet'!AS1141)","v":""},{"$f":"IF('1. Ordersheet'!AT1141=\"\",\"\",'1. Ordersheet'!AT1141)","v":""},null,null,null,null,null,null,null,{"$f":"IF('1. Ordersheet'!AX1141=\"\",\"\",'1. Ordersheet'!AX1141)","v":""},{"$f":"IF('1. Ordersheet'!AY1141=\"\",\"\",'1. Ordersheet'!AY1141)","v":""},{"$f":"IF('1. Ordersheet'!AZ1141=\"\",\"\",'1. Ordersheet'!AZ1141)","v":""},{"$f":"IF('1. Ordersheet'!BA1141=\"\",\"\",'1. Ordersheet'!BA1141)","v":""},{"$f":"IF('1. Ordersheet'!BC1141=\"\",\"\",'1. Ordersheet'!BC1141)","v":""},{"$f":"IF('1. Ordersheet'!BD1141=\"\",\"\",'1. Ordersheet'!BD1141)","v":""},{"$f":"IF('1. Ordersheet'!BE1141=\"\",\"\",'1. Ordersheet'!BE1141)","v":""},{"$f":"IF('1. Ordersheet'!BF1141=\"\",\"\",'1. Ordersheet'!BF1141)","v":""},{"$f":"IF('1. Ordersheet'!BG1141=\"\",\"\",'1. Ordersheet'!BG1141)","v":"ZWO"},{"$f":"IF('1. Ordersheet'!BH1141=\"\",\"\",'1. Ordersheet'!BH1141)","v":""},{"$f":"IF('1. Ordersheet'!BI1141=\"\",\"\",'1. Ordersheet'!BI1141)","v":""},{"$f":"IF('1. Ordersheet'!BJ1141=\"\",\"\",'1. Ordersheet'!BJ1141)","v":""},{"$f":"IF('1. Ordersheet'!BK1141=\"\",\"\",'1. Ordersheet'!BK1141)","v":""},{"$f":"IF('1. Ordersheet'!BL1141=\"\",\"\",'1. Ordersheet'!BL1141)","v":""}]
[{"$f":"IF('1. Ordersheet'!F1142=\"\",\"\",'1. Ordersheet'!F1142)","v":""},{"$f":"IF('1. Ordersheet'!G1142=\"\",\"\",'1. Ordersheet'!G1142)","v":""},{"$f":"IF('1. Ordersheet'!H1142=\"\",\"\",'1. Ordersheet'!H1142)","v":""},{"$f":"IF('1. Ordersheet'!I1142=\"\",\"\",'1. Ordersheet'!I1142)","v":""},{"$f":"IF('1. Ordersheet'!J1142=\"\",\"\",'1. Ordersheet'!J1142)","v":""},{"$f":"IF('1. Ordersheet'!K1142=\"\",\"\",'1. Ordersheet'!K1142)","v":""},{"$f":"IF('1. Ordersheet'!L1142=\"\",\"\",'1. Ordersheet'!L1142)","v":""},{"$f":"IF('1. Ordersheet'!M1142=\"\",\"\",'1. Ordersheet'!M1142)","v":""},{"$f":"IF('1. Ordersheet'!N1142=\"\",\"\",'1. Ordersheet'!N1142)","v":""},{"$f":"IF('1. Ordersheet'!O1142=\"\",\"\",'1. Ordersheet'!O1142)","v":{"$error":"#N/A"}},{"$f":"IF('1. Ordersheet'!P1142=\"\",\"\",'1. Ordersheet'!P1142)","v":{"$error":"#N/A"}},{"$f":"IF('1. Ordersheet'!Q1142=\"\",\"\",'1. Ordersheet'!Q1142)","v":""},{"$f":"IF('1. Ordersheet'!R1142=\"\",\"\",'1. Ordersheet'!R1142)","v":""},{"$f":"IF('1. Ordersheet'!S1142=\"\",\"\",'1. Ordersheet'!S1142)","v":""},{"$f":"IF('1. Ordersheet'!V1142=\"\",\"\",'1. Ordersheet'!V1142)","v":""},{"$f":"IF('1. Ordersheet'!W1142=\"\",\"\",'1. Ordersheet'!W1142)","v":""},{"$f":"IF('1. Ordersheet'!X1142=\"\",\"\",'1. Ordersheet'!X1142)","v":""},{"$f":"IF('1. Ordersheet'!Y1142=\"\",\"\",'1. Ordersheet'!Y1142)","v":""},{"$f":"IF('1. Ordersheet'!Z1142=\"\",\"\",'1. Ordersheet'!Z1142)","v":""},{"$f":"IF('1. Ordersheet'!AA1142=\"\",\"\",'1. Ordersheet'!AA1142)","v":""},null,{"$f":"IF('1. Ordersheet'!AS1142=\"\",\"\",'1. Ordersheet'!AS1142)","v":""},{"$f":"IF('1. Ordersheet'!AT1142=\"\",\"\",'1. Ordersheet'!AT1142)","v":""},null,null,null,null,null,null,null,{"$f":"IF('1. Ordersheet'!AX1142=\"\",\"\",'1. Ordersheet'!AX1142)","v":""},{"$f":"IF('1. Ordersheet'!AY1142=\"\",\"\",'1. Ordersheet'!AY1142)","v":""},{"$f":"IF('1. Ordersheet'!AZ1142=\"\",\"\",'1. Ordersheet'!AZ1142)","v":""},{"$f":"IF('1. Ordersheet'!BA1142=\"\",\"\",'1. Ordersheet'!BA1142)","v":""},{"$f":"IF('1. Ordersheet'!BC1142=\"\",\"\",'1. Ordersheet'!BC1142)","v":""},{"$f":"IF('1. Ordersheet'!BD1142=\"\",\"\",'1. Ordersheet'!BD1142)","v":""},{"$f":"IF('1. Ordersheet'!BE1142=\"\",\"\",'1. Ordersheet'!BE1142)","v":""},{"$f":"IF('1. Ordersheet'!BF1142=\"\",\"\",'1. Ordersheet'!BF1142)","v":""},{"$f":"IF('1. Ordersheet'!BG1142=\"\",\"\",'1. Ordersheet'!BG1142)","v":"ZWO"},{"$f":"IF('1. Ordersheet'!BH1142=\"\",\"\",'1. Ordersheet'!BH1142)","v":""},{"$f":"IF('1. Ordersheet'!BI1142=\"\",\"\",'1. Ordersheet'!BI1142)","v":""},{"$f":"IF('1. Ordersheet'!BJ1142=\"\",\"\",'1. Ordersheet'!BJ1142)","v":""},{"$f":"IF('1. Ordersheet'!BK1142=\"\",\"\",'1. Ordersheet'!BK1142)","v":""},{"$f":"IF('1. Ordersheet'!BL1142=\"\",\"\",'1. Ordersheet'!BL1142)","v":""}]
[{"$f":"IF('1. Ordersheet'!F1143=\"\",\"\",'1. Ordersheet'!F1143)","v":""},{"$f":"IF('1. Ordersheet'!G1143=\"\",\"\",'1. Ordersheet'!G1143)","v":""},{"$f":"IF('1. Ordersheet'!H1143=\"\",\"\",'1. Ordersheet'!H1143)","v":""},{"$f":"IF('1. Ordersheet'!I1143=\"\",\"\",'1. Ordersheet'!I1143)","v":""},{"$f":"IF('1. Ordersheet'!J1143=\"\",\"\",'1. Ordersheet'!J1143)","v":""},{"$f":"IF('1. Ordersheet'!K1143=\"\",\"\",'1. Ordersheet'!K1143)","v":""},{"$f":"IF('1. Ordersheet'!L1143=\"\",\"\",'1. Ordersheet'!L1143)","v":""},{"$f":"IF('1. Ordersheet'!M1143=\"\",\"\",'1. Ordersheet'!M1143)","v":""},{"$f":"IF('1. Ordersheet'!N1143=\"\",\"\",'1. Ordersheet'!N1143)","v":""},{"$f":"IF('1. Ordersheet'!O1143=\"\",\"\",'1. Ordersheet'!O1143)","v":{"$error":"#N/A"}},{"$f":"IF('1. Ordersheet'!P1143=\"\",\"\",'1. Ordersheet'!P1143)","v":{"$error":"#N/A"}},{"$f":"IF('1. Ordersheet'!Q1143=\"\",\"\",'1. Ordersheet'!Q1143)","v":""},{"$f":"IF('1. Ordersheet'!R1143=\"\",\"\",'1. Ordersheet'!R1143)","v":""},{"$f":"IF('1. Ordersheet'!S1143=\"\",\"\",'1. Ordersheet'!S1143)","v":""},{"$f":"IF('1. Ordersheet'!V1143=\"\",\"\",'1. Ordersheet'!V1143)","v":""},{"$f":"IF('1. Ordersheet'!W1143=\"\",\"\",'1. Ordersheet'!W1143)","v":""},{"$f":"IF('1. Ordersheet'!X1143=\"\",\"\",'1. Ordersheet'!X1143)","v":""},{"$f":"IF('1. Ordersheet'!Y1143=\"\",\"\",'1. Ordersheet'!Y1143)","v":""},{"$f":"IF('1. Ordersheet'!Z1143=\"\",\"\",'1. Ordersheet'!Z1143)","v":""},{"$f":"IF('1. Ordersheet'!AA1143=\"\",\"\",'1. Ordersheet'!AA1143)","v":""},null,{"$f":"IF('1. Ordersheet'!AS1143=\"\",\"\",'1. Ordersheet'!AS1143)","v":""},{"$f":"IF('1. Ordersheet'!AT1143=\"\",\"\",'1. Ordersheet'!AT1143)","v":""},null,null,null,null,null,null,null,{"$f":"IF('1. Ordersheet'!AX1143=\"\",\"\",'1. Ordersheet'!AX1143)","v":""},{"$f":"IF('1. Ordersheet'!AY1143=\"\",\"\",'1. Ordersheet'!AY1143)","v":""},{"$f":"IF('1. Ordersheet'!AZ1143=\"\",\"\",'1. Ordersheet'!AZ1143)","v":""},{"$f":"IF('1. Ordersheet'!BA1143=\"\",\"\",'1. Ordersheet'!BA1143)","v":""},{"$f":"IF('1. Ordersheet'!BC1143=\"\",\"\",'1. Ordersheet'!BC1143)","v":""},{"$f":"IF('1. Ordersheet'!BD1143=\"\",\"\",'1. Ordersheet'!BD1143)","v":""},{"$f":"IF('1. Ordersheet'!BE1143=\"\",\"\",'1. Ordersheet'!BE1143)","v":""},{"$f":"IF('1. Ordersheet'!BF1143=\"\",\"\",'1. Ordersheet'!BF1143)","v":""},{"$f":"IF('1. Ordersheet'!BG1143=\"\",\"\",'1. Ordersheet'!BG1143)","v":"ZWO"},{"$f":"IF('1. Ordersheet'!BH1143=\"\",\"\",'1. Ordersheet'!BH1143)","v":""},{"$f":"IF('1. Ordersheet'!BI1143=\"\",\"\",'1. Ordersheet'!BI1143)","v":""},{"$f":"IF('1. Ordersheet'!BJ1143=\"\",\"\",'1. Ordersheet'!BJ1143)","v":""},{"$f":"IF('1. Ordersheet'!BK1143=\"\",\"\",'1. Ordersheet'!BK1143)","v":""},{"$f":"IF('1. Ordersheet'!BL1143=\"\",\"\",'1. Ordersheet'!BL1143)","v":""}]
[{"$f":"IF('1. Ordersheet'!F1144=\"\",\"\",'1. Ordersheet'!F1144)","v":""},{"$f":"IF('1. Ordersheet'!G1144=\"\",\"\",'1. Ordersheet'!G1144)","v":""},{"$f":"IF('1. Ordersheet'!H1144=\"\",\"\",'1. Ordersheet'!H1144)","v":""},{"$f":"IF('1. Ordersheet'!I1144=\"\",\"\",'1. Ordersheet'!I1144)","v":""},{"$f":"IF('1. Ordersheet'!J1144=\"\",\"\",'1. Ordersheet'!J1144)","v":""},{"$f":"IF('1. Ordersheet'!K1144=\"\",\"\",'1. Ordersheet'!K1144)","v":""},{"$f":"IF('1. Ordersheet'!L1144=\"\",\"\",'1. Ordersheet'!L1144)","v":""},{"$f":"IF('1. Ordersheet'!M1144=\"\",\"\",'1. Ordersheet'!M1144)","v":""},{"$f":"IF('1. Ordersheet'!N1144=\"\",\"\",'1. Ordersheet'!N1144)","v":""},{"$f":"IF('1. Ordersheet'!O1144=\"\",\"\",'1. Ordersheet'!O1144)","v":{"$error":"#N/A"}},{"$f":"IF('1. Ordersheet'!P1144=\"\",\"\",'1. Ordersheet'!P1144)","v":{"$error":"#N/A"}},{"$f":"IF('1. Ordersheet'!Q1144=\"\",\"\",'1. Ordersheet'!Q1144)","v":""},{"$f":"IF('1. Ordersheet'!R1144=\"\",\"\",'1. Ordersheet'!R1144)","v":""},{"$f":"IF('1. Ordersheet'!S1144=\"\",\"\",'1. Ordersheet'!S1144)","v":""},{"$f":"IF('1. Ordersheet'!V1144=\"\",\"\",'1. Ordersheet'!V1144)","v":""},{"$f":"IF('1. Ordersheet'!W1144=\"\",\"\",'1. Ordersheet'!W1144)","v":""},{"$f":"IF('1. Ordersheet'!X1144=\"\",\"\",'1. Ordersheet'!X1144)","v":""},{"$f":"IF('1. Ordersheet'!Y1144=\"\",\"\",'1. Ordersheet'!Y1144)","v":""},{"$f":"IF('1. Ordersheet'!Z1144=\"\",\"\",'1. Ordersheet'!Z1144)","v":""},{"$f":"IF('1. Ordersheet'!AA1144=\"\",\"\",'1. Ordersheet'!AA1144)","v":""},null,{"$f":"IF('1. Ordersheet'!AS1144=\"\",\"\",'1. Ordersheet'!AS1144)","v":""},{"$f":"IF('1. Ordersheet'!AT1144=\"\",\"\",'1. Ordersheet'!AT1144)","v":""},null,null,null,null,null,null,null,{"$f":"IF('1. Ordersheet'!AX1144=\"\",\"\",'1. Ordersheet'!AX1144)","v":""},{"$f":"IF('1. Ordersheet'!AY1144=\"\",\"\",'1. Ordersheet'!AY1144)","v":""},{"$f":"IF('1. Ordersheet'!AZ1144=\"\",\"\",'1. Ordersheet'!AZ1144)","v":""},{"$f":"IF('1. Ordersheet'!BA1144=\"\",\"\",'1. Ordersheet'!BA1144)","v":""},{"$f":"IF('1. Ordersheet'!BC1144=\"\",\"\",'1. Ordersheet'!BC1144)","v":""},{"$f":"IF('1. Ordersheet'!BD1144=\"\",\"\",'1. Ordersheet'!BD1144)","v":""},{"$f":"IF('1. Ordersheet'!BE1144=\"\",\"\",'1. Ordersheet'!BE1144)","v":""},{"$f":"IF('1. Ordersheet'!BF1144=\"\",\"\",'1. Ordersheet'!BF1144)","v":""},{"$f":"IF('1. Ordersheet'!BG1144=\"\",\"\",'1. Ordersheet'!BG1144)","v":"ZWO"},{"$f":"IF('1. Ordersheet'!BH1144=\"\",\"\",'1. Ordersheet'!BH1144)","v":""},{"$f":"IF('1. Ordersheet'!BI1144=\"\",\"\",'1. Ordersheet'!BI1144)","v":""},{"$f":"IF('1. Ordersheet'!BJ1144=\"\",\"\",'1. Ordersheet'!BJ1144)","v":""},{"$f":"IF('1. Ordersheet'!BK1144=\"\",\"\",'1. Ordersheet'!BK1144)","v":""},{"$f":"IF('1. Ordersheet'!BL1144=\"\",\"\",'1. Ordersheet'!BL1144)","v":""}]
[{"$f":"IF('1. Ordersheet'!F1145=\"\",\"\",'1. Ordersheet'!F1145)","v":""},{"$f":"IF('1. Ordersheet'!G1145=\"\",\"\",'1. Ordersheet'!G1145)","v":""},{"$f":"IF('1. Ordersheet'!H1145=\"\",\"\",'1. Ordersheet'!H1145)","v":""},{"$f":"IF('1. Ordersheet'!I1145=\"\",\"\",'1. Ordersheet'!I1145)","v":""},{"$f":"IF('1. Ordersheet'!J1145=\"\",\"\",'1. Ordersheet'!J1145)","v":""},{"$f":"IF('1. Ordersheet'!K1145=\"\",\"\",'1. Ordersheet'!K1145)","v":""},{"$f":"IF('1. Ordersheet'!L1145=\"\",\"\",'1. Ordersheet'!L1145)","v":""},{"$f":"IF('1. Ordersheet'!M1145=\"\",\"\",'1. Ordersheet'!M1145)","v":""},{"$f":"IF('1. Ordersheet'!N1145=\"\",\"\",'1. Ordersheet'!N1145)","v":""},{"$f":"IF('1. Ordersheet'!O1145=\"\",\"\",'1. Ordersheet'!O1145)","v":{"$error":"#N/A"}},{"$f":"IF('1. Ordersheet'!P1145=\"\",\"\",'1. Ordersheet'!P1145)","v":{"$error":"#N/A"}},{"$f":"IF('1. Ordersheet'!Q1145=\"\",\"\",'1. Ordersheet'!Q1145)","v":""},{"$f":"IF('1. Ordersheet'!R1145=\"\",\"\",'1. Ordersheet'!R1145)","v":""},{"$f":"IF('1. Ordersheet'!S1145=\"\",\"\",'1. Ordersheet'!S1145)","v":""},{"$f":"IF('1. Ordersheet'!V1145=\"\",\"\",'1. Ordersheet'!V1145)","v":""},{"$f":"IF('1. Ordersheet'!W1145=\"\",\"\",'1. Ordersheet'!W1145)","v":""},{"$f":"IF('1. Ordersheet'!X1145=\"\",\"\",'1. Ordersheet'!X1145)","v":""},{"$f":"IF('1. Ordersheet'!Y1145=\"\",\"\",'1. Ordersheet'!Y1145)","v":""},{"$f":"IF('1. Ordersheet'!Z1145=\"\",\"\",'1. Ordersheet'!Z1145)","v":""},{"$f":"IF('1. Ordersheet'!AA1145=\"\",\"\",'1. Ordersheet'!AA1145)","v":""},null,{"$f":"IF('1. Ordersheet'!AS1145=\"\",\"\",'1. Ordersheet'!AS1145)","v":""},{"$f":"IF('1. Ordersheet'!AT1145=\"\",\"\",'1. Ordersheet'!AT1145)","v":""},null,null,null,null,null,null,null,{"$f":"IF('1. Ordersheet'!AX1145=\"\",\"\",'1. Ordersheet'!AX1145)","v":""},{"$f":"IF('1. Ordersheet'!AY1145=\"\",\"\",'1. Ordersheet'!AY1145)","v":""},{"$f":"IF('1. Ordersheet'!AZ1145=\"\",\"\",'1. Ordersheet'!AZ1145)","v":""},{"$f":"IF('1. Ordersheet'!BA1145=\"\",\"\",'1. Ordersheet'!BA1145)","v":""},{"$f":"IF('1. Ordersheet'!BC1145=\"\",\"\",'1. Ordersheet'!BC1145)","v":""},{"$f":"IF('1. Ordersheet'!BD1145=\"\",\"\",'1. Ordersheet'!BD1145)","v":""},{"$f":"IF('1. Ordersheet'!BE1145=\"\",\"\",'1. Ordersheet'!BE1145)","v":""},{"$f":"IF('1. Ordersheet'!BF1145=\"\",\"\",'1. Ordersheet'!BF1145)","v":""},{"$f":"IF('1. Ordersheet'!BG1145=\"\",\"\",'1. Ordersheet'!BG1145)","v":"ZWO"},{"$f":"IF('1. Ordersheet'!BH1145=\"\",\"\",'1. Ordersheet'!BH1145)","v":""},{"$f":"IF('1. Ordersheet'!BI1145=\"\",\"\",'1. Ordersheet'!BI1145)","v":""},{"$f":"IF('1. Ordersheet'!BJ1145=\"\",\"\",'1. Ordersheet'!BJ1145)","v":""},{"$f":"IF('1. Ordersheet'!BK1145=\"\",\"\",'1. Ordersheet'!BK1145)","v":""},{"$f":"IF('1. Ordersheet'!BL1145=\"\",\"\",'1. Ordersheet'!BL1145)","v":""}]
[{"$f":"IF('1. Ordersheet'!F1146=\"\",\"\",'1. Ordersheet'!F1146)","v":""},{"$f":"IF('1. Ordersheet'!G1146=\"\",\"\",'1. Ordersheet'!G1146)","v":""},{"$f":"IF('1. Ordersheet'!H1146=\"\",\"\",'1. Ordersheet'!H1146)","v":""},{"$f":"IF('1. Ordersheet'!I1146=\"\",\"\",'1. Ordersheet'!I1146)","v":""},{"$f":"IF('1. Ordersheet'!J1146=\"\",\"\",'1. Ordersheet'!J1146)","v":""},{"$f":"IF('1. Ordersheet'!K1146=\"\",\"\",'1. Ordersheet'!K1146)","v":""},{"$f":"IF('1. Ordersheet'!L1146=\"\",\"\",'1. Ordersheet'!L1146)","v":""},{"$f":"IF('1. Ordersheet'!M1146=\"\",\"\",'1. Ordersheet'!M1146)","v":""},{"$f":"IF('1. Ordersheet'!N1146=\"\",\"\",'1. Ordersheet'!N1146)","v":""},{"$f":"IF('1. Ordersheet'!O1146=\"\",\"\",'1. Ordersheet'!O1146)","v":{"$error":"#N/A"}},{"$f":"IF('1. Ordersheet'!P1146=\"\",\"\",'1. Ordersheet'!P1146)","v":{"$error":"#N/A"}},{"$f":"IF('1. Ordersheet'!Q1146=\"\",\"\",'1. Ordersheet'!Q1146)","v":""},{"$f":"IF('1. Ordersheet'!R1146=\"\",\"\",'1. Ordersheet'!R1146)","v":""},{"$f":"IF('1. Ordersheet'!S1146=\"\",\"\",'1. Ordersheet'!S1146)","v":""},{"$f":"IF('1. Ordersheet'!V1146=\"\",\"\",'1. Ordersheet'!V1146)","v":""},{"$f":"IF('1. Ordersheet'!W1146=\"\",\"\",'1. Ordersheet'!W1146)","v":""},{"$f":"IF('1. Ordersheet'!X1146=\"\",\"\",'1. Ordersheet'!X1146)","v":""},{"$f":"IF('1. Ordersheet'!Y1146=\"\",\"\",'1. Ordersheet'!Y1146)","v":""},{"$f":"IF('1. Ordersheet'!Z1146=\"\",\"\",'1. Ordersheet'!Z1146)","v":""},{"$f":"IF('1. Ordersheet'!AA1146=\"\",\"\",'1. Ordersheet'!AA1146)","v":""},null,{"$f":"IF('1. Ordersheet'!AS1146=\"\",\"\",'1. Ordersheet'!AS1146)","v":""},{"$f":"IF('1. Ordersheet'!AT1146=\"\",\"\",'1. Ordersheet'!AT1146)","v":""},null,null,null,null,null,null,null,{"$f":"IF('1. Ordersheet'!AX1146=\"\",\"\",'1. Ordersheet'!AX1146)","v":""},{"$f":"IF('1. Ordersheet'!AY1146=\"\",\"\",'1. Ordersheet'!AY1146)","v":""},{"$f":"IF('1. Ordersheet'!AZ1146=\"\",\"\",'1. Ordersheet'!AZ1146)","v":""},{"$f":"IF('1. Ordersheet'!BA1146=\"\",\"\",'1. Ordersheet'!BA1146)","v":""},{"$f":"IF('1. Ordersheet'!BC1146=\"\",\"\",'1. Ordersheet'!BC1146)","v":""},{"$f":"IF('1. Ordersheet'!BD1146=\"\",\"\",'1. Ordersheet'!BD1146)","v":""},{"$f":"IF('1. Ordersheet'!BE1146=\"\",\"\",'1. Ordersheet'!BE1146)","v":""},{"$f":"IF('1. Ordersheet'!BF1146=\"\",\"\",'1. Ordersheet'!BF1146)","v":""},{"$f":"IF('1. Ordersheet'!BG1146=\"\",\"\",'1. Ordersheet'!BG1146)","v":"ZWO"},{"$f":"IF('1. Ordersheet'!BH1146=\"\",\"\",'1. Ordersheet'!BH1146)","v":""},{"$f":"IF('1. Ordersheet'!BI1146=\"\",\"\",'1. Ordersheet'!BI1146)","v":""},{"$f":"IF('1. Ordersheet'!BJ1146=\"\",\"\",'1. Ordersheet'!BJ1146)","v":""},{"$f":"IF('1. Ordersheet'!BK1146=\"\",\"\",'1. Ordersheet'!BK1146)","v":""},{"$f":"IF('1. Ordersheet'!BL1146=\"\",\"\",'1. Ordersheet'!BL1146)","v":""}]
[{"$f":"IF('1. Ordersheet'!F1147=\"\",\"\",'1. Ordersheet'!F1147)","v":""},{"$f":"IF('1. Ordersheet'!G1147=\"\",\"\",'1. Ordersheet'!G1147)","v":""},{"$f":"IF('1. Ordersheet'!H1147=\"\",\"\",'1. Ordersheet'!H1147)","v":""},{"$f":"IF('1. Ordersheet'!I1147=\"\",\"\",'1. Ordersheet'!I1147)","v":""},{"$f":"IF('1. Ordersheet'!J1147=\"\",\"\",'1. Ordersheet'!J1147)","v":""},{"$f":"IF('1. Ordersheet'!K1147=\"\",\"\",'1. Ordersheet'!K1147)","v":""},{"$f":"IF('1. Ordersheet'!L1147=\"\",\"\",'1. Ordersheet'!L1147)","v":""},{"$f":"IF('1. Ordersheet'!M1147=\"\",\"\",'1. Ordersheet'!M1147)","v":""},{"$f":"IF('1. Ordersheet'!N1147=\"\",\"\",'1. Ordersheet'!N1147)","v":""},{"$f":"IF('1. Ordersheet'!O1147=\"\",\"\",'1. Ordersheet'!O1147)","v":{"$error":"#N/A"}},{"$f":"IF('1. Ordersheet'!P1147=\"\",\"\",'1. Ordersheet'!P1147)","v":{"$error":"#N/A"}},{"$f":"IF('1. Ordersheet'!Q1147=\"\",\"\",'1. Ordersheet'!Q1147)","v":""},{"$f":"IF('1. Ordersheet'!R1147=\"\",\"\",'1. Ordersheet'!R1147)","v":""},{"$f":"IF('1. Ordersheet'!S1147=\"\",\"\",'1. Ordersheet'!S1147)","v":""},{"$f":"IF('1. Ordersheet'!V1147=\"\",\"\",'1. Ordersheet'!V1147)","v":""},{"$f":"IF('1. Ordersheet'!W1147=\"\",\"\",'1. Ordersheet'!W1147)","v":""},{"$f":"IF('1. Ordersheet'!X1147=\"\",\"\",'1. Ordersheet'!X1147)","v":""},{"$f":"IF('1. Ordersheet'!Y1147=\"\",\"\",'1. Ordersheet'!Y1147)","v":""},{"$f":"IF('1. Ordersheet'!Z1147=\"\",\"\",'1. Ordersheet'!Z1147)","v":""},{"$f":"IF('1. Ordersheet'!AA1147=\"\",\"\",'1. Ordersheet'!AA1147)","v":""},null,{"$f":"IF('1. Ordersheet'!AS1147=\"\",\"\",'1. Ordersheet'!AS1147)","v":""},{"$f":"IF('1. Ordersheet'!AT1147=\"\",\"\",'1. Ordersheet'!AT1147)","v":""},null,null,null,null,null,null,null,{"$f":"IF('1. Ordersheet'!AX1147=\"\",\"\",'1. Ordersheet'!AX1147)","v":""},{"$f":"IF('1. Ordersheet'!AY1147=\"\",\"\",'1. Ordersheet'!AY1147)","v":""},{"$f":"IF('1. Ordersheet'!AZ1147=\"\",\"\",'1. Ordersheet'!AZ1147)","v":""},{"$f":"IF('1. Ordersheet'!BA1147=\"\",\"\",'1. Ordersheet'!BA1147)","v":""},{"$f":"IF('1. Ordersheet'!BC1147=\"\",\"\",'1. Ordersheet'!BC1147)","v":""},{"$f":"IF('1. Ordersheet'!BD1147=\"\",\"\",'1. Ordersheet'!BD1147)","v":""},{"$f":"IF('1. Ordersheet'!BE1147=\"\",\"\",'1. Ordersheet'!BE1147)","v":""},{"$f":"IF('1. Ordersheet'!BF1147=\"\",\"\",'1. Ordersheet'!BF1147)","v":""},{"$f":"IF('1. Ordersheet'!BG1147=\"\",\"\",'1. Ordersheet'!BG1147)","v":"ZWO"},{"$f":"IF('1. Ordersheet'!BH1147=\"\",\"\",'1. Ordersheet'!BH1147)","v":""},{"$f":"IF('1. Ordersheet'!BI1147=\"\",\"\",'1. Ordersheet'!BI1147)","v":""},{"$f":"IF('1. Ordersheet'!BJ1147=\"\",\"\",'1. Ordersheet'!BJ1147)","v":""},{"$f":"IF('1. Ordersheet'!BK1147=\"\",\"\",'1. Ordersheet'!BK1147)","v":""},{"$f":"IF('1. Ordersheet'!BL1147=\"\",\"\",'1. Ordersheet'!BL1147)","v":""}]
[{"$f":"IF('1. Ordersheet'!F1148=\"\",\"\",'1. Ordersheet'!F1148)","v":""},{"$f":"IF('1. Ordersheet'!G1148=\"\",\"\",'1. Ordersheet'!G1148)","v":""},{"$f":"IF('1. Ordersheet'!H1148=\"\",\"\",'1. Ordersheet'!H1148)","v":""},{"$f":"IF('1. Ordersheet'!I1148=\"\",\"\",'1. Ordersheet'!I1148)","v":""},{"$f":"IF('1. Ordersheet'!J1148=\"\",\"\",'1. Ordersheet'!J1148)","v":""},{"$f":"IF('1. Ordersheet'!K1148=\"\",\"\",'1. Ordersheet'!K1148)","v":""},{"$f":"IF('1. Ordersheet'!L1148=\"\",\"\",'1. Ordersheet'!L1148)","v":""},{"$f":"IF('1. Ordersheet'!M1148=\"\",\"\",'1. Ordersheet'!M1148)","v":""},{"$f":"IF('1. Ordersheet'!N1148=\"\",\"\",'1. Ordersheet'!N1148)","v":""},{"$f":"IF('1. Ordersheet'!O1148=\"\",\"\",'1. Ordersheet'!O1148)","v":{"$error":"#N/A"}},{"$f":"IF('1. Ordersheet'!P1148=\"\",\"\",'1. Ordersheet'!P1148)","v":{"$error":"#N/A"}},{"$f":"IF('1. Ordersheet'!Q1148=\"\",\"\",'1. Ordersheet'!Q1148)","v":""},{"$f":"IF('1. Ordersheet'!R1148=\"\",\"\",'1. Ordersheet'!R1148)","v":""},{"$f":"IF('1. Ordersheet'!S1148=\"\",\"\",'1. Ordersheet'!S1148)","v":""},{"$f":"IF('1. Ordersheet'!V1148=\"\",\"\",'1. Ordersheet'!V1148)","v":""},{"$f":"IF('1. Ordersheet'!W1148=\"\",\"\",'1. Ordersheet'!W1148)","v":""},{"$f":"IF('1. Ordersheet'!X1148=\"\",\"\",'1. Ordersheet'!X1148)","v":""},{"$f":"IF('1. Ordersheet'!Y1148=\"\",\"\",'1. Ordersheet'!Y1148)","v":""},{"$f":"IF('1. Ordersheet'!Z1148=\"\",\"\",'1. Ordersheet'!Z1148)","v":""},{"$f":"IF('1. Ordersheet'!AA1148=\"\",\"\",'1. Ordersheet'!AA1148)","v":""},null,{"$f":"IF('1. Ordersheet'!AS1148=\"\",\"\",'1. Ordersheet'!AS1148)","v":""},{"$f":"IF('1. Ordersheet'!AT1148=\"\",\"\",'1. Ordersheet'!AT1148)","v":""},null,null,null,null,null,null,null,{"$f":"IF('1. Ordersheet'!AX1148=\"\",\"\",'1. Ordersheet'!AX1148)","v":""},{"$f":"IF('1. Ordersheet'!AY1148=\"\",\"\",'1. Ordersheet'!AY1148)","v":""},{"$f":"IF('1. Ordersheet'!AZ1148=\"\",\"\",'1. Ordersheet'!AZ1148)","v":""},{"$f":"IF('1. Ordersheet'!BA1148=\"\",\"\",'1. Ordersheet'!BA1148)","v":""},{"$f":"IF('1. Ordersheet'!BC1148=\"\",\"\",'1. Ordersheet'!BC1148)","v":""},{"$f":"IF('1. Ordersheet'!BD1148=\"\",\"\",'1. Ordersheet'!BD1148)","v":""},{"$f":"IF('1. Ordersheet'!BE1148=\"\",\"\",'1. Ordersheet'!BE1148)","v":""},{"$f":"IF('1. Ordersheet'!BF1148=\"\",\"\",'1. Ordersheet'!BF1148)","v":""},{"$f":"IF('1. Ordersheet'!BG1148=\"\",\"\",'1. Ordersheet'!BG1148)","v":"ZWO"},{"$f":"IF('1. Ordersheet'!BH1148=\"\",\"\",'1. Ordersheet'!BH1148)","v":""},{"$f":"IF('1. Ordersheet'!BI1148=\"\",\"\",'1. Ordersheet'!BI1148)","v":""},{"$f":"IF('1. Ordersheet'!BJ1148=\"\",\"\",'1. Ordersheet'!BJ1148)","v":""},{"$f":"IF('1. Ordersheet'!BK1148=\"\",\"\",'1. Ordersheet'!BK1148)","v":""},{"$f":"IF('1. Ordersheet'!BL1148=\"\",\"\",'1. Ordersheet'!BL1148)","v":""}]
[{"$f":"IF('1. Ordersheet'!F1149=\"\",\"\",'1. Ordersheet'!F1149)","v":""},{"$f":"IF('1. Ordersheet'!G1149=\"\",\"\",'1. Ordersheet'!G1149)","v":""},{"$f":"IF('1. Ordersheet'!H1149=\"\",\"\",'1. Ordersheet'!H1149)","v":""},{"$f":"IF('1. Ordersheet'!I1149=\"\",\"\",'1. Ordersheet'!I1149)","v":""},{"$f":"IF('1. Ordersheet'!J1149=\"\",\"\",'1. Ordersheet'!J1149)","v":""},{"$f":"IF('1. Ordersheet'!K1149=\"\",\"\",'1. Ordersheet'!K1149)","v":""},{"$f":"IF('1. Ordersheet'!L1149=\"\",\"\",'1. Ordersheet'!L1149)","v":""},{"$f":"IF('1. Ordersheet'!M1149=\"\",\"\",'1. Ordersheet'!M1149)","v":""},{"$f":"IF('1. Ordersheet'!N1149=\"\",\"\",'1. Ordersheet'!N1149)","v":""},{"$f":"IF('1. Ordersheet'!O1149=\"\",\"\",'1. Ordersheet'!O1149)","v":{"$error":"#N/A"}},{"$f":"IF('1. Ordersheet'!P1149=\"\",\"\",'1. Ordersheet'!P1149)","v":{"$error":"#N/A"}},{"$f":"IF('1. Ordersheet'!Q1149=\"\",\"\",'1. Ordersheet'!Q1149)","v":""},{"$f":"IF('1. Ordersheet'!R1149=\"\",\"\",'1. Ordersheet'!R1149)","v":""},{"$f":"IF('1. Ordersheet'!S1149=\"\",\"\",'1. Ordersheet'!S1149)","v":""},{"$f":"IF('1. Ordersheet'!V1149=\"\",\"\",'1. Ordersheet'!V1149)","v":""},{"$f":"IF('1. Ordersheet'!W1149=\"\",\"\",'1. Ordersheet'!W1149)","v":""},{"$f":"IF('1. Ordersheet'!X1149=\"\",\"\",'1. Ordersheet'!X1149)","v":""},{"$f":"IF('1. Ordersheet'!Y1149=\"\",\"\",'1. Ordersheet'!Y1149)","v":""},{"$f":"IF('1. Ordersheet'!Z1149=\"\",\"\",'1. Ordersheet'!Z1149)","v":""},{"$f":"IF('1. Ordersheet'!AA1149=\"\",\"\",'1. Ordersheet'!AA1149)","v":""},null,{"$f":"IF('1. Ordersheet'!AS1149=\"\",\"\",'1. Ordersheet'!AS1149)","v":""},{"$f":"IF('1. Ordersheet'!AT1149=\"\",\"\",'1. Ordersheet'!AT1149)","v":""},null,null,null,null,null,null,null,{"$f":"IF('1. Ordersheet'!AX1149=\"\",\"\",'1. Ordersheet'!AX1149)","v":""},{"$f":"IF('1. Ordersheet'!AY1149=\"\",\"\",'1. Ordersheet'!AY1149)","v":""},{"$f":"IF('1. Ordersheet'!AZ1149=\"\",\"\",'1. Ordersheet'!AZ1149)","v":""},{"$f":"IF('1. Ordersheet'!BA1149=\"\",\"\",'1. Ordersheet'!BA1149)","v":""},{"$f":"IF('1. Ordersheet'!BC1149=\"\",\"\",'1. Ordersheet'!BC1149)","v":""},{"$f":"IF('1. Ordersheet'!BD1149=\"\",\"\",'1. Ordersheet'!BD1149)","v":""},{"$f":"IF('1. Ordersheet'!BE1149=\"\",\"\",'1. Ordersheet'!BE1149)","v":""},{"$f":"IF('1. Ordersheet'!BF1149=\"\",\"\",'1. Ordersheet'!BF1149)","v":""},{"$f":"IF('1. Ordersheet'!BG1149=\"\",\"\",'1. Ordersheet'!BG1149)","v":"ZWO"},{"$f":"IF('1. Ordersheet'!BH1149=\"\",\"\",'1. Ordersheet'!BH1149)","v":""},{"$f":"IF('1. Ordersheet'!BI1149=\"\",\"\",'1. Ordersheet'!BI1149)","v":""},{"$f":"IF('1. Ordersheet'!BJ1149=\"\",\"\",'1. Ordersheet'!BJ1149)","v":""},{"$f":"IF('1. Ordersheet'!BK1149=\"\",\"\",'1. Ordersheet'!BK1149)","v":""},{"$f":"IF('1. Ordersheet'!BL1149=\"\",\"\",'1. Ordersheet'!BL1149)","v":""}]
[{"$f":"IF('1. Ordersheet'!F1150=\"\",\"\",'1. Ordersheet'!F1150)","v":""},{"$f":"IF('1. Ordersheet'!G1150=\"\",\"\",'1. Ordersheet'!G1150)","v":""},{"$f":"IF('1. Ordersheet'!H1150=\"\",\"\",'1. Ordersheet'!H1150)","v":""},{"$f":"IF('1. Ordersheet'!I1150=\"\",\"\",'1. Ordersheet'!I1150)","v":""},{"$f":"IF('1. Ordersheet'!J1150=\"\",\"\",'1. Ordersheet'!J1150)","v":""},{"$f":"IF('1. Ordersheet'!K1150=\"\",\"\",'1. Ordersheet'!K1150)","v":""},{"$f":"IF('1. Ordersheet'!L1150=\"\",\"\",'1. Ordersheet'!L1150)","v":""},{"$f":"IF('1. Ordersheet'!M1150=\"\",\"\",'1. Ordersheet'!M1150)","v":""},{"$f":"IF('1. Ordersheet'!N1150=\"\",\"\",'1. Ordersheet'!N1150)","v":""},{"$f":"IF('1. Ordersheet'!O1150=\"\",\"\",'1. Ordersheet'!O1150)","v":{"$error":"#N/A"}},{"$f":"IF('1. Ordersheet'!P1150=\"\",\"\",'1. Ordersheet'!P1150)","v":{"$error":"#N/A"}},{"$f":"IF('1. Ordersheet'!Q1150=\"\",\"\",'1. Ordersheet'!Q1150)","v":""},{"$f":"IF('1. Ordersheet'!R1150=\"\",\"\",'1. Ordersheet'!R1150)","v":""},{"$f":"IF('1. Ordersheet'!S1150=\"\",\"\",'1. Ordersheet'!S1150)","v":""},{"$f":"IF('1. Ordersheet'!V1150=\"\",\"\",'1. Ordersheet'!V1150)","v":""},{"$f":"IF('1. Ordersheet'!W1150=\"\",\"\",'1. Ordersheet'!W1150)","v":""},{"$f":"IF('1. Ordersheet'!X1150=\"\",\"\",'1. Ordersheet'!X1150)","v":""},{"$f":"IF('1. Ordersheet'!Y1150=\"\",\"\",'1. Ordersheet'!Y1150)","v":""},{"$f":"IF('1. Ordersheet'!Z1150=\"\",\"\",'1. Ordersheet'!Z1150)","v":""},{"$f":"IF('1. Ordersheet'!AA1150=\"\",\"\",'1. Ordersheet'!AA1150)","v":""},null,{"$f":"IF('1. Ordersheet'!AS1150=\"\",\"\",'1. Ordersheet'!AS1150)","v":""},{"$f":"IF('1. Ordersheet'!AT1150=\"\",\"\",'1. Ordersheet'!AT1150)","v":""},null,null,null,null,null,null,null,{"$f":"IF('1. Ordersheet'!AX1150=\"\",\"\",'1. Ordersheet'!AX1150)","v":""},{"$f":"IF('1. Ordersheet'!AY1150=\"\",\"\",'1. Ordersheet'!AY1150)","v":""},{"$f":"IF('1. Ordersheet'!AZ1150=\"\",\"\",'1. Ordersheet'!AZ1150)","v":""},{"$f":"IF('1. Ordersheet'!BA1150=\"\",\"\",'1. Ordersheet'!BA1150)","v":""},{"$f":"IF('1. Ordersheet'!BC1150=\"\",\"\",'1. Ordersheet'!BC1150)","v":""},{"$f":"IF('1. Ordersheet'!BD1150=\"\",\"\",'1. Ordersheet'!BD1150)","v":""},{"$f":"IF('1. Ordersheet'!BE1150=\"\",\"\",'1. Ordersheet'!BE1150)","v":""},{"$f":"IF('1. Ordersheet'!BF1150=\"\",\"\",'1. Ordersheet'!BF1150)","v":""},{"$f":"IF('1. Ordersheet'!BG1150=\"\",\"\",'1. Ordersheet'!BG1150)","v":"ZWO"},{"$f":"IF('1. Ordersheet'!BH1150=\"\",\"\",'1. Ordersheet'!BH1150)","v":""},{"$f":"IF('1. Ordersheet'!BI1150=\"\",\"\",'1. Ordersheet'!BI1150)","v":""},{"$f":"IF('1. Ordersheet'!BJ1150=\"\",\"\",'1. Ordersheet'!BJ1150)","v":""},{"$f":"IF('1. Ordersheet'!BK1150=\"\",\"\",'1. Ordersheet'!BK1150)","v":""},{"$f":"IF('1. Ordersheet'!BL1150=\"\",\"\",'1. Ordersheet'!BL1150)","v":""}]
[{"$f":"IF('1. Ordersheet'!F1151=\"\",\"\",'1. Ordersheet'!F1151)","v":""},{"$f":"IF('1. Ordersheet'!G1151=\"\",\"\",'1. Ordersheet'!G1151)","v":""},{"$f":"IF('1. Ordersheet'!H1151=\"\",\"\",'1. Ordersheet'!H1151)","v":""},{"$f":"IF('1. Ordersheet'!I1151=\"\",\"\",'1. Ordersheet'!I1151)","v":""},{"$f":"IF('1. Ordersheet'!J1151=\"\",\"\",'1. Ordersheet'!J1151)","v":""},{"$f":"IF('1. Ordersheet'!K1151=\"\",\"\",'1. Ordersheet'!K1151)","v":""},{"$f":"IF('1. Ordersheet'!L1151=\"\",\"\",'1. Ordersheet'!L1151)","v":""},{"$f":"IF('1. Ordersheet'!M1151=\"\",\"\",'1. Ordersheet'!M1151)","v":""},{"$f":"IF('1. Ordersheet'!N1151=\"\",\"\",'1. Ordersheet'!N1151)","v":""},{"$f":"IF('1. Ordersheet'!O1151=\"\",\"\",'1. Ordersheet'!O1151)","v":{"$error":"#N/A"}},{"$f":"IF('1. Ordersheet'!P1151=\"\",\"\",'1. Ordersheet'!P1151)","v":{"$error":"#N/A"}},{"$f":"IF('1. Ordersheet'!Q1151=\"\",\"\",'1. Ordersheet'!Q1151)","v":""},{"$f":"IF('1. Ordersheet'!R1151=\"\",\"\",'1. Ordersheet'!R1151)","v":""},{"$f":"IF('1. Ordersheet'!S1151=\"\",\"\",'1. Ordersheet'!S1151)","v":""},{"$f":"IF('1. Ordersheet'!V1151=\"\",\"\",'1. Ordersheet'!V1151)","v":""},{"$f":"IF('1. Ordersheet'!W1151=\"\",\"\",'1. Ordersheet'!W1151)","v":""},{"$f":"IF('1. Ordersheet'!X1151=\"\",\"\",'1. Ordersheet'!X1151)","v":""},{"$f":"IF('1. Ordersheet'!Y1151=\"\",\"\",'1. Ordersheet'!Y1151)","v":""},{"$f":"IF('1. Ordersheet'!Z1151=\"\",\"\",'1. Ordersheet'!Z1151)","v":""},{"$f":"IF('1. Ordersheet'!AA1151=\"\",\"\",'1. Ordersheet'!AA1151)","v":""},null,{"$f":"IF('1. Ordersheet'!AS1151=\"\",\"\",'1. Ordersheet'!AS1151)","v":""},{"$f":"IF('1. Ordersheet'!AT1151=\"\",\"\",'1. Ordersheet'!AT1151)","v":""},null,null,null,null,null,null,null,{"$f":"IF('1. Ordersheet'!AX1151=\"\",\"\",'1. Ordersheet'!AX1151)","v":""},{"$f":"IF('1. Ordersheet'!AY1151=\"\",\"\",'1. Ordersheet'!AY1151)","v":""},{"$f":"IF('1. Ordersheet'!AZ1151=\"\",\"\",'1. Ordersheet'!AZ1151)","v":""},{"$f":"IF('1. Ordersheet'!BA1151=\"\",\"\",'1. Ordersheet'!BA1151)","v":""},{"$f":"IF('1. Ordersheet'!BC1151=\"\",\"\",'1. Ordersheet'!BC1151)","v":""},{"$f":"IF('1. Ordersheet'!BD1151=\"\",\"\",'1. Ordersheet'!BD1151)","v":""},{"$f":"IF('1. Ordersheet'!BE1151=\"\",\"\",'1. Ordersheet'!BE1151)","v":""},{"$f":"IF('1. Ordersheet'!BF1151=\"\",\"\",'1. Ordersheet'!BF1151)","v":""},{"$f":"IF('1. Ordersheet'!BG1151=\"\",\"\",'1. Ordersheet'!BG1151)","v":"ZWO"},{"$f":"IF('1. Ordersheet'!BH1151=\"\",\"\",'1. Ordersheet'!BH1151)","v":""},{"$f":"IF('1. Ordersheet'!BI1151=\"\",\"\",'1. Ordersheet'!BI1151)","v":""},{"$f":"IF('1. Ordersheet'!BJ1151=\"\",\"\",'1. Ordersheet'!BJ1151)","v":""},{"$f":"IF('1. Ordersheet'!BK1151=\"\",\"\",'1. Ordersheet'!BK1151)","v":""},{"$f":"IF('1. Ordersheet'!BL1151=\"\",\"\",'1. Ordersheet'!BL1151)","v":""}]
[{"$f":"IF('1. Ordersheet'!F1152=\"\",\"\",'1. Ordersheet'!F1152)","v":""},{"$f":"IF('1. Ordersheet'!G1152=\"\",\"\",'1. Ordersheet'!G1152)","v":""},{"$f":"IF('1. Ordersheet'!H1152=\"\",\"\",'1. Ordersheet'!H1152)","v":""},{"$f":"IF('1. Ordersheet'!I1152=\"\",\"\",'1. Ordersheet'!I1152)","v":""},{"$f":"IF('1. Ordersheet'!J1152=\"\",\"\",'1. Ordersheet'!J1152)","v":""},{"$f":"IF('1. Ordersheet'!K1152=\"\",\"\",'1. Ordersheet'!K1152)","v":""},{"$f":"IF('1. Ordersheet'!L1152=\"\",\"\",'1. Ordersheet'!L1152)","v":""},{"$f":"IF('1. Ordersheet'!M1152=\"\",\"\",'1. Ordersheet'!M1152)","v":""},{"$f":"IF('1. Ordersheet'!N1152=\"\",\"\",'1. Ordersheet'!N1152)","v":""},{"$f":"IF('1. Ordersheet'!O1152=\"\",\"\",'1. Ordersheet'!O1152)","v":{"$error":"#N/A"}},{"$f":"IF('1. Ordersheet'!P1152=\"\",\"\",'1. Ordersheet'!P1152)","v":{"$error":"#N/A"}},{"$f":"IF('1. Ordersheet'!Q1152=\"\",\"\",'1. Ordersheet'!Q1152)","v":""},{"$f":"IF('1. Ordersheet'!R1152=\"\",\"\",'1. Ordersheet'!R1152)","v":""},{"$f":"IF('1. Ordersheet'!S1152=\"\",\"\",'1. Ordersheet'!S1152)","v":""},{"$f":"IF('1. Ordersheet'!V1152=\"\",\"\",'1. Ordersheet'!V1152)","v":""},{"$f":"IF('1. Ordersheet'!W1152=\"\",\"\",'1. Ordersheet'!W1152)","v":""},{"$f":"IF('1. Ordersheet'!X1152=\"\",\"\",'1. Ordersheet'!X1152)","v":""},{"$f":"IF('1. Ordersheet'!Y1152=\"\",\"\",'1. Ordersheet'!Y1152)","v":""},{"$f":"IF('1. Ordersheet'!Z1152=\"\",\"\",'1. Ordersheet'!Z1152)","v":""},{"$f":"IF('1. Ordersheet'!AA1152=\"\",\"\",'1. Ordersheet'!AA1152)","v":""},null,{"$f":"IF('1. Ordersheet'!AS1152=\"\",\"\",'1. Ordersheet'!AS1152)","v":""},{"$f":"IF('1. Ordersheet'!AT1152=\"\",\"\",'1. Ordersheet'!AT1152)","v":""},null,null,null,null,null,null,null,{"$f":"IF('1. Ordersheet'!AX1152=\"\",\"\",'1. Ordersheet'!AX1152)","v":""},{"$f":"IF('1. Ordersheet'!AY1152=\"\",\"\",'1. Ordersheet'!AY1152)","v":""},{"$f":"IF('1. Ordersheet'!AZ1152=\"\",\"\",'1. Ordersheet'!AZ1152)","v":""},{"$f":"IF('1. Ordersheet'!BA1152=\"\",\"\",'1. Ordersheet'!BA1152)","v":""},{"$f":"IF('1. Ordersheet'!BC1152=\"\",\"\",'1. Ordersheet'!BC1152)","v":""},{"$f":"IF('1. Ordersheet'!BD1152=\"\",\"\",'1. Ordersheet'!BD1152)","v":""},{"$f":"IF('1. Ordersheet'!BE1152=\"\",\"\",'1. Ordersheet'!BE1152)","v":""},{"$f":"IF('1. Ordersheet'!BF1152=\"\",\"\",'1. Ordersheet'!BF1152)","v":""},{"$f":"IF('1. Ordersheet'!BG1152=\"\",\"\",'1. Ordersheet'!BG1152)","v":"ZWO"},{"$f":"IF('1. Ordersheet'!BH1152=\"\",\"\",'1. Ordersheet'!BH1152)","v":""},{"$f":"IF('1. Ordersheet'!BI1152=\"\",\"\",'1. Ordersheet'!BI1152)","v":""},{"$f":"IF('1. Ordersheet'!BJ1152=\"\",\"\",'1. Ordersheet'!BJ1152)","v":""},{"$f":"IF('1. Ordersheet'!BK1152=\"\",\"\",'1. Ordersheet'!BK1152)","v":""},{"$f":"IF('1. Ordersheet'!BL1152=\"\",\"\",'1. Ordersheet'!BL1152)","v":""}]
[{"$f":"IF('1. Ordersheet'!F1153=\"\",\"\",'1. Ordersheet'!F1153)","v":""},{"$f":"IF('1. Ordersheet'!G1153=\"\",\"\",'1. Ordersheet'!G1153)","v":""},{"$f":"IF('1. Ordersheet'!H1153=\"\",\"\",'1. Ordersheet'!H1153)","v":""},{"$f":"IF('1. Ordersheet'!I1153=\"\",\"\",'1. Ordersheet'!I1153)","v":""},{"$f":"IF('1. Ordersheet'!J1153=\"\",\"\",'1. Ordersheet'!J1153)","v":""},{"$f":"IF('1. Ordersheet'!K1153=\"\",\"\",'1. Ordersheet'!K1153)","v":""},{"$f":"IF('1. Ordersheet'!L1153=\"\",\"\",'1. Ordersheet'!L1153)","v":""},{"$f":"IF('1. Ordersheet'!M1153=\"\",\"\",'1. Ordersheet'!M1153)","v":""},{"$f":"IF('1. Ordersheet'!N1153=\"\",\"\",'1. Ordersheet'!N1153)","v":""},{"$f":"IF('1. Ordersheet'!O1153=\"\",\"\",'1. Ordersheet'!O1153)","v":{"$error":"#N/A"}},{"$f":"IF('1. Ordersheet'!P1153=\"\",\"\",'1. Ordersheet'!P1153)","v":{"$error":"#N/A"}},{"$f":"IF('1. Ordersheet'!Q1153=\"\",\"\",'1. Ordersheet'!Q1153)","v":""},{"$f":"IF('1. Ordersheet'!R1153=\"\",\"\",'1. Ordersheet'!R1153)","v":""},{"$f":"IF('1. Ordersheet'!S1153=\"\",\"\",'1. Ordersheet'!S1153)","v":""},{"$f":"IF('1. Ordersheet'!V1153=\"\",\"\",'1. Ordersheet'!V1153)","v":""},{"$f":"IF('1. Ordersheet'!W1153=\"\",\"\",'1. Ordersheet'!W1153)","v":""},{"$f":"IF('1. Ordersheet'!X1153=\"\",\"\",'1. Ordersheet'!X1153)","v":""},{"$f":"IF('1. Ordersheet'!Y1153=\"\",\"\",'1. Ordersheet'!Y1153)","v":""},{"$f":"IF('1. Ordersheet'!Z1153=\"\",\"\",'1. Ordersheet'!Z1153)","v":""},{"$f":"IF('1. Ordersheet'!AA1153=\"\",\"\",'1. Ordersheet'!AA1153)","v":""},null,{"$f":"IF('1. Ordersheet'!AS1153=\"\",\"\",'1. Ordersheet'!AS1153)","v":""},{"$f":"IF('1. Ordersheet'!AT1153=\"\",\"\",'1. Ordersheet'!AT1153)","v":""},null,null,null,null,null,null,null,{"$f":"IF('1. Ordersheet'!AX1153=\"\",\"\",'1. Ordersheet'!AX1153)","v":""},{"$f":"IF('1. Ordersheet'!AY1153=\"\",\"\",'1. Ordersheet'!AY1153)","v":""},{"$f":"IF('1. Ordersheet'!AZ1153=\"\",\"\",'1. Ordersheet'!AZ1153)","v":""},{"$f":"IF('1. Ordersheet'!BA1153=\"\",\"\",'1. Ordersheet'!BA1153)","v":""},{"$f":"IF('1. Ordersheet'!BC1153=\"\",\"\",'1. Ordersheet'!BC1153)","v":""},{"$f":"IF('1. Ordersheet'!BD1153=\"\",\"\",'1. Ordersheet'!BD1153)","v":""},{"$f":"IF('1. Ordersheet'!BE1153=\"\",\"\",'1. Ordersheet'!BE1153)","v":""},{"$f":"IF('1. Ordersheet'!BF1153=\"\",\"\",'1. Ordersheet'!BF1153)","v":""},{"$f":"IF('1. Ordersheet'!BG1153=\"\",\"\",'1. Ordersheet'!BG1153)","v":"ZWO"},{"$f":"IF('1. Ordersheet'!BH1153=\"\",\"\",'1. Ordersheet'!BH1153)","v":""},{"$f":"IF('1. Ordersheet'!BI1153=\"\",\"\",'1. Ordersheet'!BI1153)","v":""},{"$f":"IF('1. Ordersheet'!BJ1153=\"\",\"\",'1. Ordersheet'!BJ1153)","v":""},{"$f":"IF('1. Ordersheet'!BK1153=\"\",\"\",'1. Ordersheet'!BK1153)","v":""},{"$f":"IF('1. Ordersheet'!BL1153=\"\",\"\",'1. Ordersheet'!BL1153)","v":""}]
[{"$f":"IF('1. Ordersheet'!F1154=\"\",\"\",'1. Ordersheet'!F1154)","v":""},{"$f":"IF('1. Ordersheet'!G1154=\"\",\"\",'1. Ordersheet'!G1154)","v":""},{"$f":"IF('1. Ordersheet'!H1154=\"\",\"\",'1. Ordersheet'!H1154)","v":""},{"$f":"IF('1. Ordersheet'!I1154=\"\",\"\",'1. Ordersheet'!I1154)","v":""},{"$f":"IF('1. Ordersheet'!J1154=\"\",\"\",'1. Ordersheet'!J1154)","v":""},{"$f":"IF('1. Ordersheet'!K1154=\"\",\"\",'1. Ordersheet'!K1154)","v":""},{"$f":"IF('1. Ordersheet'!L1154=\"\",\"\",'1. Ordersheet'!L1154)","v":""},{"$f":"IF('1. Ordersheet'!M1154=\"\",\"\",'1. Ordersheet'!M1154)","v":""},{"$f":"IF('1. Ordersheet'!N1154=\"\",\"\",'1. Ordersheet'!N1154)","v":""},{"$f":"IF('1. Ordersheet'!O1154=\"\",\"\",'1. Ordersheet'!O1154)","v":{"$error":"#N/A"}},{"$f":"IF('1. Ordersheet'!P1154=\"\",\"\",'1. Ordersheet'!P1154)","v":{"$error":"#N/A"}},{"$f":"IF('1. Ordersheet'!Q1154=\"\",\"\",'1. Ordersheet'!Q1154)","v":""},{"$f":"IF('1. Ordersheet'!R1154=\"\",\"\",'1. Ordersheet'!R1154)","v":""},{"$f":"IF('1. Ordersheet'!S1154=\"\",\"\",'1. Ordersheet'!S1154)","v":""},{"$f":"IF('1. Ordersheet'!V1154=\"\",\"\",'1. Ordersheet'!V1154)","v":""},{"$f":"IF('1. Ordersheet'!W1154=\"\",\"\",'1. Ordersheet'!W1154)","v":""},{"$f":"IF('1. Ordersheet'!X1154=\"\",\"\",'1. Ordersheet'!X1154)","v":""},{"$f":"IF('1. Ordersheet'!Y1154=\"\",\"\",'1. Ordersheet'!Y1154)","v":""},{"$f":"IF('1. Ordersheet'!Z1154=\"\",\"\",'1. Ordersheet'!Z1154)","v":""},{"$f":"IF('1. Ordersheet'!AA1154=\"\",\"\",'1. Ordersheet'!AA1154)","v":""},null,{"$f":"IF('1. Ordersheet'!AS1154=\"\",\"\",'1. Ordersheet'!AS1154)","v":""},{"$f":"IF('1. Ordersheet'!AT1154=\"\",\"\",'1. Ordersheet'!AT1154)","v":""},null,null,null,null,null,null,null,{"$f":"IF('1. Ordersheet'!AX1154=\"\",\"\",'1. Ordersheet'!AX1154)","v":""},{"$f":"IF('1. Ordersheet'!AY1154=\"\",\"\",'1. Ordersheet'!AY1154)","v":""},{"$f":"IF('1. Ordersheet'!AZ1154=\"\",\"\",'1. Ordersheet'!AZ1154)","v":""},{"$f":"IF('1. Ordersheet'!BA1154=\"\",\"\",'1. Ordersheet'!BA1154)","v":""},{"$f":"IF('1. Ordersheet'!BC1154=\"\",\"\",'1. Ordersheet'!BC1154)","v":""},{"$f":"IF('1. Ordersheet'!BD1154=\"\",\"\",'1. Ordersheet'!BD1154)","v":""},{"$f":"IF('1. Ordersheet'!BE1154=\"\",\"\",'1. Ordersheet'!BE1154)","v":""},{"$f":"IF('1. Ordersheet'!BF1154=\"\",\"\",'1. Ordersheet'!BF1154)","v":""},{"$f":"IF('1. Ordersheet'!BG1154=\"\",\"\",'1. Ordersheet'!BG1154)","v":"ZWO"},{"$f":"IF('1. Ordersheet'!BH1154=\"\",\"\",'1. Ordersheet'!BH1154)","v":""},{"$f":"IF('1. Ordersheet'!BI1154=\"\",\"\",'1. Ordersheet'!BI1154)","v":""},{"$f":"IF('1. Ordersheet'!BJ1154=\"\",\"\",'1. Ordersheet'!BJ1154)","v":""},{"$f":"IF('1. Ordersheet'!BK1154=\"\",\"\",'1. Ordersheet'!BK1154)","v":""},{"$f":"IF('1. Ordersheet'!BL1154=\"\",\"\",'1. Ordersheet'!BL1154)","v":""}]
[{"$f":"IF('1. Ordersheet'!F1155=\"\",\"\",'1. Ordersheet'!F1155)","v":""},{"$f":"IF('1. Ordersheet'!G1155=\"\",\"\",'1. Ordersheet'!G1155)","v":""},{"$f":"IF('1. Ordersheet'!H1155=\"\",\"\",'1. Ordersheet'!H1155)","v":""},{"$f":"IF('1. Ordersheet'!I1155=\"\",\"\",'1. Ordersheet'!I1155)","v":""},{"$f":"IF('1. Ordersheet'!J1155=\"\",\"\",'1. Ordersheet'!J1155)","v":""},{"$f":"IF('1. Ordersheet'!K1155=\"\",\"\",'1. Ordersheet'!K1155)","v":""},{"$f":"IF('1. Ordersheet'!L1155=\"\",\"\",'1. Ordersheet'!L1155)","v":""},{"$f":"IF('1. Ordersheet'!M1155=\"\",\"\",'1. Ordersheet'!M1155)","v":""},{"$f":"IF('1. Ordersheet'!N1155=\"\",\"\",'1. Ordersheet'!N1155)","v":""},{"$f":"IF('1. Ordersheet'!O1155=\"\",\"\",'1. Ordersheet'!O1155)","v":{"$error":"#N/A"}},{"$f":"IF('1. Ordersheet'!P1155=\"\",\"\",'1. Ordersheet'!P1155)","v":{"$error":"#N/A"}},{"$f":"IF('1. Ordersheet'!Q1155=\"\",\"\",'1. Ordersheet'!Q1155)","v":""},{"$f":"IF('1. Ordersheet'!R1155=\"\",\"\",'1. Ordersheet'!R1155)","v":""},{"$f":"IF('1. Ordersheet'!S1155=\"\",\"\",'1. Ordersheet'!S1155)","v":""},{"$f":"IF('1. Ordersheet'!V1155=\"\",\"\",'1. Ordersheet'!V1155)","v":""},{"$f":"IF('1. Ordersheet'!W1155=\"\",\"\",'1. Ordersheet'!W1155)","v":""},{"$f":"IF('1. Ordersheet'!X1155=\"\",\"\",'1. Ordersheet'!X1155)","v":""},{"$f":"IF('1. Ordersheet'!Y1155=\"\",\"\",'1. Ordersheet'!Y1155)","v":""},{"$f":"IF('1. Ordersheet'!Z1155=\"\",\"\",'1. Ordersheet'!Z1155)","v":""},{"$f":"IF('1. Ordersheet'!AA1155=\"\",\"\",'1. Ordersheet'!AA1155)","v":""},null,{"$f":"IF('1. Ordersheet'!AS1155=\"\",\"\",'1. Ordersheet'!AS1155)","v":""},{"$f":"IF('1. Ordersheet'!AT1155=\"\",\"\",'1. Ordersheet'!AT1155)","v":""},null,null,null,null,null,null,null,{"$f":"IF('1. Ordersheet'!AX1155=\"\",\"\",'1. Ordersheet'!AX1155)","v":""},{"$f":"IF('1. Ordersheet'!AY1155=\"\",\"\",'1. Ordersheet'!AY1155)","v":""},{"$f":"IF('1. Ordersheet'!AZ1155=\"\",\"\",'1. Ordersheet'!AZ1155)","v":""},{"$f":"IF('1. Ordersheet'!BA1155=\"\",\"\",'1. Ordersheet'!BA1155)","v":""},{"$f":"IF('1. Ordersheet'!BC1155=\"\",\"\",'1. Ordersheet'!BC1155)","v":""},{"$f":"IF('1. Ordersheet'!BD1155=\"\",\"\",'1. Ordersheet'!BD1155)","v":""},{"$f":"IF('1. Ordersheet'!BE1155=\"\",\"\",'1. Ordersheet'!BE1155)","v":""},{"$f":"IF('1. Ordersheet'!BF1155=\"\",\"\",'1. Ordersheet'!BF1155)","v":""},{"$f":"IF('1. Ordersheet'!BG1155=\"\",\"\",'1. Ordersheet'!BG1155)","v":"ZWO"},{"$f":"IF('1. Ordersheet'!BH1155=\"\",\"\",'1. Ordersheet'!BH1155)","v":""},{"$f":"IF('1. Ordersheet'!BI1155=\"\",\"\",'1. Ordersheet'!BI1155)","v":""},{"$f":"IF('1. Ordersheet'!BJ1155=\"\",\"\",'1. Ordersheet'!BJ1155)","v":""},{"$f":"IF('1. Ordersheet'!BK1155=\"\",\"\",'1. Ordersheet'!BK1155)","v":""},{"$f":"IF('1. Ordersheet'!BL1155=\"\",\"\",'1. Ordersheet'!BL1155)","v":""}]
[{"$f":"IF('1. Ordersheet'!F1156=\"\",\"\",'1. Ordersheet'!F1156)","v":""},{"$f":"IF('1. Ordersheet'!G1156=\"\",\"\",'1. Ordersheet'!G1156)","v":""},{"$f":"IF('1. Ordersheet'!H1156=\"\",\"\",'1. Ordersheet'!H1156)","v":""},{"$f":"IF('1. Ordersheet'!I1156=\"\",\"\",'1. Ordersheet'!I1156)","v":""},{"$f":"IF('1. Ordersheet'!J1156=\"\",\"\",'1. Ordersheet'!J1156)","v":""},{"$f":"IF('1. Ordersheet'!K1156=\"\",\"\",'1. Ordersheet'!K1156)","v":""},{"$f":"IF('1. Ordersheet'!L1156=\"\",\"\",'1. Ordersheet'!L1156)","v":""},{"$f":"IF('1. Ordersheet'!M1156=\"\",\"\",'1. Ordersheet'!M1156)","v":""},{"$f":"IF('1. Ordersheet'!N1156=\"\",\"\",'1. Ordersheet'!N1156)","v":""},{"$f":"IF('1. Ordersheet'!O1156=\"\",\"\",'1. Ordersheet'!O1156)","v":{"$error":"#N/A"}},{"$f":"IF('1. Ordersheet'!P1156=\"\",\"\",'1. Ordersheet'!P1156)","v":{"$error":"#N/A"}},{"$f":"IF('1. Ordersheet'!Q1156=\"\",\"\",'1. Ordersheet'!Q1156)","v":""},{"$f":"IF('1. Ordersheet'!R1156=\"\",\"\",'1. Ordersheet'!R1156)","v":""},{"$f":"IF('1. Ordersheet'!S1156=\"\",\"\",'1. Ordersheet'!S1156)","v":""},{"$f":"IF('1. Ordersheet'!V1156=\"\",\"\",'1. Ordersheet'!V1156)","v":""},{"$f":"IF('1. Ordersheet'!W1156=\"\",\"\",'1. Ordersheet'!W1156)","v":""},{"$f":"IF('1. Ordersheet'!X1156=\"\",\"\",'1. Ordersheet'!X1156)","v":""},{"$f":"IF('1. Ordersheet'!Y1156=\"\",\"\",'1. Ordersheet'!Y1156)","v":""},{"$f":"IF('1. Ordersheet'!Z1156=\"\",\"\",'1. Ordersheet'!Z1156)","v":""},{"$f":"IF('1. Ordersheet'!AA1156=\"\",\"\",'1. Ordersheet'!AA1156)","v":""},null,{"$f":"IF('1. Ordersheet'!AS1156=\"\",\"\",'1. Ordersheet'!AS1156)","v":""},{"$f":"IF('1. Ordersheet'!AT1156=\"\",\"\",'1. Ordersheet'!AT1156)","v":""},null,null,null,null,null,null,null,{"$f":"IF('1. Ordersheet'!AX1156=\"\",\"\",'1. Ordersheet'!AX1156)","v":""},{"$f":"IF('1. Ordersheet'!AY1156=\"\",\"\",'1. Ordersheet'!AY1156)","v":""},{"$f":"IF('1. Ordersheet'!AZ1156=\"\",\"\",'1. Ordersheet'!AZ1156)","v":""},{"$f":"IF('1. Ordersheet'!BA1156=\"\",\"\",'1. Ordersheet'!BA1156)","v":""},{"$f":"IF('1. Ordersheet'!BC1156=\"\",\"\",'1. Ordersheet'!BC1156)","v":""},{"$f":"IF('1. Ordersheet'!BD1156=\"\",\"\",'1. Ordersheet'!BD1156)","v":""},{"$f":"IF('1. Ordersheet'!BE1156=\"\",\"\",'1. Ordersheet'!BE1156)","v":""},{"$f":"IF('1. Ordersheet'!BF1156=\"\",\"\",'1. Ordersheet'!BF1156)","v":""},{"$f":"IF('1. Ordersheet'!BG1156=\"\",\"\",'1. Ordersheet'!BG1156)","v":"ZWO"},{"$f":"IF('1. Ordersheet'!BH1156=\"\",\"\",'1. Ordersheet'!BH1156)","v":""},{"$f":"IF('1. Ordersheet'!BI1156=\"\",\"\",'1. Ordersheet'!BI1156)","v":""},{"$f":"IF('1. Ordersheet'!BJ1156=\"\",\"\",'1. Ordersheet'!BJ1156)","v":""},{"$f":"IF('1. Ordersheet'!BK1156=\"\",\"\",'1. Ordersheet'!BK1156)","v":""},{"$f":"IF('1. Ordersheet'!BL1156=\"\",\"\",'1. Ordersheet'!BL1156)","v":""}]
[{"$f":"IF('1. Ordersheet'!F1157=\"\",\"\",'1. Ordersheet'!F1157)","v":""},{"$f":"IF('1. Ordersheet'!G1157=\"\",\"\",'1. Ordersheet'!G1157)","v":""},{"$f":"IF('1. Ordersheet'!H1157=\"\",\"\",'1. Ordersheet'!H1157)","v":""},{"$f":"IF('1. Ordersheet'!I1157=\"\",\"\",'1. Ordersheet'!I1157)","v":""},{"$f":"IF('1. Ordersheet'!J1157=\"\",\"\",'1. Ordersheet'!J1157)","v":""},{"$f":"IF('1. Ordersheet'!K1157=\"\",\"\",'1. Ordersheet'!K1157)","v":""},{"$f":"IF('1. Ordersheet'!L1157=\"\",\"\",'1. Ordersheet'!L1157)","v":""},{"$f":"IF('1. Ordersheet'!M1157=\"\",\"\",'1. Ordersheet'!M1157)","v":""},{"$f":"IF('1. Ordersheet'!N1157=\"\",\"\",'1. Ordersheet'!N1157)","v":""},{"$f":"IF('1. Ordersheet'!O1157=\"\",\"\",'1. Ordersheet'!O1157)","v":{"$error":"#N/A"}},{"$f":"IF('1. Ordersheet'!P1157=\"\",\"\",'1. Ordersheet'!P1157)","v":{"$error":"#N/A"}},{"$f":"IF('1. Ordersheet'!Q1157=\"\",\"\",'1. Ordersheet'!Q1157)","v":""},{"$f":"IF('1. Ordersheet'!R1157=\"\",\"\",'1. Ordersheet'!R1157)","v":""},{"$f":"IF('1. Ordersheet'!S1157=\"\",\"\",'1. Ordersheet'!S1157)","v":""},{"$f":"IF('1. Ordersheet'!V1157=\"\",\"\",'1. Ordersheet'!V1157)","v":""},{"$f":"IF('1. Ordersheet'!W1157=\"\",\"\",'1. Ordersheet'!W1157)","v":""},{"$f":"IF('1. Ordersheet'!X1157=\"\",\"\",'1. Ordersheet'!X1157)","v":""},{"$f":"IF('1. Ordersheet'!Y1157=\"\",\"\",'1. Ordersheet'!Y1157)","v":""},{"$f":"IF('1. Ordersheet'!Z1157=\"\",\"\",'1. Ordersheet'!Z1157)","v":""},{"$f":"IF('1. Ordersheet'!AA1157=\"\",\"\",'1. Ordersheet'!AA1157)","v":""},null,{"$f":"IF('1. Ordersheet'!AS1157=\"\",\"\",'1. Ordersheet'!AS1157)","v":""},{"$f":"IF('1. Ordersheet'!AT1157=\"\",\"\",'1. Ordersheet'!AT1157)","v":""},null,null,null,null,null,null,null,{"$f":"IF('1. Ordersheet'!AX1157=\"\",\"\",'1. Ordersheet'!AX1157)","v":""},{"$f":"IF('1. Ordersheet'!AY1157=\"\",\"\",'1. Ordersheet'!AY1157)","v":""},{"$f":"IF('1. Ordersheet'!AZ1157=\"\",\"\",'1. Ordersheet'!AZ1157)","v":""},{"$f":"IF('1. Ordersheet'!BA1157=\"\",\"\",'1. Ordersheet'!BA1157)","v":""},{"$f":"IF('1. Ordersheet'!BC1157=\"\",\"\",'1. Ordersheet'!BC1157)","v":""},{"$f":"IF('1. Ordersheet'!BD1157=\"\",\"\",'1. Ordersheet'!BD1157)","v":""},{"$f":"IF('1. Ordersheet'!BE1157=\"\",\"\",'1. Ordersheet'!BE1157)","v":""},{"$f":"IF('1. Ordersheet'!BF1157=\"\",\"\",'1. Ordersheet'!BF1157)","v":""},{"$f":"IF('1. Ordersheet'!BG1157=\"\",\"\",'1. Ordersheet'!BG1157)","v":"ZWO"},{"$f":"IF('1. Ordersheet'!BH1157=\"\",\"\",'1. Ordersheet'!BH1157)","v":""},{"$f":"IF('1. Ordersheet'!BI1157=\"\",\"\",'1. Ordersheet'!BI1157)","v":""},{"$f":"IF('1. Ordersheet'!BJ1157=\"\",\"\",'1. Ordersheet'!BJ1157)","v":""},{"$f":"IF('1. Ordersheet'!BK1157=\"\",\"\",'1. Ordersheet'!BK1157)","v":""},{"$f":"IF('1. Ordersheet'!BL1157=\"\",\"\",'1. Ordersheet'!BL1157)","v":""}]
[{"$f":"IF('1. Ordersheet'!F1158=\"\",\"\",'1. Ordersheet'!F1158)","v":""},{"$f":"IF('1. Ordersheet'!G1158=\"\",\"\",'1. Ordersheet'!G1158)","v":""},{"$f":"IF('1. Ordersheet'!H1158=\"\",\"\",'1. Ordersheet'!H1158)","v":""},{"$f":"IF('1. Ordersheet'!I1158=\"\",\"\",'1. Ordersheet'!I1158)","v":""},{"$f":"IF('1. Ordersheet'!J1158=\"\",\"\",'1. Ordersheet'!J1158)","v":""},{"$f":"IF('1. Ordersheet'!K1158=\"\",\"\",'1. Ordersheet'!K1158)","v":""},{"$f":"IF('1. Ordersheet'!L1158=\"\",\"\",'1. Ordersheet'!L1158)","v":""},{"$f":"IF('1. Ordersheet'!M1158=\"\",\"\",'1. Ordersheet'!M1158)","v":""},{"$f":"IF('1. Ordersheet'!N1158=\"\",\"\",'1. Ordersheet'!N1158)","v":""},{"$f":"IF('1. Ordersheet'!O1158=\"\",\"\",'1. Ordersheet'!O1158)","v":{"$error":"#N/A"}},{"$f":"IF('1. Ordersheet'!P1158=\"\",\"\",'1. Ordersheet'!P1158)","v":{"$error":"#N/A"}},{"$f":"IF('1. Ordersheet'!Q1158=\"\",\"\",'1. Ordersheet'!Q1158)","v":""},{"$f":"IF('1. Ordersheet'!R1158=\"\",\"\",'1. Ordersheet'!R1158)","v":""},{"$f":"IF('1. Ordersheet'!S1158=\"\",\"\",'1. Ordersheet'!S1158)","v":""},{"$f":"IF('1. Ordersheet'!V1158=\"\",\"\",'1. Ordersheet'!V1158)","v":""},{"$f":"IF('1. Ordersheet'!W1158=\"\",\"\",'1. Ordersheet'!W1158)","v":""},{"$f":"IF('1. Ordersheet'!X1158=\"\",\"\",'1. Ordersheet'!X1158)","v":""},{"$f":"IF('1. Ordersheet'!Y1158=\"\",\"\",'1. Ordersheet'!Y1158)","v":""},{"$f":"IF('1. Ordersheet'!Z1158=\"\",\"\",'1. Ordersheet'!Z1158)","v":""},{"$f":"IF('1. Ordersheet'!AA1158=\"\",\"\",'1. Ordersheet'!AA1158)","v":""},null,{"$f":"IF('1. Ordersheet'!AS1158=\"\",\"\",'1. Ordersheet'!AS1158)","v":""},{"$f":"IF('1. Ordersheet'!AT1158=\"\",\"\",'1. Ordersheet'!AT1158)","v":""},null,null,null,null,null,null,null,{"$f":"IF('1. Ordersheet'!AX1158=\"\",\"\",'1. Ordersheet'!AX1158)","v":""},{"$f":"IF('1. Ordersheet'!AY1158=\"\",\"\",'1. Ordersheet'!AY1158)","v":""},{"$f":"IF('1. Ordersheet'!AZ1158=\"\",\"\",'1. Ordersheet'!AZ1158)","v":""},{"$f":"IF('1. Ordersheet'!BA1158=\"\",\"\",'1. Ordersheet'!BA1158)","v":""},{"$f":"IF('1. Ordersheet'!BC1158=\"\",\"\",'1. Ordersheet'!BC1158)","v":""},{"$f":"IF('1. Ordersheet'!BD1158=\"\",\"\",'1. Ordersheet'!BD1158)","v":""},{"$f":"IF('1. Ordersheet'!BE1158=\"\",\"\",'1. Ordersheet'!BE1158)","v":""},{"$f":"IF('1. Ordersheet'!BF1158=\"\",\"\",'1. Ordersheet'!BF1158)","v":""},{"$f":"IF('1. Ordersheet'!BG1158=\"\",\"\",'1. Ordersheet'!BG1158)","v":"ZWO"},{"$f":"IF('1. Ordersheet'!BH1158=\"\",\"\",'1. Ordersheet'!BH1158)","v":""},{"$f":"IF('1. Ordersheet'!BI1158=\"\",\"\",'1. Ordersheet'!BI1158)","v":""},{"$f":"IF('1. Ordersheet'!BJ1158=\"\",\"\",'1. Ordersheet'!BJ1158)","v":""},{"$f":"IF('1. Ordersheet'!BK1158=\"\",\"\",'1. Ordersheet'!BK1158)","v":""},{"$f":"IF('1. Ordersheet'!BL1158=\"\",\"\",'1. Ordersheet'!BL1158)","v":""}]
[{"$f":"IF('1. Ordersheet'!F1159=\"\",\"\",'1. Ordersheet'!F1159)","v":""},{"$f":"IF('1. Ordersheet'!G1159=\"\",\"\",'1. Ordersheet'!G1159)","v":""},{"$f":"IF('1. Ordersheet'!H1159=\"\",\"\",'1. Ordersheet'!H1159)","v":""},{"$f":"IF('1. Ordersheet'!I1159=\"\",\"\",'1. Ordersheet'!I1159)","v":""},{"$f":"IF('1. Ordersheet'!J1159=\"\",\"\",'1. Ordersheet'!J1159)","v":""},{"$f":"IF('1. Ordersheet'!K1159=\"\",\"\",'1. Ordersheet'!K1159)","v":""},{"$f":"IF('1. Ordersheet'!L1159=\"\",\"\",'1. Ordersheet'!L1159)","v":""},{"$f":"IF('1. Ordersheet'!M1159=\"\",\"\",'1. Ordersheet'!M1159)","v":""},{"$f":"IF('1. Ordersheet'!N1159=\"\",\"\",'1. Ordersheet'!N1159)","v":""},{"$f":"IF('1. Ordersheet'!O1159=\"\",\"\",'1. Ordersheet'!O1159)","v":{"$error":"#N/A"}},{"$f":"IF('1. Ordersheet'!P1159=\"\",\"\",'1. Ordersheet'!P1159)","v":{"$error":"#N/A"}},{"$f":"IF('1. Ordersheet'!Q1159=\"\",\"\",'1. Ordersheet'!Q1159)","v":""},{"$f":"IF('1. Ordersheet'!R1159=\"\",\"\",'1. Ordersheet'!R1159)","v":""},{"$f":"IF('1. Ordersheet'!S1159=\"\",\"\",'1. Ordersheet'!S1159)","v":""},{"$f":"IF('1. Ordersheet'!V1159=\"\",\"\",'1. Ordersheet'!V1159)","v":""},{"$f":"IF('1. Ordersheet'!W1159=\"\",\"\",'1. Ordersheet'!W1159)","v":""},{"$f":"IF('1. Ordersheet'!X1159=\"\",\"\",'1. Ordersheet'!X1159)","v":""},{"$f":"IF('1. Ordersheet'!Y1159=\"\",\"\",'1. Ordersheet'!Y1159)","v":""},{"$f":"IF('1. Ordersheet'!Z1159=\"\",\"\",'1. Ordersheet'!Z1159)","v":""},{"$f":"IF('1. Ordersheet'!AA1159=\"\",\"\",'1. Ordersheet'!AA1159)","v":""},null,{"$f":"IF('1. Ordersheet'!AS1159=\"\",\"\",'1. Ordersheet'!AS1159)","v":""},{"$f":"IF('1. Ordersheet'!AT1159=\"\",\"\",'1. Ordersheet'!AT1159)","v":""},null,null,null,null,null,null,null,{"$f":"IF('1. Ordersheet'!AX1159=\"\",\"\",'1. Ordersheet'!AX1159)","v":""},{"$f":"IF('1. Ordersheet'!AY1159=\"\",\"\",'1. Ordersheet'!AY1159)","v":""},{"$f":"IF('1. Ordersheet'!AZ1159=\"\",\"\",'1. Ordersheet'!AZ1159)","v":""},{"$f":"IF('1. Ordersheet'!BA1159=\"\",\"\",'1. Ordersheet'!BA1159)","v":""},{"$f":"IF('1. Ordersheet'!BC1159=\"\",\"\",'1. Ordersheet'!BC1159)","v":""},{"$f":"IF('1. Ordersheet'!BD1159=\"\",\"\",'1. Ordersheet'!BD1159)","v":""},{"$f":"IF('1. Ordersheet'!BE1159=\"\",\"\",'1. Ordersheet'!BE1159)","v":""},{"$f":"IF('1. Ordersheet'!BF1159=\"\",\"\",'1. Ordersheet'!BF1159)","v":""},{"$f":"IF('1. Ordersheet'!BG1159=\"\",\"\",'1. Ordersheet'!BG1159)","v":"ZWO"},{"$f":"IF('1. Ordersheet'!BH1159=\"\",\"\",'1. Ordersheet'!BH1159)","v":""},{"$f":"IF('1. Ordersheet'!BI1159=\"\",\"\",'1. Ordersheet'!BI1159)","v":""},{"$f":"IF('1. Ordersheet'!BJ1159=\"\",\"\",'1. Ordersheet'!BJ1159)","v":""},{"$f":"IF('1. Ordersheet'!BK1159=\"\",\"\",'1. Ordersheet'!BK1159)","v":""},{"$f":"IF('1. Ordersheet'!BL1159=\"\",\"\",'1. Ordersheet'!BL1159)","v":""}]
[{"$f":"IF('1. Ordersheet'!F1160=\"\",\"\",'1. Ordersheet'!F1160)","v":""},{"$f":"IF('1. Ordersheet'!G1160=\"\",\"\",'1. Ordersheet'!G1160)","v":""},{"$f":"IF('1. Ordersheet'!H1160=\"\",\"\",'1. Ordersheet'!H1160)","v":""},{"$f":"IF('1. Ordersheet'!I1160=\"\",\"\",'1. Ordersheet'!I1160)","v":""},{"$f":"IF('1. Ordersheet'!J1160=\"\",\"\",'1. Ordersheet'!J1160)","v":""},{"$f":"IF('1. Ordersheet'!K1160=\"\",\"\",'1. Ordersheet'!K1160)","v":""},{"$f":"IF('1. Ordersheet'!L1160=\"\",\"\",'1. Ordersheet'!L1160)","v":""},{"$f":"IF('1. Ordersheet'!M1160=\"\",\"\",'1. Ordersheet'!M1160)","v":""},{"$f":"IF('1. Ordersheet'!N1160=\"\",\"\",'1. Ordersheet'!N1160)","v":""},{"$f":"IF('1. Ordersheet'!O1160=\"\",\"\",'1. Ordersheet'!O1160)","v":{"$error":"#N/A"}},{"$f":"IF('1. Ordersheet'!P1160=\"\",\"\",'1. Ordersheet'!P1160)","v":{"$error":"#N/A"}},{"$f":"IF('1. Ordersheet'!Q1160=\"\",\"\",'1. Ordersheet'!Q1160)","v":""},{"$f":"IF('1. Ordersheet'!R1160=\"\",\"\",'1. Ordersheet'!R1160)","v":""},{"$f":"IF('1. Ordersheet'!S1160=\"\",\"\",'1. Ordersheet'!S1160)","v":""},{"$f":"IF('1. Ordersheet'!V1160=\"\",\"\",'1. Ordersheet'!V1160)","v":""},{"$f":"IF('1. Ordersheet'!W1160=\"\",\"\",'1. Ordersheet'!W1160)","v":""},{"$f":"IF('1. Ordersheet'!X1160=\"\",\"\",'1. Ordersheet'!X1160)","v":""},{"$f":"IF('1. Ordersheet'!Y1160=\"\",\"\",'1. Ordersheet'!Y1160)","v":""},{"$f":"IF('1. Ordersheet'!Z1160=\"\",\"\",'1. Ordersheet'!Z1160)","v":""},{"$f":"IF('1. Ordersheet'!AA1160=\"\",\"\",'1. Ordersheet'!AA1160)","v":""},null,{"$f":"IF('1. Ordersheet'!AS1160=\"\",\"\",'1. Ordersheet'!AS1160)","v":""},{"$f":"IF('1. Ordersheet'!AT1160=\"\",\"\",'1. Ordersheet'!AT1160)","v":""},null,null,null,null,null,null,null,{"$f":"IF('1. Ordersheet'!AX1160=\"\",\"\",'1. Ordersheet'!AX1160)","v":""},{"$f":"IF('1. Ordersheet'!AY1160=\"\",\"\",'1. Ordersheet'!AY1160)","v":""},{"$f":"IF('1. Ordersheet'!AZ1160=\"\",\"\",'1. Ordersheet'!AZ1160)","v":""},{"$f":"IF('1. Ordersheet'!BA1160=\"\",\"\",'1. Ordersheet'!BA1160)","v":""},{"$f":"IF('1. Ordersheet'!BC1160=\"\",\"\",'1. Ordersheet'!BC1160)","v":""},{"$f":"IF('1. Ordersheet'!BD1160=\"\",\"\",'1. Ordersheet'!BD1160)","v":""},{"$f":"IF('1. Ordersheet'!BE1160=\"\",\"\",'1. Ordersheet'!BE1160)","v":""},{"$f":"IF('1. Ordersheet'!BF1160=\"\",\"\",'1. Ordersheet'!BF1160)","v":""},{"$f":"IF('1. Ordersheet'!BG1160=\"\",\"\",'1. Ordersheet'!BG1160)","v":"ZWO"},{"$f":"IF('1. Ordersheet'!BH1160=\"\",\"\",'1. Ordersheet'!BH1160)","v":""},{"$f":"IF('1. Ordersheet'!BI1160=\"\",\"\",'1. Ordersheet'!BI1160)","v":""},{"$f":"IF('1. Ordersheet'!BJ1160=\"\",\"\",'1. Ordersheet'!BJ1160)","v":""},{"$f":"IF('1. Ordersheet'!BK1160=\"\",\"\",'1. Ordersheet'!BK1160)","v":""},{"$f":"IF('1. Ordersheet'!BL1160=\"\",\"\",'1. Ordersheet'!BL1160)","v":""}]
[{"$f":"IF('1. Ordersheet'!F1161=\"\",\"\",'1. Ordersheet'!F1161)","v":""},{"$f":"IF('1. Ordersheet'!G1161=\"\",\"\",'1. Ordersheet'!G1161)","v":""},{"$f":"IF('1. Ordersheet'!H1161=\"\",\"\",'1. Ordersheet'!H1161)","v":""},{"$f":"IF('1. Ordersheet'!I1161=\"\",\"\",'1. Ordersheet'!I1161)","v":""},{"$f":"IF('1. Ordersheet'!J1161=\"\",\"\",'1. Ordersheet'!J1161)","v":""},{"$f":"IF('1. Ordersheet'!K1161=\"\",\"\",'1. Ordersheet'!K1161)","v":""},{"$f":"IF('1. Ordersheet'!L1161=\"\",\"\",'1. Ordersheet'!L1161)","v":""},{"$f":"IF('1. Ordersheet'!M1161=\"\",\"\",'1. Ordersheet'!M1161)","v":""},{"$f":"IF('1. Ordersheet'!N1161=\"\",\"\",'1. Ordersheet'!N1161)","v":""},{"$f":"IF('1. Ordersheet'!O1161=\"\",\"\",'1. Ordersheet'!O1161)","v":{"$error":"#N/A"}},{"$f":"IF('1. Ordersheet'!P1161=\"\",\"\",'1. Ordersheet'!P1161)","v":{"$error":"#N/A"}},{"$f":"IF('1. Ordersheet'!Q1161=\"\",\"\",'1. Ordersheet'!Q1161)","v":""},{"$f":"IF('1. Ordersheet'!R1161=\"\",\"\",'1. Ordersheet'!R1161)","v":""},{"$f":"IF('1. Ordersheet'!S1161=\"\",\"\",'1. Ordersheet'!S1161)","v":""},{"$f":"IF('1. Ordersheet'!V1161=\"\",\"\",'1. Ordersheet'!V1161)","v":""},{"$f":"IF('1. Ordersheet'!W1161=\"\",\"\",'1. Ordersheet'!W1161)","v":""},{"$f":"IF('1. Ordersheet'!X1161=\"\",\"\",'1. Ordersheet'!X1161)","v":""},{"$f":"IF('1. Ordersheet'!Y1161=\"\",\"\",'1. Ordersheet'!Y1161)","v":""},{"$f":"IF('1. Ordersheet'!Z1161=\"\",\"\",'1. Ordersheet'!Z1161)","v":""},{"$f":"IF('1. Ordersheet'!AA1161=\"\",\"\",'1. Ordersheet'!AA1161)","v":""},null,{"$f":"IF('1. Ordersheet'!AS1161=\"\",\"\",'1. Ordersheet'!AS1161)","v":""},{"$f":"IF('1. Ordersheet'!AT1161=\"\",\"\",'1. Ordersheet'!AT1161)","v":""},null,null,null,null,null,null,null,{"$f":"IF('1. Ordersheet'!AX1161=\"\",\"\",'1. Ordersheet'!AX1161)","v":""},{"$f":"IF('1. Ordersheet'!AY1161=\"\",\"\",'1. Ordersheet'!AY1161)","v":""},{"$f":"IF('1. Ordersheet'!AZ1161=\"\",\"\",'1. Ordersheet'!AZ1161)","v":""},{"$f":"IF('1. Ordersheet'!BA1161=\"\",\"\",'1. Ordersheet'!BA1161)","v":""},{"$f":"IF('1. Ordersheet'!BC1161=\"\",\"\",'1. Ordersheet'!BC1161)","v":""},{"$f":"IF('1. Ordersheet'!BD1161=\"\",\"\",'1. Ordersheet'!BD1161)","v":""},{"$f":"IF('1. Ordersheet'!BE1161=\"\",\"\",'1. Ordersheet'!BE1161)","v":""},{"$f":"IF('1. Ordersheet'!BF1161=\"\",\"\",'1. Ordersheet'!BF1161)","v":""},{"$f":"IF('1. Ordersheet'!BG1161=\"\",\"\",'1. Ordersheet'!BG1161)","v":"ZWO"},{"$f":"IF('1. Ordersheet'!BH1161=\"\",\"\",'1. Ordersheet'!BH1161)","v":""},{"$f":"IF('1. Ordersheet'!BI1161=\"\",\"\",'1. Ordersheet'!BI1161)","v":""},{"$f":"IF('1. Ordersheet'!BJ1161=\"\",\"\",'1. Ordersheet'!BJ1161)","v":""},{"$f":"IF('1. Ordersheet'!BK1161=\"\",\"\",'1. Ordersheet'!BK1161)","v":""},{"$f":"IF('1. Ordersheet'!BL1161=\"\",\"\",'1. Ordersheet'!BL1161)","v":""}]
[{"$f":"IF('1. Ordersheet'!F1162=\"\",\"\",'1. Ordersheet'!F1162)","v":""},{"$f":"IF('1. Ordersheet'!G1162=\"\",\"\",'1. Ordersheet'!G1162)","v":""},{"$f":"IF('1. Ordersheet'!H1162=\"\",\"\",'1. Ordersheet'!H1162)","v":""},{"$f":"IF('1. Ordersheet'!I1162=\"\",\"\",'1. Ordersheet'!I1162)","v":""},{"$f":"IF('1. Ordersheet'!J1162=\"\",\"\",'1. Ordersheet'!J1162)","v":""},{"$f":"IF('1. Ordersheet'!K1162=\"\",\"\",'1. Ordersheet'!K1162)","v":""},{"$f":"IF('1. Ordersheet'!L1162=\"\",\"\",'1. Ordersheet'!L1162)","v":""},{"$f":"IF('1. Ordersheet'!M1162=\"\",\"\",'1. Ordersheet'!M1162)","v":""},{"$f":"IF('1. Ordersheet'!N1162=\"\",\"\",'1. Ordersheet'!N1162)","v":""},{"$f":"IF('1. Ordersheet'!O1162=\"\",\"\",'1. Ordersheet'!O1162)","v":{"$error":"#N/A"}},{"$f":"IF('1. Ordersheet'!P1162=\"\",\"\",'1. Ordersheet'!P1162)","v":{"$error":"#N/A"}},{"$f":"IF('1. Ordersheet'!Q1162=\"\",\"\",'1. Ordersheet'!Q1162)","v":""},{"$f":"IF('1. Ordersheet'!R1162=\"\",\"\",'1. Ordersheet'!R1162)","v":""},{"$f":"IF('1. Ordersheet'!S1162=\"\",\"\",'1. Ordersheet'!S1162)","v":""},{"$f":"IF('1. Ordersheet'!V1162=\"\",\"\",'1. Ordersheet'!V1162)","v":""},{"$f":"IF('1. Ordersheet'!W1162=\"\",\"\",'1. Ordersheet'!W1162)","v":""},{"$f":"IF('1. Ordersheet'!X1162=\"\",\"\",'1. Ordersheet'!X1162)","v":""},{"$f":"IF('1. Ordersheet'!Y1162=\"\",\"\",'1. Ordersheet'!Y1162)","v":""},{"$f":"IF('1. Ordersheet'!Z1162=\"\",\"\",'1. Ordersheet'!Z1162)","v":""},{"$f":"IF('1. Ordersheet'!AA1162=\"\",\"\",'1. Ordersheet'!AA1162)","v":""},null,{"$f":"IF('1. Ordersheet'!AS1162=\"\",\"\",'1. Ordersheet'!AS1162)","v":""},{"$f":"IF('1. Ordersheet'!AT1162=\"\",\"\",'1. Ordersheet'!AT1162)","v":""},null,null,null,null,null,null,null,{"$f":"IF('1. Ordersheet'!AX1162=\"\",\"\",'1. Ordersheet'!AX1162)","v":""},{"$f":"IF('1. Ordersheet'!AY1162=\"\",\"\",'1. Ordersheet'!AY1162)","v":""},{"$f":"IF('1. Ordersheet'!AZ1162=\"\",\"\",'1. Ordersheet'!AZ1162)","v":""},{"$f":"IF('1. Ordersheet'!BA1162=\"\",\"\",'1. Ordersheet'!BA1162)","v":""},{"$f":"IF('1. Ordersheet'!BC1162=\"\",\"\",'1. Ordersheet'!BC1162)","v":""},{"$f":"IF('1. Ordersheet'!BD1162=\"\",\"\",'1. Ordersheet'!BD1162)","v":""},{"$f":"IF('1. Ordersheet'!BE1162=\"\",\"\",'1. Ordersheet'!BE1162)","v":""},{"$f":"IF('1. Ordersheet'!BF1162=\"\",\"\",'1. Ordersheet'!BF1162)","v":""},{"$f":"IF('1. Ordersheet'!BG1162=\"\",\"\",'1. Ordersheet'!BG1162)","v":"ZWO"},{"$f":"IF('1. Ordersheet'!BH1162=\"\",\"\",'1. Ordersheet'!BH1162)","v":""},{"$f":"IF('1. Ordersheet'!BI1162=\"\",\"\",'1. Ordersheet'!BI1162)","v":""},{"$f":"IF('1. Ordersheet'!BJ1162=\"\",\"\",'1. Ordersheet'!BJ1162)","v":""},{"$f":"IF('1. Ordersheet'!BK1162=\"\",\"\",'1. Ordersheet'!BK1162)","v":""},{"$f":"IF('1. Ordersheet'!BL1162=\"\",\"\",'1. Ordersheet'!BL1162)","v":""}]
[{"$f":"IF('1. Ordersheet'!F1163=\"\",\"\",'1. Ordersheet'!F1163)","v":""},{"$f":"IF('1. Ordersheet'!G1163=\"\",\"\",'1. Ordersheet'!G1163)","v":""},{"$f":"IF('1. Ordersheet'!H1163=\"\",\"\",'1. Ordersheet'!H1163)","v":""},{"$f":"IF('1. Ordersheet'!I1163=\"\",\"\",'1. Ordersheet'!I1163)","v":""},{"$f":"IF('1. Ordersheet'!J1163=\"\",\"\",'1. Ordersheet'!J1163)","v":""},{"$f":"IF('1. Ordersheet'!K1163=\"\",\"\",'1. Ordersheet'!K1163)","v":""},{"$f":"IF('1. Ordersheet'!L1163=\"\",\"\",'1. Ordersheet'!L1163)","v":""},{"$f":"IF('1. Ordersheet'!M1163=\"\",\"\",'1. Ordersheet'!M1163)","v":""},{"$f":"IF('1. Ordersheet'!N1163=\"\",\"\",'1. Ordersheet'!N1163)","v":""},{"$f":"IF('1. Ordersheet'!O1163=\"\",\"\",'1. Ordersheet'!O1163)","v":{"$error":"#N/A"}},{"$f":"IF('1. Ordersheet'!P1163=\"\",\"\",'1. Ordersheet'!P1163)","v":{"$error":"#N/A"}},{"$f":"IF('1. Ordersheet'!Q1163=\"\",\"\",'1. Ordersheet'!Q1163)","v":""},{"$f":"IF('1. Ordersheet'!R1163=\"\",\"\",'1. Ordersheet'!R1163)","v":""},{"$f":"IF('1. Ordersheet'!S1163=\"\",\"\",'1. Ordersheet'!S1163)","v":""},{"$f":"IF('1. Ordersheet'!V1163=\"\",\"\",'1. Ordersheet'!V1163)","v":""},{"$f":"IF('1. Ordersheet'!W1163=\"\",\"\",'1. Ordersheet'!W1163)","v":""},{"$f":"IF('1. Ordersheet'!X1163=\"\",\"\",'1. Ordersheet'!X1163)","v":""},{"$f":"IF('1. Ordersheet'!Y1163=\"\",\"\",'1. Ordersheet'!Y1163)","v":""},{"$f":"IF('1. Ordersheet'!Z1163=\"\",\"\",'1. Ordersheet'!Z1163)","v":""},{"$f":"IF('1. Ordersheet'!AA1163=\"\",\"\",'1. Ordersheet'!AA1163)","v":""},null,{"$f":"IF('1. Ordersheet'!AS1163=\"\",\"\",'1. Ordersheet'!AS1163)","v":""},{"$f":"IF('1. Ordersheet'!AT1163=\"\",\"\",'1. Ordersheet'!AT1163)","v":""},null,null,null,null,null,null,null,{"$f":"IF('1. Ordersheet'!AX1163=\"\",\"\",'1. Ordersheet'!AX1163)","v":""},{"$f":"IF('1. Ordersheet'!AY1163=\"\",\"\",'1. Ordersheet'!AY1163)","v":""},{"$f":"IF('1. Ordersheet'!AZ1163=\"\",\"\",'1. Ordersheet'!AZ1163)","v":""},{"$f":"IF('1. Ordersheet'!BA1163=\"\",\"\",'1. Ordersheet'!BA1163)","v":""},{"$f":"IF('1. Ordersheet'!BC1163=\"\",\"\",'1. Ordersheet'!BC1163)","v":""},{"$f":"IF('1. Ordersheet'!BD1163=\"\",\"\",'1. Ordersheet'!BD1163)","v":""},{"$f":"IF('1. Ordersheet'!BE1163=\"\",\"\",'1. Ordersheet'!BE1163)","v":""},{"$f":"IF('1. Ordersheet'!BF1163=\"\",\"\",'1. Ordersheet'!BF1163)","v":""},{"$f":"IF('1. Ordersheet'!BG1163=\"\",\"\",'1. Ordersheet'!BG1163)","v":"ZWO"},{"$f":"IF('1. Ordersheet'!BH1163=\"\",\"\",'1. Ordersheet'!BH1163)","v":""},{"$f":"IF('1. Ordersheet'!BI1163=\"\",\"\",'1. Ordersheet'!BI1163)","v":""},{"$f":"IF('1. Ordersheet'!BJ1163=\"\",\"\",'1. Ordersheet'!BJ1163)","v":""},{"$f":"IF('1. Ordersheet'!BK1163=\"\",\"\",'1. Ordersheet'!BK1163)","v":""},{"$f":"IF('1. Ordersheet'!BL1163=\"\",\"\",'1. Ordersheet'!BL1163)","v":""}]
[{"$f":"IF('1. Ordersheet'!F1164=\"\",\"\",'1. Ordersheet'!F1164)","v":""},{"$f":"IF('1. Ordersheet'!G1164=\"\",\"\",'1. Ordersheet'!G1164)","v":""},{"$f":"IF('1. Ordersheet'!H1164=\"\",\"\",'1. Ordersheet'!H1164)","v":""},{"$f":"IF('1. Ordersheet'!I1164=\"\",\"\",'1. Ordersheet'!I1164)","v":""},{"$f":"IF('1. Ordersheet'!J1164=\"\",\"\",'1. Ordersheet'!J1164)","v":""},{"$f":"IF('1. Ordersheet'!K1164=\"\",\"\",'1. Ordersheet'!K1164)","v":""},{"$f":"IF('1. Ordersheet'!L1164=\"\",\"\",'1. Ordersheet'!L1164)","v":""},{"$f":"IF('1. Ordersheet'!M1164=\"\",\"\",'1. Ordersheet'!M1164)","v":""},{"$f":"IF('1. Ordersheet'!N1164=\"\",\"\",'1. Ordersheet'!N1164)","v":""},{"$f":"IF('1. Ordersheet'!O1164=\"\",\"\",'1. Ordersheet'!O1164)","v":{"$error":"#N/A"}},{"$f":"IF('1. Ordersheet'!P1164=\"\",\"\",'1. Ordersheet'!P1164)","v":{"$error":"#N/A"}},{"$f":"IF('1. Ordersheet'!Q1164=\"\",\"\",'1. Ordersheet'!Q1164)","v":""},{"$f":"IF('1. Ordersheet'!R1164=\"\",\"\",'1. Ordersheet'!R1164)","v":""},{"$f":"IF('1. Ordersheet'!S1164=\"\",\"\",'1. Ordersheet'!S1164)","v":""},{"$f":"IF('1. Ordersheet'!V1164=\"\",\"\",'1. Ordersheet'!V1164)","v":""},{"$f":"IF('1. Ordersheet'!W1164=\"\",\"\",'1. Ordersheet'!W1164)","v":""},{"$f":"IF('1. Ordersheet'!X1164=\"\",\"\",'1. Ordersheet'!X1164)","v":""},{"$f":"IF('1. Ordersheet'!Y1164=\"\",\"\",'1. Ordersheet'!Y1164)","v":""},{"$f":"IF('1. Ordersheet'!Z1164=\"\",\"\",'1. Ordersheet'!Z1164)","v":""},{"$f":"IF('1. Ordersheet'!AA1164=\"\",\"\",'1. Ordersheet'!AA1164)","v":""},null,{"$f":"IF('1. Ordersheet'!AS1164=\"\",\"\",'1. Ordersheet'!AS1164)","v":""},{"$f":"IF('1. Ordersheet'!AT1164=\"\",\"\",'1. Ordersheet'!AT1164)","v":""},null,null,null,null,null,null,null,{"$f":"IF('1. Ordersheet'!AX1164=\"\",\"\",'1. Ordersheet'!AX1164)","v":""},{"$f":"IF('1. Ordersheet'!AY1164=\"\",\"\",'1. Ordersheet'!AY1164)","v":""},{"$f":"IF('1. Ordersheet'!AZ1164=\"\",\"\",'1. Ordersheet'!AZ1164)","v":""},{"$f":"IF('1. Ordersheet'!BA1164=\"\",\"\",'1. Ordersheet'!BA1164)","v":""},{"$f":"IF('1. Ordersheet'!BC1164=\"\",\"\",'1. Ordersheet'!BC1164)","v":""},{"$f":"IF('1. Ordersheet'!BD1164=\"\",\"\",'1. Ordersheet'!BD1164)","v":""},{"$f":"IF('1. Ordersheet'!BE1164=\"\",\"\",'1. Ordersheet'!BE1164)","v":""},{"$f":"IF('1. Ordersheet'!BF1164=\"\",\"\",'1. Ordersheet'!BF1164)","v":""},{"$f":"IF('1. Ordersheet'!BG1164=\"\",\"\",'1. Ordersheet'!BG1164)","v":"ZWO"},{"$f":"IF('1. Ordersheet'!BH1164=\"\",\"\",'1. Ordersheet'!BH1164)","v":""},{"$f":"IF('1. Ordersheet'!BI1164=\"\",\"\",'1. Ordersheet'!BI1164)","v":""},{"$f":"IF('1. Ordersheet'!BJ1164=\"\",\"\",'1. Ordersheet'!BJ1164)","v":""},{"$f":"IF('1. Ordersheet'!BK1164=\"\",\"\",'1. Ordersheet'!BK1164)","v":""},{"$f":"IF('1. Ordersheet'!BL1164=\"\",\"\",'1. Ordersheet'!BL1164)","v":""}]
[{"$f":"IF('1. Ordersheet'!F1165=\"\",\"\",'1. Ordersheet'!F1165)","v":""},{"$f":"IF('1. Ordersheet'!G1165=\"\",\"\",'1. Ordersheet'!G1165)","v":""},{"$f":"IF('1. Ordersheet'!H1165=\"\",\"\",'1. Ordersheet'!H1165)","v":""},{"$f":"IF('1. Ordersheet'!I1165=\"\",\"\",'1. Ordersheet'!I1165)","v":""},{"$f":"IF('1. Ordersheet'!J1165=\"\",\"\",'1. Ordersheet'!J1165)","v":""},{"$f":"IF('1. Ordersheet'!K1165=\"\",\"\",'1. Ordersheet'!K1165)","v":""},{"$f":"IF('1. Ordersheet'!L1165=\"\",\"\",'1. Ordersheet'!L1165)","v":""},{"$f":"IF('1. Ordersheet'!M1165=\"\",\"\",'1. Ordersheet'!M1165)","v":""},{"$f":"IF('1. Ordersheet'!N1165=\"\",\"\",'1. Ordersheet'!N1165)","v":""},{"$f":"IF('1. Ordersheet'!O1165=\"\",\"\",'1. Ordersheet'!O1165)","v":{"$error":"#N/A"}},{"$f":"IF('1. Ordersheet'!P1165=\"\",\"\",'1. Ordersheet'!P1165)","v":{"$error":"#N/A"}},{"$f":"IF('1. Ordersheet'!Q1165=\"\",\"\",'1. Ordersheet'!Q1165)","v":""},{"$f":"IF('1. Ordersheet'!R1165=\"\",\"\",'1. Ordersheet'!R1165)","v":""},{"$f":"IF('1. Ordersheet'!S1165=\"\",\"\",'1. Ordersheet'!S1165)","v":""},{"$f":"IF('1. Ordersheet'!V1165=\"\",\"\",'1. Ordersheet'!V1165)","v":""},{"$f":"IF('1. Ordersheet'!W1165=\"\",\"\",'1. Ordersheet'!W1165)","v":""},{"$f":"IF('1. Ordersheet'!X1165=\"\",\"\",'1. Ordersheet'!X1165)","v":""},{"$f":"IF('1. Ordersheet'!Y1165=\"\",\"\",'1. Ordersheet'!Y1165)","v":""},{"$f":"IF('1. Ordersheet'!Z1165=\"\",\"\",'1. Ordersheet'!Z1165)","v":""},{"$f":"IF('1. Ordersheet'!AA1165=\"\",\"\",'1. Ordersheet'!AA1165)","v":""},null,{"$f":"IF('1. Ordersheet'!AS1165=\"\",\"\",'1. Ordersheet'!AS1165)","v":""},{"$f":"IF('1. Ordersheet'!AT1165=\"\",\"\",'1. Ordersheet'!AT1165)","v":""},null,null,null,null,null,null,null,{"$f":"IF('1. Ordersheet'!AX1165=\"\",\"\",'1. Ordersheet'!AX1165)","v":""},{"$f":"IF('1. Ordersheet'!AY1165=\"\",\"\",'1. Ordersheet'!AY1165)","v":""},{"$f":"IF('1. Ordersheet'!AZ1165=\"\",\"\",'1. Ordersheet'!AZ1165)","v":""},{"$f":"IF('1. Ordersheet'!BA1165=\"\",\"\",'1. Ordersheet'!BA1165)","v":""},{"$f":"IF('1. Ordersheet'!BC1165=\"\",\"\",'1. Ordersheet'!BC1165)","v":""},{"$f":"IF('1. Ordersheet'!BD1165=\"\",\"\",'1. Ordersheet'!BD1165)","v":""},{"$f":"IF('1. Ordersheet'!BE1165=\"\",\"\",'1. Ordersheet'!BE1165)","v":""},{"$f":"IF('1. Ordersheet'!BF1165=\"\",\"\",'1. Ordersheet'!BF1165)","v":""},{"$f":"IF('1. Ordersheet'!BG1165=\"\",\"\",'1. Ordersheet'!BG1165)","v":"ZWO"},{"$f":"IF('1. Ordersheet'!BH1165=\"\",\"\",'1. Ordersheet'!BH1165)","v":""},{"$f":"IF('1. Ordersheet'!BI1165=\"\",\"\",'1. Ordersheet'!BI1165)","v":""},{"$f":"IF('1. Ordersheet'!BJ1165=\"\",\"\",'1. Ordersheet'!BJ1165)","v":""},{"$f":"IF('1. Ordersheet'!BK1165=\"\",\"\",'1. Ordersheet'!BK1165)","v":""},{"$f":"IF('1. Ordersheet'!BL1165=\"\",\"\",'1. Ordersheet'!BL1165)","v":""}]
[{"$f":"IF('1. Ordersheet'!F1166=\"\",\"\",'1. Ordersheet'!F1166)","v":""},{"$f":"IF('1. Ordersheet'!G1166=\"\",\"\",'1. Ordersheet'!G1166)","v":""},{"$f":"IF('1. Ordersheet'!H1166=\"\",\"\",'1. Ordersheet'!H1166)","v":""},{"$f":"IF('1. Ordersheet'!I1166=\"\",\"\",'1. Ordersheet'!I1166)","v":""},{"$f":"IF('1. Ordersheet'!J1166=\"\",\"\",'1. Ordersheet'!J1166)","v":""},{"$f":"IF('1. Ordersheet'!K1166=\"\",\"\",'1. Ordersheet'!K1166)","v":""},{"$f":"IF('1. Ordersheet'!L1166=\"\",\"\",'1. Ordersheet'!L1166)","v":""},{"$f":"IF('1. Ordersheet'!M1166=\"\",\"\",'1. Ordersheet'!M1166)","v":""},{"$f":"IF('1. Ordersheet'!N1166=\"\",\"\",'1. Ordersheet'!N1166)","v":""},{"$f":"IF('1. Ordersheet'!O1166=\"\",\"\",'1. Ordersheet'!O1166)","v":{"$error":"#N/A"}},{"$f":"IF('1. Ordersheet'!P1166=\"\",\"\",'1. Ordersheet'!P1166)","v":{"$error":"#N/A"}},{"$f":"IF('1. Ordersheet'!Q1166=\"\",\"\",'1. Ordersheet'!Q1166)","v":""},{"$f":"IF('1. Ordersheet'!R1166=\"\",\"\",'1. Ordersheet'!R1166)","v":""},{"$f":"IF('1. Ordersheet'!S1166=\"\",\"\",'1. Ordersheet'!S1166)","v":""},{"$f":"IF('1. Ordersheet'!V1166=\"\",\"\",'1. Ordersheet'!V1166)","v":""},{"$f":"IF('1. Ordersheet'!W1166=\"\",\"\",'1. Ordersheet'!W1166)","v":""},{"$f":"IF('1. Ordersheet'!X1166=\"\",\"\",'1. Ordersheet'!X1166)","v":""},{"$f":"IF('1. Ordersheet'!Y1166=\"\",\"\",'1. Ordersheet'!Y1166)","v":""},{"$f":"IF('1. Ordersheet'!Z1166=\"\",\"\",'1. Ordersheet'!Z1166)","v":""},{"$f":"IF('1. Ordersheet'!AA1166=\"\",\"\",'1. Ordersheet'!AA1166)","v":""},null,{"$f":"IF('1. Ordersheet'!AS1166=\"\",\"\",'1. Ordersheet'!AS1166)","v":""},{"$f":"IF('1. Ordersheet'!AT1166=\"\",\"\",'1. Ordersheet'!AT1166)","v":""},null,null,null,null,null,null,null,{"$f":"IF('1. Ordersheet'!AX1166=\"\",\"\",'1. Ordersheet'!AX1166)","v":""},{"$f":"IF('1. Ordersheet'!AY1166=\"\",\"\",'1. Ordersheet'!AY1166)","v":""},{"$f":"IF('1. Ordersheet'!AZ1166=\"\",\"\",'1. Ordersheet'!AZ1166)","v":""},{"$f":"IF('1. Ordersheet'!BA1166=\"\",\"\",'1. Ordersheet'!BA1166)","v":""},{"$f":"IF('1. Ordersheet'!BC1166=\"\",\"\",'1. Ordersheet'!BC1166)","v":""},{"$f":"IF('1. Ordersheet'!BD1166=\"\",\"\",'1. Ordersheet'!BD1166)","v":""},{"$f":"IF('1. Ordersheet'!BE1166=\"\",\"\",'1. Ordersheet'!BE1166)","v":""},{"$f":"IF('1. Ordersheet'!BF1166=\"\",\"\",'1. Ordersheet'!BF1166)","v":""},{"$f":"IF('1. Ordersheet'!BG1166=\"\",\"\",'1. Ordersheet'!BG1166)","v":"ZWO"},{"$f":"IF('1. Ordersheet'!BH1166=\"\",\"\",'1. Ordersheet'!BH1166)","v":""},{"$f":"IF('1. Ordersheet'!BI1166=\"\",\"\",'1. Ordersheet'!BI1166)","v":""},{"$f":"IF('1. Ordersheet'!BJ1166=\"\",\"\",'1. Ordersheet'!BJ1166)","v":""},{"$f":"IF('1. Ordersheet'!BK1166=\"\",\"\",'1. Ordersheet'!BK1166)","v":""},{"$f":"IF('1. Ordersheet'!BL1166=\"\",\"\",'1. Ordersheet'!BL1166)","v":""}]
[{"$f":"IF('1. Ordersheet'!F1167=\"\",\"\",'1. Ordersheet'!F1167)","v":""},{"$f":"IF('1. Ordersheet'!G1167=\"\",\"\",'1. Ordersheet'!G1167)","v":""},{"$f":"IF('1. Ordersheet'!H1167=\"\",\"\",'1. Ordersheet'!H1167)","v":""},{"$f":"IF('1. Ordersheet'!I1167=\"\",\"\",'1. Ordersheet'!I1167)","v":""},{"$f":"IF('1. Ordersheet'!J1167=\"\",\"\",'1. Ordersheet'!J1167)","v":""},{"$f":"IF('1. Ordersheet'!K1167=\"\",\"\",'1. Ordersheet'!K1167)","v":""},{"$f":"IF('1. Ordersheet'!L1167=\"\",\"\",'1. Ordersheet'!L1167)","v":""},{"$f":"IF('1. Ordersheet'!M1167=\"\",\"\",'1. Ordersheet'!M1167)","v":""},{"$f":"IF('1. Ordersheet'!N1167=\"\",\"\",'1. Ordersheet'!N1167)","v":""},{"$f":"IF('1. Ordersheet'!O1167=\"\",\"\",'1. Ordersheet'!O1167)","v":{"$error":"#N/A"}},{"$f":"IF('1. Ordersheet'!P1167=\"\",\"\",'1. Ordersheet'!P1167)","v":{"$error":"#N/A"}},{"$f":"IF('1. Ordersheet'!Q1167=\"\",\"\",'1. Ordersheet'!Q1167)","v":""},{"$f":"IF('1. Ordersheet'!R1167=\"\",\"\",'1. Ordersheet'!R1167)","v":""},{"$f":"IF('1. Ordersheet'!S1167=\"\",\"\",'1. Ordersheet'!S1167)","v":""},{"$f":"IF('1. Ordersheet'!V1167=\"\",\"\",'1. Ordersheet'!V1167)","v":""},{"$f":"IF('1. Ordersheet'!W1167=\"\",\"\",'1. Ordersheet'!W1167)","v":""},{"$f":"IF('1. Ordersheet'!X1167=\"\",\"\",'1. Ordersheet'!X1167)","v":""},{"$f":"IF('1. Ordersheet'!Y1167=\"\",\"\",'1. Ordersheet'!Y1167)","v":""},{"$f":"IF('1. Ordersheet'!Z1167=\"\",\"\",'1. Ordersheet'!Z1167)","v":""},{"$f":"IF('1. Ordersheet'!AA1167=\"\",\"\",'1. Ordersheet'!AA1167)","v":""},null,{"$f":"IF('1. Ordersheet'!AS1167=\"\",\"\",'1. Ordersheet'!AS1167)","v":""},{"$f":"IF('1. Ordersheet'!AT1167=\"\",\"\",'1. Ordersheet'!AT1167)","v":""},null,null,null,null,null,null,null,{"$f":"IF('1. Ordersheet'!AX1167=\"\",\"\",'1. Ordersheet'!AX1167)","v":""},{"$f":"IF('1. Ordersheet'!AY1167=\"\",\"\",'1. Ordersheet'!AY1167)","v":""},{"$f":"IF('1. Ordersheet'!AZ1167=\"\",\"\",'1. Ordersheet'!AZ1167)","v":""},{"$f":"IF('1. Ordersheet'!BA1167=\"\",\"\",'1. Ordersheet'!BA1167)","v":""},{"$f":"IF('1. Ordersheet'!BC1167=\"\",\"\",'1. Ordersheet'!BC1167)","v":""},{"$f":"IF('1. Ordersheet'!BD1167=\"\",\"\",'1. Ordersheet'!BD1167)","v":""},{"$f":"IF('1. Ordersheet'!BE1167=\"\",\"\",'1. Ordersheet'!BE1167)","v":""},{"$f":"IF('1. Ordersheet'!BF1167=\"\",\"\",'1. Ordersheet'!BF1167)","v":""},{"$f":"IF('1. Ordersheet'!BG1167=\"\",\"\",'1. Ordersheet'!BG1167)","v":"ZWO"},{"$f":"IF('1. Ordersheet'!BH1167=\"\",\"\",'1. Ordersheet'!BH1167)","v":""},{"$f":"IF('1. Ordersheet'!BI1167=\"\",\"\",'1. Ordersheet'!BI1167)","v":""},{"$f":"IF('1. Ordersheet'!BJ1167=\"\",\"\",'1. Ordersheet'!BJ1167)","v":""},{"$f":"IF('1. Ordersheet'!BK1167=\"\",\"\",'1. Ordersheet'!BK1167)","v":""},{"$f":"IF('1. Ordersheet'!BL1167=\"\",\"\",'1. Ordersheet'!BL1167)","v":""}]
[{"$f":"IF('1. Ordersheet'!F1168=\"\",\"\",'1. Ordersheet'!F1168)","v":""},{"$f":"IF('1. Ordersheet'!G1168=\"\",\"\",'1. Ordersheet'!G1168)","v":""},{"$f":"IF('1. Ordersheet'!H1168=\"\",\"\",'1. Ordersheet'!H1168)","v":""},{"$f":"IF('1. Ordersheet'!I1168=\"\",\"\",'1. Ordersheet'!I1168)","v":""},{"$f":"IF('1. Ordersheet'!J1168=\"\",\"\",'1. Ordersheet'!J1168)","v":""},{"$f":"IF('1. Ordersheet'!K1168=\"\",\"\",'1. Ordersheet'!K1168)","v":""},{"$f":"IF('1. Ordersheet'!L1168=\"\",\"\",'1. Ordersheet'!L1168)","v":""},{"$f":"IF('1. Ordersheet'!M1168=\"\",\"\",'1. Ordersheet'!M1168)","v":""},{"$f":"IF('1. Ordersheet'!N1168=\"\",\"\",'1. Ordersheet'!N1168)","v":""},{"$f":"IF('1. Ordersheet'!O1168=\"\",\"\",'1. Ordersheet'!O1168)","v":{"$error":"#N/A"}},{"$f":"IF('1. Ordersheet'!P1168=\"\",\"\",'1. Ordersheet'!P1168)","v":{"$error":"#N/A"}},{"$f":"IF('1. Ordersheet'!Q1168=\"\",\"\",'1. Ordersheet'!Q1168)","v":""},{"$f":"IF('1. Ordersheet'!R1168=\"\",\"\",'1. Ordersheet'!R1168)","v":""},{"$f":"IF('1. Ordersheet'!S1168=\"\",\"\",'1. Ordersheet'!S1168)","v":""},{"$f":"IF('1. Ordersheet'!V1168=\"\",\"\",'1. Ordersheet'!V1168)","v":""},{"$f":"IF('1. Ordersheet'!W1168=\"\",\"\",'1. Ordersheet'!W1168)","v":""},{"$f":"IF('1. Ordersheet'!X1168=\"\",\"\",'1. Ordersheet'!X1168)","v":""},{"$f":"IF('1. Ordersheet'!Y1168=\"\",\"\",'1. Ordersheet'!Y1168)","v":""},{"$f":"IF('1. Ordersheet'!Z1168=\"\",\"\",'1. Ordersheet'!Z1168)","v":""},{"$f":"IF('1. Ordersheet'!AA1168=\"\",\"\",'1. Ordersheet'!AA1168)","v":""},null,{"$f":"IF('1. Ordersheet'!AS1168=\"\",\"\",'1. Ordersheet'!AS1168)","v":""},{"$f":"IF('1. Ordersheet'!AT1168=\"\",\"\",'1. Ordersheet'!AT1168)","v":""},null,null,null,null,null,null,null,{"$f":"IF('1. Ordersheet'!AX1168=\"\",\"\",'1. Ordersheet'!AX1168)","v":""},{"$f":"IF('1. Ordersheet'!AY1168=\"\",\"\",'1. Ordersheet'!AY1168)","v":""},{"$f":"IF('1. Ordersheet'!AZ1168=\"\",\"\",'1. Ordersheet'!AZ1168)","v":""},{"$f":"IF('1. Ordersheet'!BA1168=\"\",\"\",'1. Ordersheet'!BA1168)","v":""},{"$f":"IF('1. Ordersheet'!BC1168=\"\",\"\",'1. Ordersheet'!BC1168)","v":""},{"$f":"IF('1. Ordersheet'!BD1168=\"\",\"\",'1. Ordersheet'!BD1168)","v":""},{"$f":"IF('1. Ordersheet'!BE1168=\"\",\"\",'1. Ordersheet'!BE1168)","v":""},{"$f":"IF('1. Ordersheet'!BF1168=\"\",\"\",'1. Ordersheet'!BF1168)","v":""},{"$f":"IF('1. Ordersheet'!BG1168=\"\",\"\",'1. Ordersheet'!BG1168)","v":"ZWO"},{"$f":"IF('1. Ordersheet'!BH1168=\"\",\"\",'1. Ordersheet'!BH1168)","v":""},{"$f":"IF('1. Ordersheet'!BI1168=\"\",\"\",'1. Ordersheet'!BI1168)","v":""},{"$f":"IF('1. Ordersheet'!BJ1168=\"\",\"\",'1. Ordersheet'!BJ1168)","v":""},{"$f":"IF('1. Ordersheet'!BK1168=\"\",\"\",'1. Ordersheet'!BK1168)","v":""},{"$f":"IF('1. Ordersheet'!BL1168=\"\",\"\",'1. Ordersheet'!BL1168)","v":""}]
[{"$f":"IF('1. Ordersheet'!F1169=\"\",\"\",'1. Ordersheet'!F1169)","v":""},{"$f":"IF('1. Ordersheet'!G1169=\"\",\"\",'1. Ordersheet'!G1169)","v":""},{"$f":"IF('1. Ordersheet'!H1169=\"\",\"\",'1. Ordersheet'!H1169)","v":""},{"$f":"IF('1. Ordersheet'!I1169=\"\",\"\",'1. Ordersheet'!I1169)","v":""},{"$f":"IF('1. Ordersheet'!J1169=\"\",\"\",'1. Ordersheet'!J1169)","v":""},{"$f":"IF('1. Ordersheet'!K1169=\"\",\"\",'1. Ordersheet'!K1169)","v":""},{"$f":"IF('1. Ordersheet'!L1169=\"\",\"\",'1. Ordersheet'!L1169)","v":""},{"$f":"IF('1. Ordersheet'!M1169=\"\",\"\",'1. Ordersheet'!M1169)","v":""},{"$f":"IF('1. Ordersheet'!N1169=\"\",\"\",'1. Ordersheet'!N1169)","v":""},{"$f":"IF('1. Ordersheet'!O1169=\"\",\"\",'1. Ordersheet'!O1169)","v":{"$error":"#N/A"}},{"$f":"IF('1. Ordersheet'!P1169=\"\",\"\",'1. Ordersheet'!P1169)","v":{"$error":"#N/A"}},{"$f":"IF('1. Ordersheet'!Q1169=\"\",\"\",'1. Ordersheet'!Q1169)","v":""},{"$f":"IF('1. Ordersheet'!R1169=\"\",\"\",'1. Ordersheet'!R1169)","v":""},{"$f":"IF('1. Ordersheet'!S1169=\"\",\"\",'1. Ordersheet'!S1169)","v":""},{"$f":"IF('1. Ordersheet'!V1169=\"\",\"\",'1. Ordersheet'!V1169)","v":""},{"$f":"IF('1. Ordersheet'!W1169=\"\",\"\",'1. Ordersheet'!W1169)","v":""},{"$f":"IF('1. Ordersheet'!X1169=\"\",\"\",'1. Ordersheet'!X1169)","v":""},{"$f":"IF('1. Ordersheet'!Y1169=\"\",\"\",'1. Ordersheet'!Y1169)","v":""},{"$f":"IF('1. Ordersheet'!Z1169=\"\",\"\",'1. Ordersheet'!Z1169)","v":""},{"$f":"IF('1. Ordersheet'!AA1169=\"\",\"\",'1. Ordersheet'!AA1169)","v":""},null,{"$f":"IF('1. Ordersheet'!AS1169=\"\",\"\",'1. Ordersheet'!AS1169)","v":""},{"$f":"IF('1. Ordersheet'!AT1169=\"\",\"\",'1. Ordersheet'!AT1169)","v":""},null,null,null,null,null,null,null,{"$f":"IF('1. Ordersheet'!AX1169=\"\",\"\",'1. Ordersheet'!AX1169)","v":""},{"$f":"IF('1. Ordersheet'!AY1169=\"\",\"\",'1. Ordersheet'!AY1169)","v":""},{"$f":"IF('1. Ordersheet'!AZ1169=\"\",\"\",'1. Ordersheet'!AZ1169)","v":""},{"$f":"IF('1. Ordersheet'!BA1169=\"\",\"\",'1. Ordersheet'!BA1169)","v":""},{"$f":"IF('1. Ordersheet'!BC1169=\"\",\"\",'1. Ordersheet'!BC1169)","v":""},{"$f":"IF('1. Ordersheet'!BD1169=\"\",\"\",'1. Ordersheet'!BD1169)","v":""},{"$f":"IF('1. Ordersheet'!BE1169=\"\",\"\",'1. Ordersheet'!BE1169)","v":""},{"$f":"IF('1. Ordersheet'!BF1169=\"\",\"\",'1. Ordersheet'!BF1169)","v":""},{"$f":"IF('1. Ordersheet'!BG1169=\"\",\"\",'1. Ordersheet'!BG1169)","v":"ZWO"},{"$f":"IF('1. Ordersheet'!BH1169=\"\",\"\",'1. Ordersheet'!BH1169)","v":""},{"$f":"IF('1. Ordersheet'!BI1169=\"\",\"\",'1. Ordersheet'!BI1169)","v":""},{"$f":"IF('1. Ordersheet'!BJ1169=\"\",\"\",'1. Ordersheet'!BJ1169)","v":""},{"$f":"IF('1. Ordersheet'!BK1169=\"\",\"\",'1. Ordersheet'!BK1169)","v":""},{"$f":"IF('1. Ordersheet'!BL1169=\"\",\"\",'1. Ordersheet'!BL1169)","v":""}]
[{"$f":"IF('1. Ordersheet'!F1170=\"\",\"\",'1. Ordersheet'!F1170)","v":""},{"$f":"IF('1. Ordersheet'!G1170=\"\",\"\",'1. Ordersheet'!G1170)","v":""},{"$f":"IF('1. Ordersheet'!H1170=\"\",\"\",'1. Ordersheet'!H1170)","v":""},{"$f":"IF('1. Ordersheet'!I1170=\"\",\"\",'1. Ordersheet'!I1170)","v":""},{"$f":"IF('1. Ordersheet'!J1170=\"\",\"\",'1. Ordersheet'!J1170)","v":""},{"$f":"IF('1. Ordersheet'!K1170=\"\",\"\",'1. Ordersheet'!K1170)","v":""},{"$f":"IF('1. Ordersheet'!L1170=\"\",\"\",'1. Ordersheet'!L1170)","v":""},{"$f":"IF('1. Ordersheet'!M1170=\"\",\"\",'1. Ordersheet'!M1170)","v":""},{"$f":"IF('1. Ordersheet'!N1170=\"\",\"\",'1. Ordersheet'!N1170)","v":""},{"$f":"IF('1. Ordersheet'!O1170=\"\",\"\",'1. Ordersheet'!O1170)","v":{"$error":"#N/A"}},{"$f":"IF('1. Ordersheet'!P1170=\"\",\"\",'1. Ordersheet'!P1170)","v":{"$error":"#N/A"}},{"$f":"IF('1. Ordersheet'!Q1170=\"\",\"\",'1. Ordersheet'!Q1170)","v":""},{"$f":"IF('1. Ordersheet'!R1170=\"\",\"\",'1. Ordersheet'!R1170)","v":""},{"$f":"IF('1. Ordersheet'!S1170=\"\",\"\",'1. Ordersheet'!S1170)","v":""},{"$f":"IF('1. Ordersheet'!V1170=\"\",\"\",'1. Ordersheet'!V1170)","v":""},{"$f":"IF('1. Ordersheet'!W1170=\"\",\"\",'1. Ordersheet'!W1170)","v":""},{"$f":"IF('1. Ordersheet'!X1170=\"\",\"\",'1. Ordersheet'!X1170)","v":""},{"$f":"IF('1. Ordersheet'!Y1170=\"\",\"\",'1. Ordersheet'!Y1170)","v":""},{"$f":"IF('1. Ordersheet'!Z1170=\"\",\"\",'1. Ordersheet'!Z1170)","v":""},{"$f":"IF('1. Ordersheet'!AA1170=\"\",\"\",'1. Ordersheet'!AA1170)","v":""},null,{"$f":"IF('1. Ordersheet'!AS1170=\"\",\"\",'1. Ordersheet'!AS1170)","v":""},{"$f":"IF('1. Ordersheet'!AT1170=\"\",\"\",'1. Ordersheet'!AT1170)","v":""},null,null,null,null,null,null,null,{"$f":"IF('1. Ordersheet'!AX1170=\"\",\"\",'1. Ordersheet'!AX1170)","v":""},{"$f":"IF('1. Ordersheet'!AY1170=\"\",\"\",'1. Ordersheet'!AY1170)","v":""},{"$f":"IF('1. Ordersheet'!AZ1170=\"\",\"\",'1. Ordersheet'!AZ1170)","v":""},{"$f":"IF('1. Ordersheet'!BA1170=\"\",\"\",'1. Ordersheet'!BA1170)","v":""},{"$f":"IF('1. Ordersheet'!BC1170=\"\",\"\",'1. Ordersheet'!BC1170)","v":""},{"$f":"IF('1. Ordersheet'!BD1170=\"\",\"\",'1. Ordersheet'!BD1170)","v":""},{"$f":"IF('1. Ordersheet'!BE1170=\"\",\"\",'1. Ordersheet'!BE1170)","v":""},{"$f":"IF('1. Ordersheet'!BF1170=\"\",\"\",'1. Ordersheet'!BF1170)","v":""},{"$f":"IF('1. Ordersheet'!BG1170=\"\",\"\",'1. Ordersheet'!BG1170)","v":"ZWO"},{"$f":"IF('1. Ordersheet'!BH1170=\"\",\"\",'1. Ordersheet'!BH1170)","v":""},{"$f":"IF('1. Ordersheet'!BI1170=\"\",\"\",'1. Ordersheet'!BI1170)","v":""},{"$f":"IF('1. Ordersheet'!BJ1170=\"\",\"\",'1. Ordersheet'!BJ1170)","v":""},{"$f":"IF('1. Ordersheet'!BK1170=\"\",\"\",'1. Ordersheet'!BK1170)","v":""},{"$f":"IF('1. Ordersheet'!BL1170=\"\",\"\",'1. Ordersheet'!BL1170)","v":""}]
[{"$f":"IF('1. Ordersheet'!F1171=\"\",\"\",'1. Ordersheet'!F1171)","v":""},{"$f":"IF('1. Ordersheet'!G1171=\"\",\"\",'1. Ordersheet'!G1171)","v":""},{"$f":"IF('1. Ordersheet'!H1171=\"\",\"\",'1. Ordersheet'!H1171)","v":""},{"$f":"IF('1. Ordersheet'!I1171=\"\",\"\",'1. Ordersheet'!I1171)","v":""},{"$f":"IF('1. Ordersheet'!J1171=\"\",\"\",'1. Ordersheet'!J1171)","v":""},{"$f":"IF('1. Ordersheet'!K1171=\"\",\"\",'1. Ordersheet'!K1171)","v":""},{"$f":"IF('1. Ordersheet'!L1171=\"\",\"\",'1. Ordersheet'!L1171)","v":""},{"$f":"IF('1. Ordersheet'!M1171=\"\",\"\",'1. Ordersheet'!M1171)","v":""},{"$f":"IF('1. Ordersheet'!N1171=\"\",\"\",'1. Ordersheet'!N1171)","v":""},{"$f":"IF('1. Ordersheet'!O1171=\"\",\"\",'1. Ordersheet'!O1171)","v":{"$error":"#N/A"}},{"$f":"IF('1. Ordersheet'!P1171=\"\",\"\",'1. Ordersheet'!P1171)","v":{"$error":"#N/A"}},{"$f":"IF('1. Ordersheet'!Q1171=\"\",\"\",'1. Ordersheet'!Q1171)","v":""},{"$f":"IF('1. Ordersheet'!R1171=\"\",\"\",'1. Ordersheet'!R1171)","v":""},{"$f":"IF('1. Ordersheet'!S1171=\"\",\"\",'1. Ordersheet'!S1171)","v":""},{"$f":"IF('1. Ordersheet'!V1171=\"\",\"\",'1. Ordersheet'!V1171)","v":""},{"$f":"IF('1. Ordersheet'!W1171=\"\",\"\",'1. Ordersheet'!W1171)","v":""},{"$f":"IF('1. Ordersheet'!X1171=\"\",\"\",'1. Ordersheet'!X1171)","v":""},{"$f":"IF('1. Ordersheet'!Y1171=\"\",\"\",'1. Ordersheet'!Y1171)","v":""},{"$f":"IF('1. Ordersheet'!Z1171=\"\",\"\",'1. Ordersheet'!Z1171)","v":""},{"$f":"IF('1. Ordersheet'!AA1171=\"\",\"\",'1. Ordersheet'!AA1171)","v":""},null,{"$f":"IF('1. Ordersheet'!AS1171=\"\",\"\",'1. Ordersheet'!AS1171)","v":""},{"$f":"IF('1. Ordersheet'!AT1171=\"\",\"\",'1. Ordersheet'!AT1171)","v":""},null,null,null,null,null,null,null,{"$f":"IF('1. Ordersheet'!AX1171=\"\",\"\",'1. Ordersheet'!AX1171)","v":""},{"$f":"IF('1. Ordersheet'!AY1171=\"\",\"\",'1. Ordersheet'!AY1171)","v":""},{"$f":"IF('1. Ordersheet'!AZ1171=\"\",\"\",'1. Ordersheet'!AZ1171)","v":""},{"$f":"IF('1. Ordersheet'!BA1171=\"\",\"\",'1. Ordersheet'!BA1171)","v":""},{"$f":"IF('1. Ordersheet'!BC1171=\"\",\"\",'1. Ordersheet'!BC1171)","v":""},{"$f":"IF('1. Ordersheet'!BD1171=\"\",\"\",'1. Ordersheet'!BD1171)","v":""},{"$f":"IF('1. Ordersheet'!BE1171=\"\",\"\",'1. Ordersheet'!BE1171)","v":""},{"$f":"IF('1. Ordersheet'!BF1171=\"\",\"\",'1. Ordersheet'!BF1171)","v":""},{"$f":"IF('1. Ordersheet'!BG1171=\"\",\"\",'1. Ordersheet'!BG1171)","v":"ZWO"},{"$f":"IF('1. Ordersheet'!BH1171=\"\",\"\",'1. Ordersheet'!BH1171)","v":""},{"$f":"IF('1. Ordersheet'!BI1171=\"\",\"\",'1. Ordersheet'!BI1171)","v":""},{"$f":"IF('1. Ordersheet'!BJ1171=\"\",\"\",'1. Ordersheet'!BJ1171)","v":""},{"$f":"IF('1. Ordersheet'!BK1171=\"\",\"\",'1. Ordersheet'!BK1171)","v":""},{"$f":"IF('1. Ordersheet'!BL1171=\"\",\"\",'1. Ordersheet'!BL1171)","v":""}]
[{"$f":"IF('1. Ordersheet'!F1172=\"\",\"\",'1. Ordersheet'!F1172)","v":""},{"$f":"IF('1. Ordersheet'!G1172=\"\",\"\",'1. Ordersheet'!G1172)","v":""},{"$f":"IF('1. Ordersheet'!H1172=\"\",\"\",'1. Ordersheet'!H1172)","v":""},{"$f":"IF('1. Ordersheet'!I1172=\"\",\"\",'1. Ordersheet'!I1172)","v":""},{"$f":"IF('1. Ordersheet'!J1172=\"\",\"\",'1. Ordersheet'!J1172)","v":""},{"$f":"IF('1. Ordersheet'!K1172=\"\",\"\",'1. Ordersheet'!K1172)","v":""},{"$f":"IF('1. Ordersheet'!L1172=\"\",\"\",'1. Ordersheet'!L1172)","v":""},{"$f":"IF('1. Ordersheet'!M1172=\"\",\"\",'1. Ordersheet'!M1172)","v":""},{"$f":"IF('1. Ordersheet'!N1172=\"\",\"\",'1. Ordersheet'!N1172)","v":""},{"$f":"IF('1. Ordersheet'!O1172=\"\",\"\",'1. Ordersheet'!O1172)","v":{"$error":"#N/A"}},{"$f":"IF('1. Ordersheet'!P1172=\"\",\"\",'1. Ordersheet'!P1172)","v":{"$error":"#N/A"}},{"$f":"IF('1. Ordersheet'!Q1172=\"\",\"\",'1. Ordersheet'!Q1172)","v":""},{"$f":"IF('1. Ordersheet'!R1172=\"\",\"\",'1. Ordersheet'!R1172)","v":""},{"$f":"IF('1. Ordersheet'!S1172=\"\",\"\",'1. Ordersheet'!S1172)","v":""},{"$f":"IF('1. Ordersheet'!V1172=\"\",\"\",'1. Ordersheet'!V1172)","v":""},{"$f":"IF('1. Ordersheet'!W1172=\"\",\"\",'1. Ordersheet'!W1172)","v":""},{"$f":"IF('1. Ordersheet'!X1172=\"\",\"\",'1. Ordersheet'!X1172)","v":""},{"$f":"IF('1. Ordersheet'!Y1172=\"\",\"\",'1. Ordersheet'!Y1172)","v":""},{"$f":"IF('1. Ordersheet'!Z1172=\"\",\"\",'1. Ordersheet'!Z1172)","v":""},{"$f":"IF('1. Ordersheet'!AA1172=\"\",\"\",'1. Ordersheet'!AA1172)","v":""},null,{"$f":"IF('1. Ordersheet'!AS1172=\"\",\"\",'1. Ordersheet'!AS1172)","v":""},{"$f":"IF('1. Ordersheet'!AT1172=\"\",\"\",'1. Ordersheet'!AT1172)","v":""},null,null,null,null,null,null,null,{"$f":"IF('1. Ordersheet'!AX1172=\"\",\"\",'1. Ordersheet'!AX1172)","v":""},{"$f":"IF('1. Ordersheet'!AY1172=\"\",\"\",'1. Ordersheet'!AY1172)","v":""},{"$f":"IF('1. Ordersheet'!AZ1172=\"\",\"\",'1. Ordersheet'!AZ1172)","v":""},{"$f":"IF('1. Ordersheet'!BA1172=\"\",\"\",'1. Ordersheet'!BA1172)","v":""},{"$f":"IF('1. Ordersheet'!BC1172=\"\",\"\",'1. Ordersheet'!BC1172)","v":""},{"$f":"IF('1. Ordersheet'!BD1172=\"\",\"\",'1. Ordersheet'!BD1172)","v":""},{"$f":"IF('1. Ordersheet'!BE1172=\"\",\"\",'1. Ordersheet'!BE1172)","v":""},{"$f":"IF('1. Ordersheet'!BF1172=\"\",\"\",'1. Ordersheet'!BF1172)","v":""},{"$f":"IF('1. Ordersheet'!BG1172=\"\",\"\",'1. Ordersheet'!BG1172)","v":"ZWO"},{"$f":"IF('1. Ordersheet'!BH1172=\"\",\"\",'1. Ordersheet'!BH1172)","v":""},{"$f":"IF('1. Ordersheet'!BI1172=\"\",\"\",'1. Ordersheet'!BI1172)","v":""},{"$f":"IF('1. Ordersheet'!BJ1172=\"\",\"\",'1. Ordersheet'!BJ1172)","v":""},{"$f":"IF('1. Ordersheet'!BK1172=\"\",\"\",'1. Ordersheet'!BK1172)","v":""},{"$f":"IF('1. Ordersheet'!BL1172=\"\",\"\",'1. Ordersheet'!BL1172)","v":""}]
[{"$f":"IF('1. Ordersheet'!F1173=\"\",\"\",'1. Ordersheet'!F1173)","v":""},{"$f":"IF('1. Ordersheet'!G1173=\"\",\"\",'1. Ordersheet'!G1173)","v":""},{"$f":"IF('1. Ordersheet'!H1173=\"\",\"\",'1. Ordersheet'!H1173)","v":""},{"$f":"IF('1. Ordersheet'!I1173=\"\",\"\",'1. Ordersheet'!I1173)","v":""},{"$f":"IF('1. Ordersheet'!J1173=\"\",\"\",'1. Ordersheet'!J1173)","v":""},{"$f":"IF('1. Ordersheet'!K1173=\"\",\"\",'1. Ordersheet'!K1173)","v":""},{"$f":"IF('1. Ordersheet'!L1173=\"\",\"\",'1. Ordersheet'!L1173)","v":""},{"$f":"IF('1. Ordersheet'!M1173=\"\",\"\",'1. Ordersheet'!M1173)","v":""},{"$f":"IF('1. Ordersheet'!N1173=\"\",\"\",'1. Ordersheet'!N1173)","v":""},{"$f":"IF('1. Ordersheet'!O1173=\"\",\"\",'1. Ordersheet'!O1173)","v":{"$error":"#N/A"}},{"$f":"IF('1. Ordersheet'!P1173=\"\",\"\",'1. Ordersheet'!P1173)","v":{"$error":"#N/A"}},{"$f":"IF('1. Ordersheet'!Q1173=\"\",\"\",'1. Ordersheet'!Q1173)","v":""},{"$f":"IF('1. Ordersheet'!R1173=\"\",\"\",'1. Ordersheet'!R1173)","v":""},{"$f":"IF('1. Ordersheet'!S1173=\"\",\"\",'1. Ordersheet'!S1173)","v":""},{"$f":"IF('1. Ordersheet'!V1173=\"\",\"\",'1. Ordersheet'!V1173)","v":""},{"$f":"IF('1. Ordersheet'!W1173=\"\",\"\",'1. Ordersheet'!W1173)","v":""},{"$f":"IF('1. Ordersheet'!X1173=\"\",\"\",'1. Ordersheet'!X1173)","v":""},{"$f":"IF('1. Ordersheet'!Y1173=\"\",\"\",'1. Ordersheet'!Y1173)","v":""},{"$f":"IF('1. Ordersheet'!Z1173=\"\",\"\",'1. Ordersheet'!Z1173)","v":""},{"$f":"IF('1. Ordersheet'!AA1173=\"\",\"\",'1. Ordersheet'!AA1173)","v":""},null,{"$f":"IF('1. Ordersheet'!AS1173=\"\",\"\",'1. Ordersheet'!AS1173)","v":""},{"$f":"IF('1. Ordersheet'!AT1173=\"\",\"\",'1. Ordersheet'!AT1173)","v":""},null,null,null,null,null,null,null,{"$f":"IF('1. Ordersheet'!AX1173=\"\",\"\",'1. Ordersheet'!AX1173)","v":""},{"$f":"IF('1. Ordersheet'!AY1173=\"\",\"\",'1. Ordersheet'!AY1173)","v":""},{"$f":"IF('1. Ordersheet'!AZ1173=\"\",\"\",'1. Ordersheet'!AZ1173)","v":""},{"$f":"IF('1. Ordersheet'!BA1173=\"\",\"\",'1. Ordersheet'!BA1173)","v":""},{"$f":"IF('1. Ordersheet'!BC1173=\"\",\"\",'1. Ordersheet'!BC1173)","v":""},{"$f":"IF('1. Ordersheet'!BD1173=\"\",\"\",'1. Ordersheet'!BD1173)","v":""},{"$f":"IF('1. Ordersheet'!BE1173=\"\",\"\",'1. Ordersheet'!BE1173)","v":""},{"$f":"IF('1. Ordersheet'!BF1173=\"\",\"\",'1. Ordersheet'!BF1173)","v":""},{"$f":"IF('1. Ordersheet'!BG1173=\"\",\"\",'1. Ordersheet'!BG1173)","v":"ZWO"},{"$f":"IF('1. Ordersheet'!BH1173=\"\",\"\",'1. Ordersheet'!BH1173)","v":""},{"$f":"IF('1. Ordersheet'!BI1173=\"\",\"\",'1. Ordersheet'!BI1173)","v":""},{"$f":"IF('1. Ordersheet'!BJ1173=\"\",\"\",'1. Ordersheet'!BJ1173)","v":""},{"$f":"IF('1. Ordersheet'!BK1173=\"\",\"\",'1. Ordersheet'!BK1173)","v":""},{"$f":"IF('1. Ordersheet'!BL1173=\"\",\"\",'1. Ordersheet'!BL1173)","v":""}]
[{"$f":"IF('1. Ordersheet'!F1174=\"\",\"\",'1. Ordersheet'!F1174)","v":""},{"$f":"IF('1. Ordersheet'!G1174=\"\",\"\",'1. Ordersheet'!G1174)","v":""},{"$f":"IF('1. Ordersheet'!H1174=\"\",\"\",'1. Ordersheet'!H1174)","v":""},{"$f":"IF('1. Ordersheet'!I1174=\"\",\"\",'1. Ordersheet'!I1174)","v":""},{"$f":"IF('1. Ordersheet'!J1174=\"\",\"\",'1. Ordersheet'!J1174)","v":""},{"$f":"IF('1. Ordersheet'!K1174=\"\",\"\",'1. Ordersheet'!K1174)","v":""},{"$f":"IF('1. Ordersheet'!L1174=\"\",\"\",'1. Ordersheet'!L1174)","v":""},{"$f":"IF('1. Ordersheet'!M1174=\"\",\"\",'1. Ordersheet'!M1174)","v":""},{"$f":"IF('1. Ordersheet'!N1174=\"\",\"\",'1. Ordersheet'!N1174)","v":""},{"$f":"IF('1. Ordersheet'!O1174=\"\",\"\",'1. Ordersheet'!O1174)","v":{"$error":"#N/A"}},{"$f":"IF('1. Ordersheet'!P1174=\"\",\"\",'1. Ordersheet'!P1174)","v":{"$error":"#N/A"}},{"$f":"IF('1. Ordersheet'!Q1174=\"\",\"\",'1. Ordersheet'!Q1174)","v":""},{"$f":"IF('1. Ordersheet'!R1174=\"\",\"\",'1. Ordersheet'!R1174)","v":""},{"$f":"IF('1. Ordersheet'!S1174=\"\",\"\",'1. Ordersheet'!S1174)","v":""},{"$f":"IF('1. Ordersheet'!V1174=\"\",\"\",'1. Ordersheet'!V1174)","v":""},{"$f":"IF('1. Ordersheet'!W1174=\"\",\"\",'1. Ordersheet'!W1174)","v":""},{"$f":"IF('1. Ordersheet'!X1174=\"\",\"\",'1. Ordersheet'!X1174)","v":""},{"$f":"IF('1. Ordersheet'!Y1174=\"\",\"\",'1. Ordersheet'!Y1174)","v":""},{"$f":"IF('1. Ordersheet'!Z1174=\"\",\"\",'1. Ordersheet'!Z1174)","v":""},{"$f":"IF('1. Ordersheet'!AA1174=\"\",\"\",'1. Ordersheet'!AA1174)","v":""},null,{"$f":"IF('1. Ordersheet'!AS1174=\"\",\"\",'1. Ordersheet'!AS1174)","v":""},{"$f":"IF('1. Ordersheet'!AT1174=\"\",\"\",'1. Ordersheet'!AT1174)","v":""},null,null,null,null,null,null,null,{"$f":"IF('1. Ordersheet'!AX1174=\"\",\"\",'1. Ordersheet'!AX1174)","v":""},{"$f":"IF('1. Ordersheet'!AY1174=\"\",\"\",'1. Ordersheet'!AY1174)","v":""},{"$f":"IF('1. Ordersheet'!AZ1174=\"\",\"\",'1. Ordersheet'!AZ1174)","v":""},{"$f":"IF('1. Ordersheet'!BA1174=\"\",\"\",'1. Ordersheet'!BA1174)","v":""},{"$f":"IF('1. Ordersheet'!BC1174=\"\",\"\",'1. Ordersheet'!BC1174)","v":""},{"$f":"IF('1. Ordersheet'!BD1174=\"\",\"\",'1. Ordersheet'!BD1174)","v":""},{"$f":"IF('1. Ordersheet'!BE1174=\"\",\"\",'1. Ordersheet'!BE1174)","v":""},{"$f":"IF('1. Ordersheet'!BF1174=\"\",\"\",'1. Ordersheet'!BF1174)","v":""},{"$f":"IF('1. Ordersheet'!BG1174=\"\",\"\",'1. Ordersheet'!BG1174)","v":"ZWO"},{"$f":"IF('1. Ordersheet'!BH1174=\"\",\"\",'1. Ordersheet'!BH1174)","v":""},{"$f":"IF('1. Ordersheet'!BI1174=\"\",\"\",'1. Ordersheet'!BI1174)","v":""},{"$f":"IF('1. Ordersheet'!BJ1174=\"\",\"\",'1. Ordersheet'!BJ1174)","v":""},{"$f":"IF('1. Ordersheet'!BK1174=\"\",\"\",'1. Ordersheet'!BK1174)","v":""},{"$f":"IF('1. Ordersheet'!BL1174=\"\",\"\",'1. Ordersheet'!BL1174)","v":""}]
[{"$f":"IF('1. Ordersheet'!F1175=\"\",\"\",'1. Ordersheet'!F1175)","v":""},{"$f":"IF('1. Ordersheet'!G1175=\"\",\"\",'1. Ordersheet'!G1175)","v":""},{"$f":"IF('1. Ordersheet'!H1175=\"\",\"\",'1. Ordersheet'!H1175)","v":""},{"$f":"IF('1. Ordersheet'!I1175=\"\",\"\",'1. Ordersheet'!I1175)","v":""},{"$f":"IF('1. Ordersheet'!J1175=\"\",\"\",'1. Ordersheet'!J1175)","v":""},{"$f":"IF('1. Ordersheet'!K1175=\"\",\"\",'1. Ordersheet'!K1175)","v":""},{"$f":"IF('1. Ordersheet'!L1175=\"\",\"\",'1. Ordersheet'!L1175)","v":""},{"$f":"IF('1. Ordersheet'!M1175=\"\",\"\",'1. Ordersheet'!M1175)","v":""},{"$f":"IF('1. Ordersheet'!N1175=\"\",\"\",'1. Ordersheet'!N1175)","v":""},{"$f":"IF('1. Ordersheet'!O1175=\"\",\"\",'1. Ordersheet'!O1175)","v":{"$error":"#N/A"}},{"$f":"IF('1. Ordersheet'!P1175=\"\",\"\",'1. Ordersheet'!P1175)","v":{"$error":"#N/A"}},{"$f":"IF('1. Ordersheet'!Q1175=\"\",\"\",'1. Ordersheet'!Q1175)","v":""},{"$f":"IF('1. Ordersheet'!R1175=\"\",\"\",'1. Ordersheet'!R1175)","v":""},{"$f":"IF('1. Ordersheet'!S1175=\"\",\"\",'1. Ordersheet'!S1175)","v":""},{"$f":"IF('1. Ordersheet'!V1175=\"\",\"\",'1. Ordersheet'!V1175)","v":""},{"$f":"IF('1. Ordersheet'!W1175=\"\",\"\",'1. Ordersheet'!W1175)","v":""},{"$f":"IF('1. Ordersheet'!X1175=\"\",\"\",'1. Ordersheet'!X1175)","v":""},{"$f":"IF('1. Ordersheet'!Y1175=\"\",\"\",'1. Ordersheet'!Y1175)","v":""},{"$f":"IF('1. Ordersheet'!Z1175=\"\",\"\",'1. Ordersheet'!Z1175)","v":""},{"$f":"IF('1. Ordersheet'!AA1175=\"\",\"\",'1. Ordersheet'!AA1175)","v":""},null,{"$f":"IF('1. Ordersheet'!AS1175=\"\",\"\",'1. Ordersheet'!AS1175)","v":""},{"$f":"IF('1. Ordersheet'!AT1175=\"\",\"\",'1. Ordersheet'!AT1175)","v":""},null,null,null,null,null,null,null,{"$f":"IF('1. Ordersheet'!AX1175=\"\",\"\",'1. Ordersheet'!AX1175)","v":""},{"$f":"IF('1. Ordersheet'!AY1175=\"\",\"\",'1. Ordersheet'!AY1175)","v":""},{"$f":"IF('1. Ordersheet'!AZ1175=\"\",\"\",'1. Ordersheet'!AZ1175)","v":""},{"$f":"IF('1. Ordersheet'!BA1175=\"\",\"\",'1. Ordersheet'!BA1175)","v":""},{"$f":"IF('1. Ordersheet'!BC1175=\"\",\"\",'1. Ordersheet'!BC1175)","v":""},{"$f":"IF('1. Ordersheet'!BD1175=\"\",\"\",'1. Ordersheet'!BD1175)","v":""},{"$f":"IF('1. Ordersheet'!BE1175=\"\",\"\",'1. Ordersheet'!BE1175)","v":""},{"$f":"IF('1. Ordersheet'!BF1175=\"\",\"\",'1. Ordersheet'!BF1175)","v":""},{"$f":"IF('1. Ordersheet'!BG1175=\"\",\"\",'1. Ordersheet'!BG1175)","v":"ZWO"},{"$f":"IF('1. Ordersheet'!BH1175=\"\",\"\",'1. Ordersheet'!BH1175)","v":""},{"$f":"IF('1. Ordersheet'!BI1175=\"\",\"\",'1. Ordersheet'!BI1175)","v":""},{"$f":"IF('1. Ordersheet'!BJ1175=\"\",\"\",'1. Ordersheet'!BJ1175)","v":""},{"$f":"IF('1. Ordersheet'!BK1175=\"\",\"\",'1. Ordersheet'!BK1175)","v":""},{"$f":"IF('1. Ordersheet'!BL1175=\"\",\"\",'1. Ordersheet'!BL1175)","v":""}]
[{"$f":"IF('1. Ordersheet'!F1176=\"\",\"\",'1. Ordersheet'!F1176)","v":""},{"$f":"IF('1. Ordersheet'!G1176=\"\",\"\",'1. Ordersheet'!G1176)","v":""},{"$f":"IF('1. Ordersheet'!H1176=\"\",\"\",'1. Ordersheet'!H1176)","v":""},{"$f":"IF('1. Ordersheet'!I1176=\"\",\"\",'1. Ordersheet'!I1176)","v":""},{"$f":"IF('1. Ordersheet'!J1176=\"\",\"\",'1. Ordersheet'!J1176)","v":""},{"$f":"IF('1. Ordersheet'!K1176=\"\",\"\",'1. Ordersheet'!K1176)","v":""},{"$f":"IF('1. Ordersheet'!L1176=\"\",\"\",'1. Ordersheet'!L1176)","v":""},{"$f":"IF('1. Ordersheet'!M1176=\"\",\"\",'1. Ordersheet'!M1176)","v":""},{"$f":"IF('1. Ordersheet'!N1176=\"\",\"\",'1. Ordersheet'!N1176)","v":""},{"$f":"IF('1. Ordersheet'!O1176=\"\",\"\",'1. Ordersheet'!O1176)","v":{"$error":"#N/A"}},{"$f":"IF('1. Ordersheet'!P1176=\"\",\"\",'1. Ordersheet'!P1176)","v":{"$error":"#N/A"}},{"$f":"IF('1. Ordersheet'!Q1176=\"\",\"\",'1. Ordersheet'!Q1176)","v":""},{"$f":"IF('1. Ordersheet'!R1176=\"\",\"\",'1. Ordersheet'!R1176)","v":""},{"$f":"IF('1. Ordersheet'!S1176=\"\",\"\",'1. Ordersheet'!S1176)","v":""},{"$f":"IF('1. Ordersheet'!V1176=\"\",\"\",'1. Ordersheet'!V1176)","v":""},{"$f":"IF('1. Ordersheet'!W1176=\"\",\"\",'1. Ordersheet'!W1176)","v":""},{"$f":"IF('1. Ordersheet'!X1176=\"\",\"\",'1. Ordersheet'!X1176)","v":""},{"$f":"IF('1. Ordersheet'!Y1176=\"\",\"\",'1. Ordersheet'!Y1176)","v":""},{"$f":"IF('1. Ordersheet'!Z1176=\"\",\"\",'1. Ordersheet'!Z1176)","v":""},{"$f":"IF('1. Ordersheet'!AA1176=\"\",\"\",'1. Ordersheet'!AA1176)","v":""},null,{"$f":"IF('1. Ordersheet'!AS1176=\"\",\"\",'1. Ordersheet'!AS1176)","v":""},{"$f":"IF('1. Ordersheet'!AT1176=\"\",\"\",'1. Ordersheet'!AT1176)","v":""},null,null,null,null,null,null,null,{"$f":"IF('1. Ordersheet'!AX1176=\"\",\"\",'1. Ordersheet'!AX1176)","v":""},{"$f":"IF('1. Ordersheet'!AY1176=\"\",\"\",'1. Ordersheet'!AY1176)","v":""},{"$f":"IF('1. Ordersheet'!AZ1176=\"\",\"\",'1. Ordersheet'!AZ1176)","v":""},{"$f":"IF('1. Ordersheet'!BA1176=\"\",\"\",'1. Ordersheet'!BA1176)","v":""},{"$f":"IF('1. Ordersheet'!BC1176=\"\",\"\",'1. Ordersheet'!BC1176)","v":""},{"$f":"IF('1. Ordersheet'!BD1176=\"\",\"\",'1. Ordersheet'!BD1176)","v":""},{"$f":"IF('1. Ordersheet'!BE1176=\"\",\"\",'1. Ordersheet'!BE1176)","v":""},{"$f":"IF('1. Ordersheet'!BF1176=\"\",\"\",'1. Ordersheet'!BF1176)","v":""},{"$f":"IF('1. Ordersheet'!BG1176=\"\",\"\",'1. Ordersheet'!BG1176)","v":"ZWO"},{"$f":"IF('1. Ordersheet'!BH1176=\"\",\"\",'1. Ordersheet'!BH1176)","v":""},{"$f":"IF('1. Ordersheet'!BI1176=\"\",\"\",'1. Ordersheet'!BI1176)","v":""},{"$f":"IF('1. Ordersheet'!BJ1176=\"\",\"\",'1. Ordersheet'!BJ1176)","v":""},{"$f":"IF('1. Ordersheet'!BK1176=\"\",\"\",'1. Ordersheet'!BK1176)","v":""},{"$f":"IF('1. Ordersheet'!BL1176=\"\",\"\",'1. Ordersheet'!BL1176)","v":""}]
[{"$f":"IF('1. Ordersheet'!F1177=\"\",\"\",'1. Ordersheet'!F1177)","v":""},{"$f":"IF('1. Ordersheet'!G1177=\"\",\"\",'1. Ordersheet'!G1177)","v":""},{"$f":"IF('1. Ordersheet'!H1177=\"\",\"\",'1. Ordersheet'!H1177)","v":""},{"$f":"IF('1. Ordersheet'!I1177=\"\",\"\",'1. Ordersheet'!I1177)","v":""},{"$f":"IF('1. Ordersheet'!J1177=\"\",\"\",'1. Ordersheet'!J1177)","v":""},{"$f":"IF('1. Ordersheet'!K1177=\"\",\"\",'1. Ordersheet'!K1177)","v":""},{"$f":"IF('1. Ordersheet'!L1177=\"\",\"\",'1. Ordersheet'!L1177)","v":""},{"$f":"IF('1. Ordersheet'!M1177=\"\",\"\",'1. Ordersheet'!M1177)","v":""},{"$f":"IF('1. Ordersheet'!N1177=\"\",\"\",'1. Ordersheet'!N1177)","v":""},{"$f":"IF('1. Ordersheet'!O1177=\"\",\"\",'1. Ordersheet'!O1177)","v":{"$error":"#N/A"}},{"$f":"IF('1. Ordersheet'!P1177=\"\",\"\",'1. Ordersheet'!P1177)","v":{"$error":"#N/A"}},{"$f":"IF('1. Ordersheet'!Q1177=\"\",\"\",'1. Ordersheet'!Q1177)","v":""},{"$f":"IF('1. Ordersheet'!R1177=\"\",\"\",'1. Ordersheet'!R1177)","v":""},{"$f":"IF('1. Ordersheet'!S1177=\"\",\"\",'1. Ordersheet'!S1177)","v":""},{"$f":"IF('1. Ordersheet'!V1177=\"\",\"\",'1. Ordersheet'!V1177)","v":""},{"$f":"IF('1. Ordersheet'!W1177=\"\",\"\",'1. Ordersheet'!W1177)","v":""},{"$f":"IF('1. Ordersheet'!X1177=\"\",\"\",'1. Ordersheet'!X1177)","v":""},{"$f":"IF('1. Ordersheet'!Y1177=\"\",\"\",'1. Ordersheet'!Y1177)","v":""},{"$f":"IF('1. Ordersheet'!Z1177=\"\",\"\",'1. Ordersheet'!Z1177)","v":""},{"$f":"IF('1. Ordersheet'!AA1177=\"\",\"\",'1. Ordersheet'!AA1177)","v":""},null,{"$f":"IF('1. Ordersheet'!AS1177=\"\",\"\",'1. Ordersheet'!AS1177)","v":""},{"$f":"IF('1. Ordersheet'!AT1177=\"\",\"\",'1. Ordersheet'!AT1177)","v":""},null,null,null,null,null,null,null,{"$f":"IF('1. Ordersheet'!AX1177=\"\",\"\",'1. Ordersheet'!AX1177)","v":""},{"$f":"IF('1. Ordersheet'!AY1177=\"\",\"\",'1. Ordersheet'!AY1177)","v":""},{"$f":"IF('1. Ordersheet'!AZ1177=\"\",\"\",'1. Ordersheet'!AZ1177)","v":""},{"$f":"IF('1. Ordersheet'!BA1177=\"\",\"\",'1. Ordersheet'!BA1177)","v":""},{"$f":"IF('1. Ordersheet'!BC1177=\"\",\"\",'1. Ordersheet'!BC1177)","v":""},{"$f":"IF('1. Ordersheet'!BD1177=\"\",\"\",'1. Ordersheet'!BD1177)","v":""},{"$f":"IF('1. Ordersheet'!BE1177=\"\",\"\",'1. Ordersheet'!BE1177)","v":""},{"$f":"IF('1. Ordersheet'!BF1177=\"\",\"\",'1. Ordersheet'!BF1177)","v":""},{"$f":"IF('1. Ordersheet'!BG1177=\"\",\"\",'1. Ordersheet'!BG1177)","v":"ZWO"},{"$f":"IF('1. Ordersheet'!BH1177=\"\",\"\",'1. Ordersheet'!BH1177)","v":""},{"$f":"IF('1. Ordersheet'!BI1177=\"\",\"\",'1. Ordersheet'!BI1177)","v":""},{"$f":"IF('1. Ordersheet'!BJ1177=\"\",\"\",'1. Ordersheet'!BJ1177)","v":""},{"$f":"IF('1. Ordersheet'!BK1177=\"\",\"\",'1. Ordersheet'!BK1177)","v":""},{"$f":"IF('1. Ordersheet'!BL1177=\"\",\"\",'1. Ordersheet'!BL1177)","v":""}]
[{"$f":"IF('1. Ordersheet'!F1178=\"\",\"\",'1. Ordersheet'!F1178)","v":""},{"$f":"IF('1. Ordersheet'!G1178=\"\",\"\",'1. Ordersheet'!G1178)","v":""},{"$f":"IF('1. Ordersheet'!H1178=\"\",\"\",'1. Ordersheet'!H1178)","v":""},{"$f":"IF('1. Ordersheet'!I1178=\"\",\"\",'1. Ordersheet'!I1178)","v":""},{"$f":"IF('1. Ordersheet'!J1178=\"\",\"\",'1. Ordersheet'!J1178)","v":""},{"$f":"IF('1. Ordersheet'!K1178=\"\",\"\",'1. Ordersheet'!K1178)","v":""},{"$f":"IF('1. Ordersheet'!L1178=\"\",\"\",'1. Ordersheet'!L1178)","v":""},{"$f":"IF('1. Ordersheet'!M1178=\"\",\"\",'1. Ordersheet'!M1178)","v":""},{"$f":"IF('1. Ordersheet'!N1178=\"\",\"\",'1. Ordersheet'!N1178)","v":""},{"$f":"IF('1. Ordersheet'!O1178=\"\",\"\",'1. Ordersheet'!O1178)","v":{"$error":"#N/A"}},{"$f":"IF('1. Ordersheet'!P1178=\"\",\"\",'1. Ordersheet'!P1178)","v":{"$error":"#N/A"}},{"$f":"IF('1. Ordersheet'!Q1178=\"\",\"\",'1. Ordersheet'!Q1178)","v":""},{"$f":"IF('1. Ordersheet'!R1178=\"\",\"\",'1. Ordersheet'!R1178)","v":""},{"$f":"IF('1. Ordersheet'!S1178=\"\",\"\",'1. Ordersheet'!S1178)","v":""},{"$f":"IF('1. Ordersheet'!V1178=\"\",\"\",'1. Ordersheet'!V1178)","v":""},{"$f":"IF('1. Ordersheet'!W1178=\"\",\"\",'1. Ordersheet'!W1178)","v":""},{"$f":"IF('1. Ordersheet'!X1178=\"\",\"\",'1. Ordersheet'!X1178)","v":""},{"$f":"IF('1. Ordersheet'!Y1178=\"\",\"\",'1. Ordersheet'!Y1178)","v":""},{"$f":"IF('1. Ordersheet'!Z1178=\"\",\"\",'1. Ordersheet'!Z1178)","v":""},{"$f":"IF('1. Ordersheet'!AA1178=\"\",\"\",'1. Ordersheet'!AA1178)","v":""},null,{"$f":"IF('1. Ordersheet'!AS1178=\"\",\"\",'1. Ordersheet'!AS1178)","v":""},{"$f":"IF('1. Ordersheet'!AT1178=\"\",\"\",'1. Ordersheet'!AT1178)","v":""},null,null,null,null,null,null,null,{"$f":"IF('1. Ordersheet'!AX1178=\"\",\"\",'1. Ordersheet'!AX1178)","v":""},{"$f":"IF('1. Ordersheet'!AY1178=\"\",\"\",'1. Ordersheet'!AY1178)","v":""},{"$f":"IF('1. Ordersheet'!AZ1178=\"\",\"\",'1. Ordersheet'!AZ1178)","v":""},{"$f":"IF('1. Ordersheet'!BA1178=\"\",\"\",'1. Ordersheet'!BA1178)","v":""},{"$f":"IF('1. Ordersheet'!BC1178=\"\",\"\",'1. Ordersheet'!BC1178)","v":""},{"$f":"IF('1. Ordersheet'!BD1178=\"\",\"\",'1. Ordersheet'!BD1178)","v":""},{"$f":"IF('1. Ordersheet'!BE1178=\"\",\"\",'1. Ordersheet'!BE1178)","v":""},{"$f":"IF('1. Ordersheet'!BF1178=\"\",\"\",'1. Ordersheet'!BF1178)","v":""},{"$f":"IF('1. Ordersheet'!BG1178=\"\",\"\",'1. Ordersheet'!BG1178)","v":"ZWO"},{"$f":"IF('1. Ordersheet'!BH1178=\"\",\"\",'1. Ordersheet'!BH1178)","v":""},{"$f":"IF('1. Ordersheet'!BI1178=\"\",\"\",'1. Ordersheet'!BI1178)","v":""},{"$f":"IF('1. Ordersheet'!BJ1178=\"\",\"\",'1. Ordersheet'!BJ1178)","v":""},{"$f":"IF('1. Ordersheet'!BK1178=\"\",\"\",'1. Ordersheet'!BK1178)","v":""},{"$f":"IF('1. Ordersheet'!BL1178=\"\",\"\",'1. Ordersheet'!BL1178)","v":""}]
[{"$f":"IF('1. Ordersheet'!F1179=\"\",\"\",'1. Ordersheet'!F1179)","v":""},{"$f":"IF('1. Ordersheet'!G1179=\"\",\"\",'1. Ordersheet'!G1179)","v":""},{"$f":"IF('1. Ordersheet'!H1179=\"\",\"\",'1. Ordersheet'!H1179)","v":""},{"$f":"IF('1. Ordersheet'!I1179=\"\",\"\",'1. Ordersheet'!I1179)","v":""},{"$f":"IF('1. Ordersheet'!J1179=\"\",\"\",'1. Ordersheet'!J1179)","v":""},{"$f":"IF('1. Ordersheet'!K1179=\"\",\"\",'1. Ordersheet'!K1179)","v":""},{"$f":"IF('1. Ordersheet'!L1179=\"\",\"\",'1. Ordersheet'!L1179)","v":""},{"$f":"IF('1. Ordersheet'!M1179=\"\",\"\",'1. Ordersheet'!M1179)","v":""},{"$f":"IF('1. Ordersheet'!N1179=\"\",\"\",'1. Ordersheet'!N1179)","v":""},{"$f":"IF('1. Ordersheet'!O1179=\"\",\"\",'1. Ordersheet'!O1179)","v":{"$error":"#N/A"}},{"$f":"IF('1. Ordersheet'!P1179=\"\",\"\",'1. Ordersheet'!P1179)","v":{"$error":"#N/A"}},{"$f":"IF('1. Ordersheet'!Q1179=\"\",\"\",'1. Ordersheet'!Q1179)","v":""},{"$f":"IF('1. Ordersheet'!R1179=\"\",\"\",'1. Ordersheet'!R1179)","v":""},{"$f":"IF('1. Ordersheet'!S1179=\"\",\"\",'1. Ordersheet'!S1179)","v":""},{"$f":"IF('1. Ordersheet'!V1179=\"\",\"\",'1. Ordersheet'!V1179)","v":""},{"$f":"IF('1. Ordersheet'!W1179=\"\",\"\",'1. Ordersheet'!W1179)","v":""},{"$f":"IF('1. Ordersheet'!X1179=\"\",\"\",'1. Ordersheet'!X1179)","v":""},{"$f":"IF('1. Ordersheet'!Y1179=\"\",\"\",'1. Ordersheet'!Y1179)","v":""},{"$f":"IF('1. Ordersheet'!Z1179=\"\",\"\",'1. Ordersheet'!Z1179)","v":""},{"$f":"IF('1. Ordersheet'!AA1179=\"\",\"\",'1. Ordersheet'!AA1179)","v":""},null,{"$f":"IF('1. Ordersheet'!AS1179=\"\",\"\",'1. Ordersheet'!AS1179)","v":""},{"$f":"IF('1. Ordersheet'!AT1179=\"\",\"\",'1. Ordersheet'!AT1179)","v":""},null,null,null,null,null,null,null,{"$f":"IF('1. Ordersheet'!AX1179=\"\",\"\",'1. Ordersheet'!AX1179)","v":""},{"$f":"IF('1. Ordersheet'!AY1179=\"\",\"\",'1. Ordersheet'!AY1179)","v":""},{"$f":"IF('1. Ordersheet'!AZ1179=\"\",\"\",'1. Ordersheet'!AZ1179)","v":""},{"$f":"IF('1. Ordersheet'!BA1179=\"\",\"\",'1. Ordersheet'!BA1179)","v":""},{"$f":"IF('1. Ordersheet'!BC1179=\"\",\"\",'1. Ordersheet'!BC1179)","v":""},{"$f":"IF('1. Ordersheet'!BD1179=\"\",\"\",'1. Ordersheet'!BD1179)","v":""},{"$f":"IF('1. Ordersheet'!BE1179=\"\",\"\",'1. Ordersheet'!BE1179)","v":""},{"$f":"IF('1. Ordersheet'!BF1179=\"\",\"\",'1. Ordersheet'!BF1179)","v":""},{"$f":"IF('1. Ordersheet'!BG1179=\"\",\"\",'1. Ordersheet'!BG1179)","v":"ZWO"},{"$f":"IF('1. Ordersheet'!BH1179=\"\",\"\",'1. Ordersheet'!BH1179)","v":""},{"$f":"IF('1. Ordersheet'!BI1179=\"\",\"\",'1. Ordersheet'!BI1179)","v":""},{"$f":"IF('1. Ordersheet'!BJ1179=\"\",\"\",'1. Ordersheet'!BJ1179)","v":""},{"$f":"IF('1. Ordersheet'!BK1179=\"\",\"\",'1. Ordersheet'!BK1179)","v":""},{"$f":"IF('1. Ordersheet'!BL1179=\"\",\"\",'1. Ordersheet'!BL1179)","v":""}]
[{"$f":"IF('1. Ordersheet'!F1180=\"\",\"\",'1. Ordersheet'!F1180)","v":""},{"$f":"IF('1. Ordersheet'!G1180=\"\",\"\",'1. Ordersheet'!G1180)","v":""},{"$f":"IF('1. Ordersheet'!H1180=\"\",\"\",'1. Ordersheet'!H1180)","v":""},{"$f":"IF('1. Ordersheet'!I1180=\"\",\"\",'1. Ordersheet'!I1180)","v":""},{"$f":"IF('1. Ordersheet'!J1180=\"\",\"\",'1. Ordersheet'!J1180)","v":""},{"$f":"IF('1. Ordersheet'!K1180=\"\",\"\",'1. Ordersheet'!K1180)","v":""},{"$f":"IF('1. Ordersheet'!L1180=\"\",\"\",'1. Ordersheet'!L1180)","v":""},{"$f":"IF('1. Ordersheet'!M1180=\"\",\"\",'1. Ordersheet'!M1180)","v":""},{"$f":"IF('1. Ordersheet'!N1180=\"\",\"\",'1. Ordersheet'!N1180)","v":""},{"$f":"IF('1. Ordersheet'!O1180=\"\",\"\",'1. Ordersheet'!O1180)","v":{"$error":"#N/A"}},{"$f":"IF('1. Ordersheet'!P1180=\"\",\"\",'1. Ordersheet'!P1180)","v":{"$error":"#N/A"}},{"$f":"IF('1. Ordersheet'!Q1180=\"\",\"\",'1. Ordersheet'!Q1180)","v":""},{"$f":"IF('1. Ordersheet'!R1180=\"\",\"\",'1. Ordersheet'!R1180)","v":""},{"$f":"IF('1. Ordersheet'!S1180=\"\",\"\",'1. Ordersheet'!S1180)","v":""},{"$f":"IF('1. Ordersheet'!V1180=\"\",\"\",'1. Ordersheet'!V1180)","v":""},{"$f":"IF('1. Ordersheet'!W1180=\"\",\"\",'1. Ordersheet'!W1180)","v":""},{"$f":"IF('1. Ordersheet'!X1180=\"\",\"\",'1. Ordersheet'!X1180)","v":""},{"$f":"IF('1. Ordersheet'!Y1180=\"\",\"\",'1. Ordersheet'!Y1180)","v":""},{"$f":"IF('1. Ordersheet'!Z1180=\"\",\"\",'1. Ordersheet'!Z1180)","v":""},{"$f":"IF('1. Ordersheet'!AA1180=\"\",\"\",'1. Ordersheet'!AA1180)","v":""},null,{"$f":"IF('1. Ordersheet'!AS1180=\"\",\"\",'1. Ordersheet'!AS1180)","v":""},{"$f":"IF('1. Ordersheet'!AT1180=\"\",\"\",'1. Ordersheet'!AT1180)","v":""},null,null,null,null,null,null,null,{"$f":"IF('1. Ordersheet'!AX1180=\"\",\"\",'1. Ordersheet'!AX1180)","v":""},{"$f":"IF('1. Ordersheet'!AY1180=\"\",\"\",'1. Ordersheet'!AY1180)","v":""},{"$f":"IF('1. Ordersheet'!AZ1180=\"\",\"\",'1. Ordersheet'!AZ1180)","v":""},{"$f":"IF('1. Ordersheet'!BA1180=\"\",\"\",'1. Ordersheet'!BA1180)","v":""},{"$f":"IF('1. Ordersheet'!BC1180=\"\",\"\",'1. Ordersheet'!BC1180)","v":""},{"$f":"IF('1. Ordersheet'!BD1180=\"\",\"\",'1. Ordersheet'!BD1180)","v":""},{"$f":"IF('1. Ordersheet'!BE1180=\"\",\"\",'1. Ordersheet'!BE1180)","v":""},{"$f":"IF('1. Ordersheet'!BF1180=\"\",\"\",'1. Ordersheet'!BF1180)","v":""},{"$f":"IF('1. Ordersheet'!BG1180=\"\",\"\",'1. Ordersheet'!BG1180)","v":"ZWO"},{"$f":"IF('1. Ordersheet'!BH1180=\"\",\"\",'1. Ordersheet'!BH1180)","v":""},{"$f":"IF('1. Ordersheet'!BI1180=\"\",\"\",'1. Ordersheet'!BI1180)","v":""},{"$f":"IF('1. Ordersheet'!BJ1180=\"\",\"\",'1. Ordersheet'!BJ1180)","v":""},{"$f":"IF('1. Ordersheet'!BK1180=\"\",\"\",'1. Ordersheet'!BK1180)","v":""},{"$f":"IF('1. Ordersheet'!BL1180=\"\",\"\",'1. Ordersheet'!BL1180)","v":""}]
[{"$f":"IF('1. Ordersheet'!F1181=\"\",\"\",'1. Ordersheet'!F1181)","v":""},{"$f":"IF('1. Ordersheet'!G1181=\"\",\"\",'1. Ordersheet'!G1181)","v":""},{"$f":"IF('1. Ordersheet'!H1181=\"\",\"\",'1. Ordersheet'!H1181)","v":""},{"$f":"IF('1. Ordersheet'!I1181=\"\",\"\",'1. Ordersheet'!I1181)","v":""},{"$f":"IF('1. Ordersheet'!J1181=\"\",\"\",'1. Ordersheet'!J1181)","v":""},{"$f":"IF('1. Ordersheet'!K1181=\"\",\"\",'1. Ordersheet'!K1181)","v":""},{"$f":"IF('1. Ordersheet'!L1181=\"\",\"\",'1. Ordersheet'!L1181)","v":""},{"$f":"IF('1. Ordersheet'!M1181=\"\",\"\",'1. Ordersheet'!M1181)","v":""},{"$f":"IF('1. Ordersheet'!N1181=\"\",\"\",'1. Ordersheet'!N1181)","v":""},{"$f":"IF('1. Ordersheet'!O1181=\"\",\"\",'1. Ordersheet'!O1181)","v":{"$error":"#N/A"}},{"$f":"IF('1. Ordersheet'!P1181=\"\",\"\",'1. Ordersheet'!P1181)","v":{"$error":"#N/A"}},{"$f":"IF('1. Ordersheet'!Q1181=\"\",\"\",'1. Ordersheet'!Q1181)","v":""},{"$f":"IF('1. Ordersheet'!R1181=\"\",\"\",'1. Ordersheet'!R1181)","v":""},{"$f":"IF('1. Ordersheet'!S1181=\"\",\"\",'1. Ordersheet'!S1181)","v":""},{"$f":"IF('1. Ordersheet'!V1181=\"\",\"\",'1. Ordersheet'!V1181)","v":""},{"$f":"IF('1. Ordersheet'!W1181=\"\",\"\",'1. Ordersheet'!W1181)","v":""},{"$f":"IF('1. Ordersheet'!X1181=\"\",\"\",'1. Ordersheet'!X1181)","v":""},{"$f":"IF('1. Ordersheet'!Y1181=\"\",\"\",'1. Ordersheet'!Y1181)","v":""},{"$f":"IF('1. Ordersheet'!Z1181=\"\",\"\",'1. Ordersheet'!Z1181)","v":""},{"$f":"IF('1. Ordersheet'!AA1181=\"\",\"\",'1. Ordersheet'!AA1181)","v":""},null,{"$f":"IF('1. Ordersheet'!AS1181=\"\",\"\",'1. Ordersheet'!AS1181)","v":""},{"$f":"IF('1. Ordersheet'!AT1181=\"\",\"\",'1. Ordersheet'!AT1181)","v":""},null,null,null,null,null,null,null,{"$f":"IF('1. Ordersheet'!AX1181=\"\",\"\",'1. Ordersheet'!AX1181)","v":""},{"$f":"IF('1. Ordersheet'!AY1181=\"\",\"\",'1. Ordersheet'!AY1181)","v":""},{"$f":"IF('1. Ordersheet'!AZ1181=\"\",\"\",'1. Ordersheet'!AZ1181)","v":""},{"$f":"IF('1. Ordersheet'!BA1181=\"\",\"\",'1. Ordersheet'!BA1181)","v":""},{"$f":"IF('1. Ordersheet'!BC1181=\"\",\"\",'1. Ordersheet'!BC1181)","v":""},{"$f":"IF('1. Ordersheet'!BD1181=\"\",\"\",'1. Ordersheet'!BD1181)","v":""},{"$f":"IF('1. Ordersheet'!BE1181=\"\",\"\",'1. Ordersheet'!BE1181)","v":""},{"$f":"IF('1. Ordersheet'!BF1181=\"\",\"\",'1. Ordersheet'!BF1181)","v":""},{"$f":"IF('1. Ordersheet'!BG1181=\"\",\"\",'1. Ordersheet'!BG1181)","v":"ZWO"},{"$f":"IF('1. Ordersheet'!BH1181=\"\",\"\",'1. Ordersheet'!BH1181)","v":""},{"$f":"IF('1. Ordersheet'!BI1181=\"\",\"\",'1. Ordersheet'!BI1181)","v":""},{"$f":"IF('1. Ordersheet'!BJ1181=\"\",\"\",'1. Ordersheet'!BJ1181)","v":""},{"$f":"IF('1. Ordersheet'!BK1181=\"\",\"\",'1. Ordersheet'!BK1181)","v":""},{"$f":"IF('1. Ordersheet'!BL1181=\"\",\"\",'1. Ordersheet'!BL1181)","v":""}]
[{"$f":"IF('1. Ordersheet'!F1182=\"\",\"\",'1. Ordersheet'!F1182)","v":""},{"$f":"IF('1. Ordersheet'!G1182=\"\",\"\",'1. Ordersheet'!G1182)","v":""},{"$f":"IF('1. Ordersheet'!H1182=\"\",\"\",'1. Ordersheet'!H1182)","v":""},{"$f":"IF('1. Ordersheet'!I1182=\"\",\"\",'1. Ordersheet'!I1182)","v":""},{"$f":"IF('1. Ordersheet'!J1182=\"\",\"\",'1. Ordersheet'!J1182)","v":""},{"$f":"IF('1. Ordersheet'!K1182=\"\",\"\",'1. Ordersheet'!K1182)","v":""},{"$f":"IF('1. Ordersheet'!L1182=\"\",\"\",'1. Ordersheet'!L1182)","v":""},{"$f":"IF('1. Ordersheet'!M1182=\"\",\"\",'1. Ordersheet'!M1182)","v":""},{"$f":"IF('1. Ordersheet'!N1182=\"\",\"\",'1. Ordersheet'!N1182)","v":""},{"$f":"IF('1. Ordersheet'!O1182=\"\",\"\",'1. Ordersheet'!O1182)","v":{"$error":"#N/A"}},{"$f":"IF('1. Ordersheet'!P1182=\"\",\"\",'1. Ordersheet'!P1182)","v":{"$error":"#N/A"}},{"$f":"IF('1. Ordersheet'!Q1182=\"\",\"\",'1. Ordersheet'!Q1182)","v":""},{"$f":"IF('1. Ordersheet'!R1182=\"\",\"\",'1. Ordersheet'!R1182)","v":""},{"$f":"IF('1. Ordersheet'!S1182=\"\",\"\",'1. Ordersheet'!S1182)","v":""},{"$f":"IF('1. Ordersheet'!V1182=\"\",\"\",'1. Ordersheet'!V1182)","v":""},{"$f":"IF('1. Ordersheet'!W1182=\"\",\"\",'1. Ordersheet'!W1182)","v":""},{"$f":"IF('1. Ordersheet'!X1182=\"\",\"\",'1. Ordersheet'!X1182)","v":""},{"$f":"IF('1. Ordersheet'!Y1182=\"\",\"\",'1. Ordersheet'!Y1182)","v":""},{"$f":"IF('1. Ordersheet'!Z1182=\"\",\"\",'1. Ordersheet'!Z1182)","v":""},{"$f":"IF('1. Ordersheet'!AA1182=\"\",\"\",'1. Ordersheet'!AA1182)","v":""},null,{"$f":"IF('1. Ordersheet'!AS1182=\"\",\"\",'1. Ordersheet'!AS1182)","v":""},{"$f":"IF('1. Ordersheet'!AT1182=\"\",\"\",'1. Ordersheet'!AT1182)","v":""},null,null,null,null,null,null,null,{"$f":"IF('1. Ordersheet'!AX1182=\"\",\"\",'1. Ordersheet'!AX1182)","v":""},{"$f":"IF('1. Ordersheet'!AY1182=\"\",\"\",'1. Ordersheet'!AY1182)","v":""},{"$f":"IF('1. Ordersheet'!AZ1182=\"\",\"\",'1. Ordersheet'!AZ1182)","v":""},{"$f":"IF('1. Ordersheet'!BA1182=\"\",\"\",'1. Ordersheet'!BA1182)","v":""},{"$f":"IF('1. Ordersheet'!BC1182=\"\",\"\",'1. Ordersheet'!BC1182)","v":""},{"$f":"IF('1. Ordersheet'!BD1182=\"\",\"\",'1. Ordersheet'!BD1182)","v":""},{"$f":"IF('1. Ordersheet'!BE1182=\"\",\"\",'1. Ordersheet'!BE1182)","v":""},{"$f":"IF('1. Ordersheet'!BF1182=\"\",\"\",'1. Ordersheet'!BF1182)","v":""},{"$f":"IF('1. Ordersheet'!BG1182=\"\",\"\",'1. Ordersheet'!BG1182)","v":"ZWO"},{"$f":"IF('1. Ordersheet'!BH1182=\"\",\"\",'1. Ordersheet'!BH1182)","v":""},{"$f":"IF('1. Ordersheet'!BI1182=\"\",\"\",'1. Ordersheet'!BI1182)","v":""},{"$f":"IF('1. Ordersheet'!BJ1182=\"\",\"\",'1. Ordersheet'!BJ1182)","v":""},{"$f":"IF('1. Ordersheet'!BK1182=\"\",\"\",'1. Ordersheet'!BK1182)","v":""},{"$f":"IF('1. Ordersheet'!BL1182=\"\",\"\",'1. Ordersheet'!BL1182)","v":""}]
[{"$f":"IF('1. Ordersheet'!F1183=\"\",\"\",'1. Ordersheet'!F1183)","v":""},{"$f":"IF('1. Ordersheet'!G1183=\"\",\"\",'1. Ordersheet'!G1183)","v":""},{"$f":"IF('1. Ordersheet'!H1183=\"\",\"\",'1. Ordersheet'!H1183)","v":""},{"$f":"IF('1. Ordersheet'!I1183=\"\",\"\",'1. Ordersheet'!I1183)","v":""},{"$f":"IF('1. Ordersheet'!J1183=\"\",\"\",'1. Ordersheet'!J1183)","v":""},{"$f":"IF('1. Ordersheet'!K1183=\"\",\"\",'1. Ordersheet'!K1183)","v":""},{"$f":"IF('1. Ordersheet'!L1183=\"\",\"\",'1. Ordersheet'!L1183)","v":""},{"$f":"IF('1. Ordersheet'!M1183=\"\",\"\",'1. Ordersheet'!M1183)","v":""},{"$f":"IF('1. Ordersheet'!N1183=\"\",\"\",'1. Ordersheet'!N1183)","v":""},{"$f":"IF('1. Ordersheet'!O1183=\"\",\"\",'1. Ordersheet'!O1183)","v":{"$error":"#N/A"}},{"$f":"IF('1. Ordersheet'!P1183=\"\",\"\",'1. Ordersheet'!P1183)","v":{"$error":"#N/A"}},{"$f":"IF('1. Ordersheet'!Q1183=\"\",\"\",'1. Ordersheet'!Q1183)","v":""},{"$f":"IF('1. Ordersheet'!R1183=\"\",\"\",'1. Ordersheet'!R1183)","v":""},{"$f":"IF('1. Ordersheet'!S1183=\"\",\"\",'1. Ordersheet'!S1183)","v":""},{"$f":"IF('1. Ordersheet'!V1183=\"\",\"\",'1. Ordersheet'!V1183)","v":""},{"$f":"IF('1. Ordersheet'!W1183=\"\",\"\",'1. Ordersheet'!W1183)","v":""},{"$f":"IF('1. Ordersheet'!X1183=\"\",\"\",'1. Ordersheet'!X1183)","v":""},{"$f":"IF('1. Ordersheet'!Y1183=\"\",\"\",'1. Ordersheet'!Y1183)","v":""},{"$f":"IF('1. Ordersheet'!Z1183=\"\",\"\",'1. Ordersheet'!Z1183)","v":""},{"$f":"IF('1. Ordersheet'!AA1183=\"\",\"\",'1. Ordersheet'!AA1183)","v":""},null,{"$f":"IF('1. Ordersheet'!AS1183=\"\",\"\",'1. Ordersheet'!AS1183)","v":""},{"$f":"IF('1. Ordersheet'!AT1183=\"\",\"\",'1. Ordersheet'!AT1183)","v":""},null,null,null,null,null,null,null,{"$f":"IF('1. Ordersheet'!AX1183=\"\",\"\",'1. Ordersheet'!AX1183)","v":""},{"$f":"IF('1. Ordersheet'!AY1183=\"\",\"\",'1. Ordersheet'!AY1183)","v":""},{"$f":"IF('1. Ordersheet'!AZ1183=\"\",\"\",'1. Ordersheet'!AZ1183)","v":""},{"$f":"IF('1. Ordersheet'!BA1183=\"\",\"\",'1. Ordersheet'!BA1183)","v":""},{"$f":"IF('1. Ordersheet'!BC1183=\"\",\"\",'1. Ordersheet'!BC1183)","v":""},{"$f":"IF('1. Ordersheet'!BD1183=\"\",\"\",'1. Ordersheet'!BD1183)","v":""},{"$f":"IF('1. Ordersheet'!BE1183=\"\",\"\",'1. Ordersheet'!BE1183)","v":""},{"$f":"IF('1. Ordersheet'!BF1183=\"\",\"\",'1. Ordersheet'!BF1183)","v":""},{"$f":"IF('1. Ordersheet'!BG1183=\"\",\"\",'1. Ordersheet'!BG1183)","v":"ZWO"},{"$f":"IF('1. Ordersheet'!BH1183=\"\",\"\",'1. Ordersheet'!BH1183)","v":""},{"$f":"IF('1. Ordersheet'!BI1183=\"\",\"\",'1. Ordersheet'!BI1183)","v":""},{"$f":"IF('1. Ordersheet'!BJ1183=\"\",\"\",'1. Ordersheet'!BJ1183)","v":""},{"$f":"IF('1. Ordersheet'!BK1183=\"\",\"\",'1. Ordersheet'!BK1183)","v":""},{"$f":"IF('1. Ordersheet'!BL1183=\"\",\"\",'1. Ordersheet'!BL1183)","v":""}]
[{"$f":"IF('1. Ordersheet'!F1184=\"\",\"\",'1. Ordersheet'!F1184)","v":""},{"$f":"IF('1. Ordersheet'!G1184=\"\",\"\",'1. Ordersheet'!G1184)","v":""},{"$f":"IF('1. Ordersheet'!H1184=\"\",\"\",'1. Ordersheet'!H1184)","v":""},{"$f":"IF('1. Ordersheet'!I1184=\"\",\"\",'1. Ordersheet'!I1184)","v":""},{"$f":"IF('1. Ordersheet'!J1184=\"\",\"\",'1. Ordersheet'!J1184)","v":""},{"$f":"IF('1. Ordersheet'!K1184=\"\",\"\",'1. Ordersheet'!K1184)","v":""},{"$f":"IF('1. Ordersheet'!L1184=\"\",\"\",'1. Ordersheet'!L1184)","v":""},{"$f":"IF('1. Ordersheet'!M1184=\"\",\"\",'1. Ordersheet'!M1184)","v":""},{"$f":"IF('1. Ordersheet'!N1184=\"\",\"\",'1. Ordersheet'!N1184)","v":""},{"$f":"IF('1. Ordersheet'!O1184=\"\",\"\",'1. Ordersheet'!O1184)","v":{"$error":"#N/A"}},{"$f":"IF('1. Ordersheet'!P1184=\"\",\"\",'1. Ordersheet'!P1184)","v":{"$error":"#N/A"}},{"$f":"IF('1. Ordersheet'!Q1184=\"\",\"\",'1. Ordersheet'!Q1184)","v":""},{"$f":"IF('1. Ordersheet'!R1184=\"\",\"\",'1. Ordersheet'!R1184)","v":""},{"$f":"IF('1. Ordersheet'!S1184=\"\",\"\",'1. Ordersheet'!S1184)","v":""},{"$f":"IF('1. Ordersheet'!V1184=\"\",\"\",'1. Ordersheet'!V1184)","v":""},{"$f":"IF('1. Ordersheet'!W1184=\"\",\"\",'1. Ordersheet'!W1184)","v":""},{"$f":"IF('1. Ordersheet'!X1184=\"\",\"\",'1. Ordersheet'!X1184)","v":""},{"$f":"IF('1. Ordersheet'!Y1184=\"\",\"\",'1. Ordersheet'!Y1184)","v":""},{"$f":"IF('1. Ordersheet'!Z1184=\"\",\"\",'1. Ordersheet'!Z1184)","v":""},{"$f":"IF('1. Ordersheet'!AA1184=\"\",\"\",'1. Ordersheet'!AA1184)","v":""},null,{"$f":"IF('1. Ordersheet'!AS1184=\"\",\"\",'1. Ordersheet'!AS1184)","v":""},{"$f":"IF('1. Ordersheet'!AT1184=\"\",\"\",'1. Ordersheet'!AT1184)","v":""},null,null,null,null,null,null,null,{"$f":"IF('1. Ordersheet'!AX1184=\"\",\"\",'1. Ordersheet'!AX1184)","v":""},{"$f":"IF('1. Ordersheet'!AY1184=\"\",\"\",'1. Ordersheet'!AY1184)","v":""},{"$f":"IF('1. Ordersheet'!AZ1184=\"\",\"\",'1. Ordersheet'!AZ1184)","v":""},{"$f":"IF('1. Ordersheet'!BA1184=\"\",\"\",'1. Ordersheet'!BA1184)","v":""},{"$f":"IF('1. Ordersheet'!BC1184=\"\",\"\",'1. Ordersheet'!BC1184)","v":""},{"$f":"IF('1. Ordersheet'!BD1184=\"\",\"\",'1. Ordersheet'!BD1184)","v":""},{"$f":"IF('1. Ordersheet'!BE1184=\"\",\"\",'1. Ordersheet'!BE1184)","v":""},{"$f":"IF('1. Ordersheet'!BF1184=\"\",\"\",'1. Ordersheet'!BF1184)","v":""},{"$f":"IF('1. Ordersheet'!BG1184=\"\",\"\",'1. Ordersheet'!BG1184)","v":"ZWO"},{"$f":"IF('1. Ordersheet'!BH1184=\"\",\"\",'1. Ordersheet'!BH1184)","v":""},{"$f":"IF('1. Ordersheet'!BI1184=\"\",\"\",'1. Ordersheet'!BI1184)","v":""},{"$f":"IF('1. Ordersheet'!BJ1184=\"\",\"\",'1. Ordersheet'!BJ1184)","v":""},{"$f":"IF('1. Ordersheet'!BK1184=\"\",\"\",'1. Ordersheet'!BK1184)","v":""},{"$f":"IF('1. Ordersheet'!BL1184=\"\",\"\",'1. Ordersheet'!BL1184)","v":""}]
[{"$f":"IF('1. Ordersheet'!F1185=\"\",\"\",'1. Ordersheet'!F1185)","v":""},{"$f":"IF('1. Ordersheet'!G1185=\"\",\"\",'1. Ordersheet'!G1185)","v":""},{"$f":"IF('1. Ordersheet'!H1185=\"\",\"\",'1. Ordersheet'!H1185)","v":""},{"$f":"IF('1. Ordersheet'!I1185=\"\",\"\",'1. Ordersheet'!I1185)","v":""},{"$f":"IF('1. Ordersheet'!J1185=\"\",\"\",'1. Ordersheet'!J1185)","v":""},{"$f":"IF('1. Ordersheet'!K1185=\"\",\"\",'1. Ordersheet'!K1185)","v":""},{"$f":"IF('1. Ordersheet'!L1185=\"\",\"\",'1. Ordersheet'!L1185)","v":""},{"$f":"IF('1. Ordersheet'!M1185=\"\",\"\",'1. Ordersheet'!M1185)","v":""},{"$f":"IF('1. Ordersheet'!N1185=\"\",\"\",'1. Ordersheet'!N1185)","v":""},{"$f":"IF('1. Ordersheet'!O1185=\"\",\"\",'1. Ordersheet'!O1185)","v":{"$error":"#N/A"}},{"$f":"IF('1. Ordersheet'!P1185=\"\",\"\",'1. Ordersheet'!P1185)","v":{"$error":"#N/A"}},{"$f":"IF('1. Ordersheet'!Q1185=\"\",\"\",'1. Ordersheet'!Q1185)","v":""},{"$f":"IF('1. Ordersheet'!R1185=\"\",\"\",'1. Ordersheet'!R1185)","v":""},{"$f":"IF('1. Ordersheet'!S1185=\"\",\"\",'1. Ordersheet'!S1185)","v":""},{"$f":"IF('1. Ordersheet'!V1185=\"\",\"\",'1. Ordersheet'!V1185)","v":""},{"$f":"IF('1. Ordersheet'!W1185=\"\",\"\",'1. Ordersheet'!W1185)","v":""},{"$f":"IF('1. Ordersheet'!X1185=\"\",\"\",'1. Ordersheet'!X1185)","v":""},{"$f":"IF('1. Ordersheet'!Y1185=\"\",\"\",'1. Ordersheet'!Y1185)","v":""},{"$f":"IF('1. Ordersheet'!Z1185=\"\",\"\",'1. Ordersheet'!Z1185)","v":""},{"$f":"IF('1. Ordersheet'!AA1185=\"\",\"\",'1. Ordersheet'!AA1185)","v":""},null,{"$f":"IF('1. Ordersheet'!AS1185=\"\",\"\",'1. Ordersheet'!AS1185)","v":""},{"$f":"IF('1. Ordersheet'!AT1185=\"\",\"\",'1. Ordersheet'!AT1185)","v":""},null,null,null,null,null,null,null,{"$f":"IF('1. Ordersheet'!AX1185=\"\",\"\",'1. Ordersheet'!AX1185)","v":""},{"$f":"IF('1. Ordersheet'!AY1185=\"\",\"\",'1. Ordersheet'!AY1185)","v":""},{"$f":"IF('1. Ordersheet'!AZ1185=\"\",\"\",'1. Ordersheet'!AZ1185)","v":""},{"$f":"IF('1. Ordersheet'!BA1185=\"\",\"\",'1. Ordersheet'!BA1185)","v":""},{"$f":"IF('1. Ordersheet'!BC1185=\"\",\"\",'1. Ordersheet'!BC1185)","v":""},{"$f":"IF('1. Ordersheet'!BD1185=\"\",\"\",'1. Ordersheet'!BD1185)","v":""},{"$f":"IF('1. Ordersheet'!BE1185=\"\",\"\",'1. Ordersheet'!BE1185)","v":""},{"$f":"IF('1. Ordersheet'!BF1185=\"\",\"\",'1. Ordersheet'!BF1185)","v":""},{"$f":"IF('1. Ordersheet'!BG1185=\"\",\"\",'1. Ordersheet'!BG1185)","v":"ZWO"},{"$f":"IF('1. Ordersheet'!BH1185=\"\",\"\",'1. Ordersheet'!BH1185)","v":""},{"$f":"IF('1. Ordersheet'!BI1185=\"\",\"\",'1. Ordersheet'!BI1185)","v":""},{"$f":"IF('1. Ordersheet'!BJ1185=\"\",\"\",'1. Ordersheet'!BJ1185)","v":""},{"$f":"IF('1. Ordersheet'!BK1185=\"\",\"\",'1. Ordersheet'!BK1185)","v":""},{"$f":"IF('1. Ordersheet'!BL1185=\"\",\"\",'1. Ordersheet'!BL1185)","v":""}]
[{"$f":"IF('1. Ordersheet'!F1186=\"\",\"\",'1. Ordersheet'!F1186)","v":""},{"$f":"IF('1. Ordersheet'!G1186=\"\",\"\",'1. Ordersheet'!G1186)","v":""},{"$f":"IF('1. Ordersheet'!H1186=\"\",\"\",'1. Ordersheet'!H1186)","v":""},{"$f":"IF('1. Ordersheet'!I1186=\"\",\"\",'1. Ordersheet'!I1186)","v":""},{"$f":"IF('1. Ordersheet'!J1186=\"\",\"\",'1. Ordersheet'!J1186)","v":""},{"$f":"IF('1. Ordersheet'!K1186=\"\",\"\",'1. Ordersheet'!K1186)","v":""},{"$f":"IF('1. Ordersheet'!L1186=\"\",\"\",'1. Ordersheet'!L1186)","v":""},{"$f":"IF('1. Ordersheet'!M1186=\"\",\"\",'1. Ordersheet'!M1186)","v":""},{"$f":"IF('1. Ordersheet'!N1186=\"\",\"\",'1. Ordersheet'!N1186)","v":""},{"$f":"IF('1. Ordersheet'!O1186=\"\",\"\",'1. Ordersheet'!O1186)","v":{"$error":"#N/A"}},{"$f":"IF('1. Ordersheet'!P1186=\"\",\"\",'1. Ordersheet'!P1186)","v":{"$error":"#N/A"}},{"$f":"IF('1. Ordersheet'!Q1186=\"\",\"\",'1. Ordersheet'!Q1186)","v":""},{"$f":"IF('1. Ordersheet'!R1186=\"\",\"\",'1. Ordersheet'!R1186)","v":""},{"$f":"IF('1. Ordersheet'!S1186=\"\",\"\",'1. Ordersheet'!S1186)","v":""},{"$f":"IF('1. Ordersheet'!V1186=\"\",\"\",'1. Ordersheet'!V1186)","v":""},{"$f":"IF('1. Ordersheet'!W1186=\"\",\"\",'1. Ordersheet'!W1186)","v":""},{"$f":"IF('1. Ordersheet'!X1186=\"\",\"\",'1. Ordersheet'!X1186)","v":""},{"$f":"IF('1. Ordersheet'!Y1186=\"\",\"\",'1. Ordersheet'!Y1186)","v":""},{"$f":"IF('1. Ordersheet'!Z1186=\"\",\"\",'1. Ordersheet'!Z1186)","v":""},{"$f":"IF('1. Ordersheet'!AA1186=\"\",\"\",'1. Ordersheet'!AA1186)","v":""},null,{"$f":"IF('1. Ordersheet'!AS1186=\"\",\"\",'1. Ordersheet'!AS1186)","v":""},{"$f":"IF('1. Ordersheet'!AT1186=\"\",\"\",'1. Ordersheet'!AT1186)","v":""},null,null,null,null,null,null,null,{"$f":"IF('1. Ordersheet'!AX1186=\"\",\"\",'1. Ordersheet'!AX1186)","v":""},{"$f":"IF('1. Ordersheet'!AY1186=\"\",\"\",'1. Ordersheet'!AY1186)","v":""},{"$f":"IF('1. Ordersheet'!AZ1186=\"\",\"\",'1. Ordersheet'!AZ1186)","v":""},{"$f":"IF('1. Ordersheet'!BA1186=\"\",\"\",'1. Ordersheet'!BA1186)","v":""},{"$f":"IF('1. Ordersheet'!BC1186=\"\",\"\",'1. Ordersheet'!BC1186)","v":""},{"$f":"IF('1. Ordersheet'!BD1186=\"\",\"\",'1. Ordersheet'!BD1186)","v":""},{"$f":"IF('1. Ordersheet'!BE1186=\"\",\"\",'1. Ordersheet'!BE1186)","v":""},{"$f":"IF('1. Ordersheet'!BF1186=\"\",\"\",'1. Ordersheet'!BF1186)","v":""},{"$f":"IF('1. Ordersheet'!BG1186=\"\",\"\",'1. Ordersheet'!BG1186)","v":"ZWO"},{"$f":"IF('1. Ordersheet'!BH1186=\"\",\"\",'1. Ordersheet'!BH1186)","v":""},{"$f":"IF('1. Ordersheet'!BI1186=\"\",\"\",'1. Ordersheet'!BI1186)","v":""},{"$f":"IF('1. Ordersheet'!BJ1186=\"\",\"\",'1. Ordersheet'!BJ1186)","v":""},{"$f":"IF('1. Ordersheet'!BK1186=\"\",\"\",'1. Ordersheet'!BK1186)","v":""},{"$f":"IF('1. Ordersheet'!BL1186=\"\",\"\",'1. Ordersheet'!BL1186)","v":""}]
[{"$f":"IF('1. Ordersheet'!F1187=\"\",\"\",'1. Ordersheet'!F1187)","v":""},{"$f":"IF('1. Ordersheet'!G1187=\"\",\"\",'1. Ordersheet'!G1187)","v":""},{"$f":"IF('1. Ordersheet'!H1187=\"\",\"\",'1. Ordersheet'!H1187)","v":""},{"$f":"IF('1. Ordersheet'!I1187=\"\",\"\",'1. Ordersheet'!I1187)","v":""},{"$f":"IF('1. Ordersheet'!J1187=\"\",\"\",'1. Ordersheet'!J1187)","v":""},{"$f":"IF('1. Ordersheet'!K1187=\"\",\"\",'1. Ordersheet'!K1187)","v":""},{"$f":"IF('1. Ordersheet'!L1187=\"\",\"\",'1. Ordersheet'!L1187)","v":""},{"$f":"IF('1. Ordersheet'!M1187=\"\",\"\",'1. Ordersheet'!M1187)","v":""},{"$f":"IF('1. Ordersheet'!N1187=\"\",\"\",'1. Ordersheet'!N1187)","v":""},{"$f":"IF('1. Ordersheet'!O1187=\"\",\"\",'1. Ordersheet'!O1187)","v":{"$error":"#N/A"}},{"$f":"IF('1. Ordersheet'!P1187=\"\",\"\",'1. Ordersheet'!P1187)","v":{"$error":"#N/A"}},{"$f":"IF('1. Ordersheet'!Q1187=\"\",\"\",'1. Ordersheet'!Q1187)","v":""},{"$f":"IF('1. Ordersheet'!R1187=\"\",\"\",'1. Ordersheet'!R1187)","v":""},{"$f":"IF('1. Ordersheet'!S1187=\"\",\"\",'1. Ordersheet'!S1187)","v":""},{"$f":"IF('1. Ordersheet'!V1187=\"\",\"\",'1. Ordersheet'!V1187)","v":""},{"$f":"IF('1. Ordersheet'!W1187=\"\",\"\",'1. Ordersheet'!W1187)","v":""},{"$f":"IF('1. Ordersheet'!X1187=\"\",\"\",'1. Ordersheet'!X1187)","v":""},{"$f":"IF('1. Ordersheet'!Y1187=\"\",\"\",'1. Ordersheet'!Y1187)","v":""},{"$f":"IF('1. Ordersheet'!Z1187=\"\",\"\",'1. Ordersheet'!Z1187)","v":""},{"$f":"IF('1. Ordersheet'!AA1187=\"\",\"\",'1. Ordersheet'!AA1187)","v":""},null,{"$f":"IF('1. Ordersheet'!AS1187=\"\",\"\",'1. Ordersheet'!AS1187)","v":""},{"$f":"IF('1. Ordersheet'!AT1187=\"\",\"\",'1. Ordersheet'!AT1187)","v":""},null,null,null,null,null,null,null,{"$f":"IF('1. Ordersheet'!AX1187=\"\",\"\",'1. Ordersheet'!AX1187)","v":""},{"$f":"IF('1. Ordersheet'!AY1187=\"\",\"\",'1. Ordersheet'!AY1187)","v":""},{"$f":"IF('1. Ordersheet'!AZ1187=\"\",\"\",'1. Ordersheet'!AZ1187)","v":""},{"$f":"IF('1. Ordersheet'!BA1187=\"\",\"\",'1. Ordersheet'!BA1187)","v":""},{"$f":"IF('1. Ordersheet'!BC1187=\"\",\"\",'1. Ordersheet'!BC1187)","v":""},{"$f":"IF('1. Ordersheet'!BD1187=\"\",\"\",'1. Ordersheet'!BD1187)","v":""},{"$f":"IF('1. Ordersheet'!BE1187=\"\",\"\",'1. Ordersheet'!BE1187)","v":""},{"$f":"IF('1. Ordersheet'!BF1187=\"\",\"\",'1. Ordersheet'!BF1187)","v":""},{"$f":"IF('1. Ordersheet'!BG1187=\"\",\"\",'1. Ordersheet'!BG1187)","v":"ZWO"},{"$f":"IF('1. Ordersheet'!BH1187=\"\",\"\",'1. Ordersheet'!BH1187)","v":""},{"$f":"IF('1. Ordersheet'!BI1187=\"\",\"\",'1. Ordersheet'!BI1187)","v":""},{"$f":"IF('1. Ordersheet'!BJ1187=\"\",\"\",'1. Ordersheet'!BJ1187)","v":""},{"$f":"IF('1. Ordersheet'!BK1187=\"\",\"\",'1. Ordersheet'!BK1187)","v":""},{"$f":"IF('1. Ordersheet'!BL1187=\"\",\"\",'1. Ordersheet'!BL1187)","v":""}]
[{"$f":"IF('1. Ordersheet'!F1188=\"\",\"\",'1. Ordersheet'!F1188)","v":""},{"$f":"IF('1. Ordersheet'!G1188=\"\",\"\",'1. Ordersheet'!G1188)","v":""},{"$f":"IF('1. Ordersheet'!H1188=\"\",\"\",'1. Ordersheet'!H1188)","v":""},{"$f":"IF('1. Ordersheet'!I1188=\"\",\"\",'1. Ordersheet'!I1188)","v":""},{"$f":"IF('1. Ordersheet'!J1188=\"\",\"\",'1. Ordersheet'!J1188)","v":""},{"$f":"IF('1. Ordersheet'!K1188=\"\",\"\",'1. Ordersheet'!K1188)","v":""},{"$f":"IF('1. Ordersheet'!L1188=\"\",\"\",'1. Ordersheet'!L1188)","v":""},{"$f":"IF('1. Ordersheet'!M1188=\"\",\"\",'1. Ordersheet'!M1188)","v":""},{"$f":"IF('1. Ordersheet'!N1188=\"\",\"\",'1. Ordersheet'!N1188)","v":""},{"$f":"IF('1. Ordersheet'!O1188=\"\",\"\",'1. Ordersheet'!O1188)","v":{"$error":"#N/A"}},{"$f":"IF('1. Ordersheet'!P1188=\"\",\"\",'1. Ordersheet'!P1188)","v":{"$error":"#N/A"}},{"$f":"IF('1. Ordersheet'!Q1188=\"\",\"\",'1. Ordersheet'!Q1188)","v":""},{"$f":"IF('1. Ordersheet'!R1188=\"\",\"\",'1. Ordersheet'!R1188)","v":""},{"$f":"IF('1. Ordersheet'!S1188=\"\",\"\",'1. Ordersheet'!S1188)","v":""},{"$f":"IF('1. Ordersheet'!V1188=\"\",\"\",'1. Ordersheet'!V1188)","v":""},{"$f":"IF('1. Ordersheet'!W1188=\"\",\"\",'1. Ordersheet'!W1188)","v":""},{"$f":"IF('1. Ordersheet'!X1188=\"\",\"\",'1. Ordersheet'!X1188)","v":""},{"$f":"IF('1. Ordersheet'!Y1188=\"\",\"\",'1. Ordersheet'!Y1188)","v":""},{"$f":"IF('1. Ordersheet'!Z1188=\"\",\"\",'1. Ordersheet'!Z1188)","v":""},{"$f":"IF('1. Ordersheet'!AA1188=\"\",\"\",'1. Ordersheet'!AA1188)","v":""},null,{"$f":"IF('1. Ordersheet'!AS1188=\"\",\"\",'1. Ordersheet'!AS1188)","v":""},{"$f":"IF('1. Ordersheet'!AT1188=\"\",\"\",'1. Ordersheet'!AT1188)","v":""},null,null,null,null,null,null,null,{"$f":"IF('1. Ordersheet'!AX1188=\"\",\"\",'1. Ordersheet'!AX1188)","v":""},{"$f":"IF('1. Ordersheet'!AY1188=\"\",\"\",'1. Ordersheet'!AY1188)","v":""},{"$f":"IF('1. Ordersheet'!AZ1188=\"\",\"\",'1. Ordersheet'!AZ1188)","v":""},{"$f":"IF('1. Ordersheet'!BA1188=\"\",\"\",'1. Ordersheet'!BA1188)","v":""},{"$f":"IF('1. Ordersheet'!BC1188=\"\",\"\",'1. Ordersheet'!BC1188)","v":""},{"$f":"IF('1. Ordersheet'!BD1188=\"\",\"\",'1. Ordersheet'!BD1188)","v":""},{"$f":"IF('1. Ordersheet'!BE1188=\"\",\"\",'1. Ordersheet'!BE1188)","v":""},{"$f":"IF('1. Ordersheet'!BF1188=\"\",\"\",'1. Ordersheet'!BF1188)","v":""},{"$f":"IF('1. Ordersheet'!BG1188=\"\",\"\",'1. Ordersheet'!BG1188)","v":"ZWO"},{"$f":"IF('1. Ordersheet'!BH1188=\"\",\"\",'1. Ordersheet'!BH1188)","v":""},{"$f":"IF('1. Ordersheet'!BI1188=\"\",\"\",'1. Ordersheet'!BI1188)","v":""},{"$f":"IF('1. Ordersheet'!BJ1188=\"\",\"\",'1. Ordersheet'!BJ1188)","v":""},{"$f":"IF('1. Ordersheet'!BK1188=\"\",\"\",'1. Ordersheet'!BK1188)","v":""},{"$f":"IF('1. Ordersheet'!BL1188=\"\",\"\",'1. Ordersheet'!BL1188)","v":""}]
[{"$f":"IF('1. Ordersheet'!F1189=\"\",\"\",'1. Ordersheet'!F1189)","v":""},{"$f":"IF('1. Ordersheet'!G1189=\"\",\"\",'1. Ordersheet'!G1189)","v":""},{"$f":"IF('1. Ordersheet'!H1189=\"\",\"\",'1. Ordersheet'!H1189)","v":""},{"$f":"IF('1. Ordersheet'!I1189=\"\",\"\",'1. Ordersheet'!I1189)","v":""},{"$f":"IF('1. Ordersheet'!J1189=\"\",\"\",'1. Ordersheet'!J1189)","v":""},{"$f":"IF('1. Ordersheet'!K1189=\"\",\"\",'1. Ordersheet'!K1189)","v":""},{"$f":"IF('1. Ordersheet'!L1189=\"\",\"\",'1. Ordersheet'!L1189)","v":""},{"$f":"IF('1. Ordersheet'!M1189=\"\",\"\",'1. Ordersheet'!M1189)","v":""},{"$f":"IF('1. Ordersheet'!N1189=\"\",\"\",'1. Ordersheet'!N1189)","v":""},{"$f":"IF('1. Ordersheet'!O1189=\"\",\"\",'1. Ordersheet'!O1189)","v":{"$error":"#N/A"}},{"$f":"IF('1. Ordersheet'!P1189=\"\",\"\",'1. Ordersheet'!P1189)","v":{"$error":"#N/A"}},{"$f":"IF('1. Ordersheet'!Q1189=\"\",\"\",'1. Ordersheet'!Q1189)","v":""},{"$f":"IF('1. Ordersheet'!R1189=\"\",\"\",'1. Ordersheet'!R1189)","v":""},{"$f":"IF('1. Ordersheet'!S1189=\"\",\"\",'1. Ordersheet'!S1189)","v":""},{"$f":"IF('1. Ordersheet'!V1189=\"\",\"\",'1. Ordersheet'!V1189)","v":""},{"$f":"IF('1. Ordersheet'!W1189=\"\",\"\",'1. Ordersheet'!W1189)","v":""},{"$f":"IF('1. Ordersheet'!X1189=\"\",\"\",'1. Ordersheet'!X1189)","v":""},{"$f":"IF('1. Ordersheet'!Y1189=\"\",\"\",'1. Ordersheet'!Y1189)","v":""},{"$f":"IF('1. Ordersheet'!Z1189=\"\",\"\",'1. Ordersheet'!Z1189)","v":""},{"$f":"IF('1. Ordersheet'!AA1189=\"\",\"\",'1. Ordersheet'!AA1189)","v":""},null,{"$f":"IF('1. Ordersheet'!AS1189=\"\",\"\",'1. Ordersheet'!AS1189)","v":""},{"$f":"IF('1. Ordersheet'!AT1189=\"\",\"\",'1. Ordersheet'!AT1189)","v":""},null,null,null,null,null,null,null,{"$f":"IF('1. Ordersheet'!AX1189=\"\",\"\",'1. Ordersheet'!AX1189)","v":""},{"$f":"IF('1. Ordersheet'!AY1189=\"\",\"\",'1. Ordersheet'!AY1189)","v":""},{"$f":"IF('1. Ordersheet'!AZ1189=\"\",\"\",'1. Ordersheet'!AZ1189)","v":""},{"$f":"IF('1. Ordersheet'!BA1189=\"\",\"\",'1. Ordersheet'!BA1189)","v":""},{"$f":"IF('1. Ordersheet'!BC1189=\"\",\"\",'1. Ordersheet'!BC1189)","v":""},{"$f":"IF('1. Ordersheet'!BD1189=\"\",\"\",'1. Ordersheet'!BD1189)","v":""},{"$f":"IF('1. Ordersheet'!BE1189=\"\",\"\",'1. Ordersheet'!BE1189)","v":""},{"$f":"IF('1. Ordersheet'!BF1189=\"\",\"\",'1. Ordersheet'!BF1189)","v":""},{"$f":"IF('1. Ordersheet'!BG1189=\"\",\"\",'1. Ordersheet'!BG1189)","v":"ZWO"},{"$f":"IF('1. Ordersheet'!BH1189=\"\",\"\",'1. Ordersheet'!BH1189)","v":""},{"$f":"IF('1. Ordersheet'!BI1189=\"\",\"\",'1. Ordersheet'!BI1189)","v":""},{"$f":"IF('1. Ordersheet'!BJ1189=\"\",\"\",'1. Ordersheet'!BJ1189)","v":""},{"$f":"IF('1. Ordersheet'!BK1189=\"\",\"\",'1. Ordersheet'!BK1189)","v":""},{"$f":"IF('1. Ordersheet'!BL1189=\"\",\"\",'1. Ordersheet'!BL1189)","v":""}]
[{"$f":"IF('1. Ordersheet'!F1190=\"\",\"\",'1. Ordersheet'!F1190)","v":""},{"$f":"IF('1. Ordersheet'!G1190=\"\",\"\",'1. Ordersheet'!G1190)","v":""},{"$f":"IF('1. Ordersheet'!H1190=\"\",\"\",'1. Ordersheet'!H1190)","v":""},{"$f":"IF('1. Ordersheet'!I1190=\"\",\"\",'1. Ordersheet'!I1190)","v":""},{"$f":"IF('1. Ordersheet'!J1190=\"\",\"\",'1. Ordersheet'!J1190)","v":""},{"$f":"IF('1. Ordersheet'!K1190=\"\",\"\",'1. Ordersheet'!K1190)","v":""},{"$f":"IF('1. Ordersheet'!L1190=\"\",\"\",'1. Ordersheet'!L1190)","v":""},{"$f":"IF('1. Ordersheet'!M1190=\"\",\"\",'1. Ordersheet'!M1190)","v":""},{"$f":"IF('1. Ordersheet'!N1190=\"\",\"\",'1. Ordersheet'!N1190)","v":""},{"$f":"IF('1. Ordersheet'!O1190=\"\",\"\",'1. Ordersheet'!O1190)","v":{"$error":"#N/A"}},{"$f":"IF('1. Ordersheet'!P1190=\"\",\"\",'1. Ordersheet'!P1190)","v":{"$error":"#N/A"}},{"$f":"IF('1. Ordersheet'!Q1190=\"\",\"\",'1. Ordersheet'!Q1190)","v":""},{"$f":"IF('1. Ordersheet'!R1190=\"\",\"\",'1. Ordersheet'!R1190)","v":""},{"$f":"IF('1. Ordersheet'!S1190=\"\",\"\",'1. Ordersheet'!S1190)","v":""},{"$f":"IF('1. Ordersheet'!V1190=\"\",\"\",'1. Ordersheet'!V1190)","v":""},{"$f":"IF('1. Ordersheet'!W1190=\"\",\"\",'1. Ordersheet'!W1190)","v":""},{"$f":"IF('1. Ordersheet'!X1190=\"\",\"\",'1. Ordersheet'!X1190)","v":""},{"$f":"IF('1. Ordersheet'!Y1190=\"\",\"\",'1. Ordersheet'!Y1190)","v":""},{"$f":"IF('1. Ordersheet'!Z1190=\"\",\"\",'1. Ordersheet'!Z1190)","v":""},{"$f":"IF('1. Ordersheet'!AA1190=\"\",\"\",'1. Ordersheet'!AA1190)","v":""},null,{"$f":"IF('1. Ordersheet'!AS1190=\"\",\"\",'1. Ordersheet'!AS1190)","v":""},{"$f":"IF('1. Ordersheet'!AT1190=\"\",\"\",'1. Ordersheet'!AT1190)","v":""},null,null,null,null,null,null,null,{"$f":"IF('1. Ordersheet'!AX1190=\"\",\"\",'1. Ordersheet'!AX1190)","v":""},{"$f":"IF('1. Ordersheet'!AY1190=\"\",\"\",'1. Ordersheet'!AY1190)","v":""},{"$f":"IF('1. Ordersheet'!AZ1190=\"\",\"\",'1. Ordersheet'!AZ1190)","v":""},{"$f":"IF('1. Ordersheet'!BA1190=\"\",\"\",'1. Ordersheet'!BA1190)","v":""},{"$f":"IF('1. Ordersheet'!BC1190=\"\",\"\",'1. Ordersheet'!BC1190)","v":""},{"$f":"IF('1. Ordersheet'!BD1190=\"\",\"\",'1. Ordersheet'!BD1190)","v":""},{"$f":"IF('1. Ordersheet'!BE1190=\"\",\"\",'1. Ordersheet'!BE1190)","v":""},{"$f":"IF('1. Ordersheet'!BF1190=\"\",\"\",'1. Ordersheet'!BF1190)","v":""},{"$f":"IF('1. Ordersheet'!BG1190=\"\",\"\",'1. Ordersheet'!BG1190)","v":"ZWO"},{"$f":"IF('1. Ordersheet'!BH1190=\"\",\"\",'1. Ordersheet'!BH1190)","v":""},{"$f":"IF('1. Ordersheet'!BI1190=\"\",\"\",'1. Ordersheet'!BI1190)","v":""},{"$f":"IF('1. Ordersheet'!BJ1190=\"\",\"\",'1. Ordersheet'!BJ1190)","v":""},{"$f":"IF('1. Ordersheet'!BK1190=\"\",\"\",'1. Ordersheet'!BK1190)","v":""},{"$f":"IF('1. Ordersheet'!BL1190=\"\",\"\",'1. Ordersheet'!BL1190)","v":""}]
[{"$f":"IF('1. Ordersheet'!F1191=\"\",\"\",'1. Ordersheet'!F1191)","v":""},{"$f":"IF('1. Ordersheet'!G1191=\"\",\"\",'1. Ordersheet'!G1191)","v":""},{"$f":"IF('1. Ordersheet'!H1191=\"\",\"\",'1. Ordersheet'!H1191)","v":""},{"$f":"IF('1. Ordersheet'!I1191=\"\",\"\",'1. Ordersheet'!I1191)","v":""},{"$f":"IF('1. Ordersheet'!J1191=\"\",\"\",'1. Ordersheet'!J1191)","v":""},{"$f":"IF('1. Ordersheet'!K1191=\"\",\"\",'1. Ordersheet'!K1191)","v":""},{"$f":"IF('1. Ordersheet'!L1191=\"\",\"\",'1. Ordersheet'!L1191)","v":""},{"$f":"IF('1. Ordersheet'!M1191=\"\",\"\",'1. Ordersheet'!M1191)","v":""},{"$f":"IF('1. Ordersheet'!N1191=\"\",\"\",'1. Ordersheet'!N1191)","v":""},{"$f":"IF('1. Ordersheet'!O1191=\"\",\"\",'1. Ordersheet'!O1191)","v":{"$error":"#N/A"}},{"$f":"IF('1. Ordersheet'!P1191=\"\",\"\",'1. Ordersheet'!P1191)","v":{"$error":"#N/A"}},{"$f":"IF('1. Ordersheet'!Q1191=\"\",\"\",'1. Ordersheet'!Q1191)","v":""},{"$f":"IF('1. Ordersheet'!R1191=\"\",\"\",'1. Ordersheet'!R1191)","v":""},{"$f":"IF('1. Ordersheet'!S1191=\"\",\"\",'1. Ordersheet'!S1191)","v":""},{"$f":"IF('1. Ordersheet'!V1191=\"\",\"\",'1. Ordersheet'!V1191)","v":""},{"$f":"IF('1. Ordersheet'!W1191=\"\",\"\",'1. Ordersheet'!W1191)","v":""},{"$f":"IF('1. Ordersheet'!X1191=\"\",\"\",'1. Ordersheet'!X1191)","v":""},{"$f":"IF('1. Ordersheet'!Y1191=\"\",\"\",'1. Ordersheet'!Y1191)","v":""},{"$f":"IF('1. Ordersheet'!Z1191=\"\",\"\",'1. Ordersheet'!Z1191)","v":""},{"$f":"IF('1. Ordersheet'!AA1191=\"\",\"\",'1. Ordersheet'!AA1191)","v":""},null,{"$f":"IF('1. Ordersheet'!AS1191=\"\",\"\",'1. Ordersheet'!AS1191)","v":""},{"$f":"IF('1. Ordersheet'!AT1191=\"\",\"\",'1. Ordersheet'!AT1191)","v":""},null,null,null,null,null,null,null,{"$f":"IF('1. Ordersheet'!AX1191=\"\",\"\",'1. Ordersheet'!AX1191)","v":""},{"$f":"IF('1. Ordersheet'!AY1191=\"\",\"\",'1. Ordersheet'!AY1191)","v":""},{"$f":"IF('1. Ordersheet'!AZ1191=\"\",\"\",'1. Ordersheet'!AZ1191)","v":""},{"$f":"IF('1. Ordersheet'!BA1191=\"\",\"\",'1. Ordersheet'!BA1191)","v":""},{"$f":"IF('1. Ordersheet'!BC1191=\"\",\"\",'1. Ordersheet'!BC1191)","v":""},{"$f":"IF('1. Ordersheet'!BD1191=\"\",\"\",'1. Ordersheet'!BD1191)","v":""},{"$f":"IF('1. Ordersheet'!BE1191=\"\",\"\",'1. Ordersheet'!BE1191)","v":""},{"$f":"IF('1. Ordersheet'!BF1191=\"\",\"\",'1. Ordersheet'!BF1191)","v":""},{"$f":"IF('1. Ordersheet'!BG1191=\"\",\"\",'1. Ordersheet'!BG1191)","v":"ZWO"},{"$f":"IF('1. Ordersheet'!BH1191=\"\",\"\",'1. Ordersheet'!BH1191)","v":""},{"$f":"IF('1. Ordersheet'!BI1191=\"\",\"\",'1. Ordersheet'!BI1191)","v":""},{"$f":"IF('1. Ordersheet'!BJ1191=\"\",\"\",'1. Ordersheet'!BJ1191)","v":""},{"$f":"IF('1. Ordersheet'!BK1191=\"\",\"\",'1. Ordersheet'!BK1191)","v":""},{"$f":"IF('1. Ordersheet'!BL1191=\"\",\"\",'1. Ordersheet'!BL1191)","v":""}]
[{"$f":"IF('1. Ordersheet'!F1192=\"\",\"\",'1. Ordersheet'!F1192)","v":""},{"$f":"IF('1. Ordersheet'!G1192=\"\",\"\",'1. Ordersheet'!G1192)","v":""},{"$f":"IF('1. Ordersheet'!H1192=\"\",\"\",'1. Ordersheet'!H1192)","v":""},{"$f":"IF('1. Ordersheet'!I1192=\"\",\"\",'1. Ordersheet'!I1192)","v":""},{"$f":"IF('1. Ordersheet'!J1192=\"\",\"\",'1. Ordersheet'!J1192)","v":""},{"$f":"IF('1. Ordersheet'!K1192=\"\",\"\",'1. Ordersheet'!K1192)","v":""},{"$f":"IF('1. Ordersheet'!L1192=\"\",\"\",'1. Ordersheet'!L1192)","v":""},{"$f":"IF('1. Ordersheet'!M1192=\"\",\"\",'1. Ordersheet'!M1192)","v":""},{"$f":"IF('1. Ordersheet'!N1192=\"\",\"\",'1. Ordersheet'!N1192)","v":""},{"$f":"IF('1. Ordersheet'!O1192=\"\",\"\",'1. Ordersheet'!O1192)","v":{"$error":"#N/A"}},{"$f":"IF('1. Ordersheet'!P1192=\"\",\"\",'1. Ordersheet'!P1192)","v":{"$error":"#N/A"}},{"$f":"IF('1. Ordersheet'!Q1192=\"\",\"\",'1. Ordersheet'!Q1192)","v":""},{"$f":"IF('1. Ordersheet'!R1192=\"\",\"\",'1. Ordersheet'!R1192)","v":""},{"$f":"IF('1. Ordersheet'!S1192=\"\",\"\",'1. Ordersheet'!S1192)","v":""},{"$f":"IF('1. Ordersheet'!V1192=\"\",\"\",'1. Ordersheet'!V1192)","v":""},{"$f":"IF('1. Ordersheet'!W1192=\"\",\"\",'1. Ordersheet'!W1192)","v":""},{"$f":"IF('1. Ordersheet'!X1192=\"\",\"\",'1. Ordersheet'!X1192)","v":""},{"$f":"IF('1. Ordersheet'!Y1192=\"\",\"\",'1. Ordersheet'!Y1192)","v":""},{"$f":"IF('1. Ordersheet'!Z1192=\"\",\"\",'1. Ordersheet'!Z1192)","v":""},{"$f":"IF('1. Ordersheet'!AA1192=\"\",\"\",'1. Ordersheet'!AA1192)","v":""},null,{"$f":"IF('1. Ordersheet'!AS1192=\"\",\"\",'1. Ordersheet'!AS1192)","v":""},{"$f":"IF('1. Ordersheet'!AT1192=\"\",\"\",'1. Ordersheet'!AT1192)","v":""},null,null,null,null,null,null,null,{"$f":"IF('1. Ordersheet'!AX1192=\"\",\"\",'1. Ordersheet'!AX1192)","v":""},{"$f":"IF('1. Ordersheet'!AY1192=\"\",\"\",'1. Ordersheet'!AY1192)","v":""},{"$f":"IF('1. Ordersheet'!AZ1192=\"\",\"\",'1. Ordersheet'!AZ1192)","v":""},{"$f":"IF('1. Ordersheet'!BA1192=\"\",\"\",'1. Ordersheet'!BA1192)","v":""},{"$f":"IF('1. Ordersheet'!BC1192=\"\",\"\",'1. Ordersheet'!BC1192)","v":""},{"$f":"IF('1. Ordersheet'!BD1192=\"\",\"\",'1. Ordersheet'!BD1192)","v":""},{"$f":"IF('1. Ordersheet'!BE1192=\"\",\"\",'1. Ordersheet'!BE1192)","v":""},{"$f":"IF('1. Ordersheet'!BF1192=\"\",\"\",'1. Ordersheet'!BF1192)","v":""},{"$f":"IF('1. Ordersheet'!BG1192=\"\",\"\",'1. Ordersheet'!BG1192)","v":"ZWO"},{"$f":"IF('1. Ordersheet'!BH1192=\"\",\"\",'1. Ordersheet'!BH1192)","v":""},{"$f":"IF('1. Ordersheet'!BI1192=\"\",\"\",'1. Ordersheet'!BI1192)","v":""},{"$f":"IF('1. Ordersheet'!BJ1192=\"\",\"\",'1. Ordersheet'!BJ1192)","v":""},{"$f":"IF('1. Ordersheet'!BK1192=\"\",\"\",'1. Ordersheet'!BK1192)","v":""},{"$f":"IF('1. Ordersheet'!BL1192=\"\",\"\",'1. Ordersheet'!BL1192)","v":""}]
[{"$f":"IF('1. Ordersheet'!F1193=\"\",\"\",'1. Ordersheet'!F1193)","v":""},{"$f":"IF('1. Ordersheet'!G1193=\"\",\"\",'1. Ordersheet'!G1193)","v":""},{"$f":"IF('1. Ordersheet'!H1193=\"\",\"\",'1. Ordersheet'!H1193)","v":""},{"$f":"IF('1. Ordersheet'!I1193=\"\",\"\",'1. Ordersheet'!I1193)","v":""},{"$f":"IF('1. Ordersheet'!J1193=\"\",\"\",'1. Ordersheet'!J1193)","v":""},{"$f":"IF('1. Ordersheet'!K1193=\"\",\"\",'1. Ordersheet'!K1193)","v":""},{"$f":"IF('1. Ordersheet'!L1193=\"\",\"\",'1. Ordersheet'!L1193)","v":""},{"$f":"IF('1. Ordersheet'!M1193=\"\",\"\",'1. Ordersheet'!M1193)","v":""},{"$f":"IF('1. Ordersheet'!N1193=\"\",\"\",'1. Ordersheet'!N1193)","v":""},{"$f":"IF('1. Ordersheet'!O1193=\"\",\"\",'1. Ordersheet'!O1193)","v":{"$error":"#N/A"}},{"$f":"IF('1. Ordersheet'!P1193=\"\",\"\",'1. Ordersheet'!P1193)","v":{"$error":"#N/A"}},{"$f":"IF('1. Ordersheet'!Q1193=\"\",\"\",'1. Ordersheet'!Q1193)","v":""},{"$f":"IF('1. Ordersheet'!R1193=\"\",\"\",'1. Ordersheet'!R1193)","v":""},{"$f":"IF('1. Ordersheet'!S1193=\"\",\"\",'1. Ordersheet'!S1193)","v":""},{"$f":"IF('1. Ordersheet'!V1193=\"\",\"\",'1. Ordersheet'!V1193)","v":""},{"$f":"IF('1. Ordersheet'!W1193=\"\",\"\",'1. Ordersheet'!W1193)","v":""},{"$f":"IF('1. Ordersheet'!X1193=\"\",\"\",'1. Ordersheet'!X1193)","v":""},{"$f":"IF('1. Ordersheet'!Y1193=\"\",\"\",'1. Ordersheet'!Y1193)","v":""},{"$f":"IF('1. Ordersheet'!Z1193=\"\",\"\",'1. Ordersheet'!Z1193)","v":""},{"$f":"IF('1. Ordersheet'!AA1193=\"\",\"\",'1. Ordersheet'!AA1193)","v":""},null,{"$f":"IF('1. Ordersheet'!AS1193=\"\",\"\",'1. Ordersheet'!AS1193)","v":""},{"$f":"IF('1. Ordersheet'!AT1193=\"\",\"\",'1. Ordersheet'!AT1193)","v":""},null,null,null,null,null,null,null,{"$f":"IF('1. Ordersheet'!AX1193=\"\",\"\",'1. Ordersheet'!AX1193)","v":""},{"$f":"IF('1. Ordersheet'!AY1193=\"\",\"\",'1. Ordersheet'!AY1193)","v":""},{"$f":"IF('1. Ordersheet'!AZ1193=\"\",\"\",'1. Ordersheet'!AZ1193)","v":""},{"$f":"IF('1. Ordersheet'!BA1193=\"\",\"\",'1. Ordersheet'!BA1193)","v":""},{"$f":"IF('1. Ordersheet'!BC1193=\"\",\"\",'1. Ordersheet'!BC1193)","v":""},{"$f":"IF('1. Ordersheet'!BD1193=\"\",\"\",'1. Ordersheet'!BD1193)","v":""},{"$f":"IF('1. Ordersheet'!BE1193=\"\",\"\",'1. Ordersheet'!BE1193)","v":""},{"$f":"IF('1. Ordersheet'!BF1193=\"\",\"\",'1. Ordersheet'!BF1193)","v":""},{"$f":"IF('1. Ordersheet'!BG1193=\"\",\"\",'1. Ordersheet'!BG1193)","v":"ZWO"},{"$f":"IF('1. Ordersheet'!BH1193=\"\",\"\",'1. Ordersheet'!BH1193)","v":""},{"$f":"IF('1. Ordersheet'!BI1193=\"\",\"\",'1. Ordersheet'!BI1193)","v":""},{"$f":"IF('1. Ordersheet'!BJ1193=\"\",\"\",'1. Ordersheet'!BJ1193)","v":""},{"$f":"IF('1. Ordersheet'!BK1193=\"\",\"\",'1. Ordersheet'!BK1193)","v":""},{"$f":"IF('1. Ordersheet'!BL1193=\"\",\"\",'1. Ordersheet'!BL1193)","v":""}]
[{"$f":"IF('1. Ordersheet'!F1194=\"\",\"\",'1. Ordersheet'!F1194)","v":""},{"$f":"IF('1. Ordersheet'!G1194=\"\",\"\",'1. Ordersheet'!G1194)","v":""},{"$f":"IF('1. Ordersheet'!H1194=\"\",\"\",'1. Ordersheet'!H1194)","v":""},{"$f":"IF('1. Ordersheet'!I1194=\"\",\"\",'1. Ordersheet'!I1194)","v":""},{"$f":"IF('1. Ordersheet'!J1194=\"\",\"\",'1. Ordersheet'!J1194)","v":""},{"$f":"IF('1. Ordersheet'!K1194=\"\",\"\",'1. Ordersheet'!K1194)","v":""},{"$f":"IF('1. Ordersheet'!L1194=\"\",\"\",'1. Ordersheet'!L1194)","v":""},{"$f":"IF('1. Ordersheet'!M1194=\"\",\"\",'1. Ordersheet'!M1194)","v":""},{"$f":"IF('1. Ordersheet'!N1194=\"\",\"\",'1. Ordersheet'!N1194)","v":""},{"$f":"IF('1. Ordersheet'!O1194=\"\",\"\",'1. Ordersheet'!O1194)","v":{"$error":"#N/A"}},{"$f":"IF('1. Ordersheet'!P1194=\"\",\"\",'1. Ordersheet'!P1194)","v":{"$error":"#N/A"}},{"$f":"IF('1. Ordersheet'!Q1194=\"\",\"\",'1. Ordersheet'!Q1194)","v":""},{"$f":"IF('1. Ordersheet'!R1194=\"\",\"\",'1. Ordersheet'!R1194)","v":""},{"$f":"IF('1. Ordersheet'!S1194=\"\",\"\",'1. Ordersheet'!S1194)","v":""},{"$f":"IF('1. Ordersheet'!V1194=\"\",\"\",'1. Ordersheet'!V1194)","v":""},{"$f":"IF('1. Ordersheet'!W1194=\"\",\"\",'1. Ordersheet'!W1194)","v":""},{"$f":"IF('1. Ordersheet'!X1194=\"\",\"\",'1. Ordersheet'!X1194)","v":""},{"$f":"IF('1. Ordersheet'!Y1194=\"\",\"\",'1. Ordersheet'!Y1194)","v":""},{"$f":"IF('1. Ordersheet'!Z1194=\"\",\"\",'1. Ordersheet'!Z1194)","v":""},{"$f":"IF('1. Ordersheet'!AA1194=\"\",\"\",'1. Ordersheet'!AA1194)","v":""},null,{"$f":"IF('1. Ordersheet'!AS1194=\"\",\"\",'1. Ordersheet'!AS1194)","v":""},{"$f":"IF('1. Ordersheet'!AT1194=\"\",\"\",'1. Ordersheet'!AT1194)","v":""},null,null,null,null,null,null,null,{"$f":"IF('1. Ordersheet'!AX1194=\"\",\"\",'1. Ordersheet'!AX1194)","v":""},{"$f":"IF('1. Ordersheet'!AY1194=\"\",\"\",'1. Ordersheet'!AY1194)","v":""},{"$f":"IF('1. Ordersheet'!AZ1194=\"\",\"\",'1. Ordersheet'!AZ1194)","v":""},{"$f":"IF('1. Ordersheet'!BA1194=\"\",\"\",'1. Ordersheet'!BA1194)","v":""},{"$f":"IF('1. Ordersheet'!BC1194=\"\",\"\",'1. Ordersheet'!BC1194)","v":""},{"$f":"IF('1. Ordersheet'!BD1194=\"\",\"\",'1. Ordersheet'!BD1194)","v":""},{"$f":"IF('1. Ordersheet'!BE1194=\"\",\"\",'1. Ordersheet'!BE1194)","v":""},{"$f":"IF('1. Ordersheet'!BF1194=\"\",\"\",'1. Ordersheet'!BF1194)","v":""},{"$f":"IF('1. Ordersheet'!BG1194=\"\",\"\",'1. Ordersheet'!BG1194)","v":"ZWO"},{"$f":"IF('1. Ordersheet'!BH1194=\"\",\"\",'1. Ordersheet'!BH1194)","v":""},{"$f":"IF('1. Ordersheet'!BI1194=\"\",\"\",'1. Ordersheet'!BI1194)","v":""},{"$f":"IF('1. Ordersheet'!BJ1194=\"\",\"\",'1. Ordersheet'!BJ1194)","v":""},{"$f":"IF('1. Ordersheet'!BK1194=\"\",\"\",'1. Ordersheet'!BK1194)","v":""},{"$f":"IF('1. Ordersheet'!BL1194=\"\",\"\",'1. Ordersheet'!BL1194)","v":""}]
[{"$f":"IF('1. Ordersheet'!F1195=\"\",\"\",'1. Ordersheet'!F1195)","v":""},{"$f":"IF('1. Ordersheet'!G1195=\"\",\"\",'1. Ordersheet'!G1195)","v":""},{"$f":"IF('1. Ordersheet'!H1195=\"\",\"\",'1. Ordersheet'!H1195)","v":""},{"$f":"IF('1. Ordersheet'!I1195=\"\",\"\",'1. Ordersheet'!I1195)","v":""},{"$f":"IF('1. Ordersheet'!J1195=\"\",\"\",'1. Ordersheet'!J1195)","v":""},{"$f":"IF('1. Ordersheet'!K1195=\"\",\"\",'1. Ordersheet'!K1195)","v":""},{"$f":"IF('1. Ordersheet'!L1195=\"\",\"\",'1. Ordersheet'!L1195)","v":""},{"$f":"IF('1. Ordersheet'!M1195=\"\",\"\",'1. Ordersheet'!M1195)","v":""},{"$f":"IF('1. Ordersheet'!N1195=\"\",\"\",'1. Ordersheet'!N1195)","v":""},{"$f":"IF('1. Ordersheet'!O1195=\"\",\"\",'1. Ordersheet'!O1195)","v":{"$error":"#N/A"}},{"$f":"IF('1. Ordersheet'!P1195=\"\",\"\",'1. Ordersheet'!P1195)","v":{"$error":"#N/A"}},{"$f":"IF('1. Ordersheet'!Q1195=\"\",\"\",'1. Ordersheet'!Q1195)","v":""},{"$f":"IF('1. Ordersheet'!R1195=\"\",\"\",'1. Ordersheet'!R1195)","v":""},{"$f":"IF('1. Ordersheet'!S1195=\"\",\"\",'1. Ordersheet'!S1195)","v":""},{"$f":"IF('1. Ordersheet'!V1195=\"\",\"\",'1. Ordersheet'!V1195)","v":""},{"$f":"IF('1. Ordersheet'!W1195=\"\",\"\",'1. Ordersheet'!W1195)","v":""},{"$f":"IF('1. Ordersheet'!X1195=\"\",\"\",'1. Ordersheet'!X1195)","v":""},{"$f":"IF('1. Ordersheet'!Y1195=\"\",\"\",'1. Ordersheet'!Y1195)","v":""},{"$f":"IF('1. Ordersheet'!Z1195=\"\",\"\",'1. Ordersheet'!Z1195)","v":""},{"$f":"IF('1. Ordersheet'!AA1195=\"\",\"\",'1. Ordersheet'!AA1195)","v":""},null,{"$f":"IF('1. Ordersheet'!AS1195=\"\",\"\",'1. Ordersheet'!AS1195)","v":""},{"$f":"IF('1. Ordersheet'!AT1195=\"\",\"\",'1. Ordersheet'!AT1195)","v":""},null,null,null,null,null,null,null,{"$f":"IF('1. Ordersheet'!AX1195=\"\",\"\",'1. Ordersheet'!AX1195)","v":""},{"$f":"IF('1. Ordersheet'!AY1195=\"\",\"\",'1. Ordersheet'!AY1195)","v":""},{"$f":"IF('1. Ordersheet'!AZ1195=\"\",\"\",'1. Ordersheet'!AZ1195)","v":""},{"$f":"IF('1. Ordersheet'!BA1195=\"\",\"\",'1. Ordersheet'!BA1195)","v":""},{"$f":"IF('1. Ordersheet'!BC1195=\"\",\"\",'1. Ordersheet'!BC1195)","v":""},{"$f":"IF('1. Ordersheet'!BD1195=\"\",\"\",'1. Ordersheet'!BD1195)","v":""},{"$f":"IF('1. Ordersheet'!BE1195=\"\",\"\",'1. Ordersheet'!BE1195)","v":""},{"$f":"IF('1. Ordersheet'!BF1195=\"\",\"\",'1. Ordersheet'!BF1195)","v":""},{"$f":"IF('1. Ordersheet'!BG1195=\"\",\"\",'1. Ordersheet'!BG1195)","v":"ZWO"},{"$f":"IF('1. Ordersheet'!BH1195=\"\",\"\",'1. Ordersheet'!BH1195)","v":""},{"$f":"IF('1. Ordersheet'!BI1195=\"\",\"\",'1. Ordersheet'!BI1195)","v":""},{"$f":"IF('1. Ordersheet'!BJ1195=\"\",\"\",'1. Ordersheet'!BJ1195)","v":""},{"$f":"IF('1. Ordersheet'!BK1195=\"\",\"\",'1. Ordersheet'!BK1195)","v":""},{"$f":"IF('1. Ordersheet'!BL1195=\"\",\"\",'1. Ordersheet'!BL1195)","v":""}]
[{"$f":"IF('1. Ordersheet'!F1196=\"\",\"\",'1. Ordersheet'!F1196)","v":""},{"$f":"IF('1. Ordersheet'!G1196=\"\",\"\",'1. Ordersheet'!G1196)","v":""},{"$f":"IF('1. Ordersheet'!H1196=\"\",\"\",'1. Ordersheet'!H1196)","v":""},{"$f":"IF('1. Ordersheet'!I1196=\"\",\"\",'1. Ordersheet'!I1196)","v":""},{"$f":"IF('1. Ordersheet'!J1196=\"\",\"\",'1. Ordersheet'!J1196)","v":""},{"$f":"IF('1. Ordersheet'!K1196=\"\",\"\",'1. Ordersheet'!K1196)","v":""},{"$f":"IF('1. Ordersheet'!L1196=\"\",\"\",'1. Ordersheet'!L1196)","v":""},{"$f":"IF('1. Ordersheet'!M1196=\"\",\"\",'1. Ordersheet'!M1196)","v":""},{"$f":"IF('1. Ordersheet'!N1196=\"\",\"\",'1. Ordersheet'!N1196)","v":""},{"$f":"IF('1. Ordersheet'!O1196=\"\",\"\",'1. Ordersheet'!O1196)","v":{"$error":"#N/A"}},{"$f":"IF('1. Ordersheet'!P1196=\"\",\"\",'1. Ordersheet'!P1196)","v":{"$error":"#N/A"}},{"$f":"IF('1. Ordersheet'!Q1196=\"\",\"\",'1. Ordersheet'!Q1196)","v":""},{"$f":"IF('1. Ordersheet'!R1196=\"\",\"\",'1. Ordersheet'!R1196)","v":""},{"$f":"IF('1. Ordersheet'!S1196=\"\",\"\",'1. Ordersheet'!S1196)","v":""},{"$f":"IF('1. Ordersheet'!V1196=\"\",\"\",'1. Ordersheet'!V1196)","v":""},{"$f":"IF('1. Ordersheet'!W1196=\"\",\"\",'1. Ordersheet'!W1196)","v":""},{"$f":"IF('1. Ordersheet'!X1196=\"\",\"\",'1. Ordersheet'!X1196)","v":""},{"$f":"IF('1. Ordersheet'!Y1196=\"\",\"\",'1. Ordersheet'!Y1196)","v":""},{"$f":"IF('1. Ordersheet'!Z1196=\"\",\"\",'1. Ordersheet'!Z1196)","v":""},{"$f":"IF('1. Ordersheet'!AA1196=\"\",\"\",'1. Ordersheet'!AA1196)","v":""},null,{"$f":"IF('1. Ordersheet'!AS1196=\"\",\"\",'1. Ordersheet'!AS1196)","v":""},{"$f":"IF('1. Ordersheet'!AT1196=\"\",\"\",'1. Ordersheet'!AT1196)","v":""},null,null,null,null,null,null,null,{"$f":"IF('1. Ordersheet'!AX1196=\"\",\"\",'1. Ordersheet'!AX1196)","v":""},{"$f":"IF('1. Ordersheet'!AY1196=\"\",\"\",'1. Ordersheet'!AY1196)","v":""},{"$f":"IF('1. Ordersheet'!AZ1196=\"\",\"\",'1. Ordersheet'!AZ1196)","v":""},{"$f":"IF('1. Ordersheet'!BA1196=\"\",\"\",'1. Ordersheet'!BA1196)","v":""},{"$f":"IF('1. Ordersheet'!BC1196=\"\",\"\",'1. Ordersheet'!BC1196)","v":""},{"$f":"IF('1. Ordersheet'!BD1196=\"\",\"\",'1. Ordersheet'!BD1196)","v":""},{"$f":"IF('1. Ordersheet'!BE1196=\"\",\"\",'1. Ordersheet'!BE1196)","v":""},{"$f":"IF('1. Ordersheet'!BF1196=\"\",\"\",'1. Ordersheet'!BF1196)","v":""},{"$f":"IF('1. Ordersheet'!BG1196=\"\",\"\",'1. Ordersheet'!BG1196)","v":"ZWO"},{"$f":"IF('1. Ordersheet'!BH1196=\"\",\"\",'1. Ordersheet'!BH1196)","v":""},{"$f":"IF('1. Ordersheet'!BI1196=\"\",\"\",'1. Ordersheet'!BI1196)","v":""},{"$f":"IF('1. Ordersheet'!BJ1196=\"\",\"\",'1. Ordersheet'!BJ1196)","v":""},{"$f":"IF('1. Ordersheet'!BK1196=\"\",\"\",'1. Ordersheet'!BK1196)","v":""},{"$f":"IF('1. Ordersheet'!BL1196=\"\",\"\",'1. Ordersheet'!BL1196)","v":""}]
[{"$f":"IF('1. Ordersheet'!F1197=\"\",\"\",'1. Ordersheet'!F1197)","v":""},{"$f":"IF('1. Ordersheet'!G1197=\"\",\"\",'1. Ordersheet'!G1197)","v":""},{"$f":"IF('1. Ordersheet'!H1197=\"\",\"\",'1. Ordersheet'!H1197)","v":""},{"$f":"IF('1. Ordersheet'!I1197=\"\",\"\",'1. Ordersheet'!I1197)","v":""},{"$f":"IF('1. Ordersheet'!J1197=\"\",\"\",'1. Ordersheet'!J1197)","v":""},{"$f":"IF('1. Ordersheet'!K1197=\"\",\"\",'1. Ordersheet'!K1197)","v":""},{"$f":"IF('1. Ordersheet'!L1197=\"\",\"\",'1. Ordersheet'!L1197)","v":""},{"$f":"IF('1. Ordersheet'!M1197=\"\",\"\",'1. Ordersheet'!M1197)","v":""},{"$f":"IF('1. Ordersheet'!N1197=\"\",\"\",'1. Ordersheet'!N1197)","v":""},{"$f":"IF('1. Ordersheet'!O1197=\"\",\"\",'1. Ordersheet'!O1197)","v":{"$error":"#N/A"}},{"$f":"IF('1. Ordersheet'!P1197=\"\",\"\",'1. Ordersheet'!P1197)","v":{"$error":"#N/A"}},{"$f":"IF('1. Ordersheet'!Q1197=\"\",\"\",'1. Ordersheet'!Q1197)","v":""},{"$f":"IF('1. Ordersheet'!R1197=\"\",\"\",'1. Ordersheet'!R1197)","v":""},{"$f":"IF('1. Ordersheet'!S1197=\"\",\"\",'1. Ordersheet'!S1197)","v":""},{"$f":"IF('1. Ordersheet'!V1197=\"\",\"\",'1. Ordersheet'!V1197)","v":""},{"$f":"IF('1. Ordersheet'!W1197=\"\",\"\",'1. Ordersheet'!W1197)","v":""},{"$f":"IF('1. Ordersheet'!X1197=\"\",\"\",'1. Ordersheet'!X1197)","v":""},{"$f":"IF('1. Ordersheet'!Y1197=\"\",\"\",'1. Ordersheet'!Y1197)","v":""},{"$f":"IF('1. Ordersheet'!Z1197=\"\",\"\",'1. Ordersheet'!Z1197)","v":""},{"$f":"IF('1. Ordersheet'!AA1197=\"\",\"\",'1. Ordersheet'!AA1197)","v":""},null,{"$f":"IF('1. Ordersheet'!AS1197=\"\",\"\",'1. Ordersheet'!AS1197)","v":""},{"$f":"IF('1. Ordersheet'!AT1197=\"\",\"\",'1. Ordersheet'!AT1197)","v":""},null,null,null,null,null,null,null,{"$f":"IF('1. Ordersheet'!AX1197=\"\",\"\",'1. Ordersheet'!AX1197)","v":""},{"$f":"IF('1. Ordersheet'!AY1197=\"\",\"\",'1. Ordersheet'!AY1197)","v":""},{"$f":"IF('1. Ordersheet'!AZ1197=\"\",\"\",'1. Ordersheet'!AZ1197)","v":""},{"$f":"IF('1. Ordersheet'!BA1197=\"\",\"\",'1. Ordersheet'!BA1197)","v":""},{"$f":"IF('1. Ordersheet'!BC1197=\"\",\"\",'1. Ordersheet'!BC1197)","v":""},{"$f":"IF('1. Ordersheet'!BD1197=\"\",\"\",'1. Ordersheet'!BD1197)","v":""},{"$f":"IF('1. Ordersheet'!BE1197=\"\",\"\",'1. Ordersheet'!BE1197)","v":""},{"$f":"IF('1. Ordersheet'!BF1197=\"\",\"\",'1. Ordersheet'!BF1197)","v":""},{"$f":"IF('1. Ordersheet'!BG1197=\"\",\"\",'1. Ordersheet'!BG1197)","v":"ZWO"},{"$f":"IF('1. Ordersheet'!BH1197=\"\",\"\",'1. Ordersheet'!BH1197)","v":""},{"$f":"IF('1. Ordersheet'!BI1197=\"\",\"\",'1. Ordersheet'!BI1197)","v":""},{"$f":"IF('1. Ordersheet'!BJ1197=\"\",\"\",'1. Ordersheet'!BJ1197)","v":""},{"$f":"IF('1. Ordersheet'!BK1197=\"\",\"\",'1. Ordersheet'!BK1197)","v":""},{"$f":"IF('1. Ordersheet'!BL1197=\"\",\"\",'1. Ordersheet'!BL1197)","v":""}]
[{"$f":"IF('1. Ordersheet'!F1198=\"\",\"\",'1. Ordersheet'!F1198)","v":""},{"$f":"IF('1. Ordersheet'!G1198=\"\",\"\",'1. Ordersheet'!G1198)","v":""},{"$f":"IF('1. Ordersheet'!H1198=\"\",\"\",'1. Ordersheet'!H1198)","v":""},{"$f":"IF('1. Ordersheet'!I1198=\"\",\"\",'1. Ordersheet'!I1198)","v":""},{"$f":"IF('1. Ordersheet'!J1198=\"\",\"\",'1. Ordersheet'!J1198)","v":""},{"$f":"IF('1. Ordersheet'!K1198=\"\",\"\",'1. Ordersheet'!K1198)","v":""},{"$f":"IF('1. Ordersheet'!L1198=\"\",\"\",'1. Ordersheet'!L1198)","v":""},{"$f":"IF('1. Ordersheet'!M1198=\"\",\"\",'1. Ordersheet'!M1198)","v":""},{"$f":"IF('1. Ordersheet'!N1198=\"\",\"\",'1. Ordersheet'!N1198)","v":""},{"$f":"IF('1. Ordersheet'!O1198=\"\",\"\",'1. Ordersheet'!O1198)","v":{"$error":"#N/A"}},{"$f":"IF('1. Ordersheet'!P1198=\"\",\"\",'1. Ordersheet'!P1198)","v":{"$error":"#N/A"}},{"$f":"IF('1. Ordersheet'!Q1198=\"\",\"\",'1. Ordersheet'!Q1198)","v":""},{"$f":"IF('1. Ordersheet'!R1198=\"\",\"\",'1. Ordersheet'!R1198)","v":""},{"$f":"IF('1. Ordersheet'!S1198=\"\",\"\",'1. Ordersheet'!S1198)","v":""},{"$f":"IF('1. Ordersheet'!V1198=\"\",\"\",'1. Ordersheet'!V1198)","v":""},{"$f":"IF('1. Ordersheet'!W1198=\"\",\"\",'1. Ordersheet'!W1198)","v":""},{"$f":"IF('1. Ordersheet'!X1198=\"\",\"\",'1. Ordersheet'!X1198)","v":""},{"$f":"IF('1. Ordersheet'!Y1198=\"\",\"\",'1. Ordersheet'!Y1198)","v":""},{"$f":"IF('1. Ordersheet'!Z1198=\"\",\"\",'1. Ordersheet'!Z1198)","v":""},{"$f":"IF('1. Ordersheet'!AA1198=\"\",\"\",'1. Ordersheet'!AA1198)","v":""},null,{"$f":"IF('1. Ordersheet'!AS1198=\"\",\"\",'1. Ordersheet'!AS1198)","v":""},{"$f":"IF('1. Ordersheet'!AT1198=\"\",\"\",'1. Ordersheet'!AT1198)","v":""},null,null,null,null,null,null,null,{"$f":"IF('1. Ordersheet'!AX1198=\"\",\"\",'1. Ordersheet'!AX1198)","v":""},{"$f":"IF('1. Ordersheet'!AY1198=\"\",\"\",'1. Ordersheet'!AY1198)","v":""},{"$f":"IF('1. Ordersheet'!AZ1198=\"\",\"\",'1. Ordersheet'!AZ1198)","v":""},{"$f":"IF('1. Ordersheet'!BA1198=\"\",\"\",'1. Ordersheet'!BA1198)","v":""},{"$f":"IF('1. Ordersheet'!BC1198=\"\",\"\",'1. Ordersheet'!BC1198)","v":""},{"$f":"IF('1. Ordersheet'!BD1198=\"\",\"\",'1. Ordersheet'!BD1198)","v":""},{"$f":"IF('1. Ordersheet'!BE1198=\"\",\"\",'1. Ordersheet'!BE1198)","v":""},{"$f":"IF('1. Ordersheet'!BF1198=\"\",\"\",'1. Ordersheet'!BF1198)","v":""},{"$f":"IF('1. Ordersheet'!BG1198=\"\",\"\",'1. Ordersheet'!BG1198)","v":"ZWO"},{"$f":"IF('1. Ordersheet'!BH1198=\"\",\"\",'1. Ordersheet'!BH1198)","v":""},{"$f":"IF('1. Ordersheet'!BI1198=\"\",\"\",'1. Ordersheet'!BI1198)","v":""},{"$f":"IF('1. Ordersheet'!BJ1198=\"\",\"\",'1. Ordersheet'!BJ1198)","v":""},{"$f":"IF('1. Ordersheet'!BK1198=\"\",\"\",'1. Ordersheet'!BK1198)","v":""},{"$f":"IF('1. Ordersheet'!BL1198=\"\",\"\",'1. Ordersheet'!BL1198)","v":""}]
[{"$f":"IF('1. Ordersheet'!F1199=\"\",\"\",'1. Ordersheet'!F1199)","v":""},{"$f":"IF('1. Ordersheet'!G1199=\"\",\"\",'1. Ordersheet'!G1199)","v":""},{"$f":"IF('1. Ordersheet'!H1199=\"\",\"\",'1. Ordersheet'!H1199)","v":""},{"$f":"IF('1. Ordersheet'!I1199=\"\",\"\",'1. Ordersheet'!I1199)","v":""},{"$f":"IF('1. Ordersheet'!J1199=\"\",\"\",'1. Ordersheet'!J1199)","v":""},{"$f":"IF('1. Ordersheet'!K1199=\"\",\"\",'1. Ordersheet'!K1199)","v":""},{"$f":"IF('1. Ordersheet'!L1199=\"\",\"\",'1. Ordersheet'!L1199)","v":""},{"$f":"IF('1. Ordersheet'!M1199=\"\",\"\",'1. Ordersheet'!M1199)","v":""},{"$f":"IF('1. Ordersheet'!N1199=\"\",\"\",'1. Ordersheet'!N1199)","v":""},{"$f":"IF('1. Ordersheet'!O1199=\"\",\"\",'1. Ordersheet'!O1199)","v":{"$error":"#N/A"}},{"$f":"IF('1. Ordersheet'!P1199=\"\",\"\",'1. Ordersheet'!P1199)","v":{"$error":"#N/A"}},{"$f":"IF('1. Ordersheet'!Q1199=\"\",\"\",'1. Ordersheet'!Q1199)","v":""},{"$f":"IF('1. Ordersheet'!R1199=\"\",\"\",'1. Ordersheet'!R1199)","v":""},{"$f":"IF('1. Ordersheet'!S1199=\"\",\"\",'1. Ordersheet'!S1199)","v":""},{"$f":"IF('1. Ordersheet'!V1199=\"\",\"\",'1. Ordersheet'!V1199)","v":""},{"$f":"IF('1. Ordersheet'!W1199=\"\",\"\",'1. Ordersheet'!W1199)","v":""},{"$f":"IF('1. Ordersheet'!X1199=\"\",\"\",'1. Ordersheet'!X1199)","v":""},{"$f":"IF('1. Ordersheet'!Y1199=\"\",\"\",'1. Ordersheet'!Y1199)","v":""},{"$f":"IF('1. Ordersheet'!Z1199=\"\",\"\",'1. Ordersheet'!Z1199)","v":""},{"$f":"IF('1. Ordersheet'!AA1199=\"\",\"\",'1. Ordersheet'!AA1199)","v":""},null,{"$f":"IF('1. Ordersheet'!AS1199=\"\",\"\",'1. Ordersheet'!AS1199)","v":""},{"$f":"IF('1. Ordersheet'!AT1199=\"\",\"\",'1. Ordersheet'!AT1199)","v":""},null,null,null,null,null,null,null,{"$f":"IF('1. Ordersheet'!AX1199=\"\",\"\",'1. Ordersheet'!AX1199)","v":""},{"$f":"IF('1. Ordersheet'!AY1199=\"\",\"\",'1. Ordersheet'!AY1199)","v":""},{"$f":"IF('1. Ordersheet'!AZ1199=\"\",\"\",'1. Ordersheet'!AZ1199)","v":""},{"$f":"IF('1. Ordersheet'!BA1199=\"\",\"\",'1. Ordersheet'!BA1199)","v":""},{"$f":"IF('1. Ordersheet'!BC1199=\"\",\"\",'1. Ordersheet'!BC1199)","v":""},{"$f":"IF('1. Ordersheet'!BD1199=\"\",\"\",'1. Ordersheet'!BD1199)","v":""},{"$f":"IF('1. Ordersheet'!BE1199=\"\",\"\",'1. Ordersheet'!BE1199)","v":""},{"$f":"IF('1. Ordersheet'!BF1199=\"\",\"\",'1. Ordersheet'!BF1199)","v":""},{"$f":"IF('1. Ordersheet'!BG1199=\"\",\"\",'1. Ordersheet'!BG1199)","v":"ZWO"},{"$f":"IF('1. Ordersheet'!BH1199=\"\",\"\",'1. Ordersheet'!BH1199)","v":""},{"$f":"IF('1. Ordersheet'!BI1199=\"\",\"\",'1. Ordersheet'!BI1199)","v":""},{"$f":"IF('1. Ordersheet'!BJ1199=\"\",\"\",'1. Ordersheet'!BJ1199)","v":""},{"$f":"IF('1. Ordersheet'!BK1199=\"\",\"\",'1. Ordersheet'!BK1199)","v":""},{"$f":"IF('1. Ordersheet'!BL1199=\"\",\"\",'1. Ordersheet'!BL1199)","v":""}]
[{"$f":"IF('1. Ordersheet'!F1200=\"\",\"\",'1. Ordersheet'!F1200)","v":""},{"$f":"IF('1. Ordersheet'!G1200=\"\",\"\",'1. Ordersheet'!G1200)","v":""},{"$f":"IF('1. Ordersheet'!H1200=\"\",\"\",'1. Ordersheet'!H1200)","v":""},{"$f":"IF('1. Ordersheet'!I1200=\"\",\"\",'1. Ordersheet'!I1200)","v":""},{"$f":"IF('1. Ordersheet'!J1200=\"\",\"\",'1. Ordersheet'!J1200)","v":""},{"$f":"IF('1. Ordersheet'!K1200=\"\",\"\",'1. Ordersheet'!K1200)","v":""},{"$f":"IF('1. Ordersheet'!L1200=\"\",\"\",'1. Ordersheet'!L1200)","v":""},{"$f":"IF('1. Ordersheet'!M1200=\"\",\"\",'1. Ordersheet'!M1200)","v":""},{"$f":"IF('1. Ordersheet'!N1200=\"\",\"\",'1. Ordersheet'!N1200)","v":""},{"$f":"IF('1. Ordersheet'!O1200=\"\",\"\",'1. Ordersheet'!O1200)","v":{"$error":"#N/A"}},{"$f":"IF('1. Ordersheet'!P1200=\"\",\"\",'1. Ordersheet'!P1200)","v":{"$error":"#N/A"}},{"$f":"IF('1. Ordersheet'!Q1200=\"\",\"\",'1. Ordersheet'!Q1200)","v":""},{"$f":"IF('1. Ordersheet'!R1200=\"\",\"\",'1. Ordersheet'!R1200)","v":""},{"$f":"IF('1. Ordersheet'!S1200=\"\",\"\",'1. Ordersheet'!S1200)","v":""},{"$f":"IF('1. Ordersheet'!V1200=\"\",\"\",'1. Ordersheet'!V1200)","v":""},{"$f":"IF('1. Ordersheet'!W1200=\"\",\"\",'1. Ordersheet'!W1200)","v":""},{"$f":"IF('1. Ordersheet'!X1200=\"\",\"\",'1. Ordersheet'!X1200)","v":""},{"$f":"IF('1. Ordersheet'!Y1200=\"\",\"\",'1. Ordersheet'!Y1200)","v":""},{"$f":"IF('1. Ordersheet'!Z1200=\"\",\"\",'1. Ordersheet'!Z1200)","v":""},{"$f":"IF('1. Ordersheet'!AA1200=\"\",\"\",'1. Ordersheet'!AA1200)","v":""},null,{"$f":"IF('1. Ordersheet'!AS1200=\"\",\"\",'1. Ordersheet'!AS1200)","v":""},{"$f":"IF('1. Ordersheet'!AT1200=\"\",\"\",'1. Ordersheet'!AT1200)","v":""},null,null,null,null,null,null,null,{"$f":"IF('1. Ordersheet'!AX1200=\"\",\"\",'1. Ordersheet'!AX1200)","v":""},{"$f":"IF('1. Ordersheet'!AY1200=\"\",\"\",'1. Ordersheet'!AY1200)","v":""},{"$f":"IF('1. Ordersheet'!AZ1200=\"\",\"\",'1. Ordersheet'!AZ1200)","v":""},{"$f":"IF('1. Ordersheet'!BA1200=\"\",\"\",'1. Ordersheet'!BA1200)","v":""},{"$f":"IF('1. Ordersheet'!BC1200=\"\",\"\",'1. Ordersheet'!BC1200)","v":""},{"$f":"IF('1. Ordersheet'!BD1200=\"\",\"\",'1. Ordersheet'!BD1200)","v":""},{"$f":"IF('1. Ordersheet'!BE1200=\"\",\"\",'1. Ordersheet'!BE1200)","v":""},{"$f":"IF('1. Ordersheet'!BF1200=\"\",\"\",'1. Ordersheet'!BF1200)","v":""},{"$f":"IF('1. Ordersheet'!BG1200=\"\",\"\",'1. Ordersheet'!BG1200)","v":"ZWO"},{"$f":"IF('1. Ordersheet'!BH1200=\"\",\"\",'1. Ordersheet'!BH1200)","v":""},{"$f":"IF('1. Ordersheet'!BI1200=\"\",\"\",'1. Ordersheet'!BI1200)","v":""},{"$f":"IF('1. Ordersheet'!BJ1200=\"\",\"\",'1. Ordersheet'!BJ1200)","v":""},{"$f":"IF('1. Ordersheet'!BK1200=\"\",\"\",'1. Ordersheet'!BK1200)","v":""},{"$f":"IF('1. Ordersheet'!BL1200=\"\",\"\",'1. Ordersheet'!BL1200)","v":""}]
[{"$f":"IF('1. Ordersheet'!F1201=\"\",\"\",'1. Ordersheet'!F1201)","v":""},{"$f":"IF('1. Ordersheet'!G1201=\"\",\"\",'1. Ordersheet'!G1201)","v":""},{"$f":"IF('1. Ordersheet'!H1201=\"\",\"\",'1. Ordersheet'!H1201)","v":""},{"$f":"IF('1. Ordersheet'!I1201=\"\",\"\",'1. Ordersheet'!I1201)","v":""},{"$f":"IF('1. Ordersheet'!J1201=\"\",\"\",'1. Ordersheet'!J1201)","v":""},{"$f":"IF('1. Ordersheet'!K1201=\"\",\"\",'1. Ordersheet'!K1201)","v":""},{"$f":"IF('1. Ordersheet'!L1201=\"\",\"\",'1. Ordersheet'!L1201)","v":""},{"$f":"IF('1. Ordersheet'!M1201=\"\",\"\",'1. Ordersheet'!M1201)","v":""},{"$f":"IF('1. Ordersheet'!N1201=\"\",\"\",'1. Ordersheet'!N1201)","v":""},{"$f":"IF('1. Ordersheet'!O1201=\"\",\"\",'1. Ordersheet'!O1201)","v":{"$error":"#N/A"}},{"$f":"IF('1. Ordersheet'!P1201=\"\",\"\",'1. Ordersheet'!P1201)","v":{"$error":"#N/A"}},{"$f":"IF('1. Ordersheet'!Q1201=\"\",\"\",'1. Ordersheet'!Q1201)","v":""},{"$f":"IF('1. Ordersheet'!R1201=\"\",\"\",'1. Ordersheet'!R1201)","v":""},{"$f":"IF('1. Ordersheet'!S1201=\"\",\"\",'1. Ordersheet'!S1201)","v":""},{"$f":"IF('1. Ordersheet'!V1201=\"\",\"\",'1. Ordersheet'!V1201)","v":""},{"$f":"IF('1. Ordersheet'!W1201=\"\",\"\",'1. Ordersheet'!W1201)","v":""},{"$f":"IF('1. Ordersheet'!X1201=\"\",\"\",'1. Ordersheet'!X1201)","v":""},{"$f":"IF('1. Ordersheet'!Y1201=\"\",\"\",'1. Ordersheet'!Y1201)","v":""},{"$f":"IF('1. Ordersheet'!Z1201=\"\",\"\",'1. Ordersheet'!Z1201)","v":""},{"$f":"IF('1. Ordersheet'!AA1201=\"\",\"\",'1. Ordersheet'!AA1201)","v":""},null,{"$f":"IF('1. Ordersheet'!AS1201=\"\",\"\",'1. Ordersheet'!AS1201)","v":""},{"$f":"IF('1. Ordersheet'!AT1201=\"\",\"\",'1. Ordersheet'!AT1201)","v":""},null,null,null,null,null,null,null,{"$f":"IF('1. Ordersheet'!AX1201=\"\",\"\",'1. Ordersheet'!AX1201)","v":""},{"$f":"IF('1. Ordersheet'!AY1201=\"\",\"\",'1. Ordersheet'!AY1201)","v":""},{"$f":"IF('1. Ordersheet'!AZ1201=\"\",\"\",'1. Ordersheet'!AZ1201)","v":""},{"$f":"IF('1. Ordersheet'!BA1201=\"\",\"\",'1. Ordersheet'!BA1201)","v":""},{"$f":"IF('1. Ordersheet'!BC1201=\"\",\"\",'1. Ordersheet'!BC1201)","v":""},{"$f":"IF('1. Ordersheet'!BD1201=\"\",\"\",'1. Ordersheet'!BD1201)","v":""},{"$f":"IF('1. Ordersheet'!BE1201=\"\",\"\",'1. Ordersheet'!BE1201)","v":""},{"$f":"IF('1. Ordersheet'!BF1201=\"\",\"\",'1. Ordersheet'!BF1201)","v":""},{"$f":"IF('1. Ordersheet'!BG1201=\"\",\"\",'1. Ordersheet'!BG1201)","v":"ZWO"},{"$f":"IF('1. Ordersheet'!BH1201=\"\",\"\",'1. Ordersheet'!BH1201)","v":""},{"$f":"IF('1. Ordersheet'!BI1201=\"\",\"\",'1. Ordersheet'!BI1201)","v":""},{"$f":"IF('1. Ordersheet'!BJ1201=\"\",\"\",'1. Ordersheet'!BJ1201)","v":""},{"$f":"IF('1. Ordersheet'!BK1201=\"\",\"\",'1. Ordersheet'!BK1201)","v":""},{"$f":"IF('1. Ordersheet'!BL1201=\"\",\"\",'1. Ordersheet'!BL1201)","v":""}]
[{"$f":"IF('1. Ordersheet'!F1202=\"\",\"\",'1. Ordersheet'!F1202)","v":""},{"$f":"IF('1. Ordersheet'!G1202=\"\",\"\",'1. Ordersheet'!G1202)","v":""},{"$f":"IF('1. Ordersheet'!H1202=\"\",\"\",'1. Ordersheet'!H1202)","v":""},{"$f":"IF('1. Ordersheet'!I1202=\"\",\"\",'1. Ordersheet'!I1202)","v":""},{"$f":"IF('1. Ordersheet'!J1202=\"\",\"\",'1. Ordersheet'!J1202)","v":""},{"$f":"IF('1. Ordersheet'!K1202=\"\",\"\",'1. Ordersheet'!K1202)","v":""},{"$f":"IF('1. Ordersheet'!L1202=\"\",\"\",'1. Ordersheet'!L1202)","v":""},{"$f":"IF('1. Ordersheet'!M1202=\"\",\"\",'1. Ordersheet'!M1202)","v":""},{"$f":"IF('1. Ordersheet'!N1202=\"\",\"\",'1. Ordersheet'!N1202)","v":""},{"$f":"IF('1. Ordersheet'!O1202=\"\",\"\",'1. Ordersheet'!O1202)","v":{"$error":"#N/A"}},{"$f":"IF('1. Ordersheet'!P1202=\"\",\"\",'1. Ordersheet'!P1202)","v":{"$error":"#N/A"}},{"$f":"IF('1. Ordersheet'!Q1202=\"\",\"\",'1. Ordersheet'!Q1202)","v":""},{"$f":"IF('1. Ordersheet'!R1202=\"\",\"\",'1. Ordersheet'!R1202)","v":""},{"$f":"IF('1. Ordersheet'!S1202=\"\",\"\",'1. Ordersheet'!S1202)","v":""},{"$f":"IF('1. Ordersheet'!V1202=\"\",\"\",'1. Ordersheet'!V1202)","v":""},{"$f":"IF('1. Ordersheet'!W1202=\"\",\"\",'1. Ordersheet'!W1202)","v":""},{"$f":"IF('1. Ordersheet'!X1202=\"\",\"\",'1. Ordersheet'!X1202)","v":""},{"$f":"IF('1. Ordersheet'!Y1202=\"\",\"\",'1. Ordersheet'!Y1202)","v":""},{"$f":"IF('1. Ordersheet'!Z1202=\"\",\"\",'1. Ordersheet'!Z1202)","v":""},{"$f":"IF('1. Ordersheet'!AA1202=\"\",\"\",'1. Ordersheet'!AA1202)","v":""},null,{"$f":"IF('1. Ordersheet'!AS1202=\"\",\"\",'1. Ordersheet'!AS1202)","v":""},{"$f":"IF('1. Ordersheet'!AT1202=\"\",\"\",'1. Ordersheet'!AT1202)","v":""},null,null,null,null,null,null,null,{"$f":"IF('1. Ordersheet'!AX1202=\"\",\"\",'1. Ordersheet'!AX1202)","v":""},{"$f":"IF('1. Ordersheet'!AY1202=\"\",\"\",'1. Ordersheet'!AY1202)","v":""},{"$f":"IF('1. Ordersheet'!AZ1202=\"\",\"\",'1. Ordersheet'!AZ1202)","v":""},{"$f":"IF('1. Ordersheet'!BA1202=\"\",\"\",'1. Ordersheet'!BA1202)","v":""},{"$f":"IF('1. Ordersheet'!BC1202=\"\",\"\",'1. Ordersheet'!BC1202)","v":""},{"$f":"IF('1. Ordersheet'!BD1202=\"\",\"\",'1. Ordersheet'!BD1202)","v":""},{"$f":"IF('1. Ordersheet'!BE1202=\"\",\"\",'1. Ordersheet'!BE1202)","v":""},{"$f":"IF('1. Ordersheet'!BF1202=\"\",\"\",'1. Ordersheet'!BF1202)","v":""},{"$f":"IF('1. Ordersheet'!BG1202=\"\",\"\",'1. Ordersheet'!BG1202)","v":"ZWO"},{"$f":"IF('1. Ordersheet'!BH1202=\"\",\"\",'1. Ordersheet'!BH1202)","v":""},{"$f":"IF('1. Ordersheet'!BI1202=\"\",\"\",'1. Ordersheet'!BI1202)","v":""},{"$f":"IF('1. Ordersheet'!BJ1202=\"\",\"\",'1. Ordersheet'!BJ1202)","v":""},{"$f":"IF('1. Ordersheet'!BK1202=\"\",\"\",'1. Ordersheet'!BK1202)","v":""},{"$f":"IF('1. Ordersheet'!BL1202=\"\",\"\",'1. Ordersheet'!BL1202)","v":""}]
[{"$f":"IF('1. Ordersheet'!F1203=\"\",\"\",'1. Ordersheet'!F1203)","v":""},{"$f":"IF('1. Ordersheet'!G1203=\"\",\"\",'1. Ordersheet'!G1203)","v":""},{"$f":"IF('1. Ordersheet'!H1203=\"\",\"\",'1. Ordersheet'!H1203)","v":""},{"$f":"IF('1. Ordersheet'!I1203=\"\",\"\",'1. Ordersheet'!I1203)","v":""},{"$f":"IF('1. Ordersheet'!J1203=\"\",\"\",'1. Ordersheet'!J1203)","v":""},{"$f":"IF('1. Ordersheet'!K1203=\"\",\"\",'1. Ordersheet'!K1203)","v":""},{"$f":"IF('1. Ordersheet'!L1203=\"\",\"\",'1. Ordersheet'!L1203)","v":""},{"$f":"IF('1. Ordersheet'!M1203=\"\",\"\",'1. Ordersheet'!M1203)","v":""},{"$f":"IF('1. Ordersheet'!N1203=\"\",\"\",'1. Ordersheet'!N1203)","v":""},{"$f":"IF('1. Ordersheet'!O1203=\"\",\"\",'1. Ordersheet'!O1203)","v":{"$error":"#N/A"}},{"$f":"IF('1. Ordersheet'!P1203=\"\",\"\",'1. Ordersheet'!P1203)","v":{"$error":"#N/A"}},{"$f":"IF('1. Ordersheet'!Q1203=\"\",\"\",'1. Ordersheet'!Q1203)","v":""},{"$f":"IF('1. Ordersheet'!R1203=\"\",\"\",'1. Ordersheet'!R1203)","v":""},{"$f":"IF('1. Ordersheet'!S1203=\"\",\"\",'1. Ordersheet'!S1203)","v":""},{"$f":"IF('1. Ordersheet'!V1203=\"\",\"\",'1. Ordersheet'!V1203)","v":""},{"$f":"IF('1. Ordersheet'!W1203=\"\",\"\",'1. Ordersheet'!W1203)","v":""},{"$f":"IF('1. Ordersheet'!X1203=\"\",\"\",'1. Ordersheet'!X1203)","v":""},{"$f":"IF('1. Ordersheet'!Y1203=\"\",\"\",'1. Ordersheet'!Y1203)","v":""},{"$f":"IF('1. Ordersheet'!Z1203=\"\",\"\",'1. Ordersheet'!Z1203)","v":""},{"$f":"IF('1. Ordersheet'!AA1203=\"\",\"\",'1. Ordersheet'!AA1203)","v":""},null,{"$f":"IF('1. Ordersheet'!AS1203=\"\",\"\",'1. Ordersheet'!AS1203)","v":""},{"$f":"IF('1. Ordersheet'!AT1203=\"\",\"\",'1. Ordersheet'!AT1203)","v":""},null,null,null,null,null,null,null,{"$f":"IF('1. Ordersheet'!AX1203=\"\",\"\",'1. Ordersheet'!AX1203)","v":""},{"$f":"IF('1. Ordersheet'!AY1203=\"\",\"\",'1. Ordersheet'!AY1203)","v":""},{"$f":"IF('1. Ordersheet'!AZ1203=\"\",\"\",'1. Ordersheet'!AZ1203)","v":""},{"$f":"IF('1. Ordersheet'!BA1203=\"\",\"\",'1. Ordersheet'!BA1203)","v":""},{"$f":"IF('1. Ordersheet'!BC1203=\"\",\"\",'1. Ordersheet'!BC1203)","v":""},{"$f":"IF('1. Ordersheet'!BD1203=\"\",\"\",'1. Ordersheet'!BD1203)","v":""},{"$f":"IF('1. Ordersheet'!BE1203=\"\",\"\",'1. Ordersheet'!BE1203)","v":""},{"$f":"IF('1. Ordersheet'!BF1203=\"\",\"\",'1. Ordersheet'!BF1203)","v":""},{"$f":"IF('1. Ordersheet'!BG1203=\"\",\"\",'1. Ordersheet'!BG1203)","v":"ZWO"},{"$f":"IF('1. Ordersheet'!BH1203=\"\",\"\",'1. Ordersheet'!BH1203)","v":""},{"$f":"IF('1. Ordersheet'!BI1203=\"\",\"\",'1. Ordersheet'!BI1203)","v":""},{"$f":"IF('1. Ordersheet'!BJ1203=\"\",\"\",'1. Ordersheet'!BJ1203)","v":""},{"$f":"IF('1. Ordersheet'!BK1203=\"\",\"\",'1. Ordersheet'!BK1203)","v":""},{"$f":"IF('1. Ordersheet'!BL1203=\"\",\"\",'1. Ordersheet'!BL1203)","v":""}]
[{"$f":"IF('1. Ordersheet'!F1204=\"\",\"\",'1. Ordersheet'!F1204)","v":""},{"$f":"IF('1. Ordersheet'!G1204=\"\",\"\",'1. Ordersheet'!G1204)","v":""},{"$f":"IF('1. Ordersheet'!H1204=\"\",\"\",'1. Ordersheet'!H1204)","v":""},{"$f":"IF('1. Ordersheet'!I1204=\"\",\"\",'1. Ordersheet'!I1204)","v":""},{"$f":"IF('1. Ordersheet'!J1204=\"\",\"\",'1. Ordersheet'!J1204)","v":""},{"$f":"IF('1. Ordersheet'!K1204=\"\",\"\",'1. Ordersheet'!K1204)","v":""},{"$f":"IF('1. Ordersheet'!L1204=\"\",\"\",'1. Ordersheet'!L1204)","v":""},{"$f":"IF('1. Ordersheet'!M1204=\"\",\"\",'1. Ordersheet'!M1204)","v":""},{"$f":"IF('1. Ordersheet'!N1204=\"\",\"\",'1. Ordersheet'!N1204)","v":""},{"$f":"IF('1. Ordersheet'!O1204=\"\",\"\",'1. Ordersheet'!O1204)","v":{"$error":"#N/A"}},{"$f":"IF('1. Ordersheet'!P1204=\"\",\"\",'1. Ordersheet'!P1204)","v":{"$error":"#N/A"}},{"$f":"IF('1. Ordersheet'!Q1204=\"\",\"\",'1. Ordersheet'!Q1204)","v":""},{"$f":"IF('1. Ordersheet'!R1204=\"\",\"\",'1. Ordersheet'!R1204)","v":""},{"$f":"IF('1. Ordersheet'!S1204=\"\",\"\",'1. Ordersheet'!S1204)","v":""},{"$f":"IF('1. Ordersheet'!V1204=\"\",\"\",'1. Ordersheet'!V1204)","v":""},{"$f":"IF('1. Ordersheet'!W1204=\"\",\"\",'1. Ordersheet'!W1204)","v":""},{"$f":"IF('1. Ordersheet'!X1204=\"\",\"\",'1. Ordersheet'!X1204)","v":""},{"$f":"IF('1. Ordersheet'!Y1204=\"\",\"\",'1. Ordersheet'!Y1204)","v":""},{"$f":"IF('1. Ordersheet'!Z1204=\"\",\"\",'1. Ordersheet'!Z1204)","v":""},{"$f":"IF('1. Ordersheet'!AA1204=\"\",\"\",'1. Ordersheet'!AA1204)","v":""},null,{"$f":"IF('1. Ordersheet'!AS1204=\"\",\"\",'1. Ordersheet'!AS1204)","v":""},{"$f":"IF('1. Ordersheet'!AT1204=\"\",\"\",'1. Ordersheet'!AT1204)","v":""},null,null,null,null,null,null,null,{"$f":"IF('1. Ordersheet'!AX1204=\"\",\"\",'1. Ordersheet'!AX1204)","v":""},{"$f":"IF('1. Ordersheet'!AY1204=\"\",\"\",'1. Ordersheet'!AY1204)","v":""},{"$f":"IF('1. Ordersheet'!AZ1204=\"\",\"\",'1. Ordersheet'!AZ1204)","v":""},{"$f":"IF('1. Ordersheet'!BA1204=\"\",\"\",'1. Ordersheet'!BA1204)","v":""},{"$f":"IF('1. Ordersheet'!BC1204=\"\",\"\",'1. Ordersheet'!BC1204)","v":""},{"$f":"IF('1. Ordersheet'!BD1204=\"\",\"\",'1. Ordersheet'!BD1204)","v":""},{"$f":"IF('1. Ordersheet'!BE1204=\"\",\"\",'1. Ordersheet'!BE1204)","v":""},{"$f":"IF('1. Ordersheet'!BF1204=\"\",\"\",'1. Ordersheet'!BF1204)","v":""},{"$f":"IF('1. Ordersheet'!BG1204=\"\",\"\",'1. Ordersheet'!BG1204)","v":"ZWO"},{"$f":"IF('1. Ordersheet'!BH1204=\"\",\"\",'1. Ordersheet'!BH1204)","v":""},{"$f":"IF('1. Ordersheet'!BI1204=\"\",\"\",'1. Ordersheet'!BI1204)","v":""},{"$f":"IF('1. Ordersheet'!BJ1204=\"\",\"\",'1. Ordersheet'!BJ1204)","v":""},{"$f":"IF('1. Ordersheet'!BK1204=\"\",\"\",'1. Ordersheet'!BK1204)","v":""},{"$f":"IF('1. Ordersheet'!BL1204=\"\",\"\",'1. Ordersheet'!BL1204)","v":""}]
[{"$f":"IF('1. Ordersheet'!F1205=\"\",\"\",'1. Ordersheet'!F1205)","v":""},{"$f":"IF('1. Ordersheet'!G1205=\"\",\"\",'1. Ordersheet'!G1205)","v":""},{"$f":"IF('1. Ordersheet'!H1205=\"\",\"\",'1. Ordersheet'!H1205)","v":""},{"$f":"IF('1. Ordersheet'!I1205=\"\",\"\",'1. Ordersheet'!I1205)","v":""},{"$f":"IF('1. Ordersheet'!J1205=\"\",\"\",'1. Ordersheet'!J1205)","v":""},{"$f":"IF('1. Ordersheet'!K1205=\"\",\"\",'1. Ordersheet'!K1205)","v":""},{"$f":"IF('1. Ordersheet'!L1205=\"\",\"\",'1. Ordersheet'!L1205)","v":""},{"$f":"IF('1. Ordersheet'!M1205=\"\",\"\",'1. Ordersheet'!M1205)","v":""},{"$f":"IF('1. Ordersheet'!N1205=\"\",\"\",'1. Ordersheet'!N1205)","v":""},{"$f":"IF('1. Ordersheet'!O1205=\"\",\"\",'1. Ordersheet'!O1205)","v":{"$error":"#N/A"}},{"$f":"IF('1. Ordersheet'!P1205=\"\",\"\",'1. Ordersheet'!P1205)","v":{"$error":"#N/A"}},{"$f":"IF('1. Ordersheet'!Q1205=\"\",\"\",'1. Ordersheet'!Q1205)","v":""},{"$f":"IF('1. Ordersheet'!R1205=\"\",\"\",'1. Ordersheet'!R1205)","v":""},{"$f":"IF('1. Ordersheet'!S1205=\"\",\"\",'1. Ordersheet'!S1205)","v":""},{"$f":"IF('1. Ordersheet'!V1205=\"\",\"\",'1. Ordersheet'!V1205)","v":""},{"$f":"IF('1. Ordersheet'!W1205=\"\",\"\",'1. Ordersheet'!W1205)","v":""},{"$f":"IF('1. Ordersheet'!X1205=\"\",\"\",'1. Ordersheet'!X1205)","v":""},{"$f":"IF('1. Ordersheet'!Y1205=\"\",\"\",'1. Ordersheet'!Y1205)","v":""},{"$f":"IF('1. Ordersheet'!Z1205=\"\",\"\",'1. Ordersheet'!Z1205)","v":""},{"$f":"IF('1. Ordersheet'!AA1205=\"\",\"\",'1. Ordersheet'!AA1205)","v":""},null,{"$f":"IF('1. Ordersheet'!AS1205=\"\",\"\",'1. Ordersheet'!AS1205)","v":""},{"$f":"IF('1. Ordersheet'!AT1205=\"\",\"\",'1. Ordersheet'!AT1205)","v":""},null,null,null,null,null,null,null,{"$f":"IF('1. Ordersheet'!AX1205=\"\",\"\",'1. Ordersheet'!AX1205)","v":""},{"$f":"IF('1. Ordersheet'!AY1205=\"\",\"\",'1. Ordersheet'!AY1205)","v":""},{"$f":"IF('1. Ordersheet'!AZ1205=\"\",\"\",'1. Ordersheet'!AZ1205)","v":""},{"$f":"IF('1. Ordersheet'!BA1205=\"\",\"\",'1. Ordersheet'!BA1205)","v":""},{"$f":"IF('1. Ordersheet'!BC1205=\"\",\"\",'1. Ordersheet'!BC1205)","v":""},{"$f":"IF('1. Ordersheet'!BD1205=\"\",\"\",'1. Ordersheet'!BD1205)","v":""},{"$f":"IF('1. Ordersheet'!BE1205=\"\",\"\",'1. Ordersheet'!BE1205)","v":""},{"$f":"IF('1. Ordersheet'!BF1205=\"\",\"\",'1. Ordersheet'!BF1205)","v":""},{"$f":"IF('1. Ordersheet'!BG1205=\"\",\"\",'1. Ordersheet'!BG1205)","v":"ZWO"},{"$f":"IF('1. Ordersheet'!BH1205=\"\",\"\",'1. Ordersheet'!BH1205)","v":""},{"$f":"IF('1. Ordersheet'!BI1205=\"\",\"\",'1. Ordersheet'!BI1205)","v":""},{"$f":"IF('1. Ordersheet'!BJ1205=\"\",\"\",'1. Ordersheet'!BJ1205)","v":""},{"$f":"IF('1. Ordersheet'!BK1205=\"\",\"\",'1. Ordersheet'!BK1205)","v":""},{"$f":"IF('1. Ordersheet'!BL1205=\"\",\"\",'1. Ordersheet'!BL1205)","v":""}]
[{"$f":"IF('1. Ordersheet'!F1206=\"\",\"\",'1. Ordersheet'!F1206)","v":""},{"$f":"IF('1. Ordersheet'!G1206=\"\",\"\",'1. Ordersheet'!G1206)","v":""},{"$f":"IF('1. Ordersheet'!H1206=\"\",\"\",'1. Ordersheet'!H1206)","v":""},{"$f":"IF('1. Ordersheet'!I1206=\"\",\"\",'1. Ordersheet'!I1206)","v":""},{"$f":"IF('1. Ordersheet'!J1206=\"\",\"\",'1. Ordersheet'!J1206)","v":""},{"$f":"IF('1. Ordersheet'!K1206=\"\",\"\",'1. Ordersheet'!K1206)","v":""},{"$f":"IF('1. Ordersheet'!L1206=\"\",\"\",'1. Ordersheet'!L1206)","v":""},{"$f":"IF('1. Ordersheet'!M1206=\"\",\"\",'1. Ordersheet'!M1206)","v":""},{"$f":"IF('1. Ordersheet'!N1206=\"\",\"\",'1. Ordersheet'!N1206)","v":""},{"$f":"IF('1. Ordersheet'!O1206=\"\",\"\",'1. Ordersheet'!O1206)","v":{"$error":"#N/A"}},{"$f":"IF('1. Ordersheet'!P1206=\"\",\"\",'1. Ordersheet'!P1206)","v":{"$error":"#N/A"}},{"$f":"IF('1. Ordersheet'!Q1206=\"\",\"\",'1. Ordersheet'!Q1206)","v":""},{"$f":"IF('1. Ordersheet'!R1206=\"\",\"\",'1. Ordersheet'!R1206)","v":""},{"$f":"IF('1. Ordersheet'!S1206=\"\",\"\",'1. Ordersheet'!S1206)","v":""},{"$f":"IF('1. Ordersheet'!V1206=\"\",\"\",'1. Ordersheet'!V1206)","v":""},{"$f":"IF('1. Ordersheet'!W1206=\"\",\"\",'1. Ordersheet'!W1206)","v":""},{"$f":"IF('1. Ordersheet'!X1206=\"\",\"\",'1. Ordersheet'!X1206)","v":""},{"$f":"IF('1. Ordersheet'!Y1206=\"\",\"\",'1. Ordersheet'!Y1206)","v":""},{"$f":"IF('1. Ordersheet'!Z1206=\"\",\"\",'1. Ordersheet'!Z1206)","v":""},{"$f":"IF('1. Ordersheet'!AA1206=\"\",\"\",'1. Ordersheet'!AA1206)","v":""},null,{"$f":"IF('1. Ordersheet'!AS1206=\"\",\"\",'1. Ordersheet'!AS1206)","v":""},{"$f":"IF('1. Ordersheet'!AT1206=\"\",\"\",'1. Ordersheet'!AT1206)","v":""},null,null,null,null,null,null,null,{"$f":"IF('1. Ordersheet'!AX1206=\"\",\"\",'1. Ordersheet'!AX1206)","v":""},{"$f":"IF('1. Ordersheet'!AY1206=\"\",\"\",'1. Ordersheet'!AY1206)","v":""},{"$f":"IF('1. Ordersheet'!AZ1206=\"\",\"\",'1. Ordersheet'!AZ1206)","v":""},{"$f":"IF('1. Ordersheet'!BA1206=\"\",\"\",'1. Ordersheet'!BA1206)","v":""},{"$f":"IF('1. Ordersheet'!BC1206=\"\",\"\",'1. Ordersheet'!BC1206)","v":""},{"$f":"IF('1. Ordersheet'!BD1206=\"\",\"\",'1. Ordersheet'!BD1206)","v":""},{"$f":"IF('1. Ordersheet'!BE1206=\"\",\"\",'1. Ordersheet'!BE1206)","v":""},{"$f":"IF('1. Ordersheet'!BF1206=\"\",\"\",'1. Ordersheet'!BF1206)","v":""},{"$f":"IF('1. Ordersheet'!BG1206=\"\",\"\",'1. Ordersheet'!BG1206)","v":"ZWO"},{"$f":"IF('1. Ordersheet'!BH1206=\"\",\"\",'1. Ordersheet'!BH1206)","v":""},{"$f":"IF('1. Ordersheet'!BI1206=\"\",\"\",'1. Ordersheet'!BI1206)","v":""},{"$f":"IF('1. Ordersheet'!BJ1206=\"\",\"\",'1. Ordersheet'!BJ1206)","v":""},{"$f":"IF('1. Ordersheet'!BK1206=\"\",\"\",'1. Ordersheet'!BK1206)","v":""},{"$f":"IF('1. Ordersheet'!BL1206=\"\",\"\",'1. Ordersheet'!BL1206)","v":""}]
[{"$f":"IF('1. Ordersheet'!F1207=\"\",\"\",'1. Ordersheet'!F1207)","v":""},{"$f":"IF('1. Ordersheet'!G1207=\"\",\"\",'1. Ordersheet'!G1207)","v":""},{"$f":"IF('1. Ordersheet'!H1207=\"\",\"\",'1. Ordersheet'!H1207)","v":""},{"$f":"IF('1. Ordersheet'!I1207=\"\",\"\",'1. Ordersheet'!I1207)","v":""},{"$f":"IF('1. Ordersheet'!J1207=\"\",\"\",'1. Ordersheet'!J1207)","v":""},{"$f":"IF('1. Ordersheet'!K1207=\"\",\"\",'1. Ordersheet'!K1207)","v":""},{"$f":"IF('1. Ordersheet'!L1207=\"\",\"\",'1. Ordersheet'!L1207)","v":""},{"$f":"IF('1. Ordersheet'!M1207=\"\",\"\",'1. Ordersheet'!M1207)","v":""},{"$f":"IF('1. Ordersheet'!N1207=\"\",\"\",'1. Ordersheet'!N1207)","v":""},{"$f":"IF('1. Ordersheet'!O1207=\"\",\"\",'1. Ordersheet'!O1207)","v":{"$error":"#N/A"}},{"$f":"IF('1. Ordersheet'!P1207=\"\",\"\",'1. Ordersheet'!P1207)","v":{"$error":"#N/A"}},{"$f":"IF('1. Ordersheet'!Q1207=\"\",\"\",'1. Ordersheet'!Q1207)","v":""},{"$f":"IF('1. Ordersheet'!R1207=\"\",\"\",'1. Ordersheet'!R1207)","v":""},{"$f":"IF('1. Ordersheet'!S1207=\"\",\"\",'1. Ordersheet'!S1207)","v":""},{"$f":"IF('1. Ordersheet'!V1207=\"\",\"\",'1. Ordersheet'!V1207)","v":""},{"$f":"IF('1. Ordersheet'!W1207=\"\",\"\",'1. Ordersheet'!W1207)","v":""},{"$f":"IF('1. Ordersheet'!X1207=\"\",\"\",'1. Ordersheet'!X1207)","v":""},{"$f":"IF('1. Ordersheet'!Y1207=\"\",\"\",'1. Ordersheet'!Y1207)","v":""},{"$f":"IF('1. Ordersheet'!Z1207=\"\",\"\",'1. Ordersheet'!Z1207)","v":""},{"$f":"IF('1. Ordersheet'!AA1207=\"\",\"\",'1. Ordersheet'!AA1207)","v":""},null,{"$f":"IF('1. Ordersheet'!AS1207=\"\",\"\",'1. Ordersheet'!AS1207)","v":""},{"$f":"IF('1. Ordersheet'!AT1207=\"\",\"\",'1. Ordersheet'!AT1207)","v":""},null,null,null,null,null,null,null,{"$f":"IF('1. Ordersheet'!AX1207=\"\",\"\",'1. Ordersheet'!AX1207)","v":""},{"$f":"IF('1. Ordersheet'!AY1207=\"\",\"\",'1. Ordersheet'!AY1207)","v":""},{"$f":"IF('1. Ordersheet'!AZ1207=\"\",\"\",'1. Ordersheet'!AZ1207)","v":""},{"$f":"IF('1. Ordersheet'!BA1207=\"\",\"\",'1. Ordersheet'!BA1207)","v":""},{"$f":"IF('1. Ordersheet'!BC1207=\"\",\"\",'1. Ordersheet'!BC1207)","v":""},{"$f":"IF('1. Ordersheet'!BD1207=\"\",\"\",'1. Ordersheet'!BD1207)","v":""},{"$f":"IF('1. Ordersheet'!BE1207=\"\",\"\",'1. Ordersheet'!BE1207)","v":""},{"$f":"IF('1. Ordersheet'!BF1207=\"\",\"\",'1. Ordersheet'!BF1207)","v":""},{"$f":"IF('1. Ordersheet'!BG1207=\"\",\"\",'1. Ordersheet'!BG1207)","v":"ZWO"},{"$f":"IF('1. Ordersheet'!BH1207=\"\",\"\",'1. Ordersheet'!BH1207)","v":""},{"$f":"IF('1. Ordersheet'!BI1207=\"\",\"\",'1. Ordersheet'!BI1207)","v":""},{"$f":"IF('1. Ordersheet'!BJ1207=\"\",\"\",'1. Ordersheet'!BJ1207)","v":""},{"$f":"IF('1. Ordersheet'!BK1207=\"\",\"\",'1. Ordersheet'!BK1207)","v":""},{"$f":"IF('1. Ordersheet'!BL1207=\"\",\"\",'1. Ordersheet'!BL1207)","v":""}]
[{"$f":"IF('1. Ordersheet'!F1208=\"\",\"\",'1. Ordersheet'!F1208)","v":""},{"$f":"IF('1. Ordersheet'!G1208=\"\",\"\",'1. Ordersheet'!G1208)","v":""},{"$f":"IF('1. Ordersheet'!H1208=\"\",\"\",'1. Ordersheet'!H1208)","v":""},{"$f":"IF('1. Ordersheet'!I1208=\"\",\"\",'1. Ordersheet'!I1208)","v":""},{"$f":"IF('1. Ordersheet'!J1208=\"\",\"\",'1. Ordersheet'!J1208)","v":""},{"$f":"IF('1. Ordersheet'!K1208=\"\",\"\",'1. Ordersheet'!K1208)","v":""},{"$f":"IF('1. Ordersheet'!L1208=\"\",\"\",'1. Ordersheet'!L1208)","v":""},{"$f":"IF('1. Ordersheet'!M1208=\"\",\"\",'1. Ordersheet'!M1208)","v":""},{"$f":"IF('1. Ordersheet'!N1208=\"\",\"\",'1. Ordersheet'!N1208)","v":""},{"$f":"IF('1. Ordersheet'!O1208=\"\",\"\",'1. Ordersheet'!O1208)","v":{"$error":"#N/A"}},{"$f":"IF('1. Ordersheet'!P1208=\"\",\"\",'1. Ordersheet'!P1208)","v":{"$error":"#N/A"}},{"$f":"IF('1. Ordersheet'!Q1208=\"\",\"\",'1. Ordersheet'!Q1208)","v":""},{"$f":"IF('1. Ordersheet'!R1208=\"\",\"\",'1. Ordersheet'!R1208)","v":""},{"$f":"IF('1. Ordersheet'!S1208=\"\",\"\",'1. Ordersheet'!S1208)","v":""},{"$f":"IF('1. Ordersheet'!V1208=\"\",\"\",'1. Ordersheet'!V1208)","v":""},{"$f":"IF('1. Ordersheet'!W1208=\"\",\"\",'1. Ordersheet'!W1208)","v":""},{"$f":"IF('1. Ordersheet'!X1208=\"\",\"\",'1. Ordersheet'!X1208)","v":""},{"$f":"IF('1. Ordersheet'!Y1208=\"\",\"\",'1. Ordersheet'!Y1208)","v":""},{"$f":"IF('1. Ordersheet'!Z1208=\"\",\"\",'1. Ordersheet'!Z1208)","v":""},{"$f":"IF('1. Ordersheet'!AA1208=\"\",\"\",'1. Ordersheet'!AA1208)","v":""},null,{"$f":"IF('1. Ordersheet'!AS1208=\"\",\"\",'1. Ordersheet'!AS1208)","v":""},{"$f":"IF('1. Ordersheet'!AT1208=\"\",\"\",'1. Ordersheet'!AT1208)","v":""},null,null,null,null,null,null,null,{"$f":"IF('1. Ordersheet'!AX1208=\"\",\"\",'1. Ordersheet'!AX1208)","v":""},{"$f":"IF('1. Ordersheet'!AY1208=\"\",\"\",'1. Ordersheet'!AY1208)","v":""},{"$f":"IF('1. Ordersheet'!AZ1208=\"\",\"\",'1. Ordersheet'!AZ1208)","v":""},{"$f":"IF('1. Ordersheet'!BA1208=\"\",\"\",'1. Ordersheet'!BA1208)","v":""},{"$f":"IF('1. Ordersheet'!BC1208=\"\",\"\",'1. Ordersheet'!BC1208)","v":""},{"$f":"IF('1. Ordersheet'!BD1208=\"\",\"\",'1. Ordersheet'!BD1208)","v":""},{"$f":"IF('1. Ordersheet'!BE1208=\"\",\"\",'1. Ordersheet'!BE1208)","v":""},{"$f":"IF('1. Ordersheet'!BF1208=\"\",\"\",'1. Ordersheet'!BF1208)","v":""},{"$f":"IF('1. Ordersheet'!BG1208=\"\",\"\",'1. Ordersheet'!BG1208)","v":"ZWO"},{"$f":"IF('1. Ordersheet'!BH1208=\"\",\"\",'1. Ordersheet'!BH1208)","v":""},{"$f":"IF('1. Ordersheet'!BI1208=\"\",\"\",'1. Ordersheet'!BI1208)","v":""},{"$f":"IF('1. Ordersheet'!BJ1208=\"\",\"\",'1. Ordersheet'!BJ1208)","v":""},{"$f":"IF('1. Ordersheet'!BK1208=\"\",\"\",'1. Ordersheet'!BK1208)","v":""},{"$f":"IF('1. Ordersheet'!BL1208=\"\",\"\",'1. Ordersheet'!BL1208)","v":""}]
[{"$f":"IF('1. Ordersheet'!F1209=\"\",\"\",'1. Ordersheet'!F1209)","v":""},{"$f":"IF('1. Ordersheet'!G1209=\"\",\"\",'1. Ordersheet'!G1209)","v":""},{"$f":"IF('1. Ordersheet'!H1209=\"\",\"\",'1. Ordersheet'!H1209)","v":""},{"$f":"IF('1. Ordersheet'!I1209=\"\",\"\",'1. Ordersheet'!I1209)","v":""},{"$f":"IF('1. Ordersheet'!J1209=\"\",\"\",'1. Ordersheet'!J1209)","v":""},{"$f":"IF('1. Ordersheet'!K1209=\"\",\"\",'1. Ordersheet'!K1209)","v":""},{"$f":"IF('1. Ordersheet'!L1209=\"\",\"\",'1. Ordersheet'!L1209)","v":""},{"$f":"IF('1. Ordersheet'!M1209=\"\",\"\",'1. Ordersheet'!M1209)","v":""},{"$f":"IF('1. Ordersheet'!N1209=\"\",\"\",'1. Ordersheet'!N1209)","v":""},{"$f":"IF('1. Ordersheet'!O1209=\"\",\"\",'1. Ordersheet'!O1209)","v":{"$error":"#N/A"}},{"$f":"IF('1. Ordersheet'!P1209=\"\",\"\",'1. Ordersheet'!P1209)","v":{"$error":"#N/A"}},{"$f":"IF('1. Ordersheet'!Q1209=\"\",\"\",'1. Ordersheet'!Q1209)","v":""},{"$f":"IF('1. Ordersheet'!R1209=\"\",\"\",'1. Ordersheet'!R1209)","v":""},{"$f":"IF('1. Ordersheet'!S1209=\"\",\"\",'1. Ordersheet'!S1209)","v":""},{"$f":"IF('1. Ordersheet'!V1209=\"\",\"\",'1. Ordersheet'!V1209)","v":""},{"$f":"IF('1. Ordersheet'!W1209=\"\",\"\",'1. Ordersheet'!W1209)","v":""},{"$f":"IF('1. Ordersheet'!X1209=\"\",\"\",'1. Ordersheet'!X1209)","v":""},{"$f":"IF('1. Ordersheet'!Y1209=\"\",\"\",'1. Ordersheet'!Y1209)","v":""},{"$f":"IF('1. Ordersheet'!Z1209=\"\",\"\",'1. Ordersheet'!Z1209)","v":""},{"$f":"IF('1. Ordersheet'!AA1209=\"\",\"\",'1. Ordersheet'!AA1209)","v":""},null,{"$f":"IF('1. Ordersheet'!AS1209=\"\",\"\",'1. Ordersheet'!AS1209)","v":""},{"$f":"IF('1. Ordersheet'!AT1209=\"\",\"\",'1. Ordersheet'!AT1209)","v":""},null,null,null,null,null,null,null,{"$f":"IF('1. Ordersheet'!AX1209=\"\",\"\",'1. Ordersheet'!AX1209)","v":""},{"$f":"IF('1. Ordersheet'!AY1209=\"\",\"\",'1. Ordersheet'!AY1209)","v":""},{"$f":"IF('1. Ordersheet'!AZ1209=\"\",\"\",'1. Ordersheet'!AZ1209)","v":""},{"$f":"IF('1. Ordersheet'!BA1209=\"\",\"\",'1. Ordersheet'!BA1209)","v":""},{"$f":"IF('1. Ordersheet'!BC1209=\"\",\"\",'1. Ordersheet'!BC1209)","v":""},{"$f":"IF('1. Ordersheet'!BD1209=\"\",\"\",'1. Ordersheet'!BD1209)","v":""},{"$f":"IF('1. Ordersheet'!BE1209=\"\",\"\",'1. Ordersheet'!BE1209)","v":""},{"$f":"IF('1. Ordersheet'!BF1209=\"\",\"\",'1. Ordersheet'!BF1209)","v":""},{"$f":"IF('1. Ordersheet'!BG1209=\"\",\"\",'1. Ordersheet'!BG1209)","v":"ZWO"},{"$f":"IF('1. Ordersheet'!BH1209=\"\",\"\",'1. Ordersheet'!BH1209)","v":""},{"$f":"IF('1. Ordersheet'!BI1209=\"\",\"\",'1. Ordersheet'!BI1209)","v":""},{"$f":"IF('1. Ordersheet'!BJ1209=\"\",\"\",'1. Ordersheet'!BJ1209)","v":""},{"$f":"IF('1. Ordersheet'!BK1209=\"\",\"\",'1. Ordersheet'!BK1209)","v":""},{"$f":"IF('1. Ordersheet'!BL1209=\"\",\"\",'1. Ordersheet'!BL1209)","v":""}]
[{"$f":"IF('1. Ordersheet'!F1210=\"\",\"\",'1. Ordersheet'!F1210)","v":""},{"$f":"IF('1. Ordersheet'!G1210=\"\",\"\",'1. Ordersheet'!G1210)","v":""},{"$f":"IF('1. Ordersheet'!H1210=\"\",\"\",'1. Ordersheet'!H1210)","v":""},{"$f":"IF('1. Ordersheet'!I1210=\"\",\"\",'1. Ordersheet'!I1210)","v":""},{"$f":"IF('1. Ordersheet'!J1210=\"\",\"\",'1. Ordersheet'!J1210)","v":""},{"$f":"IF('1. Ordersheet'!K1210=\"\",\"\",'1. Ordersheet'!K1210)","v":""},{"$f":"IF('1. Ordersheet'!L1210=\"\",\"\",'1. Ordersheet'!L1210)","v":""},{"$f":"IF('1. Ordersheet'!M1210=\"\",\"\",'1. Ordersheet'!M1210)","v":""},{"$f":"IF('1. Ordersheet'!N1210=\"\",\"\",'1. Ordersheet'!N1210)","v":""},{"$f":"IF('1. Ordersheet'!O1210=\"\",\"\",'1. Ordersheet'!O1210)","v":{"$error":"#N/A"}},{"$f":"IF('1. Ordersheet'!P1210=\"\",\"\",'1. Ordersheet'!P1210)","v":{"$error":"#N/A"}},{"$f":"IF('1. Ordersheet'!Q1210=\"\",\"\",'1. Ordersheet'!Q1210)","v":""},{"$f":"IF('1. Ordersheet'!R1210=\"\",\"\",'1. Ordersheet'!R1210)","v":""},{"$f":"IF('1. Ordersheet'!S1210=\"\",\"\",'1. Ordersheet'!S1210)","v":""},{"$f":"IF('1. Ordersheet'!V1210=\"\",\"\",'1. Ordersheet'!V1210)","v":""},{"$f":"IF('1. Ordersheet'!W1210=\"\",\"\",'1. Ordersheet'!W1210)","v":""},{"$f":"IF('1. Ordersheet'!X1210=\"\",\"\",'1. Ordersheet'!X1210)","v":""},{"$f":"IF('1. Ordersheet'!Y1210=\"\",\"\",'1. Ordersheet'!Y1210)","v":""},{"$f":"IF('1. Ordersheet'!Z1210=\"\",\"\",'1. Ordersheet'!Z1210)","v":""},{"$f":"IF('1. Ordersheet'!AA1210=\"\",\"\",'1. Ordersheet'!AA1210)","v":""},null,{"$f":"IF('1. Ordersheet'!AS1210=\"\",\"\",'1. Ordersheet'!AS1210)","v":""},{"$f":"IF('1. Ordersheet'!AT1210=\"\",\"\",'1. Ordersheet'!AT1210)","v":""},null,null,null,null,null,null,null,{"$f":"IF('1. Ordersheet'!AX1210=\"\",\"\",'1. Ordersheet'!AX1210)","v":""},{"$f":"IF('1. Ordersheet'!AY1210=\"\",\"\",'1. Ordersheet'!AY1210)","v":""},{"$f":"IF('1. Ordersheet'!AZ1210=\"\",\"\",'1. Ordersheet'!AZ1210)","v":""},{"$f":"IF('1. Ordersheet'!BA1210=\"\",\"\",'1. Ordersheet'!BA1210)","v":""},{"$f":"IF('1. Ordersheet'!BC1210=\"\",\"\",'1. Ordersheet'!BC1210)","v":""},{"$f":"IF('1. Ordersheet'!BD1210=\"\",\"\",'1. Ordersheet'!BD1210)","v":""},{"$f":"IF('1. Ordersheet'!BE1210=\"\",\"\",'1. Ordersheet'!BE1210)","v":""},{"$f":"IF('1. Ordersheet'!BF1210=\"\",\"\",'1. Ordersheet'!BF1210)","v":""},{"$f":"IF('1. Ordersheet'!BG1210=\"\",\"\",'1. Ordersheet'!BG1210)","v":"ZWO"},{"$f":"IF('1. Ordersheet'!BH1210=\"\",\"\",'1. Ordersheet'!BH1210)","v":""},{"$f":"IF('1. Ordersheet'!BI1210=\"\",\"\",'1. Ordersheet'!BI1210)","v":""},{"$f":"IF('1. Ordersheet'!BJ1210=\"\",\"\",'1. Ordersheet'!BJ1210)","v":""},{"$f":"IF('1. Ordersheet'!BK1210=\"\",\"\",'1. Ordersheet'!BK1210)","v":""},{"$f":"IF('1. Ordersheet'!BL1210=\"\",\"\",'1. Ordersheet'!BL1210)","v":""}]
[{"$f":"IF('1. Ordersheet'!F1211=\"\",\"\",'1. Ordersheet'!F1211)","v":""},{"$f":"IF('1. Ordersheet'!G1211=\"\",\"\",'1. Ordersheet'!G1211)","v":""},{"$f":"IF('1. Ordersheet'!H1211=\"\",\"\",'1. Ordersheet'!H1211)","v":""},{"$f":"IF('1. Ordersheet'!I1211=\"\",\"\",'1. Ordersheet'!I1211)","v":""},{"$f":"IF('1. Ordersheet'!J1211=\"\",\"\",'1. Ordersheet'!J1211)","v":""},{"$f":"IF('1. Ordersheet'!K1211=\"\",\"\",'1. Ordersheet'!K1211)","v":""},{"$f":"IF('1. Ordersheet'!L1211=\"\",\"\",'1. Ordersheet'!L1211)","v":""},{"$f":"IF('1. Ordersheet'!M1211=\"\",\"\",'1. Ordersheet'!M1211)","v":""},{"$f":"IF('1. Ordersheet'!N1211=\"\",\"\",'1. Ordersheet'!N1211)","v":""},{"$f":"IF('1. Ordersheet'!O1211=\"\",\"\",'1. Ordersheet'!O1211)","v":{"$error":"#N/A"}},{"$f":"IF('1. Ordersheet'!P1211=\"\",\"\",'1. Ordersheet'!P1211)","v":{"$error":"#N/A"}},{"$f":"IF('1. Ordersheet'!Q1211=\"\",\"\",'1. Ordersheet'!Q1211)","v":""},{"$f":"IF('1. Ordersheet'!R1211=\"\",\"\",'1. Ordersheet'!R1211)","v":""},{"$f":"IF('1. Ordersheet'!S1211=\"\",\"\",'1. Ordersheet'!S1211)","v":""},{"$f":"IF('1. Ordersheet'!V1211=\"\",\"\",'1. Ordersheet'!V1211)","v":""},{"$f":"IF('1. Ordersheet'!W1211=\"\",\"\",'1. Ordersheet'!W1211)","v":""},{"$f":"IF('1. Ordersheet'!X1211=\"\",\"\",'1. Ordersheet'!X1211)","v":""},{"$f":"IF('1. Ordersheet'!Y1211=\"\",\"\",'1. Ordersheet'!Y1211)","v":""},{"$f":"IF('1. Ordersheet'!Z1211=\"\",\"\",'1. Ordersheet'!Z1211)","v":""},{"$f":"IF('1. Ordersheet'!AA1211=\"\",\"\",'1. Ordersheet'!AA1211)","v":""},null,{"$f":"IF('1. Ordersheet'!AS1211=\"\",\"\",'1. Ordersheet'!AS1211)","v":""},{"$f":"IF('1. Ordersheet'!AT1211=\"\",\"\",'1. Ordersheet'!AT1211)","v":""},null,null,null,null,null,null,null,{"$f":"IF('1. Ordersheet'!AX1211=\"\",\"\",'1. Ordersheet'!AX1211)","v":""},{"$f":"IF('1. Ordersheet'!AY1211=\"\",\"\",'1. Ordersheet'!AY1211)","v":""},{"$f":"IF('1. Ordersheet'!AZ1211=\"\",\"\",'1. Ordersheet'!AZ1211)","v":""},{"$f":"IF('1. Ordersheet'!BA1211=\"\",\"\",'1. Ordersheet'!BA1211)","v":""},{"$f":"IF('1. Ordersheet'!BC1211=\"\",\"\",'1. Ordersheet'!BC1211)","v":""},{"$f":"IF('1. Ordersheet'!BD1211=\"\",\"\",'1. Ordersheet'!BD1211)","v":""},{"$f":"IF('1. Ordersheet'!BE1211=\"\",\"\",'1. Ordersheet'!BE1211)","v":""},{"$f":"IF('1. Ordersheet'!BF1211=\"\",\"\",'1. Ordersheet'!BF1211)","v":""},{"$f":"IF('1. Ordersheet'!BG1211=\"\",\"\",'1. Ordersheet'!BG1211)","v":"ZWO"},{"$f":"IF('1. Ordersheet'!BH1211=\"\",\"\",'1. Ordersheet'!BH1211)","v":""},{"$f":"IF('1. Ordersheet'!BI1211=\"\",\"\",'1. Ordersheet'!BI1211)","v":""},{"$f":"IF('1. Ordersheet'!BJ1211=\"\",\"\",'1. Ordersheet'!BJ1211)","v":""},{"$f":"IF('1. Ordersheet'!BK1211=\"\",\"\",'1. Ordersheet'!BK1211)","v":""},{"$f":"IF('1. Ordersheet'!BL1211=\"\",\"\",'1. Ordersheet'!BL1211)","v":""}]
[{"$f":"IF('1. Ordersheet'!F1212=\"\",\"\",'1. Ordersheet'!F1212)","v":""},{"$f":"IF('1. Ordersheet'!G1212=\"\",\"\",'1. Ordersheet'!G1212)","v":""},{"$f":"IF('1. Ordersheet'!H1212=\"\",\"\",'1. Ordersheet'!H1212)","v":""},{"$f":"IF('1. Ordersheet'!I1212=\"\",\"\",'1. Ordersheet'!I1212)","v":""},{"$f":"IF('1. Ordersheet'!J1212=\"\",\"\",'1. Ordersheet'!J1212)","v":""},{"$f":"IF('1. Ordersheet'!K1212=\"\",\"\",'1. Ordersheet'!K1212)","v":""},{"$f":"IF('1. Ordersheet'!L1212=\"\",\"\",'1. Ordersheet'!L1212)","v":""},{"$f":"IF('1. Ordersheet'!M1212=\"\",\"\",'1. Ordersheet'!M1212)","v":""},{"$f":"IF('1. Ordersheet'!N1212=\"\",\"\",'1. Ordersheet'!N1212)","v":""},{"$f":"IF('1. Ordersheet'!O1212=\"\",\"\",'1. Ordersheet'!O1212)","v":{"$error":"#N/A"}},{"$f":"IF('1. Ordersheet'!P1212=\"\",\"\",'1. Ordersheet'!P1212)","v":{"$error":"#N/A"}},{"$f":"IF('1. Ordersheet'!Q1212=\"\",\"\",'1. Ordersheet'!Q1212)","v":""},{"$f":"IF('1. Ordersheet'!R1212=\"\",\"\",'1. Ordersheet'!R1212)","v":""},{"$f":"IF('1. Ordersheet'!S1212=\"\",\"\",'1. Ordersheet'!S1212)","v":""},{"$f":"IF('1. Ordersheet'!V1212=\"\",\"\",'1. Ordersheet'!V1212)","v":""},{"$f":"IF('1. Ordersheet'!W1212=\"\",\"\",'1. Ordersheet'!W1212)","v":""},{"$f":"IF('1. Ordersheet'!X1212=\"\",\"\",'1. Ordersheet'!X1212)","v":""},{"$f":"IF('1. Ordersheet'!Y1212=\"\",\"\",'1. Ordersheet'!Y1212)","v":""},{"$f":"IF('1. Ordersheet'!Z1212=\"\",\"\",'1. Ordersheet'!Z1212)","v":""},{"$f":"IF('1. Ordersheet'!AA1212=\"\",\"\",'1. Ordersheet'!AA1212)","v":""},null,{"$f":"IF('1. Ordersheet'!AS1212=\"\",\"\",'1. Ordersheet'!AS1212)","v":""},{"$f":"IF('1. Ordersheet'!AT1212=\"\",\"\",'1. Ordersheet'!AT1212)","v":""},null,null,null,null,null,null,null,{"$f":"IF('1. Ordersheet'!AX1212=\"\",\"\",'1. Ordersheet'!AX1212)","v":""},{"$f":"IF('1. Ordersheet'!AY1212=\"\",\"\",'1. Ordersheet'!AY1212)","v":""},{"$f":"IF('1. Ordersheet'!AZ1212=\"\",\"\",'1. Ordersheet'!AZ1212)","v":""},{"$f":"IF('1. Ordersheet'!BA1212=\"\",\"\",'1. Ordersheet'!BA1212)","v":""},{"$f":"IF('1. Ordersheet'!BC1212=\"\",\"\",'1. Ordersheet'!BC1212)","v":""},{"$f":"IF('1. Ordersheet'!BD1212=\"\",\"\",'1. Ordersheet'!BD1212)","v":""},{"$f":"IF('1. Ordersheet'!BE1212=\"\",\"\",'1. Ordersheet'!BE1212)","v":""},{"$f":"IF('1. Ordersheet'!BF1212=\"\",\"\",'1. Ordersheet'!BF1212)","v":""},{"$f":"IF('1. Ordersheet'!BG1212=\"\",\"\",'1. Ordersheet'!BG1212)","v":"ZWO"},{"$f":"IF('1. Ordersheet'!BH1212=\"\",\"\",'1. Ordersheet'!BH1212)","v":""},{"$f":"IF('1. Ordersheet'!BI1212=\"\",\"\",'1. Ordersheet'!BI1212)","v":""},{"$f":"IF('1. Ordersheet'!BJ1212=\"\",\"\",'1. Ordersheet'!BJ1212)","v":""},{"$f":"IF('1. Ordersheet'!BK1212=\"\",\"\",'1. Ordersheet'!BK1212)","v":""},{"$f":"IF('1. Ordersheet'!BL1212=\"\",\"\",'1. Ordersheet'!BL1212)","v":""}]
[{"$f":"IF('1. Ordersheet'!F1213=\"\",\"\",'1. Ordersheet'!F1213)","v":""},{"$f":"IF('1. Ordersheet'!G1213=\"\",\"\",'1. Ordersheet'!G1213)","v":""},{"$f":"IF('1. Ordersheet'!H1213=\"\",\"\",'1. Ordersheet'!H1213)","v":""},{"$f":"IF('1. Ordersheet'!I1213=\"\",\"\",'1. Ordersheet'!I1213)","v":""},{"$f":"IF('1. Ordersheet'!J1213=\"\",\"\",'1. Ordersheet'!J1213)","v":""},{"$f":"IF('1. Ordersheet'!K1213=\"\",\"\",'1. Ordersheet'!K1213)","v":""},{"$f":"IF('1. Ordersheet'!L1213=\"\",\"\",'1. Ordersheet'!L1213)","v":""},{"$f":"IF('1. Ordersheet'!M1213=\"\",\"\",'1. Ordersheet'!M1213)","v":""},{"$f":"IF('1. Ordersheet'!N1213=\"\",\"\",'1. Ordersheet'!N1213)","v":""},{"$f":"IF('1. Ordersheet'!O1213=\"\",\"\",'1. Ordersheet'!O1213)","v":{"$error":"#N/A"}},{"$f":"IF('1. Ordersheet'!P1213=\"\",\"\",'1. Ordersheet'!P1213)","v":{"$error":"#N/A"}},{"$f":"IF('1. Ordersheet'!Q1213=\"\",\"\",'1. Ordersheet'!Q1213)","v":""},{"$f":"IF('1. Ordersheet'!R1213=\"\",\"\",'1. Ordersheet'!R1213)","v":""},{"$f":"IF('1. Ordersheet'!S1213=\"\",\"\",'1. Ordersheet'!S1213)","v":""},{"$f":"IF('1. Ordersheet'!V1213=\"\",\"\",'1. Ordersheet'!V1213)","v":""},{"$f":"IF('1. Ordersheet'!W1213=\"\",\"\",'1. Ordersheet'!W1213)","v":""},{"$f":"IF('1. Ordersheet'!X1213=\"\",\"\",'1. Ordersheet'!X1213)","v":""},{"$f":"IF('1. Ordersheet'!Y1213=\"\",\"\",'1. Ordersheet'!Y1213)","v":""},{"$f":"IF('1. Ordersheet'!Z1213=\"\",\"\",'1. Ordersheet'!Z1213)","v":""},{"$f":"IF('1. Ordersheet'!AA1213=\"\",\"\",'1. Ordersheet'!AA1213)","v":""},null,{"$f":"IF('1. Ordersheet'!AS1213=\"\",\"\",'1. Ordersheet'!AS1213)","v":""},{"$f":"IF('1. Ordersheet'!AT1213=\"\",\"\",'1. Ordersheet'!AT1213)","v":""},null,null,null,null,null,null,null,{"$f":"IF('1. Ordersheet'!AX1213=\"\",\"\",'1. Ordersheet'!AX1213)","v":""},{"$f":"IF('1. Ordersheet'!AY1213=\"\",\"\",'1. Ordersheet'!AY1213)","v":""},{"$f":"IF('1. Ordersheet'!AZ1213=\"\",\"\",'1. Ordersheet'!AZ1213)","v":""},{"$f":"IF('1. Ordersheet'!BA1213=\"\",\"\",'1. Ordersheet'!BA1213)","v":""},{"$f":"IF('1. Ordersheet'!BC1213=\"\",\"\",'1. Ordersheet'!BC1213)","v":""},{"$f":"IF('1. Ordersheet'!BD1213=\"\",\"\",'1. Ordersheet'!BD1213)","v":""},{"$f":"IF('1. Ordersheet'!BE1213=\"\",\"\",'1. Ordersheet'!BE1213)","v":""},{"$f":"IF('1. Ordersheet'!BF1213=\"\",\"\",'1. Ordersheet'!BF1213)","v":""},{"$f":"IF('1. Ordersheet'!BG1213=\"\",\"\",'1. Ordersheet'!BG1213)","v":"ZWO"},{"$f":"IF('1. Ordersheet'!BH1213=\"\",\"\",'1. Ordersheet'!BH1213)","v":""},{"$f":"IF('1. Ordersheet'!BI1213=\"\",\"\",'1. Ordersheet'!BI1213)","v":""},{"$f":"IF('1. Ordersheet'!BJ1213=\"\",\"\",'1. Ordersheet'!BJ1213)","v":""},{"$f":"IF('1. Ordersheet'!BK1213=\"\",\"\",'1. Ordersheet'!BK1213)","v":""},{"$f":"IF('1. Ordersheet'!BL1213=\"\",\"\",'1. Ordersheet'!BL1213)","v":""}]
[{"$f":"IF('1. Ordersheet'!F1214=\"\",\"\",'1. Ordersheet'!F1214)","v":""},{"$f":"IF('1. Ordersheet'!G1214=\"\",\"\",'1. Ordersheet'!G1214)","v":""},{"$f":"IF('1. Ordersheet'!H1214=\"\",\"\",'1. Ordersheet'!H1214)","v":""},{"$f":"IF('1. Ordersheet'!I1214=\"\",\"\",'1. Ordersheet'!I1214)","v":""},{"$f":"IF('1. Ordersheet'!J1214=\"\",\"\",'1. Ordersheet'!J1214)","v":""},{"$f":"IF('1. Ordersheet'!K1214=\"\",\"\",'1. Ordersheet'!K1214)","v":""},{"$f":"IF('1. Ordersheet'!L1214=\"\",\"\",'1. Ordersheet'!L1214)","v":""},{"$f":"IF('1. Ordersheet'!M1214=\"\",\"\",'1. Ordersheet'!M1214)","v":""},{"$f":"IF('1. Ordersheet'!N1214=\"\",\"\",'1. Ordersheet'!N1214)","v":""},{"$f":"IF('1. Ordersheet'!O1214=\"\",\"\",'1. Ordersheet'!O1214)","v":{"$error":"#N/A"}},{"$f":"IF('1. Ordersheet'!P1214=\"\",\"\",'1. Ordersheet'!P1214)","v":{"$error":"#N/A"}},{"$f":"IF('1. Ordersheet'!Q1214=\"\",\"\",'1. Ordersheet'!Q1214)","v":""},{"$f":"IF('1. Ordersheet'!R1214=\"\",\"\",'1. Ordersheet'!R1214)","v":""},{"$f":"IF('1. Ordersheet'!S1214=\"\",\"\",'1. Ordersheet'!S1214)","v":""},{"$f":"IF('1. Ordersheet'!V1214=\"\",\"\",'1. Ordersheet'!V1214)","v":""},{"$f":"IF('1. Ordersheet'!W1214=\"\",\"\",'1. Ordersheet'!W1214)","v":""},{"$f":"IF('1. Ordersheet'!X1214=\"\",\"\",'1. Ordersheet'!X1214)","v":""},{"$f":"IF('1. Ordersheet'!Y1214=\"\",\"\",'1. Ordersheet'!Y1214)","v":""},{"$f":"IF('1. Ordersheet'!Z1214=\"\",\"\",'1. Ordersheet'!Z1214)","v":""},{"$f":"IF('1. Ordersheet'!AA1214=\"\",\"\",'1. Ordersheet'!AA1214)","v":""},null,{"$f":"IF('1. Ordersheet'!AS1214=\"\",\"\",'1. Ordersheet'!AS1214)","v":""},{"$f":"IF('1. Ordersheet'!AT1214=\"\",\"\",'1. Ordersheet'!AT1214)","v":""},null,null,null,null,null,null,null,{"$f":"IF('1. Ordersheet'!AX1214=\"\",\"\",'1. Ordersheet'!AX1214)","v":""},{"$f":"IF('1. Ordersheet'!AY1214=\"\",\"\",'1. Ordersheet'!AY1214)","v":""},{"$f":"IF('1. Ordersheet'!AZ1214=\"\",\"\",'1. Ordersheet'!AZ1214)","v":""},{"$f":"IF('1. Ordersheet'!BA1214=\"\",\"\",'1. Ordersheet'!BA1214)","v":""},{"$f":"IF('1. Ordersheet'!BC1214=\"\",\"\",'1. Ordersheet'!BC1214)","v":""},{"$f":"IF('1. Ordersheet'!BD1214=\"\",\"\",'1. Ordersheet'!BD1214)","v":""},{"$f":"IF('1. Ordersheet'!BE1214=\"\",\"\",'1. Ordersheet'!BE1214)","v":""},{"$f":"IF('1. Ordersheet'!BF1214=\"\",\"\",'1. Ordersheet'!BF1214)","v":""},{"$f":"IF('1. Ordersheet'!BG1214=\"\",\"\",'1. Ordersheet'!BG1214)","v":"ZWO"},{"$f":"IF('1. Ordersheet'!BH1214=\"\",\"\",'1. Ordersheet'!BH1214)","v":""},{"$f":"IF('1. Ordersheet'!BI1214=\"\",\"\",'1. Ordersheet'!BI1214)","v":""},{"$f":"IF('1. Ordersheet'!BJ1214=\"\",\"\",'1. Ordersheet'!BJ1214)","v":""},{"$f":"IF('1. Ordersheet'!BK1214=\"\",\"\",'1. Ordersheet'!BK1214)","v":""},{"$f":"IF('1. Ordersheet'!BL1214=\"\",\"\",'1. Ordersheet'!BL1214)","v":""}]
[{"$f":"IF('1. Ordersheet'!F1215=\"\",\"\",'1. Ordersheet'!F1215)","v":""},{"$f":"IF('1. Ordersheet'!G1215=\"\",\"\",'1. Ordersheet'!G1215)","v":""},{"$f":"IF('1. Ordersheet'!H1215=\"\",\"\",'1. Ordersheet'!H1215)","v":""},{"$f":"IF('1. Ordersheet'!I1215=\"\",\"\",'1. Ordersheet'!I1215)","v":""},{"$f":"IF('1. Ordersheet'!J1215=\"\",\"\",'1. Ordersheet'!J1215)","v":""},{"$f":"IF('1. Ordersheet'!K1215=\"\",\"\",'1. Ordersheet'!K1215)","v":""},{"$f":"IF('1. Ordersheet'!L1215=\"\",\"\",'1. Ordersheet'!L1215)","v":""},{"$f":"IF('1. Ordersheet'!M1215=\"\",\"\",'1. Ordersheet'!M1215)","v":""},{"$f":"IF('1. Ordersheet'!N1215=\"\",\"\",'1. Ordersheet'!N1215)","v":""},{"$f":"IF('1. Ordersheet'!O1215=\"\",\"\",'1. Ordersheet'!O1215)","v":{"$error":"#N/A"}},{"$f":"IF('1. Ordersheet'!P1215=\"\",\"\",'1. Ordersheet'!P1215)","v":{"$error":"#N/A"}},{"$f":"IF('1. Ordersheet'!Q1215=\"\",\"\",'1. Ordersheet'!Q1215)","v":""},{"$f":"IF('1. Ordersheet'!R1215=\"\",\"\",'1. Ordersheet'!R1215)","v":""},{"$f":"IF('1. Ordersheet'!S1215=\"\",\"\",'1. Ordersheet'!S1215)","v":""},{"$f":"IF('1. Ordersheet'!V1215=\"\",\"\",'1. Ordersheet'!V1215)","v":""},{"$f":"IF('1. Ordersheet'!W1215=\"\",\"\",'1. Ordersheet'!W1215)","v":""},{"$f":"IF('1. Ordersheet'!X1215=\"\",\"\",'1. Ordersheet'!X1215)","v":""},{"$f":"IF('1. Ordersheet'!Y1215=\"\",\"\",'1. Ordersheet'!Y1215)","v":""},{"$f":"IF('1. Ordersheet'!Z1215=\"\",\"\",'1. Ordersheet'!Z1215)","v":""},{"$f":"IF('1. Ordersheet'!AA1215=\"\",\"\",'1. Ordersheet'!AA1215)","v":""},null,{"$f":"IF('1. Ordersheet'!AS1215=\"\",\"\",'1. Ordersheet'!AS1215)","v":""},{"$f":"IF('1. Ordersheet'!AT1215=\"\",\"\",'1. Ordersheet'!AT1215)","v":""},null,null,null,null,null,null,null,{"$f":"IF('1. Ordersheet'!AX1215=\"\",\"\",'1. Ordersheet'!AX1215)","v":""},{"$f":"IF('1. Ordersheet'!AY1215=\"\",\"\",'1. Ordersheet'!AY1215)","v":""},{"$f":"IF('1. Ordersheet'!AZ1215=\"\",\"\",'1. Ordersheet'!AZ1215)","v":""},{"$f":"IF('1. Ordersheet'!BA1215=\"\",\"\",'1. Ordersheet'!BA1215)","v":""},{"$f":"IF('1. Ordersheet'!BC1215=\"\",\"\",'1. Ordersheet'!BC1215)","v":""},{"$f":"IF('1. Ordersheet'!BD1215=\"\",\"\",'1. Ordersheet'!BD1215)","v":""},{"$f":"IF('1. Ordersheet'!BE1215=\"\",\"\",'1. Ordersheet'!BE1215)","v":""},{"$f":"IF('1. Ordersheet'!BF1215=\"\",\"\",'1. Ordersheet'!BF1215)","v":""},{"$f":"IF('1. Ordersheet'!BG1215=\"\",\"\",'1. Ordersheet'!BG1215)","v":"ZWO"},{"$f":"IF('1. Ordersheet'!BH1215=\"\",\"\",'1. Ordersheet'!BH1215)","v":""},{"$f":"IF('1. Ordersheet'!BI1215=\"\",\"\",'1. Ordersheet'!BI1215)","v":""},{"$f":"IF('1. Ordersheet'!BJ1215=\"\",\"\",'1. Ordersheet'!BJ1215)","v":""},{"$f":"IF('1. Ordersheet'!BK1215=\"\",\"\",'1. Ordersheet'!BK1215)","v":""},{"$f":"IF('1. Ordersheet'!BL1215=\"\",\"\",'1. Ordersheet'!BL1215)","v":""}]
[{"$f":"IF('1. Ordersheet'!F1216=\"\",\"\",'1. Ordersheet'!F1216)","v":""},{"$f":"IF('1. Ordersheet'!G1216=\"\",\"\",'1. Ordersheet'!G1216)","v":""},{"$f":"IF('1. Ordersheet'!H1216=\"\",\"\",'1. Ordersheet'!H1216)","v":""},{"$f":"IF('1. Ordersheet'!I1216=\"\",\"\",'1. Ordersheet'!I1216)","v":""},{"$f":"IF('1. Ordersheet'!J1216=\"\",\"\",'1. Ordersheet'!J1216)","v":""},{"$f":"IF('1. Ordersheet'!K1216=\"\",\"\",'1. Ordersheet'!K1216)","v":""},{"$f":"IF('1. Ordersheet'!L1216=\"\",\"\",'1. Ordersheet'!L1216)","v":""},{"$f":"IF('1. Ordersheet'!M1216=\"\",\"\",'1. Ordersheet'!M1216)","v":""},{"$f":"IF('1. Ordersheet'!N1216=\"\",\"\",'1. Ordersheet'!N1216)","v":""},{"$f":"IF('1. Ordersheet'!O1216=\"\",\"\",'1. Ordersheet'!O1216)","v":{"$error":"#N/A"}},{"$f":"IF('1. Ordersheet'!P1216=\"\",\"\",'1. Ordersheet'!P1216)","v":{"$error":"#N/A"}},{"$f":"IF('1. Ordersheet'!Q1216=\"\",\"\",'1. Ordersheet'!Q1216)","v":""},{"$f":"IF('1. Ordersheet'!R1216=\"\",\"\",'1. Ordersheet'!R1216)","v":""},{"$f":"IF('1. Ordersheet'!S1216=\"\",\"\",'1. Ordersheet'!S1216)","v":""},{"$f":"IF('1. Ordersheet'!V1216=\"\",\"\",'1. Ordersheet'!V1216)","v":""},{"$f":"IF('1. Ordersheet'!W1216=\"\",\"\",'1. Ordersheet'!W1216)","v":""},{"$f":"IF('1. Ordersheet'!X1216=\"\",\"\",'1. Ordersheet'!X1216)","v":""},{"$f":"IF('1. Ordersheet'!Y1216=\"\",\"\",'1. Ordersheet'!Y1216)","v":""},{"$f":"IF('1. Ordersheet'!Z1216=\"\",\"\",'1. Ordersheet'!Z1216)","v":""},{"$f":"IF('1. Ordersheet'!AA1216=\"\",\"\",'1. Ordersheet'!AA1216)","v":""},null,{"$f":"IF('1. Ordersheet'!AS1216=\"\",\"\",'1. Ordersheet'!AS1216)","v":""},{"$f":"IF('1. Ordersheet'!AT1216=\"\",\"\",'1. Ordersheet'!AT1216)","v":""},null,null,null,null,null,null,null,{"$f":"IF('1. Ordersheet'!AX1216=\"\",\"\",'1. Ordersheet'!AX1216)","v":""},{"$f":"IF('1. Ordersheet'!AY1216=\"\",\"\",'1. Ordersheet'!AY1216)","v":""},{"$f":"IF('1. Ordersheet'!AZ1216=\"\",\"\",'1. Ordersheet'!AZ1216)","v":""},{"$f":"IF('1. Ordersheet'!BA1216=\"\",\"\",'1. Ordersheet'!BA1216)","v":""},{"$f":"IF('1. Ordersheet'!BC1216=\"\",\"\",'1. Ordersheet'!BC1216)","v":""},{"$f":"IF('1. Ordersheet'!BD1216=\"\",\"\",'1. Ordersheet'!BD1216)","v":""},{"$f":"IF('1. Ordersheet'!BE1216=\"\",\"\",'1. Ordersheet'!BE1216)","v":""},{"$f":"IF('1. Ordersheet'!BF1216=\"\",\"\",'1. Ordersheet'!BF1216)","v":""},{"$f":"IF('1. Ordersheet'!BG1216=\"\",\"\",'1. Ordersheet'!BG1216)","v":"ZWO"},{"$f":"IF('1. Ordersheet'!BH1216=\"\",\"\",'1. Ordersheet'!BH1216)","v":""},{"$f":"IF('1. Ordersheet'!BI1216=\"\",\"\",'1. Ordersheet'!BI1216)","v":""},{"$f":"IF('1. Ordersheet'!BJ1216=\"\",\"\",'1. Ordersheet'!BJ1216)","v":""},{"$f":"IF('1. Ordersheet'!BK1216=\"\",\"\",'1. Ordersheet'!BK1216)","v":""},{"$f":"IF('1. Ordersheet'!BL1216=\"\",\"\",'1. Ordersheet'!BL1216)","v":""}]
[{"$f":"IF('1. Ordersheet'!F1217=\"\",\"\",'1. Ordersheet'!F1217)","v":""},{"$f":"IF('1. Ordersheet'!G1217=\"\",\"\",'1. Ordersheet'!G1217)","v":""},{"$f":"IF('1. Ordersheet'!H1217=\"\",\"\",'1. Ordersheet'!H1217)","v":""},{"$f":"IF('1. Ordersheet'!I1217=\"\",\"\",'1. Ordersheet'!I1217)","v":""},{"$f":"IF('1. Ordersheet'!J1217=\"\",\"\",'1. Ordersheet'!J1217)","v":""},{"$f":"IF('1. Ordersheet'!K1217=\"\",\"\",'1. Ordersheet'!K1217)","v":""},{"$f":"IF('1. Ordersheet'!L1217=\"\",\"\",'1. Ordersheet'!L1217)","v":""},{"$f":"IF('1. Ordersheet'!M1217=\"\",\"\",'1. Ordersheet'!M1217)","v":""},{"$f":"IF('1. Ordersheet'!N1217=\"\",\"\",'1. Ordersheet'!N1217)","v":""},{"$f":"IF('1. Ordersheet'!O1217=\"\",\"\",'1. Ordersheet'!O1217)","v":{"$error":"#N/A"}},{"$f":"IF('1. Ordersheet'!P1217=\"\",\"\",'1. Ordersheet'!P1217)","v":{"$error":"#N/A"}},{"$f":"IF('1. Ordersheet'!Q1217=\"\",\"\",'1. Ordersheet'!Q1217)","v":""},{"$f":"IF('1. Ordersheet'!R1217=\"\",\"\",'1. Ordersheet'!R1217)","v":""},{"$f":"IF('1. Ordersheet'!S1217=\"\",\"\",'1. Ordersheet'!S1217)","v":""},{"$f":"IF('1. Ordersheet'!V1217=\"\",\"\",'1. Ordersheet'!V1217)","v":""},{"$f":"IF('1. Ordersheet'!W1217=\"\",\"\",'1. Ordersheet'!W1217)","v":""},{"$f":"IF('1. Ordersheet'!X1217=\"\",\"\",'1. Ordersheet'!X1217)","v":""},{"$f":"IF('1. Ordersheet'!Y1217=\"\",\"\",'1. Ordersheet'!Y1217)","v":""},{"$f":"IF('1. Ordersheet'!Z1217=\"\",\"\",'1. Ordersheet'!Z1217)","v":""},{"$f":"IF('1. Ordersheet'!AA1217=\"\",\"\",'1. Ordersheet'!AA1217)","v":""},null,{"$f":"IF('1. Ordersheet'!AS1217=\"\",\"\",'1. Ordersheet'!AS1217)","v":""},{"$f":"IF('1. Ordersheet'!AT1217=\"\",\"\",'1. Ordersheet'!AT1217)","v":""},null,null,null,null,null,null,null,{"$f":"IF('1. Ordersheet'!AX1217=\"\",\"\",'1. Ordersheet'!AX1217)","v":""},{"$f":"IF('1. Ordersheet'!AY1217=\"\",\"\",'1. Ordersheet'!AY1217)","v":""},{"$f":"IF('1. Ordersheet'!AZ1217=\"\",\"\",'1. Ordersheet'!AZ1217)","v":""},{"$f":"IF('1. Ordersheet'!BA1217=\"\",\"\",'1. Ordersheet'!BA1217)","v":""},{"$f":"IF('1. Ordersheet'!BC1217=\"\",\"\",'1. Ordersheet'!BC1217)","v":""},{"$f":"IF('1. Ordersheet'!BD1217=\"\",\"\",'1. Ordersheet'!BD1217)","v":""},{"$f":"IF('1. Ordersheet'!BE1217=\"\",\"\",'1. Ordersheet'!BE1217)","v":""},{"$f":"IF('1. Ordersheet'!BF1217=\"\",\"\",'1. Ordersheet'!BF1217)","v":""},{"$f":"IF('1. Ordersheet'!BG1217=\"\",\"\",'1. Ordersheet'!BG1217)","v":"ZWO"},{"$f":"IF('1. Ordersheet'!BH1217=\"\",\"\",'1. Ordersheet'!BH1217)","v":""},{"$f":"IF('1. Ordersheet'!BI1217=\"\",\"\",'1. Ordersheet'!BI1217)","v":""},{"$f":"IF('1. Ordersheet'!BJ1217=\"\",\"\",'1. Ordersheet'!BJ1217)","v":""},{"$f":"IF('1. Ordersheet'!BK1217=\"\",\"\",'1. Ordersheet'!BK1217)","v":""},{"$f":"IF('1. Ordersheet'!BL1217=\"\",\"\",'1. Ordersheet'!BL1217)","v":""}]
[{"$f":"IF('1. Ordersheet'!F1218=\"\",\"\",'1. Ordersheet'!F1218)","v":""},{"$f":"IF('1. Ordersheet'!G1218=\"\",\"\",'1. Ordersheet'!G1218)","v":""},{"$f":"IF('1. Ordersheet'!H1218=\"\",\"\",'1. Ordersheet'!H1218)","v":""},{"$f":"IF('1. Ordersheet'!I1218=\"\",\"\",'1. Ordersheet'!I1218)","v":""},{"$f":"IF('1. Ordersheet'!J1218=\"\",\"\",'1. Ordersheet'!J1218)","v":""},{"$f":"IF('1. Ordersheet'!K1218=\"\",\"\",'1. Ordersheet'!K1218)","v":""},{"$f":"IF('1. Ordersheet'!L1218=\"\",\"\",'1. Ordersheet'!L1218)","v":""},{"$f":"IF('1. Ordersheet'!M1218=\"\",\"\",'1. Ordersheet'!M1218)","v":""},{"$f":"IF('1. Ordersheet'!N1218=\"\",\"\",'1. Ordersheet'!N1218)","v":""},{"$f":"IF('1. Ordersheet'!O1218=\"\",\"\",'1. Ordersheet'!O1218)","v":{"$error":"#N/A"}},{"$f":"IF('1. Ordersheet'!P1218=\"\",\"\",'1. Ordersheet'!P1218)","v":{"$error":"#N/A"}},{"$f":"IF('1. Ordersheet'!Q1218=\"\",\"\",'1. Ordersheet'!Q1218)","v":""},{"$f":"IF('1. Ordersheet'!R1218=\"\",\"\",'1. Ordersheet'!R1218)","v":""},{"$f":"IF('1. Ordersheet'!S1218=\"\",\"\",'1. Ordersheet'!S1218)","v":""},{"$f":"IF('1. Ordersheet'!V1218=\"\",\"\",'1. Ordersheet'!V1218)","v":""},{"$f":"IF('1. Ordersheet'!W1218=\"\",\"\",'1. Ordersheet'!W1218)","v":""},{"$f":"IF('1. Ordersheet'!X1218=\"\",\"\",'1. Ordersheet'!X1218)","v":""},{"$f":"IF('1. Ordersheet'!Y1218=\"\",\"\",'1. Ordersheet'!Y1218)","v":""},{"$f":"IF('1. Ordersheet'!Z1218=\"\",\"\",'1. Ordersheet'!Z1218)","v":""},{"$f":"IF('1. Ordersheet'!AA1218=\"\",\"\",'1. Ordersheet'!AA1218)","v":""},null,{"$f":"IF('1. Ordersheet'!AS1218=\"\",\"\",'1. Ordersheet'!AS1218)","v":""},{"$f":"IF('1. Ordersheet'!AT1218=\"\",\"\",'1. Ordersheet'!AT1218)","v":""},null,null,null,null,null,null,null,{"$f":"IF('1. Ordersheet'!AX1218=\"\",\"\",'1. Ordersheet'!AX1218)","v":""},{"$f":"IF('1. Ordersheet'!AY1218=\"\",\"\",'1. Ordersheet'!AY1218)","v":""},{"$f":"IF('1. Ordersheet'!AZ1218=\"\",\"\",'1. Ordersheet'!AZ1218)","v":""},{"$f":"IF('1. Ordersheet'!BA1218=\"\",\"\",'1. Ordersheet'!BA1218)","v":""},{"$f":"IF('1. Ordersheet'!BC1218=\"\",\"\",'1. Ordersheet'!BC1218)","v":""},{"$f":"IF('1. Ordersheet'!BD1218=\"\",\"\",'1. Ordersheet'!BD1218)","v":""},{"$f":"IF('1. Ordersheet'!BE1218=\"\",\"\",'1. Ordersheet'!BE1218)","v":""},{"$f":"IF('1. Ordersheet'!BF1218=\"\",\"\",'1. Ordersheet'!BF1218)","v":""},{"$f":"IF('1. Ordersheet'!BG1218=\"\",\"\",'1. Ordersheet'!BG1218)","v":"ZWO"},{"$f":"IF('1. Ordersheet'!BH1218=\"\",\"\",'1. Ordersheet'!BH1218)","v":""},{"$f":"IF('1. Ordersheet'!BI1218=\"\",\"\",'1. Ordersheet'!BI1218)","v":""},{"$f":"IF('1. Ordersheet'!BJ1218=\"\",\"\",'1. Ordersheet'!BJ1218)","v":""},{"$f":"IF('1. Ordersheet'!BK1218=\"\",\"\",'1. Ordersheet'!BK1218)","v":""},{"$f":"IF('1. Ordersheet'!BL1218=\"\",\"\",'1. Ordersheet'!BL1218)","v":""}]
[{"$f":"IF('1. Ordersheet'!F1219=\"\",\"\",'1. Ordersheet'!F1219)","v":""},{"$f":"IF('1. Ordersheet'!G1219=\"\",\"\",'1. Ordersheet'!G1219)","v":""},{"$f":"IF('1. Ordersheet'!H1219=\"\",\"\",'1. Ordersheet'!H1219)","v":""},{"$f":"IF('1. Ordersheet'!I1219=\"\",\"\",'1. Ordersheet'!I1219)","v":""},{"$f":"IF('1. Ordersheet'!J1219=\"\",\"\",'1. Ordersheet'!J1219)","v":""},{"$f":"IF('1. Ordersheet'!K1219=\"\",\"\",'1. Ordersheet'!K1219)","v":""},{"$f":"IF('1. Ordersheet'!L1219=\"\",\"\",'1. Ordersheet'!L1219)","v":""},{"$f":"IF('1. Ordersheet'!M1219=\"\",\"\",'1. Ordersheet'!M1219)","v":""},{"$f":"IF('1. Ordersheet'!N1219=\"\",\"\",'1. Ordersheet'!N1219)","v":""},{"$f":"IF('1. Ordersheet'!O1219=\"\",\"\",'1. Ordersheet'!O1219)","v":{"$error":"#N/A"}},{"$f":"IF('1. Ordersheet'!P1219=\"\",\"\",'1. Ordersheet'!P1219)","v":{"$error":"#N/A"}},{"$f":"IF('1. Ordersheet'!Q1219=\"\",\"\",'1. Ordersheet'!Q1219)","v":""},{"$f":"IF('1. Ordersheet'!R1219=\"\",\"\",'1. Ordersheet'!R1219)","v":""},{"$f":"IF('1. Ordersheet'!S1219=\"\",\"\",'1. Ordersheet'!S1219)","v":""},{"$f":"IF('1. Ordersheet'!V1219=\"\",\"\",'1. Ordersheet'!V1219)","v":""},{"$f":"IF('1. Ordersheet'!W1219=\"\",\"\",'1. Ordersheet'!W1219)","v":""},{"$f":"IF('1. Ordersheet'!X1219=\"\",\"\",'1. Ordersheet'!X1219)","v":""},{"$f":"IF('1. Ordersheet'!Y1219=\"\",\"\",'1. Ordersheet'!Y1219)","v":""},{"$f":"IF('1. Ordersheet'!Z1219=\"\",\"\",'1. Ordersheet'!Z1219)","v":""},{"$f":"IF('1. Ordersheet'!AA1219=\"\",\"\",'1. Ordersheet'!AA1219)","v":""},null,{"$f":"IF('1. Ordersheet'!AS1219=\"\",\"\",'1. Ordersheet'!AS1219)","v":""},{"$f":"IF('1. Ordersheet'!AT1219=\"\",\"\",'1. Ordersheet'!AT1219)","v":""},null,null,null,null,null,null,null,{"$f":"IF('1. Ordersheet'!AX1219=\"\",\"\",'1. Ordersheet'!AX1219)","v":""},{"$f":"IF('1. Ordersheet'!AY1219=\"\",\"\",'1. Ordersheet'!AY1219)","v":""},{"$f":"IF('1. Ordersheet'!AZ1219=\"\",\"\",'1. Ordersheet'!AZ1219)","v":""},{"$f":"IF('1. Ordersheet'!BA1219=\"\",\"\",'1. Ordersheet'!BA1219)","v":""},{"$f":"IF('1. Ordersheet'!BC1219=\"\",\"\",'1. Ordersheet'!BC1219)","v":""},{"$f":"IF('1. Ordersheet'!BD1219=\"\",\"\",'1. Ordersheet'!BD1219)","v":""},{"$f":"IF('1. Ordersheet'!BE1219=\"\",\"\",'1. Ordersheet'!BE1219)","v":""},{"$f":"IF('1. Ordersheet'!BF1219=\"\",\"\",'1. Ordersheet'!BF1219)","v":""},{"$f":"IF('1. Ordersheet'!BG1219=\"\",\"\",'1. Ordersheet'!BG1219)","v":"ZWO"},{"$f":"IF('1. Ordersheet'!BH1219=\"\",\"\",'1. Ordersheet'!BH1219)","v":""},{"$f":"IF('1. Ordersheet'!BI1219=\"\",\"\",'1. Ordersheet'!BI1219)","v":""},{"$f":"IF('1. Ordersheet'!BJ1219=\"\",\"\",'1. Ordersheet'!BJ1219)","v":""},{"$f":"IF('1. Ordersheet'!BK1219=\"\",\"\",'1. Ordersheet'!BK1219)","v":""},{"$f":"IF('1. Ordersheet'!BL1219=\"\",\"\",'1. Ordersheet'!BL1219)","v":""}]
[{"$f":"IF('1. Ordersheet'!F1220=\"\",\"\",'1. Ordersheet'!F1220)","v":""},{"$f":"IF('1. Ordersheet'!G1220=\"\",\"\",'1. Ordersheet'!G1220)","v":""},{"$f":"IF('1. Ordersheet'!H1220=\"\",\"\",'1. Ordersheet'!H1220)","v":""},{"$f":"IF('1. Ordersheet'!I1220=\"\",\"\",'1. Ordersheet'!I1220)","v":""},{"$f":"IF('1. Ordersheet'!J1220=\"\",\"\",'1. Ordersheet'!J1220)","v":""},{"$f":"IF('1. Ordersheet'!K1220=\"\",\"\",'1. Ordersheet'!K1220)","v":""},{"$f":"IF('1. Ordersheet'!L1220=\"\",\"\",'1. Ordersheet'!L1220)","v":""},{"$f":"IF('1. Ordersheet'!M1220=\"\",\"\",'1. Ordersheet'!M1220)","v":""},{"$f":"IF('1. Ordersheet'!N1220=\"\",\"\",'1. Ordersheet'!N1220)","v":""},{"$f":"IF('1. Ordersheet'!O1220=\"\",\"\",'1. Ordersheet'!O1220)","v":{"$error":"#N/A"}},{"$f":"IF('1. Ordersheet'!P1220=\"\",\"\",'1. Ordersheet'!P1220)","v":{"$error":"#N/A"}},{"$f":"IF('1. Ordersheet'!Q1220=\"\",\"\",'1. Ordersheet'!Q1220)","v":""},{"$f":"IF('1. Ordersheet'!R1220=\"\",\"\",'1. Ordersheet'!R1220)","v":""},{"$f":"IF('1. Ordersheet'!S1220=\"\",\"\",'1. Ordersheet'!S1220)","v":""},{"$f":"IF('1. Ordersheet'!V1220=\"\",\"\",'1. Ordersheet'!V1220)","v":""},{"$f":"IF('1. Ordersheet'!W1220=\"\",\"\",'1. Ordersheet'!W1220)","v":""},{"$f":"IF('1. Ordersheet'!X1220=\"\",\"\",'1. Ordersheet'!X1220)","v":""},{"$f":"IF('1. Ordersheet'!Y1220=\"\",\"\",'1. Ordersheet'!Y1220)","v":""},{"$f":"IF('1. Ordersheet'!Z1220=\"\",\"\",'1. Ordersheet'!Z1220)","v":""},{"$f":"IF('1. Ordersheet'!AA1220=\"\",\"\",'1. Ordersheet'!AA1220)","v":""},null,{"$f":"IF('1. Ordersheet'!AS1220=\"\",\"\",'1. Ordersheet'!AS1220)","v":""},{"$f":"IF('1. Ordersheet'!AT1220=\"\",\"\",'1. Ordersheet'!AT1220)","v":""},null,null,null,null,null,null,null,{"$f":"IF('1. Ordersheet'!AX1220=\"\",\"\",'1. Ordersheet'!AX1220)","v":""},{"$f":"IF('1. Ordersheet'!AY1220=\"\",\"\",'1. Ordersheet'!AY1220)","v":""},{"$f":"IF('1. Ordersheet'!AZ1220=\"\",\"\",'1. Ordersheet'!AZ1220)","v":""},{"$f":"IF('1. Ordersheet'!BA1220=\"\",\"\",'1. Ordersheet'!BA1220)","v":""},{"$f":"IF('1. Ordersheet'!BC1220=\"\",\"\",'1. Ordersheet'!BC1220)","v":""},{"$f":"IF('1. Ordersheet'!BD1220=\"\",\"\",'1. Ordersheet'!BD1220)","v":""},{"$f":"IF('1. Ordersheet'!BE1220=\"\",\"\",'1. Ordersheet'!BE1220)","v":""},{"$f":"IF('1. Ordersheet'!BF1220=\"\",\"\",'1. Ordersheet'!BF1220)","v":""},{"$f":"IF('1. Ordersheet'!BG1220=\"\",\"\",'1. Ordersheet'!BG1220)","v":"ZWO"},{"$f":"IF('1. Ordersheet'!BH1220=\"\",\"\",'1. Ordersheet'!BH1220)","v":""},{"$f":"IF('1. Ordersheet'!BI1220=\"\",\"\",'1. Ordersheet'!BI1220)","v":""},{"$f":"IF('1. Ordersheet'!BJ1220=\"\",\"\",'1. Ordersheet'!BJ1220)","v":""},{"$f":"IF('1. Ordersheet'!BK1220=\"\",\"\",'1. Ordersheet'!BK1220)","v":""},{"$f":"IF('1. Ordersheet'!BL1220=\"\",\"\",'1. Ordersheet'!BL1220)","v":""}]
[{"$f":"IF('1. Ordersheet'!F1221=\"\",\"\",'1. Ordersheet'!F1221)","v":""},{"$f":"IF('1. Ordersheet'!G1221=\"\",\"\",'1. Ordersheet'!G1221)","v":""},{"$f":"IF('1. Ordersheet'!H1221=\"\",\"\",'1. Ordersheet'!H1221)","v":""},{"$f":"IF('1. Ordersheet'!I1221=\"\",\"\",'1. Ordersheet'!I1221)","v":""},{"$f":"IF('1. Ordersheet'!J1221=\"\",\"\",'1. Ordersheet'!J1221)","v":""},{"$f":"IF('1. Ordersheet'!K1221=\"\",\"\",'1. Ordersheet'!K1221)","v":""},{"$f":"IF('1. Ordersheet'!L1221=\"\",\"\",'1. Ordersheet'!L1221)","v":""},{"$f":"IF('1. Ordersheet'!M1221=\"\",\"\",'1. Ordersheet'!M1221)","v":""},{"$f":"IF('1. Ordersheet'!N1221=\"\",\"\",'1. Ordersheet'!N1221)","v":""},{"$f":"IF('1. Ordersheet'!O1221=\"\",\"\",'1. Ordersheet'!O1221)","v":{"$error":"#N/A"}},{"$f":"IF('1. Ordersheet'!P1221=\"\",\"\",'1. Ordersheet'!P1221)","v":{"$error":"#N/A"}},{"$f":"IF('1. Ordersheet'!Q1221=\"\",\"\",'1. Ordersheet'!Q1221)","v":""},{"$f":"IF('1. Ordersheet'!R1221=\"\",\"\",'1. Ordersheet'!R1221)","v":""},{"$f":"IF('1. Ordersheet'!S1221=\"\",\"\",'1. Ordersheet'!S1221)","v":""},{"$f":"IF('1. Ordersheet'!V1221=\"\",\"\",'1. Ordersheet'!V1221)","v":""},{"$f":"IF('1. Ordersheet'!W1221=\"\",\"\",'1. Ordersheet'!W1221)","v":""},{"$f":"IF('1. Ordersheet'!X1221=\"\",\"\",'1. Ordersheet'!X1221)","v":""},{"$f":"IF('1. Ordersheet'!Y1221=\"\",\"\",'1. Ordersheet'!Y1221)","v":""},{"$f":"IF('1. Ordersheet'!Z1221=\"\",\"\",'1. Ordersheet'!Z1221)","v":""},{"$f":"IF('1. Ordersheet'!AA1221=\"\",\"\",'1. Ordersheet'!AA1221)","v":""},null,{"$f":"IF('1. Ordersheet'!AS1221=\"\",\"\",'1. Ordersheet'!AS1221)","v":""},{"$f":"IF('1. Ordersheet'!AT1221=\"\",\"\",'1. Ordersheet'!AT1221)","v":""},null,null,null,null,null,null,null,{"$f":"IF('1. Ordersheet'!AX1221=\"\",\"\",'1. Ordersheet'!AX1221)","v":""},{"$f":"IF('1. Ordersheet'!AY1221=\"\",\"\",'1. Ordersheet'!AY1221)","v":""},{"$f":"IF('1. Ordersheet'!AZ1221=\"\",\"\",'1. Ordersheet'!AZ1221)","v":""},{"$f":"IF('1. Ordersheet'!BA1221=\"\",\"\",'1. Ordersheet'!BA1221)","v":""},{"$f":"IF('1. Ordersheet'!BC1221=\"\",\"\",'1. Ordersheet'!BC1221)","v":""},{"$f":"IF('1. Ordersheet'!BD1221=\"\",\"\",'1. Ordersheet'!BD1221)","v":""},{"$f":"IF('1. Ordersheet'!BE1221=\"\",\"\",'1. Ordersheet'!BE1221)","v":""},{"$f":"IF('1. Ordersheet'!BF1221=\"\",\"\",'1. Ordersheet'!BF1221)","v":""},{"$f":"IF('1. Ordersheet'!BG1221=\"\",\"\",'1. Ordersheet'!BG1221)","v":"ZWO"},{"$f":"IF('1. Ordersheet'!BH1221=\"\",\"\",'1. Ordersheet'!BH1221)","v":""},{"$f":"IF('1. Ordersheet'!BI1221=\"\",\"\",'1. Ordersheet'!BI1221)","v":""},{"$f":"IF('1. Ordersheet'!BJ1221=\"\",\"\",'1. Ordersheet'!BJ1221)","v":""},{"$f":"IF('1. Ordersheet'!BK1221=\"\",\"\",'1. Ordersheet'!BK1221)","v":""},{"$f":"IF('1. Ordersheet'!BL1221=\"\",\"\",'1. Ordersheet'!BL1221)","v":""}]
[{"$f":"IF('1. Ordersheet'!F1222=\"\",\"\",'1. Ordersheet'!F1222)","v":""},{"$f":"IF('1. Ordersheet'!G1222=\"\",\"\",'1. Ordersheet'!G1222)","v":""},{"$f":"IF('1. Ordersheet'!H1222=\"\",\"\",'1. Ordersheet'!H1222)","v":""},{"$f":"IF('1. Ordersheet'!I1222=\"\",\"\",'1. Ordersheet'!I1222)","v":""},{"$f":"IF('1. Ordersheet'!J1222=\"\",\"\",'1. Ordersheet'!J1222)","v":""},{"$f":"IF('1. Ordersheet'!K1222=\"\",\"\",'1. Ordersheet'!K1222)","v":""},{"$f":"IF('1. Ordersheet'!L1222=\"\",\"\",'1. Ordersheet'!L1222)","v":""},{"$f":"IF('1. Ordersheet'!M1222=\"\",\"\",'1. Ordersheet'!M1222)","v":""},{"$f":"IF('1. Ordersheet'!N1222=\"\",\"\",'1. Ordersheet'!N1222)","v":""},{"$f":"IF('1. Ordersheet'!O1222=\"\",\"\",'1. Ordersheet'!O1222)","v":{"$error":"#N/A"}},{"$f":"IF('1. Ordersheet'!P1222=\"\",\"\",'1. Ordersheet'!P1222)","v":{"$error":"#N/A"}},{"$f":"IF('1. Ordersheet'!Q1222=\"\",\"\",'1. Ordersheet'!Q1222)","v":""},{"$f":"IF('1. Ordersheet'!R1222=\"\",\"\",'1. Ordersheet'!R1222)","v":""},{"$f":"IF('1. Ordersheet'!S1222=\"\",\"\",'1. Ordersheet'!S1222)","v":""},{"$f":"IF('1. Ordersheet'!V1222=\"\",\"\",'1. Ordersheet'!V1222)","v":""},{"$f":"IF('1. Ordersheet'!W1222=\"\",\"\",'1. Ordersheet'!W1222)","v":""},{"$f":"IF('1. Ordersheet'!X1222=\"\",\"\",'1. Ordersheet'!X1222)","v":""},{"$f":"IF('1. Ordersheet'!Y1222=\"\",\"\",'1. Ordersheet'!Y1222)","v":""},{"$f":"IF('1. Ordersheet'!Z1222=\"\",\"\",'1. Ordersheet'!Z1222)","v":""},{"$f":"IF('1. Ordersheet'!AA1222=\"\",\"\",'1. Ordersheet'!AA1222)","v":""},null,{"$f":"IF('1. Ordersheet'!AS1222=\"\",\"\",'1. Ordersheet'!AS1222)","v":""},{"$f":"IF('1. Ordersheet'!AT1222=\"\",\"\",'1. Ordersheet'!AT1222)","v":""},null,null,null,null,null,null,null,{"$f":"IF('1. Ordersheet'!AX1222=\"\",\"\",'1. Ordersheet'!AX1222)","v":""},{"$f":"IF('1. Ordersheet'!AY1222=\"\",\"\",'1. Ordersheet'!AY1222)","v":""},{"$f":"IF('1. Ordersheet'!AZ1222=\"\",\"\",'1. Ordersheet'!AZ1222)","v":""},{"$f":"IF('1. Ordersheet'!BA1222=\"\",\"\",'1. Ordersheet'!BA1222)","v":""},{"$f":"IF('1. Ordersheet'!BC1222=\"\",\"\",'1. Ordersheet'!BC1222)","v":""},{"$f":"IF('1. Ordersheet'!BD1222=\"\",\"\",'1. Ordersheet'!BD1222)","v":""},{"$f":"IF('1. Ordersheet'!BE1222=\"\",\"\",'1. Ordersheet'!BE1222)","v":""},{"$f":"IF('1. Ordersheet'!BF1222=\"\",\"\",'1. Ordersheet'!BF1222)","v":""},{"$f":"IF('1. Ordersheet'!BG1222=\"\",\"\",'1. Ordersheet'!BG1222)","v":"ZWO"},{"$f":"IF('1. Ordersheet'!BH1222=\"\",\"\",'1. Ordersheet'!BH1222)","v":""},{"$f":"IF('1. Ordersheet'!BI1222=\"\",\"\",'1. Ordersheet'!BI1222)","v":""},{"$f":"IF('1. Ordersheet'!BJ1222=\"\",\"\",'1. Ordersheet'!BJ1222)","v":""},{"$f":"IF('1. Ordersheet'!BK1222=\"\",\"\",'1. Ordersheet'!BK1222)","v":""},{"$f":"IF('1. Ordersheet'!BL1222=\"\",\"\",'1. Ordersheet'!BL1222)","v":""}]
[{"$f":"IF('1. Ordersheet'!F1223=\"\",\"\",'1. Ordersheet'!F1223)","v":""},{"$f":"IF('1. Ordersheet'!G1223=\"\",\"\",'1. Ordersheet'!G1223)","v":""},{"$f":"IF('1. Ordersheet'!H1223=\"\",\"\",'1. Ordersheet'!H1223)","v":""},{"$f":"IF('1. Ordersheet'!I1223=\"\",\"\",'1. Ordersheet'!I1223)","v":""},{"$f":"IF('1. Ordersheet'!J1223=\"\",\"\",'1. Ordersheet'!J1223)","v":""},{"$f":"IF('1. Ordersheet'!K1223=\"\",\"\",'1. Ordersheet'!K1223)","v":""},{"$f":"IF('1. Ordersheet'!L1223=\"\",\"\",'1. Ordersheet'!L1223)","v":""},{"$f":"IF('1. Ordersheet'!M1223=\"\",\"\",'1. Ordersheet'!M1223)","v":""},{"$f":"IF('1. Ordersheet'!N1223=\"\",\"\",'1. Ordersheet'!N1223)","v":""},{"$f":"IF('1. Ordersheet'!O1223=\"\",\"\",'1. Ordersheet'!O1223)","v":{"$error":"#N/A"}},{"$f":"IF('1. Ordersheet'!P1223=\"\",\"\",'1. Ordersheet'!P1223)","v":{"$error":"#N/A"}},{"$f":"IF('1. Ordersheet'!Q1223=\"\",\"\",'1. Ordersheet'!Q1223)","v":""},{"$f":"IF('1. Ordersheet'!R1223=\"\",\"\",'1. Ordersheet'!R1223)","v":""},{"$f":"IF('1. Ordersheet'!S1223=\"\",\"\",'1. Ordersheet'!S1223)","v":""},{"$f":"IF('1. Ordersheet'!V1223=\"\",\"\",'1. Ordersheet'!V1223)","v":""},{"$f":"IF('1. Ordersheet'!W1223=\"\",\"\",'1. Ordersheet'!W1223)","v":""},{"$f":"IF('1. Ordersheet'!X1223=\"\",\"\",'1. Ordersheet'!X1223)","v":""},{"$f":"IF('1. Ordersheet'!Y1223=\"\",\"\",'1. Ordersheet'!Y1223)","v":""},{"$f":"IF('1. Ordersheet'!Z1223=\"\",\"\",'1. Ordersheet'!Z1223)","v":""},{"$f":"IF('1. Ordersheet'!AA1223=\"\",\"\",'1. Ordersheet'!AA1223)","v":""},null,{"$f":"IF('1. Ordersheet'!AS1223=\"\",\"\",'1. Ordersheet'!AS1223)","v":""},{"$f":"IF('1. Ordersheet'!AT1223=\"\",\"\",'1. Ordersheet'!AT1223)","v":""},null,null,null,null,null,null,null,{"$f":"IF('1. Ordersheet'!AX1223=\"\",\"\",'1. Ordersheet'!AX1223)","v":""},{"$f":"IF('1. Ordersheet'!AY1223=\"\",\"\",'1. Ordersheet'!AY1223)","v":""},{"$f":"IF('1. Ordersheet'!AZ1223=\"\",\"\",'1. Ordersheet'!AZ1223)","v":""},{"$f":"IF('1. Ordersheet'!BA1223=\"\",\"\",'1. Ordersheet'!BA1223)","v":""},{"$f":"IF('1. Ordersheet'!BC1223=\"\",\"\",'1. Ordersheet'!BC1223)","v":""},{"$f":"IF('1. Ordersheet'!BD1223=\"\",\"\",'1. Ordersheet'!BD1223)","v":""},{"$f":"IF('1. Ordersheet'!BE1223=\"\",\"\",'1. Ordersheet'!BE1223)","v":""},{"$f":"IF('1. Ordersheet'!BF1223=\"\",\"\",'1. Ordersheet'!BF1223)","v":""},{"$f":"IF('1. Ordersheet'!BG1223=\"\",\"\",'1. Ordersheet'!BG1223)","v":"ZWO"},{"$f":"IF('1. Ordersheet'!BH1223=\"\",\"\",'1. Ordersheet'!BH1223)","v":""},{"$f":"IF('1. Ordersheet'!BI1223=\"\",\"\",'1. Ordersheet'!BI1223)","v":""},{"$f":"IF('1. Ordersheet'!BJ1223=\"\",\"\",'1. Ordersheet'!BJ1223)","v":""},{"$f":"IF('1. Ordersheet'!BK1223=\"\",\"\",'1. Ordersheet'!BK1223)","v":""},{"$f":"IF('1. Ordersheet'!BL1223=\"\",\"\",'1. Ordersheet'!BL1223)","v":""}]
[{"$f":"IF('1. Ordersheet'!F1224=\"\",\"\",'1. Ordersheet'!F1224)","v":""},{"$f":"IF('1. Ordersheet'!G1224=\"\",\"\",'1. Ordersheet'!G1224)","v":""},{"$f":"IF('1. Ordersheet'!H1224=\"\",\"\",'1. Ordersheet'!H1224)","v":""},{"$f":"IF('1. Ordersheet'!I1224=\"\",\"\",'1. Ordersheet'!I1224)","v":""},{"$f":"IF('1. Ordersheet'!J1224=\"\",\"\",'1. Ordersheet'!J1224)","v":""},{"$f":"IF('1. Ordersheet'!K1224=\"\",\"\",'1. Ordersheet'!K1224)","v":""},{"$f":"IF('1. Ordersheet'!L1224=\"\",\"\",'1. Ordersheet'!L1224)","v":""},{"$f":"IF('1. Ordersheet'!M1224=\"\",\"\",'1. Ordersheet'!M1224)","v":""},{"$f":"IF('1. Ordersheet'!N1224=\"\",\"\",'1. Ordersheet'!N1224)","v":""},{"$f":"IF('1. Ordersheet'!O1224=\"\",\"\",'1. Ordersheet'!O1224)","v":{"$error":"#N/A"}},{"$f":"IF('1. Ordersheet'!P1224=\"\",\"\",'1. Ordersheet'!P1224)","v":{"$error":"#N/A"}},{"$f":"IF('1. Ordersheet'!Q1224=\"\",\"\",'1. Ordersheet'!Q1224)","v":""},{"$f":"IF('1. Ordersheet'!R1224=\"\",\"\",'1. Ordersheet'!R1224)","v":""},{"$f":"IF('1. Ordersheet'!S1224=\"\",\"\",'1. Ordersheet'!S1224)","v":""},{"$f":"IF('1. Ordersheet'!V1224=\"\",\"\",'1. Ordersheet'!V1224)","v":""},{"$f":"IF('1. Ordersheet'!W1224=\"\",\"\",'1. Ordersheet'!W1224)","v":""},{"$f":"IF('1. Ordersheet'!X1224=\"\",\"\",'1. Ordersheet'!X1224)","v":""},{"$f":"IF('1. Ordersheet'!Y1224=\"\",\"\",'1. Ordersheet'!Y1224)","v":""},{"$f":"IF('1. Ordersheet'!Z1224=\"\",\"\",'1. Ordersheet'!Z1224)","v":""},{"$f":"IF('1. Ordersheet'!AA1224=\"\",\"\",'1. Ordersheet'!AA1224)","v":""},null,{"$f":"IF('1. Ordersheet'!AS1224=\"\",\"\",'1. Ordersheet'!AS1224)","v":""},{"$f":"IF('1. Ordersheet'!AT1224=\"\",\"\",'1. Ordersheet'!AT1224)","v":""},null,null,null,null,null,null,null,{"$f":"IF('1. Ordersheet'!AX1224=\"\",\"\",'1. Ordersheet'!AX1224)","v":""},{"$f":"IF('1. Ordersheet'!AY1224=\"\",\"\",'1. Ordersheet'!AY1224)","v":""},{"$f":"IF('1. Ordersheet'!AZ1224=\"\",\"\",'1. Ordersheet'!AZ1224)","v":""},{"$f":"IF('1. Ordersheet'!BA1224=\"\",\"\",'1. Ordersheet'!BA1224)","v":""},{"$f":"IF('1. Ordersheet'!BC1224=\"\",\"\",'1. Ordersheet'!BC1224)","v":""},{"$f":"IF('1. Ordersheet'!BD1224=\"\",\"\",'1. Ordersheet'!BD1224)","v":""},{"$f":"IF('1. Ordersheet'!BE1224=\"\",\"\",'1. Ordersheet'!BE1224)","v":""},{"$f":"IF('1. Ordersheet'!BF1224=\"\",\"\",'1. Ordersheet'!BF1224)","v":""},{"$f":"IF('1. Ordersheet'!BG1224=\"\",\"\",'1. Ordersheet'!BG1224)","v":"ZWO"},{"$f":"IF('1. Ordersheet'!BH1224=\"\",\"\",'1. Ordersheet'!BH1224)","v":""},{"$f":"IF('1. Ordersheet'!BI1224=\"\",\"\",'1. Ordersheet'!BI1224)","v":""},{"$f":"IF('1. Ordersheet'!BJ1224=\"\",\"\",'1. Ordersheet'!BJ1224)","v":""},{"$f":"IF('1. Ordersheet'!BK1224=\"\",\"\",'1. Ordersheet'!BK1224)","v":""},{"$f":"IF('1. Ordersheet'!BL1224=\"\",\"\",'1. Ordersheet'!BL1224)","v":""}]
[{"$f":"IF('1. Ordersheet'!F1225=\"\",\"\",'1. Ordersheet'!F1225)","v":""},{"$f":"IF('1. Ordersheet'!G1225=\"\",\"\",'1. Ordersheet'!G1225)","v":""},{"$f":"IF('1. Ordersheet'!H1225=\"\",\"\",'1. Ordersheet'!H1225)","v":""},{"$f":"IF('1. Ordersheet'!I1225=\"\",\"\",'1. Ordersheet'!I1225)","v":""},{"$f":"IF('1. Ordersheet'!J1225=\"\",\"\",'1. Ordersheet'!J1225)","v":""},{"$f":"IF('1. Ordersheet'!K1225=\"\",\"\",'1. Ordersheet'!K1225)","v":""},{"$f":"IF('1. Ordersheet'!L1225=\"\",\"\",'1. Ordersheet'!L1225)","v":""},{"$f":"IF('1. Ordersheet'!M1225=\"\",\"\",'1. Ordersheet'!M1225)","v":""},{"$f":"IF('1. Ordersheet'!N1225=\"\",\"\",'1. Ordersheet'!N1225)","v":""},{"$f":"IF('1. Ordersheet'!O1225=\"\",\"\",'1. Ordersheet'!O1225)","v":{"$error":"#N/A"}},{"$f":"IF('1. Ordersheet'!P1225=\"\",\"\",'1. Ordersheet'!P1225)","v":{"$error":"#N/A"}},{"$f":"IF('1. Ordersheet'!Q1225=\"\",\"\",'1. Ordersheet'!Q1225)","v":""},{"$f":"IF('1. Ordersheet'!R1225=\"\",\"\",'1. Ordersheet'!R1225)","v":""},{"$f":"IF('1. Ordersheet'!S1225=\"\",\"\",'1. Ordersheet'!S1225)","v":""},{"$f":"IF('1. Ordersheet'!V1225=\"\",\"\",'1. Ordersheet'!V1225)","v":""},{"$f":"IF('1. Ordersheet'!W1225=\"\",\"\",'1. Ordersheet'!W1225)","v":""},{"$f":"IF('1. Ordersheet'!X1225=\"\",\"\",'1. Ordersheet'!X1225)","v":""},{"$f":"IF('1. Ordersheet'!Y1225=\"\",\"\",'1. Ordersheet'!Y1225)","v":""},{"$f":"IF('1. Ordersheet'!Z1225=\"\",\"\",'1. Ordersheet'!Z1225)","v":""},{"$f":"IF('1. Ordersheet'!AA1225=\"\",\"\",'1. Ordersheet'!AA1225)","v":""},null,{"$f":"IF('1. Ordersheet'!AS1225=\"\",\"\",'1. Ordersheet'!AS1225)","v":""},{"$f":"IF('1. Ordersheet'!AT1225=\"\",\"\",'1. Ordersheet'!AT1225)","v":""},null,null,null,null,null,null,null,{"$f":"IF('1. Ordersheet'!AX1225=\"\",\"\",'1. Ordersheet'!AX1225)","v":""},{"$f":"IF('1. Ordersheet'!AY1225=\"\",\"\",'1. Ordersheet'!AY1225)","v":""},{"$f":"IF('1. Ordersheet'!AZ1225=\"\",\"\",'1. Ordersheet'!AZ1225)","v":""},{"$f":"IF('1. Ordersheet'!BA1225=\"\",\"\",'1. Ordersheet'!BA1225)","v":""},{"$f":"IF('1. Ordersheet'!BC1225=\"\",\"\",'1. Ordersheet'!BC1225)","v":""},{"$f":"IF('1. Ordersheet'!BD1225=\"\",\"\",'1. Ordersheet'!BD1225)","v":""},{"$f":"IF('1. Ordersheet'!BE1225=\"\",\"\",'1. Ordersheet'!BE1225)","v":""},{"$f":"IF('1. Ordersheet'!BF1225=\"\",\"\",'1. Ordersheet'!BF1225)","v":""},{"$f":"IF('1. Ordersheet'!BG1225=\"\",\"\",'1. Ordersheet'!BG1225)","v":"ZWO"},{"$f":"IF('1. Ordersheet'!BH1225=\"\",\"\",'1. Ordersheet'!BH1225)","v":""},{"$f":"IF('1. Ordersheet'!BI1225=\"\",\"\",'1. Ordersheet'!BI1225)","v":""},{"$f":"IF('1. Ordersheet'!BJ1225=\"\",\"\",'1. Ordersheet'!BJ1225)","v":""},{"$f":"IF('1. Ordersheet'!BK1225=\"\",\"\",'1. Ordersheet'!BK1225)","v":""},{"$f":"IF('1. Ordersheet'!BL1225=\"\",\"\",'1. Ordersheet'!BL1225)","v":""}]
[{"$f":"IF('1. Ordersheet'!F1226=\"\",\"\",'1. Ordersheet'!F1226)","v":""},{"$f":"IF('1. Ordersheet'!G1226=\"\",\"\",'1. Ordersheet'!G1226)","v":""},{"$f":"IF('1. Ordersheet'!H1226=\"\",\"\",'1. Ordersheet'!H1226)","v":""},{"$f":"IF('1. Ordersheet'!I1226=\"\",\"\",'1. Ordersheet'!I1226)","v":""},{"$f":"IF('1. Ordersheet'!J1226=\"\",\"\",'1. Ordersheet'!J1226)","v":""},{"$f":"IF('1. Ordersheet'!K1226=\"\",\"\",'1. Ordersheet'!K1226)","v":""},{"$f":"IF('1. Ordersheet'!L1226=\"\",\"\",'1. Ordersheet'!L1226)","v":""},{"$f":"IF('1. Ordersheet'!M1226=\"\",\"\",'1. Ordersheet'!M1226)","v":""},{"$f":"IF('1. Ordersheet'!N1226=\"\",\"\",'1. Ordersheet'!N1226)","v":""},{"$f":"IF('1. Ordersheet'!O1226=\"\",\"\",'1. Ordersheet'!O1226)","v":{"$error":"#N/A"}},{"$f":"IF('1. Ordersheet'!P1226=\"\",\"\",'1. Ordersheet'!P1226)","v":{"$error":"#N/A"}},{"$f":"IF('1. Ordersheet'!Q1226=\"\",\"\",'1. Ordersheet'!Q1226)","v":""},{"$f":"IF('1. Ordersheet'!R1226=\"\",\"\",'1. Ordersheet'!R1226)","v":""},{"$f":"IF('1. Ordersheet'!S1226=\"\",\"\",'1. Ordersheet'!S1226)","v":""},{"$f":"IF('1. Ordersheet'!V1226=\"\",\"\",'1. Ordersheet'!V1226)","v":""},{"$f":"IF('1. Ordersheet'!W1226=\"\",\"\",'1. Ordersheet'!W1226)","v":""},{"$f":"IF('1. Ordersheet'!X1226=\"\",\"\",'1. Ordersheet'!X1226)","v":""},{"$f":"IF('1. Ordersheet'!Y1226=\"\",\"\",'1. Ordersheet'!Y1226)","v":""},{"$f":"IF('1. Ordersheet'!Z1226=\"\",\"\",'1. Ordersheet'!Z1226)","v":""},{"$f":"IF('1. Ordersheet'!AA1226=\"\",\"\",'1. Ordersheet'!AA1226)","v":""},null,{"$f":"IF('1. Ordersheet'!AS1226=\"\",\"\",'1. Ordersheet'!AS1226)","v":""},{"$f":"IF('1. Ordersheet'!AT1226=\"\",\"\",'1. Ordersheet'!AT1226)","v":""},null,null,null,null,null,null,null,{"$f":"IF('1. Ordersheet'!AX1226=\"\",\"\",'1. Ordersheet'!AX1226)","v":""},{"$f":"IF('1. Ordersheet'!AY1226=\"\",\"\",'1. Ordersheet'!AY1226)","v":""},{"$f":"IF('1. Ordersheet'!AZ1226=\"\",\"\",'1. Ordersheet'!AZ1226)","v":""},{"$f":"IF('1. Ordersheet'!BA1226=\"\",\"\",'1. Ordersheet'!BA1226)","v":""},{"$f":"IF('1. Ordersheet'!BC1226=\"\",\"\",'1. Ordersheet'!BC1226)","v":""},{"$f":"IF('1. Ordersheet'!BD1226=\"\",\"\",'1. Ordersheet'!BD1226)","v":""},{"$f":"IF('1. Ordersheet'!BE1226=\"\",\"\",'1. Ordersheet'!BE1226)","v":""},{"$f":"IF('1. Ordersheet'!BF1226=\"\",\"\",'1. Ordersheet'!BF1226)","v":""},{"$f":"IF('1. Ordersheet'!BG1226=\"\",\"\",'1. Ordersheet'!BG1226)","v":"ZWO"},{"$f":"IF('1. Ordersheet'!BH1226=\"\",\"\",'1. Ordersheet'!BH1226)","v":""},{"$f":"IF('1. Ordersheet'!BI1226=\"\",\"\",'1. Ordersheet'!BI1226)","v":""},{"$f":"IF('1. Ordersheet'!BJ1226=\"\",\"\",'1. Ordersheet'!BJ1226)","v":""},{"$f":"IF('1. Ordersheet'!BK1226=\"\",\"\",'1. Ordersheet'!BK1226)","v":""},{"$f":"IF('1. Ordersheet'!BL1226=\"\",\"\",'1. Ordersheet'!BL1226)","v":""}]
[{"$f":"IF('1. Ordersheet'!F1227=\"\",\"\",'1. Ordersheet'!F1227)","v":""},{"$f":"IF('1. Ordersheet'!G1227=\"\",\"\",'1. Ordersheet'!G1227)","v":""},{"$f":"IF('1. Ordersheet'!H1227=\"\",\"\",'1. Ordersheet'!H1227)","v":""},{"$f":"IF('1. Ordersheet'!I1227=\"\",\"\",'1. Ordersheet'!I1227)","v":""},{"$f":"IF('1. Ordersheet'!J1227=\"\",\"\",'1. Ordersheet'!J1227)","v":""},{"$f":"IF('1. Ordersheet'!K1227=\"\",\"\",'1. Ordersheet'!K1227)","v":""},{"$f":"IF('1. Ordersheet'!L1227=\"\",\"\",'1. Ordersheet'!L1227)","v":""},{"$f":"IF('1. Ordersheet'!M1227=\"\",\"\",'1. Ordersheet'!M1227)","v":""},{"$f":"IF('1. Ordersheet'!N1227=\"\",\"\",'1. Ordersheet'!N1227)","v":""},{"$f":"IF('1. Ordersheet'!O1227=\"\",\"\",'1. Ordersheet'!O1227)","v":{"$error":"#N/A"}},{"$f":"IF('1. Ordersheet'!P1227=\"\",\"\",'1. Ordersheet'!P1227)","v":{"$error":"#N/A"}},{"$f":"IF('1. Ordersheet'!Q1227=\"\",\"\",'1. Ordersheet'!Q1227)","v":""},{"$f":"IF('1. Ordersheet'!R1227=\"\",\"\",'1. Ordersheet'!R1227)","v":""},{"$f":"IF('1. Ordersheet'!S1227=\"\",\"\",'1. Ordersheet'!S1227)","v":""},{"$f":"IF('1. Ordersheet'!V1227=\"\",\"\",'1. Ordersheet'!V1227)","v":""},{"$f":"IF('1. Ordersheet'!W1227=\"\",\"\",'1. Ordersheet'!W1227)","v":""},{"$f":"IF('1. Ordersheet'!X1227=\"\",\"\",'1. Ordersheet'!X1227)","v":""},{"$f":"IF('1. Ordersheet'!Y1227=\"\",\"\",'1. Ordersheet'!Y1227)","v":""},{"$f":"IF('1. Ordersheet'!Z1227=\"\",\"\",'1. Ordersheet'!Z1227)","v":""},{"$f":"IF('1. Ordersheet'!AA1227=\"\",\"\",'1. Ordersheet'!AA1227)","v":""},null,{"$f":"IF('1. Ordersheet'!AS1227=\"\",\"\",'1. Ordersheet'!AS1227)","v":""},{"$f":"IF('1. Ordersheet'!AT1227=\"\",\"\",'1. Ordersheet'!AT1227)","v":""},null,null,null,null,null,null,null,{"$f":"IF('1. Ordersheet'!AX1227=\"\",\"\",'1. Ordersheet'!AX1227)","v":""},{"$f":"IF('1. Ordersheet'!AY1227=\"\",\"\",'1. Ordersheet'!AY1227)","v":""},{"$f":"IF('1. Ordersheet'!AZ1227=\"\",\"\",'1. Ordersheet'!AZ1227)","v":""},{"$f":"IF('1. Ordersheet'!BA1227=\"\",\"\",'1. Ordersheet'!BA1227)","v":""},{"$f":"IF('1. Ordersheet'!BC1227=\"\",\"\",'1. Ordersheet'!BC1227)","v":""},{"$f":"IF('1. Ordersheet'!BD1227=\"\",\"\",'1. Ordersheet'!BD1227)","v":""},{"$f":"IF('1. Ordersheet'!BE1227=\"\",\"\",'1. Ordersheet'!BE1227)","v":""},{"$f":"IF('1. Ordersheet'!BF1227=\"\",\"\",'1. Ordersheet'!BF1227)","v":""},{"$f":"IF('1. Ordersheet'!BG1227=\"\",\"\",'1. Ordersheet'!BG1227)","v":"ZWO"},{"$f":"IF('1. Ordersheet'!BH1227=\"\",\"\",'1. Ordersheet'!BH1227)","v":""},{"$f":"IF('1. Ordersheet'!BI1227=\"\",\"\",'1. Ordersheet'!BI1227)","v":""},{"$f":"IF('1. Ordersheet'!BJ1227=\"\",\"\",'1. Ordersheet'!BJ1227)","v":""},{"$f":"IF('1. Ordersheet'!BK1227=\"\",\"\",'1. Ordersheet'!BK1227)","v":""},{"$f":"IF('1. Ordersheet'!BL1227=\"\",\"\",'1. Ordersheet'!BL1227)","v":""}]
[{"$f":"IF('1. Ordersheet'!F1228=\"\",\"\",'1. Ordersheet'!F1228)","v":""},{"$f":"IF('1. Ordersheet'!G1228=\"\",\"\",'1. Ordersheet'!G1228)","v":""},{"$f":"IF('1. Ordersheet'!H1228=\"\",\"\",'1. Ordersheet'!H1228)","v":""},{"$f":"IF('1. Ordersheet'!I1228=\"\",\"\",'1. Ordersheet'!I1228)","v":""},{"$f":"IF('1. Ordersheet'!J1228=\"\",\"\",'1. Ordersheet'!J1228)","v":""},{"$f":"IF('1. Ordersheet'!K1228=\"\",\"\",'1. Ordersheet'!K1228)","v":""},{"$f":"IF('1. Ordersheet'!L1228=\"\",\"\",'1. Ordersheet'!L1228)","v":""},{"$f":"IF('1. Ordersheet'!M1228=\"\",\"\",'1. Ordersheet'!M1228)","v":""},{"$f":"IF('1. Ordersheet'!N1228=\"\",\"\",'1. Ordersheet'!N1228)","v":""},{"$f":"IF('1. Ordersheet'!O1228=\"\",\"\",'1. Ordersheet'!O1228)","v":{"$error":"#N/A"}},{"$f":"IF('1. Ordersheet'!P1228=\"\",\"\",'1. Ordersheet'!P1228)","v":{"$error":"#N/A"}},{"$f":"IF('1. Ordersheet'!Q1228=\"\",\"\",'1. Ordersheet'!Q1228)","v":""},{"$f":"IF('1. Ordersheet'!R1228=\"\",\"\",'1. Ordersheet'!R1228)","v":""},{"$f":"IF('1. Ordersheet'!S1228=\"\",\"\",'1. Ordersheet'!S1228)","v":""},{"$f":"IF('1. Ordersheet'!V1228=\"\",\"\",'1. Ordersheet'!V1228)","v":""},{"$f":"IF('1. Ordersheet'!W1228=\"\",\"\",'1. Ordersheet'!W1228)","v":""},{"$f":"IF('1. Ordersheet'!X1228=\"\",\"\",'1. Ordersheet'!X1228)","v":""},{"$f":"IF('1. Ordersheet'!Y1228=\"\",\"\",'1. Ordersheet'!Y1228)","v":""},{"$f":"IF('1. Ordersheet'!Z1228=\"\",\"\",'1. Ordersheet'!Z1228)","v":""},{"$f":"IF('1. Ordersheet'!AA1228=\"\",\"\",'1. Ordersheet'!AA1228)","v":""},null,{"$f":"IF('1. Ordersheet'!AS1228=\"\",\"\",'1. Ordersheet'!AS1228)","v":""},{"$f":"IF('1. Ordersheet'!AT1228=\"\",\"\",'1. Ordersheet'!AT1228)","v":""},null,null,null,null,null,null,null,{"$f":"IF('1. Ordersheet'!AX1228=\"\",\"\",'1. Ordersheet'!AX1228)","v":""},{"$f":"IF('1. Ordersheet'!AY1228=\"\",\"\",'1. Ordersheet'!AY1228)","v":""},{"$f":"IF('1. Ordersheet'!AZ1228=\"\",\"\",'1. Ordersheet'!AZ1228)","v":""},{"$f":"IF('1. Ordersheet'!BA1228=\"\",\"\",'1. Ordersheet'!BA1228)","v":""},{"$f":"IF('1. Ordersheet'!BC1228=\"\",\"\",'1. Ordersheet'!BC1228)","v":""},{"$f":"IF('1. Ordersheet'!BD1228=\"\",\"\",'1. Ordersheet'!BD1228)","v":""},{"$f":"IF('1. Ordersheet'!BE1228=\"\",\"\",'1. Ordersheet'!BE1228)","v":""},{"$f":"IF('1. Ordersheet'!BF1228=\"\",\"\",'1. Ordersheet'!BF1228)","v":""},{"$f":"IF('1. Ordersheet'!BG1228=\"\",\"\",'1. Ordersheet'!BG1228)","v":"ZWO"},{"$f":"IF('1. Ordersheet'!BH1228=\"\",\"\",'1. Ordersheet'!BH1228)","v":""},{"$f":"IF('1. Ordersheet'!BI1228=\"\",\"\",'1. Ordersheet'!BI1228)","v":""},{"$f":"IF('1. Ordersheet'!BJ1228=\"\",\"\",'1. Ordersheet'!BJ1228)","v":""},{"$f":"IF('1. Ordersheet'!BK1228=\"\",\"\",'1. Ordersheet'!BK1228)","v":""},{"$f":"IF('1. Ordersheet'!BL1228=\"\",\"\",'1. Ordersheet'!BL1228)","v":""}]
[{"$f":"IF('1. Ordersheet'!F1229=\"\",\"\",'1. Ordersheet'!F1229)","v":""},{"$f":"IF('1. Ordersheet'!G1229=\"\",\"\",'1. Ordersheet'!G1229)","v":""},{"$f":"IF('1. Ordersheet'!H1229=\"\",\"\",'1. Ordersheet'!H1229)","v":""},{"$f":"IF('1. Ordersheet'!I1229=\"\",\"\",'1. Ordersheet'!I1229)","v":""},{"$f":"IF('1. Ordersheet'!J1229=\"\",\"\",'1. Ordersheet'!J1229)","v":""},{"$f":"IF('1. Ordersheet'!K1229=\"\",\"\",'1. Ordersheet'!K1229)","v":""},{"$f":"IF('1. Ordersheet'!L1229=\"\",\"\",'1. Ordersheet'!L1229)","v":""},{"$f":"IF('1. Ordersheet'!M1229=\"\",\"\",'1. Ordersheet'!M1229)","v":""},{"$f":"IF('1. Ordersheet'!N1229=\"\",\"\",'1. Ordersheet'!N1229)","v":""},{"$f":"IF('1. Ordersheet'!O1229=\"\",\"\",'1. Ordersheet'!O1229)","v":{"$error":"#N/A"}},{"$f":"IF('1. Ordersheet'!P1229=\"\",\"\",'1. Ordersheet'!P1229)","v":{"$error":"#N/A"}},{"$f":"IF('1. Ordersheet'!Q1229=\"\",\"\",'1. Ordersheet'!Q1229)","v":""},{"$f":"IF('1. Ordersheet'!R1229=\"\",\"\",'1. Ordersheet'!R1229)","v":""},{"$f":"IF('1. Ordersheet'!S1229=\"\",\"\",'1. Ordersheet'!S1229)","v":""},{"$f":"IF('1. Ordersheet'!V1229=\"\",\"\",'1. Ordersheet'!V1229)","v":""},{"$f":"IF('1. Ordersheet'!W1229=\"\",\"\",'1. Ordersheet'!W1229)","v":""},{"$f":"IF('1. Ordersheet'!X1229=\"\",\"\",'1. Ordersheet'!X1229)","v":""},{"$f":"IF('1. Ordersheet'!Y1229=\"\",\"\",'1. Ordersheet'!Y1229)","v":""},{"$f":"IF('1. Ordersheet'!Z1229=\"\",\"\",'1. Ordersheet'!Z1229)","v":""},{"$f":"IF('1. Ordersheet'!AA1229=\"\",\"\",'1. Ordersheet'!AA1229)","v":""},null,{"$f":"IF('1. Ordersheet'!AS1229=\"\",\"\",'1. Ordersheet'!AS1229)","v":""},{"$f":"IF('1. Ordersheet'!AT1229=\"\",\"\",'1. Ordersheet'!AT1229)","v":""},null,null,null,null,null,null,null,{"$f":"IF('1. Ordersheet'!AX1229=\"\",\"\",'1. Ordersheet'!AX1229)","v":""},{"$f":"IF('1. Ordersheet'!AY1229=\"\",\"\",'1. Ordersheet'!AY1229)","v":""},{"$f":"IF('1. Ordersheet'!AZ1229=\"\",\"\",'1. Ordersheet'!AZ1229)","v":""},{"$f":"IF('1. Ordersheet'!BA1229=\"\",\"\",'1. Ordersheet'!BA1229)","v":""},{"$f":"IF('1. Ordersheet'!BC1229=\"\",\"\",'1. Ordersheet'!BC1229)","v":""},{"$f":"IF('1. Ordersheet'!BD1229=\"\",\"\",'1. Ordersheet'!BD1229)","v":""},{"$f":"IF('1. Ordersheet'!BE1229=\"\",\"\",'1. Ordersheet'!BE1229)","v":""},{"$f":"IF('1. Ordersheet'!BF1229=\"\",\"\",'1. Ordersheet'!BF1229)","v":""},{"$f":"IF('1. Ordersheet'!BG1229=\"\",\"\",'1. Ordersheet'!BG1229)","v":"ZWO"},{"$f":"IF('1. Ordersheet'!BH1229=\"\",\"\",'1. Ordersheet'!BH1229)","v":""},{"$f":"IF('1. Ordersheet'!BI1229=\"\",\"\",'1. Ordersheet'!BI1229)","v":""},{"$f":"IF('1. Ordersheet'!BJ1229=\"\",\"\",'1. Ordersheet'!BJ1229)","v":""},{"$f":"IF('1. Ordersheet'!BK1229=\"\",\"\",'1. Ordersheet'!BK1229)","v":""},{"$f":"IF('1. Ordersheet'!BL1229=\"\",\"\",'1. Ordersheet'!BL1229)","v":""}]
[{"$f":"IF('1. Ordersheet'!F1230=\"\",\"\",'1. Ordersheet'!F1230)","v":""},{"$f":"IF('1. Ordersheet'!G1230=\"\",\"\",'1. Ordersheet'!G1230)","v":""},{"$f":"IF('1. Ordersheet'!H1230=\"\",\"\",'1. Ordersheet'!H1230)","v":""},{"$f":"IF('1. Ordersheet'!I1230=\"\",\"\",'1. Ordersheet'!I1230)","v":""},{"$f":"IF('1. Ordersheet'!J1230=\"\",\"\",'1. Ordersheet'!J1230)","v":""},{"$f":"IF('1. Ordersheet'!K1230=\"\",\"\",'1. Ordersheet'!K1230)","v":""},{"$f":"IF('1. Ordersheet'!L1230=\"\",\"\",'1. Ordersheet'!L1230)","v":""},{"$f":"IF('1. Ordersheet'!M1230=\"\",\"\",'1. Ordersheet'!M1230)","v":""},{"$f":"IF('1. Ordersheet'!N1230=\"\",\"\",'1. Ordersheet'!N1230)","v":""},{"$f":"IF('1. Ordersheet'!O1230=\"\",\"\",'1. Ordersheet'!O1230)","v":{"$error":"#N/A"}},{"$f":"IF('1. Ordersheet'!P1230=\"\",\"\",'1. Ordersheet'!P1230)","v":{"$error":"#N/A"}},{"$f":"IF('1. Ordersheet'!Q1230=\"\",\"\",'1. Ordersheet'!Q1230)","v":""},{"$f":"IF('1. Ordersheet'!R1230=\"\",\"\",'1. Ordersheet'!R1230)","v":""},{"$f":"IF('1. Ordersheet'!S1230=\"\",\"\",'1. Ordersheet'!S1230)","v":""},{"$f":"IF('1. Ordersheet'!V1230=\"\",\"\",'1. Ordersheet'!V1230)","v":""},{"$f":"IF('1. Ordersheet'!W1230=\"\",\"\",'1. Ordersheet'!W1230)","v":""},{"$f":"IF('1. Ordersheet'!X1230=\"\",\"\",'1. Ordersheet'!X1230)","v":""},{"$f":"IF('1. Ordersheet'!Y1230=\"\",\"\",'1. Ordersheet'!Y1230)","v":""},{"$f":"IF('1. Ordersheet'!Z1230=\"\",\"\",'1. Ordersheet'!Z1230)","v":""},{"$f":"IF('1. Ordersheet'!AA1230=\"\",\"\",'1. Ordersheet'!AA1230)","v":""},null,{"$f":"IF('1. Ordersheet'!AS1230=\"\",\"\",'1. Ordersheet'!AS1230)","v":""},{"$f":"IF('1. Ordersheet'!AT1230=\"\",\"\",'1. Ordersheet'!AT1230)","v":""},null,null,null,null,null,null,null,{"$f":"IF('1. Ordersheet'!AX1230=\"\",\"\",'1. Ordersheet'!AX1230)","v":""},{"$f":"IF('1. Ordersheet'!AY1230=\"\",\"\",'1. Ordersheet'!AY1230)","v":""},{"$f":"IF('1. Ordersheet'!AZ1230=\"\",\"\",'1. Ordersheet'!AZ1230)","v":""},{"$f":"IF('1. Ordersheet'!BA1230=\"\",\"\",'1. Ordersheet'!BA1230)","v":""},{"$f":"IF('1. Ordersheet'!BC1230=\"\",\"\",'1. Ordersheet'!BC1230)","v":""},{"$f":"IF('1. Ordersheet'!BD1230=\"\",\"\",'1. Ordersheet'!BD1230)","v":""},{"$f":"IF('1. Ordersheet'!BE1230=\"\",\"\",'1. Ordersheet'!BE1230)","v":""},{"$f":"IF('1. Ordersheet'!BF1230=\"\",\"\",'1. Ordersheet'!BF1230)","v":""},{"$f":"IF('1. Ordersheet'!BG1230=\"\",\"\",'1. Ordersheet'!BG1230)","v":"ZWO"},{"$f":"IF('1. Ordersheet'!BH1230=\"\",\"\",'1. Ordersheet'!BH1230)","v":""},{"$f":"IF('1. Ordersheet'!BI1230=\"\",\"\",'1. Ordersheet'!BI1230)","v":""},{"$f":"IF('1. Ordersheet'!BJ1230=\"\",\"\",'1. Ordersheet'!BJ1230)","v":""},{"$f":"IF('1. Ordersheet'!BK1230=\"\",\"\",'1. Ordersheet'!BK1230)","v":""},{"$f":"IF('1. Ordersheet'!BL1230=\"\",\"\",'1. Ordersheet'!BL1230)","v":""}]
[{"$f":"IF('1. Ordersheet'!F1231=\"\",\"\",'1. Ordersheet'!F1231)","v":""},{"$f":"IF('1. Ordersheet'!G1231=\"\",\"\",'1. Ordersheet'!G1231)","v":""},{"$f":"IF('1. Ordersheet'!H1231=\"\",\"\",'1. Ordersheet'!H1231)","v":""},{"$f":"IF('1. Ordersheet'!I1231=\"\",\"\",'1. Ordersheet'!I1231)","v":""},{"$f":"IF('1. Ordersheet'!J1231=\"\",\"\",'1. Ordersheet'!J1231)","v":""},{"$f":"IF('1. Ordersheet'!K1231=\"\",\"\",'1. Ordersheet'!K1231)","v":""},{"$f":"IF('1. Ordersheet'!L1231=\"\",\"\",'1. Ordersheet'!L1231)","v":""},{"$f":"IF('1. Ordersheet'!M1231=\"\",\"\",'1. Ordersheet'!M1231)","v":""},{"$f":"IF('1. Ordersheet'!N1231=\"\",\"\",'1. Ordersheet'!N1231)","v":""},{"$f":"IF('1. Ordersheet'!O1231=\"\",\"\",'1. Ordersheet'!O1231)","v":{"$error":"#N/A"}},{"$f":"IF('1. Ordersheet'!P1231=\"\",\"\",'1. Ordersheet'!P1231)","v":{"$error":"#N/A"}},{"$f":"IF('1. Ordersheet'!Q1231=\"\",\"\",'1. Ordersheet'!Q1231)","v":""},{"$f":"IF('1. Ordersheet'!R1231=\"\",\"\",'1. Ordersheet'!R1231)","v":""},{"$f":"IF('1. Ordersheet'!S1231=\"\",\"\",'1. Ordersheet'!S1231)","v":""},{"$f":"IF('1. Ordersheet'!V1231=\"\",\"\",'1. Ordersheet'!V1231)","v":""},{"$f":"IF('1. Ordersheet'!W1231=\"\",\"\",'1. Ordersheet'!W1231)","v":""},{"$f":"IF('1. Ordersheet'!X1231=\"\",\"\",'1. Ordersheet'!X1231)","v":""},{"$f":"IF('1. Ordersheet'!Y1231=\"\",\"\",'1. Ordersheet'!Y1231)","v":""},{"$f":"IF('1. Ordersheet'!Z1231=\"\",\"\",'1. Ordersheet'!Z1231)","v":""},{"$f":"IF('1. Ordersheet'!AA1231=\"\",\"\",'1. Ordersheet'!AA1231)","v":""},null,{"$f":"IF('1. Ordersheet'!AS1231=\"\",\"\",'1. Ordersheet'!AS1231)","v":""},{"$f":"IF('1. Ordersheet'!AT1231=\"\",\"\",'1. Ordersheet'!AT1231)","v":""},null,null,null,null,null,null,null,{"$f":"IF('1. Ordersheet'!AX1231=\"\",\"\",'1. Ordersheet'!AX1231)","v":""},{"$f":"IF('1. Ordersheet'!AY1231=\"\",\"\",'1. Ordersheet'!AY1231)","v":""},{"$f":"IF('1. Ordersheet'!AZ1231=\"\",\"\",'1. Ordersheet'!AZ1231)","v":""},{"$f":"IF('1. Ordersheet'!BA1231=\"\",\"\",'1. Ordersheet'!BA1231)","v":""},{"$f":"IF('1. Ordersheet'!BC1231=\"\",\"\",'1. Ordersheet'!BC1231)","v":""},{"$f":"IF('1. Ordersheet'!BD1231=\"\",\"\",'1. Ordersheet'!BD1231)","v":""},{"$f":"IF('1. Ordersheet'!BE1231=\"\",\"\",'1. Ordersheet'!BE1231)","v":""},{"$f":"IF('1. Ordersheet'!BF1231=\"\",\"\",'1. Ordersheet'!BF1231)","v":""},{"$f":"IF('1. Ordersheet'!BG1231=\"\",\"\",'1. Ordersheet'!BG1231)","v":"ZWO"},{"$f":"IF('1. Ordersheet'!BH1231=\"\",\"\",'1. Ordersheet'!BH1231)","v":""},{"$f":"IF('1. Ordersheet'!BI1231=\"\",\"\",'1. Ordersheet'!BI1231)","v":""},{"$f":"IF('1. Ordersheet'!BJ1231=\"\",\"\",'1. Ordersheet'!BJ1231)","v":""},{"$f":"IF('1. Ordersheet'!BK1231=\"\",\"\",'1. Ordersheet'!BK1231)","v":""},{"$f":"IF('1. Ordersheet'!BL1231=\"\",\"\",'1. Ordersheet'!BL1231)","v":""}]
[{"$f":"IF('1. Ordersheet'!F1232=\"\",\"\",'1. Ordersheet'!F1232)","v":""},{"$f":"IF('1. Ordersheet'!G1232=\"\",\"\",'1. Ordersheet'!G1232)","v":""},{"$f":"IF('1. Ordersheet'!H1232=\"\",\"\",'1. Ordersheet'!H1232)","v":""},{"$f":"IF('1. Ordersheet'!I1232=\"\",\"\",'1. Ordersheet'!I1232)","v":""},{"$f":"IF('1. Ordersheet'!J1232=\"\",\"\",'1. Ordersheet'!J1232)","v":""},{"$f":"IF('1. Ordersheet'!K1232=\"\",\"\",'1. Ordersheet'!K1232)","v":""},{"$f":"IF('1. Ordersheet'!L1232=\"\",\"\",'1. Ordersheet'!L1232)","v":""},{"$f":"IF('1. Ordersheet'!M1232=\"\",\"\",'1. Ordersheet'!M1232)","v":""},{"$f":"IF('1. Ordersheet'!N1232=\"\",\"\",'1. Ordersheet'!N1232)","v":""},{"$f":"IF('1. Ordersheet'!O1232=\"\",\"\",'1. Ordersheet'!O1232)","v":{"$error":"#N/A"}},{"$f":"IF('1. Ordersheet'!P1232=\"\",\"\",'1. Ordersheet'!P1232)","v":{"$error":"#N/A"}},{"$f":"IF('1. Ordersheet'!Q1232=\"\",\"\",'1. Ordersheet'!Q1232)","v":""},{"$f":"IF('1. Ordersheet'!R1232=\"\",\"\",'1. Ordersheet'!R1232)","v":""},{"$f":"IF('1. Ordersheet'!S1232=\"\",\"\",'1. Ordersheet'!S1232)","v":""},{"$f":"IF('1. Ordersheet'!V1232=\"\",\"\",'1. Ordersheet'!V1232)","v":""},{"$f":"IF('1. Ordersheet'!W1232=\"\",\"\",'1. Ordersheet'!W1232)","v":""},{"$f":"IF('1. Ordersheet'!X1232=\"\",\"\",'1. Ordersheet'!X1232)","v":""},{"$f":"IF('1. Ordersheet'!Y1232=\"\",\"\",'1. Ordersheet'!Y1232)","v":""},{"$f":"IF('1. Ordersheet'!Z1232=\"\",\"\",'1. Ordersheet'!Z1232)","v":""},{"$f":"IF('1. Ordersheet'!AA1232=\"\",\"\",'1. Ordersheet'!AA1232)","v":""},null,{"$f":"IF('1. Ordersheet'!AS1232=\"\",\"\",'1. Ordersheet'!AS1232)","v":""},{"$f":"IF('1. Ordersheet'!AT1232=\"\",\"\",'1. Ordersheet'!AT1232)","v":""},null,null,null,null,null,null,null,{"$f":"IF('1. Ordersheet'!AX1232=\"\",\"\",'1. Ordersheet'!AX1232)","v":""},{"$f":"IF('1. Ordersheet'!AY1232=\"\",\"\",'1. Ordersheet'!AY1232)","v":""},{"$f":"IF('1. Ordersheet'!AZ1232=\"\",\"\",'1. Ordersheet'!AZ1232)","v":""},{"$f":"IF('1. Ordersheet'!BA1232=\"\",\"\",'1. Ordersheet'!BA1232)","v":""},{"$f":"IF('1. Ordersheet'!BC1232=\"\",\"\",'1. Ordersheet'!BC1232)","v":""},{"$f":"IF('1. Ordersheet'!BD1232=\"\",\"\",'1. Ordersheet'!BD1232)","v":""},{"$f":"IF('1. Ordersheet'!BE1232=\"\",\"\",'1. Ordersheet'!BE1232)","v":""},{"$f":"IF('1. Ordersheet'!BF1232=\"\",\"\",'1. Ordersheet'!BF1232)","v":""},{"$f":"IF('1. Ordersheet'!BG1232=\"\",\"\",'1. Ordersheet'!BG1232)","v":"ZWO"},{"$f":"IF('1. Ordersheet'!BH1232=\"\",\"\",'1. Ordersheet'!BH1232)","v":""},{"$f":"IF('1. Ordersheet'!BI1232=\"\",\"\",'1. Ordersheet'!BI1232)","v":""},{"$f":"IF('1. Ordersheet'!BJ1232=\"\",\"\",'1. Ordersheet'!BJ1232)","v":""},{"$f":"IF('1. Ordersheet'!BK1232=\"\",\"\",'1. Ordersheet'!BK1232)","v":""},{"$f":"IF('1. Ordersheet'!BL1232=\"\",\"\",'1. Ordersheet'!BL1232)","v":""}]
[{"$f":"IF('1. Ordersheet'!F1233=\"\",\"\",'1. Ordersheet'!F1233)","v":""},{"$f":"IF('1. Ordersheet'!G1233=\"\",\"\",'1. Ordersheet'!G1233)","v":""},{"$f":"IF('1. Ordersheet'!H1233=\"\",\"\",'1. Ordersheet'!H1233)","v":""},{"$f":"IF('1. Ordersheet'!I1233=\"\",\"\",'1. Ordersheet'!I1233)","v":""},{"$f":"IF('1. Ordersheet'!J1233=\"\",\"\",'1. Ordersheet'!J1233)","v":""},{"$f":"IF('1. Ordersheet'!K1233=\"\",\"\",'1. Ordersheet'!K1233)","v":""},{"$f":"IF('1. Ordersheet'!L1233=\"\",\"\",'1. Ordersheet'!L1233)","v":""},{"$f":"IF('1. Ordersheet'!M1233=\"\",\"\",'1. Ordersheet'!M1233)","v":""},{"$f":"IF('1. Ordersheet'!N1233=\"\",\"\",'1. Ordersheet'!N1233)","v":""},{"$f":"IF('1. Ordersheet'!O1233=\"\",\"\",'1. Ordersheet'!O1233)","v":{"$error":"#N/A"}},{"$f":"IF('1. Ordersheet'!P1233=\"\",\"\",'1. Ordersheet'!P1233)","v":{"$error":"#N/A"}},{"$f":"IF('1. Ordersheet'!Q1233=\"\",\"\",'1. Ordersheet'!Q1233)","v":""},{"$f":"IF('1. Ordersheet'!R1233=\"\",\"\",'1. Ordersheet'!R1233)","v":""},{"$f":"IF('1. Ordersheet'!S1233=\"\",\"\",'1. Ordersheet'!S1233)","v":""},{"$f":"IF('1. Ordersheet'!V1233=\"\",\"\",'1. Ordersheet'!V1233)","v":""},{"$f":"IF('1. Ordersheet'!W1233=\"\",\"\",'1. Ordersheet'!W1233)","v":""},{"$f":"IF('1. Ordersheet'!X1233=\"\",\"\",'1. Ordersheet'!X1233)","v":""},{"$f":"IF('1. Ordersheet'!Y1233=\"\",\"\",'1. Ordersheet'!Y1233)","v":""},{"$f":"IF('1. Ordersheet'!Z1233=\"\",\"\",'1. Ordersheet'!Z1233)","v":""},{"$f":"IF('1. Ordersheet'!AA1233=\"\",\"\",'1. Ordersheet'!AA1233)","v":""},null,{"$f":"IF('1. Ordersheet'!AS1233=\"\",\"\",'1. Ordersheet'!AS1233)","v":""},{"$f":"IF('1. Ordersheet'!AT1233=\"\",\"\",'1. Ordersheet'!AT1233)","v":""},null,null,null,null,null,null,null,{"$f":"IF('1. Ordersheet'!AX1233=\"\",\"\",'1. Ordersheet'!AX1233)","v":""},{"$f":"IF('1. Ordersheet'!AY1233=\"\",\"\",'1. Ordersheet'!AY1233)","v":""},{"$f":"IF('1. Ordersheet'!AZ1233=\"\",\"\",'1. Ordersheet'!AZ1233)","v":""},{"$f":"IF('1. Ordersheet'!BA1233=\"\",\"\",'1. Ordersheet'!BA1233)","v":""},{"$f":"IF('1. Ordersheet'!BC1233=\"\",\"\",'1. Ordersheet'!BC1233)","v":""},{"$f":"IF('1. Ordersheet'!BD1233=\"\",\"\",'1. Ordersheet'!BD1233)","v":""},{"$f":"IF('1. Ordersheet'!BE1233=\"\",\"\",'1. Ordersheet'!BE1233)","v":""},{"$f":"IF('1. Ordersheet'!BF1233=\"\",\"\",'1. Ordersheet'!BF1233)","v":""},{"$f":"IF('1. Ordersheet'!BG1233=\"\",\"\",'1. Ordersheet'!BG1233)","v":"ZWO"},{"$f":"IF('1. Ordersheet'!BH1233=\"\",\"\",'1. Ordersheet'!BH1233)","v":""},{"$f":"IF('1. Ordersheet'!BI1233=\"\",\"\",'1. Ordersheet'!BI1233)","v":""},{"$f":"IF('1. Ordersheet'!BJ1233=\"\",\"\",'1. Ordersheet'!BJ1233)","v":""},{"$f":"IF('1. Ordersheet'!BK1233=\"\",\"\",'1. Ordersheet'!BK1233)","v":""},{"$f":"IF('1. Ordersheet'!BL1233=\"\",\"\",'1. Ordersheet'!BL1233)","v":""}]
[{"$f":"IF('1. Ordersheet'!F1234=\"\",\"\",'1. Ordersheet'!F1234)","v":""},{"$f":"IF('1. Ordersheet'!G1234=\"\",\"\",'1. Ordersheet'!G1234)","v":""},{"$f":"IF('1. Ordersheet'!H1234=\"\",\"\",'1. Ordersheet'!H1234)","v":""},{"$f":"IF('1. Ordersheet'!I1234=\"\",\"\",'1. Ordersheet'!I1234)","v":""},{"$f":"IF('1. Ordersheet'!J1234=\"\",\"\",'1. Ordersheet'!J1234)","v":""},{"$f":"IF('1. Ordersheet'!K1234=\"\",\"\",'1. Ordersheet'!K1234)","v":""},{"$f":"IF('1. Ordersheet'!L1234=\"\",\"\",'1. Ordersheet'!L1234)","v":""},{"$f":"IF('1. Ordersheet'!M1234=\"\",\"\",'1. Ordersheet'!M1234)","v":""},{"$f":"IF('1. Ordersheet'!N1234=\"\",\"\",'1. Ordersheet'!N1234)","v":""},{"$f":"IF('1. Ordersheet'!O1234=\"\",\"\",'1. Ordersheet'!O1234)","v":{"$error":"#N/A"}},{"$f":"IF('1. Ordersheet'!P1234=\"\",\"\",'1. Ordersheet'!P1234)","v":{"$error":"#N/A"}},{"$f":"IF('1. Ordersheet'!Q1234=\"\",\"\",'1. Ordersheet'!Q1234)","v":""},{"$f":"IF('1. Ordersheet'!R1234=\"\",\"\",'1. Ordersheet'!R1234)","v":""},{"$f":"IF('1. Ordersheet'!S1234=\"\",\"\",'1. Ordersheet'!S1234)","v":""},{"$f":"IF('1. Ordersheet'!V1234=\"\",\"\",'1. Ordersheet'!V1234)","v":""},{"$f":"IF('1. Ordersheet'!W1234=\"\",\"\",'1. Ordersheet'!W1234)","v":""},{"$f":"IF('1. Ordersheet'!X1234=\"\",\"\",'1. Ordersheet'!X1234)","v":""},{"$f":"IF('1. Ordersheet'!Y1234=\"\",\"\",'1. Ordersheet'!Y1234)","v":""},{"$f":"IF('1. Ordersheet'!Z1234=\"\",\"\",'1. Ordersheet'!Z1234)","v":""},{"$f":"IF('1. Ordersheet'!AA1234=\"\",\"\",'1. Ordersheet'!AA1234)","v":""},null,{"$f":"IF('1. Ordersheet'!AS1234=\"\",\"\",'1. Ordersheet'!AS1234)","v":""},{"$f":"IF('1. Ordersheet'!AT1234=\"\",\"\",'1. Ordersheet'!AT1234)","v":""},null,null,null,null,null,null,null,{"$f":"IF('1. Ordersheet'!AX1234=\"\",\"\",'1. Ordersheet'!AX1234)","v":""},{"$f":"IF('1. Ordersheet'!AY1234=\"\",\"\",'1. Ordersheet'!AY1234)","v":""},{"$f":"IF('1. Ordersheet'!AZ1234=\"\",\"\",'1. Ordersheet'!AZ1234)","v":""},{"$f":"IF('1. Ordersheet'!BA1234=\"\",\"\",'1. Ordersheet'!BA1234)","v":""},{"$f":"IF('1. Ordersheet'!BC1234=\"\",\"\",'1. Ordersheet'!BC1234)","v":""},{"$f":"IF('1. Ordersheet'!BD1234=\"\",\"\",'1. Ordersheet'!BD1234)","v":""},{"$f":"IF('1. Ordersheet'!BE1234=\"\",\"\",'1. Ordersheet'!BE1234)","v":""},{"$f":"IF('1. Ordersheet'!BF1234=\"\",\"\",'1. Ordersheet'!BF1234)","v":""},{"$f":"IF('1. Ordersheet'!BG1234=\"\",\"\",'1. Ordersheet'!BG1234)","v":"ZWO"},{"$f":"IF('1. Ordersheet'!BH1234=\"\",\"\",'1. Ordersheet'!BH1234)","v":""},{"$f":"IF('1. Ordersheet'!BI1234=\"\",\"\",'1. Ordersheet'!BI1234)","v":""},{"$f":"IF('1. Ordersheet'!BJ1234=\"\",\"\",'1. Ordersheet'!BJ1234)","v":""},{"$f":"IF('1. Ordersheet'!BK1234=\"\",\"\",'1. Ordersheet'!BK1234)","v":""},{"$f":"IF('1. Ordersheet'!BL1234=\"\",\"\",'1. Ordersheet'!BL1234)","v":""}]
[{"$f":"IF('1. Ordersheet'!F1235=\"\",\"\",'1. Ordersheet'!F1235)","v":""},{"$f":"IF('1. Ordersheet'!G1235=\"\",\"\",'1. Ordersheet'!G1235)","v":""},{"$f":"IF('1. Ordersheet'!H1235=\"\",\"\",'1. Ordersheet'!H1235)","v":""},{"$f":"IF('1. Ordersheet'!I1235=\"\",\"\",'1. Ordersheet'!I1235)","v":""},{"$f":"IF('1. Ordersheet'!J1235=\"\",\"\",'1. Ordersheet'!J1235)","v":""},{"$f":"IF('1. Ordersheet'!K1235=\"\",\"\",'1. Ordersheet'!K1235)","v":""},{"$f":"IF('1. Ordersheet'!L1235=\"\",\"\",'1. Ordersheet'!L1235)","v":""},{"$f":"IF('1. Ordersheet'!M1235=\"\",\"\",'1. Ordersheet'!M1235)","v":""},{"$f":"IF('1. Ordersheet'!N1235=\"\",\"\",'1. Ordersheet'!N1235)","v":""},{"$f":"IF('1. Ordersheet'!O1235=\"\",\"\",'1. Ordersheet'!O1235)","v":{"$error":"#N/A"}},{"$f":"IF('1. Ordersheet'!P1235=\"\",\"\",'1. Ordersheet'!P1235)","v":{"$error":"#N/A"}},{"$f":"IF('1. Ordersheet'!Q1235=\"\",\"\",'1. Ordersheet'!Q1235)","v":""},{"$f":"IF('1. Ordersheet'!R1235=\"\",\"\",'1. Ordersheet'!R1235)","v":""},{"$f":"IF('1. Ordersheet'!S1235=\"\",\"\",'1. Ordersheet'!S1235)","v":""},{"$f":"IF('1. Ordersheet'!V1235=\"\",\"\",'1. Ordersheet'!V1235)","v":""},{"$f":"IF('1. Ordersheet'!W1235=\"\",\"\",'1. Ordersheet'!W1235)","v":""},{"$f":"IF('1. Ordersheet'!X1235=\"\",\"\",'1. Ordersheet'!X1235)","v":""},{"$f":"IF('1. Ordersheet'!Y1235=\"\",\"\",'1. Ordersheet'!Y1235)","v":""},{"$f":"IF('1. Ordersheet'!Z1235=\"\",\"\",'1. Ordersheet'!Z1235)","v":""},{"$f":"IF('1. Ordersheet'!AA1235=\"\",\"\",'1. Ordersheet'!AA1235)","v":""},null,{"$f":"IF('1. Ordersheet'!AS1235=\"\",\"\",'1. Ordersheet'!AS1235)","v":""},{"$f":"IF('1. Ordersheet'!AT1235=\"\",\"\",'1. Ordersheet'!AT1235)","v":""},null,null,null,null,null,null,null,{"$f":"IF('1. Ordersheet'!AX1235=\"\",\"\",'1. Ordersheet'!AX1235)","v":""},{"$f":"IF('1. Ordersheet'!AY1235=\"\",\"\",'1. Ordersheet'!AY1235)","v":""},{"$f":"IF('1. Ordersheet'!AZ1235=\"\",\"\",'1. Ordersheet'!AZ1235)","v":""},{"$f":"IF('1. Ordersheet'!BA1235=\"\",\"\",'1. Ordersheet'!BA1235)","v":""},{"$f":"IF('1. Ordersheet'!BC1235=\"\",\"\",'1. Ordersheet'!BC1235)","v":""},{"$f":"IF('1. Ordersheet'!BD1235=\"\",\"\",'1. Ordersheet'!BD1235)","v":""},{"$f":"IF('1. Ordersheet'!BE1235=\"\",\"\",'1. Ordersheet'!BE1235)","v":""},{"$f":"IF('1. Ordersheet'!BF1235=\"\",\"\",'1. Ordersheet'!BF1235)","v":""},{"$f":"IF('1. Ordersheet'!BG1235=\"\",\"\",'1. Ordersheet'!BG1235)","v":"ZWO"},{"$f":"IF('1. Ordersheet'!BH1235=\"\",\"\",'1. Ordersheet'!BH1235)","v":""},{"$f":"IF('1. Ordersheet'!BI1235=\"\",\"\",'1. Ordersheet'!BI1235)","v":""},{"$f":"IF('1. Ordersheet'!BJ1235=\"\",\"\",'1. Ordersheet'!BJ1235)","v":""},{"$f":"IF('1. Ordersheet'!BK1235=\"\",\"\",'1. Ordersheet'!BK1235)","v":""},{"$f":"IF('1. Ordersheet'!BL1235=\"\",\"\",'1. Ordersheet'!BL1235)","v":""}]
[{"$f":"IF('1. Ordersheet'!F1236=\"\",\"\",'1. Ordersheet'!F1236)","v":""},{"$f":"IF('1. Ordersheet'!G1236=\"\",\"\",'1. Ordersheet'!G1236)","v":""},{"$f":"IF('1. Ordersheet'!H1236=\"\",\"\",'1. Ordersheet'!H1236)","v":""},{"$f":"IF('1. Ordersheet'!I1236=\"\",\"\",'1. Ordersheet'!I1236)","v":""},{"$f":"IF('1. Ordersheet'!J1236=\"\",\"\",'1. Ordersheet'!J1236)","v":""},{"$f":"IF('1. Ordersheet'!K1236=\"\",\"\",'1. Ordersheet'!K1236)","v":""},{"$f":"IF('1. Ordersheet'!L1236=\"\",\"\",'1. Ordersheet'!L1236)","v":""},{"$f":"IF('1. Ordersheet'!M1236=\"\",\"\",'1. Ordersheet'!M1236)","v":""},{"$f":"IF('1. Ordersheet'!N1236=\"\",\"\",'1. Ordersheet'!N1236)","v":""},{"$f":"IF('1. Ordersheet'!O1236=\"\",\"\",'1. Ordersheet'!O1236)","v":{"$error":"#N/A"}},{"$f":"IF('1. Ordersheet'!P1236=\"\",\"\",'1. Ordersheet'!P1236)","v":{"$error":"#N/A"}},{"$f":"IF('1. Ordersheet'!Q1236=\"\",\"\",'1. Ordersheet'!Q1236)","v":""},{"$f":"IF('1. Ordersheet'!R1236=\"\",\"\",'1. Ordersheet'!R1236)","v":""},{"$f":"IF('1. Ordersheet'!S1236=\"\",\"\",'1. Ordersheet'!S1236)","v":""},{"$f":"IF('1. Ordersheet'!V1236=\"\",\"\",'1. Ordersheet'!V1236)","v":""},{"$f":"IF('1. Ordersheet'!W1236=\"\",\"\",'1. Ordersheet'!W1236)","v":""},{"$f":"IF('1. Ordersheet'!X1236=\"\",\"\",'1. Ordersheet'!X1236)","v":""},{"$f":"IF('1. Ordersheet'!Y1236=\"\",\"\",'1. Ordersheet'!Y1236)","v":""},{"$f":"IF('1. Ordersheet'!Z1236=\"\",\"\",'1. Ordersheet'!Z1236)","v":""},{"$f":"IF('1. Ordersheet'!AA1236=\"\",\"\",'1. Ordersheet'!AA1236)","v":""},null,{"$f":"IF('1. Ordersheet'!AS1236=\"\",\"\",'1. Ordersheet'!AS1236)","v":""},{"$f":"IF('1. Ordersheet'!AT1236=\"\",\"\",'1. Ordersheet'!AT1236)","v":""},null,null,null,null,null,null,null,{"$f":"IF('1. Ordersheet'!AX1236=\"\",\"\",'1. Ordersheet'!AX1236)","v":""},{"$f":"IF('1. Ordersheet'!AY1236=\"\",\"\",'1. Ordersheet'!AY1236)","v":""},{"$f":"IF('1. Ordersheet'!AZ1236=\"\",\"\",'1. Ordersheet'!AZ1236)","v":""},{"$f":"IF('1. Ordersheet'!BA1236=\"\",\"\",'1. Ordersheet'!BA1236)","v":""},{"$f":"IF('1. Ordersheet'!BC1236=\"\",\"\",'1. Ordersheet'!BC1236)","v":""},{"$f":"IF('1. Ordersheet'!BD1236=\"\",\"\",'1. Ordersheet'!BD1236)","v":""},{"$f":"IF('1. Ordersheet'!BE1236=\"\",\"\",'1. Ordersheet'!BE1236)","v":""},{"$f":"IF('1. Ordersheet'!BF1236=\"\",\"\",'1. Ordersheet'!BF1236)","v":""},{"$f":"IF('1. Ordersheet'!BG1236=\"\",\"\",'1. Ordersheet'!BG1236)","v":"ZWO"},{"$f":"IF('1. Ordersheet'!BH1236=\"\",\"\",'1. Ordersheet'!BH1236)","v":""},{"$f":"IF('1. Ordersheet'!BI1236=\"\",\"\",'1. Ordersheet'!BI1236)","v":""},{"$f":"IF('1. Ordersheet'!BJ1236=\"\",\"\",'1. Ordersheet'!BJ1236)","v":""},{"$f":"IF('1. Ordersheet'!BK1236=\"\",\"\",'1. Ordersheet'!BK1236)","v":""},{"$f":"IF('1. Ordersheet'!BL1236=\"\",\"\",'1. Ordersheet'!BL1236)","v":""}]
[{"$f":"IF('1. Ordersheet'!F1237=\"\",\"\",'1. Ordersheet'!F1237)","v":""},{"$f":"IF('1. Ordersheet'!G1237=\"\",\"\",'1. Ordersheet'!G1237)","v":""},{"$f":"IF('1. Ordersheet'!H1237=\"\",\"\",'1. Ordersheet'!H1237)","v":""},{"$f":"IF('1. Ordersheet'!I1237=\"\",\"\",'1. Ordersheet'!I1237)","v":""},{"$f":"IF('1. Ordersheet'!J1237=\"\",\"\",'1. Ordersheet'!J1237)","v":""},{"$f":"IF('1. Ordersheet'!K1237=\"\",\"\",'1. Ordersheet'!K1237)","v":""},{"$f":"IF('1. Ordersheet'!L1237=\"\",\"\",'1. Ordersheet'!L1237)","v":""},{"$f":"IF('1. Ordersheet'!M1237=\"\",\"\",'1. Ordersheet'!M1237)","v":""},{"$f":"IF('1. Ordersheet'!N1237=\"\",\"\",'1. Ordersheet'!N1237)","v":""},{"$f":"IF('1. Ordersheet'!O1237=\"\",\"\",'1. Ordersheet'!O1237)","v":{"$error":"#N/A"}},{"$f":"IF('1. Ordersheet'!P1237=\"\",\"\",'1. Ordersheet'!P1237)","v":{"$error":"#N/A"}},{"$f":"IF('1. Ordersheet'!Q1237=\"\",\"\",'1. Ordersheet'!Q1237)","v":""},{"$f":"IF('1. Ordersheet'!R1237=\"\",\"\",'1. Ordersheet'!R1237)","v":""},{"$f":"IF('1. Ordersheet'!S1237=\"\",\"\",'1. Ordersheet'!S1237)","v":""},{"$f":"IF('1. Ordersheet'!V1237=\"\",\"\",'1. Ordersheet'!V1237)","v":""},{"$f":"IF('1. Ordersheet'!W1237=\"\",\"\",'1. Ordersheet'!W1237)","v":""},{"$f":"IF('1. Ordersheet'!X1237=\"\",\"\",'1. Ordersheet'!X1237)","v":""},{"$f":"IF('1. Ordersheet'!Y1237=\"\",\"\",'1. Ordersheet'!Y1237)","v":""},{"$f":"IF('1. Ordersheet'!Z1237=\"\",\"\",'1. Ordersheet'!Z1237)","v":""},{"$f":"IF('1. Ordersheet'!AA1237=\"\",\"\",'1. Ordersheet'!AA1237)","v":""},null,{"$f":"IF('1. Ordersheet'!AS1237=\"\",\"\",'1. Ordersheet'!AS1237)","v":""},{"$f":"IF('1. Ordersheet'!AT1237=\"\",\"\",'1. Ordersheet'!AT1237)","v":""},null,null,null,null,null,null,null,{"$f":"IF('1. Ordersheet'!AX1237=\"\",\"\",'1. Ordersheet'!AX1237)","v":""},{"$f":"IF('1. Ordersheet'!AY1237=\"\",\"\",'1. Ordersheet'!AY1237)","v":""},{"$f":"IF('1. Ordersheet'!AZ1237=\"\",\"\",'1. Ordersheet'!AZ1237)","v":""},{"$f":"IF('1. Ordersheet'!BA1237=\"\",\"\",'1. Ordersheet'!BA1237)","v":""},{"$f":"IF('1. Ordersheet'!BC1237=\"\",\"\",'1. Ordersheet'!BC1237)","v":""},{"$f":"IF('1. Ordersheet'!BD1237=\"\",\"\",'1. Ordersheet'!BD1237)","v":""},{"$f":"IF('1. Ordersheet'!BE1237=\"\",\"\",'1. Ordersheet'!BE1237)","v":""},{"$f":"IF('1. Ordersheet'!BF1237=\"\",\"\",'1. Ordersheet'!BF1237)","v":""},{"$f":"IF('1. Ordersheet'!BG1237=\"\",\"\",'1. Ordersheet'!BG1237)","v":"ZWO"},{"$f":"IF('1. Ordersheet'!BH1237=\"\",\"\",'1. Ordersheet'!BH1237)","v":""},{"$f":"IF('1. Ordersheet'!BI1237=\"\",\"\",'1. Ordersheet'!BI1237)","v":""},{"$f":"IF('1. Ordersheet'!BJ1237=\"\",\"\",'1. Ordersheet'!BJ1237)","v":""},{"$f":"IF('1. Ordersheet'!BK1237=\"\",\"\",'1. Ordersheet'!BK1237)","v":""},{"$f":"IF('1. Ordersheet'!BL1237=\"\",\"\",'1. Ordersheet'!BL1237)","v":""}]
[{"$f":"IF('1. Ordersheet'!F1238=\"\",\"\",'1. Ordersheet'!F1238)","v":""},{"$f":"IF('1. Ordersheet'!G1238=\"\",\"\",'1. Ordersheet'!G1238)","v":""},{"$f":"IF('1. Ordersheet'!H1238=\"\",\"\",'1. Ordersheet'!H1238)","v":""},{"$f":"IF('1. Ordersheet'!I1238=\"\",\"\",'1. Ordersheet'!I1238)","v":""},{"$f":"IF('1. Ordersheet'!J1238=\"\",\"\",'1. Ordersheet'!J1238)","v":""},{"$f":"IF('1. Ordersheet'!K1238=\"\",\"\",'1. Ordersheet'!K1238)","v":""},{"$f":"IF('1. Ordersheet'!L1238=\"\",\"\",'1. Ordersheet'!L1238)","v":""},{"$f":"IF('1. Ordersheet'!M1238=\"\",\"\",'1. Ordersheet'!M1238)","v":""},{"$f":"IF('1. Ordersheet'!N1238=\"\",\"\",'1. Ordersheet'!N1238)","v":""},{"$f":"IF('1. Ordersheet'!O1238=\"\",\"\",'1. Ordersheet'!O1238)","v":{"$error":"#N/A"}},{"$f":"IF('1. Ordersheet'!P1238=\"\",\"\",'1. Ordersheet'!P1238)","v":{"$error":"#N/A"}},{"$f":"IF('1. Ordersheet'!Q1238=\"\",\"\",'1. Ordersheet'!Q1238)","v":""},{"$f":"IF('1. Ordersheet'!R1238=\"\",\"\",'1. Ordersheet'!R1238)","v":""},{"$f":"IF('1. Ordersheet'!S1238=\"\",\"\",'1. Ordersheet'!S1238)","v":""},{"$f":"IF('1. Ordersheet'!V1238=\"\",\"\",'1. Ordersheet'!V1238)","v":""},{"$f":"IF('1. Ordersheet'!W1238=\"\",\"\",'1. Ordersheet'!W1238)","v":""},{"$f":"IF('1. Ordersheet'!X1238=\"\",\"\",'1. Ordersheet'!X1238)","v":""},{"$f":"IF('1. Ordersheet'!Y1238=\"\",\"\",'1. Ordersheet'!Y1238)","v":""},{"$f":"IF('1. Ordersheet'!Z1238=\"\",\"\",'1. Ordersheet'!Z1238)","v":""},{"$f":"IF('1. Ordersheet'!AA1238=\"\",\"\",'1. Ordersheet'!AA1238)","v":""},null,{"$f":"IF('1. Ordersheet'!AS1238=\"\",\"\",'1. Ordersheet'!AS1238)","v":""},{"$f":"IF('1. Ordersheet'!AT1238=\"\",\"\",'1. Ordersheet'!AT1238)","v":""},null,null,null,null,null,null,null,{"$f":"IF('1. Ordersheet'!AX1238=\"\",\"\",'1. Ordersheet'!AX1238)","v":""},{"$f":"IF('1. Ordersheet'!AY1238=\"\",\"\",'1. Ordersheet'!AY1238)","v":""},{"$f":"IF('1. Ordersheet'!AZ1238=\"\",\"\",'1. Ordersheet'!AZ1238)","v":""},{"$f":"IF('1. Ordersheet'!BA1238=\"\",\"\",'1. Ordersheet'!BA1238)","v":""},{"$f":"IF('1. Ordersheet'!BC1238=\"\",\"\",'1. Ordersheet'!BC1238)","v":""},{"$f":"IF('1. Ordersheet'!BD1238=\"\",\"\",'1. Ordersheet'!BD1238)","v":""},{"$f":"IF('1. Ordersheet'!BE1238=\"\",\"\",'1. Ordersheet'!BE1238)","v":""},{"$f":"IF('1. Ordersheet'!BF1238=\"\",\"\",'1. Ordersheet'!BF1238)","v":""},{"$f":"IF('1. Ordersheet'!BG1238=\"\",\"\",'1. Ordersheet'!BG1238)","v":"ZWO"},{"$f":"IF('1. Ordersheet'!BH1238=\"\",\"\",'1. Ordersheet'!BH1238)","v":""},{"$f":"IF('1. Ordersheet'!BI1238=\"\",\"\",'1. Ordersheet'!BI1238)","v":""},{"$f":"IF('1. Ordersheet'!BJ1238=\"\",\"\",'1. Ordersheet'!BJ1238)","v":""},{"$f":"IF('1. Ordersheet'!BK1238=\"\",\"\",'1. Ordersheet'!BK1238)","v":""},{"$f":"IF('1. Ordersheet'!BL1238=\"\",\"\",'1. Ordersheet'!BL1238)","v":""}]
[{"$f":"IF('1. Ordersheet'!F1239=\"\",\"\",'1. Ordersheet'!F1239)","v":""},{"$f":"IF('1. Ordersheet'!G1239=\"\",\"\",'1. Ordersheet'!G1239)","v":""},{"$f":"IF('1. Ordersheet'!H1239=\"\",\"\",'1. Ordersheet'!H1239)","v":""},{"$f":"IF('1. Ordersheet'!I1239=\"\",\"\",'1. Ordersheet'!I1239)","v":""},{"$f":"IF('1. Ordersheet'!J1239=\"\",\"\",'1. Ordersheet'!J1239)","v":""},{"$f":"IF('1. Ordersheet'!K1239=\"\",\"\",'1. Ordersheet'!K1239)","v":""},{"$f":"IF('1. Ordersheet'!L1239=\"\",\"\",'1. Ordersheet'!L1239)","v":""},{"$f":"IF('1. Ordersheet'!M1239=\"\",\"\",'1. Ordersheet'!M1239)","v":""},{"$f":"IF('1. Ordersheet'!N1239=\"\",\"\",'1. Ordersheet'!N1239)","v":""},{"$f":"IF('1. Ordersheet'!O1239=\"\",\"\",'1. Ordersheet'!O1239)","v":{"$error":"#N/A"}},{"$f":"IF('1. Ordersheet'!P1239=\"\",\"\",'1. Ordersheet'!P1239)","v":{"$error":"#N/A"}},{"$f":"IF('1. Ordersheet'!Q1239=\"\",\"\",'1. Ordersheet'!Q1239)","v":""},{"$f":"IF('1. Ordersheet'!R1239=\"\",\"\",'1. Ordersheet'!R1239)","v":""},{"$f":"IF('1. Ordersheet'!S1239=\"\",\"\",'1. Ordersheet'!S1239)","v":""},{"$f":"IF('1. Ordersheet'!V1239=\"\",\"\",'1. Ordersheet'!V1239)","v":""},{"$f":"IF('1. Ordersheet'!W1239=\"\",\"\",'1. Ordersheet'!W1239)","v":""},{"$f":"IF('1. Ordersheet'!X1239=\"\",\"\",'1. Ordersheet'!X1239)","v":""},{"$f":"IF('1. Ordersheet'!Y1239=\"\",\"\",'1. Ordersheet'!Y1239)","v":""},{"$f":"IF('1. Ordersheet'!Z1239=\"\",\"\",'1. Ordersheet'!Z1239)","v":""},{"$f":"IF('1. Ordersheet'!AA1239=\"\",\"\",'1. Ordersheet'!AA1239)","v":""},null,{"$f":"IF('1. Ordersheet'!AS1239=\"\",\"\",'1. Ordersheet'!AS1239)","v":""},{"$f":"IF('1. Ordersheet'!AT1239=\"\",\"\",'1. Ordersheet'!AT1239)","v":""},null,null,null,null,null,null,null,{"$f":"IF('1. Ordersheet'!AX1239=\"\",\"\",'1. Ordersheet'!AX1239)","v":""},{"$f":"IF('1. Ordersheet'!AY1239=\"\",\"\",'1. Ordersheet'!AY1239)","v":""},{"$f":"IF('1. Ordersheet'!AZ1239=\"\",\"\",'1. Ordersheet'!AZ1239)","v":""},{"$f":"IF('1. Ordersheet'!BA1239=\"\",\"\",'1. Ordersheet'!BA1239)","v":""},{"$f":"IF('1. Ordersheet'!BC1239=\"\",\"\",'1. Ordersheet'!BC1239)","v":""},{"$f":"IF('1. Ordersheet'!BD1239=\"\",\"\",'1. Ordersheet'!BD1239)","v":""},{"$f":"IF('1. Ordersheet'!BE1239=\"\",\"\",'1. Ordersheet'!BE1239)","v":""},{"$f":"IF('1. Ordersheet'!BF1239=\"\",\"\",'1. Ordersheet'!BF1239)","v":""},{"$f":"IF('1. Ordersheet'!BG1239=\"\",\"\",'1. Ordersheet'!BG1239)","v":"ZWO"},{"$f":"IF('1. Ordersheet'!BH1239=\"\",\"\",'1. Ordersheet'!BH1239)","v":""},{"$f":"IF('1. Ordersheet'!BI1239=\"\",\"\",'1. Ordersheet'!BI1239)","v":""},{"$f":"IF('1. Ordersheet'!BJ1239=\"\",\"\",'1. Ordersheet'!BJ1239)","v":""},{"$f":"IF('1. Ordersheet'!BK1239=\"\",\"\",'1. Ordersheet'!BK1239)","v":""},{"$f":"IF('1. Ordersheet'!BL1239=\"\",\"\",'1. Ordersheet'!BL1239)","v":""}]
[{"$f":"IF('1. Ordersheet'!F1240=\"\",\"\",'1. Ordersheet'!F1240)","v":""},{"$f":"IF('1. Ordersheet'!G1240=\"\",\"\",'1. Ordersheet'!G1240)","v":""},{"$f":"IF('1. Ordersheet'!H1240=\"\",\"\",'1. Ordersheet'!H1240)","v":""},{"$f":"IF('1. Ordersheet'!I1240=\"\",\"\",'1. Ordersheet'!I1240)","v":""},{"$f":"IF('1. Ordersheet'!J1240=\"\",\"\",'1. Ordersheet'!J1240)","v":""},{"$f":"IF('1. Ordersheet'!K1240=\"\",\"\",'1. Ordersheet'!K1240)","v":""},{"$f":"IF('1. Ordersheet'!L1240=\"\",\"\",'1. Ordersheet'!L1240)","v":""},{"$f":"IF('1. Ordersheet'!M1240=\"\",\"\",'1. Ordersheet'!M1240)","v":""},{"$f":"IF('1. Ordersheet'!N1240=\"\",\"\",'1. Ordersheet'!N1240)","v":""},{"$f":"IF('1. Ordersheet'!O1240=\"\",\"\",'1. Ordersheet'!O1240)","v":{"$error":"#N/A"}},{"$f":"IF('1. Ordersheet'!P1240=\"\",\"\",'1. Ordersheet'!P1240)","v":{"$error":"#N/A"}},{"$f":"IF('1. Ordersheet'!Q1240=\"\",\"\",'1. Ordersheet'!Q1240)","v":""},{"$f":"IF('1. Ordersheet'!R1240=\"\",\"\",'1. Ordersheet'!R1240)","v":""},{"$f":"IF('1. Ordersheet'!S1240=\"\",\"\",'1. Ordersheet'!S1240)","v":""},{"$f":"IF('1. Ordersheet'!V1240=\"\",\"\",'1. Ordersheet'!V1240)","v":""},{"$f":"IF('1. Ordersheet'!W1240=\"\",\"\",'1. Ordersheet'!W1240)","v":""},{"$f":"IF('1. Ordersheet'!X1240=\"\",\"\",'1. Ordersheet'!X1240)","v":""},{"$f":"IF('1. Ordersheet'!Y1240=\"\",\"\",'1. Ordersheet'!Y1240)","v":""},{"$f":"IF('1. Ordersheet'!Z1240=\"\",\"\",'1. Ordersheet'!Z1240)","v":""},{"$f":"IF('1. Ordersheet'!AA1240=\"\",\"\",'1. Ordersheet'!AA1240)","v":""},null,{"$f":"IF('1. Ordersheet'!AS1240=\"\",\"\",'1. Ordersheet'!AS1240)","v":""},{"$f":"IF('1. Ordersheet'!AT1240=\"\",\"\",'1. Ordersheet'!AT1240)","v":""},null,null,null,null,null,null,null,{"$f":"IF('1. Ordersheet'!AX1240=\"\",\"\",'1. Ordersheet'!AX1240)","v":""},{"$f":"IF('1. Ordersheet'!AY1240=\"\",\"\",'1. Ordersheet'!AY1240)","v":""},{"$f":"IF('1. Ordersheet'!AZ1240=\"\",\"\",'1. Ordersheet'!AZ1240)","v":""},{"$f":"IF('1. Ordersheet'!BA1240=\"\",\"\",'1. Ordersheet'!BA1240)","v":""},{"$f":"IF('1. Ordersheet'!BC1240=\"\",\"\",'1. Ordersheet'!BC1240)","v":""},{"$f":"IF('1. Ordersheet'!BD1240=\"\",\"\",'1. Ordersheet'!BD1240)","v":""},{"$f":"IF('1. Ordersheet'!BE1240=\"\",\"\",'1. Ordersheet'!BE1240)","v":""},{"$f":"IF('1. Ordersheet'!BF1240=\"\",\"\",'1. Ordersheet'!BF1240)","v":""},{"$f":"IF('1. Ordersheet'!BG1240=\"\",\"\",'1. Ordersheet'!BG1240)","v":"ZWO"},{"$f":"IF('1. Ordersheet'!BH1240=\"\",\"\",'1. Ordersheet'!BH1240)","v":""},{"$f":"IF('1. Ordersheet'!BI1240=\"\",\"\",'1. Ordersheet'!BI1240)","v":""},{"$f":"IF('1. Ordersheet'!BJ1240=\"\",\"\",'1. Ordersheet'!BJ1240)","v":""},{"$f":"IF('1. Ordersheet'!BK1240=\"\",\"\",'1. Ordersheet'!BK1240)","v":""},{"$f":"IF('1. Ordersheet'!BL1240=\"\",\"\",'1. Ordersheet'!BL1240)","v":""}]
[{"$f":"IF('1. Ordersheet'!F1241=\"\",\"\",'1. Ordersheet'!F1241)","v":""},{"$f":"IF('1. Ordersheet'!G1241=\"\",\"\",'1. Ordersheet'!G1241)","v":""},{"$f":"IF('1. Ordersheet'!H1241=\"\",\"\",'1. Ordersheet'!H1241)","v":""},{"$f":"IF('1. Ordersheet'!I1241=\"\",\"\",'1. Ordersheet'!I1241)","v":""},{"$f":"IF('1. Ordersheet'!J1241=\"\",\"\",'1. Ordersheet'!J1241)","v":""},{"$f":"IF('1. Ordersheet'!K1241=\"\",\"\",'1. Ordersheet'!K1241)","v":""},{"$f":"IF('1. Ordersheet'!L1241=\"\",\"\",'1. Ordersheet'!L1241)","v":""},{"$f":"IF('1. Ordersheet'!M1241=\"\",\"\",'1. Ordersheet'!M1241)","v":""},{"$f":"IF('1. Ordersheet'!N1241=\"\",\"\",'1. Ordersheet'!N1241)","v":""},{"$f":"IF('1. Ordersheet'!O1241=\"\",\"\",'1. Ordersheet'!O1241)","v":{"$error":"#N/A"}},{"$f":"IF('1. Ordersheet'!P1241=\"\",\"\",'1. Ordersheet'!P1241)","v":{"$error":"#N/A"}},{"$f":"IF('1. Ordersheet'!Q1241=\"\",\"\",'1. Ordersheet'!Q1241)","v":""},{"$f":"IF('1. Ordersheet'!R1241=\"\",\"\",'1. Ordersheet'!R1241)","v":""},{"$f":"IF('1. Ordersheet'!S1241=\"\",\"\",'1. Ordersheet'!S1241)","v":""},{"$f":"IF('1. Ordersheet'!V1241=\"\",\"\",'1. Ordersheet'!V1241)","v":""},{"$f":"IF('1. Ordersheet'!W1241=\"\",\"\",'1. Ordersheet'!W1241)","v":""},{"$f":"IF('1. Ordersheet'!X1241=\"\",\"\",'1. Ordersheet'!X1241)","v":""},{"$f":"IF('1. Ordersheet'!Y1241=\"\",\"\",'1. Ordersheet'!Y1241)","v":""},{"$f":"IF('1. Ordersheet'!Z1241=\"\",\"\",'1. Ordersheet'!Z1241)","v":""},{"$f":"IF('1. Ordersheet'!AA1241=\"\",\"\",'1. Ordersheet'!AA1241)","v":""},null,{"$f":"IF('1. Ordersheet'!AS1241=\"\",\"\",'1. Ordersheet'!AS1241)","v":""},{"$f":"IF('1. Ordersheet'!AT1241=\"\",\"\",'1. Ordersheet'!AT1241)","v":""},null,null,null,null,null,null,null,{"$f":"IF('1. Ordersheet'!AX1241=\"\",\"\",'1. Ordersheet'!AX1241)","v":""},{"$f":"IF('1. Ordersheet'!AY1241=\"\",\"\",'1. Ordersheet'!AY1241)","v":""},{"$f":"IF('1. Ordersheet'!AZ1241=\"\",\"\",'1. Ordersheet'!AZ1241)","v":""},{"$f":"IF('1. Ordersheet'!BA1241=\"\",\"\",'1. Ordersheet'!BA1241)","v":""},{"$f":"IF('1. Ordersheet'!BC1241=\"\",\"\",'1. Ordersheet'!BC1241)","v":""},{"$f":"IF('1. Ordersheet'!BD1241=\"\",\"\",'1. Ordersheet'!BD1241)","v":""},{"$f":"IF('1. Ordersheet'!BE1241=\"\",\"\",'1. Ordersheet'!BE1241)","v":""},{"$f":"IF('1. Ordersheet'!BF1241=\"\",\"\",'1. Ordersheet'!BF1241)","v":""},{"$f":"IF('1. Ordersheet'!BG1241=\"\",\"\",'1. Ordersheet'!BG1241)","v":"ZWO"},{"$f":"IF('1. Ordersheet'!BH1241=\"\",\"\",'1. Ordersheet'!BH1241)","v":""},{"$f":"IF('1. Ordersheet'!BI1241=\"\",\"\",'1. Ordersheet'!BI1241)","v":""},{"$f":"IF('1. Ordersheet'!BJ1241=\"\",\"\",'1. Ordersheet'!BJ1241)","v":""},{"$f":"IF('1. Ordersheet'!BK1241=\"\",\"\",'1. Ordersheet'!BK1241)","v":""},{"$f":"IF('1. Ordersheet'!BL1241=\"\",\"\",'1. Ordersheet'!BL1241)","v":""}]
[{"$f":"IF('1. Ordersheet'!F1242=\"\",\"\",'1. Ordersheet'!F1242)","v":""},{"$f":"IF('1. Ordersheet'!G1242=\"\",\"\",'1. Ordersheet'!G1242)","v":""},{"$f":"IF('1. Ordersheet'!H1242=\"\",\"\",'1. Ordersheet'!H1242)","v":""},{"$f":"IF('1. Ordersheet'!I1242=\"\",\"\",'1. Ordersheet'!I1242)","v":""},{"$f":"IF('1. Ordersheet'!J1242=\"\",\"\",'1. Ordersheet'!J1242)","v":""},{"$f":"IF('1. Ordersheet'!K1242=\"\",\"\",'1. Ordersheet'!K1242)","v":""},{"$f":"IF('1. Ordersheet'!L1242=\"\",\"\",'1. Ordersheet'!L1242)","v":""},{"$f":"IF('1. Ordersheet'!M1242=\"\",\"\",'1. Ordersheet'!M1242)","v":""},{"$f":"IF('1. Ordersheet'!N1242=\"\",\"\",'1. Ordersheet'!N1242)","v":""},{"$f":"IF('1. Ordersheet'!O1242=\"\",\"\",'1. Ordersheet'!O1242)","v":{"$error":"#N/A"}},{"$f":"IF('1. Ordersheet'!P1242=\"\",\"\",'1. Ordersheet'!P1242)","v":{"$error":"#N/A"}},{"$f":"IF('1. Ordersheet'!Q1242=\"\",\"\",'1. Ordersheet'!Q1242)","v":""},{"$f":"IF('1. Ordersheet'!R1242=\"\",\"\",'1. Ordersheet'!R1242)","v":""},{"$f":"IF('1. Ordersheet'!S1242=\"\",\"\",'1. Ordersheet'!S1242)","v":""},{"$f":"IF('1. Ordersheet'!V1242=\"\",\"\",'1. Ordersheet'!V1242)","v":""},{"$f":"IF('1. Ordersheet'!W1242=\"\",\"\",'1. Ordersheet'!W1242)","v":""},{"$f":"IF('1. Ordersheet'!X1242=\"\",\"\",'1. Ordersheet'!X1242)","v":""},{"$f":"IF('1. Ordersheet'!Y1242=\"\",\"\",'1. Ordersheet'!Y1242)","v":""},{"$f":"IF('1. Ordersheet'!Z1242=\"\",\"\",'1. Ordersheet'!Z1242)","v":""},{"$f":"IF('1. Ordersheet'!AA1242=\"\",\"\",'1. Ordersheet'!AA1242)","v":""},null,{"$f":"IF('1. Ordersheet'!AS1242=\"\",\"\",'1. Ordersheet'!AS1242)","v":""},{"$f":"IF('1. Ordersheet'!AT1242=\"\",\"\",'1. Ordersheet'!AT1242)","v":""},null,null,null,null,null,null,null,{"$f":"IF('1. Ordersheet'!AX1242=\"\",\"\",'1. Ordersheet'!AX1242)","v":""},{"$f":"IF('1. Ordersheet'!AY1242=\"\",\"\",'1. Ordersheet'!AY1242)","v":""},{"$f":"IF('1. Ordersheet'!AZ1242=\"\",\"\",'1. Ordersheet'!AZ1242)","v":""},{"$f":"IF('1. Ordersheet'!BA1242=\"\",\"\",'1. Ordersheet'!BA1242)","v":""},{"$f":"IF('1. Ordersheet'!BC1242=\"\",\"\",'1. Ordersheet'!BC1242)","v":""},{"$f":"IF('1. Ordersheet'!BD1242=\"\",\"\",'1. Ordersheet'!BD1242)","v":""},{"$f":"IF('1. Ordersheet'!BE1242=\"\",\"\",'1. Ordersheet'!BE1242)","v":""},{"$f":"IF('1. Ordersheet'!BF1242=\"\",\"\",'1. Ordersheet'!BF1242)","v":""},{"$f":"IF('1. Ordersheet'!BG1242=\"\",\"\",'1. Ordersheet'!BG1242)","v":"ZWO"},{"$f":"IF('1. Ordersheet'!BH1242=\"\",\"\",'1. Ordersheet'!BH1242)","v":""},{"$f":"IF('1. Ordersheet'!BI1242=\"\",\"\",'1. Ordersheet'!BI1242)","v":""},{"$f":"IF('1. Ordersheet'!BJ1242=\"\",\"\",'1. Ordersheet'!BJ1242)","v":""},{"$f":"IF('1. Ordersheet'!BK1242=\"\",\"\",'1. Ordersheet'!BK1242)","v":""},{"$f":"IF('1. Ordersheet'!BL1242=\"\",\"\",'1. Ordersheet'!BL1242)","v":""}]
[{"$f":"IF('1. Ordersheet'!F1243=\"\",\"\",'1. Ordersheet'!F1243)","v":""},{"$f":"IF('1. Ordersheet'!G1243=\"\",\"\",'1. Ordersheet'!G1243)","v":""},{"$f":"IF('1. Ordersheet'!H1243=\"\",\"\",'1. Ordersheet'!H1243)","v":""},{"$f":"IF('1. Ordersheet'!I1243=\"\",\"\",'1. Ordersheet'!I1243)","v":""},{"$f":"IF('1. Ordersheet'!J1243=\"\",\"\",'1. Ordersheet'!J1243)","v":""},{"$f":"IF('1. Ordersheet'!K1243=\"\",\"\",'1. Ordersheet'!K1243)","v":""},{"$f":"IF('1. Ordersheet'!L1243=\"\",\"\",'1. Ordersheet'!L1243)","v":""},{"$f":"IF('1. Ordersheet'!M1243=\"\",\"\",'1. Ordersheet'!M1243)","v":""},{"$f":"IF('1. Ordersheet'!N1243=\"\",\"\",'1. Ordersheet'!N1243)","v":""},{"$f":"IF('1. Ordersheet'!O1243=\"\",\"\",'1. Ordersheet'!O1243)","v":{"$error":"#N/A"}},{"$f":"IF('1. Ordersheet'!P1243=\"\",\"\",'1. Ordersheet'!P1243)","v":{"$error":"#N/A"}},{"$f":"IF('1. Ordersheet'!Q1243=\"\",\"\",'1. Ordersheet'!Q1243)","v":""},{"$f":"IF('1. Ordersheet'!R1243=\"\",\"\",'1. Ordersheet'!R1243)","v":""},{"$f":"IF('1. Ordersheet'!S1243=\"\",\"\",'1. Ordersheet'!S1243)","v":""},{"$f":"IF('1. Ordersheet'!V1243=\"\",\"\",'1. Ordersheet'!V1243)","v":""},{"$f":"IF('1. Ordersheet'!W1243=\"\",\"\",'1. Ordersheet'!W1243)","v":""},{"$f":"IF('1. Ordersheet'!X1243=\"\",\"\",'1. Ordersheet'!X1243)","v":""},{"$f":"IF('1. Ordersheet'!Y1243=\"\",\"\",'1. Ordersheet'!Y1243)","v":""},{"$f":"IF('1. Ordersheet'!Z1243=\"\",\"\",'1. Ordersheet'!Z1243)","v":""},{"$f":"IF('1. Ordersheet'!AA1243=\"\",\"\",'1. Ordersheet'!AA1243)","v":""},null,{"$f":"IF('1. Ordersheet'!AS1243=\"\",\"\",'1. Ordersheet'!AS1243)","v":""},{"$f":"IF('1. Ordersheet'!AT1243=\"\",\"\",'1. Ordersheet'!AT1243)","v":""},null,null,null,null,null,null,null,{"$f":"IF('1. Ordersheet'!AX1243=\"\",\"\",'1. Ordersheet'!AX1243)","v":""},{"$f":"IF('1. Ordersheet'!AY1243=\"\",\"\",'1. Ordersheet'!AY1243)","v":""},{"$f":"IF('1. Ordersheet'!AZ1243=\"\",\"\",'1. Ordersheet'!AZ1243)","v":""},{"$f":"IF('1. Ordersheet'!BA1243=\"\",\"\",'1. Ordersheet'!BA1243)","v":""},{"$f":"IF('1. Ordersheet'!BC1243=\"\",\"\",'1. Ordersheet'!BC1243)","v":""},{"$f":"IF('1. Ordersheet'!BD1243=\"\",\"\",'1. Ordersheet'!BD1243)","v":""},{"$f":"IF('1. Ordersheet'!BE1243=\"\",\"\",'1. Ordersheet'!BE1243)","v":""},{"$f":"IF('1. Ordersheet'!BF1243=\"\",\"\",'1. Ordersheet'!BF1243)","v":""},{"$f":"IF('1. Ordersheet'!BG1243=\"\",\"\",'1. Ordersheet'!BG1243)","v":"ZWO"},{"$f":"IF('1. Ordersheet'!BH1243=\"\",\"\",'1. Ordersheet'!BH1243)","v":""},{"$f":"IF('1. Ordersheet'!BI1243=\"\",\"\",'1. Ordersheet'!BI1243)","v":""},{"$f":"IF('1. Ordersheet'!BJ1243=\"\",\"\",'1. Ordersheet'!BJ1243)","v":""},{"$f":"IF('1. Ordersheet'!BK1243=\"\",\"\",'1. Ordersheet'!BK1243)","v":""},{"$f":"IF('1. Ordersheet'!BL1243=\"\",\"\",'1. Ordersheet'!BL1243)","v":""}]
[{"$f":"IF('1. Ordersheet'!F1244=\"\",\"\",'1. Ordersheet'!F1244)","v":""},{"$f":"IF('1. Ordersheet'!G1244=\"\",\"\",'1. Ordersheet'!G1244)","v":""},{"$f":"IF('1. Ordersheet'!H1244=\"\",\"\",'1. Ordersheet'!H1244)","v":""},{"$f":"IF('1. Ordersheet'!I1244=\"\",\"\",'1. Ordersheet'!I1244)","v":""},{"$f":"IF('1. Ordersheet'!J1244=\"\",\"\",'1. Ordersheet'!J1244)","v":""},{"$f":"IF('1. Ordersheet'!K1244=\"\",\"\",'1. Ordersheet'!K1244)","v":""},{"$f":"IF('1. Ordersheet'!L1244=\"\",\"\",'1. Ordersheet'!L1244)","v":""},{"$f":"IF('1. Ordersheet'!M1244=\"\",\"\",'1. Ordersheet'!M1244)","v":""},{"$f":"IF('1. Ordersheet'!N1244=\"\",\"\",'1. Ordersheet'!N1244)","v":""},{"$f":"IF('1. Ordersheet'!O1244=\"\",\"\",'1. Ordersheet'!O1244)","v":{"$error":"#N/A"}},{"$f":"IF('1. Ordersheet'!P1244=\"\",\"\",'1. Ordersheet'!P1244)","v":{"$error":"#N/A"}},{"$f":"IF('1. Ordersheet'!Q1244=\"\",\"\",'1. Ordersheet'!Q1244)","v":""},{"$f":"IF('1. Ordersheet'!R1244=\"\",\"\",'1. Ordersheet'!R1244)","v":""},{"$f":"IF('1. Ordersheet'!S1244=\"\",\"\",'1. Ordersheet'!S1244)","v":""},{"$f":"IF('1. Ordersheet'!V1244=\"\",\"\",'1. Ordersheet'!V1244)","v":""},{"$f":"IF('1. Ordersheet'!W1244=\"\",\"\",'1. Ordersheet'!W1244)","v":""},{"$f":"IF('1. Ordersheet'!X1244=\"\",\"\",'1. Ordersheet'!X1244)","v":""},{"$f":"IF('1. Ordersheet'!Y1244=\"\",\"\",'1. Ordersheet'!Y1244)","v":""},{"$f":"IF('1. Ordersheet'!Z1244=\"\",\"\",'1. Ordersheet'!Z1244)","v":""},{"$f":"IF('1. Ordersheet'!AA1244=\"\",\"\",'1. Ordersheet'!AA1244)","v":""},null,{"$f":"IF('1. Ordersheet'!AS1244=\"\",\"\",'1. Ordersheet'!AS1244)","v":""},{"$f":"IF('1. Ordersheet'!AT1244=\"\",\"\",'1. Ordersheet'!AT1244)","v":""},null,null,null,null,null,null,null,{"$f":"IF('1. Ordersheet'!AX1244=\"\",\"\",'1. Ordersheet'!AX1244)","v":""},{"$f":"IF('1. Ordersheet'!AY1244=\"\",\"\",'1. Ordersheet'!AY1244)","v":""},{"$f":"IF('1. Ordersheet'!AZ1244=\"\",\"\",'1. Ordersheet'!AZ1244)","v":""},{"$f":"IF('1. Ordersheet'!BA1244=\"\",\"\",'1. Ordersheet'!BA1244)","v":""},{"$f":"IF('1. Ordersheet'!BC1244=\"\",\"\",'1. Ordersheet'!BC1244)","v":""},{"$f":"IF('1. Ordersheet'!BD1244=\"\",\"\",'1. Ordersheet'!BD1244)","v":""},{"$f":"IF('1. Ordersheet'!BE1244=\"\",\"\",'1. Ordersheet'!BE1244)","v":""},{"$f":"IF('1. Ordersheet'!BF1244=\"\",\"\",'1. Ordersheet'!BF1244)","v":""},{"$f":"IF('1. Ordersheet'!BG1244=\"\",\"\",'1. Ordersheet'!BG1244)","v":"ZWO"},{"$f":"IF('1. Ordersheet'!BH1244=\"\",\"\",'1. Ordersheet'!BH1244)","v":""},{"$f":"IF('1. Ordersheet'!BI1244=\"\",\"\",'1. Ordersheet'!BI1244)","v":""},{"$f":"IF('1. Ordersheet'!BJ1244=\"\",\"\",'1. Ordersheet'!BJ1244)","v":""},{"$f":"IF('1. Ordersheet'!BK1244=\"\",\"\",'1. Ordersheet'!BK1244)","v":""},{"$f":"IF('1. Ordersheet'!BL1244=\"\",\"\",'1. Ordersheet'!BL1244)","v":""}]
[{"$f":"IF('1. Ordersheet'!F1245=\"\",\"\",'1. Ordersheet'!F1245)","v":""},{"$f":"IF('1. Ordersheet'!G1245=\"\",\"\",'1. Ordersheet'!G1245)","v":""},{"$f":"IF('1. Ordersheet'!H1245=\"\",\"\",'1. Ordersheet'!H1245)","v":""},{"$f":"IF('1. Ordersheet'!I1245=\"\",\"\",'1. Ordersheet'!I1245)","v":""},{"$f":"IF('1. Ordersheet'!J1245=\"\",\"\",'1. Ordersheet'!J1245)","v":""},{"$f":"IF('1. Ordersheet'!K1245=\"\",\"\",'1. Ordersheet'!K1245)","v":""},{"$f":"IF('1. Ordersheet'!L1245=\"\",\"\",'1. Ordersheet'!L1245)","v":""},{"$f":"IF('1. Ordersheet'!M1245=\"\",\"\",'1. Ordersheet'!M1245)","v":""},{"$f":"IF('1. Ordersheet'!N1245=\"\",\"\",'1. Ordersheet'!N1245)","v":""},{"$f":"IF('1. Ordersheet'!O1245=\"\",\"\",'1. Ordersheet'!O1245)","v":{"$error":"#N/A"}},{"$f":"IF('1. Ordersheet'!P1245=\"\",\"\",'1. Ordersheet'!P1245)","v":{"$error":"#N/A"}},{"$f":"IF('1. Ordersheet'!Q1245=\"\",\"\",'1. Ordersheet'!Q1245)","v":""},{"$f":"IF('1. Ordersheet'!R1245=\"\",\"\",'1. Ordersheet'!R1245)","v":""},{"$f":"IF('1. Ordersheet'!S1245=\"\",\"\",'1. Ordersheet'!S1245)","v":""},{"$f":"IF('1. Ordersheet'!V1245=\"\",\"\",'1. Ordersheet'!V1245)","v":""},{"$f":"IF('1. Ordersheet'!W1245=\"\",\"\",'1. Ordersheet'!W1245)","v":""},{"$f":"IF('1. Ordersheet'!X1245=\"\",\"\",'1. Ordersheet'!X1245)","v":""},{"$f":"IF('1. Ordersheet'!Y1245=\"\",\"\",'1. Ordersheet'!Y1245)","v":""},{"$f":"IF('1. Ordersheet'!Z1245=\"\",\"\",'1. Ordersheet'!Z1245)","v":""},{"$f":"IF('1. Ordersheet'!AA1245=\"\",\"\",'1. Ordersheet'!AA1245)","v":""},null,{"$f":"IF('1. Ordersheet'!AS1245=\"\",\"\",'1. Ordersheet'!AS1245)","v":""},{"$f":"IF('1. Ordersheet'!AT1245=\"\",\"\",'1. Ordersheet'!AT1245)","v":""},null,null,null,null,null,null,null,{"$f":"IF('1. Ordersheet'!AX1245=\"\",\"\",'1. Ordersheet'!AX1245)","v":""},{"$f":"IF('1. Ordersheet'!AY1245=\"\",\"\",'1. Ordersheet'!AY1245)","v":""},{"$f":"IF('1. Ordersheet'!AZ1245=\"\",\"\",'1. Ordersheet'!AZ1245)","v":""},{"$f":"IF('1. Ordersheet'!BA1245=\"\",\"\",'1. Ordersheet'!BA1245)","v":""},{"$f":"IF('1. Ordersheet'!BC1245=\"\",\"\",'1. Ordersheet'!BC1245)","v":""},{"$f":"IF('1. Ordersheet'!BD1245=\"\",\"\",'1. Ordersheet'!BD1245)","v":""},{"$f":"IF('1. Ordersheet'!BE1245=\"\",\"\",'1. Ordersheet'!BE1245)","v":""},{"$f":"IF('1. Ordersheet'!BF1245=\"\",\"\",'1. Ordersheet'!BF1245)","v":""},{"$f":"IF('1. Ordersheet'!BG1245=\"\",\"\",'1. Ordersheet'!BG1245)","v":"ZWO"},{"$f":"IF('1. Ordersheet'!BH1245=\"\",\"\",'1. Ordersheet'!BH1245)","v":""},{"$f":"IF('1. Ordersheet'!BI1245=\"\",\"\",'1. Ordersheet'!BI1245)","v":""},{"$f":"IF('1. Ordersheet'!BJ1245=\"\",\"\",'1. Ordersheet'!BJ1245)","v":""},{"$f":"IF('1. Ordersheet'!BK1245=\"\",\"\",'1. Ordersheet'!BK1245)","v":""},{"$f":"IF('1. Ordersheet'!BL1245=\"\",\"\",'1. Ordersheet'!BL1245)","v":""}]
[{"$f":"IF('1. Ordersheet'!F1246=\"\",\"\",'1. Ordersheet'!F1246)","v":""},{"$f":"IF('1. Ordersheet'!G1246=\"\",\"\",'1. Ordersheet'!G1246)","v":""},{"$f":"IF('1. Ordersheet'!H1246=\"\",\"\",'1. Ordersheet'!H1246)","v":""},{"$f":"IF('1. Ordersheet'!I1246=\"\",\"\",'1. Ordersheet'!I1246)","v":""},{"$f":"IF('1. Ordersheet'!J1246=\"\",\"\",'1. Ordersheet'!J1246)","v":""},{"$f":"IF('1. Ordersheet'!K1246=\"\",\"\",'1. Ordersheet'!K1246)","v":""},{"$f":"IF('1. Ordersheet'!L1246=\"\",\"\",'1. Ordersheet'!L1246)","v":""},{"$f":"IF('1. Ordersheet'!M1246=\"\",\"\",'1. Ordersheet'!M1246)","v":""},{"$f":"IF('1. Ordersheet'!N1246=\"\",\"\",'1. Ordersheet'!N1246)","v":""},{"$f":"IF('1. Ordersheet'!O1246=\"\",\"\",'1. Ordersheet'!O1246)","v":{"$error":"#N/A"}},{"$f":"IF('1. Ordersheet'!P1246=\"\",\"\",'1. Ordersheet'!P1246)","v":{"$error":"#N/A"}},{"$f":"IF('1. Ordersheet'!Q1246=\"\",\"\",'1. Ordersheet'!Q1246)","v":""},{"$f":"IF('1. Ordersheet'!R1246=\"\",\"\",'1. Ordersheet'!R1246)","v":""},{"$f":"IF('1. Ordersheet'!S1246=\"\",\"\",'1. Ordersheet'!S1246)","v":""},{"$f":"IF('1. Ordersheet'!V1246=\"\",\"\",'1. Ordersheet'!V1246)","v":""},{"$f":"IF('1. Ordersheet'!W1246=\"\",\"\",'1. Ordersheet'!W1246)","v":""},{"$f":"IF('1. Ordersheet'!X1246=\"\",\"\",'1. Ordersheet'!X1246)","v":""},{"$f":"IF('1. Ordersheet'!Y1246=\"\",\"\",'1. Ordersheet'!Y1246)","v":""},{"$f":"IF('1. Ordersheet'!Z1246=\"\",\"\",'1. Ordersheet'!Z1246)","v":""},{"$f":"IF('1. Ordersheet'!AA1246=\"\",\"\",'1. Ordersheet'!AA1246)","v":""},null,{"$f":"IF('1. Ordersheet'!AS1246=\"\",\"\",'1. Ordersheet'!AS1246)","v":""},{"$f":"IF('1. Ordersheet'!AT1246=\"\",\"\",'1. Ordersheet'!AT1246)","v":""},null,null,null,null,null,null,null,{"$f":"IF('1. Ordersheet'!AX1246=\"\",\"\",'1. Ordersheet'!AX1246)","v":""},{"$f":"IF('1. Ordersheet'!AY1246=\"\",\"\",'1. Ordersheet'!AY1246)","v":""},{"$f":"IF('1. Ordersheet'!AZ1246=\"\",\"\",'1. Ordersheet'!AZ1246)","v":""},{"$f":"IF('1. Ordersheet'!BA1246=\"\",\"\",'1. Ordersheet'!BA1246)","v":""},{"$f":"IF('1. Ordersheet'!BC1246=\"\",\"\",'1. Ordersheet'!BC1246)","v":""},{"$f":"IF('1. Ordersheet'!BD1246=\"\",\"\",'1. Ordersheet'!BD1246)","v":""},{"$f":"IF('1. Ordersheet'!BE1246=\"\",\"\",'1. Ordersheet'!BE1246)","v":""},{"$f":"IF('1. Ordersheet'!BF1246=\"\",\"\",'1. Ordersheet'!BF1246)","v":""},{"$f":"IF('1. Ordersheet'!BG1246=\"\",\"\",'1. Ordersheet'!BG1246)","v":"ZWO"},{"$f":"IF('1. Ordersheet'!BH1246=\"\",\"\",'1. Ordersheet'!BH1246)","v":""},{"$f":"IF('1. Ordersheet'!BI1246=\"\",\"\",'1. Ordersheet'!BI1246)","v":""},{"$f":"IF('1. Ordersheet'!BJ1246=\"\",\"\",'1. Ordersheet'!BJ1246)","v":""},{"$f":"IF('1. Ordersheet'!BK1246=\"\",\"\",'1. Ordersheet'!BK1246)","v":""},{"$f":"IF('1. Ordersheet'!BL1246=\"\",\"\",'1. Ordersheet'!BL1246)","v":""}]
[{"$f":"IF('1. Ordersheet'!F1247=\"\",\"\",'1. Ordersheet'!F1247)","v":""},{"$f":"IF('1. Ordersheet'!G1247=\"\",\"\",'1. Ordersheet'!G1247)","v":""},{"$f":"IF('1. Ordersheet'!H1247=\"\",\"\",'1. Ordersheet'!H1247)","v":""},{"$f":"IF('1. Ordersheet'!I1247=\"\",\"\",'1. Ordersheet'!I1247)","v":""},{"$f":"IF('1. Ordersheet'!J1247=\"\",\"\",'1. Ordersheet'!J1247)","v":""},{"$f":"IF('1. Ordersheet'!K1247=\"\",\"\",'1. Ordersheet'!K1247)","v":""},{"$f":"IF('1. Ordersheet'!L1247=\"\",\"\",'1. Ordersheet'!L1247)","v":""},{"$f":"IF('1. Ordersheet'!M1247=\"\",\"\",'1. Ordersheet'!M1247)","v":""},{"$f":"IF('1. Ordersheet'!N1247=\"\",\"\",'1. Ordersheet'!N1247)","v":""},{"$f":"IF('1. Ordersheet'!O1247=\"\",\"\",'1. Ordersheet'!O1247)","v":{"$error":"#N/A"}},{"$f":"IF('1. Ordersheet'!P1247=\"\",\"\",'1. Ordersheet'!P1247)","v":{"$error":"#N/A"}},{"$f":"IF('1. Ordersheet'!Q1247=\"\",\"\",'1. Ordersheet'!Q1247)","v":""},{"$f":"IF('1. Ordersheet'!R1247=\"\",\"\",'1. Ordersheet'!R1247)","v":""},{"$f":"IF('1. Ordersheet'!S1247=\"\",\"\",'1. Ordersheet'!S1247)","v":""},{"$f":"IF('1. Ordersheet'!V1247=\"\",\"\",'1. Ordersheet'!V1247)","v":""},{"$f":"IF('1. Ordersheet'!W1247=\"\",\"\",'1. Ordersheet'!W1247)","v":""},{"$f":"IF('1. Ordersheet'!X1247=\"\",\"\",'1. Ordersheet'!X1247)","v":""},{"$f":"IF('1. Ordersheet'!Y1247=\"\",\"\",'1. Ordersheet'!Y1247)","v":""},{"$f":"IF('1. Ordersheet'!Z1247=\"\",\"\",'1. Ordersheet'!Z1247)","v":""},{"$f":"IF('1. Ordersheet'!AA1247=\"\",\"\",'1. Ordersheet'!AA1247)","v":""},null,{"$f":"IF('1. Ordersheet'!AS1247=\"\",\"\",'1. Ordersheet'!AS1247)","v":""},{"$f":"IF('1. Ordersheet'!AT1247=\"\",\"\",'1. Ordersheet'!AT1247)","v":""},null,null,null,null,null,null,null,{"$f":"IF('1. Ordersheet'!AX1247=\"\",\"\",'1. Ordersheet'!AX1247)","v":""},{"$f":"IF('1. Ordersheet'!AY1247=\"\",\"\",'1. Ordersheet'!AY1247)","v":""},{"$f":"IF('1. Ordersheet'!AZ1247=\"\",\"\",'1. Ordersheet'!AZ1247)","v":""},{"$f":"IF('1. Ordersheet'!BA1247=\"\",\"\",'1. Ordersheet'!BA1247)","v":""},{"$f":"IF('1. Ordersheet'!BC1247=\"\",\"\",'1. Ordersheet'!BC1247)","v":""},{"$f":"IF('1. Ordersheet'!BD1247=\"\",\"\",'1. Ordersheet'!BD1247)","v":""},{"$f":"IF('1. Ordersheet'!BE1247=\"\",\"\",'1. Ordersheet'!BE1247)","v":""},{"$f":"IF('1. Ordersheet'!BF1247=\"\",\"\",'1. Ordersheet'!BF1247)","v":""},{"$f":"IF('1. Ordersheet'!BG1247=\"\",\"\",'1. Ordersheet'!BG1247)","v":"ZWO"},{"$f":"IF('1. Ordersheet'!BH1247=\"\",\"\",'1. Ordersheet'!BH1247)","v":""},{"$f":"IF('1. Ordersheet'!BI1247=\"\",\"\",'1. Ordersheet'!BI1247)","v":""},{"$f":"IF('1. Ordersheet'!BJ1247=\"\",\"\",'1. Ordersheet'!BJ1247)","v":""},{"$f":"IF('1. Ordersheet'!BK1247=\"\",\"\",'1. Ordersheet'!BK1247)","v":""},{"$f":"IF('1. Ordersheet'!BL1247=\"\",\"\",'1. Ordersheet'!BL1247)","v":""}]
[{"$f":"IF('1. Ordersheet'!F1248=\"\",\"\",'1. Ordersheet'!F1248)","v":""},{"$f":"IF('1. Ordersheet'!G1248=\"\",\"\",'1. Ordersheet'!G1248)","v":""},{"$f":"IF('1. Ordersheet'!H1248=\"\",\"\",'1. Ordersheet'!H1248)","v":""},{"$f":"IF('1. Ordersheet'!I1248=\"\",\"\",'1. Ordersheet'!I1248)","v":""},{"$f":"IF('1. Ordersheet'!J1248=\"\",\"\",'1. Ordersheet'!J1248)","v":""},{"$f":"IF('1. Ordersheet'!K1248=\"\",\"\",'1. Ordersheet'!K1248)","v":""},{"$f":"IF('1. Ordersheet'!L1248=\"\",\"\",'1. Ordersheet'!L1248)","v":""},{"$f":"IF('1. Ordersheet'!M1248=\"\",\"\",'1. Ordersheet'!M1248)","v":""},{"$f":"IF('1. Ordersheet'!N1248=\"\",\"\",'1. Ordersheet'!N1248)","v":""},{"$f":"IF('1. Ordersheet'!O1248=\"\",\"\",'1. Ordersheet'!O1248)","v":{"$error":"#N/A"}},{"$f":"IF('1. Ordersheet'!P1248=\"\",\"\",'1. Ordersheet'!P1248)","v":{"$error":"#N/A"}},{"$f":"IF('1. Ordersheet'!Q1248=\"\",\"\",'1. Ordersheet'!Q1248)","v":""},{"$f":"IF('1. Ordersheet'!R1248=\"\",\"\",'1. Ordersheet'!R1248)","v":""},{"$f":"IF('1. Ordersheet'!S1248=\"\",\"\",'1. Ordersheet'!S1248)","v":""},{"$f":"IF('1. Ordersheet'!V1248=\"\",\"\",'1. Ordersheet'!V1248)","v":""},{"$f":"IF('1. Ordersheet'!W1248=\"\",\"\",'1. Ordersheet'!W1248)","v":""},{"$f":"IF('1. Ordersheet'!X1248=\"\",\"\",'1. Ordersheet'!X1248)","v":""},{"$f":"IF('1. Ordersheet'!Y1248=\"\",\"\",'1. Ordersheet'!Y1248)","v":""},{"$f":"IF('1. Ordersheet'!Z1248=\"\",\"\",'1. Ordersheet'!Z1248)","v":""},{"$f":"IF('1. Ordersheet'!AA1248=\"\",\"\",'1. Ordersheet'!AA1248)","v":""},null,{"$f":"IF('1. Ordersheet'!AS1248=\"\",\"\",'1. Ordersheet'!AS1248)","v":""},{"$f":"IF('1. Ordersheet'!AT1248=\"\",\"\",'1. Ordersheet'!AT1248)","v":""},null,null,null,null,null,null,null,{"$f":"IF('1. Ordersheet'!AX1248=\"\",\"\",'1. Ordersheet'!AX1248)","v":""},{"$f":"IF('1. Ordersheet'!AY1248=\"\",\"\",'1. Ordersheet'!AY1248)","v":""},{"$f":"IF('1. Ordersheet'!AZ1248=\"\",\"\",'1. Ordersheet'!AZ1248)","v":""},{"$f":"IF('1. Ordersheet'!BA1248=\"\",\"\",'1. Ordersheet'!BA1248)","v":""},{"$f":"IF('1. Ordersheet'!BC1248=\"\",\"\",'1. Ordersheet'!BC1248)","v":""},{"$f":"IF('1. Ordersheet'!BD1248=\"\",\"\",'1. Ordersheet'!BD1248)","v":""},{"$f":"IF('1. Ordersheet'!BE1248=\"\",\"\",'1. Ordersheet'!BE1248)","v":""},{"$f":"IF('1. Ordersheet'!BF1248=\"\",\"\",'1. Ordersheet'!BF1248)","v":""},{"$f":"IF('1. Ordersheet'!BG1248=\"\",\"\",'1. Ordersheet'!BG1248)","v":"ZWO"},{"$f":"IF('1. Ordersheet'!BH1248=\"\",\"\",'1. Ordersheet'!BH1248)","v":""},{"$f":"IF('1. Ordersheet'!BI1248=\"\",\"\",'1. Ordersheet'!BI1248)","v":""},{"$f":"IF('1. Ordersheet'!BJ1248=\"\",\"\",'1. Ordersheet'!BJ1248)","v":""},{"$f":"IF('1. Ordersheet'!BK1248=\"\",\"\",'1. Ordersheet'!BK1248)","v":""},{"$f":"IF('1. Ordersheet'!BL1248=\"\",\"\",'1. Ordersheet'!BL1248)","v":""}]
[{"$f":"IF('1. Ordersheet'!F1249=\"\",\"\",'1. Ordersheet'!F1249)","v":""},{"$f":"IF('1. Ordersheet'!G1249=\"\",\"\",'1. Ordersheet'!G1249)","v":""},{"$f":"IF('1. Ordersheet'!H1249=\"\",\"\",'1. Ordersheet'!H1249)","v":""},{"$f":"IF('1. Ordersheet'!I1249=\"\",\"\",'1. Ordersheet'!I1249)","v":""},{"$f":"IF('1. Ordersheet'!J1249=\"\",\"\",'1. Ordersheet'!J1249)","v":""},{"$f":"IF('1. Ordersheet'!K1249=\"\",\"\",'1. Ordersheet'!K1249)","v":""},{"$f":"IF('1. Ordersheet'!L1249=\"\",\"\",'1. Ordersheet'!L1249)","v":""},{"$f":"IF('1. Ordersheet'!M1249=\"\",\"\",'1. Ordersheet'!M1249)","v":""},{"$f":"IF('1. Ordersheet'!N1249=\"\",\"\",'1. Ordersheet'!N1249)","v":""},{"$f":"IF('1. Ordersheet'!O1249=\"\",\"\",'1. Ordersheet'!O1249)","v":{"$error":"#N/A"}},{"$f":"IF('1. Ordersheet'!P1249=\"\",\"\",'1. Ordersheet'!P1249)","v":{"$error":"#N/A"}},{"$f":"IF('1. Ordersheet'!Q1249=\"\",\"\",'1. Ordersheet'!Q1249)","v":""},{"$f":"IF('1. Ordersheet'!R1249=\"\",\"\",'1. Ordersheet'!R1249)","v":""},{"$f":"IF('1. Ordersheet'!S1249=\"\",\"\",'1. Ordersheet'!S1249)","v":""},{"$f":"IF('1. Ordersheet'!V1249=\"\",\"\",'1. Ordersheet'!V1249)","v":""},{"$f":"IF('1. Ordersheet'!W1249=\"\",\"\",'1. Ordersheet'!W1249)","v":""},{"$f":"IF('1. Ordersheet'!X1249=\"\",\"\",'1. Ordersheet'!X1249)","v":""},{"$f":"IF('1. Ordersheet'!Y1249=\"\",\"\",'1. Ordersheet'!Y1249)","v":""},{"$f":"IF('1. Ordersheet'!Z1249=\"\",\"\",'1. Ordersheet'!Z1249)","v":""},{"$f":"IF('1. Ordersheet'!AA1249=\"\",\"\",'1. Ordersheet'!AA1249)","v":""},null,{"$f":"IF('1. Ordersheet'!AS1249=\"\",\"\",'1. Ordersheet'!AS1249)","v":""},{"$f":"IF('1. Ordersheet'!AT1249=\"\",\"\",'1. Ordersheet'!AT1249)","v":""},null,null,null,null,null,null,null,{"$f":"IF('1. Ordersheet'!AX1249=\"\",\"\",'1. Ordersheet'!AX1249)","v":""},{"$f":"IF('1. Ordersheet'!AY1249=\"\",\"\",'1. Ordersheet'!AY1249)","v":""},{"$f":"IF('1. Ordersheet'!AZ1249=\"\",\"\",'1. Ordersheet'!AZ1249)","v":""},{"$f":"IF('1. Ordersheet'!BA1249=\"\",\"\",'1. Ordersheet'!BA1249)","v":""},{"$f":"IF('1. Ordersheet'!BC1249=\"\",\"\",'1. Ordersheet'!BC1249)","v":""},{"$f":"IF('1. Ordersheet'!BD1249=\"\",\"\",'1. Ordersheet'!BD1249)","v":""},{"$f":"IF('1. Ordersheet'!BE1249=\"\",\"\",'1. Ordersheet'!BE1249)","v":""},{"$f":"IF('1. Ordersheet'!BF1249=\"\",\"\",'1. Ordersheet'!BF1249)","v":""},{"$f":"IF('1. Ordersheet'!BG1249=\"\",\"\",'1. Ordersheet'!BG1249)","v":"ZWO"},{"$f":"IF('1. Ordersheet'!BH1249=\"\",\"\",'1. Ordersheet'!BH1249)","v":""},{"$f":"IF('1. Ordersheet'!BI1249=\"\",\"\",'1. Ordersheet'!BI1249)","v":""},{"$f":"IF('1. Ordersheet'!BJ1249=\"\",\"\",'1. Ordersheet'!BJ1249)","v":""},{"$f":"IF('1. Ordersheet'!BK1249=\"\",\"\",'1. Ordersheet'!BK1249)","v":""},{"$f":"IF('1. Ordersheet'!BL1249=\"\",\"\",'1. Ordersheet'!BL1249)","v":""}]
[{"$f":"IF('1. Ordersheet'!F1250=\"\",\"\",'1. Ordersheet'!F1250)","v":""},{"$f":"IF('1. Ordersheet'!G1250=\"\",\"\",'1. Ordersheet'!G1250)","v":""},{"$f":"IF('1. Ordersheet'!H1250=\"\",\"\",'1. Ordersheet'!H1250)","v":""},{"$f":"IF('1. Ordersheet'!I1250=\"\",\"\",'1. Ordersheet'!I1250)","v":""},{"$f":"IF('1. Ordersheet'!J1250=\"\",\"\",'1. Ordersheet'!J1250)","v":""},{"$f":"IF('1. Ordersheet'!K1250=\"\",\"\",'1. Ordersheet'!K1250)","v":""},{"$f":"IF('1. Ordersheet'!L1250=\"\",\"\",'1. Ordersheet'!L1250)","v":""},{"$f":"IF('1. Ordersheet'!M1250=\"\",\"\",'1. Ordersheet'!M1250)","v":""},{"$f":"IF('1. Ordersheet'!N1250=\"\",\"\",'1. Ordersheet'!N1250)","v":""},{"$f":"IF('1. Ordersheet'!O1250=\"\",\"\",'1. Ordersheet'!O1250)","v":{"$error":"#N/A"}},{"$f":"IF('1. Ordersheet'!P1250=\"\",\"\",'1. Ordersheet'!P1250)","v":{"$error":"#N/A"}},{"$f":"IF('1. Ordersheet'!Q1250=\"\",\"\",'1. Ordersheet'!Q1250)","v":""},{"$f":"IF('1. Ordersheet'!R1250=\"\",\"\",'1. Ordersheet'!R1250)","v":""},{"$f":"IF('1. Ordersheet'!S1250=\"\",\"\",'1. Ordersheet'!S1250)","v":""},{"$f":"IF('1. Ordersheet'!V1250=\"\",\"\",'1. Ordersheet'!V1250)","v":""},{"$f":"IF('1. Ordersheet'!W1250=\"\",\"\",'1. Ordersheet'!W1250)","v":""},{"$f":"IF('1. Ordersheet'!X1250=\"\",\"\",'1. Ordersheet'!X1250)","v":""},{"$f":"IF('1. Ordersheet'!Y1250=\"\",\"\",'1. Ordersheet'!Y1250)","v":""},{"$f":"IF('1. Ordersheet'!Z1250=\"\",\"\",'1. Ordersheet'!Z1250)","v":""},{"$f":"IF('1. Ordersheet'!AA1250=\"\",\"\",'1. Ordersheet'!AA1250)","v":""},null,{"$f":"IF('1. Ordersheet'!AS1250=\"\",\"\",'1. Ordersheet'!AS1250)","v":""},{"$f":"IF('1. Ordersheet'!AT1250=\"\",\"\",'1. Ordersheet'!AT1250)","v":""},null,null,null,null,null,null,null,{"$f":"IF('1. Ordersheet'!AX1250=\"\",\"\",'1. Ordersheet'!AX1250)","v":""},{"$f":"IF('1. Ordersheet'!AY1250=\"\",\"\",'1. Ordersheet'!AY1250)","v":""},{"$f":"IF('1. Ordersheet'!AZ1250=\"\",\"\",'1. Ordersheet'!AZ1250)","v":""},{"$f":"IF('1. Ordersheet'!BA1250=\"\",\"\",'1. Ordersheet'!BA1250)","v":""},{"$f":"IF('1. Ordersheet'!BC1250=\"\",\"\",'1. Ordersheet'!BC1250)","v":""},{"$f":"IF('1. Ordersheet'!BD1250=\"\",\"\",'1. Ordersheet'!BD1250)","v":""},{"$f":"IF('1. Ordersheet'!BE1250=\"\",\"\",'1. Ordersheet'!BE1250)","v":""},{"$f":"IF('1. Ordersheet'!BF1250=\"\",\"\",'1. Ordersheet'!BF1250)","v":""},{"$f":"IF('1. Ordersheet'!BG1250=\"\",\"\",'1. Ordersheet'!BG1250)","v":"ZWO"},{"$f":"IF('1. Ordersheet'!BH1250=\"\",\"\",'1. Ordersheet'!BH1250)","v":""},{"$f":"IF('1. Ordersheet'!BI1250=\"\",\"\",'1. Ordersheet'!BI1250)","v":""},{"$f":"IF('1. Ordersheet'!BJ1250=\"\",\"\",'1. Ordersheet'!BJ1250)","v":""},{"$f":"IF('1. Ordersheet'!BK1250=\"\",\"\",'1. Ordersheet'!BK1250)","v":""},{"$f":"IF('1. Ordersheet'!BL1250=\"\",\"\",'1. Ordersheet'!BL1250)","v":""}]
[{"$f":"IF('1. Ordersheet'!F1251=\"\",\"\",'1. Ordersheet'!F1251)","v":""},{"$f":"IF('1. Ordersheet'!G1251=\"\",\"\",'1. Ordersheet'!G1251)","v":""},{"$f":"IF('1. Ordersheet'!H1251=\"\",\"\",'1. Ordersheet'!H1251)","v":""},{"$f":"IF('1. Ordersheet'!I1251=\"\",\"\",'1. Ordersheet'!I1251)","v":""},{"$f":"IF('1. Ordersheet'!J1251=\"\",\"\",'1. Ordersheet'!J1251)","v":""},{"$f":"IF('1. Ordersheet'!K1251=\"\",\"\",'1. Ordersheet'!K1251)","v":""},{"$f":"IF('1. Ordersheet'!L1251=\"\",\"\",'1. Ordersheet'!L1251)","v":""},{"$f":"IF('1. Ordersheet'!M1251=\"\",\"\",'1. Ordersheet'!M1251)","v":""},{"$f":"IF('1. Ordersheet'!N1251=\"\",\"\",'1. Ordersheet'!N1251)","v":""},{"$f":"IF('1. Ordersheet'!O1251=\"\",\"\",'1. Ordersheet'!O1251)","v":{"$error":"#N/A"}},{"$f":"IF('1. Ordersheet'!P1251=\"\",\"\",'1. Ordersheet'!P1251)","v":{"$error":"#N/A"}},{"$f":"IF('1. Ordersheet'!Q1251=\"\",\"\",'1. Ordersheet'!Q1251)","v":""},{"$f":"IF('1. Ordersheet'!R1251=\"\",\"\",'1. Ordersheet'!R1251)","v":""},{"$f":"IF('1. Ordersheet'!S1251=\"\",\"\",'1. Ordersheet'!S1251)","v":""},{"$f":"IF('1. Ordersheet'!V1251=\"\",\"\",'1. Ordersheet'!V1251)","v":""},{"$f":"IF('1. Ordersheet'!W1251=\"\",\"\",'1. Ordersheet'!W1251)","v":""},{"$f":"IF('1. Ordersheet'!X1251=\"\",\"\",'1. Ordersheet'!X1251)","v":""},{"$f":"IF('1. Ordersheet'!Y1251=\"\",\"\",'1. Ordersheet'!Y1251)","v":""},{"$f":"IF('1. Ordersheet'!Z1251=\"\",\"\",'1. Ordersheet'!Z1251)","v":""},{"$f":"IF('1. Ordersheet'!AA1251=\"\",\"\",'1. Ordersheet'!AA1251)","v":""},null,{"$f":"IF('1. Ordersheet'!AS1251=\"\",\"\",'1. Ordersheet'!AS1251)","v":""},{"$f":"IF('1. Ordersheet'!AT1251=\"\",\"\",'1. Ordersheet'!AT1251)","v":""},null,null,null,null,null,null,null,{"$f":"IF('1. Ordersheet'!AX1251=\"\",\"\",'1. Ordersheet'!AX1251)","v":""},{"$f":"IF('1. Ordersheet'!AY1251=\"\",\"\",'1. Ordersheet'!AY1251)","v":""},{"$f":"IF('1. Ordersheet'!AZ1251=\"\",\"\",'1. Ordersheet'!AZ1251)","v":""},{"$f":"IF('1. Ordersheet'!BA1251=\"\",\"\",'1. Ordersheet'!BA1251)","v":""},{"$f":"IF('1. Ordersheet'!BC1251=\"\",\"\",'1. Ordersheet'!BC1251)","v":""},{"$f":"IF('1. Ordersheet'!BD1251=\"\",\"\",'1. Ordersheet'!BD1251)","v":""},{"$f":"IF('1. Ordersheet'!BE1251=\"\",\"\",'1. Ordersheet'!BE1251)","v":""},{"$f":"IF('1. Ordersheet'!BF1251=\"\",\"\",'1. Ordersheet'!BF1251)","v":""},{"$f":"IF('1. Ordersheet'!BG1251=\"\",\"\",'1. Ordersheet'!BG1251)","v":"ZWO"},{"$f":"IF('1. Ordersheet'!BH1251=\"\",\"\",'1. Ordersheet'!BH1251)","v":""},{"$f":"IF('1. Ordersheet'!BI1251=\"\",\"\",'1. Ordersheet'!BI1251)","v":""},{"$f":"IF('1. Ordersheet'!BJ1251=\"\",\"\",'1. Ordersheet'!BJ1251)","v":""},{"$f":"IF('1. Ordersheet'!BK1251=\"\",\"\",'1. Ordersheet'!BK1251)","v":""},{"$f":"IF('1. Ordersheet'!BL1251=\"\",\"\",'1. Ordersheet'!BL1251)","v":""}]
[{"$f":"IF('1. Ordersheet'!F1252=\"\",\"\",'1. Ordersheet'!F1252)","v":""},{"$f":"IF('1. Ordersheet'!G1252=\"\",\"\",'1. Ordersheet'!G1252)","v":""},{"$f":"IF('1. Ordersheet'!H1252=\"\",\"\",'1. Ordersheet'!H1252)","v":""},{"$f":"IF('1. Ordersheet'!I1252=\"\",\"\",'1. Ordersheet'!I1252)","v":""},{"$f":"IF('1. Ordersheet'!J1252=\"\",\"\",'1. Ordersheet'!J1252)","v":""},{"$f":"IF('1. Ordersheet'!K1252=\"\",\"\",'1. Ordersheet'!K1252)","v":""},{"$f":"IF('1. Ordersheet'!L1252=\"\",\"\",'1. Ordersheet'!L1252)","v":""},{"$f":"IF('1. Ordersheet'!M1252=\"\",\"\",'1. Ordersheet'!M1252)","v":""},{"$f":"IF('1. Ordersheet'!N1252=\"\",\"\",'1. Ordersheet'!N1252)","v":""},{"$f":"IF('1. Ordersheet'!O1252=\"\",\"\",'1. Ordersheet'!O1252)","v":{"$error":"#N/A"}},{"$f":"IF('1. Ordersheet'!P1252=\"\",\"\",'1. Ordersheet'!P1252)","v":{"$error":"#N/A"}},{"$f":"IF('1. Ordersheet'!Q1252=\"\",\"\",'1. Ordersheet'!Q1252)","v":""},{"$f":"IF('1. Ordersheet'!R1252=\"\",\"\",'1. Ordersheet'!R1252)","v":""},{"$f":"IF('1. Ordersheet'!S1252=\"\",\"\",'1. Ordersheet'!S1252)","v":""},{"$f":"IF('1. Ordersheet'!V1252=\"\",\"\",'1. Ordersheet'!V1252)","v":""},{"$f":"IF('1. Ordersheet'!W1252=\"\",\"\",'1. Ordersheet'!W1252)","v":""},{"$f":"IF('1. Ordersheet'!X1252=\"\",\"\",'1. Ordersheet'!X1252)","v":""},{"$f":"IF('1. Ordersheet'!Y1252=\"\",\"\",'1. Ordersheet'!Y1252)","v":""},{"$f":"IF('1. Ordersheet'!Z1252=\"\",\"\",'1. Ordersheet'!Z1252)","v":""},{"$f":"IF('1. Ordersheet'!AA1252=\"\",\"\",'1. Ordersheet'!AA1252)","v":""},null,{"$f":"IF('1. Ordersheet'!AS1252=\"\",\"\",'1. Ordersheet'!AS1252)","v":""},{"$f":"IF('1. Ordersheet'!AT1252=\"\",\"\",'1. Ordersheet'!AT1252)","v":""},null,null,null,null,null,null,null,{"$f":"IF('1. Ordersheet'!AX1252=\"\",\"\",'1. Ordersheet'!AX1252)","v":""},{"$f":"IF('1. Ordersheet'!AY1252=\"\",\"\",'1. Ordersheet'!AY1252)","v":""},{"$f":"IF('1. Ordersheet'!AZ1252=\"\",\"\",'1. Ordersheet'!AZ1252)","v":""},{"$f":"IF('1. Ordersheet'!BA1252=\"\",\"\",'1. Ordersheet'!BA1252)","v":""},{"$f":"IF('1. Ordersheet'!BC1252=\"\",\"\",'1. Ordersheet'!BC1252)","v":""},{"$f":"IF('1. Ordersheet'!BD1252=\"\",\"\",'1. Ordersheet'!BD1252)","v":""},{"$f":"IF('1. Ordersheet'!BE1252=\"\",\"\",'1. Ordersheet'!BE1252)","v":""},{"$f":"IF('1. Ordersheet'!BF1252=\"\",\"\",'1. Ordersheet'!BF1252)","v":""},{"$f":"IF('1. Ordersheet'!BG1252=\"\",\"\",'1. Ordersheet'!BG1252)","v":"ZWO"},{"$f":"IF('1. Ordersheet'!BH1252=\"\",\"\",'1. Ordersheet'!BH1252)","v":""},{"$f":"IF('1. Ordersheet'!BI1252=\"\",\"\",'1. Ordersheet'!BI1252)","v":""},{"$f":"IF('1. Ordersheet'!BJ1252=\"\",\"\",'1. Ordersheet'!BJ1252)","v":""},{"$f":"IF('1. Ordersheet'!BK1252=\"\",\"\",'1. Ordersheet'!BK1252)","v":""},{"$f":"IF('1. Ordersheet'!BL1252=\"\",\"\",'1. Ordersheet'!BL1252)","v":""}]
[{"$f":"IF('1. Ordersheet'!F1253=\"\",\"\",'1. Ordersheet'!F1253)","v":""},{"$f":"IF('1. Ordersheet'!G1253=\"\",\"\",'1. Ordersheet'!G1253)","v":""},{"$f":"IF('1. Ordersheet'!H1253=\"\",\"\",'1. Ordersheet'!H1253)","v":""},{"$f":"IF('1. Ordersheet'!I1253=\"\",\"\",'1. Ordersheet'!I1253)","v":""},{"$f":"IF('1. Ordersheet'!J1253=\"\",\"\",'1. Ordersheet'!J1253)","v":""},{"$f":"IF('1. Ordersheet'!K1253=\"\",\"\",'1. Ordersheet'!K1253)","v":""},{"$f":"IF('1. Ordersheet'!L1253=\"\",\"\",'1. Ordersheet'!L1253)","v":""},{"$f":"IF('1. Ordersheet'!M1253=\"\",\"\",'1. Ordersheet'!M1253)","v":""},{"$f":"IF('1. Ordersheet'!N1253=\"\",\"\",'1. Ordersheet'!N1253)","v":""},{"$f":"IF('1. Ordersheet'!O1253=\"\",\"\",'1. Ordersheet'!O1253)","v":{"$error":"#N/A"}},{"$f":"IF('1. Ordersheet'!P1253=\"\",\"\",'1. Ordersheet'!P1253)","v":{"$error":"#N/A"}},{"$f":"IF('1. Ordersheet'!Q1253=\"\",\"\",'1. Ordersheet'!Q1253)","v":""},{"$f":"IF('1. Ordersheet'!R1253=\"\",\"\",'1. Ordersheet'!R1253)","v":""},{"$f":"IF('1. Ordersheet'!S1253=\"\",\"\",'1. Ordersheet'!S1253)","v":""},{"$f":"IF('1. Ordersheet'!V1253=\"\",\"\",'1. Ordersheet'!V1253)","v":""},{"$f":"IF('1. Ordersheet'!W1253=\"\",\"\",'1. Ordersheet'!W1253)","v":""},{"$f":"IF('1. Ordersheet'!X1253=\"\",\"\",'1. Ordersheet'!X1253)","v":""},{"$f":"IF('1. Ordersheet'!Y1253=\"\",\"\",'1. Ordersheet'!Y1253)","v":""},{"$f":"IF('1. Ordersheet'!Z1253=\"\",\"\",'1. Ordersheet'!Z1253)","v":""},{"$f":"IF('1. Ordersheet'!AA1253=\"\",\"\",'1. Ordersheet'!AA1253)","v":""},null,{"$f":"IF('1. Ordersheet'!AS1253=\"\",\"\",'1. Ordersheet'!AS1253)","v":""},{"$f":"IF('1. Ordersheet'!AT1253=\"\",\"\",'1. Ordersheet'!AT1253)","v":""},null,null,null,null,null,null,null,{"$f":"IF('1. Ordersheet'!AX1253=\"\",\"\",'1. Ordersheet'!AX1253)","v":""},{"$f":"IF('1. Ordersheet'!AY1253=\"\",\"\",'1. Ordersheet'!AY1253)","v":""},{"$f":"IF('1. Ordersheet'!AZ1253=\"\",\"\",'1. Ordersheet'!AZ1253)","v":""},{"$f":"IF('1. Ordersheet'!BA1253=\"\",\"\",'1. Ordersheet'!BA1253)","v":""},{"$f":"IF('1. Ordersheet'!BC1253=\"\",\"\",'1. Ordersheet'!BC1253)","v":""},{"$f":"IF('1. Ordersheet'!BD1253=\"\",\"\",'1. Ordersheet'!BD1253)","v":""},{"$f":"IF('1. Ordersheet'!BE1253=\"\",\"\",'1. Ordersheet'!BE1253)","v":""},{"$f":"IF('1. Ordersheet'!BF1253=\"\",\"\",'1. Ordersheet'!BF1253)","v":""},{"$f":"IF('1. Ordersheet'!BG1253=\"\",\"\",'1. Ordersheet'!BG1253)","v":"ZWO"},{"$f":"IF('1. Ordersheet'!BH1253=\"\",\"\",'1. Ordersheet'!BH1253)","v":""},{"$f":"IF('1. Ordersheet'!BI1253=\"\",\"\",'1. Ordersheet'!BI1253)","v":""},{"$f":"IF('1. Ordersheet'!BJ1253=\"\",\"\",'1. Ordersheet'!BJ1253)","v":""},{"$f":"IF('1. Ordersheet'!BK1253=\"\",\"\",'1. Ordersheet'!BK1253)","v":""},{"$f":"IF('1. Ordersheet'!BL1253=\"\",\"\",'1. Ordersheet'!BL1253)","v":""}]
[{"$f":"IF('1. Ordersheet'!F1254=\"\",\"\",'1. Ordersheet'!F1254)","v":""},{"$f":"IF('1. Ordersheet'!G1254=\"\",\"\",'1. Ordersheet'!G1254)","v":""},{"$f":"IF('1. Ordersheet'!H1254=\"\",\"\",'1. Ordersheet'!H1254)","v":""},{"$f":"IF('1. Ordersheet'!I1254=\"\",\"\",'1. Ordersheet'!I1254)","v":""},{"$f":"IF('1. Ordersheet'!J1254=\"\",\"\",'1. Ordersheet'!J1254)","v":""},{"$f":"IF('1. Ordersheet'!K1254=\"\",\"\",'1. Ordersheet'!K1254)","v":""},{"$f":"IF('1. Ordersheet'!L1254=\"\",\"\",'1. Ordersheet'!L1254)","v":""},{"$f":"IF('1. Ordersheet'!M1254=\"\",\"\",'1. Ordersheet'!M1254)","v":""},{"$f":"IF('1. Ordersheet'!N1254=\"\",\"\",'1. Ordersheet'!N1254)","v":""},{"$f":"IF('1. Ordersheet'!O1254=\"\",\"\",'1. Ordersheet'!O1254)","v":{"$error":"#N/A"}},{"$f":"IF('1. Ordersheet'!P1254=\"\",\"\",'1. Ordersheet'!P1254)","v":{"$error":"#N/A"}},{"$f":"IF('1. Ordersheet'!Q1254=\"\",\"\",'1. Ordersheet'!Q1254)","v":""},{"$f":"IF('1. Ordersheet'!R1254=\"\",\"\",'1. Ordersheet'!R1254)","v":""},{"$f":"IF('1. Ordersheet'!S1254=\"\",\"\",'1. Ordersheet'!S1254)","v":""},{"$f":"IF('1. Ordersheet'!V1254=\"\",\"\",'1. Ordersheet'!V1254)","v":""},{"$f":"IF('1. Ordersheet'!W1254=\"\",\"\",'1. Ordersheet'!W1254)","v":""},{"$f":"IF('1. Ordersheet'!X1254=\"\",\"\",'1. Ordersheet'!X1254)","v":""},{"$f":"IF('1. Ordersheet'!Y1254=\"\",\"\",'1. Ordersheet'!Y1254)","v":""},{"$f":"IF('1. Ordersheet'!Z1254=\"\",\"\",'1. Ordersheet'!Z1254)","v":""},{"$f":"IF('1. Ordersheet'!AA1254=\"\",\"\",'1. Ordersheet'!AA1254)","v":""},null,{"$f":"IF('1. Ordersheet'!AS1254=\"\",\"\",'1. Ordersheet'!AS1254)","v":""},{"$f":"IF('1. Ordersheet'!AT1254=\"\",\"\",'1. Ordersheet'!AT1254)","v":""},null,null,null,null,null,null,null,{"$f":"IF('1. Ordersheet'!AX1254=\"\",\"\",'1. Ordersheet'!AX1254)","v":""},{"$f":"IF('1. Ordersheet'!AY1254=\"\",\"\",'1. Ordersheet'!AY1254)","v":""},{"$f":"IF('1. Ordersheet'!AZ1254=\"\",\"\",'1. Ordersheet'!AZ1254)","v":""},{"$f":"IF('1. Ordersheet'!BA1254=\"\",\"\",'1. Ordersheet'!BA1254)","v":""},{"$f":"IF('1. Ordersheet'!BC1254=\"\",\"\",'1. Ordersheet'!BC1254)","v":""},{"$f":"IF('1. Ordersheet'!BD1254=\"\",\"\",'1. Ordersheet'!BD1254)","v":""},{"$f":"IF('1. Ordersheet'!BE1254=\"\",\"\",'1. Ordersheet'!BE1254)","v":""},{"$f":"IF('1. Ordersheet'!BF1254=\"\",\"\",'1. Ordersheet'!BF1254)","v":""},{"$f":"IF('1. Ordersheet'!BG1254=\"\",\"\",'1. Ordersheet'!BG1254)","v":"ZWO"},{"$f":"IF('1. Ordersheet'!BH1254=\"\",\"\",'1. Ordersheet'!BH1254)","v":""},{"$f":"IF('1. Ordersheet'!BI1254=\"\",\"\",'1. Ordersheet'!BI1254)","v":""},{"$f":"IF('1. Ordersheet'!BJ1254=\"\",\"\",'1. Ordersheet'!BJ1254)","v":""},{"$f":"IF('1. Ordersheet'!BK1254=\"\",\"\",'1. Ordersheet'!BK1254)","v":""},{"$f":"IF('1. Ordersheet'!BL1254=\"\",\"\",'1. Ordersheet'!BL1254)","v":""}]
[{"$f":"IF('1. Ordersheet'!F1255=\"\",\"\",'1. Ordersheet'!F1255)","v":""},{"$f":"IF('1. Ordersheet'!G1255=\"\",\"\",'1. Ordersheet'!G1255)","v":""},{"$f":"IF('1. Ordersheet'!H1255=\"\",\"\",'1. Ordersheet'!H1255)","v":""},{"$f":"IF('1. Ordersheet'!I1255=\"\",\"\",'1. Ordersheet'!I1255)","v":""},{"$f":"IF('1. Ordersheet'!J1255=\"\",\"\",'1. Ordersheet'!J1255)","v":""},{"$f":"IF('1. Ordersheet'!K1255=\"\",\"\",'1. Ordersheet'!K1255)","v":""},{"$f":"IF('1. Ordersheet'!L1255=\"\",\"\",'1. Ordersheet'!L1255)","v":""},{"$f":"IF('1. Ordersheet'!M1255=\"\",\"\",'1. Ordersheet'!M1255)","v":""},{"$f":"IF('1. Ordersheet'!N1255=\"\",\"\",'1. Ordersheet'!N1255)","v":""},{"$f":"IF('1. Ordersheet'!O1255=\"\",\"\",'1. Ordersheet'!O1255)","v":{"$error":"#N/A"}},{"$f":"IF('1. Ordersheet'!P1255=\"\",\"\",'1. Ordersheet'!P1255)","v":{"$error":"#N/A"}},{"$f":"IF('1. Ordersheet'!Q1255=\"\",\"\",'1. Ordersheet'!Q1255)","v":""},{"$f":"IF('1. Ordersheet'!R1255=\"\",\"\",'1. Ordersheet'!R1255)","v":""},{"$f":"IF('1. Ordersheet'!S1255=\"\",\"\",'1. Ordersheet'!S1255)","v":""},{"$f":"IF('1. Ordersheet'!V1255=\"\",\"\",'1. Ordersheet'!V1255)","v":""},{"$f":"IF('1. Ordersheet'!W1255=\"\",\"\",'1. Ordersheet'!W1255)","v":""},{"$f":"IF('1. Ordersheet'!X1255=\"\",\"\",'1. Ordersheet'!X1255)","v":""},{"$f":"IF('1. Ordersheet'!Y1255=\"\",\"\",'1. Ordersheet'!Y1255)","v":""},{"$f":"IF('1. Ordersheet'!Z1255=\"\",\"\",'1. Ordersheet'!Z1255)","v":""},{"$f":"IF('1. Ordersheet'!AA1255=\"\",\"\",'1. Ordersheet'!AA1255)","v":""},null,{"$f":"IF('1. Ordersheet'!AS1255=\"\",\"\",'1. Ordersheet'!AS1255)","v":""},{"$f":"IF('1. Ordersheet'!AT1255=\"\",\"\",'1. Ordersheet'!AT1255)","v":""},null,null,null,null,null,null,null,{"$f":"IF('1. Ordersheet'!AX1255=\"\",\"\",'1. Ordersheet'!AX1255)","v":""},{"$f":"IF('1. Ordersheet'!AY1255=\"\",\"\",'1. Ordersheet'!AY1255)","v":""},{"$f":"IF('1. Ordersheet'!AZ1255=\"\",\"\",'1. Ordersheet'!AZ1255)","v":""},{"$f":"IF('1. Ordersheet'!BA1255=\"\",\"\",'1. Ordersheet'!BA1255)","v":""},{"$f":"IF('1. Ordersheet'!BC1255=\"\",\"\",'1. Ordersheet'!BC1255)","v":""},{"$f":"IF('1. Ordersheet'!BD1255=\"\",\"\",'1. Ordersheet'!BD1255)","v":""},{"$f":"IF('1. Ordersheet'!BE1255=\"\",\"\",'1. Ordersheet'!BE1255)","v":""},{"$f":"IF('1. Ordersheet'!BF1255=\"\",\"\",'1. Ordersheet'!BF1255)","v":""},{"$f":"IF('1. Ordersheet'!BG1255=\"\",\"\",'1. Ordersheet'!BG1255)","v":"ZWO"},{"$f":"IF('1. Ordersheet'!BH1255=\"\",\"\",'1. Ordersheet'!BH1255)","v":""},{"$f":"IF('1. Ordersheet'!BI1255=\"\",\"\",'1. Ordersheet'!BI1255)","v":""},{"$f":"IF('1. Ordersheet'!BJ1255=\"\",\"\",'1. Ordersheet'!BJ1255)","v":""},{"$f":"IF('1. Ordersheet'!BK1255=\"\",\"\",'1. Ordersheet'!BK1255)","v":""},{"$f":"IF('1. Ordersheet'!BL1255=\"\",\"\",'1. Ordersheet'!BL1255)","v":""}]
[{"$f":"IF('1. Ordersheet'!F1256=\"\",\"\",'1. Ordersheet'!F1256)","v":""},{"$f":"IF('1. Ordersheet'!G1256=\"\",\"\",'1. Ordersheet'!G1256)","v":""},{"$f":"IF('1. Ordersheet'!H1256=\"\",\"\",'1. Ordersheet'!H1256)","v":""},{"$f":"IF('1. Ordersheet'!I1256=\"\",\"\",'1. Ordersheet'!I1256)","v":""},{"$f":"IF('1. Ordersheet'!J1256=\"\",\"\",'1. Ordersheet'!J1256)","v":""},{"$f":"IF('1. Ordersheet'!K1256=\"\",\"\",'1. Ordersheet'!K1256)","v":""},{"$f":"IF('1. Ordersheet'!L1256=\"\",\"\",'1. Ordersheet'!L1256)","v":""},{"$f":"IF('1. Ordersheet'!M1256=\"\",\"\",'1. Ordersheet'!M1256)","v":""},{"$f":"IF('1. Ordersheet'!N1256=\"\",\"\",'1. Ordersheet'!N1256)","v":""},{"$f":"IF('1. Ordersheet'!O1256=\"\",\"\",'1. Ordersheet'!O1256)","v":{"$error":"#N/A"}},{"$f":"IF('1. Ordersheet'!P1256=\"\",\"\",'1. Ordersheet'!P1256)","v":{"$error":"#N/A"}},{"$f":"IF('1. Ordersheet'!Q1256=\"\",\"\",'1. Ordersheet'!Q1256)","v":""},{"$f":"IF('1. Ordersheet'!R1256=\"\",\"\",'1. Ordersheet'!R1256)","v":""},{"$f":"IF('1. Ordersheet'!S1256=\"\",\"\",'1. Ordersheet'!S1256)","v":""},{"$f":"IF('1. Ordersheet'!V1256=\"\",\"\",'1. Ordersheet'!V1256)","v":""},{"$f":"IF('1. Ordersheet'!W1256=\"\",\"\",'1. Ordersheet'!W1256)","v":""},{"$f":"IF('1. Ordersheet'!X1256=\"\",\"\",'1. Ordersheet'!X1256)","v":""},{"$f":"IF('1. Ordersheet'!Y1256=\"\",\"\",'1. Ordersheet'!Y1256)","v":""},{"$f":"IF('1. Ordersheet'!Z1256=\"\",\"\",'1. Ordersheet'!Z1256)","v":""},{"$f":"IF('1. Ordersheet'!AA1256=\"\",\"\",'1. Ordersheet'!AA1256)","v":""},null,{"$f":"IF('1. Ordersheet'!AS1256=\"\",\"\",'1. Ordersheet'!AS1256)","v":""},{"$f":"IF('1. Ordersheet'!AT1256=\"\",\"\",'1. Ordersheet'!AT1256)","v":""},null,null,null,null,null,null,null,{"$f":"IF('1. Ordersheet'!AX1256=\"\",\"\",'1. Ordersheet'!AX1256)","v":""},{"$f":"IF('1. Ordersheet'!AY1256=\"\",\"\",'1. Ordersheet'!AY1256)","v":""},{"$f":"IF('1. Ordersheet'!AZ1256=\"\",\"\",'1. Ordersheet'!AZ1256)","v":""},{"$f":"IF('1. Ordersheet'!BA1256=\"\",\"\",'1. Ordersheet'!BA1256)","v":""},{"$f":"IF('1. Ordersheet'!BC1256=\"\",\"\",'1. Ordersheet'!BC1256)","v":""},{"$f":"IF('1. Ordersheet'!BD1256=\"\",\"\",'1. Ordersheet'!BD1256)","v":""},{"$f":"IF('1. Ordersheet'!BE1256=\"\",\"\",'1. Ordersheet'!BE1256)","v":""},{"$f":"IF('1. Ordersheet'!BF1256=\"\",\"\",'1. Ordersheet'!BF1256)","v":""},{"$f":"IF('1. Ordersheet'!BG1256=\"\",\"\",'1. Ordersheet'!BG1256)","v":"ZWO"},{"$f":"IF('1. Ordersheet'!BH1256=\"\",\"\",'1. Ordersheet'!BH1256)","v":""},{"$f":"IF('1. Ordersheet'!BI1256=\"\",\"\",'1. Ordersheet'!BI1256)","v":""},{"$f":"IF('1. Ordersheet'!BJ1256=\"\",\"\",'1. Ordersheet'!BJ1256)","v":""},{"$f":"IF('1. Ordersheet'!BK1256=\"\",\"\",'1. Ordersheet'!BK1256)","v":""},{"$f":"IF('1. Ordersheet'!BL1256=\"\",\"\",'1. Ordersheet'!BL1256)","v":""}]
[{"$f":"IF('1. Ordersheet'!F1257=\"\",\"\",'1. Ordersheet'!F1257)","v":""},{"$f":"IF('1. Ordersheet'!G1257=\"\",\"\",'1. Ordersheet'!G1257)","v":""},{"$f":"IF('1. Ordersheet'!H1257=\"\",\"\",'1. Ordersheet'!H1257)","v":""},{"$f":"IF('1. Ordersheet'!I1257=\"\",\"\",'1. Ordersheet'!I1257)","v":""},{"$f":"IF('1. Ordersheet'!J1257=\"\",\"\",'1. Ordersheet'!J1257)","v":""},{"$f":"IF('1. Ordersheet'!K1257=\"\",\"\",'1. Ordersheet'!K1257)","v":""},{"$f":"IF('1. Ordersheet'!L1257=\"\",\"\",'1. Ordersheet'!L1257)","v":""},{"$f":"IF('1. Ordersheet'!M1257=\"\",\"\",'1. Ordersheet'!M1257)","v":""},{"$f":"IF('1. Ordersheet'!N1257=\"\",\"\",'1. Ordersheet'!N1257)","v":""},{"$f":"IF('1. Ordersheet'!O1257=\"\",\"\",'1. Ordersheet'!O1257)","v":{"$error":"#N/A"}},{"$f":"IF('1. Ordersheet'!P1257=\"\",\"\",'1. Ordersheet'!P1257)","v":{"$error":"#N/A"}},{"$f":"IF('1. Ordersheet'!Q1257=\"\",\"\",'1. Ordersheet'!Q1257)","v":""},{"$f":"IF('1. Ordersheet'!R1257=\"\",\"\",'1. Ordersheet'!R1257)","v":""},{"$f":"IF('1. Ordersheet'!S1257=\"\",\"\",'1. Ordersheet'!S1257)","v":""},{"$f":"IF('1. Ordersheet'!V1257=\"\",\"\",'1. Ordersheet'!V1257)","v":""},{"$f":"IF('1. Ordersheet'!W1257=\"\",\"\",'1. Ordersheet'!W1257)","v":""},{"$f":"IF('1. Ordersheet'!X1257=\"\",\"\",'1. Ordersheet'!X1257)","v":""},{"$f":"IF('1. Ordersheet'!Y1257=\"\",\"\",'1. Ordersheet'!Y1257)","v":""},{"$f":"IF('1. Ordersheet'!Z1257=\"\",\"\",'1. Ordersheet'!Z1257)","v":""},{"$f":"IF('1. Ordersheet'!AA1257=\"\",\"\",'1. Ordersheet'!AA1257)","v":""},null,{"$f":"IF('1. Ordersheet'!AS1257=\"\",\"\",'1. Ordersheet'!AS1257)","v":""},{"$f":"IF('1. Ordersheet'!AT1257=\"\",\"\",'1. Ordersheet'!AT1257)","v":""},null,null,null,null,null,null,null,{"$f":"IF('1. Ordersheet'!AX1257=\"\",\"\",'1. Ordersheet'!AX1257)","v":""},{"$f":"IF('1. Ordersheet'!AY1257=\"\",\"\",'1. Ordersheet'!AY1257)","v":""},{"$f":"IF('1. Ordersheet'!AZ1257=\"\",\"\",'1. Ordersheet'!AZ1257)","v":""},{"$f":"IF('1. Ordersheet'!BA1257=\"\",\"\",'1. Ordersheet'!BA1257)","v":""},{"$f":"IF('1. Ordersheet'!BC1257=\"\",\"\",'1. Ordersheet'!BC1257)","v":""},{"$f":"IF('1. Ordersheet'!BD1257=\"\",\"\",'1. Ordersheet'!BD1257)","v":""},{"$f":"IF('1. Ordersheet'!BE1257=\"\",\"\",'1. Ordersheet'!BE1257)","v":""},{"$f":"IF('1. Ordersheet'!BF1257=\"\",\"\",'1. Ordersheet'!BF1257)","v":""},{"$f":"IF('1. Ordersheet'!BG1257=\"\",\"\",'1. Ordersheet'!BG1257)","v":"ZWO"},{"$f":"IF('1. Ordersheet'!BH1257=\"\",\"\",'1. Ordersheet'!BH1257)","v":""},{"$f":"IF('1. Ordersheet'!BI1257=\"\",\"\",'1. Ordersheet'!BI1257)","v":""},{"$f":"IF('1. Ordersheet'!BJ1257=\"\",\"\",'1. Ordersheet'!BJ1257)","v":""},{"$f":"IF('1. Ordersheet'!BK1257=\"\",\"\",'1. Ordersheet'!BK1257)","v":""},{"$f":"IF('1. Ordersheet'!BL1257=\"\",\"\",'1. Ordersheet'!BL1257)","v":""}]
[{"$f":"IF('1. Ordersheet'!F1258=\"\",\"\",'1. Ordersheet'!F1258)","v":""},{"$f":"IF('1. Ordersheet'!G1258=\"\",\"\",'1. Ordersheet'!G1258)","v":""},{"$f":"IF('1. Ordersheet'!H1258=\"\",\"\",'1. Ordersheet'!H1258)","v":""},{"$f":"IF('1. Ordersheet'!I1258=\"\",\"\",'1. Ordersheet'!I1258)","v":""},{"$f":"IF('1. Ordersheet'!J1258=\"\",\"\",'1. Ordersheet'!J1258)","v":""},{"$f":"IF('1. Ordersheet'!K1258=\"\",\"\",'1. Ordersheet'!K1258)","v":""},{"$f":"IF('1. Ordersheet'!L1258=\"\",\"\",'1. Ordersheet'!L1258)","v":""},{"$f":"IF('1. Ordersheet'!M1258=\"\",\"\",'1. Ordersheet'!M1258)","v":""},{"$f":"IF('1. Ordersheet'!N1258=\"\",\"\",'1. Ordersheet'!N1258)","v":""},{"$f":"IF('1. Ordersheet'!O1258=\"\",\"\",'1. Ordersheet'!O1258)","v":{"$error":"#N/A"}},{"$f":"IF('1. Ordersheet'!P1258=\"\",\"\",'1. Ordersheet'!P1258)","v":{"$error":"#N/A"}},{"$f":"IF('1. Ordersheet'!Q1258=\"\",\"\",'1. Ordersheet'!Q1258)","v":""},{"$f":"IF('1. Ordersheet'!R1258=\"\",\"\",'1. Ordersheet'!R1258)","v":""},{"$f":"IF('1. Ordersheet'!S1258=\"\",\"\",'1. Ordersheet'!S1258)","v":""},{"$f":"IF('1. Ordersheet'!V1258=\"\",\"\",'1. Ordersheet'!V1258)","v":""},{"$f":"IF('1. Ordersheet'!W1258=\"\",\"\",'1. Ordersheet'!W1258)","v":""},{"$f":"IF('1. Ordersheet'!X1258=\"\",\"\",'1. Ordersheet'!X1258)","v":""},{"$f":"IF('1. Ordersheet'!Y1258=\"\",\"\",'1. Ordersheet'!Y1258)","v":""},{"$f":"IF('1. Ordersheet'!Z1258=\"\",\"\",'1. Ordersheet'!Z1258)","v":""},{"$f":"IF('1. Ordersheet'!AA1258=\"\",\"\",'1. Ordersheet'!AA1258)","v":""},null,{"$f":"IF('1. Ordersheet'!AS1258=\"\",\"\",'1. Ordersheet'!AS1258)","v":""},{"$f":"IF('1. Ordersheet'!AT1258=\"\",\"\",'1. Ordersheet'!AT1258)","v":""},null,null,null,null,null,null,null,{"$f":"IF('1. Ordersheet'!AX1258=\"\",\"\",'1. Ordersheet'!AX1258)","v":""},{"$f":"IF('1. Ordersheet'!AY1258=\"\",\"\",'1. Ordersheet'!AY1258)","v":""},{"$f":"IF('1. Ordersheet'!AZ1258=\"\",\"\",'1. Ordersheet'!AZ1258)","v":""},{"$f":"IF('1. Ordersheet'!BA1258=\"\",\"\",'1. Ordersheet'!BA1258)","v":""},{"$f":"IF('1. Ordersheet'!BC1258=\"\",\"\",'1. Ordersheet'!BC1258)","v":""},{"$f":"IF('1. Ordersheet'!BD1258=\"\",\"\",'1. Ordersheet'!BD1258)","v":""},{"$f":"IF('1. Ordersheet'!BE1258=\"\",\"\",'1. Ordersheet'!BE1258)","v":""},{"$f":"IF('1. Ordersheet'!BF1258=\"\",\"\",'1. Ordersheet'!BF1258)","v":""},{"$f":"IF('1. Ordersheet'!BG1258=\"\",\"\",'1. Ordersheet'!BG1258)","v":"ZWO"},{"$f":"IF('1. Ordersheet'!BH1258=\"\",\"\",'1. Ordersheet'!BH1258)","v":""},{"$f":"IF('1. Ordersheet'!BI1258=\"\",\"\",'1. Ordersheet'!BI1258)","v":""},{"$f":"IF('1. Ordersheet'!BJ1258=\"\",\"\",'1. Ordersheet'!BJ1258)","v":""},{"$f":"IF('1. Ordersheet'!BK1258=\"\",\"\",'1. Ordersheet'!BK1258)","v":""},{"$f":"IF('1. Ordersheet'!BL1258=\"\",\"\",'1. Ordersheet'!BL1258)","v":""}]
[{"$f":"IF('1. Ordersheet'!F1259=\"\",\"\",'1. Ordersheet'!F1259)","v":""},{"$f":"IF('1. Ordersheet'!G1259=\"\",\"\",'1. Ordersheet'!G1259)","v":""},{"$f":"IF('1. Ordersheet'!H1259=\"\",\"\",'1. Ordersheet'!H1259)","v":""},{"$f":"IF('1. Ordersheet'!I1259=\"\",\"\",'1. Ordersheet'!I1259)","v":""},{"$f":"IF('1. Ordersheet'!J1259=\"\",\"\",'1. Ordersheet'!J1259)","v":""},{"$f":"IF('1. Ordersheet'!K1259=\"\",\"\",'1. Ordersheet'!K1259)","v":""},{"$f":"IF('1. Ordersheet'!L1259=\"\",\"\",'1. Ordersheet'!L1259)","v":""},{"$f":"IF('1. Ordersheet'!M1259=\"\",\"\",'1. Ordersheet'!M1259)","v":""},{"$f":"IF('1. Ordersheet'!N1259=\"\",\"\",'1. Ordersheet'!N1259)","v":""},{"$f":"IF('1. Ordersheet'!O1259=\"\",\"\",'1. Ordersheet'!O1259)","v":{"$error":"#N/A"}},{"$f":"IF('1. Ordersheet'!P1259=\"\",\"\",'1. Ordersheet'!P1259)","v":{"$error":"#N/A"}},{"$f":"IF('1. Ordersheet'!Q1259=\"\",\"\",'1. Ordersheet'!Q1259)","v":""},{"$f":"IF('1. Ordersheet'!R1259=\"\",\"\",'1. Ordersheet'!R1259)","v":""},{"$f":"IF('1. Ordersheet'!S1259=\"\",\"\",'1. Ordersheet'!S1259)","v":""},{"$f":"IF('1. Ordersheet'!V1259=\"\",\"\",'1. Ordersheet'!V1259)","v":""},{"$f":"IF('1. Ordersheet'!W1259=\"\",\"\",'1. Ordersheet'!W1259)","v":""},{"$f":"IF('1. Ordersheet'!X1259=\"\",\"\",'1. Ordersheet'!X1259)","v":""},{"$f":"IF('1. Ordersheet'!Y1259=\"\",\"\",'1. Ordersheet'!Y1259)","v":""},{"$f":"IF('1. Ordersheet'!Z1259=\"\",\"\",'1. Ordersheet'!Z1259)","v":""},{"$f":"IF('1. Ordersheet'!AA1259=\"\",\"\",'1. Ordersheet'!AA1259)","v":""},null,{"$f":"IF('1. Ordersheet'!AS1259=\"\",\"\",'1. Ordersheet'!AS1259)","v":""},{"$f":"IF('1. Ordersheet'!AT1259=\"\",\"\",'1. Ordersheet'!AT1259)","v":""},null,null,null,null,null,null,null,{"$f":"IF('1. Ordersheet'!AX1259=\"\",\"\",'1. Ordersheet'!AX1259)","v":""},{"$f":"IF('1. Ordersheet'!AY1259=\"\",\"\",'1. Ordersheet'!AY1259)","v":""},{"$f":"IF('1. Ordersheet'!AZ1259=\"\",\"\",'1. Ordersheet'!AZ1259)","v":""},{"$f":"IF('1. Ordersheet'!BA1259=\"\",\"\",'1. Ordersheet'!BA1259)","v":""},{"$f":"IF('1. Ordersheet'!BC1259=\"\",\"\",'1. Ordersheet'!BC1259)","v":""},{"$f":"IF('1. Ordersheet'!BD1259=\"\",\"\",'1. Ordersheet'!BD1259)","v":""},{"$f":"IF('1. Ordersheet'!BE1259=\"\",\"\",'1. Ordersheet'!BE1259)","v":""},{"$f":"IF('1. Ordersheet'!BF1259=\"\",\"\",'1. Ordersheet'!BF1259)","v":""},{"$f":"IF('1. Ordersheet'!BG1259=\"\",\"\",'1. Ordersheet'!BG1259)","v":"ZWO"},{"$f":"IF('1. Ordersheet'!BH1259=\"\",\"\",'1. Ordersheet'!BH1259)","v":""},{"$f":"IF('1. Ordersheet'!BI1259=\"\",\"\",'1. Ordersheet'!BI1259)","v":""},{"$f":"IF('1. Ordersheet'!BJ1259=\"\",\"\",'1. Ordersheet'!BJ1259)","v":""},{"$f":"IF('1. Ordersheet'!BK1259=\"\",\"\",'1. Ordersheet'!BK1259)","v":""},{"$f":"IF('1. Ordersheet'!BL1259=\"\",\"\",'1. Ordersheet'!BL1259)","v":""}]
[{"$f":"IF('1. Ordersheet'!F1260=\"\",\"\",'1. Ordersheet'!F1260)","v":""},{"$f":"IF('1. Ordersheet'!G1260=\"\",\"\",'1. Ordersheet'!G1260)","v":""},{"$f":"IF('1. Ordersheet'!H1260=\"\",\"\",'1. Ordersheet'!H1260)","v":""},{"$f":"IF('1. Ordersheet'!I1260=\"\",\"\",'1. Ordersheet'!I1260)","v":""},{"$f":"IF('1. Ordersheet'!J1260=\"\",\"\",'1. Ordersheet'!J1260)","v":""},{"$f":"IF('1. Ordersheet'!K1260=\"\",\"\",'1. Ordersheet'!K1260)","v":""},{"$f":"IF('1. Ordersheet'!L1260=\"\",\"\",'1. Ordersheet'!L1260)","v":""},{"$f":"IF('1. Ordersheet'!M1260=\"\",\"\",'1. Ordersheet'!M1260)","v":""},{"$f":"IF('1. Ordersheet'!N1260=\"\",\"\",'1. Ordersheet'!N1260)","v":""},{"$f":"IF('1. Ordersheet'!O1260=\"\",\"\",'1. Ordersheet'!O1260)","v":{"$error":"#N/A"}},{"$f":"IF('1. Ordersheet'!P1260=\"\",\"\",'1. Ordersheet'!P1260)","v":{"$error":"#N/A"}},{"$f":"IF('1. Ordersheet'!Q1260=\"\",\"\",'1. Ordersheet'!Q1260)","v":""},{"$f":"IF('1. Ordersheet'!R1260=\"\",\"\",'1. Ordersheet'!R1260)","v":""},{"$f":"IF('1. Ordersheet'!S1260=\"\",\"\",'1. Ordersheet'!S1260)","v":""},{"$f":"IF('1. Ordersheet'!V1260=\"\",\"\",'1. Ordersheet'!V1260)","v":""},{"$f":"IF('1. Ordersheet'!W1260=\"\",\"\",'1. Ordersheet'!W1260)","v":""},{"$f":"IF('1. Ordersheet'!X1260=\"\",\"\",'1. Ordersheet'!X1260)","v":""},{"$f":"IF('1. Ordersheet'!Y1260=\"\",\"\",'1. Ordersheet'!Y1260)","v":""},{"$f":"IF('1. Ordersheet'!Z1260=\"\",\"\",'1. Ordersheet'!Z1260)","v":""},{"$f":"IF('1. Ordersheet'!AA1260=\"\",\"\",'1. Ordersheet'!AA1260)","v":""},null,{"$f":"IF('1. Ordersheet'!AS1260=\"\",\"\",'1. Ordersheet'!AS1260)","v":""},{"$f":"IF('1. Ordersheet'!AT1260=\"\",\"\",'1. Ordersheet'!AT1260)","v":""},null,null,null,null,null,null,null,{"$f":"IF('1. Ordersheet'!AX1260=\"\",\"\",'1. Ordersheet'!AX1260)","v":""},{"$f":"IF('1. Ordersheet'!AY1260=\"\",\"\",'1. Ordersheet'!AY1260)","v":""},{"$f":"IF('1. Ordersheet'!AZ1260=\"\",\"\",'1. Ordersheet'!AZ1260)","v":""},{"$f":"IF('1. Ordersheet'!BA1260=\"\",\"\",'1. Ordersheet'!BA1260)","v":""},{"$f":"IF('1. Ordersheet'!BC1260=\"\",\"\",'1. Ordersheet'!BC1260)","v":""},{"$f":"IF('1. Ordersheet'!BD1260=\"\",\"\",'1. Ordersheet'!BD1260)","v":""},{"$f":"IF('1. Ordersheet'!BE1260=\"\",\"\",'1. Ordersheet'!BE1260)","v":""},{"$f":"IF('1. Ordersheet'!BF1260=\"\",\"\",'1. Ordersheet'!BF1260)","v":""},{"$f":"IF('1. Ordersheet'!BG1260=\"\",\"\",'1. Ordersheet'!BG1260)","v":"ZWO"},{"$f":"IF('1. Ordersheet'!BH1260=\"\",\"\",'1. Ordersheet'!BH1260)","v":""},{"$f":"IF('1. Ordersheet'!BI1260=\"\",\"\",'1. Ordersheet'!BI1260)","v":""},{"$f":"IF('1. Ordersheet'!BJ1260=\"\",\"\",'1. Ordersheet'!BJ1260)","v":""},{"$f":"IF('1. Ordersheet'!BK1260=\"\",\"\",'1. Ordersheet'!BK1260)","v":""},{"$f":"IF('1. Ordersheet'!BL1260=\"\",\"\",'1. Ordersheet'!BL1260)","v":""}]
[{"$f":"IF('1. Ordersheet'!F1261=\"\",\"\",'1. Ordersheet'!F1261)","v":""},{"$f":"IF('1. Ordersheet'!G1261=\"\",\"\",'1. Ordersheet'!G1261)","v":""},{"$f":"IF('1. Ordersheet'!H1261=\"\",\"\",'1. Ordersheet'!H1261)","v":""},{"$f":"IF('1. Ordersheet'!I1261=\"\",\"\",'1. Ordersheet'!I1261)","v":""},{"$f":"IF('1. Ordersheet'!J1261=\"\",\"\",'1. Ordersheet'!J1261)","v":""},{"$f":"IF('1. Ordersheet'!K1261=\"\",\"\",'1. Ordersheet'!K1261)","v":""},{"$f":"IF('1. Ordersheet'!L1261=\"\",\"\",'1. Ordersheet'!L1261)","v":""},{"$f":"IF('1. Ordersheet'!M1261=\"\",\"\",'1. Ordersheet'!M1261)","v":""},{"$f":"IF('1. Ordersheet'!N1261=\"\",\"\",'1. Ordersheet'!N1261)","v":""},{"$f":"IF('1. Ordersheet'!O1261=\"\",\"\",'1. Ordersheet'!O1261)","v":{"$error":"#N/A"}},{"$f":"IF('1. Ordersheet'!P1261=\"\",\"\",'1. Ordersheet'!P1261)","v":{"$error":"#N/A"}},{"$f":"IF('1. Ordersheet'!Q1261=\"\",\"\",'1. Ordersheet'!Q1261)","v":""},{"$f":"IF('1. Ordersheet'!R1261=\"\",\"\",'1. Ordersheet'!R1261)","v":""},{"$f":"IF('1. Ordersheet'!S1261=\"\",\"\",'1. Ordersheet'!S1261)","v":""},{"$f":"IF('1. Ordersheet'!V1261=\"\",\"\",'1. Ordersheet'!V1261)","v":""},{"$f":"IF('1. Ordersheet'!W1261=\"\",\"\",'1. Ordersheet'!W1261)","v":""},{"$f":"IF('1. Ordersheet'!X1261=\"\",\"\",'1. Ordersheet'!X1261)","v":""},{"$f":"IF('1. Ordersheet'!Y1261=\"\",\"\",'1. Ordersheet'!Y1261)","v":""},{"$f":"IF('1. Ordersheet'!Z1261=\"\",\"\",'1. Ordersheet'!Z1261)","v":""},{"$f":"IF('1. Ordersheet'!AA1261=\"\",\"\",'1. Ordersheet'!AA1261)","v":""},null,{"$f":"IF('1. Ordersheet'!AS1261=\"\",\"\",'1. Ordersheet'!AS1261)","v":""},{"$f":"IF('1. Ordersheet'!AT1261=\"\",\"\",'1. Ordersheet'!AT1261)","v":""},null,null,null,null,null,null,null,{"$f":"IF('1. Ordersheet'!AX1261=\"\",\"\",'1. Ordersheet'!AX1261)","v":""},{"$f":"IF('1. Ordersheet'!AY1261=\"\",\"\",'1. Ordersheet'!AY1261)","v":""},{"$f":"IF('1. Ordersheet'!AZ1261=\"\",\"\",'1. Ordersheet'!AZ1261)","v":""},{"$f":"IF('1. Ordersheet'!BA1261=\"\",\"\",'1. Ordersheet'!BA1261)","v":""},{"$f":"IF('1. Ordersheet'!BC1261=\"\",\"\",'1. Ordersheet'!BC1261)","v":""},{"$f":"IF('1. Ordersheet'!BD1261=\"\",\"\",'1. Ordersheet'!BD1261)","v":""},{"$f":"IF('1. Ordersheet'!BE1261=\"\",\"\",'1. Ordersheet'!BE1261)","v":""},{"$f":"IF('1. Ordersheet'!BF1261=\"\",\"\",'1. Ordersheet'!BF1261)","v":""},{"$f":"IF('1. Ordersheet'!BG1261=\"\",\"\",'1. Ordersheet'!BG1261)","v":"ZWO"},{"$f":"IF('1. Ordersheet'!BH1261=\"\",\"\",'1. Ordersheet'!BH1261)","v":""},{"$f":"IF('1. Ordersheet'!BI1261=\"\",\"\",'1. Ordersheet'!BI1261)","v":""},{"$f":"IF('1. Ordersheet'!BJ1261=\"\",\"\",'1. Ordersheet'!BJ1261)","v":""},{"$f":"IF('1. Ordersheet'!BK1261=\"\",\"\",'1. Ordersheet'!BK1261)","v":""},{"$f":"IF('1. Ordersheet'!BL1261=\"\",\"\",'1. Ordersheet'!BL1261)","v":""}]
[{"$f":"IF('1. Ordersheet'!F1262=\"\",\"\",'1. Ordersheet'!F1262)","v":""},{"$f":"IF('1. Ordersheet'!G1262=\"\",\"\",'1. Ordersheet'!G1262)","v":""},{"$f":"IF('1. Ordersheet'!H1262=\"\",\"\",'1. Ordersheet'!H1262)","v":""},{"$f":"IF('1. Ordersheet'!I1262=\"\",\"\",'1. Ordersheet'!I1262)","v":""},{"$f":"IF('1. Ordersheet'!J1262=\"\",\"\",'1. Ordersheet'!J1262)","v":""},{"$f":"IF('1. Ordersheet'!K1262=\"\",\"\",'1. Ordersheet'!K1262)","v":""},{"$f":"IF('1. Ordersheet'!L1262=\"\",\"\",'1. Ordersheet'!L1262)","v":""},{"$f":"IF('1. Ordersheet'!M1262=\"\",\"\",'1. Ordersheet'!M1262)","v":""},{"$f":"IF('1. Ordersheet'!N1262=\"\",\"\",'1. Ordersheet'!N1262)","v":""},{"$f":"IF('1. Ordersheet'!O1262=\"\",\"\",'1. Ordersheet'!O1262)","v":{"$error":"#N/A"}},{"$f":"IF('1. Ordersheet'!P1262=\"\",\"\",'1. Ordersheet'!P1262)","v":{"$error":"#N/A"}},{"$f":"IF('1. Ordersheet'!Q1262=\"\",\"\",'1. Ordersheet'!Q1262)","v":""},{"$f":"IF('1. Ordersheet'!R1262=\"\",\"\",'1. Ordersheet'!R1262)","v":""},{"$f":"IF('1. Ordersheet'!S1262=\"\",\"\",'1. Ordersheet'!S1262)","v":""},{"$f":"IF('1. Ordersheet'!V1262=\"\",\"\",'1. Ordersheet'!V1262)","v":""},{"$f":"IF('1. Ordersheet'!W1262=\"\",\"\",'1. Ordersheet'!W1262)","v":""},{"$f":"IF('1. Ordersheet'!X1262=\"\",\"\",'1. Ordersheet'!X1262)","v":""},{"$f":"IF('1. Ordersheet'!Y1262=\"\",\"\",'1. Ordersheet'!Y1262)","v":""},{"$f":"IF('1. Ordersheet'!Z1262=\"\",\"\",'1. Ordersheet'!Z1262)","v":""},{"$f":"IF('1. Ordersheet'!AA1262=\"\",\"\",'1. Ordersheet'!AA1262)","v":""},null,{"$f":"IF('1. Ordersheet'!AS1262=\"\",\"\",'1. Ordersheet'!AS1262)","v":""},{"$f":"IF('1. Ordersheet'!AT1262=\"\",\"\",'1. Ordersheet'!AT1262)","v":""},null,null,null,null,null,null,null,{"$f":"IF('1. Ordersheet'!AX1262=\"\",\"\",'1. Ordersheet'!AX1262)","v":""},{"$f":"IF('1. Ordersheet'!AY1262=\"\",\"\",'1. Ordersheet'!AY1262)","v":""},{"$f":"IF('1. Ordersheet'!AZ1262=\"\",\"\",'1. Ordersheet'!AZ1262)","v":""},{"$f":"IF('1. Ordersheet'!BA1262=\"\",\"\",'1. Ordersheet'!BA1262)","v":""},{"$f":"IF('1. Ordersheet'!BC1262=\"\",\"\",'1. Ordersheet'!BC1262)","v":""},{"$f":"IF('1. Ordersheet'!BD1262=\"\",\"\",'1. Ordersheet'!BD1262)","v":""},{"$f":"IF('1. Ordersheet'!BE1262=\"\",\"\",'1. Ordersheet'!BE1262)","v":""},{"$f":"IF('1. Ordersheet'!BF1262=\"\",\"\",'1. Ordersheet'!BF1262)","v":""},{"$f":"IF('1. Ordersheet'!BG1262=\"\",\"\",'1. Ordersheet'!BG1262)","v":"ZWO"},{"$f":"IF('1. Ordersheet'!BH1262=\"\",\"\",'1. Ordersheet'!BH1262)","v":""},{"$f":"IF('1. Ordersheet'!BI1262=\"\",\"\",'1. Ordersheet'!BI1262)","v":""},{"$f":"IF('1. Ordersheet'!BJ1262=\"\",\"\",'1. Ordersheet'!BJ1262)","v":""},{"$f":"IF('1. Ordersheet'!BK1262=\"\",\"\",'1. Ordersheet'!BK1262)","v":""},{"$f":"IF('1. Ordersheet'!BL1262=\"\",\"\",'1. Ordersheet'!BL1262)","v":""}]
[{"$f":"IF('1. Ordersheet'!F1263=\"\",\"\",'1. Ordersheet'!F1263)","v":""},{"$f":"IF('1. Ordersheet'!G1263=\"\",\"\",'1. Ordersheet'!G1263)","v":""},{"$f":"IF('1. Ordersheet'!H1263=\"\",\"\",'1. Ordersheet'!H1263)","v":""},{"$f":"IF('1. Ordersheet'!I1263=\"\",\"\",'1. Ordersheet'!I1263)","v":""},{"$f":"IF('1. Ordersheet'!J1263=\"\",\"\",'1. Ordersheet'!J1263)","v":""},{"$f":"IF('1. Ordersheet'!K1263=\"\",\"\",'1. Ordersheet'!K1263)","v":""},{"$f":"IF('1. Ordersheet'!L1263=\"\",\"\",'1. Ordersheet'!L1263)","v":""},{"$f":"IF('1. Ordersheet'!M1263=\"\",\"\",'1. Ordersheet'!M1263)","v":""},{"$f":"IF('1. Ordersheet'!N1263=\"\",\"\",'1. Ordersheet'!N1263)","v":""},{"$f":"IF('1. Ordersheet'!O1263=\"\",\"\",'1. Ordersheet'!O1263)","v":{"$error":"#N/A"}},{"$f":"IF('1. Ordersheet'!P1263=\"\",\"\",'1. Ordersheet'!P1263)","v":{"$error":"#N/A"}},{"$f":"IF('1. Ordersheet'!Q1263=\"\",\"\",'1. Ordersheet'!Q1263)","v":""},{"$f":"IF('1. Ordersheet'!R1263=\"\",\"\",'1. Ordersheet'!R1263)","v":""},{"$f":"IF('1. Ordersheet'!S1263=\"\",\"\",'1. Ordersheet'!S1263)","v":""},{"$f":"IF('1. Ordersheet'!V1263=\"\",\"\",'1. Ordersheet'!V1263)","v":""},{"$f":"IF('1. Ordersheet'!W1263=\"\",\"\",'1. Ordersheet'!W1263)","v":""},{"$f":"IF('1. Ordersheet'!X1263=\"\",\"\",'1. Ordersheet'!X1263)","v":""},{"$f":"IF('1. Ordersheet'!Y1263=\"\",\"\",'1. Ordersheet'!Y1263)","v":""},{"$f":"IF('1. Ordersheet'!Z1263=\"\",\"\",'1. Ordersheet'!Z1263)","v":""},{"$f":"IF('1. Ordersheet'!AA1263=\"\",\"\",'1. Ordersheet'!AA1263)","v":""},null,{"$f":"IF('1. Ordersheet'!AS1263=\"\",\"\",'1. Ordersheet'!AS1263)","v":""},{"$f":"IF('1. Ordersheet'!AT1263=\"\",\"\",'1. Ordersheet'!AT1263)","v":""},null,null,null,null,null,null,null,{"$f":"IF('1. Ordersheet'!AX1263=\"\",\"\",'1. Ordersheet'!AX1263)","v":""},{"$f":"IF('1. Ordersheet'!AY1263=\"\",\"\",'1. Ordersheet'!AY1263)","v":""},{"$f":"IF('1. Ordersheet'!AZ1263=\"\",\"\",'1. Ordersheet'!AZ1263)","v":""},{"$f":"IF('1. Ordersheet'!BA1263=\"\",\"\",'1. Ordersheet'!BA1263)","v":""},{"$f":"IF('1. Ordersheet'!BC1263=\"\",\"\",'1. Ordersheet'!BC1263)","v":""},{"$f":"IF('1. Ordersheet'!BD1263=\"\",\"\",'1. Ordersheet'!BD1263)","v":""},{"$f":"IF('1. Ordersheet'!BE1263=\"\",\"\",'1. Ordersheet'!BE1263)","v":""},{"$f":"IF('1. Ordersheet'!BF1263=\"\",\"\",'1. Ordersheet'!BF1263)","v":""},{"$f":"IF('1. Ordersheet'!BG1263=\"\",\"\",'1. Ordersheet'!BG1263)","v":"ZWO"},{"$f":"IF('1. Ordersheet'!BH1263=\"\",\"\",'1. Ordersheet'!BH1263)","v":""},{"$f":"IF('1. Ordersheet'!BI1263=\"\",\"\",'1. Ordersheet'!BI1263)","v":""},{"$f":"IF('1. Ordersheet'!BJ1263=\"\",\"\",'1. Ordersheet'!BJ1263)","v":""},{"$f":"IF('1. Ordersheet'!BK1263=\"\",\"\",'1. Ordersheet'!BK1263)","v":""},{"$f":"IF('1. Ordersheet'!BL1263=\"\",\"\",'1. Ordersheet'!BL1263)","v":""}]
[{"$f":"IF('1. Ordersheet'!F1264=\"\",\"\",'1. Ordersheet'!F1264)","v":""},{"$f":"IF('1. Ordersheet'!G1264=\"\",\"\",'1. Ordersheet'!G1264)","v":""},{"$f":"IF('1. Ordersheet'!H1264=\"\",\"\",'1. Ordersheet'!H1264)","v":""},{"$f":"IF('1. Ordersheet'!I1264=\"\",\"\",'1. Ordersheet'!I1264)","v":""},{"$f":"IF('1. Ordersheet'!J1264=\"\",\"\",'1. Ordersheet'!J1264)","v":""},{"$f":"IF('1. Ordersheet'!K1264=\"\",\"\",'1. Ordersheet'!K1264)","v":""},{"$f":"IF('1. Ordersheet'!L1264=\"\",\"\",'1. Ordersheet'!L1264)","v":""},{"$f":"IF('1. Ordersheet'!M1264=\"\",\"\",'1. Ordersheet'!M1264)","v":""},{"$f":"IF('1. Ordersheet'!N1264=\"\",\"\",'1. Ordersheet'!N1264)","v":""},{"$f":"IF('1. Ordersheet'!O1264=\"\",\"\",'1. Ordersheet'!O1264)","v":{"$error":"#N/A"}},{"$f":"IF('1. Ordersheet'!P1264=\"\",\"\",'1. Ordersheet'!P1264)","v":{"$error":"#N/A"}},{"$f":"IF('1. Ordersheet'!Q1264=\"\",\"\",'1. Ordersheet'!Q1264)","v":""},{"$f":"IF('1. Ordersheet'!R1264=\"\",\"\",'1. Ordersheet'!R1264)","v":""},{"$f":"IF('1. Ordersheet'!S1264=\"\",\"\",'1. Ordersheet'!S1264)","v":""},{"$f":"IF('1. Ordersheet'!V1264=\"\",\"\",'1. Ordersheet'!V1264)","v":""},{"$f":"IF('1. Ordersheet'!W1264=\"\",\"\",'1. Ordersheet'!W1264)","v":""},{"$f":"IF('1. Ordersheet'!X1264=\"\",\"\",'1. Ordersheet'!X1264)","v":""},{"$f":"IF('1. Ordersheet'!Y1264=\"\",\"\",'1. Ordersheet'!Y1264)","v":""},{"$f":"IF('1. Ordersheet'!Z1264=\"\",\"\",'1. Ordersheet'!Z1264)","v":""},{"$f":"IF('1. Ordersheet'!AA1264=\"\",\"\",'1. Ordersheet'!AA1264)","v":""},null,{"$f":"IF('1. Ordersheet'!AS1264=\"\",\"\",'1. Ordersheet'!AS1264)","v":""},{"$f":"IF('1. Ordersheet'!AT1264=\"\",\"\",'1. Ordersheet'!AT1264)","v":""},null,null,null,null,null,null,null,{"$f":"IF('1. Ordersheet'!AX1264=\"\",\"\",'1. Ordersheet'!AX1264)","v":""},{"$f":"IF('1. Ordersheet'!AY1264=\"\",\"\",'1. Ordersheet'!AY1264)","v":""},{"$f":"IF('1. Ordersheet'!AZ1264=\"\",\"\",'1. Ordersheet'!AZ1264)","v":""},{"$f":"IF('1. Ordersheet'!BA1264=\"\",\"\",'1. Ordersheet'!BA1264)","v":""},{"$f":"IF('1. Ordersheet'!BC1264=\"\",\"\",'1. Ordersheet'!BC1264)","v":""},{"$f":"IF('1. Ordersheet'!BD1264=\"\",\"\",'1. Ordersheet'!BD1264)","v":""},{"$f":"IF('1. Ordersheet'!BE1264=\"\",\"\",'1. Ordersheet'!BE1264)","v":""},{"$f":"IF('1. Ordersheet'!BF1264=\"\",\"\",'1. Ordersheet'!BF1264)","v":""},{"$f":"IF('1. Ordersheet'!BG1264=\"\",\"\",'1. Ordersheet'!BG1264)","v":"ZWO"},{"$f":"IF('1. Ordersheet'!BH1264=\"\",\"\",'1. Ordersheet'!BH1264)","v":""},{"$f":"IF('1. Ordersheet'!BI1264=\"\",\"\",'1. Ordersheet'!BI1264)","v":""},{"$f":"IF('1. Ordersheet'!BJ1264=\"\",\"\",'1. Ordersheet'!BJ1264)","v":""},{"$f":"IF('1. Ordersheet'!BK1264=\"\",\"\",'1. Ordersheet'!BK1264)","v":""},{"$f":"IF('1. Ordersheet'!BL1264=\"\",\"\",'1. Ordersheet'!BL1264)","v":""}]
[{"$f":"IF('1. Ordersheet'!F1265=\"\",\"\",'1. Ordersheet'!F1265)","v":""},{"$f":"IF('1. Ordersheet'!G1265=\"\",\"\",'1. Ordersheet'!G1265)","v":""},{"$f":"IF('1. Ordersheet'!H1265=\"\",\"\",'1. Ordersheet'!H1265)","v":""},{"$f":"IF('1. Ordersheet'!I1265=\"\",\"\",'1. Ordersheet'!I1265)","v":""},{"$f":"IF('1. Ordersheet'!J1265=\"\",\"\",'1. Ordersheet'!J1265)","v":""},{"$f":"IF('1. Ordersheet'!K1265=\"\",\"\",'1. Ordersheet'!K1265)","v":""},{"$f":"IF('1. Ordersheet'!L1265=\"\",\"\",'1. Ordersheet'!L1265)","v":""},{"$f":"IF('1. Ordersheet'!M1265=\"\",\"\",'1. Ordersheet'!M1265)","v":""},{"$f":"IF('1. Ordersheet'!N1265=\"\",\"\",'1. Ordersheet'!N1265)","v":""},{"$f":"IF('1. Ordersheet'!O1265=\"\",\"\",'1. Ordersheet'!O1265)","v":{"$error":"#N/A"}},{"$f":"IF('1. Ordersheet'!P1265=\"\",\"\",'1. Ordersheet'!P1265)","v":{"$error":"#N/A"}},{"$f":"IF('1. Ordersheet'!Q1265=\"\",\"\",'1. Ordersheet'!Q1265)","v":""},{"$f":"IF('1. Ordersheet'!R1265=\"\",\"\",'1. Ordersheet'!R1265)","v":""},{"$f":"IF('1. Ordersheet'!S1265=\"\",\"\",'1. Ordersheet'!S1265)","v":""},{"$f":"IF('1. Ordersheet'!V1265=\"\",\"\",'1. Ordersheet'!V1265)","v":""},{"$f":"IF('1. Ordersheet'!W1265=\"\",\"\",'1. Ordersheet'!W1265)","v":""},{"$f":"IF('1. Ordersheet'!X1265=\"\",\"\",'1. Ordersheet'!X1265)","v":""},{"$f":"IF('1. Ordersheet'!Y1265=\"\",\"\",'1. Ordersheet'!Y1265)","v":""},{"$f":"IF('1. Ordersheet'!Z1265=\"\",\"\",'1. Ordersheet'!Z1265)","v":""},{"$f":"IF('1. Ordersheet'!AA1265=\"\",\"\",'1. Ordersheet'!AA1265)","v":""},null,{"$f":"IF('1. Ordersheet'!AS1265=\"\",\"\",'1. Ordersheet'!AS1265)","v":""},{"$f":"IF('1. Ordersheet'!AT1265=\"\",\"\",'1. Ordersheet'!AT1265)","v":""},null,null,null,null,null,null,null,{"$f":"IF('1. Ordersheet'!AX1265=\"\",\"\",'1. Ordersheet'!AX1265)","v":""},{"$f":"IF('1. Ordersheet'!AY1265=\"\",\"\",'1. Ordersheet'!AY1265)","v":""},{"$f":"IF('1. Ordersheet'!AZ1265=\"\",\"\",'1. Ordersheet'!AZ1265)","v":""},{"$f":"IF('1. Ordersheet'!BA1265=\"\",\"\",'1. Ordersheet'!BA1265)","v":""},{"$f":"IF('1. Ordersheet'!BC1265=\"\",\"\",'1. Ordersheet'!BC1265)","v":""},{"$f":"IF('1. Ordersheet'!BD1265=\"\",\"\",'1. Ordersheet'!BD1265)","v":""},{"$f":"IF('1. Ordersheet'!BE1265=\"\",\"\",'1. Ordersheet'!BE1265)","v":""},{"$f":"IF('1. Ordersheet'!BF1265=\"\",\"\",'1. Ordersheet'!BF1265)","v":""},{"$f":"IF('1. Ordersheet'!BG1265=\"\",\"\",'1. Ordersheet'!BG1265)","v":"ZWO"},{"$f":"IF('1. Ordersheet'!BH1265=\"\",\"\",'1. Ordersheet'!BH1265)","v":""},{"$f":"IF('1. Ordersheet'!BI1265=\"\",\"\",'1. Ordersheet'!BI1265)","v":""},{"$f":"IF('1. Ordersheet'!BJ1265=\"\",\"\",'1. Ordersheet'!BJ1265)","v":""},{"$f":"IF('1. Ordersheet'!BK1265=\"\",\"\",'1. Ordersheet'!BK1265)","v":""},{"$f":"IF('1. Ordersheet'!BL1265=\"\",\"\",'1. Ordersheet'!BL1265)","v":""}]
[{"$f":"IF('1. Ordersheet'!F1266=\"\",\"\",'1. Ordersheet'!F1266)","v":""},{"$f":"IF('1. Ordersheet'!G1266=\"\",\"\",'1. Ordersheet'!G1266)","v":""},{"$f":"IF('1. Ordersheet'!H1266=\"\",\"\",'1. Ordersheet'!H1266)","v":""},{"$f":"IF('1. Ordersheet'!I1266=\"\",\"\",'1. Ordersheet'!I1266)","v":""},{"$f":"IF('1. Ordersheet'!J1266=\"\",\"\",'1. Ordersheet'!J1266)","v":""},{"$f":"IF('1. Ordersheet'!K1266=\"\",\"\",'1. Ordersheet'!K1266)","v":""},{"$f":"IF('1. Ordersheet'!L1266=\"\",\"\",'1. Ordersheet'!L1266)","v":""},{"$f":"IF('1. Ordersheet'!M1266=\"\",\"\",'1. Ordersheet'!M1266)","v":""},{"$f":"IF('1. Ordersheet'!N1266=\"\",\"\",'1. Ordersheet'!N1266)","v":""},{"$f":"IF('1. Ordersheet'!O1266=\"\",\"\",'1. Ordersheet'!O1266)","v":{"$error":"#N/A"}},{"$f":"IF('1. Ordersheet'!P1266=\"\",\"\",'1. Ordersheet'!P1266)","v":{"$error":"#N/A"}},{"$f":"IF('1. Ordersheet'!Q1266=\"\",\"\",'1. Ordersheet'!Q1266)","v":""},{"$f":"IF('1. Ordersheet'!R1266=\"\",\"\",'1. Ordersheet'!R1266)","v":""},{"$f":"IF('1. Ordersheet'!S1266=\"\",\"\",'1. Ordersheet'!S1266)","v":""},{"$f":"IF('1. Ordersheet'!V1266=\"\",\"\",'1. Ordersheet'!V1266)","v":""},{"$f":"IF('1. Ordersheet'!W1266=\"\",\"\",'1. Ordersheet'!W1266)","v":""},{"$f":"IF('1. Ordersheet'!X1266=\"\",\"\",'1. Ordersheet'!X1266)","v":""},{"$f":"IF('1. Ordersheet'!Y1266=\"\",\"\",'1. Ordersheet'!Y1266)","v":""},{"$f":"IF('1. Ordersheet'!Z1266=\"\",\"\",'1. Ordersheet'!Z1266)","v":""},{"$f":"IF('1. Ordersheet'!AA1266=\"\",\"\",'1. Ordersheet'!AA1266)","v":""},null,{"$f":"IF('1. Ordersheet'!AS1266=\"\",\"\",'1. Ordersheet'!AS1266)","v":""},{"$f":"IF('1. Ordersheet'!AT1266=\"\",\"\",'1. Ordersheet'!AT1266)","v":""},null,null,null,null,null,null,null,{"$f":"IF('1. Ordersheet'!AX1266=\"\",\"\",'1. Ordersheet'!AX1266)","v":""},{"$f":"IF('1. Ordersheet'!AY1266=\"\",\"\",'1. Ordersheet'!AY1266)","v":""},{"$f":"IF('1. Ordersheet'!AZ1266=\"\",\"\",'1. Ordersheet'!AZ1266)","v":""},{"$f":"IF('1. Ordersheet'!BA1266=\"\",\"\",'1. Ordersheet'!BA1266)","v":""},{"$f":"IF('1. Ordersheet'!BC1266=\"\",\"\",'1. Ordersheet'!BC1266)","v":""},{"$f":"IF('1. Ordersheet'!BD1266=\"\",\"\",'1. Ordersheet'!BD1266)","v":""},{"$f":"IF('1. Ordersheet'!BE1266=\"\",\"\",'1. Ordersheet'!BE1266)","v":""},{"$f":"IF('1. Ordersheet'!BF1266=\"\",\"\",'1. Ordersheet'!BF1266)","v":""},{"$f":"IF('1. Ordersheet'!BG1266=\"\",\"\",'1. Ordersheet'!BG1266)","v":"ZWO"},{"$f":"IF('1. Ordersheet'!BH1266=\"\",\"\",'1. Ordersheet'!BH1266)","v":""},{"$f":"IF('1. Ordersheet'!BI1266=\"\",\"\",'1. Ordersheet'!BI1266)","v":""},{"$f":"IF('1. Ordersheet'!BJ1266=\"\",\"\",'1. Ordersheet'!BJ1266)","v":""},{"$f":"IF('1. Ordersheet'!BK1266=\"\",\"\",'1. Ordersheet'!BK1266)","v":""},{"$f":"IF('1. Ordersheet'!BL1266=\"\",\"\",'1. Ordersheet'!BL1266)","v":""}]
[{"$f":"IF('1. Ordersheet'!F1267=\"\",\"\",'1. Ordersheet'!F1267)","v":""},{"$f":"IF('1. Ordersheet'!G1267=\"\",\"\",'1. Ordersheet'!G1267)","v":""},{"$f":"IF('1. Ordersheet'!H1267=\"\",\"\",'1. Ordersheet'!H1267)","v":""},{"$f":"IF('1. Ordersheet'!I1267=\"\",\"\",'1. Ordersheet'!I1267)","v":""},{"$f":"IF('1. Ordersheet'!J1267=\"\",\"\",'1. Ordersheet'!J1267)","v":""},{"$f":"IF('1. Ordersheet'!K1267=\"\",\"\",'1. Ordersheet'!K1267)","v":""},{"$f":"IF('1. Ordersheet'!L1267=\"\",\"\",'1. Ordersheet'!L1267)","v":""},{"$f":"IF('1. Ordersheet'!M1267=\"\",\"\",'1. Ordersheet'!M1267)","v":""},{"$f":"IF('1. Ordersheet'!N1267=\"\",\"\",'1. Ordersheet'!N1267)","v":""},{"$f":"IF('1. Ordersheet'!O1267=\"\",\"\",'1. Ordersheet'!O1267)","v":{"$error":"#N/A"}},{"$f":"IF('1. Ordersheet'!P1267=\"\",\"\",'1. Ordersheet'!P1267)","v":{"$error":"#N/A"}},{"$f":"IF('1. Ordersheet'!Q1267=\"\",\"\",'1. Ordersheet'!Q1267)","v":""},{"$f":"IF('1. Ordersheet'!R1267=\"\",\"\",'1. Ordersheet'!R1267)","v":""},{"$f":"IF('1. Ordersheet'!S1267=\"\",\"\",'1. Ordersheet'!S1267)","v":""},{"$f":"IF('1. Ordersheet'!V1267=\"\",\"\",'1. Ordersheet'!V1267)","v":""},{"$f":"IF('1. Ordersheet'!W1267=\"\",\"\",'1. Ordersheet'!W1267)","v":""},{"$f":"IF('1. Ordersheet'!X1267=\"\",\"\",'1. Ordersheet'!X1267)","v":""},{"$f":"IF('1. Ordersheet'!Y1267=\"\",\"\",'1. Ordersheet'!Y1267)","v":""},{"$f":"IF('1. Ordersheet'!Z1267=\"\",\"\",'1. Ordersheet'!Z1267)","v":""},{"$f":"IF('1. Ordersheet'!AA1267=\"\",\"\",'1. Ordersheet'!AA1267)","v":""},null,{"$f":"IF('1. Ordersheet'!AS1267=\"\",\"\",'1. Ordersheet'!AS1267)","v":""},{"$f":"IF('1. Ordersheet'!AT1267=\"\",\"\",'1. Ordersheet'!AT1267)","v":""},null,null,null,null,null,null,null,{"$f":"IF('1. Ordersheet'!AX1267=\"\",\"\",'1. Ordersheet'!AX1267)","v":""},{"$f":"IF('1. Ordersheet'!AY1267=\"\",\"\",'1. Ordersheet'!AY1267)","v":""},{"$f":"IF('1. Ordersheet'!AZ1267=\"\",\"\",'1. Ordersheet'!AZ1267)","v":""},{"$f":"IF('1. Ordersheet'!BA1267=\"\",\"\",'1. Ordersheet'!BA1267)","v":""},{"$f":"IF('1. Ordersheet'!BC1267=\"\",\"\",'1. Ordersheet'!BC1267)","v":""},{"$f":"IF('1. Ordersheet'!BD1267=\"\",\"\",'1. Ordersheet'!BD1267)","v":""},{"$f":"IF('1. Ordersheet'!BE1267=\"\",\"\",'1. Ordersheet'!BE1267)","v":""},{"$f":"IF('1. Ordersheet'!BF1267=\"\",\"\",'1. Ordersheet'!BF1267)","v":""},{"$f":"IF('1. Ordersheet'!BG1267=\"\",\"\",'1. Ordersheet'!BG1267)","v":"ZWO"},{"$f":"IF('1. Ordersheet'!BH1267=\"\",\"\",'1. Ordersheet'!BH1267)","v":""},{"$f":"IF('1. Ordersheet'!BI1267=\"\",\"\",'1. Ordersheet'!BI1267)","v":""},{"$f":"IF('1. Ordersheet'!BJ1267=\"\",\"\",'1. Ordersheet'!BJ1267)","v":""},{"$f":"IF('1. Ordersheet'!BK1267=\"\",\"\",'1. Ordersheet'!BK1267)","v":""},{"$f":"IF('1. Ordersheet'!BL1267=\"\",\"\",'1. Ordersheet'!BL1267)","v":""}]
[{"$f":"IF('1. Ordersheet'!F1268=\"\",\"\",'1. Ordersheet'!F1268)","v":""},{"$f":"IF('1. Ordersheet'!G1268=\"\",\"\",'1. Ordersheet'!G1268)","v":""},{"$f":"IF('1. Ordersheet'!H1268=\"\",\"\",'1. Ordersheet'!H1268)","v":""},{"$f":"IF('1. Ordersheet'!I1268=\"\",\"\",'1. Ordersheet'!I1268)","v":""},{"$f":"IF('1. Ordersheet'!J1268=\"\",\"\",'1. Ordersheet'!J1268)","v":""},{"$f":"IF('1. Ordersheet'!K1268=\"\",\"\",'1. Ordersheet'!K1268)","v":""},{"$f":"IF('1. Ordersheet'!L1268=\"\",\"\",'1. Ordersheet'!L1268)","v":""},{"$f":"IF('1. Ordersheet'!M1268=\"\",\"\",'1. Ordersheet'!M1268)","v":""},{"$f":"IF('1. Ordersheet'!N1268=\"\",\"\",'1. Ordersheet'!N1268)","v":""},{"$f":"IF('1. Ordersheet'!O1268=\"\",\"\",'1. Ordersheet'!O1268)","v":{"$error":"#N/A"}},{"$f":"IF('1. Ordersheet'!P1268=\"\",\"\",'1. Ordersheet'!P1268)","v":{"$error":"#N/A"}},{"$f":"IF('1. Ordersheet'!Q1268=\"\",\"\",'1. Ordersheet'!Q1268)","v":""},{"$f":"IF('1. Ordersheet'!R1268=\"\",\"\",'1. Ordersheet'!R1268)","v":""},{"$f":"IF('1. Ordersheet'!S1268=\"\",\"\",'1. Ordersheet'!S1268)","v":""},{"$f":"IF('1. Ordersheet'!V1268=\"\",\"\",'1. Ordersheet'!V1268)","v":""},{"$f":"IF('1. Ordersheet'!W1268=\"\",\"\",'1. Ordersheet'!W1268)","v":""},{"$f":"IF('1. Ordersheet'!X1268=\"\",\"\",'1. Ordersheet'!X1268)","v":""},{"$f":"IF('1. Ordersheet'!Y1268=\"\",\"\",'1. Ordersheet'!Y1268)","v":""},{"$f":"IF('1. Ordersheet'!Z1268=\"\",\"\",'1. Ordersheet'!Z1268)","v":""},{"$f":"IF('1. Ordersheet'!AA1268=\"\",\"\",'1. Ordersheet'!AA1268)","v":""},null,{"$f":"IF('1. Ordersheet'!AS1268=\"\",\"\",'1. Ordersheet'!AS1268)","v":""},{"$f":"IF('1. Ordersheet'!AT1268=\"\",\"\",'1. Ordersheet'!AT1268)","v":""},null,null,null,null,null,null,null,{"$f":"IF('1. Ordersheet'!AX1268=\"\",\"\",'1. Ordersheet'!AX1268)","v":""},{"$f":"IF('1. Ordersheet'!AY1268=\"\",\"\",'1. Ordersheet'!AY1268)","v":""},{"$f":"IF('1. Ordersheet'!AZ1268=\"\",\"\",'1. Ordersheet'!AZ1268)","v":""},{"$f":"IF('1. Ordersheet'!BA1268=\"\",\"\",'1. Ordersheet'!BA1268)","v":""},{"$f":"IF('1. Ordersheet'!BC1268=\"\",\"\",'1. Ordersheet'!BC1268)","v":""},{"$f":"IF('1. Ordersheet'!BD1268=\"\",\"\",'1. Ordersheet'!BD1268)","v":""},{"$f":"IF('1. Ordersheet'!BE1268=\"\",\"\",'1. Ordersheet'!BE1268)","v":""},{"$f":"IF('1. Ordersheet'!BF1268=\"\",\"\",'1. Ordersheet'!BF1268)","v":""},{"$f":"IF('1. Ordersheet'!BG1268=\"\",\"\",'1. Ordersheet'!BG1268)","v":"ZWO"},{"$f":"IF('1. Ordersheet'!BH1268=\"\",\"\",'1. Ordersheet'!BH1268)","v":""},{"$f":"IF('1. Ordersheet'!BI1268=\"\",\"\",'1. Ordersheet'!BI1268)","v":""},{"$f":"IF('1. Ordersheet'!BJ1268=\"\",\"\",'1. Ordersheet'!BJ1268)","v":""},{"$f":"IF('1. Ordersheet'!BK1268=\"\",\"\",'1. Ordersheet'!BK1268)","v":""},{"$f":"IF('1. Ordersheet'!BL1268=\"\",\"\",'1. Ordersheet'!BL1268)","v":""}]
[{"$f":"IF('1. Ordersheet'!F1269=\"\",\"\",'1. Ordersheet'!F1269)","v":""},{"$f":"IF('1. Ordersheet'!G1269=\"\",\"\",'1. Ordersheet'!G1269)","v":""},{"$f":"IF('1. Ordersheet'!H1269=\"\",\"\",'1. Ordersheet'!H1269)","v":""},{"$f":"IF('1. Ordersheet'!I1269=\"\",\"\",'1. Ordersheet'!I1269)","v":""},{"$f":"IF('1. Ordersheet'!J1269=\"\",\"\",'1. Ordersheet'!J1269)","v":""},{"$f":"IF('1. Ordersheet'!K1269=\"\",\"\",'1. Ordersheet'!K1269)","v":""},{"$f":"IF('1. Ordersheet'!L1269=\"\",\"\",'1. Ordersheet'!L1269)","v":""},{"$f":"IF('1. Ordersheet'!M1269=\"\",\"\",'1. Ordersheet'!M1269)","v":""},{"$f":"IF('1. Ordersheet'!N1269=\"\",\"\",'1. Ordersheet'!N1269)","v":""},{"$f":"IF('1. Ordersheet'!O1269=\"\",\"\",'1. Ordersheet'!O1269)","v":{"$error":"#N/A"}},{"$f":"IF('1. Ordersheet'!P1269=\"\",\"\",'1. Ordersheet'!P1269)","v":{"$error":"#N/A"}},{"$f":"IF('1. Ordersheet'!Q1269=\"\",\"\",'1. Ordersheet'!Q1269)","v":""},{"$f":"IF('1. Ordersheet'!R1269=\"\",\"\",'1. Ordersheet'!R1269)","v":""},{"$f":"IF('1. Ordersheet'!S1269=\"\",\"\",'1. Ordersheet'!S1269)","v":""},{"$f":"IF('1. Ordersheet'!V1269=\"\",\"\",'1. Ordersheet'!V1269)","v":""},{"$f":"IF('1. Ordersheet'!W1269=\"\",\"\",'1. Ordersheet'!W1269)","v":""},{"$f":"IF('1. Ordersheet'!X1269=\"\",\"\",'1. Ordersheet'!X1269)","v":""},{"$f":"IF('1. Ordersheet'!Y1269=\"\",\"\",'1. Ordersheet'!Y1269)","v":""},{"$f":"IF('1. Ordersheet'!Z1269=\"\",\"\",'1. Ordersheet'!Z1269)","v":""},{"$f":"IF('1. Ordersheet'!AA1269=\"\",\"\",'1. Ordersheet'!AA1269)","v":""},null,{"$f":"IF('1. Ordersheet'!AS1269=\"\",\"\",'1. Ordersheet'!AS1269)","v":""},{"$f":"IF('1. Ordersheet'!AT1269=\"\",\"\",'1. Ordersheet'!AT1269)","v":""},null,null,null,null,null,null,null,{"$f":"IF('1. Ordersheet'!AX1269=\"\",\"\",'1. Ordersheet'!AX1269)","v":""},{"$f":"IF('1. Ordersheet'!AY1269=\"\",\"\",'1. Ordersheet'!AY1269)","v":""},{"$f":"IF('1. Ordersheet'!AZ1269=\"\",\"\",'1. Ordersheet'!AZ1269)","v":""},{"$f":"IF('1. Ordersheet'!BA1269=\"\",\"\",'1. Ordersheet'!BA1269)","v":""},{"$f":"IF('1. Ordersheet'!BC1269=\"\",\"\",'1. Ordersheet'!BC1269)","v":""},{"$f":"IF('1. Ordersheet'!BD1269=\"\",\"\",'1. Ordersheet'!BD1269)","v":""},{"$f":"IF('1. Ordersheet'!BE1269=\"\",\"\",'1. Ordersheet'!BE1269)","v":""},{"$f":"IF('1. Ordersheet'!BF1269=\"\",\"\",'1. Ordersheet'!BF1269)","v":""},{"$f":"IF('1. Ordersheet'!BG1269=\"\",\"\",'1. Ordersheet'!BG1269)","v":"ZWO"},{"$f":"IF('1. Ordersheet'!BH1269=\"\",\"\",'1. Ordersheet'!BH1269)","v":""},{"$f":"IF('1. Ordersheet'!BI1269=\"\",\"\",'1. Ordersheet'!BI1269)","v":""},{"$f":"IF('1. Ordersheet'!BJ1269=\"\",\"\",'1. Ordersheet'!BJ1269)","v":""},{"$f":"IF('1. Ordersheet'!BK1269=\"\",\"\",'1. Ordersheet'!BK1269)","v":""},{"$f":"IF('1. Ordersheet'!BL1269=\"\",\"\",'1. Ordersheet'!BL1269)","v":""}]
[{"$f":"IF('1. Ordersheet'!F1270=\"\",\"\",'1. Ordersheet'!F1270)","v":""},{"$f":"IF('1. Ordersheet'!G1270=\"\",\"\",'1. Ordersheet'!G1270)","v":""},{"$f":"IF('1. Ordersheet'!H1270=\"\",\"\",'1. Ordersheet'!H1270)","v":""},{"$f":"IF('1. Ordersheet'!I1270=\"\",\"\",'1. Ordersheet'!I1270)","v":""},{"$f":"IF('1. Ordersheet'!J1270=\"\",\"\",'1. Ordersheet'!J1270)","v":""},{"$f":"IF('1. Ordersheet'!K1270=\"\",\"\",'1. Ordersheet'!K1270)","v":""},{"$f":"IF('1. Ordersheet'!L1270=\"\",\"\",'1. Ordersheet'!L1270)","v":""},{"$f":"IF('1. Ordersheet'!M1270=\"\",\"\",'1. Ordersheet'!M1270)","v":""},{"$f":"IF('1. Ordersheet'!N1270=\"\",\"\",'1. Ordersheet'!N1270)","v":""},{"$f":"IF('1. Ordersheet'!O1270=\"\",\"\",'1. Ordersheet'!O1270)","v":{"$error":"#N/A"}},{"$f":"IF('1. Ordersheet'!P1270=\"\",\"\",'1. Ordersheet'!P1270)","v":{"$error":"#N/A"}},{"$f":"IF('1. Ordersheet'!Q1270=\"\",\"\",'1. Ordersheet'!Q1270)","v":""},{"$f":"IF('1. Ordersheet'!R1270=\"\",\"\",'1. Ordersheet'!R1270)","v":""},{"$f":"IF('1. Ordersheet'!S1270=\"\",\"\",'1. Ordersheet'!S1270)","v":""},{"$f":"IF('1. Ordersheet'!V1270=\"\",\"\",'1. Ordersheet'!V1270)","v":""},{"$f":"IF('1. Ordersheet'!W1270=\"\",\"\",'1. Ordersheet'!W1270)","v":""},{"$f":"IF('1. Ordersheet'!X1270=\"\",\"\",'1. Ordersheet'!X1270)","v":""},{"$f":"IF('1. Ordersheet'!Y1270=\"\",\"\",'1. Ordersheet'!Y1270)","v":""},{"$f":"IF('1. Ordersheet'!Z1270=\"\",\"\",'1. Ordersheet'!Z1270)","v":""},{"$f":"IF('1. Ordersheet'!AA1270=\"\",\"\",'1. Ordersheet'!AA1270)","v":""},null,{"$f":"IF('1. Ordersheet'!AS1270=\"\",\"\",'1. Ordersheet'!AS1270)","v":""},{"$f":"IF('1. Ordersheet'!AT1270=\"\",\"\",'1. Ordersheet'!AT1270)","v":""},null,null,null,null,null,null,null,{"$f":"IF('1. Ordersheet'!AX1270=\"\",\"\",'1. Ordersheet'!AX1270)","v":""},{"$f":"IF('1. Ordersheet'!AY1270=\"\",\"\",'1. Ordersheet'!AY1270)","v":""},{"$f":"IF('1. Ordersheet'!AZ1270=\"\",\"\",'1. Ordersheet'!AZ1270)","v":""},{"$f":"IF('1. Ordersheet'!BA1270=\"\",\"\",'1. Ordersheet'!BA1270)","v":""},{"$f":"IF('1. Ordersheet'!BC1270=\"\",\"\",'1. Ordersheet'!BC1270)","v":""},{"$f":"IF('1. Ordersheet'!BD1270=\"\",\"\",'1. Ordersheet'!BD1270)","v":""},{"$f":"IF('1. Ordersheet'!BE1270=\"\",\"\",'1. Ordersheet'!BE1270)","v":""},{"$f":"IF('1. Ordersheet'!BF1270=\"\",\"\",'1. Ordersheet'!BF1270)","v":""},{"$f":"IF('1. Ordersheet'!BG1270=\"\",\"\",'1. Ordersheet'!BG1270)","v":"ZWO"},{"$f":"IF('1. Ordersheet'!BH1270=\"\",\"\",'1. Ordersheet'!BH1270)","v":""},{"$f":"IF('1. Ordersheet'!BI1270=\"\",\"\",'1. Ordersheet'!BI1270)","v":""},{"$f":"IF('1. Ordersheet'!BJ1270=\"\",\"\",'1. Ordersheet'!BJ1270)","v":""},{"$f":"IF('1. Ordersheet'!BK1270=\"\",\"\",'1. Ordersheet'!BK1270)","v":""},{"$f":"IF('1. Ordersheet'!BL1270=\"\",\"\",'1. Ordersheet'!BL1270)","v":""}]
[{"$f":"IF('1. Ordersheet'!F1271=\"\",\"\",'1. Ordersheet'!F1271)","v":""},{"$f":"IF('1. Ordersheet'!G1271=\"\",\"\",'1. Ordersheet'!G1271)","v":""},{"$f":"IF('1. Ordersheet'!H1271=\"\",\"\",'1. Ordersheet'!H1271)","v":""},{"$f":"IF('1. Ordersheet'!I1271=\"\",\"\",'1. Ordersheet'!I1271)","v":""},{"$f":"IF('1. Ordersheet'!J1271=\"\",\"\",'1. Ordersheet'!J1271)","v":""},{"$f":"IF('1. Ordersheet'!K1271=\"\",\"\",'1. Ordersheet'!K1271)","v":""},{"$f":"IF('1. Ordersheet'!L1271=\"\",\"\",'1. Ordersheet'!L1271)","v":""},{"$f":"IF('1. Ordersheet'!M1271=\"\",\"\",'1. Ordersheet'!M1271)","v":""},{"$f":"IF('1. Ordersheet'!N1271=\"\",\"\",'1. Ordersheet'!N1271)","v":""},{"$f":"IF('1. Ordersheet'!O1271=\"\",\"\",'1. Ordersheet'!O1271)","v":{"$error":"#N/A"}},{"$f":"IF('1. Ordersheet'!P1271=\"\",\"\",'1. Ordersheet'!P1271)","v":{"$error":"#N/A"}},{"$f":"IF('1. Ordersheet'!Q1271=\"\",\"\",'1. Ordersheet'!Q1271)","v":""},{"$f":"IF('1. Ordersheet'!R1271=\"\",\"\",'1. Ordersheet'!R1271)","v":""},{"$f":"IF('1. Ordersheet'!S1271=\"\",\"\",'1. Ordersheet'!S1271)","v":""},{"$f":"IF('1. Ordersheet'!V1271=\"\",\"\",'1. Ordersheet'!V1271)","v":""},{"$f":"IF('1. Ordersheet'!W1271=\"\",\"\",'1. Ordersheet'!W1271)","v":""},{"$f":"IF('1. Ordersheet'!X1271=\"\",\"\",'1. Ordersheet'!X1271)","v":""},{"$f":"IF('1. Ordersheet'!Y1271=\"\",\"\",'1. Ordersheet'!Y1271)","v":""},{"$f":"IF('1. Ordersheet'!Z1271=\"\",\"\",'1. Ordersheet'!Z1271)","v":""},{"$f":"IF('1. Ordersheet'!AA1271=\"\",\"\",'1. Ordersheet'!AA1271)","v":""},null,{"$f":"IF('1. Ordersheet'!AS1271=\"\",\"\",'1. Ordersheet'!AS1271)","v":""},{"$f":"IF('1. Ordersheet'!AT1271=\"\",\"\",'1. Ordersheet'!AT1271)","v":""},null,null,null,null,null,null,null,{"$f":"IF('1. Ordersheet'!AX1271=\"\",\"\",'1. Ordersheet'!AX1271)","v":""},{"$f":"IF('1. Ordersheet'!AY1271=\"\",\"\",'1. Ordersheet'!AY1271)","v":""},{"$f":"IF('1. Ordersheet'!AZ1271=\"\",\"\",'1. Ordersheet'!AZ1271)","v":""},{"$f":"IF('1. Ordersheet'!BA1271=\"\",\"\",'1. Ordersheet'!BA1271)","v":""},{"$f":"IF('1. Ordersheet'!BC1271=\"\",\"\",'1. Ordersheet'!BC1271)","v":""},{"$f":"IF('1. Ordersheet'!BD1271=\"\",\"\",'1. Ordersheet'!BD1271)","v":""},{"$f":"IF('1. Ordersheet'!BE1271=\"\",\"\",'1. Ordersheet'!BE1271)","v":""},{"$f":"IF('1. Ordersheet'!BF1271=\"\",\"\",'1. Ordersheet'!BF1271)","v":""},{"$f":"IF('1. Ordersheet'!BG1271=\"\",\"\",'1. Ordersheet'!BG1271)","v":"ZWO"},{"$f":"IF('1. Ordersheet'!BH1271=\"\",\"\",'1. Ordersheet'!BH1271)","v":""},{"$f":"IF('1. Ordersheet'!BI1271=\"\",\"\",'1. Ordersheet'!BI1271)","v":""},{"$f":"IF('1. Ordersheet'!BJ1271=\"\",\"\",'1. Ordersheet'!BJ1271)","v":""},{"$f":"IF('1. Ordersheet'!BK1271=\"\",\"\",'1. Ordersheet'!BK1271)","v":""},{"$f":"IF('1. Ordersheet'!BL1271=\"\",\"\",'1. Ordersheet'!BL1271)","v":""}]
[{"$f":"IF('1. Ordersheet'!F1272=\"\",\"\",'1. Ordersheet'!F1272)","v":""},{"$f":"IF('1. Ordersheet'!G1272=\"\",\"\",'1. Ordersheet'!G1272)","v":""},{"$f":"IF('1. Ordersheet'!H1272=\"\",\"\",'1. Ordersheet'!H1272)","v":""},{"$f":"IF('1. Ordersheet'!I1272=\"\",\"\",'1. Ordersheet'!I1272)","v":""},{"$f":"IF('1. Ordersheet'!J1272=\"\",\"\",'1. Ordersheet'!J1272)","v":""},{"$f":"IF('1. Ordersheet'!K1272=\"\",\"\",'1. Ordersheet'!K1272)","v":""},{"$f":"IF('1. Ordersheet'!L1272=\"\",\"\",'1. Ordersheet'!L1272)","v":""},{"$f":"IF('1. Ordersheet'!M1272=\"\",\"\",'1. Ordersheet'!M1272)","v":""},{"$f":"IF('1. Ordersheet'!N1272=\"\",\"\",'1. Ordersheet'!N1272)","v":""},{"$f":"IF('1. Ordersheet'!O1272=\"\",\"\",'1. Ordersheet'!O1272)","v":{"$error":"#N/A"}},{"$f":"IF('1. Ordersheet'!P1272=\"\",\"\",'1. Ordersheet'!P1272)","v":{"$error":"#N/A"}},{"$f":"IF('1. Ordersheet'!Q1272=\"\",\"\",'1. Ordersheet'!Q1272)","v":""},{"$f":"IF('1. Ordersheet'!R1272=\"\",\"\",'1. Ordersheet'!R1272)","v":""},{"$f":"IF('1. Ordersheet'!S1272=\"\",\"\",'1. Ordersheet'!S1272)","v":""},{"$f":"IF('1. Ordersheet'!V1272=\"\",\"\",'1. Ordersheet'!V1272)","v":""},{"$f":"IF('1. Ordersheet'!W1272=\"\",\"\",'1. Ordersheet'!W1272)","v":""},{"$f":"IF('1. Ordersheet'!X1272=\"\",\"\",'1. Ordersheet'!X1272)","v":""},{"$f":"IF('1. Ordersheet'!Y1272=\"\",\"\",'1. Ordersheet'!Y1272)","v":""},{"$f":"IF('1. Ordersheet'!Z1272=\"\",\"\",'1. Ordersheet'!Z1272)","v":""},{"$f":"IF('1. Ordersheet'!AA1272=\"\",\"\",'1. Ordersheet'!AA1272)","v":""},null,{"$f":"IF('1. Ordersheet'!AS1272=\"\",\"\",'1. Ordersheet'!AS1272)","v":""},{"$f":"IF('1. Ordersheet'!AT1272=\"\",\"\",'1. Ordersheet'!AT1272)","v":""},null,null,null,null,null,null,null,{"$f":"IF('1. Ordersheet'!AX1272=\"\",\"\",'1. Ordersheet'!AX1272)","v":""},{"$f":"IF('1. Ordersheet'!AY1272=\"\",\"\",'1. Ordersheet'!AY1272)","v":""},{"$f":"IF('1. Ordersheet'!AZ1272=\"\",\"\",'1. Ordersheet'!AZ1272)","v":""},{"$f":"IF('1. Ordersheet'!BA1272=\"\",\"\",'1. Ordersheet'!BA1272)","v":""},{"$f":"IF('1. Ordersheet'!BC1272=\"\",\"\",'1. Ordersheet'!BC1272)","v":""},{"$f":"IF('1. Ordersheet'!BD1272=\"\",\"\",'1. Ordersheet'!BD1272)","v":""},{"$f":"IF('1. Ordersheet'!BE1272=\"\",\"\",'1. Ordersheet'!BE1272)","v":""},{"$f":"IF('1. Ordersheet'!BF1272=\"\",\"\",'1. Ordersheet'!BF1272)","v":""},{"$f":"IF('1. Ordersheet'!BG1272=\"\",\"\",'1. Ordersheet'!BG1272)","v":"ZWO"},{"$f":"IF('1. Ordersheet'!BH1272=\"\",\"\",'1. Ordersheet'!BH1272)","v":""},{"$f":"IF('1. Ordersheet'!BI1272=\"\",\"\",'1. Ordersheet'!BI1272)","v":""},{"$f":"IF('1. Ordersheet'!BJ1272=\"\",\"\",'1. Ordersheet'!BJ1272)","v":""},{"$f":"IF('1. Ordersheet'!BK1272=\"\",\"\",'1. Ordersheet'!BK1272)","v":""},{"$f":"IF('1. Ordersheet'!BL1272=\"\",\"\",'1. Ordersheet'!BL1272)","v":""}]
[{"$f":"IF('1. Ordersheet'!F1273=\"\",\"\",'1. Ordersheet'!F1273)","v":""},{"$f":"IF('1. Ordersheet'!G1273=\"\",\"\",'1. Ordersheet'!G1273)","v":""},{"$f":"IF('1. Ordersheet'!H1273=\"\",\"\",'1. Ordersheet'!H1273)","v":""},{"$f":"IF('1. Ordersheet'!I1273=\"\",\"\",'1. Ordersheet'!I1273)","v":""},{"$f":"IF('1. Ordersheet'!J1273=\"\",\"\",'1. Ordersheet'!J1273)","v":""},{"$f":"IF('1. Ordersheet'!K1273=\"\",\"\",'1. Ordersheet'!K1273)","v":""},{"$f":"IF('1. Ordersheet'!L1273=\"\",\"\",'1. Ordersheet'!L1273)","v":""},{"$f":"IF('1. Ordersheet'!M1273=\"\",\"\",'1. Ordersheet'!M1273)","v":""},{"$f":"IF('1. Ordersheet'!N1273=\"\",\"\",'1. Ordersheet'!N1273)","v":""},{"$f":"IF('1. Ordersheet'!O1273=\"\",\"\",'1. Ordersheet'!O1273)","v":{"$error":"#N/A"}},{"$f":"IF('1. Ordersheet'!P1273=\"\",\"\",'1. Ordersheet'!P1273)","v":{"$error":"#N/A"}},{"$f":"IF('1. Ordersheet'!Q1273=\"\",\"\",'1. Ordersheet'!Q1273)","v":""},{"$f":"IF('1. Ordersheet'!R1273=\"\",\"\",'1. Ordersheet'!R1273)","v":""},{"$f":"IF('1. Ordersheet'!S1273=\"\",\"\",'1. Ordersheet'!S1273)","v":""},{"$f":"IF('1. Ordersheet'!V1273=\"\",\"\",'1. Ordersheet'!V1273)","v":""},{"$f":"IF('1. Ordersheet'!W1273=\"\",\"\",'1. Ordersheet'!W1273)","v":""},{"$f":"IF('1. Ordersheet'!X1273=\"\",\"\",'1. Ordersheet'!X1273)","v":""},{"$f":"IF('1. Ordersheet'!Y1273=\"\",\"\",'1. Ordersheet'!Y1273)","v":""},{"$f":"IF('1. Ordersheet'!Z1273=\"\",\"\",'1. Ordersheet'!Z1273)","v":""},{"$f":"IF('1. Ordersheet'!AA1273=\"\",\"\",'1. Ordersheet'!AA1273)","v":""},null,{"$f":"IF('1. Ordersheet'!AS1273=\"\",\"\",'1. Ordersheet'!AS1273)","v":""},{"$f":"IF('1. Ordersheet'!AT1273=\"\",\"\",'1. Ordersheet'!AT1273)","v":""},null,null,null,null,null,null,null,{"$f":"IF('1. Ordersheet'!AX1273=\"\",\"\",'1. Ordersheet'!AX1273)","v":""},{"$f":"IF('1. Ordersheet'!AY1273=\"\",\"\",'1. Ordersheet'!AY1273)","v":""},{"$f":"IF('1. Ordersheet'!AZ1273=\"\",\"\",'1. Ordersheet'!AZ1273)","v":""},{"$f":"IF('1. Ordersheet'!BA1273=\"\",\"\",'1. Ordersheet'!BA1273)","v":""},{"$f":"IF('1. Ordersheet'!BC1273=\"\",\"\",'1. Ordersheet'!BC1273)","v":""},{"$f":"IF('1. Ordersheet'!BD1273=\"\",\"\",'1. Ordersheet'!BD1273)","v":""},{"$f":"IF('1. Ordersheet'!BE1273=\"\",\"\",'1. Ordersheet'!BE1273)","v":""},{"$f":"IF('1. Ordersheet'!BF1273=\"\",\"\",'1. Ordersheet'!BF1273)","v":""},{"$f":"IF('1. Ordersheet'!BG1273=\"\",\"\",'1. Ordersheet'!BG1273)","v":"ZWO"},{"$f":"IF('1. Ordersheet'!BH1273=\"\",\"\",'1. Ordersheet'!BH1273)","v":""},{"$f":"IF('1. Ordersheet'!BI1273=\"\",\"\",'1. Ordersheet'!BI1273)","v":""},{"$f":"IF('1. Ordersheet'!BJ1273=\"\",\"\",'1. Ordersheet'!BJ1273)","v":""},{"$f":"IF('1. Ordersheet'!BK1273=\"\",\"\",'1. Ordersheet'!BK1273)","v":""},{"$f":"IF('1. Ordersheet'!BL1273=\"\",\"\",'1. Ordersheet'!BL1273)","v":""}]
[{"$f":"IF('1. Ordersheet'!F1274=\"\",\"\",'1. Ordersheet'!F1274)","v":""},{"$f":"IF('1. Ordersheet'!G1274=\"\",\"\",'1. Ordersheet'!G1274)","v":""},{"$f":"IF('1. Ordersheet'!H1274=\"\",\"\",'1. Ordersheet'!H1274)","v":""},{"$f":"IF('1. Ordersheet'!I1274=\"\",\"\",'1. Ordersheet'!I1274)","v":""},{"$f":"IF('1. Ordersheet'!J1274=\"\",\"\",'1. Ordersheet'!J1274)","v":""},{"$f":"IF('1. Ordersheet'!K1274=\"\",\"\",'1. Ordersheet'!K1274)","v":""},{"$f":"IF('1. Ordersheet'!L1274=\"\",\"\",'1. Ordersheet'!L1274)","v":""},{"$f":"IF('1. Ordersheet'!M1274=\"\",\"\",'1. Ordersheet'!M1274)","v":""},{"$f":"IF('1. Ordersheet'!N1274=\"\",\"\",'1. Ordersheet'!N1274)","v":""},{"$f":"IF('1. Ordersheet'!O1274=\"\",\"\",'1. Ordersheet'!O1274)","v":{"$error":"#N/A"}},{"$f":"IF('1. Ordersheet'!P1274=\"\",\"\",'1. Ordersheet'!P1274)","v":{"$error":"#N/A"}},{"$f":"IF('1. Ordersheet'!Q1274=\"\",\"\",'1. Ordersheet'!Q1274)","v":""},{"$f":"IF('1. Ordersheet'!R1274=\"\",\"\",'1. Ordersheet'!R1274)","v":""},{"$f":"IF('1. Ordersheet'!S1274=\"\",\"\",'1. Ordersheet'!S1274)","v":""},{"$f":"IF('1. Ordersheet'!V1274=\"\",\"\",'1. Ordersheet'!V1274)","v":""},{"$f":"IF('1. Ordersheet'!W1274=\"\",\"\",'1. Ordersheet'!W1274)","v":""},{"$f":"IF('1. Ordersheet'!X1274=\"\",\"\",'1. Ordersheet'!X1274)","v":""},{"$f":"IF('1. Ordersheet'!Y1274=\"\",\"\",'1. Ordersheet'!Y1274)","v":""},{"$f":"IF('1. Ordersheet'!Z1274=\"\",\"\",'1. Ordersheet'!Z1274)","v":""},{"$f":"IF('1. Ordersheet'!AA1274=\"\",\"\",'1. Ordersheet'!AA1274)","v":""},null,{"$f":"IF('1. Ordersheet'!AS1274=\"\",\"\",'1. Ordersheet'!AS1274)","v":""},{"$f":"IF('1. Ordersheet'!AT1274=\"\",\"\",'1. Ordersheet'!AT1274)","v":""},null,null,null,null,null,null,null,{"$f":"IF('1. Ordersheet'!AX1274=\"\",\"\",'1. Ordersheet'!AX1274)","v":""},{"$f":"IF('1. Ordersheet'!AY1274=\"\",\"\",'1. Ordersheet'!AY1274)","v":""},{"$f":"IF('1. Ordersheet'!AZ1274=\"\",\"\",'1. Ordersheet'!AZ1274)","v":""},{"$f":"IF('1. Ordersheet'!BA1274=\"\",\"\",'1. Ordersheet'!BA1274)","v":""},{"$f":"IF('1. Ordersheet'!BC1274=\"\",\"\",'1. Ordersheet'!BC1274)","v":""},{"$f":"IF('1. Ordersheet'!BD1274=\"\",\"\",'1. Ordersheet'!BD1274)","v":""},{"$f":"IF('1. Ordersheet'!BE1274=\"\",\"\",'1. Ordersheet'!BE1274)","v":""},{"$f":"IF('1. Ordersheet'!BF1274=\"\",\"\",'1. Ordersheet'!BF1274)","v":""},{"$f":"IF('1. Ordersheet'!BG1274=\"\",\"\",'1. Ordersheet'!BG1274)","v":"ZWO"},{"$f":"IF('1. Ordersheet'!BH1274=\"\",\"\",'1. Ordersheet'!BH1274)","v":""},{"$f":"IF('1. Ordersheet'!BI1274=\"\",\"\",'1. Ordersheet'!BI1274)","v":""},{"$f":"IF('1. Ordersheet'!BJ1274=\"\",\"\",'1. Ordersheet'!BJ1274)","v":""},{"$f":"IF('1. Ordersheet'!BK1274=\"\",\"\",'1. Ordersheet'!BK1274)","v":""},{"$f":"IF('1. Ordersheet'!BL1274=\"\",\"\",'1. Ordersheet'!BL1274)","v":""}]
[{"$f":"IF('1. Ordersheet'!F1275=\"\",\"\",'1. Ordersheet'!F1275)","v":""},{"$f":"IF('1. Ordersheet'!G1275=\"\",\"\",'1. Ordersheet'!G1275)","v":""},{"$f":"IF('1. Ordersheet'!H1275=\"\",\"\",'1. Ordersheet'!H1275)","v":""},{"$f":"IF('1. Ordersheet'!I1275=\"\",\"\",'1. Ordersheet'!I1275)","v":""},{"$f":"IF('1. Ordersheet'!J1275=\"\",\"\",'1. Ordersheet'!J1275)","v":""},{"$f":"IF('1. Ordersheet'!K1275=\"\",\"\",'1. Ordersheet'!K1275)","v":""},{"$f":"IF('1. Ordersheet'!L1275=\"\",\"\",'1. Ordersheet'!L1275)","v":""},{"$f":"IF('1. Ordersheet'!M1275=\"\",\"\",'1. Ordersheet'!M1275)","v":""},{"$f":"IF('1. Ordersheet'!N1275=\"\",\"\",'1. Ordersheet'!N1275)","v":""},{"$f":"IF('1. Ordersheet'!O1275=\"\",\"\",'1. Ordersheet'!O1275)","v":{"$error":"#N/A"}},{"$f":"IF('1. Ordersheet'!P1275=\"\",\"\",'1. Ordersheet'!P1275)","v":{"$error":"#N/A"}},{"$f":"IF('1. Ordersheet'!Q1275=\"\",\"\",'1. Ordersheet'!Q1275)","v":""},{"$f":"IF('1. Ordersheet'!R1275=\"\",\"\",'1. Ordersheet'!R1275)","v":""},{"$f":"IF('1. Ordersheet'!S1275=\"\",\"\",'1. Ordersheet'!S1275)","v":""},{"$f":"IF('1. Ordersheet'!V1275=\"\",\"\",'1. Ordersheet'!V1275)","v":""},{"$f":"IF('1. Ordersheet'!W1275=\"\",\"\",'1. Ordersheet'!W1275)","v":""},{"$f":"IF('1. Ordersheet'!X1275=\"\",\"\",'1. Ordersheet'!X1275)","v":""},{"$f":"IF('1. Ordersheet'!Y1275=\"\",\"\",'1. Ordersheet'!Y1275)","v":""},{"$f":"IF('1. Ordersheet'!Z1275=\"\",\"\",'1. Ordersheet'!Z1275)","v":""},{"$f":"IF('1. Ordersheet'!AA1275=\"\",\"\",'1. Ordersheet'!AA1275)","v":""},null,{"$f":"IF('1. Ordersheet'!AS1275=\"\",\"\",'1. Ordersheet'!AS1275)","v":""},{"$f":"IF('1. Ordersheet'!AT1275=\"\",\"\",'1. Ordersheet'!AT1275)","v":""},null,null,null,null,null,null,null,{"$f":"IF('1. Ordersheet'!AX1275=\"\",\"\",'1. Ordersheet'!AX1275)","v":""},{"$f":"IF('1. Ordersheet'!AY1275=\"\",\"\",'1. Ordersheet'!AY1275)","v":""},{"$f":"IF('1. Ordersheet'!AZ1275=\"\",\"\",'1. Ordersheet'!AZ1275)","v":""},{"$f":"IF('1. Ordersheet'!BA1275=\"\",\"\",'1. Ordersheet'!BA1275)","v":""},{"$f":"IF('1. Ordersheet'!BC1275=\"\",\"\",'1. Ordersheet'!BC1275)","v":""},{"$f":"IF('1. Ordersheet'!BD1275=\"\",\"\",'1. Ordersheet'!BD1275)","v":""},{"$f":"IF('1. Ordersheet'!BE1275=\"\",\"\",'1. Ordersheet'!BE1275)","v":""},{"$f":"IF('1. Ordersheet'!BF1275=\"\",\"\",'1. Ordersheet'!BF1275)","v":""},{"$f":"IF('1. Ordersheet'!BG1275=\"\",\"\",'1. Ordersheet'!BG1275)","v":"ZWO"},{"$f":"IF('1. Ordersheet'!BH1275=\"\",\"\",'1. Ordersheet'!BH1275)","v":""},{"$f":"IF('1. Ordersheet'!BI1275=\"\",\"\",'1. Ordersheet'!BI1275)","v":""},{"$f":"IF('1. Ordersheet'!BJ1275=\"\",\"\",'1. Ordersheet'!BJ1275)","v":""},{"$f":"IF('1. Ordersheet'!BK1275=\"\",\"\",'1. Ordersheet'!BK1275)","v":""},{"$f":"IF('1. Ordersheet'!BL1275=\"\",\"\",'1. Ordersheet'!BL1275)","v":""}]
[{"$f":"IF('1. Ordersheet'!F1276=\"\",\"\",'1. Ordersheet'!F1276)","v":""},{"$f":"IF('1. Ordersheet'!G1276=\"\",\"\",'1. Ordersheet'!G1276)","v":""},{"$f":"IF('1. Ordersheet'!H1276=\"\",\"\",'1. Ordersheet'!H1276)","v":""},{"$f":"IF('1. Ordersheet'!I1276=\"\",\"\",'1. Ordersheet'!I1276)","v":""},{"$f":"IF('1. Ordersheet'!J1276=\"\",\"\",'1. Ordersheet'!J1276)","v":""},{"$f":"IF('1. Ordersheet'!K1276=\"\",\"\",'1. Ordersheet'!K1276)","v":""},{"$f":"IF('1. Ordersheet'!L1276=\"\",\"\",'1. Ordersheet'!L1276)","v":""},{"$f":"IF('1. Ordersheet'!M1276=\"\",\"\",'1. Ordersheet'!M1276)","v":""},{"$f":"IF('1. Ordersheet'!N1276=\"\",\"\",'1. Ordersheet'!N1276)","v":""},{"$f":"IF('1. Ordersheet'!O1276=\"\",\"\",'1. Ordersheet'!O1276)","v":{"$error":"#N/A"}},{"$f":"IF('1. Ordersheet'!P1276=\"\",\"\",'1. Ordersheet'!P1276)","v":{"$error":"#N/A"}},{"$f":"IF('1. Ordersheet'!Q1276=\"\",\"\",'1. Ordersheet'!Q1276)","v":""},{"$f":"IF('1. Ordersheet'!R1276=\"\",\"\",'1. Ordersheet'!R1276)","v":""},{"$f":"IF('1. Ordersheet'!S1276=\"\",\"\",'1. Ordersheet'!S1276)","v":""},{"$f":"IF('1. Ordersheet'!V1276=\"\",\"\",'1. Ordersheet'!V1276)","v":""},{"$f":"IF('1. Ordersheet'!W1276=\"\",\"\",'1. Ordersheet'!W1276)","v":""},{"$f":"IF('1. Ordersheet'!X1276=\"\",\"\",'1. Ordersheet'!X1276)","v":""},{"$f":"IF('1. Ordersheet'!Y1276=\"\",\"\",'1. Ordersheet'!Y1276)","v":""},{"$f":"IF('1. Ordersheet'!Z1276=\"\",\"\",'1. Ordersheet'!Z1276)","v":""},{"$f":"IF('1. Ordersheet'!AA1276=\"\",\"\",'1. Ordersheet'!AA1276)","v":""},null,{"$f":"IF('1. Ordersheet'!AS1276=\"\",\"\",'1. Ordersheet'!AS1276)","v":""},{"$f":"IF('1. Ordersheet'!AT1276=\"\",\"\",'1. Ordersheet'!AT1276)","v":""},null,null,null,null,null,null,null,{"$f":"IF('1. Ordersheet'!AX1276=\"\",\"\",'1. Ordersheet'!AX1276)","v":""},{"$f":"IF('1. Ordersheet'!AY1276=\"\",\"\",'1. Ordersheet'!AY1276)","v":""},{"$f":"IF('1. Ordersheet'!AZ1276=\"\",\"\",'1. Ordersheet'!AZ1276)","v":""},{"$f":"IF('1. Ordersheet'!BA1276=\"\",\"\",'1. Ordersheet'!BA1276)","v":""},{"$f":"IF('1. Ordersheet'!BC1276=\"\",\"\",'1. Ordersheet'!BC1276)","v":""},{"$f":"IF('1. Ordersheet'!BD1276=\"\",\"\",'1. Ordersheet'!BD1276)","v":""},{"$f":"IF('1. Ordersheet'!BE1276=\"\",\"\",'1. Ordersheet'!BE1276)","v":""},{"$f":"IF('1. Ordersheet'!BF1276=\"\",\"\",'1. Ordersheet'!BF1276)","v":""},{"$f":"IF('1. Ordersheet'!BG1276=\"\",\"\",'1. Ordersheet'!BG1276)","v":"ZWO"},{"$f":"IF('1. Ordersheet'!BH1276=\"\",\"\",'1. Ordersheet'!BH1276)","v":""},{"$f":"IF('1. Ordersheet'!BI1276=\"\",\"\",'1. Ordersheet'!BI1276)","v":""},{"$f":"IF('1. Ordersheet'!BJ1276=\"\",\"\",'1. Ordersheet'!BJ1276)","v":""},{"$f":"IF('1. Ordersheet'!BK1276=\"\",\"\",'1. Ordersheet'!BK1276)","v":""},{"$f":"IF('1. Ordersheet'!BL1276=\"\",\"\",'1. Ordersheet'!BL1276)","v":""}]
[{"$f":"IF('1. Ordersheet'!F1277=\"\",\"\",'1. Ordersheet'!F1277)","v":""},{"$f":"IF('1. Ordersheet'!G1277=\"\",\"\",'1. Ordersheet'!G1277)","v":""},{"$f":"IF('1. Ordersheet'!H1277=\"\",\"\",'1. Ordersheet'!H1277)","v":""},{"$f":"IF('1. Ordersheet'!I1277=\"\",\"\",'1. Ordersheet'!I1277)","v":""},{"$f":"IF('1. Ordersheet'!J1277=\"\",\"\",'1. Ordersheet'!J1277)","v":""},{"$f":"IF('1. Ordersheet'!K1277=\"\",\"\",'1. Ordersheet'!K1277)","v":""},{"$f":"IF('1. Ordersheet'!L1277=\"\",\"\",'1. Ordersheet'!L1277)","v":""},{"$f":"IF('1. Ordersheet'!M1277=\"\",\"\",'1. Ordersheet'!M1277)","v":""},{"$f":"IF('1. Ordersheet'!N1277=\"\",\"\",'1. Ordersheet'!N1277)","v":""},{"$f":"IF('1. Ordersheet'!O1277=\"\",\"\",'1. Ordersheet'!O1277)","v":{"$error":"#N/A"}},{"$f":"IF('1. Ordersheet'!P1277=\"\",\"\",'1. Ordersheet'!P1277)","v":{"$error":"#N/A"}},{"$f":"IF('1. Ordersheet'!Q1277=\"\",\"\",'1. Ordersheet'!Q1277)","v":""},{"$f":"IF('1. Ordersheet'!R1277=\"\",\"\",'1. Ordersheet'!R1277)","v":""},{"$f":"IF('1. Ordersheet'!S1277=\"\",\"\",'1. Ordersheet'!S1277)","v":""},{"$f":"IF('1. Ordersheet'!V1277=\"\",\"\",'1. Ordersheet'!V1277)","v":""},{"$f":"IF('1. Ordersheet'!W1277=\"\",\"\",'1. Ordersheet'!W1277)","v":""},{"$f":"IF('1. Ordersheet'!X1277=\"\",\"\",'1. Ordersheet'!X1277)","v":""},{"$f":"IF('1. Ordersheet'!Y1277=\"\",\"\",'1. Ordersheet'!Y1277)","v":""},{"$f":"IF('1. Ordersheet'!Z1277=\"\",\"\",'1. Ordersheet'!Z1277)","v":""},{"$f":"IF('1. Ordersheet'!AA1277=\"\",\"\",'1. Ordersheet'!AA1277)","v":""},null,{"$f":"IF('1. Ordersheet'!AS1277=\"\",\"\",'1. Ordersheet'!AS1277)","v":""},{"$f":"IF('1. Ordersheet'!AT1277=\"\",\"\",'1. Ordersheet'!AT1277)","v":""},null,null,null,null,null,null,null,{"$f":"IF('1. Ordersheet'!AX1277=\"\",\"\",'1. Ordersheet'!AX1277)","v":""},{"$f":"IF('1. Ordersheet'!AY1277=\"\",\"\",'1. Ordersheet'!AY1277)","v":""},{"$f":"IF('1. Ordersheet'!AZ1277=\"\",\"\",'1. Ordersheet'!AZ1277)","v":""},{"$f":"IF('1. Ordersheet'!BA1277=\"\",\"\",'1. Ordersheet'!BA1277)","v":""},{"$f":"IF('1. Ordersheet'!BC1277=\"\",\"\",'1. Ordersheet'!BC1277)","v":""},{"$f":"IF('1. Ordersheet'!BD1277=\"\",\"\",'1. Ordersheet'!BD1277)","v":""},{"$f":"IF('1. Ordersheet'!BE1277=\"\",\"\",'1. Ordersheet'!BE1277)","v":""},{"$f":"IF('1. Ordersheet'!BF1277=\"\",\"\",'1. Ordersheet'!BF1277)","v":""},{"$f":"IF('1. Ordersheet'!BG1277=\"\",\"\",'1. Ordersheet'!BG1277)","v":"ZWO"},{"$f":"IF('1. Ordersheet'!BH1277=\"\",\"\",'1. Ordersheet'!BH1277)","v":""},{"$f":"IF('1. Ordersheet'!BI1277=\"\",\"\",'1. Ordersheet'!BI1277)","v":""},{"$f":"IF('1. Ordersheet'!BJ1277=\"\",\"\",'1. Ordersheet'!BJ1277)","v":""},{"$f":"IF('1. Ordersheet'!BK1277=\"\",\"\",'1. Ordersheet'!BK1277)","v":""},{"$f":"IF('1. Ordersheet'!BL1277=\"\",\"\",'1. Ordersheet'!BL1277)","v":""}]
[{"$f":"IF('1. Ordersheet'!F1278=\"\",\"\",'1. Ordersheet'!F1278)","v":""},{"$f":"IF('1. Ordersheet'!G1278=\"\",\"\",'1. Ordersheet'!G1278)","v":""},{"$f":"IF('1. Ordersheet'!H1278=\"\",\"\",'1. Ordersheet'!H1278)","v":""},{"$f":"IF('1. Ordersheet'!I1278=\"\",\"\",'1. Ordersheet'!I1278)","v":""},{"$f":"IF('1. Ordersheet'!J1278=\"\",\"\",'1. Ordersheet'!J1278)","v":""},{"$f":"IF('1. Ordersheet'!K1278=\"\",\"\",'1. Ordersheet'!K1278)","v":""},{"$f":"IF('1. Ordersheet'!L1278=\"\",\"\",'1. Ordersheet'!L1278)","v":""},{"$f":"IF('1. Ordersheet'!M1278=\"\",\"\",'1. Ordersheet'!M1278)","v":""},{"$f":"IF('1. Ordersheet'!N1278=\"\",\"\",'1. Ordersheet'!N1278)","v":""},{"$f":"IF('1. Ordersheet'!O1278=\"\",\"\",'1. Ordersheet'!O1278)","v":{"$error":"#N/A"}},{"$f":"IF('1. Ordersheet'!P1278=\"\",\"\",'1. Ordersheet'!P1278)","v":{"$error":"#N/A"}},{"$f":"IF('1. Ordersheet'!Q1278=\"\",\"\",'1. Ordersheet'!Q1278)","v":""},{"$f":"IF('1. Ordersheet'!R1278=\"\",\"\",'1. Ordersheet'!R1278)","v":""},{"$f":"IF('1. Ordersheet'!S1278=\"\",\"\",'1. Ordersheet'!S1278)","v":""},{"$f":"IF('1. Ordersheet'!V1278=\"\",\"\",'1. Ordersheet'!V1278)","v":""},{"$f":"IF('1. Ordersheet'!W1278=\"\",\"\",'1. Ordersheet'!W1278)","v":""},{"$f":"IF('1. Ordersheet'!X1278=\"\",\"\",'1. Ordersheet'!X1278)","v":""},{"$f":"IF('1. Ordersheet'!Y1278=\"\",\"\",'1. Ordersheet'!Y1278)","v":""},{"$f":"IF('1. Ordersheet'!Z1278=\"\",\"\",'1. Ordersheet'!Z1278)","v":""},{"$f":"IF('1. Ordersheet'!AA1278=\"\",\"\",'1. Ordersheet'!AA1278)","v":""},null,{"$f":"IF('1. Ordersheet'!AS1278=\"\",\"\",'1. Ordersheet'!AS1278)","v":""},{"$f":"IF('1. Ordersheet'!AT1278=\"\",\"\",'1. Ordersheet'!AT1278)","v":""},null,null,null,null,null,null,null,{"$f":"IF('1. Ordersheet'!AX1278=\"\",\"\",'1. Ordersheet'!AX1278)","v":""},{"$f":"IF('1. Ordersheet'!AY1278=\"\",\"\",'1. Ordersheet'!AY1278)","v":""},{"$f":"IF('1. Ordersheet'!AZ1278=\"\",\"\",'1. Ordersheet'!AZ1278)","v":""},{"$f":"IF('1. Ordersheet'!BA1278=\"\",\"\",'1. Ordersheet'!BA1278)","v":""},{"$f":"IF('1. Ordersheet'!BC1278=\"\",\"\",'1. Ordersheet'!BC1278)","v":""},{"$f":"IF('1. Ordersheet'!BD1278=\"\",\"\",'1. Ordersheet'!BD1278)","v":""},{"$f":"IF('1. Ordersheet'!BE1278=\"\",\"\",'1. Ordersheet'!BE1278)","v":""},{"$f":"IF('1. Ordersheet'!BF1278=\"\",\"\",'1. Ordersheet'!BF1278)","v":""},{"$f":"IF('1. Ordersheet'!BG1278=\"\",\"\",'1. Ordersheet'!BG1278)","v":"ZWO"},{"$f":"IF('1. Ordersheet'!BH1278=\"\",\"\",'1. Ordersheet'!BH1278)","v":""},{"$f":"IF('1. Ordersheet'!BI1278=\"\",\"\",'1. Ordersheet'!BI1278)","v":""},{"$f":"IF('1. Ordersheet'!BJ1278=\"\",\"\",'1. Ordersheet'!BJ1278)","v":""},{"$f":"IF('1. Ordersheet'!BK1278=\"\",\"\",'1. Ordersheet'!BK1278)","v":""},{"$f":"IF('1. Ordersheet'!BL1278=\"\",\"\",'1. Ordersheet'!BL1278)","v":""}]
[{"$f":"IF('1. Ordersheet'!F1279=\"\",\"\",'1. Ordersheet'!F1279)","v":""},{"$f":"IF('1. Ordersheet'!G1279=\"\",\"\",'1. Ordersheet'!G1279)","v":""},{"$f":"IF('1. Ordersheet'!H1279=\"\",\"\",'1. Ordersheet'!H1279)","v":""},{"$f":"IF('1. Ordersheet'!I1279=\"\",\"\",'1. Ordersheet'!I1279)","v":""},{"$f":"IF('1. Ordersheet'!J1279=\"\",\"\",'1. Ordersheet'!J1279)","v":""},{"$f":"IF('1. Ordersheet'!K1279=\"\",\"\",'1. Ordersheet'!K1279)","v":""},{"$f":"IF('1. Ordersheet'!L1279=\"\",\"\",'1. Ordersheet'!L1279)","v":""},{"$f":"IF('1. Ordersheet'!M1279=\"\",\"\",'1. Ordersheet'!M1279)","v":""},{"$f":"IF('1. Ordersheet'!N1279=\"\",\"\",'1. Ordersheet'!N1279)","v":""},{"$f":"IF('1. Ordersheet'!O1279=\"\",\"\",'1. Ordersheet'!O1279)","v":{"$error":"#N/A"}},{"$f":"IF('1. Ordersheet'!P1279=\"\",\"\",'1. Ordersheet'!P1279)","v":{"$error":"#N/A"}},{"$f":"IF('1. Ordersheet'!Q1279=\"\",\"\",'1. Ordersheet'!Q1279)","v":""},{"$f":"IF('1. Ordersheet'!R1279=\"\",\"\",'1. Ordersheet'!R1279)","v":""},{"$f":"IF('1. Ordersheet'!S1279=\"\",\"\",'1. Ordersheet'!S1279)","v":""},{"$f":"IF('1. Ordersheet'!V1279=\"\",\"\",'1. Ordersheet'!V1279)","v":""},{"$f":"IF('1. Ordersheet'!W1279=\"\",\"\",'1. Ordersheet'!W1279)","v":""},{"$f":"IF('1. Ordersheet'!X1279=\"\",\"\",'1. Ordersheet'!X1279)","v":""},{"$f":"IF('1. Ordersheet'!Y1279=\"\",\"\",'1. Ordersheet'!Y1279)","v":""},{"$f":"IF('1. Ordersheet'!Z1279=\"\",\"\",'1. Ordersheet'!Z1279)","v":""},{"$f":"IF('1. Ordersheet'!AA1279=\"\",\"\",'1. Ordersheet'!AA1279)","v":""},null,{"$f":"IF('1. Ordersheet'!AS1279=\"\",\"\",'1. Ordersheet'!AS1279)","v":""},{"$f":"IF('1. Ordersheet'!AT1279=\"\",\"\",'1. Ordersheet'!AT1279)","v":""},null,null,null,null,null,null,null,{"$f":"IF('1. Ordersheet'!AX1279=\"\",\"\",'1. Ordersheet'!AX1279)","v":""},{"$f":"IF('1. Ordersheet'!AY1279=\"\",\"\",'1. Ordersheet'!AY1279)","v":""},{"$f":"IF('1. Ordersheet'!AZ1279=\"\",\"\",'1. Ordersheet'!AZ1279)","v":""},{"$f":"IF('1. Ordersheet'!BA1279=\"\",\"\",'1. Ordersheet'!BA1279)","v":""},{"$f":"IF('1. Ordersheet'!BC1279=\"\",\"\",'1. Ordersheet'!BC1279)","v":""},{"$f":"IF('1. Ordersheet'!BD1279=\"\",\"\",'1. Ordersheet'!BD1279)","v":""},{"$f":"IF('1. Ordersheet'!BE1279=\"\",\"\",'1. Ordersheet'!BE1279)","v":""},{"$f":"IF('1. Ordersheet'!BF1279=\"\",\"\",'1. Ordersheet'!BF1279)","v":""},{"$f":"IF('1. Ordersheet'!BG1279=\"\",\"\",'1. Ordersheet'!BG1279)","v":"ZWO"},{"$f":"IF('1. Ordersheet'!BH1279=\"\",\"\",'1. Ordersheet'!BH1279)","v":""},{"$f":"IF('1. Ordersheet'!BI1279=\"\",\"\",'1. Ordersheet'!BI1279)","v":""},{"$f":"IF('1. Ordersheet'!BJ1279=\"\",\"\",'1. Ordersheet'!BJ1279)","v":""},{"$f":"IF('1. Ordersheet'!BK1279=\"\",\"\",'1. Ordersheet'!BK1279)","v":""},{"$f":"IF('1. Ordersheet'!BL1279=\"\",\"\",'1. Ordersheet'!BL1279)","v":""}]
[{"$f":"IF('1. Ordersheet'!F1280=\"\",\"\",'1. Ordersheet'!F1280)","v":""},{"$f":"IF('1. Ordersheet'!G1280=\"\",\"\",'1. Ordersheet'!G1280)","v":""},{"$f":"IF('1. Ordersheet'!H1280=\"\",\"\",'1. Ordersheet'!H1280)","v":""},{"$f":"IF('1. Ordersheet'!I1280=\"\",\"\",'1. Ordersheet'!I1280)","v":""},{"$f":"IF('1. Ordersheet'!J1280=\"\",\"\",'1. Ordersheet'!J1280)","v":""},{"$f":"IF('1. Ordersheet'!K1280=\"\",\"\",'1. Ordersheet'!K1280)","v":""},{"$f":"IF('1. Ordersheet'!L1280=\"\",\"\",'1. Ordersheet'!L1280)","v":""},{"$f":"IF('1. Ordersheet'!M1280=\"\",\"\",'1. Ordersheet'!M1280)","v":""},{"$f":"IF('1. Ordersheet'!N1280=\"\",\"\",'1. Ordersheet'!N1280)","v":""},{"$f":"IF('1. Ordersheet'!O1280=\"\",\"\",'1. Ordersheet'!O1280)","v":{"$error":"#N/A"}},{"$f":"IF('1. Ordersheet'!P1280=\"\",\"\",'1. Ordersheet'!P1280)","v":{"$error":"#N/A"}},{"$f":"IF('1. Ordersheet'!Q1280=\"\",\"\",'1. Ordersheet'!Q1280)","v":""},{"$f":"IF('1. Ordersheet'!R1280=\"\",\"\",'1. Ordersheet'!R1280)","v":""},{"$f":"IF('1. Ordersheet'!S1280=\"\",\"\",'1. Ordersheet'!S1280)","v":""},{"$f":"IF('1. Ordersheet'!V1280=\"\",\"\",'1. Ordersheet'!V1280)","v":""},{"$f":"IF('1. Ordersheet'!W1280=\"\",\"\",'1. Ordersheet'!W1280)","v":""},{"$f":"IF('1. Ordersheet'!X1280=\"\",\"\",'1. Ordersheet'!X1280)","v":""},{"$f":"IF('1. Ordersheet'!Y1280=\"\",\"\",'1. Ordersheet'!Y1280)","v":""},{"$f":"IF('1. Ordersheet'!Z1280=\"\",\"\",'1. Ordersheet'!Z1280)","v":""},{"$f":"IF('1. Ordersheet'!AA1280=\"\",\"\",'1. Ordersheet'!AA1280)","v":""},null,{"$f":"IF('1. Ordersheet'!AS1280=\"\",\"\",'1. Ordersheet'!AS1280)","v":""},{"$f":"IF('1. Ordersheet'!AT1280=\"\",\"\",'1. Ordersheet'!AT1280)","v":""},null,null,null,null,null,null,null,{"$f":"IF('1. Ordersheet'!AX1280=\"\",\"\",'1. Ordersheet'!AX1280)","v":""},{"$f":"IF('1. Ordersheet'!AY1280=\"\",\"\",'1. Ordersheet'!AY1280)","v":""},{"$f":"IF('1. Ordersheet'!AZ1280=\"\",\"\",'1. Ordersheet'!AZ1280)","v":""},{"$f":"IF('1. Ordersheet'!BA1280=\"\",\"\",'1. Ordersheet'!BA1280)","v":""},{"$f":"IF('1. Ordersheet'!BC1280=\"\",\"\",'1. Ordersheet'!BC1280)","v":""},{"$f":"IF('1. Ordersheet'!BD1280=\"\",\"\",'1. Ordersheet'!BD1280)","v":""},{"$f":"IF('1. Ordersheet'!BE1280=\"\",\"\",'1. Ordersheet'!BE1280)","v":""},{"$f":"IF('1. Ordersheet'!BF1280=\"\",\"\",'1. Ordersheet'!BF1280)","v":""},{"$f":"IF('1. Ordersheet'!BG1280=\"\",\"\",'1. Ordersheet'!BG1280)","v":"ZWO"},{"$f":"IF('1. Ordersheet'!BH1280=\"\",\"\",'1. Ordersheet'!BH1280)","v":""},{"$f":"IF('1. Ordersheet'!BI1280=\"\",\"\",'1. Ordersheet'!BI1280)","v":""},{"$f":"IF('1. Ordersheet'!BJ1280=\"\",\"\",'1. Ordersheet'!BJ1280)","v":""},{"$f":"IF('1. Ordersheet'!BK1280=\"\",\"\",'1. Ordersheet'!BK1280)","v":""},{"$f":"IF('1. Ordersheet'!BL1280=\"\",\"\",'1. Ordersheet'!BL1280)","v":""}]
[{"$f":"IF('1. Ordersheet'!F1281=\"\",\"\",'1. Ordersheet'!F1281)","v":""},{"$f":"IF('1. Ordersheet'!G1281=\"\",\"\",'1. Ordersheet'!G1281)","v":""},{"$f":"IF('1. Ordersheet'!H1281=\"\",\"\",'1. Ordersheet'!H1281)","v":""},{"$f":"IF('1. Ordersheet'!I1281=\"\",\"\",'1. Ordersheet'!I1281)","v":""},{"$f":"IF('1. Ordersheet'!J1281=\"\",\"\",'1. Ordersheet'!J1281)","v":""},{"$f":"IF('1. Ordersheet'!K1281=\"\",\"\",'1. Ordersheet'!K1281)","v":""},{"$f":"IF('1. Ordersheet'!L1281=\"\",\"\",'1. Ordersheet'!L1281)","v":""},{"$f":"IF('1. Ordersheet'!M1281=\"\",\"\",'1. Ordersheet'!M1281)","v":""},{"$f":"IF('1. Ordersheet'!N1281=\"\",\"\",'1. Ordersheet'!N1281)","v":""},{"$f":"IF('1. Ordersheet'!O1281=\"\",\"\",'1. Ordersheet'!O1281)","v":{"$error":"#N/A"}},{"$f":"IF('1. Ordersheet'!P1281=\"\",\"\",'1. Ordersheet'!P1281)","v":{"$error":"#N/A"}},{"$f":"IF('1. Ordersheet'!Q1281=\"\",\"\",'1. Ordersheet'!Q1281)","v":""},{"$f":"IF('1. Ordersheet'!R1281=\"\",\"\",'1. Ordersheet'!R1281)","v":""},{"$f":"IF('1. Ordersheet'!S1281=\"\",\"\",'1. Ordersheet'!S1281)","v":""},{"$f":"IF('1. Ordersheet'!V1281=\"\",\"\",'1. Ordersheet'!V1281)","v":""},{"$f":"IF('1. Ordersheet'!W1281=\"\",\"\",'1. Ordersheet'!W1281)","v":""},{"$f":"IF('1. Ordersheet'!X1281=\"\",\"\",'1. Ordersheet'!X1281)","v":""},{"$f":"IF('1. Ordersheet'!Y1281=\"\",\"\",'1. Ordersheet'!Y1281)","v":""},{"$f":"IF('1. Ordersheet'!Z1281=\"\",\"\",'1. Ordersheet'!Z1281)","v":""},{"$f":"IF('1. Ordersheet'!AA1281=\"\",\"\",'1. Ordersheet'!AA1281)","v":""},null,{"$f":"IF('1. Ordersheet'!AS1281=\"\",\"\",'1. Ordersheet'!AS1281)","v":""},{"$f":"IF('1. Ordersheet'!AT1281=\"\",\"\",'1. Ordersheet'!AT1281)","v":""},null,null,null,null,null,null,null,{"$f":"IF('1. Ordersheet'!AX1281=\"\",\"\",'1. Ordersheet'!AX1281)","v":""},{"$f":"IF('1. Ordersheet'!AY1281=\"\",\"\",'1. Ordersheet'!AY1281)","v":""},{"$f":"IF('1. Ordersheet'!AZ1281=\"\",\"\",'1. Ordersheet'!AZ1281)","v":""},{"$f":"IF('1. Ordersheet'!BA1281=\"\",\"\",'1. Ordersheet'!BA1281)","v":""},{"$f":"IF('1. Ordersheet'!BC1281=\"\",\"\",'1. Ordersheet'!BC1281)","v":""},{"$f":"IF('1. Ordersheet'!BD1281=\"\",\"\",'1. Ordersheet'!BD1281)","v":""},{"$f":"IF('1. Ordersheet'!BE1281=\"\",\"\",'1. Ordersheet'!BE1281)","v":""},{"$f":"IF('1. Ordersheet'!BF1281=\"\",\"\",'1. Ordersheet'!BF1281)","v":""},{"$f":"IF('1. Ordersheet'!BG1281=\"\",\"\",'1. Ordersheet'!BG1281)","v":"ZWO"},{"$f":"IF('1. Ordersheet'!BH1281=\"\",\"\",'1. Ordersheet'!BH1281)","v":""},{"$f":"IF('1. Ordersheet'!BI1281=\"\",\"\",'1. Ordersheet'!BI1281)","v":""},{"$f":"IF('1. Ordersheet'!BJ1281=\"\",\"\",'1. Ordersheet'!BJ1281)","v":""},{"$f":"IF('1. Ordersheet'!BK1281=\"\",\"\",'1. Ordersheet'!BK1281)","v":""},{"$f":"IF('1. Ordersheet'!BL1281=\"\",\"\",'1. Ordersheet'!BL1281)","v":""}]
[{"$f":"IF('1. Ordersheet'!F1282=\"\",\"\",'1. Ordersheet'!F1282)","v":""},{"$f":"IF('1. Ordersheet'!G1282=\"\",\"\",'1. Ordersheet'!G1282)","v":""},{"$f":"IF('1. Ordersheet'!H1282=\"\",\"\",'1. Ordersheet'!H1282)","v":""},{"$f":"IF('1. Ordersheet'!I1282=\"\",\"\",'1. Ordersheet'!I1282)","v":""},{"$f":"IF('1. Ordersheet'!J1282=\"\",\"\",'1. Ordersheet'!J1282)","v":""},{"$f":"IF('1. Ordersheet'!K1282=\"\",\"\",'1. Ordersheet'!K1282)","v":""},{"$f":"IF('1. Ordersheet'!L1282=\"\",\"\",'1. Ordersheet'!L1282)","v":""},{"$f":"IF('1. Ordersheet'!M1282=\"\",\"\",'1. Ordersheet'!M1282)","v":""},{"$f":"IF('1. Ordersheet'!N1282=\"\",\"\",'1. Ordersheet'!N1282)","v":""},{"$f":"IF('1. Ordersheet'!O1282=\"\",\"\",'1. Ordersheet'!O1282)","v":{"$error":"#N/A"}},{"$f":"IF('1. Ordersheet'!P1282=\"\",\"\",'1. Ordersheet'!P1282)","v":{"$error":"#N/A"}},{"$f":"IF('1. Ordersheet'!Q1282=\"\",\"\",'1. Ordersheet'!Q1282)","v":""},{"$f":"IF('1. Ordersheet'!R1282=\"\",\"\",'1. Ordersheet'!R1282)","v":""},{"$f":"IF('1. Ordersheet'!S1282=\"\",\"\",'1. Ordersheet'!S1282)","v":""},{"$f":"IF('1. Ordersheet'!V1282=\"\",\"\",'1. Ordersheet'!V1282)","v":""},{"$f":"IF('1. Ordersheet'!W1282=\"\",\"\",'1. Ordersheet'!W1282)","v":""},{"$f":"IF('1. Ordersheet'!X1282=\"\",\"\",'1. Ordersheet'!X1282)","v":""},{"$f":"IF('1. Ordersheet'!Y1282=\"\",\"\",'1. Ordersheet'!Y1282)","v":""},{"$f":"IF('1. Ordersheet'!Z1282=\"\",\"\",'1. Ordersheet'!Z1282)","v":""},{"$f":"IF('1. Ordersheet'!AA1282=\"\",\"\",'1. Ordersheet'!AA1282)","v":""},null,{"$f":"IF('1. Ordersheet'!AS1282=\"\",\"\",'1. Ordersheet'!AS1282)","v":""},{"$f":"IF('1. Ordersheet'!AT1282=\"\",\"\",'1. Ordersheet'!AT1282)","v":""},null,null,null,null,null,null,null,{"$f":"IF('1. Ordersheet'!AX1282=\"\",\"\",'1. Ordersheet'!AX1282)","v":""},{"$f":"IF('1. Ordersheet'!AY1282=\"\",\"\",'1. Ordersheet'!AY1282)","v":""},{"$f":"IF('1. Ordersheet'!AZ1282=\"\",\"\",'1. Ordersheet'!AZ1282)","v":""},{"$f":"IF('1. Ordersheet'!BA1282=\"\",\"\",'1. Ordersheet'!BA1282)","v":""},{"$f":"IF('1. Ordersheet'!BC1282=\"\",\"\",'1. Ordersheet'!BC1282)","v":""},{"$f":"IF('1. Ordersheet'!BD1282=\"\",\"\",'1. Ordersheet'!BD1282)","v":""},{"$f":"IF('1. Ordersheet'!BE1282=\"\",\"\",'1. Ordersheet'!BE1282)","v":""},{"$f":"IF('1. Ordersheet'!BF1282=\"\",\"\",'1. Ordersheet'!BF1282)","v":""},{"$f":"IF('1. Ordersheet'!BG1282=\"\",\"\",'1. Ordersheet'!BG1282)","v":"ZWO"},{"$f":"IF('1. Ordersheet'!BH1282=\"\",\"\",'1. Ordersheet'!BH1282)","v":""},{"$f":"IF('1. Ordersheet'!BI1282=\"\",\"\",'1. Ordersheet'!BI1282)","v":""},{"$f":"IF('1. Ordersheet'!BJ1282=\"\",\"\",'1. Ordersheet'!BJ1282)","v":""},{"$f":"IF('1. Ordersheet'!BK1282=\"\",\"\",'1. Ordersheet'!BK1282)","v":""},{"$f":"IF('1. Ordersheet'!BL1282=\"\",\"\",'1. Ordersheet'!BL1282)","v":""}]
[{"$f":"IF('1. Ordersheet'!F1283=\"\",\"\",'1. Ordersheet'!F1283)","v":""},{"$f":"IF('1. Ordersheet'!G1283=\"\",\"\",'1. Ordersheet'!G1283)","v":""},{"$f":"IF('1. Ordersheet'!H1283=\"\",\"\",'1. Ordersheet'!H1283)","v":""},{"$f":"IF('1. Ordersheet'!I1283=\"\",\"\",'1. Ordersheet'!I1283)","v":""},{"$f":"IF('1. Ordersheet'!J1283=\"\",\"\",'1. Ordersheet'!J1283)","v":""},{"$f":"IF('1. Ordersheet'!K1283=\"\",\"\",'1. Ordersheet'!K1283)","v":""},{"$f":"IF('1. Ordersheet'!L1283=\"\",\"\",'1. Ordersheet'!L1283)","v":""},{"$f":"IF('1. Ordersheet'!M1283=\"\",\"\",'1. Ordersheet'!M1283)","v":""},{"$f":"IF('1. Ordersheet'!N1283=\"\",\"\",'1. Ordersheet'!N1283)","v":""},{"$f":"IF('1. Ordersheet'!O1283=\"\",\"\",'1. Ordersheet'!O1283)","v":{"$error":"#N/A"}},{"$f":"IF('1. Ordersheet'!P1283=\"\",\"\",'1. Ordersheet'!P1283)","v":{"$error":"#N/A"}},{"$f":"IF('1. Ordersheet'!Q1283=\"\",\"\",'1. Ordersheet'!Q1283)","v":""},{"$f":"IF('1. Ordersheet'!R1283=\"\",\"\",'1. Ordersheet'!R1283)","v":""},{"$f":"IF('1. Ordersheet'!S1283=\"\",\"\",'1. Ordersheet'!S1283)","v":""},{"$f":"IF('1. Ordersheet'!V1283=\"\",\"\",'1. Ordersheet'!V1283)","v":""},{"$f":"IF('1. Ordersheet'!W1283=\"\",\"\",'1. Ordersheet'!W1283)","v":""},{"$f":"IF('1. Ordersheet'!X1283=\"\",\"\",'1. Ordersheet'!X1283)","v":""},{"$f":"IF('1. Ordersheet'!Y1283=\"\",\"\",'1. Ordersheet'!Y1283)","v":""},{"$f":"IF('1. Ordersheet'!Z1283=\"\",\"\",'1. Ordersheet'!Z1283)","v":""},{"$f":"IF('1. Ordersheet'!AA1283=\"\",\"\",'1. Ordersheet'!AA1283)","v":""},null,{"$f":"IF('1. Ordersheet'!AS1283=\"\",\"\",'1. Ordersheet'!AS1283)","v":""},{"$f":"IF('1. Ordersheet'!AT1283=\"\",\"\",'1. Ordersheet'!AT1283)","v":""},null,null,null,null,null,null,null,{"$f":"IF('1. Ordersheet'!AX1283=\"\",\"\",'1. Ordersheet'!AX1283)","v":""},{"$f":"IF('1. Ordersheet'!AY1283=\"\",\"\",'1. Ordersheet'!AY1283)","v":""},{"$f":"IF('1. Ordersheet'!AZ1283=\"\",\"\",'1. Ordersheet'!AZ1283)","v":""},{"$f":"IF('1. Ordersheet'!BA1283=\"\",\"\",'1. Ordersheet'!BA1283)","v":""},{"$f":"IF('1. Ordersheet'!BC1283=\"\",\"\",'1. Ordersheet'!BC1283)","v":""},{"$f":"IF('1. Ordersheet'!BD1283=\"\",\"\",'1. Ordersheet'!BD1283)","v":""},{"$f":"IF('1. Ordersheet'!BE1283=\"\",\"\",'1. Ordersheet'!BE1283)","v":""},{"$f":"IF('1. Ordersheet'!BF1283=\"\",\"\",'1. Ordersheet'!BF1283)","v":""},{"$f":"IF('1. Ordersheet'!BG1283=\"\",\"\",'1. Ordersheet'!BG1283)","v":"ZWO"},{"$f":"IF('1. Ordersheet'!BH1283=\"\",\"\",'1. Ordersheet'!BH1283)","v":""},{"$f":"IF('1. Ordersheet'!BI1283=\"\",\"\",'1. Ordersheet'!BI1283)","v":""},{"$f":"IF('1. Ordersheet'!BJ1283=\"\",\"\",'1. Ordersheet'!BJ1283)","v":""},{"$f":"IF('1. Ordersheet'!BK1283=\"\",\"\",'1. Ordersheet'!BK1283)","v":""},{"$f":"IF('1. Ordersheet'!BL1283=\"\",\"\",'1. Ordersheet'!BL1283)","v":""}]
[{"$f":"IF('1. Ordersheet'!F1284=\"\",\"\",'1. Ordersheet'!F1284)","v":""},{"$f":"IF('1. Ordersheet'!G1284=\"\",\"\",'1. Ordersheet'!G1284)","v":""},{"$f":"IF('1. Ordersheet'!H1284=\"\",\"\",'1. Ordersheet'!H1284)","v":""},{"$f":"IF('1. Ordersheet'!I1284=\"\",\"\",'1. Ordersheet'!I1284)","v":""},{"$f":"IF('1. Ordersheet'!J1284=\"\",\"\",'1. Ordersheet'!J1284)","v":""},{"$f":"IF('1. Ordersheet'!K1284=\"\",\"\",'1. Ordersheet'!K1284)","v":""},{"$f":"IF('1. Ordersheet'!L1284=\"\",\"\",'1. Ordersheet'!L1284)","v":""},{"$f":"IF('1. Ordersheet'!M1284=\"\",\"\",'1. Ordersheet'!M1284)","v":""},{"$f":"IF('1. Ordersheet'!N1284=\"\",\"\",'1. Ordersheet'!N1284)","v":""},{"$f":"IF('1. Ordersheet'!O1284=\"\",\"\",'1. Ordersheet'!O1284)","v":{"$error":"#N/A"}},{"$f":"IF('1. Ordersheet'!P1284=\"\",\"\",'1. Ordersheet'!P1284)","v":{"$error":"#N/A"}},{"$f":"IF('1. Ordersheet'!Q1284=\"\",\"\",'1. Ordersheet'!Q1284)","v":""},{"$f":"IF('1. Ordersheet'!R1284=\"\",\"\",'1. Ordersheet'!R1284)","v":""},{"$f":"IF('1. Ordersheet'!S1284=\"\",\"\",'1. Ordersheet'!S1284)","v":""},{"$f":"IF('1. Ordersheet'!V1284=\"\",\"\",'1. Ordersheet'!V1284)","v":""},{"$f":"IF('1. Ordersheet'!W1284=\"\",\"\",'1. Ordersheet'!W1284)","v":""},{"$f":"IF('1. Ordersheet'!X1284=\"\",\"\",'1. Ordersheet'!X1284)","v":""},{"$f":"IF('1. Ordersheet'!Y1284=\"\",\"\",'1. Ordersheet'!Y1284)","v":""},{"$f":"IF('1. Ordersheet'!Z1284=\"\",\"\",'1. Ordersheet'!Z1284)","v":""},{"$f":"IF('1. Ordersheet'!AA1284=\"\",\"\",'1. Ordersheet'!AA1284)","v":""},null,{"$f":"IF('1. Ordersheet'!AS1284=\"\",\"\",'1. Ordersheet'!AS1284)","v":""},{"$f":"IF('1. Ordersheet'!AT1284=\"\",\"\",'1. Ordersheet'!AT1284)","v":""},null,null,null,null,null,null,null,{"$f":"IF('1. Ordersheet'!AX1284=\"\",\"\",'1. Ordersheet'!AX1284)","v":""},{"$f":"IF('1. Ordersheet'!AY1284=\"\",\"\",'1. Ordersheet'!AY1284)","v":""},{"$f":"IF('1. Ordersheet'!AZ1284=\"\",\"\",'1. Ordersheet'!AZ1284)","v":""},{"$f":"IF('1. Ordersheet'!BA1284=\"\",\"\",'1. Ordersheet'!BA1284)","v":""},{"$f":"IF('1. Ordersheet'!BC1284=\"\",\"\",'1. Ordersheet'!BC1284)","v":""},{"$f":"IF('1. Ordersheet'!BD1284=\"\",\"\",'1. Ordersheet'!BD1284)","v":""},{"$f":"IF('1. Ordersheet'!BE1284=\"\",\"\",'1. Ordersheet'!BE1284)","v":""},{"$f":"IF('1. Ordersheet'!BF1284=\"\",\"\",'1. Ordersheet'!BF1284)","v":""},{"$f":"IF('1. Ordersheet'!BG1284=\"\",\"\",'1. Ordersheet'!BG1284)","v":"ZWO"},{"$f":"IF('1. Ordersheet'!BH1284=\"\",\"\",'1. Ordersheet'!BH1284)","v":""},{"$f":"IF('1. Ordersheet'!BI1284=\"\",\"\",'1. Ordersheet'!BI1284)","v":""},{"$f":"IF('1. Ordersheet'!BJ1284=\"\",\"\",'1. Ordersheet'!BJ1284)","v":""},{"$f":"IF('1. Ordersheet'!BK1284=\"\",\"\",'1. Ordersheet'!BK1284)","v":""},{"$f":"IF('1. Ordersheet'!BL1284=\"\",\"\",'1. Ordersheet'!BL1284)","v":""}]
[{"$f":"IF('1. Ordersheet'!F1285=\"\",\"\",'1. Ordersheet'!F1285)","v":""},{"$f":"IF('1. Ordersheet'!G1285=\"\",\"\",'1. Ordersheet'!G1285)","v":""},{"$f":"IF('1. Ordersheet'!H1285=\"\",\"\",'1. Ordersheet'!H1285)","v":""},{"$f":"IF('1. Ordersheet'!I1285=\"\",\"\",'1. Ordersheet'!I1285)","v":""},{"$f":"IF('1. Ordersheet'!J1285=\"\",\"\",'1. Ordersheet'!J1285)","v":""},{"$f":"IF('1. Ordersheet'!K1285=\"\",\"\",'1. Ordersheet'!K1285)","v":""},{"$f":"IF('1. Ordersheet'!L1285=\"\",\"\",'1. Ordersheet'!L1285)","v":""},{"$f":"IF('1. Ordersheet'!M1285=\"\",\"\",'1. Ordersheet'!M1285)","v":""},{"$f":"IF('1. Ordersheet'!N1285=\"\",\"\",'1. Ordersheet'!N1285)","v":""},{"$f":"IF('1. Ordersheet'!O1285=\"\",\"\",'1. Ordersheet'!O1285)","v":{"$error":"#N/A"}},{"$f":"IF('1. Ordersheet'!P1285=\"\",\"\",'1. Ordersheet'!P1285)","v":{"$error":"#N/A"}},{"$f":"IF('1. Ordersheet'!Q1285=\"\",\"\",'1. Ordersheet'!Q1285)","v":""},{"$f":"IF('1. Ordersheet'!R1285=\"\",\"\",'1. Ordersheet'!R1285)","v":""},{"$f":"IF('1. Ordersheet'!S1285=\"\",\"\",'1. Ordersheet'!S1285)","v":""},{"$f":"IF('1. Ordersheet'!V1285=\"\",\"\",'1. Ordersheet'!V1285)","v":""},{"$f":"IF('1. Ordersheet'!W1285=\"\",\"\",'1. Ordersheet'!W1285)","v":""},{"$f":"IF('1. Ordersheet'!X1285=\"\",\"\",'1. Ordersheet'!X1285)","v":""},{"$f":"IF('1. Ordersheet'!Y1285=\"\",\"\",'1. Ordersheet'!Y1285)","v":""},{"$f":"IF('1. Ordersheet'!Z1285=\"\",\"\",'1. Ordersheet'!Z1285)","v":""},{"$f":"IF('1. Ordersheet'!AA1285=\"\",\"\",'1. Ordersheet'!AA1285)","v":""},null,{"$f":"IF('1. Ordersheet'!AS1285=\"\",\"\",'1. Ordersheet'!AS1285)","v":""},{"$f":"IF('1. Ordersheet'!AT1285=\"\",\"\",'1. Ordersheet'!AT1285)","v":""},null,null,null,null,null,null,null,{"$f":"IF('1. Ordersheet'!AX1285=\"\",\"\",'1. Ordersheet'!AX1285)","v":""},{"$f":"IF('1. Ordersheet'!AY1285=\"\",\"\",'1. Ordersheet'!AY1285)","v":""},{"$f":"IF('1. Ordersheet'!AZ1285=\"\",\"\",'1. Ordersheet'!AZ1285)","v":""},{"$f":"IF('1. Ordersheet'!BA1285=\"\",\"\",'1. Ordersheet'!BA1285)","v":""},{"$f":"IF('1. Ordersheet'!BC1285=\"\",\"\",'1. Ordersheet'!BC1285)","v":""},{"$f":"IF('1. Ordersheet'!BD1285=\"\",\"\",'1. Ordersheet'!BD1285)","v":""},{"$f":"IF('1. Ordersheet'!BE1285=\"\",\"\",'1. Ordersheet'!BE1285)","v":""},{"$f":"IF('1. Ordersheet'!BF1285=\"\",\"\",'1. Ordersheet'!BF1285)","v":""},{"$f":"IF('1. Ordersheet'!BG1285=\"\",\"\",'1. Ordersheet'!BG1285)","v":"ZWO"},{"$f":"IF('1. Ordersheet'!BH1285=\"\",\"\",'1. Ordersheet'!BH1285)","v":""},{"$f":"IF('1. Ordersheet'!BI1285=\"\",\"\",'1. Ordersheet'!BI1285)","v":""},{"$f":"IF('1. Ordersheet'!BJ1285=\"\",\"\",'1. Ordersheet'!BJ1285)","v":""},{"$f":"IF('1. Ordersheet'!BK1285=\"\",\"\",'1. Ordersheet'!BK1285)","v":""},{"$f":"IF('1. Ordersheet'!BL1285=\"\",\"\",'1. Ordersheet'!BL1285)","v":""}]
[{"$f":"IF('1. Ordersheet'!F1286=\"\",\"\",'1. Ordersheet'!F1286)","v":""},{"$f":"IF('1. Ordersheet'!G1286=\"\",\"\",'1. Ordersheet'!G1286)","v":""},{"$f":"IF('1. Ordersheet'!H1286=\"\",\"\",'1. Ordersheet'!H1286)","v":""},{"$f":"IF('1. Ordersheet'!I1286=\"\",\"\",'1. Ordersheet'!I1286)","v":""},{"$f":"IF('1. Ordersheet'!J1286=\"\",\"\",'1. Ordersheet'!J1286)","v":""},{"$f":"IF('1. Ordersheet'!K1286=\"\",\"\",'1. Ordersheet'!K1286)","v":""},{"$f":"IF('1. Ordersheet'!L1286=\"\",\"\",'1. Ordersheet'!L1286)","v":""},{"$f":"IF('1. Ordersheet'!M1286=\"\",\"\",'1. Ordersheet'!M1286)","v":""},{"$f":"IF('1. Ordersheet'!N1286=\"\",\"\",'1. Ordersheet'!N1286)","v":""},{"$f":"IF('1. Ordersheet'!O1286=\"\",\"\",'1. Ordersheet'!O1286)","v":{"$error":"#N/A"}},{"$f":"IF('1. Ordersheet'!P1286=\"\",\"\",'1. Ordersheet'!P1286)","v":{"$error":"#N/A"}},{"$f":"IF('1. Ordersheet'!Q1286=\"\",\"\",'1. Ordersheet'!Q1286)","v":""},{"$f":"IF('1. Ordersheet'!R1286=\"\",\"\",'1. Ordersheet'!R1286)","v":""},{"$f":"IF('1. Ordersheet'!S1286=\"\",\"\",'1. Ordersheet'!S1286)","v":""},{"$f":"IF('1. Ordersheet'!V1286=\"\",\"\",'1. Ordersheet'!V1286)","v":""},{"$f":"IF('1. Ordersheet'!W1286=\"\",\"\",'1. Ordersheet'!W1286)","v":""},{"$f":"IF('1. Ordersheet'!X1286=\"\",\"\",'1. Ordersheet'!X1286)","v":""},{"$f":"IF('1. Ordersheet'!Y1286=\"\",\"\",'1. Ordersheet'!Y1286)","v":""},{"$f":"IF('1. Ordersheet'!Z1286=\"\",\"\",'1. Ordersheet'!Z1286)","v":""},{"$f":"IF('1. Ordersheet'!AA1286=\"\",\"\",'1. Ordersheet'!AA1286)","v":""},null,{"$f":"IF('1. Ordersheet'!AS1286=\"\",\"\",'1. Ordersheet'!AS1286)","v":""},{"$f":"IF('1. Ordersheet'!AT1286=\"\",\"\",'1. Ordersheet'!AT1286)","v":""},null,null,null,null,null,null,null,{"$f":"IF('1. Ordersheet'!AX1286=\"\",\"\",'1. Ordersheet'!AX1286)","v":""},{"$f":"IF('1. Ordersheet'!AY1286=\"\",\"\",'1. Ordersheet'!AY1286)","v":""},{"$f":"IF('1. Ordersheet'!AZ1286=\"\",\"\",'1. Ordersheet'!AZ1286)","v":""},{"$f":"IF('1. Ordersheet'!BA1286=\"\",\"\",'1. Ordersheet'!BA1286)","v":""},{"$f":"IF('1. Ordersheet'!BC1286=\"\",\"\",'1. Ordersheet'!BC1286)","v":""},{"$f":"IF('1. Ordersheet'!BD1286=\"\",\"\",'1. Ordersheet'!BD1286)","v":""},{"$f":"IF('1. Ordersheet'!BE1286=\"\",\"\",'1. Ordersheet'!BE1286)","v":""},{"$f":"IF('1. Ordersheet'!BF1286=\"\",\"\",'1. Ordersheet'!BF1286)","v":""},{"$f":"IF('1. Ordersheet'!BG1286=\"\",\"\",'1. Ordersheet'!BG1286)","v":"ZWO"},{"$f":"IF('1. Ordersheet'!BH1286=\"\",\"\",'1. Ordersheet'!BH1286)","v":""},{"$f":"IF('1. Ordersheet'!BI1286=\"\",\"\",'1. Ordersheet'!BI1286)","v":""},{"$f":"IF('1. Ordersheet'!BJ1286=\"\",\"\",'1. Ordersheet'!BJ1286)","v":""},{"$f":"IF('1. Ordersheet'!BK1286=\"\",\"\",'1. Ordersheet'!BK1286)","v":""},{"$f":"IF('1. Ordersheet'!BL1286=\"\",\"\",'1. Ordersheet'!BL1286)","v":""}]
[{"$f":"IF('1. Ordersheet'!F1287=\"\",\"\",'1. Ordersheet'!F1287)","v":""},{"$f":"IF('1. Ordersheet'!G1287=\"\",\"\",'1. Ordersheet'!G1287)","v":""},{"$f":"IF('1. Ordersheet'!H1287=\"\",\"\",'1. Ordersheet'!H1287)","v":""},{"$f":"IF('1. Ordersheet'!I1287=\"\",\"\",'1. Ordersheet'!I1287)","v":""},{"$f":"IF('1. Ordersheet'!J1287=\"\",\"\",'1. Ordersheet'!J1287)","v":""},{"$f":"IF('1. Ordersheet'!K1287=\"\",\"\",'1. Ordersheet'!K1287)","v":""},{"$f":"IF('1. Ordersheet'!L1287=\"\",\"\",'1. Ordersheet'!L1287)","v":""},{"$f":"IF('1. Ordersheet'!M1287=\"\",\"\",'1. Ordersheet'!M1287)","v":""},{"$f":"IF('1. Ordersheet'!N1287=\"\",\"\",'1. Ordersheet'!N1287)","v":""},{"$f":"IF('1. Ordersheet'!O1287=\"\",\"\",'1. Ordersheet'!O1287)","v":{"$error":"#N/A"}},{"$f":"IF('1. Ordersheet'!P1287=\"\",\"\",'1. Ordersheet'!P1287)","v":{"$error":"#N/A"}},{"$f":"IF('1. Ordersheet'!Q1287=\"\",\"\",'1. Ordersheet'!Q1287)","v":""},{"$f":"IF('1. Ordersheet'!R1287=\"\",\"\",'1. Ordersheet'!R1287)","v":""},{"$f":"IF('1. Ordersheet'!S1287=\"\",\"\",'1. Ordersheet'!S1287)","v":""},{"$f":"IF('1. Ordersheet'!V1287=\"\",\"\",'1. Ordersheet'!V1287)","v":""},{"$f":"IF('1. Ordersheet'!W1287=\"\",\"\",'1. Ordersheet'!W1287)","v":""},{"$f":"IF('1. Ordersheet'!X1287=\"\",\"\",'1. Ordersheet'!X1287)","v":""},{"$f":"IF('1. Ordersheet'!Y1287=\"\",\"\",'1. Ordersheet'!Y1287)","v":""},{"$f":"IF('1. Ordersheet'!Z1287=\"\",\"\",'1. Ordersheet'!Z1287)","v":""},{"$f":"IF('1. Ordersheet'!AA1287=\"\",\"\",'1. Ordersheet'!AA1287)","v":""},null,{"$f":"IF('1. Ordersheet'!AS1287=\"\",\"\",'1. Ordersheet'!AS1287)","v":""},{"$f":"IF('1. Ordersheet'!AT1287=\"\",\"\",'1. Ordersheet'!AT1287)","v":""},null,null,null,null,null,null,null,{"$f":"IF('1. Ordersheet'!AX1287=\"\",\"\",'1. Ordersheet'!AX1287)","v":""},{"$f":"IF('1. Ordersheet'!AY1287=\"\",\"\",'1. Ordersheet'!AY1287)","v":""},{"$f":"IF('1. Ordersheet'!AZ1287=\"\",\"\",'1. Ordersheet'!AZ1287)","v":""},{"$f":"IF('1. Ordersheet'!BA1287=\"\",\"\",'1. Ordersheet'!BA1287)","v":""},{"$f":"IF('1. Ordersheet'!BC1287=\"\",\"\",'1. Ordersheet'!BC1287)","v":""},{"$f":"IF('1. Ordersheet'!BD1287=\"\",\"\",'1. Ordersheet'!BD1287)","v":""},{"$f":"IF('1. Ordersheet'!BE1287=\"\",\"\",'1. Ordersheet'!BE1287)","v":""},{"$f":"IF('1. Ordersheet'!BF1287=\"\",\"\",'1. Ordersheet'!BF1287)","v":""},{"$f":"IF('1. Ordersheet'!BG1287=\"\",\"\",'1. Ordersheet'!BG1287)","v":"ZWO"},{"$f":"IF('1. Ordersheet'!BH1287=\"\",\"\",'1. Ordersheet'!BH1287)","v":""},{"$f":"IF('1. Ordersheet'!BI1287=\"\",\"\",'1. Ordersheet'!BI1287)","v":""},{"$f":"IF('1. Ordersheet'!BJ1287=\"\",\"\",'1. Ordersheet'!BJ1287)","v":""},{"$f":"IF('1. Ordersheet'!BK1287=\"\",\"\",'1. Ordersheet'!BK1287)","v":""},{"$f":"IF('1. Ordersheet'!BL1287=\"\",\"\",'1. Ordersheet'!BL1287)","v":""}]
[{"$f":"IF('1. Ordersheet'!F1288=\"\",\"\",'1. Ordersheet'!F1288)","v":""},{"$f":"IF('1. Ordersheet'!G1288=\"\",\"\",'1. Ordersheet'!G1288)","v":""},{"$f":"IF('1. Ordersheet'!H1288=\"\",\"\",'1. Ordersheet'!H1288)","v":""},{"$f":"IF('1. Ordersheet'!I1288=\"\",\"\",'1. Ordersheet'!I1288)","v":""},{"$f":"IF('1. Ordersheet'!J1288=\"\",\"\",'1. Ordersheet'!J1288)","v":""},{"$f":"IF('1. Ordersheet'!K1288=\"\",\"\",'1. Ordersheet'!K1288)","v":""},{"$f":"IF('1. Ordersheet'!L1288=\"\",\"\",'1. Ordersheet'!L1288)","v":""},{"$f":"IF('1. Ordersheet'!M1288=\"\",\"\",'1. Ordersheet'!M1288)","v":""},{"$f":"IF('1. Ordersheet'!N1288=\"\",\"\",'1. Ordersheet'!N1288)","v":""},{"$f":"IF('1. Ordersheet'!O1288=\"\",\"\",'1. Ordersheet'!O1288)","v":{"$error":"#N/A"}},{"$f":"IF('1. Ordersheet'!P1288=\"\",\"\",'1. Ordersheet'!P1288)","v":{"$error":"#N/A"}},{"$f":"IF('1. Ordersheet'!Q1288=\"\",\"\",'1. Ordersheet'!Q1288)","v":""},{"$f":"IF('1. Ordersheet'!R1288=\"\",\"\",'1. Ordersheet'!R1288)","v":""},{"$f":"IF('1. Ordersheet'!S1288=\"\",\"\",'1. Ordersheet'!S1288)","v":""},{"$f":"IF('1. Ordersheet'!V1288=\"\",\"\",'1. Ordersheet'!V1288)","v":""},{"$f":"IF('1. Ordersheet'!W1288=\"\",\"\",'1. Ordersheet'!W1288)","v":""},{"$f":"IF('1. Ordersheet'!X1288=\"\",\"\",'1. Ordersheet'!X1288)","v":""},{"$f":"IF('1. Ordersheet'!Y1288=\"\",\"\",'1. Ordersheet'!Y1288)","v":""},{"$f":"IF('1. Ordersheet'!Z1288=\"\",\"\",'1. Ordersheet'!Z1288)","v":""},{"$f":"IF('1. Ordersheet'!AA1288=\"\",\"\",'1. Ordersheet'!AA1288)","v":""},null,{"$f":"IF('1. Ordersheet'!AS1288=\"\",\"\",'1. Ordersheet'!AS1288)","v":""},{"$f":"IF('1. Ordersheet'!AT1288=\"\",\"\",'1. Ordersheet'!AT1288)","v":""},null,null,null,null,null,null,null,{"$f":"IF('1. Ordersheet'!AX1288=\"\",\"\",'1. Ordersheet'!AX1288)","v":""},{"$f":"IF('1. Ordersheet'!AY1288=\"\",\"\",'1. Ordersheet'!AY1288)","v":""},{"$f":"IF('1. Ordersheet'!AZ1288=\"\",\"\",'1. Ordersheet'!AZ1288)","v":""},{"$f":"IF('1. Ordersheet'!BA1288=\"\",\"\",'1. Ordersheet'!BA1288)","v":""},{"$f":"IF('1. Ordersheet'!BC1288=\"\",\"\",'1. Ordersheet'!BC1288)","v":""},{"$f":"IF('1. Ordersheet'!BD1288=\"\",\"\",'1. Ordersheet'!BD1288)","v":""},{"$f":"IF('1. Ordersheet'!BE1288=\"\",\"\",'1. Ordersheet'!BE1288)","v":""},{"$f":"IF('1. Ordersheet'!BF1288=\"\",\"\",'1. Ordersheet'!BF1288)","v":""},{"$f":"IF('1. Ordersheet'!BG1288=\"\",\"\",'1. Ordersheet'!BG1288)","v":"ZWO"},{"$f":"IF('1. Ordersheet'!BH1288=\"\",\"\",'1. Ordersheet'!BH1288)","v":""},{"$f":"IF('1. Ordersheet'!BI1288=\"\",\"\",'1. Ordersheet'!BI1288)","v":""},{"$f":"IF('1. Ordersheet'!BJ1288=\"\",\"\",'1. Ordersheet'!BJ1288)","v":""},{"$f":"IF('1. Ordersheet'!BK1288=\"\",\"\",'1. Ordersheet'!BK1288)","v":""},{"$f":"IF('1. Ordersheet'!BL1288=\"\",\"\",'1. Ordersheet'!BL1288)","v":""}]
[{"$f":"IF('1. Ordersheet'!F1289=\"\",\"\",'1. Ordersheet'!F1289)","v":""},{"$f":"IF('1. Ordersheet'!G1289=\"\",\"\",'1. Ordersheet'!G1289)","v":""},{"$f":"IF('1. Ordersheet'!H1289=\"\",\"\",'1. Ordersheet'!H1289)","v":""},{"$f":"IF('1. Ordersheet'!I1289=\"\",\"\",'1. Ordersheet'!I1289)","v":""},{"$f":"IF('1. Ordersheet'!J1289=\"\",\"\",'1. Ordersheet'!J1289)","v":""},{"$f":"IF('1. Ordersheet'!K1289=\"\",\"\",'1. Ordersheet'!K1289)","v":""},{"$f":"IF('1. Ordersheet'!L1289=\"\",\"\",'1. Ordersheet'!L1289)","v":""},{"$f":"IF('1. Ordersheet'!M1289=\"\",\"\",'1. Ordersheet'!M1289)","v":""},{"$f":"IF('1. Ordersheet'!N1289=\"\",\"\",'1. Ordersheet'!N1289)","v":""},{"$f":"IF('1. Ordersheet'!O1289=\"\",\"\",'1. Ordersheet'!O1289)","v":{"$error":"#N/A"}},{"$f":"IF('1. Ordersheet'!P1289=\"\",\"\",'1. Ordersheet'!P1289)","v":{"$error":"#N/A"}},{"$f":"IF('1. Ordersheet'!Q1289=\"\",\"\",'1. Ordersheet'!Q1289)","v":""},{"$f":"IF('1. Ordersheet'!R1289=\"\",\"\",'1. Ordersheet'!R1289)","v":""},{"$f":"IF('1. Ordersheet'!S1289=\"\",\"\",'1. Ordersheet'!S1289)","v":""},{"$f":"IF('1. Ordersheet'!V1289=\"\",\"\",'1. Ordersheet'!V1289)","v":""},{"$f":"IF('1. Ordersheet'!W1289=\"\",\"\",'1. Ordersheet'!W1289)","v":""},{"$f":"IF('1. Ordersheet'!X1289=\"\",\"\",'1. Ordersheet'!X1289)","v":""},{"$f":"IF('1. Ordersheet'!Y1289=\"\",\"\",'1. Ordersheet'!Y1289)","v":""},{"$f":"IF('1. Ordersheet'!Z1289=\"\",\"\",'1. Ordersheet'!Z1289)","v":""},{"$f":"IF('1. Ordersheet'!AA1289=\"\",\"\",'1. Ordersheet'!AA1289)","v":""},null,{"$f":"IF('1. Ordersheet'!AS1289=\"\",\"\",'1. Ordersheet'!AS1289)","v":""},{"$f":"IF('1. Ordersheet'!AT1289=\"\",\"\",'1. Ordersheet'!AT1289)","v":""},null,null,null,null,null,null,null,{"$f":"IF('1. Ordersheet'!AX1289=\"\",\"\",'1. Ordersheet'!AX1289)","v":""},{"$f":"IF('1. Ordersheet'!AY1289=\"\",\"\",'1. Ordersheet'!AY1289)","v":""},{"$f":"IF('1. Ordersheet'!AZ1289=\"\",\"\",'1. Ordersheet'!AZ1289)","v":""},{"$f":"IF('1. Ordersheet'!BA1289=\"\",\"\",'1. Ordersheet'!BA1289)","v":""},{"$f":"IF('1. Ordersheet'!BC1289=\"\",\"\",'1. Ordersheet'!BC1289)","v":""},{"$f":"IF('1. Ordersheet'!BD1289=\"\",\"\",'1. Ordersheet'!BD1289)","v":""},{"$f":"IF('1. Ordersheet'!BE1289=\"\",\"\",'1. Ordersheet'!BE1289)","v":""},{"$f":"IF('1. Ordersheet'!BF1289=\"\",\"\",'1. Ordersheet'!BF1289)","v":""},{"$f":"IF('1. Ordersheet'!BG1289=\"\",\"\",'1. Ordersheet'!BG1289)","v":"ZWO"},{"$f":"IF('1. Ordersheet'!BH1289=\"\",\"\",'1. Ordersheet'!BH1289)","v":""},{"$f":"IF('1. Ordersheet'!BI1289=\"\",\"\",'1. Ordersheet'!BI1289)","v":""},{"$f":"IF('1. Ordersheet'!BJ1289=\"\",\"\",'1. Ordersheet'!BJ1289)","v":""},{"$f":"IF('1. Ordersheet'!BK1289=\"\",\"\",'1. Ordersheet'!BK1289)","v":""},{"$f":"IF('1. Ordersheet'!BL1289=\"\",\"\",'1. Ordersheet'!BL1289)","v":""}]
[{"$f":"IF('1. Ordersheet'!F1290=\"\",\"\",'1. Ordersheet'!F1290)","v":""},{"$f":"IF('1. Ordersheet'!G1290=\"\",\"\",'1. Ordersheet'!G1290)","v":""},{"$f":"IF('1. Ordersheet'!H1290=\"\",\"\",'1. Ordersheet'!H1290)","v":""},{"$f":"IF('1. Ordersheet'!I1290=\"\",\"\",'1. Ordersheet'!I1290)","v":""},{"$f":"IF('1. Ordersheet'!J1290=\"\",\"\",'1. Ordersheet'!J1290)","v":""},{"$f":"IF('1. Ordersheet'!K1290=\"\",\"\",'1. Ordersheet'!K1290)","v":""},{"$f":"IF('1. Ordersheet'!L1290=\"\",\"\",'1. Ordersheet'!L1290)","v":""},{"$f":"IF('1. Ordersheet'!M1290=\"\",\"\",'1. Ordersheet'!M1290)","v":""},{"$f":"IF('1. Ordersheet'!N1290=\"\",\"\",'1. Ordersheet'!N1290)","v":""},{"$f":"IF('1. Ordersheet'!O1290=\"\",\"\",'1. Ordersheet'!O1290)","v":{"$error":"#N/A"}},{"$f":"IF('1. Ordersheet'!P1290=\"\",\"\",'1. Ordersheet'!P1290)","v":{"$error":"#N/A"}},{"$f":"IF('1. Ordersheet'!Q1290=\"\",\"\",'1. Ordersheet'!Q1290)","v":""},{"$f":"IF('1. Ordersheet'!R1290=\"\",\"\",'1. Ordersheet'!R1290)","v":""},{"$f":"IF('1. Ordersheet'!S1290=\"\",\"\",'1. Ordersheet'!S1290)","v":""},{"$f":"IF('1. Ordersheet'!V1290=\"\",\"\",'1. Ordersheet'!V1290)","v":""},{"$f":"IF('1. Ordersheet'!W1290=\"\",\"\",'1. Ordersheet'!W1290)","v":""},{"$f":"IF('1. Ordersheet'!X1290=\"\",\"\",'1. Ordersheet'!X1290)","v":""},{"$f":"IF('1. Ordersheet'!Y1290=\"\",\"\",'1. Ordersheet'!Y1290)","v":""},{"$f":"IF('1. Ordersheet'!Z1290=\"\",\"\",'1. Ordersheet'!Z1290)","v":""},{"$f":"IF('1. Ordersheet'!AA1290=\"\",\"\",'1. Ordersheet'!AA1290)","v":""},null,{"$f":"IF('1. Ordersheet'!AS1290=\"\",\"\",'1. Ordersheet'!AS1290)","v":""},{"$f":"IF('1. Ordersheet'!AT1290=\"\",\"\",'1. Ordersheet'!AT1290)","v":""},null,null,null,null,null,null,null,{"$f":"IF('1. Ordersheet'!AX1290=\"\",\"\",'1. Ordersheet'!AX1290)","v":""},{"$f":"IF('1. Ordersheet'!AY1290=\"\",\"\",'1. Ordersheet'!AY1290)","v":""},{"$f":"IF('1. Ordersheet'!AZ1290=\"\",\"\",'1. Ordersheet'!AZ1290)","v":""},{"$f":"IF('1. Ordersheet'!BA1290=\"\",\"\",'1. Ordersheet'!BA1290)","v":""},{"$f":"IF('1. Ordersheet'!BC1290=\"\",\"\",'1. Ordersheet'!BC1290)","v":""},{"$f":"IF('1. Ordersheet'!BD1290=\"\",\"\",'1. Ordersheet'!BD1290)","v":""},{"$f":"IF('1. Ordersheet'!BE1290=\"\",\"\",'1. Ordersheet'!BE1290)","v":""},{"$f":"IF('1. Ordersheet'!BF1290=\"\",\"\",'1. Ordersheet'!BF1290)","v":""},{"$f":"IF('1. Ordersheet'!BG1290=\"\",\"\",'1. Ordersheet'!BG1290)","v":"ZWO"},{"$f":"IF('1. Ordersheet'!BH1290=\"\",\"\",'1. Ordersheet'!BH1290)","v":""},{"$f":"IF('1. Ordersheet'!BI1290=\"\",\"\",'1. Ordersheet'!BI1290)","v":""},{"$f":"IF('1. Ordersheet'!BJ1290=\"\",\"\",'1. Ordersheet'!BJ1290)","v":""},{"$f":"IF('1. Ordersheet'!BK1290=\"\",\"\",'1. Ordersheet'!BK1290)","v":""},{"$f":"IF('1. Ordersheet'!BL1290=\"\",\"\",'1. Ordersheet'!BL1290)","v":""}]
[{"$f":"IF('1. Ordersheet'!F1291=\"\",\"\",'1. Ordersheet'!F1291)","v":""},{"$f":"IF('1. Ordersheet'!G1291=\"\",\"\",'1. Ordersheet'!G1291)","v":""},{"$f":"IF('1. Ordersheet'!H1291=\"\",\"\",'1. Ordersheet'!H1291)","v":""},{"$f":"IF('1. Ordersheet'!I1291=\"\",\"\",'1. Ordersheet'!I1291)","v":""},{"$f":"IF('1. Ordersheet'!J1291=\"\",\"\",'1. Ordersheet'!J1291)","v":""},{"$f":"IF('1. Ordersheet'!K1291=\"\",\"\",'1. Ordersheet'!K1291)","v":""},{"$f":"IF('1. Ordersheet'!L1291=\"\",\"\",'1. Ordersheet'!L1291)","v":""},{"$f":"IF('1. Ordersheet'!M1291=\"\",\"\",'1. Ordersheet'!M1291)","v":""},{"$f":"IF('1. Ordersheet'!N1291=\"\",\"\",'1. Ordersheet'!N1291)","v":""},{"$f":"IF('1. Ordersheet'!O1291=\"\",\"\",'1. Ordersheet'!O1291)","v":{"$error":"#N/A"}},{"$f":"IF('1. Ordersheet'!P1291=\"\",\"\",'1. Ordersheet'!P1291)","v":{"$error":"#N/A"}},{"$f":"IF('1. Ordersheet'!Q1291=\"\",\"\",'1. Ordersheet'!Q1291)","v":""},{"$f":"IF('1. Ordersheet'!R1291=\"\",\"\",'1. Ordersheet'!R1291)","v":""},{"$f":"IF('1. Ordersheet'!S1291=\"\",\"\",'1. Ordersheet'!S1291)","v":""},{"$f":"IF('1. Ordersheet'!V1291=\"\",\"\",'1. Ordersheet'!V1291)","v":""},{"$f":"IF('1. Ordersheet'!W1291=\"\",\"\",'1. Ordersheet'!W1291)","v":""},{"$f":"IF('1. Ordersheet'!X1291=\"\",\"\",'1. Ordersheet'!X1291)","v":""},{"$f":"IF('1. Ordersheet'!Y1291=\"\",\"\",'1. Ordersheet'!Y1291)","v":""},{"$f":"IF('1. Ordersheet'!Z1291=\"\",\"\",'1. Ordersheet'!Z1291)","v":""},{"$f":"IF('1. Ordersheet'!AA1291=\"\",\"\",'1. Ordersheet'!AA1291)","v":""},null,{"$f":"IF('1. Ordersheet'!AS1291=\"\",\"\",'1. Ordersheet'!AS1291)","v":""},{"$f":"IF('1. Ordersheet'!AT1291=\"\",\"\",'1. Ordersheet'!AT1291)","v":""},null,null,null,null,null,null,null,{"$f":"IF('1. Ordersheet'!AX1291=\"\",\"\",'1. Ordersheet'!AX1291)","v":""},{"$f":"IF('1. Ordersheet'!AY1291=\"\",\"\",'1. Ordersheet'!AY1291)","v":""},{"$f":"IF('1. Ordersheet'!AZ1291=\"\",\"\",'1. Ordersheet'!AZ1291)","v":""},{"$f":"IF('1. Ordersheet'!BA1291=\"\",\"\",'1. Ordersheet'!BA1291)","v":""},{"$f":"IF('1. Ordersheet'!BC1291=\"\",\"\",'1. Ordersheet'!BC1291)","v":""},{"$f":"IF('1. Ordersheet'!BD1291=\"\",\"\",'1. Ordersheet'!BD1291)","v":""},{"$f":"IF('1. Ordersheet'!BE1291=\"\",\"\",'1. Ordersheet'!BE1291)","v":""},{"$f":"IF('1. Ordersheet'!BF1291=\"\",\"\",'1. Ordersheet'!BF1291)","v":""},{"$f":"IF('1. Ordersheet'!BG1291=\"\",\"\",'1. Ordersheet'!BG1291)","v":"ZWO"},{"$f":"IF('1. Ordersheet'!BH1291=\"\",\"\",'1. Ordersheet'!BH1291)","v":""},{"$f":"IF('1. Ordersheet'!BI1291=\"\",\"\",'1. Ordersheet'!BI1291)","v":""},{"$f":"IF('1. Ordersheet'!BJ1291=\"\",\"\",'1. Ordersheet'!BJ1291)","v":""},{"$f":"IF('1. Ordersheet'!BK1291=\"\",\"\",'1. Ordersheet'!BK1291)","v":""},{"$f":"IF('1. Ordersheet'!BL1291=\"\",\"\",'1. Ordersheet'!BL1291)","v":""}]
[{"$f":"IF('1. Ordersheet'!F1292=\"\",\"\",'1. Ordersheet'!F1292)","v":""},{"$f":"IF('1. Ordersheet'!G1292=\"\",\"\",'1. Ordersheet'!G1292)","v":""},{"$f":"IF('1. Ordersheet'!H1292=\"\",\"\",'1. Ordersheet'!H1292)","v":""},{"$f":"IF('1. Ordersheet'!I1292=\"\",\"\",'1. Ordersheet'!I1292)","v":""},{"$f":"IF('1. Ordersheet'!J1292=\"\",\"\",'1. Ordersheet'!J1292)","v":""},{"$f":"IF('1. Ordersheet'!K1292=\"\",\"\",'1. Ordersheet'!K1292)","v":""},{"$f":"IF('1. Ordersheet'!L1292=\"\",\"\",'1. Ordersheet'!L1292)","v":""},{"$f":"IF('1. Ordersheet'!M1292=\"\",\"\",'1. Ordersheet'!M1292)","v":""},{"$f":"IF('1. Ordersheet'!N1292=\"\",\"\",'1. Ordersheet'!N1292)","v":""},{"$f":"IF('1. Ordersheet'!O1292=\"\",\"\",'1. Ordersheet'!O1292)","v":{"$error":"#N/A"}},{"$f":"IF('1. Ordersheet'!P1292=\"\",\"\",'1. Ordersheet'!P1292)","v":{"$error":"#N/A"}},{"$f":"IF('1. Ordersheet'!Q1292=\"\",\"\",'1. Ordersheet'!Q1292)","v":""},{"$f":"IF('1. Ordersheet'!R1292=\"\",\"\",'1. Ordersheet'!R1292)","v":""},{"$f":"IF('1. Ordersheet'!S1292=\"\",\"\",'1. Ordersheet'!S1292)","v":""},{"$f":"IF('1. Ordersheet'!V1292=\"\",\"\",'1. Ordersheet'!V1292)","v":""},{"$f":"IF('1. Ordersheet'!W1292=\"\",\"\",'1. Ordersheet'!W1292)","v":""},{"$f":"IF('1. Ordersheet'!X1292=\"\",\"\",'1. Ordersheet'!X1292)","v":""},{"$f":"IF('1. Ordersheet'!Y1292=\"\",\"\",'1. Ordersheet'!Y1292)","v":""},{"$f":"IF('1. Ordersheet'!Z1292=\"\",\"\",'1. Ordersheet'!Z1292)","v":""},{"$f":"IF('1. Ordersheet'!AA1292=\"\",\"\",'1. Ordersheet'!AA1292)","v":""},null,{"$f":"IF('1. Ordersheet'!AS1292=\"\",\"\",'1. Ordersheet'!AS1292)","v":""},{"$f":"IF('1. Ordersheet'!AT1292=\"\",\"\",'1. Ordersheet'!AT1292)","v":""},null,null,null,null,null,null,null,{"$f":"IF('1. Ordersheet'!AX1292=\"\",\"\",'1. Ordersheet'!AX1292)","v":""},{"$f":"IF('1. Ordersheet'!AY1292=\"\",\"\",'1. Ordersheet'!AY1292)","v":""},{"$f":"IF('1. Ordersheet'!AZ1292=\"\",\"\",'1. Ordersheet'!AZ1292)","v":""},{"$f":"IF('1. Ordersheet'!BA1292=\"\",\"\",'1. Ordersheet'!BA1292)","v":""},{"$f":"IF('1. Ordersheet'!BC1292=\"\",\"\",'1. Ordersheet'!BC1292)","v":""},{"$f":"IF('1. Ordersheet'!BD1292=\"\",\"\",'1. Ordersheet'!BD1292)","v":""},{"$f":"IF('1. Ordersheet'!BE1292=\"\",\"\",'1. Ordersheet'!BE1292)","v":""},{"$f":"IF('1. Ordersheet'!BF1292=\"\",\"\",'1. Ordersheet'!BF1292)","v":""},{"$f":"IF('1. Ordersheet'!BG1292=\"\",\"\",'1. Ordersheet'!BG1292)","v":"ZWO"},{"$f":"IF('1. Ordersheet'!BH1292=\"\",\"\",'1. Ordersheet'!BH1292)","v":""},{"$f":"IF('1. Ordersheet'!BI1292=\"\",\"\",'1. Ordersheet'!BI1292)","v":""},{"$f":"IF('1. Ordersheet'!BJ1292=\"\",\"\",'1. Ordersheet'!BJ1292)","v":""},{"$f":"IF('1. Ordersheet'!BK1292=\"\",\"\",'1. Ordersheet'!BK1292)","v":""},{"$f":"IF('1. Ordersheet'!BL1292=\"\",\"\",'1. Ordersheet'!BL1292)","v":""}]
[{"$f":"IF('1. Ordersheet'!F1293=\"\",\"\",'1. Ordersheet'!F1293)","v":""},{"$f":"IF('1. Ordersheet'!G1293=\"\",\"\",'1. Ordersheet'!G1293)","v":""},{"$f":"IF('1. Ordersheet'!H1293=\"\",\"\",'1. Ordersheet'!H1293)","v":""},{"$f":"IF('1. Ordersheet'!I1293=\"\",\"\",'1. Ordersheet'!I1293)","v":""},{"$f":"IF('1. Ordersheet'!J1293=\"\",\"\",'1. Ordersheet'!J1293)","v":""},{"$f":"IF('1. Ordersheet'!K1293=\"\",\"\",'1. Ordersheet'!K1293)","v":""},{"$f":"IF('1. Ordersheet'!L1293=\"\",\"\",'1. Ordersheet'!L1293)","v":""},{"$f":"IF('1. Ordersheet'!M1293=\"\",\"\",'1. Ordersheet'!M1293)","v":""},{"$f":"IF('1. Ordersheet'!N1293=\"\",\"\",'1. Ordersheet'!N1293)","v":""},{"$f":"IF('1. Ordersheet'!O1293=\"\",\"\",'1. Ordersheet'!O1293)","v":{"$error":"#N/A"}},{"$f":"IF('1. Ordersheet'!P1293=\"\",\"\",'1. Ordersheet'!P1293)","v":{"$error":"#N/A"}},{"$f":"IF('1. Ordersheet'!Q1293=\"\",\"\",'1. Ordersheet'!Q1293)","v":""},{"$f":"IF('1. Ordersheet'!R1293=\"\",\"\",'1. Ordersheet'!R1293)","v":""},{"$f":"IF('1. Ordersheet'!S1293=\"\",\"\",'1. Ordersheet'!S1293)","v":""},{"$f":"IF('1. Ordersheet'!V1293=\"\",\"\",'1. Ordersheet'!V1293)","v":""},{"$f":"IF('1. Ordersheet'!W1293=\"\",\"\",'1. Ordersheet'!W1293)","v":""},{"$f":"IF('1. Ordersheet'!X1293=\"\",\"\",'1. Ordersheet'!X1293)","v":""},{"$f":"IF('1. Ordersheet'!Y1293=\"\",\"\",'1. Ordersheet'!Y1293)","v":""},{"$f":"IF('1. Ordersheet'!Z1293=\"\",\"\",'1. Ordersheet'!Z1293)","v":""},{"$f":"IF('1. Ordersheet'!AA1293=\"\",\"\",'1. Ordersheet'!AA1293)","v":""},null,{"$f":"IF('1. Ordersheet'!AS1293=\"\",\"\",'1. Ordersheet'!AS1293)","v":""},{"$f":"IF('1. Ordersheet'!AT1293=\"\",\"\",'1. Ordersheet'!AT1293)","v":""},null,null,null,null,null,null,null,{"$f":"IF('1. Ordersheet'!AX1293=\"\",\"\",'1. Ordersheet'!AX1293)","v":""},{"$f":"IF('1. Ordersheet'!AY1293=\"\",\"\",'1. Ordersheet'!AY1293)","v":""},{"$f":"IF('1. Ordersheet'!AZ1293=\"\",\"\",'1. Ordersheet'!AZ1293)","v":""},{"$f":"IF('1. Ordersheet'!BA1293=\"\",\"\",'1. Ordersheet'!BA1293)","v":""},{"$f":"IF('1. Ordersheet'!BC1293=\"\",\"\",'1. Ordersheet'!BC1293)","v":""},{"$f":"IF('1. Ordersheet'!BD1293=\"\",\"\",'1. Ordersheet'!BD1293)","v":""},{"$f":"IF('1. Ordersheet'!BE1293=\"\",\"\",'1. Ordersheet'!BE1293)","v":""},{"$f":"IF('1. Ordersheet'!BF1293=\"\",\"\",'1. Ordersheet'!BF1293)","v":""},{"$f":"IF('1. Ordersheet'!BG1293=\"\",\"\",'1. Ordersheet'!BG1293)","v":"ZWO"},{"$f":"IF('1. Ordersheet'!BH1293=\"\",\"\",'1. Ordersheet'!BH1293)","v":""},{"$f":"IF('1. Ordersheet'!BI1293=\"\",\"\",'1. Ordersheet'!BI1293)","v":""},{"$f":"IF('1. Ordersheet'!BJ1293=\"\",\"\",'1. Ordersheet'!BJ1293)","v":""},{"$f":"IF('1. Ordersheet'!BK1293=\"\",\"\",'1. Ordersheet'!BK1293)","v":""},{"$f":"IF('1. Ordersheet'!BL1293=\"\",\"\",'1. Ordersheet'!BL1293)","v":""}]
[{"$f":"IF('1. Ordersheet'!F1294=\"\",\"\",'1. Ordersheet'!F1294)","v":""},{"$f":"IF('1. Ordersheet'!G1294=\"\",\"\",'1. Ordersheet'!G1294)","v":""},{"$f":"IF('1. Ordersheet'!H1294=\"\",\"\",'1. Ordersheet'!H1294)","v":""},{"$f":"IF('1. Ordersheet'!I1294=\"\",\"\",'1. Ordersheet'!I1294)","v":""},{"$f":"IF('1. Ordersheet'!J1294=\"\",\"\",'1. Ordersheet'!J1294)","v":""},{"$f":"IF('1. Ordersheet'!K1294=\"\",\"\",'1. Ordersheet'!K1294)","v":""},{"$f":"IF('1. Ordersheet'!L1294=\"\",\"\",'1. Ordersheet'!L1294)","v":""},{"$f":"IF('1. Ordersheet'!M1294=\"\",\"\",'1. Ordersheet'!M1294)","v":""},{"$f":"IF('1. Ordersheet'!N1294=\"\",\"\",'1. Ordersheet'!N1294)","v":""},{"$f":"IF('1. Ordersheet'!O1294=\"\",\"\",'1. Ordersheet'!O1294)","v":{"$error":"#N/A"}},{"$f":"IF('1. Ordersheet'!P1294=\"\",\"\",'1. Ordersheet'!P1294)","v":{"$error":"#N/A"}},{"$f":"IF('1. Ordersheet'!Q1294=\"\",\"\",'1. Ordersheet'!Q1294)","v":""},{"$f":"IF('1. Ordersheet'!R1294=\"\",\"\",'1. Ordersheet'!R1294)","v":""},{"$f":"IF('1. Ordersheet'!S1294=\"\",\"\",'1. Ordersheet'!S1294)","v":""},{"$f":"IF('1. Ordersheet'!V1294=\"\",\"\",'1. Ordersheet'!V1294)","v":""},{"$f":"IF('1. Ordersheet'!W1294=\"\",\"\",'1. Ordersheet'!W1294)","v":""},{"$f":"IF('1. Ordersheet'!X1294=\"\",\"\",'1. Ordersheet'!X1294)","v":""},{"$f":"IF('1. Ordersheet'!Y1294=\"\",\"\",'1. Ordersheet'!Y1294)","v":""},{"$f":"IF('1. Ordersheet'!Z1294=\"\",\"\",'1. Ordersheet'!Z1294)","v":""},{"$f":"IF('1. Ordersheet'!AA1294=\"\",\"\",'1. Ordersheet'!AA1294)","v":""},null,{"$f":"IF('1. Ordersheet'!AS1294=\"\",\"\",'1. Ordersheet'!AS1294)","v":""},{"$f":"IF('1. Ordersheet'!AT1294=\"\",\"\",'1. Ordersheet'!AT1294)","v":""},null,null,null,null,null,null,null,{"$f":"IF('1. Ordersheet'!AX1294=\"\",\"\",'1. Ordersheet'!AX1294)","v":""},{"$f":"IF('1. Ordersheet'!AY1294=\"\",\"\",'1. Ordersheet'!AY1294)","v":""},{"$f":"IF('1. Ordersheet'!AZ1294=\"\",\"\",'1. Ordersheet'!AZ1294)","v":""},{"$f":"IF('1. Ordersheet'!BA1294=\"\",\"\",'1. Ordersheet'!BA1294)","v":""},{"$f":"IF('1. Ordersheet'!BC1294=\"\",\"\",'1. Ordersheet'!BC1294)","v":""},{"$f":"IF('1. Ordersheet'!BD1294=\"\",\"\",'1. Ordersheet'!BD1294)","v":""},{"$f":"IF('1. Ordersheet'!BE1294=\"\",\"\",'1. Ordersheet'!BE1294)","v":""},{"$f":"IF('1. Ordersheet'!BF1294=\"\",\"\",'1. Ordersheet'!BF1294)","v":""},{"$f":"IF('1. Ordersheet'!BG1294=\"\",\"\",'1. Ordersheet'!BG1294)","v":"ZWO"},{"$f":"IF('1. Ordersheet'!BH1294=\"\",\"\",'1. Ordersheet'!BH1294)","v":""},{"$f":"IF('1. Ordersheet'!BI1294=\"\",\"\",'1. Ordersheet'!BI1294)","v":""},{"$f":"IF('1. Ordersheet'!BJ1294=\"\",\"\",'1. Ordersheet'!BJ1294)","v":""},{"$f":"IF('1. Ordersheet'!BK1294=\"\",\"\",'1. Ordersheet'!BK1294)","v":""},{"$f":"IF('1. Ordersheet'!BL1294=\"\",\"\",'1. Ordersheet'!BL1294)","v":""}]
[{"$f":"IF('1. Ordersheet'!F1295=\"\",\"\",'1. Ordersheet'!F1295)","v":""},{"$f":"IF('1. Ordersheet'!G1295=\"\",\"\",'1. Ordersheet'!G1295)","v":""},{"$f":"IF('1. Ordersheet'!H1295=\"\",\"\",'1. Ordersheet'!H1295)","v":""},{"$f":"IF('1. Ordersheet'!I1295=\"\",\"\",'1. Ordersheet'!I1295)","v":""},{"$f":"IF('1. Ordersheet'!J1295=\"\",\"\",'1. Ordersheet'!J1295)","v":""},{"$f":"IF('1. Ordersheet'!K1295=\"\",\"\",'1. Ordersheet'!K1295)","v":""},{"$f":"IF('1. Ordersheet'!L1295=\"\",\"\",'1. Ordersheet'!L1295)","v":""},{"$f":"IF('1. Ordersheet'!M1295=\"\",\"\",'1. Ordersheet'!M1295)","v":""},{"$f":"IF('1. Ordersheet'!N1295=\"\",\"\",'1. Ordersheet'!N1295)","v":""},{"$f":"IF('1. Ordersheet'!O1295=\"\",\"\",'1. Ordersheet'!O1295)","v":{"$error":"#N/A"}},{"$f":"IF('1. Ordersheet'!P1295=\"\",\"\",'1. Ordersheet'!P1295)","v":{"$error":"#N/A"}},{"$f":"IF('1. Ordersheet'!Q1295=\"\",\"\",'1. Ordersheet'!Q1295)","v":""},{"$f":"IF('1. Ordersheet'!R1295=\"\",\"\",'1. Ordersheet'!R1295)","v":""},{"$f":"IF('1. Ordersheet'!S1295=\"\",\"\",'1. Ordersheet'!S1295)","v":""},{"$f":"IF('1. Ordersheet'!V1295=\"\",\"\",'1. Ordersheet'!V1295)","v":""},{"$f":"IF('1. Ordersheet'!W1295=\"\",\"\",'1. Ordersheet'!W1295)","v":""},{"$f":"IF('1. Ordersheet'!X1295=\"\",\"\",'1. Ordersheet'!X1295)","v":""},{"$f":"IF('1. Ordersheet'!Y1295=\"\",\"\",'1. Ordersheet'!Y1295)","v":""},{"$f":"IF('1. Ordersheet'!Z1295=\"\",\"\",'1. Ordersheet'!Z1295)","v":""},{"$f":"IF('1. Ordersheet'!AA1295=\"\",\"\",'1. Ordersheet'!AA1295)","v":""},null,{"$f":"IF('1. Ordersheet'!AS1295=\"\",\"\",'1. Ordersheet'!AS1295)","v":""},{"$f":"IF('1. Ordersheet'!AT1295=\"\",\"\",'1. Ordersheet'!AT1295)","v":""},null,null,null,null,null,null,null,{"$f":"IF('1. Ordersheet'!AX1295=\"\",\"\",'1. Ordersheet'!AX1295)","v":""},{"$f":"IF('1. Ordersheet'!AY1295=\"\",\"\",'1. Ordersheet'!AY1295)","v":""},{"$f":"IF('1. Ordersheet'!AZ1295=\"\",\"\",'1. Ordersheet'!AZ1295)","v":""},{"$f":"IF('1. Ordersheet'!BA1295=\"\",\"\",'1. Ordersheet'!BA1295)","v":""},{"$f":"IF('1. Ordersheet'!BC1295=\"\",\"\",'1. Ordersheet'!BC1295)","v":""},{"$f":"IF('1. Ordersheet'!BD1295=\"\",\"\",'1. Ordersheet'!BD1295)","v":""},{"$f":"IF('1. Ordersheet'!BE1295=\"\",\"\",'1. Ordersheet'!BE1295)","v":""},{"$f":"IF('1. Ordersheet'!BF1295=\"\",\"\",'1. Ordersheet'!BF1295)","v":""},{"$f":"IF('1. Ordersheet'!BG1295=\"\",\"\",'1. Ordersheet'!BG1295)","v":"ZWO"},{"$f":"IF('1. Ordersheet'!BH1295=\"\",\"\",'1. Ordersheet'!BH1295)","v":""},{"$f":"IF('1. Ordersheet'!BI1295=\"\",\"\",'1. Ordersheet'!BI1295)","v":""},{"$f":"IF('1. Ordersheet'!BJ1295=\"\",\"\",'1. Ordersheet'!BJ1295)","v":""},{"$f":"IF('1. Ordersheet'!BK1295=\"\",\"\",'1. Ordersheet'!BK1295)","v":""},{"$f":"IF('1. Ordersheet'!BL1295=\"\",\"\",'1. Ordersheet'!BL1295)","v":""}]
[{"$f":"IF('1. Ordersheet'!F1296=\"\",\"\",'1. Ordersheet'!F1296)","v":""},{"$f":"IF('1. Ordersheet'!G1296=\"\",\"\",'1. Ordersheet'!G1296)","v":""},{"$f":"IF('1. Ordersheet'!H1296=\"\",\"\",'1. Ordersheet'!H1296)","v":""},{"$f":"IF('1. Ordersheet'!I1296=\"\",\"\",'1. Ordersheet'!I1296)","v":""},{"$f":"IF('1. Ordersheet'!J1296=\"\",\"\",'1. Ordersheet'!J1296)","v":""},{"$f":"IF('1. Ordersheet'!K1296=\"\",\"\",'1. Ordersheet'!K1296)","v":""},{"$f":"IF('1. Ordersheet'!L1296=\"\",\"\",'1. Ordersheet'!L1296)","v":""},{"$f":"IF('1. Ordersheet'!M1296=\"\",\"\",'1. Ordersheet'!M1296)","v":""},{"$f":"IF('1. Ordersheet'!N1296=\"\",\"\",'1. Ordersheet'!N1296)","v":""},{"$f":"IF('1. Ordersheet'!O1296=\"\",\"\",'1. Ordersheet'!O1296)","v":{"$error":"#N/A"}},{"$f":"IF('1. Ordersheet'!P1296=\"\",\"\",'1. Ordersheet'!P1296)","v":{"$error":"#N/A"}},{"$f":"IF('1. Ordersheet'!Q1296=\"\",\"\",'1. Ordersheet'!Q1296)","v":""},{"$f":"IF('1. Ordersheet'!R1296=\"\",\"\",'1. Ordersheet'!R1296)","v":""},{"$f":"IF('1. Ordersheet'!S1296=\"\",\"\",'1. Ordersheet'!S1296)","v":""},{"$f":"IF('1. Ordersheet'!V1296=\"\",\"\",'1. Ordersheet'!V1296)","v":""},{"$f":"IF('1. Ordersheet'!W1296=\"\",\"\",'1. Ordersheet'!W1296)","v":""},{"$f":"IF('1. Ordersheet'!X1296=\"\",\"\",'1. Ordersheet'!X1296)","v":""},{"$f":"IF('1. Ordersheet'!Y1296=\"\",\"\",'1. Ordersheet'!Y1296)","v":""},{"$f":"IF('1. Ordersheet'!Z1296=\"\",\"\",'1. Ordersheet'!Z1296)","v":""},{"$f":"IF('1. Ordersheet'!AA1296=\"\",\"\",'1. Ordersheet'!AA1296)","v":""},null,{"$f":"IF('1. Ordersheet'!AS1296=\"\",\"\",'1. Ordersheet'!AS1296)","v":""},{"$f":"IF('1. Ordersheet'!AT1296=\"\",\"\",'1. Ordersheet'!AT1296)","v":""},null,null,null,null,null,null,null,{"$f":"IF('1. Ordersheet'!AX1296=\"\",\"\",'1. Ordersheet'!AX1296)","v":""},{"$f":"IF('1. Ordersheet'!AY1296=\"\",\"\",'1. Ordersheet'!AY1296)","v":""},{"$f":"IF('1. Ordersheet'!AZ1296=\"\",\"\",'1. Ordersheet'!AZ1296)","v":""},{"$f":"IF('1. Ordersheet'!BA1296=\"\",\"\",'1. Ordersheet'!BA1296)","v":""},{"$f":"IF('1. Ordersheet'!BC1296=\"\",\"\",'1. Ordersheet'!BC1296)","v":""},{"$f":"IF('1. Ordersheet'!BD1296=\"\",\"\",'1. Ordersheet'!BD1296)","v":""},{"$f":"IF('1. Ordersheet'!BE1296=\"\",\"\",'1. Ordersheet'!BE1296)","v":""},{"$f":"IF('1. Ordersheet'!BF1296=\"\",\"\",'1. Ordersheet'!BF1296)","v":""},{"$f":"IF('1. Ordersheet'!BG1296=\"\",\"\",'1. Ordersheet'!BG1296)","v":"ZWO"},{"$f":"IF('1. Ordersheet'!BH1296=\"\",\"\",'1. Ordersheet'!BH1296)","v":""},{"$f":"IF('1. Ordersheet'!BI1296=\"\",\"\",'1. Ordersheet'!BI1296)","v":""},{"$f":"IF('1. Ordersheet'!BJ1296=\"\",\"\",'1. Ordersheet'!BJ1296)","v":""},{"$f":"IF('1. Ordersheet'!BK1296=\"\",\"\",'1. Ordersheet'!BK1296)","v":""},{"$f":"IF('1. Ordersheet'!BL1296=\"\",\"\",'1. Ordersheet'!BL1296)","v":""}]
[{"$f":"IF('1. Ordersheet'!F1297=\"\",\"\",'1. Ordersheet'!F1297)","v":""},{"$f":"IF('1. Ordersheet'!G1297=\"\",\"\",'1. Ordersheet'!G1297)","v":""},{"$f":"IF('1. Ordersheet'!H1297=\"\",\"\",'1. Ordersheet'!H1297)","v":""},{"$f":"IF('1. Ordersheet'!I1297=\"\",\"\",'1. Ordersheet'!I1297)","v":""},{"$f":"IF('1. Ordersheet'!J1297=\"\",\"\",'1. Ordersheet'!J1297)","v":""},{"$f":"IF('1. Ordersheet'!K1297=\"\",\"\",'1. Ordersheet'!K1297)","v":""},{"$f":"IF('1. Ordersheet'!L1297=\"\",\"\",'1. Ordersheet'!L1297)","v":""},{"$f":"IF('1. Ordersheet'!M1297=\"\",\"\",'1. Ordersheet'!M1297)","v":""},{"$f":"IF('1. Ordersheet'!N1297=\"\",\"\",'1. Ordersheet'!N1297)","v":""},{"$f":"IF('1. Ordersheet'!O1297=\"\",\"\",'1. Ordersheet'!O1297)","v":{"$error":"#N/A"}},{"$f":"IF('1. Ordersheet'!P1297=\"\",\"\",'1. Ordersheet'!P1297)","v":{"$error":"#N/A"}},{"$f":"IF('1. Ordersheet'!Q1297=\"\",\"\",'1. Ordersheet'!Q1297)","v":""},{"$f":"IF('1. Ordersheet'!R1297=\"\",\"\",'1. Ordersheet'!R1297)","v":""},{"$f":"IF('1. Ordersheet'!S1297=\"\",\"\",'1. Ordersheet'!S1297)","v":""},{"$f":"IF('1. Ordersheet'!V1297=\"\",\"\",'1. Ordersheet'!V1297)","v":""},{"$f":"IF('1. Ordersheet'!W1297=\"\",\"\",'1. Ordersheet'!W1297)","v":""},{"$f":"IF('1. Ordersheet'!X1297=\"\",\"\",'1. Ordersheet'!X1297)","v":""},{"$f":"IF('1. Ordersheet'!Y1297=\"\",\"\",'1. Ordersheet'!Y1297)","v":""},{"$f":"IF('1. Ordersheet'!Z1297=\"\",\"\",'1. Ordersheet'!Z1297)","v":""},{"$f":"IF('1. Ordersheet'!AA1297=\"\",\"\",'1. Ordersheet'!AA1297)","v":""},null,{"$f":"IF('1. Ordersheet'!AS1297=\"\",\"\",'1. Ordersheet'!AS1297)","v":""},{"$f":"IF('1. Ordersheet'!AT1297=\"\",\"\",'1. Ordersheet'!AT1297)","v":""},null,null,null,null,null,null,null,{"$f":"IF('1. Ordersheet'!AX1297=\"\",\"\",'1. Ordersheet'!AX1297)","v":""},{"$f":"IF('1. Ordersheet'!AY1297=\"\",\"\",'1. Ordersheet'!AY1297)","v":""},{"$f":"IF('1. Ordersheet'!AZ1297=\"\",\"\",'1. Ordersheet'!AZ1297)","v":""},{"$f":"IF('1. Ordersheet'!BA1297=\"\",\"\",'1. Ordersheet'!BA1297)","v":""},{"$f":"IF('1. Ordersheet'!BC1297=\"\",\"\",'1. Ordersheet'!BC1297)","v":""},{"$f":"IF('1. Ordersheet'!BD1297=\"\",\"\",'1. Ordersheet'!BD1297)","v":""},{"$f":"IF('1. Ordersheet'!BE1297=\"\",\"\",'1. Ordersheet'!BE1297)","v":""},{"$f":"IF('1. Ordersheet'!BF1297=\"\",\"\",'1. Ordersheet'!BF1297)","v":""},{"$f":"IF('1. Ordersheet'!BG1297=\"\",\"\",'1. Ordersheet'!BG1297)","v":"ZWO"},{"$f":"IF('1. Ordersheet'!BH1297=\"\",\"\",'1. Ordersheet'!BH1297)","v":""},{"$f":"IF('1. Ordersheet'!BI1297=\"\",\"\",'1. Ordersheet'!BI1297)","v":""},{"$f":"IF('1. Ordersheet'!BJ1297=\"\",\"\",'1. Ordersheet'!BJ1297)","v":""},{"$f":"IF('1. Ordersheet'!BK1297=\"\",\"\",'1. Ordersheet'!BK1297)","v":""},{"$f":"IF('1. Ordersheet'!BL1297=\"\",\"\",'1. Ordersheet'!BL1297)","v":""}]
[{"$f":"IF('1. Ordersheet'!F1298=\"\",\"\",'1. Ordersheet'!F1298)","v":""},{"$f":"IF('1. Ordersheet'!G1298=\"\",\"\",'1. Ordersheet'!G1298)","v":""},{"$f":"IF('1. Ordersheet'!H1298=\"\",\"\",'1. Ordersheet'!H1298)","v":""},{"$f":"IF('1. Ordersheet'!I1298=\"\",\"\",'1. Ordersheet'!I1298)","v":""},{"$f":"IF('1. Ordersheet'!J1298=\"\",\"\",'1. Ordersheet'!J1298)","v":""},{"$f":"IF('1. Ordersheet'!K1298=\"\",\"\",'1. Ordersheet'!K1298)","v":""},{"$f":"IF('1. Ordersheet'!L1298=\"\",\"\",'1. Ordersheet'!L1298)","v":""},{"$f":"IF('1. Ordersheet'!M1298=\"\",\"\",'1. Ordersheet'!M1298)","v":""},{"$f":"IF('1. Ordersheet'!N1298=\"\",\"\",'1. Ordersheet'!N1298)","v":""},{"$f":"IF('1. Ordersheet'!O1298=\"\",\"\",'1. Ordersheet'!O1298)","v":{"$error":"#N/A"}},{"$f":"IF('1. Ordersheet'!P1298=\"\",\"\",'1. Ordersheet'!P1298)","v":{"$error":"#N/A"}},{"$f":"IF('1. Ordersheet'!Q1298=\"\",\"\",'1. Ordersheet'!Q1298)","v":""},{"$f":"IF('1. Ordersheet'!R1298=\"\",\"\",'1. Ordersheet'!R1298)","v":""},{"$f":"IF('1. Ordersheet'!S1298=\"\",\"\",'1. Ordersheet'!S1298)","v":""},{"$f":"IF('1. Ordersheet'!V1298=\"\",\"\",'1. Ordersheet'!V1298)","v":""},{"$f":"IF('1. Ordersheet'!W1298=\"\",\"\",'1. Ordersheet'!W1298)","v":""},{"$f":"IF('1. Ordersheet'!X1298=\"\",\"\",'1. Ordersheet'!X1298)","v":""},{"$f":"IF('1. Ordersheet'!Y1298=\"\",\"\",'1. Ordersheet'!Y1298)","v":""},{"$f":"IF('1. Ordersheet'!Z1298=\"\",\"\",'1. Ordersheet'!Z1298)","v":""},{"$f":"IF('1. Ordersheet'!AA1298=\"\",\"\",'1. Ordersheet'!AA1298)","v":""},null,{"$f":"IF('1. Ordersheet'!AS1298=\"\",\"\",'1. Ordersheet'!AS1298)","v":""},{"$f":"IF('1. Ordersheet'!AT1298=\"\",\"\",'1. Ordersheet'!AT1298)","v":""},null,null,null,null,null,null,null,{"$f":"IF('1. Ordersheet'!AX1298=\"\",\"\",'1. Ordersheet'!AX1298)","v":""},{"$f":"IF('1. Ordersheet'!AY1298=\"\",\"\",'1. Ordersheet'!AY1298)","v":""},{"$f":"IF('1. Ordersheet'!AZ1298=\"\",\"\",'1. Ordersheet'!AZ1298)","v":""},{"$f":"IF('1. Ordersheet'!BA1298=\"\",\"\",'1. Ordersheet'!BA1298)","v":""},{"$f":"IF('1. Ordersheet'!BC1298=\"\",\"\",'1. Ordersheet'!BC1298)","v":""},{"$f":"IF('1. Ordersheet'!BD1298=\"\",\"\",'1. Ordersheet'!BD1298)","v":""},{"$f":"IF('1. Ordersheet'!BE1298=\"\",\"\",'1. Ordersheet'!BE1298)","v":""},{"$f":"IF('1. Ordersheet'!BF1298=\"\",\"\",'1. Ordersheet'!BF1298)","v":""},{"$f":"IF('1. Ordersheet'!BG1298=\"\",\"\",'1. Ordersheet'!BG1298)","v":"ZWO"},{"$f":"IF('1. Ordersheet'!BH1298=\"\",\"\",'1. Ordersheet'!BH1298)","v":""},{"$f":"IF('1. Ordersheet'!BI1298=\"\",\"\",'1. Ordersheet'!BI1298)","v":""},{"$f":"IF('1. Ordersheet'!BJ1298=\"\",\"\",'1. Ordersheet'!BJ1298)","v":""},{"$f":"IF('1. Ordersheet'!BK1298=\"\",\"\",'1. Ordersheet'!BK1298)","v":""},{"$f":"IF('1. Ordersheet'!BL1298=\"\",\"\",'1. Ordersheet'!BL1298)","v":""}]
[{"$f":"IF('1. Ordersheet'!F1299=\"\",\"\",'1. Ordersheet'!F1299)","v":""},{"$f":"IF('1. Ordersheet'!G1299=\"\",\"\",'1. Ordersheet'!G1299)","v":""},{"$f":"IF('1. Ordersheet'!H1299=\"\",\"\",'1. Ordersheet'!H1299)","v":""},{"$f":"IF('1. Ordersheet'!I1299=\"\",\"\",'1. Ordersheet'!I1299)","v":""},{"$f":"IF('1. Ordersheet'!J1299=\"\",\"\",'1. Ordersheet'!J1299)","v":""},{"$f":"IF('1. Ordersheet'!K1299=\"\",\"\",'1. Ordersheet'!K1299)","v":""},{"$f":"IF('1. Ordersheet'!L1299=\"\",\"\",'1. Ordersheet'!L1299)","v":""},{"$f":"IF('1. Ordersheet'!M1299=\"\",\"\",'1. Ordersheet'!M1299)","v":""},{"$f":"IF('1. Ordersheet'!N1299=\"\",\"\",'1. Ordersheet'!N1299)","v":""},{"$f":"IF('1. Ordersheet'!O1299=\"\",\"\",'1. Ordersheet'!O1299)","v":{"$error":"#N/A"}},{"$f":"IF('1. Ordersheet'!P1299=\"\",\"\",'1. Ordersheet'!P1299)","v":{"$error":"#N/A"}},{"$f":"IF('1. Ordersheet'!Q1299=\"\",\"\",'1. Ordersheet'!Q1299)","v":""},{"$f":"IF('1. Ordersheet'!R1299=\"\",\"\",'1. Ordersheet'!R1299)","v":""},{"$f":"IF('1. Ordersheet'!S1299=\"\",\"\",'1. Ordersheet'!S1299)","v":""},{"$f":"IF('1. Ordersheet'!V1299=\"\",\"\",'1. Ordersheet'!V1299)","v":""},{"$f":"IF('1. Ordersheet'!W1299=\"\",\"\",'1. Ordersheet'!W1299)","v":""},{"$f":"IF('1. Ordersheet'!X1299=\"\",\"\",'1. Ordersheet'!X1299)","v":""},{"$f":"IF('1. Ordersheet'!Y1299=\"\",\"\",'1. Ordersheet'!Y1299)","v":""},{"$f":"IF('1. Ordersheet'!Z1299=\"\",\"\",'1. Ordersheet'!Z1299)","v":""},{"$f":"IF('1. Ordersheet'!AA1299=\"\",\"\",'1. Ordersheet'!AA1299)","v":""},null,{"$f":"IF('1. Ordersheet'!AS1299=\"\",\"\",'1. Ordersheet'!AS1299)","v":""},{"$f":"IF('1. Ordersheet'!AT1299=\"\",\"\",'1. Ordersheet'!AT1299)","v":""},null,null,null,null,null,null,null,{"$f":"IF('1. Ordersheet'!AX1299=\"\",\"\",'1. Ordersheet'!AX1299)","v":""},{"$f":"IF('1. Ordersheet'!AY1299=\"\",\"\",'1. Ordersheet'!AY1299)","v":""},{"$f":"IF('1. Ordersheet'!AZ1299=\"\",\"\",'1. Ordersheet'!AZ1299)","v":""},{"$f":"IF('1. Ordersheet'!BA1299=\"\",\"\",'1. Ordersheet'!BA1299)","v":""},{"$f":"IF('1. Ordersheet'!BC1299=\"\",\"\",'1. Ordersheet'!BC1299)","v":""},{"$f":"IF('1. Ordersheet'!BD1299=\"\",\"\",'1. Ordersheet'!BD1299)","v":""},{"$f":"IF('1. Ordersheet'!BE1299=\"\",\"\",'1. Ordersheet'!BE1299)","v":""},{"$f":"IF('1. Ordersheet'!BF1299=\"\",\"\",'1. Ordersheet'!BF1299)","v":""},{"$f":"IF('1. Ordersheet'!BG1299=\"\",\"\",'1. Ordersheet'!BG1299)","v":"ZWO"},{"$f":"IF('1. Ordersheet'!BH1299=\"\",\"\",'1. Ordersheet'!BH1299)","v":""},{"$f":"IF('1. Ordersheet'!BI1299=\"\",\"\",'1. Ordersheet'!BI1299)","v":""},{"$f":"IF('1. Ordersheet'!BJ1299=\"\",\"\",'1. Ordersheet'!BJ1299)","v":""},{"$f":"IF('1. Ordersheet'!BK1299=\"\",\"\",'1. Ordersheet'!BK1299)","v":""},{"$f":"IF('1. Ordersheet'!BL1299=\"\",\"\",'1. Ordersheet'!BL1299)","v":""}]
[{"$f":"IF('1. Ordersheet'!F1300=\"\",\"\",'1. Ordersheet'!F1300)","v":""},{"$f":"IF('1. Ordersheet'!G1300=\"\",\"\",'1. Ordersheet'!G1300)","v":""},{"$f":"IF('1. Ordersheet'!H1300=\"\",\"\",'1. Ordersheet'!H1300)","v":""},{"$f":"IF('1. Ordersheet'!I1300=\"\",\"\",'1. Ordersheet'!I1300)","v":""},{"$f":"IF('1. Ordersheet'!J1300=\"\",\"\",'1. Ordersheet'!J1300)","v":""},{"$f":"IF('1. Ordersheet'!K1300=\"\",\"\",'1. Ordersheet'!K1300)","v":""},{"$f":"IF('1. Ordersheet'!L1300=\"\",\"\",'1. Ordersheet'!L1300)","v":""},{"$f":"IF('1. Ordersheet'!M1300=\"\",\"\",'1. Ordersheet'!M1300)","v":""},{"$f":"IF('1. Ordersheet'!N1300=\"\",\"\",'1. Ordersheet'!N1300)","v":""},{"$f":"IF('1. Ordersheet'!O1300=\"\",\"\",'1. Ordersheet'!O1300)","v":{"$error":"#N/A"}},{"$f":"IF('1. Ordersheet'!P1300=\"\",\"\",'1. Ordersheet'!P1300)","v":{"$error":"#N/A"}},{"$f":"IF('1. Ordersheet'!Q1300=\"\",\"\",'1. Ordersheet'!Q1300)","v":""},{"$f":"IF('1. Ordersheet'!R1300=\"\",\"\",'1. Ordersheet'!R1300)","v":""},{"$f":"IF('1. Ordersheet'!S1300=\"\",\"\",'1. Ordersheet'!S1300)","v":""},{"$f":"IF('1. Ordersheet'!V1300=\"\",\"\",'1. Ordersheet'!V1300)","v":""},{"$f":"IF('1. Ordersheet'!W1300=\"\",\"\",'1. Ordersheet'!W1300)","v":""},{"$f":"IF('1. Ordersheet'!X1300=\"\",\"\",'1. Ordersheet'!X1300)","v":""},{"$f":"IF('1. Ordersheet'!Y1300=\"\",\"\",'1. Ordersheet'!Y1300)","v":""},{"$f":"IF('1. Ordersheet'!Z1300=\"\",\"\",'1. Ordersheet'!Z1300)","v":""},{"$f":"IF('1. Ordersheet'!AA1300=\"\",\"\",'1. Ordersheet'!AA1300)","v":""},null,{"$f":"IF('1. Ordersheet'!AS1300=\"\",\"\",'1. Ordersheet'!AS1300)","v":""},{"$f":"IF('1. Ordersheet'!AT1300=\"\",\"\",'1. Ordersheet'!AT1300)","v":""},null,null,null,null,null,null,null,{"$f":"IF('1. Ordersheet'!AX1300=\"\",\"\",'1. Ordersheet'!AX1300)","v":""},{"$f":"IF('1. Ordersheet'!AY1300=\"\",\"\",'1. Ordersheet'!AY1300)","v":""},{"$f":"IF('1. Ordersheet'!AZ1300=\"\",\"\",'1. Ordersheet'!AZ1300)","v":""},{"$f":"IF('1. Ordersheet'!BA1300=\"\",\"\",'1. Ordersheet'!BA1300)","v":""},{"$f":"IF('1. Ordersheet'!BC1300=\"\",\"\",'1. Ordersheet'!BC1300)","v":""},{"$f":"IF('1. Ordersheet'!BD1300=\"\",\"\",'1. Ordersheet'!BD1300)","v":""},{"$f":"IF('1. Ordersheet'!BE1300=\"\",\"\",'1. Ordersheet'!BE1300)","v":""},{"$f":"IF('1. Ordersheet'!BF1300=\"\",\"\",'1. Ordersheet'!BF1300)","v":""},{"$f":"IF('1. Ordersheet'!BG1300=\"\",\"\",'1. Ordersheet'!BG1300)","v":"ZWO"},{"$f":"IF('1. Ordersheet'!BH1300=\"\",\"\",'1. Ordersheet'!BH1300)","v":""},{"$f":"IF('1. Ordersheet'!BI1300=\"\",\"\",'1. Ordersheet'!BI1300)","v":""},{"$f":"IF('1. Ordersheet'!BJ1300=\"\",\"\",'1. Ordersheet'!BJ1300)","v":""},{"$f":"IF('1. Ordersheet'!BK1300=\"\",\"\",'1. Ordersheet'!BK1300)","v":""},{"$f":"IF('1. Ordersheet'!BL1300=\"\",\"\",'1. Ordersheet'!BL1300)","v":""}]
[{"$f":"IF('1. Ordersheet'!F1301=\"\",\"\",'1. Ordersheet'!F1301)","v":""},{"$f":"IF('1. Ordersheet'!G1301=\"\",\"\",'1. Ordersheet'!G1301)","v":""},{"$f":"IF('1. Ordersheet'!H1301=\"\",\"\",'1. Ordersheet'!H1301)","v":""},{"$f":"IF('1. Ordersheet'!I1301=\"\",\"\",'1. Ordersheet'!I1301)","v":""},{"$f":"IF('1. Ordersheet'!J1301=\"\",\"\",'1. Ordersheet'!J1301)","v":""},{"$f":"IF('1. Ordersheet'!K1301=\"\",\"\",'1. Ordersheet'!K1301)","v":""},{"$f":"IF('1. Ordersheet'!L1301=\"\",\"\",'1. Ordersheet'!L1301)","v":""},{"$f":"IF('1. Ordersheet'!M1301=\"\",\"\",'1. Ordersheet'!M1301)","v":""},{"$f":"IF('1. Ordersheet'!N1301=\"\",\"\",'1. Ordersheet'!N1301)","v":""},{"$f":"IF('1. Ordersheet'!O1301=\"\",\"\",'1. Ordersheet'!O1301)","v":{"$error":"#N/A"}},{"$f":"IF('1. Ordersheet'!P1301=\"\",\"\",'1. Ordersheet'!P1301)","v":{"$error":"#N/A"}},{"$f":"IF('1. Ordersheet'!Q1301=\"\",\"\",'1. Ordersheet'!Q1301)","v":""},{"$f":"IF('1. Ordersheet'!R1301=\"\",\"\",'1. Ordersheet'!R1301)","v":""},{"$f":"IF('1. Ordersheet'!S1301=\"\",\"\",'1. Ordersheet'!S1301)","v":""},{"$f":"IF('1. Ordersheet'!V1301=\"\",\"\",'1. Ordersheet'!V1301)","v":""},{"$f":"IF('1. Ordersheet'!W1301=\"\",\"\",'1. Ordersheet'!W1301)","v":""},{"$f":"IF('1. Ordersheet'!X1301=\"\",\"\",'1. Ordersheet'!X1301)","v":""},{"$f":"IF('1. Ordersheet'!Y1301=\"\",\"\",'1. Ordersheet'!Y1301)","v":""},{"$f":"IF('1. Ordersheet'!Z1301=\"\",\"\",'1. Ordersheet'!Z1301)","v":""},{"$f":"IF('1. Ordersheet'!AA1301=\"\",\"\",'1. Ordersheet'!AA1301)","v":""},null,{"$f":"IF('1. Ordersheet'!AS1301=\"\",\"\",'1. Ordersheet'!AS1301)","v":""},{"$f":"IF('1. Ordersheet'!AT1301=\"\",\"\",'1. Ordersheet'!AT1301)","v":""},null,null,null,null,null,null,null,{"$f":"IF('1. Ordersheet'!AX1301=\"\",\"\",'1. Ordersheet'!AX1301)","v":""},{"$f":"IF('1. Ordersheet'!AY1301=\"\",\"\",'1. Ordersheet'!AY1301)","v":""},{"$f":"IF('1. Ordersheet'!AZ1301=\"\",\"\",'1. Ordersheet'!AZ1301)","v":""},{"$f":"IF('1. Ordersheet'!BA1301=\"\",\"\",'1. Ordersheet'!BA1301)","v":""},{"$f":"IF('1. Ordersheet'!BC1301=\"\",\"\",'1. Ordersheet'!BC1301)","v":""},{"$f":"IF('1. Ordersheet'!BD1301=\"\",\"\",'1. Ordersheet'!BD1301)","v":""},{"$f":"IF('1. Ordersheet'!BE1301=\"\",\"\",'1. Ordersheet'!BE1301)","v":""},{"$f":"IF('1. Ordersheet'!BF1301=\"\",\"\",'1. Ordersheet'!BF1301)","v":""},{"$f":"IF('1. Ordersheet'!BG1301=\"\",\"\",'1. Ordersheet'!BG1301)","v":"ZWO"},{"$f":"IF('1. Ordersheet'!BH1301=\"\",\"\",'1. Ordersheet'!BH1301)","v":""},{"$f":"IF('1. Ordersheet'!BI1301=\"\",\"\",'1. Ordersheet'!BI1301)","v":""},{"$f":"IF('1. Ordersheet'!BJ1301=\"\",\"\",'1. Ordersheet'!BJ1301)","v":""},{"$f":"IF('1. Ordersheet'!BK1301=\"\",\"\",'1. Ordersheet'!BK1301)","v":""},{"$f":"IF('1. Ordersheet'!BL1301=\"\",\"\",'1. Ordersheet'!BL1301)","v":""}]
[{"$f":"IF('1. Ordersheet'!F1302=\"\",\"\",'1. Ordersheet'!F1302)","v":""},{"$f":"IF('1. Ordersheet'!G1302=\"\",\"\",'1. Ordersheet'!G1302)","v":""},{"$f":"IF('1. Ordersheet'!H1302=\"\",\"\",'1. Ordersheet'!H1302)","v":""},{"$f":"IF('1. Ordersheet'!I1302=\"\",\"\",'1. Ordersheet'!I1302)","v":""},{"$f":"IF('1. Ordersheet'!J1302=\"\",\"\",'1. Ordersheet'!J1302)","v":""},{"$f":"IF('1. Ordersheet'!K1302=\"\",\"\",'1. Ordersheet'!K1302)","v":""},{"$f":"IF('1. Ordersheet'!L1302=\"\",\"\",'1. Ordersheet'!L1302)","v":""},{"$f":"IF('1. Ordersheet'!M1302=\"\",\"\",'1. Ordersheet'!M1302)","v":""},{"$f":"IF('1. Ordersheet'!N1302=\"\",\"\",'1. Ordersheet'!N1302)","v":""},{"$f":"IF('1. Ordersheet'!O1302=\"\",\"\",'1. Ordersheet'!O1302)","v":{"$error":"#N/A"}},{"$f":"IF('1. Ordersheet'!P1302=\"\",\"\",'1. Ordersheet'!P1302)","v":{"$error":"#N/A"}},{"$f":"IF('1. Ordersheet'!Q1302=\"\",\"\",'1. Ordersheet'!Q1302)","v":""},{"$f":"IF('1. Ordersheet'!R1302=\"\",\"\",'1. Ordersheet'!R1302)","v":""},{"$f":"IF('1. Ordersheet'!S1302=\"\",\"\",'1. Ordersheet'!S1302)","v":""},{"$f":"IF('1. Ordersheet'!V1302=\"\",\"\",'1. Ordersheet'!V1302)","v":""},{"$f":"IF('1. Ordersheet'!W1302=\"\",\"\",'1. Ordersheet'!W1302)","v":""},{"$f":"IF('1. Ordersheet'!X1302=\"\",\"\",'1. Ordersheet'!X1302)","v":""},{"$f":"IF('1. Ordersheet'!Y1302=\"\",\"\",'1. Ordersheet'!Y1302)","v":""},{"$f":"IF('1. Ordersheet'!Z1302=\"\",\"\",'1. Ordersheet'!Z1302)","v":""},{"$f":"IF('1. Ordersheet'!AA1302=\"\",\"\",'1. Ordersheet'!AA1302)","v":""},null,{"$f":"IF('1. Ordersheet'!AS1302=\"\",\"\",'1. Ordersheet'!AS1302)","v":""},{"$f":"IF('1. Ordersheet'!AT1302=\"\",\"\",'1. Ordersheet'!AT1302)","v":""},null,null,null,null,null,null,null,{"$f":"IF('1. Ordersheet'!AX1302=\"\",\"\",'1. Ordersheet'!AX1302)","v":""},{"$f":"IF('1. Ordersheet'!AY1302=\"\",\"\",'1. Ordersheet'!AY1302)","v":""},{"$f":"IF('1. Ordersheet'!AZ1302=\"\",\"\",'1. Ordersheet'!AZ1302)","v":""},{"$f":"IF('1. Ordersheet'!BA1302=\"\",\"\",'1. Ordersheet'!BA1302)","v":""},{"$f":"IF('1. Ordersheet'!BC1302=\"\",\"\",'1. Ordersheet'!BC1302)","v":""},{"$f":"IF('1. Ordersheet'!BD1302=\"\",\"\",'1. Ordersheet'!BD1302)","v":""},{"$f":"IF('1. Ordersheet'!BE1302=\"\",\"\",'1. Ordersheet'!BE1302)","v":""},{"$f":"IF('1. Ordersheet'!BF1302=\"\",\"\",'1. Ordersheet'!BF1302)","v":""},{"$f":"IF('1. Ordersheet'!BG1302=\"\",\"\",'1. Ordersheet'!BG1302)","v":"ZWO"},{"$f":"IF('1. Ordersheet'!BH1302=\"\",\"\",'1. Ordersheet'!BH1302)","v":""},{"$f":"IF('1. Ordersheet'!BI1302=\"\",\"\",'1. Ordersheet'!BI1302)","v":""},{"$f":"IF('1. Ordersheet'!BJ1302=\"\",\"\",'1. Ordersheet'!BJ1302)","v":""},{"$f":"IF('1. Ordersheet'!BK1302=\"\",\"\",'1. Ordersheet'!BK1302)","v":""},{"$f":"IF('1. Ordersheet'!BL1302=\"\",\"\",'1. Ordersheet'!BL1302)","v":""}]
[{"$f":"IF('1. Ordersheet'!F1303=\"\",\"\",'1. Ordersheet'!F1303)","v":""},{"$f":"IF('1. Ordersheet'!G1303=\"\",\"\",'1. Ordersheet'!G1303)","v":""},{"$f":"IF('1. Ordersheet'!H1303=\"\",\"\",'1. Ordersheet'!H1303)","v":""},{"$f":"IF('1. Ordersheet'!I1303=\"\",\"\",'1. Ordersheet'!I1303)","v":""},{"$f":"IF('1. Ordersheet'!J1303=\"\",\"\",'1. Ordersheet'!J1303)","v":""},{"$f":"IF('1. Ordersheet'!K1303=\"\",\"\",'1. Ordersheet'!K1303)","v":""},{"$f":"IF('1. Ordersheet'!L1303=\"\",\"\",'1. Ordersheet'!L1303)","v":""},{"$f":"IF('1. Ordersheet'!M1303=\"\",\"\",'1. Ordersheet'!M1303)","v":""},{"$f":"IF('1. Ordersheet'!N1303=\"\",\"\",'1. Ordersheet'!N1303)","v":""},{"$f":"IF('1. Ordersheet'!O1303=\"\",\"\",'1. Ordersheet'!O1303)","v":{"$error":"#N/A"}},{"$f":"IF('1. Ordersheet'!P1303=\"\",\"\",'1. Ordersheet'!P1303)","v":{"$error":"#N/A"}},{"$f":"IF('1. Ordersheet'!Q1303=\"\",\"\",'1. Ordersheet'!Q1303)","v":""},{"$f":"IF('1. Ordersheet'!R1303=\"\",\"\",'1. Ordersheet'!R1303)","v":""},{"$f":"IF('1. Ordersheet'!S1303=\"\",\"\",'1. Ordersheet'!S1303)","v":""},{"$f":"IF('1. Ordersheet'!V1303=\"\",\"\",'1. Ordersheet'!V1303)","v":""},{"$f":"IF('1. Ordersheet'!W1303=\"\",\"\",'1. Ordersheet'!W1303)","v":""},{"$f":"IF('1. Ordersheet'!X1303=\"\",\"\",'1. Ordersheet'!X1303)","v":""},{"$f":"IF('1. Ordersheet'!Y1303=\"\",\"\",'1. Ordersheet'!Y1303)","v":""},{"$f":"IF('1. Ordersheet'!Z1303=\"\",\"\",'1. Ordersheet'!Z1303)","v":""},{"$f":"IF('1. Ordersheet'!AA1303=\"\",\"\",'1. Ordersheet'!AA1303)","v":""},null,{"$f":"IF('1. Ordersheet'!AS1303=\"\",\"\",'1. Ordersheet'!AS1303)","v":""},{"$f":"IF('1. Ordersheet'!AT1303=\"\",\"\",'1. Ordersheet'!AT1303)","v":""},null,null,null,null,null,null,null,{"$f":"IF('1. Ordersheet'!AX1303=\"\",\"\",'1. Ordersheet'!AX1303)","v":""},{"$f":"IF('1. Ordersheet'!AY1303=\"\",\"\",'1. Ordersheet'!AY1303)","v":""},{"$f":"IF('1. Ordersheet'!AZ1303=\"\",\"\",'1. Ordersheet'!AZ1303)","v":""},{"$f":"IF('1. Ordersheet'!BA1303=\"\",\"\",'1. Ordersheet'!BA1303)","v":""},{"$f":"IF('1. Ordersheet'!BC1303=\"\",\"\",'1. Ordersheet'!BC1303)","v":""},{"$f":"IF('1. Ordersheet'!BD1303=\"\",\"\",'1. Ordersheet'!BD1303)","v":""},{"$f":"IF('1. Ordersheet'!BE1303=\"\",\"\",'1. Ordersheet'!BE1303)","v":""},{"$f":"IF('1. Ordersheet'!BF1303=\"\",\"\",'1. Ordersheet'!BF1303)","v":""},{"$f":"IF('1. Ordersheet'!BG1303=\"\",\"\",'1. Ordersheet'!BG1303)","v":"ZWO"},{"$f":"IF('1. Ordersheet'!BH1303=\"\",\"\",'1. Ordersheet'!BH1303)","v":""},{"$f":"IF('1. Ordersheet'!BI1303=\"\",\"\",'1. Ordersheet'!BI1303)","v":""},{"$f":"IF('1. Ordersheet'!BJ1303=\"\",\"\",'1. Ordersheet'!BJ1303)","v":""},{"$f":"IF('1. Ordersheet'!BK1303=\"\",\"\",'1. Ordersheet'!BK1303)","v":""},{"$f":"IF('1. Ordersheet'!BL1303=\"\",\"\",'1. Ordersheet'!BL1303)","v":""}]
[{"$f":"IF('1. Ordersheet'!F1304=\"\",\"\",'1. Ordersheet'!F1304)","v":""},{"$f":"IF('1. Ordersheet'!G1304=\"\",\"\",'1. Ordersheet'!G1304)","v":""},{"$f":"IF('1. Ordersheet'!H1304=\"\",\"\",'1. Ordersheet'!H1304)","v":""},{"$f":"IF('1. Ordersheet'!I1304=\"\",\"\",'1. Ordersheet'!I1304)","v":""},{"$f":"IF('1. Ordersheet'!J1304=\"\",\"\",'1. Ordersheet'!J1304)","v":""},{"$f":"IF('1. Ordersheet'!K1304=\"\",\"\",'1. Ordersheet'!K1304)","v":""},{"$f":"IF('1. Ordersheet'!L1304=\"\",\"\",'1. Ordersheet'!L1304)","v":""},{"$f":"IF('1. Ordersheet'!M1304=\"\",\"\",'1. Ordersheet'!M1304)","v":""},{"$f":"IF('1. Ordersheet'!N1304=\"\",\"\",'1. Ordersheet'!N1304)","v":""},{"$f":"IF('1. Ordersheet'!O1304=\"\",\"\",'1. Ordersheet'!O1304)","v":{"$error":"#N/A"}},{"$f":"IF('1. Ordersheet'!P1304=\"\",\"\",'1. Ordersheet'!P1304)","v":{"$error":"#N/A"}},{"$f":"IF('1. Ordersheet'!Q1304=\"\",\"\",'1. Ordersheet'!Q1304)","v":""},{"$f":"IF('1. Ordersheet'!R1304=\"\",\"\",'1. Ordersheet'!R1304)","v":""},{"$f":"IF('1. Ordersheet'!S1304=\"\",\"\",'1. Ordersheet'!S1304)","v":""},{"$f":"IF('1. Ordersheet'!V1304=\"\",\"\",'1. Ordersheet'!V1304)","v":""},{"$f":"IF('1. Ordersheet'!W1304=\"\",\"\",'1. Ordersheet'!W1304)","v":""},{"$f":"IF('1. Ordersheet'!X1304=\"\",\"\",'1. Ordersheet'!X1304)","v":""},{"$f":"IF('1. Ordersheet'!Y1304=\"\",\"\",'1. Ordersheet'!Y1304)","v":""},{"$f":"IF('1. Ordersheet'!Z1304=\"\",\"\",'1. Ordersheet'!Z1304)","v":""},{"$f":"IF('1. Ordersheet'!AA1304=\"\",\"\",'1. Ordersheet'!AA1304)","v":""},null,{"$f":"IF('1. Ordersheet'!AS1304=\"\",\"\",'1. Ordersheet'!AS1304)","v":""},{"$f":"IF('1. Ordersheet'!AT1304=\"\",\"\",'1. Ordersheet'!AT1304)","v":""},null,null,null,null,null,null,null,{"$f":"IF('1. Ordersheet'!AX1304=\"\",\"\",'1. Ordersheet'!AX1304)","v":""},{"$f":"IF('1. Ordersheet'!AY1304=\"\",\"\",'1. Ordersheet'!AY1304)","v":""},{"$f":"IF('1. Ordersheet'!AZ1304=\"\",\"\",'1. Ordersheet'!AZ1304)","v":""},{"$f":"IF('1. Ordersheet'!BA1304=\"\",\"\",'1. Ordersheet'!BA1304)","v":""},{"$f":"IF('1. Ordersheet'!BC1304=\"\",\"\",'1. Ordersheet'!BC1304)","v":""},{"$f":"IF('1. Ordersheet'!BD1304=\"\",\"\",'1. Ordersheet'!BD1304)","v":""},{"$f":"IF('1. Ordersheet'!BE1304=\"\",\"\",'1. Ordersheet'!BE1304)","v":""},{"$f":"IF('1. Ordersheet'!BF1304=\"\",\"\",'1. Ordersheet'!BF1304)","v":""},{"$f":"IF('1. Ordersheet'!BG1304=\"\",\"\",'1. Ordersheet'!BG1304)","v":"ZWO"},{"$f":"IF('1. Ordersheet'!BH1304=\"\",\"\",'1. Ordersheet'!BH1304)","v":""},{"$f":"IF('1. Ordersheet'!BI1304=\"\",\"\",'1. Ordersheet'!BI1304)","v":""},{"$f":"IF('1. Ordersheet'!BJ1304=\"\",\"\",'1. Ordersheet'!BJ1304)","v":""},{"$f":"IF('1. Ordersheet'!BK1304=\"\",\"\",'1. Ordersheet'!BK1304)","v":""},{"$f":"IF('1. Ordersheet'!BL1304=\"\",\"\",'1. Ordersheet'!BL1304)","v":""}]
[{"$f":"IF('1. Ordersheet'!F1305=\"\",\"\",'1. Ordersheet'!F1305)","v":""},{"$f":"IF('1. Ordersheet'!G1305=\"\",\"\",'1. Ordersheet'!G1305)","v":""},{"$f":"IF('1. Ordersheet'!H1305=\"\",\"\",'1. Ordersheet'!H1305)","v":""},{"$f":"IF('1. Ordersheet'!I1305=\"\",\"\",'1. Ordersheet'!I1305)","v":""},{"$f":"IF('1. Ordersheet'!J1305=\"\",\"\",'1. Ordersheet'!J1305)","v":""},{"$f":"IF('1. Ordersheet'!K1305=\"\",\"\",'1. Ordersheet'!K1305)","v":""},{"$f":"IF('1. Ordersheet'!L1305=\"\",\"\",'1. Ordersheet'!L1305)","v":""},{"$f":"IF('1. Ordersheet'!M1305=\"\",\"\",'1. Ordersheet'!M1305)","v":""},{"$f":"IF('1. Ordersheet'!N1305=\"\",\"\",'1. Ordersheet'!N1305)","v":""},{"$f":"IF('1. Ordersheet'!O1305=\"\",\"\",'1. Ordersheet'!O1305)","v":{"$error":"#N/A"}},{"$f":"IF('1. Ordersheet'!P1305=\"\",\"\",'1. Ordersheet'!P1305)","v":{"$error":"#N/A"}},{"$f":"IF('1. Ordersheet'!Q1305=\"\",\"\",'1. Ordersheet'!Q1305)","v":""},{"$f":"IF('1. Ordersheet'!R1305=\"\",\"\",'1. Ordersheet'!R1305)","v":""},{"$f":"IF('1. Ordersheet'!S1305=\"\",\"\",'1. Ordersheet'!S1305)","v":""},{"$f":"IF('1. Ordersheet'!V1305=\"\",\"\",'1. Ordersheet'!V1305)","v":""},{"$f":"IF('1. Ordersheet'!W1305=\"\",\"\",'1. Ordersheet'!W1305)","v":""},{"$f":"IF('1. Ordersheet'!X1305=\"\",\"\",'1. Ordersheet'!X1305)","v":""},{"$f":"IF('1. Ordersheet'!Y1305=\"\",\"\",'1. Ordersheet'!Y1305)","v":""},{"$f":"IF('1. Ordersheet'!Z1305=\"\",\"\",'1. Ordersheet'!Z1305)","v":""},{"$f":"IF('1. Ordersheet'!AA1305=\"\",\"\",'1. Ordersheet'!AA1305)","v":""},null,{"$f":"IF('1. Ordersheet'!AS1305=\"\",\"\",'1. Ordersheet'!AS1305)","v":""},{"$f":"IF('1. Ordersheet'!AT1305=\"\",\"\",'1. Ordersheet'!AT1305)","v":""},null,null,null,null,null,null,null,{"$f":"IF('1. Ordersheet'!AX1305=\"\",\"\",'1. Ordersheet'!AX1305)","v":""},{"$f":"IF('1. Ordersheet'!AY1305=\"\",\"\",'1. Ordersheet'!AY1305)","v":""},{"$f":"IF('1. Ordersheet'!AZ1305=\"\",\"\",'1. Ordersheet'!AZ1305)","v":""},{"$f":"IF('1. Ordersheet'!BA1305=\"\",\"\",'1. Ordersheet'!BA1305)","v":""},{"$f":"IF('1. Ordersheet'!BC1305=\"\",\"\",'1. Ordersheet'!BC1305)","v":""},{"$f":"IF('1. Ordersheet'!BD1305=\"\",\"\",'1. Ordersheet'!BD1305)","v":""},{"$f":"IF('1. Ordersheet'!BE1305=\"\",\"\",'1. Ordersheet'!BE1305)","v":""},{"$f":"IF('1. Ordersheet'!BF1305=\"\",\"\",'1. Ordersheet'!BF1305)","v":""},{"$f":"IF('1. Ordersheet'!BG1305=\"\",\"\",'1. Ordersheet'!BG1305)","v":"ZWO"},{"$f":"IF('1. Ordersheet'!BH1305=\"\",\"\",'1. Ordersheet'!BH1305)","v":""},{"$f":"IF('1. Ordersheet'!BI1305=\"\",\"\",'1. Ordersheet'!BI1305)","v":""},{"$f":"IF('1. Ordersheet'!BJ1305=\"\",\"\",'1. Ordersheet'!BJ1305)","v":""},{"$f":"IF('1. Ordersheet'!BK1305=\"\",\"\",'1. Ordersheet'!BK1305)","v":""},{"$f":"IF('1. Ordersheet'!BL1305=\"\",\"\",'1. Ordersheet'!BL1305)","v":""}]
[{"$f":"IF('1. Ordersheet'!F1306=\"\",\"\",'1. Ordersheet'!F1306)","v":""},{"$f":"IF('1. Ordersheet'!G1306=\"\",\"\",'1. Ordersheet'!G1306)","v":""},{"$f":"IF('1. Ordersheet'!H1306=\"\",\"\",'1. Ordersheet'!H1306)","v":""},{"$f":"IF('1. Ordersheet'!I1306=\"\",\"\",'1. Ordersheet'!I1306)","v":""},{"$f":"IF('1. Ordersheet'!J1306=\"\",\"\",'1. Ordersheet'!J1306)","v":""},{"$f":"IF('1. Ordersheet'!K1306=\"\",\"\",'1. Ordersheet'!K1306)","v":""},{"$f":"IF('1. Ordersheet'!L1306=\"\",\"\",'1. Ordersheet'!L1306)","v":""},{"$f":"IF('1. Ordersheet'!M1306=\"\",\"\",'1. Ordersheet'!M1306)","v":""},{"$f":"IF('1. Ordersheet'!N1306=\"\",\"\",'1. Ordersheet'!N1306)","v":""},{"$f":"IF('1. Ordersheet'!O1306=\"\",\"\",'1. Ordersheet'!O1306)","v":{"$error":"#N/A"}},{"$f":"IF('1. Ordersheet'!P1306=\"\",\"\",'1. Ordersheet'!P1306)","v":{"$error":"#N/A"}},{"$f":"IF('1. Ordersheet'!Q1306=\"\",\"\",'1. Ordersheet'!Q1306)","v":""},{"$f":"IF('1. Ordersheet'!R1306=\"\",\"\",'1. Ordersheet'!R1306)","v":""},{"$f":"IF('1. Ordersheet'!S1306=\"\",\"\",'1. Ordersheet'!S1306)","v":""},{"$f":"IF('1. Ordersheet'!V1306=\"\",\"\",'1. Ordersheet'!V1306)","v":""},{"$f":"IF('1. Ordersheet'!W1306=\"\",\"\",'1. Ordersheet'!W1306)","v":""},{"$f":"IF('1. Ordersheet'!X1306=\"\",\"\",'1. Ordersheet'!X1306)","v":""},{"$f":"IF('1. Ordersheet'!Y1306=\"\",\"\",'1. Ordersheet'!Y1306)","v":""},{"$f":"IF('1. Ordersheet'!Z1306=\"\",\"\",'1. Ordersheet'!Z1306)","v":""},{"$f":"IF('1. Ordersheet'!AA1306=\"\",\"\",'1. Ordersheet'!AA1306)","v":""},null,{"$f":"IF('1. Ordersheet'!AS1306=\"\",\"\",'1. Ordersheet'!AS1306)","v":""},{"$f":"IF('1. Ordersheet'!AT1306=\"\",\"\",'1. Ordersheet'!AT1306)","v":""},null,null,null,null,null,null,null,{"$f":"IF('1. Ordersheet'!AX1306=\"\",\"\",'1. Ordersheet'!AX1306)","v":""},{"$f":"IF('1. Ordersheet'!AY1306=\"\",\"\",'1. Ordersheet'!AY1306)","v":""},{"$f":"IF('1. Ordersheet'!AZ1306=\"\",\"\",'1. Ordersheet'!AZ1306)","v":""},{"$f":"IF('1. Ordersheet'!BA1306=\"\",\"\",'1. Ordersheet'!BA1306)","v":""},{"$f":"IF('1. Ordersheet'!BC1306=\"\",\"\",'1. Ordersheet'!BC1306)","v":""},{"$f":"IF('1. Ordersheet'!BD1306=\"\",\"\",'1. Ordersheet'!BD1306)","v":""},{"$f":"IF('1. Ordersheet'!BE1306=\"\",\"\",'1. Ordersheet'!BE1306)","v":""},{"$f":"IF('1. Ordersheet'!BF1306=\"\",\"\",'1. Ordersheet'!BF1306)","v":""},{"$f":"IF('1. Ordersheet'!BG1306=\"\",\"\",'1. Ordersheet'!BG1306)","v":"ZWO"},{"$f":"IF('1. Ordersheet'!BH1306=\"\",\"\",'1. Ordersheet'!BH1306)","v":""},{"$f":"IF('1. Ordersheet'!BI1306=\"\",\"\",'1. Ordersheet'!BI1306)","v":""},{"$f":"IF('1. Ordersheet'!BJ1306=\"\",\"\",'1. Ordersheet'!BJ1306)","v":""},{"$f":"IF('1. Ordersheet'!BK1306=\"\",\"\",'1. Ordersheet'!BK1306)","v":""},{"$f":"IF('1. Ordersheet'!BL1306=\"\",\"\",'1. Ordersheet'!BL1306)","v":""}]
[{"$f":"IF('1. Ordersheet'!F1307=\"\",\"\",'1. Ordersheet'!F1307)","v":""},{"$f":"IF('1. Ordersheet'!G1307=\"\",\"\",'1. Ordersheet'!G1307)","v":""},{"$f":"IF('1. Ordersheet'!H1307=\"\",\"\",'1. Ordersheet'!H1307)","v":""},{"$f":"IF('1. Ordersheet'!I1307=\"\",\"\",'1. Ordersheet'!I1307)","v":""},{"$f":"IF('1. Ordersheet'!J1307=\"\",\"\",'1. Ordersheet'!J1307)","v":""},{"$f":"IF('1. Ordersheet'!K1307=\"\",\"\",'1. Ordersheet'!K1307)","v":""},{"$f":"IF('1. Ordersheet'!L1307=\"\",\"\",'1. Ordersheet'!L1307)","v":""},{"$f":"IF('1. Ordersheet'!M1307=\"\",\"\",'1. Ordersheet'!M1307)","v":""},{"$f":"IF('1. Ordersheet'!N1307=\"\",\"\",'1. Ordersheet'!N1307)","v":""},{"$f":"IF('1. Ordersheet'!O1307=\"\",\"\",'1. Ordersheet'!O1307)","v":{"$error":"#N/A"}},{"$f":"IF('1. Ordersheet'!P1307=\"\",\"\",'1. Ordersheet'!P1307)","v":{"$error":"#N/A"}},{"$f":"IF('1. Ordersheet'!Q1307=\"\",\"\",'1. Ordersheet'!Q1307)","v":""},{"$f":"IF('1. Ordersheet'!R1307=\"\",\"\",'1. Ordersheet'!R1307)","v":""},{"$f":"IF('1. Ordersheet'!S1307=\"\",\"\",'1. Ordersheet'!S1307)","v":""},{"$f":"IF('1. Ordersheet'!V1307=\"\",\"\",'1. Ordersheet'!V1307)","v":""},{"$f":"IF('1. Ordersheet'!W1307=\"\",\"\",'1. Ordersheet'!W1307)","v":""},{"$f":"IF('1. Ordersheet'!X1307=\"\",\"\",'1. Ordersheet'!X1307)","v":""},{"$f":"IF('1. Ordersheet'!Y1307=\"\",\"\",'1. Ordersheet'!Y1307)","v":""},{"$f":"IF('1. Ordersheet'!Z1307=\"\",\"\",'1. Ordersheet'!Z1307)","v":""},{"$f":"IF('1. Ordersheet'!AA1307=\"\",\"\",'1. Ordersheet'!AA1307)","v":""},null,{"$f":"IF('1. Ordersheet'!AS1307=\"\",\"\",'1. Ordersheet'!AS1307)","v":""},{"$f":"IF('1. Ordersheet'!AT1307=\"\",\"\",'1. Ordersheet'!AT1307)","v":""},null,null,null,null,null,null,null,{"$f":"IF('1. Ordersheet'!AX1307=\"\",\"\",'1. Ordersheet'!AX1307)","v":""},{"$f":"IF('1. Ordersheet'!AY1307=\"\",\"\",'1. Ordersheet'!AY1307)","v":""},{"$f":"IF('1. Ordersheet'!AZ1307=\"\",\"\",'1. Ordersheet'!AZ1307)","v":""},{"$f":"IF('1. Ordersheet'!BA1307=\"\",\"\",'1. Ordersheet'!BA1307)","v":""},{"$f":"IF('1. Ordersheet'!BC1307=\"\",\"\",'1. Ordersheet'!BC1307)","v":""},{"$f":"IF('1. Ordersheet'!BD1307=\"\",\"\",'1. Ordersheet'!BD1307)","v":""},{"$f":"IF('1. Ordersheet'!BE1307=\"\",\"\",'1. Ordersheet'!BE1307)","v":""},{"$f":"IF('1. Ordersheet'!BF1307=\"\",\"\",'1. Ordersheet'!BF1307)","v":""},{"$f":"IF('1. Ordersheet'!BG1307=\"\",\"\",'1. Ordersheet'!BG1307)","v":"ZWO"},{"$f":"IF('1. Ordersheet'!BH1307=\"\",\"\",'1. Ordersheet'!BH1307)","v":""},{"$f":"IF('1. Ordersheet'!BI1307=\"\",\"\",'1. Ordersheet'!BI1307)","v":""},{"$f":"IF('1. Ordersheet'!BJ1307=\"\",\"\",'1. Ordersheet'!BJ1307)","v":""},{"$f":"IF('1. Ordersheet'!BK1307=\"\",\"\",'1. Ordersheet'!BK1307)","v":""},{"$f":"IF('1. Ordersheet'!BL1307=\"\",\"\",'1. Ordersheet'!BL1307)","v":""}]
[{"$f":"IF('1. Ordersheet'!F1308=\"\",\"\",'1. Ordersheet'!F1308)","v":""},{"$f":"IF('1. Ordersheet'!G1308=\"\",\"\",'1. Ordersheet'!G1308)","v":""},{"$f":"IF('1. Ordersheet'!H1308=\"\",\"\",'1. Ordersheet'!H1308)","v":""},{"$f":"IF('1. Ordersheet'!I1308=\"\",\"\",'1. Ordersheet'!I1308)","v":""},{"$f":"IF('1. Ordersheet'!J1308=\"\",\"\",'1. Ordersheet'!J1308)","v":""},{"$f":"IF('1. Ordersheet'!K1308=\"\",\"\",'1. Ordersheet'!K1308)","v":""},{"$f":"IF('1. Ordersheet'!L1308=\"\",\"\",'1. Ordersheet'!L1308)","v":""},{"$f":"IF('1. Ordersheet'!M1308=\"\",\"\",'1. Ordersheet'!M1308)","v":""},{"$f":"IF('1. Ordersheet'!N1308=\"\",\"\",'1. Ordersheet'!N1308)","v":""},{"$f":"IF('1. Ordersheet'!O1308=\"\",\"\",'1. Ordersheet'!O1308)","v":{"$error":"#N/A"}},{"$f":"IF('1. Ordersheet'!P1308=\"\",\"\",'1. Ordersheet'!P1308)","v":{"$error":"#N/A"}},{"$f":"IF('1. Ordersheet'!Q1308=\"\",\"\",'1. Ordersheet'!Q1308)","v":""},{"$f":"IF('1. Ordersheet'!R1308=\"\",\"\",'1. Ordersheet'!R1308)","v":""},{"$f":"IF('1. Ordersheet'!S1308=\"\",\"\",'1. Ordersheet'!S1308)","v":""},{"$f":"IF('1. Ordersheet'!V1308=\"\",\"\",'1. Ordersheet'!V1308)","v":""},{"$f":"IF('1. Ordersheet'!W1308=\"\",\"\",'1. Ordersheet'!W1308)","v":""},{"$f":"IF('1. Ordersheet'!X1308=\"\",\"\",'1. Ordersheet'!X1308)","v":""},{"$f":"IF('1. Ordersheet'!Y1308=\"\",\"\",'1. Ordersheet'!Y1308)","v":""},{"$f":"IF('1. Ordersheet'!Z1308=\"\",\"\",'1. Ordersheet'!Z1308)","v":""},{"$f":"IF('1. Ordersheet'!AA1308=\"\",\"\",'1. Ordersheet'!AA1308)","v":""},null,{"$f":"IF('1. Ordersheet'!AS1308=\"\",\"\",'1. Ordersheet'!AS1308)","v":""},{"$f":"IF('1. Ordersheet'!AT1308=\"\",\"\",'1. Ordersheet'!AT1308)","v":""},null,null,null,null,null,null,null,{"$f":"IF('1. Ordersheet'!AX1308=\"\",\"\",'1. Ordersheet'!AX1308)","v":""},{"$f":"IF('1. Ordersheet'!AY1308=\"\",\"\",'1. Ordersheet'!AY1308)","v":""},{"$f":"IF('1. Ordersheet'!AZ1308=\"\",\"\",'1. Ordersheet'!AZ1308)","v":""},{"$f":"IF('1. Ordersheet'!BA1308=\"\",\"\",'1. Ordersheet'!BA1308)","v":""},{"$f":"IF('1. Ordersheet'!BC1308=\"\",\"\",'1. Ordersheet'!BC1308)","v":""},{"$f":"IF('1. Ordersheet'!BD1308=\"\",\"\",'1. Ordersheet'!BD1308)","v":""},{"$f":"IF('1. Ordersheet'!BE1308=\"\",\"\",'1. Ordersheet'!BE1308)","v":""},{"$f":"IF('1. Ordersheet'!BF1308=\"\",\"\",'1. Ordersheet'!BF1308)","v":""},{"$f":"IF('1. Ordersheet'!BG1308=\"\",\"\",'1. Ordersheet'!BG1308)","v":"ZWO"},{"$f":"IF('1. Ordersheet'!BH1308=\"\",\"\",'1. Ordersheet'!BH1308)","v":""},{"$f":"IF('1. Ordersheet'!BI1308=\"\",\"\",'1. Ordersheet'!BI1308)","v":""},{"$f":"IF('1. Ordersheet'!BJ1308=\"\",\"\",'1. Ordersheet'!BJ1308)","v":""},{"$f":"IF('1. Ordersheet'!BK1308=\"\",\"\",'1. Ordersheet'!BK1308)","v":""},{"$f":"IF('1. Ordersheet'!BL1308=\"\",\"\",'1. Ordersheet'!BL1308)","v":""}]
[{"$f":"IF('1. Ordersheet'!F1309=\"\",\"\",'1. Ordersheet'!F1309)","v":""},{"$f":"IF('1. Ordersheet'!G1309=\"\",\"\",'1. Ordersheet'!G1309)","v":""},{"$f":"IF('1. Ordersheet'!H1309=\"\",\"\",'1. Ordersheet'!H1309)","v":""},{"$f":"IF('1. Ordersheet'!I1309=\"\",\"\",'1. Ordersheet'!I1309)","v":""},{"$f":"IF('1. Ordersheet'!J1309=\"\",\"\",'1. Ordersheet'!J1309)","v":""},{"$f":"IF('1. Ordersheet'!K1309=\"\",\"\",'1. Ordersheet'!K1309)","v":""},{"$f":"IF('1. Ordersheet'!L1309=\"\",\"\",'1. Ordersheet'!L1309)","v":""},{"$f":"IF('1. Ordersheet'!M1309=\"\",\"\",'1. Ordersheet'!M1309)","v":""},{"$f":"IF('1. Ordersheet'!N1309=\"\",\"\",'1. Ordersheet'!N1309)","v":""},{"$f":"IF('1. Ordersheet'!O1309=\"\",\"\",'1. Ordersheet'!O1309)","v":{"$error":"#N/A"}},{"$f":"IF('1. Ordersheet'!P1309=\"\",\"\",'1. Ordersheet'!P1309)","v":{"$error":"#N/A"}},{"$f":"IF('1. Ordersheet'!Q1309=\"\",\"\",'1. Ordersheet'!Q1309)","v":""},{"$f":"IF('1. Ordersheet'!R1309=\"\",\"\",'1. Ordersheet'!R1309)","v":""},{"$f":"IF('1. Ordersheet'!S1309=\"\",\"\",'1. Ordersheet'!S1309)","v":""},{"$f":"IF('1. Ordersheet'!V1309=\"\",\"\",'1. Ordersheet'!V1309)","v":""},{"$f":"IF('1. Ordersheet'!W1309=\"\",\"\",'1. Ordersheet'!W1309)","v":""},{"$f":"IF('1. Ordersheet'!X1309=\"\",\"\",'1. Ordersheet'!X1309)","v":""},{"$f":"IF('1. Ordersheet'!Y1309=\"\",\"\",'1. Ordersheet'!Y1309)","v":""},{"$f":"IF('1. Ordersheet'!Z1309=\"\",\"\",'1. Ordersheet'!Z1309)","v":""},{"$f":"IF('1. Ordersheet'!AA1309=\"\",\"\",'1. Ordersheet'!AA1309)","v":""},null,{"$f":"IF('1. Ordersheet'!AS1309=\"\",\"\",'1. Ordersheet'!AS1309)","v":""},{"$f":"IF('1. Ordersheet'!AT1309=\"\",\"\",'1. Ordersheet'!AT1309)","v":""},null,null,null,null,null,null,null,{"$f":"IF('1. Ordersheet'!AX1309=\"\",\"\",'1. Ordersheet'!AX1309)","v":""},{"$f":"IF('1. Ordersheet'!AY1309=\"\",\"\",'1. Ordersheet'!AY1309)","v":""},{"$f":"IF('1. Ordersheet'!AZ1309=\"\",\"\",'1. Ordersheet'!AZ1309)","v":""},{"$f":"IF('1. Ordersheet'!BA1309=\"\",\"\",'1. Ordersheet'!BA1309)","v":""},{"$f":"IF('1. Ordersheet'!BC1309=\"\",\"\",'1. Ordersheet'!BC1309)","v":""},{"$f":"IF('1. Ordersheet'!BD1309=\"\",\"\",'1. Ordersheet'!BD1309)","v":""},{"$f":"IF('1. Ordersheet'!BE1309=\"\",\"\",'1. Ordersheet'!BE1309)","v":""},{"$f":"IF('1. Ordersheet'!BF1309=\"\",\"\",'1. Ordersheet'!BF1309)","v":""},{"$f":"IF('1. Ordersheet'!BG1309=\"\",\"\",'1. Ordersheet'!BG1309)","v":"ZWO"},{"$f":"IF('1. Ordersheet'!BH1309=\"\",\"\",'1. Ordersheet'!BH1309)","v":""},{"$f":"IF('1. Ordersheet'!BI1309=\"\",\"\",'1. Ordersheet'!BI1309)","v":""},{"$f":"IF('1. Ordersheet'!BJ1309=\"\",\"\",'1. Ordersheet'!BJ1309)","v":""},{"$f":"IF('1. Ordersheet'!BK1309=\"\",\"\",'1. Ordersheet'!BK1309)","v":""},{"$f":"IF('1. Ordersheet'!BL1309=\"\",\"\",'1. Ordersheet'!BL1309)","v":""}]
[{"$f":"IF('1. Ordersheet'!F1310=\"\",\"\",'1. Ordersheet'!F1310)","v":""},{"$f":"IF('1. Ordersheet'!G1310=\"\",\"\",'1. Ordersheet'!G1310)","v":""},{"$f":"IF('1. Ordersheet'!H1310=\"\",\"\",'1. Ordersheet'!H1310)","v":""},{"$f":"IF('1. Ordersheet'!I1310=\"\",\"\",'1. Ordersheet'!I1310)","v":""},{"$f":"IF('1. Ordersheet'!J1310=\"\",\"\",'1. Ordersheet'!J1310)","v":""},{"$f":"IF('1. Ordersheet'!K1310=\"\",\"\",'1. Ordersheet'!K1310)","v":""},{"$f":"IF('1. Ordersheet'!L1310=\"\",\"\",'1. Ordersheet'!L1310)","v":""},{"$f":"IF('1. Ordersheet'!M1310=\"\",\"\",'1. Ordersheet'!M1310)","v":""},{"$f":"IF('1. Ordersheet'!N1310=\"\",\"\",'1. Ordersheet'!N1310)","v":""},{"$f":"IF('1. Ordersheet'!O1310=\"\",\"\",'1. Ordersheet'!O1310)","v":{"$error":"#N/A"}},{"$f":"IF('1. Ordersheet'!P1310=\"\",\"\",'1. Ordersheet'!P1310)","v":{"$error":"#N/A"}},{"$f":"IF('1. Ordersheet'!Q1310=\"\",\"\",'1. Ordersheet'!Q1310)","v":""},{"$f":"IF('1. Ordersheet'!R1310=\"\",\"\",'1. Ordersheet'!R1310)","v":""},{"$f":"IF('1. Ordersheet'!S1310=\"\",\"\",'1. Ordersheet'!S1310)","v":""},{"$f":"IF('1. Ordersheet'!V1310=\"\",\"\",'1. Ordersheet'!V1310)","v":""},{"$f":"IF('1. Ordersheet'!W1310=\"\",\"\",'1. Ordersheet'!W1310)","v":""},{"$f":"IF('1. Ordersheet'!X1310=\"\",\"\",'1. Ordersheet'!X1310)","v":""},{"$f":"IF('1. Ordersheet'!Y1310=\"\",\"\",'1. Ordersheet'!Y1310)","v":""},{"$f":"IF('1. Ordersheet'!Z1310=\"\",\"\",'1. Ordersheet'!Z1310)","v":""},{"$f":"IF('1. Ordersheet'!AA1310=\"\",\"\",'1. Ordersheet'!AA1310)","v":""},null,{"$f":"IF('1. Ordersheet'!AS1310=\"\",\"\",'1. Ordersheet'!AS1310)","v":""},{"$f":"IF('1. Ordersheet'!AT1310=\"\",\"\",'1. Ordersheet'!AT1310)","v":""},null,null,null,null,null,null,null,{"$f":"IF('1. Ordersheet'!AX1310=\"\",\"\",'1. Ordersheet'!AX1310)","v":""},{"$f":"IF('1. Ordersheet'!AY1310=\"\",\"\",'1. Ordersheet'!AY1310)","v":""},{"$f":"IF('1. Ordersheet'!AZ1310=\"\",\"\",'1. Ordersheet'!AZ1310)","v":""},{"$f":"IF('1. Ordersheet'!BA1310=\"\",\"\",'1. Ordersheet'!BA1310)","v":""},{"$f":"IF('1. Ordersheet'!BC1310=\"\",\"\",'1. Ordersheet'!BC1310)","v":""},{"$f":"IF('1. Ordersheet'!BD1310=\"\",\"\",'1. Ordersheet'!BD1310)","v":""},{"$f":"IF('1. Ordersheet'!BE1310=\"\",\"\",'1. Ordersheet'!BE1310)","v":""},{"$f":"IF('1. Ordersheet'!BF1310=\"\",\"\",'1. Ordersheet'!BF1310)","v":""},{"$f":"IF('1. Ordersheet'!BG1310=\"\",\"\",'1. Ordersheet'!BG1310)","v":"ZWO"},{"$f":"IF('1. Ordersheet'!BH1310=\"\",\"\",'1. Ordersheet'!BH1310)","v":""},{"$f":"IF('1. Ordersheet'!BI1310=\"\",\"\",'1. Ordersheet'!BI1310)","v":""},{"$f":"IF('1. Ordersheet'!BJ1310=\"\",\"\",'1. Ordersheet'!BJ1310)","v":""},{"$f":"IF('1. Ordersheet'!BK1310=\"\",\"\",'1. Ordersheet'!BK1310)","v":""},{"$f":"IF('1. Ordersheet'!BL1310=\"\",\"\",'1. Ordersheet'!BL1310)","v":""}]
[{"$f":"IF('1. Ordersheet'!F1311=\"\",\"\",'1. Ordersheet'!F1311)","v":""},{"$f":"IF('1. Ordersheet'!G1311=\"\",\"\",'1. Ordersheet'!G1311)","v":""},{"$f":"IF('1. Ordersheet'!H1311=\"\",\"\",'1. Ordersheet'!H1311)","v":""},{"$f":"IF('1. Ordersheet'!I1311=\"\",\"\",'1. Ordersheet'!I1311)","v":""},{"$f":"IF('1. Ordersheet'!J1311=\"\",\"\",'1. Ordersheet'!J1311)","v":""},{"$f":"IF('1. Ordersheet'!K1311=\"\",\"\",'1. Ordersheet'!K1311)","v":""},{"$f":"IF('1. Ordersheet'!L1311=\"\",\"\",'1. Ordersheet'!L1311)","v":""},{"$f":"IF('1. Ordersheet'!M1311=\"\",\"\",'1. Ordersheet'!M1311)","v":""},{"$f":"IF('1. Ordersheet'!N1311=\"\",\"\",'1. Ordersheet'!N1311)","v":""},{"$f":"IF('1. Ordersheet'!O1311=\"\",\"\",'1. Ordersheet'!O1311)","v":{"$error":"#N/A"}},{"$f":"IF('1. Ordersheet'!P1311=\"\",\"\",'1. Ordersheet'!P1311)","v":{"$error":"#N/A"}},{"$f":"IF('1. Ordersheet'!Q1311=\"\",\"\",'1. Ordersheet'!Q1311)","v":""},{"$f":"IF('1. Ordersheet'!R1311=\"\",\"\",'1. Ordersheet'!R1311)","v":""},{"$f":"IF('1. Ordersheet'!S1311=\"\",\"\",'1. Ordersheet'!S1311)","v":""},{"$f":"IF('1. Ordersheet'!V1311=\"\",\"\",'1. Ordersheet'!V1311)","v":""},{"$f":"IF('1. Ordersheet'!W1311=\"\",\"\",'1. Ordersheet'!W1311)","v":""},{"$f":"IF('1. Ordersheet'!X1311=\"\",\"\",'1. Ordersheet'!X1311)","v":""},{"$f":"IF('1. Ordersheet'!Y1311=\"\",\"\",'1. Ordersheet'!Y1311)","v":""},{"$f":"IF('1. Ordersheet'!Z1311=\"\",\"\",'1. Ordersheet'!Z1311)","v":""},{"$f":"IF('1. Ordersheet'!AA1311=\"\",\"\",'1. Ordersheet'!AA1311)","v":""},null,{"$f":"IF('1. Ordersheet'!AS1311=\"\",\"\",'1. Ordersheet'!AS1311)","v":""},{"$f":"IF('1. Ordersheet'!AT1311=\"\",\"\",'1. Ordersheet'!AT1311)","v":""},null,null,null,null,null,null,null,{"$f":"IF('1. Ordersheet'!AX1311=\"\",\"\",'1. Ordersheet'!AX1311)","v":""},{"$f":"IF('1. Ordersheet'!AY1311=\"\",\"\",'1. Ordersheet'!AY1311)","v":""},{"$f":"IF('1. Ordersheet'!AZ1311=\"\",\"\",'1. Ordersheet'!AZ1311)","v":""},{"$f":"IF('1. Ordersheet'!BA1311=\"\",\"\",'1. Ordersheet'!BA1311)","v":""},{"$f":"IF('1. Ordersheet'!BC1311=\"\",\"\",'1. Ordersheet'!BC1311)","v":""},{"$f":"IF('1. Ordersheet'!BD1311=\"\",\"\",'1. Ordersheet'!BD1311)","v":""},{"$f":"IF('1. Ordersheet'!BE1311=\"\",\"\",'1. Ordersheet'!BE1311)","v":""},{"$f":"IF('1. Ordersheet'!BF1311=\"\",\"\",'1. Ordersheet'!BF1311)","v":""},{"$f":"IF('1. Ordersheet'!BG1311=\"\",\"\",'1. Ordersheet'!BG1311)","v":"ZWO"},{"$f":"IF('1. Ordersheet'!BH1311=\"\",\"\",'1. Ordersheet'!BH1311)","v":""},{"$f":"IF('1. Ordersheet'!BI1311=\"\",\"\",'1. Ordersheet'!BI1311)","v":""},{"$f":"IF('1. Ordersheet'!BJ1311=\"\",\"\",'1. Ordersheet'!BJ1311)","v":""},{"$f":"IF('1. Ordersheet'!BK1311=\"\",\"\",'1. Ordersheet'!BK1311)","v":""},{"$f":"IF('1. Ordersheet'!BL1311=\"\",\"\",'1. Ordersheet'!BL1311)","v":""}]
[{"$f":"IF('1. Ordersheet'!F1312=\"\",\"\",'1. Ordersheet'!F1312)","v":""},{"$f":"IF('1. Ordersheet'!G1312=\"\",\"\",'1. Ordersheet'!G1312)","v":""},{"$f":"IF('1. Ordersheet'!H1312=\"\",\"\",'1. Ordersheet'!H1312)","v":""},{"$f":"IF('1. Ordersheet'!I1312=\"\",\"\",'1. Ordersheet'!I1312)","v":""},{"$f":"IF('1. Ordersheet'!J1312=\"\",\"\",'1. Ordersheet'!J1312)","v":""},{"$f":"IF('1. Ordersheet'!K1312=\"\",\"\",'1. Ordersheet'!K1312)","v":""},{"$f":"IF('1. Ordersheet'!L1312=\"\",\"\",'1. Ordersheet'!L1312)","v":""},{"$f":"IF('1. Ordersheet'!M1312=\"\",\"\",'1. Ordersheet'!M1312)","v":""},{"$f":"IF('1. Ordersheet'!N1312=\"\",\"\",'1. Ordersheet'!N1312)","v":""},{"$f":"IF('1. Ordersheet'!O1312=\"\",\"\",'1. Ordersheet'!O1312)","v":{"$error":"#N/A"}},{"$f":"IF('1. Ordersheet'!P1312=\"\",\"\",'1. Ordersheet'!P1312)","v":{"$error":"#N/A"}},{"$f":"IF('1. Ordersheet'!Q1312=\"\",\"\",'1. Ordersheet'!Q1312)","v":""},{"$f":"IF('1. Ordersheet'!R1312=\"\",\"\",'1. Ordersheet'!R1312)","v":""},{"$f":"IF('1. Ordersheet'!S1312=\"\",\"\",'1. Ordersheet'!S1312)","v":""},{"$f":"IF('1. Ordersheet'!V1312=\"\",\"\",'1. Ordersheet'!V1312)","v":""},{"$f":"IF('1. Ordersheet'!W1312=\"\",\"\",'1. Ordersheet'!W1312)","v":""},{"$f":"IF('1. Ordersheet'!X1312=\"\",\"\",'1. Ordersheet'!X1312)","v":""},{"$f":"IF('1. Ordersheet'!Y1312=\"\",\"\",'1. Ordersheet'!Y1312)","v":""},{"$f":"IF('1. Ordersheet'!Z1312=\"\",\"\",'1. Ordersheet'!Z1312)","v":""},{"$f":"IF('1. Ordersheet'!AA1312=\"\",\"\",'1. Ordersheet'!AA1312)","v":""},null,{"$f":"IF('1. Ordersheet'!AS1312=\"\",\"\",'1. Ordersheet'!AS1312)","v":""},{"$f":"IF('1. Ordersheet'!AT1312=\"\",\"\",'1. Ordersheet'!AT1312)","v":""},null,null,null,null,null,null,null,{"$f":"IF('1. Ordersheet'!AX1312=\"\",\"\",'1. Ordersheet'!AX1312)","v":""},{"$f":"IF('1. Ordersheet'!AY1312=\"\",\"\",'1. Ordersheet'!AY1312)","v":""},{"$f":"IF('1. Ordersheet'!AZ1312=\"\",\"\",'1. Ordersheet'!AZ1312)","v":""},{"$f":"IF('1. Ordersheet'!BA1312=\"\",\"\",'1. Ordersheet'!BA1312)","v":""},{"$f":"IF('1. Ordersheet'!BC1312=\"\",\"\",'1. Ordersheet'!BC1312)","v":""},{"$f":"IF('1. Ordersheet'!BD1312=\"\",\"\",'1. Ordersheet'!BD1312)","v":""},{"$f":"IF('1. Ordersheet'!BE1312=\"\",\"\",'1. Ordersheet'!BE1312)","v":""},{"$f":"IF('1. Ordersheet'!BF1312=\"\",\"\",'1. Ordersheet'!BF1312)","v":""},{"$f":"IF('1. Ordersheet'!BG1312=\"\",\"\",'1. Ordersheet'!BG1312)","v":"ZWO"},{"$f":"IF('1. Ordersheet'!BH1312=\"\",\"\",'1. Ordersheet'!BH1312)","v":""},{"$f":"IF('1. Ordersheet'!BI1312=\"\",\"\",'1. Ordersheet'!BI1312)","v":""},{"$f":"IF('1. Ordersheet'!BJ1312=\"\",\"\",'1. Ordersheet'!BJ1312)","v":""},{"$f":"IF('1. Ordersheet'!BK1312=\"\",\"\",'1. Ordersheet'!BK1312)","v":""},{"$f":"IF('1. Ordersheet'!BL1312=\"\",\"\",'1. Ordersheet'!BL1312)","v":""}]
[{"$f":"IF('1. Ordersheet'!F1313=\"\",\"\",'1. Ordersheet'!F1313)","v":""},{"$f":"IF('1. Ordersheet'!G1313=\"\",\"\",'1. Ordersheet'!G1313)","v":""},{"$f":"IF('1. Ordersheet'!H1313=\"\",\"\",'1. Ordersheet'!H1313)","v":""},{"$f":"IF('1. Ordersheet'!I1313=\"\",\"\",'1. Ordersheet'!I1313)","v":""},{"$f":"IF('1. Ordersheet'!J1313=\"\",\"\",'1. Ordersheet'!J1313)","v":""},{"$f":"IF('1. Ordersheet'!K1313=\"\",\"\",'1. Ordersheet'!K1313)","v":""},{"$f":"IF('1. Ordersheet'!L1313=\"\",\"\",'1. Ordersheet'!L1313)","v":""},{"$f":"IF('1. Ordersheet'!M1313=\"\",\"\",'1. Ordersheet'!M1313)","v":""},{"$f":"IF('1. Ordersheet'!N1313=\"\",\"\",'1. Ordersheet'!N1313)","v":""},{"$f":"IF('1. Ordersheet'!O1313=\"\",\"\",'1. Ordersheet'!O1313)","v":{"$error":"#N/A"}},{"$f":"IF('1. Ordersheet'!P1313=\"\",\"\",'1. Ordersheet'!P1313)","v":{"$error":"#N/A"}},{"$f":"IF('1. Ordersheet'!Q1313=\"\",\"\",'1. Ordersheet'!Q1313)","v":""},{"$f":"IF('1. Ordersheet'!R1313=\"\",\"\",'1. Ordersheet'!R1313)","v":""},{"$f":"IF('1. Ordersheet'!S1313=\"\",\"\",'1. Ordersheet'!S1313)","v":""},{"$f":"IF('1. Ordersheet'!V1313=\"\",\"\",'1. Ordersheet'!V1313)","v":""},{"$f":"IF('1. Ordersheet'!W1313=\"\",\"\",'1. Ordersheet'!W1313)","v":""},{"$f":"IF('1. Ordersheet'!X1313=\"\",\"\",'1. Ordersheet'!X1313)","v":""},{"$f":"IF('1. Ordersheet'!Y1313=\"\",\"\",'1. Ordersheet'!Y1313)","v":""},{"$f":"IF('1. Ordersheet'!Z1313=\"\",\"\",'1. Ordersheet'!Z1313)","v":""},{"$f":"IF('1. Ordersheet'!AA1313=\"\",\"\",'1. Ordersheet'!AA1313)","v":""},null,{"$f":"IF('1. Ordersheet'!AS1313=\"\",\"\",'1. Ordersheet'!AS1313)","v":""},{"$f":"IF('1. Ordersheet'!AT1313=\"\",\"\",'1. Ordersheet'!AT1313)","v":""},null,null,null,null,null,null,null,{"$f":"IF('1. Ordersheet'!AX1313=\"\",\"\",'1. Ordersheet'!AX1313)","v":""},{"$f":"IF('1. Ordersheet'!AY1313=\"\",\"\",'1. Ordersheet'!AY1313)","v":""},{"$f":"IF('1. Ordersheet'!AZ1313=\"\",\"\",'1. Ordersheet'!AZ1313)","v":""},{"$f":"IF('1. Ordersheet'!BA1313=\"\",\"\",'1. Ordersheet'!BA1313)","v":""},{"$f":"IF('1. Ordersheet'!BC1313=\"\",\"\",'1. Ordersheet'!BC1313)","v":""},{"$f":"IF('1. Ordersheet'!BD1313=\"\",\"\",'1. Ordersheet'!BD1313)","v":""},{"$f":"IF('1. Ordersheet'!BE1313=\"\",\"\",'1. Ordersheet'!BE1313)","v":""},{"$f":"IF('1. Ordersheet'!BF1313=\"\",\"\",'1. Ordersheet'!BF1313)","v":""},{"$f":"IF('1. Ordersheet'!BG1313=\"\",\"\",'1. Ordersheet'!BG1313)","v":"ZWO"},{"$f":"IF('1. Ordersheet'!BH1313=\"\",\"\",'1. Ordersheet'!BH1313)","v":""},{"$f":"IF('1. Ordersheet'!BI1313=\"\",\"\",'1. Ordersheet'!BI1313)","v":""},{"$f":"IF('1. Ordersheet'!BJ1313=\"\",\"\",'1. Ordersheet'!BJ1313)","v":""},{"$f":"IF('1. Ordersheet'!BK1313=\"\",\"\",'1. Ordersheet'!BK1313)","v":""},{"$f":"IF('1. Ordersheet'!BL1313=\"\",\"\",'1. Ordersheet'!BL1313)","v":""}]
[{"$f":"IF('1. Ordersheet'!F1314=\"\",\"\",'1. Ordersheet'!F1314)","v":""},{"$f":"IF('1. Ordersheet'!G1314=\"\",\"\",'1. Ordersheet'!G1314)","v":""},{"$f":"IF('1. Ordersheet'!H1314=\"\",\"\",'1. Ordersheet'!H1314)","v":""},{"$f":"IF('1. Ordersheet'!I1314=\"\",\"\",'1. Ordersheet'!I1314)","v":""},{"$f":"IF('1. Ordersheet'!J1314=\"\",\"\",'1. Ordersheet'!J1314)","v":""},{"$f":"IF('1. Ordersheet'!K1314=\"\",\"\",'1. Ordersheet'!K1314)","v":""},{"$f":"IF('1. Ordersheet'!L1314=\"\",\"\",'1. Ordersheet'!L1314)","v":""},{"$f":"IF('1. Ordersheet'!M1314=\"\",\"\",'1. Ordersheet'!M1314)","v":""},{"$f":"IF('1. Ordersheet'!N1314=\"\",\"\",'1. Ordersheet'!N1314)","v":""},{"$f":"IF('1. Ordersheet'!O1314=\"\",\"\",'1. Ordersheet'!O1314)","v":{"$error":"#N/A"}},{"$f":"IF('1. Ordersheet'!P1314=\"\",\"\",'1. Ordersheet'!P1314)","v":{"$error":"#N/A"}},{"$f":"IF('1. Ordersheet'!Q1314=\"\",\"\",'1. Ordersheet'!Q1314)","v":""},{"$f":"IF('1. Ordersheet'!R1314=\"\",\"\",'1. Ordersheet'!R1314)","v":""},{"$f":"IF('1. Ordersheet'!S1314=\"\",\"\",'1. Ordersheet'!S1314)","v":""},{"$f":"IF('1. Ordersheet'!V1314=\"\",\"\",'1. Ordersheet'!V1314)","v":""},{"$f":"IF('1. Ordersheet'!W1314=\"\",\"\",'1. Ordersheet'!W1314)","v":""},{"$f":"IF('1. Ordersheet'!X1314=\"\",\"\",'1. Ordersheet'!X1314)","v":""},{"$f":"IF('1. Ordersheet'!Y1314=\"\",\"\",'1. Ordersheet'!Y1314)","v":""},{"$f":"IF('1. Ordersheet'!Z1314=\"\",\"\",'1. Ordersheet'!Z1314)","v":""},{"$f":"IF('1. Ordersheet'!AA1314=\"\",\"\",'1. Ordersheet'!AA1314)","v":""},null,{"$f":"IF('1. Ordersheet'!AS1314=\"\",\"\",'1. Ordersheet'!AS1314)","v":""},{"$f":"IF('1. Ordersheet'!AT1314=\"\",\"\",'1. Ordersheet'!AT1314)","v":""},null,null,null,null,null,null,null,{"$f":"IF('1. Ordersheet'!AX1314=\"\",\"\",'1. Ordersheet'!AX1314)","v":""},{"$f":"IF('1. Ordersheet'!AY1314=\"\",\"\",'1. Ordersheet'!AY1314)","v":""},{"$f":"IF('1. Ordersheet'!AZ1314=\"\",\"\",'1. Ordersheet'!AZ1314)","v":""},{"$f":"IF('1. Ordersheet'!BA1314=\"\",\"\",'1. Ordersheet'!BA1314)","v":""},{"$f":"IF('1. Ordersheet'!BC1314=\"\",\"\",'1. Ordersheet'!BC1314)","v":""},{"$f":"IF('1. Ordersheet'!BD1314=\"\",\"\",'1. Ordersheet'!BD1314)","v":""},{"$f":"IF('1. Ordersheet'!BE1314=\"\",\"\",'1. Ordersheet'!BE1314)","v":""},{"$f":"IF('1. Ordersheet'!BF1314=\"\",\"\",'1. Ordersheet'!BF1314)","v":""},{"$f":"IF('1. Ordersheet'!BG1314=\"\",\"\",'1. Ordersheet'!BG1314)","v":"ZWO"},{"$f":"IF('1. Ordersheet'!BH1314=\"\",\"\",'1. Ordersheet'!BH1314)","v":""},{"$f":"IF('1. Ordersheet'!BI1314=\"\",\"\",'1. Ordersheet'!BI1314)","v":""},{"$f":"IF('1. Ordersheet'!BJ1314=\"\",\"\",'1. Ordersheet'!BJ1314)","v":""},{"$f":"IF('1. Ordersheet'!BK1314=\"\",\"\",'1. Ordersheet'!BK1314)","v":""},{"$f":"IF('1. Ordersheet'!BL1314=\"\",\"\",'1. Ordersheet'!BL1314)","v":""}]
[{"$f":"IF('1. Ordersheet'!F1315=\"\",\"\",'1. Ordersheet'!F1315)","v":""},{"$f":"IF('1. Ordersheet'!G1315=\"\",\"\",'1. Ordersheet'!G1315)","v":""},{"$f":"IF('1. Ordersheet'!H1315=\"\",\"\",'1. Ordersheet'!H1315)","v":""},{"$f":"IF('1. Ordersheet'!I1315=\"\",\"\",'1. Ordersheet'!I1315)","v":""},{"$f":"IF('1. Ordersheet'!J1315=\"\",\"\",'1. Ordersheet'!J1315)","v":""},{"$f":"IF('1. Ordersheet'!K1315=\"\",\"\",'1. Ordersheet'!K1315)","v":""},{"$f":"IF('1. Ordersheet'!L1315=\"\",\"\",'1. Ordersheet'!L1315)","v":""},{"$f":"IF('1. Ordersheet'!M1315=\"\",\"\",'1. Ordersheet'!M1315)","v":""},{"$f":"IF('1. Ordersheet'!N1315=\"\",\"\",'1. Ordersheet'!N1315)","v":""},{"$f":"IF('1. Ordersheet'!O1315=\"\",\"\",'1. Ordersheet'!O1315)","v":{"$error":"#N/A"}},{"$f":"IF('1. Ordersheet'!P1315=\"\",\"\",'1. Ordersheet'!P1315)","v":{"$error":"#N/A"}},{"$f":"IF('1. Ordersheet'!Q1315=\"\",\"\",'1. Ordersheet'!Q1315)","v":""},{"$f":"IF('1. Ordersheet'!R1315=\"\",\"\",'1. Ordersheet'!R1315)","v":""},{"$f":"IF('1. Ordersheet'!S1315=\"\",\"\",'1. Ordersheet'!S1315)","v":""},{"$f":"IF('1. Ordersheet'!V1315=\"\",\"\",'1. Ordersheet'!V1315)","v":""},{"$f":"IF('1. Ordersheet'!W1315=\"\",\"\",'1. Ordersheet'!W1315)","v":""},{"$f":"IF('1. Ordersheet'!X1315=\"\",\"\",'1. Ordersheet'!X1315)","v":""},{"$f":"IF('1. Ordersheet'!Y1315=\"\",\"\",'1. Ordersheet'!Y1315)","v":""},{"$f":"IF('1. Ordersheet'!Z1315=\"\",\"\",'1. Ordersheet'!Z1315)","v":""},{"$f":"IF('1. Ordersheet'!AA1315=\"\",\"\",'1. Ordersheet'!AA1315)","v":""},null,{"$f":"IF('1. Ordersheet'!AS1315=\"\",\"\",'1. Ordersheet'!AS1315)","v":""},{"$f":"IF('1. Ordersheet'!AT1315=\"\",\"\",'1. Ordersheet'!AT1315)","v":""},null,null,null,null,null,null,null,{"$f":"IF('1. Ordersheet'!AX1315=\"\",\"\",'1. Ordersheet'!AX1315)","v":""},{"$f":"IF('1. Ordersheet'!AY1315=\"\",\"\",'1. Ordersheet'!AY1315)","v":""},{"$f":"IF('1. Ordersheet'!AZ1315=\"\",\"\",'1. Ordersheet'!AZ1315)","v":""},{"$f":"IF('1. Ordersheet'!BA1315=\"\",\"\",'1. Ordersheet'!BA1315)","v":""},{"$f":"IF('1. Ordersheet'!BC1315=\"\",\"\",'1. Ordersheet'!BC1315)","v":""},{"$f":"IF('1. Ordersheet'!BD1315=\"\",\"\",'1. Ordersheet'!BD1315)","v":""},{"$f":"IF('1. Ordersheet'!BE1315=\"\",\"\",'1. Ordersheet'!BE1315)","v":""},{"$f":"IF('1. Ordersheet'!BF1315=\"\",\"\",'1. Ordersheet'!BF1315)","v":""},{"$f":"IF('1. Ordersheet'!BG1315=\"\",\"\",'1. Ordersheet'!BG1315)","v":"ZWO"},{"$f":"IF('1. Ordersheet'!BH1315=\"\",\"\",'1. Ordersheet'!BH1315)","v":""},{"$f":"IF('1. Ordersheet'!BI1315=\"\",\"\",'1. Ordersheet'!BI1315)","v":""},{"$f":"IF('1. Ordersheet'!BJ1315=\"\",\"\",'1. Ordersheet'!BJ1315)","v":""},{"$f":"IF('1. Ordersheet'!BK1315=\"\",\"\",'1. Ordersheet'!BK1315)","v":""},{"$f":"IF('1. Ordersheet'!BL1315=\"\",\"\",'1. Ordersheet'!BL1315)","v":""}]
[{"$f":"IF('1. Ordersheet'!F1316=\"\",\"\",'1. Ordersheet'!F1316)","v":""},{"$f":"IF('1. Ordersheet'!G1316=\"\",\"\",'1. Ordersheet'!G1316)","v":""},{"$f":"IF('1. Ordersheet'!H1316=\"\",\"\",'1. Ordersheet'!H1316)","v":""},{"$f":"IF('1. Ordersheet'!I1316=\"\",\"\",'1. Ordersheet'!I1316)","v":""},{"$f":"IF('1. Ordersheet'!J1316=\"\",\"\",'1. Ordersheet'!J1316)","v":""},{"$f":"IF('1. Ordersheet'!K1316=\"\",\"\",'1. Ordersheet'!K1316)","v":""},{"$f":"IF('1. Ordersheet'!L1316=\"\",\"\",'1. Ordersheet'!L1316)","v":""},{"$f":"IF('1. Ordersheet'!M1316=\"\",\"\",'1. Ordersheet'!M1316)","v":""},{"$f":"IF('1. Ordersheet'!N1316=\"\",\"\",'1. Ordersheet'!N1316)","v":""},{"$f":"IF('1. Ordersheet'!O1316=\"\",\"\",'1. Ordersheet'!O1316)","v":{"$error":"#N/A"}},{"$f":"IF('1. Ordersheet'!P1316=\"\",\"\",'1. Ordersheet'!P1316)","v":{"$error":"#N/A"}},{"$f":"IF('1. Ordersheet'!Q1316=\"\",\"\",'1. Ordersheet'!Q1316)","v":""},{"$f":"IF('1. Ordersheet'!R1316=\"\",\"\",'1. Ordersheet'!R1316)","v":""},{"$f":"IF('1. Ordersheet'!S1316=\"\",\"\",'1. Ordersheet'!S1316)","v":""},{"$f":"IF('1. Ordersheet'!V1316=\"\",\"\",'1. Ordersheet'!V1316)","v":""},{"$f":"IF('1. Ordersheet'!W1316=\"\",\"\",'1. Ordersheet'!W1316)","v":""},{"$f":"IF('1. Ordersheet'!X1316=\"\",\"\",'1. Ordersheet'!X1316)","v":""},{"$f":"IF('1. Ordersheet'!Y1316=\"\",\"\",'1. Ordersheet'!Y1316)","v":""},{"$f":"IF('1. Ordersheet'!Z1316=\"\",\"\",'1. Ordersheet'!Z1316)","v":""},{"$f":"IF('1. Ordersheet'!AA1316=\"\",\"\",'1. Ordersheet'!AA1316)","v":""},null,{"$f":"IF('1. Ordersheet'!AS1316=\"\",\"\",'1. Ordersheet'!AS1316)","v":""},{"$f":"IF('1. Ordersheet'!AT1316=\"\",\"\",'1. Ordersheet'!AT1316)","v":""},null,null,null,null,null,null,null,{"$f":"IF('1. Ordersheet'!AX1316=\"\",\"\",'1. Ordersheet'!AX1316)","v":""},{"$f":"IF('1. Ordersheet'!AY1316=\"\",\"\",'1. Ordersheet'!AY1316)","v":""},{"$f":"IF('1. Ordersheet'!AZ1316=\"\",\"\",'1. Ordersheet'!AZ1316)","v":""},{"$f":"IF('1. Ordersheet'!BA1316=\"\",\"\",'1. Ordersheet'!BA1316)","v":""},{"$f":"IF('1. Ordersheet'!BC1316=\"\",\"\",'1. Ordersheet'!BC1316)","v":""},{"$f":"IF('1. Ordersheet'!BD1316=\"\",\"\",'1. Ordersheet'!BD1316)","v":""},{"$f":"IF('1. Ordersheet'!BE1316=\"\",\"\",'1. Ordersheet'!BE1316)","v":""},{"$f":"IF('1. Ordersheet'!BF1316=\"\",\"\",'1. Ordersheet'!BF1316)","v":""},{"$f":"IF('1. Ordersheet'!BG1316=\"\",\"\",'1. Ordersheet'!BG1316)","v":"ZWO"},{"$f":"IF('1. Ordersheet'!BH1316=\"\",\"\",'1. Ordersheet'!BH1316)","v":""},{"$f":"IF('1. Ordersheet'!BI1316=\"\",\"\",'1. Ordersheet'!BI1316)","v":""},{"$f":"IF('1. Ordersheet'!BJ1316=\"\",\"\",'1. Ordersheet'!BJ1316)","v":""},{"$f":"IF('1. Ordersheet'!BK1316=\"\",\"\",'1. Ordersheet'!BK1316)","v":""},{"$f":"IF('1. Ordersheet'!BL1316=\"\",\"\",'1. Ordersheet'!BL1316)","v":""}]
[{"$f":"IF('1. Ordersheet'!F1317=\"\",\"\",'1. Ordersheet'!F1317)","v":""},{"$f":"IF('1. Ordersheet'!G1317=\"\",\"\",'1. Ordersheet'!G1317)","v":""},{"$f":"IF('1. Ordersheet'!H1317=\"\",\"\",'1. Ordersheet'!H1317)","v":""},{"$f":"IF('1. Ordersheet'!I1317=\"\",\"\",'1. Ordersheet'!I1317)","v":""},{"$f":"IF('1. Ordersheet'!J1317=\"\",\"\",'1. Ordersheet'!J1317)","v":""},{"$f":"IF('1. Ordersheet'!K1317=\"\",\"\",'1. Ordersheet'!K1317)","v":""},{"$f":"IF('1. Ordersheet'!L1317=\"\",\"\",'1. Ordersheet'!L1317)","v":""},{"$f":"IF('1. Ordersheet'!M1317=\"\",\"\",'1. Ordersheet'!M1317)","v":""},{"$f":"IF('1. Ordersheet'!N1317=\"\",\"\",'1. Ordersheet'!N1317)","v":""},{"$f":"IF('1. Ordersheet'!O1317=\"\",\"\",'1. Ordersheet'!O1317)","v":{"$error":"#N/A"}},{"$f":"IF('1. Ordersheet'!P1317=\"\",\"\",'1. Ordersheet'!P1317)","v":{"$error":"#N/A"}},{"$f":"IF('1. Ordersheet'!Q1317=\"\",\"\",'1. Ordersheet'!Q1317)","v":""},{"$f":"IF('1. Ordersheet'!R1317=\"\",\"\",'1. Ordersheet'!R1317)","v":""},{"$f":"IF('1. Ordersheet'!S1317=\"\",\"\",'1. Ordersheet'!S1317)","v":""},{"$f":"IF('1. Ordersheet'!V1317=\"\",\"\",'1. Ordersheet'!V1317)","v":""},{"$f":"IF('1. Ordersheet'!W1317=\"\",\"\",'1. Ordersheet'!W1317)","v":""},{"$f":"IF('1. Ordersheet'!X1317=\"\",\"\",'1. Ordersheet'!X1317)","v":""},{"$f":"IF('1. Ordersheet'!Y1317=\"\",\"\",'1. Ordersheet'!Y1317)","v":""},{"$f":"IF('1. Ordersheet'!Z1317=\"\",\"\",'1. Ordersheet'!Z1317)","v":""},{"$f":"IF('1. Ordersheet'!AA1317=\"\",\"\",'1. Ordersheet'!AA1317)","v":""},null,{"$f":"IF('1. Ordersheet'!AS1317=\"\",\"\",'1. Ordersheet'!AS1317)","v":""},{"$f":"IF('1. Ordersheet'!AT1317=\"\",\"\",'1. Ordersheet'!AT1317)","v":""},null,null,null,null,null,null,null,{"$f":"IF('1. Ordersheet'!AX1317=\"\",\"\",'1. Ordersheet'!AX1317)","v":""},{"$f":"IF('1. Ordersheet'!AY1317=\"\",\"\",'1. Ordersheet'!AY1317)","v":""},{"$f":"IF('1. Ordersheet'!AZ1317=\"\",\"\",'1. Ordersheet'!AZ1317)","v":""},{"$f":"IF('1. Ordersheet'!BA1317=\"\",\"\",'1. Ordersheet'!BA1317)","v":""},{"$f":"IF('1. Ordersheet'!BC1317=\"\",\"\",'1. Ordersheet'!BC1317)","v":""},{"$f":"IF('1. Ordersheet'!BD1317=\"\",\"\",'1. Ordersheet'!BD1317)","v":""},{"$f":"IF('1. Ordersheet'!BE1317=\"\",\"\",'1. Ordersheet'!BE1317)","v":""},{"$f":"IF('1. Ordersheet'!BF1317=\"\",\"\",'1. Ordersheet'!BF1317)","v":""},{"$f":"IF('1. Ordersheet'!BG1317=\"\",\"\",'1. Ordersheet'!BG1317)","v":"ZWO"},{"$f":"IF('1. Ordersheet'!BH1317=\"\",\"\",'1. Ordersheet'!BH1317)","v":""},{"$f":"IF('1. Ordersheet'!BI1317=\"\",\"\",'1. Ordersheet'!BI1317)","v":""},{"$f":"IF('1. Ordersheet'!BJ1317=\"\",\"\",'1. Ordersheet'!BJ1317)","v":""},{"$f":"IF('1. Ordersheet'!BK1317=\"\",\"\",'1. Ordersheet'!BK1317)","v":""},{"$f":"IF('1. Ordersheet'!BL1317=\"\",\"\",'1. Ordersheet'!BL1317)","v":""}]
[{"$f":"IF('1. Ordersheet'!F1318=\"\",\"\",'1. Ordersheet'!F1318)","v":""},{"$f":"IF('1. Ordersheet'!G1318=\"\",\"\",'1. Ordersheet'!G1318)","v":""},{"$f":"IF('1. Ordersheet'!H1318=\"\",\"\",'1. Ordersheet'!H1318)","v":""},{"$f":"IF('1. Ordersheet'!I1318=\"\",\"\",'1. Ordersheet'!I1318)","v":""},{"$f":"IF('1. Ordersheet'!J1318=\"\",\"\",'1. Ordersheet'!J1318)","v":""},{"$f":"IF('1. Ordersheet'!K1318=\"\",\"\",'1. Ordersheet'!K1318)","v":""},{"$f":"IF('1. Ordersheet'!L1318=\"\",\"\",'1. Ordersheet'!L1318)","v":""},{"$f":"IF('1. Ordersheet'!M1318=\"\",\"\",'1. Ordersheet'!M1318)","v":""},{"$f":"IF('1. Ordersheet'!N1318=\"\",\"\",'1. Ordersheet'!N1318)","v":""},{"$f":"IF('1. Ordersheet'!O1318=\"\",\"\",'1. Ordersheet'!O1318)","v":{"$error":"#N/A"}},{"$f":"IF('1. Ordersheet'!P1318=\"\",\"\",'1. Ordersheet'!P1318)","v":{"$error":"#N/A"}},{"$f":"IF('1. Ordersheet'!Q1318=\"\",\"\",'1. Ordersheet'!Q1318)","v":""},{"$f":"IF('1. Ordersheet'!R1318=\"\",\"\",'1. Ordersheet'!R1318)","v":""},{"$f":"IF('1. Ordersheet'!S1318=\"\",\"\",'1. Ordersheet'!S1318)","v":""},{"$f":"IF('1. Ordersheet'!V1318=\"\",\"\",'1. Ordersheet'!V1318)","v":""},{"$f":"IF('1. Ordersheet'!W1318=\"\",\"\",'1. Ordersheet'!W1318)","v":""},{"$f":"IF('1. Ordersheet'!X1318=\"\",\"\",'1. Ordersheet'!X1318)","v":""},{"$f":"IF('1. Ordersheet'!Y1318=\"\",\"\",'1. Ordersheet'!Y1318)","v":""},{"$f":"IF('1. Ordersheet'!Z1318=\"\",\"\",'1. Ordersheet'!Z1318)","v":""},{"$f":"IF('1. Ordersheet'!AA1318=\"\",\"\",'1. Ordersheet'!AA1318)","v":""},null,{"$f":"IF('1. Ordersheet'!AS1318=\"\",\"\",'1. Ordersheet'!AS1318)","v":""},{"$f":"IF('1. Ordersheet'!AT1318=\"\",\"\",'1. Ordersheet'!AT1318)","v":""},null,null,null,null,null,null,null,{"$f":"IF('1. Ordersheet'!AX1318=\"\",\"\",'1. Ordersheet'!AX1318)","v":""},{"$f":"IF('1. Ordersheet'!AY1318=\"\",\"\",'1. Ordersheet'!AY1318)","v":""},{"$f":"IF('1. Ordersheet'!AZ1318=\"\",\"\",'1. Ordersheet'!AZ1318)","v":""},{"$f":"IF('1. Ordersheet'!BA1318=\"\",\"\",'1. Ordersheet'!BA1318)","v":""},{"$f":"IF('1. Ordersheet'!BC1318=\"\",\"\",'1. Ordersheet'!BC1318)","v":""},{"$f":"IF('1. Ordersheet'!BD1318=\"\",\"\",'1. Ordersheet'!BD1318)","v":""},{"$f":"IF('1. Ordersheet'!BE1318=\"\",\"\",'1. Ordersheet'!BE1318)","v":""},{"$f":"IF('1. Ordersheet'!BF1318=\"\",\"\",'1. Ordersheet'!BF1318)","v":""},{"$f":"IF('1. Ordersheet'!BG1318=\"\",\"\",'1. Ordersheet'!BG1318)","v":"ZWO"},{"$f":"IF('1. Ordersheet'!BH1318=\"\",\"\",'1. Ordersheet'!BH1318)","v":""},{"$f":"IF('1. Ordersheet'!BI1318=\"\",\"\",'1. Ordersheet'!BI1318)","v":""},{"$f":"IF('1. Ordersheet'!BJ1318=\"\",\"\",'1. Ordersheet'!BJ1318)","v":""},{"$f":"IF('1. Ordersheet'!BK1318=\"\",\"\",'1. Ordersheet'!BK1318)","v":""},{"$f":"IF('1. Ordersheet'!BL1318=\"\",\"\",'1. Ordersheet'!BL1318)","v":""}]
[{"$f":"IF('1. Ordersheet'!F1319=\"\",\"\",'1. Ordersheet'!F1319)","v":""},{"$f":"IF('1. Ordersheet'!G1319=\"\",\"\",'1. Ordersheet'!G1319)","v":""},{"$f":"IF('1. Ordersheet'!H1319=\"\",\"\",'1. Ordersheet'!H1319)","v":""},{"$f":"IF('1. Ordersheet'!I1319=\"\",\"\",'1. Ordersheet'!I1319)","v":""},{"$f":"IF('1. Ordersheet'!J1319=\"\",\"\",'1. Ordersheet'!J1319)","v":""},{"$f":"IF('1. Ordersheet'!K1319=\"\",\"\",'1. Ordersheet'!K1319)","v":""},{"$f":"IF('1. Ordersheet'!L1319=\"\",\"\",'1. Ordersheet'!L1319)","v":""},{"$f":"IF('1. Ordersheet'!M1319=\"\",\"\",'1. Ordersheet'!M1319)","v":""},{"$f":"IF('1. Ordersheet'!N1319=\"\",\"\",'1. Ordersheet'!N1319)","v":""},{"$f":"IF('1. Ordersheet'!O1319=\"\",\"\",'1. Ordersheet'!O1319)","v":{"$error":"#N/A"}},{"$f":"IF('1. Ordersheet'!P1319=\"\",\"\",'1. Ordersheet'!P1319)","v":{"$error":"#N/A"}},{"$f":"IF('1. Ordersheet'!Q1319=\"\",\"\",'1. Ordersheet'!Q1319)","v":""},{"$f":"IF('1. Ordersheet'!R1319=\"\",\"\",'1. Ordersheet'!R1319)","v":""},{"$f":"IF('1. Ordersheet'!S1319=\"\",\"\",'1. Ordersheet'!S1319)","v":""},{"$f":"IF('1. Ordersheet'!V1319=\"\",\"\",'1. Ordersheet'!V1319)","v":""},{"$f":"IF('1. Ordersheet'!W1319=\"\",\"\",'1. Ordersheet'!W1319)","v":""},{"$f":"IF('1. Ordersheet'!X1319=\"\",\"\",'1. Ordersheet'!X1319)","v":""},{"$f":"IF('1. Ordersheet'!Y1319=\"\",\"\",'1. Ordersheet'!Y1319)","v":""},{"$f":"IF('1. Ordersheet'!Z1319=\"\",\"\",'1. Ordersheet'!Z1319)","v":""},{"$f":"IF('1. Ordersheet'!AA1319=\"\",\"\",'1. Ordersheet'!AA1319)","v":""},null,{"$f":"IF('1. Ordersheet'!AS1319=\"\",\"\",'1. Ordersheet'!AS1319)","v":""},{"$f":"IF('1. Ordersheet'!AT1319=\"\",\"\",'1. Ordersheet'!AT1319)","v":""},null,null,null,null,null,null,null,{"$f":"IF('1. Ordersheet'!AX1319=\"\",\"\",'1. Ordersheet'!AX1319)","v":""},{"$f":"IF('1. Ordersheet'!AY1319=\"\",\"\",'1. Ordersheet'!AY1319)","v":""},{"$f":"IF('1. Ordersheet'!AZ1319=\"\",\"\",'1. Ordersheet'!AZ1319)","v":""},{"$f":"IF('1. Ordersheet'!BA1319=\"\",\"\",'1. Ordersheet'!BA1319)","v":""},{"$f":"IF('1. Ordersheet'!BC1319=\"\",\"\",'1. Ordersheet'!BC1319)","v":""},{"$f":"IF('1. Ordersheet'!BD1319=\"\",\"\",'1. Ordersheet'!BD1319)","v":""},{"$f":"IF('1. Ordersheet'!BE1319=\"\",\"\",'1. Ordersheet'!BE1319)","v":""},{"$f":"IF('1. Ordersheet'!BF1319=\"\",\"\",'1. Ordersheet'!BF1319)","v":""},{"$f":"IF('1. Ordersheet'!BG1319=\"\",\"\",'1. Ordersheet'!BG1319)","v":"ZWO"},{"$f":"IF('1. Ordersheet'!BH1319=\"\",\"\",'1. Ordersheet'!BH1319)","v":""},{"$f":"IF('1. Ordersheet'!BI1319=\"\",\"\",'1. Ordersheet'!BI1319)","v":""},{"$f":"IF('1. Ordersheet'!BJ1319=\"\",\"\",'1. Ordersheet'!BJ1319)","v":""},{"$f":"IF('1. Ordersheet'!BK1319=\"\",\"\",'1. Ordersheet'!BK1319)","v":""},{"$f":"IF('1. Ordersheet'!BL1319=\"\",\"\",'1. Ordersheet'!BL1319)","v":""}]
[{"$f":"IF('1. Ordersheet'!F1320=\"\",\"\",'1. Ordersheet'!F1320)","v":""},{"$f":"IF('1. Ordersheet'!G1320=\"\",\"\",'1. Ordersheet'!G1320)","v":""},{"$f":"IF('1. Ordersheet'!H1320=\"\",\"\",'1. Ordersheet'!H1320)","v":""},{"$f":"IF('1. Ordersheet'!I1320=\"\",\"\",'1. Ordersheet'!I1320)","v":""},{"$f":"IF('1. Ordersheet'!J1320=\"\",\"\",'1. Ordersheet'!J1320)","v":""},{"$f":"IF('1. Ordersheet'!K1320=\"\",\"\",'1. Ordersheet'!K1320)","v":""},{"$f":"IF('1. Ordersheet'!L1320=\"\",\"\",'1. Ordersheet'!L1320)","v":""},{"$f":"IF('1. Ordersheet'!M1320=\"\",\"\",'1. Ordersheet'!M1320)","v":""},{"$f":"IF('1. Ordersheet'!N1320=\"\",\"\",'1. Ordersheet'!N1320)","v":""},{"$f":"IF('1. Ordersheet'!O1320=\"\",\"\",'1. Ordersheet'!O1320)","v":{"$error":"#N/A"}},{"$f":"IF('1. Ordersheet'!P1320=\"\",\"\",'1. Ordersheet'!P1320)","v":{"$error":"#N/A"}},{"$f":"IF('1. Ordersheet'!Q1320=\"\",\"\",'1. Ordersheet'!Q1320)","v":""},{"$f":"IF('1. Ordersheet'!R1320=\"\",\"\",'1. Ordersheet'!R1320)","v":""},{"$f":"IF('1. Ordersheet'!S1320=\"\",\"\",'1. Ordersheet'!S1320)","v":""},{"$f":"IF('1. Ordersheet'!V1320=\"\",\"\",'1. Ordersheet'!V1320)","v":""},{"$f":"IF('1. Ordersheet'!W1320=\"\",\"\",'1. Ordersheet'!W1320)","v":""},{"$f":"IF('1. Ordersheet'!X1320=\"\",\"\",'1. Ordersheet'!X1320)","v":""},{"$f":"IF('1. Ordersheet'!Y1320=\"\",\"\",'1. Ordersheet'!Y1320)","v":""},{"$f":"IF('1. Ordersheet'!Z1320=\"\",\"\",'1. Ordersheet'!Z1320)","v":""},{"$f":"IF('1. Ordersheet'!AA1320=\"\",\"\",'1. Ordersheet'!AA1320)","v":""},null,{"$f":"IF('1. Ordersheet'!AS1320=\"\",\"\",'1. Ordersheet'!AS1320)","v":""},{"$f":"IF('1. Ordersheet'!AT1320=\"\",\"\",'1. Ordersheet'!AT1320)","v":""},null,null,null,null,null,null,null,{"$f":"IF('1. Ordersheet'!AX1320=\"\",\"\",'1. Ordersheet'!AX1320)","v":""},{"$f":"IF('1. Ordersheet'!AY1320=\"\",\"\",'1. Ordersheet'!AY1320)","v":""},{"$f":"IF('1. Ordersheet'!AZ1320=\"\",\"\",'1. Ordersheet'!AZ1320)","v":""},{"$f":"IF('1. Ordersheet'!BA1320=\"\",\"\",'1. Ordersheet'!BA1320)","v":""},{"$f":"IF('1. Ordersheet'!BC1320=\"\",\"\",'1. Ordersheet'!BC1320)","v":""},{"$f":"IF('1. Ordersheet'!BD1320=\"\",\"\",'1. Ordersheet'!BD1320)","v":""},{"$f":"IF('1. Ordersheet'!BE1320=\"\",\"\",'1. Ordersheet'!BE1320)","v":""},{"$f":"IF('1. Ordersheet'!BF1320=\"\",\"\",'1. Ordersheet'!BF1320)","v":""},{"$f":"IF('1. Ordersheet'!BG1320=\"\",\"\",'1. Ordersheet'!BG1320)","v":"ZWO"},{"$f":"IF('1. Ordersheet'!BH1320=\"\",\"\",'1. Ordersheet'!BH1320)","v":""},{"$f":"IF('1. Ordersheet'!BI1320=\"\",\"\",'1. Ordersheet'!BI1320)","v":""},{"$f":"IF('1. Ordersheet'!BJ1320=\"\",\"\",'1. Ordersheet'!BJ1320)","v":""},{"$f":"IF('1. Ordersheet'!BK1320=\"\",\"\",'1. Ordersheet'!BK1320)","v":""},{"$f":"IF('1. Ordersheet'!BL1320=\"\",\"\",'1. Ordersheet'!BL1320)","v":""}]
[{"$f":"IF('1. Ordersheet'!F1321=\"\",\"\",'1. Ordersheet'!F1321)","v":""},{"$f":"IF('1. Ordersheet'!G1321=\"\",\"\",'1. Ordersheet'!G1321)","v":""},{"$f":"IF('1. Ordersheet'!H1321=\"\",\"\",'1. Ordersheet'!H1321)","v":""},{"$f":"IF('1. Ordersheet'!I1321=\"\",\"\",'1. Ordersheet'!I1321)","v":""},{"$f":"IF('1. Ordersheet'!J1321=\"\",\"\",'1. Ordersheet'!J1321)","v":""},{"$f":"IF('1. Ordersheet'!K1321=\"\",\"\",'1. Ordersheet'!K1321)","v":""},{"$f":"IF('1. Ordersheet'!L1321=\"\",\"\",'1. Ordersheet'!L1321)","v":""},{"$f":"IF('1. Ordersheet'!M1321=\"\",\"\",'1. Ordersheet'!M1321)","v":""},{"$f":"IF('1. Ordersheet'!N1321=\"\",\"\",'1. Ordersheet'!N1321)","v":""},{"$f":"IF('1. Ordersheet'!O1321=\"\",\"\",'1. Ordersheet'!O1321)","v":{"$error":"#N/A"}},{"$f":"IF('1. Ordersheet'!P1321=\"\",\"\",'1. Ordersheet'!P1321)","v":{"$error":"#N/A"}},{"$f":"IF('1. Ordersheet'!Q1321=\"\",\"\",'1. Ordersheet'!Q1321)","v":""},{"$f":"IF('1. Ordersheet'!R1321=\"\",\"\",'1. Ordersheet'!R1321)","v":""},{"$f":"IF('1. Ordersheet'!S1321=\"\",\"\",'1. Ordersheet'!S1321)","v":""},{"$f":"IF('1. Ordersheet'!V1321=\"\",\"\",'1. Ordersheet'!V1321)","v":""},{"$f":"IF('1. Ordersheet'!W1321=\"\",\"\",'1. Ordersheet'!W1321)","v":""},{"$f":"IF('1. Ordersheet'!X1321=\"\",\"\",'1. Ordersheet'!X1321)","v":""},{"$f":"IF('1. Ordersheet'!Y1321=\"\",\"\",'1. Ordersheet'!Y1321)","v":""},{"$f":"IF('1. Ordersheet'!Z1321=\"\",\"\",'1. Ordersheet'!Z1321)","v":""},{"$f":"IF('1. Ordersheet'!AA1321=\"\",\"\",'1. Ordersheet'!AA1321)","v":""},null,{"$f":"IF('1. Ordersheet'!AS1321=\"\",\"\",'1. Ordersheet'!AS1321)","v":""},{"$f":"IF('1. Ordersheet'!AT1321=\"\",\"\",'1. Ordersheet'!AT1321)","v":""},null,null,null,null,null,null,null,{"$f":"IF('1. Ordersheet'!AX1321=\"\",\"\",'1. Ordersheet'!AX1321)","v":""},{"$f":"IF('1. Ordersheet'!AY1321=\"\",\"\",'1. Ordersheet'!AY1321)","v":""},{"$f":"IF('1. Ordersheet'!AZ1321=\"\",\"\",'1. Ordersheet'!AZ1321)","v":""},{"$f":"IF('1. Ordersheet'!BA1321=\"\",\"\",'1. Ordersheet'!BA1321)","v":""},{"$f":"IF('1. Ordersheet'!BC1321=\"\",\"\",'1. Ordersheet'!BC1321)","v":""},{"$f":"IF('1. Ordersheet'!BD1321=\"\",\"\",'1. Ordersheet'!BD1321)","v":""},{"$f":"IF('1. Ordersheet'!BE1321=\"\",\"\",'1. Ordersheet'!BE1321)","v":""},{"$f":"IF('1. Ordersheet'!BF1321=\"\",\"\",'1. Ordersheet'!BF1321)","v":""},{"$f":"IF('1. Ordersheet'!BG1321=\"\",\"\",'1. Ordersheet'!BG1321)","v":"ZWO"},{"$f":"IF('1. Ordersheet'!BH1321=\"\",\"\",'1. Ordersheet'!BH1321)","v":""},{"$f":"IF('1. Ordersheet'!BI1321=\"\",\"\",'1. Ordersheet'!BI1321)","v":""},{"$f":"IF('1. Ordersheet'!BJ1321=\"\",\"\",'1. Ordersheet'!BJ1321)","v":""},{"$f":"IF('1. Ordersheet'!BK1321=\"\",\"\",'1. Ordersheet'!BK1321)","v":""},{"$f":"IF('1. Ordersheet'!BL1321=\"\",\"\",'1. Ordersheet'!BL1321)","v":""}]
[{"$f":"IF('1. Ordersheet'!F1322=\"\",\"\",'1. Ordersheet'!F1322)","v":""},{"$f":"IF('1. Ordersheet'!G1322=\"\",\"\",'1. Ordersheet'!G1322)","v":""},{"$f":"IF('1. Ordersheet'!H1322=\"\",\"\",'1. Ordersheet'!H1322)","v":""},{"$f":"IF('1. Ordersheet'!I1322=\"\",\"\",'1. Ordersheet'!I1322)","v":""},{"$f":"IF('1. Ordersheet'!J1322=\"\",\"\",'1. Ordersheet'!J1322)","v":""},{"$f":"IF('1. Ordersheet'!K1322=\"\",\"\",'1. Ordersheet'!K1322)","v":""},{"$f":"IF('1. Ordersheet'!L1322=\"\",\"\",'1. Ordersheet'!L1322)","v":""},{"$f":"IF('1. Ordersheet'!M1322=\"\",\"\",'1. Ordersheet'!M1322)","v":""},{"$f":"IF('1. Ordersheet'!N1322=\"\",\"\",'1. Ordersheet'!N1322)","v":""},{"$f":"IF('1. Ordersheet'!O1322=\"\",\"\",'1. Ordersheet'!O1322)","v":{"$error":"#N/A"}},{"$f":"IF('1. Ordersheet'!P1322=\"\",\"\",'1. Ordersheet'!P1322)","v":{"$error":"#N/A"}},{"$f":"IF('1. Ordersheet'!Q1322=\"\",\"\",'1. Ordersheet'!Q1322)","v":""},{"$f":"IF('1. Ordersheet'!R1322=\"\",\"\",'1. Ordersheet'!R1322)","v":""},{"$f":"IF('1. Ordersheet'!S1322=\"\",\"\",'1. Ordersheet'!S1322)","v":""},{"$f":"IF('1. Ordersheet'!V1322=\"\",\"\",'1. Ordersheet'!V1322)","v":""},{"$f":"IF('1. Ordersheet'!W1322=\"\",\"\",'1. Ordersheet'!W1322)","v":""},{"$f":"IF('1. Ordersheet'!X1322=\"\",\"\",'1. Ordersheet'!X1322)","v":""},{"$f":"IF('1. Ordersheet'!Y1322=\"\",\"\",'1. Ordersheet'!Y1322)","v":""},{"$f":"IF('1. Ordersheet'!Z1322=\"\",\"\",'1. Ordersheet'!Z1322)","v":""},{"$f":"IF('1. Ordersheet'!AA1322=\"\",\"\",'1. Ordersheet'!AA1322)","v":""},null,{"$f":"IF('1. Ordersheet'!AS1322=\"\",\"\",'1. Ordersheet'!AS1322)","v":""},{"$f":"IF('1. Ordersheet'!AT1322=\"\",\"\",'1. Ordersheet'!AT1322)","v":""},null,null,null,null,null,null,null,{"$f":"IF('1. Ordersheet'!AX1322=\"\",\"\",'1. Ordersheet'!AX1322)","v":""},{"$f":"IF('1. Ordersheet'!AY1322=\"\",\"\",'1. Ordersheet'!AY1322)","v":""},{"$f":"IF('1. Ordersheet'!AZ1322=\"\",\"\",'1. Ordersheet'!AZ1322)","v":""},{"$f":"IF('1. Ordersheet'!BA1322=\"\",\"\",'1. Ordersheet'!BA1322)","v":""},{"$f":"IF('1. Ordersheet'!BC1322=\"\",\"\",'1. Ordersheet'!BC1322)","v":""},{"$f":"IF('1. Ordersheet'!BD1322=\"\",\"\",'1. Ordersheet'!BD1322)","v":""},{"$f":"IF('1. Ordersheet'!BE1322=\"\",\"\",'1. Ordersheet'!BE1322)","v":""},{"$f":"IF('1. Ordersheet'!BF1322=\"\",\"\",'1. Ordersheet'!BF1322)","v":""},{"$f":"IF('1. Ordersheet'!BG1322=\"\",\"\",'1. Ordersheet'!BG1322)","v":"ZWO"},{"$f":"IF('1. Ordersheet'!BH1322=\"\",\"\",'1. Ordersheet'!BH1322)","v":""},{"$f":"IF('1. Ordersheet'!BI1322=\"\",\"\",'1. Ordersheet'!BI1322)","v":""},{"$f":"IF('1. Ordersheet'!BJ1322=\"\",\"\",'1. Ordersheet'!BJ1322)","v":""},{"$f":"IF('1. Ordersheet'!BK1322=\"\",\"\",'1. Ordersheet'!BK1322)","v":""},{"$f":"IF('1. Ordersheet'!BL1322=\"\",\"\",'1. Ordersheet'!BL1322)","v":""}]
[{"$f":"IF('1. Ordersheet'!F1323=\"\",\"\",'1. Ordersheet'!F1323)","v":""},{"$f":"IF('1. Ordersheet'!G1323=\"\",\"\",'1. Ordersheet'!G1323)","v":""},{"$f":"IF('1. Ordersheet'!H1323=\"\",\"\",'1. Ordersheet'!H1323)","v":""},{"$f":"IF('1. Ordersheet'!I1323=\"\",\"\",'1. Ordersheet'!I1323)","v":""},{"$f":"IF('1. Ordersheet'!J1323=\"\",\"\",'1. Ordersheet'!J1323)","v":""},{"$f":"IF('1. Ordersheet'!K1323=\"\",\"\",'1. Ordersheet'!K1323)","v":""},{"$f":"IF('1. Ordersheet'!L1323=\"\",\"\",'1. Ordersheet'!L1323)","v":""},{"$f":"IF('1. Ordersheet'!M1323=\"\",\"\",'1. Ordersheet'!M1323)","v":""},{"$f":"IF('1. Ordersheet'!N1323=\"\",\"\",'1. Ordersheet'!N1323)","v":""},{"$f":"IF('1. Ordersheet'!O1323=\"\",\"\",'1. Ordersheet'!O1323)","v":{"$error":"#N/A"}},{"$f":"IF('1. Ordersheet'!P1323=\"\",\"\",'1. Ordersheet'!P1323)","v":{"$error":"#N/A"}},{"$f":"IF('1. Ordersheet'!Q1323=\"\",\"\",'1. Ordersheet'!Q1323)","v":""},{"$f":"IF('1. Ordersheet'!R1323=\"\",\"\",'1. Ordersheet'!R1323)","v":""},{"$f":"IF('1. Ordersheet'!S1323=\"\",\"\",'1. Ordersheet'!S1323)","v":""},{"$f":"IF('1. Ordersheet'!V1323=\"\",\"\",'1. Ordersheet'!V1323)","v":""},{"$f":"IF('1. Ordersheet'!W1323=\"\",\"\",'1. Ordersheet'!W1323)","v":""},{"$f":"IF('1. Ordersheet'!X1323=\"\",\"\",'1. Ordersheet'!X1323)","v":""},{"$f":"IF('1. Ordersheet'!Y1323=\"\",\"\",'1. Ordersheet'!Y1323)","v":""},{"$f":"IF('1. Ordersheet'!Z1323=\"\",\"\",'1. Ordersheet'!Z1323)","v":""},{"$f":"IF('1. Ordersheet'!AA1323=\"\",\"\",'1. Ordersheet'!AA1323)","v":""},null,{"$f":"IF('1. Ordersheet'!AS1323=\"\",\"\",'1. Ordersheet'!AS1323)","v":""},{"$f":"IF('1. Ordersheet'!AT1323=\"\",\"\",'1. Ordersheet'!AT1323)","v":""},null,null,null,null,null,null,null,{"$f":"IF('1. Ordersheet'!AX1323=\"\",\"\",'1. Ordersheet'!AX1323)","v":""},{"$f":"IF('1. Ordersheet'!AY1323=\"\",\"\",'1. Ordersheet'!AY1323)","v":""},{"$f":"IF('1. Ordersheet'!AZ1323=\"\",\"\",'1. Ordersheet'!AZ1323)","v":""},{"$f":"IF('1. Ordersheet'!BA1323=\"\",\"\",'1. Ordersheet'!BA1323)","v":""},{"$f":"IF('1. Ordersheet'!BC1323=\"\",\"\",'1. Ordersheet'!BC1323)","v":""},{"$f":"IF('1. Ordersheet'!BD1323=\"\",\"\",'1. Ordersheet'!BD1323)","v":""},{"$f":"IF('1. Ordersheet'!BE1323=\"\",\"\",'1. Ordersheet'!BE1323)","v":""},{"$f":"IF('1. Ordersheet'!BF1323=\"\",\"\",'1. Ordersheet'!BF1323)","v":""},{"$f":"IF('1. Ordersheet'!BG1323=\"\",\"\",'1. Ordersheet'!BG1323)","v":"ZWO"},{"$f":"IF('1. Ordersheet'!BH1323=\"\",\"\",'1. Ordersheet'!BH1323)","v":""},{"$f":"IF('1. Ordersheet'!BI1323=\"\",\"\",'1. Ordersheet'!BI1323)","v":""},{"$f":"IF('1. Ordersheet'!BJ1323=\"\",\"\",'1. Ordersheet'!BJ1323)","v":""},{"$f":"IF('1. Ordersheet'!BK1323=\"\",\"\",'1. Ordersheet'!BK1323)","v":""},{"$f":"IF('1. Ordersheet'!BL1323=\"\",\"\",'1. Ordersheet'!BL1323)","v":""}]
[{"$f":"IF('1. Ordersheet'!F1324=\"\",\"\",'1. Ordersheet'!F1324)","v":""},{"$f":"IF('1. Ordersheet'!G1324=\"\",\"\",'1. Ordersheet'!G1324)","v":""},{"$f":"IF('1. Ordersheet'!H1324=\"\",\"\",'1. Ordersheet'!H1324)","v":""},{"$f":"IF('1. Ordersheet'!I1324=\"\",\"\",'1. Ordersheet'!I1324)","v":""},{"$f":"IF('1. Ordersheet'!J1324=\"\",\"\",'1. Ordersheet'!J1324)","v":""},{"$f":"IF('1. Ordersheet'!K1324=\"\",\"\",'1. Ordersheet'!K1324)","v":""},{"$f":"IF('1. Ordersheet'!L1324=\"\",\"\",'1. Ordersheet'!L1324)","v":""},{"$f":"IF('1. Ordersheet'!M1324=\"\",\"\",'1. Ordersheet'!M1324)","v":""},{"$f":"IF('1. Ordersheet'!N1324=\"\",\"\",'1. Ordersheet'!N1324)","v":""},{"$f":"IF('1. Ordersheet'!O1324=\"\",\"\",'1. Ordersheet'!O1324)","v":{"$error":"#N/A"}},{"$f":"IF('1. Ordersheet'!P1324=\"\",\"\",'1. Ordersheet'!P1324)","v":{"$error":"#N/A"}},{"$f":"IF('1. Ordersheet'!Q1324=\"\",\"\",'1. Ordersheet'!Q1324)","v":""},{"$f":"IF('1. Ordersheet'!R1324=\"\",\"\",'1. Ordersheet'!R1324)","v":""},{"$f":"IF('1. Ordersheet'!S1324=\"\",\"\",'1. Ordersheet'!S1324)","v":""},{"$f":"IF('1. Ordersheet'!V1324=\"\",\"\",'1. Ordersheet'!V1324)","v":""},{"$f":"IF('1. Ordersheet'!W1324=\"\",\"\",'1. Ordersheet'!W1324)","v":""},{"$f":"IF('1. Ordersheet'!X1324=\"\",\"\",'1. Ordersheet'!X1324)","v":""},{"$f":"IF('1. Ordersheet'!Y1324=\"\",\"\",'1. Ordersheet'!Y1324)","v":""},{"$f":"IF('1. Ordersheet'!Z1324=\"\",\"\",'1. Ordersheet'!Z1324)","v":""},{"$f":"IF('1. Ordersheet'!AA1324=\"\",\"\",'1. Ordersheet'!AA1324)","v":""},null,{"$f":"IF('1. Ordersheet'!AS1324=\"\",\"\",'1. Ordersheet'!AS1324)","v":""},{"$f":"IF('1. Ordersheet'!AT1324=\"\",\"\",'1. Ordersheet'!AT1324)","v":""},null,null,null,null,null,null,null,{"$f":"IF('1. Ordersheet'!AX1324=\"\",\"\",'1. Ordersheet'!AX1324)","v":""},{"$f":"IF('1. Ordersheet'!AY1324=\"\",\"\",'1. Ordersheet'!AY1324)","v":""},{"$f":"IF('1. Ordersheet'!AZ1324=\"\",\"\",'1. Ordersheet'!AZ1324)","v":""},{"$f":"IF('1. Ordersheet'!BA1324=\"\",\"\",'1. Ordersheet'!BA1324)","v":""},{"$f":"IF('1. Ordersheet'!BC1324=\"\",\"\",'1. Ordersheet'!BC1324)","v":""},{"$f":"IF('1. Ordersheet'!BD1324=\"\",\"\",'1. Ordersheet'!BD1324)","v":""},{"$f":"IF('1. Ordersheet'!BE1324=\"\",\"\",'1. Ordersheet'!BE1324)","v":""},{"$f":"IF('1. Ordersheet'!BF1324=\"\",\"\",'1. Ordersheet'!BF1324)","v":""},{"$f":"IF('1. Ordersheet'!BG1324=\"\",\"\",'1. Ordersheet'!BG1324)","v":"ZWO"},{"$f":"IF('1. Ordersheet'!BH1324=\"\",\"\",'1. Ordersheet'!BH1324)","v":""},{"$f":"IF('1. Ordersheet'!BI1324=\"\",\"\",'1. Ordersheet'!BI1324)","v":""},{"$f":"IF('1. Ordersheet'!BJ1324=\"\",\"\",'1. Ordersheet'!BJ1324)","v":""},{"$f":"IF('1. Ordersheet'!BK1324=\"\",\"\",'1. Ordersheet'!BK1324)","v":""},{"$f":"IF('1. Ordersheet'!BL1324=\"\",\"\",'1. Ordersheet'!BL1324)","v":""}]
[{"$f":"IF('1. Ordersheet'!F1325=\"\",\"\",'1. Ordersheet'!F1325)","v":""},{"$f":"IF('1. Ordersheet'!G1325=\"\",\"\",'1. Ordersheet'!G1325)","v":""},{"$f":"IF('1. Ordersheet'!H1325=\"\",\"\",'1. Ordersheet'!H1325)","v":""},{"$f":"IF('1. Ordersheet'!I1325=\"\",\"\",'1. Ordersheet'!I1325)","v":""},{"$f":"IF('1. Ordersheet'!J1325=\"\",\"\",'1. Ordersheet'!J1325)","v":""},{"$f":"IF('1. Ordersheet'!K1325=\"\",\"\",'1. Ordersheet'!K1325)","v":""},{"$f":"IF('1. Ordersheet'!L1325=\"\",\"\",'1. Ordersheet'!L1325)","v":""},{"$f":"IF('1. Ordersheet'!M1325=\"\",\"\",'1. Ordersheet'!M1325)","v":""},{"$f":"IF('1. Ordersheet'!N1325=\"\",\"\",'1. Ordersheet'!N1325)","v":""},{"$f":"IF('1. Ordersheet'!O1325=\"\",\"\",'1. Ordersheet'!O1325)","v":{"$error":"#N/A"}},{"$f":"IF('1. Ordersheet'!P1325=\"\",\"\",'1. Ordersheet'!P1325)","v":{"$error":"#N/A"}},{"$f":"IF('1. Ordersheet'!Q1325=\"\",\"\",'1. Ordersheet'!Q1325)","v":""},{"$f":"IF('1. Ordersheet'!R1325=\"\",\"\",'1. Ordersheet'!R1325)","v":""},{"$f":"IF('1. Ordersheet'!S1325=\"\",\"\",'1. Ordersheet'!S1325)","v":""},{"$f":"IF('1. Ordersheet'!V1325=\"\",\"\",'1. Ordersheet'!V1325)","v":""},{"$f":"IF('1. Ordersheet'!W1325=\"\",\"\",'1. Ordersheet'!W1325)","v":""},{"$f":"IF('1. Ordersheet'!X1325=\"\",\"\",'1. Ordersheet'!X1325)","v":""},{"$f":"IF('1. Ordersheet'!Y1325=\"\",\"\",'1. Ordersheet'!Y1325)","v":""},{"$f":"IF('1. Ordersheet'!Z1325=\"\",\"\",'1. Ordersheet'!Z1325)","v":""},{"$f":"IF('1. Ordersheet'!AA1325=\"\",\"\",'1. Ordersheet'!AA1325)","v":""},null,{"$f":"IF('1. Ordersheet'!AS1325=\"\",\"\",'1. Ordersheet'!AS1325)","v":""},{"$f":"IF('1. Ordersheet'!AT1325=\"\",\"\",'1. Ordersheet'!AT1325)","v":""},null,null,null,null,null,null,null,{"$f":"IF('1. Ordersheet'!AX1325=\"\",\"\",'1. Ordersheet'!AX1325)","v":""},{"$f":"IF('1. Ordersheet'!AY1325=\"\",\"\",'1. Ordersheet'!AY1325)","v":""},{"$f":"IF('1. Ordersheet'!AZ1325=\"\",\"\",'1. Ordersheet'!AZ1325)","v":""},{"$f":"IF('1. Ordersheet'!BA1325=\"\",\"\",'1. Ordersheet'!BA1325)","v":""},{"$f":"IF('1. Ordersheet'!BC1325=\"\",\"\",'1. Ordersheet'!BC1325)","v":""},{"$f":"IF('1. Ordersheet'!BD1325=\"\",\"\",'1. Ordersheet'!BD1325)","v":""},{"$f":"IF('1. Ordersheet'!BE1325=\"\",\"\",'1. Ordersheet'!BE1325)","v":""},{"$f":"IF('1. Ordersheet'!BF1325=\"\",\"\",'1. Ordersheet'!BF1325)","v":""},{"$f":"IF('1. Ordersheet'!BG1325=\"\",\"\",'1. Ordersheet'!BG1325)","v":"ZWO"},{"$f":"IF('1. Ordersheet'!BH1325=\"\",\"\",'1. Ordersheet'!BH1325)","v":""},{"$f":"IF('1. Ordersheet'!BI1325=\"\",\"\",'1. Ordersheet'!BI1325)","v":""},{"$f":"IF('1. Ordersheet'!BJ1325=\"\",\"\",'1. Ordersheet'!BJ1325)","v":""},{"$f":"IF('1. Ordersheet'!BK1325=\"\",\"\",'1. Ordersheet'!BK1325)","v":""},{"$f":"IF('1. Ordersheet'!BL1325=\"\",\"\",'1. Ordersheet'!BL1325)","v":""}]
[{"$f":"IF('1. Ordersheet'!F1326=\"\",\"\",'1. Ordersheet'!F1326)","v":""},{"$f":"IF('1. Ordersheet'!G1326=\"\",\"\",'1. Ordersheet'!G1326)","v":""},{"$f":"IF('1. Ordersheet'!H1326=\"\",\"\",'1. Ordersheet'!H1326)","v":""},{"$f":"IF('1. Ordersheet'!I1326=\"\",\"\",'1. Ordersheet'!I1326)","v":""},{"$f":"IF('1. Ordersheet'!J1326=\"\",\"\",'1. Ordersheet'!J1326)","v":""},{"$f":"IF('1. Ordersheet'!K1326=\"\",\"\",'1. Ordersheet'!K1326)","v":""},{"$f":"IF('1. Ordersheet'!L1326=\"\",\"\",'1. Ordersheet'!L1326)","v":""},{"$f":"IF('1. Ordersheet'!M1326=\"\",\"\",'1. Ordersheet'!M1326)","v":""},{"$f":"IF('1. Ordersheet'!N1326=\"\",\"\",'1. Ordersheet'!N1326)","v":""},{"$f":"IF('1. Ordersheet'!O1326=\"\",\"\",'1. Ordersheet'!O1326)","v":{"$error":"#N/A"}},{"$f":"IF('1. Ordersheet'!P1326=\"\",\"\",'1. Ordersheet'!P1326)","v":{"$error":"#N/A"}},{"$f":"IF('1. Ordersheet'!Q1326=\"\",\"\",'1. Ordersheet'!Q1326)","v":""},{"$f":"IF('1. Ordersheet'!R1326=\"\",\"\",'1. Ordersheet'!R1326)","v":""},{"$f":"IF('1. Ordersheet'!S1326=\"\",\"\",'1. Ordersheet'!S1326)","v":""},{"$f":"IF('1. Ordersheet'!V1326=\"\",\"\",'1. Ordersheet'!V1326)","v":""},{"$f":"IF('1. Ordersheet'!W1326=\"\",\"\",'1. Ordersheet'!W1326)","v":""},{"$f":"IF('1. Ordersheet'!X1326=\"\",\"\",'1. Ordersheet'!X1326)","v":""},{"$f":"IF('1. Ordersheet'!Y1326=\"\",\"\",'1. Ordersheet'!Y1326)","v":""},{"$f":"IF('1. Ordersheet'!Z1326=\"\",\"\",'1. Ordersheet'!Z1326)","v":""},{"$f":"IF('1. Ordersheet'!AA1326=\"\",\"\",'1. Ordersheet'!AA1326)","v":""},null,{"$f":"IF('1. Ordersheet'!AS1326=\"\",\"\",'1. Ordersheet'!AS1326)","v":""},{"$f":"IF('1. Ordersheet'!AT1326=\"\",\"\",'1. Ordersheet'!AT1326)","v":""},null,null,null,null,null,null,null,{"$f":"IF('1. Ordersheet'!AX1326=\"\",\"\",'1. Ordersheet'!AX1326)","v":""},{"$f":"IF('1. Ordersheet'!AY1326=\"\",\"\",'1. Ordersheet'!AY1326)","v":""},{"$f":"IF('1. Ordersheet'!AZ1326=\"\",\"\",'1. Ordersheet'!AZ1326)","v":""},{"$f":"IF('1. Ordersheet'!BA1326=\"\",\"\",'1. Ordersheet'!BA1326)","v":""},{"$f":"IF('1. Ordersheet'!BC1326=\"\",\"\",'1. Ordersheet'!BC1326)","v":""},{"$f":"IF('1. Ordersheet'!BD1326=\"\",\"\",'1. Ordersheet'!BD1326)","v":""},{"$f":"IF('1. Ordersheet'!BE1326=\"\",\"\",'1. Ordersheet'!BE1326)","v":""},{"$f":"IF('1. Ordersheet'!BF1326=\"\",\"\",'1. Ordersheet'!BF1326)","v":""},{"$f":"IF('1. Ordersheet'!BG1326=\"\",\"\",'1. Ordersheet'!BG1326)","v":"ZWO"},{"$f":"IF('1. Ordersheet'!BH1326=\"\",\"\",'1. Ordersheet'!BH1326)","v":""},{"$f":"IF('1. Ordersheet'!BI1326=\"\",\"\",'1. Ordersheet'!BI1326)","v":""},{"$f":"IF('1. Ordersheet'!BJ1326=\"\",\"\",'1. Ordersheet'!BJ1326)","v":""},{"$f":"IF('1. Ordersheet'!BK1326=\"\",\"\",'1. Ordersheet'!BK1326)","v":""},{"$f":"IF('1. Ordersheet'!BL1326=\"\",\"\",'1. Ordersheet'!BL1326)","v":""}]
[{"$f":"IF('1. Ordersheet'!F1327=\"\",\"\",'1. Ordersheet'!F1327)","v":""},{"$f":"IF('1. Ordersheet'!G1327=\"\",\"\",'1. Ordersheet'!G1327)","v":""},{"$f":"IF('1. Ordersheet'!H1327=\"\",\"\",'1. Ordersheet'!H1327)","v":""},{"$f":"IF('1. Ordersheet'!I1327=\"\",\"\",'1. Ordersheet'!I1327)","v":""},{"$f":"IF('1. Ordersheet'!J1327=\"\",\"\",'1. Ordersheet'!J1327)","v":""},{"$f":"IF('1. Ordersheet'!K1327=\"\",\"\",'1. Ordersheet'!K1327)","v":""},{"$f":"IF('1. Ordersheet'!L1327=\"\",\"\",'1. Ordersheet'!L1327)","v":""},{"$f":"IF('1. Ordersheet'!M1327=\"\",\"\",'1. Ordersheet'!M1327)","v":""},{"$f":"IF('1. Ordersheet'!N1327=\"\",\"\",'1. Ordersheet'!N1327)","v":""},{"$f":"IF('1. Ordersheet'!O1327=\"\",\"\",'1. Ordersheet'!O1327)","v":{"$error":"#N/A"}},{"$f":"IF('1. Ordersheet'!P1327=\"\",\"\",'1. Ordersheet'!P1327)","v":{"$error":"#N/A"}},{"$f":"IF('1. Ordersheet'!Q1327=\"\",\"\",'1. Ordersheet'!Q1327)","v":""},{"$f":"IF('1. Ordersheet'!R1327=\"\",\"\",'1. Ordersheet'!R1327)","v":""},{"$f":"IF('1. Ordersheet'!S1327=\"\",\"\",'1. Ordersheet'!S1327)","v":""},{"$f":"IF('1. Ordersheet'!V1327=\"\",\"\",'1. Ordersheet'!V1327)","v":""},{"$f":"IF('1. Ordersheet'!W1327=\"\",\"\",'1. Ordersheet'!W1327)","v":""},{"$f":"IF('1. Ordersheet'!X1327=\"\",\"\",'1. Ordersheet'!X1327)","v":""},{"$f":"IF('1. Ordersheet'!Y1327=\"\",\"\",'1. Ordersheet'!Y1327)","v":""},{"$f":"IF('1. Ordersheet'!Z1327=\"\",\"\",'1. Ordersheet'!Z1327)","v":""},{"$f":"IF('1. Ordersheet'!AA1327=\"\",\"\",'1. Ordersheet'!AA1327)","v":""},null,{"$f":"IF('1. Ordersheet'!AS1327=\"\",\"\",'1. Ordersheet'!AS1327)","v":""},{"$f":"IF('1. Ordersheet'!AT1327=\"\",\"\",'1. Ordersheet'!AT1327)","v":""},null,null,null,null,null,null,null,{"$f":"IF('1. Ordersheet'!AX1327=\"\",\"\",'1. Ordersheet'!AX1327)","v":""},{"$f":"IF('1. Ordersheet'!AY1327=\"\",\"\",'1. Ordersheet'!AY1327)","v":""},{"$f":"IF('1. Ordersheet'!AZ1327=\"\",\"\",'1. Ordersheet'!AZ1327)","v":""},{"$f":"IF('1. Ordersheet'!BA1327=\"\",\"\",'1. Ordersheet'!BA1327)","v":""},{"$f":"IF('1. Ordersheet'!BC1327=\"\",\"\",'1. Ordersheet'!BC1327)","v":""},{"$f":"IF('1. Ordersheet'!BD1327=\"\",\"\",'1. Ordersheet'!BD1327)","v":""},{"$f":"IF('1. Ordersheet'!BE1327=\"\",\"\",'1. Ordersheet'!BE1327)","v":""},{"$f":"IF('1. Ordersheet'!BF1327=\"\",\"\",'1. Ordersheet'!BF1327)","v":""},{"$f":"IF('1. Ordersheet'!BG1327=\"\",\"\",'1. Ordersheet'!BG1327)","v":"ZWO"},{"$f":"IF('1. Ordersheet'!BH1327=\"\",\"\",'1. Ordersheet'!BH1327)","v":""},{"$f":"IF('1. Ordersheet'!BI1327=\"\",\"\",'1. Ordersheet'!BI1327)","v":""},{"$f":"IF('1. Ordersheet'!BJ1327=\"\",\"\",'1. Ordersheet'!BJ1327)","v":""},{"$f":"IF('1. Ordersheet'!BK1327=\"\",\"\",'1. Ordersheet'!BK1327)","v":""},{"$f":"IF('1. Ordersheet'!BL1327=\"\",\"\",'1. Ordersheet'!BL1327)","v":""}]
[{"$f":"IF('1. Ordersheet'!F1328=\"\",\"\",'1. Ordersheet'!F1328)","v":""},{"$f":"IF('1. Ordersheet'!G1328=\"\",\"\",'1. Ordersheet'!G1328)","v":""},{"$f":"IF('1. Ordersheet'!H1328=\"\",\"\",'1. Ordersheet'!H1328)","v":""},{"$f":"IF('1. Ordersheet'!I1328=\"\",\"\",'1. Ordersheet'!I1328)","v":""},{"$f":"IF('1. Ordersheet'!J1328=\"\",\"\",'1. Ordersheet'!J1328)","v":""},{"$f":"IF('1. Ordersheet'!K1328=\"\",\"\",'1. Ordersheet'!K1328)","v":""},{"$f":"IF('1. Ordersheet'!L1328=\"\",\"\",'1. Ordersheet'!L1328)","v":""},{"$f":"IF('1. Ordersheet'!M1328=\"\",\"\",'1. Ordersheet'!M1328)","v":""},{"$f":"IF('1. Ordersheet'!N1328=\"\",\"\",'1. Ordersheet'!N1328)","v":""},{"$f":"IF('1. Ordersheet'!O1328=\"\",\"\",'1. Ordersheet'!O1328)","v":{"$error":"#N/A"}},{"$f":"IF('1. Ordersheet'!P1328=\"\",\"\",'1. Ordersheet'!P1328)","v":{"$error":"#N/A"}},{"$f":"IF('1. Ordersheet'!Q1328=\"\",\"\",'1. Ordersheet'!Q1328)","v":""},{"$f":"IF('1. Ordersheet'!R1328=\"\",\"\",'1. Ordersheet'!R1328)","v":""},{"$f":"IF('1. Ordersheet'!S1328=\"\",\"\",'1. Ordersheet'!S1328)","v":""},{"$f":"IF('1. Ordersheet'!V1328=\"\",\"\",'1. Ordersheet'!V1328)","v":""},{"$f":"IF('1. Ordersheet'!W1328=\"\",\"\",'1. Ordersheet'!W1328)","v":""},{"$f":"IF('1. Ordersheet'!X1328=\"\",\"\",'1. Ordersheet'!X1328)","v":""},{"$f":"IF('1. Ordersheet'!Y1328=\"\",\"\",'1. Ordersheet'!Y1328)","v":""},{"$f":"IF('1. Ordersheet'!Z1328=\"\",\"\",'1. Ordersheet'!Z1328)","v":""},{"$f":"IF('1. Ordersheet'!AA1328=\"\",\"\",'1. Ordersheet'!AA1328)","v":""},null,{"$f":"IF('1. Ordersheet'!AS1328=\"\",\"\",'1. Ordersheet'!AS1328)","v":""},{"$f":"IF('1. Ordersheet'!AT1328=\"\",\"\",'1. Ordersheet'!AT1328)","v":""},null,null,null,null,null,null,null,{"$f":"IF('1. Ordersheet'!AX1328=\"\",\"\",'1. Ordersheet'!AX1328)","v":""},{"$f":"IF('1. Ordersheet'!AY1328=\"\",\"\",'1. Ordersheet'!AY1328)","v":""},{"$f":"IF('1. Ordersheet'!AZ1328=\"\",\"\",'1. Ordersheet'!AZ1328)","v":""},{"$f":"IF('1. Ordersheet'!BA1328=\"\",\"\",'1. Ordersheet'!BA1328)","v":""},{"$f":"IF('1. Ordersheet'!BC1328=\"\",\"\",'1. Ordersheet'!BC1328)","v":""},{"$f":"IF('1. Ordersheet'!BD1328=\"\",\"\",'1. Ordersheet'!BD1328)","v":""},{"$f":"IF('1. Ordersheet'!BE1328=\"\",\"\",'1. Ordersheet'!BE1328)","v":""},{"$f":"IF('1. Ordersheet'!BF1328=\"\",\"\",'1. Ordersheet'!BF1328)","v":""},{"$f":"IF('1. Ordersheet'!BG1328=\"\",\"\",'1. Ordersheet'!BG1328)","v":"ZWO"},{"$f":"IF('1. Ordersheet'!BH1328=\"\",\"\",'1. Ordersheet'!BH1328)","v":""},{"$f":"IF('1. Ordersheet'!BI1328=\"\",\"\",'1. Ordersheet'!BI1328)","v":""},{"$f":"IF('1. Ordersheet'!BJ1328=\"\",\"\",'1. Ordersheet'!BJ1328)","v":""},{"$f":"IF('1. Ordersheet'!BK1328=\"\",\"\",'1. Ordersheet'!BK1328)","v":""},{"$f":"IF('1. Ordersheet'!BL1328=\"\",\"\",'1. Ordersheet'!BL1328)","v":""}]
[{"$f":"IF('1. Ordersheet'!F1329=\"\",\"\",'1. Ordersheet'!F1329)","v":""},{"$f":"IF('1. Ordersheet'!G1329=\"\",\"\",'1. Ordersheet'!G1329)","v":""},{"$f":"IF('1. Ordersheet'!H1329=\"\",\"\",'1. Ordersheet'!H1329)","v":""},{"$f":"IF('1. Ordersheet'!I1329=\"\",\"\",'1. Ordersheet'!I1329)","v":""},{"$f":"IF('1. Ordersheet'!J1329=\"\",\"\",'1. Ordersheet'!J1329)","v":""},{"$f":"IF('1. Ordersheet'!K1329=\"\",\"\",'1. Ordersheet'!K1329)","v":""},{"$f":"IF('1. Ordersheet'!L1329=\"\",\"\",'1. Ordersheet'!L1329)","v":""},{"$f":"IF('1. Ordersheet'!M1329=\"\",\"\",'1. Ordersheet'!M1329)","v":""},{"$f":"IF('1. Ordersheet'!N1329=\"\",\"\",'1. Ordersheet'!N1329)","v":""},{"$f":"IF('1. Ordersheet'!O1329=\"\",\"\",'1. Ordersheet'!O1329)","v":{"$error":"#N/A"}},{"$f":"IF('1. Ordersheet'!P1329=\"\",\"\",'1. Ordersheet'!P1329)","v":{"$error":"#N/A"}},{"$f":"IF('1. Ordersheet'!Q1329=\"\",\"\",'1. Ordersheet'!Q1329)","v":""},{"$f":"IF('1. Ordersheet'!R1329=\"\",\"\",'1. Ordersheet'!R1329)","v":""},{"$f":"IF('1. Ordersheet'!S1329=\"\",\"\",'1. Ordersheet'!S1329)","v":""},{"$f":"IF('1. Ordersheet'!V1329=\"\",\"\",'1. Ordersheet'!V1329)","v":""},{"$f":"IF('1. Ordersheet'!W1329=\"\",\"\",'1. Ordersheet'!W1329)","v":""},{"$f":"IF('1. Ordersheet'!X1329=\"\",\"\",'1. Ordersheet'!X1329)","v":""},{"$f":"IF('1. Ordersheet'!Y1329=\"\",\"\",'1. Ordersheet'!Y1329)","v":""},{"$f":"IF('1. Ordersheet'!Z1329=\"\",\"\",'1. Ordersheet'!Z1329)","v":""},{"$f":"IF('1. Ordersheet'!AA1329=\"\",\"\",'1. Ordersheet'!AA1329)","v":""},null,{"$f":"IF('1. Ordersheet'!AS1329=\"\",\"\",'1. Ordersheet'!AS1329)","v":""},{"$f":"IF('1. Ordersheet'!AT1329=\"\",\"\",'1. Ordersheet'!AT1329)","v":""},null,null,null,null,null,null,null,{"$f":"IF('1. Ordersheet'!AX1329=\"\",\"\",'1. Ordersheet'!AX1329)","v":""},{"$f":"IF('1. Ordersheet'!AY1329=\"\",\"\",'1. Ordersheet'!AY1329)","v":""},{"$f":"IF('1. Ordersheet'!AZ1329=\"\",\"\",'1. Ordersheet'!AZ1329)","v":""},{"$f":"IF('1. Ordersheet'!BA1329=\"\",\"\",'1. Ordersheet'!BA1329)","v":""},{"$f":"IF('1. Ordersheet'!BC1329=\"\",\"\",'1. Ordersheet'!BC1329)","v":""},{"$f":"IF('1. Ordersheet'!BD1329=\"\",\"\",'1. Ordersheet'!BD1329)","v":""},{"$f":"IF('1. Ordersheet'!BE1329=\"\",\"\",'1. Ordersheet'!BE1329)","v":""},{"$f":"IF('1. Ordersheet'!BF1329=\"\",\"\",'1. Ordersheet'!BF1329)","v":""},{"$f":"IF('1. Ordersheet'!BG1329=\"\",\"\",'1. Ordersheet'!BG1329)","v":"ZWO"},{"$f":"IF('1. Ordersheet'!BH1329=\"\",\"\",'1. Ordersheet'!BH1329)","v":""},{"$f":"IF('1. Ordersheet'!BI1329=\"\",\"\",'1. Ordersheet'!BI1329)","v":""},{"$f":"IF('1. Ordersheet'!BJ1329=\"\",\"\",'1. Ordersheet'!BJ1329)","v":""},{"$f":"IF('1. Ordersheet'!BK1329=\"\",\"\",'1. Ordersheet'!BK1329)","v":""},{"$f":"IF('1. Ordersheet'!BL1329=\"\",\"\",'1. Ordersheet'!BL1329)","v":""}]
[{"$f":"IF('1. Ordersheet'!F1330=\"\",\"\",'1. Ordersheet'!F1330)","v":""},{"$f":"IF('1. Ordersheet'!G1330=\"\",\"\",'1. Ordersheet'!G1330)","v":""},{"$f":"IF('1. Ordersheet'!H1330=\"\",\"\",'1. Ordersheet'!H1330)","v":""},{"$f":"IF('1. Ordersheet'!I1330=\"\",\"\",'1. Ordersheet'!I1330)","v":""},{"$f":"IF('1. Ordersheet'!J1330=\"\",\"\",'1. Ordersheet'!J1330)","v":""},{"$f":"IF('1. Ordersheet'!K1330=\"\",\"\",'1. Ordersheet'!K1330)","v":""},{"$f":"IF('1. Ordersheet'!L1330=\"\",\"\",'1. Ordersheet'!L1330)","v":""},{"$f":"IF('1. Ordersheet'!M1330=\"\",\"\",'1. Ordersheet'!M1330)","v":""},{"$f":"IF('1. Ordersheet'!N1330=\"\",\"\",'1. Ordersheet'!N1330)","v":""},{"$f":"IF('1. Ordersheet'!O1330=\"\",\"\",'1. Ordersheet'!O1330)","v":{"$error":"#N/A"}},{"$f":"IF('1. Ordersheet'!P1330=\"\",\"\",'1. Ordersheet'!P1330)","v":{"$error":"#N/A"}},{"$f":"IF('1. Ordersheet'!Q1330=\"\",\"\",'1. Ordersheet'!Q1330)","v":""},{"$f":"IF('1. Ordersheet'!R1330=\"\",\"\",'1. Ordersheet'!R1330)","v":""},{"$f":"IF('1. Ordersheet'!S1330=\"\",\"\",'1. Ordersheet'!S1330)","v":""},{"$f":"IF('1. Ordersheet'!V1330=\"\",\"\",'1. Ordersheet'!V1330)","v":""},{"$f":"IF('1. Ordersheet'!W1330=\"\",\"\",'1. Ordersheet'!W1330)","v":""},{"$f":"IF('1. Ordersheet'!X1330=\"\",\"\",'1. Ordersheet'!X1330)","v":""},{"$f":"IF('1. Ordersheet'!Y1330=\"\",\"\",'1. Ordersheet'!Y1330)","v":""},{"$f":"IF('1. Ordersheet'!Z1330=\"\",\"\",'1. Ordersheet'!Z1330)","v":""},{"$f":"IF('1. Ordersheet'!AA1330=\"\",\"\",'1. Ordersheet'!AA1330)","v":""},null,{"$f":"IF('1. Ordersheet'!AS1330=\"\",\"\",'1. Ordersheet'!AS1330)","v":""},{"$f":"IF('1. Ordersheet'!AT1330=\"\",\"\",'1. Ordersheet'!AT1330)","v":""},null,null,null,null,null,null,null,{"$f":"IF('1. Ordersheet'!AX1330=\"\",\"\",'1. Ordersheet'!AX1330)","v":""},{"$f":"IF('1. Ordersheet'!AY1330=\"\",\"\",'1. Ordersheet'!AY1330)","v":""},{"$f":"IF('1. Ordersheet'!AZ1330=\"\",\"\",'1. Ordersheet'!AZ1330)","v":""},{"$f":"IF('1. Ordersheet'!BA1330=\"\",\"\",'1. Ordersheet'!BA1330)","v":""},{"$f":"IF('1. Ordersheet'!BC1330=\"\",\"\",'1. Ordersheet'!BC1330)","v":""},{"$f":"IF('1. Ordersheet'!BD1330=\"\",\"\",'1. Ordersheet'!BD1330)","v":""},{"$f":"IF('1. Ordersheet'!BE1330=\"\",\"\",'1. Ordersheet'!BE1330)","v":""},{"$f":"IF('1. Ordersheet'!BF1330=\"\",\"\",'1. Ordersheet'!BF1330)","v":""},{"$f":"IF('1. Ordersheet'!BG1330=\"\",\"\",'1. Ordersheet'!BG1330)","v":"ZWO"},{"$f":"IF('1. Ordersheet'!BH1330=\"\",\"\",'1. Ordersheet'!BH1330)","v":""},{"$f":"IF('1. Ordersheet'!BI1330=\"\",\"\",'1. Ordersheet'!BI1330)","v":""},{"$f":"IF('1. Ordersheet'!BJ1330=\"\",\"\",'1. Ordersheet'!BJ1330)","v":""},{"$f":"IF('1. Ordersheet'!BK1330=\"\",\"\",'1. Ordersheet'!BK1330)","v":""},{"$f":"IF('1. Ordersheet'!BL1330=\"\",\"\",'1. Ordersheet'!BL1330)","v":""}]
[{"$f":"IF('1. Ordersheet'!F1331=\"\",\"\",'1. Ordersheet'!F1331)","v":""},{"$f":"IF('1. Ordersheet'!G1331=\"\",\"\",'1. Ordersheet'!G1331)","v":""},{"$f":"IF('1. Ordersheet'!H1331=\"\",\"\",'1. Ordersheet'!H1331)","v":""},{"$f":"IF('1. Ordersheet'!I1331=\"\",\"\",'1. Ordersheet'!I1331)","v":""},{"$f":"IF('1. Ordersheet'!J1331=\"\",\"\",'1. Ordersheet'!J1331)","v":""},{"$f":"IF('1. Ordersheet'!K1331=\"\",\"\",'1. Ordersheet'!K1331)","v":""},{"$f":"IF('1. Ordersheet'!L1331=\"\",\"\",'1. Ordersheet'!L1331)","v":""},{"$f":"IF('1. Ordersheet'!M1331=\"\",\"\",'1. Ordersheet'!M1331)","v":""},{"$f":"IF('1. Ordersheet'!N1331=\"\",\"\",'1. Ordersheet'!N1331)","v":""},{"$f":"IF('1. Ordersheet'!O1331=\"\",\"\",'1. Ordersheet'!O1331)","v":{"$error":"#N/A"}},{"$f":"IF('1. Ordersheet'!P1331=\"\",\"\",'1. Ordersheet'!P1331)","v":{"$error":"#N/A"}},{"$f":"IF('1. Ordersheet'!Q1331=\"\",\"\",'1. Ordersheet'!Q1331)","v":""},{"$f":"IF('1. Ordersheet'!R1331=\"\",\"\",'1. Ordersheet'!R1331)","v":""},{"$f":"IF('1. Ordersheet'!S1331=\"\",\"\",'1. Ordersheet'!S1331)","v":""},{"$f":"IF('1. Ordersheet'!V1331=\"\",\"\",'1. Ordersheet'!V1331)","v":""},{"$f":"IF('1. Ordersheet'!W1331=\"\",\"\",'1. Ordersheet'!W1331)","v":""},{"$f":"IF('1. Ordersheet'!X1331=\"\",\"\",'1. Ordersheet'!X1331)","v":""},{"$f":"IF('1. Ordersheet'!Y1331=\"\",\"\",'1. Ordersheet'!Y1331)","v":""},{"$f":"IF('1. Ordersheet'!Z1331=\"\",\"\",'1. Ordersheet'!Z1331)","v":""},{"$f":"IF('1. Ordersheet'!AA1331=\"\",\"\",'1. Ordersheet'!AA1331)","v":""},null,{"$f":"IF('1. Ordersheet'!AS1331=\"\",\"\",'1. Ordersheet'!AS1331)","v":""},{"$f":"IF('1. Ordersheet'!AT1331=\"\",\"\",'1. Ordersheet'!AT1331)","v":""},null,null,null,null,null,null,null,{"$f":"IF('1. Ordersheet'!AX1331=\"\",\"\",'1. Ordersheet'!AX1331)","v":""},{"$f":"IF('1. Ordersheet'!AY1331=\"\",\"\",'1. Ordersheet'!AY1331)","v":""},{"$f":"IF('1. Ordersheet'!AZ1331=\"\",\"\",'1. Ordersheet'!AZ1331)","v":""},{"$f":"IF('1. Ordersheet'!BA1331=\"\",\"\",'1. Ordersheet'!BA1331)","v":""},{"$f":"IF('1. Ordersheet'!BC1331=\"\",\"\",'1. Ordersheet'!BC1331)","v":""},{"$f":"IF('1. Ordersheet'!BD1331=\"\",\"\",'1. Ordersheet'!BD1331)","v":""},{"$f":"IF('1. Ordersheet'!BE1331=\"\",\"\",'1. Ordersheet'!BE1331)","v":""},{"$f":"IF('1. Ordersheet'!BF1331=\"\",\"\",'1. Ordersheet'!BF1331)","v":""},{"$f":"IF('1. Ordersheet'!BG1331=\"\",\"\",'1. Ordersheet'!BG1331)","v":"ZWO"},{"$f":"IF('1. Ordersheet'!BH1331=\"\",\"\",'1. Ordersheet'!BH1331)","v":""},{"$f":"IF('1. Ordersheet'!BI1331=\"\",\"\",'1. Ordersheet'!BI1331)","v":""},{"$f":"IF('1. Ordersheet'!BJ1331=\"\",\"\",'1. Ordersheet'!BJ1331)","v":""},{"$f":"IF('1. Ordersheet'!BK1331=\"\",\"\",'1. Ordersheet'!BK1331)","v":""},{"$f":"IF('1. Ordersheet'!BL1331=\"\",\"\",'1. Ordersheet'!BL1331)","v":""}]
[{"$f":"IF('1. Ordersheet'!F1332=\"\",\"\",'1. Ordersheet'!F1332)","v":""},{"$f":"IF('1. Ordersheet'!G1332=\"\",\"\",'1. Ordersheet'!G1332)","v":""},{"$f":"IF('1. Ordersheet'!H1332=\"\",\"\",'1. Ordersheet'!H1332)","v":""},{"$f":"IF('1. Ordersheet'!I1332=\"\",\"\",'1. Ordersheet'!I1332)","v":""},{"$f":"IF('1. Ordersheet'!J1332=\"\",\"\",'1. Ordersheet'!J1332)","v":""},{"$f":"IF('1. Ordersheet'!K1332=\"\",\"\",'1. Ordersheet'!K1332)","v":""},{"$f":"IF('1. Ordersheet'!L1332=\"\",\"\",'1. Ordersheet'!L1332)","v":""},{"$f":"IF('1. Ordersheet'!M1332=\"\",\"\",'1. Ordersheet'!M1332)","v":""},{"$f":"IF('1. Ordersheet'!N1332=\"\",\"\",'1. Ordersheet'!N1332)","v":""},{"$f":"IF('1. Ordersheet'!O1332=\"\",\"\",'1. Ordersheet'!O1332)","v":{"$error":"#N/A"}},{"$f":"IF('1. Ordersheet'!P1332=\"\",\"\",'1. Ordersheet'!P1332)","v":{"$error":"#N/A"}},{"$f":"IF('1. Ordersheet'!Q1332=\"\",\"\",'1. Ordersheet'!Q1332)","v":""},{"$f":"IF('1. Ordersheet'!R1332=\"\",\"\",'1. Ordersheet'!R1332)","v":""},{"$f":"IF('1. Ordersheet'!S1332=\"\",\"\",'1. Ordersheet'!S1332)","v":""},{"$f":"IF('1. Ordersheet'!V1332=\"\",\"\",'1. Ordersheet'!V1332)","v":""},{"$f":"IF('1. Ordersheet'!W1332=\"\",\"\",'1. Ordersheet'!W1332)","v":""},{"$f":"IF('1. Ordersheet'!X1332=\"\",\"\",'1. Ordersheet'!X1332)","v":""},{"$f":"IF('1. Ordersheet'!Y1332=\"\",\"\",'1. Ordersheet'!Y1332)","v":""},{"$f":"IF('1. Ordersheet'!Z1332=\"\",\"\",'1. Ordersheet'!Z1332)","v":""},{"$f":"IF('1. Ordersheet'!AA1332=\"\",\"\",'1. Ordersheet'!AA1332)","v":""},null,{"$f":"IF('1. Ordersheet'!AS1332=\"\",\"\",'1. Ordersheet'!AS1332)","v":""},{"$f":"IF('1. Ordersheet'!AT1332=\"\",\"\",'1. Ordersheet'!AT1332)","v":""},null,null,null,null,null,null,null,{"$f":"IF('1. Ordersheet'!AX1332=\"\",\"\",'1. Ordersheet'!AX1332)","v":""},{"$f":"IF('1. Ordersheet'!AY1332=\"\",\"\",'1. Ordersheet'!AY1332)","v":""},{"$f":"IF('1. Ordersheet'!AZ1332=\"\",\"\",'1. Ordersheet'!AZ1332)","v":""},{"$f":"IF('1. Ordersheet'!BA1332=\"\",\"\",'1. Ordersheet'!BA1332)","v":""},{"$f":"IF('1. Ordersheet'!BC1332=\"\",\"\",'1. Ordersheet'!BC1332)","v":""},{"$f":"IF('1. Ordersheet'!BD1332=\"\",\"\",'1. Ordersheet'!BD1332)","v":""},{"$f":"IF('1. Ordersheet'!BE1332=\"\",\"\",'1. Ordersheet'!BE1332)","v":""},{"$f":"IF('1. Ordersheet'!BF1332=\"\",\"\",'1. Ordersheet'!BF1332)","v":""},{"$f":"IF('1. Ordersheet'!BG1332=\"\",\"\",'1. Ordersheet'!BG1332)","v":"ZWO"},{"$f":"IF('1. Ordersheet'!BH1332=\"\",\"\",'1. Ordersheet'!BH1332)","v":""},{"$f":"IF('1. Ordersheet'!BI1332=\"\",\"\",'1. Ordersheet'!BI1332)","v":""},{"$f":"IF('1. Ordersheet'!BJ1332=\"\",\"\",'1. Ordersheet'!BJ1332)","v":""},{"$f":"IF('1. Ordersheet'!BK1332=\"\",\"\",'1. Ordersheet'!BK1332)","v":""},{"$f":"IF('1. Ordersheet'!BL1332=\"\",\"\",'1. Ordersheet'!BL1332)","v":""}]
[{"$f":"IF('1. Ordersheet'!F1333=\"\",\"\",'1. Ordersheet'!F1333)","v":""},{"$f":"IF('1. Ordersheet'!G1333=\"\",\"\",'1. Ordersheet'!G1333)","v":""},{"$f":"IF('1. Ordersheet'!H1333=\"\",\"\",'1. Ordersheet'!H1333)","v":""},{"$f":"IF('1. Ordersheet'!I1333=\"\",\"\",'1. Ordersheet'!I1333)","v":""},{"$f":"IF('1. Ordersheet'!J1333=\"\",\"\",'1. Ordersheet'!J1333)","v":""},{"$f":"IF('1. Ordersheet'!K1333=\"\",\"\",'1. Ordersheet'!K1333)","v":""},{"$f":"IF('1. Ordersheet'!L1333=\"\",\"\",'1. Ordersheet'!L1333)","v":""},{"$f":"IF('1. Ordersheet'!M1333=\"\",\"\",'1. Ordersheet'!M1333)","v":""},{"$f":"IF('1. Ordersheet'!N1333=\"\",\"\",'1. Ordersheet'!N1333)","v":""},{"$f":"IF('1. Ordersheet'!O1333=\"\",\"\",'1. Ordersheet'!O1333)","v":{"$error":"#N/A"}},{"$f":"IF('1. Ordersheet'!P1333=\"\",\"\",'1. Ordersheet'!P1333)","v":{"$error":"#N/A"}},{"$f":"IF('1. Ordersheet'!Q1333=\"\",\"\",'1. Ordersheet'!Q1333)","v":""},{"$f":"IF('1. Ordersheet'!R1333=\"\",\"\",'1. Ordersheet'!R1333)","v":""},{"$f":"IF('1. Ordersheet'!S1333=\"\",\"\",'1. Ordersheet'!S1333)","v":""},{"$f":"IF('1. Ordersheet'!V1333=\"\",\"\",'1. Ordersheet'!V1333)","v":""},{"$f":"IF('1. Ordersheet'!W1333=\"\",\"\",'1. Ordersheet'!W1333)","v":""},{"$f":"IF('1. Ordersheet'!X1333=\"\",\"\",'1. Ordersheet'!X1333)","v":""},{"$f":"IF('1. Ordersheet'!Y1333=\"\",\"\",'1. Ordersheet'!Y1333)","v":""},{"$f":"IF('1. Ordersheet'!Z1333=\"\",\"\",'1. Ordersheet'!Z1333)","v":""},{"$f":"IF('1. Ordersheet'!AA1333=\"\",\"\",'1. Ordersheet'!AA1333)","v":""},null,{"$f":"IF('1. Ordersheet'!AS1333=\"\",\"\",'1. Ordersheet'!AS1333)","v":""},{"$f":"IF('1. Ordersheet'!AT1333=\"\",\"\",'1. Ordersheet'!AT1333)","v":""},null,null,null,null,null,null,null,{"$f":"IF('1. Ordersheet'!AX1333=\"\",\"\",'1. Ordersheet'!AX1333)","v":""},{"$f":"IF('1. Ordersheet'!AY1333=\"\",\"\",'1. Ordersheet'!AY1333)","v":""},{"$f":"IF('1. Ordersheet'!AZ1333=\"\",\"\",'1. Ordersheet'!AZ1333)","v":""},{"$f":"IF('1. Ordersheet'!BA1333=\"\",\"\",'1. Ordersheet'!BA1333)","v":""},{"$f":"IF('1. Ordersheet'!BC1333=\"\",\"\",'1. Ordersheet'!BC1333)","v":""},{"$f":"IF('1. Ordersheet'!BD1333=\"\",\"\",'1. Ordersheet'!BD1333)","v":""},{"$f":"IF('1. Ordersheet'!BE1333=\"\",\"\",'1. Ordersheet'!BE1333)","v":""},{"$f":"IF('1. Ordersheet'!BF1333=\"\",\"\",'1. Ordersheet'!BF1333)","v":""},{"$f":"IF('1. Ordersheet'!BG1333=\"\",\"\",'1. Ordersheet'!BG1333)","v":"ZWO"},{"$f":"IF('1. Ordersheet'!BH1333=\"\",\"\",'1. Ordersheet'!BH1333)","v":""},{"$f":"IF('1. Ordersheet'!BI1333=\"\",\"\",'1. Ordersheet'!BI1333)","v":""},{"$f":"IF('1. Ordersheet'!BJ1333=\"\",\"\",'1. Ordersheet'!BJ1333)","v":""},{"$f":"IF('1. Ordersheet'!BK1333=\"\",\"\",'1. Ordersheet'!BK1333)","v":""},{"$f":"IF('1. Ordersheet'!BL1333=\"\",\"\",'1. Ordersheet'!BL1333)","v":""}]
[{"$f":"IF('1. Ordersheet'!F1334=\"\",\"\",'1. Ordersheet'!F1334)","v":""},{"$f":"IF('1. Ordersheet'!G1334=\"\",\"\",'1. Ordersheet'!G1334)","v":""},{"$f":"IF('1. Ordersheet'!H1334=\"\",\"\",'1. Ordersheet'!H1334)","v":""},{"$f":"IF('1. Ordersheet'!I1334=\"\",\"\",'1. Ordersheet'!I1334)","v":""},{"$f":"IF('1. Ordersheet'!J1334=\"\",\"\",'1. Ordersheet'!J1334)","v":""},{"$f":"IF('1. Ordersheet'!K1334=\"\",\"\",'1. Ordersheet'!K1334)","v":""},{"$f":"IF('1. Ordersheet'!L1334=\"\",\"\",'1. Ordersheet'!L1334)","v":""},{"$f":"IF('1. Ordersheet'!M1334=\"\",\"\",'1. Ordersheet'!M1334)","v":""},{"$f":"IF('1. Ordersheet'!N1334=\"\",\"\",'1. Ordersheet'!N1334)","v":""},{"$f":"IF('1. Ordersheet'!O1334=\"\",\"\",'1. Ordersheet'!O1334)","v":{"$error":"#N/A"}},{"$f":"IF('1. Ordersheet'!P1334=\"\",\"\",'1. Ordersheet'!P1334)","v":{"$error":"#N/A"}},{"$f":"IF('1. Ordersheet'!Q1334=\"\",\"\",'1. Ordersheet'!Q1334)","v":""},{"$f":"IF('1. Ordersheet'!R1334=\"\",\"\",'1. Ordersheet'!R1334)","v":""},{"$f":"IF('1. Ordersheet'!S1334=\"\",\"\",'1. Ordersheet'!S1334)","v":""},{"$f":"IF('1. Ordersheet'!V1334=\"\",\"\",'1. Ordersheet'!V1334)","v":""},{"$f":"IF('1. Ordersheet'!W1334=\"\",\"\",'1. Ordersheet'!W1334)","v":""},{"$f":"IF('1. Ordersheet'!X1334=\"\",\"\",'1. Ordersheet'!X1334)","v":""},{"$f":"IF('1. Ordersheet'!Y1334=\"\",\"\",'1. Ordersheet'!Y1334)","v":""},{"$f":"IF('1. Ordersheet'!Z1334=\"\",\"\",'1. Ordersheet'!Z1334)","v":""},{"$f":"IF('1. Ordersheet'!AA1334=\"\",\"\",'1. Ordersheet'!AA1334)","v":""},null,{"$f":"IF('1. Ordersheet'!AS1334=\"\",\"\",'1. Ordersheet'!AS1334)","v":""},{"$f":"IF('1. Ordersheet'!AT1334=\"\",\"\",'1. Ordersheet'!AT1334)","v":""},null,null,null,null,null,null,null,{"$f":"IF('1. Ordersheet'!AX1334=\"\",\"\",'1. Ordersheet'!AX1334)","v":""},{"$f":"IF('1. Ordersheet'!AY1334=\"\",\"\",'1. Ordersheet'!AY1334)","v":""},{"$f":"IF('1. Ordersheet'!AZ1334=\"\",\"\",'1. Ordersheet'!AZ1334)","v":""},{"$f":"IF('1. Ordersheet'!BA1334=\"\",\"\",'1. Ordersheet'!BA1334)","v":""},{"$f":"IF('1. Ordersheet'!BC1334=\"\",\"\",'1. Ordersheet'!BC1334)","v":""},{"$f":"IF('1. Ordersheet'!BD1334=\"\",\"\",'1. Ordersheet'!BD1334)","v":""},{"$f":"IF('1. Ordersheet'!BE1334=\"\",\"\",'1. Ordersheet'!BE1334)","v":""},{"$f":"IF('1. Ordersheet'!BF1334=\"\",\"\",'1. Ordersheet'!BF1334)","v":""},{"$f":"IF('1. Ordersheet'!BG1334=\"\",\"\",'1. Ordersheet'!BG1334)","v":"ZWO"},{"$f":"IF('1. Ordersheet'!BH1334=\"\",\"\",'1. Ordersheet'!BH1334)","v":""},{"$f":"IF('1. Ordersheet'!BI1334=\"\",\"\",'1. Ordersheet'!BI1334)","v":""},{"$f":"IF('1. Ordersheet'!BJ1334=\"\",\"\",'1. Ordersheet'!BJ1334)","v":""},{"$f":"IF('1. Ordersheet'!BK1334=\"\",\"\",'1. Ordersheet'!BK1334)","v":""},{"$f":"IF('1. Ordersheet'!BL1334=\"\",\"\",'1. Ordersheet'!BL1334)","v":""}]
[{"$f":"IF('1. Ordersheet'!F1335=\"\",\"\",'1. Ordersheet'!F1335)","v":""},{"$f":"IF('1. Ordersheet'!G1335=\"\",\"\",'1. Ordersheet'!G1335)","v":""},{"$f":"IF('1. Ordersheet'!H1335=\"\",\"\",'1. Ordersheet'!H1335)","v":""},{"$f":"IF('1. Ordersheet'!I1335=\"\",\"\",'1. Ordersheet'!I1335)","v":""},{"$f":"IF('1. Ordersheet'!J1335=\"\",\"\",'1. Ordersheet'!J1335)","v":""},{"$f":"IF('1. Ordersheet'!K1335=\"\",\"\",'1. Ordersheet'!K1335)","v":""},{"$f":"IF('1. Ordersheet'!L1335=\"\",\"\",'1. Ordersheet'!L1335)","v":""},{"$f":"IF('1. Ordersheet'!M1335=\"\",\"\",'1. Ordersheet'!M1335)","v":""},{"$f":"IF('1. Ordersheet'!N1335=\"\",\"\",'1. Ordersheet'!N1335)","v":""},{"$f":"IF('1. Ordersheet'!O1335=\"\",\"\",'1. Ordersheet'!O1335)","v":{"$error":"#N/A"}},{"$f":"IF('1. Ordersheet'!P1335=\"\",\"\",'1. Ordersheet'!P1335)","v":{"$error":"#N/A"}},{"$f":"IF('1. Ordersheet'!Q1335=\"\",\"\",'1. Ordersheet'!Q1335)","v":""},{"$f":"IF('1. Ordersheet'!R1335=\"\",\"\",'1. Ordersheet'!R1335)","v":""},{"$f":"IF('1. Ordersheet'!S1335=\"\",\"\",'1. Ordersheet'!S1335)","v":""},{"$f":"IF('1. Ordersheet'!V1335=\"\",\"\",'1. Ordersheet'!V1335)","v":""},{"$f":"IF('1. Ordersheet'!W1335=\"\",\"\",'1. Ordersheet'!W1335)","v":""},{"$f":"IF('1. Ordersheet'!X1335=\"\",\"\",'1. Ordersheet'!X1335)","v":""},{"$f":"IF('1. Ordersheet'!Y1335=\"\",\"\",'1. Ordersheet'!Y1335)","v":""},{"$f":"IF('1. Ordersheet'!Z1335=\"\",\"\",'1. Ordersheet'!Z1335)","v":""},{"$f":"IF('1. Ordersheet'!AA1335=\"\",\"\",'1. Ordersheet'!AA1335)","v":""},null,{"$f":"IF('1. Ordersheet'!AS1335=\"\",\"\",'1. Ordersheet'!AS1335)","v":""},{"$f":"IF('1. Ordersheet'!AT1335=\"\",\"\",'1. Ordersheet'!AT1335)","v":""},null,null,null,null,null,null,null,{"$f":"IF('1. Ordersheet'!AX1335=\"\",\"\",'1. Ordersheet'!AX1335)","v":""},{"$f":"IF('1. Ordersheet'!AY1335=\"\",\"\",'1. Ordersheet'!AY1335)","v":""},{"$f":"IF('1. Ordersheet'!AZ1335=\"\",\"\",'1. Ordersheet'!AZ1335)","v":""},{"$f":"IF('1. Ordersheet'!BA1335=\"\",\"\",'1. Ordersheet'!BA1335)","v":""},{"$f":"IF('1. Ordersheet'!BC1335=\"\",\"\",'1. Ordersheet'!BC1335)","v":""},{"$f":"IF('1. Ordersheet'!BD1335=\"\",\"\",'1. Ordersheet'!BD1335)","v":""},{"$f":"IF('1. Ordersheet'!BE1335=\"\",\"\",'1. Ordersheet'!BE1335)","v":""},{"$f":"IF('1. Ordersheet'!BF1335=\"\",\"\",'1. Ordersheet'!BF1335)","v":""},{"$f":"IF('1. Ordersheet'!BG1335=\"\",\"\",'1. Ordersheet'!BG1335)","v":"ZWO"},{"$f":"IF('1. Ordersheet'!BH1335=\"\",\"\",'1. Ordersheet'!BH1335)","v":""},{"$f":"IF('1. Ordersheet'!BI1335=\"\",\"\",'1. Ordersheet'!BI1335)","v":""},{"$f":"IF('1. Ordersheet'!BJ1335=\"\",\"\",'1. Ordersheet'!BJ1335)","v":""},{"$f":"IF('1. Ordersheet'!BK1335=\"\",\"\",'1. Ordersheet'!BK1335)","v":""},{"$f":"IF('1. Ordersheet'!BL1335=\"\",\"\",'1. Ordersheet'!BL1335)","v":""}]
[{"$f":"IF('1. Ordersheet'!F1336=\"\",\"\",'1. Ordersheet'!F1336)","v":""},{"$f":"IF('1. Ordersheet'!G1336=\"\",\"\",'1. Ordersheet'!G1336)","v":""},{"$f":"IF('1. Ordersheet'!H1336=\"\",\"\",'1. Ordersheet'!H1336)","v":""},{"$f":"IF('1. Ordersheet'!I1336=\"\",\"\",'1. Ordersheet'!I1336)","v":""},{"$f":"IF('1. Ordersheet'!J1336=\"\",\"\",'1. Ordersheet'!J1336)","v":""},{"$f":"IF('1. Ordersheet'!K1336=\"\",\"\",'1. Ordersheet'!K1336)","v":""},{"$f":"IF('1. Ordersheet'!L1336=\"\",\"\",'1. Ordersheet'!L1336)","v":""},{"$f":"IF('1. Ordersheet'!M1336=\"\",\"\",'1. Ordersheet'!M1336)","v":""},{"$f":"IF('1. Ordersheet'!N1336=\"\",\"\",'1. Ordersheet'!N1336)","v":""},{"$f":"IF('1. Ordersheet'!O1336=\"\",\"\",'1. Ordersheet'!O1336)","v":{"$error":"#N/A"}},{"$f":"IF('1. Ordersheet'!P1336=\"\",\"\",'1. Ordersheet'!P1336)","v":{"$error":"#N/A"}},{"$f":"IF('1. Ordersheet'!Q1336=\"\",\"\",'1. Ordersheet'!Q1336)","v":""},{"$f":"IF('1. Ordersheet'!R1336=\"\",\"\",'1. Ordersheet'!R1336)","v":""},{"$f":"IF('1. Ordersheet'!S1336=\"\",\"\",'1. Ordersheet'!S1336)","v":""},{"$f":"IF('1. Ordersheet'!V1336=\"\",\"\",'1. Ordersheet'!V1336)","v":""},{"$f":"IF('1. Ordersheet'!W1336=\"\",\"\",'1. Ordersheet'!W1336)","v":""},{"$f":"IF('1. Ordersheet'!X1336=\"\",\"\",'1. Ordersheet'!X1336)","v":""},{"$f":"IF('1. Ordersheet'!Y1336=\"\",\"\",'1. Ordersheet'!Y1336)","v":""},{"$f":"IF('1. Ordersheet'!Z1336=\"\",\"\",'1. Ordersheet'!Z1336)","v":""},{"$f":"IF('1. Ordersheet'!AA1336=\"\",\"\",'1. Ordersheet'!AA1336)","v":""},null,{"$f":"IF('1. Ordersheet'!AS1336=\"\",\"\",'1. Ordersheet'!AS1336)","v":""},{"$f":"IF('1. Ordersheet'!AT1336=\"\",\"\",'1. Ordersheet'!AT1336)","v":""},null,null,null,null,null,null,null,{"$f":"IF('1. Ordersheet'!AX1336=\"\",\"\",'1. Ordersheet'!AX1336)","v":""},{"$f":"IF('1. Ordersheet'!AY1336=\"\",\"\",'1. Ordersheet'!AY1336)","v":""},{"$f":"IF('1. Ordersheet'!AZ1336=\"\",\"\",'1. Ordersheet'!AZ1336)","v":""},{"$f":"IF('1. Ordersheet'!BA1336=\"\",\"\",'1. Ordersheet'!BA1336)","v":""},{"$f":"IF('1. Ordersheet'!BC1336=\"\",\"\",'1. Ordersheet'!BC1336)","v":""},{"$f":"IF('1. Ordersheet'!BD1336=\"\",\"\",'1. Ordersheet'!BD1336)","v":""},{"$f":"IF('1. Ordersheet'!BE1336=\"\",\"\",'1. Ordersheet'!BE1336)","v":""},{"$f":"IF('1. Ordersheet'!BF1336=\"\",\"\",'1. Ordersheet'!BF1336)","v":""},{"$f":"IF('1. Ordersheet'!BG1336=\"\",\"\",'1. Ordersheet'!BG1336)","v":"ZWO"},{"$f":"IF('1. Ordersheet'!BH1336=\"\",\"\",'1. Ordersheet'!BH1336)","v":""},{"$f":"IF('1. Ordersheet'!BI1336=\"\",\"\",'1. Ordersheet'!BI1336)","v":""},{"$f":"IF('1. Ordersheet'!BJ1336=\"\",\"\",'1. Ordersheet'!BJ1336)","v":""},{"$f":"IF('1. Ordersheet'!BK1336=\"\",\"\",'1. Ordersheet'!BK1336)","v":""},{"$f":"IF('1. Ordersheet'!BL1336=\"\",\"\",'1. Ordersheet'!BL1336)","v":""}]
[{"$f":"IF('1. Ordersheet'!F1337=\"\",\"\",'1. Ordersheet'!F1337)","v":""},{"$f":"IF('1. Ordersheet'!G1337=\"\",\"\",'1. Ordersheet'!G1337)","v":""},{"$f":"IF('1. Ordersheet'!H1337=\"\",\"\",'1. Ordersheet'!H1337)","v":""},{"$f":"IF('1. Ordersheet'!I1337=\"\",\"\",'1. Ordersheet'!I1337)","v":""},{"$f":"IF('1. Ordersheet'!J1337=\"\",\"\",'1. Ordersheet'!J1337)","v":""},{"$f":"IF('1. Ordersheet'!K1337=\"\",\"\",'1. Ordersheet'!K1337)","v":""},{"$f":"IF('1. Ordersheet'!L1337=\"\",\"\",'1. Ordersheet'!L1337)","v":""},{"$f":"IF('1. Ordersheet'!M1337=\"\",\"\",'1. Ordersheet'!M1337)","v":""},{"$f":"IF('1. Ordersheet'!N1337=\"\",\"\",'1. Ordersheet'!N1337)","v":""},{"$f":"IF('1. Ordersheet'!O1337=\"\",\"\",'1. Ordersheet'!O1337)","v":{"$error":"#N/A"}},{"$f":"IF('1. Ordersheet'!P1337=\"\",\"\",'1. Ordersheet'!P1337)","v":{"$error":"#N/A"}},{"$f":"IF('1. Ordersheet'!Q1337=\"\",\"\",'1. Ordersheet'!Q1337)","v":""},{"$f":"IF('1. Ordersheet'!R1337=\"\",\"\",'1. Ordersheet'!R1337)","v":""},{"$f":"IF('1. Ordersheet'!S1337=\"\",\"\",'1. Ordersheet'!S1337)","v":""},{"$f":"IF('1. Ordersheet'!V1337=\"\",\"\",'1. Ordersheet'!V1337)","v":""},{"$f":"IF('1. Ordersheet'!W1337=\"\",\"\",'1. Ordersheet'!W1337)","v":""},{"$f":"IF('1. Ordersheet'!X1337=\"\",\"\",'1. Ordersheet'!X1337)","v":""},{"$f":"IF('1. Ordersheet'!Y1337=\"\",\"\",'1. Ordersheet'!Y1337)","v":""},{"$f":"IF('1. Ordersheet'!Z1337=\"\",\"\",'1. Ordersheet'!Z1337)","v":""},{"$f":"IF('1. Ordersheet'!AA1337=\"\",\"\",'1. Ordersheet'!AA1337)","v":""},null,{"$f":"IF('1. Ordersheet'!AS1337=\"\",\"\",'1. Ordersheet'!AS1337)","v":""},{"$f":"IF('1. Ordersheet'!AT1337=\"\",\"\",'1. Ordersheet'!AT1337)","v":""},null,null,null,null,null,null,null,{"$f":"IF('1. Ordersheet'!AX1337=\"\",\"\",'1. Ordersheet'!AX1337)","v":""},{"$f":"IF('1. Ordersheet'!AY1337=\"\",\"\",'1. Ordersheet'!AY1337)","v":""},{"$f":"IF('1. Ordersheet'!AZ1337=\"\",\"\",'1. Ordersheet'!AZ1337)","v":""},{"$f":"IF('1. Ordersheet'!BA1337=\"\",\"\",'1. Ordersheet'!BA1337)","v":""},{"$f":"IF('1. Ordersheet'!BC1337=\"\",\"\",'1. Ordersheet'!BC1337)","v":""},{"$f":"IF('1. Ordersheet'!BD1337=\"\",\"\",'1. Ordersheet'!BD1337)","v":""},{"$f":"IF('1. Ordersheet'!BE1337=\"\",\"\",'1. Ordersheet'!BE1337)","v":""},{"$f":"IF('1. Ordersheet'!BF1337=\"\",\"\",'1. Ordersheet'!BF1337)","v":""},{"$f":"IF('1. Ordersheet'!BG1337=\"\",\"\",'1. Ordersheet'!BG1337)","v":"ZWO"},{"$f":"IF('1. Ordersheet'!BH1337=\"\",\"\",'1. Ordersheet'!BH1337)","v":""},{"$f":"IF('1. Ordersheet'!BI1337=\"\",\"\",'1. Ordersheet'!BI1337)","v":""},{"$f":"IF('1. Ordersheet'!BJ1337=\"\",\"\",'1. Ordersheet'!BJ1337)","v":""},{"$f":"IF('1. Ordersheet'!BK1337=\"\",\"\",'1. Ordersheet'!BK1337)","v":""},{"$f":"IF('1. Ordersheet'!BL1337=\"\",\"\",'1. Ordersheet'!BL1337)","v":""}]
[{"$f":"IF('1. Ordersheet'!F1338=\"\",\"\",'1. Ordersheet'!F1338)","v":""},{"$f":"IF('1. Ordersheet'!G1338=\"\",\"\",'1. Ordersheet'!G1338)","v":""},{"$f":"IF('1. Ordersheet'!H1338=\"\",\"\",'1. Ordersheet'!H1338)","v":""},{"$f":"IF('1. Ordersheet'!I1338=\"\",\"\",'1. Ordersheet'!I1338)","v":""},{"$f":"IF('1. Ordersheet'!J1338=\"\",\"\",'1. Ordersheet'!J1338)","v":""},{"$f":"IF('1. Ordersheet'!K1338=\"\",\"\",'1. Ordersheet'!K1338)","v":""},{"$f":"IF('1. Ordersheet'!L1338=\"\",\"\",'1. Ordersheet'!L1338)","v":""},{"$f":"IF('1. Ordersheet'!M1338=\"\",\"\",'1. Ordersheet'!M1338)","v":""},{"$f":"IF('1. Ordersheet'!N1338=\"\",\"\",'1. Ordersheet'!N1338)","v":""},{"$f":"IF('1. Ordersheet'!O1338=\"\",\"\",'1. Ordersheet'!O1338)","v":{"$error":"#N/A"}},{"$f":"IF('1. Ordersheet'!P1338=\"\",\"\",'1. Ordersheet'!P1338)","v":{"$error":"#N/A"}},{"$f":"IF('1. Ordersheet'!Q1338=\"\",\"\",'1. Ordersheet'!Q1338)","v":""},{"$f":"IF('1. Ordersheet'!R1338=\"\",\"\",'1. Ordersheet'!R1338)","v":""},{"$f":"IF('1. Ordersheet'!S1338=\"\",\"\",'1. Ordersheet'!S1338)","v":""},{"$f":"IF('1. Ordersheet'!V1338=\"\",\"\",'1. Ordersheet'!V1338)","v":""},{"$f":"IF('1. Ordersheet'!W1338=\"\",\"\",'1. Ordersheet'!W1338)","v":""},{"$f":"IF('1. Ordersheet'!X1338=\"\",\"\",'1. Ordersheet'!X1338)","v":""},{"$f":"IF('1. Ordersheet'!Y1338=\"\",\"\",'1. Ordersheet'!Y1338)","v":""},{"$f":"IF('1. Ordersheet'!Z1338=\"\",\"\",'1. Ordersheet'!Z1338)","v":""},{"$f":"IF('1. Ordersheet'!AA1338=\"\",\"\",'1. Ordersheet'!AA1338)","v":""},null,{"$f":"IF('1. Ordersheet'!AS1338=\"\",\"\",'1. Ordersheet'!AS1338)","v":""},{"$f":"IF('1. Ordersheet'!AT1338=\"\",\"\",'1. Ordersheet'!AT1338)","v":""},null,null,null,null,null,null,null,{"$f":"IF('1. Ordersheet'!AX1338=\"\",\"\",'1. Ordersheet'!AX1338)","v":""},{"$f":"IF('1. Ordersheet'!AY1338=\"\",\"\",'1. Ordersheet'!AY1338)","v":""},{"$f":"IF('1. Ordersheet'!AZ1338=\"\",\"\",'1. Ordersheet'!AZ1338)","v":""},{"$f":"IF('1. Ordersheet'!BA1338=\"\",\"\",'1. Ordersheet'!BA1338)","v":""},{"$f":"IF('1. Ordersheet'!BC1338=\"\",\"\",'1. Ordersheet'!BC1338)","v":""},{"$f":"IF('1. Ordersheet'!BD1338=\"\",\"\",'1. Ordersheet'!BD1338)","v":""},{"$f":"IF('1. Ordersheet'!BE1338=\"\",\"\",'1. Ordersheet'!BE1338)","v":""},{"$f":"IF('1. Ordersheet'!BF1338=\"\",\"\",'1. Ordersheet'!BF1338)","v":""},{"$f":"IF('1. Ordersheet'!BG1338=\"\",\"\",'1. Ordersheet'!BG1338)","v":"ZWO"},{"$f":"IF('1. Ordersheet'!BH1338=\"\",\"\",'1. Ordersheet'!BH1338)","v":""},{"$f":"IF('1. Ordersheet'!BI1338=\"\",\"\",'1. Ordersheet'!BI1338)","v":""},{"$f":"IF('1. Ordersheet'!BJ1338=\"\",\"\",'1. Ordersheet'!BJ1338)","v":""},{"$f":"IF('1. Ordersheet'!BK1338=\"\",\"\",'1. Ordersheet'!BK1338)","v":""},{"$f":"IF('1. Ordersheet'!BL1338=\"\",\"\",'1. Ordersheet'!BL1338)","v":""}]
[{"$f":"IF('1. Ordersheet'!F1339=\"\",\"\",'1. Ordersheet'!F1339)","v":""},{"$f":"IF('1. Ordersheet'!G1339=\"\",\"\",'1. Ordersheet'!G1339)","v":""},{"$f":"IF('1. Ordersheet'!H1339=\"\",\"\",'1. Ordersheet'!H1339)","v":""},{"$f":"IF('1. Ordersheet'!I1339=\"\",\"\",'1. Ordersheet'!I1339)","v":""},{"$f":"IF('1. Ordersheet'!J1339=\"\",\"\",'1. Ordersheet'!J1339)","v":""},{"$f":"IF('1. Ordersheet'!K1339=\"\",\"\",'1. Ordersheet'!K1339)","v":""},{"$f":"IF('1. Ordersheet'!L1339=\"\",\"\",'1. Ordersheet'!L1339)","v":""},{"$f":"IF('1. Ordersheet'!M1339=\"\",\"\",'1. Ordersheet'!M1339)","v":""},{"$f":"IF('1. Ordersheet'!N1339=\"\",\"\",'1. Ordersheet'!N1339)","v":""},{"$f":"IF('1. Ordersheet'!O1339=\"\",\"\",'1. Ordersheet'!O1339)","v":{"$error":"#N/A"}},{"$f":"IF('1. Ordersheet'!P1339=\"\",\"\",'1. Ordersheet'!P1339)","v":{"$error":"#N/A"}},{"$f":"IF('1. Ordersheet'!Q1339=\"\",\"\",'1. Ordersheet'!Q1339)","v":""},{"$f":"IF('1. Ordersheet'!R1339=\"\",\"\",'1. Ordersheet'!R1339)","v":""},{"$f":"IF('1. Ordersheet'!S1339=\"\",\"\",'1. Ordersheet'!S1339)","v":""},{"$f":"IF('1. Ordersheet'!V1339=\"\",\"\",'1. Ordersheet'!V1339)","v":""},{"$f":"IF('1. Ordersheet'!W1339=\"\",\"\",'1. Ordersheet'!W1339)","v":""},{"$f":"IF('1. Ordersheet'!X1339=\"\",\"\",'1. Ordersheet'!X1339)","v":""},{"$f":"IF('1. Ordersheet'!Y1339=\"\",\"\",'1. Ordersheet'!Y1339)","v":""},{"$f":"IF('1. Ordersheet'!Z1339=\"\",\"\",'1. Ordersheet'!Z1339)","v":""},{"$f":"IF('1. Ordersheet'!AA1339=\"\",\"\",'1. Ordersheet'!AA1339)","v":""},null,{"$f":"IF('1. Ordersheet'!AS1339=\"\",\"\",'1. Ordersheet'!AS1339)","v":""},{"$f":"IF('1. Ordersheet'!AT1339=\"\",\"\",'1. Ordersheet'!AT1339)","v":""},null,null,null,null,null,null,null,{"$f":"IF('1. Ordersheet'!AX1339=\"\",\"\",'1. Ordersheet'!AX1339)","v":""},{"$f":"IF('1. Ordersheet'!AY1339=\"\",\"\",'1. Ordersheet'!AY1339)","v":""},{"$f":"IF('1. Ordersheet'!AZ1339=\"\",\"\",'1. Ordersheet'!AZ1339)","v":""},{"$f":"IF('1. Ordersheet'!BA1339=\"\",\"\",'1. Ordersheet'!BA1339)","v":""},{"$f":"IF('1. Ordersheet'!BC1339=\"\",\"\",'1. Ordersheet'!BC1339)","v":""},{"$f":"IF('1. Ordersheet'!BD1339=\"\",\"\",'1. Ordersheet'!BD1339)","v":""},{"$f":"IF('1. Ordersheet'!BE1339=\"\",\"\",'1. Ordersheet'!BE1339)","v":""},{"$f":"IF('1. Ordersheet'!BF1339=\"\",\"\",'1. Ordersheet'!BF1339)","v":""},{"$f":"IF('1. Ordersheet'!BG1339=\"\",\"\",'1. Ordersheet'!BG1339)","v":"ZWO"},{"$f":"IF('1. Ordersheet'!BH1339=\"\",\"\",'1. Ordersheet'!BH1339)","v":""},{"$f":"IF('1. Ordersheet'!BI1339=\"\",\"\",'1. Ordersheet'!BI1339)","v":""},{"$f":"IF('1. Ordersheet'!BJ1339=\"\",\"\",'1. Ordersheet'!BJ1339)","v":""},{"$f":"IF('1. Ordersheet'!BK1339=\"\",\"\",'1. Ordersheet'!BK1339)","v":""},{"$f":"IF('1. Ordersheet'!BL1339=\"\",\"\",'1. Ordersheet'!BL1339)","v":""}]
[{"$f":"IF('1. Ordersheet'!F1340=\"\",\"\",'1. Ordersheet'!F1340)","v":""},{"$f":"IF('1. Ordersheet'!G1340=\"\",\"\",'1. Ordersheet'!G1340)","v":""},{"$f":"IF('1. Ordersheet'!H1340=\"\",\"\",'1. Ordersheet'!H1340)","v":""},{"$f":"IF('1. Ordersheet'!I1340=\"\",\"\",'1. Ordersheet'!I1340)","v":""},{"$f":"IF('1. Ordersheet'!J1340=\"\",\"\",'1. Ordersheet'!J1340)","v":""},{"$f":"IF('1. Ordersheet'!K1340=\"\",\"\",'1. Ordersheet'!K1340)","v":""},{"$f":"IF('1. Ordersheet'!L1340=\"\",\"\",'1. Ordersheet'!L1340)","v":""},{"$f":"IF('1. Ordersheet'!M1340=\"\",\"\",'1. Ordersheet'!M1340)","v":""},{"$f":"IF('1. Ordersheet'!N1340=\"\",\"\",'1. Ordersheet'!N1340)","v":""},{"$f":"IF('1. Ordersheet'!O1340=\"\",\"\",'1. Ordersheet'!O1340)","v":{"$error":"#N/A"}},{"$f":"IF('1. Ordersheet'!P1340=\"\",\"\",'1. Ordersheet'!P1340)","v":{"$error":"#N/A"}},{"$f":"IF('1. Ordersheet'!Q1340=\"\",\"\",'1. Ordersheet'!Q1340)","v":""},{"$f":"IF('1. Ordersheet'!R1340=\"\",\"\",'1. Ordersheet'!R1340)","v":""},{"$f":"IF('1. Ordersheet'!S1340=\"\",\"\",'1. Ordersheet'!S1340)","v":""},{"$f":"IF('1. Ordersheet'!V1340=\"\",\"\",'1. Ordersheet'!V1340)","v":""},{"$f":"IF('1. Ordersheet'!W1340=\"\",\"\",'1. Ordersheet'!W1340)","v":""},{"$f":"IF('1. Ordersheet'!X1340=\"\",\"\",'1. Ordersheet'!X1340)","v":""},{"$f":"IF('1. Ordersheet'!Y1340=\"\",\"\",'1. Ordersheet'!Y1340)","v":""},{"$f":"IF('1. Ordersheet'!Z1340=\"\",\"\",'1. Ordersheet'!Z1340)","v":""},{"$f":"IF('1. Ordersheet'!AA1340=\"\",\"\",'1. Ordersheet'!AA1340)","v":""},null,{"$f":"IF('1. Ordersheet'!AS1340=\"\",\"\",'1. Ordersheet'!AS1340)","v":""},{"$f":"IF('1. Ordersheet'!AT1340=\"\",\"\",'1. Ordersheet'!AT1340)","v":""},null,null,null,null,null,null,null,{"$f":"IF('1. Ordersheet'!AX1340=\"\",\"\",'1. Ordersheet'!AX1340)","v":""},{"$f":"IF('1. Ordersheet'!AY1340=\"\",\"\",'1. Ordersheet'!AY1340)","v":""},{"$f":"IF('1. Ordersheet'!AZ1340=\"\",\"\",'1. Ordersheet'!AZ1340)","v":""},{"$f":"IF('1. Ordersheet'!BA1340=\"\",\"\",'1. Ordersheet'!BA1340)","v":""},{"$f":"IF('1. Ordersheet'!BC1340=\"\",\"\",'1. Ordersheet'!BC1340)","v":""},{"$f":"IF('1. Ordersheet'!BD1340=\"\",\"\",'1. Ordersheet'!BD1340)","v":""},{"$f":"IF('1. Ordersheet'!BE1340=\"\",\"\",'1. Ordersheet'!BE1340)","v":""},{"$f":"IF('1. Ordersheet'!BF1340=\"\",\"\",'1. Ordersheet'!BF1340)","v":""},{"$f":"IF('1. Ordersheet'!BG1340=\"\",\"\",'1. Ordersheet'!BG1340)","v":"ZWO"},{"$f":"IF('1. Ordersheet'!BH1340=\"\",\"\",'1. Ordersheet'!BH1340)","v":""},{"$f":"IF('1. Ordersheet'!BI1340=\"\",\"\",'1. Ordersheet'!BI1340)","v":""},{"$f":"IF('1. Ordersheet'!BJ1340=\"\",\"\",'1. Ordersheet'!BJ1340)","v":""},{"$f":"IF('1. Ordersheet'!BK1340=\"\",\"\",'1. Ordersheet'!BK1340)","v":""},{"$f":"IF('1. Ordersheet'!BL1340=\"\",\"\",'1. Ordersheet'!BL1340)","v":""}]
[{"$f":"IF('1. Ordersheet'!F1341=\"\",\"\",'1. Ordersheet'!F1341)","v":""},{"$f":"IF('1. Ordersheet'!G1341=\"\",\"\",'1. Ordersheet'!G1341)","v":""},{"$f":"IF('1. Ordersheet'!H1341=\"\",\"\",'1. Ordersheet'!H1341)","v":""},{"$f":"IF('1. Ordersheet'!I1341=\"\",\"\",'1. Ordersheet'!I1341)","v":""},{"$f":"IF('1. Ordersheet'!J1341=\"\",\"\",'1. Ordersheet'!J1341)","v":""},{"$f":"IF('1. Ordersheet'!K1341=\"\",\"\",'1. Ordersheet'!K1341)","v":""},{"$f":"IF('1. Ordersheet'!L1341=\"\",\"\",'1. Ordersheet'!L1341)","v":""},{"$f":"IF('1. Ordersheet'!M1341=\"\",\"\",'1. Ordersheet'!M1341)","v":""},{"$f":"IF('1. Ordersheet'!N1341=\"\",\"\",'1. Ordersheet'!N1341)","v":""},{"$f":"IF('1. Ordersheet'!O1341=\"\",\"\",'1. Ordersheet'!O1341)","v":{"$error":"#N/A"}},{"$f":"IF('1. Ordersheet'!P1341=\"\",\"\",'1. Ordersheet'!P1341)","v":{"$error":"#N/A"}},{"$f":"IF('1. Ordersheet'!Q1341=\"\",\"\",'1. Ordersheet'!Q1341)","v":""},{"$f":"IF('1. Ordersheet'!R1341=\"\",\"\",'1. Ordersheet'!R1341)","v":""},{"$f":"IF('1. Ordersheet'!S1341=\"\",\"\",'1. Ordersheet'!S1341)","v":""},{"$f":"IF('1. Ordersheet'!V1341=\"\",\"\",'1. Ordersheet'!V1341)","v":""},{"$f":"IF('1. Ordersheet'!W1341=\"\",\"\",'1. Ordersheet'!W1341)","v":""},{"$f":"IF('1. Ordersheet'!X1341=\"\",\"\",'1. Ordersheet'!X1341)","v":""},{"$f":"IF('1. Ordersheet'!Y1341=\"\",\"\",'1. Ordersheet'!Y1341)","v":""},{"$f":"IF('1. Ordersheet'!Z1341=\"\",\"\",'1. Ordersheet'!Z1341)","v":""},{"$f":"IF('1. Ordersheet'!AA1341=\"\",\"\",'1. Ordersheet'!AA1341)","v":""},null,{"$f":"IF('1. Ordersheet'!AS1341=\"\",\"\",'1. Ordersheet'!AS1341)","v":""},{"$f":"IF('1. Ordersheet'!AT1341=\"\",\"\",'1. Ordersheet'!AT1341)","v":""},null,null,null,null,null,null,null,{"$f":"IF('1. Ordersheet'!AX1341=\"\",\"\",'1. Ordersheet'!AX1341)","v":""},{"$f":"IF('1. Ordersheet'!AY1341=\"\",\"\",'1. Ordersheet'!AY1341)","v":""},{"$f":"IF('1. Ordersheet'!AZ1341=\"\",\"\",'1. Ordersheet'!AZ1341)","v":""},{"$f":"IF('1. Ordersheet'!BA1341=\"\",\"\",'1. Ordersheet'!BA1341)","v":""},{"$f":"IF('1. Ordersheet'!BC1341=\"\",\"\",'1. Ordersheet'!BC1341)","v":""},{"$f":"IF('1. Ordersheet'!BD1341=\"\",\"\",'1. Ordersheet'!BD1341)","v":""},{"$f":"IF('1. Ordersheet'!BE1341=\"\",\"\",'1. Ordersheet'!BE1341)","v":""},{"$f":"IF('1. Ordersheet'!BF1341=\"\",\"\",'1. Ordersheet'!BF1341)","v":""},{"$f":"IF('1. Ordersheet'!BG1341=\"\",\"\",'1. Ordersheet'!BG1341)","v":"ZWO"},{"$f":"IF('1. Ordersheet'!BH1341=\"\",\"\",'1. Ordersheet'!BH1341)","v":""},{"$f":"IF('1. Ordersheet'!BI1341=\"\",\"\",'1. Ordersheet'!BI1341)","v":""},{"$f":"IF('1. Ordersheet'!BJ1341=\"\",\"\",'1. Ordersheet'!BJ1341)","v":""},{"$f":"IF('1. Ordersheet'!BK1341=\"\",\"\",'1. Ordersheet'!BK1341)","v":""},{"$f":"IF('1. Ordersheet'!BL1341=\"\",\"\",'1. Ordersheet'!BL1341)","v":""}]
[{"$f":"IF('1. Ordersheet'!F1342=\"\",\"\",'1. Ordersheet'!F1342)","v":""},{"$f":"IF('1. Ordersheet'!G1342=\"\",\"\",'1. Ordersheet'!G1342)","v":""},{"$f":"IF('1. Ordersheet'!H1342=\"\",\"\",'1. Ordersheet'!H1342)","v":""},{"$f":"IF('1. Ordersheet'!I1342=\"\",\"\",'1. Ordersheet'!I1342)","v":""},{"$f":"IF('1. Ordersheet'!J1342=\"\",\"\",'1. Ordersheet'!J1342)","v":""},{"$f":"IF('1. Ordersheet'!K1342=\"\",\"\",'1. Ordersheet'!K1342)","v":""},{"$f":"IF('1. Ordersheet'!L1342=\"\",\"\",'1. Ordersheet'!L1342)","v":""},{"$f":"IF('1. Ordersheet'!M1342=\"\",\"\",'1. Ordersheet'!M1342)","v":""},{"$f":"IF('1. Ordersheet'!N1342=\"\",\"\",'1. Ordersheet'!N1342)","v":""},{"$f":"IF('1. Ordersheet'!O1342=\"\",\"\",'1. Ordersheet'!O1342)","v":{"$error":"#N/A"}},{"$f":"IF('1. Ordersheet'!P1342=\"\",\"\",'1. Ordersheet'!P1342)","v":{"$error":"#N/A"}},{"$f":"IF('1. Ordersheet'!Q1342=\"\",\"\",'1. Ordersheet'!Q1342)","v":""},{"$f":"IF('1. Ordersheet'!R1342=\"\",\"\",'1. Ordersheet'!R1342)","v":""},{"$f":"IF('1. Ordersheet'!S1342=\"\",\"\",'1. Ordersheet'!S1342)","v":""},{"$f":"IF('1. Ordersheet'!V1342=\"\",\"\",'1. Ordersheet'!V1342)","v":""},{"$f":"IF('1. Ordersheet'!W1342=\"\",\"\",'1. Ordersheet'!W1342)","v":""},{"$f":"IF('1. Ordersheet'!X1342=\"\",\"\",'1. Ordersheet'!X1342)","v":""},{"$f":"IF('1. Ordersheet'!Y1342=\"\",\"\",'1. Ordersheet'!Y1342)","v":""},{"$f":"IF('1. Ordersheet'!Z1342=\"\",\"\",'1. Ordersheet'!Z1342)","v":""},{"$f":"IF('1. Ordersheet'!AA1342=\"\",\"\",'1. Ordersheet'!AA1342)","v":""},null,{"$f":"IF('1. Ordersheet'!AS1342=\"\",\"\",'1. Ordersheet'!AS1342)","v":""},{"$f":"IF('1. Ordersheet'!AT1342=\"\",\"\",'1. Ordersheet'!AT1342)","v":""},null,null,null,null,null,null,null,{"$f":"IF('1. Ordersheet'!AX1342=\"\",\"\",'1. Ordersheet'!AX1342)","v":""},{"$f":"IF('1. Ordersheet'!AY1342=\"\",\"\",'1. Ordersheet'!AY1342)","v":""},{"$f":"IF('1. Ordersheet'!AZ1342=\"\",\"\",'1. Ordersheet'!AZ1342)","v":""},{"$f":"IF('1. Ordersheet'!BA1342=\"\",\"\",'1. Ordersheet'!BA1342)","v":""},{"$f":"IF('1. Ordersheet'!BC1342=\"\",\"\",'1. Ordersheet'!BC1342)","v":""},{"$f":"IF('1. Ordersheet'!BD1342=\"\",\"\",'1. Ordersheet'!BD1342)","v":""},{"$f":"IF('1. Ordersheet'!BE1342=\"\",\"\",'1. Ordersheet'!BE1342)","v":""},{"$f":"IF('1. Ordersheet'!BF1342=\"\",\"\",'1. Ordersheet'!BF1342)","v":""},{"$f":"IF('1. Ordersheet'!BG1342=\"\",\"\",'1. Ordersheet'!BG1342)","v":"ZWO"},{"$f":"IF('1. Ordersheet'!BH1342=\"\",\"\",'1. Ordersheet'!BH1342)","v":""},{"$f":"IF('1. Ordersheet'!BI1342=\"\",\"\",'1. Ordersheet'!BI1342)","v":""},{"$f":"IF('1. Ordersheet'!BJ1342=\"\",\"\",'1. Ordersheet'!BJ1342)","v":""},{"$f":"IF('1. Ordersheet'!BK1342=\"\",\"\",'1. Ordersheet'!BK1342)","v":""},{"$f":"IF('1. Ordersheet'!BL1342=\"\",\"\",'1. Ordersheet'!BL1342)","v":""}]
[{"$f":"IF('1. Ordersheet'!F1343=\"\",\"\",'1. Ordersheet'!F1343)","v":""},{"$f":"IF('1. Ordersheet'!G1343=\"\",\"\",'1. Ordersheet'!G1343)","v":""},{"$f":"IF('1. Ordersheet'!H1343=\"\",\"\",'1. Ordersheet'!H1343)","v":""},{"$f":"IF('1. Ordersheet'!I1343=\"\",\"\",'1. Ordersheet'!I1343)","v":""},{"$f":"IF('1. Ordersheet'!J1343=\"\",\"\",'1. Ordersheet'!J1343)","v":""},{"$f":"IF('1. Ordersheet'!K1343=\"\",\"\",'1. Ordersheet'!K1343)","v":""},{"$f":"IF('1. Ordersheet'!L1343=\"\",\"\",'1. Ordersheet'!L1343)","v":""},{"$f":"IF('1. Ordersheet'!M1343=\"\",\"\",'1. Ordersheet'!M1343)","v":""},{"$f":"IF('1. Ordersheet'!N1343=\"\",\"\",'1. Ordersheet'!N1343)","v":""},{"$f":"IF('1. Ordersheet'!O1343=\"\",\"\",'1. Ordersheet'!O1343)","v":{"$error":"#N/A"}},{"$f":"IF('1. Ordersheet'!P1343=\"\",\"\",'1. Ordersheet'!P1343)","v":{"$error":"#N/A"}},{"$f":"IF('1. Ordersheet'!Q1343=\"\",\"\",'1. Ordersheet'!Q1343)","v":""},{"$f":"IF('1. Ordersheet'!R1343=\"\",\"\",'1. Ordersheet'!R1343)","v":""},{"$f":"IF('1. Ordersheet'!S1343=\"\",\"\",'1. Ordersheet'!S1343)","v":""},{"$f":"IF('1. Ordersheet'!V1343=\"\",\"\",'1. Ordersheet'!V1343)","v":""},{"$f":"IF('1. Ordersheet'!W1343=\"\",\"\",'1. Ordersheet'!W1343)","v":""},{"$f":"IF('1. Ordersheet'!X1343=\"\",\"\",'1. Ordersheet'!X1343)","v":""},{"$f":"IF('1. Ordersheet'!Y1343=\"\",\"\",'1. Ordersheet'!Y1343)","v":""},{"$f":"IF('1. Ordersheet'!Z1343=\"\",\"\",'1. Ordersheet'!Z1343)","v":""},{"$f":"IF('1. Ordersheet'!AA1343=\"\",\"\",'1. Ordersheet'!AA1343)","v":""},null,{"$f":"IF('1. Ordersheet'!AS1343=\"\",\"\",'1. Ordersheet'!AS1343)","v":""},{"$f":"IF('1. Ordersheet'!AT1343=\"\",\"\",'1. Ordersheet'!AT1343)","v":""},null,null,null,null,null,null,null,{"$f":"IF('1. Ordersheet'!AX1343=\"\",\"\",'1. Ordersheet'!AX1343)","v":""},{"$f":"IF('1. Ordersheet'!AY1343=\"\",\"\",'1. Ordersheet'!AY1343)","v":""},{"$f":"IF('1. Ordersheet'!AZ1343=\"\",\"\",'1. Ordersheet'!AZ1343)","v":""},{"$f":"IF('1. Ordersheet'!BA1343=\"\",\"\",'1. Ordersheet'!BA1343)","v":""},{"$f":"IF('1. Ordersheet'!BC1343=\"\",\"\",'1. Ordersheet'!BC1343)","v":""},{"$f":"IF('1. Ordersheet'!BD1343=\"\",\"\",'1. Ordersheet'!BD1343)","v":""},{"$f":"IF('1. Ordersheet'!BE1343=\"\",\"\",'1. Ordersheet'!BE1343)","v":""},{"$f":"IF('1. Ordersheet'!BF1343=\"\",\"\",'1. Ordersheet'!BF1343)","v":""},{"$f":"IF('1. Ordersheet'!BG1343=\"\",\"\",'1. Ordersheet'!BG1343)","v":"ZWO"},{"$f":"IF('1. Ordersheet'!BH1343=\"\",\"\",'1. Ordersheet'!BH1343)","v":""},{"$f":"IF('1. Ordersheet'!BI1343=\"\",\"\",'1. Ordersheet'!BI1343)","v":""},{"$f":"IF('1. Ordersheet'!BJ1343=\"\",\"\",'1. Ordersheet'!BJ1343)","v":""},{"$f":"IF('1. Ordersheet'!BK1343=\"\",\"\",'1. Ordersheet'!BK1343)","v":""},{"$f":"IF('1. Ordersheet'!BL1343=\"\",\"\",'1. Ordersheet'!BL1343)","v":""}]
[{"$f":"IF('1. Ordersheet'!F1344=\"\",\"\",'1. Ordersheet'!F1344)","v":""},{"$f":"IF('1. Ordersheet'!G1344=\"\",\"\",'1. Ordersheet'!G1344)","v":""},{"$f":"IF('1. Ordersheet'!H1344=\"\",\"\",'1. Ordersheet'!H1344)","v":""},{"$f":"IF('1. Ordersheet'!I1344=\"\",\"\",'1. Ordersheet'!I1344)","v":""},{"$f":"IF('1. Ordersheet'!J1344=\"\",\"\",'1. Ordersheet'!J1344)","v":""},{"$f":"IF('1. Ordersheet'!K1344=\"\",\"\",'1. Ordersheet'!K1344)","v":""},{"$f":"IF('1. Ordersheet'!L1344=\"\",\"\",'1. Ordersheet'!L1344)","v":""},{"$f":"IF('1. Ordersheet'!M1344=\"\",\"\",'1. Ordersheet'!M1344)","v":""},{"$f":"IF('1. Ordersheet'!N1344=\"\",\"\",'1. Ordersheet'!N1344)","v":""},{"$f":"IF('1. Ordersheet'!O1344=\"\",\"\",'1. Ordersheet'!O1344)","v":{"$error":"#N/A"}},{"$f":"IF('1. Ordersheet'!P1344=\"\",\"\",'1. Ordersheet'!P1344)","v":{"$error":"#N/A"}},{"$f":"IF('1. Ordersheet'!Q1344=\"\",\"\",'1. Ordersheet'!Q1344)","v":""},{"$f":"IF('1. Ordersheet'!R1344=\"\",\"\",'1. Ordersheet'!R1344)","v":""},{"$f":"IF('1. Ordersheet'!S1344=\"\",\"\",'1. Ordersheet'!S1344)","v":""},{"$f":"IF('1. Ordersheet'!V1344=\"\",\"\",'1. Ordersheet'!V1344)","v":""},{"$f":"IF('1. Ordersheet'!W1344=\"\",\"\",'1. Ordersheet'!W1344)","v":""},{"$f":"IF('1. Ordersheet'!X1344=\"\",\"\",'1. Ordersheet'!X1344)","v":""},{"$f":"IF('1. Ordersheet'!Y1344=\"\",\"\",'1. Ordersheet'!Y1344)","v":""},{"$f":"IF('1. Ordersheet'!Z1344=\"\",\"\",'1. Ordersheet'!Z1344)","v":""},{"$f":"IF('1. Ordersheet'!AA1344=\"\",\"\",'1. Ordersheet'!AA1344)","v":""},null,{"$f":"IF('1. Ordersheet'!AS1344=\"\",\"\",'1. Ordersheet'!AS1344)","v":""},{"$f":"IF('1. Ordersheet'!AT1344=\"\",\"\",'1. Ordersheet'!AT1344)","v":""},null,null,null,null,null,null,null,{"$f":"IF('1. Ordersheet'!AX1344=\"\",\"\",'1. Ordersheet'!AX1344)","v":""},{"$f":"IF('1. Ordersheet'!AY1344=\"\",\"\",'1. Ordersheet'!AY1344)","v":""},{"$f":"IF('1. Ordersheet'!AZ1344=\"\",\"\",'1. Ordersheet'!AZ1344)","v":""},{"$f":"IF('1. Ordersheet'!BA1344=\"\",\"\",'1. Ordersheet'!BA1344)","v":""},{"$f":"IF('1. Ordersheet'!BC1344=\"\",\"\",'1. Ordersheet'!BC1344)","v":""},{"$f":"IF('1. Ordersheet'!BD1344=\"\",\"\",'1. Ordersheet'!BD1344)","v":""},{"$f":"IF('1. Ordersheet'!BE1344=\"\",\"\",'1. Ordersheet'!BE1344)","v":""},{"$f":"IF('1. Ordersheet'!BF1344=\"\",\"\",'1. Ordersheet'!BF1344)","v":""},{"$f":"IF('1. Ordersheet'!BG1344=\"\",\"\",'1. Ordersheet'!BG1344)","v":"ZWO"},{"$f":"IF('1. Ordersheet'!BH1344=\"\",\"\",'1. Ordersheet'!BH1344)","v":""},{"$f":"IF('1. Ordersheet'!BI1344=\"\",\"\",'1. Ordersheet'!BI1344)","v":""},{"$f":"IF('1. Ordersheet'!BJ1344=\"\",\"\",'1. Ordersheet'!BJ1344)","v":""},{"$f":"IF('1. Ordersheet'!BK1344=\"\",\"\",'1. Ordersheet'!BK1344)","v":""},{"$f":"IF('1. Ordersheet'!BL1344=\"\",\"\",'1. Ordersheet'!BL1344)","v":""}]
[{"$f":"IF('1. Ordersheet'!F1345=\"\",\"\",'1. Ordersheet'!F1345)","v":""},{"$f":"IF('1. Ordersheet'!G1345=\"\",\"\",'1. Ordersheet'!G1345)","v":""},{"$f":"IF('1. Ordersheet'!H1345=\"\",\"\",'1. Ordersheet'!H1345)","v":""},{"$f":"IF('1. Ordersheet'!I1345=\"\",\"\",'1. Ordersheet'!I1345)","v":""},{"$f":"IF('1. Ordersheet'!J1345=\"\",\"\",'1. Ordersheet'!J1345)","v":""},{"$f":"IF('1. Ordersheet'!K1345=\"\",\"\",'1. Ordersheet'!K1345)","v":""},{"$f":"IF('1. Ordersheet'!L1345=\"\",\"\",'1. Ordersheet'!L1345)","v":""},{"$f":"IF('1. Ordersheet'!M1345=\"\",\"\",'1. Ordersheet'!M1345)","v":""},{"$f":"IF('1. Ordersheet'!N1345=\"\",\"\",'1. Ordersheet'!N1345)","v":""},{"$f":"IF('1. Ordersheet'!O1345=\"\",\"\",'1. Ordersheet'!O1345)","v":{"$error":"#N/A"}},{"$f":"IF('1. Ordersheet'!P1345=\"\",\"\",'1. Ordersheet'!P1345)","v":{"$error":"#N/A"}},{"$f":"IF('1. Ordersheet'!Q1345=\"\",\"\",'1. Ordersheet'!Q1345)","v":""},{"$f":"IF('1. Ordersheet'!R1345=\"\",\"\",'1. Ordersheet'!R1345)","v":""},{"$f":"IF('1. Ordersheet'!S1345=\"\",\"\",'1. Ordersheet'!S1345)","v":""},{"$f":"IF('1. Ordersheet'!V1345=\"\",\"\",'1. Ordersheet'!V1345)","v":""},{"$f":"IF('1. Ordersheet'!W1345=\"\",\"\",'1. Ordersheet'!W1345)","v":""},{"$f":"IF('1. Ordersheet'!X1345=\"\",\"\",'1. Ordersheet'!X1345)","v":""},{"$f":"IF('1. Ordersheet'!Y1345=\"\",\"\",'1. Ordersheet'!Y1345)","v":""},{"$f":"IF('1. Ordersheet'!Z1345=\"\",\"\",'1. Ordersheet'!Z1345)","v":""},{"$f":"IF('1. Ordersheet'!AA1345=\"\",\"\",'1. Ordersheet'!AA1345)","v":""},null,{"$f":"IF('1. Ordersheet'!AS1345=\"\",\"\",'1. Ordersheet'!AS1345)","v":""},{"$f":"IF('1. Ordersheet'!AT1345=\"\",\"\",'1. Ordersheet'!AT1345)","v":""},null,null,null,null,null,null,null,{"$f":"IF('1. Ordersheet'!AX1345=\"\",\"\",'1. Ordersheet'!AX1345)","v":""},{"$f":"IF('1. Ordersheet'!AY1345=\"\",\"\",'1. Ordersheet'!AY1345)","v":""},{"$f":"IF('1. Ordersheet'!AZ1345=\"\",\"\",'1. Ordersheet'!AZ1345)","v":""},{"$f":"IF('1. Ordersheet'!BA1345=\"\",\"\",'1. Ordersheet'!BA1345)","v":""},{"$f":"IF('1. Ordersheet'!BC1345=\"\",\"\",'1. Ordersheet'!BC1345)","v":""},{"$f":"IF('1. Ordersheet'!BD1345=\"\",\"\",'1. Ordersheet'!BD1345)","v":""},{"$f":"IF('1. Ordersheet'!BE1345=\"\",\"\",'1. Ordersheet'!BE1345)","v":""},{"$f":"IF('1. Ordersheet'!BF1345=\"\",\"\",'1. Ordersheet'!BF1345)","v":""},{"$f":"IF('1. Ordersheet'!BG1345=\"\",\"\",'1. Ordersheet'!BG1345)","v":"ZWO"},{"$f":"IF('1. Ordersheet'!BH1345=\"\",\"\",'1. Ordersheet'!BH1345)","v":""},{"$f":"IF('1. Ordersheet'!BI1345=\"\",\"\",'1. Ordersheet'!BI1345)","v":""},{"$f":"IF('1. Ordersheet'!BJ1345=\"\",\"\",'1. Ordersheet'!BJ1345)","v":""},{"$f":"IF('1. Ordersheet'!BK1345=\"\",\"\",'1. Ordersheet'!BK1345)","v":""},{"$f":"IF('1. Ordersheet'!BL1345=\"\",\"\",'1. Ordersheet'!BL1345)","v":""}]
[{"$f":"IF('1. Ordersheet'!F1346=\"\",\"\",'1. Ordersheet'!F1346)","v":""},{"$f":"IF('1. Ordersheet'!G1346=\"\",\"\",'1. Ordersheet'!G1346)","v":""},{"$f":"IF('1. Ordersheet'!H1346=\"\",\"\",'1. Ordersheet'!H1346)","v":""},{"$f":"IF('1. Ordersheet'!I1346=\"\",\"\",'1. Ordersheet'!I1346)","v":""},{"$f":"IF('1. Ordersheet'!J1346=\"\",\"\",'1. Ordersheet'!J1346)","v":""},{"$f":"IF('1. Ordersheet'!K1346=\"\",\"\",'1. Ordersheet'!K1346)","v":""},{"$f":"IF('1. Ordersheet'!L1346=\"\",\"\",'1. Ordersheet'!L1346)","v":""},{"$f":"IF('1. Ordersheet'!M1346=\"\",\"\",'1. Ordersheet'!M1346)","v":""},{"$f":"IF('1. Ordersheet'!N1346=\"\",\"\",'1. Ordersheet'!N1346)","v":""},{"$f":"IF('1. Ordersheet'!O1346=\"\",\"\",'1. Ordersheet'!O1346)","v":{"$error":"#N/A"}},{"$f":"IF('1. Ordersheet'!P1346=\"\",\"\",'1. Ordersheet'!P1346)","v":{"$error":"#N/A"}},{"$f":"IF('1. Ordersheet'!Q1346=\"\",\"\",'1. Ordersheet'!Q1346)","v":""},{"$f":"IF('1. Ordersheet'!R1346=\"\",\"\",'1. Ordersheet'!R1346)","v":""},{"$f":"IF('1. Ordersheet'!S1346=\"\",\"\",'1. Ordersheet'!S1346)","v":""},{"$f":"IF('1. Ordersheet'!V1346=\"\",\"\",'1. Ordersheet'!V1346)","v":""},{"$f":"IF('1. Ordersheet'!W1346=\"\",\"\",'1. Ordersheet'!W1346)","v":""},{"$f":"IF('1. Ordersheet'!X1346=\"\",\"\",'1. Ordersheet'!X1346)","v":""},{"$f":"IF('1. Ordersheet'!Y1346=\"\",\"\",'1. Ordersheet'!Y1346)","v":""},{"$f":"IF('1. Ordersheet'!Z1346=\"\",\"\",'1. Ordersheet'!Z1346)","v":""},{"$f":"IF('1. Ordersheet'!AA1346=\"\",\"\",'1. Ordersheet'!AA1346)","v":""},null,{"$f":"IF('1. Ordersheet'!AS1346=\"\",\"\",'1. Ordersheet'!AS1346)","v":""},{"$f":"IF('1. Ordersheet'!AT1346=\"\",\"\",'1. Ordersheet'!AT1346)","v":""},null,null,null,null,null,null,null,{"$f":"IF('1. Ordersheet'!AX1346=\"\",\"\",'1. Ordersheet'!AX1346)","v":""},{"$f":"IF('1. Ordersheet'!AY1346=\"\",\"\",'1. Ordersheet'!AY1346)","v":""},{"$f":"IF('1. Ordersheet'!AZ1346=\"\",\"\",'1. Ordersheet'!AZ1346)","v":""},{"$f":"IF('1. Ordersheet'!BA1346=\"\",\"\",'1. Ordersheet'!BA1346)","v":""},{"$f":"IF('1. Ordersheet'!BC1346=\"\",\"\",'1. Ordersheet'!BC1346)","v":""},{"$f":"IF('1. Ordersheet'!BD1346=\"\",\"\",'1. Ordersheet'!BD1346)","v":""},{"$f":"IF('1. Ordersheet'!BE1346=\"\",\"\",'1. Ordersheet'!BE1346)","v":""},{"$f":"IF('1. Ordersheet'!BF1346=\"\",\"\",'1. Ordersheet'!BF1346)","v":""},{"$f":"IF('1. Ordersheet'!BG1346=\"\",\"\",'1. Ordersheet'!BG1346)","v":"ZWO"},{"$f":"IF('1. Ordersheet'!BH1346=\"\",\"\",'1. Ordersheet'!BH1346)","v":""},{"$f":"IF('1. Ordersheet'!BI1346=\"\",\"\",'1. Ordersheet'!BI1346)","v":""},{"$f":"IF('1. Ordersheet'!BJ1346=\"\",\"\",'1. Ordersheet'!BJ1346)","v":""},{"$f":"IF('1. Ordersheet'!BK1346=\"\",\"\",'1. Ordersheet'!BK1346)","v":""},{"$f":"IF('1. Ordersheet'!BL1346=\"\",\"\",'1. Ordersheet'!BL1346)","v":""}]
[{"$f":"IF('1. Ordersheet'!F1347=\"\",\"\",'1. Ordersheet'!F1347)","v":""},{"$f":"IF('1. Ordersheet'!G1347=\"\",\"\",'1. Ordersheet'!G1347)","v":""},{"$f":"IF('1. Ordersheet'!H1347=\"\",\"\",'1. Ordersheet'!H1347)","v":""},{"$f":"IF('1. Ordersheet'!I1347=\"\",\"\",'1. Ordersheet'!I1347)","v":""},{"$f":"IF('1. Ordersheet'!J1347=\"\",\"\",'1. Ordersheet'!J1347)","v":""},{"$f":"IF('1. Ordersheet'!K1347=\"\",\"\",'1. Ordersheet'!K1347)","v":""},{"$f":"IF('1. Ordersheet'!L1347=\"\",\"\",'1. Ordersheet'!L1347)","v":""},{"$f":"IF('1. Ordersheet'!M1347=\"\",\"\",'1. Ordersheet'!M1347)","v":""},{"$f":"IF('1. Ordersheet'!N1347=\"\",\"\",'1. Ordersheet'!N1347)","v":""},{"$f":"IF('1. Ordersheet'!O1347=\"\",\"\",'1. Ordersheet'!O1347)","v":{"$error":"#N/A"}},{"$f":"IF('1. Ordersheet'!P1347=\"\",\"\",'1. Ordersheet'!P1347)","v":{"$error":"#N/A"}},{"$f":"IF('1. Ordersheet'!Q1347=\"\",\"\",'1. Ordersheet'!Q1347)","v":""},{"$f":"IF('1. Ordersheet'!R1347=\"\",\"\",'1. Ordersheet'!R1347)","v":""},{"$f":"IF('1. Ordersheet'!S1347=\"\",\"\",'1. Ordersheet'!S1347)","v":""},{"$f":"IF('1. Ordersheet'!V1347=\"\",\"\",'1. Ordersheet'!V1347)","v":""},{"$f":"IF('1. Ordersheet'!W1347=\"\",\"\",'1. Ordersheet'!W1347)","v":""},{"$f":"IF('1. Ordersheet'!X1347=\"\",\"\",'1. Ordersheet'!X1347)","v":""},{"$f":"IF('1. Ordersheet'!Y1347=\"\",\"\",'1. Ordersheet'!Y1347)","v":""},{"$f":"IF('1. Ordersheet'!Z1347=\"\",\"\",'1. Ordersheet'!Z1347)","v":""},{"$f":"IF('1. Ordersheet'!AA1347=\"\",\"\",'1. Ordersheet'!AA1347)","v":""},null,{"$f":"IF('1. Ordersheet'!AS1347=\"\",\"\",'1. Ordersheet'!AS1347)","v":""},{"$f":"IF('1. Ordersheet'!AT1347=\"\",\"\",'1. Ordersheet'!AT1347)","v":""},null,null,null,null,null,null,null,{"$f":"IF('1. Ordersheet'!AX1347=\"\",\"\",'1. Ordersheet'!AX1347)","v":""},{"$f":"IF('1. Ordersheet'!AY1347=\"\",\"\",'1. Ordersheet'!AY1347)","v":""},{"$f":"IF('1. Ordersheet'!AZ1347=\"\",\"\",'1. Ordersheet'!AZ1347)","v":""},{"$f":"IF('1. Ordersheet'!BA1347=\"\",\"\",'1. Ordersheet'!BA1347)","v":""},{"$f":"IF('1. Ordersheet'!BC1347=\"\",\"\",'1. Ordersheet'!BC1347)","v":""},{"$f":"IF('1. Ordersheet'!BD1347=\"\",\"\",'1. Ordersheet'!BD1347)","v":""},{"$f":"IF('1. Ordersheet'!BE1347=\"\",\"\",'1. Ordersheet'!BE1347)","v":""},{"$f":"IF('1. Ordersheet'!BF1347=\"\",\"\",'1. Ordersheet'!BF1347)","v":""},{"$f":"IF('1. Ordersheet'!BG1347=\"\",\"\",'1. Ordersheet'!BG1347)","v":"ZWO"},{"$f":"IF('1. Ordersheet'!BH1347=\"\",\"\",'1. Ordersheet'!BH1347)","v":""},{"$f":"IF('1. Ordersheet'!BI1347=\"\",\"\",'1. Ordersheet'!BI1347)","v":""},{"$f":"IF('1. Ordersheet'!BJ1347=\"\",\"\",'1. Ordersheet'!BJ1347)","v":""},{"$f":"IF('1. Ordersheet'!BK1347=\"\",\"\",'1. Ordersheet'!BK1347)","v":""},{"$f":"IF('1. Ordersheet'!BL1347=\"\",\"\",'1. Ordersheet'!BL1347)","v":""}]
[{"$f":"IF('1. Ordersheet'!F1348=\"\",\"\",'1. Ordersheet'!F1348)","v":""},{"$f":"IF('1. Ordersheet'!G1348=\"\",\"\",'1. Ordersheet'!G1348)","v":""},{"$f":"IF('1. Ordersheet'!H1348=\"\",\"\",'1. Ordersheet'!H1348)","v":""},{"$f":"IF('1. Ordersheet'!I1348=\"\",\"\",'1. Ordersheet'!I1348)","v":""},{"$f":"IF('1. Ordersheet'!J1348=\"\",\"\",'1. Ordersheet'!J1348)","v":""},{"$f":"IF('1. Ordersheet'!K1348=\"\",\"\",'1. Ordersheet'!K1348)","v":""},{"$f":"IF('1. Ordersheet'!L1348=\"\",\"\",'1. Ordersheet'!L1348)","v":""},{"$f":"IF('1. Ordersheet'!M1348=\"\",\"\",'1. Ordersheet'!M1348)","v":""},{"$f":"IF('1. Ordersheet'!N1348=\"\",\"\",'1. Ordersheet'!N1348)","v":""},{"$f":"IF('1. Ordersheet'!O1348=\"\",\"\",'1. Ordersheet'!O1348)","v":{"$error":"#N/A"}},{"$f":"IF('1. Ordersheet'!P1348=\"\",\"\",'1. Ordersheet'!P1348)","v":{"$error":"#N/A"}},{"$f":"IF('1. Ordersheet'!Q1348=\"\",\"\",'1. Ordersheet'!Q1348)","v":""},{"$f":"IF('1. Ordersheet'!R1348=\"\",\"\",'1. Ordersheet'!R1348)","v":""},{"$f":"IF('1. Ordersheet'!S1348=\"\",\"\",'1. Ordersheet'!S1348)","v":""},{"$f":"IF('1. Ordersheet'!V1348=\"\",\"\",'1. Ordersheet'!V1348)","v":""},{"$f":"IF('1. Ordersheet'!W1348=\"\",\"\",'1. Ordersheet'!W1348)","v":""},{"$f":"IF('1. Ordersheet'!X1348=\"\",\"\",'1. Ordersheet'!X1348)","v":""},{"$f":"IF('1. Ordersheet'!Y1348=\"\",\"\",'1. Ordersheet'!Y1348)","v":""},{"$f":"IF('1. Ordersheet'!Z1348=\"\",\"\",'1. Ordersheet'!Z1348)","v":""},{"$f":"IF('1. Ordersheet'!AA1348=\"\",\"\",'1. Ordersheet'!AA1348)","v":""},null,{"$f":"IF('1. Ordersheet'!AS1348=\"\",\"\",'1. Ordersheet'!AS1348)","v":""},{"$f":"IF('1. Ordersheet'!AT1348=\"\",\"\",'1. Ordersheet'!AT1348)","v":""},null,null,null,null,null,null,null,{"$f":"IF('1. Ordersheet'!AX1348=\"\",\"\",'1. Ordersheet'!AX1348)","v":""},{"$f":"IF('1. Ordersheet'!AY1348=\"\",\"\",'1. Ordersheet'!AY1348)","v":""},{"$f":"IF('1. Ordersheet'!AZ1348=\"\",\"\",'1. Ordersheet'!AZ1348)","v":""},{"$f":"IF('1. Ordersheet'!BA1348=\"\",\"\",'1. Ordersheet'!BA1348)","v":""},{"$f":"IF('1. Ordersheet'!BC1348=\"\",\"\",'1. Ordersheet'!BC1348)","v":""},{"$f":"IF('1. Ordersheet'!BD1348=\"\",\"\",'1. Ordersheet'!BD1348)","v":""},{"$f":"IF('1. Ordersheet'!BE1348=\"\",\"\",'1. Ordersheet'!BE1348)","v":""},{"$f":"IF('1. Ordersheet'!BF1348=\"\",\"\",'1. Ordersheet'!BF1348)","v":""},{"$f":"IF('1. Ordersheet'!BG1348=\"\",\"\",'1. Ordersheet'!BG1348)","v":"ZWO"},{"$f":"IF('1. Ordersheet'!BH1348=\"\",\"\",'1. Ordersheet'!BH1348)","v":""},{"$f":"IF('1. Ordersheet'!BI1348=\"\",\"\",'1. Ordersheet'!BI1348)","v":""},{"$f":"IF('1. Ordersheet'!BJ1348=\"\",\"\",'1. Ordersheet'!BJ1348)","v":""},{"$f":"IF('1. Ordersheet'!BK1348=\"\",\"\",'1. Ordersheet'!BK1348)","v":""},{"$f":"IF('1. Ordersheet'!BL1348=\"\",\"\",'1. Ordersheet'!BL1348)","v":""}]
[{"$f":"IF('1. Ordersheet'!F1349=\"\",\"\",'1. Ordersheet'!F1349)","v":""},{"$f":"IF('1. Ordersheet'!G1349=\"\",\"\",'1. Ordersheet'!G1349)","v":""},{"$f":"IF('1. Ordersheet'!H1349=\"\",\"\",'1. Ordersheet'!H1349)","v":""},{"$f":"IF('1. Ordersheet'!I1349=\"\",\"\",'1. Ordersheet'!I1349)","v":""},{"$f":"IF('1. Ordersheet'!J1349=\"\",\"\",'1. Ordersheet'!J1349)","v":""},{"$f":"IF('1. Ordersheet'!K1349=\"\",\"\",'1. Ordersheet'!K1349)","v":""},{"$f":"IF('1. Ordersheet'!L1349=\"\",\"\",'1. Ordersheet'!L1349)","v":""},{"$f":"IF('1. Ordersheet'!M1349=\"\",\"\",'1. Ordersheet'!M1349)","v":""},{"$f":"IF('1. Ordersheet'!N1349=\"\",\"\",'1. Ordersheet'!N1349)","v":""},{"$f":"IF('1. Ordersheet'!O1349=\"\",\"\",'1. Ordersheet'!O1349)","v":{"$error":"#N/A"}},{"$f":"IF('1. Ordersheet'!P1349=\"\",\"\",'1. Ordersheet'!P1349)","v":{"$error":"#N/A"}},{"$f":"IF('1. Ordersheet'!Q1349=\"\",\"\",'1. Ordersheet'!Q1349)","v":""},{"$f":"IF('1. Ordersheet'!R1349=\"\",\"\",'1. Ordersheet'!R1349)","v":""},{"$f":"IF('1. Ordersheet'!S1349=\"\",\"\",'1. Ordersheet'!S1349)","v":""},{"$f":"IF('1. Ordersheet'!V1349=\"\",\"\",'1. Ordersheet'!V1349)","v":""},{"$f":"IF('1. Ordersheet'!W1349=\"\",\"\",'1. Ordersheet'!W1349)","v":""},{"$f":"IF('1. Ordersheet'!X1349=\"\",\"\",'1. Ordersheet'!X1349)","v":""},{"$f":"IF('1. Ordersheet'!Y1349=\"\",\"\",'1. Ordersheet'!Y1349)","v":""},{"$f":"IF('1. Ordersheet'!Z1349=\"\",\"\",'1. Ordersheet'!Z1349)","v":""},{"$f":"IF('1. Ordersheet'!AA1349=\"\",\"\",'1. Ordersheet'!AA1349)","v":""},null,{"$f":"IF('1. Ordersheet'!AS1349=\"\",\"\",'1. Ordersheet'!AS1349)","v":""},{"$f":"IF('1. Ordersheet'!AT1349=\"\",\"\",'1. Ordersheet'!AT1349)","v":""},null,null,null,null,null,null,null,{"$f":"IF('1. Ordersheet'!AX1349=\"\",\"\",'1. Ordersheet'!AX1349)","v":""},{"$f":"IF('1. Ordersheet'!AY1349=\"\",\"\",'1. Ordersheet'!AY1349)","v":""},{"$f":"IF('1. Ordersheet'!AZ1349=\"\",\"\",'1. Ordersheet'!AZ1349)","v":""},{"$f":"IF('1. Ordersheet'!BA1349=\"\",\"\",'1. Ordersheet'!BA1349)","v":""},{"$f":"IF('1. Ordersheet'!BC1349=\"\",\"\",'1. Ordersheet'!BC1349)","v":""},{"$f":"IF('1. Ordersheet'!BD1349=\"\",\"\",'1. Ordersheet'!BD1349)","v":""},{"$f":"IF('1. Ordersheet'!BE1349=\"\",\"\",'1. Ordersheet'!BE1349)","v":""},{"$f":"IF('1. Ordersheet'!BF1349=\"\",\"\",'1. Ordersheet'!BF1349)","v":""},{"$f":"IF('1. Ordersheet'!BG1349=\"\",\"\",'1. Ordersheet'!BG1349)","v":"ZWO"},{"$f":"IF('1. Ordersheet'!BH1349=\"\",\"\",'1. Ordersheet'!BH1349)","v":""},{"$f":"IF('1. Ordersheet'!BI1349=\"\",\"\",'1. Ordersheet'!BI1349)","v":""},{"$f":"IF('1. Ordersheet'!BJ1349=\"\",\"\",'1. Ordersheet'!BJ1349)","v":""},{"$f":"IF('1. Ordersheet'!BK1349=\"\",\"\",'1. Ordersheet'!BK1349)","v":""},{"$f":"IF('1. Ordersheet'!BL1349=\"\",\"\",'1. Ordersheet'!BL1349)","v":""}]
[{"$f":"IF('1. Ordersheet'!F1350=\"\",\"\",'1. Ordersheet'!F1350)","v":""},{"$f":"IF('1. Ordersheet'!G1350=\"\",\"\",'1. Ordersheet'!G1350)","v":""},{"$f":"IF('1. Ordersheet'!H1350=\"\",\"\",'1. Ordersheet'!H1350)","v":""},{"$f":"IF('1. Ordersheet'!I1350=\"\",\"\",'1. Ordersheet'!I1350)","v":""},{"$f":"IF('1. Ordersheet'!J1350=\"\",\"\",'1. Ordersheet'!J1350)","v":""},{"$f":"IF('1. Ordersheet'!K1350=\"\",\"\",'1. Ordersheet'!K1350)","v":""},{"$f":"IF('1. Ordersheet'!L1350=\"\",\"\",'1. Ordersheet'!L1350)","v":""},{"$f":"IF('1. Ordersheet'!M1350=\"\",\"\",'1. Ordersheet'!M1350)","v":""},{"$f":"IF('1. Ordersheet'!N1350=\"\",\"\",'1. Ordersheet'!N1350)","v":""},{"$f":"IF('1. Ordersheet'!O1350=\"\",\"\",'1. Ordersheet'!O1350)","v":{"$error":"#N/A"}},{"$f":"IF('1. Ordersheet'!P1350=\"\",\"\",'1. Ordersheet'!P1350)","v":{"$error":"#N/A"}},{"$f":"IF('1. Ordersheet'!Q1350=\"\",\"\",'1. Ordersheet'!Q1350)","v":""},{"$f":"IF('1. Ordersheet'!R1350=\"\",\"\",'1. Ordersheet'!R1350)","v":""},{"$f":"IF('1. Ordersheet'!S1350=\"\",\"\",'1. Ordersheet'!S1350)","v":""},{"$f":"IF('1. Ordersheet'!V1350=\"\",\"\",'1. Ordersheet'!V1350)","v":""},{"$f":"IF('1. Ordersheet'!W1350=\"\",\"\",'1. Ordersheet'!W1350)","v":""},{"$f":"IF('1. Ordersheet'!X1350=\"\",\"\",'1. Ordersheet'!X1350)","v":""},{"$f":"IF('1. Ordersheet'!Y1350=\"\",\"\",'1. Ordersheet'!Y1350)","v":""},{"$f":"IF('1. Ordersheet'!Z1350=\"\",\"\",'1. Ordersheet'!Z1350)","v":""},{"$f":"IF('1. Ordersheet'!AA1350=\"\",\"\",'1. Ordersheet'!AA1350)","v":""},null,{"$f":"IF('1. Ordersheet'!AS1350=\"\",\"\",'1. Ordersheet'!AS1350)","v":""},{"$f":"IF('1. Ordersheet'!AT1350=\"\",\"\",'1. Ordersheet'!AT1350)","v":""},null,null,null,null,null,null,null,{"$f":"IF('1. Ordersheet'!AX1350=\"\",\"\",'1. Ordersheet'!AX1350)","v":""},{"$f":"IF('1. Ordersheet'!AY1350=\"\",\"\",'1. Ordersheet'!AY1350)","v":""},{"$f":"IF('1. Ordersheet'!AZ1350=\"\",\"\",'1. Ordersheet'!AZ1350)","v":""},{"$f":"IF('1. Ordersheet'!BA1350=\"\",\"\",'1. Ordersheet'!BA1350)","v":""},{"$f":"IF('1. Ordersheet'!BC1350=\"\",\"\",'1. Ordersheet'!BC1350)","v":""},{"$f":"IF('1. Ordersheet'!BD1350=\"\",\"\",'1. Ordersheet'!BD1350)","v":""},{"$f":"IF('1. Ordersheet'!BE1350=\"\",\"\",'1. Ordersheet'!BE1350)","v":""},{"$f":"IF('1. Ordersheet'!BF1350=\"\",\"\",'1. Ordersheet'!BF1350)","v":""},{"$f":"IF('1. Ordersheet'!BG1350=\"\",\"\",'1. Ordersheet'!BG1350)","v":"ZWO"},{"$f":"IF('1. Ordersheet'!BH1350=\"\",\"\",'1. Ordersheet'!BH1350)","v":""},{"$f":"IF('1. Ordersheet'!BI1350=\"\",\"\",'1. Ordersheet'!BI1350)","v":""},{"$f":"IF('1. Ordersheet'!BJ1350=\"\",\"\",'1. Ordersheet'!BJ1350)","v":""},{"$f":"IF('1. Ordersheet'!BK1350=\"\",\"\",'1. Ordersheet'!BK1350)","v":""},{"$f":"IF('1. Ordersheet'!BL1350=\"\",\"\",'1. Ordersheet'!BL1350)","v":""}]
[{"$f":"IF('1. Ordersheet'!F1351=\"\",\"\",'1. Ordersheet'!F1351)","v":""},{"$f":"IF('1. Ordersheet'!G1351=\"\",\"\",'1. Ordersheet'!G1351)","v":""},{"$f":"IF('1. Ordersheet'!H1351=\"\",\"\",'1. Ordersheet'!H1351)","v":""},{"$f":"IF('1. Ordersheet'!I1351=\"\",\"\",'1. Ordersheet'!I1351)","v":""},{"$f":"IF('1. Ordersheet'!J1351=\"\",\"\",'1. Ordersheet'!J1351)","v":""},{"$f":"IF('1. Ordersheet'!K1351=\"\",\"\",'1. Ordersheet'!K1351)","v":""},{"$f":"IF('1. Ordersheet'!L1351=\"\",\"\",'1. Ordersheet'!L1351)","v":""},{"$f":"IF('1. Ordersheet'!M1351=\"\",\"\",'1. Ordersheet'!M1351)","v":""},{"$f":"IF('1. Ordersheet'!N1351=\"\",\"\",'1. Ordersheet'!N1351)","v":""},{"$f":"IF('1. Ordersheet'!O1351=\"\",\"\",'1. Ordersheet'!O1351)","v":{"$error":"#N/A"}},{"$f":"IF('1. Ordersheet'!P1351=\"\",\"\",'1. Ordersheet'!P1351)","v":{"$error":"#N/A"}},{"$f":"IF('1. Ordersheet'!Q1351=\"\",\"\",'1. Ordersheet'!Q1351)","v":""},{"$f":"IF('1. Ordersheet'!R1351=\"\",\"\",'1. Ordersheet'!R1351)","v":""},{"$f":"IF('1. Ordersheet'!S1351=\"\",\"\",'1. Ordersheet'!S1351)","v":""},{"$f":"IF('1. Ordersheet'!V1351=\"\",\"\",'1. Ordersheet'!V1351)","v":""},{"$f":"IF('1. Ordersheet'!W1351=\"\",\"\",'1. Ordersheet'!W1351)","v":""},{"$f":"IF('1. Ordersheet'!X1351=\"\",\"\",'1. Ordersheet'!X1351)","v":""},{"$f":"IF('1. Ordersheet'!Y1351=\"\",\"\",'1. Ordersheet'!Y1351)","v":""},{"$f":"IF('1. Ordersheet'!Z1351=\"\",\"\",'1. Ordersheet'!Z1351)","v":""},{"$f":"IF('1. Ordersheet'!AA1351=\"\",\"\",'1. Ordersheet'!AA1351)","v":""},null,{"$f":"IF('1. Ordersheet'!AS1351=\"\",\"\",'1. Ordersheet'!AS1351)","v":""},{"$f":"IF('1. Ordersheet'!AT1351=\"\",\"\",'1. Ordersheet'!AT1351)","v":""},null,null,null,null,null,null,null,{"$f":"IF('1. Ordersheet'!AX1351=\"\",\"\",'1. Ordersheet'!AX1351)","v":""},{"$f":"IF('1. Ordersheet'!AY1351=\"\",\"\",'1. Ordersheet'!AY1351)","v":""},{"$f":"IF('1. Ordersheet'!AZ1351=\"\",\"\",'1. Ordersheet'!AZ1351)","v":""},{"$f":"IF('1. Ordersheet'!BA1351=\"\",\"\",'1. Ordersheet'!BA1351)","v":""},{"$f":"IF('1. Ordersheet'!BC1351=\"\",\"\",'1. Ordersheet'!BC1351)","v":""},{"$f":"IF('1. Ordersheet'!BD1351=\"\",\"\",'1. Ordersheet'!BD1351)","v":""},{"$f":"IF('1. Ordersheet'!BE1351=\"\",\"\",'1. Ordersheet'!BE1351)","v":""},{"$f":"IF('1. Ordersheet'!BF1351=\"\",\"\",'1. Ordersheet'!BF1351)","v":""},{"$f":"IF('1. Ordersheet'!BG1351=\"\",\"\",'1. Ordersheet'!BG1351)","v":"ZWO"},{"$f":"IF('1. Ordersheet'!BH1351=\"\",\"\",'1. Ordersheet'!BH1351)","v":""},{"$f":"IF('1. Ordersheet'!BI1351=\"\",\"\",'1. Ordersheet'!BI1351)","v":""},{"$f":"IF('1. Ordersheet'!BJ1351=\"\",\"\",'1. Ordersheet'!BJ1351)","v":""},{"$f":"IF('1. Ordersheet'!BK1351=\"\",\"\",'1. Ordersheet'!BK1351)","v":""},{"$f":"IF('1. Ordersheet'!BL1351=\"\",\"\",'1. Ordersheet'!BL1351)","v":""}]
[{"$f":"IF('1. Ordersheet'!F1352=\"\",\"\",'1. Ordersheet'!F1352)","v":""},{"$f":"IF('1. Ordersheet'!G1352=\"\",\"\",'1. Ordersheet'!G1352)","v":""},{"$f":"IF('1. Ordersheet'!H1352=\"\",\"\",'1. Ordersheet'!H1352)","v":""},{"$f":"IF('1. Ordersheet'!I1352=\"\",\"\",'1. Ordersheet'!I1352)","v":""},{"$f":"IF('1. Ordersheet'!J1352=\"\",\"\",'1. Ordersheet'!J1352)","v":""},{"$f":"IF('1. Ordersheet'!K1352=\"\",\"\",'1. Ordersheet'!K1352)","v":""},{"$f":"IF('1. Ordersheet'!L1352=\"\",\"\",'1. Ordersheet'!L1352)","v":""},{"$f":"IF('1. Ordersheet'!M1352=\"\",\"\",'1. Ordersheet'!M1352)","v":""},{"$f":"IF('1. Ordersheet'!N1352=\"\",\"\",'1. Ordersheet'!N1352)","v":""},{"$f":"IF('1. Ordersheet'!O1352=\"\",\"\",'1. Ordersheet'!O1352)","v":{"$error":"#N/A"}},{"$f":"IF('1. Ordersheet'!P1352=\"\",\"\",'1. Ordersheet'!P1352)","v":{"$error":"#N/A"}},{"$f":"IF('1. Ordersheet'!Q1352=\"\",\"\",'1. Ordersheet'!Q1352)","v":""},{"$f":"IF('1. Ordersheet'!R1352=\"\",\"\",'1. Ordersheet'!R1352)","v":""},{"$f":"IF('1. Ordersheet'!S1352=\"\",\"\",'1. Ordersheet'!S1352)","v":""},{"$f":"IF('1. Ordersheet'!V1352=\"\",\"\",'1. Ordersheet'!V1352)","v":""},{"$f":"IF('1. Ordersheet'!W1352=\"\",\"\",'1. Ordersheet'!W1352)","v":""},{"$f":"IF('1. Ordersheet'!X1352=\"\",\"\",'1. Ordersheet'!X1352)","v":""},{"$f":"IF('1. Ordersheet'!Y1352=\"\",\"\",'1. Ordersheet'!Y1352)","v":""},{"$f":"IF('1. Ordersheet'!Z1352=\"\",\"\",'1. Ordersheet'!Z1352)","v":""},{"$f":"IF('1. Ordersheet'!AA1352=\"\",\"\",'1. Ordersheet'!AA1352)","v":""},null,{"$f":"IF('1. Ordersheet'!AS1352=\"\",\"\",'1. Ordersheet'!AS1352)","v":""},{"$f":"IF('1. Ordersheet'!AT1352=\"\",\"\",'1. Ordersheet'!AT1352)","v":""},null,null,null,null,null,null,null,{"$f":"IF('1. Ordersheet'!AX1352=\"\",\"\",'1. Ordersheet'!AX1352)","v":""},{"$f":"IF('1. Ordersheet'!AY1352=\"\",\"\",'1. Ordersheet'!AY1352)","v":""},{"$f":"IF('1. Ordersheet'!AZ1352=\"\",\"\",'1. Ordersheet'!AZ1352)","v":""},{"$f":"IF('1. Ordersheet'!BA1352=\"\",\"\",'1. Ordersheet'!BA1352)","v":""},{"$f":"IF('1. Ordersheet'!BC1352=\"\",\"\",'1. Ordersheet'!BC1352)","v":""},{"$f":"IF('1. Ordersheet'!BD1352=\"\",\"\",'1. Ordersheet'!BD1352)","v":""},{"$f":"IF('1. Ordersheet'!BE1352=\"\",\"\",'1. Ordersheet'!BE1352)","v":""},{"$f":"IF('1. Ordersheet'!BF1352=\"\",\"\",'1. Ordersheet'!BF1352)","v":""},{"$f":"IF('1. Ordersheet'!BG1352=\"\",\"\",'1. Ordersheet'!BG1352)","v":"ZWO"},{"$f":"IF('1. Ordersheet'!BH1352=\"\",\"\",'1. Ordersheet'!BH1352)","v":""},{"$f":"IF('1. Ordersheet'!BI1352=\"\",\"\",'1. Ordersheet'!BI1352)","v":""},{"$f":"IF('1. Ordersheet'!BJ1352=\"\",\"\",'1. Ordersheet'!BJ1352)","v":""},{"$f":"IF('1. Ordersheet'!BK1352=\"\",\"\",'1. Ordersheet'!BK1352)","v":""},{"$f":"IF('1. Ordersheet'!BL1352=\"\",\"\",'1. Ordersheet'!BL1352)","v":""}]
[{"$f":"IF('1. Ordersheet'!F1353=\"\",\"\",'1. Ordersheet'!F1353)","v":""},{"$f":"IF('1. Ordersheet'!G1353=\"\",\"\",'1. Ordersheet'!G1353)","v":""},{"$f":"IF('1. Ordersheet'!H1353=\"\",\"\",'1. Ordersheet'!H1353)","v":""},{"$f":"IF('1. Ordersheet'!I1353=\"\",\"\",'1. Ordersheet'!I1353)","v":""},{"$f":"IF('1. Ordersheet'!J1353=\"\",\"\",'1. Ordersheet'!J1353)","v":""},{"$f":"IF('1. Ordersheet'!K1353=\"\",\"\",'1. Ordersheet'!K1353)","v":""},{"$f":"IF('1. Ordersheet'!L1353=\"\",\"\",'1. Ordersheet'!L1353)","v":""},{"$f":"IF('1. Ordersheet'!M1353=\"\",\"\",'1. Ordersheet'!M1353)","v":""},{"$f":"IF('1. Ordersheet'!N1353=\"\",\"\",'1. Ordersheet'!N1353)","v":""},{"$f":"IF('1. Ordersheet'!O1353=\"\",\"\",'1. Ordersheet'!O1353)","v":{"$error":"#N/A"}},{"$f":"IF('1. Ordersheet'!P1353=\"\",\"\",'1. Ordersheet'!P1353)","v":{"$error":"#N/A"}},{"$f":"IF('1. Ordersheet'!Q1353=\"\",\"\",'1. Ordersheet'!Q1353)","v":""},{"$f":"IF('1. Ordersheet'!R1353=\"\",\"\",'1. Ordersheet'!R1353)","v":""},{"$f":"IF('1. Ordersheet'!S1353=\"\",\"\",'1. Ordersheet'!S1353)","v":""},{"$f":"IF('1. Ordersheet'!V1353=\"\",\"\",'1. Ordersheet'!V1353)","v":""},{"$f":"IF('1. Ordersheet'!W1353=\"\",\"\",'1. Ordersheet'!W1353)","v":""},{"$f":"IF('1. Ordersheet'!X1353=\"\",\"\",'1. Ordersheet'!X1353)","v":""},{"$f":"IF('1. Ordersheet'!Y1353=\"\",\"\",'1. Ordersheet'!Y1353)","v":""},{"$f":"IF('1. Ordersheet'!Z1353=\"\",\"\",'1. Ordersheet'!Z1353)","v":""},{"$f":"IF('1. Ordersheet'!AA1353=\"\",\"\",'1. Ordersheet'!AA1353)","v":""},null,{"$f":"IF('1. Ordersheet'!AS1353=\"\",\"\",'1. Ordersheet'!AS1353)","v":""},{"$f":"IF('1. Ordersheet'!AT1353=\"\",\"\",'1. Ordersheet'!AT1353)","v":""},null,null,null,null,null,null,null,{"$f":"IF('1. Ordersheet'!AX1353=\"\",\"\",'1. Ordersheet'!AX1353)","v":""},{"$f":"IF('1. Ordersheet'!AY1353=\"\",\"\",'1. Ordersheet'!AY1353)","v":""},{"$f":"IF('1. Ordersheet'!AZ1353=\"\",\"\",'1. Ordersheet'!AZ1353)","v":""},{"$f":"IF('1. Ordersheet'!BA1353=\"\",\"\",'1. Ordersheet'!BA1353)","v":""},{"$f":"IF('1. Ordersheet'!BC1353=\"\",\"\",'1. Ordersheet'!BC1353)","v":""},{"$f":"IF('1. Ordersheet'!BD1353=\"\",\"\",'1. Ordersheet'!BD1353)","v":""},{"$f":"IF('1. Ordersheet'!BE1353=\"\",\"\",'1. Ordersheet'!BE1353)","v":""},{"$f":"IF('1. Ordersheet'!BF1353=\"\",\"\",'1. Ordersheet'!BF1353)","v":""},{"$f":"IF('1. Ordersheet'!BG1353=\"\",\"\",'1. Ordersheet'!BG1353)","v":"ZWO"},{"$f":"IF('1. Ordersheet'!BH1353=\"\",\"\",'1. Ordersheet'!BH1353)","v":""},{"$f":"IF('1. Ordersheet'!BI1353=\"\",\"\",'1. Ordersheet'!BI1353)","v":""},{"$f":"IF('1. Ordersheet'!BJ1353=\"\",\"\",'1. Ordersheet'!BJ1353)","v":""},{"$f":"IF('1. Ordersheet'!BK1353=\"\",\"\",'1. Ordersheet'!BK1353)","v":""},{"$f":"IF('1. Ordersheet'!BL1353=\"\",\"\",'1. Ordersheet'!BL1353)","v":""}]
[{"$f":"IF('1. Ordersheet'!F1354=\"\",\"\",'1. Ordersheet'!F1354)","v":""},{"$f":"IF('1. Ordersheet'!G1354=\"\",\"\",'1. Ordersheet'!G1354)","v":""},{"$f":"IF('1. Ordersheet'!H1354=\"\",\"\",'1. Ordersheet'!H1354)","v":""},{"$f":"IF('1. Ordersheet'!I1354=\"\",\"\",'1. Ordersheet'!I1354)","v":""},{"$f":"IF('1. Ordersheet'!J1354=\"\",\"\",'1. Ordersheet'!J1354)","v":""},{"$f":"IF('1. Ordersheet'!K1354=\"\",\"\",'1. Ordersheet'!K1354)","v":""},{"$f":"IF('1. Ordersheet'!L1354=\"\",\"\",'1. Ordersheet'!L1354)","v":""},{"$f":"IF('1. Ordersheet'!M1354=\"\",\"\",'1. Ordersheet'!M1354)","v":""},{"$f":"IF('1. Ordersheet'!N1354=\"\",\"\",'1. Ordersheet'!N1354)","v":""},{"$f":"IF('1. Ordersheet'!O1354=\"\",\"\",'1. Ordersheet'!O1354)","v":{"$error":"#N/A"}},{"$f":"IF('1. Ordersheet'!P1354=\"\",\"\",'1. Ordersheet'!P1354)","v":{"$error":"#N/A"}},{"$f":"IF('1. Ordersheet'!Q1354=\"\",\"\",'1. Ordersheet'!Q1354)","v":""},{"$f":"IF('1. Ordersheet'!R1354=\"\",\"\",'1. Ordersheet'!R1354)","v":""},{"$f":"IF('1. Ordersheet'!S1354=\"\",\"\",'1. Ordersheet'!S1354)","v":""},{"$f":"IF('1. Ordersheet'!V1354=\"\",\"\",'1. Ordersheet'!V1354)","v":""},{"$f":"IF('1. Ordersheet'!W1354=\"\",\"\",'1. Ordersheet'!W1354)","v":""},{"$f":"IF('1. Ordersheet'!X1354=\"\",\"\",'1. Ordersheet'!X1354)","v":""},{"$f":"IF('1. Ordersheet'!Y1354=\"\",\"\",'1. Ordersheet'!Y1354)","v":""},{"$f":"IF('1. Ordersheet'!Z1354=\"\",\"\",'1. Ordersheet'!Z1354)","v":""},{"$f":"IF('1. Ordersheet'!AA1354=\"\",\"\",'1. Ordersheet'!AA1354)","v":""},null,{"$f":"IF('1. Ordersheet'!AS1354=\"\",\"\",'1. Ordersheet'!AS1354)","v":""},{"$f":"IF('1. Ordersheet'!AT1354=\"\",\"\",'1. Ordersheet'!AT1354)","v":""},null,null,null,null,null,null,null,{"$f":"IF('1. Ordersheet'!AX1354=\"\",\"\",'1. Ordersheet'!AX1354)","v":""},{"$f":"IF('1. Ordersheet'!AY1354=\"\",\"\",'1. Ordersheet'!AY1354)","v":""},{"$f":"IF('1. Ordersheet'!AZ1354=\"\",\"\",'1. Ordersheet'!AZ1354)","v":""},{"$f":"IF('1. Ordersheet'!BA1354=\"\",\"\",'1. Ordersheet'!BA1354)","v":""},{"$f":"IF('1. Ordersheet'!BC1354=\"\",\"\",'1. Ordersheet'!BC1354)","v":""},{"$f":"IF('1. Ordersheet'!BD1354=\"\",\"\",'1. Ordersheet'!BD1354)","v":""},{"$f":"IF('1. Ordersheet'!BE1354=\"\",\"\",'1. Ordersheet'!BE1354)","v":""},{"$f":"IF('1. Ordersheet'!BF1354=\"\",\"\",'1. Ordersheet'!BF1354)","v":""},{"$f":"IF('1. Ordersheet'!BG1354=\"\",\"\",'1. Ordersheet'!BG1354)","v":"ZWO"},{"$f":"IF('1. Ordersheet'!BH1354=\"\",\"\",'1. Ordersheet'!BH1354)","v":""},{"$f":"IF('1. Ordersheet'!BI1354=\"\",\"\",'1. Ordersheet'!BI1354)","v":""},{"$f":"IF('1. Ordersheet'!BJ1354=\"\",\"\",'1. Ordersheet'!BJ1354)","v":""},{"$f":"IF('1. Ordersheet'!BK1354=\"\",\"\",'1. Ordersheet'!BK1354)","v":""},{"$f":"IF('1. Ordersheet'!BL1354=\"\",\"\",'1. Ordersheet'!BL1354)","v":""}]
[{"$f":"IF('1. Ordersheet'!F1355=\"\",\"\",'1. Ordersheet'!F1355)","v":""},{"$f":"IF('1. Ordersheet'!G1355=\"\",\"\",'1. Ordersheet'!G1355)","v":""},{"$f":"IF('1. Ordersheet'!H1355=\"\",\"\",'1. Ordersheet'!H1355)","v":""},{"$f":"IF('1. Ordersheet'!I1355=\"\",\"\",'1. Ordersheet'!I1355)","v":""},{"$f":"IF('1. Ordersheet'!J1355=\"\",\"\",'1. Ordersheet'!J1355)","v":""},{"$f":"IF('1. Ordersheet'!K1355=\"\",\"\",'1. Ordersheet'!K1355)","v":""},{"$f":"IF('1. Ordersheet'!L1355=\"\",\"\",'1. Ordersheet'!L1355)","v":""},{"$f":"IF('1. Ordersheet'!M1355=\"\",\"\",'1. Ordersheet'!M1355)","v":""},{"$f":"IF('1. Ordersheet'!N1355=\"\",\"\",'1. Ordersheet'!N1355)","v":""},{"$f":"IF('1. Ordersheet'!O1355=\"\",\"\",'1. Ordersheet'!O1355)","v":{"$error":"#N/A"}},{"$f":"IF('1. Ordersheet'!P1355=\"\",\"\",'1. Ordersheet'!P1355)","v":{"$error":"#N/A"}},{"$f":"IF('1. Ordersheet'!Q1355=\"\",\"\",'1. Ordersheet'!Q1355)","v":""},{"$f":"IF('1. Ordersheet'!R1355=\"\",\"\",'1. Ordersheet'!R1355)","v":""},{"$f":"IF('1. Ordersheet'!S1355=\"\",\"\",'1. Ordersheet'!S1355)","v":""},{"$f":"IF('1. Ordersheet'!V1355=\"\",\"\",'1. Ordersheet'!V1355)","v":""},{"$f":"IF('1. Ordersheet'!W1355=\"\",\"\",'1. Ordersheet'!W1355)","v":""},{"$f":"IF('1. Ordersheet'!X1355=\"\",\"\",'1. Ordersheet'!X1355)","v":""},{"$f":"IF('1. Ordersheet'!Y1355=\"\",\"\",'1. Ordersheet'!Y1355)","v":""},{"$f":"IF('1. Ordersheet'!Z1355=\"\",\"\",'1. Ordersheet'!Z1355)","v":""},{"$f":"IF('1. Ordersheet'!AA1355=\"\",\"\",'1. Ordersheet'!AA1355)","v":""},null,{"$f":"IF('1. Ordersheet'!AS1355=\"\",\"\",'1. Ordersheet'!AS1355)","v":""},{"$f":"IF('1. Ordersheet'!AT1355=\"\",\"\",'1. Ordersheet'!AT1355)","v":""},null,null,null,null,null,null,null,{"$f":"IF('1. Ordersheet'!AX1355=\"\",\"\",'1. Ordersheet'!AX1355)","v":""},{"$f":"IF('1. Ordersheet'!AY1355=\"\",\"\",'1. Ordersheet'!AY1355)","v":""},{"$f":"IF('1. Ordersheet'!AZ1355=\"\",\"\",'1. Ordersheet'!AZ1355)","v":""},{"$f":"IF('1. Ordersheet'!BA1355=\"\",\"\",'1. Ordersheet'!BA1355)","v":""},{"$f":"IF('1. Ordersheet'!BC1355=\"\",\"\",'1. Ordersheet'!BC1355)","v":""},{"$f":"IF('1. Ordersheet'!BD1355=\"\",\"\",'1. Ordersheet'!BD1355)","v":""},{"$f":"IF('1. Ordersheet'!BE1355=\"\",\"\",'1. Ordersheet'!BE1355)","v":""},{"$f":"IF('1. Ordersheet'!BF1355=\"\",\"\",'1. Ordersheet'!BF1355)","v":""},{"$f":"IF('1. Ordersheet'!BG1355=\"\",\"\",'1. Ordersheet'!BG1355)","v":"ZWO"},{"$f":"IF('1. Ordersheet'!BH1355=\"\",\"\",'1. Ordersheet'!BH1355)","v":""},{"$f":"IF('1. Ordersheet'!BI1355=\"\",\"\",'1. Ordersheet'!BI1355)","v":""},{"$f":"IF('1. Ordersheet'!BJ1355=\"\",\"\",'1. Ordersheet'!BJ1355)","v":""},{"$f":"IF('1. Ordersheet'!BK1355=\"\",\"\",'1. Ordersheet'!BK1355)","v":""},{"$f":"IF('1. Ordersheet'!BL1355=\"\",\"\",'1. Ordersheet'!BL1355)","v":""}]
[{"$f":"IF('1. Ordersheet'!F1356=\"\",\"\",'1. Ordersheet'!F1356)","v":""},{"$f":"IF('1. Ordersheet'!G1356=\"\",\"\",'1. Ordersheet'!G1356)","v":""},{"$f":"IF('1. Ordersheet'!H1356=\"\",\"\",'1. Ordersheet'!H1356)","v":""},{"$f":"IF('1. Ordersheet'!I1356=\"\",\"\",'1. Ordersheet'!I1356)","v":""},{"$f":"IF('1. Ordersheet'!J1356=\"\",\"\",'1. Ordersheet'!J1356)","v":""},{"$f":"IF('1. Ordersheet'!K1356=\"\",\"\",'1. Ordersheet'!K1356)","v":""},{"$f":"IF('1. Ordersheet'!L1356=\"\",\"\",'1. Ordersheet'!L1356)","v":""},{"$f":"IF('1. Ordersheet'!M1356=\"\",\"\",'1. Ordersheet'!M1356)","v":""},{"$f":"IF('1. Ordersheet'!N1356=\"\",\"\",'1. Ordersheet'!N1356)","v":""},{"$f":"IF('1. Ordersheet'!O1356=\"\",\"\",'1. Ordersheet'!O1356)","v":{"$error":"#N/A"}},{"$f":"IF('1. Ordersheet'!P1356=\"\",\"\",'1. Ordersheet'!P1356)","v":{"$error":"#N/A"}},{"$f":"IF('1. Ordersheet'!Q1356=\"\",\"\",'1. Ordersheet'!Q1356)","v":""},{"$f":"IF('1. Ordersheet'!R1356=\"\",\"\",'1. Ordersheet'!R1356)","v":""},{"$f":"IF('1. Ordersheet'!S1356=\"\",\"\",'1. Ordersheet'!S1356)","v":""},{"$f":"IF('1. Ordersheet'!V1356=\"\",\"\",'1. Ordersheet'!V1356)","v":""},{"$f":"IF('1. Ordersheet'!W1356=\"\",\"\",'1. Ordersheet'!W1356)","v":""},{"$f":"IF('1. Ordersheet'!X1356=\"\",\"\",'1. Ordersheet'!X1356)","v":""},{"$f":"IF('1. Ordersheet'!Y1356=\"\",\"\",'1. Ordersheet'!Y1356)","v":""},{"$f":"IF('1. Ordersheet'!Z1356=\"\",\"\",'1. Ordersheet'!Z1356)","v":""},{"$f":"IF('1. Ordersheet'!AA1356=\"\",\"\",'1. Ordersheet'!AA1356)","v":""},null,{"$f":"IF('1. Ordersheet'!AS1356=\"\",\"\",'1. Ordersheet'!AS1356)","v":""},{"$f":"IF('1. Ordersheet'!AT1356=\"\",\"\",'1. Ordersheet'!AT1356)","v":""},null,null,null,null,null,null,null,{"$f":"IF('1. Ordersheet'!AX1356=\"\",\"\",'1. Ordersheet'!AX1356)","v":""},{"$f":"IF('1. Ordersheet'!AY1356=\"\",\"\",'1. Ordersheet'!AY1356)","v":""},{"$f":"IF('1. Ordersheet'!AZ1356=\"\",\"\",'1. Ordersheet'!AZ1356)","v":""},{"$f":"IF('1. Ordersheet'!BA1356=\"\",\"\",'1. Ordersheet'!BA1356)","v":""},{"$f":"IF('1. Ordersheet'!BC1356=\"\",\"\",'1. Ordersheet'!BC1356)","v":""},{"$f":"IF('1. Ordersheet'!BD1356=\"\",\"\",'1. Ordersheet'!BD1356)","v":""},{"$f":"IF('1. Ordersheet'!BE1356=\"\",\"\",'1. Ordersheet'!BE1356)","v":""},{"$f":"IF('1. Ordersheet'!BF1356=\"\",\"\",'1. Ordersheet'!BF1356)","v":""},{"$f":"IF('1. Ordersheet'!BG1356=\"\",\"\",'1. Ordersheet'!BG1356)","v":"ZWO"},{"$f":"IF('1. Ordersheet'!BH1356=\"\",\"\",'1. Ordersheet'!BH1356)","v":""},{"$f":"IF('1. Ordersheet'!BI1356=\"\",\"\",'1. Ordersheet'!BI1356)","v":""},{"$f":"IF('1. Ordersheet'!BJ1356=\"\",\"\",'1. Ordersheet'!BJ1356)","v":""},{"$f":"IF('1. Ordersheet'!BK1356=\"\",\"\",'1. Ordersheet'!BK1356)","v":""},{"$f":"IF('1. Ordersheet'!BL1356=\"\",\"\",'1. Ordersheet'!BL1356)","v":""}]
[{"$f":"IF('1. Ordersheet'!F1357=\"\",\"\",'1. Ordersheet'!F1357)","v":""},{"$f":"IF('1. Ordersheet'!G1357=\"\",\"\",'1. Ordersheet'!G1357)","v":""},{"$f":"IF('1. Ordersheet'!H1357=\"\",\"\",'1. Ordersheet'!H1357)","v":""},{"$f":"IF('1. Ordersheet'!I1357=\"\",\"\",'1. Ordersheet'!I1357)","v":""},{"$f":"IF('1. Ordersheet'!J1357=\"\",\"\",'1. Ordersheet'!J1357)","v":""},{"$f":"IF('1. Ordersheet'!K1357=\"\",\"\",'1. Ordersheet'!K1357)","v":""},{"$f":"IF('1. Ordersheet'!L1357=\"\",\"\",'1. Ordersheet'!L1357)","v":""},{"$f":"IF('1. Ordersheet'!M1357=\"\",\"\",'1. Ordersheet'!M1357)","v":""},{"$f":"IF('1. Ordersheet'!N1357=\"\",\"\",'1. Ordersheet'!N1357)","v":""},{"$f":"IF('1. Ordersheet'!O1357=\"\",\"\",'1. Ordersheet'!O1357)","v":{"$error":"#N/A"}},{"$f":"IF('1. Ordersheet'!P1357=\"\",\"\",'1. Ordersheet'!P1357)","v":{"$error":"#N/A"}},{"$f":"IF('1. Ordersheet'!Q1357=\"\",\"\",'1. Ordersheet'!Q1357)","v":""},{"$f":"IF('1. Ordersheet'!R1357=\"\",\"\",'1. Ordersheet'!R1357)","v":""},{"$f":"IF('1. Ordersheet'!S1357=\"\",\"\",'1. Ordersheet'!S1357)","v":""},{"$f":"IF('1. Ordersheet'!V1357=\"\",\"\",'1. Ordersheet'!V1357)","v":""},{"$f":"IF('1. Ordersheet'!W1357=\"\",\"\",'1. Ordersheet'!W1357)","v":""},{"$f":"IF('1. Ordersheet'!X1357=\"\",\"\",'1. Ordersheet'!X1357)","v":""},{"$f":"IF('1. Ordersheet'!Y1357=\"\",\"\",'1. Ordersheet'!Y1357)","v":""},{"$f":"IF('1. Ordersheet'!Z1357=\"\",\"\",'1. Ordersheet'!Z1357)","v":""},{"$f":"IF('1. Ordersheet'!AA1357=\"\",\"\",'1. Ordersheet'!AA1357)","v":""},null,{"$f":"IF('1. Ordersheet'!AS1357=\"\",\"\",'1. Ordersheet'!AS1357)","v":""},{"$f":"IF('1. Ordersheet'!AT1357=\"\",\"\",'1. Ordersheet'!AT1357)","v":""},null,null,null,null,null,null,null,{"$f":"IF('1. Ordersheet'!AX1357=\"\",\"\",'1. Ordersheet'!AX1357)","v":""},{"$f":"IF('1. Ordersheet'!AY1357=\"\",\"\",'1. Ordersheet'!AY1357)","v":""},{"$f":"IF('1. Ordersheet'!AZ1357=\"\",\"\",'1. Ordersheet'!AZ1357)","v":""},{"$f":"IF('1. Ordersheet'!BA1357=\"\",\"\",'1. Ordersheet'!BA1357)","v":""},{"$f":"IF('1. Ordersheet'!BC1357=\"\",\"\",'1. Ordersheet'!BC1357)","v":""},{"$f":"IF('1. Ordersheet'!BD1357=\"\",\"\",'1. Ordersheet'!BD1357)","v":""},{"$f":"IF('1. Ordersheet'!BE1357=\"\",\"\",'1. Ordersheet'!BE1357)","v":""},{"$f":"IF('1. Ordersheet'!BF1357=\"\",\"\",'1. Ordersheet'!BF1357)","v":""},{"$f":"IF('1. Ordersheet'!BG1357=\"\",\"\",'1. Ordersheet'!BG1357)","v":"ZWO"},{"$f":"IF('1. Ordersheet'!BH1357=\"\",\"\",'1. Ordersheet'!BH1357)","v":""},{"$f":"IF('1. Ordersheet'!BI1357=\"\",\"\",'1. Ordersheet'!BI1357)","v":""},{"$f":"IF('1. Ordersheet'!BJ1357=\"\",\"\",'1. Ordersheet'!BJ1357)","v":""},{"$f":"IF('1. Ordersheet'!BK1357=\"\",\"\",'1. Ordersheet'!BK1357)","v":""},{"$f":"IF('1. Ordersheet'!BL1357=\"\",\"\",'1. Ordersheet'!BL1357)","v":""}]
[{"$f":"IF('1. Ordersheet'!F1358=\"\",\"\",'1. Ordersheet'!F1358)","v":""},{"$f":"IF('1. Ordersheet'!G1358=\"\",\"\",'1. Ordersheet'!G1358)","v":""},{"$f":"IF('1. Ordersheet'!H1358=\"\",\"\",'1. Ordersheet'!H1358)","v":""},{"$f":"IF('1. Ordersheet'!I1358=\"\",\"\",'1. Ordersheet'!I1358)","v":""},{"$f":"IF('1. Ordersheet'!J1358=\"\",\"\",'1. Ordersheet'!J1358)","v":""},{"$f":"IF('1. Ordersheet'!K1358=\"\",\"\",'1. Ordersheet'!K1358)","v":""},{"$f":"IF('1. Ordersheet'!L1358=\"\",\"\",'1. Ordersheet'!L1358)","v":""},{"$f":"IF('1. Ordersheet'!M1358=\"\",\"\",'1. Ordersheet'!M1358)","v":""},{"$f":"IF('1. Ordersheet'!N1358=\"\",\"\",'1. Ordersheet'!N1358)","v":""},{"$f":"IF('1. Ordersheet'!O1358=\"\",\"\",'1. Ordersheet'!O1358)","v":{"$error":"#N/A"}},{"$f":"IF('1. Ordersheet'!P1358=\"\",\"\",'1. Ordersheet'!P1358)","v":{"$error":"#N/A"}},{"$f":"IF('1. Ordersheet'!Q1358=\"\",\"\",'1. Ordersheet'!Q1358)","v":""},{"$f":"IF('1. Ordersheet'!R1358=\"\",\"\",'1. Ordersheet'!R1358)","v":""},{"$f":"IF('1. Ordersheet'!S1358=\"\",\"\",'1. Ordersheet'!S1358)","v":""},{"$f":"IF('1. Ordersheet'!V1358=\"\",\"\",'1. Ordersheet'!V1358)","v":""},{"$f":"IF('1. Ordersheet'!W1358=\"\",\"\",'1. Ordersheet'!W1358)","v":""},{"$f":"IF('1. Ordersheet'!X1358=\"\",\"\",'1. Ordersheet'!X1358)","v":""},{"$f":"IF('1. Ordersheet'!Y1358=\"\",\"\",'1. Ordersheet'!Y1358)","v":""},{"$f":"IF('1. Ordersheet'!Z1358=\"\",\"\",'1. Ordersheet'!Z1358)","v":""},{"$f":"IF('1. Ordersheet'!AA1358=\"\",\"\",'1. Ordersheet'!AA1358)","v":""},null,{"$f":"IF('1. Ordersheet'!AS1358=\"\",\"\",'1. Ordersheet'!AS1358)","v":""},{"$f":"IF('1. Ordersheet'!AT1358=\"\",\"\",'1. Ordersheet'!AT1358)","v":""},null,null,null,null,null,null,null,{"$f":"IF('1. Ordersheet'!AX1358=\"\",\"\",'1. Ordersheet'!AX1358)","v":""},{"$f":"IF('1. Ordersheet'!AY1358=\"\",\"\",'1. Ordersheet'!AY1358)","v":""},{"$f":"IF('1. Ordersheet'!AZ1358=\"\",\"\",'1. Ordersheet'!AZ1358)","v":""},{"$f":"IF('1. Ordersheet'!BA1358=\"\",\"\",'1. Ordersheet'!BA1358)","v":""},{"$f":"IF('1. Ordersheet'!BC1358=\"\",\"\",'1. Ordersheet'!BC1358)","v":""},{"$f":"IF('1. Ordersheet'!BD1358=\"\",\"\",'1. Ordersheet'!BD1358)","v":""},{"$f":"IF('1. Ordersheet'!BE1358=\"\",\"\",'1. Ordersheet'!BE1358)","v":""},{"$f":"IF('1. Ordersheet'!BF1358=\"\",\"\",'1. Ordersheet'!BF1358)","v":""},{"$f":"IF('1. Ordersheet'!BG1358=\"\",\"\",'1. Ordersheet'!BG1358)","v":"ZWO"},{"$f":"IF('1. Ordersheet'!BH1358=\"\",\"\",'1. Ordersheet'!BH1358)","v":""},{"$f":"IF('1. Ordersheet'!BI1358=\"\",\"\",'1. Ordersheet'!BI1358)","v":""},{"$f":"IF('1. Ordersheet'!BJ1358=\"\",\"\",'1. Ordersheet'!BJ1358)","v":""},{"$f":"IF('1. Ordersheet'!BK1358=\"\",\"\",'1. Ordersheet'!BK1358)","v":""},{"$f":"IF('1. Ordersheet'!BL1358=\"\",\"\",'1. Ordersheet'!BL1358)","v":""}]
[{"$f":"IF('1. Ordersheet'!F1359=\"\",\"\",'1. Ordersheet'!F1359)","v":""},{"$f":"IF('1. Ordersheet'!G1359=\"\",\"\",'1. Ordersheet'!G1359)","v":""},{"$f":"IF('1. Ordersheet'!H1359=\"\",\"\",'1. Ordersheet'!H1359)","v":""},{"$f":"IF('1. Ordersheet'!I1359=\"\",\"\",'1. Ordersheet'!I1359)","v":""},{"$f":"IF('1. Ordersheet'!J1359=\"\",\"\",'1. Ordersheet'!J1359)","v":""},{"$f":"IF('1. Ordersheet'!K1359=\"\",\"\",'1. Ordersheet'!K1359)","v":""},{"$f":"IF('1. Ordersheet'!L1359=\"\",\"\",'1. Ordersheet'!L1359)","v":""},{"$f":"IF('1. Ordersheet'!M1359=\"\",\"\",'1. Ordersheet'!M1359)","v":""},{"$f":"IF('1. Ordersheet'!N1359=\"\",\"\",'1. Ordersheet'!N1359)","v":""},{"$f":"IF('1. Ordersheet'!O1359=\"\",\"\",'1. Ordersheet'!O1359)","v":{"$error":"#N/A"}},{"$f":"IF('1. Ordersheet'!P1359=\"\",\"\",'1. Ordersheet'!P1359)","v":{"$error":"#N/A"}},{"$f":"IF('1. Ordersheet'!Q1359=\"\",\"\",'1. Ordersheet'!Q1359)","v":""},{"$f":"IF('1. Ordersheet'!R1359=\"\",\"\",'1. Ordersheet'!R1359)","v":""},{"$f":"IF('1. Ordersheet'!S1359=\"\",\"\",'1. Ordersheet'!S1359)","v":""},{"$f":"IF('1. Ordersheet'!V1359=\"\",\"\",'1. Ordersheet'!V1359)","v":""},{"$f":"IF('1. Ordersheet'!W1359=\"\",\"\",'1. Ordersheet'!W1359)","v":""},{"$f":"IF('1. Ordersheet'!X1359=\"\",\"\",'1. Ordersheet'!X1359)","v":""},{"$f":"IF('1. Ordersheet'!Y1359=\"\",\"\",'1. Ordersheet'!Y1359)","v":""},{"$f":"IF('1. Ordersheet'!Z1359=\"\",\"\",'1. Ordersheet'!Z1359)","v":""},{"$f":"IF('1. Ordersheet'!AA1359=\"\",\"\",'1. Ordersheet'!AA1359)","v":""},null,{"$f":"IF('1. Ordersheet'!AS1359=\"\",\"\",'1. Ordersheet'!AS1359)","v":""},{"$f":"IF('1. Ordersheet'!AT1359=\"\",\"\",'1. Ordersheet'!AT1359)","v":""},null,null,null,null,null,null,null,{"$f":"IF('1. Ordersheet'!AX1359=\"\",\"\",'1. Ordersheet'!AX1359)","v":""},{"$f":"IF('1. Ordersheet'!AY1359=\"\",\"\",'1. Ordersheet'!AY1359)","v":""},{"$f":"IF('1. Ordersheet'!AZ1359=\"\",\"\",'1. Ordersheet'!AZ1359)","v":""},{"$f":"IF('1. Ordersheet'!BA1359=\"\",\"\",'1. Ordersheet'!BA1359)","v":""},{"$f":"IF('1. Ordersheet'!BC1359=\"\",\"\",'1. Ordersheet'!BC1359)","v":""},{"$f":"IF('1. Ordersheet'!BD1359=\"\",\"\",'1. Ordersheet'!BD1359)","v":""},{"$f":"IF('1. Ordersheet'!BE1359=\"\",\"\",'1. Ordersheet'!BE1359)","v":""},{"$f":"IF('1. Ordersheet'!BF1359=\"\",\"\",'1. Ordersheet'!BF1359)","v":""},{"$f":"IF('1. Ordersheet'!BG1359=\"\",\"\",'1. Ordersheet'!BG1359)","v":"ZWO"},{"$f":"IF('1. Ordersheet'!BH1359=\"\",\"\",'1. Ordersheet'!BH1359)","v":""},{"$f":"IF('1. Ordersheet'!BI1359=\"\",\"\",'1. Ordersheet'!BI1359)","v":""},{"$f":"IF('1. Ordersheet'!BJ1359=\"\",\"\",'1. Ordersheet'!BJ1359)","v":""},{"$f":"IF('1. Ordersheet'!BK1359=\"\",\"\",'1. Ordersheet'!BK1359)","v":""},{"$f":"IF('1. Ordersheet'!BL1359=\"\",\"\",'1. Ordersheet'!BL1359)","v":""}]
[{"$f":"IF('1. Ordersheet'!F1360=\"\",\"\",'1. Ordersheet'!F1360)","v":""},{"$f":"IF('1. Ordersheet'!G1360=\"\",\"\",'1. Ordersheet'!G1360)","v":""},{"$f":"IF('1. Ordersheet'!H1360=\"\",\"\",'1. Ordersheet'!H1360)","v":""},{"$f":"IF('1. Ordersheet'!I1360=\"\",\"\",'1. Ordersheet'!I1360)","v":""},{"$f":"IF('1. Ordersheet'!J1360=\"\",\"\",'1. Ordersheet'!J1360)","v":""},{"$f":"IF('1. Ordersheet'!K1360=\"\",\"\",'1. Ordersheet'!K1360)","v":""},{"$f":"IF('1. Ordersheet'!L1360=\"\",\"\",'1. Ordersheet'!L1360)","v":""},{"$f":"IF('1. Ordersheet'!M1360=\"\",\"\",'1. Ordersheet'!M1360)","v":""},{"$f":"IF('1. Ordersheet'!N1360=\"\",\"\",'1. Ordersheet'!N1360)","v":""},{"$f":"IF('1. Ordersheet'!O1360=\"\",\"\",'1. Ordersheet'!O1360)","v":{"$error":"#N/A"}},{"$f":"IF('1. Ordersheet'!P1360=\"\",\"\",'1. Ordersheet'!P1360)","v":{"$error":"#N/A"}},{"$f":"IF('1. Ordersheet'!Q1360=\"\",\"\",'1. Ordersheet'!Q1360)","v":""},{"$f":"IF('1. Ordersheet'!R1360=\"\",\"\",'1. Ordersheet'!R1360)","v":""},{"$f":"IF('1. Ordersheet'!S1360=\"\",\"\",'1. Ordersheet'!S1360)","v":""},{"$f":"IF('1. Ordersheet'!V1360=\"\",\"\",'1. Ordersheet'!V1360)","v":""},{"$f":"IF('1. Ordersheet'!W1360=\"\",\"\",'1. Ordersheet'!W1360)","v":""},{"$f":"IF('1. Ordersheet'!X1360=\"\",\"\",'1. Ordersheet'!X1360)","v":""},{"$f":"IF('1. Ordersheet'!Y1360=\"\",\"\",'1. Ordersheet'!Y1360)","v":""},{"$f":"IF('1. Ordersheet'!Z1360=\"\",\"\",'1. Ordersheet'!Z1360)","v":""},{"$f":"IF('1. Ordersheet'!AA1360=\"\",\"\",'1. Ordersheet'!AA1360)","v":""},null,{"$f":"IF('1. Ordersheet'!AS1360=\"\",\"\",'1. Ordersheet'!AS1360)","v":""},{"$f":"IF('1. Ordersheet'!AT1360=\"\",\"\",'1. Ordersheet'!AT1360)","v":""},null,null,null,null,null,null,null,{"$f":"IF('1. Ordersheet'!AX1360=\"\",\"\",'1. Ordersheet'!AX1360)","v":""},{"$f":"IF('1. Ordersheet'!AY1360=\"\",\"\",'1. Ordersheet'!AY1360)","v":""},{"$f":"IF('1. Ordersheet'!AZ1360=\"\",\"\",'1. Ordersheet'!AZ1360)","v":""},{"$f":"IF('1. Ordersheet'!BA1360=\"\",\"\",'1. Ordersheet'!BA1360)","v":""},{"$f":"IF('1. Ordersheet'!BC1360=\"\",\"\",'1. Ordersheet'!BC1360)","v":""},{"$f":"IF('1. Ordersheet'!BD1360=\"\",\"\",'1. Ordersheet'!BD1360)","v":""},{"$f":"IF('1. Ordersheet'!BE1360=\"\",\"\",'1. Ordersheet'!BE1360)","v":""},{"$f":"IF('1. Ordersheet'!BF1360=\"\",\"\",'1. Ordersheet'!BF1360)","v":""},{"$f":"IF('1. Ordersheet'!BG1360=\"\",\"\",'1. Ordersheet'!BG1360)","v":"ZWO"},{"$f":"IF('1. Ordersheet'!BH1360=\"\",\"\",'1. Ordersheet'!BH1360)","v":""},{"$f":"IF('1. Ordersheet'!BI1360=\"\",\"\",'1. Ordersheet'!BI1360)","v":""},{"$f":"IF('1. Ordersheet'!BJ1360=\"\",\"\",'1. Ordersheet'!BJ1360)","v":""},{"$f":"IF('1. Ordersheet'!BK1360=\"\",\"\",'1. Ordersheet'!BK1360)","v":""},{"$f":"IF('1. Ordersheet'!BL1360=\"\",\"\",'1. Ordersheet'!BL1360)","v":""}]
[{"$f":"IF('1. Ordersheet'!F1361=\"\",\"\",'1. Ordersheet'!F1361)","v":""},{"$f":"IF('1. Ordersheet'!G1361=\"\",\"\",'1. Ordersheet'!G1361)","v":""},{"$f":"IF('1. Ordersheet'!H1361=\"\",\"\",'1. Ordersheet'!H1361)","v":""},{"$f":"IF('1. Ordersheet'!I1361=\"\",\"\",'1. Ordersheet'!I1361)","v":""},{"$f":"IF('1. Ordersheet'!J1361=\"\",\"\",'1. Ordersheet'!J1361)","v":""},{"$f":"IF('1. Ordersheet'!K1361=\"\",\"\",'1. Ordersheet'!K1361)","v":""},{"$f":"IF('1. Ordersheet'!L1361=\"\",\"\",'1. Ordersheet'!L1361)","v":""},{"$f":"IF('1. Ordersheet'!M1361=\"\",\"\",'1. Ordersheet'!M1361)","v":""},{"$f":"IF('1. Ordersheet'!N1361=\"\",\"\",'1. Ordersheet'!N1361)","v":""},{"$f":"IF('1. Ordersheet'!O1361=\"\",\"\",'1. Ordersheet'!O1361)","v":{"$error":"#N/A"}},{"$f":"IF('1. Ordersheet'!P1361=\"\",\"\",'1. Ordersheet'!P1361)","v":{"$error":"#N/A"}},{"$f":"IF('1. Ordersheet'!Q1361=\"\",\"\",'1. Ordersheet'!Q1361)","v":""},{"$f":"IF('1. Ordersheet'!R1361=\"\",\"\",'1. Ordersheet'!R1361)","v":""},{"$f":"IF('1. Ordersheet'!S1361=\"\",\"\",'1. Ordersheet'!S1361)","v":""},{"$f":"IF('1. Ordersheet'!V1361=\"\",\"\",'1. Ordersheet'!V1361)","v":""},{"$f":"IF('1. Ordersheet'!W1361=\"\",\"\",'1. Ordersheet'!W1361)","v":""},{"$f":"IF('1. Ordersheet'!X1361=\"\",\"\",'1. Ordersheet'!X1361)","v":""},{"$f":"IF('1. Ordersheet'!Y1361=\"\",\"\",'1. Ordersheet'!Y1361)","v":""},{"$f":"IF('1. Ordersheet'!Z1361=\"\",\"\",'1. Ordersheet'!Z1361)","v":""},{"$f":"IF('1. Ordersheet'!AA1361=\"\",\"\",'1. Ordersheet'!AA1361)","v":""},null,{"$f":"IF('1. Ordersheet'!AS1361=\"\",\"\",'1. Ordersheet'!AS1361)","v":""},{"$f":"IF('1. Ordersheet'!AT1361=\"\",\"\",'1. Ordersheet'!AT1361)","v":""},null,null,null,null,null,null,null,{"$f":"IF('1. Ordersheet'!AX1361=\"\",\"\",'1. Ordersheet'!AX1361)","v":""},{"$f":"IF('1. Ordersheet'!AY1361=\"\",\"\",'1. Ordersheet'!AY1361)","v":""},{"$f":"IF('1. Ordersheet'!AZ1361=\"\",\"\",'1. Ordersheet'!AZ1361)","v":""},{"$f":"IF('1. Ordersheet'!BA1361=\"\",\"\",'1. Ordersheet'!BA1361)","v":""},{"$f":"IF('1. Ordersheet'!BC1361=\"\",\"\",'1. Ordersheet'!BC1361)","v":""},{"$f":"IF('1. Ordersheet'!BD1361=\"\",\"\",'1. Ordersheet'!BD1361)","v":""},{"$f":"IF('1. Ordersheet'!BE1361=\"\",\"\",'1. Ordersheet'!BE1361)","v":""},{"$f":"IF('1. Ordersheet'!BF1361=\"\",\"\",'1. Ordersheet'!BF1361)","v":""},{"$f":"IF('1. Ordersheet'!BG1361=\"\",\"\",'1. Ordersheet'!BG1361)","v":"ZWO"},{"$f":"IF('1. Ordersheet'!BH1361=\"\",\"\",'1. Ordersheet'!BH1361)","v":""},{"$f":"IF('1. Ordersheet'!BI1361=\"\",\"\",'1. Ordersheet'!BI1361)","v":""},{"$f":"IF('1. Ordersheet'!BJ1361=\"\",\"\",'1. Ordersheet'!BJ1361)","v":""},{"$f":"IF('1. Ordersheet'!BK1361=\"\",\"\",'1. Ordersheet'!BK1361)","v":""},{"$f":"IF('1. Ordersheet'!BL1361=\"\",\"\",'1. Ordersheet'!BL1361)","v":""}]
[{"$f":"IF('1. Ordersheet'!F1362=\"\",\"\",'1. Ordersheet'!F1362)","v":""},{"$f":"IF('1. Ordersheet'!G1362=\"\",\"\",'1. Ordersheet'!G1362)","v":""},{"$f":"IF('1. Ordersheet'!H1362=\"\",\"\",'1. Ordersheet'!H1362)","v":""},{"$f":"IF('1. Ordersheet'!I1362=\"\",\"\",'1. Ordersheet'!I1362)","v":""},{"$f":"IF('1. Ordersheet'!J1362=\"\",\"\",'1. Ordersheet'!J1362)","v":""},{"$f":"IF('1. Ordersheet'!K1362=\"\",\"\",'1. Ordersheet'!K1362)","v":""},{"$f":"IF('1. Ordersheet'!L1362=\"\",\"\",'1. Ordersheet'!L1362)","v":""},{"$f":"IF('1. Ordersheet'!M1362=\"\",\"\",'1. Ordersheet'!M1362)","v":""},{"$f":"IF('1. Ordersheet'!N1362=\"\",\"\",'1. Ordersheet'!N1362)","v":""},{"$f":"IF('1. Ordersheet'!O1362=\"\",\"\",'1. Ordersheet'!O1362)","v":{"$error":"#N/A"}},{"$f":"IF('1. Ordersheet'!P1362=\"\",\"\",'1. Ordersheet'!P1362)","v":{"$error":"#N/A"}},{"$f":"IF('1. Ordersheet'!Q1362=\"\",\"\",'1. Ordersheet'!Q1362)","v":""},{"$f":"IF('1. Ordersheet'!R1362=\"\",\"\",'1. Ordersheet'!R1362)","v":""},{"$f":"IF('1. Ordersheet'!S1362=\"\",\"\",'1. Ordersheet'!S1362)","v":""},{"$f":"IF('1. Ordersheet'!V1362=\"\",\"\",'1. Ordersheet'!V1362)","v":""},{"$f":"IF('1. Ordersheet'!W1362=\"\",\"\",'1. Ordersheet'!W1362)","v":""},{"$f":"IF('1. Ordersheet'!X1362=\"\",\"\",'1. Ordersheet'!X1362)","v":""},{"$f":"IF('1. Ordersheet'!Y1362=\"\",\"\",'1. Ordersheet'!Y1362)","v":""},{"$f":"IF('1. Ordersheet'!Z1362=\"\",\"\",'1. Ordersheet'!Z1362)","v":""},{"$f":"IF('1. Ordersheet'!AA1362=\"\",\"\",'1. Ordersheet'!AA1362)","v":""},null,{"$f":"IF('1. Ordersheet'!AS1362=\"\",\"\",'1. Ordersheet'!AS1362)","v":""},{"$f":"IF('1. Ordersheet'!AT1362=\"\",\"\",'1. Ordersheet'!AT1362)","v":""},null,null,null,null,null,null,null,{"$f":"IF('1. Ordersheet'!AX1362=\"\",\"\",'1. Ordersheet'!AX1362)","v":""},{"$f":"IF('1. Ordersheet'!AY1362=\"\",\"\",'1. Ordersheet'!AY1362)","v":""},{"$f":"IF('1. Ordersheet'!AZ1362=\"\",\"\",'1. Ordersheet'!AZ1362)","v":""},{"$f":"IF('1. Ordersheet'!BA1362=\"\",\"\",'1. Ordersheet'!BA1362)","v":""},{"$f":"IF('1. Ordersheet'!BC1362=\"\",\"\",'1. Ordersheet'!BC1362)","v":""},{"$f":"IF('1. Ordersheet'!BD1362=\"\",\"\",'1. Ordersheet'!BD1362)","v":""},{"$f":"IF('1. Ordersheet'!BE1362=\"\",\"\",'1. Ordersheet'!BE1362)","v":""},{"$f":"IF('1. Ordersheet'!BF1362=\"\",\"\",'1. Ordersheet'!BF1362)","v":""},{"$f":"IF('1. Ordersheet'!BG1362=\"\",\"\",'1. Ordersheet'!BG1362)","v":"ZWO"},{"$f":"IF('1. Ordersheet'!BH1362=\"\",\"\",'1. Ordersheet'!BH1362)","v":""},{"$f":"IF('1. Ordersheet'!BI1362=\"\",\"\",'1. Ordersheet'!BI1362)","v":""},{"$f":"IF('1. Ordersheet'!BJ1362=\"\",\"\",'1. Ordersheet'!BJ1362)","v":""},{"$f":"IF('1. Ordersheet'!BK1362=\"\",\"\",'1. Ordersheet'!BK1362)","v":""},{"$f":"IF('1. Ordersheet'!BL1362=\"\",\"\",'1. Ordersheet'!BL1362)","v":""}]
[{"$f":"IF('1. Ordersheet'!F1363=\"\",\"\",'1. Ordersheet'!F1363)","v":""},{"$f":"IF('1. Ordersheet'!G1363=\"\",\"\",'1. Ordersheet'!G1363)","v":""},{"$f":"IF('1. Ordersheet'!H1363=\"\",\"\",'1. Ordersheet'!H1363)","v":""},{"$f":"IF('1. Ordersheet'!I1363=\"\",\"\",'1. Ordersheet'!I1363)","v":""},{"$f":"IF('1. Ordersheet'!J1363=\"\",\"\",'1. Ordersheet'!J1363)","v":""},{"$f":"IF('1. Ordersheet'!K1363=\"\",\"\",'1. Ordersheet'!K1363)","v":""},{"$f":"IF('1. Ordersheet'!L1363=\"\",\"\",'1. Ordersheet'!L1363)","v":""},{"$f":"IF('1. Ordersheet'!M1363=\"\",\"\",'1. Ordersheet'!M1363)","v":""},{"$f":"IF('1. Ordersheet'!N1363=\"\",\"\",'1. Ordersheet'!N1363)","v":""},{"$f":"IF('1. Ordersheet'!O1363=\"\",\"\",'1. Ordersheet'!O1363)","v":{"$error":"#N/A"}},{"$f":"IF('1. Ordersheet'!P1363=\"\",\"\",'1. Ordersheet'!P1363)","v":{"$error":"#N/A"}},{"$f":"IF('1. Ordersheet'!Q1363=\"\",\"\",'1. Ordersheet'!Q1363)","v":""},{"$f":"IF('1. Ordersheet'!R1363=\"\",\"\",'1. Ordersheet'!R1363)","v":""},{"$f":"IF('1. Ordersheet'!S1363=\"\",\"\",'1. Ordersheet'!S1363)","v":""},{"$f":"IF('1. Ordersheet'!V1363=\"\",\"\",'1. Ordersheet'!V1363)","v":""},{"$f":"IF('1. Ordersheet'!W1363=\"\",\"\",'1. Ordersheet'!W1363)","v":""},{"$f":"IF('1. Ordersheet'!X1363=\"\",\"\",'1. Ordersheet'!X1363)","v":""},{"$f":"IF('1. Ordersheet'!Y1363=\"\",\"\",'1. Ordersheet'!Y1363)","v":""},{"$f":"IF('1. Ordersheet'!Z1363=\"\",\"\",'1. Ordersheet'!Z1363)","v":""},{"$f":"IF('1. Ordersheet'!AA1363=\"\",\"\",'1. Ordersheet'!AA1363)","v":""},null,{"$f":"IF('1. Ordersheet'!AS1363=\"\",\"\",'1. Ordersheet'!AS1363)","v":""},{"$f":"IF('1. Ordersheet'!AT1363=\"\",\"\",'1. Ordersheet'!AT1363)","v":""},null,null,null,null,null,null,null,{"$f":"IF('1. Ordersheet'!AX1363=\"\",\"\",'1. Ordersheet'!AX1363)","v":""},{"$f":"IF('1. Ordersheet'!AY1363=\"\",\"\",'1. Ordersheet'!AY1363)","v":""},{"$f":"IF('1. Ordersheet'!AZ1363=\"\",\"\",'1. Ordersheet'!AZ1363)","v":""},{"$f":"IF('1. Ordersheet'!BA1363=\"\",\"\",'1. Ordersheet'!BA1363)","v":""},{"$f":"IF('1. Ordersheet'!BC1363=\"\",\"\",'1. Ordersheet'!BC1363)","v":""},{"$f":"IF('1. Ordersheet'!BD1363=\"\",\"\",'1. Ordersheet'!BD1363)","v":""},{"$f":"IF('1. Ordersheet'!BE1363=\"\",\"\",'1. Ordersheet'!BE1363)","v":""},{"$f":"IF('1. Ordersheet'!BF1363=\"\",\"\",'1. Ordersheet'!BF1363)","v":""},{"$f":"IF('1. Ordersheet'!BG1363=\"\",\"\",'1. Ordersheet'!BG1363)","v":"ZWO"},{"$f":"IF('1. Ordersheet'!BH1363=\"\",\"\",'1. Ordersheet'!BH1363)","v":""},{"$f":"IF('1. Ordersheet'!BI1363=\"\",\"\",'1. Ordersheet'!BI1363)","v":""},{"$f":"IF('1. Ordersheet'!BJ1363=\"\",\"\",'1. Ordersheet'!BJ1363)","v":""},{"$f":"IF('1. Ordersheet'!BK1363=\"\",\"\",'1. Ordersheet'!BK1363)","v":""},{"$f":"IF('1. Ordersheet'!BL1363=\"\",\"\",'1. Ordersheet'!BL1363)","v":""}]
[{"$f":"IF('1. Ordersheet'!F1364=\"\",\"\",'1. Ordersheet'!F1364)","v":""},{"$f":"IF('1. Ordersheet'!G1364=\"\",\"\",'1. Ordersheet'!G1364)","v":""},{"$f":"IF('1. Ordersheet'!H1364=\"\",\"\",'1. Ordersheet'!H1364)","v":""},{"$f":"IF('1. Ordersheet'!I1364=\"\",\"\",'1. Ordersheet'!I1364)","v":""},{"$f":"IF('1. Ordersheet'!J1364=\"\",\"\",'1. Ordersheet'!J1364)","v":""},{"$f":"IF('1. Ordersheet'!K1364=\"\",\"\",'1. Ordersheet'!K1364)","v":""},{"$f":"IF('1. Ordersheet'!L1364=\"\",\"\",'1. Ordersheet'!L1364)","v":""},{"$f":"IF('1. Ordersheet'!M1364=\"\",\"\",'1. Ordersheet'!M1364)","v":""},{"$f":"IF('1. Ordersheet'!N1364=\"\",\"\",'1. Ordersheet'!N1364)","v":""},{"$f":"IF('1. Ordersheet'!O1364=\"\",\"\",'1. Ordersheet'!O1364)","v":{"$error":"#N/A"}},{"$f":"IF('1. Ordersheet'!P1364=\"\",\"\",'1. Ordersheet'!P1364)","v":{"$error":"#N/A"}},{"$f":"IF('1. Ordersheet'!Q1364=\"\",\"\",'1. Ordersheet'!Q1364)","v":""},{"$f":"IF('1. Ordersheet'!R1364=\"\",\"\",'1. Ordersheet'!R1364)","v":""},{"$f":"IF('1. Ordersheet'!S1364=\"\",\"\",'1. Ordersheet'!S1364)","v":""},{"$f":"IF('1. Ordersheet'!V1364=\"\",\"\",'1. Ordersheet'!V1364)","v":""},{"$f":"IF('1. Ordersheet'!W1364=\"\",\"\",'1. Ordersheet'!W1364)","v":""},{"$f":"IF('1. Ordersheet'!X1364=\"\",\"\",'1. Ordersheet'!X1364)","v":""},{"$f":"IF('1. Ordersheet'!Y1364=\"\",\"\",'1. Ordersheet'!Y1364)","v":""},{"$f":"IF('1. Ordersheet'!Z1364=\"\",\"\",'1. Ordersheet'!Z1364)","v":""},{"$f":"IF('1. Ordersheet'!AA1364=\"\",\"\",'1. Ordersheet'!AA1364)","v":""},null,{"$f":"IF('1. Ordersheet'!AS1364=\"\",\"\",'1. Ordersheet'!AS1364)","v":""},{"$f":"IF('1. Ordersheet'!AT1364=\"\",\"\",'1. Ordersheet'!AT1364)","v":""},null,null,null,null,null,null,null,{"$f":"IF('1. Ordersheet'!AX1364=\"\",\"\",'1. Ordersheet'!AX1364)","v":""},{"$f":"IF('1. Ordersheet'!AY1364=\"\",\"\",'1. Ordersheet'!AY1364)","v":""},{"$f":"IF('1. Ordersheet'!AZ1364=\"\",\"\",'1. Ordersheet'!AZ1364)","v":""},{"$f":"IF('1. Ordersheet'!BA1364=\"\",\"\",'1. Ordersheet'!BA1364)","v":""},{"$f":"IF('1. Ordersheet'!BC1364=\"\",\"\",'1. Ordersheet'!BC1364)","v":""},{"$f":"IF('1. Ordersheet'!BD1364=\"\",\"\",'1. Ordersheet'!BD1364)","v":""},{"$f":"IF('1. Ordersheet'!BE1364=\"\",\"\",'1. Ordersheet'!BE1364)","v":""},{"$f":"IF('1. Ordersheet'!BF1364=\"\",\"\",'1. Ordersheet'!BF1364)","v":""},{"$f":"IF('1. Ordersheet'!BG1364=\"\",\"\",'1. Ordersheet'!BG1364)","v":"ZWO"},{"$f":"IF('1. Ordersheet'!BH1364=\"\",\"\",'1. Ordersheet'!BH1364)","v":""},{"$f":"IF('1. Ordersheet'!BI1364=\"\",\"\",'1. Ordersheet'!BI1364)","v":""},{"$f":"IF('1. Ordersheet'!BJ1364=\"\",\"\",'1. Ordersheet'!BJ1364)","v":""},{"$f":"IF('1. Ordersheet'!BK1364=\"\",\"\",'1. Ordersheet'!BK1364)","v":""},{"$f":"IF('1. Ordersheet'!BL1364=\"\",\"\",'1. Ordersheet'!BL1364)","v":""}]
[{"$f":"IF('1. Ordersheet'!F1365=\"\",\"\",'1. Ordersheet'!F1365)","v":""},{"$f":"IF('1. Ordersheet'!G1365=\"\",\"\",'1. Ordersheet'!G1365)","v":""},{"$f":"IF('1. Ordersheet'!H1365=\"\",\"\",'1. Ordersheet'!H1365)","v":""},{"$f":"IF('1. Ordersheet'!I1365=\"\",\"\",'1. Ordersheet'!I1365)","v":""},{"$f":"IF('1. Ordersheet'!J1365=\"\",\"\",'1. Ordersheet'!J1365)","v":""},{"$f":"IF('1. Ordersheet'!K1365=\"\",\"\",'1. Ordersheet'!K1365)","v":""},{"$f":"IF('1. Ordersheet'!L1365=\"\",\"\",'1. Ordersheet'!L1365)","v":""},{"$f":"IF('1. Ordersheet'!M1365=\"\",\"\",'1. Ordersheet'!M1365)","v":""},{"$f":"IF('1. Ordersheet'!N1365=\"\",\"\",'1. Ordersheet'!N1365)","v":""},{"$f":"IF('1. Ordersheet'!O1365=\"\",\"\",'1. Ordersheet'!O1365)","v":{"$error":"#N/A"}},{"$f":"IF('1. Ordersheet'!P1365=\"\",\"\",'1. Ordersheet'!P1365)","v":{"$error":"#N/A"}},{"$f":"IF('1. Ordersheet'!Q1365=\"\",\"\",'1. Ordersheet'!Q1365)","v":""},{"$f":"IF('1. Ordersheet'!R1365=\"\",\"\",'1. Ordersheet'!R1365)","v":""},{"$f":"IF('1. Ordersheet'!S1365=\"\",\"\",'1. Ordersheet'!S1365)","v":""},{"$f":"IF('1. Ordersheet'!V1365=\"\",\"\",'1. Ordersheet'!V1365)","v":""},{"$f":"IF('1. Ordersheet'!W1365=\"\",\"\",'1. Ordersheet'!W1365)","v":""},{"$f":"IF('1. Ordersheet'!X1365=\"\",\"\",'1. Ordersheet'!X1365)","v":""},{"$f":"IF('1. Ordersheet'!Y1365=\"\",\"\",'1. Ordersheet'!Y1365)","v":""},{"$f":"IF('1. Ordersheet'!Z1365=\"\",\"\",'1. Ordersheet'!Z1365)","v":""},{"$f":"IF('1. Ordersheet'!AA1365=\"\",\"\",'1. Ordersheet'!AA1365)","v":""},null,{"$f":"IF('1. Ordersheet'!AS1365=\"\",\"\",'1. Ordersheet'!AS1365)","v":""},{"$f":"IF('1. Ordersheet'!AT1365=\"\",\"\",'1. Ordersheet'!AT1365)","v":""},null,null,null,null,null,null,null,{"$f":"IF('1. Ordersheet'!AX1365=\"\",\"\",'1. Ordersheet'!AX1365)","v":""},{"$f":"IF('1. Ordersheet'!AY1365=\"\",\"\",'1. Ordersheet'!AY1365)","v":""},{"$f":"IF('1. Ordersheet'!AZ1365=\"\",\"\",'1. Ordersheet'!AZ1365)","v":""},{"$f":"IF('1. Ordersheet'!BA1365=\"\",\"\",'1. Ordersheet'!BA1365)","v":""},{"$f":"IF('1. Ordersheet'!BC1365=\"\",\"\",'1. Ordersheet'!BC1365)","v":""},{"$f":"IF('1. Ordersheet'!BD1365=\"\",\"\",'1. Ordersheet'!BD1365)","v":""},{"$f":"IF('1. Ordersheet'!BE1365=\"\",\"\",'1. Ordersheet'!BE1365)","v":""},{"$f":"IF('1. Ordersheet'!BF1365=\"\",\"\",'1. Ordersheet'!BF1365)","v":""},{"$f":"IF('1. Ordersheet'!BG1365=\"\",\"\",'1. Ordersheet'!BG1365)","v":"ZWO"},{"$f":"IF('1. Ordersheet'!BH1365=\"\",\"\",'1. Ordersheet'!BH1365)","v":""},{"$f":"IF('1. Ordersheet'!BI1365=\"\",\"\",'1. Ordersheet'!BI1365)","v":""},{"$f":"IF('1. Ordersheet'!BJ1365=\"\",\"\",'1. Ordersheet'!BJ1365)","v":""},{"$f":"IF('1. Ordersheet'!BK1365=\"\",\"\",'1. Ordersheet'!BK1365)","v":""},{"$f":"IF('1. Ordersheet'!BL1365=\"\",\"\",'1. Ordersheet'!BL1365)","v":""}]
[{"$f":"IF('1. Ordersheet'!F1366=\"\",\"\",'1. Ordersheet'!F1366)","v":""},{"$f":"IF('1. Ordersheet'!G1366=\"\",\"\",'1. Ordersheet'!G1366)","v":""},{"$f":"IF('1. Ordersheet'!H1366=\"\",\"\",'1. Ordersheet'!H1366)","v":""},{"$f":"IF('1. Ordersheet'!I1366=\"\",\"\",'1. Ordersheet'!I1366)","v":""},{"$f":"IF('1. Ordersheet'!J1366=\"\",\"\",'1. Ordersheet'!J1366)","v":""},{"$f":"IF('1. Ordersheet'!K1366=\"\",\"\",'1. Ordersheet'!K1366)","v":""},{"$f":"IF('1. Ordersheet'!L1366=\"\",\"\",'1. Ordersheet'!L1366)","v":""},{"$f":"IF('1. Ordersheet'!M1366=\"\",\"\",'1. Ordersheet'!M1366)","v":""},{"$f":"IF('1. Ordersheet'!N1366=\"\",\"\",'1. Ordersheet'!N1366)","v":""},{"$f":"IF('1. Ordersheet'!O1366=\"\",\"\",'1. Ordersheet'!O1366)","v":{"$error":"#N/A"}},{"$f":"IF('1. Ordersheet'!P1366=\"\",\"\",'1. Ordersheet'!P1366)","v":{"$error":"#N/A"}},{"$f":"IF('1. Ordersheet'!Q1366=\"\",\"\",'1. Ordersheet'!Q1366)","v":""},{"$f":"IF('1. Ordersheet'!R1366=\"\",\"\",'1. Ordersheet'!R1366)","v":""},{"$f":"IF('1. Ordersheet'!S1366=\"\",\"\",'1. Ordersheet'!S1366)","v":""},{"$f":"IF('1. Ordersheet'!V1366=\"\",\"\",'1. Ordersheet'!V1366)","v":""},{"$f":"IF('1. Ordersheet'!W1366=\"\",\"\",'1. Ordersheet'!W1366)","v":""},{"$f":"IF('1. Ordersheet'!X1366=\"\",\"\",'1. Ordersheet'!X1366)","v":""},{"$f":"IF('1. Ordersheet'!Y1366=\"\",\"\",'1. Ordersheet'!Y1366)","v":""},{"$f":"IF('1. Ordersheet'!Z1366=\"\",\"\",'1. Ordersheet'!Z1366)","v":""},{"$f":"IF('1. Ordersheet'!AA1366=\"\",\"\",'1. Ordersheet'!AA1366)","v":""},null,{"$f":"IF('1. Ordersheet'!AS1366=\"\",\"\",'1. Ordersheet'!AS1366)","v":""},{"$f":"IF('1. Ordersheet'!AT1366=\"\",\"\",'1. Ordersheet'!AT1366)","v":""},null,null,null,null,null,null,null,{"$f":"IF('1. Ordersheet'!AX1366=\"\",\"\",'1. Ordersheet'!AX1366)","v":""},{"$f":"IF('1. Ordersheet'!AY1366=\"\",\"\",'1. Ordersheet'!AY1366)","v":""},{"$f":"IF('1. Ordersheet'!AZ1366=\"\",\"\",'1. Ordersheet'!AZ1366)","v":""},{"$f":"IF('1. Ordersheet'!BA1366=\"\",\"\",'1. Ordersheet'!BA1366)","v":""},{"$f":"IF('1. Ordersheet'!BC1366=\"\",\"\",'1. Ordersheet'!BC1366)","v":""},{"$f":"IF('1. Ordersheet'!BD1366=\"\",\"\",'1. Ordersheet'!BD1366)","v":""},{"$f":"IF('1. Ordersheet'!BE1366=\"\",\"\",'1. Ordersheet'!BE1366)","v":""},{"$f":"IF('1. Ordersheet'!BF1366=\"\",\"\",'1. Ordersheet'!BF1366)","v":""},{"$f":"IF('1. Ordersheet'!BG1366=\"\",\"\",'1. Ordersheet'!BG1366)","v":"ZWO"},{"$f":"IF('1. Ordersheet'!BH1366=\"\",\"\",'1. Ordersheet'!BH1366)","v":""},{"$f":"IF('1. Ordersheet'!BI1366=\"\",\"\",'1. Ordersheet'!BI1366)","v":""},{"$f":"IF('1. Ordersheet'!BJ1366=\"\",\"\",'1. Ordersheet'!BJ1366)","v":""},{"$f":"IF('1. Ordersheet'!BK1366=\"\",\"\",'1. Ordersheet'!BK1366)","v":""},{"$f":"IF('1. Ordersheet'!BL1366=\"\",\"\",'1. Ordersheet'!BL1366)","v":""}]
[{"$f":"IF('1. Ordersheet'!F1367=\"\",\"\",'1. Ordersheet'!F1367)","v":""},{"$f":"IF('1. Ordersheet'!G1367=\"\",\"\",'1. Ordersheet'!G1367)","v":""},{"$f":"IF('1. Ordersheet'!H1367=\"\",\"\",'1. Ordersheet'!H1367)","v":""},{"$f":"IF('1. Ordersheet'!I1367=\"\",\"\",'1. Ordersheet'!I1367)","v":""},{"$f":"IF('1. Ordersheet'!J1367=\"\",\"\",'1. Ordersheet'!J1367)","v":""},{"$f":"IF('1. Ordersheet'!K1367=\"\",\"\",'1. Ordersheet'!K1367)","v":""},{"$f":"IF('1. Ordersheet'!L1367=\"\",\"\",'1. Ordersheet'!L1367)","v":""},{"$f":"IF('1. Ordersheet'!M1367=\"\",\"\",'1. Ordersheet'!M1367)","v":""},{"$f":"IF('1. Ordersheet'!N1367=\"\",\"\",'1. Ordersheet'!N1367)","v":""},{"$f":"IF('1. Ordersheet'!O1367=\"\",\"\",'1. Ordersheet'!O1367)","v":{"$error":"#N/A"}},{"$f":"IF('1. Ordersheet'!P1367=\"\",\"\",'1. Ordersheet'!P1367)","v":{"$error":"#N/A"}},{"$f":"IF('1. Ordersheet'!Q1367=\"\",\"\",'1. Ordersheet'!Q1367)","v":""},{"$f":"IF('1. Ordersheet'!R1367=\"\",\"\",'1. Ordersheet'!R1367)","v":""},{"$f":"IF('1. Ordersheet'!S1367=\"\",\"\",'1. Ordersheet'!S1367)","v":""},{"$f":"IF('1. Ordersheet'!V1367=\"\",\"\",'1. Ordersheet'!V1367)","v":""},{"$f":"IF('1. Ordersheet'!W1367=\"\",\"\",'1. Ordersheet'!W1367)","v":""},{"$f":"IF('1. Ordersheet'!X1367=\"\",\"\",'1. Ordersheet'!X1367)","v":""},{"$f":"IF('1. Ordersheet'!Y1367=\"\",\"\",'1. Ordersheet'!Y1367)","v":""},{"$f":"IF('1. Ordersheet'!Z1367=\"\",\"\",'1. Ordersheet'!Z1367)","v":""},{"$f":"IF('1. Ordersheet'!AA1367=\"\",\"\",'1. Ordersheet'!AA1367)","v":""},null,{"$f":"IF('1. Ordersheet'!AS1367=\"\",\"\",'1. Ordersheet'!AS1367)","v":""},{"$f":"IF('1. Ordersheet'!AT1367=\"\",\"\",'1. Ordersheet'!AT1367)","v":""},null,null,null,null,null,null,null,{"$f":"IF('1. Ordersheet'!AX1367=\"\",\"\",'1. Ordersheet'!AX1367)","v":""},{"$f":"IF('1. Ordersheet'!AY1367=\"\",\"\",'1. Ordersheet'!AY1367)","v":""},{"$f":"IF('1. Ordersheet'!AZ1367=\"\",\"\",'1. Ordersheet'!AZ1367)","v":""},{"$f":"IF('1. Ordersheet'!BA1367=\"\",\"\",'1. Ordersheet'!BA1367)","v":""},{"$f":"IF('1. Ordersheet'!BC1367=\"\",\"\",'1. Ordersheet'!BC1367)","v":""},{"$f":"IF('1. Ordersheet'!BD1367=\"\",\"\",'1. Ordersheet'!BD1367)","v":""},{"$f":"IF('1. Ordersheet'!BE1367=\"\",\"\",'1. Ordersheet'!BE1367)","v":""},{"$f":"IF('1. Ordersheet'!BF1367=\"\",\"\",'1. Ordersheet'!BF1367)","v":""},{"$f":"IF('1. Ordersheet'!BG1367=\"\",\"\",'1. Ordersheet'!BG1367)","v":"ZWO"},{"$f":"IF('1. Ordersheet'!BH1367=\"\",\"\",'1. Ordersheet'!BH1367)","v":""},{"$f":"IF('1. Ordersheet'!BI1367=\"\",\"\",'1. Ordersheet'!BI1367)","v":""},{"$f":"IF('1. Ordersheet'!BJ1367=\"\",\"\",'1. Ordersheet'!BJ1367)","v":""},{"$f":"IF('1. Ordersheet'!BK1367=\"\",\"\",'1. Ordersheet'!BK1367)","v":""},{"$f":"IF('1. Ordersheet'!BL1367=\"\",\"\",'1. Ordersheet'!BL1367)","v":""}]
[{"$f":"IF('1. Ordersheet'!F1368=\"\",\"\",'1. Ordersheet'!F1368)","v":""},{"$f":"IF('1. Ordersheet'!G1368=\"\",\"\",'1. Ordersheet'!G1368)","v":""},{"$f":"IF('1. Ordersheet'!H1368=\"\",\"\",'1. Ordersheet'!H1368)","v":""},{"$f":"IF('1. Ordersheet'!I1368=\"\",\"\",'1. Ordersheet'!I1368)","v":""},{"$f":"IF('1. Ordersheet'!J1368=\"\",\"\",'1. Ordersheet'!J1368)","v":""},{"$f":"IF('1. Ordersheet'!K1368=\"\",\"\",'1. Ordersheet'!K1368)","v":""},{"$f":"IF('1. Ordersheet'!L1368=\"\",\"\",'1. Ordersheet'!L1368)","v":""},{"$f":"IF('1. Ordersheet'!M1368=\"\",\"\",'1. Ordersheet'!M1368)","v":""},{"$f":"IF('1. Ordersheet'!N1368=\"\",\"\",'1. Ordersheet'!N1368)","v":""},{"$f":"IF('1. Ordersheet'!O1368=\"\",\"\",'1. Ordersheet'!O1368)","v":{"$error":"#N/A"}},{"$f":"IF('1. Ordersheet'!P1368=\"\",\"\",'1. Ordersheet'!P1368)","v":{"$error":"#N/A"}},{"$f":"IF('1. Ordersheet'!Q1368=\"\",\"\",'1. Ordersheet'!Q1368)","v":""},{"$f":"IF('1. Ordersheet'!R1368=\"\",\"\",'1. Ordersheet'!R1368)","v":""},{"$f":"IF('1. Ordersheet'!S1368=\"\",\"\",'1. Ordersheet'!S1368)","v":""},{"$f":"IF('1. Ordersheet'!V1368=\"\",\"\",'1. Ordersheet'!V1368)","v":""},{"$f":"IF('1. Ordersheet'!W1368=\"\",\"\",'1. Ordersheet'!W1368)","v":""},{"$f":"IF('1. Ordersheet'!X1368=\"\",\"\",'1. Ordersheet'!X1368)","v":""},{"$f":"IF('1. Ordersheet'!Y1368=\"\",\"\",'1. Ordersheet'!Y1368)","v":""},{"$f":"IF('1. Ordersheet'!Z1368=\"\",\"\",'1. Ordersheet'!Z1368)","v":""},{"$f":"IF('1. Ordersheet'!AA1368=\"\",\"\",'1. Ordersheet'!AA1368)","v":""},null,{"$f":"IF('1. Ordersheet'!AS1368=\"\",\"\",'1. Ordersheet'!AS1368)","v":""},{"$f":"IF('1. Ordersheet'!AT1368=\"\",\"\",'1. Ordersheet'!AT1368)","v":""},null,null,null,null,null,null,null,{"$f":"IF('1. Ordersheet'!AX1368=\"\",\"\",'1. Ordersheet'!AX1368)","v":""},{"$f":"IF('1. Ordersheet'!AY1368=\"\",\"\",'1. Ordersheet'!AY1368)","v":""},{"$f":"IF('1. Ordersheet'!AZ1368=\"\",\"\",'1. Ordersheet'!AZ1368)","v":""},{"$f":"IF('1. Ordersheet'!BA1368=\"\",\"\",'1. Ordersheet'!BA1368)","v":""},{"$f":"IF('1. Ordersheet'!BC1368=\"\",\"\",'1. Ordersheet'!BC1368)","v":""},{"$f":"IF('1. Ordersheet'!BD1368=\"\",\"\",'1. Ordersheet'!BD1368)","v":""},{"$f":"IF('1. Ordersheet'!BE1368=\"\",\"\",'1. Ordersheet'!BE1368)","v":""},{"$f":"IF('1. Ordersheet'!BF1368=\"\",\"\",'1. Ordersheet'!BF1368)","v":""},{"$f":"IF('1. Ordersheet'!BG1368=\"\",\"\",'1. Ordersheet'!BG1368)","v":"ZWO"},{"$f":"IF('1. Ordersheet'!BH1368=\"\",\"\",'1. Ordersheet'!BH1368)","v":""},{"$f":"IF('1. Ordersheet'!BI1368=\"\",\"\",'1. Ordersheet'!BI1368)","v":""},{"$f":"IF('1. Ordersheet'!BJ1368=\"\",\"\",'1. Ordersheet'!BJ1368)","v":""},{"$f":"IF('1. Ordersheet'!BK1368=\"\",\"\",'1. Ordersheet'!BK1368)","v":""},{"$f":"IF('1. Ordersheet'!BL1368=\"\",\"\",'1. Ordersheet'!BL1368)","v":""}]
[{"$f":"IF('1. Ordersheet'!F1369=\"\",\"\",'1. Ordersheet'!F1369)","v":""},{"$f":"IF('1. Ordersheet'!G1369=\"\",\"\",'1. Ordersheet'!G1369)","v":""},{"$f":"IF('1. Ordersheet'!H1369=\"\",\"\",'1. Ordersheet'!H1369)","v":""},{"$f":"IF('1. Ordersheet'!I1369=\"\",\"\",'1. Ordersheet'!I1369)","v":""},{"$f":"IF('1. Ordersheet'!J1369=\"\",\"\",'1. Ordersheet'!J1369)","v":""},{"$f":"IF('1. Ordersheet'!K1369=\"\",\"\",'1. Ordersheet'!K1369)","v":""},{"$f":"IF('1. Ordersheet'!L1369=\"\",\"\",'1. Ordersheet'!L1369)","v":""},{"$f":"IF('1. Ordersheet'!M1369=\"\",\"\",'1. Ordersheet'!M1369)","v":""},{"$f":"IF('1. Ordersheet'!N1369=\"\",\"\",'1. Ordersheet'!N1369)","v":""},{"$f":"IF('1. Ordersheet'!O1369=\"\",\"\",'1. Ordersheet'!O1369)","v":{"$error":"#N/A"}},{"$f":"IF('1. Ordersheet'!P1369=\"\",\"\",'1. Ordersheet'!P1369)","v":{"$error":"#N/A"}},{"$f":"IF('1. Ordersheet'!Q1369=\"\",\"\",'1. Ordersheet'!Q1369)","v":""},{"$f":"IF('1. Ordersheet'!R1369=\"\",\"\",'1. Ordersheet'!R1369)","v":""},{"$f":"IF('1. Ordersheet'!S1369=\"\",\"\",'1. Ordersheet'!S1369)","v":""},{"$f":"IF('1. Ordersheet'!V1369=\"\",\"\",'1. Ordersheet'!V1369)","v":""},{"$f":"IF('1. Ordersheet'!W1369=\"\",\"\",'1. Ordersheet'!W1369)","v":""},{"$f":"IF('1. Ordersheet'!X1369=\"\",\"\",'1. Ordersheet'!X1369)","v":""},{"$f":"IF('1. Ordersheet'!Y1369=\"\",\"\",'1. Ordersheet'!Y1369)","v":""},{"$f":"IF('1. Ordersheet'!Z1369=\"\",\"\",'1. Ordersheet'!Z1369)","v":""},{"$f":"IF('1. Ordersheet'!AA1369=\"\",\"\",'1. Ordersheet'!AA1369)","v":""},null,{"$f":"IF('1. Ordersheet'!AS1369=\"\",\"\",'1. Ordersheet'!AS1369)","v":""},{"$f":"IF('1. Ordersheet'!AT1369=\"\",\"\",'1. Ordersheet'!AT1369)","v":""},null,null,null,null,null,null,null,{"$f":"IF('1. Ordersheet'!AX1369=\"\",\"\",'1. Ordersheet'!AX1369)","v":""},{"$f":"IF('1. Ordersheet'!AY1369=\"\",\"\",'1. Ordersheet'!AY1369)","v":""},{"$f":"IF('1. Ordersheet'!AZ1369=\"\",\"\",'1. Ordersheet'!AZ1369)","v":""},{"$f":"IF('1. Ordersheet'!BA1369=\"\",\"\",'1. Ordersheet'!BA1369)","v":""},{"$f":"IF('1. Ordersheet'!BC1369=\"\",\"\",'1. Ordersheet'!BC1369)","v":""},{"$f":"IF('1. Ordersheet'!BD1369=\"\",\"\",'1. Ordersheet'!BD1369)","v":""},{"$f":"IF('1. Ordersheet'!BE1369=\"\",\"\",'1. Ordersheet'!BE1369)","v":""},{"$f":"IF('1. Ordersheet'!BF1369=\"\",\"\",'1. Ordersheet'!BF1369)","v":""},{"$f":"IF('1. Ordersheet'!BG1369=\"\",\"\",'1. Ordersheet'!BG1369)","v":"ZWO"},{"$f":"IF('1. Ordersheet'!BH1369=\"\",\"\",'1. Ordersheet'!BH1369)","v":""},{"$f":"IF('1. Ordersheet'!BI1369=\"\",\"\",'1. Ordersheet'!BI1369)","v":""},{"$f":"IF('1. Ordersheet'!BJ1369=\"\",\"\",'1. Ordersheet'!BJ1369)","v":""},{"$f":"IF('1. Ordersheet'!BK1369=\"\",\"\",'1. Ordersheet'!BK1369)","v":""},{"$f":"IF('1. Ordersheet'!BL1369=\"\",\"\",'1. Ordersheet'!BL1369)","v":""}]
[{"$f":"IF('1. Ordersheet'!F1370=\"\",\"\",'1. Ordersheet'!F1370)","v":""},{"$f":"IF('1. Ordersheet'!G1370=\"\",\"\",'1. Ordersheet'!G1370)","v":""},{"$f":"IF('1. Ordersheet'!H1370=\"\",\"\",'1. Ordersheet'!H1370)","v":""},{"$f":"IF('1. Ordersheet'!I1370=\"\",\"\",'1. Ordersheet'!I1370)","v":""},{"$f":"IF('1. Ordersheet'!J1370=\"\",\"\",'1. Ordersheet'!J1370)","v":""},{"$f":"IF('1. Ordersheet'!K1370=\"\",\"\",'1. Ordersheet'!K1370)","v":""},{"$f":"IF('1. Ordersheet'!L1370=\"\",\"\",'1. Ordersheet'!L1370)","v":""},{"$f":"IF('1. Ordersheet'!M1370=\"\",\"\",'1. Ordersheet'!M1370)","v":""},{"$f":"IF('1. Ordersheet'!N1370=\"\",\"\",'1. Ordersheet'!N1370)","v":""},{"$f":"IF('1. Ordersheet'!O1370=\"\",\"\",'1. Ordersheet'!O1370)","v":{"$error":"#N/A"}},{"$f":"IF('1. Ordersheet'!P1370=\"\",\"\",'1. Ordersheet'!P1370)","v":{"$error":"#N/A"}},{"$f":"IF('1. Ordersheet'!Q1370=\"\",\"\",'1. Ordersheet'!Q1370)","v":""},{"$f":"IF('1. Ordersheet'!R1370=\"\",\"\",'1. Ordersheet'!R1370)","v":""},{"$f":"IF('1. Ordersheet'!S1370=\"\",\"\",'1. Ordersheet'!S1370)","v":""},{"$f":"IF('1. Ordersheet'!V1370=\"\",\"\",'1. Ordersheet'!V1370)","v":""},{"$f":"IF('1. Ordersheet'!W1370=\"\",\"\",'1. Ordersheet'!W1370)","v":""},{"$f":"IF('1. Ordersheet'!X1370=\"\",\"\",'1. Ordersheet'!X1370)","v":""},{"$f":"IF('1. Ordersheet'!Y1370=\"\",\"\",'1. Ordersheet'!Y1370)","v":""},{"$f":"IF('1. Ordersheet'!Z1370=\"\",\"\",'1. Ordersheet'!Z1370)","v":""},{"$f":"IF('1. Ordersheet'!AA1370=\"\",\"\",'1. Ordersheet'!AA1370)","v":""},null,{"$f":"IF('1. Ordersheet'!AS1370=\"\",\"\",'1. Ordersheet'!AS1370)","v":""},{"$f":"IF('1. Ordersheet'!AT1370=\"\",\"\",'1. Ordersheet'!AT1370)","v":""},null,null,null,null,null,null,null,{"$f":"IF('1. Ordersheet'!AX1370=\"\",\"\",'1. Ordersheet'!AX1370)","v":""},{"$f":"IF('1. Ordersheet'!AY1370=\"\",\"\",'1. Ordersheet'!AY1370)","v":""},{"$f":"IF('1. Ordersheet'!AZ1370=\"\",\"\",'1. Ordersheet'!AZ1370)","v":""},{"$f":"IF('1. Ordersheet'!BA1370=\"\",\"\",'1. Ordersheet'!BA1370)","v":""},{"$f":"IF('1. Ordersheet'!BC1370=\"\",\"\",'1. Ordersheet'!BC1370)","v":""},{"$f":"IF('1. Ordersheet'!BD1370=\"\",\"\",'1. Ordersheet'!BD1370)","v":""},{"$f":"IF('1. Ordersheet'!BE1370=\"\",\"\",'1. Ordersheet'!BE1370)","v":""},{"$f":"IF('1. Ordersheet'!BF1370=\"\",\"\",'1. Ordersheet'!BF1370)","v":""},{"$f":"IF('1. Ordersheet'!BG1370=\"\",\"\",'1. Ordersheet'!BG1370)","v":"ZWO"},{"$f":"IF('1. Ordersheet'!BH1370=\"\",\"\",'1. Ordersheet'!BH1370)","v":""},{"$f":"IF('1. Ordersheet'!BI1370=\"\",\"\",'1. Ordersheet'!BI1370)","v":""},{"$f":"IF('1. Ordersheet'!BJ1370=\"\",\"\",'1. Ordersheet'!BJ1370)","v":""},{"$f":"IF('1. Ordersheet'!BK1370=\"\",\"\",'1. Ordersheet'!BK1370)","v":""},{"$f":"IF('1. Ordersheet'!BL1370=\"\",\"\",'1. Ordersheet'!BL1370)","v":""}]
[{"$f":"IF('1. Ordersheet'!F1371=\"\",\"\",'1. Ordersheet'!F1371)","v":""},{"$f":"IF('1. Ordersheet'!G1371=\"\",\"\",'1. Ordersheet'!G1371)","v":""},{"$f":"IF('1. Ordersheet'!H1371=\"\",\"\",'1. Ordersheet'!H1371)","v":""},{"$f":"IF('1. Ordersheet'!I1371=\"\",\"\",'1. Ordersheet'!I1371)","v":""},{"$f":"IF('1. Ordersheet'!J1371=\"\",\"\",'1. Ordersheet'!J1371)","v":""},{"$f":"IF('1. Ordersheet'!K1371=\"\",\"\",'1. Ordersheet'!K1371)","v":""},{"$f":"IF('1. Ordersheet'!L1371=\"\",\"\",'1. Ordersheet'!L1371)","v":""},{"$f":"IF('1. Ordersheet'!M1371=\"\",\"\",'1. Ordersheet'!M1371)","v":""},{"$f":"IF('1. Ordersheet'!N1371=\"\",\"\",'1. Ordersheet'!N1371)","v":""},{"$f":"IF('1. Ordersheet'!O1371=\"\",\"\",'1. Ordersheet'!O1371)","v":{"$error":"#N/A"}},{"$f":"IF('1. Ordersheet'!P1371=\"\",\"\",'1. Ordersheet'!P1371)","v":{"$error":"#N/A"}},{"$f":"IF('1. Ordersheet'!Q1371=\"\",\"\",'1. Ordersheet'!Q1371)","v":""},{"$f":"IF('1. Ordersheet'!R1371=\"\",\"\",'1. Ordersheet'!R1371)","v":""},{"$f":"IF('1. Ordersheet'!S1371=\"\",\"\",'1. Ordersheet'!S1371)","v":""},{"$f":"IF('1. Ordersheet'!V1371=\"\",\"\",'1. Ordersheet'!V1371)","v":""},{"$f":"IF('1. Ordersheet'!W1371=\"\",\"\",'1. Ordersheet'!W1371)","v":""},{"$f":"IF('1. Ordersheet'!X1371=\"\",\"\",'1. Ordersheet'!X1371)","v":""},{"$f":"IF('1. Ordersheet'!Y1371=\"\",\"\",'1. Ordersheet'!Y1371)","v":""},{"$f":"IF('1. Ordersheet'!Z1371=\"\",\"\",'1. Ordersheet'!Z1371)","v":""},{"$f":"IF('1. Ordersheet'!AA1371=\"\",\"\",'1. Ordersheet'!AA1371)","v":""},null,{"$f":"IF('1. Ordersheet'!AS1371=\"\",\"\",'1. Ordersheet'!AS1371)","v":""},{"$f":"IF('1. Ordersheet'!AT1371=\"\",\"\",'1. Ordersheet'!AT1371)","v":""},null,null,null,null,null,null,null,{"$f":"IF('1. Ordersheet'!AX1371=\"\",\"\",'1. Ordersheet'!AX1371)","v":""},{"$f":"IF('1. Ordersheet'!AY1371=\"\",\"\",'1. Ordersheet'!AY1371)","v":""},{"$f":"IF('1. Ordersheet'!AZ1371=\"\",\"\",'1. Ordersheet'!AZ1371)","v":""},{"$f":"IF('1. Ordersheet'!BA1371=\"\",\"\",'1. Ordersheet'!BA1371)","v":""},{"$f":"IF('1. Ordersheet'!BC1371=\"\",\"\",'1. Ordersheet'!BC1371)","v":""},{"$f":"IF('1. Ordersheet'!BD1371=\"\",\"\",'1. Ordersheet'!BD1371)","v":""},{"$f":"IF('1. Ordersheet'!BE1371=\"\",\"\",'1. Ordersheet'!BE1371)","v":""},{"$f":"IF('1. Ordersheet'!BF1371=\"\",\"\",'1. Ordersheet'!BF1371)","v":""},{"$f":"IF('1. Ordersheet'!BG1371=\"\",\"\",'1. Ordersheet'!BG1371)","v":"ZWO"},{"$f":"IF('1. Ordersheet'!BH1371=\"\",\"\",'1. Ordersheet'!BH1371)","v":""},{"$f":"IF('1. Ordersheet'!BI1371=\"\",\"\",'1. Ordersheet'!BI1371)","v":""},{"$f":"IF('1. Ordersheet'!BJ1371=\"\",\"\",'1. Ordersheet'!BJ1371)","v":""},{"$f":"IF('1. Ordersheet'!BK1371=\"\",\"\",'1. Ordersheet'!BK1371)","v":""},{"$f":"IF('1. Ordersheet'!BL1371=\"\",\"\",'1. Ordersheet'!BL1371)","v":""}]
[{"$f":"IF('1. Ordersheet'!F1372=\"\",\"\",'1. Ordersheet'!F1372)","v":""},{"$f":"IF('1. Ordersheet'!G1372=\"\",\"\",'1. Ordersheet'!G1372)","v":""},{"$f":"IF('1. Ordersheet'!H1372=\"\",\"\",'1. Ordersheet'!H1372)","v":""},{"$f":"IF('1. Ordersheet'!I1372=\"\",\"\",'1. Ordersheet'!I1372)","v":""},{"$f":"IF('1. Ordersheet'!J1372=\"\",\"\",'1. Ordersheet'!J1372)","v":""},{"$f":"IF('1. Ordersheet'!K1372=\"\",\"\",'1. Ordersheet'!K1372)","v":""},{"$f":"IF('1. Ordersheet'!L1372=\"\",\"\",'1. Ordersheet'!L1372)","v":""},{"$f":"IF('1. Ordersheet'!M1372=\"\",\"\",'1. Ordersheet'!M1372)","v":""},{"$f":"IF('1. Ordersheet'!N1372=\"\",\"\",'1. Ordersheet'!N1372)","v":""},{"$f":"IF('1. Ordersheet'!O1372=\"\",\"\",'1. Ordersheet'!O1372)","v":{"$error":"#N/A"}},{"$f":"IF('1. Ordersheet'!P1372=\"\",\"\",'1. Ordersheet'!P1372)","v":{"$error":"#N/A"}},{"$f":"IF('1. Ordersheet'!Q1372=\"\",\"\",'1. Ordersheet'!Q1372)","v":""},{"$f":"IF('1. Ordersheet'!R1372=\"\",\"\",'1. Ordersheet'!R1372)","v":""},{"$f":"IF('1. Ordersheet'!S1372=\"\",\"\",'1. Ordersheet'!S1372)","v":""},{"$f":"IF('1. Ordersheet'!V1372=\"\",\"\",'1. Ordersheet'!V1372)","v":""},{"$f":"IF('1. Ordersheet'!W1372=\"\",\"\",'1. Ordersheet'!W1372)","v":""},{"$f":"IF('1. Ordersheet'!X1372=\"\",\"\",'1. Ordersheet'!X1372)","v":""},{"$f":"IF('1. Ordersheet'!Y1372=\"\",\"\",'1. Ordersheet'!Y1372)","v":""},{"$f":"IF('1. Ordersheet'!Z1372=\"\",\"\",'1. Ordersheet'!Z1372)","v":""},{"$f":"IF('1. Ordersheet'!AA1372=\"\",\"\",'1. Ordersheet'!AA1372)","v":""},null,{"$f":"IF('1. Ordersheet'!AS1372=\"\",\"\",'1. Ordersheet'!AS1372)","v":""},{"$f":"IF('1. Ordersheet'!AT1372=\"\",\"\",'1. Ordersheet'!AT1372)","v":""},null,null,null,null,null,null,null,{"$f":"IF('1. Ordersheet'!AX1372=\"\",\"\",'1. Ordersheet'!AX1372)","v":""},{"$f":"IF('1. Ordersheet'!AY1372=\"\",\"\",'1. Ordersheet'!AY1372)","v":""},{"$f":"IF('1. Ordersheet'!AZ1372=\"\",\"\",'1. Ordersheet'!AZ1372)","v":""},{"$f":"IF('1. Ordersheet'!BA1372=\"\",\"\",'1. Ordersheet'!BA1372)","v":""},{"$f":"IF('1. Ordersheet'!BC1372=\"\",\"\",'1. Ordersheet'!BC1372)","v":""},{"$f":"IF('1. Ordersheet'!BD1372=\"\",\"\",'1. Ordersheet'!BD1372)","v":""},{"$f":"IF('1. Ordersheet'!BE1372=\"\",\"\",'1. Ordersheet'!BE1372)","v":""},{"$f":"IF('1. Ordersheet'!BF1372=\"\",\"\",'1. Ordersheet'!BF1372)","v":""},{"$f":"IF('1. Ordersheet'!BG1372=\"\",\"\",'1. Ordersheet'!BG1372)","v":"ZWO"},{"$f":"IF('1. Ordersheet'!BH1372=\"\",\"\",'1. Ordersheet'!BH1372)","v":""},{"$f":"IF('1. Ordersheet'!BI1372=\"\",\"\",'1. Ordersheet'!BI1372)","v":""},{"$f":"IF('1. Ordersheet'!BJ1372=\"\",\"\",'1. Ordersheet'!BJ1372)","v":""},{"$f":"IF('1. Ordersheet'!BK1372=\"\",\"\",'1. Ordersheet'!BK1372)","v":""},{"$f":"IF('1. Ordersheet'!BL1372=\"\",\"\",'1. Ordersheet'!BL1372)","v":""}]
[{"$f":"IF('1. Ordersheet'!F1373=\"\",\"\",'1. Ordersheet'!F1373)","v":""},{"$f":"IF('1. Ordersheet'!G1373=\"\",\"\",'1. Ordersheet'!G1373)","v":""},{"$f":"IF('1. Ordersheet'!H1373=\"\",\"\",'1. Ordersheet'!H1373)","v":""},{"$f":"IF('1. Ordersheet'!I1373=\"\",\"\",'1. Ordersheet'!I1373)","v":""},{"$f":"IF('1. Ordersheet'!J1373=\"\",\"\",'1. Ordersheet'!J1373)","v":""},{"$f":"IF('1. Ordersheet'!K1373=\"\",\"\",'1. Ordersheet'!K1373)","v":""},{"$f":"IF('1. Ordersheet'!L1373=\"\",\"\",'1. Ordersheet'!L1373)","v":""},{"$f":"IF('1. Ordersheet'!M1373=\"\",\"\",'1. Ordersheet'!M1373)","v":""},{"$f":"IF('1. Ordersheet'!N1373=\"\",\"\",'1. Ordersheet'!N1373)","v":""},{"$f":"IF('1. Ordersheet'!O1373=\"\",\"\",'1. Ordersheet'!O1373)","v":{"$error":"#N/A"}},{"$f":"IF('1. Ordersheet'!P1373=\"\",\"\",'1. Ordersheet'!P1373)","v":{"$error":"#N/A"}},{"$f":"IF('1. Ordersheet'!Q1373=\"\",\"\",'1. Ordersheet'!Q1373)","v":""},{"$f":"IF('1. Ordersheet'!R1373=\"\",\"\",'1. Ordersheet'!R1373)","v":""},{"$f":"IF('1. Ordersheet'!S1373=\"\",\"\",'1. Ordersheet'!S1373)","v":""},{"$f":"IF('1. Ordersheet'!V1373=\"\",\"\",'1. Ordersheet'!V1373)","v":""},{"$f":"IF('1. Ordersheet'!W1373=\"\",\"\",'1. Ordersheet'!W1373)","v":""},{"$f":"IF('1. Ordersheet'!X1373=\"\",\"\",'1. Ordersheet'!X1373)","v":""},{"$f":"IF('1. Ordersheet'!Y1373=\"\",\"\",'1. Ordersheet'!Y1373)","v":""},{"$f":"IF('1. Ordersheet'!Z1373=\"\",\"\",'1. Ordersheet'!Z1373)","v":""},{"$f":"IF('1. Ordersheet'!AA1373=\"\",\"\",'1. Ordersheet'!AA1373)","v":""},null,{"$f":"IF('1. Ordersheet'!AS1373=\"\",\"\",'1. Ordersheet'!AS1373)","v":""},{"$f":"IF('1. Ordersheet'!AT1373=\"\",\"\",'1. Ordersheet'!AT1373)","v":""},null,null,null,null,null,null,null,{"$f":"IF('1. Ordersheet'!AX1373=\"\",\"\",'1. Ordersheet'!AX1373)","v":""},{"$f":"IF('1. Ordersheet'!AY1373=\"\",\"\",'1. Ordersheet'!AY1373)","v":""},{"$f":"IF('1. Ordersheet'!AZ1373=\"\",\"\",'1. Ordersheet'!AZ1373)","v":""},{"$f":"IF('1. Ordersheet'!BA1373=\"\",\"\",'1. Ordersheet'!BA1373)","v":""},{"$f":"IF('1. Ordersheet'!BC1373=\"\",\"\",'1. Ordersheet'!BC1373)","v":""},{"$f":"IF('1. Ordersheet'!BD1373=\"\",\"\",'1. Ordersheet'!BD1373)","v":""},{"$f":"IF('1. Ordersheet'!BE1373=\"\",\"\",'1. Ordersheet'!BE1373)","v":""},{"$f":"IF('1. Ordersheet'!BF1373=\"\",\"\",'1. Ordersheet'!BF1373)","v":""},{"$f":"IF('1. Ordersheet'!BG1373=\"\",\"\",'1. Ordersheet'!BG1373)","v":"ZWO"},{"$f":"IF('1. Ordersheet'!BH1373=\"\",\"\",'1. Ordersheet'!BH1373)","v":""},{"$f":"IF('1. Ordersheet'!BI1373=\"\",\"\",'1. Ordersheet'!BI1373)","v":""},{"$f":"IF('1. Ordersheet'!BJ1373=\"\",\"\",'1. Ordersheet'!BJ1373)","v":""},{"$f":"IF('1. Ordersheet'!BK1373=\"\",\"\",'1. Ordersheet'!BK1373)","v":""},{"$f":"IF('1. Ordersheet'!BL1373=\"\",\"\",'1. Ordersheet'!BL1373)","v":""}]
[{"$f":"IF('1. Ordersheet'!F1374=\"\",\"\",'1. Ordersheet'!F1374)","v":""},{"$f":"IF('1. Ordersheet'!G1374=\"\",\"\",'1. Ordersheet'!G1374)","v":""},{"$f":"IF('1. Ordersheet'!H1374=\"\",\"\",'1. Ordersheet'!H1374)","v":""},{"$f":"IF('1. Ordersheet'!I1374=\"\",\"\",'1. Ordersheet'!I1374)","v":""},{"$f":"IF('1. Ordersheet'!J1374=\"\",\"\",'1. Ordersheet'!J1374)","v":""},{"$f":"IF('1. Ordersheet'!K1374=\"\",\"\",'1. Ordersheet'!K1374)","v":""},{"$f":"IF('1. Ordersheet'!L1374=\"\",\"\",'1. Ordersheet'!L1374)","v":""},{"$f":"IF('1. Ordersheet'!M1374=\"\",\"\",'1. Ordersheet'!M1374)","v":""},{"$f":"IF('1. Ordersheet'!N1374=\"\",\"\",'1. Ordersheet'!N1374)","v":""},{"$f":"IF('1. Ordersheet'!O1374=\"\",\"\",'1. Ordersheet'!O1374)","v":{"$error":"#N/A"}},{"$f":"IF('1. Ordersheet'!P1374=\"\",\"\",'1. Ordersheet'!P1374)","v":{"$error":"#N/A"}},{"$f":"IF('1. Ordersheet'!Q1374=\"\",\"\",'1. Ordersheet'!Q1374)","v":""},{"$f":"IF('1. Ordersheet'!R1374=\"\",\"\",'1. Ordersheet'!R1374)","v":""},{"$f":"IF('1. Ordersheet'!S1374=\"\",\"\",'1. Ordersheet'!S1374)","v":""},{"$f":"IF('1. Ordersheet'!V1374=\"\",\"\",'1. Ordersheet'!V1374)","v":""},{"$f":"IF('1. Ordersheet'!W1374=\"\",\"\",'1. Ordersheet'!W1374)","v":""},{"$f":"IF('1. Ordersheet'!X1374=\"\",\"\",'1. Ordersheet'!X1374)","v":""},{"$f":"IF('1. Ordersheet'!Y1374=\"\",\"\",'1. Ordersheet'!Y1374)","v":""},{"$f":"IF('1. Ordersheet'!Z1374=\"\",\"\",'1. Ordersheet'!Z1374)","v":""},{"$f":"IF('1. Ordersheet'!AA1374=\"\",\"\",'1. Ordersheet'!AA1374)","v":""},null,{"$f":"IF('1. Ordersheet'!AS1374=\"\",\"\",'1. Ordersheet'!AS1374)","v":""},{"$f":"IF('1. Ordersheet'!AT1374=\"\",\"\",'1. Ordersheet'!AT1374)","v":""},null,null,null,null,null,null,null,{"$f":"IF('1. Ordersheet'!AX1374=\"\",\"\",'1. Ordersheet'!AX1374)","v":""},{"$f":"IF('1. Ordersheet'!AY1374=\"\",\"\",'1. Ordersheet'!AY1374)","v":""},{"$f":"IF('1. Ordersheet'!AZ1374=\"\",\"\",'1. Ordersheet'!AZ1374)","v":""},{"$f":"IF('1. Ordersheet'!BA1374=\"\",\"\",'1. Ordersheet'!BA1374)","v":""},{"$f":"IF('1. Ordersheet'!BC1374=\"\",\"\",'1. Ordersheet'!BC1374)","v":""},{"$f":"IF('1. Ordersheet'!BD1374=\"\",\"\",'1. Ordersheet'!BD1374)","v":""},{"$f":"IF('1. Ordersheet'!BE1374=\"\",\"\",'1. Ordersheet'!BE1374)","v":""},{"$f":"IF('1. Ordersheet'!BF1374=\"\",\"\",'1. Ordersheet'!BF1374)","v":""},{"$f":"IF('1. Ordersheet'!BG1374=\"\",\"\",'1. Ordersheet'!BG1374)","v":"ZWO"},{"$f":"IF('1. Ordersheet'!BH1374=\"\",\"\",'1. Ordersheet'!BH1374)","v":""},{"$f":"IF('1. Ordersheet'!BI1374=\"\",\"\",'1. Ordersheet'!BI1374)","v":""},{"$f":"IF('1. Ordersheet'!BJ1374=\"\",\"\",'1. Ordersheet'!BJ1374)","v":""},{"$f":"IF('1. Ordersheet'!BK1374=\"\",\"\",'1. Ordersheet'!BK1374)","v":""},{"$f":"IF('1. Ordersheet'!BL1374=\"\",\"\",'1. Ordersheet'!BL1374)","v":""}]
[{"$f":"IF('1. Ordersheet'!F1375=\"\",\"\",'1. Ordersheet'!F1375)","v":""},{"$f":"IF('1. Ordersheet'!G1375=\"\",\"\",'1. Ordersheet'!G1375)","v":""},{"$f":"IF('1. Ordersheet'!H1375=\"\",\"\",'1. Ordersheet'!H1375)","v":""},{"$f":"IF('1. Ordersheet'!I1375=\"\",\"\",'1. Ordersheet'!I1375)","v":""},{"$f":"IF('1. Ordersheet'!J1375=\"\",\"\",'1. Ordersheet'!J1375)","v":""},{"$f":"IF('1. Ordersheet'!K1375=\"\",\"\",'1. Ordersheet'!K1375)","v":""},{"$f":"IF('1. Ordersheet'!L1375=\"\",\"\",'1. Ordersheet'!L1375)","v":""},{"$f":"IF('1. Ordersheet'!M1375=\"\",\"\",'1. Ordersheet'!M1375)","v":""},{"$f":"IF('1. Ordersheet'!N1375=\"\",\"\",'1. Ordersheet'!N1375)","v":""},{"$f":"IF('1. Ordersheet'!O1375=\"\",\"\",'1. Ordersheet'!O1375)","v":{"$error":"#N/A"}},{"$f":"IF('1. Ordersheet'!P1375=\"\",\"\",'1. Ordersheet'!P1375)","v":{"$error":"#N/A"}},{"$f":"IF('1. Ordersheet'!Q1375=\"\",\"\",'1. Ordersheet'!Q1375)","v":""},{"$f":"IF('1. Ordersheet'!R1375=\"\",\"\",'1. Ordersheet'!R1375)","v":""},{"$f":"IF('1. Ordersheet'!S1375=\"\",\"\",'1. Ordersheet'!S1375)","v":""},{"$f":"IF('1. Ordersheet'!V1375=\"\",\"\",'1. Ordersheet'!V1375)","v":""},{"$f":"IF('1. Ordersheet'!W1375=\"\",\"\",'1. Ordersheet'!W1375)","v":""},{"$f":"IF('1. Ordersheet'!X1375=\"\",\"\",'1. Ordersheet'!X1375)","v":""},{"$f":"IF('1. Ordersheet'!Y1375=\"\",\"\",'1. Ordersheet'!Y1375)","v":""},{"$f":"IF('1. Ordersheet'!Z1375=\"\",\"\",'1. Ordersheet'!Z1375)","v":""},{"$f":"IF('1. Ordersheet'!AA1375=\"\",\"\",'1. Ordersheet'!AA1375)","v":""},null,{"$f":"IF('1. Ordersheet'!AS1375=\"\",\"\",'1. Ordersheet'!AS1375)","v":""},{"$f":"IF('1. Ordersheet'!AT1375=\"\",\"\",'1. Ordersheet'!AT1375)","v":""},null,null,null,null,null,null,null,{"$f":"IF('1. Ordersheet'!AX1375=\"\",\"\",'1. Ordersheet'!AX1375)","v":""},{"$f":"IF('1. Ordersheet'!AY1375=\"\",\"\",'1. Ordersheet'!AY1375)","v":""},{"$f":"IF('1. Ordersheet'!AZ1375=\"\",\"\",'1. Ordersheet'!AZ1375)","v":""},{"$f":"IF('1. Ordersheet'!BA1375=\"\",\"\",'1. Ordersheet'!BA1375)","v":""},{"$f":"IF('1. Ordersheet'!BC1375=\"\",\"\",'1. Ordersheet'!BC1375)","v":""},{"$f":"IF('1. Ordersheet'!BD1375=\"\",\"\",'1. Ordersheet'!BD1375)","v":""},{"$f":"IF('1. Ordersheet'!BE1375=\"\",\"\",'1. Ordersheet'!BE1375)","v":""},{"$f":"IF('1. Ordersheet'!BF1375=\"\",\"\",'1. Ordersheet'!BF1375)","v":""},{"$f":"IF('1. Ordersheet'!BG1375=\"\",\"\",'1. Ordersheet'!BG1375)","v":"ZWO"},{"$f":"IF('1. Ordersheet'!BH1375=\"\",\"\",'1. Ordersheet'!BH1375)","v":""},{"$f":"IF('1. Ordersheet'!BI1375=\"\",\"\",'1. Ordersheet'!BI1375)","v":""},{"$f":"IF('1. Ordersheet'!BJ1375=\"\",\"\",'1. Ordersheet'!BJ1375)","v":""},{"$f":"IF('1. Ordersheet'!BK1375=\"\",\"\",'1. Ordersheet'!BK1375)","v":""},{"$f":"IF('1. Ordersheet'!BL1375=\"\",\"\",'1. Ordersheet'!BL1375)","v":""}]
[{"$f":"IF('1. Ordersheet'!F1376=\"\",\"\",'1. Ordersheet'!F1376)","v":""},{"$f":"IF('1. Ordersheet'!G1376=\"\",\"\",'1. Ordersheet'!G1376)","v":""},{"$f":"IF('1. Ordersheet'!H1376=\"\",\"\",'1. Ordersheet'!H1376)","v":""},{"$f":"IF('1. Ordersheet'!I1376=\"\",\"\",'1. Ordersheet'!I1376)","v":""},{"$f":"IF('1. Ordersheet'!J1376=\"\",\"\",'1. Ordersheet'!J1376)","v":""},{"$f":"IF('1. Ordersheet'!K1376=\"\",\"\",'1. Ordersheet'!K1376)","v":""},{"$f":"IF('1. Ordersheet'!L1376=\"\",\"\",'1. Ordersheet'!L1376)","v":""},{"$f":"IF('1. Ordersheet'!M1376=\"\",\"\",'1. Ordersheet'!M1376)","v":""},{"$f":"IF('1. Ordersheet'!N1376=\"\",\"\",'1. Ordersheet'!N1376)","v":""},{"$f":"IF('1. Ordersheet'!O1376=\"\",\"\",'1. Ordersheet'!O1376)","v":{"$error":"#N/A"}},{"$f":"IF('1. Ordersheet'!P1376=\"\",\"\",'1. Ordersheet'!P1376)","v":{"$error":"#N/A"}},{"$f":"IF('1. Ordersheet'!Q1376=\"\",\"\",'1. Ordersheet'!Q1376)","v":""},{"$f":"IF('1. Ordersheet'!R1376=\"\",\"\",'1. Ordersheet'!R1376)","v":""},{"$f":"IF('1. Ordersheet'!S1376=\"\",\"\",'1. Ordersheet'!S1376)","v":""},{"$f":"IF('1. Ordersheet'!V1376=\"\",\"\",'1. Ordersheet'!V1376)","v":""},{"$f":"IF('1. Ordersheet'!W1376=\"\",\"\",'1. Ordersheet'!W1376)","v":""},{"$f":"IF('1. Ordersheet'!X1376=\"\",\"\",'1. Ordersheet'!X1376)","v":""},{"$f":"IF('1. Ordersheet'!Y1376=\"\",\"\",'1. Ordersheet'!Y1376)","v":""},{"$f":"IF('1. Ordersheet'!Z1376=\"\",\"\",'1. Ordersheet'!Z1376)","v":""},{"$f":"IF('1. Ordersheet'!AA1376=\"\",\"\",'1. Ordersheet'!AA1376)","v":""},null,{"$f":"IF('1. Ordersheet'!AS1376=\"\",\"\",'1. Ordersheet'!AS1376)","v":""},{"$f":"IF('1. Ordersheet'!AT1376=\"\",\"\",'1. Ordersheet'!AT1376)","v":""},null,null,null,null,null,null,null,{"$f":"IF('1. Ordersheet'!AX1376=\"\",\"\",'1. Ordersheet'!AX1376)","v":""},{"$f":"IF('1. Ordersheet'!AY1376=\"\",\"\",'1. Ordersheet'!AY1376)","v":""},{"$f":"IF('1. Ordersheet'!AZ1376=\"\",\"\",'1. Ordersheet'!AZ1376)","v":""},{"$f":"IF('1. Ordersheet'!BA1376=\"\",\"\",'1. Ordersheet'!BA1376)","v":""},{"$f":"IF('1. Ordersheet'!BC1376=\"\",\"\",'1. Ordersheet'!BC1376)","v":""},{"$f":"IF('1. Ordersheet'!BD1376=\"\",\"\",'1. Ordersheet'!BD1376)","v":""},{"$f":"IF('1. Ordersheet'!BE1376=\"\",\"\",'1. Ordersheet'!BE1376)","v":""},{"$f":"IF('1. Ordersheet'!BF1376=\"\",\"\",'1. Ordersheet'!BF1376)","v":""},{"$f":"IF('1. Ordersheet'!BG1376=\"\",\"\",'1. Ordersheet'!BG1376)","v":"ZWO"},{"$f":"IF('1. Ordersheet'!BH1376=\"\",\"\",'1. Ordersheet'!BH1376)","v":""},{"$f":"IF('1. Ordersheet'!BI1376=\"\",\"\",'1. Ordersheet'!BI1376)","v":""},{"$f":"IF('1. Ordersheet'!BJ1376=\"\",\"\",'1. Ordersheet'!BJ1376)","v":""},{"$f":"IF('1. Ordersheet'!BK1376=\"\",\"\",'1. Ordersheet'!BK1376)","v":""},{"$f":"IF('1. Ordersheet'!BL1376=\"\",\"\",'1. Ordersheet'!BL1376)","v":""}]
[{"$f":"IF('1. Ordersheet'!F1377=\"\",\"\",'1. Ordersheet'!F1377)","v":""},{"$f":"IF('1. Ordersheet'!G1377=\"\",\"\",'1. Ordersheet'!G1377)","v":""},{"$f":"IF('1. Ordersheet'!H1377=\"\",\"\",'1. Ordersheet'!H1377)","v":""},{"$f":"IF('1. Ordersheet'!I1377=\"\",\"\",'1. Ordersheet'!I1377)","v":""},{"$f":"IF('1. Ordersheet'!J1377=\"\",\"\",'1. Ordersheet'!J1377)","v":""},{"$f":"IF('1. Ordersheet'!K1377=\"\",\"\",'1. Ordersheet'!K1377)","v":""},{"$f":"IF('1. Ordersheet'!L1377=\"\",\"\",'1. Ordersheet'!L1377)","v":""},{"$f":"IF('1. Ordersheet'!M1377=\"\",\"\",'1. Ordersheet'!M1377)","v":""},{"$f":"IF('1. Ordersheet'!N1377=\"\",\"\",'1. Ordersheet'!N1377)","v":""},{"$f":"IF('1. Ordersheet'!O1377=\"\",\"\",'1. Ordersheet'!O1377)","v":{"$error":"#N/A"}},{"$f":"IF('1. Ordersheet'!P1377=\"\",\"\",'1. Ordersheet'!P1377)","v":{"$error":"#N/A"}},{"$f":"IF('1. Ordersheet'!Q1377=\"\",\"\",'1. Ordersheet'!Q1377)","v":""},{"$f":"IF('1. Ordersheet'!R1377=\"\",\"\",'1. Ordersheet'!R1377)","v":""},{"$f":"IF('1. Ordersheet'!S1377=\"\",\"\",'1. Ordersheet'!S1377)","v":""},{"$f":"IF('1. Ordersheet'!V1377=\"\",\"\",'1. Ordersheet'!V1377)","v":""},{"$f":"IF('1. Ordersheet'!W1377=\"\",\"\",'1. Ordersheet'!W1377)","v":""},{"$f":"IF('1. Ordersheet'!X1377=\"\",\"\",'1. Ordersheet'!X1377)","v":""},{"$f":"IF('1. Ordersheet'!Y1377=\"\",\"\",'1. Ordersheet'!Y1377)","v":""},{"$f":"IF('1. Ordersheet'!Z1377=\"\",\"\",'1. Ordersheet'!Z1377)","v":""},{"$f":"IF('1. Ordersheet'!AA1377=\"\",\"\",'1. Ordersheet'!AA1377)","v":""},null,{"$f":"IF('1. Ordersheet'!AS1377=\"\",\"\",'1. Ordersheet'!AS1377)","v":""},{"$f":"IF('1. Ordersheet'!AT1377=\"\",\"\",'1. Ordersheet'!AT1377)","v":""},null,null,null,null,null,null,null,{"$f":"IF('1. Ordersheet'!AX1377=\"\",\"\",'1. Ordersheet'!AX1377)","v":""},{"$f":"IF('1. Ordersheet'!AY1377=\"\",\"\",'1. Ordersheet'!AY1377)","v":""},{"$f":"IF('1. Ordersheet'!AZ1377=\"\",\"\",'1. Ordersheet'!AZ1377)","v":""},{"$f":"IF('1. Ordersheet'!BA1377=\"\",\"\",'1. Ordersheet'!BA1377)","v":""},{"$f":"IF('1. Ordersheet'!BC1377=\"\",\"\",'1. Ordersheet'!BC1377)","v":""},{"$f":"IF('1. Ordersheet'!BD1377=\"\",\"\",'1. Ordersheet'!BD1377)","v":""},{"$f":"IF('1. Ordersheet'!BE1377=\"\",\"\",'1. Ordersheet'!BE1377)","v":""},{"$f":"IF('1. Ordersheet'!BF1377=\"\",\"\",'1. Ordersheet'!BF1377)","v":""},{"$f":"IF('1. Ordersheet'!BG1377=\"\",\"\",'1. Ordersheet'!BG1377)","v":"ZWO"},{"$f":"IF('1. Ordersheet'!BH1377=\"\",\"\",'1. Ordersheet'!BH1377)","v":""},{"$f":"IF('1. Ordersheet'!BI1377=\"\",\"\",'1. Ordersheet'!BI1377)","v":""},{"$f":"IF('1. Ordersheet'!BJ1377=\"\",\"\",'1. Ordersheet'!BJ1377)","v":""},{"$f":"IF('1. Ordersheet'!BK1377=\"\",\"\",'1. Ordersheet'!BK1377)","v":""},{"$f":"IF('1. Ordersheet'!BL1377=\"\",\"\",'1. Ordersheet'!BL1377)","v":""}]
[{"$f":"IF('1. Ordersheet'!F1378=\"\",\"\",'1. Ordersheet'!F1378)","v":""},{"$f":"IF('1. Ordersheet'!G1378=\"\",\"\",'1. Ordersheet'!G1378)","v":""},{"$f":"IF('1. Ordersheet'!H1378=\"\",\"\",'1. Ordersheet'!H1378)","v":""},{"$f":"IF('1. Ordersheet'!I1378=\"\",\"\",'1. Ordersheet'!I1378)","v":""},{"$f":"IF('1. Ordersheet'!J1378=\"\",\"\",'1. Ordersheet'!J1378)","v":""},{"$f":"IF('1. Ordersheet'!K1378=\"\",\"\",'1. Ordersheet'!K1378)","v":""},{"$f":"IF('1. Ordersheet'!L1378=\"\",\"\",'1. Ordersheet'!L1378)","v":""},{"$f":"IF('1. Ordersheet'!M1378=\"\",\"\",'1. Ordersheet'!M1378)","v":""},{"$f":"IF('1. Ordersheet'!N1378=\"\",\"\",'1. Ordersheet'!N1378)","v":""},{"$f":"IF('1. Ordersheet'!O1378=\"\",\"\",'1. Ordersheet'!O1378)","v":{"$error":"#N/A"}},{"$f":"IF('1. Ordersheet'!P1378=\"\",\"\",'1. Ordersheet'!P1378)","v":{"$error":"#N/A"}},{"$f":"IF('1. Ordersheet'!Q1378=\"\",\"\",'1. Ordersheet'!Q1378)","v":""},{"$f":"IF('1. Ordersheet'!R1378=\"\",\"\",'1. Ordersheet'!R1378)","v":""},{"$f":"IF('1. Ordersheet'!S1378=\"\",\"\",'1. Ordersheet'!S1378)","v":""},{"$f":"IF('1. Ordersheet'!V1378=\"\",\"\",'1. Ordersheet'!V1378)","v":""},{"$f":"IF('1. Ordersheet'!W1378=\"\",\"\",'1. Ordersheet'!W1378)","v":""},{"$f":"IF('1. Ordersheet'!X1378=\"\",\"\",'1. Ordersheet'!X1378)","v":""},{"$f":"IF('1. Ordersheet'!Y1378=\"\",\"\",'1. Ordersheet'!Y1378)","v":""},{"$f":"IF('1. Ordersheet'!Z1378=\"\",\"\",'1. Ordersheet'!Z1378)","v":""},{"$f":"IF('1. Ordersheet'!AA1378=\"\",\"\",'1. Ordersheet'!AA1378)","v":""},null,{"$f":"IF('1. Ordersheet'!AS1378=\"\",\"\",'1. Ordersheet'!AS1378)","v":""},{"$f":"IF('1. Ordersheet'!AT1378=\"\",\"\",'1. Ordersheet'!AT1378)","v":""},null,null,null,null,null,null,null,{"$f":"IF('1. Ordersheet'!AX1378=\"\",\"\",'1. Ordersheet'!AX1378)","v":""},{"$f":"IF('1. Ordersheet'!AY1378=\"\",\"\",'1. Ordersheet'!AY1378)","v":""},{"$f":"IF('1. Ordersheet'!AZ1378=\"\",\"\",'1. Ordersheet'!AZ1378)","v":""},{"$f":"IF('1. Ordersheet'!BA1378=\"\",\"\",'1. Ordersheet'!BA1378)","v":""},{"$f":"IF('1. Ordersheet'!BC1378=\"\",\"\",'1. Ordersheet'!BC1378)","v":""},{"$f":"IF('1. Ordersheet'!BD1378=\"\",\"\",'1. Ordersheet'!BD1378)","v":""},{"$f":"IF('1. Ordersheet'!BE1378=\"\",\"\",'1. Ordersheet'!BE1378)","v":""},{"$f":"IF('1. Ordersheet'!BF1378=\"\",\"\",'1. Ordersheet'!BF1378)","v":""},{"$f":"IF('1. Ordersheet'!BG1378=\"\",\"\",'1. Ordersheet'!BG1378)","v":"ZWO"},{"$f":"IF('1. Ordersheet'!BH1378=\"\",\"\",'1. Ordersheet'!BH1378)","v":""},{"$f":"IF('1. Ordersheet'!BI1378=\"\",\"\",'1. Ordersheet'!BI1378)","v":""},{"$f":"IF('1. Ordersheet'!BJ1378=\"\",\"\",'1. Ordersheet'!BJ1378)","v":""},{"$f":"IF('1. Ordersheet'!BK1378=\"\",\"\",'1. Ordersheet'!BK1378)","v":""},{"$f":"IF('1. Ordersheet'!BL1378=\"\",\"\",'1. Ordersheet'!BL1378)","v":""}]
[{"$f":"IF('1. Ordersheet'!F1379=\"\",\"\",'1. Ordersheet'!F1379)","v":""},{"$f":"IF('1. Ordersheet'!G1379=\"\",\"\",'1. Ordersheet'!G1379)","v":""},{"$f":"IF('1. Ordersheet'!H1379=\"\",\"\",'1. Ordersheet'!H1379)","v":""},{"$f":"IF('1. Ordersheet'!I1379=\"\",\"\",'1. Ordersheet'!I1379)","v":""},{"$f":"IF('1. Ordersheet'!J1379=\"\",\"\",'1. Ordersheet'!J1379)","v":""},{"$f":"IF('1. Ordersheet'!K1379=\"\",\"\",'1. Ordersheet'!K1379)","v":""},{"$f":"IF('1. Ordersheet'!L1379=\"\",\"\",'1. Ordersheet'!L1379)","v":""},{"$f":"IF('1. Ordersheet'!M1379=\"\",\"\",'1. Ordersheet'!M1379)","v":""},{"$f":"IF('1. Ordersheet'!N1379=\"\",\"\",'1. Ordersheet'!N1379)","v":""},{"$f":"IF('1. Ordersheet'!O1379=\"\",\"\",'1. Ordersheet'!O1379)","v":{"$error":"#N/A"}},{"$f":"IF('1. Ordersheet'!P1379=\"\",\"\",'1. Ordersheet'!P1379)","v":{"$error":"#N/A"}},{"$f":"IF('1. Ordersheet'!Q1379=\"\",\"\",'1. Ordersheet'!Q1379)","v":""},{"$f":"IF('1. Ordersheet'!R1379=\"\",\"\",'1. Ordersheet'!R1379)","v":""},{"$f":"IF('1. Ordersheet'!S1379=\"\",\"\",'1. Ordersheet'!S1379)","v":""},{"$f":"IF('1. Ordersheet'!V1379=\"\",\"\",'1. Ordersheet'!V1379)","v":""},{"$f":"IF('1. Ordersheet'!W1379=\"\",\"\",'1. Ordersheet'!W1379)","v":""},{"$f":"IF('1. Ordersheet'!X1379=\"\",\"\",'1. Ordersheet'!X1379)","v":""},{"$f":"IF('1. Ordersheet'!Y1379=\"\",\"\",'1. Ordersheet'!Y1379)","v":""},{"$f":"IF('1. Ordersheet'!Z1379=\"\",\"\",'1. Ordersheet'!Z1379)","v":""},{"$f":"IF('1. Ordersheet'!AA1379=\"\",\"\",'1. Ordersheet'!AA1379)","v":""},null,{"$f":"IF('1. Ordersheet'!AS1379=\"\",\"\",'1. Ordersheet'!AS1379)","v":""},{"$f":"IF('1. Ordersheet'!AT1379=\"\",\"\",'1. Ordersheet'!AT1379)","v":""},null,null,null,null,null,null,null,{"$f":"IF('1. Ordersheet'!AX1379=\"\",\"\",'1. Ordersheet'!AX1379)","v":""},{"$f":"IF('1. Ordersheet'!AY1379=\"\",\"\",'1. Ordersheet'!AY1379)","v":""},{"$f":"IF('1. Ordersheet'!AZ1379=\"\",\"\",'1. Ordersheet'!AZ1379)","v":""},{"$f":"IF('1. Ordersheet'!BA1379=\"\",\"\",'1. Ordersheet'!BA1379)","v":""},{"$f":"IF('1. Ordersheet'!BC1379=\"\",\"\",'1. Ordersheet'!BC1379)","v":""},{"$f":"IF('1. Ordersheet'!BD1379=\"\",\"\",'1. Ordersheet'!BD1379)","v":""},{"$f":"IF('1. Ordersheet'!BE1379=\"\",\"\",'1. Ordersheet'!BE1379)","v":""},{"$f":"IF('1. Ordersheet'!BF1379=\"\",\"\",'1. Ordersheet'!BF1379)","v":""},{"$f":"IF('1. Ordersheet'!BG1379=\"\",\"\",'1. Ordersheet'!BG1379)","v":"ZWO"},{"$f":"IF('1. Ordersheet'!BH1379=\"\",\"\",'1. Ordersheet'!BH1379)","v":""},{"$f":"IF('1. Ordersheet'!BI1379=\"\",\"\",'1. Ordersheet'!BI1379)","v":""},{"$f":"IF('1. Ordersheet'!BJ1379=\"\",\"\",'1. Ordersheet'!BJ1379)","v":""},{"$f":"IF('1. Ordersheet'!BK1379=\"\",\"\",'1. Ordersheet'!BK1379)","v":""},{"$f":"IF('1. Ordersheet'!BL1379=\"\",\"\",'1. Ordersheet'!BL1379)","v":""}]
[{"$f":"IF('1. Ordersheet'!F1380=\"\",\"\",'1. Ordersheet'!F1380)","v":""},{"$f":"IF('1. Ordersheet'!G1380=\"\",\"\",'1. Ordersheet'!G1380)","v":""},{"$f":"IF('1. Ordersheet'!H1380=\"\",\"\",'1. Ordersheet'!H1380)","v":""},{"$f":"IF('1. Ordersheet'!I1380=\"\",\"\",'1. Ordersheet'!I1380)","v":""},{"$f":"IF('1. Ordersheet'!J1380=\"\",\"\",'1. Ordersheet'!J1380)","v":""},{"$f":"IF('1. Ordersheet'!K1380=\"\",\"\",'1. Ordersheet'!K1380)","v":""},{"$f":"IF('1. Ordersheet'!L1380=\"\",\"\",'1. Ordersheet'!L1380)","v":""},{"$f":"IF('1. Ordersheet'!M1380=\"\",\"\",'1. Ordersheet'!M1380)","v":""},{"$f":"IF('1. Ordersheet'!N1380=\"\",\"\",'1. Ordersheet'!N1380)","v":""},{"$f":"IF('1. Ordersheet'!O1380=\"\",\"\",'1. Ordersheet'!O1380)","v":{"$error":"#N/A"}},{"$f":"IF('1. Ordersheet'!P1380=\"\",\"\",'1. Ordersheet'!P1380)","v":{"$error":"#N/A"}},{"$f":"IF('1. Ordersheet'!Q1380=\"\",\"\",'1. Ordersheet'!Q1380)","v":""},{"$f":"IF('1. Ordersheet'!R1380=\"\",\"\",'1. Ordersheet'!R1380)","v":""},{"$f":"IF('1. Ordersheet'!S1380=\"\",\"\",'1. Ordersheet'!S1380)","v":""},{"$f":"IF('1. Ordersheet'!V1380=\"\",\"\",'1. Ordersheet'!V1380)","v":""},{"$f":"IF('1. Ordersheet'!W1380=\"\",\"\",'1. Ordersheet'!W1380)","v":""},{"$f":"IF('1. Ordersheet'!X1380=\"\",\"\",'1. Ordersheet'!X1380)","v":""},{"$f":"IF('1. Ordersheet'!Y1380=\"\",\"\",'1. Ordersheet'!Y1380)","v":""},{"$f":"IF('1. Ordersheet'!Z1380=\"\",\"\",'1. Ordersheet'!Z1380)","v":""},{"$f":"IF('1. Ordersheet'!AA1380=\"\",\"\",'1. Ordersheet'!AA1380)","v":""},null,{"$f":"IF('1. Ordersheet'!AS1380=\"\",\"\",'1. Ordersheet'!AS1380)","v":""},{"$f":"IF('1. Ordersheet'!AT1380=\"\",\"\",'1. Ordersheet'!AT1380)","v":""},null,null,null,null,null,null,null,{"$f":"IF('1. Ordersheet'!AX1380=\"\",\"\",'1. Ordersheet'!AX1380)","v":""},{"$f":"IF('1. Ordersheet'!AY1380=\"\",\"\",'1. Ordersheet'!AY1380)","v":""},{"$f":"IF('1. Ordersheet'!AZ1380=\"\",\"\",'1. Ordersheet'!AZ1380)","v":""},{"$f":"IF('1. Ordersheet'!BA1380=\"\",\"\",'1. Ordersheet'!BA1380)","v":""},{"$f":"IF('1. Ordersheet'!BC1380=\"\",\"\",'1. Ordersheet'!BC1380)","v":""},{"$f":"IF('1. Ordersheet'!BD1380=\"\",\"\",'1. Ordersheet'!BD1380)","v":""},{"$f":"IF('1. Ordersheet'!BE1380=\"\",\"\",'1. Ordersheet'!BE1380)","v":""},{"$f":"IF('1. Ordersheet'!BF1380=\"\",\"\",'1. Ordersheet'!BF1380)","v":""},{"$f":"IF('1. Ordersheet'!BG1380=\"\",\"\",'1. Ordersheet'!BG1380)","v":"ZWO"},{"$f":"IF('1. Ordersheet'!BH1380=\"\",\"\",'1. Ordersheet'!BH1380)","v":""},{"$f":"IF('1. Ordersheet'!BI1380=\"\",\"\",'1. Ordersheet'!BI1380)","v":""},{"$f":"IF('1. Ordersheet'!BJ1380=\"\",\"\",'1. Ordersheet'!BJ1380)","v":""},{"$f":"IF('1. Ordersheet'!BK1380=\"\",\"\",'1. Ordersheet'!BK1380)","v":""},{"$f":"IF('1. Ordersheet'!BL1380=\"\",\"\",'1. Ordersheet'!BL1380)","v":""}]
[{"$f":"IF('1. Ordersheet'!F1381=\"\",\"\",'1. Ordersheet'!F1381)","v":""},{"$f":"IF('1. Ordersheet'!G1381=\"\",\"\",'1. Ordersheet'!G1381)","v":""},{"$f":"IF('1. Ordersheet'!H1381=\"\",\"\",'1. Ordersheet'!H1381)","v":""},{"$f":"IF('1. Ordersheet'!I1381=\"\",\"\",'1. Ordersheet'!I1381)","v":""},{"$f":"IF('1. Ordersheet'!J1381=\"\",\"\",'1. Ordersheet'!J1381)","v":""},{"$f":"IF('1. Ordersheet'!K1381=\"\",\"\",'1. Ordersheet'!K1381)","v":""},{"$f":"IF('1. Ordersheet'!L1381=\"\",\"\",'1. Ordersheet'!L1381)","v":""},{"$f":"IF('1. Ordersheet'!M1381=\"\",\"\",'1. Ordersheet'!M1381)","v":""},{"$f":"IF('1. Ordersheet'!N1381=\"\",\"\",'1. Ordersheet'!N1381)","v":""},{"$f":"IF('1. Ordersheet'!O1381=\"\",\"\",'1. Ordersheet'!O1381)","v":{"$error":"#N/A"}},{"$f":"IF('1. Ordersheet'!P1381=\"\",\"\",'1. Ordersheet'!P1381)","v":{"$error":"#N/A"}},{"$f":"IF('1. Ordersheet'!Q1381=\"\",\"\",'1. Ordersheet'!Q1381)","v":""},{"$f":"IF('1. Ordersheet'!R1381=\"\",\"\",'1. Ordersheet'!R1381)","v":""},{"$f":"IF('1. Ordersheet'!S1381=\"\",\"\",'1. Ordersheet'!S1381)","v":""},{"$f":"IF('1. Ordersheet'!V1381=\"\",\"\",'1. Ordersheet'!V1381)","v":""},{"$f":"IF('1. Ordersheet'!W1381=\"\",\"\",'1. Ordersheet'!W1381)","v":""},{"$f":"IF('1. Ordersheet'!X1381=\"\",\"\",'1. Ordersheet'!X1381)","v":""},{"$f":"IF('1. Ordersheet'!Y1381=\"\",\"\",'1. Ordersheet'!Y1381)","v":""},{"$f":"IF('1. Ordersheet'!Z1381=\"\",\"\",'1. Ordersheet'!Z1381)","v":""},{"$f":"IF('1. Ordersheet'!AA1381=\"\",\"\",'1. Ordersheet'!AA1381)","v":""},null,{"$f":"IF('1. Ordersheet'!AS1381=\"\",\"\",'1. Ordersheet'!AS1381)","v":""},{"$f":"IF('1. Ordersheet'!AT1381=\"\",\"\",'1. Ordersheet'!AT1381)","v":""},null,null,null,null,null,null,null,{"$f":"IF('1. Ordersheet'!AX1381=\"\",\"\",'1. Ordersheet'!AX1381)","v":""},{"$f":"IF('1. Ordersheet'!AY1381=\"\",\"\",'1. Ordersheet'!AY1381)","v":""},{"$f":"IF('1. Ordersheet'!AZ1381=\"\",\"\",'1. Ordersheet'!AZ1381)","v":""},{"$f":"IF('1. Ordersheet'!BA1381=\"\",\"\",'1. Ordersheet'!BA1381)","v":""},{"$f":"IF('1. Ordersheet'!BC1381=\"\",\"\",'1. Ordersheet'!BC1381)","v":""},{"$f":"IF('1. Ordersheet'!BD1381=\"\",\"\",'1. Ordersheet'!BD1381)","v":""},{"$f":"IF('1. Ordersheet'!BE1381=\"\",\"\",'1. Ordersheet'!BE1381)","v":""},{"$f":"IF('1. Ordersheet'!BF1381=\"\",\"\",'1. Ordersheet'!BF1381)","v":""},{"$f":"IF('1. Ordersheet'!BG1381=\"\",\"\",'1. Ordersheet'!BG1381)","v":"ZWO"},{"$f":"IF('1. Ordersheet'!BH1381=\"\",\"\",'1. Ordersheet'!BH1381)","v":""},{"$f":"IF('1. Ordersheet'!BI1381=\"\",\"\",'1. Ordersheet'!BI1381)","v":""},{"$f":"IF('1. Ordersheet'!BJ1381=\"\",\"\",'1. Ordersheet'!BJ1381)","v":""},{"$f":"IF('1. Ordersheet'!BK1381=\"\",\"\",'1. Ordersheet'!BK1381)","v":""},{"$f":"IF('1. Ordersheet'!BL1381=\"\",\"\",'1. Ordersheet'!BL1381)","v":""}]
[{"$f":"IF('1. Ordersheet'!F1382=\"\",\"\",'1. Ordersheet'!F1382)","v":""},{"$f":"IF('1. Ordersheet'!G1382=\"\",\"\",'1. Ordersheet'!G1382)","v":""},{"$f":"IF('1. Ordersheet'!H1382=\"\",\"\",'1. Ordersheet'!H1382)","v":""},{"$f":"IF('1. Ordersheet'!I1382=\"\",\"\",'1. Ordersheet'!I1382)","v":""},{"$f":"IF('1. Ordersheet'!J1382=\"\",\"\",'1. Ordersheet'!J1382)","v":""},{"$f":"IF('1. Ordersheet'!K1382=\"\",\"\",'1. Ordersheet'!K1382)","v":""},{"$f":"IF('1. Ordersheet'!L1382=\"\",\"\",'1. Ordersheet'!L1382)","v":""},{"$f":"IF('1. Ordersheet'!M1382=\"\",\"\",'1. Ordersheet'!M1382)","v":""},{"$f":"IF('1. Ordersheet'!N1382=\"\",\"\",'1. Ordersheet'!N1382)","v":""},{"$f":"IF('1. Ordersheet'!O1382=\"\",\"\",'1. Ordersheet'!O1382)","v":{"$error":"#N/A"}},{"$f":"IF('1. Ordersheet'!P1382=\"\",\"\",'1. Ordersheet'!P1382)","v":{"$error":"#N/A"}},{"$f":"IF('1. Ordersheet'!Q1382=\"\",\"\",'1. Ordersheet'!Q1382)","v":""},{"$f":"IF('1. Ordersheet'!R1382=\"\",\"\",'1. Ordersheet'!R1382)","v":""},{"$f":"IF('1. Ordersheet'!S1382=\"\",\"\",'1. Ordersheet'!S1382)","v":""},{"$f":"IF('1. Ordersheet'!V1382=\"\",\"\",'1. Ordersheet'!V1382)","v":""},{"$f":"IF('1. Ordersheet'!W1382=\"\",\"\",'1. Ordersheet'!W1382)","v":""},{"$f":"IF('1. Ordersheet'!X1382=\"\",\"\",'1. Ordersheet'!X1382)","v":""},{"$f":"IF('1. Ordersheet'!Y1382=\"\",\"\",'1. Ordersheet'!Y1382)","v":""},{"$f":"IF('1. Ordersheet'!Z1382=\"\",\"\",'1. Ordersheet'!Z1382)","v":""},{"$f":"IF('1. Ordersheet'!AA1382=\"\",\"\",'1. Ordersheet'!AA1382)","v":""},null,{"$f":"IF('1. Ordersheet'!AS1382=\"\",\"\",'1. Ordersheet'!AS1382)","v":""},{"$f":"IF('1. Ordersheet'!AT1382=\"\",\"\",'1. Ordersheet'!AT1382)","v":""},null,null,null,null,null,null,null,{"$f":"IF('1. Ordersheet'!AX1382=\"\",\"\",'1. Ordersheet'!AX1382)","v":""},{"$f":"IF('1. Ordersheet'!AY1382=\"\",\"\",'1. Ordersheet'!AY1382)","v":""},{"$f":"IF('1. Ordersheet'!AZ1382=\"\",\"\",'1. Ordersheet'!AZ1382)","v":""},{"$f":"IF('1. Ordersheet'!BA1382=\"\",\"\",'1. Ordersheet'!BA1382)","v":""},{"$f":"IF('1. Ordersheet'!BC1382=\"\",\"\",'1. Ordersheet'!BC1382)","v":""},{"$f":"IF('1. Ordersheet'!BD1382=\"\",\"\",'1. Ordersheet'!BD1382)","v":""},{"$f":"IF('1. Ordersheet'!BE1382=\"\",\"\",'1. Ordersheet'!BE1382)","v":""},{"$f":"IF('1. Ordersheet'!BF1382=\"\",\"\",'1. Ordersheet'!BF1382)","v":""},{"$f":"IF('1. Ordersheet'!BG1382=\"\",\"\",'1. Ordersheet'!BG1382)","v":"ZWO"},{"$f":"IF('1. Ordersheet'!BH1382=\"\",\"\",'1. Ordersheet'!BH1382)","v":""},{"$f":"IF('1. Ordersheet'!BI1382=\"\",\"\",'1. Ordersheet'!BI1382)","v":""},{"$f":"IF('1. Ordersheet'!BJ1382=\"\",\"\",'1. Ordersheet'!BJ1382)","v":""},{"$f":"IF('1. Ordersheet'!BK1382=\"\",\"\",'1. Ordersheet'!BK1382)","v":""},{"$f":"IF('1. Ordersheet'!BL1382=\"\",\"\",'1. Ordersheet'!BL1382)","v":""}]
[{"$f":"IF('1. Ordersheet'!F1383=\"\",\"\",'1. Ordersheet'!F1383)","v":""},{"$f":"IF('1. Ordersheet'!G1383=\"\",\"\",'1. Ordersheet'!G1383)","v":""},{"$f":"IF('1. Ordersheet'!H1383=\"\",\"\",'1. Ordersheet'!H1383)","v":""},{"$f":"IF('1. Ordersheet'!I1383=\"\",\"\",'1. Ordersheet'!I1383)","v":""},{"$f":"IF('1. Ordersheet'!J1383=\"\",\"\",'1. Ordersheet'!J1383)","v":""},{"$f":"IF('1. Ordersheet'!K1383=\"\",\"\",'1. Ordersheet'!K1383)","v":""},{"$f":"IF('1. Ordersheet'!L1383=\"\",\"\",'1. Ordersheet'!L1383)","v":""},{"$f":"IF('1. Ordersheet'!M1383=\"\",\"\",'1. Ordersheet'!M1383)","v":""},{"$f":"IF('1. Ordersheet'!N1383=\"\",\"\",'1. Ordersheet'!N1383)","v":""},{"$f":"IF('1. Ordersheet'!O1383=\"\",\"\",'1. Ordersheet'!O1383)","v":{"$error":"#N/A"}},{"$f":"IF('1. Ordersheet'!P1383=\"\",\"\",'1. Ordersheet'!P1383)","v":{"$error":"#N/A"}},{"$f":"IF('1. Ordersheet'!Q1383=\"\",\"\",'1. Ordersheet'!Q1383)","v":""},{"$f":"IF('1. Ordersheet'!R1383=\"\",\"\",'1. Ordersheet'!R1383)","v":""},{"$f":"IF('1. Ordersheet'!S1383=\"\",\"\",'1. Ordersheet'!S1383)","v":""},{"$f":"IF('1. Ordersheet'!V1383=\"\",\"\",'1. Ordersheet'!V1383)","v":""},{"$f":"IF('1. Ordersheet'!W1383=\"\",\"\",'1. Ordersheet'!W1383)","v":""},{"$f":"IF('1. Ordersheet'!X1383=\"\",\"\",'1. Ordersheet'!X1383)","v":""},{"$f":"IF('1. Ordersheet'!Y1383=\"\",\"\",'1. Ordersheet'!Y1383)","v":""},{"$f":"IF('1. Ordersheet'!Z1383=\"\",\"\",'1. Ordersheet'!Z1383)","v":""},{"$f":"IF('1. Ordersheet'!AA1383=\"\",\"\",'1. Ordersheet'!AA1383)","v":""},null,{"$f":"IF('1. Ordersheet'!AS1383=\"\",\"\",'1. Ordersheet'!AS1383)","v":""},{"$f":"IF('1. Ordersheet'!AT1383=\"\",\"\",'1. Ordersheet'!AT1383)","v":""},null,null,null,null,null,null,null,{"$f":"IF('1. Ordersheet'!AX1383=\"\",\"\",'1. Ordersheet'!AX1383)","v":""},{"$f":"IF('1. Ordersheet'!AY1383=\"\",\"\",'1. Ordersheet'!AY1383)","v":""},{"$f":"IF('1. Ordersheet'!AZ1383=\"\",\"\",'1. Ordersheet'!AZ1383)","v":""},{"$f":"IF('1. Ordersheet'!BA1383=\"\",\"\",'1. Ordersheet'!BA1383)","v":""},{"$f":"IF('1. Ordersheet'!BC1383=\"\",\"\",'1. Ordersheet'!BC1383)","v":""},{"$f":"IF('1. Ordersheet'!BD1383=\"\",\"\",'1. Ordersheet'!BD1383)","v":""},{"$f":"IF('1. Ordersheet'!BE1383=\"\",\"\",'1. Ordersheet'!BE1383)","v":""},{"$f":"IF('1. Ordersheet'!BF1383=\"\",\"\",'1. Ordersheet'!BF1383)","v":""},{"$f":"IF('1. Ordersheet'!BG1383=\"\",\"\",'1. Ordersheet'!BG1383)","v":"ZWO"},{"$f":"IF('1. Ordersheet'!BH1383=\"\",\"\",'1. Ordersheet'!BH1383)","v":""},{"$f":"IF('1. Ordersheet'!BI1383=\"\",\"\",'1. Ordersheet'!BI1383)","v":""},{"$f":"IF('1. Ordersheet'!BJ1383=\"\",\"\",'1. Ordersheet'!BJ1383)","v":""},{"$f":"IF('1. Ordersheet'!BK1383=\"\",\"\",'1. Ordersheet'!BK1383)","v":""},{"$f":"IF('1. Ordersheet'!BL1383=\"\",\"\",'1. Ordersheet'!BL1383)","v":""}]
[{"$f":"IF('1. Ordersheet'!F1384=\"\",\"\",'1. Ordersheet'!F1384)","v":""},{"$f":"IF('1. Ordersheet'!G1384=\"\",\"\",'1. Ordersheet'!G1384)","v":""},{"$f":"IF('1. Ordersheet'!H1384=\"\",\"\",'1. Ordersheet'!H1384)","v":""},{"$f":"IF('1. Ordersheet'!I1384=\"\",\"\",'1. Ordersheet'!I1384)","v":""},{"$f":"IF('1. Ordersheet'!J1384=\"\",\"\",'1. Ordersheet'!J1384)","v":""},{"$f":"IF('1. Ordersheet'!K1384=\"\",\"\",'1. Ordersheet'!K1384)","v":""},{"$f":"IF('1. Ordersheet'!L1384=\"\",\"\",'1. Ordersheet'!L1384)","v":""},{"$f":"IF('1. Ordersheet'!M1384=\"\",\"\",'1. Ordersheet'!M1384)","v":""},{"$f":"IF('1. Ordersheet'!N1384=\"\",\"\",'1. Ordersheet'!N1384)","v":""},{"$f":"IF('1. Ordersheet'!O1384=\"\",\"\",'1. Ordersheet'!O1384)","v":{"$error":"#N/A"}},{"$f":"IF('1. Ordersheet'!P1384=\"\",\"\",'1. Ordersheet'!P1384)","v":{"$error":"#N/A"}},{"$f":"IF('1. Ordersheet'!Q1384=\"\",\"\",'1. Ordersheet'!Q1384)","v":""},{"$f":"IF('1. Ordersheet'!R1384=\"\",\"\",'1. Ordersheet'!R1384)","v":""},{"$f":"IF('1. Ordersheet'!S1384=\"\",\"\",'1. Ordersheet'!S1384)","v":""},{"$f":"IF('1. Ordersheet'!V1384=\"\",\"\",'1. Ordersheet'!V1384)","v":""},{"$f":"IF('1. Ordersheet'!W1384=\"\",\"\",'1. Ordersheet'!W1384)","v":""},{"$f":"IF('1. Ordersheet'!X1384=\"\",\"\",'1. Ordersheet'!X1384)","v":""},{"$f":"IF('1. Ordersheet'!Y1384=\"\",\"\",'1. Ordersheet'!Y1384)","v":""},{"$f":"IF('1. Ordersheet'!Z1384=\"\",\"\",'1. Ordersheet'!Z1384)","v":""},{"$f":"IF('1. Ordersheet'!AA1384=\"\",\"\",'1. Ordersheet'!AA1384)","v":""},null,{"$f":"IF('1. Ordersheet'!AS1384=\"\",\"\",'1. Ordersheet'!AS1384)","v":""},{"$f":"IF('1. Ordersheet'!AT1384=\"\",\"\",'1. Ordersheet'!AT1384)","v":""},null,null,null,null,null,null,null,{"$f":"IF('1. Ordersheet'!AX1384=\"\",\"\",'1. Ordersheet'!AX1384)","v":""},{"$f":"IF('1. Ordersheet'!AY1384=\"\",\"\",'1. Ordersheet'!AY1384)","v":""},{"$f":"IF('1. Ordersheet'!AZ1384=\"\",\"\",'1. Ordersheet'!AZ1384)","v":""},{"$f":"IF('1. Ordersheet'!BA1384=\"\",\"\",'1. Ordersheet'!BA1384)","v":""},{"$f":"IF('1. Ordersheet'!BC1384=\"\",\"\",'1. Ordersheet'!BC1384)","v":""},{"$f":"IF('1. Ordersheet'!BD1384=\"\",\"\",'1. Ordersheet'!BD1384)","v":""},{"$f":"IF('1. Ordersheet'!BE1384=\"\",\"\",'1. Ordersheet'!BE1384)","v":""},{"$f":"IF('1. Ordersheet'!BF1384=\"\",\"\",'1. Ordersheet'!BF1384)","v":""},{"$f":"IF('1. Ordersheet'!BG1384=\"\",\"\",'1. Ordersheet'!BG1384)","v":"ZWO"},{"$f":"IF('1. Ordersheet'!BH1384=\"\",\"\",'1. Ordersheet'!BH1384)","v":""},{"$f":"IF('1. Ordersheet'!BI1384=\"\",\"\",'1. Ordersheet'!BI1384)","v":""},{"$f":"IF('1. Ordersheet'!BJ1384=\"\",\"\",'1. Ordersheet'!BJ1384)","v":""},{"$f":"IF('1. Ordersheet'!BK1384=\"\",\"\",'1. Ordersheet'!BK1384)","v":""},{"$f":"IF('1. Ordersheet'!BL1384=\"\",\"\",'1. Ordersheet'!BL1384)","v":""}]
[{"$f":"IF('1. Ordersheet'!F1385=\"\",\"\",'1. Ordersheet'!F1385)","v":""},{"$f":"IF('1. Ordersheet'!G1385=\"\",\"\",'1. Ordersheet'!G1385)","v":""},{"$f":"IF('1. Ordersheet'!H1385=\"\",\"\",'1. Ordersheet'!H1385)","v":""},{"$f":"IF('1. Ordersheet'!I1385=\"\",\"\",'1. Ordersheet'!I1385)","v":""},{"$f":"IF('1. Ordersheet'!J1385=\"\",\"\",'1. Ordersheet'!J1385)","v":""},{"$f":"IF('1. Ordersheet'!K1385=\"\",\"\",'1. Ordersheet'!K1385)","v":""},{"$f":"IF('1. Ordersheet'!L1385=\"\",\"\",'1. Ordersheet'!L1385)","v":""},{"$f":"IF('1. Ordersheet'!M1385=\"\",\"\",'1. Ordersheet'!M1385)","v":""},{"$f":"IF('1. Ordersheet'!N1385=\"\",\"\",'1. Ordersheet'!N1385)","v":""},{"$f":"IF('1. Ordersheet'!O1385=\"\",\"\",'1. Ordersheet'!O1385)","v":{"$error":"#N/A"}},{"$f":"IF('1. Ordersheet'!P1385=\"\",\"\",'1. Ordersheet'!P1385)","v":{"$error":"#N/A"}},{"$f":"IF('1. Ordersheet'!Q1385=\"\",\"\",'1. Ordersheet'!Q1385)","v":""},{"$f":"IF('1. Ordersheet'!R1385=\"\",\"\",'1. Ordersheet'!R1385)","v":""},{"$f":"IF('1. Ordersheet'!S1385=\"\",\"\",'1. Ordersheet'!S1385)","v":""},{"$f":"IF('1. Ordersheet'!V1385=\"\",\"\",'1. Ordersheet'!V1385)","v":""},{"$f":"IF('1. Ordersheet'!W1385=\"\",\"\",'1. Ordersheet'!W1385)","v":""},{"$f":"IF('1. Ordersheet'!X1385=\"\",\"\",'1. Ordersheet'!X1385)","v":""},{"$f":"IF('1. Ordersheet'!Y1385=\"\",\"\",'1. Ordersheet'!Y1385)","v":""},{"$f":"IF('1. Ordersheet'!Z1385=\"\",\"\",'1. Ordersheet'!Z1385)","v":""},{"$f":"IF('1. Ordersheet'!AA1385=\"\",\"\",'1. Ordersheet'!AA1385)","v":""},null,{"$f":"IF('1. Ordersheet'!AS1385=\"\",\"\",'1. Ordersheet'!AS1385)","v":""},{"$f":"IF('1. Ordersheet'!AT1385=\"\",\"\",'1. Ordersheet'!AT1385)","v":""},null,null,null,null,null,null,null,{"$f":"IF('1. Ordersheet'!AX1385=\"\",\"\",'1. Ordersheet'!AX1385)","v":""},{"$f":"IF('1. Ordersheet'!AY1385=\"\",\"\",'1. Ordersheet'!AY1385)","v":""},{"$f":"IF('1. Ordersheet'!AZ1385=\"\",\"\",'1. Ordersheet'!AZ1385)","v":""},{"$f":"IF('1. Ordersheet'!BA1385=\"\",\"\",'1. Ordersheet'!BA1385)","v":""},{"$f":"IF('1. Ordersheet'!BC1385=\"\",\"\",'1. Ordersheet'!BC1385)","v":""},{"$f":"IF('1. Ordersheet'!BD1385=\"\",\"\",'1. Ordersheet'!BD1385)","v":""},{"$f":"IF('1. Ordersheet'!BE1385=\"\",\"\",'1. Ordersheet'!BE1385)","v":""},{"$f":"IF('1. Ordersheet'!BF1385=\"\",\"\",'1. Ordersheet'!BF1385)","v":""},{"$f":"IF('1. Ordersheet'!BG1385=\"\",\"\",'1. Ordersheet'!BG1385)","v":"ZWO"},{"$f":"IF('1. Ordersheet'!BH1385=\"\",\"\",'1. Ordersheet'!BH1385)","v":""},{"$f":"IF('1. Ordersheet'!BI1385=\"\",\"\",'1. Ordersheet'!BI1385)","v":""},{"$f":"IF('1. Ordersheet'!BJ1385=\"\",\"\",'1. Ordersheet'!BJ1385)","v":""},{"$f":"IF('1. Ordersheet'!BK1385=\"\",\"\",'1. Ordersheet'!BK1385)","v":""},{"$f":"IF('1. Ordersheet'!BL1385=\"\",\"\",'1. Ordersheet'!BL1385)","v":""}]
[{"$f":"IF('1. Ordersheet'!F1386=\"\",\"\",'1. Ordersheet'!F1386)","v":""},{"$f":"IF('1. Ordersheet'!G1386=\"\",\"\",'1. Ordersheet'!G1386)","v":""},{"$f":"IF('1. Ordersheet'!H1386=\"\",\"\",'1. Ordersheet'!H1386)","v":""},{"$f":"IF('1. Ordersheet'!I1386=\"\",\"\",'1. Ordersheet'!I1386)","v":""},{"$f":"IF('1. Ordersheet'!J1386=\"\",\"\",'1. Ordersheet'!J1386)","v":""},{"$f":"IF('1. Ordersheet'!K1386=\"\",\"\",'1. Ordersheet'!K1386)","v":""},{"$f":"IF('1. Ordersheet'!L1386=\"\",\"\",'1. Ordersheet'!L1386)","v":""},{"$f":"IF('1. Ordersheet'!M1386=\"\",\"\",'1. Ordersheet'!M1386)","v":""},{"$f":"IF('1. Ordersheet'!N1386=\"\",\"\",'1. Ordersheet'!N1386)","v":""},{"$f":"IF('1. Ordersheet'!O1386=\"\",\"\",'1. Ordersheet'!O1386)","v":{"$error":"#N/A"}},{"$f":"IF('1. Ordersheet'!P1386=\"\",\"\",'1. Ordersheet'!P1386)","v":{"$error":"#N/A"}},{"$f":"IF('1. Ordersheet'!Q1386=\"\",\"\",'1. Ordersheet'!Q1386)","v":""},{"$f":"IF('1. Ordersheet'!R1386=\"\",\"\",'1. Ordersheet'!R1386)","v":""},{"$f":"IF('1. Ordersheet'!S1386=\"\",\"\",'1. Ordersheet'!S1386)","v":""},{"$f":"IF('1. Ordersheet'!V1386=\"\",\"\",'1. Ordersheet'!V1386)","v":""},{"$f":"IF('1. Ordersheet'!W1386=\"\",\"\",'1. Ordersheet'!W1386)","v":""},{"$f":"IF('1. Ordersheet'!X1386=\"\",\"\",'1. Ordersheet'!X1386)","v":""},{"$f":"IF('1. Ordersheet'!Y1386=\"\",\"\",'1. Ordersheet'!Y1386)","v":""},{"$f":"IF('1. Ordersheet'!Z1386=\"\",\"\",'1. Ordersheet'!Z1386)","v":""},{"$f":"IF('1. Ordersheet'!AA1386=\"\",\"\",'1. Ordersheet'!AA1386)","v":""},null,{"$f":"IF('1. Ordersheet'!AS1386=\"\",\"\",'1. Ordersheet'!AS1386)","v":""},{"$f":"IF('1. Ordersheet'!AT1386=\"\",\"\",'1. Ordersheet'!AT1386)","v":""},null,null,null,null,null,null,null,{"$f":"IF('1. Ordersheet'!AX1386=\"\",\"\",'1. Ordersheet'!AX1386)","v":""},{"$f":"IF('1. Ordersheet'!AY1386=\"\",\"\",'1. Ordersheet'!AY1386)","v":""},{"$f":"IF('1. Ordersheet'!AZ1386=\"\",\"\",'1. Ordersheet'!AZ1386)","v":""},{"$f":"IF('1. Ordersheet'!BA1386=\"\",\"\",'1. Ordersheet'!BA1386)","v":""},{"$f":"IF('1. Ordersheet'!BC1386=\"\",\"\",'1. Ordersheet'!BC1386)","v":""},{"$f":"IF('1. Ordersheet'!BD1386=\"\",\"\",'1. Ordersheet'!BD1386)","v":""},{"$f":"IF('1. Ordersheet'!BE1386=\"\",\"\",'1. Ordersheet'!BE1386)","v":""},{"$f":"IF('1. Ordersheet'!BF1386=\"\",\"\",'1. Ordersheet'!BF1386)","v":""},{"$f":"IF('1. Ordersheet'!BG1386=\"\",\"\",'1. Ordersheet'!BG1386)","v":"ZWO"},{"$f":"IF('1. Ordersheet'!BH1386=\"\",\"\",'1. Ordersheet'!BH1386)","v":""},{"$f":"IF('1. Ordersheet'!BI1386=\"\",\"\",'1. Ordersheet'!BI1386)","v":""},{"$f":"IF('1. Ordersheet'!BJ1386=\"\",\"\",'1. Ordersheet'!BJ1386)","v":""},{"$f":"IF('1. Ordersheet'!BK1386=\"\",\"\",'1. Ordersheet'!BK1386)","v":""},{"$f":"IF('1. Ordersheet'!BL1386=\"\",\"\",'1. Ordersheet'!BL1386)","v":""}]
[{"$f":"IF('1. Ordersheet'!F1387=\"\",\"\",'1. Ordersheet'!F1387)","v":""},{"$f":"IF('1. Ordersheet'!G1387=\"\",\"\",'1. Ordersheet'!G1387)","v":""},{"$f":"IF('1. Ordersheet'!H1387=\"\",\"\",'1. Ordersheet'!H1387)","v":""},{"$f":"IF('1. Ordersheet'!I1387=\"\",\"\",'1. Ordersheet'!I1387)","v":""},{"$f":"IF('1. Ordersheet'!J1387=\"\",\"\",'1. Ordersheet'!J1387)","v":""},{"$f":"IF('1. Ordersheet'!K1387=\"\",\"\",'1. Ordersheet'!K1387)","v":""},{"$f":"IF('1. Ordersheet'!L1387=\"\",\"\",'1. Ordersheet'!L1387)","v":""},{"$f":"IF('1. Ordersheet'!M1387=\"\",\"\",'1. Ordersheet'!M1387)","v":""},{"$f":"IF('1. Ordersheet'!N1387=\"\",\"\",'1. Ordersheet'!N1387)","v":""},{"$f":"IF('1. Ordersheet'!O1387=\"\",\"\",'1. Ordersheet'!O1387)","v":{"$error":"#N/A"}},{"$f":"IF('1. Ordersheet'!P1387=\"\",\"\",'1. Ordersheet'!P1387)","v":{"$error":"#N/A"}},{"$f":"IF('1. Ordersheet'!Q1387=\"\",\"\",'1. Ordersheet'!Q1387)","v":""},{"$f":"IF('1. Ordersheet'!R1387=\"\",\"\",'1. Ordersheet'!R1387)","v":""},{"$f":"IF('1. Ordersheet'!S1387=\"\",\"\",'1. Ordersheet'!S1387)","v":""},{"$f":"IF('1. Ordersheet'!V1387=\"\",\"\",'1. Ordersheet'!V1387)","v":""},{"$f":"IF('1. Ordersheet'!W1387=\"\",\"\",'1. Ordersheet'!W1387)","v":""},{"$f":"IF('1. Ordersheet'!X1387=\"\",\"\",'1. Ordersheet'!X1387)","v":""},{"$f":"IF('1. Ordersheet'!Y1387=\"\",\"\",'1. Ordersheet'!Y1387)","v":""},{"$f":"IF('1. Ordersheet'!Z1387=\"\",\"\",'1. Ordersheet'!Z1387)","v":""},{"$f":"IF('1. Ordersheet'!AA1387=\"\",\"\",'1. Ordersheet'!AA1387)","v":""},null,{"$f":"IF('1. Ordersheet'!AS1387=\"\",\"\",'1. Ordersheet'!AS1387)","v":""},{"$f":"IF('1. Ordersheet'!AT1387=\"\",\"\",'1. Ordersheet'!AT1387)","v":""},null,null,null,null,null,null,null,{"$f":"IF('1. Ordersheet'!AX1387=\"\",\"\",'1. Ordersheet'!AX1387)","v":""},{"$f":"IF('1. Ordersheet'!AY1387=\"\",\"\",'1. Ordersheet'!AY1387)","v":""},{"$f":"IF('1. Ordersheet'!AZ1387=\"\",\"\",'1. Ordersheet'!AZ1387)","v":""},{"$f":"IF('1. Ordersheet'!BA1387=\"\",\"\",'1. Ordersheet'!BA1387)","v":""},{"$f":"IF('1. Ordersheet'!BC1387=\"\",\"\",'1. Ordersheet'!BC1387)","v":""},{"$f":"IF('1. Ordersheet'!BD1387=\"\",\"\",'1. Ordersheet'!BD1387)","v":""},{"$f":"IF('1. Ordersheet'!BE1387=\"\",\"\",'1. Ordersheet'!BE1387)","v":""},{"$f":"IF('1. Ordersheet'!BF1387=\"\",\"\",'1. Ordersheet'!BF1387)","v":""},{"$f":"IF('1. Ordersheet'!BG1387=\"\",\"\",'1. Ordersheet'!BG1387)","v":"ZWO"},{"$f":"IF('1. Ordersheet'!BH1387=\"\",\"\",'1. Ordersheet'!BH1387)","v":""},{"$f":"IF('1. Ordersheet'!BI1387=\"\",\"\",'1. Ordersheet'!BI1387)","v":""},{"$f":"IF('1. Ordersheet'!BJ1387=\"\",\"\",'1. Ordersheet'!BJ1387)","v":""},{"$f":"IF('1. Ordersheet'!BK1387=\"\",\"\",'1. Ordersheet'!BK1387)","v":""},{"$f":"IF('1. Ordersheet'!BL1387=\"\",\"\",'1. Ordersheet'!BL1387)","v":""}]
[{"$f":"IF('1. Ordersheet'!F1388=\"\",\"\",'1. Ordersheet'!F1388)","v":""},{"$f":"IF('1. Ordersheet'!G1388=\"\",\"\",'1. Ordersheet'!G1388)","v":""},{"$f":"IF('1. Ordersheet'!H1388=\"\",\"\",'1. Ordersheet'!H1388)","v":""},{"$f":"IF('1. Ordersheet'!I1388=\"\",\"\",'1. Ordersheet'!I1388)","v":""},{"$f":"IF('1. Ordersheet'!J1388=\"\",\"\",'1. Ordersheet'!J1388)","v":""},{"$f":"IF('1. Ordersheet'!K1388=\"\",\"\",'1. Ordersheet'!K1388)","v":""},{"$f":"IF('1. Ordersheet'!L1388=\"\",\"\",'1. Ordersheet'!L1388)","v":""},{"$f":"IF('1. Ordersheet'!M1388=\"\",\"\",'1. Ordersheet'!M1388)","v":""},{"$f":"IF('1. Ordersheet'!N1388=\"\",\"\",'1. Ordersheet'!N1388)","v":""},{"$f":"IF('1. Ordersheet'!O1388=\"\",\"\",'1. Ordersheet'!O1388)","v":{"$error":"#N/A"}},{"$f":"IF('1. Ordersheet'!P1388=\"\",\"\",'1. Ordersheet'!P1388)","v":{"$error":"#N/A"}},{"$f":"IF('1. Ordersheet'!Q1388=\"\",\"\",'1. Ordersheet'!Q1388)","v":""},{"$f":"IF('1. Ordersheet'!R1388=\"\",\"\",'1. Ordersheet'!R1388)","v":""},{"$f":"IF('1. Ordersheet'!S1388=\"\",\"\",'1. Ordersheet'!S1388)","v":""},{"$f":"IF('1. Ordersheet'!V1388=\"\",\"\",'1. Ordersheet'!V1388)","v":""},{"$f":"IF('1. Ordersheet'!W1388=\"\",\"\",'1. Ordersheet'!W1388)","v":""},{"$f":"IF('1. Ordersheet'!X1388=\"\",\"\",'1. Ordersheet'!X1388)","v":""},{"$f":"IF('1. Ordersheet'!Y1388=\"\",\"\",'1. Ordersheet'!Y1388)","v":""},{"$f":"IF('1. Ordersheet'!Z1388=\"\",\"\",'1. Ordersheet'!Z1388)","v":""},{"$f":"IF('1. Ordersheet'!AA1388=\"\",\"\",'1. Ordersheet'!AA1388)","v":""},null,{"$f":"IF('1. Ordersheet'!AS1388=\"\",\"\",'1. Ordersheet'!AS1388)","v":""},{"$f":"IF('1. Ordersheet'!AT1388=\"\",\"\",'1. Ordersheet'!AT1388)","v":""},null,null,null,null,null,null,null,{"$f":"IF('1. Ordersheet'!AX1388=\"\",\"\",'1. Ordersheet'!AX1388)","v":""},{"$f":"IF('1. Ordersheet'!AY1388=\"\",\"\",'1. Ordersheet'!AY1388)","v":""},{"$f":"IF('1. Ordersheet'!AZ1388=\"\",\"\",'1. Ordersheet'!AZ1388)","v":""},{"$f":"IF('1. Ordersheet'!BA1388=\"\",\"\",'1. Ordersheet'!BA1388)","v":""},{"$f":"IF('1. Ordersheet'!BC1388=\"\",\"\",'1. Ordersheet'!BC1388)","v":""},{"$f":"IF('1. Ordersheet'!BD1388=\"\",\"\",'1. Ordersheet'!BD1388)","v":""},{"$f":"IF('1. Ordersheet'!BE1388=\"\",\"\",'1. Ordersheet'!BE1388)","v":""},{"$f":"IF('1. Ordersheet'!BF1388=\"\",\"\",'1. Ordersheet'!BF1388)","v":""},{"$f":"IF('1. Ordersheet'!BG1388=\"\",\"\",'1. Ordersheet'!BG1388)","v":"ZWO"},{"$f":"IF('1. Ordersheet'!BH1388=\"\",\"\",'1. Ordersheet'!BH1388)","v":""},{"$f":"IF('1. Ordersheet'!BI1388=\"\",\"\",'1. Ordersheet'!BI1388)","v":""},{"$f":"IF('1. Ordersheet'!BJ1388=\"\",\"\",'1. Ordersheet'!BJ1388)","v":""},{"$f":"IF('1. Ordersheet'!BK1388=\"\",\"\",'1. Ordersheet'!BK1388)","v":""},{"$f":"IF('1. Ordersheet'!BL1388=\"\",\"\",'1. Ordersheet'!BL1388)","v":""}]
[{"$f":"IF('1. Ordersheet'!F1389=\"\",\"\",'1. Ordersheet'!F1389)","v":""},{"$f":"IF('1. Ordersheet'!G1389=\"\",\"\",'1. Ordersheet'!G1389)","v":""},{"$f":"IF('1. Ordersheet'!H1389=\"\",\"\",'1. Ordersheet'!H1389)","v":""},{"$f":"IF('1. Ordersheet'!I1389=\"\",\"\",'1. Ordersheet'!I1389)","v":""},{"$f":"IF('1. Ordersheet'!J1389=\"\",\"\",'1. Ordersheet'!J1389)","v":""},{"$f":"IF('1. Ordersheet'!K1389=\"\",\"\",'1. Ordersheet'!K1389)","v":""},{"$f":"IF('1. Ordersheet'!L1389=\"\",\"\",'1. Ordersheet'!L1389)","v":""},{"$f":"IF('1. Ordersheet'!M1389=\"\",\"\",'1. Ordersheet'!M1389)","v":""},{"$f":"IF('1. Ordersheet'!N1389=\"\",\"\",'1. Ordersheet'!N1389)","v":""},{"$f":"IF('1. Ordersheet'!O1389=\"\",\"\",'1. Ordersheet'!O1389)","v":{"$error":"#N/A"}},{"$f":"IF('1. Ordersheet'!P1389=\"\",\"\",'1. Ordersheet'!P1389)","v":{"$error":"#N/A"}},{"$f":"IF('1. Ordersheet'!Q1389=\"\",\"\",'1. Ordersheet'!Q1389)","v":""},{"$f":"IF('1. Ordersheet'!R1389=\"\",\"\",'1. Ordersheet'!R1389)","v":""},{"$f":"IF('1. Ordersheet'!S1389=\"\",\"\",'1. Ordersheet'!S1389)","v":""},{"$f":"IF('1. Ordersheet'!V1389=\"\",\"\",'1. Ordersheet'!V1389)","v":""},{"$f":"IF('1. Ordersheet'!W1389=\"\",\"\",'1. Ordersheet'!W1389)","v":""},{"$f":"IF('1. Ordersheet'!X1389=\"\",\"\",'1. Ordersheet'!X1389)","v":""},{"$f":"IF('1. Ordersheet'!Y1389=\"\",\"\",'1. Ordersheet'!Y1389)","v":""},{"$f":"IF('1. Ordersheet'!Z1389=\"\",\"\",'1. Ordersheet'!Z1389)","v":""},{"$f":"IF('1. Ordersheet'!AA1389=\"\",\"\",'1. Ordersheet'!AA1389)","v":""},null,{"$f":"IF('1. Ordersheet'!AS1389=\"\",\"\",'1. Ordersheet'!AS1389)","v":""},{"$f":"IF('1. Ordersheet'!AT1389=\"\",\"\",'1. Ordersheet'!AT1389)","v":""},null,null,null,null,null,null,null,{"$f":"IF('1. Ordersheet'!AX1389=\"\",\"\",'1. Ordersheet'!AX1389)","v":""},{"$f":"IF('1. Ordersheet'!AY1389=\"\",\"\",'1. Ordersheet'!AY1389)","v":""},{"$f":"IF('1. Ordersheet'!AZ1389=\"\",\"\",'1. Ordersheet'!AZ1389)","v":""},{"$f":"IF('1. Ordersheet'!BA1389=\"\",\"\",'1. Ordersheet'!BA1389)","v":""},{"$f":"IF('1. Ordersheet'!BC1389=\"\",\"\",'1. Ordersheet'!BC1389)","v":""},{"$f":"IF('1. Ordersheet'!BD1389=\"\",\"\",'1. Ordersheet'!BD1389)","v":""},{"$f":"IF('1. Ordersheet'!BE1389=\"\",\"\",'1. Ordersheet'!BE1389)","v":""},{"$f":"IF('1. Ordersheet'!BF1389=\"\",\"\",'1. Ordersheet'!BF1389)","v":""},{"$f":"IF('1. Ordersheet'!BG1389=\"\",\"\",'1. Ordersheet'!BG1389)","v":"ZWO"},{"$f":"IF('1. Ordersheet'!BH1389=\"\",\"\",'1. Ordersheet'!BH1389)","v":""},{"$f":"IF('1. Ordersheet'!BI1389=\"\",\"\",'1. Ordersheet'!BI1389)","v":""},{"$f":"IF('1. Ordersheet'!BJ1389=\"\",\"\",'1. Ordersheet'!BJ1389)","v":""},{"$f":"IF('1. Ordersheet'!BK1389=\"\",\"\",'1. Ordersheet'!BK1389)","v":""},{"$f":"IF('1. Ordersheet'!BL1389=\"\",\"\",'1. Ordersheet'!BL1389)","v":""}]
[{"$f":"IF('1. Ordersheet'!F1390=\"\",\"\",'1. Ordersheet'!F1390)","v":""},{"$f":"IF('1. Ordersheet'!G1390=\"\",\"\",'1. Ordersheet'!G1390)","v":""},{"$f":"IF('1. Ordersheet'!H1390=\"\",\"\",'1. Ordersheet'!H1390)","v":""},{"$f":"IF('1. Ordersheet'!I1390=\"\",\"\",'1. Ordersheet'!I1390)","v":""},{"$f":"IF('1. Ordersheet'!J1390=\"\",\"\",'1. Ordersheet'!J1390)","v":""},{"$f":"IF('1. Ordersheet'!K1390=\"\",\"\",'1. Ordersheet'!K1390)","v":""},{"$f":"IF('1. Ordersheet'!L1390=\"\",\"\",'1. Ordersheet'!L1390)","v":""},{"$f":"IF('1. Ordersheet'!M1390=\"\",\"\",'1. Ordersheet'!M1390)","v":""},{"$f":"IF('1. Ordersheet'!N1390=\"\",\"\",'1. Ordersheet'!N1390)","v":""},{"$f":"IF('1. Ordersheet'!O1390=\"\",\"\",'1. Ordersheet'!O1390)","v":{"$error":"#N/A"}},{"$f":"IF('1. Ordersheet'!P1390=\"\",\"\",'1. Ordersheet'!P1390)","v":{"$error":"#N/A"}},{"$f":"IF('1. Ordersheet'!Q1390=\"\",\"\",'1. Ordersheet'!Q1390)","v":""},{"$f":"IF('1. Ordersheet'!R1390=\"\",\"\",'1. Ordersheet'!R1390)","v":""},{"$f":"IF('1. Ordersheet'!S1390=\"\",\"\",'1. Ordersheet'!S1390)","v":""},{"$f":"IF('1. Ordersheet'!V1390=\"\",\"\",'1. Ordersheet'!V1390)","v":""},{"$f":"IF('1. Ordersheet'!W1390=\"\",\"\",'1. Ordersheet'!W1390)","v":""},{"$f":"IF('1. Ordersheet'!X1390=\"\",\"\",'1. Ordersheet'!X1390)","v":""},{"$f":"IF('1. Ordersheet'!Y1390=\"\",\"\",'1. Ordersheet'!Y1390)","v":""},{"$f":"IF('1. Ordersheet'!Z1390=\"\",\"\",'1. Ordersheet'!Z1390)","v":""},{"$f":"IF('1. Ordersheet'!AA1390=\"\",\"\",'1. Ordersheet'!AA1390)","v":""},null,{"$f":"IF('1. Ordersheet'!AS1390=\"\",\"\",'1. Ordersheet'!AS1390)","v":""},{"$f":"IF('1. Ordersheet'!AT1390=\"\",\"\",'1. Ordersheet'!AT1390)","v":""},null,null,null,null,null,null,null,{"$f":"IF('1. Ordersheet'!AX1390=\"\",\"\",'1. Ordersheet'!AX1390)","v":""},{"$f":"IF('1. Ordersheet'!AY1390=\"\",\"\",'1. Ordersheet'!AY1390)","v":""},{"$f":"IF('1. Ordersheet'!AZ1390=\"\",\"\",'1. Ordersheet'!AZ1390)","v":""},{"$f":"IF('1. Ordersheet'!BA1390=\"\",\"\",'1. Ordersheet'!BA1390)","v":""},{"$f":"IF('1. Ordersheet'!BC1390=\"\",\"\",'1. Ordersheet'!BC1390)","v":""},{"$f":"IF('1. Ordersheet'!BD1390=\"\",\"\",'1. Ordersheet'!BD1390)","v":""},{"$f":"IF('1. Ordersheet'!BE1390=\"\",\"\",'1. Ordersheet'!BE1390)","v":""},{"$f":"IF('1. Ordersheet'!BF1390=\"\",\"\",'1. Ordersheet'!BF1390)","v":""},{"$f":"IF('1. Ordersheet'!BG1390=\"\",\"\",'1. Ordersheet'!BG1390)","v":"ZWO"},{"$f":"IF('1. Ordersheet'!BH1390=\"\",\"\",'1. Ordersheet'!BH1390)","v":""},{"$f":"IF('1. Ordersheet'!BI1390=\"\",\"\",'1. Ordersheet'!BI1390)","v":""},{"$f":"IF('1. Ordersheet'!BJ1390=\"\",\"\",'1. Ordersheet'!BJ1390)","v":""},{"$f":"IF('1. Ordersheet'!BK1390=\"\",\"\",'1. Ordersheet'!BK1390)","v":""},{"$f":"IF('1. Ordersheet'!BL1390=\"\",\"\",'1. Ordersheet'!BL1390)","v":""}]
[{"$f":"IF('1. Ordersheet'!F1391=\"\",\"\",'1. Ordersheet'!F1391)","v":""},{"$f":"IF('1. Ordersheet'!G1391=\"\",\"\",'1. Ordersheet'!G1391)","v":""},{"$f":"IF('1. Ordersheet'!H1391=\"\",\"\",'1. Ordersheet'!H1391)","v":""},{"$f":"IF('1. Ordersheet'!I1391=\"\",\"\",'1. Ordersheet'!I1391)","v":""},{"$f":"IF('1. Ordersheet'!J1391=\"\",\"\",'1. Ordersheet'!J1391)","v":""},{"$f":"IF('1. Ordersheet'!K1391=\"\",\"\",'1. Ordersheet'!K1391)","v":""},{"$f":"IF('1. Ordersheet'!L1391=\"\",\"\",'1. Ordersheet'!L1391)","v":""},{"$f":"IF('1. Ordersheet'!M1391=\"\",\"\",'1. Ordersheet'!M1391)","v":""},{"$f":"IF('1. Ordersheet'!N1391=\"\",\"\",'1. Ordersheet'!N1391)","v":""},{"$f":"IF('1. Ordersheet'!O1391=\"\",\"\",'1. Ordersheet'!O1391)","v":{"$error":"#N/A"}},{"$f":"IF('1. Ordersheet'!P1391=\"\",\"\",'1. Ordersheet'!P1391)","v":{"$error":"#N/A"}},{"$f":"IF('1. Ordersheet'!Q1391=\"\",\"\",'1. Ordersheet'!Q1391)","v":""},{"$f":"IF('1. Ordersheet'!R1391=\"\",\"\",'1. Ordersheet'!R1391)","v":""},{"$f":"IF('1. Ordersheet'!S1391=\"\",\"\",'1. Ordersheet'!S1391)","v":""},{"$f":"IF('1. Ordersheet'!V1391=\"\",\"\",'1. Ordersheet'!V1391)","v":""},{"$f":"IF('1. Ordersheet'!W1391=\"\",\"\",'1. Ordersheet'!W1391)","v":""},{"$f":"IF('1. Ordersheet'!X1391=\"\",\"\",'1. Ordersheet'!X1391)","v":""},{"$f":"IF('1. Ordersheet'!Y1391=\"\",\"\",'1. Ordersheet'!Y1391)","v":""},{"$f":"IF('1. Ordersheet'!Z1391=\"\",\"\",'1. Ordersheet'!Z1391)","v":""},{"$f":"IF('1. Ordersheet'!AA1391=\"\",\"\",'1. Ordersheet'!AA1391)","v":""},null,{"$f":"IF('1. Ordersheet'!AS1391=\"\",\"\",'1. Ordersheet'!AS1391)","v":""},{"$f":"IF('1. Ordersheet'!AT1391=\"\",\"\",'1. Ordersheet'!AT1391)","v":""},null,null,null,null,null,null,null,{"$f":"IF('1. Ordersheet'!AX1391=\"\",\"\",'1. Ordersheet'!AX1391)","v":""},{"$f":"IF('1. Ordersheet'!AY1391=\"\",\"\",'1. Ordersheet'!AY1391)","v":""},{"$f":"IF('1. Ordersheet'!AZ1391=\"\",\"\",'1. Ordersheet'!AZ1391)","v":""},{"$f":"IF('1. Ordersheet'!BA1391=\"\",\"\",'1. Ordersheet'!BA1391)","v":""},{"$f":"IF('1. Ordersheet'!BC1391=\"\",\"\",'1. Ordersheet'!BC1391)","v":""},{"$f":"IF('1. Ordersheet'!BD1391=\"\",\"\",'1. Ordersheet'!BD1391)","v":""},{"$f":"IF('1. Ordersheet'!BE1391=\"\",\"\",'1. Ordersheet'!BE1391)","v":""},{"$f":"IF('1. Ordersheet'!BF1391=\"\",\"\",'1. Ordersheet'!BF1391)","v":""},{"$f":"IF('1. Ordersheet'!BG1391=\"\",\"\",'1. Ordersheet'!BG1391)","v":"ZWO"},{"$f":"IF('1. Ordersheet'!BH1391=\"\",\"\",'1. Ordersheet'!BH1391)","v":""},{"$f":"IF('1. Ordersheet'!BI1391=\"\",\"\",'1. Ordersheet'!BI1391)","v":""},{"$f":"IF('1. Ordersheet'!BJ1391=\"\",\"\",'1. Ordersheet'!BJ1391)","v":""},{"$f":"IF('1. Ordersheet'!BK1391=\"\",\"\",'1. Ordersheet'!BK1391)","v":""},{"$f":"IF('1. Ordersheet'!BL1391=\"\",\"\",'1. Ordersheet'!BL1391)","v":""}]
[{"$f":"IF('1. Ordersheet'!F1392=\"\",\"\",'1. Ordersheet'!F1392)","v":""},{"$f":"IF('1. Ordersheet'!G1392=\"\",\"\",'1. Ordersheet'!G1392)","v":""},{"$f":"IF('1. Ordersheet'!H1392=\"\",\"\",'1. Ordersheet'!H1392)","v":""},{"$f":"IF('1. Ordersheet'!I1392=\"\",\"\",'1. Ordersheet'!I1392)","v":""},{"$f":"IF('1. Ordersheet'!J1392=\"\",\"\",'1. Ordersheet'!J1392)","v":""},{"$f":"IF('1. Ordersheet'!K1392=\"\",\"\",'1. Ordersheet'!K1392)","v":""},{"$f":"IF('1. Ordersheet'!L1392=\"\",\"\",'1. Ordersheet'!L1392)","v":""},{"$f":"IF('1. Ordersheet'!M1392=\"\",\"\",'1. Ordersheet'!M1392)","v":""},{"$f":"IF('1. Ordersheet'!N1392=\"\",\"\",'1. Ordersheet'!N1392)","v":""},{"$f":"IF('1. Ordersheet'!O1392=\"\",\"\",'1. Ordersheet'!O1392)","v":{"$error":"#N/A"}},{"$f":"IF('1. Ordersheet'!P1392=\"\",\"\",'1. Ordersheet'!P1392)","v":{"$error":"#N/A"}},{"$f":"IF('1. Ordersheet'!Q1392=\"\",\"\",'1. Ordersheet'!Q1392)","v":""},{"$f":"IF('1. Ordersheet'!R1392=\"\",\"\",'1. Ordersheet'!R1392)","v":""},{"$f":"IF('1. Ordersheet'!S1392=\"\",\"\",'1. Ordersheet'!S1392)","v":""},{"$f":"IF('1. Ordersheet'!V1392=\"\",\"\",'1. Ordersheet'!V1392)","v":""},{"$f":"IF('1. Ordersheet'!W1392=\"\",\"\",'1. Ordersheet'!W1392)","v":""},{"$f":"IF('1. Ordersheet'!X1392=\"\",\"\",'1. Ordersheet'!X1392)","v":""},{"$f":"IF('1. Ordersheet'!Y1392=\"\",\"\",'1. Ordersheet'!Y1392)","v":""},{"$f":"IF('1. Ordersheet'!Z1392=\"\",\"\",'1. Ordersheet'!Z1392)","v":""},{"$f":"IF('1. Ordersheet'!AA1392=\"\",\"\",'1. Ordersheet'!AA1392)","v":""},null,{"$f":"IF('1. Ordersheet'!AS1392=\"\",\"\",'1. Ordersheet'!AS1392)","v":""},{"$f":"IF('1. Ordersheet'!AT1392=\"\",\"\",'1. Ordersheet'!AT1392)","v":""},null,null,null,null,null,null,null,{"$f":"IF('1. Ordersheet'!AX1392=\"\",\"\",'1. Ordersheet'!AX1392)","v":""},{"$f":"IF('1. Ordersheet'!AY1392=\"\",\"\",'1. Ordersheet'!AY1392)","v":""},{"$f":"IF('1. Ordersheet'!AZ1392=\"\",\"\",'1. Ordersheet'!AZ1392)","v":""},{"$f":"IF('1. Ordersheet'!BA1392=\"\",\"\",'1. Ordersheet'!BA1392)","v":""},{"$f":"IF('1. Ordersheet'!BC1392=\"\",\"\",'1. Ordersheet'!BC1392)","v":""},{"$f":"IF('1. Ordersheet'!BD1392=\"\",\"\",'1. Ordersheet'!BD1392)","v":""},{"$f":"IF('1. Ordersheet'!BE1392=\"\",\"\",'1. Ordersheet'!BE1392)","v":""},{"$f":"IF('1. Ordersheet'!BF1392=\"\",\"\",'1. Ordersheet'!BF1392)","v":""},{"$f":"IF('1. Ordersheet'!BG1392=\"\",\"\",'1. Ordersheet'!BG1392)","v":"ZWO"},{"$f":"IF('1. Ordersheet'!BH1392=\"\",\"\",'1. Ordersheet'!BH1392)","v":""},{"$f":"IF('1. Ordersheet'!BI1392=\"\",\"\",'1. Ordersheet'!BI1392)","v":""},{"$f":"IF('1. Ordersheet'!BJ1392=\"\",\"\",'1. Ordersheet'!BJ1392)","v":""},{"$f":"IF('1. Ordersheet'!BK1392=\"\",\"\",'1. Ordersheet'!BK1392)","v":""},{"$f":"IF('1. Ordersheet'!BL1392=\"\",\"\",'1. Ordersheet'!BL1392)","v":""}]
[{"$f":"IF('1. Ordersheet'!F1393=\"\",\"\",'1. Ordersheet'!F1393)","v":""},{"$f":"IF('1. Ordersheet'!G1393=\"\",\"\",'1. Ordersheet'!G1393)","v":""},{"$f":"IF('1. Ordersheet'!H1393=\"\",\"\",'1. Ordersheet'!H1393)","v":""},{"$f":"IF('1. Ordersheet'!I1393=\"\",\"\",'1. Ordersheet'!I1393)","v":""},{"$f":"IF('1. Ordersheet'!J1393=\"\",\"\",'1. Ordersheet'!J1393)","v":""},{"$f":"IF('1. Ordersheet'!K1393=\"\",\"\",'1. Ordersheet'!K1393)","v":""},{"$f":"IF('1. Ordersheet'!L1393=\"\",\"\",'1. Ordersheet'!L1393)","v":""},{"$f":"IF('1. Ordersheet'!M1393=\"\",\"\",'1. Ordersheet'!M1393)","v":""},{"$f":"IF('1. Ordersheet'!N1393=\"\",\"\",'1. Ordersheet'!N1393)","v":""},{"$f":"IF('1. Ordersheet'!O1393=\"\",\"\",'1. Ordersheet'!O1393)","v":{"$error":"#N/A"}},{"$f":"IF('1. Ordersheet'!P1393=\"\",\"\",'1. Ordersheet'!P1393)","v":{"$error":"#N/A"}},{"$f":"IF('1. Ordersheet'!Q1393=\"\",\"\",'1. Ordersheet'!Q1393)","v":""},{"$f":"IF('1. Ordersheet'!R1393=\"\",\"\",'1. Ordersheet'!R1393)","v":""},{"$f":"IF('1. Ordersheet'!S1393=\"\",\"\",'1. Ordersheet'!S1393)","v":""},{"$f":"IF('1. Ordersheet'!V1393=\"\",\"\",'1. Ordersheet'!V1393)","v":""},{"$f":"IF('1. Ordersheet'!W1393=\"\",\"\",'1. Ordersheet'!W1393)","v":""},{"$f":"IF('1. Ordersheet'!X1393=\"\",\"\",'1. Ordersheet'!X1393)","v":""},{"$f":"IF('1. Ordersheet'!Y1393=\"\",\"\",'1. Ordersheet'!Y1393)","v":""},{"$f":"IF('1. Ordersheet'!Z1393=\"\",\"\",'1. Ordersheet'!Z1393)","v":""},{"$f":"IF('1. Ordersheet'!AA1393=\"\",\"\",'1. Ordersheet'!AA1393)","v":""},null,{"$f":"IF('1. Ordersheet'!AS1393=\"\",\"\",'1. Ordersheet'!AS1393)","v":""},{"$f":"IF('1. Ordersheet'!AT1393=\"\",\"\",'1. Ordersheet'!AT1393)","v":""},null,null,null,null,null,null,null,{"$f":"IF('1. Ordersheet'!AX1393=\"\",\"\",'1. Ordersheet'!AX1393)","v":""},{"$f":"IF('1. Ordersheet'!AY1393=\"\",\"\",'1. Ordersheet'!AY1393)","v":""},{"$f":"IF('1. Ordersheet'!AZ1393=\"\",\"\",'1. Ordersheet'!AZ1393)","v":""},{"$f":"IF('1. Ordersheet'!BA1393=\"\",\"\",'1. Ordersheet'!BA1393)","v":""},{"$f":"IF('1. Ordersheet'!BC1393=\"\",\"\",'1. Ordersheet'!BC1393)","v":""},{"$f":"IF('1. Ordersheet'!BD1393=\"\",\"\",'1. Ordersheet'!BD1393)","v":""},{"$f":"IF('1. Ordersheet'!BE1393=\"\",\"\",'1. Ordersheet'!BE1393)","v":""},{"$f":"IF('1. Ordersheet'!BF1393=\"\",\"\",'1. Ordersheet'!BF1393)","v":""},{"$f":"IF('1. Ordersheet'!BG1393=\"\",\"\",'1. Ordersheet'!BG1393)","v":"ZWO"},{"$f":"IF('1. Ordersheet'!BH1393=\"\",\"\",'1. Ordersheet'!BH1393)","v":""},{"$f":"IF('1. Ordersheet'!BI1393=\"\",\"\",'1. Ordersheet'!BI1393)","v":""},{"$f":"IF('1. Ordersheet'!BJ1393=\"\",\"\",'1. Ordersheet'!BJ1393)","v":""},{"$f":"IF('1. Ordersheet'!BK1393=\"\",\"\",'1. Ordersheet'!BK1393)","v":""},{"$f":"IF('1. Ordersheet'!BL1393=\"\",\"\",'1. Ordersheet'!BL1393)","v":""}]
[{"$f":"IF('1. Ordersheet'!F1394=\"\",\"\",'1. Ordersheet'!F1394)","v":""},{"$f":"IF('1. Ordersheet'!G1394=\"\",\"\",'1. Ordersheet'!G1394)","v":""},{"$f":"IF('1. Ordersheet'!H1394=\"\",\"\",'1. Ordersheet'!H1394)","v":""},{"$f":"IF('1. Ordersheet'!I1394=\"\",\"\",'1. Ordersheet'!I1394)","v":""},{"$f":"IF('1. Ordersheet'!J1394=\"\",\"\",'1. Ordersheet'!J1394)","v":""},{"$f":"IF('1. Ordersheet'!K1394=\"\",\"\",'1. Ordersheet'!K1394)","v":""},{"$f":"IF('1. Ordersheet'!L1394=\"\",\"\",'1. Ordersheet'!L1394)","v":""},{"$f":"IF('1. Ordersheet'!M1394=\"\",\"\",'1. Ordersheet'!M1394)","v":""},{"$f":"IF('1. Ordersheet'!N1394=\"\",\"\",'1. Ordersheet'!N1394)","v":""},{"$f":"IF('1. Ordersheet'!O1394=\"\",\"\",'1. Ordersheet'!O1394)","v":{"$error":"#N/A"}},{"$f":"IF('1. Ordersheet'!P1394=\"\",\"\",'1. Ordersheet'!P1394)","v":{"$error":"#N/A"}},{"$f":"IF('1. Ordersheet'!Q1394=\"\",\"\",'1. Ordersheet'!Q1394)","v":""},{"$f":"IF('1. Ordersheet'!R1394=\"\",\"\",'1. Ordersheet'!R1394)","v":""},{"$f":"IF('1. Ordersheet'!S1394=\"\",\"\",'1. Ordersheet'!S1394)","v":""},{"$f":"IF('1. Ordersheet'!V1394=\"\",\"\",'1. Ordersheet'!V1394)","v":""},{"$f":"IF('1. Ordersheet'!W1394=\"\",\"\",'1. Ordersheet'!W1394)","v":""},{"$f":"IF('1. Ordersheet'!X1394=\"\",\"\",'1. Ordersheet'!X1394)","v":""},{"$f":"IF('1. Ordersheet'!Y1394=\"\",\"\",'1. Ordersheet'!Y1394)","v":""},{"$f":"IF('1. Ordersheet'!Z1394=\"\",\"\",'1. Ordersheet'!Z1394)","v":""},{"$f":"IF('1. Ordersheet'!AA1394=\"\",\"\",'1. Ordersheet'!AA1394)","v":""},null,{"$f":"IF('1. Ordersheet'!AS1394=\"\",\"\",'1. Ordersheet'!AS1394)","v":""},{"$f":"IF('1. Ordersheet'!AT1394=\"\",\"\",'1. Ordersheet'!AT1394)","v":""},null,null,null,null,null,null,null,{"$f":"IF('1. Ordersheet'!AX1394=\"\",\"\",'1. Ordersheet'!AX1394)","v":""},{"$f":"IF('1. Ordersheet'!AY1394=\"\",\"\",'1. Ordersheet'!AY1394)","v":""},{"$f":"IF('1. Ordersheet'!AZ1394=\"\",\"\",'1. Ordersheet'!AZ1394)","v":""},{"$f":"IF('1. Ordersheet'!BA1394=\"\",\"\",'1. Ordersheet'!BA1394)","v":""},{"$f":"IF('1. Ordersheet'!BC1394=\"\",\"\",'1. Ordersheet'!BC1394)","v":""},{"$f":"IF('1. Ordersheet'!BD1394=\"\",\"\",'1. Ordersheet'!BD1394)","v":""},{"$f":"IF('1. Ordersheet'!BE1394=\"\",\"\",'1. Ordersheet'!BE1394)","v":""},{"$f":"IF('1. Ordersheet'!BF1394=\"\",\"\",'1. Ordersheet'!BF1394)","v":""},{"$f":"IF('1. Ordersheet'!BG1394=\"\",\"\",'1. Ordersheet'!BG1394)","v":"ZWO"},{"$f":"IF('1. Ordersheet'!BH1394=\"\",\"\",'1. Ordersheet'!BH1394)","v":""},{"$f":"IF('1. Ordersheet'!BI1394=\"\",\"\",'1. Ordersheet'!BI1394)","v":""},{"$f":"IF('1. Ordersheet'!BJ1394=\"\",\"\",'1. Ordersheet'!BJ1394)","v":""},{"$f":"IF('1. Ordersheet'!BK1394=\"\",\"\",'1. Ordersheet'!BK1394)","v":""},{"$f":"IF('1. Ordersheet'!BL1394=\"\",\"\",'1. Ordersheet'!BL1394)","v":""}]
[{"$f":"IF('1. Ordersheet'!F1395=\"\",\"\",'1. Ordersheet'!F1395)","v":""},{"$f":"IF('1. Ordersheet'!G1395=\"\",\"\",'1. Ordersheet'!G1395)","v":""},{"$f":"IF('1. Ordersheet'!H1395=\"\",\"\",'1. Ordersheet'!H1395)","v":""},{"$f":"IF('1. Ordersheet'!I1395=\"\",\"\",'1. Ordersheet'!I1395)","v":""},{"$f":"IF('1. Ordersheet'!J1395=\"\",\"\",'1. Ordersheet'!J1395)","v":""},{"$f":"IF('1. Ordersheet'!K1395=\"\",\"\",'1. Ordersheet'!K1395)","v":""},{"$f":"IF('1. Ordersheet'!L1395=\"\",\"\",'1. Ordersheet'!L1395)","v":""},{"$f":"IF('1. Ordersheet'!M1395=\"\",\"\",'1. Ordersheet'!M1395)","v":""},{"$f":"IF('1. Ordersheet'!N1395=\"\",\"\",'1. Ordersheet'!N1395)","v":""},{"$f":"IF('1. Ordersheet'!O1395=\"\",\"\",'1. Ordersheet'!O1395)","v":{"$error":"#N/A"}},{"$f":"IF('1. Ordersheet'!P1395=\"\",\"\",'1. Ordersheet'!P1395)","v":{"$error":"#N/A"}},{"$f":"IF('1. Ordersheet'!Q1395=\"\",\"\",'1. Ordersheet'!Q1395)","v":""},{"$f":"IF('1. Ordersheet'!R1395=\"\",\"\",'1. Ordersheet'!R1395)","v":""},{"$f":"IF('1. Ordersheet'!S1395=\"\",\"\",'1. Ordersheet'!S1395)","v":""},{"$f":"IF('1. Ordersheet'!V1395=\"\",\"\",'1. Ordersheet'!V1395)","v":""},{"$f":"IF('1. Ordersheet'!W1395=\"\",\"\",'1. Ordersheet'!W1395)","v":""},{"$f":"IF('1. Ordersheet'!X1395=\"\",\"\",'1. Ordersheet'!X1395)","v":""},{"$f":"IF('1. Ordersheet'!Y1395=\"\",\"\",'1. Ordersheet'!Y1395)","v":""},{"$f":"IF('1. Ordersheet'!Z1395=\"\",\"\",'1. Ordersheet'!Z1395)","v":""},{"$f":"IF('1. Ordersheet'!AA1395=\"\",\"\",'1. Ordersheet'!AA1395)","v":""},null,{"$f":"IF('1. Ordersheet'!AS1395=\"\",\"\",'1. Ordersheet'!AS1395)","v":""},{"$f":"IF('1. Ordersheet'!AT1395=\"\",\"\",'1. Ordersheet'!AT1395)","v":""},null,null,null,null,null,null,null,{"$f":"IF('1. Ordersheet'!AX1395=\"\",\"\",'1. Ordersheet'!AX1395)","v":""},{"$f":"IF('1. Ordersheet'!AY1395=\"\",\"\",'1. Ordersheet'!AY1395)","v":""},{"$f":"IF('1. Ordersheet'!AZ1395=\"\",\"\",'1. Ordersheet'!AZ1395)","v":""},{"$f":"IF('1. Ordersheet'!BA1395=\"\",\"\",'1. Ordersheet'!BA1395)","v":""},{"$f":"IF('1. Ordersheet'!BC1395=\"\",\"\",'1. Ordersheet'!BC1395)","v":""},{"$f":"IF('1. Ordersheet'!BD1395=\"\",\"\",'1. Ordersheet'!BD1395)","v":""},{"$f":"IF('1. Ordersheet'!BE1395=\"\",\"\",'1. Ordersheet'!BE1395)","v":""},{"$f":"IF('1. Ordersheet'!BF1395=\"\",\"\",'1. Ordersheet'!BF1395)","v":""},{"$f":"IF('1. Ordersheet'!BG1395=\"\",\"\",'1. Ordersheet'!BG1395)","v":"ZWO"},{"$f":"IF('1. Ordersheet'!BH1395=\"\",\"\",'1. Ordersheet'!BH1395)","v":""},{"$f":"IF('1. Ordersheet'!BI1395=\"\",\"\",'1. Ordersheet'!BI1395)","v":""},{"$f":"IF('1. Ordersheet'!BJ1395=\"\",\"\",'1. Ordersheet'!BJ1395)","v":""},{"$f":"IF('1. Ordersheet'!BK1395=\"\",\"\",'1. Ordersheet'!BK1395)","v":""},{"$f":"IF('1. Ordersheet'!BL1395=\"\",\"\",'1. Ordersheet'!BL1395)","v":""}]
[{"$f":"IF('1. Ordersheet'!F1396=\"\",\"\",'1. Ordersheet'!F1396)","v":""},{"$f":"IF('1. Ordersheet'!G1396=\"\",\"\",'1. Ordersheet'!G1396)","v":""},{"$f":"IF('1. Ordersheet'!H1396=\"\",\"\",'1. Ordersheet'!H1396)","v":""},{"$f":"IF('1. Ordersheet'!I1396=\"\",\"\",'1. Ordersheet'!I1396)","v":""},{"$f":"IF('1. Ordersheet'!J1396=\"\",\"\",'1. Ordersheet'!J1396)","v":""},{"$f":"IF('1. Ordersheet'!K1396=\"\",\"\",'1. Ordersheet'!K1396)","v":""},{"$f":"IF('1. Ordersheet'!L1396=\"\",\"\",'1. Ordersheet'!L1396)","v":""},{"$f":"IF('1. Ordersheet'!M1396=\"\",\"\",'1. Ordersheet'!M1396)","v":""},{"$f":"IF('1. Ordersheet'!N1396=\"\",\"\",'1. Ordersheet'!N1396)","v":""},{"$f":"IF('1. Ordersheet'!O1396=\"\",\"\",'1. Ordersheet'!O1396)","v":{"$error":"#N/A"}},{"$f":"IF('1. Ordersheet'!P1396=\"\",\"\",'1. Ordersheet'!P1396)","v":{"$error":"#N/A"}},{"$f":"IF('1. Ordersheet'!Q1396=\"\",\"\",'1. Ordersheet'!Q1396)","v":""},{"$f":"IF('1. Ordersheet'!R1396=\"\",\"\",'1. Ordersheet'!R1396)","v":""},{"$f":"IF('1. Ordersheet'!S1396=\"\",\"\",'1. Ordersheet'!S1396)","v":""},{"$f":"IF('1. Ordersheet'!V1396=\"\",\"\",'1. Ordersheet'!V1396)","v":""},{"$f":"IF('1. Ordersheet'!W1396=\"\",\"\",'1. Ordersheet'!W1396)","v":""},{"$f":"IF('1. Ordersheet'!X1396=\"\",\"\",'1. Ordersheet'!X1396)","v":""},{"$f":"IF('1. Ordersheet'!Y1396=\"\",\"\",'1. Ordersheet'!Y1396)","v":""},{"$f":"IF('1. Ordersheet'!Z1396=\"\",\"\",'1. Ordersheet'!Z1396)","v":""},{"$f":"IF('1. Ordersheet'!AA1396=\"\",\"\",'1. Ordersheet'!AA1396)","v":""},null,{"$f":"IF('1. Ordersheet'!AS1396=\"\",\"\",'1. Ordersheet'!AS1396)","v":""},{"$f":"IF('1. Ordersheet'!AT1396=\"\",\"\",'1. Ordersheet'!AT1396)","v":""},null,null,null,null,null,null,null,{"$f":"IF('1. Ordersheet'!AX1396=\"\",\"\",'1. Ordersheet'!AX1396)","v":""},{"$f":"IF('1. Ordersheet'!AY1396=\"\",\"\",'1. Ordersheet'!AY1396)","v":""},{"$f":"IF('1. Ordersheet'!AZ1396=\"\",\"\",'1. Ordersheet'!AZ1396)","v":""},{"$f":"IF('1. Ordersheet'!BA1396=\"\",\"\",'1. Ordersheet'!BA1396)","v":""},{"$f":"IF('1. Ordersheet'!BC1396=\"\",\"\",'1. Ordersheet'!BC1396)","v":""},{"$f":"IF('1. Ordersheet'!BD1396=\"\",\"\",'1. Ordersheet'!BD1396)","v":""},{"$f":"IF('1. Ordersheet'!BE1396=\"\",\"\",'1. Ordersheet'!BE1396)","v":""},{"$f":"IF('1. Ordersheet'!BF1396=\"\",\"\",'1. Ordersheet'!BF1396)","v":""},{"$f":"IF('1. Ordersheet'!BG1396=\"\",\"\",'1. Ordersheet'!BG1396)","v":"ZWO"},{"$f":"IF('1. Ordersheet'!BH1396=\"\",\"\",'1. Ordersheet'!BH1396)","v":""},{"$f":"IF('1. Ordersheet'!BI1396=\"\",\"\",'1. Ordersheet'!BI1396)","v":""},{"$f":"IF('1. Ordersheet'!BJ1396=\"\",\"\",'1. Ordersheet'!BJ1396)","v":""},{"$f":"IF('1. Ordersheet'!BK1396=\"\",\"\",'1. Ordersheet'!BK1396)","v":""},{"$f":"IF('1. Ordersheet'!BL1396=\"\",\"\",'1. Ordersheet'!BL1396)","v":""}]
[{"$f":"IF('1. Ordersheet'!F1397=\"\",\"\",'1. Ordersheet'!F1397)","v":""},{"$f":"IF('1. Ordersheet'!G1397=\"\",\"\",'1. Ordersheet'!G1397)","v":""},{"$f":"IF('1. Ordersheet'!H1397=\"\",\"\",'1. Ordersheet'!H1397)","v":""},{"$f":"IF('1. Ordersheet'!I1397=\"\",\"\",'1. Ordersheet'!I1397)","v":""},{"$f":"IF('1. Ordersheet'!J1397=\"\",\"\",'1. Ordersheet'!J1397)","v":""},{"$f":"IF('1. Ordersheet'!K1397=\"\",\"\",'1. Ordersheet'!K1397)","v":""},{"$f":"IF('1. Ordersheet'!L1397=\"\",\"\",'1. Ordersheet'!L1397)","v":""},{"$f":"IF('1. Ordersheet'!M1397=\"\",\"\",'1. Ordersheet'!M1397)","v":""},{"$f":"IF('1. Ordersheet'!N1397=\"\",\"\",'1. Ordersheet'!N1397)","v":""},{"$f":"IF('1. Ordersheet'!O1397=\"\",\"\",'1. Ordersheet'!O1397)","v":{"$error":"#N/A"}},{"$f":"IF('1. Ordersheet'!P1397=\"\",\"\",'1. Ordersheet'!P1397)","v":{"$error":"#N/A"}},{"$f":"IF('1. Ordersheet'!Q1397=\"\",\"\",'1. Ordersheet'!Q1397)","v":""},{"$f":"IF('1. Ordersheet'!R1397=\"\",\"\",'1. Ordersheet'!R1397)","v":""},{"$f":"IF('1. Ordersheet'!S1397=\"\",\"\",'1. Ordersheet'!S1397)","v":""},{"$f":"IF('1. Ordersheet'!V1397=\"\",\"\",'1. Ordersheet'!V1397)","v":""},{"$f":"IF('1. Ordersheet'!W1397=\"\",\"\",'1. Ordersheet'!W1397)","v":""},{"$f":"IF('1. Ordersheet'!X1397=\"\",\"\",'1. Ordersheet'!X1397)","v":""},{"$f":"IF('1. Ordersheet'!Y1397=\"\",\"\",'1. Ordersheet'!Y1397)","v":""},{"$f":"IF('1. Ordersheet'!Z1397=\"\",\"\",'1. Ordersheet'!Z1397)","v":""},{"$f":"IF('1. Ordersheet'!AA1397=\"\",\"\",'1. Ordersheet'!AA1397)","v":""},null,{"$f":"IF('1. Ordersheet'!AS1397=\"\",\"\",'1. Ordersheet'!AS1397)","v":""},{"$f":"IF('1. Ordersheet'!AT1397=\"\",\"\",'1. Ordersheet'!AT1397)","v":""},null,null,null,null,null,null,null,{"$f":"IF('1. Ordersheet'!AX1397=\"\",\"\",'1. Ordersheet'!AX1397)","v":""},{"$f":"IF('1. Ordersheet'!AY1397=\"\",\"\",'1. Ordersheet'!AY1397)","v":""},{"$f":"IF('1. Ordersheet'!AZ1397=\"\",\"\",'1. Ordersheet'!AZ1397)","v":""},{"$f":"IF('1. Ordersheet'!BA1397=\"\",\"\",'1. Ordersheet'!BA1397)","v":""},{"$f":"IF('1. Ordersheet'!BC1397=\"\",\"\",'1. Ordersheet'!BC1397)","v":""},{"$f":"IF('1. Ordersheet'!BD1397=\"\",\"\",'1. Ordersheet'!BD1397)","v":""},{"$f":"IF('1. Ordersheet'!BE1397=\"\",\"\",'1. Ordersheet'!BE1397)","v":""},{"$f":"IF('1. Ordersheet'!BF1397=\"\",\"\",'1. Ordersheet'!BF1397)","v":""},{"$f":"IF('1. Ordersheet'!BG1397=\"\",\"\",'1. Ordersheet'!BG1397)","v":"ZWO"},{"$f":"IF('1. Ordersheet'!BH1397=\"\",\"\",'1. Ordersheet'!BH1397)","v":""},{"$f":"IF('1. Ordersheet'!BI1397=\"\",\"\",'1. Ordersheet'!BI1397)","v":""},{"$f":"IF('1. Ordersheet'!BJ1397=\"\",\"\",'1. Ordersheet'!BJ1397)","v":""},{"$f":"IF('1. Ordersheet'!BK1397=\"\",\"\",'1. Ordersheet'!BK1397)","v":""},{"$f":"IF('1. Ordersheet'!BL1397=\"\",\"\",'1. Ordersheet'!BL1397)","v":""}]
[{"$f":"IF('1. Ordersheet'!F1398=\"\",\"\",'1. Ordersheet'!F1398)","v":""},{"$f":"IF('1. Ordersheet'!G1398=\"\",\"\",'1. Ordersheet'!G1398)","v":""},{"$f":"IF('1. Ordersheet'!H1398=\"\",\"\",'1. Ordersheet'!H1398)","v":""},{"$f":"IF('1. Ordersheet'!I1398=\"\",\"\",'1. Ordersheet'!I1398)","v":""},{"$f":"IF('1. Ordersheet'!J1398=\"\",\"\",'1. Ordersheet'!J1398)","v":""},{"$f":"IF('1. Ordersheet'!K1398=\"\",\"\",'1. Ordersheet'!K1398)","v":""},{"$f":"IF('1. Ordersheet'!L1398=\"\",\"\",'1. Ordersheet'!L1398)","v":""},{"$f":"IF('1. Ordersheet'!M1398=\"\",\"\",'1. Ordersheet'!M1398)","v":""},{"$f":"IF('1. Ordersheet'!N1398=\"\",\"\",'1. Ordersheet'!N1398)","v":""},{"$f":"IF('1. Ordersheet'!O1398=\"\",\"\",'1. Ordersheet'!O1398)","v":{"$error":"#N/A"}},{"$f":"IF('1. Ordersheet'!P1398=\"\",\"\",'1. Ordersheet'!P1398)","v":{"$error":"#N/A"}},{"$f":"IF('1. Ordersheet'!Q1398=\"\",\"\",'1. Ordersheet'!Q1398)","v":""},{"$f":"IF('1. Ordersheet'!R1398=\"\",\"\",'1. Ordersheet'!R1398)","v":""},{"$f":"IF('1. Ordersheet'!S1398=\"\",\"\",'1. Ordersheet'!S1398)","v":""},{"$f":"IF('1. Ordersheet'!V1398=\"\",\"\",'1. Ordersheet'!V1398)","v":""},{"$f":"IF('1. Ordersheet'!W1398=\"\",\"\",'1. Ordersheet'!W1398)","v":""},{"$f":"IF('1. Ordersheet'!X1398=\"\",\"\",'1. Ordersheet'!X1398)","v":""},{"$f":"IF('1. Ordersheet'!Y1398=\"\",\"\",'1. Ordersheet'!Y1398)","v":""},{"$f":"IF('1. Ordersheet'!Z1398=\"\",\"\",'1. Ordersheet'!Z1398)","v":""},{"$f":"IF('1. Ordersheet'!AA1398=\"\",\"\",'1. Ordersheet'!AA1398)","v":""},null,{"$f":"IF('1. Ordersheet'!AS1398=\"\",\"\",'1. Ordersheet'!AS1398)","v":""},{"$f":"IF('1. Ordersheet'!AT1398=\"\",\"\",'1. Ordersheet'!AT1398)","v":""},null,null,null,null,null,null,null,{"$f":"IF('1. Ordersheet'!AX1398=\"\",\"\",'1. Ordersheet'!AX1398)","v":""},{"$f":"IF('1. Ordersheet'!AY1398=\"\",\"\",'1. Ordersheet'!AY1398)","v":""},{"$f":"IF('1. Ordersheet'!AZ1398=\"\",\"\",'1. Ordersheet'!AZ1398)","v":""},{"$f":"IF('1. Ordersheet'!BA1398=\"\",\"\",'1. Ordersheet'!BA1398)","v":""},{"$f":"IF('1. Ordersheet'!BC1398=\"\",\"\",'1. Ordersheet'!BC1398)","v":""},{"$f":"IF('1. Ordersheet'!BD1398=\"\",\"\",'1. Ordersheet'!BD1398)","v":""},{"$f":"IF('1. Ordersheet'!BE1398=\"\",\"\",'1. Ordersheet'!BE1398)","v":""},{"$f":"IF('1. Ordersheet'!BF1398=\"\",\"\",'1. Ordersheet'!BF1398)","v":""},{"$f":"IF('1. Ordersheet'!BG1398=\"\",\"\",'1. Ordersheet'!BG1398)","v":"ZWO"},{"$f":"IF('1. Ordersheet'!BH1398=\"\",\"\",'1. Ordersheet'!BH1398)","v":""},{"$f":"IF('1. Ordersheet'!BI1398=\"\",\"\",'1. Ordersheet'!BI1398)","v":""},{"$f":"IF('1. Ordersheet'!BJ1398=\"\",\"\",'1. Ordersheet'!BJ1398)","v":""},{"$f":"IF('1. Ordersheet'!BK1398=\"\",\"\",'1. Ordersheet'!BK1398)","v":""},{"$f":"IF('1. Ordersheet'!BL1398=\"\",\"\",'1. Ordersheet'!BL1398)","v":""}]
[{"$f":"IF('1. Ordersheet'!F1399=\"\",\"\",'1. Ordersheet'!F1399)","v":""},{"$f":"IF('1. Ordersheet'!G1399=\"\",\"\",'1. Ordersheet'!G1399)","v":""},{"$f":"IF('1. Ordersheet'!H1399=\"\",\"\",'1. Ordersheet'!H1399)","v":""},{"$f":"IF('1. Ordersheet'!I1399=\"\",\"\",'1. Ordersheet'!I1399)","v":""},{"$f":"IF('1. Ordersheet'!J1399=\"\",\"\",'1. Ordersheet'!J1399)","v":""},{"$f":"IF('1. Ordersheet'!K1399=\"\",\"\",'1. Ordersheet'!K1399)","v":""},{"$f":"IF('1. Ordersheet'!L1399=\"\",\"\",'1. Ordersheet'!L1399)","v":""},{"$f":"IF('1. Ordersheet'!M1399=\"\",\"\",'1. Ordersheet'!M1399)","v":""},{"$f":"IF('1. Ordersheet'!N1399=\"\",\"\",'1. Ordersheet'!N1399)","v":""},{"$f":"IF('1. Ordersheet'!O1399=\"\",\"\",'1. Ordersheet'!O1399)","v":{"$error":"#N/A"}},{"$f":"IF('1. Ordersheet'!P1399=\"\",\"\",'1. Ordersheet'!P1399)","v":{"$error":"#N/A"}},{"$f":"IF('1. Ordersheet'!Q1399=\"\",\"\",'1. Ordersheet'!Q1399)","v":""},{"$f":"IF('1. Ordersheet'!R1399=\"\",\"\",'1. Ordersheet'!R1399)","v":""},{"$f":"IF('1. Ordersheet'!S1399=\"\",\"\",'1. Ordersheet'!S1399)","v":""},{"$f":"IF('1. Ordersheet'!V1399=\"\",\"\",'1. Ordersheet'!V1399)","v":""},{"$f":"IF('1. Ordersheet'!W1399=\"\",\"\",'1. Ordersheet'!W1399)","v":""},{"$f":"IF('1. Ordersheet'!X1399=\"\",\"\",'1. Ordersheet'!X1399)","v":""},{"$f":"IF('1. Ordersheet'!Y1399=\"\",\"\",'1. Ordersheet'!Y1399)","v":""},{"$f":"IF('1. Ordersheet'!Z1399=\"\",\"\",'1. Ordersheet'!Z1399)","v":""},{"$f":"IF('1. Ordersheet'!AA1399=\"\",\"\",'1. Ordersheet'!AA1399)","v":""},null,{"$f":"IF('1. Ordersheet'!AS1399=\"\",\"\",'1. Ordersheet'!AS1399)","v":""},{"$f":"IF('1. Ordersheet'!AT1399=\"\",\"\",'1. Ordersheet'!AT1399)","v":""},null,null,null,null,null,null,null,{"$f":"IF('1. Ordersheet'!AX1399=\"\",\"\",'1. Ordersheet'!AX1399)","v":""},{"$f":"IF('1. Ordersheet'!AY1399=\"\",\"\",'1. Ordersheet'!AY1399)","v":""},{"$f":"IF('1. Ordersheet'!AZ1399=\"\",\"\",'1. Ordersheet'!AZ1399)","v":""},{"$f":"IF('1. Ordersheet'!BA1399=\"\",\"\",'1. Ordersheet'!BA1399)","v":""},{"$f":"IF('1. Ordersheet'!BC1399=\"\",\"\",'1. Ordersheet'!BC1399)","v":""},{"$f":"IF('1. Ordersheet'!BD1399=\"\",\"\",'1. Ordersheet'!BD1399)","v":""},{"$f":"IF('1. Ordersheet'!BE1399=\"\",\"\",'1. Ordersheet'!BE1399)","v":""},{"$f":"IF('1. Ordersheet'!BF1399=\"\",\"\",'1. Ordersheet'!BF1399)","v":""},{"$f":"IF('1. Ordersheet'!BG1399=\"\",\"\",'1. Ordersheet'!BG1399)","v":"ZWO"},{"$f":"IF('1. Ordersheet'!BH1399=\"\",\"\",'1. Ordersheet'!BH1399)","v":""},{"$f":"IF('1. Ordersheet'!BI1399=\"\",\"\",'1. Ordersheet'!BI1399)","v":""},{"$f":"IF('1. Ordersheet'!BJ1399=\"\",\"\",'1. Ordersheet'!BJ1399)","v":""},{"$f":"IF('1. Ordersheet'!BK1399=\"\",\"\",'1. Ordersheet'!BK1399)","v":""},{"$f":"IF('1. Ordersheet'!BL1399=\"\",\"\",'1. Ordersheet'!BL1399)","v":""}]
[{"$f":"IF('1. Ordersheet'!F1400=\"\",\"\",'1. Ordersheet'!F1400)","v":""},{"$f":"IF('1. Ordersheet'!G1400=\"\",\"\",'1. Ordersheet'!G1400)","v":""},{"$f":"IF('1. Ordersheet'!H1400=\"\",\"\",'1. Ordersheet'!H1400)","v":""},{"$f":"IF('1. Ordersheet'!I1400=\"\",\"\",'1. Ordersheet'!I1400)","v":""},{"$f":"IF('1. Ordersheet'!J1400=\"\",\"\",'1. Ordersheet'!J1400)","v":""},{"$f":"IF('1. Ordersheet'!K1400=\"\",\"\",'1. Ordersheet'!K1400)","v":""},{"$f":"IF('1. Ordersheet'!L1400=\"\",\"\",'1. Ordersheet'!L1400)","v":""},{"$f":"IF('1. Ordersheet'!M1400=\"\",\"\",'1. Ordersheet'!M1400)","v":""},{"$f":"IF('1. Ordersheet'!N1400=\"\",\"\",'1. Ordersheet'!N1400)","v":""},{"$f":"IF('1. Ordersheet'!O1400=\"\",\"\",'1. Ordersheet'!O1400)","v":{"$error":"#N/A"}},{"$f":"IF('1. Ordersheet'!P1400=\"\",\"\",'1. Ordersheet'!P1400)","v":{"$error":"#N/A"}},{"$f":"IF('1. Ordersheet'!Q1400=\"\",\"\",'1. Ordersheet'!Q1400)","v":""},{"$f":"IF('1. Ordersheet'!R1400=\"\",\"\",'1. Ordersheet'!R1400)","v":""},{"$f":"IF('1. Ordersheet'!S1400=\"\",\"\",'1. Ordersheet'!S1400)","v":""},{"$f":"IF('1. Ordersheet'!V1400=\"\",\"\",'1. Ordersheet'!V1400)","v":""},{"$f":"IF('1. Ordersheet'!W1400=\"\",\"\",'1. Ordersheet'!W1400)","v":""},{"$f":"IF('1. Ordersheet'!X1400=\"\",\"\",'1. Ordersheet'!X1400)","v":""},{"$f":"IF('1. Ordersheet'!Y1400=\"\",\"\",'1. Ordersheet'!Y1400)","v":""},{"$f":"IF('1. Ordersheet'!Z1400=\"\",\"\",'1. Ordersheet'!Z1400)","v":""},{"$f":"IF('1. Ordersheet'!AA1400=\"\",\"\",'1. Ordersheet'!AA1400)","v":""},null,{"$f":"IF('1. Ordersheet'!AS1400=\"\",\"\",'1. Ordersheet'!AS1400)","v":""},{"$f":"IF('1. Ordersheet'!AT1400=\"\",\"\",'1. Ordersheet'!AT1400)","v":""},null,null,null,null,null,null,null,{"$f":"IF('1. Ordersheet'!AX1400=\"\",\"\",'1. Ordersheet'!AX1400)","v":""},{"$f":"IF('1. Ordersheet'!AY1400=\"\",\"\",'1. Ordersheet'!AY1400)","v":""},{"$f":"IF('1. Ordersheet'!AZ1400=\"\",\"\",'1. Ordersheet'!AZ1400)","v":""},{"$f":"IF('1. Ordersheet'!BA1400=\"\",\"\",'1. Ordersheet'!BA1400)","v":""},{"$f":"IF('1. Ordersheet'!BC1400=\"\",\"\",'1. Ordersheet'!BC1400)","v":""},{"$f":"IF('1. Ordersheet'!BD1400=\"\",\"\",'1. Ordersheet'!BD1400)","v":""},{"$f":"IF('1. Ordersheet'!BE1400=\"\",\"\",'1. Ordersheet'!BE1400)","v":""},{"$f":"IF('1. Ordersheet'!BF1400=\"\",\"\",'1. Ordersheet'!BF1400)","v":""},{"$f":"IF('1. Ordersheet'!BG1400=\"\",\"\",'1. Ordersheet'!BG1400)","v":"ZWO"},{"$f":"IF('1. Ordersheet'!BH1400=\"\",\"\",'1. Ordersheet'!BH1400)","v":""},{"$f":"IF('1. Ordersheet'!BI1400=\"\",\"\",'1. Ordersheet'!BI1400)","v":""},{"$f":"IF('1. Ordersheet'!BJ1400=\"\",\"\",'1. Ordersheet'!BJ1400)","v":""},{"$f":"IF('1. Ordersheet'!BK1400=\"\",\"\",'1. Ordersheet'!BK1400)","v":""},{"$f":"IF('1. Ordersheet'!BL1400=\"\",\"\",'1. Ordersheet'!BL1400)","v":""}]
[{"$f":"IF('1. Ordersheet'!F1401=\"\",\"\",'1. Ordersheet'!F1401)","v":""},{"$f":"IF('1. Ordersheet'!G1401=\"\",\"\",'1. Ordersheet'!G1401)","v":""},{"$f":"IF('1. Ordersheet'!H1401=\"\",\"\",'1. Ordersheet'!H1401)","v":""},{"$f":"IF('1. Ordersheet'!I1401=\"\",\"\",'1. Ordersheet'!I1401)","v":""},{"$f":"IF('1. Ordersheet'!J1401=\"\",\"\",'1. Ordersheet'!J1401)","v":""},{"$f":"IF('1. Ordersheet'!K1401=\"\",\"\",'1. Ordersheet'!K1401)","v":""},{"$f":"IF('1. Ordersheet'!L1401=\"\",\"\",'1. Ordersheet'!L1401)","v":""},{"$f":"IF('1. Ordersheet'!M1401=\"\",\"\",'1. Ordersheet'!M1401)","v":""},{"$f":"IF('1. Ordersheet'!N1401=\"\",\"\",'1. Ordersheet'!N1401)","v":""},{"$f":"IF('1. Ordersheet'!O1401=\"\",\"\",'1. Ordersheet'!O1401)","v":{"$error":"#N/A"}},{"$f":"IF('1. Ordersheet'!P1401=\"\",\"\",'1. Ordersheet'!P1401)","v":{"$error":"#N/A"}},{"$f":"IF('1. Ordersheet'!Q1401=\"\",\"\",'1. Ordersheet'!Q1401)","v":""},{"$f":"IF('1. Ordersheet'!R1401=\"\",\"\",'1. Ordersheet'!R1401)","v":""},{"$f":"IF('1. Ordersheet'!S1401=\"\",\"\",'1. Ordersheet'!S1401)","v":""},{"$f":"IF('1. Ordersheet'!V1401=\"\",\"\",'1. Ordersheet'!V1401)","v":""},{"$f":"IF('1. Ordersheet'!W1401=\"\",\"\",'1. Ordersheet'!W1401)","v":""},{"$f":"IF('1. Ordersheet'!X1401=\"\",\"\",'1. Ordersheet'!X1401)","v":""},{"$f":"IF('1. Ordersheet'!Y1401=\"\",\"\",'1. Ordersheet'!Y1401)","v":""},{"$f":"IF('1. Ordersheet'!Z1401=\"\",\"\",'1. Ordersheet'!Z1401)","v":""},{"$f":"IF('1. Ordersheet'!AA1401=\"\",\"\",'1. Ordersheet'!AA1401)","v":""},null,{"$f":"IF('1. Ordersheet'!AS1401=\"\",\"\",'1. Ordersheet'!AS1401)","v":""},{"$f":"IF('1. Ordersheet'!AT1401=\"\",\"\",'1. Ordersheet'!AT1401)","v":""},null,null,null,null,null,null,null,{"$f":"IF('1. Ordersheet'!AX1401=\"\",\"\",'1. Ordersheet'!AX1401)","v":""},{"$f":"IF('1. Ordersheet'!AY1401=\"\",\"\",'1. Ordersheet'!AY1401)","v":""},{"$f":"IF('1. Ordersheet'!AZ1401=\"\",\"\",'1. Ordersheet'!AZ1401)","v":""},{"$f":"IF('1. Ordersheet'!BA1401=\"\",\"\",'1. Ordersheet'!BA1401)","v":""},{"$f":"IF('1. Ordersheet'!BC1401=\"\",\"\",'1. Ordersheet'!BC1401)","v":""},{"$f":"IF('1. Ordersheet'!BD1401=\"\",\"\",'1. Ordersheet'!BD1401)","v":""},{"$f":"IF('1. Ordersheet'!BE1401=\"\",\"\",'1. Ordersheet'!BE1401)","v":""},{"$f":"IF('1. Ordersheet'!BF1401=\"\",\"\",'1. Ordersheet'!BF1401)","v":""},{"$f":"IF('1. Ordersheet'!BG1401=\"\",\"\",'1. Ordersheet'!BG1401)","v":"ZWO"},{"$f":"IF('1. Ordersheet'!BH1401=\"\",\"\",'1. Ordersheet'!BH1401)","v":""},{"$f":"IF('1. Ordersheet'!BI1401=\"\",\"\",'1. Ordersheet'!BI1401)","v":""},{"$f":"IF('1. Ordersheet'!BJ1401=\"\",\"\",'1. Ordersheet'!BJ1401)","v":""},{"$f":"IF('1. Ordersheet'!BK1401=\"\",\"\",'1. Ordersheet'!BK1401)","v":""},{"$f":"IF('1. Ordersheet'!BL1401=\"\",\"\",'1. Ordersheet'!BL1401)","v":""}]
[{"$f":"IF('1. Ordersheet'!F1402=\"\",\"\",'1. Ordersheet'!F1402)","v":""},{"$f":"IF('1. Ordersheet'!G1402=\"\",\"\",'1. Ordersheet'!G1402)","v":""},{"$f":"IF('1. Ordersheet'!H1402=\"\",\"\",'1. Ordersheet'!H1402)","v":""},{"$f":"IF('1. Ordersheet'!I1402=\"\",\"\",'1. Ordersheet'!I1402)","v":""},{"$f":"IF('1. Ordersheet'!J1402=\"\",\"\",'1. Ordersheet'!J1402)","v":""},{"$f":"IF('1. Ordersheet'!K1402=\"\",\"\",'1. Ordersheet'!K1402)","v":""},{"$f":"IF('1. Ordersheet'!L1402=\"\",\"\",'1. Ordersheet'!L1402)","v":""},{"$f":"IF('1. Ordersheet'!M1402=\"\",\"\",'1. Ordersheet'!M1402)","v":""},{"$f":"IF('1. Ordersheet'!N1402=\"\",\"\",'1. Ordersheet'!N1402)","v":""},{"$f":"IF('1. Ordersheet'!O1402=\"\",\"\",'1. Ordersheet'!O1402)","v":{"$error":"#N/A"}},{"$f":"IF('1. Ordersheet'!P1402=\"\",\"\",'1. Ordersheet'!P1402)","v":{"$error":"#N/A"}},{"$f":"IF('1. Ordersheet'!Q1402=\"\",\"\",'1. Ordersheet'!Q1402)","v":""},{"$f":"IF('1. Ordersheet'!R1402=\"\",\"\",'1. Ordersheet'!R1402)","v":""},{"$f":"IF('1. Ordersheet'!S1402=\"\",\"\",'1. Ordersheet'!S1402)","v":""},{"$f":"IF('1. Ordersheet'!V1402=\"\",\"\",'1. Ordersheet'!V1402)","v":""},{"$f":"IF('1. Ordersheet'!W1402=\"\",\"\",'1. Ordersheet'!W1402)","v":""},{"$f":"IF('1. Ordersheet'!X1402=\"\",\"\",'1. Ordersheet'!X1402)","v":""},{"$f":"IF('1. Ordersheet'!Y1402=\"\",\"\",'1. Ordersheet'!Y1402)","v":""},{"$f":"IF('1. Ordersheet'!Z1402=\"\",\"\",'1. Ordersheet'!Z1402)","v":""},{"$f":"IF('1. Ordersheet'!AA1402=\"\",\"\",'1. Ordersheet'!AA1402)","v":""},null,{"$f":"IF('1. Ordersheet'!AS1402=\"\",\"\",'1. Ordersheet'!AS1402)","v":""},{"$f":"IF('1. Ordersheet'!AT1402=\"\",\"\",'1. Ordersheet'!AT1402)","v":""},null,null,null,null,null,null,null,{"$f":"IF('1. Ordersheet'!AX1402=\"\",\"\",'1. Ordersheet'!AX1402)","v":""},{"$f":"IF('1. Ordersheet'!AY1402=\"\",\"\",'1. Ordersheet'!AY1402)","v":""},{"$f":"IF('1. Ordersheet'!AZ1402=\"\",\"\",'1. Ordersheet'!AZ1402)","v":""},{"$f":"IF('1. Ordersheet'!BA1402=\"\",\"\",'1. Ordersheet'!BA1402)","v":""},{"$f":"IF('1. Ordersheet'!BC1402=\"\",\"\",'1. Ordersheet'!BC1402)","v":""},{"$f":"IF('1. Ordersheet'!BD1402=\"\",\"\",'1. Ordersheet'!BD1402)","v":""},{"$f":"IF('1. Ordersheet'!BE1402=\"\",\"\",'1. Ordersheet'!BE1402)","v":""},{"$f":"IF('1. Ordersheet'!BF1402=\"\",\"\",'1. Ordersheet'!BF1402)","v":""},{"$f":"IF('1. Ordersheet'!BG1402=\"\",\"\",'1. Ordersheet'!BG1402)","v":"ZWO"},{"$f":"IF('1. Ordersheet'!BH1402=\"\",\"\",'1. Ordersheet'!BH1402)","v":""},{"$f":"IF('1. Ordersheet'!BI1402=\"\",\"\",'1. Ordersheet'!BI1402)","v":""},{"$f":"IF('1. Ordersheet'!BJ1402=\"\",\"\",'1. Ordersheet'!BJ1402)","v":""},{"$f":"IF('1. Ordersheet'!BK1402=\"\",\"\",'1. Ordersheet'!BK1402)","v":""},{"$f":"IF('1. Ordersheet'!BL1402=\"\",\"\",'1. Ordersheet'!BL1402)","v":""}]
[{"$f":"IF('1. Ordersheet'!F1403=\"\",\"\",'1. Ordersheet'!F1403)","v":""},{"$f":"IF('1. Ordersheet'!G1403=\"\",\"\",'1. Ordersheet'!G1403)","v":""},{"$f":"IF('1. Ordersheet'!H1403=\"\",\"\",'1. Ordersheet'!H1403)","v":""},{"$f":"IF('1. Ordersheet'!I1403=\"\",\"\",'1. Ordersheet'!I1403)","v":""},{"$f":"IF('1. Ordersheet'!J1403=\"\",\"\",'1. Ordersheet'!J1403)","v":""},{"$f":"IF('1. Ordersheet'!K1403=\"\",\"\",'1. Ordersheet'!K1403)","v":""},{"$f":"IF('1. Ordersheet'!L1403=\"\",\"\",'1. Ordersheet'!L1403)","v":""},{"$f":"IF('1. Ordersheet'!M1403=\"\",\"\",'1. Ordersheet'!M1403)","v":""},{"$f":"IF('1. Ordersheet'!N1403=\"\",\"\",'1. Ordersheet'!N1403)","v":""},{"$f":"IF('1. Ordersheet'!O1403=\"\",\"\",'1. Ordersheet'!O1403)","v":{"$error":"#N/A"}},{"$f":"IF('1. Ordersheet'!P1403=\"\",\"\",'1. Ordersheet'!P1403)","v":{"$error":"#N/A"}},{"$f":"IF('1. Ordersheet'!Q1403=\"\",\"\",'1. Ordersheet'!Q1403)","v":""},{"$f":"IF('1. Ordersheet'!R1403=\"\",\"\",'1. Ordersheet'!R1403)","v":""},{"$f":"IF('1. Ordersheet'!S1403=\"\",\"\",'1. Ordersheet'!S1403)","v":""},{"$f":"IF('1. Ordersheet'!V1403=\"\",\"\",'1. Ordersheet'!V1403)","v":""},{"$f":"IF('1. Ordersheet'!W1403=\"\",\"\",'1. Ordersheet'!W1403)","v":""},{"$f":"IF('1. Ordersheet'!X1403=\"\",\"\",'1. Ordersheet'!X1403)","v":""},{"$f":"IF('1. Ordersheet'!Y1403=\"\",\"\",'1. Ordersheet'!Y1403)","v":""},{"$f":"IF('1. Ordersheet'!Z1403=\"\",\"\",'1. Ordersheet'!Z1403)","v":""},{"$f":"IF('1. Ordersheet'!AA1403=\"\",\"\",'1. Ordersheet'!AA1403)","v":""},null,{"$f":"IF('1. Ordersheet'!AS1403=\"\",\"\",'1. Ordersheet'!AS1403)","v":""},{"$f":"IF('1. Ordersheet'!AT1403=\"\",\"\",'1. Ordersheet'!AT1403)","v":""},null,null,null,null,null,null,null,{"$f":"IF('1. Ordersheet'!AX1403=\"\",\"\",'1. Ordersheet'!AX1403)","v":""},{"$f":"IF('1. Ordersheet'!AY1403=\"\",\"\",'1. Ordersheet'!AY1403)","v":""},{"$f":"IF('1. Ordersheet'!AZ1403=\"\",\"\",'1. Ordersheet'!AZ1403)","v":""},{"$f":"IF('1. Ordersheet'!BA1403=\"\",\"\",'1. Ordersheet'!BA1403)","v":""},{"$f":"IF('1. Ordersheet'!BC1403=\"\",\"\",'1. Ordersheet'!BC1403)","v":""},{"$f":"IF('1. Ordersheet'!BD1403=\"\",\"\",'1. Ordersheet'!BD1403)","v":""},{"$f":"IF('1. Ordersheet'!BE1403=\"\",\"\",'1. Ordersheet'!BE1403)","v":""},{"$f":"IF('1. Ordersheet'!BF1403=\"\",\"\",'1. Ordersheet'!BF1403)","v":""},{"$f":"IF('1. Ordersheet'!BG1403=\"\",\"\",'1. Ordersheet'!BG1403)","v":"ZWO"},{"$f":"IF('1. Ordersheet'!BH1403=\"\",\"\",'1. Ordersheet'!BH1403)","v":""},{"$f":"IF('1. Ordersheet'!BI1403=\"\",\"\",'1. Ordersheet'!BI1403)","v":""},{"$f":"IF('1. Ordersheet'!BJ1403=\"\",\"\",'1. Ordersheet'!BJ1403)","v":""},{"$f":"IF('1. Ordersheet'!BK1403=\"\",\"\",'1. Ordersheet'!BK1403)","v":""},{"$f":"IF('1. Ordersheet'!BL1403=\"\",\"\",'1. Ordersheet'!BL1403)","v":""}]
[{"$f":"IF('1. Ordersheet'!F1404=\"\",\"\",'1. Ordersheet'!F1404)","v":""},{"$f":"IF('1. Ordersheet'!G1404=\"\",\"\",'1. Ordersheet'!G1404)","v":""},{"$f":"IF('1. Ordersheet'!H1404=\"\",\"\",'1. Ordersheet'!H1404)","v":""},{"$f":"IF('1. Ordersheet'!I1404=\"\",\"\",'1. Ordersheet'!I1404)","v":""},{"$f":"IF('1. Ordersheet'!J1404=\"\",\"\",'1. Ordersheet'!J1404)","v":""},{"$f":"IF('1. Ordersheet'!K1404=\"\",\"\",'1. Ordersheet'!K1404)","v":""},{"$f":"IF('1. Ordersheet'!L1404=\"\",\"\",'1. Ordersheet'!L1404)","v":""},{"$f":"IF('1. Ordersheet'!M1404=\"\",\"\",'1. Ordersheet'!M1404)","v":""},{"$f":"IF('1. Ordersheet'!N1404=\"\",\"\",'1. Ordersheet'!N1404)","v":""},{"$f":"IF('1. Ordersheet'!O1404=\"\",\"\",'1. Ordersheet'!O1404)","v":{"$error":"#N/A"}},{"$f":"IF('1. Ordersheet'!P1404=\"\",\"\",'1. Ordersheet'!P1404)","v":{"$error":"#N/A"}},{"$f":"IF('1. Ordersheet'!Q1404=\"\",\"\",'1. Ordersheet'!Q1404)","v":""},{"$f":"IF('1. Ordersheet'!R1404=\"\",\"\",'1. Ordersheet'!R1404)","v":""},{"$f":"IF('1. Ordersheet'!S1404=\"\",\"\",'1. Ordersheet'!S1404)","v":""},{"$f":"IF('1. Ordersheet'!V1404=\"\",\"\",'1. Ordersheet'!V1404)","v":""},{"$f":"IF('1. Ordersheet'!W1404=\"\",\"\",'1. Ordersheet'!W1404)","v":""},{"$f":"IF('1. Ordersheet'!X1404=\"\",\"\",'1. Ordersheet'!X1404)","v":""},{"$f":"IF('1. Ordersheet'!Y1404=\"\",\"\",'1. Ordersheet'!Y1404)","v":""},{"$f":"IF('1. Ordersheet'!Z1404=\"\",\"\",'1. Ordersheet'!Z1404)","v":""},{"$f":"IF('1. Ordersheet'!AA1404=\"\",\"\",'1. Ordersheet'!AA1404)","v":""},null,{"$f":"IF('1. Ordersheet'!AS1404=\"\",\"\",'1. Ordersheet'!AS1404)","v":""},{"$f":"IF('1. Ordersheet'!AT1404=\"\",\"\",'1. Ordersheet'!AT1404)","v":""},null,null,null,null,null,null,null,{"$f":"IF('1. Ordersheet'!AX1404=\"\",\"\",'1. Ordersheet'!AX1404)","v":""},{"$f":"IF('1. Ordersheet'!AY1404=\"\",\"\",'1. Ordersheet'!AY1404)","v":""},{"$f":"IF('1. Ordersheet'!AZ1404=\"\",\"\",'1. Ordersheet'!AZ1404)","v":""},{"$f":"IF('1. Ordersheet'!BA1404=\"\",\"\",'1. Ordersheet'!BA1404)","v":""},{"$f":"IF('1. Ordersheet'!BC1404=\"\",\"\",'1. Ordersheet'!BC1404)","v":""},{"$f":"IF('1. Ordersheet'!BD1404=\"\",\"\",'1. Ordersheet'!BD1404)","v":""},{"$f":"IF('1. Ordersheet'!BE1404=\"\",\"\",'1. Ordersheet'!BE1404)","v":""},{"$f":"IF('1. Ordersheet'!BF1404=\"\",\"\",'1. Ordersheet'!BF1404)","v":""},{"$f":"IF('1. Ordersheet'!BG1404=\"\",\"\",'1. Ordersheet'!BG1404)","v":"ZWO"},{"$f":"IF('1. Ordersheet'!BH1404=\"\",\"\",'1. Ordersheet'!BH1404)","v":""},{"$f":"IF('1. Ordersheet'!BI1404=\"\",\"\",'1. Ordersheet'!BI1404)","v":""},{"$f":"IF('1. Ordersheet'!BJ1404=\"\",\"\",'1. Ordersheet'!BJ1404)","v":""},{"$f":"IF('1. Ordersheet'!BK1404=\"\",\"\",'1. Ordersheet'!BK1404)","v":""},{"$f":"IF('1. Ordersheet'!BL1404=\"\",\"\",'1. Ordersheet'!BL1404)","v":""}]
[{"$f":"IF('1. Ordersheet'!F1405=\"\",\"\",'1. Ordersheet'!F1405)","v":""},{"$f":"IF('1. Ordersheet'!G1405=\"\",\"\",'1. Ordersheet'!G1405)","v":""},{"$f":"IF('1. Ordersheet'!H1405=\"\",\"\",'1. Ordersheet'!H1405)","v":""},{"$f":"IF('1. Ordersheet'!I1405=\"\",\"\",'1. Ordersheet'!I1405)","v":""},{"$f":"IF('1. Ordersheet'!J1405=\"\",\"\",'1. Ordersheet'!J1405)","v":""},{"$f":"IF('1. Ordersheet'!K1405=\"\",\"\",'1. Ordersheet'!K1405)","v":""},{"$f":"IF('1. Ordersheet'!L1405=\"\",\"\",'1. Ordersheet'!L1405)","v":""},{"$f":"IF('1. Ordersheet'!M1405=\"\",\"\",'1. Ordersheet'!M1405)","v":""},{"$f":"IF('1. Ordersheet'!N1405=\"\",\"\",'1. Ordersheet'!N1405)","v":""},{"$f":"IF('1. Ordersheet'!O1405=\"\",\"\",'1. Ordersheet'!O1405)","v":{"$error":"#N/A"}},{"$f":"IF('1. Ordersheet'!P1405=\"\",\"\",'1. Ordersheet'!P1405)","v":{"$error":"#N/A"}},{"$f":"IF('1. Ordersheet'!Q1405=\"\",\"\",'1. Ordersheet'!Q1405)","v":""},{"$f":"IF('1. Ordersheet'!R1405=\"\",\"\",'1. Ordersheet'!R1405)","v":""},{"$f":"IF('1. Ordersheet'!S1405=\"\",\"\",'1. Ordersheet'!S1405)","v":""},{"$f":"IF('1. Ordersheet'!V1405=\"\",\"\",'1. Ordersheet'!V1405)","v":""},{"$f":"IF('1. Ordersheet'!W1405=\"\",\"\",'1. Ordersheet'!W1405)","v":""},{"$f":"IF('1. Ordersheet'!X1405=\"\",\"\",'1. Ordersheet'!X1405)","v":""},{"$f":"IF('1. Ordersheet'!Y1405=\"\",\"\",'1. Ordersheet'!Y1405)","v":""},{"$f":"IF('1. Ordersheet'!Z1405=\"\",\"\",'1. Ordersheet'!Z1405)","v":""},{"$f":"IF('1. Ordersheet'!AA1405=\"\",\"\",'1. Ordersheet'!AA1405)","v":""},null,{"$f":"IF('1. Ordersheet'!AS1405=\"\",\"\",'1. Ordersheet'!AS1405)","v":""},{"$f":"IF('1. Ordersheet'!AT1405=\"\",\"\",'1. Ordersheet'!AT1405)","v":""},null,null,null,null,null,null,null,{"$f":"IF('1. Ordersheet'!AX1405=\"\",\"\",'1. Ordersheet'!AX1405)","v":""},{"$f":"IF('1. Ordersheet'!AY1405=\"\",\"\",'1. Ordersheet'!AY1405)","v":""},{"$f":"IF('1. Ordersheet'!AZ1405=\"\",\"\",'1. Ordersheet'!AZ1405)","v":""},{"$f":"IF('1. Ordersheet'!BA1405=\"\",\"\",'1. Ordersheet'!BA1405)","v":""},{"$f":"IF('1. Ordersheet'!BC1405=\"\",\"\",'1. Ordersheet'!BC1405)","v":""},{"$f":"IF('1. Ordersheet'!BD1405=\"\",\"\",'1. Ordersheet'!BD1405)","v":""},{"$f":"IF('1. Ordersheet'!BE1405=\"\",\"\",'1. Ordersheet'!BE1405)","v":""},{"$f":"IF('1. Ordersheet'!BF1405=\"\",\"\",'1. Ordersheet'!BF1405)","v":""},{"$f":"IF('1. Ordersheet'!BG1405=\"\",\"\",'1. Ordersheet'!BG1405)","v":"ZWO"},{"$f":"IF('1. Ordersheet'!BH1405=\"\",\"\",'1. Ordersheet'!BH1405)","v":""},{"$f":"IF('1. Ordersheet'!BI1405=\"\",\"\",'1. Ordersheet'!BI1405)","v":""},{"$f":"IF('1. Ordersheet'!BJ1405=\"\",\"\",'1. Ordersheet'!BJ1405)","v":""},{"$f":"IF('1. Ordersheet'!BK1405=\"\",\"\",'1. Ordersheet'!BK1405)","v":""},{"$f":"IF('1. Ordersheet'!BL1405=\"\",\"\",'1. Ordersheet'!BL1405)","v":""}]
[{"$f":"IF('1. Ordersheet'!F1406=\"\",\"\",'1. Ordersheet'!F1406)","v":""},{"$f":"IF('1. Ordersheet'!G1406=\"\",\"\",'1. Ordersheet'!G1406)","v":""},{"$f":"IF('1. Ordersheet'!H1406=\"\",\"\",'1. Ordersheet'!H1406)","v":""},{"$f":"IF('1. Ordersheet'!I1406=\"\",\"\",'1. Ordersheet'!I1406)","v":""},{"$f":"IF('1. Ordersheet'!J1406=\"\",\"\",'1. Ordersheet'!J1406)","v":""},{"$f":"IF('1. Ordersheet'!K1406=\"\",\"\",'1. Ordersheet'!K1406)","v":""},{"$f":"IF('1. Ordersheet'!L1406=\"\",\"\",'1. Ordersheet'!L1406)","v":""},{"$f":"IF('1. Ordersheet'!M1406=\"\",\"\",'1. Ordersheet'!M1406)","v":""},{"$f":"IF('1. Ordersheet'!N1406=\"\",\"\",'1. Ordersheet'!N1406)","v":""},{"$f":"IF('1. Ordersheet'!O1406=\"\",\"\",'1. Ordersheet'!O1406)","v":{"$error":"#N/A"}},{"$f":"IF('1. Ordersheet'!P1406=\"\",\"\",'1. Ordersheet'!P1406)","v":{"$error":"#N/A"}},{"$f":"IF('1. Ordersheet'!Q1406=\"\",\"\",'1. Ordersheet'!Q1406)","v":""},{"$f":"IF('1. Ordersheet'!R1406=\"\",\"\",'1. Ordersheet'!R1406)","v":""},{"$f":"IF('1. Ordersheet'!S1406=\"\",\"\",'1. Ordersheet'!S1406)","v":""},{"$f":"IF('1. Ordersheet'!V1406=\"\",\"\",'1. Ordersheet'!V1406)","v":""},{"$f":"IF('1. Ordersheet'!W1406=\"\",\"\",'1. Ordersheet'!W1406)","v":""},{"$f":"IF('1. Ordersheet'!X1406=\"\",\"\",'1. Ordersheet'!X1406)","v":""},{"$f":"IF('1. Ordersheet'!Y1406=\"\",\"\",'1. Ordersheet'!Y1406)","v":""},{"$f":"IF('1. Ordersheet'!Z1406=\"\",\"\",'1. Ordersheet'!Z1406)","v":""},{"$f":"IF('1. Ordersheet'!AA1406=\"\",\"\",'1. Ordersheet'!AA1406)","v":""},null,{"$f":"IF('1. Ordersheet'!AS1406=\"\",\"\",'1. Ordersheet'!AS1406)","v":""},{"$f":"IF('1. Ordersheet'!AT1406=\"\",\"\",'1. Ordersheet'!AT1406)","v":""},null,null,null,null,null,null,null,{"$f":"IF('1. Ordersheet'!AX1406=\"\",\"\",'1. Ordersheet'!AX1406)","v":""},{"$f":"IF('1. Ordersheet'!AY1406=\"\",\"\",'1. Ordersheet'!AY1406)","v":""},{"$f":"IF('1. Ordersheet'!AZ1406=\"\",\"\",'1. Ordersheet'!AZ1406)","v":""},{"$f":"IF('1. Ordersheet'!BA1406=\"\",\"\",'1. Ordersheet'!BA1406)","v":""},{"$f":"IF('1. Ordersheet'!BC1406=\"\",\"\",'1. Ordersheet'!BC1406)","v":""},{"$f":"IF('1. Ordersheet'!BD1406=\"\",\"\",'1. Ordersheet'!BD1406)","v":""},{"$f":"IF('1. Ordersheet'!BE1406=\"\",\"\",'1. Ordersheet'!BE1406)","v":""},{"$f":"IF('1. Ordersheet'!BF1406=\"\",\"\",'1. Ordersheet'!BF1406)","v":""},{"$f":"IF('1. Ordersheet'!BG1406=\"\",\"\",'1. Ordersheet'!BG1406)","v":"ZWO"},{"$f":"IF('1. Ordersheet'!BH1406=\"\",\"\",'1. Ordersheet'!BH1406)","v":""},{"$f":"IF('1. Ordersheet'!BI1406=\"\",\"\",'1. Ordersheet'!BI1406)","v":""},{"$f":"IF('1. Ordersheet'!BJ1406=\"\",\"\",'1. Ordersheet'!BJ1406)","v":""},{"$f":"IF('1. Ordersheet'!BK1406=\"\",\"\",'1. Ordersheet'!BK1406)","v":""},{"$f":"IF('1. Ordersheet'!BL1406=\"\",\"\",'1. Ordersheet'!BL1406)","v":""}]
[{"$f":"IF('1. Ordersheet'!F1407=\"\",\"\",'1. Ordersheet'!F1407)","v":""},{"$f":"IF('1. Ordersheet'!G1407=\"\",\"\",'1. Ordersheet'!G1407)","v":""},{"$f":"IF('1. Ordersheet'!H1407=\"\",\"\",'1. Ordersheet'!H1407)","v":""},{"$f":"IF('1. Ordersheet'!I1407=\"\",\"\",'1. Ordersheet'!I1407)","v":""},{"$f":"IF('1. Ordersheet'!J1407=\"\",\"\",'1. Ordersheet'!J1407)","v":""},{"$f":"IF('1. Ordersheet'!K1407=\"\",\"\",'1. Ordersheet'!K1407)","v":""},{"$f":"IF('1. Ordersheet'!L1407=\"\",\"\",'1. Ordersheet'!L1407)","v":""},{"$f":"IF('1. Ordersheet'!M1407=\"\",\"\",'1. Ordersheet'!M1407)","v":""},{"$f":"IF('1. Ordersheet'!N1407=\"\",\"\",'1. Ordersheet'!N1407)","v":""},{"$f":"IF('1. Ordersheet'!O1407=\"\",\"\",'1. Ordersheet'!O1407)","v":{"$error":"#N/A"}},{"$f":"IF('1. Ordersheet'!P1407=\"\",\"\",'1. Ordersheet'!P1407)","v":{"$error":"#N/A"}},{"$f":"IF('1. Ordersheet'!Q1407=\"\",\"\",'1. Ordersheet'!Q1407)","v":""},{"$f":"IF('1. Ordersheet'!R1407=\"\",\"\",'1. Ordersheet'!R1407)","v":""},{"$f":"IF('1. Ordersheet'!S1407=\"\",\"\",'1. Ordersheet'!S1407)","v":""},{"$f":"IF('1. Ordersheet'!V1407=\"\",\"\",'1. Ordersheet'!V1407)","v":""},{"$f":"IF('1. Ordersheet'!W1407=\"\",\"\",'1. Ordersheet'!W1407)","v":""},{"$f":"IF('1. Ordersheet'!X1407=\"\",\"\",'1. Ordersheet'!X1407)","v":""},{"$f":"IF('1. Ordersheet'!Y1407=\"\",\"\",'1. Ordersheet'!Y1407)","v":""},{"$f":"IF('1. Ordersheet'!Z1407=\"\",\"\",'1. Ordersheet'!Z1407)","v":""},{"$f":"IF('1. Ordersheet'!AA1407=\"\",\"\",'1. Ordersheet'!AA1407)","v":""},null,{"$f":"IF('1. Ordersheet'!AS1407=\"\",\"\",'1. Ordersheet'!AS1407)","v":""},{"$f":"IF('1. Ordersheet'!AT1407=\"\",\"\",'1. Ordersheet'!AT1407)","v":""},null,null,null,null,null,null,null,{"$f":"IF('1. Ordersheet'!AX1407=\"\",\"\",'1. Ordersheet'!AX1407)","v":""},{"$f":"IF('1. Ordersheet'!AY1407=\"\",\"\",'1. Ordersheet'!AY1407)","v":""},{"$f":"IF('1. Ordersheet'!AZ1407=\"\",\"\",'1. Ordersheet'!AZ1407)","v":""},{"$f":"IF('1. Ordersheet'!BA1407=\"\",\"\",'1. Ordersheet'!BA1407)","v":""},{"$f":"IF('1. Ordersheet'!BC1407=\"\",\"\",'1. Ordersheet'!BC1407)","v":""},{"$f":"IF('1. Ordersheet'!BD1407=\"\",\"\",'1. Ordersheet'!BD1407)","v":""},{"$f":"IF('1. Ordersheet'!BE1407=\"\",\"\",'1. Ordersheet'!BE1407)","v":""},{"$f":"IF('1. Ordersheet'!BF1407=\"\",\"\",'1. Ordersheet'!BF1407)","v":""},{"$f":"IF('1. Ordersheet'!BG1407=\"\",\"\",'1. Ordersheet'!BG1407)","v":"ZWO"},{"$f":"IF('1. Ordersheet'!BH1407=\"\",\"\",'1. Ordersheet'!BH1407)","v":""},{"$f":"IF('1. Ordersheet'!BI1407=\"\",\"\",'1. Ordersheet'!BI1407)","v":""},{"$f":"IF('1. Ordersheet'!BJ1407=\"\",\"\",'1. Ordersheet'!BJ1407)","v":""},{"$f":"IF('1. Ordersheet'!BK1407=\"\",\"\",'1. Ordersheet'!BK1407)","v":""},{"$f":"IF('1. Ordersheet'!BL1407=\"\",\"\",'1. Ordersheet'!BL1407)","v":""}]
[{"$f":"IF('1. Ordersheet'!F1408=\"\",\"\",'1. Ordersheet'!F1408)","v":""},{"$f":"IF('1. Ordersheet'!G1408=\"\",\"\",'1. Ordersheet'!G1408)","v":""},{"$f":"IF('1. Ordersheet'!H1408=\"\",\"\",'1. Ordersheet'!H1408)","v":""},{"$f":"IF('1. Ordersheet'!I1408=\"\",\"\",'1. Ordersheet'!I1408)","v":""},{"$f":"IF('1. Ordersheet'!J1408=\"\",\"\",'1. Ordersheet'!J1408)","v":""},{"$f":"IF('1. Ordersheet'!K1408=\"\",\"\",'1. Ordersheet'!K1408)","v":""},{"$f":"IF('1. Ordersheet'!L1408=\"\",\"\",'1. Ordersheet'!L1408)","v":""},{"$f":"IF('1. Ordersheet'!M1408=\"\",\"\",'1. Ordersheet'!M1408)","v":""},{"$f":"IF('1. Ordersheet'!N1408=\"\",\"\",'1. Ordersheet'!N1408)","v":""},{"$f":"IF('1. Ordersheet'!O1408=\"\",\"\",'1. Ordersheet'!O1408)","v":{"$error":"#N/A"}},{"$f":"IF('1. Ordersheet'!P1408=\"\",\"\",'1. Ordersheet'!P1408)","v":{"$error":"#N/A"}},{"$f":"IF('1. Ordersheet'!Q1408=\"\",\"\",'1. Ordersheet'!Q1408)","v":""},{"$f":"IF('1. Ordersheet'!R1408=\"\",\"\",'1. Ordersheet'!R1408)","v":""},{"$f":"IF('1. Ordersheet'!S1408=\"\",\"\",'1. Ordersheet'!S1408)","v":""},{"$f":"IF('1. Ordersheet'!V1408=\"\",\"\",'1. Ordersheet'!V1408)","v":""},{"$f":"IF('1. Ordersheet'!W1408=\"\",\"\",'1. Ordersheet'!W1408)","v":""},{"$f":"IF('1. Ordersheet'!X1408=\"\",\"\",'1. Ordersheet'!X1408)","v":""},{"$f":"IF('1. Ordersheet'!Y1408=\"\",\"\",'1. Ordersheet'!Y1408)","v":""},{"$f":"IF('1. Ordersheet'!Z1408=\"\",\"\",'1. Ordersheet'!Z1408)","v":""},{"$f":"IF('1. Ordersheet'!AA1408=\"\",\"\",'1. Ordersheet'!AA1408)","v":""},null,{"$f":"IF('1. Ordersheet'!AS1408=\"\",\"\",'1. Ordersheet'!AS1408)","v":""},{"$f":"IF('1. Ordersheet'!AT1408=\"\",\"\",'1. Ordersheet'!AT1408)","v":""},null,null,null,null,null,null,null,{"$f":"IF('1. Ordersheet'!AX1408=\"\",\"\",'1. Ordersheet'!AX1408)","v":""},{"$f":"IF('1. Ordersheet'!AY1408=\"\",\"\",'1. Ordersheet'!AY1408)","v":""},{"$f":"IF('1. Ordersheet'!AZ1408=\"\",\"\",'1. Ordersheet'!AZ1408)","v":""},{"$f":"IF('1. Ordersheet'!BA1408=\"\",\"\",'1. Ordersheet'!BA1408)","v":""},{"$f":"IF('1. Ordersheet'!BC1408=\"\",\"\",'1. Ordersheet'!BC1408)","v":""},{"$f":"IF('1. Ordersheet'!BD1408=\"\",\"\",'1. Ordersheet'!BD1408)","v":""},{"$f":"IF('1. Ordersheet'!BE1408=\"\",\"\",'1. Ordersheet'!BE1408)","v":""},{"$f":"IF('1. Ordersheet'!BF1408=\"\",\"\",'1. Ordersheet'!BF1408)","v":""},{"$f":"IF('1. Ordersheet'!BG1408=\"\",\"\",'1. Ordersheet'!BG1408)","v":"ZWO"},{"$f":"IF('1. Ordersheet'!BH1408=\"\",\"\",'1. Ordersheet'!BH1408)","v":""},{"$f":"IF('1. Ordersheet'!BI1408=\"\",\"\",'1. Ordersheet'!BI1408)","v":""},{"$f":"IF('1. Ordersheet'!BJ1408=\"\",\"\",'1. Ordersheet'!BJ1408)","v":""},{"$f":"IF('1. Ordersheet'!BK1408=\"\",\"\",'1. Ordersheet'!BK1408)","v":""},{"$f":"IF('1. Ordersheet'!BL1408=\"\",\"\",'1. Ordersheet'!BL1408)","v":""}]
[{"$f":"IF('1. Ordersheet'!F1409=\"\",\"\",'1. Ordersheet'!F1409)","v":""},{"$f":"IF('1. Ordersheet'!G1409=\"\",\"\",'1. Ordersheet'!G1409)","v":""},{"$f":"IF('1. Ordersheet'!H1409=\"\",\"\",'1. Ordersheet'!H1409)","v":""},{"$f":"IF('1. Ordersheet'!I1409=\"\",\"\",'1. Ordersheet'!I1409)","v":""},{"$f":"IF('1. Ordersheet'!J1409=\"\",\"\",'1. Ordersheet'!J1409)","v":""},{"$f":"IF('1. Ordersheet'!K1409=\"\",\"\",'1. Ordersheet'!K1409)","v":""},{"$f":"IF('1. Ordersheet'!L1409=\"\",\"\",'1. Ordersheet'!L1409)","v":""},{"$f":"IF('1. Ordersheet'!M1409=\"\",\"\",'1. Ordersheet'!M1409)","v":""},{"$f":"IF('1. Ordersheet'!N1409=\"\",\"\",'1. Ordersheet'!N1409)","v":""},{"$f":"IF('1. Ordersheet'!O1409=\"\",\"\",'1. Ordersheet'!O1409)","v":{"$error":"#N/A"}},{"$f":"IF('1. Ordersheet'!P1409=\"\",\"\",'1. Ordersheet'!P1409)","v":{"$error":"#N/A"}},{"$f":"IF('1. Ordersheet'!Q1409=\"\",\"\",'1. Ordersheet'!Q1409)","v":""},{"$f":"IF('1. Ordersheet'!R1409=\"\",\"\",'1. Ordersheet'!R1409)","v":""},{"$f":"IF('1. Ordersheet'!S1409=\"\",\"\",'1. Ordersheet'!S1409)","v":""},{"$f":"IF('1. Ordersheet'!V1409=\"\",\"\",'1. Ordersheet'!V1409)","v":""},{"$f":"IF('1. Ordersheet'!W1409=\"\",\"\",'1. Ordersheet'!W1409)","v":""},{"$f":"IF('1. Ordersheet'!X1409=\"\",\"\",'1. Ordersheet'!X1409)","v":""},{"$f":"IF('1. Ordersheet'!Y1409=\"\",\"\",'1. Ordersheet'!Y1409)","v":""},{"$f":"IF('1. Ordersheet'!Z1409=\"\",\"\",'1. Ordersheet'!Z1409)","v":""},{"$f":"IF('1. Ordersheet'!AA1409=\"\",\"\",'1. Ordersheet'!AA1409)","v":""},null,{"$f":"IF('1. Ordersheet'!AS1409=\"\",\"\",'1. Ordersheet'!AS1409)","v":""},{"$f":"IF('1. Ordersheet'!AT1409=\"\",\"\",'1. Ordersheet'!AT1409)","v":""},null,null,null,null,null,null,null,{"$f":"IF('1. Ordersheet'!AX1409=\"\",\"\",'1. Ordersheet'!AX1409)","v":""},{"$f":"IF('1. Ordersheet'!AY1409=\"\",\"\",'1. Ordersheet'!AY1409)","v":""},{"$f":"IF('1. Ordersheet'!AZ1409=\"\",\"\",'1. Ordersheet'!AZ1409)","v":""},{"$f":"IF('1. Ordersheet'!BA1409=\"\",\"\",'1. Ordersheet'!BA1409)","v":""},{"$f":"IF('1. Ordersheet'!BC1409=\"\",\"\",'1. Ordersheet'!BC1409)","v":""},{"$f":"IF('1. Ordersheet'!BD1409=\"\",\"\",'1. Ordersheet'!BD1409)","v":""},{"$f":"IF('1. Ordersheet'!BE1409=\"\",\"\",'1. Ordersheet'!BE1409)","v":""},{"$f":"IF('1. Ordersheet'!BF1409=\"\",\"\",'1. Ordersheet'!BF1409)","v":""},{"$f":"IF('1. Ordersheet'!BG1409=\"\",\"\",'1. Ordersheet'!BG1409)","v":"ZWO"},{"$f":"IF('1. Ordersheet'!BH1409=\"\",\"\",'1. Ordersheet'!BH1409)","v":""},{"$f":"IF('1. Ordersheet'!BI1409=\"\",\"\",'1. Ordersheet'!BI1409)","v":""},{"$f":"IF('1. Ordersheet'!BJ1409=\"\",\"\",'1. Ordersheet'!BJ1409)","v":""},{"$f":"IF('1. Ordersheet'!BK1409=\"\",\"\",'1. Ordersheet'!BK1409)","v":""},{"$f":"IF('1. Ordersheet'!BL1409=\"\",\"\",'1. Ordersheet'!BL1409)","v":""}]
[{"$f":"IF('1. Ordersheet'!F1410=\"\",\"\",'1. Ordersheet'!F1410)","v":""},{"$f":"IF('1. Ordersheet'!G1410=\"\",\"\",'1. Ordersheet'!G1410)","v":""},{"$f":"IF('1. Ordersheet'!H1410=\"\",\"\",'1. Ordersheet'!H1410)","v":""},{"$f":"IF('1. Ordersheet'!I1410=\"\",\"\",'1. Ordersheet'!I1410)","v":""},{"$f":"IF('1. Ordersheet'!J1410=\"\",\"\",'1. Ordersheet'!J1410)","v":""},{"$f":"IF('1. Ordersheet'!K1410=\"\",\"\",'1. Ordersheet'!K1410)","v":""},{"$f":"IF('1. Ordersheet'!L1410=\"\",\"\",'1. Ordersheet'!L1410)","v":""},{"$f":"IF('1. Ordersheet'!M1410=\"\",\"\",'1. Ordersheet'!M1410)","v":""},{"$f":"IF('1. Ordersheet'!N1410=\"\",\"\",'1. Ordersheet'!N1410)","v":""},{"$f":"IF('1. Ordersheet'!O1410=\"\",\"\",'1. Ordersheet'!O1410)","v":{"$error":"#N/A"}},{"$f":"IF('1. Ordersheet'!P1410=\"\",\"\",'1. Ordersheet'!P1410)","v":{"$error":"#N/A"}},{"$f":"IF('1. Ordersheet'!Q1410=\"\",\"\",'1. Ordersheet'!Q1410)","v":""},{"$f":"IF('1. Ordersheet'!R1410=\"\",\"\",'1. Ordersheet'!R1410)","v":""},{"$f":"IF('1. Ordersheet'!S1410=\"\",\"\",'1. Ordersheet'!S1410)","v":""},{"$f":"IF('1. Ordersheet'!V1410=\"\",\"\",'1. Ordersheet'!V1410)","v":""},{"$f":"IF('1. Ordersheet'!W1410=\"\",\"\",'1. Ordersheet'!W1410)","v":""},{"$f":"IF('1. Ordersheet'!X1410=\"\",\"\",'1. Ordersheet'!X1410)","v":""},{"$f":"IF('1. Ordersheet'!Y1410=\"\",\"\",'1. Ordersheet'!Y1410)","v":""},{"$f":"IF('1. Ordersheet'!Z1410=\"\",\"\",'1. Ordersheet'!Z1410)","v":""},{"$f":"IF('1. Ordersheet'!AA1410=\"\",\"\",'1. Ordersheet'!AA1410)","v":""},null,{"$f":"IF('1. Ordersheet'!AS1410=\"\",\"\",'1. Ordersheet'!AS1410)","v":""},{"$f":"IF('1. Ordersheet'!AT1410=\"\",\"\",'1. Ordersheet'!AT1410)","v":""},null,null,null,null,null,null,null,{"$f":"IF('1. Ordersheet'!AX1410=\"\",\"\",'1. Ordersheet'!AX1410)","v":""},{"$f":"IF('1. Ordersheet'!AY1410=\"\",\"\",'1. Ordersheet'!AY1410)","v":""},{"$f":"IF('1. Ordersheet'!AZ1410=\"\",\"\",'1. Ordersheet'!AZ1410)","v":""},{"$f":"IF('1. Ordersheet'!BA1410=\"\",\"\",'1. Ordersheet'!BA1410)","v":""},{"$f":"IF('1. Ordersheet'!BC1410=\"\",\"\",'1. Ordersheet'!BC1410)","v":""},{"$f":"IF('1. Ordersheet'!BD1410=\"\",\"\",'1. Ordersheet'!BD1410)","v":""},{"$f":"IF('1. Ordersheet'!BE1410=\"\",\"\",'1. Ordersheet'!BE1410)","v":""},{"$f":"IF('1. Ordersheet'!BF1410=\"\",\"\",'1. Ordersheet'!BF1410)","v":""},{"$f":"IF('1. Ordersheet'!BG1410=\"\",\"\",'1. Ordersheet'!BG1410)","v":"ZWO"},{"$f":"IF('1. Ordersheet'!BH1410=\"\",\"\",'1. Ordersheet'!BH1410)","v":""},{"$f":"IF('1. Ordersheet'!BI1410=\"\",\"\",'1. Ordersheet'!BI1410)","v":""},{"$f":"IF('1. Ordersheet'!BJ1410=\"\",\"\",'1. Ordersheet'!BJ1410)","v":""},{"$f":"IF('1. Ordersheet'!BK1410=\"\",\"\",'1. Ordersheet'!BK1410)","v":""},{"$f":"IF('1. Ordersheet'!BL1410=\"\",\"\",'1. Ordersheet'!BL1410)","v":""}]
[{"$f":"IF('1. Ordersheet'!F1411=\"\",\"\",'1. Ordersheet'!F1411)","v":""},{"$f":"IF('1. Ordersheet'!G1411=\"\",\"\",'1. Ordersheet'!G1411)","v":""},{"$f":"IF('1. Ordersheet'!H1411=\"\",\"\",'1. Ordersheet'!H1411)","v":""},{"$f":"IF('1. Ordersheet'!I1411=\"\",\"\",'1. Ordersheet'!I1411)","v":""},{"$f":"IF('1. Ordersheet'!J1411=\"\",\"\",'1. Ordersheet'!J1411)","v":""},{"$f":"IF('1. Ordersheet'!K1411=\"\",\"\",'1. Ordersheet'!K1411)","v":""},{"$f":"IF('1. Ordersheet'!L1411=\"\",\"\",'1. Ordersheet'!L1411)","v":""},{"$f":"IF('1. Ordersheet'!M1411=\"\",\"\",'1. Ordersheet'!M1411)","v":""},{"$f":"IF('1. Ordersheet'!N1411=\"\",\"\",'1. Ordersheet'!N1411)","v":""},{"$f":"IF('1. Ordersheet'!O1411=\"\",\"\",'1. Ordersheet'!O1411)","v":{"$error":"#N/A"}},{"$f":"IF('1. Ordersheet'!P1411=\"\",\"\",'1. Ordersheet'!P1411)","v":{"$error":"#N/A"}},{"$f":"IF('1. Ordersheet'!Q1411=\"\",\"\",'1. Ordersheet'!Q1411)","v":""},{"$f":"IF('1. Ordersheet'!R1411=\"\",\"\",'1. Ordersheet'!R1411)","v":""},{"$f":"IF('1. Ordersheet'!S1411=\"\",\"\",'1. Ordersheet'!S1411)","v":""},{"$f":"IF('1. Ordersheet'!V1411=\"\",\"\",'1. Ordersheet'!V1411)","v":""},{"$f":"IF('1. Ordersheet'!W1411=\"\",\"\",'1. Ordersheet'!W1411)","v":""},{"$f":"IF('1. Ordersheet'!X1411=\"\",\"\",'1. Ordersheet'!X1411)","v":""},{"$f":"IF('1. Ordersheet'!Y1411=\"\",\"\",'1. Ordersheet'!Y1411)","v":""},{"$f":"IF('1. Ordersheet'!Z1411=\"\",\"\",'1. Ordersheet'!Z1411)","v":""},{"$f":"IF('1. Ordersheet'!AA1411=\"\",\"\",'1. Ordersheet'!AA1411)","v":""},null,{"$f":"IF('1. Ordersheet'!AS1411=\"\",\"\",'1. Ordersheet'!AS1411)","v":""},{"$f":"IF('1. Ordersheet'!AT1411=\"\",\"\",'1. Ordersheet'!AT1411)","v":""},null,null,null,null,null,null,null,{"$f":"IF('1. Ordersheet'!AX1411=\"\",\"\",'1. Ordersheet'!AX1411)","v":""},{"$f":"IF('1. Ordersheet'!AY1411=\"\",\"\",'1. Ordersheet'!AY1411)","v":""},{"$f":"IF('1. Ordersheet'!AZ1411=\"\",\"\",'1. Ordersheet'!AZ1411)","v":""},{"$f":"IF('1. Ordersheet'!BA1411=\"\",\"\",'1. Ordersheet'!BA1411)","v":""},{"$f":"IF('1. Ordersheet'!BC1411=\"\",\"\",'1. Ordersheet'!BC1411)","v":""},{"$f":"IF('1. Ordersheet'!BD1411=\"\",\"\",'1. Ordersheet'!BD1411)","v":""},{"$f":"IF('1. Ordersheet'!BE1411=\"\",\"\",'1. Ordersheet'!BE1411)","v":""},{"$f":"IF('1. Ordersheet'!BF1411=\"\",\"\",'1. Ordersheet'!BF1411)","v":""},{"$f":"IF('1. Ordersheet'!BG1411=\"\",\"\",'1. Ordersheet'!BG1411)","v":"ZWO"},{"$f":"IF('1. Ordersheet'!BH1411=\"\",\"\",'1. Ordersheet'!BH1411)","v":""},{"$f":"IF('1. Ordersheet'!BI1411=\"\",\"\",'1. Ordersheet'!BI1411)","v":""},{"$f":"IF('1. Ordersheet'!BJ1411=\"\",\"\",'1. Ordersheet'!BJ1411)","v":""},{"$f":"IF('1. Ordersheet'!BK1411=\"\",\"\",'1. Ordersheet'!BK1411)","v":""},{"$f":"IF('1. Ordersheet'!BL1411=\"\",\"\",'1. Ordersheet'!BL1411)","v":""}]
[{"$f":"IF('1. Ordersheet'!F1412=\"\",\"\",'1. Ordersheet'!F1412)","v":""},{"$f":"IF('1. Ordersheet'!G1412=\"\",\"\",'1. Ordersheet'!G1412)","v":""},{"$f":"IF('1. Ordersheet'!H1412=\"\",\"\",'1. Ordersheet'!H1412)","v":""},{"$f":"IF('1. Ordersheet'!I1412=\"\",\"\",'1. Ordersheet'!I1412)","v":""},{"$f":"IF('1. Ordersheet'!J1412=\"\",\"\",'1. Ordersheet'!J1412)","v":""},{"$f":"IF('1. Ordersheet'!K1412=\"\",\"\",'1. Ordersheet'!K1412)","v":""},{"$f":"IF('1. Ordersheet'!L1412=\"\",\"\",'1. Ordersheet'!L1412)","v":""},{"$f":"IF('1. Ordersheet'!M1412=\"\",\"\",'1. Ordersheet'!M1412)","v":""},{"$f":"IF('1. Ordersheet'!N1412=\"\",\"\",'1. Ordersheet'!N1412)","v":""},{"$f":"IF('1. Ordersheet'!O1412=\"\",\"\",'1. Ordersheet'!O1412)","v":{"$error":"#N/A"}},{"$f":"IF('1. Ordersheet'!P1412=\"\",\"\",'1. Ordersheet'!P1412)","v":{"$error":"#N/A"}},{"$f":"IF('1. Ordersheet'!Q1412=\"\",\"\",'1. Ordersheet'!Q1412)","v":""},{"$f":"IF('1. Ordersheet'!R1412=\"\",\"\",'1. Ordersheet'!R1412)","v":""},{"$f":"IF('1. Ordersheet'!S1412=\"\",\"\",'1. Ordersheet'!S1412)","v":""},{"$f":"IF('1. Ordersheet'!V1412=\"\",\"\",'1. Ordersheet'!V1412)","v":""},{"$f":"IF('1. Ordersheet'!W1412=\"\",\"\",'1. Ordersheet'!W1412)","v":""},{"$f":"IF('1. Ordersheet'!X1412=\"\",\"\",'1. Ordersheet'!X1412)","v":""},{"$f":"IF('1. Ordersheet'!Y1412=\"\",\"\",'1. Ordersheet'!Y1412)","v":""},{"$f":"IF('1. Ordersheet'!Z1412=\"\",\"\",'1. Ordersheet'!Z1412)","v":""},{"$f":"IF('1. Ordersheet'!AA1412=\"\",\"\",'1. Ordersheet'!AA1412)","v":""},null,{"$f":"IF('1. Ordersheet'!AS1412=\"\",\"\",'1. Ordersheet'!AS1412)","v":""},{"$f":"IF('1. Ordersheet'!AT1412=\"\",\"\",'1. Ordersheet'!AT1412)","v":""},null,null,null,null,null,null,null,{"$f":"IF('1. Ordersheet'!AX1412=\"\",\"\",'1. Ordersheet'!AX1412)","v":""},{"$f":"IF('1. Ordersheet'!AY1412=\"\",\"\",'1. Ordersheet'!AY1412)","v":""},{"$f":"IF('1. Ordersheet'!AZ1412=\"\",\"\",'1. Ordersheet'!AZ1412)","v":""},{"$f":"IF('1. Ordersheet'!BA1412=\"\",\"\",'1. Ordersheet'!BA1412)","v":""},{"$f":"IF('1. Ordersheet'!BC1412=\"\",\"\",'1. Ordersheet'!BC1412)","v":""},{"$f":"IF('1. Ordersheet'!BD1412=\"\",\"\",'1. Ordersheet'!BD1412)","v":""},{"$f":"IF('1. Ordersheet'!BE1412=\"\",\"\",'1. Ordersheet'!BE1412)","v":""},{"$f":"IF('1. Ordersheet'!BF1412=\"\",\"\",'1. Ordersheet'!BF1412)","v":""},{"$f":"IF('1. Ordersheet'!BG1412=\"\",\"\",'1. Ordersheet'!BG1412)","v":"ZWO"},{"$f":"IF('1. Ordersheet'!BH1412=\"\",\"\",'1. Ordersheet'!BH1412)","v":""},{"$f":"IF('1. Ordersheet'!BI1412=\"\",\"\",'1. Ordersheet'!BI1412)","v":""},{"$f":"IF('1. Ordersheet'!BJ1412=\"\",\"\",'1. Ordersheet'!BJ1412)","v":""},{"$f":"IF('1. Ordersheet'!BK1412=\"\",\"\",'1. Ordersheet'!BK1412)","v":""},{"$f":"IF('1. Ordersheet'!BL1412=\"\",\"\",'1. Ordersheet'!BL1412)","v":""}]
[{"$f":"IF('1. Ordersheet'!F1413=\"\",\"\",'1. Ordersheet'!F1413)","v":""},{"$f":"IF('1. Ordersheet'!G1413=\"\",\"\",'1. Ordersheet'!G1413)","v":""},{"$f":"IF('1. Ordersheet'!H1413=\"\",\"\",'1. Ordersheet'!H1413)","v":""},{"$f":"IF('1. Ordersheet'!I1413=\"\",\"\",'1. Ordersheet'!I1413)","v":""},{"$f":"IF('1. Ordersheet'!J1413=\"\",\"\",'1. Ordersheet'!J1413)","v":""},{"$f":"IF('1. Ordersheet'!K1413=\"\",\"\",'1. Ordersheet'!K1413)","v":""},{"$f":"IF('1. Ordersheet'!L1413=\"\",\"\",'1. Ordersheet'!L1413)","v":""},{"$f":"IF('1. Ordersheet'!M1413=\"\",\"\",'1. Ordersheet'!M1413)","v":""},{"$f":"IF('1. Ordersheet'!N1413=\"\",\"\",'1. Ordersheet'!N1413)","v":""},{"$f":"IF('1. Ordersheet'!O1413=\"\",\"\",'1. Ordersheet'!O1413)","v":{"$error":"#N/A"}},{"$f":"IF('1. Ordersheet'!P1413=\"\",\"\",'1. Ordersheet'!P1413)","v":{"$error":"#N/A"}},{"$f":"IF('1. Ordersheet'!Q1413=\"\",\"\",'1. Ordersheet'!Q1413)","v":""},{"$f":"IF('1. Ordersheet'!R1413=\"\",\"\",'1. Ordersheet'!R1413)","v":""},{"$f":"IF('1. Ordersheet'!S1413=\"\",\"\",'1. Ordersheet'!S1413)","v":""},{"$f":"IF('1. Ordersheet'!V1413=\"\",\"\",'1. Ordersheet'!V1413)","v":""},{"$f":"IF('1. Ordersheet'!W1413=\"\",\"\",'1. Ordersheet'!W1413)","v":""},{"$f":"IF('1. Ordersheet'!X1413=\"\",\"\",'1. Ordersheet'!X1413)","v":""},{"$f":"IF('1. Ordersheet'!Y1413=\"\",\"\",'1. Ordersheet'!Y1413)","v":""},{"$f":"IF('1. Ordersheet'!Z1413=\"\",\"\",'1. Ordersheet'!Z1413)","v":""},{"$f":"IF('1. Ordersheet'!AA1413=\"\",\"\",'1. Ordersheet'!AA1413)","v":""},null,{"$f":"IF('1. Ordersheet'!AS1413=\"\",\"\",'1. Ordersheet'!AS1413)","v":""},{"$f":"IF('1. Ordersheet'!AT1413=\"\",\"\",'1. Ordersheet'!AT1413)","v":""},null,null,null,null,null,null,null,{"$f":"IF('1. Ordersheet'!AX1413=\"\",\"\",'1. Ordersheet'!AX1413)","v":""},{"$f":"IF('1. Ordersheet'!AY1413=\"\",\"\",'1. Ordersheet'!AY1413)","v":""},{"$f":"IF('1. Ordersheet'!AZ1413=\"\",\"\",'1. Ordersheet'!AZ1413)","v":""},{"$f":"IF('1. Ordersheet'!BA1413=\"\",\"\",'1. Ordersheet'!BA1413)","v":""},{"$f":"IF('1. Ordersheet'!BC1413=\"\",\"\",'1. Ordersheet'!BC1413)","v":""},{"$f":"IF('1. Ordersheet'!BD1413=\"\",\"\",'1. Ordersheet'!BD1413)","v":""},{"$f":"IF('1. Ordersheet'!BE1413=\"\",\"\",'1. Ordersheet'!BE1413)","v":""},{"$f":"IF('1. Ordersheet'!BF1413=\"\",\"\",'1. Ordersheet'!BF1413)","v":""},{"$f":"IF('1. Ordersheet'!BG1413=\"\",\"\",'1. Ordersheet'!BG1413)","v":"ZWO"},{"$f":"IF('1. Ordersheet'!BH1413=\"\",\"\",'1. Ordersheet'!BH1413)","v":""},{"$f":"IF('1. Ordersheet'!BI1413=\"\",\"\",'1. Ordersheet'!BI1413)","v":""},{"$f":"IF('1. Ordersheet'!BJ1413=\"\",\"\",'1. Ordersheet'!BJ1413)","v":""},{"$f":"IF('1. Ordersheet'!BK1413=\"\",\"\",'1. Ordersheet'!BK1413)","v":""},{"$f":"IF('1. Ordersheet'!BL1413=\"\",\"\",'1. Ordersheet'!BL1413)","v":""}]
[{"$f":"IF('1. Ordersheet'!F1414=\"\",\"\",'1. Ordersheet'!F1414)","v":""},{"$f":"IF('1. Ordersheet'!G1414=\"\",\"\",'1. Ordersheet'!G1414)","v":""},{"$f":"IF('1. Ordersheet'!H1414=\"\",\"\",'1. Ordersheet'!H1414)","v":""},{"$f":"IF('1. Ordersheet'!I1414=\"\",\"\",'1. Ordersheet'!I1414)","v":""},{"$f":"IF('1. Ordersheet'!J1414=\"\",\"\",'1. Ordersheet'!J1414)","v":""},{"$f":"IF('1. Ordersheet'!K1414=\"\",\"\",'1. Ordersheet'!K1414)","v":""},{"$f":"IF('1. Ordersheet'!L1414=\"\",\"\",'1. Ordersheet'!L1414)","v":""},{"$f":"IF('1. Ordersheet'!M1414=\"\",\"\",'1. Ordersheet'!M1414)","v":""},{"$f":"IF('1. Ordersheet'!N1414=\"\",\"\",'1. Ordersheet'!N1414)","v":""},{"$f":"IF('1. Ordersheet'!O1414=\"\",\"\",'1. Ordersheet'!O1414)","v":{"$error":"#N/A"}},{"$f":"IF('1. Ordersheet'!P1414=\"\",\"\",'1. Ordersheet'!P1414)","v":{"$error":"#N/A"}},{"$f":"IF('1. Ordersheet'!Q1414=\"\",\"\",'1. Ordersheet'!Q1414)","v":""},{"$f":"IF('1. Ordersheet'!R1414=\"\",\"\",'1. Ordersheet'!R1414)","v":""},{"$f":"IF('1. Ordersheet'!S1414=\"\",\"\",'1. Ordersheet'!S1414)","v":""},{"$f":"IF('1. Ordersheet'!V1414=\"\",\"\",'1. Ordersheet'!V1414)","v":""},{"$f":"IF('1. Ordersheet'!W1414=\"\",\"\",'1. Ordersheet'!W1414)","v":""},{"$f":"IF('1. Ordersheet'!X1414=\"\",\"\",'1. Ordersheet'!X1414)","v":""},{"$f":"IF('1. Ordersheet'!Y1414=\"\",\"\",'1. Ordersheet'!Y1414)","v":""},{"$f":"IF('1. Ordersheet'!Z1414=\"\",\"\",'1. Ordersheet'!Z1414)","v":""},{"$f":"IF('1. Ordersheet'!AA1414=\"\",\"\",'1. Ordersheet'!AA1414)","v":""},null,{"$f":"IF('1. Ordersheet'!AS1414=\"\",\"\",'1. Ordersheet'!AS1414)","v":""},{"$f":"IF('1. Ordersheet'!AT1414=\"\",\"\",'1. Ordersheet'!AT1414)","v":""},null,null,null,null,null,null,null,{"$f":"IF('1. Ordersheet'!AX1414=\"\",\"\",'1. Ordersheet'!AX1414)","v":""},{"$f":"IF('1. Ordersheet'!AY1414=\"\",\"\",'1. Ordersheet'!AY1414)","v":""},{"$f":"IF('1. Ordersheet'!AZ1414=\"\",\"\",'1. Ordersheet'!AZ1414)","v":""},{"$f":"IF('1. Ordersheet'!BA1414=\"\",\"\",'1. Ordersheet'!BA1414)","v":""},{"$f":"IF('1. Ordersheet'!BC1414=\"\",\"\",'1. Ordersheet'!BC1414)","v":""},{"$f":"IF('1. Ordersheet'!BD1414=\"\",\"\",'1. Ordersheet'!BD1414)","v":""},{"$f":"IF('1. Ordersheet'!BE1414=\"\",\"\",'1. Ordersheet'!BE1414)","v":""},{"$f":"IF('1. Ordersheet'!BF1414=\"\",\"\",'1. Ordersheet'!BF1414)","v":""},{"$f":"IF('1. Ordersheet'!BG1414=\"\",\"\",'1. Ordersheet'!BG1414)","v":"ZWO"},{"$f":"IF('1. Ordersheet'!BH1414=\"\",\"\",'1. Ordersheet'!BH1414)","v":""},{"$f":"IF('1. Ordersheet'!BI1414=\"\",\"\",'1. Ordersheet'!BI1414)","v":""},{"$f":"IF('1. Ordersheet'!BJ1414=\"\",\"\",'1. Ordersheet'!BJ1414)","v":""},{"$f":"IF('1. Ordersheet'!BK1414=\"\",\"\",'1. Ordersheet'!BK1414)","v":""},{"$f":"IF('1. Ordersheet'!BL1414=\"\",\"\",'1. Ordersheet'!BL1414)","v":""}]
[{"$f":"IF('1. Ordersheet'!F1415=\"\",\"\",'1. Ordersheet'!F1415)","v":""},{"$f":"IF('1. Ordersheet'!G1415=\"\",\"\",'1. Ordersheet'!G1415)","v":""},{"$f":"IF('1. Ordersheet'!H1415=\"\",\"\",'1. Ordersheet'!H1415)","v":""},{"$f":"IF('1. Ordersheet'!I1415=\"\",\"\",'1. Ordersheet'!I1415)","v":""},{"$f":"IF('1. Ordersheet'!J1415=\"\",\"\",'1. Ordersheet'!J1415)","v":""},{"$f":"IF('1. Ordersheet'!K1415=\"\",\"\",'1. Ordersheet'!K1415)","v":""},{"$f":"IF('1. Ordersheet'!L1415=\"\",\"\",'1. Ordersheet'!L1415)","v":""},{"$f":"IF('1. Ordersheet'!M1415=\"\",\"\",'1. Ordersheet'!M1415)","v":""},{"$f":"IF('1. Ordersheet'!N1415=\"\",\"\",'1. Ordersheet'!N1415)","v":""},{"$f":"IF('1. Ordersheet'!O1415=\"\",\"\",'1. Ordersheet'!O1415)","v":{"$error":"#N/A"}},{"$f":"IF('1. Ordersheet'!P1415=\"\",\"\",'1. Ordersheet'!P1415)","v":{"$error":"#N/A"}},{"$f":"IF('1. Ordersheet'!Q1415=\"\",\"\",'1. Ordersheet'!Q1415)","v":""},{"$f":"IF('1. Ordersheet'!R1415=\"\",\"\",'1. Ordersheet'!R1415)","v":""},{"$f":"IF('1. Ordersheet'!S1415=\"\",\"\",'1. Ordersheet'!S1415)","v":""},{"$f":"IF('1. Ordersheet'!V1415=\"\",\"\",'1. Ordersheet'!V1415)","v":""},{"$f":"IF('1. Ordersheet'!W1415=\"\",\"\",'1. Ordersheet'!W1415)","v":""},{"$f":"IF('1. Ordersheet'!X1415=\"\",\"\",'1. Ordersheet'!X1415)","v":""},{"$f":"IF('1. Ordersheet'!Y1415=\"\",\"\",'1. Ordersheet'!Y1415)","v":""},{"$f":"IF('1. Ordersheet'!Z1415=\"\",\"\",'1. Ordersheet'!Z1415)","v":""},{"$f":"IF('1. Ordersheet'!AA1415=\"\",\"\",'1. Ordersheet'!AA1415)","v":""},null,{"$f":"IF('1. Ordersheet'!AS1415=\"\",\"\",'1. Ordersheet'!AS1415)","v":""},{"$f":"IF('1. Ordersheet'!AT1415=\"\",\"\",'1. Ordersheet'!AT1415)","v":""},null,null,null,null,null,null,null,{"$f":"IF('1. Ordersheet'!AX1415=\"\",\"\",'1. Ordersheet'!AX1415)","v":""},{"$f":"IF('1. Ordersheet'!AY1415=\"\",\"\",'1. Ordersheet'!AY1415)","v":""},{"$f":"IF('1. Ordersheet'!AZ1415=\"\",\"\",'1. Ordersheet'!AZ1415)","v":""},{"$f":"IF('1. Ordersheet'!BA1415=\"\",\"\",'1. Ordersheet'!BA1415)","v":""},{"$f":"IF('1. Ordersheet'!BC1415=\"\",\"\",'1. Ordersheet'!BC1415)","v":""},{"$f":"IF('1. Ordersheet'!BD1415=\"\",\"\",'1. Ordersheet'!BD1415)","v":""},{"$f":"IF('1. Ordersheet'!BE1415=\"\",\"\",'1. Ordersheet'!BE1415)","v":""},{"$f":"IF('1. Ordersheet'!BF1415=\"\",\"\",'1. Ordersheet'!BF1415)","v":""},{"$f":"IF('1. Ordersheet'!BG1415=\"\",\"\",'1. Ordersheet'!BG1415)","v":"ZWO"},{"$f":"IF('1. Ordersheet'!BH1415=\"\",\"\",'1. Ordersheet'!BH1415)","v":""},{"$f":"IF('1. Ordersheet'!BI1415=\"\",\"\",'1. Ordersheet'!BI1415)","v":""},{"$f":"IF('1. Ordersheet'!BJ1415=\"\",\"\",'1. Ordersheet'!BJ1415)","v":""},{"$f":"IF('1. Ordersheet'!BK1415=\"\",\"\",'1. Ordersheet'!BK1415)","v":""},{"$f":"IF('1. Ordersheet'!BL1415=\"\",\"\",'1. Ordersheet'!BL1415)","v":""}]
[{"$f":"IF('1. Ordersheet'!F1416=\"\",\"\",'1. Ordersheet'!F1416)","v":""},{"$f":"IF('1. Ordersheet'!G1416=\"\",\"\",'1. Ordersheet'!G1416)","v":""},{"$f":"IF('1. Ordersheet'!H1416=\"\",\"\",'1. Ordersheet'!H1416)","v":""},{"$f":"IF('1. Ordersheet'!I1416=\"\",\"\",'1. Ordersheet'!I1416)","v":""},{"$f":"IF('1. Ordersheet'!J1416=\"\",\"\",'1. Ordersheet'!J1416)","v":""},{"$f":"IF('1. Ordersheet'!K1416=\"\",\"\",'1. Ordersheet'!K1416)","v":""},{"$f":"IF('1. Ordersheet'!L1416=\"\",\"\",'1. Ordersheet'!L1416)","v":""},{"$f":"IF('1. Ordersheet'!M1416=\"\",\"\",'1. Ordersheet'!M1416)","v":""},{"$f":"IF('1. Ordersheet'!N1416=\"\",\"\",'1. Ordersheet'!N1416)","v":""},{"$f":"IF('1. Ordersheet'!O1416=\"\",\"\",'1. Ordersheet'!O1416)","v":{"$error":"#N/A"}},{"$f":"IF('1. Ordersheet'!P1416=\"\",\"\",'1. Ordersheet'!P1416)","v":{"$error":"#N/A"}},{"$f":"IF('1. Ordersheet'!Q1416=\"\",\"\",'1. Ordersheet'!Q1416)","v":""},{"$f":"IF('1. Ordersheet'!R1416=\"\",\"\",'1. Ordersheet'!R1416)","v":""},{"$f":"IF('1. Ordersheet'!S1416=\"\",\"\",'1. Ordersheet'!S1416)","v":""},{"$f":"IF('1. Ordersheet'!V1416=\"\",\"\",'1. Ordersheet'!V1416)","v":""},{"$f":"IF('1. Ordersheet'!W1416=\"\",\"\",'1. Ordersheet'!W1416)","v":""},{"$f":"IF('1. Ordersheet'!X1416=\"\",\"\",'1. Ordersheet'!X1416)","v":""},{"$f":"IF('1. Ordersheet'!Y1416=\"\",\"\",'1. Ordersheet'!Y1416)","v":""},{"$f":"IF('1. Ordersheet'!Z1416=\"\",\"\",'1. Ordersheet'!Z1416)","v":""},{"$f":"IF('1. Ordersheet'!AA1416=\"\",\"\",'1. Ordersheet'!AA1416)","v":""},null,{"$f":"IF('1. Ordersheet'!AS1416=\"\",\"\",'1. Ordersheet'!AS1416)","v":""},{"$f":"IF('1. Ordersheet'!AT1416=\"\",\"\",'1. Ordersheet'!AT1416)","v":""},null,null,null,null,null,null,null,{"$f":"IF('1. Ordersheet'!AX1416=\"\",\"\",'1. Ordersheet'!AX1416)","v":""},{"$f":"IF('1. Ordersheet'!AY1416=\"\",\"\",'1. Ordersheet'!AY1416)","v":""},{"$f":"IF('1. Ordersheet'!AZ1416=\"\",\"\",'1. Ordersheet'!AZ1416)","v":""},{"$f":"IF('1. Ordersheet'!BA1416=\"\",\"\",'1. Ordersheet'!BA1416)","v":""},{"$f":"IF('1. Ordersheet'!BC1416=\"\",\"\",'1. Ordersheet'!BC1416)","v":""},{"$f":"IF('1. Ordersheet'!BD1416=\"\",\"\",'1. Ordersheet'!BD1416)","v":""},{"$f":"IF('1. Ordersheet'!BE1416=\"\",\"\",'1. Ordersheet'!BE1416)","v":""},{"$f":"IF('1. Ordersheet'!BF1416=\"\",\"\",'1. Ordersheet'!BF1416)","v":""},{"$f":"IF('1. Ordersheet'!BG1416=\"\",\"\",'1. Ordersheet'!BG1416)","v":"ZWO"},{"$f":"IF('1. Ordersheet'!BH1416=\"\",\"\",'1. Ordersheet'!BH1416)","v":""},{"$f":"IF('1. Ordersheet'!BI1416=\"\",\"\",'1. Ordersheet'!BI1416)","v":""},{"$f":"IF('1. Ordersheet'!BJ1416=\"\",\"\",'1. Ordersheet'!BJ1416)","v":""},{"$f":"IF('1. Ordersheet'!BK1416=\"\",\"\",'1. Ordersheet'!BK1416)","v":""},{"$f":"IF('1. Ordersheet'!BL1416=\"\",\"\",'1. Ordersheet'!BL1416)","v":""}]
[{"$f":"IF('1. Ordersheet'!F1417=\"\",\"\",'1. Ordersheet'!F1417)","v":""},{"$f":"IF('1. Ordersheet'!G1417=\"\",\"\",'1. Ordersheet'!G1417)","v":""},{"$f":"IF('1. Ordersheet'!H1417=\"\",\"\",'1. Ordersheet'!H1417)","v":""},{"$f":"IF('1. Ordersheet'!I1417=\"\",\"\",'1. Ordersheet'!I1417)","v":""},{"$f":"IF('1. Ordersheet'!J1417=\"\",\"\",'1. Ordersheet'!J1417)","v":""},{"$f":"IF('1. Ordersheet'!K1417=\"\",\"\",'1. Ordersheet'!K1417)","v":""},{"$f":"IF('1. Ordersheet'!L1417=\"\",\"\",'1. Ordersheet'!L1417)","v":""},{"$f":"IF('1. Ordersheet'!M1417=\"\",\"\",'1. Ordersheet'!M1417)","v":""},{"$f":"IF('1. Ordersheet'!N1417=\"\",\"\",'1. Ordersheet'!N1417)","v":""},{"$f":"IF('1. Ordersheet'!O1417=\"\",\"\",'1. Ordersheet'!O1417)","v":{"$error":"#N/A"}},{"$f":"IF('1. Ordersheet'!P1417=\"\",\"\",'1. Ordersheet'!P1417)","v":{"$error":"#N/A"}},{"$f":"IF('1. Ordersheet'!Q1417=\"\",\"\",'1. Ordersheet'!Q1417)","v":""},{"$f":"IF('1. Ordersheet'!R1417=\"\",\"\",'1. Ordersheet'!R1417)","v":""},{"$f":"IF('1. Ordersheet'!S1417=\"\",\"\",'1. Ordersheet'!S1417)","v":""},{"$f":"IF('1. Ordersheet'!V1417=\"\",\"\",'1. Ordersheet'!V1417)","v":""},{"$f":"IF('1. Ordersheet'!W1417=\"\",\"\",'1. Ordersheet'!W1417)","v":""},{"$f":"IF('1. Ordersheet'!X1417=\"\",\"\",'1. Ordersheet'!X1417)","v":""},{"$f":"IF('1. Ordersheet'!Y1417=\"\",\"\",'1. Ordersheet'!Y1417)","v":""},{"$f":"IF('1. Ordersheet'!Z1417=\"\",\"\",'1. Ordersheet'!Z1417)","v":""},{"$f":"IF('1. Ordersheet'!AA1417=\"\",\"\",'1. Ordersheet'!AA1417)","v":""},null,{"$f":"IF('1. Ordersheet'!AS1417=\"\",\"\",'1. Ordersheet'!AS1417)","v":""},{"$f":"IF('1. Ordersheet'!AT1417=\"\",\"\",'1. Ordersheet'!AT1417)","v":""},null,null,null,null,null,null,null,{"$f":"IF('1. Ordersheet'!AX1417=\"\",\"\",'1. Ordersheet'!AX1417)","v":""},{"$f":"IF('1. Ordersheet'!AY1417=\"\",\"\",'1. Ordersheet'!AY1417)","v":""},{"$f":"IF('1. Ordersheet'!AZ1417=\"\",\"\",'1. Ordersheet'!AZ1417)","v":""},{"$f":"IF('1. Ordersheet'!BA1417=\"\",\"\",'1. Ordersheet'!BA1417)","v":""},{"$f":"IF('1. Ordersheet'!BC1417=\"\",\"\",'1. Ordersheet'!BC1417)","v":""},{"$f":"IF('1. Ordersheet'!BD1417=\"\",\"\",'1. Ordersheet'!BD1417)","v":""},{"$f":"IF('1. Ordersheet'!BE1417=\"\",\"\",'1. Ordersheet'!BE1417)","v":""},{"$f":"IF('1. Ordersheet'!BF1417=\"\",\"\",'1. Ordersheet'!BF1417)","v":""},{"$f":"IF('1. Ordersheet'!BG1417=\"\",\"\",'1. Ordersheet'!BG1417)","v":"ZWO"},{"$f":"IF('1. Ordersheet'!BH1417=\"\",\"\",'1. Ordersheet'!BH1417)","v":""},{"$f":"IF('1. Ordersheet'!BI1417=\"\",\"\",'1. Ordersheet'!BI1417)","v":""},{"$f":"IF('1. Ordersheet'!BJ1417=\"\",\"\",'1. Ordersheet'!BJ1417)","v":""},{"$f":"IF('1. Ordersheet'!BK1417=\"\",\"\",'1. Ordersheet'!BK1417)","v":""},{"$f":"IF('1. Ordersheet'!BL1417=\"\",\"\",'1. Ordersheet'!BL1417)","v":""}]
[{"$f":"IF('1. Ordersheet'!F1418=\"\",\"\",'1. Ordersheet'!F1418)","v":""},{"$f":"IF('1. Ordersheet'!G1418=\"\",\"\",'1. Ordersheet'!G1418)","v":""},{"$f":"IF('1. Ordersheet'!H1418=\"\",\"\",'1. Ordersheet'!H1418)","v":""},{"$f":"IF('1. Ordersheet'!I1418=\"\",\"\",'1. Ordersheet'!I1418)","v":""},{"$f":"IF('1. Ordersheet'!J1418=\"\",\"\",'1. Ordersheet'!J1418)","v":""},{"$f":"IF('1. Ordersheet'!K1418=\"\",\"\",'1. Ordersheet'!K1418)","v":""},{"$f":"IF('1. Ordersheet'!L1418=\"\",\"\",'1. Ordersheet'!L1418)","v":""},{"$f":"IF('1. Ordersheet'!M1418=\"\",\"\",'1. Ordersheet'!M1418)","v":""},{"$f":"IF('1. Ordersheet'!N1418=\"\",\"\",'1. Ordersheet'!N1418)","v":""},{"$f":"IF('1. Ordersheet'!O1418=\"\",\"\",'1. Ordersheet'!O1418)","v":{"$error":"#N/A"}},{"$f":"IF('1. Ordersheet'!P1418=\"\",\"\",'1. Ordersheet'!P1418)","v":{"$error":"#N/A"}},{"$f":"IF('1. Ordersheet'!Q1418=\"\",\"\",'1. Ordersheet'!Q1418)","v":""},{"$f":"IF('1. Ordersheet'!R1418=\"\",\"\",'1. Ordersheet'!R1418)","v":""},{"$f":"IF('1. Ordersheet'!S1418=\"\",\"\",'1. Ordersheet'!S1418)","v":""},{"$f":"IF('1. Ordersheet'!V1418=\"\",\"\",'1. Ordersheet'!V1418)","v":""},{"$f":"IF('1. Ordersheet'!W1418=\"\",\"\",'1. Ordersheet'!W1418)","v":""},{"$f":"IF('1. Ordersheet'!X1418=\"\",\"\",'1. Ordersheet'!X1418)","v":""},{"$f":"IF('1. Ordersheet'!Y1418=\"\",\"\",'1. Ordersheet'!Y1418)","v":""},{"$f":"IF('1. Ordersheet'!Z1418=\"\",\"\",'1. Ordersheet'!Z1418)","v":""},{"$f":"IF('1. Ordersheet'!AA1418=\"\",\"\",'1. Ordersheet'!AA1418)","v":""},null,{"$f":"IF('1. Ordersheet'!AS1418=\"\",\"\",'1. Ordersheet'!AS1418)","v":""},{"$f":"IF('1. Ordersheet'!AT1418=\"\",\"\",'1. Ordersheet'!AT1418)","v":""},null,null,null,null,null,null,null,{"$f":"IF('1. Ordersheet'!AX1418=\"\",\"\",'1. Ordersheet'!AX1418)","v":""},{"$f":"IF('1. Ordersheet'!AY1418=\"\",\"\",'1. Ordersheet'!AY1418)","v":""},{"$f":"IF('1. Ordersheet'!AZ1418=\"\",\"\",'1. Ordersheet'!AZ1418)","v":""},{"$f":"IF('1. Ordersheet'!BA1418=\"\",\"\",'1. Ordersheet'!BA1418)","v":""},{"$f":"IF('1. Ordersheet'!BC1418=\"\",\"\",'1. Ordersheet'!BC1418)","v":""},{"$f":"IF('1. Ordersheet'!BD1418=\"\",\"\",'1. Ordersheet'!BD1418)","v":""},{"$f":"IF('1. Ordersheet'!BE1418=\"\",\"\",'1. Ordersheet'!BE1418)","v":""},{"$f":"IF('1. Ordersheet'!BF1418=\"\",\"\",'1. Ordersheet'!BF1418)","v":""},{"$f":"IF('1. Ordersheet'!BG1418=\"\",\"\",'1. Ordersheet'!BG1418)","v":"ZWO"},{"$f":"IF('1. Ordersheet'!BH1418=\"\",\"\",'1. Ordersheet'!BH1418)","v":""},{"$f":"IF('1. Ordersheet'!BI1418=\"\",\"\",'1. Ordersheet'!BI1418)","v":""},{"$f":"IF('1. Ordersheet'!BJ1418=\"\",\"\",'1. Ordersheet'!BJ1418)","v":""},{"$f":"IF('1. Ordersheet'!BK1418=\"\",\"\",'1. Ordersheet'!BK1418)","v":""},{"$f":"IF('1. Ordersheet'!BL1418=\"\",\"\",'1. Ordersheet'!BL1418)","v":""}]
[{"$f":"IF('1. Ordersheet'!F1419=\"\",\"\",'1. Ordersheet'!F1419)","v":""},{"$f":"IF('1. Ordersheet'!G1419=\"\",\"\",'1. Ordersheet'!G1419)","v":""},{"$f":"IF('1. Ordersheet'!H1419=\"\",\"\",'1. Ordersheet'!H1419)","v":""},{"$f":"IF('1. Ordersheet'!I1419=\"\",\"\",'1. Ordersheet'!I1419)","v":""},{"$f":"IF('1. Ordersheet'!J1419=\"\",\"\",'1. Ordersheet'!J1419)","v":""},{"$f":"IF('1. Ordersheet'!K1419=\"\",\"\",'1. Ordersheet'!K1419)","v":""},{"$f":"IF('1. Ordersheet'!L1419=\"\",\"\",'1. Ordersheet'!L1419)","v":""},{"$f":"IF('1. Ordersheet'!M1419=\"\",\"\",'1. Ordersheet'!M1419)","v":""},{"$f":"IF('1. Ordersheet'!N1419=\"\",\"\",'1. Ordersheet'!N1419)","v":""},{"$f":"IF('1. Ordersheet'!O1419=\"\",\"\",'1. Ordersheet'!O1419)","v":{"$error":"#N/A"}},{"$f":"IF('1. Ordersheet'!P1419=\"\",\"\",'1. Ordersheet'!P1419)","v":{"$error":"#N/A"}},{"$f":"IF('1. Ordersheet'!Q1419=\"\",\"\",'1. Ordersheet'!Q1419)","v":""},{"$f":"IF('1. Ordersheet'!R1419=\"\",\"\",'1. Ordersheet'!R1419)","v":""},{"$f":"IF('1. Ordersheet'!S1419=\"\",\"\",'1. Ordersheet'!S1419)","v":""},{"$f":"IF('1. Ordersheet'!V1419=\"\",\"\",'1. Ordersheet'!V1419)","v":""},{"$f":"IF('1. Ordersheet'!W1419=\"\",\"\",'1. Ordersheet'!W1419)","v":""},{"$f":"IF('1. Ordersheet'!X1419=\"\",\"\",'1. Ordersheet'!X1419)","v":""},{"$f":"IF('1. Ordersheet'!Y1419=\"\",\"\",'1. Ordersheet'!Y1419)","v":""},{"$f":"IF('1. Ordersheet'!Z1419=\"\",\"\",'1. Ordersheet'!Z1419)","v":""},{"$f":"IF('1. Ordersheet'!AA1419=\"\",\"\",'1. Ordersheet'!AA1419)","v":""},null,{"$f":"IF('1. Ordersheet'!AS1419=\"\",\"\",'1. Ordersheet'!AS1419)","v":""},{"$f":"IF('1. Ordersheet'!AT1419=\"\",\"\",'1. Ordersheet'!AT1419)","v":""},null,null,null,null,null,null,null,{"$f":"IF('1. Ordersheet'!AX1419=\"\",\"\",'1. Ordersheet'!AX1419)","v":""},{"$f":"IF('1. Ordersheet'!AY1419=\"\",\"\",'1. Ordersheet'!AY1419)","v":""},{"$f":"IF('1. Ordersheet'!AZ1419=\"\",\"\",'1. Ordersheet'!AZ1419)","v":""},{"$f":"IF('1. Ordersheet'!BA1419=\"\",\"\",'1. Ordersheet'!BA1419)","v":""},{"$f":"IF('1. Ordersheet'!BC1419=\"\",\"\",'1. Ordersheet'!BC1419)","v":""},{"$f":"IF('1. Ordersheet'!BD1419=\"\",\"\",'1. Ordersheet'!BD1419)","v":""},{"$f":"IF('1. Ordersheet'!BE1419=\"\",\"\",'1. Ordersheet'!BE1419)","v":""},{"$f":"IF('1. Ordersheet'!BF1419=\"\",\"\",'1. Ordersheet'!BF1419)","v":""},{"$f":"IF('1. Ordersheet'!BG1419=\"\",\"\",'1. Ordersheet'!BG1419)","v":"ZWO"},{"$f":"IF('1. Ordersheet'!BH1419=\"\",\"\",'1. Ordersheet'!BH1419)","v":""},{"$f":"IF('1. Ordersheet'!BI1419=\"\",\"\",'1. Ordersheet'!BI1419)","v":""},{"$f":"IF('1. Ordersheet'!BJ1419=\"\",\"\",'1. Ordersheet'!BJ1419)","v":""},{"$f":"IF('1. Ordersheet'!BK1419=\"\",\"\",'1. Ordersheet'!BK1419)","v":""},{"$f":"IF('1. Ordersheet'!BL1419=\"\",\"\",'1. Ordersheet'!BL1419)","v":""}]
[{"$f":"IF('1. Ordersheet'!F1420=\"\",\"\",'1. Ordersheet'!F1420)","v":""},{"$f":"IF('1. Ordersheet'!G1420=\"\",\"\",'1. Ordersheet'!G1420)","v":""},{"$f":"IF('1. Ordersheet'!H1420=\"\",\"\",'1. Ordersheet'!H1420)","v":""},{"$f":"IF('1. Ordersheet'!I1420=\"\",\"\",'1. Ordersheet'!I1420)","v":""},{"$f":"IF('1. Ordersheet'!J1420=\"\",\"\",'1. Ordersheet'!J1420)","v":""},{"$f":"IF('1. Ordersheet'!K1420=\"\",\"\",'1. Ordersheet'!K1420)","v":""},{"$f":"IF('1. Ordersheet'!L1420=\"\",\"\",'1. Ordersheet'!L1420)","v":""},{"$f":"IF('1. Ordersheet'!M1420=\"\",\"\",'1. Ordersheet'!M1420)","v":""},{"$f":"IF('1. Ordersheet'!N1420=\"\",\"\",'1. Ordersheet'!N1420)","v":""},{"$f":"IF('1. Ordersheet'!O1420=\"\",\"\",'1. Ordersheet'!O1420)","v":{"$error":"#N/A"}},{"$f":"IF('1. Ordersheet'!P1420=\"\",\"\",'1. Ordersheet'!P1420)","v":{"$error":"#N/A"}},{"$f":"IF('1. Ordersheet'!Q1420=\"\",\"\",'1. Ordersheet'!Q1420)","v":""},{"$f":"IF('1. Ordersheet'!R1420=\"\",\"\",'1. Ordersheet'!R1420)","v":""},{"$f":"IF('1. Ordersheet'!S1420=\"\",\"\",'1. Ordersheet'!S1420)","v":""},{"$f":"IF('1. Ordersheet'!V1420=\"\",\"\",'1. Ordersheet'!V1420)","v":""},{"$f":"IF('1. Ordersheet'!W1420=\"\",\"\",'1. Ordersheet'!W1420)","v":""},{"$f":"IF('1. Ordersheet'!X1420=\"\",\"\",'1. Ordersheet'!X1420)","v":""},{"$f":"IF('1. Ordersheet'!Y1420=\"\",\"\",'1. Ordersheet'!Y1420)","v":""},{"$f":"IF('1. Ordersheet'!Z1420=\"\",\"\",'1. Ordersheet'!Z1420)","v":""},{"$f":"IF('1. Ordersheet'!AA1420=\"\",\"\",'1. Ordersheet'!AA1420)","v":""},null,{"$f":"IF('1. Ordersheet'!AS1420=\"\",\"\",'1. Ordersheet'!AS1420)","v":""},{"$f":"IF('1. Ordersheet'!AT1420=\"\",\"\",'1. Ordersheet'!AT1420)","v":""},null,null,null,null,null,null,null,{"$f":"IF('1. Ordersheet'!AX1420=\"\",\"\",'1. Ordersheet'!AX1420)","v":""},{"$f":"IF('1. Ordersheet'!AY1420=\"\",\"\",'1. Ordersheet'!AY1420)","v":""},{"$f":"IF('1. Ordersheet'!AZ1420=\"\",\"\",'1. Ordersheet'!AZ1420)","v":""},{"$f":"IF('1. Ordersheet'!BA1420=\"\",\"\",'1. Ordersheet'!BA1420)","v":""},{"$f":"IF('1. Ordersheet'!BC1420=\"\",\"\",'1. Ordersheet'!BC1420)","v":""},{"$f":"IF('1. Ordersheet'!BD1420=\"\",\"\",'1. Ordersheet'!BD1420)","v":""},{"$f":"IF('1. Ordersheet'!BE1420=\"\",\"\",'1. Ordersheet'!BE1420)","v":""},{"$f":"IF('1. Ordersheet'!BF1420=\"\",\"\",'1. Ordersheet'!BF1420)","v":""},{"$f":"IF('1. Ordersheet'!BG1420=\"\",\"\",'1. Ordersheet'!BG1420)","v":"ZWO"},{"$f":"IF('1. Ordersheet'!BH1420=\"\",\"\",'1. Ordersheet'!BH1420)","v":""},{"$f":"IF('1. Ordersheet'!BI1420=\"\",\"\",'1. Ordersheet'!BI1420)","v":""},{"$f":"IF('1. Ordersheet'!BJ1420=\"\",\"\",'1. Ordersheet'!BJ1420)","v":""},{"$f":"IF('1. Ordersheet'!BK1420=\"\",\"\",'1. Ordersheet'!BK1420)","v":""},{"$f":"IF('1. Ordersheet'!BL1420=\"\",\"\",'1. Ordersheet'!BL1420)","v":""}]
[{"$f":"IF('1. Ordersheet'!F1421=\"\",\"\",'1. Ordersheet'!F1421)","v":""},{"$f":"IF('1. Ordersheet'!G1421=\"\",\"\",'1. Ordersheet'!G1421)","v":""},{"$f":"IF('1. Ordersheet'!H1421=\"\",\"\",'1. Ordersheet'!H1421)","v":""},{"$f":"IF('1. Ordersheet'!I1421=\"\",\"\",'1. Ordersheet'!I1421)","v":""},{"$f":"IF('1. Ordersheet'!J1421=\"\",\"\",'1. Ordersheet'!J1421)","v":""},{"$f":"IF('1. Ordersheet'!K1421=\"\",\"\",'1. Ordersheet'!K1421)","v":""},{"$f":"IF('1. Ordersheet'!L1421=\"\",\"\",'1. Ordersheet'!L1421)","v":""},{"$f":"IF('1. Ordersheet'!M1421=\"\",\"\",'1. Ordersheet'!M1421)","v":""},{"$f":"IF('1. Ordersheet'!N1421=\"\",\"\",'1. Ordersheet'!N1421)","v":""},{"$f":"IF('1. Ordersheet'!O1421=\"\",\"\",'1. Ordersheet'!O1421)","v":{"$error":"#N/A"}},{"$f":"IF('1. Ordersheet'!P1421=\"\",\"\",'1. Ordersheet'!P1421)","v":{"$error":"#N/A"}},{"$f":"IF('1. Ordersheet'!Q1421=\"\",\"\",'1. Ordersheet'!Q1421)","v":""},{"$f":"IF('1. Ordersheet'!R1421=\"\",\"\",'1. Ordersheet'!R1421)","v":""},{"$f":"IF('1. Ordersheet'!S1421=\"\",\"\",'1. Ordersheet'!S1421)","v":""},{"$f":"IF('1. Ordersheet'!V1421=\"\",\"\",'1. Ordersheet'!V1421)","v":""},{"$f":"IF('1. Ordersheet'!W1421=\"\",\"\",'1. Ordersheet'!W1421)","v":""},{"$f":"IF('1. Ordersheet'!X1421=\"\",\"\",'1. Ordersheet'!X1421)","v":""},{"$f":"IF('1. Ordersheet'!Y1421=\"\",\"\",'1. Ordersheet'!Y1421)","v":""},{"$f":"IF('1. Ordersheet'!Z1421=\"\",\"\",'1. Ordersheet'!Z1421)","v":""},{"$f":"IF('1. Ordersheet'!AA1421=\"\",\"\",'1. Ordersheet'!AA1421)","v":""},null,{"$f":"IF('1. Ordersheet'!AS1421=\"\",\"\",'1. Ordersheet'!AS1421)","v":""},{"$f":"IF('1. Ordersheet'!AT1421=\"\",\"\",'1. Ordersheet'!AT1421)","v":""},null,null,null,null,null,null,null,{"$f":"IF('1. Ordersheet'!AX1421=\"\",\"\",'1. Ordersheet'!AX1421)","v":""},{"$f":"IF('1. Ordersheet'!AY1421=\"\",\"\",'1. Ordersheet'!AY1421)","v":""},{"$f":"IF('1. Ordersheet'!AZ1421=\"\",\"\",'1. Ordersheet'!AZ1421)","v":""},{"$f":"IF('1. Ordersheet'!BA1421=\"\",\"\",'1. Ordersheet'!BA1421)","v":""},{"$f":"IF('1. Ordersheet'!BC1421=\"\",\"\",'1. Ordersheet'!BC1421)","v":""},{"$f":"IF('1. Ordersheet'!BD1421=\"\",\"\",'1. Ordersheet'!BD1421)","v":""},{"$f":"IF('1. Ordersheet'!BE1421=\"\",\"\",'1. Ordersheet'!BE1421)","v":""},{"$f":"IF('1. Ordersheet'!BF1421=\"\",\"\",'1. Ordersheet'!BF1421)","v":""},{"$f":"IF('1. Ordersheet'!BG1421=\"\",\"\",'1. Ordersheet'!BG1421)","v":"ZWO"},{"$f":"IF('1. Ordersheet'!BH1421=\"\",\"\",'1. Ordersheet'!BH1421)","v":""},{"$f":"IF('1. Ordersheet'!BI1421=\"\",\"\",'1. Ordersheet'!BI1421)","v":""},{"$f":"IF('1. Ordersheet'!BJ1421=\"\",\"\",'1. Ordersheet'!BJ1421)","v":""},{"$f":"IF('1. Ordersheet'!BK1421=\"\",\"\",'1. Ordersheet'!BK1421)","v":""},{"$f":"IF('1. Ordersheet'!BL1421=\"\",\"\",'1. Ordersheet'!BL1421)","v":""}]
[{"$f":"IF('1. Ordersheet'!F1422=\"\",\"\",'1. Ordersheet'!F1422)","v":""},{"$f":"IF('1. Ordersheet'!G1422=\"\",\"\",'1. Ordersheet'!G1422)","v":""},{"$f":"IF('1. Ordersheet'!H1422=\"\",\"\",'1. Ordersheet'!H1422)","v":""},{"$f":"IF('1. Ordersheet'!I1422=\"\",\"\",'1. Ordersheet'!I1422)","v":""},{"$f":"IF('1. Ordersheet'!J1422=\"\",\"\",'1. Ordersheet'!J1422)","v":""},{"$f":"IF('1. Ordersheet'!K1422=\"\",\"\",'1. Ordersheet'!K1422)","v":""},{"$f":"IF('1. Ordersheet'!L1422=\"\",\"\",'1. Ordersheet'!L1422)","v":""},{"$f":"IF('1. Ordersheet'!M1422=\"\",\"\",'1. Ordersheet'!M1422)","v":""},{"$f":"IF('1. Ordersheet'!N1422=\"\",\"\",'1. Ordersheet'!N1422)","v":""},{"$f":"IF('1. Ordersheet'!O1422=\"\",\"\",'1. Ordersheet'!O1422)","v":{"$error":"#N/A"}},{"$f":"IF('1. Ordersheet'!P1422=\"\",\"\",'1. Ordersheet'!P1422)","v":{"$error":"#N/A"}},{"$f":"IF('1. Ordersheet'!Q1422=\"\",\"\",'1. Ordersheet'!Q1422)","v":""},{"$f":"IF('1. Ordersheet'!R1422=\"\",\"\",'1. Ordersheet'!R1422)","v":""},{"$f":"IF('1. Ordersheet'!S1422=\"\",\"\",'1. Ordersheet'!S1422)","v":""},{"$f":"IF('1. Ordersheet'!V1422=\"\",\"\",'1. Ordersheet'!V1422)","v":""},{"$f":"IF('1. Ordersheet'!W1422=\"\",\"\",'1. Ordersheet'!W1422)","v":""},{"$f":"IF('1. Ordersheet'!X1422=\"\",\"\",'1. Ordersheet'!X1422)","v":""},{"$f":"IF('1. Ordersheet'!Y1422=\"\",\"\",'1. Ordersheet'!Y1422)","v":""},{"$f":"IF('1. Ordersheet'!Z1422=\"\",\"\",'1. Ordersheet'!Z1422)","v":""},{"$f":"IF('1. Ordersheet'!AA1422=\"\",\"\",'1. Ordersheet'!AA1422)","v":""},null,{"$f":"IF('1. Ordersheet'!AS1422=\"\",\"\",'1. Ordersheet'!AS1422)","v":""},{"$f":"IF('1. Ordersheet'!AT1422=\"\",\"\",'1. Ordersheet'!AT1422)","v":""},null,null,null,null,null,null,null,{"$f":"IF('1. Ordersheet'!AX1422=\"\",\"\",'1. Ordersheet'!AX1422)","v":""},{"$f":"IF('1. Ordersheet'!AY1422=\"\",\"\",'1. Ordersheet'!AY1422)","v":""},{"$f":"IF('1. Ordersheet'!AZ1422=\"\",\"\",'1. Ordersheet'!AZ1422)","v":""},{"$f":"IF('1. Ordersheet'!BA1422=\"\",\"\",'1. Ordersheet'!BA1422)","v":""},{"$f":"IF('1. Ordersheet'!BC1422=\"\",\"\",'1. Ordersheet'!BC1422)","v":""},{"$f":"IF('1. Ordersheet'!BD1422=\"\",\"\",'1. Ordersheet'!BD1422)","v":""},{"$f":"IF('1. Ordersheet'!BE1422=\"\",\"\",'1. Ordersheet'!BE1422)","v":""},{"$f":"IF('1. Ordersheet'!BF1422=\"\",\"\",'1. Ordersheet'!BF1422)","v":""},{"$f":"IF('1. Ordersheet'!BG1422=\"\",\"\",'1. Ordersheet'!BG1422)","v":"ZWO"},{"$f":"IF('1. Ordersheet'!BH1422=\"\",\"\",'1. Ordersheet'!BH1422)","v":""},{"$f":"IF('1. Ordersheet'!BI1422=\"\",\"\",'1. Ordersheet'!BI1422)","v":""},{"$f":"IF('1. Ordersheet'!BJ1422=\"\",\"\",'1. Ordersheet'!BJ1422)","v":""},{"$f":"IF('1. Ordersheet'!BK1422=\"\",\"\",'1. Ordersheet'!BK1422)","v":""},{"$f":"IF('1. Ordersheet'!BL1422=\"\",\"\",'1. Ordersheet'!BL1422)","v":""}]
[{"$f":"IF('1. Ordersheet'!F1423=\"\",\"\",'1. Ordersheet'!F1423)","v":""},{"$f":"IF('1. Ordersheet'!G1423=\"\",\"\",'1. Ordersheet'!G1423)","v":""},{"$f":"IF('1. Ordersheet'!H1423=\"\",\"\",'1. Ordersheet'!H1423)","v":""},{"$f":"IF('1. Ordersheet'!I1423=\"\",\"\",'1. Ordersheet'!I1423)","v":""},{"$f":"IF('1. Ordersheet'!J1423=\"\",\"\",'1. Ordersheet'!J1423)","v":""},{"$f":"IF('1. Ordersheet'!K1423=\"\",\"\",'1. Ordersheet'!K1423)","v":""},{"$f":"IF('1. Ordersheet'!L1423=\"\",\"\",'1. Ordersheet'!L1423)","v":""},{"$f":"IF('1. Ordersheet'!M1423=\"\",\"\",'1. Ordersheet'!M1423)","v":""},{"$f":"IF('1. Ordersheet'!N1423=\"\",\"\",'1. Ordersheet'!N1423)","v":""},{"$f":"IF('1. Ordersheet'!O1423=\"\",\"\",'1. Ordersheet'!O1423)","v":{"$error":"#N/A"}},{"$f":"IF('1. Ordersheet'!P1423=\"\",\"\",'1. Ordersheet'!P1423)","v":{"$error":"#N/A"}},{"$f":"IF('1. Ordersheet'!Q1423=\"\",\"\",'1. Ordersheet'!Q1423)","v":""},{"$f":"IF('1. Ordersheet'!R1423=\"\",\"\",'1. Ordersheet'!R1423)","v":""},{"$f":"IF('1. Ordersheet'!S1423=\"\",\"\",'1. Ordersheet'!S1423)","v":""},{"$f":"IF('1. Ordersheet'!V1423=\"\",\"\",'1. Ordersheet'!V1423)","v":""},{"$f":"IF('1. Ordersheet'!W1423=\"\",\"\",'1. Ordersheet'!W1423)","v":""},{"$f":"IF('1. Ordersheet'!X1423=\"\",\"\",'1. Ordersheet'!X1423)","v":""},{"$f":"IF('1. Ordersheet'!Y1423=\"\",\"\",'1. Ordersheet'!Y1423)","v":""},{"$f":"IF('1. Ordersheet'!Z1423=\"\",\"\",'1. Ordersheet'!Z1423)","v":""},{"$f":"IF('1. Ordersheet'!AA1423=\"\",\"\",'1. Ordersheet'!AA1423)","v":""},null,{"$f":"IF('1. Ordersheet'!AS1423=\"\",\"\",'1. Ordersheet'!AS1423)","v":""},{"$f":"IF('1. Ordersheet'!AT1423=\"\",\"\",'1. Ordersheet'!AT1423)","v":""},null,null,null,null,null,null,null,{"$f":"IF('1. Ordersheet'!AX1423=\"\",\"\",'1. Ordersheet'!AX1423)","v":""},{"$f":"IF('1. Ordersheet'!AY1423=\"\",\"\",'1. Ordersheet'!AY1423)","v":""},{"$f":"IF('1. Ordersheet'!AZ1423=\"\",\"\",'1. Ordersheet'!AZ1423)","v":""},{"$f":"IF('1. Ordersheet'!BA1423=\"\",\"\",'1. Ordersheet'!BA1423)","v":""},{"$f":"IF('1. Ordersheet'!BC1423=\"\",\"\",'1. Ordersheet'!BC1423)","v":""},{"$f":"IF('1. Ordersheet'!BD1423=\"\",\"\",'1. Ordersheet'!BD1423)","v":""},{"$f":"IF('1. Ordersheet'!BE1423=\"\",\"\",'1. Ordersheet'!BE1423)","v":""},{"$f":"IF('1. Ordersheet'!BF1423=\"\",\"\",'1. Ordersheet'!BF1423)","v":""},{"$f":"IF('1. Ordersheet'!BG1423=\"\",\"\",'1. Ordersheet'!BG1423)","v":"ZWO"},{"$f":"IF('1. Ordersheet'!BH1423=\"\",\"\",'1. Ordersheet'!BH1423)","v":""},{"$f":"IF('1. Ordersheet'!BI1423=\"\",\"\",'1. Ordersheet'!BI1423)","v":""},{"$f":"IF('1. Ordersheet'!BJ1423=\"\",\"\",'1. Ordersheet'!BJ1423)","v":""},{"$f":"IF('1. Ordersheet'!BK1423=\"\",\"\",'1. Ordersheet'!BK1423)","v":""},{"$f":"IF('1. Ordersheet'!BL1423=\"\",\"\",'1. Ordersheet'!BL1423)","v":""}]
[{"$f":"IF('1. Ordersheet'!F1424=\"\",\"\",'1. Ordersheet'!F1424)","v":""},{"$f":"IF('1. Ordersheet'!G1424=\"\",\"\",'1. Ordersheet'!G1424)","v":""},{"$f":"IF('1. Ordersheet'!H1424=\"\",\"\",'1. Ordersheet'!H1424)","v":""},{"$f":"IF('1. Ordersheet'!I1424=\"\",\"\",'1. Ordersheet'!I1424)","v":""},{"$f":"IF('1. Ordersheet'!J1424=\"\",\"\",'1. Ordersheet'!J1424)","v":""},{"$f":"IF('1. Ordersheet'!K1424=\"\",\"\",'1. Ordersheet'!K1424)","v":""},{"$f":"IF('1. Ordersheet'!L1424=\"\",\"\",'1. Ordersheet'!L1424)","v":""},{"$f":"IF('1. Ordersheet'!M1424=\"\",\"\",'1. Ordersheet'!M1424)","v":""},{"$f":"IF('1. Ordersheet'!N1424=\"\",\"\",'1. Ordersheet'!N1424)","v":""},{"$f":"IF('1. Ordersheet'!O1424=\"\",\"\",'1. Ordersheet'!O1424)","v":{"$error":"#N/A"}},{"$f":"IF('1. Ordersheet'!P1424=\"\",\"\",'1. Ordersheet'!P1424)","v":{"$error":"#N/A"}},{"$f":"IF('1. Ordersheet'!Q1424=\"\",\"\",'1. Ordersheet'!Q1424)","v":""},{"$f":"IF('1. Ordersheet'!R1424=\"\",\"\",'1. Ordersheet'!R1424)","v":""},{"$f":"IF('1. Ordersheet'!S1424=\"\",\"\",'1. Ordersheet'!S1424)","v":""},{"$f":"IF('1. Ordersheet'!V1424=\"\",\"\",'1. Ordersheet'!V1424)","v":""},{"$f":"IF('1. Ordersheet'!W1424=\"\",\"\",'1. Ordersheet'!W1424)","v":""},{"$f":"IF('1. Ordersheet'!X1424=\"\",\"\",'1. Ordersheet'!X1424)","v":""},{"$f":"IF('1. Ordersheet'!Y1424=\"\",\"\",'1. Ordersheet'!Y1424)","v":""},{"$f":"IF('1. Ordersheet'!Z1424=\"\",\"\",'1. Ordersheet'!Z1424)","v":""},{"$f":"IF('1. Ordersheet'!AA1424=\"\",\"\",'1. Ordersheet'!AA1424)","v":""},null,{"$f":"IF('1. Ordersheet'!AS1424=\"\",\"\",'1. Ordersheet'!AS1424)","v":""},{"$f":"IF('1. Ordersheet'!AT1424=\"\",\"\",'1. Ordersheet'!AT1424)","v":""},null,null,null,null,null,null,null,{"$f":"IF('1. Ordersheet'!AX1424=\"\",\"\",'1. Ordersheet'!AX1424)","v":""},{"$f":"IF('1. Ordersheet'!AY1424=\"\",\"\",'1. Ordersheet'!AY1424)","v":""},{"$f":"IF('1. Ordersheet'!AZ1424=\"\",\"\",'1. Ordersheet'!AZ1424)","v":""},{"$f":"IF('1. Ordersheet'!BA1424=\"\",\"\",'1. Ordersheet'!BA1424)","v":""},{"$f":"IF('1. Ordersheet'!BC1424=\"\",\"\",'1. Ordersheet'!BC1424)","v":""},{"$f":"IF('1. Ordersheet'!BD1424=\"\",\"\",'1. Ordersheet'!BD1424)","v":""},{"$f":"IF('1. Ordersheet'!BE1424=\"\",\"\",'1. Ordersheet'!BE1424)","v":""},{"$f":"IF('1. Ordersheet'!BF1424=\"\",\"\",'1. Ordersheet'!BF1424)","v":""},{"$f":"IF('1. Ordersheet'!BG1424=\"\",\"\",'1. Ordersheet'!BG1424)","v":"ZWO"},{"$f":"IF('1. Ordersheet'!BH1424=\"\",\"\",'1. Ordersheet'!BH1424)","v":""},{"$f":"IF('1. Ordersheet'!BI1424=\"\",\"\",'1. Ordersheet'!BI1424)","v":""},{"$f":"IF('1. Ordersheet'!BJ1424=\"\",\"\",'1. Ordersheet'!BJ1424)","v":""},{"$f":"IF('1. Ordersheet'!BK1424=\"\",\"\",'1. Ordersheet'!BK1424)","v":""},{"$f":"IF('1. Ordersheet'!BL1424=\"\",\"\",'1. Ordersheet'!BL1424)","v":""}]
[{"$f":"IF('1. Ordersheet'!F1425=\"\",\"\",'1. Ordersheet'!F1425)","v":""},{"$f":"IF('1. Ordersheet'!G1425=\"\",\"\",'1. Ordersheet'!G1425)","v":""},{"$f":"IF('1. Ordersheet'!H1425=\"\",\"\",'1. Ordersheet'!H1425)","v":""},{"$f":"IF('1. Ordersheet'!I1425=\"\",\"\",'1. Ordersheet'!I1425)","v":""},{"$f":"IF('1. Ordersheet'!J1425=\"\",\"\",'1. Ordersheet'!J1425)","v":""},{"$f":"IF('1. Ordersheet'!K1425=\"\",\"\",'1. Ordersheet'!K1425)","v":""},{"$f":"IF('1. Ordersheet'!L1425=\"\",\"\",'1. Ordersheet'!L1425)","v":""},{"$f":"IF('1. Ordersheet'!M1425=\"\",\"\",'1. Ordersheet'!M1425)","v":""},{"$f":"IF('1. Ordersheet'!N1425=\"\",\"\",'1. Ordersheet'!N1425)","v":""},{"$f":"IF('1. Ordersheet'!O1425=\"\",\"\",'1. Ordersheet'!O1425)","v":{"$error":"#N/A"}},{"$f":"IF('1. Ordersheet'!P1425=\"\",\"\",'1. Ordersheet'!P1425)","v":{"$error":"#N/A"}},{"$f":"IF('1. Ordersheet'!Q1425=\"\",\"\",'1. Ordersheet'!Q1425)","v":""},{"$f":"IF('1. Ordersheet'!R1425=\"\",\"\",'1. Ordersheet'!R1425)","v":""},{"$f":"IF('1. Ordersheet'!S1425=\"\",\"\",'1. Ordersheet'!S1425)","v":""},{"$f":"IF('1. Ordersheet'!V1425=\"\",\"\",'1. Ordersheet'!V1425)","v":""},{"$f":"IF('1. Ordersheet'!W1425=\"\",\"\",'1. Ordersheet'!W1425)","v":""},{"$f":"IF('1. Ordersheet'!X1425=\"\",\"\",'1. Ordersheet'!X1425)","v":""},{"$f":"IF('1. Ordersheet'!Y1425=\"\",\"\",'1. Ordersheet'!Y1425)","v":""},{"$f":"IF('1. Ordersheet'!Z1425=\"\",\"\",'1. Ordersheet'!Z1425)","v":""},{"$f":"IF('1. Ordersheet'!AA1425=\"\",\"\",'1. Ordersheet'!AA1425)","v":""},null,{"$f":"IF('1. Ordersheet'!AS1425=\"\",\"\",'1. Ordersheet'!AS1425)","v":""},{"$f":"IF('1. Ordersheet'!AT1425=\"\",\"\",'1. Ordersheet'!AT1425)","v":""},null,null,null,null,null,null,null,{"$f":"IF('1. Ordersheet'!AX1425=\"\",\"\",'1. Ordersheet'!AX1425)","v":""},{"$f":"IF('1. Ordersheet'!AY1425=\"\",\"\",'1. Ordersheet'!AY1425)","v":""},{"$f":"IF('1. Ordersheet'!AZ1425=\"\",\"\",'1. Ordersheet'!AZ1425)","v":""},{"$f":"IF('1. Ordersheet'!BA1425=\"\",\"\",'1. Ordersheet'!BA1425)","v":""},{"$f":"IF('1. Ordersheet'!BC1425=\"\",\"\",'1. Ordersheet'!BC1425)","v":""},{"$f":"IF('1. Ordersheet'!BD1425=\"\",\"\",'1. Ordersheet'!BD1425)","v":""},{"$f":"IF('1. Ordersheet'!BE1425=\"\",\"\",'1. Ordersheet'!BE1425)","v":""},{"$f":"IF('1. Ordersheet'!BF1425=\"\",\"\",'1. Ordersheet'!BF1425)","v":""},{"$f":"IF('1. Ordersheet'!BG1425=\"\",\"\",'1. Ordersheet'!BG1425)","v":"ZWO"},{"$f":"IF('1. Ordersheet'!BH1425=\"\",\"\",'1. Ordersheet'!BH1425)","v":""},{"$f":"IF('1. Ordersheet'!BI1425=\"\",\"\",'1. Ordersheet'!BI1425)","v":""},{"$f":"IF('1. Ordersheet'!BJ1425=\"\",\"\",'1. Ordersheet'!BJ1425)","v":""},{"$f":"IF('1. Ordersheet'!BK1425=\"\",\"\",'1. Ordersheet'!BK1425)","v":""},{"$f":"IF('1. Ordersheet'!BL1425=\"\",\"\",'1. Ordersheet'!BL1425)","v":""}]
[{"$f":"IF('1. Ordersheet'!F1426=\"\",\"\",'1. Ordersheet'!F1426)","v":""},{"$f":"IF('1. Ordersheet'!G1426=\"\",\"\",'1. Ordersheet'!G1426)","v":""},{"$f":"IF('1. Ordersheet'!H1426=\"\",\"\",'1. Ordersheet'!H1426)","v":""},{"$f":"IF('1. Ordersheet'!I1426=\"\",\"\",'1. Ordersheet'!I1426)","v":""},{"$f":"IF('1. Ordersheet'!J1426=\"\",\"\",'1. Ordersheet'!J1426)","v":""},{"$f":"IF('1. Ordersheet'!K1426=\"\",\"\",'1. Ordersheet'!K1426)","v":""},{"$f":"IF('1. Ordersheet'!L1426=\"\",\"\",'1. Ordersheet'!L1426)","v":""},{"$f":"IF('1. Ordersheet'!M1426=\"\",\"\",'1. Ordersheet'!M1426)","v":""},{"$f":"IF('1. Ordersheet'!N1426=\"\",\"\",'1. Ordersheet'!N1426)","v":""},{"$f":"IF('1. Ordersheet'!O1426=\"\",\"\",'1. Ordersheet'!O1426)","v":{"$error":"#N/A"}},{"$f":"IF('1. Ordersheet'!P1426=\"\",\"\",'1. Ordersheet'!P1426)","v":{"$error":"#N/A"}},{"$f":"IF('1. Ordersheet'!Q1426=\"\",\"\",'1. Ordersheet'!Q1426)","v":""},{"$f":"IF('1. Ordersheet'!R1426=\"\",\"\",'1. Ordersheet'!R1426)","v":""},{"$f":"IF('1. Ordersheet'!S1426=\"\",\"\",'1. Ordersheet'!S1426)","v":""},{"$f":"IF('1. Ordersheet'!V1426=\"\",\"\",'1. Ordersheet'!V1426)","v":""},{"$f":"IF('1. Ordersheet'!W1426=\"\",\"\",'1. Ordersheet'!W1426)","v":""},{"$f":"IF('1. Ordersheet'!X1426=\"\",\"\",'1. Ordersheet'!X1426)","v":""},{"$f":"IF('1. Ordersheet'!Y1426=\"\",\"\",'1. Ordersheet'!Y1426)","v":""},{"$f":"IF('1. Ordersheet'!Z1426=\"\",\"\",'1. Ordersheet'!Z1426)","v":""},{"$f":"IF('1. Ordersheet'!AA1426=\"\",\"\",'1. Ordersheet'!AA1426)","v":""},null,{"$f":"IF('1. Ordersheet'!AS1426=\"\",\"\",'1. Ordersheet'!AS1426)","v":""},{"$f":"IF('1. Ordersheet'!AT1426=\"\",\"\",'1. Ordersheet'!AT1426)","v":""},null,null,null,null,null,null,null,{"$f":"IF('1. Ordersheet'!AX1426=\"\",\"\",'1. Ordersheet'!AX1426)","v":""},{"$f":"IF('1. Ordersheet'!AY1426=\"\",\"\",'1. Ordersheet'!AY1426)","v":""},{"$f":"IF('1. Ordersheet'!AZ1426=\"\",\"\",'1. Ordersheet'!AZ1426)","v":""},{"$f":"IF('1. Ordersheet'!BA1426=\"\",\"\",'1. Ordersheet'!BA1426)","v":""},{"$f":"IF('1. Ordersheet'!BC1426=\"\",\"\",'1. Ordersheet'!BC1426)","v":""},{"$f":"IF('1. Ordersheet'!BD1426=\"\",\"\",'1. Ordersheet'!BD1426)","v":""},{"$f":"IF('1. Ordersheet'!BE1426=\"\",\"\",'1. Ordersheet'!BE1426)","v":""},{"$f":"IF('1. Ordersheet'!BF1426=\"\",\"\",'1. Ordersheet'!BF1426)","v":""},{"$f":"IF('1. Ordersheet'!BG1426=\"\",\"\",'1. Ordersheet'!BG1426)","v":"ZWO"},{"$f":"IF('1. Ordersheet'!BH1426=\"\",\"\",'1. Ordersheet'!BH1426)","v":""},{"$f":"IF('1. Ordersheet'!BI1426=\"\",\"\",'1. Ordersheet'!BI1426)","v":""},{"$f":"IF('1. Ordersheet'!BJ1426=\"\",\"\",'1. Ordersheet'!BJ1426)","v":""},{"$f":"IF('1. Ordersheet'!BK1426=\"\",\"\",'1. Ordersheet'!BK1426)","v":""},{"$f":"IF('1. Ordersheet'!BL1426=\"\",\"\",'1. Ordersheet'!BL1426)","v":""}]
[{"$f":"IF('1. Ordersheet'!F1427=\"\",\"\",'1. Ordersheet'!F1427)","v":""},{"$f":"IF('1. Ordersheet'!G1427=\"\",\"\",'1. Ordersheet'!G1427)","v":""},{"$f":"IF('1. Ordersheet'!H1427=\"\",\"\",'1. Ordersheet'!H1427)","v":""},{"$f":"IF('1. Ordersheet'!I1427=\"\",\"\",'1. Ordersheet'!I1427)","v":""},{"$f":"IF('1. Ordersheet'!J1427=\"\",\"\",'1. Ordersheet'!J1427)","v":""},{"$f":"IF('1. Ordersheet'!K1427=\"\",\"\",'1. Ordersheet'!K1427)","v":""},{"$f":"IF('1. Ordersheet'!L1427=\"\",\"\",'1. Ordersheet'!L1427)","v":""},{"$f":"IF('1. Ordersheet'!M1427=\"\",\"\",'1. Ordersheet'!M1427)","v":""},{"$f":"IF('1. Ordersheet'!N1427=\"\",\"\",'1. Ordersheet'!N1427)","v":""},{"$f":"IF('1. Ordersheet'!O1427=\"\",\"\",'1. Ordersheet'!O1427)","v":{"$error":"#N/A"}},{"$f":"IF('1. Ordersheet'!P1427=\"\",\"\",'1. Ordersheet'!P1427)","v":{"$error":"#N/A"}},{"$f":"IF('1. Ordersheet'!Q1427=\"\",\"\",'1. Ordersheet'!Q1427)","v":""},{"$f":"IF('1. Ordersheet'!R1427=\"\",\"\",'1. Ordersheet'!R1427)","v":""},{"$f":"IF('1. Ordersheet'!S1427=\"\",\"\",'1. Ordersheet'!S1427)","v":""},{"$f":"IF('1. Ordersheet'!V1427=\"\",\"\",'1. Ordersheet'!V1427)","v":""},{"$f":"IF('1. Ordersheet'!W1427=\"\",\"\",'1. Ordersheet'!W1427)","v":""},{"$f":"IF('1. Ordersheet'!X1427=\"\",\"\",'1. Ordersheet'!X1427)","v":""},{"$f":"IF('1. Ordersheet'!Y1427=\"\",\"\",'1. Ordersheet'!Y1427)","v":""},{"$f":"IF('1. Ordersheet'!Z1427=\"\",\"\",'1. Ordersheet'!Z1427)","v":""},{"$f":"IF('1. Ordersheet'!AA1427=\"\",\"\",'1. Ordersheet'!AA1427)","v":""},null,{"$f":"IF('1. Ordersheet'!AS1427=\"\",\"\",'1. Ordersheet'!AS1427)","v":""},{"$f":"IF('1. Ordersheet'!AT1427=\"\",\"\",'1. Ordersheet'!AT1427)","v":""},null,null,null,null,null,null,null,{"$f":"IF('1. Ordersheet'!AX1427=\"\",\"\",'1. Ordersheet'!AX1427)","v":""},{"$f":"IF('1. Ordersheet'!AY1427=\"\",\"\",'1. Ordersheet'!AY1427)","v":""},{"$f":"IF('1. Ordersheet'!AZ1427=\"\",\"\",'1. Ordersheet'!AZ1427)","v":""},{"$f":"IF('1. Ordersheet'!BA1427=\"\",\"\",'1. Ordersheet'!BA1427)","v":""},{"$f":"IF('1. Ordersheet'!BC1427=\"\",\"\",'1. Ordersheet'!BC1427)","v":""},{"$f":"IF('1. Ordersheet'!BD1427=\"\",\"\",'1. Ordersheet'!BD1427)","v":""},{"$f":"IF('1. Ordersheet'!BE1427=\"\",\"\",'1. Ordersheet'!BE1427)","v":""},{"$f":"IF('1. Ordersheet'!BF1427=\"\",\"\",'1. Ordersheet'!BF1427)","v":""},{"$f":"IF('1. Ordersheet'!BG1427=\"\",\"\",'1. Ordersheet'!BG1427)","v":"ZWO"},{"$f":"IF('1. Ordersheet'!BH1427=\"\",\"\",'1. Ordersheet'!BH1427)","v":""},{"$f":"IF('1. Ordersheet'!BI1427=\"\",\"\",'1. Ordersheet'!BI1427)","v":""},{"$f":"IF('1. Ordersheet'!BJ1427=\"\",\"\",'1. Ordersheet'!BJ1427)","v":""},{"$f":"IF('1. Ordersheet'!BK1427=\"\",\"\",'1. Ordersheet'!BK1427)","v":""},{"$f":"IF('1. Ordersheet'!BL1427=\"\",\"\",'1. Ordersheet'!BL1427)","v":""}]
[{"$f":"IF('1. Ordersheet'!F1428=\"\",\"\",'1. Ordersheet'!F1428)","v":""},{"$f":"IF('1. Ordersheet'!G1428=\"\",\"\",'1. Ordersheet'!G1428)","v":""},{"$f":"IF('1. Ordersheet'!H1428=\"\",\"\",'1. Ordersheet'!H1428)","v":""},{"$f":"IF('1. Ordersheet'!I1428=\"\",\"\",'1. Ordersheet'!I1428)","v":""},{"$f":"IF('1. Ordersheet'!J1428=\"\",\"\",'1. Ordersheet'!J1428)","v":""},{"$f":"IF('1. Ordersheet'!K1428=\"\",\"\",'1. Ordersheet'!K1428)","v":""},{"$f":"IF('1. Ordersheet'!L1428=\"\",\"\",'1. Ordersheet'!L1428)","v":""},{"$f":"IF('1. Ordersheet'!M1428=\"\",\"\",'1. Ordersheet'!M1428)","v":""},{"$f":"IF('1. Ordersheet'!N1428=\"\",\"\",'1. Ordersheet'!N1428)","v":""},{"$f":"IF('1. Ordersheet'!O1428=\"\",\"\",'1. Ordersheet'!O1428)","v":{"$error":"#N/A"}},{"$f":"IF('1. Ordersheet'!P1428=\"\",\"\",'1. Ordersheet'!P1428)","v":{"$error":"#N/A"}},{"$f":"IF('1. Ordersheet'!Q1428=\"\",\"\",'1. Ordersheet'!Q1428)","v":""},{"$f":"IF('1. Ordersheet'!R1428=\"\",\"\",'1. Ordersheet'!R1428)","v":""},{"$f":"IF('1. Ordersheet'!S1428=\"\",\"\",'1. Ordersheet'!S1428)","v":""},{"$f":"IF('1. Ordersheet'!V1428=\"\",\"\",'1. Ordersheet'!V1428)","v":""},{"$f":"IF('1. Ordersheet'!W1428=\"\",\"\",'1. Ordersheet'!W1428)","v":""},{"$f":"IF('1. Ordersheet'!X1428=\"\",\"\",'1. Ordersheet'!X1428)","v":""},{"$f":"IF('1. Ordersheet'!Y1428=\"\",\"\",'1. Ordersheet'!Y1428)","v":""},{"$f":"IF('1. Ordersheet'!Z1428=\"\",\"\",'1. Ordersheet'!Z1428)","v":""},{"$f":"IF('1. Ordersheet'!AA1428=\"\",\"\",'1. Ordersheet'!AA1428)","v":""},null,{"$f":"IF('1. Ordersheet'!AS1428=\"\",\"\",'1. Ordersheet'!AS1428)","v":""},{"$f":"IF('1. Ordersheet'!AT1428=\"\",\"\",'1. Ordersheet'!AT1428)","v":""},null,null,null,null,null,null,null,{"$f":"IF('1. Ordersheet'!AX1428=\"\",\"\",'1. Ordersheet'!AX1428)","v":""},{"$f":"IF('1. Ordersheet'!AY1428=\"\",\"\",'1. Ordersheet'!AY1428)","v":""},{"$f":"IF('1. Ordersheet'!AZ1428=\"\",\"\",'1. Ordersheet'!AZ1428)","v":""},{"$f":"IF('1. Ordersheet'!BA1428=\"\",\"\",'1. Ordersheet'!BA1428)","v":""},{"$f":"IF('1. Ordersheet'!BC1428=\"\",\"\",'1. Ordersheet'!BC1428)","v":""},{"$f":"IF('1. Ordersheet'!BD1428=\"\",\"\",'1. Ordersheet'!BD1428)","v":""},{"$f":"IF('1. Ordersheet'!BE1428=\"\",\"\",'1. Ordersheet'!BE1428)","v":""},{"$f":"IF('1. Ordersheet'!BF1428=\"\",\"\",'1. Ordersheet'!BF1428)","v":""},{"$f":"IF('1. Ordersheet'!BG1428=\"\",\"\",'1. Ordersheet'!BG1428)","v":"ZWO"},{"$f":"IF('1. Ordersheet'!BH1428=\"\",\"\",'1. Ordersheet'!BH1428)","v":""},{"$f":"IF('1. Ordersheet'!BI1428=\"\",\"\",'1. Ordersheet'!BI1428)","v":""},{"$f":"IF('1. Ordersheet'!BJ1428=\"\",\"\",'1. Ordersheet'!BJ1428)","v":""},{"$f":"IF('1. Ordersheet'!BK1428=\"\",\"\",'1. Ordersheet'!BK1428)","v":""},{"$f":"IF('1. Ordersheet'!BL1428=\"\",\"\",'1. Ordersheet'!BL1428)","v":""}]
[{"$f":"IF('1. Ordersheet'!F1429=\"\",\"\",'1. Ordersheet'!F1429)","v":""},{"$f":"IF('1. Ordersheet'!G1429=\"\",\"\",'1. Ordersheet'!G1429)","v":""},{"$f":"IF('1. Ordersheet'!H1429=\"\",\"\",'1. Ordersheet'!H1429)","v":""},{"$f":"IF('1. Ordersheet'!I1429=\"\",\"\",'1. Ordersheet'!I1429)","v":""},{"$f":"IF('1. Ordersheet'!J1429=\"\",\"\",'1. Ordersheet'!J1429)","v":""},{"$f":"IF('1. Ordersheet'!K1429=\"\",\"\",'1. Ordersheet'!K1429)","v":""},{"$f":"IF('1. Ordersheet'!L1429=\"\",\"\",'1. Ordersheet'!L1429)","v":""},{"$f":"IF('1. Ordersheet'!M1429=\"\",\"\",'1. Ordersheet'!M1429)","v":""},{"$f":"IF('1. Ordersheet'!N1429=\"\",\"\",'1. Ordersheet'!N1429)","v":""},{"$f":"IF('1. Ordersheet'!O1429=\"\",\"\",'1. Ordersheet'!O1429)","v":{"$error":"#N/A"}},{"$f":"IF('1. Ordersheet'!P1429=\"\",\"\",'1. Ordersheet'!P1429)","v":{"$error":"#N/A"}},{"$f":"IF('1. Ordersheet'!Q1429=\"\",\"\",'1. Ordersheet'!Q1429)","v":""},{"$f":"IF('1. Ordersheet'!R1429=\"\",\"\",'1. Ordersheet'!R1429)","v":""},{"$f":"IF('1. Ordersheet'!S1429=\"\",\"\",'1. Ordersheet'!S1429)","v":""},{"$f":"IF('1. Ordersheet'!V1429=\"\",\"\",'1. Ordersheet'!V1429)","v":""},{"$f":"IF('1. Ordersheet'!W1429=\"\",\"\",'1. Ordersheet'!W1429)","v":""},{"$f":"IF('1. Ordersheet'!X1429=\"\",\"\",'1. Ordersheet'!X1429)","v":""},{"$f":"IF('1. Ordersheet'!Y1429=\"\",\"\",'1. Ordersheet'!Y1429)","v":""},{"$f":"IF('1. Ordersheet'!Z1429=\"\",\"\",'1. Ordersheet'!Z1429)","v":""},{"$f":"IF('1. Ordersheet'!AA1429=\"\",\"\",'1. Ordersheet'!AA1429)","v":""},null,{"$f":"IF('1. Ordersheet'!AS1429=\"\",\"\",'1. Ordersheet'!AS1429)","v":""},{"$f":"IF('1. Ordersheet'!AT1429=\"\",\"\",'1. Ordersheet'!AT1429)","v":""},null,null,null,null,null,null,null,{"$f":"IF('1. Ordersheet'!AX1429=\"\",\"\",'1. Ordersheet'!AX1429)","v":""},{"$f":"IF('1. Ordersheet'!AY1429=\"\",\"\",'1. Ordersheet'!AY1429)","v":""},{"$f":"IF('1. Ordersheet'!AZ1429=\"\",\"\",'1. Ordersheet'!AZ1429)","v":""},{"$f":"IF('1. Ordersheet'!BA1429=\"\",\"\",'1. Ordersheet'!BA1429)","v":""},{"$f":"IF('1. Ordersheet'!BC1429=\"\",\"\",'1. Ordersheet'!BC1429)","v":""},{"$f":"IF('1. Ordersheet'!BD1429=\"\",\"\",'1. Ordersheet'!BD1429)","v":""},{"$f":"IF('1. Ordersheet'!BE1429=\"\",\"\",'1. Ordersheet'!BE1429)","v":""},{"$f":"IF('1. Ordersheet'!BF1429=\"\",\"\",'1. Ordersheet'!BF1429)","v":""},{"$f":"IF('1. Ordersheet'!BG1429=\"\",\"\",'1. Ordersheet'!BG1429)","v":"ZWO"},{"$f":"IF('1. Ordersheet'!BH1429=\"\",\"\",'1. Ordersheet'!BH1429)","v":""},{"$f":"IF('1. Ordersheet'!BI1429=\"\",\"\",'1. Ordersheet'!BI1429)","v":""},{"$f":"IF('1. Ordersheet'!BJ1429=\"\",\"\",'1. Ordersheet'!BJ1429)","v":""},{"$f":"IF('1. Ordersheet'!BK1429=\"\",\"\",'1. Ordersheet'!BK1429)","v":""},{"$f":"IF('1. Ordersheet'!BL1429=\"\",\"\",'1. Ordersheet'!BL1429)","v":""}]
[{"$f":"IF('1. Ordersheet'!F1430=\"\",\"\",'1. Ordersheet'!F1430)","v":""},{"$f":"IF('1. Ordersheet'!G1430=\"\",\"\",'1. Ordersheet'!G1430)","v":""},{"$f":"IF('1. Ordersheet'!H1430=\"\",\"\",'1. Ordersheet'!H1430)","v":""},{"$f":"IF('1. Ordersheet'!I1430=\"\",\"\",'1. Ordersheet'!I1430)","v":""},{"$f":"IF('1. Ordersheet'!J1430=\"\",\"\",'1. Ordersheet'!J1430)","v":""},{"$f":"IF('1. Ordersheet'!K1430=\"\",\"\",'1. Ordersheet'!K1430)","v":""},{"$f":"IF('1. Ordersheet'!L1430=\"\",\"\",'1. Ordersheet'!L1430)","v":""},{"$f":"IF('1. Ordersheet'!M1430=\"\",\"\",'1. Ordersheet'!M1430)","v":""},{"$f":"IF('1. Ordersheet'!N1430=\"\",\"\",'1. Ordersheet'!N1430)","v":""},{"$f":"IF('1. Ordersheet'!O1430=\"\",\"\",'1. Ordersheet'!O1430)","v":{"$error":"#N/A"}},{"$f":"IF('1. Ordersheet'!P1430=\"\",\"\",'1. Ordersheet'!P1430)","v":{"$error":"#N/A"}},{"$f":"IF('1. Ordersheet'!Q1430=\"\",\"\",'1. Ordersheet'!Q1430)","v":""},{"$f":"IF('1. Ordersheet'!R1430=\"\",\"\",'1. Ordersheet'!R1430)","v":""},{"$f":"IF('1. Ordersheet'!S1430=\"\",\"\",'1. Ordersheet'!S1430)","v":""},{"$f":"IF('1. Ordersheet'!V1430=\"\",\"\",'1. Ordersheet'!V1430)","v":""},{"$f":"IF('1. Ordersheet'!W1430=\"\",\"\",'1. Ordersheet'!W1430)","v":""},{"$f":"IF('1. Ordersheet'!X1430=\"\",\"\",'1. Ordersheet'!X1430)","v":""},{"$f":"IF('1. Ordersheet'!Y1430=\"\",\"\",'1. Ordersheet'!Y1430)","v":""},{"$f":"IF('1. Ordersheet'!Z1430=\"\",\"\",'1. Ordersheet'!Z1430)","v":""},{"$f":"IF('1. Ordersheet'!AA1430=\"\",\"\",'1. Ordersheet'!AA1430)","v":""},null,{"$f":"IF('1. Ordersheet'!AS1430=\"\",\"\",'1. Ordersheet'!AS1430)","v":""},{"$f":"IF('1. Ordersheet'!AT1430=\"\",\"\",'1. Ordersheet'!AT1430)","v":""},null,null,null,null,null,null,null,{"$f":"IF('1. Ordersheet'!AX1430=\"\",\"\",'1. Ordersheet'!AX1430)","v":""},{"$f":"IF('1. Ordersheet'!AY1430=\"\",\"\",'1. Ordersheet'!AY1430)","v":""},{"$f":"IF('1. Ordersheet'!AZ1430=\"\",\"\",'1. Ordersheet'!AZ1430)","v":""},{"$f":"IF('1. Ordersheet'!BA1430=\"\",\"\",'1. Ordersheet'!BA1430)","v":""},{"$f":"IF('1. Ordersheet'!BC1430=\"\",\"\",'1. Ordersheet'!BC1430)","v":""},{"$f":"IF('1. Ordersheet'!BD1430=\"\",\"\",'1. Ordersheet'!BD1430)","v":""},{"$f":"IF('1. Ordersheet'!BE1430=\"\",\"\",'1. Ordersheet'!BE1430)","v":""},{"$f":"IF('1. Ordersheet'!BF1430=\"\",\"\",'1. Ordersheet'!BF1430)","v":""},{"$f":"IF('1. Ordersheet'!BG1430=\"\",\"\",'1. Ordersheet'!BG1430)","v":"ZWO"},{"$f":"IF('1. Ordersheet'!BH1430=\"\",\"\",'1. Ordersheet'!BH1430)","v":""},{"$f":"IF('1. Ordersheet'!BI1430=\"\",\"\",'1. Ordersheet'!BI1430)","v":""},{"$f":"IF('1. Ordersheet'!BJ1430=\"\",\"\",'1. Ordersheet'!BJ1430)","v":""},{"$f":"IF('1. Ordersheet'!BK1430=\"\",\"\",'1. Ordersheet'!BK1430)","v":""},{"$f":"IF('1. Ordersheet'!BL1430=\"\",\"\",'1. Ordersheet'!BL1430)","v":""}]
[{"$f":"IF('1. Ordersheet'!F1431=\"\",\"\",'1. Ordersheet'!F1431)","v":""},{"$f":"IF('1. Ordersheet'!G1431=\"\",\"\",'1. Ordersheet'!G1431)","v":""},{"$f":"IF('1. Ordersheet'!H1431=\"\",\"\",'1. Ordersheet'!H1431)","v":""},{"$f":"IF('1. Ordersheet'!I1431=\"\",\"\",'1. Ordersheet'!I1431)","v":""},{"$f":"IF('1. Ordersheet'!J1431=\"\",\"\",'1. Ordersheet'!J1431)","v":""},{"$f":"IF('1. Ordersheet'!K1431=\"\",\"\",'1. Ordersheet'!K1431)","v":""},{"$f":"IF('1. Ordersheet'!L1431=\"\",\"\",'1. Ordersheet'!L1431)","v":""},{"$f":"IF('1. Ordersheet'!M1431=\"\",\"\",'1. Ordersheet'!M1431)","v":""},{"$f":"IF('1. Ordersheet'!N1431=\"\",\"\",'1. Ordersheet'!N1431)","v":""},{"$f":"IF('1. Ordersheet'!O1431=\"\",\"\",'1. Ordersheet'!O1431)","v":{"$error":"#N/A"}},{"$f":"IF('1. Ordersheet'!P1431=\"\",\"\",'1. Ordersheet'!P1431)","v":{"$error":"#N/A"}},{"$f":"IF('1. Ordersheet'!Q1431=\"\",\"\",'1. Ordersheet'!Q1431)","v":""},{"$f":"IF('1. Ordersheet'!R1431=\"\",\"\",'1. Ordersheet'!R1431)","v":""},{"$f":"IF('1. Ordersheet'!S1431=\"\",\"\",'1. Ordersheet'!S1431)","v":""},{"$f":"IF('1. Ordersheet'!V1431=\"\",\"\",'1. Ordersheet'!V1431)","v":""},{"$f":"IF('1. Ordersheet'!W1431=\"\",\"\",'1. Ordersheet'!W1431)","v":""},{"$f":"IF('1. Ordersheet'!X1431=\"\",\"\",'1. Ordersheet'!X1431)","v":""},{"$f":"IF('1. Ordersheet'!Y1431=\"\",\"\",'1. Ordersheet'!Y1431)","v":""},{"$f":"IF('1. Ordersheet'!Z1431=\"\",\"\",'1. Ordersheet'!Z1431)","v":""},{"$f":"IF('1. Ordersheet'!AA1431=\"\",\"\",'1. Ordersheet'!AA1431)","v":""},null,{"$f":"IF('1. Ordersheet'!AS1431=\"\",\"\",'1. Ordersheet'!AS1431)","v":""},{"$f":"IF('1. Ordersheet'!AT1431=\"\",\"\",'1. Ordersheet'!AT1431)","v":""},null,null,null,null,null,null,null,{"$f":"IF('1. Ordersheet'!AX1431=\"\",\"\",'1. Ordersheet'!AX1431)","v":""},{"$f":"IF('1. Ordersheet'!AY1431=\"\",\"\",'1. Ordersheet'!AY1431)","v":""},{"$f":"IF('1. Ordersheet'!AZ1431=\"\",\"\",'1. Ordersheet'!AZ1431)","v":""},{"$f":"IF('1. Ordersheet'!BA1431=\"\",\"\",'1. Ordersheet'!BA1431)","v":""},{"$f":"IF('1. Ordersheet'!BC1431=\"\",\"\",'1. Ordersheet'!BC1431)","v":""},{"$f":"IF('1. Ordersheet'!BD1431=\"\",\"\",'1. Ordersheet'!BD1431)","v":""},{"$f":"IF('1. Ordersheet'!BE1431=\"\",\"\",'1. Ordersheet'!BE1431)","v":""},{"$f":"IF('1. Ordersheet'!BF1431=\"\",\"\",'1. Ordersheet'!BF1431)","v":""},{"$f":"IF('1. Ordersheet'!BG1431=\"\",\"\",'1. Ordersheet'!BG1431)","v":"ZWO"},{"$f":"IF('1. Ordersheet'!BH1431=\"\",\"\",'1. Ordersheet'!BH1431)","v":""},{"$f":"IF('1. Ordersheet'!BI1431=\"\",\"\",'1. Ordersheet'!BI1431)","v":""},{"$f":"IF('1. Ordersheet'!BJ1431=\"\",\"\",'1. Ordersheet'!BJ1431)","v":""},{"$f":"IF('1. Ordersheet'!BK1431=\"\",\"\",'1. Ordersheet'!BK1431)","v":""},{"$f":"IF('1. Ordersheet'!BL1431=\"\",\"\",'1. Ordersheet'!BL1431)","v":""}]
[{"$f":"IF('1. Ordersheet'!F1432=\"\",\"\",'1. Ordersheet'!F1432)","v":""},{"$f":"IF('1. Ordersheet'!G1432=\"\",\"\",'1. Ordersheet'!G1432)","v":""},{"$f":"IF('1. Ordersheet'!H1432=\"\",\"\",'1. Ordersheet'!H1432)","v":""},{"$f":"IF('1. Ordersheet'!I1432=\"\",\"\",'1. Ordersheet'!I1432)","v":""},{"$f":"IF('1. Ordersheet'!J1432=\"\",\"\",'1. Ordersheet'!J1432)","v":""},{"$f":"IF('1. Ordersheet'!K1432=\"\",\"\",'1. Ordersheet'!K1432)","v":""},{"$f":"IF('1. Ordersheet'!L1432=\"\",\"\",'1. Ordersheet'!L1432)","v":""},{"$f":"IF('1. Ordersheet'!M1432=\"\",\"\",'1. Ordersheet'!M1432)","v":""},{"$f":"IF('1. Ordersheet'!N1432=\"\",\"\",'1. Ordersheet'!N1432)","v":""},{"$f":"IF('1. Ordersheet'!O1432=\"\",\"\",'1. Ordersheet'!O1432)","v":{"$error":"#N/A"}},{"$f":"IF('1. Ordersheet'!P1432=\"\",\"\",'1. Ordersheet'!P1432)","v":{"$error":"#N/A"}},{"$f":"IF('1. Ordersheet'!Q1432=\"\",\"\",'1. Ordersheet'!Q1432)","v":""},{"$f":"IF('1. Ordersheet'!R1432=\"\",\"\",'1. Ordersheet'!R1432)","v":""},{"$f":"IF('1. Ordersheet'!S1432=\"\",\"\",'1. Ordersheet'!S1432)","v":""},{"$f":"IF('1. Ordersheet'!V1432=\"\",\"\",'1. Ordersheet'!V1432)","v":""},{"$f":"IF('1. Ordersheet'!W1432=\"\",\"\",'1. Ordersheet'!W1432)","v":""},{"$f":"IF('1. Ordersheet'!X1432=\"\",\"\",'1. Ordersheet'!X1432)","v":""},{"$f":"IF('1. Ordersheet'!Y1432=\"\",\"\",'1. Ordersheet'!Y1432)","v":""},{"$f":"IF('1. Ordersheet'!Z1432=\"\",\"\",'1. Ordersheet'!Z1432)","v":""},{"$f":"IF('1. Ordersheet'!AA1432=\"\",\"\",'1. Ordersheet'!AA1432)","v":""},null,{"$f":"IF('1. Ordersheet'!AS1432=\"\",\"\",'1. Ordersheet'!AS1432)","v":""},{"$f":"IF('1. Ordersheet'!AT1432=\"\",\"\",'1. Ordersheet'!AT1432)","v":""},null,null,null,null,null,null,null,{"$f":"IF('1. Ordersheet'!AX1432=\"\",\"\",'1. Ordersheet'!AX1432)","v":""},{"$f":"IF('1. Ordersheet'!AY1432=\"\",\"\",'1. Ordersheet'!AY1432)","v":""},{"$f":"IF('1. Ordersheet'!AZ1432=\"\",\"\",'1. Ordersheet'!AZ1432)","v":""},{"$f":"IF('1. Ordersheet'!BA1432=\"\",\"\",'1. Ordersheet'!BA1432)","v":""},{"$f":"IF('1. Ordersheet'!BC1432=\"\",\"\",'1. Ordersheet'!BC1432)","v":""},{"$f":"IF('1. Ordersheet'!BD1432=\"\",\"\",'1. Ordersheet'!BD1432)","v":""},{"$f":"IF('1. Ordersheet'!BE1432=\"\",\"\",'1. Ordersheet'!BE1432)","v":""},{"$f":"IF('1. Ordersheet'!BF1432=\"\",\"\",'1. Ordersheet'!BF1432)","v":""},{"$f":"IF('1. Ordersheet'!BG1432=\"\",\"\",'1. Ordersheet'!BG1432)","v":"ZWO"},{"$f":"IF('1. Ordersheet'!BH1432=\"\",\"\",'1. Ordersheet'!BH1432)","v":""},{"$f":"IF('1. Ordersheet'!BI1432=\"\",\"\",'1. Ordersheet'!BI1432)","v":""},{"$f":"IF('1. Ordersheet'!BJ1432=\"\",\"\",'1. Ordersheet'!BJ1432)","v":""},{"$f":"IF('1. Ordersheet'!BK1432=\"\",\"\",'1. Ordersheet'!BK1432)","v":""},{"$f":"IF('1. Ordersheet'!BL1432=\"\",\"\",'1. Ordersheet'!BL1432)","v":""}]
[{"$f":"IF('1. Ordersheet'!F1433=\"\",\"\",'1. Ordersheet'!F1433)","v":""},{"$f":"IF('1. Ordersheet'!G1433=\"\",\"\",'1. Ordersheet'!G1433)","v":""},{"$f":"IF('1. Ordersheet'!H1433=\"\",\"\",'1. Ordersheet'!H1433)","v":""},{"$f":"IF('1. Ordersheet'!I1433=\"\",\"\",'1. Ordersheet'!I1433)","v":""},{"$f":"IF('1. Ordersheet'!J1433=\"\",\"\",'1. Ordersheet'!J1433)","v":""},{"$f":"IF('1. Ordersheet'!K1433=\"\",\"\",'1. Ordersheet'!K1433)","v":""},{"$f":"IF('1. Ordersheet'!L1433=\"\",\"\",'1. Ordersheet'!L1433)","v":""},{"$f":"IF('1. Ordersheet'!M1433=\"\",\"\",'1. Ordersheet'!M1433)","v":""},{"$f":"IF('1. Ordersheet'!N1433=\"\",\"\",'1. Ordersheet'!N1433)","v":""},{"$f":"IF('1. Ordersheet'!O1433=\"\",\"\",'1. Ordersheet'!O1433)","v":{"$error":"#N/A"}},{"$f":"IF('1. Ordersheet'!P1433=\"\",\"\",'1. Ordersheet'!P1433)","v":{"$error":"#N/A"}},{"$f":"IF('1. Ordersheet'!Q1433=\"\",\"\",'1. Ordersheet'!Q1433)","v":""},{"$f":"IF('1. Ordersheet'!R1433=\"\",\"\",'1. Ordersheet'!R1433)","v":""},{"$f":"IF('1. Ordersheet'!S1433=\"\",\"\",'1. Ordersheet'!S1433)","v":""},{"$f":"IF('1. Ordersheet'!V1433=\"\",\"\",'1. Ordersheet'!V1433)","v":""},{"$f":"IF('1. Ordersheet'!W1433=\"\",\"\",'1. Ordersheet'!W1433)","v":""},{"$f":"IF('1. Ordersheet'!X1433=\"\",\"\",'1. Ordersheet'!X1433)","v":""},{"$f":"IF('1. Ordersheet'!Y1433=\"\",\"\",'1. Ordersheet'!Y1433)","v":""},{"$f":"IF('1. Ordersheet'!Z1433=\"\",\"\",'1. Ordersheet'!Z1433)","v":""},{"$f":"IF('1. Ordersheet'!AA1433=\"\",\"\",'1. Ordersheet'!AA1433)","v":""},null,{"$f":"IF('1. Ordersheet'!AS1433=\"\",\"\",'1. Ordersheet'!AS1433)","v":""},{"$f":"IF('1. Ordersheet'!AT1433=\"\",\"\",'1. Ordersheet'!AT1433)","v":""},null,null,null,null,null,null,null,{"$f":"IF('1. Ordersheet'!AX1433=\"\",\"\",'1. Ordersheet'!AX1433)","v":""},{"$f":"IF('1. Ordersheet'!AY1433=\"\",\"\",'1. Ordersheet'!AY1433)","v":""},{"$f":"IF('1. Ordersheet'!AZ1433=\"\",\"\",'1. Ordersheet'!AZ1433)","v":""},{"$f":"IF('1. Ordersheet'!BA1433=\"\",\"\",'1. Ordersheet'!BA1433)","v":""},{"$f":"IF('1. Ordersheet'!BC1433=\"\",\"\",'1. Ordersheet'!BC1433)","v":""},{"$f":"IF('1. Ordersheet'!BD1433=\"\",\"\",'1. Ordersheet'!BD1433)","v":""},{"$f":"IF('1. Ordersheet'!BE1433=\"\",\"\",'1. Ordersheet'!BE1433)","v":""},{"$f":"IF('1. Ordersheet'!BF1433=\"\",\"\",'1. Ordersheet'!BF1433)","v":""},{"$f":"IF('1. Ordersheet'!BG1433=\"\",\"\",'1. Ordersheet'!BG1433)","v":"ZWO"},{"$f":"IF('1. Ordersheet'!BH1433=\"\",\"\",'1. Ordersheet'!BH1433)","v":""},{"$f":"IF('1. Ordersheet'!BI1433=\"\",\"\",'1. Ordersheet'!BI1433)","v":""},{"$f":"IF('1. Ordersheet'!BJ1433=\"\",\"\",'1. Ordersheet'!BJ1433)","v":""},{"$f":"IF('1. Ordersheet'!BK1433=\"\",\"\",'1. Ordersheet'!BK1433)","v":""},{"$f":"IF('1. Ordersheet'!BL1433=\"\",\"\",'1. Ordersheet'!BL1433)","v":""}]
[{"$f":"IF('1. Ordersheet'!F1434=\"\",\"\",'1. Ordersheet'!F1434)","v":""},{"$f":"IF('1. Ordersheet'!G1434=\"\",\"\",'1. Ordersheet'!G1434)","v":""},{"$f":"IF('1. Ordersheet'!H1434=\"\",\"\",'1. Ordersheet'!H1434)","v":""},{"$f":"IF('1. Ordersheet'!I1434=\"\",\"\",'1. Ordersheet'!I1434)","v":""},{"$f":"IF('1. Ordersheet'!J1434=\"\",\"\",'1. Ordersheet'!J1434)","v":""},{"$f":"IF('1. Ordersheet'!K1434=\"\",\"\",'1. Ordersheet'!K1434)","v":""},{"$f":"IF('1. Ordersheet'!L1434=\"\",\"\",'1. Ordersheet'!L1434)","v":""},{"$f":"IF('1. Ordersheet'!M1434=\"\",\"\",'1. Ordersheet'!M1434)","v":""},{"$f":"IF('1. Ordersheet'!N1434=\"\",\"\",'1. Ordersheet'!N1434)","v":""},{"$f":"IF('1. Ordersheet'!O1434=\"\",\"\",'1. Ordersheet'!O1434)","v":{"$error":"#N/A"}},{"$f":"IF('1. Ordersheet'!P1434=\"\",\"\",'1. Ordersheet'!P1434)","v":{"$error":"#N/A"}},{"$f":"IF('1. Ordersheet'!Q1434=\"\",\"\",'1. Ordersheet'!Q1434)","v":""},{"$f":"IF('1. Ordersheet'!R1434=\"\",\"\",'1. Ordersheet'!R1434)","v":""},{"$f":"IF('1. Ordersheet'!S1434=\"\",\"\",'1. Ordersheet'!S1434)","v":""},{"$f":"IF('1. Ordersheet'!V1434=\"\",\"\",'1. Ordersheet'!V1434)","v":""},{"$f":"IF('1. Ordersheet'!W1434=\"\",\"\",'1. Ordersheet'!W1434)","v":""},{"$f":"IF('1. Ordersheet'!X1434=\"\",\"\",'1. Ordersheet'!X1434)","v":""},{"$f":"IF('1. Ordersheet'!Y1434=\"\",\"\",'1. Ordersheet'!Y1434)","v":""},{"$f":"IF('1. Ordersheet'!Z1434=\"\",\"\",'1. Ordersheet'!Z1434)","v":""},{"$f":"IF('1. Ordersheet'!AA1434=\"\",\"\",'1. Ordersheet'!AA1434)","v":""},null,{"$f":"IF('1. Ordersheet'!AS1434=\"\",\"\",'1. Ordersheet'!AS1434)","v":""},{"$f":"IF('1. Ordersheet'!AT1434=\"\",\"\",'1. Ordersheet'!AT1434)","v":""},null,null,null,null,null,null,null,{"$f":"IF('1. Ordersheet'!AX1434=\"\",\"\",'1. Ordersheet'!AX1434)","v":""},{"$f":"IF('1. Ordersheet'!AY1434=\"\",\"\",'1. Ordersheet'!AY1434)","v":""},{"$f":"IF('1. Ordersheet'!AZ1434=\"\",\"\",'1. Ordersheet'!AZ1434)","v":""},{"$f":"IF('1. Ordersheet'!BA1434=\"\",\"\",'1. Ordersheet'!BA1434)","v":""},{"$f":"IF('1. Ordersheet'!BC1434=\"\",\"\",'1. Ordersheet'!BC1434)","v":""},{"$f":"IF('1. Ordersheet'!BD1434=\"\",\"\",'1. Ordersheet'!BD1434)","v":""},{"$f":"IF('1. Ordersheet'!BE1434=\"\",\"\",'1. Ordersheet'!BE1434)","v":""},{"$f":"IF('1. Ordersheet'!BF1434=\"\",\"\",'1. Ordersheet'!BF1434)","v":""},{"$f":"IF('1. Ordersheet'!BG1434=\"\",\"\",'1. Ordersheet'!BG1434)","v":"ZWO"},{"$f":"IF('1. Ordersheet'!BH1434=\"\",\"\",'1. Ordersheet'!BH1434)","v":""},{"$f":"IF('1. Ordersheet'!BI1434=\"\",\"\",'1. Ordersheet'!BI1434)","v":""},{"$f":"IF('1. Ordersheet'!BJ1434=\"\",\"\",'1. Ordersheet'!BJ1434)","v":""},{"$f":"IF('1. Ordersheet'!BK1434=\"\",\"\",'1. Ordersheet'!BK1434)","v":""},{"$f":"IF('1. Ordersheet'!BL1434=\"\",\"\",'1. Ordersheet'!BL1434)","v":""}]
[{"$f":"IF('1. Ordersheet'!F1435=\"\",\"\",'1. Ordersheet'!F1435)","v":""},{"$f":"IF('1. Ordersheet'!G1435=\"\",\"\",'1. Ordersheet'!G1435)","v":""},{"$f":"IF('1. Ordersheet'!H1435=\"\",\"\",'1. Ordersheet'!H1435)","v":""},{"$f":"IF('1. Ordersheet'!I1435=\"\",\"\",'1. Ordersheet'!I1435)","v":""},{"$f":"IF('1. Ordersheet'!J1435=\"\",\"\",'1. Ordersheet'!J1435)","v":""},{"$f":"IF('1. Ordersheet'!K1435=\"\",\"\",'1. Ordersheet'!K1435)","v":""},{"$f":"IF('1. Ordersheet'!L1435=\"\",\"\",'1. Ordersheet'!L1435)","v":""},{"$f":"IF('1. Ordersheet'!M1435=\"\",\"\",'1. Ordersheet'!M1435)","v":""},{"$f":"IF('1. Ordersheet'!N1435=\"\",\"\",'1. Ordersheet'!N1435)","v":""},{"$f":"IF('1. Ordersheet'!O1435=\"\",\"\",'1. Ordersheet'!O1435)","v":{"$error":"#N/A"}},{"$f":"IF('1. Ordersheet'!P1435=\"\",\"\",'1. Ordersheet'!P1435)","v":{"$error":"#N/A"}},{"$f":"IF('1. Ordersheet'!Q1435=\"\",\"\",'1. Ordersheet'!Q1435)","v":""},{"$f":"IF('1. Ordersheet'!R1435=\"\",\"\",'1. Ordersheet'!R1435)","v":""},{"$f":"IF('1. Ordersheet'!S1435=\"\",\"\",'1. Ordersheet'!S1435)","v":""},{"$f":"IF('1. Ordersheet'!V1435=\"\",\"\",'1. Ordersheet'!V1435)","v":""},{"$f":"IF('1. Ordersheet'!W1435=\"\",\"\",'1. Ordersheet'!W1435)","v":""},{"$f":"IF('1. Ordersheet'!X1435=\"\",\"\",'1. Ordersheet'!X1435)","v":""},{"$f":"IF('1. Ordersheet'!Y1435=\"\",\"\",'1. Ordersheet'!Y1435)","v":""},{"$f":"IF('1. Ordersheet'!Z1435=\"\",\"\",'1. Ordersheet'!Z1435)","v":""},{"$f":"IF('1. Ordersheet'!AA1435=\"\",\"\",'1. Ordersheet'!AA1435)","v":""},null,{"$f":"IF('1. Ordersheet'!AS1435=\"\",\"\",'1. Ordersheet'!AS1435)","v":""},{"$f":"IF('1. Ordersheet'!AT1435=\"\",\"\",'1. Ordersheet'!AT1435)","v":""},null,null,null,null,null,null,null,{"$f":"IF('1. Ordersheet'!AX1435=\"\",\"\",'1. Ordersheet'!AX1435)","v":""},{"$f":"IF('1. Ordersheet'!AY1435=\"\",\"\",'1. Ordersheet'!AY1435)","v":""},{"$f":"IF('1. Ordersheet'!AZ1435=\"\",\"\",'1. Ordersheet'!AZ1435)","v":""},{"$f":"IF('1. Ordersheet'!BA1435=\"\",\"\",'1. Ordersheet'!BA1435)","v":""},{"$f":"IF('1. Ordersheet'!BC1435=\"\",\"\",'1. Ordersheet'!BC1435)","v":""},{"$f":"IF('1. Ordersheet'!BD1435=\"\",\"\",'1. Ordersheet'!BD1435)","v":""},{"$f":"IF('1. Ordersheet'!BE1435=\"\",\"\",'1. Ordersheet'!BE1435)","v":""},{"$f":"IF('1. Ordersheet'!BF1435=\"\",\"\",'1. Ordersheet'!BF1435)","v":""},{"$f":"IF('1. Ordersheet'!BG1435=\"\",\"\",'1. Ordersheet'!BG1435)","v":"ZWO"},{"$f":"IF('1. Ordersheet'!BH1435=\"\",\"\",'1. Ordersheet'!BH1435)","v":""},{"$f":"IF('1. Ordersheet'!BI1435=\"\",\"\",'1. Ordersheet'!BI1435)","v":""},{"$f":"IF('1. Ordersheet'!BJ1435=\"\",\"\",'1. Ordersheet'!BJ1435)","v":""},{"$f":"IF('1. Ordersheet'!BK1435=\"\",\"\",'1. Ordersheet'!BK1435)","v":""},{"$f":"IF('1. Ordersheet'!BL1435=\"\",\"\",'1. Ordersheet'!BL1435)","v":""}]
[{"$f":"IF('1. Ordersheet'!F1436=\"\",\"\",'1. Ordersheet'!F1436)","v":""},{"$f":"IF('1. Ordersheet'!G1436=\"\",\"\",'1. Ordersheet'!G1436)","v":""},{"$f":"IF('1. Ordersheet'!H1436=\"\",\"\",'1. Ordersheet'!H1436)","v":""},{"$f":"IF('1. Ordersheet'!I1436=\"\",\"\",'1. Ordersheet'!I1436)","v":""},{"$f":"IF('1. Ordersheet'!J1436=\"\",\"\",'1. Ordersheet'!J1436)","v":""},{"$f":"IF('1. Ordersheet'!K1436=\"\",\"\",'1. Ordersheet'!K1436)","v":""},{"$f":"IF('1. Ordersheet'!L1436=\"\",\"\",'1. Ordersheet'!L1436)","v":""},{"$f":"IF('1. Ordersheet'!M1436=\"\",\"\",'1. Ordersheet'!M1436)","v":""},{"$f":"IF('1. Ordersheet'!N1436=\"\",\"\",'1. Ordersheet'!N1436)","v":""},{"$f":"IF('1. Ordersheet'!O1436=\"\",\"\",'1. Ordersheet'!O1436)","v":{"$error":"#N/A"}},{"$f":"IF('1. Ordersheet'!P1436=\"\",\"\",'1. Ordersheet'!P1436)","v":{"$error":"#N/A"}},{"$f":"IF('1. Ordersheet'!Q1436=\"\",\"\",'1. Ordersheet'!Q1436)","v":""},{"$f":"IF('1. Ordersheet'!R1436=\"\",\"\",'1. Ordersheet'!R1436)","v":""},{"$f":"IF('1. Ordersheet'!S1436=\"\",\"\",'1. Ordersheet'!S1436)","v":""},{"$f":"IF('1. Ordersheet'!V1436=\"\",\"\",'1. Ordersheet'!V1436)","v":""},{"$f":"IF('1. Ordersheet'!W1436=\"\",\"\",'1. Ordersheet'!W1436)","v":""},{"$f":"IF('1. Ordersheet'!X1436=\"\",\"\",'1. Ordersheet'!X1436)","v":""},{"$f":"IF('1. Ordersheet'!Y1436=\"\",\"\",'1. Ordersheet'!Y1436)","v":""},{"$f":"IF('1. Ordersheet'!Z1436=\"\",\"\",'1. Ordersheet'!Z1436)","v":""},{"$f":"IF('1. Ordersheet'!AA1436=\"\",\"\",'1. Ordersheet'!AA1436)","v":""},null,{"$f":"IF('1. Ordersheet'!AS1436=\"\",\"\",'1. Ordersheet'!AS1436)","v":""},{"$f":"IF('1. Ordersheet'!AT1436=\"\",\"\",'1. Ordersheet'!AT1436)","v":""},null,null,null,null,null,null,null,{"$f":"IF('1. Ordersheet'!AX1436=\"\",\"\",'1. Ordersheet'!AX1436)","v":""},{"$f":"IF('1. Ordersheet'!AY1436=\"\",\"\",'1. Ordersheet'!AY1436)","v":""},{"$f":"IF('1. Ordersheet'!AZ1436=\"\",\"\",'1. Ordersheet'!AZ1436)","v":""},{"$f":"IF('1. Ordersheet'!BA1436=\"\",\"\",'1. Ordersheet'!BA1436)","v":""},{"$f":"IF('1. Ordersheet'!BC1436=\"\",\"\",'1. Ordersheet'!BC1436)","v":""},{"$f":"IF('1. Ordersheet'!BD1436=\"\",\"\",'1. Ordersheet'!BD1436)","v":""},{"$f":"IF('1. Ordersheet'!BE1436=\"\",\"\",'1. Ordersheet'!BE1436)","v":""},{"$f":"IF('1. Ordersheet'!BF1436=\"\",\"\",'1. Ordersheet'!BF1436)","v":""},{"$f":"IF('1. Ordersheet'!BG1436=\"\",\"\",'1. Ordersheet'!BG1436)","v":"ZWO"},{"$f":"IF('1. Ordersheet'!BH1436=\"\",\"\",'1. Ordersheet'!BH1436)","v":""},{"$f":"IF('1. Ordersheet'!BI1436=\"\",\"\",'1. Ordersheet'!BI1436)","v":""},{"$f":"IF('1. Ordersheet'!BJ1436=\"\",\"\",'1. Ordersheet'!BJ1436)","v":""},{"$f":"IF('1. Ordersheet'!BK1436=\"\",\"\",'1. Ordersheet'!BK1436)","v":""},{"$f":"IF('1. Ordersheet'!BL1436=\"\",\"\",'1. Ordersheet'!BL1436)","v":""}]
[{"$f":"IF('1. Ordersheet'!F1437=\"\",\"\",'1. Ordersheet'!F1437)","v":""},{"$f":"IF('1. Ordersheet'!G1437=\"\",\"\",'1. Ordersheet'!G1437)","v":""},{"$f":"IF('1. Ordersheet'!H1437=\"\",\"\",'1. Ordersheet'!H1437)","v":""},{"$f":"IF('1. Ordersheet'!I1437=\"\",\"\",'1. Ordersheet'!I1437)","v":""},{"$f":"IF('1. Ordersheet'!J1437=\"\",\"\",'1. Ordersheet'!J1437)","v":""},{"$f":"IF('1. Ordersheet'!K1437=\"\",\"\",'1. Ordersheet'!K1437)","v":""},{"$f":"IF('1. Ordersheet'!L1437=\"\",\"\",'1. Ordersheet'!L1437)","v":""},{"$f":"IF('1. Ordersheet'!M1437=\"\",\"\",'1. Ordersheet'!M1437)","v":""},{"$f":"IF('1. Ordersheet'!N1437=\"\",\"\",'1. Ordersheet'!N1437)","v":""},{"$f":"IF('1. Ordersheet'!O1437=\"\",\"\",'1. Ordersheet'!O1437)","v":{"$error":"#N/A"}},{"$f":"IF('1. Ordersheet'!P1437=\"\",\"\",'1. Ordersheet'!P1437)","v":{"$error":"#N/A"}},{"$f":"IF('1. Ordersheet'!Q1437=\"\",\"\",'1. Ordersheet'!Q1437)","v":""},{"$f":"IF('1. Ordersheet'!R1437=\"\",\"\",'1. Ordersheet'!R1437)","v":""},{"$f":"IF('1. Ordersheet'!S1437=\"\",\"\",'1. Ordersheet'!S1437)","v":""},{"$f":"IF('1. Ordersheet'!V1437=\"\",\"\",'1. Ordersheet'!V1437)","v":""},{"$f":"IF('1. Ordersheet'!W1437=\"\",\"\",'1. Ordersheet'!W1437)","v":""},{"$f":"IF('1. Ordersheet'!X1437=\"\",\"\",'1. Ordersheet'!X1437)","v":""},{"$f":"IF('1. Ordersheet'!Y1437=\"\",\"\",'1. Ordersheet'!Y1437)","v":""},{"$f":"IF('1. Ordersheet'!Z1437=\"\",\"\",'1. Ordersheet'!Z1437)","v":""},{"$f":"IF('1. Ordersheet'!AA1437=\"\",\"\",'1. Ordersheet'!AA1437)","v":""},null,{"$f":"IF('1. Ordersheet'!AS1437=\"\",\"\",'1. Ordersheet'!AS1437)","v":""},{"$f":"IF('1. Ordersheet'!AT1437=\"\",\"\",'1. Ordersheet'!AT1437)","v":""},null,null,null,null,null,null,null,{"$f":"IF('1. Ordersheet'!AX1437=\"\",\"\",'1. Ordersheet'!AX1437)","v":""},{"$f":"IF('1. Ordersheet'!AY1437=\"\",\"\",'1. Ordersheet'!AY1437)","v":""},{"$f":"IF('1. Ordersheet'!AZ1437=\"\",\"\",'1. Ordersheet'!AZ1437)","v":""},{"$f":"IF('1. Ordersheet'!BA1437=\"\",\"\",'1. Ordersheet'!BA1437)","v":""},{"$f":"IF('1. Ordersheet'!BC1437=\"\",\"\",'1. Ordersheet'!BC1437)","v":""},{"$f":"IF('1. Ordersheet'!BD1437=\"\",\"\",'1. Ordersheet'!BD1437)","v":""},{"$f":"IF('1. Ordersheet'!BE1437=\"\",\"\",'1. Ordersheet'!BE1437)","v":""},{"$f":"IF('1. Ordersheet'!BF1437=\"\",\"\",'1. Ordersheet'!BF1437)","v":""},{"$f":"IF('1. Ordersheet'!BG1437=\"\",\"\",'1. Ordersheet'!BG1437)","v":"ZWO"},{"$f":"IF('1. Ordersheet'!BH1437=\"\",\"\",'1. Ordersheet'!BH1437)","v":""},{"$f":"IF('1. Ordersheet'!BI1437=\"\",\"\",'1. Ordersheet'!BI1437)","v":""},{"$f":"IF('1. Ordersheet'!BJ1437=\"\",\"\",'1. Ordersheet'!BJ1437)","v":""},{"$f":"IF('1. Ordersheet'!BK1437=\"\",\"\",'1. Ordersheet'!BK1437)","v":""},{"$f":"IF('1. Ordersheet'!BL1437=\"\",\"\",'1. Ordersheet'!BL1437)","v":""}]
[{"$f":"IF('1. Ordersheet'!F1438=\"\",\"\",'1. Ordersheet'!F1438)","v":""},{"$f":"IF('1. Ordersheet'!G1438=\"\",\"\",'1. Ordersheet'!G1438)","v":""},{"$f":"IF('1. Ordersheet'!H1438=\"\",\"\",'1. Ordersheet'!H1438)","v":""},{"$f":"IF('1. Ordersheet'!I1438=\"\",\"\",'1. Ordersheet'!I1438)","v":""},{"$f":"IF('1. Ordersheet'!J1438=\"\",\"\",'1. Ordersheet'!J1438)","v":""},{"$f":"IF('1. Ordersheet'!K1438=\"\",\"\",'1. Ordersheet'!K1438)","v":""},{"$f":"IF('1. Ordersheet'!L1438=\"\",\"\",'1. Ordersheet'!L1438)","v":""},{"$f":"IF('1. Ordersheet'!M1438=\"\",\"\",'1. Ordersheet'!M1438)","v":""},{"$f":"IF('1. Ordersheet'!N1438=\"\",\"\",'1. Ordersheet'!N1438)","v":""},{"$f":"IF('1. Ordersheet'!O1438=\"\",\"\",'1. Ordersheet'!O1438)","v":{"$error":"#N/A"}},{"$f":"IF('1. Ordersheet'!P1438=\"\",\"\",'1. Ordersheet'!P1438)","v":{"$error":"#N/A"}},{"$f":"IF('1. Ordersheet'!Q1438=\"\",\"\",'1. Ordersheet'!Q1438)","v":""},{"$f":"IF('1. Ordersheet'!R1438=\"\",\"\",'1. Ordersheet'!R1438)","v":""},{"$f":"IF('1. Ordersheet'!S1438=\"\",\"\",'1. Ordersheet'!S1438)","v":""},{"$f":"IF('1. Ordersheet'!V1438=\"\",\"\",'1. Ordersheet'!V1438)","v":""},{"$f":"IF('1. Ordersheet'!W1438=\"\",\"\",'1. Ordersheet'!W1438)","v":""},{"$f":"IF('1. Ordersheet'!X1438=\"\",\"\",'1. Ordersheet'!X1438)","v":""},{"$f":"IF('1. Ordersheet'!Y1438=\"\",\"\",'1. Ordersheet'!Y1438)","v":""},{"$f":"IF('1. Ordersheet'!Z1438=\"\",\"\",'1. Ordersheet'!Z1438)","v":""},{"$f":"IF('1. Ordersheet'!AA1438=\"\",\"\",'1. Ordersheet'!AA1438)","v":""},null,{"$f":"IF('1. Ordersheet'!AS1438=\"\",\"\",'1. Ordersheet'!AS1438)","v":""},{"$f":"IF('1. Ordersheet'!AT1438=\"\",\"\",'1. Ordersheet'!AT1438)","v":""},null,null,null,null,null,null,null,{"$f":"IF('1. Ordersheet'!AX1438=\"\",\"\",'1. Ordersheet'!AX1438)","v":""},{"$f":"IF('1. Ordersheet'!AY1438=\"\",\"\",'1. Ordersheet'!AY1438)","v":""},{"$f":"IF('1. Ordersheet'!AZ1438=\"\",\"\",'1. Ordersheet'!AZ1438)","v":""},{"$f":"IF('1. Ordersheet'!BA1438=\"\",\"\",'1. Ordersheet'!BA1438)","v":""},{"$f":"IF('1. Ordersheet'!BC1438=\"\",\"\",'1. Ordersheet'!BC1438)","v":""},{"$f":"IF('1. Ordersheet'!BD1438=\"\",\"\",'1. Ordersheet'!BD1438)","v":""},{"$f":"IF('1. Ordersheet'!BE1438=\"\",\"\",'1. Ordersheet'!BE1438)","v":""},{"$f":"IF('1. Ordersheet'!BF1438=\"\",\"\",'1. Ordersheet'!BF1438)","v":""},{"$f":"IF('1. Ordersheet'!BG1438=\"\",\"\",'1. Ordersheet'!BG1438)","v":"ZWO"},{"$f":"IF('1. Ordersheet'!BH1438=\"\",\"\",'1. Ordersheet'!BH1438)","v":""},{"$f":"IF('1. Ordersheet'!BI1438=\"\",\"\",'1. Ordersheet'!BI1438)","v":""},{"$f":"IF('1. Ordersheet'!BJ1438=\"\",\"\",'1. Ordersheet'!BJ1438)","v":""},{"$f":"IF('1. Ordersheet'!BK1438=\"\",\"\",'1. Ordersheet'!BK1438)","v":""},{"$f":"IF('1. Ordersheet'!BL1438=\"\",\"\",'1. Ordersheet'!BL1438)","v":""}]
[{"$f":"IF('1. Ordersheet'!F1439=\"\",\"\",'1. Ordersheet'!F1439)","v":""},{"$f":"IF('1. Ordersheet'!G1439=\"\",\"\",'1. Ordersheet'!G1439)","v":""},{"$f":"IF('1. Ordersheet'!H1439=\"\",\"\",'1. Ordersheet'!H1439)","v":""},{"$f":"IF('1. Ordersheet'!I1439=\"\",\"\",'1. Ordersheet'!I1439)","v":""},{"$f":"IF('1. Ordersheet'!J1439=\"\",\"\",'1. Ordersheet'!J1439)","v":""},{"$f":"IF('1. Ordersheet'!K1439=\"\",\"\",'1. Ordersheet'!K1439)","v":""},{"$f":"IF('1. Ordersheet'!L1439=\"\",\"\",'1. Ordersheet'!L1439)","v":""},{"$f":"IF('1. Ordersheet'!M1439=\"\",\"\",'1. Ordersheet'!M1439)","v":""},{"$f":"IF('1. Ordersheet'!N1439=\"\",\"\",'1. Ordersheet'!N1439)","v":""},{"$f":"IF('1. Ordersheet'!O1439=\"\",\"\",'1. Ordersheet'!O1439)","v":{"$error":"#N/A"}},{"$f":"IF('1. Ordersheet'!P1439=\"\",\"\",'1. Ordersheet'!P1439)","v":{"$error":"#N/A"}},{"$f":"IF('1. Ordersheet'!Q1439=\"\",\"\",'1. Ordersheet'!Q1439)","v":""},{"$f":"IF('1. Ordersheet'!R1439=\"\",\"\",'1. Ordersheet'!R1439)","v":""},{"$f":"IF('1. Ordersheet'!S1439=\"\",\"\",'1. Ordersheet'!S1439)","v":""},{"$f":"IF('1. Ordersheet'!V1439=\"\",\"\",'1. Ordersheet'!V1439)","v":""},{"$f":"IF('1. Ordersheet'!W1439=\"\",\"\",'1. Ordersheet'!W1439)","v":""},{"$f":"IF('1. Ordersheet'!X1439=\"\",\"\",'1. Ordersheet'!X1439)","v":""},{"$f":"IF('1. Ordersheet'!Y1439=\"\",\"\",'1. Ordersheet'!Y1439)","v":""},{"$f":"IF('1. Ordersheet'!Z1439=\"\",\"\",'1. Ordersheet'!Z1439)","v":""},{"$f":"IF('1. Ordersheet'!AA1439=\"\",\"\",'1. Ordersheet'!AA1439)","v":""},null,{"$f":"IF('1. Ordersheet'!AS1439=\"\",\"\",'1. Ordersheet'!AS1439)","v":""},{"$f":"IF('1. Ordersheet'!AT1439=\"\",\"\",'1. Ordersheet'!AT1439)","v":""},null,null,null,null,null,null,null,{"$f":"IF('1. Ordersheet'!AX1439=\"\",\"\",'1. Ordersheet'!AX1439)","v":""},{"$f":"IF('1. Ordersheet'!AY1439=\"\",\"\",'1. Ordersheet'!AY1439)","v":""},{"$f":"IF('1. Ordersheet'!AZ1439=\"\",\"\",'1. Ordersheet'!AZ1439)","v":""},{"$f":"IF('1. Ordersheet'!BA1439=\"\",\"\",'1. Ordersheet'!BA1439)","v":""},{"$f":"IF('1. Ordersheet'!BC1439=\"\",\"\",'1. Ordersheet'!BC1439)","v":""},{"$f":"IF('1. Ordersheet'!BD1439=\"\",\"\",'1. Ordersheet'!BD1439)","v":""},{"$f":"IF('1. Ordersheet'!BE1439=\"\",\"\",'1. Ordersheet'!BE1439)","v":""},{"$f":"IF('1. Ordersheet'!BF1439=\"\",\"\",'1. Ordersheet'!BF1439)","v":""},{"$f":"IF('1. Ordersheet'!BG1439=\"\",\"\",'1. Ordersheet'!BG1439)","v":"ZWO"},{"$f":"IF('1. Ordersheet'!BH1439=\"\",\"\",'1. Ordersheet'!BH1439)","v":""},{"$f":"IF('1. Ordersheet'!BI1439=\"\",\"\",'1. Ordersheet'!BI1439)","v":""},{"$f":"IF('1. Ordersheet'!BJ1439=\"\",\"\",'1. Ordersheet'!BJ1439)","v":""},{"$f":"IF('1. Ordersheet'!BK1439=\"\",\"\",'1. Ordersheet'!BK1439)","v":""},{"$f":"IF('1. Ordersheet'!BL1439=\"\",\"\",'1. Ordersheet'!BL1439)","v":""}]
[{"$f":"IF('1. Ordersheet'!F1440=\"\",\"\",'1. Ordersheet'!F1440)","v":""},{"$f":"IF('1. Ordersheet'!G1440=\"\",\"\",'1. Ordersheet'!G1440)","v":""},{"$f":"IF('1. Ordersheet'!H1440=\"\",\"\",'1. Ordersheet'!H1440)","v":""},{"$f":"IF('1. Ordersheet'!I1440=\"\",\"\",'1. Ordersheet'!I1440)","v":""},{"$f":"IF('1. Ordersheet'!J1440=\"\",\"\",'1. Ordersheet'!J1440)","v":""},{"$f":"IF('1. Ordersheet'!K1440=\"\",\"\",'1. Ordersheet'!K1440)","v":""},{"$f":"IF('1. Ordersheet'!L1440=\"\",\"\",'1. Ordersheet'!L1440)","v":""},{"$f":"IF('1. Ordersheet'!M1440=\"\",\"\",'1. Ordersheet'!M1440)","v":""},{"$f":"IF('1. Ordersheet'!N1440=\"\",\"\",'1. Ordersheet'!N1440)","v":""},{"$f":"IF('1. Ordersheet'!O1440=\"\",\"\",'1. Ordersheet'!O1440)","v":{"$error":"#N/A"}},{"$f":"IF('1. Ordersheet'!P1440=\"\",\"\",'1. Ordersheet'!P1440)","v":{"$error":"#N/A"}},{"$f":"IF('1. Ordersheet'!Q1440=\"\",\"\",'1. Ordersheet'!Q1440)","v":""},{"$f":"IF('1. Ordersheet'!R1440=\"\",\"\",'1. Ordersheet'!R1440)","v":""},{"$f":"IF('1. Ordersheet'!S1440=\"\",\"\",'1. Ordersheet'!S1440)","v":""},{"$f":"IF('1. Ordersheet'!V1440=\"\",\"\",'1. Ordersheet'!V1440)","v":""},{"$f":"IF('1. Ordersheet'!W1440=\"\",\"\",'1. Ordersheet'!W1440)","v":""},{"$f":"IF('1. Ordersheet'!X1440=\"\",\"\",'1. Ordersheet'!X1440)","v":""},{"$f":"IF('1. Ordersheet'!Y1440=\"\",\"\",'1. Ordersheet'!Y1440)","v":""},{"$f":"IF('1. Ordersheet'!Z1440=\"\",\"\",'1. Ordersheet'!Z1440)","v":""},{"$f":"IF('1. Ordersheet'!AA1440=\"\",\"\",'1. Ordersheet'!AA1440)","v":""},null,{"$f":"IF('1. Ordersheet'!AS1440=\"\",\"\",'1. Ordersheet'!AS1440)","v":""},{"$f":"IF('1. Ordersheet'!AT1440=\"\",\"\",'1. Ordersheet'!AT1440)","v":""},null,null,null,null,null,null,null,{"$f":"IF('1. Ordersheet'!AX1440=\"\",\"\",'1. Ordersheet'!AX1440)","v":""},{"$f":"IF('1. Ordersheet'!AY1440=\"\",\"\",'1. Ordersheet'!AY1440)","v":""},{"$f":"IF('1. Ordersheet'!AZ1440=\"\",\"\",'1. Ordersheet'!AZ1440)","v":""},{"$f":"IF('1. Ordersheet'!BA1440=\"\",\"\",'1. Ordersheet'!BA1440)","v":""},{"$f":"IF('1. Ordersheet'!BC1440=\"\",\"\",'1. Ordersheet'!BC1440)","v":""},{"$f":"IF('1. Ordersheet'!BD1440=\"\",\"\",'1. Ordersheet'!BD1440)","v":""},{"$f":"IF('1. Ordersheet'!BE1440=\"\",\"\",'1. Ordersheet'!BE1440)","v":""},{"$f":"IF('1. Ordersheet'!BF1440=\"\",\"\",'1. Ordersheet'!BF1440)","v":""},{"$f":"IF('1. Ordersheet'!BG1440=\"\",\"\",'1. Ordersheet'!BG1440)","v":"ZWO"},{"$f":"IF('1. Ordersheet'!BH1440=\"\",\"\",'1. Ordersheet'!BH1440)","v":""},{"$f":"IF('1. Ordersheet'!BI1440=\"\",\"\",'1. Ordersheet'!BI1440)","v":""},{"$f":"IF('1. Ordersheet'!BJ1440=\"\",\"\",'1. Ordersheet'!BJ1440)","v":""},{"$f":"IF('1. Ordersheet'!BK1440=\"\",\"\",'1. Ordersheet'!BK1440)","v":""},{"$f":"IF('1. Ordersheet'!BL1440=\"\",\"\",'1. Ordersheet'!BL1440)","v":""}]
[{"$f":"IF('1. Ordersheet'!F1441=\"\",\"\",'1. Ordersheet'!F1441)","v":""},{"$f":"IF('1. Ordersheet'!G1441=\"\",\"\",'1. Ordersheet'!G1441)","v":""},{"$f":"IF('1. Ordersheet'!H1441=\"\",\"\",'1. Ordersheet'!H1441)","v":""},{"$f":"IF('1. Ordersheet'!I1441=\"\",\"\",'1. Ordersheet'!I1441)","v":""},{"$f":"IF('1. Ordersheet'!J1441=\"\",\"\",'1. Ordersheet'!J1441)","v":""},{"$f":"IF('1. Ordersheet'!K1441=\"\",\"\",'1. Ordersheet'!K1441)","v":""},{"$f":"IF('1. Ordersheet'!L1441=\"\",\"\",'1. Ordersheet'!L1441)","v":""},{"$f":"IF('1. Ordersheet'!M1441=\"\",\"\",'1. Ordersheet'!M1441)","v":""},{"$f":"IF('1. Ordersheet'!N1441=\"\",\"\",'1. Ordersheet'!N1441)","v":""},{"$f":"IF('1. Ordersheet'!O1441=\"\",\"\",'1. Ordersheet'!O1441)","v":{"$error":"#N/A"}},{"$f":"IF('1. Ordersheet'!P1441=\"\",\"\",'1. Ordersheet'!P1441)","v":{"$error":"#N/A"}},{"$f":"IF('1. Ordersheet'!Q1441=\"\",\"\",'1. Ordersheet'!Q1441)","v":""},{"$f":"IF('1. Ordersheet'!R1441=\"\",\"\",'1. Ordersheet'!R1441)","v":""},{"$f":"IF('1. Ordersheet'!S1441=\"\",\"\",'1. Ordersheet'!S1441)","v":""},{"$f":"IF('1. Ordersheet'!V1441=\"\",\"\",'1. Ordersheet'!V1441)","v":""},{"$f":"IF('1. Ordersheet'!W1441=\"\",\"\",'1. Ordersheet'!W1441)","v":""},{"$f":"IF('1. Ordersheet'!X1441=\"\",\"\",'1. Ordersheet'!X1441)","v":""},{"$f":"IF('1. Ordersheet'!Y1441=\"\",\"\",'1. Ordersheet'!Y1441)","v":""},{"$f":"IF('1. Ordersheet'!Z1441=\"\",\"\",'1. Ordersheet'!Z1441)","v":""},{"$f":"IF('1. Ordersheet'!AA1441=\"\",\"\",'1. Ordersheet'!AA1441)","v":""},null,{"$f":"IF('1. Ordersheet'!AS1441=\"\",\"\",'1. Ordersheet'!AS1441)","v":""},{"$f":"IF('1. Ordersheet'!AT1441=\"\",\"\",'1. Ordersheet'!AT1441)","v":""},null,null,null,null,null,null,null,{"$f":"IF('1. Ordersheet'!AX1441=\"\",\"\",'1. Ordersheet'!AX1441)","v":""},{"$f":"IF('1. Ordersheet'!AY1441=\"\",\"\",'1. Ordersheet'!AY1441)","v":""},{"$f":"IF('1. Ordersheet'!AZ1441=\"\",\"\",'1. Ordersheet'!AZ1441)","v":""},{"$f":"IF('1. Ordersheet'!BA1441=\"\",\"\",'1. Ordersheet'!BA1441)","v":""},{"$f":"IF('1. Ordersheet'!BC1441=\"\",\"\",'1. Ordersheet'!BC1441)","v":""},{"$f":"IF('1. Ordersheet'!BD1441=\"\",\"\",'1. Ordersheet'!BD1441)","v":""},{"$f":"IF('1. Ordersheet'!BE1441=\"\",\"\",'1. Ordersheet'!BE1441)","v":""},{"$f":"IF('1. Ordersheet'!BF1441=\"\",\"\",'1. Ordersheet'!BF1441)","v":""},{"$f":"IF('1. Ordersheet'!BG1441=\"\",\"\",'1. Ordersheet'!BG1441)","v":"ZWO"},{"$f":"IF('1. Ordersheet'!BH1441=\"\",\"\",'1. Ordersheet'!BH1441)","v":""},{"$f":"IF('1. Ordersheet'!BI1441=\"\",\"\",'1. Ordersheet'!BI1441)","v":""},{"$f":"IF('1. Ordersheet'!BJ1441=\"\",\"\",'1. Ordersheet'!BJ1441)","v":""},{"$f":"IF('1. Ordersheet'!BK1441=\"\",\"\",'1. Ordersheet'!BK1441)","v":""},{"$f":"IF('1. Ordersheet'!BL1441=\"\",\"\",'1. Ordersheet'!BL1441)","v":""}]
[{"$f":"IF('1. Ordersheet'!F1442=\"\",\"\",'1. Ordersheet'!F1442)","v":""},{"$f":"IF('1. Ordersheet'!G1442=\"\",\"\",'1. Ordersheet'!G1442)","v":""},{"$f":"IF('1. Ordersheet'!H1442=\"\",\"\",'1. Ordersheet'!H1442)","v":""},{"$f":"IF('1. Ordersheet'!I1442=\"\",\"\",'1. Ordersheet'!I1442)","v":""},{"$f":"IF('1. Ordersheet'!J1442=\"\",\"\",'1. Ordersheet'!J1442)","v":""},{"$f":"IF('1. Ordersheet'!K1442=\"\",\"\",'1. Ordersheet'!K1442)","v":""},{"$f":"IF('1. Ordersheet'!L1442=\"\",\"\",'1. Ordersheet'!L1442)","v":""},{"$f":"IF('1. Ordersheet'!M1442=\"\",\"\",'1. Ordersheet'!M1442)","v":""},{"$f":"IF('1. Ordersheet'!N1442=\"\",\"\",'1. Ordersheet'!N1442)","v":""},{"$f":"IF('1. Ordersheet'!O1442=\"\",\"\",'1. Ordersheet'!O1442)","v":{"$error":"#N/A"}},{"$f":"IF('1. Ordersheet'!P1442=\"\",\"\",'1. Ordersheet'!P1442)","v":{"$error":"#N/A"}},{"$f":"IF('1. Ordersheet'!Q1442=\"\",\"\",'1. Ordersheet'!Q1442)","v":""},{"$f":"IF('1. Ordersheet'!R1442=\"\",\"\",'1. Ordersheet'!R1442)","v":""},{"$f":"IF('1. Ordersheet'!S1442=\"\",\"\",'1. Ordersheet'!S1442)","v":""},{"$f":"IF('1. Ordersheet'!V1442=\"\",\"\",'1. Ordersheet'!V1442)","v":""},{"$f":"IF('1. Ordersheet'!W1442=\"\",\"\",'1. Ordersheet'!W1442)","v":""},{"$f":"IF('1. Ordersheet'!X1442=\"\",\"\",'1. Ordersheet'!X1442)","v":""},{"$f":"IF('1. Ordersheet'!Y1442=\"\",\"\",'1. Ordersheet'!Y1442)","v":""},{"$f":"IF('1. Ordersheet'!Z1442=\"\",\"\",'1. Ordersheet'!Z1442)","v":""},{"$f":"IF('1. Ordersheet'!AA1442=\"\",\"\",'1. Ordersheet'!AA1442)","v":""},null,{"$f":"IF('1. Ordersheet'!AS1442=\"\",\"\",'1. Ordersheet'!AS1442)","v":""},{"$f":"IF('1. Ordersheet'!AT1442=\"\",\"\",'1. Ordersheet'!AT1442)","v":""},null,null,null,null,null,null,null,{"$f":"IF('1. Ordersheet'!AX1442=\"\",\"\",'1. Ordersheet'!AX1442)","v":""},{"$f":"IF('1. Ordersheet'!AY1442=\"\",\"\",'1. Ordersheet'!AY1442)","v":""},{"$f":"IF('1. Ordersheet'!AZ1442=\"\",\"\",'1. Ordersheet'!AZ1442)","v":""},{"$f":"IF('1. Ordersheet'!BA1442=\"\",\"\",'1. Ordersheet'!BA1442)","v":""},{"$f":"IF('1. Ordersheet'!BC1442=\"\",\"\",'1. Ordersheet'!BC1442)","v":""},{"$f":"IF('1. Ordersheet'!BD1442=\"\",\"\",'1. Ordersheet'!BD1442)","v":""},{"$f":"IF('1. Ordersheet'!BE1442=\"\",\"\",'1. Ordersheet'!BE1442)","v":""},{"$f":"IF('1. Ordersheet'!BF1442=\"\",\"\",'1. Ordersheet'!BF1442)","v":""},{"$f":"IF('1. Ordersheet'!BG1442=\"\",\"\",'1. Ordersheet'!BG1442)","v":"ZWO"},{"$f":"IF('1. Ordersheet'!BH1442=\"\",\"\",'1. Ordersheet'!BH1442)","v":""},{"$f":"IF('1. Ordersheet'!BI1442=\"\",\"\",'1. Ordersheet'!BI1442)","v":""},{"$f":"IF('1. Ordersheet'!BJ1442=\"\",\"\",'1. Ordersheet'!BJ1442)","v":""},{"$f":"IF('1. Ordersheet'!BK1442=\"\",\"\",'1. Ordersheet'!BK1442)","v":""},{"$f":"IF('1. Ordersheet'!BL1442=\"\",\"\",'1. Ordersheet'!BL1442)","v":""}]
[{"$f":"IF('1. Ordersheet'!F1443=\"\",\"\",'1. Ordersheet'!F1443)","v":""},{"$f":"IF('1. Ordersheet'!G1443=\"\",\"\",'1. Ordersheet'!G1443)","v":""},{"$f":"IF('1. Ordersheet'!H1443=\"\",\"\",'1. Ordersheet'!H1443)","v":""},{"$f":"IF('1. Ordersheet'!I1443=\"\",\"\",'1. Ordersheet'!I1443)","v":""},{"$f":"IF('1. Ordersheet'!J1443=\"\",\"\",'1. Ordersheet'!J1443)","v":""},{"$f":"IF('1. Ordersheet'!K1443=\"\",\"\",'1. Ordersheet'!K1443)","v":""},{"$f":"IF('1. Ordersheet'!L1443=\"\",\"\",'1. Ordersheet'!L1443)","v":""},{"$f":"IF('1. Ordersheet'!M1443=\"\",\"\",'1. Ordersheet'!M1443)","v":""},{"$f":"IF('1. Ordersheet'!N1443=\"\",\"\",'1. Ordersheet'!N1443)","v":""},{"$f":"IF('1. Ordersheet'!O1443=\"\",\"\",'1. Ordersheet'!O1443)","v":{"$error":"#N/A"}},{"$f":"IF('1. Ordersheet'!P1443=\"\",\"\",'1. Ordersheet'!P1443)","v":{"$error":"#N/A"}},{"$f":"IF('1. Ordersheet'!Q1443=\"\",\"\",'1. Ordersheet'!Q1443)","v":""},{"$f":"IF('1. Ordersheet'!R1443=\"\",\"\",'1. Ordersheet'!R1443)","v":""},{"$f":"IF('1. Ordersheet'!S1443=\"\",\"\",'1. Ordersheet'!S1443)","v":""},{"$f":"IF('1. Ordersheet'!V1443=\"\",\"\",'1. Ordersheet'!V1443)","v":""},{"$f":"IF('1. Ordersheet'!W1443=\"\",\"\",'1. Ordersheet'!W1443)","v":""},{"$f":"IF('1. Ordersheet'!X1443=\"\",\"\",'1. Ordersheet'!X1443)","v":""},{"$f":"IF('1. Ordersheet'!Y1443=\"\",\"\",'1. Ordersheet'!Y1443)","v":""},{"$f":"IF('1. Ordersheet'!Z1443=\"\",\"\",'1. Ordersheet'!Z1443)","v":""},{"$f":"IF('1. Ordersheet'!AA1443=\"\",\"\",'1. Ordersheet'!AA1443)","v":""},null,{"$f":"IF('1. Ordersheet'!AS1443=\"\",\"\",'1. Ordersheet'!AS1443)","v":""},{"$f":"IF('1. Ordersheet'!AT1443=\"\",\"\",'1. Ordersheet'!AT1443)","v":""},null,null,null,null,null,null,null,{"$f":"IF('1. Ordersheet'!AX1443=\"\",\"\",'1. Ordersheet'!AX1443)","v":""},{"$f":"IF('1. Ordersheet'!AY1443=\"\",\"\",'1. Ordersheet'!AY1443)","v":""},{"$f":"IF('1. Ordersheet'!AZ1443=\"\",\"\",'1. Ordersheet'!AZ1443)","v":""},{"$f":"IF('1. Ordersheet'!BA1443=\"\",\"\",'1. Ordersheet'!BA1443)","v":""},{"$f":"IF('1. Ordersheet'!BC1443=\"\",\"\",'1. Ordersheet'!BC1443)","v":""},{"$f":"IF('1. Ordersheet'!BD1443=\"\",\"\",'1. Ordersheet'!BD1443)","v":""},{"$f":"IF('1. Ordersheet'!BE1443=\"\",\"\",'1. Ordersheet'!BE1443)","v":""},{"$f":"IF('1. Ordersheet'!BF1443=\"\",\"\",'1. Ordersheet'!BF1443)","v":""},{"$f":"IF('1. Ordersheet'!BG1443=\"\",\"\",'1. Ordersheet'!BG1443)","v":"ZWO"},{"$f":"IF('1. Ordersheet'!BH1443=\"\",\"\",'1. Ordersheet'!BH1443)","v":""},{"$f":"IF('1. Ordersheet'!BI1443=\"\",\"\",'1. Ordersheet'!BI1443)","v":""},{"$f":"IF('1. Ordersheet'!BJ1443=\"\",\"\",'1. Ordersheet'!BJ1443)","v":""},{"$f":"IF('1. Ordersheet'!BK1443=\"\",\"\",'1. Ordersheet'!BK1443)","v":""},{"$f":"IF('1. Ordersheet'!BL1443=\"\",\"\",'1. Ordersheet'!BL1443)","v":""}]
[{"$f":"IF('1. Ordersheet'!F1444=\"\",\"\",'1. Ordersheet'!F1444)","v":""},{"$f":"IF('1. Ordersheet'!G1444=\"\",\"\",'1. Ordersheet'!G1444)","v":""},{"$f":"IF('1. Ordersheet'!H1444=\"\",\"\",'1. Ordersheet'!H1444)","v":""},{"$f":"IF('1. Ordersheet'!I1444=\"\",\"\",'1. Ordersheet'!I1444)","v":""},{"$f":"IF('1. Ordersheet'!J1444=\"\",\"\",'1. Ordersheet'!J1444)","v":""},{"$f":"IF('1. Ordersheet'!K1444=\"\",\"\",'1. Ordersheet'!K1444)","v":""},{"$f":"IF('1. Ordersheet'!L1444=\"\",\"\",'1. Ordersheet'!L1444)","v":""},{"$f":"IF('1. Ordersheet'!M1444=\"\",\"\",'1. Ordersheet'!M1444)","v":""},{"$f":"IF('1. Ordersheet'!N1444=\"\",\"\",'1. Ordersheet'!N1444)","v":""},{"$f":"IF('1. Ordersheet'!O1444=\"\",\"\",'1. Ordersheet'!O1444)","v":{"$error":"#N/A"}},{"$f":"IF('1. Ordersheet'!P1444=\"\",\"\",'1. Ordersheet'!P1444)","v":{"$error":"#N/A"}},{"$f":"IF('1. Ordersheet'!Q1444=\"\",\"\",'1. Ordersheet'!Q1444)","v":""},{"$f":"IF('1. Ordersheet'!R1444=\"\",\"\",'1. Ordersheet'!R1444)","v":""},{"$f":"IF('1. Ordersheet'!S1444=\"\",\"\",'1. Ordersheet'!S1444)","v":""},{"$f":"IF('1. Ordersheet'!V1444=\"\",\"\",'1. Ordersheet'!V1444)","v":""},{"$f":"IF('1. Ordersheet'!W1444=\"\",\"\",'1. Ordersheet'!W1444)","v":""},{"$f":"IF('1. Ordersheet'!X1444=\"\",\"\",'1. Ordersheet'!X1444)","v":""},{"$f":"IF('1. Ordersheet'!Y1444=\"\",\"\",'1. Ordersheet'!Y1444)","v":""},{"$f":"IF('1. Ordersheet'!Z1444=\"\",\"\",'1. Ordersheet'!Z1444)","v":""},{"$f":"IF('1. Ordersheet'!AA1444=\"\",\"\",'1. Ordersheet'!AA1444)","v":""},null,{"$f":"IF('1. Ordersheet'!AS1444=\"\",\"\",'1. Ordersheet'!AS1444)","v":""},{"$f":"IF('1. Ordersheet'!AT1444=\"\",\"\",'1. Ordersheet'!AT1444)","v":""},null,null,null,null,null,null,null,{"$f":"IF('1. Ordersheet'!AX1444=\"\",\"\",'1. Ordersheet'!AX1444)","v":""},{"$f":"IF('1. Ordersheet'!AY1444=\"\",\"\",'1. Ordersheet'!AY1444)","v":""},{"$f":"IF('1. Ordersheet'!AZ1444=\"\",\"\",'1. Ordersheet'!AZ1444)","v":""},{"$f":"IF('1. Ordersheet'!BA1444=\"\",\"\",'1. Ordersheet'!BA1444)","v":""},{"$f":"IF('1. Ordersheet'!BC1444=\"\",\"\",'1. Ordersheet'!BC1444)","v":""},{"$f":"IF('1. Ordersheet'!BD1444=\"\",\"\",'1. Ordersheet'!BD1444)","v":""},{"$f":"IF('1. Ordersheet'!BE1444=\"\",\"\",'1. Ordersheet'!BE1444)","v":""},{"$f":"IF('1. Ordersheet'!BF1444=\"\",\"\",'1. Ordersheet'!BF1444)","v":""},{"$f":"IF('1. Ordersheet'!BG1444=\"\",\"\",'1. Ordersheet'!BG1444)","v":"ZWO"},{"$f":"IF('1. Ordersheet'!BH1444=\"\",\"\",'1. Ordersheet'!BH1444)","v":""},{"$f":"IF('1. Ordersheet'!BI1444=\"\",\"\",'1. Ordersheet'!BI1444)","v":""},{"$f":"IF('1. Ordersheet'!BJ1444=\"\",\"\",'1. Ordersheet'!BJ1444)","v":""},{"$f":"IF('1. Ordersheet'!BK1444=\"\",\"\",'1. Ordersheet'!BK1444)","v":""},{"$f":"IF('1. Ordersheet'!BL1444=\"\",\"\",'1. Ordersheet'!BL1444)","v":""}]
[{"$f":"IF('1. Ordersheet'!F1445=\"\",\"\",'1. Ordersheet'!F1445)","v":""},{"$f":"IF('1. Ordersheet'!G1445=\"\",\"\",'1. Ordersheet'!G1445)","v":""},{"$f":"IF('1. Ordersheet'!H1445=\"\",\"\",'1. Ordersheet'!H1445)","v":""},{"$f":"IF('1. Ordersheet'!I1445=\"\",\"\",'1. Ordersheet'!I1445)","v":""},{"$f":"IF('1. Ordersheet'!J1445=\"\",\"\",'1. Ordersheet'!J1445)","v":""},{"$f":"IF('1. Ordersheet'!K1445=\"\",\"\",'1. Ordersheet'!K1445)","v":""},{"$f":"IF('1. Ordersheet'!L1445=\"\",\"\",'1. Ordersheet'!L1445)","v":""},{"$f":"IF('1. Ordersheet'!M1445=\"\",\"\",'1. Ordersheet'!M1445)","v":""},{"$f":"IF('1. Ordersheet'!N1445=\"\",\"\",'1. Ordersheet'!N1445)","v":""},{"$f":"IF('1. Ordersheet'!O1445=\"\",\"\",'1. Ordersheet'!O1445)","v":{"$error":"#N/A"}},{"$f":"IF('1. Ordersheet'!P1445=\"\",\"\",'1. Ordersheet'!P1445)","v":{"$error":"#N/A"}},{"$f":"IF('1. Ordersheet'!Q1445=\"\",\"\",'1. Ordersheet'!Q1445)","v":""},{"$f":"IF('1. Ordersheet'!R1445=\"\",\"\",'1. Ordersheet'!R1445)","v":""},{"$f":"IF('1. Ordersheet'!S1445=\"\",\"\",'1. Ordersheet'!S1445)","v":""},{"$f":"IF('1. Ordersheet'!V1445=\"\",\"\",'1. Ordersheet'!V1445)","v":""},{"$f":"IF('1. Ordersheet'!W1445=\"\",\"\",'1. Ordersheet'!W1445)","v":""},{"$f":"IF('1. Ordersheet'!X1445=\"\",\"\",'1. Ordersheet'!X1445)","v":""},{"$f":"IF('1. Ordersheet'!Y1445=\"\",\"\",'1. Ordersheet'!Y1445)","v":""},{"$f":"IF('1. Ordersheet'!Z1445=\"\",\"\",'1. Ordersheet'!Z1445)","v":""},{"$f":"IF('1. Ordersheet'!AA1445=\"\",\"\",'1. Ordersheet'!AA1445)","v":""},null,{"$f":"IF('1. Ordersheet'!AS1445=\"\",\"\",'1. Ordersheet'!AS1445)","v":""},{"$f":"IF('1. Ordersheet'!AT1445=\"\",\"\",'1. Ordersheet'!AT1445)","v":""},null,null,null,null,null,null,null,{"$f":"IF('1. Ordersheet'!AX1445=\"\",\"\",'1. Ordersheet'!AX1445)","v":""},{"$f":"IF('1. Ordersheet'!AY1445=\"\",\"\",'1. Ordersheet'!AY1445)","v":""},{"$f":"IF('1. Ordersheet'!AZ1445=\"\",\"\",'1. Ordersheet'!AZ1445)","v":""},{"$f":"IF('1. Ordersheet'!BA1445=\"\",\"\",'1. Ordersheet'!BA1445)","v":""},{"$f":"IF('1. Ordersheet'!BC1445=\"\",\"\",'1. Ordersheet'!BC1445)","v":""},{"$f":"IF('1. Ordersheet'!BD1445=\"\",\"\",'1. Ordersheet'!BD1445)","v":""},{"$f":"IF('1. Ordersheet'!BE1445=\"\",\"\",'1. Ordersheet'!BE1445)","v":""},{"$f":"IF('1. Ordersheet'!BF1445=\"\",\"\",'1. Ordersheet'!BF1445)","v":""},{"$f":"IF('1. Ordersheet'!BG1445=\"\",\"\",'1. Ordersheet'!BG1445)","v":"ZWO"},{"$f":"IF('1. Ordersheet'!BH1445=\"\",\"\",'1. Ordersheet'!BH1445)","v":""},{"$f":"IF('1. Ordersheet'!BI1445=\"\",\"\",'1. Ordersheet'!BI1445)","v":""},{"$f":"IF('1. Ordersheet'!BJ1445=\"\",\"\",'1. Ordersheet'!BJ1445)","v":""},{"$f":"IF('1. Ordersheet'!BK1445=\"\",\"\",'1. Ordersheet'!BK1445)","v":""},{"$f":"IF('1. Ordersheet'!BL1445=\"\",\"\",'1. Ordersheet'!BL1445)","v":""}]
[{"$f":"IF('1. Ordersheet'!F1446=\"\",\"\",'1. Ordersheet'!F1446)","v":""},{"$f":"IF('1. Ordersheet'!G1446=\"\",\"\",'1. Ordersheet'!G1446)","v":""},{"$f":"IF('1. Ordersheet'!H1446=\"\",\"\",'1. Ordersheet'!H1446)","v":""},{"$f":"IF('1. Ordersheet'!I1446=\"\",\"\",'1. Ordersheet'!I1446)","v":""},{"$f":"IF('1. Ordersheet'!J1446=\"\",\"\",'1. Ordersheet'!J1446)","v":""},{"$f":"IF('1. Ordersheet'!K1446=\"\",\"\",'1. Ordersheet'!K1446)","v":""},{"$f":"IF('1. Ordersheet'!L1446=\"\",\"\",'1. Ordersheet'!L1446)","v":""},{"$f":"IF('1. Ordersheet'!M1446=\"\",\"\",'1. Ordersheet'!M1446)","v":""},{"$f":"IF('1. Ordersheet'!N1446=\"\",\"\",'1. Ordersheet'!N1446)","v":""},{"$f":"IF('1. Ordersheet'!O1446=\"\",\"\",'1. Ordersheet'!O1446)","v":{"$error":"#N/A"}},{"$f":"IF('1. Ordersheet'!P1446=\"\",\"\",'1. Ordersheet'!P1446)","v":{"$error":"#N/A"}},{"$f":"IF('1. Ordersheet'!Q1446=\"\",\"\",'1. Ordersheet'!Q1446)","v":""},{"$f":"IF('1. Ordersheet'!R1446=\"\",\"\",'1. Ordersheet'!R1446)","v":""},{"$f":"IF('1. Ordersheet'!S1446=\"\",\"\",'1. Ordersheet'!S1446)","v":""},{"$f":"IF('1. Ordersheet'!V1446=\"\",\"\",'1. Ordersheet'!V1446)","v":""},{"$f":"IF('1. Ordersheet'!W1446=\"\",\"\",'1. Ordersheet'!W1446)","v":""},{"$f":"IF('1. Ordersheet'!X1446=\"\",\"\",'1. Ordersheet'!X1446)","v":""},{"$f":"IF('1. Ordersheet'!Y1446=\"\",\"\",'1. Ordersheet'!Y1446)","v":""},{"$f":"IF('1. Ordersheet'!Z1446=\"\",\"\",'1. Ordersheet'!Z1446)","v":""},{"$f":"IF('1. Ordersheet'!AA1446=\"\",\"\",'1. Ordersheet'!AA1446)","v":""},null,{"$f":"IF('1. Ordersheet'!AS1446=\"\",\"\",'1. Ordersheet'!AS1446)","v":""},{"$f":"IF('1. Ordersheet'!AT1446=\"\",\"\",'1. Ordersheet'!AT1446)","v":""},null,null,null,null,null,null,null,{"$f":"IF('1. Ordersheet'!AX1446=\"\",\"\",'1. Ordersheet'!AX1446)","v":""},{"$f":"IF('1. Ordersheet'!AY1446=\"\",\"\",'1. Ordersheet'!AY1446)","v":""},{"$f":"IF('1. Ordersheet'!AZ1446=\"\",\"\",'1. Ordersheet'!AZ1446)","v":""},{"$f":"IF('1. Ordersheet'!BA1446=\"\",\"\",'1. Ordersheet'!BA1446)","v":""},{"$f":"IF('1. Ordersheet'!BC1446=\"\",\"\",'1. Ordersheet'!BC1446)","v":""},{"$f":"IF('1. Ordersheet'!BD1446=\"\",\"\",'1. Ordersheet'!BD1446)","v":""},{"$f":"IF('1. Ordersheet'!BE1446=\"\",\"\",'1. Ordersheet'!BE1446)","v":""},{"$f":"IF('1. Ordersheet'!BF1446=\"\",\"\",'1. Ordersheet'!BF1446)","v":""},{"$f":"IF('1. Ordersheet'!BG1446=\"\",\"\",'1. Ordersheet'!BG1446)","v":"ZWO"},{"$f":"IF('1. Ordersheet'!BH1446=\"\",\"\",'1. Ordersheet'!BH1446)","v":""},{"$f":"IF('1. Ordersheet'!BI1446=\"\",\"\",'1. Ordersheet'!BI1446)","v":""},{"$f":"IF('1. Ordersheet'!BJ1446=\"\",\"\",'1. Ordersheet'!BJ1446)","v":""},{"$f":"IF('1. Ordersheet'!BK1446=\"\",\"\",'1. Ordersheet'!BK1446)","v":""},{"$f":"IF('1. Ordersheet'!BL1446=\"\",\"\",'1. Ordersheet'!BL1446)","v":""}]
[{"$f":"IF('1. Ordersheet'!F1447=\"\",\"\",'1. Ordersheet'!F1447)","v":""},{"$f":"IF('1. Ordersheet'!G1447=\"\",\"\",'1. Ordersheet'!G1447)","v":""},{"$f":"IF('1. Ordersheet'!H1447=\"\",\"\",'1. Ordersheet'!H1447)","v":""},{"$f":"IF('1. Ordersheet'!I1447=\"\",\"\",'1. Ordersheet'!I1447)","v":""},{"$f":"IF('1. Ordersheet'!J1447=\"\",\"\",'1. Ordersheet'!J1447)","v":""},{"$f":"IF('1. Ordersheet'!K1447=\"\",\"\",'1. Ordersheet'!K1447)","v":""},{"$f":"IF('1. Ordersheet'!L1447=\"\",\"\",'1. Ordersheet'!L1447)","v":""},{"$f":"IF('1. Ordersheet'!M1447=\"\",\"\",'1. Ordersheet'!M1447)","v":""},{"$f":"IF('1. Ordersheet'!N1447=\"\",\"\",'1. Ordersheet'!N1447)","v":""},{"$f":"IF('1. Ordersheet'!O1447=\"\",\"\",'1. Ordersheet'!O1447)","v":{"$error":"#N/A"}},{"$f":"IF('1. Ordersheet'!P1447=\"\",\"\",'1. Ordersheet'!P1447)","v":{"$error":"#N/A"}},{"$f":"IF('1. Ordersheet'!Q1447=\"\",\"\",'1. Ordersheet'!Q1447)","v":""},{"$f":"IF('1. Ordersheet'!R1447=\"\",\"\",'1. Ordersheet'!R1447)","v":""},{"$f":"IF('1. Ordersheet'!S1447=\"\",\"\",'1. Ordersheet'!S1447)","v":""},{"$f":"IF('1. Ordersheet'!V1447=\"\",\"\",'1. Ordersheet'!V1447)","v":""},{"$f":"IF('1. Ordersheet'!W1447=\"\",\"\",'1. Ordersheet'!W1447)","v":""},{"$f":"IF('1. Ordersheet'!X1447=\"\",\"\",'1. Ordersheet'!X1447)","v":""},{"$f":"IF('1. Ordersheet'!Y1447=\"\",\"\",'1. Ordersheet'!Y1447)","v":""},{"$f":"IF('1. Ordersheet'!Z1447=\"\",\"\",'1. Ordersheet'!Z1447)","v":""},{"$f":"IF('1. Ordersheet'!AA1447=\"\",\"\",'1. Ordersheet'!AA1447)","v":""},null,{"$f":"IF('1. Ordersheet'!AS1447=\"\",\"\",'1. Ordersheet'!AS1447)","v":""},{"$f":"IF('1. Ordersheet'!AT1447=\"\",\"\",'1. Ordersheet'!AT1447)","v":""},null,null,null,null,null,null,null,{"$f":"IF('1. Ordersheet'!AX1447=\"\",\"\",'1. Ordersheet'!AX1447)","v":""},{"$f":"IF('1. Ordersheet'!AY1447=\"\",\"\",'1. Ordersheet'!AY1447)","v":""},{"$f":"IF('1. Ordersheet'!AZ1447=\"\",\"\",'1. Ordersheet'!AZ1447)","v":""},{"$f":"IF('1. Ordersheet'!BA1447=\"\",\"\",'1. Ordersheet'!BA1447)","v":""},{"$f":"IF('1. Ordersheet'!BC1447=\"\",\"\",'1. Ordersheet'!BC1447)","v":""},{"$f":"IF('1. Ordersheet'!BD1447=\"\",\"\",'1. Ordersheet'!BD1447)","v":""},{"$f":"IF('1. Ordersheet'!BE1447=\"\",\"\",'1. Ordersheet'!BE1447)","v":""},{"$f":"IF('1. Ordersheet'!BF1447=\"\",\"\",'1. Ordersheet'!BF1447)","v":""},{"$f":"IF('1. Ordersheet'!BG1447=\"\",\"\",'1. Ordersheet'!BG1447)","v":"ZWO"},{"$f":"IF('1. Ordersheet'!BH1447=\"\",\"\",'1. Ordersheet'!BH1447)","v":""},{"$f":"IF('1. Ordersheet'!BI1447=\"\",\"\",'1. Ordersheet'!BI1447)","v":""},{"$f":"IF('1. Ordersheet'!BJ1447=\"\",\"\",'1. Ordersheet'!BJ1447)","v":""},{"$f":"IF('1. Ordersheet'!BK1447=\"\",\"\",'1. Ordersheet'!BK1447)","v":""},{"$f":"IF('1. Ordersheet'!BL1447=\"\",\"\",'1. Ordersheet'!BL1447)","v":""}]
[{"$f":"IF('1. Ordersheet'!F1448=\"\",\"\",'1. Ordersheet'!F1448)","v":""},{"$f":"IF('1. Ordersheet'!G1448=\"\",\"\",'1. Ordersheet'!G1448)","v":""},{"$f":"IF('1. Ordersheet'!H1448=\"\",\"\",'1. Ordersheet'!H1448)","v":""},{"$f":"IF('1. Ordersheet'!I1448=\"\",\"\",'1. Ordersheet'!I1448)","v":""},{"$f":"IF('1. Ordersheet'!J1448=\"\",\"\",'1. Ordersheet'!J1448)","v":""},{"$f":"IF('1. Ordersheet'!K1448=\"\",\"\",'1. Ordersheet'!K1448)","v":""},{"$f":"IF('1. Ordersheet'!L1448=\"\",\"\",'1. Ordersheet'!L1448)","v":""},{"$f":"IF('1. Ordersheet'!M1448=\"\",\"\",'1. Ordersheet'!M1448)","v":""},{"$f":"IF('1. Ordersheet'!N1448=\"\",\"\",'1. Ordersheet'!N1448)","v":""},{"$f":"IF('1. Ordersheet'!O1448=\"\",\"\",'1. Ordersheet'!O1448)","v":{"$error":"#N/A"}},{"$f":"IF('1. Ordersheet'!P1448=\"\",\"\",'1. Ordersheet'!P1448)","v":{"$error":"#N/A"}},{"$f":"IF('1. Ordersheet'!Q1448=\"\",\"\",'1. Ordersheet'!Q1448)","v":""},{"$f":"IF('1. Ordersheet'!R1448=\"\",\"\",'1. Ordersheet'!R1448)","v":""},{"$f":"IF('1. Ordersheet'!S1448=\"\",\"\",'1. Ordersheet'!S1448)","v":""},{"$f":"IF('1. Ordersheet'!V1448=\"\",\"\",'1. Ordersheet'!V1448)","v":""},{"$f":"IF('1. Ordersheet'!W1448=\"\",\"\",'1. Ordersheet'!W1448)","v":""},{"$f":"IF('1. Ordersheet'!X1448=\"\",\"\",'1. Ordersheet'!X1448)","v":""},{"$f":"IF('1. Ordersheet'!Y1448=\"\",\"\",'1. Ordersheet'!Y1448)","v":""},{"$f":"IF('1. Ordersheet'!Z1448=\"\",\"\",'1. Ordersheet'!Z1448)","v":""},{"$f":"IF('1. Ordersheet'!AA1448=\"\",\"\",'1. Ordersheet'!AA1448)","v":""},null,{"$f":"IF('1. Ordersheet'!AS1448=\"\",\"\",'1. Ordersheet'!AS1448)","v":""},{"$f":"IF('1. Ordersheet'!AT1448=\"\",\"\",'1. Ordersheet'!AT1448)","v":""},null,null,null,null,null,null,null,{"$f":"IF('1. Ordersheet'!AX1448=\"\",\"\",'1. Ordersheet'!AX1448)","v":""},{"$f":"IF('1. Ordersheet'!AY1448=\"\",\"\",'1. Ordersheet'!AY1448)","v":""},{"$f":"IF('1. Ordersheet'!AZ1448=\"\",\"\",'1. Ordersheet'!AZ1448)","v":""},{"$f":"IF('1. Ordersheet'!BA1448=\"\",\"\",'1. Ordersheet'!BA1448)","v":""},{"$f":"IF('1. Ordersheet'!BC1448=\"\",\"\",'1. Ordersheet'!BC1448)","v":""},{"$f":"IF('1. Ordersheet'!BD1448=\"\",\"\",'1. Ordersheet'!BD1448)","v":""},{"$f":"IF('1. Ordersheet'!BE1448=\"\",\"\",'1. Ordersheet'!BE1448)","v":""},{"$f":"IF('1. Ordersheet'!BF1448=\"\",\"\",'1. Ordersheet'!BF1448)","v":""},{"$f":"IF('1. Ordersheet'!BG1448=\"\",\"\",'1. Ordersheet'!BG1448)","v":"ZWO"},{"$f":"IF('1. Ordersheet'!BH1448=\"\",\"\",'1. Ordersheet'!BH1448)","v":""},{"$f":"IF('1. Ordersheet'!BI1448=\"\",\"\",'1. Ordersheet'!BI1448)","v":""},{"$f":"IF('1. Ordersheet'!BJ1448=\"\",\"\",'1. Ordersheet'!BJ1448)","v":""},{"$f":"IF('1. Ordersheet'!BK1448=\"\",\"\",'1. Ordersheet'!BK1448)","v":""},{"$f":"IF('1. Ordersheet'!BL1448=\"\",\"\",'1. Ordersheet'!BL1448)","v":""}]
[{"$f":"IF('1. Ordersheet'!F1449=\"\",\"\",'1. Ordersheet'!F1449)","v":""},{"$f":"IF('1. Ordersheet'!G1449=\"\",\"\",'1. Ordersheet'!G1449)","v":""},{"$f":"IF('1. Ordersheet'!H1449=\"\",\"\",'1. Ordersheet'!H1449)","v":""},{"$f":"IF('1. Ordersheet'!I1449=\"\",\"\",'1. Ordersheet'!I1449)","v":""},{"$f":"IF('1. Ordersheet'!J1449=\"\",\"\",'1. Ordersheet'!J1449)","v":""},{"$f":"IF('1. Ordersheet'!K1449=\"\",\"\",'1. Ordersheet'!K1449)","v":""},{"$f":"IF('1. Ordersheet'!L1449=\"\",\"\",'1. Ordersheet'!L1449)","v":""},{"$f":"IF('1. Ordersheet'!M1449=\"\",\"\",'1. Ordersheet'!M1449)","v":""},{"$f":"IF('1. Ordersheet'!N1449=\"\",\"\",'1. Ordersheet'!N1449)","v":""},{"$f":"IF('1. Ordersheet'!O1449=\"\",\"\",'1. Ordersheet'!O1449)","v":{"$error":"#N/A"}},{"$f":"IF('1. Ordersheet'!P1449=\"\",\"\",'1. Ordersheet'!P1449)","v":{"$error":"#N/A"}},{"$f":"IF('1. Ordersheet'!Q1449=\"\",\"\",'1. Ordersheet'!Q1449)","v":""},{"$f":"IF('1. Ordersheet'!R1449=\"\",\"\",'1. Ordersheet'!R1449)","v":""},{"$f":"IF('1. Ordersheet'!S1449=\"\",\"\",'1. Ordersheet'!S1449)","v":""},{"$f":"IF('1. Ordersheet'!V1449=\"\",\"\",'1. Ordersheet'!V1449)","v":""},{"$f":"IF('1. Ordersheet'!W1449=\"\",\"\",'1. Ordersheet'!W1449)","v":""},{"$f":"IF('1. Ordersheet'!X1449=\"\",\"\",'1. Ordersheet'!X1449)","v":""},{"$f":"IF('1. Ordersheet'!Y1449=\"\",\"\",'1. Ordersheet'!Y1449)","v":""},{"$f":"IF('1. Ordersheet'!Z1449=\"\",\"\",'1. Ordersheet'!Z1449)","v":""},{"$f":"IF('1. Ordersheet'!AA1449=\"\",\"\",'1. Ordersheet'!AA1449)","v":""},null,{"$f":"IF('1. Ordersheet'!AS1449=\"\",\"\",'1. Ordersheet'!AS1449)","v":""},{"$f":"IF('1. Ordersheet'!AT1449=\"\",\"\",'1. Ordersheet'!AT1449)","v":""},null,null,null,null,null,null,null,{"$f":"IF('1. Ordersheet'!AX1449=\"\",\"\",'1. Ordersheet'!AX1449)","v":""},{"$f":"IF('1. Ordersheet'!AY1449=\"\",\"\",'1. Ordersheet'!AY1449)","v":""},{"$f":"IF('1. Ordersheet'!AZ1449=\"\",\"\",'1. Ordersheet'!AZ1449)","v":""},{"$f":"IF('1. Ordersheet'!BA1449=\"\",\"\",'1. Ordersheet'!BA1449)","v":""},{"$f":"IF('1. Ordersheet'!BC1449=\"\",\"\",'1. Ordersheet'!BC1449)","v":""},{"$f":"IF('1. Ordersheet'!BD1449=\"\",\"\",'1. Ordersheet'!BD1449)","v":""},{"$f":"IF('1. Ordersheet'!BE1449=\"\",\"\",'1. Ordersheet'!BE1449)","v":""},{"$f":"IF('1. Ordersheet'!BF1449=\"\",\"\",'1. Ordersheet'!BF1449)","v":""},{"$f":"IF('1. Ordersheet'!BG1449=\"\",\"\",'1. Ordersheet'!BG1449)","v":"ZWO"},{"$f":"IF('1. Ordersheet'!BH1449=\"\",\"\",'1. Ordersheet'!BH1449)","v":""},{"$f":"IF('1. Ordersheet'!BI1449=\"\",\"\",'1. Ordersheet'!BI1449)","v":""},{"$f":"IF('1. Ordersheet'!BJ1449=\"\",\"\",'1. Ordersheet'!BJ1449)","v":""},{"$f":"IF('1. Ordersheet'!BK1449=\"\",\"\",'1. Ordersheet'!BK1449)","v":""},{"$f":"IF('1. Ordersheet'!BL1449=\"\",\"\",'1. Ordersheet'!BL1449)","v":""}]
[{"$f":"IF('1. Ordersheet'!F1450=\"\",\"\",'1. Ordersheet'!F1450)","v":""},{"$f":"IF('1. Ordersheet'!G1450=\"\",\"\",'1. Ordersheet'!G1450)","v":""},{"$f":"IF('1. Ordersheet'!H1450=\"\",\"\",'1. Ordersheet'!H1450)","v":""},{"$f":"IF('1. Ordersheet'!I1450=\"\",\"\",'1. Ordersheet'!I1450)","v":""},{"$f":"IF('1. Ordersheet'!J1450=\"\",\"\",'1. Ordersheet'!J1450)","v":""},{"$f":"IF('1. Ordersheet'!K1450=\"\",\"\",'1. Ordersheet'!K1450)","v":""},{"$f":"IF('1. Ordersheet'!L1450=\"\",\"\",'1. Ordersheet'!L1450)","v":""},{"$f":"IF('1. Ordersheet'!M1450=\"\",\"\",'1. Ordersheet'!M1450)","v":""},{"$f":"IF('1. Ordersheet'!N1450=\"\",\"\",'1. Ordersheet'!N1450)","v":""},{"$f":"IF('1. Ordersheet'!O1450=\"\",\"\",'1. Ordersheet'!O1450)","v":{"$error":"#N/A"}},{"$f":"IF('1. Ordersheet'!P1450=\"\",\"\",'1. Ordersheet'!P1450)","v":{"$error":"#N/A"}},{"$f":"IF('1. Ordersheet'!Q1450=\"\",\"\",'1. Ordersheet'!Q1450)","v":""},{"$f":"IF('1. Ordersheet'!R1450=\"\",\"\",'1. Ordersheet'!R1450)","v":""},{"$f":"IF('1. Ordersheet'!S1450=\"\",\"\",'1. Ordersheet'!S1450)","v":""},{"$f":"IF('1. Ordersheet'!V1450=\"\",\"\",'1. Ordersheet'!V1450)","v":""},{"$f":"IF('1. Ordersheet'!W1450=\"\",\"\",'1. Ordersheet'!W1450)","v":""},{"$f":"IF('1. Ordersheet'!X1450=\"\",\"\",'1. Ordersheet'!X1450)","v":""},{"$f":"IF('1. Ordersheet'!Y1450=\"\",\"\",'1. Ordersheet'!Y1450)","v":""},{"$f":"IF('1. Ordersheet'!Z1450=\"\",\"\",'1. Ordersheet'!Z1450)","v":""},{"$f":"IF('1. Ordersheet'!AA1450=\"\",\"\",'1. Ordersheet'!AA1450)","v":""},null,{"$f":"IF('1. Ordersheet'!AS1450=\"\",\"\",'1. Ordersheet'!AS1450)","v":""},{"$f":"IF('1. Ordersheet'!AT1450=\"\",\"\",'1. Ordersheet'!AT1450)","v":""},null,null,null,null,null,null,null,{"$f":"IF('1. Ordersheet'!AX1450=\"\",\"\",'1. Ordersheet'!AX1450)","v":""},{"$f":"IF('1. Ordersheet'!AY1450=\"\",\"\",'1. Ordersheet'!AY1450)","v":""},{"$f":"IF('1. Ordersheet'!AZ1450=\"\",\"\",'1. Ordersheet'!AZ1450)","v":""},{"$f":"IF('1. Ordersheet'!BA1450=\"\",\"\",'1. Ordersheet'!BA1450)","v":""},{"$f":"IF('1. Ordersheet'!BC1450=\"\",\"\",'1. Ordersheet'!BC1450)","v":""},{"$f":"IF('1. Ordersheet'!BD1450=\"\",\"\",'1. Ordersheet'!BD1450)","v":""},{"$f":"IF('1. Ordersheet'!BE1450=\"\",\"\",'1. Ordersheet'!BE1450)","v":""},{"$f":"IF('1. Ordersheet'!BF1450=\"\",\"\",'1. Ordersheet'!BF1450)","v":""},{"$f":"IF('1. Ordersheet'!BG1450=\"\",\"\",'1. Ordersheet'!BG1450)","v":"ZWO"},{"$f":"IF('1. Ordersheet'!BH1450=\"\",\"\",'1. Ordersheet'!BH1450)","v":""},{"$f":"IF('1. Ordersheet'!BI1450=\"\",\"\",'1. Ordersheet'!BI1450)","v":""},{"$f":"IF('1. Ordersheet'!BJ1450=\"\",\"\",'1. Ordersheet'!BJ1450)","v":""},{"$f":"IF('1. Ordersheet'!BK1450=\"\",\"\",'1. Ordersheet'!BK1450)","v":""},{"$f":"IF('1. Ordersheet'!BL1450=\"\",\"\",'1. Ordersheet'!BL1450)","v":""}]
[{"$f":"IF('1. Ordersheet'!F1451=\"\",\"\",'1. Ordersheet'!F1451)","v":""},{"$f":"IF('1. Ordersheet'!G1451=\"\",\"\",'1. Ordersheet'!G1451)","v":""},{"$f":"IF('1. Ordersheet'!H1451=\"\",\"\",'1. Ordersheet'!H1451)","v":""},{"$f":"IF('1. Ordersheet'!I1451=\"\",\"\",'1. Ordersheet'!I1451)","v":""},{"$f":"IF('1. Ordersheet'!J1451=\"\",\"\",'1. Ordersheet'!J1451)","v":""},{"$f":"IF('1. Ordersheet'!K1451=\"\",\"\",'1. Ordersheet'!K1451)","v":""},{"$f":"IF('1. Ordersheet'!L1451=\"\",\"\",'1. Ordersheet'!L1451)","v":""},{"$f":"IF('1. Ordersheet'!M1451=\"\",\"\",'1. Ordersheet'!M1451)","v":""},{"$f":"IF('1. Ordersheet'!N1451=\"\",\"\",'1. Ordersheet'!N1451)","v":""},{"$f":"IF('1. Ordersheet'!O1451=\"\",\"\",'1. Ordersheet'!O1451)","v":{"$error":"#N/A"}},{"$f":"IF('1. Ordersheet'!P1451=\"\",\"\",'1. Ordersheet'!P1451)","v":{"$error":"#N/A"}},{"$f":"IF('1. Ordersheet'!Q1451=\"\",\"\",'1. Ordersheet'!Q1451)","v":""},{"$f":"IF('1. Ordersheet'!R1451=\"\",\"\",'1. Ordersheet'!R1451)","v":""},{"$f":"IF('1. Ordersheet'!S1451=\"\",\"\",'1. Ordersheet'!S1451)","v":""},{"$f":"IF('1. Ordersheet'!V1451=\"\",\"\",'1. Ordersheet'!V1451)","v":""},{"$f":"IF('1. Ordersheet'!W1451=\"\",\"\",'1. Ordersheet'!W1451)","v":""},{"$f":"IF('1. Ordersheet'!X1451=\"\",\"\",'1. Ordersheet'!X1451)","v":""},{"$f":"IF('1. Ordersheet'!Y1451=\"\",\"\",'1. Ordersheet'!Y1451)","v":""},{"$f":"IF('1. Ordersheet'!Z1451=\"\",\"\",'1. Ordersheet'!Z1451)","v":""},{"$f":"IF('1. Ordersheet'!AA1451=\"\",\"\",'1. Ordersheet'!AA1451)","v":""},null,{"$f":"IF('1. Ordersheet'!AS1451=\"\",\"\",'1. Ordersheet'!AS1451)","v":""},{"$f":"IF('1. Ordersheet'!AT1451=\"\",\"\",'1. Ordersheet'!AT1451)","v":""},null,null,null,null,null,null,null,{"$f":"IF('1. Ordersheet'!AX1451=\"\",\"\",'1. Ordersheet'!AX1451)","v":""},{"$f":"IF('1. Ordersheet'!AY1451=\"\",\"\",'1. Ordersheet'!AY1451)","v":""},{"$f":"IF('1. Ordersheet'!AZ1451=\"\",\"\",'1. Ordersheet'!AZ1451)","v":""},{"$f":"IF('1. Ordersheet'!BA1451=\"\",\"\",'1. Ordersheet'!BA1451)","v":""},{"$f":"IF('1. Ordersheet'!BC1451=\"\",\"\",'1. Ordersheet'!BC1451)","v":""},{"$f":"IF('1. Ordersheet'!BD1451=\"\",\"\",'1. Ordersheet'!BD1451)","v":""},{"$f":"IF('1. Ordersheet'!BE1451=\"\",\"\",'1. Ordersheet'!BE1451)","v":""},{"$f":"IF('1. Ordersheet'!BF1451=\"\",\"\",'1. Ordersheet'!BF1451)","v":""},{"$f":"IF('1. Ordersheet'!BG1451=\"\",\"\",'1. Ordersheet'!BG1451)","v":"ZWO"},{"$f":"IF('1. Ordersheet'!BH1451=\"\",\"\",'1. Ordersheet'!BH1451)","v":""},{"$f":"IF('1. Ordersheet'!BI1451=\"\",\"\",'1. Ordersheet'!BI1451)","v":""},{"$f":"IF('1. Ordersheet'!BJ1451=\"\",\"\",'1. Ordersheet'!BJ1451)","v":""},{"$f":"IF('1. Ordersheet'!BK1451=\"\",\"\",'1. Ordersheet'!BK1451)","v":""},{"$f":"IF('1. Ordersheet'!BL1451=\"\",\"\",'1. Ordersheet'!BL1451)","v":""}]
[{"$f":"IF('1. Ordersheet'!F1452=\"\",\"\",'1. Ordersheet'!F1452)","v":""},{"$f":"IF('1. Ordersheet'!G1452=\"\",\"\",'1. Ordersheet'!G1452)","v":""},{"$f":"IF('1. Ordersheet'!H1452=\"\",\"\",'1. Ordersheet'!H1452)","v":""},{"$f":"IF('1. Ordersheet'!I1452=\"\",\"\",'1. Ordersheet'!I1452)","v":""},{"$f":"IF('1. Ordersheet'!J1452=\"\",\"\",'1. Ordersheet'!J1452)","v":""},{"$f":"IF('1. Ordersheet'!K1452=\"\",\"\",'1. Ordersheet'!K1452)","v":""},{"$f":"IF('1. Ordersheet'!L1452=\"\",\"\",'1. Ordersheet'!L1452)","v":""},{"$f":"IF('1. Ordersheet'!M1452=\"\",\"\",'1. Ordersheet'!M1452)","v":""},{"$f":"IF('1. Ordersheet'!N1452=\"\",\"\",'1. Ordersheet'!N1452)","v":""},{"$f":"IF('1. Ordersheet'!O1452=\"\",\"\",'1. Ordersheet'!O1452)","v":{"$error":"#N/A"}},{"$f":"IF('1. Ordersheet'!P1452=\"\",\"\",'1. Ordersheet'!P1452)","v":{"$error":"#N/A"}},{"$f":"IF('1. Ordersheet'!Q1452=\"\",\"\",'1. Ordersheet'!Q1452)","v":""},{"$f":"IF('1. Ordersheet'!R1452=\"\",\"\",'1. Ordersheet'!R1452)","v":""},{"$f":"IF('1. Ordersheet'!S1452=\"\",\"\",'1. Ordersheet'!S1452)","v":""},{"$f":"IF('1. Ordersheet'!V1452=\"\",\"\",'1. Ordersheet'!V1452)","v":""},{"$f":"IF('1. Ordersheet'!W1452=\"\",\"\",'1. Ordersheet'!W1452)","v":""},{"$f":"IF('1. Ordersheet'!X1452=\"\",\"\",'1. Ordersheet'!X1452)","v":""},{"$f":"IF('1. Ordersheet'!Y1452=\"\",\"\",'1. Ordersheet'!Y1452)","v":""},{"$f":"IF('1. Ordersheet'!Z1452=\"\",\"\",'1. Ordersheet'!Z1452)","v":""},{"$f":"IF('1. Ordersheet'!AA1452=\"\",\"\",'1. Ordersheet'!AA1452)","v":""},null,{"$f":"IF('1. Ordersheet'!AS1452=\"\",\"\",'1. Ordersheet'!AS1452)","v":""},{"$f":"IF('1. Ordersheet'!AT1452=\"\",\"\",'1. Ordersheet'!AT1452)","v":""},null,null,null,null,null,null,null,{"$f":"IF('1. Ordersheet'!AX1452=\"\",\"\",'1. Ordersheet'!AX1452)","v":""},{"$f":"IF('1. Ordersheet'!AY1452=\"\",\"\",'1. Ordersheet'!AY1452)","v":""},{"$f":"IF('1. Ordersheet'!AZ1452=\"\",\"\",'1. Ordersheet'!AZ1452)","v":""},{"$f":"IF('1. Ordersheet'!BA1452=\"\",\"\",'1. Ordersheet'!BA1452)","v":""},{"$f":"IF('1. Ordersheet'!BC1452=\"\",\"\",'1. Ordersheet'!BC1452)","v":""},{"$f":"IF('1. Ordersheet'!BD1452=\"\",\"\",'1. Ordersheet'!BD1452)","v":""},{"$f":"IF('1. Ordersheet'!BE1452=\"\",\"\",'1. Ordersheet'!BE1452)","v":""},{"$f":"IF('1. Ordersheet'!BF1452=\"\",\"\",'1. Ordersheet'!BF1452)","v":""},{"$f":"IF('1. Ordersheet'!BG1452=\"\",\"\",'1. Ordersheet'!BG1452)","v":"ZWO"},{"$f":"IF('1. Ordersheet'!BH1452=\"\",\"\",'1. Ordersheet'!BH1452)","v":""},{"$f":"IF('1. Ordersheet'!BI1452=\"\",\"\",'1. Ordersheet'!BI1452)","v":""},{"$f":"IF('1. Ordersheet'!BJ1452=\"\",\"\",'1. Ordersheet'!BJ1452)","v":""},{"$f":"IF('1. Ordersheet'!BK1452=\"\",\"\",'1. Ordersheet'!BK1452)","v":""},{"$f":"IF('1. Ordersheet'!BL1452=\"\",\"\",'1. Ordersheet'!BL1452)","v":""}]
[{"$f":"IF('1. Ordersheet'!F1453=\"\",\"\",'1. Ordersheet'!F1453)","v":""},{"$f":"IF('1. Ordersheet'!G1453=\"\",\"\",'1. Ordersheet'!G1453)","v":""},{"$f":"IF('1. Ordersheet'!H1453=\"\",\"\",'1. Ordersheet'!H1453)","v":""},{"$f":"IF('1. Ordersheet'!I1453=\"\",\"\",'1. Ordersheet'!I1453)","v":""},{"$f":"IF('1. Ordersheet'!J1453=\"\",\"\",'1. Ordersheet'!J1453)","v":""},{"$f":"IF('1. Ordersheet'!K1453=\"\",\"\",'1. Ordersheet'!K1453)","v":""},{"$f":"IF('1. Ordersheet'!L1453=\"\",\"\",'1. Ordersheet'!L1453)","v":""},{"$f":"IF('1. Ordersheet'!M1453=\"\",\"\",'1. Ordersheet'!M1453)","v":""},{"$f":"IF('1. Ordersheet'!N1453=\"\",\"\",'1. Ordersheet'!N1453)","v":""},{"$f":"IF('1. Ordersheet'!O1453=\"\",\"\",'1. Ordersheet'!O1453)","v":{"$error":"#N/A"}},{"$f":"IF('1. Ordersheet'!P1453=\"\",\"\",'1. Ordersheet'!P1453)","v":{"$error":"#N/A"}},{"$f":"IF('1. Ordersheet'!Q1453=\"\",\"\",'1. Ordersheet'!Q1453)","v":""},{"$f":"IF('1. Ordersheet'!R1453=\"\",\"\",'1. Ordersheet'!R1453)","v":""},{"$f":"IF('1. Ordersheet'!S1453=\"\",\"\",'1. Ordersheet'!S1453)","v":""},{"$f":"IF('1. Ordersheet'!V1453=\"\",\"\",'1. Ordersheet'!V1453)","v":""},{"$f":"IF('1. Ordersheet'!W1453=\"\",\"\",'1. Ordersheet'!W1453)","v":""},{"$f":"IF('1. Ordersheet'!X1453=\"\",\"\",'1. Ordersheet'!X1453)","v":""},{"$f":"IF('1. Ordersheet'!Y1453=\"\",\"\",'1. Ordersheet'!Y1453)","v":""},{"$f":"IF('1. Ordersheet'!Z1453=\"\",\"\",'1. Ordersheet'!Z1453)","v":""},{"$f":"IF('1. Ordersheet'!AA1453=\"\",\"\",'1. Ordersheet'!AA1453)","v":""},null,{"$f":"IF('1. Ordersheet'!AS1453=\"\",\"\",'1. Ordersheet'!AS1453)","v":""},{"$f":"IF('1. Ordersheet'!AT1453=\"\",\"\",'1. Ordersheet'!AT1453)","v":""},null,null,null,null,null,null,null,{"$f":"IF('1. Ordersheet'!AX1453=\"\",\"\",'1. Ordersheet'!AX1453)","v":""},{"$f":"IF('1. Ordersheet'!AY1453=\"\",\"\",'1. Ordersheet'!AY1453)","v":""},{"$f":"IF('1. Ordersheet'!AZ1453=\"\",\"\",'1. Ordersheet'!AZ1453)","v":""},{"$f":"IF('1. Ordersheet'!BA1453=\"\",\"\",'1. Ordersheet'!BA1453)","v":""},{"$f":"IF('1. Ordersheet'!BC1453=\"\",\"\",'1. Ordersheet'!BC1453)","v":""},{"$f":"IF('1. Ordersheet'!BD1453=\"\",\"\",'1. Ordersheet'!BD1453)","v":""},{"$f":"IF('1. Ordersheet'!BE1453=\"\",\"\",'1. Ordersheet'!BE1453)","v":""},{"$f":"IF('1. Ordersheet'!BF1453=\"\",\"\",'1. Ordersheet'!BF1453)","v":""},{"$f":"IF('1. Ordersheet'!BG1453=\"\",\"\",'1. Ordersheet'!BG1453)","v":"ZWO"},{"$f":"IF('1. Ordersheet'!BH1453=\"\",\"\",'1. Ordersheet'!BH1453)","v":""},{"$f":"IF('1. Ordersheet'!BI1453=\"\",\"\",'1. Ordersheet'!BI1453)","v":""},{"$f":"IF('1. Ordersheet'!BJ1453=\"\",\"\",'1. Ordersheet'!BJ1453)","v":""},{"$f":"IF('1. Ordersheet'!BK1453=\"\",\"\",'1. Ordersheet'!BK1453)","v":""},{"$f":"IF('1. Ordersheet'!BL1453=\"\",\"\",'1. Ordersheet'!BL1453)","v":""}]
[{"$f":"IF('1. Ordersheet'!F1454=\"\",\"\",'1. Ordersheet'!F1454)","v":""},{"$f":"IF('1. Ordersheet'!G1454=\"\",\"\",'1. Ordersheet'!G1454)","v":""},{"$f":"IF('1. Ordersheet'!H1454=\"\",\"\",'1. Ordersheet'!H1454)","v":""},{"$f":"IF('1. Ordersheet'!I1454=\"\",\"\",'1. Ordersheet'!I1454)","v":""},{"$f":"IF('1. Ordersheet'!J1454=\"\",\"\",'1. Ordersheet'!J1454)","v":""},{"$f":"IF('1. Ordersheet'!K1454=\"\",\"\",'1. Ordersheet'!K1454)","v":""},{"$f":"IF('1. Ordersheet'!L1454=\"\",\"\",'1. Ordersheet'!L1454)","v":""},{"$f":"IF('1. Ordersheet'!M1454=\"\",\"\",'1. Ordersheet'!M1454)","v":""},{"$f":"IF('1. Ordersheet'!N1454=\"\",\"\",'1. Ordersheet'!N1454)","v":""},{"$f":"IF('1. Ordersheet'!O1454=\"\",\"\",'1. Ordersheet'!O1454)","v":{"$error":"#N/A"}},{"$f":"IF('1. Ordersheet'!P1454=\"\",\"\",'1. Ordersheet'!P1454)","v":{"$error":"#N/A"}},{"$f":"IF('1. Ordersheet'!Q1454=\"\",\"\",'1. Ordersheet'!Q1454)","v":""},{"$f":"IF('1. Ordersheet'!R1454=\"\",\"\",'1. Ordersheet'!R1454)","v":""},{"$f":"IF('1. Ordersheet'!S1454=\"\",\"\",'1. Ordersheet'!S1454)","v":""},{"$f":"IF('1. Ordersheet'!V1454=\"\",\"\",'1. Ordersheet'!V1454)","v":""},{"$f":"IF('1. Ordersheet'!W1454=\"\",\"\",'1. Ordersheet'!W1454)","v":""},{"$f":"IF('1. Ordersheet'!X1454=\"\",\"\",'1. Ordersheet'!X1454)","v":""},{"$f":"IF('1. Ordersheet'!Y1454=\"\",\"\",'1. Ordersheet'!Y1454)","v":""},{"$f":"IF('1. Ordersheet'!Z1454=\"\",\"\",'1. Ordersheet'!Z1454)","v":""},{"$f":"IF('1. Ordersheet'!AA1454=\"\",\"\",'1. Ordersheet'!AA1454)","v":""},null,{"$f":"IF('1. Ordersheet'!AS1454=\"\",\"\",'1. Ordersheet'!AS1454)","v":""},{"$f":"IF('1. Ordersheet'!AT1454=\"\",\"\",'1. Ordersheet'!AT1454)","v":""},null,null,null,null,null,null,null,{"$f":"IF('1. Ordersheet'!AX1454=\"\",\"\",'1. Ordersheet'!AX1454)","v":""},{"$f":"IF('1. Ordersheet'!AY1454=\"\",\"\",'1. Ordersheet'!AY1454)","v":""},{"$f":"IF('1. Ordersheet'!AZ1454=\"\",\"\",'1. Ordersheet'!AZ1454)","v":""},{"$f":"IF('1. Ordersheet'!BA1454=\"\",\"\",'1. Ordersheet'!BA1454)","v":""},{"$f":"IF('1. Ordersheet'!BC1454=\"\",\"\",'1. Ordersheet'!BC1454)","v":""},{"$f":"IF('1. Ordersheet'!BD1454=\"\",\"\",'1. Ordersheet'!BD1454)","v":""},{"$f":"IF('1. Ordersheet'!BE1454=\"\",\"\",'1. Ordersheet'!BE1454)","v":""},{"$f":"IF('1. Ordersheet'!BF1454=\"\",\"\",'1. Ordersheet'!BF1454)","v":""},{"$f":"IF('1. Ordersheet'!BG1454=\"\",\"\",'1. Ordersheet'!BG1454)","v":"ZWO"},{"$f":"IF('1. Ordersheet'!BH1454=\"\",\"\",'1. Ordersheet'!BH1454)","v":""},{"$f":"IF('1. Ordersheet'!BI1454=\"\",\"\",'1. Ordersheet'!BI1454)","v":""},{"$f":"IF('1. Ordersheet'!BJ1454=\"\",\"\",'1. Ordersheet'!BJ1454)","v":""},{"$f":"IF('1. Ordersheet'!BK1454=\"\",\"\",'1. Ordersheet'!BK1454)","v":""},{"$f":"IF('1. Ordersheet'!BL1454=\"\",\"\",'1. Ordersheet'!BL1454)","v":""}]
[{"$f":"IF('1. Ordersheet'!F1455=\"\",\"\",'1. Ordersheet'!F1455)","v":""},{"$f":"IF('1. Ordersheet'!G1455=\"\",\"\",'1. Ordersheet'!G1455)","v":""},{"$f":"IF('1. Ordersheet'!H1455=\"\",\"\",'1. Ordersheet'!H1455)","v":""},{"$f":"IF('1. Ordersheet'!I1455=\"\",\"\",'1. Ordersheet'!I1455)","v":""},{"$f":"IF('1. Ordersheet'!J1455=\"\",\"\",'1. Ordersheet'!J1455)","v":""},{"$f":"IF('1. Ordersheet'!K1455=\"\",\"\",'1. Ordersheet'!K1455)","v":""},{"$f":"IF('1. Ordersheet'!L1455=\"\",\"\",'1. Ordersheet'!L1455)","v":""},{"$f":"IF('1. Ordersheet'!M1455=\"\",\"\",'1. Ordersheet'!M1455)","v":""},{"$f":"IF('1. Ordersheet'!N1455=\"\",\"\",'1. Ordersheet'!N1455)","v":""},{"$f":"IF('1. Ordersheet'!O1455=\"\",\"\",'1. Ordersheet'!O1455)","v":{"$error":"#N/A"}},{"$f":"IF('1. Ordersheet'!P1455=\"\",\"\",'1. Ordersheet'!P1455)","v":{"$error":"#N/A"}},{"$f":"IF('1. Ordersheet'!Q1455=\"\",\"\",'1. Ordersheet'!Q1455)","v":""},{"$f":"IF('1. Ordersheet'!R1455=\"\",\"\",'1. Ordersheet'!R1455)","v":""},{"$f":"IF('1. Ordersheet'!S1455=\"\",\"\",'1. Ordersheet'!S1455)","v":""},{"$f":"IF('1. Ordersheet'!V1455=\"\",\"\",'1. Ordersheet'!V1455)","v":""},{"$f":"IF('1. Ordersheet'!W1455=\"\",\"\",'1. Ordersheet'!W1455)","v":""},{"$f":"IF('1. Ordersheet'!X1455=\"\",\"\",'1. Ordersheet'!X1455)","v":""},{"$f":"IF('1. Ordersheet'!Y1455=\"\",\"\",'1. Ordersheet'!Y1455)","v":""},{"$f":"IF('1. Ordersheet'!Z1455=\"\",\"\",'1. Ordersheet'!Z1455)","v":""},{"$f":"IF('1. Ordersheet'!AA1455=\"\",\"\",'1. Ordersheet'!AA1455)","v":""},null,{"$f":"IF('1. Ordersheet'!AS1455=\"\",\"\",'1. Ordersheet'!AS1455)","v":""},{"$f":"IF('1. Ordersheet'!AT1455=\"\",\"\",'1. Ordersheet'!AT1455)","v":""},null,null,null,null,null,null,null,{"$f":"IF('1. Ordersheet'!AX1455=\"\",\"\",'1. Ordersheet'!AX1455)","v":""},{"$f":"IF('1. Ordersheet'!AY1455=\"\",\"\",'1. Ordersheet'!AY1455)","v":""},{"$f":"IF('1. Ordersheet'!AZ1455=\"\",\"\",'1. Ordersheet'!AZ1455)","v":""},{"$f":"IF('1. Ordersheet'!BA1455=\"\",\"\",'1. Ordersheet'!BA1455)","v":""},{"$f":"IF('1. Ordersheet'!BC1455=\"\",\"\",'1. Ordersheet'!BC1455)","v":""},{"$f":"IF('1. Ordersheet'!BD1455=\"\",\"\",'1. Ordersheet'!BD1455)","v":""},{"$f":"IF('1. Ordersheet'!BE1455=\"\",\"\",'1. Ordersheet'!BE1455)","v":""},{"$f":"IF('1. Ordersheet'!BF1455=\"\",\"\",'1. Ordersheet'!BF1455)","v":""},{"$f":"IF('1. Ordersheet'!BG1455=\"\",\"\",'1. Ordersheet'!BG1455)","v":"ZWO"},{"$f":"IF('1. Ordersheet'!BH1455=\"\",\"\",'1. Ordersheet'!BH1455)","v":""},{"$f":"IF('1. Ordersheet'!BI1455=\"\",\"\",'1. Ordersheet'!BI1455)","v":""},{"$f":"IF('1. Ordersheet'!BJ1455=\"\",\"\",'1. Ordersheet'!BJ1455)","v":""},{"$f":"IF('1. Ordersheet'!BK1455=\"\",\"\",'1. Ordersheet'!BK1455)","v":""},{"$f":"IF('1. Ordersheet'!BL1455=\"\",\"\",'1. Ordersheet'!BL1455)","v":""}]
[{"$f":"IF('1. Ordersheet'!F1456=\"\",\"\",'1. Ordersheet'!F1456)","v":""},{"$f":"IF('1. Ordersheet'!G1456=\"\",\"\",'1. Ordersheet'!G1456)","v":""},{"$f":"IF('1. Ordersheet'!H1456=\"\",\"\",'1. Ordersheet'!H1456)","v":""},{"$f":"IF('1. Ordersheet'!I1456=\"\",\"\",'1. Ordersheet'!I1456)","v":""},{"$f":"IF('1. Ordersheet'!J1456=\"\",\"\",'1. Ordersheet'!J1456)","v":""},{"$f":"IF('1. Ordersheet'!K1456=\"\",\"\",'1. Ordersheet'!K1456)","v":""},{"$f":"IF('1. Ordersheet'!L1456=\"\",\"\",'1. Ordersheet'!L1456)","v":""},{"$f":"IF('1. Ordersheet'!M1456=\"\",\"\",'1. Ordersheet'!M1456)","v":""},{"$f":"IF('1. Ordersheet'!N1456=\"\",\"\",'1. Ordersheet'!N1456)","v":""},{"$f":"IF('1. Ordersheet'!O1456=\"\",\"\",'1. Ordersheet'!O1456)","v":{"$error":"#N/A"}},{"$f":"IF('1. Ordersheet'!P1456=\"\",\"\",'1. Ordersheet'!P1456)","v":{"$error":"#N/A"}},{"$f":"IF('1. Ordersheet'!Q1456=\"\",\"\",'1. Ordersheet'!Q1456)","v":""},{"$f":"IF('1. Ordersheet'!R1456=\"\",\"\",'1. Ordersheet'!R1456)","v":""},{"$f":"IF('1. Ordersheet'!S1456=\"\",\"\",'1. Ordersheet'!S1456)","v":""},{"$f":"IF('1. Ordersheet'!V1456=\"\",\"\",'1. Ordersheet'!V1456)","v":""},{"$f":"IF('1. Ordersheet'!W1456=\"\",\"\",'1. Ordersheet'!W1456)","v":""},{"$f":"IF('1. Ordersheet'!X1456=\"\",\"\",'1. Ordersheet'!X1456)","v":""},{"$f":"IF('1. Ordersheet'!Y1456=\"\",\"\",'1. Ordersheet'!Y1456)","v":""},{"$f":"IF('1. Ordersheet'!Z1456=\"\",\"\",'1. Ordersheet'!Z1456)","v":""},{"$f":"IF('1. Ordersheet'!AA1456=\"\",\"\",'1. Ordersheet'!AA1456)","v":""},null,{"$f":"IF('1. Ordersheet'!AS1456=\"\",\"\",'1. Ordersheet'!AS1456)","v":""},{"$f":"IF('1. Ordersheet'!AT1456=\"\",\"\",'1. Ordersheet'!AT1456)","v":""},null,null,null,null,null,null,null,{"$f":"IF('1. Ordersheet'!AX1456=\"\",\"\",'1. Ordersheet'!AX1456)","v":""},{"$f":"IF('1. Ordersheet'!AY1456=\"\",\"\",'1. Ordersheet'!AY1456)","v":""},{"$f":"IF('1. Ordersheet'!AZ1456=\"\",\"\",'1. Ordersheet'!AZ1456)","v":""},{"$f":"IF('1. Ordersheet'!BA1456=\"\",\"\",'1. Ordersheet'!BA1456)","v":""},{"$f":"IF('1. Ordersheet'!BC1456=\"\",\"\",'1. Ordersheet'!BC1456)","v":""},{"$f":"IF('1. Ordersheet'!BD1456=\"\",\"\",'1. Ordersheet'!BD1456)","v":""},{"$f":"IF('1. Ordersheet'!BE1456=\"\",\"\",'1. Ordersheet'!BE1456)","v":""},{"$f":"IF('1. Ordersheet'!BF1456=\"\",\"\",'1. Ordersheet'!BF1456)","v":""},{"$f":"IF('1. Ordersheet'!BG1456=\"\",\"\",'1. Ordersheet'!BG1456)","v":"ZWO"},{"$f":"IF('1. Ordersheet'!BH1456=\"\",\"\",'1. Ordersheet'!BH1456)","v":""},{"$f":"IF('1. Ordersheet'!BI1456=\"\",\"\",'1. Ordersheet'!BI1456)","v":""},{"$f":"IF('1. Ordersheet'!BJ1456=\"\",\"\",'1. Ordersheet'!BJ1456)","v":""},{"$f":"IF('1. Ordersheet'!BK1456=\"\",\"\",'1. Ordersheet'!BK1456)","v":""},{"$f":"IF('1. Ordersheet'!BL1456=\"\",\"\",'1. Ordersheet'!BL1456)","v":""}]
[{"$f":"IF('1. Ordersheet'!F1457=\"\",\"\",'1. Ordersheet'!F1457)","v":""},{"$f":"IF('1. Ordersheet'!G1457=\"\",\"\",'1. Ordersheet'!G1457)","v":""},{"$f":"IF('1. Ordersheet'!H1457=\"\",\"\",'1. Ordersheet'!H1457)","v":""},{"$f":"IF('1. Ordersheet'!I1457=\"\",\"\",'1. Ordersheet'!I1457)","v":""},{"$f":"IF('1. Ordersheet'!J1457=\"\",\"\",'1. Ordersheet'!J1457)","v":""},{"$f":"IF('1. Ordersheet'!K1457=\"\",\"\",'1. Ordersheet'!K1457)","v":""},{"$f":"IF('1. Ordersheet'!L1457=\"\",\"\",'1. Ordersheet'!L1457)","v":""},{"$f":"IF('1. Ordersheet'!M1457=\"\",\"\",'1. Ordersheet'!M1457)","v":""},{"$f":"IF('1. Ordersheet'!N1457=\"\",\"\",'1. Ordersheet'!N1457)","v":""},{"$f":"IF('1. Ordersheet'!O1457=\"\",\"\",'1. Ordersheet'!O1457)","v":{"$error":"#N/A"}},{"$f":"IF('1. Ordersheet'!P1457=\"\",\"\",'1. Ordersheet'!P1457)","v":{"$error":"#N/A"}},{"$f":"IF('1. Ordersheet'!Q1457=\"\",\"\",'1. Ordersheet'!Q1457)","v":""},{"$f":"IF('1. Ordersheet'!R1457=\"\",\"\",'1. Ordersheet'!R1457)","v":""},{"$f":"IF('1. Ordersheet'!S1457=\"\",\"\",'1. Ordersheet'!S1457)","v":""},{"$f":"IF('1. Ordersheet'!V1457=\"\",\"\",'1. Ordersheet'!V1457)","v":""},{"$f":"IF('1. Ordersheet'!W1457=\"\",\"\",'1. Ordersheet'!W1457)","v":""},{"$f":"IF('1. Ordersheet'!X1457=\"\",\"\",'1. Ordersheet'!X1457)","v":""},{"$f":"IF('1. Ordersheet'!Y1457=\"\",\"\",'1. Ordersheet'!Y1457)","v":""},{"$f":"IF('1. Ordersheet'!Z1457=\"\",\"\",'1. Ordersheet'!Z1457)","v":""},{"$f":"IF('1. Ordersheet'!AA1457=\"\",\"\",'1. Ordersheet'!AA1457)","v":""},null,{"$f":"IF('1. Ordersheet'!AS1457=\"\",\"\",'1. Ordersheet'!AS1457)","v":""},{"$f":"IF('1. Ordersheet'!AT1457=\"\",\"\",'1. Ordersheet'!AT1457)","v":""},null,null,null,null,null,null,null,{"$f":"IF('1. Ordersheet'!AX1457=\"\",\"\",'1. Ordersheet'!AX1457)","v":""},{"$f":"IF('1. Ordersheet'!AY1457=\"\",\"\",'1. Ordersheet'!AY1457)","v":""},{"$f":"IF('1. Ordersheet'!AZ1457=\"\",\"\",'1. Ordersheet'!AZ1457)","v":""},{"$f":"IF('1. Ordersheet'!BA1457=\"\",\"\",'1. Ordersheet'!BA1457)","v":""},{"$f":"IF('1. Ordersheet'!BC1457=\"\",\"\",'1. Ordersheet'!BC1457)","v":""},{"$f":"IF('1. Ordersheet'!BD1457=\"\",\"\",'1. Ordersheet'!BD1457)","v":""},{"$f":"IF('1. Ordersheet'!BE1457=\"\",\"\",'1. Ordersheet'!BE1457)","v":""},{"$f":"IF('1. Ordersheet'!BF1457=\"\",\"\",'1. Ordersheet'!BF1457)","v":""},{"$f":"IF('1. Ordersheet'!BG1457=\"\",\"\",'1. Ordersheet'!BG1457)","v":"ZWO"},{"$f":"IF('1. Ordersheet'!BH1457=\"\",\"\",'1. Ordersheet'!BH1457)","v":""},{"$f":"IF('1. Ordersheet'!BI1457=\"\",\"\",'1. Ordersheet'!BI1457)","v":""},{"$f":"IF('1. Ordersheet'!BJ1457=\"\",\"\",'1. Ordersheet'!BJ1457)","v":""},{"$f":"IF('1. Ordersheet'!BK1457=\"\",\"\",'1. Ordersheet'!BK1457)","v":""},{"$f":"IF('1. Ordersheet'!BL1457=\"\",\"\",'1. Ordersheet'!BL1457)","v":""}]
[{"$f":"IF('1. Ordersheet'!F1458=\"\",\"\",'1. Ordersheet'!F1458)","v":""},{"$f":"IF('1. Ordersheet'!G1458=\"\",\"\",'1. Ordersheet'!G1458)","v":""},{"$f":"IF('1. Ordersheet'!H1458=\"\",\"\",'1. Ordersheet'!H1458)","v":""},{"$f":"IF('1. Ordersheet'!I1458=\"\",\"\",'1. Ordersheet'!I1458)","v":""},{"$f":"IF('1. Ordersheet'!J1458=\"\",\"\",'1. Ordersheet'!J1458)","v":""},{"$f":"IF('1. Ordersheet'!K1458=\"\",\"\",'1. Ordersheet'!K1458)","v":""},{"$f":"IF('1. Ordersheet'!L1458=\"\",\"\",'1. Ordersheet'!L1458)","v":""},{"$f":"IF('1. Ordersheet'!M1458=\"\",\"\",'1. Ordersheet'!M1458)","v":""},{"$f":"IF('1. Ordersheet'!N1458=\"\",\"\",'1. Ordersheet'!N1458)","v":""},{"$f":"IF('1. Ordersheet'!O1458=\"\",\"\",'1. Ordersheet'!O1458)","v":{"$error":"#N/A"}},{"$f":"IF('1. Ordersheet'!P1458=\"\",\"\",'1. Ordersheet'!P1458)","v":{"$error":"#N/A"}},{"$f":"IF('1. Ordersheet'!Q1458=\"\",\"\",'1. Ordersheet'!Q1458)","v":""},{"$f":"IF('1. Ordersheet'!R1458=\"\",\"\",'1. Ordersheet'!R1458)","v":""},{"$f":"IF('1. Ordersheet'!S1458=\"\",\"\",'1. Ordersheet'!S1458)","v":""},{"$f":"IF('1. Ordersheet'!V1458=\"\",\"\",'1. Ordersheet'!V1458)","v":""},{"$f":"IF('1. Ordersheet'!W1458=\"\",\"\",'1. Ordersheet'!W1458)","v":""},{"$f":"IF('1. Ordersheet'!X1458=\"\",\"\",'1. Ordersheet'!X1458)","v":""},{"$f":"IF('1. Ordersheet'!Y1458=\"\",\"\",'1. Ordersheet'!Y1458)","v":""},{"$f":"IF('1. Ordersheet'!Z1458=\"\",\"\",'1. Ordersheet'!Z1458)","v":""},{"$f":"IF('1. Ordersheet'!AA1458=\"\",\"\",'1. Ordersheet'!AA1458)","v":""},null,{"$f":"IF('1. Ordersheet'!AS1458=\"\",\"\",'1. Ordersheet'!AS1458)","v":""},{"$f":"IF('1. Ordersheet'!AT1458=\"\",\"\",'1. Ordersheet'!AT1458)","v":""},null,null,null,null,null,null,null,{"$f":"IF('1. Ordersheet'!AX1458=\"\",\"\",'1. Ordersheet'!AX1458)","v":""},{"$f":"IF('1. Ordersheet'!AY1458=\"\",\"\",'1. Ordersheet'!AY1458)","v":""},{"$f":"IF('1. Ordersheet'!AZ1458=\"\",\"\",'1. Ordersheet'!AZ1458)","v":""},{"$f":"IF('1. Ordersheet'!BA1458=\"\",\"\",'1. Ordersheet'!BA1458)","v":""},{"$f":"IF('1. Ordersheet'!BC1458=\"\",\"\",'1. Ordersheet'!BC1458)","v":""},{"$f":"IF('1. Ordersheet'!BD1458=\"\",\"\",'1. Ordersheet'!BD1458)","v":""},{"$f":"IF('1. Ordersheet'!BE1458=\"\",\"\",'1. Ordersheet'!BE1458)","v":""},{"$f":"IF('1. Ordersheet'!BF1458=\"\",\"\",'1. Ordersheet'!BF1458)","v":""},{"$f":"IF('1. Ordersheet'!BG1458=\"\",\"\",'1. Ordersheet'!BG1458)","v":"ZWO"},{"$f":"IF('1. Ordersheet'!BH1458=\"\",\"\",'1. Ordersheet'!BH1458)","v":""},{"$f":"IF('1. Ordersheet'!BI1458=\"\",\"\",'1. Ordersheet'!BI1458)","v":""},{"$f":"IF('1. Ordersheet'!BJ1458=\"\",\"\",'1. Ordersheet'!BJ1458)","v":""},{"$f":"IF('1. Ordersheet'!BK1458=\"\",\"\",'1. Ordersheet'!BK1458)","v":""},{"$f":"IF('1. Ordersheet'!BL1458=\"\",\"\",'1. Ordersheet'!BL1458)","v":""}]
[{"$f":"IF('1. Ordersheet'!F1459=\"\",\"\",'1. Ordersheet'!F1459)","v":""},{"$f":"IF('1. Ordersheet'!G1459=\"\",\"\",'1. Ordersheet'!G1459)","v":""},{"$f":"IF('1. Ordersheet'!H1459=\"\",\"\",'1. Ordersheet'!H1459)","v":""},{"$f":"IF('1. Ordersheet'!I1459=\"\",\"\",'1. Ordersheet'!I1459)","v":""},{"$f":"IF('1. Ordersheet'!J1459=\"\",\"\",'1. Ordersheet'!J1459)","v":""},{"$f":"IF('1. Ordersheet'!K1459=\"\",\"\",'1. Ordersheet'!K1459)","v":""},{"$f":"IF('1. Ordersheet'!L1459=\"\",\"\",'1. Ordersheet'!L1459)","v":""},{"$f":"IF('1. Ordersheet'!M1459=\"\",\"\",'1. Ordersheet'!M1459)","v":""},{"$f":"IF('1. Ordersheet'!N1459=\"\",\"\",'1. Ordersheet'!N1459)","v":""},{"$f":"IF('1. Ordersheet'!O1459=\"\",\"\",'1. Ordersheet'!O1459)","v":{"$error":"#N/A"}},{"$f":"IF('1. Ordersheet'!P1459=\"\",\"\",'1. Ordersheet'!P1459)","v":{"$error":"#N/A"}},{"$f":"IF('1. Ordersheet'!Q1459=\"\",\"\",'1. Ordersheet'!Q1459)","v":""},{"$f":"IF('1. Ordersheet'!R1459=\"\",\"\",'1. Ordersheet'!R1459)","v":""},{"$f":"IF('1. Ordersheet'!S1459=\"\",\"\",'1. Ordersheet'!S1459)","v":""},{"$f":"IF('1. Ordersheet'!V1459=\"\",\"\",'1. Ordersheet'!V1459)","v":""},{"$f":"IF('1. Ordersheet'!W1459=\"\",\"\",'1. Ordersheet'!W1459)","v":""},{"$f":"IF('1. Ordersheet'!X1459=\"\",\"\",'1. Ordersheet'!X1459)","v":""},{"$f":"IF('1. Ordersheet'!Y1459=\"\",\"\",'1. Ordersheet'!Y1459)","v":""},{"$f":"IF('1. Ordersheet'!Z1459=\"\",\"\",'1. Ordersheet'!Z1459)","v":""},{"$f":"IF('1. Ordersheet'!AA1459=\"\",\"\",'1. Ordersheet'!AA1459)","v":""},null,{"$f":"IF('1. Ordersheet'!AS1459=\"\",\"\",'1. Ordersheet'!AS1459)","v":""},{"$f":"IF('1. Ordersheet'!AT1459=\"\",\"\",'1. Ordersheet'!AT1459)","v":""},null,null,null,null,null,null,null,{"$f":"IF('1. Ordersheet'!AX1459=\"\",\"\",'1. Ordersheet'!AX1459)","v":""},{"$f":"IF('1. Ordersheet'!AY1459=\"\",\"\",'1. Ordersheet'!AY1459)","v":""},{"$f":"IF('1. Ordersheet'!AZ1459=\"\",\"\",'1. Ordersheet'!AZ1459)","v":""},{"$f":"IF('1. Ordersheet'!BA1459=\"\",\"\",'1. Ordersheet'!BA1459)","v":""},{"$f":"IF('1. Ordersheet'!BC1459=\"\",\"\",'1. Ordersheet'!BC1459)","v":""},{"$f":"IF('1. Ordersheet'!BD1459=\"\",\"\",'1. Ordersheet'!BD1459)","v":""},{"$f":"IF('1. Ordersheet'!BE1459=\"\",\"\",'1. Ordersheet'!BE1459)","v":""},{"$f":"IF('1. Ordersheet'!BF1459=\"\",\"\",'1. Ordersheet'!BF1459)","v":""},{"$f":"IF('1. Ordersheet'!BG1459=\"\",\"\",'1. Ordersheet'!BG1459)","v":"ZWO"},{"$f":"IF('1. Ordersheet'!BH1459=\"\",\"\",'1. Ordersheet'!BH1459)","v":""},{"$f":"IF('1. Ordersheet'!BI1459=\"\",\"\",'1. Ordersheet'!BI1459)","v":""},{"$f":"IF('1. Ordersheet'!BJ1459=\"\",\"\",'1. Ordersheet'!BJ1459)","v":""},{"$f":"IF('1. Ordersheet'!BK1459=\"\",\"\",'1. Ordersheet'!BK1459)","v":""},{"$f":"IF('1. Ordersheet'!BL1459=\"\",\"\",'1. Ordersheet'!BL1459)","v":""}]
[{"$f":"IF('1. Ordersheet'!F1460=\"\",\"\",'1. Ordersheet'!F1460)","v":""},{"$f":"IF('1. Ordersheet'!G1460=\"\",\"\",'1. Ordersheet'!G1460)","v":""},{"$f":"IF('1. Ordersheet'!H1460=\"\",\"\",'1. Ordersheet'!H1460)","v":""},{"$f":"IF('1. Ordersheet'!I1460=\"\",\"\",'1. Ordersheet'!I1460)","v":""},{"$f":"IF('1. Ordersheet'!J1460=\"\",\"\",'1. Ordersheet'!J1460)","v":""},{"$f":"IF('1. Ordersheet'!K1460=\"\",\"\",'1. Ordersheet'!K1460)","v":""},{"$f":"IF('1. Ordersheet'!L1460=\"\",\"\",'1. Ordersheet'!L1460)","v":""},{"$f":"IF('1. Ordersheet'!M1460=\"\",\"\",'1. Ordersheet'!M1460)","v":""},{"$f":"IF('1. Ordersheet'!N1460=\"\",\"\",'1. Ordersheet'!N1460)","v":""},{"$f":"IF('1. Ordersheet'!O1460=\"\",\"\",'1. Ordersheet'!O1460)","v":{"$error":"#N/A"}},{"$f":"IF('1. Ordersheet'!P1460=\"\",\"\",'1. Ordersheet'!P1460)","v":{"$error":"#N/A"}},{"$f":"IF('1. Ordersheet'!Q1460=\"\",\"\",'1. Ordersheet'!Q1460)","v":""},{"$f":"IF('1. Ordersheet'!R1460=\"\",\"\",'1. Ordersheet'!R1460)","v":""},{"$f":"IF('1. Ordersheet'!S1460=\"\",\"\",'1. Ordersheet'!S1460)","v":""},{"$f":"IF('1. Ordersheet'!V1460=\"\",\"\",'1. Ordersheet'!V1460)","v":""},{"$f":"IF('1. Ordersheet'!W1460=\"\",\"\",'1. Ordersheet'!W1460)","v":""},{"$f":"IF('1. Ordersheet'!X1460=\"\",\"\",'1. Ordersheet'!X1460)","v":""},{"$f":"IF('1. Ordersheet'!Y1460=\"\",\"\",'1. Ordersheet'!Y1460)","v":""},{"$f":"IF('1. Ordersheet'!Z1460=\"\",\"\",'1. Ordersheet'!Z1460)","v":""},{"$f":"IF('1. Ordersheet'!AA1460=\"\",\"\",'1. Ordersheet'!AA1460)","v":""},null,{"$f":"IF('1. Ordersheet'!AS1460=\"\",\"\",'1. Ordersheet'!AS1460)","v":""},{"$f":"IF('1. Ordersheet'!AT1460=\"\",\"\",'1. Ordersheet'!AT1460)","v":""},null,null,null,null,null,null,null,{"$f":"IF('1. Ordersheet'!AX1460=\"\",\"\",'1. Ordersheet'!AX1460)","v":""},{"$f":"IF('1. Ordersheet'!AY1460=\"\",\"\",'1. Ordersheet'!AY1460)","v":""},{"$f":"IF('1. Ordersheet'!AZ1460=\"\",\"\",'1. Ordersheet'!AZ1460)","v":""},{"$f":"IF('1. Ordersheet'!BA1460=\"\",\"\",'1. Ordersheet'!BA1460)","v":""},{"$f":"IF('1. Ordersheet'!BC1460=\"\",\"\",'1. Ordersheet'!BC1460)","v":""},{"$f":"IF('1. Ordersheet'!BD1460=\"\",\"\",'1. Ordersheet'!BD1460)","v":""},{"$f":"IF('1. Ordersheet'!BE1460=\"\",\"\",'1. Ordersheet'!BE1460)","v":""},{"$f":"IF('1. Ordersheet'!BF1460=\"\",\"\",'1. Ordersheet'!BF1460)","v":""},{"$f":"IF('1. Ordersheet'!BG1460=\"\",\"\",'1. Ordersheet'!BG1460)","v":"ZWO"},{"$f":"IF('1. Ordersheet'!BH1460=\"\",\"\",'1. Ordersheet'!BH1460)","v":""},{"$f":"IF('1. Ordersheet'!BI1460=\"\",\"\",'1. Ordersheet'!BI1460)","v":""},{"$f":"IF('1. Ordersheet'!BJ1460=\"\",\"\",'1. Ordersheet'!BJ1460)","v":""},{"$f":"IF('1. Ordersheet'!BK1460=\"\",\"\",'1. Ordersheet'!BK1460)","v":""},{"$f":"IF('1. Ordersheet'!BL1460=\"\",\"\",'1. Ordersheet'!BL1460)","v":""}]
[{"$f":"IF('1. Ordersheet'!F1461=\"\",\"\",'1. Ordersheet'!F1461)","v":""},{"$f":"IF('1. Ordersheet'!G1461=\"\",\"\",'1. Ordersheet'!G1461)","v":""},{"$f":"IF('1. Ordersheet'!H1461=\"\",\"\",'1. Ordersheet'!H1461)","v":""},{"$f":"IF('1. Ordersheet'!I1461=\"\",\"\",'1. Ordersheet'!I1461)","v":""},{"$f":"IF('1. Ordersheet'!J1461=\"\",\"\",'1. Ordersheet'!J1461)","v":""},{"$f":"IF('1. Ordersheet'!K1461=\"\",\"\",'1. Ordersheet'!K1461)","v":""},{"$f":"IF('1. Ordersheet'!L1461=\"\",\"\",'1. Ordersheet'!L1461)","v":""},{"$f":"IF('1. Ordersheet'!M1461=\"\",\"\",'1. Ordersheet'!M1461)","v":""},{"$f":"IF('1. Ordersheet'!N1461=\"\",\"\",'1. Ordersheet'!N1461)","v":""},{"$f":"IF('1. Ordersheet'!O1461=\"\",\"\",'1. Ordersheet'!O1461)","v":{"$error":"#N/A"}},{"$f":"IF('1. Ordersheet'!P1461=\"\",\"\",'1. Ordersheet'!P1461)","v":{"$error":"#N/A"}},{"$f":"IF('1. Ordersheet'!Q1461=\"\",\"\",'1. Ordersheet'!Q1461)","v":""},{"$f":"IF('1. Ordersheet'!R1461=\"\",\"\",'1. Ordersheet'!R1461)","v":""},{"$f":"IF('1. Ordersheet'!S1461=\"\",\"\",'1. Ordersheet'!S1461)","v":""},{"$f":"IF('1. Ordersheet'!V1461=\"\",\"\",'1. Ordersheet'!V1461)","v":""},{"$f":"IF('1. Ordersheet'!W1461=\"\",\"\",'1. Ordersheet'!W1461)","v":""},{"$f":"IF('1. Ordersheet'!X1461=\"\",\"\",'1. Ordersheet'!X1461)","v":""},{"$f":"IF('1. Ordersheet'!Y1461=\"\",\"\",'1. Ordersheet'!Y1461)","v":""},{"$f":"IF('1. Ordersheet'!Z1461=\"\",\"\",'1. Ordersheet'!Z1461)","v":""},{"$f":"IF('1. Ordersheet'!AA1461=\"\",\"\",'1. Ordersheet'!AA1461)","v":""},null,{"$f":"IF('1. Ordersheet'!AS1461=\"\",\"\",'1. Ordersheet'!AS1461)","v":""},{"$f":"IF('1. Ordersheet'!AT1461=\"\",\"\",'1. Ordersheet'!AT1461)","v":""},null,null,null,null,null,null,null,{"$f":"IF('1. Ordersheet'!AX1461=\"\",\"\",'1. Ordersheet'!AX1461)","v":""},{"$f":"IF('1. Ordersheet'!AY1461=\"\",\"\",'1. Ordersheet'!AY1461)","v":""},{"$f":"IF('1. Ordersheet'!AZ1461=\"\",\"\",'1. Ordersheet'!AZ1461)","v":""},{"$f":"IF('1. Ordersheet'!BA1461=\"\",\"\",'1. Ordersheet'!BA1461)","v":""},{"$f":"IF('1. Ordersheet'!BC1461=\"\",\"\",'1. Ordersheet'!BC1461)","v":""},{"$f":"IF('1. Ordersheet'!BD1461=\"\",\"\",'1. Ordersheet'!BD1461)","v":""},{"$f":"IF('1. Ordersheet'!BE1461=\"\",\"\",'1. Ordersheet'!BE1461)","v":""},{"$f":"IF('1. Ordersheet'!BF1461=\"\",\"\",'1. Ordersheet'!BF1461)","v":""},{"$f":"IF('1. Ordersheet'!BG1461=\"\",\"\",'1. Ordersheet'!BG1461)","v":"ZWO"},{"$f":"IF('1. Ordersheet'!BH1461=\"\",\"\",'1. Ordersheet'!BH1461)","v":""},{"$f":"IF('1. Ordersheet'!BI1461=\"\",\"\",'1. Ordersheet'!BI1461)","v":""},{"$f":"IF('1. Ordersheet'!BJ1461=\"\",\"\",'1. Ordersheet'!BJ1461)","v":""},{"$f":"IF('1. Ordersheet'!BK1461=\"\",\"\",'1. Ordersheet'!BK1461)","v":""},{"$f":"IF('1. Ordersheet'!BL1461=\"\",\"\",'1. Ordersheet'!BL1461)","v":""}]
[{"$f":"IF('1. Ordersheet'!F1462=\"\",\"\",'1. Ordersheet'!F1462)","v":""},{"$f":"IF('1. Ordersheet'!G1462=\"\",\"\",'1. Ordersheet'!G1462)","v":""},{"$f":"IF('1. Ordersheet'!H1462=\"\",\"\",'1. Ordersheet'!H1462)","v":""},{"$f":"IF('1. Ordersheet'!I1462=\"\",\"\",'1. Ordersheet'!I1462)","v":""},{"$f":"IF('1. Ordersheet'!J1462=\"\",\"\",'1. Ordersheet'!J1462)","v":""},{"$f":"IF('1. Ordersheet'!K1462=\"\",\"\",'1. Ordersheet'!K1462)","v":""},{"$f":"IF('1. Ordersheet'!L1462=\"\",\"\",'1. Ordersheet'!L1462)","v":""},{"$f":"IF('1. Ordersheet'!M1462=\"\",\"\",'1. Ordersheet'!M1462)","v":""},{"$f":"IF('1. Ordersheet'!N1462=\"\",\"\",'1. Ordersheet'!N1462)","v":""},{"$f":"IF('1. Ordersheet'!O1462=\"\",\"\",'1. Ordersheet'!O1462)","v":{"$error":"#N/A"}},{"$f":"IF('1. Ordersheet'!P1462=\"\",\"\",'1. Ordersheet'!P1462)","v":{"$error":"#N/A"}},{"$f":"IF('1. Ordersheet'!Q1462=\"\",\"\",'1. Ordersheet'!Q1462)","v":""},{"$f":"IF('1. Ordersheet'!R1462=\"\",\"\",'1. Ordersheet'!R1462)","v":""},{"$f":"IF('1. Ordersheet'!S1462=\"\",\"\",'1. Ordersheet'!S1462)","v":""},{"$f":"IF('1. Ordersheet'!V1462=\"\",\"\",'1. Ordersheet'!V1462)","v":""},{"$f":"IF('1. Ordersheet'!W1462=\"\",\"\",'1. Ordersheet'!W1462)","v":""},{"$f":"IF('1. Ordersheet'!X1462=\"\",\"\",'1. Ordersheet'!X1462)","v":""},{"$f":"IF('1. Ordersheet'!Y1462=\"\",\"\",'1. Ordersheet'!Y1462)","v":""},{"$f":"IF('1. Ordersheet'!Z1462=\"\",\"\",'1. Ordersheet'!Z1462)","v":""},{"$f":"IF('1. Ordersheet'!AA1462=\"\",\"\",'1. Ordersheet'!AA1462)","v":""},null,{"$f":"IF('1. Ordersheet'!AS1462=\"\",\"\",'1. Ordersheet'!AS1462)","v":""},{"$f":"IF('1. Ordersheet'!AT1462=\"\",\"\",'1. Ordersheet'!AT1462)","v":""},null,null,null,null,null,null,null,{"$f":"IF('1. Ordersheet'!AX1462=\"\",\"\",'1. Ordersheet'!AX1462)","v":""},{"$f":"IF('1. Ordersheet'!AY1462=\"\",\"\",'1. Ordersheet'!AY1462)","v":""},{"$f":"IF('1. Ordersheet'!AZ1462=\"\",\"\",'1. Ordersheet'!AZ1462)","v":""},{"$f":"IF('1. Ordersheet'!BA1462=\"\",\"\",'1. Ordersheet'!BA1462)","v":""},{"$f":"IF('1. Ordersheet'!BC1462=\"\",\"\",'1. Ordersheet'!BC1462)","v":""},{"$f":"IF('1. Ordersheet'!BD1462=\"\",\"\",'1. Ordersheet'!BD1462)","v":""},{"$f":"IF('1. Ordersheet'!BE1462=\"\",\"\",'1. Ordersheet'!BE1462)","v":""},{"$f":"IF('1. Ordersheet'!BF1462=\"\",\"\",'1. Ordersheet'!BF1462)","v":""},{"$f":"IF('1. Ordersheet'!BG1462=\"\",\"\",'1. Ordersheet'!BG1462)","v":"ZWO"},{"$f":"IF('1. Ordersheet'!BH1462=\"\",\"\",'1. Ordersheet'!BH1462)","v":""},{"$f":"IF('1. Ordersheet'!BI1462=\"\",\"\",'1. Ordersheet'!BI1462)","v":""},{"$f":"IF('1. Ordersheet'!BJ1462=\"\",\"\",'1. Ordersheet'!BJ1462)","v":""},{"$f":"IF('1. Ordersheet'!BK1462=\"\",\"\",'1. Ordersheet'!BK1462)","v":""},{"$f":"IF('1. Ordersheet'!BL1462=\"\",\"\",'1. Ordersheet'!BL1462)","v":""}]
[{"$f":"IF('1. Ordersheet'!F1463=\"\",\"\",'1. Ordersheet'!F1463)","v":""},{"$f":"IF('1. Ordersheet'!G1463=\"\",\"\",'1. Ordersheet'!G1463)","v":""},{"$f":"IF('1. Ordersheet'!H1463=\"\",\"\",'1. Ordersheet'!H1463)","v":""},{"$f":"IF('1. Ordersheet'!I1463=\"\",\"\",'1. Ordersheet'!I1463)","v":""},{"$f":"IF('1. Ordersheet'!J1463=\"\",\"\",'1. Ordersheet'!J1463)","v":""},{"$f":"IF('1. Ordersheet'!K1463=\"\",\"\",'1. Ordersheet'!K1463)","v":""},{"$f":"IF('1. Ordersheet'!L1463=\"\",\"\",'1. Ordersheet'!L1463)","v":""},{"$f":"IF('1. Ordersheet'!M1463=\"\",\"\",'1. Ordersheet'!M1463)","v":""},{"$f":"IF('1. Ordersheet'!N1463=\"\",\"\",'1. Ordersheet'!N1463)","v":""},{"$f":"IF('1. Ordersheet'!O1463=\"\",\"\",'1. Ordersheet'!O1463)","v":{"$error":"#N/A"}},{"$f":"IF('1. Ordersheet'!P1463=\"\",\"\",'1. Ordersheet'!P1463)","v":{"$error":"#N/A"}},{"$f":"IF('1. Ordersheet'!Q1463=\"\",\"\",'1. Ordersheet'!Q1463)","v":""},{"$f":"IF('1. Ordersheet'!R1463=\"\",\"\",'1. Ordersheet'!R1463)","v":""},{"$f":"IF('1. Ordersheet'!S1463=\"\",\"\",'1. Ordersheet'!S1463)","v":""},{"$f":"IF('1. Ordersheet'!V1463=\"\",\"\",'1. Ordersheet'!V1463)","v":""},{"$f":"IF('1. Ordersheet'!W1463=\"\",\"\",'1. Ordersheet'!W1463)","v":""},{"$f":"IF('1. Ordersheet'!X1463=\"\",\"\",'1. Ordersheet'!X1463)","v":""},{"$f":"IF('1. Ordersheet'!Y1463=\"\",\"\",'1. Ordersheet'!Y1463)","v":""},{"$f":"IF('1. Ordersheet'!Z1463=\"\",\"\",'1. Ordersheet'!Z1463)","v":""},{"$f":"IF('1. Ordersheet'!AA1463=\"\",\"\",'1. Ordersheet'!AA1463)","v":""},null,{"$f":"IF('1. Ordersheet'!AS1463=\"\",\"\",'1. Ordersheet'!AS1463)","v":""},{"$f":"IF('1. Ordersheet'!AT1463=\"\",\"\",'1. Ordersheet'!AT1463)","v":""},null,null,null,null,null,null,null,{"$f":"IF('1. Ordersheet'!AX1463=\"\",\"\",'1. Ordersheet'!AX1463)","v":""},{"$f":"IF('1. Ordersheet'!AY1463=\"\",\"\",'1. Ordersheet'!AY1463)","v":""},{"$f":"IF('1. Ordersheet'!AZ1463=\"\",\"\",'1. Ordersheet'!AZ1463)","v":""},{"$f":"IF('1. Ordersheet'!BA1463=\"\",\"\",'1. Ordersheet'!BA1463)","v":""},{"$f":"IF('1. Ordersheet'!BC1463=\"\",\"\",'1. Ordersheet'!BC1463)","v":""},{"$f":"IF('1. Ordersheet'!BD1463=\"\",\"\",'1. Ordersheet'!BD1463)","v":""},{"$f":"IF('1. Ordersheet'!BE1463=\"\",\"\",'1. Ordersheet'!BE1463)","v":""},{"$f":"IF('1. Ordersheet'!BF1463=\"\",\"\",'1. Ordersheet'!BF1463)","v":""},{"$f":"IF('1. Ordersheet'!BG1463=\"\",\"\",'1. Ordersheet'!BG1463)","v":"ZWO"},{"$f":"IF('1. Ordersheet'!BH1463=\"\",\"\",'1. Ordersheet'!BH1463)","v":""},{"$f":"IF('1. Ordersheet'!BI1463=\"\",\"\",'1. Ordersheet'!BI1463)","v":""},{"$f":"IF('1. Ordersheet'!BJ1463=\"\",\"\",'1. Ordersheet'!BJ1463)","v":""},{"$f":"IF('1. Ordersheet'!BK1463=\"\",\"\",'1. Ordersheet'!BK1463)","v":""},{"$f":"IF('1. Ordersheet'!BL1463=\"\",\"\",'1. Ordersheet'!BL1463)","v":""}]
[{"$f":"IF('1. Ordersheet'!F1464=\"\",\"\",'1. Ordersheet'!F1464)","v":""},{"$f":"IF('1. Ordersheet'!G1464=\"\",\"\",'1. Ordersheet'!G1464)","v":""},{"$f":"IF('1. Ordersheet'!H1464=\"\",\"\",'1. Ordersheet'!H1464)","v":""},{"$f":"IF('1. Ordersheet'!I1464=\"\",\"\",'1. Ordersheet'!I1464)","v":""},{"$f":"IF('1. Ordersheet'!J1464=\"\",\"\",'1. Ordersheet'!J1464)","v":""},{"$f":"IF('1. Ordersheet'!K1464=\"\",\"\",'1. Ordersheet'!K1464)","v":""},{"$f":"IF('1. Ordersheet'!L1464=\"\",\"\",'1. Ordersheet'!L1464)","v":""},{"$f":"IF('1. Ordersheet'!M1464=\"\",\"\",'1. Ordersheet'!M1464)","v":""},{"$f":"IF('1. Ordersheet'!N1464=\"\",\"\",'1. Ordersheet'!N1464)","v":""},{"$f":"IF('1. Ordersheet'!O1464=\"\",\"\",'1. Ordersheet'!O1464)","v":{"$error":"#N/A"}},{"$f":"IF('1. Ordersheet'!P1464=\"\",\"\",'1. Ordersheet'!P1464)","v":{"$error":"#N/A"}},{"$f":"IF('1. Ordersheet'!Q1464=\"\",\"\",'1. Ordersheet'!Q1464)","v":""},{"$f":"IF('1. Ordersheet'!R1464=\"\",\"\",'1. Ordersheet'!R1464)","v":""},{"$f":"IF('1. Ordersheet'!S1464=\"\",\"\",'1. Ordersheet'!S1464)","v":""},{"$f":"IF('1. Ordersheet'!V1464=\"\",\"\",'1. Ordersheet'!V1464)","v":""},{"$f":"IF('1. Ordersheet'!W1464=\"\",\"\",'1. Ordersheet'!W1464)","v":""},{"$f":"IF('1. Ordersheet'!X1464=\"\",\"\",'1. Ordersheet'!X1464)","v":""},{"$f":"IF('1. Ordersheet'!Y1464=\"\",\"\",'1. Ordersheet'!Y1464)","v":""},{"$f":"IF('1. Ordersheet'!Z1464=\"\",\"\",'1. Ordersheet'!Z1464)","v":""},{"$f":"IF('1. Ordersheet'!AA1464=\"\",\"\",'1. Ordersheet'!AA1464)","v":""},null,{"$f":"IF('1. Ordersheet'!AS1464=\"\",\"\",'1. Ordersheet'!AS1464)","v":""},{"$f":"IF('1. Ordersheet'!AT1464=\"\",\"\",'1. Ordersheet'!AT1464)","v":""},null,null,null,null,null,null,null,{"$f":"IF('1. Ordersheet'!AX1464=\"\",\"\",'1. Ordersheet'!AX1464)","v":""},{"$f":"IF('1. Ordersheet'!AY1464=\"\",\"\",'1. Ordersheet'!AY1464)","v":""},{"$f":"IF('1. Ordersheet'!AZ1464=\"\",\"\",'1. Ordersheet'!AZ1464)","v":""},{"$f":"IF('1. Ordersheet'!BA1464=\"\",\"\",'1. Ordersheet'!BA1464)","v":""},{"$f":"IF('1. Ordersheet'!BC1464=\"\",\"\",'1. Ordersheet'!BC1464)","v":""},{"$f":"IF('1. Ordersheet'!BD1464=\"\",\"\",'1. Ordersheet'!BD1464)","v":""},{"$f":"IF('1. Ordersheet'!BE1464=\"\",\"\",'1. Ordersheet'!BE1464)","v":""},{"$f":"IF('1. Ordersheet'!BF1464=\"\",\"\",'1. Ordersheet'!BF1464)","v":""},{"$f":"IF('1. Ordersheet'!BG1464=\"\",\"\",'1. Ordersheet'!BG1464)","v":"ZWO"},{"$f":"IF('1. Ordersheet'!BH1464=\"\",\"\",'1. Ordersheet'!BH1464)","v":""},{"$f":"IF('1. Ordersheet'!BI1464=\"\",\"\",'1. Ordersheet'!BI1464)","v":""},{"$f":"IF('1. Ordersheet'!BJ1464=\"\",\"\",'1. Ordersheet'!BJ1464)","v":""},{"$f":"IF('1. Ordersheet'!BK1464=\"\",\"\",'1. Ordersheet'!BK1464)","v":""},{"$f":"IF('1. Ordersheet'!BL1464=\"\",\"\",'1. Ordersheet'!BL1464)","v":""}]
[{"$f":"IF('1. Ordersheet'!F1465=\"\",\"\",'1. Ordersheet'!F1465)","v":""},{"$f":"IF('1. Ordersheet'!G1465=\"\",\"\",'1. Ordersheet'!G1465)","v":""},{"$f":"IF('1. Ordersheet'!H1465=\"\",\"\",'1. Ordersheet'!H1465)","v":""},{"$f":"IF('1. Ordersheet'!I1465=\"\",\"\",'1. Ordersheet'!I1465)","v":""},{"$f":"IF('1. Ordersheet'!J1465=\"\",\"\",'1. Ordersheet'!J1465)","v":""},{"$f":"IF('1. Ordersheet'!K1465=\"\",\"\",'1. Ordersheet'!K1465)","v":""},{"$f":"IF('1. Ordersheet'!L1465=\"\",\"\",'1. Ordersheet'!L1465)","v":""},{"$f":"IF('1. Ordersheet'!M1465=\"\",\"\",'1. Ordersheet'!M1465)","v":""},{"$f":"IF('1. Ordersheet'!N1465=\"\",\"\",'1. Ordersheet'!N1465)","v":""},{"$f":"IF('1. Ordersheet'!O1465=\"\",\"\",'1. Ordersheet'!O1465)","v":{"$error":"#N/A"}},{"$f":"IF('1. Ordersheet'!P1465=\"\",\"\",'1. Ordersheet'!P1465)","v":{"$error":"#N/A"}},{"$f":"IF('1. Ordersheet'!Q1465=\"\",\"\",'1. Ordersheet'!Q1465)","v":""},{"$f":"IF('1. Ordersheet'!R1465=\"\",\"\",'1. Ordersheet'!R1465)","v":""},{"$f":"IF('1. Ordersheet'!S1465=\"\",\"\",'1. Ordersheet'!S1465)","v":""},{"$f":"IF('1. Ordersheet'!V1465=\"\",\"\",'1. Ordersheet'!V1465)","v":""},{"$f":"IF('1. Ordersheet'!W1465=\"\",\"\",'1. Ordersheet'!W1465)","v":""},{"$f":"IF('1. Ordersheet'!X1465=\"\",\"\",'1. Ordersheet'!X1465)","v":""},{"$f":"IF('1. Ordersheet'!Y1465=\"\",\"\",'1. Ordersheet'!Y1465)","v":""},{"$f":"IF('1. Ordersheet'!Z1465=\"\",\"\",'1. Ordersheet'!Z1465)","v":""},{"$f":"IF('1. Ordersheet'!AA1465=\"\",\"\",'1. Ordersheet'!AA1465)","v":""},null,{"$f":"IF('1. Ordersheet'!AS1465=\"\",\"\",'1. Ordersheet'!AS1465)","v":""},{"$f":"IF('1. Ordersheet'!AT1465=\"\",\"\",'1. Ordersheet'!AT1465)","v":""},null,null,null,null,null,null,null,{"$f":"IF('1. Ordersheet'!AX1465=\"\",\"\",'1. Ordersheet'!AX1465)","v":""},{"$f":"IF('1. Ordersheet'!AY1465=\"\",\"\",'1. Ordersheet'!AY1465)","v":""},{"$f":"IF('1. Ordersheet'!AZ1465=\"\",\"\",'1. Ordersheet'!AZ1465)","v":""},{"$f":"IF('1. Ordersheet'!BA1465=\"\",\"\",'1. Ordersheet'!BA1465)","v":""},{"$f":"IF('1. Ordersheet'!BC1465=\"\",\"\",'1. Ordersheet'!BC1465)","v":""},{"$f":"IF('1. Ordersheet'!BD1465=\"\",\"\",'1. Ordersheet'!BD1465)","v":""},{"$f":"IF('1. Ordersheet'!BE1465=\"\",\"\",'1. Ordersheet'!BE1465)","v":""},{"$f":"IF('1. Ordersheet'!BF1465=\"\",\"\",'1. Ordersheet'!BF1465)","v":""},{"$f":"IF('1. Ordersheet'!BG1465=\"\",\"\",'1. Ordersheet'!BG1465)","v":"ZWO"},{"$f":"IF('1. Ordersheet'!BH1465=\"\",\"\",'1. Ordersheet'!BH1465)","v":""},{"$f":"IF('1. Ordersheet'!BI1465=\"\",\"\",'1. Ordersheet'!BI1465)","v":""},{"$f":"IF('1. Ordersheet'!BJ1465=\"\",\"\",'1. Ordersheet'!BJ1465)","v":""},{"$f":"IF('1. Ordersheet'!BK1465=\"\",\"\",'1. Ordersheet'!BK1465)","v":""},{"$f":"IF('1. Ordersheet'!BL1465=\"\",\"\",'1. Ordersheet'!BL1465)","v":""}]
[{"$f":"IF('1. Ordersheet'!F1466=\"\",\"\",'1. Ordersheet'!F1466)","v":""},{"$f":"IF('1. Ordersheet'!G1466=\"\",\"\",'1. Ordersheet'!G1466)","v":""},{"$f":"IF('1. Ordersheet'!H1466=\"\",\"\",'1. Ordersheet'!H1466)","v":""},{"$f":"IF('1. Ordersheet'!I1466=\"\",\"\",'1. Ordersheet'!I1466)","v":""},{"$f":"IF('1. Ordersheet'!J1466=\"\",\"\",'1. Ordersheet'!J1466)","v":""},{"$f":"IF('1. Ordersheet'!K1466=\"\",\"\",'1. Ordersheet'!K1466)","v":""},{"$f":"IF('1. Ordersheet'!L1466=\"\",\"\",'1. Ordersheet'!L1466)","v":""},{"$f":"IF('1. Ordersheet'!M1466=\"\",\"\",'1. Ordersheet'!M1466)","v":""},{"$f":"IF('1. Ordersheet'!N1466=\"\",\"\",'1. Ordersheet'!N1466)","v":""},{"$f":"IF('1. Ordersheet'!O1466=\"\",\"\",'1. Ordersheet'!O1466)","v":{"$error":"#N/A"}},{"$f":"IF('1. Ordersheet'!P1466=\"\",\"\",'1. Ordersheet'!P1466)","v":{"$error":"#N/A"}},{"$f":"IF('1. Ordersheet'!Q1466=\"\",\"\",'1. Ordersheet'!Q1466)","v":""},{"$f":"IF('1. Ordersheet'!R1466=\"\",\"\",'1. Ordersheet'!R1466)","v":""},{"$f":"IF('1. Ordersheet'!S1466=\"\",\"\",'1. Ordersheet'!S1466)","v":""},{"$f":"IF('1. Ordersheet'!V1466=\"\",\"\",'1. Ordersheet'!V1466)","v":""},{"$f":"IF('1. Ordersheet'!W1466=\"\",\"\",'1. Ordersheet'!W1466)","v":""},{"$f":"IF('1. Ordersheet'!X1466=\"\",\"\",'1. Ordersheet'!X1466)","v":""},{"$f":"IF('1. Ordersheet'!Y1466=\"\",\"\",'1. Ordersheet'!Y1466)","v":""},{"$f":"IF('1. Ordersheet'!Z1466=\"\",\"\",'1. Ordersheet'!Z1466)","v":""},{"$f":"IF('1. Ordersheet'!AA1466=\"\",\"\",'1. Ordersheet'!AA1466)","v":""},null,{"$f":"IF('1. Ordersheet'!AS1466=\"\",\"\",'1. Ordersheet'!AS1466)","v":""},{"$f":"IF('1. Ordersheet'!AT1466=\"\",\"\",'1. Ordersheet'!AT1466)","v":""},null,null,null,null,null,null,null,{"$f":"IF('1. Ordersheet'!AX1466=\"\",\"\",'1. Ordersheet'!AX1466)","v":""},{"$f":"IF('1. Ordersheet'!AY1466=\"\",\"\",'1. Ordersheet'!AY1466)","v":""},{"$f":"IF('1. Ordersheet'!AZ1466=\"\",\"\",'1. Ordersheet'!AZ1466)","v":""},{"$f":"IF('1. Ordersheet'!BA1466=\"\",\"\",'1. Ordersheet'!BA1466)","v":""},{"$f":"IF('1. Ordersheet'!BC1466=\"\",\"\",'1. Ordersheet'!BC1466)","v":""},{"$f":"IF('1. Ordersheet'!BD1466=\"\",\"\",'1. Ordersheet'!BD1466)","v":""},{"$f":"IF('1. Ordersheet'!BE1466=\"\",\"\",'1. Ordersheet'!BE1466)","v":""},{"$f":"IF('1. Ordersheet'!BF1466=\"\",\"\",'1. Ordersheet'!BF1466)","v":""},{"$f":"IF('1. Ordersheet'!BG1466=\"\",\"\",'1. Ordersheet'!BG1466)","v":"ZWO"},{"$f":"IF('1. Ordersheet'!BH1466=\"\",\"\",'1. Ordersheet'!BH1466)","v":""},{"$f":"IF('1. Ordersheet'!BI1466=\"\",\"\",'1. Ordersheet'!BI1466)","v":""},{"$f":"IF('1. Ordersheet'!BJ1466=\"\",\"\",'1. Ordersheet'!BJ1466)","v":""},{"$f":"IF('1. Ordersheet'!BK1466=\"\",\"\",'1. Ordersheet'!BK1466)","v":""},{"$f":"IF('1. Ordersheet'!BL1466=\"\",\"\",'1. Ordersheet'!BL1466)","v":""}]
[{"$f":"IF('1. Ordersheet'!F1467=\"\",\"\",'1. Ordersheet'!F1467)","v":""},{"$f":"IF('1. Ordersheet'!G1467=\"\",\"\",'1. Ordersheet'!G1467)","v":""},{"$f":"IF('1. Ordersheet'!H1467=\"\",\"\",'1. Ordersheet'!H1467)","v":""},{"$f":"IF('1. Ordersheet'!I1467=\"\",\"\",'1. Ordersheet'!I1467)","v":""},{"$f":"IF('1. Ordersheet'!J1467=\"\",\"\",'1. Ordersheet'!J1467)","v":""},{"$f":"IF('1. Ordersheet'!K1467=\"\",\"\",'1. Ordersheet'!K1467)","v":""},{"$f":"IF('1. Ordersheet'!L1467=\"\",\"\",'1. Ordersheet'!L1467)","v":""},{"$f":"IF('1. Ordersheet'!M1467=\"\",\"\",'1. Ordersheet'!M1467)","v":""},{"$f":"IF('1. Ordersheet'!N1467=\"\",\"\",'1. Ordersheet'!N1467)","v":""},{"$f":"IF('1. Ordersheet'!O1467=\"\",\"\",'1. Ordersheet'!O1467)","v":{"$error":"#N/A"}},{"$f":"IF('1. Ordersheet'!P1467=\"\",\"\",'1. Ordersheet'!P1467)","v":{"$error":"#N/A"}},{"$f":"IF('1. Ordersheet'!Q1467=\"\",\"\",'1. Ordersheet'!Q1467)","v":""},{"$f":"IF('1. Ordersheet'!R1467=\"\",\"\",'1. Ordersheet'!R1467)","v":""},{"$f":"IF('1. Ordersheet'!S1467=\"\",\"\",'1. Ordersheet'!S1467)","v":""},{"$f":"IF('1. Ordersheet'!V1467=\"\",\"\",'1. Ordersheet'!V1467)","v":""},{"$f":"IF('1. Ordersheet'!W1467=\"\",\"\",'1. Ordersheet'!W1467)","v":""},{"$f":"IF('1. Ordersheet'!X1467=\"\",\"\",'1. Ordersheet'!X1467)","v":""},{"$f":"IF('1. Ordersheet'!Y1467=\"\",\"\",'1. Ordersheet'!Y1467)","v":""},{"$f":"IF('1. Ordersheet'!Z1467=\"\",\"\",'1. Ordersheet'!Z1467)","v":""},{"$f":"IF('1. Ordersheet'!AA1467=\"\",\"\",'1. Ordersheet'!AA1467)","v":""},null,{"$f":"IF('1. Ordersheet'!AS1467=\"\",\"\",'1. Ordersheet'!AS1467)","v":""},{"$f":"IF('1. Ordersheet'!AT1467=\"\",\"\",'1. Ordersheet'!AT1467)","v":""},null,null,null,null,null,null,null,{"$f":"IF('1. Ordersheet'!AX1467=\"\",\"\",'1. Ordersheet'!AX1467)","v":""},{"$f":"IF('1. Ordersheet'!AY1467=\"\",\"\",'1. Ordersheet'!AY1467)","v":""},{"$f":"IF('1. Ordersheet'!AZ1467=\"\",\"\",'1. Ordersheet'!AZ1467)","v":""},{"$f":"IF('1. Ordersheet'!BA1467=\"\",\"\",'1. Ordersheet'!BA1467)","v":""},{"$f":"IF('1. Ordersheet'!BC1467=\"\",\"\",'1. Ordersheet'!BC1467)","v":""},{"$f":"IF('1. Ordersheet'!BD1467=\"\",\"\",'1. Ordersheet'!BD1467)","v":""},{"$f":"IF('1. Ordersheet'!BE1467=\"\",\"\",'1. Ordersheet'!BE1467)","v":""},{"$f":"IF('1. Ordersheet'!BF1467=\"\",\"\",'1. Ordersheet'!BF1467)","v":""},{"$f":"IF('1. Ordersheet'!BG1467=\"\",\"\",'1. Ordersheet'!BG1467)","v":"ZWO"},{"$f":"IF('1. Ordersheet'!BH1467=\"\",\"\",'1. Ordersheet'!BH1467)","v":""},{"$f":"IF('1. Ordersheet'!BI1467=\"\",\"\",'1. Ordersheet'!BI1467)","v":""},{"$f":"IF('1. Ordersheet'!BJ1467=\"\",\"\",'1. Ordersheet'!BJ1467)","v":""},{"$f":"IF('1. Ordersheet'!BK1467=\"\",\"\",'1. Ordersheet'!BK1467)","v":""},{"$f":"IF('1. Ordersheet'!BL1467=\"\",\"\",'1. Ordersheet'!BL1467)","v":""}]
[{"$f":"IF('1. Ordersheet'!F1468=\"\",\"\",'1. Ordersheet'!F1468)","v":""},{"$f":"IF('1. Ordersheet'!G1468=\"\",\"\",'1. Ordersheet'!G1468)","v":""},{"$f":"IF('1. Ordersheet'!H1468=\"\",\"\",'1. Ordersheet'!H1468)","v":""},{"$f":"IF('1. Ordersheet'!I1468=\"\",\"\",'1. Ordersheet'!I1468)","v":""},{"$f":"IF('1. Ordersheet'!J1468=\"\",\"\",'1. Ordersheet'!J1468)","v":""},{"$f":"IF('1. Ordersheet'!K1468=\"\",\"\",'1. Ordersheet'!K1468)","v":""},{"$f":"IF('1. Ordersheet'!L1468=\"\",\"\",'1. Ordersheet'!L1468)","v":""},{"$f":"IF('1. Ordersheet'!M1468=\"\",\"\",'1. Ordersheet'!M1468)","v":""},{"$f":"IF('1. Ordersheet'!N1468=\"\",\"\",'1. Ordersheet'!N1468)","v":""},{"$f":"IF('1. Ordersheet'!O1468=\"\",\"\",'1. Ordersheet'!O1468)","v":{"$error":"#N/A"}},{"$f":"IF('1. Ordersheet'!P1468=\"\",\"\",'1. Ordersheet'!P1468)","v":{"$error":"#N/A"}},{"$f":"IF('1. Ordersheet'!Q1468=\"\",\"\",'1. Ordersheet'!Q1468)","v":""},{"$f":"IF('1. Ordersheet'!R1468=\"\",\"\",'1. Ordersheet'!R1468)","v":""},{"$f":"IF('1. Ordersheet'!S1468=\"\",\"\",'1. Ordersheet'!S1468)","v":""},{"$f":"IF('1. Ordersheet'!V1468=\"\",\"\",'1. Ordersheet'!V1468)","v":""},{"$f":"IF('1. Ordersheet'!W1468=\"\",\"\",'1. Ordersheet'!W1468)","v":""},{"$f":"IF('1. Ordersheet'!X1468=\"\",\"\",'1. Ordersheet'!X1468)","v":""},{"$f":"IF('1. Ordersheet'!Y1468=\"\",\"\",'1. Ordersheet'!Y1468)","v":""},{"$f":"IF('1. Ordersheet'!Z1468=\"\",\"\",'1. Ordersheet'!Z1468)","v":""},{"$f":"IF('1. Ordersheet'!AA1468=\"\",\"\",'1. Ordersheet'!AA1468)","v":""},null,{"$f":"IF('1. Ordersheet'!AS1468=\"\",\"\",'1. Ordersheet'!AS1468)","v":""},{"$f":"IF('1. Ordersheet'!AT1468=\"\",\"\",'1. Ordersheet'!AT1468)","v":""},null,null,null,null,null,null,null,{"$f":"IF('1. Ordersheet'!AX1468=\"\",\"\",'1. Ordersheet'!AX1468)","v":""},{"$f":"IF('1. Ordersheet'!AY1468=\"\",\"\",'1. Ordersheet'!AY1468)","v":""},{"$f":"IF('1. Ordersheet'!AZ1468=\"\",\"\",'1. Ordersheet'!AZ1468)","v":""},{"$f":"IF('1. Ordersheet'!BA1468=\"\",\"\",'1. Ordersheet'!BA1468)","v":""},{"$f":"IF('1. Ordersheet'!BC1468=\"\",\"\",'1. Ordersheet'!BC1468)","v":""},{"$f":"IF('1. Ordersheet'!BD1468=\"\",\"\",'1. Ordersheet'!BD1468)","v":""},{"$f":"IF('1. Ordersheet'!BE1468=\"\",\"\",'1. Ordersheet'!BE1468)","v":""},{"$f":"IF('1. Ordersheet'!BF1468=\"\",\"\",'1. Ordersheet'!BF1468)","v":""},{"$f":"IF('1. Ordersheet'!BG1468=\"\",\"\",'1. Ordersheet'!BG1468)","v":"ZWO"},{"$f":"IF('1. Ordersheet'!BH1468=\"\",\"\",'1. Ordersheet'!BH1468)","v":""},{"$f":"IF('1. Ordersheet'!BI1468=\"\",\"\",'1. Ordersheet'!BI1468)","v":""},{"$f":"IF('1. Ordersheet'!BJ1468=\"\",\"\",'1. Ordersheet'!BJ1468)","v":""},{"$f":"IF('1. Ordersheet'!BK1468=\"\",\"\",'1. Ordersheet'!BK1468)","v":""},{"$f":"IF('1. Ordersheet'!BL1468=\"\",\"\",'1. Ordersheet'!BL1468)","v":""}]
[{"$f":"IF('1. Ordersheet'!F1469=\"\",\"\",'1. Ordersheet'!F1469)","v":""},{"$f":"IF('1. Ordersheet'!G1469=\"\",\"\",'1. Ordersheet'!G1469)","v":""},{"$f":"IF('1. Ordersheet'!H1469=\"\",\"\",'1. Ordersheet'!H1469)","v":""},{"$f":"IF('1. Ordersheet'!I1469=\"\",\"\",'1. Ordersheet'!I1469)","v":""},{"$f":"IF('1. Ordersheet'!J1469=\"\",\"\",'1. Ordersheet'!J1469)","v":""},{"$f":"IF('1. Ordersheet'!K1469=\"\",\"\",'1. Ordersheet'!K1469)","v":""},{"$f":"IF('1. Ordersheet'!L1469=\"\",\"\",'1. Ordersheet'!L1469)","v":""},{"$f":"IF('1. Ordersheet'!M1469=\"\",\"\",'1. Ordersheet'!M1469)","v":""},{"$f":"IF('1. Ordersheet'!N1469=\"\",\"\",'1. Ordersheet'!N1469)","v":""},{"$f":"IF('1. Ordersheet'!O1469=\"\",\"\",'1. Ordersheet'!O1469)","v":{"$error":"#N/A"}},{"$f":"IF('1. Ordersheet'!P1469=\"\",\"\",'1. Ordersheet'!P1469)","v":{"$error":"#N/A"}},{"$f":"IF('1. Ordersheet'!Q1469=\"\",\"\",'1. Ordersheet'!Q1469)","v":""},{"$f":"IF('1. Ordersheet'!R1469=\"\",\"\",'1. Ordersheet'!R1469)","v":""},{"$f":"IF('1. Ordersheet'!S1469=\"\",\"\",'1. Ordersheet'!S1469)","v":""},{"$f":"IF('1. Ordersheet'!V1469=\"\",\"\",'1. Ordersheet'!V1469)","v":""},{"$f":"IF('1. Ordersheet'!W1469=\"\",\"\",'1. Ordersheet'!W1469)","v":""},{"$f":"IF('1. Ordersheet'!X1469=\"\",\"\",'1. Ordersheet'!X1469)","v":""},{"$f":"IF('1. Ordersheet'!Y1469=\"\",\"\",'1. Ordersheet'!Y1469)","v":""},{"$f":"IF('1. Ordersheet'!Z1469=\"\",\"\",'1. Ordersheet'!Z1469)","v":""},{"$f":"IF('1. Ordersheet'!AA1469=\"\",\"\",'1. Ordersheet'!AA1469)","v":""},null,{"$f":"IF('1. Ordersheet'!AS1469=\"\",\"\",'1. Ordersheet'!AS1469)","v":""},{"$f":"IF('1. Ordersheet'!AT1469=\"\",\"\",'1. Ordersheet'!AT1469)","v":""},null,null,null,null,null,null,null,{"$f":"IF('1. Ordersheet'!AX1469=\"\",\"\",'1. Ordersheet'!AX1469)","v":""},{"$f":"IF('1. Ordersheet'!AY1469=\"\",\"\",'1. Ordersheet'!AY1469)","v":""},{"$f":"IF('1. Ordersheet'!AZ1469=\"\",\"\",'1. Ordersheet'!AZ1469)","v":""},{"$f":"IF('1. Ordersheet'!BA1469=\"\",\"\",'1. Ordersheet'!BA1469)","v":""},{"$f":"IF('1. Ordersheet'!BC1469=\"\",\"\",'1. Ordersheet'!BC1469)","v":""},{"$f":"IF('1. Ordersheet'!BD1469=\"\",\"\",'1. Ordersheet'!BD1469)","v":""},{"$f":"IF('1. Ordersheet'!BE1469=\"\",\"\",'1. Ordersheet'!BE1469)","v":""},{"$f":"IF('1. Ordersheet'!BF1469=\"\",\"\",'1. Ordersheet'!BF1469)","v":""},{"$f":"IF('1. Ordersheet'!BG1469=\"\",\"\",'1. Ordersheet'!BG1469)","v":"ZWO"},{"$f":"IF('1. Ordersheet'!BH1469=\"\",\"\",'1. Ordersheet'!BH1469)","v":""},{"$f":"IF('1. Ordersheet'!BI1469=\"\",\"\",'1. Ordersheet'!BI1469)","v":""},{"$f":"IF('1. Ordersheet'!BJ1469=\"\",\"\",'1. Ordersheet'!BJ1469)","v":""},{"$f":"IF('1. Ordersheet'!BK1469=\"\",\"\",'1. Ordersheet'!BK1469)","v":""},{"$f":"IF('1. Ordersheet'!BL1469=\"\",\"\",'1. Ordersheet'!BL1469)","v":""}]
[{"$f":"IF('1. Ordersheet'!F1470=\"\",\"\",'1. Ordersheet'!F1470)","v":""},{"$f":"IF('1. Ordersheet'!G1470=\"\",\"\",'1. Ordersheet'!G1470)","v":""},{"$f":"IF('1. Ordersheet'!H1470=\"\",\"\",'1. Ordersheet'!H1470)","v":""},{"$f":"IF('1. Ordersheet'!I1470=\"\",\"\",'1. Ordersheet'!I1470)","v":""},{"$f":"IF('1. Ordersheet'!J1470=\"\",\"\",'1. Ordersheet'!J1470)","v":""},{"$f":"IF('1. Ordersheet'!K1470=\"\",\"\",'1. Ordersheet'!K1470)","v":""},{"$f":"IF('1. Ordersheet'!L1470=\"\",\"\",'1. Ordersheet'!L1470)","v":""},{"$f":"IF('1. Ordersheet'!M1470=\"\",\"\",'1. Ordersheet'!M1470)","v":""},{"$f":"IF('1. Ordersheet'!N1470=\"\",\"\",'1. Ordersheet'!N1470)","v":""},{"$f":"IF('1. Ordersheet'!O1470=\"\",\"\",'1. Ordersheet'!O1470)","v":{"$error":"#N/A"}},{"$f":"IF('1. Ordersheet'!P1470=\"\",\"\",'1. Ordersheet'!P1470)","v":{"$error":"#N/A"}},{"$f":"IF('1. Ordersheet'!Q1470=\"\",\"\",'1. Ordersheet'!Q1470)","v":""},{"$f":"IF('1. Ordersheet'!R1470=\"\",\"\",'1. Ordersheet'!R1470)","v":""},{"$f":"IF('1. Ordersheet'!S1470=\"\",\"\",'1. Ordersheet'!S1470)","v":""},{"$f":"IF('1. Ordersheet'!V1470=\"\",\"\",'1. Ordersheet'!V1470)","v":""},{"$f":"IF('1. Ordersheet'!W1470=\"\",\"\",'1. Ordersheet'!W1470)","v":""},{"$f":"IF('1. Ordersheet'!X1470=\"\",\"\",'1. Ordersheet'!X1470)","v":""},{"$f":"IF('1. Ordersheet'!Y1470=\"\",\"\",'1. Ordersheet'!Y1470)","v":""},{"$f":"IF('1. Ordersheet'!Z1470=\"\",\"\",'1. Ordersheet'!Z1470)","v":""},{"$f":"IF('1. Ordersheet'!AA1470=\"\",\"\",'1. Ordersheet'!AA1470)","v":""},null,{"$f":"IF('1. Ordersheet'!AS1470=\"\",\"\",'1. Ordersheet'!AS1470)","v":""},{"$f":"IF('1. Ordersheet'!AT1470=\"\",\"\",'1. Ordersheet'!AT1470)","v":""},null,null,null,null,null,null,null,{"$f":"IF('1. Ordersheet'!AX1470=\"\",\"\",'1. Ordersheet'!AX1470)","v":""},{"$f":"IF('1. Ordersheet'!AY1470=\"\",\"\",'1. Ordersheet'!AY1470)","v":""},{"$f":"IF('1. Ordersheet'!AZ1470=\"\",\"\",'1. Ordersheet'!AZ1470)","v":""},{"$f":"IF('1. Ordersheet'!BA1470=\"\",\"\",'1. Ordersheet'!BA1470)","v":""},{"$f":"IF('1. Ordersheet'!BC1470=\"\",\"\",'1. Ordersheet'!BC1470)","v":""},{"$f":"IF('1. Ordersheet'!BD1470=\"\",\"\",'1. Ordersheet'!BD1470)","v":""},{"$f":"IF('1. Ordersheet'!BE1470=\"\",\"\",'1. Ordersheet'!BE1470)","v":""},{"$f":"IF('1. Ordersheet'!BF1470=\"\",\"\",'1. Ordersheet'!BF1470)","v":""},{"$f":"IF('1. Ordersheet'!BG1470=\"\",\"\",'1. Ordersheet'!BG1470)","v":"ZWO"},{"$f":"IF('1. Ordersheet'!BH1470=\"\",\"\",'1. Ordersheet'!BH1470)","v":""},{"$f":"IF('1. Ordersheet'!BI1470=\"\",\"\",'1. Ordersheet'!BI1470)","v":""},{"$f":"IF('1. Ordersheet'!BJ1470=\"\",\"\",'1. Ordersheet'!BJ1470)","v":""},{"$f":"IF('1. Ordersheet'!BK1470=\"\",\"\",'1. Ordersheet'!BK1470)","v":""},{"$f":"IF('1. Ordersheet'!BL1470=\"\",\"\",'1. Ordersheet'!BL1470)","v":""}]
[{"$f":"IF('1. Ordersheet'!F1471=\"\",\"\",'1. Ordersheet'!F1471)","v":""},{"$f":"IF('1. Ordersheet'!G1471=\"\",\"\",'1. Ordersheet'!G1471)","v":""},{"$f":"IF('1. Ordersheet'!H1471=\"\",\"\",'1. Ordersheet'!H1471)","v":""},{"$f":"IF('1. Ordersheet'!I1471=\"\",\"\",'1. Ordersheet'!I1471)","v":""},{"$f":"IF('1. Ordersheet'!J1471=\"\",\"\",'1. Ordersheet'!J1471)","v":""},{"$f":"IF('1. Ordersheet'!K1471=\"\",\"\",'1. Ordersheet'!K1471)","v":""},{"$f":"IF('1. Ordersheet'!L1471=\"\",\"\",'1. Ordersheet'!L1471)","v":""},{"$f":"IF('1. Ordersheet'!M1471=\"\",\"\",'1. Ordersheet'!M1471)","v":""},{"$f":"IF('1. Ordersheet'!N1471=\"\",\"\",'1. Ordersheet'!N1471)","v":""},{"$f":"IF('1. Ordersheet'!O1471=\"\",\"\",'1. Ordersheet'!O1471)","v":{"$error":"#N/A"}},{"$f":"IF('1. Ordersheet'!P1471=\"\",\"\",'1. Ordersheet'!P1471)","v":{"$error":"#N/A"}},{"$f":"IF('1. Ordersheet'!Q1471=\"\",\"\",'1. Ordersheet'!Q1471)","v":""},{"$f":"IF('1. Ordersheet'!R1471=\"\",\"\",'1. Ordersheet'!R1471)","v":""},{"$f":"IF('1. Ordersheet'!S1471=\"\",\"\",'1. Ordersheet'!S1471)","v":""},{"$f":"IF('1. Ordersheet'!V1471=\"\",\"\",'1. Ordersheet'!V1471)","v":""},{"$f":"IF('1. Ordersheet'!W1471=\"\",\"\",'1. Ordersheet'!W1471)","v":""},{"$f":"IF('1. Ordersheet'!X1471=\"\",\"\",'1. Ordersheet'!X1471)","v":""},{"$f":"IF('1. Ordersheet'!Y1471=\"\",\"\",'1. Ordersheet'!Y1471)","v":""},{"$f":"IF('1. Ordersheet'!Z1471=\"\",\"\",'1. Ordersheet'!Z1471)","v":""},{"$f":"IF('1. Ordersheet'!AA1471=\"\",\"\",'1. Ordersheet'!AA1471)","v":""},null,{"$f":"IF('1. Ordersheet'!AS1471=\"\",\"\",'1. Ordersheet'!AS1471)","v":""},{"$f":"IF('1. Ordersheet'!AT1471=\"\",\"\",'1. Ordersheet'!AT1471)","v":""},null,null,null,null,null,null,null,{"$f":"IF('1. Ordersheet'!AX1471=\"\",\"\",'1. Ordersheet'!AX1471)","v":""},{"$f":"IF('1. Ordersheet'!AY1471=\"\",\"\",'1. Ordersheet'!AY1471)","v":""},{"$f":"IF('1. Ordersheet'!AZ1471=\"\",\"\",'1. Ordersheet'!AZ1471)","v":""},{"$f":"IF('1. Ordersheet'!BA1471=\"\",\"\",'1. Ordersheet'!BA1471)","v":""},{"$f":"IF('1. Ordersheet'!BC1471=\"\",\"\",'1. Ordersheet'!BC1471)","v":""},{"$f":"IF('1. Ordersheet'!BD1471=\"\",\"\",'1. Ordersheet'!BD1471)","v":""},{"$f":"IF('1. Ordersheet'!BE1471=\"\",\"\",'1. Ordersheet'!BE1471)","v":""},{"$f":"IF('1. Ordersheet'!BF1471=\"\",\"\",'1. Ordersheet'!BF1471)","v":""},{"$f":"IF('1. Ordersheet'!BG1471=\"\",\"\",'1. Ordersheet'!BG1471)","v":"ZWO"},{"$f":"IF('1. Ordersheet'!BH1471=\"\",\"\",'1. Ordersheet'!BH1471)","v":""},{"$f":"IF('1. Ordersheet'!BI1471=\"\",\"\",'1. Ordersheet'!BI1471)","v":""},{"$f":"IF('1. Ordersheet'!BJ1471=\"\",\"\",'1. Ordersheet'!BJ1471)","v":""},{"$f":"IF('1. Ordersheet'!BK1471=\"\",\"\",'1. Ordersheet'!BK1471)","v":""},{"$f":"IF('1. Ordersheet'!BL1471=\"\",\"\",'1. Ordersheet'!BL1471)","v":""}]
[{"$f":"IF('1. Ordersheet'!F1472=\"\",\"\",'1. Ordersheet'!F1472)","v":""},{"$f":"IF('1. Ordersheet'!G1472=\"\",\"\",'1. Ordersheet'!G1472)","v":""},{"$f":"IF('1. Ordersheet'!H1472=\"\",\"\",'1. Ordersheet'!H1472)","v":""},{"$f":"IF('1. Ordersheet'!I1472=\"\",\"\",'1. Ordersheet'!I1472)","v":""},{"$f":"IF('1. Ordersheet'!J1472=\"\",\"\",'1. Ordersheet'!J1472)","v":""},{"$f":"IF('1. Ordersheet'!K1472=\"\",\"\",'1. Ordersheet'!K1472)","v":""},{"$f":"IF('1. Ordersheet'!L1472=\"\",\"\",'1. Ordersheet'!L1472)","v":""},{"$f":"IF('1. Ordersheet'!M1472=\"\",\"\",'1. Ordersheet'!M1472)","v":""},{"$f":"IF('1. Ordersheet'!N1472=\"\",\"\",'1. Ordersheet'!N1472)","v":""},{"$f":"IF('1. Ordersheet'!O1472=\"\",\"\",'1. Ordersheet'!O1472)","v":{"$error":"#N/A"}},{"$f":"IF('1. Ordersheet'!P1472=\"\",\"\",'1. Ordersheet'!P1472)","v":{"$error":"#N/A"}},{"$f":"IF('1. Ordersheet'!Q1472=\"\",\"\",'1. Ordersheet'!Q1472)","v":""},{"$f":"IF('1. Ordersheet'!R1472=\"\",\"\",'1. Ordersheet'!R1472)","v":""},{"$f":"IF('1. Ordersheet'!S1472=\"\",\"\",'1. Ordersheet'!S1472)","v":""},{"$f":"IF('1. Ordersheet'!V1472=\"\",\"\",'1. Ordersheet'!V1472)","v":""},{"$f":"IF('1. Ordersheet'!W1472=\"\",\"\",'1. Ordersheet'!W1472)","v":""},{"$f":"IF('1. Ordersheet'!X1472=\"\",\"\",'1. Ordersheet'!X1472)","v":""},{"$f":"IF('1. Ordersheet'!Y1472=\"\",\"\",'1. Ordersheet'!Y1472)","v":""},{"$f":"IF('1. Ordersheet'!Z1472=\"\",\"\",'1. Ordersheet'!Z1472)","v":""},{"$f":"IF('1. Ordersheet'!AA1472=\"\",\"\",'1. Ordersheet'!AA1472)","v":""},null,{"$f":"IF('1. Ordersheet'!AS1472=\"\",\"\",'1. Ordersheet'!AS1472)","v":""},{"$f":"IF('1. Ordersheet'!AT1472=\"\",\"\",'1. Ordersheet'!AT1472)","v":""},null,null,null,null,null,null,null,{"$f":"IF('1. Ordersheet'!AX1472=\"\",\"\",'1. Ordersheet'!AX1472)","v":""},{"$f":"IF('1. Ordersheet'!AY1472=\"\",\"\",'1. Ordersheet'!AY1472)","v":""},{"$f":"IF('1. Ordersheet'!AZ1472=\"\",\"\",'1. Ordersheet'!AZ1472)","v":""},{"$f":"IF('1. Ordersheet'!BA1472=\"\",\"\",'1. Ordersheet'!BA1472)","v":""},{"$f":"IF('1. Ordersheet'!BC1472=\"\",\"\",'1. Ordersheet'!BC1472)","v":""},{"$f":"IF('1. Ordersheet'!BD1472=\"\",\"\",'1. Ordersheet'!BD1472)","v":""},{"$f":"IF('1. Ordersheet'!BE1472=\"\",\"\",'1. Ordersheet'!BE1472)","v":""},{"$f":"IF('1. Ordersheet'!BF1472=\"\",\"\",'1. Ordersheet'!BF1472)","v":""},{"$f":"IF('1. Ordersheet'!BG1472=\"\",\"\",'1. Ordersheet'!BG1472)","v":"ZWO"},{"$f":"IF('1. Ordersheet'!BH1472=\"\",\"\",'1. Ordersheet'!BH1472)","v":""},{"$f":"IF('1. Ordersheet'!BI1472=\"\",\"\",'1. Ordersheet'!BI1472)","v":""},{"$f":"IF('1. Ordersheet'!BJ1472=\"\",\"\",'1. Ordersheet'!BJ1472)","v":""},{"$f":"IF('1. Ordersheet'!BK1472=\"\",\"\",'1. Ordersheet'!BK1472)","v":""},{"$f":"IF('1. Ordersheet'!BL1472=\"\",\"\",'1. Ordersheet'!BL1472)","v":""}]
[{"$f":"IF('1. Ordersheet'!F1473=\"\",\"\",'1. Ordersheet'!F1473)","v":""},{"$f":"IF('1. Ordersheet'!G1473=\"\",\"\",'1. Ordersheet'!G1473)","v":""},{"$f":"IF('1. Ordersheet'!H1473=\"\",\"\",'1. Ordersheet'!H1473)","v":""},{"$f":"IF('1. Ordersheet'!I1473=\"\",\"\",'1. Ordersheet'!I1473)","v":""},{"$f":"IF('1. Ordersheet'!J1473=\"\",\"\",'1. Ordersheet'!J1473)","v":""},{"$f":"IF('1. Ordersheet'!K1473=\"\",\"\",'1. Ordersheet'!K1473)","v":""},{"$f":"IF('1. Ordersheet'!L1473=\"\",\"\",'1. Ordersheet'!L1473)","v":""},{"$f":"IF('1. Ordersheet'!M1473=\"\",\"\",'1. Ordersheet'!M1473)","v":""},{"$f":"IF('1. Ordersheet'!N1473=\"\",\"\",'1. Ordersheet'!N1473)","v":""},{"$f":"IF('1. Ordersheet'!O1473=\"\",\"\",'1. Ordersheet'!O1473)","v":{"$error":"#N/A"}},{"$f":"IF('1. Ordersheet'!P1473=\"\",\"\",'1. Ordersheet'!P1473)","v":{"$error":"#N/A"}},{"$f":"IF('1. Ordersheet'!Q1473=\"\",\"\",'1. Ordersheet'!Q1473)","v":""},{"$f":"IF('1. Ordersheet'!R1473=\"\",\"\",'1. Ordersheet'!R1473)","v":""},{"$f":"IF('1. Ordersheet'!S1473=\"\",\"\",'1. Ordersheet'!S1473)","v":""},{"$f":"IF('1. Ordersheet'!V1473=\"\",\"\",'1. Ordersheet'!V1473)","v":""},{"$f":"IF('1. Ordersheet'!W1473=\"\",\"\",'1. Ordersheet'!W1473)","v":""},{"$f":"IF('1. Ordersheet'!X1473=\"\",\"\",'1. Ordersheet'!X1473)","v":""},{"$f":"IF('1. Ordersheet'!Y1473=\"\",\"\",'1. Ordersheet'!Y1473)","v":""},{"$f":"IF('1. Ordersheet'!Z1473=\"\",\"\",'1. Ordersheet'!Z1473)","v":""},{"$f":"IF('1. Ordersheet'!AA1473=\"\",\"\",'1. Ordersheet'!AA1473)","v":""},null,{"$f":"IF('1. Ordersheet'!AS1473=\"\",\"\",'1. Ordersheet'!AS1473)","v":""},{"$f":"IF('1. Ordersheet'!AT1473=\"\",\"\",'1. Ordersheet'!AT1473)","v":""},null,null,null,null,null,null,null,{"$f":"IF('1. Ordersheet'!AX1473=\"\",\"\",'1. Ordersheet'!AX1473)","v":""},{"$f":"IF('1. Ordersheet'!AY1473=\"\",\"\",'1. Ordersheet'!AY1473)","v":""},{"$f":"IF('1. Ordersheet'!AZ1473=\"\",\"\",'1. Ordersheet'!AZ1473)","v":""},{"$f":"IF('1. Ordersheet'!BA1473=\"\",\"\",'1. Ordersheet'!BA1473)","v":""},{"$f":"IF('1. Ordersheet'!BC1473=\"\",\"\",'1. Ordersheet'!BC1473)","v":""},{"$f":"IF('1. Ordersheet'!BD1473=\"\",\"\",'1. Ordersheet'!BD1473)","v":""},{"$f":"IF('1. Ordersheet'!BE1473=\"\",\"\",'1. Ordersheet'!BE1473)","v":""},{"$f":"IF('1. Ordersheet'!BF1473=\"\",\"\",'1. Ordersheet'!BF1473)","v":""},{"$f":"IF('1. Ordersheet'!BG1473=\"\",\"\",'1. Ordersheet'!BG1473)","v":"ZWO"},{"$f":"IF('1. Ordersheet'!BH1473=\"\",\"\",'1. Ordersheet'!BH1473)","v":""},{"$f":"IF('1. Ordersheet'!BI1473=\"\",\"\",'1. Ordersheet'!BI1473)","v":""},{"$f":"IF('1. Ordersheet'!BJ1473=\"\",\"\",'1. Ordersheet'!BJ1473)","v":""},{"$f":"IF('1. Ordersheet'!BK1473=\"\",\"\",'1. Ordersheet'!BK1473)","v":""},{"$f":"IF('1. Ordersheet'!BL1473=\"\",\"\",'1. Ordersheet'!BL1473)","v":""}]
[{"$f":"IF('1. Ordersheet'!F1474=\"\",\"\",'1. Ordersheet'!F1474)","v":""},{"$f":"IF('1. Ordersheet'!G1474=\"\",\"\",'1. Ordersheet'!G1474)","v":""},{"$f":"IF('1. Ordersheet'!H1474=\"\",\"\",'1. Ordersheet'!H1474)","v":""},{"$f":"IF('1. Ordersheet'!I1474=\"\",\"\",'1. Ordersheet'!I1474)","v":""},{"$f":"IF('1. Ordersheet'!J1474=\"\",\"\",'1. Ordersheet'!J1474)","v":""},{"$f":"IF('1. Ordersheet'!K1474=\"\",\"\",'1. Ordersheet'!K1474)","v":""},{"$f":"IF('1. Ordersheet'!L1474=\"\",\"\",'1. Ordersheet'!L1474)","v":""},{"$f":"IF('1. Ordersheet'!M1474=\"\",\"\",'1. Ordersheet'!M1474)","v":""},{"$f":"IF('1. Ordersheet'!N1474=\"\",\"\",'1. Ordersheet'!N1474)","v":""},{"$f":"IF('1. Ordersheet'!O1474=\"\",\"\",'1. Ordersheet'!O1474)","v":{"$error":"#N/A"}},{"$f":"IF('1. Ordersheet'!P1474=\"\",\"\",'1. Ordersheet'!P1474)","v":{"$error":"#N/A"}},{"$f":"IF('1. Ordersheet'!Q1474=\"\",\"\",'1. Ordersheet'!Q1474)","v":""},{"$f":"IF('1. Ordersheet'!R1474=\"\",\"\",'1. Ordersheet'!R1474)","v":""},{"$f":"IF('1. Ordersheet'!S1474=\"\",\"\",'1. Ordersheet'!S1474)","v":""},{"$f":"IF('1. Ordersheet'!V1474=\"\",\"\",'1. Ordersheet'!V1474)","v":""},{"$f":"IF('1. Ordersheet'!W1474=\"\",\"\",'1. Ordersheet'!W1474)","v":""},{"$f":"IF('1. Ordersheet'!X1474=\"\",\"\",'1. Ordersheet'!X1474)","v":""},{"$f":"IF('1. Ordersheet'!Y1474=\"\",\"\",'1. Ordersheet'!Y1474)","v":""},{"$f":"IF('1. Ordersheet'!Z1474=\"\",\"\",'1. Ordersheet'!Z1474)","v":""},{"$f":"IF('1. Ordersheet'!AA1474=\"\",\"\",'1. Ordersheet'!AA1474)","v":""},null,{"$f":"IF('1. Ordersheet'!AS1474=\"\",\"\",'1. Ordersheet'!AS1474)","v":""},{"$f":"IF('1. Ordersheet'!AT1474=\"\",\"\",'1. Ordersheet'!AT1474)","v":""},null,null,null,null,null,null,null,{"$f":"IF('1. Ordersheet'!AX1474=\"\",\"\",'1. Ordersheet'!AX1474)","v":""},{"$f":"IF('1. Ordersheet'!AY1474=\"\",\"\",'1. Ordersheet'!AY1474)","v":""},{"$f":"IF('1. Ordersheet'!AZ1474=\"\",\"\",'1. Ordersheet'!AZ1474)","v":""},{"$f":"IF('1. Ordersheet'!BA1474=\"\",\"\",'1. Ordersheet'!BA1474)","v":""},{"$f":"IF('1. Ordersheet'!BC1474=\"\",\"\",'1. Ordersheet'!BC1474)","v":""},{"$f":"IF('1. Ordersheet'!BD1474=\"\",\"\",'1. Ordersheet'!BD1474)","v":""},{"$f":"IF('1. Ordersheet'!BE1474=\"\",\"\",'1. Ordersheet'!BE1474)","v":""},{"$f":"IF('1. Ordersheet'!BF1474=\"\",\"\",'1. Ordersheet'!BF1474)","v":""},{"$f":"IF('1. Ordersheet'!BG1474=\"\",\"\",'1. Ordersheet'!BG1474)","v":"ZWO"},{"$f":"IF('1. Ordersheet'!BH1474=\"\",\"\",'1. Ordersheet'!BH1474)","v":""},{"$f":"IF('1. Ordersheet'!BI1474=\"\",\"\",'1. Ordersheet'!BI1474)","v":""},{"$f":"IF('1. Ordersheet'!BJ1474=\"\",\"\",'1. Ordersheet'!BJ1474)","v":""},{"$f":"IF('1. Ordersheet'!BK1474=\"\",\"\",'1. Ordersheet'!BK1474)","v":""},{"$f":"IF('1. Ordersheet'!BL1474=\"\",\"\",'1. Ordersheet'!BL1474)","v":""}]
[{"$f":"IF('1. Ordersheet'!F1475=\"\",\"\",'1. Ordersheet'!F1475)","v":""},{"$f":"IF('1. Ordersheet'!G1475=\"\",\"\",'1. Ordersheet'!G1475)","v":""},{"$f":"IF('1. Ordersheet'!H1475=\"\",\"\",'1. Ordersheet'!H1475)","v":""},{"$f":"IF('1. Ordersheet'!I1475=\"\",\"\",'1. Ordersheet'!I1475)","v":""},{"$f":"IF('1. Ordersheet'!J1475=\"\",\"\",'1. Ordersheet'!J1475)","v":""},{"$f":"IF('1. Ordersheet'!K1475=\"\",\"\",'1. Ordersheet'!K1475)","v":""},{"$f":"IF('1. Ordersheet'!L1475=\"\",\"\",'1. Ordersheet'!L1475)","v":""},{"$f":"IF('1. Ordersheet'!M1475=\"\",\"\",'1. Ordersheet'!M1475)","v":""},{"$f":"IF('1. Ordersheet'!N1475=\"\",\"\",'1. Ordersheet'!N1475)","v":""},{"$f":"IF('1. Ordersheet'!O1475=\"\",\"\",'1. Ordersheet'!O1475)","v":{"$error":"#N/A"}},{"$f":"IF('1. Ordersheet'!P1475=\"\",\"\",'1. Ordersheet'!P1475)","v":{"$error":"#N/A"}},{"$f":"IF('1. Ordersheet'!Q1475=\"\",\"\",'1. Ordersheet'!Q1475)","v":""},{"$f":"IF('1. Ordersheet'!R1475=\"\",\"\",'1. Ordersheet'!R1475)","v":""},{"$f":"IF('1. Ordersheet'!S1475=\"\",\"\",'1. Ordersheet'!S1475)","v":""},{"$f":"IF('1. Ordersheet'!V1475=\"\",\"\",'1. Ordersheet'!V1475)","v":""},{"$f":"IF('1. Ordersheet'!W1475=\"\",\"\",'1. Ordersheet'!W1475)","v":""},{"$f":"IF('1. Ordersheet'!X1475=\"\",\"\",'1. Ordersheet'!X1475)","v":""},{"$f":"IF('1. Ordersheet'!Y1475=\"\",\"\",'1. Ordersheet'!Y1475)","v":""},{"$f":"IF('1. Ordersheet'!Z1475=\"\",\"\",'1. Ordersheet'!Z1475)","v":""},{"$f":"IF('1. Ordersheet'!AA1475=\"\",\"\",'1. Ordersheet'!AA1475)","v":""},null,{"$f":"IF('1. Ordersheet'!AS1475=\"\",\"\",'1. Ordersheet'!AS1475)","v":""},{"$f":"IF('1. Ordersheet'!AT1475=\"\",\"\",'1. Ordersheet'!AT1475)","v":""},null,null,null,null,null,null,null,{"$f":"IF('1. Ordersheet'!AX1475=\"\",\"\",'1. Ordersheet'!AX1475)","v":""},{"$f":"IF('1. Ordersheet'!AY1475=\"\",\"\",'1. Ordersheet'!AY1475)","v":""},{"$f":"IF('1. Ordersheet'!AZ1475=\"\",\"\",'1. Ordersheet'!AZ1475)","v":""},{"$f":"IF('1. Ordersheet'!BA1475=\"\",\"\",'1. Ordersheet'!BA1475)","v":""},{"$f":"IF('1. Ordersheet'!BC1475=\"\",\"\",'1. Ordersheet'!BC1475)","v":""},{"$f":"IF('1. Ordersheet'!BD1475=\"\",\"\",'1. Ordersheet'!BD1475)","v":""},{"$f":"IF('1. Ordersheet'!BE1475=\"\",\"\",'1. Ordersheet'!BE1475)","v":""},{"$f":"IF('1. Ordersheet'!BF1475=\"\",\"\",'1. Ordersheet'!BF1475)","v":""},{"$f":"IF('1. Ordersheet'!BG1475=\"\",\"\",'1. Ordersheet'!BG1475)","v":"ZWO"},{"$f":"IF('1. Ordersheet'!BH1475=\"\",\"\",'1. Ordersheet'!BH1475)","v":""},{"$f":"IF('1. Ordersheet'!BI1475=\"\",\"\",'1. Ordersheet'!BI1475)","v":""},{"$f":"IF('1. Ordersheet'!BJ1475=\"\",\"\",'1. Ordersheet'!BJ1475)","v":""},{"$f":"IF('1. Ordersheet'!BK1475=\"\",\"\",'1. Ordersheet'!BK1475)","v":""},{"$f":"IF('1. Ordersheet'!BL1475=\"\",\"\",'1. Ordersheet'!BL1475)","v":""}]
[{"$f":"IF('1. Ordersheet'!F1476=\"\",\"\",'1. Ordersheet'!F1476)","v":""},{"$f":"IF('1. Ordersheet'!G1476=\"\",\"\",'1. Ordersheet'!G1476)","v":""},{"$f":"IF('1. Ordersheet'!H1476=\"\",\"\",'1. Ordersheet'!H1476)","v":""},{"$f":"IF('1. Ordersheet'!I1476=\"\",\"\",'1. Ordersheet'!I1476)","v":""},{"$f":"IF('1. Ordersheet'!J1476=\"\",\"\",'1. Ordersheet'!J1476)","v":""},{"$f":"IF('1. Ordersheet'!K1476=\"\",\"\",'1. Ordersheet'!K1476)","v":""},{"$f":"IF('1. Ordersheet'!L1476=\"\",\"\",'1. Ordersheet'!L1476)","v":""},{"$f":"IF('1. Ordersheet'!M1476=\"\",\"\",'1. Ordersheet'!M1476)","v":""},{"$f":"IF('1. Ordersheet'!N1476=\"\",\"\",'1. Ordersheet'!N1476)","v":""},{"$f":"IF('1. Ordersheet'!O1476=\"\",\"\",'1. Ordersheet'!O1476)","v":{"$error":"#N/A"}},{"$f":"IF('1. Ordersheet'!P1476=\"\",\"\",'1. Ordersheet'!P1476)","v":{"$error":"#N/A"}},{"$f":"IF('1. Ordersheet'!Q1476=\"\",\"\",'1. Ordersheet'!Q1476)","v":""},{"$f":"IF('1. Ordersheet'!R1476=\"\",\"\",'1. Ordersheet'!R1476)","v":""},{"$f":"IF('1. Ordersheet'!S1476=\"\",\"\",'1. Ordersheet'!S1476)","v":""},{"$f":"IF('1. Ordersheet'!V1476=\"\",\"\",'1. Ordersheet'!V1476)","v":""},{"$f":"IF('1. Ordersheet'!W1476=\"\",\"\",'1. Ordersheet'!W1476)","v":""},{"$f":"IF('1. Ordersheet'!X1476=\"\",\"\",'1. Ordersheet'!X1476)","v":""},{"$f":"IF('1. Ordersheet'!Y1476=\"\",\"\",'1. Ordersheet'!Y1476)","v":""},{"$f":"IF('1. Ordersheet'!Z1476=\"\",\"\",'1. Ordersheet'!Z1476)","v":""},{"$f":"IF('1. Ordersheet'!AA1476=\"\",\"\",'1. Ordersheet'!AA1476)","v":""},null,{"$f":"IF('1. Ordersheet'!AS1476=\"\",\"\",'1. Ordersheet'!AS1476)","v":""},{"$f":"IF('1. Ordersheet'!AT1476=\"\",\"\",'1. Ordersheet'!AT1476)","v":""},null,null,null,null,null,null,null,{"$f":"IF('1. Ordersheet'!AX1476=\"\",\"\",'1. Ordersheet'!AX1476)","v":""},{"$f":"IF('1. Ordersheet'!AY1476=\"\",\"\",'1. Ordersheet'!AY1476)","v":""},{"$f":"IF('1. Ordersheet'!AZ1476=\"\",\"\",'1. Ordersheet'!AZ1476)","v":""},{"$f":"IF('1. Ordersheet'!BA1476=\"\",\"\",'1. Ordersheet'!BA1476)","v":""},{"$f":"IF('1. Ordersheet'!BC1476=\"\",\"\",'1. Ordersheet'!BC1476)","v":""},{"$f":"IF('1. Ordersheet'!BD1476=\"\",\"\",'1. Ordersheet'!BD1476)","v":""},{"$f":"IF('1. Ordersheet'!BE1476=\"\",\"\",'1. Ordersheet'!BE1476)","v":""},{"$f":"IF('1. Ordersheet'!BF1476=\"\",\"\",'1. Ordersheet'!BF1476)","v":""},{"$f":"IF('1. Ordersheet'!BG1476=\"\",\"\",'1. Ordersheet'!BG1476)","v":"ZWO"},{"$f":"IF('1. Ordersheet'!BH1476=\"\",\"\",'1. Ordersheet'!BH1476)","v":""},{"$f":"IF('1. Ordersheet'!BI1476=\"\",\"\",'1. Ordersheet'!BI1476)","v":""},{"$f":"IF('1. Ordersheet'!BJ1476=\"\",\"\",'1. Ordersheet'!BJ1476)","v":""},{"$f":"IF('1. Ordersheet'!BK1476=\"\",\"\",'1. Ordersheet'!BK1476)","v":""},{"$f":"IF('1. Ordersheet'!BL1476=\"\",\"\",'1. Ordersheet'!BL1476)","v":""}]
[{"$f":"IF('1. Ordersheet'!F1477=\"\",\"\",'1. Ordersheet'!F1477)","v":""},{"$f":"IF('1. Ordersheet'!G1477=\"\",\"\",'1. Ordersheet'!G1477)","v":""},{"$f":"IF('1. Ordersheet'!H1477=\"\",\"\",'1. Ordersheet'!H1477)","v":""},{"$f":"IF('1. Ordersheet'!I1477=\"\",\"\",'1. Ordersheet'!I1477)","v":""},{"$f":"IF('1. Ordersheet'!J1477=\"\",\"\",'1. Ordersheet'!J1477)","v":""},{"$f":"IF('1. Ordersheet'!K1477=\"\",\"\",'1. Ordersheet'!K1477)","v":""},{"$f":"IF('1. Ordersheet'!L1477=\"\",\"\",'1. Ordersheet'!L1477)","v":""},{"$f":"IF('1. Ordersheet'!M1477=\"\",\"\",'1. Ordersheet'!M1477)","v":""},{"$f":"IF('1. Ordersheet'!N1477=\"\",\"\",'1. Ordersheet'!N1477)","v":""},{"$f":"IF('1. Ordersheet'!O1477=\"\",\"\",'1. Ordersheet'!O1477)","v":{"$error":"#N/A"}},{"$f":"IF('1. Ordersheet'!P1477=\"\",\"\",'1. Ordersheet'!P1477)","v":{"$error":"#N/A"}},{"$f":"IF('1. Ordersheet'!Q1477=\"\",\"\",'1. Ordersheet'!Q1477)","v":""},{"$f":"IF('1. Ordersheet'!R1477=\"\",\"\",'1. Ordersheet'!R1477)","v":""},{"$f":"IF('1. Ordersheet'!S1477=\"\",\"\",'1. Ordersheet'!S1477)","v":""},{"$f":"IF('1. Ordersheet'!V1477=\"\",\"\",'1. Ordersheet'!V1477)","v":""},{"$f":"IF('1. Ordersheet'!W1477=\"\",\"\",'1. Ordersheet'!W1477)","v":""},{"$f":"IF('1. Ordersheet'!X1477=\"\",\"\",'1. Ordersheet'!X1477)","v":""},{"$f":"IF('1. Ordersheet'!Y1477=\"\",\"\",'1. Ordersheet'!Y1477)","v":""},{"$f":"IF('1. Ordersheet'!Z1477=\"\",\"\",'1. Ordersheet'!Z1477)","v":""},{"$f":"IF('1. Ordersheet'!AA1477=\"\",\"\",'1. Ordersheet'!AA1477)","v":""},null,{"$f":"IF('1. Ordersheet'!AS1477=\"\",\"\",'1. Ordersheet'!AS1477)","v":""},{"$f":"IF('1. Ordersheet'!AT1477=\"\",\"\",'1. Ordersheet'!AT1477)","v":""},null,null,null,null,null,null,null,{"$f":"IF('1. Ordersheet'!AX1477=\"\",\"\",'1. Ordersheet'!AX1477)","v":""},{"$f":"IF('1. Ordersheet'!AY1477=\"\",\"\",'1. Ordersheet'!AY1477)","v":""},{"$f":"IF('1. Ordersheet'!AZ1477=\"\",\"\",'1. Ordersheet'!AZ1477)","v":""},{"$f":"IF('1. Ordersheet'!BA1477=\"\",\"\",'1. Ordersheet'!BA1477)","v":""},{"$f":"IF('1. Ordersheet'!BC1477=\"\",\"\",'1. Ordersheet'!BC1477)","v":""},{"$f":"IF('1. Ordersheet'!BD1477=\"\",\"\",'1. Ordersheet'!BD1477)","v":""},{"$f":"IF('1. Ordersheet'!BE1477=\"\",\"\",'1. Ordersheet'!BE1477)","v":""},{"$f":"IF('1. Ordersheet'!BF1477=\"\",\"\",'1. Ordersheet'!BF1477)","v":""},{"$f":"IF('1. Ordersheet'!BG1477=\"\",\"\",'1. Ordersheet'!BG1477)","v":"ZWO"},{"$f":"IF('1. Ordersheet'!BH1477=\"\",\"\",'1. Ordersheet'!BH1477)","v":""},{"$f":"IF('1. Ordersheet'!BI1477=\"\",\"\",'1. Ordersheet'!BI1477)","v":""},{"$f":"IF('1. Ordersheet'!BJ1477=\"\",\"\",'1. Ordersheet'!BJ1477)","v":""},{"$f":"IF('1. Ordersheet'!BK1477=\"\",\"\",'1. Ordersheet'!BK1477)","v":""},{"$f":"IF('1. Ordersheet'!BL1477=\"\",\"\",'1. Ordersheet'!BL1477)","v":""}]
[{"$f":"IF('1. Ordersheet'!F1478=\"\",\"\",'1. Ordersheet'!F1478)","v":""},{"$f":"IF('1. Ordersheet'!G1478=\"\",\"\",'1. Ordersheet'!G1478)","v":""},{"$f":"IF('1. Ordersheet'!H1478=\"\",\"\",'1. Ordersheet'!H1478)","v":""},{"$f":"IF('1. Ordersheet'!I1478=\"\",\"\",'1. Ordersheet'!I1478)","v":""},{"$f":"IF('1. Ordersheet'!J1478=\"\",\"\",'1. Ordersheet'!J1478)","v":""},{"$f":"IF('1. Ordersheet'!K1478=\"\",\"\",'1. Ordersheet'!K1478)","v":""},{"$f":"IF('1. Ordersheet'!L1478=\"\",\"\",'1. Ordersheet'!L1478)","v":""},{"$f":"IF('1. Ordersheet'!M1478=\"\",\"\",'1. Ordersheet'!M1478)","v":""},{"$f":"IF('1. Ordersheet'!N1478=\"\",\"\",'1. Ordersheet'!N1478)","v":""},{"$f":"IF('1. Ordersheet'!O1478=\"\",\"\",'1. Ordersheet'!O1478)","v":{"$error":"#N/A"}},{"$f":"IF('1. Ordersheet'!P1478=\"\",\"\",'1. Ordersheet'!P1478)","v":{"$error":"#N/A"}},{"$f":"IF('1. Ordersheet'!Q1478=\"\",\"\",'1. Ordersheet'!Q1478)","v":""},{"$f":"IF('1. Ordersheet'!R1478=\"\",\"\",'1. Ordersheet'!R1478)","v":""},{"$f":"IF('1. Ordersheet'!S1478=\"\",\"\",'1. Ordersheet'!S1478)","v":""},{"$f":"IF('1. Ordersheet'!V1478=\"\",\"\",'1. Ordersheet'!V1478)","v":""},{"$f":"IF('1. Ordersheet'!W1478=\"\",\"\",'1. Ordersheet'!W1478)","v":""},{"$f":"IF('1. Ordersheet'!X1478=\"\",\"\",'1. Ordersheet'!X1478)","v":""},{"$f":"IF('1. Ordersheet'!Y1478=\"\",\"\",'1. Ordersheet'!Y1478)","v":""},{"$f":"IF('1. Ordersheet'!Z1478=\"\",\"\",'1. Ordersheet'!Z1478)","v":""},{"$f":"IF('1. Ordersheet'!AA1478=\"\",\"\",'1. Ordersheet'!AA1478)","v":""},null,{"$f":"IF('1. Ordersheet'!AS1478=\"\",\"\",'1. Ordersheet'!AS1478)","v":""},{"$f":"IF('1. Ordersheet'!AT1478=\"\",\"\",'1. Ordersheet'!AT1478)","v":""},null,null,null,null,null,null,null,{"$f":"IF('1. Ordersheet'!AX1478=\"\",\"\",'1. Ordersheet'!AX1478)","v":""},{"$f":"IF('1. Ordersheet'!AY1478=\"\",\"\",'1. Ordersheet'!AY1478)","v":""},{"$f":"IF('1. Ordersheet'!AZ1478=\"\",\"\",'1. Ordersheet'!AZ1478)","v":""},{"$f":"IF('1. Ordersheet'!BA1478=\"\",\"\",'1. Ordersheet'!BA1478)","v":""},{"$f":"IF('1. Ordersheet'!BC1478=\"\",\"\",'1. Ordersheet'!BC1478)","v":""},{"$f":"IF('1. Ordersheet'!BD1478=\"\",\"\",'1. Ordersheet'!BD1478)","v":""},{"$f":"IF('1. Ordersheet'!BE1478=\"\",\"\",'1. Ordersheet'!BE1478)","v":""},{"$f":"IF('1. Ordersheet'!BF1478=\"\",\"\",'1. Ordersheet'!BF1478)","v":""},{"$f":"IF('1. Ordersheet'!BG1478=\"\",\"\",'1. Ordersheet'!BG1478)","v":"ZWO"},{"$f":"IF('1. Ordersheet'!BH1478=\"\",\"\",'1. Ordersheet'!BH1478)","v":""},{"$f":"IF('1. Ordersheet'!BI1478=\"\",\"\",'1. Ordersheet'!BI1478)","v":""},{"$f":"IF('1. Ordersheet'!BJ1478=\"\",\"\",'1. Ordersheet'!BJ1478)","v":""},{"$f":"IF('1. Ordersheet'!BK1478=\"\",\"\",'1. Ordersheet'!BK1478)","v":""},{"$f":"IF('1. Ordersheet'!BL1478=\"\",\"\",'1. Ordersheet'!BL1478)","v":""}]
[{"$f":"IF('1. Ordersheet'!F1479=\"\",\"\",'1. Ordersheet'!F1479)","v":""},{"$f":"IF('1. Ordersheet'!G1479=\"\",\"\",'1. Ordersheet'!G1479)","v":""},{"$f":"IF('1. Ordersheet'!H1479=\"\",\"\",'1. Ordersheet'!H1479)","v":""},{"$f":"IF('1. Ordersheet'!I1479=\"\",\"\",'1. Ordersheet'!I1479)","v":""},{"$f":"IF('1. Ordersheet'!J1479=\"\",\"\",'1. Ordersheet'!J1479)","v":""},{"$f":"IF('1. Ordersheet'!K1479=\"\",\"\",'1. Ordersheet'!K1479)","v":""},{"$f":"IF('1. Ordersheet'!L1479=\"\",\"\",'1. Ordersheet'!L1479)","v":""},{"$f":"IF('1. Ordersheet'!M1479=\"\",\"\",'1. Ordersheet'!M1479)","v":""},{"$f":"IF('1. Ordersheet'!N1479=\"\",\"\",'1. Ordersheet'!N1479)","v":""},{"$f":"IF('1. Ordersheet'!O1479=\"\",\"\",'1. Ordersheet'!O1479)","v":{"$error":"#N/A"}},{"$f":"IF('1. Ordersheet'!P1479=\"\",\"\",'1. Ordersheet'!P1479)","v":{"$error":"#N/A"}},{"$f":"IF('1. Ordersheet'!Q1479=\"\",\"\",'1. Ordersheet'!Q1479)","v":""},{"$f":"IF('1. Ordersheet'!R1479=\"\",\"\",'1. Ordersheet'!R1479)","v":""},{"$f":"IF('1. Ordersheet'!S1479=\"\",\"\",'1. Ordersheet'!S1479)","v":""},{"$f":"IF('1. Ordersheet'!V1479=\"\",\"\",'1. Ordersheet'!V1479)","v":""},{"$f":"IF('1. Ordersheet'!W1479=\"\",\"\",'1. Ordersheet'!W1479)","v":""},{"$f":"IF('1. Ordersheet'!X1479=\"\",\"\",'1. Ordersheet'!X1479)","v":""},{"$f":"IF('1. Ordersheet'!Y1479=\"\",\"\",'1. Ordersheet'!Y1479)","v":""},{"$f":"IF('1. Ordersheet'!Z1479=\"\",\"\",'1. Ordersheet'!Z1479)","v":""},{"$f":"IF('1. Ordersheet'!AA1479=\"\",\"\",'1. Ordersheet'!AA1479)","v":""},null,{"$f":"IF('1. Ordersheet'!AS1479=\"\",\"\",'1. Ordersheet'!AS1479)","v":""},{"$f":"IF('1. Ordersheet'!AT1479=\"\",\"\",'1. Ordersheet'!AT1479)","v":""},null,null,null,null,null,null,null,{"$f":"IF('1. Ordersheet'!AX1479=\"\",\"\",'1. Ordersheet'!AX1479)","v":""},{"$f":"IF('1. Ordersheet'!AY1479=\"\",\"\",'1. Ordersheet'!AY1479)","v":""},{"$f":"IF('1. Ordersheet'!AZ1479=\"\",\"\",'1. Ordersheet'!AZ1479)","v":""},{"$f":"IF('1. Ordersheet'!BA1479=\"\",\"\",'1. Ordersheet'!BA1479)","v":""},{"$f":"IF('1. Ordersheet'!BC1479=\"\",\"\",'1. Ordersheet'!BC1479)","v":""},{"$f":"IF('1. Ordersheet'!BD1479=\"\",\"\",'1. Ordersheet'!BD1479)","v":""},{"$f":"IF('1. Ordersheet'!BE1479=\"\",\"\",'1. Ordersheet'!BE1479)","v":""},{"$f":"IF('1. Ordersheet'!BF1479=\"\",\"\",'1. Ordersheet'!BF1479)","v":""},{"$f":"IF('1. Ordersheet'!BG1479=\"\",\"\",'1. Ordersheet'!BG1479)","v":"ZWO"},{"$f":"IF('1. Ordersheet'!BH1479=\"\",\"\",'1. Ordersheet'!BH1479)","v":""},{"$f":"IF('1. Ordersheet'!BI1479=\"\",\"\",'1. Ordersheet'!BI1479)","v":""},{"$f":"IF('1. Ordersheet'!BJ1479=\"\",\"\",'1. Ordersheet'!BJ1479)","v":""},{"$f":"IF('1. Ordersheet'!BK1479=\"\",\"\",'1. Ordersheet'!BK1479)","v":""},{"$f":"IF('1. Ordersheet'!BL1479=\"\",\"\",'1. Ordersheet'!BL1479)","v":""}]
[{"$f":"IF('1. Ordersheet'!F1480=\"\",\"\",'1. Ordersheet'!F1480)","v":""},{"$f":"IF('1. Ordersheet'!G1480=\"\",\"\",'1. Ordersheet'!G1480)","v":""},{"$f":"IF('1. Ordersheet'!H1480=\"\",\"\",'1. Ordersheet'!H1480)","v":""},{"$f":"IF('1. Ordersheet'!I1480=\"\",\"\",'1. Ordersheet'!I1480)","v":""},{"$f":"IF('1. Ordersheet'!J1480=\"\",\"\",'1. Ordersheet'!J1480)","v":""},{"$f":"IF('1. Ordersheet'!K1480=\"\",\"\",'1. Ordersheet'!K1480)","v":""},{"$f":"IF('1. Ordersheet'!L1480=\"\",\"\",'1. Ordersheet'!L1480)","v":""},{"$f":"IF('1. Ordersheet'!M1480=\"\",\"\",'1. Ordersheet'!M1480)","v":""},{"$f":"IF('1. Ordersheet'!N1480=\"\",\"\",'1. Ordersheet'!N1480)","v":""},{"$f":"IF('1. Ordersheet'!O1480=\"\",\"\",'1. Ordersheet'!O1480)","v":{"$error":"#N/A"}},{"$f":"IF('1. Ordersheet'!P1480=\"\",\"\",'1. Ordersheet'!P1480)","v":{"$error":"#N/A"}},{"$f":"IF('1. Ordersheet'!Q1480=\"\",\"\",'1. Ordersheet'!Q1480)","v":""},{"$f":"IF('1. Ordersheet'!R1480=\"\",\"\",'1. Ordersheet'!R1480)","v":""},{"$f":"IF('1. Ordersheet'!S1480=\"\",\"\",'1. Ordersheet'!S1480)","v":""},{"$f":"IF('1. Ordersheet'!V1480=\"\",\"\",'1. Ordersheet'!V1480)","v":""},{"$f":"IF('1. Ordersheet'!W1480=\"\",\"\",'1. Ordersheet'!W1480)","v":""},{"$f":"IF('1. Ordersheet'!X1480=\"\",\"\",'1. Ordersheet'!X1480)","v":""},{"$f":"IF('1. Ordersheet'!Y1480=\"\",\"\",'1. Ordersheet'!Y1480)","v":""},{"$f":"IF('1. Ordersheet'!Z1480=\"\",\"\",'1. Ordersheet'!Z1480)","v":""},{"$f":"IF('1. Ordersheet'!AA1480=\"\",\"\",'1. Ordersheet'!AA1480)","v":""},null,{"$f":"IF('1. Ordersheet'!AS1480=\"\",\"\",'1. Ordersheet'!AS1480)","v":""},{"$f":"IF('1. Ordersheet'!AT1480=\"\",\"\",'1. Ordersheet'!AT1480)","v":""},null,null,null,null,null,null,null,{"$f":"IF('1. Ordersheet'!AX1480=\"\",\"\",'1. Ordersheet'!AX1480)","v":""},{"$f":"IF('1. Ordersheet'!AY1480=\"\",\"\",'1. Ordersheet'!AY1480)","v":""},{"$f":"IF('1. Ordersheet'!AZ1480=\"\",\"\",'1. Ordersheet'!AZ1480)","v":""},{"$f":"IF('1. Ordersheet'!BA1480=\"\",\"\",'1. Ordersheet'!BA1480)","v":""},{"$f":"IF('1. Ordersheet'!BC1480=\"\",\"\",'1. Ordersheet'!BC1480)","v":""},{"$f":"IF('1. Ordersheet'!BD1480=\"\",\"\",'1. Ordersheet'!BD1480)","v":""},{"$f":"IF('1. Ordersheet'!BE1480=\"\",\"\",'1. Ordersheet'!BE1480)","v":""},{"$f":"IF('1. Ordersheet'!BF1480=\"\",\"\",'1. Ordersheet'!BF1480)","v":""},{"$f":"IF('1. Ordersheet'!BG1480=\"\",\"\",'1. Ordersheet'!BG1480)","v":"ZWO"},{"$f":"IF('1. Ordersheet'!BH1480=\"\",\"\",'1. Ordersheet'!BH1480)","v":""},{"$f":"IF('1. Ordersheet'!BI1480=\"\",\"\",'1. Ordersheet'!BI1480)","v":""},{"$f":"IF('1. Ordersheet'!BJ1480=\"\",\"\",'1. Ordersheet'!BJ1480)","v":""},{"$f":"IF('1. Ordersheet'!BK1480=\"\",\"\",'1. Ordersheet'!BK1480)","v":""},{"$f":"IF('1. Ordersheet'!BL1480=\"\",\"\",'1. Ordersheet'!BL1480)","v":""}]
[{"$f":"IF('1. Ordersheet'!F1481=\"\",\"\",'1. Ordersheet'!F1481)","v":""},{"$f":"IF('1. Ordersheet'!G1481=\"\",\"\",'1. Ordersheet'!G1481)","v":""},{"$f":"IF('1. Ordersheet'!H1481=\"\",\"\",'1. Ordersheet'!H1481)","v":""},{"$f":"IF('1. Ordersheet'!I1481=\"\",\"\",'1. Ordersheet'!I1481)","v":""},{"$f":"IF('1. Ordersheet'!J1481=\"\",\"\",'1. Ordersheet'!J1481)","v":""},{"$f":"IF('1. Ordersheet'!K1481=\"\",\"\",'1. Ordersheet'!K1481)","v":""},{"$f":"IF('1. Ordersheet'!L1481=\"\",\"\",'1. Ordersheet'!L1481)","v":""},{"$f":"IF('1. Ordersheet'!M1481=\"\",\"\",'1. Ordersheet'!M1481)","v":""},{"$f":"IF('1. Ordersheet'!N1481=\"\",\"\",'1. Ordersheet'!N1481)","v":""},{"$f":"IF('1. Ordersheet'!O1481=\"\",\"\",'1. Ordersheet'!O1481)","v":{"$error":"#N/A"}},{"$f":"IF('1. Ordersheet'!P1481=\"\",\"\",'1. Ordersheet'!P1481)","v":{"$error":"#N/A"}},{"$f":"IF('1. Ordersheet'!Q1481=\"\",\"\",'1. Ordersheet'!Q1481)","v":""},{"$f":"IF('1. Ordersheet'!R1481=\"\",\"\",'1. Ordersheet'!R1481)","v":""},{"$f":"IF('1. Ordersheet'!S1481=\"\",\"\",'1. Ordersheet'!S1481)","v":""},{"$f":"IF('1. Ordersheet'!V1481=\"\",\"\",'1. Ordersheet'!V1481)","v":""},{"$f":"IF('1. Ordersheet'!W1481=\"\",\"\",'1. Ordersheet'!W1481)","v":""},{"$f":"IF('1. Ordersheet'!X1481=\"\",\"\",'1. Ordersheet'!X1481)","v":""},{"$f":"IF('1. Ordersheet'!Y1481=\"\",\"\",'1. Ordersheet'!Y1481)","v":""},{"$f":"IF('1. Ordersheet'!Z1481=\"\",\"\",'1. Ordersheet'!Z1481)","v":""},{"$f":"IF('1. Ordersheet'!AA1481=\"\",\"\",'1. Ordersheet'!AA1481)","v":""},null,{"$f":"IF('1. Ordersheet'!AS1481=\"\",\"\",'1. Ordersheet'!AS1481)","v":""},{"$f":"IF('1. Ordersheet'!AT1481=\"\",\"\",'1. Ordersheet'!AT1481)","v":""},null,null,null,null,null,null,null,{"$f":"IF('1. Ordersheet'!AX1481=\"\",\"\",'1. Ordersheet'!AX1481)","v":""},{"$f":"IF('1. Ordersheet'!AY1481=\"\",\"\",'1. Ordersheet'!AY1481)","v":""},{"$f":"IF('1. Ordersheet'!AZ1481=\"\",\"\",'1. Ordersheet'!AZ1481)","v":""},{"$f":"IF('1. Ordersheet'!BA1481=\"\",\"\",'1. Ordersheet'!BA1481)","v":""},{"$f":"IF('1. Ordersheet'!BC1481=\"\",\"\",'1. Ordersheet'!BC1481)","v":""},{"$f":"IF('1. Ordersheet'!BD1481=\"\",\"\",'1. Ordersheet'!BD1481)","v":""},{"$f":"IF('1. Ordersheet'!BE1481=\"\",\"\",'1. Ordersheet'!BE1481)","v":""},{"$f":"IF('1. Ordersheet'!BF1481=\"\",\"\",'1. Ordersheet'!BF1481)","v":""},{"$f":"IF('1. Ordersheet'!BG1481=\"\",\"\",'1. Ordersheet'!BG1481)","v":"ZWO"},{"$f":"IF('1. Ordersheet'!BH1481=\"\",\"\",'1. Ordersheet'!BH1481)","v":""},{"$f":"IF('1. Ordersheet'!BI1481=\"\",\"\",'1. Ordersheet'!BI1481)","v":""},{"$f":"IF('1. Ordersheet'!BJ1481=\"\",\"\",'1. Ordersheet'!BJ1481)","v":""},{"$f":"IF('1. Ordersheet'!BK1481=\"\",\"\",'1. Ordersheet'!BK1481)","v":""},{"$f":"IF('1. Ordersheet'!BL1481=\"\",\"\",'1. Ordersheet'!BL1481)","v":""}]
[{"$f":"IF('1. Ordersheet'!F1482=\"\",\"\",'1. Ordersheet'!F1482)","v":""},{"$f":"IF('1. Ordersheet'!G1482=\"\",\"\",'1. Ordersheet'!G1482)","v":""},{"$f":"IF('1. Ordersheet'!H1482=\"\",\"\",'1. Ordersheet'!H1482)","v":""},{"$f":"IF('1. Ordersheet'!I1482=\"\",\"\",'1. Ordersheet'!I1482)","v":""},{"$f":"IF('1. Ordersheet'!J1482=\"\",\"\",'1. Ordersheet'!J1482)","v":""},{"$f":"IF('1. Ordersheet'!K1482=\"\",\"\",'1. Ordersheet'!K1482)","v":""},{"$f":"IF('1. Ordersheet'!L1482=\"\",\"\",'1. Ordersheet'!L1482)","v":""},{"$f":"IF('1. Ordersheet'!M1482=\"\",\"\",'1. Ordersheet'!M1482)","v":""},{"$f":"IF('1. Ordersheet'!N1482=\"\",\"\",'1. Ordersheet'!N1482)","v":""},{"$f":"IF('1. Ordersheet'!O1482=\"\",\"\",'1. Ordersheet'!O1482)","v":{"$error":"#N/A"}},{"$f":"IF('1. Ordersheet'!P1482=\"\",\"\",'1. Ordersheet'!P1482)","v":{"$error":"#N/A"}},{"$f":"IF('1. Ordersheet'!Q1482=\"\",\"\",'1. Ordersheet'!Q1482)","v":""},{"$f":"IF('1. Ordersheet'!R1482=\"\",\"\",'1. Ordersheet'!R1482)","v":""},{"$f":"IF('1. Ordersheet'!S1482=\"\",\"\",'1. Ordersheet'!S1482)","v":""},{"$f":"IF('1. Ordersheet'!V1482=\"\",\"\",'1. Ordersheet'!V1482)","v":""},{"$f":"IF('1. Ordersheet'!W1482=\"\",\"\",'1. Ordersheet'!W1482)","v":""},{"$f":"IF('1. Ordersheet'!X1482=\"\",\"\",'1. Ordersheet'!X1482)","v":""},{"$f":"IF('1. Ordersheet'!Y1482=\"\",\"\",'1. Ordersheet'!Y1482)","v":""},{"$f":"IF('1. Ordersheet'!Z1482=\"\",\"\",'1. Ordersheet'!Z1482)","v":""},{"$f":"IF('1. Ordersheet'!AA1482=\"\",\"\",'1. Ordersheet'!AA1482)","v":""},null,{"$f":"IF('1. Ordersheet'!AS1482=\"\",\"\",'1. Ordersheet'!AS1482)","v":""},{"$f":"IF('1. Ordersheet'!AT1482=\"\",\"\",'1. Ordersheet'!AT1482)","v":""},null,null,null,null,null,null,null,{"$f":"IF('1. Ordersheet'!AX1482=\"\",\"\",'1. Ordersheet'!AX1482)","v":""},{"$f":"IF('1. Ordersheet'!AY1482=\"\",\"\",'1. Ordersheet'!AY1482)","v":""},{"$f":"IF('1. Ordersheet'!AZ1482=\"\",\"\",'1. Ordersheet'!AZ1482)","v":""},{"$f":"IF('1. Ordersheet'!BA1482=\"\",\"\",'1. Ordersheet'!BA1482)","v":""},{"$f":"IF('1. Ordersheet'!BC1482=\"\",\"\",'1. Ordersheet'!BC1482)","v":""},{"$f":"IF('1. Ordersheet'!BD1482=\"\",\"\",'1. Ordersheet'!BD1482)","v":""},{"$f":"IF('1. Ordersheet'!BE1482=\"\",\"\",'1. Ordersheet'!BE1482)","v":""},{"$f":"IF('1. Ordersheet'!BF1482=\"\",\"\",'1. Ordersheet'!BF1482)","v":""},{"$f":"IF('1. Ordersheet'!BG1482=\"\",\"\",'1. Ordersheet'!BG1482)","v":"ZWO"},{"$f":"IF('1. Ordersheet'!BH1482=\"\",\"\",'1. Ordersheet'!BH1482)","v":""},{"$f":"IF('1. Ordersheet'!BI1482=\"\",\"\",'1. Ordersheet'!BI1482)","v":""},{"$f":"IF('1. Ordersheet'!BJ1482=\"\",\"\",'1. Ordersheet'!BJ1482)","v":""},{"$f":"IF('1. Ordersheet'!BK1482=\"\",\"\",'1. Ordersheet'!BK1482)","v":""},{"$f":"IF('1. Ordersheet'!BL1482=\"\",\"\",'1. Ordersheet'!BL1482)","v":""}]
[{"$f":"IF('1. Ordersheet'!F1483=\"\",\"\",'1. Ordersheet'!F1483)","v":""},{"$f":"IF('1. Ordersheet'!G1483=\"\",\"\",'1. Ordersheet'!G1483)","v":""},{"$f":"IF('1. Ordersheet'!H1483=\"\",\"\",'1. Ordersheet'!H1483)","v":""},{"$f":"IF('1. Ordersheet'!I1483=\"\",\"\",'1. Ordersheet'!I1483)","v":""},{"$f":"IF('1. Ordersheet'!J1483=\"\",\"\",'1. Ordersheet'!J1483)","v":""},{"$f":"IF('1. Ordersheet'!K1483=\"\",\"\",'1. Ordersheet'!K1483)","v":""},{"$f":"IF('1. Ordersheet'!L1483=\"\",\"\",'1. Ordersheet'!L1483)","v":""},{"$f":"IF('1. Ordersheet'!M1483=\"\",\"\",'1. Ordersheet'!M1483)","v":""},{"$f":"IF('1. Ordersheet'!N1483=\"\",\"\",'1. Ordersheet'!N1483)","v":""},{"$f":"IF('1. Ordersheet'!O1483=\"\",\"\",'1. Ordersheet'!O1483)","v":{"$error":"#N/A"}},{"$f":"IF('1. Ordersheet'!P1483=\"\",\"\",'1. Ordersheet'!P1483)","v":{"$error":"#N/A"}},{"$f":"IF('1. Ordersheet'!Q1483=\"\",\"\",'1. Ordersheet'!Q1483)","v":""},{"$f":"IF('1. Ordersheet'!R1483=\"\",\"\",'1. Ordersheet'!R1483)","v":""},{"$f":"IF('1. Ordersheet'!S1483=\"\",\"\",'1. Ordersheet'!S1483)","v":""},{"$f":"IF('1. Ordersheet'!V1483=\"\",\"\",'1. Ordersheet'!V1483)","v":""},{"$f":"IF('1. Ordersheet'!W1483=\"\",\"\",'1. Ordersheet'!W1483)","v":""},{"$f":"IF('1. Ordersheet'!X1483=\"\",\"\",'1. Ordersheet'!X1483)","v":""},{"$f":"IF('1. Ordersheet'!Y1483=\"\",\"\",'1. Ordersheet'!Y1483)","v":""},{"$f":"IF('1. Ordersheet'!Z1483=\"\",\"\",'1. Ordersheet'!Z1483)","v":""},{"$f":"IF('1. Ordersheet'!AA1483=\"\",\"\",'1. Ordersheet'!AA1483)","v":""},null,{"$f":"IF('1. Ordersheet'!AS1483=\"\",\"\",'1. Ordersheet'!AS1483)","v":""},{"$f":"IF('1. Ordersheet'!AT1483=\"\",\"\",'1. Ordersheet'!AT1483)","v":""},null,null,null,null,null,null,null,{"$f":"IF('1. Ordersheet'!AX1483=\"\",\"\",'1. Ordersheet'!AX1483)","v":""},{"$f":"IF('1. Ordersheet'!AY1483=\"\",\"\",'1. Ordersheet'!AY1483)","v":""},{"$f":"IF('1. Ordersheet'!AZ1483=\"\",\"\",'1. Ordersheet'!AZ1483)","v":""},{"$f":"IF('1. Ordersheet'!BA1483=\"\",\"\",'1. Ordersheet'!BA1483)","v":""},{"$f":"IF('1. Ordersheet'!BC1483=\"\",\"\",'1. Ordersheet'!BC1483)","v":""},{"$f":"IF('1. Ordersheet'!BD1483=\"\",\"\",'1. Ordersheet'!BD1483)","v":""},{"$f":"IF('1. Ordersheet'!BE1483=\"\",\"\",'1. Ordersheet'!BE1483)","v":""},{"$f":"IF('1. Ordersheet'!BF1483=\"\",\"\",'1. Ordersheet'!BF1483)","v":""},{"$f":"IF('1. Ordersheet'!BG1483=\"\",\"\",'1. Ordersheet'!BG1483)","v":"ZWO"},{"$f":"IF('1. Ordersheet'!BH1483=\"\",\"\",'1. Ordersheet'!BH1483)","v":""},{"$f":"IF('1. Ordersheet'!BI1483=\"\",\"\",'1. Ordersheet'!BI1483)","v":""},{"$f":"IF('1. Ordersheet'!BJ1483=\"\",\"\",'1. Ordersheet'!BJ1483)","v":""},{"$f":"IF('1. Ordersheet'!BK1483=\"\",\"\",'1. Ordersheet'!BK1483)","v":""},{"$f":"IF('1. Ordersheet'!BL1483=\"\",\"\",'1. Ordersheet'!BL1483)","v":""}]
[{"$f":"IF('1. Ordersheet'!F1484=\"\",\"\",'1. Ordersheet'!F1484)","v":""},{"$f":"IF('1. Ordersheet'!G1484=\"\",\"\",'1. Ordersheet'!G1484)","v":""},{"$f":"IF('1. Ordersheet'!H1484=\"\",\"\",'1. Ordersheet'!H1484)","v":""},{"$f":"IF('1. Ordersheet'!I1484=\"\",\"\",'1. Ordersheet'!I1484)","v":""},{"$f":"IF('1. Ordersheet'!J1484=\"\",\"\",'1. Ordersheet'!J1484)","v":""},{"$f":"IF('1. Ordersheet'!K1484=\"\",\"\",'1. Ordersheet'!K1484)","v":""},{"$f":"IF('1. Ordersheet'!L1484=\"\",\"\",'1. Ordersheet'!L1484)","v":""},{"$f":"IF('1. Ordersheet'!M1484=\"\",\"\",'1. Ordersheet'!M1484)","v":""},{"$f":"IF('1. Ordersheet'!N1484=\"\",\"\",'1. Ordersheet'!N1484)","v":""},{"$f":"IF('1. Ordersheet'!O1484=\"\",\"\",'1. Ordersheet'!O1484)","v":{"$error":"#N/A"}},{"$f":"IF('1. Ordersheet'!P1484=\"\",\"\",'1. Ordersheet'!P1484)","v":{"$error":"#N/A"}},{"$f":"IF('1. Ordersheet'!Q1484=\"\",\"\",'1. Ordersheet'!Q1484)","v":""},{"$f":"IF('1. Ordersheet'!R1484=\"\",\"\",'1. Ordersheet'!R1484)","v":""},{"$f":"IF('1. Ordersheet'!S1484=\"\",\"\",'1. Ordersheet'!S1484)","v":""},{"$f":"IF('1. Ordersheet'!V1484=\"\",\"\",'1. Ordersheet'!V1484)","v":""},{"$f":"IF('1. Ordersheet'!W1484=\"\",\"\",'1. Ordersheet'!W1484)","v":""},{"$f":"IF('1. Ordersheet'!X1484=\"\",\"\",'1. Ordersheet'!X1484)","v":""},{"$f":"IF('1. Ordersheet'!Y1484=\"\",\"\",'1. Ordersheet'!Y1484)","v":""},{"$f":"IF('1. Ordersheet'!Z1484=\"\",\"\",'1. Ordersheet'!Z1484)","v":""},{"$f":"IF('1. Ordersheet'!AA1484=\"\",\"\",'1. Ordersheet'!AA1484)","v":""},null,{"$f":"IF('1. Ordersheet'!AS1484=\"\",\"\",'1. Ordersheet'!AS1484)","v":""},{"$f":"IF('1. Ordersheet'!AT1484=\"\",\"\",'1. Ordersheet'!AT1484)","v":""},null,null,null,null,null,null,null,{"$f":"IF('1. Ordersheet'!AX1484=\"\",\"\",'1. Ordersheet'!AX1484)","v":""},{"$f":"IF('1. Ordersheet'!AY1484=\"\",\"\",'1. Ordersheet'!AY1484)","v":""},{"$f":"IF('1. Ordersheet'!AZ1484=\"\",\"\",'1. Ordersheet'!AZ1484)","v":""},{"$f":"IF('1. Ordersheet'!BA1484=\"\",\"\",'1. Ordersheet'!BA1484)","v":""},{"$f":"IF('1. Ordersheet'!BC1484=\"\",\"\",'1. Ordersheet'!BC1484)","v":""},{"$f":"IF('1. Ordersheet'!BD1484=\"\",\"\",'1. Ordersheet'!BD1484)","v":""},{"$f":"IF('1. Ordersheet'!BE1484=\"\",\"\",'1. Ordersheet'!BE1484)","v":""},{"$f":"IF('1. Ordersheet'!BF1484=\"\",\"\",'1. Ordersheet'!BF1484)","v":""},{"$f":"IF('1. Ordersheet'!BG1484=\"\",\"\",'1. Ordersheet'!BG1484)","v":"ZWO"},{"$f":"IF('1. Ordersheet'!BH1484=\"\",\"\",'1. Ordersheet'!BH1484)","v":""},{"$f":"IF('1. Ordersheet'!BI1484=\"\",\"\",'1. Ordersheet'!BI1484)","v":""},{"$f":"IF('1. Ordersheet'!BJ1484=\"\",\"\",'1. Ordersheet'!BJ1484)","v":""},{"$f":"IF('1. Ordersheet'!BK1484=\"\",\"\",'1. Ordersheet'!BK1484)","v":""},{"$f":"IF('1. Ordersheet'!BL1484=\"\",\"\",'1. Ordersheet'!BL1484)","v":""}]
[{"$f":"IF('1. Ordersheet'!F1485=\"\",\"\",'1. Ordersheet'!F1485)","v":""},{"$f":"IF('1. Ordersheet'!G1485=\"\",\"\",'1. Ordersheet'!G1485)","v":""},{"$f":"IF('1. Ordersheet'!H1485=\"\",\"\",'1. Ordersheet'!H1485)","v":""},{"$f":"IF('1. Ordersheet'!I1485=\"\",\"\",'1. Ordersheet'!I1485)","v":""},{"$f":"IF('1. Ordersheet'!J1485=\"\",\"\",'1. Ordersheet'!J1485)","v":""},{"$f":"IF('1. Ordersheet'!K1485=\"\",\"\",'1. Ordersheet'!K1485)","v":""},{"$f":"IF('1. Ordersheet'!L1485=\"\",\"\",'1. Ordersheet'!L1485)","v":""},{"$f":"IF('1. Ordersheet'!M1485=\"\",\"\",'1. Ordersheet'!M1485)","v":""},{"$f":"IF('1. Ordersheet'!N1485=\"\",\"\",'1. Ordersheet'!N1485)","v":""},{"$f":"IF('1. Ordersheet'!O1485=\"\",\"\",'1. Ordersheet'!O1485)","v":{"$error":"#N/A"}},{"$f":"IF('1. Ordersheet'!P1485=\"\",\"\",'1. Ordersheet'!P1485)","v":{"$error":"#N/A"}},{"$f":"IF('1. Ordersheet'!Q1485=\"\",\"\",'1. Ordersheet'!Q1485)","v":""},{"$f":"IF('1. Ordersheet'!R1485=\"\",\"\",'1. Ordersheet'!R1485)","v":""},{"$f":"IF('1. Ordersheet'!S1485=\"\",\"\",'1. Ordersheet'!S1485)","v":""},{"$f":"IF('1. Ordersheet'!V1485=\"\",\"\",'1. Ordersheet'!V1485)","v":""},{"$f":"IF('1. Ordersheet'!W1485=\"\",\"\",'1. Ordersheet'!W1485)","v":""},{"$f":"IF('1. Ordersheet'!X1485=\"\",\"\",'1. Ordersheet'!X1485)","v":""},{"$f":"IF('1. Ordersheet'!Y1485=\"\",\"\",'1. Ordersheet'!Y1485)","v":""},{"$f":"IF('1. Ordersheet'!Z1485=\"\",\"\",'1. Ordersheet'!Z1485)","v":""},{"$f":"IF('1. Ordersheet'!AA1485=\"\",\"\",'1. Ordersheet'!AA1485)","v":""},null,{"$f":"IF('1. Ordersheet'!AS1485=\"\",\"\",'1. Ordersheet'!AS1485)","v":""},{"$f":"IF('1. Ordersheet'!AT1485=\"\",\"\",'1. Ordersheet'!AT1485)","v":""},null,null,null,null,null,null,null,{"$f":"IF('1. Ordersheet'!AX1485=\"\",\"\",'1. Ordersheet'!AX1485)","v":""},{"$f":"IF('1. Ordersheet'!AY1485=\"\",\"\",'1. Ordersheet'!AY1485)","v":""},{"$f":"IF('1. Ordersheet'!AZ1485=\"\",\"\",'1. Ordersheet'!AZ1485)","v":""},{"$f":"IF('1. Ordersheet'!BA1485=\"\",\"\",'1. Ordersheet'!BA1485)","v":""},{"$f":"IF('1. Ordersheet'!BC1485=\"\",\"\",'1. Ordersheet'!BC1485)","v":""},{"$f":"IF('1. Ordersheet'!BD1485=\"\",\"\",'1. Ordersheet'!BD1485)","v":""},{"$f":"IF('1. Ordersheet'!BE1485=\"\",\"\",'1. Ordersheet'!BE1485)","v":""},{"$f":"IF('1. Ordersheet'!BF1485=\"\",\"\",'1. Ordersheet'!BF1485)","v":""},{"$f":"IF('1. Ordersheet'!BG1485=\"\",\"\",'1. Ordersheet'!BG1485)","v":"ZWO"},{"$f":"IF('1. Ordersheet'!BH1485=\"\",\"\",'1. Ordersheet'!BH1485)","v":""},{"$f":"IF('1. Ordersheet'!BI1485=\"\",\"\",'1. Ordersheet'!BI1485)","v":""},{"$f":"IF('1. Ordersheet'!BJ1485=\"\",\"\",'1. Ordersheet'!BJ1485)","v":""},{"$f":"IF('1. Ordersheet'!BK1485=\"\",\"\",'1. Ordersheet'!BK1485)","v":""},{"$f":"IF('1. Ordersheet'!BL1485=\"\",\"\",'1. Ordersheet'!BL1485)","v":""}]
[{"$f":"IF('1. Ordersheet'!F1486=\"\",\"\",'1. Ordersheet'!F1486)","v":""},{"$f":"IF('1. Ordersheet'!G1486=\"\",\"\",'1. Ordersheet'!G1486)","v":""},{"$f":"IF('1. Ordersheet'!H1486=\"\",\"\",'1. Ordersheet'!H1486)","v":""},{"$f":"IF('1. Ordersheet'!I1486=\"\",\"\",'1. Ordersheet'!I1486)","v":""},{"$f":"IF('1. Ordersheet'!J1486=\"\",\"\",'1. Ordersheet'!J1486)","v":""},{"$f":"IF('1. Ordersheet'!K1486=\"\",\"\",'1. Ordersheet'!K1486)","v":""},{"$f":"IF('1. Ordersheet'!L1486=\"\",\"\",'1. Ordersheet'!L1486)","v":""},{"$f":"IF('1. Ordersheet'!M1486=\"\",\"\",'1. Ordersheet'!M1486)","v":""},{"$f":"IF('1. Ordersheet'!N1486=\"\",\"\",'1. Ordersheet'!N1486)","v":""},{"$f":"IF('1. Ordersheet'!O1486=\"\",\"\",'1. Ordersheet'!O1486)","v":{"$error":"#N/A"}},{"$f":"IF('1. Ordersheet'!P1486=\"\",\"\",'1. Ordersheet'!P1486)","v":{"$error":"#N/A"}},{"$f":"IF('1. Ordersheet'!Q1486=\"\",\"\",'1. Ordersheet'!Q1486)","v":""},{"$f":"IF('1. Ordersheet'!R1486=\"\",\"\",'1. Ordersheet'!R1486)","v":""},{"$f":"IF('1. Ordersheet'!S1486=\"\",\"\",'1. Ordersheet'!S1486)","v":""},{"$f":"IF('1. Ordersheet'!V1486=\"\",\"\",'1. Ordersheet'!V1486)","v":""},{"$f":"IF('1. Ordersheet'!W1486=\"\",\"\",'1. Ordersheet'!W1486)","v":""},{"$f":"IF('1. Ordersheet'!X1486=\"\",\"\",'1. Ordersheet'!X1486)","v":""},{"$f":"IF('1. Ordersheet'!Y1486=\"\",\"\",'1. Ordersheet'!Y1486)","v":""},{"$f":"IF('1. Ordersheet'!Z1486=\"\",\"\",'1. Ordersheet'!Z1486)","v":""},{"$f":"IF('1. Ordersheet'!AA1486=\"\",\"\",'1. Ordersheet'!AA1486)","v":""},null,{"$f":"IF('1. Ordersheet'!AS1486=\"\",\"\",'1. Ordersheet'!AS1486)","v":""},{"$f":"IF('1. Ordersheet'!AT1486=\"\",\"\",'1. Ordersheet'!AT1486)","v":""},null,null,null,null,null,null,null,{"$f":"IF('1. Ordersheet'!AX1486=\"\",\"\",'1. Ordersheet'!AX1486)","v":""},{"$f":"IF('1. Ordersheet'!AY1486=\"\",\"\",'1. Ordersheet'!AY1486)","v":""},{"$f":"IF('1. Ordersheet'!AZ1486=\"\",\"\",'1. Ordersheet'!AZ1486)","v":""},{"$f":"IF('1. Ordersheet'!BA1486=\"\",\"\",'1. Ordersheet'!BA1486)","v":""},{"$f":"IF('1. Ordersheet'!BC1486=\"\",\"\",'1. Ordersheet'!BC1486)","v":""},{"$f":"IF('1. Ordersheet'!BD1486=\"\",\"\",'1. Ordersheet'!BD1486)","v":""},{"$f":"IF('1. Ordersheet'!BE1486=\"\",\"\",'1. Ordersheet'!BE1486)","v":""},{"$f":"IF('1. Ordersheet'!BF1486=\"\",\"\",'1. Ordersheet'!BF1486)","v":""},{"$f":"IF('1. Ordersheet'!BG1486=\"\",\"\",'1. Ordersheet'!BG1486)","v":"ZWO"},{"$f":"IF('1. Ordersheet'!BH1486=\"\",\"\",'1. Ordersheet'!BH1486)","v":""},{"$f":"IF('1. Ordersheet'!BI1486=\"\",\"\",'1. Ordersheet'!BI1486)","v":""},{"$f":"IF('1. Ordersheet'!BJ1486=\"\",\"\",'1. Ordersheet'!BJ1486)","v":""},{"$f":"IF('1. Ordersheet'!BK1486=\"\",\"\",'1. Ordersheet'!BK1486)","v":""},{"$f":"IF('1. Ordersheet'!BL1486=\"\",\"\",'1. Ordersheet'!BL1486)","v":""}]
[{"$f":"IF('1. Ordersheet'!F1487=\"\",\"\",'1. Ordersheet'!F1487)","v":""},{"$f":"IF('1. Ordersheet'!G1487=\"\",\"\",'1. Ordersheet'!G1487)","v":""},{"$f":"IF('1. Ordersheet'!H1487=\"\",\"\",'1. Ordersheet'!H1487)","v":""},{"$f":"IF('1. Ordersheet'!I1487=\"\",\"\",'1. Ordersheet'!I1487)","v":""},{"$f":"IF('1. Ordersheet'!J1487=\"\",\"\",'1. Ordersheet'!J1487)","v":""},{"$f":"IF('1. Ordersheet'!K1487=\"\",\"\",'1. Ordersheet'!K1487)","v":""},{"$f":"IF('1. Ordersheet'!L1487=\"\",\"\",'1. Ordersheet'!L1487)","v":""},{"$f":"IF('1. Ordersheet'!M1487=\"\",\"\",'1. Ordersheet'!M1487)","v":""},{"$f":"IF('1. Ordersheet'!N1487=\"\",\"\",'1. Ordersheet'!N1487)","v":""},{"$f":"IF('1. Ordersheet'!O1487=\"\",\"\",'1. Ordersheet'!O1487)","v":{"$error":"#N/A"}},{"$f":"IF('1. Ordersheet'!P1487=\"\",\"\",'1. Ordersheet'!P1487)","v":{"$error":"#N/A"}},{"$f":"IF('1. Ordersheet'!Q1487=\"\",\"\",'1. Ordersheet'!Q1487)","v":""},{"$f":"IF('1. Ordersheet'!R1487=\"\",\"\",'1. Ordersheet'!R1487)","v":""},{"$f":"IF('1. Ordersheet'!S1487=\"\",\"\",'1. Ordersheet'!S1487)","v":""},{"$f":"IF('1. Ordersheet'!V1487=\"\",\"\",'1. Ordersheet'!V1487)","v":""},{"$f":"IF('1. Ordersheet'!W1487=\"\",\"\",'1. Ordersheet'!W1487)","v":""},{"$f":"IF('1. Ordersheet'!X1487=\"\",\"\",'1. Ordersheet'!X1487)","v":""},{"$f":"IF('1. Ordersheet'!Y1487=\"\",\"\",'1. Ordersheet'!Y1487)","v":""},{"$f":"IF('1. Ordersheet'!Z1487=\"\",\"\",'1. Ordersheet'!Z1487)","v":""},{"$f":"IF('1. Ordersheet'!AA1487=\"\",\"\",'1. Ordersheet'!AA1487)","v":""},null,{"$f":"IF('1. Ordersheet'!AS1487=\"\",\"\",'1. Ordersheet'!AS1487)","v":""},{"$f":"IF('1. Ordersheet'!AT1487=\"\",\"\",'1. Ordersheet'!AT1487)","v":""},null,null,null,null,null,null,null,{"$f":"IF('1. Ordersheet'!AX1487=\"\",\"\",'1. Ordersheet'!AX1487)","v":""},{"$f":"IF('1. Ordersheet'!AY1487=\"\",\"\",'1. Ordersheet'!AY1487)","v":""},{"$f":"IF('1. Ordersheet'!AZ1487=\"\",\"\",'1. Ordersheet'!AZ1487)","v":""},{"$f":"IF('1. Ordersheet'!BA1487=\"\",\"\",'1. Ordersheet'!BA1487)","v":""},{"$f":"IF('1. Ordersheet'!BC1487=\"\",\"\",'1. Ordersheet'!BC1487)","v":""},{"$f":"IF('1. Ordersheet'!BD1487=\"\",\"\",'1. Ordersheet'!BD1487)","v":""},{"$f":"IF('1. Ordersheet'!BE1487=\"\",\"\",'1. Ordersheet'!BE1487)","v":""},{"$f":"IF('1. Ordersheet'!BF1487=\"\",\"\",'1. Ordersheet'!BF1487)","v":""},{"$f":"IF('1. Ordersheet'!BG1487=\"\",\"\",'1. Ordersheet'!BG1487)","v":"ZWO"},{"$f":"IF('1. Ordersheet'!BH1487=\"\",\"\",'1. Ordersheet'!BH1487)","v":""},{"$f":"IF('1. Ordersheet'!BI1487=\"\",\"\",'1. Ordersheet'!BI1487)","v":""},{"$f":"IF('1. Ordersheet'!BJ1487=\"\",\"\",'1. Ordersheet'!BJ1487)","v":""},{"$f":"IF('1. Ordersheet'!BK1487=\"\",\"\",'1. Ordersheet'!BK1487)","v":""},{"$f":"IF('1. Ordersheet'!BL1487=\"\",\"\",'1. Ordersheet'!BL1487)","v":""}]
[{"$f":"IF('1. Ordersheet'!F1488=\"\",\"\",'1. Ordersheet'!F1488)","v":""},{"$f":"IF('1. Ordersheet'!G1488=\"\",\"\",'1. Ordersheet'!G1488)","v":""},{"$f":"IF('1. Ordersheet'!H1488=\"\",\"\",'1. Ordersheet'!H1488)","v":""},{"$f":"IF('1. Ordersheet'!I1488=\"\",\"\",'1. Ordersheet'!I1488)","v":""},{"$f":"IF('1. Ordersheet'!J1488=\"\",\"\",'1. Ordersheet'!J1488)","v":""},{"$f":"IF('1. Ordersheet'!K1488=\"\",\"\",'1. Ordersheet'!K1488)","v":""},{"$f":"IF('1. Ordersheet'!L1488=\"\",\"\",'1. Ordersheet'!L1488)","v":""},{"$f":"IF('1. Ordersheet'!M1488=\"\",\"\",'1. Ordersheet'!M1488)","v":""},{"$f":"IF('1. Ordersheet'!N1488=\"\",\"\",'1. Ordersheet'!N1488)","v":""},{"$f":"IF('1. Ordersheet'!O1488=\"\",\"\",'1. Ordersheet'!O1488)","v":{"$error":"#N/A"}},{"$f":"IF('1. Ordersheet'!P1488=\"\",\"\",'1. Ordersheet'!P1488)","v":{"$error":"#N/A"}},{"$f":"IF('1. Ordersheet'!Q1488=\"\",\"\",'1. Ordersheet'!Q1488)","v":""},{"$f":"IF('1. Ordersheet'!R1488=\"\",\"\",'1. Ordersheet'!R1488)","v":""},{"$f":"IF('1. Ordersheet'!S1488=\"\",\"\",'1. Ordersheet'!S1488)","v":""},{"$f":"IF('1. Ordersheet'!V1488=\"\",\"\",'1. Ordersheet'!V1488)","v":""},{"$f":"IF('1. Ordersheet'!W1488=\"\",\"\",'1. Ordersheet'!W1488)","v":""},{"$f":"IF('1. Ordersheet'!X1488=\"\",\"\",'1. Ordersheet'!X1488)","v":""},{"$f":"IF('1. Ordersheet'!Y1488=\"\",\"\",'1. Ordersheet'!Y1488)","v":""},{"$f":"IF('1. Ordersheet'!Z1488=\"\",\"\",'1. Ordersheet'!Z1488)","v":""},{"$f":"IF('1. Ordersheet'!AA1488=\"\",\"\",'1. Ordersheet'!AA1488)","v":""},null,{"$f":"IF('1. Ordersheet'!AS1488=\"\",\"\",'1. Ordersheet'!AS1488)","v":""},{"$f":"IF('1. Ordersheet'!AT1488=\"\",\"\",'1. Ordersheet'!AT1488)","v":""},null,null,null,null,null,null,null,{"$f":"IF('1. Ordersheet'!AX1488=\"\",\"\",'1. Ordersheet'!AX1488)","v":""},{"$f":"IF('1. Ordersheet'!AY1488=\"\",\"\",'1. Ordersheet'!AY1488)","v":""},{"$f":"IF('1. Ordersheet'!AZ1488=\"\",\"\",'1. Ordersheet'!AZ1488)","v":""},{"$f":"IF('1. Ordersheet'!BA1488=\"\",\"\",'1. Ordersheet'!BA1488)","v":""},{"$f":"IF('1. Ordersheet'!BC1488=\"\",\"\",'1. Ordersheet'!BC1488)","v":""},{"$f":"IF('1. Ordersheet'!BD1488=\"\",\"\",'1. Ordersheet'!BD1488)","v":""},{"$f":"IF('1. Ordersheet'!BE1488=\"\",\"\",'1. Ordersheet'!BE1488)","v":""},{"$f":"IF('1. Ordersheet'!BF1488=\"\",\"\",'1. Ordersheet'!BF1488)","v":""},{"$f":"IF('1. Ordersheet'!BG1488=\"\",\"\",'1. Ordersheet'!BG1488)","v":"ZWO"},{"$f":"IF('1. Ordersheet'!BH1488=\"\",\"\",'1. Ordersheet'!BH1488)","v":""},{"$f":"IF('1. Ordersheet'!BI1488=\"\",\"\",'1. Ordersheet'!BI1488)","v":""},{"$f":"IF('1. Ordersheet'!BJ1488=\"\",\"\",'1. Ordersheet'!BJ1488)","v":""},{"$f":"IF('1. Ordersheet'!BK1488=\"\",\"\",'1. Ordersheet'!BK1488)","v":""},{"$f":"IF('1. Ordersheet'!BL1488=\"\",\"\",'1. Ordersheet'!BL1488)","v":""}]
[{"$f":"IF('1. Ordersheet'!F1489=\"\",\"\",'1. Ordersheet'!F1489)","v":""},{"$f":"IF('1. Ordersheet'!G1489=\"\",\"\",'1. Ordersheet'!G1489)","v":""},{"$f":"IF('1. Ordersheet'!H1489=\"\",\"\",'1. Ordersheet'!H1489)","v":""},{"$f":"IF('1. Ordersheet'!I1489=\"\",\"\",'1. Ordersheet'!I1489)","v":""},{"$f":"IF('1. Ordersheet'!J1489=\"\",\"\",'1. Ordersheet'!J1489)","v":""},{"$f":"IF('1. Ordersheet'!K1489=\"\",\"\",'1. Ordersheet'!K1489)","v":""},{"$f":"IF('1. Ordersheet'!L1489=\"\",\"\",'1. Ordersheet'!L1489)","v":""},{"$f":"IF('1. Ordersheet'!M1489=\"\",\"\",'1. Ordersheet'!M1489)","v":""},{"$f":"IF('1. Ordersheet'!N1489=\"\",\"\",'1. Ordersheet'!N1489)","v":""},{"$f":"IF('1. Ordersheet'!O1489=\"\",\"\",'1. Ordersheet'!O1489)","v":{"$error":"#N/A"}},{"$f":"IF('1. Ordersheet'!P1489=\"\",\"\",'1. Ordersheet'!P1489)","v":{"$error":"#N/A"}},{"$f":"IF('1. Ordersheet'!Q1489=\"\",\"\",'1. Ordersheet'!Q1489)","v":""},{"$f":"IF('1. Ordersheet'!R1489=\"\",\"\",'1. Ordersheet'!R1489)","v":""},{"$f":"IF('1. Ordersheet'!S1489=\"\",\"\",'1. Ordersheet'!S1489)","v":""},{"$f":"IF('1. Ordersheet'!V1489=\"\",\"\",'1. Ordersheet'!V1489)","v":""},{"$f":"IF('1. Ordersheet'!W1489=\"\",\"\",'1. Ordersheet'!W1489)","v":""},{"$f":"IF('1. Ordersheet'!X1489=\"\",\"\",'1. Ordersheet'!X1489)","v":""},{"$f":"IF('1. Ordersheet'!Y1489=\"\",\"\",'1. Ordersheet'!Y1489)","v":""},{"$f":"IF('1. Ordersheet'!Z1489=\"\",\"\",'1. Ordersheet'!Z1489)","v":""},{"$f":"IF('1. Ordersheet'!AA1489=\"\",\"\",'1. Ordersheet'!AA1489)","v":""},null,{"$f":"IF('1. Ordersheet'!AS1489=\"\",\"\",'1. Ordersheet'!AS1489)","v":""},{"$f":"IF('1. Ordersheet'!AT1489=\"\",\"\",'1. Ordersheet'!AT1489)","v":""},null,null,null,null,null,null,null,{"$f":"IF('1. Ordersheet'!AX1489=\"\",\"\",'1. Ordersheet'!AX1489)","v":""},{"$f":"IF('1. Ordersheet'!AY1489=\"\",\"\",'1. Ordersheet'!AY1489)","v":""},{"$f":"IF('1. Ordersheet'!AZ1489=\"\",\"\",'1. Ordersheet'!AZ1489)","v":""},{"$f":"IF('1. Ordersheet'!BA1489=\"\",\"\",'1. Ordersheet'!BA1489)","v":""},{"$f":"IF('1. Ordersheet'!BC1489=\"\",\"\",'1. Ordersheet'!BC1489)","v":""},{"$f":"IF('1. Ordersheet'!BD1489=\"\",\"\",'1. Ordersheet'!BD1489)","v":""},{"$f":"IF('1. Ordersheet'!BE1489=\"\",\"\",'1. Ordersheet'!BE1489)","v":""},{"$f":"IF('1. Ordersheet'!BF1489=\"\",\"\",'1. Ordersheet'!BF1489)","v":""},{"$f":"IF('1. Ordersheet'!BG1489=\"\",\"\",'1. Ordersheet'!BG1489)","v":"ZWO"},{"$f":"IF('1. Ordersheet'!BH1489=\"\",\"\",'1. Ordersheet'!BH1489)","v":""},{"$f":"IF('1. Ordersheet'!BI1489=\"\",\"\",'1. Ordersheet'!BI1489)","v":""},{"$f":"IF('1. Ordersheet'!BJ1489=\"\",\"\",'1. Ordersheet'!BJ1489)","v":""},{"$f":"IF('1. Ordersheet'!BK1489=\"\",\"\",'1. Ordersheet'!BK1489)","v":""},{"$f":"IF('1. Ordersheet'!BL1489=\"\",\"\",'1. Ordersheet'!BL1489)","v":""}]
[{"$f":"IF('1. Ordersheet'!F1490=\"\",\"\",'1. Ordersheet'!F1490)","v":""},{"$f":"IF('1. Ordersheet'!G1490=\"\",\"\",'1. Ordersheet'!G1490)","v":""},{"$f":"IF('1. Ordersheet'!H1490=\"\",\"\",'1. Ordersheet'!H1490)","v":""},{"$f":"IF('1. Ordersheet'!I1490=\"\",\"\",'1. Ordersheet'!I1490)","v":""},{"$f":"IF('1. Ordersheet'!J1490=\"\",\"\",'1. Ordersheet'!J1490)","v":""},{"$f":"IF('1. Ordersheet'!K1490=\"\",\"\",'1. Ordersheet'!K1490)","v":""},{"$f":"IF('1. Ordersheet'!L1490=\"\",\"\",'1. Ordersheet'!L1490)","v":""},{"$f":"IF('1. Ordersheet'!M1490=\"\",\"\",'1. Ordersheet'!M1490)","v":""},{"$f":"IF('1. Ordersheet'!N1490=\"\",\"\",'1. Ordersheet'!N1490)","v":""},{"$f":"IF('1. Ordersheet'!O1490=\"\",\"\",'1. Ordersheet'!O1490)","v":{"$error":"#N/A"}},{"$f":"IF('1. Ordersheet'!P1490=\"\",\"\",'1. Ordersheet'!P1490)","v":{"$error":"#N/A"}},{"$f":"IF('1. Ordersheet'!Q1490=\"\",\"\",'1. Ordersheet'!Q1490)","v":""},{"$f":"IF('1. Ordersheet'!R1490=\"\",\"\",'1. Ordersheet'!R1490)","v":""},{"$f":"IF('1. Ordersheet'!S1490=\"\",\"\",'1. Ordersheet'!S1490)","v":""},{"$f":"IF('1. Ordersheet'!V1490=\"\",\"\",'1. Ordersheet'!V1490)","v":""},{"$f":"IF('1. Ordersheet'!W1490=\"\",\"\",'1. Ordersheet'!W1490)","v":""},{"$f":"IF('1. Ordersheet'!X1490=\"\",\"\",'1. Ordersheet'!X1490)","v":""},{"$f":"IF('1. Ordersheet'!Y1490=\"\",\"\",'1. Ordersheet'!Y1490)","v":""},{"$f":"IF('1. Ordersheet'!Z1490=\"\",\"\",'1. Ordersheet'!Z1490)","v":""},{"$f":"IF('1. Ordersheet'!AA1490=\"\",\"\",'1. Ordersheet'!AA1490)","v":""},null,{"$f":"IF('1. Ordersheet'!AS1490=\"\",\"\",'1. Ordersheet'!AS1490)","v":""},{"$f":"IF('1. Ordersheet'!AT1490=\"\",\"\",'1. Ordersheet'!AT1490)","v":""},null,null,null,null,null,null,null,{"$f":"IF('1. Ordersheet'!AX1490=\"\",\"\",'1. Ordersheet'!AX1490)","v":""},{"$f":"IF('1. Ordersheet'!AY1490=\"\",\"\",'1. Ordersheet'!AY1490)","v":""},{"$f":"IF('1. Ordersheet'!AZ1490=\"\",\"\",'1. Ordersheet'!AZ1490)","v":""},{"$f":"IF('1. Ordersheet'!BA1490=\"\",\"\",'1. Ordersheet'!BA1490)","v":""},{"$f":"IF('1. Ordersheet'!BC1490=\"\",\"\",'1. Ordersheet'!BC1490)","v":""},{"$f":"IF('1. Ordersheet'!BD1490=\"\",\"\",'1. Ordersheet'!BD1490)","v":""},{"$f":"IF('1. Ordersheet'!BE1490=\"\",\"\",'1. Ordersheet'!BE1490)","v":""},{"$f":"IF('1. Ordersheet'!BF1490=\"\",\"\",'1. Ordersheet'!BF1490)","v":""},{"$f":"IF('1. Ordersheet'!BG1490=\"\",\"\",'1. Ordersheet'!BG1490)","v":"ZWO"},{"$f":"IF('1. Ordersheet'!BH1490=\"\",\"\",'1. Ordersheet'!BH1490)","v":""},{"$f":"IF('1. Ordersheet'!BI1490=\"\",\"\",'1. Ordersheet'!BI1490)","v":""},{"$f":"IF('1. Ordersheet'!BJ1490=\"\",\"\",'1. Ordersheet'!BJ1490)","v":""},{"$f":"IF('1. Ordersheet'!BK1490=\"\",\"\",'1. Ordersheet'!BK1490)","v":""},{"$f":"IF('1. Ordersheet'!BL1490=\"\",\"\",'1. Ordersheet'!BL1490)","v":""}]
[{"$f":"IF('1. Ordersheet'!F1491=\"\",\"\",'1. Ordersheet'!F1491)","v":""},{"$f":"IF('1. Ordersheet'!G1491=\"\",\"\",'1. Ordersheet'!G1491)","v":""},{"$f":"IF('1. Ordersheet'!H1491=\"\",\"\",'1. Ordersheet'!H1491)","v":""},{"$f":"IF('1. Ordersheet'!I1491=\"\",\"\",'1. Ordersheet'!I1491)","v":""},{"$f":"IF('1. Ordersheet'!J1491=\"\",\"\",'1. Ordersheet'!J1491)","v":""},{"$f":"IF('1. Ordersheet'!K1491=\"\",\"\",'1. Ordersheet'!K1491)","v":""},{"$f":"IF('1. Ordersheet'!L1491=\"\",\"\",'1. Ordersheet'!L1491)","v":""},{"$f":"IF('1. Ordersheet'!M1491=\"\",\"\",'1. Ordersheet'!M1491)","v":""},{"$f":"IF('1. Ordersheet'!N1491=\"\",\"\",'1. Ordersheet'!N1491)","v":""},{"$f":"IF('1. Ordersheet'!O1491=\"\",\"\",'1. Ordersheet'!O1491)","v":{"$error":"#N/A"}},{"$f":"IF('1. Ordersheet'!P1491=\"\",\"\",'1. Ordersheet'!P1491)","v":{"$error":"#N/A"}},{"$f":"IF('1. Ordersheet'!Q1491=\"\",\"\",'1. Ordersheet'!Q1491)","v":""},{"$f":"IF('1. Ordersheet'!R1491=\"\",\"\",'1. Ordersheet'!R1491)","v":""},{"$f":"IF('1. Ordersheet'!S1491=\"\",\"\",'1. Ordersheet'!S1491)","v":""},{"$f":"IF('1. Ordersheet'!V1491=\"\",\"\",'1. Ordersheet'!V1491)","v":""},{"$f":"IF('1. Ordersheet'!W1491=\"\",\"\",'1. Ordersheet'!W1491)","v":""},{"$f":"IF('1. Ordersheet'!X1491=\"\",\"\",'1. Ordersheet'!X1491)","v":""},{"$f":"IF('1. Ordersheet'!Y1491=\"\",\"\",'1. Ordersheet'!Y1491)","v":""},{"$f":"IF('1. Ordersheet'!Z1491=\"\",\"\",'1. Ordersheet'!Z1491)","v":""},{"$f":"IF('1. Ordersheet'!AA1491=\"\",\"\",'1. Ordersheet'!AA1491)","v":""},null,{"$f":"IF('1. Ordersheet'!AS1491=\"\",\"\",'1. Ordersheet'!AS1491)","v":""},{"$f":"IF('1. Ordersheet'!AT1491=\"\",\"\",'1. Ordersheet'!AT1491)","v":""},null,null,null,null,null,null,null,{"$f":"IF('1. Ordersheet'!AX1491=\"\",\"\",'1. Ordersheet'!AX1491)","v":""},{"$f":"IF('1. Ordersheet'!AY1491=\"\",\"\",'1. Ordersheet'!AY1491)","v":""},{"$f":"IF('1. Ordersheet'!AZ1491=\"\",\"\",'1. Ordersheet'!AZ1491)","v":""},{"$f":"IF('1. Ordersheet'!BA1491=\"\",\"\",'1. Ordersheet'!BA1491)","v":""},{"$f":"IF('1. Ordersheet'!BC1491=\"\",\"\",'1. Ordersheet'!BC1491)","v":""},{"$f":"IF('1. Ordersheet'!BD1491=\"\",\"\",'1. Ordersheet'!BD1491)","v":""},{"$f":"IF('1. Ordersheet'!BE1491=\"\",\"\",'1. Ordersheet'!BE1491)","v":""},{"$f":"IF('1. Ordersheet'!BF1491=\"\",\"\",'1. Ordersheet'!BF1491)","v":""},{"$f":"IF('1. Ordersheet'!BG1491=\"\",\"\",'1. Ordersheet'!BG1491)","v":"ZWO"},{"$f":"IF('1. Ordersheet'!BH1491=\"\",\"\",'1. Ordersheet'!BH1491)","v":""},{"$f":"IF('1. Ordersheet'!BI1491=\"\",\"\",'1. Ordersheet'!BI1491)","v":""},{"$f":"IF('1. Ordersheet'!BJ1491=\"\",\"\",'1. Ordersheet'!BJ1491)","v":""},{"$f":"IF('1. Ordersheet'!BK1491=\"\",\"\",'1. Ordersheet'!BK1491)","v":""},{"$f":"IF('1. Ordersheet'!BL1491=\"\",\"\",'1. Ordersheet'!BL1491)","v":""}]
[{"$f":"IF('1. Ordersheet'!F1492=\"\",\"\",'1. Ordersheet'!F1492)","v":""},{"$f":"IF('1. Ordersheet'!G1492=\"\",\"\",'1. Ordersheet'!G1492)","v":""},{"$f":"IF('1. Ordersheet'!H1492=\"\",\"\",'1. Ordersheet'!H1492)","v":""},{"$f":"IF('1. Ordersheet'!I1492=\"\",\"\",'1. Ordersheet'!I1492)","v":""},{"$f":"IF('1. Ordersheet'!J1492=\"\",\"\",'1. Ordersheet'!J1492)","v":""},{"$f":"IF('1. Ordersheet'!K1492=\"\",\"\",'1. Ordersheet'!K1492)","v":""},{"$f":"IF('1. Ordersheet'!L1492=\"\",\"\",'1. Ordersheet'!L1492)","v":""},{"$f":"IF('1. Ordersheet'!M1492=\"\",\"\",'1. Ordersheet'!M1492)","v":""},{"$f":"IF('1. Ordersheet'!N1492=\"\",\"\",'1. Ordersheet'!N1492)","v":""},{"$f":"IF('1. Ordersheet'!O1492=\"\",\"\",'1. Ordersheet'!O1492)","v":{"$error":"#N/A"}},{"$f":"IF('1. Ordersheet'!P1492=\"\",\"\",'1. Ordersheet'!P1492)","v":{"$error":"#N/A"}},{"$f":"IF('1. Ordersheet'!Q1492=\"\",\"\",'1. Ordersheet'!Q1492)","v":""},{"$f":"IF('1. Ordersheet'!R1492=\"\",\"\",'1. Ordersheet'!R1492)","v":""},{"$f":"IF('1. Ordersheet'!S1492=\"\",\"\",'1. Ordersheet'!S1492)","v":""},{"$f":"IF('1. Ordersheet'!V1492=\"\",\"\",'1. Ordersheet'!V1492)","v":""},{"$f":"IF('1. Ordersheet'!W1492=\"\",\"\",'1. Ordersheet'!W1492)","v":""},{"$f":"IF('1. Ordersheet'!X1492=\"\",\"\",'1. Ordersheet'!X1492)","v":""},{"$f":"IF('1. Ordersheet'!Y1492=\"\",\"\",'1. Ordersheet'!Y1492)","v":""},{"$f":"IF('1. Ordersheet'!Z1492=\"\",\"\",'1. Ordersheet'!Z1492)","v":""},{"$f":"IF('1. Ordersheet'!AA1492=\"\",\"\",'1. Ordersheet'!AA1492)","v":""},null,{"$f":"IF('1. Ordersheet'!AS1492=\"\",\"\",'1. Ordersheet'!AS1492)","v":""},{"$f":"IF('1. Ordersheet'!AT1492=\"\",\"\",'1. Ordersheet'!AT1492)","v":""},null,null,null,null,null,null,null,{"$f":"IF('1. Ordersheet'!AX1492=\"\",\"\",'1. Ordersheet'!AX1492)","v":""},{"$f":"IF('1. Ordersheet'!AY1492=\"\",\"\",'1. Ordersheet'!AY1492)","v":""},{"$f":"IF('1. Ordersheet'!AZ1492=\"\",\"\",'1. Ordersheet'!AZ1492)","v":""},{"$f":"IF('1. Ordersheet'!BA1492=\"\",\"\",'1. Ordersheet'!BA1492)","v":""},{"$f":"IF('1. Ordersheet'!BC1492=\"\",\"\",'1. Ordersheet'!BC1492)","v":""},{"$f":"IF('1. Ordersheet'!BD1492=\"\",\"\",'1. Ordersheet'!BD1492)","v":""},{"$f":"IF('1. Ordersheet'!BE1492=\"\",\"\",'1. Ordersheet'!BE1492)","v":""},{"$f":"IF('1. Ordersheet'!BF1492=\"\",\"\",'1. Ordersheet'!BF1492)","v":""},{"$f":"IF('1. Ordersheet'!BG1492=\"\",\"\",'1. Ordersheet'!BG1492)","v":"ZWO"},{"$f":"IF('1. Ordersheet'!BH1492=\"\",\"\",'1. Ordersheet'!BH1492)","v":""},{"$f":"IF('1. Ordersheet'!BI1492=\"\",\"\",'1. Ordersheet'!BI1492)","v":""},{"$f":"IF('1. Ordersheet'!BJ1492=\"\",\"\",'1. Ordersheet'!BJ1492)","v":""},{"$f":"IF('1. Ordersheet'!BK1492=\"\",\"\",'1. Ordersheet'!BK1492)","v":""},{"$f":"IF('1. Ordersheet'!BL1492=\"\",\"\",'1. Ordersheet'!BL1492)","v":""}]
[{"$f":"IF('1. Ordersheet'!F1493=\"\",\"\",'1. Ordersheet'!F1493)","v":""},{"$f":"IF('1. Ordersheet'!G1493=\"\",\"\",'1. Ordersheet'!G1493)","v":""},{"$f":"IF('1. Ordersheet'!H1493=\"\",\"\",'1. Ordersheet'!H1493)","v":""},{"$f":"IF('1. Ordersheet'!I1493=\"\",\"\",'1. Ordersheet'!I1493)","v":""},{"$f":"IF('1. Ordersheet'!J1493=\"\",\"\",'1. Ordersheet'!J1493)","v":""},{"$f":"IF('1. Ordersheet'!K1493=\"\",\"\",'1. Ordersheet'!K1493)","v":""},{"$f":"IF('1. Ordersheet'!L1493=\"\",\"\",'1. Ordersheet'!L1493)","v":""},{"$f":"IF('1. Ordersheet'!M1493=\"\",\"\",'1. Ordersheet'!M1493)","v":""},{"$f":"IF('1. Ordersheet'!N1493=\"\",\"\",'1. Ordersheet'!N1493)","v":""},{"$f":"IF('1. Ordersheet'!O1493=\"\",\"\",'1. Ordersheet'!O1493)","v":{"$error":"#N/A"}},{"$f":"IF('1. Ordersheet'!P1493=\"\",\"\",'1. Ordersheet'!P1493)","v":{"$error":"#N/A"}},{"$f":"IF('1. Ordersheet'!Q1493=\"\",\"\",'1. Ordersheet'!Q1493)","v":""},{"$f":"IF('1. Ordersheet'!R1493=\"\",\"\",'1. Ordersheet'!R1493)","v":""},{"$f":"IF('1. Ordersheet'!S1493=\"\",\"\",'1. Ordersheet'!S1493)","v":""},{"$f":"IF('1. Ordersheet'!V1493=\"\",\"\",'1. Ordersheet'!V1493)","v":""},{"$f":"IF('1. Ordersheet'!W1493=\"\",\"\",'1. Ordersheet'!W1493)","v":""},{"$f":"IF('1. Ordersheet'!X1493=\"\",\"\",'1. Ordersheet'!X1493)","v":""},{"$f":"IF('1. Ordersheet'!Y1493=\"\",\"\",'1. Ordersheet'!Y1493)","v":""},{"$f":"IF('1. Ordersheet'!Z1493=\"\",\"\",'1. Ordersheet'!Z1493)","v":""},{"$f":"IF('1. Ordersheet'!AA1493=\"\",\"\",'1. Ordersheet'!AA1493)","v":""},null,{"$f":"IF('1. Ordersheet'!AS1493=\"\",\"\",'1. Ordersheet'!AS1493)","v":""},{"$f":"IF('1. Ordersheet'!AT1493=\"\",\"\",'1. Ordersheet'!AT1493)","v":""},null,null,null,null,null,null,null,{"$f":"IF('1. Ordersheet'!AX1493=\"\",\"\",'1. Ordersheet'!AX1493)","v":""},{"$f":"IF('1. Ordersheet'!AY1493=\"\",\"\",'1. Ordersheet'!AY1493)","v":""},{"$f":"IF('1. Ordersheet'!AZ1493=\"\",\"\",'1. Ordersheet'!AZ1493)","v":""},{"$f":"IF('1. Ordersheet'!BA1493=\"\",\"\",'1. Ordersheet'!BA1493)","v":""},{"$f":"IF('1. Ordersheet'!BC1493=\"\",\"\",'1. Ordersheet'!BC1493)","v":""},{"$f":"IF('1. Ordersheet'!BD1493=\"\",\"\",'1. Ordersheet'!BD1493)","v":""},{"$f":"IF('1. Ordersheet'!BE1493=\"\",\"\",'1. Ordersheet'!BE1493)","v":""},{"$f":"IF('1. Ordersheet'!BF1493=\"\",\"\",'1. Ordersheet'!BF1493)","v":""},{"$f":"IF('1. Ordersheet'!BG1493=\"\",\"\",'1. Ordersheet'!BG1493)","v":"ZWO"},{"$f":"IF('1. Ordersheet'!BH1493=\"\",\"\",'1. Ordersheet'!BH1493)","v":""},{"$f":"IF('1. Ordersheet'!BI1493=\"\",\"\",'1. Ordersheet'!BI1493)","v":""},{"$f":"IF('1. Ordersheet'!BJ1493=\"\",\"\",'1. Ordersheet'!BJ1493)","v":""},{"$f":"IF('1. Ordersheet'!BK1493=\"\",\"\",'1. Ordersheet'!BK1493)","v":""},{"$f":"IF('1. Ordersheet'!BL1493=\"\",\"\",'1. Ordersheet'!BL1493)","v":""}]
[{"$f":"IF('1. Ordersheet'!F1494=\"\",\"\",'1. Ordersheet'!F1494)","v":""},{"$f":"IF('1. Ordersheet'!G1494=\"\",\"\",'1. Ordersheet'!G1494)","v":""},{"$f":"IF('1. Ordersheet'!H1494=\"\",\"\",'1. Ordersheet'!H1494)","v":""},{"$f":"IF('1. Ordersheet'!I1494=\"\",\"\",'1. Ordersheet'!I1494)","v":""},{"$f":"IF('1. Ordersheet'!J1494=\"\",\"\",'1. Ordersheet'!J1494)","v":""},{"$f":"IF('1. Ordersheet'!K1494=\"\",\"\",'1. Ordersheet'!K1494)","v":""},{"$f":"IF('1. Ordersheet'!L1494=\"\",\"\",'1. Ordersheet'!L1494)","v":""},{"$f":"IF('1. Ordersheet'!M1494=\"\",\"\",'1. Ordersheet'!M1494)","v":""},{"$f":"IF('1. Ordersheet'!N1494=\"\",\"\",'1. Ordersheet'!N1494)","v":""},{"$f":"IF('1. Ordersheet'!O1494=\"\",\"\",'1. Ordersheet'!O1494)","v":{"$error":"#N/A"}},{"$f":"IF('1. Ordersheet'!P1494=\"\",\"\",'1. Ordersheet'!P1494)","v":{"$error":"#N/A"}},{"$f":"IF('1. Ordersheet'!Q1494=\"\",\"\",'1. Ordersheet'!Q1494)","v":""},{"$f":"IF('1. Ordersheet'!R1494=\"\",\"\",'1. Ordersheet'!R1494)","v":""},{"$f":"IF('1. Ordersheet'!S1494=\"\",\"\",'1. Ordersheet'!S1494)","v":""},{"$f":"IF('1. Ordersheet'!V1494=\"\",\"\",'1. Ordersheet'!V1494)","v":""},{"$f":"IF('1. Ordersheet'!W1494=\"\",\"\",'1. Ordersheet'!W1494)","v":""},{"$f":"IF('1. Ordersheet'!X1494=\"\",\"\",'1. Ordersheet'!X1494)","v":""},{"$f":"IF('1. Ordersheet'!Y1494=\"\",\"\",'1. Ordersheet'!Y1494)","v":""},{"$f":"IF('1. Ordersheet'!Z1494=\"\",\"\",'1. Ordersheet'!Z1494)","v":""},{"$f":"IF('1. Ordersheet'!AA1494=\"\",\"\",'1. Ordersheet'!AA1494)","v":""},null,{"$f":"IF('1. Ordersheet'!AS1494=\"\",\"\",'1. Ordersheet'!AS1494)","v":""},{"$f":"IF('1. Ordersheet'!AT1494=\"\",\"\",'1. Ordersheet'!AT1494)","v":""},null,null,null,null,null,null,null,{"$f":"IF('1. Ordersheet'!AX1494=\"\",\"\",'1. Ordersheet'!AX1494)","v":""},{"$f":"IF('1. Ordersheet'!AY1494=\"\",\"\",'1. Ordersheet'!AY1494)","v":""},{"$f":"IF('1. Ordersheet'!AZ1494=\"\",\"\",'1. Ordersheet'!AZ1494)","v":""},{"$f":"IF('1. Ordersheet'!BA1494=\"\",\"\",'1. Ordersheet'!BA1494)","v":""},{"$f":"IF('1. Ordersheet'!BC1494=\"\",\"\",'1. Ordersheet'!BC1494)","v":""},{"$f":"IF('1. Ordersheet'!BD1494=\"\",\"\",'1. Ordersheet'!BD1494)","v":""},{"$f":"IF('1. Ordersheet'!BE1494=\"\",\"\",'1. Ordersheet'!BE1494)","v":""},{"$f":"IF('1. Ordersheet'!BF1494=\"\",\"\",'1. Ordersheet'!BF1494)","v":""},{"$f":"IF('1. Ordersheet'!BG1494=\"\",\"\",'1. Ordersheet'!BG1494)","v":"ZWO"},{"$f":"IF('1. Ordersheet'!BH1494=\"\",\"\",'1. Ordersheet'!BH1494)","v":""},{"$f":"IF('1. Ordersheet'!BI1494=\"\",\"\",'1. Ordersheet'!BI1494)","v":""},{"$f":"IF('1. Ordersheet'!BJ1494=\"\",\"\",'1. Ordersheet'!BJ1494)","v":""},{"$f":"IF('1. Ordersheet'!BK1494=\"\",\"\",'1. Ordersheet'!BK1494)","v":""},{"$f":"IF('1. Ordersheet'!BL1494=\"\",\"\",'1. Ordersheet'!BL1494)","v":""}]
[{"$f":"IF('1. Ordersheet'!F1495=\"\",\"\",'1. Ordersheet'!F1495)","v":""},{"$f":"IF('1. Ordersheet'!G1495=\"\",\"\",'1. Ordersheet'!G1495)","v":""},{"$f":"IF('1. Ordersheet'!H1495=\"\",\"\",'1. Ordersheet'!H1495)","v":""},{"$f":"IF('1. Ordersheet'!I1495=\"\",\"\",'1. Ordersheet'!I1495)","v":""},{"$f":"IF('1. Ordersheet'!J1495=\"\",\"\",'1. Ordersheet'!J1495)","v":""},{"$f":"IF('1. Ordersheet'!K1495=\"\",\"\",'1. Ordersheet'!K1495)","v":""},{"$f":"IF('1. Ordersheet'!L1495=\"\",\"\",'1. Ordersheet'!L1495)","v":""},{"$f":"IF('1. Ordersheet'!M1495=\"\",\"\",'1. Ordersheet'!M1495)","v":""},{"$f":"IF('1. Ordersheet'!N1495=\"\",\"\",'1. Ordersheet'!N1495)","v":""},{"$f":"IF('1. Ordersheet'!O1495=\"\",\"\",'1. Ordersheet'!O1495)","v":{"$error":"#N/A"}},{"$f":"IF('1. Ordersheet'!P1495=\"\",\"\",'1. Ordersheet'!P1495)","v":{"$error":"#N/A"}},{"$f":"IF('1. Ordersheet'!Q1495=\"\",\"\",'1. Ordersheet'!Q1495)","v":""},{"$f":"IF('1. Ordersheet'!R1495=\"\",\"\",'1. Ordersheet'!R1495)","v":""},{"$f":"IF('1. Ordersheet'!S1495=\"\",\"\",'1. Ordersheet'!S1495)","v":""},{"$f":"IF('1. Ordersheet'!V1495=\"\",\"\",'1. Ordersheet'!V1495)","v":""},{"$f":"IF('1. Ordersheet'!W1495=\"\",\"\",'1. Ordersheet'!W1495)","v":""},{"$f":"IF('1. Ordersheet'!X1495=\"\",\"\",'1. Ordersheet'!X1495)","v":""},{"$f":"IF('1. Ordersheet'!Y1495=\"\",\"\",'1. Ordersheet'!Y1495)","v":""},{"$f":"IF('1. Ordersheet'!Z1495=\"\",\"\",'1. Ordersheet'!Z1495)","v":""},{"$f":"IF('1. Ordersheet'!AA1495=\"\",\"\",'1. Ordersheet'!AA1495)","v":""},null,{"$f":"IF('1. Ordersheet'!AS1495=\"\",\"\",'1. Ordersheet'!AS1495)","v":""},{"$f":"IF('1. Ordersheet'!AT1495=\"\",\"\",'1. Ordersheet'!AT1495)","v":""},null,null,null,null,null,null,null,{"$f":"IF('1. Ordersheet'!AX1495=\"\",\"\",'1. Ordersheet'!AX1495)","v":""},{"$f":"IF('1. Ordersheet'!AY1495=\"\",\"\",'1. Ordersheet'!AY1495)","v":""},{"$f":"IF('1. Ordersheet'!AZ1495=\"\",\"\",'1. Ordersheet'!AZ1495)","v":""},{"$f":"IF('1. Ordersheet'!BA1495=\"\",\"\",'1. Ordersheet'!BA1495)","v":""},{"$f":"IF('1. Ordersheet'!BC1495=\"\",\"\",'1. Ordersheet'!BC1495)","v":""},{"$f":"IF('1. Ordersheet'!BD1495=\"\",\"\",'1. Ordersheet'!BD1495)","v":""},{"$f":"IF('1. Ordersheet'!BE1495=\"\",\"\",'1. Ordersheet'!BE1495)","v":""},{"$f":"IF('1. Ordersheet'!BF1495=\"\",\"\",'1. Ordersheet'!BF1495)","v":""},{"$f":"IF('1. Ordersheet'!BG1495=\"\",\"\",'1. Ordersheet'!BG1495)","v":"ZWO"},{"$f":"IF('1. Ordersheet'!BH1495=\"\",\"\",'1. Ordersheet'!BH1495)","v":""},{"$f":"IF('1. Ordersheet'!BI1495=\"\",\"\",'1. Ordersheet'!BI1495)","v":""},{"$f":"IF('1. Ordersheet'!BJ1495=\"\",\"\",'1. Ordersheet'!BJ1495)","v":""},{"$f":"IF('1. Ordersheet'!BK1495=\"\",\"\",'1. Ordersheet'!BK1495)","v":""},{"$f":"IF('1. Ordersheet'!BL1495=\"\",\"\",'1. Ordersheet'!BL1495)","v":""}]
[{"$f":"IF('1. Ordersheet'!F1496=\"\",\"\",'1. Ordersheet'!F1496)","v":""},{"$f":"IF('1. Ordersheet'!G1496=\"\",\"\",'1. Ordersheet'!G1496)","v":""},{"$f":"IF('1. Ordersheet'!H1496=\"\",\"\",'1. Ordersheet'!H1496)","v":""},{"$f":"IF('1. Ordersheet'!I1496=\"\",\"\",'1. Ordersheet'!I1496)","v":""},{"$f":"IF('1. Ordersheet'!J1496=\"\",\"\",'1. Ordersheet'!J1496)","v":""},{"$f":"IF('1. Ordersheet'!K1496=\"\",\"\",'1. Ordersheet'!K1496)","v":""},{"$f":"IF('1. Ordersheet'!L1496=\"\",\"\",'1. Ordersheet'!L1496)","v":""},{"$f":"IF('1. Ordersheet'!M1496=\"\",\"\",'1. Ordersheet'!M1496)","v":""},{"$f":"IF('1. Ordersheet'!N1496=\"\",\"\",'1. Ordersheet'!N1496)","v":""},{"$f":"IF('1. Ordersheet'!O1496=\"\",\"\",'1. Ordersheet'!O1496)","v":{"$error":"#N/A"}},{"$f":"IF('1. Ordersheet'!P1496=\"\",\"\",'1. Ordersheet'!P1496)","v":{"$error":"#N/A"}},{"$f":"IF('1. Ordersheet'!Q1496=\"\",\"\",'1. Ordersheet'!Q1496)","v":""},{"$f":"IF('1. Ordersheet'!R1496=\"\",\"\",'1. Ordersheet'!R1496)","v":""},{"$f":"IF('1. Ordersheet'!S1496=\"\",\"\",'1. Ordersheet'!S1496)","v":""},{"$f":"IF('1. Ordersheet'!V1496=\"\",\"\",'1. Ordersheet'!V1496)","v":""},{"$f":"IF('1. Ordersheet'!W1496=\"\",\"\",'1. Ordersheet'!W1496)","v":""},{"$f":"IF('1. Ordersheet'!X1496=\"\",\"\",'1. Ordersheet'!X1496)","v":""},{"$f":"IF('1. Ordersheet'!Y1496=\"\",\"\",'1. Ordersheet'!Y1496)","v":""},{"$f":"IF('1. Ordersheet'!Z1496=\"\",\"\",'1. Ordersheet'!Z1496)","v":""},{"$f":"IF('1. Ordersheet'!AA1496=\"\",\"\",'1. Ordersheet'!AA1496)","v":""},null,{"$f":"IF('1. Ordersheet'!AS1496=\"\",\"\",'1. Ordersheet'!AS1496)","v":""},{"$f":"IF('1. Ordersheet'!AT1496=\"\",\"\",'1. Ordersheet'!AT1496)","v":""},null,null,null,null,null,null,null,{"$f":"IF('1. Ordersheet'!AX1496=\"\",\"\",'1. Ordersheet'!AX1496)","v":""},{"$f":"IF('1. Ordersheet'!AY1496=\"\",\"\",'1. Ordersheet'!AY1496)","v":""},{"$f":"IF('1. Ordersheet'!AZ1496=\"\",\"\",'1. Ordersheet'!AZ1496)","v":""},{"$f":"IF('1. Ordersheet'!BA1496=\"\",\"\",'1. Ordersheet'!BA1496)","v":""},{"$f":"IF('1. Ordersheet'!BC1496=\"\",\"\",'1. Ordersheet'!BC1496)","v":""},{"$f":"IF('1. Ordersheet'!BD1496=\"\",\"\",'1. Ordersheet'!BD1496)","v":""},{"$f":"IF('1. Ordersheet'!BE1496=\"\",\"\",'1. Ordersheet'!BE1496)","v":""},{"$f":"IF('1. Ordersheet'!BF1496=\"\",\"\",'1. Ordersheet'!BF1496)","v":""},{"$f":"IF('1. Ordersheet'!BG1496=\"\",\"\",'1. Ordersheet'!BG1496)","v":"ZWO"},{"$f":"IF('1. Ordersheet'!BH1496=\"\",\"\",'1. Ordersheet'!BH1496)","v":""},{"$f":"IF('1. Ordersheet'!BI1496=\"\",\"\",'1. Ordersheet'!BI1496)","v":""},{"$f":"IF('1. Ordersheet'!BJ1496=\"\",\"\",'1. Ordersheet'!BJ1496)","v":""},{"$f":"IF('1. Ordersheet'!BK1496=\"\",\"\",'1. Ordersheet'!BK1496)","v":""},{"$f":"IF('1. Ordersheet'!BL1496=\"\",\"\",'1. Ordersheet'!BL1496)","v":""}]
[{"$f":"IF('1. Ordersheet'!F1497=\"\",\"\",'1. Ordersheet'!F1497)","v":""},{"$f":"IF('1. Ordersheet'!G1497=\"\",\"\",'1. Ordersheet'!G1497)","v":""},{"$f":"IF('1. Ordersheet'!H1497=\"\",\"\",'1. Ordersheet'!H1497)","v":""},{"$f":"IF('1. Ordersheet'!I1497=\"\",\"\",'1. Ordersheet'!I1497)","v":""},{"$f":"IF('1. Ordersheet'!J1497=\"\",\"\",'1. Ordersheet'!J1497)","v":""},{"$f":"IF('1. Ordersheet'!K1497=\"\",\"\",'1. Ordersheet'!K1497)","v":""},{"$f":"IF('1. Ordersheet'!L1497=\"\",\"\",'1. Ordersheet'!L1497)","v":""},{"$f":"IF('1. Ordersheet'!M1497=\"\",\"\",'1. Ordersheet'!M1497)","v":""},{"$f":"IF('1. Ordersheet'!N1497=\"\",\"\",'1. Ordersheet'!N1497)","v":""},{"$f":"IF('1. Ordersheet'!O1497=\"\",\"\",'1. Ordersheet'!O1497)","v":{"$error":"#N/A"}},{"$f":"IF('1. Ordersheet'!P1497=\"\",\"\",'1. Ordersheet'!P1497)","v":{"$error":"#N/A"}},{"$f":"IF('1. Ordersheet'!Q1497=\"\",\"\",'1. Ordersheet'!Q1497)","v":""},{"$f":"IF('1. Ordersheet'!R1497=\"\",\"\",'1. Ordersheet'!R1497)","v":""},{"$f":"IF('1. Ordersheet'!S1497=\"\",\"\",'1. Ordersheet'!S1497)","v":""},{"$f":"IF('1. Ordersheet'!V1497=\"\",\"\",'1. Ordersheet'!V1497)","v":""},{"$f":"IF('1. Ordersheet'!W1497=\"\",\"\",'1. Ordersheet'!W1497)","v":""},{"$f":"IF('1. Ordersheet'!X1497=\"\",\"\",'1. Ordersheet'!X1497)","v":""},{"$f":"IF('1. Ordersheet'!Y1497=\"\",\"\",'1. Ordersheet'!Y1497)","v":""},{"$f":"IF('1. Ordersheet'!Z1497=\"\",\"\",'1. Ordersheet'!Z1497)","v":""},{"$f":"IF('1. Ordersheet'!AA1497=\"\",\"\",'1. Ordersheet'!AA1497)","v":""},null,{"$f":"IF('1. Ordersheet'!AS1497=\"\",\"\",'1. Ordersheet'!AS1497)","v":""},{"$f":"IF('1. Ordersheet'!AT1497=\"\",\"\",'1. Ordersheet'!AT1497)","v":""},null,null,null,null,null,null,null,{"$f":"IF('1. Ordersheet'!AX1497=\"\",\"\",'1. Ordersheet'!AX1497)","v":""},{"$f":"IF('1. Ordersheet'!AY1497=\"\",\"\",'1. Ordersheet'!AY1497)","v":""},{"$f":"IF('1. Ordersheet'!AZ1497=\"\",\"\",'1. Ordersheet'!AZ1497)","v":""},{"$f":"IF('1. Ordersheet'!BA1497=\"\",\"\",'1. Ordersheet'!BA1497)","v":""},{"$f":"IF('1. Ordersheet'!BC1497=\"\",\"\",'1. Ordersheet'!BC1497)","v":""},{"$f":"IF('1. Ordersheet'!BD1497=\"\",\"\",'1. Ordersheet'!BD1497)","v":""},{"$f":"IF('1. Ordersheet'!BE1497=\"\",\"\",'1. Ordersheet'!BE1497)","v":""},{"$f":"IF('1. Ordersheet'!BF1497=\"\",\"\",'1. Ordersheet'!BF1497)","v":""},{"$f":"IF('1. Ordersheet'!BG1497=\"\",\"\",'1. Ordersheet'!BG1497)","v":"ZWO"},{"$f":"IF('1. Ordersheet'!BH1497=\"\",\"\",'1. Ordersheet'!BH1497)","v":""},{"$f":"IF('1. Ordersheet'!BI1497=\"\",\"\",'1. Ordersheet'!BI1497)","v":""},{"$f":"IF('1. Ordersheet'!BJ1497=\"\",\"\",'1. Ordersheet'!BJ1497)","v":""},{"$f":"IF('1. Ordersheet'!BK1497=\"\",\"\",'1. Ordersheet'!BK1497)","v":""},{"$f":"IF('1. Ordersheet'!BL1497=\"\",\"\",'1. Ordersheet'!BL1497)","v":""}]
[{"$f":"IF('1. Ordersheet'!F1498=\"\",\"\",'1. Ordersheet'!F1498)","v":""},{"$f":"IF('1. Ordersheet'!G1498=\"\",\"\",'1. Ordersheet'!G1498)","v":""},{"$f":"IF('1. Ordersheet'!H1498=\"\",\"\",'1. Ordersheet'!H1498)","v":""},{"$f":"IF('1. Ordersheet'!I1498=\"\",\"\",'1. Ordersheet'!I1498)","v":""},{"$f":"IF('1. Ordersheet'!J1498=\"\",\"\",'1. Ordersheet'!J1498)","v":""},{"$f":"IF('1. Ordersheet'!K1498=\"\",\"\",'1. Ordersheet'!K1498)","v":""},{"$f":"IF('1. Ordersheet'!L1498=\"\",\"\",'1. Ordersheet'!L1498)","v":""},{"$f":"IF('1. Ordersheet'!M1498=\"\",\"\",'1. Ordersheet'!M1498)","v":""},{"$f":"IF('1. Ordersheet'!N1498=\"\",\"\",'1. Ordersheet'!N1498)","v":""},{"$f":"IF('1. Ordersheet'!O1498=\"\",\"\",'1. Ordersheet'!O1498)","v":{"$error":"#N/A"}},{"$f":"IF('1. Ordersheet'!P1498=\"\",\"\",'1. Ordersheet'!P1498)","v":{"$error":"#N/A"}},{"$f":"IF('1. Ordersheet'!Q1498=\"\",\"\",'1. Ordersheet'!Q1498)","v":""},{"$f":"IF('1. Ordersheet'!R1498=\"\",\"\",'1. Ordersheet'!R1498)","v":""},{"$f":"IF('1. Ordersheet'!S1498=\"\",\"\",'1. Ordersheet'!S1498)","v":""},{"$f":"IF('1. Ordersheet'!V1498=\"\",\"\",'1. Ordersheet'!V1498)","v":""},{"$f":"IF('1. Ordersheet'!W1498=\"\",\"\",'1. Ordersheet'!W1498)","v":""},{"$f":"IF('1. Ordersheet'!X1498=\"\",\"\",'1. Ordersheet'!X1498)","v":""},{"$f":"IF('1. Ordersheet'!Y1498=\"\",\"\",'1. Ordersheet'!Y1498)","v":""},{"$f":"IF('1. Ordersheet'!Z1498=\"\",\"\",'1. Ordersheet'!Z1498)","v":""},{"$f":"IF('1. Ordersheet'!AA1498=\"\",\"\",'1. Ordersheet'!AA1498)","v":""},null,{"$f":"IF('1. Ordersheet'!AS1498=\"\",\"\",'1. Ordersheet'!AS1498)","v":""},{"$f":"IF('1. Ordersheet'!AT1498=\"\",\"\",'1. Ordersheet'!AT1498)","v":""},null,null,null,null,null,null,null,{"$f":"IF('1. Ordersheet'!AX1498=\"\",\"\",'1. Ordersheet'!AX1498)","v":""},{"$f":"IF('1. Ordersheet'!AY1498=\"\",\"\",'1. Ordersheet'!AY1498)","v":""},{"$f":"IF('1. Ordersheet'!AZ1498=\"\",\"\",'1. Ordersheet'!AZ1498)","v":""},{"$f":"IF('1. Ordersheet'!BA1498=\"\",\"\",'1. Ordersheet'!BA1498)","v":""},{"$f":"IF('1. Ordersheet'!BC1498=\"\",\"\",'1. Ordersheet'!BC1498)","v":""},{"$f":"IF('1. Ordersheet'!BD1498=\"\",\"\",'1. Ordersheet'!BD1498)","v":""},{"$f":"IF('1. Ordersheet'!BE1498=\"\",\"\",'1. Ordersheet'!BE1498)","v":""},{"$f":"IF('1. Ordersheet'!BF1498=\"\",\"\",'1. Ordersheet'!BF1498)","v":""},{"$f":"IF('1. Ordersheet'!BG1498=\"\",\"\",'1. Ordersheet'!BG1498)","v":"ZWO"},{"$f":"IF('1. Ordersheet'!BH1498=\"\",\"\",'1. Ordersheet'!BH1498)","v":""},{"$f":"IF('1. Ordersheet'!BI1498=\"\",\"\",'1. Ordersheet'!BI1498)","v":""},{"$f":"IF('1. Ordersheet'!BJ1498=\"\",\"\",'1. Ordersheet'!BJ1498)","v":""},{"$f":"IF('1. Ordersheet'!BK1498=\"\",\"\",'1. Ordersheet'!BK1498)","v":""},{"$f":"IF('1. Ordersheet'!BL1498=\"\",\"\",'1. Ordersheet'!BL1498)","v":""}]
[{"$f":"IF('1. Ordersheet'!F1499=\"\",\"\",'1. Ordersheet'!F1499)","v":""},{"$f":"IF('1. Ordersheet'!G1499=\"\",\"\",'1. Ordersheet'!G1499)","v":""},{"$f":"IF('1. Ordersheet'!H1499=\"\",\"\",'1. Ordersheet'!H1499)","v":""},{"$f":"IF('1. Ordersheet'!I1499=\"\",\"\",'1. Ordersheet'!I1499)","v":""},{"$f":"IF('1. Ordersheet'!J1499=\"\",\"\",'1. Ordersheet'!J1499)","v":""},{"$f":"IF('1. Ordersheet'!K1499=\"\",\"\",'1. Ordersheet'!K1499)","v":""},{"$f":"IF('1. Ordersheet'!L1499=\"\",\"\",'1. Ordersheet'!L1499)","v":""},{"$f":"IF('1. Ordersheet'!M1499=\"\",\"\",'1. Ordersheet'!M1499)","v":""},{"$f":"IF('1. Ordersheet'!N1499=\"\",\"\",'1. Ordersheet'!N1499)","v":""},{"$f":"IF('1. Ordersheet'!O1499=\"\",\"\",'1. Ordersheet'!O1499)","v":{"$error":"#N/A"}},{"$f":"IF('1. Ordersheet'!P1499=\"\",\"\",'1. Ordersheet'!P1499)","v":{"$error":"#N/A"}},{"$f":"IF('1. Ordersheet'!Q1499=\"\",\"\",'1. Ordersheet'!Q1499)","v":""},{"$f":"IF('1. Ordersheet'!R1499=\"\",\"\",'1. Ordersheet'!R1499)","v":""},{"$f":"IF('1. Ordersheet'!S1499=\"\",\"\",'1. Ordersheet'!S1499)","v":""},{"$f":"IF('1. Ordersheet'!V1499=\"\",\"\",'1. Ordersheet'!V1499)","v":""},{"$f":"IF('1. Ordersheet'!W1499=\"\",\"\",'1. Ordersheet'!W1499)","v":""},{"$f":"IF('1. Ordersheet'!X1499=\"\",\"\",'1. Ordersheet'!X1499)","v":""},{"$f":"IF('1. Ordersheet'!Y1499=\"\",\"\",'1. Ordersheet'!Y1499)","v":""},{"$f":"IF('1. Ordersheet'!Z1499=\"\",\"\",'1. Ordersheet'!Z1499)","v":""},{"$f":"IF('1. Ordersheet'!AA1499=\"\",\"\",'1. Ordersheet'!AA1499)","v":""},null,{"$f":"IF('1. Ordersheet'!AS1499=\"\",\"\",'1. Ordersheet'!AS1499)","v":""},{"$f":"IF('1. Ordersheet'!AT1499=\"\",\"\",'1. Ordersheet'!AT1499)","v":""},null,null,null,null,null,null,null,{"$f":"IF('1. Ordersheet'!AX1499=\"\",\"\",'1. Ordersheet'!AX1499)","v":""},{"$f":"IF('1. Ordersheet'!AY1499=\"\",\"\",'1. Ordersheet'!AY1499)","v":""},{"$f":"IF('1. Ordersheet'!AZ1499=\"\",\"\",'1. Ordersheet'!AZ1499)","v":""},{"$f":"IF('1. Ordersheet'!BA1499=\"\",\"\",'1. Ordersheet'!BA1499)","v":""},{"$f":"IF('1. Ordersheet'!BC1499=\"\",\"\",'1. Ordersheet'!BC1499)","v":""},{"$f":"IF('1. Ordersheet'!BD1499=\"\",\"\",'1. Ordersheet'!BD1499)","v":""},{"$f":"IF('1. Ordersheet'!BE1499=\"\",\"\",'1. Ordersheet'!BE1499)","v":""},{"$f":"IF('1. Ordersheet'!BF1499=\"\",\"\",'1. Ordersheet'!BF1499)","v":""},{"$f":"IF('1. Ordersheet'!BG1499=\"\",\"\",'1. Ordersheet'!BG1499)","v":"ZWO"},{"$f":"IF('1. Ordersheet'!BH1499=\"\",\"\",'1. Ordersheet'!BH1499)","v":""},{"$f":"IF('1. Ordersheet'!BI1499=\"\",\"\",'1. Ordersheet'!BI1499)","v":""},{"$f":"IF('1. Ordersheet'!BJ1499=\"\",\"\",'1. Ordersheet'!BJ1499)","v":""},{"$f":"IF('1. Ordersheet'!BK1499=\"\",\"\",'1. Ordersheet'!BK1499)","v":""},{"$f":"IF('1. Ordersheet'!BL1499=\"\",\"\",'1. Ordersheet'!BL1499)","v":""}]
[{"$f":"IF('1. Ordersheet'!F1500=\"\",\"\",'1. Ordersheet'!F1500)","v":""},{"$f":"IF('1. Ordersheet'!G1500=\"\",\"\",'1. Ordersheet'!G1500)","v":""},{"$f":"IF('1. Ordersheet'!H1500=\"\",\"\",'1. Ordersheet'!H1500)","v":""},{"$f":"IF('1. Ordersheet'!I1500=\"\",\"\",'1. Ordersheet'!I1500)","v":""},{"$f":"IF('1. Ordersheet'!J1500=\"\",\"\",'1. Ordersheet'!J1500)","v":""},{"$f":"IF('1. Ordersheet'!K1500=\"\",\"\",'1. Ordersheet'!K1500)","v":""},{"$f":"IF('1. Ordersheet'!L1500=\"\",\"\",'1. Ordersheet'!L1500)","v":""},{"$f":"IF('1. Ordersheet'!M1500=\"\",\"\",'1. Ordersheet'!M1500)","v":""},{"$f":"IF('1. Ordersheet'!N1500=\"\",\"\",'1. Ordersheet'!N1500)","v":""},{"$f":"IF('1. Ordersheet'!O1500=\"\",\"\",'1. Ordersheet'!O1500)","v":{"$error":"#N/A"}},{"$f":"IF('1. Ordersheet'!P1500=\"\",\"\",'1. Ordersheet'!P1500)","v":{"$error":"#N/A"}},{"$f":"IF('1. Ordersheet'!Q1500=\"\",\"\",'1. Ordersheet'!Q1500)","v":""},{"$f":"IF('1. Ordersheet'!R1500=\"\",\"\",'1. Ordersheet'!R1500)","v":""},{"$f":"IF('1. Ordersheet'!S1500=\"\",\"\",'1. Ordersheet'!S1500)","v":""},{"$f":"IF('1. Ordersheet'!V1500=\"\",\"\",'1. Ordersheet'!V1500)","v":""},{"$f":"IF('1. Ordersheet'!W1500=\"\",\"\",'1. Ordersheet'!W1500)","v":""},{"$f":"IF('1. Ordersheet'!X1500=\"\",\"\",'1. Ordersheet'!X1500)","v":""},{"$f":"IF('1. Ordersheet'!Y1500=\"\",\"\",'1. Ordersheet'!Y1500)","v":""},{"$f":"IF('1. Ordersheet'!Z1500=\"\",\"\",'1. Ordersheet'!Z1500)","v":""},{"$f":"IF('1. Ordersheet'!AA1500=\"\",\"\",'1. Ordersheet'!AA1500)","v":""},null,{"$f":"IF('1. Ordersheet'!AS1500=\"\",\"\",'1. Ordersheet'!AS1500)","v":""},{"$f":"IF('1. Ordersheet'!AT1500=\"\",\"\",'1. Ordersheet'!AT1500)","v":""},null,null,null,null,null,null,null,{"$f":"IF('1. Ordersheet'!AX1500=\"\",\"\",'1. Ordersheet'!AX1500)","v":""},{"$f":"IF('1. Ordersheet'!AY1500=\"\",\"\",'1. Ordersheet'!AY1500)","v":""},{"$f":"IF('1. Ordersheet'!AZ1500=\"\",\"\",'1. Ordersheet'!AZ1500)","v":""},{"$f":"IF('1. Ordersheet'!BA1500=\"\",\"\",'1. Ordersheet'!BA1500)","v":""},{"$f":"IF('1. Ordersheet'!BC1500=\"\",\"\",'1. Ordersheet'!BC1500)","v":""},{"$f":"IF('1. Ordersheet'!BD1500=\"\",\"\",'1. Ordersheet'!BD1500)","v":""},{"$f":"IF('1. Ordersheet'!BE1500=\"\",\"\",'1. Ordersheet'!BE1500)","v":""},{"$f":"IF('1. Ordersheet'!BF1500=\"\",\"\",'1. Ordersheet'!BF1500)","v":""},{"$f":"IF('1. Ordersheet'!BG1500=\"\",\"\",'1. Ordersheet'!BG1500)","v":"ZWO"},{"$f":"IF('1. Ordersheet'!BH1500=\"\",\"\",'1. Ordersheet'!BH1500)","v":""},{"$f":"IF('1. Ordersheet'!BI1500=\"\",\"\",'1. Ordersheet'!BI1500)","v":""},{"$f":"IF('1. Ordersheet'!BJ1500=\"\",\"\",'1. Ordersheet'!BJ1500)","v":""},{"$f":"IF('1. Ordersheet'!BK1500=\"\",\"\",'1. Ordersheet'!BK1500)","v":""},{"$f":"IF('1. Ordersheet'!BL1500=\"\",\"\",'1. Ordersheet'!BL1500)","v":""}]
[{"$f":"IF('1. Ordersheet'!F1501=\"\",\"\",'1. Ordersheet'!F1501)","v":""},{"$f":"IF('1. Ordersheet'!G1501=\"\",\"\",'1. Ordersheet'!G1501)","v":""},{"$f":"IF('1. Ordersheet'!H1501=\"\",\"\",'1. Ordersheet'!H1501)","v":""},{"$f":"IF('1. Ordersheet'!I1501=\"\",\"\",'1. Ordersheet'!I1501)","v":""},{"$f":"IF('1. Ordersheet'!J1501=\"\",\"\",'1. Ordersheet'!J1501)","v":""},{"$f":"IF('1. Ordersheet'!K1501=\"\",\"\",'1. Ordersheet'!K1501)","v":""},{"$f":"IF('1. Ordersheet'!L1501=\"\",\"\",'1. Ordersheet'!L1501)","v":""},{"$f":"IF('1. Ordersheet'!M1501=\"\",\"\",'1. Ordersheet'!M1501)","v":""},{"$f":"IF('1. Ordersheet'!N1501=\"\",\"\",'1. Ordersheet'!N1501)","v":""},{"$f":"IF('1. Ordersheet'!O1501=\"\",\"\",'1. Ordersheet'!O1501)","v":{"$error":"#N/A"}},{"$f":"IF('1. Ordersheet'!P1501=\"\",\"\",'1. Ordersheet'!P1501)","v":{"$error":"#N/A"}},{"$f":"IF('1. Ordersheet'!Q1501=\"\",\"\",'1. Ordersheet'!Q1501)","v":""},{"$f":"IF('1. Ordersheet'!R1501=\"\",\"\",'1. Ordersheet'!R1501)","v":""},{"$f":"IF('1. Ordersheet'!S1501=\"\",\"\",'1. Ordersheet'!S1501)","v":""},{"$f":"IF('1. Ordersheet'!V1501=\"\",\"\",'1. Ordersheet'!V1501)","v":""},{"$f":"IF('1. Ordersheet'!W1501=\"\",\"\",'1. Ordersheet'!W1501)","v":""},{"$f":"IF('1. Ordersheet'!X1501=\"\",\"\",'1. Ordersheet'!X1501)","v":""},{"$f":"IF('1. Ordersheet'!Y1501=\"\",\"\",'1. Ordersheet'!Y1501)","v":""},{"$f":"IF('1. Ordersheet'!Z1501=\"\",\"\",'1. Ordersheet'!Z1501)","v":""},{"$f":"IF('1. Ordersheet'!AA1501=\"\",\"\",'1. Ordersheet'!AA1501)","v":""},null,{"$f":"IF('1. Ordersheet'!AS1501=\"\",\"\",'1. Ordersheet'!AS1501)","v":""},{"$f":"IF('1. Ordersheet'!AT1501=\"\",\"\",'1. Ordersheet'!AT1501)","v":""},null,null,null,null,null,null,null,{"$f":"IF('1. Ordersheet'!AX1501=\"\",\"\",'1. Ordersheet'!AX1501)","v":""},{"$f":"IF('1. Ordersheet'!AY1501=\"\",\"\",'1. Ordersheet'!AY1501)","v":""},{"$f":"IF('1. Ordersheet'!AZ1501=\"\",\"\",'1. Ordersheet'!AZ1501)","v":""},{"$f":"IF('1. Ordersheet'!BA1501=\"\",\"\",'1. Ordersheet'!BA1501)","v":""},{"$f":"IF('1. Ordersheet'!BC1501=\"\",\"\",'1. Ordersheet'!BC1501)","v":""},{"$f":"IF('1. Ordersheet'!BD1501=\"\",\"\",'1. Ordersheet'!BD1501)","v":""},{"$f":"IF('1. Ordersheet'!BE1501=\"\",\"\",'1. Ordersheet'!BE1501)","v":""},{"$f":"IF('1. Ordersheet'!BF1501=\"\",\"\",'1. Ordersheet'!BF1501)","v":""},{"$f":"IF('1. Ordersheet'!BG1501=\"\",\"\",'1. Ordersheet'!BG1501)","v":"ZWO"},{"$f":"IF('1. Ordersheet'!BH1501=\"\",\"\",'1. Ordersheet'!BH1501)","v":""},{"$f":"IF('1. Ordersheet'!BI1501=\"\",\"\",'1. Ordersheet'!BI1501)","v":""},{"$f":"IF('1. Ordersheet'!BJ1501=\"\",\"\",'1. Ordersheet'!BJ1501)","v":""},{"$f":"IF('1. Ordersheet'!BK1501=\"\",\"\",'1. Ordersheet'!BK1501)","v":""},{"$f":"IF('1. Ordersheet'!BL1501=\"\",\"\",'1. Ordersheet'!BL1501)","v":""}]
[{"$f":"IF('1. Ordersheet'!F1502=\"\",\"\",'1. Ordersheet'!F1502)","v":""},{"$f":"IF('1. Ordersheet'!G1502=\"\",\"\",'1. Ordersheet'!G1502)","v":""},{"$f":"IF('1. Ordersheet'!H1502=\"\",\"\",'1. Ordersheet'!H1502)","v":""},{"$f":"IF('1. Ordersheet'!I1502=\"\",\"\",'1. Ordersheet'!I1502)","v":""},{"$f":"IF('1. Ordersheet'!J1502=\"\",\"\",'1. Ordersheet'!J1502)","v":""},{"$f":"IF('1. Ordersheet'!K1502=\"\",\"\",'1. Ordersheet'!K1502)","v":""},{"$f":"IF('1. Ordersheet'!L1502=\"\",\"\",'1. Ordersheet'!L1502)","v":""},{"$f":"IF('1. Ordersheet'!M1502=\"\",\"\",'1. Ordersheet'!M1502)","v":""},{"$f":"IF('1. Ordersheet'!N1502=\"\",\"\",'1. Ordersheet'!N1502)","v":""},{"$f":"IF('1. Ordersheet'!O1502=\"\",\"\",'1. Ordersheet'!O1502)","v":{"$error":"#N/A"}},{"$f":"IF('1. Ordersheet'!P1502=\"\",\"\",'1. Ordersheet'!P1502)","v":{"$error":"#N/A"}},{"$f":"IF('1. Ordersheet'!Q1502=\"\",\"\",'1. Ordersheet'!Q1502)","v":""},{"$f":"IF('1. Ordersheet'!R1502=\"\",\"\",'1. Ordersheet'!R1502)","v":""},{"$f":"IF('1. Ordersheet'!S1502=\"\",\"\",'1. Ordersheet'!S1502)","v":""},{"$f":"IF('1. Ordersheet'!V1502=\"\",\"\",'1. Ordersheet'!V1502)","v":""},{"$f":"IF('1. Ordersheet'!W1502=\"\",\"\",'1. Ordersheet'!W1502)","v":""},{"$f":"IF('1. Ordersheet'!X1502=\"\",\"\",'1. Ordersheet'!X1502)","v":""},{"$f":"IF('1. Ordersheet'!Y1502=\"\",\"\",'1. Ordersheet'!Y1502)","v":""},{"$f":"IF('1. Ordersheet'!Z1502=\"\",\"\",'1. Ordersheet'!Z1502)","v":""},{"$f":"IF('1. Ordersheet'!AA1502=\"\",\"\",'1. Ordersheet'!AA1502)","v":""},null,{"$f":"IF('1. Ordersheet'!AS1502=\"\",\"\",'1. Ordersheet'!AS1502)","v":""},{"$f":"IF('1. Ordersheet'!AT1502=\"\",\"\",'1. Ordersheet'!AT1502)","v":""},null,null,null,null,null,null,null,{"$f":"IF('1. Ordersheet'!AX1502=\"\",\"\",'1. Ordersheet'!AX1502)","v":""},{"$f":"IF('1. Ordersheet'!AY1502=\"\",\"\",'1. Ordersheet'!AY1502)","v":""},{"$f":"IF('1. Ordersheet'!AZ1502=\"\",\"\",'1. Ordersheet'!AZ1502)","v":""},{"$f":"IF('1. Ordersheet'!BA1502=\"\",\"\",'1. Ordersheet'!BA1502)","v":""},{"$f":"IF('1. Ordersheet'!BC1502=\"\",\"\",'1. Ordersheet'!BC1502)","v":""},{"$f":"IF('1. Ordersheet'!BD1502=\"\",\"\",'1. Ordersheet'!BD1502)","v":""},{"$f":"IF('1. Ordersheet'!BE1502=\"\",\"\",'1. Ordersheet'!BE1502)","v":""},{"$f":"IF('1. Ordersheet'!BF1502=\"\",\"\",'1. Ordersheet'!BF1502)","v":""},{"$f":"IF('1. Ordersheet'!BG1502=\"\",\"\",'1. Ordersheet'!BG1502)","v":"ZWO"},{"$f":"IF('1. Ordersheet'!BH1502=\"\",\"\",'1. Ordersheet'!BH1502)","v":""},{"$f":"IF('1. Ordersheet'!BI1502=\"\",\"\",'1. Ordersheet'!BI1502)","v":""},{"$f":"IF('1. Ordersheet'!BJ1502=\"\",\"\",'1. Ordersheet'!BJ1502)","v":""},{"$f":"IF('1. Ordersheet'!BK1502=\"\",\"\",'1. Ordersheet'!BK1502)","v":""},{"$f":"IF('1. Ordersheet'!BL1502=\"\",\"\",'1. Ordersheet'!BL1502)","v":""}]
[{"$f":"IF('1. Ordersheet'!F1503=\"\",\"\",'1. Ordersheet'!F1503)","v":""},{"$f":"IF('1. Ordersheet'!G1503=\"\",\"\",'1. Ordersheet'!G1503)","v":""},{"$f":"IF('1. Ordersheet'!H1503=\"\",\"\",'1. Ordersheet'!H1503)","v":""},{"$f":"IF('1. Ordersheet'!I1503=\"\",\"\",'1. Ordersheet'!I1503)","v":""},{"$f":"IF('1. Ordersheet'!J1503=\"\",\"\",'1. Ordersheet'!J1503)","v":""},{"$f":"IF('1. Ordersheet'!K1503=\"\",\"\",'1. Ordersheet'!K1503)","v":""},{"$f":"IF('1. Ordersheet'!L1503=\"\",\"\",'1. Ordersheet'!L1503)","v":""},{"$f":"IF('1. Ordersheet'!M1503=\"\",\"\",'1. Ordersheet'!M1503)","v":""},{"$f":"IF('1. Ordersheet'!N1503=\"\",\"\",'1. Ordersheet'!N1503)","v":""},{"$f":"IF('1. Ordersheet'!O1503=\"\",\"\",'1. Ordersheet'!O1503)","v":{"$error":"#N/A"}},{"$f":"IF('1. Ordersheet'!P1503=\"\",\"\",'1. Ordersheet'!P1503)","v":{"$error":"#N/A"}},{"$f":"IF('1. Ordersheet'!Q1503=\"\",\"\",'1. Ordersheet'!Q1503)","v":""},{"$f":"IF('1. Ordersheet'!R1503=\"\",\"\",'1. Ordersheet'!R1503)","v":""},{"$f":"IF('1. Ordersheet'!S1503=\"\",\"\",'1. Ordersheet'!S1503)","v":""},{"$f":"IF('1. Ordersheet'!V1503=\"\",\"\",'1. Ordersheet'!V1503)","v":""},{"$f":"IF('1. Ordersheet'!W1503=\"\",\"\",'1. Ordersheet'!W1503)","v":""},{"$f":"IF('1. Ordersheet'!X1503=\"\",\"\",'1. Ordersheet'!X1503)","v":""},{"$f":"IF('1. Ordersheet'!Y1503=\"\",\"\",'1. Ordersheet'!Y1503)","v":""},{"$f":"IF('1. Ordersheet'!Z1503=\"\",\"\",'1. Ordersheet'!Z1503)","v":""},{"$f":"IF('1. Ordersheet'!AA1503=\"\",\"\",'1. Ordersheet'!AA1503)","v":""},null,{"$f":"IF('1. Ordersheet'!AS1503=\"\",\"\",'1. Ordersheet'!AS1503)","v":""},{"$f":"IF('1. Ordersheet'!AT1503=\"\",\"\",'1. Ordersheet'!AT1503)","v":""},null,null,null,null,null,null,null,{"$f":"IF('1. Ordersheet'!AX1503=\"\",\"\",'1. Ordersheet'!AX1503)","v":""},{"$f":"IF('1. Ordersheet'!AY1503=\"\",\"\",'1. Ordersheet'!AY1503)","v":""},{"$f":"IF('1. Ordersheet'!AZ1503=\"\",\"\",'1. Ordersheet'!AZ1503)","v":""},{"$f":"IF('1. Ordersheet'!BA1503=\"\",\"\",'1. Ordersheet'!BA1503)","v":""},{"$f":"IF('1. Ordersheet'!BC1503=\"\",\"\",'1. Ordersheet'!BC1503)","v":""},{"$f":"IF('1. Ordersheet'!BD1503=\"\",\"\",'1. Ordersheet'!BD1503)","v":""},{"$f":"IF('1. Ordersheet'!BE1503=\"\",\"\",'1. Ordersheet'!BE1503)","v":""},{"$f":"IF('1. Ordersheet'!BF1503=\"\",\"\",'1. Ordersheet'!BF1503)","v":""},{"$f":"IF('1. Ordersheet'!BG1503=\"\",\"\",'1. Ordersheet'!BG1503)","v":"ZWO"},{"$f":"IF('1. Ordersheet'!BH1503=\"\",\"\",'1. Ordersheet'!BH1503)","v":""},{"$f":"IF('1. Ordersheet'!BI1503=\"\",\"\",'1. Ordersheet'!BI1503)","v":""},{"$f":"IF('1. Ordersheet'!BJ1503=\"\",\"\",'1. Ordersheet'!BJ1503)","v":""},{"$f":"IF('1. Ordersheet'!BK1503=\"\",\"\",'1. Ordersheet'!BK1503)","v":""},{"$f":"IF('1. Ordersheet'!BL1503=\"\",\"\",'1. Ordersheet'!BL1503)","v":""}]
[{"$f":"IF('1. Ordersheet'!F1504=\"\",\"\",'1. Ordersheet'!F1504)","v":""},{"$f":"IF('1. Ordersheet'!G1504=\"\",\"\",'1. Ordersheet'!G1504)","v":""},{"$f":"IF('1. Ordersheet'!H1504=\"\",\"\",'1. Ordersheet'!H1504)","v":""},{"$f":"IF('1. Ordersheet'!I1504=\"\",\"\",'1. Ordersheet'!I1504)","v":""},{"$f":"IF('1. Ordersheet'!J1504=\"\",\"\",'1. Ordersheet'!J1504)","v":""},{"$f":"IF('1. Ordersheet'!K1504=\"\",\"\",'1. Ordersheet'!K1504)","v":""},{"$f":"IF('1. Ordersheet'!L1504=\"\",\"\",'1. Ordersheet'!L1504)","v":""},{"$f":"IF('1. Ordersheet'!M1504=\"\",\"\",'1. Ordersheet'!M1504)","v":""},{"$f":"IF('1. Ordersheet'!N1504=\"\",\"\",'1. Ordersheet'!N1504)","v":""},{"$f":"IF('1. Ordersheet'!O1504=\"\",\"\",'1. Ordersheet'!O1504)","v":{"$error":"#N/A"}},{"$f":"IF('1. Ordersheet'!P1504=\"\",\"\",'1. Ordersheet'!P1504)","v":{"$error":"#N/A"}},{"$f":"IF('1. Ordersheet'!Q1504=\"\",\"\",'1. Ordersheet'!Q1504)","v":""},{"$f":"IF('1. Ordersheet'!R1504=\"\",\"\",'1. Ordersheet'!R1504)","v":""},{"$f":"IF('1. Ordersheet'!S1504=\"\",\"\",'1. Ordersheet'!S1504)","v":""},{"$f":"IF('1. Ordersheet'!V1504=\"\",\"\",'1. Ordersheet'!V1504)","v":""},{"$f":"IF('1. Ordersheet'!W1504=\"\",\"\",'1. Ordersheet'!W1504)","v":""},{"$f":"IF('1. Ordersheet'!X1504=\"\",\"\",'1. Ordersheet'!X1504)","v":""},{"$f":"IF('1. Ordersheet'!Y1504=\"\",\"\",'1. Ordersheet'!Y1504)","v":""},{"$f":"IF('1. Ordersheet'!Z1504=\"\",\"\",'1. Ordersheet'!Z1504)","v":""},{"$f":"IF('1. Ordersheet'!AA1504=\"\",\"\",'1. Ordersheet'!AA1504)","v":""},null,{"$f":"IF('1. Ordersheet'!AS1504=\"\",\"\",'1. Ordersheet'!AS1504)","v":""},{"$f":"IF('1. Ordersheet'!AT1504=\"\",\"\",'1. Ordersheet'!AT1504)","v":""},null,null,null,null,null,null,null,{"$f":"IF('1. Ordersheet'!AX1504=\"\",\"\",'1. Ordersheet'!AX1504)","v":""},{"$f":"IF('1. Ordersheet'!AY1504=\"\",\"\",'1. Ordersheet'!AY1504)","v":""},{"$f":"IF('1. Ordersheet'!AZ1504=\"\",\"\",'1. Ordersheet'!AZ1504)","v":""},{"$f":"IF('1. Ordersheet'!BA1504=\"\",\"\",'1. Ordersheet'!BA1504)","v":""},{"$f":"IF('1. Ordersheet'!BC1504=\"\",\"\",'1. Ordersheet'!BC1504)","v":""},{"$f":"IF('1. Ordersheet'!BD1504=\"\",\"\",'1. Ordersheet'!BD1504)","v":""},{"$f":"IF('1. Ordersheet'!BE1504=\"\",\"\",'1. Ordersheet'!BE1504)","v":""},{"$f":"IF('1. Ordersheet'!BF1504=\"\",\"\",'1. Ordersheet'!BF1504)","v":""},{"$f":"IF('1. Ordersheet'!BG1504=\"\",\"\",'1. Ordersheet'!BG1504)","v":"ZWO"},{"$f":"IF('1. Ordersheet'!BH1504=\"\",\"\",'1. Ordersheet'!BH1504)","v":""},{"$f":"IF('1. Ordersheet'!BI1504=\"\",\"\",'1. Ordersheet'!BI1504)","v":""},{"$f":"IF('1. Ordersheet'!BJ1504=\"\",\"\",'1. Ordersheet'!BJ1504)","v":""},{"$f":"IF('1. Ordersheet'!BK1504=\"\",\"\",'1. Ordersheet'!BK1504)","v":""},{"$f":"IF('1. Ordersheet'!BL1504=\"\",\"\",'1. Ordersheet'!BL1504)","v":""}]
[{"$f":"IF('1. Ordersheet'!F1505=\"\",\"\",'1. Ordersheet'!F1505)","v":""},{"$f":"IF('1. Ordersheet'!G1505=\"\",\"\",'1. Ordersheet'!G1505)","v":""},{"$f":"IF('1. Ordersheet'!H1505=\"\",\"\",'1. Ordersheet'!H1505)","v":""},{"$f":"IF('1. Ordersheet'!I1505=\"\",\"\",'1. Ordersheet'!I1505)","v":""},{"$f":"IF('1. Ordersheet'!J1505=\"\",\"\",'1. Ordersheet'!J1505)","v":""},{"$f":"IF('1. Ordersheet'!K1505=\"\",\"\",'1. Ordersheet'!K1505)","v":""},{"$f":"IF('1. Ordersheet'!L1505=\"\",\"\",'1. Ordersheet'!L1505)","v":""},{"$f":"IF('1. Ordersheet'!M1505=\"\",\"\",'1. Ordersheet'!M1505)","v":""},{"$f":"IF('1. Ordersheet'!N1505=\"\",\"\",'1. Ordersheet'!N1505)","v":""},{"$f":"IF('1. Ordersheet'!O1505=\"\",\"\",'1. Ordersheet'!O1505)","v":{"$error":"#N/A"}},{"$f":"IF('1. Ordersheet'!P1505=\"\",\"\",'1. Ordersheet'!P1505)","v":{"$error":"#N/A"}},{"$f":"IF('1. Ordersheet'!Q1505=\"\",\"\",'1. Ordersheet'!Q1505)","v":""},{"$f":"IF('1. Ordersheet'!R1505=\"\",\"\",'1. Ordersheet'!R1505)","v":""},{"$f":"IF('1. Ordersheet'!S1505=\"\",\"\",'1. Ordersheet'!S1505)","v":""},{"$f":"IF('1. Ordersheet'!V1505=\"\",\"\",'1. Ordersheet'!V1505)","v":""},{"$f":"IF('1. Ordersheet'!W1505=\"\",\"\",'1. Ordersheet'!W1505)","v":""},{"$f":"IF('1. Ordersheet'!X1505=\"\",\"\",'1. Ordersheet'!X1505)","v":""},{"$f":"IF('1. Ordersheet'!Y1505=\"\",\"\",'1. Ordersheet'!Y1505)","v":""},{"$f":"IF('1. Ordersheet'!Z1505=\"\",\"\",'1. Ordersheet'!Z1505)","v":""},{"$f":"IF('1. Ordersheet'!AA1505=\"\",\"\",'1. Ordersheet'!AA1505)","v":""},null,{"$f":"IF('1. Ordersheet'!AS1505=\"\",\"\",'1. Ordersheet'!AS1505)","v":""},{"$f":"IF('1. Ordersheet'!AT1505=\"\",\"\",'1. Ordersheet'!AT1505)","v":""},null,null,null,null,null,null,null,{"$f":"IF('1. Ordersheet'!AX1505=\"\",\"\",'1. Ordersheet'!AX1505)","v":""},{"$f":"IF('1. Ordersheet'!AY1505=\"\",\"\",'1. Ordersheet'!AY1505)","v":""},{"$f":"IF('1. Ordersheet'!AZ1505=\"\",\"\",'1. Ordersheet'!AZ1505)","v":""},{"$f":"IF('1. Ordersheet'!BA1505=\"\",\"\",'1. Ordersheet'!BA1505)","v":""},{"$f":"IF('1. Ordersheet'!BC1505=\"\",\"\",'1. Ordersheet'!BC1505)","v":""},{"$f":"IF('1. Ordersheet'!BD1505=\"\",\"\",'1. Ordersheet'!BD1505)","v":""},{"$f":"IF('1. Ordersheet'!BE1505=\"\",\"\",'1. Ordersheet'!BE1505)","v":""},{"$f":"IF('1. Ordersheet'!BF1505=\"\",\"\",'1. Ordersheet'!BF1505)","v":""},{"$f":"IF('1. Ordersheet'!BG1505=\"\",\"\",'1. Ordersheet'!BG1505)","v":"ZWO"},{"$f":"IF('1. Ordersheet'!BH1505=\"\",\"\",'1. Ordersheet'!BH1505)","v":""},{"$f":"IF('1. Ordersheet'!BI1505=\"\",\"\",'1. Ordersheet'!BI1505)","v":""},{"$f":"IF('1. Ordersheet'!BJ1505=\"\",\"\",'1. Ordersheet'!BJ1505)","v":""},{"$f":"IF('1. Ordersheet'!BK1505=\"\",\"\",'1. Ordersheet'!BK1505)","v":""},{"$f":"IF('1. Ordersheet'!BL1505=\"\",\"\",'1. Ordersheet'!BL1505)","v":""}]

{"sheet":"Data order","index":5,"n_rows":98,"n_cols":19,"rows_kept":98,"cut":false,"hidden":true,"merged":[]}
["DarwinMoverClass","CurrencyCodePurchasePrice","SalesSegment","Hanggoed/liggoed","OMID","LogisticItemGroup","ShippingCosts","WKShippingMethod","Certificaten: Gerecycled materiaal","Certificaten: Biologisch materiaal","Certificaten: Dierenwelzijn",null,"korte omschrijving","MCC3_CODE","Taxon",null,"Buyer",null,"Planner"]
["never out of stock","EUR",1,"Hanggoed","B",1,"Direct-Hg","DirectDel","Global Recycled Standard (GRS)","GOTS Organic (Global Organic Textile Standard)","The Good Cashmere Standard (GCS)",null,"ds bikinitop bandeau","VC9M","Bikinitopje (Dames)",null,"mvadijk",null,"pshearman"]
["seasonal noos","USD",2,"Liggoed","I",2,"Direct-Lg","Parcel",null,"OCS 100 (Organic Content Standard)",null,null,"ds bikinitop bandeau met cupmaat","VC9M","Bikinitopje met cupmaat (Dames)",null,"hkarzijn",null,"chmos"]
["summer 2025",null,3,null,"M",3,"None","Truck",null,"Better Cotton Initiative (BCI)",null,null,"ds bikinitop beugel","RJ2X","Bikinitopje (Dames)",null,"lklaver"]
["winter 2025",null,4,null,"R",4,"Parcel-spc",null,null,null,null,null,"ds bikinitop beugel met cupmaat","RJ2X","Bikinitopje met cupmaat (Dames)"]
["summer 2026",null,5,null,null,5,"Parcel<3kg",null,null,null,null,null,"ds bikinitop crop","WV8R","Bikinitopje (Dames)"]
["winter 2026",null,6,null,null,6,"Parcel>3kg",null,null,null,null,null,"ds bikinitop crop met cupmaat","WV8R","Bikinitopje met cupmaat (Dames)"]
["summer 2027",null,7,null,null,null,"Truck",null,null,null,null,null,"ds bikinitop halter","JM9C","Bikinitopje (Dames)"]
["winter 2027",null,null,null,null,null,"Truck<65E",null,null,null,null,null,"ds bikinitop halter met cupmaat","JM9C","Bikinitopje met cupmaat (Dames)"]
[null,null,null,null,null,null,"Direct-sp1",null,null,null,null,null,"ds bikinitop one shoulder","XW9C","Bikinitopje (Dames)"]
[null,null,null,null,null,null,"Direct-sp2",null,null,null,null,null,"ds bikinitop one shoulder met cupmaat","XW9C","Bikinitopje met cupmaat (Dames)"]
[null,null,null,null,null,null,"Null",null,null,null,null,null,"ds bikinitop push-up","PR4R","Bikinitopje (Dames)"]
[null,null,null,null,null,null,null,null,null,null,null,null,"ds bikinitop push-up met cupmaat","PR4R","Bikinitopje met cupmaat (Dames)"]
[null,null,null,null,null,null,null,null,null,null,null,null,"ds bikinitop tankini","GX6W","Bikinitopje (Dames)"]
[null,null,null,null,null,null,null,null,null,null,null,null,"ds bikinitop tankini met cupmaat","GX6W","Bikinitopje met cupmaat (Dames)"]
[null,null,null,null,null,null,null,null,null,null,null,null,"ds bikinitop triangel","QR8Q","Bikinitopje (Dames)"]
[null,null,null,null,null,null,null,null,null,null,null,null,"ds bikinitop triangel met cupmaat","QR8Q","Bikinitopje met cupmaat (Dames)"]
[null,null,null,null,null,null,null,null,null,null,null,null,"ds bikinitop anders","XW9C","Bikinitopje (Dames)"]
[null,null,null,null,null,null,null,null,null,null,null,null,"ds bikinitop anders met cupmaat","XW9C","Bikinitopje met cupmaat (Dames)"]
[null,null,null,null,null,null,null,null,null,null,null,null,"ds bikinibroekje","CR9W","Bikinibroekje (Dames)"]
[null,null,null,null,null,null,null,null,null,null,null,null,"ds bikinibroekje brazilian","CR9V","Bikinibroekje (Dames)"]
[null,null,null,null,null,null,null,null,null,null,null,null,"ds bikinibroekje hipster","CR9V","Bikinibroekje (Dames)"]
[null,null,null,null,null,null,null,null,null,null,null,null,"ds bikinibroekje omslag","VR9C","Bikinibroekje (Dames)"]
[null,null,null,null,null,null,null,null,null,null,null,null,"ds bikinibroekje strik","QP7Q","Bikinibroekje (Dames)"]
[null,null,null,null,null,null,null,null,null,null,null,null,"ds bikinibroekje anders","CR9V","Bikinibroekje (Dames)"]
[null,null,null,null,null,null,null,null,null,null,null,null,"ds bikini bandeau","RQ6Q","Bikini (Dames)"]
[null,null,null,null,null,null,null,null,null,null,null,null,"ds bikini bandeau met cupmaat","RQ6Q","Bikini met cupmaat (Dames)"]
[null,null,null,null,null,null,null,null,null,null,null,null,"ds bikini beugel","RQ6Q","Bikini (Dames)"]
[null,null,null,null,null,null,null,null,null,null,null,null,"ds bikini beugel met cupmaat","RQ6Q","Bikini met cupmaat (Dames)"]
[null,null,null,null,null,null,null,null,null,null,null,null,"ds bikini crop","RQ6Q","Bikini (Dames)"]
[null,null,null,null,null,null,null,null,null,null,null,null,"ds bikini crop met cupmaat","RQ6Q","Bikini met cupmaat (Dames)"]
[null,null,null,null,null,null,null,null,null,null,null,null,"ds bikini halter","RQ6Q","Bikini (Dames)"]
[null,null,null,null,null,null,null,null,null,null,null,null,"ds bikini halter met cupmaat","RQ6Q","Bikini met cupmaat (Dames)"]
[null,null,null,null,null,null,null,null,null,null,null,null,"ds bikini one shoulder","RQ6Q","Bikini (Dames)"]
[null,null,null,null,null,null,null,null,null,null,null,null,"ds bikini one shoulder met cupmaat","RQ6Q","Bikini met cupmaat (Dames)"]
[null,null,null,null,null,null,null,null,null,null,null,null,"ds bikini push-up","RQ6Q","Bikini (Dames)"]
[null,null,null,null,null,null,null,null,null,null,null,null,"ds bikini push-up met cupmaat","RQ6Q","Bikini met cupmaat (Dames)"]
[null,null,null,null,null,null,null,null,null,null,null,null,"ds bikini tankini","RQ6Q","Bikini (Dames)"]
[null,null,null,null,null,null,null,null,null,null,null,null,"ds bikini tankini met cupmaat","RQ6Q","Bikini met cupmaat (Dames)"]
[null,null,null,null,null,null,null,null,null,null,null,null,"ds bikini triangel","RQ6Q","Bikini (Dames)"]
[null,null,null,null,null,null,null,null,null,null,null,null,"ds bikini triangel met cupmaat","RQ6Q","Bikini met cupmaat (Dames)"]
[null,null,null,null,null,null,null,null,null,null,null,null,"ds bikini anders","RQ6Q","Bikini (Dames)"]
[null,null,null,null,null,null,null,null,null,null,null,null,"ds bikini anders met cupmaat","RQ6Q","Bikini met cupmaat (Dames)"]
[null,null,null,null,null,null,null,null,null,null,null,null,"ds badpak","CQ4G","Badpak (Dames)"]
[null,null,null,null,null,null,null,null,null,null,null,null,"ds badpak met cupmaat","QW5F","Badpak met cupmaat (Dames)"]
[null,null,null,null,null,null,null,null,null,null,null,null,"ds badpak corrigerend","JQ4C","Badpak (Corrigerend) (Dames)"]
[null,null,null,null,null,null,null,null,null,null,null,null,"ds badpak corrigerend met cupmaat","QR5F","Badpak met cupmaat (Corrigerend) (Dames)"]
[null,null,null,null,null,null,null,null,null,null,null,null,"ds badpak halter","PR6J","Badpak (Dames)"]
[null,null,null,null,null,null,null,null,null,null,null,null,"ds badpak halter met cupmaat","PR6J","Badpak met cupmaat (Dames)"]
[null,null,null,null,null,null,null,null,null,null,null,null,"ds badpak jurk","PR6J","Badpak (Dames)"]
[null,null,null,null,null,null,null,null,null,null,null,null,"ds badpak one shoulder","PR6J","Badpak (Dames)"]
[null,null,null,null,null,null,null,null,null,null,null,null,"ds badpak one shoulder met cupmaat","PR6J","Badpak met cupmaat (Dames)"]
[null,null,null,null,null,null,null,null,null,null,null,null,"ds badpak prothese","PR6J","Badpak (Prothese) (Dames)"]
[null,null,null,null,null,null,null,null,null,null,null,null,"ds badpak sport","HF2C","Sportbadpak (Dames)"]
[null,null,null,null,null,null,null,null,null,null,null,null,"ds badpak zwangerschap","PR6J","Badpak (Dames)"]
[null,null,null,null,null,null,null,null,null,null,null,null,"ds badpak anders","PR6J","Badpak (Dames)"]
[null,null,null,null,null,null,null,null,null,null,null,null,"ds badpak anders met cupmaat","PR6J","Badpak met cupmaat (Dames)"]
[null,null,null,null,null,null,null,null,null,null,null,null,"ds pareo","FW7H","Pareo (Dames)"]
[null,null,null,null,null,null,null,null,null,null,null,null,"ds boardshort","CR9V","Boardshort (Dames)"]
[null,null,null,null,null,null,null,null,null,null,null,null,"ds zwemshort","CR9V","Zwemshort (Dames)"]
[null,null,null,null,null,null,null,null,null,null,null,null,"ds strandjurk","FX7W","Strandjurk (Dames)"]
[null,null,null,null,null,null,null,null,null,null,null,null,"ds strandtuniek","FX7W","Strandtuniek (Dames)"]
[null,null,null,null,null,null,null,null,null,null,null,null,"ds strandshort","FX7W","Strandshort (Dames)"]
[null,null,null,null,null,null,null,null,null,null,null,null,"ds strandrok","FX7W","Strandrok (Dames)"]
[null,null,null,null,null,null,null,null,null,null,null,null,"ds strandbroek","FX7W","Strandbroek (Dames)"]
[null,null,null,null,null,null,null,null,null,null,null,null,"unisex strandponcho volwassenen","FX7W","Strandponcho (Unisex)"]
[null,null,null,null,null,null,null,null,null,null,null,null,"ds UV shirt","FX7W","UV shirt (Dames)"]
[null,null,null,null,null,null,null,null,null,null,null,null,"unisex badmuts volwassenen","VP6H","Badmuts (Unisex)"]
[null,null,null,null,null,null,null,null,null,null,null,null,"ds badmuts","VP6H","Badmuts (Dames)"]
[null,null,null,null,null,null,null,null,null,null,null,null,"ds bikinipads","VP6H","Bikinipads (Dames)"]
[null,null,null,null,null,null,null,null,null,null,null,null,"hr boardshort","PF6M","Boardshort (Heren)"]
[null,null,null,null,null,null,null,null,null,null,null,null,"hr zwemboxer","FX5J","Zwemboxer (Heren)"]
[null,null,null,null,null,null,null,null,null,null,null,null,"hr zwembroek","FR6F","Zwembroek (Heren)"]
[null,null,null,null,null,null,null,null,null,null,null,null,"hr zwemshort","PF6M","Zwemshort (Heren)"]
[null,null,null,null,null,null,null,null,null,null,null,null,"hr UV shirt","FR6F","UV shirt (Heren)"]
[null,null,null,null,null,null,null,null,null,null,null,null,"hr badmuts","FR6F","Badmuts (Heren)"]
[null,null,null,null,null,null,null,null,null,null,null,null,"js boardshort","PG9M","Boardshort (Jongens)"]
[null,null,null,null,null,null,null,null,null,null,null,null,"js zwemboxer","GF7X","Zwemboxer (Jongens)"]
[null,null,null,null,null,null,null,null,null,null,null,null,"js zwemshort","PG9M","Zwemshort (Jongens)"]
[null,null,null,null,null,null,null,null,null,null,null,null,"js UV shirt","PC7X","UV shirt (Jongens)"]
[null,null,null,null,null,null,null,null,null,null,null,null,"js UV zwempak","PC7X","UV zwempak (Jongens)"]
[null,null,null,null,null,null,null,null,null,null,null,null,"ms badpak","GR6C","Badpak (Meisjes)"]
[null,null,null,null,null,null,null,null,null,null,null,null,"ms badpak sport","XR8H","Sportbadpak (Meisjes)"]
[null,null,null,null,null,null,null,null,null,null,null,null,"ms bikini bandeau","WJ8F","Bikini (Meisjes)"]
[null,null,null,null,null,null,null,null,null,null,null,null,"ms bikini crop","WJ8F","Bikini (Meisjes)"]
[null,null,null,null,null,null,null,null,null,null,null,null,"ms bikini halter","XG9H","Bikini (Meisjes)"]
[null,null,null,null,null,null,null,null,null,null,null,null,"ms bikini one shoulder","WJ8F","Bikini (Meisjes)"]
[null,null,null,null,null,null,null,null,null,null,null,null,"ms bikini triangel","PV3C","Bikini (Meisjes)"]
[null,null,null,null,null,null,null,null,null,null,null,null,"ms bikini anders","WJ8F","Bikini (Meisjes)"]
[null,null,null,null,null,null,null,null,null,null,null,null,"ms strandponcho","HG2R","Strandshort (Meisjes)"]
[null,null,null,null,null,null,null,null,null,null,null,null,"ms UV shirt","HG2R","UV shirt (Meisjes)"]
[null,null,null,null,null,null,null,null,null,null,null,null,"ms UV zwempak","HG2R","UV zwempak (Meisjes)"]
[null,null,null,null,null,null,null,null,null,null,null,null,"ms zwemshort","HG2R","Zwemshort (Meisjes)"]
[null,null,null,null,null,null,null,null,null,null,null,null,"unisex badmuts kids","PC7X","Badmuts (Kids)"]
[null,null,null,null,null,null,null,null,null,null,null,null,"unisex strandponcho","HG2R","Strandponcho (Kids)"]
[null,null,null,null,null,null,null,null,null,null,null,null,"unisex UV shirt kids","PC7X","UV shirt (Kids)"]
[null,null,null,null,null,null,null,null,null,null,null,null,"unisex UV zwempak kids","PC7X","UV zwempak (Kids)"]
[null,null,null,null,null,null,null,null,null,null,null,null,"unisex zwembril kids","PC7X","Zwembril (Kids)"]

{"sheet":"Data content","index":6,"n_rows":86,"n_cols":30,"rows_kept":86,"cut":false,"hidden":true,"merged":[]}
["Filterkleur","Filtermateriaal","Print","Sluiting","Multi: Soort bikinibroekje","Multi: Soort bikinitopje","Achterkant broekje","Softcups","Multi: Soort badpak","Corrigerend","Multi: Soort zwembroek","Multi: Soort zak","Giftbox","Kraagvorm","Mouwlengte",null,"Filter colour","Filtermaterial","Print","Closure","Multi: Type of bikini bottom","Multi: Type of bikni top","Back panty","Softcups","Multi: Type of swimsuit","Correcting","Multi: Type of swimshorts","Multi: Type of pocket","Neckline","Sleeve length"]
["Antraciet","Acryl","All over print","2-way rits","Badrokjes","Bandeautops","Half bedekkend","Geen","Badpakjurken","Ja","Boardshorts","5-pocket","Ja","Boothals","Driekwart",null,"Anthracite","Acrylic","All-over print","2-way zipper","Bikini skirts","Bandeau tops","Fully covering","None","Cut-out swimsuits","Yes","Boardshorts","5-pocket","Boat neck","Half-length"]
["Aubergine","Badstof","Backprint","2-way rits met windvanger","Bikinislips","Beugeltops","String","Uitneembaar","Corrigerende badpakken","Nee","Zwemboxers","Afsluitbare zak","Nee","Button down","Half lang",null,"Aubergine","Bamboo","Animal print","2-way zipper with wind flap","Bikini slips","Crop tops","Semi-covering","Removeable","Deep back swimsuits","No","Swim boxers","Audio pocket","Bow collar","Long"]
["Beige","Bamboe","Blad","Adjust-O-Matic","Brazilian broekjes","Crop tops","Volledig bedekkend","Vast","Cut-out badpakken",null,"Zwemshorts","Afsluitbare zakken",null,"Capuchon","Kort",null,"Beige","Bouclé","Back print","Adjust-O-Matic","Brazilian bottoms","Halter tops","Thong","Solid","Deep V-neck swimsuits",null,"Swim shorts","Back pocket","Button-down","Short"]
["Black denim","Bouclé","Bloemen","Bergsluiting","Cut-out broekjes","Haltertops",null,null,"Diepuitgesneden decolleté badpakken",null,"Zwemslips","Audiozakje",null,"Choker","Lang",null,"Black","Canvas","Camouflage","Box and tongue","Cut-out bottoms","Off shoulder tops",null,null,"Halter swimsuits",null,"Swim slips","Back pockets","Choker","Sleevelength 7"]
["Blauw","Canvas","Camouflage","Beugel","High waist broekjes","Off shoulder tops",null,null,"Diepuitgesneden rug badpakken",null,null,"Binnenzak",null,"Col","Mouwlengte 7",null,"Black denim","Chenille","Character","Buckle","High waist bottoms","One shoulder tops",null,null,"High-cut swimsuits",null,null,"Cargo pockets","Classic collar","Sleeveless"]
["Brique","Chenille","Dierenprint","Blinde knoopsluiting","Hipsterbroekjes","One shoulder tops",null,null,"Halterbadpakken",null,null,"Binnenzakken",null,"Halter","Mouwloos",null,"Blue","Coated","Checkered (Plaid)","Butterfly clasp","High waisted bottoms","Push-up tops",null,null,"Monokinis",null,null,"Chest pocket","Halter","Spaghetti strap"]
["Brons","Coated","Dip-dye","Blinde ritssluiting","Hooguitgesneden broekjes","Push-up tops",null,null,"Hooguitgesneden badpakken",null,null,"Borstzak",null,"Hartvormig","Spaghettibandje",null,"Brick","Coconut fiber","Dip-dye","Button closure","Hipster bottoms","Racerback tops",null,null,"Off-shoulder swimsuits",null,null,"Chest pockets","Heart-shaped neckline","Three-quarter length"]
["Bruin","Corduroy","Effen","Box and Tongue","Omslagbroekjes","Racerback tops",null,null,"Monokini's",null,null,"Borstzakken",null,"Henleykraag",null,null,"Bronze","Corduroy","Flowers","Cap lock","Thongs","Strapless tops",null,null,"One-shoulder swimsuits",null,null,"Decorative pockets","Henley collar"]
["Camel","Cupro","Grafisch","Clipsluiting","Strikbroekjes","Strapless tops",null,null,"Off shoulder badpakken",null,null,"Cargozakken",null,"Klassieke kraag",null,null,"Brown","Cotton","Graphic","Click closure","Tie bottoms","Tankini tops",null,null,"Prothesis swimsuits",null,null,"Front pockets","Hood"]
["Champagne","Denim","Hartjes","Double breasted","Stringbroekjes","Tankinitops",null,null,"One shoulder badpakken",null,null,"Geen",null,"Mao kraag",null,null,"Camel","Cotton linen","Hearts","Clip closure","Turn-up bottoms","Triangle tops",null,null,"Shapewear swimsuits",null,null,"Inner pocket","Mao collar"]
["Cognac","Dolomiet","Krijtstreep","Draaisluiting",null,"Triangeltops",null,null,"Prothese badpakken",null,null,"Kangoeroezak",null,"Off shoulder",null,null,"Champagne","Cotton satin","Houndstooth","Double-breasted",null,"Wired tops",null,null,"Sports swimsuits",null,null,"Inner pockets","Notch collar"]
["Crème","Dons","Logo","Drukknoop",null,null,null,null,"Sportbadpakken",null,null,"Sierzakken",null,"One shoulder",null,null,"Cherry","Cotton-lyocell","Leafs","Drawstrings",null,null,null,null,"Strapless swimsuits",null,null,"Kangaroo pocket","Off-shoulder"]
["Cyaan","Dralon","Meerkleurig","Elastische inzet",null,null,null,null,"Strapless badpakken",null,null,"Skipaszak",null,"Openvallende hals",null,null,"Cognac","Cupro","Leopard print","Elastic insert",null,null,null,null,"Swimming dresses",null,null,"Key pocket","One-shoulder"]
["Dark blue denim","Eendenveren","Melée","Elastische tailleband",null,null,null,null,null,null,null,"Sleutelzakje",null,"Opstaande kraag",null,null,"Colonial","Denim","Logo","Elastic laces",null,null,null,null,null,null,null,"None","Open-neck"]
["Donker oranje","Flanel","Mixprint","Elastische tailleband met koord",null,null,null,null,null,null,null,"Zak achter",null,"Overslagkraag",null,null,"Copper","Dolomite","Mélange","Elastic laces with Velcro closure",null,null,null,null,null,null,null,"Secure pocket (or pocket with closure)","Peter Pan collar"]
["Donkerblauw","Fleece","Paisley","Elastische veter",null,null,null,null,null,null,null,"Zakken achter",null,"Peter Pan-kraag",null,null,"Coral red","Down","Mixed print","Elastic waistband",null,null,null,null,null,null,null,"Secure pockets (or pockets with closures)","Polo collar"]
["Donkerbruin","Fluweel","Panterprint","Elastische veter- met klittenbandsluiting",null,null,null,null,null,null,null,"Zakken voor",null,"Polo",null,null,"Cream","Dralon","Multicolored","Elastic waistband with drawstring",null,null,null,null,null,null,null,"Side pocket","Rollneck"]
["Donkergroen","Gewassen katoen","Personage","Geen",null,null,null,null,null,null,null,"Zak op de mouw",null,"Reverskraag",null,null,"Cyan","Duck feathers","Paisley","Folding clasp",null,null,null,null,null,null,null,"Side pockets","Round neck"]
["Donkerpaars","Gewatteerd","Pied de Poule","Gesp",null,null,null,null,null,null,null,"Zijzak",null,"Rolkraag",null,null,"Dark blue","Fabric","Pinstripe","Half zipper",null,null,null,null,null,null,null,"Ski pass pocket","Shawl collar"]
["Donkerrood","Goud","Printopdruk","Haaksluiting",null,null,null,null,null,null,null,"Zijzakken",null,"Ronde hals",null,null,"Dark blue denim","Faux fur","Plain","Hook closure",null,null,null,null,null,null,null,"Sleeve pocket","Skipper collar"]
["Donkerviolet","Harig","Ruit","Halve rits",null,null,null,null,null,null,null,null,null,"Schipperskraag",null,null,"Dark brown","Faux leather","Polka dots","Invisible button",null,null,null,null,null,null,null,null,"Smoking collar"]
["Ecru","Hennep","Sterren","Kapittelslot",null,null,null,null,null,null,null,null,null,"Sjaalkraag",null,null,"Dark green","Faux suede","Print design","Invisible zipper",null,null,null,null,null,null,null,null,"Square neckline"]
["Fuchsia","Imitatiebont","Stip","Karabijnsluiting",null,null,null,null,null,null,null,null,null,"Smokingkraag",null,null,"Dark orange","Felt","Stars","Laces",null,null,null,null,null,null,null,null,"Stand-up collar"]
["Geel","Imitatieleer","Streep","Kliksluiting",null,null,null,null,null,null,null,null,null,"Strapless",null,null,"Dark purple","Flannel","Stripe","Laces with hooks",null,null,null,null,null,null,null,null,"Strapless"]
["Goud","Imitatiesuède","Tekst","Klittenband",null,null,null,null,null,null,null,null,null,"Strikkraag",null,null,"Dark red","Fleece","Text","Laces with Velcro closure",null,null,null,null,null,null,null,null,"Turtleneck"]
["Grey denim","Jersey","Tie-dye","Knoopsluiting",null,null,null,null,null,null,null,null,null,"V-hals",null,null,"Dark violet","Fur","Tie-dye","Lobster claw closure",null,null,null,null,null,null,null,null,"V-neck"]
["Grijs","Jog denim","Tortoise","Magneetsluiting",null,null,null,null,null,null,null,null,null,"Vierkante hals",null,null,"Ecru","Fuzzy","Tortoise","Magnet closure",null,null,null,null,null,null,null,null,"Waterfall neckline"]
["Grijs melange","Jute","Vintage","Rits- en drukknoopsluiting",null,null,null,null,null,null,null,null,null,"Watervalhals",null,null,"Fuchsia","Gold","Vintage","None",null,null,null,null,null,null,null,null,"Widespread collar"]
["Grijsblauw","Kant","Zebraprint","Rits- en haaksluiting",null,null,null,null,null,null,null,null,null,"Widespread",null,null,"Gold","Hemp","Zebra print","Press stud",null,null,null,null,null,null,null,null,"Wrap collar"]
["Grijsbruin","Katoen",null,"Rits- en klittenbandsluiting",null,null,null,null,null,null,null,null,null,null,null,null,"Green","Jersey",null,"Safety lock"]
["Grijsgroen","Katoen satijn",null,"Rits- en knoopsluiting",null,null,null,null,null,null,null,null,null,null,null,null,"Grey","Jog denim",null,"Slider"]
["Groen","Katoenlinnen",null,"Rits- en vetersluiting",null,null,null,null,null,null,null,null,null,null,null,null,"Grey denim","Jute",null,"Snapback"]
["Honing","Katoen-lyocell",null,"Rits, haak- en knoopsluiting",null,null,null,null,null,null,null,null,null,null,null,null,"Grey mélange","Lace",null,"Spring closure"]
["Ivoor","Kokosvezel",null,"Rits met windvanger",null,null,null,null,null,null,null,null,null,null,null,null,"Grey-blue","Latex",null,"Strapback"]
["Kaki","Kunststof",null,"Ritssluiting",null,null,null,null,null,null,null,null,null,null,null,null,"Grey-brown","Leather",null,"Tension clasp"]
["Kersen","Lak",null,"Rits + tunnelkoord",null,null,null,null,null,null,null,null,null,null,null,null,"Grey-green","Linen",null,"Tie closure"]
["Koloniaal","Latex",null,"Rits waterdicht",null,null,null,null,null,null,null,null,null,null,null,null,"Honey","Lyocell",null,"Twist lock closure"]
["Koper","Leer",null,"Rits winddicht",null,null,null,null,null,null,null,null,null,null,null,null,"Ivory","Merino wool",null,"Velcro"]
["Koraalrood","Linnen",null,"Rits wind- en waterdicht",null,null,null,null,null,null,null,null,null,null,null,null,"Khaki","Mesh",null,"Waterproof zipper"]
["Lavendel","Lyocell",null,"Slider",null,null,null,null,null,null,null,null,null,null,null,null,"Lavender","Micro leather",null,"Wind- and waterproof zipper"]
["Lichtblauw","Merinowol",null,"Snapback",null,null,null,null,null,null,null,null,null,null,null,null,"Light blue","Microfiber",null,"Windproof zipper"]
["Lichtbruin","Mesh",null,"Strapback",null,null,null,null,null,null,null,null,null,null,null,null,"Light blue denim","Modacryl",null,"Zipper"]
["Lichtgeel","Microleer",null,"Striksluiting",null,null,null,null,null,null,null,null,null,null,null,null,"Light brown","Modal",null,"Zipper + drawstring"]
["Lichtgrijs","Microvezel",null,"Trekkoorden",null,null,null,null,null,null,null,null,null,null,null,null,"Light green","Molton",null,"Zipper and button closure"]
["Lichtgroen","Modacryl",null,"Veersluiting",null,null,null,null,null,null,null,null,null,null,null,null,"Light grey","Muslin",null,"Zipper and hook closure"]
["Lichtkaki","Modal",null,"Veiligheidsslot",null,null,null,null,null,null,null,null,null,null,null,null,"Light khaki","Nylon",null,"Zipper and lace closure"]
["Lichtroze","Molton",null,"Veter",null,null,null,null,null,null,null,null,null,null,null,null,"Light pink","Palm leaves",null,"Zipper and press stud closure"]
["Light blue denim","Mousseline",null,"Veter- met klittenbandsluiting",null,null,null,null,null,null,null,null,null,null,null,null,"Light yellow","Patent leather",null,"Zipper and Velcro closure"]
["Lila","Nylon",null,"Vlindersluiting",null,null,null,null,null,null,null,null,null,null,null,null,"Lilac","Plastic",null,"Zipper with wind flap"]
["Limegroen","Palmbladeren",null,"Vouwsluiting",null,null,null,null,null,null,null,null,null,null,null,null,"Lime green","Plush",null,"Zipper, hook, and button closure"]
["Magenta","Pluche",null,null,null,null,null,null,null,null,null,null,null,null,null,null,"Magenta","Polyacrylic"]
["Mahonie","Polyacryl",null,null,null,null,null,null,null,null,null,null,null,null,null,null,"Medium blue denim","Polyamide"]
["Marine","Polyamide",null,null,null,null,null,null,null,null,null,null,null,null,null,null,"Mexican","Polyester"]
["Medium blue denim","Polyester",null,null,null,null,null,null,null,null,null,null,null,null,null,null,"Mint green","Polyester-cotton"]
["Mexicaans","Polyester-katoen",null,null,null,null,null,null,null,null,null,null,null,null,null,null,"Multicolored","Polyether"]
["Mintgroen","Polyether",null,null,null,null,null,null,null,null,null,null,null,null,null,null,"Navy","Polyethylene"]
["Multi","Polyethyleen",null,null,null,null,null,null,null,null,null,null,null,null,null,null,"Nude","Quilted"]
["Nude","Ramie",null,null,null,null,null,null,null,null,null,null,null,null,null,null,"Ochre","Ramie"]
["Oker","Rayon",null,null,null,null,null,null,null,null,null,null,null,null,null,null,"Old pink","Rayon"]
["Olijfgroen","Riet",null,null,null,null,null,null,null,null,null,null,null,null,null,null,"Olive green","Reed"]
["Oranje","Satijn",null,null,null,null,null,null,null,null,null,null,null,null,null,null,"Orange","Satin"]
["Oudroze","Satijn-katoen bamboe",null,null,null,null,null,null,null,null,null,null,null,null,null,null,"Petrol","Satin-cotton bamboo"]
["Paars","Stof",null,null,null,null,null,null,null,null,null,null,null,null,null,null,"Pink","Sea grass"]
["Petrol","Stonewashed",null,null,null,null,null,null,null,null,null,null,null,null,null,null,"Purple","Silk"]
["Rood","Stretchdenim",null,null,null,null,null,null,null,null,null,null,null,null,null,null,"Red","Silver"]
["Roodbruin","Stretchkatoen",null,null,null,null,null,null,null,null,null,null,null,null,null,null,"Reddish brown","Stonewashed"]
["Rosé","Suede",null,null,null,null,null,null,null,null,null,null,null,null,null,null,"Rosé","Stretch cotton"]
["Roze","Swarovski kristal",null,null,null,null,null,null,null,null,null,null,null,null,null,null,"Salmon","Stretch denim"]
["Stonewashed","Sweat",null,null,null,null,null,null,null,null,null,null,null,null,null,null,"Sand","Suede"]
["Taupe","Synthetisch",null,null,null,null,null,null,null,null,null,null,null,null,null,null,"Silver","Swarovski crystal"]
["Terra","Teddy",null,null,null,null,null,null,null,null,null,null,null,null,null,null,"Stonewashed","Sweat"]
["Transparant","Tencel",null,null,null,null,null,null,null,null,null,null,null,null,null,null,"Taupe","Synthetic"]
["Turquoise","Textiel",null,null,null,null,null,null,null,null,null,null,null,null,null,null,"Terra","Teddy"]
["Violet","Travelstof",null,null,null,null,null,null,null,null,null,null,null,null,null,null,"Transparent","Tencel"]
["Wit","Tweed",null,null,null,null,null,null,null,null,null,null,null,null,null,null,"Turquoise","Terry cloth"]
["Zalm","Vacht",null,null,null,null,null,null,null,null,null,null,null,null,null,null,"Violet","Textile"]
["Zand","Vegan leather",null,null,null,null,null,null,null,null,null,null,null,null,null,null,"White","Travel fabric"]
["Zilver","Velours",null,null,null,null,null,null,null,null,null,null,null,null,null,null,"Yellow","Tweed"]
["Zwart","Vilt",null,null,null,null,null,null,null,null,null,null,null,null,null,null,null,"Vegan leather"]
[null,"Vinyl",null,null,null,null,null,null,null,null,null,null,null,null,null,null,null,"Velours"]
[null,"Viscose",null,null,null,null,null,null,null,null,null,null,null,null,null,null,null,"Velvet"]
[null,"Wol",null,null,null,null,null,null,null,null,null,null,null,null,null,null,null,"Vinyl"]
[null,"Zeegras",null,null,null,null,null,null,null,null,null,null,null,null,null,null,null,"Viscose"]
[null,"Zijde",null,null,null,null,null,null,null,null,null,null,null,null,null,null,null,"Washed cotton"]
[null,"Zilver",null,null,null,null,null,null,null,null,null,null,null,null,null,null,null,"Wool"]